{"text_format":"1","workbook":"xlsx","n_sheets":27,"sheets":["ERROR","DEPT MEMO","SL MEMO","ACH SUMMARY SHEET ","ACH Hosp based Staffing Model","ACH Clinic Operations - Staff","UAMS SUMMARY","COMP","ASSIGN","OTH EXP","OTH REV","CLIN REV","DIV","REVENUE PROJECTIONS","PROFORMA","FTE SHEET","LOOKUPS","MAL","SPEC LOOKUP","AAAPComp","AAAPRVU","AAMC","MGMAC","MGMACP","MGMAR","MGMARP","FPSC"],"not_rendered":{"charts":0,"images":1,"macros":1,"external_links":0,"defined_names":7,"comments":0,"pivot_tables":5},"unopened":[],"bounds":{"document_bytes":16777216,"sheet_cells":100000,"rows_first":2000,"rows_last":500,"rows_between":2000,"halvings":0,"cell_chars":16384,"cell_head_chars":4096},"cells_cut":0,"cells_raw":0,"read":"whole","date_system":"1900"}

{"sheet":"ERROR","index":0,"n_rows":37,"n_cols":29,"rows_kept":37,"cut":false,"hidden":false,"merged":[]}
[{"$f":"COMP!B1","v":"0; [select]; [select] [select]; "},null,null,null,null,null,null,null,null,null,null,null,null,null,null,null,null,null,null,null,null,{"$f":"COMP!N1","v":"JFR FBP V24.5"}]
[]
[]
[]
[]
[]
["TOTAL ERROR COUNT",null,null,null,{"$f":"E9+K9+Q9+W9+W12+Q13","v":{"$error":"#DIV/0!"}}]
[]
["COMP TAB",null,null,null,{"$f":"COMP!N7","v":33},null,"ASSIGN TAB",null,null,null,{"$f":"SUM(K10:K15)","v":7},null,"OTH EXP TAB",null,null,null,{"$f":"SUM(Q10:Q11)","v":0},null,"OTH REV TAB",null,null,null,{"$f":"SUM(W10)","v":0},null,"SCHEDULE SUMMARY TAB",null,null,null,{"$f":"SUM(AC10)","v":0}]
[null,"General Info",null,null,{"$f":"COMP!N7","v":33},null,null,"Administration",null,null,{"$f":"ASSIGN!C10","v":0},null,null,"Common Costs",null,null,{"$f":"'OTH EXP'!K7","v":0},null,null,"Other Revenue",null,null,{"$f":"'OTH REV'!B37","v":0},null,"Schedule Summary "]
[null,"Compensation",null,null,{"$f":"COMP!N30","v":10},null,null,"Research",null,null,{"$f":"ASSIGN!C17","v":0},null,null,"Other Costs",null,null,{"$f":"'OTH EXP'!K17","v":0}]
[null,"Benchmarks",null,null,{"$f":"COMP!N81","v":4},null,null,"Education",null,null,{"$f":"ASSIGN!C24","v":0},null,null,null,null,null,null,null,"CLIN REV TAB",null,null,null,{"$f":"'CLIN REV'!O9","v":{"$error":"#DIV/0!"}}]
[null,null,null,null,null,null,null,"Clinical",null,null,{"$f":"ASSIGN!C31","v":0},null,"DIVISION TAB",null,null,null,{"$f":"DIV!J8","v":4},null,null,"Clinical Revenue",null,null,{"$f":"'CLIN REV'!P47","v":{"$error":"#DIV/0!"}}]
[null,null,null,null,null,null,null,"Assigned FTE",null,null,{"$f":"SUM(ASSIGN!M49:Q49)+SUM(ASSIGN!R43:T49)","v":7},null,"Division tab ",null,null,null,{"$f":"Q13","v":4}]
[]
[]
[]
[]
[]
["DEPARTMENT REVIEW:"]
["1.  All errors above should be resolved and be = 0."]
["2.  RVU performance data on DIV tab matches a closed month in PowerBI and it is understandable to an outsider what source is being used."]
["3.  Budget data is included to a position level so that it can be traced to the position level in Adaptive, by an outsider.  Add adaptive position #."]
["4.  Clinical Need and Patient appointment information is completed on the DIV tab."]
["5.  If an ACH position, the sign on bonus(s) is/are reflected on the ACH Summmary Sheet tab in cell B44, pulls from COMP tab, was question answered?  Was amt entered there?"]
["6.  Check DIV Tab columns Y, AL and BC are completed."]
["7.  For ACH positions, all \"P and L\" drop downs should be set to clinical pro fees, not ACH or contract."]
["8.  ACH positions should have the ACH Hosp based staffing Model and/or ACH Clinic Operations - Staff completed up on submission. "]
["9.  On the DIV tab, remember to complete the Clinic Need sections if a clinical position."]
["10.  Refresh the pro forma and save prior to submittal."]
["11.  On the CLIN REV tab, check the revenue data is on the correct funding source (ICE, ACH, etc)"]
["12.  If the unhide macro is used on the DIV, manual hide at this time.  Cosmetically needs to look correct when gets to committee."]
["13.  If ACH position, review ACH Summary sheet for competeness.  It autofills, so missing items would be pulled from other tabs."]
["14.  If the JFR is a resubmit, be sure the reasons and $$ changes are out lined in the Justification box on the COMP tab."]
["15.  If Immigration expenses are expected, note on Comp tab and add expenses on Other expense tab."]
["16.  If you have a compensation plan for clinical faculty and the benchmarks are different than the benchmarks that autopopulate on the COMP tab, remember to add the comp plan benchmarks here:"]
["17.  If you hid columns on the DIV tab to make it easier to work with, unhide them back to the original layout."]

{"sheet":"DEPT MEMO","index":1,"n_rows":5,"n_cols":1,"rows_kept":5,"cut":false,"hidden":true,"merged":[[4,0,45,0]]}
["COLLEGE OF MEDICINE"]
["FACULTY RECRUITMENT BUSINESS PLAN"]
["DEPARTMENT CHAIR MEMO"]
["Memo must address the 1) justification and rationale for the position, 2) the equity analysis of the compensation structure, 3) the subspecialty group's productivity analysis, 4) if necessary the department's budget capacity analysis"]
["Paste Memo Here"]

{"sheet":"SL MEMO","index":2,"n_rows":5,"n_cols":1,"rows_kept":5,"cut":false,"hidden":true,"merged":[[4,0,44,0]]}
["COLLEGE OF MEDICINE"]
["FACULTY RECRUITMENT BUSINESS PLAN"]
["SERVICE LINE DIRECTOR MEMO"]
["Memo must address the 1) justification and rationale for the position, 2) the subspecialty group's productivity analysis, 3) budget capacity analysis, 4) financial return on investment analysis, 5) deployment strategy, and 6) clinical space analysis"]
["Paste Memo Here"]

{"sheet":"ACH SUMMARY SHEET ","index":3,"n_rows":75,"n_cols":6,"rows_kept":75,"cut":false,"hidden":false,"merged":[[62,3,62,4],[7,1,7,4],[2,1,2,4],[3,1,3,4],[4,1,4,4],[6,1,6,4],[5,1,5,4],[13,1,13,4],[14,1,14,4],[8,1,8,4],[9,1,9,4],[10,1,10,4],[11,1,11,4],[12,1,12,4],[40,1,40,4],[48,2,48,3],[68,1,68,4],[69,1,69,4],[70,1,70,4],[41,1,41,4],[16,1,16,4],[17,1,17,4],[29,2,29,3],[66,1,66,4],[36,1,36,4],[56,2,56,3],[57,2,57,3],[58,2,58,3],[51,2,51,3],[53,2,53,3],[54,2,54,3],[55,2,55,3],[49,2,49,3],[50,2,50,3],[42,1,42,4],[44,2,44,3],[45,2,45,3],[37,1,37,4],[38,1,38,4],[39,1,39,4],[76,1,76,4],[18,1,18,4],[63,1,63,4],[60,2,60,4],[61,2,61,4],[64,1,64,4],[75,1,75,4],[72,1,72,4],[71,1,71,4],[73,1,73,4],[74,1,74,4],[67,1,67,4],[52,2,52,3]]}
["Justification for Recruitment Summary - ACH Primary"]
["Position Demographics:",null,{"$f":"COMP!D9","v":0}]
["Employer (UAMS, ACMG, 1099)",{"$f":"COMP!J21","v":"[Select]"}]
["UAMS Department or N/A",{"$f":"COMP!J9","v":"[select]"}]
["Division of Department",{"$f":"COMP!J10","v":0}]
["UAMS Service Line",{"$f":"COMP!J12","v":"[select]"}]
["Provider Type:  (Physician/APP)",{"$f":"COMP!J15","v":"[select]"}]
["New vs. Replacement",{"$f":"COMP!D18","v":"[select]"}]
["     If Replacement, who replacing:",{"$f":"COMP!D19","v":0}]
["     If Replacement, date departed:",{"$f":"COMP!D20","v":"00:00:00"}]
["Primary Practice Locaton",{"$f":"COMP!D21","v":"[Select]"}]
["Secondary Practice Location(S)",{"$f":"COMP!D22","v":"[Select]"}]
["Submitted By",{"$f":"COMP!D12","v":0}]
["Position Request for FY/Start Date",{"$f":"COMP!D15","v":"00:00:00"}]
["Date Submitted",{"$f":"COMP!D13","v":"00:00:00"}]
["Current Position Rank (if replacement)",{"$f":"COMP!J19","v":"[select]"}]
["Current Candidate(S)",{"$f":"COMP!D16","v":0}]
["Academic Rank of Candidate(s)",{"$f":"COMP!D17","v":"[select]"}]
["   Justification",{"$f":"COMP!B24","v":0}]
["Position Roles/Specifics/FTE by Mission","FTE %"]
[{"$f":"ASSIGN!B10","v":"ADMINISTRATION"},{"$f":"ASSIGN!M16","v":0}]
[{"$f":"ASSIGN!B17","v":"RESEARCH"},{"$f":"ASSIGN!M23","v":0}]
[{"$f":"ASSIGN!B24","v":"EDUCATION"},{"$f":"ASSIGN!M30","v":0}]
[{"$f":"ASSIGN!B31","v":"CLINICAL"},{"$f":"ASSIGN!M41","v":0}]
["Total FTE",{"$f":"SUM(B21:B24)","v":0}]
["Position FTE Detail:"]
["Total FTE",{"$f":"ASSIGN!H58","v":0},null,"ACH FTE =",{"$f":"ASSIGN!E58","v":0}]
["Clinical FTE - AC Clinical FTE","cFTE =",{"$f":"ASSIGN!H56","v":0},"ACH cFTE =",{"$f":"ASSIGN!E56","v":0}]
["ACH Acad FTE - ACH Admin FTE","ACH Acad FTE =",{"$f":"ASSIGN!E46","v":"0"},"ACH Admin FTE =",{"$f":"ASSIGN!E53","v":0}]
["Non-ACH Contract FTE-Funding-Source",{"$f":"ASSIGN!E47","v":"0"},{"$f":"ASSIGN!E48","v":"[Select]"}]
[]
[]
["Other FTE Details:","(FTE)","Funding Source - ACH","Funding Source - UAMS","Total"]
["Research FTE",{"$f":"ASSIGN!H54","v":0},{"$f":"ASSIGN!E54","v":0},{"$f":"ASSIGN!C54+ASSIGN!D54+ASSIGN!F54+ASSIGN!G54","v":0},{"$f":"+D34+C34","v":0}]
["Education FTE",{"$f":"ASSIGN!H55","v":0}]
["Position Clinical Detail:"]
["Clinic Need:"]
["ACH Practice - 3rd Next Available Appt",{"$f":"DIV!AB101","v":0}]
["ACH Practice - Weekly Deficit in New Patient Appts",{"$f":"DIV!AB102","v":0}]
[]
[]
[]
["Avg. Service Productivity Percentile",{"$f":"DIV!BC53","v":{"$error":"#DIV/0!"}}]
["Total Cost-Salary-Benefits",{"$f":"(COMP!D36)+(COMP!D36*COMP!D47)","v":0}]
["ACH Sign on Bonus",{"$f":"IF(COMP!T32=0,COMP!J36+COMP!K36+COMP!L36+COMP!M36+COMP!N36,0)","v":0}]
["Projected Collections, Yr 1 ",{"$f":"'CLIN REV'!D164","v":0}]
["Projected Net Gain/(Loss) Year One",{"$f":"PROFORMA!D6","v":0}]
["Additional Expense related to position:","Expense for Year 1 Only:"]
["Efunds, Malpractice, Computer, Furn, Relocation bonus.",{"$f":"'OTH EXP'!G15","v":0}]
["Additional Expenses/positions",{"$f":"'OTH EXP'!G33","v":0}]
[]
[]
[]
[]
[]
[]
["Additional Expense/Support Staff/Equip Request/Cost",{"$f":"'OTH EXP'!C28","v":0},{"$f":"'OTH EXP'!D28","v":0}]
["Additional Expense/Support Staff/Equip Request/Cost",{"$f":"'OTH EXP'!C29","v":0},{"$f":"'OTH EXP'!D29","v":0}]
["Additional Expense/Support Staff/Equip Request/Cost",{"$f":"'OTH EXP'!C30","v":0},{"$f":"'OTH EXP'!D30","v":0}]
["The above includes Immigration Expenses?",{"$f":"COMP!J17","v":"[Select]"},"Amounts included in additional expenses line and details on Other Expense tab"]
["Clinic Availability: Comments",{"$f":"DIV!AJ101","v":"[Select]"},{"$f":"DIV!AG103","v":0}]
["OR Availability: Comments",{"$f":"DIV!AJ109","v":"[Select]"},{"$f":"DIV!AG111","v":0}]
["Does this position have an ACH/ACRI Recruitment Package?",{"$f":"COMP!E57","v":"[select]"},{"$f":"COMP!B58","v":"If Yes, was a signed and approved copy of the Package documentation included with this request?"},{"$f":"COMP!H58","v":"[select]"}]
["Challenges",{"$f":"DIV!V106","v":0}]
["Other factors",{"$f":"DIV!V111","v":0}]
["Position Request Leadership Review Status:"]
["Currently in AOA Budget (COM Finance)","Yes - No",null,null,null,"These questions to be added to JFR system in queue review area."]
["If Yes, Δ to AOA: Gain/(Loss) (COM Finance)"]
["Date(s) Reviewed","Pending Review – Requested Mods.– Approved – Deferred – Denied"]
["Date of Recommendation"]
["Current Status"]
["Requested Modifications"]
["Approved for FY**","                    "]
["Probability in present FY",">90%  -  > 50%  - < 50%  explain:"]
["Probability in FY**",">90%  -  > 50%  - < 50%  explain:"]

{"sheet":"ACH Hosp based Staffing Model","index":4,"n_rows":36,"n_cols":10,"rows_kept":36,"cut":false,"hidden":false,"merged":[[0,0,0,9],[20,0,20,3]]}
["Required Weekly Coverage"]
[null,"MON","TUES","WED","THURS","FRI","SAT","SUN"]
[]
["Team 1 ",0,0,0,0,0,0,0]
["Team 2",0,0,0,0,0,0,0]
["Team 3",0,0,0,0,0,0,0]
["Team 4",0,0,0,0,0,0,0]
["Team 4 ",0,0,0,0,0,0,0]
["Team 5 ",0,0,0,0,0,0,0]
["Team 6 ",0,0,0,0,0,0,0]
[]
["Nights ",0,0,0,0,0,0,0]
[]
["Team 1- APRN",0,0,0,0,0,0,0]
["Team 2- APRN",0,0,0,0,0,0,0]
["Team 3- APRN",0,0,0,0,0,0,0]
[]
["Monthly Coverage",{"$f":"SUM(B4:B16)","v":0},0,0,0,0,0,0]
[]
[]
["Weekly Hours",null,null,null,null,"Weeks","Days per Week","Hours per Day","Total Hours"]
[null,"Hours Per","Weeks","Total Hours",null,0,0,0,{"$f":"F22*G22*H22","v":0}]
["Weekdays",null,null,null,null,"Months","Nights per Month","Hours per night","Total Hours"]
["MD",{"$f":"SUMPRODUCT(B4:F9)","v":0},0,{"$f":"B24*C24","v":0},null,0,0,0,{"$f":"F24*G24*H24","v":0},{"$f":"I24+I22","v":0}]
["MD - Team 6",0,0,{"$f":"B25*C25","v":0}]
["APRN",{"$f":"SUMPRODUCT(B14:F16)","v":0},0,{"$f":"B26*C26","v":0}]
["Weekends "]
["MD",{"$f":"SUM(G4:H9)","v":0},0,{"$f":"B28*C28","v":0}]
["MD - Team 6",{"$f":"SUM(G10:H10)","v":0},0,{"$f":"B29*C29","v":0}]
["Nights"]
["MD",{"$f":"SUMPRODUCT(B12:H12)","v":0},0,{"$f":"B31*C31","v":0}]
["Total",null,null,{"$f":"SUM(D24:D31)","v":0}]
[]
[null,"Hours","Current cFTE","cFTE Needed","Variance"]
["MD",{"$f":"SUM(D24:D25,D28:D29,D31)","v":0},0,{"$f":"B35/J24","v":{"$error":"#DIV/0!"}},{"$f":"C35-D35","v":{"$error":"#DIV/0!"}}]
["APRN",{"$f":"SUM(D26)","v":0},0,{"$f":"B36/2080","v":0},{"$f":"C36-D36","v":0}]

{"sheet":"ACH Clinic Operations - Staff","index":5,"n_rows":61,"n_cols":6,"rows_kept":61,"cut":false,"hidden":false,"merged":[]}
[]
[null,"Joint planning for faculty recruitment - ACH/UAMS"]
[]
[]
[null,"Practice Location(s):"]
[null,"Have all practice locations been signed off?:"]
[null,"Clinic GL #(s):"]
[]
[null,null,"WHPUOS Productivity from Business Analytics for Clinic - Year to Date"]
[null,"Location","Actual","Budget","% Prod","Flexed FTE Variance (over)/under"]
[]
[]
[]
[]
[]
[null,null,"Vacancy (latest published report)"]
[null,"Location","YTD - Sched FTE","YTD - Adjust Budgeted FTE","Sched vs Bud FTE Variance (over)/under","Variance Percentage (over)/under"]
[]
[]
[]
[]
[]
[]
[null,"Please update appropriate category/categories below:"]
[null,"Incremental annual clinic visit volume:"]
[null,"Incremental annual inpatient days:"]
[null,"Incremental annual procedural volume (non-OR):"]
[null,"Incremental annual OR procedures:"]
[null,"Can incremental volume be accomodated by existing staff? "]
[null,"Does current clinic space accommodate?"]
[null,"Does current office space accommodate?"]
[]
[null,"Incremental Staffing associated with recruit - clinic GL"]
[null," - Clinic RN"]
[null," - Clinic LPN"]
[null," - Specialty Nurse"]
[null," - Dietitian"]
[null," - Social worker"]
[null," - PCT"]
[null," - PAR"]
[null," - Lab assistant"]
[null," - Respiratory"]
[null," - Other (indicate position)"]
[null,"TOTAL",0]
[]
[null,"Is performance against productivity benchmark negatively impacted by additional staff needs?",null,"if yes, explain"]
[]
[null,"Additional staffing requirements for new recruit - other area(s)","FTE","FTEs supported by volume"]
[null,null,"none"]
[]
[]
[]
[]
[]
[]
[]
[]
[]
[]
[null,"Specialized/additional capital equipment required"]
[null,"Equipment Name","Location","# of Units","Cost/Unit"]

{"sheet":"UAMS SUMMARY","index":6,"n_rows":75,"n_cols":36,"rows_kept":75,"cut":false,"hidden":false,"merged":[[11,0,13,31],[47,20,47,23],[33,28,33,29],[34,28,34,29],[35,28,35,29],[66,7,66,9],[66,10,66,12],[66,13,66,15],[66,16,66,18],[63,7,63,9],[63,10,63,12],[63,13,63,15],[63,16,63,18],[65,16,65,18],[64,7,64,9],[64,10,64,12],[64,13,64,15],[64,16,64,18],[36,6,36,7],[41,8,41,11],[41,12,41,15],[42,8,42,11],[42,12,42,15],[41,4,41,7],[15,5,15,8],[16,5,16,8],[17,5,17,8],[18,5,18,8],[19,5,19,8],[20,5,20,8],[32,4,32,5],[32,6,32,7],[32,8,32,9],[22,5,22,8],[23,5,23,8],[27,0,29,31],[15,19,15,30],[16,28,16,30],[32,12,32,13],[32,14,32,15],[16,16,16,18],[22,16,22,18],[17,16,17,18],[18,16,18,18],[19,16,19,18],[20,16,20,18],[32,10,32,11],[47,8,47,11],[47,12,47,15],[38,6,38,7],[33,8,33,9],[42,4,42,7],[33,10,33,11],[36,4,36,5],[37,4,37,5],[38,4,38,5],[33,14,33,15],[34,14,34,15],[35,14,35,15],[36,14,36,15],[45,8,45,11],[45,12,45,15],[34,10,34,11],[35,10,35,11],[36,10,36,11],[36,8,36,9],[35,8,35,9],[35,4,35,5],[33,4,33,5],[34,4,34,5],[33,12,33,13],[34,12,34,13],[35,12,35,13],[36,12,36,13],[37,12,37,13],[33,6,33,7],[34,6,34,7],[35,6,35,7],[34,8,34,9],[38,12,38,13],[43,12,43,15],[55,4,55,7],[55,8,55,11],[55,12,55,15],[37,14,37,15],[38,14,38,15],[37,6,37,7],[53,4,53,7],[53,8,53,11],[53,12,53,15],[37,8,37,9],[38,8,38,9],[38,10,38,11],[37,10,37,11],[43,8,43,11],[45,4,45,7],[46,4,46,7],[44,8,44,11],[44,12,44,15],[46,8,46,11],[46,12,46,15],[47,4,47,7],[43,4,43,7],[44,4,44,7],[56,4,56,7],[57,4,57,7],[56,8,56,11],[59,16,59,18],[60,16,60,18],[61,7,61,9],[61,10,61,12],[61,13,61,15],[61,16,61,18],[59,10,59,12],[59,13,59,15],[60,13,60,15],[60,7,60,9],[1,17,1,23],[2,17,2,18],[53,16,53,19],[53,20,53,23],[54,20,54,23],[32,20,32,27],[16,22,16,24],[16,25,16,27],[17,22,17,24],[17,25,17,27],[19,22,19,24],[19,25,19,27],[16,19,16,21],[17,19,17,21],[43,16,43,19],[43,20,43,23],[44,16,44,19],[45,20,45,23],[44,20,44,23],[34,20,34,27],[35,20,35,27],[22,22,22,24],[21,19,21,30],[22,28,22,30],[36,28,36,29],[37,28,37,29],[36,20,36,27],[19,19,19,21],[22,19,22,21],[33,20,33,27],[46,16,46,19],[46,20,46,23],[45,16,45,19],[25,19,25,21],[37,20,37,27],[32,28,32,29],[71,24,71,27],[71,20,71,23],[55,25,55,31],[57,20,57,23],[56,20,56,23],[17,28,17,30],[18,19,18,21],[18,22,18,24],[18,25,18,27],[18,28,18,30],[20,25,20,27],[22,25,22,27],[54,16,54,19],[19,28,19,30],[20,19,20,21],[20,22,20,24],[41,16,41,19],[41,20,41,23],[42,16,42,19],[42,20,42,23],[20,28,20,30],[67,16,67,18],[47,16,47,19],[60,26,60,28],[58,25,58,31],[70,24,70,27],[67,13,67,15],[65,13,65,15],[60,10,60,12],[59,19,59,21],[58,7,58,21],[60,19,60,21],[61,19,61,21],[62,19,62,21],[63,19,63,21],[70,4,70,7],[70,8,70,11],[70,12,70,15],[62,7,62,9],[62,10,62,12],[62,13,62,15],[62,16,62,18],[67,7,67,9],[67,10,67,12],[8,5,8,9],[6,26,6,31],[65,7,65,9],[65,10,65,12],[55,16,55,19],[55,20,55,23],[70,16,70,19],[70,20,70,23],[71,16,71,19],[71,12,71,15],[71,8,71,11],[71,4,71,7],[57,8,57,11],[54,4,54,7],[54,12,54,15],[56,12,56,15],[57,12,57,15],[54,8,54,11],[56,16,56,19],[57,16,57,19],[59,7,59,9],[54,25,54,31],[56,25,56,31],[57,25,57,31]]}
[null,null,null,null,null,null,null,null,"COLLEGE OF MEDICINE",null,null,null,null,null,null,null,"JFR #:",{"$f":"COMP!D9","v":0},null,null,null,null,null,null,null,null,null,null,null,null,null,{"$f":"COMP!N1","v":"JFR FBP V24.5"}]
[null,null,null,null,null,null,null,null,"FACULTY RECRUITMENT BUSINESS PLAN",null,null,null,null,null,null,null,"Printed on:",{"$f":"TODAY()","v":"2024-01-05"},null,null,null,null,null,null,null,null,null,null,null,null,null,{"$f":"\"Transaction Type: \"&COMP!D11","v":"Transaction Type: [select]"}]
[null,null,null,null,null,null,null,null,null,null,null,null,null,null,null,null,"Error Count:",{"$f":"ERROR!E7","v":{"$error":"#DIV/0!"}}]
["GENERAL INFORMATION"]
["Department:",null,null,null,null,{"$f":"COMP!J9","v":"[select]"},null,null,null,null,null,"Working Posn Title:",null,{"$f":"COMP!D10","v":"[select] [select]; "},null,null,null,null,null,null,null,null,"New/Replacement:",null,{"$f":"COMP!D18","v":"[select]"}]
["Section/Division:",null,null,null,null,{"$f":"COMP!J10","v":0},null,null,null,null,null,"Position Type:",null,{"$f":"COMP!J16","v":"[select]"},null,null,null,null,null,null,null,null,"Replacing:",null,{"$f":"COMP!D19","v":0}]
["Service Line:",null,null,null,null,{"$f":"COMP!J12","v":"[select]"},null,null,null,null,null,"Tenure Track:",null,{"$f":"COMP!J18","v":"[select]"},null,null,null,null,null,null,null,null,"Departure Date:",null,{"$f":"COMP!D20","v":0}]
["Candidate Name:",null,null,null,null,{"$f":"IF(COMP!D16=0,\"TBD\",COMP!D16)","v":"TBD"},null,null,null,null,null,"Rank:",null,{"$f":"COMP!D17","v":"[select]"}]
["Start Date:",null,null,null,null,{"$f":"COMP!D15","v":"00:00:00"},null,null,null,null,null,"Degree:",null,{"$f":"COMP!D84","v":"[select]"},{"$f":"COMP!J16","v":"[select]"},null,null,null,null,null,null,null,"Budgeted:",null,{"$f":"COMP!D62&\"; \"&COMP!D63","v":"[select]; [select]"}]
[null,null,null,null,null,null,null,null,null,null,null,"Immigration Status:",null,{"$f":"COMP!J17","v":"[Select]"}]
["JUSTIFICATION"]
[{"$f":"COMP!B24","v":0}]
[]
[null,null,null,null,null,null,null,null,null,null,null,null,null,null,null,null,null,null,null,null,null,null,null,null,null,null,null,null,null,null,null,null,null,null,null," "]
["COMPENSATION"]
["Base Salary:",null,null,null,null,{"$f":"COMP!D34","v":0},null,null,null,null,null,null,null,null,null,null,null,null,null,"Benchmark Source Data"]
["Base Attachment:",null,null,null,null,{"$f":"COMP!D35","v":0},null,null,null,{"$f":"IF(COMP!J20=0,\"\",COMP!J20)","v":""},null,null,null,null,null,null,"Data Year",null,null,"25%ILE",null,null,"MEDIAN",null,null,"75%ILE",null,null,"90%ILE"]
["UAMS Salary:",null,null,null,null,{"$f":"SUM(F16:I17)","v":0},null,null,null,null,null,null,null,null,null,"AAMC Public Schools:",{"$f":"COMP!J85","v":2022},null,null,{"$f":"COMP!K85","v":"no data"},null,null,{"$f":"COMP!L85","v":"no data"},null,null,{"$f":"COMP!M85","v":"no data"},null,null,{"$f":"COMP!N85","v":"no data"}]
[null,null,null,null,null,null,null,null,null,null,null,null,null,null,null,"AAMC All Schools:",{"$f":"COMP!J86","v":2022},null,null,{"$f":"COMP!K86","v":"no data"},null,null,{"$f":"COMP!L86","v":"no data"},null,null,{"$f":"COMP!M86","v":"no data"},null,null,{"$f":"COMP!N86","v":"no data"}]
["VA Salary:",null,null,null,null,{"$f":"COMP!D37","v":0},null,null,null,null,null,null,null,null,null,"MGMA Academic:",{"$f":"COMP!J87","v":2022},null,null,{"$f":"COMP!K87","v":"no data"},null,null,{"$f":"COMP!L87","v":"no data"},null,null,{"$f":"COMP!M87","v":"no data"},null,null,{"$f":"COMP!N87","v":"no data"}]
["Total Salary:",null,null,null,null,{"$f":"F18+F20","v":0},null,null,null,null,null,null,null,null,null,"MGMA Private Practice:",{"$f":"COMP!J88","v":2022},null,null,{"$f":"COMP!K88","v":"no data"},null,null,{"$f":"COMP!L88","v":"no data"},null,null,{"$f":"COMP!M88","v":"no data"},null,null,{"$f":"COMP!N88","v":"no data"}]
[null,null,null,null,null,null,null,null,null,null,null,null,null,null,null,null,null,null,null,"Specialty Assoiation Data"]
["Incentive:",null,null,null,null,{"$f":"COMP!J40","v":0},null,null,null,null,null,null,null,null,null,"Specialty Assoc:",{"$f":"COMP!J90","v":0},null,null,{"$f":"COMP!K90","v":0},null,null,{"$f":"COMP!L90","v":0},null,null,{"$f":"COMP!M90","v":0},null,null,{"$f":"COMP!N90","v":0}]
["Total Comp:",null,null,null,null,{"$f":"F21+F23","v":0},null,null,null,null,null,null,null,null,null,"Specialty Association:",null,null,null,{"$f":"IF(COMP!K91=0,\"\",COMP!K91)","v":""}]
[]
[null,null,null,null,null,null,null,null,null,null,null,null,null,null,null,"1.0 Normalized FTE Compensation:",null,null,null,{"$f":"F24/O39","v":{"$error":"#DIV/0!"}}]
["Salary Justification:"]
[{"$f":"COMP!B69","v":0}]
[]
[]
[]
["YEAR 1 COMPENSATION PLAN EFFORT SUMMARY"]
[null,null,null,null,"COM",null,"ICE",null,"ACH",null,"INST",null,"Other",null,"Total",null,null,null,null,null,"Administrative Assignments",null,null,null,null,null,null,null,"FTE"]
["Administration",null,null,null,{"$f":"ASSIGN!C53","v":0},null,{"$f":"ASSIGN!D53","v":0},null,{"$f":"ASSIGN!E53","v":0},null,{"$f":"ASSIGN!F53","v":0},null,{"$f":"ASSIGN!G53","v":0},null,{"$f":"SUM(E34:N34)","v":0},null,null,null,null,null,{"$f":"IF(ASSIGN!B11=0,\"\",ASSIGN!C11)","v":""},null,null,null,null,null,null,null,{"$f":"IF(U34=\"\",\"\",ASSIGN!M11)","v":""}]
["Research",null,null,null,{"$f":"ASSIGN!C54","v":0},null,{"$f":"ASSIGN!D54","v":0},null,{"$f":"ASSIGN!E54","v":0},null,{"$f":"ASSIGN!F54","v":0},null,{"$f":"ASSIGN!G54","v":0},null,{"$f":"SUM(E35:N35)","v":0},null,null,null,null,null,{"$f":"IF(ASSIGN!B12=0,\"\",ASSIGN!C12)","v":""},null,null,null,null,null,null,null,{"$f":"IF(U35=\"\",\"\",ASSIGN!M12)","v":""}]
["Education",null,null,null,{"$f":"ASSIGN!C55","v":0},null,{"$f":"ASSIGN!D55","v":0},null,{"$f":"ASSIGN!E55","v":0},null,{"$f":"ASSIGN!F55","v":0},null,{"$f":"ASSIGN!G55","v":0},null,0,null,null,null,null,null,{"$f":"IF(ASSIGN!B13=0,\"\",ASSIGN!C13)","v":""},null,null,null,null,null,null,null,{"$f":"IF(U36=\"\",\"\",ASSIGN!M13)","v":""}]
["Clinical",null,null,null,{"$f":"ASSIGN!C56","v":0},null,{"$f":"ASSIGN!D56","v":0},null,{"$f":"ASSIGN!E56","v":0},null,{"$f":"ASSIGN!F56","v":0},null,{"$f":"ASSIGN!G56","v":0},null,0,null,null,null,null,null,{"$f":"IF(ASSIGN!B14=0,\"\",ASSIGN!C14)","v":""},null,null,null,null,null,null,null,{"$f":"IF(U37=\"\",\"\",ASSIGN!M14)","v":""}]
["VA",null,null,null,{"$f":"ASSIGN!C57","v":0},null,{"$f":"ASSIGN!D57","v":0},null,{"$f":"ASSIGN!E57","v":0},null,{"$f":"ASSIGN!F57","v":0},null,{"$f":"ASSIGN!G57","v":0},null,0,null,null,null,null,null,{"$f":"IF(ASSIGN!B15=0,\"\",ASSIGN!C15)","v":""},null,null,null,null,null,null,null,{"$f":"IF(U38=\"\",\"\",ASSIGN!M15)","v":""}]
["Total",null,null,null,{"$f":"SUM(E34:F38)","v":0},null,{"$f":"SUM(G34:H38)","v":0},null,{"$f":"SUM(I34:J38)","v":0},null,{"$f":"SUM(K34:L38)","v":0},null,{"$f":"SUM(M34:N38)","v":0},null,0]
[]
["FINANCIAL IMPACT SUMMARY"]
[null,null,null,null,"Year 1",null,null,null,"Year 2",null,null,null,"Year 3",null,null,null,"Year 4",null,null,null,"Year 5"]
["COM",null,null,null,{"$f":"PROFORMA!D52","v":0},null,null,null,{"$f":"PROFORMA!E52","v":0},null,null,null,{"$f":"PROFORMA!F52","v":0},null,null,null,{"$f":"PROFORMA!G52","v":0},null,null,null,{"$f":"PROFORMA!H52","v":0}]
["ICE",null,null,null,{"$f":"PROFORMA!D87","v":0},null,null,null,{"$f":"PROFORMA!E87","v":0},null,null,null,{"$f":"PROFORMA!F87","v":0},null,null,null,{"$f":"PROFORMA!G87","v":0},null,null,null,{"$f":"PROFORMA!H87","v":0}]
["ACH",null,null,null,{"$f":"PROFORMA!D122","v":0},null,null,null,{"$f":"PROFORMA!E122","v":0},null,null,null,{"$f":"PROFORMA!F122","v":0},null,null,null,{"$f":"PROFORMA!G122","v":0},null,null,null,{"$f":"PROFORMA!H122","v":0}]
["INST",null,null,null,{"$f":"PROFORMA!D157","v":0},null,null,null,{"$f":"PROFORMA!E157","v":0},null,null,null,{"$f":"PROFORMA!F157","v":0},null,null,null,{"$f":"PROFORMA!G157","v":0},null,null,null,{"$f":"PROFORMA!H157","v":0}]
["Other",null,null,null,{"$f":"PROFORMA!D192","v":0},null,null,null,{"$f":"PROFORMA!E192","v":0},null,null,null,{"$f":"PROFORMA!F192","v":0},null,null,null,{"$f":"PROFORMA!JG92","v":0},null,null,null,{"$f":"PROFORMA!HK92","v":0}]
["Total",null,null,null,{"$f":"SUM(E43:H47)","v":0},null,null,null,{"$f":"SUM(I43:L47)","v":0},null,null,null,{"$f":"SUM(M43:P47)","v":0},null,null,null,{"$f":"SUM(Q43:T47)","v":0},null,null,null,{"$f":"SUM(U43:X47)","v":0}]
[]
[]
["Net Margin/RVU Summary",null,null,null,null,null,null,{"$f":"PROFORMA!D14","v":{"$error":"#DIV/0!"}},null,null,{"$f":"PROFORMA!E14","v":{"$error":"#DIV/0!"}},null,null,{"$f":"PROFORMA!F14","v":{"$error":"#DIV/0!"}},null,null,null,null,{"$f":"PROFORMA!G14","v":{"$error":"#DIV/0!"}},null,null,null,{"$f":"PROFORMA!H14","v":{"$error":"#DIV/0!"}}]
[]
["wRVU PROJECTED PRODUCTIVITY"]
["Incremental",null,null,null,"Year 1",null,null,null,"Year 2",null,null,null,"Year 3",null,null,null,"Year 4",null,null,null,"Year 5"]
["ICE",null,null,null,{"$f":"SUMIF('CLIN REV'!$A$13:$A$46,$A55,'CLIN REV'!D$13:D$46)","v":0},{"$f":"SUMIF('CLIN REV'!$A$13:$A$46,$A55,'CLIN REV'!F$13:F$46)","v":0},{"$f":"SUMIF('CLIN REV'!$A$13:$A$46,$A55,'CLIN REV'!G$13:G$46)","v":0},{"$f":"SUMIF('CLIN REV'!$A$13:$A$46,$A55,'CLIN REV'!H$13:H$46)","v":0},{"$f":"SUMIF('CLIN REV'!$A$13:$A$46,$A55,'CLIN REV'!E$13:E$46)","v":0},{"$f":"SUMIF('CLIN REV'!$A$13:$A$46,$A55,'CLIN REV'!J$13:J$46)","v":0},{"$f":"SUMIF('CLIN REV'!$A$13:$A$46,$A55,'CLIN REV'!K$13:K$46)","v":0},{"$f":"SUMIF('CLIN REV'!$A$13:$A$46,$A55,'CLIN REV'!L$13:L$46)","v":0},{"$f":"SUMIF('CLIN REV'!$A$13:$A$46,$A55,'CLIN REV'!F$13:F$46)","v":0},{"$f":"SUMIF('CLIN REV'!$A$13:$A$46,$A55,'CLIN REV'!N$13:N$46)","v":0},{"$f":"SUMIF('CLIN REV'!$A$13:$A$46,$A55,'CLIN REV'!O$13:O$46)","v":0},{"$f":"SUMIF('CLIN REV'!$A$13:$A$46,$A55,'CLIN REV'!P$13:P$46)","v":0},{"$f":"SUMIF('CLIN REV'!$A$13:$A$46,$A55,'CLIN REV'!G$13:G$46)","v":0},{"$f":"SUMIF('CLIN REV'!$A$13:$A$46,$A55,'CLIN REV'!R$13:R$46)","v":0},{"$f":"SUMIF('CLIN REV'!$A$13:$A$46,$A55,'CLIN REV'!S$13:S$46)","v":0},{"$f":"SUMIF('CLIN REV'!$A$13:$A$46,$A55,'CLIN REV'!T$13:T$46)","v":0},{"$f":"SUMIF('CLIN REV'!$A$13:$A$46,$A55,'CLIN REV'!H$13:H$46)","v":0},{"$f":"SUMIF('CLIN REV'!$A$13:$A$46,$A55,'CLIN REV'!V$13:V$46)","v":0},{"$f":"SUMIF('CLIN REV'!$A$13:$A$46,$A55,'CLIN REV'!W$13:W$46)","v":0},{"$f":"SUMIF('CLIN REV'!$A$13:$A$46,$A55,'CLIN REV'!X$13:X$46)","v":0}]
["ACH",null,null,null,{"$f":"SUMIF('CLIN REV'!$A$131:$A$164,$A56,'CLIN REV'!D$131:D$164)","v":0},{"$f":"SUMIF('CLIN REV'!$A$13:$A$46,$A56,'CLIN REV'!F$13:F$46)","v":0},{"$f":"SUMIF('CLIN REV'!$A$13:$A$46,$A56,'CLIN REV'!G$13:G$46)","v":0},{"$f":"SUMIF('CLIN REV'!$A$13:$A$46,$A56,'CLIN REV'!H$13:H$46)","v":0},{"$f":"SUMIF('CLIN REV'!$A$131:$A$164,$A56,'CLIN REV'!E$131:E$164)","v":0},{"$f":"SUMIF('CLIN REV'!$A$13:$A$46,$A56,'CLIN REV'!J$13:J$46)","v":0},{"$f":"SUMIF('CLIN REV'!$A$13:$A$46,$A56,'CLIN REV'!K$13:K$46)","v":0},{"$f":"SUMIF('CLIN REV'!$A$13:$A$46,$A56,'CLIN REV'!L$13:L$46)","v":0},{"$f":"SUMIF('CLIN REV'!$A$131:$A$164,$A56,'CLIN REV'!F$131:F$164)","v":0},{"$f":"SUMIF('CLIN REV'!$A$13:$A$46,$A56,'CLIN REV'!N$13:N$46)","v":0},{"$f":"SUMIF('CLIN REV'!$A$13:$A$46,$A56,'CLIN REV'!O$13:O$46)","v":0},{"$f":"SUMIF('CLIN REV'!$A$13:$A$46,$A56,'CLIN REV'!P$13:P$46)","v":0},{"$f":"SUMIF('CLIN REV'!$A$131:$A$164,$A56,'CLIN REV'!G$131:G$164)","v":0},{"$f":"SUMIF('CLIN REV'!$A$13:$A$46,$A56,'CLIN REV'!R$13:R$46)","v":0},{"$f":"SUMIF('CLIN REV'!$A$13:$A$46,$A56,'CLIN REV'!S$13:S$46)","v":0},{"$f":"SUMIF('CLIN REV'!$A$13:$A$46,$A56,'CLIN REV'!T$13:T$46)","v":0},{"$f":"SUMIF('CLIN REV'!$A$131:$A$164,$A56,'CLIN REV'!H$131:H$164)","v":0},{"$f":"SUMIF('CLIN REV'!$A$13:$A$46,$A56,'CLIN REV'!V$13:V$46)","v":0},{"$f":"SUMIF('CLIN REV'!$A$13:$A$46,$A56,'CLIN REV'!W$13:W$46)","v":0},{"$f":"SUMIF('CLIN REV'!$A$13:$A$46,$A56,'CLIN REV'!X$13:X$46)","v":0}]
["COM",null,null,null,{"$f":"SUMIF('CLIN REV'!$A$175:$A$208,$A57,'CLIN REV'!D$175:D$208)","v":0},{"$f":"SUMIF('CLIN REV'!$A$13:$A$46,$A57,'CLIN REV'!F$13:F$46)","v":0},{"$f":"SUMIF('CLIN REV'!$A$13:$A$46,$A57,'CLIN REV'!G$13:G$46)","v":0},{"$f":"SUMIF('CLIN REV'!$A$13:$A$46,$A57,'CLIN REV'!H$13:H$46)","v":0},{"$f":"SUMIF('CLIN REV'!$A$175:$A$208,$A57,'CLIN REV'!E$175:E$208)","v":0},{"$f":"SUMIF('CLIN REV'!$A$13:$A$46,$A57,'CLIN REV'!J$13:J$46)","v":0},{"$f":"SUMIF('CLIN REV'!$A$13:$A$46,$A57,'CLIN REV'!K$13:K$46)","v":0},{"$f":"SUMIF('CLIN REV'!$A$13:$A$46,$A57,'CLIN REV'!L$13:L$46)","v":0},{"$f":"SUMIF('CLIN REV'!$A$175:$A$208,$A57,'CLIN REV'!F$175:F$208)","v":0},{"$f":"SUMIF('CLIN REV'!$A$13:$A$46,$A57,'CLIN REV'!N$13:N$46)","v":0},{"$f":"SUMIF('CLIN REV'!$A$13:$A$46,$A57,'CLIN REV'!O$13:O$46)","v":0},{"$f":"SUMIF('CLIN REV'!$A$13:$A$46,$A57,'CLIN REV'!P$13:P$46)","v":0},{"$f":"SUMIF('CLIN REV'!$A$175:$A$208,$A57,'CLIN REV'!G$175:G$208)","v":0},{"$f":"SUMIF('CLIN REV'!$A$13:$A$46,$A57,'CLIN REV'!R$13:R$46)","v":0},{"$f":"SUMIF('CLIN REV'!$A$13:$A$46,$A57,'CLIN REV'!S$13:S$46)","v":0},{"$f":"SUMIF('CLIN REV'!$A$13:$A$46,$A57,'CLIN REV'!T$13:T$46)","v":0},{"$f":"SUMIF('CLIN REV'!$A$175:$A$208,$A57,'CLIN REV'!H$175:H$208)","v":0},{"$f":"SUMIF('CLIN REV'!$A$13:$A$46,$A57,'CLIN REV'!V$13:V$46)","v":0},{"$f":"SUMIF('CLIN REV'!$A$13:$A$46,$A57,'CLIN REV'!W$13:W$46)","v":0},{"$f":"SUMIF('CLIN REV'!$A$13:$A$46,$A57,'CLIN REV'!X$13:X$46)","v":0}]
["Total",null,null,null,{"$f":"SUM(E55:E57)","v":0},null,null,null,{"$f":"SUM(I55:I57)","v":0},null,null,null,{"$f":"SUM(M55:M57)","v":0},null,null,null,{"$f":"SUM(Q55:Q57)","v":0},null,null,null,{"$f":"SUM(U55:U57)","v":0}]
[null,null,null,null,null,null,null,"2022 Benchmark Source Data"]
[null,null,null,null,null,null,null,"25%ILE",null,null,"MEDIAN",null,null,"75%ILE",null,null,"90%ILE",null,null,"Data Year"]
[null,null,null,null,null,null,"FPSC Academic:",{"$f":"COMP!K98","v":"no data"},null,null,{"$f":"COMP!L98","v":"no data"},null,null,{"$f":"COMP!M98","v":"no data"},null,null,{"$f":"COMP!N98","v":"no data"},null,null,{"$f":"COMP!J98","v":2022}]
[null,null,null,null,null,null,"MGMA Academic:",{"$f":"COMP!K99","v":"no data"},null,null,{"$f":"COMP!L99","v":"no data"},null,null,{"$f":"COMP!M99","v":"no data"},null,null,{"$f":"COMP!N99","v":"no data"},null,null,{"$f":"COMP!J99","v":2022}]
[null,null,null,null,null,null,"MGMA Private Practice:",{"$f":"COMP!K100","v":"no data"},null,null,{"$f":"COMP!L100","v":"no data"},null,null,{"$f":"COMP!M100","v":"no data"},null,null,{"$f":"COMP!N100","v":"no data"},null,null,{"$f":"COMP!J100","v":2022}]
[null,null,null,null,null,null,"Specialty Association:",{"$f":"COMP!K102","v":0},null,null,{"$f":"COMP!L102","v":0},null,null,{"$f":"COMP!M102","v":0},null,null,{"$f":"COMP!N102","v":0},null,null,{"$f":"COMP!J102","v":0}]
[null,null,null,null,null,null,"FPSC Academic Normalized:",{"$f":"IFERROR(H61*$O$37,\"no data\")","v":"no data"},null,null,{"$f":"IFERROR(K61*$O$37,\"no data\")","v":"no data"},null,null,{"$f":"IFERROR(N61*$O$37,\"no data\")","v":"no data"},null,null,{"$f":"IFERROR(Q61*$O$37,\"no data\")","v":"no data"}]
[null,null,null,null,null,null,"MGMA Academic Normalized:",{"$f":"IFERROR(H62*$O$37,\"no data\")","v":"no data"},null,null,{"$f":"IFERROR(K62*$O$37,\"no data\")","v":"no data"},null,null,{"$f":"IFERROR(N62*$O$37,\"no data\")","v":"no data"},null,null,{"$f":"IFERROR(Q62*$O$37,\"no data\")","v":"no data"}]
[null,null,null,null,null,null,"MGMA Private Normalized:","no data",null,null,{"$f":"IFERROR(K63*$O$37,\"no data\")","v":"no data"},null,null,{"$f":"IFERROR(N63*$O$37,\"no data\")","v":"no data"},null,null,{"$f":"IFERROR(Q63*$O$37,\"no data\")","v":"no data"}]
[null,null,null,null,null,null,"Specialty Association Normalized:",{"$f":"H64*$O$37","v":0},null,null,{"$f":"K64*$O$37","v":0},null,null,{"$f":"N64*$O$37","v":0},null,null,{"$f":"Q64*$O$37","v":0}]
[]
["DEAN'S COMMITMENT REQUESTS"]
[null,null,null,null,"Year 1",null,null,null,"Year 2",null,null,null,"Year 3",null,null,null,"Year 4",null,null,null,"Year 5",null,null,null,"Grand Total"]
["COM",null,null,null,{"$f":"PROFORMA!D27","v":0},null,null,null,{"$f":"PROFORMA!E27","v":0},null,null,null,{"$f":"PROFORMA!F27","v":0},null,null,null,{"$f":"PROFORMA!G27","v":0},null,null,null,{"$f":"PROFORMA!H27","v":0},null,null,null,{"$f":"SUM(E72:X72)","v":0}]
["Part of an existing Dean's Commitment?",null,null,null,null,null,null,{"$f":"COMP!D50","v":"[select]"},null,{"$f":"IF(H73=\"Yes\",COMP!D51,\"\")","v":""}]
[]
["Requesting New Dean's Commitment?",null,null,null,null,null,null,{"$f":"COMP!D53","v":"[select]"}]

{"sheet":"COMP","index":7,"n_rows":105,"n_cols":34,"rows_kept":105,"cut":false,"hidden":false,"merged":[[88,3,88,5],[15,3,15,5],[68,1,77,3],[102,10,102,13],[19,3,19,5],[18,3,18,5],[17,3,17,5],[84,3,84,5],[85,3,85,5],[86,3,86,5],[36,7,36,8],[37,7,37,8],[38,7,38,8],[82,3,82,5],[34,7,34,8],[23,1,25,13],[87,3,87,5],[11,3,11,5],[10,3,10,5],[21,9,21,11],[12,3,12,5],[16,3,16,5],[16,9,16,11],[12,9,12,11],[14,9,14,11],[15,9,15,11],[17,9,17,11],[18,9,18,11],[19,9,19,11],[83,3,83,5],[35,7,35,8],[14,3,14,5],[21,3,21,5],[20,9,20,11],[8,3,8,5],[8,9,8,11],[9,9,9,11],[10,9,10,11],[11,9,11,11],[20,3,20,5]]}
["HIDE",{"$f":"D9&\"; \"&J9&\"; \"&D10","v":"0; [select]; [select] [select]; "},null,null,null,null,null,null,null,null,null,null,null,"JFR FBP V24.5","HIDE","HIDE","HIDE","HIDE","HIDE","HIDE","HIDE","HIDE","HIDE"]
[]
[]
[]
[]
[]
[null,"GENERAL INFORMATION",null,null,null,null,null,null,null,null,null,null,null,{"$f":"SUM(T9:W113)","v":33}]
[]
[null,"JFR #:",null,0,null,null,{"$f":"IF(OR(D9=\"[enter]\",D9=\"[select]\",D9=0)=TRUE,\"error\",\"\")","v":"error"},"Department:",null,"[select]",null,null,{"$f":"IF(OR(J9=\"[enter]\",J9=\"[select]\",J9=0)=TRUE,\"error\",\"\")","v":"error"},null,null,null,null,null,null,{"$f":"IF(G9=\"error\",1,0)","v":1},{"$f":"IF(M9=\"error\",1,0)","v":1}]
[null,"Working Posn Title:",null,{"$f":"J19&\" \"&D84&\"; \"&J11","v":"[select] [select]; "},null,null,null,"Section/Division:",null,null,null,null,{"$f":"IF(OR(J10=\"[enter]\",J10=\"[select]\",J10=0)=TRUE,\"error\",\"\")","v":"error"},null,null,null,null,null,null,null,{"$f":"IF(M10=\"error\",1,0)","v":1}]
[null,"Transaction Type:",null,"[select]",null,null,{"$f":"IF(OR(D11=\"[enter]\",D11=\"[select]\",D11=0)=TRUE,\"error\",\"\")","v":"error"},"Subspecialty:",null,null,null,null,{"$f":"IF(OR(J11=\"[enter]\",J11=\"[select]\",J11=0)=TRUE,\"error\",\"\")","v":"error"},null,null,null,null,null,null,{"$f":"IF(G11=\"error\",1,0)","v":1},{"$f":"IF(M11=\"error\",1,0)","v":1}]
[null,"Prepared by:",null,null,null,null,{"$f":"IF(OR(D12=\"[enter]\",D12=\"[select]\",D12=0)=TRUE,\"error\",\"\")","v":"error"},"Service Line:",null,"[select]",null,null,{"$f":"IF(OR(J12=\"[enter]\",J12=\"[select]\",J12=0)=TRUE,\"error\",\"\")","v":"error"},null,null,null,null,null,null,{"$f":"IF(G12=\"error\",1,0)","v":1},{"$f":"IF(M12=\"error\",1,0)","v":1}]
[null,"JFR Submit Date:",null,null,null,null,{"$f":"IF(OR(D13=\"[enter]\",D13=\"[select]\",D13=0)=TRUE,\"error\",\"\")","v":"error"},"Extra/Future Data",null,"N/A"]
[]
[null,"Start Date:",null,null,null,null,{"$f":"IF(OR(D15=\"[enter]\",D15=\"[select]\",D15=0)=TRUE,\"error\",\"\")","v":"error"},"Faculty/Extender:",null,"[select]",null,null,{"$f":"IF(OR(J15=\"[enter]\",J15=\"[select]\",J15=0)=TRUE,\"error\",\"\")","v":"error"},null,null,null,null,null,null,{"$f":"IF(G15=\"error\",1,0)","v":1},{"$f":"IF(M15=\"error\",1,0)","v":1}]
[null,"Candidate Name:",null,null,null,null,{"$f":"IF(OR(D16=\"[enter]\",D16=\"[select]\",D16=0)=TRUE,\"error\",\"\")","v":"error"},"Position Type:",null,"[select]",null,null,{"$f":"IF(OR(J16=\"[enter]\",J16=\"[select]\",J16=0)=TRUE,\"error\",\"\")","v":"error"},null,null,null,null,null,null,{"$f":"IF(G16=\"error\",1,0)","v":1},{"$f":"IF(M16=\"error\",1,0)","v":1}]
[null,"Candidate Rank:",null,"[select]",null,null,{"$f":"IF(OR(D17=\"[enter]\",D17=\"[select]\",D17=0)=TRUE,\"error\",\"\")","v":"error"},"Immigration Status:",null,"[Select]",null,null,{"$f":"IF(OR(J17=\"[enter]\",J17=\"[select]\",J17=0)=TRUE,\"error\",\"\")","v":"error"}]
[null,"New/Replacement:",null,"[select]",null,null,{"$f":"IF(OR(D18=\"[enter]\",D18=\"[select]\",D18=0)=TRUE,\"error\",\"\")","v":"error"},"Tenure Track:",null,"[select]",null,null,{"$f":"IF(OR(J18=\"[enter]\",J18=\"[select]\",J18=0)=TRUE,\"error\",\"\")","v":"error"},null,null,null,null,null,null,{"$f":"IF(G18=\"error\",1,0)","v":1},{"$f":"IF(M18=\"error\",1,0)","v":1}]
[null,"Replacement Name:",null,null,null,null,{"$f":"IF(OR(D18=\"[enter]\",D18=\"[select]\",D18=0)=TRUE,\"error\",\"\")","v":"error"},"Current Position Rank:",null,"[select]",null,null,{"$f":"IF(OR(J19=\"[enter]\",J19=\"[select]\",J19=0)=TRUE,\"error\",\"\")","v":"error"},null,null,null,null,null,null,{"$f":"IF(G19=\"error\",1,0)","v":1},{"$f":"IF(M19=\"error\",1,0)","v":1}]
[null,"Date of Separation:",null,null,null,null,{"$f":"IF(OR(D20=\"[enter]\",D20=\"[select]\",D20=0)=TRUE,\"error\",\"\")","v":"error"},"Base Attachment Titles:",null,null,null,null,{"$f":"IF(D35>0,IF(J20>0,\"\",\"error\"),\"\")","v":""},null,null,null,null,null,null,{"$f":"IF(G20=\"error\",1,0)","v":1},{"$f":"IF(M20=\"error\",1,0)","v":0}]
[null,"Primary Practice Location",null,"[Select]",null,null,{"$f":"IF(OR(D21=\"[enter]\",D21=\"[select]\",D21=0)=TRUE,\"error\",\"\")","v":"error"},"Position Employer",null,"[Select]",null,null,{"$f":"IF(OR(J21=\"[enter]\",J21=\"[select]\",J21=0)=TRUE,\"error\",\"\")","v":"error"}]
[null,"Secondary Practice Location",null,"[Select]",null,null,{"$f":"IF(OR(D22=\"[enter]\",D22=\"[select]\",D22=0)=TRUE,\"error\",\"\")","v":"error"},"Is this a Resubmittal?  ",null,"[Select]",null,null,{"$f":"IF(OR(J22=\"[enter]\",J22=\"[select]\",J22=0)=TRUE,\"error\",\"\")","v":"error"}]
[null,"Rationale/Justification:",null,null,null,null,null,"If Yes, detail changes from originally approved plan in Justification box below."]
[]
[]
[]
[null,"The above rational/justification inlcudes the department's review of equity, subspecialty productivity, facility capacity, and budget/funding? ",null,null,null,null,null,null,null,null,null,null,null,"[select]",null,null,null,null,null,{"$f":"IF(N27=\"Yes\",0,1)","v":1},null,null,null,{"$f":"IF(T27=1,\"error\",\"\")","v":"error"}]
[null,"If necessary, uploaded a separate Service Line Director's Memo outlining the rational for this new hire, including: the subspecialty productivity, deployment, clinical space, and budget capacity? ",null,null,null,null,null,null,null,null,null,null,null,"[select]",null,null,null,null,null,{"$f":"IF(N28=\"Yes\",0,1)","v":1},null,null,null,{"$f":"IF(T28=1,\"error\",\"\")","v":"error"}]
[null,"If a resubmit, were changes to original business plan added to the justification above?   If not, please add notes above regarding what is changing from original approved JFR.",null,null,null,null,null,null,null,null,null,null,null,"[select]"]
[null,"COMPENSATION",null,null,null,null,null,null,null,null,null,null,null,{"$f":"SUM(T34:W80)","v":10}]
[]
[null,null,null,null,null,null,null,null,null,null,null,null,null,null,null,null,null,null,null,{"$f":"IF(K33=\"error\",1,0)","v":1}]
[null,null,null,null,null,"Is the Incentive below an ACH Sign on Bonus?  (line one only) ",null,null,null,"[select]",{"$f":"IF(OR(J33=\"[enter]\",J33=\"[select]\",J33=0)=TRUE,\"error\",\"\")","v":"error"}]
[null,"Base Salary:",null,0,{"$f":"IF(D34=0,\"error\",\"\")","v":"error"},"INCENTIVES",null,null,null,null,null,null,null,null,null,null,null,null,null,{"$f":"IF(E34=\"error\",1,0)","v":1}]
[{"$f":"F36&G36","v":""},"Base Attachment:",null,0,null,"P&L","Rev Type","Description/Calculation",null,"Year 1","Year 2","Year 3","Year 4","Year 5",null,null,null,null,null,{"$f":"IF(E35=\"error\",1,0)","v":0}]
[{"$f":"F37&G37","v":""},"UAMS Salary:",null,{"$f":"SUM(D34:D35)","v":0},null,null,null,null,null,0,0,0,0,0,{"$f":"J36*$D$47","v":0},{"$f":"K36*$D$47","v":0},0,0,0,null,{"$f":"IF(SUM($J36:$N36)<>0,IF(F36=0,1,0),0)","v":0},0,0]
[{"$f":"F38&G38","v":""},"VA Salary:",null,0,{"$f":"IF(D41>0,IF(D37>0,\"\",\"error\"),\"\")","v":""},null,null,null,null,null,null,null,null,null,0,0,0,0,0,{"$f":"IF(E37=\"error\",1,0)","v":0},0,0,0]
[{"$f":"F39&G39","v":""},"Total Salary:",null,{"$f":"IF(D34=\"[enter]\",0,D36+D37)","v":0},null,null,null,null,null,null,null,null,null,null,0,0,0,0,0,null,0,0,0]
[null,"UAMS 1.0 Salary:",null,{"$f":"IF(D43=0,0,D36/D43)","v":0},null,null,null,null,null,null,null,null,null,null,0,0,0,0,0,null,0,0,0]
[null,null,null,null,null,{"$f":"IF(SUM($J36:$N36)>0,IF(F36=0,\"error\",\"\"),\"\")&IF(SUM($J37:$N37)>0,IF(F37=0,\"error\",\"\"),\"\")&IF(SUM($J38:$N38)>0,IF(F38=0,\"error\",\"\"),\"\")&IF(SUM($J39:$N39)>0,IF(F39=0,\"error\",\"\"),\"\")","v":""},{"$f":"IF(SUM($J36:$N36)>0,IF(G36=0,\"error\",\"\"),\"\")&IF(SUM($J37:$N37)>0,IF(G37=0,\"error\",\"\"),\"\")&IF(SUM($J38:$N38)>0,IF(G38=0,\"error\",\"\"),\"\")&IF(SUM($J39:$N39)>0,IF(G39=0,\"error\",\"\"),\"\")","v":""},{"$f":"IF(SUM($J36:$N36)>0,IF(H36=0,\"error\",\"\"),\"\")&IF(SUM($J37:$N37)>0,IF(H37=0,\"error\",\"\"),\"\")&IF(SUM($J38:$N38)>0,IF(H38=0,\"error\",\"\"),\"\")&IF(SUM($J39:$N39)>0,IF(H39=0,\"error\",\"\"),\"\")","v":""},null,{"$f":"SUM(J36:J39)","v":0},0,0,0,0,0,{"$f":"SUM(P36:P39)","v":0},0,0,0]
[null,"VA 8ths",null,0,{"$f":"IF(D37>0,IF(D41>0,\"\",\"error\"),\"\")","v":""},null,null,null,null,null,null,null,null,null,null,null,null,null,null,{"$f":"IF(E41=\"error\",1,0)","v":0}]
[null,null,null,null,null,"COMPENSATION SUMMARY",null,null,"Year 1","Year 2","Year 3","Year 4","Year 5"]
[null,"UAMS FTE:",null,{"$f":"+D45","v":0},null,"UAMS Compensation"]
[null,"VA FTE:",null,{"$f":"D45-D43","v":0},null,"UAMS FTE by Year:",null,null,{"$f":"D43","v":0},{"$f":"I44","v":0},{"$f":"J44","v":0},{"$f":"K44","v":0},{"$f":"L44","v":0}]
[null,"Total FTE:",null,0,{"$f":"IF(D45=0,\"error\",\"\")","v":"error"},"UAMS Salary:",null,null,{"$f":"D36","v":0},{"$f":"IF(I44=J44,I45*(1+$D$48),(I45*(1+$D$48))+((I45*(1+$D$48)/I44)*(J44-I44)))","v":0},{"$f":"IF(J44=K44,J45*(1+$D$48),(J45*(1+$D$48))+((J45*(1+$D$48)/J44)*(K44-J44)))","v":0},{"$f":"IF(K44=L44,K45*(1+$D$48),(K45*(1+$D$48))+((K45*(1+$D$48)/K44)*(L44-K44)))","v":0},{"$f":"IF(L44=M44,L45*(1+$D$48),(L45*(1+$D$48))+((L45*(1+$D$48)/L44)*(M44-L44)))","v":0},null,null,null,null,null,null,{"$f":"IF(E45=\"error\",1,0)","v":1}]
[null,null,null,0,null,"UAMS Incentives:",null,null,{"$f":"J40","v":0},{"$f":"K40","v":0},{"$f":"L40","v":0},{"$f":"M40","v":0},{"$f":"N40","v":0}]
[null,"Fringe Rate:",null,0.2,{"$f":"IF(D47<0.15,\"review\",\"\")","v":""},"UAMS Subtotal:",null,null,{"$f":"SUM(I45:I46)","v":0},{"$f":"SUM(J45:J46)","v":0},{"$f":"SUM(K45:K46)","v":0},{"$f":"SUM(L45:L46)","v":0},{"$f":"SUM(M45:M46)","v":0}]
[null,"COLA:",null,null,{"$f":"IF(D48>0,\"review\",\"\")","v":""}]
[null,null,null,null,null,"VA Compensation"]
[null,"Existing Dean's Cmmt?",null,"[select]",{"$f":"IF(OR(D50=\"[enter]\",D50=\"[select]\",D50=0)=TRUE,\"error\",\"\")","v":"error"},"VA FTE by Year:",null,null,{"$f":"D44","v":0},{"$f":"I50","v":0},{"$f":"J50","v":0},{"$f":"K50","v":0},{"$f":"L50","v":0},null,null,null,null,null,null,{"$f":"IF(E50=\"error\",1,0)","v":1}]
[null,"If yes, specify Name/Title:",null,null,{"$f":"IF(D50=\"Yes\",IF(D51=0,\"error\",\"\"),\"\")","v":""},"VA Salary:",null,null,{"$f":"D37","v":0},{"$f":"IF(I50=J50,I51*(1+$D$48),(I51*(1+$D$48))+((I51*(1+$D$48)/I50)*(J50-I50)))","v":0},{"$f":"IF(J50=K50,J51*(1+$D$48),(J51*(1+$D$48))+((J51*(1+$D$48)/J50)*(K50-J50)))","v":0},{"$f":"IF(K50=L50,K51*(1+$D$48),(K51*(1+$D$48))+((K51*(1+$D$48)/K50)*(L50-K50)))","v":0},{"$f":"IF(L50=M50,L51*(1+$D$48),(L51*(1+$D$48))+((L51*(1+$D$48)/L50)*(M50-L50)))","v":0}]
[null,null,null,null,null,null,null,null,null,null,null,null,null,null,null,null,null,null,null,{"$f":"IF(E53=\"error\",1,0)","v":1},{"$f":"IF(F57=\"error\",1,0)","v":1}]
[null,"New Dean's Cmmt Request?",null,"[select]",{"$f":"IF(OR(D53=\"[enter]\",D53=\"[select]\",D53=0)=TRUE,\"error\",\"\")","v":"error"}]
[null,"If yes, attached request form?",null,"N/A",{"$f":"IF(OR(D54=\"[enter]\",D54=\"[select]\",D54=0)=TRUE,\"error\",\"\")","v":""},null,null,null,null,null,null,null,null,null,null,null,null,null,null,{"$f":"IF(I58=\"error\",1,0)","v":1},{"$f":"IF(I58=\"error\",1,0)","v":1}]
[null,"(Include completed form in JFR system submittal)"]
[]
[null,"Does this position have an ACH/ACRI Recruitment Package?",null,null,"[select]",{"$f":"IF(OR(E57=\"[enter]\",E57=\"[select]\",E57=0)=TRUE,\"error\",\"\")","v":"error"}]
[null,"If Yes, was a signed and approved copy of the Package documentation included with this request?",null,null,null,null,null,"[select]",{"$f":"IF(OR(H58=\"[enter]\",H58=\"[select]\",H58=0)=TRUE,\"error\",\"\")","v":"error"}]
[]
[]
[]
[null,"Is this Position Budgeted:",null,"[select]",{"$f":"IF(OR(D62=\"[enter]\",D62=\"[select]\",D62=0)=TRUE,\"error\",\"\")","v":"error"},"Total Compensation",null,null,null,null,null,null,null,null,null,null,null,null,null,{"$f":"IF(E62=\"error\",1,0)","v":1}]
[null,"Year?",null,"[select]",{"$f":"IF(OR(D63=\"[enter]\",D63=\"[select]\",D63=0)=TRUE,\"error\",\"\")","v":"error"},"Total FTE:",null,null,{"$f":"I44+I50","v":0},{"$f":"J44+J50","v":0},{"$f":"K44+K50","v":0},{"$f":"L44+L50","v":0},{"$f":"M44+M50","v":0},null,null,null,null,null,null,{"$f":"IF(E63=\"error\",1,0)","v":1}]
[null,"Budgeted Dept:",null,"[select]",{"$f":"IF(OR(D64=\"[enter]\",D64=\"[select]\",D64=0)=TRUE,\"error\",\"\")","v":"error"},"Total Comp:",null,null,{"$f":"I47+I51","v":0},{"$f":"J47+J51","v":0},{"$f":"K47+K51","v":0},{"$f":"L47+L51","v":0},{"$f":"M47+M51","v":0},null,null,null,null,null,null,{"$f":"IF(E64=\"error\",1,0)","v":1}]
[null,"Adaptive budget Position #:"]
[null,"(What name or position number is this under in Adaptive?)"]
[]
[null,"Salary Justification:"]
[null,null,null,null,null,"Summary w/o Fringe"]
[null,null,null,null,null,"UAMS 1.0 Normalized Total Salary:",null,null,{"$f":"IF(I$44=0,0,(I45/I$44))","v":0},{"$f":"IF(J$44=0,0,(J45/J$44))","v":0},{"$f":"IF(K$44=0,0,(K45/K$44))","v":0},{"$f":"IF(L$44=0,0,(L45/L$44))","v":0},{"$f":"IF(M$44=0,0,(M45/M$44))","v":0}]
[null,null,null,null,null,"UAMS 1.0 Normalized Total Comp:",null,null,{"$f":"IF(I$44=0,0,(I45/I$44)+I46)","v":0},{"$f":"IF(J$44=0,0,(J45/J$44)+J46)","v":0},{"$f":"IF(K$44=0,0,(K45/K$44)+K46)","v":0},{"$f":"IF(L$44=0,0,(L45/L$44)+L46)","v":0},{"$f":"IF(M$44=0,0,(M45/M$44)+M46)","v":0}]
[null,null,null,null,null,"UAMS & VA 1.0 Norm Total Comp:",null,null,{"$f":"IF(I$63=0,0,((I45+I51)/I$63)+I46)","v":0},{"$f":"IF(J$63=0,0,((J45+J51)/J$63)+J46)","v":0},{"$f":"IF(K$63=0,0,((K45+K51)/K$63)+K46)","v":0},{"$f":"IF(L$63=0,0,((L45+L51)/L$63)+L46)","v":0},{"$f":"IF(M$63=0,0,((M45+M51)/M$63)+M46)","v":0}]
[]
[null,null,null,null,null,"Fringe Summary"]
[null,null,null,null,null,"UAMS Salary Fringe",null,null,{"$f":"I$45*$D$47","v":0},{"$f":"J$45*$D$47","v":0},{"$f":"K$45*$D$47","v":0},{"$f":"L$45*$D$47","v":0},{"$f":"M$45*$D$47","v":0}]
[null,null,null,null,null,"UAMS 1.0 Normalized Salary Fringe",null,null,{"$f":"IF(I$44=0,0,(I$45*$D$47)/I$44)","v":0},{"$f":"IF(J$44=0,0,(J$45*$D$47)/J$44)","v":0},0,0,0]
[null,null,null,null,null,"UAMS Incentive Fringe",null,null,{"$f":"O40","v":0},{"$f":"P40","v":0},{"$f":"Q40","v":0},{"$f":"R40","v":0},{"$f":"S40","v":0}]
[null,null,null,null,null,"Total Fringe",null,null,{"$f":"SUM(I76:I77)","v":0},{"$f":"SUM(J76:J77)","v":0},0,0,0]
[]
[]
[null,"BENCHMARKS",null,null,null,null,null,null,null,null,null,null,null,{"$f":"SUM(T83:W98)","v":4}]
[]
[null,"AAMC Specialty:",null,"[select]",null,null,{"$f":"IF(OR(D83=\"[enter]\",D83=\"[select]\",D83=0)=TRUE,\"error\",\"\")","v":"error"}]
[null,"AAMC Degree:",null,"[select]",null,null,"error","Salary Benchmarks ",null,"Data Year","25%ile","Median","75%ile","90%ile"]
[null,"FPSC Specialty:",null,"[select]",null,null,"error","AAMC Public Schools:",null,2022,{"$f":"IFERROR(VLOOKUP(\"AAMCAcademicPublic\"&$J$19&$D$84&$D$83&\"L\",AAMC!$A$2:$W$4000,10,FALSE),\"no data\")","v":"no data"},{"$f":"IFERROR(VLOOKUP(\"AAMCAcademicPublic\"&$J$19&$D$84&$D$83&\"L\",AAMC!$A$2:$W$4000,15,FALSE),\"no data\")","v":"no data"},{"$f":"IFERROR(VLOOKUP(\"AAMCAcademicPublic\"&$J$19&$D$84&$D$83&\"L\",AAMC!$A$2:$W$4000,20,FALSE),\"no data\")","v":"no data"},{"$f":"IFERROR(VLOOKUP(\"AAMCAcademicPublic\"&$J$19&$D$84&$D$83&\"L\",AAMC!$A$2:$W$4000,23,FALSE),\"no data\")","v":"no data"}]
[null,"MGMA Specialty:",null,"[select]",null,null,"error","AAMC All Schools:",null,2022,{"$f":"IFERROR(VLOOKUP(\"AAMCAcademicAll\"&$J$19&$D$84&$D$83&\"L\",AAMC!$A$2:$W$4000,10,FALSE),\"no data\")","v":"no data"},{"$f":"IFERROR(VLOOKUP(\"AAMCAcademicAll\"&$J$19&$D$84&$D$83&\"L\",AAMC!$A$2:$W$4000,15,FALSE),\"no data\")","v":"no data"},{"$f":"IFERROR(VLOOKUP(\"AAMCAcademicAll\"&$J$19&$D$84&$D$83&\"L\",AAMC!$A$2:$W$4000,20,FALSE),\"no data\")","v":"no data"},{"$f":"IFERROR(VLOOKUP(\"AAMCAcademicAll\"&$J$19&$D$84&$D$83&\"L\",AAMC!$A$2:$W$4000,23,FALSE),\"no data\")","v":"no data"}]
[null,"Malpractice Specialty:",null,"[select]",null,null,"error","MGMA Academic:",null,2022,{"$f":"IFERROR(VLOOKUP(\"MGMAAcademicAll\"&$J$19&\"MD\"&$D$86&\"L\",MGMAC!$A$2:$W$4000,10,FALSE),\"no data\")","v":"no data"},{"$f":"IFERROR(VLOOKUP(\"MGMAAcademicAll\"&$J$19&\"MD\"&$D$86&\"L\",MGMAC!$A$2:$W$4000,15,FALSE),\"no data\")","v":"no data"},{"$f":"IFERROR(VLOOKUP(\"MGMAAcademicAll\"&$J$19&\"MD\"&$D$86&\"L\",MGMAC!$A$2:$W$4000,20,FALSE),\"no data\")","v":"no data"},{"$f":"IFERROR(VLOOKUP(\"MGMAAcademicAll\"&$J$19&\"MD\"&$D$86&\"L\",MGMAC!$A$2:$W$4000,23,FALSE),\"no data\")","v":"no data"},null,null,null,null,null,null,null,null,null,null,null,null,null,null,null,null,null,null,null,"`"]
[null,"AAAP Comp Specialty:",null,"[select]",null,null,"error","MGMA Private Practice:",null,2022,{"$f":"IFERROR(VLOOKUP(\"MGMAPrivate PracticeAll\"&\"Private Practice\"&\"MD\"&$D$86&\"L\",MGMACP!$A$2:$W$4000,10,FALSE),\"no data\")","v":"no data"},{"$f":"IFERROR(VLOOKUP(\"MGMAPrivate PracticeAll\"&\"Private Practice\"&\"MD\"&$D$86&\"L\",MGMACP!$A$2:$W$4000,15,FALSE),\"no data\")","v":"no data"},{"$f":"IFERROR(VLOOKUP(\"MGMAPrivate PracticeAll\"&\"Private Practice\"&\"MD\"&$D$86&\"L\",MGMACP!$A$2:$W$4000,20,FALSE),\"no data\")","v":"no data"},{"$f":"IFERROR(VLOOKUP(\"MGMAPrivate PracticeAll\"&\"Private Practice\"&\"MD\"&$D$86&\"L\",MGMACP!$A$2:$W$4000,23,FALSE),\"no data\")","v":"no data"}]
[null,"AAAP RVU Specialty",null,"[select]",null,null,"error","AAAP Pediatrics",null,2022,{"$f":"IFERROR(VLOOKUP(\"AAAP\"&$D$88&$J$19,AAAPComp!$A$2:$Z$3000,12,FALSE),\"no data\")","v":"no data"},{"$f":"IFERROR(VLOOKUP(\"AAAP\"&$D$88&$J$19,AAAPComp!$A$3:$Z$3000,17,FALSE),\"no data\")","v":"no data"},{"$f":"IFERROR(VLOOKUP(\"AAAP\"&$D$88&$J$19,AAAPComp!$A$3:$Z$3000,22,FALSE),\"no data\")","v":"no data"},{"$f":"IFERROR(VLOOKUP(\"AAAP\"&$D$88&$J$19,AAAPComp!$A$3:$Z$3000,25,FALSE),\"no data\")","v":"no data"},null,null,null,null,null,{"$f":"IF(G83=\"error\",1,0)","v":1}]
[null,null,null,null,null,null,null,"Specialty Assoc Salary Bchmks:",null,null,null,null,null,null,null,null,null,null,null,{"$f":"IF(G84=\"error\",1,0)","v":1}]
[null,null,null,null,null,null,null,"Specialty AssociationYear/Name:",null,null,null,null,null,null,null,null,null,null,null,{"$f":"IF(G85=\"error\",1,0)","v":1}]
[null,null,null,null,null,null,null,"Compensation Plan Salary Bchmks:"]
[null,null,null,null,null,null,null,"Comp Plan Bchmks Year/Source:",null,null,null,null,null,null,null,null,null,null,null,{"$f":"IF(G87=\"error\",1,0)","v":1}]
[]
[]
[]
[null,null,null,null,null,null,null,"RVU Benchmarks",null,"Data Year","25%ile","Median","75%ile","90%ile"]
[null,null,null,null,null,null,null,"FPSC Academic:",null,2022,{"$f":"IFERROR(VLOOKUP(\"FPSCAcademicAll\"&$D$85&\"L\",FPSC!$A$3:$U$3000,8,FALSE),\"no data\")","v":"no data"},{"$f":"IFERROR(VLOOKUP(\"FPSCAcademicAll\"&$D$85&\"L\",FPSC!$A$3:$U$3000,13,FALSE),\"no data\")","v":"no data"},{"$f":"IFERROR(VLOOKUP(\"FPSCAcademicAll\"&$D$85&\"L\",FPSC!$A$3:$U$3000,18,FALSE),\"no data\")","v":"no data"},{"$f":"IFERROR(VLOOKUP(\"FPSCAcademicAll\"&$D$85&\"L\",FPSC!$A$3:$U$3000,21,FALSE),\"no data\")","v":"no data"}]
[null,null,null,null,null,null,null,"MGMA Academic:",null,2022,{"$f":"IFERROR(VLOOKUP(\"MGMAAcademicAll\"&$D$86&\"L\",MGMAR!$A$2:$U$4000,8,FALSE),\"no data\")","v":"no data"},{"$f":"IFERROR(VLOOKUP(\"MGMAAcademicAll\"&$D$86&\"L\",MGMAR!$A$2:$U$4000,13,FALSE),\"no data\")","v":"no data"},{"$f":"IFERROR(VLOOKUP(\"MGMAAcademicAll\"&$D$86&\"L\",MGMAR!$A$2:$U$4000,18,FALSE),\"no data\")","v":"no data"},{"$f":"IFERROR(VLOOKUP(\"MGMAAcademicAll\"&$D$86&\"L\",MGMAR!$A$2:$U$4000,21,FALSE),\"no data\")","v":"no data"}]
[null,null,null,null,null,null,null,"MGMA Private Practice:",null,2022,{"$f":"IFERROR(VLOOKUP(\"MGMAPrivate PracticeAll\"&$D$86&\"L\",MGMARP!$A$2:$U$4000,8,FALSE),\"no data\")","v":"no data"},{"$f":"IFERROR(VLOOKUP(\"MGMAPrivate PracticeAll\"&$D$86&\"L\",MGMARP!$A$2:$U$4000,13,FALSE),\"no data\")","v":"no data"},{"$f":"IFERROR(VLOOKUP(\"MGMAPrivate PracticeAll\"&$D$86&\"L\",MGMARP!$A$2:$U$4000,18,FALSE),\"no data\")","v":"no data"},{"$f":"IFERROR(VLOOKUP(\"MGMAPrivate PracticeAll\"&$D$86&\"L\",MGMARP!$A$2:$U$4000,21,FALSE),\"no data\")","v":"no data"}]
[null,null,null,null,null,null,null,"AAAP Pediatrics",null,2022,{"$f":"IFERROR(VLOOKUP(\"AAAP\"&$D$89,AAAPRVU!$A$2:$AA$3000,11,FALSE),\"no data\")","v":"no data"},{"$f":"IFERROR(VLOOKUP(\"AAAP\"&$D$89,AAAPRVU!$A$2:$AA$3000,16,FALSE),\"no data\")","v":"no data"},{"$f":"IFERROR(VLOOKUP(\"AAAP\"&$D$89,AAAPRVU!$A$2:$AA$3000,21,FALSE),\"no data\")","v":"no data"},{"$f":"IFERROR(VLOOKUP(\"AAAP\"&$D$89,AAAPRVU!$A$2:$AA$3000,24,FALSE),\"no data\")","v":"no data"}]
[null,null,null,null,null,null,null,"Specialty Assoc Salary Bchmks:"]
[null,null,null,null,null,null,null,"Specialty Association Year/Name:"]
[null,null,null,null,null,null,null,"Compensation Plan RVU Bchmks:"]
[null,null,null,null,null,null,null,"Comp Plan Bchmks Year/Source:"]

{"sheet":"ASSIGN","index":8,"n_rows":58,"n_cols":25,"rows_kept":58,"cut":false,"hidden":false,"merged":[[42,8,42,9],[43,8,43,9],[42,11,42,12],[43,11,43,12],[0,5,1,6],[7,8,7,10],[41,1,41,7]]}
["HIDE",{"$f":"COMP!B1","v":"0; [select]; [select] [select]; "},null,null,null,null,null,null,null,null,null,null,null,null,null,null,{"$f":"COMP!N1","v":"JFR FBP V24.5"},"HIDE","HIDE","HIDE","HIDE","HIDE","HIDE"]
[]
[]
[]
[]
[]
[null,"EFFORT"]
[null,null,null,null,null,null,null,null,"Funding Details",null,null,null,"Yr1","Yr2","Yr3","Yr4","Yr5"]
["Unique","Assignment","Description","Mission","Metric",null,null,null,"P&L","Rev Type","Description",null,"FTE","FTE","FTE","FTE","FTE"]
[null,"ADMINISTRATION",{"$f":"SUM(R11:U15)","v":0},null,null,null,null,null,null,null,"If contract/institute funded, indicate if this is on-going or time-limited"]
[{"$f":"I11&J11","v":""},null,null,{"$f":"IFERROR(VLOOKUP($B11,LOOKUPS!$A$146:$D$167,4,FALSE),\"\")","v":""},{"$f":"IFERROR(VLOOKUP($B11,LOOKUPS!$A$146:$D$167,3,FALSE),\"\")","v":""},null,null,null,null,null,null,null,0,{"$f":"M11","v":0},{"$f":"N11","v":0},{"$f":"O11","v":0},{"$f":"P11","v":0},{"$f":"IF(SUM($M11:$Q11)<>0,IF(B11=0,1,0),0)","v":0},{"$f":"IF(SUM($M11:$Q11)<>0,IF(I11=0,1,0),0)","v":0},0,0,null,{"$f":"IF(B11=\"ACH Academic\",1,0)","v":0}]
[{"$f":"I12&J12","v":""},null,null,{"$f":"IFERROR(VLOOKUP($B12,LOOKUPS!$A$146:$D$167,4,FALSE),\"\")","v":""},{"$f":"IFERROR(VLOOKUP($B12,LOOKUPS!$A$146:$D$167,3,FALSE),\"\")","v":""},null,null,null,null,null,null,null,0,{"$f":"M12","v":0},0,0,0,{"$f":"IF(SUM($M12:$Q12)<>0,IF(B12=0,1,0),0)","v":0},0,0,0,null,{"$f":"IF(B12=\"ACH Academic\",1,0)","v":0}]
[{"$f":"I13&J13","v":""},null,null,{"$f":"IFERROR(VLOOKUP($B13,LOOKUPS!$A$146:$D$167,4,FALSE),\"\")","v":""},{"$f":"IFERROR(VLOOKUP($B13,LOOKUPS!$A$146:$D$167,3,FALSE),\"\")","v":""},null,null,null,null,null,null,null,0,{"$f":"M13","v":0},0,0,0,{"$f":"IF(SUM($M13:$Q13)<>0,IF(B13=0,1,0),0)","v":0},0,0,0,null,{"$f":"IF(B13=\"ACH Academic\",1,0)","v":0}]
[{"$f":"I14&J14","v":""},null,null,{"$f":"IFERROR(VLOOKUP($B14,LOOKUPS!$A$146:$D$167,4,FALSE),\"\")","v":""},{"$f":"IFERROR(VLOOKUP($B14,LOOKUPS!$A$146:$D$167,3,FALSE),\"\")","v":""},null,null,null,null,null,null,null,0,{"$f":"M14","v":0},0,0,0,{"$f":"IF(SUM($M14:$Q14)<>0,IF(B14=0,1,0),0)","v":0},0,0,0,null,0]
[{"$f":"I15&J15","v":""},null,null,{"$f":"IFERROR(VLOOKUP($B15,LOOKUPS!$A$146:$D$167,4,FALSE),\"\")","v":""},{"$f":"IFERROR(VLOOKUP($B15,LOOKUPS!$A$146:$D$167,3,FALSE),\"\")","v":""},null,null,null,null,null,null,null,0,{"$f":"M15","v":0},0,0,0,{"$f":"IF(SUM($M15:$Q15)<>0,IF(B15=0,1,0),0)","v":0},0,0,0,null,0]
[null,null,null,null,null,null,null,null,null,null,null,null,{"$f":"SUM(M11:M15)","v":0},0,0,0,0]
[null,"RESEARCH",{"$f":"SUM(R18:U22)","v":0}]
[{"$f":"I18&J18","v":""},null,null,{"$f":"IFERROR(VLOOKUP($B18,LOOKUPS!$A$170:$D$179,4,FALSE),\"\")","v":""},{"$f":"IFERROR(VLOOKUP($B18,LOOKUPS!$A$170:$D$179,3,FALSE),\"\")","v":""},null,null,null,null,null,null,null,0,{"$f":"M18","v":0},0,0,0,{"$f":"IF(SUM($M18:$Q18)<>0,IF(B18=0,1,0),0)","v":0},{"$f":"IF(SUM($M18:$Q18)<>0,IF(I18=0,1,0),0)","v":0},0,0,null,{"$f":"IF(B18=\"ACH Academic\",1,0)","v":0}]
[{"$f":"I19&J19","v":""},null,null,{"$f":"IFERROR(VLOOKUP($B19,LOOKUPS!$A$170:$D$179,4,FALSE),\"\")","v":""},{"$f":"IFERROR(VLOOKUP($B19,LOOKUPS!$A$170:$D$179,3,FALSE),\"\")","v":""},null,null,null,null,null,null,null,0,0,0,0,0,{"$f":"IF(SUM($M19:$Q19)<>0,IF(B19=0,1,0),0)","v":0},0,0,0,null,{"$f":"IF(B19=\"ACH Academic\",1,0)","v":0}]
[{"$f":"I20&J20","v":""},null,null,{"$f":"IFERROR(VLOOKUP($B20,LOOKUPS!$A$170:$D$179,4,FALSE),\"\")","v":""},{"$f":"IFERROR(VLOOKUP($B20,LOOKUPS!$A$170:$D$179,3,FALSE),\"\")","v":""},null,null,null,null,null,null,null,0,0,0,0,0,{"$f":"IF(SUM($M20:$Q20)<>0,IF(B20=0,1,0),0)","v":0},0,0,0,null,0]
[{"$f":"I21&J21","v":""},null,null,{"$f":"IFERROR(VLOOKUP($B21,LOOKUPS!$A$170:$D$179,4,FALSE),\"\")","v":""},{"$f":"IFERROR(VLOOKUP($B21,LOOKUPS!$A$170:$D$179,3,FALSE),\"\")","v":""},null,null,null,null,null,null,null,0,0,0,0,0,{"$f":"IF(SUM($M21:$Q21)<>0,IF(B21=0,1,0),0)","v":0},0,0,0,null,0]
[{"$f":"I22&J22","v":""},null,null,{"$f":"IFERROR(VLOOKUP($B22,LOOKUPS!$A$170:$D$179,4,FALSE),\"\")","v":""},{"$f":"IFERROR(VLOOKUP($B22,LOOKUPS!$A$170:$D$179,3,FALSE),\"\")","v":""},null,null,null,null,null,null,null,0,0,0,0,0,{"$f":"IF(SUM($M22:$Q22)<>0,IF(B22=0,1,0),0)","v":0},0,0,0,null,0]
[null,null,null,null,null,null,null,null,null,null,null,null,{"$f":"SUM(M18:M22)","v":0},0,0,0,0]
[null,"EDUCATION",{"$f":"SUM(R25:U29)","v":0}]
[{"$f":"I25&J25","v":""},null,null,null,null,null,null,null,null,null,null,null,0,{"$f":"M25","v":0},0,0,0,{"$f":"IF(SUM($M25:$Q25)<>0,IF(B25=0,1,0),0)","v":0},{"$f":"IF(SUM($M25:$Q25)<>0,IF(I25=0,1,0),0)","v":0},0,0,null,{"$f":"IF(B25=\"ACH Academic\",1,0)","v":0}]
[{"$f":"I26&J26","v":""},null,null,{"$f":"IFERROR(VLOOKUP($B26,LOOKUPS!$A$182:$D$190,4,FALSE),\"\")","v":""},{"$f":"IFERROR(VLOOKUP($B26,LOOKUPS!$A$182:$D$190,3,FALSE),\"\")","v":""},null,null,null,null,null,null,null,0,0,0,0,0,{"$f":"IF(SUM($M26:$Q26)<>0,IF(B26=0,1,0),0)","v":0},0,0,0,null,0]
[{"$f":"I27&J27","v":""},null,null,{"$f":"IFERROR(VLOOKUP($B27,LOOKUPS!$A$182:$D$190,4,FALSE),\"\")","v":""},{"$f":"IFERROR(VLOOKUP($B27,LOOKUPS!$A$182:$D$190,3,FALSE),\"\")","v":""},null,null,null,null,null,null,null,0,0,0,0,0,{"$f":"IF(SUM($M27:$Q27)<>0,IF(B27=0,1,0),0)","v":0},0,0,0,null,0]
[{"$f":"I28&J28","v":""},null,null,{"$f":"IFERROR(VLOOKUP($B28,LOOKUPS!$A$182:$D$190,4,FALSE),\"\")","v":""},{"$f":"IFERROR(VLOOKUP($B28,LOOKUPS!$A$182:$D$190,3,FALSE),\"\")","v":""},null,null,null,null,null,null,null,0,0,0,0,0,{"$f":"IF(SUM($M28:$Q28)<>0,IF(B28=0,1,0),0)","v":0},0,0,0,null,0]
[{"$f":"I29&J29","v":""},null,null,{"$f":"IFERROR(VLOOKUP($B29,LOOKUPS!$A$182:$D$190,4,FALSE),\"\")","v":""},{"$f":"IFERROR(VLOOKUP($B29,LOOKUPS!$A$182:$D$190,3,FALSE),\"\")","v":""},null,null,null,null,null,null,null,0,0,0,0,0,{"$f":"IF(SUM($M29:$Q29)<>0,IF(B29=0,1,0),0)","v":0},0,0,0,null,0]
[null,null,null,null,null,"Production After Ramp-up",null,null,null,null,null,null,{"$f":"SUM(M24:M29)","v":0},{"$f":"SUM(N24:N29)","v":0},{"$f":"SUM(O24:O29)","v":0},{"$f":"SUM(P24:P29)","v":0},{"$f":"SUM(Q24:Q29)","v":0}]
[null,"CLINICAL",{"$f":"SUM(R32:W40)","v":0},null,null,"wRVUs","Cases/Visits","Comments"]
[{"$f":"I32&J32","v":""},null,null,{"$f":"IFERROR(VLOOKUP($B32,LOOKUPS!$A$193:$D$209,4,FALSE),\"\")","v":""},{"$f":"IFERROR(VLOOKUP($B32,LOOKUPS!$A$193:$D$209,3,FALSE),\"\")","v":""},null,null,null,null,null,null,null,0,{"$f":"M32","v":0},0,0,0,{"$f":"IF(SUM($M32:$Q32)<>0,IF(B32=0,1,0),0)","v":0},{"$f":"IF(SUM($M32:$Q32)<>0,IF(I32=0,1,0),0)","v":0},{"$f":"IF(SUM($M32:$Q32)<>0,IF(J32=0,1,0),0)","v":0},{"$f":"IF(SUM($M32:$Q32)<>0,IF(K32=0,1,0),0)","v":0},{"$f":"IF(E32=\"wRVUs\",IF(F32=0,1,0),0)","v":0},{"$f":"IF(E32=\"wRVUs\",IF(G32=0,1,0),0)","v":0}]
["",null,null,{"$f":"IFERROR(VLOOKUP($B33,LOOKUPS!$A$193:$D$209,4,FALSE),\"\")","v":""},{"$f":"IFERROR(VLOOKUP($B33,LOOKUPS!$A$193:$D$209,3,FALSE),\"\")","v":""},0,0,null,null,null,null,null,0,0,0,0,0,0,0,0,0,{"$f":"IF(E33=\"wRVUs\",IF(F33=0,1,0),0)","v":0},{"$f":"IF(E33=\"wRVUs\",IF(G33=0,1,0),0)","v":0}]
["",null,null,{"$f":"IFERROR(VLOOKUP($B34,LOOKUPS!$A$193:$D$209,4,FALSE),\"\")","v":""},{"$f":"IFERROR(VLOOKUP($B34,LOOKUPS!$A$193:$D$209,3,FALSE),\"\")","v":""},null,null,null,null,null,null,null,0,{"$f":"M34","v":0},{"$f":"N34","v":0},{"$f":"O34","v":0},{"$f":"P34","v":0},0,0,0,0,0,0]
["",null,null,{"$f":"IFERROR(VLOOKUP($B35,LOOKUPS!$A$193:$D$209,4,FALSE),\"\")","v":""},{"$f":"IFERROR(VLOOKUP($B35,LOOKUPS!$A$193:$D$209,3,FALSE),\"\")","v":""},null,null,null,null,null,null,null,0,0,0,0,0,0,0,0,0,0,0]
["",null,null,{"$f":"IFERROR(VLOOKUP($B36,LOOKUPS!$A$193:$D$209,4,FALSE),\"\")","v":""},{"$f":"IFERROR(VLOOKUP($B36,LOOKUPS!$A$193:$D$209,3,FALSE),\"\")","v":""},null,null,null,null,null,null,null,0,{"$f":"M36","v":0},{"$f":"N36","v":0},{"$f":"O36","v":0},{"$f":"P36","v":0},0,0,0,0,0,0]
["",null,null,{"$f":"IFERROR(VLOOKUP($B37,LOOKUPS!$A$193:$D$209,4,FALSE),\"\")","v":""},{"$f":"IFERROR(VLOOKUP($B37,LOOKUPS!$A$193:$D$209,3,FALSE),\"\")","v":""},null,null,null,null,null,null,null,0,0,0,0,0,0,0,0,0,0,0]
["",null,null,{"$f":"IFERROR(VLOOKUP($B38,LOOKUPS!$A$193:$D$209,4,FALSE),\"\")","v":""},{"$f":"IFERROR(VLOOKUP($B38,LOOKUPS!$A$193:$D$209,3,FALSE),\"\")","v":""},null,null,null,null,null,null,null,0,0,0,0,0,0,0,0,0,0,0]
["",null,null,{"$f":"IFERROR(VLOOKUP($B39,LOOKUPS!$A$193:$D$209,4,FALSE),\"\")","v":""},{"$f":"IFERROR(VLOOKUP($B39,LOOKUPS!$A$193:$D$209,3,FALSE),\"\")","v":""},null,null,null,null,null,null,null,0,0,0,0,0,0,0,0,0,0,0]
["",null,null,{"$f":"IFERROR(VLOOKUP($B40,LOOKUPS!$A$193:$D$209,4,FALSE),\"\")","v":""},{"$f":"IFERROR(VLOOKUP($B40,LOOKUPS!$A$193:$D$209,3,FALSE),\"\")","v":""},null,null,null,null,null,null,null,0,0,0,0,0,0,0,0,0,0,0]
[null,null,null,null,null,{"$f":"SUM(F32:F40)","v":0},{"$f":"SUM(G32:G40)","v":0},null,null,null,null,null,{"$f":"SUM(M32:M40)","v":0},{"$f":"SUM(N32:N40)","v":0},{"$f":"SUM(O32:O40)","v":0},{"$f":"SUM(P32:P40)","v":0},{"$f":"SUM(Q32:Q40)","v":0}]
[null,"Will this position have any clinical time at:? (Must choose an answer for each of the six below)"]
[null,null,"ACH Ambulatory","[select]",{"$f":"IF(OR(D43=\"[enter]\",D43=\"[select]\",D43=0)=TRUE,\"error\",\"\")","v":"error"},"ACH Inpatient","[select]",{"$f":"IF(OR(G43=\"[enter]\",G43=\"[select]\",G43=0)=TRUE,\"error\",\"\")","v":"error"},"ACH Operating Room",null,"[select]",{"$f":"IF(OR(K43=\"[enter]\",K43=\"[select]\",K43=0)=TRUE,\"error\",\"\")","v":"error"},null,null,null,null,null,{"$f":"IF(E43=\"error\",1,0)","v":1},{"$f":"IF(H43=\"error\",1,0)","v":1},{"$f":"IF(L43=\"error\",1,0)","v":1}]
[null,null,"UAMS Ambulatory","[select]",{"$f":"IF(OR(D44=\"[enter]\",D44=\"[select]\",D44=0)=TRUE,\"error\",\"\")","v":"error"},"UAMS Inpatient","[select]",{"$f":"IF(OR(G44=\"[enter]\",G44=\"[select]\",G44=0)=TRUE,\"error\",\"\")","v":"error"},"UAMS Operating Room",null,"[select]",{"$f":"IF(OR(K44=\"[enter]\",K44=\"[select]\",K44=0)=TRUE,\"error\",\"\")","v":"error"},null,null,null,null,null,{"$f":"IF(E44=\"error\",1,0)","v":1},{"$f":"IF(H44=\"error\",1,0)","v":1},{"$f":"IF(L44=\"error\",1,0)","v":1}]
[]
[null,"What % of the above FTE is also considered ACH Academic FTE?",null,null,"0",{"$f":"IF(OR(E46=\"[enter]\",E46=\"[select]\",E46=0)=TRUE,\"error\",\"\")","v":""},null,null,null,null,null,null,null,null,null,null,null,{"$f":"IF(F46=\"error\",1,0)","v":0}]
[null,"What % of the above FTE is NON ACH Contract funded?",null,null,"0",{"$f":"IF(OR(E47=\"[enter]\",E47=\"[select]\",E47=0)=TRUE,\"error\",\"\")","v":""},"Description if Other contract:",null,null,null,null,null,null,null,null,null,null,{"$f":"IF(F47=\"error\",1,0)","v":0}]
[null,"Of the contract NonACH contract funded fte, what is source?",null,null,"[Select]",{"$f":"IF(OR(E48=\"[enter]\",E48=\"[select]\",E48=0)=TRUE,\"error\",\"\")","v":"error"},null,null,null,null,null,null,{"$f":"M16+M23+M30+M41","v":0},{"$f":"N16+N23+N30+N41","v":0},{"$f":"O16+O23+O30+O41","v":0},{"$f":"P16+P23+P30+P41","v":0},{"$f":"Q16+Q23+Q30+Q41","v":0},{"$f":"IF(F48=\"error\",1,0)","v":1}]
[null,null,null,null,null,null,null,null,null,null,null,null,{"$f":"IF(ROUND(COMP!I44-M16-M23-M30-M41,2)=0,\"\",1)","v":""},{"$f":"IF(ROUND(COMP!J44-N16-N23-N30-N41,2)=0,\"\",1)","v":""},{"$f":"IF(ROUND(COMP!K44-O16-O23-O30-O41,2)=0,\"\",1)","v":""},{"$f":"IF(ROUND(COMP!L44-P16-P23-P30-P41,2)=0,\"\",1)","v":""},{"$f":"IF(ROUND(COMP!M44-Q16-Q23-Q30-Q41,2)=0,\"\",1)","v":""}]
[null,null,null,null,null,null,null,null,null,null,null,null,null,null,null,null,null,null,null,null,null,"Total ACH Academic",null,null,{"$f":"SUM(W10:W40)","v":0}]
[null,"FTE Assignment Summary"]
[null,"Year 1 Effort","COM","ICE","ACH","Inst","Other","Total"]
[null,"Administration",{"$f":"SUMIF($I$11:$I$15,C$52,$M$11:$M$15)","v":0},{"$f":"SUMIF($I$11:$I$15,D$52,$M$11:$M$15)","v":0},{"$f":"SUMIF($I$11:$I$15,E$52,$M$11:$M$15)","v":0},{"$f":"SUMIF($I$11:$I$15,F$52,$M$11:$M$15)","v":0},{"$f":"SUMIF($I$11:$I$15,G$52,$M$11:$M$15)","v":0},{"$f":"SUM(C53:G53)","v":0}]
[null,"Research",{"$f":"SUMIF($I$18:$I$22,C$52,$M$18:$M$22)","v":0},{"$f":"SUMIF($I$18:$I$22,D$52,$M$18:$M$22)","v":0},{"$f":"SUMIF($I$18:$I$22,E$52,$M$18:$M$22)","v":0},{"$f":"SUMIF($I$18:$I$22,F$52,$M$18:$M$22)","v":0},{"$f":"SUMIF($I$18:$I$22,G$52,$M$18:$M$22)","v":0},{"$f":"SUM(C54:G54)","v":0}]
[null,"Education",{"$f":"SUMIF($I$25:$I$29,C$52,$M$25:$M$29)","v":0},{"$f":"SUMIF($I$25:$I$29,D$52,$M$25:$M$29)","v":0},{"$f":"SUMIF($I$25:$I$29,E$52,$M$25:$M$29)","v":0},{"$f":"SUMIF($I$25:$I$29,F$52,$M$25:$M$29)","v":0},{"$f":"SUMIF($I$25:$I$29,G$52,$M$25:$M$29)","v":0},{"$f":"SUM(C55:G55)","v":0}]
[null,"Clinical",{"$f":"SUMIF($I$32:$I$40,C$52,$M$32:$M$40)","v":0},{"$f":"SUMIF($I$32:$I$40,D$52,$M$32:$M$40)","v":0},{"$f":"SUMIF($I$32:$I$40,E$52,$M$32:$M$40)","v":0},{"$f":"SUMIF($I$32:$I$40,F$52,$M$32:$M$40)","v":0},{"$f":"SUMIF($I$32:$I$40,G$52,$M$32:$M$40)","v":0},{"$f":"SUM(C56:G56)","v":0}]
[null,"VA",0,0,0,0,{"$f":"COMP!D44","v":0},{"$f":"SUM(C57:G57)","v":0}]
[null,"Total",{"$f":"SUM(C53:C57)","v":0},0,0,0,0,0]

{"sheet":"OTH EXP","index":9,"n_rows":33,"n_cols":17,"rows_kept":33,"cut":false,"hidden":false,"merged":[[0,4,1,5],[35,2,38,10]]}
["HIDE","HIDE",{"$f":"COMP!B1","v":"0; [select]; [select] [select]; "},null,null,null,null,null,null,null,{"$f":"COMP!N1","v":"JFR FBP V24.5"},"HIDE","HIDE","HIDE","HIDE","HIDE","HIDE"]
[]
[]
[]
[]
[]
[null,null,"INCREMENTAL COMMON COSTS",null,null,null,null,null,null,null,{"$f":"SUM(L10:M14)","v":0}]
[]
[null,null,"Type","Description","P&L","Rev Type","Year 1","Year 2","Year 3","Year 4","Year 5"]
[{"$f":"E10&F10","v":""},{"$f":"E10&C10","v":"Computer"},"Computer","(new positions)",null,null,0,0,0,0,0,{"$f":"IF(SUM($G10:$K10)<>0,IF(E10=0,1,0),0)","v":0},{"$f":"IF(SUM($G10:$K10)<>0,IF(F10=0,1,0),0)","v":0}]
[{"$f":"E11&F11","v":""},{"$f":"E11&C11","v":"Educational Funds"},"Educational Funds","(faculty only)",null,null,0,{"$f":"G11","v":0},{"$f":"G11","v":0},{"$f":"G11","v":0},{"$f":"G11","v":0},{"$f":"IF(SUM($G11:$K11)<>0,IF(E11=0,1,0),0)","v":0},{"$f":"IF(SUM($G11:$K11)<>0,IF(F11=0,1,0),0)","v":0}]
["",{"$f":"E12&C12","v":"Furniture"},"Furniture","(new faculty only)",null,null,0,0,0,0,0,0,0]
["",{"$f":"E13&C13","v":"Moving/Relocation"},"Moving/Relocation","(faculty only: Up to 7% of salary - Max of $15,000)",null,null,0,0,0,0,0,0,0]
["",{"$f":"E14&C14","v":"Malpractice"},"Malpractice","(clinical faculty only)",null,null,0,{"$f":"G14","v":0},{"$f":"G14","v":0},{"$f":"G14","v":0},{"$f":"G14","v":0},0,0]
[null,null,null,null,"Total:",null,{"$f":"SUM(G10:G14)","v":0},{"$f":"SUM(H10:H14)","v":0},{"$f":"SUM(I10:I14)","v":0},{"$f":"SUM(J10:J14)","v":0},{"$f":"SUM(K10:K14)","v":0}]
[]
[null,null,"INCREMENTAL OTHER COSTS  (Includes new and existing - add if supporting candidate)",null,null,null,null,null,null,null,{"$f":"SUM(L20:O32)","v":0}]
[]
[null,null,"Type","Description","P&L","Rev Type","Year 1","Year 2","Year 3","Year 4","Year 5"]
[{"$f":"E20&F20","v":""},{"$f":"E20&C20","v":"Immigration"},"Immigration",null,null,null,0,0,{"$f":"H20*1.02","v":0},0,0,{"$f":"IF(SUM($G20:$K20)<>0,IF(C20=0,1,0),0)","v":0},{"$f":"IF(SUM($G20:$K20)<>0,IF(D20=0,1,0),0)","v":0},{"$f":"IF(SUM($G20:$K20)<>0,IF(E20=0,1,0),0)","v":0},{"$f":"IF(SUM($G20:$K20)<>0,IF(F20=0,1,0),0)","v":0}]
[{"$f":"E21&F21","v":""},"",null,null,null,null,0,{"$f":"G21*1.02","v":0},{"$f":"H21*1.02","v":0},{"$f":"I21*1.02","v":0},{"$f":"J21*1.02","v":0},0,0,0,0]
["","",null,null,null,null,0,0,0,0,0,0,0,0,0]
["","",null,null,null,null,0,0,0,0,0,0,0,0,0]
["","",null,null,null,null,0,0,0,0,0,0,0,0,0]
[{"$f":"E25&F25","v":""},"",null,null,null,null,0,0,0,0,0,0,0,0,0]
["","",null,null,null,null,0,0,0,0,0,0,0,0,0]
["","",null,null,null,null,0,0,0,0,0,0,0,0,0]
[{"$f":"E28&F28","v":""},"",null,null,null,null,0,0,0,0,0,0,0,0,0]
["","",null,null,null,null,0,0,0,0,0,0,0,0,0]
["","",null,null,null,null,0,0,0,0,0,0,0,0,0]
["","",null,null,null,null,0,0,0,0,0,0,0,0,0]
["","",null,null,null,null,0,{"$f":"+G32","v":0},{"$f":"+H32","v":0},{"$f":"+I32","v":0},{"$f":"+J32","v":0},0,0,0,0]
[null,null,null,null,"Total:",null,{"$f":"SUM(G20:G32)","v":0},{"$f":"SUM(H20:H32)","v":0},{"$f":"SUM(I20:I32)","v":0},{"$f":"SUM(J20:J32)","v":0},{"$f":"SUM(K20:K32)","v":0}]

{"sheet":"OTH REV","index":10,"n_rows":44,"n_cols":17,"rows_kept":44,"cut":false,"hidden":false,"merged":[[8,1,8,2],[8,3,8,5],[37,1,37,2],[37,3,37,5],[14,1,14,2],[9,1,9,2],[10,1,10,2],[11,1,11,2],[12,1,12,2],[13,1,13,2],[29,1,29,2],[30,1,30,2],[9,3,9,5],[10,3,10,5],[11,3,11,5],[35,3,35,5],[38,1,38,2],[38,3,38,5],[15,1,15,2],[16,1,16,2],[17,1,17,2],[18,1,18,2],[31,1,31,2],[19,1,19,2],[21,1,21,2],[22,1,22,2],[23,1,23,2],[24,1,24,2],[25,1,25,2],[26,1,26,2],[27,1,27,2],[28,1,28,2],[42,1,42,2],[42,3,42,5],[39,1,39,2],[39,3,39,5],[40,1,40,2],[40,3,40,5],[41,1,41,2],[41,3,41,5],[12,3,12,5],[13,3,13,5],[32,1,32,2],[33,1,33,2],[34,1,34,2],[27,3,27,5],[28,3,28,5],[29,3,29,5],[30,3,30,5],[31,3,31,5],[32,3,32,5],[20,1,20,2],[20,3,20,5],[0,6,1,8],[35,1,35,2],[26,3,26,5],[14,3,14,5],[15,3,15,5],[16,3,16,5],[17,3,17,5],[18,3,18,5],[19,3,19,5],[21,3,21,5],[22,3,22,5],[23,3,23,5],[24,3,24,5],[25,3,25,5],[33,3,33,5],[34,3,34,5]]}
["HIDE",null,null,null,null,null,null,null,null,null,null,null,null,null,"HIDE","HIDE","HIDE"]
[]
[]
[]
[]
[]
[]
[null,"INCREMENTAL OTHER REVENUES"]
[null,"Type",null,"Description",null,null,null,"P&L","Year 1","Year 2","Year 3","Year 4","Year 5"]
[{"$f":"H10&B10","v":"COMGrant"},"Grant",null,"Direct Expense Support",null,null,null,"COM",{"$f":"(SUMIF(ASSIGN!$A$9:$A$40,$A10,ASSIGN!M$9:M$40)*(COMP!I$70+COMP!I$76)+SUMIF(COMP!$A$35:$A$38,$A10,COMP!J$36:J$39)+SUMIF(COMP!$A$35:$A$38,$A10,COMP!O$36:O$39)+SUMIF('OTH EXP'!$A$10:$A$32,$A10,'OTH EXP'!G$10:G$32))","v":0},{"$f":"(SUMIF(ASSIGN!$A$9:$A$40,$A10,ASSIGN!N$9:N$40)*(COMP!J$70+COMP!J$76)+SUMIF(COMP!$A$35:$A$38,$A10,COMP!K$36:K$39)+SUMIF(COMP!$A$35:$A$38,$A10,COMP!P$36:P$39)+SUMIF('OTH EXP'!$A$10:$A$32,$A10,'OTH EXP'!H$10:H$32))","v":0},{"$f":"(SUMIF(ASSIGN!$A$9:$A$40,$A10,ASSIGN!O$9:O$40)*(COMP!K$70+COMP!K$76)+SUMIF(COMP!$A$35:$A$38,$A10,COMP!L$36:L$39)+SUMIF(COMP!$A$35:$A$38,$A10,COMP!Q$36:Q$39)+SUMIF('OTH EXP'!$A$10:$A$32,$A10,'OTH EXP'!I$10:I$32))","v":0},{"$f":"(SUMIF(ASSIGN!$A$9:$A$40,$A10,ASSIGN!P$9:P$40)*(COMP!L$70+COMP!L$76)+SUMIF(COMP!$A$35:$A$38,$A10,COMP!M$36:M$39)+SUMIF(COMP!$A$35:$A$38,$A10,COMP!R$36:R$39)+SUMIF('OTH EXP'!$A$10:$A$32,$A10,'OTH EXP'!J$10:J$32))","v":0},{"$f":"(SUMIF(ASSIGN!$A$9:$A$40,$A10,ASSIGN!Q$9:Q$40)*(COMP!M$70+COMP!M$76)+SUMIF(COMP!$A$35:$A$38,$A10,COMP!N$36:N$39)+SUMIF(COMP!$A$35:$A$38,$A10,COMP!S$36:S$39)+SUMIF('OTH EXP'!$A$10:$A$32,$A10,'OTH EXP'!K$10:K$32))","v":0}]
[{"$f":"H11&B11","v":"COMContract"},"Contract",null,"Direct Expense Support",null,null,null,"COM",{"$f":"(SUMIF(ASSIGN!$A$9:$A$40,$A11,ASSIGN!M$9:M$40)*(COMP!I$70+COMP!I$76)+SUMIF(COMP!$A$35:$A$38,$A11,COMP!J$36:J$39)+SUMIF(COMP!$A$35:$A$38,$A11,COMP!O$36:O$39)+SUMIF('OTH EXP'!$A$10:$A$32,$A11,'OTH EXP'!G$10:G$32))","v":0},{"$f":"(SUMIF(ASSIGN!$A$9:$A$40,$A11,ASSIGN!N$9:N$40)*(COMP!J$70+COMP!J$76)+SUMIF(COMP!$A$35:$A$38,$A11,COMP!K$36:K$39)+SUMIF(COMP!$A$35:$A$38,$A11,COMP!P$36:P$39)+SUMIF('OTH EXP'!$A$10:$A$32,$A11,'OTH EXP'!H$10:H$32))","v":0},{"$f":"(SUMIF(ASSIGN!$A$9:$A$40,$A11,ASSIGN!O$9:O$40)*(COMP!K$70+COMP!K$76)+SUMIF(COMP!$A$35:$A$38,$A11,COMP!L$36:L$39)+SUMIF(COMP!$A$35:$A$38,$A11,COMP!Q$36:Q$39)+SUMIF('OTH EXP'!$A$10:$A$32,$A11,'OTH EXP'!I$10:I$32))","v":0},{"$f":"(SUMIF(ASSIGN!$A$9:$A$40,$A11,ASSIGN!P$9:P$40)*(COMP!L$70+COMP!L$76)+SUMIF(COMP!$A$35:$A$38,$A11,COMP!M$36:M$39)+SUMIF(COMP!$A$35:$A$38,$A11,COMP!R$36:R$39)+SUMIF('OTH EXP'!$A$10:$A$32,$A11,'OTH EXP'!J$10:J$32))","v":0},{"$f":"(SUMIF(ASSIGN!$A$9:$A$40,$A11,ASSIGN!Q$9:Q$40)*(COMP!M$70+COMP!M$76)+SUMIF(COMP!$A$35:$A$38,$A11,COMP!N$36:N$39)+SUMIF(COMP!$A$35:$A$38,$A11,COMP!S$36:S$39)+SUMIF('OTH EXP'!$A$10:$A$32,$A11,'OTH EXP'!K$10:K$32))","v":0}]
["COMFoundation","Foundation",null,"Direct Expense Support",null,null,null,"COM",{"$f":"(SUMIF(ASSIGN!$A$9:$A$40,$A12,ASSIGN!M$9:M$40)*(COMP!I$70+COMP!I$76)+SUMIF(COMP!$A$35:$A$38,$A12,COMP!J$36:J$39)+SUMIF(COMP!$A$35:$A$38,$A12,COMP!O$36:O$39)+SUMIF('OTH EXP'!$A$10:$A$32,$A12,'OTH EXP'!G$10:G$32))","v":0},{"$f":"(SUMIF(ASSIGN!$A$9:$A$40,$A12,ASSIGN!N$9:N$40)*(COMP!J$70+COMP!J$76)+SUMIF(COMP!$A$35:$A$38,$A12,COMP!K$36:K$39)+SUMIF(COMP!$A$35:$A$38,$A12,COMP!P$36:P$39)+SUMIF('OTH EXP'!$A$10:$A$32,$A12,'OTH EXP'!H$10:H$32))","v":0},{"$f":"(SUMIF(ASSIGN!$A$9:$A$40,$A12,ASSIGN!O$9:O$40)*(COMP!K$70+COMP!K$76)+SUMIF(COMP!$A$35:$A$38,$A12,COMP!L$36:L$39)+SUMIF(COMP!$A$35:$A$38,$A12,COMP!Q$36:Q$39)+SUMIF('OTH EXP'!$A$10:$A$32,$A12,'OTH EXP'!I$10:I$32))","v":0},{"$f":"(SUMIF(ASSIGN!$A$9:$A$40,$A12,ASSIGN!P$9:P$40)*(COMP!L$70+COMP!L$76)+SUMIF(COMP!$A$35:$A$38,$A12,COMP!M$36:M$39)+SUMIF(COMP!$A$35:$A$38,$A12,COMP!R$36:R$39)+SUMIF('OTH EXP'!$A$10:$A$32,$A12,'OTH EXP'!J$10:J$32))","v":0},{"$f":"(SUMIF(ASSIGN!$A$9:$A$40,$A12,ASSIGN!Q$9:Q$40)*(COMP!M$70+COMP!M$76)+SUMIF(COMP!$A$35:$A$38,$A12,COMP!N$36:N$39)+SUMIF(COMP!$A$35:$A$38,$A12,COMP!S$36:S$39)+SUMIF('OTH EXP'!$A$10:$A$32,$A12,'OTH EXP'!K$10:K$32))","v":0}]
["COMGift","Gift",null,"Direct Expense Support",null,null,null,"COM",{"$f":"(SUMIF(ASSIGN!$A$9:$A$40,$A13,ASSIGN!M$9:M$40)*(COMP!I$70+COMP!I$76)+SUMIF(COMP!$A$35:$A$38,$A13,COMP!J$36:J$39)+SUMIF(COMP!$A$35:$A$38,$A13,COMP!O$36:O$39)+SUMIF('OTH EXP'!$A$10:$A$32,$A13,'OTH EXP'!G$10:G$32))","v":0},{"$f":"(SUMIF(ASSIGN!$A$9:$A$40,$A13,ASSIGN!N$9:N$40)*(COMP!J$70+COMP!J$76)+SUMIF(COMP!$A$35:$A$38,$A13,COMP!K$36:K$39)+SUMIF(COMP!$A$35:$A$38,$A13,COMP!P$36:P$39)+SUMIF('OTH EXP'!$A$10:$A$32,$A13,'OTH EXP'!H$10:H$32))","v":0},{"$f":"(SUMIF(ASSIGN!$A$9:$A$40,$A13,ASSIGN!O$9:O$40)*(COMP!K$70+COMP!K$76)+SUMIF(COMP!$A$35:$A$38,$A13,COMP!L$36:L$39)+SUMIF(COMP!$A$35:$A$38,$A13,COMP!Q$36:Q$39)+SUMIF('OTH EXP'!$A$10:$A$32,$A13,'OTH EXP'!I$10:I$32))","v":0},{"$f":"(SUMIF(ASSIGN!$A$9:$A$40,$A13,ASSIGN!P$9:P$40)*(COMP!L$70+COMP!L$76)+SUMIF(COMP!$A$35:$A$38,$A13,COMP!M$36:M$39)+SUMIF(COMP!$A$35:$A$38,$A13,COMP!R$36:R$39)+SUMIF('OTH EXP'!$A$10:$A$32,$A13,'OTH EXP'!J$10:J$32))","v":0},{"$f":"(SUMIF(ASSIGN!$A$9:$A$40,$A13,ASSIGN!Q$9:Q$40)*(COMP!M$70+COMP!M$76)+SUMIF(COMP!$A$35:$A$38,$A13,COMP!N$36:N$39)+SUMIF(COMP!$A$35:$A$38,$A13,COMP!S$36:S$39)+SUMIF('OTH EXP'!$A$10:$A$32,$A13,'OTH EXP'!K$10:K$32))","v":0}]
["COMDean's Commitment","Dean's Commitment",null,"Direct Expense Support",null,null,null,"COM",{"$f":"(SUMIF(ASSIGN!$A$9:$A$40,$A14,ASSIGN!M$9:M$40)*(COMP!I$70+COMP!I$76)+SUMIF(COMP!$A$35:$A$38,$A14,COMP!J$36:J$39)+SUMIF(COMP!$A$35:$A$38,$A14,COMP!O$36:O$39)+SUMIF('OTH EXP'!$A$10:$A$32,$A14,'OTH EXP'!G$10:G$32))","v":0},{"$f":"(SUMIF(ASSIGN!$A$9:$A$40,$A14,ASSIGN!N$9:N$40)*(COMP!J$70+COMP!J$76)+SUMIF(COMP!$A$35:$A$38,$A14,COMP!K$36:K$39)+SUMIF(COMP!$A$35:$A$38,$A14,COMP!P$36:P$39)+SUMIF('OTH EXP'!$A$10:$A$32,$A14,'OTH EXP'!H$10:H$32))","v":0},{"$f":"(SUMIF(ASSIGN!$A$9:$A$40,$A14,ASSIGN!O$9:O$40)*(COMP!K$70+COMP!K$76)+SUMIF(COMP!$A$35:$A$38,$A14,COMP!L$36:L$39)+SUMIF(COMP!$A$35:$A$38,$A14,COMP!Q$36:Q$39)+SUMIF('OTH EXP'!$A$10:$A$32,$A14,'OTH EXP'!I$10:I$32))","v":0},{"$f":"(SUMIF(ASSIGN!$A$9:$A$40,$A14,ASSIGN!P$9:P$40)*(COMP!L$70+COMP!L$76)+SUMIF(COMP!$A$35:$A$38,$A14,COMP!M$36:M$39)+SUMIF(COMP!$A$35:$A$38,$A14,COMP!R$36:R$39)+SUMIF('OTH EXP'!$A$10:$A$32,$A14,'OTH EXP'!J$10:J$32))","v":0},{"$f":"(SUMIF(ASSIGN!$A$9:$A$40,$A14,ASSIGN!Q$9:Q$40)*(COMP!M$70+COMP!M$76)+SUMIF(COMP!$A$35:$A$38,$A14,COMP!N$36:N$39)+SUMIF(COMP!$A$35:$A$38,$A14,COMP!S$36:S$39)+SUMIF('OTH EXP'!$A$10:$A$32,$A14,'OTH EXP'!K$10:K$32))","v":0}]
["COMBudget","Budget",null,"Direct Expense Support",null,null,null,"COM",{"$f":"(SUMIF(ASSIGN!$A$9:$A$40,$A15,ASSIGN!M$9:M$40)*(COMP!I$70+COMP!I$76)+SUMIF(COMP!$A$35:$A$38,$A15,COMP!J$36:J$39)+SUMIF(COMP!$A$35:$A$38,$A15,COMP!O$36:O$39)+SUMIF('OTH EXP'!$A$10:$A$32,$A15,'OTH EXP'!G$10:G$32))","v":0},{"$f":"(SUMIF(ASSIGN!$A$9:$A$40,$A15,ASSIGN!N$9:N$40)*(COMP!J$70+COMP!J$76)+SUMIF(COMP!$A$35:$A$38,$A15,COMP!K$36:K$39)+SUMIF(COMP!$A$35:$A$38,$A15,COMP!P$36:P$39)+SUMIF('OTH EXP'!$A$10:$A$32,$A15,'OTH EXP'!H$10:H$32))","v":0},{"$f":"(SUMIF(ASSIGN!$A$9:$A$40,$A15,ASSIGN!O$9:O$40)*(COMP!K$70+COMP!K$76)+SUMIF(COMP!$A$35:$A$38,$A15,COMP!L$36:L$39)+SUMIF(COMP!$A$35:$A$38,$A15,COMP!Q$36:Q$39)+SUMIF('OTH EXP'!$A$10:$A$32,$A15,'OTH EXP'!I$10:I$32))","v":0},{"$f":"(SUMIF(ASSIGN!$A$9:$A$40,$A15,ASSIGN!P$9:P$40)*(COMP!L$70+COMP!L$76)+SUMIF(COMP!$A$35:$A$38,$A15,COMP!M$36:M$39)+SUMIF(COMP!$A$35:$A$38,$A15,COMP!R$36:R$39)+SUMIF('OTH EXP'!$A$10:$A$32,$A15,'OTH EXP'!J$10:J$32))","v":0},{"$f":"(SUMIF(ASSIGN!$A$9:$A$40,$A15,ASSIGN!Q$9:Q$40)*(COMP!M$70+COMP!M$76)+SUMIF(COMP!$A$35:$A$38,$A15,COMP!N$36:N$39)+SUMIF(COMP!$A$35:$A$38,$A15,COMP!S$36:S$39)+SUMIF('OTH EXP'!$A$10:$A$32,$A15,'OTH EXP'!K$10:K$32))","v":0}]
["COMOther","Other",null,"Direct Expense Support",null,null,null,"COM",{"$f":"(SUMIF(ASSIGN!$A$9:$A$40,$A16,ASSIGN!M$9:M$40)*(COMP!I$70+COMP!I$76)+SUMIF(COMP!$A$35:$A$38,$A16,COMP!J$36:J$39)+SUMIF(COMP!$A$35:$A$38,$A16,COMP!O$36:O$39)+SUMIF('OTH EXP'!$A$10:$A$32,$A16,'OTH EXP'!G$10:G$32))","v":0},{"$f":"(SUMIF(ASSIGN!$A$9:$A$40,$A16,ASSIGN!N$9:N$40)*(COMP!J$70+COMP!J$76)+SUMIF(COMP!$A$35:$A$38,$A16,COMP!K$36:K$39)+SUMIF(COMP!$A$35:$A$38,$A16,COMP!P$36:P$39)+SUMIF('OTH EXP'!$A$10:$A$32,$A16,'OTH EXP'!H$10:H$32))","v":0},{"$f":"(SUMIF(ASSIGN!$A$9:$A$40,$A16,ASSIGN!O$9:O$40)*(COMP!K$70+COMP!K$76)+SUMIF(COMP!$A$35:$A$38,$A16,COMP!L$36:L$39)+SUMIF(COMP!$A$35:$A$38,$A16,COMP!Q$36:Q$39)+SUMIF('OTH EXP'!$A$10:$A$32,$A16,'OTH EXP'!I$10:I$32))","v":0},{"$f":"(SUMIF(ASSIGN!$A$9:$A$40,$A16,ASSIGN!P$9:P$40)*(COMP!L$70+COMP!L$76)+SUMIF(COMP!$A$35:$A$38,$A16,COMP!M$36:M$39)+SUMIF(COMP!$A$35:$A$38,$A16,COMP!R$36:R$39)+SUMIF('OTH EXP'!$A$10:$A$32,$A16,'OTH EXP'!J$10:J$32))","v":0},{"$f":"(SUMIF(ASSIGN!$A$9:$A$40,$A16,ASSIGN!Q$9:Q$40)*(COMP!M$70+COMP!M$76)+SUMIF(COMP!$A$35:$A$38,$A16,COMP!N$36:N$39)+SUMIF(COMP!$A$35:$A$38,$A16,COMP!S$36:S$39)+SUMIF('OTH EXP'!$A$10:$A$32,$A16,'OTH EXP'!K$10:K$32))","v":0}]
["ICEGrant","Grant",null,"Direct Expense Support",null,null,null,"ICE",{"$f":"(SUMIF(ASSIGN!$A$9:$A$40,$A17,ASSIGN!M$9:M$40)*(COMP!I$70+COMP!I$76)+SUMIF(COMP!$A$35:$A$38,$A17,COMP!J$36:J$39)+SUMIF(COMP!$A$35:$A$38,$A17,COMP!O$36:O$39)+SUMIF('OTH EXP'!$A$10:$A$32,$A17,'OTH EXP'!G$10:G$32))","v":0},{"$f":"(SUMIF(ASSIGN!$A$9:$A$40,$A17,ASSIGN!N$9:N$40)*(COMP!J$70+COMP!J$76)+SUMIF(COMP!$A$35:$A$38,$A17,COMP!K$36:K$39)+SUMIF(COMP!$A$35:$A$38,$A17,COMP!P$36:P$39)+SUMIF('OTH EXP'!$A$10:$A$32,$A17,'OTH EXP'!H$10:H$32))","v":0},{"$f":"(SUMIF(ASSIGN!$A$9:$A$40,$A17,ASSIGN!O$9:O$40)*(COMP!K$70+COMP!K$76)+SUMIF(COMP!$A$35:$A$38,$A17,COMP!L$36:L$39)+SUMIF(COMP!$A$35:$A$38,$A17,COMP!Q$36:Q$39)+SUMIF('OTH EXP'!$A$10:$A$32,$A17,'OTH EXP'!I$10:I$32))","v":0},{"$f":"(SUMIF(ASSIGN!$A$9:$A$40,$A17,ASSIGN!P$9:P$40)*(COMP!L$70+COMP!L$76)+SUMIF(COMP!$A$35:$A$38,$A17,COMP!M$36:M$39)+SUMIF(COMP!$A$35:$A$38,$A17,COMP!R$36:R$39)+SUMIF('OTH EXP'!$A$10:$A$32,$A17,'OTH EXP'!J$10:J$32))","v":0},{"$f":"(SUMIF(ASSIGN!$A$9:$A$40,$A17,ASSIGN!Q$9:Q$40)*(COMP!M$70+COMP!M$76)+SUMIF(COMP!$A$35:$A$38,$A17,COMP!N$36:N$39)+SUMIF(COMP!$A$35:$A$38,$A17,COMP!S$36:S$39)+SUMIF('OTH EXP'!$A$10:$A$32,$A17,'OTH EXP'!K$10:K$32))","v":0}]
["ICEContract","Contract",null,"Direct Expense Support",null,null,null,"ICE",{"$f":"(SUMIF(ASSIGN!$A$9:$A$40,$A18,ASSIGN!M$9:M$40)*(COMP!I$70+COMP!I$76)+SUMIF(COMP!$A$35:$A$38,$A18,COMP!J$36:J$39)+SUMIF(COMP!$A$35:$A$38,$A18,COMP!O$36:O$39)+SUMIF('OTH EXP'!$A$10:$A$32,$A18,'OTH EXP'!G$10:G$32))","v":0},{"$f":"(SUMIF(ASSIGN!$A$9:$A$40,$A18,ASSIGN!N$9:N$40)*(COMP!J$70+COMP!J$76)+SUMIF(COMP!$A$35:$A$38,$A18,COMP!K$36:K$39)+SUMIF(COMP!$A$35:$A$38,$A18,COMP!P$36:P$39)+SUMIF('OTH EXP'!$A$10:$A$32,$A18,'OTH EXP'!H$10:H$32))","v":0},{"$f":"(SUMIF(ASSIGN!$A$9:$A$40,$A18,ASSIGN!O$9:O$40)*(COMP!K$70+COMP!K$76)+SUMIF(COMP!$A$35:$A$38,$A18,COMP!L$36:L$39)+SUMIF(COMP!$A$35:$A$38,$A18,COMP!Q$36:Q$39)+SUMIF('OTH EXP'!$A$10:$A$32,$A18,'OTH EXP'!I$10:I$32))","v":0},{"$f":"(SUMIF(ASSIGN!$A$9:$A$40,$A18,ASSIGN!P$9:P$40)*(COMP!L$70+COMP!L$76)+SUMIF(COMP!$A$35:$A$38,$A18,COMP!M$36:M$39)+SUMIF(COMP!$A$35:$A$38,$A18,COMP!R$36:R$39)+SUMIF('OTH EXP'!$A$10:$A$32,$A18,'OTH EXP'!J$10:J$32))","v":0},{"$f":"(SUMIF(ASSIGN!$A$9:$A$40,$A18,ASSIGN!Q$9:Q$40)*(COMP!M$70+COMP!M$76)+SUMIF(COMP!$A$35:$A$38,$A18,COMP!N$36:N$39)+SUMIF(COMP!$A$35:$A$38,$A18,COMP!S$36:S$39)+SUMIF('OTH EXP'!$A$10:$A$32,$A18,'OTH EXP'!K$10:K$32))","v":0}]
["ICEOther","Other",null,"Direct Expense Support",null,null,null,"ICE",{"$f":"(SUMIF(ASSIGN!$A$9:$A$40,$A19,ASSIGN!M$9:M$40)*(COMP!I$70+COMP!I$76)+SUMIF(COMP!$A$35:$A$38,$A19,COMP!J$36:J$39)+SUMIF(COMP!$A$35:$A$38,$A19,COMP!O$36:O$39)+SUMIF('OTH EXP'!$A$10:$A$32,$A19,'OTH EXP'!G$10:G$32))","v":0},{"$f":"(SUMIF(ASSIGN!$A$9:$A$40,$A19,ASSIGN!N$9:N$40)*(COMP!J$70+COMP!J$76)+SUMIF(COMP!$A$35:$A$38,$A19,COMP!K$36:K$39)+SUMIF(COMP!$A$35:$A$38,$A19,COMP!P$36:P$39)+SUMIF('OTH EXP'!$A$10:$A$32,$A19,'OTH EXP'!H$10:H$32))","v":0},{"$f":"(SUMIF(ASSIGN!$A$9:$A$40,$A19,ASSIGN!O$9:O$40)*(COMP!K$70+COMP!K$76)+SUMIF(COMP!$A$35:$A$38,$A19,COMP!L$36:L$39)+SUMIF(COMP!$A$35:$A$38,$A19,COMP!Q$36:Q$39)+SUMIF('OTH EXP'!$A$10:$A$32,$A19,'OTH EXP'!I$10:I$32))","v":0},{"$f":"(SUMIF(ASSIGN!$A$9:$A$40,$A19,ASSIGN!P$9:P$40)*(COMP!L$70+COMP!L$76)+SUMIF(COMP!$A$35:$A$38,$A19,COMP!M$36:M$39)+SUMIF(COMP!$A$35:$A$38,$A19,COMP!R$36:R$39)+SUMIF('OTH EXP'!$A$10:$A$32,$A19,'OTH EXP'!J$10:J$32))","v":0},{"$f":"(SUMIF(ASSIGN!$A$9:$A$40,$A19,ASSIGN!Q$9:Q$40)*(COMP!M$70+COMP!M$76)+SUMIF(COMP!$A$35:$A$38,$A19,COMP!N$36:N$39)+SUMIF(COMP!$A$35:$A$38,$A19,COMP!S$36:S$39)+SUMIF('OTH EXP'!$A$10:$A$32,$A19,'OTH EXP'!K$10:K$32))","v":0}]
["ACHGrant","Grant",null,"Direct Expense Support",null,null,null,"ACH",{"$f":"(SUMIF(ASSIGN!$A$9:$A$40,$A20,ASSIGN!M$9:M$40)*(COMP!I$70+COMP!I$76)+SUMIF(COMP!$A$35:$A$38,$A20,COMP!J$36:J$39)+SUMIF(COMP!$A$35:$A$38,$A20,COMP!O$36:O$39)+SUMIF('OTH EXP'!$A$10:$A$32,$A20,'OTH EXP'!G$10:G$32))","v":0},{"$f":"(SUMIF(ASSIGN!$A$9:$A$40,$A20,ASSIGN!N$9:N$40)*(COMP!J$70+COMP!J$76)+SUMIF(COMP!$A$35:$A$38,$A20,COMP!K$36:K$39)+SUMIF(COMP!$A$35:$A$38,$A20,COMP!P$36:P$39)+SUMIF('OTH EXP'!$A$10:$A$32,$A20,'OTH EXP'!H$10:H$32))","v":0},{"$f":"(SUMIF(ASSIGN!$A$9:$A$40,$A20,ASSIGN!O$9:O$40)*(COMP!K$70+COMP!K$76)+SUMIF(COMP!$A$35:$A$38,$A20,COMP!L$36:L$39)+SUMIF(COMP!$A$35:$A$38,$A20,COMP!Q$36:Q$39)+SUMIF('OTH EXP'!$A$10:$A$32,$A20,'OTH EXP'!I$10:I$32))","v":0},{"$f":"(SUMIF(ASSIGN!$A$9:$A$40,$A20,ASSIGN!P$9:P$40)*(COMP!L$70+COMP!L$76)+SUMIF(COMP!$A$35:$A$38,$A20,COMP!M$36:M$39)+SUMIF(COMP!$A$35:$A$38,$A20,COMP!R$36:R$39)+SUMIF('OTH EXP'!$A$10:$A$32,$A20,'OTH EXP'!J$10:J$32))","v":0},{"$f":"(SUMIF(ASSIGN!$A$9:$A$40,$A20,ASSIGN!Q$9:Q$40)*(COMP!M$70+COMP!M$76)+SUMIF(COMP!$A$35:$A$38,$A20,COMP!N$36:N$39)+SUMIF(COMP!$A$35:$A$38,$A20,COMP!S$36:S$39)+SUMIF('OTH EXP'!$A$10:$A$32,$A20,'OTH EXP'!K$10:K$32))","v":0}]
[{"$f":"H21&B21","v":"ACHContract"},"Contract",null,"Direct Expense Support",null,null,null,"ACH",{"$f":"(SUMIF(ASSIGN!$A$9:$A$40,$A21,ASSIGN!M$9:M$40)*(COMP!I$70+COMP!I$76)+SUMIF(COMP!$A$35:$A$38,$A21,COMP!J$36:J$39)+SUMIF(COMP!$A$35:$A$38,$A21,COMP!O$36:O$39)+SUMIF('OTH EXP'!$A$10:$A$32,$A21,'OTH EXP'!G$10:G$32))","v":0},{"$f":"(SUMIF(ASSIGN!$A$9:$A$40,$A21,ASSIGN!N$9:N$40)*(COMP!J$70+COMP!J$76)+SUMIF(COMP!$A$35:$A$38,$A21,COMP!K$36:K$39)+SUMIF(COMP!$A$35:$A$38,$A21,COMP!P$36:P$39)+SUMIF('OTH EXP'!$A$10:$A$32,$A21,'OTH EXP'!H$10:H$32))","v":0},{"$f":"(SUMIF(ASSIGN!$A$9:$A$40,$A21,ASSIGN!O$9:O$40)*(COMP!K$70+COMP!K$76)+SUMIF(COMP!$A$35:$A$38,$A21,COMP!L$36:L$39)+SUMIF(COMP!$A$35:$A$38,$A21,COMP!Q$36:Q$39)+SUMIF('OTH EXP'!$A$10:$A$32,$A21,'OTH EXP'!I$10:I$32))","v":0},{"$f":"(SUMIF(ASSIGN!$A$9:$A$40,$A21,ASSIGN!P$9:P$40)*(COMP!L$70+COMP!L$76)+SUMIF(COMP!$A$35:$A$38,$A21,COMP!M$36:M$39)+SUMIF(COMP!$A$35:$A$38,$A21,COMP!R$36:R$39)+SUMIF('OTH EXP'!$A$10:$A$32,$A21,'OTH EXP'!J$10:J$32))","v":0},{"$f":"(SUMIF(ASSIGN!$A$9:$A$40,$A21,ASSIGN!Q$9:Q$40)*(COMP!M$70+COMP!M$76)+SUMIF(COMP!$A$35:$A$38,$A21,COMP!N$36:N$39)+SUMIF(COMP!$A$35:$A$38,$A21,COMP!S$36:S$39)+SUMIF('OTH EXP'!$A$10:$A$32,$A21,'OTH EXP'!K$10:K$32))","v":0}]
["ACHFoundation","Foundation",null,"Direct Expense Support",null,null,null,"ACH",{"$f":"(SUMIF(ASSIGN!$A$9:$A$40,$A22,ASSIGN!M$9:M$40)*(COMP!I$70+COMP!I$76)+SUMIF(COMP!$A$35:$A$38,$A22,COMP!J$36:J$39)+SUMIF(COMP!$A$35:$A$38,$A22,COMP!O$36:O$39)+SUMIF('OTH EXP'!$A$10:$A$32,$A22,'OTH EXP'!G$10:G$32))","v":0},{"$f":"(SUMIF(ASSIGN!$A$9:$A$40,$A22,ASSIGN!N$9:N$40)*(COMP!J$70+COMP!J$76)+SUMIF(COMP!$A$35:$A$38,$A22,COMP!K$36:K$39)+SUMIF(COMP!$A$35:$A$38,$A22,COMP!P$36:P$39)+SUMIF('OTH EXP'!$A$10:$A$32,$A22,'OTH EXP'!H$10:H$32))","v":0},{"$f":"(SUMIF(ASSIGN!$A$9:$A$40,$A22,ASSIGN!O$9:O$40)*(COMP!K$70+COMP!K$76)+SUMIF(COMP!$A$35:$A$38,$A22,COMP!L$36:L$39)+SUMIF(COMP!$A$35:$A$38,$A22,COMP!Q$36:Q$39)+SUMIF('OTH EXP'!$A$10:$A$32,$A22,'OTH EXP'!I$10:I$32))","v":0},{"$f":"(SUMIF(ASSIGN!$A$9:$A$40,$A22,ASSIGN!P$9:P$40)*(COMP!L$70+COMP!L$76)+SUMIF(COMP!$A$35:$A$38,$A22,COMP!M$36:M$39)+SUMIF(COMP!$A$35:$A$38,$A22,COMP!R$36:R$39)+SUMIF('OTH EXP'!$A$10:$A$32,$A22,'OTH EXP'!J$10:J$32))","v":0},{"$f":"(SUMIF(ASSIGN!$A$9:$A$40,$A22,ASSIGN!Q$9:Q$40)*(COMP!M$70+COMP!M$76)+SUMIF(COMP!$A$35:$A$38,$A22,COMP!N$36:N$39)+SUMIF(COMP!$A$35:$A$38,$A22,COMP!S$36:S$39)+SUMIF('OTH EXP'!$A$10:$A$32,$A22,'OTH EXP'!K$10:K$32))","v":0}]
["ACHGift","Gift",null,"Direct Expense Support",null,null,null,"ACH",{"$f":"(SUMIF(ASSIGN!$A$9:$A$40,$A23,ASSIGN!M$9:M$40)*(COMP!I$70+COMP!I$76)+SUMIF(COMP!$A$35:$A$38,$A23,COMP!J$36:J$39)+SUMIF(COMP!$A$35:$A$38,$A23,COMP!O$36:O$39)+SUMIF('OTH EXP'!$A$10:$A$32,$A23,'OTH EXP'!G$10:G$32))","v":0},{"$f":"(SUMIF(ASSIGN!$A$9:$A$40,$A23,ASSIGN!N$9:N$40)*(COMP!J$70+COMP!J$76)+SUMIF(COMP!$A$35:$A$38,$A23,COMP!K$36:K$39)+SUMIF(COMP!$A$35:$A$38,$A23,COMP!P$36:P$39)+SUMIF('OTH EXP'!$A$10:$A$32,$A23,'OTH EXP'!H$10:H$32))","v":0},{"$f":"(SUMIF(ASSIGN!$A$9:$A$40,$A23,ASSIGN!O$9:O$40)*(COMP!K$70+COMP!K$76)+SUMIF(COMP!$A$35:$A$38,$A23,COMP!L$36:L$39)+SUMIF(COMP!$A$35:$A$38,$A23,COMP!Q$36:Q$39)+SUMIF('OTH EXP'!$A$10:$A$32,$A23,'OTH EXP'!I$10:I$32))","v":0},{"$f":"(SUMIF(ASSIGN!$A$9:$A$40,$A23,ASSIGN!P$9:P$40)*(COMP!L$70+COMP!L$76)+SUMIF(COMP!$A$35:$A$38,$A23,COMP!M$36:M$39)+SUMIF(COMP!$A$35:$A$38,$A23,COMP!R$36:R$39)+SUMIF('OTH EXP'!$A$10:$A$32,$A23,'OTH EXP'!J$10:J$32))","v":0},{"$f":"(SUMIF(ASSIGN!$A$9:$A$40,$A23,ASSIGN!Q$9:Q$40)*(COMP!M$70+COMP!M$76)+SUMIF(COMP!$A$35:$A$38,$A23,COMP!N$36:N$39)+SUMIF(COMP!$A$35:$A$38,$A23,COMP!S$36:S$39)+SUMIF('OTH EXP'!$A$10:$A$32,$A23,'OTH EXP'!K$10:K$32))","v":0}]
["ACHOther","Other",null,"Direct Expense Support",null,null,null,"ACH",{"$f":"(SUMIF(ASSIGN!$A$9:$A$40,$A24,ASSIGN!M$9:M$40)*(COMP!I$70+COMP!I$76)+SUMIF(COMP!$A$35:$A$38,$A24,COMP!J$36:J$39)+SUMIF(COMP!$A$35:$A$38,$A24,COMP!O$36:O$39)+SUMIF('OTH EXP'!$A$10:$A$32,$A24,'OTH EXP'!G$10:G$32))","v":0},{"$f":"(SUMIF(ASSIGN!$A$9:$A$40,$A24,ASSIGN!N$9:N$40)*(COMP!J$70+COMP!J$76)+SUMIF(COMP!$A$35:$A$38,$A24,COMP!K$36:K$39)+SUMIF(COMP!$A$35:$A$38,$A24,COMP!P$36:P$39)+SUMIF('OTH EXP'!$A$10:$A$32,$A24,'OTH EXP'!H$10:H$32))","v":0},{"$f":"(SUMIF(ASSIGN!$A$9:$A$40,$A24,ASSIGN!O$9:O$40)*(COMP!K$70+COMP!K$76)+SUMIF(COMP!$A$35:$A$38,$A24,COMP!L$36:L$39)+SUMIF(COMP!$A$35:$A$38,$A24,COMP!Q$36:Q$39)+SUMIF('OTH EXP'!$A$10:$A$32,$A24,'OTH EXP'!I$10:I$32))","v":0},{"$f":"(SUMIF(ASSIGN!$A$9:$A$40,$A24,ASSIGN!P$9:P$40)*(COMP!L$70+COMP!L$76)+SUMIF(COMP!$A$35:$A$38,$A24,COMP!M$36:M$39)+SUMIF(COMP!$A$35:$A$38,$A24,COMP!R$36:R$39)+SUMIF('OTH EXP'!$A$10:$A$32,$A24,'OTH EXP'!J$10:J$32))","v":0},{"$f":"(SUMIF(ASSIGN!$A$9:$A$40,$A24,ASSIGN!Q$9:Q$40)*(COMP!M$70+COMP!M$76)+SUMIF(COMP!$A$35:$A$38,$A24,COMP!N$36:N$39)+SUMIF(COMP!$A$35:$A$38,$A24,COMP!S$36:S$39)+SUMIF('OTH EXP'!$A$10:$A$32,$A24,'OTH EXP'!K$10:K$32))","v":0}]
["INSTGrant","Grant",null,"Direct Expense Support",null,null,null,"INST",{"$f":"(SUMIF(ASSIGN!$A$9:$A$40,$A25,ASSIGN!M$9:M$40)*(COMP!I$70+COMP!I$76)+SUMIF(COMP!$A$35:$A$38,$A25,COMP!J$36:J$39)+SUMIF(COMP!$A$35:$A$38,$A25,COMP!O$36:O$39)+SUMIF('OTH EXP'!$A$10:$A$32,$A25,'OTH EXP'!G$10:G$32))","v":0},{"$f":"(SUMIF(ASSIGN!$A$9:$A$40,$A25,ASSIGN!N$9:N$40)*(COMP!J$70+COMP!J$76)+SUMIF(COMP!$A$35:$A$38,$A25,COMP!K$36:K$39)+SUMIF(COMP!$A$35:$A$38,$A25,COMP!P$36:P$39)+SUMIF('OTH EXP'!$A$10:$A$32,$A25,'OTH EXP'!H$10:H$32))","v":0},{"$f":"(SUMIF(ASSIGN!$A$9:$A$40,$A25,ASSIGN!O$9:O$40)*(COMP!K$70+COMP!K$76)+SUMIF(COMP!$A$35:$A$38,$A25,COMP!L$36:L$39)+SUMIF(COMP!$A$35:$A$38,$A25,COMP!Q$36:Q$39)+SUMIF('OTH EXP'!$A$10:$A$32,$A25,'OTH EXP'!I$10:I$32))","v":0},{"$f":"(SUMIF(ASSIGN!$A$9:$A$40,$A25,ASSIGN!P$9:P$40)*(COMP!L$70+COMP!L$76)+SUMIF(COMP!$A$35:$A$38,$A25,COMP!M$36:M$39)+SUMIF(COMP!$A$35:$A$38,$A25,COMP!R$36:R$39)+SUMIF('OTH EXP'!$A$10:$A$32,$A25,'OTH EXP'!J$10:J$32))","v":0},{"$f":"(SUMIF(ASSIGN!$A$9:$A$40,$A25,ASSIGN!Q$9:Q$40)*(COMP!M$70+COMP!M$76)+SUMIF(COMP!$A$35:$A$38,$A25,COMP!N$36:N$39)+SUMIF(COMP!$A$35:$A$38,$A25,COMP!S$36:S$39)+SUMIF('OTH EXP'!$A$10:$A$32,$A25,'OTH EXP'!K$10:K$32))","v":0}]
["INSTContract","Contract",null,"Direct Expense Support",null,null,null,"INST",{"$f":"(SUMIF(ASSIGN!$A$9:$A$40,$A26,ASSIGN!M$9:M$40)*(COMP!I$70+COMP!I$76)+SUMIF(COMP!$A$35:$A$38,$A26,COMP!J$36:J$39)+SUMIF(COMP!$A$35:$A$38,$A26,COMP!O$36:O$39)+SUMIF('OTH EXP'!$A$10:$A$32,$A26,'OTH EXP'!G$10:G$32))","v":0},{"$f":"(SUMIF(ASSIGN!$A$9:$A$40,$A26,ASSIGN!N$9:N$40)*(COMP!J$70+COMP!J$76)+SUMIF(COMP!$A$35:$A$38,$A26,COMP!K$36:K$39)+SUMIF(COMP!$A$35:$A$38,$A26,COMP!P$36:P$39)+SUMIF('OTH EXP'!$A$10:$A$32,$A26,'OTH EXP'!H$10:H$32))","v":0},{"$f":"(SUMIF(ASSIGN!$A$9:$A$40,$A26,ASSIGN!O$9:O$40)*(COMP!K$70+COMP!K$76)+SUMIF(COMP!$A$35:$A$38,$A26,COMP!L$36:L$39)+SUMIF(COMP!$A$35:$A$38,$A26,COMP!Q$36:Q$39)+SUMIF('OTH EXP'!$A$10:$A$32,$A26,'OTH EXP'!I$10:I$32))","v":0},{"$f":"(SUMIF(ASSIGN!$A$9:$A$40,$A26,ASSIGN!P$9:P$40)*(COMP!L$70+COMP!L$76)+SUMIF(COMP!$A$35:$A$38,$A26,COMP!M$36:M$39)+SUMIF(COMP!$A$35:$A$38,$A26,COMP!R$36:R$39)+SUMIF('OTH EXP'!$A$10:$A$32,$A26,'OTH EXP'!J$10:J$32))","v":0},{"$f":"(SUMIF(ASSIGN!$A$9:$A$40,$A26,ASSIGN!Q$9:Q$40)*(COMP!M$70+COMP!M$76)+SUMIF(COMP!$A$35:$A$38,$A26,COMP!N$36:N$39)+SUMIF(COMP!$A$35:$A$38,$A26,COMP!S$36:S$39)+SUMIF('OTH EXP'!$A$10:$A$32,$A26,'OTH EXP'!K$10:K$32))","v":0}]
["INSTFoundation","Foundation",null,"Direct Expense Support",null,null,null,"INST",{"$f":"(SUMIF(ASSIGN!$A$9:$A$40,$A27,ASSIGN!M$9:M$40)*(COMP!I$70+COMP!I$76)+SUMIF(COMP!$A$35:$A$38,$A27,COMP!J$36:J$39)+SUMIF(COMP!$A$35:$A$38,$A27,COMP!O$36:O$39)+SUMIF('OTH EXP'!$A$10:$A$32,$A27,'OTH EXP'!G$10:G$32))","v":0},{"$f":"(SUMIF(ASSIGN!$A$9:$A$40,$A27,ASSIGN!N$9:N$40)*(COMP!J$70+COMP!J$76)+SUMIF(COMP!$A$35:$A$38,$A27,COMP!K$36:K$39)+SUMIF(COMP!$A$35:$A$38,$A27,COMP!P$36:P$39)+SUMIF('OTH EXP'!$A$10:$A$32,$A27,'OTH EXP'!H$10:H$32))","v":0},{"$f":"(SUMIF(ASSIGN!$A$9:$A$40,$A27,ASSIGN!O$9:O$40)*(COMP!K$70+COMP!K$76)+SUMIF(COMP!$A$35:$A$38,$A27,COMP!L$36:L$39)+SUMIF(COMP!$A$35:$A$38,$A27,COMP!Q$36:Q$39)+SUMIF('OTH EXP'!$A$10:$A$32,$A27,'OTH EXP'!I$10:I$32))","v":0},{"$f":"(SUMIF(ASSIGN!$A$9:$A$40,$A27,ASSIGN!P$9:P$40)*(COMP!L$70+COMP!L$76)+SUMIF(COMP!$A$35:$A$38,$A27,COMP!M$36:M$39)+SUMIF(COMP!$A$35:$A$38,$A27,COMP!R$36:R$39)+SUMIF('OTH EXP'!$A$10:$A$32,$A27,'OTH EXP'!J$10:J$32))","v":0},{"$f":"(SUMIF(ASSIGN!$A$9:$A$40,$A27,ASSIGN!Q$9:Q$40)*(COMP!M$70+COMP!M$76)+SUMIF(COMP!$A$35:$A$38,$A27,COMP!N$36:N$39)+SUMIF(COMP!$A$35:$A$38,$A27,COMP!S$36:S$39)+SUMIF('OTH EXP'!$A$10:$A$32,$A27,'OTH EXP'!K$10:K$32))","v":0}]
["INSTGift","Gift",null,"Direct Expense Support",null,null,null,"INST",{"$f":"(SUMIF(ASSIGN!$A$9:$A$40,$A28,ASSIGN!M$9:M$40)*(COMP!I$70+COMP!I$76)+SUMIF(COMP!$A$35:$A$38,$A28,COMP!J$36:J$39)+SUMIF(COMP!$A$35:$A$38,$A28,COMP!O$36:O$39)+SUMIF('OTH EXP'!$A$10:$A$32,$A28,'OTH EXP'!G$10:G$32))","v":0},{"$f":"(SUMIF(ASSIGN!$A$9:$A$40,$A28,ASSIGN!N$9:N$40)*(COMP!J$70+COMP!J$76)+SUMIF(COMP!$A$35:$A$38,$A28,COMP!K$36:K$39)+SUMIF(COMP!$A$35:$A$38,$A28,COMP!P$36:P$39)+SUMIF('OTH EXP'!$A$10:$A$32,$A28,'OTH EXP'!H$10:H$32))","v":0},{"$f":"(SUMIF(ASSIGN!$A$9:$A$40,$A28,ASSIGN!O$9:O$40)*(COMP!K$70+COMP!K$76)+SUMIF(COMP!$A$35:$A$38,$A28,COMP!L$36:L$39)+SUMIF(COMP!$A$35:$A$38,$A28,COMP!Q$36:Q$39)+SUMIF('OTH EXP'!$A$10:$A$32,$A28,'OTH EXP'!I$10:I$32))","v":0},{"$f":"(SUMIF(ASSIGN!$A$9:$A$40,$A28,ASSIGN!P$9:P$40)*(COMP!L$70+COMP!L$76)+SUMIF(COMP!$A$35:$A$38,$A28,COMP!M$36:M$39)+SUMIF(COMP!$A$35:$A$38,$A28,COMP!R$36:R$39)+SUMIF('OTH EXP'!$A$10:$A$32,$A28,'OTH EXP'!J$10:J$32))","v":0},{"$f":"(SUMIF(ASSIGN!$A$9:$A$40,$A28,ASSIGN!Q$9:Q$40)*(COMP!M$70+COMP!M$76)+SUMIF(COMP!$A$35:$A$38,$A28,COMP!N$36:N$39)+SUMIF(COMP!$A$35:$A$38,$A28,COMP!S$36:S$39)+SUMIF('OTH EXP'!$A$10:$A$32,$A28,'OTH EXP'!K$10:K$32))","v":0}]
["INSTBudget","Budget",null,"Direct Expense Support",null,null,null,"INST",{"$f":"(SUMIF(ASSIGN!$A$9:$A$40,$A29,ASSIGN!M$9:M$40)*(COMP!I$70+COMP!I$76)+SUMIF(COMP!$A$35:$A$38,$A29,COMP!J$36:J$39)+SUMIF(COMP!$A$35:$A$38,$A29,COMP!O$36:O$39)+SUMIF('OTH EXP'!$A$10:$A$32,$A29,'OTH EXP'!G$10:G$32))","v":0},{"$f":"(SUMIF(ASSIGN!$A$9:$A$40,$A29,ASSIGN!N$9:N$40)*(COMP!J$70+COMP!J$76)+SUMIF(COMP!$A$35:$A$38,$A29,COMP!K$36:K$39)+SUMIF(COMP!$A$35:$A$38,$A29,COMP!P$36:P$39)+SUMIF('OTH EXP'!$A$10:$A$32,$A29,'OTH EXP'!H$10:H$32))","v":0},{"$f":"(SUMIF(ASSIGN!$A$9:$A$40,$A29,ASSIGN!O$9:O$40)*(COMP!K$70+COMP!K$76)+SUMIF(COMP!$A$35:$A$38,$A29,COMP!L$36:L$39)+SUMIF(COMP!$A$35:$A$38,$A29,COMP!Q$36:Q$39)+SUMIF('OTH EXP'!$A$10:$A$32,$A29,'OTH EXP'!I$10:I$32))","v":0},{"$f":"(SUMIF(ASSIGN!$A$9:$A$40,$A29,ASSIGN!P$9:P$40)*(COMP!L$70+COMP!L$76)+SUMIF(COMP!$A$35:$A$38,$A29,COMP!M$36:M$39)+SUMIF(COMP!$A$35:$A$38,$A29,COMP!R$36:R$39)+SUMIF('OTH EXP'!$A$10:$A$32,$A29,'OTH EXP'!J$10:J$32))","v":0},{"$f":"(SUMIF(ASSIGN!$A$9:$A$40,$A29,ASSIGN!Q$9:Q$40)*(COMP!M$70+COMP!M$76)+SUMIF(COMP!$A$35:$A$38,$A29,COMP!N$36:N$39)+SUMIF(COMP!$A$35:$A$38,$A29,COMP!S$36:S$39)+SUMIF('OTH EXP'!$A$10:$A$32,$A29,'OTH EXP'!K$10:K$32))","v":0}]
["INSTOther","Other",null,"Direct Expense Support",null,null,null,"INST",{"$f":"(SUMIF(ASSIGN!$A$9:$A$40,$A30,ASSIGN!M$9:M$40)*(COMP!I$70+COMP!I$76)+SUMIF(COMP!$A$35:$A$38,$A30,COMP!J$36:J$39)+SUMIF(COMP!$A$35:$A$38,$A30,COMP!O$36:O$39)+SUMIF('OTH EXP'!$A$10:$A$32,$A30,'OTH EXP'!G$10:G$32))","v":0},{"$f":"(SUMIF(ASSIGN!$A$9:$A$40,$A30,ASSIGN!N$9:N$40)*(COMP!J$70+COMP!J$76)+SUMIF(COMP!$A$35:$A$38,$A30,COMP!K$36:K$39)+SUMIF(COMP!$A$35:$A$38,$A30,COMP!P$36:P$39)+SUMIF('OTH EXP'!$A$10:$A$32,$A30,'OTH EXP'!H$10:H$32))","v":0},{"$f":"(SUMIF(ASSIGN!$A$9:$A$40,$A30,ASSIGN!O$9:O$40)*(COMP!K$70+COMP!K$76)+SUMIF(COMP!$A$35:$A$38,$A30,COMP!L$36:L$39)+SUMIF(COMP!$A$35:$A$38,$A30,COMP!Q$36:Q$39)+SUMIF('OTH EXP'!$A$10:$A$32,$A30,'OTH EXP'!I$10:I$32))","v":0},{"$f":"(SUMIF(ASSIGN!$A$9:$A$40,$A30,ASSIGN!P$9:P$40)*(COMP!L$70+COMP!L$76)+SUMIF(COMP!$A$35:$A$38,$A30,COMP!M$36:M$39)+SUMIF(COMP!$A$35:$A$38,$A30,COMP!R$36:R$39)+SUMIF('OTH EXP'!$A$10:$A$32,$A30,'OTH EXP'!J$10:J$32))","v":0},{"$f":"(SUMIF(ASSIGN!$A$9:$A$40,$A30,ASSIGN!Q$9:Q$40)*(COMP!M$70+COMP!M$76)+SUMIF(COMP!$A$35:$A$38,$A30,COMP!N$36:N$39)+SUMIF(COMP!$A$35:$A$38,$A30,COMP!S$36:S$39)+SUMIF('OTH EXP'!$A$10:$A$32,$A30,'OTH EXP'!K$10:K$32))","v":0}]
["OTHERGrant","Grant",null,"Direct Expense Support",null,null,null,"OTHER",{"$f":"(SUMIF(ASSIGN!$A$9:$A$40,$A31,ASSIGN!M$9:M$40)*(COMP!I$70+COMP!I$76)+SUMIF(COMP!$A$35:$A$38,$A31,COMP!J$36:J$39)+SUMIF(COMP!$A$35:$A$38,$A31,COMP!O$36:O$39)+SUMIF('OTH EXP'!$A$10:$A$32,$A31,'OTH EXP'!G$10:G$32))","v":0},{"$f":"(SUMIF(ASSIGN!$A$9:$A$40,$A31,ASSIGN!N$9:N$40)*(COMP!J$70+COMP!J$76)+SUMIF(COMP!$A$35:$A$38,$A31,COMP!K$36:K$39)+SUMIF(COMP!$A$35:$A$38,$A31,COMP!P$36:P$39)+SUMIF('OTH EXP'!$A$10:$A$32,$A31,'OTH EXP'!H$10:H$32))","v":0},{"$f":"(SUMIF(ASSIGN!$A$9:$A$40,$A31,ASSIGN!O$9:O$40)*(COMP!K$70+COMP!K$76)+SUMIF(COMP!$A$35:$A$38,$A31,COMP!L$36:L$39)+SUMIF(COMP!$A$35:$A$38,$A31,COMP!Q$36:Q$39)+SUMIF('OTH EXP'!$A$10:$A$32,$A31,'OTH EXP'!I$10:I$32))","v":0},{"$f":"(SUMIF(ASSIGN!$A$9:$A$40,$A31,ASSIGN!P$9:P$40)*(COMP!L$70+COMP!L$76)+SUMIF(COMP!$A$35:$A$38,$A31,COMP!M$36:M$39)+SUMIF(COMP!$A$35:$A$38,$A31,COMP!R$36:R$39)+SUMIF('OTH EXP'!$A$10:$A$32,$A31,'OTH EXP'!J$10:J$32))","v":0},{"$f":"(SUMIF(ASSIGN!$A$9:$A$40,$A31,ASSIGN!Q$9:Q$40)*(COMP!M$70+COMP!M$76)+SUMIF(COMP!$A$35:$A$38,$A31,COMP!N$36:N$39)+SUMIF(COMP!$A$35:$A$38,$A31,COMP!S$36:S$39)+SUMIF('OTH EXP'!$A$10:$A$32,$A31,'OTH EXP'!K$10:K$32))","v":0}]
["OTHERContract","Contract",null,"Direct Expense Support",null,null,null,"OTHER",{"$f":"(SUMIF(ASSIGN!$A$9:$A$40,$A32,ASSIGN!M$9:M$40)*(COMP!I$70+COMP!I$76)+SUMIF(COMP!$A$35:$A$38,$A32,COMP!J$36:J$39)+SUMIF(COMP!$A$35:$A$38,$A32,COMP!O$36:O$39)+SUMIF('OTH EXP'!$A$10:$A$32,$A32,'OTH EXP'!G$10:G$32))","v":0},{"$f":"(SUMIF(ASSIGN!$A$9:$A$40,$A32,ASSIGN!N$9:N$40)*(COMP!J$70+COMP!J$76)+SUMIF(COMP!$A$35:$A$38,$A32,COMP!K$36:K$39)+SUMIF(COMP!$A$35:$A$38,$A32,COMP!P$36:P$39)+SUMIF('OTH EXP'!$A$10:$A$32,$A32,'OTH EXP'!H$10:H$32))","v":0},{"$f":"(SUMIF(ASSIGN!$A$9:$A$40,$A32,ASSIGN!O$9:O$40)*(COMP!K$70+COMP!K$76)+SUMIF(COMP!$A$35:$A$38,$A32,COMP!L$36:L$39)+SUMIF(COMP!$A$35:$A$38,$A32,COMP!Q$36:Q$39)+SUMIF('OTH EXP'!$A$10:$A$32,$A32,'OTH EXP'!I$10:I$32))","v":0},{"$f":"(SUMIF(ASSIGN!$A$9:$A$40,$A32,ASSIGN!P$9:P$40)*(COMP!L$70+COMP!L$76)+SUMIF(COMP!$A$35:$A$38,$A32,COMP!M$36:M$39)+SUMIF(COMP!$A$35:$A$38,$A32,COMP!R$36:R$39)+SUMIF('OTH EXP'!$A$10:$A$32,$A32,'OTH EXP'!J$10:J$32))","v":0},{"$f":"(SUMIF(ASSIGN!$A$9:$A$40,$A32,ASSIGN!Q$9:Q$40)*(COMP!M$70+COMP!M$76)+SUMIF(COMP!$A$35:$A$38,$A32,COMP!N$36:N$39)+SUMIF(COMP!$A$35:$A$38,$A32,COMP!S$36:S$39)+SUMIF('OTH EXP'!$A$10:$A$32,$A32,'OTH EXP'!K$10:K$32))","v":0}]
["OTHERFoundation","Foundation",null,"Direct Expense Support",null,null,null,"OTHER",{"$f":"(SUMIF(ASSIGN!$A$9:$A$40,$A33,ASSIGN!M$9:M$40)*(COMP!I$70+COMP!I$76)+SUMIF(COMP!$A$35:$A$38,$A33,COMP!J$36:J$39)+SUMIF(COMP!$A$35:$A$38,$A33,COMP!O$36:O$39)+SUMIF('OTH EXP'!$A$10:$A$32,$A33,'OTH EXP'!G$10:G$32))","v":0},{"$f":"(SUMIF(ASSIGN!$A$9:$A$40,$A33,ASSIGN!N$9:N$40)*(COMP!J$70+COMP!J$76)+SUMIF(COMP!$A$35:$A$38,$A33,COMP!K$36:K$39)+SUMIF(COMP!$A$35:$A$38,$A33,COMP!P$36:P$39)+SUMIF('OTH EXP'!$A$10:$A$32,$A33,'OTH EXP'!H$10:H$32))","v":0},{"$f":"(SUMIF(ASSIGN!$A$9:$A$40,$A33,ASSIGN!O$9:O$40)*(COMP!K$70+COMP!K$76)+SUMIF(COMP!$A$35:$A$38,$A33,COMP!L$36:L$39)+SUMIF(COMP!$A$35:$A$38,$A33,COMP!Q$36:Q$39)+SUMIF('OTH EXP'!$A$10:$A$32,$A33,'OTH EXP'!I$10:I$32))","v":0},{"$f":"(SUMIF(ASSIGN!$A$9:$A$40,$A33,ASSIGN!P$9:P$40)*(COMP!L$70+COMP!L$76)+SUMIF(COMP!$A$35:$A$38,$A33,COMP!M$36:M$39)+SUMIF(COMP!$A$35:$A$38,$A33,COMP!R$36:R$39)+SUMIF('OTH EXP'!$A$10:$A$32,$A33,'OTH EXP'!J$10:J$32))","v":0},{"$f":"(SUMIF(ASSIGN!$A$9:$A$40,$A33,ASSIGN!Q$9:Q$40)*(COMP!M$70+COMP!M$76)+SUMIF(COMP!$A$35:$A$38,$A33,COMP!N$36:N$39)+SUMIF(COMP!$A$35:$A$38,$A33,COMP!S$36:S$39)+SUMIF('OTH EXP'!$A$10:$A$32,$A33,'OTH EXP'!K$10:K$32))","v":0}]
["OTHERGift","Gift",null,"Direct Expense Support",null,null,null,"OTHER",{"$f":"(SUMIF(ASSIGN!$A$9:$A$40,$A34,ASSIGN!M$9:M$40)*(COMP!I$70+COMP!I$76)+SUMIF(COMP!$A$35:$A$38,$A34,COMP!J$36:J$39)+SUMIF(COMP!$A$35:$A$38,$A34,COMP!O$36:O$39)+SUMIF('OTH EXP'!$A$10:$A$32,$A34,'OTH EXP'!G$10:G$32))","v":0},{"$f":"(SUMIF(ASSIGN!$A$9:$A$40,$A34,ASSIGN!N$9:N$40)*(COMP!J$70+COMP!J$76)+SUMIF(COMP!$A$35:$A$38,$A34,COMP!K$36:K$39)+SUMIF(COMP!$A$35:$A$38,$A34,COMP!P$36:P$39)+SUMIF('OTH EXP'!$A$10:$A$32,$A34,'OTH EXP'!H$10:H$32))","v":0},{"$f":"(SUMIF(ASSIGN!$A$9:$A$40,$A34,ASSIGN!O$9:O$40)*(COMP!K$70+COMP!K$76)+SUMIF(COMP!$A$35:$A$38,$A34,COMP!L$36:L$39)+SUMIF(COMP!$A$35:$A$38,$A34,COMP!Q$36:Q$39)+SUMIF('OTH EXP'!$A$10:$A$32,$A34,'OTH EXP'!I$10:I$32))","v":0},{"$f":"(SUMIF(ASSIGN!$A$9:$A$40,$A34,ASSIGN!P$9:P$40)*(COMP!L$70+COMP!L$76)+SUMIF(COMP!$A$35:$A$38,$A34,COMP!M$36:M$39)+SUMIF(COMP!$A$35:$A$38,$A34,COMP!R$36:R$39)+SUMIF('OTH EXP'!$A$10:$A$32,$A34,'OTH EXP'!J$10:J$32))","v":0},{"$f":"(SUMIF(ASSIGN!$A$9:$A$40,$A34,ASSIGN!Q$9:Q$40)*(COMP!M$70+COMP!M$76)+SUMIF(COMP!$A$35:$A$38,$A34,COMP!N$36:N$39)+SUMIF(COMP!$A$35:$A$38,$A34,COMP!S$36:S$39)+SUMIF('OTH EXP'!$A$10:$A$32,$A34,'OTH EXP'!K$10:K$32))","v":0}]
["OTHERBudget","Budget",null,"Direct Expense Support",null,null,null,"OTHER",{"$f":"(SUMIF(ASSIGN!$A$9:$A$40,$A35,ASSIGN!M$9:M$40)*(COMP!I$70+COMP!I$76)+SUMIF(COMP!$A$35:$A$38,$A35,COMP!J$36:J$39)+SUMIF(COMP!$A$35:$A$38,$A35,COMP!O$36:O$39)+SUMIF('OTH EXP'!$A$10:$A$32,$A35,'OTH EXP'!G$10:G$32))","v":0},{"$f":"(SUMIF(ASSIGN!$A$9:$A$40,$A35,ASSIGN!N$9:N$40)*(COMP!J$70+COMP!J$76)+SUMIF(COMP!$A$35:$A$38,$A35,COMP!K$36:K$39)+SUMIF(COMP!$A$35:$A$38,$A35,COMP!P$36:P$39)+SUMIF('OTH EXP'!$A$10:$A$32,$A35,'OTH EXP'!H$10:H$32))","v":0},{"$f":"(SUMIF(ASSIGN!$A$9:$A$40,$A35,ASSIGN!O$9:O$40)*(COMP!K$70+COMP!K$76)+SUMIF(COMP!$A$35:$A$38,$A35,COMP!L$36:L$39)+SUMIF(COMP!$A$35:$A$38,$A35,COMP!Q$36:Q$39)+SUMIF('OTH EXP'!$A$10:$A$32,$A35,'OTH EXP'!I$10:I$32))","v":0},{"$f":"(SUMIF(ASSIGN!$A$9:$A$40,$A35,ASSIGN!P$9:P$40)*(COMP!L$70+COMP!L$76)+SUMIF(COMP!$A$35:$A$38,$A35,COMP!M$36:M$39)+SUMIF(COMP!$A$35:$A$38,$A35,COMP!R$36:R$39)+SUMIF('OTH EXP'!$A$10:$A$32,$A35,'OTH EXP'!J$10:J$32))","v":0},{"$f":"(SUMIF(ASSIGN!$A$9:$A$40,$A35,ASSIGN!Q$9:Q$40)*(COMP!M$70+COMP!M$76)+SUMIF(COMP!$A$35:$A$38,$A35,COMP!N$36:N$39)+SUMIF(COMP!$A$35:$A$38,$A35,COMP!S$36:S$39)+SUMIF('OTH EXP'!$A$10:$A$32,$A35,'OTH EXP'!K$10:K$32))","v":0}]
["OTHEROther","Other",null,"Direct Expense Support",null,null,null,"OTHER",{"$f":"(SUMIF(ASSIGN!$A$9:$A$40,$A36,ASSIGN!M$9:M$40)*(COMP!I$70+COMP!I$76)+SUMIF(COMP!$A$35:$A$38,$A36,COMP!J$36:J$39)+SUMIF(COMP!$A$35:$A$38,$A36,COMP!O$36:O$39)+SUMIF('OTH EXP'!$A$10:$A$32,$A36,'OTH EXP'!G$10:G$32))","v":0},{"$f":"(SUMIF(ASSIGN!$A$9:$A$40,$A36,ASSIGN!N$9:N$40)*(COMP!J$70+COMP!J$76)+SUMIF(COMP!$A$35:$A$38,$A36,COMP!K$36:K$39)+SUMIF(COMP!$A$35:$A$38,$A36,COMP!P$36:P$39)+SUMIF('OTH EXP'!$A$10:$A$32,$A36,'OTH EXP'!H$10:H$32))","v":0},{"$f":"(SUMIF(ASSIGN!$A$9:$A$40,$A36,ASSIGN!O$9:O$40)*(COMP!K$70+COMP!K$76)+SUMIF(COMP!$A$35:$A$38,$A36,COMP!L$36:L$39)+SUMIF(COMP!$A$35:$A$38,$A36,COMP!Q$36:Q$39)+SUMIF('OTH EXP'!$A$10:$A$32,$A36,'OTH EXP'!I$10:I$32))","v":0},{"$f":"(SUMIF(ASSIGN!$A$9:$A$40,$A36,ASSIGN!P$9:P$40)*(COMP!L$70+COMP!L$76)+SUMIF(COMP!$A$35:$A$38,$A36,COMP!M$36:M$39)+SUMIF(COMP!$A$35:$A$38,$A36,COMP!R$36:R$39)+SUMIF('OTH EXP'!$A$10:$A$32,$A36,'OTH EXP'!J$10:J$32))","v":0},{"$f":"(SUMIF(ASSIGN!$A$9:$A$40,$A36,ASSIGN!Q$9:Q$40)*(COMP!M$70+COMP!M$76)+SUMIF(COMP!$A$35:$A$38,$A36,COMP!N$36:N$39)+SUMIF(COMP!$A$35:$A$38,$A36,COMP!S$36:S$39)+SUMIF('OTH EXP'!$A$10:$A$32,$A36,'OTH EXP'!K$10:K$32))","v":0}]
[null,{"$f":"SUM(O38:Q43)","v":0}]
["",null,null,null,null,null,null,null,0,{"$f":"+I38","v":0},{"$f":"+I38","v":0},{"$f":"+I38","v":0},{"$f":"+I38","v":0},null,{"$f":"IF(SUM($I38:$M38)<>0,IF(B38=0,1,0),0)","v":0},{"$f":"IF(SUM($I38:$M38)<>0,IF(D38=0,1,0),0)","v":0},{"$f":"IF(SUM($I38:$M38)<>0,IF(H38=0,1,0),0)","v":0}]
["",null,null,null,null,null,null,null,null,null,null,null,null,null,0,{"$f":"IF(SUM($I39:$M39)<>0,IF(D39=0,1,0),0)","v":0},0]
["",null,null,null,null,null,null,null,null,null,null,null,null,null,0,0,0]
["",null,null,null,null,null,null,null,null,null,null,null,null,null,0,0,0]
["",null,null,null,null,null,null,null,null,null,null,null,null,null,0,0,0]
["",null,null,null,null,null,null,null,null,null,null,null,null,null,0,0,0]
[null,null,null,null,null,null,null,"Total:",{"$f":"SUM(I10:I43)","v":0},{"$f":"SUM(J10:J43)","v":0},{"$f":"SUM(K10:K43)","v":0},{"$f":"SUM(L10:L43)","v":0},{"$f":"SUM(M10:M43)","v":0}]

{"sheet":"CLIN REV","index":11,"n_rows":221,"n_cols":16,"rows_kept":221,"cut":false,"hidden":false,"merged":[[0,4,1,7],[90,2,90,8],[90,11,90,13],[120,9,120,13],[121,9,125,13],[41,9,45,13],[40,9,40,13],[80,9,80,13],[10,1,10,9],[10,11,10,13],[50,2,50,8],[81,9,85,13],[50,11,50,13],[46,17,46,20],[50,17,53,20],[41,17,43,20],[202,9,202,13],[203,9,207,13],[128,1,128,9],[128,11,128,13],[158,9,158,13],[159,9,163,13],[172,1,172,9],[172,11,172,13]]}
["HIDE",{"$f":"COMP!B1","v":"0; [select]; [select] [select]; "},null,null,null,null,null,null,null,null,null,null,null,null,"HIDE","HIDE"]
[]
[]
[]
[]
[]
[]
[]
[null,null,null,null,null,null,null,null,null,null,null,null,null,null,{"$f":"SUM(O10:O209)","v":{"$error":"#DIV/0!"}}]
[null,"ICE PROFESSIONAL FEE REVENUE"]
[null,"Profile Data",null,null,null,null,null,null,null,null,null,"JFR Proforma"]
[null,"CPT","Description","Volume","Charge","Collections","wRVUs","Coll/wRVU","Coll Rate","wRVU/Count",null,"Dist","wRVUs","Collections"]
[null,"To add rows, copy one or more rows in the middle of the section, and \"insert copied cells\""]
[null,null,null,0,0,0,0,{"$f":"IF(G14=0,0,F14/G14)","v":0},{"$f":"IF(E14=0,0,F14/E14)","v":0},{"$f":"IF(D14=0,0,G14/D14)","v":0},null,{"$f":"G14/$G$39","v":{"$error":"#DIV/0!"}},{"$f":"$M$39*L14","v":{"$error":"#DIV/0!"}},{"$f":"M14*H14","v":{"$error":"#DIV/0!"}}]
[null,null,null,null,null,null,null,0,{"$f":"IF(E15=0,0,F15/E15)","v":0},{"$f":"IF(D15=0,0,G15/D15)","v":0},null,{"$f":"G15/$G$39","v":{"$error":"#DIV/0!"}},{"$f":"$M$39*L15","v":{"$error":"#DIV/0!"}},{"$f":"M15*H15","v":{"$error":"#DIV/0!"}}]
[null,null,null,null,null,null,null,0,0,0,null,{"$error":"#DIV/0!"},{"$error":"#DIV/0!"},{"$error":"#DIV/0!"}]
[null,null,null,null,null,null,null,0,0,0,null,{"$error":"#DIV/0!"},{"$error":"#DIV/0!"},{"$error":"#DIV/0!"}]
[null,null,null,null,null,null,null,0,0,0,null,{"$error":"#DIV/0!"},{"$error":"#DIV/0!"},{"$error":"#DIV/0!"}]
[null,null,null,null,null,null,null,0,0,0,null,{"$error":"#DIV/0!"},{"$error":"#DIV/0!"},{"$error":"#DIV/0!"}]
[null,null,null,null,null,null,null,0,0,0,null,{"$error":"#DIV/0!"},{"$error":"#DIV/0!"},{"$error":"#DIV/0!"}]
[null,null,null,null,null,null,null,0,0,0,null,{"$error":"#DIV/0!"},{"$error":"#DIV/0!"},{"$error":"#DIV/0!"}]
[null,null,null,null,null,null,null,0,0,0,null,{"$error":"#DIV/0!"},{"$error":"#DIV/0!"},{"$error":"#DIV/0!"}]
[null,null,null,null,null,null,null,0,0,0,null,{"$error":"#DIV/0!"},{"$error":"#DIV/0!"},{"$error":"#DIV/0!"}]
[null,null,null,null,null,null,null,{"$f":"IF(G24=0,0,F24/G24)","v":0},{"$f":"IF(E24=0,0,F24/E24)","v":0},{"$f":"IF(D24=0,0,G24/D24)","v":0},null,{"$error":"#DIV/0!"},{"$error":"#DIV/0!"},{"$f":"M24*H24","v":{"$error":"#DIV/0!"}}]
[null,null,null,null,null,null,null,0,0,0,null,{"$error":"#DIV/0!"},{"$error":"#DIV/0!"},{"$error":"#DIV/0!"}]
[null,null,null,null,null,null,null,0,0,0,null,{"$error":"#DIV/0!"},{"$error":"#DIV/0!"},{"$error":"#DIV/0!"}]
[null,null,null,null,null,null,null,0,0,0,null,{"$error":"#DIV/0!"},{"$error":"#DIV/0!"},{"$error":"#DIV/0!"}]
[null,null,null,null,null,null,null,0,0,0,null,{"$error":"#DIV/0!"},{"$error":"#DIV/0!"},{"$error":"#DIV/0!"}]
[null,null,null,null,null,null,null,0,0,0,null,{"$error":"#DIV/0!"},{"$error":"#DIV/0!"},{"$error":"#DIV/0!"}]
[null,null,null,null,null,null,null,0,0,0,null,{"$error":"#DIV/0!"},{"$error":"#DIV/0!"},{"$error":"#DIV/0!"}]
[null,null,null,null,null,null,null,0,0,0,null,{"$error":"#DIV/0!"},{"$error":"#DIV/0!"},{"$error":"#DIV/0!"}]
[null,null,null,null,null,null,null,0,0,0,null,{"$error":"#DIV/0!"},{"$error":"#DIV/0!"},{"$error":"#DIV/0!"}]
[null,null,null,null,null,null,null,0,0,0,null,{"$error":"#DIV/0!"},{"$error":"#DIV/0!"},{"$f":"M33*H33","v":{"$error":"#DIV/0!"}}]
[null,null,null,null,null,null,null,0,{"$f":"IF(E34=0,0,F34/E34)","v":0},{"$f":"IF(D34=0,0,G34/D34)","v":0},null,{"$error":"#DIV/0!"},{"$error":"#DIV/0!"},{"$f":"M34*H34","v":{"$error":"#DIV/0!"}}]
[null,null,null,null,null,null,null,0,0,0,null,{"$error":"#DIV/0!"},{"$error":"#DIV/0!"},{"$error":"#DIV/0!"}]
[null,null,null,null,null,null,null,0,0,0,null,{"$error":"#DIV/0!"},{"$error":"#DIV/0!"},{"$error":"#DIV/0!"}]
[null,null,null,null,null,null,null,0,0,0,null,{"$error":"#DIV/0!"},{"$error":"#DIV/0!"},{"$error":"#DIV/0!"}]
[null,null,null,null,null,null,null,{"$f":"IF(G38=0,0,F38/G38)","v":0},0,0,null,{"$error":"#DIV/0!"},{"$error":"#DIV/0!"},{"$error":"#DIV/0!"}]
[null,"Total",null,{"$f":"SUM(D14:D38)","v":0},{"$f":"SUM(E14:E38)","v":0},{"$f":"SUM(F14:F38)","v":0},{"$f":"SUM(G14:G38)","v":0},{"$f":"IF(G39=0,0,F39/G39)","v":0},0,0,null,{"$f":"SUM(L14:L38)","v":{"$error":"#DIV/0!"}},{"$f":"SUM(G14:G38)","v":0},0]
[]
[null,null,null,"Year 1","Year 2","Year 3","Year 4","Year 5","P&L","Incremental Revenue Explanation"]
[null,null,"Faculty Productivity",0.7,0.95,1,1,1]
[null,null,"Incremental Revenue",1,1,1,1,1]
[null,null,"Production wRVUs",{"$f":"D42*$M$39","v":0},{"$f":"E42*$M$39","v":0},0,0,0]
[{"$f":"I46","v":"ICE"},null,"Incremental wRVUs",{"$f":"D43*D44","v":0},{"$f":"E43*E44","v":0},0,0,0]
[{"$f":"I46&\"Clinical Pro Fees\"","v":"ICEClinical Pro Fees"},null,"Incremental Collections",{"$f":"D42*D43*$N$39","v":0},{"$f":"E42*E43*$N$39","v":0},{"$f":"F42*F43*$N$39","v":0},{"$f":"G42*G43*$N$39","v":0},{"$f":"H42*H43*$N$39","v":0},"ICE",null,null,null,null,null,{"$f":"IF(SUM(D46:H46)>0,IF(I46=0,1,0),0)","v":0}]
[null,null,"Pro Fees per RVU Ratio",{"$f":"D46/D45","v":{"$error":"#DIV/0!"}},{"$f":"E46/E45","v":{"$error":"#DIV/0!"}},{"$f":"F46/F45","v":{"$error":"#DIV/0!"}},{"$f":"G46/G45","v":{"$error":"#DIV/0!"}},{"$f":"H46/H45","v":{"$error":"#DIV/0!"}},null,null,null,null,null,null,{"$f":"H47-H39","v":{"$error":"#DIV/0!"}},{"$f":"IF(O47>0,1,0)","v":{"$error":"#DIV/0!"}}]
[]
[null,"Click on \"+\" to open ICE TECHNICAL CONTRIBUTION MARGIN section "]
[null,"ICE TECHNICAL CONTRIBUTION MARGIN - FROM DECISION SUPPORT REPORTS"]
[null,null,"Profile Data",null,null,null,null,null,null,null,null,"JFR Proforma"]
[null,null,"Description","Volume","Charge","Contr. Margin",null,"CM/Unit",null,null,null,"Volume",null,{"$f":"+F52","v":"Contr. Margin"}]
[null,null,"To add rows, copy one or more rows in the middle of the section, and \"insert copied cells\""]
[null,null,null,0,0,0,null,{"$f":"IF(D54=0,0,F54/D54)","v":0},null,null,null,{"$f":"D54","v":0},null,{"$f":"L54*H54","v":0}]
[null,null,null,null,null,null,null,{"$f":"IF(D55=0,0,F55/D55)","v":0},null,null,null,null,null,{"$f":"L55*H55","v":0}]
[null,null,null,null,null,null,null,0,null,null,null,null,null,0]
[null,null,null,null,null,null,null,0,null,null,null,null,null,0]
[null,null,null,null,null,null,null,0,null,null,null,null,null,0]
[null,null,null,null,null,null,null,0,null,null,null,null,null,0]
[null,null,null,null,null,null,null,0,null,null,null,null,null,0]
[null,null,null,null,null,null,null,0,null,null,null,null,null,0]
[null,null,null,null,null,null,null,0,null,null,null,null,null,0]
[null,null,null,null,null,null,null,0,null,null,null,null,null,0]
[null,null,null,null,null,null,null,0,null,null,null,null,null,0]
[null,null,null,null,null,null,null,0,null,null,null,null,null,0]
[null,null,null,null,null,null,null,0,null,null,null,null,null,0]
[null,null,null,null,null,null,null,0,null,null,null,null,null,0]
[null,null,null,null,null,null,null,0,null,null,null,null,null,0]
[null,null,null,null,null,null,null,0,null,null,null,null,null,0]
[null,null,null,null,null,null,null,0,null,null,null,null,null,0]
[null,null,null,null,null,null,null,0,null,null,null,null,null,0]
[null,null,null,null,null,null,null,0,null,null,null,null,null,0]
[null,null,null,null,null,null,null,0,null,null,null,null,null,0]
[null,null,null,null,null,null,null,0,null,null,null,null,null,0]
[null,null,null,null,null,null,null,0,null,null,null,null,null,0]
[null,null,null,null,null,null,null,0,null,null,null,null,null,0]
[null,null,null,null,null,null,null,0,null,null,null,null,null,0]
[null,null,null,null,null,null,null,0,null,null,null,null,null,0]
[null,"Total",null,{"$f":"SUM(D54:D78)","v":0},{"$f":"SUM(E54:E78)","v":0},{"$f":"SUM(F54:F78)","v":0},null,{"$f":"IF(G79=0,0,F79/G79)","v":0},null,null,null,{"$f":"SUM(L54:L78)","v":0},null,{"$f":"SUM(N54:N78)","v":0}]
[]
[null,null,null,"Year 1","Year 2","Year 3","Year 4","Year 5","P&L","Incremental Revenue Explanation"]
[null,null,"Faculty Productivity",0.7,0.95,1,1,1]
[null,null,"Incremental Revenue",1,1,1,1,1]
[null,null,"Production Units",{"$f":"D82*$L$79","v":0},{"$f":"E82*$L$79","v":0},0,0,0]
[null,null,"Incremental Units",{"$f":"D83*D84","v":0},{"$f":"E83*E84","v":0},{"$f":"F83*F84","v":0},{"$f":"G83*G84","v":0},{"$f":"H83*H84","v":0}]
[{"$f":"I86&\"Clinical Tech Fees\"","v":"ICEClinical Tech Fees"},null,"Incremental Revenue",{"$f":"D82*D83*$N$79","v":0},{"$f":"E82*E83*$N$79","v":0},0,0,0,"ICE",null,null,null,null,null,{"$f":"IF(SUM(D86:H86)>0,IF(I86=0,1,0),0)","v":0}]
[]
[]
[]
[null,"ICE DOWN STREAM CLINICAL REVENUE"]
[null,null,"Profile Data",null,null,null,null,null,null,null,null,"JFR Proforma"]
[null,null,"Description","Volume","Charge","Collections",null,"Coll/Unit","Coll Rate",null,null,"Volume",null,"Collections"]
[null,null,"To add rows, copy one or more rows in the middle of the section, and \"insert copied cells\""]
[null,null,null,null,null,null,null,{"$f":"IF(D94=0,0,F94/D94)","v":0},{"$f":"IF(E94=0,0,F94/E94)","v":0},null,null,null,null,{"$f":"L94*H94","v":0}]
[null,null,null,null,null,null,null,{"$f":"IF(D95=0,0,F95/D95)","v":0},{"$f":"IF(E95=0,0,F95/E95)","v":0},null,null,null,null,{"$f":"L95*H95","v":0}]
[null,null,null,null,null,null,null,0,0,null,null,null,null,0]
[null,null,null,null,null,null,null,0,0,null,null,null,null,0]
[null,null,null,null,null,null,null,0,0,null,null,null,null,0]
[null,null,null,null,null,null,null,0,0,null,null,null,null,0]
[null,null,null,null,null,null,null,0,0,null,null,null,null,0]
[null,null,null,null,null,null,null,0,0,null,null,null,null,0]
[null,null,null,null,null,null,null,0,0,null,null,null,null,0]
[null,null,null,null,null,null,null,0,0,null,null,null,null,0]
[null,null,null,null,null,null,null,0,0,null,null,null,null,0]
[null,null,null,null,null,null,null,0,0,null,null,null,null,0]
[null,null,null,null,null,null,null,0,0,null,null,null,null,0]
[null,null,null,null,null,null,null,0,0,null,null,null,null,0]
[null,null,null,null,null,null,null,0,0,null,null,null,null,0]
[null,null,null,null,null,null,null,0,0,null,null,null,null,0]
[null,null,null,null,null,null,null,0,0,null,null,null,null,0]
[null,null,null,null,null,null,null,0,0,null,null,null,null,0]
[null,null,null,null,null,null,null,0,0,null,null,null,null,0]
[null,null,null,null,null,null,null,0,0,null,null,null,null,0]
[null,null,null,null,null,null,null,0,0,null,null,null,null,0]
[null,null,null,null,null,null,null,0,0,null,null,null,null,0]
[null,null,null,null,null,null,null,0,0,null,null,null,null,0]
[null,null,null,null,null,null,null,0,0,null,null,null,null,0]
[null,null,null,null,null,null,null,0,0,null,null,null,null,0]
[null,"Total",null,{"$f":"SUM(D94:D118)","v":0},{"$f":"SUM(E94:E118)","v":0},{"$f":"SUM(F94:F118)","v":0},null,{"$f":"IF(G119=0,0,F119/G119)","v":0},0,null,null,{"$f":"SUM(L94:L118)","v":0},null,{"$f":"SUM(N94:N118)","v":0}]
[]
[null,null,null,"Year 1","Year 2","Year 3","Year 4","Year 5","P&L","Incremental Revenue Explanation"]
[null,null,"Faculty Productivity",1,1,1,1,1]
[null,null,"Incremental Revenue",1,1,1,1,1]
[null,null,"Production Units",{"$f":"D122*$L$119","v":0},{"$f":"E122*$L$119","v":0},0,0,0]
[null,null,"Incremental Units",{"$f":"D123*D124","v":0},{"$f":"E123*E124","v":0},0,0,0]
[{"$f":"I126&\"Down Stream Clinical Revenue\"","v":"ICEDown Stream Clinical Revenue"},null,"Incremental Collections",{"$f":"D122*D123*$N$79","v":0},{"$f":"E122*E123*$N$79","v":0},0,0,0,"ICE",null,null,null,null,null,{"$f":"IF(SUM(D126:H126)>0,IF(I126=0,1,0),0)","v":0}]
[null,"Click on \"+\" to open ICE Clinical Down Stream Revenue section"]
[null,"ACH PROFESSIONAL FEE REVENUE"]
[null,"Profile Data",null,null,null,null,null,null,null,null,null,"JFR Proforma"]
[null,"CPT","Description","Volume","Charge","Collections","wRVUs","Coll/wRVU","Coll Rate","wRVU/Count",null,"Dist","wRVUs","Collections"]
[null,"To add rows, copy one or more rows in the middle of the section, and \"insert copied cells\""]
[null,null,null,null,null,null,null,{"$f":"IF(G132=0,0,F132/G132)","v":0},{"$f":"IF(E132=0,0,F132/E132)","v":0},{"$f":"IF(D132=0,0,G132/D132)","v":0},null,{"$f":"G132/$G$157","v":{"$error":"#DIV/0!"}},{"$f":"$M$157*L132","v":{"$error":"#DIV/0!"}},{"$f":"M132*H132","v":{"$error":"#DIV/0!"}}]
[null,null,null,null,null,null,null,0,{"$f":"IF(E133=0,0,F133/E133)","v":0},{"$f":"IF(D133=0,0,G133/D133)","v":0},null,{"$f":"G133/$G$157","v":{"$error":"#DIV/0!"}},{"$f":"$M$157*L133","v":{"$error":"#DIV/0!"}},{"$f":"M133*H133","v":{"$error":"#DIV/0!"}}]
[null,null,null,null,null,null,null,0,0,0,null,{"$error":"#DIV/0!"},{"$error":"#DIV/0!"},{"$error":"#DIV/0!"}]
[null,null,null,null,null,null,null,0,0,0,null,{"$error":"#DIV/0!"},{"$error":"#DIV/0!"},{"$error":"#DIV/0!"}]
[null,null,null,null,null,null,null,0,0,0,null,{"$error":"#DIV/0!"},{"$error":"#DIV/0!"},{"$error":"#DIV/0!"}]
[null,null,null,null,null,null,null,0,0,0,null,{"$error":"#DIV/0!"},{"$error":"#DIV/0!"},{"$error":"#DIV/0!"}]
[null,null,null,null,null,null,null,0,0,0,null,{"$error":"#DIV/0!"},{"$error":"#DIV/0!"},{"$error":"#DIV/0!"}]
[null,null,null,null,null,null,null,0,0,0,null,{"$error":"#DIV/0!"},{"$error":"#DIV/0!"},{"$error":"#DIV/0!"}]
[null,null,null,null,null,null,null,0,0,0,null,{"$error":"#DIV/0!"},{"$error":"#DIV/0!"},{"$error":"#DIV/0!"}]
[null,null,null,null,null,null,null,0,0,0,null,{"$error":"#DIV/0!"},{"$error":"#DIV/0!"},{"$error":"#DIV/0!"}]
[null,null,null,null,null,null,null,0,0,0,null,{"$error":"#DIV/0!"},{"$error":"#DIV/0!"},{"$error":"#DIV/0!"}]
[null,null,null,null,null,null,null,0,0,0,null,{"$error":"#DIV/0!"},{"$error":"#DIV/0!"},{"$error":"#DIV/0!"}]
[null,null,null,null,null,null,null,0,0,0,null,{"$error":"#DIV/0!"},{"$error":"#DIV/0!"},{"$error":"#DIV/0!"}]
[null,null,null,null,null,null,null,0,0,0,null,{"$error":"#DIV/0!"},{"$error":"#DIV/0!"},{"$error":"#DIV/0!"}]
[null,null,null,null,null,null,null,0,0,0,null,{"$error":"#DIV/0!"},{"$error":"#DIV/0!"},{"$error":"#DIV/0!"}]
[null,null,null,null,null,null,null,0,0,0,null,{"$error":"#DIV/0!"},{"$error":"#DIV/0!"},{"$error":"#DIV/0!"}]
[null,null,null,null,null,null,null,0,0,0,null,{"$error":"#DIV/0!"},{"$error":"#DIV/0!"},{"$error":"#DIV/0!"}]
[null,null,null,null,null,null,null,0,0,0,null,{"$error":"#DIV/0!"},{"$error":"#DIV/0!"},{"$error":"#DIV/0!"}]
[null,null,null,null,null,null,null,0,0,0,null,{"$error":"#DIV/0!"},{"$error":"#DIV/0!"},{"$error":"#DIV/0!"}]
[null,null,null,null,null,null,null,0,0,0,null,{"$error":"#DIV/0!"},{"$error":"#DIV/0!"},{"$error":"#DIV/0!"}]
[null,null,null,null,null,null,null,0,0,0,null,{"$error":"#DIV/0!"},{"$error":"#DIV/0!"},{"$error":"#DIV/0!"}]
[null,null,null,null,null,null,null,0,0,0,null,{"$error":"#DIV/0!"},{"$error":"#DIV/0!"},{"$error":"#DIV/0!"}]
[null,null,null,null,null,null,null,0,0,0,null,{"$error":"#DIV/0!"},{"$error":"#DIV/0!"},{"$error":"#DIV/0!"}]
[null,null,null,null,null,null,null,0,0,0,null,{"$error":"#DIV/0!"},{"$error":"#DIV/0!"},{"$error":"#DIV/0!"}]
[null,null,null,null,null,null,null,0,0,0,null,{"$error":"#DIV/0!"},{"$error":"#DIV/0!"},{"$error":"#DIV/0!"}]
[null,"Total",null,{"$f":"SUM(D132:D156)","v":0},{"$f":"SUM(E132:E156)","v":0},{"$f":"SUM(F132:F156)","v":0},{"$f":"SUM(G132:G156)","v":0},0,0,0,null,{"$f":"SUM(L132:L156)","v":{"$error":"#DIV/0!"}},{"$f":"G132","v":0},0]
[]
[null,null,null,"Year 1","Year 2","Year 3","Year 4","Year 5","P&L"]
[null,null,"Faculty Productivity",0.7,1,1,1,1]
[null,null,"Incremental Revenue",1,1,1,1,1]
[null,null,"Production wRVUs",{"$f":"D160*$M$157","v":0},{"$f":"E160*$M$157","v":0},0,0,0]
[{"$f":"I164","v":"ACH"},null,"Incremental wRVUs",{"$f":"D161*D162","v":0},{"$f":"E161*E162","v":0},0,0,0]
[{"$f":"I164&\"Clinical Pro Fees\"","v":"ACHClinical Pro Fees"},null,"Incremental Collections",{"$f":"D160*D161*$N$157","v":0},{"$f":"E160*E161*$N$157","v":0},0,0,0,"ACH",null,null,null,null,null,{"$f":"IF(SUM(D164:H164)>0,IF(I164=0,1,0),0)","v":0}]
[]
[]
[null,null,"Pro Fees per RVU Ratio",{"$f":"D164/D163","v":{"$error":"#DIV/0!"}},{"$f":"E164/E163","v":{"$error":"#DIV/0!"}},{"$error":"#DIV/0!"},{"$error":"#DIV/0!"},{"$error":"#DIV/0!"}]
[]
[]
[]
[null,"Click on \"+\" to open ACH Professional Fee Revenue section"]
[null,"COM PROFESSIONAL FEE REVENUE"]
[null,"Profile Data",null,null,null,null,null,null,null,null,null,"JFR Proforma"]
[null,"CPT","Description","Volume","Charge","Collections","wRVUs","Coll/wRVU","Coll Rate","wRVU/Count",null,"Dist","wRVUs","Collections"]
[null,"To add rows, copy one or more rows in the middle of the section, and \"insert copied cells\""]
[null,null,null,null,null,null,null,{"$f":"IF(G176=0,0,F176/G176)","v":0},{"$f":"IF(E176=0,0,F176/E176)","v":0},{"$f":"IF(D176=0,0,G176/D176)","v":0},null,{"$f":"G176/$G$39","v":{"$error":"#DIV/0!"}},{"$f":"$M$201*L176","v":{"$error":"#DIV/0!"}},{"$f":"M176*H176","v":{"$error":"#DIV/0!"}}]
[null,null,null,null,null,null,null,0,{"$f":"IF(E177=0,0,F177/E177)","v":0},{"$f":"IF(D177=0,0,G177/D177)","v":0},null,{"$f":"G177/$G$39","v":{"$error":"#DIV/0!"}},{"$f":"$M$201*L177","v":{"$error":"#DIV/0!"}},{"$f":"M177*H177","v":{"$error":"#DIV/0!"}}]
[null,null,null,null,null,null,null,0,0,0,null,{"$error":"#DIV/0!"},{"$error":"#DIV/0!"},{"$error":"#DIV/0!"}]
[null,null,null,null,null,null,null,0,0,0,null,{"$error":"#DIV/0!"},{"$error":"#DIV/0!"},{"$error":"#DIV/0!"}]
[null,null,null,null,null,null,null,0,0,0,null,{"$error":"#DIV/0!"},{"$error":"#DIV/0!"},{"$error":"#DIV/0!"}]
[null,null,null,null,null,null,null,0,0,0,null,{"$error":"#DIV/0!"},{"$error":"#DIV/0!"},{"$error":"#DIV/0!"}]
[null,null,null,null,null,null,null,0,0,0,null,{"$error":"#DIV/0!"},{"$error":"#DIV/0!"},{"$error":"#DIV/0!"}]
[null,null,null,null,null,null,null,0,0,0,null,{"$error":"#DIV/0!"},{"$error":"#DIV/0!"},{"$error":"#DIV/0!"}]
[null,null,null,null,null,null,null,0,0,0,null,{"$error":"#DIV/0!"},{"$error":"#DIV/0!"},{"$error":"#DIV/0!"}]
[null,null,null,null,null,null,null,0,0,0,null,{"$error":"#DIV/0!"},{"$error":"#DIV/0!"},{"$error":"#DIV/0!"}]
[null,null,null,null,null,null,null,0,0,0,null,{"$error":"#DIV/0!"},{"$error":"#DIV/0!"},{"$error":"#DIV/0!"}]
[null,null,null,null,null,null,null,0,0,0,null,{"$error":"#DIV/0!"},{"$error":"#DIV/0!"},{"$error":"#DIV/0!"}]
[null,null,null,null,null,null,null,0,0,0,null,{"$error":"#DIV/0!"},{"$error":"#DIV/0!"},{"$error":"#DIV/0!"}]
[null,null,null,null,null,null,null,0,0,0,null,{"$error":"#DIV/0!"},{"$error":"#DIV/0!"},{"$error":"#DIV/0!"}]
[null,null,null,null,null,null,null,0,0,0,null,{"$error":"#DIV/0!"},{"$error":"#DIV/0!"},{"$error":"#DIV/0!"}]
[null,null,null,null,null,null,null,0,0,0,null,{"$error":"#DIV/0!"},{"$error":"#DIV/0!"},{"$error":"#DIV/0!"}]
[null,null,null,null,null,null,null,0,0,0,null,{"$error":"#DIV/0!"},{"$error":"#DIV/0!"},{"$error":"#DIV/0!"}]
[null,null,null,null,null,null,null,0,0,0,null,{"$error":"#DIV/0!"},{"$error":"#DIV/0!"},{"$error":"#DIV/0!"}]
[null,null,null,null,null,null,null,0,0,0,null,{"$error":"#DIV/0!"},{"$error":"#DIV/0!"},{"$error":"#DIV/0!"}]
[null,null,null,null,null,null,null,0,0,0,null,{"$error":"#DIV/0!"},{"$error":"#DIV/0!"},{"$error":"#DIV/0!"}]
[null,null,null,null,null,null,null,0,0,0,null,{"$error":"#DIV/0!"},{"$error":"#DIV/0!"},{"$error":"#DIV/0!"}]
[null,null,null,null,null,null,null,0,0,0,null,{"$error":"#DIV/0!"},{"$error":"#DIV/0!"},{"$error":"#DIV/0!"}]
[null,null,null,null,null,null,null,0,0,0,null,{"$error":"#DIV/0!"},{"$error":"#DIV/0!"},{"$error":"#DIV/0!"}]
[null,null,null,null,null,null,null,0,0,0,null,{"$error":"#DIV/0!"},{"$error":"#DIV/0!"},{"$error":"#DIV/0!"}]
[null,null,null,null,null,null,null,0,0,0,null,{"$error":"#DIV/0!"},{"$error":"#DIV/0!"},{"$error":"#DIV/0!"}]
[null,"Total",null,{"$f":"SUM(D176:D200)","v":0},{"$f":"SUM(E176:E200)","v":0},{"$f":"SUM(F176:F200)","v":0},{"$f":"SUM(G176:G200)","v":0},0,0,0,null,{"$f":"SUM(L176:L200)","v":{"$error":"#DIV/0!"}},null,0]
[]
[null,null,null,"Year 1","Year 2","Year 3","Year 4","Year 5","P&L","Incremental Revenue Explanation"]
[null,null,"Faculty Productivity",0.7,1,1,1,1]
[null,null,"Incremental Revenue",1,1,1,1,1]
[null,null,"Production wRVUs",{"$f":"D204*$M$201","v":0},{"$f":"E204*$M$201","v":0},0,0,0]
[{"$f":"I208","v":"COM"},null,"Incremental wRVUs",{"$f":"D205*D206","v":0},{"$f":"E205*E206","v":0},0,0,0]
[{"$f":"I208&\"Clinical Pro Fees\"","v":"COMClinical Pro Fees"},null,"Incremental Collections",{"$f":"D204*D205*$N$201","v":0},{"$f":"E204*E205*$N$201","v":0},0,0,0,"COM",null,null,null,null,null,{"$f":"IF(SUM(D208:H208)>0,IF(I208=0,1,0),0)","v":0}]
[null,"Click on \"+\" to open COM Professional Fee Revenue section"]
[]
[]
[null,"TOTAL INCREMENTAL SUMMARY:"]
[]
[null,null,null,"Year 1","Year 2","Year 3","Year 4","Year 5"]
[null,null,"RVUs",{"$f":"D207+D163+D45","v":0},{"$f":"E207+E163+E45","v":0},0,0,{"$f":"H207+H163+H45","v":0}]
[]
[null,null,"Collections",{"$f":"D208+D164+D46","v":0},{"$f":"E208+E164+E46","v":0},0,0,{"$f":"H208+H164+H46","v":0}]
[]
[null,null,"Tech/Down Stream Rev",{"$f":"D126+D86","v":0},{"$f":"E126+E86","v":0},0,0,0]
[]
[null,null,"Total All Revenue",{"$f":"+D219+D217","v":0},{"$f":"+E219+E217","v":0},0,0,0]

{"sheet":"DIV","index":12,"n_rows":141,"n_cols":59,"rows_kept":141,"cut":false,"hidden":false,"merged":[[96,36,96,39],[0,16,1,26],[5,15,5,21],[5,23,5,32],[5,42,5,45],[7,23,7,29],[132,9,133,13],[105,9,106,13],[141,9,142,13],[116,10,116,13],[99,42,101,45],[105,27,105,29],[102,32,103,36],[102,37,103,37],[104,32,104,36],[110,21,114,26],[112,32,112,36],[105,21,106,26],[110,32,111,36],[110,37,111,37],[54,10,54,13],[55,10,55,13],[100,27,100,29],[101,27,101,29],[104,27,104,29]]}
["HIDE","HIDE","HIDE","HIDE","HIDE","HIDE","HIDE","HIDE","HIDE","FACULTY RECRUITMENT BUSINESS PLAN",null,null,null,null,null,null,"SPECIALTY ANALYSIS",null,null,null,null,null,null,null,null,null,null,null,null,null,null,null,null,null,null,null,null,null,null,null,"HIDE",null,null,null,null,{"$f":"COMP!N1","v":"JFR FBP V24.5"},"HIDE","HIDE","HIDE","HIDE","HIDE","HIDE","HIDE"]
[null,null,null,null,null,null,null,null,null,null,null,null,null,null,null,null,null,null,null,null,null,null,null,null,null,null,null,null,null,null,null,null,null,null,null,null,null,null,null,null,null,null,null,null,null,{"$f":"COMP!B1","v":"0; [select]; [select] [select]; "}]
[]
[]
[null,null,null,null,null,null,null,null,null,null,null,null,null,null,null,null,null,null,null,null,null,{"$f":"SUM(AX9:AX99)","v":0},null,null,null,null,null,null,"HOME DEPT SALARY",null,null,null,{"$f":"SUM(AY9:AY99)","v":0},null,null,null,null,null,null,"2017-06-30",null,"YTD Months",null,null,"Curr"]
[null,null,null,null,null,null,null,null,null,null,null,null,null,null,null,"FTE ANALYSIS",null,null,null,null,null,null,null,"SALARY ANALYSIS (in thousands)",null,null,null,null,null,null,null,null,null,null,null,null,"wRVU HISTORY",null,null,null,null,1,"CLINICAL PRODUCTIVITY ANALYSIS"]
["Include","wRVU Bchmk","Type","Category","wRVU Speciatly","Comp Bchmk","Type","Category","Comp Specialty","Faculty","SAP ID","Specialty","Rank","Notes: if new hire indicate start date",null,"Admin FTE","Teach FTE","Resch FTE","Clin Non-wRVU FTE","Clinical FTE","VA FTE","Total UAMS FTE",null,"Curr Year Salary","Comp percantile % per table","Current clinical fte comp","Cur Yr Proj Incentive","VA Comp","Curr Total","Norm. Comp","25%ile Comp Bmark","50%ile Comp Bmark","75%ile Comp Bmark",null,"FY2021 wRVUs","FY2022 wRVUs","FY2023 wRVUs","Annual Revenue Proj","YTD FY2024 wRVUs","Start Date","# of Months Here","Ann'lized Current FY  wRVUs","Median wRVU Bmark","CFTE Adjusted Expectation",{"$f":"IF($AS$5=\"Prior\",AK7,AP7)","v":"Ann'lized Current FY  wRVUs"},"Variance",null,null,null,null,null,null,null,null,"RVU Performance Percentile %"]
[1,null,null,null,null,null,null,null,null,{"$f":"SUM(AU9:AW226)","v":4},null,null,null,null,null,null,null,null,null,null,null,null,null,"Requested Faculty Salary"]
[1,"FPSC","Academic","All",{"$f":"IF($B9=\"MGMA\",COMP!$D$86,IF($B9=\"FPSC\",COMP!$D$85,IF($B9=\"SPEC\",COMP!$K$103,\"no data\")))","v":"[select]"},"AAMC","Academic","All",{"$f":"IF($F9=\"AAMC\",COMP!$D$83,IF($F9=\"MGMA\",COMP!$D$86,IF($F9=\"SPEC\",COMP!$K$91,\"no data\")))","v":"[select]"},{"$f":"COMP!D16","v":0},null,{"$f":"COMP!J11","v":0},{"$f":"COMP!D17","v":"[select]"},null,null,{"$f":"ASSIGN!M16","v":0},{"$f":"ASSIGN!M30","v":0},{"$f":"ASSIGN!M23","v":0},{"$f":"ASSIGN!L41","v":0},{"$f":"ASSIGN!M41","v":0},{"$f":"ASSIGN!H57","v":0},{"$f":"SUM(P9:U9)","v":0},null,{"$f":"COMP!D36/1000","v":0},0,{"$f":"X9*T9","v":0},{"$f":"COMP!J40/1000","v":0},{"$f":"COMP!D37/1000","v":0},{"$f":"+AB9+AA9+X9","v":0},{"$f":"IF(V9=0,0,AC9/V9)","v":0},{"$f":"IF($F9=\"SPEC\",COMP!K$90/1000,IFERROR(VLOOKUP($F9&$G9&$H9&$M9&COMP!$D$84&$I9&\"L\",AAMC!$A$2:$W$4000,10,FALSE)/1000,IFERROR(VLOOKUP($F9&$G9&$H9&$M9&COMP!$D$84&$I9&\"L\",MGMAC!$A$2:$W$4000,10,FALSE)/1000,IFERROR(VLOOKUP($F9&$G9&$H9&$M9&COMP!$D$84&$I9&\"L\",MGMACP!$A$2:$W$4000,10,FALSE)/1000,\"no data\"))))","v":"no data"},{"$f":"IF($F9=\"SPEC\",COMP!L$90/1000,IFERROR(VLOOKUP($F9&$G9&$H9&$M9&COMP!$D$84&$I9&\"L\",AAMC!$A$2:$W$4000,15,FALSE)/1000,IFERROR(VLOOKUP($F9&$G9&$H9&$M9&COMP!$D$84&$I9&\"L\",MGMAC!$A$2:$W$4000,15,FALSE)/1000,IFERROR(VLOOKUP($F9&$G9&$H9&$M9&COMP!$D$84&$I9&\"L\",MGMACP!$A$2:$W$4000,15,FALSE)/1000,\"no data\"))))","v":"no data"},{"$f":"IF($F9=\"SPEC\",COMP!M$90/1000,IFERROR(VLOOKUP($F9&$G9&$H9&$M9&COMP!$D$84&$I9&\"L\",AAMC!$A$2:$W$4000,20,FALSE)/1000,IFERROR(VLOOKUP($F9&$G9&$H9&$M9&COMP!$D$84&$I9&\"L\",MGMAC!$A$2:$W$4000,20,FALSE)/1000,IFERROR(VLOOKUP($F9&$G9&$H9&$M9&COMP!$D$84&$I9&\"L\",MGMACP!$A$2:$W$4000,20,FALSE)/1000,\"no data\"))))","v":"no data"},null,null,null,null,{"$f":"'CLIN REV'!D217","v":0},null,null,null,null,{"$f":"IF($J9=0,0,IF($B9=\"SPEC\",COMP!$L$102,IF($B9=\"FPSC\",IFERROR(VLOOKUP($B9&$C9&$D9&$E9&\"L\",FPSC!$A$2:$W$4000,13,FALSE),\"no data\"),IF(B9&C9=\"MGMAAcademic\",IFERROR(VLOOKUP($B9&$C9&$D9&$E9&\"L\",MGMAR!$A$2:$W$4000,13,FALSE),\"no data\"),IFERROR(VLOOKUP($B9&$C9&$D9&$E9&\"L\",MGMARP!$A$2:$W$4000,13,FALSE),\"no data\")))))","v":0},{"$f":"IF(AQ9=\"no data\",0,AQ9*T9)","v":0},{"$f":"+'CLIN REV'!D215","v":0},{"$f":"IFERROR(AS9-AR9,0)","v":0},null,null,null,null,null,null,null,null,0]
[1]
[1,null,null,null,null,null,null,null,null,"Enter ALL faculty (assitant thru professor) of the same SPECIALTY, sorted by Rank"]
[1,{"$f":"$B$9","v":"FPSC"},{"$f":"$C$9","v":"Academic"},{"$f":"$D$9","v":"All"},{"$f":"IF($B12=\"MGMA\",COMP!$D$86,IF($B12=\"FPSC\",COMP!$D$85,IF($B12=\"SPEC\",COMP!$K$103,\"no data\")))","v":"[select]"},{"$f":"$F$9","v":"AAMC"},{"$f":"$G$9","v":"Academic"},{"$f":"$H$9","v":"All"},{"$f":"IF($F12=\"AAMC\",COMP!$D$83,IF($F12=\"MGMA\",COMP!$D$86,IF($F12=\"SPEC\",COMP!$K$91,\"no data\")))","v":"[select]"},null,null,null,null,null,null,0,0,0,0,0,0,{"$f":"SUM(P12:U12)","v":0},null,0,0,{"$f":"X12*T12","v":0},0,0,{"$f":"+AB12+AA12+X12","v":0},{"$f":"IF(V12=0,0,AC12/V12)","v":0},{"$f":"IF($F12=\"SPEC\",COMP!K$90/1000,IFERROR(VLOOKUP($F12&$G12&$H12&$M12&COMP!$D$84&$I12&\"L\",AAMC!$A$2:$W$4000,10,FALSE)/1000,IFERROR(VLOOKUP($F12&$G12&$H12&$M12&COMP!$D$84&$I12&\"L\",MGMAC!$A$2:$W$4000,10,FALSE)/1000,IFERROR(VLOOKUP($F12&$G12&$H12&$M12&COMP!$D$84&$I12&\"L\",MGMACP!$A$2:$W$4000,10,FALSE)/1000,\"no data\"))))","v":"no data"},{"$f":"IF($F12=\"SPEC\",COMP!L$90/1000,IFERROR(VLOOKUP($F12&$G12&$H12&$M12&COMP!$D$84&$I12&\"L\",AAMC!$A$2:$W$4000,15,FALSE)/1000,IFERROR(VLOOKUP($F12&$G12&$H12&$M12&COMP!$D$84&$I12&\"L\",MGMAC!$A$2:$W$4000,15,FALSE)/1000,IFERROR(VLOOKUP($F12&$G12&$H12&$M12&COMP!$D$84&$I12&\"L\",MGMACP!$A$2:$W$4000,15,FALSE)/1000,\"no data\"))))","v":"no data"},{"$f":"IF($F12=\"SPEC\",COMP!M$90/1000,IFERROR(VLOOKUP($F12&$G12&$H12&$M12&COMP!$D$84&$I12&\"L\",AAMC!$A$2:$W$4000,20,FALSE)/1000,IFERROR(VLOOKUP($F12&$G12&$H12&$M12&COMP!$D$84&$I12&\"L\",MGMAC!$A$2:$W$4000,20,FALSE)/1000,IFERROR(VLOOKUP($F12&$G12&$H12&$M12&COMP!$D$84&$I12&\"L\",MGMACP!$A$2:$W$4000,20,FALSE)/1000,\"no data\"))))","v":"no data"},null,0,0,0,0,0,null,{"$f":"$AP$6","v":1},{"$f":"((AM12/AO12)*$AP$6)/$AP$6*12","v":0},{"$f":"IF($J12=0,0,IF($B12=\"SPEC\",COMP!$L$102,IF($B12=\"FPSC\",IFERROR(VLOOKUP($B12&$C12&$D12&$E12&\"L\",FPSC!$A$2:$W$4000,13,FALSE),\"no data\"),IF(B12&C12=\"MGMAAcademic\",IFERROR(VLOOKUP($B12&$C12&$D12&$E12&\"L\",MGMAR!$A$2:$W$4000,13,FALSE),\"no data\"),IFERROR(VLOOKUP($B12&$C12&$D12&$E12&\"L\",MGMARP!$A$2:$W$4000,13,FALSE),\"no data\")))))","v":0},{"$f":"IF(AQ12=\"no data\",0,AQ12*T12)","v":0},{"$f":"AP12","v":0},{"$f":"IFERROR(AS12-AR12,0)","v":0},{"$f":"IF(J12>0,IF(K12=0,1,0),0)","v":0},{"$f":"IF(J12>0,IF(L12=0,1,0),0)","v":0},{"$f":"IF(J12>0,IF(M12=0,1,0),0)","v":0},{"$f":"IF(J12>0,IF(V12=0,1,0),0)","v":0},{"$f":"IF(J12>0,IF(AC12=0,1,0),0)","v":0},{"$f":"IF($M$9=M12,1,0)","v":0},{"$f":"IF(AO12<>$AP$6,1,0)","v":0},null,0]
[{"$f":"IF(J13>0,1,0)","v":0},"FPSC",{"$f":"$C$9","v":"Academic"},{"$f":"$D$9","v":"All"},{"$f":"IF($B13=\"MGMA\",COMP!$D$86,IF($B13=\"FPSC\",COMP!$D$85,IF($B13=\"SPEC\",COMP!$K$103,\"no data\")))","v":"[select]"},{"$f":"$F$9","v":"AAMC"},{"$f":"$G$9","v":"Academic"},{"$f":"$H$9","v":"All"},{"$f":"IF($F13=\"AAMC\",COMP!$D$83,IF($F13=\"MGMA\",COMP!$D$86,IF($F13=\"SPEC\",COMP!$K$91,\"no data\")))","v":"[select]"},null,null,null,null,null,null,0,0,0,0,0,0,0,null,0,0,{"$f":"X13*T13","v":0},0,0,{"$f":"+AB13+AA13+X13","v":0},{"$f":"IF(V13=0,0,AC13/V13)","v":0},{"$f":"IF($F13=\"SPEC\",COMP!K$90/1000,IFERROR(VLOOKUP($F13&$G13&$H13&$M13&COMP!$D$84&$I13&\"L\",AAMC!$A$2:$W$4000,10,FALSE)/1000,IFERROR(VLOOKUP($F13&$G13&$H13&$M13&COMP!$D$84&$I13&\"L\",MGMAC!$A$2:$W$4000,10,FALSE)/1000,IFERROR(VLOOKUP($F13&$G13&$H13&$M13&COMP!$D$84&$I13&\"L\",MGMACP!$A$2:$W$4000,10,FALSE)/1000,\"no data\"))))","v":"no data"},{"$f":"IF($F13=\"SPEC\",COMP!L$90/1000,IFERROR(VLOOKUP($F13&$G13&$H13&$M13&COMP!$D$84&$I13&\"L\",AAMC!$A$2:$W$4000,15,FALSE)/1000,IFERROR(VLOOKUP($F13&$G13&$H13&$M13&COMP!$D$84&$I13&\"L\",MGMAC!$A$2:$W$4000,15,FALSE)/1000,IFERROR(VLOOKUP($F13&$G13&$H13&$M13&COMP!$D$84&$I13&\"L\",MGMACP!$A$2:$W$4000,15,FALSE)/1000,\"no data\"))))","v":"no data"},{"$f":"IF($F13=\"SPEC\",COMP!M$90/1000,IFERROR(VLOOKUP($F13&$G13&$H13&$M13&COMP!$D$84&$I13&\"L\",AAMC!$A$2:$W$4000,20,FALSE)/1000,IFERROR(VLOOKUP($F13&$G13&$H13&$M13&COMP!$D$84&$I13&\"L\",MGMAC!$A$2:$W$4000,20,FALSE)/1000,IFERROR(VLOOKUP($F13&$G13&$H13&$M13&COMP!$D$84&$I13&\"L\",MGMACP!$A$2:$W$4000,20,FALSE)/1000,\"no data\"))))","v":"no data"},null,0,0,0,0,0,null,1,{"$f":"((AM13/AO13)*$AP$6)/$AP$6*12","v":0},{"$f":"IF($J13=0,0,IF($B13=\"SPEC\",COMP!$L$102,IF($B13=\"FPSC\",IFERROR(VLOOKUP($B13&$C13&$D13&$E13&\"L\",FPSC!$A$2:$W$4000,13,FALSE),\"no data\"),IF(B13&C13=\"MGMAAcademic\",IFERROR(VLOOKUP($B13&$C13&$D13&$E13&\"L\",MGMAR!$A$2:$W$4000,13,FALSE),\"no data\"),IFERROR(VLOOKUP($B13&$C13&$D13&$E13&\"L\",MGMARP!$A$2:$W$4000,13,FALSE),\"no data\")))))","v":0},{"$f":"IF(AQ13=\"no data\",0,AQ13*T13)","v":0},{"$f":"AP13","v":0},{"$f":"IFERROR(AS13-AR13,0)","v":0},0,0,0,0,0,0,{"$f":"IF(AO13<>$AP$6,1,0)","v":0},null,0]
[0,"FPSC","Academic","All",{"$f":"IF($B14=\"MGMA\",COMP!$D$86,IF($B14=\"FPSC\",COMP!$D$85,IF($B14=\"SPEC\",COMP!$K$103,\"no data\")))","v":"[select]"},"AAMC","Academic","All",{"$f":"IF($F14=\"AAMC\",COMP!$D$83,IF($F14=\"MGMA\",COMP!$D$86,IF($F14=\"SPEC\",COMP!$K$91,\"no data\")))","v":"[select]"},null,null,null,null,null,null,0,0,0,0,0,0,{"$f":"SUM(P14:U14)","v":0},null,0,0,{"$f":"X14*T14","v":0},0,0,0,0,{"$f":"IF($F14=\"SPEC\",COMP!K$90/1000,IFERROR(VLOOKUP($F14&$G14&$H14&$M14&COMP!$D$84&$I14&\"L\",AAMC!$A$2:$W$4000,10,FALSE)/1000,IFERROR(VLOOKUP($F14&$G14&$H14&$M14&COMP!$D$84&$I14&\"L\",MGMAC!$A$2:$W$4000,10,FALSE)/1000,IFERROR(VLOOKUP($F14&$G14&$H14&$M14&COMP!$D$84&$I14&\"L\",MGMACP!$A$2:$W$4000,10,FALSE)/1000,\"no data\"))))","v":"no data"},{"$f":"IF($F14=\"SPEC\",COMP!L$90/1000,IFERROR(VLOOKUP($F14&$G14&$H14&$M14&COMP!$D$84&$I14&\"L\",AAMC!$A$2:$W$4000,15,FALSE)/1000,IFERROR(VLOOKUP($F14&$G14&$H14&$M14&COMP!$D$84&$I14&\"L\",MGMAC!$A$2:$W$4000,15,FALSE)/1000,IFERROR(VLOOKUP($F14&$G14&$H14&$M14&COMP!$D$84&$I14&\"L\",MGMACP!$A$2:$W$4000,15,FALSE)/1000,\"no data\"))))","v":"no data"},{"$f":"IF($F14=\"SPEC\",COMP!M$90/1000,IFERROR(VLOOKUP($F14&$G14&$H14&$M14&COMP!$D$84&$I14&\"L\",AAMC!$A$2:$W$4000,20,FALSE)/1000,IFERROR(VLOOKUP($F14&$G14&$H14&$M14&COMP!$D$84&$I14&\"L\",MGMAC!$A$2:$W$4000,20,FALSE)/1000,IFERROR(VLOOKUP($F14&$G14&$H14&$M14&COMP!$D$84&$I14&\"L\",MGMACP!$A$2:$W$4000,20,FALSE)/1000,\"no data\"))))","v":"no data"},null,0,0,0,0,0,null,1,0,{"$f":"IF($J14=0,0,IF($B14=\"SPEC\",COMP!$L$102,IF($B14=\"FPSC\",IFERROR(VLOOKUP($B14&$C14&$D14&$E14&\"L\",FPSC!$A$2:$W$4000,13,FALSE),\"no data\"),IF(B14&C14=\"MGMAAcademic\",IFERROR(VLOOKUP($B14&$C14&$D14&$E14&\"L\",MGMAR!$A$2:$W$4000,13,FALSE),\"no data\"),IFERROR(VLOOKUP($B14&$C14&$D14&$E14&\"L\",MGMARP!$A$2:$W$4000,13,FALSE),\"no data\")))))","v":0},0,0,0,0,0,0,0,0,0,0,null,0]
[0,"FPSC","Academic","All",{"$f":"IF($B15=\"MGMA\",COMP!$D$86,IF($B15=\"FPSC\",COMP!$D$85,IF($B15=\"SPEC\",COMP!$K$103,\"no data\")))","v":"[select]"},"AAMC","Academic","All",{"$f":"IF($F15=\"AAMC\",COMP!$D$83,IF($F15=\"MGMA\",COMP!$D$86,IF($F15=\"SPEC\",COMP!$K$91,\"no data\")))","v":"[select]"},null,null,null,null,null,null,0,0,0,0,0,0,0,null,0,0,0,0,0,0,0,{"$f":"IF($F15=\"SPEC\",COMP!K$90/1000,IFERROR(VLOOKUP($F15&$G15&$H15&$M15&COMP!$D$84&$I15&\"L\",AAMC!$A$2:$W$4000,10,FALSE)/1000,IFERROR(VLOOKUP($F15&$G15&$H15&$M15&COMP!$D$84&$I15&\"L\",MGMAC!$A$2:$W$4000,10,FALSE)/1000,IFERROR(VLOOKUP($F15&$G15&$H15&$M15&COMP!$D$84&$I15&\"L\",MGMACP!$A$2:$W$4000,10,FALSE)/1000,\"no data\"))))","v":"no data"},{"$f":"IF($F15=\"SPEC\",COMP!L$90/1000,IFERROR(VLOOKUP($F15&$G15&$H15&$M15&COMP!$D$84&$I15&\"L\",AAMC!$A$2:$W$4000,15,FALSE)/1000,IFERROR(VLOOKUP($F15&$G15&$H15&$M15&COMP!$D$84&$I15&\"L\",MGMAC!$A$2:$W$4000,15,FALSE)/1000,IFERROR(VLOOKUP($F15&$G15&$H15&$M15&COMP!$D$84&$I15&\"L\",MGMACP!$A$2:$W$4000,15,FALSE)/1000,\"no data\"))))","v":"no data"},{"$f":"IF($F15=\"SPEC\",COMP!M$90/1000,IFERROR(VLOOKUP($F15&$G15&$H15&$M15&COMP!$D$84&$I15&\"L\",AAMC!$A$2:$W$4000,20,FALSE)/1000,IFERROR(VLOOKUP($F15&$G15&$H15&$M15&COMP!$D$84&$I15&\"L\",MGMAC!$A$2:$W$4000,20,FALSE)/1000,IFERROR(VLOOKUP($F15&$G15&$H15&$M15&COMP!$D$84&$I15&\"L\",MGMACP!$A$2:$W$4000,20,FALSE)/1000,\"no data\"))))","v":"no data"},null,0,0,0,0,0,null,1,0,{"$f":"IF($J15=0,0,IF($B15=\"SPEC\",COMP!$L$102,IF($B15=\"FPSC\",IFERROR(VLOOKUP($B15&$C15&$D15&$E15&\"L\",FPSC!$A$2:$W$4000,13,FALSE),\"no data\"),IF(B15&C15=\"MGMAAcademic\",IFERROR(VLOOKUP($B15&$C15&$D15&$E15&\"L\",MGMAR!$A$2:$W$4000,13,FALSE),\"no data\"),IFERROR(VLOOKUP($B15&$C15&$D15&$E15&\"L\",MGMARP!$A$2:$W$4000,13,FALSE),\"no data\")))))","v":0},0,0,0,0,0,0,0,0,{"$f":"IF($M$9=M15,1,0)","v":0},0,null,0]
[0,"FPSC","Academic","All",{"$f":"IF($B16=\"MGMA\",COMP!$D$86,IF($B16=\"FPSC\",COMP!$D$85,IF($B16=\"SPEC\",COMP!$K$103,\"no data\")))","v":"[select]"},"AAMC","Academic","All",{"$f":"IF($F16=\"AAMC\",COMP!$D$83,IF($F16=\"MGMA\",COMP!$D$86,IF($F16=\"SPEC\",COMP!$K$91,\"no data\")))","v":"[select]"},null,null,null,null,null,null,0,0,0,0,0,0,0,null,0,0,{"$f":"X16*T16","v":0},0,0,0,0,{"$f":"IF($F16=\"SPEC\",COMP!K$90/1000,IFERROR(VLOOKUP($F16&$G16&$H16&$M16&COMP!$D$84&$I16&\"L\",AAMC!$A$2:$W$4000,10,FALSE)/1000,IFERROR(VLOOKUP($F16&$G16&$H16&$M16&COMP!$D$84&$I16&\"L\",MGMAC!$A$2:$W$4000,10,FALSE)/1000,IFERROR(VLOOKUP($F16&$G16&$H16&$M16&COMP!$D$84&$I16&\"L\",MGMACP!$A$2:$W$4000,10,FALSE)/1000,\"no data\"))))","v":"no data"},{"$f":"IF($F16=\"SPEC\",COMP!L$90/1000,IFERROR(VLOOKUP($F16&$G16&$H16&$M16&COMP!$D$84&$I16&\"L\",AAMC!$A$2:$W$4000,15,FALSE)/1000,IFERROR(VLOOKUP($F16&$G16&$H16&$M16&COMP!$D$84&$I16&\"L\",MGMAC!$A$2:$W$4000,15,FALSE)/1000,IFERROR(VLOOKUP($F16&$G16&$H16&$M16&COMP!$D$84&$I16&\"L\",MGMACP!$A$2:$W$4000,15,FALSE)/1000,\"no data\"))))","v":"no data"},{"$f":"IF($F16=\"SPEC\",COMP!M$90/1000,IFERROR(VLOOKUP($F16&$G16&$H16&$M16&COMP!$D$84&$I16&\"L\",AAMC!$A$2:$W$4000,20,FALSE)/1000,IFERROR(VLOOKUP($F16&$G16&$H16&$M16&COMP!$D$84&$I16&\"L\",MGMAC!$A$2:$W$4000,20,FALSE)/1000,IFERROR(VLOOKUP($F16&$G16&$H16&$M16&COMP!$D$84&$I16&\"L\",MGMACP!$A$2:$W$4000,20,FALSE)/1000,\"no data\"))))","v":"no data"},null,0,0,0,0,0,null,{"$f":"$AP$6","v":1},0,{"$f":"IF($J16=0,0,IF($B16=\"SPEC\",COMP!$L$102,IF($B16=\"FPSC\",IFERROR(VLOOKUP($B16&$C16&$D16&$E16&\"L\",FPSC!$A$2:$W$4000,13,FALSE),\"no data\"),IF(B16&C16=\"MGMAAcademic\",IFERROR(VLOOKUP($B16&$C16&$D16&$E16&\"L\",MGMAR!$A$2:$W$4000,13,FALSE),\"no data\"),IFERROR(VLOOKUP($B16&$C16&$D16&$E16&\"L\",MGMARP!$A$2:$W$4000,13,FALSE),\"no data\")))))","v":0},0,0,0,0,0,0,0,{"$f":"IF(J16>0,IF(AC16=0,1,0),0)","v":0},{"$f":"IF($M$9=M16,1,0)","v":0},0,null,0]
[0,"FPSC","Academic","All",{"$f":"IF($B17=\"MGMA\",COMP!$D$86,IF($B17=\"FPSC\",COMP!$D$85,IF($B17=\"SPEC\",COMP!$K$103,\"no data\")))","v":"[select]"},"AAMC","Academic","All",{"$f":"IF($F17=\"AAMC\",COMP!$D$83,IF($F17=\"MGMA\",COMP!$D$86,IF($F17=\"SPEC\",COMP!$K$91,\"no data\")))","v":"[select]"},null,null,null,null,null,null,0,0,0,0,0,0,0,null,0,0,0,0,0,0,0,{"$f":"IF($F17=\"SPEC\",COMP!K$90/1000,IFERROR(VLOOKUP($F17&$G17&$H17&$M17&COMP!$D$84&$I17&\"L\",AAMC!$A$2:$W$4000,10,FALSE)/1000,IFERROR(VLOOKUP($F17&$G17&$H17&$M17&COMP!$D$84&$I17&\"L\",MGMAC!$A$2:$W$4000,10,FALSE)/1000,IFERROR(VLOOKUP($F17&$G17&$H17&$M17&COMP!$D$84&$I17&\"L\",MGMACP!$A$2:$W$4000,10,FALSE)/1000,\"no data\"))))","v":"no data"},{"$f":"IF($F17=\"SPEC\",COMP!L$90/1000,IFERROR(VLOOKUP($F17&$G17&$H17&$M17&COMP!$D$84&$I17&\"L\",AAMC!$A$2:$W$4000,15,FALSE)/1000,IFERROR(VLOOKUP($F17&$G17&$H17&$M17&COMP!$D$84&$I17&\"L\",MGMAC!$A$2:$W$4000,15,FALSE)/1000,IFERROR(VLOOKUP($F17&$G17&$H17&$M17&COMP!$D$84&$I17&\"L\",MGMACP!$A$2:$W$4000,15,FALSE)/1000,\"no data\"))))","v":"no data"},{"$f":"IF($F17=\"SPEC\",COMP!M$90/1000,IFERROR(VLOOKUP($F17&$G17&$H17&$M17&COMP!$D$84&$I17&\"L\",AAMC!$A$2:$W$4000,20,FALSE)/1000,IFERROR(VLOOKUP($F17&$G17&$H17&$M17&COMP!$D$84&$I17&\"L\",MGMAC!$A$2:$W$4000,20,FALSE)/1000,IFERROR(VLOOKUP($F17&$G17&$H17&$M17&COMP!$D$84&$I17&\"L\",MGMACP!$A$2:$W$4000,20,FALSE)/1000,\"no data\"))))","v":"no data"},null,0,0,0,0,0,null,1,0,{"$f":"IF($J17=0,0,IF($B17=\"SPEC\",COMP!$L$102,IF($B17=\"FPSC\",IFERROR(VLOOKUP($B17&$C17&$D17&$E17&\"L\",FPSC!$A$2:$W$4000,13,FALSE),\"no data\"),IF(B17&C17=\"MGMAAcademic\",IFERROR(VLOOKUP($B17&$C17&$D17&$E17&\"L\",MGMAR!$A$2:$W$4000,13,FALSE),\"no data\"),IFERROR(VLOOKUP($B17&$C17&$D17&$E17&\"L\",MGMARP!$A$2:$W$4000,13,FALSE),\"no data\")))))","v":0},0,0,0,0,0,0,0,0,0,0,null,0]
[0,{"$f":"$B$9","v":"FPSC"},"Academic","All",{"$f":"IF($B18=\"MGMA\",COMP!$D$86,IF($B18=\"FPSC\",COMP!$D$85,IF($B18=\"SPEC\",COMP!$K$103,\"no data\")))","v":"[select]"},"AAMC","Academic","All",{"$f":"IF($F18=\"AAMC\",COMP!$D$83,IF($F18=\"MGMA\",COMP!$D$86,IF($F18=\"SPEC\",COMP!$K$91,\"no data\")))","v":"[select]"},null,null,null,null,null,null,0,0,0,0,0,0,0,null,0,0,0,0,0,0,0,{"$f":"IF($F18=\"SPEC\",COMP!K$90/1000,IFERROR(VLOOKUP($F18&$G18&$H18&$M18&COMP!$D$84&$I18&\"L\",AAMC!$A$2:$W$4000,10,FALSE)/1000,IFERROR(VLOOKUP($F18&$G18&$H18&$M18&COMP!$D$84&$I18&\"L\",MGMAC!$A$2:$W$4000,10,FALSE)/1000,IFERROR(VLOOKUP($F18&$G18&$H18&$M18&COMP!$D$84&$I18&\"L\",MGMACP!$A$2:$W$4000,10,FALSE)/1000,\"no data\"))))","v":"no data"},{"$f":"IF($F18=\"SPEC\",COMP!L$90/1000,IFERROR(VLOOKUP($F18&$G18&$H18&$M18&COMP!$D$84&$I18&\"L\",AAMC!$A$2:$W$4000,15,FALSE)/1000,IFERROR(VLOOKUP($F18&$G18&$H18&$M18&COMP!$D$84&$I18&\"L\",MGMAC!$A$2:$W$4000,15,FALSE)/1000,IFERROR(VLOOKUP($F18&$G18&$H18&$M18&COMP!$D$84&$I18&\"L\",MGMACP!$A$2:$W$4000,15,FALSE)/1000,\"no data\"))))","v":"no data"},{"$f":"IF($F18=\"SPEC\",COMP!M$90/1000,IFERROR(VLOOKUP($F18&$G18&$H18&$M18&COMP!$D$84&$I18&\"L\",AAMC!$A$2:$W$4000,20,FALSE)/1000,IFERROR(VLOOKUP($F18&$G18&$H18&$M18&COMP!$D$84&$I18&\"L\",MGMAC!$A$2:$W$4000,20,FALSE)/1000,IFERROR(VLOOKUP($F18&$G18&$H18&$M18&COMP!$D$84&$I18&\"L\",MGMACP!$A$2:$W$4000,20,FALSE)/1000,\"no data\"))))","v":"no data"},null,0,0,0,0,0,null,1,0,{"$f":"IF($J18=0,0,IF($B18=\"SPEC\",COMP!$L$102,IF($B18=\"FPSC\",IFERROR(VLOOKUP($B18&$C18&$D18&$E18&\"L\",FPSC!$A$2:$W$4000,13,FALSE),\"no data\"),IF(B18&C18=\"MGMAAcademic\",IFERROR(VLOOKUP($B18&$C18&$D18&$E18&\"L\",MGMAR!$A$2:$W$4000,13,FALSE),\"no data\"),IFERROR(VLOOKUP($B18&$C18&$D18&$E18&\"L\",MGMARP!$A$2:$W$4000,13,FALSE),\"no data\")))))","v":0},0,0,0,0,0,0,0,0,0,0,null,0]
[0,"FPSC","Academic","All",{"$f":"IF($B19=\"MGMA\",COMP!$D$86,IF($B19=\"FPSC\",COMP!$D$85,IF($B19=\"SPEC\",COMP!$K$103,\"no data\")))","v":"[select]"},"AAMC","Academic","All",{"$f":"IF($F19=\"AAMC\",COMP!$D$83,IF($F19=\"MGMA\",COMP!$D$86,IF($F19=\"SPEC\",COMP!$K$91,\"no data\")))","v":"[select]"},null,null,null,null,null,null,0,0,0,0,0,0,0,null,0,0,0,0,0,0,0,{"$f":"IF($F19=\"SPEC\",COMP!K$90/1000,IFERROR(VLOOKUP($F19&$G19&$H19&$M19&COMP!$D$84&$I19&\"L\",AAMC!$A$2:$W$4000,10,FALSE)/1000,IFERROR(VLOOKUP($F19&$G19&$H19&$M19&COMP!$D$84&$I19&\"L\",MGMAC!$A$2:$W$4000,10,FALSE)/1000,IFERROR(VLOOKUP($F19&$G19&$H19&$M19&COMP!$D$84&$I19&\"L\",MGMACP!$A$2:$W$4000,10,FALSE)/1000,\"no data\"))))","v":"no data"},{"$f":"IF($F19=\"SPEC\",COMP!L$90/1000,IFERROR(VLOOKUP($F19&$G19&$H19&$M19&COMP!$D$84&$I19&\"L\",AAMC!$A$2:$W$4000,15,FALSE)/1000,IFERROR(VLOOKUP($F19&$G19&$H19&$M19&COMP!$D$84&$I19&\"L\",MGMAC!$A$2:$W$4000,15,FALSE)/1000,IFERROR(VLOOKUP($F19&$G19&$H19&$M19&COMP!$D$84&$I19&\"L\",MGMACP!$A$2:$W$4000,15,FALSE)/1000,\"no data\"))))","v":"no data"},{"$f":"IF($F19=\"SPEC\",COMP!M$90/1000,IFERROR(VLOOKUP($F19&$G19&$H19&$M19&COMP!$D$84&$I19&\"L\",AAMC!$A$2:$W$4000,20,FALSE)/1000,IFERROR(VLOOKUP($F19&$G19&$H19&$M19&COMP!$D$84&$I19&\"L\",MGMAC!$A$2:$W$4000,20,FALSE)/1000,IFERROR(VLOOKUP($F19&$G19&$H19&$M19&COMP!$D$84&$I19&\"L\",MGMACP!$A$2:$W$4000,20,FALSE)/1000,\"no data\"))))","v":"no data"},null,0,0,0,0,0,null,1,0,{"$f":"IF($J19=0,0,IF($B19=\"SPEC\",COMP!$L$102,IF($B19=\"FPSC\",IFERROR(VLOOKUP($B19&$C19&$D19&$E19&\"L\",FPSC!$A$2:$W$4000,13,FALSE),\"no data\"),IF(B19&C19=\"MGMAAcademic\",IFERROR(VLOOKUP($B19&$C19&$D19&$E19&\"L\",MGMAR!$A$2:$W$4000,13,FALSE),\"no data\"),IFERROR(VLOOKUP($B19&$C19&$D19&$E19&\"L\",MGMARP!$A$2:$W$4000,13,FALSE),\"no data\")))))","v":0},0,0,0,0,0,0,0,0,0,0,null,0]
[0,"FPSC","Academic","All",{"$f":"IF($B20=\"MGMA\",COMP!$D$86,IF($B20=\"FPSC\",COMP!$D$85,IF($B20=\"SPEC\",COMP!$K$103,\"no data\")))","v":"[select]"},"AAMC","Academic","All",{"$f":"IF($F20=\"AAMC\",COMP!$D$83,IF($F20=\"MGMA\",COMP!$D$86,IF($F20=\"SPEC\",COMP!$K$91,\"no data\")))","v":"[select]"},null,null,null,null,null,null,0,0,0,0,0,0,0,null,0,0,0,0,0,0,0,{"$f":"IF($F20=\"SPEC\",COMP!K$90/1000,IFERROR(VLOOKUP($F20&$G20&$H20&$M20&COMP!$D$84&$I20&\"L\",AAMC!$A$2:$W$4000,10,FALSE)/1000,IFERROR(VLOOKUP($F20&$G20&$H20&$M20&COMP!$D$84&$I20&\"L\",MGMAC!$A$2:$W$4000,10,FALSE)/1000,IFERROR(VLOOKUP($F20&$G20&$H20&$M20&COMP!$D$84&$I20&\"L\",MGMACP!$A$2:$W$4000,10,FALSE)/1000,\"no data\"))))","v":"no data"},{"$f":"IF($F20=\"SPEC\",COMP!L$90/1000,IFERROR(VLOOKUP($F20&$G20&$H20&$M20&COMP!$D$84&$I20&\"L\",AAMC!$A$2:$W$4000,15,FALSE)/1000,IFERROR(VLOOKUP($F20&$G20&$H20&$M20&COMP!$D$84&$I20&\"L\",MGMAC!$A$2:$W$4000,15,FALSE)/1000,IFERROR(VLOOKUP($F20&$G20&$H20&$M20&COMP!$D$84&$I20&\"L\",MGMACP!$A$2:$W$4000,15,FALSE)/1000,\"no data\"))))","v":"no data"},{"$f":"IF($F20=\"SPEC\",COMP!M$90/1000,IFERROR(VLOOKUP($F20&$G20&$H20&$M20&COMP!$D$84&$I20&\"L\",AAMC!$A$2:$W$4000,20,FALSE)/1000,IFERROR(VLOOKUP($F20&$G20&$H20&$M20&COMP!$D$84&$I20&\"L\",MGMAC!$A$2:$W$4000,20,FALSE)/1000,IFERROR(VLOOKUP($F20&$G20&$H20&$M20&COMP!$D$84&$I20&\"L\",MGMACP!$A$2:$W$4000,20,FALSE)/1000,\"no data\"))))","v":"no data"},null,0,0,0,0,0,null,1,0,{"$f":"IF($J20=0,0,IF($B20=\"SPEC\",COMP!$L$102,IF($B20=\"FPSC\",IFERROR(VLOOKUP($B20&$C20&$D20&$E20&\"L\",FPSC!$A$2:$W$4000,13,FALSE),\"no data\"),IF(B20&C20=\"MGMAAcademic\",IFERROR(VLOOKUP($B20&$C20&$D20&$E20&\"L\",MGMAR!$A$2:$W$4000,13,FALSE),\"no data\"),IFERROR(VLOOKUP($B20&$C20&$D20&$E20&\"L\",MGMARP!$A$2:$W$4000,13,FALSE),\"no data\")))))","v":0},0,0,0,0,0,0,0,0,{"$f":"IF($M$9=M20,1,0)","v":0},0,null,0]
[{"$f":"IF(J21>0,1,0)","v":0},"FPSC","Academic","All",{"$f":"IF($B21=\"MGMA\",COMP!$D$86,IF($B21=\"FPSC\",COMP!$D$85,IF($B21=\"SPEC\",COMP!$K$103,\"no data\")))","v":"[select]"},"AAMC","Academic","All",{"$f":"IF($F21=\"AAMC\",COMP!$D$83,IF($F21=\"MGMA\",COMP!$D$86,IF($F21=\"SPEC\",COMP!$K$91,\"no data\")))","v":"[select]"},null,null,null,null,null,null,0,0,0,0,0,0,0,null,0,0,0,0,0,0,0,{"$f":"IF($F21=\"SPEC\",COMP!K$90/1000,IFERROR(VLOOKUP($F21&$G21&$H21&$M21&COMP!$D$84&$I21&\"L\",AAMC!$A$2:$W$4000,10,FALSE)/1000,IFERROR(VLOOKUP($F21&$G21&$H21&$M21&COMP!$D$84&$I21&\"L\",MGMAC!$A$2:$W$4000,10,FALSE)/1000,IFERROR(VLOOKUP($F21&$G21&$H21&$M21&COMP!$D$84&$I21&\"L\",MGMACP!$A$2:$W$4000,10,FALSE)/1000,\"no data\"))))","v":"no data"},{"$f":"IF($F21=\"SPEC\",COMP!L$90/1000,IFERROR(VLOOKUP($F21&$G21&$H21&$M21&COMP!$D$84&$I21&\"L\",AAMC!$A$2:$W$4000,15,FALSE)/1000,IFERROR(VLOOKUP($F21&$G21&$H21&$M21&COMP!$D$84&$I21&\"L\",MGMAC!$A$2:$W$4000,15,FALSE)/1000,IFERROR(VLOOKUP($F21&$G21&$H21&$M21&COMP!$D$84&$I21&\"L\",MGMACP!$A$2:$W$4000,15,FALSE)/1000,\"no data\"))))","v":"no data"},{"$f":"IF($F21=\"SPEC\",COMP!M$90/1000,IFERROR(VLOOKUP($F21&$G21&$H21&$M21&COMP!$D$84&$I21&\"L\",AAMC!$A$2:$W$4000,20,FALSE)/1000,IFERROR(VLOOKUP($F21&$G21&$H21&$M21&COMP!$D$84&$I21&\"L\",MGMAC!$A$2:$W$4000,20,FALSE)/1000,IFERROR(VLOOKUP($F21&$G21&$H21&$M21&COMP!$D$84&$I21&\"L\",MGMACP!$A$2:$W$4000,20,FALSE)/1000,\"no data\"))))","v":"no data"},null,0,0,0,0,0,null,1,0,{"$f":"IF($J21=0,0,IF($B21=\"SPEC\",COMP!$L$102,IF($B21=\"FPSC\",IFERROR(VLOOKUP($B21&$C21&$D21&$E21&\"L\",FPSC!$A$2:$W$4000,13,FALSE),\"no data\"),IF(B21&C21=\"MGMAAcademic\",IFERROR(VLOOKUP($B21&$C21&$D21&$E21&\"L\",MGMAR!$A$2:$W$4000,13,FALSE),\"no data\"),IFERROR(VLOOKUP($B21&$C21&$D21&$E21&\"L\",MGMARP!$A$2:$W$4000,13,FALSE),\"no data\")))))","v":0},0,0,0,{"$f":"IF(J21>0,IF(K21=0,1,0),0)","v":0},{"$f":"IF(J21>0,IF(L21=0,1,0),0)","v":0},{"$f":"IF(J21>0,IF(M21=0,1,0),0)","v":0},{"$f":"IF(J21>0,IF(V21=0,1,0),0)","v":0},{"$f":"IF(J21>0,IF(AC21=0,1,0),0)","v":0},0,0,null,0]
[0,"FPSC","Academic","All",{"$f":"IF($B22=\"MGMA\",COMP!$D$86,IF($B22=\"FPSC\",COMP!$D$85,IF($B22=\"SPEC\",COMP!$K$103,\"no data\")))","v":"[select]"},"AAMC","Academic","All",{"$f":"IF($F22=\"AAMC\",COMP!$D$83,IF($F22=\"MGMA\",COMP!$D$86,IF($F22=\"SPEC\",COMP!$K$91,\"no data\")))","v":"[select]"},null,null,null,null,null,null,0,0,0,0,0,0,0,null,0,0,0,0,0,{"$f":"+AB22+AA22+X22","v":0},0,{"$f":"IF($F22=\"SPEC\",COMP!K$90/1000,IFERROR(VLOOKUP($F22&$G22&$H22&$M22&COMP!$D$84&$I22&\"L\",AAMC!$A$2:$W$4000,10,FALSE)/1000,IFERROR(VLOOKUP($F22&$G22&$H22&$M22&COMP!$D$84&$I22&\"L\",MGMAC!$A$2:$W$4000,10,FALSE)/1000,IFERROR(VLOOKUP($F22&$G22&$H22&$M22&COMP!$D$84&$I22&\"L\",MGMACP!$A$2:$W$4000,10,FALSE)/1000,\"no data\"))))","v":"no data"},{"$f":"IF($F22=\"SPEC\",COMP!L$90/1000,IFERROR(VLOOKUP($F22&$G22&$H22&$M22&COMP!$D$84&$I22&\"L\",AAMC!$A$2:$W$4000,15,FALSE)/1000,IFERROR(VLOOKUP($F22&$G22&$H22&$M22&COMP!$D$84&$I22&\"L\",MGMAC!$A$2:$W$4000,15,FALSE)/1000,IFERROR(VLOOKUP($F22&$G22&$H22&$M22&COMP!$D$84&$I22&\"L\",MGMACP!$A$2:$W$4000,15,FALSE)/1000,\"no data\"))))","v":"no data"},{"$f":"IF($F22=\"SPEC\",COMP!M$90/1000,IFERROR(VLOOKUP($F22&$G22&$H22&$M22&COMP!$D$84&$I22&\"L\",AAMC!$A$2:$W$4000,20,FALSE)/1000,IFERROR(VLOOKUP($F22&$G22&$H22&$M22&COMP!$D$84&$I22&\"L\",MGMAC!$A$2:$W$4000,20,FALSE)/1000,IFERROR(VLOOKUP($F22&$G22&$H22&$M22&COMP!$D$84&$I22&\"L\",MGMACP!$A$2:$W$4000,20,FALSE)/1000,\"no data\"))))","v":"no data"},null,0,0,0,0,0,null,1,0,{"$f":"IF($J22=0,0,IF($B22=\"SPEC\",COMP!$L$102,IF($B22=\"FPSC\",IFERROR(VLOOKUP($B22&$C22&$D22&$E22&\"L\",FPSC!$A$2:$W$4000,13,FALSE),\"no data\"),IF(B22&C22=\"MGMAAcademic\",IFERROR(VLOOKUP($B22&$C22&$D22&$E22&\"L\",MGMAR!$A$2:$W$4000,13,FALSE),\"no data\"),IFERROR(VLOOKUP($B22&$C22&$D22&$E22&\"L\",MGMARP!$A$2:$W$4000,13,FALSE),\"no data\")))))","v":0},0,0,0,0,0,0,0,0,0,0,null,0]
[0,"FPSC","Academic","All",{"$f":"IF($B23=\"MGMA\",COMP!$D$86,IF($B23=\"FPSC\",COMP!$D$85,IF($B23=\"SPEC\",COMP!$K$103,\"no data\")))","v":"[select]"},"AAMC","Academic","All",{"$f":"IF($F23=\"AAMC\",COMP!$D$83,IF($F23=\"MGMA\",COMP!$D$86,IF($F23=\"SPEC\",COMP!$K$91,\"no data\")))","v":"[select]"},null,null,null,null,null,null,0,0,0,0,0,0,0,null,0,0,0,0,0,0,0,{"$f":"IF($F23=\"SPEC\",COMP!K$90/1000,IFERROR(VLOOKUP($F23&$G23&$H23&$M23&COMP!$D$84&$I23&\"L\",AAMC!$A$2:$W$4000,10,FALSE)/1000,IFERROR(VLOOKUP($F23&$G23&$H23&$M23&COMP!$D$84&$I23&\"L\",MGMAC!$A$2:$W$4000,10,FALSE)/1000,IFERROR(VLOOKUP($F23&$G23&$H23&$M23&COMP!$D$84&$I23&\"L\",MGMACP!$A$2:$W$4000,10,FALSE)/1000,\"no data\"))))","v":"no data"},{"$f":"IF($F23=\"SPEC\",COMP!L$90/1000,IFERROR(VLOOKUP($F23&$G23&$H23&$M23&COMP!$D$84&$I23&\"L\",AAMC!$A$2:$W$4000,15,FALSE)/1000,IFERROR(VLOOKUP($F23&$G23&$H23&$M23&COMP!$D$84&$I23&\"L\",MGMAC!$A$2:$W$4000,15,FALSE)/1000,IFERROR(VLOOKUP($F23&$G23&$H23&$M23&COMP!$D$84&$I23&\"L\",MGMACP!$A$2:$W$4000,15,FALSE)/1000,\"no data\"))))","v":"no data"},{"$f":"IF($F23=\"SPEC\",COMP!M$90/1000,IFERROR(VLOOKUP($F23&$G23&$H23&$M23&COMP!$D$84&$I23&\"L\",AAMC!$A$2:$W$4000,20,FALSE)/1000,IFERROR(VLOOKUP($F23&$G23&$H23&$M23&COMP!$D$84&$I23&\"L\",MGMAC!$A$2:$W$4000,20,FALSE)/1000,IFERROR(VLOOKUP($F23&$G23&$H23&$M23&COMP!$D$84&$I23&\"L\",MGMACP!$A$2:$W$4000,20,FALSE)/1000,\"no data\"))))","v":"no data"},null,0,0,0,0,0,null,1,0,{"$f":"IF($J23=0,0,IF($B23=\"SPEC\",COMP!$L$102,IF($B23=\"FPSC\",IFERROR(VLOOKUP($B23&$C23&$D23&$E23&\"L\",FPSC!$A$2:$W$4000,13,FALSE),\"no data\"),IF(B23&C23=\"MGMAAcademic\",IFERROR(VLOOKUP($B23&$C23&$D23&$E23&\"L\",MGMAR!$A$2:$W$4000,13,FALSE),\"no data\"),IFERROR(VLOOKUP($B23&$C23&$D23&$E23&\"L\",MGMARP!$A$2:$W$4000,13,FALSE),\"no data\")))))","v":0},0,0,0,0,0,0,0,0,0,0,null,0]
[0,"FPSC","Academic","All",{"$f":"IF($B24=\"MGMA\",COMP!$D$86,IF($B24=\"FPSC\",COMP!$D$85,IF($B24=\"SPEC\",COMP!$K$103,\"no data\")))","v":"[select]"},"AAMC","Academic","All",{"$f":"IF($F24=\"AAMC\",COMP!$D$83,IF($F24=\"MGMA\",COMP!$D$86,IF($F24=\"SPEC\",COMP!$K$91,\"no data\")))","v":"[select]"},null,null,null,null,null,null,0,0,0,0,0,0,0,null,0,0,0,0,0,0,0,{"$f":"IF($F24=\"SPEC\",COMP!K$90/1000,IFERROR(VLOOKUP($F24&$G24&$H24&$M24&COMP!$D$84&$I24&\"L\",AAMC!$A$2:$W$4000,10,FALSE)/1000,IFERROR(VLOOKUP($F24&$G24&$H24&$M24&COMP!$D$84&$I24&\"L\",MGMAC!$A$2:$W$4000,10,FALSE)/1000,IFERROR(VLOOKUP($F24&$G24&$H24&$M24&COMP!$D$84&$I24&\"L\",MGMACP!$A$2:$W$4000,10,FALSE)/1000,\"no data\"))))","v":"no data"},{"$f":"IF($F24=\"SPEC\",COMP!L$90/1000,IFERROR(VLOOKUP($F24&$G24&$H24&$M24&COMP!$D$84&$I24&\"L\",AAMC!$A$2:$W$4000,15,FALSE)/1000,IFERROR(VLOOKUP($F24&$G24&$H24&$M24&COMP!$D$84&$I24&\"L\",MGMAC!$A$2:$W$4000,15,FALSE)/1000,IFERROR(VLOOKUP($F24&$G24&$H24&$M24&COMP!$D$84&$I24&\"L\",MGMACP!$A$2:$W$4000,15,FALSE)/1000,\"no data\"))))","v":"no data"},{"$f":"IF($F24=\"SPEC\",COMP!M$90/1000,IFERROR(VLOOKUP($F24&$G24&$H24&$M24&COMP!$D$84&$I24&\"L\",AAMC!$A$2:$W$4000,20,FALSE)/1000,IFERROR(VLOOKUP($F24&$G24&$H24&$M24&COMP!$D$84&$I24&\"L\",MGMAC!$A$2:$W$4000,20,FALSE)/1000,IFERROR(VLOOKUP($F24&$G24&$H24&$M24&COMP!$D$84&$I24&\"L\",MGMACP!$A$2:$W$4000,20,FALSE)/1000,\"no data\"))))","v":"no data"},null,0,0,0,0,0,null,1,0,{"$f":"IF($J24=0,0,IF($B24=\"SPEC\",COMP!$L$102,IF($B24=\"FPSC\",IFERROR(VLOOKUP($B24&$C24&$D24&$E24&\"L\",FPSC!$A$2:$W$4000,13,FALSE),\"no data\"),IF(B24&C24=\"MGMAAcademic\",IFERROR(VLOOKUP($B24&$C24&$D24&$E24&\"L\",MGMAR!$A$2:$W$4000,13,FALSE),\"no data\"),IFERROR(VLOOKUP($B24&$C24&$D24&$E24&\"L\",MGMARP!$A$2:$W$4000,13,FALSE),\"no data\")))))","v":0},0,0,0,0,0,0,0,0,0,0,null,0]
[0,"FPSC","Academic","All",{"$f":"IF($B25=\"MGMA\",COMP!$D$86,IF($B25=\"FPSC\",COMP!$D$85,IF($B25=\"SPEC\",COMP!$K$103,\"no data\")))","v":"[select]"},"AAMC","Academic","All",{"$f":"IF($F25=\"AAMC\",COMP!$D$83,IF($F25=\"MGMA\",COMP!$D$86,IF($F25=\"SPEC\",COMP!$K$91,\"no data\")))","v":"[select]"},null,null,null,null,null,null,0,0,0,0,0,0,0,null,0,0,0,0,0,0,0,{"$f":"IF($F25=\"SPEC\",COMP!K$90/1000,IFERROR(VLOOKUP($F25&$G25&$H25&$M25&COMP!$D$84&$I25&\"L\",AAMC!$A$2:$W$4000,10,FALSE)/1000,IFERROR(VLOOKUP($F25&$G25&$H25&$M25&COMP!$D$84&$I25&\"L\",MGMAC!$A$2:$W$4000,10,FALSE)/1000,IFERROR(VLOOKUP($F25&$G25&$H25&$M25&COMP!$D$84&$I25&\"L\",MGMACP!$A$2:$W$4000,10,FALSE)/1000,\"no data\"))))","v":"no data"},{"$f":"IF($F25=\"SPEC\",COMP!L$90/1000,IFERROR(VLOOKUP($F25&$G25&$H25&$M25&COMP!$D$84&$I25&\"L\",AAMC!$A$2:$W$4000,15,FALSE)/1000,IFERROR(VLOOKUP($F25&$G25&$H25&$M25&COMP!$D$84&$I25&\"L\",MGMAC!$A$2:$W$4000,15,FALSE)/1000,IFERROR(VLOOKUP($F25&$G25&$H25&$M25&COMP!$D$84&$I25&\"L\",MGMACP!$A$2:$W$4000,15,FALSE)/1000,\"no data\"))))","v":"no data"},{"$f":"IF($F25=\"SPEC\",COMP!M$90/1000,IFERROR(VLOOKUP($F25&$G25&$H25&$M25&COMP!$D$84&$I25&\"L\",AAMC!$A$2:$W$4000,20,FALSE)/1000,IFERROR(VLOOKUP($F25&$G25&$H25&$M25&COMP!$D$84&$I25&\"L\",MGMAC!$A$2:$W$4000,20,FALSE)/1000,IFERROR(VLOOKUP($F25&$G25&$H25&$M25&COMP!$D$84&$I25&\"L\",MGMACP!$A$2:$W$4000,20,FALSE)/1000,\"no data\"))))","v":"no data"},null,0,0,0,0,0,null,1,0,{"$f":"IF($J25=0,0,IF($B25=\"SPEC\",COMP!$L$102,IF($B25=\"FPSC\",IFERROR(VLOOKUP($B25&$C25&$D25&$E25&\"L\",FPSC!$A$2:$W$4000,13,FALSE),\"no data\"),IF(B25&C25=\"MGMAAcademic\",IFERROR(VLOOKUP($B25&$C25&$D25&$E25&\"L\",MGMAR!$A$2:$W$4000,13,FALSE),\"no data\"),IFERROR(VLOOKUP($B25&$C25&$D25&$E25&\"L\",MGMARP!$A$2:$W$4000,13,FALSE),\"no data\")))))","v":0},0,0,0,0,0,0,0,0,0,0,null,0]
[0,"FPSC","Academic","All",{"$f":"IF($B26=\"MGMA\",COMP!$D$86,IF($B26=\"FPSC\",COMP!$D$85,IF($B26=\"SPEC\",COMP!$K$103,\"no data\")))","v":"[select]"},"AAMC","Academic","All",{"$f":"IF($F26=\"AAMC\",COMP!$D$83,IF($F26=\"MGMA\",COMP!$D$86,IF($F26=\"SPEC\",COMP!$K$91,\"no data\")))","v":"[select]"},null,null,null,null,null,null,0,0,0,0,0,0,0,null,0,0,0,0,0,0,0,{"$f":"IF($F26=\"SPEC\",COMP!K$90/1000,IFERROR(VLOOKUP($F26&$G26&$H26&$M26&COMP!$D$84&$I26&\"L\",AAMC!$A$2:$W$4000,10,FALSE)/1000,IFERROR(VLOOKUP($F26&$G26&$H26&$M26&COMP!$D$84&$I26&\"L\",MGMAC!$A$2:$W$4000,10,FALSE)/1000,IFERROR(VLOOKUP($F26&$G26&$H26&$M26&COMP!$D$84&$I26&\"L\",MGMACP!$A$2:$W$4000,10,FALSE)/1000,\"no data\"))))","v":"no data"},{"$f":"IF($F26=\"SPEC\",COMP!L$90/1000,IFERROR(VLOOKUP($F26&$G26&$H26&$M26&COMP!$D$84&$I26&\"L\",AAMC!$A$2:$W$4000,15,FALSE)/1000,IFERROR(VLOOKUP($F26&$G26&$H26&$M26&COMP!$D$84&$I26&\"L\",MGMAC!$A$2:$W$4000,15,FALSE)/1000,IFERROR(VLOOKUP($F26&$G26&$H26&$M26&COMP!$D$84&$I26&\"L\",MGMACP!$A$2:$W$4000,15,FALSE)/1000,\"no data\"))))","v":"no data"},{"$f":"IF($F26=\"SPEC\",COMP!M$90/1000,IFERROR(VLOOKUP($F26&$G26&$H26&$M26&COMP!$D$84&$I26&\"L\",AAMC!$A$2:$W$4000,20,FALSE)/1000,IFERROR(VLOOKUP($F26&$G26&$H26&$M26&COMP!$D$84&$I26&\"L\",MGMAC!$A$2:$W$4000,20,FALSE)/1000,IFERROR(VLOOKUP($F26&$G26&$H26&$M26&COMP!$D$84&$I26&\"L\",MGMACP!$A$2:$W$4000,20,FALSE)/1000,\"no data\"))))","v":"no data"},null,0,0,0,0,0,null,1,0,{"$f":"IF($J26=0,0,IF($B26=\"SPEC\",COMP!$L$102,IF($B26=\"FPSC\",IFERROR(VLOOKUP($B26&$C26&$D26&$E26&\"L\",FPSC!$A$2:$W$4000,13,FALSE),\"no data\"),IF(B26&C26=\"MGMAAcademic\",IFERROR(VLOOKUP($B26&$C26&$D26&$E26&\"L\",MGMAR!$A$2:$W$4000,13,FALSE),\"no data\"),IFERROR(VLOOKUP($B26&$C26&$D26&$E26&\"L\",MGMARP!$A$2:$W$4000,13,FALSE),\"no data\")))))","v":0},0,0,0,0,0,0,0,0,0,0,null,0]
[0,"FPSC","Academic","All",{"$f":"IF($B27=\"MGMA\",COMP!$D$86,IF($B27=\"FPSC\",COMP!$D$85,IF($B27=\"SPEC\",COMP!$K$103,\"no data\")))","v":"[select]"},"AAMC","Academic","All",{"$f":"IF($F27=\"AAMC\",COMP!$D$83,IF($F27=\"MGMA\",COMP!$D$86,IF($F27=\"SPEC\",COMP!$K$91,\"no data\")))","v":"[select]"},null,null,null,null,null,null,0,0,0,0,0,0,0,null,0,0,0,0,0,0,0,{"$f":"IF($F27=\"SPEC\",COMP!K$90/1000,IFERROR(VLOOKUP($F27&$G27&$H27&$M27&COMP!$D$84&$I27&\"L\",AAMC!$A$2:$W$4000,10,FALSE)/1000,IFERROR(VLOOKUP($F27&$G27&$H27&$M27&COMP!$D$84&$I27&\"L\",MGMAC!$A$2:$W$4000,10,FALSE)/1000,IFERROR(VLOOKUP($F27&$G27&$H27&$M27&COMP!$D$84&$I27&\"L\",MGMACP!$A$2:$W$4000,10,FALSE)/1000,\"no data\"))))","v":"no data"},{"$f":"IF($F27=\"SPEC\",COMP!L$90/1000,IFERROR(VLOOKUP($F27&$G27&$H27&$M27&COMP!$D$84&$I27&\"L\",AAMC!$A$2:$W$4000,15,FALSE)/1000,IFERROR(VLOOKUP($F27&$G27&$H27&$M27&COMP!$D$84&$I27&\"L\",MGMAC!$A$2:$W$4000,15,FALSE)/1000,IFERROR(VLOOKUP($F27&$G27&$H27&$M27&COMP!$D$84&$I27&\"L\",MGMACP!$A$2:$W$4000,15,FALSE)/1000,\"no data\"))))","v":"no data"},{"$f":"IF($F27=\"SPEC\",COMP!M$90/1000,IFERROR(VLOOKUP($F27&$G27&$H27&$M27&COMP!$D$84&$I27&\"L\",AAMC!$A$2:$W$4000,20,FALSE)/1000,IFERROR(VLOOKUP($F27&$G27&$H27&$M27&COMP!$D$84&$I27&\"L\",MGMAC!$A$2:$W$4000,20,FALSE)/1000,IFERROR(VLOOKUP($F27&$G27&$H27&$M27&COMP!$D$84&$I27&\"L\",MGMACP!$A$2:$W$4000,20,FALSE)/1000,\"no data\"))))","v":"no data"},null,0,0,0,0,0,null,1,0,{"$f":"IF($J27=0,0,IF($B27=\"SPEC\",COMP!$L$102,IF($B27=\"FPSC\",IFERROR(VLOOKUP($B27&$C27&$D27&$E27&\"L\",FPSC!$A$2:$W$4000,13,FALSE),\"no data\"),IF(B27&C27=\"MGMAAcademic\",IFERROR(VLOOKUP($B27&$C27&$D27&$E27&\"L\",MGMAR!$A$2:$W$4000,13,FALSE),\"no data\"),IFERROR(VLOOKUP($B27&$C27&$D27&$E27&\"L\",MGMARP!$A$2:$W$4000,13,FALSE),\"no data\")))))","v":0},0,0,0,0,0,0,0,0,0,0,null,0]
[0,"FPSC","Academic","All",{"$f":"IF($B28=\"MGMA\",COMP!$D$86,IF($B28=\"FPSC\",COMP!$D$85,IF($B28=\"SPEC\",COMP!$K$103,\"no data\")))","v":"[select]"},"AAMC","Academic","All",{"$f":"IF($F28=\"AAMC\",COMP!$D$83,IF($F28=\"MGMA\",COMP!$D$86,IF($F28=\"SPEC\",COMP!$K$91,\"no data\")))","v":"[select]"},null,null,null,null,null,null,0,0,0,0,0,0,0,null,0,0,0,0,0,0,0,{"$f":"IF($F28=\"SPEC\",COMP!K$90/1000,IFERROR(VLOOKUP($F28&$G28&$H28&$M28&COMP!$D$84&$I28&\"L\",AAMC!$A$2:$W$4000,10,FALSE)/1000,IFERROR(VLOOKUP($F28&$G28&$H28&$M28&COMP!$D$84&$I28&\"L\",MGMAC!$A$2:$W$4000,10,FALSE)/1000,IFERROR(VLOOKUP($F28&$G28&$H28&$M28&COMP!$D$84&$I28&\"L\",MGMACP!$A$2:$W$4000,10,FALSE)/1000,\"no data\"))))","v":"no data"},{"$f":"IF($F28=\"SPEC\",COMP!L$90/1000,IFERROR(VLOOKUP($F28&$G28&$H28&$M28&COMP!$D$84&$I28&\"L\",AAMC!$A$2:$W$4000,15,FALSE)/1000,IFERROR(VLOOKUP($F28&$G28&$H28&$M28&COMP!$D$84&$I28&\"L\",MGMAC!$A$2:$W$4000,15,FALSE)/1000,IFERROR(VLOOKUP($F28&$G28&$H28&$M28&COMP!$D$84&$I28&\"L\",MGMACP!$A$2:$W$4000,15,FALSE)/1000,\"no data\"))))","v":"no data"},{"$f":"IF($F28=\"SPEC\",COMP!M$90/1000,IFERROR(VLOOKUP($F28&$G28&$H28&$M28&COMP!$D$84&$I28&\"L\",AAMC!$A$2:$W$4000,20,FALSE)/1000,IFERROR(VLOOKUP($F28&$G28&$H28&$M28&COMP!$D$84&$I28&\"L\",MGMAC!$A$2:$W$4000,20,FALSE)/1000,IFERROR(VLOOKUP($F28&$G28&$H28&$M28&COMP!$D$84&$I28&\"L\",MGMACP!$A$2:$W$4000,20,FALSE)/1000,\"no data\"))))","v":"no data"},null,0,0,0,0,0,null,1,0,{"$f":"IF($J28=0,0,IF($B28=\"SPEC\",COMP!$L$102,IF($B28=\"FPSC\",IFERROR(VLOOKUP($B28&$C28&$D28&$E28&\"L\",FPSC!$A$2:$W$4000,13,FALSE),\"no data\"),IF(B28&C28=\"MGMAAcademic\",IFERROR(VLOOKUP($B28&$C28&$D28&$E28&\"L\",MGMAR!$A$2:$W$4000,13,FALSE),\"no data\"),IFERROR(VLOOKUP($B28&$C28&$D28&$E28&\"L\",MGMARP!$A$2:$W$4000,13,FALSE),\"no data\")))))","v":0},0,0,0,0,0,0,0,0,0,0,null,0]
[0,"FPSC","Academic","All",{"$f":"IF($B29=\"MGMA\",COMP!$D$86,IF($B29=\"FPSC\",COMP!$D$85,IF($B29=\"SPEC\",COMP!$K$103,\"no data\")))","v":"[select]"},"AAMC","Academic","All",{"$f":"IF($F29=\"AAMC\",COMP!$D$83,IF($F29=\"MGMA\",COMP!$D$86,IF($F29=\"SPEC\",COMP!$K$91,\"no data\")))","v":"[select]"},null,null,null,null,null,null,0,0,0,0,0,0,0,null,0,0,0,0,0,0,0,{"$f":"IF($F29=\"SPEC\",COMP!K$90/1000,IFERROR(VLOOKUP($F29&$G29&$H29&$M29&COMP!$D$84&$I29&\"L\",AAMC!$A$2:$W$4000,10,FALSE)/1000,IFERROR(VLOOKUP($F29&$G29&$H29&$M29&COMP!$D$84&$I29&\"L\",MGMAC!$A$2:$W$4000,10,FALSE)/1000,IFERROR(VLOOKUP($F29&$G29&$H29&$M29&COMP!$D$84&$I29&\"L\",MGMACP!$A$2:$W$4000,10,FALSE)/1000,\"no data\"))))","v":"no data"},{"$f":"IF($F29=\"SPEC\",COMP!L$90/1000,IFERROR(VLOOKUP($F29&$G29&$H29&$M29&COMP!$D$84&$I29&\"L\",AAMC!$A$2:$W$4000,15,FALSE)/1000,IFERROR(VLOOKUP($F29&$G29&$H29&$M29&COMP!$D$84&$I29&\"L\",MGMAC!$A$2:$W$4000,15,FALSE)/1000,IFERROR(VLOOKUP($F29&$G29&$H29&$M29&COMP!$D$84&$I29&\"L\",MGMACP!$A$2:$W$4000,15,FALSE)/1000,\"no data\"))))","v":"no data"},{"$f":"IF($F29=\"SPEC\",COMP!M$90/1000,IFERROR(VLOOKUP($F29&$G29&$H29&$M29&COMP!$D$84&$I29&\"L\",AAMC!$A$2:$W$4000,20,FALSE)/1000,IFERROR(VLOOKUP($F29&$G29&$H29&$M29&COMP!$D$84&$I29&\"L\",MGMAC!$A$2:$W$4000,20,FALSE)/1000,IFERROR(VLOOKUP($F29&$G29&$H29&$M29&COMP!$D$84&$I29&\"L\",MGMACP!$A$2:$W$4000,20,FALSE)/1000,\"no data\"))))","v":"no data"},null,0,0,0,0,0,null,1,0,{"$f":"IF($J29=0,0,IF($B29=\"SPEC\",COMP!$L$102,IF($B29=\"FPSC\",IFERROR(VLOOKUP($B29&$C29&$D29&$E29&\"L\",FPSC!$A$2:$W$4000,13,FALSE),\"no data\"),IF(B29&C29=\"MGMAAcademic\",IFERROR(VLOOKUP($B29&$C29&$D29&$E29&\"L\",MGMAR!$A$2:$W$4000,13,FALSE),\"no data\"),IFERROR(VLOOKUP($B29&$C29&$D29&$E29&\"L\",MGMARP!$A$2:$W$4000,13,FALSE),\"no data\")))))","v":0},0,0,0,0,0,0,0,0,0,0,null,0]
[0,"FPSC","Academic","All",{"$f":"IF($B30=\"MGMA\",COMP!$D$86,IF($B30=\"FPSC\",COMP!$D$85,IF($B30=\"SPEC\",COMP!$K$103,\"no data\")))","v":"[select]"},"AAMC","Academic","All",{"$f":"IF($F30=\"AAMC\",COMP!$D$83,IF($F30=\"MGMA\",COMP!$D$86,IF($F30=\"SPEC\",COMP!$K$91,\"no data\")))","v":"[select]"},null,null,null,null,null,null,0,0,0,0,0,0,0,null,0,0,0,0,0,0,0,{"$f":"IF($F30=\"SPEC\",COMP!K$90/1000,IFERROR(VLOOKUP($F30&$G30&$H30&$M30&COMP!$D$84&$I30&\"L\",AAMC!$A$2:$W$4000,10,FALSE)/1000,IFERROR(VLOOKUP($F30&$G30&$H30&$M30&COMP!$D$84&$I30&\"L\",MGMAC!$A$2:$W$4000,10,FALSE)/1000,IFERROR(VLOOKUP($F30&$G30&$H30&$M30&COMP!$D$84&$I30&\"L\",MGMACP!$A$2:$W$4000,10,FALSE)/1000,\"no data\"))))","v":"no data"},{"$f":"IF($F30=\"SPEC\",COMP!L$90/1000,IFERROR(VLOOKUP($F30&$G30&$H30&$M30&COMP!$D$84&$I30&\"L\",AAMC!$A$2:$W$4000,15,FALSE)/1000,IFERROR(VLOOKUP($F30&$G30&$H30&$M30&COMP!$D$84&$I30&\"L\",MGMAC!$A$2:$W$4000,15,FALSE)/1000,IFERROR(VLOOKUP($F30&$G30&$H30&$M30&COMP!$D$84&$I30&\"L\",MGMACP!$A$2:$W$4000,15,FALSE)/1000,\"no data\"))))","v":"no data"},{"$f":"IF($F30=\"SPEC\",COMP!M$90/1000,IFERROR(VLOOKUP($F30&$G30&$H30&$M30&COMP!$D$84&$I30&\"L\",AAMC!$A$2:$W$4000,20,FALSE)/1000,IFERROR(VLOOKUP($F30&$G30&$H30&$M30&COMP!$D$84&$I30&\"L\",MGMAC!$A$2:$W$4000,20,FALSE)/1000,IFERROR(VLOOKUP($F30&$G30&$H30&$M30&COMP!$D$84&$I30&\"L\",MGMACP!$A$2:$W$4000,20,FALSE)/1000,\"no data\"))))","v":"no data"},null,0,0,0,0,0,null,1,0,{"$f":"IF($J30=0,0,IF($B30=\"SPEC\",COMP!$L$102,IF($B30=\"FPSC\",IFERROR(VLOOKUP($B30&$C30&$D30&$E30&\"L\",FPSC!$A$2:$W$4000,13,FALSE),\"no data\"),IF(B30&C30=\"MGMAAcademic\",IFERROR(VLOOKUP($B30&$C30&$D30&$E30&\"L\",MGMAR!$A$2:$W$4000,13,FALSE),\"no data\"),IFERROR(VLOOKUP($B30&$C30&$D30&$E30&\"L\",MGMARP!$A$2:$W$4000,13,FALSE),\"no data\")))))","v":0},0,0,0,0,0,0,0,0,0,0,null,0]
[0,"FPSC","Academic","All",{"$f":"IF($B31=\"MGMA\",COMP!$D$86,IF($B31=\"FPSC\",COMP!$D$85,IF($B31=\"SPEC\",COMP!$K$103,\"no data\")))","v":"[select]"},"AAMC","Academic","All",{"$f":"IF($F31=\"AAMC\",COMP!$D$83,IF($F31=\"MGMA\",COMP!$D$86,IF($F31=\"SPEC\",COMP!$K$91,\"no data\")))","v":"[select]"},null,null,null,null,null,null,0,0,0,0,0,0,0,null,0,0,0,0,0,0,0,{"$f":"IF($F31=\"SPEC\",COMP!K$90/1000,IFERROR(VLOOKUP($F31&$G31&$H31&$M31&COMP!$D$84&$I31&\"L\",AAMC!$A$2:$W$4000,10,FALSE)/1000,IFERROR(VLOOKUP($F31&$G31&$H31&$M31&COMP!$D$84&$I31&\"L\",MGMAC!$A$2:$W$4000,10,FALSE)/1000,IFERROR(VLOOKUP($F31&$G31&$H31&$M31&COMP!$D$84&$I31&\"L\",MGMACP!$A$2:$W$4000,10,FALSE)/1000,\"no data\"))))","v":"no data"},{"$f":"IF($F31=\"SPEC\",COMP!L$90/1000,IFERROR(VLOOKUP($F31&$G31&$H31&$M31&COMP!$D$84&$I31&\"L\",AAMC!$A$2:$W$4000,15,FALSE)/1000,IFERROR(VLOOKUP($F31&$G31&$H31&$M31&COMP!$D$84&$I31&\"L\",MGMAC!$A$2:$W$4000,15,FALSE)/1000,IFERROR(VLOOKUP($F31&$G31&$H31&$M31&COMP!$D$84&$I31&\"L\",MGMACP!$A$2:$W$4000,15,FALSE)/1000,\"no data\"))))","v":"no data"},{"$f":"IF($F31=\"SPEC\",COMP!M$90/1000,IFERROR(VLOOKUP($F31&$G31&$H31&$M31&COMP!$D$84&$I31&\"L\",AAMC!$A$2:$W$4000,20,FALSE)/1000,IFERROR(VLOOKUP($F31&$G31&$H31&$M31&COMP!$D$84&$I31&\"L\",MGMAC!$A$2:$W$4000,20,FALSE)/1000,IFERROR(VLOOKUP($F31&$G31&$H31&$M31&COMP!$D$84&$I31&\"L\",MGMACP!$A$2:$W$4000,20,FALSE)/1000,\"no data\"))))","v":"no data"},null,0,0,0,0,0,null,1,0,{"$f":"IF($J31=0,0,IF($B31=\"SPEC\",COMP!$L$102,IF($B31=\"FPSC\",IFERROR(VLOOKUP($B31&$C31&$D31&$E31&\"L\",FPSC!$A$2:$W$4000,13,FALSE),\"no data\"),IF(B31&C31=\"MGMAAcademic\",IFERROR(VLOOKUP($B31&$C31&$D31&$E31&\"L\",MGMAR!$A$2:$W$4000,13,FALSE),\"no data\"),IFERROR(VLOOKUP($B31&$C31&$D31&$E31&\"L\",MGMARP!$A$2:$W$4000,13,FALSE),\"no data\")))))","v":0},0,0,0,0,0,0,0,0,0,0,null,0]
[0,"FPSC","Academic","All",{"$f":"IF($B32=\"MGMA\",COMP!$D$86,IF($B32=\"FPSC\",COMP!$D$85,IF($B32=\"SPEC\",COMP!$K$103,\"no data\")))","v":"[select]"},"AAMC","Academic","All",{"$f":"IF($F32=\"AAMC\",COMP!$D$83,IF($F32=\"MGMA\",COMP!$D$86,IF($F32=\"SPEC\",COMP!$K$91,\"no data\")))","v":"[select]"},null,null,null,null,null,null,0,0,0,0,0,0,0,null,0,0,0,0,0,0,0,{"$f":"IF($F32=\"SPEC\",COMP!K$90/1000,IFERROR(VLOOKUP($F32&$G32&$H32&$M32&COMP!$D$84&$I32&\"L\",AAMC!$A$2:$W$4000,10,FALSE)/1000,IFERROR(VLOOKUP($F32&$G32&$H32&$M32&COMP!$D$84&$I32&\"L\",MGMAC!$A$2:$W$4000,10,FALSE)/1000,IFERROR(VLOOKUP($F32&$G32&$H32&$M32&COMP!$D$84&$I32&\"L\",MGMACP!$A$2:$W$4000,10,FALSE)/1000,\"no data\"))))","v":"no data"},{"$f":"IF($F32=\"SPEC\",COMP!L$90/1000,IFERROR(VLOOKUP($F32&$G32&$H32&$M32&COMP!$D$84&$I32&\"L\",AAMC!$A$2:$W$4000,15,FALSE)/1000,IFERROR(VLOOKUP($F32&$G32&$H32&$M32&COMP!$D$84&$I32&\"L\",MGMAC!$A$2:$W$4000,15,FALSE)/1000,IFERROR(VLOOKUP($F32&$G32&$H32&$M32&COMP!$D$84&$I32&\"L\",MGMACP!$A$2:$W$4000,15,FALSE)/1000,\"no data\"))))","v":"no data"},{"$f":"IF($F32=\"SPEC\",COMP!M$90/1000,IFERROR(VLOOKUP($F32&$G32&$H32&$M32&COMP!$D$84&$I32&\"L\",AAMC!$A$2:$W$4000,20,FALSE)/1000,IFERROR(VLOOKUP($F32&$G32&$H32&$M32&COMP!$D$84&$I32&\"L\",MGMAC!$A$2:$W$4000,20,FALSE)/1000,IFERROR(VLOOKUP($F32&$G32&$H32&$M32&COMP!$D$84&$I32&\"L\",MGMACP!$A$2:$W$4000,20,FALSE)/1000,\"no data\"))))","v":"no data"},null,0,0,0,0,0,null,1,0,{"$f":"IF($J32=0,0,IF($B32=\"SPEC\",COMP!$L$102,IF($B32=\"FPSC\",IFERROR(VLOOKUP($B32&$C32&$D32&$E32&\"L\",FPSC!$A$2:$W$4000,13,FALSE),\"no data\"),IF(B32&C32=\"MGMAAcademic\",IFERROR(VLOOKUP($B32&$C32&$D32&$E32&\"L\",MGMAR!$A$2:$W$4000,13,FALSE),\"no data\"),IFERROR(VLOOKUP($B32&$C32&$D32&$E32&\"L\",MGMARP!$A$2:$W$4000,13,FALSE),\"no data\")))))","v":0},0,0,0,0,0,0,0,0,0,0,null,0]
[0,"FPSC","Academic","All",{"$f":"IF($B33=\"MGMA\",COMP!$D$86,IF($B33=\"FPSC\",COMP!$D$85,IF($B33=\"SPEC\",COMP!$K$103,\"no data\")))","v":"[select]"},"AAMC","Academic","All",{"$f":"IF($F33=\"AAMC\",COMP!$D$83,IF($F33=\"MGMA\",COMP!$D$86,IF($F33=\"SPEC\",COMP!$K$91,\"no data\")))","v":"[select]"},null,null,null,null,null,null,0,0,0,0,0,0,0,null,0,0,0,0,0,0,0,{"$f":"IF($F33=\"SPEC\",COMP!K$90/1000,IFERROR(VLOOKUP($F33&$G33&$H33&$M33&COMP!$D$84&$I33&\"L\",AAMC!$A$2:$W$4000,10,FALSE)/1000,IFERROR(VLOOKUP($F33&$G33&$H33&$M33&COMP!$D$84&$I33&\"L\",MGMAC!$A$2:$W$4000,10,FALSE)/1000,IFERROR(VLOOKUP($F33&$G33&$H33&$M33&COMP!$D$84&$I33&\"L\",MGMACP!$A$2:$W$4000,10,FALSE)/1000,\"no data\"))))","v":"no data"},{"$f":"IF($F33=\"SPEC\",COMP!L$90/1000,IFERROR(VLOOKUP($F33&$G33&$H33&$M33&COMP!$D$84&$I33&\"L\",AAMC!$A$2:$W$4000,15,FALSE)/1000,IFERROR(VLOOKUP($F33&$G33&$H33&$M33&COMP!$D$84&$I33&\"L\",MGMAC!$A$2:$W$4000,15,FALSE)/1000,IFERROR(VLOOKUP($F33&$G33&$H33&$M33&COMP!$D$84&$I33&\"L\",MGMACP!$A$2:$W$4000,15,FALSE)/1000,\"no data\"))))","v":"no data"},{"$f":"IF($F33=\"SPEC\",COMP!M$90/1000,IFERROR(VLOOKUP($F33&$G33&$H33&$M33&COMP!$D$84&$I33&\"L\",AAMC!$A$2:$W$4000,20,FALSE)/1000,IFERROR(VLOOKUP($F33&$G33&$H33&$M33&COMP!$D$84&$I33&\"L\",MGMAC!$A$2:$W$4000,20,FALSE)/1000,IFERROR(VLOOKUP($F33&$G33&$H33&$M33&COMP!$D$84&$I33&\"L\",MGMACP!$A$2:$W$4000,20,FALSE)/1000,\"no data\"))))","v":"no data"},null,0,0,0,0,0,null,1,0,{"$f":"IF($J33=0,0,IF($B33=\"SPEC\",COMP!$L$102,IF($B33=\"FPSC\",IFERROR(VLOOKUP($B33&$C33&$D33&$E33&\"L\",FPSC!$A$2:$W$4000,13,FALSE),\"no data\"),IF(B33&C33=\"MGMAAcademic\",IFERROR(VLOOKUP($B33&$C33&$D33&$E33&\"L\",MGMAR!$A$2:$W$4000,13,FALSE),\"no data\"),IFERROR(VLOOKUP($B33&$C33&$D33&$E33&\"L\",MGMARP!$A$2:$W$4000,13,FALSE),\"no data\")))))","v":0},0,0,0,0,0,0,0,0,0,0,null,0]
[0,"FPSC","Academic","All",{"$f":"IF($B34=\"MGMA\",COMP!$D$86,IF($B34=\"FPSC\",COMP!$D$85,IF($B34=\"SPEC\",COMP!$K$103,\"no data\")))","v":"[select]"},"AAMC","Academic","All",{"$f":"IF($F34=\"AAMC\",COMP!$D$83,IF($F34=\"MGMA\",COMP!$D$86,IF($F34=\"SPEC\",COMP!$K$91,\"no data\")))","v":"[select]"},null,null,null,null,null,null,0,0,0,0,0,0,0,null,0,0,0,0,0,0,0,{"$f":"IF($F34=\"SPEC\",COMP!K$90/1000,IFERROR(VLOOKUP($F34&$G34&$H34&$M34&COMP!$D$84&$I34&\"L\",AAMC!$A$2:$W$4000,10,FALSE)/1000,IFERROR(VLOOKUP($F34&$G34&$H34&$M34&COMP!$D$84&$I34&\"L\",MGMAC!$A$2:$W$4000,10,FALSE)/1000,IFERROR(VLOOKUP($F34&$G34&$H34&$M34&COMP!$D$84&$I34&\"L\",MGMACP!$A$2:$W$4000,10,FALSE)/1000,\"no data\"))))","v":"no data"},{"$f":"IF($F34=\"SPEC\",COMP!L$90/1000,IFERROR(VLOOKUP($F34&$G34&$H34&$M34&COMP!$D$84&$I34&\"L\",AAMC!$A$2:$W$4000,15,FALSE)/1000,IFERROR(VLOOKUP($F34&$G34&$H34&$M34&COMP!$D$84&$I34&\"L\",MGMAC!$A$2:$W$4000,15,FALSE)/1000,IFERROR(VLOOKUP($F34&$G34&$H34&$M34&COMP!$D$84&$I34&\"L\",MGMACP!$A$2:$W$4000,15,FALSE)/1000,\"no data\"))))","v":"no data"},{"$f":"IF($F34=\"SPEC\",COMP!M$90/1000,IFERROR(VLOOKUP($F34&$G34&$H34&$M34&COMP!$D$84&$I34&\"L\",AAMC!$A$2:$W$4000,20,FALSE)/1000,IFERROR(VLOOKUP($F34&$G34&$H34&$M34&COMP!$D$84&$I34&\"L\",MGMAC!$A$2:$W$4000,20,FALSE)/1000,IFERROR(VLOOKUP($F34&$G34&$H34&$M34&COMP!$D$84&$I34&\"L\",MGMACP!$A$2:$W$4000,20,FALSE)/1000,\"no data\"))))","v":"no data"},null,0,0,0,0,0,null,1,0,{"$f":"IF($J34=0,0,IF($B34=\"SPEC\",COMP!$L$102,IF($B34=\"FPSC\",IFERROR(VLOOKUP($B34&$C34&$D34&$E34&\"L\",FPSC!$A$2:$W$4000,13,FALSE),\"no data\"),IF(B34&C34=\"MGMAAcademic\",IFERROR(VLOOKUP($B34&$C34&$D34&$E34&\"L\",MGMAR!$A$2:$W$4000,13,FALSE),\"no data\"),IFERROR(VLOOKUP($B34&$C34&$D34&$E34&\"L\",MGMARP!$A$2:$W$4000,13,FALSE),\"no data\")))))","v":0},0,0,0,0,0,0,0,0,0,0,null,0]
[0,"FPSC","Academic","All",{"$f":"IF($B35=\"MGMA\",COMP!$D$86,IF($B35=\"FPSC\",COMP!$D$85,IF($B35=\"SPEC\",COMP!$K$103,\"no data\")))","v":"[select]"},"AAMC","Academic","All",{"$f":"IF($F35=\"AAMC\",COMP!$D$83,IF($F35=\"MGMA\",COMP!$D$86,IF($F35=\"SPEC\",COMP!$K$91,\"no data\")))","v":"[select]"},null,null,null,null,null,null,0,0,0,0,0,0,0,null,0,0,0,0,0,0,0,{"$f":"IF($F35=\"SPEC\",COMP!K$90/1000,IFERROR(VLOOKUP($F35&$G35&$H35&$M35&COMP!$D$84&$I35&\"L\",AAMC!$A$2:$W$4000,10,FALSE)/1000,IFERROR(VLOOKUP($F35&$G35&$H35&$M35&COMP!$D$84&$I35&\"L\",MGMAC!$A$2:$W$4000,10,FALSE)/1000,IFERROR(VLOOKUP($F35&$G35&$H35&$M35&COMP!$D$84&$I35&\"L\",MGMACP!$A$2:$W$4000,10,FALSE)/1000,\"no data\"))))","v":"no data"},{"$f":"IF($F35=\"SPEC\",COMP!L$90/1000,IFERROR(VLOOKUP($F35&$G35&$H35&$M35&COMP!$D$84&$I35&\"L\",AAMC!$A$2:$W$4000,15,FALSE)/1000,IFERROR(VLOOKUP($F35&$G35&$H35&$M35&COMP!$D$84&$I35&\"L\",MGMAC!$A$2:$W$4000,15,FALSE)/1000,IFERROR(VLOOKUP($F35&$G35&$H35&$M35&COMP!$D$84&$I35&\"L\",MGMACP!$A$2:$W$4000,15,FALSE)/1000,\"no data\"))))","v":"no data"},{"$f":"IF($F35=\"SPEC\",COMP!M$90/1000,IFERROR(VLOOKUP($F35&$G35&$H35&$M35&COMP!$D$84&$I35&\"L\",AAMC!$A$2:$W$4000,20,FALSE)/1000,IFERROR(VLOOKUP($F35&$G35&$H35&$M35&COMP!$D$84&$I35&\"L\",MGMAC!$A$2:$W$4000,20,FALSE)/1000,IFERROR(VLOOKUP($F35&$G35&$H35&$M35&COMP!$D$84&$I35&\"L\",MGMACP!$A$2:$W$4000,20,FALSE)/1000,\"no data\"))))","v":"no data"},null,0,0,0,0,0,null,1,0,{"$f":"IF($J35=0,0,IF($B35=\"SPEC\",COMP!$L$102,IF($B35=\"FPSC\",IFERROR(VLOOKUP($B35&$C35&$D35&$E35&\"L\",FPSC!$A$2:$W$4000,13,FALSE),\"no data\"),IF(B35&C35=\"MGMAAcademic\",IFERROR(VLOOKUP($B35&$C35&$D35&$E35&\"L\",MGMAR!$A$2:$W$4000,13,FALSE),\"no data\"),IFERROR(VLOOKUP($B35&$C35&$D35&$E35&\"L\",MGMARP!$A$2:$W$4000,13,FALSE),\"no data\")))))","v":0},0,0,0,0,0,0,0,0,0,0,null,0]
[0,"FPSC","Academic","All",{"$f":"IF($B36=\"MGMA\",COMP!$D$86,IF($B36=\"FPSC\",COMP!$D$85,IF($B36=\"SPEC\",COMP!$K$103,\"no data\")))","v":"[select]"},"AAMC","Academic","All",{"$f":"IF($F36=\"AAMC\",COMP!$D$83,IF($F36=\"MGMA\",COMP!$D$86,IF($F36=\"SPEC\",COMP!$K$91,\"no data\")))","v":"[select]"},null,null,null,null,null,null,0,0,0,0,0,0,0,null,0,0,0,0,0,0,0,{"$f":"IF($F36=\"SPEC\",COMP!K$90/1000,IFERROR(VLOOKUP($F36&$G36&$H36&$M36&COMP!$D$84&$I36&\"L\",AAMC!$A$2:$W$4000,10,FALSE)/1000,IFERROR(VLOOKUP($F36&$G36&$H36&$M36&COMP!$D$84&$I36&\"L\",MGMAC!$A$2:$W$4000,10,FALSE)/1000,IFERROR(VLOOKUP($F36&$G36&$H36&$M36&COMP!$D$84&$I36&\"L\",MGMACP!$A$2:$W$4000,10,FALSE)/1000,\"no data\"))))","v":"no data"},{"$f":"IF($F36=\"SPEC\",COMP!L$90/1000,IFERROR(VLOOKUP($F36&$G36&$H36&$M36&COMP!$D$84&$I36&\"L\",AAMC!$A$2:$W$4000,15,FALSE)/1000,IFERROR(VLOOKUP($F36&$G36&$H36&$M36&COMP!$D$84&$I36&\"L\",MGMAC!$A$2:$W$4000,15,FALSE)/1000,IFERROR(VLOOKUP($F36&$G36&$H36&$M36&COMP!$D$84&$I36&\"L\",MGMACP!$A$2:$W$4000,15,FALSE)/1000,\"no data\"))))","v":"no data"},{"$f":"IF($F36=\"SPEC\",COMP!M$90/1000,IFERROR(VLOOKUP($F36&$G36&$H36&$M36&COMP!$D$84&$I36&\"L\",AAMC!$A$2:$W$4000,20,FALSE)/1000,IFERROR(VLOOKUP($F36&$G36&$H36&$M36&COMP!$D$84&$I36&\"L\",MGMAC!$A$2:$W$4000,20,FALSE)/1000,IFERROR(VLOOKUP($F36&$G36&$H36&$M36&COMP!$D$84&$I36&\"L\",MGMACP!$A$2:$W$4000,20,FALSE)/1000,\"no data\"))))","v":"no data"},null,0,0,0,0,0,null,1,0,{"$f":"IF($J36=0,0,IF($B36=\"SPEC\",COMP!$L$102,IF($B36=\"FPSC\",IFERROR(VLOOKUP($B36&$C36&$D36&$E36&\"L\",FPSC!$A$2:$W$4000,13,FALSE),\"no data\"),IF(B36&C36=\"MGMAAcademic\",IFERROR(VLOOKUP($B36&$C36&$D36&$E36&\"L\",MGMAR!$A$2:$W$4000,13,FALSE),\"no data\"),IFERROR(VLOOKUP($B36&$C36&$D36&$E36&\"L\",MGMARP!$A$2:$W$4000,13,FALSE),\"no data\")))))","v":0},0,0,0,0,0,0,0,0,0,0,null,0]
[0,"FPSC","Academic","All",{"$f":"IF($B37=\"MGMA\",COMP!$D$86,IF($B37=\"FPSC\",COMP!$D$85,IF($B37=\"SPEC\",COMP!$K$103,\"no data\")))","v":"[select]"},"AAMC","Academic","All",{"$f":"IF($F37=\"AAMC\",COMP!$D$83,IF($F37=\"MGMA\",COMP!$D$86,IF($F37=\"SPEC\",COMP!$K$91,\"no data\")))","v":"[select]"},null,null,null,null,null,null,0,0,0,0,0,0,0,null,0,0,0,0,0,0,0,{"$f":"IF($F37=\"SPEC\",COMP!K$90/1000,IFERROR(VLOOKUP($F37&$G37&$H37&$M37&COMP!$D$84&$I37&\"L\",AAMC!$A$2:$W$4000,10,FALSE)/1000,IFERROR(VLOOKUP($F37&$G37&$H37&$M37&COMP!$D$84&$I37&\"L\",MGMAC!$A$2:$W$4000,10,FALSE)/1000,IFERROR(VLOOKUP($F37&$G37&$H37&$M37&COMP!$D$84&$I37&\"L\",MGMACP!$A$2:$W$4000,10,FALSE)/1000,\"no data\"))))","v":"no data"},{"$f":"IF($F37=\"SPEC\",COMP!L$90/1000,IFERROR(VLOOKUP($F37&$G37&$H37&$M37&COMP!$D$84&$I37&\"L\",AAMC!$A$2:$W$4000,15,FALSE)/1000,IFERROR(VLOOKUP($F37&$G37&$H37&$M37&COMP!$D$84&$I37&\"L\",MGMAC!$A$2:$W$4000,15,FALSE)/1000,IFERROR(VLOOKUP($F37&$G37&$H37&$M37&COMP!$D$84&$I37&\"L\",MGMACP!$A$2:$W$4000,15,FALSE)/1000,\"no data\"))))","v":"no data"},{"$f":"IF($F37=\"SPEC\",COMP!M$90/1000,IFERROR(VLOOKUP($F37&$G37&$H37&$M37&COMP!$D$84&$I37&\"L\",AAMC!$A$2:$W$4000,20,FALSE)/1000,IFERROR(VLOOKUP($F37&$G37&$H37&$M37&COMP!$D$84&$I37&\"L\",MGMAC!$A$2:$W$4000,20,FALSE)/1000,IFERROR(VLOOKUP($F37&$G37&$H37&$M37&COMP!$D$84&$I37&\"L\",MGMACP!$A$2:$W$4000,20,FALSE)/1000,\"no data\"))))","v":"no data"},null,0,0,0,0,0,null,1,0,{"$f":"IF($J37=0,0,IF($B37=\"SPEC\",COMP!$L$102,IF($B37=\"FPSC\",IFERROR(VLOOKUP($B37&$C37&$D37&$E37&\"L\",FPSC!$A$2:$W$4000,13,FALSE),\"no data\"),IF(B37&C37=\"MGMAAcademic\",IFERROR(VLOOKUP($B37&$C37&$D37&$E37&\"L\",MGMAR!$A$2:$W$4000,13,FALSE),\"no data\"),IFERROR(VLOOKUP($B37&$C37&$D37&$E37&\"L\",MGMARP!$A$2:$W$4000,13,FALSE),\"no data\")))))","v":0},0,0,0,0,0,0,0,0,0,0,null,0]
[0,"FPSC","Academic","All",{"$f":"IF($B38=\"MGMA\",COMP!$D$86,IF($B38=\"FPSC\",COMP!$D$85,IF($B38=\"SPEC\",COMP!$K$103,\"no data\")))","v":"[select]"},"AAMC","Academic","All",{"$f":"IF($F38=\"AAMC\",COMP!$D$83,IF($F38=\"MGMA\",COMP!$D$86,IF($F38=\"SPEC\",COMP!$K$91,\"no data\")))","v":"[select]"},null,null,null,null,null,null,0,0,0,0,0,0,0,null,0,0,0,0,0,0,0,{"$f":"IF($F38=\"SPEC\",COMP!K$90/1000,IFERROR(VLOOKUP($F38&$G38&$H38&$M38&COMP!$D$84&$I38&\"L\",AAMC!$A$2:$W$4000,10,FALSE)/1000,IFERROR(VLOOKUP($F38&$G38&$H38&$M38&COMP!$D$84&$I38&\"L\",MGMAC!$A$2:$W$4000,10,FALSE)/1000,IFERROR(VLOOKUP($F38&$G38&$H38&$M38&COMP!$D$84&$I38&\"L\",MGMACP!$A$2:$W$4000,10,FALSE)/1000,\"no data\"))))","v":"no data"},{"$f":"IF($F38=\"SPEC\",COMP!L$90/1000,IFERROR(VLOOKUP($F38&$G38&$H38&$M38&COMP!$D$84&$I38&\"L\",AAMC!$A$2:$W$4000,15,FALSE)/1000,IFERROR(VLOOKUP($F38&$G38&$H38&$M38&COMP!$D$84&$I38&\"L\",MGMAC!$A$2:$W$4000,15,FALSE)/1000,IFERROR(VLOOKUP($F38&$G38&$H38&$M38&COMP!$D$84&$I38&\"L\",MGMACP!$A$2:$W$4000,15,FALSE)/1000,\"no data\"))))","v":"no data"},{"$f":"IF($F38=\"SPEC\",COMP!M$90/1000,IFERROR(VLOOKUP($F38&$G38&$H38&$M38&COMP!$D$84&$I38&\"L\",AAMC!$A$2:$W$4000,20,FALSE)/1000,IFERROR(VLOOKUP($F38&$G38&$H38&$M38&COMP!$D$84&$I38&\"L\",MGMAC!$A$2:$W$4000,20,FALSE)/1000,IFERROR(VLOOKUP($F38&$G38&$H38&$M38&COMP!$D$84&$I38&\"L\",MGMACP!$A$2:$W$4000,20,FALSE)/1000,\"no data\"))))","v":"no data"},null,0,0,0,0,0,null,1,0,{"$f":"IF($J38=0,0,IF($B38=\"SPEC\",COMP!$L$102,IF($B38=\"FPSC\",IFERROR(VLOOKUP($B38&$C38&$D38&$E38&\"L\",FPSC!$A$2:$W$4000,13,FALSE),\"no data\"),IF(B38&C38=\"MGMAAcademic\",IFERROR(VLOOKUP($B38&$C38&$D38&$E38&\"L\",MGMAR!$A$2:$W$4000,13,FALSE),\"no data\"),IFERROR(VLOOKUP($B38&$C38&$D38&$E38&\"L\",MGMARP!$A$2:$W$4000,13,FALSE),\"no data\")))))","v":0},0,0,0,0,0,0,0,0,0,0,null,0]
[0,"FPSC","Academic","All",{"$f":"IF($B39=\"MGMA\",COMP!$D$86,IF($B39=\"FPSC\",COMP!$D$85,IF($B39=\"SPEC\",COMP!$K$103,\"no data\")))","v":"[select]"},"AAMC","Academic","All",{"$f":"IF($F39=\"AAMC\",COMP!$D$83,IF($F39=\"MGMA\",COMP!$D$86,IF($F39=\"SPEC\",COMP!$K$91,\"no data\")))","v":"[select]"},null,null,null,null,null,null,0,0,0,0,0,0,0,null,0,0,0,0,0,{"$f":"+AB39+AA39+X39","v":0},0,{"$f":"IF($F39=\"SPEC\",COMP!K$90/1000,IFERROR(VLOOKUP($F39&$G39&$H39&$M39&COMP!$D$84&$I39&\"L\",AAMC!$A$2:$W$4000,10,FALSE)/1000,IFERROR(VLOOKUP($F39&$G39&$H39&$M39&COMP!$D$84&$I39&\"L\",MGMAC!$A$2:$W$4000,10,FALSE)/1000,IFERROR(VLOOKUP($F39&$G39&$H39&$M39&COMP!$D$84&$I39&\"L\",MGMACP!$A$2:$W$4000,10,FALSE)/1000,\"no data\"))))","v":"no data"},{"$f":"IF($F39=\"SPEC\",COMP!L$90/1000,IFERROR(VLOOKUP($F39&$G39&$H39&$M39&COMP!$D$84&$I39&\"L\",AAMC!$A$2:$W$4000,15,FALSE)/1000,IFERROR(VLOOKUP($F39&$G39&$H39&$M39&COMP!$D$84&$I39&\"L\",MGMAC!$A$2:$W$4000,15,FALSE)/1000,IFERROR(VLOOKUP($F39&$G39&$H39&$M39&COMP!$D$84&$I39&\"L\",MGMACP!$A$2:$W$4000,15,FALSE)/1000,\"no data\"))))","v":"no data"},{"$f":"IF($F39=\"SPEC\",COMP!M$90/1000,IFERROR(VLOOKUP($F39&$G39&$H39&$M39&COMP!$D$84&$I39&\"L\",AAMC!$A$2:$W$4000,20,FALSE)/1000,IFERROR(VLOOKUP($F39&$G39&$H39&$M39&COMP!$D$84&$I39&\"L\",MGMAC!$A$2:$W$4000,20,FALSE)/1000,IFERROR(VLOOKUP($F39&$G39&$H39&$M39&COMP!$D$84&$I39&\"L\",MGMACP!$A$2:$W$4000,20,FALSE)/1000,\"no data\"))))","v":"no data"},null,0,0,0,0,0,null,1,0,{"$f":"IF($J39=0,0,IF($B39=\"SPEC\",COMP!$L$102,IF($B39=\"FPSC\",IFERROR(VLOOKUP($B39&$C39&$D39&$E39&\"L\",FPSC!$A$2:$W$4000,13,FALSE),\"no data\"),IF(B39&C39=\"MGMAAcademic\",IFERROR(VLOOKUP($B39&$C39&$D39&$E39&\"L\",MGMAR!$A$2:$W$4000,13,FALSE),\"no data\"),IFERROR(VLOOKUP($B39&$C39&$D39&$E39&\"L\",MGMARP!$A$2:$W$4000,13,FALSE),\"no data\")))))","v":0},0,0,0,0,0,0,0,0,0,0,null,0]
[0,"FPSC","Academic","All",{"$f":"IF($B40=\"MGMA\",COMP!$D$86,IF($B40=\"FPSC\",COMP!$D$85,IF($B40=\"SPEC\",COMP!$K$103,\"no data\")))","v":"[select]"},"AAMC","Academic","All",{"$f":"IF($F40=\"AAMC\",COMP!$D$83,IF($F40=\"MGMA\",COMP!$D$86,IF($F40=\"SPEC\",COMP!$K$91,\"no data\")))","v":"[select]"},null,null,null,null,null,null,0,0,0,0,0,0,0,null,0,0,0,0,0,0,0,{"$f":"IF($F40=\"SPEC\",COMP!K$90/1000,IFERROR(VLOOKUP($F40&$G40&$H40&$M40&COMP!$D$84&$I40&\"L\",AAMC!$A$2:$W$4000,10,FALSE)/1000,IFERROR(VLOOKUP($F40&$G40&$H40&$M40&COMP!$D$84&$I40&\"L\",MGMAC!$A$2:$W$4000,10,FALSE)/1000,IFERROR(VLOOKUP($F40&$G40&$H40&$M40&COMP!$D$84&$I40&\"L\",MGMACP!$A$2:$W$4000,10,FALSE)/1000,\"no data\"))))","v":"no data"},{"$f":"IF($F40=\"SPEC\",COMP!L$90/1000,IFERROR(VLOOKUP($F40&$G40&$H40&$M40&COMP!$D$84&$I40&\"L\",AAMC!$A$2:$W$4000,15,FALSE)/1000,IFERROR(VLOOKUP($F40&$G40&$H40&$M40&COMP!$D$84&$I40&\"L\",MGMAC!$A$2:$W$4000,15,FALSE)/1000,IFERROR(VLOOKUP($F40&$G40&$H40&$M40&COMP!$D$84&$I40&\"L\",MGMACP!$A$2:$W$4000,15,FALSE)/1000,\"no data\"))))","v":"no data"},{"$f":"IF($F40=\"SPEC\",COMP!M$90/1000,IFERROR(VLOOKUP($F40&$G40&$H40&$M40&COMP!$D$84&$I40&\"L\",AAMC!$A$2:$W$4000,20,FALSE)/1000,IFERROR(VLOOKUP($F40&$G40&$H40&$M40&COMP!$D$84&$I40&\"L\",MGMAC!$A$2:$W$4000,20,FALSE)/1000,IFERROR(VLOOKUP($F40&$G40&$H40&$M40&COMP!$D$84&$I40&\"L\",MGMACP!$A$2:$W$4000,20,FALSE)/1000,\"no data\"))))","v":"no data"},null,0,0,0,0,0,null,1,0,{"$f":"IF($J40=0,0,IF($B40=\"SPEC\",COMP!$L$102,IF($B40=\"FPSC\",IFERROR(VLOOKUP($B40&$C40&$D40&$E40&\"L\",FPSC!$A$2:$W$4000,13,FALSE),\"no data\"),IF(B40&C40=\"MGMAAcademic\",IFERROR(VLOOKUP($B40&$C40&$D40&$E40&\"L\",MGMAR!$A$2:$W$4000,13,FALSE),\"no data\"),IFERROR(VLOOKUP($B40&$C40&$D40&$E40&\"L\",MGMARP!$A$2:$W$4000,13,FALSE),\"no data\")))))","v":0},0,0,0,0,0,0,0,0,0,0,null,0]
[0,"FPSC","Academic","All",{"$f":"IF($B41=\"MGMA\",COMP!$D$86,IF($B41=\"FPSC\",COMP!$D$85,IF($B41=\"SPEC\",COMP!$K$103,\"no data\")))","v":"[select]"},"AAMC","Academic","All",{"$f":"IF($F41=\"AAMC\",COMP!$D$83,IF($F41=\"MGMA\",COMP!$D$86,IF($F41=\"SPEC\",COMP!$K$91,\"no data\")))","v":"[select]"},null,null,null,null,null,null,0,0,0,0,0,0,0,null,0,0,0,0,0,0,0,{"$f":"IF($F41=\"SPEC\",COMP!K$90/1000,IFERROR(VLOOKUP($F41&$G41&$H41&$M41&COMP!$D$84&$I41&\"L\",AAMC!$A$2:$W$4000,10,FALSE)/1000,IFERROR(VLOOKUP($F41&$G41&$H41&$M41&COMP!$D$84&$I41&\"L\",MGMAC!$A$2:$W$4000,10,FALSE)/1000,IFERROR(VLOOKUP($F41&$G41&$H41&$M41&COMP!$D$84&$I41&\"L\",MGMACP!$A$2:$W$4000,10,FALSE)/1000,\"no data\"))))","v":"no data"},{"$f":"IF($F41=\"SPEC\",COMP!L$90/1000,IFERROR(VLOOKUP($F41&$G41&$H41&$M41&COMP!$D$84&$I41&\"L\",AAMC!$A$2:$W$4000,15,FALSE)/1000,IFERROR(VLOOKUP($F41&$G41&$H41&$M41&COMP!$D$84&$I41&\"L\",MGMAC!$A$2:$W$4000,15,FALSE)/1000,IFERROR(VLOOKUP($F41&$G41&$H41&$M41&COMP!$D$84&$I41&\"L\",MGMACP!$A$2:$W$4000,15,FALSE)/1000,\"no data\"))))","v":"no data"},{"$f":"IF($F41=\"SPEC\",COMP!M$90/1000,IFERROR(VLOOKUP($F41&$G41&$H41&$M41&COMP!$D$84&$I41&\"L\",AAMC!$A$2:$W$4000,20,FALSE)/1000,IFERROR(VLOOKUP($F41&$G41&$H41&$M41&COMP!$D$84&$I41&\"L\",MGMAC!$A$2:$W$4000,20,FALSE)/1000,IFERROR(VLOOKUP($F41&$G41&$H41&$M41&COMP!$D$84&$I41&\"L\",MGMACP!$A$2:$W$4000,20,FALSE)/1000,\"no data\"))))","v":"no data"},null,0,0,0,0,0,null,1,0,{"$f":"IF($J41=0,0,IF($B41=\"SPEC\",COMP!$L$102,IF($B41=\"FPSC\",IFERROR(VLOOKUP($B41&$C41&$D41&$E41&\"L\",FPSC!$A$2:$W$4000,13,FALSE),\"no data\"),IF(B41&C41=\"MGMAAcademic\",IFERROR(VLOOKUP($B41&$C41&$D41&$E41&\"L\",MGMAR!$A$2:$W$4000,13,FALSE),\"no data\"),IFERROR(VLOOKUP($B41&$C41&$D41&$E41&\"L\",MGMARP!$A$2:$W$4000,13,FALSE),\"no data\")))))","v":0},0,0,0,0,0,0,0,0,0,0,null,0]
[0,"FPSC","Academic","All",{"$f":"IF($B42=\"MGMA\",COMP!$D$86,IF($B42=\"FPSC\",COMP!$D$85,IF($B42=\"SPEC\",COMP!$K$103,\"no data\")))","v":"[select]"},"AAMC","Academic","All",{"$f":"IF($F42=\"AAMC\",COMP!$D$83,IF($F42=\"MGMA\",COMP!$D$86,IF($F42=\"SPEC\",COMP!$K$91,\"no data\")))","v":"[select]"},null,null,null,null,null,null,0,0,0,0,0,0,0,null,0,0,0,0,0,0,0,{"$f":"IF($F42=\"SPEC\",COMP!K$90/1000,IFERROR(VLOOKUP($F42&$G42&$H42&$M42&COMP!$D$84&$I42&\"L\",AAMC!$A$2:$W$4000,10,FALSE)/1000,IFERROR(VLOOKUP($F42&$G42&$H42&$M42&COMP!$D$84&$I42&\"L\",MGMAC!$A$2:$W$4000,10,FALSE)/1000,IFERROR(VLOOKUP($F42&$G42&$H42&$M42&COMP!$D$84&$I42&\"L\",MGMACP!$A$2:$W$4000,10,FALSE)/1000,\"no data\"))))","v":"no data"},{"$f":"IF($F42=\"SPEC\",COMP!L$90/1000,IFERROR(VLOOKUP($F42&$G42&$H42&$M42&COMP!$D$84&$I42&\"L\",AAMC!$A$2:$W$4000,15,FALSE)/1000,IFERROR(VLOOKUP($F42&$G42&$H42&$M42&COMP!$D$84&$I42&\"L\",MGMAC!$A$2:$W$4000,15,FALSE)/1000,IFERROR(VLOOKUP($F42&$G42&$H42&$M42&COMP!$D$84&$I42&\"L\",MGMACP!$A$2:$W$4000,15,FALSE)/1000,\"no data\"))))","v":"no data"},{"$f":"IF($F42=\"SPEC\",COMP!M$90/1000,IFERROR(VLOOKUP($F42&$G42&$H42&$M42&COMP!$D$84&$I42&\"L\",AAMC!$A$2:$W$4000,20,FALSE)/1000,IFERROR(VLOOKUP($F42&$G42&$H42&$M42&COMP!$D$84&$I42&\"L\",MGMAC!$A$2:$W$4000,20,FALSE)/1000,IFERROR(VLOOKUP($F42&$G42&$H42&$M42&COMP!$D$84&$I42&\"L\",MGMACP!$A$2:$W$4000,20,FALSE)/1000,\"no data\"))))","v":"no data"},null,0,0,0,0,0,null,1,0,{"$f":"IF($J42=0,0,IF($B42=\"SPEC\",COMP!$L$102,IF($B42=\"FPSC\",IFERROR(VLOOKUP($B42&$C42&$D42&$E42&\"L\",FPSC!$A$2:$W$4000,13,FALSE),\"no data\"),IF(B42&C42=\"MGMAAcademic\",IFERROR(VLOOKUP($B42&$C42&$D42&$E42&\"L\",MGMAR!$A$2:$W$4000,13,FALSE),\"no data\"),IFERROR(VLOOKUP($B42&$C42&$D42&$E42&\"L\",MGMARP!$A$2:$W$4000,13,FALSE),\"no data\")))))","v":0},0,0,0,0,0,0,0,0,0,0,null,0]
[0,"FPSC","Academic","All",{"$f":"IF($B43=\"MGMA\",COMP!$D$86,IF($B43=\"FPSC\",COMP!$D$85,IF($B43=\"SPEC\",COMP!$K$103,\"no data\")))","v":"[select]"},"AAMC","Academic","All",{"$f":"IF($F43=\"AAMC\",COMP!$D$83,IF($F43=\"MGMA\",COMP!$D$86,IF($F43=\"SPEC\",COMP!$K$91,\"no data\")))","v":"[select]"},null,null,null,null,null,null,0,0,0,0,0,0,0,null,0,0,0,0,0,0,0,{"$f":"IF($F43=\"SPEC\",COMP!K$90/1000,IFERROR(VLOOKUP($F43&$G43&$H43&$M43&COMP!$D$84&$I43&\"L\",AAMC!$A$2:$W$4000,10,FALSE)/1000,IFERROR(VLOOKUP($F43&$G43&$H43&$M43&COMP!$D$84&$I43&\"L\",MGMAC!$A$2:$W$4000,10,FALSE)/1000,IFERROR(VLOOKUP($F43&$G43&$H43&$M43&COMP!$D$84&$I43&\"L\",MGMACP!$A$2:$W$4000,10,FALSE)/1000,\"no data\"))))","v":"no data"},{"$f":"IF($F43=\"SPEC\",COMP!L$90/1000,IFERROR(VLOOKUP($F43&$G43&$H43&$M43&COMP!$D$84&$I43&\"L\",AAMC!$A$2:$W$4000,15,FALSE)/1000,IFERROR(VLOOKUP($F43&$G43&$H43&$M43&COMP!$D$84&$I43&\"L\",MGMAC!$A$2:$W$4000,15,FALSE)/1000,IFERROR(VLOOKUP($F43&$G43&$H43&$M43&COMP!$D$84&$I43&\"L\",MGMACP!$A$2:$W$4000,15,FALSE)/1000,\"no data\"))))","v":"no data"},{"$f":"IF($F43=\"SPEC\",COMP!M$90/1000,IFERROR(VLOOKUP($F43&$G43&$H43&$M43&COMP!$D$84&$I43&\"L\",AAMC!$A$2:$W$4000,20,FALSE)/1000,IFERROR(VLOOKUP($F43&$G43&$H43&$M43&COMP!$D$84&$I43&\"L\",MGMAC!$A$2:$W$4000,20,FALSE)/1000,IFERROR(VLOOKUP($F43&$G43&$H43&$M43&COMP!$D$84&$I43&\"L\",MGMACP!$A$2:$W$4000,20,FALSE)/1000,\"no data\"))))","v":"no data"},null,0,0,0,0,0,null,1,0,{"$f":"IF($J43=0,0,IF($B43=\"SPEC\",COMP!$L$102,IF($B43=\"FPSC\",IFERROR(VLOOKUP($B43&$C43&$D43&$E43&\"L\",FPSC!$A$2:$W$4000,13,FALSE),\"no data\"),IF(B43&C43=\"MGMAAcademic\",IFERROR(VLOOKUP($B43&$C43&$D43&$E43&\"L\",MGMAR!$A$2:$W$4000,13,FALSE),\"no data\"),IFERROR(VLOOKUP($B43&$C43&$D43&$E43&\"L\",MGMARP!$A$2:$W$4000,13,FALSE),\"no data\")))))","v":0},0,0,0,0,0,0,0,0,0,0,null,0]
[0,"FPSC","Academic","All",{"$f":"IF($B44=\"MGMA\",COMP!$D$86,IF($B44=\"FPSC\",COMP!$D$85,IF($B44=\"SPEC\",COMP!$K$103,\"no data\")))","v":"[select]"},"AAMC","Academic","All",{"$f":"IF($F44=\"AAMC\",COMP!$D$83,IF($F44=\"MGMA\",COMP!$D$86,IF($F44=\"SPEC\",COMP!$K$91,\"no data\")))","v":"[select]"},null,null,null,null,null,null,0,0,0,0,0,0,0,null,0,0,0,0,0,0,0,{"$f":"IF($F44=\"SPEC\",COMP!K$90/1000,IFERROR(VLOOKUP($F44&$G44&$H44&$M44&COMP!$D$84&$I44&\"L\",AAMC!$A$2:$W$4000,10,FALSE)/1000,IFERROR(VLOOKUP($F44&$G44&$H44&$M44&COMP!$D$84&$I44&\"L\",MGMAC!$A$2:$W$4000,10,FALSE)/1000,IFERROR(VLOOKUP($F44&$G44&$H44&$M44&COMP!$D$84&$I44&\"L\",MGMACP!$A$2:$W$4000,10,FALSE)/1000,\"no data\"))))","v":"no data"},{"$f":"IF($F44=\"SPEC\",COMP!L$90/1000,IFERROR(VLOOKUP($F44&$G44&$H44&$M44&COMP!$D$84&$I44&\"L\",AAMC!$A$2:$W$4000,15,FALSE)/1000,IFERROR(VLOOKUP($F44&$G44&$H44&$M44&COMP!$D$84&$I44&\"L\",MGMAC!$A$2:$W$4000,15,FALSE)/1000,IFERROR(VLOOKUP($F44&$G44&$H44&$M44&COMP!$D$84&$I44&\"L\",MGMACP!$A$2:$W$4000,15,FALSE)/1000,\"no data\"))))","v":"no data"},{"$f":"IF($F44=\"SPEC\",COMP!M$90/1000,IFERROR(VLOOKUP($F44&$G44&$H44&$M44&COMP!$D$84&$I44&\"L\",AAMC!$A$2:$W$4000,20,FALSE)/1000,IFERROR(VLOOKUP($F44&$G44&$H44&$M44&COMP!$D$84&$I44&\"L\",MGMAC!$A$2:$W$4000,20,FALSE)/1000,IFERROR(VLOOKUP($F44&$G44&$H44&$M44&COMP!$D$84&$I44&\"L\",MGMACP!$A$2:$W$4000,20,FALSE)/1000,\"no data\"))))","v":"no data"},null,0,0,0,0,0,null,1,0,{"$f":"IF($J44=0,0,IF($B44=\"SPEC\",COMP!$L$102,IF($B44=\"FPSC\",IFERROR(VLOOKUP($B44&$C44&$D44&$E44&\"L\",FPSC!$A$2:$W$4000,13,FALSE),\"no data\"),IF(B44&C44=\"MGMAAcademic\",IFERROR(VLOOKUP($B44&$C44&$D44&$E44&\"L\",MGMAR!$A$2:$W$4000,13,FALSE),\"no data\"),IFERROR(VLOOKUP($B44&$C44&$D44&$E44&\"L\",MGMARP!$A$2:$W$4000,13,FALSE),\"no data\")))))","v":0},0,0,0,0,0,0,0,0,0,0,null,0]
[0,"FPSC","Academic","All",{"$f":"IF($B45=\"MGMA\",COMP!$D$86,IF($B45=\"FPSC\",COMP!$D$85,IF($B45=\"SPEC\",COMP!$K$103,\"no data\")))","v":"[select]"},"AAMC","Academic","All",{"$f":"IF($F45=\"AAMC\",COMP!$D$83,IF($F45=\"MGMA\",COMP!$D$86,IF($F45=\"SPEC\",COMP!$K$91,\"no data\")))","v":"[select]"},null,null,null,null,null,null,0,0,0,0,0,0,0,null,0,0,0,0,0,0,0,{"$f":"IF($F45=\"SPEC\",COMP!K$90/1000,IFERROR(VLOOKUP($F45&$G45&$H45&$M45&COMP!$D$84&$I45&\"L\",AAMC!$A$2:$W$4000,10,FALSE)/1000,IFERROR(VLOOKUP($F45&$G45&$H45&$M45&COMP!$D$84&$I45&\"L\",MGMAC!$A$2:$W$4000,10,FALSE)/1000,IFERROR(VLOOKUP($F45&$G45&$H45&$M45&COMP!$D$84&$I45&\"L\",MGMACP!$A$2:$W$4000,10,FALSE)/1000,\"no data\"))))","v":"no data"},{"$f":"IF($F45=\"SPEC\",COMP!L$90/1000,IFERROR(VLOOKUP($F45&$G45&$H45&$M45&COMP!$D$84&$I45&\"L\",AAMC!$A$2:$W$4000,15,FALSE)/1000,IFERROR(VLOOKUP($F45&$G45&$H45&$M45&COMP!$D$84&$I45&\"L\",MGMAC!$A$2:$W$4000,15,FALSE)/1000,IFERROR(VLOOKUP($F45&$G45&$H45&$M45&COMP!$D$84&$I45&\"L\",MGMACP!$A$2:$W$4000,15,FALSE)/1000,\"no data\"))))","v":"no data"},{"$f":"IF($F45=\"SPEC\",COMP!M$90/1000,IFERROR(VLOOKUP($F45&$G45&$H45&$M45&COMP!$D$84&$I45&\"L\",AAMC!$A$2:$W$4000,20,FALSE)/1000,IFERROR(VLOOKUP($F45&$G45&$H45&$M45&COMP!$D$84&$I45&\"L\",MGMAC!$A$2:$W$4000,20,FALSE)/1000,IFERROR(VLOOKUP($F45&$G45&$H45&$M45&COMP!$D$84&$I45&\"L\",MGMACP!$A$2:$W$4000,20,FALSE)/1000,\"no data\"))))","v":"no data"},null,0,0,0,0,0,null,1,0,{"$f":"IF($J45=0,0,IF($B45=\"SPEC\",COMP!$L$102,IF($B45=\"FPSC\",IFERROR(VLOOKUP($B45&$C45&$D45&$E45&\"L\",FPSC!$A$2:$W$4000,13,FALSE),\"no data\"),IF(B45&C45=\"MGMAAcademic\",IFERROR(VLOOKUP($B45&$C45&$D45&$E45&\"L\",MGMAR!$A$2:$W$4000,13,FALSE),\"no data\"),IFERROR(VLOOKUP($B45&$C45&$D45&$E45&\"L\",MGMARP!$A$2:$W$4000,13,FALSE),\"no data\")))))","v":0},0,0,0,0,0,0,0,0,0,0,null,0]
[0,"FPSC","Academic","All",{"$f":"IF($B46=\"MGMA\",COMP!$D$86,IF($B46=\"FPSC\",COMP!$D$85,IF($B46=\"SPEC\",COMP!$K$103,\"no data\")))","v":"[select]"},"AAMC","Academic","All",{"$f":"IF($F46=\"AAMC\",COMP!$D$83,IF($F46=\"MGMA\",COMP!$D$86,IF($F46=\"SPEC\",COMP!$K$91,\"no data\")))","v":"[select]"},null,null,null,null,null,null,0,0,0,0,0,0,0,null,0,0,0,0,0,0,0,{"$f":"IF($F46=\"SPEC\",COMP!K$90/1000,IFERROR(VLOOKUP($F46&$G46&$H46&$M46&COMP!$D$84&$I46&\"L\",AAMC!$A$2:$W$4000,10,FALSE)/1000,IFERROR(VLOOKUP($F46&$G46&$H46&$M46&COMP!$D$84&$I46&\"L\",MGMAC!$A$2:$W$4000,10,FALSE)/1000,IFERROR(VLOOKUP($F46&$G46&$H46&$M46&COMP!$D$84&$I46&\"L\",MGMACP!$A$2:$W$4000,10,FALSE)/1000,\"no data\"))))","v":"no data"},{"$f":"IF($F46=\"SPEC\",COMP!L$90/1000,IFERROR(VLOOKUP($F46&$G46&$H46&$M46&COMP!$D$84&$I46&\"L\",AAMC!$A$2:$W$4000,15,FALSE)/1000,IFERROR(VLOOKUP($F46&$G46&$H46&$M46&COMP!$D$84&$I46&\"L\",MGMAC!$A$2:$W$4000,15,FALSE)/1000,IFERROR(VLOOKUP($F46&$G46&$H46&$M46&COMP!$D$84&$I46&\"L\",MGMACP!$A$2:$W$4000,15,FALSE)/1000,\"no data\"))))","v":"no data"},{"$f":"IF($F46=\"SPEC\",COMP!M$90/1000,IFERROR(VLOOKUP($F46&$G46&$H46&$M46&COMP!$D$84&$I46&\"L\",AAMC!$A$2:$W$4000,20,FALSE)/1000,IFERROR(VLOOKUP($F46&$G46&$H46&$M46&COMP!$D$84&$I46&\"L\",MGMAC!$A$2:$W$4000,20,FALSE)/1000,IFERROR(VLOOKUP($F46&$G46&$H46&$M46&COMP!$D$84&$I46&\"L\",MGMACP!$A$2:$W$4000,20,FALSE)/1000,\"no data\"))))","v":"no data"},null,0,0,0,0,0,null,1,0,{"$f":"IF($J46=0,0,IF($B46=\"SPEC\",COMP!$L$102,IF($B46=\"FPSC\",IFERROR(VLOOKUP($B46&$C46&$D46&$E46&\"L\",FPSC!$A$2:$W$4000,13,FALSE),\"no data\"),IF(B46&C46=\"MGMAAcademic\",IFERROR(VLOOKUP($B46&$C46&$D46&$E46&\"L\",MGMAR!$A$2:$W$4000,13,FALSE),\"no data\"),IFERROR(VLOOKUP($B46&$C46&$D46&$E46&\"L\",MGMARP!$A$2:$W$4000,13,FALSE),\"no data\")))))","v":0},0,0,0,0,0,0,0,0,0,0,null,0]
[0,"FPSC","Academic","All",{"$f":"IF($B47=\"MGMA\",COMP!$D$86,IF($B47=\"FPSC\",COMP!$D$85,IF($B47=\"SPEC\",COMP!$K$103,\"no data\")))","v":"[select]"},"AAMC","Academic","All",{"$f":"IF($F47=\"AAMC\",COMP!$D$83,IF($F47=\"MGMA\",COMP!$D$86,IF($F47=\"SPEC\",COMP!$K$91,\"no data\")))","v":"[select]"},null,null,null,null,null,null,0,0,0,0,0,0,0,null,0,0,0,0,0,0,0,{"$f":"IF($F47=\"SPEC\",COMP!K$90/1000,IFERROR(VLOOKUP($F47&$G47&$H47&$M47&COMP!$D$84&$I47&\"L\",AAMC!$A$2:$W$4000,10,FALSE)/1000,IFERROR(VLOOKUP($F47&$G47&$H47&$M47&COMP!$D$84&$I47&\"L\",MGMAC!$A$2:$W$4000,10,FALSE)/1000,IFERROR(VLOOKUP($F47&$G47&$H47&$M47&COMP!$D$84&$I47&\"L\",MGMACP!$A$2:$W$4000,10,FALSE)/1000,\"no data\"))))","v":"no data"},{"$f":"IF($F47=\"SPEC\",COMP!L$90/1000,IFERROR(VLOOKUP($F47&$G47&$H47&$M47&COMP!$D$84&$I47&\"L\",AAMC!$A$2:$W$4000,15,FALSE)/1000,IFERROR(VLOOKUP($F47&$G47&$H47&$M47&COMP!$D$84&$I47&\"L\",MGMAC!$A$2:$W$4000,15,FALSE)/1000,IFERROR(VLOOKUP($F47&$G47&$H47&$M47&COMP!$D$84&$I47&\"L\",MGMACP!$A$2:$W$4000,15,FALSE)/1000,\"no data\"))))","v":"no data"},{"$f":"IF($F47=\"SPEC\",COMP!M$90/1000,IFERROR(VLOOKUP($F47&$G47&$H47&$M47&COMP!$D$84&$I47&\"L\",AAMC!$A$2:$W$4000,20,FALSE)/1000,IFERROR(VLOOKUP($F47&$G47&$H47&$M47&COMP!$D$84&$I47&\"L\",MGMAC!$A$2:$W$4000,20,FALSE)/1000,IFERROR(VLOOKUP($F47&$G47&$H47&$M47&COMP!$D$84&$I47&\"L\",MGMACP!$A$2:$W$4000,20,FALSE)/1000,\"no data\"))))","v":"no data"},null,0,0,0,0,0,null,1,0,{"$f":"IF($J47=0,0,IF($B47=\"SPEC\",COMP!$L$102,IF($B47=\"FPSC\",IFERROR(VLOOKUP($B47&$C47&$D47&$E47&\"L\",FPSC!$A$2:$W$4000,13,FALSE),\"no data\"),IF(B47&C47=\"MGMAAcademic\",IFERROR(VLOOKUP($B47&$C47&$D47&$E47&\"L\",MGMAR!$A$2:$W$4000,13,FALSE),\"no data\"),IFERROR(VLOOKUP($B47&$C47&$D47&$E47&\"L\",MGMARP!$A$2:$W$4000,13,FALSE),\"no data\")))))","v":0},0,0,0,0,0,0,0,0,0,0,null,0]
[0,"FPSC","Academic","All",{"$f":"IF($B48=\"MGMA\",COMP!$D$86,IF($B48=\"FPSC\",COMP!$D$85,IF($B48=\"SPEC\",COMP!$K$103,\"no data\")))","v":"[select]"},"AAMC","Academic","All",{"$f":"IF($F48=\"AAMC\",COMP!$D$83,IF($F48=\"MGMA\",COMP!$D$86,IF($F48=\"SPEC\",COMP!$K$91,\"no data\")))","v":"[select]"},null,null,null,null,null,null,0,0,0,0,0,0,0,null,0,0,0,0,0,0,0,{"$f":"IF($F48=\"SPEC\",COMP!K$90/1000,IFERROR(VLOOKUP($F48&$G48&$H48&$M48&COMP!$D$84&$I48&\"L\",AAMC!$A$2:$W$4000,10,FALSE)/1000,IFERROR(VLOOKUP($F48&$G48&$H48&$M48&COMP!$D$84&$I48&\"L\",MGMAC!$A$2:$W$4000,10,FALSE)/1000,IFERROR(VLOOKUP($F48&$G48&$H48&$M48&COMP!$D$84&$I48&\"L\",MGMACP!$A$2:$W$4000,10,FALSE)/1000,\"no data\"))))","v":"no data"},{"$f":"IF($F48=\"SPEC\",COMP!L$90/1000,IFERROR(VLOOKUP($F48&$G48&$H48&$M48&COMP!$D$84&$I48&\"L\",AAMC!$A$2:$W$4000,15,FALSE)/1000,IFERROR(VLOOKUP($F48&$G48&$H48&$M48&COMP!$D$84&$I48&\"L\",MGMAC!$A$2:$W$4000,15,FALSE)/1000,IFERROR(VLOOKUP($F48&$G48&$H48&$M48&COMP!$D$84&$I48&\"L\",MGMACP!$A$2:$W$4000,15,FALSE)/1000,\"no data\"))))","v":"no data"},{"$f":"IF($F48=\"SPEC\",COMP!M$90/1000,IFERROR(VLOOKUP($F48&$G48&$H48&$M48&COMP!$D$84&$I48&\"L\",AAMC!$A$2:$W$4000,20,FALSE)/1000,IFERROR(VLOOKUP($F48&$G48&$H48&$M48&COMP!$D$84&$I48&\"L\",MGMAC!$A$2:$W$4000,20,FALSE)/1000,IFERROR(VLOOKUP($F48&$G48&$H48&$M48&COMP!$D$84&$I48&\"L\",MGMACP!$A$2:$W$4000,20,FALSE)/1000,\"no data\"))))","v":"no data"},null,0,0,0,0,0,null,1,0,{"$f":"IF($J48=0,0,IF($B48=\"SPEC\",COMP!$L$102,IF($B48=\"FPSC\",IFERROR(VLOOKUP($B48&$C48&$D48&$E48&\"L\",FPSC!$A$2:$W$4000,13,FALSE),\"no data\"),IF(B48&C48=\"MGMAAcademic\",IFERROR(VLOOKUP($B48&$C48&$D48&$E48&\"L\",MGMAR!$A$2:$W$4000,13,FALSE),\"no data\"),IFERROR(VLOOKUP($B48&$C48&$D48&$E48&\"L\",MGMARP!$A$2:$W$4000,13,FALSE),\"no data\")))))","v":0},0,0,0,0,0,0,0,0,0,0,null,0]
[0,"FPSC","Academic","All",{"$f":"IF($B49=\"MGMA\",COMP!$D$86,IF($B49=\"FPSC\",COMP!$D$85,IF($B49=\"SPEC\",COMP!$K$103,\"no data\")))","v":"[select]"},"AAMC","Academic","All",{"$f":"IF($F49=\"AAMC\",COMP!$D$83,IF($F49=\"MGMA\",COMP!$D$86,IF($F49=\"SPEC\",COMP!$K$91,\"no data\")))","v":"[select]"},null,null,null,null,null,null,0,0,0,0,0,0,0,null,0,0,0,0,0,0,0,{"$f":"IF($F49=\"SPEC\",COMP!K$90/1000,IFERROR(VLOOKUP($F49&$G49&$H49&$M49&COMP!$D$84&$I49&\"L\",AAMC!$A$2:$W$4000,10,FALSE)/1000,IFERROR(VLOOKUP($F49&$G49&$H49&$M49&COMP!$D$84&$I49&\"L\",MGMAC!$A$2:$W$4000,10,FALSE)/1000,IFERROR(VLOOKUP($F49&$G49&$H49&$M49&COMP!$D$84&$I49&\"L\",MGMACP!$A$2:$W$4000,10,FALSE)/1000,\"no data\"))))","v":"no data"},{"$f":"IF($F49=\"SPEC\",COMP!L$90/1000,IFERROR(VLOOKUP($F49&$G49&$H49&$M49&COMP!$D$84&$I49&\"L\",AAMC!$A$2:$W$4000,15,FALSE)/1000,IFERROR(VLOOKUP($F49&$G49&$H49&$M49&COMP!$D$84&$I49&\"L\",MGMAC!$A$2:$W$4000,15,FALSE)/1000,IFERROR(VLOOKUP($F49&$G49&$H49&$M49&COMP!$D$84&$I49&\"L\",MGMACP!$A$2:$W$4000,15,FALSE)/1000,\"no data\"))))","v":"no data"},{"$f":"IF($F49=\"SPEC\",COMP!M$90/1000,IFERROR(VLOOKUP($F49&$G49&$H49&$M49&COMP!$D$84&$I49&\"L\",AAMC!$A$2:$W$4000,20,FALSE)/1000,IFERROR(VLOOKUP($F49&$G49&$H49&$M49&COMP!$D$84&$I49&\"L\",MGMAC!$A$2:$W$4000,20,FALSE)/1000,IFERROR(VLOOKUP($F49&$G49&$H49&$M49&COMP!$D$84&$I49&\"L\",MGMACP!$A$2:$W$4000,20,FALSE)/1000,\"no data\"))))","v":"no data"},null,0,0,0,0,0,null,1,0,{"$f":"IF($J49=0,0,IF($B49=\"SPEC\",COMP!$L$102,IF($B49=\"FPSC\",IFERROR(VLOOKUP($B49&$C49&$D49&$E49&\"L\",FPSC!$A$2:$W$4000,13,FALSE),\"no data\"),IF(B49&C49=\"MGMAAcademic\",IFERROR(VLOOKUP($B49&$C49&$D49&$E49&\"L\",MGMAR!$A$2:$W$4000,13,FALSE),\"no data\"),IFERROR(VLOOKUP($B49&$C49&$D49&$E49&\"L\",MGMARP!$A$2:$W$4000,13,FALSE),\"no data\")))))","v":0},0,0,0,0,0,0,0,0,0,0,null,0]
[0,"FPSC","Academic","All",{"$f":"IF($B50=\"MGMA\",COMP!$D$86,IF($B50=\"FPSC\",COMP!$D$85,IF($B50=\"SPEC\",COMP!$K$103,\"no data\")))","v":"[select]"},"AAMC","Academic","All",{"$f":"IF($F50=\"AAMC\",COMP!$D$83,IF($F50=\"MGMA\",COMP!$D$86,IF($F50=\"SPEC\",COMP!$K$91,\"no data\")))","v":"[select]"},null,null,null,null,null,null,0,0,0,0,0,0,0,null,0,0,0,0,0,0,0,{"$f":"IF($F50=\"SPEC\",COMP!K$90/1000,IFERROR(VLOOKUP($F50&$G50&$H50&$M50&COMP!$D$84&$I50&\"L\",AAMC!$A$2:$W$4000,10,FALSE)/1000,IFERROR(VLOOKUP($F50&$G50&$H50&$M50&COMP!$D$84&$I50&\"L\",MGMAC!$A$2:$W$4000,10,FALSE)/1000,IFERROR(VLOOKUP($F50&$G50&$H50&$M50&COMP!$D$84&$I50&\"L\",MGMACP!$A$2:$W$4000,10,FALSE)/1000,\"no data\"))))","v":"no data"},{"$f":"IF($F50=\"SPEC\",COMP!L$90/1000,IFERROR(VLOOKUP($F50&$G50&$H50&$M50&COMP!$D$84&$I50&\"L\",AAMC!$A$2:$W$4000,15,FALSE)/1000,IFERROR(VLOOKUP($F50&$G50&$H50&$M50&COMP!$D$84&$I50&\"L\",MGMAC!$A$2:$W$4000,15,FALSE)/1000,IFERROR(VLOOKUP($F50&$G50&$H50&$M50&COMP!$D$84&$I50&\"L\",MGMACP!$A$2:$W$4000,15,FALSE)/1000,\"no data\"))))","v":"no data"},{"$f":"IF($F50=\"SPEC\",COMP!M$90/1000,IFERROR(VLOOKUP($F50&$G50&$H50&$M50&COMP!$D$84&$I50&\"L\",AAMC!$A$2:$W$4000,20,FALSE)/1000,IFERROR(VLOOKUP($F50&$G50&$H50&$M50&COMP!$D$84&$I50&\"L\",MGMAC!$A$2:$W$4000,20,FALSE)/1000,IFERROR(VLOOKUP($F50&$G50&$H50&$M50&COMP!$D$84&$I50&\"L\",MGMACP!$A$2:$W$4000,20,FALSE)/1000,\"no data\"))))","v":"no data"},null,0,0,0,0,0,null,1,0,{"$f":"IF($J50=0,0,IF($B50=\"SPEC\",COMP!$L$102,IF($B50=\"FPSC\",IFERROR(VLOOKUP($B50&$C50&$D50&$E50&\"L\",FPSC!$A$2:$W$4000,13,FALSE),\"no data\"),IF(B50&C50=\"MGMAAcademic\",IFERROR(VLOOKUP($B50&$C50&$D50&$E50&\"L\",MGMAR!$A$2:$W$4000,13,FALSE),\"no data\"),IFERROR(VLOOKUP($B50&$C50&$D50&$E50&\"L\",MGMARP!$A$2:$W$4000,13,FALSE),\"no data\")))))","v":0},0,0,0,0,0,0,0,0,0,0,null,0]
[0,"FPSC","Academic","All",{"$f":"IF($B51=\"MGMA\",COMP!$D$86,IF($B51=\"FPSC\",COMP!$D$85,IF($B51=\"SPEC\",COMP!$K$103,\"no data\")))","v":"[select]"},"AAMC","Academic","All",{"$f":"IF($F51=\"AAMC\",COMP!$D$83,IF($F51=\"MGMA\",COMP!$D$86,IF($F51=\"SPEC\",COMP!$K$91,\"no data\")))","v":"[select]"},null,null,null,null,null,null,0,0,0,0,0,0,0,null,0,0,0,0,0,{"$f":"+AB51+AA51+X51","v":0},0,{"$f":"IF($F51=\"SPEC\",COMP!K$90/1000,IFERROR(VLOOKUP($F51&$G51&$H51&$M51&COMP!$D$84&$I51&\"L\",AAMC!$A$2:$W$4000,10,FALSE)/1000,IFERROR(VLOOKUP($F51&$G51&$H51&$M51&COMP!$D$84&$I51&\"L\",MGMAC!$A$2:$W$4000,10,FALSE)/1000,IFERROR(VLOOKUP($F51&$G51&$H51&$M51&COMP!$D$84&$I51&\"L\",MGMACP!$A$2:$W$4000,10,FALSE)/1000,\"no data\"))))","v":"no data"},{"$f":"IF($F51=\"SPEC\",COMP!L$90/1000,IFERROR(VLOOKUP($F51&$G51&$H51&$M51&COMP!$D$84&$I51&\"L\",AAMC!$A$2:$W$4000,15,FALSE)/1000,IFERROR(VLOOKUP($F51&$G51&$H51&$M51&COMP!$D$84&$I51&\"L\",MGMAC!$A$2:$W$4000,15,FALSE)/1000,IFERROR(VLOOKUP($F51&$G51&$H51&$M51&COMP!$D$84&$I51&\"L\",MGMACP!$A$2:$W$4000,15,FALSE)/1000,\"no data\"))))","v":"no data"},{"$f":"IF($F51=\"SPEC\",COMP!M$90/1000,IFERROR(VLOOKUP($F51&$G51&$H51&$M51&COMP!$D$84&$I51&\"L\",AAMC!$A$2:$W$4000,20,FALSE)/1000,IFERROR(VLOOKUP($F51&$G51&$H51&$M51&COMP!$D$84&$I51&\"L\",MGMAC!$A$2:$W$4000,20,FALSE)/1000,IFERROR(VLOOKUP($F51&$G51&$H51&$M51&COMP!$D$84&$I51&\"L\",MGMACP!$A$2:$W$4000,20,FALSE)/1000,\"no data\"))))","v":"no data"},null,0,0,0,0,0,null,1,0,{"$f":"IF($J51=0,0,IF($B51=\"SPEC\",COMP!$L$102,IF($B51=\"FPSC\",IFERROR(VLOOKUP($B51&$C51&$D51&$E51&\"L\",FPSC!$A$2:$W$4000,13,FALSE),\"no data\"),IF(B51&C51=\"MGMAAcademic\",IFERROR(VLOOKUP($B51&$C51&$D51&$E51&\"L\",MGMAR!$A$2:$W$4000,13,FALSE),\"no data\"),IFERROR(VLOOKUP($B51&$C51&$D51&$E51&\"L\",MGMARP!$A$2:$W$4000,13,FALSE),\"no data\")))))","v":0},0,0,0,0,0,0,0,0,0,0,null,0]
[1,null,null,null,null,null,null,null,null,null,null,null,null,null,null,null,null,null,null,null,null,null,null,null,null,null,null,null,0]
[1,"Grand Totals",null,null,"Grand Totals",null,null,null,null,{"$f":"COUNTA(J9:J51)-1","v":1},null,null,null,null,null,{"$f":"SUM(P9:P51)","v":0},0,0,{"$f":"SUM(S9:S51)","v":0},0,0,0,null,{"$f":"SUM(X9:X51)","v":0},{"$f":"SUM(Y9:Y51)/(COUNT(Y12:Y51)+1)","v":0},{"$f":"SUM(Z9:Z51)","v":0},0,0,0,0,0,0,0,null,{"$f":"SUM(AI12:AI51)","v":0},{"$f":"SUM(AJ12:AJ51)","v":0},{"$f":"SUM(AK12:AK51)","v":0},{"$f":"SUBTOTAL(9,AL12:AL52)+AL9","v":0},{"$f":"SUM(AM12:AM51)","v":0},null,null,{"$f":"SUM(AP12:AP51)","v":0},{"$f":"SUM(AQ9:AQ51)","v":0},{"$f":"SUM(AR9:AR51)","v":0},{"$f":"SUM(AS9:AS51)","v":0},{"$f":"SUM(AT9:AT51)","v":0},null,null,null,null,null,null,null,null,{"$f":"BG53/BF53","v":{"$error":"#DIV/0!"}},null,null,{"$f":"COUNTIF(BC9:BC51,\">0\")","v":0},{"$f":"SUM(BC9:BC51)","v":0}]
[1,null,null,null,null,null,null,null,null,null,null,null,null,null,null,null,null,null,null,null,null,null,null,null,"Avg",null,null,null,null,null,null,null,null,null,null,null,null,null,null,null,null,null,null,null,null,null,null,null,null,null,null,null,null,null,"Avg"]
[1,null,null,null,null,null,null,null,null,null,null,null,null,null,null,null,null,null,null,null,null,null,null,null,null,null,null,null,null,"Div Over/(Under) Median Benchmark:",{"$f":"$AD$53-AE53","v":0},{"$f":"$AD$53-AF53","v":0},{"$f":"$AD$53-AG53","v":0},null,null,null,null,null,null,null,null,null,null,null,"CFTE Above/(Below) Expectation:",{"$f":"IF(AQ53=0,0,AT53/(AQ53/J53))","v":0}]
[{"$f":"IF(J57>0,1,0)","v":0}]
[{"$f":"IF(J57>0,1,0)","v":0},{"$f":"$B$9","v":"FPSC"},{"$f":"$C$9","v":"Academic"},{"$f":"$D$9","v":"All"},{"$f":"IF($B57=\"MGMA\",COMP!$D$86,IF($B57=\"FPSC\",COMP!$D$85,IF($B57=\"SPEC\",COMP!$K$103,\"no data\")))","v":"[select]"},{"$f":"$F$9","v":"AAMC"},{"$f":"$G$9","v":"Academic"},{"$f":"$H$9","v":"All"},{"$f":"IF($F57=\"AAMC\",COMP!$D$83,IF($F57=\"MGMA\",COMP!$D$86,IF($F57=\"SPEC\",COMP!$K$91,\"no data\")))","v":"[select]"},0,null,null,null,null,null,0,null,null,null,null,null,{"$f":"SUM(P57:U57)","v":0},null,0,null,0,0,null,{"$f":"+AB57+AA57+X57","v":0},{"$f":"IF(V57=0,0,AC57/V57)","v":0},{"$f":"IF($F57=\"SPEC\",COMP!K$90/1000,IFERROR(VLOOKUP($F57&$G57&$H57&$M57&COMP!$D$84&$I57&\"L\",AAMC!#REF!,10,FALSE)/1000,IFERROR(VLOOKUP($F57&$G57&$H57&$M57&COMP!$D$84&$I57&\"L\",MGMAC!#REF!,10,FALSE)/1000,IFERROR(VLOOKUP($F57&$G57&$H57&$M57&COMP!$D$84&$I57&\"L\",MGMACP!#REF!,10,FALSE)/1000,\"no data\"))))","v":"no data"},{"$f":"IF($F57=\"SPEC\",COMP!L$90/1000,IFERROR(VLOOKUP($F57&$G57&$H57&$M57&COMP!$D$84&$I57&\"L\",AAMC!#REF!,15,FALSE)/1000,IFERROR(VLOOKUP($F57&$G57&$H57&$M57&COMP!$D$84&$I57&\"L\",MGMAC!#REF!,15,FALSE)/1000,IFERROR(VLOOKUP($F57&$G57&$H57&$M57&COMP!$D$84&$I57&\"L\",MGMACP!#REF!,15,FALSE)/1000,\"no data\"))))","v":"no data"},{"$f":"IF($F57=\"SPEC\",COMP!M$90/1000,IFERROR(VLOOKUP($F57&$G57&$H57&$M57&COMP!$D$84&$I57&\"L\",AAMC!#REF!,20,FALSE)/1000,IFERROR(VLOOKUP($F57&$G57&$H57&$M57&COMP!$D$84&$I57&\"L\",MGMAC!#REF!,20,FALSE)/1000,IFERROR(VLOOKUP($F57&$G57&$H57&$M57&COMP!$D$84&$I57&\"L\",MGMACP!#REF!,20,FALSE)/1000,\"no data\"))))","v":"no data"},null,0,0,0,0,0,null,{"$f":"$AP$6","v":1},{"$f":"AM57/$AP$6*12","v":0},{"$f":"IF($J57=0,0,IF($B57=\"SPEC\",COMP!$L$102,IF($B57=\"FPSC\",IFERROR(VLOOKUP($B57&$C57&$D57&$E57&\"L\",FPSC!#REF!,13,FALSE),\"no data\"),IF(B57&C57=\"MGMAAcademic\",IFERROR(VLOOKUP($B57&$C57&$D57&$E57&\"L\",MGMAR!#REF!,13,FALSE),\"no data\"),IFERROR(VLOOKUP($B57&$C57&$D57&$E57&\"L\",MGMARP!#REF!,13,FALSE),\"no data\")))))","v":0},{"$f":"AQ57*T57","v":0},{"$f":"IF($AS$5=\"Prior\",AK57,AP57)","v":0},{"$f":"IFERROR(AS57-AR57,0)","v":0},{"$f":"IF(J57>0,IF(K57=0,1,0),0)","v":0},{"$f":"IF(J57>0,IF(L57=0,1,0),0)","v":0},{"$f":"IF(J57>0,IF(M57=0,1,0),0)","v":0},{"$f":"IF(J57>0,IF(V57=0,1,0),0)","v":0},{"$f":"IF(J57>0,IF(AC57=0,1,0),0)","v":0},{"$f":"IF($M$9=M57,1,0)","v":0},{"$f":"IF(AO57<>$AP$6,1,0)","v":0}]
[{"$f":"IF(J58>0,1,0)","v":0},{"$f":"$B$9","v":"FPSC"},{"$f":"$C$9","v":"Academic"},{"$f":"$D$9","v":"All"},{"$f":"IF($B58=\"MGMA\",COMP!$D$86,IF($B58=\"FPSC\",COMP!$D$85,IF($B58=\"SPEC\",COMP!$K$103,\"no data\")))","v":"[select]"},{"$f":"$F$9","v":"AAMC"},{"$f":"$G$9","v":"Academic"},{"$f":"$H$9","v":"All"},{"$f":"IF($F58=\"AAMC\",COMP!$D$83,IF($F58=\"MGMA\",COMP!$D$86,IF($F58=\"SPEC\",COMP!$K$91,\"no data\")))","v":"[select]"},0,null,null,null,null,null,null,null,null,null,null,null,0,null,0,null,0,0,0,{"$f":"+AB58+AA58+X58","v":0},{"$f":"IF(V58=0,0,AC58/V58)","v":0},{"$f":"IF($F58=\"SPEC\",COMP!K$90/1000,IFERROR(VLOOKUP($F58&$G58&$H58&$M58&COMP!$D$84&$I58&\"L\",AAMC!#REF!,10,FALSE)/1000,IFERROR(VLOOKUP($F58&$G58&$H58&$M58&COMP!$D$84&$I58&\"L\",MGMAC!#REF!,10,FALSE)/1000,IFERROR(VLOOKUP($F58&$G58&$H58&$M58&COMP!$D$84&$I58&\"L\",MGMACP!#REF!,10,FALSE)/1000,\"no data\"))))","v":"no data"},{"$f":"IF($F58=\"SPEC\",COMP!L$90/1000,IFERROR(VLOOKUP($F58&$G58&$H58&$M58&COMP!$D$84&$I58&\"L\",AAMC!#REF!,15,FALSE)/1000,IFERROR(VLOOKUP($F58&$G58&$H58&$M58&COMP!$D$84&$I58&\"L\",MGMAC!#REF!,15,FALSE)/1000,IFERROR(VLOOKUP($F58&$G58&$H58&$M58&COMP!$D$84&$I58&\"L\",MGMACP!#REF!,15,FALSE)/1000,\"no data\"))))","v":"no data"},{"$f":"IF($F58=\"SPEC\",COMP!M$90/1000,IFERROR(VLOOKUP($F58&$G58&$H58&$M58&COMP!$D$84&$I58&\"L\",AAMC!#REF!,20,FALSE)/1000,IFERROR(VLOOKUP($F58&$G58&$H58&$M58&COMP!$D$84&$I58&\"L\",MGMAC!#REF!,20,FALSE)/1000,IFERROR(VLOOKUP($F58&$G58&$H58&$M58&COMP!$D$84&$I58&\"L\",MGMACP!#REF!,20,FALSE)/1000,\"no data\"))))","v":"no data"},null,0,0,0,0,0,null,1,{"$f":"AM58/$AP$6*12","v":0},{"$f":"IF($J58=0,0,IF($B58=\"SPEC\",COMP!$L$102,IF($B58=\"FPSC\",IFERROR(VLOOKUP($B58&$C58&$D58&$E58&\"L\",FPSC!#REF!,13,FALSE),\"no data\"),IF(B58&C58=\"MGMAAcademic\",IFERROR(VLOOKUP($B58&$C58&$D58&$E58&\"L\",MGMAR!#REF!,13,FALSE),\"no data\"),IFERROR(VLOOKUP($B58&$C58&$D58&$E58&\"L\",MGMARP!#REF!,13,FALSE),\"no data\")))))","v":0},0,{"$f":"IF($AS$5=\"Prior\",AK58,AP58)","v":0},{"$f":"IFERROR(AS58-AR58,0)","v":0},{"$f":"IF(J58>0,IF(K58=0,1,0),0)","v":0},{"$f":"IF(J58>0,IF(L58=0,1,0),0)","v":0},{"$f":"IF(J58>0,IF(M58=0,1,0),0)","v":0},0,0,0,0]
[{"$f":"IF(J59>0,1,0)","v":0},"FPSC","Academic","All",{"$f":"IF($B59=\"MGMA\",COMP!$D$86,IF($B59=\"FPSC\",COMP!$D$85,IF($B59=\"SPEC\",COMP!$K$103,\"no data\")))","v":"[select]"},"AAMC","Academic","All",{"$f":"IF($F59=\"AAMC\",COMP!$D$83,IF($F59=\"MGMA\",COMP!$D$86,IF($F59=\"SPEC\",COMP!$K$91,\"no data\")))","v":"[select]"},0,null,null,null,null,null,0,null,null,null,null,null,0,null,0,null,0,0,null,0,0,{"$f":"IF($F59=\"SPEC\",COMP!K$90/1000,IFERROR(VLOOKUP($F59&$G59&$H59&$M59&COMP!$D$84&$I59&\"L\",AAMC!#REF!,10,FALSE)/1000,IFERROR(VLOOKUP($F59&$G59&$H59&$M59&COMP!$D$84&$I59&\"L\",MGMAC!#REF!,10,FALSE)/1000,IFERROR(VLOOKUP($F59&$G59&$H59&$M59&COMP!$D$84&$I59&\"L\",MGMACP!#REF!,10,FALSE)/1000,\"no data\"))))","v":"no data"},{"$f":"IF($F59=\"SPEC\",COMP!L$90/1000,IFERROR(VLOOKUP($F59&$G59&$H59&$M59&COMP!$D$84&$I59&\"L\",AAMC!#REF!,15,FALSE)/1000,IFERROR(VLOOKUP($F59&$G59&$H59&$M59&COMP!$D$84&$I59&\"L\",MGMAC!#REF!,15,FALSE)/1000,IFERROR(VLOOKUP($F59&$G59&$H59&$M59&COMP!$D$84&$I59&\"L\",MGMACP!#REF!,15,FALSE)/1000,\"no data\"))))","v":"no data"},{"$f":"IF($F59=\"SPEC\",COMP!M$90/1000,IFERROR(VLOOKUP($F59&$G59&$H59&$M59&COMP!$D$84&$I59&\"L\",AAMC!#REF!,20,FALSE)/1000,IFERROR(VLOOKUP($F59&$G59&$H59&$M59&COMP!$D$84&$I59&\"L\",MGMAC!#REF!,20,FALSE)/1000,IFERROR(VLOOKUP($F59&$G59&$H59&$M59&COMP!$D$84&$I59&\"L\",MGMACP!#REF!,20,FALSE)/1000,\"no data\"))))","v":"no data"},null,0,0,0,0,0,null,1,0,{"$f":"IF($J59=0,0,IF($B59=\"SPEC\",COMP!$L$102,IF($B59=\"FPSC\",IFERROR(VLOOKUP($B59&$C59&$D59&$E59&\"L\",FPSC!#REF!,13,FALSE),\"no data\"),IF(B59&C59=\"MGMAAcademic\",IFERROR(VLOOKUP($B59&$C59&$D59&$E59&\"L\",MGMAR!#REF!,13,FALSE),\"no data\"),IFERROR(VLOOKUP($B59&$C59&$D59&$E59&\"L\",MGMARP!#REF!,13,FALSE),\"no data\")))))","v":0},0,0,0,0,0,0,0,0,0,0]
[0,"FPSC","Academic","All",{"$f":"IF($B60=\"MGMA\",COMP!$D$86,IF($B60=\"FPSC\",COMP!$D$85,IF($B60=\"SPEC\",COMP!$K$103,\"no data\")))","v":"[select]"},"AAMC","Academic","All",{"$f":"IF($F60=\"AAMC\",COMP!$D$83,IF($F60=\"MGMA\",COMP!$D$86,IF($F60=\"SPEC\",COMP!$K$91,\"no data\")))","v":"[select]"},0,null,null,null,null,null,null,null,null,null,null,null,0,null,0,null,0,0,null,0,0,{"$f":"IF($F60=\"SPEC\",COMP!K$90/1000,IFERROR(VLOOKUP($F60&$G60&$H60&$M60&COMP!$D$84&$I60&\"L\",AAMC!#REF!,10,FALSE)/1000,IFERROR(VLOOKUP($F60&$G60&$H60&$M60&COMP!$D$84&$I60&\"L\",MGMAC!#REF!,10,FALSE)/1000,IFERROR(VLOOKUP($F60&$G60&$H60&$M60&COMP!$D$84&$I60&\"L\",MGMACP!#REF!,10,FALSE)/1000,\"no data\"))))","v":"no data"},{"$f":"IF($F60=\"SPEC\",COMP!L$90/1000,IFERROR(VLOOKUP($F60&$G60&$H60&$M60&COMP!$D$84&$I60&\"L\",AAMC!#REF!,15,FALSE)/1000,IFERROR(VLOOKUP($F60&$G60&$H60&$M60&COMP!$D$84&$I60&\"L\",MGMAC!#REF!,15,FALSE)/1000,IFERROR(VLOOKUP($F60&$G60&$H60&$M60&COMP!$D$84&$I60&\"L\",MGMACP!#REF!,15,FALSE)/1000,\"no data\"))))","v":"no data"},{"$f":"IF($F60=\"SPEC\",COMP!M$90/1000,IFERROR(VLOOKUP($F60&$G60&$H60&$M60&COMP!$D$84&$I60&\"L\",AAMC!#REF!,20,FALSE)/1000,IFERROR(VLOOKUP($F60&$G60&$H60&$M60&COMP!$D$84&$I60&\"L\",MGMAC!#REF!,20,FALSE)/1000,IFERROR(VLOOKUP($F60&$G60&$H60&$M60&COMP!$D$84&$I60&\"L\",MGMACP!#REF!,20,FALSE)/1000,\"no data\"))))","v":"no data"},null,0,0,0,0,0,null,1,0,{"$f":"IF($J60=0,0,IF($B60=\"SPEC\",COMP!$L$102,IF($B60=\"FPSC\",IFERROR(VLOOKUP($B60&$C60&$D60&$E60&\"L\",FPSC!#REF!,13,FALSE),\"no data\"),IF(B60&C60=\"MGMAAcademic\",IFERROR(VLOOKUP($B60&$C60&$D60&$E60&\"L\",MGMAR!#REF!,13,FALSE),\"no data\"),IFERROR(VLOOKUP($B60&$C60&$D60&$E60&\"L\",MGMARP!#REF!,13,FALSE),\"no data\")))))","v":0},0,0,0,0,0,0,0,0,0,0]
[0,"FPSC","Academic","All",{"$f":"IF($B61=\"MGMA\",COMP!$D$86,IF($B61=\"FPSC\",COMP!$D$85,IF($B61=\"SPEC\",COMP!$K$103,\"no data\")))","v":"[select]"},"AAMC","Academic","All",{"$f":"IF($F61=\"AAMC\",COMP!$D$83,IF($F61=\"MGMA\",COMP!$D$86,IF($F61=\"SPEC\",COMP!$K$91,\"no data\")))","v":"[select]"},0,null,null,null,null,null,null,null,null,null,null,null,0,null,0,null,0,0,null,0,0,{"$f":"IF($F61=\"SPEC\",COMP!K$90/1000,IFERROR(VLOOKUP($F61&$G61&$H61&$M61&COMP!$D$84&$I61&\"L\",AAMC!#REF!,10,FALSE)/1000,IFERROR(VLOOKUP($F61&$G61&$H61&$M61&COMP!$D$84&$I61&\"L\",MGMAC!#REF!,10,FALSE)/1000,IFERROR(VLOOKUP($F61&$G61&$H61&$M61&COMP!$D$84&$I61&\"L\",MGMACP!#REF!,10,FALSE)/1000,\"no data\"))))","v":"no data"},{"$f":"IF($F61=\"SPEC\",COMP!L$90/1000,IFERROR(VLOOKUP($F61&$G61&$H61&$M61&COMP!$D$84&$I61&\"L\",AAMC!#REF!,15,FALSE)/1000,IFERROR(VLOOKUP($F61&$G61&$H61&$M61&COMP!$D$84&$I61&\"L\",MGMAC!#REF!,15,FALSE)/1000,IFERROR(VLOOKUP($F61&$G61&$H61&$M61&COMP!$D$84&$I61&\"L\",MGMACP!#REF!,15,FALSE)/1000,\"no data\"))))","v":"no data"},{"$f":"IF($F61=\"SPEC\",COMP!M$90/1000,IFERROR(VLOOKUP($F61&$G61&$H61&$M61&COMP!$D$84&$I61&\"L\",AAMC!#REF!,20,FALSE)/1000,IFERROR(VLOOKUP($F61&$G61&$H61&$M61&COMP!$D$84&$I61&\"L\",MGMAC!#REF!,20,FALSE)/1000,IFERROR(VLOOKUP($F61&$G61&$H61&$M61&COMP!$D$84&$I61&\"L\",MGMACP!#REF!,20,FALSE)/1000,\"no data\"))))","v":"no data"},null,null,null,null,0,null,null,1,0,{"$f":"IF($J61=0,0,IF($B61=\"SPEC\",COMP!$L$102,IF($B61=\"FPSC\",IFERROR(VLOOKUP($B61&$C61&$D61&$E61&\"L\",FPSC!#REF!,13,FALSE),\"no data\"),IF(B61&C61=\"MGMAAcademic\",IFERROR(VLOOKUP($B61&$C61&$D61&$E61&\"L\",MGMAR!#REF!,13,FALSE),\"no data\"),IFERROR(VLOOKUP($B61&$C61&$D61&$E61&\"L\",MGMARP!#REF!,13,FALSE),\"no data\")))))","v":0},0,0,0,0,0,0,0,0,0,0]
[0,"FPSC","Academic","All",{"$f":"IF($B62=\"MGMA\",COMP!$D$86,IF($B62=\"FPSC\",COMP!$D$85,IF($B62=\"SPEC\",COMP!$K$103,\"no data\")))","v":"[select]"},"AAMC","Academic","All",{"$f":"IF($F62=\"AAMC\",COMP!$D$83,IF($F62=\"MGMA\",COMP!$D$86,IF($F62=\"SPEC\",COMP!$K$91,\"no data\")))","v":"[select]"},0,null,null,null,null,null,null,null,null,null,null,null,0,null,0,null,0,0,null,0,0,{"$f":"IF($F62=\"SPEC\",COMP!K$90/1000,IFERROR(VLOOKUP($F62&$G62&$H62&$M62&COMP!$D$84&$I62&\"L\",AAMC!#REF!,10,FALSE)/1000,IFERROR(VLOOKUP($F62&$G62&$H62&$M62&COMP!$D$84&$I62&\"L\",MGMAC!#REF!,10,FALSE)/1000,IFERROR(VLOOKUP($F62&$G62&$H62&$M62&COMP!$D$84&$I62&\"L\",MGMACP!#REF!,10,FALSE)/1000,\"no data\"))))","v":"no data"},{"$f":"IF($F62=\"SPEC\",COMP!L$90/1000,IFERROR(VLOOKUP($F62&$G62&$H62&$M62&COMP!$D$84&$I62&\"L\",AAMC!#REF!,15,FALSE)/1000,IFERROR(VLOOKUP($F62&$G62&$H62&$M62&COMP!$D$84&$I62&\"L\",MGMAC!#REF!,15,FALSE)/1000,IFERROR(VLOOKUP($F62&$G62&$H62&$M62&COMP!$D$84&$I62&\"L\",MGMACP!#REF!,15,FALSE)/1000,\"no data\"))))","v":"no data"},{"$f":"IF($F62=\"SPEC\",COMP!M$90/1000,IFERROR(VLOOKUP($F62&$G62&$H62&$M62&COMP!$D$84&$I62&\"L\",AAMC!#REF!,20,FALSE)/1000,IFERROR(VLOOKUP($F62&$G62&$H62&$M62&COMP!$D$84&$I62&\"L\",MGMAC!#REF!,20,FALSE)/1000,IFERROR(VLOOKUP($F62&$G62&$H62&$M62&COMP!$D$84&$I62&\"L\",MGMACP!#REF!,20,FALSE)/1000,\"no data\"))))","v":"no data"},null,null,null,null,0,null,null,1,0,{"$f":"IF($J62=0,0,IF($B62=\"SPEC\",COMP!$L$102,IF($B62=\"FPSC\",IFERROR(VLOOKUP($B62&$C62&$D62&$E62&\"L\",FPSC!#REF!,13,FALSE),\"no data\"),IF(B62&C62=\"MGMAAcademic\",IFERROR(VLOOKUP($B62&$C62&$D62&$E62&\"L\",MGMAR!#REF!,13,FALSE),\"no data\"),IFERROR(VLOOKUP($B62&$C62&$D62&$E62&\"L\",MGMARP!#REF!,13,FALSE),\"no data\")))))","v":0},0,0,0,0,0,0,0,0,0,0]
[0,"FPSC","Academic","All",{"$f":"IF($B63=\"MGMA\",COMP!$D$86,IF($B63=\"FPSC\",COMP!$D$85,IF($B63=\"SPEC\",COMP!$K$103,\"no data\")))","v":"[select]"},"AAMC","Academic","All",{"$f":"IF($F63=\"AAMC\",COMP!$D$83,IF($F63=\"MGMA\",COMP!$D$86,IF($F63=\"SPEC\",COMP!$K$91,\"no data\")))","v":"[select]"},0,null,null,null,null,null,null,null,null,null,null,null,0,null,0,null,0,0,null,0,0,{"$f":"IF($F63=\"SPEC\",COMP!K$90/1000,IFERROR(VLOOKUP($F63&$G63&$H63&$M63&COMP!$D$84&$I63&\"L\",AAMC!#REF!,10,FALSE)/1000,IFERROR(VLOOKUP($F63&$G63&$H63&$M63&COMP!$D$84&$I63&\"L\",MGMAC!#REF!,10,FALSE)/1000,IFERROR(VLOOKUP($F63&$G63&$H63&$M63&COMP!$D$84&$I63&\"L\",MGMACP!#REF!,10,FALSE)/1000,\"no data\"))))","v":"no data"},{"$f":"IF($F63=\"SPEC\",COMP!L$90/1000,IFERROR(VLOOKUP($F63&$G63&$H63&$M63&COMP!$D$84&$I63&\"L\",AAMC!#REF!,15,FALSE)/1000,IFERROR(VLOOKUP($F63&$G63&$H63&$M63&COMP!$D$84&$I63&\"L\",MGMAC!#REF!,15,FALSE)/1000,IFERROR(VLOOKUP($F63&$G63&$H63&$M63&COMP!$D$84&$I63&\"L\",MGMACP!#REF!,15,FALSE)/1000,\"no data\"))))","v":"no data"},{"$f":"IF($F63=\"SPEC\",COMP!M$90/1000,IFERROR(VLOOKUP($F63&$G63&$H63&$M63&COMP!$D$84&$I63&\"L\",AAMC!#REF!,20,FALSE)/1000,IFERROR(VLOOKUP($F63&$G63&$H63&$M63&COMP!$D$84&$I63&\"L\",MGMAC!#REF!,20,FALSE)/1000,IFERROR(VLOOKUP($F63&$G63&$H63&$M63&COMP!$D$84&$I63&\"L\",MGMACP!#REF!,20,FALSE)/1000,\"no data\"))))","v":"no data"},null,null,null,null,0,null,null,1,0,{"$f":"IF($J63=0,0,IF($B63=\"SPEC\",COMP!$L$102,IF($B63=\"FPSC\",IFERROR(VLOOKUP($B63&$C63&$D63&$E63&\"L\",FPSC!#REF!,13,FALSE),\"no data\"),IF(B63&C63=\"MGMAAcademic\",IFERROR(VLOOKUP($B63&$C63&$D63&$E63&\"L\",MGMAR!#REF!,13,FALSE),\"no data\"),IFERROR(VLOOKUP($B63&$C63&$D63&$E63&\"L\",MGMARP!#REF!,13,FALSE),\"no data\")))))","v":0},0,0,0,0,0,0,0,0,0,0]
[0,"FPSC","Academic","All",{"$f":"IF($B64=\"MGMA\",COMP!$D$86,IF($B64=\"FPSC\",COMP!$D$85,IF($B64=\"SPEC\",COMP!$K$103,\"no data\")))","v":"[select]"},"AAMC","Academic","All",{"$f":"IF($F64=\"AAMC\",COMP!$D$83,IF($F64=\"MGMA\",COMP!$D$86,IF($F64=\"SPEC\",COMP!$K$91,\"no data\")))","v":"[select]"},0,null,null,null,null,null,null,null,null,null,null,null,0,null,0,null,0,0,null,0,0,{"$f":"IF($F64=\"SPEC\",COMP!K$90/1000,IFERROR(VLOOKUP($F64&$G64&$H64&$M64&COMP!$D$84&$I64&\"L\",AAMC!#REF!,10,FALSE)/1000,IFERROR(VLOOKUP($F64&$G64&$H64&$M64&COMP!$D$84&$I64&\"L\",MGMAC!#REF!,10,FALSE)/1000,IFERROR(VLOOKUP($F64&$G64&$H64&$M64&COMP!$D$84&$I64&\"L\",MGMACP!#REF!,10,FALSE)/1000,\"no data\"))))","v":"no data"},{"$f":"IF($F64=\"SPEC\",COMP!L$90/1000,IFERROR(VLOOKUP($F64&$G64&$H64&$M64&COMP!$D$84&$I64&\"L\",AAMC!#REF!,15,FALSE)/1000,IFERROR(VLOOKUP($F64&$G64&$H64&$M64&COMP!$D$84&$I64&\"L\",MGMAC!#REF!,15,FALSE)/1000,IFERROR(VLOOKUP($F64&$G64&$H64&$M64&COMP!$D$84&$I64&\"L\",MGMACP!#REF!,15,FALSE)/1000,\"no data\"))))","v":"no data"},{"$f":"IF($F64=\"SPEC\",COMP!M$90/1000,IFERROR(VLOOKUP($F64&$G64&$H64&$M64&COMP!$D$84&$I64&\"L\",AAMC!#REF!,20,FALSE)/1000,IFERROR(VLOOKUP($F64&$G64&$H64&$M64&COMP!$D$84&$I64&\"L\",MGMAC!#REF!,20,FALSE)/1000,IFERROR(VLOOKUP($F64&$G64&$H64&$M64&COMP!$D$84&$I64&\"L\",MGMACP!#REF!,20,FALSE)/1000,\"no data\"))))","v":"no data"},null,null,null,null,0,null,null,1,0,{"$f":"IF($J64=0,0,IF($B64=\"SPEC\",COMP!$L$102,IF($B64=\"FPSC\",IFERROR(VLOOKUP($B64&$C64&$D64&$E64&\"L\",FPSC!#REF!,13,FALSE),\"no data\"),IF(B64&C64=\"MGMAAcademic\",IFERROR(VLOOKUP($B64&$C64&$D64&$E64&\"L\",MGMAR!#REF!,13,FALSE),\"no data\"),IFERROR(VLOOKUP($B64&$C64&$D64&$E64&\"L\",MGMARP!#REF!,13,FALSE),\"no data\")))))","v":0},0,0,0,0,0,0,0,0,0,0]
[0,"FPSC","Academic","All",{"$f":"IF($B65=\"MGMA\",COMP!$D$86,IF($B65=\"FPSC\",COMP!$D$85,IF($B65=\"SPEC\",COMP!$K$103,\"no data\")))","v":"[select]"},"AAMC","Academic","All",{"$f":"IF($F65=\"AAMC\",COMP!$D$83,IF($F65=\"MGMA\",COMP!$D$86,IF($F65=\"SPEC\",COMP!$K$91,\"no data\")))","v":"[select]"},null,null,null,null,null,null,null,null,null,null,null,null,0,null,0,null,0,0,null,0,0,{"$f":"IF($F65=\"SPEC\",COMP!K$90/1000,IFERROR(VLOOKUP($F65&$G65&$H65&$M65&COMP!$D$84&$I65&\"L\",AAMC!#REF!,10,FALSE)/1000,IFERROR(VLOOKUP($F65&$G65&$H65&$M65&COMP!$D$84&$I65&\"L\",MGMAC!#REF!,10,FALSE)/1000,IFERROR(VLOOKUP($F65&$G65&$H65&$M65&COMP!$D$84&$I65&\"L\",MGMACP!#REF!,10,FALSE)/1000,\"no data\"))))","v":"no data"},{"$f":"IF($F65=\"SPEC\",COMP!L$90/1000,IFERROR(VLOOKUP($F65&$G65&$H65&$M65&COMP!$D$84&$I65&\"L\",AAMC!#REF!,15,FALSE)/1000,IFERROR(VLOOKUP($F65&$G65&$H65&$M65&COMP!$D$84&$I65&\"L\",MGMAC!#REF!,15,FALSE)/1000,IFERROR(VLOOKUP($F65&$G65&$H65&$M65&COMP!$D$84&$I65&\"L\",MGMACP!#REF!,15,FALSE)/1000,\"no data\"))))","v":"no data"},{"$f":"IF($F65=\"SPEC\",COMP!M$90/1000,IFERROR(VLOOKUP($F65&$G65&$H65&$M65&COMP!$D$84&$I65&\"L\",AAMC!#REF!,20,FALSE)/1000,IFERROR(VLOOKUP($F65&$G65&$H65&$M65&COMP!$D$84&$I65&\"L\",MGMAC!#REF!,20,FALSE)/1000,IFERROR(VLOOKUP($F65&$G65&$H65&$M65&COMP!$D$84&$I65&\"L\",MGMACP!#REF!,20,FALSE)/1000,\"no data\"))))","v":"no data"},null,null,null,null,0,null,null,1,0,{"$f":"IF($J65=0,0,IF($B65=\"SPEC\",COMP!$L$102,IF($B65=\"FPSC\",IFERROR(VLOOKUP($B65&$C65&$D65&$E65&\"L\",FPSC!#REF!,13,FALSE),\"no data\"),IF(B65&C65=\"MGMAAcademic\",IFERROR(VLOOKUP($B65&$C65&$D65&$E65&\"L\",MGMAR!#REF!,13,FALSE),\"no data\"),IFERROR(VLOOKUP($B65&$C65&$D65&$E65&\"L\",MGMARP!#REF!,13,FALSE),\"no data\")))))","v":0},0,0,0,0,0,0,0,0,0,0]
[0,"FPSC","Academic","All",{"$f":"IF($B66=\"MGMA\",COMP!$D$86,IF($B66=\"FPSC\",COMP!$D$85,IF($B66=\"SPEC\",COMP!$K$103,\"no data\")))","v":"[select]"},"AAMC","Academic","All",{"$f":"IF($F66=\"AAMC\",COMP!$D$83,IF($F66=\"MGMA\",COMP!$D$86,IF($F66=\"SPEC\",COMP!$K$91,\"no data\")))","v":"[select]"},null,null,null,null,null,null,null,null,null,null,null,null,0,null,0,null,0,0,null,0,0,{"$f":"IF($F66=\"SPEC\",COMP!K$90/1000,IFERROR(VLOOKUP($F66&$G66&$H66&$M66&COMP!$D$84&$I66&\"L\",AAMC!#REF!,10,FALSE)/1000,IFERROR(VLOOKUP($F66&$G66&$H66&$M66&COMP!$D$84&$I66&\"L\",MGMAC!#REF!,10,FALSE)/1000,IFERROR(VLOOKUP($F66&$G66&$H66&$M66&COMP!$D$84&$I66&\"L\",MGMACP!#REF!,10,FALSE)/1000,\"no data\"))))","v":"no data"},{"$f":"IF($F66=\"SPEC\",COMP!L$90/1000,IFERROR(VLOOKUP($F66&$G66&$H66&$M66&COMP!$D$84&$I66&\"L\",AAMC!#REF!,15,FALSE)/1000,IFERROR(VLOOKUP($F66&$G66&$H66&$M66&COMP!$D$84&$I66&\"L\",MGMAC!#REF!,15,FALSE)/1000,IFERROR(VLOOKUP($F66&$G66&$H66&$M66&COMP!$D$84&$I66&\"L\",MGMACP!#REF!,15,FALSE)/1000,\"no data\"))))","v":"no data"},{"$f":"IF($F66=\"SPEC\",COMP!M$90/1000,IFERROR(VLOOKUP($F66&$G66&$H66&$M66&COMP!$D$84&$I66&\"L\",AAMC!#REF!,20,FALSE)/1000,IFERROR(VLOOKUP($F66&$G66&$H66&$M66&COMP!$D$84&$I66&\"L\",MGMAC!#REF!,20,FALSE)/1000,IFERROR(VLOOKUP($F66&$G66&$H66&$M66&COMP!$D$84&$I66&\"L\",MGMACP!#REF!,20,FALSE)/1000,\"no data\"))))","v":"no data"},null,null,null,null,0,null,null,1,0,{"$f":"IF($J66=0,0,IF($B66=\"SPEC\",COMP!$L$102,IF($B66=\"FPSC\",IFERROR(VLOOKUP($B66&$C66&$D66&$E66&\"L\",FPSC!#REF!,13,FALSE),\"no data\"),IF(B66&C66=\"MGMAAcademic\",IFERROR(VLOOKUP($B66&$C66&$D66&$E66&\"L\",MGMAR!#REF!,13,FALSE),\"no data\"),IFERROR(VLOOKUP($B66&$C66&$D66&$E66&\"L\",MGMARP!#REF!,13,FALSE),\"no data\")))))","v":0},0,0,0,0,0,0,0,0,0,0]
[0,"FPSC","Academic","All",{"$f":"IF($B67=\"MGMA\",COMP!$D$86,IF($B67=\"FPSC\",COMP!$D$85,IF($B67=\"SPEC\",COMP!$K$103,\"no data\")))","v":"[select]"},"AAMC","Academic","All",{"$f":"IF($F67=\"AAMC\",COMP!$D$83,IF($F67=\"MGMA\",COMP!$D$86,IF($F67=\"SPEC\",COMP!$K$91,\"no data\")))","v":"[select]"},null,null,null,null,null,null,null,null,null,null,null,null,0,null,0,null,0,0,null,0,0,{"$f":"IF($F67=\"SPEC\",COMP!K$90/1000,IFERROR(VLOOKUP($F67&$G67&$H67&$M67&COMP!$D$84&$I67&\"L\",AAMC!#REF!,10,FALSE)/1000,IFERROR(VLOOKUP($F67&$G67&$H67&$M67&COMP!$D$84&$I67&\"L\",MGMAC!#REF!,10,FALSE)/1000,IFERROR(VLOOKUP($F67&$G67&$H67&$M67&COMP!$D$84&$I67&\"L\",MGMACP!#REF!,10,FALSE)/1000,\"no data\"))))","v":"no data"},{"$f":"IF($F67=\"SPEC\",COMP!L$90/1000,IFERROR(VLOOKUP($F67&$G67&$H67&$M67&COMP!$D$84&$I67&\"L\",AAMC!#REF!,15,FALSE)/1000,IFERROR(VLOOKUP($F67&$G67&$H67&$M67&COMP!$D$84&$I67&\"L\",MGMAC!#REF!,15,FALSE)/1000,IFERROR(VLOOKUP($F67&$G67&$H67&$M67&COMP!$D$84&$I67&\"L\",MGMACP!#REF!,15,FALSE)/1000,\"no data\"))))","v":"no data"},{"$f":"IF($F67=\"SPEC\",COMP!M$90/1000,IFERROR(VLOOKUP($F67&$G67&$H67&$M67&COMP!$D$84&$I67&\"L\",AAMC!#REF!,20,FALSE)/1000,IFERROR(VLOOKUP($F67&$G67&$H67&$M67&COMP!$D$84&$I67&\"L\",MGMAC!#REF!,20,FALSE)/1000,IFERROR(VLOOKUP($F67&$G67&$H67&$M67&COMP!$D$84&$I67&\"L\",MGMACP!#REF!,20,FALSE)/1000,\"no data\"))))","v":"no data"},null,null,null,null,0,null,null,1,0,{"$f":"IF($J67=0,0,IF($B67=\"SPEC\",COMP!$L$102,IF($B67=\"FPSC\",IFERROR(VLOOKUP($B67&$C67&$D67&$E67&\"L\",FPSC!#REF!,13,FALSE),\"no data\"),IF(B67&C67=\"MGMAAcademic\",IFERROR(VLOOKUP($B67&$C67&$D67&$E67&\"L\",MGMAR!#REF!,13,FALSE),\"no data\"),IFERROR(VLOOKUP($B67&$C67&$D67&$E67&\"L\",MGMARP!#REF!,13,FALSE),\"no data\")))))","v":0},0,0,0,0,0,0,0,0,0,0]
[0,"FPSC","Academic","All",{"$f":"IF($B68=\"MGMA\",COMP!$D$86,IF($B68=\"FPSC\",COMP!$D$85,IF($B68=\"SPEC\",COMP!$K$103,\"no data\")))","v":"[select]"},"AAMC","Academic","All",{"$f":"IF($F68=\"AAMC\",COMP!$D$83,IF($F68=\"MGMA\",COMP!$D$86,IF($F68=\"SPEC\",COMP!$K$91,\"no data\")))","v":"[select]"},null,null,null,null,null,null,null,null,null,null,null,null,0,null,0,null,0,0,null,0,0,{"$f":"IF($F68=\"SPEC\",COMP!K$90/1000,IFERROR(VLOOKUP($F68&$G68&$H68&$M68&COMP!$D$84&$I68&\"L\",AAMC!#REF!,10,FALSE)/1000,IFERROR(VLOOKUP($F68&$G68&$H68&$M68&COMP!$D$84&$I68&\"L\",MGMAC!#REF!,10,FALSE)/1000,IFERROR(VLOOKUP($F68&$G68&$H68&$M68&COMP!$D$84&$I68&\"L\",MGMACP!#REF!,10,FALSE)/1000,\"no data\"))))","v":"no data"},{"$f":"IF($F68=\"SPEC\",COMP!L$90/1000,IFERROR(VLOOKUP($F68&$G68&$H68&$M68&COMP!$D$84&$I68&\"L\",AAMC!#REF!,15,FALSE)/1000,IFERROR(VLOOKUP($F68&$G68&$H68&$M68&COMP!$D$84&$I68&\"L\",MGMAC!#REF!,15,FALSE)/1000,IFERROR(VLOOKUP($F68&$G68&$H68&$M68&COMP!$D$84&$I68&\"L\",MGMACP!#REF!,15,FALSE)/1000,\"no data\"))))","v":"no data"},{"$f":"IF($F68=\"SPEC\",COMP!M$90/1000,IFERROR(VLOOKUP($F68&$G68&$H68&$M68&COMP!$D$84&$I68&\"L\",AAMC!#REF!,20,FALSE)/1000,IFERROR(VLOOKUP($F68&$G68&$H68&$M68&COMP!$D$84&$I68&\"L\",MGMAC!#REF!,20,FALSE)/1000,IFERROR(VLOOKUP($F68&$G68&$H68&$M68&COMP!$D$84&$I68&\"L\",MGMACP!#REF!,20,FALSE)/1000,\"no data\"))))","v":"no data"},null,null,null,null,0,null,null,1,0,{"$f":"IF($J68=0,0,IF($B68=\"SPEC\",COMP!$L$102,IF($B68=\"FPSC\",IFERROR(VLOOKUP($B68&$C68&$D68&$E68&\"L\",FPSC!#REF!,13,FALSE),\"no data\"),IF(B68&C68=\"MGMAAcademic\",IFERROR(VLOOKUP($B68&$C68&$D68&$E68&\"L\",MGMAR!#REF!,13,FALSE),\"no data\"),IFERROR(VLOOKUP($B68&$C68&$D68&$E68&\"L\",MGMARP!#REF!,13,FALSE),\"no data\")))))","v":0},0,0,0,0,0,0,0,0,0,0]
[0,"FPSC","Academic","All",{"$f":"IF($B69=\"MGMA\",COMP!$D$86,IF($B69=\"FPSC\",COMP!$D$85,IF($B69=\"SPEC\",COMP!$K$103,\"no data\")))","v":"[select]"},"AAMC","Academic","All",{"$f":"IF($F69=\"AAMC\",COMP!$D$83,IF($F69=\"MGMA\",COMP!$D$86,IF($F69=\"SPEC\",COMP!$K$91,\"no data\")))","v":"[select]"},null,null,null,null,null,null,null,null,null,null,null,null,0,null,0,null,0,0,null,0,0,{"$f":"IF($F69=\"SPEC\",COMP!K$90/1000,IFERROR(VLOOKUP($F69&$G69&$H69&$M69&COMP!$D$84&$I69&\"L\",AAMC!#REF!,10,FALSE)/1000,IFERROR(VLOOKUP($F69&$G69&$H69&$M69&COMP!$D$84&$I69&\"L\",MGMAC!#REF!,10,FALSE)/1000,IFERROR(VLOOKUP($F69&$G69&$H69&$M69&COMP!$D$84&$I69&\"L\",MGMACP!#REF!,10,FALSE)/1000,\"no data\"))))","v":"no data"},{"$f":"IF($F69=\"SPEC\",COMP!L$90/1000,IFERROR(VLOOKUP($F69&$G69&$H69&$M69&COMP!$D$84&$I69&\"L\",AAMC!#REF!,15,FALSE)/1000,IFERROR(VLOOKUP($F69&$G69&$H69&$M69&COMP!$D$84&$I69&\"L\",MGMAC!#REF!,15,FALSE)/1000,IFERROR(VLOOKUP($F69&$G69&$H69&$M69&COMP!$D$84&$I69&\"L\",MGMACP!#REF!,15,FALSE)/1000,\"no data\"))))","v":"no data"},{"$f":"IF($F69=\"SPEC\",COMP!M$90/1000,IFERROR(VLOOKUP($F69&$G69&$H69&$M69&COMP!$D$84&$I69&\"L\",AAMC!#REF!,20,FALSE)/1000,IFERROR(VLOOKUP($F69&$G69&$H69&$M69&COMP!$D$84&$I69&\"L\",MGMAC!#REF!,20,FALSE)/1000,IFERROR(VLOOKUP($F69&$G69&$H69&$M69&COMP!$D$84&$I69&\"L\",MGMACP!#REF!,20,FALSE)/1000,\"no data\"))))","v":"no data"},null,null,null,null,0,null,null,1,0,{"$f":"IF($J69=0,0,IF($B69=\"SPEC\",COMP!$L$102,IF($B69=\"FPSC\",IFERROR(VLOOKUP($B69&$C69&$D69&$E69&\"L\",FPSC!#REF!,13,FALSE),\"no data\"),IF(B69&C69=\"MGMAAcademic\",IFERROR(VLOOKUP($B69&$C69&$D69&$E69&\"L\",MGMAR!#REF!,13,FALSE),\"no data\"),IFERROR(VLOOKUP($B69&$C69&$D69&$E69&\"L\",MGMARP!#REF!,13,FALSE),\"no data\")))))","v":0},0,0,0,0,0,0,0,0,0,0]
[0,"FPSC","Academic","All",{"$f":"IF($B70=\"MGMA\",COMP!$D$86,IF($B70=\"FPSC\",COMP!$D$85,IF($B70=\"SPEC\",COMP!$K$103,\"no data\")))","v":"[select]"},"AAMC","Academic","All",{"$f":"IF($F70=\"AAMC\",COMP!$D$83,IF($F70=\"MGMA\",COMP!$D$86,IF($F70=\"SPEC\",COMP!$K$91,\"no data\")))","v":"[select]"},null,null,null,null,null,null,null,null,null,null,null,null,0,null,0,null,0,0,null,0,0,{"$f":"IF($F70=\"SPEC\",COMP!K$90/1000,IFERROR(VLOOKUP($F70&$G70&$H70&$M70&COMP!$D$84&$I70&\"L\",AAMC!#REF!,10,FALSE)/1000,IFERROR(VLOOKUP($F70&$G70&$H70&$M70&COMP!$D$84&$I70&\"L\",MGMAC!#REF!,10,FALSE)/1000,IFERROR(VLOOKUP($F70&$G70&$H70&$M70&COMP!$D$84&$I70&\"L\",MGMACP!#REF!,10,FALSE)/1000,\"no data\"))))","v":"no data"},{"$f":"IF($F70=\"SPEC\",COMP!L$90/1000,IFERROR(VLOOKUP($F70&$G70&$H70&$M70&COMP!$D$84&$I70&\"L\",AAMC!#REF!,15,FALSE)/1000,IFERROR(VLOOKUP($F70&$G70&$H70&$M70&COMP!$D$84&$I70&\"L\",MGMAC!#REF!,15,FALSE)/1000,IFERROR(VLOOKUP($F70&$G70&$H70&$M70&COMP!$D$84&$I70&\"L\",MGMACP!#REF!,15,FALSE)/1000,\"no data\"))))","v":"no data"},{"$f":"IF($F70=\"SPEC\",COMP!M$90/1000,IFERROR(VLOOKUP($F70&$G70&$H70&$M70&COMP!$D$84&$I70&\"L\",AAMC!#REF!,20,FALSE)/1000,IFERROR(VLOOKUP($F70&$G70&$H70&$M70&COMP!$D$84&$I70&\"L\",MGMAC!#REF!,20,FALSE)/1000,IFERROR(VLOOKUP($F70&$G70&$H70&$M70&COMP!$D$84&$I70&\"L\",MGMACP!#REF!,20,FALSE)/1000,\"no data\"))))","v":"no data"},null,null,null,null,0,null,null,1,0,{"$f":"IF($J70=0,0,IF($B70=\"SPEC\",COMP!$L$102,IF($B70=\"FPSC\",IFERROR(VLOOKUP($B70&$C70&$D70&$E70&\"L\",FPSC!#REF!,13,FALSE),\"no data\"),IF(B70&C70=\"MGMAAcademic\",IFERROR(VLOOKUP($B70&$C70&$D70&$E70&\"L\",MGMAR!#REF!,13,FALSE),\"no data\"),IFERROR(VLOOKUP($B70&$C70&$D70&$E70&\"L\",MGMARP!#REF!,13,FALSE),\"no data\")))))","v":0},0,0,0,0,0,0,0,0,0,0]
[0,"FPSC","Academic","All",{"$f":"IF($B71=\"MGMA\",COMP!$D$86,IF($B71=\"FPSC\",COMP!$D$85,IF($B71=\"SPEC\",COMP!$K$103,\"no data\")))","v":"[select]"},"AAMC","Academic","All",{"$f":"IF($F71=\"AAMC\",COMP!$D$83,IF($F71=\"MGMA\",COMP!$D$86,IF($F71=\"SPEC\",COMP!$K$91,\"no data\")))","v":"[select]"},null,null,null,null,null,null,null,null,null,null,null,null,0,null,0,null,0,0,null,0,0,{"$f":"IF($F71=\"SPEC\",COMP!K$90/1000,IFERROR(VLOOKUP($F71&$G71&$H71&$M71&COMP!$D$84&$I71&\"L\",AAMC!#REF!,10,FALSE)/1000,IFERROR(VLOOKUP($F71&$G71&$H71&$M71&COMP!$D$84&$I71&\"L\",MGMAC!#REF!,10,FALSE)/1000,IFERROR(VLOOKUP($F71&$G71&$H71&$M71&COMP!$D$84&$I71&\"L\",MGMACP!#REF!,10,FALSE)/1000,\"no data\"))))","v":"no data"},{"$f":"IF($F71=\"SPEC\",COMP!L$90/1000,IFERROR(VLOOKUP($F71&$G71&$H71&$M71&COMP!$D$84&$I71&\"L\",AAMC!#REF!,15,FALSE)/1000,IFERROR(VLOOKUP($F71&$G71&$H71&$M71&COMP!$D$84&$I71&\"L\",MGMAC!#REF!,15,FALSE)/1000,IFERROR(VLOOKUP($F71&$G71&$H71&$M71&COMP!$D$84&$I71&\"L\",MGMACP!#REF!,15,FALSE)/1000,\"no data\"))))","v":"no data"},{"$f":"IF($F71=\"SPEC\",COMP!M$90/1000,IFERROR(VLOOKUP($F71&$G71&$H71&$M71&COMP!$D$84&$I71&\"L\",AAMC!#REF!,20,FALSE)/1000,IFERROR(VLOOKUP($F71&$G71&$H71&$M71&COMP!$D$84&$I71&\"L\",MGMAC!#REF!,20,FALSE)/1000,IFERROR(VLOOKUP($F71&$G71&$H71&$M71&COMP!$D$84&$I71&\"L\",MGMACP!#REF!,20,FALSE)/1000,\"no data\"))))","v":"no data"},null,null,null,null,0,null,null,1,0,{"$f":"IF($J71=0,0,IF($B71=\"SPEC\",COMP!$L$102,IF($B71=\"FPSC\",IFERROR(VLOOKUP($B71&$C71&$D71&$E71&\"L\",FPSC!#REF!,13,FALSE),\"no data\"),IF(B71&C71=\"MGMAAcademic\",IFERROR(VLOOKUP($B71&$C71&$D71&$E71&\"L\",MGMAR!#REF!,13,FALSE),\"no data\"),IFERROR(VLOOKUP($B71&$C71&$D71&$E71&\"L\",MGMARP!#REF!,13,FALSE),\"no data\")))))","v":0},0,0,0,0,0,0,0,0,0,0]
[0,"FPSC","Academic","All",{"$f":"IF($B72=\"MGMA\",COMP!$D$86,IF($B72=\"FPSC\",COMP!$D$85,IF($B72=\"SPEC\",COMP!$K$103,\"no data\")))","v":"[select]"},"AAMC","Academic","All",{"$f":"IF($F72=\"AAMC\",COMP!$D$83,IF($F72=\"MGMA\",COMP!$D$86,IF($F72=\"SPEC\",COMP!$K$91,\"no data\")))","v":"[select]"},null,null,null,null,null,null,null,null,null,null,null,null,0,null,0,null,0,0,null,0,0,{"$f":"IF($F72=\"SPEC\",COMP!K$90/1000,IFERROR(VLOOKUP($F72&$G72&$H72&$M72&COMP!$D$84&$I72&\"L\",AAMC!#REF!,10,FALSE)/1000,IFERROR(VLOOKUP($F72&$G72&$H72&$M72&COMP!$D$84&$I72&\"L\",MGMAC!#REF!,10,FALSE)/1000,IFERROR(VLOOKUP($F72&$G72&$H72&$M72&COMP!$D$84&$I72&\"L\",MGMACP!#REF!,10,FALSE)/1000,\"no data\"))))","v":"no data"},{"$f":"IF($F72=\"SPEC\",COMP!L$90/1000,IFERROR(VLOOKUP($F72&$G72&$H72&$M72&COMP!$D$84&$I72&\"L\",AAMC!#REF!,15,FALSE)/1000,IFERROR(VLOOKUP($F72&$G72&$H72&$M72&COMP!$D$84&$I72&\"L\",MGMAC!#REF!,15,FALSE)/1000,IFERROR(VLOOKUP($F72&$G72&$H72&$M72&COMP!$D$84&$I72&\"L\",MGMACP!#REF!,15,FALSE)/1000,\"no data\"))))","v":"no data"},{"$f":"IF($F72=\"SPEC\",COMP!M$90/1000,IFERROR(VLOOKUP($F72&$G72&$H72&$M72&COMP!$D$84&$I72&\"L\",AAMC!#REF!,20,FALSE)/1000,IFERROR(VLOOKUP($F72&$G72&$H72&$M72&COMP!$D$84&$I72&\"L\",MGMAC!#REF!,20,FALSE)/1000,IFERROR(VLOOKUP($F72&$G72&$H72&$M72&COMP!$D$84&$I72&\"L\",MGMACP!#REF!,20,FALSE)/1000,\"no data\"))))","v":"no data"},null,null,null,null,0,null,null,1,0,{"$f":"IF($J72=0,0,IF($B72=\"SPEC\",COMP!$L$102,IF($B72=\"FPSC\",IFERROR(VLOOKUP($B72&$C72&$D72&$E72&\"L\",FPSC!#REF!,13,FALSE),\"no data\"),IF(B72&C72=\"MGMAAcademic\",IFERROR(VLOOKUP($B72&$C72&$D72&$E72&\"L\",MGMAR!#REF!,13,FALSE),\"no data\"),IFERROR(VLOOKUP($B72&$C72&$D72&$E72&\"L\",MGMARP!#REF!,13,FALSE),\"no data\")))))","v":0},0,0,0,0,0,0,0,0,0,0]
[0,"FPSC","Academic","All",{"$f":"IF($B73=\"MGMA\",COMP!$D$86,IF($B73=\"FPSC\",COMP!$D$85,IF($B73=\"SPEC\",COMP!$K$103,\"no data\")))","v":"[select]"},"AAMC","Academic","All",{"$f":"IF($F73=\"AAMC\",COMP!$D$83,IF($F73=\"MGMA\",COMP!$D$86,IF($F73=\"SPEC\",COMP!$K$91,\"no data\")))","v":"[select]"},null,null,null,null,null,null,null,null,null,null,null,null,0,null,0,null,0,0,null,0,0,{"$f":"IF($F73=\"SPEC\",COMP!K$90/1000,IFERROR(VLOOKUP($F73&$G73&$H73&$M73&COMP!$D$84&$I73&\"L\",AAMC!#REF!,10,FALSE)/1000,IFERROR(VLOOKUP($F73&$G73&$H73&$M73&COMP!$D$84&$I73&\"L\",MGMAC!#REF!,10,FALSE)/1000,IFERROR(VLOOKUP($F73&$G73&$H73&$M73&COMP!$D$84&$I73&\"L\",MGMACP!#REF!,10,FALSE)/1000,\"no data\"))))","v":"no data"},{"$f":"IF($F73=\"SPEC\",COMP!L$90/1000,IFERROR(VLOOKUP($F73&$G73&$H73&$M73&COMP!$D$84&$I73&\"L\",AAMC!#REF!,15,FALSE)/1000,IFERROR(VLOOKUP($F73&$G73&$H73&$M73&COMP!$D$84&$I73&\"L\",MGMAC!#REF!,15,FALSE)/1000,IFERROR(VLOOKUP($F73&$G73&$H73&$M73&COMP!$D$84&$I73&\"L\",MGMACP!#REF!,15,FALSE)/1000,\"no data\"))))","v":"no data"},{"$f":"IF($F73=\"SPEC\",COMP!M$90/1000,IFERROR(VLOOKUP($F73&$G73&$H73&$M73&COMP!$D$84&$I73&\"L\",AAMC!#REF!,20,FALSE)/1000,IFERROR(VLOOKUP($F73&$G73&$H73&$M73&COMP!$D$84&$I73&\"L\",MGMAC!#REF!,20,FALSE)/1000,IFERROR(VLOOKUP($F73&$G73&$H73&$M73&COMP!$D$84&$I73&\"L\",MGMACP!#REF!,20,FALSE)/1000,\"no data\"))))","v":"no data"},null,null,null,null,0,null,null,1,0,{"$f":"IF($J73=0,0,IF($B73=\"SPEC\",COMP!$L$102,IF($B73=\"FPSC\",IFERROR(VLOOKUP($B73&$C73&$D73&$E73&\"L\",FPSC!#REF!,13,FALSE),\"no data\"),IF(B73&C73=\"MGMAAcademic\",IFERROR(VLOOKUP($B73&$C73&$D73&$E73&\"L\",MGMAR!#REF!,13,FALSE),\"no data\"),IFERROR(VLOOKUP($B73&$C73&$D73&$E73&\"L\",MGMARP!#REF!,13,FALSE),\"no data\")))))","v":0},0,0,0,0,0,0,0,0,0,0]
[0,"FPSC","Academic","All",{"$f":"IF($B74=\"MGMA\",COMP!$D$86,IF($B74=\"FPSC\",COMP!$D$85,IF($B74=\"SPEC\",COMP!$K$103,\"no data\")))","v":"[select]"},"AAMC","Academic","All",{"$f":"IF($F74=\"AAMC\",COMP!$D$83,IF($F74=\"MGMA\",COMP!$D$86,IF($F74=\"SPEC\",COMP!$K$91,\"no data\")))","v":"[select]"},null,null,null,null,null,null,null,null,null,null,null,null,0,null,0,null,0,0,null,0,0,{"$f":"IF($F74=\"SPEC\",COMP!K$90/1000,IFERROR(VLOOKUP($F74&$G74&$H74&$M74&COMP!$D$84&$I74&\"L\",AAMC!#REF!,10,FALSE)/1000,IFERROR(VLOOKUP($F74&$G74&$H74&$M74&COMP!$D$84&$I74&\"L\",MGMAC!#REF!,10,FALSE)/1000,IFERROR(VLOOKUP($F74&$G74&$H74&$M74&COMP!$D$84&$I74&\"L\",MGMACP!#REF!,10,FALSE)/1000,\"no data\"))))","v":"no data"},{"$f":"IF($F74=\"SPEC\",COMP!L$90/1000,IFERROR(VLOOKUP($F74&$G74&$H74&$M74&COMP!$D$84&$I74&\"L\",AAMC!#REF!,15,FALSE)/1000,IFERROR(VLOOKUP($F74&$G74&$H74&$M74&COMP!$D$84&$I74&\"L\",MGMAC!#REF!,15,FALSE)/1000,IFERROR(VLOOKUP($F74&$G74&$H74&$M74&COMP!$D$84&$I74&\"L\",MGMACP!#REF!,15,FALSE)/1000,\"no data\"))))","v":"no data"},{"$f":"IF($F74=\"SPEC\",COMP!M$90/1000,IFERROR(VLOOKUP($F74&$G74&$H74&$M74&COMP!$D$84&$I74&\"L\",AAMC!#REF!,20,FALSE)/1000,IFERROR(VLOOKUP($F74&$G74&$H74&$M74&COMP!$D$84&$I74&\"L\",MGMAC!#REF!,20,FALSE)/1000,IFERROR(VLOOKUP($F74&$G74&$H74&$M74&COMP!$D$84&$I74&\"L\",MGMACP!#REF!,20,FALSE)/1000,\"no data\"))))","v":"no data"},null,null,null,null,0,null,null,1,0,{"$f":"IF($J74=0,0,IF($B74=\"SPEC\",COMP!$L$102,IF($B74=\"FPSC\",IFERROR(VLOOKUP($B74&$C74&$D74&$E74&\"L\",FPSC!#REF!,13,FALSE),\"no data\"),IF(B74&C74=\"MGMAAcademic\",IFERROR(VLOOKUP($B74&$C74&$D74&$E74&\"L\",MGMAR!#REF!,13,FALSE),\"no data\"),IFERROR(VLOOKUP($B74&$C74&$D74&$E74&\"L\",MGMARP!#REF!,13,FALSE),\"no data\")))))","v":0},0,0,0,0,0,0,0,0,0,0]
[0,"FPSC","Academic","All",{"$f":"IF($B75=\"MGMA\",COMP!$D$86,IF($B75=\"FPSC\",COMP!$D$85,IF($B75=\"SPEC\",COMP!$K$103,\"no data\")))","v":"[select]"},"AAMC","Academic","All",{"$f":"IF($F75=\"AAMC\",COMP!$D$83,IF($F75=\"MGMA\",COMP!$D$86,IF($F75=\"SPEC\",COMP!$K$91,\"no data\")))","v":"[select]"},null,null,null,null,null,null,null,null,null,null,null,null,0,null,0,null,0,0,null,0,0,{"$f":"IF($F75=\"SPEC\",COMP!K$90/1000,IFERROR(VLOOKUP($F75&$G75&$H75&$M75&COMP!$D$84&$I75&\"L\",AAMC!#REF!,10,FALSE)/1000,IFERROR(VLOOKUP($F75&$G75&$H75&$M75&COMP!$D$84&$I75&\"L\",MGMAC!#REF!,10,FALSE)/1000,IFERROR(VLOOKUP($F75&$G75&$H75&$M75&COMP!$D$84&$I75&\"L\",MGMACP!#REF!,10,FALSE)/1000,\"no data\"))))","v":"no data"},{"$f":"IF($F75=\"SPEC\",COMP!L$90/1000,IFERROR(VLOOKUP($F75&$G75&$H75&$M75&COMP!$D$84&$I75&\"L\",AAMC!#REF!,15,FALSE)/1000,IFERROR(VLOOKUP($F75&$G75&$H75&$M75&COMP!$D$84&$I75&\"L\",MGMAC!#REF!,15,FALSE)/1000,IFERROR(VLOOKUP($F75&$G75&$H75&$M75&COMP!$D$84&$I75&\"L\",MGMACP!#REF!,15,FALSE)/1000,\"no data\"))))","v":"no data"},{"$f":"IF($F75=\"SPEC\",COMP!M$90/1000,IFERROR(VLOOKUP($F75&$G75&$H75&$M75&COMP!$D$84&$I75&\"L\",AAMC!#REF!,20,FALSE)/1000,IFERROR(VLOOKUP($F75&$G75&$H75&$M75&COMP!$D$84&$I75&\"L\",MGMAC!#REF!,20,FALSE)/1000,IFERROR(VLOOKUP($F75&$G75&$H75&$M75&COMP!$D$84&$I75&\"L\",MGMACP!#REF!,20,FALSE)/1000,\"no data\"))))","v":"no data"},null,null,null,null,0,null,null,1,0,{"$f":"IF($J75=0,0,IF($B75=\"SPEC\",COMP!$L$102,IF($B75=\"FPSC\",IFERROR(VLOOKUP($B75&$C75&$D75&$E75&\"L\",FPSC!#REF!,13,FALSE),\"no data\"),IF(B75&C75=\"MGMAAcademic\",IFERROR(VLOOKUP($B75&$C75&$D75&$E75&\"L\",MGMAR!#REF!,13,FALSE),\"no data\"),IFERROR(VLOOKUP($B75&$C75&$D75&$E75&\"L\",MGMARP!#REF!,13,FALSE),\"no data\")))))","v":0},0,0,0,0,0,0,0,0,0,0]
[0,"FPSC","Academic","All",{"$f":"IF($B76=\"MGMA\",COMP!$D$86,IF($B76=\"FPSC\",COMP!$D$85,IF($B76=\"SPEC\",COMP!$K$103,\"no data\")))","v":"[select]"},"AAMC","Academic","All",{"$f":"IF($F76=\"AAMC\",COMP!$D$83,IF($F76=\"MGMA\",COMP!$D$86,IF($F76=\"SPEC\",COMP!$K$91,\"no data\")))","v":"[select]"},null,null,null,null,null,null,null,null,null,null,null,null,0,null,0,null,0,0,null,0,0,{"$f":"IF($F76=\"SPEC\",COMP!K$90/1000,IFERROR(VLOOKUP($F76&$G76&$H76&$M76&COMP!$D$84&$I76&\"L\",AAMC!#REF!,10,FALSE)/1000,IFERROR(VLOOKUP($F76&$G76&$H76&$M76&COMP!$D$84&$I76&\"L\",MGMAC!#REF!,10,FALSE)/1000,IFERROR(VLOOKUP($F76&$G76&$H76&$M76&COMP!$D$84&$I76&\"L\",MGMACP!#REF!,10,FALSE)/1000,\"no data\"))))","v":"no data"},{"$f":"IF($F76=\"SPEC\",COMP!L$90/1000,IFERROR(VLOOKUP($F76&$G76&$H76&$M76&COMP!$D$84&$I76&\"L\",AAMC!#REF!,15,FALSE)/1000,IFERROR(VLOOKUP($F76&$G76&$H76&$M76&COMP!$D$84&$I76&\"L\",MGMAC!#REF!,15,FALSE)/1000,IFERROR(VLOOKUP($F76&$G76&$H76&$M76&COMP!$D$84&$I76&\"L\",MGMACP!#REF!,15,FALSE)/1000,\"no data\"))))","v":"no data"},{"$f":"IF($F76=\"SPEC\",COMP!M$90/1000,IFERROR(VLOOKUP($F76&$G76&$H76&$M76&COMP!$D$84&$I76&\"L\",AAMC!#REF!,20,FALSE)/1000,IFERROR(VLOOKUP($F76&$G76&$H76&$M76&COMP!$D$84&$I76&\"L\",MGMAC!#REF!,20,FALSE)/1000,IFERROR(VLOOKUP($F76&$G76&$H76&$M76&COMP!$D$84&$I76&\"L\",MGMACP!#REF!,20,FALSE)/1000,\"no data\"))))","v":"no data"},null,null,null,null,0,null,null,1,0,{"$f":"IF($J76=0,0,IF($B76=\"SPEC\",COMP!$L$102,IF($B76=\"FPSC\",IFERROR(VLOOKUP($B76&$C76&$D76&$E76&\"L\",FPSC!#REF!,13,FALSE),\"no data\"),IF(B76&C76=\"MGMAAcademic\",IFERROR(VLOOKUP($B76&$C76&$D76&$E76&\"L\",MGMAR!#REF!,13,FALSE),\"no data\"),IFERROR(VLOOKUP($B76&$C76&$D76&$E76&\"L\",MGMARP!#REF!,13,FALSE),\"no data\")))))","v":0},0,0,0,0,0,0,0,0,0,0]
[0,"FPSC","Academic","All",{"$f":"IF($B77=\"MGMA\",COMP!$D$86,IF($B77=\"FPSC\",COMP!$D$85,IF($B77=\"SPEC\",COMP!$K$103,\"no data\")))","v":"[select]"},"AAMC","Academic","All",{"$f":"IF($F77=\"AAMC\",COMP!$D$83,IF($F77=\"MGMA\",COMP!$D$86,IF($F77=\"SPEC\",COMP!$K$91,\"no data\")))","v":"[select]"},null,null,null,null,null,null,null,null,null,null,null,null,0,null,0,null,0,0,null,0,0,{"$f":"IF($F77=\"SPEC\",COMP!K$90/1000,IFERROR(VLOOKUP($F77&$G77&$H77&$M77&COMP!$D$84&$I77&\"L\",AAMC!#REF!,10,FALSE)/1000,IFERROR(VLOOKUP($F77&$G77&$H77&$M77&COMP!$D$84&$I77&\"L\",MGMAC!#REF!,10,FALSE)/1000,IFERROR(VLOOKUP($F77&$G77&$H77&$M77&COMP!$D$84&$I77&\"L\",MGMACP!#REF!,10,FALSE)/1000,\"no data\"))))","v":"no data"},{"$f":"IF($F77=\"SPEC\",COMP!L$90/1000,IFERROR(VLOOKUP($F77&$G77&$H77&$M77&COMP!$D$84&$I77&\"L\",AAMC!#REF!,15,FALSE)/1000,IFERROR(VLOOKUP($F77&$G77&$H77&$M77&COMP!$D$84&$I77&\"L\",MGMAC!#REF!,15,FALSE)/1000,IFERROR(VLOOKUP($F77&$G77&$H77&$M77&COMP!$D$84&$I77&\"L\",MGMACP!#REF!,15,FALSE)/1000,\"no data\"))))","v":"no data"},{"$f":"IF($F77=\"SPEC\",COMP!M$90/1000,IFERROR(VLOOKUP($F77&$G77&$H77&$M77&COMP!$D$84&$I77&\"L\",AAMC!#REF!,20,FALSE)/1000,IFERROR(VLOOKUP($F77&$G77&$H77&$M77&COMP!$D$84&$I77&\"L\",MGMAC!#REF!,20,FALSE)/1000,IFERROR(VLOOKUP($F77&$G77&$H77&$M77&COMP!$D$84&$I77&\"L\",MGMACP!#REF!,20,FALSE)/1000,\"no data\"))))","v":"no data"},null,null,null,null,0,null,null,1,0,{"$f":"IF($J77=0,0,IF($B77=\"SPEC\",COMP!$L$102,IF($B77=\"FPSC\",IFERROR(VLOOKUP($B77&$C77&$D77&$E77&\"L\",FPSC!#REF!,13,FALSE),\"no data\"),IF(B77&C77=\"MGMAAcademic\",IFERROR(VLOOKUP($B77&$C77&$D77&$E77&\"L\",MGMAR!#REF!,13,FALSE),\"no data\"),IFERROR(VLOOKUP($B77&$C77&$D77&$E77&\"L\",MGMARP!#REF!,13,FALSE),\"no data\")))))","v":0},0,0,0,0,0,0,0,0,0,0]
[0,"FPSC","Academic","All",{"$f":"IF($B78=\"MGMA\",COMP!$D$86,IF($B78=\"FPSC\",COMP!$D$85,IF($B78=\"SPEC\",COMP!$K$103,\"no data\")))","v":"[select]"},"AAMC","Academic","All",{"$f":"IF($F78=\"AAMC\",COMP!$D$83,IF($F78=\"MGMA\",COMP!$D$86,IF($F78=\"SPEC\",COMP!$K$91,\"no data\")))","v":"[select]"},null,null,null,null,null,null,null,null,null,null,null,null,0,null,0,null,0,0,null,0,0,{"$f":"IF($F78=\"SPEC\",COMP!K$90/1000,IFERROR(VLOOKUP($F78&$G78&$H78&$M78&COMP!$D$84&$I78&\"L\",AAMC!#REF!,10,FALSE)/1000,IFERROR(VLOOKUP($F78&$G78&$H78&$M78&COMP!$D$84&$I78&\"L\",MGMAC!#REF!,10,FALSE)/1000,IFERROR(VLOOKUP($F78&$G78&$H78&$M78&COMP!$D$84&$I78&\"L\",MGMACP!#REF!,10,FALSE)/1000,\"no data\"))))","v":"no data"},{"$f":"IF($F78=\"SPEC\",COMP!L$90/1000,IFERROR(VLOOKUP($F78&$G78&$H78&$M78&COMP!$D$84&$I78&\"L\",AAMC!#REF!,15,FALSE)/1000,IFERROR(VLOOKUP($F78&$G78&$H78&$M78&COMP!$D$84&$I78&\"L\",MGMAC!#REF!,15,FALSE)/1000,IFERROR(VLOOKUP($F78&$G78&$H78&$M78&COMP!$D$84&$I78&\"L\",MGMACP!#REF!,15,FALSE)/1000,\"no data\"))))","v":"no data"},{"$f":"IF($F78=\"SPEC\",COMP!M$90/1000,IFERROR(VLOOKUP($F78&$G78&$H78&$M78&COMP!$D$84&$I78&\"L\",AAMC!#REF!,20,FALSE)/1000,IFERROR(VLOOKUP($F78&$G78&$H78&$M78&COMP!$D$84&$I78&\"L\",MGMAC!#REF!,20,FALSE)/1000,IFERROR(VLOOKUP($F78&$G78&$H78&$M78&COMP!$D$84&$I78&\"L\",MGMACP!#REF!,20,FALSE)/1000,\"no data\"))))","v":"no data"},null,null,null,null,0,null,null,1,0,{"$f":"IF($J78=0,0,IF($B78=\"SPEC\",COMP!$L$102,IF($B78=\"FPSC\",IFERROR(VLOOKUP($B78&$C78&$D78&$E78&\"L\",FPSC!#REF!,13,FALSE),\"no data\"),IF(B78&C78=\"MGMAAcademic\",IFERROR(VLOOKUP($B78&$C78&$D78&$E78&\"L\",MGMAR!#REF!,13,FALSE),\"no data\"),IFERROR(VLOOKUP($B78&$C78&$D78&$E78&\"L\",MGMARP!#REF!,13,FALSE),\"no data\")))))","v":0},0,0,0,0,0,0,0,0,0,0]
[0,"FPSC","Academic","All",{"$f":"IF($B79=\"MGMA\",COMP!$D$86,IF($B79=\"FPSC\",COMP!$D$85,IF($B79=\"SPEC\",COMP!$K$103,\"no data\")))","v":"[select]"},"AAMC","Academic","All",{"$f":"IF($F79=\"AAMC\",COMP!$D$83,IF($F79=\"MGMA\",COMP!$D$86,IF($F79=\"SPEC\",COMP!$K$91,\"no data\")))","v":"[select]"},null,null,null,null,null,null,null,null,null,null,null,null,0,null,0,null,0,0,null,0,0,{"$f":"IF($F79=\"SPEC\",COMP!K$90/1000,IFERROR(VLOOKUP($F79&$G79&$H79&$M79&COMP!$D$84&$I79&\"L\",AAMC!#REF!,10,FALSE)/1000,IFERROR(VLOOKUP($F79&$G79&$H79&$M79&COMP!$D$84&$I79&\"L\",MGMAC!#REF!,10,FALSE)/1000,IFERROR(VLOOKUP($F79&$G79&$H79&$M79&COMP!$D$84&$I79&\"L\",MGMACP!#REF!,10,FALSE)/1000,\"no data\"))))","v":"no data"},{"$f":"IF($F79=\"SPEC\",COMP!L$90/1000,IFERROR(VLOOKUP($F79&$G79&$H79&$M79&COMP!$D$84&$I79&\"L\",AAMC!#REF!,15,FALSE)/1000,IFERROR(VLOOKUP($F79&$G79&$H79&$M79&COMP!$D$84&$I79&\"L\",MGMAC!#REF!,15,FALSE)/1000,IFERROR(VLOOKUP($F79&$G79&$H79&$M79&COMP!$D$84&$I79&\"L\",MGMACP!#REF!,15,FALSE)/1000,\"no data\"))))","v":"no data"},{"$f":"IF($F79=\"SPEC\",COMP!M$90/1000,IFERROR(VLOOKUP($F79&$G79&$H79&$M79&COMP!$D$84&$I79&\"L\",AAMC!#REF!,20,FALSE)/1000,IFERROR(VLOOKUP($F79&$G79&$H79&$M79&COMP!$D$84&$I79&\"L\",MGMAC!#REF!,20,FALSE)/1000,IFERROR(VLOOKUP($F79&$G79&$H79&$M79&COMP!$D$84&$I79&\"L\",MGMACP!#REF!,20,FALSE)/1000,\"no data\"))))","v":"no data"},null,null,null,null,0,null,null,1,0,{"$f":"IF($J79=0,0,IF($B79=\"SPEC\",COMP!$L$102,IF($B79=\"FPSC\",IFERROR(VLOOKUP($B79&$C79&$D79&$E79&\"L\",FPSC!#REF!,13,FALSE),\"no data\"),IF(B79&C79=\"MGMAAcademic\",IFERROR(VLOOKUP($B79&$C79&$D79&$E79&\"L\",MGMAR!#REF!,13,FALSE),\"no data\"),IFERROR(VLOOKUP($B79&$C79&$D79&$E79&\"L\",MGMARP!#REF!,13,FALSE),\"no data\")))))","v":0},0,0,0,0,0,0,0,0,0,0]
[0,"FPSC","Academic","All",{"$f":"IF($B80=\"MGMA\",COMP!$D$86,IF($B80=\"FPSC\",COMP!$D$85,IF($B80=\"SPEC\",COMP!$K$103,\"no data\")))","v":"[select]"},"AAMC","Academic","All",{"$f":"IF($F80=\"AAMC\",COMP!$D$83,IF($F80=\"MGMA\",COMP!$D$86,IF($F80=\"SPEC\",COMP!$K$91,\"no data\")))","v":"[select]"},null,null,null,null,null,null,null,null,null,null,null,null,0,null,0,null,0,0,null,0,0,{"$f":"IF($F80=\"SPEC\",COMP!K$90/1000,IFERROR(VLOOKUP($F80&$G80&$H80&$M80&COMP!$D$84&$I80&\"L\",AAMC!#REF!,10,FALSE)/1000,IFERROR(VLOOKUP($F80&$G80&$H80&$M80&COMP!$D$84&$I80&\"L\",MGMAC!#REF!,10,FALSE)/1000,IFERROR(VLOOKUP($F80&$G80&$H80&$M80&COMP!$D$84&$I80&\"L\",MGMACP!#REF!,10,FALSE)/1000,\"no data\"))))","v":"no data"},{"$f":"IF($F80=\"SPEC\",COMP!L$90/1000,IFERROR(VLOOKUP($F80&$G80&$H80&$M80&COMP!$D$84&$I80&\"L\",AAMC!#REF!,15,FALSE)/1000,IFERROR(VLOOKUP($F80&$G80&$H80&$M80&COMP!$D$84&$I80&\"L\",MGMAC!#REF!,15,FALSE)/1000,IFERROR(VLOOKUP($F80&$G80&$H80&$M80&COMP!$D$84&$I80&\"L\",MGMACP!#REF!,15,FALSE)/1000,\"no data\"))))","v":"no data"},{"$f":"IF($F80=\"SPEC\",COMP!M$90/1000,IFERROR(VLOOKUP($F80&$G80&$H80&$M80&COMP!$D$84&$I80&\"L\",AAMC!#REF!,20,FALSE)/1000,IFERROR(VLOOKUP($F80&$G80&$H80&$M80&COMP!$D$84&$I80&\"L\",MGMAC!#REF!,20,FALSE)/1000,IFERROR(VLOOKUP($F80&$G80&$H80&$M80&COMP!$D$84&$I80&\"L\",MGMACP!#REF!,20,FALSE)/1000,\"no data\"))))","v":"no data"},null,null,null,null,0,null,null,1,0,{"$f":"IF($J80=0,0,IF($B80=\"SPEC\",COMP!$L$102,IF($B80=\"FPSC\",IFERROR(VLOOKUP($B80&$C80&$D80&$E80&\"L\",FPSC!#REF!,13,FALSE),\"no data\"),IF(B80&C80=\"MGMAAcademic\",IFERROR(VLOOKUP($B80&$C80&$D80&$E80&\"L\",MGMAR!#REF!,13,FALSE),\"no data\"),IFERROR(VLOOKUP($B80&$C80&$D80&$E80&\"L\",MGMARP!#REF!,13,FALSE),\"no data\")))))","v":0},0,0,0,0,0,0,0,0,0,0]
[0,"FPSC","Academic","All",{"$f":"IF($B81=\"MGMA\",COMP!$D$86,IF($B81=\"FPSC\",COMP!$D$85,IF($B81=\"SPEC\",COMP!$K$103,\"no data\")))","v":"[select]"},"AAMC","Academic","All",{"$f":"IF($F81=\"AAMC\",COMP!$D$83,IF($F81=\"MGMA\",COMP!$D$86,IF($F81=\"SPEC\",COMP!$K$91,\"no data\")))","v":"[select]"},null,null,null,null,null,null,null,null,null,null,null,null,0,null,0,null,0,0,null,0,0,{"$f":"IF($F81=\"SPEC\",COMP!K$90/1000,IFERROR(VLOOKUP($F81&$G81&$H81&$M81&COMP!$D$84&$I81&\"L\",AAMC!#REF!,10,FALSE)/1000,IFERROR(VLOOKUP($F81&$G81&$H81&$M81&COMP!$D$84&$I81&\"L\",MGMAC!#REF!,10,FALSE)/1000,IFERROR(VLOOKUP($F81&$G81&$H81&$M81&COMP!$D$84&$I81&\"L\",MGMACP!#REF!,10,FALSE)/1000,\"no data\"))))","v":"no data"},{"$f":"IF($F81=\"SPEC\",COMP!L$90/1000,IFERROR(VLOOKUP($F81&$G81&$H81&$M81&COMP!$D$84&$I81&\"L\",AAMC!#REF!,15,FALSE)/1000,IFERROR(VLOOKUP($F81&$G81&$H81&$M81&COMP!$D$84&$I81&\"L\",MGMAC!#REF!,15,FALSE)/1000,IFERROR(VLOOKUP($F81&$G81&$H81&$M81&COMP!$D$84&$I81&\"L\",MGMACP!#REF!,15,FALSE)/1000,\"no data\"))))","v":"no data"},{"$f":"IF($F81=\"SPEC\",COMP!M$90/1000,IFERROR(VLOOKUP($F81&$G81&$H81&$M81&COMP!$D$84&$I81&\"L\",AAMC!#REF!,20,FALSE)/1000,IFERROR(VLOOKUP($F81&$G81&$H81&$M81&COMP!$D$84&$I81&\"L\",MGMAC!#REF!,20,FALSE)/1000,IFERROR(VLOOKUP($F81&$G81&$H81&$M81&COMP!$D$84&$I81&\"L\",MGMACP!#REF!,20,FALSE)/1000,\"no data\"))))","v":"no data"},null,null,null,null,0,null,null,1,0,{"$f":"IF($J81=0,0,IF($B81=\"SPEC\",COMP!$L$102,IF($B81=\"FPSC\",IFERROR(VLOOKUP($B81&$C81&$D81&$E81&\"L\",FPSC!#REF!,13,FALSE),\"no data\"),IF(B81&C81=\"MGMAAcademic\",IFERROR(VLOOKUP($B81&$C81&$D81&$E81&\"L\",MGMAR!#REF!,13,FALSE),\"no data\"),IFERROR(VLOOKUP($B81&$C81&$D81&$E81&\"L\",MGMARP!#REF!,13,FALSE),\"no data\")))))","v":0},0,0,0,0,0,0,0,0,0,0]
[0,"FPSC","Academic","All",{"$f":"IF($B82=\"MGMA\",COMP!$D$86,IF($B82=\"FPSC\",COMP!$D$85,IF($B82=\"SPEC\",COMP!$K$103,\"no data\")))","v":"[select]"},"AAMC","Academic","All",{"$f":"IF($F82=\"AAMC\",COMP!$D$83,IF($F82=\"MGMA\",COMP!$D$86,IF($F82=\"SPEC\",COMP!$K$91,\"no data\")))","v":"[select]"},null,null,null,null,null,null,null,null,null,null,null,null,0,null,0,null,0,0,null,0,0,{"$f":"IF($F82=\"SPEC\",COMP!K$90/1000,IFERROR(VLOOKUP($F82&$G82&$H82&$M82&COMP!$D$84&$I82&\"L\",AAMC!#REF!,10,FALSE)/1000,IFERROR(VLOOKUP($F82&$G82&$H82&$M82&COMP!$D$84&$I82&\"L\",MGMAC!#REF!,10,FALSE)/1000,IFERROR(VLOOKUP($F82&$G82&$H82&$M82&COMP!$D$84&$I82&\"L\",MGMACP!#REF!,10,FALSE)/1000,\"no data\"))))","v":"no data"},{"$f":"IF($F82=\"SPEC\",COMP!L$90/1000,IFERROR(VLOOKUP($F82&$G82&$H82&$M82&COMP!$D$84&$I82&\"L\",AAMC!#REF!,15,FALSE)/1000,IFERROR(VLOOKUP($F82&$G82&$H82&$M82&COMP!$D$84&$I82&\"L\",MGMAC!#REF!,15,FALSE)/1000,IFERROR(VLOOKUP($F82&$G82&$H82&$M82&COMP!$D$84&$I82&\"L\",MGMACP!#REF!,15,FALSE)/1000,\"no data\"))))","v":"no data"},{"$f":"IF($F82=\"SPEC\",COMP!M$90/1000,IFERROR(VLOOKUP($F82&$G82&$H82&$M82&COMP!$D$84&$I82&\"L\",AAMC!#REF!,20,FALSE)/1000,IFERROR(VLOOKUP($F82&$G82&$H82&$M82&COMP!$D$84&$I82&\"L\",MGMAC!#REF!,20,FALSE)/1000,IFERROR(VLOOKUP($F82&$G82&$H82&$M82&COMP!$D$84&$I82&\"L\",MGMACP!#REF!,20,FALSE)/1000,\"no data\"))))","v":"no data"},null,null,null,null,0,null,null,1,0,{"$f":"IF($J82=0,0,IF($B82=\"SPEC\",COMP!$L$102,IF($B82=\"FPSC\",IFERROR(VLOOKUP($B82&$C82&$D82&$E82&\"L\",FPSC!#REF!,13,FALSE),\"no data\"),IF(B82&C82=\"MGMAAcademic\",IFERROR(VLOOKUP($B82&$C82&$D82&$E82&\"L\",MGMAR!#REF!,13,FALSE),\"no data\"),IFERROR(VLOOKUP($B82&$C82&$D82&$E82&\"L\",MGMARP!#REF!,13,FALSE),\"no data\")))))","v":0},0,0,0,0,0,0,0,0,0,0]
[0,"FPSC","Academic","All",{"$f":"IF($B83=\"MGMA\",COMP!$D$86,IF($B83=\"FPSC\",COMP!$D$85,IF($B83=\"SPEC\",COMP!$K$103,\"no data\")))","v":"[select]"},"AAMC","Academic","All",{"$f":"IF($F83=\"AAMC\",COMP!$D$83,IF($F83=\"MGMA\",COMP!$D$86,IF($F83=\"SPEC\",COMP!$K$91,\"no data\")))","v":"[select]"},null,null,null,null,null,null,null,null,null,null,null,null,0,null,0,null,0,0,null,0,0,{"$f":"IF($F83=\"SPEC\",COMP!K$90/1000,IFERROR(VLOOKUP($F83&$G83&$H83&$M83&COMP!$D$84&$I83&\"L\",AAMC!#REF!,10,FALSE)/1000,IFERROR(VLOOKUP($F83&$G83&$H83&$M83&COMP!$D$84&$I83&\"L\",MGMAC!#REF!,10,FALSE)/1000,IFERROR(VLOOKUP($F83&$G83&$H83&$M83&COMP!$D$84&$I83&\"L\",MGMACP!#REF!,10,FALSE)/1000,\"no data\"))))","v":"no data"},{"$f":"IF($F83=\"SPEC\",COMP!L$90/1000,IFERROR(VLOOKUP($F83&$G83&$H83&$M83&COMP!$D$84&$I83&\"L\",AAMC!#REF!,15,FALSE)/1000,IFERROR(VLOOKUP($F83&$G83&$H83&$M83&COMP!$D$84&$I83&\"L\",MGMAC!#REF!,15,FALSE)/1000,IFERROR(VLOOKUP($F83&$G83&$H83&$M83&COMP!$D$84&$I83&\"L\",MGMACP!#REF!,15,FALSE)/1000,\"no data\"))))","v":"no data"},{"$f":"IF($F83=\"SPEC\",COMP!M$90/1000,IFERROR(VLOOKUP($F83&$G83&$H83&$M83&COMP!$D$84&$I83&\"L\",AAMC!#REF!,20,FALSE)/1000,IFERROR(VLOOKUP($F83&$G83&$H83&$M83&COMP!$D$84&$I83&\"L\",MGMAC!#REF!,20,FALSE)/1000,IFERROR(VLOOKUP($F83&$G83&$H83&$M83&COMP!$D$84&$I83&\"L\",MGMACP!#REF!,20,FALSE)/1000,\"no data\"))))","v":"no data"},null,null,null,null,0,null,null,1,0,{"$f":"IF($J83=0,0,IF($B83=\"SPEC\",COMP!$L$102,IF($B83=\"FPSC\",IFERROR(VLOOKUP($B83&$C83&$D83&$E83&\"L\",FPSC!#REF!,13,FALSE),\"no data\"),IF(B83&C83=\"MGMAAcademic\",IFERROR(VLOOKUP($B83&$C83&$D83&$E83&\"L\",MGMAR!#REF!,13,FALSE),\"no data\"),IFERROR(VLOOKUP($B83&$C83&$D83&$E83&\"L\",MGMARP!#REF!,13,FALSE),\"no data\")))))","v":0},0,0,0,0,0,0,0,0,0,0]
[0,"FPSC","Academic","All",{"$f":"IF($B84=\"MGMA\",COMP!$D$86,IF($B84=\"FPSC\",COMP!$D$85,IF($B84=\"SPEC\",COMP!$K$103,\"no data\")))","v":"[select]"},"AAMC","Academic","All",{"$f":"IF($F84=\"AAMC\",COMP!$D$83,IF($F84=\"MGMA\",COMP!$D$86,IF($F84=\"SPEC\",COMP!$K$91,\"no data\")))","v":"[select]"},null,null,null,null,null,null,null,null,null,null,null,null,0,null,0,null,0,0,null,0,0,{"$f":"IF($F84=\"SPEC\",COMP!K$90/1000,IFERROR(VLOOKUP($F84&$G84&$H84&$M84&COMP!$D$84&$I84&\"L\",AAMC!#REF!,10,FALSE)/1000,IFERROR(VLOOKUP($F84&$G84&$H84&$M84&COMP!$D$84&$I84&\"L\",MGMAC!#REF!,10,FALSE)/1000,IFERROR(VLOOKUP($F84&$G84&$H84&$M84&COMP!$D$84&$I84&\"L\",MGMACP!#REF!,10,FALSE)/1000,\"no data\"))))","v":"no data"},{"$f":"IF($F84=\"SPEC\",COMP!L$90/1000,IFERROR(VLOOKUP($F84&$G84&$H84&$M84&COMP!$D$84&$I84&\"L\",AAMC!#REF!,15,FALSE)/1000,IFERROR(VLOOKUP($F84&$G84&$H84&$M84&COMP!$D$84&$I84&\"L\",MGMAC!#REF!,15,FALSE)/1000,IFERROR(VLOOKUP($F84&$G84&$H84&$M84&COMP!$D$84&$I84&\"L\",MGMACP!#REF!,15,FALSE)/1000,\"no data\"))))","v":"no data"},{"$f":"IF($F84=\"SPEC\",COMP!M$90/1000,IFERROR(VLOOKUP($F84&$G84&$H84&$M84&COMP!$D$84&$I84&\"L\",AAMC!#REF!,20,FALSE)/1000,IFERROR(VLOOKUP($F84&$G84&$H84&$M84&COMP!$D$84&$I84&\"L\",MGMAC!#REF!,20,FALSE)/1000,IFERROR(VLOOKUP($F84&$G84&$H84&$M84&COMP!$D$84&$I84&\"L\",MGMACP!#REF!,20,FALSE)/1000,\"no data\"))))","v":"no data"},null,null,null,null,0,null,null,1,0,{"$f":"IF($J84=0,0,IF($B84=\"SPEC\",COMP!$L$102,IF($B84=\"FPSC\",IFERROR(VLOOKUP($B84&$C84&$D84&$E84&\"L\",FPSC!#REF!,13,FALSE),\"no data\"),IF(B84&C84=\"MGMAAcademic\",IFERROR(VLOOKUP($B84&$C84&$D84&$E84&\"L\",MGMAR!#REF!,13,FALSE),\"no data\"),IFERROR(VLOOKUP($B84&$C84&$D84&$E84&\"L\",MGMARP!#REF!,13,FALSE),\"no data\")))))","v":0},0,0,0,0,0,0,0,0,0,0]
[0,"FPSC","Academic","All",{"$f":"IF($B85=\"MGMA\",COMP!$D$86,IF($B85=\"FPSC\",COMP!$D$85,IF($B85=\"SPEC\",COMP!$K$103,\"no data\")))","v":"[select]"},"AAMC","Academic","All",{"$f":"IF($F85=\"AAMC\",COMP!$D$83,IF($F85=\"MGMA\",COMP!$D$86,IF($F85=\"SPEC\",COMP!$K$91,\"no data\")))","v":"[select]"},null,null,null,null,null,null,null,null,null,null,null,null,0,null,0,null,0,0,null,0,0,{"$f":"IF($F85=\"SPEC\",COMP!K$90/1000,IFERROR(VLOOKUP($F85&$G85&$H85&$M85&COMP!$D$84&$I85&\"L\",AAMC!#REF!,10,FALSE)/1000,IFERROR(VLOOKUP($F85&$G85&$H85&$M85&COMP!$D$84&$I85&\"L\",MGMAC!#REF!,10,FALSE)/1000,IFERROR(VLOOKUP($F85&$G85&$H85&$M85&COMP!$D$84&$I85&\"L\",MGMACP!#REF!,10,FALSE)/1000,\"no data\"))))","v":"no data"},{"$f":"IF($F85=\"SPEC\",COMP!L$90/1000,IFERROR(VLOOKUP($F85&$G85&$H85&$M85&COMP!$D$84&$I85&\"L\",AAMC!#REF!,15,FALSE)/1000,IFERROR(VLOOKUP($F85&$G85&$H85&$M85&COMP!$D$84&$I85&\"L\",MGMAC!#REF!,15,FALSE)/1000,IFERROR(VLOOKUP($F85&$G85&$H85&$M85&COMP!$D$84&$I85&\"L\",MGMACP!#REF!,15,FALSE)/1000,\"no data\"))))","v":"no data"},{"$f":"IF($F85=\"SPEC\",COMP!M$90/1000,IFERROR(VLOOKUP($F85&$G85&$H85&$M85&COMP!$D$84&$I85&\"L\",AAMC!#REF!,20,FALSE)/1000,IFERROR(VLOOKUP($F85&$G85&$H85&$M85&COMP!$D$84&$I85&\"L\",MGMAC!#REF!,20,FALSE)/1000,IFERROR(VLOOKUP($F85&$G85&$H85&$M85&COMP!$D$84&$I85&\"L\",MGMACP!#REF!,20,FALSE)/1000,\"no data\"))))","v":"no data"},null,null,null,null,0,null,null,1,0,{"$f":"IF($J85=0,0,IF($B85=\"SPEC\",COMP!$L$102,IF($B85=\"FPSC\",IFERROR(VLOOKUP($B85&$C85&$D85&$E85&\"L\",FPSC!#REF!,13,FALSE),\"no data\"),IF(B85&C85=\"MGMAAcademic\",IFERROR(VLOOKUP($B85&$C85&$D85&$E85&\"L\",MGMAR!#REF!,13,FALSE),\"no data\"),IFERROR(VLOOKUP($B85&$C85&$D85&$E85&\"L\",MGMARP!#REF!,13,FALSE),\"no data\")))))","v":0},0,0,0,0,0,0,0,0,0,0]
[0,"FPSC","Academic","All",{"$f":"IF($B86=\"MGMA\",COMP!$D$86,IF($B86=\"FPSC\",COMP!$D$85,IF($B86=\"SPEC\",COMP!$K$103,\"no data\")))","v":"[select]"},"AAMC","Academic","All",{"$f":"IF($F86=\"AAMC\",COMP!$D$83,IF($F86=\"MGMA\",COMP!$D$86,IF($F86=\"SPEC\",COMP!$K$91,\"no data\")))","v":"[select]"},null,null,null,null,null,null,null,null,null,null,null,null,0,null,0,null,0,0,null,0,0,{"$f":"IF($F86=\"SPEC\",COMP!K$90/1000,IFERROR(VLOOKUP($F86&$G86&$H86&$M86&COMP!$D$84&$I86&\"L\",AAMC!#REF!,10,FALSE)/1000,IFERROR(VLOOKUP($F86&$G86&$H86&$M86&COMP!$D$84&$I86&\"L\",MGMAC!#REF!,10,FALSE)/1000,IFERROR(VLOOKUP($F86&$G86&$H86&$M86&COMP!$D$84&$I86&\"L\",MGMACP!#REF!,10,FALSE)/1000,\"no data\"))))","v":"no data"},{"$f":"IF($F86=\"SPEC\",COMP!L$90/1000,IFERROR(VLOOKUP($F86&$G86&$H86&$M86&COMP!$D$84&$I86&\"L\",AAMC!#REF!,15,FALSE)/1000,IFERROR(VLOOKUP($F86&$G86&$H86&$M86&COMP!$D$84&$I86&\"L\",MGMAC!#REF!,15,FALSE)/1000,IFERROR(VLOOKUP($F86&$G86&$H86&$M86&COMP!$D$84&$I86&\"L\",MGMACP!#REF!,15,FALSE)/1000,\"no data\"))))","v":"no data"},{"$f":"IF($F86=\"SPEC\",COMP!M$90/1000,IFERROR(VLOOKUP($F86&$G86&$H86&$M86&COMP!$D$84&$I86&\"L\",AAMC!#REF!,20,FALSE)/1000,IFERROR(VLOOKUP($F86&$G86&$H86&$M86&COMP!$D$84&$I86&\"L\",MGMAC!#REF!,20,FALSE)/1000,IFERROR(VLOOKUP($F86&$G86&$H86&$M86&COMP!$D$84&$I86&\"L\",MGMACP!#REF!,20,FALSE)/1000,\"no data\"))))","v":"no data"},null,null,null,null,0,null,null,1,0,{"$f":"IF($J86=0,0,IF($B86=\"SPEC\",COMP!$L$102,IF($B86=\"FPSC\",IFERROR(VLOOKUP($B86&$C86&$D86&$E86&\"L\",FPSC!#REF!,13,FALSE),\"no data\"),IF(B86&C86=\"MGMAAcademic\",IFERROR(VLOOKUP($B86&$C86&$D86&$E86&\"L\",MGMAR!#REF!,13,FALSE),\"no data\"),IFERROR(VLOOKUP($B86&$C86&$D86&$E86&\"L\",MGMARP!#REF!,13,FALSE),\"no data\")))))","v":0},0,0,0,0,0,0,0,0,0,0]
[0,"FPSC","Academic","All",{"$f":"IF($B87=\"MGMA\",COMP!$D$86,IF($B87=\"FPSC\",COMP!$D$85,IF($B87=\"SPEC\",COMP!$K$103,\"no data\")))","v":"[select]"},"AAMC","Academic","All",{"$f":"IF($F87=\"AAMC\",COMP!$D$83,IF($F87=\"MGMA\",COMP!$D$86,IF($F87=\"SPEC\",COMP!$K$91,\"no data\")))","v":"[select]"},null,null,null,null,null,null,null,null,null,null,null,null,0,null,0,null,0,0,null,0,0,{"$f":"IF($F87=\"SPEC\",COMP!K$90/1000,IFERROR(VLOOKUP($F87&$G87&$H87&$M87&COMP!$D$84&$I87&\"L\",AAMC!#REF!,10,FALSE)/1000,IFERROR(VLOOKUP($F87&$G87&$H87&$M87&COMP!$D$84&$I87&\"L\",MGMAC!#REF!,10,FALSE)/1000,IFERROR(VLOOKUP($F87&$G87&$H87&$M87&COMP!$D$84&$I87&\"L\",MGMACP!#REF!,10,FALSE)/1000,\"no data\"))))","v":"no data"},{"$f":"IF($F87=\"SPEC\",COMP!L$90/1000,IFERROR(VLOOKUP($F87&$G87&$H87&$M87&COMP!$D$84&$I87&\"L\",AAMC!#REF!,15,FALSE)/1000,IFERROR(VLOOKUP($F87&$G87&$H87&$M87&COMP!$D$84&$I87&\"L\",MGMAC!#REF!,15,FALSE)/1000,IFERROR(VLOOKUP($F87&$G87&$H87&$M87&COMP!$D$84&$I87&\"L\",MGMACP!#REF!,15,FALSE)/1000,\"no data\"))))","v":"no data"},{"$f":"IF($F87=\"SPEC\",COMP!M$90/1000,IFERROR(VLOOKUP($F87&$G87&$H87&$M87&COMP!$D$84&$I87&\"L\",AAMC!#REF!,20,FALSE)/1000,IFERROR(VLOOKUP($F87&$G87&$H87&$M87&COMP!$D$84&$I87&\"L\",MGMAC!#REF!,20,FALSE)/1000,IFERROR(VLOOKUP($F87&$G87&$H87&$M87&COMP!$D$84&$I87&\"L\",MGMACP!#REF!,20,FALSE)/1000,\"no data\"))))","v":"no data"},null,null,null,null,0,null,null,1,0,{"$f":"IF($J87=0,0,IF($B87=\"SPEC\",COMP!$L$102,IF($B87=\"FPSC\",IFERROR(VLOOKUP($B87&$C87&$D87&$E87&\"L\",FPSC!#REF!,13,FALSE),\"no data\"),IF(B87&C87=\"MGMAAcademic\",IFERROR(VLOOKUP($B87&$C87&$D87&$E87&\"L\",MGMAR!#REF!,13,FALSE),\"no data\"),IFERROR(VLOOKUP($B87&$C87&$D87&$E87&\"L\",MGMARP!#REF!,13,FALSE),\"no data\")))))","v":0},0,0,0,0,0,0,0,0,0,0]
[0,"FPSC","Academic","All",{"$f":"IF($B88=\"MGMA\",COMP!$D$86,IF($B88=\"FPSC\",COMP!$D$85,IF($B88=\"SPEC\",COMP!$K$103,\"no data\")))","v":"[select]"},"AAMC","Academic","All",{"$f":"IF($F88=\"AAMC\",COMP!$D$83,IF($F88=\"MGMA\",COMP!$D$86,IF($F88=\"SPEC\",COMP!$K$91,\"no data\")))","v":"[select]"},null,null,null,null,null,null,null,null,null,null,null,null,0,null,0,null,0,0,null,0,0,{"$f":"IF($F88=\"SPEC\",COMP!K$90/1000,IFERROR(VLOOKUP($F88&$G88&$H88&$M88&COMP!$D$84&$I88&\"L\",AAMC!#REF!,10,FALSE)/1000,IFERROR(VLOOKUP($F88&$G88&$H88&$M88&COMP!$D$84&$I88&\"L\",MGMAC!#REF!,10,FALSE)/1000,IFERROR(VLOOKUP($F88&$G88&$H88&$M88&COMP!$D$84&$I88&\"L\",MGMACP!#REF!,10,FALSE)/1000,\"no data\"))))","v":"no data"},{"$f":"IF($F88=\"SPEC\",COMP!L$90/1000,IFERROR(VLOOKUP($F88&$G88&$H88&$M88&COMP!$D$84&$I88&\"L\",AAMC!#REF!,15,FALSE)/1000,IFERROR(VLOOKUP($F88&$G88&$H88&$M88&COMP!$D$84&$I88&\"L\",MGMAC!#REF!,15,FALSE)/1000,IFERROR(VLOOKUP($F88&$G88&$H88&$M88&COMP!$D$84&$I88&\"L\",MGMACP!#REF!,15,FALSE)/1000,\"no data\"))))","v":"no data"},{"$f":"IF($F88=\"SPEC\",COMP!M$90/1000,IFERROR(VLOOKUP($F88&$G88&$H88&$M88&COMP!$D$84&$I88&\"L\",AAMC!#REF!,20,FALSE)/1000,IFERROR(VLOOKUP($F88&$G88&$H88&$M88&COMP!$D$84&$I88&\"L\",MGMAC!#REF!,20,FALSE)/1000,IFERROR(VLOOKUP($F88&$G88&$H88&$M88&COMP!$D$84&$I88&\"L\",MGMACP!#REF!,20,FALSE)/1000,\"no data\"))))","v":"no data"},null,null,null,null,0,null,null,1,0,{"$f":"IF($J88=0,0,IF($B88=\"SPEC\",COMP!$L$102,IF($B88=\"FPSC\",IFERROR(VLOOKUP($B88&$C88&$D88&$E88&\"L\",FPSC!#REF!,13,FALSE),\"no data\"),IF(B88&C88=\"MGMAAcademic\",IFERROR(VLOOKUP($B88&$C88&$D88&$E88&\"L\",MGMAR!#REF!,13,FALSE),\"no data\"),IFERROR(VLOOKUP($B88&$C88&$D88&$E88&\"L\",MGMARP!#REF!,13,FALSE),\"no data\")))))","v":0},0,0,0,0,0,0,0,0,0,0]
[0,"FPSC","Academic","All",{"$f":"IF($B89=\"MGMA\",COMP!$D$86,IF($B89=\"FPSC\",COMP!$D$85,IF($B89=\"SPEC\",COMP!$K$103,\"no data\")))","v":"[select]"},"AAMC","Academic","All",{"$f":"IF($F89=\"AAMC\",COMP!$D$83,IF($F89=\"MGMA\",COMP!$D$86,IF($F89=\"SPEC\",COMP!$K$91,\"no data\")))","v":"[select]"},null,null,null,null,null,null,null,null,null,null,null,null,0,null,0,null,0,0,null,0,0,{"$f":"IF($F89=\"SPEC\",COMP!K$90/1000,IFERROR(VLOOKUP($F89&$G89&$H89&$M89&COMP!$D$84&$I89&\"L\",AAMC!#REF!,10,FALSE)/1000,IFERROR(VLOOKUP($F89&$G89&$H89&$M89&COMP!$D$84&$I89&\"L\",MGMAC!#REF!,10,FALSE)/1000,IFERROR(VLOOKUP($F89&$G89&$H89&$M89&COMP!$D$84&$I89&\"L\",MGMACP!#REF!,10,FALSE)/1000,\"no data\"))))","v":"no data"},{"$f":"IF($F89=\"SPEC\",COMP!L$90/1000,IFERROR(VLOOKUP($F89&$G89&$H89&$M89&COMP!$D$84&$I89&\"L\",AAMC!#REF!,15,FALSE)/1000,IFERROR(VLOOKUP($F89&$G89&$H89&$M89&COMP!$D$84&$I89&\"L\",MGMAC!#REF!,15,FALSE)/1000,IFERROR(VLOOKUP($F89&$G89&$H89&$M89&COMP!$D$84&$I89&\"L\",MGMACP!#REF!,15,FALSE)/1000,\"no data\"))))","v":"no data"},{"$f":"IF($F89=\"SPEC\",COMP!M$90/1000,IFERROR(VLOOKUP($F89&$G89&$H89&$M89&COMP!$D$84&$I89&\"L\",AAMC!#REF!,20,FALSE)/1000,IFERROR(VLOOKUP($F89&$G89&$H89&$M89&COMP!$D$84&$I89&\"L\",MGMAC!#REF!,20,FALSE)/1000,IFERROR(VLOOKUP($F89&$G89&$H89&$M89&COMP!$D$84&$I89&\"L\",MGMACP!#REF!,20,FALSE)/1000,\"no data\"))))","v":"no data"},null,null,null,null,0,null,null,1,0,{"$f":"IF($J89=0,0,IF($B89=\"SPEC\",COMP!$L$102,IF($B89=\"FPSC\",IFERROR(VLOOKUP($B89&$C89&$D89&$E89&\"L\",FPSC!#REF!,13,FALSE),\"no data\"),IF(B89&C89=\"MGMAAcademic\",IFERROR(VLOOKUP($B89&$C89&$D89&$E89&\"L\",MGMAR!#REF!,13,FALSE),\"no data\"),IFERROR(VLOOKUP($B89&$C89&$D89&$E89&\"L\",MGMARP!#REF!,13,FALSE),\"no data\")))))","v":0},0,0,0,0,0,0,0,0,0,0]
[0,"FPSC","Academic","All",{"$f":"IF($B90=\"MGMA\",COMP!$D$86,IF($B90=\"FPSC\",COMP!$D$85,IF($B90=\"SPEC\",COMP!$K$103,\"no data\")))","v":"[select]"},"AAMC","Academic","All",{"$f":"IF($F90=\"AAMC\",COMP!$D$83,IF($F90=\"MGMA\",COMP!$D$86,IF($F90=\"SPEC\",COMP!$K$91,\"no data\")))","v":"[select]"},null,null,null,null,null,null,null,null,null,null,null,null,0,null,0,null,0,0,null,0,0,{"$f":"IF($F90=\"SPEC\",COMP!K$90/1000,IFERROR(VLOOKUP($F90&$G90&$H90&$M90&COMP!$D$84&$I90&\"L\",AAMC!#REF!,10,FALSE)/1000,IFERROR(VLOOKUP($F90&$G90&$H90&$M90&COMP!$D$84&$I90&\"L\",MGMAC!#REF!,10,FALSE)/1000,IFERROR(VLOOKUP($F90&$G90&$H90&$M90&COMP!$D$84&$I90&\"L\",MGMACP!#REF!,10,FALSE)/1000,\"no data\"))))","v":"no data"},{"$f":"IF($F90=\"SPEC\",COMP!L$90/1000,IFERROR(VLOOKUP($F90&$G90&$H90&$M90&COMP!$D$84&$I90&\"L\",AAMC!#REF!,15,FALSE)/1000,IFERROR(VLOOKUP($F90&$G90&$H90&$M90&COMP!$D$84&$I90&\"L\",MGMAC!#REF!,15,FALSE)/1000,IFERROR(VLOOKUP($F90&$G90&$H90&$M90&COMP!$D$84&$I90&\"L\",MGMACP!#REF!,15,FALSE)/1000,\"no data\"))))","v":"no data"},{"$f":"IF($F90=\"SPEC\",COMP!M$90/1000,IFERROR(VLOOKUP($F90&$G90&$H90&$M90&COMP!$D$84&$I90&\"L\",AAMC!#REF!,20,FALSE)/1000,IFERROR(VLOOKUP($F90&$G90&$H90&$M90&COMP!$D$84&$I90&\"L\",MGMAC!#REF!,20,FALSE)/1000,IFERROR(VLOOKUP($F90&$G90&$H90&$M90&COMP!$D$84&$I90&\"L\",MGMACP!#REF!,20,FALSE)/1000,\"no data\"))))","v":"no data"},null,null,null,null,0,null,null,1,0,{"$f":"IF($J90=0,0,IF($B90=\"SPEC\",COMP!$L$102,IF($B90=\"FPSC\",IFERROR(VLOOKUP($B90&$C90&$D90&$E90&\"L\",FPSC!#REF!,13,FALSE),\"no data\"),IF(B90&C90=\"MGMAAcademic\",IFERROR(VLOOKUP($B90&$C90&$D90&$E90&\"L\",MGMAR!#REF!,13,FALSE),\"no data\"),IFERROR(VLOOKUP($B90&$C90&$D90&$E90&\"L\",MGMARP!#REF!,13,FALSE),\"no data\")))))","v":0},0,0,0,0,0,0,0,0,0,0]
[0,"FPSC","Academic","All",{"$f":"IF($B91=\"MGMA\",COMP!$D$86,IF($B91=\"FPSC\",COMP!$D$85,IF($B91=\"SPEC\",COMP!$K$103,\"no data\")))","v":"[select]"},"AAMC","Academic","All",{"$f":"IF($F91=\"AAMC\",COMP!$D$83,IF($F91=\"MGMA\",COMP!$D$86,IF($F91=\"SPEC\",COMP!$K$91,\"no data\")))","v":"[select]"},null,null,null,null,null,null,null,null,null,null,null,null,0,null,0,null,0,0,null,{"$f":"+AB91+AA91+X91","v":0},0,{"$f":"IF($F91=\"SPEC\",COMP!K$90/1000,IFERROR(VLOOKUP($F91&$G91&$H91&$M91&COMP!$D$84&$I91&\"L\",AAMC!#REF!,10,FALSE)/1000,IFERROR(VLOOKUP($F91&$G91&$H91&$M91&COMP!$D$84&$I91&\"L\",MGMAC!#REF!,10,FALSE)/1000,IFERROR(VLOOKUP($F91&$G91&$H91&$M91&COMP!$D$84&$I91&\"L\",MGMACP!#REF!,10,FALSE)/1000,\"no data\"))))","v":"no data"},{"$f":"IF($F91=\"SPEC\",COMP!L$90/1000,IFERROR(VLOOKUP($F91&$G91&$H91&$M91&COMP!$D$84&$I91&\"L\",AAMC!#REF!,15,FALSE)/1000,IFERROR(VLOOKUP($F91&$G91&$H91&$M91&COMP!$D$84&$I91&\"L\",MGMAC!#REF!,15,FALSE)/1000,IFERROR(VLOOKUP($F91&$G91&$H91&$M91&COMP!$D$84&$I91&\"L\",MGMACP!#REF!,15,FALSE)/1000,\"no data\"))))","v":"no data"},{"$f":"IF($F91=\"SPEC\",COMP!M$90/1000,IFERROR(VLOOKUP($F91&$G91&$H91&$M91&COMP!$D$84&$I91&\"L\",AAMC!#REF!,20,FALSE)/1000,IFERROR(VLOOKUP($F91&$G91&$H91&$M91&COMP!$D$84&$I91&\"L\",MGMAC!#REF!,20,FALSE)/1000,IFERROR(VLOOKUP($F91&$G91&$H91&$M91&COMP!$D$84&$I91&\"L\",MGMACP!#REF!,20,FALSE)/1000,\"no data\"))))","v":"no data"},null,null,null,null,0,null,null,1,0,{"$f":"IF($J91=0,0,IF($B91=\"SPEC\",COMP!$L$102,IF($B91=\"FPSC\",IFERROR(VLOOKUP($B91&$C91&$D91&$E91&\"L\",FPSC!#REF!,13,FALSE),\"no data\"),IF(B91&C91=\"MGMAAcademic\",IFERROR(VLOOKUP($B91&$C91&$D91&$E91&\"L\",MGMAR!#REF!,13,FALSE),\"no data\"),IFERROR(VLOOKUP($B91&$C91&$D91&$E91&\"L\",MGMARP!#REF!,13,FALSE),\"no data\")))))","v":0},0,0,0,0,0,0,0,0,0,0]
[0,"FPSC","Academic","All",{"$f":"IF($B92=\"MGMA\",COMP!$D$86,IF($B92=\"FPSC\",COMP!$D$85,IF($B92=\"SPEC\",COMP!$K$103,\"no data\")))","v":"[select]"},"AAMC","Academic","All",{"$f":"IF($F92=\"AAMC\",COMP!$D$83,IF($F92=\"MGMA\",COMP!$D$86,IF($F92=\"SPEC\",COMP!$K$91,\"no data\")))","v":"[select]"},null,null,null,null,null,null,null,null,null,null,null,null,0,null,0,null,0,0,null,0,0,{"$f":"IF($F92=\"SPEC\",COMP!K$90/1000,IFERROR(VLOOKUP($F92&$G92&$H92&$M92&COMP!$D$84&$I92&\"L\",AAMC!#REF!,10,FALSE)/1000,IFERROR(VLOOKUP($F92&$G92&$H92&$M92&COMP!$D$84&$I92&\"L\",MGMAC!#REF!,10,FALSE)/1000,IFERROR(VLOOKUP($F92&$G92&$H92&$M92&COMP!$D$84&$I92&\"L\",MGMACP!#REF!,10,FALSE)/1000,\"no data\"))))","v":"no data"},{"$f":"IF($F92=\"SPEC\",COMP!L$90/1000,IFERROR(VLOOKUP($F92&$G92&$H92&$M92&COMP!$D$84&$I92&\"L\",AAMC!#REF!,15,FALSE)/1000,IFERROR(VLOOKUP($F92&$G92&$H92&$M92&COMP!$D$84&$I92&\"L\",MGMAC!#REF!,15,FALSE)/1000,IFERROR(VLOOKUP($F92&$G92&$H92&$M92&COMP!$D$84&$I92&\"L\",MGMACP!#REF!,15,FALSE)/1000,\"no data\"))))","v":"no data"},{"$f":"IF($F92=\"SPEC\",COMP!M$90/1000,IFERROR(VLOOKUP($F92&$G92&$H92&$M92&COMP!$D$84&$I92&\"L\",AAMC!#REF!,20,FALSE)/1000,IFERROR(VLOOKUP($F92&$G92&$H92&$M92&COMP!$D$84&$I92&\"L\",MGMAC!#REF!,20,FALSE)/1000,IFERROR(VLOOKUP($F92&$G92&$H92&$M92&COMP!$D$84&$I92&\"L\",MGMACP!#REF!,20,FALSE)/1000,\"no data\"))))","v":"no data"},null,null,null,null,0,null,null,1,0,{"$f":"IF($J92=0,0,IF($B92=\"SPEC\",COMP!$L$102,IF($B92=\"FPSC\",IFERROR(VLOOKUP($B92&$C92&$D92&$E92&\"L\",FPSC!#REF!,13,FALSE),\"no data\"),IF(B92&C92=\"MGMAAcademic\",IFERROR(VLOOKUP($B92&$C92&$D92&$E92&\"L\",MGMAR!#REF!,13,FALSE),\"no data\"),IFERROR(VLOOKUP($B92&$C92&$D92&$E92&\"L\",MGMARP!#REF!,13,FALSE),\"no data\")))))","v":0},0,0,0,0,0,0,0,0,0,0]
[0,"FPSC","Academic","All",{"$f":"IF($B93=\"MGMA\",COMP!$D$86,IF($B93=\"FPSC\",COMP!$D$85,IF($B93=\"SPEC\",COMP!$K$103,\"no data\")))","v":"[select]"},"AAMC","Academic","All",{"$f":"IF($F93=\"AAMC\",COMP!$D$83,IF($F93=\"MGMA\",COMP!$D$86,IF($F93=\"SPEC\",COMP!$K$91,\"no data\")))","v":"[select]"},null,null,null,null,null,null,null,null,null,null,null,null,0,null,0,null,0,0,null,0,0,{"$f":"IF($F93=\"SPEC\",COMP!K$90/1000,IFERROR(VLOOKUP($F93&$G93&$H93&$M93&COMP!$D$84&$I93&\"L\",AAMC!#REF!,10,FALSE)/1000,IFERROR(VLOOKUP($F93&$G93&$H93&$M93&COMP!$D$84&$I93&\"L\",MGMAC!#REF!,10,FALSE)/1000,IFERROR(VLOOKUP($F93&$G93&$H93&$M93&COMP!$D$84&$I93&\"L\",MGMACP!#REF!,10,FALSE)/1000,\"no data\"))))","v":"no data"},{"$f":"IF($F93=\"SPEC\",COMP!L$90/1000,IFERROR(VLOOKUP($F93&$G93&$H93&$M93&COMP!$D$84&$I93&\"L\",AAMC!#REF!,15,FALSE)/1000,IFERROR(VLOOKUP($F93&$G93&$H93&$M93&COMP!$D$84&$I93&\"L\",MGMAC!#REF!,15,FALSE)/1000,IFERROR(VLOOKUP($F93&$G93&$H93&$M93&COMP!$D$84&$I93&\"L\",MGMACP!#REF!,15,FALSE)/1000,\"no data\"))))","v":"no data"},{"$f":"IF($F93=\"SPEC\",COMP!M$90/1000,IFERROR(VLOOKUP($F93&$G93&$H93&$M93&COMP!$D$84&$I93&\"L\",AAMC!#REF!,20,FALSE)/1000,IFERROR(VLOOKUP($F93&$G93&$H93&$M93&COMP!$D$84&$I93&\"L\",MGMAC!#REF!,20,FALSE)/1000,IFERROR(VLOOKUP($F93&$G93&$H93&$M93&COMP!$D$84&$I93&\"L\",MGMACP!#REF!,20,FALSE)/1000,\"no data\"))))","v":"no data"},null,null,null,null,0,null,null,1,0,{"$f":"IF($J93=0,0,IF($B93=\"SPEC\",COMP!$L$102,IF($B93=\"FPSC\",IFERROR(VLOOKUP($B93&$C93&$D93&$E93&\"L\",FPSC!#REF!,13,FALSE),\"no data\"),IF(B93&C93=\"MGMAAcademic\",IFERROR(VLOOKUP($B93&$C93&$D93&$E93&\"L\",MGMAR!#REF!,13,FALSE),\"no data\"),IFERROR(VLOOKUP($B93&$C93&$D93&$E93&\"L\",MGMARP!#REF!,13,FALSE),\"no data\")))))","v":0},0,0,0,0,0,0,0,0,0,0]
[0,"FPSC","Academic","All",{"$f":"IF($B94=\"MGMA\",COMP!$D$86,IF($B94=\"FPSC\",COMP!$D$85,IF($B94=\"SPEC\",COMP!$K$103,\"no data\")))","v":"[select]"},"AAMC","Academic","All",{"$f":"IF($F94=\"AAMC\",COMP!$D$83,IF($F94=\"MGMA\",COMP!$D$86,IF($F94=\"SPEC\",COMP!$K$91,\"no data\")))","v":"[select]"},null,null,null,null,null,null,null,null,null,null,null,null,0,null,0,null,0,0,null,0,0,{"$f":"IF($F94=\"SPEC\",COMP!K$90/1000,IFERROR(VLOOKUP($F94&$G94&$H94&$M94&COMP!$D$84&$I94&\"L\",AAMC!#REF!,10,FALSE)/1000,IFERROR(VLOOKUP($F94&$G94&$H94&$M94&COMP!$D$84&$I94&\"L\",MGMAC!#REF!,10,FALSE)/1000,IFERROR(VLOOKUP($F94&$G94&$H94&$M94&COMP!$D$84&$I94&\"L\",MGMACP!#REF!,10,FALSE)/1000,\"no data\"))))","v":"no data"},{"$f":"IF($F94=\"SPEC\",COMP!L$90/1000,IFERROR(VLOOKUP($F94&$G94&$H94&$M94&COMP!$D$84&$I94&\"L\",AAMC!#REF!,15,FALSE)/1000,IFERROR(VLOOKUP($F94&$G94&$H94&$M94&COMP!$D$84&$I94&\"L\",MGMAC!#REF!,15,FALSE)/1000,IFERROR(VLOOKUP($F94&$G94&$H94&$M94&COMP!$D$84&$I94&\"L\",MGMACP!#REF!,15,FALSE)/1000,\"no data\"))))","v":"no data"},{"$f":"IF($F94=\"SPEC\",COMP!M$90/1000,IFERROR(VLOOKUP($F94&$G94&$H94&$M94&COMP!$D$84&$I94&\"L\",AAMC!#REF!,20,FALSE)/1000,IFERROR(VLOOKUP($F94&$G94&$H94&$M94&COMP!$D$84&$I94&\"L\",MGMAC!#REF!,20,FALSE)/1000,IFERROR(VLOOKUP($F94&$G94&$H94&$M94&COMP!$D$84&$I94&\"L\",MGMACP!#REF!,20,FALSE)/1000,\"no data\"))))","v":"no data"},null,null,null,null,0,null,null,1,0,{"$f":"IF($J94=0,0,IF($B94=\"SPEC\",COMP!$L$102,IF($B94=\"FPSC\",IFERROR(VLOOKUP($B94&$C94&$D94&$E94&\"L\",FPSC!#REF!,13,FALSE),\"no data\"),IF(B94&C94=\"MGMAAcademic\",IFERROR(VLOOKUP($B94&$C94&$D94&$E94&\"L\",MGMAR!#REF!,13,FALSE),\"no data\"),IFERROR(VLOOKUP($B94&$C94&$D94&$E94&\"L\",MGMARP!#REF!,13,FALSE),\"no data\")))))","v":0},0,0,0,0,0,0,0,0,0,0]
[0,"FPSC","Academic","All",{"$f":"IF($B95=\"MGMA\",COMP!$D$86,IF($B95=\"FPSC\",COMP!$D$85,IF($B95=\"SPEC\",COMP!$K$103,\"no data\")))","v":"[select]"},"AAMC","Academic","All",{"$f":"IF($F95=\"AAMC\",COMP!$D$83,IF($F95=\"MGMA\",COMP!$D$86,IF($F95=\"SPEC\",COMP!$K$91,\"no data\")))","v":"[select]"},null,null,null,null,null,null,null,null,null,null,null,null,0,null,0,null,0,0,null,0,0,{"$f":"IF($F95=\"SPEC\",COMP!K$90/1000,IFERROR(VLOOKUP($F95&$G95&$H95&$M95&COMP!$D$84&$I95&\"L\",AAMC!#REF!,10,FALSE)/1000,IFERROR(VLOOKUP($F95&$G95&$H95&$M95&COMP!$D$84&$I95&\"L\",MGMAC!#REF!,10,FALSE)/1000,IFERROR(VLOOKUP($F95&$G95&$H95&$M95&COMP!$D$84&$I95&\"L\",MGMACP!#REF!,10,FALSE)/1000,\"no data\"))))","v":"no data"},{"$f":"IF($F95=\"SPEC\",COMP!L$90/1000,IFERROR(VLOOKUP($F95&$G95&$H95&$M95&COMP!$D$84&$I95&\"L\",AAMC!#REF!,15,FALSE)/1000,IFERROR(VLOOKUP($F95&$G95&$H95&$M95&COMP!$D$84&$I95&\"L\",MGMAC!#REF!,15,FALSE)/1000,IFERROR(VLOOKUP($F95&$G95&$H95&$M95&COMP!$D$84&$I95&\"L\",MGMACP!#REF!,15,FALSE)/1000,\"no data\"))))","v":"no data"},{"$f":"IF($F95=\"SPEC\",COMP!M$90/1000,IFERROR(VLOOKUP($F95&$G95&$H95&$M95&COMP!$D$84&$I95&\"L\",AAMC!#REF!,20,FALSE)/1000,IFERROR(VLOOKUP($F95&$G95&$H95&$M95&COMP!$D$84&$I95&\"L\",MGMAC!#REF!,20,FALSE)/1000,IFERROR(VLOOKUP($F95&$G95&$H95&$M95&COMP!$D$84&$I95&\"L\",MGMACP!#REF!,20,FALSE)/1000,\"no data\"))))","v":"no data"},null,null,null,null,0,null,null,1,0,{"$f":"IF($J95=0,0,IF($B95=\"SPEC\",COMP!$L$102,IF($B95=\"FPSC\",IFERROR(VLOOKUP($B95&$C95&$D95&$E95&\"L\",FPSC!#REF!,13,FALSE),\"no data\"),IF(B95&C95=\"MGMAAcademic\",IFERROR(VLOOKUP($B95&$C95&$D95&$E95&\"L\",MGMAR!#REF!,13,FALSE),\"no data\"),IFERROR(VLOOKUP($B95&$C95&$D95&$E95&\"L\",MGMARP!#REF!,13,FALSE),\"no data\")))))","v":0},0,0,0,0,0,0,0,0,0,0]
[0,"FPSC","Academic","All",{"$f":"IF($B96=\"MGMA\",COMP!$D$86,IF($B96=\"FPSC\",COMP!$D$85,IF($B96=\"SPEC\",COMP!$K$103,\"no data\")))","v":"[select]"},"AAMC","Academic","All",{"$f":"IF($F96=\"AAMC\",COMP!$D$83,IF($F96=\"MGMA\",COMP!$D$86,IF($F96=\"SPEC\",COMP!$K$91,\"no data\")))","v":"[select]"},null,null,null,null,null,null,null,null,null,null,null,null,0,null,0,null,0,0,null,0,0,{"$f":"IF($F96=\"SPEC\",COMP!K$90/1000,IFERROR(VLOOKUP($F96&$G96&$H96&$M96&COMP!$D$84&$I96&\"L\",AAMC!#REF!,10,FALSE)/1000,IFERROR(VLOOKUP($F96&$G96&$H96&$M96&COMP!$D$84&$I96&\"L\",MGMAC!#REF!,10,FALSE)/1000,IFERROR(VLOOKUP($F96&$G96&$H96&$M96&COMP!$D$84&$I96&\"L\",MGMACP!#REF!,10,FALSE)/1000,\"no data\"))))","v":"no data"},{"$f":"IF($F96=\"SPEC\",COMP!L$90/1000,IFERROR(VLOOKUP($F96&$G96&$H96&$M96&COMP!$D$84&$I96&\"L\",AAMC!#REF!,15,FALSE)/1000,IFERROR(VLOOKUP($F96&$G96&$H96&$M96&COMP!$D$84&$I96&\"L\",MGMAC!#REF!,15,FALSE)/1000,IFERROR(VLOOKUP($F96&$G96&$H96&$M96&COMP!$D$84&$I96&\"L\",MGMACP!#REF!,15,FALSE)/1000,\"no data\"))))","v":"no data"},{"$f":"IF($F96=\"SPEC\",COMP!M$90/1000,IFERROR(VLOOKUP($F96&$G96&$H96&$M96&COMP!$D$84&$I96&\"L\",AAMC!#REF!,20,FALSE)/1000,IFERROR(VLOOKUP($F96&$G96&$H96&$M96&COMP!$D$84&$I96&\"L\",MGMAC!#REF!,20,FALSE)/1000,IFERROR(VLOOKUP($F96&$G96&$H96&$M96&COMP!$D$84&$I96&\"L\",MGMACP!#REF!,20,FALSE)/1000,\"no data\"))))","v":"no data"},null,null,null,null,0,null,null,1,0,{"$f":"IF($J96=0,0,IF($B96=\"SPEC\",COMP!$L$102,IF($B96=\"FPSC\",IFERROR(VLOOKUP($B96&$C96&$D96&$E96&\"L\",FPSC!#REF!,13,FALSE),\"no data\"),IF(B96&C96=\"MGMAAcademic\",IFERROR(VLOOKUP($B96&$C96&$D96&$E96&\"L\",MGMAR!#REF!,13,FALSE),\"no data\"),IFERROR(VLOOKUP($B96&$C96&$D96&$E96&\"L\",MGMARP!#REF!,13,FALSE),\"no data\")))))","v":0},0,0,0,0,0,0,0,0,0,0]
[null,null,null,null,null,null,null,null,null,null,null,null,null,null,null,null,null,null,null,null,null,null,null,null,null,null,null,null,null,null,null,null,null,null,null,null,null,null,null,null,null,null,null,"110% of Expectation",null,{"$f":"110%*AR53","v":0}]
[null,null,null,null,null,null,null,null,null,"Group Financial Summary Year 1 - Clinical RVW generating activities only",null,null,null,null,null,null,null,null,"Clinic Need and Patient Appointment Data: ACH Positions",null,null,null,null,null,null,null,null,null,null,null,null,"Clinic Need and Patient Appointment Data: All Positions",null,null,null,null,null,null,null,null,null,null,null,"Over/(Under) 110% Expect",null,{"$f":"AS53-AT97","v":0}]
[null,null,null,null,null,null,null,null,null,null,null,null,null,null,null,null,null,null,"Note:  If a provider practices in both locations, complete both sets of data."]
[null,null,null,null,null,null,null,null,null,"Total Specialty Professional Fees",null,{"$f":"AL53","v":0},{"$f":"IF(OR(L100=\"[enter]\",L100=\"[select]\",L100=0)=TRUE,\"error\",\"\")","v":"error"},null,null,null,null,null,"ACH Practice Positions Only:",null,null,null,null,null,null,null,null,null,null,null,null,"All Practice Positions:"]
[null,null,null,null,null,null,null,null,null,"Total Specialty Clinical Salary Expense",null,{"$f":"-SUM(Z53)*1000","v":0},{"$f":"IF(OR(L101=\"[enter]\",L101=\"[select]\",L101=0)=TRUE,\"error\",\"\")","v":"error"},null,null,null,null,null," ",null,null,"3rd Next Available Patient Appointment:  ",null,null,null,null,null,null,null,null,null,null,"Clinical Availability:      ",null,null,"[Select]",{"$f":"IF(OR(AJ101=\"[enter]\",AJ101=\"[select]\",AJ101=0)=TRUE,\"error\",\"\")","v":"error"}]
[null,null,null,null,null,null,null,null,null,"Total Fringe Benefits (on clinical fte)",null,{"$f":"COMP!D47*L101","v":0},{"$f":"IF(OR(L102=\"[enter]\",L102=\"[select]\",L102=0)=TRUE,\"error\",\"\")","v":"error"},null,null,null,null,null,null,null,null,"Weekly Deficit in New Patient Appts:",null,null,null,null,null,null,null,null,null,null,"Comments on Clinic Availability:"]
[]
[null,null,null,null,null,null,null,null,null,"Specialty Profit(Loss) Year 1",null,{"$f":"SUBTOTAL(9,L100:L103)","v":0},{"$f":"IF(OR(L104=\"[enter]\",L104=\"[select]\",L104=0)=TRUE,\"error\",\"\")","v":"error"}]
[null,null,null,null,null,null,null,null,null,"Revenue Notes",null,null,null,null,null,null,null,null,null,null,null,"Position Challenges:"]
[]
[]
[]
[null,null,null,null,null,null,null,null,null,null,null,null,null,null,null,null,null,null,null,null,null,null,null,null,null,null,null,null,null,null,null,null,"O/R Availability:      ",null,null,"[Select]",{"$f":"IF(OR(AJ109=\"[enter]\",AJ109=\"[select]\",AJ109=0)=TRUE,\"error\",\"\")","v":"error"}]
[null,null,null,null,null,null,null,null,null,null,null,null,null,null,null,null,null,null,null,null,null,"Other Position Factors not otherwise outlined:",null,null,null,null,null,null,null,null,null,null,"Comments on O/R Availability:"]
[null,null,null,null,null,null,null,null,null,"RVU Data Note:  Use data from a closed period only.",null,null,null,null,null,null,null,null,null,null,null,null,null,null,null,null,null,null,null,null,null,null,null,null,null,null,null,null,null,null,null,null,null,null,null,null,{"$f":"IF(M113=\"error\",1,0)","v":1},{"$f":"IF(P113=\"error\",1,0)","v":1}]
[null,null,null,null,null,null,null,null,null,null,null,"Start Date",null,"End Date"]
[null,null,null,null,null,null,null,null,null,"The RVWs in Column AR are from Period:",null,"[select]",{"$f":"IF(OR(L113=\"[enter]\",L113=\"[select]\",L113=0)=TRUE,\"error\",\"\")","v":"error"},"[select]",null,{"$f":"IF(OR(N113=\"[enter]\",N113=\"[select]\",N113=0)=TRUE,\"error\",\"\")","v":"error"}]
[]
[null,null,null,null,null,null,null,null,null,"Fiscal Year:",null,"[select]",{"$f":"IF(OR(L115=\"[enter]\",L115=\"[select]\",L115=0)=TRUE,\"error\",\"\")","v":"error"},null,null,null,null,null,null,null,null,null,null,null,null,null,null,null,null,null,null,null,null,null,null,null,null,null,null,null,null,null,null,null,null,null,{"$f":"IF(M115=\"error\",1,0)","v":1}]
[]
[null,null,null,null,null,null,null,null,null,"If Other time period please list dates/details:"]
[]
[null,null,null,null,null,null,null,null,null,"Service Staffing Plan - Clinical FTE"]
[]
[null,null,null,null,null,null,null,null,null,"Does this service utilize mid-level providers in any capacity?",null,null,"[select]",{"$f":"IF(OR(M121=\"[enter]\",M121=\"[select]\",M121=0)=TRUE,\"error\",\"\")","v":"error"},null,null,null,null,null,null,null,null,null,null,null,null,null,null,null,null,null,null,null,null,null,null,null,null,null,null,null,null,null,null,null,null,{"$f":"IF(N121=\"error\",1,0)","v":1}]
[]
[null,null,null,null,null,null,null,null,null,"Service current provider staffing plan - Clinical FTE Total",null,null,0,{"$f":"IF(OR(M123=\"[enter]\",M123=\"[select]\",M123=0)=TRUE,\"error\",\"\")","v":"error"}]
[null,null,null,null,null,null,null,null,null,null,null,null,"(Including Mid-Level Providers)"]
[]
[null,null,null,null,null,null,null,null,null,"Clinical FTE Total:","New Full Staff Total","Current Staffing ( clinical fte on payroll)"]
[null,null,null,null,null,null,null,null,null,"Physicians FTE Total",0,0]
[null,null,null,null,null,null,null,null,null,"Midlevel FTE Total",0,0]
[null,null,null,null,null,null,null,null,null,"Total Service FTE",{"$f":"+K128+K127","v":0},{"$f":"+L128+L127","v":0}]
[]
[null,null,null,null,null,null,null,null,null,"                      Over (Under) Current Staffing plan (clinical fte)",null,null,{"$f":"K129-L129","v":0}]
[null,null,null,null,null,null,null,null,null,"Staffing Plan Notes"]
[]
[]
[]
[]
[null,null,null,null,null,null,null,null,null,"Terminology key:"]
[null,null,null,null,null,null,null,null,null,"Service current provider staffing plan - FTE Total - The total provider clinical FTE required to run the service"]
[null,null,null,null,null,null,null,null,null,"Current Providers = on the payroll now  (do not include TBH)"]
[]
[null,null,null,null,null,null,null,null,null,"Additional Information:"]

{"sheet":"REVENUE PROJECTIONS","index":13,"n_rows":0,"n_cols":0,"rows_kept":0,"cut":false,"hidden":false,"merged":[]}

{"sheet":"PROFORMA","index":14,"n_rows":199,"n_cols":23,"rows_kept":199,"cut":false,"hidden":false,"merged":[]}
["HIDE","COLLEGE OF MEDICINE",null,null,null,null,null,{"$f":"COMP!N1","v":"JFR FBP V24.5"},"HIDE","HIDE","HIDE","HIDE","HIDE","HIDE"]
[null,"FACULTY RECRUITMENT BUSINESS PLAN",null,null,null,null,null,{"$f":"COMP!B1","v":"0; [select]; [select] [select]; "},null,null,null,null,null,1]
[null,null,null,null,null,null,null,null,null,null,null,null,null,2]
[null,"PROFORMA",null,null,null,null,null,null,null,null,null,null,null,3]
[null,null,null,"Year 1","Year 2","Year 3","Year 4","Year 5",null,null,null,null,null,4]
[null,"Total Impact",null,{"$f":"D52+D87+D122+D157+D192","v":0},{"$f":"E52+E87+E122+E157+E192","v":0},{"$f":"F52+F87+F122+F157+F192","v":0},{"$f":"G52+G87+G122+G157+G192","v":0},{"$f":"H52+H87+H122+H157+H192","v":0},null,null,null,null,null,5]
[null,null,null,null,null,null,null,null,null,null,null,null,null,6]
[null,"RVU Analysis:"]
[]
[]
[null,"RVU Analysis:",null,null,null,null,null,null,null,null,null,null,null,7]
[]
[]
[null,"Net Margin/RVU",null,{"$f":"D6/'CLIN REV'!D215","v":{"$error":"#DIV/0!"}},{"$f":"E6/'CLIN REV'!E215","v":{"$error":"#DIV/0!"}},{"$f":"F6/'CLIN REV'!F215","v":{"$error":"#DIV/0!"}},{"$f":"G6/'CLIN REV'!G215","v":{"$error":"#DIV/0!"}},{"$f":"H6/'CLIN REV'!H215","v":{"$error":"#DIV/0!"}},null,null,null,null,null,8]
[null,"Total Revenue/RVU",null,{"$f":"'CLIN REV'!D221/'CLIN REV'!D215","v":{"$error":"#DIV/0!"}},{"$f":"'CLIN REV'!E221/'CLIN REV'!E215","v":{"$error":"#DIV/0!"}},{"$f":"'CLIN REV'!F221/'CLIN REV'!F215","v":{"$error":"#DIV/0!"}},{"$f":"'CLIN REV'!G221/'CLIN REV'!G215","v":{"$error":"#DIV/0!"}},{"$f":"'CLIN REV'!H221/'CLIN REV'!H215","v":{"$error":"#DIV/0!"}},null,null,null,null,null,9]
[null,"Total Expense/RVU",null,{"$f":"D198/'CLIN REV'!D215","v":{"$error":"#DIV/0!"}},{"$f":"E198/'CLIN REV'!E215","v":{"$error":"#DIV/0!"}},{"$f":"F198/'CLIN REV'!F215","v":{"$error":"#DIV/0!"}},{"$f":"G198/'CLIN REV'!G215","v":{"$error":"#DIV/0!"}},{"$f":"H198/'CLIN REV'!H215","v":{"$error":"#DIV/0!"}},null,null,null,null,null,10]
[null,null,null,null,null,null,null,null,null,null,null,null,null,null,null,null,"MidLevel Comp $/RVU",null,32.772232980783556,23.399374348279459,23.867361835245045,24.34470907194995,24.831603253388948]
[]
[null,"COM",null,null,null,null,null,null,null,null,null,null,null,{"$f":"N33+N50","v":0}]
[null,"Incremental Budget Impact",null,null,null,null,null,null,null,null,null,null,null,{"$f":"N33+N50","v":0}]
[null,null,"L#","Year 1","Year 2","Year 3","Year 4","Year 5",null,null,null,null,null,{"$f":"N33+N50","v":0}]
[{"$f":"\"COM\"&B22","v":"COMClinical Pro Fees"},"Clinical Pro Fees",-1,{"$f":"SUMIF('CLIN REV'!$A$13:$A$211,$A22,'CLIN REV'!D$13:D$211)","v":0},{"$f":"SUMIF('CLIN REV'!$A$13:$A$211,$A22,'CLIN REV'!E$13:E$211)","v":0},{"$f":"SUMIF('CLIN REV'!$A$13:$A$211,$A22,'CLIN REV'!F$13:F$211)","v":0},{"$f":"SUMIF('CLIN REV'!$A$13:$A$211,$A22,'CLIN REV'!G$13:G$211)","v":0},{"$f":"SUMIF('CLIN REV'!$A$13:$A$211,$A22,'CLIN REV'!H$13:H$211)","v":0},{"$f":"IF(D22=0,0,1)","v":0},{"$f":"IF(E22=0,0,1)","v":0},{"$f":"IF(F22=0,0,1)","v":0},{"$f":"IF(G22=0,0,1)","v":0},{"$f":"IF(H22=0,0,1)","v":0},{"$f":"SUM(I22:M22)","v":0}]
[{"$f":"\"COM\"&B23","v":"COMClinical Tech Fees"},"Clinical Tech Fees",{"$f":"C22-1","v":-2},{"$f":"SUMIF('CLIN REV'!$A$13:$A$211,$A23,'CLIN REV'!D$13:D$211)","v":0},{"$f":"SUMIF('CLIN REV'!$A$13:$A$211,$A23,'CLIN REV'!E$13:E$211)","v":0},{"$f":"SUMIF('CLIN REV'!$A$13:$A$211,$A23,'CLIN REV'!F$13:F$211)","v":0},{"$f":"SUMIF('CLIN REV'!$A$13:$A$211,$A23,'CLIN REV'!G$13:G$211)","v":0},{"$f":"SUMIF('CLIN REV'!$A$13:$A$211,$A23,'CLIN REV'!H$13:H$211)","v":0},{"$f":"IF(D23=0,0,1)","v":0},0,0,0,0,{"$f":"SUM(I23:M23)","v":0}]
["COMClinical Down Stream","Clinical Down Stream",-3,{"$f":"SUMIF('CLIN REV'!$A$13:$A$211,$A24,'CLIN REV'!D$13:D$211)","v":0},{"$f":"SUMIF('CLIN REV'!$A$13:$A$211,$A24,'CLIN REV'!E$13:E$211)","v":0},{"$f":"SUMIF('CLIN REV'!$A$13:$A$211,$A24,'CLIN REV'!F$13:F$211)","v":0},{"$f":"SUMIF('CLIN REV'!$A$13:$A$211,$A24,'CLIN REV'!G$13:G$211)","v":0},{"$f":"SUMIF('CLIN REV'!$A$13:$A$211,$A24,'CLIN REV'!H$13:H$211)","v":0},0,0,0,0,0,0]
["COMEnhanced Medicaid","Enhanced Medicaid",-4,{"$f":"SUMIF('OTH REV'!$A$10:$A$43,$A25,'OTH REV'!I$10:I$43)","v":0},{"$f":"SUMIF('OTH REV'!$A$10:$A$43,$A25,'OTH REV'!J$10:J$43)","v":0},{"$f":"SUMIF('OTH REV'!$A$10:$A$43,$A25,'OTH REV'!K$10:K$43)","v":0},{"$f":"SUMIF('OTH REV'!$A$10:$A$43,$A25,'OTH REV'!L$10:L$43)","v":0},{"$f":"SUMIF('OTH REV'!$A$10:$A$43,$A25,'OTH REV'!M$10:M$43)","v":0},0,0,0,0,0,0]
["COMBudget","Budget",-5,{"$f":"SUMIF('OTH REV'!$A$10:$A$43,$A26,'OTH REV'!I$10:I$43)","v":0},{"$f":"SUMIF('OTH REV'!$A$10:$A$43,$A26,'OTH REV'!J$10:J$43)","v":0},{"$f":"SUMIF('OTH REV'!$A$10:$A$43,$A26,'OTH REV'!K$10:K$43)","v":0},{"$f":"SUMIF('OTH REV'!$A$10:$A$43,$A26,'OTH REV'!L$10:L$43)","v":0},{"$f":"SUMIF('OTH REV'!$A$10:$A$43,$A26,'OTH REV'!M$10:M$43)","v":0},0,0,0,0,0,{"$f":"SUM(I26:M26)","v":0}]
["COMDean's Commitment","Dean's Commitment",-6,{"$f":"SUMIF('OTH REV'!$A$10:$A$43,$A27,'OTH REV'!I$10:I$43)","v":0},{"$f":"SUMIF('OTH REV'!$A$10:$A$43,$A27,'OTH REV'!J$10:J$43)","v":0},{"$f":"SUMIF('OTH REV'!$A$10:$A$43,$A27,'OTH REV'!K$10:K$43)","v":0},{"$f":"SUMIF('OTH REV'!$A$10:$A$43,$A27,'OTH REV'!L$10:L$43)","v":0},{"$f":"SUMIF('OTH REV'!$A$10:$A$43,$A27,'OTH REV'!M$10:M$43)","v":0},0,0,0,0,0,0]
["COMGrant","Grant",-7,{"$f":"SUMIF('OTH REV'!$A$10:$A$43,$A28,'OTH REV'!I$10:I$43)","v":0},{"$f":"SUMIF('OTH REV'!$A$10:$A$43,$A28,'OTH REV'!J$10:J$43)","v":0},{"$f":"SUMIF('OTH REV'!$A$10:$A$43,$A28,'OTH REV'!K$10:K$43)","v":0},{"$f":"SUMIF('OTH REV'!$A$10:$A$43,$A28,'OTH REV'!L$10:L$43)","v":0},{"$f":"SUMIF('OTH REV'!$A$10:$A$43,$A28,'OTH REV'!M$10:M$43)","v":0},0,0,0,0,0,0]
["COMContract","Contract",-8,{"$f":"SUMIF('OTH REV'!$A$10:$A$43,$A29,'OTH REV'!I$10:I$43)","v":0},{"$f":"SUMIF('OTH REV'!$A$10:$A$43,$A29,'OTH REV'!J$10:J$43)","v":0},{"$f":"SUMIF('OTH REV'!$A$10:$A$43,$A29,'OTH REV'!K$10:K$43)","v":0},{"$f":"SUMIF('OTH REV'!$A$10:$A$43,$A29,'OTH REV'!L$10:L$43)","v":0},{"$f":"SUMIF('OTH REV'!$A$10:$A$43,$A29,'OTH REV'!M$10:M$43)","v":0},0,0,0,0,0,0]
["COMGift","Gift",-9,{"$f":"SUMIF('OTH REV'!$A$10:$A$43,$A30,'OTH REV'!I$10:I$43)","v":0},{"$f":"SUMIF('OTH REV'!$A$10:$A$43,$A30,'OTH REV'!J$10:J$43)","v":0},{"$f":"SUMIF('OTH REV'!$A$10:$A$43,$A30,'OTH REV'!K$10:K$43)","v":0},{"$f":"SUMIF('OTH REV'!$A$10:$A$43,$A30,'OTH REV'!L$10:L$43)","v":0},{"$f":"SUMIF('OTH REV'!$A$10:$A$43,$A30,'OTH REV'!M$10:M$43)","v":0},0,0,0,0,0,0]
["COMFoundation","Foundation",-10,{"$f":"SUMIF('OTH REV'!$A$10:$A$43,$A31,'OTH REV'!I$10:I$43)","v":0},{"$f":"SUMIF('OTH REV'!$A$10:$A$43,$A31,'OTH REV'!J$10:J$43)","v":0},{"$f":"SUMIF('OTH REV'!$A$10:$A$43,$A31,'OTH REV'!K$10:K$43)","v":0},{"$f":"SUMIF('OTH REV'!$A$10:$A$43,$A31,'OTH REV'!L$10:L$43)","v":0},{"$f":"SUMIF('OTH REV'!$A$10:$A$43,$A31,'OTH REV'!M$10:M$43)","v":0},0,0,0,0,0,0]
["COMOther","Other",-11,{"$f":"SUMIF('OTH REV'!$A$10:$A$43,$A32,'OTH REV'!I$10:I$43)","v":0},{"$f":"SUMIF('OTH REV'!$A$10:$A$43,$A32,'OTH REV'!J$10:J$43)","v":0},{"$f":"SUMIF('OTH REV'!$A$10:$A$43,$A32,'OTH REV'!K$10:K$43)","v":0},{"$f":"SUMIF('OTH REV'!$A$10:$A$43,$A32,'OTH REV'!L$10:L$43)","v":0},{"$f":"SUMIF('OTH REV'!$A$10:$A$43,$A32,'OTH REV'!M$10:M$43)","v":0},0,0,0,0,0,0]
[null,"Total Resources",null,{"$f":"SUM(D22:D32)","v":0},{"$f":"SUM(E22:E32)","v":0},{"$f":"SUM(F22:F32)","v":0},{"$f":"SUM(G22:G32)","v":0},{"$f":"SUM(H22:H32)","v":0},0,0,0,0,0,0]
[null,null,null,null,null,null,null,null,null,null,null,null,null,{"$f":"SUM(I33:M33)","v":0}]
[{"$f":"\"COM\"","v":"COM"},"Salary",{"$f":"C32-1","v":-12},{"$f":"SUMIF(ASSIGN!$I$9:$I$40,$A35,ASSIGN!M$9:M$40)*COMP!I$70","v":0},{"$f":"SUMIF(ASSIGN!$I$9:$I$40,$A35,ASSIGN!N$9:N$40)*COMP!J$70","v":0},{"$f":"SUMIF(ASSIGN!$I$9:$I$40,$A35,ASSIGN!O$9:O$40)*COMP!K$70","v":0},{"$f":"SUMIF(ASSIGN!$I$9:$I$40,$A35,ASSIGN!P$9:P$40)*COMP!L$70","v":0},{"$f":"SUMIF(ASSIGN!$I$9:$I$40,$A35,ASSIGN!Q$9:Q$40)*COMP!M$70","v":0},{"$f":"IF(D35=0,0,1)","v":0},0,0,0,0,{"$f":"SUM(I35:M35)","v":0}]
[{"$f":"\"COM\"","v":"COM"},"Incentive",{"$f":"C35-1","v":-13},{"$f":"SUMIF(COMP!$F$36:$F$39,$A36,COMP!J$36:J$39)","v":0},{"$f":"SUMIF(COMP!$F$36:$F$39,$A36,COMP!K$36:K$39)","v":0},{"$f":"SUMIF(COMP!$F$36:$F$39,$A36,COMP!L$36:L$39)","v":0},{"$f":"SUMIF(COMP!$F$36:$F$39,$A36,COMP!M$36:M$39)","v":0},{"$f":"SUMIF(COMP!$F$36:$F$39,$A36,COMP!N$36:N$39)","v":0},0,0,0,0,0,0]
[{"$f":"\"COM\"","v":"COM"},"Fringe",{"$f":"C36-1","v":-14},{"$f":"SUMIF(ASSIGN!$I$9:$I$40,$A35,ASSIGN!M$9:M$40)*COMP!I$76+SUMIF(COMP!$F$36:$F$39,$A37,COMP!O$36:O$39)","v":0},{"$f":"SUMIF(ASSIGN!$I$9:$I$40,$A35,ASSIGN!N$9:N$40)*COMP!J$76+SUMIF(COMP!$F$36:$F$39,$A37,COMP!P$36:P$39)","v":0},{"$f":"SUMIF(ASSIGN!$I$9:$I$40,$A35,ASSIGN!O$9:O$40)*COMP!K$76+SUMIF(COMP!$F$36:$F$39,$A37,COMP!Q$36:Q$39)","v":0},{"$f":"SUMIF(ASSIGN!$I$9:$I$40,$A35,ASSIGN!P$9:P$40)*COMP!L$76+SUMIF(COMP!$F$36:$F$39,$A37,COMP!R$36:R$39)","v":0},{"$f":"SUMIF(ASSIGN!$I$9:$I$40,$A35,ASSIGN!Q$9:Q$40)*COMP!M$76+SUMIF(COMP!$F$36:$F$39,$A37,COMP!S$36:S$39)","v":0},0,0,0,0,0,0]
[null,null,null,null,null,null,null,null,0,0,0,0,0,0]
[{"$f":"\"COM\"&B39","v":"COMExtenders"},"Extenders",{"$f":"C37-1","v":-15},{"$f":"SUMIF('OTH EXP'!$B$10:$B$32,$A39,'OTH EXP'!G$10:G$32)","v":0},{"$f":"SUMIF('OTH EXP'!$B$10:$B$32,$A39,'OTH EXP'!H$10:H$32)","v":0},{"$f":"SUMIF('OTH EXP'!$B$10:$B$32,$A39,'OTH EXP'!I$10:I$32)","v":0},{"$f":"SUMIF('OTH EXP'!$B$10:$B$32,$A39,'OTH EXP'!J$10:J$32)","v":0},{"$f":"SUMIF('OTH EXP'!$B$10:$B$32,$A39,'OTH EXP'!K$10:K$32)","v":0},0,0,0,0,0,0]
["COMStaff","Staff",{"$f":"C39-1","v":-16},{"$f":"SUMIF('OTH EXP'!$B$10:$B$32,$A40,'OTH EXP'!G$10:G$32)","v":0},{"$f":"SUMIF('OTH EXP'!$B$10:$B$32,$A40,'OTH EXP'!H$10:H$32)","v":0},{"$f":"SUMIF('OTH EXP'!$B$10:$B$32,$A40,'OTH EXP'!I$10:I$32)","v":0},{"$f":"SUMIF('OTH EXP'!$B$10:$B$32,$A40,'OTH EXP'!J$10:J$32)","v":0},{"$f":"SUMIF('OTH EXP'!$B$10:$B$32,$A40,'OTH EXP'!K$10:K$32)","v":0},0,0,0,0,0,0]
["COMComputer","Computer",{"$f":"C40-1","v":-17},{"$f":"SUMIF('OTH EXP'!$B$10:$B$32,$A41,'OTH EXP'!G$10:G$32)","v":0},{"$f":"SUMIF('OTH EXP'!$B$10:$B$32,$A41,'OTH EXP'!H$10:H$32)","v":0},{"$f":"SUMIF('OTH EXP'!$B$10:$B$32,$A41,'OTH EXP'!I$10:I$32)","v":0},{"$f":"SUMIF('OTH EXP'!$B$10:$B$32,$A41,'OTH EXP'!J$10:J$32)","v":0},{"$f":"SUMIF('OTH EXP'!$B$10:$B$32,$A41,'OTH EXP'!K$10:K$32)","v":0},0,0,0,0,0,0]
["COMEducational Funds","Educational Funds",{"$f":"C41-1","v":-18},{"$f":"SUMIF('OTH EXP'!$B$10:$B$32,$A42,'OTH EXP'!G$10:G$32)","v":0},{"$f":"SUMIF('OTH EXP'!$B$10:$B$32,$A42,'OTH EXP'!H$10:H$32)","v":0},{"$f":"SUMIF('OTH EXP'!$B$10:$B$32,$A42,'OTH EXP'!I$10:I$32)","v":0},{"$f":"SUMIF('OTH EXP'!$B$10:$B$32,$A42,'OTH EXP'!J$10:J$32)","v":0},{"$f":"SUMIF('OTH EXP'!$B$10:$B$32,$A42,'OTH EXP'!K$10:K$32)","v":0},0,0,0,0,0,0]
["COMEquipment","Equipment",{"$f":"C42-1","v":-19},{"$f":"SUMIF('OTH EXP'!$B$10:$B$32,$A43,'OTH EXP'!G$10:G$32)","v":0},{"$f":"SUMIF('OTH EXP'!$B$10:$B$32,$A43,'OTH EXP'!H$10:H$32)","v":0},{"$f":"SUMIF('OTH EXP'!$B$10:$B$32,$A43,'OTH EXP'!I$10:I$32)","v":0},{"$f":"SUMIF('OTH EXP'!$B$10:$B$32,$A43,'OTH EXP'!J$10:J$32)","v":0},{"$f":"SUMIF('OTH EXP'!$B$10:$B$32,$A43,'OTH EXP'!K$10:K$32)","v":0},0,0,0,0,0,0]
["COMConstruction","Construction",-20,{"$f":"SUMIF('OTH EXP'!$B$10:$B$32,$A44,'OTH EXP'!G$10:G$32)","v":0},{"$f":"SUMIF('OTH EXP'!$B$10:$B$32,$A44,'OTH EXP'!H$10:H$32)","v":0},{"$f":"SUMIF('OTH EXP'!$B$10:$B$32,$A44,'OTH EXP'!I$10:I$32)","v":0},{"$f":"SUMIF('OTH EXP'!$B$10:$B$32,$A44,'OTH EXP'!J$10:J$32)","v":0},{"$f":"SUMIF('OTH EXP'!$B$10:$B$32,$A44,'OTH EXP'!K$10:K$32)","v":0},0,0,0,0,0,0]
["COMFurniture","Furniture",-21,{"$f":"SUMIF('OTH EXP'!$B$10:$B$32,$A45,'OTH EXP'!G$10:G$32)","v":0},{"$f":"SUMIF('OTH EXP'!$B$10:$B$32,$A45,'OTH EXP'!H$10:H$32)","v":0},{"$f":"SUMIF('OTH EXP'!$B$10:$B$32,$A45,'OTH EXP'!I$10:I$32)","v":0},{"$f":"SUMIF('OTH EXP'!$B$10:$B$32,$A45,'OTH EXP'!J$10:J$32)","v":0},{"$f":"SUMIF('OTH EXP'!$B$10:$B$32,$A45,'OTH EXP'!K$10:K$32)","v":0},0,0,0,0,0,0]
["COMGeneral M&O","General M&O",-22,{"$f":"SUMIF('OTH EXP'!$B$10:$B$32,$A46,'OTH EXP'!G$10:G$32)","v":0},{"$f":"SUMIF('OTH EXP'!$B$10:$B$32,$A46,'OTH EXP'!H$10:H$32)","v":0},{"$f":"SUMIF('OTH EXP'!$B$10:$B$32,$A46,'OTH EXP'!I$10:I$32)","v":0},{"$f":"SUMIF('OTH EXP'!$B$10:$B$32,$A46,'OTH EXP'!J$10:J$32)","v":0},{"$f":"SUMIF('OTH EXP'!$B$10:$B$32,$A46,'OTH EXP'!K$10:K$32)","v":0},0,0,0,0,0,0]
["COMMalpractice","Malpractice",-23,{"$f":"SUMIF('OTH EXP'!$B$10:$B$32,$A47,'OTH EXP'!G$10:G$32)","v":0},{"$f":"SUMIF('OTH EXP'!$B$10:$B$32,$A47,'OTH EXP'!H$10:H$32)","v":0},{"$f":"SUMIF('OTH EXP'!$B$10:$B$32,$A47,'OTH EXP'!I$10:I$32)","v":0},{"$f":"SUMIF('OTH EXP'!$B$10:$B$32,$A47,'OTH EXP'!J$10:J$32)","v":0},{"$f":"SUMIF('OTH EXP'!$B$10:$B$32,$A47,'OTH EXP'!K$10:K$32)","v":0},0,0,0,0,0,0]
["COMMoving/Relocation","Moving/Relocation",-24,{"$f":"SUMIF('OTH EXP'!$B$10:$B$32,$A48,'OTH EXP'!G$10:G$32)","v":0},{"$f":"SUMIF('OTH EXP'!$B$10:$B$32,$A48,'OTH EXP'!H$10:H$32)","v":0},{"$f":"SUMIF('OTH EXP'!$B$10:$B$32,$A48,'OTH EXP'!I$10:I$32)","v":0},{"$f":"SUMIF('OTH EXP'!$B$10:$B$32,$A48,'OTH EXP'!J$10:J$32)","v":0},{"$f":"SUMIF('OTH EXP'!$B$10:$B$32,$A48,'OTH EXP'!K$10:K$32)","v":0},0,0,0,0,0,0]
["COMOther","Other",-25,{"$f":"SUMIF('OTH EXP'!$B$10:$B$32,$A49,'OTH EXP'!G$10:G$32)","v":0},{"$f":"SUMIF('OTH EXP'!$B$10:$B$32,$A49,'OTH EXP'!H$10:H$32)","v":0},{"$f":"SUMIF('OTH EXP'!$B$10:$B$32,$A49,'OTH EXP'!I$10:I$32)","v":0},{"$f":"SUMIF('OTH EXP'!$B$10:$B$32,$A49,'OTH EXP'!J$10:J$32)","v":0},{"$f":"SUMIF('OTH EXP'!$B$10:$B$32,$A49,'OTH EXP'!K$10:K$32)","v":0},0,0,0,0,0,0]
[null,"Total Costs",null,{"$f":"SUM(D34:D49)","v":0},{"$f":"SUM(E34:E49)","v":0},{"$f":"SUM(F34:F49)","v":0},{"$f":"SUM(G34:G49)","v":0},{"$f":"SUM(H34:H49)","v":0},0,0,0,0,0,0]
[null,null,null,null,null,null,null,null,null,null,null,null,null,{"$f":"N33+N50","v":0}]
[null,"Impact",null,{"$f":"D33-D50","v":0},{"$f":"E33-E50","v":0},{"$f":"F33-F50","v":0},{"$f":"G33-G50","v":0},{"$f":"H33-H50","v":0},null,null,null,null,null,{"$f":"N33+N50","v":0}]
[null,null,null,null,null,null,null,null,null,null,null,null,null,{"$f":"N33+N50","v":0}]
[null,"ICE",null,null,null,null,null,null,null,null,null,null,null,{"$f":"N68+N85","v":0}]
[null,"Incremental Budget Impact",null,null,null,null,null,null,null,null,null,null,null,{"$f":"N68+N85","v":0}]
[null,null,null,"Year 1","Year 2","Year 3","Year 4","Year 5",null,null,null,null,null,{"$f":"N68+N85","v":0}]
[{"$f":"\"ICE\"&B57","v":"ICEClinical Pro Fees"},"Clinical Pro Fees",{"$f":"C49-1","v":-26},{"$f":"SUMIF('CLIN REV'!$A$13:$A$211,$A57,'CLIN REV'!D$13:D$211)","v":0},{"$f":"SUMIF('CLIN REV'!$A$13:$A$211,$A57,'CLIN REV'!E$13:E$211)","v":0},{"$f":"SUMIF('CLIN REV'!$A$13:$A$211,$A57,'CLIN REV'!F$13:F$211)","v":0},{"$f":"SUMIF('CLIN REV'!$A$13:$A$211,$A57,'CLIN REV'!G$13:G$211)","v":0},{"$f":"SUMIF('CLIN REV'!$A$13:$A$211,$A57,'CLIN REV'!H$13:H$211)","v":0},{"$f":"IF(D57=0,0,1)","v":0},{"$f":"IF(E57=0,0,1)","v":0},{"$f":"IF(F57=0,0,1)","v":0},{"$f":"IF(G57=0,0,1)","v":0},{"$f":"IF(H57=0,0,1)","v":0},{"$f":"SUM(I57:M57)","v":0}]
[{"$f":"\"ICE\"&B58","v":"ICEClinical Contrib Margin"},"Clinical Contrib Margin",{"$f":"C57-1","v":-27},{"$f":"'CLIN REV'!D86","v":0},{"$f":"'CLIN REV'!E86","v":0},{"$f":"'CLIN REV'!F86","v":0},{"$f":"'CLIN REV'!G86","v":0},{"$f":"'CLIN REV'!H86","v":0},{"$f":"IF(D58=0,0,1)","v":0},0,0,0,0,{"$f":"SUM(I58:M58)","v":0}]
[{"$f":"\"COM\"&B59","v":"COMClinical Down Stream"},"Clinical Down Stream",-28,{"$f":"SUMIF('CLIN REV'!$A$13:$A$211,$A59,'CLIN REV'!D$13:D$211)","v":0},{"$f":"SUMIF('CLIN REV'!$A$13:$A$211,$A59,'CLIN REV'!E$13:E$211)","v":0},{"$f":"SUMIF('CLIN REV'!$A$13:$A$211,$A59,'CLIN REV'!F$13:F$211)","v":0},{"$f":"SUMIF('CLIN REV'!$A$13:$A$211,$A59,'CLIN REV'!G$13:G$211)","v":0},{"$f":"SUMIF('CLIN REV'!$A$13:$A$211,$A59,'CLIN REV'!H$13:H$211)","v":0},0,0,0,0,0,0]
["ICEEnhanced Medicaid","Enhanced Medicaid",-29,{"$f":"SUMIF('OTH REV'!$A$10:$A$43,$A60,'OTH REV'!I$10:I$43)","v":0},{"$f":"SUMIF('OTH REV'!$A$10:$A$43,$A60,'OTH REV'!J$10:J$43)","v":0},{"$f":"SUMIF('OTH REV'!$A$10:$A$43,$A60,'OTH REV'!K$10:K$43)","v":0},{"$f":"SUMIF('OTH REV'!$A$10:$A$43,$A60,'OTH REV'!L$10:L$43)","v":0},{"$f":"SUMIF('OTH REV'!$A$10:$A$43,$A60,'OTH REV'!M$10:M$43)","v":0},0,0,0,0,0,0]
["ICEBudget","Budget",{"$f":"C60-1","v":-30},{"$f":"SUMIF('OTH REV'!$A$10:$A$43,$A61,'OTH REV'!I$10:I$43)","v":0},{"$f":"SUMIF('OTH REV'!$A$10:$A$43,$A61,'OTH REV'!J$10:J$43)","v":0},{"$f":"SUMIF('OTH REV'!$A$10:$A$43,$A61,'OTH REV'!K$10:K$43)","v":0},{"$f":"SUMIF('OTH REV'!$A$10:$A$43,$A61,'OTH REV'!L$10:L$43)","v":0},{"$f":"SUMIF('OTH REV'!$A$10:$A$43,$A61,'OTH REV'!M$10:M$43)","v":0},0,0,0,0,0,0]
["ICEDean's Commitment","Dean's Commitment",-31,{"$f":"SUMIF('OTH REV'!$A$10:$A$43,$A62,'OTH REV'!I$10:I$43)","v":0},{"$f":"SUMIF('OTH REV'!$A$10:$A$43,$A62,'OTH REV'!J$10:J$43)","v":0},{"$f":"SUMIF('OTH REV'!$A$10:$A$43,$A62,'OTH REV'!K$10:K$43)","v":0},{"$f":"SUMIF('OTH REV'!$A$10:$A$43,$A62,'OTH REV'!L$10:L$43)","v":0},{"$f":"SUMIF('OTH REV'!$A$10:$A$43,$A62,'OTH REV'!M$10:M$43)","v":0},0,0,0,0,0,0]
["ICEGrant","Grant",-32,{"$f":"SUMIF('OTH REV'!$A$10:$A$43,$A63,'OTH REV'!I$10:I$43)","v":0},{"$f":"SUMIF('OTH REV'!$A$10:$A$43,$A63,'OTH REV'!J$10:J$43)","v":0},{"$f":"SUMIF('OTH REV'!$A$10:$A$43,$A63,'OTH REV'!K$10:K$43)","v":0},{"$f":"SUMIF('OTH REV'!$A$10:$A$43,$A63,'OTH REV'!L$10:L$43)","v":0},{"$f":"SUMIF('OTH REV'!$A$10:$A$43,$A63,'OTH REV'!M$10:M$43)","v":0},0,0,0,0,0,0]
["ICEContract","Contract",-33,{"$f":"SUMIF('OTH REV'!$A$10:$A$43,$A64,'OTH REV'!I$10:I$43)","v":0},{"$f":"SUMIF('OTH REV'!$A$10:$A$43,$A64,'OTH REV'!J$10:J$43)","v":0},{"$f":"SUMIF('OTH REV'!$A$10:$A$43,$A64,'OTH REV'!K$10:K$43)","v":0},{"$f":"SUMIF('OTH REV'!$A$10:$A$43,$A64,'OTH REV'!L$10:L$43)","v":0},{"$f":"SUMIF('OTH REV'!$A$10:$A$43,$A64,'OTH REV'!M$10:M$43)","v":0},0,0,0,0,0,0]
["ICEGift","Gift",-34,{"$f":"SUMIF('OTH REV'!$A$10:$A$43,$A65,'OTH REV'!I$10:I$43)","v":0},{"$f":"SUMIF('OTH REV'!$A$10:$A$43,$A65,'OTH REV'!J$10:J$43)","v":0},{"$f":"SUMIF('OTH REV'!$A$10:$A$43,$A65,'OTH REV'!K$10:K$43)","v":0},{"$f":"SUMIF('OTH REV'!$A$10:$A$43,$A65,'OTH REV'!L$10:L$43)","v":0},{"$f":"SUMIF('OTH REV'!$A$10:$A$43,$A65,'OTH REV'!M$10:M$43)","v":0},0,0,0,0,0,0]
["ICEFoundation","Foundation",-35,{"$f":"SUMIF('OTH REV'!$A$10:$A$43,$A66,'OTH REV'!I$10:I$43)","v":0},{"$f":"SUMIF('OTH REV'!$A$10:$A$43,$A66,'OTH REV'!J$10:J$43)","v":0},{"$f":"SUMIF('OTH REV'!$A$10:$A$43,$A66,'OTH REV'!K$10:K$43)","v":0},{"$f":"SUMIF('OTH REV'!$A$10:$A$43,$A66,'OTH REV'!L$10:L$43)","v":0},{"$f":"SUMIF('OTH REV'!$A$10:$A$43,$A66,'OTH REV'!M$10:M$43)","v":0},0,0,0,0,0,0]
["ICEOther","Other",-36,{"$f":"SUMIF('OTH REV'!$A$10:$A$43,$A67,'OTH REV'!I$10:I$43)","v":0},{"$f":"SUMIF('OTH REV'!$A$10:$A$43,$A67,'OTH REV'!J$10:J$43)","v":0},{"$f":"SUMIF('OTH REV'!$A$10:$A$43,$A67,'OTH REV'!K$10:K$43)","v":0},{"$f":"SUMIF('OTH REV'!$A$10:$A$43,$A67,'OTH REV'!L$10:L$43)","v":0},{"$f":"SUMIF('OTH REV'!$A$10:$A$43,$A67,'OTH REV'!M$10:M$43)","v":0},0,0,0,0,0,0]
[null,"Total Resources",null,{"$f":"SUM(D57:D67)","v":0},{"$f":"SUM(E57:E67)","v":0},{"$f":"SUM(F57:F67)","v":0},{"$f":"SUM(G57:G67)","v":0},{"$f":"SUM(H57:H67)","v":0},0,0,0,0,0,0]
[null,null,null,null,null,null,null,null,null,null,null,null,null,{"$f":"SUM(I68:M68)","v":0}]
["ICE","Salary",{"$f":"C67-1","v":-37},{"$f":"SUMIF(ASSIGN!$I$9:$I$40,$A70,ASSIGN!M$9:M$40)*COMP!I$70","v":0},{"$f":"SUMIF(ASSIGN!$I$9:$I$40,$A70,ASSIGN!N$9:N$40)*COMP!J$70","v":0},{"$f":"SUMIF(ASSIGN!$I$9:$I$40,$A70,ASSIGN!O$9:O$40)*COMP!K$70","v":0},{"$f":"SUMIF(ASSIGN!$I$9:$I$40,$A70,ASSIGN!P$9:P$40)*COMP!L$70","v":0},{"$f":"SUMIF(ASSIGN!$I$9:$I$40,$A70,ASSIGN!Q$9:Q$40)*COMP!M$70","v":0},{"$f":"IF(D70=0,0,1)","v":0},0,0,0,0,{"$f":"SUM(I70:M70)","v":0}]
["ICE","Incentive",{"$f":"C70-1","v":-38},{"$f":"SUMIF(COMP!$F$36:$F$39,$A71,COMP!J$36:J$39)","v":0},{"$f":"SUMIF(COMP!$F$36:$F$39,$A71,COMP!K$36:K$39)","v":0},{"$f":"SUMIF(COMP!$F$36:$F$39,$A71,COMP!L$36:L$39)","v":0},{"$f":"SUMIF(COMP!$F$36:$F$39,$A71,COMP!M$36:M$39)","v":0},{"$f":"SUMIF(COMP!$F$36:$F$39,$A71,COMP!N$36:N$39)","v":0},0,0,0,0,0,0]
["ICE","Fringe",{"$f":"C71-1","v":-39},{"$f":"SUMIF(ASSIGN!$I$9:$I$40,$A72,ASSIGN!M$9:M$40)*COMP!I$76+SUMIF(COMP!$F$36:$F$39,$A72,COMP!O$36:O$39)","v":0},{"$f":"SUMIF(ASSIGN!$I$9:$I$40,$A72,ASSIGN!N$9:N$40)*COMP!J$76+SUMIF(COMP!$F$36:$F$39,$A72,COMP!P$36:P$39)","v":0},{"$f":"SUMIF(ASSIGN!$I$9:$I$40,$A72,ASSIGN!O$9:O$40)*COMP!K$76+SUMIF(COMP!$F$36:$F$39,$A72,COMP!Q$36:Q$39)","v":0},{"$f":"SUMIF(ASSIGN!$I$9:$I$40,$A72,ASSIGN!P$9:P$40)*COMP!L$76+SUMIF(COMP!$F$36:$F$39,$A72,COMP!R$36:R$39)","v":0},{"$f":"SUMIF(ASSIGN!$I$9:$I$40,$A72,ASSIGN!Q$9:Q$40)*COMP!M$76+SUMIF(COMP!$F$36:$F$39,$A72,COMP!S$36:S$39)","v":0},0,0,0,0,0,0]
[null,null,null,null,null,null,null,null,0,0,0,0,0,0]
[{"$f":"\"ICE\"&B74","v":"ICEExtenders"},"Extenders",{"$f":"C72-1","v":-40},{"$f":"SUMIF('OTH EXP'!$B$10:$B$32,$A74,'OTH EXP'!G$10:G$32)","v":0},{"$f":"SUMIF('OTH EXP'!$B$10:$B$32,$A74,'OTH EXP'!H$10:H$32)","v":0},{"$f":"SUMIF('OTH EXP'!$B$10:$B$32,$A74,'OTH EXP'!I$10:I$32)","v":0},{"$f":"SUMIF('OTH EXP'!$B$10:$B$32,$A74,'OTH EXP'!J$10:J$32)","v":0},{"$f":"SUMIF('OTH EXP'!$B$10:$B$32,$A74,'OTH EXP'!K$10:K$32)","v":0},0,0,0,0,0,0]
[{"$f":"\"ICE\"&B75","v":"ICEStaff"},"Staff",{"$f":"C74-1","v":-41},{"$f":"SUMIF('OTH EXP'!$B$10:$B$32,$A75,'OTH EXP'!G$10:G$32)","v":0},{"$f":"SUMIF('OTH EXP'!$B$10:$B$32,$A75,'OTH EXP'!H$10:H$32)","v":0},{"$f":"SUMIF('OTH EXP'!$B$10:$B$32,$A75,'OTH EXP'!I$10:I$32)","v":0},{"$f":"SUMIF('OTH EXP'!$B$10:$B$32,$A75,'OTH EXP'!J$10:J$32)","v":0},{"$f":"SUMIF('OTH EXP'!$B$10:$B$32,$A75,'OTH EXP'!K$10:K$32)","v":0},0,0,0,0,0,0]
["ICEComputer","Computer",{"$f":"C75-1","v":-42},{"$f":"SUMIF('OTH EXP'!$B$10:$B$32,$A76,'OTH EXP'!G$10:G$32)","v":0},{"$f":"SUMIF('OTH EXP'!$B$10:$B$32,$A76,'OTH EXP'!H$10:H$32)","v":0},{"$f":"SUMIF('OTH EXP'!$B$10:$B$32,$A76,'OTH EXP'!I$10:I$32)","v":0},{"$f":"SUMIF('OTH EXP'!$B$10:$B$32,$A76,'OTH EXP'!J$10:J$32)","v":0},{"$f":"SUMIF('OTH EXP'!$B$10:$B$32,$A76,'OTH EXP'!K$10:K$32)","v":0},0,0,0,0,0,0]
["ICEEducational Funds","Educational Funds",{"$f":"C76-1","v":-43},{"$f":"SUMIF('OTH EXP'!$B$10:$B$32,$A77,'OTH EXP'!G$10:G$32)","v":0},{"$f":"SUMIF('OTH EXP'!$B$10:$B$32,$A77,'OTH EXP'!H$10:H$32)","v":0},{"$f":"SUMIF('OTH EXP'!$B$10:$B$32,$A77,'OTH EXP'!I$10:I$32)","v":0},{"$f":"SUMIF('OTH EXP'!$B$10:$B$32,$A77,'OTH EXP'!J$10:J$32)","v":0},{"$f":"SUMIF('OTH EXP'!$B$10:$B$32,$A77,'OTH EXP'!K$10:K$32)","v":0},0,0,0,0,0,0]
["ICEEquipment","Equipment",{"$f":"C77-1","v":-44},{"$f":"SUMIF('OTH EXP'!$B$10:$B$32,$A78,'OTH EXP'!G$10:G$32)","v":0},{"$f":"SUMIF('OTH EXP'!$B$10:$B$32,$A78,'OTH EXP'!H$10:H$32)","v":0},{"$f":"SUMIF('OTH EXP'!$B$10:$B$32,$A78,'OTH EXP'!I$10:I$32)","v":0},{"$f":"SUMIF('OTH EXP'!$B$10:$B$32,$A78,'OTH EXP'!J$10:J$32)","v":0},{"$f":"SUMIF('OTH EXP'!$B$10:$B$32,$A78,'OTH EXP'!K$10:K$32)","v":0},0,0,0,0,0,0]
["ICEConstruction","Construction",-45,{"$f":"SUMIF('OTH EXP'!$B$10:$B$32,$A79,'OTH EXP'!G$10:G$32)","v":0},{"$f":"SUMIF('OTH EXP'!$B$10:$B$32,$A79,'OTH EXP'!H$10:H$32)","v":0},{"$f":"SUMIF('OTH EXP'!$B$10:$B$32,$A79,'OTH EXP'!I$10:I$32)","v":0},{"$f":"SUMIF('OTH EXP'!$B$10:$B$32,$A79,'OTH EXP'!J$10:J$32)","v":0},{"$f":"SUMIF('OTH EXP'!$B$10:$B$32,$A79,'OTH EXP'!K$10:K$32)","v":0},0,0,0,0,0,0]
["ICEFurniture","Furniture",-46,{"$f":"SUMIF('OTH EXP'!$B$10:$B$32,$A80,'OTH EXP'!G$10:G$32)","v":0},{"$f":"SUMIF('OTH EXP'!$B$10:$B$32,$A80,'OTH EXP'!H$10:H$32)","v":0},{"$f":"SUMIF('OTH EXP'!$B$10:$B$32,$A80,'OTH EXP'!I$10:I$32)","v":0},{"$f":"SUMIF('OTH EXP'!$B$10:$B$32,$A80,'OTH EXP'!J$10:J$32)","v":0},{"$f":"SUMIF('OTH EXP'!$B$10:$B$32,$A80,'OTH EXP'!K$10:K$32)","v":0},0,0,0,0,0,0]
["ICEGeneral M&O","General M&O",-47,{"$f":"SUMIF('OTH EXP'!$B$10:$B$32,$A81,'OTH EXP'!G$10:G$32)","v":0},{"$f":"SUMIF('OTH EXP'!$B$10:$B$32,$A81,'OTH EXP'!H$10:H$32)","v":0},{"$f":"SUMIF('OTH EXP'!$B$10:$B$32,$A81,'OTH EXP'!I$10:I$32)","v":0},{"$f":"SUMIF('OTH EXP'!$B$10:$B$32,$A81,'OTH EXP'!J$10:J$32)","v":0},{"$f":"SUMIF('OTH EXP'!$B$10:$B$32,$A81,'OTH EXP'!K$10:K$32)","v":0},0,0,0,0,0,0]
["ICEMalpractice","Malpractice",-48,{"$f":"SUMIF('OTH EXP'!$B$10:$B$32,$A82,'OTH EXP'!G$10:G$32)","v":0},{"$f":"SUMIF('OTH EXP'!$B$10:$B$32,$A82,'OTH EXP'!H$10:H$32)","v":0},{"$f":"SUMIF('OTH EXP'!$B$10:$B$32,$A82,'OTH EXP'!I$10:I$32)","v":0},{"$f":"SUMIF('OTH EXP'!$B$10:$B$32,$A82,'OTH EXP'!J$10:J$32)","v":0},{"$f":"SUMIF('OTH EXP'!$B$10:$B$32,$A82,'OTH EXP'!K$10:K$32)","v":0},0,0,0,0,0,0]
["ICEMoving/Relocation","Moving/Relocation",-49,{"$f":"SUMIF('OTH EXP'!$B$10:$B$32,$A83,'OTH EXP'!G$10:G$32)","v":0},{"$f":"SUMIF('OTH EXP'!$B$10:$B$32,$A83,'OTH EXP'!H$10:H$32)","v":0},{"$f":"SUMIF('OTH EXP'!$B$10:$B$32,$A83,'OTH EXP'!I$10:I$32)","v":0},{"$f":"SUMIF('OTH EXP'!$B$10:$B$32,$A83,'OTH EXP'!J$10:J$32)","v":0},{"$f":"SUMIF('OTH EXP'!$B$10:$B$32,$A83,'OTH EXP'!K$10:K$32)","v":0},0,0,0,0,0,0]
["ICEOther","Other",-50,{"$f":"SUMIF('OTH EXP'!$B$10:$B$32,$A84,'OTH EXP'!G$10:G$32)","v":0},{"$f":"SUMIF('OTH EXP'!$B$10:$B$32,$A84,'OTH EXP'!H$10:H$32)","v":0},{"$f":"SUMIF('OTH EXP'!$B$10:$B$32,$A84,'OTH EXP'!I$10:I$32)","v":0},{"$f":"SUMIF('OTH EXP'!$B$10:$B$32,$A84,'OTH EXP'!J$10:J$32)","v":0},{"$f":"SUMIF('OTH EXP'!$B$10:$B$32,$A84,'OTH EXP'!K$10:K$32)","v":0},0,0,0,0,0,0]
[null,"Total Costs",null,{"$f":"SUM(D69:D84)","v":0},{"$f":"SUM(E69:E84)","v":0},{"$f":"SUM(F69:F84)","v":0},{"$f":"SUM(G69:G84)","v":0},{"$f":"SUM(H69:H84)","v":0},0,0,0,0,0,0]
[null,null,null,null,null,null,null,null,null,null,null,null,null,{"$f":"N68+N85","v":0}]
[null,"Impact",null,{"$f":"D68-D85","v":0},{"$f":"E68-E85","v":0},{"$f":"F68-F85","v":0},{"$f":"G68-G85","v":0},{"$f":"H68-H85","v":0},null,null,null,null,null,{"$f":"N68+N85","v":0}]
[null,null,null,null,null,null,null,null,null,null,null,null,null,{"$f":"N68+N85","v":0}]
[null,"ACH",null,null,null,null,null,null,null,null,null,null,null,{"$f":"N103+N120","v":0}]
[null,"Incremental Budget Impact",null,null,null,null,null,null,null,null,null,null,null,{"$f":"N103+N120","v":0}]
[null,null,null,"Year 1","Year 2","Year 3","Year 4","Year 5",null,null,null,null,null,{"$f":"N103+N120","v":0}]
[{"$f":"\"ACH\"&B92","v":"ACHClinical Pro Fees"},"Clinical Pro Fees",{"$f":"C84-1","v":-51},{"$f":"SUMIF('CLIN REV'!$A$13:$A$211,$A92,'CLIN REV'!D$13:D$211)","v":0},{"$f":"SUMIF('CLIN REV'!$A$13:$A$211,$A92,'CLIN REV'!E$13:E$211)","v":0},{"$f":"SUMIF('CLIN REV'!$A$13:$A$211,$A92,'CLIN REV'!F$13:F$211)","v":0},{"$f":"SUMIF('CLIN REV'!$A$13:$A$211,$A92,'CLIN REV'!G$13:G$211)","v":0},{"$f":"SUMIF('CLIN REV'!$A$13:$A$211,$A92,'CLIN REV'!H$13:H$211)","v":0},{"$f":"IF(D92=0,0,1)","v":0},{"$f":"IF(E92=0,0,1)","v":0},{"$f":"IF(F92=0,0,1)","v":0},{"$f":"IF(G92=0,0,1)","v":0},{"$f":"IF(H92=0,0,1)","v":0},{"$f":"SUM(I92:M92)","v":0}]
[{"$f":"\"ACH\"&B93","v":"ACHClinical Tech Fees"},"Clinical Tech Fees",{"$f":"C92-1","v":-52},{"$f":"SUMIF('CLIN REV'!$A$13:$A$211,$A93,'CLIN REV'!D$13:D$211)","v":0},{"$f":"SUMIF('CLIN REV'!$A$13:$A$211,$A93,'CLIN REV'!E$13:E$211)","v":0},{"$f":"SUMIF('CLIN REV'!$A$13:$A$211,$A93,'CLIN REV'!F$13:F$211)","v":0},{"$f":"SUMIF('CLIN REV'!$A$13:$A$211,$A93,'CLIN REV'!G$13:G$211)","v":0},{"$f":"SUMIF('CLIN REV'!$A$13:$A$211,$A93,'CLIN REV'!H$13:H$211)","v":0},{"$f":"IF(D93=0,0,1)","v":0},0,0,0,0,{"$f":"SUM(I93:M93)","v":0}]
[{"$f":"\"COM\"&B94","v":"COMClinical Down Stream"},"Clinical Down Stream",-53,{"$f":"SUMIF('CLIN REV'!$A$13:$A$211,$A94,'CLIN REV'!D$13:D$211)","v":0},{"$f":"SUMIF('CLIN REV'!$A$13:$A$211,$A94,'CLIN REV'!E$13:E$211)","v":0},{"$f":"SUMIF('CLIN REV'!$A$13:$A$211,$A94,'CLIN REV'!F$13:F$211)","v":0},{"$f":"SUMIF('CLIN REV'!$A$13:$A$211,$A94,'CLIN REV'!G$13:G$211)","v":0},{"$f":"SUMIF('CLIN REV'!$A$13:$A$211,$A94,'CLIN REV'!H$13:H$211)","v":0},0,0,0,0,0,0]
["ACHEnhanced Medicaid","Enhanced Medicaid",-54,{"$f":"SUMIF('OTH REV'!$A$10:$A$43,$A95,'OTH REV'!I$10:I$43)","v":0},{"$f":"SUMIF('OTH REV'!$A$10:$A$43,$A95,'OTH REV'!J$10:J$43)","v":0},{"$f":"SUMIF('OTH REV'!$A$10:$A$43,$A95,'OTH REV'!K$10:K$43)","v":0},{"$f":"SUMIF('OTH REV'!$A$10:$A$43,$A95,'OTH REV'!L$10:L$43)","v":0},{"$f":"SUMIF('OTH REV'!$A$10:$A$43,$A95,'OTH REV'!M$10:M$43)","v":0},0,0,0,0,0,0]
["ACHBudget","Budget",-55,{"$f":"SUMIF('OTH REV'!$A$10:$A$43,$A96,'OTH REV'!I$10:I$43)","v":0},{"$f":"SUMIF('OTH REV'!$A$10:$A$43,$A96,'OTH REV'!J$10:J$43)","v":0},{"$f":"SUMIF('OTH REV'!$A$10:$A$43,$A96,'OTH REV'!K$10:K$43)","v":0},{"$f":"SUMIF('OTH REV'!$A$10:$A$43,$A96,'OTH REV'!L$10:L$43)","v":0},{"$f":"SUMIF('OTH REV'!$A$10:$A$43,$A96,'OTH REV'!M$10:M$43)","v":0},0,0,0,0,0,0]
["ACHDean's Commitment","Dean's Commitment",-56,{"$f":"SUMIF('OTH REV'!$A$10:$A$43,$A97,'OTH REV'!I$10:I$43)","v":0},{"$f":"SUMIF('OTH REV'!$A$10:$A$43,$A97,'OTH REV'!J$10:J$43)","v":0},{"$f":"SUMIF('OTH REV'!$A$10:$A$43,$A97,'OTH REV'!K$10:K$43)","v":0},{"$f":"SUMIF('OTH REV'!$A$10:$A$43,$A97,'OTH REV'!L$10:L$43)","v":0},{"$f":"SUMIF('OTH REV'!$A$10:$A$43,$A97,'OTH REV'!M$10:M$43)","v":0},0,0,0,0,0,0]
["ACHGrant","Grant",-57,{"$f":"SUMIF('OTH REV'!$A$10:$A$43,$A98,'OTH REV'!I$10:I$43)","v":0},{"$f":"SUMIF('OTH REV'!$A$10:$A$43,$A98,'OTH REV'!J$10:J$43)","v":0},{"$f":"SUMIF('OTH REV'!$A$10:$A$43,$A98,'OTH REV'!K$10:K$43)","v":0},{"$f":"SUMIF('OTH REV'!$A$10:$A$43,$A98,'OTH REV'!L$10:L$43)","v":0},{"$f":"SUMIF('OTH REV'!$A$10:$A$43,$A98,'OTH REV'!M$10:M$43)","v":0},0,0,0,0,0,0]
["ACHContract","Contract",-58,{"$f":"SUMIF('OTH REV'!$A$10:$A$43,$A99,'OTH REV'!I$10:I$43)","v":0},{"$f":"SUMIF('OTH REV'!$A$10:$A$43,$A99,'OTH REV'!J$10:J$43)","v":0},{"$f":"SUMIF('OTH REV'!$A$10:$A$43,$A99,'OTH REV'!K$10:K$43)","v":0},{"$f":"SUMIF('OTH REV'!$A$10:$A$43,$A99,'OTH REV'!L$10:L$43)","v":0},{"$f":"SUMIF('OTH REV'!$A$10:$A$43,$A99,'OTH REV'!M$10:M$43)","v":0},0,0,0,0,0,0]
["ACHGift","Gift",-59,{"$f":"SUMIF('OTH REV'!$A$10:$A$43,$A100,'OTH REV'!I$10:I$43)","v":0},{"$f":"SUMIF('OTH REV'!$A$10:$A$43,$A100,'OTH REV'!J$10:J$43)","v":0},{"$f":"SUMIF('OTH REV'!$A$10:$A$43,$A100,'OTH REV'!K$10:K$43)","v":0},{"$f":"SUMIF('OTH REV'!$A$10:$A$43,$A100,'OTH REV'!L$10:L$43)","v":0},{"$f":"SUMIF('OTH REV'!$A$10:$A$43,$A100,'OTH REV'!M$10:M$43)","v":0},0,0,0,0,0,0]
["ACHFoundation","Foundation",-60,{"$f":"SUMIF('OTH REV'!$A$10:$A$43,$A101,'OTH REV'!I$10:I$43)","v":0},{"$f":"SUMIF('OTH REV'!$A$10:$A$43,$A101,'OTH REV'!J$10:J$43)","v":0},{"$f":"SUMIF('OTH REV'!$A$10:$A$43,$A101,'OTH REV'!K$10:K$43)","v":0},{"$f":"SUMIF('OTH REV'!$A$10:$A$43,$A101,'OTH REV'!L$10:L$43)","v":0},{"$f":"SUMIF('OTH REV'!$A$10:$A$43,$A101,'OTH REV'!M$10:M$43)","v":0},0,0,0,0,0,0]
["ACHOther","Other",-61,{"$f":"SUMIF('OTH REV'!$A$10:$A$43,$A102,'OTH REV'!I$10:I$43)","v":0},{"$f":"SUMIF('OTH REV'!$A$10:$A$43,$A102,'OTH REV'!J$10:J$43)","v":0},{"$f":"SUMIF('OTH REV'!$A$10:$A$43,$A102,'OTH REV'!K$10:K$43)","v":0},{"$f":"SUMIF('OTH REV'!$A$10:$A$43,$A102,'OTH REV'!L$10:L$43)","v":0},{"$f":"SUMIF('OTH REV'!$A$10:$A$43,$A102,'OTH REV'!M$10:M$43)","v":0},0,0,0,0,0,0]
[null,"Total Resources",null,{"$f":"SUM(D92:D102)","v":0},{"$f":"SUM(E92:E102)","v":0},{"$f":"SUM(F92:F102)","v":0},{"$f":"SUM(G92:G102)","v":0},{"$f":"SUM(H92:H102)","v":0},0,0,0,0,0,0]
[null,null,null,null,null,null,null,null,null,null,null,null,null,{"$f":"SUM(I103:M103)","v":0}]
["ACH","Salary",{"$f":"C102-1","v":-62},{"$f":"SUMIF(ASSIGN!$I$9:$I$40,$A105,ASSIGN!M$9:M$40)*COMP!I$70","v":0},{"$f":"SUMIF(ASSIGN!$I$9:$I$40,$A105,ASSIGN!N$9:N$40)*COMP!J$70","v":0},{"$f":"SUMIF(ASSIGN!$I$9:$I$40,$A105,ASSIGN!O$9:O$40)*COMP!K$70","v":0},{"$f":"SUMIF(ASSIGN!$I$9:$I$40,$A105,ASSIGN!P$9:P$40)*COMP!L$70","v":0},{"$f":"SUMIF(ASSIGN!$I$9:$I$40,$A105,ASSIGN!Q$9:Q$40)*COMP!M$70","v":0},{"$f":"IF(D105=0,0,1)","v":0},0,0,0,0,{"$f":"SUM(I105:M105)","v":0}]
["ACH","Incentive",{"$f":"C105-1","v":-63},{"$f":"SUMIF(COMP!$F$36:$F$39,$A106,COMP!J$36:J$39)","v":0},{"$f":"SUMIF(COMP!$F$36:$F$39,$A106,COMP!K$36:K$39)","v":0},{"$f":"SUMIF(COMP!$F$36:$F$39,$A106,COMP!L$36:L$39)","v":0},{"$f":"SUMIF(COMP!$F$36:$F$39,$A106,COMP!M$36:M$39)","v":0},{"$f":"SUMIF(COMP!$F$36:$F$39,$A106,COMP!N$36:N$39)","v":0},0,0,0,0,0,0]
["ACH","Fringe",{"$f":"C106-1","v":-64},{"$f":"SUMIF(ASSIGN!$I$9:$I$40,$A105,ASSIGN!M$9:M$40)*COMP!I$76+SUMIF(COMP!$F$36:$F$39,$A107,COMP!O$36:O$39)","v":0},{"$f":"SUMIF(ASSIGN!$I$9:$I$40,$A105,ASSIGN!N$9:N$40)*COMP!J$76+SUMIF(COMP!$F$36:$F$39,$A107,COMP!P$36:P$39)","v":0},{"$f":"SUMIF(ASSIGN!$I$9:$I$40,$A105,ASSIGN!O$9:O$40)*COMP!K$76+SUMIF(COMP!$F$36:$F$39,$A107,COMP!Q$36:Q$39)","v":0},{"$f":"SUMIF(ASSIGN!$I$9:$I$40,$A105,ASSIGN!P$9:P$40)*COMP!L$76+SUMIF(COMP!$F$36:$F$39,$A107,COMP!R$36:R$39)","v":0},{"$f":"SUMIF(ASSIGN!$I$9:$I$40,$A105,ASSIGN!Q$9:Q$40)*COMP!M$76+SUMIF(COMP!$F$36:$F$39,$A107,COMP!S$36:S$39)","v":0},0,0,0,0,0,0]
[null,null,null,null,null,null,null,null,0,0,0,0,0,0]
[{"$f":"\"ACH\"&B109","v":"ACHExtenders"},"Extenders",{"$f":"C107-1","v":-65},{"$f":"SUMIF('OTH EXP'!$B$10:$B$32,$A109,'OTH EXP'!G$10:G$32)","v":0},{"$f":"SUMIF('OTH EXP'!$B$10:$B$32,$A109,'OTH EXP'!H$10:H$32)","v":0},{"$f":"SUMIF('OTH EXP'!$B$10:$B$32,$A109,'OTH EXP'!I$10:I$32)","v":0},{"$f":"SUMIF('OTH EXP'!$B$10:$B$32,$A109,'OTH EXP'!J$10:J$32)","v":0},{"$f":"SUMIF('OTH EXP'!$B$10:$B$32,$A109,'OTH EXP'!K$10:K$32)","v":0},0,0,0,0,0,0]
[{"$f":"\"ACH\"&B110","v":"ACHStaff"},"Staff",{"$f":"C109-1","v":-66},{"$f":"SUMIF('OTH EXP'!$B$10:$B$32,$A110,'OTH EXP'!G$10:G$32)","v":0},{"$f":"SUMIF('OTH EXP'!$B$10:$B$32,$A110,'OTH EXP'!H$10:H$32)","v":0},{"$f":"SUMIF('OTH EXP'!$B$10:$B$32,$A110,'OTH EXP'!I$10:I$32)","v":0},{"$f":"SUMIF('OTH EXP'!$B$10:$B$32,$A110,'OTH EXP'!J$10:J$32)","v":0},{"$f":"SUMIF('OTH EXP'!$B$10:$B$32,$A110,'OTH EXP'!K$10:K$32)","v":0},0,0,0,0,0,0]
["ACHComputer","Computer",{"$f":"C110-1","v":-67},{"$f":"SUMIF('OTH EXP'!$B$10:$B$32,$A111,'OTH EXP'!G$10:G$32)","v":0},{"$f":"SUMIF('OTH EXP'!$B$10:$B$32,$A111,'OTH EXP'!H$10:H$32)","v":0},{"$f":"SUMIF('OTH EXP'!$B$10:$B$32,$A111,'OTH EXP'!I$10:I$32)","v":0},{"$f":"SUMIF('OTH EXP'!$B$10:$B$32,$A111,'OTH EXP'!J$10:J$32)","v":0},{"$f":"SUMIF('OTH EXP'!$B$10:$B$32,$A111,'OTH EXP'!K$10:K$32)","v":0},0,0,0,0,0,0]
["ACHEducational Funds","Educational Funds",{"$f":"C111-1","v":-68},{"$f":"SUMIF('OTH EXP'!$B$10:$B$32,$A112,'OTH EXP'!G$10:G$32)","v":0},{"$f":"SUMIF('OTH EXP'!$B$10:$B$32,$A112,'OTH EXP'!H$10:H$32)","v":0},{"$f":"SUMIF('OTH EXP'!$B$10:$B$32,$A112,'OTH EXP'!I$10:I$32)","v":0},{"$f":"SUMIF('OTH EXP'!$B$10:$B$32,$A112,'OTH EXP'!J$10:J$32)","v":0},{"$f":"SUMIF('OTH EXP'!$B$10:$B$32,$A112,'OTH EXP'!K$10:K$32)","v":0},0,0,0,0,0,0]
["ACHEquipment","Equipment",{"$f":"C112-1","v":-69},{"$f":"SUMIF('OTH EXP'!$B$10:$B$32,$A113,'OTH EXP'!G$10:G$32)","v":0},{"$f":"SUMIF('OTH EXP'!$B$10:$B$32,$A113,'OTH EXP'!H$10:H$32)","v":0},{"$f":"SUMIF('OTH EXP'!$B$10:$B$32,$A113,'OTH EXP'!I$10:I$32)","v":0},{"$f":"SUMIF('OTH EXP'!$B$10:$B$32,$A113,'OTH EXP'!J$10:J$32)","v":0},{"$f":"SUMIF('OTH EXP'!$B$10:$B$32,$A113,'OTH EXP'!K$10:K$32)","v":0},0,0,0,0,0,0]
["ACHConstruction","Construction",-70,{"$f":"SUMIF('OTH EXP'!$B$10:$B$32,$A114,'OTH EXP'!G$10:G$32)","v":0},{"$f":"SUMIF('OTH EXP'!$B$10:$B$32,$A114,'OTH EXP'!H$10:H$32)","v":0},{"$f":"SUMIF('OTH EXP'!$B$10:$B$32,$A114,'OTH EXP'!I$10:I$32)","v":0},{"$f":"SUMIF('OTH EXP'!$B$10:$B$32,$A114,'OTH EXP'!J$10:J$32)","v":0},{"$f":"SUMIF('OTH EXP'!$B$10:$B$32,$A114,'OTH EXP'!K$10:K$32)","v":0},0,0,0,0,0,0]
["ACHFurniture","Furniture",-71,{"$f":"SUMIF('OTH EXP'!$B$10:$B$32,$A115,'OTH EXP'!G$10:G$32)","v":0},{"$f":"SUMIF('OTH EXP'!$B$10:$B$32,$A115,'OTH EXP'!H$10:H$32)","v":0},{"$f":"SUMIF('OTH EXP'!$B$10:$B$32,$A115,'OTH EXP'!I$10:I$32)","v":0},{"$f":"SUMIF('OTH EXP'!$B$10:$B$32,$A115,'OTH EXP'!J$10:J$32)","v":0},{"$f":"SUMIF('OTH EXP'!$B$10:$B$32,$A115,'OTH EXP'!K$10:K$32)","v":0},0,0,0,0,0,0]
["ACHGeneral M&O","General M&O",-72,{"$f":"SUMIF('OTH EXP'!$B$10:$B$32,$A116,'OTH EXP'!G$10:G$32)","v":0},{"$f":"SUMIF('OTH EXP'!$B$10:$B$32,$A116,'OTH EXP'!H$10:H$32)","v":0},{"$f":"SUMIF('OTH EXP'!$B$10:$B$32,$A116,'OTH EXP'!I$10:I$32)","v":0},{"$f":"SUMIF('OTH EXP'!$B$10:$B$32,$A116,'OTH EXP'!J$10:J$32)","v":0},{"$f":"SUMIF('OTH EXP'!$B$10:$B$32,$A116,'OTH EXP'!K$10:K$32)","v":0},0,0,0,0,0,0]
["ACHMalpractice","Malpractice",-73,{"$f":"SUMIF('OTH EXP'!$B$10:$B$32,$A117,'OTH EXP'!G$10:G$32)","v":0},{"$f":"SUMIF('OTH EXP'!$B$10:$B$32,$A117,'OTH EXP'!H$10:H$32)","v":0},{"$f":"SUMIF('OTH EXP'!$B$10:$B$32,$A117,'OTH EXP'!I$10:I$32)","v":0},{"$f":"SUMIF('OTH EXP'!$B$10:$B$32,$A117,'OTH EXP'!J$10:J$32)","v":0},{"$f":"SUMIF('OTH EXP'!$B$10:$B$32,$A117,'OTH EXP'!K$10:K$32)","v":0},0,0,0,0,0,0]
["ACHMoving/Relocation","Moving/Relocation",-74,{"$f":"SUMIF('OTH EXP'!$B$10:$B$32,$A118,'OTH EXP'!G$10:G$32)","v":0},{"$f":"SUMIF('OTH EXP'!$B$10:$B$32,$A118,'OTH EXP'!H$10:H$32)","v":0},{"$f":"SUMIF('OTH EXP'!$B$10:$B$32,$A118,'OTH EXP'!I$10:I$32)","v":0},{"$f":"SUMIF('OTH EXP'!$B$10:$B$32,$A118,'OTH EXP'!J$10:J$32)","v":0},{"$f":"SUMIF('OTH EXP'!$B$10:$B$32,$A118,'OTH EXP'!K$10:K$32)","v":0},0,0,0,0,0,0]
["ACHOther","Other",-75,{"$f":"SUMIF('OTH EXP'!$B$10:$B$32,$A119,'OTH EXP'!G$10:G$32)","v":0},{"$f":"SUMIF('OTH EXP'!$B$10:$B$32,$A119,'OTH EXP'!H$10:H$32)","v":0},{"$f":"SUMIF('OTH EXP'!$B$10:$B$32,$A119,'OTH EXP'!I$10:I$32)","v":0},{"$f":"SUMIF('OTH EXP'!$B$10:$B$32,$A119,'OTH EXP'!J$10:J$32)","v":0},{"$f":"SUMIF('OTH EXP'!$B$10:$B$32,$A119,'OTH EXP'!K$10:K$32)","v":0},0,0,0,0,0,0]
[null,"Total Costs",null,{"$f":"SUM(D105:D119)","v":0},{"$f":"SUM(E105:E119)","v":0},{"$f":"SUM(F105:F119)","v":0},{"$f":"SUM(G105:G119)","v":0},{"$f":"SUM(H105:H119)","v":0},0,0,0,0,0,0]
[null,null,null,null,null,null,null,null,null,null,null,null,null,{"$f":"N103+N120","v":0}]
[null,"Impact",null,{"$f":"D103-D120","v":0},{"$f":"E103-E120","v":0},{"$f":"F103-F120","v":0},{"$f":"G103-G120","v":0},{"$f":"H103-H120","v":0},null,null,null,null,null,{"$f":"N103+N120","v":0}]
[null,null,null,null,null,null,null,null,null,null,null,null,null,{"$f":"N103+N120","v":0}]
[null,"INSTITUTE",null,null,null,null,null,null,null,null,null,null,null,{"$f":"N138+N155","v":0}]
[null,"Incremental Budget Impact",null,null,null,null,null,null,null,null,null,null,null,{"$f":"N138+N155","v":0}]
[null,null,null,"Year 1","Year 2","Year 3","Year 4","Year 5",null,null,null,null,null,{"$f":"N138+N155","v":0}]
[{"$f":"\"INST\"&B127","v":"INSTClinical Pro Fees"},"Clinical Pro Fees",{"$f":"C119-1","v":-76},{"$f":"SUMIF('CLIN REV'!$A$13:$A$211,$A127,'CLIN REV'!D$13:D$211)","v":0},{"$f":"SUMIF('CLIN REV'!$A$13:$A$211,$A127,'CLIN REV'!E$13:E$211)","v":0},{"$f":"SUMIF('CLIN REV'!$A$13:$A$211,$A127,'CLIN REV'!F$13:F$211)","v":0},{"$f":"SUMIF('CLIN REV'!$A$13:$A$211,$A127,'CLIN REV'!G$13:G$211)","v":0},{"$f":"SUMIF('CLIN REV'!$A$13:$A$211,$A127,'CLIN REV'!H$13:H$211)","v":0},{"$f":"IF(D127=0,0,1)","v":0},{"$f":"IF(E127=0,0,1)","v":0},{"$f":"IF(F127=0,0,1)","v":0},{"$f":"IF(G127=0,0,1)","v":0},{"$f":"IF(H127=0,0,1)","v":0},{"$f":"SUM(I127:M127)","v":0}]
[{"$f":"\"INST\"&B128","v":"INSTClinical Tech Fees"},"Clinical Tech Fees",{"$f":"C127-1","v":-77},{"$f":"SUMIF('CLIN REV'!$A$13:$A$211,$A128,'CLIN REV'!D$13:D$211)","v":0},{"$f":"SUMIF('CLIN REV'!$A$13:$A$211,$A128,'CLIN REV'!E$13:E$211)","v":0},{"$f":"SUMIF('CLIN REV'!$A$13:$A$211,$A128,'CLIN REV'!F$13:F$211)","v":0},{"$f":"SUMIF('CLIN REV'!$A$13:$A$211,$A128,'CLIN REV'!G$13:G$211)","v":0},{"$f":"SUMIF('CLIN REV'!$A$13:$A$211,$A128,'CLIN REV'!H$13:H$211)","v":0},{"$f":"IF(D128=0,0,1)","v":0},0,0,0,0,{"$f":"SUM(I128:M128)","v":0}]
[{"$f":"\"COM\"&B129","v":"COMClinical Down Stream"},"Clinical Down Stream",-78,{"$f":"SUMIF('CLIN REV'!$A$13:$A$211,$A129,'CLIN REV'!D$13:D$211)","v":0},{"$f":"SUMIF('CLIN REV'!$A$13:$A$211,$A129,'CLIN REV'!E$13:E$211)","v":0},{"$f":"SUMIF('CLIN REV'!$A$13:$A$211,$A129,'CLIN REV'!F$13:F$211)","v":0},{"$f":"SUMIF('CLIN REV'!$A$13:$A$211,$A129,'CLIN REV'!G$13:G$211)","v":0},{"$f":"SUMIF('CLIN REV'!$A$13:$A$211,$A129,'CLIN REV'!H$13:H$211)","v":0},0,0,0,0,0,0]
["INSTEnhanced Medicaid","Enhanced Medicaid",-79,{"$f":"SUMIF('OTH REV'!$A$10:$A$43,$A130,'OTH REV'!I$10:I$43)","v":0},{"$f":"SUMIF('OTH REV'!$A$10:$A$43,$A130,'OTH REV'!J$10:J$43)","v":0},{"$f":"SUMIF('OTH REV'!$A$10:$A$43,$A130,'OTH REV'!K$10:K$43)","v":0},{"$f":"SUMIF('OTH REV'!$A$10:$A$43,$A130,'OTH REV'!L$10:L$43)","v":0},{"$f":"SUMIF('OTH REV'!$A$10:$A$43,$A130,'OTH REV'!M$10:M$43)","v":0},0,0,0,0,0,0]
["INSTBudget","Budget",-80,{"$f":"SUMIF('OTH REV'!$A$10:$A$43,$A131,'OTH REV'!I$10:I$43)","v":0},{"$f":"SUMIF('OTH REV'!$A$10:$A$43,$A131,'OTH REV'!J$10:J$43)","v":0},{"$f":"SUMIF('OTH REV'!$A$10:$A$43,$A131,'OTH REV'!K$10:K$43)","v":0},{"$f":"SUMIF('OTH REV'!$A$10:$A$43,$A131,'OTH REV'!L$10:L$43)","v":0},{"$f":"SUMIF('OTH REV'!$A$10:$A$43,$A131,'OTH REV'!M$10:M$43)","v":0},0,0,0,0,0,0]
["INSTDean's Commitment","Dean's Commitment",-81,{"$f":"SUMIF('OTH REV'!$A$10:$A$43,$A132,'OTH REV'!I$10:I$43)","v":0},{"$f":"SUMIF('OTH REV'!$A$10:$A$43,$A132,'OTH REV'!J$10:J$43)","v":0},{"$f":"SUMIF('OTH REV'!$A$10:$A$43,$A132,'OTH REV'!K$10:K$43)","v":0},{"$f":"SUMIF('OTH REV'!$A$10:$A$43,$A132,'OTH REV'!L$10:L$43)","v":0},{"$f":"SUMIF('OTH REV'!$A$10:$A$43,$A132,'OTH REV'!M$10:M$43)","v":0},0,0,0,0,0,0]
["INSTGrant","Grant",-82,{"$f":"SUMIF('OTH REV'!$A$10:$A$43,$A133,'OTH REV'!I$10:I$43)","v":0},{"$f":"SUMIF('OTH REV'!$A$10:$A$43,$A133,'OTH REV'!J$10:J$43)","v":0},{"$f":"SUMIF('OTH REV'!$A$10:$A$43,$A133,'OTH REV'!K$10:K$43)","v":0},{"$f":"SUMIF('OTH REV'!$A$10:$A$43,$A133,'OTH REV'!L$10:L$43)","v":0},{"$f":"SUMIF('OTH REV'!$A$10:$A$43,$A133,'OTH REV'!M$10:M$43)","v":0},0,0,0,0,0,0]
["INSTContract","Contract",-83,{"$f":"SUMIF('OTH REV'!$A$10:$A$43,$A134,'OTH REV'!I$10:I$43)","v":0},{"$f":"SUMIF('OTH REV'!$A$10:$A$43,$A134,'OTH REV'!J$10:J$43)","v":0},{"$f":"SUMIF('OTH REV'!$A$10:$A$43,$A134,'OTH REV'!K$10:K$43)","v":0},{"$f":"SUMIF('OTH REV'!$A$10:$A$43,$A134,'OTH REV'!L$10:L$43)","v":0},{"$f":"SUMIF('OTH REV'!$A$10:$A$43,$A134,'OTH REV'!M$10:M$43)","v":0},0,0,0,0,0,0]
["INSTGift","Gift",-84,{"$f":"SUMIF('OTH REV'!$A$10:$A$43,$A135,'OTH REV'!I$10:I$43)","v":0},{"$f":"SUMIF('OTH REV'!$A$10:$A$43,$A135,'OTH REV'!J$10:J$43)","v":0},{"$f":"SUMIF('OTH REV'!$A$10:$A$43,$A135,'OTH REV'!K$10:K$43)","v":0},{"$f":"SUMIF('OTH REV'!$A$10:$A$43,$A135,'OTH REV'!L$10:L$43)","v":0},{"$f":"SUMIF('OTH REV'!$A$10:$A$43,$A135,'OTH REV'!M$10:M$43)","v":0},0,0,0,0,0,0]
["INSTFoundation","Foundation",-85,{"$f":"SUMIF('OTH REV'!$A$10:$A$43,$A136,'OTH REV'!I$10:I$43)","v":0},{"$f":"SUMIF('OTH REV'!$A$10:$A$43,$A136,'OTH REV'!J$10:J$43)","v":0},{"$f":"SUMIF('OTH REV'!$A$10:$A$43,$A136,'OTH REV'!K$10:K$43)","v":0},{"$f":"SUMIF('OTH REV'!$A$10:$A$43,$A136,'OTH REV'!L$10:L$43)","v":0},{"$f":"SUMIF('OTH REV'!$A$10:$A$43,$A136,'OTH REV'!M$10:M$43)","v":0},0,0,0,0,0,0]
["INSTOther","Other",-86,{"$f":"SUMIF('OTH REV'!$A$10:$A$43,$A137,'OTH REV'!I$10:I$43)","v":0},{"$f":"SUMIF('OTH REV'!$A$10:$A$43,$A137,'OTH REV'!J$10:J$43)","v":0},{"$f":"SUMIF('OTH REV'!$A$10:$A$43,$A137,'OTH REV'!K$10:K$43)","v":0},{"$f":"SUMIF('OTH REV'!$A$10:$A$43,$A137,'OTH REV'!L$10:L$43)","v":0},{"$f":"SUMIF('OTH REV'!$A$10:$A$43,$A137,'OTH REV'!M$10:M$43)","v":0},0,0,0,0,0,0]
[null,"Total Resources",null,{"$f":"SUM(D127:D137)","v":0},{"$f":"SUM(E127:E137)","v":0},{"$f":"SUM(F127:F137)","v":0},{"$f":"SUM(G127:G137)","v":0},{"$f":"SUM(H127:H137)","v":0},0,0,0,0,0,0]
[null,null,null,null,null,null,null,null,null,null,null,null,null,{"$f":"SUM(I138:M138)","v":0}]
["INST","Salary",{"$f":"C137-1","v":-87},{"$f":"SUMIF(ASSIGN!$I$9:$I$40,$A140,ASSIGN!M$9:M$40)*COMP!I$70","v":0},{"$f":"SUMIF(ASSIGN!$I$9:$I$40,$A140,ASSIGN!N$9:N$40)*COMP!J$70","v":0},{"$f":"SUMIF(ASSIGN!$I$9:$I$40,$A140,ASSIGN!O$9:O$40)*COMP!K$70","v":0},{"$f":"SUMIF(ASSIGN!$I$9:$I$40,$A140,ASSIGN!P$9:P$40)*COMP!L$70","v":0},{"$f":"SUMIF(ASSIGN!$I$9:$I$40,$A140,ASSIGN!Q$9:Q$40)*COMP!M$70","v":0},{"$f":"IF(D140=0,0,1)","v":0},0,0,0,0,{"$f":"SUM(I140:M140)","v":0}]
["INST","Incentive",{"$f":"C140-1","v":-88},{"$f":"SUMIF(COMP!$F$36:$F$39,$A141,COMP!J$36:J$39)","v":0},{"$f":"SUMIF(COMP!$F$36:$F$39,$A141,COMP!K$36:K$39)","v":0},{"$f":"SUMIF(COMP!$F$36:$F$39,$A141,COMP!L$36:L$39)","v":0},{"$f":"SUMIF(COMP!$F$36:$F$39,$A141,COMP!M$36:M$39)","v":0},{"$f":"SUMIF(COMP!$F$36:$F$39,$A141,COMP!N$36:N$39)","v":0},0,0,0,0,0,0]
["INST","Fringe",{"$f":"C141-1","v":-89},{"$f":"SUMIF(ASSIGN!$I$9:$I$40,$A140,ASSIGN!M$9:M$40)*COMP!I$76+SUMIF(COMP!$F$36:$F$39,$A142,COMP!O$36:O$39)","v":0},{"$f":"SUMIF(ASSIGN!$I$9:$I$40,$A140,ASSIGN!N$9:N$40)*COMP!J$76+SUMIF(COMP!$F$36:$F$39,$A142,COMP!P$36:P$39)","v":0},{"$f":"SUMIF(ASSIGN!$I$9:$I$40,$A140,ASSIGN!O$9:O$40)*COMP!K$76+SUMIF(COMP!$F$36:$F$39,$A142,COMP!Q$36:Q$39)","v":0},{"$f":"SUMIF(ASSIGN!$I$9:$I$40,$A140,ASSIGN!P$9:P$40)*COMP!L$76+SUMIF(COMP!$F$36:$F$39,$A142,COMP!R$36:R$39)","v":0},{"$f":"SUMIF(ASSIGN!$I$9:$I$40,$A140,ASSIGN!Q$9:Q$40)*COMP!M$76+SUMIF(COMP!$F$36:$F$39,$A142,COMP!S$36:S$39)","v":0},0,0,0,0,0,0]
[null,null,null,null,null,null,null,null,0,0,0,0,0,0]
[{"$f":"\"INST\"&B144","v":"INSTExtenders"},"Extenders",{"$f":"C142-1","v":-90},{"$f":"SUMIF('OTH EXP'!$B$10:$B$32,$A144,'OTH EXP'!G$10:G$32)","v":0},{"$f":"SUMIF('OTH EXP'!$B$10:$B$32,$A144,'OTH EXP'!H$10:H$32)","v":0},{"$f":"SUMIF('OTH EXP'!$B$10:$B$32,$A144,'OTH EXP'!I$10:I$32)","v":0},{"$f":"SUMIF('OTH EXP'!$B$10:$B$32,$A144,'OTH EXP'!J$10:J$32)","v":0},{"$f":"SUMIF('OTH EXP'!$B$10:$B$32,$A144,'OTH EXP'!K$10:K$32)","v":0},0,0,0,0,0,0]
[{"$f":"\"INST\"&B145","v":"INSTStaff"},"Staff",{"$f":"C144-1","v":-91},{"$f":"SUMIF('OTH EXP'!$B$10:$B$32,$A145,'OTH EXP'!G$10:G$32)","v":0},{"$f":"SUMIF('OTH EXP'!$B$10:$B$32,$A145,'OTH EXP'!H$10:H$32)","v":0},{"$f":"SUMIF('OTH EXP'!$B$10:$B$32,$A145,'OTH EXP'!I$10:I$32)","v":0},{"$f":"SUMIF('OTH EXP'!$B$10:$B$32,$A145,'OTH EXP'!J$10:J$32)","v":0},{"$f":"SUMIF('OTH EXP'!$B$10:$B$32,$A145,'OTH EXP'!K$10:K$32)","v":0},0,0,0,0,0,0]
["INSTComputer","Computer",{"$f":"C145-1","v":-92},{"$f":"SUMIF('OTH EXP'!$B$10:$B$32,$A146,'OTH EXP'!G$10:G$32)","v":0},{"$f":"SUMIF('OTH EXP'!$B$10:$B$32,$A146,'OTH EXP'!H$10:H$32)","v":0},{"$f":"SUMIF('OTH EXP'!$B$10:$B$32,$A146,'OTH EXP'!I$10:I$32)","v":0},{"$f":"SUMIF('OTH EXP'!$B$10:$B$32,$A146,'OTH EXP'!J$10:J$32)","v":0},{"$f":"SUMIF('OTH EXP'!$B$10:$B$32,$A146,'OTH EXP'!K$10:K$32)","v":0},0,0,0,0,0,0]
["INSTEducational Funds","Educational Funds",{"$f":"C146-1","v":-93},{"$f":"SUMIF('OTH EXP'!$B$10:$B$32,$A147,'OTH EXP'!G$10:G$32)","v":0},{"$f":"SUMIF('OTH EXP'!$B$10:$B$32,$A147,'OTH EXP'!H$10:H$32)","v":0},{"$f":"SUMIF('OTH EXP'!$B$10:$B$32,$A147,'OTH EXP'!I$10:I$32)","v":0},{"$f":"SUMIF('OTH EXP'!$B$10:$B$32,$A147,'OTH EXP'!J$10:J$32)","v":0},{"$f":"SUMIF('OTH EXP'!$B$10:$B$32,$A147,'OTH EXP'!K$10:K$32)","v":0},0,0,0,0,0,0]
["INSTEquipment","Equipment",{"$f":"C147-1","v":-94},{"$f":"SUMIF('OTH EXP'!$B$10:$B$32,$A148,'OTH EXP'!G$10:G$32)","v":0},{"$f":"SUMIF('OTH EXP'!$B$10:$B$32,$A148,'OTH EXP'!H$10:H$32)","v":0},{"$f":"SUMIF('OTH EXP'!$B$10:$B$32,$A148,'OTH EXP'!I$10:I$32)","v":0},{"$f":"SUMIF('OTH EXP'!$B$10:$B$32,$A148,'OTH EXP'!J$10:J$32)","v":0},{"$f":"SUMIF('OTH EXP'!$B$10:$B$32,$A148,'OTH EXP'!K$10:K$32)","v":0},0,0,0,0,0,0]
["INSTConstruction","Construction",-95,{"$f":"SUMIF('OTH EXP'!$B$10:$B$32,$A149,'OTH EXP'!G$10:G$32)","v":0},{"$f":"SUMIF('OTH EXP'!$B$10:$B$32,$A149,'OTH EXP'!H$10:H$32)","v":0},{"$f":"SUMIF('OTH EXP'!$B$10:$B$32,$A149,'OTH EXP'!I$10:I$32)","v":0},{"$f":"SUMIF('OTH EXP'!$B$10:$B$32,$A149,'OTH EXP'!J$10:J$32)","v":0},{"$f":"SUMIF('OTH EXP'!$B$10:$B$32,$A149,'OTH EXP'!K$10:K$32)","v":0},0,0,0,0,0,0]
["INSTFurniture","Furniture",-96,{"$f":"SUMIF('OTH EXP'!$B$10:$B$32,$A150,'OTH EXP'!G$10:G$32)","v":0},{"$f":"SUMIF('OTH EXP'!$B$10:$B$32,$A150,'OTH EXP'!H$10:H$32)","v":0},{"$f":"SUMIF('OTH EXP'!$B$10:$B$32,$A150,'OTH EXP'!I$10:I$32)","v":0},{"$f":"SUMIF('OTH EXP'!$B$10:$B$32,$A150,'OTH EXP'!J$10:J$32)","v":0},{"$f":"SUMIF('OTH EXP'!$B$10:$B$32,$A150,'OTH EXP'!K$10:K$32)","v":0},0,0,0,0,0,0]
["INSTGeneral M&O","General M&O",-97,{"$f":"SUMIF('OTH EXP'!$B$10:$B$32,$A151,'OTH EXP'!G$10:G$32)","v":0},{"$f":"SUMIF('OTH EXP'!$B$10:$B$32,$A151,'OTH EXP'!H$10:H$32)","v":0},{"$f":"SUMIF('OTH EXP'!$B$10:$B$32,$A151,'OTH EXP'!I$10:I$32)","v":0},{"$f":"SUMIF('OTH EXP'!$B$10:$B$32,$A151,'OTH EXP'!J$10:J$32)","v":0},{"$f":"SUMIF('OTH EXP'!$B$10:$B$32,$A151,'OTH EXP'!K$10:K$32)","v":0},0,0,0,0,0,0]
["INSTMalpractice","Malpractice",-98,{"$f":"SUMIF('OTH EXP'!$B$10:$B$32,$A152,'OTH EXP'!G$10:G$32)","v":0},{"$f":"SUMIF('OTH EXP'!$B$10:$B$32,$A152,'OTH EXP'!H$10:H$32)","v":0},{"$f":"SUMIF('OTH EXP'!$B$10:$B$32,$A152,'OTH EXP'!I$10:I$32)","v":0},{"$f":"SUMIF('OTH EXP'!$B$10:$B$32,$A152,'OTH EXP'!J$10:J$32)","v":0},{"$f":"SUMIF('OTH EXP'!$B$10:$B$32,$A152,'OTH EXP'!K$10:K$32)","v":0},0,0,0,0,0,0]
["INSTMoving/Relocation","Moving/Relocation",-99,{"$f":"SUMIF('OTH EXP'!$B$10:$B$32,$A153,'OTH EXP'!G$10:G$32)","v":0},{"$f":"SUMIF('OTH EXP'!$B$10:$B$32,$A153,'OTH EXP'!H$10:H$32)","v":0},{"$f":"SUMIF('OTH EXP'!$B$10:$B$32,$A153,'OTH EXP'!I$10:I$32)","v":0},{"$f":"SUMIF('OTH EXP'!$B$10:$B$32,$A153,'OTH EXP'!J$10:J$32)","v":0},{"$f":"SUMIF('OTH EXP'!$B$10:$B$32,$A153,'OTH EXP'!K$10:K$32)","v":0},0,0,0,0,0,0]
["INSTOther","Other",-100,{"$f":"SUMIF('OTH EXP'!$B$10:$B$32,$A154,'OTH EXP'!G$10:G$32)","v":0},{"$f":"SUMIF('OTH EXP'!$B$10:$B$32,$A154,'OTH EXP'!H$10:H$32)","v":0},{"$f":"SUMIF('OTH EXP'!$B$10:$B$32,$A154,'OTH EXP'!I$10:I$32)","v":0},{"$f":"SUMIF('OTH EXP'!$B$10:$B$32,$A154,'OTH EXP'!J$10:J$32)","v":0},{"$f":"SUMIF('OTH EXP'!$B$10:$B$32,$A154,'OTH EXP'!K$10:K$32)","v":0},0,0,0,0,0,0]
[null,"Total Costs",null,{"$f":"SUM(D140:D154)","v":0},{"$f":"SUM(E140:E154)","v":0},{"$f":"SUM(F140:F154)","v":0},{"$f":"SUM(G140:G154)","v":0},{"$f":"SUM(H140:H154)","v":0},0,0,0,0,0,0]
[null,null,null,null,null,null,null,null,null,null,null,null,null,{"$f":"N138+N155","v":0}]
[null,"Impact",null,{"$f":"D138-D155","v":0},{"$f":"E138-E155","v":0},{"$f":"F138-F155","v":0},{"$f":"G138-G155","v":0},{"$f":"H138-H155","v":0},null,null,null,null,null,{"$f":"N138+N155","v":0}]
[null,null,null,null,null,null,null,null,null,null,null,null,null,{"$f":"N138+N155","v":0}]
[null,"OTHER (Other College's and UAMS Units)",null,null,null,null,null,null,null,null,null,null,null,{"$f":"N173+N190","v":0}]
[null,"Incremental Budget Impact",null,null,null,null,null,null,null,null,null,null,null,{"$f":"N173+N190","v":0}]
[null,null,null,"Year 1","Year 2","Year 3","Year 4","Year 5",null,null,null,null,null,{"$f":"N173+N190","v":0}]
[{"$f":"\"OTHER\"&B162","v":"OTHERClinical Pro Fees"},"Clinical Pro Fees",{"$f":"C154-1","v":-101},{"$f":"SUMIF('CLIN REV'!$A$13:$A$211,$A162,'CLIN REV'!D$13:D$211)","v":0},{"$f":"SUMIF('CLIN REV'!$A$13:$A$211,$A162,'CLIN REV'!E$13:E$211)","v":0},{"$f":"SUMIF('CLIN REV'!$A$13:$A$211,$A162,'CLIN REV'!F$13:F$211)","v":0},{"$f":"SUMIF('CLIN REV'!$A$13:$A$211,$A162,'CLIN REV'!G$13:G$211)","v":0},{"$f":"SUMIF('CLIN REV'!$A$13:$A$211,$A162,'CLIN REV'!H$13:H$211)","v":0},{"$f":"IF(D162=0,0,1)","v":0},{"$f":"IF(E162=0,0,1)","v":0},{"$f":"IF(F162=0,0,1)","v":0},{"$f":"IF(G162=0,0,1)","v":0},{"$f":"IF(H162=0,0,1)","v":0},{"$f":"SUM(I162:M162)","v":0}]
[{"$f":"\"OTHER\"&B163","v":"OTHERClinical Tech Fees"},"Clinical Tech Fees",{"$f":"C162-1","v":-102},{"$f":"SUMIF('CLIN REV'!$A$13:$A$211,$A163,'CLIN REV'!D$13:D$211)","v":0},{"$f":"SUMIF('CLIN REV'!$A$13:$A$211,$A163,'CLIN REV'!E$13:E$211)","v":0},{"$f":"SUMIF('CLIN REV'!$A$13:$A$211,$A163,'CLIN REV'!F$13:F$211)","v":0},{"$f":"SUMIF('CLIN REV'!$A$13:$A$211,$A163,'CLIN REV'!G$13:G$211)","v":0},{"$f":"SUMIF('CLIN REV'!$A$13:$A$211,$A163,'CLIN REV'!H$13:H$211)","v":0},{"$f":"IF(D163=0,0,1)","v":0},0,0,0,0,{"$f":"SUM(I163:M163)","v":0}]
[{"$f":"\"COM\"&B164","v":"COMClinical Down Stream"},"Clinical Down Stream",-103,{"$f":"SUMIF('CLIN REV'!$A$13:$A$211,$A164,'CLIN REV'!D$13:D$211)","v":0},{"$f":"SUMIF('CLIN REV'!$A$13:$A$211,$A164,'CLIN REV'!E$13:E$211)","v":0},{"$f":"SUMIF('CLIN REV'!$A$13:$A$211,$A164,'CLIN REV'!F$13:F$211)","v":0},{"$f":"SUMIF('CLIN REV'!$A$13:$A$211,$A164,'CLIN REV'!G$13:G$211)","v":0},{"$f":"SUMIF('CLIN REV'!$A$13:$A$211,$A164,'CLIN REV'!H$13:H$211)","v":0},0,0,0,0,0,0]
["OTHEREnhanced Medicaid","Enhanced Medicaid",-104,{"$f":"SUMIF('OTH REV'!$A$10:$A$43,$A165,'OTH REV'!I$10:I$43)","v":0},{"$f":"SUMIF('OTH REV'!$A$10:$A$43,$A165,'OTH REV'!J$10:J$43)","v":0},{"$f":"SUMIF('OTH REV'!$A$10:$A$43,$A165,'OTH REV'!K$10:K$43)","v":0},{"$f":"SUMIF('OTH REV'!$A$10:$A$43,$A165,'OTH REV'!L$10:L$43)","v":0},{"$f":"SUMIF('OTH REV'!$A$10:$A$43,$A165,'OTH REV'!M$10:M$43)","v":0},0,0,0,0,0,0]
["OTHERBudget","Budget",-105,{"$f":"SUMIF('OTH REV'!$A$10:$A$43,$A166,'OTH REV'!I$10:I$43)","v":0},{"$f":"SUMIF('OTH REV'!$A$10:$A$43,$A166,'OTH REV'!J$10:J$43)","v":0},{"$f":"SUMIF('OTH REV'!$A$10:$A$43,$A166,'OTH REV'!K$10:K$43)","v":0},{"$f":"SUMIF('OTH REV'!$A$10:$A$43,$A166,'OTH REV'!L$10:L$43)","v":0},{"$f":"SUMIF('OTH REV'!$A$10:$A$43,$A166,'OTH REV'!M$10:M$43)","v":0},0,0,0,0,0,0]
["OTHERDean's Commitment","Dean's Commitment",-106,{"$f":"SUMIF('OTH REV'!$A$10:$A$43,$A167,'OTH REV'!I$10:I$43)","v":0},{"$f":"SUMIF('OTH REV'!$A$10:$A$43,$A167,'OTH REV'!J$10:J$43)","v":0},{"$f":"SUMIF('OTH REV'!$A$10:$A$43,$A167,'OTH REV'!K$10:K$43)","v":0},{"$f":"SUMIF('OTH REV'!$A$10:$A$43,$A167,'OTH REV'!L$10:L$43)","v":0},{"$f":"SUMIF('OTH REV'!$A$10:$A$43,$A167,'OTH REV'!M$10:M$43)","v":0},0,0,0,0,0,0]
["OTHERGrant","Grant",-107,{"$f":"SUMIF('OTH REV'!$A$10:$A$43,$A168,'OTH REV'!I$10:I$43)","v":0},{"$f":"SUMIF('OTH REV'!$A$10:$A$43,$A168,'OTH REV'!J$10:J$43)","v":0},{"$f":"SUMIF('OTH REV'!$A$10:$A$43,$A168,'OTH REV'!K$10:K$43)","v":0},{"$f":"SUMIF('OTH REV'!$A$10:$A$43,$A168,'OTH REV'!L$10:L$43)","v":0},{"$f":"SUMIF('OTH REV'!$A$10:$A$43,$A168,'OTH REV'!M$10:M$43)","v":0},0,0,0,0,0,0]
["OTHERContract","Contract",-108,{"$f":"SUMIF('OTH REV'!$A$10:$A$43,$A169,'OTH REV'!I$10:I$43)","v":0},{"$f":"SUMIF('OTH REV'!$A$10:$A$43,$A169,'OTH REV'!J$10:J$43)","v":0},{"$f":"SUMIF('OTH REV'!$A$10:$A$43,$A169,'OTH REV'!K$10:K$43)","v":0},{"$f":"SUMIF('OTH REV'!$A$10:$A$43,$A169,'OTH REV'!L$10:L$43)","v":0},{"$f":"SUMIF('OTH REV'!$A$10:$A$43,$A169,'OTH REV'!M$10:M$43)","v":0},0,0,0,0,0,0]
["OTHERGift","Gift",-109,{"$f":"SUMIF('OTH REV'!$A$10:$A$43,$A170,'OTH REV'!I$10:I$43)","v":0},{"$f":"SUMIF('OTH REV'!$A$10:$A$43,$A170,'OTH REV'!J$10:J$43)","v":0},{"$f":"SUMIF('OTH REV'!$A$10:$A$43,$A170,'OTH REV'!K$10:K$43)","v":0},{"$f":"SUMIF('OTH REV'!$A$10:$A$43,$A170,'OTH REV'!L$10:L$43)","v":0},{"$f":"SUMIF('OTH REV'!$A$10:$A$43,$A170,'OTH REV'!M$10:M$43)","v":0},0,0,0,0,0,0]
["OTHERFoundation","Foundation",-110,{"$f":"SUMIF('OTH REV'!$A$10:$A$43,$A171,'OTH REV'!I$10:I$43)","v":0},{"$f":"SUMIF('OTH REV'!$A$10:$A$43,$A171,'OTH REV'!J$10:J$43)","v":0},{"$f":"SUMIF('OTH REV'!$A$10:$A$43,$A171,'OTH REV'!K$10:K$43)","v":0},{"$f":"SUMIF('OTH REV'!$A$10:$A$43,$A171,'OTH REV'!L$10:L$43)","v":0},{"$f":"SUMIF('OTH REV'!$A$10:$A$43,$A171,'OTH REV'!M$10:M$43)","v":0},0,0,0,0,0,0]
["OTHEROther","Other",-111,{"$f":"SUMIF('OTH REV'!$A$10:$A$43,$A172,'OTH REV'!I$10:I$43)","v":0},{"$f":"SUMIF('OTH REV'!$A$10:$A$43,$A172,'OTH REV'!J$10:J$43)","v":0},{"$f":"SUMIF('OTH REV'!$A$10:$A$43,$A172,'OTH REV'!K$10:K$43)","v":0},{"$f":"SUMIF('OTH REV'!$A$10:$A$43,$A172,'OTH REV'!L$10:L$43)","v":0},{"$f":"SUMIF('OTH REV'!$A$10:$A$43,$A172,'OTH REV'!M$10:M$43)","v":0},0,0,0,0,0,0]
[null,"Total Resources",null,{"$f":"SUM(D162:D172)","v":0},{"$f":"SUM(E162:E172)","v":0},{"$f":"SUM(F162:F172)","v":0},{"$f":"SUM(G162:G172)","v":0},{"$f":"SUM(H162:H172)","v":0},0,0,0,0,0,0]
[null,null,null,null,null,null,null,null,null,null,null,null,null,{"$f":"SUM(I173:M173)","v":0}]
["OTHER","Salary",{"$f":"C172-1","v":-112},{"$f":"SUMIF(ASSIGN!$I$9:$I$40,$A175,ASSIGN!M$9:M$40)*COMP!I$70","v":0},{"$f":"SUMIF(ASSIGN!$I$9:$I$40,$A175,ASSIGN!N$9:N$40)*COMP!J$70","v":0},{"$f":"SUMIF(ASSIGN!$I$9:$I$40,$A175,ASSIGN!O$9:O$40)*COMP!K$70","v":0},{"$f":"SUMIF(ASSIGN!$I$9:$I$40,$A175,ASSIGN!P$9:P$40)*COMP!L$70","v":0},{"$f":"SUMIF(ASSIGN!$I$9:$I$40,$A175,ASSIGN!Q$9:Q$40)*COMP!M$70","v":0},{"$f":"IF(D175=0,0,1)","v":0},0,0,0,0,{"$f":"SUM(I175:M175)","v":0}]
["OTHER","Incentive",{"$f":"C175-1","v":-113},{"$f":"SUMIF(COMP!$F$36:$F$39,$A176,COMP!J$36:J$39)","v":0},{"$f":"SUMIF(COMP!$F$36:$F$39,$A176,COMP!K$36:K$39)","v":0},{"$f":"SUMIF(COMP!$F$36:$F$39,$A176,COMP!L$36:L$39)","v":0},{"$f":"SUMIF(COMP!$F$36:$F$39,$A176,COMP!M$36:M$39)","v":0},{"$f":"SUMIF(COMP!$F$36:$F$39,$A176,COMP!N$36:N$39)","v":0},0,0,0,0,0,0]
["OTHER","Fringe",{"$f":"C176-1","v":-114},{"$f":"SUMIF(ASSIGN!$I$9:$I$40,$A175,ASSIGN!M$9:M$40)*COMP!I$76+SUMIF(COMP!$F$36:$F$39,$A177,COMP!O$36:O$39)","v":0},{"$f":"SUMIF(ASSIGN!$I$9:$I$40,$A175,ASSIGN!N$9:N$40)*COMP!J$76+SUMIF(COMP!$F$36:$F$39,$A177,COMP!P$36:P$39)","v":0},{"$f":"SUMIF(ASSIGN!$I$9:$I$40,$A175,ASSIGN!O$9:O$40)*COMP!K$76+SUMIF(COMP!$F$36:$F$39,$A177,COMP!Q$36:Q$39)","v":0},{"$f":"SUMIF(ASSIGN!$I$9:$I$40,$A175,ASSIGN!P$9:P$40)*COMP!L$76+SUMIF(COMP!$F$36:$F$39,$A177,COMP!R$36:R$39)","v":0},{"$f":"SUMIF(ASSIGN!$I$9:$I$40,$A175,ASSIGN!Q$9:Q$40)*COMP!M$76+SUMIF(COMP!$F$36:$F$39,$A177,COMP!S$36:S$39)","v":0},0,0,0,0,0,0]
[null,null,null,null,null,null,null,null,0,0,0,0,0,0]
[{"$f":"\"OTHER\"&B179","v":"OTHERExtenders"},"Extenders",{"$f":"C177-1","v":-115},{"$f":"SUMIF('OTH EXP'!$B$10:$B$32,$A179,'OTH EXP'!G$10:G$32)","v":0},{"$f":"SUMIF('OTH EXP'!$B$10:$B$32,$A179,'OTH EXP'!H$10:H$32)","v":0},{"$f":"SUMIF('OTH EXP'!$B$10:$B$32,$A179,'OTH EXP'!I$10:I$32)","v":0},{"$f":"SUMIF('OTH EXP'!$B$10:$B$32,$A179,'OTH EXP'!J$10:J$32)","v":0},{"$f":"SUMIF('OTH EXP'!$B$10:$B$32,$A179,'OTH EXP'!K$10:K$32)","v":0},0,0,0,0,0,0]
[{"$f":"\"OTHER\"&B180","v":"OTHERStaff"},"Staff",{"$f":"C179-1","v":-116},{"$f":"SUMIF('OTH EXP'!$B$10:$B$32,$A180,'OTH EXP'!G$10:G$32)","v":0},{"$f":"SUMIF('OTH EXP'!$B$10:$B$32,$A180,'OTH EXP'!H$10:H$32)","v":0},{"$f":"SUMIF('OTH EXP'!$B$10:$B$32,$A180,'OTH EXP'!I$10:I$32)","v":0},{"$f":"SUMIF('OTH EXP'!$B$10:$B$32,$A180,'OTH EXP'!J$10:J$32)","v":0},{"$f":"SUMIF('OTH EXP'!$B$10:$B$32,$A180,'OTH EXP'!K$10:K$32)","v":0},0,0,0,0,0,0]
["OTHERComputer","Computer",{"$f":"C180-1","v":-117},{"$f":"SUMIF('OTH EXP'!$B$10:$B$32,$A181,'OTH EXP'!G$10:G$32)","v":0},{"$f":"SUMIF('OTH EXP'!$B$10:$B$32,$A181,'OTH EXP'!H$10:H$32)","v":0},{"$f":"SUMIF('OTH EXP'!$B$10:$B$32,$A181,'OTH EXP'!I$10:I$32)","v":0},{"$f":"SUMIF('OTH EXP'!$B$10:$B$32,$A181,'OTH EXP'!J$10:J$32)","v":0},{"$f":"SUMIF('OTH EXP'!$B$10:$B$32,$A181,'OTH EXP'!K$10:K$32)","v":0},0,0,0,0,0,0]
["OTHEREducational Funds","Educational Funds",{"$f":"C181-1","v":-118},{"$f":"SUMIF('OTH EXP'!$B$10:$B$32,$A182,'OTH EXP'!G$10:G$32)","v":0},{"$f":"SUMIF('OTH EXP'!$B$10:$B$32,$A182,'OTH EXP'!H$10:H$32)","v":0},{"$f":"SUMIF('OTH EXP'!$B$10:$B$32,$A182,'OTH EXP'!I$10:I$32)","v":0},{"$f":"SUMIF('OTH EXP'!$B$10:$B$32,$A182,'OTH EXP'!J$10:J$32)","v":0},{"$f":"SUMIF('OTH EXP'!$B$10:$B$32,$A182,'OTH EXP'!K$10:K$32)","v":0},0,0,0,0,0,0]
["OTHEREquipment","Equipment",{"$f":"C182-1","v":-119},{"$f":"SUMIF('OTH EXP'!$B$10:$B$32,$A183,'OTH EXP'!G$10:G$32)","v":0},{"$f":"SUMIF('OTH EXP'!$B$10:$B$32,$A183,'OTH EXP'!H$10:H$32)","v":0},{"$f":"SUMIF('OTH EXP'!$B$10:$B$32,$A183,'OTH EXP'!I$10:I$32)","v":0},{"$f":"SUMIF('OTH EXP'!$B$10:$B$32,$A183,'OTH EXP'!J$10:J$32)","v":0},{"$f":"SUMIF('OTH EXP'!$B$10:$B$32,$A183,'OTH EXP'!K$10:K$32)","v":0},0,0,0,0,0,0]
["OTHERConstruction","Construction",-120,{"$f":"SUMIF('OTH EXP'!$B$10:$B$32,$A184,'OTH EXP'!G$10:G$32)","v":0},{"$f":"SUMIF('OTH EXP'!$B$10:$B$32,$A184,'OTH EXP'!H$10:H$32)","v":0},{"$f":"SUMIF('OTH EXP'!$B$10:$B$32,$A184,'OTH EXP'!I$10:I$32)","v":0},{"$f":"SUMIF('OTH EXP'!$B$10:$B$32,$A184,'OTH EXP'!J$10:J$32)","v":0},{"$f":"SUMIF('OTH EXP'!$B$10:$B$32,$A184,'OTH EXP'!K$10:K$32)","v":0},0,0,0,0,0,0]
["OTHERFurniture","Furniture",-121,{"$f":"SUMIF('OTH EXP'!$B$10:$B$32,$A185,'OTH EXP'!G$10:G$32)","v":0},{"$f":"SUMIF('OTH EXP'!$B$10:$B$32,$A185,'OTH EXP'!H$10:H$32)","v":0},{"$f":"SUMIF('OTH EXP'!$B$10:$B$32,$A185,'OTH EXP'!I$10:I$32)","v":0},{"$f":"SUMIF('OTH EXP'!$B$10:$B$32,$A185,'OTH EXP'!J$10:J$32)","v":0},{"$f":"SUMIF('OTH EXP'!$B$10:$B$32,$A185,'OTH EXP'!K$10:K$32)","v":0},0,0,0,0,0,0]
["OTHERGeneral M&O","General M&O",-122,{"$f":"SUMIF('OTH EXP'!$B$10:$B$32,$A186,'OTH EXP'!G$10:G$32)","v":0},{"$f":"SUMIF('OTH EXP'!$B$10:$B$32,$A186,'OTH EXP'!H$10:H$32)","v":0},{"$f":"SUMIF('OTH EXP'!$B$10:$B$32,$A186,'OTH EXP'!I$10:I$32)","v":0},{"$f":"SUMIF('OTH EXP'!$B$10:$B$32,$A186,'OTH EXP'!J$10:J$32)","v":0},{"$f":"SUMIF('OTH EXP'!$B$10:$B$32,$A186,'OTH EXP'!K$10:K$32)","v":0},0,0,0,0,0,0]
["OTHERMalpractice","Malpractice",-123,{"$f":"SUMIF('OTH EXP'!$B$10:$B$32,$A187,'OTH EXP'!G$10:G$32)","v":0},{"$f":"SUMIF('OTH EXP'!$B$10:$B$32,$A187,'OTH EXP'!H$10:H$32)","v":0},{"$f":"SUMIF('OTH EXP'!$B$10:$B$32,$A187,'OTH EXP'!I$10:I$32)","v":0},{"$f":"SUMIF('OTH EXP'!$B$10:$B$32,$A187,'OTH EXP'!J$10:J$32)","v":0},{"$f":"SUMIF('OTH EXP'!$B$10:$B$32,$A187,'OTH EXP'!K$10:K$32)","v":0},0,0,0,0,0,0]
["OTHERMoving/Relocation","Moving/Relocation",-124,{"$f":"SUMIF('OTH EXP'!$B$10:$B$32,$A188,'OTH EXP'!G$10:G$32)","v":0},{"$f":"SUMIF('OTH EXP'!$B$10:$B$32,$A188,'OTH EXP'!H$10:H$32)","v":0},{"$f":"SUMIF('OTH EXP'!$B$10:$B$32,$A188,'OTH EXP'!I$10:I$32)","v":0},{"$f":"SUMIF('OTH EXP'!$B$10:$B$32,$A188,'OTH EXP'!J$10:J$32)","v":0},{"$f":"SUMIF('OTH EXP'!$B$10:$B$32,$A188,'OTH EXP'!K$10:K$32)","v":0},0,0,0,0,0,0]
["OTHEROther","Other",-125,{"$f":"SUMIF('OTH EXP'!$B$10:$B$32,$A189,'OTH EXP'!G$10:G$32)","v":0},{"$f":"SUMIF('OTH EXP'!$B$10:$B$32,$A189,'OTH EXP'!H$10:H$32)","v":0},{"$f":"SUMIF('OTH EXP'!$B$10:$B$32,$A189,'OTH EXP'!I$10:I$32)","v":0},{"$f":"SUMIF('OTH EXP'!$B$10:$B$32,$A189,'OTH EXP'!J$10:J$32)","v":0},{"$f":"SUMIF('OTH EXP'!$B$10:$B$32,$A189,'OTH EXP'!K$10:K$32)","v":0},0,0,0,0,0,0]
[null,"Total Costs",null,{"$f":"SUM(D175:D189)","v":0},{"$f":"SUM(E175:E189)","v":0},{"$f":"SUM(F175:F189)","v":0},{"$f":"SUM(G175:G189)","v":0},{"$f":"SUM(H175:H189)","v":0},0,0,0,0,0,0]
[null,null,null,null,null,null,null,null,null,null,null,null,null,{"$f":"N173+N190","v":0}]
[null,"Impact",null,{"$f":"D173-D190","v":0},{"$f":"E173-E190","v":0},{"$f":"F173-F190","v":0},{"$f":"G173-G190","v":0},{"$f":"H173-H190","v":0},null,null,null,null,null,{"$f":"N173+N190","v":0}]
[null,null,null,null,null,null,null,null,null,null,null,null,null,{"$f":"N173+N190","v":0}]
[]
[null,"TOTALS ALL SOURCES:"]
[]
[null,"TOTAL INCREMENTAL DETAILS:",null,null,null,null,null,null,{"$f":"(I85+I42)/'CLIN REV'!I45","v":{"$error":"#DIV/0!"}},{"$f":"(J85+J42)/'CLIN REV'!J45","v":{"$error":"#DIV/0!"}},{"$f":"(K85+K42)/'CLIN REV'!K45","v":{"$error":"#DIV/0!"}},{"$f":"(L85+L42)/'CLIN REV'!L45","v":{"$error":"#DIV/0!"}},{"$f":"(M85+M42)/'CLIN REV'!M45","v":{"$error":"#DIV/0!"}},{"$f":"(N85+N42)/'CLIN REV'!N45","v":{"$error":"#DIV/0!"}}]
[null,"TOTAL EXPENSE",null,{"$f":"+D190+D155+D120+D85+D50","v":0},{"$f":"+E190+E155+E120+E85+E50","v":0},{"$f":"+F190+F155+F120+F85+F50","v":0},0,0]
[null,"TOTAL REVENUE",null,{"$f":"D173+D138+D103+D68+D33","v":0},{"$f":"E173+E138+E103+E68+E33","v":0},0,0,{"$f":"H173+H138+H103+H68+H33","v":0},0,0,0,0,0,0]

{"sheet":"FTE SHEET","index":15,"n_rows":11,"n_cols":14,"rows_kept":11,"cut":false,"hidden":false,"merged":[[4,12,4,13],[0,5,1,8],[4,2,4,3],[4,4,4,5],[4,6,4,7],[4,8,4,9],[4,10,4,11]]}
["HIDE",null,null,null,null,"FACULTY FTE SHEET",null,null,null,null,null,null,null,{"$f":"COMP!D16","v":0}]
[null,null,null,null,null,null,null,null,null,"COLLEGE OF MEDICINE - UAMS/ACH",null,null,null,{"$f":"COMP!J9","v":"[select]"}]
[null,null,null,null,null,null,null,null,null,"FACULTY RECRUITMENT BUSINESS PLAN",null,null,null,{"$f":"COMP!J10&\" \"&COMP!J11","v":" "}]
[null,"FTE Assignment Summary"]
[null,"Year 1 Effort","College of Medicine",null,"Integrated Clinical Enterpirise",null,"Arkansas Childrens Hospital",null,"Institutes",null,"Other Units",null,"Total"]
[null,"Administration",{"$f":"ASSIGN!C53","v":0},null,{"$f":"ASSIGN!D53","v":0},null,{"$f":"ASSIGN!E53","v":0},null,{"$f":"ASSIGN!F53","v":0},null,{"$f":"ASSIGN!G53","v":0},null,{"$f":"SUM(C6:K6)","v":0}]
[null,"Research",{"$f":"ASSIGN!C54","v":0},null,{"$f":"ASSIGN!D54","v":0},null,{"$f":"ASSIGN!E54","v":0},null,{"$f":"ASSIGN!F54","v":0},null,{"$f":"ASSIGN!G54","v":0},null,{"$f":"SUM(C7:K7)","v":0}]
[null,"Education",{"$f":"ASSIGN!C55","v":0},null,{"$f":"ASSIGN!D55","v":0},null,{"$f":"ASSIGN!E55","v":0},null,{"$f":"ASSIGN!F55","v":0},null,{"$f":"ASSIGN!G55","v":0},null,0]
[null,"Clinical",{"$f":"ASSIGN!C56","v":0},null,{"$f":"ASSIGN!D56","v":0},null,{"$f":"ASSIGN!E56","v":0},null,{"$f":"ASSIGN!F56","v":0},null,{"$f":"ASSIGN!G56","v":0},null,0]
[null,"VA",{"$f":"ASSIGN!C57","v":0},null,{"$f":"ASSIGN!D57","v":0},null,{"$f":"ASSIGN!E57","v":0},null,{"$f":"ASSIGN!F57","v":0},null,{"$f":"ASSIGN!G57","v":0},null,0]
[null,"Total",{"$f":"SUM(C6:C10)","v":0},null,{"$f":"SUM(E6:E10)","v":0},null,0,null,0,null,0,null,0]

{"sheet":"LOOKUPS","index":16,"n_rows":476,"n_cols":6,"rows_kept":476,"cut":false,"hidden":false,"merged":[]}
[]
["Transaction Type"]
["[select]"]
["Request to Hire"]
[]
[]
[]
[]
[]
[]
[]
["Department"]
["[select]"]
["Anesthesiology"]
["Biochemistry & Molecular Biology"]
["Biomedical Informatics"]
["Biostatistics"]
["Dermatology"]
["Emergency Medicine"]
["Family Medicine"]
["Genetics"]
["Geriatrics"]
["Internal Medicine"]
["Medical Humanities"]
["Microbiology & immunology"]
["Northwest Ark - COM"]
["Neurobiology & Developmental Sciences"]
["Neurology"]
["Neurosurgery"]
["Obstetrics & Gynecology"]
["Ophthalmology"]
["Orthopedics"]
["Otolaryngology"]
["Pathology"]
["Pediatrics"]
["Pharmacology & Toxicology"]
["Physical Medicine & Rehabilitation"]
["Physiology & Biophysics"]
["Psychiatry"]
["Radiation Oncology"]
["Radiology"]
["Surgery"]
["Urology"]
["N/A"]
[]
[]
["Service Line"]
["[select]"]
["Behavioral"]
["Cancer"]
["Cardiovascular"]
["Emergency Medicine"]
["Imaging"]
["Integrated Medicine"]
["Interventional"]
["Lab & Pathology"]
["Medical Specialties"]
["Musculoskeletal"]
["Neurosciences"]
["Nursing"]
["Opthalmology"]
["Primary Care/Population Health"]
["Surgical Specialties"]
["Transplant"]
["Women's Health"]
["ICE Core"]
["N/A"]
[]
["New/Replacement"]
["[select]"]
["New"]
["Replacement"]
[]
[]
["Position Type"]
["[select]"]
["Clinical"]
["Non-Clinical"]
[]
[]
["Tenure"]
["[select]"]
["Tenure"]
["Non-Tenure"]
[]
[]
["Degree"]
["[select]"]
["MD"]
["PhD"]
["Other"]
[]
[]
["Pathway"]
["[select]"]
["Instructor"]
["Assistant"]
["Associate"]
["Professor"]
["Chief"]
["Chair"]
["TBD"]
["Chief/Assistant"]
["Chief/Associate"]
["Chief/Professor"]
[null,null,null,null,"Total FTE:",{"$f":"COMP!D45","v":0}]
["VA8ths","VA Hrs Per 8th","Rolling Total","% of 50 hr week","UAMS FTE","Total FTE"]
[0,0,{"$f":"B108","v":0},{"$f":"C108/50","v":0},{"$f":"1-D108","v":1},{"$f":"$F$106-D108","v":0}]
[1,{"$f":"40/8","v":5},{"$f":"B109","v":5},{"$f":"C109/50","v":0.1},{"$f":"1-D109","v":0.9},{"$f":"$F$106-D109","v":-0.1}]
[2,5,{"$f":"B110+C109","v":10},0.2,0.8,-0.2]
[3,{"$f":"40/8","v":5},15,{"$f":"C111/50","v":0.3},{"$f":"1-D111","v":0.7},-0.3]
[4,5,20,0.4,0.6,-0.4]
[5,5,25,0.5,0.5,-0.5]
[6,5,30,0.6,0.4,-0.6]
[7,5,35,0.7,0.30000000000000004,-0.7]
[8,5,40,0.8,0.19999999999999996,-0.8]
[null,{"$f":"SUM(B108:B116)","v":40}]
[]
[]
[]
[]
["Source"]
[]
["COM"]
["ICE"]
["ACH"]
["INST"]
["OTHER"]
[]
[]
["DURATION"]
[]
["Half Days/Week"]
["Half Months/Year"]
["Days/Year"]
["Weekends/Year"]
["Days/Week"]
["Days/Year"]
["Hours/Day"]
["Hours"]
["Days"]
["Weeks"]
[]
[]
["ADMIN","Assignment","Metric","Mission Category"]
[]
["Department Chair","Internal Leadership Role","Assigned FTE","Administration"]
["Vice Chair","Chair's Discretionary","Assigned FTE","Administration"]
["Division Chief","Chair's Discretionary","Assigned FTE","Administration"]
["ACH Academic","External Admin Funding","Assigned FTE","Administration"]
["Residency Director","Internal Leadership Role","Assigned FTE","Administration"]
["Fellowship Director","Internal Leadership Role","Assigned FTE","Administration"]
["Clerkship Director","Internal Leadership Role","Assigned FTE","Administration"]
["Course Director","Internal Leadership Role","Assigned FTE","Administration"]
[]
["Core Director","Internal Leadership Role","Assigned FTE","Administration"]
["Dept Funded Leadership","Dept Funded","Assigned FTE","Administration"]
["National Assoc/Committees","Dept Funded","Assigned FTE","Administration"]
["Other Leadership","Internal Leadership Role","Assigned FTE","Administration"]
[]
["COM Leadership","Internal Leadership Role","Assigned FTE","Administration"]
["ICE Leadership","Internal Leadership Role","Assigned FTE","Administration"]
["ACH Leadership","External Leadership Role","Assigned FTE","Administration"]
["Other Colleges Leadership","Internal Leadership Role","Assigned FTE","Administration"]
["Campus Leadership","Internal Leadership Role","Assigned FTE","Administration"]
["External Leadership","External Leadership Role","Funded FTE","Administration"]
[]
[]
["RESEARCH","Assignment","Metric","Mission Category"]
[]
["Grant","Externally Funded","Funded FTE","Research"]
["Contract","Externally Funded","Funded FTE","Research"]
["External Clinical Trial","Externally Funded","Funded FTE","Research"]
["Internal Clinical Trial","Internally Funded","Assigned FTE","Research"]
["Commitment","Internally Funded","Assigned FTE","Research"]
["Cap Funding","Internally Funded","Assigned FTE","Research"]
["Cost Share","Internally Funded","Assigned FTE","Research"]
["Dept Funded Research","Dept Funded","Assigned FTE","Research"]
["ACH Academic","Externally Funded","Funded FTE","Research"]
[]
["EDUCATION","Assignment","Metric","Mission Category"]
[]
["M1&M2 Non Clinical Teaching","M1&M2 Non Clinical Teaching","Hours","Education"]
["M3&M4 Non Clinical Teaching","M3&M4 Non Clinical Teaching","Hours","Education"]
["ACH Academic","Other Teaching","Funded FTE","Education"]
["Graduate Student Teaching","Other Teaching","Assigned FTE","Education"]
["Dept Funded Teaching","Dept Funded","Assigned FTE","Education"]
["Other Teaching","Other Teaching","Assigned FTE","Education"]
["External Teaching","Other Teaching","Funded FTE","Education"]
[]
[]
["CLINICAL","Assignment","Metric","Mission Category"]
[]
["Clinical","Patient Care","wRVUs","Clinical"]
["OP Clinic","Patient Care","wRVUs","Clinical"]
["OP Procedure","Patient Care","wRVUs","Clinical"]
["IP Procedure","Patient Care","wRVUs","Clinical"]
["IP Wards","Patient Care","wRVUs","Clinical"]
["IP Consults","Patient Care","wRVUs","Clinical"]
["In House Call","Patient Care","wRVUs","Clinical"]
["Lab Work","Patient Care","wRVUs","Clinical"]
["ED Coverage","Patient Care","wRVUs","Clinical"]
["Film Work","Patient Care","wRVUs","Clinical"]
["Clinical Documentation","Patient Care","wRVUs","Clinical"]
["Clinical Academic Activity","Patient Care","wRVUs","Clinical"]
["Clinical Contract","Non Billing Clinical","Funded FTE","Clinical"]
["Clinical VA","Non Billing Clinical","Funded FTE","Clinical"]
["Clinical Administration","Clinical Administration","Assigned FTE","Clinical"]
[]
[]
["REVENUE","Note: all revenue categorize need to be aligned by cost center for P&L purposes"]
["Budget"]
["No Budget"]
["Clinical Pro Fees"]
["Clinical Do Not Use"]
["Clinical Downstream Rev"]
["Enhanced Medicaid"]
["Grant"]
["Contract"]
["Dean's Commitment"]
["Foundation"]
["Gift"]
["Other"]
[]
[]
[]
["REVENUE","Note: all revenue categorize need to be aligned by cost center for P&L purposes"]
[]
["Budget"]
["No Budget"]
["Grant"]
["Contract"]
["Dean's Commitment"]
["Foundation"]
["Gift"]
["Other"]
[]
[]
[]
[]
[]
["EXPENSE"]
["Immigration"]
["Extenders"]
["Staff"]
["Computer"]
["Educational Funds"]
["Equipment"]
["Construction"]
["Furniture"]
["General M&O"]
["Malpractice"]
["Moving/Relocation"]
["Other"]
[]
["OVERHEAD"]
["COM Overhead"]
["ICE Overhead"]
["ACH Overhead"]
["Institute Overhead"]
["Service Line Overhead"]
["Departmental Overhead"]
[]
[]
[]
["CLINICAL SPACE QUESTION"]
["[select]"]
["Yes"]
["No"]
["N/A"]
[]
[]
["Year"]
["[select]"]
["FY21"]
["FY22"]
["FY23"]
["FY24"]
["FY25"]
["FY26"]
["N/A"]
[]
[]
[]
["RVW period Begin"]
["[select]"]
["July 1"]
["August 1"]
["September 1"]
["October 1"]
["November 1"]
["December 1"]
["January 1"]
["February 1"]
["March 1"]
["April 1"]
["May 1"]
["June 1"]
["N/A"]
[]
["RVW period End"]
["[select]"]
["July - Last day"]
["August  - Last day"]
["September - Last day"]
["October - Last day"]
["November  - Last day",null,"12 months  noted above"]
["December  - Last day"]
["January  - Last day"]
["February  - Last day"]
["March  - Last day"]
["April  - Last day"]
["May  - Last day"]
["June  - Last day"]
["N/A"]
[]
["Fiscal Year"]
["[select]"]
["12 months  noted above"]
["2020"]
["2021"]
["2022"]
["2023"]
["2024"]
["2025"]
["Other described below"]
["N/A"]
[]
["Practice Location"]
["UAMS"]
["UAMS - COM NWA"]
["UAMS - Regional Programs"]
["ACH - LR Location"]
["ACH - NWA"]
["ACH - SWLR"]
["ACH - PB"]
["ACH - Jonesboro"]
["N/A"]
["[Select]"]
[]
["Position Employer"]
["UAMS"]
["ACMG - ACH direct"]
["1099"]
["[Select]"]
[]
["[Select]"]
["Yes"]
["No"]
["N/A"]
[]
["[Select]"]
["0"]
["0.01"]
["0.02"]
["0.03"]
["0.04"]
["0.05"]
["0.06"]
["0.07"]
["0.08"]
["0.09"]
["0.10"]
["0.11"]
["0.12"]
["0.13"]
["0.14"]
["0.15"]
["0.16"]
["0.17"]
["0.18"]
["0.19"]
["0.20"]
["0.21"]
["0.22"]
["0.23"]
["0.24"]
["0.25"]
["0.26"]
["0.27"]
["0.28"]
["0.29"]
["0.30"]
["0.31"]
["0.32"]
["0.33"]
["0.34"]
["0.35"]
["0.36"]
["0.37"]
["0.38"]
["0.39"]
["0.40"]
["0.41"]
["0.42"]
["0.43"]
["0.44"]
["0.45"]
["0.46"]
["0.47"]
["0.48"]
["0.49"]
["0.50"]
["0.51"]
["0.52"]
["0.53"]
["0.54"]
["0.55"]
["0.56"]
["0.57"]
["0.58"]
["0.59"]
["0.60"]
["0.61"]
["0.62"]
["0.63"]
["0.64"]
["0.65"]
["0.66"]
["0.67"]
["0.68"]
["0.69"]
["0.70"]
["0.71"]
["0.72"]
["0.73"]
["0.74"]
["0.75"]
["0.76"]
["0.77"]
["0.78"]
["0.79"]
["0.80"]
["0.81"]
["0.82"]
["0.83"]
["0.84"]
["0.85"]
["0.86"]
["0.87"]
["0.88"]
["0.89"]
["0.90"]
["0.91"]
["0.92"]
["0.93"]
["0.94"]
["0.95"]
["0.96"]
["0.97"]
["0.98"]
["0.99"]
["1.0"]
[]
[]
["[Select]"]
["DHS"]
["ADH"]
["Baptist"]
["St Vincent"]
["Other Private Entity"]
["Other Public Entity"]
["Multiple Sources"]
["N/A"]
[]
[]
[]
[]
[]
[]
[]
["Immigration Status"]
["[Select]"]
["No Expenses - US Citizen"]
["No Expenses  - Not US Citizen"]
["Yes Expenses - See Other Exp Tab"]

{"sheet":"MAL","index":17,"n_rows":75,"n_cols":6,"rows_kept":75,"cut":false,"hidden":false,"merged":[]}
["Updated 9/19/2011"]
[]
["Unique","Dept","Description","ISO Code","Class","Cost"]
["[select]"]
["n/a"]
[{"$f":"B6&\": \"&C6","v":"AHEC: No Surgery"},"AHEC","No Surgery",80420,1,1993]
[{"$f":"B7&\": \"&C7","v":"AHEC: Minor Surgery - No OB"},"AHEC","Minor Surgery - No OB",80423,2,3043]
["AHEC: Minor Surgery - With OB","AHEC","Minor Surgery - With OB",80421,"3B",4203]
["AHEC: Major Surgery - With OB","AHEC","Major Surgery - With OB",80117,7,11954]
["Anesthesiology: Faculty","Anesthesiology","Faculty",80151,2,3043]
["Anesthesiology: CRNA","Anesthesiology","CRNA",null,null,1993]
["Bone Marrow: No Surgery","Bone Marrow","No Surgery",80268,1,1993]
["Bone Marrow: Minor Surgery","Bone Marrow","Minor Surgery",80443,2,3043]
["Bone Marrow: Major Surgery","Bone Marrow","Major Surgery",80422,"3B",4567.5]
["Dermatology: No Surgery","Dermatology","No Surgery",80256,1,1993]
["Dermatology: Minor Surgery","Dermatology","Minor Surgery",80282,2,3043]
["Emergency Medicine: Faculty","Emergency Medicine","Faculty",80102,"3B",4203]
["Family Medicine: No Surgery","Family Medicine","No Surgery",80420,1,1993]
["Family Medicine: Minor Surgery - No OB","Family Medicine","Minor Surgery - No OB",80423,2,3043]
["Family Medicine: Minor Surgery - With OB","Family Medicine","Minor Surgery - With OB",80421,"3B",4203]
["Family Medicine: Major Surgery - With OB","Family Medicine","Major Surgery - With OB",80117,7,11954]
["Geriatrics: No Surgery","Geriatrics","No Surgery",80243,1,1993]
["Geriatrics: Minor Surgery","Geriatrics","Minor Surgery",80275,2,3307.5]
["Geriatrics: Major Surgery","Geriatrics","Major Surgery",80105,"3B",4567.5]
["Cardiology: No Surgery","Cardiology","No Surgery",80256,1,1993]
["Cardiology: Minor Surgery","Cardiology","Minor Surgery",80281,2,3043]
["Endocrinology: No Surgery","Endocrinology","No Surgery",80238,1,1993]
["Endocrinology: Minor Surgery","Endocrinology","Minor Surgery",80272,2,3043]
["Endocrinology: Major Surgery","Endocrinology","Major Surgery",80103,"3B",4567.5]
["Gastroenterology: No Surgery","Gastroenterology","No Surgery",80241,1,1993]
["Gastroenterology: Minor Surgery","Gastroenterology","Minor Surgery",80274,2,3043]
["Gastroenterology: Major Surgery","Gastroenterology","Major Surgery",80104,"3B",4567.5]
["General Internal Med.: No Surgery","General Internal Med.","No Surgery",80257,1,1993]
["General Internal Med.: Minor Surgery","General Internal Med.","Minor Surgery",80284,2,3043]
["General Internal Med.: Major Surgery","General Internal Med.","Major Surgery",80489,"3B",4567.5]
["Hematology: No Surgery","Hematology","No Surgery",80245,1,1993]
["Hematology: Minor Surgery","Hematology","Minor Surgery",80278,2,3043]
["Infectious Disease: No Surgery","Infectious Disease","No Surgery",80248,1,2166]
["Infectious Disease: Minor Surgery","Infectious Disease","Minor Surgery",80279,2,3043]
["Nephrology: No Surgery","Nephrology","No Surgery",80260,1,1993]
["Nephrology: Minor Surgery","Nephrology","Minor Surgery",80287,2,3043]
["Nephrology: Major Surgery","Nephrology","Major Surgery",80108,"3B",4567.5]
["Pulmonary: No Surgery","Pulmonary","No Surgery",80269,1,1993]
["Rheumatology: No Surgery","Rheumatology","No Surgery",80262,1,1993]
["Neurology: No Surgery","Neurology","No Surgery",80261,1,1993]
["Neurology: Minor Surgery","Neurology","Minor Surgery",80288,2,3043]
["Neurosurgery: Major Surgery","Neurosurgery","Major Surgery",80152,8,15577]
["OB/GYN: Faculty","OB/GYN","Faculty",80153,7,11954]
["Ophthalmolgy: No Surgery","Ophthalmolgy","No Surgery",80263,1,2166]
["Ophthalmolgy: Minor Surgery","Ophthalmolgy","Minor Surgery",80289,2,3043]
["Ophthalmolgy: Major Surgery","Ophthalmolgy","Major Surgery",80114,"3B",4203]
["Orthopaedics: Major Surgery - No Spines","Orthopaedics","Major Surgery - No Spines",80154,"5A",10143]
["Orthopaedics: Major Surgery - Incl. Spines","Orthopaedics","Major Surgery - Incl. Spines",80154,6,10143]
["Orthopaedics: Hand/Foot Surgery","Orthopaedics","Hand/Foot Surgery",80169,6,10143]
["Otolarygology: No Surgery","Otolarygology","No Surgery",80265,1,1993]
["Otolarygology: Minor Surgery","Otolarygology","Minor Surgery",80291,2,3043]
["Otolarygology: Major Surgery","Otolarygology","Major Surgery",80159,4,4891]
["Otolarygology: Major Surgery - Incl. Plastic","Otolarygology","Major Surgery - Incl. Plastic",80155,"5A",7789]
["Pathology: Faculty","Pathology","Faculty",80266,1,1993]
["Pediatrics: No Surgery","Pediatrics","No Surgery",80265,1,1993]
["Pediatrics: Minor Surgery","Pediatrics","Minor Surgery",80291,2,3043]
["Pediatrics: Major Surgery","Pediatrics","Major Surgery",80159,4,4891]
["Psychiatry: No Surgery","Psychiatry","No Surgery",80249,1,1993]
["Radiology: No Surgery","Radiology","No Surgery",80253,1,1993]
["Radiology: Invasive Procedures","Radiology","Invasive Procedures",80280,2,3043]
["Rehab Medicine: Faculty","Rehab Medicine","Faculty",80235,1,1993]
["Surgery: Cardiac: Faculty","Surgery: Cardiac","Faculty",80141,6,10143]
["Surgery: Colon & Rectal: Faculty","Surgery: Colon & Rectal","Faculty",80155,3,7704]
["Surgery: General: Faculty","Surgery: General","Faculty",80143,5,7704]
["Surgery: Plastic: Faculty","Surgery: Plastic","Faculty",80155,5,7704]
[{"$f":"B71&\": \"&C71","v":"Surgery: Thoracic: Faculty"},"Surgery: Thoracic","Faculty",80144,6,10143]
["Surgery: Trauma: Faculty","Surgery: Trauma","Faculty",80171,6,10143]
["Surgery: Vascular: Faculty","Surgery: Vascular","Faculty",80146,6,10143]
["Urology: Major Surgery","Urology","Major Surgery",80145,3,4203]
["Advance Practice Nurse: ","Advance Practice Nurse",null,72201,null,650]

{"sheet":"SPEC LOOKUP","index":18,"n_rows":178,"n_cols":15,"rows_kept":178,"cut":false,"hidden":false,"merged":[]}
["n/a",null,null,"Non Clinical",null,null,"Non Clinical"]
["[select]",null,null,"n/a",null,null,"n/a",null,null,null,null,null,null,"Source","AAAP"]
[null,null,null,"[select]",null,null,"[select]"]
[null,null,null,null,null,null,null,null,null,null,"Source","AAAP",null,"Row Labels","Sum of Type"]
[null,null,null,null,null,null,null,null,null,null,null,null,null,"Adolescent Medicine",1]
[null,null,null,null,null,null,"SOURCE","FPSC",null,null,"Row Labels","Sum of Type",null,"Allergy/Immunology",1]
["SOURCE","AAMC",null,"SOURCE","MGMA",null,null,null,null,null,"Adolescent Medicine",6,null,"Bone Marrow Transplant",1]
[null,null,null,null,null,null,"Count of CATEGORY",null,null,null,"Allergy/Immunology",6,null,"Cardiology - Critical Care",1]
["Count of RANK",null,null,"Count of RANK",null,null,"SPECIALTY DESC","Total",null,null,"Bone Marrow Transplant",4,null,"Cardiology - Diagnostic",1]
["SPECIALTY DESC","Total",null,"SPECIALTY DESC","Total",null,"Allergy / Immunology",1,null,null,"Cardiology - Critical Care",4,null,"Cardiology - Interventional",1]
["Adolescent Medicine",24,null,"Allergy/Immunology",3,null,"Audiology",1,null,null,"Cardiology - Diagnostic",6,null,"Child Abuse Pediatrics",1]
["Allergy/Immunology-Med.",24,null,"Anesthesiology",6,null,"Bone Marrow Transplant",1,null,null,"Cardiology - Interventional",4,null,"Child Development",1]
["Allergy/Immunology-Peds.",24,null,"Anesthesiology: Pain Management",2,null,"Cardiology: Electrophysiology",1,null,null,"Chairman",2,null,"Critical Care/Intensive Care",1]
["Anatomy",24,null,"Cardiology: Electrophysiology",3,null,"Cardiology: General",1,null,null,"Child Abuse Pediatrics",5,null,"Dermatology",1]
["Anesthesiology: General",24,null,"Cardiology: Invasive",3,null,"Cardiology: Invasive",1,null,null,"Child Development",7,null,"Emergency Medicine",1]
["Anesthesiology: Pain Management",24,null,"Cardiology: Invasive-Interventional",3,null,"Cardiology: Invasive Interventional",1,null,null,"Critical Care/Intensive Care",7,null,"Endocrinology/Metabolism",1]
["Anesthesiology: Pediatric",24,null,"Cardiology: Noninvasive",5,null,"Cardiology: Noninvasive",1,null,null,"Dermatology",4,null,"Epilepsy",1]
["BASIC SCIENCE - TOTAL ALL DEPARTMENTS/SPECIALTIES",24,null,"Critical Care: Intensivist",3,null,"Clinical Genetics",1,null,null,"Emergency Medicine",6,null,"Gastroenterology/Nutrition",1]
["Biochemistry",24,null,"Dermatology",3,null,"Critical Care",1,null,null,"Endocrinology/Metabolism",6,null,"General Pediatrics",1]
["Bioethics/Medical Humanities",24,null,"Dermatology: Mohs Surgery",2,null,"Dermatology",1,null,null,"Epilepsy",3,null,"General Peds-In Ed (Urgent Care)",1]
["Biomedical Informatics",24,null,"Emergency Medicine",5,null,"Dermatopathology",1,null,null,"Gastroenterology/Nutrition",6,null,"Genetics",1]
["Biostatistics",24,null,"Endocrinology/Metabolism",4,null,"Emergency Medicine",1,null,null,"General Pediatrics",7,null,"Hematology/Oncology",1]
["Cardiology: Invasive Interventional-Med.",24,null,"Family Medicine (with OB)",3,null,"Endocrinology / Metabolism",1,null,null,"General Peds-In Ed (Urgent Care)",3,null,"Hospitalist",1]
["Cardiology: Invasive Non-interventional-Med.",24,null,"Family Medicine (without OB)",5,null,"Family Medicine (with OB)",1,null,null,"Genetics",6,null,"Infectious Diseases",1]
["Cardiology: Non-invasive-Med.",24,null,"Family Medicine: Sports Medicine",1,null,"Family Medicine (without OB)",1,null,null,"Hematology/Oncology",6,null,"Med/Peds",1]
["Cardiology: Total",24,null,"Gastroenterology",5,null,"Family Medicine: Sports Medicine",1,null,null,"Hospitalist",7,null,"Neonatology",1]
["CLINICAL SCIENCE - TOTAL ALL DEPARTMENTS/SPECIALTIES",24,null,"Gastroenterology: Hepatology",3,null,"Gastroenterology",1,null,null,"Infectious Diseases",6,null,"Nephrology",1]
["Community Health",24,null,"Geriatrics",3,null,"General Internal Medicine",1,null,null,"Med/Peds",2,null,"Neurology",1]
["Critical/Intensive Care-Med.",24,null,"Hematology/Oncology",5,null,"Geriatrics",1,null,null,"N/A",1,null,"Other",1]
["Critical/Intensive Care-Peds.",24,null,"Hematology/Oncology: Oncology (Only)",3,null,"Gynecological Oncology",1,null,null,"Neonatology",6,null,"Palliative Care",1]
["Dermatology (excluding Mohs Surgery)",24,null,"Hospice/Palliative Care",3,null,"Gynecology",1,null,null,"Nephrology",6,null,"Psychology",1]
["Dermatology: Mohs Surgery",24,null,"Hospitalist: Internal Medicine",6,null,"Hematology",1,null,null,"Neurology",6,null,"Pulmonary",1]
["Diagnostic Radiology: Interventional",24,null,"Infectious Disease",5,null,"Hepatology",1,null,null,"Other",4,null,"Rehabilitation",1]
["Diagnostic Radiology: Non-interventional",24,null,"Internal Medicine: Ambulatory Only (No Inpatient Work)",1,null,"Hospitalists",1,null,null,"Palliative Care",3,null,"Rheumatology",1]
["Diagnostic Radiology: Total",24,null,"Internal Medicine: General",6,null,"Infectious Disease",1,null,null,"Psychology PhD",3,null,"Sleep Medicine",1]
["Emergency Medicine",24,null,"Nephrology",4,null,"Maternal and Fetal Medicine",1,null,null,"Pulmonary",6,null,"Sports Medicine",1]
["Emergency Medicine-Peds.",24,null,"Neurology",5,null,"Medical Oncology with Infusion",1,null,null,"Rehabilitation",4,null,"Grand Total",32]
["Endocrinology-Med.",24,null,"Neurology: Epilepsy/EEG",3,null,"Medical Oncology without Infusion",1,null,null,"Rheumatology",6,null,"N/A"]
["Endocrinology-Peds.",24,null,"Neurology: Neuromuscular",3,null,"MOHS Surgery",1,null,null,"Sleep Medicine",3,null,"[select]"]
["Family Medicine: General",24,null,"Neurology: Stroke Medicine",3,null,"Nephrology",1,null,null,"Sports Medicine",2]
["Family Medicine: Other",24,null,"OB/GYN: Gynecological Oncology",3,null,"Nephrology without Dialysis",1,null,null,"Grand Total",163]
["Family Medicine: Sports Medicine",24,null,"OB/GYN: Gynecology (Only)",3,null,"Neurology: Epilepsy / EEG",1,null,null,"N/A"]
["Gastroenterology-Med.",24,null,"OB/GYN: Maternal and Fetal Medicine",3,null,"Neurology: General",1,null,null,"[select]"]
["Gastroenterology-Peds.",24,null,"OB/GYN: Urogynecology",3,null,"Neurology: Neuromuscular",1]
["General Internal Medicine",24,null,"Obstetrics/Gynecology: General",6,null,"Neuropsychology",1]
["General Pediatrics",24,null,"Ophthalmology",3,null,"Obstetrics / Gynecology",1]
["General Surgery",24,null,"Ophthalmology: Retina",3,null,"Ophthalmology: Corneal / Refractive Surgery",1]
["Genetics",24,null,"Orthopedic (Nonsurgical)",1,null,"Ophthalmology: General / Comprehensive",1]
["Genetics-Peds.",24,null,"Orthopedic Surgery: Foot and Ankle",2,null,"Ophthalmology: Glaucoma",1]
["Geriatrics-Med.",24,null,"Orthopedic Surgery: General",3,null,"Ophthalmology: Neuro",1]
["Hematology/Oncology-Med.",24,null,"Orthopedic Surgery: Hand",3,null,"Ophthalmology: Oculoplastic / Reconstructive Surgery",1]
["Hematology/Oncology-Peds.",24,null,"Orthopedic Surgery: Hip and Joint",2,null,"Ophthalmology: Optometry",1]
["Hospital Medicine",24,null,"Orthopedic Surgery: Spine",2,null,"Ophthalmology: Pediatric",1]
["Hospital Medicine-Peds.",24,null,"Orthopedic Surgery: Sports Medicine",3,null,"Ophthalmology: Retinal",1]
["Infectious Disease-Med.",24,null,"Orthopedic Surgery: Trauma",3,null,"Orthopedic Surgery: Foot / Ankle",1]
["Infectious Disease-Peds.",24,null,"Otorhinolaryngology",3,null,"Orthopedic Surgery: General",1]
["Microbiology",24,null,"Pathology: Anatomic",3,null,"Orthopedic Surgery: Hand",1]
["Molecular & Cellular Biology",24,null,"Pathology: Anatomic and Clinical",3,null,"Orthopedic Surgery: Joint",1]
["Neonatology",24,null,"Pathology: Clinical",3,null,"Orthopedic Surgery: Oncology",1]
["Nephrology-Med.",24,null,"Pathology: Surgical",3,null,"Orthopedic Surgery: Pediatric",1]
["Nephrology-Peds.",24,null,"Pediatrics: Adolescent Medicine",2,null,"Orthopedic Surgery: Shoulder / Elbow",1]
["Neurology",24,null,"Pediatrics: Allergy/Immunology",2,null,"Orthopedic Surgery: Spine",1]
["Neurology-Peds.",24,null,"Pediatrics: Anesthesiology",3,null,"Orthopedic Surgery: Sports Medicine",1]
["Neurosciences",24,null,"Pediatrics: Cardiology",3,null,"Orthopedic Surgery: Trauma",1]
["Neurosurgery",24,null,"Pediatrics: Child Development",1,null,"Otorhinolaryngology",1]
["Nuclear Medicine",24,null,"Pediatrics: Critical Care/Intensivist",4,null,"Pain Management",1]
["OB/GYN: General",24,null,"Pediatrics: Emergency Medicine",4,null,"Palliative Care",1]
["OB/GYN: Gynecologic Oncology",24,null,"Pediatrics: Endocrinology",3,null,"Pathology: Anatomic",1]
["OB/GYN: Maternal & Fetal",24,null,"Pediatrics: Gastroenterology",3,null,"Pathology: Clinical",1]
["OB/GYN: Other OB/GYN",24,null,"Pediatrics: General",5,null,"Pathology: Cytopathology",1]
["OB/GYN: Reproductive Endocrinology",24,null,"Pediatrics: Genetics",3,null,"Pathology: Surgical",1]
["Ophthalmology",24,null,"Pediatrics: Hematology/Oncology",4,null,"Pediatrics: Adolescent Medicine",1]
["Orthopedic Surgery: General",24,null,"Pediatrics: Hospitalist",5,null,"Pediatrics: Allergy / Immunology",1]
["Orthopedic Surgery: Other",24,null,"Pediatrics: Infectious Disease",3,null,"Pediatrics: Cardiology",1]
["Orthopedic Surgery: Sports Medicine",24,null,"Pediatrics: Neonatal Medicine",5,null,"Pediatrics: Cardiology Interventional",1]
["Orthopedic Surgery: Total",24,null,"Pediatrics: Nephrology",3,null,"Pediatrics: Cardiology-Invasive",1]
["Other",24,null,"Pediatrics: Neurology",4,null,"Pediatrics: Cardiology-Noninvasive",1]
["Other Basic Sciences",24,null,"Pediatrics: Orthopedic Surgery",3,null,"Pediatrics: Critical Care",1]
["Other Medicine",24,null,"Pediatrics: Otorhinolaryngology",3,null,"Pediatrics: Dermatology",1]
["Other Pediatrics",24,null,"Pediatrics: Pulmonology",3,null,"Pediatrics: Developmental",1]
["Other Radiology",24,null,"Pediatrics: Radiology",3,null,"Pediatrics: Emergency Medicine",1]
["Other Surgery",24,null,"Pediatrics: Rheumatology",2,null,"Pediatrics: Endocrinology",1]
["Otolaryngology",24,null,"Pediatrics: Surgery",3,null,"Pediatrics: Gastroenterology",1]
["Pathology: Anatomic",24,null,"Physiatry (Physical Medicine and Rehabilitation)",4,null,"Pediatrics: General",1]
["Pathology: Clinical",24,null,"Psychiatry: Child and Adolescent",3,null,"Pediatrics: Hematology / Oncology",1]
["Pathology: Other Pathology",24,null,"Psychiatry: General",6,null,"Pediatrics: Hospitalists",1]
["Pediatric Cardiology",24,null,"Psychologist",5,null,"Pediatrics: Infectious Disease",1]
["Pediatric Surgery",24,null,"Pulmonary Medicine: Critical Care",3,null,"Pediatrics: Neonatal Medicine",1]
["Pharmacology",24,null,"Pulmonary Medicine: General",3,null,"Pediatrics: Nephrology",1]
["Physical Medicine & Rehabilitation",24,null,"Pulmonary Medicine: General and Critical Care",4,null,"Pediatrics: Neurology",1]
["Physiology",24,null,"Radiation Oncology",3,null,"Pediatrics: Otorhinolaryngology",1]
["Plastic Surgery",24,null,"Radiology: Diagnostic",5,null,"Pediatrics: Psychiatry",1]
["Preventive Medicine",24,null,"Radiology: Interventional",3,null,"Pediatrics: Psychology",1]
["Psychiatry: Child & Adolescent",24,null,"Radiology: Neurological",3,null,"Pediatrics: Pulmonology",1]
["Psychiatry: General",24,null,"Radiology: Nuclear Medicine",3,null,"Pediatrics: Rehabilitation",1]
["Psychiatry: Other",24,null,"Rheumatology",5,null,"Pediatrics: Rheumatology",1]
["Psychiatry: Psychology",24,null,"Surgery: Cardiovascular",4,null,"Pediatrics: Urology",1]
["Psychology-Peds.",24,null,"Surgery: Colon and Rectal",3,null,"Physical Medicine: General",1]
["Pulmonary-Med.",24,null,"Surgery: General",4,null,"Physical Medicine: Neurological",1]
["Pulmonary-Peds.",24,null,"Surgery: Neurological",3,null,"Physical Medicine: Pain and Spine",1]
["Radiation Oncology",24,null,"Surgery: Oncology",3,null,"Physical Medicine: Sports - MSK",1]
["Rheumatology-Med.",24,null,"Surgery: Plastic and Reconstruction",4,null,"Physical Therapy",1]
["Rheumatology-Peds.",24,null,"Surgery: Thoracic (Primary)",3,null,"Podiatry",1]
["Surgical Oncology",24,null,"Surgery: Transplant",4,null,"Psychiatry",1]
["Thoracic & Cardiovascular Surgery",24,null,"Surgery: Trauma",3,null,"Psychology",1]
["Total Anesthesiology",24,null,"Surgery: Vascular (Primary)",4,null,"Pulmonary Disease",1]
["Total Dermatology",24,null,"Urology",3,null,"Radiation Oncology",1]
["Total Family Medicine",24,null,"Family Medicine: Ambulatory Only (No Inpatient Work)",3,null,"Radiology: Diagnostic",1]
["Total Medicine",24,null,"Genetics",1,null,"Radiology: Interventional",1]
["Total OB/GYN",24,null,"Hospitalist: Family Medicine",1,null,"Radiology: Nuclear Medicine",1]
["Total Pathology",24,null,"NP (Nonsurgical/Nonprimary Care)",3,null,"Reproductive Endocrinology",1]
["Total Pediatrics",24,null,"NP: Acute Care",2,null,"Rheumatology",1]
["Total Psychiatry",24,null,"NP: Adult",1,null,"Sleep Medicine",1]
["Total Radiology",24,null,"NP: Pediatric/Child Health",3,null,"Surgery: Bariatric",1]
["Total Surgery",24,null,"OB/GYN: Reproductive Endocrinology",3,null,"Surgery: Breast",1]
["Transplant Surgery",24,null,"Ophthalmology: Corneal and Refractive Surgery",3,null,"Surgery: Cardiac",1]
["Trauma/Critical Care Surgery",24,null,"Ophthalmology: Glaucoma",2,null,"Surgery: Colon and Rectal",1]
["Urology",24,null,"Ophthalmology: Oculoplastic and Reconstructive Surgery",1,null,"Surgery: General",1]
["Vascular Surgery",24,null,"Optometrist",2,null,"Surgery: Neurological",1]
["n/a",null,null,"Pain Management: Nonanesthesia",1,null,"Surgery: Oral",1]
["[select]",null,null,"Pathology: Clinical-Hematopathology",1,null,"Surgery: Pediatric",1]
[null,null,null,"Pediatrics: Bone Marrow Transplant",2,null,"Surgery: Plastic",1]
[null,null,null,"Pediatrics: Cardiovascular Surgery",2,null,"Surgery: Thoracic",1]
[null,null,null,"Pediatrics: Neurosurgery",1,null,"Surgery: Trauma",1]
[null,null,null,"Pediatrics: Ophthalmology",1,null,"Surgery: Vascular",1]
[null,null,null,"PhD",3,null,"Surgical Oncology",1]
[null,null,null,"Research",3,null,"Transplant Surgery: General",1]
[null,null,null,"Sleep Medicine",2,null,"Transplant Surgery: Kidney",1]
[null,null,null,"Surgery: Bariatric",2,null,"Transplant Surgery: Liver",1]
[null,null,null,"Surgery: Breast",2,null,"Uro-Gynecology",1]
[null,null,null,"Surgery: Oral",1,null,"Urology",1]
[null,null,null,"Surgery: Trauma-Burn",2,null,"Pathology: Hematopathology",1]
[null,null,null,"Pediatrics: Urology",2,null,"Surgery: Burn",1]
[null,null,null,"Audiologist",1,null,"Surgery: Pediatric Cardiac",1]
[null,null,null,"Certified Registered Nurse Anesthetist",2,null,"Surgery: Pediatric Neurosurgery",1]
[null,null,null,"Licensed Clinical Social Worker",2,null,"Neurology: Stroke",1]
[null,null,null,"NP (Primary Care)",2,null,"Pediatrics: Bone Marrow Transplant *",1]
[null,null,null,"NP (Surgical)",2,null,"Non Clinical"]
[null,null,null,"NP: Cardiology",2,null,"N/A"]
[null,null,null,"NP: Hematology/Oncology",2,null,"[select]"]
[null,null,null,"NP: Neurology",2]
[null,null,null,"NP: Pulmonary Medicine",2]
[null,null,null,"Nurse Midwife: Outpatient/Inpatient Deliveries",2]
[null,null,null,"PA (Nonsurgical/Nonprimary Care)",2]
[null,null,null,"PA: Emergency Medicine",2]
[null,null,null,"PA: Surgery: General",2]
[null,null,null,"Urgent Care",1]
[null,null,null,"NP: Anesthesiology",1]
[null,null,null,"NP: Emergency Medicine",1]
[null,null,null,"NP: Endocrinology",1]
[null,null,null,"NP: Family Medicine (without OB)",1]
[null,null,null,"NP: Gastroenterology",1]
[null,null,null,"NP: Gerontology/Elder Health",1]
[null,null,null,"NP: Hospitalist (Primary Care)",1]
[null,null,null,"NP: Internal Medicine",1]
[null,null,null,"NP: Neonatal/Perinatal",1]
[null,null,null,"NP: Nephrology",1]
[null,null,null,"NP: Neurosurgery",1]
[null,null,null,"NP: OB/GYN/Women's Health",1]
[null,null,null,"NP: Orthopedics (Nonsurgical/Nonprimary Care)",1]
[null,null,null,"NP: Orthopedics (Surgical)",1]
[null,null,null,"NP: Psychiatry",1]
[null,null,null,"NP: Urology",1]
[null,null,null,"PA (Primary Care)",1]
[null,null,null,"PA (Surgical)",1]
[null,null,null,"PA: Cardiology",1]
[null,null,null,"PA: Cardiothoracic Surgery",1]
[null,null,null,"PA: Gastroenterology",1]
[null,null,null,"PA: Internal Medicine",1]
[null,null,null,"PA: Neurology",1]
[null,null,null,"PA: OB/GYN/Women's Health",1]
[null,null,null,"PA: Orthopedic (Surgical)",1]
[null,null,null,"PA: Otorhinolaryngology",1]
[null,null,null,"PA: Pediatric",1]
[null,null,null,"Physical Therapist",1]
[null,null,null,"Non Clinical"]
[null,null,null,"n/a"]
[null,null,null,"[select]"]

{"sheet":"AAAPComp","index":19,"n_rows":163,"n_cols":26,"rows_kept":163,"cut":false,"hidden":false,"merged":[]}
["Key","Source ","Type","Subspecialty","Rank","N","Mean",0.05,0.1,0.15,0.2,0.25,0.3,0.35,0.4,0.45,0.5,0.55000000000000004,0.6,0.65,0.7,0.75,0.8,0.85,0.9,0.95]
[{"$f":"B2&D2&E2","v":"AAAPAdolescent MedicineAssistant"},"AAAP",1,"Adolescent Medicine","Assistant",101,null,133883,147049,150467,158236,160558,164011,167104,168246,171120,173565,177614,182374,185000,188216,190119,196845,201797,211994,227563]
[{"$f":"B3&D3&E3","v":"AAAPAdolescent MedicineAssociate"},"AAAP",1,"Adolescent Medicine","Associate",88,null,166242,178723,182383,187033,190358,194569,198425,202121,202490,206751,210833,214773,225000,226313,228120,233925,242971,250316,261090]
["AAAPAdolescent MedicineProfessor","AAAP",1,"Adolescent Medicine","Professor",52,null,219800,222048,224910,230474,232829,240000,247621,256872,271905,276629,283681,287375,290516,305720,322363,334318,347210,373400,403657]
["AAAPAdolescent MedicineChief|Associate","AAAP",1,"Adolescent Medicine","Chief|Associate",11,null,197385.11801931181,199072.28307939062,200773.86931756284,202490,204895.5,207301,209706.5,212112,214517.5,216923,218777.16666666666,220631.33333333331,222485.49999999997,224339.66666666663,226193.83333333328,228048,229997.25849264485,231963.17842792961,233945.90222086592]
["AAAPAdolescent MedicineChief|Professor","AAAP",1,"Adolescent Medicine","Chief|Professor",25,null,232573,233084,239392,249916,263449,265037,275000,284014,288982,290516,299750,308485,313303,322363,324092,344459,373400,403657,431946]
["AAAPAllergy/ImmunologyAssistant","AAAP",1,"Allergy/Immunology","Assistant",147,null,154500,159294,167506,170000,174299,177000,178422,180000,183394,186300,192153,195750,201134,203270,207091,216229,228811,246971,298221]
["AAAPAllergy/ImmunologyAssociate","AAAP",1,"Allergy/Immunology","Associate",84,null,161600,180000,186952,194736,197383,205408,208926,213893,219300,222007,231843,237181,240588,246750,252313,267182,296804,307166,395000]
["AAAPAllergy/ImmunologyProfessor","AAAP",1,"Allergy/Immunology","Professor",72,null,217351,227221,227800,238546,246011,255969,275923,282961,296146,304082,308196,315000,316460,322958,339098,345840,379257,401081,417190]
["AAAPAllergy/ImmunologyChief|Associate","AAAP",1,"Allergy/Immunology","Chief|Associate",11,null,219831.22038789513,222528.25591473421,225258.38046605396,228022,239645.66666666666,251269.33333333331,262893,274516.66666666669,286140.33333333337,297764,301417.16666666669,305070.33333333337,308723.50000000006,312376.66666666674,316029.83333333343,319683,323605.08352755872,327575.28578272305,331594.19711802632]
["AAAPAllergy/ImmunologyChief|Professor","AAAP",1,"Allergy/Immunology","Chief|Professor",23,null,227604,238546,250585,255969,290682,308833,314333,316460,317695,322141,362980,366897,377981,382928,402735,411060,412144,417190,420493]
["AAAPBone Marrow TransplantInstructor/Lecturer","AAAP",1,"Bone Marrow Transplant","Instructor/Lecturer",9,null,142783.04330830282,144733.91890497904,146711.44973679751,148716,150609.5,152503,154396.5,156290,158183.5,160077,162264.16666666666,164451.33333333331,166638.49999999997,168825.66666666663,171012.83333333328,173200,175566.4690534347,177965.27168528084,180396.84967621221]
["AAAPBone Marrow TransplantAssistant","AAAP",1,"Bone Marrow Transplant","Assistant",53,null,162671,170000,171994,175819,180000,185535,186745,186934,188173,192141,193800,194934,199533,202149,205484,208141,227327,230962,251697]
["AAAPBone Marrow TransplantAssociate","AAAP",1,"Bone Marrow Transplant","Associate",34,null,156301,218665,221632,223314,226129,235058,240348,246620,248047,251987,253103,253761,255715,256323,260998,268320,272467,284096,313662]
["AAAPBone Marrow TransplantProfessor","AAAP",1,"Bone Marrow Transplant","Professor",34,null,210266,234600,261650,270000,310000,316638,316863,323575,324842,325186,326583,340766,350601,356183,366117,376150,393661,423007,480549]
["AAAPCardiology - Critical CareAssistant","AAAP",1,"Cardiology - Critical Care","Assistant",106,null,221700,234079,237600,241200,244328,245854,247131,250577,255000,260002,264318,270100,275000,288751,304093,319406,324528,335800,342548]
["AAAPCardiology - Critical CareAssociate","AAAP",1,"Cardiology - Critical Care","Associate",63,null,246721,275614,283883,292005,296400,296853,315425,319282,325000,334307,336340,340000,343406,353171,363891,367101,381116,391588,441316]
["AAAPCardiology - Critical CareProfessor","AAAP",1,"Cardiology - Critical Care","Professor",50,null,283686,336434,371683,381923,400000,413293,427342,431778,445055,448070,450560,454907,468053,479065,494201,524712,538859,597383,734734]
["AAAPCardiology - Critical CareChief|Associate","AAAP",1,"Cardiology - Critical Care","Chief|Associate",5,null,251213.71058141187,274956.18803877546,300942.59252746537,329385,333229,337073,340917,344761,348605,352449,385759.33333333331,419069.66666666663,452379.99999999994,485690.33333333326,519000.66666666657,552311,604510.50549914071,661643.44229759439,724176.07428334816]
["AAAPCardiology - Critical CareChief|Professor","AAAP",1,"Cardiology - Critical Care","Chief|Professor",11,null,430921.87137722771,438124.52137147385,445447.56016560568,452893,459034.83333333331,465176.66666666663,471318.49999999994,477460.33333333326,483602.16666666657,489744,497929.83333333331,506115.66666666663,514301.49999999994,522487.33333333326,530673.16666666663,538859,547865.76672744669,557023.07719060651,566333.44765497721]
["AAAPCardiology - DiagnosticInstructor/Lecturer","AAAP",1,"Cardiology - Diagnostic","Instructor/Lecturer",11,null,119302.62575534957,122766.85176616024,126331.66954331298,130000,145946.83333333334,161893.66666666669,177840.50000000003,193787.33333333337,209734.16666666672,225681,232234.16666666666,238787.33333333331,245340.49999999997,251893.66666666663,258446.83333333328,265000,272694.88422448793,280613.20710266748,288761.45668952516]
["AAAPCardiology - DiagnosticAssistant","AAAP",1,"Cardiology - Diagnostic","Assistant",348,null,194880,210000,218565,223702,227461,230597,234111,237527,240033,244365,247519,252350,257405,263834,270943,282407,295530,306134,327492]
["AAAPCardiology - DiagnosticAssociate","AAAP",1,"Cardiology - Diagnostic","Associate",243,null,244756,263900,268353,280548,283982,286211,289111,295005,300237,305513,308422,315162,319130,327487,333100,343637,352202,366325,400000]
["AAAPCardiology - DiagnosticProfessor","AAAP",1,"Cardiology - Diagnostic","Professor",185,null,279046,301925,315000,328896,341800,350330,355000,359580,367943,374939,387501,404000,414180,423000,431857,447279,470881,482082,575560]
["AAAPCardiology - DiagnosticChief|Associate","AAAP",1,"Cardiology - Diagnostic","Chief|Associate",10,null,255350.08518452788,262904.68135794537,270682.78214974655,278691,293067.66666666669,307444.33333333337,321821.00000000006,336197.66666666674,350574.33333333343,364951,375748.16666666669,386545.33333333337,397342.50000000006,408139.66666666674,418936.83333333343,429734,442447.78793408803,455537.71646592481,469014.91380922665]
["AAAPCardiology - DiagnosticChief|Professor","AAAP",1,"Cardiology - Diagnostic","Chief|Professor",20,null,339539,356306,374939,375446,383003,405027,431857,438108,453150,469022,478613,481796,501600,512492,603500,625294,673818,722889,727974]
["AAAPCardiology - InterventionalAssistant","AAAP",1,"Cardiology - Interventional","Assistant",68,null,219350,230000,240000,242775,245420,250224,258168,265650,270794,275079,280085,282864,298990,300500,307220,313992,333235,382433,400000]
["AAAPCardiology - InterventionalAssociate","AAAP",1,"Cardiology - Interventional","Associate",49,null,263462,283032,291749,303173,314198,323683,334315,343526,350000,366142,369597,378278,393414,412499,442170,444230,452587,471376,520000]
["AAAPCardiology - InterventionalProfessor","AAAP",1,"Cardiology - Interventional","Professor",71,null,337000,362715,369078,387416,395000,400000,412000,423250,437600,444912,457400,463793,475000,490000,502093,525555,551935,620240,638796]
["AAAPCardiology - InterventionalChief|Professor","AAAP",1,"Cardiology - Interventional","Chief|Professor",10,null,388585.61357230408,407307.26682937844,426930.90999147255,447500,474788,502076,529364,556652,583940,611228,640676.33333333337,670124.66666666674,699573.00000000012,729021.33333333349,758469.66666666686,787918,825879.07492348738,865669.07520386041,907376.11657461186]
["AAAPChild Abuse PediatricsAssistant","AAAP",1,"Child Abuse Pediatrics","Assistant",44,null,122500,154803,157281,158000,163166,167301,169250,170913,173300,177313,180000,185000,185491,188166,192337,195400,203116,224500,234121]
["AAAPChild Abuse PediatricsAssociate","AAAP",1,"Child Abuse Pediatrics","Associate",28,null,123000,145000,173039,184546,188870,190401,195175,200053,200195,202871,208198,219000,220334,226390,249292,250451,253500,264198,276752]
["AAAPChild Abuse PediatricsProfessor","AAAP",1,"Child Abuse Pediatrics","Professor",27,null,126170,175615,192866,206603,213220,224851,231030,236978,244283,244629,247660,249101,250771,261007,279455,291450,295113,306250,328648]
["AAAPChild Abuse PediatricsChief|Associate","AAAP",1,"Child Abuse Pediatrics","Chief|Associate",6,null,215614.96677901075,219148.42262197248,222739.78404718891,226390,230654.33333333334,234918.66666666669,239183.00000000003,243447.33333333337,247711.66666666672,251976,256105.33333333334,260234.66666666669,264364,268493.33333333331,272622.66666666663,276752,281287.35756844567,285897.03968838026,290582.26437599555]
["AAAPChild Abuse PediatricsChief|Professor","AAAP",1,"Child Abuse Pediatrics","Chief|Professor",7,null,179624.61837262008,183445.55767280009,187347.77523688361,191333,208019.16666666666,224705.33333333331,241391.49999999997,258077.66666666663,274763.83333333331,291450,297649.66666666669,303849.33333333337,310049.00000000006,316248.66666666674,322448.33333333343,328648,335638.93515411456,342778.58009599301,350070.09815078275]
["AAAPChild DevelopmentInstructor/Lecturer","AAAP",1,"Child Development","Instructor/Lecturer",6,null,140180.9123893826,142740.26324300314,145346.34140550104,148000,150906.5,153813,156719.5,159626,162532.5,165439,168459.5,171480,174500.5,177521,180541.5,183562,186913.38039398205,190325.94856400255,193800.82164494216]
["AAAPChild DevelopmentAssistant","AAAP",1,"Child Development","Assistant",103,null,143553,153898,164121,169772,170648,172500,176301,180181,183463,187952,190356,195243,198939,200000,209441,220000,243000,263256,321875]
["AAAPChild DevelopmentAssociate","AAAP",1,"Child Development","Associate",64,null,129387,170259,177350,180000,183924,188000,190695,194519,196291,200072,201947,207453,209997,217000,231907,237136,253750,270938,279844]
["AAAPChild DevelopmentProfessor","AAAP",1,"Child Development","Professor",56,null,208075,215342,222784,228116,240450,246308,250000,254335,255109,256907,267881,275715,280274,291040,305488,330750,365150,375508,386042]
["AAAPChild DevelopmentChief|Assistant ","AAAP",1,"Child Development","Chief|Assistant ",6,null,191487.35812819141,193939.69805709744,196423.44460827712,198939,203486,208033,212580,217127,221674,226221,229118.16666666666,232015.33333333331,234912.49999999997,237809.66666666663,240706.83333333328,243604,246723.7872375538,249883.52896028684,253083.73685722289]
["AAAPChild DevelopmentChief|Professor","AAAP",1,"Child Development","Chief|Professor",21,null,250000,255000,260000,275715,275845,277401,279477,283300,286048,295000,305488,324266,330750,365150,367079,371169,373407,375508,375627]
["AAAPCritical Care/Intensive CareInstructor/Lecturer","AAAP",1,"Critical Care/Intensive Care","Instructor/Lecturer",30,null,105400,111650,125000,125274,126437,139441,154436,177893,185831,195600,198200,203102,203789,210728,219092,220341,236472,289654,312952]
["AAAPCritical Care/Intensive CareAssistant","AAAP",1,"Critical Care/Intensive Care","Assistant",427,null,200000,208763,212463,217989,222265,228000,232000,235620,239090,243583,249995,254757,259884,267949,275000,286940,294331,307350,327000]
["AAAPCritical Care/Intensive CareAssociate","AAAP",1,"Critical Care/Intensive Care","Associate",244,null,227920,240000,246183,262099,271569,276490,281790,283959,287716,292354,296399,302793,314094,320001,329675,337263,350000,367530,382976]
["AAAPCritical Care/Intensive CareProfessor","AAAP",1,"Critical Care/Intensive Care","Professor",130,null,230838,270257,292262,308238,319733,326836,334230,338562,347381,353191,369752,383393,391156,395116,408948,422253,433930,453527,502450]
["AAAPCritical Care/Intensive CareChief|Assistant ","AAAP",1,"Critical Care/Intensive Care","Chief|Assistant ",5,null,242783.61512186265,253849.07876064957,265418.87826855952,277516,288371.83333333331,299227.66666666663,310083.49999999994,320939.33333333326,331795.16666666657,342651,358268.16666666669,373885.33333333337,389502.50000000006,405119.66666666674,420736.83333333343,436354,456241.91260981775,477036.26601764758,498778.3735043963]
["AAAPCritical Care/Intensive CareChief|Associate","AAAP",1,"Critical Care/Intensive Care","Chief|Associate",24,null,282425,283252,284754,285490,305141,313881,324167,324702,328940,337166,342230,343115,349205,350399,374925,380555,384853,388676,402803]
["AAAPCritical Care/Intensive CareChief|Professor","AAAP",1,"Critical Care/Intensive Care","Chief|Professor",24,null,242933,298295,299852,319193,327367,335551,340358,347098,350949,370050,385781,406104,416709,430322,434685,442282,445121,453527,474202]
["AAAPDermatologyAssistant","AAAP",1,"Dermatology","Assistant",16,null,260156.1610468064,265307.43530884781,270560.70841041696,275918,282376.5,288835,295293.5,301752,308210.5,314669,320899.66666666669,327130.33333333337,333361.00000000006,339591.66666666674,345822.33333333343,352053,359023.89605903352,366132.82074405754,373382.50711857376]
["AAAPDermatologyAssociate","AAAP",1,"Dermatology","Associate",15,null,307130.1687169518,313295.84097951895,319585.28979783185,326001,334167.5,342334,350500.5,358667,366833.5,375000,382528.16666666669,390056.33333333337,397584.50000000006,405112.66666666674,412640.83333333343,420169,428603.93936044449,437208.21106576541,445985.21448160085]
["AAAPDermatologyProfessor","AAAP",1,"Dermatology","Professor",7,null,360611.14493466064,368685.93661372224,376941.53873521223,385382,395807.66666666669,406233.33333333337,416659.00000000006,427084.66666666674,437510.33333333343,447936,457966.16666666669,467996.33333333337,478026.50000000006,488056.66666666674,498086.83333333343,508117,519494.73743607715,531127.24475618557,543020.22675832873]
["AAAPEmergency MedicineInstructor/Lecturer","AAAP",1,"Emergency Medicine","Instructor/Lecturer",43,null,101222,130160,163042,166549,172985,181125,186125,186941,189545,191370,195000,199667,207137,214991,220691,223924,226882,262244,346713]
["AAAPEmergency MedicineAssistant","AAAP",1,"Emergency Medicine","Assistant",443,null,182134,200028,208067,215501,223003,226024,230337,233570,237686,240012,242525,245400,249563,256669,262607,273968,282038,293861,317115]
["AAAPEmergency MedicineAssociate","AAAP",1,"Emergency Medicine","Associate",199,null,181983,227427,237941,244216,255000,258834,262413,267000,270779,275185,277389,278621,284272,291368,305757,314581,326897,341352,364418]
["AAAPEmergency MedicineProfessor","AAAP",1,"Emergency Medicine","Professor",123,null,187408,266730,282397,291849,304097,307192,313100,316077,317732,321626,327870,333434,339462,355260,364105,379010,406806,417427,462506]
["AAAPEmergency MedicineChief|Associate","AAAP",1,"Emergency Medicine","Chief|Associate",16,null,281081.42601664364,289112.62694313511,297373.29941186169,305870,313046.83333333331,320223.66666666663,327400.49999999994,334577.33333333326,341754.16666666657,348931,358900.83333333331,368870.66666666663,378840.49999999994,388810.33333333326,398780.16666666657,408750,420429.01211127703,432441.72287428583,444797.66689598683]
["AAAPEmergency MedicineChief|Professor","AAAP",1,"Emergency Medicine","Chief|Professor",17,null,384205.3469319595,391595.82503646781,399128.46453214198,406806,408928.33333333331,411050.66666666663,413172.99999999994,415295.33333333326,417417.66666666657,419540,427610.16666666669,435680.33333333337,443750.50000000006,451820.66666666674,459890.83333333343,467961,476962.58093030466,486137.31402338535,495488.52999100322]
["AAAPEndocrinology/MetabolismInstructor/Lecturer","AAAP",1,"Endocrinology/Metabolism","Instructor/Lecturer",25,null,60000,61308,89433,117250,127000,131691,132765,132765,134690,135000,136356,144649,155367,163616,163750,178968,204850,220085,240166]
["AAAPEndocrinology/MetabolismAssistant","AAAP",1,"Endocrinology/Metabolism","Assistant",244,null,143121,150711,155575,160000,162896,165000,166460,169718,172152,175144,178027,180184,183600,186926,191159,196400,200000,206930,220885]
["AAAPEndocrinology/MetabolismAssociate","AAAP",1,"Endocrinology/Metabolism","Associate",157,null,167661,175046,182658,187157,191713,195000,197754,199473,201201,203546,205338,207771,212453,214834,220998,227693,235448,249987,284613]
["AAAPEndocrinology/MetabolismProfessor","AAAP",1,"Endocrinology/Metabolism","Professor",129,null,175328,218114,232801,236179,242656,248362,252500,255610,265000,267776,274157,280192,287989,294450,300741,309195,320000,333160,374080]
["AAAPEndocrinology/MetabolismChief|Associate","AAAP",1,"Endocrinology/Metabolism","Chief|Associate",11,null,215832.25490889352,222182.18526097064,228718.93484214423,235448,237106.66666666666,238765.33333333331,240423.99999999997,242082.66666666663,243741.33333333328,245400,252619.83333333334,259839.66666666669,267059.5,274279.33333333331,281499.16666666663,288719,297213.30749864166,305957.52324676287,314958.99971343396]
["AAAPEndocrinology/MetabolismChief|Professor","AAAP",1,"Endocrinology/Metabolism","Chief|Professor",42,null,175328,242000,254290,256300,266432,271375,277257,280848,283072,299662,307602,314128,315579,320000,326534,330421,336544,367437,374080]
["AAAPEpilepsyAssistant","AAAP",1,"Epilepsy","Assistant",34,null,178500,205000,215001,215873,216942,225017,226765,228657,229573,231350,233094,238244,241917,242345,242714,254149,271332,278829,304632]
["AAAPEpilepsyAssociate","AAAP",1,"Epilepsy","Associate",19,null,233843.17001105842,239109.61588149899,244494.66881711475,250001,253997.16666666666,257993.33333333331,261989.49999999997,265985.66666666663,269981.83333333331,273978,280148.33333333331,286318.66666666663,292488.99999999994,298659.33333333326,304829.66666666657,311000,318004.11590225005,325165.97341084143,332489.1250675536]
["AAAPEpilepsyProfessor","AAAP",1,"Epilepsy","Professor",10,null,252076.21522150296,255369.59470849359,258706.00224728117,262086,270333.33333333331,278580.66666666663,286827.99999999994,295075.33333333326,303322.66666666657,311570,315640.66666666669,319711.33333333337,323782.00000000006,327852.66666666674,331923.33333333343,335994,340383.76658856758,344830.88554265985,349336.10617178224]
[{"$f":"B67&D67&E67","v":"AAAPGastroenterology/NutritionInstructor/Lecturer"},"AAAP",1,"Gastroenterology/Nutrition","Instructor/Lecturer",32,null,132094,159439,163852,170973,175357,178602,185767,188503,190181,191137,196821,202339,202946,206122,216861,227976,253659,265475,356901]
["AAAPGastroenterology/NutritionAssistant","AAAP",1,"Gastroenterology/Nutrition","Assistant",331,null,172000,189720,194453,198616,201000,204126,206828,209963,212800,215218,218287,221791,226773,231425,241130,247693,254211,263670,276276]
["AAAPGastroenterology/NutritionAssociate","AAAP",1,"Gastroenterology/Nutrition","Associate",192,null,209567,225313,233033,236620,240629,243091,245254,248675,254292,259796,263634,266808,273528,279968,288852,296845,307614,327434,381381]
["AAAPGastroenterology/NutritionProfessor","AAAP",1,"Gastroenterology/Nutrition","Professor",148,null,232991,268151,291356,295000,302231,310535,324000,328246,332134,338977,345904,353246,356425,361867,379112,388358,398717,412538,460908]
["AAAPGastroenterology/NutritionChief|Associate","AAAP",1,"Gastroenterology/Nutrition","Chief|Associate",16,null,233850.53267464036,240044.83015527035,246403.20389794555,252930,260410.16666666666,267890.33333333331,275370.5,282850.66666666669,290330.83333333337,297811,305699.5,313588,321476.5,329365,337253.5,345142,354284.21659710351,363668.59475179308,373301.54890627199]
["AAAPGastroenterology/NutritionChief|Professor","AAAP",1,"Gastroenterology/Nutrition","Chief|Professor",35,null,319816,324768,337804,344027,353246,357000,357607,358836,361867,380000,388573,396831,398717,406340,410000,435863,460908,495347,516866]
["AAAPGeneral PediatricsInstructor/Lecturer","AAAP",1,"General Pediatrics","Instructor/Lecturer",82,null,96000,137300,147014,150000,153437,156447,161201,162225,164962,166561,170000,170704,171863,175504,177876,191329,204797,214687,225528]
["AAAPGeneral PediatricsAssistant","AAAP",1,"General Pediatrics","Assistant",847,null,128000,145000,153038,158267,160247,165000,166911,170347,173601,177625,181376,186252,191501,197209,203209,211327,219839,235445,262886]
["AAAPGeneral PediatricsAssociate","AAAP",1,"General Pediatrics","Associate",380,null,135975,160619,171107,178828,182620,186196,190379,195207,200000,203447,209273,212915,218624,225843,234353,242686,263109,287902,335796]
["AAAPGeneral PediatricsProfessor","AAAP",1,"General Pediatrics","Professor",243,null,186200,205685,218530,228777,232950,236687,241475,248075,250526,256725,263210,271216,285000,297566,309933,321618,333426,364716,414236]
["AAAPGeneral PediatricsChief|Assistant ","AAAP",1,"General Pediatrics","Chief|Assistant ",20,null,186451,206410,211827,212118,213737,217919,225876,229564,234144,238002,241205,242596,244800,247349,247574,251961,258739,295850,297800]
["AAAPGeneral PediatricsChief|Associate","AAAP",1,"General Pediatrics","Chief|Associate",22,null,205460,206636,209520,212430,220392,225000,229841,235410,237988,256294,260600,270000,278900,288321,288573,304187,331731,355194,365976]
["AAAPGeneral PediatricsChief|Professor","AAAP",1,"General Pediatrics","Chief|Professor",35,null,219305,228375,232766,239689,245777,252639,260402,265348,273909,299107,304207,312713,313834,320000,330096,350381,360000,366484,414236]
["AAAPGeneral Peds-In EdInstructor/Lecturer","AAAP",1,"General Peds-In Ed","Instructor/Lecturer",6,null,154561.43594640677,157278.57755942465,160043.48567059898,162857,166564.16666666666,170271.33333333331,173978.49999999997,177685.66666666663,181392.83333333328,185100,188354,191608,194862,198116,201370,204624,208221.22580226907,211881.68970697239,215606.5034201355]
["AAAPGeneral Peds-In EdAssistant","AAAP",1,"General Peds-In Ed","Assistant",66,null,153543,156693,162106,171061,173564,175219,177605,178260,182002,187656,193581,197872,210194,213671,222325,225557,230808,238739,245861]
["AAAPGeneral Peds-In EdAssociate","AAAP",1,"General Peds-In Ed","Associate",13,null,206361.54913653067,208769.81857217409,211206.19286407065,213671,217975.83333333334,222280.66666666669,226585.50000000003,230890.33333333337,235195.16666666672,239500,242295,245090,247885,250680,253475,256270,259260.70835073068,262286.31870496989,265347.23837419908]
["AAAPGeneticsInstructor/Lecturer","AAAP",1,"Genetics","Instructor/Lecturer",8,null,99494.852007158508,105234.73197963266,111305.74689460655,117727,122166.33333333333,126605.66666666666,131044.99999999999,135484.33333333331,139923.66666666666,144363,152691.33333333334,161019.66666666669,169348.00000000003,177676.33333333337,186004.66666666672,194333,205544.11366254973,217401.99894677263,229943.96825027632]
["AAAPGeneticsAssistant","AAAP",1,"Genetics","Assistant",92,null,158851,166573,168309,174999,176111,178602,180878,185000,185100,185535,186001,190000,191950,193211,200362,202893,208322,213666,246278]
["AAAPGeneticsAssociate","AAAP",1,"Genetics","Associate",66,null,152894,176224,185000,191374,197961,199404,201246,204312,207624,213192,216132,219650,220732,229694,241780,245672,254780,270000,286200]
["AAAPGeneticsProfessor","AAAP",1,"Genetics","Professor",90,null,190485,208442,222861,225854,233844,237951,249696,255356,260073,265381,272711,278757,282746,303937,316309,324569,334642,359338,376265]
["AAAPGeneticsChief|Associate","AAAP",1,"Genetics","Chief|Associate",16,null,203051.22513944455,208439.878819554,213971.53872119309,219650,222723.16666666666,225796.33333333331,228869.49999999997,231942.66666666663,235015.83333333328,238089,244407.5,250726,257044.5,263363,269681.5,276000,283324.59710444417,290843.57726230292,298562.09908788855]
["AAAPGeneticsChief|Professor","AAAP",1,"Genetics","Chief|Professor",25,null,225250,231125,233910,237683,252227,261443,265000,275487,285307,287434,303950,323355,324668,328964,347579,377545,425030,453265,470240]
["AAAPHematology/OncologyInstructor/Lecturer","AAAP",1,"Hematology/Oncology","Instructor/Lecturer",52,null,109008,125000,125875,125875,127545,135000,136500,136500,138454,142194,144085,150954,158309,161137,162206,173514,188675,191509,253045]
["AAAPHematology/OncologyAssistant","AAAP",1,"Hematology/Oncology","Assistant",427,null,148989,159790,166685,170000,172825,175518,178000,180000,182686,184668,186692,190353,193733,197125,203674,208695,221878,229518,244172]
["AAAPHematology/OncologyAssociate","AAAP",1,"Hematology/Oncology","Associate",293,null,180000,193000,201495,208255,214541,218783,221992,224989,230017,234291,239020,243001,252621,259568,269621,276806,285244,305521,342049]
["AAAPHematology/OncologyProfessor","AAAP",1,"Hematology/Oncology","Professor",277,null,240000,254252,267258,272000,280000,283282,286853,292114,298977,305092,314356,325000,334927,355743,364859,385240,400000,436000,502800]
["AAAPHematology/OncologyChief|Associate","AAAP",1,"Hematology/Oncology","Chief|Associate",13,null,198791.19761317145,207769.52433664701,217153.35367654293,226961,240434.16666666666,253907.33333333331,267380.5,280853.66666666669,294326.83333333337,307800,321701.66666666669,335603.33333333337,349505.00000000006,363406.66666666674,377308.33333333343,391210,408878.84670781897,427345.69996962277,446646.60143944429]
["AAAPHematology/OncologyChief|Professor","AAAP",1,"Hematology/Oncology","Chief|Professor",45,null,241483,274820,282687,295888,302814,320000,325000,353633,364859,368225,383391,396103,405000,423142,431605,449160,491540,550008,561868]
["AAAPHepatologyAssistant","AAAP",1,"Hepatology","Assistant",17,null,198226.36798436858,204886.31399867361,211770.01874580752,218885,222187.83333333334,225490.66666666669,228793.50000000003,232096.33333333337,235399.16666666672,238702,246721.83333333334,254741.66666666669,262761.5,270781.33333333331,278801.16666666663,286821,296457.52008152421,306417.80487791111,316712.73213234008]
["AAAPHepatologyAssociate","AAAP",1,"Hepatology","Associate",12,null,249407.422187071,256660.94845619818,264125.42932673835,271807,274005.83333333331,276204.66666666663,278403.49999999994,280602.33333333326,282801.16666666657,285000,293288.66666666669,301577.33333333337,309866.00000000006,318154.66666666674,326443.33333333343,334732,344467.02445847954,354485.17303179484,364794.6798301675]
["AAAPHepatologyProfessor","AAAP",1,"Hepatology","Professor",10,null,272767.17397958349,278002.65031363833,283338.61605792731,288777,294340.66666666669,299904.33333333337,305468.00000000006,311031.66666666674,316595.33333333343,322159,328342.5,334526,340709.5,346893,353076.5,359260,366155.61430846265,373183.58261317055,380346.44530857424]
["AAAPHospitalistInstructor/Lecturer","AAAP",1,"Hospitalist","Instructor/Lecturer",140,null,142369,152521,160000,164468,165561,166774,170100,173760,177280,178795,179905,184022,186173,189069,193952,200078,210026,219884,242568]
["AAAPHospitalistAssistant","AAAP",1,"Hospitalist","Assistant",789,null,150120,160778,166166,170254,173048,175000,178319,180842,184450,186835,189025,192000,195006,199860,205850,212000,221650,244652,267870]
["AAAPHospitalistAssociate","AAAP",1,"Hospitalist","Associate",274,null,165077,188430,195291,199926,204091,206251,209789,213510,215895,218120,221710,224182,231001,236998,243882,253049,272419,294293,325012]
["AAAPHospitalistProfessor","AAAP",1,"Hospitalist","Professor",133,null,129012,184585,213240,222514,230300,237825,247053,252706,258999,268688,277959,282358,291223,308558,322560,327051,351379,363313,402249]
["AAAPHospitalistChief|Assistant","AAAP",1,"Hospitalist","Chief|Assistant",12,null,163679.14869592679,173445.44687610603,183794.47401659627,194761,197097,199433,201769,204105,206441,208777,221234.16666666666,233691.33333333331,246148.49999999997,258605.66666666663,271062.83333333331,283520,300436.88209588861,318363.14941979002,337359.02929567307]
["AAAPHospitalistChief|Associate","AAAP",1,"Hospitalist","Chief|Associate",19,null,186934.79076018246,194423.20972562503,202211.60719359227,210312,215907,221502,227097,232692,238287,243882,253651.66666666666,263421.33333333331,273191,282960.66666666669,292730.33333333337,302500,314617.84455870738,327221.1177347668,340329.26530844078]
["AAAPHospitalistChief|Professor","AAAP",1,"Hospitalist","Chief|Professor",22,null,103000,128280,222514,253269,253648,266056,273840,282975,283432,292164,314550,326802,335090,341055,351379,372798,383627,412105,429140]
["AAAPInfectious DiseasesInstructor/Lecturer","AAAP",1,"Infectious Diseases","Instructor/Lecturer",16,null,104762.50805293817,108381.85697280061,112126.24763562219,116000,118513,121026,123539,126052,128565,131078,135606.5,140135,144663.5,149192,153720.5,158249,163716.20728497536,169372.29636697241,175223.79275918036]
["AAAPInfectious DiseasesAssistant","AAAP",1,"Infectious Diseases","Assistant",179,null,138375,145125,148000,152000,153776,155000,157236,158636,161353,167000,169671,170860,175000,178213,180969,186017,190422,197038,219789]
["AAAPInfectious DiseasesAssociate","AAAP",1,"Infectious Diseases","Associate",118,null,131489,165000,174929,178514,182165,186400,189689,191200,193562,196043,199095,201375,206829,210502,215330,223774,230045,249774,317130]
["AAAPInfectious DiseasesProfessor","AAAP",1,"Infectious Diseases","Professor",171,null,186307,209585,215435,224738,235310,243525,247797,255173,258971,263404,272064,284347,293240,310235,332054,348979,361288,383987,492141]
["AAAPInfectious DiseasesChief|Associate","AAAP",1,"Infectious Diseases","Chief|Associate",11,null,166784.07483765282,170605.80879507872,174515.11496499288,178514,181970,185426,188882,192338,195794,199250,203815.66666666666,208381.33333333331,212946.99999999997,217512.66666666663,222078.33333333328,226644,231837.37995483063,237149.76237765173,242583.87412217152]
["AAAPInfectious DiseasesChief|Professor","AAAP",1,"Infectious Diseases","Chief|Professor",41,null,219720,244670,255173,263201,269500,284347,286233,293240,310900,324500,333014,343863,349750,354703,355111,364508,370551,385199,439009]
["AAAPMed/PedsAssistant","AAAP",1,"Med/Peds","Assistant",30,null,0,77500,164215,171036,174238,177625,185025,190089,199492,199503,202382,214489,219860,227835,228744,237682,260363,273757,279118]
["AAAPMed/PedsAssociate","AAAP",1,"Med/Peds","Associate",14,null,193391.49319447021,197110.03680481436,200900.08080203502,204763,206152.5,207542,208931.5,210321,211710.5,213100,217197.5,221295,225392.5,229490,233587.5,237685,242255.22190286248,246913.32031556533,251660.98493308306]
["AAAPNeonatologyInstructor/Lecturer","AAAP",1,"Neonatology","Instructor/Lecturer",58,null,113538,124800,131325,151286,170000,190986,198200,202006,230853,235258,243605,254949,264558,280916,292493,306124,312121,317636,339024]
["AAAPNeonatologyAssistant","AAAP",1,"Neonatology","Assistant",776,null,201377,215130,222111,229840,234955,237342,240400,244167,247301,252811,256587,260780,266585,274787,284000,295314,310051,328758,373379]
["AAAPNeonatologyAssociate","AAAP",1,"Neonatology","Associate",365,null,227244,247200,255164,262194,268580,273570,278266,282445,286674,290841,297000,302625,308232,314500,327489,336139,363758,377758,413739]
["AAAPNeonatologyProfessor","AAAP",1,"Neonatology","Professor",303,null,261328,283379,298707,311255,319772,325707,334561,339855,344244,352656,361137,371259,390774,404988,414811,432005,453587,476099,542814]
["AAAPNeonatologyChief|Associate","AAAP",1,"Neonatology","Chief|Associate",9,null,256294.89360524094,263624.01136026892,271162.71568298643,278917,283802.83333333331,288688.66666666663,293574.49999999994,298460.33333333326,303346.16666666657,308232,317046.33333333331,325860.66666666663,334674.99999999994,343489.33333333326,352303.66666666657,361118,371444.68387664697,382066.67399637296,392992.4150620703]
["AAAPNeonatologyChief|Professor","AAAP",1,"Neonatology","Chief|Professor",48,null,332983,341971,352187,362776,376500,393021,399441,410350,414811,421734,429935,438327,451496,456634,467105,470815,505464,536432,544316]
["AAAPNephrologyInstructor/Lecturer","AAAP",1,"Nephrology","Instructor/Lecturer",12,null,137898.69210068416,140476.6344952556,143102.77014596667,145778,147829.33333333334,149880.66666666669,151932.00000000003,153983.33333333337,156034.66666666672,158086,161041.33333333334,163996.66666666669,166952.00000000003,169907.33333333337,172862.66666666672,175818,179104.82360234304,182453.09261637839,185863.95573125849]
["AAAPNephrologyAssistant","AAAP",1,"Nephrology","Assistant",137,null,157590,161152,165963,168150,170000,171799,174388,176401,178747,180114,181654,183339,185482,186988,190000,192850,204025,212993,230041]
["AAAPNephrologyAssociate","AAAP",1,"Nephrology","Associate",104,null,187677,194000,200000,202904,206617,209890,211486,215805,218770,221063,226929,233059,236020,241409,246597,259072,273925,285735,305000]
["AAAPNephrologyProfessor","AAAP",1,"Nephrology","Professor",96,null,187985,223177,235731,244140,251401,268001,273437,277344,281909,285057,298497,303939,310652,314440,328417,345692,358992,377284,467963]
["AAAPNephrologyChief|Associate","AAAP",1,"Nephrology","Chief|Associate",22,null,215805,216000,216704,218770,226929,233059,242875,243600,249979,257014,273925,274860,275222,276790,283400,301075,305000,316320,321453]
["AAAPNephrologyChief|Professor","AAAP",1,"Nephrology","Chief|Professor",31,null,238342,262570,268592,272600,274408,283575,284040,303939,306493,312639,328417,335511,346586,352964,358992,363303,377284,395125,472700]
["AAAPNeurologyInstructor/Lecturer","AAAP",1,"Neurology","Instructor/Lecturer",10,null,120877.87544809825,122183.10579034596,123502.42991311397,124836,138733.16666666666,152630.33333333331,166527.49999999997,180424.66666666663,194321.83333333328,208219,210467.33333333334,212715.66666666669,214964.00000000003,217212.33333333337,219460.66666666672,221709,224102.99735374778,226522.84491353025,228968.82180795676]
["AAAPNeurologyAssistant","AAAP",1,"Neurology","Assistant",241,null,181790,194000,200000,203446,205750,207814,209763,211140,214327,216300,218424,222200,225425,229660,235000,241419,245163,250000,277667]
["AAAPNeurologyAssociate","AAAP",1,"Neurology","Associate",116,null,184655,210358,213469,225001,229700,232846,235148,238194,241176,242978,245955,250471,260427,265618,269966,275637,290880,307500,327500]
["AAAPNeurologyProfessor","AAAP",1,"Neurology","Professor",88,null,167300,218000,231001,248425,257023,261547,270319,279011,284293,287948,300037,311300,317158,323724,345205,354207,394626,452349,468000]
["AAAPNeurologyChief|Associate","AAAP",1,"Neurology","Chief|Associate",8,null,260159.62680560406,265219.69549899024,270378.18182733451,275637,278412.5,281188,283963.5,286739,289514.5,292290,297975,303660,309345,315030,320715,326400,332748.43477368366,339220.34572406986,345818.13444568653]
["AAAPNeurologyChief|Professor","AAAP",1,"Neurology","Chief|Professor",17,null,250114.63411095427,263211.64030548296,276994.45831533882,291499,302140.66666666669,312782.33333333337,323424.00000000006,334065.66666666674,344707.33333333343,355349,373956.5,392564,411171.5,429779,448386.5,466994,491447.6803396098,517181.85353812529,544263.57134149794]
[{"$f":"B131&D131&E131","v":"AAAPOtherAssistant"},"AAAP",1,"Other","Assistant",32,null,82985,99424,110600,168586,191542,201370,237000,237312,238850,242484,244754,252202,254573,263952,273722,282068,332480,396000,419263]
["AAAPOtherAssociate","AAAP",1,"Other","Associate",17,null,194970.88054456201,198613.12277907191,202323.40557665357,206103,216062.33333333334,226021.66666666669,235981.00000000003,245940.33333333337,255899.66666666672,265859,270825.5,275792,280758.5,285725,290691.5,295658,301181.17377632507,306807.52571310406,312538.98327690345]
["AAAPOtherProfessor","AAAP",1,"Other","Professor",34,null,199062,242500,247934,262707,280679,295860,306965,319530,326397,344069,350500,375000,428608,429129,504802,575000,600000,714648,862874]
["AAAPOtherChief|Professor","AAAP",1,"Other","Chief|Professor",14,null,208702.20377388722,221036.189817762,234099.09586813231,247934,259411,270888,282365,293842,305319,316796,335518.16666666669,354240.33333333337,372962.50000000006,391684.66666666674,410406.83333333343,429129,454489.87785041484,481349.54540123133,509796.57886732969]
["AAAPPalliative CareAssistant","AAAP",1,"Palliative Care","Assistant",38,null,165000,169855,171825,176000,177620,182990,183600,185000,185640,187849,188875,197940,198732,200400,204048,210613,213817,217132,235747]
["AAAPPalliative CareAssociate","AAAP",1,"Palliative Care","Associate",16,null,192864.3204011854,198509.05871205966,204319.00679595972,210299,213860.83333333334,217422.66666666669,220984.50000000003,224546.33333333337,228108.16666666672,231670,238450.5,245231,252011.5,258792,265572.5,272353,280324.20696033153,288528.7146017807,296973.3511509989]
["AAAPPalliative CareProfessor","AAAP",1,"Palliative Care","Professor",5,null,227201.43357507614,229980.81654025288,232794.20003766904,235642,240370,245098,249826,254554,259282,264010,267239.66666666669,270469.33333333337,273699.00000000006,276928.66666666674,280158.33333333343,283388,286854.7201141371,290363.84904004383,293915.90556990885]
["AAAPPsychology PhDAssistant","AAAP",1,"Psychology PhD","Assistant",202,null,89675,95667,97236,99200,101067,102170,103432,105000,107657,110061,111654,113698,115745,118976,121796,123885,128953,133673,138798]
["AAAPPsychology PhDAssociate","AAAP",1,"Psychology PhD","Associate",104,null,114190,117815,119581,124301,124892,127000,127358,130730,133652,135669,141220,144213,147526,150322,160000,162448,167405,177218,188448]
["AAAPPsychology PhDProfessor","AAAP",1,"Psychology PhD","Professor",71,null,126719,154000,157985,167482,169832,182957,184829,190255,198001,202634,211786,219147,225657,235374,245061,251846,266262,284149,360672]
["AAAPPsychology PhDChief|Associate","AAAP",1,"Psychology PhD","Chief|Associate",5,null,80891.905187597367,90379.626116344269,100980.15120284988,112824,121154.33333333333,129484.66666666666,137815,146145.33333333334,154475.66666666669,162806,181901.33333333334,200996.66666666669,220092.00000000003,239187.33333333337,258282.66666666672,277378,309911.35484769195,346260.51043533388,386873.01775651891]
["AAAPPsychology PhDChief|Professor","AAAP",1,"Psychology PhD","Chief|Professor",12,null,130297.49067869084,139858.58368354948,150121.25965037767,161137,171329,181521,191713,201905,212097,222289,238600.33333333334,254911.66666666669,271223,287534.33333333331,303845.66666666663,320157,343649.78437529528,368866.4445918313,395933.47684812336]
["AAAPPulmonaryInstructor/Lecturer","AAAP",1,"Pulmonary","Instructor/Lecturer",14,null,123388.75753851743,128096.5952734501,132984.05825610066,138058,140930.66666666666,143803.33333333331,146675.99999999997,149548.66666666663,152421.33333333328,155294,161219.16666666666,167144.33333333331,173069.49999999997,178994.66666666663,184919.83333333328,190845,198126.59769533915,205686.02119170409,213533.87079673953]
["AAAPPulmonaryAssistant","AAAP",1,"Pulmonary","Assistant",226,null,164976,170000,175810,178964,181800,185750,187032,190004,194000,197171,199975,201537,205146,212949,221615,227979,236900,247209,256075]
["AAAPPulmonaryAssociate","AAAP",1,"Pulmonary","Associate",137,null,191769,199208,204453,208472,212000,214514,219999,224718,230984,237340,241068,247338,250449,252337,258619,274703,285617,298000,327084]
["AAAPPulmonaryProfessor","AAAP",1,"Pulmonary","Professor",135,null,201115,232635,247221,255000,268778,274138,276646,279619,291250,301574,304478,313055,319441,337999,344055,380572,398170,411968,533300]
["AAAPPulmonaryChief|Associate","AAAP",1,"Pulmonary","Chief|Associate",13,null,237936.34604478726,241204.14553141966,244516.82472500874,247875,255468.16666666666,263061.33333333331,270654.5,278247.66666666669,285840.83333333337,293434,297464,301494,305524,309554,313584,317614,321976.08626130578,326398.08108001476,330880.80723564926]
["AAAPPulmonaryChief|Professor","AAAP",1,"Pulmonary","Chief|Professor",39,null,221218,236511,275000,279625,281257,300000,301670,307538,328051,339900,341847,344055,368894,382253,389577,408562,410919,416624,487914]
["AAAPRehabilitationAssistant","AAAP",1,"Rehabilitation","Assistant",36,null,160000,183855,200000,208080,212971,214760,223686,223850,226300,227341,233459,241381,247541,260000,273103,276414,287702,374445,479691]
["AAAPRehabilitationAssociate","AAAP",1,"Rehabilitation","Associate",6,null,231751.74195679231,233925.05020353454,236118.73917620134,238333,241904.83333333334,245476.66666666669,249048.50000000003,252620.33333333337,256192.16666666672,259764,262200,264636,267072,269508,271944,274380,276953.0650898508,279550.25972251309,282171.810178635]
["AAAPRehabilitationProfessor","AAAP",1,"Rehabilitation","Professor",7,null,258699.45713397872,269600.5056330642,280960.90128229797,292800,298851.66666666669,304903.33333333337,310955.00000000006,317006.66666666674,323058.33333333343,329110,342978,356846,370714,384582,398450,412318,429692.20930388017,447798.5310766194,466667.81499072281]
["AAAPRheumatologyInstructor/Lecturer","AAAP",1,"Rheumatology","Instructor/Lecturer",6,null,134116.8851256943,136049.92837028819,138010.83280612557,140000,142723.16666666666,145446.33333333331,148169.49999999997,150892.66666666663,153615.83333333328,156339,158592.33333333334,160845.66666666669,163099.00000000003,165352.33333333337,167605.66666666672,169859,172307.19876465033,174790.68372073729,177309.96345250006]
["AAAPRheumatologyAssistant","AAAP",1,"Rheumatology","Assistant",108,null,155000,160617,164000,165750,168758,171147,172288,173406,174302,175493,177512,179100,186939,190400,196221,199525,204944,210120,220000]
["AAAPRheumatologyAssociate","AAAP",1,"Rheumatology","Associate",63,null,185000,187000,193383,197640,201121,202597,207655,211719,216424,217400,221902,224048,227193,232555,239655,251229,261394,275000,313812]
["AAAPRheumatologyProfessor","AAAP",1,"Rheumatology","Professor",41,null,226917,240023,248000,255337,258200,265210,267654,270000,277434,282912,291187,294499,300435,307336,320911,328139,342716,398486,525000]
["AAAPRheumatologyChief|Associate","AAAP",1,"Rheumatology","Chief|Associate",16,null,196373.62710793171,205196.11392332058,214414.96900238129,224048,226057.5,228067,230076.5,232086,234095.5,236105,246712.5,257320,267927.5,278535,289142.5,299750,313216.88178988168,327288.79078624421,341992.90907372261]
["AAAPRheumatologyChief|Professor","AAAP",1,"Rheumatology","Chief|Professor",16,null,241447.16471514333,247034.48323409873,252751.09765209316,258600,263464.5,268329,273193.5,278058,282922.5,287787,294446.66666666669,301106.33333333337,307766.00000000006,314425.66666666674,321085.33333333343,327745,335329.33303681778,343089.1748002778,351028.58673032187]
["AAAPSleep MedicineAssistant","AAAP",1,"Sleep Medicine","Assistant",20,null,182793,187557,189683,190858,193329,195848,197454,201873,209940,214775,215981,221281,225368,229004,230000,236429,243220,254078,480426]
["AAAPSleep MedicineAssociate","AAAP",1,"Sleep Medicine","Associate",13,null,220919.58784202722,224124.02029345915,227374.93294810029,230673,234038.83333333334,237404.66666666669,240770.50000000003,244136.33333333337,247502.16666666672,250868,254506.83333333334,258145.66666666669,261784.50000000003,265423.33333333337,269062.16666666669,272701,276656.5203885443,280669.41548984795,284740.51752251707]
["AAAPSleep MedicineProfessor","AAAP",1,"Sleep Medicine","Professor",7,null,269095.21444297733,270170.17639760522,271249.43253192073,272333,278234,284135,290036,295937,301838,307739,308968.33333333331,310197.66666666663,311426.99999999994,312656.33333333326,313885.66666666657,315115,316373.79844066995,317637.62543762644,318906.50107857969]
["AAAPSports MedicineAssistant","AAAP",1,"Sports Medicine","Assistant",13,null,185079.63610899542,188182.77128663528,191337.93513762436,194546,196767.5,198989,201210.5,203432,205653.5,207875,211360.33333333334,214845.66666666669,218331.00000000003,221816.33333333337,225301.66666666672,228787,232622.95409420726,236523.22366006661,240488.88704205042]
["AAAPSports MedicineAssociate","AAAP",1,"Sports Medicine","Associate",14,null,196251.7874920764,208541.22105956127,221600.22813941847,235477,241924.33333333334,248371.66666666669,254819.00000000003,261266.33333333337,267713.66666666669,274161,291329.16666666669,308497.33333333337,325665.50000000006,342833.66666666674,360001.83333333343,377170,400788.66721257463,425886.35301331466,452555.67465129902]
["AAAPSports MedicineProfessor","AAAP",1,"Sports Medicine","Professor",5,null,267044.43321335898,267927.36633619573,268813.21871441638,269702,279386.16666666669,289070.33333333337,298754.50000000006,308438.66666666674,318122.83333333343,327807,328890.83333333331,329974.66666666663,331058.49999999994,332142.33333333326,333226.16666666657,334310,335415.33430239948,336524.32318862854,337636.97874189395]

{"sheet":"AAAPRVU","index":20,"n_rows":34,"n_cols":25,"rows_kept":34,"cut":false,"hidden":false,"merged":[]}
["key","Source ",null,"Type","Subspecialty","N",0.05,0.1,0.15,0.2,0.25,0.3,0.35,0.4,0.45,0.5,0.55000000000000004,0.6,0.65,0.7,0.75,0.8,0.85,0.9,0.95]
[{"$f":"B2&E2","v":"AAAPAdolescent Medicine"},"AAAP",null,1,"Adolescent Medicine",208,1542,1727,1962,2216,2500,2652,2773,2957,3150,3276,3425,3594,3873,4081,4296,4505,4880,5558,6583]
[{"$f":"B3&E3","v":"AAAPAllergy/Immunology"},"AAAP",null,1,"Allergy/Immunology",267,1574,2106,2470,2636,2880,3060,3163,3389,3558,3749,3907,4120,4448,4690,4858,4995,5333,6040,6970]
["AAAPBone Marrow Transplant","AAAP",null,1,"Bone Marrow Transplant",125,155,512,1211,1617,1982,2110,2268,2448,2803,2926,3059,3448,3657,3941,4063,4270,4765,5204,8680]
["AAAPCardiology - Critical Care","AAAP",null,1,"Cardiology - Critical Care",190,1106,2052,2540,2931,3697,4177,4542,4733,4937,5206,5789,6657,7047,7472,8005,8540,8968,9808,14548]
["AAAPCardiology - Diagnostic","AAAP",null,1,"Cardiology - Diagnostic",716,1656,2477,2772,3111,3414,3656,3979,4256,4447,4660,4886,5096,5394,5640,5940,6401,6911,7688,9233]
["AAAPCardiology - Interventional","AAAP",null,1,"Cardiology - Interventional",165,2470,3069,3536,3898,4110,4373,4797,5022,5206,5339,5644,5882,6151,6322,6830,7502,8150,8664,10189]
["AAAPChild Abuse Pediatrics","AAAP",null,1,"Child Abuse Pediatrics",83,119,376,422,527,610,652,826,973,1064,1220,1371,1467,1586,1662,1926,2193,2424,2965,3222]
["AAAPChild Development","AAAP",null,1,"Child Development",263,738,1266,1558,1721,2088,2329,2488,2587,2742,2911,3053,3229,3394,3747,3940,4269,4690,5350,6475]
["AAAPCritical Care/Intensive Care","AAAP",null,1,"Critical Care/Intensive Care",671,1580,2722,3333,3758,4101,4458,4918,5422,5736,6100,6332,6762,7157,7520,8031,8713,9472,10558,13784]
["AAAPDermatology","AAAP",null,1,"Dermatology",36,3659,4198,4368,5022,5061,5117,5487,5668,5787,5927,6003,6248,6539,6918,7501,7548,7732,9525,11828]
["AAAPEmergency Medicine","AAAP",null,1,"Emergency Medicine",690,2466,3142,3731,4103,4418,4881,5173,5503,5825,6105,6414,6688,6998,7453,7716,8052,8505,9165,10153]
["AAAPEndocrinology/Metabolism","AAAP",null,1,"Endocrinology/Metabolism",502,1598,2123,2435,2679,2969,3117,3342,3475,3666,3837,4012,4233,4452,4662,4926,5186,5551,6036,7107]
["AAAPEpilepsy","AAAP",null,1,"Epilepsy",60,2979,3985,4102,4256,4427,4793,5032,5084,5403,5614,6256,6700,7424,7673,8581,8841,9324,10073,11104]
["AAAPGastroenterology/Nutrition","AAAP",null,1,"Gastroenterology/Nutrition",647,1954,2488,2930,3189,3375,3635,3761,3929,4134,4289,4473,4703,4972,5231,5483,5759,6164,6729,7775]
["AAAPGeneral Pediatrics","AAAP",null,1,"General Pediatrics",1234,1268,1950,2522,2956,3233,3528,3838,4053,4288,4509,4731,5002,5260,5560,5881,6257,6804,7609,8983]
["AAAPGeneral Peds-In Ed","AAAP",null,1,"General Peds-In Ed",80,3391,3551,3746,3871,3950,4232,4571,5068,5309,5554,5692,5962,6148,6435,6638,6790,7359,8144,8815]
["AAAPGenetics","AAAP",null,1,"Genetics",214,604,1021,1238,1420,1595,1794,2033,2312,2526,2721,2921,3064,3221,3406,3710,4137,4432,4990,6100]
["AAAPHematology/Oncology","AAAP",null,1,"Hematology/Oncology",943,377,940,1402,1891,2192,2477,2749,3015,3179,3432,3665,3964,4231,4512,4762,5203,5730,6469,8186]
["AAAPHepatology","AAAP",null,1,"Hepatology",33,2218,2747,2954,3010,3190,3207,3346,3389,3469,3751,4146,4295,4372,4676,5024,5097,5519,6985,7235]
["AAAPHospitalist","AAAP",null,1,"Hospitalist",1066,826,1184,1431,1679,1854,2040,2222,2376,2544,2664,2848,3052,3221,3403,3655,3885,4322,4833,5720]
["AAAPInfectious Diseases","AAAP",null,1,"Infectious Diseases",354,867,1301,1542,1724,1928,2149,2305,2525,2693,2935,3110,3382,3604,3832,4207,4770,5286,6169,6946]
["AAAPMed/Peds","AAAP",null,1,"Med/Peds",47,1735,1927,2656,3569,3740,3924,3998,4097,4782,5296,5418,6257,6400,6740,7131,7765,7983,8287,8660]
["AAAPNeonatology","AAAP",null,1,"Neonatology",1349,180,1416,3305,4938,6230,7242,8026,8740,9437,10301,10962,11681,12346,13080,13969,14911,16155,18203,22021]
["AAAPNephrology","AAAP",null,1,"Nephrology",306,1675,2242,2544,2857,3172,3383,3546,3794,3981,4290,4474,4647,4953,5262,5769,6092,6653,7486,9367]
["AAAPNeurology","AAAP",null,1,"Neurology",412,1236,2025,2501,2899,3196,3467,3680,3896,4026,4208,4418,4672,4980,5272,5752,6048,6418,7151,8736]
["AAAPOther","AAAP",null,1,"Other",132,199,827,984,1340,1660,1947,2294,2519,2843,3095,3291,3554,3752,4127,4624,4815,5575,6233,7009]
["AAAPPalliative Care","AAAP",null,1,"Palliative Care",56,533,679,772,842,1014,1125,1213,1283,1402,1646,1714,1929,2072,2158,2189,2416,2659,2988,4642]
["AAAPPsychology","AAAP",null,1,"Psychology",200,633,951,1316,1609,1739,2041,2212,2343,2479,2535,2695,2773,2957,3098,3356,3643,4017,4439,5650]
["AAAPPulmonary","AAAP",null,1,"Pulmonary",450,1593,2071,2384,2728,2978,3218,3438,3624,3815,3980,4194,4454,4615,4912,5200,5519,5925,6433,7552]
["AAAPRehabilitation","AAAP",null,1,"Rehabilitation",44,1861,2439,2688,2804,2961,3221,3301,3653,4235,4354,4451,5053,5343,5797,5980,6508,7298,8712,11300]
["AAAPRheumatology","AAAP",null,1,"Rheumatology",191,1616,1881,2192,2553,2702,2908,3068,3220,3317,3446,3644,3860,4121,4338,4506,4695,5060,5703,6776]
["AAAPSleep Medicine","AAAP",null,1,"Sleep Medicine",43,2152,2994,3239,3420,3480,3565,3690,3744,4099,4192,4286,4329,4710,5174,5327,5430,5914,6070,6891]
["AAAPSports Medicine","AAAP",null,1,"Sports Medicine",27,3506,3809,4070,4149,4326,4351,4450,4575,4949,4989,5045,5241,5450,5695,5763,5946,6040,6528,6666]

{"sheet":"AAMC","index":21,"n_rows":3561,"n_cols":23,"rows_kept":3561,"cut":false,"hidden":false,"merged":[]}
["Key","Department / Specialty","Rank Code","Source","Type","School Subset","Rank","Degree","Fiscal Year","25th","30th","35th","40th","45th","Median","55th","60th","65th","70th","75th","80th","85th","90th"]
[{"$f":"AAMC_Raw_Data_for_FY22[[#This Row],[Source]]&AAMC_Raw_Data_for_FY22[[#This Row],[Type]]&AAMC_Raw_Data_for_FY22[[#This Row],[School Subset]]&AAMC_Raw_Data_for_FY22[[#This Row],[Rank]]&AAMC_Raw_Data_for_FY22[[#This Row],[Degree]]&AAMC_Raw_Data_for_FY22[[#This Row],[Department / Specialty]]&\"L\"","v":"AAMCAcademicAllInstructorMDBasic Sciences TotalL"},"Basic Sciences Total",5,"AAMC","Academic","All","Instructor","MD","2021-2022",66395,{"$f":"(((AAMC_Raw_Data_for_FY22[[#This Row],[Median]]-AAMC_Raw_Data_for_FY22[[#This Row],[25th]])/25)*5) + AAMC_Raw_Data_for_FY22[[#This Row],[25th]]","v":68098},{"$f":"(((AAMC_Raw_Data_for_FY22[[#This Row],[Median]]-AAMC_Raw_Data_for_FY22[[#This Row],[25th]])/25)*10) + AAMC_Raw_Data_for_FY22[[#This Row],[25th]]","v":69801},{"$f":"(((AAMC_Raw_Data_for_FY22[[#This Row],[Median]]-AAMC_Raw_Data_for_FY22[[#This Row],[25th]])/25)*15) + AAMC_Raw_Data_for_FY22[[#This Row],[25th]]","v":71504},{"$f":"(((AAMC_Raw_Data_for_FY22[[#This Row],[Median]]-AAMC_Raw_Data_for_FY22[[#This Row],[25th]])/25)*20) + AAMC_Raw_Data_for_FY22[[#This Row],[25th]]","v":73207},74910,{"$f":"(((AAMC_Raw_Data_for_FY22[[#This Row],[75th]]-AAMC_Raw_Data_for_FY22[[#This Row],[Median]])/25)*5) + AAMC_Raw_Data_for_FY22[[#This Row],[Median]]","v":79323.8},{"$f":"(((AAMC_Raw_Data_for_FY22[[#This Row],[75th]]-AAMC_Raw_Data_for_FY22[[#This Row],[Median]])/25)*10) + AAMC_Raw_Data_for_FY22[[#This Row],[Median]]","v":83737.600000000006},{"$f":"(((AAMC_Raw_Data_for_FY22[[#This Row],[75th]]-AAMC_Raw_Data_for_FY22[[#This Row],[Median]])/25)*15) + AAMC_Raw_Data_for_FY22[[#This Row],[Median]]","v":88151.4},{"$f":"(((AAMC_Raw_Data_for_FY22[[#This Row],[75th]]-AAMC_Raw_Data_for_FY22[[#This Row],[Median]])/25)*20) + AAMC_Raw_Data_for_FY22[[#This Row],[Median]]","v":92565.2},96979,{"$f":"(((AAMC_Raw_Data_for_FY22[[#This Row],[75th]]-AAMC_Raw_Data_for_FY22[[#This Row],[Median]])/25)*30) + AAMC_Raw_Data_for_FY22[[#This Row],[Median]]","v":101392.8},{"$f":"(((AAMC_Raw_Data_for_FY22[[#This Row],[75th]]-AAMC_Raw_Data_for_FY22[[#This Row],[Median]])/25)*35) + AAMC_Raw_Data_for_FY22[[#This Row],[Median]]","v":105806.6},{"$f":"(((AAMC_Raw_Data_for_FY22[[#This Row],[75th]]-AAMC_Raw_Data_for_FY22[[#This Row],[Median]])/25)*40) + AAMC_Raw_Data_for_FY22[[#This Row],[Median]]","v":110220.4}]
[{"$f":"AAMC_Raw_Data_for_FY22[[#This Row],[Source]]&AAMC_Raw_Data_for_FY22[[#This Row],[Type]]&AAMC_Raw_Data_for_FY22[[#This Row],[School Subset]]&AAMC_Raw_Data_for_FY22[[#This Row],[Rank]]&AAMC_Raw_Data_for_FY22[[#This Row],[Degree]]&AAMC_Raw_Data_for_FY22[[#This Row],[Department / Specialty]]&\"L\"","v":"AAMCAcademicAllAssistantMDBasic Sciences TotalL"},"Basic Sciences Total",4,"AAMC","Academic","All","Assistant","MD","2021-2022",92961,{"$f":"(((AAMC_Raw_Data_for_FY22[[#This Row],[Median]]-AAMC_Raw_Data_for_FY22[[#This Row],[25th]])/25)*5) + AAMC_Raw_Data_for_FY22[[#This Row],[25th]]","v":98368.8},{"$f":"(((AAMC_Raw_Data_for_FY22[[#This Row],[Median]]-AAMC_Raw_Data_for_FY22[[#This Row],[25th]])/25)*10) + AAMC_Raw_Data_for_FY22[[#This Row],[25th]]","v":103776.6},{"$f":"(((AAMC_Raw_Data_for_FY22[[#This Row],[Median]]-AAMC_Raw_Data_for_FY22[[#This Row],[25th]])/25)*15) + AAMC_Raw_Data_for_FY22[[#This Row],[25th]]","v":109184.4},{"$f":"(((AAMC_Raw_Data_for_FY22[[#This Row],[Median]]-AAMC_Raw_Data_for_FY22[[#This Row],[25th]])/25)*20) + AAMC_Raw_Data_for_FY22[[#This Row],[25th]]","v":114592.2},120000,{"$f":"(((AAMC_Raw_Data_for_FY22[[#This Row],[75th]]-AAMC_Raw_Data_for_FY22[[#This Row],[Median]])/25)*5) + AAMC_Raw_Data_for_FY22[[#This Row],[Median]]","v":128490},{"$f":"(((AAMC_Raw_Data_for_FY22[[#This Row],[75th]]-AAMC_Raw_Data_for_FY22[[#This Row],[Median]])/25)*10) + AAMC_Raw_Data_for_FY22[[#This Row],[Median]]","v":136980},{"$f":"(((AAMC_Raw_Data_for_FY22[[#This Row],[75th]]-AAMC_Raw_Data_for_FY22[[#This Row],[Median]])/25)*15) + AAMC_Raw_Data_for_FY22[[#This Row],[Median]]","v":145470},{"$f":"(((AAMC_Raw_Data_for_FY22[[#This Row],[75th]]-AAMC_Raw_Data_for_FY22[[#This Row],[Median]])/25)*20) + AAMC_Raw_Data_for_FY22[[#This Row],[Median]]","v":153960},162450,{"$f":"(((AAMC_Raw_Data_for_FY22[[#This Row],[75th]]-AAMC_Raw_Data_for_FY22[[#This Row],[Median]])/25)*30) + AAMC_Raw_Data_for_FY22[[#This Row],[Median]]","v":170940},{"$f":"(((AAMC_Raw_Data_for_FY22[[#This Row],[75th]]-AAMC_Raw_Data_for_FY22[[#This Row],[Median]])/25)*35) + AAMC_Raw_Data_for_FY22[[#This Row],[Median]]","v":179430},{"$f":"(((AAMC_Raw_Data_for_FY22[[#This Row],[75th]]-AAMC_Raw_Data_for_FY22[[#This Row],[Median]])/25)*40) + AAMC_Raw_Data_for_FY22[[#This Row],[Median]]","v":187920}]
[{"$f":"AAMC_Raw_Data_for_FY22[[#This Row],[Source]]&AAMC_Raw_Data_for_FY22[[#This Row],[Type]]&AAMC_Raw_Data_for_FY22[[#This Row],[School Subset]]&AAMC_Raw_Data_for_FY22[[#This Row],[Rank]]&AAMC_Raw_Data_for_FY22[[#This Row],[Degree]]&AAMC_Raw_Data_for_FY22[[#This Row],[Department / Specialty]]&\"L\"","v":"AAMCAcademicAllAssociateMDBasic Sciences TotalL"},"Basic Sciences Total",3,"AAMC","Academic","All","Associate","MD","2021-2022",125000,{"$f":"(((AAMC_Raw_Data_for_FY22[[#This Row],[Median]]-AAMC_Raw_Data_for_FY22[[#This Row],[25th]])/25)*5) + AAMC_Raw_Data_for_FY22[[#This Row],[25th]]","v":130074.2},{"$f":"(((AAMC_Raw_Data_for_FY22[[#This Row],[Median]]-AAMC_Raw_Data_for_FY22[[#This Row],[25th]])/25)*10) + AAMC_Raw_Data_for_FY22[[#This Row],[25th]]","v":135148.4},{"$f":"(((AAMC_Raw_Data_for_FY22[[#This Row],[Median]]-AAMC_Raw_Data_for_FY22[[#This Row],[25th]])/25)*15) + AAMC_Raw_Data_for_FY22[[#This Row],[25th]]","v":140222.6},{"$f":"(((AAMC_Raw_Data_for_FY22[[#This Row],[Median]]-AAMC_Raw_Data_for_FY22[[#This Row],[25th]])/25)*20) + AAMC_Raw_Data_for_FY22[[#This Row],[25th]]","v":145296.79999999999},150371,{"$f":"(((AAMC_Raw_Data_for_FY22[[#This Row],[75th]]-AAMC_Raw_Data_for_FY22[[#This Row],[Median]])/25)*5) + AAMC_Raw_Data_for_FY22[[#This Row],[Median]]","v":157736.79999999999},{"$f":"(((AAMC_Raw_Data_for_FY22[[#This Row],[75th]]-AAMC_Raw_Data_for_FY22[[#This Row],[Median]])/25)*10) + AAMC_Raw_Data_for_FY22[[#This Row],[Median]]","v":165102.6},{"$f":"(((AAMC_Raw_Data_for_FY22[[#This Row],[75th]]-AAMC_Raw_Data_for_FY22[[#This Row],[Median]])/25)*15) + AAMC_Raw_Data_for_FY22[[#This Row],[Median]]","v":172468.4},{"$f":"(((AAMC_Raw_Data_for_FY22[[#This Row],[75th]]-AAMC_Raw_Data_for_FY22[[#This Row],[Median]])/25)*20) + AAMC_Raw_Data_for_FY22[[#This Row],[Median]]","v":179834.2},187200,{"$f":"(((AAMC_Raw_Data_for_FY22[[#This Row],[75th]]-AAMC_Raw_Data_for_FY22[[#This Row],[Median]])/25)*30) + AAMC_Raw_Data_for_FY22[[#This Row],[Median]]","v":194565.8},{"$f":"(((AAMC_Raw_Data_for_FY22[[#This Row],[75th]]-AAMC_Raw_Data_for_FY22[[#This Row],[Median]])/25)*35) + AAMC_Raw_Data_for_FY22[[#This Row],[Median]]","v":201931.6},{"$f":"(((AAMC_Raw_Data_for_FY22[[#This Row],[75th]]-AAMC_Raw_Data_for_FY22[[#This Row],[Median]])/25)*40) + AAMC_Raw_Data_for_FY22[[#This Row],[Median]]","v":209297.4}]
[{"$f":"AAMC_Raw_Data_for_FY22[[#This Row],[Source]]&AAMC_Raw_Data_for_FY22[[#This Row],[Type]]&AAMC_Raw_Data_for_FY22[[#This Row],[School Subset]]&AAMC_Raw_Data_for_FY22[[#This Row],[Rank]]&AAMC_Raw_Data_for_FY22[[#This Row],[Degree]]&AAMC_Raw_Data_for_FY22[[#This Row],[Department / Specialty]]&\"L\"","v":"AAMCAcademicAllProfessorMDBasic Sciences TotalL"},"Basic Sciences Total",2,"AAMC","Academic","All","Professor","MD","2021-2022",189617,{"$f":"(((AAMC_Raw_Data_for_FY22[[#This Row],[Median]]-AAMC_Raw_Data_for_FY22[[#This Row],[25th]])/25)*5) + AAMC_Raw_Data_for_FY22[[#This Row],[25th]]","v":198956},{"$f":"(((AAMC_Raw_Data_for_FY22[[#This Row],[Median]]-AAMC_Raw_Data_for_FY22[[#This Row],[25th]])/25)*10) + AAMC_Raw_Data_for_FY22[[#This Row],[25th]]","v":208295},{"$f":"(((AAMC_Raw_Data_for_FY22[[#This Row],[Median]]-AAMC_Raw_Data_for_FY22[[#This Row],[25th]])/25)*15) + AAMC_Raw_Data_for_FY22[[#This Row],[25th]]","v":217634},{"$f":"(((AAMC_Raw_Data_for_FY22[[#This Row],[Median]]-AAMC_Raw_Data_for_FY22[[#This Row],[25th]])/25)*20) + AAMC_Raw_Data_for_FY22[[#This Row],[25th]]","v":226973},236312,{"$f":"(((AAMC_Raw_Data_for_FY22[[#This Row],[75th]]-AAMC_Raw_Data_for_FY22[[#This Row],[Median]])/25)*5) + AAMC_Raw_Data_for_FY22[[#This Row],[Median]]","v":249049.4},{"$f":"(((AAMC_Raw_Data_for_FY22[[#This Row],[75th]]-AAMC_Raw_Data_for_FY22[[#This Row],[Median]])/25)*10) + AAMC_Raw_Data_for_FY22[[#This Row],[Median]]","v":261786.8},{"$f":"(((AAMC_Raw_Data_for_FY22[[#This Row],[75th]]-AAMC_Raw_Data_for_FY22[[#This Row],[Median]])/25)*15) + AAMC_Raw_Data_for_FY22[[#This Row],[Median]]","v":274524.2},{"$f":"(((AAMC_Raw_Data_for_FY22[[#This Row],[75th]]-AAMC_Raw_Data_for_FY22[[#This Row],[Median]])/25)*20) + AAMC_Raw_Data_for_FY22[[#This Row],[Median]]","v":287261.59999999998},299999,{"$f":"(((AAMC_Raw_Data_for_FY22[[#This Row],[75th]]-AAMC_Raw_Data_for_FY22[[#This Row],[Median]])/25)*30) + AAMC_Raw_Data_for_FY22[[#This Row],[Median]]","v":312736.40000000002},{"$f":"(((AAMC_Raw_Data_for_FY22[[#This Row],[75th]]-AAMC_Raw_Data_for_FY22[[#This Row],[Median]])/25)*35) + AAMC_Raw_Data_for_FY22[[#This Row],[Median]]","v":325473.8},{"$f":"(((AAMC_Raw_Data_for_FY22[[#This Row],[75th]]-AAMC_Raw_Data_for_FY22[[#This Row],[Median]])/25)*40) + AAMC_Raw_Data_for_FY22[[#This Row],[Median]]","v":338211.2}]
[{"$f":"AAMC_Raw_Data_for_FY22[[#This Row],[Source]]&AAMC_Raw_Data_for_FY22[[#This Row],[Type]]&AAMC_Raw_Data_for_FY22[[#This Row],[School Subset]]&AAMC_Raw_Data_for_FY22[[#This Row],[Rank]]&AAMC_Raw_Data_for_FY22[[#This Row],[Degree]]&AAMC_Raw_Data_for_FY22[[#This Row],[Department / Specialty]]&\"L\"","v":"AAMCAcademicAllChiefMDBasic Sciences TotalL"},"Basic Sciences Total",6,"AAMC","Academic","All","Chief","MD","2021-2022",245006,{"$f":"(((AAMC_Raw_Data_for_FY22[[#This Row],[Median]]-AAMC_Raw_Data_for_FY22[[#This Row],[25th]])/25)*5) + AAMC_Raw_Data_for_FY22[[#This Row],[25th]]","v":260336.4},{"$f":"(((AAMC_Raw_Data_for_FY22[[#This Row],[Median]]-AAMC_Raw_Data_for_FY22[[#This Row],[25th]])/25)*10) + AAMC_Raw_Data_for_FY22[[#This Row],[25th]]","v":275666.8},{"$f":"(((AAMC_Raw_Data_for_FY22[[#This Row],[Median]]-AAMC_Raw_Data_for_FY22[[#This Row],[25th]])/25)*15) + AAMC_Raw_Data_for_FY22[[#This Row],[25th]]","v":290997.2},{"$f":"(((AAMC_Raw_Data_for_FY22[[#This Row],[Median]]-AAMC_Raw_Data_for_FY22[[#This Row],[25th]])/25)*20) + AAMC_Raw_Data_for_FY22[[#This Row],[25th]]","v":306327.59999999998},321658,{"$f":"(((AAMC_Raw_Data_for_FY22[[#This Row],[75th]]-AAMC_Raw_Data_for_FY22[[#This Row],[Median]])/25)*5) + AAMC_Raw_Data_for_FY22[[#This Row],[Median]]","v":339197},{"$f":"(((AAMC_Raw_Data_for_FY22[[#This Row],[75th]]-AAMC_Raw_Data_for_FY22[[#This Row],[Median]])/25)*10) + AAMC_Raw_Data_for_FY22[[#This Row],[Median]]","v":356736},{"$f":"(((AAMC_Raw_Data_for_FY22[[#This Row],[75th]]-AAMC_Raw_Data_for_FY22[[#This Row],[Median]])/25)*15) + AAMC_Raw_Data_for_FY22[[#This Row],[Median]]","v":374275},{"$f":"(((AAMC_Raw_Data_for_FY22[[#This Row],[75th]]-AAMC_Raw_Data_for_FY22[[#This Row],[Median]])/25)*20) + AAMC_Raw_Data_for_FY22[[#This Row],[Median]]","v":391814},409353,{"$f":"(((AAMC_Raw_Data_for_FY22[[#This Row],[75th]]-AAMC_Raw_Data_for_FY22[[#This Row],[Median]])/25)*30) + AAMC_Raw_Data_for_FY22[[#This Row],[Median]]","v":426892},{"$f":"(((AAMC_Raw_Data_for_FY22[[#This Row],[75th]]-AAMC_Raw_Data_for_FY22[[#This Row],[Median]])/25)*35) + AAMC_Raw_Data_for_FY22[[#This Row],[Median]]","v":444431},{"$f":"(((AAMC_Raw_Data_for_FY22[[#This Row],[75th]]-AAMC_Raw_Data_for_FY22[[#This Row],[Median]])/25)*40) + AAMC_Raw_Data_for_FY22[[#This Row],[Median]]","v":461970}]
[{"$f":"AAMC_Raw_Data_for_FY22[[#This Row],[Source]]&AAMC_Raw_Data_for_FY22[[#This Row],[Type]]&AAMC_Raw_Data_for_FY22[[#This Row],[School Subset]]&AAMC_Raw_Data_for_FY22[[#This Row],[Rank]]&AAMC_Raw_Data_for_FY22[[#This Row],[Degree]]&AAMC_Raw_Data_for_FY22[[#This Row],[Department / Specialty]]&\"L\"","v":"AAMCAcademicAllChairMDBasic Sciences TotalL"},"Basic Sciences Total",1,"AAMC","Academic","All","Chair","MD","2021-2022",337381,{"$f":"(((AAMC_Raw_Data_for_FY22[[#This Row],[Median]]-AAMC_Raw_Data_for_FY22[[#This Row],[25th]])/25)*5) + AAMC_Raw_Data_for_FY22[[#This Row],[25th]]","v":351186.2},{"$f":"(((AAMC_Raw_Data_for_FY22[[#This Row],[Median]]-AAMC_Raw_Data_for_FY22[[#This Row],[25th]])/25)*10) + AAMC_Raw_Data_for_FY22[[#This Row],[25th]]","v":364991.4},{"$f":"(((AAMC_Raw_Data_for_FY22[[#This Row],[Median]]-AAMC_Raw_Data_for_FY22[[#This Row],[25th]])/25)*15) + AAMC_Raw_Data_for_FY22[[#This Row],[25th]]","v":378796.6},{"$f":"(((AAMC_Raw_Data_for_FY22[[#This Row],[Median]]-AAMC_Raw_Data_for_FY22[[#This Row],[25th]])/25)*20) + AAMC_Raw_Data_for_FY22[[#This Row],[25th]]","v":392601.8},406407,{"$f":"(((AAMC_Raw_Data_for_FY22[[#This Row],[75th]]-AAMC_Raw_Data_for_FY22[[#This Row],[Median]])/25)*5) + AAMC_Raw_Data_for_FY22[[#This Row],[Median]]","v":421954.8},{"$f":"(((AAMC_Raw_Data_for_FY22[[#This Row],[75th]]-AAMC_Raw_Data_for_FY22[[#This Row],[Median]])/25)*10) + AAMC_Raw_Data_for_FY22[[#This Row],[Median]]","v":437502.6},{"$f":"(((AAMC_Raw_Data_for_FY22[[#This Row],[75th]]-AAMC_Raw_Data_for_FY22[[#This Row],[Median]])/25)*15) + AAMC_Raw_Data_for_FY22[[#This Row],[Median]]","v":453050.4},{"$f":"(((AAMC_Raw_Data_for_FY22[[#This Row],[75th]]-AAMC_Raw_Data_for_FY22[[#This Row],[Median]])/25)*20) + AAMC_Raw_Data_for_FY22[[#This Row],[Median]]","v":468598.2},484146,{"$f":"(((AAMC_Raw_Data_for_FY22[[#This Row],[75th]]-AAMC_Raw_Data_for_FY22[[#This Row],[Median]])/25)*30) + AAMC_Raw_Data_for_FY22[[#This Row],[Median]]","v":499693.8},{"$f":"(((AAMC_Raw_Data_for_FY22[[#This Row],[75th]]-AAMC_Raw_Data_for_FY22[[#This Row],[Median]])/25)*35) + AAMC_Raw_Data_for_FY22[[#This Row],[Median]]","v":515241.6},{"$f":"(((AAMC_Raw_Data_for_FY22[[#This Row],[75th]]-AAMC_Raw_Data_for_FY22[[#This Row],[Median]])/25)*40) + AAMC_Raw_Data_for_FY22[[#This Row],[Median]]","v":530789.4}]
[{"$f":"AAMC_Raw_Data_for_FY22[[#This Row],[Source]]&AAMC_Raw_Data_for_FY22[[#This Row],[Type]]&AAMC_Raw_Data_for_FY22[[#This Row],[School Subset]]&AAMC_Raw_Data_for_FY22[[#This Row],[Rank]]&AAMC_Raw_Data_for_FY22[[#This Row],[Degree]]&AAMC_Raw_Data_for_FY22[[#This Row],[Department / Specialty]]&\"L\"","v":"AAMCAcademicAllInstructorMDAnatomyL"},"Anatomy",5,"AAMC","Academic","All","Instructor","MD","2021-2022",67626,{"$f":"(((AAMC_Raw_Data_for_FY22[[#This Row],[Median]]-AAMC_Raw_Data_for_FY22[[#This Row],[25th]])/25)*5) + AAMC_Raw_Data_for_FY22[[#This Row],[25th]]","v":73016.2},{"$f":"(((AAMC_Raw_Data_for_FY22[[#This Row],[Median]]-AAMC_Raw_Data_for_FY22[[#This Row],[25th]])/25)*10) + AAMC_Raw_Data_for_FY22[[#This Row],[25th]]","v":78406.399999999994},{"$f":"(((AAMC_Raw_Data_for_FY22[[#This Row],[Median]]-AAMC_Raw_Data_for_FY22[[#This Row],[25th]])/25)*15) + AAMC_Raw_Data_for_FY22[[#This Row],[25th]]","v":83796.600000000006},{"$f":"(((AAMC_Raw_Data_for_FY22[[#This Row],[Median]]-AAMC_Raw_Data_for_FY22[[#This Row],[25th]])/25)*20) + AAMC_Raw_Data_for_FY22[[#This Row],[25th]]","v":89186.8},94577,{"$f":"(((AAMC_Raw_Data_for_FY22[[#This Row],[75th]]-AAMC_Raw_Data_for_FY22[[#This Row],[Median]])/25)*5) + AAMC_Raw_Data_for_FY22[[#This Row],[Median]]","v":102557},{"$f":"(((AAMC_Raw_Data_for_FY22[[#This Row],[75th]]-AAMC_Raw_Data_for_FY22[[#This Row],[Median]])/25)*10) + AAMC_Raw_Data_for_FY22[[#This Row],[Median]]","v":110537},{"$f":"(((AAMC_Raw_Data_for_FY22[[#This Row],[75th]]-AAMC_Raw_Data_for_FY22[[#This Row],[Median]])/25)*15) + AAMC_Raw_Data_for_FY22[[#This Row],[Median]]","v":118517},{"$f":"(((AAMC_Raw_Data_for_FY22[[#This Row],[75th]]-AAMC_Raw_Data_for_FY22[[#This Row],[Median]])/25)*20) + AAMC_Raw_Data_for_FY22[[#This Row],[Median]]","v":126497},134477,{"$f":"(((AAMC_Raw_Data_for_FY22[[#This Row],[75th]]-AAMC_Raw_Data_for_FY22[[#This Row],[Median]])/25)*30) + AAMC_Raw_Data_for_FY22[[#This Row],[Median]]","v":142457},{"$f":"(((AAMC_Raw_Data_for_FY22[[#This Row],[75th]]-AAMC_Raw_Data_for_FY22[[#This Row],[Median]])/25)*35) + AAMC_Raw_Data_for_FY22[[#This Row],[Median]]","v":150437},{"$f":"(((AAMC_Raw_Data_for_FY22[[#This Row],[75th]]-AAMC_Raw_Data_for_FY22[[#This Row],[Median]])/25)*40) + AAMC_Raw_Data_for_FY22[[#This Row],[Median]]","v":158417}]
[{"$f":"AAMC_Raw_Data_for_FY22[[#This Row],[Source]]&AAMC_Raw_Data_for_FY22[[#This Row],[Type]]&AAMC_Raw_Data_for_FY22[[#This Row],[School Subset]]&AAMC_Raw_Data_for_FY22[[#This Row],[Rank]]&AAMC_Raw_Data_for_FY22[[#This Row],[Degree]]&AAMC_Raw_Data_for_FY22[[#This Row],[Department / Specialty]]&\"L\"","v":"AAMCAcademicAllAssistantMDAnatomyL"},"Anatomy",4,"AAMC","Academic","All","Assistant","MD","2021-2022",83355,{"$f":"(((AAMC_Raw_Data_for_FY22[[#This Row],[Median]]-AAMC_Raw_Data_for_FY22[[#This Row],[25th]])/25)*5) + AAMC_Raw_Data_for_FY22[[#This Row],[25th]]","v":87936.2},{"$f":"(((AAMC_Raw_Data_for_FY22[[#This Row],[Median]]-AAMC_Raw_Data_for_FY22[[#This Row],[25th]])/25)*10) + AAMC_Raw_Data_for_FY22[[#This Row],[25th]]","v":92517.4},{"$f":"(((AAMC_Raw_Data_for_FY22[[#This Row],[Median]]-AAMC_Raw_Data_for_FY22[[#This Row],[25th]])/25)*15) + AAMC_Raw_Data_for_FY22[[#This Row],[25th]]","v":97098.6},{"$f":"(((AAMC_Raw_Data_for_FY22[[#This Row],[Median]]-AAMC_Raw_Data_for_FY22[[#This Row],[25th]])/25)*20) + AAMC_Raw_Data_for_FY22[[#This Row],[25th]]","v":101679.8},106261,{"$f":"(((AAMC_Raw_Data_for_FY22[[#This Row],[75th]]-AAMC_Raw_Data_for_FY22[[#This Row],[Median]])/25)*5) + AAMC_Raw_Data_for_FY22[[#This Row],[Median]]","v":109672.8},{"$f":"(((AAMC_Raw_Data_for_FY22[[#This Row],[75th]]-AAMC_Raw_Data_for_FY22[[#This Row],[Median]])/25)*10) + AAMC_Raw_Data_for_FY22[[#This Row],[Median]]","v":113084.6},{"$f":"(((AAMC_Raw_Data_for_FY22[[#This Row],[75th]]-AAMC_Raw_Data_for_FY22[[#This Row],[Median]])/25)*15) + AAMC_Raw_Data_for_FY22[[#This Row],[Median]]","v":116496.4},{"$f":"(((AAMC_Raw_Data_for_FY22[[#This Row],[75th]]-AAMC_Raw_Data_for_FY22[[#This Row],[Median]])/25)*20) + AAMC_Raw_Data_for_FY22[[#This Row],[Median]]","v":119908.2},123320,{"$f":"(((AAMC_Raw_Data_for_FY22[[#This Row],[75th]]-AAMC_Raw_Data_for_FY22[[#This Row],[Median]])/25)*30) + AAMC_Raw_Data_for_FY22[[#This Row],[Median]]","v":126731.8},{"$f":"(((AAMC_Raw_Data_for_FY22[[#This Row],[75th]]-AAMC_Raw_Data_for_FY22[[#This Row],[Median]])/25)*35) + AAMC_Raw_Data_for_FY22[[#This Row],[Median]]","v":130143.6},{"$f":"(((AAMC_Raw_Data_for_FY22[[#This Row],[75th]]-AAMC_Raw_Data_for_FY22[[#This Row],[Median]])/25)*40) + AAMC_Raw_Data_for_FY22[[#This Row],[Median]]","v":133555.4}]
[{"$f":"AAMC_Raw_Data_for_FY22[[#This Row],[Source]]&AAMC_Raw_Data_for_FY22[[#This Row],[Type]]&AAMC_Raw_Data_for_FY22[[#This Row],[School Subset]]&AAMC_Raw_Data_for_FY22[[#This Row],[Rank]]&AAMC_Raw_Data_for_FY22[[#This Row],[Degree]]&AAMC_Raw_Data_for_FY22[[#This Row],[Department / Specialty]]&\"L\"","v":"AAMCAcademicAllAssociateMDAnatomyL"},"Anatomy",3,"AAMC","Academic","All","Associate","MD","2021-2022",123230,{"$f":"(((AAMC_Raw_Data_for_FY22[[#This Row],[Median]]-AAMC_Raw_Data_for_FY22[[#This Row],[25th]])/25)*5) + AAMC_Raw_Data_for_FY22[[#This Row],[25th]]","v":126318.2},{"$f":"(((AAMC_Raw_Data_for_FY22[[#This Row],[Median]]-AAMC_Raw_Data_for_FY22[[#This Row],[25th]])/25)*10) + AAMC_Raw_Data_for_FY22[[#This Row],[25th]]","v":129406.39999999999},{"$f":"(((AAMC_Raw_Data_for_FY22[[#This Row],[Median]]-AAMC_Raw_Data_for_FY22[[#This Row],[25th]])/25)*15) + AAMC_Raw_Data_for_FY22[[#This Row],[25th]]","v":132494.6},{"$f":"(((AAMC_Raw_Data_for_FY22[[#This Row],[Median]]-AAMC_Raw_Data_for_FY22[[#This Row],[25th]])/25)*20) + AAMC_Raw_Data_for_FY22[[#This Row],[25th]]","v":135582.79999999999},138671,{"$f":"(((AAMC_Raw_Data_for_FY22[[#This Row],[75th]]-AAMC_Raw_Data_for_FY22[[#This Row],[Median]])/25)*5) + AAMC_Raw_Data_for_FY22[[#This Row],[Median]]","v":141153},{"$f":"(((AAMC_Raw_Data_for_FY22[[#This Row],[75th]]-AAMC_Raw_Data_for_FY22[[#This Row],[Median]])/25)*10) + AAMC_Raw_Data_for_FY22[[#This Row],[Median]]","v":143635},{"$f":"(((AAMC_Raw_Data_for_FY22[[#This Row],[75th]]-AAMC_Raw_Data_for_FY22[[#This Row],[Median]])/25)*15) + AAMC_Raw_Data_for_FY22[[#This Row],[Median]]","v":146117},{"$f":"(((AAMC_Raw_Data_for_FY22[[#This Row],[75th]]-AAMC_Raw_Data_for_FY22[[#This Row],[Median]])/25)*20) + AAMC_Raw_Data_for_FY22[[#This Row],[Median]]","v":148599},151081,{"$f":"(((AAMC_Raw_Data_for_FY22[[#This Row],[75th]]-AAMC_Raw_Data_for_FY22[[#This Row],[Median]])/25)*30) + AAMC_Raw_Data_for_FY22[[#This Row],[Median]]","v":153563},{"$f":"(((AAMC_Raw_Data_for_FY22[[#This Row],[75th]]-AAMC_Raw_Data_for_FY22[[#This Row],[Median]])/25)*35) + AAMC_Raw_Data_for_FY22[[#This Row],[Median]]","v":156045},{"$f":"(((AAMC_Raw_Data_for_FY22[[#This Row],[75th]]-AAMC_Raw_Data_for_FY22[[#This Row],[Median]])/25)*40) + AAMC_Raw_Data_for_FY22[[#This Row],[Median]]","v":158527}]
[{"$f":"AAMC_Raw_Data_for_FY22[[#This Row],[Source]]&AAMC_Raw_Data_for_FY22[[#This Row],[Type]]&AAMC_Raw_Data_for_FY22[[#This Row],[School Subset]]&AAMC_Raw_Data_for_FY22[[#This Row],[Rank]]&AAMC_Raw_Data_for_FY22[[#This Row],[Degree]]&AAMC_Raw_Data_for_FY22[[#This Row],[Department / Specialty]]&\"L\"","v":"AAMCAcademicAllProfessorMDAnatomyL"},"Anatomy",2,"AAMC","Academic","All","Professor","MD","2021-2022",153938,{"$f":"(((AAMC_Raw_Data_for_FY22[[#This Row],[Median]]-AAMC_Raw_Data_for_FY22[[#This Row],[25th]])/25)*5) + AAMC_Raw_Data_for_FY22[[#This Row],[25th]]","v":159941.20000000001},{"$f":"(((AAMC_Raw_Data_for_FY22[[#This Row],[Median]]-AAMC_Raw_Data_for_FY22[[#This Row],[25th]])/25)*10) + AAMC_Raw_Data_for_FY22[[#This Row],[25th]]","v":165944.4},{"$f":"(((AAMC_Raw_Data_for_FY22[[#This Row],[Median]]-AAMC_Raw_Data_for_FY22[[#This Row],[25th]])/25)*15) + AAMC_Raw_Data_for_FY22[[#This Row],[25th]]","v":171947.6},{"$f":"(((AAMC_Raw_Data_for_FY22[[#This Row],[Median]]-AAMC_Raw_Data_for_FY22[[#This Row],[25th]])/25)*20) + AAMC_Raw_Data_for_FY22[[#This Row],[25th]]","v":177950.8},183954,{"$f":"(((AAMC_Raw_Data_for_FY22[[#This Row],[75th]]-AAMC_Raw_Data_for_FY22[[#This Row],[Median]])/25)*5) + AAMC_Raw_Data_for_FY22[[#This Row],[Median]]","v":187265.4},{"$f":"(((AAMC_Raw_Data_for_FY22[[#This Row],[75th]]-AAMC_Raw_Data_for_FY22[[#This Row],[Median]])/25)*10) + AAMC_Raw_Data_for_FY22[[#This Row],[Median]]","v":190576.8},{"$f":"(((AAMC_Raw_Data_for_FY22[[#This Row],[75th]]-AAMC_Raw_Data_for_FY22[[#This Row],[Median]])/25)*15) + AAMC_Raw_Data_for_FY22[[#This Row],[Median]]","v":193888.2},{"$f":"(((AAMC_Raw_Data_for_FY22[[#This Row],[75th]]-AAMC_Raw_Data_for_FY22[[#This Row],[Median]])/25)*20) + AAMC_Raw_Data_for_FY22[[#This Row],[Median]]","v":197199.6},200511,{"$f":"(((AAMC_Raw_Data_for_FY22[[#This Row],[75th]]-AAMC_Raw_Data_for_FY22[[#This Row],[Median]])/25)*30) + AAMC_Raw_Data_for_FY22[[#This Row],[Median]]","v":203822.4},{"$f":"(((AAMC_Raw_Data_for_FY22[[#This Row],[75th]]-AAMC_Raw_Data_for_FY22[[#This Row],[Median]])/25)*35) + AAMC_Raw_Data_for_FY22[[#This Row],[Median]]","v":207133.8},{"$f":"(((AAMC_Raw_Data_for_FY22[[#This Row],[75th]]-AAMC_Raw_Data_for_FY22[[#This Row],[Median]])/25)*40) + AAMC_Raw_Data_for_FY22[[#This Row],[Median]]","v":210445.2}]
[{"$f":"AAMC_Raw_Data_for_FY22[[#This Row],[Source]]&AAMC_Raw_Data_for_FY22[[#This Row],[Type]]&AAMC_Raw_Data_for_FY22[[#This Row],[School Subset]]&AAMC_Raw_Data_for_FY22[[#This Row],[Rank]]&AAMC_Raw_Data_for_FY22[[#This Row],[Degree]]&AAMC_Raw_Data_for_FY22[[#This Row],[Department / Specialty]]&\"L\"","v":"AAMCAcademicAllChiefMDAnatomyL"},"Anatomy",6,"AAMC","Academic","All","Chief","MD","2021-2022",null,{"$f":"(((AAMC_Raw_Data_for_FY22[[#This Row],[Median]]-AAMC_Raw_Data_for_FY22[[#This Row],[25th]])/25)*5) + AAMC_Raw_Data_for_FY22[[#This Row],[25th]]","v":0},{"$f":"(((AAMC_Raw_Data_for_FY22[[#This Row],[Median]]-AAMC_Raw_Data_for_FY22[[#This Row],[25th]])/25)*10) + AAMC_Raw_Data_for_FY22[[#This Row],[25th]]","v":0},{"$f":"(((AAMC_Raw_Data_for_FY22[[#This Row],[Median]]-AAMC_Raw_Data_for_FY22[[#This Row],[25th]])/25)*15) + AAMC_Raw_Data_for_FY22[[#This Row],[25th]]","v":0},{"$f":"(((AAMC_Raw_Data_for_FY22[[#This Row],[Median]]-AAMC_Raw_Data_for_FY22[[#This Row],[25th]])/25)*20) + AAMC_Raw_Data_for_FY22[[#This Row],[25th]]","v":0},null,{"$f":"(((AAMC_Raw_Data_for_FY22[[#This Row],[75th]]-AAMC_Raw_Data_for_FY22[[#This Row],[Median]])/25)*5) + AAMC_Raw_Data_for_FY22[[#This Row],[Median]]","v":0},{"$f":"(((AAMC_Raw_Data_for_FY22[[#This Row],[75th]]-AAMC_Raw_Data_for_FY22[[#This Row],[Median]])/25)*10) + AAMC_Raw_Data_for_FY22[[#This Row],[Median]]","v":0},{"$f":"(((AAMC_Raw_Data_for_FY22[[#This Row],[75th]]-AAMC_Raw_Data_for_FY22[[#This Row],[Median]])/25)*15) + AAMC_Raw_Data_for_FY22[[#This Row],[Median]]","v":0},{"$f":"(((AAMC_Raw_Data_for_FY22[[#This Row],[75th]]-AAMC_Raw_Data_for_FY22[[#This Row],[Median]])/25)*20) + AAMC_Raw_Data_for_FY22[[#This Row],[Median]]","v":0},null,{"$f":"(((AAMC_Raw_Data_for_FY22[[#This Row],[75th]]-AAMC_Raw_Data_for_FY22[[#This Row],[Median]])/25)*30) + AAMC_Raw_Data_for_FY22[[#This Row],[Median]]","v":0},{"$f":"(((AAMC_Raw_Data_for_FY22[[#This Row],[75th]]-AAMC_Raw_Data_for_FY22[[#This Row],[Median]])/25)*35) + AAMC_Raw_Data_for_FY22[[#This Row],[Median]]","v":0},{"$f":"(((AAMC_Raw_Data_for_FY22[[#This Row],[75th]]-AAMC_Raw_Data_for_FY22[[#This Row],[Median]])/25)*40) + AAMC_Raw_Data_for_FY22[[#This Row],[Median]]","v":0}]
[{"$f":"AAMC_Raw_Data_for_FY22[[#This Row],[Source]]&AAMC_Raw_Data_for_FY22[[#This Row],[Type]]&AAMC_Raw_Data_for_FY22[[#This Row],[School Subset]]&AAMC_Raw_Data_for_FY22[[#This Row],[Rank]]&AAMC_Raw_Data_for_FY22[[#This Row],[Degree]]&AAMC_Raw_Data_for_FY22[[#This Row],[Department / Specialty]]&\"L\"","v":"AAMCAcademicAllChairMDAnatomyL"},"Anatomy",1,"AAMC","Academic","All","Chair","MD","2021-2022",null,{"$f":"(((AAMC_Raw_Data_for_FY22[[#This Row],[Median]]-AAMC_Raw_Data_for_FY22[[#This Row],[25th]])/25)*5) + AAMC_Raw_Data_for_FY22[[#This Row],[25th]]","v":0},{"$f":"(((AAMC_Raw_Data_for_FY22[[#This Row],[Median]]-AAMC_Raw_Data_for_FY22[[#This Row],[25th]])/25)*10) + AAMC_Raw_Data_for_FY22[[#This Row],[25th]]","v":0},{"$f":"(((AAMC_Raw_Data_for_FY22[[#This Row],[Median]]-AAMC_Raw_Data_for_FY22[[#This Row],[25th]])/25)*15) + AAMC_Raw_Data_for_FY22[[#This Row],[25th]]","v":0},{"$f":"(((AAMC_Raw_Data_for_FY22[[#This Row],[Median]]-AAMC_Raw_Data_for_FY22[[#This Row],[25th]])/25)*20) + AAMC_Raw_Data_for_FY22[[#This Row],[25th]]","v":0},null,{"$f":"(((AAMC_Raw_Data_for_FY22[[#This Row],[75th]]-AAMC_Raw_Data_for_FY22[[#This Row],[Median]])/25)*5) + AAMC_Raw_Data_for_FY22[[#This Row],[Median]]","v":0},{"$f":"(((AAMC_Raw_Data_for_FY22[[#This Row],[75th]]-AAMC_Raw_Data_for_FY22[[#This Row],[Median]])/25)*10) + AAMC_Raw_Data_for_FY22[[#This Row],[Median]]","v":0},{"$f":"(((AAMC_Raw_Data_for_FY22[[#This Row],[75th]]-AAMC_Raw_Data_for_FY22[[#This Row],[Median]])/25)*15) + AAMC_Raw_Data_for_FY22[[#This Row],[Median]]","v":0},{"$f":"(((AAMC_Raw_Data_for_FY22[[#This Row],[75th]]-AAMC_Raw_Data_for_FY22[[#This Row],[Median]])/25)*20) + AAMC_Raw_Data_for_FY22[[#This Row],[Median]]","v":0},null,{"$f":"(((AAMC_Raw_Data_for_FY22[[#This Row],[75th]]-AAMC_Raw_Data_for_FY22[[#This Row],[Median]])/25)*30) + AAMC_Raw_Data_for_FY22[[#This Row],[Median]]","v":0},{"$f":"(((AAMC_Raw_Data_for_FY22[[#This Row],[75th]]-AAMC_Raw_Data_for_FY22[[#This Row],[Median]])/25)*35) + AAMC_Raw_Data_for_FY22[[#This Row],[Median]]","v":0},{"$f":"(((AAMC_Raw_Data_for_FY22[[#This Row],[75th]]-AAMC_Raw_Data_for_FY22[[#This Row],[Median]])/25)*40) + AAMC_Raw_Data_for_FY22[[#This Row],[Median]]","v":0}]
[{"$f":"AAMC_Raw_Data_for_FY22[[#This Row],[Source]]&AAMC_Raw_Data_for_FY22[[#This Row],[Type]]&AAMC_Raw_Data_for_FY22[[#This Row],[School Subset]]&AAMC_Raw_Data_for_FY22[[#This Row],[Rank]]&AAMC_Raw_Data_for_FY22[[#This Row],[Degree]]&AAMC_Raw_Data_for_FY22[[#This Row],[Department / Specialty]]&\"L\"","v":"AAMCAcademicAllInstructorMDBiochemistryL"},"Biochemistry",5,"AAMC","Academic","All","Instructor","MD","2021-2022",null,{"$f":"(((AAMC_Raw_Data_for_FY22[[#This Row],[Median]]-AAMC_Raw_Data_for_FY22[[#This Row],[25th]])/25)*5) + AAMC_Raw_Data_for_FY22[[#This Row],[25th]]","v":0},{"$f":"(((AAMC_Raw_Data_for_FY22[[#This Row],[Median]]-AAMC_Raw_Data_for_FY22[[#This Row],[25th]])/25)*10) + AAMC_Raw_Data_for_FY22[[#This Row],[25th]]","v":0},{"$f":"(((AAMC_Raw_Data_for_FY22[[#This Row],[Median]]-AAMC_Raw_Data_for_FY22[[#This Row],[25th]])/25)*15) + AAMC_Raw_Data_for_FY22[[#This Row],[25th]]","v":0},{"$f":"(((AAMC_Raw_Data_for_FY22[[#This Row],[Median]]-AAMC_Raw_Data_for_FY22[[#This Row],[25th]])/25)*20) + AAMC_Raw_Data_for_FY22[[#This Row],[25th]]","v":0},null,{"$f":"(((AAMC_Raw_Data_for_FY22[[#This Row],[75th]]-AAMC_Raw_Data_for_FY22[[#This Row],[Median]])/25)*5) + AAMC_Raw_Data_for_FY22[[#This Row],[Median]]","v":0},{"$f":"(((AAMC_Raw_Data_for_FY22[[#This Row],[75th]]-AAMC_Raw_Data_for_FY22[[#This Row],[Median]])/25)*10) + AAMC_Raw_Data_for_FY22[[#This Row],[Median]]","v":0},{"$f":"(((AAMC_Raw_Data_for_FY22[[#This Row],[75th]]-AAMC_Raw_Data_for_FY22[[#This Row],[Median]])/25)*15) + AAMC_Raw_Data_for_FY22[[#This Row],[Median]]","v":0},{"$f":"(((AAMC_Raw_Data_for_FY22[[#This Row],[75th]]-AAMC_Raw_Data_for_FY22[[#This Row],[Median]])/25)*20) + AAMC_Raw_Data_for_FY22[[#This Row],[Median]]","v":0},null,{"$f":"(((AAMC_Raw_Data_for_FY22[[#This Row],[75th]]-AAMC_Raw_Data_for_FY22[[#This Row],[Median]])/25)*30) + AAMC_Raw_Data_for_FY22[[#This Row],[Median]]","v":0},{"$f":"(((AAMC_Raw_Data_for_FY22[[#This Row],[75th]]-AAMC_Raw_Data_for_FY22[[#This Row],[Median]])/25)*35) + AAMC_Raw_Data_for_FY22[[#This Row],[Median]]","v":0},{"$f":"(((AAMC_Raw_Data_for_FY22[[#This Row],[75th]]-AAMC_Raw_Data_for_FY22[[#This Row],[Median]])/25)*40) + AAMC_Raw_Data_for_FY22[[#This Row],[Median]]","v":0}]
[{"$f":"AAMC_Raw_Data_for_FY22[[#This Row],[Source]]&AAMC_Raw_Data_for_FY22[[#This Row],[Type]]&AAMC_Raw_Data_for_FY22[[#This Row],[School Subset]]&AAMC_Raw_Data_for_FY22[[#This Row],[Rank]]&AAMC_Raw_Data_for_FY22[[#This Row],[Degree]]&AAMC_Raw_Data_for_FY22[[#This Row],[Department / Specialty]]&\"L\"","v":"AAMCAcademicAllAssistantMDBiochemistryL"},"Biochemistry",4,"AAMC","Academic","All","Assistant","MD","2021-2022",65441,{"$f":"(((AAMC_Raw_Data_for_FY22[[#This Row],[Median]]-AAMC_Raw_Data_for_FY22[[#This Row],[25th]])/25)*5) + AAMC_Raw_Data_for_FY22[[#This Row],[25th]]","v":71749},{"$f":"(((AAMC_Raw_Data_for_FY22[[#This Row],[Median]]-AAMC_Raw_Data_for_FY22[[#This Row],[25th]])/25)*10) + AAMC_Raw_Data_for_FY22[[#This Row],[25th]]","v":78057},{"$f":"(((AAMC_Raw_Data_for_FY22[[#This Row],[Median]]-AAMC_Raw_Data_for_FY22[[#This Row],[25th]])/25)*15) + AAMC_Raw_Data_for_FY22[[#This Row],[25th]]","v":84365},{"$f":"(((AAMC_Raw_Data_for_FY22[[#This Row],[Median]]-AAMC_Raw_Data_for_FY22[[#This Row],[25th]])/25)*20) + AAMC_Raw_Data_for_FY22[[#This Row],[25th]]","v":90673},96981,{"$f":"(((AAMC_Raw_Data_for_FY22[[#This Row],[75th]]-AAMC_Raw_Data_for_FY22[[#This Row],[Median]])/25)*5) + AAMC_Raw_Data_for_FY22[[#This Row],[Median]]","v":100459.8},{"$f":"(((AAMC_Raw_Data_for_FY22[[#This Row],[75th]]-AAMC_Raw_Data_for_FY22[[#This Row],[Median]])/25)*10) + AAMC_Raw_Data_for_FY22[[#This Row],[Median]]","v":103938.6},{"$f":"(((AAMC_Raw_Data_for_FY22[[#This Row],[75th]]-AAMC_Raw_Data_for_FY22[[#This Row],[Median]])/25)*15) + AAMC_Raw_Data_for_FY22[[#This Row],[Median]]","v":107417.4},{"$f":"(((AAMC_Raw_Data_for_FY22[[#This Row],[75th]]-AAMC_Raw_Data_for_FY22[[#This Row],[Median]])/25)*20) + AAMC_Raw_Data_for_FY22[[#This Row],[Median]]","v":110896.2},114375,{"$f":"(((AAMC_Raw_Data_for_FY22[[#This Row],[75th]]-AAMC_Raw_Data_for_FY22[[#This Row],[Median]])/25)*30) + AAMC_Raw_Data_for_FY22[[#This Row],[Median]]","v":117853.8},{"$f":"(((AAMC_Raw_Data_for_FY22[[#This Row],[75th]]-AAMC_Raw_Data_for_FY22[[#This Row],[Median]])/25)*35) + AAMC_Raw_Data_for_FY22[[#This Row],[Median]]","v":121332.6},{"$f":"(((AAMC_Raw_Data_for_FY22[[#This Row],[75th]]-AAMC_Raw_Data_for_FY22[[#This Row],[Median]])/25)*40) + AAMC_Raw_Data_for_FY22[[#This Row],[Median]]","v":124811.4}]
[{"$f":"AAMC_Raw_Data_for_FY22[[#This Row],[Source]]&AAMC_Raw_Data_for_FY22[[#This Row],[Type]]&AAMC_Raw_Data_for_FY22[[#This Row],[School Subset]]&AAMC_Raw_Data_for_FY22[[#This Row],[Rank]]&AAMC_Raw_Data_for_FY22[[#This Row],[Degree]]&AAMC_Raw_Data_for_FY22[[#This Row],[Department / Specialty]]&\"L\"","v":"AAMCAcademicAllAssociateMDBiochemistryL"},"Biochemistry",3,"AAMC","Academic","All","Associate","MD","2021-2022",136000,{"$f":"(((AAMC_Raw_Data_for_FY22[[#This Row],[Median]]-AAMC_Raw_Data_for_FY22[[#This Row],[25th]])/25)*5) + AAMC_Raw_Data_for_FY22[[#This Row],[25th]]","v":140000},{"$f":"(((AAMC_Raw_Data_for_FY22[[#This Row],[Median]]-AAMC_Raw_Data_for_FY22[[#This Row],[25th]])/25)*10) + AAMC_Raw_Data_for_FY22[[#This Row],[25th]]","v":144000},{"$f":"(((AAMC_Raw_Data_for_FY22[[#This Row],[Median]]-AAMC_Raw_Data_for_FY22[[#This Row],[25th]])/25)*15) + AAMC_Raw_Data_for_FY22[[#This Row],[25th]]","v":148000},{"$f":"(((AAMC_Raw_Data_for_FY22[[#This Row],[Median]]-AAMC_Raw_Data_for_FY22[[#This Row],[25th]])/25)*20) + AAMC_Raw_Data_for_FY22[[#This Row],[25th]]","v":152000},156000,{"$f":"(((AAMC_Raw_Data_for_FY22[[#This Row],[75th]]-AAMC_Raw_Data_for_FY22[[#This Row],[Median]])/25)*5) + AAMC_Raw_Data_for_FY22[[#This Row],[Median]]","v":161671},{"$f":"(((AAMC_Raw_Data_for_FY22[[#This Row],[75th]]-AAMC_Raw_Data_for_FY22[[#This Row],[Median]])/25)*10) + AAMC_Raw_Data_for_FY22[[#This Row],[Median]]","v":167342},{"$f":"(((AAMC_Raw_Data_for_FY22[[#This Row],[75th]]-AAMC_Raw_Data_for_FY22[[#This Row],[Median]])/25)*15) + AAMC_Raw_Data_for_FY22[[#This Row],[Median]]","v":173013},{"$f":"(((AAMC_Raw_Data_for_FY22[[#This Row],[75th]]-AAMC_Raw_Data_for_FY22[[#This Row],[Median]])/25)*20) + AAMC_Raw_Data_for_FY22[[#This Row],[Median]]","v":178684},184355,{"$f":"(((AAMC_Raw_Data_for_FY22[[#This Row],[75th]]-AAMC_Raw_Data_for_FY22[[#This Row],[Median]])/25)*30) + AAMC_Raw_Data_for_FY22[[#This Row],[Median]]","v":190026},{"$f":"(((AAMC_Raw_Data_for_FY22[[#This Row],[75th]]-AAMC_Raw_Data_for_FY22[[#This Row],[Median]])/25)*35) + AAMC_Raw_Data_for_FY22[[#This Row],[Median]]","v":195697},{"$f":"(((AAMC_Raw_Data_for_FY22[[#This Row],[75th]]-AAMC_Raw_Data_for_FY22[[#This Row],[Median]])/25)*40) + AAMC_Raw_Data_for_FY22[[#This Row],[Median]]","v":201368}]
[{"$f":"AAMC_Raw_Data_for_FY22[[#This Row],[Source]]&AAMC_Raw_Data_for_FY22[[#This Row],[Type]]&AAMC_Raw_Data_for_FY22[[#This Row],[School Subset]]&AAMC_Raw_Data_for_FY22[[#This Row],[Rank]]&AAMC_Raw_Data_for_FY22[[#This Row],[Degree]]&AAMC_Raw_Data_for_FY22[[#This Row],[Department / Specialty]]&\"L\"","v":"AAMCAcademicAllProfessorMDBiochemistryL"},"Biochemistry",2,"AAMC","Academic","All","Professor","MD","2021-2022",171375,{"$f":"(((AAMC_Raw_Data_for_FY22[[#This Row],[Median]]-AAMC_Raw_Data_for_FY22[[#This Row],[25th]])/25)*5) + AAMC_Raw_Data_for_FY22[[#This Row],[25th]]","v":182346.4},{"$f":"(((AAMC_Raw_Data_for_FY22[[#This Row],[Median]]-AAMC_Raw_Data_for_FY22[[#This Row],[25th]])/25)*10) + AAMC_Raw_Data_for_FY22[[#This Row],[25th]]","v":193317.8},{"$f":"(((AAMC_Raw_Data_for_FY22[[#This Row],[Median]]-AAMC_Raw_Data_for_FY22[[#This Row],[25th]])/25)*15) + AAMC_Raw_Data_for_FY22[[#This Row],[25th]]","v":204289.2},{"$f":"(((AAMC_Raw_Data_for_FY22[[#This Row],[Median]]-AAMC_Raw_Data_for_FY22[[#This Row],[25th]])/25)*20) + AAMC_Raw_Data_for_FY22[[#This Row],[25th]]","v":215260.6},226232,{"$f":"(((AAMC_Raw_Data_for_FY22[[#This Row],[75th]]-AAMC_Raw_Data_for_FY22[[#This Row],[Median]])/25)*5) + AAMC_Raw_Data_for_FY22[[#This Row],[Median]]","v":241024.6},{"$f":"(((AAMC_Raw_Data_for_FY22[[#This Row],[75th]]-AAMC_Raw_Data_for_FY22[[#This Row],[Median]])/25)*10) + AAMC_Raw_Data_for_FY22[[#This Row],[Median]]","v":255817.2},{"$f":"(((AAMC_Raw_Data_for_FY22[[#This Row],[75th]]-AAMC_Raw_Data_for_FY22[[#This Row],[Median]])/25)*15) + AAMC_Raw_Data_for_FY22[[#This Row],[Median]]","v":270609.8},{"$f":"(((AAMC_Raw_Data_for_FY22[[#This Row],[75th]]-AAMC_Raw_Data_for_FY22[[#This Row],[Median]])/25)*20) + AAMC_Raw_Data_for_FY22[[#This Row],[Median]]","v":285402.40000000002},300195,{"$f":"(((AAMC_Raw_Data_for_FY22[[#This Row],[75th]]-AAMC_Raw_Data_for_FY22[[#This Row],[Median]])/25)*30) + AAMC_Raw_Data_for_FY22[[#This Row],[Median]]","v":314987.59999999998},{"$f":"(((AAMC_Raw_Data_for_FY22[[#This Row],[75th]]-AAMC_Raw_Data_for_FY22[[#This Row],[Median]])/25)*35) + AAMC_Raw_Data_for_FY22[[#This Row],[Median]]","v":329780.2},{"$f":"(((AAMC_Raw_Data_for_FY22[[#This Row],[75th]]-AAMC_Raw_Data_for_FY22[[#This Row],[Median]])/25)*40) + AAMC_Raw_Data_for_FY22[[#This Row],[Median]]","v":344572.8}]
[{"$f":"AAMC_Raw_Data_for_FY22[[#This Row],[Source]]&AAMC_Raw_Data_for_FY22[[#This Row],[Type]]&AAMC_Raw_Data_for_FY22[[#This Row],[School Subset]]&AAMC_Raw_Data_for_FY22[[#This Row],[Rank]]&AAMC_Raw_Data_for_FY22[[#This Row],[Degree]]&AAMC_Raw_Data_for_FY22[[#This Row],[Department / Specialty]]&\"L\"","v":"AAMCAcademicAllChairMDBiochemistryL"},"Biochemistry",1,"AAMC","Academic","All","Chair","MD","2021-2022",320794,{"$f":"(((AAMC_Raw_Data_for_FY22[[#This Row],[Median]]-AAMC_Raw_Data_for_FY22[[#This Row],[25th]])/25)*5) + AAMC_Raw_Data_for_FY22[[#This Row],[25th]]","v":334202},{"$f":"(((AAMC_Raw_Data_for_FY22[[#This Row],[Median]]-AAMC_Raw_Data_for_FY22[[#This Row],[25th]])/25)*10) + AAMC_Raw_Data_for_FY22[[#This Row],[25th]]","v":347610},{"$f":"(((AAMC_Raw_Data_for_FY22[[#This Row],[Median]]-AAMC_Raw_Data_for_FY22[[#This Row],[25th]])/25)*15) + AAMC_Raw_Data_for_FY22[[#This Row],[25th]]","v":361018},{"$f":"(((AAMC_Raw_Data_for_FY22[[#This Row],[Median]]-AAMC_Raw_Data_for_FY22[[#This Row],[25th]])/25)*20) + AAMC_Raw_Data_for_FY22[[#This Row],[25th]]","v":374426},387834,{"$f":"(((AAMC_Raw_Data_for_FY22[[#This Row],[75th]]-AAMC_Raw_Data_for_FY22[[#This Row],[Median]])/25)*5) + AAMC_Raw_Data_for_FY22[[#This Row],[Median]]","v":392849.8},{"$f":"(((AAMC_Raw_Data_for_FY22[[#This Row],[75th]]-AAMC_Raw_Data_for_FY22[[#This Row],[Median]])/25)*10) + AAMC_Raw_Data_for_FY22[[#This Row],[Median]]","v":397865.6},{"$f":"(((AAMC_Raw_Data_for_FY22[[#This Row],[75th]]-AAMC_Raw_Data_for_FY22[[#This Row],[Median]])/25)*15) + AAMC_Raw_Data_for_FY22[[#This Row],[Median]]","v":402881.4},{"$f":"(((AAMC_Raw_Data_for_FY22[[#This Row],[75th]]-AAMC_Raw_Data_for_FY22[[#This Row],[Median]])/25)*20) + AAMC_Raw_Data_for_FY22[[#This Row],[Median]]","v":407897.2},412913,{"$f":"(((AAMC_Raw_Data_for_FY22[[#This Row],[75th]]-AAMC_Raw_Data_for_FY22[[#This Row],[Median]])/25)*30) + AAMC_Raw_Data_for_FY22[[#This Row],[Median]]","v":417928.8},{"$f":"(((AAMC_Raw_Data_for_FY22[[#This Row],[75th]]-AAMC_Raw_Data_for_FY22[[#This Row],[Median]])/25)*35) + AAMC_Raw_Data_for_FY22[[#This Row],[Median]]","v":422944.6},{"$f":"(((AAMC_Raw_Data_for_FY22[[#This Row],[75th]]-AAMC_Raw_Data_for_FY22[[#This Row],[Median]])/25)*40) + AAMC_Raw_Data_for_FY22[[#This Row],[Median]]","v":427960.4}]
[{"$f":"AAMC_Raw_Data_for_FY22[[#This Row],[Source]]&AAMC_Raw_Data_for_FY22[[#This Row],[Type]]&AAMC_Raw_Data_for_FY22[[#This Row],[School Subset]]&AAMC_Raw_Data_for_FY22[[#This Row],[Rank]]&AAMC_Raw_Data_for_FY22[[#This Row],[Degree]]&AAMC_Raw_Data_for_FY22[[#This Row],[Department / Specialty]]&\"L\"","v":"AAMCAcademicAllInstructorMDBioethics/Medical HumanitiesL"},"Bioethics/Medical Humanities",5,"AAMC","Academic","All","Instructor","MD","2021-2022",null,{"$f":"(((AAMC_Raw_Data_for_FY22[[#This Row],[Median]]-AAMC_Raw_Data_for_FY22[[#This Row],[25th]])/25)*5) + AAMC_Raw_Data_for_FY22[[#This Row],[25th]]","v":0},{"$f":"(((AAMC_Raw_Data_for_FY22[[#This Row],[Median]]-AAMC_Raw_Data_for_FY22[[#This Row],[25th]])/25)*10) + AAMC_Raw_Data_for_FY22[[#This Row],[25th]]","v":0},{"$f":"(((AAMC_Raw_Data_for_FY22[[#This Row],[Median]]-AAMC_Raw_Data_for_FY22[[#This Row],[25th]])/25)*15) + AAMC_Raw_Data_for_FY22[[#This Row],[25th]]","v":0},{"$f":"(((AAMC_Raw_Data_for_FY22[[#This Row],[Median]]-AAMC_Raw_Data_for_FY22[[#This Row],[25th]])/25)*20) + AAMC_Raw_Data_for_FY22[[#This Row],[25th]]","v":0},null,{"$f":"(((AAMC_Raw_Data_for_FY22[[#This Row],[75th]]-AAMC_Raw_Data_for_FY22[[#This Row],[Median]])/25)*5) + AAMC_Raw_Data_for_FY22[[#This Row],[Median]]","v":0},{"$f":"(((AAMC_Raw_Data_for_FY22[[#This Row],[75th]]-AAMC_Raw_Data_for_FY22[[#This Row],[Median]])/25)*10) + AAMC_Raw_Data_for_FY22[[#This Row],[Median]]","v":0},{"$f":"(((AAMC_Raw_Data_for_FY22[[#This Row],[75th]]-AAMC_Raw_Data_for_FY22[[#This Row],[Median]])/25)*15) + AAMC_Raw_Data_for_FY22[[#This Row],[Median]]","v":0},{"$f":"(((AAMC_Raw_Data_for_FY22[[#This Row],[75th]]-AAMC_Raw_Data_for_FY22[[#This Row],[Median]])/25)*20) + AAMC_Raw_Data_for_FY22[[#This Row],[Median]]","v":0},null,{"$f":"(((AAMC_Raw_Data_for_FY22[[#This Row],[75th]]-AAMC_Raw_Data_for_FY22[[#This Row],[Median]])/25)*30) + AAMC_Raw_Data_for_FY22[[#This Row],[Median]]","v":0},{"$f":"(((AAMC_Raw_Data_for_FY22[[#This Row],[75th]]-AAMC_Raw_Data_for_FY22[[#This Row],[Median]])/25)*35) + AAMC_Raw_Data_for_FY22[[#This Row],[Median]]","v":0},{"$f":"(((AAMC_Raw_Data_for_FY22[[#This Row],[75th]]-AAMC_Raw_Data_for_FY22[[#This Row],[Median]])/25)*40) + AAMC_Raw_Data_for_FY22[[#This Row],[Median]]","v":0}]
[{"$f":"AAMC_Raw_Data_for_FY22[[#This Row],[Source]]&AAMC_Raw_Data_for_FY22[[#This Row],[Type]]&AAMC_Raw_Data_for_FY22[[#This Row],[School Subset]]&AAMC_Raw_Data_for_FY22[[#This Row],[Rank]]&AAMC_Raw_Data_for_FY22[[#This Row],[Degree]]&AAMC_Raw_Data_for_FY22[[#This Row],[Department / Specialty]]&\"L\"","v":"AAMCAcademicAllAssistantMDBioethics/Medical HumanitiesL"},"Bioethics/Medical Humanities",4,"AAMC","Academic","All","Assistant","MD","2021-2022",109198,{"$f":"(((AAMC_Raw_Data_for_FY22[[#This Row],[Median]]-AAMC_Raw_Data_for_FY22[[#This Row],[25th]])/25)*5) + AAMC_Raw_Data_for_FY22[[#This Row],[25th]]","v":110287.6},{"$f":"(((AAMC_Raw_Data_for_FY22[[#This Row],[Median]]-AAMC_Raw_Data_for_FY22[[#This Row],[25th]])/25)*10) + AAMC_Raw_Data_for_FY22[[#This Row],[25th]]","v":111377.2},{"$f":"(((AAMC_Raw_Data_for_FY22[[#This Row],[Median]]-AAMC_Raw_Data_for_FY22[[#This Row],[25th]])/25)*15) + AAMC_Raw_Data_for_FY22[[#This Row],[25th]]","v":112466.8},{"$f":"(((AAMC_Raw_Data_for_FY22[[#This Row],[Median]]-AAMC_Raw_Data_for_FY22[[#This Row],[25th]])/25)*20) + AAMC_Raw_Data_for_FY22[[#This Row],[25th]]","v":113556.4},114646,{"$f":"(((AAMC_Raw_Data_for_FY22[[#This Row],[75th]]-AAMC_Raw_Data_for_FY22[[#This Row],[Median]])/25)*5) + AAMC_Raw_Data_for_FY22[[#This Row],[Median]]","v":116178.4},{"$f":"(((AAMC_Raw_Data_for_FY22[[#This Row],[75th]]-AAMC_Raw_Data_for_FY22[[#This Row],[Median]])/25)*10) + AAMC_Raw_Data_for_FY22[[#This Row],[Median]]","v":117710.8},{"$f":"(((AAMC_Raw_Data_for_FY22[[#This Row],[75th]]-AAMC_Raw_Data_for_FY22[[#This Row],[Median]])/25)*15) + AAMC_Raw_Data_for_FY22[[#This Row],[Median]]","v":119243.2},{"$f":"(((AAMC_Raw_Data_for_FY22[[#This Row],[75th]]-AAMC_Raw_Data_for_FY22[[#This Row],[Median]])/25)*20) + AAMC_Raw_Data_for_FY22[[#This Row],[Median]]","v":120775.6},122308,{"$f":"(((AAMC_Raw_Data_for_FY22[[#This Row],[75th]]-AAMC_Raw_Data_for_FY22[[#This Row],[Median]])/25)*30) + AAMC_Raw_Data_for_FY22[[#This Row],[Median]]","v":123840.4},{"$f":"(((AAMC_Raw_Data_for_FY22[[#This Row],[75th]]-AAMC_Raw_Data_for_FY22[[#This Row],[Median]])/25)*35) + AAMC_Raw_Data_for_FY22[[#This Row],[Median]]","v":125372.8},{"$f":"(((AAMC_Raw_Data_for_FY22[[#This Row],[75th]]-AAMC_Raw_Data_for_FY22[[#This Row],[Median]])/25)*40) + AAMC_Raw_Data_for_FY22[[#This Row],[Median]]","v":126905.2}]
[{"$f":"AAMC_Raw_Data_for_FY22[[#This Row],[Source]]&AAMC_Raw_Data_for_FY22[[#This Row],[Type]]&AAMC_Raw_Data_for_FY22[[#This Row],[School Subset]]&AAMC_Raw_Data_for_FY22[[#This Row],[Rank]]&AAMC_Raw_Data_for_FY22[[#This Row],[Degree]]&AAMC_Raw_Data_for_FY22[[#This Row],[Department / Specialty]]&\"L\"","v":"AAMCAcademicAllAssociateMDBioethics/Medical HumanitiesL"},"Bioethics/Medical Humanities",3,"AAMC","Academic","All","Associate","MD","2021-2022",null,{"$f":"(((AAMC_Raw_Data_for_FY22[[#This Row],[Median]]-AAMC_Raw_Data_for_FY22[[#This Row],[25th]])/25)*5) + AAMC_Raw_Data_for_FY22[[#This Row],[25th]]","v":0},{"$f":"(((AAMC_Raw_Data_for_FY22[[#This Row],[Median]]-AAMC_Raw_Data_for_FY22[[#This Row],[25th]])/25)*10) + AAMC_Raw_Data_for_FY22[[#This Row],[25th]]","v":0},{"$f":"(((AAMC_Raw_Data_for_FY22[[#This Row],[Median]]-AAMC_Raw_Data_for_FY22[[#This Row],[25th]])/25)*15) + AAMC_Raw_Data_for_FY22[[#This Row],[25th]]","v":0},{"$f":"(((AAMC_Raw_Data_for_FY22[[#This Row],[Median]]-AAMC_Raw_Data_for_FY22[[#This Row],[25th]])/25)*20) + AAMC_Raw_Data_for_FY22[[#This Row],[25th]]","v":0},null,{"$f":"(((AAMC_Raw_Data_for_FY22[[#This Row],[75th]]-AAMC_Raw_Data_for_FY22[[#This Row],[Median]])/25)*5) + AAMC_Raw_Data_for_FY22[[#This Row],[Median]]","v":0},{"$f":"(((AAMC_Raw_Data_for_FY22[[#This Row],[75th]]-AAMC_Raw_Data_for_FY22[[#This Row],[Median]])/25)*10) + AAMC_Raw_Data_for_FY22[[#This Row],[Median]]","v":0},{"$f":"(((AAMC_Raw_Data_for_FY22[[#This Row],[75th]]-AAMC_Raw_Data_for_FY22[[#This Row],[Median]])/25)*15) + AAMC_Raw_Data_for_FY22[[#This Row],[Median]]","v":0},{"$f":"(((AAMC_Raw_Data_for_FY22[[#This Row],[75th]]-AAMC_Raw_Data_for_FY22[[#This Row],[Median]])/25)*20) + AAMC_Raw_Data_for_FY22[[#This Row],[Median]]","v":0},null,{"$f":"(((AAMC_Raw_Data_for_FY22[[#This Row],[75th]]-AAMC_Raw_Data_for_FY22[[#This Row],[Median]])/25)*30) + AAMC_Raw_Data_for_FY22[[#This Row],[Median]]","v":0},{"$f":"(((AAMC_Raw_Data_for_FY22[[#This Row],[75th]]-AAMC_Raw_Data_for_FY22[[#This Row],[Median]])/25)*35) + AAMC_Raw_Data_for_FY22[[#This Row],[Median]]","v":0},{"$f":"(((AAMC_Raw_Data_for_FY22[[#This Row],[75th]]-AAMC_Raw_Data_for_FY22[[#This Row],[Median]])/25)*40) + AAMC_Raw_Data_for_FY22[[#This Row],[Median]]","v":0}]
[{"$f":"AAMC_Raw_Data_for_FY22[[#This Row],[Source]]&AAMC_Raw_Data_for_FY22[[#This Row],[Type]]&AAMC_Raw_Data_for_FY22[[#This Row],[School Subset]]&AAMC_Raw_Data_for_FY22[[#This Row],[Rank]]&AAMC_Raw_Data_for_FY22[[#This Row],[Degree]]&AAMC_Raw_Data_for_FY22[[#This Row],[Department / Specialty]]&\"L\"","v":"AAMCAcademicAllProfessorMDBioethics/Medical HumanitiesL"},"Bioethics/Medical Humanities",2,"AAMC","Academic","All","Professor","MD","2021-2022",244334,{"$f":"(((AAMC_Raw_Data_for_FY22[[#This Row],[Median]]-AAMC_Raw_Data_for_FY22[[#This Row],[25th]])/25)*5) + AAMC_Raw_Data_for_FY22[[#This Row],[25th]]","v":247050.6},{"$f":"(((AAMC_Raw_Data_for_FY22[[#This Row],[Median]]-AAMC_Raw_Data_for_FY22[[#This Row],[25th]])/25)*10) + AAMC_Raw_Data_for_FY22[[#This Row],[25th]]","v":249767.2},{"$f":"(((AAMC_Raw_Data_for_FY22[[#This Row],[Median]]-AAMC_Raw_Data_for_FY22[[#This Row],[25th]])/25)*15) + AAMC_Raw_Data_for_FY22[[#This Row],[25th]]","v":252483.8},{"$f":"(((AAMC_Raw_Data_for_FY22[[#This Row],[Median]]-AAMC_Raw_Data_for_FY22[[#This Row],[25th]])/25)*20) + AAMC_Raw_Data_for_FY22[[#This Row],[25th]]","v":255200.4},257917,{"$f":"(((AAMC_Raw_Data_for_FY22[[#This Row],[75th]]-AAMC_Raw_Data_for_FY22[[#This Row],[Median]])/25)*5) + AAMC_Raw_Data_for_FY22[[#This Row],[Median]]","v":263950.40000000002},{"$f":"(((AAMC_Raw_Data_for_FY22[[#This Row],[75th]]-AAMC_Raw_Data_for_FY22[[#This Row],[Median]])/25)*10) + AAMC_Raw_Data_for_FY22[[#This Row],[Median]]","v":269983.8},{"$f":"(((AAMC_Raw_Data_for_FY22[[#This Row],[75th]]-AAMC_Raw_Data_for_FY22[[#This Row],[Median]])/25)*15) + AAMC_Raw_Data_for_FY22[[#This Row],[Median]]","v":276017.2},{"$f":"(((AAMC_Raw_Data_for_FY22[[#This Row],[75th]]-AAMC_Raw_Data_for_FY22[[#This Row],[Median]])/25)*20) + AAMC_Raw_Data_for_FY22[[#This Row],[Median]]","v":282050.59999999998},288084,{"$f":"(((AAMC_Raw_Data_for_FY22[[#This Row],[75th]]-AAMC_Raw_Data_for_FY22[[#This Row],[Median]])/25)*30) + AAMC_Raw_Data_for_FY22[[#This Row],[Median]]","v":294117.40000000002},{"$f":"(((AAMC_Raw_Data_for_FY22[[#This Row],[75th]]-AAMC_Raw_Data_for_FY22[[#This Row],[Median]])/25)*35) + AAMC_Raw_Data_for_FY22[[#This Row],[Median]]","v":300150.8},{"$f":"(((AAMC_Raw_Data_for_FY22[[#This Row],[75th]]-AAMC_Raw_Data_for_FY22[[#This Row],[Median]])/25)*40) + AAMC_Raw_Data_for_FY22[[#This Row],[Median]]","v":306184.2}]
[{"$f":"AAMC_Raw_Data_for_FY22[[#This Row],[Source]]&AAMC_Raw_Data_for_FY22[[#This Row],[Type]]&AAMC_Raw_Data_for_FY22[[#This Row],[School Subset]]&AAMC_Raw_Data_for_FY22[[#This Row],[Rank]]&AAMC_Raw_Data_for_FY22[[#This Row],[Degree]]&AAMC_Raw_Data_for_FY22[[#This Row],[Department / Specialty]]&\"L\"","v":"AAMCAcademicAllChiefMDBioethics/Medical HumanitiesL"},"Bioethics/Medical Humanities",6,"AAMC","Academic","All","Chief","MD","2021-2022",null,{"$f":"(((AAMC_Raw_Data_for_FY22[[#This Row],[Median]]-AAMC_Raw_Data_for_FY22[[#This Row],[25th]])/25)*5) + AAMC_Raw_Data_for_FY22[[#This Row],[25th]]","v":0},{"$f":"(((AAMC_Raw_Data_for_FY22[[#This Row],[Median]]-AAMC_Raw_Data_for_FY22[[#This Row],[25th]])/25)*10) + AAMC_Raw_Data_for_FY22[[#This Row],[25th]]","v":0},{"$f":"(((AAMC_Raw_Data_for_FY22[[#This Row],[Median]]-AAMC_Raw_Data_for_FY22[[#This Row],[25th]])/25)*15) + AAMC_Raw_Data_for_FY22[[#This Row],[25th]]","v":0},{"$f":"(((AAMC_Raw_Data_for_FY22[[#This Row],[Median]]-AAMC_Raw_Data_for_FY22[[#This Row],[25th]])/25)*20) + AAMC_Raw_Data_for_FY22[[#This Row],[25th]]","v":0},null,{"$f":"(((AAMC_Raw_Data_for_FY22[[#This Row],[75th]]-AAMC_Raw_Data_for_FY22[[#This Row],[Median]])/25)*5) + AAMC_Raw_Data_for_FY22[[#This Row],[Median]]","v":0},{"$f":"(((AAMC_Raw_Data_for_FY22[[#This Row],[75th]]-AAMC_Raw_Data_for_FY22[[#This Row],[Median]])/25)*10) + AAMC_Raw_Data_for_FY22[[#This Row],[Median]]","v":0},{"$f":"(((AAMC_Raw_Data_for_FY22[[#This Row],[75th]]-AAMC_Raw_Data_for_FY22[[#This Row],[Median]])/25)*15) + AAMC_Raw_Data_for_FY22[[#This Row],[Median]]","v":0},{"$f":"(((AAMC_Raw_Data_for_FY22[[#This Row],[75th]]-AAMC_Raw_Data_for_FY22[[#This Row],[Median]])/25)*20) + AAMC_Raw_Data_for_FY22[[#This Row],[Median]]","v":0},null,{"$f":"(((AAMC_Raw_Data_for_FY22[[#This Row],[75th]]-AAMC_Raw_Data_for_FY22[[#This Row],[Median]])/25)*30) + AAMC_Raw_Data_for_FY22[[#This Row],[Median]]","v":0},{"$f":"(((AAMC_Raw_Data_for_FY22[[#This Row],[75th]]-AAMC_Raw_Data_for_FY22[[#This Row],[Median]])/25)*35) + AAMC_Raw_Data_for_FY22[[#This Row],[Median]]","v":0},{"$f":"(((AAMC_Raw_Data_for_FY22[[#This Row],[75th]]-AAMC_Raw_Data_for_FY22[[#This Row],[Median]])/25)*40) + AAMC_Raw_Data_for_FY22[[#This Row],[Median]]","v":0}]
[{"$f":"AAMC_Raw_Data_for_FY22[[#This Row],[Source]]&AAMC_Raw_Data_for_FY22[[#This Row],[Type]]&AAMC_Raw_Data_for_FY22[[#This Row],[School Subset]]&AAMC_Raw_Data_for_FY22[[#This Row],[Rank]]&AAMC_Raw_Data_for_FY22[[#This Row],[Degree]]&AAMC_Raw_Data_for_FY22[[#This Row],[Department / Specialty]]&\"L\"","v":"AAMCAcademicAllChairMDBioethics/Medical HumanitiesL"},"Bioethics/Medical Humanities",1,"AAMC","Academic","All","Chair","MD","2021-2022",null,{"$f":"(((AAMC_Raw_Data_for_FY22[[#This Row],[Median]]-AAMC_Raw_Data_for_FY22[[#This Row],[25th]])/25)*5) + AAMC_Raw_Data_for_FY22[[#This Row],[25th]]","v":0},{"$f":"(((AAMC_Raw_Data_for_FY22[[#This Row],[Median]]-AAMC_Raw_Data_for_FY22[[#This Row],[25th]])/25)*10) + AAMC_Raw_Data_for_FY22[[#This Row],[25th]]","v":0},{"$f":"(((AAMC_Raw_Data_for_FY22[[#This Row],[Median]]-AAMC_Raw_Data_for_FY22[[#This Row],[25th]])/25)*15) + AAMC_Raw_Data_for_FY22[[#This Row],[25th]]","v":0},{"$f":"(((AAMC_Raw_Data_for_FY22[[#This Row],[Median]]-AAMC_Raw_Data_for_FY22[[#This Row],[25th]])/25)*20) + AAMC_Raw_Data_for_FY22[[#This Row],[25th]]","v":0},null,{"$f":"(((AAMC_Raw_Data_for_FY22[[#This Row],[75th]]-AAMC_Raw_Data_for_FY22[[#This Row],[Median]])/25)*5) + AAMC_Raw_Data_for_FY22[[#This Row],[Median]]","v":0},{"$f":"(((AAMC_Raw_Data_for_FY22[[#This Row],[75th]]-AAMC_Raw_Data_for_FY22[[#This Row],[Median]])/25)*10) + AAMC_Raw_Data_for_FY22[[#This Row],[Median]]","v":0},{"$f":"(((AAMC_Raw_Data_for_FY22[[#This Row],[75th]]-AAMC_Raw_Data_for_FY22[[#This Row],[Median]])/25)*15) + AAMC_Raw_Data_for_FY22[[#This Row],[Median]]","v":0},{"$f":"(((AAMC_Raw_Data_for_FY22[[#This Row],[75th]]-AAMC_Raw_Data_for_FY22[[#This Row],[Median]])/25)*20) + AAMC_Raw_Data_for_FY22[[#This Row],[Median]]","v":0},null,{"$f":"(((AAMC_Raw_Data_for_FY22[[#This Row],[75th]]-AAMC_Raw_Data_for_FY22[[#This Row],[Median]])/25)*30) + AAMC_Raw_Data_for_FY22[[#This Row],[Median]]","v":0},{"$f":"(((AAMC_Raw_Data_for_FY22[[#This Row],[75th]]-AAMC_Raw_Data_for_FY22[[#This Row],[Median]])/25)*35) + AAMC_Raw_Data_for_FY22[[#This Row],[Median]]","v":0},{"$f":"(((AAMC_Raw_Data_for_FY22[[#This Row],[75th]]-AAMC_Raw_Data_for_FY22[[#This Row],[Median]])/25)*40) + AAMC_Raw_Data_for_FY22[[#This Row],[Median]]","v":0}]
[{"$f":"AAMC_Raw_Data_for_FY22[[#This Row],[Source]]&AAMC_Raw_Data_for_FY22[[#This Row],[Type]]&AAMC_Raw_Data_for_FY22[[#This Row],[School Subset]]&AAMC_Raw_Data_for_FY22[[#This Row],[Rank]]&AAMC_Raw_Data_for_FY22[[#This Row],[Degree]]&AAMC_Raw_Data_for_FY22[[#This Row],[Department / Specialty]]&\"L\"","v":"AAMCAcademicAllInstructorMDBiomedical InformaticsL"},"Biomedical Informatics",5,"AAMC","Academic","All","Instructor","MD","2021-2022",null,{"$f":"(((AAMC_Raw_Data_for_FY22[[#This Row],[Median]]-AAMC_Raw_Data_for_FY22[[#This Row],[25th]])/25)*5) + AAMC_Raw_Data_for_FY22[[#This Row],[25th]]","v":0},{"$f":"(((AAMC_Raw_Data_for_FY22[[#This Row],[Median]]-AAMC_Raw_Data_for_FY22[[#This Row],[25th]])/25)*10) + AAMC_Raw_Data_for_FY22[[#This Row],[25th]]","v":0},{"$f":"(((AAMC_Raw_Data_for_FY22[[#This Row],[Median]]-AAMC_Raw_Data_for_FY22[[#This Row],[25th]])/25)*15) + AAMC_Raw_Data_for_FY22[[#This Row],[25th]]","v":0},{"$f":"(((AAMC_Raw_Data_for_FY22[[#This Row],[Median]]-AAMC_Raw_Data_for_FY22[[#This Row],[25th]])/25)*20) + AAMC_Raw_Data_for_FY22[[#This Row],[25th]]","v":0},null,{"$f":"(((AAMC_Raw_Data_for_FY22[[#This Row],[75th]]-AAMC_Raw_Data_for_FY22[[#This Row],[Median]])/25)*5) + AAMC_Raw_Data_for_FY22[[#This Row],[Median]]","v":0},{"$f":"(((AAMC_Raw_Data_for_FY22[[#This Row],[75th]]-AAMC_Raw_Data_for_FY22[[#This Row],[Median]])/25)*10) + AAMC_Raw_Data_for_FY22[[#This Row],[Median]]","v":0},{"$f":"(((AAMC_Raw_Data_for_FY22[[#This Row],[75th]]-AAMC_Raw_Data_for_FY22[[#This Row],[Median]])/25)*15) + AAMC_Raw_Data_for_FY22[[#This Row],[Median]]","v":0},{"$f":"(((AAMC_Raw_Data_for_FY22[[#This Row],[75th]]-AAMC_Raw_Data_for_FY22[[#This Row],[Median]])/25)*20) + AAMC_Raw_Data_for_FY22[[#This Row],[Median]]","v":0},null,{"$f":"(((AAMC_Raw_Data_for_FY22[[#This Row],[75th]]-AAMC_Raw_Data_for_FY22[[#This Row],[Median]])/25)*30) + AAMC_Raw_Data_for_FY22[[#This Row],[Median]]","v":0},{"$f":"(((AAMC_Raw_Data_for_FY22[[#This Row],[75th]]-AAMC_Raw_Data_for_FY22[[#This Row],[Median]])/25)*35) + AAMC_Raw_Data_for_FY22[[#This Row],[Median]]","v":0},{"$f":"(((AAMC_Raw_Data_for_FY22[[#This Row],[75th]]-AAMC_Raw_Data_for_FY22[[#This Row],[Median]])/25)*40) + AAMC_Raw_Data_for_FY22[[#This Row],[Median]]","v":0}]
[{"$f":"AAMC_Raw_Data_for_FY22[[#This Row],[Source]]&AAMC_Raw_Data_for_FY22[[#This Row],[Type]]&AAMC_Raw_Data_for_FY22[[#This Row],[School Subset]]&AAMC_Raw_Data_for_FY22[[#This Row],[Rank]]&AAMC_Raw_Data_for_FY22[[#This Row],[Degree]]&AAMC_Raw_Data_for_FY22[[#This Row],[Department / Specialty]]&\"L\"","v":"AAMCAcademicAllAssistantMDBiomedical InformaticsL"},"Biomedical Informatics",4,"AAMC","Academic","All","Assistant","MD","2021-2022",134339,{"$f":"(((AAMC_Raw_Data_for_FY22[[#This Row],[Median]]-AAMC_Raw_Data_for_FY22[[#This Row],[25th]])/25)*5) + AAMC_Raw_Data_for_FY22[[#This Row],[25th]]","v":138029.20000000001},{"$f":"(((AAMC_Raw_Data_for_FY22[[#This Row],[Median]]-AAMC_Raw_Data_for_FY22[[#This Row],[25th]])/25)*10) + AAMC_Raw_Data_for_FY22[[#This Row],[25th]]","v":141719.4},{"$f":"(((AAMC_Raw_Data_for_FY22[[#This Row],[Median]]-AAMC_Raw_Data_for_FY22[[#This Row],[25th]])/25)*15) + AAMC_Raw_Data_for_FY22[[#This Row],[25th]]","v":145409.60000000001},{"$f":"(((AAMC_Raw_Data_for_FY22[[#This Row],[Median]]-AAMC_Raw_Data_for_FY22[[#This Row],[25th]])/25)*20) + AAMC_Raw_Data_for_FY22[[#This Row],[25th]]","v":149099.79999999999},152790,{"$f":"(((AAMC_Raw_Data_for_FY22[[#This Row],[75th]]-AAMC_Raw_Data_for_FY22[[#This Row],[Median]])/25)*5) + AAMC_Raw_Data_for_FY22[[#This Row],[Median]]","v":161651.4},{"$f":"(((AAMC_Raw_Data_for_FY22[[#This Row],[75th]]-AAMC_Raw_Data_for_FY22[[#This Row],[Median]])/25)*10) + AAMC_Raw_Data_for_FY22[[#This Row],[Median]]","v":170512.8},{"$f":"(((AAMC_Raw_Data_for_FY22[[#This Row],[75th]]-AAMC_Raw_Data_for_FY22[[#This Row],[Median]])/25)*15) + AAMC_Raw_Data_for_FY22[[#This Row],[Median]]","v":179374.2},{"$f":"(((AAMC_Raw_Data_for_FY22[[#This Row],[75th]]-AAMC_Raw_Data_for_FY22[[#This Row],[Median]])/25)*20) + AAMC_Raw_Data_for_FY22[[#This Row],[Median]]","v":188235.6},197097,{"$f":"(((AAMC_Raw_Data_for_FY22[[#This Row],[75th]]-AAMC_Raw_Data_for_FY22[[#This Row],[Median]])/25)*30) + AAMC_Raw_Data_for_FY22[[#This Row],[Median]]","v":205958.39999999999},{"$f":"(((AAMC_Raw_Data_for_FY22[[#This Row],[75th]]-AAMC_Raw_Data_for_FY22[[#This Row],[Median]])/25)*35) + AAMC_Raw_Data_for_FY22[[#This Row],[Median]]","v":214819.8},{"$f":"(((AAMC_Raw_Data_for_FY22[[#This Row],[75th]]-AAMC_Raw_Data_for_FY22[[#This Row],[Median]])/25)*40) + AAMC_Raw_Data_for_FY22[[#This Row],[Median]]","v":223681.2}]
[{"$f":"AAMC_Raw_Data_for_FY22[[#This Row],[Source]]&AAMC_Raw_Data_for_FY22[[#This Row],[Type]]&AAMC_Raw_Data_for_FY22[[#This Row],[School Subset]]&AAMC_Raw_Data_for_FY22[[#This Row],[Rank]]&AAMC_Raw_Data_for_FY22[[#This Row],[Degree]]&AAMC_Raw_Data_for_FY22[[#This Row],[Department / Specialty]]&\"L\"","v":"AAMCAcademicAllAssociateMDBiomedical InformaticsL"},"Biomedical Informatics",3,"AAMC","Academic","All","Associate","MD","2021-2022",191764,{"$f":"(((AAMC_Raw_Data_for_FY22[[#This Row],[Median]]-AAMC_Raw_Data_for_FY22[[#This Row],[25th]])/25)*5) + AAMC_Raw_Data_for_FY22[[#This Row],[25th]]","v":200391.6},{"$f":"(((AAMC_Raw_Data_for_FY22[[#This Row],[Median]]-AAMC_Raw_Data_for_FY22[[#This Row],[25th]])/25)*10) + AAMC_Raw_Data_for_FY22[[#This Row],[25th]]","v":209019.2},{"$f":"(((AAMC_Raw_Data_for_FY22[[#This Row],[Median]]-AAMC_Raw_Data_for_FY22[[#This Row],[25th]])/25)*15) + AAMC_Raw_Data_for_FY22[[#This Row],[25th]]","v":217646.8},{"$f":"(((AAMC_Raw_Data_for_FY22[[#This Row],[Median]]-AAMC_Raw_Data_for_FY22[[#This Row],[25th]])/25)*20) + AAMC_Raw_Data_for_FY22[[#This Row],[25th]]","v":226274.4},234902,{"$f":"(((AAMC_Raw_Data_for_FY22[[#This Row],[75th]]-AAMC_Raw_Data_for_FY22[[#This Row],[Median]])/25)*5) + AAMC_Raw_Data_for_FY22[[#This Row],[Median]]","v":246029.4},{"$f":"(((AAMC_Raw_Data_for_FY22[[#This Row],[75th]]-AAMC_Raw_Data_for_FY22[[#This Row],[Median]])/25)*10) + AAMC_Raw_Data_for_FY22[[#This Row],[Median]]","v":257156.8},{"$f":"(((AAMC_Raw_Data_for_FY22[[#This Row],[75th]]-AAMC_Raw_Data_for_FY22[[#This Row],[Median]])/25)*15) + AAMC_Raw_Data_for_FY22[[#This Row],[Median]]","v":268284.2},{"$f":"(((AAMC_Raw_Data_for_FY22[[#This Row],[75th]]-AAMC_Raw_Data_for_FY22[[#This Row],[Median]])/25)*20) + AAMC_Raw_Data_for_FY22[[#This Row],[Median]]","v":279411.59999999998},290539,{"$f":"(((AAMC_Raw_Data_for_FY22[[#This Row],[75th]]-AAMC_Raw_Data_for_FY22[[#This Row],[Median]])/25)*30) + AAMC_Raw_Data_for_FY22[[#This Row],[Median]]","v":301666.40000000002},{"$f":"(((AAMC_Raw_Data_for_FY22[[#This Row],[75th]]-AAMC_Raw_Data_for_FY22[[#This Row],[Median]])/25)*35) + AAMC_Raw_Data_for_FY22[[#This Row],[Median]]","v":312793.8},{"$f":"(((AAMC_Raw_Data_for_FY22[[#This Row],[75th]]-AAMC_Raw_Data_for_FY22[[#This Row],[Median]])/25)*40) + AAMC_Raw_Data_for_FY22[[#This Row],[Median]]","v":323921.2}]
[{"$f":"AAMC_Raw_Data_for_FY22[[#This Row],[Source]]&AAMC_Raw_Data_for_FY22[[#This Row],[Type]]&AAMC_Raw_Data_for_FY22[[#This Row],[School Subset]]&AAMC_Raw_Data_for_FY22[[#This Row],[Rank]]&AAMC_Raw_Data_for_FY22[[#This Row],[Degree]]&AAMC_Raw_Data_for_FY22[[#This Row],[Department / Specialty]]&\"L\"","v":"AAMCAcademicAllProfessorMDBiomedical InformaticsL"},"Biomedical Informatics",2,"AAMC","Academic","All","Professor","MD","2021-2022",244548,{"$f":"(((AAMC_Raw_Data_for_FY22[[#This Row],[Median]]-AAMC_Raw_Data_for_FY22[[#This Row],[25th]])/25)*5) + AAMC_Raw_Data_for_FY22[[#This Row],[25th]]","v":250791},{"$f":"(((AAMC_Raw_Data_for_FY22[[#This Row],[Median]]-AAMC_Raw_Data_for_FY22[[#This Row],[25th]])/25)*10) + AAMC_Raw_Data_for_FY22[[#This Row],[25th]]","v":257034},{"$f":"(((AAMC_Raw_Data_for_FY22[[#This Row],[Median]]-AAMC_Raw_Data_for_FY22[[#This Row],[25th]])/25)*15) + AAMC_Raw_Data_for_FY22[[#This Row],[25th]]","v":263277},{"$f":"(((AAMC_Raw_Data_for_FY22[[#This Row],[Median]]-AAMC_Raw_Data_for_FY22[[#This Row],[25th]])/25)*20) + AAMC_Raw_Data_for_FY22[[#This Row],[25th]]","v":269520},275763,{"$f":"(((AAMC_Raw_Data_for_FY22[[#This Row],[75th]]-AAMC_Raw_Data_for_FY22[[#This Row],[Median]])/25)*5) + AAMC_Raw_Data_for_FY22[[#This Row],[Median]]","v":293351.2},{"$f":"(((AAMC_Raw_Data_for_FY22[[#This Row],[75th]]-AAMC_Raw_Data_for_FY22[[#This Row],[Median]])/25)*10) + AAMC_Raw_Data_for_FY22[[#This Row],[Median]]","v":310939.40000000002},{"$f":"(((AAMC_Raw_Data_for_FY22[[#This Row],[75th]]-AAMC_Raw_Data_for_FY22[[#This Row],[Median]])/25)*15) + AAMC_Raw_Data_for_FY22[[#This Row],[Median]]","v":328527.59999999998},{"$f":"(((AAMC_Raw_Data_for_FY22[[#This Row],[75th]]-AAMC_Raw_Data_for_FY22[[#This Row],[Median]])/25)*20) + AAMC_Raw_Data_for_FY22[[#This Row],[Median]]","v":346115.8},363704,{"$f":"(((AAMC_Raw_Data_for_FY22[[#This Row],[75th]]-AAMC_Raw_Data_for_FY22[[#This Row],[Median]])/25)*30) + AAMC_Raw_Data_for_FY22[[#This Row],[Median]]","v":381292.2},{"$f":"(((AAMC_Raw_Data_for_FY22[[#This Row],[75th]]-AAMC_Raw_Data_for_FY22[[#This Row],[Median]])/25)*35) + AAMC_Raw_Data_for_FY22[[#This Row],[Median]]","v":398880.4},{"$f":"(((AAMC_Raw_Data_for_FY22[[#This Row],[75th]]-AAMC_Raw_Data_for_FY22[[#This Row],[Median]])/25)*40) + AAMC_Raw_Data_for_FY22[[#This Row],[Median]]","v":416468.6}]
[{"$f":"AAMC_Raw_Data_for_FY22[[#This Row],[Source]]&AAMC_Raw_Data_for_FY22[[#This Row],[Type]]&AAMC_Raw_Data_for_FY22[[#This Row],[School Subset]]&AAMC_Raw_Data_for_FY22[[#This Row],[Rank]]&AAMC_Raw_Data_for_FY22[[#This Row],[Degree]]&AAMC_Raw_Data_for_FY22[[#This Row],[Department / Specialty]]&\"L\"","v":"AAMCAcademicAllChiefMDBiomedical InformaticsL"},"Biomedical Informatics",6,"AAMC","Academic","All","Chief","MD","2021-2022",299930,{"$f":"(((AAMC_Raw_Data_for_FY22[[#This Row],[Median]]-AAMC_Raw_Data_for_FY22[[#This Row],[25th]])/25)*5) + AAMC_Raw_Data_for_FY22[[#This Row],[25th]]","v":310813.2},{"$f":"(((AAMC_Raw_Data_for_FY22[[#This Row],[Median]]-AAMC_Raw_Data_for_FY22[[#This Row],[25th]])/25)*10) + AAMC_Raw_Data_for_FY22[[#This Row],[25th]]","v":321696.40000000002},{"$f":"(((AAMC_Raw_Data_for_FY22[[#This Row],[Median]]-AAMC_Raw_Data_for_FY22[[#This Row],[25th]])/25)*15) + AAMC_Raw_Data_for_FY22[[#This Row],[25th]]","v":332579.59999999998},{"$f":"(((AAMC_Raw_Data_for_FY22[[#This Row],[Median]]-AAMC_Raw_Data_for_FY22[[#This Row],[25th]])/25)*20) + AAMC_Raw_Data_for_FY22[[#This Row],[25th]]","v":343462.8},354346,{"$f":"(((AAMC_Raw_Data_for_FY22[[#This Row],[75th]]-AAMC_Raw_Data_for_FY22[[#This Row],[Median]])/25)*5) + AAMC_Raw_Data_for_FY22[[#This Row],[Median]]","v":377978.2},{"$f":"(((AAMC_Raw_Data_for_FY22[[#This Row],[75th]]-AAMC_Raw_Data_for_FY22[[#This Row],[Median]])/25)*10) + AAMC_Raw_Data_for_FY22[[#This Row],[Median]]","v":401610.4},{"$f":"(((AAMC_Raw_Data_for_FY22[[#This Row],[75th]]-AAMC_Raw_Data_for_FY22[[#This Row],[Median]])/25)*15) + AAMC_Raw_Data_for_FY22[[#This Row],[Median]]","v":425242.6},{"$f":"(((AAMC_Raw_Data_for_FY22[[#This Row],[75th]]-AAMC_Raw_Data_for_FY22[[#This Row],[Median]])/25)*20) + AAMC_Raw_Data_for_FY22[[#This Row],[Median]]","v":448874.8},472507,{"$f":"(((AAMC_Raw_Data_for_FY22[[#This Row],[75th]]-AAMC_Raw_Data_for_FY22[[#This Row],[Median]])/25)*30) + AAMC_Raw_Data_for_FY22[[#This Row],[Median]]","v":496139.19999999995},{"$f":"(((AAMC_Raw_Data_for_FY22[[#This Row],[75th]]-AAMC_Raw_Data_for_FY22[[#This Row],[Median]])/25)*35) + AAMC_Raw_Data_for_FY22[[#This Row],[Median]]","v":519771.4},{"$f":"(((AAMC_Raw_Data_for_FY22[[#This Row],[75th]]-AAMC_Raw_Data_for_FY22[[#This Row],[Median]])/25)*40) + AAMC_Raw_Data_for_FY22[[#This Row],[Median]]","v":543403.6}]
[{"$f":"AAMC_Raw_Data_for_FY22[[#This Row],[Source]]&AAMC_Raw_Data_for_FY22[[#This Row],[Type]]&AAMC_Raw_Data_for_FY22[[#This Row],[School Subset]]&AAMC_Raw_Data_for_FY22[[#This Row],[Rank]]&AAMC_Raw_Data_for_FY22[[#This Row],[Degree]]&AAMC_Raw_Data_for_FY22[[#This Row],[Department / Specialty]]&\"L\"","v":"AAMCAcademicAllChairMDBiomedical InformaticsL"},"Biomedical Informatics",1,"AAMC","Academic","All","Chair","MD","2021-2022",374867,{"$f":"(((AAMC_Raw_Data_for_FY22[[#This Row],[Median]]-AAMC_Raw_Data_for_FY22[[#This Row],[25th]])/25)*5) + AAMC_Raw_Data_for_FY22[[#This Row],[25th]]","v":401460.4},{"$f":"(((AAMC_Raw_Data_for_FY22[[#This Row],[Median]]-AAMC_Raw_Data_for_FY22[[#This Row],[25th]])/25)*10) + AAMC_Raw_Data_for_FY22[[#This Row],[25th]]","v":428053.8},{"$f":"(((AAMC_Raw_Data_for_FY22[[#This Row],[Median]]-AAMC_Raw_Data_for_FY22[[#This Row],[25th]])/25)*15) + AAMC_Raw_Data_for_FY22[[#This Row],[25th]]","v":454647.2},{"$f":"(((AAMC_Raw_Data_for_FY22[[#This Row],[Median]]-AAMC_Raw_Data_for_FY22[[#This Row],[25th]])/25)*20) + AAMC_Raw_Data_for_FY22[[#This Row],[25th]]","v":481240.6},507834,{"$f":"(((AAMC_Raw_Data_for_FY22[[#This Row],[75th]]-AAMC_Raw_Data_for_FY22[[#This Row],[Median]])/25)*5) + AAMC_Raw_Data_for_FY22[[#This Row],[Median]]","v":534267.19999999995},{"$f":"(((AAMC_Raw_Data_for_FY22[[#This Row],[75th]]-AAMC_Raw_Data_for_FY22[[#This Row],[Median]])/25)*10) + AAMC_Raw_Data_for_FY22[[#This Row],[Median]]","v":560700.4},{"$f":"(((AAMC_Raw_Data_for_FY22[[#This Row],[75th]]-AAMC_Raw_Data_for_FY22[[#This Row],[Median]])/25)*15) + AAMC_Raw_Data_for_FY22[[#This Row],[Median]]","v":587133.6},{"$f":"(((AAMC_Raw_Data_for_FY22[[#This Row],[75th]]-AAMC_Raw_Data_for_FY22[[#This Row],[Median]])/25)*20) + AAMC_Raw_Data_for_FY22[[#This Row],[Median]]","v":613566.80000000005},640000,{"$f":"(((AAMC_Raw_Data_for_FY22[[#This Row],[75th]]-AAMC_Raw_Data_for_FY22[[#This Row],[Median]])/25)*30) + AAMC_Raw_Data_for_FY22[[#This Row],[Median]]","v":666433.19999999995},{"$f":"(((AAMC_Raw_Data_for_FY22[[#This Row],[75th]]-AAMC_Raw_Data_for_FY22[[#This Row],[Median]])/25)*35) + AAMC_Raw_Data_for_FY22[[#This Row],[Median]]","v":692866.4},{"$f":"(((AAMC_Raw_Data_for_FY22[[#This Row],[75th]]-AAMC_Raw_Data_for_FY22[[#This Row],[Median]])/25)*40) + AAMC_Raw_Data_for_FY22[[#This Row],[Median]]","v":719299.6}]
[{"$f":"AAMC_Raw_Data_for_FY22[[#This Row],[Source]]&AAMC_Raw_Data_for_FY22[[#This Row],[Type]]&AAMC_Raw_Data_for_FY22[[#This Row],[School Subset]]&AAMC_Raw_Data_for_FY22[[#This Row],[Rank]]&AAMC_Raw_Data_for_FY22[[#This Row],[Degree]]&AAMC_Raw_Data_for_FY22[[#This Row],[Department / Specialty]]&\"L\"","v":"AAMCAcademicAllInstructorMDBiostatisticsL"},"Biostatistics",5,"AAMC","Academic","All","Instructor","MD","2021-2022",null,{"$f":"(((AAMC_Raw_Data_for_FY22[[#This Row],[Median]]-AAMC_Raw_Data_for_FY22[[#This Row],[25th]])/25)*5) + AAMC_Raw_Data_for_FY22[[#This Row],[25th]]","v":0},{"$f":"(((AAMC_Raw_Data_for_FY22[[#This Row],[Median]]-AAMC_Raw_Data_for_FY22[[#This Row],[25th]])/25)*10) + AAMC_Raw_Data_for_FY22[[#This Row],[25th]]","v":0},{"$f":"(((AAMC_Raw_Data_for_FY22[[#This Row],[Median]]-AAMC_Raw_Data_for_FY22[[#This Row],[25th]])/25)*15) + AAMC_Raw_Data_for_FY22[[#This Row],[25th]]","v":0},{"$f":"(((AAMC_Raw_Data_for_FY22[[#This Row],[Median]]-AAMC_Raw_Data_for_FY22[[#This Row],[25th]])/25)*20) + AAMC_Raw_Data_for_FY22[[#This Row],[25th]]","v":0},null,{"$f":"(((AAMC_Raw_Data_for_FY22[[#This Row],[75th]]-AAMC_Raw_Data_for_FY22[[#This Row],[Median]])/25)*5) + AAMC_Raw_Data_for_FY22[[#This Row],[Median]]","v":0},{"$f":"(((AAMC_Raw_Data_for_FY22[[#This Row],[75th]]-AAMC_Raw_Data_for_FY22[[#This Row],[Median]])/25)*10) + AAMC_Raw_Data_for_FY22[[#This Row],[Median]]","v":0},{"$f":"(((AAMC_Raw_Data_for_FY22[[#This Row],[75th]]-AAMC_Raw_Data_for_FY22[[#This Row],[Median]])/25)*15) + AAMC_Raw_Data_for_FY22[[#This Row],[Median]]","v":0},{"$f":"(((AAMC_Raw_Data_for_FY22[[#This Row],[75th]]-AAMC_Raw_Data_for_FY22[[#This Row],[Median]])/25)*20) + AAMC_Raw_Data_for_FY22[[#This Row],[Median]]","v":0},null,{"$f":"(((AAMC_Raw_Data_for_FY22[[#This Row],[75th]]-AAMC_Raw_Data_for_FY22[[#This Row],[Median]])/25)*30) + AAMC_Raw_Data_for_FY22[[#This Row],[Median]]","v":0},{"$f":"(((AAMC_Raw_Data_for_FY22[[#This Row],[75th]]-AAMC_Raw_Data_for_FY22[[#This Row],[Median]])/25)*35) + AAMC_Raw_Data_for_FY22[[#This Row],[Median]]","v":0},{"$f":"(((AAMC_Raw_Data_for_FY22[[#This Row],[75th]]-AAMC_Raw_Data_for_FY22[[#This Row],[Median]])/25)*40) + AAMC_Raw_Data_for_FY22[[#This Row],[Median]]","v":0}]
[{"$f":"AAMC_Raw_Data_for_FY22[[#This Row],[Source]]&AAMC_Raw_Data_for_FY22[[#This Row],[Type]]&AAMC_Raw_Data_for_FY22[[#This Row],[School Subset]]&AAMC_Raw_Data_for_FY22[[#This Row],[Rank]]&AAMC_Raw_Data_for_FY22[[#This Row],[Degree]]&AAMC_Raw_Data_for_FY22[[#This Row],[Department / Specialty]]&\"L\"","v":"AAMCAcademicAllAssistantMDBiostatisticsL"},"Biostatistics",4,"AAMC","Academic","All","Assistant","MD","2021-2022",null,{"$f":"(((AAMC_Raw_Data_for_FY22[[#This Row],[Median]]-AAMC_Raw_Data_for_FY22[[#This Row],[25th]])/25)*5) + AAMC_Raw_Data_for_FY22[[#This Row],[25th]]","v":0},{"$f":"(((AAMC_Raw_Data_for_FY22[[#This Row],[Median]]-AAMC_Raw_Data_for_FY22[[#This Row],[25th]])/25)*10) + AAMC_Raw_Data_for_FY22[[#This Row],[25th]]","v":0},{"$f":"(((AAMC_Raw_Data_for_FY22[[#This Row],[Median]]-AAMC_Raw_Data_for_FY22[[#This Row],[25th]])/25)*15) + AAMC_Raw_Data_for_FY22[[#This Row],[25th]]","v":0},{"$f":"(((AAMC_Raw_Data_for_FY22[[#This Row],[Median]]-AAMC_Raw_Data_for_FY22[[#This Row],[25th]])/25)*20) + AAMC_Raw_Data_for_FY22[[#This Row],[25th]]","v":0},null,{"$f":"(((AAMC_Raw_Data_for_FY22[[#This Row],[75th]]-AAMC_Raw_Data_for_FY22[[#This Row],[Median]])/25)*5) + AAMC_Raw_Data_for_FY22[[#This Row],[Median]]","v":0},{"$f":"(((AAMC_Raw_Data_for_FY22[[#This Row],[75th]]-AAMC_Raw_Data_for_FY22[[#This Row],[Median]])/25)*10) + AAMC_Raw_Data_for_FY22[[#This Row],[Median]]","v":0},{"$f":"(((AAMC_Raw_Data_for_FY22[[#This Row],[75th]]-AAMC_Raw_Data_for_FY22[[#This Row],[Median]])/25)*15) + AAMC_Raw_Data_for_FY22[[#This Row],[Median]]","v":0},{"$f":"(((AAMC_Raw_Data_for_FY22[[#This Row],[75th]]-AAMC_Raw_Data_for_FY22[[#This Row],[Median]])/25)*20) + AAMC_Raw_Data_for_FY22[[#This Row],[Median]]","v":0},null,{"$f":"(((AAMC_Raw_Data_for_FY22[[#This Row],[75th]]-AAMC_Raw_Data_for_FY22[[#This Row],[Median]])/25)*30) + AAMC_Raw_Data_for_FY22[[#This Row],[Median]]","v":0},{"$f":"(((AAMC_Raw_Data_for_FY22[[#This Row],[75th]]-AAMC_Raw_Data_for_FY22[[#This Row],[Median]])/25)*35) + AAMC_Raw_Data_for_FY22[[#This Row],[Median]]","v":0},{"$f":"(((AAMC_Raw_Data_for_FY22[[#This Row],[75th]]-AAMC_Raw_Data_for_FY22[[#This Row],[Median]])/25)*40) + AAMC_Raw_Data_for_FY22[[#This Row],[Median]]","v":0}]
[{"$f":"AAMC_Raw_Data_for_FY22[[#This Row],[Source]]&AAMC_Raw_Data_for_FY22[[#This Row],[Type]]&AAMC_Raw_Data_for_FY22[[#This Row],[School Subset]]&AAMC_Raw_Data_for_FY22[[#This Row],[Rank]]&AAMC_Raw_Data_for_FY22[[#This Row],[Degree]]&AAMC_Raw_Data_for_FY22[[#This Row],[Department / Specialty]]&\"L\"","v":"AAMCAcademicAllAssociateMDBiostatisticsL"},"Biostatistics",3,"AAMC","Academic","All","Associate","MD","2021-2022",162030,{"$f":"(((AAMC_Raw_Data_for_FY22[[#This Row],[Median]]-AAMC_Raw_Data_for_FY22[[#This Row],[25th]])/25)*5) + AAMC_Raw_Data_for_FY22[[#This Row],[25th]]","v":166334.39999999999},{"$f":"(((AAMC_Raw_Data_for_FY22[[#This Row],[Median]]-AAMC_Raw_Data_for_FY22[[#This Row],[25th]])/25)*10) + AAMC_Raw_Data_for_FY22[[#This Row],[25th]]","v":170638.8},{"$f":"(((AAMC_Raw_Data_for_FY22[[#This Row],[Median]]-AAMC_Raw_Data_for_FY22[[#This Row],[25th]])/25)*15) + AAMC_Raw_Data_for_FY22[[#This Row],[25th]]","v":174943.2},{"$f":"(((AAMC_Raw_Data_for_FY22[[#This Row],[Median]]-AAMC_Raw_Data_for_FY22[[#This Row],[25th]])/25)*20) + AAMC_Raw_Data_for_FY22[[#This Row],[25th]]","v":179247.6},183552,{"$f":"(((AAMC_Raw_Data_for_FY22[[#This Row],[75th]]-AAMC_Raw_Data_for_FY22[[#This Row],[Median]])/25)*5) + AAMC_Raw_Data_for_FY22[[#This Row],[Median]]","v":189488.6},{"$f":"(((AAMC_Raw_Data_for_FY22[[#This Row],[75th]]-AAMC_Raw_Data_for_FY22[[#This Row],[Median]])/25)*10) + AAMC_Raw_Data_for_FY22[[#This Row],[Median]]","v":195425.2},{"$f":"(((AAMC_Raw_Data_for_FY22[[#This Row],[75th]]-AAMC_Raw_Data_for_FY22[[#This Row],[Median]])/25)*15) + AAMC_Raw_Data_for_FY22[[#This Row],[Median]]","v":201361.8},{"$f":"(((AAMC_Raw_Data_for_FY22[[#This Row],[75th]]-AAMC_Raw_Data_for_FY22[[#This Row],[Median]])/25)*20) + AAMC_Raw_Data_for_FY22[[#This Row],[Median]]","v":207298.4},213235,{"$f":"(((AAMC_Raw_Data_for_FY22[[#This Row],[75th]]-AAMC_Raw_Data_for_FY22[[#This Row],[Median]])/25)*30) + AAMC_Raw_Data_for_FY22[[#This Row],[Median]]","v":219171.6},{"$f":"(((AAMC_Raw_Data_for_FY22[[#This Row],[75th]]-AAMC_Raw_Data_for_FY22[[#This Row],[Median]])/25)*35) + AAMC_Raw_Data_for_FY22[[#This Row],[Median]]","v":225108.2},{"$f":"(((AAMC_Raw_Data_for_FY22[[#This Row],[75th]]-AAMC_Raw_Data_for_FY22[[#This Row],[Median]])/25)*40) + AAMC_Raw_Data_for_FY22[[#This Row],[Median]]","v":231044.8}]
[{"$f":"AAMC_Raw_Data_for_FY22[[#This Row],[Source]]&AAMC_Raw_Data_for_FY22[[#This Row],[Type]]&AAMC_Raw_Data_for_FY22[[#This Row],[School Subset]]&AAMC_Raw_Data_for_FY22[[#This Row],[Rank]]&AAMC_Raw_Data_for_FY22[[#This Row],[Degree]]&AAMC_Raw_Data_for_FY22[[#This Row],[Department / Specialty]]&\"L\"","v":"AAMCAcademicAllProfessorMDBiostatisticsL"},"Biostatistics",2,"AAMC","Academic","All","Professor","MD","2021-2022",239775,{"$f":"(((AAMC_Raw_Data_for_FY22[[#This Row],[Median]]-AAMC_Raw_Data_for_FY22[[#This Row],[25th]])/25)*5) + AAMC_Raw_Data_for_FY22[[#This Row],[25th]]","v":244204},{"$f":"(((AAMC_Raw_Data_for_FY22[[#This Row],[Median]]-AAMC_Raw_Data_for_FY22[[#This Row],[25th]])/25)*10) + AAMC_Raw_Data_for_FY22[[#This Row],[25th]]","v":248633},{"$f":"(((AAMC_Raw_Data_for_FY22[[#This Row],[Median]]-AAMC_Raw_Data_for_FY22[[#This Row],[25th]])/25)*15) + AAMC_Raw_Data_for_FY22[[#This Row],[25th]]","v":253062},{"$f":"(((AAMC_Raw_Data_for_FY22[[#This Row],[Median]]-AAMC_Raw_Data_for_FY22[[#This Row],[25th]])/25)*20) + AAMC_Raw_Data_for_FY22[[#This Row],[25th]]","v":257491},261920,{"$f":"(((AAMC_Raw_Data_for_FY22[[#This Row],[75th]]-AAMC_Raw_Data_for_FY22[[#This Row],[Median]])/25)*5) + AAMC_Raw_Data_for_FY22[[#This Row],[Median]]","v":270275.20000000001},{"$f":"(((AAMC_Raw_Data_for_FY22[[#This Row],[75th]]-AAMC_Raw_Data_for_FY22[[#This Row],[Median]])/25)*10) + AAMC_Raw_Data_for_FY22[[#This Row],[Median]]","v":278630.40000000002},{"$f":"(((AAMC_Raw_Data_for_FY22[[#This Row],[75th]]-AAMC_Raw_Data_for_FY22[[#This Row],[Median]])/25)*15) + AAMC_Raw_Data_for_FY22[[#This Row],[Median]]","v":286985.59999999998},{"$f":"(((AAMC_Raw_Data_for_FY22[[#This Row],[75th]]-AAMC_Raw_Data_for_FY22[[#This Row],[Median]])/25)*20) + AAMC_Raw_Data_for_FY22[[#This Row],[Median]]","v":295340.79999999999},303696,{"$f":"(((AAMC_Raw_Data_for_FY22[[#This Row],[75th]]-AAMC_Raw_Data_for_FY22[[#This Row],[Median]])/25)*30) + AAMC_Raw_Data_for_FY22[[#This Row],[Median]]","v":312051.20000000001},{"$f":"(((AAMC_Raw_Data_for_FY22[[#This Row],[75th]]-AAMC_Raw_Data_for_FY22[[#This Row],[Median]])/25)*35) + AAMC_Raw_Data_for_FY22[[#This Row],[Median]]","v":320406.40000000002},{"$f":"(((AAMC_Raw_Data_for_FY22[[#This Row],[75th]]-AAMC_Raw_Data_for_FY22[[#This Row],[Median]])/25)*40) + AAMC_Raw_Data_for_FY22[[#This Row],[Median]]","v":328761.59999999998}]
[{"$f":"AAMC_Raw_Data_for_FY22[[#This Row],[Source]]&AAMC_Raw_Data_for_FY22[[#This Row],[Type]]&AAMC_Raw_Data_for_FY22[[#This Row],[School Subset]]&AAMC_Raw_Data_for_FY22[[#This Row],[Rank]]&AAMC_Raw_Data_for_FY22[[#This Row],[Degree]]&AAMC_Raw_Data_for_FY22[[#This Row],[Department / Specialty]]&\"L\"","v":"AAMCAcademicAllChiefMDBiostatisticsL"},"Biostatistics",6,"AAMC","Academic","All","Chief","MD","2021-2022",null,{"$f":"(((AAMC_Raw_Data_for_FY22[[#This Row],[Median]]-AAMC_Raw_Data_for_FY22[[#This Row],[25th]])/25)*5) + AAMC_Raw_Data_for_FY22[[#This Row],[25th]]","v":0},{"$f":"(((AAMC_Raw_Data_for_FY22[[#This Row],[Median]]-AAMC_Raw_Data_for_FY22[[#This Row],[25th]])/25)*10) + AAMC_Raw_Data_for_FY22[[#This Row],[25th]]","v":0},{"$f":"(((AAMC_Raw_Data_for_FY22[[#This Row],[Median]]-AAMC_Raw_Data_for_FY22[[#This Row],[25th]])/25)*15) + AAMC_Raw_Data_for_FY22[[#This Row],[25th]]","v":0},{"$f":"(((AAMC_Raw_Data_for_FY22[[#This Row],[Median]]-AAMC_Raw_Data_for_FY22[[#This Row],[25th]])/25)*20) + AAMC_Raw_Data_for_FY22[[#This Row],[25th]]","v":0},null,{"$f":"(((AAMC_Raw_Data_for_FY22[[#This Row],[75th]]-AAMC_Raw_Data_for_FY22[[#This Row],[Median]])/25)*5) + AAMC_Raw_Data_for_FY22[[#This Row],[Median]]","v":0},{"$f":"(((AAMC_Raw_Data_for_FY22[[#This Row],[75th]]-AAMC_Raw_Data_for_FY22[[#This Row],[Median]])/25)*10) + AAMC_Raw_Data_for_FY22[[#This Row],[Median]]","v":0},{"$f":"(((AAMC_Raw_Data_for_FY22[[#This Row],[75th]]-AAMC_Raw_Data_for_FY22[[#This Row],[Median]])/25)*15) + AAMC_Raw_Data_for_FY22[[#This Row],[Median]]","v":0},{"$f":"(((AAMC_Raw_Data_for_FY22[[#This Row],[75th]]-AAMC_Raw_Data_for_FY22[[#This Row],[Median]])/25)*20) + AAMC_Raw_Data_for_FY22[[#This Row],[Median]]","v":0},null,{"$f":"(((AAMC_Raw_Data_for_FY22[[#This Row],[75th]]-AAMC_Raw_Data_for_FY22[[#This Row],[Median]])/25)*30) + AAMC_Raw_Data_for_FY22[[#This Row],[Median]]","v":0},{"$f":"(((AAMC_Raw_Data_for_FY22[[#This Row],[75th]]-AAMC_Raw_Data_for_FY22[[#This Row],[Median]])/25)*35) + AAMC_Raw_Data_for_FY22[[#This Row],[Median]]","v":0},{"$f":"(((AAMC_Raw_Data_for_FY22[[#This Row],[75th]]-AAMC_Raw_Data_for_FY22[[#This Row],[Median]])/25)*40) + AAMC_Raw_Data_for_FY22[[#This Row],[Median]]","v":0}]
[{"$f":"AAMC_Raw_Data_for_FY22[[#This Row],[Source]]&AAMC_Raw_Data_for_FY22[[#This Row],[Type]]&AAMC_Raw_Data_for_FY22[[#This Row],[School Subset]]&AAMC_Raw_Data_for_FY22[[#This Row],[Rank]]&AAMC_Raw_Data_for_FY22[[#This Row],[Degree]]&AAMC_Raw_Data_for_FY22[[#This Row],[Department / Specialty]]&\"L\"","v":"AAMCAcademicAllChairMDBiostatisticsL"},"Biostatistics",1,"AAMC","Academic","All","Chair","MD","2021-2022",null,{"$f":"(((AAMC_Raw_Data_for_FY22[[#This Row],[Median]]-AAMC_Raw_Data_for_FY22[[#This Row],[25th]])/25)*5) + AAMC_Raw_Data_for_FY22[[#This Row],[25th]]","v":0},{"$f":"(((AAMC_Raw_Data_for_FY22[[#This Row],[Median]]-AAMC_Raw_Data_for_FY22[[#This Row],[25th]])/25)*10) + AAMC_Raw_Data_for_FY22[[#This Row],[25th]]","v":0},{"$f":"(((AAMC_Raw_Data_for_FY22[[#This Row],[Median]]-AAMC_Raw_Data_for_FY22[[#This Row],[25th]])/25)*15) + AAMC_Raw_Data_for_FY22[[#This Row],[25th]]","v":0},{"$f":"(((AAMC_Raw_Data_for_FY22[[#This Row],[Median]]-AAMC_Raw_Data_for_FY22[[#This Row],[25th]])/25)*20) + AAMC_Raw_Data_for_FY22[[#This Row],[25th]]","v":0},null,{"$f":"(((AAMC_Raw_Data_for_FY22[[#This Row],[75th]]-AAMC_Raw_Data_for_FY22[[#This Row],[Median]])/25)*5) + AAMC_Raw_Data_for_FY22[[#This Row],[Median]]","v":0},{"$f":"(((AAMC_Raw_Data_for_FY22[[#This Row],[75th]]-AAMC_Raw_Data_for_FY22[[#This Row],[Median]])/25)*10) + AAMC_Raw_Data_for_FY22[[#This Row],[Median]]","v":0},{"$f":"(((AAMC_Raw_Data_for_FY22[[#This Row],[75th]]-AAMC_Raw_Data_for_FY22[[#This Row],[Median]])/25)*15) + AAMC_Raw_Data_for_FY22[[#This Row],[Median]]","v":0},{"$f":"(((AAMC_Raw_Data_for_FY22[[#This Row],[75th]]-AAMC_Raw_Data_for_FY22[[#This Row],[Median]])/25)*20) + AAMC_Raw_Data_for_FY22[[#This Row],[Median]]","v":0},null,{"$f":"(((AAMC_Raw_Data_for_FY22[[#This Row],[75th]]-AAMC_Raw_Data_for_FY22[[#This Row],[Median]])/25)*30) + AAMC_Raw_Data_for_FY22[[#This Row],[Median]]","v":0},{"$f":"(((AAMC_Raw_Data_for_FY22[[#This Row],[75th]]-AAMC_Raw_Data_for_FY22[[#This Row],[Median]])/25)*35) + AAMC_Raw_Data_for_FY22[[#This Row],[Median]]","v":0},{"$f":"(((AAMC_Raw_Data_for_FY22[[#This Row],[75th]]-AAMC_Raw_Data_for_FY22[[#This Row],[Median]])/25)*40) + AAMC_Raw_Data_for_FY22[[#This Row],[Median]]","v":0}]
[{"$f":"AAMC_Raw_Data_for_FY22[[#This Row],[Source]]&AAMC_Raw_Data_for_FY22[[#This Row],[Type]]&AAMC_Raw_Data_for_FY22[[#This Row],[School Subset]]&AAMC_Raw_Data_for_FY22[[#This Row],[Rank]]&AAMC_Raw_Data_for_FY22[[#This Row],[Degree]]&AAMC_Raw_Data_for_FY22[[#This Row],[Department / Specialty]]&\"L\"","v":"AAMCAcademicAllInstructorMDGeneticsL"},"Genetics",5,"AAMC","Academic","All","Instructor","MD","2021-2022",null,{"$f":"(((AAMC_Raw_Data_for_FY22[[#This Row],[Median]]-AAMC_Raw_Data_for_FY22[[#This Row],[25th]])/25)*5) + AAMC_Raw_Data_for_FY22[[#This Row],[25th]]","v":0},{"$f":"(((AAMC_Raw_Data_for_FY22[[#This Row],[Median]]-AAMC_Raw_Data_for_FY22[[#This Row],[25th]])/25)*10) + AAMC_Raw_Data_for_FY22[[#This Row],[25th]]","v":0},{"$f":"(((AAMC_Raw_Data_for_FY22[[#This Row],[Median]]-AAMC_Raw_Data_for_FY22[[#This Row],[25th]])/25)*15) + AAMC_Raw_Data_for_FY22[[#This Row],[25th]]","v":0},{"$f":"(((AAMC_Raw_Data_for_FY22[[#This Row],[Median]]-AAMC_Raw_Data_for_FY22[[#This Row],[25th]])/25)*20) + AAMC_Raw_Data_for_FY22[[#This Row],[25th]]","v":0},null,{"$f":"(((AAMC_Raw_Data_for_FY22[[#This Row],[75th]]-AAMC_Raw_Data_for_FY22[[#This Row],[Median]])/25)*5) + AAMC_Raw_Data_for_FY22[[#This Row],[Median]]","v":0},{"$f":"(((AAMC_Raw_Data_for_FY22[[#This Row],[75th]]-AAMC_Raw_Data_for_FY22[[#This Row],[Median]])/25)*10) + AAMC_Raw_Data_for_FY22[[#This Row],[Median]]","v":0},{"$f":"(((AAMC_Raw_Data_for_FY22[[#This Row],[75th]]-AAMC_Raw_Data_for_FY22[[#This Row],[Median]])/25)*15) + AAMC_Raw_Data_for_FY22[[#This Row],[Median]]","v":0},{"$f":"(((AAMC_Raw_Data_for_FY22[[#This Row],[75th]]-AAMC_Raw_Data_for_FY22[[#This Row],[Median]])/25)*20) + AAMC_Raw_Data_for_FY22[[#This Row],[Median]]","v":0},null,{"$f":"(((AAMC_Raw_Data_for_FY22[[#This Row],[75th]]-AAMC_Raw_Data_for_FY22[[#This Row],[Median]])/25)*30) + AAMC_Raw_Data_for_FY22[[#This Row],[Median]]","v":0},{"$f":"(((AAMC_Raw_Data_for_FY22[[#This Row],[75th]]-AAMC_Raw_Data_for_FY22[[#This Row],[Median]])/25)*35) + AAMC_Raw_Data_for_FY22[[#This Row],[Median]]","v":0},{"$f":"(((AAMC_Raw_Data_for_FY22[[#This Row],[75th]]-AAMC_Raw_Data_for_FY22[[#This Row],[Median]])/25)*40) + AAMC_Raw_Data_for_FY22[[#This Row],[Median]]","v":0}]
[{"$f":"AAMC_Raw_Data_for_FY22[[#This Row],[Source]]&AAMC_Raw_Data_for_FY22[[#This Row],[Type]]&AAMC_Raw_Data_for_FY22[[#This Row],[School Subset]]&AAMC_Raw_Data_for_FY22[[#This Row],[Rank]]&AAMC_Raw_Data_for_FY22[[#This Row],[Degree]]&AAMC_Raw_Data_for_FY22[[#This Row],[Department / Specialty]]&\"L\"","v":"AAMCAcademicAllAssistantMDGeneticsL"},"Genetics",4,"AAMC","Academic","All","Assistant","MD","2021-2022",138491,{"$f":"(((AAMC_Raw_Data_for_FY22[[#This Row],[Median]]-AAMC_Raw_Data_for_FY22[[#This Row],[25th]])/25)*5) + AAMC_Raw_Data_for_FY22[[#This Row],[25th]]","v":145802.6},{"$f":"(((AAMC_Raw_Data_for_FY22[[#This Row],[Median]]-AAMC_Raw_Data_for_FY22[[#This Row],[25th]])/25)*10) + AAMC_Raw_Data_for_FY22[[#This Row],[25th]]","v":153114.20000000001},{"$f":"(((AAMC_Raw_Data_for_FY22[[#This Row],[Median]]-AAMC_Raw_Data_for_FY22[[#This Row],[25th]])/25)*15) + AAMC_Raw_Data_for_FY22[[#This Row],[25th]]","v":160425.79999999999},{"$f":"(((AAMC_Raw_Data_for_FY22[[#This Row],[Median]]-AAMC_Raw_Data_for_FY22[[#This Row],[25th]])/25)*20) + AAMC_Raw_Data_for_FY22[[#This Row],[25th]]","v":167737.4},175049,{"$f":"(((AAMC_Raw_Data_for_FY22[[#This Row],[75th]]-AAMC_Raw_Data_for_FY22[[#This Row],[Median]])/25)*5) + AAMC_Raw_Data_for_FY22[[#This Row],[Median]]","v":178637.8},{"$f":"(((AAMC_Raw_Data_for_FY22[[#This Row],[75th]]-AAMC_Raw_Data_for_FY22[[#This Row],[Median]])/25)*10) + AAMC_Raw_Data_for_FY22[[#This Row],[Median]]","v":182226.6},{"$f":"(((AAMC_Raw_Data_for_FY22[[#This Row],[75th]]-AAMC_Raw_Data_for_FY22[[#This Row],[Median]])/25)*15) + AAMC_Raw_Data_for_FY22[[#This Row],[Median]]","v":185815.4},{"$f":"(((AAMC_Raw_Data_for_FY22[[#This Row],[75th]]-AAMC_Raw_Data_for_FY22[[#This Row],[Median]])/25)*20) + AAMC_Raw_Data_for_FY22[[#This Row],[Median]]","v":189404.2},192993,{"$f":"(((AAMC_Raw_Data_for_FY22[[#This Row],[75th]]-AAMC_Raw_Data_for_FY22[[#This Row],[Median]])/25)*30) + AAMC_Raw_Data_for_FY22[[#This Row],[Median]]","v":196581.8},{"$f":"(((AAMC_Raw_Data_for_FY22[[#This Row],[75th]]-AAMC_Raw_Data_for_FY22[[#This Row],[Median]])/25)*35) + AAMC_Raw_Data_for_FY22[[#This Row],[Median]]","v":200170.6},{"$f":"(((AAMC_Raw_Data_for_FY22[[#This Row],[75th]]-AAMC_Raw_Data_for_FY22[[#This Row],[Median]])/25)*40) + AAMC_Raw_Data_for_FY22[[#This Row],[Median]]","v":203759.4}]
[{"$f":"AAMC_Raw_Data_for_FY22[[#This Row],[Source]]&AAMC_Raw_Data_for_FY22[[#This Row],[Type]]&AAMC_Raw_Data_for_FY22[[#This Row],[School Subset]]&AAMC_Raw_Data_for_FY22[[#This Row],[Rank]]&AAMC_Raw_Data_for_FY22[[#This Row],[Degree]]&AAMC_Raw_Data_for_FY22[[#This Row],[Department / Specialty]]&\"L\"","v":"AAMCAcademicAllAssociateMDGeneticsL"},"Genetics",3,"AAMC","Academic","All","Associate","MD","2021-2022",149288,{"$f":"(((AAMC_Raw_Data_for_FY22[[#This Row],[Median]]-AAMC_Raw_Data_for_FY22[[#This Row],[25th]])/25)*5) + AAMC_Raw_Data_for_FY22[[#This Row],[25th]]","v":156828.79999999999},{"$f":"(((AAMC_Raw_Data_for_FY22[[#This Row],[Median]]-AAMC_Raw_Data_for_FY22[[#This Row],[25th]])/25)*10) + AAMC_Raw_Data_for_FY22[[#This Row],[25th]]","v":164369.60000000001},{"$f":"(((AAMC_Raw_Data_for_FY22[[#This Row],[Median]]-AAMC_Raw_Data_for_FY22[[#This Row],[25th]])/25)*15) + AAMC_Raw_Data_for_FY22[[#This Row],[25th]]","v":171910.39999999999},{"$f":"(((AAMC_Raw_Data_for_FY22[[#This Row],[Median]]-AAMC_Raw_Data_for_FY22[[#This Row],[25th]])/25)*20) + AAMC_Raw_Data_for_FY22[[#This Row],[25th]]","v":179451.2},186992,{"$f":"(((AAMC_Raw_Data_for_FY22[[#This Row],[75th]]-AAMC_Raw_Data_for_FY22[[#This Row],[Median]])/25)*5) + AAMC_Raw_Data_for_FY22[[#This Row],[Median]]","v":193100.6},{"$f":"(((AAMC_Raw_Data_for_FY22[[#This Row],[75th]]-AAMC_Raw_Data_for_FY22[[#This Row],[Median]])/25)*10) + AAMC_Raw_Data_for_FY22[[#This Row],[Median]]","v":199209.2},{"$f":"(((AAMC_Raw_Data_for_FY22[[#This Row],[75th]]-AAMC_Raw_Data_for_FY22[[#This Row],[Median]])/25)*15) + AAMC_Raw_Data_for_FY22[[#This Row],[Median]]","v":205317.8},{"$f":"(((AAMC_Raw_Data_for_FY22[[#This Row],[75th]]-AAMC_Raw_Data_for_FY22[[#This Row],[Median]])/25)*20) + AAMC_Raw_Data_for_FY22[[#This Row],[Median]]","v":211426.4},217535,{"$f":"(((AAMC_Raw_Data_for_FY22[[#This Row],[75th]]-AAMC_Raw_Data_for_FY22[[#This Row],[Median]])/25)*30) + AAMC_Raw_Data_for_FY22[[#This Row],[Median]]","v":223643.6},{"$f":"(((AAMC_Raw_Data_for_FY22[[#This Row],[75th]]-AAMC_Raw_Data_for_FY22[[#This Row],[Median]])/25)*35) + AAMC_Raw_Data_for_FY22[[#This Row],[Median]]","v":229752.2},{"$f":"(((AAMC_Raw_Data_for_FY22[[#This Row],[75th]]-AAMC_Raw_Data_for_FY22[[#This Row],[Median]])/25)*40) + AAMC_Raw_Data_for_FY22[[#This Row],[Median]]","v":235860.8}]
[{"$f":"AAMC_Raw_Data_for_FY22[[#This Row],[Source]]&AAMC_Raw_Data_for_FY22[[#This Row],[Type]]&AAMC_Raw_Data_for_FY22[[#This Row],[School Subset]]&AAMC_Raw_Data_for_FY22[[#This Row],[Rank]]&AAMC_Raw_Data_for_FY22[[#This Row],[Degree]]&AAMC_Raw_Data_for_FY22[[#This Row],[Department / Specialty]]&\"L\"","v":"AAMCAcademicAllProfessorMDGeneticsL"},"Genetics",2,"AAMC","Academic","All","Professor","MD","2021-2022",226509,{"$f":"(((AAMC_Raw_Data_for_FY22[[#This Row],[Median]]-AAMC_Raw_Data_for_FY22[[#This Row],[25th]])/25)*5) + AAMC_Raw_Data_for_FY22[[#This Row],[25th]]","v":232024.8},{"$f":"(((AAMC_Raw_Data_for_FY22[[#This Row],[Median]]-AAMC_Raw_Data_for_FY22[[#This Row],[25th]])/25)*10) + AAMC_Raw_Data_for_FY22[[#This Row],[25th]]","v":237540.6},{"$f":"(((AAMC_Raw_Data_for_FY22[[#This Row],[Median]]-AAMC_Raw_Data_for_FY22[[#This Row],[25th]])/25)*15) + AAMC_Raw_Data_for_FY22[[#This Row],[25th]]","v":243056.4},{"$f":"(((AAMC_Raw_Data_for_FY22[[#This Row],[Median]]-AAMC_Raw_Data_for_FY22[[#This Row],[25th]])/25)*20) + AAMC_Raw_Data_for_FY22[[#This Row],[25th]]","v":248572.2},254088,{"$f":"(((AAMC_Raw_Data_for_FY22[[#This Row],[75th]]-AAMC_Raw_Data_for_FY22[[#This Row],[Median]])/25)*5) + AAMC_Raw_Data_for_FY22[[#This Row],[Median]]","v":267635.40000000002},{"$f":"(((AAMC_Raw_Data_for_FY22[[#This Row],[75th]]-AAMC_Raw_Data_for_FY22[[#This Row],[Median]])/25)*10) + AAMC_Raw_Data_for_FY22[[#This Row],[Median]]","v":281182.8},{"$f":"(((AAMC_Raw_Data_for_FY22[[#This Row],[75th]]-AAMC_Raw_Data_for_FY22[[#This Row],[Median]])/25)*15) + AAMC_Raw_Data_for_FY22[[#This Row],[Median]]","v":294730.2},{"$f":"(((AAMC_Raw_Data_for_FY22[[#This Row],[75th]]-AAMC_Raw_Data_for_FY22[[#This Row],[Median]])/25)*20) + AAMC_Raw_Data_for_FY22[[#This Row],[Median]]","v":308277.59999999998},321825,{"$f":"(((AAMC_Raw_Data_for_FY22[[#This Row],[75th]]-AAMC_Raw_Data_for_FY22[[#This Row],[Median]])/25)*30) + AAMC_Raw_Data_for_FY22[[#This Row],[Median]]","v":335372.40000000002},{"$f":"(((AAMC_Raw_Data_for_FY22[[#This Row],[75th]]-AAMC_Raw_Data_for_FY22[[#This Row],[Median]])/25)*35) + AAMC_Raw_Data_for_FY22[[#This Row],[Median]]","v":348919.8},{"$f":"(((AAMC_Raw_Data_for_FY22[[#This Row],[75th]]-AAMC_Raw_Data_for_FY22[[#This Row],[Median]])/25)*40) + AAMC_Raw_Data_for_FY22[[#This Row],[Median]]","v":362467.2}]
[{"$f":"AAMC_Raw_Data_for_FY22[[#This Row],[Source]]&AAMC_Raw_Data_for_FY22[[#This Row],[Type]]&AAMC_Raw_Data_for_FY22[[#This Row],[School Subset]]&AAMC_Raw_Data_for_FY22[[#This Row],[Rank]]&AAMC_Raw_Data_for_FY22[[#This Row],[Degree]]&AAMC_Raw_Data_for_FY22[[#This Row],[Department / Specialty]]&\"L\"","v":"AAMCAcademicAllChiefMDGeneticsL"},"Genetics",6,"AAMC","Academic","All","Chief","MD","2021-2022",null,{"$f":"(((AAMC_Raw_Data_for_FY22[[#This Row],[Median]]-AAMC_Raw_Data_for_FY22[[#This Row],[25th]])/25)*5) + AAMC_Raw_Data_for_FY22[[#This Row],[25th]]","v":0},{"$f":"(((AAMC_Raw_Data_for_FY22[[#This Row],[Median]]-AAMC_Raw_Data_for_FY22[[#This Row],[25th]])/25)*10) + AAMC_Raw_Data_for_FY22[[#This Row],[25th]]","v":0},{"$f":"(((AAMC_Raw_Data_for_FY22[[#This Row],[Median]]-AAMC_Raw_Data_for_FY22[[#This Row],[25th]])/25)*15) + AAMC_Raw_Data_for_FY22[[#This Row],[25th]]","v":0},{"$f":"(((AAMC_Raw_Data_for_FY22[[#This Row],[Median]]-AAMC_Raw_Data_for_FY22[[#This Row],[25th]])/25)*20) + AAMC_Raw_Data_for_FY22[[#This Row],[25th]]","v":0},null,{"$f":"(((AAMC_Raw_Data_for_FY22[[#This Row],[75th]]-AAMC_Raw_Data_for_FY22[[#This Row],[Median]])/25)*5) + AAMC_Raw_Data_for_FY22[[#This Row],[Median]]","v":0},{"$f":"(((AAMC_Raw_Data_for_FY22[[#This Row],[75th]]-AAMC_Raw_Data_for_FY22[[#This Row],[Median]])/25)*10) + AAMC_Raw_Data_for_FY22[[#This Row],[Median]]","v":0},{"$f":"(((AAMC_Raw_Data_for_FY22[[#This Row],[75th]]-AAMC_Raw_Data_for_FY22[[#This Row],[Median]])/25)*15) + AAMC_Raw_Data_for_FY22[[#This Row],[Median]]","v":0},{"$f":"(((AAMC_Raw_Data_for_FY22[[#This Row],[75th]]-AAMC_Raw_Data_for_FY22[[#This Row],[Median]])/25)*20) + AAMC_Raw_Data_for_FY22[[#This Row],[Median]]","v":0},null,{"$f":"(((AAMC_Raw_Data_for_FY22[[#This Row],[75th]]-AAMC_Raw_Data_for_FY22[[#This Row],[Median]])/25)*30) + AAMC_Raw_Data_for_FY22[[#This Row],[Median]]","v":0},{"$f":"(((AAMC_Raw_Data_for_FY22[[#This Row],[75th]]-AAMC_Raw_Data_for_FY22[[#This Row],[Median]])/25)*35) + AAMC_Raw_Data_for_FY22[[#This Row],[Median]]","v":0},{"$f":"(((AAMC_Raw_Data_for_FY22[[#This Row],[75th]]-AAMC_Raw_Data_for_FY22[[#This Row],[Median]])/25)*40) + AAMC_Raw_Data_for_FY22[[#This Row],[Median]]","v":0}]
[{"$f":"AAMC_Raw_Data_for_FY22[[#This Row],[Source]]&AAMC_Raw_Data_for_FY22[[#This Row],[Type]]&AAMC_Raw_Data_for_FY22[[#This Row],[School Subset]]&AAMC_Raw_Data_for_FY22[[#This Row],[Rank]]&AAMC_Raw_Data_for_FY22[[#This Row],[Degree]]&AAMC_Raw_Data_for_FY22[[#This Row],[Department / Specialty]]&\"L\"","v":"AAMCAcademicAllChairMDGeneticsL"},"Genetics",1,"AAMC","Academic","All","Chair","MD","2021-2022",452793,{"$f":"(((AAMC_Raw_Data_for_FY22[[#This Row],[Median]]-AAMC_Raw_Data_for_FY22[[#This Row],[25th]])/25)*5) + AAMC_Raw_Data_for_FY22[[#This Row],[25th]]","v":457884.4},{"$f":"(((AAMC_Raw_Data_for_FY22[[#This Row],[Median]]-AAMC_Raw_Data_for_FY22[[#This Row],[25th]])/25)*10) + AAMC_Raw_Data_for_FY22[[#This Row],[25th]]","v":462975.8},{"$f":"(((AAMC_Raw_Data_for_FY22[[#This Row],[Median]]-AAMC_Raw_Data_for_FY22[[#This Row],[25th]])/25)*15) + AAMC_Raw_Data_for_FY22[[#This Row],[25th]]","v":468067.2},{"$f":"(((AAMC_Raw_Data_for_FY22[[#This Row],[Median]]-AAMC_Raw_Data_for_FY22[[#This Row],[25th]])/25)*20) + AAMC_Raw_Data_for_FY22[[#This Row],[25th]]","v":473158.6},478250,{"$f":"(((AAMC_Raw_Data_for_FY22[[#This Row],[75th]]-AAMC_Raw_Data_for_FY22[[#This Row],[Median]])/25)*5) + AAMC_Raw_Data_for_FY22[[#This Row],[Median]]","v":526025},{"$f":"(((AAMC_Raw_Data_for_FY22[[#This Row],[75th]]-AAMC_Raw_Data_for_FY22[[#This Row],[Median]])/25)*10) + AAMC_Raw_Data_for_FY22[[#This Row],[Median]]","v":573800},{"$f":"(((AAMC_Raw_Data_for_FY22[[#This Row],[75th]]-AAMC_Raw_Data_for_FY22[[#This Row],[Median]])/25)*15) + AAMC_Raw_Data_for_FY22[[#This Row],[Median]]","v":621575},{"$f":"(((AAMC_Raw_Data_for_FY22[[#This Row],[75th]]-AAMC_Raw_Data_for_FY22[[#This Row],[Median]])/25)*20) + AAMC_Raw_Data_for_FY22[[#This Row],[Median]]","v":669350},717125,{"$f":"(((AAMC_Raw_Data_for_FY22[[#This Row],[75th]]-AAMC_Raw_Data_for_FY22[[#This Row],[Median]])/25)*30) + AAMC_Raw_Data_for_FY22[[#This Row],[Median]]","v":764900},{"$f":"(((AAMC_Raw_Data_for_FY22[[#This Row],[75th]]-AAMC_Raw_Data_for_FY22[[#This Row],[Median]])/25)*35) + AAMC_Raw_Data_for_FY22[[#This Row],[Median]]","v":812675},{"$f":"(((AAMC_Raw_Data_for_FY22[[#This Row],[75th]]-AAMC_Raw_Data_for_FY22[[#This Row],[Median]])/25)*40) + AAMC_Raw_Data_for_FY22[[#This Row],[Median]]","v":860450}]
[{"$f":"AAMC_Raw_Data_for_FY22[[#This Row],[Source]]&AAMC_Raw_Data_for_FY22[[#This Row],[Type]]&AAMC_Raw_Data_for_FY22[[#This Row],[School Subset]]&AAMC_Raw_Data_for_FY22[[#This Row],[Rank]]&AAMC_Raw_Data_for_FY22[[#This Row],[Degree]]&AAMC_Raw_Data_for_FY22[[#This Row],[Department / Specialty]]&\"L\"","v":"AAMCAcademicAllInstructorMDMicrobiologyL"},"Microbiology",5,"AAMC","Academic","All","Instructor","MD","2021-2022",null,{"$f":"(((AAMC_Raw_Data_for_FY22[[#This Row],[Median]]-AAMC_Raw_Data_for_FY22[[#This Row],[25th]])/25)*5) + AAMC_Raw_Data_for_FY22[[#This Row],[25th]]","v":0},{"$f":"(((AAMC_Raw_Data_for_FY22[[#This Row],[Median]]-AAMC_Raw_Data_for_FY22[[#This Row],[25th]])/25)*10) + AAMC_Raw_Data_for_FY22[[#This Row],[25th]]","v":0},{"$f":"(((AAMC_Raw_Data_for_FY22[[#This Row],[Median]]-AAMC_Raw_Data_for_FY22[[#This Row],[25th]])/25)*15) + AAMC_Raw_Data_for_FY22[[#This Row],[25th]]","v":0},{"$f":"(((AAMC_Raw_Data_for_FY22[[#This Row],[Median]]-AAMC_Raw_Data_for_FY22[[#This Row],[25th]])/25)*20) + AAMC_Raw_Data_for_FY22[[#This Row],[25th]]","v":0},null,{"$f":"(((AAMC_Raw_Data_for_FY22[[#This Row],[75th]]-AAMC_Raw_Data_for_FY22[[#This Row],[Median]])/25)*5) + AAMC_Raw_Data_for_FY22[[#This Row],[Median]]","v":0},{"$f":"(((AAMC_Raw_Data_for_FY22[[#This Row],[75th]]-AAMC_Raw_Data_for_FY22[[#This Row],[Median]])/25)*10) + AAMC_Raw_Data_for_FY22[[#This Row],[Median]]","v":0},{"$f":"(((AAMC_Raw_Data_for_FY22[[#This Row],[75th]]-AAMC_Raw_Data_for_FY22[[#This Row],[Median]])/25)*15) + AAMC_Raw_Data_for_FY22[[#This Row],[Median]]","v":0},{"$f":"(((AAMC_Raw_Data_for_FY22[[#This Row],[75th]]-AAMC_Raw_Data_for_FY22[[#This Row],[Median]])/25)*20) + AAMC_Raw_Data_for_FY22[[#This Row],[Median]]","v":0},null,{"$f":"(((AAMC_Raw_Data_for_FY22[[#This Row],[75th]]-AAMC_Raw_Data_for_FY22[[#This Row],[Median]])/25)*30) + AAMC_Raw_Data_for_FY22[[#This Row],[Median]]","v":0},{"$f":"(((AAMC_Raw_Data_for_FY22[[#This Row],[75th]]-AAMC_Raw_Data_for_FY22[[#This Row],[Median]])/25)*35) + AAMC_Raw_Data_for_FY22[[#This Row],[Median]]","v":0},{"$f":"(((AAMC_Raw_Data_for_FY22[[#This Row],[75th]]-AAMC_Raw_Data_for_FY22[[#This Row],[Median]])/25)*40) + AAMC_Raw_Data_for_FY22[[#This Row],[Median]]","v":0}]
[{"$f":"AAMC_Raw_Data_for_FY22[[#This Row],[Source]]&AAMC_Raw_Data_for_FY22[[#This Row],[Type]]&AAMC_Raw_Data_for_FY22[[#This Row],[School Subset]]&AAMC_Raw_Data_for_FY22[[#This Row],[Rank]]&AAMC_Raw_Data_for_FY22[[#This Row],[Degree]]&AAMC_Raw_Data_for_FY22[[#This Row],[Department / Specialty]]&\"L\"","v":"AAMCAcademicAllAssistantMDMicrobiologyL"},"Microbiology",4,"AAMC","Academic","All","Assistant","MD","2021-2022",81232,{"$f":"(((AAMC_Raw_Data_for_FY22[[#This Row],[Median]]-AAMC_Raw_Data_for_FY22[[#This Row],[25th]])/25)*5) + AAMC_Raw_Data_for_FY22[[#This Row],[25th]]","v":85898.2},{"$f":"(((AAMC_Raw_Data_for_FY22[[#This Row],[Median]]-AAMC_Raw_Data_for_FY22[[#This Row],[25th]])/25)*10) + AAMC_Raw_Data_for_FY22[[#This Row],[25th]]","v":90564.4},{"$f":"(((AAMC_Raw_Data_for_FY22[[#This Row],[Median]]-AAMC_Raw_Data_for_FY22[[#This Row],[25th]])/25)*15) + AAMC_Raw_Data_for_FY22[[#This Row],[25th]]","v":95230.6},{"$f":"(((AAMC_Raw_Data_for_FY22[[#This Row],[Median]]-AAMC_Raw_Data_for_FY22[[#This Row],[25th]])/25)*20) + AAMC_Raw_Data_for_FY22[[#This Row],[25th]]","v":99896.8},104563,{"$f":"(((AAMC_Raw_Data_for_FY22[[#This Row],[75th]]-AAMC_Raw_Data_for_FY22[[#This Row],[Median]])/25)*5) + AAMC_Raw_Data_for_FY22[[#This Row],[Median]]","v":110491.4},{"$f":"(((AAMC_Raw_Data_for_FY22[[#This Row],[75th]]-AAMC_Raw_Data_for_FY22[[#This Row],[Median]])/25)*10) + AAMC_Raw_Data_for_FY22[[#This Row],[Median]]","v":116419.8},{"$f":"(((AAMC_Raw_Data_for_FY22[[#This Row],[75th]]-AAMC_Raw_Data_for_FY22[[#This Row],[Median]])/25)*15) + AAMC_Raw_Data_for_FY22[[#This Row],[Median]]","v":122348.2},{"$f":"(((AAMC_Raw_Data_for_FY22[[#This Row],[75th]]-AAMC_Raw_Data_for_FY22[[#This Row],[Median]])/25)*20) + AAMC_Raw_Data_for_FY22[[#This Row],[Median]]","v":128276.6},134205,{"$f":"(((AAMC_Raw_Data_for_FY22[[#This Row],[75th]]-AAMC_Raw_Data_for_FY22[[#This Row],[Median]])/25)*30) + AAMC_Raw_Data_for_FY22[[#This Row],[Median]]","v":140133.4},{"$f":"(((AAMC_Raw_Data_for_FY22[[#This Row],[75th]]-AAMC_Raw_Data_for_FY22[[#This Row],[Median]])/25)*35) + AAMC_Raw_Data_for_FY22[[#This Row],[Median]]","v":146061.79999999999},{"$f":"(((AAMC_Raw_Data_for_FY22[[#This Row],[75th]]-AAMC_Raw_Data_for_FY22[[#This Row],[Median]])/25)*40) + AAMC_Raw_Data_for_FY22[[#This Row],[Median]]","v":151990.20000000001}]
[{"$f":"AAMC_Raw_Data_for_FY22[[#This Row],[Source]]&AAMC_Raw_Data_for_FY22[[#This Row],[Type]]&AAMC_Raw_Data_for_FY22[[#This Row],[School Subset]]&AAMC_Raw_Data_for_FY22[[#This Row],[Rank]]&AAMC_Raw_Data_for_FY22[[#This Row],[Degree]]&AAMC_Raw_Data_for_FY22[[#This Row],[Department / Specialty]]&\"L\"","v":"AAMCAcademicAllAssociateMDMicrobiologyL"},"Microbiology",3,"AAMC","Academic","All","Associate","MD","2021-2022",126793,{"$f":"(((AAMC_Raw_Data_for_FY22[[#This Row],[Median]]-AAMC_Raw_Data_for_FY22[[#This Row],[25th]])/25)*5) + AAMC_Raw_Data_for_FY22[[#This Row],[25th]]","v":130723.4},{"$f":"(((AAMC_Raw_Data_for_FY22[[#This Row],[Median]]-AAMC_Raw_Data_for_FY22[[#This Row],[25th]])/25)*10) + AAMC_Raw_Data_for_FY22[[#This Row],[25th]]","v":134653.79999999999},{"$f":"(((AAMC_Raw_Data_for_FY22[[#This Row],[Median]]-AAMC_Raw_Data_for_FY22[[#This Row],[25th]])/25)*15) + AAMC_Raw_Data_for_FY22[[#This Row],[25th]]","v":138584.20000000001},{"$f":"(((AAMC_Raw_Data_for_FY22[[#This Row],[Median]]-AAMC_Raw_Data_for_FY22[[#This Row],[25th]])/25)*20) + AAMC_Raw_Data_for_FY22[[#This Row],[25th]]","v":142514.6},146445,{"$f":"(((AAMC_Raw_Data_for_FY22[[#This Row],[75th]]-AAMC_Raw_Data_for_FY22[[#This Row],[Median]])/25)*5) + AAMC_Raw_Data_for_FY22[[#This Row],[Median]]","v":148283.6},{"$f":"(((AAMC_Raw_Data_for_FY22[[#This Row],[75th]]-AAMC_Raw_Data_for_FY22[[#This Row],[Median]])/25)*10) + AAMC_Raw_Data_for_FY22[[#This Row],[Median]]","v":150122.20000000001},{"$f":"(((AAMC_Raw_Data_for_FY22[[#This Row],[75th]]-AAMC_Raw_Data_for_FY22[[#This Row],[Median]])/25)*15) + AAMC_Raw_Data_for_FY22[[#This Row],[Median]]","v":151960.79999999999},{"$f":"(((AAMC_Raw_Data_for_FY22[[#This Row],[75th]]-AAMC_Raw_Data_for_FY22[[#This Row],[Median]])/25)*20) + AAMC_Raw_Data_for_FY22[[#This Row],[Median]]","v":153799.4},155638,{"$f":"(((AAMC_Raw_Data_for_FY22[[#This Row],[75th]]-AAMC_Raw_Data_for_FY22[[#This Row],[Median]])/25)*30) + AAMC_Raw_Data_for_FY22[[#This Row],[Median]]","v":157476.6},{"$f":"(((AAMC_Raw_Data_for_FY22[[#This Row],[75th]]-AAMC_Raw_Data_for_FY22[[#This Row],[Median]])/25)*35) + AAMC_Raw_Data_for_FY22[[#This Row],[Median]]","v":159315.20000000001},{"$f":"(((AAMC_Raw_Data_for_FY22[[#This Row],[75th]]-AAMC_Raw_Data_for_FY22[[#This Row],[Median]])/25)*40) + AAMC_Raw_Data_for_FY22[[#This Row],[Median]]","v":161153.79999999999}]
[{"$f":"AAMC_Raw_Data_for_FY22[[#This Row],[Source]]&AAMC_Raw_Data_for_FY22[[#This Row],[Type]]&AAMC_Raw_Data_for_FY22[[#This Row],[School Subset]]&AAMC_Raw_Data_for_FY22[[#This Row],[Rank]]&AAMC_Raw_Data_for_FY22[[#This Row],[Degree]]&AAMC_Raw_Data_for_FY22[[#This Row],[Department / Specialty]]&\"L\"","v":"AAMCAcademicAllProfessorMDMicrobiologyL"},"Microbiology",2,"AAMC","Academic","All","Professor","MD","2021-2022",180725,{"$f":"(((AAMC_Raw_Data_for_FY22[[#This Row],[Median]]-AAMC_Raw_Data_for_FY22[[#This Row],[25th]])/25)*5) + AAMC_Raw_Data_for_FY22[[#This Row],[25th]]","v":189743.2},{"$f":"(((AAMC_Raw_Data_for_FY22[[#This Row],[Median]]-AAMC_Raw_Data_for_FY22[[#This Row],[25th]])/25)*10) + AAMC_Raw_Data_for_FY22[[#This Row],[25th]]","v":198761.4},{"$f":"(((AAMC_Raw_Data_for_FY22[[#This Row],[Median]]-AAMC_Raw_Data_for_FY22[[#This Row],[25th]])/25)*15) + AAMC_Raw_Data_for_FY22[[#This Row],[25th]]","v":207779.6},{"$f":"(((AAMC_Raw_Data_for_FY22[[#This Row],[Median]]-AAMC_Raw_Data_for_FY22[[#This Row],[25th]])/25)*20) + AAMC_Raw_Data_for_FY22[[#This Row],[25th]]","v":216797.8},225816,{"$f":"(((AAMC_Raw_Data_for_FY22[[#This Row],[75th]]-AAMC_Raw_Data_for_FY22[[#This Row],[Median]])/25)*5) + AAMC_Raw_Data_for_FY22[[#This Row],[Median]]","v":236074.6},{"$f":"(((AAMC_Raw_Data_for_FY22[[#This Row],[75th]]-AAMC_Raw_Data_for_FY22[[#This Row],[Median]])/25)*10) + AAMC_Raw_Data_for_FY22[[#This Row],[Median]]","v":246333.2},{"$f":"(((AAMC_Raw_Data_for_FY22[[#This Row],[75th]]-AAMC_Raw_Data_for_FY22[[#This Row],[Median]])/25)*15) + AAMC_Raw_Data_for_FY22[[#This Row],[Median]]","v":256591.8},{"$f":"(((AAMC_Raw_Data_for_FY22[[#This Row],[75th]]-AAMC_Raw_Data_for_FY22[[#This Row],[Median]])/25)*20) + AAMC_Raw_Data_for_FY22[[#This Row],[Median]]","v":266850.40000000002},277109,{"$f":"(((AAMC_Raw_Data_for_FY22[[#This Row],[75th]]-AAMC_Raw_Data_for_FY22[[#This Row],[Median]])/25)*30) + AAMC_Raw_Data_for_FY22[[#This Row],[Median]]","v":287367.59999999998},{"$f":"(((AAMC_Raw_Data_for_FY22[[#This Row],[75th]]-AAMC_Raw_Data_for_FY22[[#This Row],[Median]])/25)*35) + AAMC_Raw_Data_for_FY22[[#This Row],[Median]]","v":297626.2},{"$f":"(((AAMC_Raw_Data_for_FY22[[#This Row],[75th]]-AAMC_Raw_Data_for_FY22[[#This Row],[Median]])/25)*40) + AAMC_Raw_Data_for_FY22[[#This Row],[Median]]","v":307884.79999999999}]
[{"$f":"AAMC_Raw_Data_for_FY22[[#This Row],[Source]]&AAMC_Raw_Data_for_FY22[[#This Row],[Type]]&AAMC_Raw_Data_for_FY22[[#This Row],[School Subset]]&AAMC_Raw_Data_for_FY22[[#This Row],[Rank]]&AAMC_Raw_Data_for_FY22[[#This Row],[Degree]]&AAMC_Raw_Data_for_FY22[[#This Row],[Department / Specialty]]&\"L\"","v":"AAMCAcademicAllChiefMDMicrobiologyL"},"Microbiology",6,"AAMC","Academic","All","Chief","MD","2021-2022",null,{"$f":"(((AAMC_Raw_Data_for_FY22[[#This Row],[Median]]-AAMC_Raw_Data_for_FY22[[#This Row],[25th]])/25)*5) + AAMC_Raw_Data_for_FY22[[#This Row],[25th]]","v":0},{"$f":"(((AAMC_Raw_Data_for_FY22[[#This Row],[Median]]-AAMC_Raw_Data_for_FY22[[#This Row],[25th]])/25)*10) + AAMC_Raw_Data_for_FY22[[#This Row],[25th]]","v":0},{"$f":"(((AAMC_Raw_Data_for_FY22[[#This Row],[Median]]-AAMC_Raw_Data_for_FY22[[#This Row],[25th]])/25)*15) + AAMC_Raw_Data_for_FY22[[#This Row],[25th]]","v":0},{"$f":"(((AAMC_Raw_Data_for_FY22[[#This Row],[Median]]-AAMC_Raw_Data_for_FY22[[#This Row],[25th]])/25)*20) + AAMC_Raw_Data_for_FY22[[#This Row],[25th]]","v":0},null,{"$f":"(((AAMC_Raw_Data_for_FY22[[#This Row],[75th]]-AAMC_Raw_Data_for_FY22[[#This Row],[Median]])/25)*5) + AAMC_Raw_Data_for_FY22[[#This Row],[Median]]","v":0},{"$f":"(((AAMC_Raw_Data_for_FY22[[#This Row],[75th]]-AAMC_Raw_Data_for_FY22[[#This Row],[Median]])/25)*10) + AAMC_Raw_Data_for_FY22[[#This Row],[Median]]","v":0},{"$f":"(((AAMC_Raw_Data_for_FY22[[#This Row],[75th]]-AAMC_Raw_Data_for_FY22[[#This Row],[Median]])/25)*15) + AAMC_Raw_Data_for_FY22[[#This Row],[Median]]","v":0},{"$f":"(((AAMC_Raw_Data_for_FY22[[#This Row],[75th]]-AAMC_Raw_Data_for_FY22[[#This Row],[Median]])/25)*20) + AAMC_Raw_Data_for_FY22[[#This Row],[Median]]","v":0},null,{"$f":"(((AAMC_Raw_Data_for_FY22[[#This Row],[75th]]-AAMC_Raw_Data_for_FY22[[#This Row],[Median]])/25)*30) + AAMC_Raw_Data_for_FY22[[#This Row],[Median]]","v":0},{"$f":"(((AAMC_Raw_Data_for_FY22[[#This Row],[75th]]-AAMC_Raw_Data_for_FY22[[#This Row],[Median]])/25)*35) + AAMC_Raw_Data_for_FY22[[#This Row],[Median]]","v":0},{"$f":"(((AAMC_Raw_Data_for_FY22[[#This Row],[75th]]-AAMC_Raw_Data_for_FY22[[#This Row],[Median]])/25)*40) + AAMC_Raw_Data_for_FY22[[#This Row],[Median]]","v":0}]
[{"$f":"AAMC_Raw_Data_for_FY22[[#This Row],[Source]]&AAMC_Raw_Data_for_FY22[[#This Row],[Type]]&AAMC_Raw_Data_for_FY22[[#This Row],[School Subset]]&AAMC_Raw_Data_for_FY22[[#This Row],[Rank]]&AAMC_Raw_Data_for_FY22[[#This Row],[Degree]]&AAMC_Raw_Data_for_FY22[[#This Row],[Department / Specialty]]&\"L\"","v":"AAMCAcademicAllChairMDMicrobiologyL"},"Microbiology",1,"AAMC","Academic","All","Chair","MD","2021-2022",337130,{"$f":"(((AAMC_Raw_Data_for_FY22[[#This Row],[Median]]-AAMC_Raw_Data_for_FY22[[#This Row],[25th]])/25)*5) + AAMC_Raw_Data_for_FY22[[#This Row],[25th]]","v":345426.8},{"$f":"(((AAMC_Raw_Data_for_FY22[[#This Row],[Median]]-AAMC_Raw_Data_for_FY22[[#This Row],[25th]])/25)*10) + AAMC_Raw_Data_for_FY22[[#This Row],[25th]]","v":353723.6},{"$f":"(((AAMC_Raw_Data_for_FY22[[#This Row],[Median]]-AAMC_Raw_Data_for_FY22[[#This Row],[25th]])/25)*15) + AAMC_Raw_Data_for_FY22[[#This Row],[25th]]","v":362020.4},{"$f":"(((AAMC_Raw_Data_for_FY22[[#This Row],[Median]]-AAMC_Raw_Data_for_FY22[[#This Row],[25th]])/25)*20) + AAMC_Raw_Data_for_FY22[[#This Row],[25th]]","v":370317.2},378614,{"$f":"(((AAMC_Raw_Data_for_FY22[[#This Row],[75th]]-AAMC_Raw_Data_for_FY22[[#This Row],[Median]])/25)*5) + AAMC_Raw_Data_for_FY22[[#This Row],[Median]]","v":384611.8},{"$f":"(((AAMC_Raw_Data_for_FY22[[#This Row],[75th]]-AAMC_Raw_Data_for_FY22[[#This Row],[Median]])/25)*10) + AAMC_Raw_Data_for_FY22[[#This Row],[Median]]","v":390609.6},{"$f":"(((AAMC_Raw_Data_for_FY22[[#This Row],[75th]]-AAMC_Raw_Data_for_FY22[[#This Row],[Median]])/25)*15) + AAMC_Raw_Data_for_FY22[[#This Row],[Median]]","v":396607.4},{"$f":"(((AAMC_Raw_Data_for_FY22[[#This Row],[75th]]-AAMC_Raw_Data_for_FY22[[#This Row],[Median]])/25)*20) + AAMC_Raw_Data_for_FY22[[#This Row],[Median]]","v":402605.2},408603,{"$f":"(((AAMC_Raw_Data_for_FY22[[#This Row],[75th]]-AAMC_Raw_Data_for_FY22[[#This Row],[Median]])/25)*30) + AAMC_Raw_Data_for_FY22[[#This Row],[Median]]","v":414600.8},{"$f":"(((AAMC_Raw_Data_for_FY22[[#This Row],[75th]]-AAMC_Raw_Data_for_FY22[[#This Row],[Median]])/25)*35) + AAMC_Raw_Data_for_FY22[[#This Row],[Median]]","v":420598.6},{"$f":"(((AAMC_Raw_Data_for_FY22[[#This Row],[75th]]-AAMC_Raw_Data_for_FY22[[#This Row],[Median]])/25)*40) + AAMC_Raw_Data_for_FY22[[#This Row],[Median]]","v":426596.4}]
[{"$f":"AAMC_Raw_Data_for_FY22[[#This Row],[Source]]&AAMC_Raw_Data_for_FY22[[#This Row],[Type]]&AAMC_Raw_Data_for_FY22[[#This Row],[School Subset]]&AAMC_Raw_Data_for_FY22[[#This Row],[Rank]]&AAMC_Raw_Data_for_FY22[[#This Row],[Degree]]&AAMC_Raw_Data_for_FY22[[#This Row],[Department / Specialty]]&\"L\"","v":"AAMCAcademicAllInstructorMDMolecular & Cellular BiologyL"},"Molecular & Cellular Biology",5,"AAMC","Academic","All","Instructor","MD","2021-2022",null,{"$f":"(((AAMC_Raw_Data_for_FY22[[#This Row],[Median]]-AAMC_Raw_Data_for_FY22[[#This Row],[25th]])/25)*5) + AAMC_Raw_Data_for_FY22[[#This Row],[25th]]","v":0},{"$f":"(((AAMC_Raw_Data_for_FY22[[#This Row],[Median]]-AAMC_Raw_Data_for_FY22[[#This Row],[25th]])/25)*10) + AAMC_Raw_Data_for_FY22[[#This Row],[25th]]","v":0},{"$f":"(((AAMC_Raw_Data_for_FY22[[#This Row],[Median]]-AAMC_Raw_Data_for_FY22[[#This Row],[25th]])/25)*15) + AAMC_Raw_Data_for_FY22[[#This Row],[25th]]","v":0},{"$f":"(((AAMC_Raw_Data_for_FY22[[#This Row],[Median]]-AAMC_Raw_Data_for_FY22[[#This Row],[25th]])/25)*20) + AAMC_Raw_Data_for_FY22[[#This Row],[25th]]","v":0},null,{"$f":"(((AAMC_Raw_Data_for_FY22[[#This Row],[75th]]-AAMC_Raw_Data_for_FY22[[#This Row],[Median]])/25)*5) + AAMC_Raw_Data_for_FY22[[#This Row],[Median]]","v":0},{"$f":"(((AAMC_Raw_Data_for_FY22[[#This Row],[75th]]-AAMC_Raw_Data_for_FY22[[#This Row],[Median]])/25)*10) + AAMC_Raw_Data_for_FY22[[#This Row],[Median]]","v":0},{"$f":"(((AAMC_Raw_Data_for_FY22[[#This Row],[75th]]-AAMC_Raw_Data_for_FY22[[#This Row],[Median]])/25)*15) + AAMC_Raw_Data_for_FY22[[#This Row],[Median]]","v":0},{"$f":"(((AAMC_Raw_Data_for_FY22[[#This Row],[75th]]-AAMC_Raw_Data_for_FY22[[#This Row],[Median]])/25)*20) + AAMC_Raw_Data_for_FY22[[#This Row],[Median]]","v":0},null,{"$f":"(((AAMC_Raw_Data_for_FY22[[#This Row],[75th]]-AAMC_Raw_Data_for_FY22[[#This Row],[Median]])/25)*30) + AAMC_Raw_Data_for_FY22[[#This Row],[Median]]","v":0},{"$f":"(((AAMC_Raw_Data_for_FY22[[#This Row],[75th]]-AAMC_Raw_Data_for_FY22[[#This Row],[Median]])/25)*35) + AAMC_Raw_Data_for_FY22[[#This Row],[Median]]","v":0},{"$f":"(((AAMC_Raw_Data_for_FY22[[#This Row],[75th]]-AAMC_Raw_Data_for_FY22[[#This Row],[Median]])/25)*40) + AAMC_Raw_Data_for_FY22[[#This Row],[Median]]","v":0}]
[{"$f":"AAMC_Raw_Data_for_FY22[[#This Row],[Source]]&AAMC_Raw_Data_for_FY22[[#This Row],[Type]]&AAMC_Raw_Data_for_FY22[[#This Row],[School Subset]]&AAMC_Raw_Data_for_FY22[[#This Row],[Rank]]&AAMC_Raw_Data_for_FY22[[#This Row],[Degree]]&AAMC_Raw_Data_for_FY22[[#This Row],[Department / Specialty]]&\"L\"","v":"AAMCAcademicAllAssistantMDMolecular & Cellular BiologyL"},"Molecular & Cellular Biology",4,"AAMC","Academic","All","Assistant","MD","2021-2022",92200,{"$f":"(((AAMC_Raw_Data_for_FY22[[#This Row],[Median]]-AAMC_Raw_Data_for_FY22[[#This Row],[25th]])/25)*5) + AAMC_Raw_Data_for_FY22[[#This Row],[25th]]","v":96388.4},{"$f":"(((AAMC_Raw_Data_for_FY22[[#This Row],[Median]]-AAMC_Raw_Data_for_FY22[[#This Row],[25th]])/25)*10) + AAMC_Raw_Data_for_FY22[[#This Row],[25th]]","v":100576.8},{"$f":"(((AAMC_Raw_Data_for_FY22[[#This Row],[Median]]-AAMC_Raw_Data_for_FY22[[#This Row],[25th]])/25)*15) + AAMC_Raw_Data_for_FY22[[#This Row],[25th]]","v":104765.2},{"$f":"(((AAMC_Raw_Data_for_FY22[[#This Row],[Median]]-AAMC_Raw_Data_for_FY22[[#This Row],[25th]])/25)*20) + AAMC_Raw_Data_for_FY22[[#This Row],[25th]]","v":108953.60000000001},113142,{"$f":"(((AAMC_Raw_Data_for_FY22[[#This Row],[75th]]-AAMC_Raw_Data_for_FY22[[#This Row],[Median]])/25)*5) + AAMC_Raw_Data_for_FY22[[#This Row],[Median]]","v":120076.4},{"$f":"(((AAMC_Raw_Data_for_FY22[[#This Row],[75th]]-AAMC_Raw_Data_for_FY22[[#This Row],[Median]])/25)*10) + AAMC_Raw_Data_for_FY22[[#This Row],[Median]]","v":127010.8},{"$f":"(((AAMC_Raw_Data_for_FY22[[#This Row],[75th]]-AAMC_Raw_Data_for_FY22[[#This Row],[Median]])/25)*15) + AAMC_Raw_Data_for_FY22[[#This Row],[Median]]","v":133945.20000000001},{"$f":"(((AAMC_Raw_Data_for_FY22[[#This Row],[75th]]-AAMC_Raw_Data_for_FY22[[#This Row],[Median]])/25)*20) + AAMC_Raw_Data_for_FY22[[#This Row],[Median]]","v":140879.6},147814,{"$f":"(((AAMC_Raw_Data_for_FY22[[#This Row],[75th]]-AAMC_Raw_Data_for_FY22[[#This Row],[Median]])/25)*30) + AAMC_Raw_Data_for_FY22[[#This Row],[Median]]","v":154748.4},{"$f":"(((AAMC_Raw_Data_for_FY22[[#This Row],[75th]]-AAMC_Raw_Data_for_FY22[[#This Row],[Median]])/25)*35) + AAMC_Raw_Data_for_FY22[[#This Row],[Median]]","v":161682.79999999999},{"$f":"(((AAMC_Raw_Data_for_FY22[[#This Row],[75th]]-AAMC_Raw_Data_for_FY22[[#This Row],[Median]])/25)*40) + AAMC_Raw_Data_for_FY22[[#This Row],[Median]]","v":168617.2}]
[{"$f":"AAMC_Raw_Data_for_FY22[[#This Row],[Source]]&AAMC_Raw_Data_for_FY22[[#This Row],[Type]]&AAMC_Raw_Data_for_FY22[[#This Row],[School Subset]]&AAMC_Raw_Data_for_FY22[[#This Row],[Rank]]&AAMC_Raw_Data_for_FY22[[#This Row],[Degree]]&AAMC_Raw_Data_for_FY22[[#This Row],[Department / Specialty]]&\"L\"","v":"AAMCAcademicAllAssociateMDMolecular & Cellular BiologyL"},"Molecular & Cellular Biology",3,"AAMC","Academic","All","Associate","MD","2021-2022",114810,{"$f":"(((AAMC_Raw_Data_for_FY22[[#This Row],[Median]]-AAMC_Raw_Data_for_FY22[[#This Row],[25th]])/25)*5) + AAMC_Raw_Data_for_FY22[[#This Row],[25th]]","v":118806.2},{"$f":"(((AAMC_Raw_Data_for_FY22[[#This Row],[Median]]-AAMC_Raw_Data_for_FY22[[#This Row],[25th]])/25)*10) + AAMC_Raw_Data_for_FY22[[#This Row],[25th]]","v":122802.4},{"$f":"(((AAMC_Raw_Data_for_FY22[[#This Row],[Median]]-AAMC_Raw_Data_for_FY22[[#This Row],[25th]])/25)*15) + AAMC_Raw_Data_for_FY22[[#This Row],[25th]]","v":126798.6},{"$f":"(((AAMC_Raw_Data_for_FY22[[#This Row],[Median]]-AAMC_Raw_Data_for_FY22[[#This Row],[25th]])/25)*20) + AAMC_Raw_Data_for_FY22[[#This Row],[25th]]","v":130794.8},134791,{"$f":"(((AAMC_Raw_Data_for_FY22[[#This Row],[75th]]-AAMC_Raw_Data_for_FY22[[#This Row],[Median]])/25)*5) + AAMC_Raw_Data_for_FY22[[#This Row],[Median]]","v":138186},{"$f":"(((AAMC_Raw_Data_for_FY22[[#This Row],[75th]]-AAMC_Raw_Data_for_FY22[[#This Row],[Median]])/25)*10) + AAMC_Raw_Data_for_FY22[[#This Row],[Median]]","v":141581},{"$f":"(((AAMC_Raw_Data_for_FY22[[#This Row],[75th]]-AAMC_Raw_Data_for_FY22[[#This Row],[Median]])/25)*15) + AAMC_Raw_Data_for_FY22[[#This Row],[Median]]","v":144976},{"$f":"(((AAMC_Raw_Data_for_FY22[[#This Row],[75th]]-AAMC_Raw_Data_for_FY22[[#This Row],[Median]])/25)*20) + AAMC_Raw_Data_for_FY22[[#This Row],[Median]]","v":148371},151766,{"$f":"(((AAMC_Raw_Data_for_FY22[[#This Row],[75th]]-AAMC_Raw_Data_for_FY22[[#This Row],[Median]])/25)*30) + AAMC_Raw_Data_for_FY22[[#This Row],[Median]]","v":155161},{"$f":"(((AAMC_Raw_Data_for_FY22[[#This Row],[75th]]-AAMC_Raw_Data_for_FY22[[#This Row],[Median]])/25)*35) + AAMC_Raw_Data_for_FY22[[#This Row],[Median]]","v":158556},{"$f":"(((AAMC_Raw_Data_for_FY22[[#This Row],[75th]]-AAMC_Raw_Data_for_FY22[[#This Row],[Median]])/25)*40) + AAMC_Raw_Data_for_FY22[[#This Row],[Median]]","v":161951}]
[{"$f":"AAMC_Raw_Data_for_FY22[[#This Row],[Source]]&AAMC_Raw_Data_for_FY22[[#This Row],[Type]]&AAMC_Raw_Data_for_FY22[[#This Row],[School Subset]]&AAMC_Raw_Data_for_FY22[[#This Row],[Rank]]&AAMC_Raw_Data_for_FY22[[#This Row],[Degree]]&AAMC_Raw_Data_for_FY22[[#This Row],[Department / Specialty]]&\"L\"","v":"AAMCAcademicAllProfessorMDMolecular & Cellular BiologyL"},"Molecular & Cellular Biology",2,"AAMC","Academic","All","Professor","MD","2021-2022",190784,{"$f":"(((AAMC_Raw_Data_for_FY22[[#This Row],[Median]]-AAMC_Raw_Data_for_FY22[[#This Row],[25th]])/25)*5) + AAMC_Raw_Data_for_FY22[[#This Row],[25th]]","v":199842.2},{"$f":"(((AAMC_Raw_Data_for_FY22[[#This Row],[Median]]-AAMC_Raw_Data_for_FY22[[#This Row],[25th]])/25)*10) + AAMC_Raw_Data_for_FY22[[#This Row],[25th]]","v":208900.4},{"$f":"(((AAMC_Raw_Data_for_FY22[[#This Row],[Median]]-AAMC_Raw_Data_for_FY22[[#This Row],[25th]])/25)*15) + AAMC_Raw_Data_for_FY22[[#This Row],[25th]]","v":217958.6},{"$f":"(((AAMC_Raw_Data_for_FY22[[#This Row],[Median]]-AAMC_Raw_Data_for_FY22[[#This Row],[25th]])/25)*20) + AAMC_Raw_Data_for_FY22[[#This Row],[25th]]","v":227016.8},236075,{"$f":"(((AAMC_Raw_Data_for_FY22[[#This Row],[75th]]-AAMC_Raw_Data_for_FY22[[#This Row],[Median]])/25)*5) + AAMC_Raw_Data_for_FY22[[#This Row],[Median]]","v":247691},{"$f":"(((AAMC_Raw_Data_for_FY22[[#This Row],[75th]]-AAMC_Raw_Data_for_FY22[[#This Row],[Median]])/25)*10) + AAMC_Raw_Data_for_FY22[[#This Row],[Median]]","v":259307},{"$f":"(((AAMC_Raw_Data_for_FY22[[#This Row],[75th]]-AAMC_Raw_Data_for_FY22[[#This Row],[Median]])/25)*15) + AAMC_Raw_Data_for_FY22[[#This Row],[Median]]","v":270923},{"$f":"(((AAMC_Raw_Data_for_FY22[[#This Row],[75th]]-AAMC_Raw_Data_for_FY22[[#This Row],[Median]])/25)*20) + AAMC_Raw_Data_for_FY22[[#This Row],[Median]]","v":282539},294155,{"$f":"(((AAMC_Raw_Data_for_FY22[[#This Row],[75th]]-AAMC_Raw_Data_for_FY22[[#This Row],[Median]])/25)*30) + AAMC_Raw_Data_for_FY22[[#This Row],[Median]]","v":305771},{"$f":"(((AAMC_Raw_Data_for_FY22[[#This Row],[75th]]-AAMC_Raw_Data_for_FY22[[#This Row],[Median]])/25)*35) + AAMC_Raw_Data_for_FY22[[#This Row],[Median]]","v":317387},{"$f":"(((AAMC_Raw_Data_for_FY22[[#This Row],[75th]]-AAMC_Raw_Data_for_FY22[[#This Row],[Median]])/25)*40) + AAMC_Raw_Data_for_FY22[[#This Row],[Median]]","v":329003}]
[{"$f":"AAMC_Raw_Data_for_FY22[[#This Row],[Source]]&AAMC_Raw_Data_for_FY22[[#This Row],[Type]]&AAMC_Raw_Data_for_FY22[[#This Row],[School Subset]]&AAMC_Raw_Data_for_FY22[[#This Row],[Rank]]&AAMC_Raw_Data_for_FY22[[#This Row],[Degree]]&AAMC_Raw_Data_for_FY22[[#This Row],[Department / Specialty]]&\"L\"","v":"AAMCAcademicAllChairMDMolecular & Cellular BiologyL"},"Molecular & Cellular Biology",1,"AAMC","Academic","All","Chair","MD","2021-2022",null,{"$f":"(((AAMC_Raw_Data_for_FY22[[#This Row],[Median]]-AAMC_Raw_Data_for_FY22[[#This Row],[25th]])/25)*5) + AAMC_Raw_Data_for_FY22[[#This Row],[25th]]","v":0},{"$f":"(((AAMC_Raw_Data_for_FY22[[#This Row],[Median]]-AAMC_Raw_Data_for_FY22[[#This Row],[25th]])/25)*10) + AAMC_Raw_Data_for_FY22[[#This Row],[25th]]","v":0},{"$f":"(((AAMC_Raw_Data_for_FY22[[#This Row],[Median]]-AAMC_Raw_Data_for_FY22[[#This Row],[25th]])/25)*15) + AAMC_Raw_Data_for_FY22[[#This Row],[25th]]","v":0},{"$f":"(((AAMC_Raw_Data_for_FY22[[#This Row],[Median]]-AAMC_Raw_Data_for_FY22[[#This Row],[25th]])/25)*20) + AAMC_Raw_Data_for_FY22[[#This Row],[25th]]","v":0},null,{"$f":"(((AAMC_Raw_Data_for_FY22[[#This Row],[75th]]-AAMC_Raw_Data_for_FY22[[#This Row],[Median]])/25)*5) + AAMC_Raw_Data_for_FY22[[#This Row],[Median]]","v":0},{"$f":"(((AAMC_Raw_Data_for_FY22[[#This Row],[75th]]-AAMC_Raw_Data_for_FY22[[#This Row],[Median]])/25)*10) + AAMC_Raw_Data_for_FY22[[#This Row],[Median]]","v":0},{"$f":"(((AAMC_Raw_Data_for_FY22[[#This Row],[75th]]-AAMC_Raw_Data_for_FY22[[#This Row],[Median]])/25)*15) + AAMC_Raw_Data_for_FY22[[#This Row],[Median]]","v":0},{"$f":"(((AAMC_Raw_Data_for_FY22[[#This Row],[75th]]-AAMC_Raw_Data_for_FY22[[#This Row],[Median]])/25)*20) + AAMC_Raw_Data_for_FY22[[#This Row],[Median]]","v":0},null,{"$f":"(((AAMC_Raw_Data_for_FY22[[#This Row],[75th]]-AAMC_Raw_Data_for_FY22[[#This Row],[Median]])/25)*30) + AAMC_Raw_Data_for_FY22[[#This Row],[Median]]","v":0},{"$f":"(((AAMC_Raw_Data_for_FY22[[#This Row],[75th]]-AAMC_Raw_Data_for_FY22[[#This Row],[Median]])/25)*35) + AAMC_Raw_Data_for_FY22[[#This Row],[Median]]","v":0},{"$f":"(((AAMC_Raw_Data_for_FY22[[#This Row],[75th]]-AAMC_Raw_Data_for_FY22[[#This Row],[Median]])/25)*40) + AAMC_Raw_Data_for_FY22[[#This Row],[Median]]","v":0}]
[{"$f":"AAMC_Raw_Data_for_FY22[[#This Row],[Source]]&AAMC_Raw_Data_for_FY22[[#This Row],[Type]]&AAMC_Raw_Data_for_FY22[[#This Row],[School Subset]]&AAMC_Raw_Data_for_FY22[[#This Row],[Rank]]&AAMC_Raw_Data_for_FY22[[#This Row],[Degree]]&AAMC_Raw_Data_for_FY22[[#This Row],[Department / Specialty]]&\"L\"","v":"AAMCAcademicAllInstructorMDNeurosciencesL"},"Neurosciences",5,"AAMC","Academic","All","Instructor","MD","2021-2022",null,{"$f":"(((AAMC_Raw_Data_for_FY22[[#This Row],[Median]]-AAMC_Raw_Data_for_FY22[[#This Row],[25th]])/25)*5) + AAMC_Raw_Data_for_FY22[[#This Row],[25th]]","v":0},{"$f":"(((AAMC_Raw_Data_for_FY22[[#This Row],[Median]]-AAMC_Raw_Data_for_FY22[[#This Row],[25th]])/25)*10) + AAMC_Raw_Data_for_FY22[[#This Row],[25th]]","v":0},{"$f":"(((AAMC_Raw_Data_for_FY22[[#This Row],[Median]]-AAMC_Raw_Data_for_FY22[[#This Row],[25th]])/25)*15) + AAMC_Raw_Data_for_FY22[[#This Row],[25th]]","v":0},{"$f":"(((AAMC_Raw_Data_for_FY22[[#This Row],[Median]]-AAMC_Raw_Data_for_FY22[[#This Row],[25th]])/25)*20) + AAMC_Raw_Data_for_FY22[[#This Row],[25th]]","v":0},null,{"$f":"(((AAMC_Raw_Data_for_FY22[[#This Row],[75th]]-AAMC_Raw_Data_for_FY22[[#This Row],[Median]])/25)*5) + AAMC_Raw_Data_for_FY22[[#This Row],[Median]]","v":0},{"$f":"(((AAMC_Raw_Data_for_FY22[[#This Row],[75th]]-AAMC_Raw_Data_for_FY22[[#This Row],[Median]])/25)*10) + AAMC_Raw_Data_for_FY22[[#This Row],[Median]]","v":0},{"$f":"(((AAMC_Raw_Data_for_FY22[[#This Row],[75th]]-AAMC_Raw_Data_for_FY22[[#This Row],[Median]])/25)*15) + AAMC_Raw_Data_for_FY22[[#This Row],[Median]]","v":0},{"$f":"(((AAMC_Raw_Data_for_FY22[[#This Row],[75th]]-AAMC_Raw_Data_for_FY22[[#This Row],[Median]])/25)*20) + AAMC_Raw_Data_for_FY22[[#This Row],[Median]]","v":0},null,{"$f":"(((AAMC_Raw_Data_for_FY22[[#This Row],[75th]]-AAMC_Raw_Data_for_FY22[[#This Row],[Median]])/25)*30) + AAMC_Raw_Data_for_FY22[[#This Row],[Median]]","v":0},{"$f":"(((AAMC_Raw_Data_for_FY22[[#This Row],[75th]]-AAMC_Raw_Data_for_FY22[[#This Row],[Median]])/25)*35) + AAMC_Raw_Data_for_FY22[[#This Row],[Median]]","v":0},{"$f":"(((AAMC_Raw_Data_for_FY22[[#This Row],[75th]]-AAMC_Raw_Data_for_FY22[[#This Row],[Median]])/25)*40) + AAMC_Raw_Data_for_FY22[[#This Row],[Median]]","v":0}]
[{"$f":"AAMC_Raw_Data_for_FY22[[#This Row],[Source]]&AAMC_Raw_Data_for_FY22[[#This Row],[Type]]&AAMC_Raw_Data_for_FY22[[#This Row],[School Subset]]&AAMC_Raw_Data_for_FY22[[#This Row],[Rank]]&AAMC_Raw_Data_for_FY22[[#This Row],[Degree]]&AAMC_Raw_Data_for_FY22[[#This Row],[Department / Specialty]]&\"L\"","v":"AAMCAcademicAllAssistantMDNeurosciencesL"},"Neurosciences",4,"AAMC","Academic","All","Assistant","MD","2021-2022",103171,{"$f":"(((AAMC_Raw_Data_for_FY22[[#This Row],[Median]]-AAMC_Raw_Data_for_FY22[[#This Row],[25th]])/25)*5) + AAMC_Raw_Data_for_FY22[[#This Row],[25th]]","v":107610.8},{"$f":"(((AAMC_Raw_Data_for_FY22[[#This Row],[Median]]-AAMC_Raw_Data_for_FY22[[#This Row],[25th]])/25)*10) + AAMC_Raw_Data_for_FY22[[#This Row],[25th]]","v":112050.6},{"$f":"(((AAMC_Raw_Data_for_FY22[[#This Row],[Median]]-AAMC_Raw_Data_for_FY22[[#This Row],[25th]])/25)*15) + AAMC_Raw_Data_for_FY22[[#This Row],[25th]]","v":116490.4},{"$f":"(((AAMC_Raw_Data_for_FY22[[#This Row],[Median]]-AAMC_Raw_Data_for_FY22[[#This Row],[25th]])/25)*20) + AAMC_Raw_Data_for_FY22[[#This Row],[25th]]","v":120930.2},125370,{"$f":"(((AAMC_Raw_Data_for_FY22[[#This Row],[75th]]-AAMC_Raw_Data_for_FY22[[#This Row],[Median]])/25)*5) + AAMC_Raw_Data_for_FY22[[#This Row],[Median]]","v":131296.6},{"$f":"(((AAMC_Raw_Data_for_FY22[[#This Row],[75th]]-AAMC_Raw_Data_for_FY22[[#This Row],[Median]])/25)*10) + AAMC_Raw_Data_for_FY22[[#This Row],[Median]]","v":137223.20000000001},{"$f":"(((AAMC_Raw_Data_for_FY22[[#This Row],[75th]]-AAMC_Raw_Data_for_FY22[[#This Row],[Median]])/25)*15) + AAMC_Raw_Data_for_FY22[[#This Row],[Median]]","v":143149.79999999999},{"$f":"(((AAMC_Raw_Data_for_FY22[[#This Row],[75th]]-AAMC_Raw_Data_for_FY22[[#This Row],[Median]])/25)*20) + AAMC_Raw_Data_for_FY22[[#This Row],[Median]]","v":149076.4},155003,{"$f":"(((AAMC_Raw_Data_for_FY22[[#This Row],[75th]]-AAMC_Raw_Data_for_FY22[[#This Row],[Median]])/25)*30) + AAMC_Raw_Data_for_FY22[[#This Row],[Median]]","v":160929.60000000001},{"$f":"(((AAMC_Raw_Data_for_FY22[[#This Row],[75th]]-AAMC_Raw_Data_for_FY22[[#This Row],[Median]])/25)*35) + AAMC_Raw_Data_for_FY22[[#This Row],[Median]]","v":166856.20000000001},{"$f":"(((AAMC_Raw_Data_for_FY22[[#This Row],[75th]]-AAMC_Raw_Data_for_FY22[[#This Row],[Median]])/25)*40) + AAMC_Raw_Data_for_FY22[[#This Row],[Median]]","v":172782.8}]
[{"$f":"AAMC_Raw_Data_for_FY22[[#This Row],[Source]]&AAMC_Raw_Data_for_FY22[[#This Row],[Type]]&AAMC_Raw_Data_for_FY22[[#This Row],[School Subset]]&AAMC_Raw_Data_for_FY22[[#This Row],[Rank]]&AAMC_Raw_Data_for_FY22[[#This Row],[Degree]]&AAMC_Raw_Data_for_FY22[[#This Row],[Department / Specialty]]&\"L\"","v":"AAMCAcademicAllAssociateMDNeurosciencesL"},"Neurosciences",3,"AAMC","Academic","All","Associate","MD","2021-2022",126519,{"$f":"(((AAMC_Raw_Data_for_FY22[[#This Row],[Median]]-AAMC_Raw_Data_for_FY22[[#This Row],[25th]])/25)*5) + AAMC_Raw_Data_for_FY22[[#This Row],[25th]]","v":128534},{"$f":"(((AAMC_Raw_Data_for_FY22[[#This Row],[Median]]-AAMC_Raw_Data_for_FY22[[#This Row],[25th]])/25)*10) + AAMC_Raw_Data_for_FY22[[#This Row],[25th]]","v":130549},{"$f":"(((AAMC_Raw_Data_for_FY22[[#This Row],[Median]]-AAMC_Raw_Data_for_FY22[[#This Row],[25th]])/25)*15) + AAMC_Raw_Data_for_FY22[[#This Row],[25th]]","v":132564},{"$f":"(((AAMC_Raw_Data_for_FY22[[#This Row],[Median]]-AAMC_Raw_Data_for_FY22[[#This Row],[25th]])/25)*20) + AAMC_Raw_Data_for_FY22[[#This Row],[25th]]","v":134579},136594,{"$f":"(((AAMC_Raw_Data_for_FY22[[#This Row],[75th]]-AAMC_Raw_Data_for_FY22[[#This Row],[Median]])/25)*5) + AAMC_Raw_Data_for_FY22[[#This Row],[Median]]","v":141216},{"$f":"(((AAMC_Raw_Data_for_FY22[[#This Row],[75th]]-AAMC_Raw_Data_for_FY22[[#This Row],[Median]])/25)*10) + AAMC_Raw_Data_for_FY22[[#This Row],[Median]]","v":145838},{"$f":"(((AAMC_Raw_Data_for_FY22[[#This Row],[75th]]-AAMC_Raw_Data_for_FY22[[#This Row],[Median]])/25)*15) + AAMC_Raw_Data_for_FY22[[#This Row],[Median]]","v":150460},{"$f":"(((AAMC_Raw_Data_for_FY22[[#This Row],[75th]]-AAMC_Raw_Data_for_FY22[[#This Row],[Median]])/25)*20) + AAMC_Raw_Data_for_FY22[[#This Row],[Median]]","v":155082},159704,{"$f":"(((AAMC_Raw_Data_for_FY22[[#This Row],[75th]]-AAMC_Raw_Data_for_FY22[[#This Row],[Median]])/25)*30) + AAMC_Raw_Data_for_FY22[[#This Row],[Median]]","v":164326},{"$f":"(((AAMC_Raw_Data_for_FY22[[#This Row],[75th]]-AAMC_Raw_Data_for_FY22[[#This Row],[Median]])/25)*35) + AAMC_Raw_Data_for_FY22[[#This Row],[Median]]","v":168948},{"$f":"(((AAMC_Raw_Data_for_FY22[[#This Row],[75th]]-AAMC_Raw_Data_for_FY22[[#This Row],[Median]])/25)*40) + AAMC_Raw_Data_for_FY22[[#This Row],[Median]]","v":173570}]
[{"$f":"AAMC_Raw_Data_for_FY22[[#This Row],[Source]]&AAMC_Raw_Data_for_FY22[[#This Row],[Type]]&AAMC_Raw_Data_for_FY22[[#This Row],[School Subset]]&AAMC_Raw_Data_for_FY22[[#This Row],[Rank]]&AAMC_Raw_Data_for_FY22[[#This Row],[Degree]]&AAMC_Raw_Data_for_FY22[[#This Row],[Department / Specialty]]&\"L\"","v":"AAMCAcademicAllProfessorMDNeurosciencesL"},"Neurosciences",2,"AAMC","Academic","All","Professor","MD","2021-2022",188026,{"$f":"(((AAMC_Raw_Data_for_FY22[[#This Row],[Median]]-AAMC_Raw_Data_for_FY22[[#This Row],[25th]])/25)*5) + AAMC_Raw_Data_for_FY22[[#This Row],[25th]]","v":196238.8},{"$f":"(((AAMC_Raw_Data_for_FY22[[#This Row],[Median]]-AAMC_Raw_Data_for_FY22[[#This Row],[25th]])/25)*10) + AAMC_Raw_Data_for_FY22[[#This Row],[25th]]","v":204451.6},{"$f":"(((AAMC_Raw_Data_for_FY22[[#This Row],[Median]]-AAMC_Raw_Data_for_FY22[[#This Row],[25th]])/25)*15) + AAMC_Raw_Data_for_FY22[[#This Row],[25th]]","v":212664.4},{"$f":"(((AAMC_Raw_Data_for_FY22[[#This Row],[Median]]-AAMC_Raw_Data_for_FY22[[#This Row],[25th]])/25)*20) + AAMC_Raw_Data_for_FY22[[#This Row],[25th]]","v":220877.2},229090,{"$f":"(((AAMC_Raw_Data_for_FY22[[#This Row],[75th]]-AAMC_Raw_Data_for_FY22[[#This Row],[Median]])/25)*5) + AAMC_Raw_Data_for_FY22[[#This Row],[Median]]","v":247571.8},{"$f":"(((AAMC_Raw_Data_for_FY22[[#This Row],[75th]]-AAMC_Raw_Data_for_FY22[[#This Row],[Median]])/25)*10) + AAMC_Raw_Data_for_FY22[[#This Row],[Median]]","v":266053.59999999998},{"$f":"(((AAMC_Raw_Data_for_FY22[[#This Row],[75th]]-AAMC_Raw_Data_for_FY22[[#This Row],[Median]])/25)*15) + AAMC_Raw_Data_for_FY22[[#This Row],[Median]]","v":284535.40000000002},{"$f":"(((AAMC_Raw_Data_for_FY22[[#This Row],[75th]]-AAMC_Raw_Data_for_FY22[[#This Row],[Median]])/25)*20) + AAMC_Raw_Data_for_FY22[[#This Row],[Median]]","v":303017.2},321499,{"$f":"(((AAMC_Raw_Data_for_FY22[[#This Row],[75th]]-AAMC_Raw_Data_for_FY22[[#This Row],[Median]])/25)*30) + AAMC_Raw_Data_for_FY22[[#This Row],[Median]]","v":339980.79999999999},{"$f":"(((AAMC_Raw_Data_for_FY22[[#This Row],[75th]]-AAMC_Raw_Data_for_FY22[[#This Row],[Median]])/25)*35) + AAMC_Raw_Data_for_FY22[[#This Row],[Median]]","v":358462.6},{"$f":"(((AAMC_Raw_Data_for_FY22[[#This Row],[75th]]-AAMC_Raw_Data_for_FY22[[#This Row],[Median]])/25)*40) + AAMC_Raw_Data_for_FY22[[#This Row],[Median]]","v":376944.4}]
[{"$f":"AAMC_Raw_Data_for_FY22[[#This Row],[Source]]&AAMC_Raw_Data_for_FY22[[#This Row],[Type]]&AAMC_Raw_Data_for_FY22[[#This Row],[School Subset]]&AAMC_Raw_Data_for_FY22[[#This Row],[Rank]]&AAMC_Raw_Data_for_FY22[[#This Row],[Degree]]&AAMC_Raw_Data_for_FY22[[#This Row],[Department / Specialty]]&\"L\"","v":"AAMCAcademicAllChiefMDNeurosciencesL"},"Neurosciences",6,"AAMC","Academic","All","Chief","MD","2021-2022",null,{"$f":"(((AAMC_Raw_Data_for_FY22[[#This Row],[Median]]-AAMC_Raw_Data_for_FY22[[#This Row],[25th]])/25)*5) + AAMC_Raw_Data_for_FY22[[#This Row],[25th]]","v":0},{"$f":"(((AAMC_Raw_Data_for_FY22[[#This Row],[Median]]-AAMC_Raw_Data_for_FY22[[#This Row],[25th]])/25)*10) + AAMC_Raw_Data_for_FY22[[#This Row],[25th]]","v":0},{"$f":"(((AAMC_Raw_Data_for_FY22[[#This Row],[Median]]-AAMC_Raw_Data_for_FY22[[#This Row],[25th]])/25)*15) + AAMC_Raw_Data_for_FY22[[#This Row],[25th]]","v":0},{"$f":"(((AAMC_Raw_Data_for_FY22[[#This Row],[Median]]-AAMC_Raw_Data_for_FY22[[#This Row],[25th]])/25)*20) + AAMC_Raw_Data_for_FY22[[#This Row],[25th]]","v":0},null,{"$f":"(((AAMC_Raw_Data_for_FY22[[#This Row],[75th]]-AAMC_Raw_Data_for_FY22[[#This Row],[Median]])/25)*5) + AAMC_Raw_Data_for_FY22[[#This Row],[Median]]","v":0},{"$f":"(((AAMC_Raw_Data_for_FY22[[#This Row],[75th]]-AAMC_Raw_Data_for_FY22[[#This Row],[Median]])/25)*10) + AAMC_Raw_Data_for_FY22[[#This Row],[Median]]","v":0},{"$f":"(((AAMC_Raw_Data_for_FY22[[#This Row],[75th]]-AAMC_Raw_Data_for_FY22[[#This Row],[Median]])/25)*15) + AAMC_Raw_Data_for_FY22[[#This Row],[Median]]","v":0},{"$f":"(((AAMC_Raw_Data_for_FY22[[#This Row],[75th]]-AAMC_Raw_Data_for_FY22[[#This Row],[Median]])/25)*20) + AAMC_Raw_Data_for_FY22[[#This Row],[Median]]","v":0},null,{"$f":"(((AAMC_Raw_Data_for_FY22[[#This Row],[75th]]-AAMC_Raw_Data_for_FY22[[#This Row],[Median]])/25)*30) + AAMC_Raw_Data_for_FY22[[#This Row],[Median]]","v":0},{"$f":"(((AAMC_Raw_Data_for_FY22[[#This Row],[75th]]-AAMC_Raw_Data_for_FY22[[#This Row],[Median]])/25)*35) + AAMC_Raw_Data_for_FY22[[#This Row],[Median]]","v":0},{"$f":"(((AAMC_Raw_Data_for_FY22[[#This Row],[75th]]-AAMC_Raw_Data_for_FY22[[#This Row],[Median]])/25)*40) + AAMC_Raw_Data_for_FY22[[#This Row],[Median]]","v":0}]
[{"$f":"AAMC_Raw_Data_for_FY22[[#This Row],[Source]]&AAMC_Raw_Data_for_FY22[[#This Row],[Type]]&AAMC_Raw_Data_for_FY22[[#This Row],[School Subset]]&AAMC_Raw_Data_for_FY22[[#This Row],[Rank]]&AAMC_Raw_Data_for_FY22[[#This Row],[Degree]]&AAMC_Raw_Data_for_FY22[[#This Row],[Department / Specialty]]&\"L\"","v":"AAMCAcademicAllChairMDNeurosciencesL"},"Neurosciences",1,"AAMC","Academic","All","Chair","MD","2021-2022",354800,{"$f":"(((AAMC_Raw_Data_for_FY22[[#This Row],[Median]]-AAMC_Raw_Data_for_FY22[[#This Row],[25th]])/25)*5) + AAMC_Raw_Data_for_FY22[[#This Row],[25th]]","v":372935.6},{"$f":"(((AAMC_Raw_Data_for_FY22[[#This Row],[Median]]-AAMC_Raw_Data_for_FY22[[#This Row],[25th]])/25)*10) + AAMC_Raw_Data_for_FY22[[#This Row],[25th]]","v":391071.2},{"$f":"(((AAMC_Raw_Data_for_FY22[[#This Row],[Median]]-AAMC_Raw_Data_for_FY22[[#This Row],[25th]])/25)*15) + AAMC_Raw_Data_for_FY22[[#This Row],[25th]]","v":409206.8},{"$f":"(((AAMC_Raw_Data_for_FY22[[#This Row],[Median]]-AAMC_Raw_Data_for_FY22[[#This Row],[25th]])/25)*20) + AAMC_Raw_Data_for_FY22[[#This Row],[25th]]","v":427342.4},445478,{"$f":"(((AAMC_Raw_Data_for_FY22[[#This Row],[75th]]-AAMC_Raw_Data_for_FY22[[#This Row],[Median]])/25)*5) + AAMC_Raw_Data_for_FY22[[#This Row],[Median]]","v":464406.6},{"$f":"(((AAMC_Raw_Data_for_FY22[[#This Row],[75th]]-AAMC_Raw_Data_for_FY22[[#This Row],[Median]])/25)*10) + AAMC_Raw_Data_for_FY22[[#This Row],[Median]]","v":483335.2},{"$f":"(((AAMC_Raw_Data_for_FY22[[#This Row],[75th]]-AAMC_Raw_Data_for_FY22[[#This Row],[Median]])/25)*15) + AAMC_Raw_Data_for_FY22[[#This Row],[Median]]","v":502263.8},{"$f":"(((AAMC_Raw_Data_for_FY22[[#This Row],[75th]]-AAMC_Raw_Data_for_FY22[[#This Row],[Median]])/25)*20) + AAMC_Raw_Data_for_FY22[[#This Row],[Median]]","v":521192.4},540121,{"$f":"(((AAMC_Raw_Data_for_FY22[[#This Row],[75th]]-AAMC_Raw_Data_for_FY22[[#This Row],[Median]])/25)*30) + AAMC_Raw_Data_for_FY22[[#This Row],[Median]]","v":559049.6},{"$f":"(((AAMC_Raw_Data_for_FY22[[#This Row],[75th]]-AAMC_Raw_Data_for_FY22[[#This Row],[Median]])/25)*35) + AAMC_Raw_Data_for_FY22[[#This Row],[Median]]","v":577978.19999999995},{"$f":"(((AAMC_Raw_Data_for_FY22[[#This Row],[75th]]-AAMC_Raw_Data_for_FY22[[#This Row],[Median]])/25)*40) + AAMC_Raw_Data_for_FY22[[#This Row],[Median]]","v":596906.80000000005}]
[{"$f":"AAMC_Raw_Data_for_FY22[[#This Row],[Source]]&AAMC_Raw_Data_for_FY22[[#This Row],[Type]]&AAMC_Raw_Data_for_FY22[[#This Row],[School Subset]]&AAMC_Raw_Data_for_FY22[[#This Row],[Rank]]&AAMC_Raw_Data_for_FY22[[#This Row],[Degree]]&AAMC_Raw_Data_for_FY22[[#This Row],[Department / Specialty]]&\"L\"","v":"AAMCAcademicAllInstructorMDPharmacologyL"},"Pharmacology",5,"AAMC","Academic","All","Instructor","MD","2021-2022",59396,{"$f":"(((AAMC_Raw_Data_for_FY22[[#This Row],[Median]]-AAMC_Raw_Data_for_FY22[[#This Row],[25th]])/25)*5) + AAMC_Raw_Data_for_FY22[[#This Row],[25th]]","v":60676.800000000003},{"$f":"(((AAMC_Raw_Data_for_FY22[[#This Row],[Median]]-AAMC_Raw_Data_for_FY22[[#This Row],[25th]])/25)*10) + AAMC_Raw_Data_for_FY22[[#This Row],[25th]]","v":61957.599999999999},{"$f":"(((AAMC_Raw_Data_for_FY22[[#This Row],[Median]]-AAMC_Raw_Data_for_FY22[[#This Row],[25th]])/25)*15) + AAMC_Raw_Data_for_FY22[[#This Row],[25th]]","v":63238.400000000001},{"$f":"(((AAMC_Raw_Data_for_FY22[[#This Row],[Median]]-AAMC_Raw_Data_for_FY22[[#This Row],[25th]])/25)*20) + AAMC_Raw_Data_for_FY22[[#This Row],[25th]]","v":64519.199999999997},65800,{"$f":"(((AAMC_Raw_Data_for_FY22[[#This Row],[75th]]-AAMC_Raw_Data_for_FY22[[#This Row],[Median]])/25)*5) + AAMC_Raw_Data_for_FY22[[#This Row],[Median]]","v":66810.399999999994},{"$f":"(((AAMC_Raw_Data_for_FY22[[#This Row],[75th]]-AAMC_Raw_Data_for_FY22[[#This Row],[Median]])/25)*10) + AAMC_Raw_Data_for_FY22[[#This Row],[Median]]","v":67820.800000000003},{"$f":"(((AAMC_Raw_Data_for_FY22[[#This Row],[75th]]-AAMC_Raw_Data_for_FY22[[#This Row],[Median]])/25)*15) + AAMC_Raw_Data_for_FY22[[#This Row],[Median]]","v":68831.199999999997},{"$f":"(((AAMC_Raw_Data_for_FY22[[#This Row],[75th]]-AAMC_Raw_Data_for_FY22[[#This Row],[Median]])/25)*20) + AAMC_Raw_Data_for_FY22[[#This Row],[Median]]","v":69841.600000000006},70852,{"$f":"(((AAMC_Raw_Data_for_FY22[[#This Row],[75th]]-AAMC_Raw_Data_for_FY22[[#This Row],[Median]])/25)*30) + AAMC_Raw_Data_for_FY22[[#This Row],[Median]]","v":71862.399999999994},{"$f":"(((AAMC_Raw_Data_for_FY22[[#This Row],[75th]]-AAMC_Raw_Data_for_FY22[[#This Row],[Median]])/25)*35) + AAMC_Raw_Data_for_FY22[[#This Row],[Median]]","v":72872.800000000003},{"$f":"(((AAMC_Raw_Data_for_FY22[[#This Row],[75th]]-AAMC_Raw_Data_for_FY22[[#This Row],[Median]])/25)*40) + AAMC_Raw_Data_for_FY22[[#This Row],[Median]]","v":73883.199999999997}]
[{"$f":"AAMC_Raw_Data_for_FY22[[#This Row],[Source]]&AAMC_Raw_Data_for_FY22[[#This Row],[Type]]&AAMC_Raw_Data_for_FY22[[#This Row],[School Subset]]&AAMC_Raw_Data_for_FY22[[#This Row],[Rank]]&AAMC_Raw_Data_for_FY22[[#This Row],[Degree]]&AAMC_Raw_Data_for_FY22[[#This Row],[Department / Specialty]]&\"L\"","v":"AAMCAcademicAllAssistantMDPharmacologyL"},"Pharmacology",4,"AAMC","Academic","All","Assistant","MD","2021-2022",83373,{"$f":"(((AAMC_Raw_Data_for_FY22[[#This Row],[Median]]-AAMC_Raw_Data_for_FY22[[#This Row],[25th]])/25)*5) + AAMC_Raw_Data_for_FY22[[#This Row],[25th]]","v":87506.4},{"$f":"(((AAMC_Raw_Data_for_FY22[[#This Row],[Median]]-AAMC_Raw_Data_for_FY22[[#This Row],[25th]])/25)*10) + AAMC_Raw_Data_for_FY22[[#This Row],[25th]]","v":91639.8},{"$f":"(((AAMC_Raw_Data_for_FY22[[#This Row],[Median]]-AAMC_Raw_Data_for_FY22[[#This Row],[25th]])/25)*15) + AAMC_Raw_Data_for_FY22[[#This Row],[25th]]","v":95773.2},{"$f":"(((AAMC_Raw_Data_for_FY22[[#This Row],[Median]]-AAMC_Raw_Data_for_FY22[[#This Row],[25th]])/25)*20) + AAMC_Raw_Data_for_FY22[[#This Row],[25th]]","v":99906.6},104040,{"$f":"(((AAMC_Raw_Data_for_FY22[[#This Row],[75th]]-AAMC_Raw_Data_for_FY22[[#This Row],[Median]])/25)*5) + AAMC_Raw_Data_for_FY22[[#This Row],[Median]]","v":109531},{"$f":"(((AAMC_Raw_Data_for_FY22[[#This Row],[75th]]-AAMC_Raw_Data_for_FY22[[#This Row],[Median]])/25)*10) + AAMC_Raw_Data_for_FY22[[#This Row],[Median]]","v":115022},{"$f":"(((AAMC_Raw_Data_for_FY22[[#This Row],[75th]]-AAMC_Raw_Data_for_FY22[[#This Row],[Median]])/25)*15) + AAMC_Raw_Data_for_FY22[[#This Row],[Median]]","v":120513},{"$f":"(((AAMC_Raw_Data_for_FY22[[#This Row],[75th]]-AAMC_Raw_Data_for_FY22[[#This Row],[Median]])/25)*20) + AAMC_Raw_Data_for_FY22[[#This Row],[Median]]","v":126004},131495,{"$f":"(((AAMC_Raw_Data_for_FY22[[#This Row],[75th]]-AAMC_Raw_Data_for_FY22[[#This Row],[Median]])/25)*30) + AAMC_Raw_Data_for_FY22[[#This Row],[Median]]","v":136986},{"$f":"(((AAMC_Raw_Data_for_FY22[[#This Row],[75th]]-AAMC_Raw_Data_for_FY22[[#This Row],[Median]])/25)*35) + AAMC_Raw_Data_for_FY22[[#This Row],[Median]]","v":142477},{"$f":"(((AAMC_Raw_Data_for_FY22[[#This Row],[75th]]-AAMC_Raw_Data_for_FY22[[#This Row],[Median]])/25)*40) + AAMC_Raw_Data_for_FY22[[#This Row],[Median]]","v":147968}]
[{"$f":"AAMC_Raw_Data_for_FY22[[#This Row],[Source]]&AAMC_Raw_Data_for_FY22[[#This Row],[Type]]&AAMC_Raw_Data_for_FY22[[#This Row],[School Subset]]&AAMC_Raw_Data_for_FY22[[#This Row],[Rank]]&AAMC_Raw_Data_for_FY22[[#This Row],[Degree]]&AAMC_Raw_Data_for_FY22[[#This Row],[Department / Specialty]]&\"L\"","v":"AAMCAcademicAllAssociateMDPharmacologyL"},"Pharmacology",3,"AAMC","Academic","All","Associate","MD","2021-2022",120000,{"$f":"(((AAMC_Raw_Data_for_FY22[[#This Row],[Median]]-AAMC_Raw_Data_for_FY22[[#This Row],[25th]])/25)*5) + AAMC_Raw_Data_for_FY22[[#This Row],[25th]]","v":123428},{"$f":"(((AAMC_Raw_Data_for_FY22[[#This Row],[Median]]-AAMC_Raw_Data_for_FY22[[#This Row],[25th]])/25)*10) + AAMC_Raw_Data_for_FY22[[#This Row],[25th]]","v":126856},{"$f":"(((AAMC_Raw_Data_for_FY22[[#This Row],[Median]]-AAMC_Raw_Data_for_FY22[[#This Row],[25th]])/25)*15) + AAMC_Raw_Data_for_FY22[[#This Row],[25th]]","v":130284},{"$f":"(((AAMC_Raw_Data_for_FY22[[#This Row],[Median]]-AAMC_Raw_Data_for_FY22[[#This Row],[25th]])/25)*20) + AAMC_Raw_Data_for_FY22[[#This Row],[25th]]","v":133712},137140,{"$f":"(((AAMC_Raw_Data_for_FY22[[#This Row],[75th]]-AAMC_Raw_Data_for_FY22[[#This Row],[Median]])/25)*5) + AAMC_Raw_Data_for_FY22[[#This Row],[Median]]","v":144816.6},{"$f":"(((AAMC_Raw_Data_for_FY22[[#This Row],[75th]]-AAMC_Raw_Data_for_FY22[[#This Row],[Median]])/25)*10) + AAMC_Raw_Data_for_FY22[[#This Row],[Median]]","v":152493.20000000001},{"$f":"(((AAMC_Raw_Data_for_FY22[[#This Row],[75th]]-AAMC_Raw_Data_for_FY22[[#This Row],[Median]])/25)*15) + AAMC_Raw_Data_for_FY22[[#This Row],[Median]]","v":160169.79999999999},{"$f":"(((AAMC_Raw_Data_for_FY22[[#This Row],[75th]]-AAMC_Raw_Data_for_FY22[[#This Row],[Median]])/25)*20) + AAMC_Raw_Data_for_FY22[[#This Row],[Median]]","v":167846.39999999999},175523,{"$f":"(((AAMC_Raw_Data_for_FY22[[#This Row],[75th]]-AAMC_Raw_Data_for_FY22[[#This Row],[Median]])/25)*30) + AAMC_Raw_Data_for_FY22[[#This Row],[Median]]","v":183199.6},{"$f":"(((AAMC_Raw_Data_for_FY22[[#This Row],[75th]]-AAMC_Raw_Data_for_FY22[[#This Row],[Median]])/25)*35) + AAMC_Raw_Data_for_FY22[[#This Row],[Median]]","v":190876.2},{"$f":"(((AAMC_Raw_Data_for_FY22[[#This Row],[75th]]-AAMC_Raw_Data_for_FY22[[#This Row],[Median]])/25)*40) + AAMC_Raw_Data_for_FY22[[#This Row],[Median]]","v":198552.8}]
[{"$f":"AAMC_Raw_Data_for_FY22[[#This Row],[Source]]&AAMC_Raw_Data_for_FY22[[#This Row],[Type]]&AAMC_Raw_Data_for_FY22[[#This Row],[School Subset]]&AAMC_Raw_Data_for_FY22[[#This Row],[Rank]]&AAMC_Raw_Data_for_FY22[[#This Row],[Degree]]&AAMC_Raw_Data_for_FY22[[#This Row],[Department / Specialty]]&\"L\"","v":"AAMCAcademicAllProfessorMDPharmacologyL"},"Pharmacology",2,"AAMC","Academic","All","Professor","MD","2021-2022",187119,{"$f":"(((AAMC_Raw_Data_for_FY22[[#This Row],[Median]]-AAMC_Raw_Data_for_FY22[[#This Row],[25th]])/25)*5) + AAMC_Raw_Data_for_FY22[[#This Row],[25th]]","v":194329.8},{"$f":"(((AAMC_Raw_Data_for_FY22[[#This Row],[Median]]-AAMC_Raw_Data_for_FY22[[#This Row],[25th]])/25)*10) + AAMC_Raw_Data_for_FY22[[#This Row],[25th]]","v":201540.6},{"$f":"(((AAMC_Raw_Data_for_FY22[[#This Row],[Median]]-AAMC_Raw_Data_for_FY22[[#This Row],[25th]])/25)*15) + AAMC_Raw_Data_for_FY22[[#This Row],[25th]]","v":208751.4},{"$f":"(((AAMC_Raw_Data_for_FY22[[#This Row],[Median]]-AAMC_Raw_Data_for_FY22[[#This Row],[25th]])/25)*20) + AAMC_Raw_Data_for_FY22[[#This Row],[25th]]","v":215962.2},223173,{"$f":"(((AAMC_Raw_Data_for_FY22[[#This Row],[75th]]-AAMC_Raw_Data_for_FY22[[#This Row],[Median]])/25)*5) + AAMC_Raw_Data_for_FY22[[#This Row],[Median]]","v":234124.79999999999},{"$f":"(((AAMC_Raw_Data_for_FY22[[#This Row],[75th]]-AAMC_Raw_Data_for_FY22[[#This Row],[Median]])/25)*10) + AAMC_Raw_Data_for_FY22[[#This Row],[Median]]","v":245076.6},{"$f":"(((AAMC_Raw_Data_for_FY22[[#This Row],[75th]]-AAMC_Raw_Data_for_FY22[[#This Row],[Median]])/25)*15) + AAMC_Raw_Data_for_FY22[[#This Row],[Median]]","v":256028.4},{"$f":"(((AAMC_Raw_Data_for_FY22[[#This Row],[75th]]-AAMC_Raw_Data_for_FY22[[#This Row],[Median]])/25)*20) + AAMC_Raw_Data_for_FY22[[#This Row],[Median]]","v":266980.2},277932,{"$f":"(((AAMC_Raw_Data_for_FY22[[#This Row],[75th]]-AAMC_Raw_Data_for_FY22[[#This Row],[Median]])/25)*30) + AAMC_Raw_Data_for_FY22[[#This Row],[Median]]","v":288883.8},{"$f":"(((AAMC_Raw_Data_for_FY22[[#This Row],[75th]]-AAMC_Raw_Data_for_FY22[[#This Row],[Median]])/25)*35) + AAMC_Raw_Data_for_FY22[[#This Row],[Median]]","v":299835.59999999998},{"$f":"(((AAMC_Raw_Data_for_FY22[[#This Row],[75th]]-AAMC_Raw_Data_for_FY22[[#This Row],[Median]])/25)*40) + AAMC_Raw_Data_for_FY22[[#This Row],[Median]]","v":310787.40000000002}]
[{"$f":"AAMC_Raw_Data_for_FY22[[#This Row],[Source]]&AAMC_Raw_Data_for_FY22[[#This Row],[Type]]&AAMC_Raw_Data_for_FY22[[#This Row],[School Subset]]&AAMC_Raw_Data_for_FY22[[#This Row],[Rank]]&AAMC_Raw_Data_for_FY22[[#This Row],[Degree]]&AAMC_Raw_Data_for_FY22[[#This Row],[Department / Specialty]]&\"L\"","v":"AAMCAcademicAllChiefMDPharmacologyL"},"Pharmacology",6,"AAMC","Academic","All","Chief","MD","2021-2022",null,{"$f":"(((AAMC_Raw_Data_for_FY22[[#This Row],[Median]]-AAMC_Raw_Data_for_FY22[[#This Row],[25th]])/25)*5) + AAMC_Raw_Data_for_FY22[[#This Row],[25th]]","v":0},{"$f":"(((AAMC_Raw_Data_for_FY22[[#This Row],[Median]]-AAMC_Raw_Data_for_FY22[[#This Row],[25th]])/25)*10) + AAMC_Raw_Data_for_FY22[[#This Row],[25th]]","v":0},{"$f":"(((AAMC_Raw_Data_for_FY22[[#This Row],[Median]]-AAMC_Raw_Data_for_FY22[[#This Row],[25th]])/25)*15) + AAMC_Raw_Data_for_FY22[[#This Row],[25th]]","v":0},{"$f":"(((AAMC_Raw_Data_for_FY22[[#This Row],[Median]]-AAMC_Raw_Data_for_FY22[[#This Row],[25th]])/25)*20) + AAMC_Raw_Data_for_FY22[[#This Row],[25th]]","v":0},null,{"$f":"(((AAMC_Raw_Data_for_FY22[[#This Row],[75th]]-AAMC_Raw_Data_for_FY22[[#This Row],[Median]])/25)*5) + AAMC_Raw_Data_for_FY22[[#This Row],[Median]]","v":0},{"$f":"(((AAMC_Raw_Data_for_FY22[[#This Row],[75th]]-AAMC_Raw_Data_for_FY22[[#This Row],[Median]])/25)*10) + AAMC_Raw_Data_for_FY22[[#This Row],[Median]]","v":0},{"$f":"(((AAMC_Raw_Data_for_FY22[[#This Row],[75th]]-AAMC_Raw_Data_for_FY22[[#This Row],[Median]])/25)*15) + AAMC_Raw_Data_for_FY22[[#This Row],[Median]]","v":0},{"$f":"(((AAMC_Raw_Data_for_FY22[[#This Row],[75th]]-AAMC_Raw_Data_for_FY22[[#This Row],[Median]])/25)*20) + AAMC_Raw_Data_for_FY22[[#This Row],[Median]]","v":0},null,{"$f":"(((AAMC_Raw_Data_for_FY22[[#This Row],[75th]]-AAMC_Raw_Data_for_FY22[[#This Row],[Median]])/25)*30) + AAMC_Raw_Data_for_FY22[[#This Row],[Median]]","v":0},{"$f":"(((AAMC_Raw_Data_for_FY22[[#This Row],[75th]]-AAMC_Raw_Data_for_FY22[[#This Row],[Median]])/25)*35) + AAMC_Raw_Data_for_FY22[[#This Row],[Median]]","v":0},{"$f":"(((AAMC_Raw_Data_for_FY22[[#This Row],[75th]]-AAMC_Raw_Data_for_FY22[[#This Row],[Median]])/25)*40) + AAMC_Raw_Data_for_FY22[[#This Row],[Median]]","v":0}]
[{"$f":"AAMC_Raw_Data_for_FY22[[#This Row],[Source]]&AAMC_Raw_Data_for_FY22[[#This Row],[Type]]&AAMC_Raw_Data_for_FY22[[#This Row],[School Subset]]&AAMC_Raw_Data_for_FY22[[#This Row],[Rank]]&AAMC_Raw_Data_for_FY22[[#This Row],[Degree]]&AAMC_Raw_Data_for_FY22[[#This Row],[Department / Specialty]]&\"L\"","v":"AAMCAcademicAllChairMDPharmacologyL"},"Pharmacology",1,"AAMC","Academic","All","Chair","MD","2021-2022",330421,{"$f":"(((AAMC_Raw_Data_for_FY22[[#This Row],[Median]]-AAMC_Raw_Data_for_FY22[[#This Row],[25th]])/25)*5) + AAMC_Raw_Data_for_FY22[[#This Row],[25th]]","v":332829.2},{"$f":"(((AAMC_Raw_Data_for_FY22[[#This Row],[Median]]-AAMC_Raw_Data_for_FY22[[#This Row],[25th]])/25)*10) + AAMC_Raw_Data_for_FY22[[#This Row],[25th]]","v":335237.40000000002},{"$f":"(((AAMC_Raw_Data_for_FY22[[#This Row],[Median]]-AAMC_Raw_Data_for_FY22[[#This Row],[25th]])/25)*15) + AAMC_Raw_Data_for_FY22[[#This Row],[25th]]","v":337645.6},{"$f":"(((AAMC_Raw_Data_for_FY22[[#This Row],[Median]]-AAMC_Raw_Data_for_FY22[[#This Row],[25th]])/25)*20) + AAMC_Raw_Data_for_FY22[[#This Row],[25th]]","v":340053.8},342462,{"$f":"(((AAMC_Raw_Data_for_FY22[[#This Row],[75th]]-AAMC_Raw_Data_for_FY22[[#This Row],[Median]])/25)*5) + AAMC_Raw_Data_for_FY22[[#This Row],[Median]]","v":361966.8},{"$f":"(((AAMC_Raw_Data_for_FY22[[#This Row],[75th]]-AAMC_Raw_Data_for_FY22[[#This Row],[Median]])/25)*10) + AAMC_Raw_Data_for_FY22[[#This Row],[Median]]","v":381471.6},{"$f":"(((AAMC_Raw_Data_for_FY22[[#This Row],[75th]]-AAMC_Raw_Data_for_FY22[[#This Row],[Median]])/25)*15) + AAMC_Raw_Data_for_FY22[[#This Row],[Median]]","v":400976.4},{"$f":"(((AAMC_Raw_Data_for_FY22[[#This Row],[75th]]-AAMC_Raw_Data_for_FY22[[#This Row],[Median]])/25)*20) + AAMC_Raw_Data_for_FY22[[#This Row],[Median]]","v":420481.2},439986,{"$f":"(((AAMC_Raw_Data_for_FY22[[#This Row],[75th]]-AAMC_Raw_Data_for_FY22[[#This Row],[Median]])/25)*30) + AAMC_Raw_Data_for_FY22[[#This Row],[Median]]","v":459490.8},{"$f":"(((AAMC_Raw_Data_for_FY22[[#This Row],[75th]]-AAMC_Raw_Data_for_FY22[[#This Row],[Median]])/25)*35) + AAMC_Raw_Data_for_FY22[[#This Row],[Median]]","v":478995.6},{"$f":"(((AAMC_Raw_Data_for_FY22[[#This Row],[75th]]-AAMC_Raw_Data_for_FY22[[#This Row],[Median]])/25)*40) + AAMC_Raw_Data_for_FY22[[#This Row],[Median]]","v":498500.4}]
[{"$f":"AAMC_Raw_Data_for_FY22[[#This Row],[Source]]&AAMC_Raw_Data_for_FY22[[#This Row],[Type]]&AAMC_Raw_Data_for_FY22[[#This Row],[School Subset]]&AAMC_Raw_Data_for_FY22[[#This Row],[Rank]]&AAMC_Raw_Data_for_FY22[[#This Row],[Degree]]&AAMC_Raw_Data_for_FY22[[#This Row],[Department / Specialty]]&\"L\"","v":"AAMCAcademicAllInstructorMDPhysiologyL"},"Physiology",5,"AAMC","Academic","All","Instructor","MD","2021-2022",62593,{"$f":"(((AAMC_Raw_Data_for_FY22[[#This Row],[Median]]-AAMC_Raw_Data_for_FY22[[#This Row],[25th]])/25)*5) + AAMC_Raw_Data_for_FY22[[#This Row],[25th]]","v":62743.4},{"$f":"(((AAMC_Raw_Data_for_FY22[[#This Row],[Median]]-AAMC_Raw_Data_for_FY22[[#This Row],[25th]])/25)*10) + AAMC_Raw_Data_for_FY22[[#This Row],[25th]]","v":62893.8},{"$f":"(((AAMC_Raw_Data_for_FY22[[#This Row],[Median]]-AAMC_Raw_Data_for_FY22[[#This Row],[25th]])/25)*15) + AAMC_Raw_Data_for_FY22[[#This Row],[25th]]","v":63044.2},{"$f":"(((AAMC_Raw_Data_for_FY22[[#This Row],[Median]]-AAMC_Raw_Data_for_FY22[[#This Row],[25th]])/25)*20) + AAMC_Raw_Data_for_FY22[[#This Row],[25th]]","v":63194.6},63345,{"$f":"(((AAMC_Raw_Data_for_FY22[[#This Row],[75th]]-AAMC_Raw_Data_for_FY22[[#This Row],[Median]])/25)*5) + AAMC_Raw_Data_for_FY22[[#This Row],[Median]]","v":64433.4},{"$f":"(((AAMC_Raw_Data_for_FY22[[#This Row],[75th]]-AAMC_Raw_Data_for_FY22[[#This Row],[Median]])/25)*10) + AAMC_Raw_Data_for_FY22[[#This Row],[Median]]","v":65521.8},{"$f":"(((AAMC_Raw_Data_for_FY22[[#This Row],[75th]]-AAMC_Raw_Data_for_FY22[[#This Row],[Median]])/25)*15) + AAMC_Raw_Data_for_FY22[[#This Row],[Median]]","v":66610.2},{"$f":"(((AAMC_Raw_Data_for_FY22[[#This Row],[75th]]-AAMC_Raw_Data_for_FY22[[#This Row],[Median]])/25)*20) + AAMC_Raw_Data_for_FY22[[#This Row],[Median]]","v":67698.600000000006},68787,{"$f":"(((AAMC_Raw_Data_for_FY22[[#This Row],[75th]]-AAMC_Raw_Data_for_FY22[[#This Row],[Median]])/25)*30) + AAMC_Raw_Data_for_FY22[[#This Row],[Median]]","v":69875.399999999994},{"$f":"(((AAMC_Raw_Data_for_FY22[[#This Row],[75th]]-AAMC_Raw_Data_for_FY22[[#This Row],[Median]])/25)*35) + AAMC_Raw_Data_for_FY22[[#This Row],[Median]]","v":70963.8},{"$f":"(((AAMC_Raw_Data_for_FY22[[#This Row],[75th]]-AAMC_Raw_Data_for_FY22[[#This Row],[Median]])/25)*40) + AAMC_Raw_Data_for_FY22[[#This Row],[Median]]","v":72052.2}]
[{"$f":"AAMC_Raw_Data_for_FY22[[#This Row],[Source]]&AAMC_Raw_Data_for_FY22[[#This Row],[Type]]&AAMC_Raw_Data_for_FY22[[#This Row],[School Subset]]&AAMC_Raw_Data_for_FY22[[#This Row],[Rank]]&AAMC_Raw_Data_for_FY22[[#This Row],[Degree]]&AAMC_Raw_Data_for_FY22[[#This Row],[Department / Specialty]]&\"L\"","v":"AAMCAcademicAllAssistantMDPhysiologyL"},"Physiology",4,"AAMC","Academic","All","Assistant","MD","2021-2022",76770,{"$f":"(((AAMC_Raw_Data_for_FY22[[#This Row],[Median]]-AAMC_Raw_Data_for_FY22[[#This Row],[25th]])/25)*5) + AAMC_Raw_Data_for_FY22[[#This Row],[25th]]","v":79206.399999999994},{"$f":"(((AAMC_Raw_Data_for_FY22[[#This Row],[Median]]-AAMC_Raw_Data_for_FY22[[#This Row],[25th]])/25)*10) + AAMC_Raw_Data_for_FY22[[#This Row],[25th]]","v":81642.8},{"$f":"(((AAMC_Raw_Data_for_FY22[[#This Row],[Median]]-AAMC_Raw_Data_for_FY22[[#This Row],[25th]])/25)*15) + AAMC_Raw_Data_for_FY22[[#This Row],[25th]]","v":84079.2},{"$f":"(((AAMC_Raw_Data_for_FY22[[#This Row],[Median]]-AAMC_Raw_Data_for_FY22[[#This Row],[25th]])/25)*20) + AAMC_Raw_Data_for_FY22[[#This Row],[25th]]","v":86515.6},88952,{"$f":"(((AAMC_Raw_Data_for_FY22[[#This Row],[75th]]-AAMC_Raw_Data_for_FY22[[#This Row],[Median]])/25)*5) + AAMC_Raw_Data_for_FY22[[#This Row],[Median]]","v":91457.600000000006},{"$f":"(((AAMC_Raw_Data_for_FY22[[#This Row],[75th]]-AAMC_Raw_Data_for_FY22[[#This Row],[Median]])/25)*10) + AAMC_Raw_Data_for_FY22[[#This Row],[Median]]","v":93963.199999999997},{"$f":"(((AAMC_Raw_Data_for_FY22[[#This Row],[75th]]-AAMC_Raw_Data_for_FY22[[#This Row],[Median]])/25)*15) + AAMC_Raw_Data_for_FY22[[#This Row],[Median]]","v":96468.800000000003},{"$f":"(((AAMC_Raw_Data_for_FY22[[#This Row],[75th]]-AAMC_Raw_Data_for_FY22[[#This Row],[Median]])/25)*20) + AAMC_Raw_Data_for_FY22[[#This Row],[Median]]","v":98974.399999999994},101480,{"$f":"(((AAMC_Raw_Data_for_FY22[[#This Row],[75th]]-AAMC_Raw_Data_for_FY22[[#This Row],[Median]])/25)*30) + AAMC_Raw_Data_for_FY22[[#This Row],[Median]]","v":103985.60000000001},{"$f":"(((AAMC_Raw_Data_for_FY22[[#This Row],[75th]]-AAMC_Raw_Data_for_FY22[[#This Row],[Median]])/25)*35) + AAMC_Raw_Data_for_FY22[[#This Row],[Median]]","v":106491.2},{"$f":"(((AAMC_Raw_Data_for_FY22[[#This Row],[75th]]-AAMC_Raw_Data_for_FY22[[#This Row],[Median]])/25)*40) + AAMC_Raw_Data_for_FY22[[#This Row],[Median]]","v":108996.8}]
[{"$f":"AAMC_Raw_Data_for_FY22[[#This Row],[Source]]&AAMC_Raw_Data_for_FY22[[#This Row],[Type]]&AAMC_Raw_Data_for_FY22[[#This Row],[School Subset]]&AAMC_Raw_Data_for_FY22[[#This Row],[Rank]]&AAMC_Raw_Data_for_FY22[[#This Row],[Degree]]&AAMC_Raw_Data_for_FY22[[#This Row],[Department / Specialty]]&\"L\"","v":"AAMCAcademicAllAssociateMDPhysiologyL"},"Physiology",3,"AAMC","Academic","All","Associate","MD","2021-2022",116571,{"$f":"(((AAMC_Raw_Data_for_FY22[[#This Row],[Median]]-AAMC_Raw_Data_for_FY22[[#This Row],[25th]])/25)*5) + AAMC_Raw_Data_for_FY22[[#This Row],[25th]]","v":118869},{"$f":"(((AAMC_Raw_Data_for_FY22[[#This Row],[Median]]-AAMC_Raw_Data_for_FY22[[#This Row],[25th]])/25)*10) + AAMC_Raw_Data_for_FY22[[#This Row],[25th]]","v":121167},{"$f":"(((AAMC_Raw_Data_for_FY22[[#This Row],[Median]]-AAMC_Raw_Data_for_FY22[[#This Row],[25th]])/25)*15) + AAMC_Raw_Data_for_FY22[[#This Row],[25th]]","v":123465},{"$f":"(((AAMC_Raw_Data_for_FY22[[#This Row],[Median]]-AAMC_Raw_Data_for_FY22[[#This Row],[25th]])/25)*20) + AAMC_Raw_Data_for_FY22[[#This Row],[25th]]","v":125763},128061,{"$f":"(((AAMC_Raw_Data_for_FY22[[#This Row],[75th]]-AAMC_Raw_Data_for_FY22[[#This Row],[Median]])/25)*5) + AAMC_Raw_Data_for_FY22[[#This Row],[Median]]","v":131045},{"$f":"(((AAMC_Raw_Data_for_FY22[[#This Row],[75th]]-AAMC_Raw_Data_for_FY22[[#This Row],[Median]])/25)*10) + AAMC_Raw_Data_for_FY22[[#This Row],[Median]]","v":134029},{"$f":"(((AAMC_Raw_Data_for_FY22[[#This Row],[75th]]-AAMC_Raw_Data_for_FY22[[#This Row],[Median]])/25)*15) + AAMC_Raw_Data_for_FY22[[#This Row],[Median]]","v":137013},{"$f":"(((AAMC_Raw_Data_for_FY22[[#This Row],[75th]]-AAMC_Raw_Data_for_FY22[[#This Row],[Median]])/25)*20) + AAMC_Raw_Data_for_FY22[[#This Row],[Median]]","v":139997},142981,{"$f":"(((AAMC_Raw_Data_for_FY22[[#This Row],[75th]]-AAMC_Raw_Data_for_FY22[[#This Row],[Median]])/25)*30) + AAMC_Raw_Data_for_FY22[[#This Row],[Median]]","v":145965},{"$f":"(((AAMC_Raw_Data_for_FY22[[#This Row],[75th]]-AAMC_Raw_Data_for_FY22[[#This Row],[Median]])/25)*35) + AAMC_Raw_Data_for_FY22[[#This Row],[Median]]","v":148949},{"$f":"(((AAMC_Raw_Data_for_FY22[[#This Row],[75th]]-AAMC_Raw_Data_for_FY22[[#This Row],[Median]])/25)*40) + AAMC_Raw_Data_for_FY22[[#This Row],[Median]]","v":151933}]
[{"$f":"AAMC_Raw_Data_for_FY22[[#This Row],[Source]]&AAMC_Raw_Data_for_FY22[[#This Row],[Type]]&AAMC_Raw_Data_for_FY22[[#This Row],[School Subset]]&AAMC_Raw_Data_for_FY22[[#This Row],[Rank]]&AAMC_Raw_Data_for_FY22[[#This Row],[Degree]]&AAMC_Raw_Data_for_FY22[[#This Row],[Department / Specialty]]&\"L\"","v":"AAMCAcademicAllProfessorMDPhysiologyL"},"Physiology",2,"AAMC","Academic","All","Professor","MD","2021-2022",164788,{"$f":"(((AAMC_Raw_Data_for_FY22[[#This Row],[Median]]-AAMC_Raw_Data_for_FY22[[#This Row],[25th]])/25)*5) + AAMC_Raw_Data_for_FY22[[#This Row],[25th]]","v":173259.8},{"$f":"(((AAMC_Raw_Data_for_FY22[[#This Row],[Median]]-AAMC_Raw_Data_for_FY22[[#This Row],[25th]])/25)*10) + AAMC_Raw_Data_for_FY22[[#This Row],[25th]]","v":181731.6},{"$f":"(((AAMC_Raw_Data_for_FY22[[#This Row],[Median]]-AAMC_Raw_Data_for_FY22[[#This Row],[25th]])/25)*15) + AAMC_Raw_Data_for_FY22[[#This Row],[25th]]","v":190203.4},{"$f":"(((AAMC_Raw_Data_for_FY22[[#This Row],[Median]]-AAMC_Raw_Data_for_FY22[[#This Row],[25th]])/25)*20) + AAMC_Raw_Data_for_FY22[[#This Row],[25th]]","v":198675.20000000001},207147,{"$f":"(((AAMC_Raw_Data_for_FY22[[#This Row],[75th]]-AAMC_Raw_Data_for_FY22[[#This Row],[Median]])/25)*5) + AAMC_Raw_Data_for_FY22[[#This Row],[Median]]","v":219217},{"$f":"(((AAMC_Raw_Data_for_FY22[[#This Row],[75th]]-AAMC_Raw_Data_for_FY22[[#This Row],[Median]])/25)*10) + AAMC_Raw_Data_for_FY22[[#This Row],[Median]]","v":231287},{"$f":"(((AAMC_Raw_Data_for_FY22[[#This Row],[75th]]-AAMC_Raw_Data_for_FY22[[#This Row],[Median]])/25)*15) + AAMC_Raw_Data_for_FY22[[#This Row],[Median]]","v":243357},{"$f":"(((AAMC_Raw_Data_for_FY22[[#This Row],[75th]]-AAMC_Raw_Data_for_FY22[[#This Row],[Median]])/25)*20) + AAMC_Raw_Data_for_FY22[[#This Row],[Median]]","v":255427},267497,{"$f":"(((AAMC_Raw_Data_for_FY22[[#This Row],[75th]]-AAMC_Raw_Data_for_FY22[[#This Row],[Median]])/25)*30) + AAMC_Raw_Data_for_FY22[[#This Row],[Median]]","v":279567},{"$f":"(((AAMC_Raw_Data_for_FY22[[#This Row],[75th]]-AAMC_Raw_Data_for_FY22[[#This Row],[Median]])/25)*35) + AAMC_Raw_Data_for_FY22[[#This Row],[Median]]","v":291637},{"$f":"(((AAMC_Raw_Data_for_FY22[[#This Row],[75th]]-AAMC_Raw_Data_for_FY22[[#This Row],[Median]])/25)*40) + AAMC_Raw_Data_for_FY22[[#This Row],[Median]]","v":303707}]
[{"$f":"AAMC_Raw_Data_for_FY22[[#This Row],[Source]]&AAMC_Raw_Data_for_FY22[[#This Row],[Type]]&AAMC_Raw_Data_for_FY22[[#This Row],[School Subset]]&AAMC_Raw_Data_for_FY22[[#This Row],[Rank]]&AAMC_Raw_Data_for_FY22[[#This Row],[Degree]]&AAMC_Raw_Data_for_FY22[[#This Row],[Department / Specialty]]&\"L\"","v":"AAMCAcademicAllChiefMDPhysiologyL"},"Physiology",6,"AAMC","Academic","All","Chief","MD","2021-2022",null,{"$f":"(((AAMC_Raw_Data_for_FY22[[#This Row],[Median]]-AAMC_Raw_Data_for_FY22[[#This Row],[25th]])/25)*5) + AAMC_Raw_Data_for_FY22[[#This Row],[25th]]","v":0},{"$f":"(((AAMC_Raw_Data_for_FY22[[#This Row],[Median]]-AAMC_Raw_Data_for_FY22[[#This Row],[25th]])/25)*10) + AAMC_Raw_Data_for_FY22[[#This Row],[25th]]","v":0},{"$f":"(((AAMC_Raw_Data_for_FY22[[#This Row],[Median]]-AAMC_Raw_Data_for_FY22[[#This Row],[25th]])/25)*15) + AAMC_Raw_Data_for_FY22[[#This Row],[25th]]","v":0},{"$f":"(((AAMC_Raw_Data_for_FY22[[#This Row],[Median]]-AAMC_Raw_Data_for_FY22[[#This Row],[25th]])/25)*20) + AAMC_Raw_Data_for_FY22[[#This Row],[25th]]","v":0},null,{"$f":"(((AAMC_Raw_Data_for_FY22[[#This Row],[75th]]-AAMC_Raw_Data_for_FY22[[#This Row],[Median]])/25)*5) + AAMC_Raw_Data_for_FY22[[#This Row],[Median]]","v":0},{"$f":"(((AAMC_Raw_Data_for_FY22[[#This Row],[75th]]-AAMC_Raw_Data_for_FY22[[#This Row],[Median]])/25)*10) + AAMC_Raw_Data_for_FY22[[#This Row],[Median]]","v":0},{"$f":"(((AAMC_Raw_Data_for_FY22[[#This Row],[75th]]-AAMC_Raw_Data_for_FY22[[#This Row],[Median]])/25)*15) + AAMC_Raw_Data_for_FY22[[#This Row],[Median]]","v":0},{"$f":"(((AAMC_Raw_Data_for_FY22[[#This Row],[75th]]-AAMC_Raw_Data_for_FY22[[#This Row],[Median]])/25)*20) + AAMC_Raw_Data_for_FY22[[#This Row],[Median]]","v":0},null,{"$f":"(((AAMC_Raw_Data_for_FY22[[#This Row],[75th]]-AAMC_Raw_Data_for_FY22[[#This Row],[Median]])/25)*30) + AAMC_Raw_Data_for_FY22[[#This Row],[Median]]","v":0},{"$f":"(((AAMC_Raw_Data_for_FY22[[#This Row],[75th]]-AAMC_Raw_Data_for_FY22[[#This Row],[Median]])/25)*35) + AAMC_Raw_Data_for_FY22[[#This Row],[Median]]","v":0},{"$f":"(((AAMC_Raw_Data_for_FY22[[#This Row],[75th]]-AAMC_Raw_Data_for_FY22[[#This Row],[Median]])/25)*40) + AAMC_Raw_Data_for_FY22[[#This Row],[Median]]","v":0}]
[{"$f":"AAMC_Raw_Data_for_FY22[[#This Row],[Source]]&AAMC_Raw_Data_for_FY22[[#This Row],[Type]]&AAMC_Raw_Data_for_FY22[[#This Row],[School Subset]]&AAMC_Raw_Data_for_FY22[[#This Row],[Rank]]&AAMC_Raw_Data_for_FY22[[#This Row],[Degree]]&AAMC_Raw_Data_for_FY22[[#This Row],[Department / Specialty]]&\"L\"","v":"AAMCAcademicAllChairMDPhysiologyL"},"Physiology",1,"AAMC","Academic","All","Chair","MD","2021-2022",347768,{"$f":"(((AAMC_Raw_Data_for_FY22[[#This Row],[Median]]-AAMC_Raw_Data_for_FY22[[#This Row],[25th]])/25)*5) + AAMC_Raw_Data_for_FY22[[#This Row],[25th]]","v":361873.8},{"$f":"(((AAMC_Raw_Data_for_FY22[[#This Row],[Median]]-AAMC_Raw_Data_for_FY22[[#This Row],[25th]])/25)*10) + AAMC_Raw_Data_for_FY22[[#This Row],[25th]]","v":375979.6},{"$f":"(((AAMC_Raw_Data_for_FY22[[#This Row],[Median]]-AAMC_Raw_Data_for_FY22[[#This Row],[25th]])/25)*15) + AAMC_Raw_Data_for_FY22[[#This Row],[25th]]","v":390085.4},{"$f":"(((AAMC_Raw_Data_for_FY22[[#This Row],[Median]]-AAMC_Raw_Data_for_FY22[[#This Row],[25th]])/25)*20) + AAMC_Raw_Data_for_FY22[[#This Row],[25th]]","v":404191.2},418297,{"$f":"(((AAMC_Raw_Data_for_FY22[[#This Row],[75th]]-AAMC_Raw_Data_for_FY22[[#This Row],[Median]])/25)*5) + AAMC_Raw_Data_for_FY22[[#This Row],[Median]]","v":436629.6},{"$f":"(((AAMC_Raw_Data_for_FY22[[#This Row],[75th]]-AAMC_Raw_Data_for_FY22[[#This Row],[Median]])/25)*10) + AAMC_Raw_Data_for_FY22[[#This Row],[Median]]","v":454962.2},{"$f":"(((AAMC_Raw_Data_for_FY22[[#This Row],[75th]]-AAMC_Raw_Data_for_FY22[[#This Row],[Median]])/25)*15) + AAMC_Raw_Data_for_FY22[[#This Row],[Median]]","v":473294.8},{"$f":"(((AAMC_Raw_Data_for_FY22[[#This Row],[75th]]-AAMC_Raw_Data_for_FY22[[#This Row],[Median]])/25)*20) + AAMC_Raw_Data_for_FY22[[#This Row],[Median]]","v":491627.4},509960,{"$f":"(((AAMC_Raw_Data_for_FY22[[#This Row],[75th]]-AAMC_Raw_Data_for_FY22[[#This Row],[Median]])/25)*30) + AAMC_Raw_Data_for_FY22[[#This Row],[Median]]","v":528292.6},{"$f":"(((AAMC_Raw_Data_for_FY22[[#This Row],[75th]]-AAMC_Raw_Data_for_FY22[[#This Row],[Median]])/25)*35) + AAMC_Raw_Data_for_FY22[[#This Row],[Median]]","v":546625.19999999995},{"$f":"(((AAMC_Raw_Data_for_FY22[[#This Row],[75th]]-AAMC_Raw_Data_for_FY22[[#This Row],[Median]])/25)*40) + AAMC_Raw_Data_for_FY22[[#This Row],[Median]]","v":564957.80000000005}]
[{"$f":"AAMC_Raw_Data_for_FY22[[#This Row],[Source]]&AAMC_Raw_Data_for_FY22[[#This Row],[Type]]&AAMC_Raw_Data_for_FY22[[#This Row],[School Subset]]&AAMC_Raw_Data_for_FY22[[#This Row],[Rank]]&AAMC_Raw_Data_for_FY22[[#This Row],[Degree]]&AAMC_Raw_Data_for_FY22[[#This Row],[Department / Specialty]]&\"L\"","v":"AAMCAcademicAllAssistantMDPopulation Health and Public HealthL"},"Population Health and Public Health",4,"AAMC","Academic","All","Assistant","MD","2021-2022",120110,{"$f":"(((AAMC_Raw_Data_for_FY22[[#This Row],[Median]]-AAMC_Raw_Data_for_FY22[[#This Row],[25th]])/25)*5) + AAMC_Raw_Data_for_FY22[[#This Row],[25th]]","v":126088},{"$f":"(((AAMC_Raw_Data_for_FY22[[#This Row],[Median]]-AAMC_Raw_Data_for_FY22[[#This Row],[25th]])/25)*10) + AAMC_Raw_Data_for_FY22[[#This Row],[25th]]","v":132066},{"$f":"(((AAMC_Raw_Data_for_FY22[[#This Row],[Median]]-AAMC_Raw_Data_for_FY22[[#This Row],[25th]])/25)*15) + AAMC_Raw_Data_for_FY22[[#This Row],[25th]]","v":138044},{"$f":"(((AAMC_Raw_Data_for_FY22[[#This Row],[Median]]-AAMC_Raw_Data_for_FY22[[#This Row],[25th]])/25)*20) + AAMC_Raw_Data_for_FY22[[#This Row],[25th]]","v":144022},150000,{"$f":"(((AAMC_Raw_Data_for_FY22[[#This Row],[75th]]-AAMC_Raw_Data_for_FY22[[#This Row],[Median]])/25)*5) + AAMC_Raw_Data_for_FY22[[#This Row],[Median]]","v":157530.79999999999},{"$f":"(((AAMC_Raw_Data_for_FY22[[#This Row],[75th]]-AAMC_Raw_Data_for_FY22[[#This Row],[Median]])/25)*10) + AAMC_Raw_Data_for_FY22[[#This Row],[Median]]","v":165061.6},{"$f":"(((AAMC_Raw_Data_for_FY22[[#This Row],[75th]]-AAMC_Raw_Data_for_FY22[[#This Row],[Median]])/25)*15) + AAMC_Raw_Data_for_FY22[[#This Row],[Median]]","v":172592.4},{"$f":"(((AAMC_Raw_Data_for_FY22[[#This Row],[75th]]-AAMC_Raw_Data_for_FY22[[#This Row],[Median]])/25)*20) + AAMC_Raw_Data_for_FY22[[#This Row],[Median]]","v":180123.2},187654,{"$f":"(((AAMC_Raw_Data_for_FY22[[#This Row],[75th]]-AAMC_Raw_Data_for_FY22[[#This Row],[Median]])/25)*30) + AAMC_Raw_Data_for_FY22[[#This Row],[Median]]","v":195184.8},{"$f":"(((AAMC_Raw_Data_for_FY22[[#This Row],[75th]]-AAMC_Raw_Data_for_FY22[[#This Row],[Median]])/25)*35) + AAMC_Raw_Data_for_FY22[[#This Row],[Median]]","v":202715.6},{"$f":"(((AAMC_Raw_Data_for_FY22[[#This Row],[75th]]-AAMC_Raw_Data_for_FY22[[#This Row],[Median]])/25)*40) + AAMC_Raw_Data_for_FY22[[#This Row],[Median]]","v":210246.39999999999}]
[{"$f":"AAMC_Raw_Data_for_FY22[[#This Row],[Source]]&AAMC_Raw_Data_for_FY22[[#This Row],[Type]]&AAMC_Raw_Data_for_FY22[[#This Row],[School Subset]]&AAMC_Raw_Data_for_FY22[[#This Row],[Rank]]&AAMC_Raw_Data_for_FY22[[#This Row],[Degree]]&AAMC_Raw_Data_for_FY22[[#This Row],[Department / Specialty]]&\"L\"","v":"AAMCAcademicAllAssociateMDPopulation Health and Public HealthL"},"Population Health and Public Health",3,"AAMC","Academic","All","Associate","MD","2021-2022",149000,{"$f":"(((AAMC_Raw_Data_for_FY22[[#This Row],[Median]]-AAMC_Raw_Data_for_FY22[[#This Row],[25th]])/25)*5) + AAMC_Raw_Data_for_FY22[[#This Row],[25th]]","v":154640},{"$f":"(((AAMC_Raw_Data_for_FY22[[#This Row],[Median]]-AAMC_Raw_Data_for_FY22[[#This Row],[25th]])/25)*10) + AAMC_Raw_Data_for_FY22[[#This Row],[25th]]","v":160280},{"$f":"(((AAMC_Raw_Data_for_FY22[[#This Row],[Median]]-AAMC_Raw_Data_for_FY22[[#This Row],[25th]])/25)*15) + AAMC_Raw_Data_for_FY22[[#This Row],[25th]]","v":165920},{"$f":"(((AAMC_Raw_Data_for_FY22[[#This Row],[Median]]-AAMC_Raw_Data_for_FY22[[#This Row],[25th]])/25)*20) + AAMC_Raw_Data_for_FY22[[#This Row],[25th]]","v":171560},177200,{"$f":"(((AAMC_Raw_Data_for_FY22[[#This Row],[75th]]-AAMC_Raw_Data_for_FY22[[#This Row],[Median]])/25)*5) + AAMC_Raw_Data_for_FY22[[#This Row],[Median]]","v":185080.8},{"$f":"(((AAMC_Raw_Data_for_FY22[[#This Row],[75th]]-AAMC_Raw_Data_for_FY22[[#This Row],[Median]])/25)*10) + AAMC_Raw_Data_for_FY22[[#This Row],[Median]]","v":192961.6},{"$f":"(((AAMC_Raw_Data_for_FY22[[#This Row],[75th]]-AAMC_Raw_Data_for_FY22[[#This Row],[Median]])/25)*15) + AAMC_Raw_Data_for_FY22[[#This Row],[Median]]","v":200842.4},{"$f":"(((AAMC_Raw_Data_for_FY22[[#This Row],[75th]]-AAMC_Raw_Data_for_FY22[[#This Row],[Median]])/25)*20) + AAMC_Raw_Data_for_FY22[[#This Row],[Median]]","v":208723.20000000001},216604,{"$f":"(((AAMC_Raw_Data_for_FY22[[#This Row],[75th]]-AAMC_Raw_Data_for_FY22[[#This Row],[Median]])/25)*30) + AAMC_Raw_Data_for_FY22[[#This Row],[Median]]","v":224484.8},{"$f":"(((AAMC_Raw_Data_for_FY22[[#This Row],[75th]]-AAMC_Raw_Data_for_FY22[[#This Row],[Median]])/25)*35) + AAMC_Raw_Data_for_FY22[[#This Row],[Median]]","v":232365.6},{"$f":"(((AAMC_Raw_Data_for_FY22[[#This Row],[75th]]-AAMC_Raw_Data_for_FY22[[#This Row],[Median]])/25)*40) + AAMC_Raw_Data_for_FY22[[#This Row],[Median]]","v":240246.39999999999}]
[{"$f":"AAMC_Raw_Data_for_FY22[[#This Row],[Source]]&AAMC_Raw_Data_for_FY22[[#This Row],[Type]]&AAMC_Raw_Data_for_FY22[[#This Row],[School Subset]]&AAMC_Raw_Data_for_FY22[[#This Row],[Rank]]&AAMC_Raw_Data_for_FY22[[#This Row],[Degree]]&AAMC_Raw_Data_for_FY22[[#This Row],[Department / Specialty]]&\"L\"","v":"AAMCAcademicAllProfessorMDPopulation Health and Public HealthL"},"Population Health and Public Health",2,"AAMC","Academic","All","Professor","MD","2021-2022",229843,{"$f":"(((AAMC_Raw_Data_for_FY22[[#This Row],[Median]]-AAMC_Raw_Data_for_FY22[[#This Row],[25th]])/25)*5) + AAMC_Raw_Data_for_FY22[[#This Row],[25th]]","v":235634.4},{"$f":"(((AAMC_Raw_Data_for_FY22[[#This Row],[Median]]-AAMC_Raw_Data_for_FY22[[#This Row],[25th]])/25)*10) + AAMC_Raw_Data_for_FY22[[#This Row],[25th]]","v":241425.8},{"$f":"(((AAMC_Raw_Data_for_FY22[[#This Row],[Median]]-AAMC_Raw_Data_for_FY22[[#This Row],[25th]])/25)*15) + AAMC_Raw_Data_for_FY22[[#This Row],[25th]]","v":247217.2},{"$f":"(((AAMC_Raw_Data_for_FY22[[#This Row],[Median]]-AAMC_Raw_Data_for_FY22[[#This Row],[25th]])/25)*20) + AAMC_Raw_Data_for_FY22[[#This Row],[25th]]","v":253008.6},258800,{"$f":"(((AAMC_Raw_Data_for_FY22[[#This Row],[75th]]-AAMC_Raw_Data_for_FY22[[#This Row],[Median]])/25)*5) + AAMC_Raw_Data_for_FY22[[#This Row],[Median]]","v":275574.8},{"$f":"(((AAMC_Raw_Data_for_FY22[[#This Row],[75th]]-AAMC_Raw_Data_for_FY22[[#This Row],[Median]])/25)*10) + AAMC_Raw_Data_for_FY22[[#This Row],[Median]]","v":292349.59999999998},{"$f":"(((AAMC_Raw_Data_for_FY22[[#This Row],[75th]]-AAMC_Raw_Data_for_FY22[[#This Row],[Median]])/25)*15) + AAMC_Raw_Data_for_FY22[[#This Row],[Median]]","v":309124.40000000002},{"$f":"(((AAMC_Raw_Data_for_FY22[[#This Row],[75th]]-AAMC_Raw_Data_for_FY22[[#This Row],[Median]])/25)*20) + AAMC_Raw_Data_for_FY22[[#This Row],[Median]]","v":325899.2},342674,{"$f":"(((AAMC_Raw_Data_for_FY22[[#This Row],[75th]]-AAMC_Raw_Data_for_FY22[[#This Row],[Median]])/25)*30) + AAMC_Raw_Data_for_FY22[[#This Row],[Median]]","v":359448.8},{"$f":"(((AAMC_Raw_Data_for_FY22[[#This Row],[75th]]-AAMC_Raw_Data_for_FY22[[#This Row],[Median]])/25)*35) + AAMC_Raw_Data_for_FY22[[#This Row],[Median]]","v":376223.6},{"$f":"(((AAMC_Raw_Data_for_FY22[[#This Row],[75th]]-AAMC_Raw_Data_for_FY22[[#This Row],[Median]])/25)*40) + AAMC_Raw_Data_for_FY22[[#This Row],[Median]]","v":392998.40000000002}]
[{"$f":"AAMC_Raw_Data_for_FY22[[#This Row],[Source]]&AAMC_Raw_Data_for_FY22[[#This Row],[Type]]&AAMC_Raw_Data_for_FY22[[#This Row],[School Subset]]&AAMC_Raw_Data_for_FY22[[#This Row],[Rank]]&AAMC_Raw_Data_for_FY22[[#This Row],[Degree]]&AAMC_Raw_Data_for_FY22[[#This Row],[Department / Specialty]]&\"L\"","v":"AAMCAcademicAllChiefMDPopulation Health and Public HealthL"},"Population Health and Public Health",6,"AAMC","Academic","All","Chief","MD","2021-2022",null,{"$f":"(((AAMC_Raw_Data_for_FY22[[#This Row],[Median]]-AAMC_Raw_Data_for_FY22[[#This Row],[25th]])/25)*5) + AAMC_Raw_Data_for_FY22[[#This Row],[25th]]","v":0},{"$f":"(((AAMC_Raw_Data_for_FY22[[#This Row],[Median]]-AAMC_Raw_Data_for_FY22[[#This Row],[25th]])/25)*10) + AAMC_Raw_Data_for_FY22[[#This Row],[25th]]","v":0},{"$f":"(((AAMC_Raw_Data_for_FY22[[#This Row],[Median]]-AAMC_Raw_Data_for_FY22[[#This Row],[25th]])/25)*15) + AAMC_Raw_Data_for_FY22[[#This Row],[25th]]","v":0},{"$f":"(((AAMC_Raw_Data_for_FY22[[#This Row],[Median]]-AAMC_Raw_Data_for_FY22[[#This Row],[25th]])/25)*20) + AAMC_Raw_Data_for_FY22[[#This Row],[25th]]","v":0},null,{"$f":"(((AAMC_Raw_Data_for_FY22[[#This Row],[75th]]-AAMC_Raw_Data_for_FY22[[#This Row],[Median]])/25)*5) + AAMC_Raw_Data_for_FY22[[#This Row],[Median]]","v":0},{"$f":"(((AAMC_Raw_Data_for_FY22[[#This Row],[75th]]-AAMC_Raw_Data_for_FY22[[#This Row],[Median]])/25)*10) + AAMC_Raw_Data_for_FY22[[#This Row],[Median]]","v":0},{"$f":"(((AAMC_Raw_Data_for_FY22[[#This Row],[75th]]-AAMC_Raw_Data_for_FY22[[#This Row],[Median]])/25)*15) + AAMC_Raw_Data_for_FY22[[#This Row],[Median]]","v":0},{"$f":"(((AAMC_Raw_Data_for_FY22[[#This Row],[75th]]-AAMC_Raw_Data_for_FY22[[#This Row],[Median]])/25)*20) + AAMC_Raw_Data_for_FY22[[#This Row],[Median]]","v":0},null,{"$f":"(((AAMC_Raw_Data_for_FY22[[#This Row],[75th]]-AAMC_Raw_Data_for_FY22[[#This Row],[Median]])/25)*30) + AAMC_Raw_Data_for_FY22[[#This Row],[Median]]","v":0},{"$f":"(((AAMC_Raw_Data_for_FY22[[#This Row],[75th]]-AAMC_Raw_Data_for_FY22[[#This Row],[Median]])/25)*35) + AAMC_Raw_Data_for_FY22[[#This Row],[Median]]","v":0},{"$f":"(((AAMC_Raw_Data_for_FY22[[#This Row],[75th]]-AAMC_Raw_Data_for_FY22[[#This Row],[Median]])/25)*40) + AAMC_Raw_Data_for_FY22[[#This Row],[Median]]","v":0}]
[{"$f":"AAMC_Raw_Data_for_FY22[[#This Row],[Source]]&AAMC_Raw_Data_for_FY22[[#This Row],[Type]]&AAMC_Raw_Data_for_FY22[[#This Row],[School Subset]]&AAMC_Raw_Data_for_FY22[[#This Row],[Rank]]&AAMC_Raw_Data_for_FY22[[#This Row],[Degree]]&AAMC_Raw_Data_for_FY22[[#This Row],[Department / Specialty]]&\"L\"","v":"AAMCAcademicAllChairMDPopulation Health and Public HealthL"},"Population Health and Public Health",1,"AAMC","Academic","All","Chair","MD","2021-2022",346336,{"$f":"(((AAMC_Raw_Data_for_FY22[[#This Row],[Median]]-AAMC_Raw_Data_for_FY22[[#This Row],[25th]])/25)*5) + AAMC_Raw_Data_for_FY22[[#This Row],[25th]]","v":348971.4},{"$f":"(((AAMC_Raw_Data_for_FY22[[#This Row],[Median]]-AAMC_Raw_Data_for_FY22[[#This Row],[25th]])/25)*10) + AAMC_Raw_Data_for_FY22[[#This Row],[25th]]","v":351606.8},{"$f":"(((AAMC_Raw_Data_for_FY22[[#This Row],[Median]]-AAMC_Raw_Data_for_FY22[[#This Row],[25th]])/25)*15) + AAMC_Raw_Data_for_FY22[[#This Row],[25th]]","v":354242.2},{"$f":"(((AAMC_Raw_Data_for_FY22[[#This Row],[Median]]-AAMC_Raw_Data_for_FY22[[#This Row],[25th]])/25)*20) + AAMC_Raw_Data_for_FY22[[#This Row],[25th]]","v":356877.6},359513,{"$f":"(((AAMC_Raw_Data_for_FY22[[#This Row],[75th]]-AAMC_Raw_Data_for_FY22[[#This Row],[Median]])/25)*5) + AAMC_Raw_Data_for_FY22[[#This Row],[Median]]","v":367610.4},{"$f":"(((AAMC_Raw_Data_for_FY22[[#This Row],[75th]]-AAMC_Raw_Data_for_FY22[[#This Row],[Median]])/25)*10) + AAMC_Raw_Data_for_FY22[[#This Row],[Median]]","v":375707.8},{"$f":"(((AAMC_Raw_Data_for_FY22[[#This Row],[75th]]-AAMC_Raw_Data_for_FY22[[#This Row],[Median]])/25)*15) + AAMC_Raw_Data_for_FY22[[#This Row],[Median]]","v":383805.2},{"$f":"(((AAMC_Raw_Data_for_FY22[[#This Row],[75th]]-AAMC_Raw_Data_for_FY22[[#This Row],[Median]])/25)*20) + AAMC_Raw_Data_for_FY22[[#This Row],[Median]]","v":391902.6},400000,{"$f":"(((AAMC_Raw_Data_for_FY22[[#This Row],[75th]]-AAMC_Raw_Data_for_FY22[[#This Row],[Median]])/25)*30) + AAMC_Raw_Data_for_FY22[[#This Row],[Median]]","v":408097.4},{"$f":"(((AAMC_Raw_Data_for_FY22[[#This Row],[75th]]-AAMC_Raw_Data_for_FY22[[#This Row],[Median]])/25)*35) + AAMC_Raw_Data_for_FY22[[#This Row],[Median]]","v":416194.8},{"$f":"(((AAMC_Raw_Data_for_FY22[[#This Row],[75th]]-AAMC_Raw_Data_for_FY22[[#This Row],[Median]])/25)*40) + AAMC_Raw_Data_for_FY22[[#This Row],[Median]]","v":424292.2}]
[{"$f":"AAMC_Raw_Data_for_FY22[[#This Row],[Source]]&AAMC_Raw_Data_for_FY22[[#This Row],[Type]]&AAMC_Raw_Data_for_FY22[[#This Row],[School Subset]]&AAMC_Raw_Data_for_FY22[[#This Row],[Rank]]&AAMC_Raw_Data_for_FY22[[#This Row],[Degree]]&AAMC_Raw_Data_for_FY22[[#This Row],[Department / Specialty]]&\"L\"","v":"AAMCAcademicAllInstructorMDOther Basic SciencesL"},"Other Basic Sciences",5,"AAMC","Academic","All","Instructor","MD","2021-2022",74433,{"$f":"(((AAMC_Raw_Data_for_FY22[[#This Row],[Median]]-AAMC_Raw_Data_for_FY22[[#This Row],[25th]])/25)*5) + AAMC_Raw_Data_for_FY22[[#This Row],[25th]]","v":77914.399999999994},{"$f":"(((AAMC_Raw_Data_for_FY22[[#This Row],[Median]]-AAMC_Raw_Data_for_FY22[[#This Row],[25th]])/25)*10) + AAMC_Raw_Data_for_FY22[[#This Row],[25th]]","v":81395.8},{"$f":"(((AAMC_Raw_Data_for_FY22[[#This Row],[Median]]-AAMC_Raw_Data_for_FY22[[#This Row],[25th]])/25)*15) + AAMC_Raw_Data_for_FY22[[#This Row],[25th]]","v":84877.2},{"$f":"(((AAMC_Raw_Data_for_FY22[[#This Row],[Median]]-AAMC_Raw_Data_for_FY22[[#This Row],[25th]])/25)*20) + AAMC_Raw_Data_for_FY22[[#This Row],[25th]]","v":88358.6},91840,{"$f":"(((AAMC_Raw_Data_for_FY22[[#This Row],[75th]]-AAMC_Raw_Data_for_FY22[[#This Row],[Median]])/25)*5) + AAMC_Raw_Data_for_FY22[[#This Row],[Median]]","v":100899},{"$f":"(((AAMC_Raw_Data_for_FY22[[#This Row],[75th]]-AAMC_Raw_Data_for_FY22[[#This Row],[Median]])/25)*10) + AAMC_Raw_Data_for_FY22[[#This Row],[Median]]","v":109958},{"$f":"(((AAMC_Raw_Data_for_FY22[[#This Row],[75th]]-AAMC_Raw_Data_for_FY22[[#This Row],[Median]])/25)*15) + AAMC_Raw_Data_for_FY22[[#This Row],[Median]]","v":119017},{"$f":"(((AAMC_Raw_Data_for_FY22[[#This Row],[75th]]-AAMC_Raw_Data_for_FY22[[#This Row],[Median]])/25)*20) + AAMC_Raw_Data_for_FY22[[#This Row],[Median]]","v":128076},137135,{"$f":"(((AAMC_Raw_Data_for_FY22[[#This Row],[75th]]-AAMC_Raw_Data_for_FY22[[#This Row],[Median]])/25)*30) + AAMC_Raw_Data_for_FY22[[#This Row],[Median]]","v":146194},{"$f":"(((AAMC_Raw_Data_for_FY22[[#This Row],[75th]]-AAMC_Raw_Data_for_FY22[[#This Row],[Median]])/25)*35) + AAMC_Raw_Data_for_FY22[[#This Row],[Median]]","v":155253},{"$f":"(((AAMC_Raw_Data_for_FY22[[#This Row],[75th]]-AAMC_Raw_Data_for_FY22[[#This Row],[Median]])/25)*40) + AAMC_Raw_Data_for_FY22[[#This Row],[Median]]","v":164312}]
[{"$f":"AAMC_Raw_Data_for_FY22[[#This Row],[Source]]&AAMC_Raw_Data_for_FY22[[#This Row],[Type]]&AAMC_Raw_Data_for_FY22[[#This Row],[School Subset]]&AAMC_Raw_Data_for_FY22[[#This Row],[Rank]]&AAMC_Raw_Data_for_FY22[[#This Row],[Degree]]&AAMC_Raw_Data_for_FY22[[#This Row],[Department / Specialty]]&\"L\"","v":"AAMCAcademicAllAssistantMDOther Basic SciencesL"},"Other Basic Sciences",4,"AAMC","Academic","All","Assistant","MD","2021-2022",82229,{"$f":"(((AAMC_Raw_Data_for_FY22[[#This Row],[Median]]-AAMC_Raw_Data_for_FY22[[#This Row],[25th]])/25)*5) + AAMC_Raw_Data_for_FY22[[#This Row],[25th]]","v":88992.6},{"$f":"(((AAMC_Raw_Data_for_FY22[[#This Row],[Median]]-AAMC_Raw_Data_for_FY22[[#This Row],[25th]])/25)*10) + AAMC_Raw_Data_for_FY22[[#This Row],[25th]]","v":95756.2},{"$f":"(((AAMC_Raw_Data_for_FY22[[#This Row],[Median]]-AAMC_Raw_Data_for_FY22[[#This Row],[25th]])/25)*15) + AAMC_Raw_Data_for_FY22[[#This Row],[25th]]","v":102519.8},{"$f":"(((AAMC_Raw_Data_for_FY22[[#This Row],[Median]]-AAMC_Raw_Data_for_FY22[[#This Row],[25th]])/25)*20) + AAMC_Raw_Data_for_FY22[[#This Row],[25th]]","v":109283.4},116047,{"$f":"(((AAMC_Raw_Data_for_FY22[[#This Row],[75th]]-AAMC_Raw_Data_for_FY22[[#This Row],[Median]])/25)*5) + AAMC_Raw_Data_for_FY22[[#This Row],[Median]]","v":124255.4},{"$f":"(((AAMC_Raw_Data_for_FY22[[#This Row],[75th]]-AAMC_Raw_Data_for_FY22[[#This Row],[Median]])/25)*10) + AAMC_Raw_Data_for_FY22[[#This Row],[Median]]","v":132463.79999999999},{"$f":"(((AAMC_Raw_Data_for_FY22[[#This Row],[75th]]-AAMC_Raw_Data_for_FY22[[#This Row],[Median]])/25)*15) + AAMC_Raw_Data_for_FY22[[#This Row],[Median]]","v":140672.20000000001},{"$f":"(((AAMC_Raw_Data_for_FY22[[#This Row],[75th]]-AAMC_Raw_Data_for_FY22[[#This Row],[Median]])/25)*20) + AAMC_Raw_Data_for_FY22[[#This Row],[Median]]","v":148880.6},157089,{"$f":"(((AAMC_Raw_Data_for_FY22[[#This Row],[75th]]-AAMC_Raw_Data_for_FY22[[#This Row],[Median]])/25)*30) + AAMC_Raw_Data_for_FY22[[#This Row],[Median]]","v":165297.4},{"$f":"(((AAMC_Raw_Data_for_FY22[[#This Row],[75th]]-AAMC_Raw_Data_for_FY22[[#This Row],[Median]])/25)*35) + AAMC_Raw_Data_for_FY22[[#This Row],[Median]]","v":173505.8},{"$f":"(((AAMC_Raw_Data_for_FY22[[#This Row],[75th]]-AAMC_Raw_Data_for_FY22[[#This Row],[Median]])/25)*40) + AAMC_Raw_Data_for_FY22[[#This Row],[Median]]","v":181714.2}]
[{"$f":"AAMC_Raw_Data_for_FY22[[#This Row],[Source]]&AAMC_Raw_Data_for_FY22[[#This Row],[Type]]&AAMC_Raw_Data_for_FY22[[#This Row],[School Subset]]&AAMC_Raw_Data_for_FY22[[#This Row],[Rank]]&AAMC_Raw_Data_for_FY22[[#This Row],[Degree]]&AAMC_Raw_Data_for_FY22[[#This Row],[Department / Specialty]]&\"L\"","v":"AAMCAcademicAllAssociateMDOther Basic SciencesL"},"Other Basic Sciences",3,"AAMC","Academic","All","Associate","MD","2021-2022",106438,{"$f":"(((AAMC_Raw_Data_for_FY22[[#This Row],[Median]]-AAMC_Raw_Data_for_FY22[[#This Row],[25th]])/25)*5) + AAMC_Raw_Data_for_FY22[[#This Row],[25th]]","v":115150.39999999999},{"$f":"(((AAMC_Raw_Data_for_FY22[[#This Row],[Median]]-AAMC_Raw_Data_for_FY22[[#This Row],[25th]])/25)*10) + AAMC_Raw_Data_for_FY22[[#This Row],[25th]]","v":123862.8},{"$f":"(((AAMC_Raw_Data_for_FY22[[#This Row],[Median]]-AAMC_Raw_Data_for_FY22[[#This Row],[25th]])/25)*15) + AAMC_Raw_Data_for_FY22[[#This Row],[25th]]","v":132575.20000000001},{"$f":"(((AAMC_Raw_Data_for_FY22[[#This Row],[Median]]-AAMC_Raw_Data_for_FY22[[#This Row],[25th]])/25)*20) + AAMC_Raw_Data_for_FY22[[#This Row],[25th]]","v":141287.6},150000,{"$f":"(((AAMC_Raw_Data_for_FY22[[#This Row],[75th]]-AAMC_Raw_Data_for_FY22[[#This Row],[Median]])/25)*5) + AAMC_Raw_Data_for_FY22[[#This Row],[Median]]","v":156575.4},{"$f":"(((AAMC_Raw_Data_for_FY22[[#This Row],[75th]]-AAMC_Raw_Data_for_FY22[[#This Row],[Median]])/25)*10) + AAMC_Raw_Data_for_FY22[[#This Row],[Median]]","v":163150.79999999999},{"$f":"(((AAMC_Raw_Data_for_FY22[[#This Row],[75th]]-AAMC_Raw_Data_for_FY22[[#This Row],[Median]])/25)*15) + AAMC_Raw_Data_for_FY22[[#This Row],[Median]]","v":169726.2},{"$f":"(((AAMC_Raw_Data_for_FY22[[#This Row],[75th]]-AAMC_Raw_Data_for_FY22[[#This Row],[Median]])/25)*20) + AAMC_Raw_Data_for_FY22[[#This Row],[Median]]","v":176301.6},182877,{"$f":"(((AAMC_Raw_Data_for_FY22[[#This Row],[75th]]-AAMC_Raw_Data_for_FY22[[#This Row],[Median]])/25)*30) + AAMC_Raw_Data_for_FY22[[#This Row],[Median]]","v":189452.4},{"$f":"(((AAMC_Raw_Data_for_FY22[[#This Row],[75th]]-AAMC_Raw_Data_for_FY22[[#This Row],[Median]])/25)*35) + AAMC_Raw_Data_for_FY22[[#This Row],[Median]]","v":196027.8},{"$f":"(((AAMC_Raw_Data_for_FY22[[#This Row],[75th]]-AAMC_Raw_Data_for_FY22[[#This Row],[Median]])/25)*40) + AAMC_Raw_Data_for_FY22[[#This Row],[Median]]","v":202603.2}]
[{"$f":"AAMC_Raw_Data_for_FY22[[#This Row],[Source]]&AAMC_Raw_Data_for_FY22[[#This Row],[Type]]&AAMC_Raw_Data_for_FY22[[#This Row],[School Subset]]&AAMC_Raw_Data_for_FY22[[#This Row],[Rank]]&AAMC_Raw_Data_for_FY22[[#This Row],[Degree]]&AAMC_Raw_Data_for_FY22[[#This Row],[Department / Specialty]]&\"L\"","v":"AAMCAcademicAllProfessorMDOther Basic SciencesL"},"Other Basic Sciences",2,"AAMC","Academic","All","Professor","MD","2021-2022",178000,{"$f":"(((AAMC_Raw_Data_for_FY22[[#This Row],[Median]]-AAMC_Raw_Data_for_FY22[[#This Row],[25th]])/25)*5) + AAMC_Raw_Data_for_FY22[[#This Row],[25th]]","v":188200},{"$f":"(((AAMC_Raw_Data_for_FY22[[#This Row],[Median]]-AAMC_Raw_Data_for_FY22[[#This Row],[25th]])/25)*10) + AAMC_Raw_Data_for_FY22[[#This Row],[25th]]","v":198400},{"$f":"(((AAMC_Raw_Data_for_FY22[[#This Row],[Median]]-AAMC_Raw_Data_for_FY22[[#This Row],[25th]])/25)*15) + AAMC_Raw_Data_for_FY22[[#This Row],[25th]]","v":208600},{"$f":"(((AAMC_Raw_Data_for_FY22[[#This Row],[Median]]-AAMC_Raw_Data_for_FY22[[#This Row],[25th]])/25)*20) + AAMC_Raw_Data_for_FY22[[#This Row],[25th]]","v":218800},229000,{"$f":"(((AAMC_Raw_Data_for_FY22[[#This Row],[75th]]-AAMC_Raw_Data_for_FY22[[#This Row],[Median]])/25)*5) + AAMC_Raw_Data_for_FY22[[#This Row],[Median]]","v":243281.4},{"$f":"(((AAMC_Raw_Data_for_FY22[[#This Row],[75th]]-AAMC_Raw_Data_for_FY22[[#This Row],[Median]])/25)*10) + AAMC_Raw_Data_for_FY22[[#This Row],[Median]]","v":257562.8},{"$f":"(((AAMC_Raw_Data_for_FY22[[#This Row],[75th]]-AAMC_Raw_Data_for_FY22[[#This Row],[Median]])/25)*15) + AAMC_Raw_Data_for_FY22[[#This Row],[Median]]","v":271844.2},{"$f":"(((AAMC_Raw_Data_for_FY22[[#This Row],[75th]]-AAMC_Raw_Data_for_FY22[[#This Row],[Median]])/25)*20) + AAMC_Raw_Data_for_FY22[[#This Row],[Median]]","v":286125.59999999998},300407,{"$f":"(((AAMC_Raw_Data_for_FY22[[#This Row],[75th]]-AAMC_Raw_Data_for_FY22[[#This Row],[Median]])/25)*30) + AAMC_Raw_Data_for_FY22[[#This Row],[Median]]","v":314688.40000000002},{"$f":"(((AAMC_Raw_Data_for_FY22[[#This Row],[75th]]-AAMC_Raw_Data_for_FY22[[#This Row],[Median]])/25)*35) + AAMC_Raw_Data_for_FY22[[#This Row],[Median]]","v":328969.8},{"$f":"(((AAMC_Raw_Data_for_FY22[[#This Row],[75th]]-AAMC_Raw_Data_for_FY22[[#This Row],[Median]])/25)*40) + AAMC_Raw_Data_for_FY22[[#This Row],[Median]]","v":343251.20000000001}]
[{"$f":"AAMC_Raw_Data_for_FY22[[#This Row],[Source]]&AAMC_Raw_Data_for_FY22[[#This Row],[Type]]&AAMC_Raw_Data_for_FY22[[#This Row],[School Subset]]&AAMC_Raw_Data_for_FY22[[#This Row],[Rank]]&AAMC_Raw_Data_for_FY22[[#This Row],[Degree]]&AAMC_Raw_Data_for_FY22[[#This Row],[Department / Specialty]]&\"L\"","v":"AAMCAcademicAllChiefMDOther Basic SciencesL"},"Other Basic Sciences",6,"AAMC","Academic","All","Chief","MD","2021-2022",235825,{"$f":"(((AAMC_Raw_Data_for_FY22[[#This Row],[Median]]-AAMC_Raw_Data_for_FY22[[#This Row],[25th]])/25)*5) + AAMC_Raw_Data_for_FY22[[#This Row],[25th]]","v":259967.6},{"$f":"(((AAMC_Raw_Data_for_FY22[[#This Row],[Median]]-AAMC_Raw_Data_for_FY22[[#This Row],[25th]])/25)*10) + AAMC_Raw_Data_for_FY22[[#This Row],[25th]]","v":284110.2},{"$f":"(((AAMC_Raw_Data_for_FY22[[#This Row],[Median]]-AAMC_Raw_Data_for_FY22[[#This Row],[25th]])/25)*15) + AAMC_Raw_Data_for_FY22[[#This Row],[25th]]","v":308252.79999999999},{"$f":"(((AAMC_Raw_Data_for_FY22[[#This Row],[Median]]-AAMC_Raw_Data_for_FY22[[#This Row],[25th]])/25)*20) + AAMC_Raw_Data_for_FY22[[#This Row],[25th]]","v":332395.40000000002},356538,{"$f":"(((AAMC_Raw_Data_for_FY22[[#This Row],[75th]]-AAMC_Raw_Data_for_FY22[[#This Row],[Median]])/25)*5) + AAMC_Raw_Data_for_FY22[[#This Row],[Median]]","v":394438},{"$f":"(((AAMC_Raw_Data_for_FY22[[#This Row],[75th]]-AAMC_Raw_Data_for_FY22[[#This Row],[Median]])/25)*10) + AAMC_Raw_Data_for_FY22[[#This Row],[Median]]","v":432338},{"$f":"(((AAMC_Raw_Data_for_FY22[[#This Row],[75th]]-AAMC_Raw_Data_for_FY22[[#This Row],[Median]])/25)*15) + AAMC_Raw_Data_for_FY22[[#This Row],[Median]]","v":470238},{"$f":"(((AAMC_Raw_Data_for_FY22[[#This Row],[75th]]-AAMC_Raw_Data_for_FY22[[#This Row],[Median]])/25)*20) + AAMC_Raw_Data_for_FY22[[#This Row],[Median]]","v":508138},546038,{"$f":"(((AAMC_Raw_Data_for_FY22[[#This Row],[75th]]-AAMC_Raw_Data_for_FY22[[#This Row],[Median]])/25)*30) + AAMC_Raw_Data_for_FY22[[#This Row],[Median]]","v":583938},{"$f":"(((AAMC_Raw_Data_for_FY22[[#This Row],[75th]]-AAMC_Raw_Data_for_FY22[[#This Row],[Median]])/25)*35) + AAMC_Raw_Data_for_FY22[[#This Row],[Median]]","v":621838},{"$f":"(((AAMC_Raw_Data_for_FY22[[#This Row],[75th]]-AAMC_Raw_Data_for_FY22[[#This Row],[Median]])/25)*40) + AAMC_Raw_Data_for_FY22[[#This Row],[Median]]","v":659738}]
[{"$f":"AAMC_Raw_Data_for_FY22[[#This Row],[Source]]&AAMC_Raw_Data_for_FY22[[#This Row],[Type]]&AAMC_Raw_Data_for_FY22[[#This Row],[School Subset]]&AAMC_Raw_Data_for_FY22[[#This Row],[Rank]]&AAMC_Raw_Data_for_FY22[[#This Row],[Degree]]&AAMC_Raw_Data_for_FY22[[#This Row],[Department / Specialty]]&\"L\"","v":"AAMCAcademicAllChairMDOther Basic SciencesL"},"Other Basic Sciences",1,"AAMC","Academic","All","Chair","MD","2021-2022",271892,{"$f":"(((AAMC_Raw_Data_for_FY22[[#This Row],[Median]]-AAMC_Raw_Data_for_FY22[[#This Row],[25th]])/25)*5) + AAMC_Raw_Data_for_FY22[[#This Row],[25th]]","v":294119.59999999998},{"$f":"(((AAMC_Raw_Data_for_FY22[[#This Row],[Median]]-AAMC_Raw_Data_for_FY22[[#This Row],[25th]])/25)*10) + AAMC_Raw_Data_for_FY22[[#This Row],[25th]]","v":316347.2},{"$f":"(((AAMC_Raw_Data_for_FY22[[#This Row],[Median]]-AAMC_Raw_Data_for_FY22[[#This Row],[25th]])/25)*15) + AAMC_Raw_Data_for_FY22[[#This Row],[25th]]","v":338574.8},{"$f":"(((AAMC_Raw_Data_for_FY22[[#This Row],[Median]]-AAMC_Raw_Data_for_FY22[[#This Row],[25th]])/25)*20) + AAMC_Raw_Data_for_FY22[[#This Row],[25th]]","v":360802.4},383030,{"$f":"(((AAMC_Raw_Data_for_FY22[[#This Row],[75th]]-AAMC_Raw_Data_for_FY22[[#This Row],[Median]])/25)*5) + AAMC_Raw_Data_for_FY22[[#This Row],[Median]]","v":399887.4},{"$f":"(((AAMC_Raw_Data_for_FY22[[#This Row],[75th]]-AAMC_Raw_Data_for_FY22[[#This Row],[Median]])/25)*10) + AAMC_Raw_Data_for_FY22[[#This Row],[Median]]","v":416744.8},{"$f":"(((AAMC_Raw_Data_for_FY22[[#This Row],[75th]]-AAMC_Raw_Data_for_FY22[[#This Row],[Median]])/25)*15) + AAMC_Raw_Data_for_FY22[[#This Row],[Median]]","v":433602.2},{"$f":"(((AAMC_Raw_Data_for_FY22[[#This Row],[75th]]-AAMC_Raw_Data_for_FY22[[#This Row],[Median]])/25)*20) + AAMC_Raw_Data_for_FY22[[#This Row],[Median]]","v":450459.6},467317,{"$f":"(((AAMC_Raw_Data_for_FY22[[#This Row],[75th]]-AAMC_Raw_Data_for_FY22[[#This Row],[Median]])/25)*30) + AAMC_Raw_Data_for_FY22[[#This Row],[Median]]","v":484174.4},{"$f":"(((AAMC_Raw_Data_for_FY22[[#This Row],[75th]]-AAMC_Raw_Data_for_FY22[[#This Row],[Median]])/25)*35) + AAMC_Raw_Data_for_FY22[[#This Row],[Median]]","v":501031.8},{"$f":"(((AAMC_Raw_Data_for_FY22[[#This Row],[75th]]-AAMC_Raw_Data_for_FY22[[#This Row],[Median]])/25)*40) + AAMC_Raw_Data_for_FY22[[#This Row],[Median]]","v":517889.2}]
[{"$f":"AAMC_Raw_Data_for_FY22[[#This Row],[Source]]&AAMC_Raw_Data_for_FY22[[#This Row],[Type]]&AAMC_Raw_Data_for_FY22[[#This Row],[School Subset]]&AAMC_Raw_Data_for_FY22[[#This Row],[Rank]]&AAMC_Raw_Data_for_FY22[[#This Row],[Degree]]&AAMC_Raw_Data_for_FY22[[#This Row],[Department / Specialty]]&\"L\"","v":"AAMCAcademicPrivateInstructorMDBasic Sciences TotalL"},"Basic Sciences Total",5,"AAMC","Academic","Private","Instructor","MD","2021-2022",70000,{"$f":"(((AAMC_Raw_Data_for_FY22[[#This Row],[Median]]-AAMC_Raw_Data_for_FY22[[#This Row],[25th]])/25)*5) + AAMC_Raw_Data_for_FY22[[#This Row],[25th]]","v":71793.8},{"$f":"(((AAMC_Raw_Data_for_FY22[[#This Row],[Median]]-AAMC_Raw_Data_for_FY22[[#This Row],[25th]])/25)*10) + AAMC_Raw_Data_for_FY22[[#This Row],[25th]]","v":73587.600000000006},{"$f":"(((AAMC_Raw_Data_for_FY22[[#This Row],[Median]]-AAMC_Raw_Data_for_FY22[[#This Row],[25th]])/25)*15) + AAMC_Raw_Data_for_FY22[[#This Row],[25th]]","v":75381.399999999994},{"$f":"(((AAMC_Raw_Data_for_FY22[[#This Row],[Median]]-AAMC_Raw_Data_for_FY22[[#This Row],[25th]])/25)*20) + AAMC_Raw_Data_for_FY22[[#This Row],[25th]]","v":77175.199999999997},78969,{"$f":"(((AAMC_Raw_Data_for_FY22[[#This Row],[75th]]-AAMC_Raw_Data_for_FY22[[#This Row],[Median]])/25)*5) + AAMC_Raw_Data_for_FY22[[#This Row],[Median]]","v":87605.8},{"$f":"(((AAMC_Raw_Data_for_FY22[[#This Row],[75th]]-AAMC_Raw_Data_for_FY22[[#This Row],[Median]])/25)*10) + AAMC_Raw_Data_for_FY22[[#This Row],[Median]]","v":96242.6},{"$f":"(((AAMC_Raw_Data_for_FY22[[#This Row],[75th]]-AAMC_Raw_Data_for_FY22[[#This Row],[Median]])/25)*15) + AAMC_Raw_Data_for_FY22[[#This Row],[Median]]","v":104879.4},{"$f":"(((AAMC_Raw_Data_for_FY22[[#This Row],[75th]]-AAMC_Raw_Data_for_FY22[[#This Row],[Median]])/25)*20) + AAMC_Raw_Data_for_FY22[[#This Row],[Median]]","v":113516.2},122153,{"$f":"(((AAMC_Raw_Data_for_FY22[[#This Row],[75th]]-AAMC_Raw_Data_for_FY22[[#This Row],[Median]])/25)*30) + AAMC_Raw_Data_for_FY22[[#This Row],[Median]]","v":130789.79999999999},{"$f":"(((AAMC_Raw_Data_for_FY22[[#This Row],[75th]]-AAMC_Raw_Data_for_FY22[[#This Row],[Median]])/25)*35) + AAMC_Raw_Data_for_FY22[[#This Row],[Median]]","v":139426.6},{"$f":"(((AAMC_Raw_Data_for_FY22[[#This Row],[75th]]-AAMC_Raw_Data_for_FY22[[#This Row],[Median]])/25)*40) + AAMC_Raw_Data_for_FY22[[#This Row],[Median]]","v":148063.4}]
[{"$f":"AAMC_Raw_Data_for_FY22[[#This Row],[Source]]&AAMC_Raw_Data_for_FY22[[#This Row],[Type]]&AAMC_Raw_Data_for_FY22[[#This Row],[School Subset]]&AAMC_Raw_Data_for_FY22[[#This Row],[Rank]]&AAMC_Raw_Data_for_FY22[[#This Row],[Degree]]&AAMC_Raw_Data_for_FY22[[#This Row],[Department / Specialty]]&\"L\"","v":"AAMCAcademicPrivateAssistantMDBasic Sciences TotalL"},"Basic Sciences Total",4,"AAMC","Academic","Private","Assistant","MD","2021-2022",94672,{"$f":"(((AAMC_Raw_Data_for_FY22[[#This Row],[Median]]-AAMC_Raw_Data_for_FY22[[#This Row],[25th]])/25)*5) + AAMC_Raw_Data_for_FY22[[#This Row],[25th]]","v":100513.60000000001},{"$f":"(((AAMC_Raw_Data_for_FY22[[#This Row],[Median]]-AAMC_Raw_Data_for_FY22[[#This Row],[25th]])/25)*10) + AAMC_Raw_Data_for_FY22[[#This Row],[25th]]","v":106355.2},{"$f":"(((AAMC_Raw_Data_for_FY22[[#This Row],[Median]]-AAMC_Raw_Data_for_FY22[[#This Row],[25th]])/25)*15) + AAMC_Raw_Data_for_FY22[[#This Row],[25th]]","v":112196.8},{"$f":"(((AAMC_Raw_Data_for_FY22[[#This Row],[Median]]-AAMC_Raw_Data_for_FY22[[#This Row],[25th]])/25)*20) + AAMC_Raw_Data_for_FY22[[#This Row],[25th]]","v":118038.39999999999},123880,{"$f":"(((AAMC_Raw_Data_for_FY22[[#This Row],[75th]]-AAMC_Raw_Data_for_FY22[[#This Row],[Median]])/25)*5) + AAMC_Raw_Data_for_FY22[[#This Row],[Median]]","v":132807.79999999999},{"$f":"(((AAMC_Raw_Data_for_FY22[[#This Row],[75th]]-AAMC_Raw_Data_for_FY22[[#This Row],[Median]])/25)*10) + AAMC_Raw_Data_for_FY22[[#This Row],[Median]]","v":141735.6},{"$f":"(((AAMC_Raw_Data_for_FY22[[#This Row],[75th]]-AAMC_Raw_Data_for_FY22[[#This Row],[Median]])/25)*15) + AAMC_Raw_Data_for_FY22[[#This Row],[Median]]","v":150663.4},{"$f":"(((AAMC_Raw_Data_for_FY22[[#This Row],[75th]]-AAMC_Raw_Data_for_FY22[[#This Row],[Median]])/25)*20) + AAMC_Raw_Data_for_FY22[[#This Row],[Median]]","v":159591.20000000001},168519,{"$f":"(((AAMC_Raw_Data_for_FY22[[#This Row],[75th]]-AAMC_Raw_Data_for_FY22[[#This Row],[Median]])/25)*30) + AAMC_Raw_Data_for_FY22[[#This Row],[Median]]","v":177446.8},{"$f":"(((AAMC_Raw_Data_for_FY22[[#This Row],[75th]]-AAMC_Raw_Data_for_FY22[[#This Row],[Median]])/25)*35) + AAMC_Raw_Data_for_FY22[[#This Row],[Median]]","v":186374.6},{"$f":"(((AAMC_Raw_Data_for_FY22[[#This Row],[75th]]-AAMC_Raw_Data_for_FY22[[#This Row],[Median]])/25)*40) + AAMC_Raw_Data_for_FY22[[#This Row],[Median]]","v":195302.39999999999}]
[{"$f":"AAMC_Raw_Data_for_FY22[[#This Row],[Source]]&AAMC_Raw_Data_for_FY22[[#This Row],[Type]]&AAMC_Raw_Data_for_FY22[[#This Row],[School Subset]]&AAMC_Raw_Data_for_FY22[[#This Row],[Rank]]&AAMC_Raw_Data_for_FY22[[#This Row],[Degree]]&AAMC_Raw_Data_for_FY22[[#This Row],[Department / Specialty]]&\"L\"","v":"AAMCAcademicPrivateAssociateMDBasic Sciences TotalL"},"Basic Sciences Total",3,"AAMC","Academic","Private","Associate","MD","2021-2022",128069,{"$f":"(((AAMC_Raw_Data_for_FY22[[#This Row],[Median]]-AAMC_Raw_Data_for_FY22[[#This Row],[25th]])/25)*5) + AAMC_Raw_Data_for_FY22[[#This Row],[25th]]","v":134455.20000000001},{"$f":"(((AAMC_Raw_Data_for_FY22[[#This Row],[Median]]-AAMC_Raw_Data_for_FY22[[#This Row],[25th]])/25)*10) + AAMC_Raw_Data_for_FY22[[#This Row],[25th]]","v":140841.4},{"$f":"(((AAMC_Raw_Data_for_FY22[[#This Row],[Median]]-AAMC_Raw_Data_for_FY22[[#This Row],[25th]])/25)*15) + AAMC_Raw_Data_for_FY22[[#This Row],[25th]]","v":147227.6},{"$f":"(((AAMC_Raw_Data_for_FY22[[#This Row],[Median]]-AAMC_Raw_Data_for_FY22[[#This Row],[25th]])/25)*20) + AAMC_Raw_Data_for_FY22[[#This Row],[25th]]","v":153613.79999999999},160000,{"$f":"(((AAMC_Raw_Data_for_FY22[[#This Row],[75th]]-AAMC_Raw_Data_for_FY22[[#This Row],[Median]])/25)*5) + AAMC_Raw_Data_for_FY22[[#This Row],[Median]]","v":167096.79999999999},{"$f":"(((AAMC_Raw_Data_for_FY22[[#This Row],[75th]]-AAMC_Raw_Data_for_FY22[[#This Row],[Median]])/25)*10) + AAMC_Raw_Data_for_FY22[[#This Row],[Median]]","v":174193.6},{"$f":"(((AAMC_Raw_Data_for_FY22[[#This Row],[75th]]-AAMC_Raw_Data_for_FY22[[#This Row],[Median]])/25)*15) + AAMC_Raw_Data_for_FY22[[#This Row],[Median]]","v":181290.4},{"$f":"(((AAMC_Raw_Data_for_FY22[[#This Row],[75th]]-AAMC_Raw_Data_for_FY22[[#This Row],[Median]])/25)*20) + AAMC_Raw_Data_for_FY22[[#This Row],[Median]]","v":188387.20000000001},195484,{"$f":"(((AAMC_Raw_Data_for_FY22[[#This Row],[75th]]-AAMC_Raw_Data_for_FY22[[#This Row],[Median]])/25)*30) + AAMC_Raw_Data_for_FY22[[#This Row],[Median]]","v":202580.8},{"$f":"(((AAMC_Raw_Data_for_FY22[[#This Row],[75th]]-AAMC_Raw_Data_for_FY22[[#This Row],[Median]])/25)*35) + AAMC_Raw_Data_for_FY22[[#This Row],[Median]]","v":209677.6},{"$f":"(((AAMC_Raw_Data_for_FY22[[#This Row],[75th]]-AAMC_Raw_Data_for_FY22[[#This Row],[Median]])/25)*40) + AAMC_Raw_Data_for_FY22[[#This Row],[Median]]","v":216774.39999999999}]
[{"$f":"AAMC_Raw_Data_for_FY22[[#This Row],[Source]]&AAMC_Raw_Data_for_FY22[[#This Row],[Type]]&AAMC_Raw_Data_for_FY22[[#This Row],[School Subset]]&AAMC_Raw_Data_for_FY22[[#This Row],[Rank]]&AAMC_Raw_Data_for_FY22[[#This Row],[Degree]]&AAMC_Raw_Data_for_FY22[[#This Row],[Department / Specialty]]&\"L\"","v":"AAMCAcademicPrivateProfessorMDBasic Sciences TotalL"},"Basic Sciences Total",2,"AAMC","Academic","Private","Professor","MD","2021-2022",193263,{"$f":"(((AAMC_Raw_Data_for_FY22[[#This Row],[Median]]-AAMC_Raw_Data_for_FY22[[#This Row],[25th]])/25)*5) + AAMC_Raw_Data_for_FY22[[#This Row],[25th]]","v":203174.6},{"$f":"(((AAMC_Raw_Data_for_FY22[[#This Row],[Median]]-AAMC_Raw_Data_for_FY22[[#This Row],[25th]])/25)*10) + AAMC_Raw_Data_for_FY22[[#This Row],[25th]]","v":213086.2},{"$f":"(((AAMC_Raw_Data_for_FY22[[#This Row],[Median]]-AAMC_Raw_Data_for_FY22[[#This Row],[25th]])/25)*15) + AAMC_Raw_Data_for_FY22[[#This Row],[25th]]","v":222997.8},{"$f":"(((AAMC_Raw_Data_for_FY22[[#This Row],[Median]]-AAMC_Raw_Data_for_FY22[[#This Row],[25th]])/25)*20) + AAMC_Raw_Data_for_FY22[[#This Row],[25th]]","v":232909.4},242821,{"$f":"(((AAMC_Raw_Data_for_FY22[[#This Row],[75th]]-AAMC_Raw_Data_for_FY22[[#This Row],[Median]])/25)*5) + AAMC_Raw_Data_for_FY22[[#This Row],[Median]]","v":255823.4},{"$f":"(((AAMC_Raw_Data_for_FY22[[#This Row],[75th]]-AAMC_Raw_Data_for_FY22[[#This Row],[Median]])/25)*10) + AAMC_Raw_Data_for_FY22[[#This Row],[Median]]","v":268825.8},{"$f":"(((AAMC_Raw_Data_for_FY22[[#This Row],[75th]]-AAMC_Raw_Data_for_FY22[[#This Row],[Median]])/25)*15) + AAMC_Raw_Data_for_FY22[[#This Row],[Median]]","v":281828.2},{"$f":"(((AAMC_Raw_Data_for_FY22[[#This Row],[75th]]-AAMC_Raw_Data_for_FY22[[#This Row],[Median]])/25)*20) + AAMC_Raw_Data_for_FY22[[#This Row],[Median]]","v":294830.59999999998},307833,{"$f":"(((AAMC_Raw_Data_for_FY22[[#This Row],[75th]]-AAMC_Raw_Data_for_FY22[[#This Row],[Median]])/25)*30) + AAMC_Raw_Data_for_FY22[[#This Row],[Median]]","v":320835.40000000002},{"$f":"(((AAMC_Raw_Data_for_FY22[[#This Row],[75th]]-AAMC_Raw_Data_for_FY22[[#This Row],[Median]])/25)*35) + AAMC_Raw_Data_for_FY22[[#This Row],[Median]]","v":333837.8},{"$f":"(((AAMC_Raw_Data_for_FY22[[#This Row],[75th]]-AAMC_Raw_Data_for_FY22[[#This Row],[Median]])/25)*40) + AAMC_Raw_Data_for_FY22[[#This Row],[Median]]","v":346840.2}]
[{"$f":"AAMC_Raw_Data_for_FY22[[#This Row],[Source]]&AAMC_Raw_Data_for_FY22[[#This Row],[Type]]&AAMC_Raw_Data_for_FY22[[#This Row],[School Subset]]&AAMC_Raw_Data_for_FY22[[#This Row],[Rank]]&AAMC_Raw_Data_for_FY22[[#This Row],[Degree]]&AAMC_Raw_Data_for_FY22[[#This Row],[Department / Specialty]]&\"L\"","v":"AAMCAcademicPrivateChiefMDBasic Sciences TotalL"},"Basic Sciences Total",6,"AAMC","Academic","Private","Chief","MD","2021-2022",255552,{"$f":"(((AAMC_Raw_Data_for_FY22[[#This Row],[Median]]-AAMC_Raw_Data_for_FY22[[#This Row],[25th]])/25)*5) + AAMC_Raw_Data_for_FY22[[#This Row],[25th]]","v":264685.59999999998},{"$f":"(((AAMC_Raw_Data_for_FY22[[#This Row],[Median]]-AAMC_Raw_Data_for_FY22[[#This Row],[25th]])/25)*10) + AAMC_Raw_Data_for_FY22[[#This Row],[25th]]","v":273819.2},{"$f":"(((AAMC_Raw_Data_for_FY22[[#This Row],[Median]]-AAMC_Raw_Data_for_FY22[[#This Row],[25th]])/25)*15) + AAMC_Raw_Data_for_FY22[[#This Row],[25th]]","v":282952.8},{"$f":"(((AAMC_Raw_Data_for_FY22[[#This Row],[Median]]-AAMC_Raw_Data_for_FY22[[#This Row],[25th]])/25)*20) + AAMC_Raw_Data_for_FY22[[#This Row],[25th]]","v":292086.40000000002},301220,{"$f":"(((AAMC_Raw_Data_for_FY22[[#This Row],[75th]]-AAMC_Raw_Data_for_FY22[[#This Row],[Median]])/25)*5) + AAMC_Raw_Data_for_FY22[[#This Row],[Median]]","v":322470.2},{"$f":"(((AAMC_Raw_Data_for_FY22[[#This Row],[75th]]-AAMC_Raw_Data_for_FY22[[#This Row],[Median]])/25)*10) + AAMC_Raw_Data_for_FY22[[#This Row],[Median]]","v":343720.4},{"$f":"(((AAMC_Raw_Data_for_FY22[[#This Row],[75th]]-AAMC_Raw_Data_for_FY22[[#This Row],[Median]])/25)*15) + AAMC_Raw_Data_for_FY22[[#This Row],[Median]]","v":364970.6},{"$f":"(((AAMC_Raw_Data_for_FY22[[#This Row],[75th]]-AAMC_Raw_Data_for_FY22[[#This Row],[Median]])/25)*20) + AAMC_Raw_Data_for_FY22[[#This Row],[Median]]","v":386220.79999999999},407471,{"$f":"(((AAMC_Raw_Data_for_FY22[[#This Row],[75th]]-AAMC_Raw_Data_for_FY22[[#This Row],[Median]])/25)*30) + AAMC_Raw_Data_for_FY22[[#This Row],[Median]]","v":428721.2},{"$f":"(((AAMC_Raw_Data_for_FY22[[#This Row],[75th]]-AAMC_Raw_Data_for_FY22[[#This Row],[Median]])/25)*35) + AAMC_Raw_Data_for_FY22[[#This Row],[Median]]","v":449971.4},{"$f":"(((AAMC_Raw_Data_for_FY22[[#This Row],[75th]]-AAMC_Raw_Data_for_FY22[[#This Row],[Median]])/25)*40) + AAMC_Raw_Data_for_FY22[[#This Row],[Median]]","v":471221.6}]
[{"$f":"AAMC_Raw_Data_for_FY22[[#This Row],[Source]]&AAMC_Raw_Data_for_FY22[[#This Row],[Type]]&AAMC_Raw_Data_for_FY22[[#This Row],[School Subset]]&AAMC_Raw_Data_for_FY22[[#This Row],[Rank]]&AAMC_Raw_Data_for_FY22[[#This Row],[Degree]]&AAMC_Raw_Data_for_FY22[[#This Row],[Department / Specialty]]&\"L\"","v":"AAMCAcademicPrivateChairMDBasic Sciences TotalL"},"Basic Sciences Total",1,"AAMC","Academic","Private","Chair","MD","2021-2022",355541,{"$f":"(((AAMC_Raw_Data_for_FY22[[#This Row],[Median]]-AAMC_Raw_Data_for_FY22[[#This Row],[25th]])/25)*5) + AAMC_Raw_Data_for_FY22[[#This Row],[25th]]","v":375322.8},{"$f":"(((AAMC_Raw_Data_for_FY22[[#This Row],[Median]]-AAMC_Raw_Data_for_FY22[[#This Row],[25th]])/25)*10) + AAMC_Raw_Data_for_FY22[[#This Row],[25th]]","v":395104.6},{"$f":"(((AAMC_Raw_Data_for_FY22[[#This Row],[Median]]-AAMC_Raw_Data_for_FY22[[#This Row],[25th]])/25)*15) + AAMC_Raw_Data_for_FY22[[#This Row],[25th]]","v":414886.40000000002},{"$f":"(((AAMC_Raw_Data_for_FY22[[#This Row],[Median]]-AAMC_Raw_Data_for_FY22[[#This Row],[25th]])/25)*20) + AAMC_Raw_Data_for_FY22[[#This Row],[25th]]","v":434668.2},454450,{"$f":"(((AAMC_Raw_Data_for_FY22[[#This Row],[75th]]-AAMC_Raw_Data_for_FY22[[#This Row],[Median]])/25)*5) + AAMC_Raw_Data_for_FY22[[#This Row],[Median]]","v":477524},{"$f":"(((AAMC_Raw_Data_for_FY22[[#This Row],[75th]]-AAMC_Raw_Data_for_FY22[[#This Row],[Median]])/25)*10) + AAMC_Raw_Data_for_FY22[[#This Row],[Median]]","v":500598},{"$f":"(((AAMC_Raw_Data_for_FY22[[#This Row],[75th]]-AAMC_Raw_Data_for_FY22[[#This Row],[Median]])/25)*15) + AAMC_Raw_Data_for_FY22[[#This Row],[Median]]","v":523672},{"$f":"(((AAMC_Raw_Data_for_FY22[[#This Row],[75th]]-AAMC_Raw_Data_for_FY22[[#This Row],[Median]])/25)*20) + AAMC_Raw_Data_for_FY22[[#This Row],[Median]]","v":546746},569820,{"$f":"(((AAMC_Raw_Data_for_FY22[[#This Row],[75th]]-AAMC_Raw_Data_for_FY22[[#This Row],[Median]])/25)*30) + AAMC_Raw_Data_for_FY22[[#This Row],[Median]]","v":592894},{"$f":"(((AAMC_Raw_Data_for_FY22[[#This Row],[75th]]-AAMC_Raw_Data_for_FY22[[#This Row],[Median]])/25)*35) + AAMC_Raw_Data_for_FY22[[#This Row],[Median]]","v":615968},{"$f":"(((AAMC_Raw_Data_for_FY22[[#This Row],[75th]]-AAMC_Raw_Data_for_FY22[[#This Row],[Median]])/25)*40) + AAMC_Raw_Data_for_FY22[[#This Row],[Median]]","v":639042}]
[{"$f":"AAMC_Raw_Data_for_FY22[[#This Row],[Source]]&AAMC_Raw_Data_for_FY22[[#This Row],[Type]]&AAMC_Raw_Data_for_FY22[[#This Row],[School Subset]]&AAMC_Raw_Data_for_FY22[[#This Row],[Rank]]&AAMC_Raw_Data_for_FY22[[#This Row],[Degree]]&AAMC_Raw_Data_for_FY22[[#This Row],[Department / Specialty]]&\"L\"","v":"AAMCAcademicPrivateInstructorMDAnatomyL"},"Anatomy",5,"AAMC","Academic","Private","Instructor","MD","2021-2022",null,{"$f":"(((AAMC_Raw_Data_for_FY22[[#This Row],[Median]]-AAMC_Raw_Data_for_FY22[[#This Row],[25th]])/25)*5) + AAMC_Raw_Data_for_FY22[[#This Row],[25th]]","v":0},{"$f":"(((AAMC_Raw_Data_for_FY22[[#This Row],[Median]]-AAMC_Raw_Data_for_FY22[[#This Row],[25th]])/25)*10) + AAMC_Raw_Data_for_FY22[[#This Row],[25th]]","v":0},{"$f":"(((AAMC_Raw_Data_for_FY22[[#This Row],[Median]]-AAMC_Raw_Data_for_FY22[[#This Row],[25th]])/25)*15) + AAMC_Raw_Data_for_FY22[[#This Row],[25th]]","v":0},{"$f":"(((AAMC_Raw_Data_for_FY22[[#This Row],[Median]]-AAMC_Raw_Data_for_FY22[[#This Row],[25th]])/25)*20) + AAMC_Raw_Data_for_FY22[[#This Row],[25th]]","v":0},null,{"$f":"(((AAMC_Raw_Data_for_FY22[[#This Row],[75th]]-AAMC_Raw_Data_for_FY22[[#This Row],[Median]])/25)*5) + AAMC_Raw_Data_for_FY22[[#This Row],[Median]]","v":0},{"$f":"(((AAMC_Raw_Data_for_FY22[[#This Row],[75th]]-AAMC_Raw_Data_for_FY22[[#This Row],[Median]])/25)*10) + AAMC_Raw_Data_for_FY22[[#This Row],[Median]]","v":0},{"$f":"(((AAMC_Raw_Data_for_FY22[[#This Row],[75th]]-AAMC_Raw_Data_for_FY22[[#This Row],[Median]])/25)*15) + AAMC_Raw_Data_for_FY22[[#This Row],[Median]]","v":0},{"$f":"(((AAMC_Raw_Data_for_FY22[[#This Row],[75th]]-AAMC_Raw_Data_for_FY22[[#This Row],[Median]])/25)*20) + AAMC_Raw_Data_for_FY22[[#This Row],[Median]]","v":0},null,{"$f":"(((AAMC_Raw_Data_for_FY22[[#This Row],[75th]]-AAMC_Raw_Data_for_FY22[[#This Row],[Median]])/25)*30) + AAMC_Raw_Data_for_FY22[[#This Row],[Median]]","v":0},{"$f":"(((AAMC_Raw_Data_for_FY22[[#This Row],[75th]]-AAMC_Raw_Data_for_FY22[[#This Row],[Median]])/25)*35) + AAMC_Raw_Data_for_FY22[[#This Row],[Median]]","v":0},{"$f":"(((AAMC_Raw_Data_for_FY22[[#This Row],[75th]]-AAMC_Raw_Data_for_FY22[[#This Row],[Median]])/25)*40) + AAMC_Raw_Data_for_FY22[[#This Row],[Median]]","v":0}]
[{"$f":"AAMC_Raw_Data_for_FY22[[#This Row],[Source]]&AAMC_Raw_Data_for_FY22[[#This Row],[Type]]&AAMC_Raw_Data_for_FY22[[#This Row],[School Subset]]&AAMC_Raw_Data_for_FY22[[#This Row],[Rank]]&AAMC_Raw_Data_for_FY22[[#This Row],[Degree]]&AAMC_Raw_Data_for_FY22[[#This Row],[Department / Specialty]]&\"L\"","v":"AAMCAcademicPrivateAssistantMDAnatomyL"},"Anatomy",4,"AAMC","Academic","Private","Assistant","MD","2021-2022",92624,{"$f":"(((AAMC_Raw_Data_for_FY22[[#This Row],[Median]]-AAMC_Raw_Data_for_FY22[[#This Row],[25th]])/25)*5) + AAMC_Raw_Data_for_FY22[[#This Row],[25th]]","v":94525.4},{"$f":"(((AAMC_Raw_Data_for_FY22[[#This Row],[Median]]-AAMC_Raw_Data_for_FY22[[#This Row],[25th]])/25)*10) + AAMC_Raw_Data_for_FY22[[#This Row],[25th]]","v":96426.8},{"$f":"(((AAMC_Raw_Data_for_FY22[[#This Row],[Median]]-AAMC_Raw_Data_for_FY22[[#This Row],[25th]])/25)*15) + AAMC_Raw_Data_for_FY22[[#This Row],[25th]]","v":98328.2},{"$f":"(((AAMC_Raw_Data_for_FY22[[#This Row],[Median]]-AAMC_Raw_Data_for_FY22[[#This Row],[25th]])/25)*20) + AAMC_Raw_Data_for_FY22[[#This Row],[25th]]","v":100229.6},102131,{"$f":"(((AAMC_Raw_Data_for_FY22[[#This Row],[75th]]-AAMC_Raw_Data_for_FY22[[#This Row],[Median]])/25)*5) + AAMC_Raw_Data_for_FY22[[#This Row],[Median]]","v":104604.8},{"$f":"(((AAMC_Raw_Data_for_FY22[[#This Row],[75th]]-AAMC_Raw_Data_for_FY22[[#This Row],[Median]])/25)*10) + AAMC_Raw_Data_for_FY22[[#This Row],[Median]]","v":107078.6},{"$f":"(((AAMC_Raw_Data_for_FY22[[#This Row],[75th]]-AAMC_Raw_Data_for_FY22[[#This Row],[Median]])/25)*15) + AAMC_Raw_Data_for_FY22[[#This Row],[Median]]","v":109552.4},{"$f":"(((AAMC_Raw_Data_for_FY22[[#This Row],[75th]]-AAMC_Raw_Data_for_FY22[[#This Row],[Median]])/25)*20) + AAMC_Raw_Data_for_FY22[[#This Row],[Median]]","v":112026.2},114500,{"$f":"(((AAMC_Raw_Data_for_FY22[[#This Row],[75th]]-AAMC_Raw_Data_for_FY22[[#This Row],[Median]])/25)*30) + AAMC_Raw_Data_for_FY22[[#This Row],[Median]]","v":116973.8},{"$f":"(((AAMC_Raw_Data_for_FY22[[#This Row],[75th]]-AAMC_Raw_Data_for_FY22[[#This Row],[Median]])/25)*35) + AAMC_Raw_Data_for_FY22[[#This Row],[Median]]","v":119447.6},{"$f":"(((AAMC_Raw_Data_for_FY22[[#This Row],[75th]]-AAMC_Raw_Data_for_FY22[[#This Row],[Median]])/25)*40) + AAMC_Raw_Data_for_FY22[[#This Row],[Median]]","v":121921.4}]
[{"$f":"AAMC_Raw_Data_for_FY22[[#This Row],[Source]]&AAMC_Raw_Data_for_FY22[[#This Row],[Type]]&AAMC_Raw_Data_for_FY22[[#This Row],[School Subset]]&AAMC_Raw_Data_for_FY22[[#This Row],[Rank]]&AAMC_Raw_Data_for_FY22[[#This Row],[Degree]]&AAMC_Raw_Data_for_FY22[[#This Row],[Department / Specialty]]&\"L\"","v":"AAMCAcademicPrivateAssociateMDAnatomyL"},"Anatomy",3,"AAMC","Academic","Private","Associate","MD","2021-2022",null,{"$f":"(((AAMC_Raw_Data_for_FY22[[#This Row],[Median]]-AAMC_Raw_Data_for_FY22[[#This Row],[25th]])/25)*5) + AAMC_Raw_Data_for_FY22[[#This Row],[25th]]","v":0},{"$f":"(((AAMC_Raw_Data_for_FY22[[#This Row],[Median]]-AAMC_Raw_Data_for_FY22[[#This Row],[25th]])/25)*10) + AAMC_Raw_Data_for_FY22[[#This Row],[25th]]","v":0},{"$f":"(((AAMC_Raw_Data_for_FY22[[#This Row],[Median]]-AAMC_Raw_Data_for_FY22[[#This Row],[25th]])/25)*15) + AAMC_Raw_Data_for_FY22[[#This Row],[25th]]","v":0},{"$f":"(((AAMC_Raw_Data_for_FY22[[#This Row],[Median]]-AAMC_Raw_Data_for_FY22[[#This Row],[25th]])/25)*20) + AAMC_Raw_Data_for_FY22[[#This Row],[25th]]","v":0},null,{"$f":"(((AAMC_Raw_Data_for_FY22[[#This Row],[75th]]-AAMC_Raw_Data_for_FY22[[#This Row],[Median]])/25)*5) + AAMC_Raw_Data_for_FY22[[#This Row],[Median]]","v":0},{"$f":"(((AAMC_Raw_Data_for_FY22[[#This Row],[75th]]-AAMC_Raw_Data_for_FY22[[#This Row],[Median]])/25)*10) + AAMC_Raw_Data_for_FY22[[#This Row],[Median]]","v":0},{"$f":"(((AAMC_Raw_Data_for_FY22[[#This Row],[75th]]-AAMC_Raw_Data_for_FY22[[#This Row],[Median]])/25)*15) + AAMC_Raw_Data_for_FY22[[#This Row],[Median]]","v":0},{"$f":"(((AAMC_Raw_Data_for_FY22[[#This Row],[75th]]-AAMC_Raw_Data_for_FY22[[#This Row],[Median]])/25)*20) + AAMC_Raw_Data_for_FY22[[#This Row],[Median]]","v":0},null,{"$f":"(((AAMC_Raw_Data_for_FY22[[#This Row],[75th]]-AAMC_Raw_Data_for_FY22[[#This Row],[Median]])/25)*30) + AAMC_Raw_Data_for_FY22[[#This Row],[Median]]","v":0},{"$f":"(((AAMC_Raw_Data_for_FY22[[#This Row],[75th]]-AAMC_Raw_Data_for_FY22[[#This Row],[Median]])/25)*35) + AAMC_Raw_Data_for_FY22[[#This Row],[Median]]","v":0},{"$f":"(((AAMC_Raw_Data_for_FY22[[#This Row],[75th]]-AAMC_Raw_Data_for_FY22[[#This Row],[Median]])/25)*40) + AAMC_Raw_Data_for_FY22[[#This Row],[Median]]","v":0}]
[{"$f":"AAMC_Raw_Data_for_FY22[[#This Row],[Source]]&AAMC_Raw_Data_for_FY22[[#This Row],[Type]]&AAMC_Raw_Data_for_FY22[[#This Row],[School Subset]]&AAMC_Raw_Data_for_FY22[[#This Row],[Rank]]&AAMC_Raw_Data_for_FY22[[#This Row],[Degree]]&AAMC_Raw_Data_for_FY22[[#This Row],[Department / Specialty]]&\"L\"","v":"AAMCAcademicPrivateProfessorMDAnatomyL"},"Anatomy",2,"AAMC","Academic","Private","Professor","MD","2021-2022",153753,{"$f":"(((AAMC_Raw_Data_for_FY22[[#This Row],[Median]]-AAMC_Raw_Data_for_FY22[[#This Row],[25th]])/25)*5) + AAMC_Raw_Data_for_FY22[[#This Row],[25th]]","v":158389.4},{"$f":"(((AAMC_Raw_Data_for_FY22[[#This Row],[Median]]-AAMC_Raw_Data_for_FY22[[#This Row],[25th]])/25)*10) + AAMC_Raw_Data_for_FY22[[#This Row],[25th]]","v":163025.79999999999},{"$f":"(((AAMC_Raw_Data_for_FY22[[#This Row],[Median]]-AAMC_Raw_Data_for_FY22[[#This Row],[25th]])/25)*15) + AAMC_Raw_Data_for_FY22[[#This Row],[25th]]","v":167662.20000000001},{"$f":"(((AAMC_Raw_Data_for_FY22[[#This Row],[Median]]-AAMC_Raw_Data_for_FY22[[#This Row],[25th]])/25)*20) + AAMC_Raw_Data_for_FY22[[#This Row],[25th]]","v":172298.6},176935,{"$f":"(((AAMC_Raw_Data_for_FY22[[#This Row],[75th]]-AAMC_Raw_Data_for_FY22[[#This Row],[Median]])/25)*5) + AAMC_Raw_Data_for_FY22[[#This Row],[Median]]","v":179403.6},{"$f":"(((AAMC_Raw_Data_for_FY22[[#This Row],[75th]]-AAMC_Raw_Data_for_FY22[[#This Row],[Median]])/25)*10) + AAMC_Raw_Data_for_FY22[[#This Row],[Median]]","v":181872.2},{"$f":"(((AAMC_Raw_Data_for_FY22[[#This Row],[75th]]-AAMC_Raw_Data_for_FY22[[#This Row],[Median]])/25)*15) + AAMC_Raw_Data_for_FY22[[#This Row],[Median]]","v":184340.8},{"$f":"(((AAMC_Raw_Data_for_FY22[[#This Row],[75th]]-AAMC_Raw_Data_for_FY22[[#This Row],[Median]])/25)*20) + AAMC_Raw_Data_for_FY22[[#This Row],[Median]]","v":186809.4},189278,{"$f":"(((AAMC_Raw_Data_for_FY22[[#This Row],[75th]]-AAMC_Raw_Data_for_FY22[[#This Row],[Median]])/25)*30) + AAMC_Raw_Data_for_FY22[[#This Row],[Median]]","v":191746.6},{"$f":"(((AAMC_Raw_Data_for_FY22[[#This Row],[75th]]-AAMC_Raw_Data_for_FY22[[#This Row],[Median]])/25)*35) + AAMC_Raw_Data_for_FY22[[#This Row],[Median]]","v":194215.2},{"$f":"(((AAMC_Raw_Data_for_FY22[[#This Row],[75th]]-AAMC_Raw_Data_for_FY22[[#This Row],[Median]])/25)*40) + AAMC_Raw_Data_for_FY22[[#This Row],[Median]]","v":196683.8}]
[{"$f":"AAMC_Raw_Data_for_FY22[[#This Row],[Source]]&AAMC_Raw_Data_for_FY22[[#This Row],[Type]]&AAMC_Raw_Data_for_FY22[[#This Row],[School Subset]]&AAMC_Raw_Data_for_FY22[[#This Row],[Rank]]&AAMC_Raw_Data_for_FY22[[#This Row],[Degree]]&AAMC_Raw_Data_for_FY22[[#This Row],[Department / Specialty]]&\"L\"","v":"AAMCAcademicPrivateChiefMDAnatomyL"},"Anatomy",6,"AAMC","Academic","Private","Chief","MD","2021-2022",null,{"$f":"(((AAMC_Raw_Data_for_FY22[[#This Row],[Median]]-AAMC_Raw_Data_for_FY22[[#This Row],[25th]])/25)*5) + AAMC_Raw_Data_for_FY22[[#This Row],[25th]]","v":0},{"$f":"(((AAMC_Raw_Data_for_FY22[[#This Row],[Median]]-AAMC_Raw_Data_for_FY22[[#This Row],[25th]])/25)*10) + AAMC_Raw_Data_for_FY22[[#This Row],[25th]]","v":0},{"$f":"(((AAMC_Raw_Data_for_FY22[[#This Row],[Median]]-AAMC_Raw_Data_for_FY22[[#This Row],[25th]])/25)*15) + AAMC_Raw_Data_for_FY22[[#This Row],[25th]]","v":0},{"$f":"(((AAMC_Raw_Data_for_FY22[[#This Row],[Median]]-AAMC_Raw_Data_for_FY22[[#This Row],[25th]])/25)*20) + AAMC_Raw_Data_for_FY22[[#This Row],[25th]]","v":0},null,{"$f":"(((AAMC_Raw_Data_for_FY22[[#This Row],[75th]]-AAMC_Raw_Data_for_FY22[[#This Row],[Median]])/25)*5) + AAMC_Raw_Data_for_FY22[[#This Row],[Median]]","v":0},{"$f":"(((AAMC_Raw_Data_for_FY22[[#This Row],[75th]]-AAMC_Raw_Data_for_FY22[[#This Row],[Median]])/25)*10) + AAMC_Raw_Data_for_FY22[[#This Row],[Median]]","v":0},{"$f":"(((AAMC_Raw_Data_for_FY22[[#This Row],[75th]]-AAMC_Raw_Data_for_FY22[[#This Row],[Median]])/25)*15) + AAMC_Raw_Data_for_FY22[[#This Row],[Median]]","v":0},{"$f":"(((AAMC_Raw_Data_for_FY22[[#This Row],[75th]]-AAMC_Raw_Data_for_FY22[[#This Row],[Median]])/25)*20) + AAMC_Raw_Data_for_FY22[[#This Row],[Median]]","v":0},null,{"$f":"(((AAMC_Raw_Data_for_FY22[[#This Row],[75th]]-AAMC_Raw_Data_for_FY22[[#This Row],[Median]])/25)*30) + AAMC_Raw_Data_for_FY22[[#This Row],[Median]]","v":0},{"$f":"(((AAMC_Raw_Data_for_FY22[[#This Row],[75th]]-AAMC_Raw_Data_for_FY22[[#This Row],[Median]])/25)*35) + AAMC_Raw_Data_for_FY22[[#This Row],[Median]]","v":0},{"$f":"(((AAMC_Raw_Data_for_FY22[[#This Row],[75th]]-AAMC_Raw_Data_for_FY22[[#This Row],[Median]])/25)*40) + AAMC_Raw_Data_for_FY22[[#This Row],[Median]]","v":0}]
[{"$f":"AAMC_Raw_Data_for_FY22[[#This Row],[Source]]&AAMC_Raw_Data_for_FY22[[#This Row],[Type]]&AAMC_Raw_Data_for_FY22[[#This Row],[School Subset]]&AAMC_Raw_Data_for_FY22[[#This Row],[Rank]]&AAMC_Raw_Data_for_FY22[[#This Row],[Degree]]&AAMC_Raw_Data_for_FY22[[#This Row],[Department / Specialty]]&\"L\"","v":"AAMCAcademicPrivateInstructorMDBiochemistryL"},"Biochemistry",5,"AAMC","Academic","Private","Instructor","MD","2021-2022",null,{"$f":"(((AAMC_Raw_Data_for_FY22[[#This Row],[Median]]-AAMC_Raw_Data_for_FY22[[#This Row],[25th]])/25)*5) + AAMC_Raw_Data_for_FY22[[#This Row],[25th]]","v":0},{"$f":"(((AAMC_Raw_Data_for_FY22[[#This Row],[Median]]-AAMC_Raw_Data_for_FY22[[#This Row],[25th]])/25)*10) + AAMC_Raw_Data_for_FY22[[#This Row],[25th]]","v":0},{"$f":"(((AAMC_Raw_Data_for_FY22[[#This Row],[Median]]-AAMC_Raw_Data_for_FY22[[#This Row],[25th]])/25)*15) + AAMC_Raw_Data_for_FY22[[#This Row],[25th]]","v":0},{"$f":"(((AAMC_Raw_Data_for_FY22[[#This Row],[Median]]-AAMC_Raw_Data_for_FY22[[#This Row],[25th]])/25)*20) + AAMC_Raw_Data_for_FY22[[#This Row],[25th]]","v":0},null,{"$f":"(((AAMC_Raw_Data_for_FY22[[#This Row],[75th]]-AAMC_Raw_Data_for_FY22[[#This Row],[Median]])/25)*5) + AAMC_Raw_Data_for_FY22[[#This Row],[Median]]","v":0},{"$f":"(((AAMC_Raw_Data_for_FY22[[#This Row],[75th]]-AAMC_Raw_Data_for_FY22[[#This Row],[Median]])/25)*10) + AAMC_Raw_Data_for_FY22[[#This Row],[Median]]","v":0},{"$f":"(((AAMC_Raw_Data_for_FY22[[#This Row],[75th]]-AAMC_Raw_Data_for_FY22[[#This Row],[Median]])/25)*15) + AAMC_Raw_Data_for_FY22[[#This Row],[Median]]","v":0},{"$f":"(((AAMC_Raw_Data_for_FY22[[#This Row],[75th]]-AAMC_Raw_Data_for_FY22[[#This Row],[Median]])/25)*20) + AAMC_Raw_Data_for_FY22[[#This Row],[Median]]","v":0},null,{"$f":"(((AAMC_Raw_Data_for_FY22[[#This Row],[75th]]-AAMC_Raw_Data_for_FY22[[#This Row],[Median]])/25)*30) + AAMC_Raw_Data_for_FY22[[#This Row],[Median]]","v":0},{"$f":"(((AAMC_Raw_Data_for_FY22[[#This Row],[75th]]-AAMC_Raw_Data_for_FY22[[#This Row],[Median]])/25)*35) + AAMC_Raw_Data_for_FY22[[#This Row],[Median]]","v":0},{"$f":"(((AAMC_Raw_Data_for_FY22[[#This Row],[75th]]-AAMC_Raw_Data_for_FY22[[#This Row],[Median]])/25)*40) + AAMC_Raw_Data_for_FY22[[#This Row],[Median]]","v":0}]
[{"$f":"AAMC_Raw_Data_for_FY22[[#This Row],[Source]]&AAMC_Raw_Data_for_FY22[[#This Row],[Type]]&AAMC_Raw_Data_for_FY22[[#This Row],[School Subset]]&AAMC_Raw_Data_for_FY22[[#This Row],[Rank]]&AAMC_Raw_Data_for_FY22[[#This Row],[Degree]]&AAMC_Raw_Data_for_FY22[[#This Row],[Department / Specialty]]&\"L\"","v":"AAMCAcademicPrivateAssistantMDBiochemistryL"},"Biochemistry",4,"AAMC","Academic","Private","Assistant","MD","2021-2022",64454,{"$f":"(((AAMC_Raw_Data_for_FY22[[#This Row],[Median]]-AAMC_Raw_Data_for_FY22[[#This Row],[25th]])/25)*5) + AAMC_Raw_Data_for_FY22[[#This Row],[25th]]","v":65429.2},{"$f":"(((AAMC_Raw_Data_for_FY22[[#This Row],[Median]]-AAMC_Raw_Data_for_FY22[[#This Row],[25th]])/25)*10) + AAMC_Raw_Data_for_FY22[[#This Row],[25th]]","v":66404.399999999994},{"$f":"(((AAMC_Raw_Data_for_FY22[[#This Row],[Median]]-AAMC_Raw_Data_for_FY22[[#This Row],[25th]])/25)*15) + AAMC_Raw_Data_for_FY22[[#This Row],[25th]]","v":67379.600000000006},{"$f":"(((AAMC_Raw_Data_for_FY22[[#This Row],[Median]]-AAMC_Raw_Data_for_FY22[[#This Row],[25th]])/25)*20) + AAMC_Raw_Data_for_FY22[[#This Row],[25th]]","v":68354.8},69330,{"$f":"(((AAMC_Raw_Data_for_FY22[[#This Row],[75th]]-AAMC_Raw_Data_for_FY22[[#This Row],[Median]])/25)*5) + AAMC_Raw_Data_for_FY22[[#This Row],[Median]]","v":77618.8},{"$f":"(((AAMC_Raw_Data_for_FY22[[#This Row],[75th]]-AAMC_Raw_Data_for_FY22[[#This Row],[Median]])/25)*10) + AAMC_Raw_Data_for_FY22[[#This Row],[Median]]","v":85907.6},{"$f":"(((AAMC_Raw_Data_for_FY22[[#This Row],[75th]]-AAMC_Raw_Data_for_FY22[[#This Row],[Median]])/25)*15) + AAMC_Raw_Data_for_FY22[[#This Row],[Median]]","v":94196.4},{"$f":"(((AAMC_Raw_Data_for_FY22[[#This Row],[75th]]-AAMC_Raw_Data_for_FY22[[#This Row],[Median]])/25)*20) + AAMC_Raw_Data_for_FY22[[#This Row],[Median]]","v":102485.2},110774,{"$f":"(((AAMC_Raw_Data_for_FY22[[#This Row],[75th]]-AAMC_Raw_Data_for_FY22[[#This Row],[Median]])/25)*30) + AAMC_Raw_Data_for_FY22[[#This Row],[Median]]","v":119062.8},{"$f":"(((AAMC_Raw_Data_for_FY22[[#This Row],[75th]]-AAMC_Raw_Data_for_FY22[[#This Row],[Median]])/25)*35) + AAMC_Raw_Data_for_FY22[[#This Row],[Median]]","v":127351.6},{"$f":"(((AAMC_Raw_Data_for_FY22[[#This Row],[75th]]-AAMC_Raw_Data_for_FY22[[#This Row],[Median]])/25)*40) + AAMC_Raw_Data_for_FY22[[#This Row],[Median]]","v":135640.4}]
[{"$f":"AAMC_Raw_Data_for_FY22[[#This Row],[Source]]&AAMC_Raw_Data_for_FY22[[#This Row],[Type]]&AAMC_Raw_Data_for_FY22[[#This Row],[School Subset]]&AAMC_Raw_Data_for_FY22[[#This Row],[Rank]]&AAMC_Raw_Data_for_FY22[[#This Row],[Degree]]&AAMC_Raw_Data_for_FY22[[#This Row],[Department / Specialty]]&\"L\"","v":"AAMCAcademicPrivateAssociateMDBiochemistryL"},"Biochemistry",3,"AAMC","Academic","Private","Associate","MD","2021-2022",149500,{"$f":"(((AAMC_Raw_Data_for_FY22[[#This Row],[Median]]-AAMC_Raw_Data_for_FY22[[#This Row],[25th]])/25)*5) + AAMC_Raw_Data_for_FY22[[#This Row],[25th]]","v":151972.20000000001},{"$f":"(((AAMC_Raw_Data_for_FY22[[#This Row],[Median]]-AAMC_Raw_Data_for_FY22[[#This Row],[25th]])/25)*10) + AAMC_Raw_Data_for_FY22[[#This Row],[25th]]","v":154444.4},{"$f":"(((AAMC_Raw_Data_for_FY22[[#This Row],[Median]]-AAMC_Raw_Data_for_FY22[[#This Row],[25th]])/25)*15) + AAMC_Raw_Data_for_FY22[[#This Row],[25th]]","v":156916.6},{"$f":"(((AAMC_Raw_Data_for_FY22[[#This Row],[Median]]-AAMC_Raw_Data_for_FY22[[#This Row],[25th]])/25)*20) + AAMC_Raw_Data_for_FY22[[#This Row],[25th]]","v":159388.79999999999},161861,{"$f":"(((AAMC_Raw_Data_for_FY22[[#This Row],[75th]]-AAMC_Raw_Data_for_FY22[[#This Row],[Median]])/25)*5) + AAMC_Raw_Data_for_FY22[[#This Row],[Median]]","v":169627.2},{"$f":"(((AAMC_Raw_Data_for_FY22[[#This Row],[75th]]-AAMC_Raw_Data_for_FY22[[#This Row],[Median]])/25)*10) + AAMC_Raw_Data_for_FY22[[#This Row],[Median]]","v":177393.4},{"$f":"(((AAMC_Raw_Data_for_FY22[[#This Row],[75th]]-AAMC_Raw_Data_for_FY22[[#This Row],[Median]])/25)*15) + AAMC_Raw_Data_for_FY22[[#This Row],[Median]]","v":185159.6},{"$f":"(((AAMC_Raw_Data_for_FY22[[#This Row],[75th]]-AAMC_Raw_Data_for_FY22[[#This Row],[Median]])/25)*20) + AAMC_Raw_Data_for_FY22[[#This Row],[Median]]","v":192925.8},200692,{"$f":"(((AAMC_Raw_Data_for_FY22[[#This Row],[75th]]-AAMC_Raw_Data_for_FY22[[#This Row],[Median]])/25)*30) + AAMC_Raw_Data_for_FY22[[#This Row],[Median]]","v":208458.2},{"$f":"(((AAMC_Raw_Data_for_FY22[[#This Row],[75th]]-AAMC_Raw_Data_for_FY22[[#This Row],[Median]])/25)*35) + AAMC_Raw_Data_for_FY22[[#This Row],[Median]]","v":216224.4},{"$f":"(((AAMC_Raw_Data_for_FY22[[#This Row],[75th]]-AAMC_Raw_Data_for_FY22[[#This Row],[Median]])/25)*40) + AAMC_Raw_Data_for_FY22[[#This Row],[Median]]","v":223990.6}]
[{"$f":"AAMC_Raw_Data_for_FY22[[#This Row],[Source]]&AAMC_Raw_Data_for_FY22[[#This Row],[Type]]&AAMC_Raw_Data_for_FY22[[#This Row],[School Subset]]&AAMC_Raw_Data_for_FY22[[#This Row],[Rank]]&AAMC_Raw_Data_for_FY22[[#This Row],[Degree]]&AAMC_Raw_Data_for_FY22[[#This Row],[Department / Specialty]]&\"L\"","v":"AAMCAcademicPrivateProfessorMDBiochemistryL"},"Biochemistry",2,"AAMC","Academic","Private","Professor","MD","2021-2022",168081,{"$f":"(((AAMC_Raw_Data_for_FY22[[#This Row],[Median]]-AAMC_Raw_Data_for_FY22[[#This Row],[25th]])/25)*5) + AAMC_Raw_Data_for_FY22[[#This Row],[25th]]","v":180364.79999999999},{"$f":"(((AAMC_Raw_Data_for_FY22[[#This Row],[Median]]-AAMC_Raw_Data_for_FY22[[#This Row],[25th]])/25)*10) + AAMC_Raw_Data_for_FY22[[#This Row],[25th]]","v":192648.6},{"$f":"(((AAMC_Raw_Data_for_FY22[[#This Row],[Median]]-AAMC_Raw_Data_for_FY22[[#This Row],[25th]])/25)*15) + AAMC_Raw_Data_for_FY22[[#This Row],[25th]]","v":204932.4},{"$f":"(((AAMC_Raw_Data_for_FY22[[#This Row],[Median]]-AAMC_Raw_Data_for_FY22[[#This Row],[25th]])/25)*20) + AAMC_Raw_Data_for_FY22[[#This Row],[25th]]","v":217216.2},229500,{"$f":"(((AAMC_Raw_Data_for_FY22[[#This Row],[75th]]-AAMC_Raw_Data_for_FY22[[#This Row],[Median]])/25)*5) + AAMC_Raw_Data_for_FY22[[#This Row],[Median]]","v":242778.8},{"$f":"(((AAMC_Raw_Data_for_FY22[[#This Row],[75th]]-AAMC_Raw_Data_for_FY22[[#This Row],[Median]])/25)*10) + AAMC_Raw_Data_for_FY22[[#This Row],[Median]]","v":256057.60000000001},{"$f":"(((AAMC_Raw_Data_for_FY22[[#This Row],[75th]]-AAMC_Raw_Data_for_FY22[[#This Row],[Median]])/25)*15) + AAMC_Raw_Data_for_FY22[[#This Row],[Median]]","v":269336.40000000002},{"$f":"(((AAMC_Raw_Data_for_FY22[[#This Row],[75th]]-AAMC_Raw_Data_for_FY22[[#This Row],[Median]])/25)*20) + AAMC_Raw_Data_for_FY22[[#This Row],[Median]]","v":282615.2},295894,{"$f":"(((AAMC_Raw_Data_for_FY22[[#This Row],[75th]]-AAMC_Raw_Data_for_FY22[[#This Row],[Median]])/25)*30) + AAMC_Raw_Data_for_FY22[[#This Row],[Median]]","v":309172.8},{"$f":"(((AAMC_Raw_Data_for_FY22[[#This Row],[75th]]-AAMC_Raw_Data_for_FY22[[#This Row],[Median]])/25)*35) + AAMC_Raw_Data_for_FY22[[#This Row],[Median]]","v":322451.59999999998},{"$f":"(((AAMC_Raw_Data_for_FY22[[#This Row],[75th]]-AAMC_Raw_Data_for_FY22[[#This Row],[Median]])/25)*40) + AAMC_Raw_Data_for_FY22[[#This Row],[Median]]","v":335730.4}]
[{"$f":"AAMC_Raw_Data_for_FY22[[#This Row],[Source]]&AAMC_Raw_Data_for_FY22[[#This Row],[Type]]&AAMC_Raw_Data_for_FY22[[#This Row],[School Subset]]&AAMC_Raw_Data_for_FY22[[#This Row],[Rank]]&AAMC_Raw_Data_for_FY22[[#This Row],[Degree]]&AAMC_Raw_Data_for_FY22[[#This Row],[Department / Specialty]]&\"L\"","v":"AAMCAcademicPrivateChairMDBiochemistryL"},"Biochemistry",1,"AAMC","Academic","Private","Chair","MD","2021-2022",380998,{"$f":"(((AAMC_Raw_Data_for_FY22[[#This Row],[Median]]-AAMC_Raw_Data_for_FY22[[#This Row],[25th]])/25)*5) + AAMC_Raw_Data_for_FY22[[#This Row],[25th]]","v":382365.2},{"$f":"(((AAMC_Raw_Data_for_FY22[[#This Row],[Median]]-AAMC_Raw_Data_for_FY22[[#This Row],[25th]])/25)*10) + AAMC_Raw_Data_for_FY22[[#This Row],[25th]]","v":383732.4},{"$f":"(((AAMC_Raw_Data_for_FY22[[#This Row],[Median]]-AAMC_Raw_Data_for_FY22[[#This Row],[25th]])/25)*15) + AAMC_Raw_Data_for_FY22[[#This Row],[25th]]","v":385099.6},{"$f":"(((AAMC_Raw_Data_for_FY22[[#This Row],[Median]]-AAMC_Raw_Data_for_FY22[[#This Row],[25th]])/25)*20) + AAMC_Raw_Data_for_FY22[[#This Row],[25th]]","v":386466.8},387834,{"$f":"(((AAMC_Raw_Data_for_FY22[[#This Row],[75th]]-AAMC_Raw_Data_for_FY22[[#This Row],[Median]])/25)*5) + AAMC_Raw_Data_for_FY22[[#This Row],[Median]]","v":392849.8},{"$f":"(((AAMC_Raw_Data_for_FY22[[#This Row],[75th]]-AAMC_Raw_Data_for_FY22[[#This Row],[Median]])/25)*10) + AAMC_Raw_Data_for_FY22[[#This Row],[Median]]","v":397865.6},{"$f":"(((AAMC_Raw_Data_for_FY22[[#This Row],[75th]]-AAMC_Raw_Data_for_FY22[[#This Row],[Median]])/25)*15) + AAMC_Raw_Data_for_FY22[[#This Row],[Median]]","v":402881.4},{"$f":"(((AAMC_Raw_Data_for_FY22[[#This Row],[75th]]-AAMC_Raw_Data_for_FY22[[#This Row],[Median]])/25)*20) + AAMC_Raw_Data_for_FY22[[#This Row],[Median]]","v":407897.2},412913,{"$f":"(((AAMC_Raw_Data_for_FY22[[#This Row],[75th]]-AAMC_Raw_Data_for_FY22[[#This Row],[Median]])/25)*30) + AAMC_Raw_Data_for_FY22[[#This Row],[Median]]","v":417928.8},{"$f":"(((AAMC_Raw_Data_for_FY22[[#This Row],[75th]]-AAMC_Raw_Data_for_FY22[[#This Row],[Median]])/25)*35) + AAMC_Raw_Data_for_FY22[[#This Row],[Median]]","v":422944.6},{"$f":"(((AAMC_Raw_Data_for_FY22[[#This Row],[75th]]-AAMC_Raw_Data_for_FY22[[#This Row],[Median]])/25)*40) + AAMC_Raw_Data_for_FY22[[#This Row],[Median]]","v":427960.4}]
[{"$f":"AAMC_Raw_Data_for_FY22[[#This Row],[Source]]&AAMC_Raw_Data_for_FY22[[#This Row],[Type]]&AAMC_Raw_Data_for_FY22[[#This Row],[School Subset]]&AAMC_Raw_Data_for_FY22[[#This Row],[Rank]]&AAMC_Raw_Data_for_FY22[[#This Row],[Degree]]&AAMC_Raw_Data_for_FY22[[#This Row],[Department / Specialty]]&\"L\"","v":"AAMCAcademicPrivateAssistantMDBioethics/Medical HumanitiesL"},"Bioethics/Medical Humanities",4,"AAMC","Academic","Private","Assistant","MD","2021-2022",null,{"$f":"(((AAMC_Raw_Data_for_FY22[[#This Row],[Median]]-AAMC_Raw_Data_for_FY22[[#This Row],[25th]])/25)*5) + AAMC_Raw_Data_for_FY22[[#This Row],[25th]]","v":0},{"$f":"(((AAMC_Raw_Data_for_FY22[[#This Row],[Median]]-AAMC_Raw_Data_for_FY22[[#This Row],[25th]])/25)*10) + AAMC_Raw_Data_for_FY22[[#This Row],[25th]]","v":0},{"$f":"(((AAMC_Raw_Data_for_FY22[[#This Row],[Median]]-AAMC_Raw_Data_for_FY22[[#This Row],[25th]])/25)*15) + AAMC_Raw_Data_for_FY22[[#This Row],[25th]]","v":0},{"$f":"(((AAMC_Raw_Data_for_FY22[[#This Row],[Median]]-AAMC_Raw_Data_for_FY22[[#This Row],[25th]])/25)*20) + AAMC_Raw_Data_for_FY22[[#This Row],[25th]]","v":0},null,{"$f":"(((AAMC_Raw_Data_for_FY22[[#This Row],[75th]]-AAMC_Raw_Data_for_FY22[[#This Row],[Median]])/25)*5) + AAMC_Raw_Data_for_FY22[[#This Row],[Median]]","v":0},{"$f":"(((AAMC_Raw_Data_for_FY22[[#This Row],[75th]]-AAMC_Raw_Data_for_FY22[[#This Row],[Median]])/25)*10) + AAMC_Raw_Data_for_FY22[[#This Row],[Median]]","v":0},{"$f":"(((AAMC_Raw_Data_for_FY22[[#This Row],[75th]]-AAMC_Raw_Data_for_FY22[[#This Row],[Median]])/25)*15) + AAMC_Raw_Data_for_FY22[[#This Row],[Median]]","v":0},{"$f":"(((AAMC_Raw_Data_for_FY22[[#This Row],[75th]]-AAMC_Raw_Data_for_FY22[[#This Row],[Median]])/25)*20) + AAMC_Raw_Data_for_FY22[[#This Row],[Median]]","v":0},null,{"$f":"(((AAMC_Raw_Data_for_FY22[[#This Row],[75th]]-AAMC_Raw_Data_for_FY22[[#This Row],[Median]])/25)*30) + AAMC_Raw_Data_for_FY22[[#This Row],[Median]]","v":0},{"$f":"(((AAMC_Raw_Data_for_FY22[[#This Row],[75th]]-AAMC_Raw_Data_for_FY22[[#This Row],[Median]])/25)*35) + AAMC_Raw_Data_for_FY22[[#This Row],[Median]]","v":0},{"$f":"(((AAMC_Raw_Data_for_FY22[[#This Row],[75th]]-AAMC_Raw_Data_for_FY22[[#This Row],[Median]])/25)*40) + AAMC_Raw_Data_for_FY22[[#This Row],[Median]]","v":0}]
[{"$f":"AAMC_Raw_Data_for_FY22[[#This Row],[Source]]&AAMC_Raw_Data_for_FY22[[#This Row],[Type]]&AAMC_Raw_Data_for_FY22[[#This Row],[School Subset]]&AAMC_Raw_Data_for_FY22[[#This Row],[Rank]]&AAMC_Raw_Data_for_FY22[[#This Row],[Degree]]&AAMC_Raw_Data_for_FY22[[#This Row],[Department / Specialty]]&\"L\"","v":"AAMCAcademicPrivateProfessorMDBioethics/Medical HumanitiesL"},"Bioethics/Medical Humanities",2,"AAMC","Academic","Private","Professor","MD","2021-2022",249519,{"$f":"(((AAMC_Raw_Data_for_FY22[[#This Row],[Median]]-AAMC_Raw_Data_for_FY22[[#This Row],[25th]])/25)*5) + AAMC_Raw_Data_for_FY22[[#This Row],[25th]]","v":251198.6},{"$f":"(((AAMC_Raw_Data_for_FY22[[#This Row],[Median]]-AAMC_Raw_Data_for_FY22[[#This Row],[25th]])/25)*10) + AAMC_Raw_Data_for_FY22[[#This Row],[25th]]","v":252878.2},{"$f":"(((AAMC_Raw_Data_for_FY22[[#This Row],[Median]]-AAMC_Raw_Data_for_FY22[[#This Row],[25th]])/25)*15) + AAMC_Raw_Data_for_FY22[[#This Row],[25th]]","v":254557.8},{"$f":"(((AAMC_Raw_Data_for_FY22[[#This Row],[Median]]-AAMC_Raw_Data_for_FY22[[#This Row],[25th]])/25)*20) + AAMC_Raw_Data_for_FY22[[#This Row],[25th]]","v":256237.4},257917,{"$f":"(((AAMC_Raw_Data_for_FY22[[#This Row],[75th]]-AAMC_Raw_Data_for_FY22[[#This Row],[Median]])/25)*5) + AAMC_Raw_Data_for_FY22[[#This Row],[Median]]","v":262935.2},{"$f":"(((AAMC_Raw_Data_for_FY22[[#This Row],[75th]]-AAMC_Raw_Data_for_FY22[[#This Row],[Median]])/25)*10) + AAMC_Raw_Data_for_FY22[[#This Row],[Median]]","v":267953.40000000002},{"$f":"(((AAMC_Raw_Data_for_FY22[[#This Row],[75th]]-AAMC_Raw_Data_for_FY22[[#This Row],[Median]])/25)*15) + AAMC_Raw_Data_for_FY22[[#This Row],[Median]]","v":272971.59999999998},{"$f":"(((AAMC_Raw_Data_for_FY22[[#This Row],[75th]]-AAMC_Raw_Data_for_FY22[[#This Row],[Median]])/25)*20) + AAMC_Raw_Data_for_FY22[[#This Row],[Median]]","v":277989.8},283008,{"$f":"(((AAMC_Raw_Data_for_FY22[[#This Row],[75th]]-AAMC_Raw_Data_for_FY22[[#This Row],[Median]])/25)*30) + AAMC_Raw_Data_for_FY22[[#This Row],[Median]]","v":288026.2},{"$f":"(((AAMC_Raw_Data_for_FY22[[#This Row],[75th]]-AAMC_Raw_Data_for_FY22[[#This Row],[Median]])/25)*35) + AAMC_Raw_Data_for_FY22[[#This Row],[Median]]","v":293044.40000000002},{"$f":"(((AAMC_Raw_Data_for_FY22[[#This Row],[75th]]-AAMC_Raw_Data_for_FY22[[#This Row],[Median]])/25)*40) + AAMC_Raw_Data_for_FY22[[#This Row],[Median]]","v":298062.59999999998}]
[{"$f":"AAMC_Raw_Data_for_FY22[[#This Row],[Source]]&AAMC_Raw_Data_for_FY22[[#This Row],[Type]]&AAMC_Raw_Data_for_FY22[[#This Row],[School Subset]]&AAMC_Raw_Data_for_FY22[[#This Row],[Rank]]&AAMC_Raw_Data_for_FY22[[#This Row],[Degree]]&AAMC_Raw_Data_for_FY22[[#This Row],[Department / Specialty]]&\"L\"","v":"AAMCAcademicPrivateChiefMDBioethics/Medical HumanitiesL"},"Bioethics/Medical Humanities",6,"AAMC","Academic","Private","Chief","MD","2021-2022",null,{"$f":"(((AAMC_Raw_Data_for_FY22[[#This Row],[Median]]-AAMC_Raw_Data_for_FY22[[#This Row],[25th]])/25)*5) + AAMC_Raw_Data_for_FY22[[#This Row],[25th]]","v":0},{"$f":"(((AAMC_Raw_Data_for_FY22[[#This Row],[Median]]-AAMC_Raw_Data_for_FY22[[#This Row],[25th]])/25)*10) + AAMC_Raw_Data_for_FY22[[#This Row],[25th]]","v":0},{"$f":"(((AAMC_Raw_Data_for_FY22[[#This Row],[Median]]-AAMC_Raw_Data_for_FY22[[#This Row],[25th]])/25)*15) + AAMC_Raw_Data_for_FY22[[#This Row],[25th]]","v":0},{"$f":"(((AAMC_Raw_Data_for_FY22[[#This Row],[Median]]-AAMC_Raw_Data_for_FY22[[#This Row],[25th]])/25)*20) + AAMC_Raw_Data_for_FY22[[#This Row],[25th]]","v":0},null,{"$f":"(((AAMC_Raw_Data_for_FY22[[#This Row],[75th]]-AAMC_Raw_Data_for_FY22[[#This Row],[Median]])/25)*5) + AAMC_Raw_Data_for_FY22[[#This Row],[Median]]","v":0},{"$f":"(((AAMC_Raw_Data_for_FY22[[#This Row],[75th]]-AAMC_Raw_Data_for_FY22[[#This Row],[Median]])/25)*10) + AAMC_Raw_Data_for_FY22[[#This Row],[Median]]","v":0},{"$f":"(((AAMC_Raw_Data_for_FY22[[#This Row],[75th]]-AAMC_Raw_Data_for_FY22[[#This Row],[Median]])/25)*15) + AAMC_Raw_Data_for_FY22[[#This Row],[Median]]","v":0},{"$f":"(((AAMC_Raw_Data_for_FY22[[#This Row],[75th]]-AAMC_Raw_Data_for_FY22[[#This Row],[Median]])/25)*20) + AAMC_Raw_Data_for_FY22[[#This Row],[Median]]","v":0},null,{"$f":"(((AAMC_Raw_Data_for_FY22[[#This Row],[75th]]-AAMC_Raw_Data_for_FY22[[#This Row],[Median]])/25)*30) + AAMC_Raw_Data_for_FY22[[#This Row],[Median]]","v":0},{"$f":"(((AAMC_Raw_Data_for_FY22[[#This Row],[75th]]-AAMC_Raw_Data_for_FY22[[#This Row],[Median]])/25)*35) + AAMC_Raw_Data_for_FY22[[#This Row],[Median]]","v":0},{"$f":"(((AAMC_Raw_Data_for_FY22[[#This Row],[75th]]-AAMC_Raw_Data_for_FY22[[#This Row],[Median]])/25)*40) + AAMC_Raw_Data_for_FY22[[#This Row],[Median]]","v":0}]
[{"$f":"AAMC_Raw_Data_for_FY22[[#This Row],[Source]]&AAMC_Raw_Data_for_FY22[[#This Row],[Type]]&AAMC_Raw_Data_for_FY22[[#This Row],[School Subset]]&AAMC_Raw_Data_for_FY22[[#This Row],[Rank]]&AAMC_Raw_Data_for_FY22[[#This Row],[Degree]]&AAMC_Raw_Data_for_FY22[[#This Row],[Department / Specialty]]&\"L\"","v":"AAMCAcademicPrivateChairMDBioethics/Medical HumanitiesL"},"Bioethics/Medical Humanities",1,"AAMC","Academic","Private","Chair","MD","2021-2022",null,{"$f":"(((AAMC_Raw_Data_for_FY22[[#This Row],[Median]]-AAMC_Raw_Data_for_FY22[[#This Row],[25th]])/25)*5) + AAMC_Raw_Data_for_FY22[[#This Row],[25th]]","v":0},{"$f":"(((AAMC_Raw_Data_for_FY22[[#This Row],[Median]]-AAMC_Raw_Data_for_FY22[[#This Row],[25th]])/25)*10) + AAMC_Raw_Data_for_FY22[[#This Row],[25th]]","v":0},{"$f":"(((AAMC_Raw_Data_for_FY22[[#This Row],[Median]]-AAMC_Raw_Data_for_FY22[[#This Row],[25th]])/25)*15) + AAMC_Raw_Data_for_FY22[[#This Row],[25th]]","v":0},{"$f":"(((AAMC_Raw_Data_for_FY22[[#This Row],[Median]]-AAMC_Raw_Data_for_FY22[[#This Row],[25th]])/25)*20) + AAMC_Raw_Data_for_FY22[[#This Row],[25th]]","v":0},null,{"$f":"(((AAMC_Raw_Data_for_FY22[[#This Row],[75th]]-AAMC_Raw_Data_for_FY22[[#This Row],[Median]])/25)*5) + AAMC_Raw_Data_for_FY22[[#This Row],[Median]]","v":0},{"$f":"(((AAMC_Raw_Data_for_FY22[[#This Row],[75th]]-AAMC_Raw_Data_for_FY22[[#This Row],[Median]])/25)*10) + AAMC_Raw_Data_for_FY22[[#This Row],[Median]]","v":0},{"$f":"(((AAMC_Raw_Data_for_FY22[[#This Row],[75th]]-AAMC_Raw_Data_for_FY22[[#This Row],[Median]])/25)*15) + AAMC_Raw_Data_for_FY22[[#This Row],[Median]]","v":0},{"$f":"(((AAMC_Raw_Data_for_FY22[[#This Row],[75th]]-AAMC_Raw_Data_for_FY22[[#This Row],[Median]])/25)*20) + AAMC_Raw_Data_for_FY22[[#This Row],[Median]]","v":0},null,{"$f":"(((AAMC_Raw_Data_for_FY22[[#This Row],[75th]]-AAMC_Raw_Data_for_FY22[[#This Row],[Median]])/25)*30) + AAMC_Raw_Data_for_FY22[[#This Row],[Median]]","v":0},{"$f":"(((AAMC_Raw_Data_for_FY22[[#This Row],[75th]]-AAMC_Raw_Data_for_FY22[[#This Row],[Median]])/25)*35) + AAMC_Raw_Data_for_FY22[[#This Row],[Median]]","v":0},{"$f":"(((AAMC_Raw_Data_for_FY22[[#This Row],[75th]]-AAMC_Raw_Data_for_FY22[[#This Row],[Median]])/25)*40) + AAMC_Raw_Data_for_FY22[[#This Row],[Median]]","v":0}]
[{"$f":"AAMC_Raw_Data_for_FY22[[#This Row],[Source]]&AAMC_Raw_Data_for_FY22[[#This Row],[Type]]&AAMC_Raw_Data_for_FY22[[#This Row],[School Subset]]&AAMC_Raw_Data_for_FY22[[#This Row],[Rank]]&AAMC_Raw_Data_for_FY22[[#This Row],[Degree]]&AAMC_Raw_Data_for_FY22[[#This Row],[Department / Specialty]]&\"L\"","v":"AAMCAcademicPrivateInstructorMDBiomedical InformaticsL"},"Biomedical Informatics",5,"AAMC","Academic","Private","Instructor","MD","2021-2022",null,{"$f":"(((AAMC_Raw_Data_for_FY22[[#This Row],[Median]]-AAMC_Raw_Data_for_FY22[[#This Row],[25th]])/25)*5) + AAMC_Raw_Data_for_FY22[[#This Row],[25th]]","v":0},{"$f":"(((AAMC_Raw_Data_for_FY22[[#This Row],[Median]]-AAMC_Raw_Data_for_FY22[[#This Row],[25th]])/25)*10) + AAMC_Raw_Data_for_FY22[[#This Row],[25th]]","v":0},{"$f":"(((AAMC_Raw_Data_for_FY22[[#This Row],[Median]]-AAMC_Raw_Data_for_FY22[[#This Row],[25th]])/25)*15) + AAMC_Raw_Data_for_FY22[[#This Row],[25th]]","v":0},{"$f":"(((AAMC_Raw_Data_for_FY22[[#This Row],[Median]]-AAMC_Raw_Data_for_FY22[[#This Row],[25th]])/25)*20) + AAMC_Raw_Data_for_FY22[[#This Row],[25th]]","v":0},null,{"$f":"(((AAMC_Raw_Data_for_FY22[[#This Row],[75th]]-AAMC_Raw_Data_for_FY22[[#This Row],[Median]])/25)*5) + AAMC_Raw_Data_for_FY22[[#This Row],[Median]]","v":0},{"$f":"(((AAMC_Raw_Data_for_FY22[[#This Row],[75th]]-AAMC_Raw_Data_for_FY22[[#This Row],[Median]])/25)*10) + AAMC_Raw_Data_for_FY22[[#This Row],[Median]]","v":0},{"$f":"(((AAMC_Raw_Data_for_FY22[[#This Row],[75th]]-AAMC_Raw_Data_for_FY22[[#This Row],[Median]])/25)*15) + AAMC_Raw_Data_for_FY22[[#This Row],[Median]]","v":0},{"$f":"(((AAMC_Raw_Data_for_FY22[[#This Row],[75th]]-AAMC_Raw_Data_for_FY22[[#This Row],[Median]])/25)*20) + AAMC_Raw_Data_for_FY22[[#This Row],[Median]]","v":0},null,{"$f":"(((AAMC_Raw_Data_for_FY22[[#This Row],[75th]]-AAMC_Raw_Data_for_FY22[[#This Row],[Median]])/25)*30) + AAMC_Raw_Data_for_FY22[[#This Row],[Median]]","v":0},{"$f":"(((AAMC_Raw_Data_for_FY22[[#This Row],[75th]]-AAMC_Raw_Data_for_FY22[[#This Row],[Median]])/25)*35) + AAMC_Raw_Data_for_FY22[[#This Row],[Median]]","v":0},{"$f":"(((AAMC_Raw_Data_for_FY22[[#This Row],[75th]]-AAMC_Raw_Data_for_FY22[[#This Row],[Median]])/25)*40) + AAMC_Raw_Data_for_FY22[[#This Row],[Median]]","v":0}]
[{"$f":"AAMC_Raw_Data_for_FY22[[#This Row],[Source]]&AAMC_Raw_Data_for_FY22[[#This Row],[Type]]&AAMC_Raw_Data_for_FY22[[#This Row],[School Subset]]&AAMC_Raw_Data_for_FY22[[#This Row],[Rank]]&AAMC_Raw_Data_for_FY22[[#This Row],[Degree]]&AAMC_Raw_Data_for_FY22[[#This Row],[Department / Specialty]]&\"L\"","v":"AAMCAcademicPrivateAssistantMDBiomedical InformaticsL"},"Biomedical Informatics",4,"AAMC","Academic","Private","Assistant","MD","2021-2022",null,{"$f":"(((AAMC_Raw_Data_for_FY22[[#This Row],[Median]]-AAMC_Raw_Data_for_FY22[[#This Row],[25th]])/25)*5) + AAMC_Raw_Data_for_FY22[[#This Row],[25th]]","v":0},{"$f":"(((AAMC_Raw_Data_for_FY22[[#This Row],[Median]]-AAMC_Raw_Data_for_FY22[[#This Row],[25th]])/25)*10) + AAMC_Raw_Data_for_FY22[[#This Row],[25th]]","v":0},{"$f":"(((AAMC_Raw_Data_for_FY22[[#This Row],[Median]]-AAMC_Raw_Data_for_FY22[[#This Row],[25th]])/25)*15) + AAMC_Raw_Data_for_FY22[[#This Row],[25th]]","v":0},{"$f":"(((AAMC_Raw_Data_for_FY22[[#This Row],[Median]]-AAMC_Raw_Data_for_FY22[[#This Row],[25th]])/25)*20) + AAMC_Raw_Data_for_FY22[[#This Row],[25th]]","v":0},null,{"$f":"(((AAMC_Raw_Data_for_FY22[[#This Row],[75th]]-AAMC_Raw_Data_for_FY22[[#This Row],[Median]])/25)*5) + AAMC_Raw_Data_for_FY22[[#This Row],[Median]]","v":0},{"$f":"(((AAMC_Raw_Data_for_FY22[[#This Row],[75th]]-AAMC_Raw_Data_for_FY22[[#This Row],[Median]])/25)*10) + AAMC_Raw_Data_for_FY22[[#This Row],[Median]]","v":0},{"$f":"(((AAMC_Raw_Data_for_FY22[[#This Row],[75th]]-AAMC_Raw_Data_for_FY22[[#This Row],[Median]])/25)*15) + AAMC_Raw_Data_for_FY22[[#This Row],[Median]]","v":0},{"$f":"(((AAMC_Raw_Data_for_FY22[[#This Row],[75th]]-AAMC_Raw_Data_for_FY22[[#This Row],[Median]])/25)*20) + AAMC_Raw_Data_for_FY22[[#This Row],[Median]]","v":0},null,{"$f":"(((AAMC_Raw_Data_for_FY22[[#This Row],[75th]]-AAMC_Raw_Data_for_FY22[[#This Row],[Median]])/25)*30) + AAMC_Raw_Data_for_FY22[[#This Row],[Median]]","v":0},{"$f":"(((AAMC_Raw_Data_for_FY22[[#This Row],[75th]]-AAMC_Raw_Data_for_FY22[[#This Row],[Median]])/25)*35) + AAMC_Raw_Data_for_FY22[[#This Row],[Median]]","v":0},{"$f":"(((AAMC_Raw_Data_for_FY22[[#This Row],[75th]]-AAMC_Raw_Data_for_FY22[[#This Row],[Median]])/25)*40) + AAMC_Raw_Data_for_FY22[[#This Row],[Median]]","v":0}]
[{"$f":"AAMC_Raw_Data_for_FY22[[#This Row],[Source]]&AAMC_Raw_Data_for_FY22[[#This Row],[Type]]&AAMC_Raw_Data_for_FY22[[#This Row],[School Subset]]&AAMC_Raw_Data_for_FY22[[#This Row],[Rank]]&AAMC_Raw_Data_for_FY22[[#This Row],[Degree]]&AAMC_Raw_Data_for_FY22[[#This Row],[Department / Specialty]]&\"L\"","v":"AAMCAcademicPrivateAssociateMDBiomedical InformaticsL"},"Biomedical Informatics",3,"AAMC","Academic","Private","Associate","MD","2021-2022",195592,{"$f":"(((AAMC_Raw_Data_for_FY22[[#This Row],[Median]]-AAMC_Raw_Data_for_FY22[[#This Row],[25th]])/25)*5) + AAMC_Raw_Data_for_FY22[[#This Row],[25th]]","v":203179.8},{"$f":"(((AAMC_Raw_Data_for_FY22[[#This Row],[Median]]-AAMC_Raw_Data_for_FY22[[#This Row],[25th]])/25)*10) + AAMC_Raw_Data_for_FY22[[#This Row],[25th]]","v":210767.6},{"$f":"(((AAMC_Raw_Data_for_FY22[[#This Row],[Median]]-AAMC_Raw_Data_for_FY22[[#This Row],[25th]])/25)*15) + AAMC_Raw_Data_for_FY22[[#This Row],[25th]]","v":218355.4},{"$f":"(((AAMC_Raw_Data_for_FY22[[#This Row],[Median]]-AAMC_Raw_Data_for_FY22[[#This Row],[25th]])/25)*20) + AAMC_Raw_Data_for_FY22[[#This Row],[25th]]","v":225943.2},233531,{"$f":"(((AAMC_Raw_Data_for_FY22[[#This Row],[75th]]-AAMC_Raw_Data_for_FY22[[#This Row],[Median]])/25)*5) + AAMC_Raw_Data_for_FY22[[#This Row],[Median]]","v":236797.6},{"$f":"(((AAMC_Raw_Data_for_FY22[[#This Row],[75th]]-AAMC_Raw_Data_for_FY22[[#This Row],[Median]])/25)*10) + AAMC_Raw_Data_for_FY22[[#This Row],[Median]]","v":240064.2},{"$f":"(((AAMC_Raw_Data_for_FY22[[#This Row],[75th]]-AAMC_Raw_Data_for_FY22[[#This Row],[Median]])/25)*15) + AAMC_Raw_Data_for_FY22[[#This Row],[Median]]","v":243330.8},{"$f":"(((AAMC_Raw_Data_for_FY22[[#This Row],[75th]]-AAMC_Raw_Data_for_FY22[[#This Row],[Median]])/25)*20) + AAMC_Raw_Data_for_FY22[[#This Row],[Median]]","v":246597.4},249864,{"$f":"(((AAMC_Raw_Data_for_FY22[[#This Row],[75th]]-AAMC_Raw_Data_for_FY22[[#This Row],[Median]])/25)*30) + AAMC_Raw_Data_for_FY22[[#This Row],[Median]]","v":253130.6},{"$f":"(((AAMC_Raw_Data_for_FY22[[#This Row],[75th]]-AAMC_Raw_Data_for_FY22[[#This Row],[Median]])/25)*35) + AAMC_Raw_Data_for_FY22[[#This Row],[Median]]","v":256397.2},{"$f":"(((AAMC_Raw_Data_for_FY22[[#This Row],[75th]]-AAMC_Raw_Data_for_FY22[[#This Row],[Median]])/25)*40) + AAMC_Raw_Data_for_FY22[[#This Row],[Median]]","v":259663.8}]
[{"$f":"AAMC_Raw_Data_for_FY22[[#This Row],[Source]]&AAMC_Raw_Data_for_FY22[[#This Row],[Type]]&AAMC_Raw_Data_for_FY22[[#This Row],[School Subset]]&AAMC_Raw_Data_for_FY22[[#This Row],[Rank]]&AAMC_Raw_Data_for_FY22[[#This Row],[Degree]]&AAMC_Raw_Data_for_FY22[[#This Row],[Department / Specialty]]&\"L\"","v":"AAMCAcademicPrivateProfessorMDBiomedical InformaticsL"},"Biomedical Informatics",2,"AAMC","Academic","Private","Professor","MD","2021-2022",null,{"$f":"(((AAMC_Raw_Data_for_FY22[[#This Row],[Median]]-AAMC_Raw_Data_for_FY22[[#This Row],[25th]])/25)*5) + AAMC_Raw_Data_for_FY22[[#This Row],[25th]]","v":0},{"$f":"(((AAMC_Raw_Data_for_FY22[[#This Row],[Median]]-AAMC_Raw_Data_for_FY22[[#This Row],[25th]])/25)*10) + AAMC_Raw_Data_for_FY22[[#This Row],[25th]]","v":0},{"$f":"(((AAMC_Raw_Data_for_FY22[[#This Row],[Median]]-AAMC_Raw_Data_for_FY22[[#This Row],[25th]])/25)*15) + AAMC_Raw_Data_for_FY22[[#This Row],[25th]]","v":0},{"$f":"(((AAMC_Raw_Data_for_FY22[[#This Row],[Median]]-AAMC_Raw_Data_for_FY22[[#This Row],[25th]])/25)*20) + AAMC_Raw_Data_for_FY22[[#This Row],[25th]]","v":0},null,{"$f":"(((AAMC_Raw_Data_for_FY22[[#This Row],[75th]]-AAMC_Raw_Data_for_FY22[[#This Row],[Median]])/25)*5) + AAMC_Raw_Data_for_FY22[[#This Row],[Median]]","v":0},{"$f":"(((AAMC_Raw_Data_for_FY22[[#This Row],[75th]]-AAMC_Raw_Data_for_FY22[[#This Row],[Median]])/25)*10) + AAMC_Raw_Data_for_FY22[[#This Row],[Median]]","v":0},{"$f":"(((AAMC_Raw_Data_for_FY22[[#This Row],[75th]]-AAMC_Raw_Data_for_FY22[[#This Row],[Median]])/25)*15) + AAMC_Raw_Data_for_FY22[[#This Row],[Median]]","v":0},{"$f":"(((AAMC_Raw_Data_for_FY22[[#This Row],[75th]]-AAMC_Raw_Data_for_FY22[[#This Row],[Median]])/25)*20) + AAMC_Raw_Data_for_FY22[[#This Row],[Median]]","v":0},null,{"$f":"(((AAMC_Raw_Data_for_FY22[[#This Row],[75th]]-AAMC_Raw_Data_for_FY22[[#This Row],[Median]])/25)*30) + AAMC_Raw_Data_for_FY22[[#This Row],[Median]]","v":0},{"$f":"(((AAMC_Raw_Data_for_FY22[[#This Row],[75th]]-AAMC_Raw_Data_for_FY22[[#This Row],[Median]])/25)*35) + AAMC_Raw_Data_for_FY22[[#This Row],[Median]]","v":0},{"$f":"(((AAMC_Raw_Data_for_FY22[[#This Row],[75th]]-AAMC_Raw_Data_for_FY22[[#This Row],[Median]])/25)*40) + AAMC_Raw_Data_for_FY22[[#This Row],[Median]]","v":0}]
[{"$f":"AAMC_Raw_Data_for_FY22[[#This Row],[Source]]&AAMC_Raw_Data_for_FY22[[#This Row],[Type]]&AAMC_Raw_Data_for_FY22[[#This Row],[School Subset]]&AAMC_Raw_Data_for_FY22[[#This Row],[Rank]]&AAMC_Raw_Data_for_FY22[[#This Row],[Degree]]&AAMC_Raw_Data_for_FY22[[#This Row],[Department / Specialty]]&\"L\"","v":"AAMCAcademicPrivateChiefMDBiomedical InformaticsL"},"Biomedical Informatics",6,"AAMC","Academic","Private","Chief","MD","2021-2022",null,{"$f":"(((AAMC_Raw_Data_for_FY22[[#This Row],[Median]]-AAMC_Raw_Data_for_FY22[[#This Row],[25th]])/25)*5) + AAMC_Raw_Data_for_FY22[[#This Row],[25th]]","v":0},{"$f":"(((AAMC_Raw_Data_for_FY22[[#This Row],[Median]]-AAMC_Raw_Data_for_FY22[[#This Row],[25th]])/25)*10) + AAMC_Raw_Data_for_FY22[[#This Row],[25th]]","v":0},{"$f":"(((AAMC_Raw_Data_for_FY22[[#This Row],[Median]]-AAMC_Raw_Data_for_FY22[[#This Row],[25th]])/25)*15) + AAMC_Raw_Data_for_FY22[[#This Row],[25th]]","v":0},{"$f":"(((AAMC_Raw_Data_for_FY22[[#This Row],[Median]]-AAMC_Raw_Data_for_FY22[[#This Row],[25th]])/25)*20) + AAMC_Raw_Data_for_FY22[[#This Row],[25th]]","v":0},null,{"$f":"(((AAMC_Raw_Data_for_FY22[[#This Row],[75th]]-AAMC_Raw_Data_for_FY22[[#This Row],[Median]])/25)*5) + AAMC_Raw_Data_for_FY22[[#This Row],[Median]]","v":0},{"$f":"(((AAMC_Raw_Data_for_FY22[[#This Row],[75th]]-AAMC_Raw_Data_for_FY22[[#This Row],[Median]])/25)*10) + AAMC_Raw_Data_for_FY22[[#This Row],[Median]]","v":0},{"$f":"(((AAMC_Raw_Data_for_FY22[[#This Row],[75th]]-AAMC_Raw_Data_for_FY22[[#This Row],[Median]])/25)*15) + AAMC_Raw_Data_for_FY22[[#This Row],[Median]]","v":0},{"$f":"(((AAMC_Raw_Data_for_FY22[[#This Row],[75th]]-AAMC_Raw_Data_for_FY22[[#This Row],[Median]])/25)*20) + AAMC_Raw_Data_for_FY22[[#This Row],[Median]]","v":0},null,{"$f":"(((AAMC_Raw_Data_for_FY22[[#This Row],[75th]]-AAMC_Raw_Data_for_FY22[[#This Row],[Median]])/25)*30) + AAMC_Raw_Data_for_FY22[[#This Row],[Median]]","v":0},{"$f":"(((AAMC_Raw_Data_for_FY22[[#This Row],[75th]]-AAMC_Raw_Data_for_FY22[[#This Row],[Median]])/25)*35) + AAMC_Raw_Data_for_FY22[[#This Row],[Median]]","v":0},{"$f":"(((AAMC_Raw_Data_for_FY22[[#This Row],[75th]]-AAMC_Raw_Data_for_FY22[[#This Row],[Median]])/25)*40) + AAMC_Raw_Data_for_FY22[[#This Row],[Median]]","v":0}]
[{"$f":"AAMC_Raw_Data_for_FY22[[#This Row],[Source]]&AAMC_Raw_Data_for_FY22[[#This Row],[Type]]&AAMC_Raw_Data_for_FY22[[#This Row],[School Subset]]&AAMC_Raw_Data_for_FY22[[#This Row],[Rank]]&AAMC_Raw_Data_for_FY22[[#This Row],[Degree]]&AAMC_Raw_Data_for_FY22[[#This Row],[Department / Specialty]]&\"L\"","v":"AAMCAcademicPrivateChairMDBiomedical InformaticsL"},"Biomedical Informatics",1,"AAMC","Academic","Private","Chair","MD","2021-2022",515677,{"$f":"(((AAMC_Raw_Data_for_FY22[[#This Row],[Median]]-AAMC_Raw_Data_for_FY22[[#This Row],[25th]])/25)*5) + AAMC_Raw_Data_for_FY22[[#This Row],[25th]]","v":526462.4},{"$f":"(((AAMC_Raw_Data_for_FY22[[#This Row],[Median]]-AAMC_Raw_Data_for_FY22[[#This Row],[25th]])/25)*10) + AAMC_Raw_Data_for_FY22[[#This Row],[25th]]","v":537247.80000000005},{"$f":"(((AAMC_Raw_Data_for_FY22[[#This Row],[Median]]-AAMC_Raw_Data_for_FY22[[#This Row],[25th]])/25)*15) + AAMC_Raw_Data_for_FY22[[#This Row],[25th]]","v":548033.19999999995},{"$f":"(((AAMC_Raw_Data_for_FY22[[#This Row],[Median]]-AAMC_Raw_Data_for_FY22[[#This Row],[25th]])/25)*20) + AAMC_Raw_Data_for_FY22[[#This Row],[25th]]","v":558818.6},569604,{"$f":"(((AAMC_Raw_Data_for_FY22[[#This Row],[75th]]-AAMC_Raw_Data_for_FY22[[#This Row],[Median]])/25)*5) + AAMC_Raw_Data_for_FY22[[#This Row],[Median]]","v":587683.19999999995},{"$f":"(((AAMC_Raw_Data_for_FY22[[#This Row],[75th]]-AAMC_Raw_Data_for_FY22[[#This Row],[Median]])/25)*10) + AAMC_Raw_Data_for_FY22[[#This Row],[Median]]","v":605762.4},{"$f":"(((AAMC_Raw_Data_for_FY22[[#This Row],[75th]]-AAMC_Raw_Data_for_FY22[[#This Row],[Median]])/25)*15) + AAMC_Raw_Data_for_FY22[[#This Row],[Median]]","v":623841.6},{"$f":"(((AAMC_Raw_Data_for_FY22[[#This Row],[75th]]-AAMC_Raw_Data_for_FY22[[#This Row],[Median]])/25)*20) + AAMC_Raw_Data_for_FY22[[#This Row],[Median]]","v":641920.80000000005},660000,{"$f":"(((AAMC_Raw_Data_for_FY22[[#This Row],[75th]]-AAMC_Raw_Data_for_FY22[[#This Row],[Median]])/25)*30) + AAMC_Raw_Data_for_FY22[[#This Row],[Median]]","v":678079.2},{"$f":"(((AAMC_Raw_Data_for_FY22[[#This Row],[75th]]-AAMC_Raw_Data_for_FY22[[#This Row],[Median]])/25)*35) + AAMC_Raw_Data_for_FY22[[#This Row],[Median]]","v":696158.4},{"$f":"(((AAMC_Raw_Data_for_FY22[[#This Row],[75th]]-AAMC_Raw_Data_for_FY22[[#This Row],[Median]])/25)*40) + AAMC_Raw_Data_for_FY22[[#This Row],[Median]]","v":714237.6}]
[{"$f":"AAMC_Raw_Data_for_FY22[[#This Row],[Source]]&AAMC_Raw_Data_for_FY22[[#This Row],[Type]]&AAMC_Raw_Data_for_FY22[[#This Row],[School Subset]]&AAMC_Raw_Data_for_FY22[[#This Row],[Rank]]&AAMC_Raw_Data_for_FY22[[#This Row],[Degree]]&AAMC_Raw_Data_for_FY22[[#This Row],[Department / Specialty]]&\"L\"","v":"AAMCAcademicPrivateInstructorMDBiostatisticsL"},"Biostatistics",5,"AAMC","Academic","Private","Instructor","MD","2021-2022",null,{"$f":"(((AAMC_Raw_Data_for_FY22[[#This Row],[Median]]-AAMC_Raw_Data_for_FY22[[#This Row],[25th]])/25)*5) + AAMC_Raw_Data_for_FY22[[#This Row],[25th]]","v":0},{"$f":"(((AAMC_Raw_Data_for_FY22[[#This Row],[Median]]-AAMC_Raw_Data_for_FY22[[#This Row],[25th]])/25)*10) + AAMC_Raw_Data_for_FY22[[#This Row],[25th]]","v":0},{"$f":"(((AAMC_Raw_Data_for_FY22[[#This Row],[Median]]-AAMC_Raw_Data_for_FY22[[#This Row],[25th]])/25)*15) + AAMC_Raw_Data_for_FY22[[#This Row],[25th]]","v":0},{"$f":"(((AAMC_Raw_Data_for_FY22[[#This Row],[Median]]-AAMC_Raw_Data_for_FY22[[#This Row],[25th]])/25)*20) + AAMC_Raw_Data_for_FY22[[#This Row],[25th]]","v":0},null,{"$f":"(((AAMC_Raw_Data_for_FY22[[#This Row],[75th]]-AAMC_Raw_Data_for_FY22[[#This Row],[Median]])/25)*5) + AAMC_Raw_Data_for_FY22[[#This Row],[Median]]","v":0},{"$f":"(((AAMC_Raw_Data_for_FY22[[#This Row],[75th]]-AAMC_Raw_Data_for_FY22[[#This Row],[Median]])/25)*10) + AAMC_Raw_Data_for_FY22[[#This Row],[Median]]","v":0},{"$f":"(((AAMC_Raw_Data_for_FY22[[#This Row],[75th]]-AAMC_Raw_Data_for_FY22[[#This Row],[Median]])/25)*15) + AAMC_Raw_Data_for_FY22[[#This Row],[Median]]","v":0},{"$f":"(((AAMC_Raw_Data_for_FY22[[#This Row],[75th]]-AAMC_Raw_Data_for_FY22[[#This Row],[Median]])/25)*20) + AAMC_Raw_Data_for_FY22[[#This Row],[Median]]","v":0},null,{"$f":"(((AAMC_Raw_Data_for_FY22[[#This Row],[75th]]-AAMC_Raw_Data_for_FY22[[#This Row],[Median]])/25)*30) + AAMC_Raw_Data_for_FY22[[#This Row],[Median]]","v":0},{"$f":"(((AAMC_Raw_Data_for_FY22[[#This Row],[75th]]-AAMC_Raw_Data_for_FY22[[#This Row],[Median]])/25)*35) + AAMC_Raw_Data_for_FY22[[#This Row],[Median]]","v":0},{"$f":"(((AAMC_Raw_Data_for_FY22[[#This Row],[75th]]-AAMC_Raw_Data_for_FY22[[#This Row],[Median]])/25)*40) + AAMC_Raw_Data_for_FY22[[#This Row],[Median]]","v":0}]
[{"$f":"AAMC_Raw_Data_for_FY22[[#This Row],[Source]]&AAMC_Raw_Data_for_FY22[[#This Row],[Type]]&AAMC_Raw_Data_for_FY22[[#This Row],[School Subset]]&AAMC_Raw_Data_for_FY22[[#This Row],[Rank]]&AAMC_Raw_Data_for_FY22[[#This Row],[Degree]]&AAMC_Raw_Data_for_FY22[[#This Row],[Department / Specialty]]&\"L\"","v":"AAMCAcademicPrivateAssistantMDBiostatisticsL"},"Biostatistics",4,"AAMC","Academic","Private","Assistant","MD","2021-2022",null,{"$f":"(((AAMC_Raw_Data_for_FY22[[#This Row],[Median]]-AAMC_Raw_Data_for_FY22[[#This Row],[25th]])/25)*5) + AAMC_Raw_Data_for_FY22[[#This Row],[25th]]","v":0},{"$f":"(((AAMC_Raw_Data_for_FY22[[#This Row],[Median]]-AAMC_Raw_Data_for_FY22[[#This Row],[25th]])/25)*10) + AAMC_Raw_Data_for_FY22[[#This Row],[25th]]","v":0},{"$f":"(((AAMC_Raw_Data_for_FY22[[#This Row],[Median]]-AAMC_Raw_Data_for_FY22[[#This Row],[25th]])/25)*15) + AAMC_Raw_Data_for_FY22[[#This Row],[25th]]","v":0},{"$f":"(((AAMC_Raw_Data_for_FY22[[#This Row],[Median]]-AAMC_Raw_Data_for_FY22[[#This Row],[25th]])/25)*20) + AAMC_Raw_Data_for_FY22[[#This Row],[25th]]","v":0},null,{"$f":"(((AAMC_Raw_Data_for_FY22[[#This Row],[75th]]-AAMC_Raw_Data_for_FY22[[#This Row],[Median]])/25)*5) + AAMC_Raw_Data_for_FY22[[#This Row],[Median]]","v":0},{"$f":"(((AAMC_Raw_Data_for_FY22[[#This Row],[75th]]-AAMC_Raw_Data_for_FY22[[#This Row],[Median]])/25)*10) + AAMC_Raw_Data_for_FY22[[#This Row],[Median]]","v":0},{"$f":"(((AAMC_Raw_Data_for_FY22[[#This Row],[75th]]-AAMC_Raw_Data_for_FY22[[#This Row],[Median]])/25)*15) + AAMC_Raw_Data_for_FY22[[#This Row],[Median]]","v":0},{"$f":"(((AAMC_Raw_Data_for_FY22[[#This Row],[75th]]-AAMC_Raw_Data_for_FY22[[#This Row],[Median]])/25)*20) + AAMC_Raw_Data_for_FY22[[#This Row],[Median]]","v":0},null,{"$f":"(((AAMC_Raw_Data_for_FY22[[#This Row],[75th]]-AAMC_Raw_Data_for_FY22[[#This Row],[Median]])/25)*30) + AAMC_Raw_Data_for_FY22[[#This Row],[Median]]","v":0},{"$f":"(((AAMC_Raw_Data_for_FY22[[#This Row],[75th]]-AAMC_Raw_Data_for_FY22[[#This Row],[Median]])/25)*35) + AAMC_Raw_Data_for_FY22[[#This Row],[Median]]","v":0},{"$f":"(((AAMC_Raw_Data_for_FY22[[#This Row],[75th]]-AAMC_Raw_Data_for_FY22[[#This Row],[Median]])/25)*40) + AAMC_Raw_Data_for_FY22[[#This Row],[Median]]","v":0}]
[{"$f":"AAMC_Raw_Data_for_FY22[[#This Row],[Source]]&AAMC_Raw_Data_for_FY22[[#This Row],[Type]]&AAMC_Raw_Data_for_FY22[[#This Row],[School Subset]]&AAMC_Raw_Data_for_FY22[[#This Row],[Rank]]&AAMC_Raw_Data_for_FY22[[#This Row],[Degree]]&AAMC_Raw_Data_for_FY22[[#This Row],[Department / Specialty]]&\"L\"","v":"AAMCAcademicPrivateAssociateMDBiostatisticsL"},"Biostatistics",3,"AAMC","Academic","Private","Associate","MD","2021-2022",null,{"$f":"(((AAMC_Raw_Data_for_FY22[[#This Row],[Median]]-AAMC_Raw_Data_for_FY22[[#This Row],[25th]])/25)*5) + AAMC_Raw_Data_for_FY22[[#This Row],[25th]]","v":0},{"$f":"(((AAMC_Raw_Data_for_FY22[[#This Row],[Median]]-AAMC_Raw_Data_for_FY22[[#This Row],[25th]])/25)*10) + AAMC_Raw_Data_for_FY22[[#This Row],[25th]]","v":0},{"$f":"(((AAMC_Raw_Data_for_FY22[[#This Row],[Median]]-AAMC_Raw_Data_for_FY22[[#This Row],[25th]])/25)*15) + AAMC_Raw_Data_for_FY22[[#This Row],[25th]]","v":0},{"$f":"(((AAMC_Raw_Data_for_FY22[[#This Row],[Median]]-AAMC_Raw_Data_for_FY22[[#This Row],[25th]])/25)*20) + AAMC_Raw_Data_for_FY22[[#This Row],[25th]]","v":0},null,{"$f":"(((AAMC_Raw_Data_for_FY22[[#This Row],[75th]]-AAMC_Raw_Data_for_FY22[[#This Row],[Median]])/25)*5) + AAMC_Raw_Data_for_FY22[[#This Row],[Median]]","v":0},{"$f":"(((AAMC_Raw_Data_for_FY22[[#This Row],[75th]]-AAMC_Raw_Data_for_FY22[[#This Row],[Median]])/25)*10) + AAMC_Raw_Data_for_FY22[[#This Row],[Median]]","v":0},{"$f":"(((AAMC_Raw_Data_for_FY22[[#This Row],[75th]]-AAMC_Raw_Data_for_FY22[[#This Row],[Median]])/25)*15) + AAMC_Raw_Data_for_FY22[[#This Row],[Median]]","v":0},{"$f":"(((AAMC_Raw_Data_for_FY22[[#This Row],[75th]]-AAMC_Raw_Data_for_FY22[[#This Row],[Median]])/25)*20) + AAMC_Raw_Data_for_FY22[[#This Row],[Median]]","v":0},null,{"$f":"(((AAMC_Raw_Data_for_FY22[[#This Row],[75th]]-AAMC_Raw_Data_for_FY22[[#This Row],[Median]])/25)*30) + AAMC_Raw_Data_for_FY22[[#This Row],[Median]]","v":0},{"$f":"(((AAMC_Raw_Data_for_FY22[[#This Row],[75th]]-AAMC_Raw_Data_for_FY22[[#This Row],[Median]])/25)*35) + AAMC_Raw_Data_for_FY22[[#This Row],[Median]]","v":0},{"$f":"(((AAMC_Raw_Data_for_FY22[[#This Row],[75th]]-AAMC_Raw_Data_for_FY22[[#This Row],[Median]])/25)*40) + AAMC_Raw_Data_for_FY22[[#This Row],[Median]]","v":0}]
[{"$f":"AAMC_Raw_Data_for_FY22[[#This Row],[Source]]&AAMC_Raw_Data_for_FY22[[#This Row],[Type]]&AAMC_Raw_Data_for_FY22[[#This Row],[School Subset]]&AAMC_Raw_Data_for_FY22[[#This Row],[Rank]]&AAMC_Raw_Data_for_FY22[[#This Row],[Degree]]&AAMC_Raw_Data_for_FY22[[#This Row],[Department / Specialty]]&\"L\"","v":"AAMCAcademicPrivateProfessorMDBiostatisticsL"},"Biostatistics",2,"AAMC","Academic","Private","Professor","MD","2021-2022",null,{"$f":"(((AAMC_Raw_Data_for_FY22[[#This Row],[Median]]-AAMC_Raw_Data_for_FY22[[#This Row],[25th]])/25)*5) + AAMC_Raw_Data_for_FY22[[#This Row],[25th]]","v":0},{"$f":"(((AAMC_Raw_Data_for_FY22[[#This Row],[Median]]-AAMC_Raw_Data_for_FY22[[#This Row],[25th]])/25)*10) + AAMC_Raw_Data_for_FY22[[#This Row],[25th]]","v":0},{"$f":"(((AAMC_Raw_Data_for_FY22[[#This Row],[Median]]-AAMC_Raw_Data_for_FY22[[#This Row],[25th]])/25)*15) + AAMC_Raw_Data_for_FY22[[#This Row],[25th]]","v":0},{"$f":"(((AAMC_Raw_Data_for_FY22[[#This Row],[Median]]-AAMC_Raw_Data_for_FY22[[#This Row],[25th]])/25)*20) + AAMC_Raw_Data_for_FY22[[#This Row],[25th]]","v":0},null,{"$f":"(((AAMC_Raw_Data_for_FY22[[#This Row],[75th]]-AAMC_Raw_Data_for_FY22[[#This Row],[Median]])/25)*5) + AAMC_Raw_Data_for_FY22[[#This Row],[Median]]","v":0},{"$f":"(((AAMC_Raw_Data_for_FY22[[#This Row],[75th]]-AAMC_Raw_Data_for_FY22[[#This Row],[Median]])/25)*10) + AAMC_Raw_Data_for_FY22[[#This Row],[Median]]","v":0},{"$f":"(((AAMC_Raw_Data_for_FY22[[#This Row],[75th]]-AAMC_Raw_Data_for_FY22[[#This Row],[Median]])/25)*15) + AAMC_Raw_Data_for_FY22[[#This Row],[Median]]","v":0},{"$f":"(((AAMC_Raw_Data_for_FY22[[#This Row],[75th]]-AAMC_Raw_Data_for_FY22[[#This Row],[Median]])/25)*20) + AAMC_Raw_Data_for_FY22[[#This Row],[Median]]","v":0},null,{"$f":"(((AAMC_Raw_Data_for_FY22[[#This Row],[75th]]-AAMC_Raw_Data_for_FY22[[#This Row],[Median]])/25)*30) + AAMC_Raw_Data_for_FY22[[#This Row],[Median]]","v":0},{"$f":"(((AAMC_Raw_Data_for_FY22[[#This Row],[75th]]-AAMC_Raw_Data_for_FY22[[#This Row],[Median]])/25)*35) + AAMC_Raw_Data_for_FY22[[#This Row],[Median]]","v":0},{"$f":"(((AAMC_Raw_Data_for_FY22[[#This Row],[75th]]-AAMC_Raw_Data_for_FY22[[#This Row],[Median]])/25)*40) + AAMC_Raw_Data_for_FY22[[#This Row],[Median]]","v":0}]
[{"$f":"AAMC_Raw_Data_for_FY22[[#This Row],[Source]]&AAMC_Raw_Data_for_FY22[[#This Row],[Type]]&AAMC_Raw_Data_for_FY22[[#This Row],[School Subset]]&AAMC_Raw_Data_for_FY22[[#This Row],[Rank]]&AAMC_Raw_Data_for_FY22[[#This Row],[Degree]]&AAMC_Raw_Data_for_FY22[[#This Row],[Department / Specialty]]&\"L\"","v":"AAMCAcademicPrivateChairMDBiostatisticsL"},"Biostatistics",1,"AAMC","Academic","Private","Chair","MD","2021-2022",null,{"$f":"(((AAMC_Raw_Data_for_FY22[[#This Row],[Median]]-AAMC_Raw_Data_for_FY22[[#This Row],[25th]])/25)*5) + AAMC_Raw_Data_for_FY22[[#This Row],[25th]]","v":0},{"$f":"(((AAMC_Raw_Data_for_FY22[[#This Row],[Median]]-AAMC_Raw_Data_for_FY22[[#This Row],[25th]])/25)*10) + AAMC_Raw_Data_for_FY22[[#This Row],[25th]]","v":0},{"$f":"(((AAMC_Raw_Data_for_FY22[[#This Row],[Median]]-AAMC_Raw_Data_for_FY22[[#This Row],[25th]])/25)*15) + AAMC_Raw_Data_for_FY22[[#This Row],[25th]]","v":0},{"$f":"(((AAMC_Raw_Data_for_FY22[[#This Row],[Median]]-AAMC_Raw_Data_for_FY22[[#This Row],[25th]])/25)*20) + AAMC_Raw_Data_for_FY22[[#This Row],[25th]]","v":0},null,{"$f":"(((AAMC_Raw_Data_for_FY22[[#This Row],[75th]]-AAMC_Raw_Data_for_FY22[[#This Row],[Median]])/25)*5) + AAMC_Raw_Data_for_FY22[[#This Row],[Median]]","v":0},{"$f":"(((AAMC_Raw_Data_for_FY22[[#This Row],[75th]]-AAMC_Raw_Data_for_FY22[[#This Row],[Median]])/25)*10) + AAMC_Raw_Data_for_FY22[[#This Row],[Median]]","v":0},{"$f":"(((AAMC_Raw_Data_for_FY22[[#This Row],[75th]]-AAMC_Raw_Data_for_FY22[[#This Row],[Median]])/25)*15) + AAMC_Raw_Data_for_FY22[[#This Row],[Median]]","v":0},{"$f":"(((AAMC_Raw_Data_for_FY22[[#This Row],[75th]]-AAMC_Raw_Data_for_FY22[[#This Row],[Median]])/25)*20) + AAMC_Raw_Data_for_FY22[[#This Row],[Median]]","v":0},null,{"$f":"(((AAMC_Raw_Data_for_FY22[[#This Row],[75th]]-AAMC_Raw_Data_for_FY22[[#This Row],[Median]])/25)*30) + AAMC_Raw_Data_for_FY22[[#This Row],[Median]]","v":0},{"$f":"(((AAMC_Raw_Data_for_FY22[[#This Row],[75th]]-AAMC_Raw_Data_for_FY22[[#This Row],[Median]])/25)*35) + AAMC_Raw_Data_for_FY22[[#This Row],[Median]]","v":0},{"$f":"(((AAMC_Raw_Data_for_FY22[[#This Row],[75th]]-AAMC_Raw_Data_for_FY22[[#This Row],[Median]])/25)*40) + AAMC_Raw_Data_for_FY22[[#This Row],[Median]]","v":0}]
[{"$f":"AAMC_Raw_Data_for_FY22[[#This Row],[Source]]&AAMC_Raw_Data_for_FY22[[#This Row],[Type]]&AAMC_Raw_Data_for_FY22[[#This Row],[School Subset]]&AAMC_Raw_Data_for_FY22[[#This Row],[Rank]]&AAMC_Raw_Data_for_FY22[[#This Row],[Degree]]&AAMC_Raw_Data_for_FY22[[#This Row],[Department / Specialty]]&\"L\"","v":"AAMCAcademicPrivateInstructorMDGeneticsL"},"Genetics",5,"AAMC","Academic","Private","Instructor","MD","2021-2022",null,{"$f":"(((AAMC_Raw_Data_for_FY22[[#This Row],[Median]]-AAMC_Raw_Data_for_FY22[[#This Row],[25th]])/25)*5) + AAMC_Raw_Data_for_FY22[[#This Row],[25th]]","v":0},{"$f":"(((AAMC_Raw_Data_for_FY22[[#This Row],[Median]]-AAMC_Raw_Data_for_FY22[[#This Row],[25th]])/25)*10) + AAMC_Raw_Data_for_FY22[[#This Row],[25th]]","v":0},{"$f":"(((AAMC_Raw_Data_for_FY22[[#This Row],[Median]]-AAMC_Raw_Data_for_FY22[[#This Row],[25th]])/25)*15) + AAMC_Raw_Data_for_FY22[[#This Row],[25th]]","v":0},{"$f":"(((AAMC_Raw_Data_for_FY22[[#This Row],[Median]]-AAMC_Raw_Data_for_FY22[[#This Row],[25th]])/25)*20) + AAMC_Raw_Data_for_FY22[[#This Row],[25th]]","v":0},null,{"$f":"(((AAMC_Raw_Data_for_FY22[[#This Row],[75th]]-AAMC_Raw_Data_for_FY22[[#This Row],[Median]])/25)*5) + AAMC_Raw_Data_for_FY22[[#This Row],[Median]]","v":0},{"$f":"(((AAMC_Raw_Data_for_FY22[[#This Row],[75th]]-AAMC_Raw_Data_for_FY22[[#This Row],[Median]])/25)*10) + AAMC_Raw_Data_for_FY22[[#This Row],[Median]]","v":0},{"$f":"(((AAMC_Raw_Data_for_FY22[[#This Row],[75th]]-AAMC_Raw_Data_for_FY22[[#This Row],[Median]])/25)*15) + AAMC_Raw_Data_for_FY22[[#This Row],[Median]]","v":0},{"$f":"(((AAMC_Raw_Data_for_FY22[[#This Row],[75th]]-AAMC_Raw_Data_for_FY22[[#This Row],[Median]])/25)*20) + AAMC_Raw_Data_for_FY22[[#This Row],[Median]]","v":0},null,{"$f":"(((AAMC_Raw_Data_for_FY22[[#This Row],[75th]]-AAMC_Raw_Data_for_FY22[[#This Row],[Median]])/25)*30) + AAMC_Raw_Data_for_FY22[[#This Row],[Median]]","v":0},{"$f":"(((AAMC_Raw_Data_for_FY22[[#This Row],[75th]]-AAMC_Raw_Data_for_FY22[[#This Row],[Median]])/25)*35) + AAMC_Raw_Data_for_FY22[[#This Row],[Median]]","v":0},{"$f":"(((AAMC_Raw_Data_for_FY22[[#This Row],[75th]]-AAMC_Raw_Data_for_FY22[[#This Row],[Median]])/25)*40) + AAMC_Raw_Data_for_FY22[[#This Row],[Median]]","v":0}]
[{"$f":"AAMC_Raw_Data_for_FY22[[#This Row],[Source]]&AAMC_Raw_Data_for_FY22[[#This Row],[Type]]&AAMC_Raw_Data_for_FY22[[#This Row],[School Subset]]&AAMC_Raw_Data_for_FY22[[#This Row],[Rank]]&AAMC_Raw_Data_for_FY22[[#This Row],[Degree]]&AAMC_Raw_Data_for_FY22[[#This Row],[Department / Specialty]]&\"L\"","v":"AAMCAcademicPrivateAssistantMDGeneticsL"},"Genetics",4,"AAMC","Academic","Private","Assistant","MD","2021-2022",142200,{"$f":"(((AAMC_Raw_Data_for_FY22[[#This Row],[Median]]-AAMC_Raw_Data_for_FY22[[#This Row],[25th]])/25)*5) + AAMC_Raw_Data_for_FY22[[#This Row],[25th]]","v":148769.79999999999},{"$f":"(((AAMC_Raw_Data_for_FY22[[#This Row],[Median]]-AAMC_Raw_Data_for_FY22[[#This Row],[25th]])/25)*10) + AAMC_Raw_Data_for_FY22[[#This Row],[25th]]","v":155339.6},{"$f":"(((AAMC_Raw_Data_for_FY22[[#This Row],[Median]]-AAMC_Raw_Data_for_FY22[[#This Row],[25th]])/25)*15) + AAMC_Raw_Data_for_FY22[[#This Row],[25th]]","v":161909.4},{"$f":"(((AAMC_Raw_Data_for_FY22[[#This Row],[Median]]-AAMC_Raw_Data_for_FY22[[#This Row],[25th]])/25)*20) + AAMC_Raw_Data_for_FY22[[#This Row],[25th]]","v":168479.2},175049,{"$f":"(((AAMC_Raw_Data_for_FY22[[#This Row],[75th]]-AAMC_Raw_Data_for_FY22[[#This Row],[Median]])/25)*5) + AAMC_Raw_Data_for_FY22[[#This Row],[Median]]","v":180539.2},{"$f":"(((AAMC_Raw_Data_for_FY22[[#This Row],[75th]]-AAMC_Raw_Data_for_FY22[[#This Row],[Median]])/25)*10) + AAMC_Raw_Data_for_FY22[[#This Row],[Median]]","v":186029.4},{"$f":"(((AAMC_Raw_Data_for_FY22[[#This Row],[75th]]-AAMC_Raw_Data_for_FY22[[#This Row],[Median]])/25)*15) + AAMC_Raw_Data_for_FY22[[#This Row],[Median]]","v":191519.6},{"$f":"(((AAMC_Raw_Data_for_FY22[[#This Row],[75th]]-AAMC_Raw_Data_for_FY22[[#This Row],[Median]])/25)*20) + AAMC_Raw_Data_for_FY22[[#This Row],[Median]]","v":197009.8},202500,{"$f":"(((AAMC_Raw_Data_for_FY22[[#This Row],[75th]]-AAMC_Raw_Data_for_FY22[[#This Row],[Median]])/25)*30) + AAMC_Raw_Data_for_FY22[[#This Row],[Median]]","v":207990.2},{"$f":"(((AAMC_Raw_Data_for_FY22[[#This Row],[75th]]-AAMC_Raw_Data_for_FY22[[#This Row],[Median]])/25)*35) + AAMC_Raw_Data_for_FY22[[#This Row],[Median]]","v":213480.4},{"$f":"(((AAMC_Raw_Data_for_FY22[[#This Row],[75th]]-AAMC_Raw_Data_for_FY22[[#This Row],[Median]])/25)*40) + AAMC_Raw_Data_for_FY22[[#This Row],[Median]]","v":218970.6}]
[{"$f":"AAMC_Raw_Data_for_FY22[[#This Row],[Source]]&AAMC_Raw_Data_for_FY22[[#This Row],[Type]]&AAMC_Raw_Data_for_FY22[[#This Row],[School Subset]]&AAMC_Raw_Data_for_FY22[[#This Row],[Rank]]&AAMC_Raw_Data_for_FY22[[#This Row],[Degree]]&AAMC_Raw_Data_for_FY22[[#This Row],[Department / Specialty]]&\"L\"","v":"AAMCAcademicPrivateAssociateMDGeneticsL"},"Genetics",3,"AAMC","Academic","Private","Associate","MD","2021-2022",157586,{"$f":"(((AAMC_Raw_Data_for_FY22[[#This Row],[Median]]-AAMC_Raw_Data_for_FY22[[#This Row],[25th]])/25)*5) + AAMC_Raw_Data_for_FY22[[#This Row],[25th]]","v":165011},{"$f":"(((AAMC_Raw_Data_for_FY22[[#This Row],[Median]]-AAMC_Raw_Data_for_FY22[[#This Row],[25th]])/25)*10) + AAMC_Raw_Data_for_FY22[[#This Row],[25th]]","v":172436},{"$f":"(((AAMC_Raw_Data_for_FY22[[#This Row],[Median]]-AAMC_Raw_Data_for_FY22[[#This Row],[25th]])/25)*15) + AAMC_Raw_Data_for_FY22[[#This Row],[25th]]","v":179861},{"$f":"(((AAMC_Raw_Data_for_FY22[[#This Row],[Median]]-AAMC_Raw_Data_for_FY22[[#This Row],[25th]])/25)*20) + AAMC_Raw_Data_for_FY22[[#This Row],[25th]]","v":187286},194711,{"$f":"(((AAMC_Raw_Data_for_FY22[[#This Row],[75th]]-AAMC_Raw_Data_for_FY22[[#This Row],[Median]])/25)*5) + AAMC_Raw_Data_for_FY22[[#This Row],[Median]]","v":199608.8},{"$f":"(((AAMC_Raw_Data_for_FY22[[#This Row],[75th]]-AAMC_Raw_Data_for_FY22[[#This Row],[Median]])/25)*10) + AAMC_Raw_Data_for_FY22[[#This Row],[Median]]","v":204506.6},{"$f":"(((AAMC_Raw_Data_for_FY22[[#This Row],[75th]]-AAMC_Raw_Data_for_FY22[[#This Row],[Median]])/25)*15) + AAMC_Raw_Data_for_FY22[[#This Row],[Median]]","v":209404.4},{"$f":"(((AAMC_Raw_Data_for_FY22[[#This Row],[75th]]-AAMC_Raw_Data_for_FY22[[#This Row],[Median]])/25)*20) + AAMC_Raw_Data_for_FY22[[#This Row],[Median]]","v":214302.2},219200,{"$f":"(((AAMC_Raw_Data_for_FY22[[#This Row],[75th]]-AAMC_Raw_Data_for_FY22[[#This Row],[Median]])/25)*30) + AAMC_Raw_Data_for_FY22[[#This Row],[Median]]","v":224097.8},{"$f":"(((AAMC_Raw_Data_for_FY22[[#This Row],[75th]]-AAMC_Raw_Data_for_FY22[[#This Row],[Median]])/25)*35) + AAMC_Raw_Data_for_FY22[[#This Row],[Median]]","v":228995.6},{"$f":"(((AAMC_Raw_Data_for_FY22[[#This Row],[75th]]-AAMC_Raw_Data_for_FY22[[#This Row],[Median]])/25)*40) + AAMC_Raw_Data_for_FY22[[#This Row],[Median]]","v":233893.4}]
[{"$f":"AAMC_Raw_Data_for_FY22[[#This Row],[Source]]&AAMC_Raw_Data_for_FY22[[#This Row],[Type]]&AAMC_Raw_Data_for_FY22[[#This Row],[School Subset]]&AAMC_Raw_Data_for_FY22[[#This Row],[Rank]]&AAMC_Raw_Data_for_FY22[[#This Row],[Degree]]&AAMC_Raw_Data_for_FY22[[#This Row],[Department / Specialty]]&\"L\"","v":"AAMCAcademicPrivateProfessorMDGeneticsL"},"Genetics",2,"AAMC","Academic","Private","Professor","MD","2021-2022",232500,{"$f":"(((AAMC_Raw_Data_for_FY22[[#This Row],[Median]]-AAMC_Raw_Data_for_FY22[[#This Row],[25th]])/25)*5) + AAMC_Raw_Data_for_FY22[[#This Row],[25th]]","v":237515},{"$f":"(((AAMC_Raw_Data_for_FY22[[#This Row],[Median]]-AAMC_Raw_Data_for_FY22[[#This Row],[25th]])/25)*10) + AAMC_Raw_Data_for_FY22[[#This Row],[25th]]","v":242530},{"$f":"(((AAMC_Raw_Data_for_FY22[[#This Row],[Median]]-AAMC_Raw_Data_for_FY22[[#This Row],[25th]])/25)*15) + AAMC_Raw_Data_for_FY22[[#This Row],[25th]]","v":247545},{"$f":"(((AAMC_Raw_Data_for_FY22[[#This Row],[Median]]-AAMC_Raw_Data_for_FY22[[#This Row],[25th]])/25)*20) + AAMC_Raw_Data_for_FY22[[#This Row],[25th]]","v":252560},257575,{"$f":"(((AAMC_Raw_Data_for_FY22[[#This Row],[75th]]-AAMC_Raw_Data_for_FY22[[#This Row],[Median]])/25)*5) + AAMC_Raw_Data_for_FY22[[#This Row],[Median]]","v":271535.2},{"$f":"(((AAMC_Raw_Data_for_FY22[[#This Row],[75th]]-AAMC_Raw_Data_for_FY22[[#This Row],[Median]])/25)*10) + AAMC_Raw_Data_for_FY22[[#This Row],[Median]]","v":285495.40000000002},{"$f":"(((AAMC_Raw_Data_for_FY22[[#This Row],[75th]]-AAMC_Raw_Data_for_FY22[[#This Row],[Median]])/25)*15) + AAMC_Raw_Data_for_FY22[[#This Row],[Median]]","v":299455.59999999998},{"$f":"(((AAMC_Raw_Data_for_FY22[[#This Row],[75th]]-AAMC_Raw_Data_for_FY22[[#This Row],[Median]])/25)*20) + AAMC_Raw_Data_for_FY22[[#This Row],[Median]]","v":313415.8},327376,{"$f":"(((AAMC_Raw_Data_for_FY22[[#This Row],[75th]]-AAMC_Raw_Data_for_FY22[[#This Row],[Median]])/25)*30) + AAMC_Raw_Data_for_FY22[[#This Row],[Median]]","v":341336.2},{"$f":"(((AAMC_Raw_Data_for_FY22[[#This Row],[75th]]-AAMC_Raw_Data_for_FY22[[#This Row],[Median]])/25)*35) + AAMC_Raw_Data_for_FY22[[#This Row],[Median]]","v":355296.4},{"$f":"(((AAMC_Raw_Data_for_FY22[[#This Row],[75th]]-AAMC_Raw_Data_for_FY22[[#This Row],[Median]])/25)*40) + AAMC_Raw_Data_for_FY22[[#This Row],[Median]]","v":369256.6}]
[{"$f":"AAMC_Raw_Data_for_FY22[[#This Row],[Source]]&AAMC_Raw_Data_for_FY22[[#This Row],[Type]]&AAMC_Raw_Data_for_FY22[[#This Row],[School Subset]]&AAMC_Raw_Data_for_FY22[[#This Row],[Rank]]&AAMC_Raw_Data_for_FY22[[#This Row],[Degree]]&AAMC_Raw_Data_for_FY22[[#This Row],[Department / Specialty]]&\"L\"","v":"AAMCAcademicPrivateChiefMDGeneticsL"},"Genetics",6,"AAMC","Academic","Private","Chief","MD","2021-2022",null,{"$f":"(((AAMC_Raw_Data_for_FY22[[#This Row],[Median]]-AAMC_Raw_Data_for_FY22[[#This Row],[25th]])/25)*5) + AAMC_Raw_Data_for_FY22[[#This Row],[25th]]","v":0},{"$f":"(((AAMC_Raw_Data_for_FY22[[#This Row],[Median]]-AAMC_Raw_Data_for_FY22[[#This Row],[25th]])/25)*10) + AAMC_Raw_Data_for_FY22[[#This Row],[25th]]","v":0},{"$f":"(((AAMC_Raw_Data_for_FY22[[#This Row],[Median]]-AAMC_Raw_Data_for_FY22[[#This Row],[25th]])/25)*15) + AAMC_Raw_Data_for_FY22[[#This Row],[25th]]","v":0},{"$f":"(((AAMC_Raw_Data_for_FY22[[#This Row],[Median]]-AAMC_Raw_Data_for_FY22[[#This Row],[25th]])/25)*20) + AAMC_Raw_Data_for_FY22[[#This Row],[25th]]","v":0},null,{"$f":"(((AAMC_Raw_Data_for_FY22[[#This Row],[75th]]-AAMC_Raw_Data_for_FY22[[#This Row],[Median]])/25)*5) + AAMC_Raw_Data_for_FY22[[#This Row],[Median]]","v":0},{"$f":"(((AAMC_Raw_Data_for_FY22[[#This Row],[75th]]-AAMC_Raw_Data_for_FY22[[#This Row],[Median]])/25)*10) + AAMC_Raw_Data_for_FY22[[#This Row],[Median]]","v":0},{"$f":"(((AAMC_Raw_Data_for_FY22[[#This Row],[75th]]-AAMC_Raw_Data_for_FY22[[#This Row],[Median]])/25)*15) + AAMC_Raw_Data_for_FY22[[#This Row],[Median]]","v":0},{"$f":"(((AAMC_Raw_Data_for_FY22[[#This Row],[75th]]-AAMC_Raw_Data_for_FY22[[#This Row],[Median]])/25)*20) + AAMC_Raw_Data_for_FY22[[#This Row],[Median]]","v":0},null,{"$f":"(((AAMC_Raw_Data_for_FY22[[#This Row],[75th]]-AAMC_Raw_Data_for_FY22[[#This Row],[Median]])/25)*30) + AAMC_Raw_Data_for_FY22[[#This Row],[Median]]","v":0},{"$f":"(((AAMC_Raw_Data_for_FY22[[#This Row],[75th]]-AAMC_Raw_Data_for_FY22[[#This Row],[Median]])/25)*35) + AAMC_Raw_Data_for_FY22[[#This Row],[Median]]","v":0},{"$f":"(((AAMC_Raw_Data_for_FY22[[#This Row],[75th]]-AAMC_Raw_Data_for_FY22[[#This Row],[Median]])/25)*40) + AAMC_Raw_Data_for_FY22[[#This Row],[Median]]","v":0}]
[{"$f":"AAMC_Raw_Data_for_FY22[[#This Row],[Source]]&AAMC_Raw_Data_for_FY22[[#This Row],[Type]]&AAMC_Raw_Data_for_FY22[[#This Row],[School Subset]]&AAMC_Raw_Data_for_FY22[[#This Row],[Rank]]&AAMC_Raw_Data_for_FY22[[#This Row],[Degree]]&AAMC_Raw_Data_for_FY22[[#This Row],[Department / Specialty]]&\"L\"","v":"AAMCAcademicPrivateChairMDGeneticsL"},"Genetics",1,"AAMC","Academic","Private","Chair","MD","2021-2022",452793,{"$f":"(((AAMC_Raw_Data_for_FY22[[#This Row],[Median]]-AAMC_Raw_Data_for_FY22[[#This Row],[25th]])/25)*5) + AAMC_Raw_Data_for_FY22[[#This Row],[25th]]","v":469251.4},{"$f":"(((AAMC_Raw_Data_for_FY22[[#This Row],[Median]]-AAMC_Raw_Data_for_FY22[[#This Row],[25th]])/25)*10) + AAMC_Raw_Data_for_FY22[[#This Row],[25th]]","v":485709.8},{"$f":"(((AAMC_Raw_Data_for_FY22[[#This Row],[Median]]-AAMC_Raw_Data_for_FY22[[#This Row],[25th]])/25)*15) + AAMC_Raw_Data_for_FY22[[#This Row],[25th]]","v":502168.2},{"$f":"(((AAMC_Raw_Data_for_FY22[[#This Row],[Median]]-AAMC_Raw_Data_for_FY22[[#This Row],[25th]])/25)*20) + AAMC_Raw_Data_for_FY22[[#This Row],[25th]]","v":518626.6},535085,{"$f":"(((AAMC_Raw_Data_for_FY22[[#This Row],[75th]]-AAMC_Raw_Data_for_FY22[[#This Row],[Median]])/25)*5) + AAMC_Raw_Data_for_FY22[[#This Row],[Median]]","v":571493},{"$f":"(((AAMC_Raw_Data_for_FY22[[#This Row],[75th]]-AAMC_Raw_Data_for_FY22[[#This Row],[Median]])/25)*10) + AAMC_Raw_Data_for_FY22[[#This Row],[Median]]","v":607901},{"$f":"(((AAMC_Raw_Data_for_FY22[[#This Row],[75th]]-AAMC_Raw_Data_for_FY22[[#This Row],[Median]])/25)*15) + AAMC_Raw_Data_for_FY22[[#This Row],[Median]]","v":644309},{"$f":"(((AAMC_Raw_Data_for_FY22[[#This Row],[75th]]-AAMC_Raw_Data_for_FY22[[#This Row],[Median]])/25)*20) + AAMC_Raw_Data_for_FY22[[#This Row],[Median]]","v":680717},717125,{"$f":"(((AAMC_Raw_Data_for_FY22[[#This Row],[75th]]-AAMC_Raw_Data_for_FY22[[#This Row],[Median]])/25)*30) + AAMC_Raw_Data_for_FY22[[#This Row],[Median]]","v":753533},{"$f":"(((AAMC_Raw_Data_for_FY22[[#This Row],[75th]]-AAMC_Raw_Data_for_FY22[[#This Row],[Median]])/25)*35) + AAMC_Raw_Data_for_FY22[[#This Row],[Median]]","v":789941},{"$f":"(((AAMC_Raw_Data_for_FY22[[#This Row],[75th]]-AAMC_Raw_Data_for_FY22[[#This Row],[Median]])/25)*40) + AAMC_Raw_Data_for_FY22[[#This Row],[Median]]","v":826349}]
[{"$f":"AAMC_Raw_Data_for_FY22[[#This Row],[Source]]&AAMC_Raw_Data_for_FY22[[#This Row],[Type]]&AAMC_Raw_Data_for_FY22[[#This Row],[School Subset]]&AAMC_Raw_Data_for_FY22[[#This Row],[Rank]]&AAMC_Raw_Data_for_FY22[[#This Row],[Degree]]&AAMC_Raw_Data_for_FY22[[#This Row],[Department / Specialty]]&\"L\"","v":"AAMCAcademicPrivateInstructorMDMicrobiologyL"},"Microbiology",5,"AAMC","Academic","Private","Instructor","MD","2021-2022",null,{"$f":"(((AAMC_Raw_Data_for_FY22[[#This Row],[Median]]-AAMC_Raw_Data_for_FY22[[#This Row],[25th]])/25)*5) + AAMC_Raw_Data_for_FY22[[#This Row],[25th]]","v":0},{"$f":"(((AAMC_Raw_Data_for_FY22[[#This Row],[Median]]-AAMC_Raw_Data_for_FY22[[#This Row],[25th]])/25)*10) + AAMC_Raw_Data_for_FY22[[#This Row],[25th]]","v":0},{"$f":"(((AAMC_Raw_Data_for_FY22[[#This Row],[Median]]-AAMC_Raw_Data_for_FY22[[#This Row],[25th]])/25)*15) + AAMC_Raw_Data_for_FY22[[#This Row],[25th]]","v":0},{"$f":"(((AAMC_Raw_Data_for_FY22[[#This Row],[Median]]-AAMC_Raw_Data_for_FY22[[#This Row],[25th]])/25)*20) + AAMC_Raw_Data_for_FY22[[#This Row],[25th]]","v":0},null,{"$f":"(((AAMC_Raw_Data_for_FY22[[#This Row],[75th]]-AAMC_Raw_Data_for_FY22[[#This Row],[Median]])/25)*5) + AAMC_Raw_Data_for_FY22[[#This Row],[Median]]","v":0},{"$f":"(((AAMC_Raw_Data_for_FY22[[#This Row],[75th]]-AAMC_Raw_Data_for_FY22[[#This Row],[Median]])/25)*10) + AAMC_Raw_Data_for_FY22[[#This Row],[Median]]","v":0},{"$f":"(((AAMC_Raw_Data_for_FY22[[#This Row],[75th]]-AAMC_Raw_Data_for_FY22[[#This Row],[Median]])/25)*15) + AAMC_Raw_Data_for_FY22[[#This Row],[Median]]","v":0},{"$f":"(((AAMC_Raw_Data_for_FY22[[#This Row],[75th]]-AAMC_Raw_Data_for_FY22[[#This Row],[Median]])/25)*20) + AAMC_Raw_Data_for_FY22[[#This Row],[Median]]","v":0},null,{"$f":"(((AAMC_Raw_Data_for_FY22[[#This Row],[75th]]-AAMC_Raw_Data_for_FY22[[#This Row],[Median]])/25)*30) + AAMC_Raw_Data_for_FY22[[#This Row],[Median]]","v":0},{"$f":"(((AAMC_Raw_Data_for_FY22[[#This Row],[75th]]-AAMC_Raw_Data_for_FY22[[#This Row],[Median]])/25)*35) + AAMC_Raw_Data_for_FY22[[#This Row],[Median]]","v":0},{"$f":"(((AAMC_Raw_Data_for_FY22[[#This Row],[75th]]-AAMC_Raw_Data_for_FY22[[#This Row],[Median]])/25)*40) + AAMC_Raw_Data_for_FY22[[#This Row],[Median]]","v":0}]
[{"$f":"AAMC_Raw_Data_for_FY22[[#This Row],[Source]]&AAMC_Raw_Data_for_FY22[[#This Row],[Type]]&AAMC_Raw_Data_for_FY22[[#This Row],[School Subset]]&AAMC_Raw_Data_for_FY22[[#This Row],[Rank]]&AAMC_Raw_Data_for_FY22[[#This Row],[Degree]]&AAMC_Raw_Data_for_FY22[[#This Row],[Department / Specialty]]&\"L\"","v":"AAMCAcademicPrivateAssistantMDMicrobiologyL"},"Microbiology",4,"AAMC","Academic","Private","Assistant","MD","2021-2022",90458,{"$f":"(((AAMC_Raw_Data_for_FY22[[#This Row],[Median]]-AAMC_Raw_Data_for_FY22[[#This Row],[25th]])/25)*5) + AAMC_Raw_Data_for_FY22[[#This Row],[25th]]","v":93964.800000000003},{"$f":"(((AAMC_Raw_Data_for_FY22[[#This Row],[Median]]-AAMC_Raw_Data_for_FY22[[#This Row],[25th]])/25)*10) + AAMC_Raw_Data_for_FY22[[#This Row],[25th]]","v":97471.6},{"$f":"(((AAMC_Raw_Data_for_FY22[[#This Row],[Median]]-AAMC_Raw_Data_for_FY22[[#This Row],[25th]])/25)*15) + AAMC_Raw_Data_for_FY22[[#This Row],[25th]]","v":100978.4},{"$f":"(((AAMC_Raw_Data_for_FY22[[#This Row],[Median]]-AAMC_Raw_Data_for_FY22[[#This Row],[25th]])/25)*20) + AAMC_Raw_Data_for_FY22[[#This Row],[25th]]","v":104485.2},107992,{"$f":"(((AAMC_Raw_Data_for_FY22[[#This Row],[75th]]-AAMC_Raw_Data_for_FY22[[#This Row],[Median]])/25)*5) + AAMC_Raw_Data_for_FY22[[#This Row],[Median]]","v":117858.4},{"$f":"(((AAMC_Raw_Data_for_FY22[[#This Row],[75th]]-AAMC_Raw_Data_for_FY22[[#This Row],[Median]])/25)*10) + AAMC_Raw_Data_for_FY22[[#This Row],[Median]]","v":127724.8},{"$f":"(((AAMC_Raw_Data_for_FY22[[#This Row],[75th]]-AAMC_Raw_Data_for_FY22[[#This Row],[Median]])/25)*15) + AAMC_Raw_Data_for_FY22[[#This Row],[Median]]","v":137591.20000000001},{"$f":"(((AAMC_Raw_Data_for_FY22[[#This Row],[75th]]-AAMC_Raw_Data_for_FY22[[#This Row],[Median]])/25)*20) + AAMC_Raw_Data_for_FY22[[#This Row],[Median]]","v":147457.60000000001},157324,{"$f":"(((AAMC_Raw_Data_for_FY22[[#This Row],[75th]]-AAMC_Raw_Data_for_FY22[[#This Row],[Median]])/25)*30) + AAMC_Raw_Data_for_FY22[[#This Row],[Median]]","v":167190.39999999999},{"$f":"(((AAMC_Raw_Data_for_FY22[[#This Row],[75th]]-AAMC_Raw_Data_for_FY22[[#This Row],[Median]])/25)*35) + AAMC_Raw_Data_for_FY22[[#This Row],[Median]]","v":177056.8},{"$f":"(((AAMC_Raw_Data_for_FY22[[#This Row],[75th]]-AAMC_Raw_Data_for_FY22[[#This Row],[Median]])/25)*40) + AAMC_Raw_Data_for_FY22[[#This Row],[Median]]","v":186923.2}]
[{"$f":"AAMC_Raw_Data_for_FY22[[#This Row],[Source]]&AAMC_Raw_Data_for_FY22[[#This Row],[Type]]&AAMC_Raw_Data_for_FY22[[#This Row],[School Subset]]&AAMC_Raw_Data_for_FY22[[#This Row],[Rank]]&AAMC_Raw_Data_for_FY22[[#This Row],[Degree]]&AAMC_Raw_Data_for_FY22[[#This Row],[Department / Specialty]]&\"L\"","v":"AAMCAcademicPrivateAssociateMDMicrobiologyL"},"Microbiology",3,"AAMC","Academic","Private","Associate","MD","2021-2022",134113,{"$f":"(((AAMC_Raw_Data_for_FY22[[#This Row],[Median]]-AAMC_Raw_Data_for_FY22[[#This Row],[25th]])/25)*5) + AAMC_Raw_Data_for_FY22[[#This Row],[25th]]","v":137273.20000000001},{"$f":"(((AAMC_Raw_Data_for_FY22[[#This Row],[Median]]-AAMC_Raw_Data_for_FY22[[#This Row],[25th]])/25)*10) + AAMC_Raw_Data_for_FY22[[#This Row],[25th]]","v":140433.4},{"$f":"(((AAMC_Raw_Data_for_FY22[[#This Row],[Median]]-AAMC_Raw_Data_for_FY22[[#This Row],[25th]])/25)*15) + AAMC_Raw_Data_for_FY22[[#This Row],[25th]]","v":143593.60000000001},{"$f":"(((AAMC_Raw_Data_for_FY22[[#This Row],[Median]]-AAMC_Raw_Data_for_FY22[[#This Row],[25th]])/25)*20) + AAMC_Raw_Data_for_FY22[[#This Row],[25th]]","v":146753.79999999999},149914,{"$f":"(((AAMC_Raw_Data_for_FY22[[#This Row],[75th]]-AAMC_Raw_Data_for_FY22[[#This Row],[Median]])/25)*5) + AAMC_Raw_Data_for_FY22[[#This Row],[Median]]","v":151761.20000000001},{"$f":"(((AAMC_Raw_Data_for_FY22[[#This Row],[75th]]-AAMC_Raw_Data_for_FY22[[#This Row],[Median]])/25)*10) + AAMC_Raw_Data_for_FY22[[#This Row],[Median]]","v":153608.4},{"$f":"(((AAMC_Raw_Data_for_FY22[[#This Row],[75th]]-AAMC_Raw_Data_for_FY22[[#This Row],[Median]])/25)*15) + AAMC_Raw_Data_for_FY22[[#This Row],[Median]]","v":155455.6},{"$f":"(((AAMC_Raw_Data_for_FY22[[#This Row],[75th]]-AAMC_Raw_Data_for_FY22[[#This Row],[Median]])/25)*20) + AAMC_Raw_Data_for_FY22[[#This Row],[Median]]","v":157302.79999999999},159150,{"$f":"(((AAMC_Raw_Data_for_FY22[[#This Row],[75th]]-AAMC_Raw_Data_for_FY22[[#This Row],[Median]])/25)*30) + AAMC_Raw_Data_for_FY22[[#This Row],[Median]]","v":160997.20000000001},{"$f":"(((AAMC_Raw_Data_for_FY22[[#This Row],[75th]]-AAMC_Raw_Data_for_FY22[[#This Row],[Median]])/25)*35) + AAMC_Raw_Data_for_FY22[[#This Row],[Median]]","v":162844.4},{"$f":"(((AAMC_Raw_Data_for_FY22[[#This Row],[75th]]-AAMC_Raw_Data_for_FY22[[#This Row],[Median]])/25)*40) + AAMC_Raw_Data_for_FY22[[#This Row],[Median]]","v":164691.6}]
[{"$f":"AAMC_Raw_Data_for_FY22[[#This Row],[Source]]&AAMC_Raw_Data_for_FY22[[#This Row],[Type]]&AAMC_Raw_Data_for_FY22[[#This Row],[School Subset]]&AAMC_Raw_Data_for_FY22[[#This Row],[Rank]]&AAMC_Raw_Data_for_FY22[[#This Row],[Degree]]&AAMC_Raw_Data_for_FY22[[#This Row],[Department / Specialty]]&\"L\"","v":"AAMCAcademicPrivateProfessorMDMicrobiologyL"},"Microbiology",2,"AAMC","Academic","Private","Professor","MD","2021-2022",181675,{"$f":"(((AAMC_Raw_Data_for_FY22[[#This Row],[Median]]-AAMC_Raw_Data_for_FY22[[#This Row],[25th]])/25)*5) + AAMC_Raw_Data_for_FY22[[#This Row],[25th]]","v":192069.8},{"$f":"(((AAMC_Raw_Data_for_FY22[[#This Row],[Median]]-AAMC_Raw_Data_for_FY22[[#This Row],[25th]])/25)*10) + AAMC_Raw_Data_for_FY22[[#This Row],[25th]]","v":202464.6},{"$f":"(((AAMC_Raw_Data_for_FY22[[#This Row],[Median]]-AAMC_Raw_Data_for_FY22[[#This Row],[25th]])/25)*15) + AAMC_Raw_Data_for_FY22[[#This Row],[25th]]","v":212859.4},{"$f":"(((AAMC_Raw_Data_for_FY22[[#This Row],[Median]]-AAMC_Raw_Data_for_FY22[[#This Row],[25th]])/25)*20) + AAMC_Raw_Data_for_FY22[[#This Row],[25th]]","v":223254.2},233649,{"$f":"(((AAMC_Raw_Data_for_FY22[[#This Row],[75th]]-AAMC_Raw_Data_for_FY22[[#This Row],[Median]])/25)*5) + AAMC_Raw_Data_for_FY22[[#This Row],[Median]]","v":243627.4},{"$f":"(((AAMC_Raw_Data_for_FY22[[#This Row],[75th]]-AAMC_Raw_Data_for_FY22[[#This Row],[Median]])/25)*10) + AAMC_Raw_Data_for_FY22[[#This Row],[Median]]","v":253605.8},{"$f":"(((AAMC_Raw_Data_for_FY22[[#This Row],[75th]]-AAMC_Raw_Data_for_FY22[[#This Row],[Median]])/25)*15) + AAMC_Raw_Data_for_FY22[[#This Row],[Median]]","v":263584.2},{"$f":"(((AAMC_Raw_Data_for_FY22[[#This Row],[75th]]-AAMC_Raw_Data_for_FY22[[#This Row],[Median]])/25)*20) + AAMC_Raw_Data_for_FY22[[#This Row],[Median]]","v":273562.59999999998},283541,{"$f":"(((AAMC_Raw_Data_for_FY22[[#This Row],[75th]]-AAMC_Raw_Data_for_FY22[[#This Row],[Median]])/25)*30) + AAMC_Raw_Data_for_FY22[[#This Row],[Median]]","v":293519.40000000002},{"$f":"(((AAMC_Raw_Data_for_FY22[[#This Row],[75th]]-AAMC_Raw_Data_for_FY22[[#This Row],[Median]])/25)*35) + AAMC_Raw_Data_for_FY22[[#This Row],[Median]]","v":303497.8},{"$f":"(((AAMC_Raw_Data_for_FY22[[#This Row],[75th]]-AAMC_Raw_Data_for_FY22[[#This Row],[Median]])/25)*40) + AAMC_Raw_Data_for_FY22[[#This Row],[Median]]","v":313476.2}]
[{"$f":"AAMC_Raw_Data_for_FY22[[#This Row],[Source]]&AAMC_Raw_Data_for_FY22[[#This Row],[Type]]&AAMC_Raw_Data_for_FY22[[#This Row],[School Subset]]&AAMC_Raw_Data_for_FY22[[#This Row],[Rank]]&AAMC_Raw_Data_for_FY22[[#This Row],[Degree]]&AAMC_Raw_Data_for_FY22[[#This Row],[Department / Specialty]]&\"L\"","v":"AAMCAcademicPrivateChairMDMicrobiologyL"},"Microbiology",1,"AAMC","Academic","Private","Chair","MD","2021-2022",null,{"$f":"(((AAMC_Raw_Data_for_FY22[[#This Row],[Median]]-AAMC_Raw_Data_for_FY22[[#This Row],[25th]])/25)*5) + AAMC_Raw_Data_for_FY22[[#This Row],[25th]]","v":0},{"$f":"(((AAMC_Raw_Data_for_FY22[[#This Row],[Median]]-AAMC_Raw_Data_for_FY22[[#This Row],[25th]])/25)*10) + AAMC_Raw_Data_for_FY22[[#This Row],[25th]]","v":0},{"$f":"(((AAMC_Raw_Data_for_FY22[[#This Row],[Median]]-AAMC_Raw_Data_for_FY22[[#This Row],[25th]])/25)*15) + AAMC_Raw_Data_for_FY22[[#This Row],[25th]]","v":0},{"$f":"(((AAMC_Raw_Data_for_FY22[[#This Row],[Median]]-AAMC_Raw_Data_for_FY22[[#This Row],[25th]])/25)*20) + AAMC_Raw_Data_for_FY22[[#This Row],[25th]]","v":0},null,{"$f":"(((AAMC_Raw_Data_for_FY22[[#This Row],[75th]]-AAMC_Raw_Data_for_FY22[[#This Row],[Median]])/25)*5) + AAMC_Raw_Data_for_FY22[[#This Row],[Median]]","v":0},{"$f":"(((AAMC_Raw_Data_for_FY22[[#This Row],[75th]]-AAMC_Raw_Data_for_FY22[[#This Row],[Median]])/25)*10) + AAMC_Raw_Data_for_FY22[[#This Row],[Median]]","v":0},{"$f":"(((AAMC_Raw_Data_for_FY22[[#This Row],[75th]]-AAMC_Raw_Data_for_FY22[[#This Row],[Median]])/25)*15) + AAMC_Raw_Data_for_FY22[[#This Row],[Median]]","v":0},{"$f":"(((AAMC_Raw_Data_for_FY22[[#This Row],[75th]]-AAMC_Raw_Data_for_FY22[[#This Row],[Median]])/25)*20) + AAMC_Raw_Data_for_FY22[[#This Row],[Median]]","v":0},null,{"$f":"(((AAMC_Raw_Data_for_FY22[[#This Row],[75th]]-AAMC_Raw_Data_for_FY22[[#This Row],[Median]])/25)*30) + AAMC_Raw_Data_for_FY22[[#This Row],[Median]]","v":0},{"$f":"(((AAMC_Raw_Data_for_FY22[[#This Row],[75th]]-AAMC_Raw_Data_for_FY22[[#This Row],[Median]])/25)*35) + AAMC_Raw_Data_for_FY22[[#This Row],[Median]]","v":0},{"$f":"(((AAMC_Raw_Data_for_FY22[[#This Row],[75th]]-AAMC_Raw_Data_for_FY22[[#This Row],[Median]])/25)*40) + AAMC_Raw_Data_for_FY22[[#This Row],[Median]]","v":0}]
[{"$f":"AAMC_Raw_Data_for_FY22[[#This Row],[Source]]&AAMC_Raw_Data_for_FY22[[#This Row],[Type]]&AAMC_Raw_Data_for_FY22[[#This Row],[School Subset]]&AAMC_Raw_Data_for_FY22[[#This Row],[Rank]]&AAMC_Raw_Data_for_FY22[[#This Row],[Degree]]&AAMC_Raw_Data_for_FY22[[#This Row],[Department / Specialty]]&\"L\"","v":"AAMCAcademicPrivateInstructorMDMolecular & Cellular BiologyL"},"Molecular & Cellular Biology",5,"AAMC","Academic","Private","Instructor","MD","2021-2022",null,{"$f":"(((AAMC_Raw_Data_for_FY22[[#This Row],[Median]]-AAMC_Raw_Data_for_FY22[[#This Row],[25th]])/25)*5) + AAMC_Raw_Data_for_FY22[[#This Row],[25th]]","v":0},{"$f":"(((AAMC_Raw_Data_for_FY22[[#This Row],[Median]]-AAMC_Raw_Data_for_FY22[[#This Row],[25th]])/25)*10) + AAMC_Raw_Data_for_FY22[[#This Row],[25th]]","v":0},{"$f":"(((AAMC_Raw_Data_for_FY22[[#This Row],[Median]]-AAMC_Raw_Data_for_FY22[[#This Row],[25th]])/25)*15) + AAMC_Raw_Data_for_FY22[[#This Row],[25th]]","v":0},{"$f":"(((AAMC_Raw_Data_for_FY22[[#This Row],[Median]]-AAMC_Raw_Data_for_FY22[[#This Row],[25th]])/25)*20) + AAMC_Raw_Data_for_FY22[[#This Row],[25th]]","v":0},null,{"$f":"(((AAMC_Raw_Data_for_FY22[[#This Row],[75th]]-AAMC_Raw_Data_for_FY22[[#This Row],[Median]])/25)*5) + AAMC_Raw_Data_for_FY22[[#This Row],[Median]]","v":0},{"$f":"(((AAMC_Raw_Data_for_FY22[[#This Row],[75th]]-AAMC_Raw_Data_for_FY22[[#This Row],[Median]])/25)*10) + AAMC_Raw_Data_for_FY22[[#This Row],[Median]]","v":0},{"$f":"(((AAMC_Raw_Data_for_FY22[[#This Row],[75th]]-AAMC_Raw_Data_for_FY22[[#This Row],[Median]])/25)*15) + AAMC_Raw_Data_for_FY22[[#This Row],[Median]]","v":0},{"$f":"(((AAMC_Raw_Data_for_FY22[[#This Row],[75th]]-AAMC_Raw_Data_for_FY22[[#This Row],[Median]])/25)*20) + AAMC_Raw_Data_for_FY22[[#This Row],[Median]]","v":0},null,{"$f":"(((AAMC_Raw_Data_for_FY22[[#This Row],[75th]]-AAMC_Raw_Data_for_FY22[[#This Row],[Median]])/25)*30) + AAMC_Raw_Data_for_FY22[[#This Row],[Median]]","v":0},{"$f":"(((AAMC_Raw_Data_for_FY22[[#This Row],[75th]]-AAMC_Raw_Data_for_FY22[[#This Row],[Median]])/25)*35) + AAMC_Raw_Data_for_FY22[[#This Row],[Median]]","v":0},{"$f":"(((AAMC_Raw_Data_for_FY22[[#This Row],[75th]]-AAMC_Raw_Data_for_FY22[[#This Row],[Median]])/25)*40) + AAMC_Raw_Data_for_FY22[[#This Row],[Median]]","v":0}]
[{"$f":"AAMC_Raw_Data_for_FY22[[#This Row],[Source]]&AAMC_Raw_Data_for_FY22[[#This Row],[Type]]&AAMC_Raw_Data_for_FY22[[#This Row],[School Subset]]&AAMC_Raw_Data_for_FY22[[#This Row],[Rank]]&AAMC_Raw_Data_for_FY22[[#This Row],[Degree]]&AAMC_Raw_Data_for_FY22[[#This Row],[Department / Specialty]]&\"L\"","v":"AAMCAcademicPrivateAssistantMDMolecular & Cellular BiologyL"},"Molecular & Cellular Biology",4,"AAMC","Academic","Private","Assistant","MD","2021-2022",99083,{"$f":"(((AAMC_Raw_Data_for_FY22[[#This Row],[Median]]-AAMC_Raw_Data_for_FY22[[#This Row],[25th]])/25)*5) + AAMC_Raw_Data_for_FY22[[#This Row],[25th]]","v":106244.8},{"$f":"(((AAMC_Raw_Data_for_FY22[[#This Row],[Median]]-AAMC_Raw_Data_for_FY22[[#This Row],[25th]])/25)*10) + AAMC_Raw_Data_for_FY22[[#This Row],[25th]]","v":113406.6},{"$f":"(((AAMC_Raw_Data_for_FY22[[#This Row],[Median]]-AAMC_Raw_Data_for_FY22[[#This Row],[25th]])/25)*15) + AAMC_Raw_Data_for_FY22[[#This Row],[25th]]","v":120568.4},{"$f":"(((AAMC_Raw_Data_for_FY22[[#This Row],[Median]]-AAMC_Raw_Data_for_FY22[[#This Row],[25th]])/25)*20) + AAMC_Raw_Data_for_FY22[[#This Row],[25th]]","v":127730.2},134892,{"$f":"(((AAMC_Raw_Data_for_FY22[[#This Row],[75th]]-AAMC_Raw_Data_for_FY22[[#This Row],[Median]])/25)*5) + AAMC_Raw_Data_for_FY22[[#This Row],[Median]]","v":140844.4},{"$f":"(((AAMC_Raw_Data_for_FY22[[#This Row],[75th]]-AAMC_Raw_Data_for_FY22[[#This Row],[Median]])/25)*10) + AAMC_Raw_Data_for_FY22[[#This Row],[Median]]","v":146796.79999999999},{"$f":"(((AAMC_Raw_Data_for_FY22[[#This Row],[75th]]-AAMC_Raw_Data_for_FY22[[#This Row],[Median]])/25)*15) + AAMC_Raw_Data_for_FY22[[#This Row],[Median]]","v":152749.20000000001},{"$f":"(((AAMC_Raw_Data_for_FY22[[#This Row],[75th]]-AAMC_Raw_Data_for_FY22[[#This Row],[Median]])/25)*20) + AAMC_Raw_Data_for_FY22[[#This Row],[Median]]","v":158701.6},164654,{"$f":"(((AAMC_Raw_Data_for_FY22[[#This Row],[75th]]-AAMC_Raw_Data_for_FY22[[#This Row],[Median]])/25)*30) + AAMC_Raw_Data_for_FY22[[#This Row],[Median]]","v":170606.4},{"$f":"(((AAMC_Raw_Data_for_FY22[[#This Row],[75th]]-AAMC_Raw_Data_for_FY22[[#This Row],[Median]])/25)*35) + AAMC_Raw_Data_for_FY22[[#This Row],[Median]]","v":176558.8},{"$f":"(((AAMC_Raw_Data_for_FY22[[#This Row],[75th]]-AAMC_Raw_Data_for_FY22[[#This Row],[Median]])/25)*40) + AAMC_Raw_Data_for_FY22[[#This Row],[Median]]","v":182511.2}]
[{"$f":"AAMC_Raw_Data_for_FY22[[#This Row],[Source]]&AAMC_Raw_Data_for_FY22[[#This Row],[Type]]&AAMC_Raw_Data_for_FY22[[#This Row],[School Subset]]&AAMC_Raw_Data_for_FY22[[#This Row],[Rank]]&AAMC_Raw_Data_for_FY22[[#This Row],[Degree]]&AAMC_Raw_Data_for_FY22[[#This Row],[Department / Specialty]]&\"L\"","v":"AAMCAcademicPrivateAssociateMDMolecular & Cellular BiologyL"},"Molecular & Cellular Biology",3,"AAMC","Academic","Private","Associate","MD","2021-2022",116360,{"$f":"(((AAMC_Raw_Data_for_FY22[[#This Row],[Median]]-AAMC_Raw_Data_for_FY22[[#This Row],[25th]])/25)*5) + AAMC_Raw_Data_for_FY22[[#This Row],[25th]]","v":119942.39999999999},{"$f":"(((AAMC_Raw_Data_for_FY22[[#This Row],[Median]]-AAMC_Raw_Data_for_FY22[[#This Row],[25th]])/25)*10) + AAMC_Raw_Data_for_FY22[[#This Row],[25th]]","v":123524.8},{"$f":"(((AAMC_Raw_Data_for_FY22[[#This Row],[Median]]-AAMC_Raw_Data_for_FY22[[#This Row],[25th]])/25)*15) + AAMC_Raw_Data_for_FY22[[#This Row],[25th]]","v":127107.2},{"$f":"(((AAMC_Raw_Data_for_FY22[[#This Row],[Median]]-AAMC_Raw_Data_for_FY22[[#This Row],[25th]])/25)*20) + AAMC_Raw_Data_for_FY22[[#This Row],[25th]]","v":130689.60000000001},134272,{"$f":"(((AAMC_Raw_Data_for_FY22[[#This Row],[75th]]-AAMC_Raw_Data_for_FY22[[#This Row],[Median]])/25)*5) + AAMC_Raw_Data_for_FY22[[#This Row],[Median]]","v":137071},{"$f":"(((AAMC_Raw_Data_for_FY22[[#This Row],[75th]]-AAMC_Raw_Data_for_FY22[[#This Row],[Median]])/25)*10) + AAMC_Raw_Data_for_FY22[[#This Row],[Median]]","v":139870},{"$f":"(((AAMC_Raw_Data_for_FY22[[#This Row],[75th]]-AAMC_Raw_Data_for_FY22[[#This Row],[Median]])/25)*15) + AAMC_Raw_Data_for_FY22[[#This Row],[Median]]","v":142669},{"$f":"(((AAMC_Raw_Data_for_FY22[[#This Row],[75th]]-AAMC_Raw_Data_for_FY22[[#This Row],[Median]])/25)*20) + AAMC_Raw_Data_for_FY22[[#This Row],[Median]]","v":145468},148267,{"$f":"(((AAMC_Raw_Data_for_FY22[[#This Row],[75th]]-AAMC_Raw_Data_for_FY22[[#This Row],[Median]])/25)*30) + AAMC_Raw_Data_for_FY22[[#This Row],[Median]]","v":151066},{"$f":"(((AAMC_Raw_Data_for_FY22[[#This Row],[75th]]-AAMC_Raw_Data_for_FY22[[#This Row],[Median]])/25)*35) + AAMC_Raw_Data_for_FY22[[#This Row],[Median]]","v":153865},{"$f":"(((AAMC_Raw_Data_for_FY22[[#This Row],[75th]]-AAMC_Raw_Data_for_FY22[[#This Row],[Median]])/25)*40) + AAMC_Raw_Data_for_FY22[[#This Row],[Median]]","v":156664}]
[{"$f":"AAMC_Raw_Data_for_FY22[[#This Row],[Source]]&AAMC_Raw_Data_for_FY22[[#This Row],[Type]]&AAMC_Raw_Data_for_FY22[[#This Row],[School Subset]]&AAMC_Raw_Data_for_FY22[[#This Row],[Rank]]&AAMC_Raw_Data_for_FY22[[#This Row],[Degree]]&AAMC_Raw_Data_for_FY22[[#This Row],[Department / Specialty]]&\"L\"","v":"AAMCAcademicPrivateProfessorMDMolecular & Cellular BiologyL"},"Molecular & Cellular Biology",2,"AAMC","Academic","Private","Professor","MD","2021-2022",197741,{"$f":"(((AAMC_Raw_Data_for_FY22[[#This Row],[Median]]-AAMC_Raw_Data_for_FY22[[#This Row],[25th]])/25)*5) + AAMC_Raw_Data_for_FY22[[#This Row],[25th]]","v":205407.8},{"$f":"(((AAMC_Raw_Data_for_FY22[[#This Row],[Median]]-AAMC_Raw_Data_for_FY22[[#This Row],[25th]])/25)*10) + AAMC_Raw_Data_for_FY22[[#This Row],[25th]]","v":213074.6},{"$f":"(((AAMC_Raw_Data_for_FY22[[#This Row],[Median]]-AAMC_Raw_Data_for_FY22[[#This Row],[25th]])/25)*15) + AAMC_Raw_Data_for_FY22[[#This Row],[25th]]","v":220741.4},{"$f":"(((AAMC_Raw_Data_for_FY22[[#This Row],[Median]]-AAMC_Raw_Data_for_FY22[[#This Row],[25th]])/25)*20) + AAMC_Raw_Data_for_FY22[[#This Row],[25th]]","v":228408.2},236075,{"$f":"(((AAMC_Raw_Data_for_FY22[[#This Row],[75th]]-AAMC_Raw_Data_for_FY22[[#This Row],[Median]])/25)*5) + AAMC_Raw_Data_for_FY22[[#This Row],[Median]]","v":248935},{"$f":"(((AAMC_Raw_Data_for_FY22[[#This Row],[75th]]-AAMC_Raw_Data_for_FY22[[#This Row],[Median]])/25)*10) + AAMC_Raw_Data_for_FY22[[#This Row],[Median]]","v":261795},{"$f":"(((AAMC_Raw_Data_for_FY22[[#This Row],[75th]]-AAMC_Raw_Data_for_FY22[[#This Row],[Median]])/25)*15) + AAMC_Raw_Data_for_FY22[[#This Row],[Median]]","v":274655},{"$f":"(((AAMC_Raw_Data_for_FY22[[#This Row],[75th]]-AAMC_Raw_Data_for_FY22[[#This Row],[Median]])/25)*20) + AAMC_Raw_Data_for_FY22[[#This Row],[Median]]","v":287515},300375,{"$f":"(((AAMC_Raw_Data_for_FY22[[#This Row],[75th]]-AAMC_Raw_Data_for_FY22[[#This Row],[Median]])/25)*30) + AAMC_Raw_Data_for_FY22[[#This Row],[Median]]","v":313235},{"$f":"(((AAMC_Raw_Data_for_FY22[[#This Row],[75th]]-AAMC_Raw_Data_for_FY22[[#This Row],[Median]])/25)*35) + AAMC_Raw_Data_for_FY22[[#This Row],[Median]]","v":326095},{"$f":"(((AAMC_Raw_Data_for_FY22[[#This Row],[75th]]-AAMC_Raw_Data_for_FY22[[#This Row],[Median]])/25)*40) + AAMC_Raw_Data_for_FY22[[#This Row],[Median]]","v":338955}]
[{"$f":"AAMC_Raw_Data_for_FY22[[#This Row],[Source]]&AAMC_Raw_Data_for_FY22[[#This Row],[Type]]&AAMC_Raw_Data_for_FY22[[#This Row],[School Subset]]&AAMC_Raw_Data_for_FY22[[#This Row],[Rank]]&AAMC_Raw_Data_for_FY22[[#This Row],[Degree]]&AAMC_Raw_Data_for_FY22[[#This Row],[Department / Specialty]]&\"L\"","v":"AAMCAcademicPrivateChairMDMolecular & Cellular BiologyL"},"Molecular & Cellular Biology",1,"AAMC","Academic","Private","Chair","MD","2021-2022",null,{"$f":"(((AAMC_Raw_Data_for_FY22[[#This Row],[Median]]-AAMC_Raw_Data_for_FY22[[#This Row],[25th]])/25)*5) + AAMC_Raw_Data_for_FY22[[#This Row],[25th]]","v":0},{"$f":"(((AAMC_Raw_Data_for_FY22[[#This Row],[Median]]-AAMC_Raw_Data_for_FY22[[#This Row],[25th]])/25)*10) + AAMC_Raw_Data_for_FY22[[#This Row],[25th]]","v":0},{"$f":"(((AAMC_Raw_Data_for_FY22[[#This Row],[Median]]-AAMC_Raw_Data_for_FY22[[#This Row],[25th]])/25)*15) + AAMC_Raw_Data_for_FY22[[#This Row],[25th]]","v":0},{"$f":"(((AAMC_Raw_Data_for_FY22[[#This Row],[Median]]-AAMC_Raw_Data_for_FY22[[#This Row],[25th]])/25)*20) + AAMC_Raw_Data_for_FY22[[#This Row],[25th]]","v":0},null,{"$f":"(((AAMC_Raw_Data_for_FY22[[#This Row],[75th]]-AAMC_Raw_Data_for_FY22[[#This Row],[Median]])/25)*5) + AAMC_Raw_Data_for_FY22[[#This Row],[Median]]","v":0},{"$f":"(((AAMC_Raw_Data_for_FY22[[#This Row],[75th]]-AAMC_Raw_Data_for_FY22[[#This Row],[Median]])/25)*10) + AAMC_Raw_Data_for_FY22[[#This Row],[Median]]","v":0},{"$f":"(((AAMC_Raw_Data_for_FY22[[#This Row],[75th]]-AAMC_Raw_Data_for_FY22[[#This Row],[Median]])/25)*15) + AAMC_Raw_Data_for_FY22[[#This Row],[Median]]","v":0},{"$f":"(((AAMC_Raw_Data_for_FY22[[#This Row],[75th]]-AAMC_Raw_Data_for_FY22[[#This Row],[Median]])/25)*20) + AAMC_Raw_Data_for_FY22[[#This Row],[Median]]","v":0},null,{"$f":"(((AAMC_Raw_Data_for_FY22[[#This Row],[75th]]-AAMC_Raw_Data_for_FY22[[#This Row],[Median]])/25)*30) + AAMC_Raw_Data_for_FY22[[#This Row],[Median]]","v":0},{"$f":"(((AAMC_Raw_Data_for_FY22[[#This Row],[75th]]-AAMC_Raw_Data_for_FY22[[#This Row],[Median]])/25)*35) + AAMC_Raw_Data_for_FY22[[#This Row],[Median]]","v":0},{"$f":"(((AAMC_Raw_Data_for_FY22[[#This Row],[75th]]-AAMC_Raw_Data_for_FY22[[#This Row],[Median]])/25)*40) + AAMC_Raw_Data_for_FY22[[#This Row],[Median]]","v":0}]
[{"$f":"AAMC_Raw_Data_for_FY22[[#This Row],[Source]]&AAMC_Raw_Data_for_FY22[[#This Row],[Type]]&AAMC_Raw_Data_for_FY22[[#This Row],[School Subset]]&AAMC_Raw_Data_for_FY22[[#This Row],[Rank]]&AAMC_Raw_Data_for_FY22[[#This Row],[Degree]]&AAMC_Raw_Data_for_FY22[[#This Row],[Department / Specialty]]&\"L\"","v":"AAMCAcademicPrivateInstructorMDNeurosciencesL"},"Neurosciences",5,"AAMC","Academic","Private","Instructor","MD","2021-2022",null,{"$f":"(((AAMC_Raw_Data_for_FY22[[#This Row],[Median]]-AAMC_Raw_Data_for_FY22[[#This Row],[25th]])/25)*5) + AAMC_Raw_Data_for_FY22[[#This Row],[25th]]","v":0},{"$f":"(((AAMC_Raw_Data_for_FY22[[#This Row],[Median]]-AAMC_Raw_Data_for_FY22[[#This Row],[25th]])/25)*10) + AAMC_Raw_Data_for_FY22[[#This Row],[25th]]","v":0},{"$f":"(((AAMC_Raw_Data_for_FY22[[#This Row],[Median]]-AAMC_Raw_Data_for_FY22[[#This Row],[25th]])/25)*15) + AAMC_Raw_Data_for_FY22[[#This Row],[25th]]","v":0},{"$f":"(((AAMC_Raw_Data_for_FY22[[#This Row],[Median]]-AAMC_Raw_Data_for_FY22[[#This Row],[25th]])/25)*20) + AAMC_Raw_Data_for_FY22[[#This Row],[25th]]","v":0},null,{"$f":"(((AAMC_Raw_Data_for_FY22[[#This Row],[75th]]-AAMC_Raw_Data_for_FY22[[#This Row],[Median]])/25)*5) + AAMC_Raw_Data_for_FY22[[#This Row],[Median]]","v":0},{"$f":"(((AAMC_Raw_Data_for_FY22[[#This Row],[75th]]-AAMC_Raw_Data_for_FY22[[#This Row],[Median]])/25)*10) + AAMC_Raw_Data_for_FY22[[#This Row],[Median]]","v":0},{"$f":"(((AAMC_Raw_Data_for_FY22[[#This Row],[75th]]-AAMC_Raw_Data_for_FY22[[#This Row],[Median]])/25)*15) + AAMC_Raw_Data_for_FY22[[#This Row],[Median]]","v":0},{"$f":"(((AAMC_Raw_Data_for_FY22[[#This Row],[75th]]-AAMC_Raw_Data_for_FY22[[#This Row],[Median]])/25)*20) + AAMC_Raw_Data_for_FY22[[#This Row],[Median]]","v":0},null,{"$f":"(((AAMC_Raw_Data_for_FY22[[#This Row],[75th]]-AAMC_Raw_Data_for_FY22[[#This Row],[Median]])/25)*30) + AAMC_Raw_Data_for_FY22[[#This Row],[Median]]","v":0},{"$f":"(((AAMC_Raw_Data_for_FY22[[#This Row],[75th]]-AAMC_Raw_Data_for_FY22[[#This Row],[Median]])/25)*35) + AAMC_Raw_Data_for_FY22[[#This Row],[Median]]","v":0},{"$f":"(((AAMC_Raw_Data_for_FY22[[#This Row],[75th]]-AAMC_Raw_Data_for_FY22[[#This Row],[Median]])/25)*40) + AAMC_Raw_Data_for_FY22[[#This Row],[Median]]","v":0}]
[{"$f":"AAMC_Raw_Data_for_FY22[[#This Row],[Source]]&AAMC_Raw_Data_for_FY22[[#This Row],[Type]]&AAMC_Raw_Data_for_FY22[[#This Row],[School Subset]]&AAMC_Raw_Data_for_FY22[[#This Row],[Rank]]&AAMC_Raw_Data_for_FY22[[#This Row],[Degree]]&AAMC_Raw_Data_for_FY22[[#This Row],[Department / Specialty]]&\"L\"","v":"AAMCAcademicPrivateAssistantMDNeurosciencesL"},"Neurosciences",4,"AAMC","Academic","Private","Assistant","MD","2021-2022",103604,{"$f":"(((AAMC_Raw_Data_for_FY22[[#This Row],[Median]]-AAMC_Raw_Data_for_FY22[[#This Row],[25th]])/25)*5) + AAMC_Raw_Data_for_FY22[[#This Row],[25th]]","v":109799.6},{"$f":"(((AAMC_Raw_Data_for_FY22[[#This Row],[Median]]-AAMC_Raw_Data_for_FY22[[#This Row],[25th]])/25)*10) + AAMC_Raw_Data_for_FY22[[#This Row],[25th]]","v":115995.2},{"$f":"(((AAMC_Raw_Data_for_FY22[[#This Row],[Median]]-AAMC_Raw_Data_for_FY22[[#This Row],[25th]])/25)*15) + AAMC_Raw_Data_for_FY22[[#This Row],[25th]]","v":122190.8},{"$f":"(((AAMC_Raw_Data_for_FY22[[#This Row],[Median]]-AAMC_Raw_Data_for_FY22[[#This Row],[25th]])/25)*20) + AAMC_Raw_Data_for_FY22[[#This Row],[25th]]","v":128386.4},134582,{"$f":"(((AAMC_Raw_Data_for_FY22[[#This Row],[75th]]-AAMC_Raw_Data_for_FY22[[#This Row],[Median]])/25)*5) + AAMC_Raw_Data_for_FY22[[#This Row],[Median]]","v":138166.6},{"$f":"(((AAMC_Raw_Data_for_FY22[[#This Row],[75th]]-AAMC_Raw_Data_for_FY22[[#This Row],[Median]])/25)*10) + AAMC_Raw_Data_for_FY22[[#This Row],[Median]]","v":141751.20000000001},{"$f":"(((AAMC_Raw_Data_for_FY22[[#This Row],[75th]]-AAMC_Raw_Data_for_FY22[[#This Row],[Median]])/25)*15) + AAMC_Raw_Data_for_FY22[[#This Row],[Median]]","v":145335.79999999999},{"$f":"(((AAMC_Raw_Data_for_FY22[[#This Row],[75th]]-AAMC_Raw_Data_for_FY22[[#This Row],[Median]])/25)*20) + AAMC_Raw_Data_for_FY22[[#This Row],[Median]]","v":148920.4},152505,{"$f":"(((AAMC_Raw_Data_for_FY22[[#This Row],[75th]]-AAMC_Raw_Data_for_FY22[[#This Row],[Median]])/25)*30) + AAMC_Raw_Data_for_FY22[[#This Row],[Median]]","v":156089.60000000001},{"$f":"(((AAMC_Raw_Data_for_FY22[[#This Row],[75th]]-AAMC_Raw_Data_for_FY22[[#This Row],[Median]])/25)*35) + AAMC_Raw_Data_for_FY22[[#This Row],[Median]]","v":159674.20000000001},{"$f":"(((AAMC_Raw_Data_for_FY22[[#This Row],[75th]]-AAMC_Raw_Data_for_FY22[[#This Row],[Median]])/25)*40) + AAMC_Raw_Data_for_FY22[[#This Row],[Median]]","v":163258.79999999999}]
[{"$f":"AAMC_Raw_Data_for_FY22[[#This Row],[Source]]&AAMC_Raw_Data_for_FY22[[#This Row],[Type]]&AAMC_Raw_Data_for_FY22[[#This Row],[School Subset]]&AAMC_Raw_Data_for_FY22[[#This Row],[Rank]]&AAMC_Raw_Data_for_FY22[[#This Row],[Degree]]&AAMC_Raw_Data_for_FY22[[#This Row],[Department / Specialty]]&\"L\"","v":"AAMCAcademicPrivateAssociateMDNeurosciencesL"},"Neurosciences",3,"AAMC","Academic","Private","Associate","MD","2021-2022",124061,{"$f":"(((AAMC_Raw_Data_for_FY22[[#This Row],[Median]]-AAMC_Raw_Data_for_FY22[[#This Row],[25th]])/25)*5) + AAMC_Raw_Data_for_FY22[[#This Row],[25th]]","v":130199.2},{"$f":"(((AAMC_Raw_Data_for_FY22[[#This Row],[Median]]-AAMC_Raw_Data_for_FY22[[#This Row],[25th]])/25)*10) + AAMC_Raw_Data_for_FY22[[#This Row],[25th]]","v":136337.4},{"$f":"(((AAMC_Raw_Data_for_FY22[[#This Row],[Median]]-AAMC_Raw_Data_for_FY22[[#This Row],[25th]])/25)*15) + AAMC_Raw_Data_for_FY22[[#This Row],[25th]]","v":142475.6},{"$f":"(((AAMC_Raw_Data_for_FY22[[#This Row],[Median]]-AAMC_Raw_Data_for_FY22[[#This Row],[25th]])/25)*20) + AAMC_Raw_Data_for_FY22[[#This Row],[25th]]","v":148613.79999999999},154752,{"$f":"(((AAMC_Raw_Data_for_FY22[[#This Row],[75th]]-AAMC_Raw_Data_for_FY22[[#This Row],[Median]])/25)*5) + AAMC_Raw_Data_for_FY22[[#This Row],[Median]]","v":158638.20000000001},{"$f":"(((AAMC_Raw_Data_for_FY22[[#This Row],[75th]]-AAMC_Raw_Data_for_FY22[[#This Row],[Median]])/25)*10) + AAMC_Raw_Data_for_FY22[[#This Row],[Median]]","v":162524.4},{"$f":"(((AAMC_Raw_Data_for_FY22[[#This Row],[75th]]-AAMC_Raw_Data_for_FY22[[#This Row],[Median]])/25)*15) + AAMC_Raw_Data_for_FY22[[#This Row],[Median]]","v":166410.6},{"$f":"(((AAMC_Raw_Data_for_FY22[[#This Row],[75th]]-AAMC_Raw_Data_for_FY22[[#This Row],[Median]])/25)*20) + AAMC_Raw_Data_for_FY22[[#This Row],[Median]]","v":170296.8},174183,{"$f":"(((AAMC_Raw_Data_for_FY22[[#This Row],[75th]]-AAMC_Raw_Data_for_FY22[[#This Row],[Median]])/25)*30) + AAMC_Raw_Data_for_FY22[[#This Row],[Median]]","v":178069.2},{"$f":"(((AAMC_Raw_Data_for_FY22[[#This Row],[75th]]-AAMC_Raw_Data_for_FY22[[#This Row],[Median]])/25)*35) + AAMC_Raw_Data_for_FY22[[#This Row],[Median]]","v":181955.4},{"$f":"(((AAMC_Raw_Data_for_FY22[[#This Row],[75th]]-AAMC_Raw_Data_for_FY22[[#This Row],[Median]])/25)*40) + AAMC_Raw_Data_for_FY22[[#This Row],[Median]]","v":185841.6}]
[{"$f":"AAMC_Raw_Data_for_FY22[[#This Row],[Source]]&AAMC_Raw_Data_for_FY22[[#This Row],[Type]]&AAMC_Raw_Data_for_FY22[[#This Row],[School Subset]]&AAMC_Raw_Data_for_FY22[[#This Row],[Rank]]&AAMC_Raw_Data_for_FY22[[#This Row],[Degree]]&AAMC_Raw_Data_for_FY22[[#This Row],[Department / Specialty]]&\"L\"","v":"AAMCAcademicPrivateProfessorMDNeurosciencesL"},"Neurosciences",2,"AAMC","Academic","Private","Professor","MD","2021-2022",200874,{"$f":"(((AAMC_Raw_Data_for_FY22[[#This Row],[Median]]-AAMC_Raw_Data_for_FY22[[#This Row],[25th]])/25)*5) + AAMC_Raw_Data_for_FY22[[#This Row],[25th]]","v":211083.8},{"$f":"(((AAMC_Raw_Data_for_FY22[[#This Row],[Median]]-AAMC_Raw_Data_for_FY22[[#This Row],[25th]])/25)*10) + AAMC_Raw_Data_for_FY22[[#This Row],[25th]]","v":221293.6},{"$f":"(((AAMC_Raw_Data_for_FY22[[#This Row],[Median]]-AAMC_Raw_Data_for_FY22[[#This Row],[25th]])/25)*15) + AAMC_Raw_Data_for_FY22[[#This Row],[25th]]","v":231503.4},{"$f":"(((AAMC_Raw_Data_for_FY22[[#This Row],[Median]]-AAMC_Raw_Data_for_FY22[[#This Row],[25th]])/25)*20) + AAMC_Raw_Data_for_FY22[[#This Row],[25th]]","v":241713.2},251923,{"$f":"(((AAMC_Raw_Data_for_FY22[[#This Row],[75th]]-AAMC_Raw_Data_for_FY22[[#This Row],[Median]])/25)*5) + AAMC_Raw_Data_for_FY22[[#This Row],[Median]]","v":267422.40000000002},{"$f":"(((AAMC_Raw_Data_for_FY22[[#This Row],[75th]]-AAMC_Raw_Data_for_FY22[[#This Row],[Median]])/25)*10) + AAMC_Raw_Data_for_FY22[[#This Row],[Median]]","v":282921.8},{"$f":"(((AAMC_Raw_Data_for_FY22[[#This Row],[75th]]-AAMC_Raw_Data_for_FY22[[#This Row],[Median]])/25)*15) + AAMC_Raw_Data_for_FY22[[#This Row],[Median]]","v":298421.2},{"$f":"(((AAMC_Raw_Data_for_FY22[[#This Row],[75th]]-AAMC_Raw_Data_for_FY22[[#This Row],[Median]])/25)*20) + AAMC_Raw_Data_for_FY22[[#This Row],[Median]]","v":313920.59999999998},329420,{"$f":"(((AAMC_Raw_Data_for_FY22[[#This Row],[75th]]-AAMC_Raw_Data_for_FY22[[#This Row],[Median]])/25)*30) + AAMC_Raw_Data_for_FY22[[#This Row],[Median]]","v":344919.4},{"$f":"(((AAMC_Raw_Data_for_FY22[[#This Row],[75th]]-AAMC_Raw_Data_for_FY22[[#This Row],[Median]])/25)*35) + AAMC_Raw_Data_for_FY22[[#This Row],[Median]]","v":360418.8},{"$f":"(((AAMC_Raw_Data_for_FY22[[#This Row],[75th]]-AAMC_Raw_Data_for_FY22[[#This Row],[Median]])/25)*40) + AAMC_Raw_Data_for_FY22[[#This Row],[Median]]","v":375918.2}]
[{"$f":"AAMC_Raw_Data_for_FY22[[#This Row],[Source]]&AAMC_Raw_Data_for_FY22[[#This Row],[Type]]&AAMC_Raw_Data_for_FY22[[#This Row],[School Subset]]&AAMC_Raw_Data_for_FY22[[#This Row],[Rank]]&AAMC_Raw_Data_for_FY22[[#This Row],[Degree]]&AAMC_Raw_Data_for_FY22[[#This Row],[Department / Specialty]]&\"L\"","v":"AAMCAcademicPrivateChairMDNeurosciencesL"},"Neurosciences",1,"AAMC","Academic","Private","Chair","MD","2021-2022",null,{"$f":"(((AAMC_Raw_Data_for_FY22[[#This Row],[Median]]-AAMC_Raw_Data_for_FY22[[#This Row],[25th]])/25)*5) + AAMC_Raw_Data_for_FY22[[#This Row],[25th]]","v":0},{"$f":"(((AAMC_Raw_Data_for_FY22[[#This Row],[Median]]-AAMC_Raw_Data_for_FY22[[#This Row],[25th]])/25)*10) + AAMC_Raw_Data_for_FY22[[#This Row],[25th]]","v":0},{"$f":"(((AAMC_Raw_Data_for_FY22[[#This Row],[Median]]-AAMC_Raw_Data_for_FY22[[#This Row],[25th]])/25)*15) + AAMC_Raw_Data_for_FY22[[#This Row],[25th]]","v":0},{"$f":"(((AAMC_Raw_Data_for_FY22[[#This Row],[Median]]-AAMC_Raw_Data_for_FY22[[#This Row],[25th]])/25)*20) + AAMC_Raw_Data_for_FY22[[#This Row],[25th]]","v":0},null,{"$f":"(((AAMC_Raw_Data_for_FY22[[#This Row],[75th]]-AAMC_Raw_Data_for_FY22[[#This Row],[Median]])/25)*5) + AAMC_Raw_Data_for_FY22[[#This Row],[Median]]","v":0},{"$f":"(((AAMC_Raw_Data_for_FY22[[#This Row],[75th]]-AAMC_Raw_Data_for_FY22[[#This Row],[Median]])/25)*10) + AAMC_Raw_Data_for_FY22[[#This Row],[Median]]","v":0},{"$f":"(((AAMC_Raw_Data_for_FY22[[#This Row],[75th]]-AAMC_Raw_Data_for_FY22[[#This Row],[Median]])/25)*15) + AAMC_Raw_Data_for_FY22[[#This Row],[Median]]","v":0},{"$f":"(((AAMC_Raw_Data_for_FY22[[#This Row],[75th]]-AAMC_Raw_Data_for_FY22[[#This Row],[Median]])/25)*20) + AAMC_Raw_Data_for_FY22[[#This Row],[Median]]","v":0},null,{"$f":"(((AAMC_Raw_Data_for_FY22[[#This Row],[75th]]-AAMC_Raw_Data_for_FY22[[#This Row],[Median]])/25)*30) + AAMC_Raw_Data_for_FY22[[#This Row],[Median]]","v":0},{"$f":"(((AAMC_Raw_Data_for_FY22[[#This Row],[75th]]-AAMC_Raw_Data_for_FY22[[#This Row],[Median]])/25)*35) + AAMC_Raw_Data_for_FY22[[#This Row],[Median]]","v":0},{"$f":"(((AAMC_Raw_Data_for_FY22[[#This Row],[75th]]-AAMC_Raw_Data_for_FY22[[#This Row],[Median]])/25)*40) + AAMC_Raw_Data_for_FY22[[#This Row],[Median]]","v":0}]
[{"$f":"AAMC_Raw_Data_for_FY22[[#This Row],[Source]]&AAMC_Raw_Data_for_FY22[[#This Row],[Type]]&AAMC_Raw_Data_for_FY22[[#This Row],[School Subset]]&AAMC_Raw_Data_for_FY22[[#This Row],[Rank]]&AAMC_Raw_Data_for_FY22[[#This Row],[Degree]]&AAMC_Raw_Data_for_FY22[[#This Row],[Department / Specialty]]&\"L\"","v":"AAMCAcademicPrivateInstructorMDPharmacologyL"},"Pharmacology",5,"AAMC","Academic","Private","Instructor","MD","2021-2022",null,{"$f":"(((AAMC_Raw_Data_for_FY22[[#This Row],[Median]]-AAMC_Raw_Data_for_FY22[[#This Row],[25th]])/25)*5) + AAMC_Raw_Data_for_FY22[[#This Row],[25th]]","v":0},{"$f":"(((AAMC_Raw_Data_for_FY22[[#This Row],[Median]]-AAMC_Raw_Data_for_FY22[[#This Row],[25th]])/25)*10) + AAMC_Raw_Data_for_FY22[[#This Row],[25th]]","v":0},{"$f":"(((AAMC_Raw_Data_for_FY22[[#This Row],[Median]]-AAMC_Raw_Data_for_FY22[[#This Row],[25th]])/25)*15) + AAMC_Raw_Data_for_FY22[[#This Row],[25th]]","v":0},{"$f":"(((AAMC_Raw_Data_for_FY22[[#This Row],[Median]]-AAMC_Raw_Data_for_FY22[[#This Row],[25th]])/25)*20) + AAMC_Raw_Data_for_FY22[[#This Row],[25th]]","v":0},null,{"$f":"(((AAMC_Raw_Data_for_FY22[[#This Row],[75th]]-AAMC_Raw_Data_for_FY22[[#This Row],[Median]])/25)*5) + AAMC_Raw_Data_for_FY22[[#This Row],[Median]]","v":0},{"$f":"(((AAMC_Raw_Data_for_FY22[[#This Row],[75th]]-AAMC_Raw_Data_for_FY22[[#This Row],[Median]])/25)*10) + AAMC_Raw_Data_for_FY22[[#This Row],[Median]]","v":0},{"$f":"(((AAMC_Raw_Data_for_FY22[[#This Row],[75th]]-AAMC_Raw_Data_for_FY22[[#This Row],[Median]])/25)*15) + AAMC_Raw_Data_for_FY22[[#This Row],[Median]]","v":0},{"$f":"(((AAMC_Raw_Data_for_FY22[[#This Row],[75th]]-AAMC_Raw_Data_for_FY22[[#This Row],[Median]])/25)*20) + AAMC_Raw_Data_for_FY22[[#This Row],[Median]]","v":0},null,{"$f":"(((AAMC_Raw_Data_for_FY22[[#This Row],[75th]]-AAMC_Raw_Data_for_FY22[[#This Row],[Median]])/25)*30) + AAMC_Raw_Data_for_FY22[[#This Row],[Median]]","v":0},{"$f":"(((AAMC_Raw_Data_for_FY22[[#This Row],[75th]]-AAMC_Raw_Data_for_FY22[[#This Row],[Median]])/25)*35) + AAMC_Raw_Data_for_FY22[[#This Row],[Median]]","v":0},{"$f":"(((AAMC_Raw_Data_for_FY22[[#This Row],[75th]]-AAMC_Raw_Data_for_FY22[[#This Row],[Median]])/25)*40) + AAMC_Raw_Data_for_FY22[[#This Row],[Median]]","v":0}]
[{"$f":"AAMC_Raw_Data_for_FY22[[#This Row],[Source]]&AAMC_Raw_Data_for_FY22[[#This Row],[Type]]&AAMC_Raw_Data_for_FY22[[#This Row],[School Subset]]&AAMC_Raw_Data_for_FY22[[#This Row],[Rank]]&AAMC_Raw_Data_for_FY22[[#This Row],[Degree]]&AAMC_Raw_Data_for_FY22[[#This Row],[Department / Specialty]]&\"L\"","v":"AAMCAcademicPrivateAssistantMDPharmacologyL"},"Pharmacology",4,"AAMC","Academic","Private","Assistant","MD","2021-2022",90891,{"$f":"(((AAMC_Raw_Data_for_FY22[[#This Row],[Median]]-AAMC_Raw_Data_for_FY22[[#This Row],[25th]])/25)*5) + AAMC_Raw_Data_for_FY22[[#This Row],[25th]]","v":97289.600000000006},{"$f":"(((AAMC_Raw_Data_for_FY22[[#This Row],[Median]]-AAMC_Raw_Data_for_FY22[[#This Row],[25th]])/25)*10) + AAMC_Raw_Data_for_FY22[[#This Row],[25th]]","v":103688.2},{"$f":"(((AAMC_Raw_Data_for_FY22[[#This Row],[Median]]-AAMC_Raw_Data_for_FY22[[#This Row],[25th]])/25)*15) + AAMC_Raw_Data_for_FY22[[#This Row],[25th]]","v":110086.8},{"$f":"(((AAMC_Raw_Data_for_FY22[[#This Row],[Median]]-AAMC_Raw_Data_for_FY22[[#This Row],[25th]])/25)*20) + AAMC_Raw_Data_for_FY22[[#This Row],[25th]]","v":116485.4},122884,{"$f":"(((AAMC_Raw_Data_for_FY22[[#This Row],[75th]]-AAMC_Raw_Data_for_FY22[[#This Row],[Median]])/25)*5) + AAMC_Raw_Data_for_FY22[[#This Row],[Median]]","v":126505.4},{"$f":"(((AAMC_Raw_Data_for_FY22[[#This Row],[75th]]-AAMC_Raw_Data_for_FY22[[#This Row],[Median]])/25)*10) + AAMC_Raw_Data_for_FY22[[#This Row],[Median]]","v":130126.8},{"$f":"(((AAMC_Raw_Data_for_FY22[[#This Row],[75th]]-AAMC_Raw_Data_for_FY22[[#This Row],[Median]])/25)*15) + AAMC_Raw_Data_for_FY22[[#This Row],[Median]]","v":133748.20000000001},{"$f":"(((AAMC_Raw_Data_for_FY22[[#This Row],[75th]]-AAMC_Raw_Data_for_FY22[[#This Row],[Median]])/25)*20) + AAMC_Raw_Data_for_FY22[[#This Row],[Median]]","v":137369.60000000001},140991,{"$f":"(((AAMC_Raw_Data_for_FY22[[#This Row],[75th]]-AAMC_Raw_Data_for_FY22[[#This Row],[Median]])/25)*30) + AAMC_Raw_Data_for_FY22[[#This Row],[Median]]","v":144612.4},{"$f":"(((AAMC_Raw_Data_for_FY22[[#This Row],[75th]]-AAMC_Raw_Data_for_FY22[[#This Row],[Median]])/25)*35) + AAMC_Raw_Data_for_FY22[[#This Row],[Median]]","v":148233.79999999999},{"$f":"(((AAMC_Raw_Data_for_FY22[[#This Row],[75th]]-AAMC_Raw_Data_for_FY22[[#This Row],[Median]])/25)*40) + AAMC_Raw_Data_for_FY22[[#This Row],[Median]]","v":151855.20000000001}]
[{"$f":"AAMC_Raw_Data_for_FY22[[#This Row],[Source]]&AAMC_Raw_Data_for_FY22[[#This Row],[Type]]&AAMC_Raw_Data_for_FY22[[#This Row],[School Subset]]&AAMC_Raw_Data_for_FY22[[#This Row],[Rank]]&AAMC_Raw_Data_for_FY22[[#This Row],[Degree]]&AAMC_Raw_Data_for_FY22[[#This Row],[Department / Specialty]]&\"L\"","v":"AAMCAcademicPrivateAssociateMDPharmacologyL"},"Pharmacology",3,"AAMC","Academic","Private","Associate","MD","2021-2022",136988,{"$f":"(((AAMC_Raw_Data_for_FY22[[#This Row],[Median]]-AAMC_Raw_Data_for_FY22[[#This Row],[25th]])/25)*5) + AAMC_Raw_Data_for_FY22[[#This Row],[25th]]","v":139590.39999999999},{"$f":"(((AAMC_Raw_Data_for_FY22[[#This Row],[Median]]-AAMC_Raw_Data_for_FY22[[#This Row],[25th]])/25)*10) + AAMC_Raw_Data_for_FY22[[#This Row],[25th]]","v":142192.79999999999},{"$f":"(((AAMC_Raw_Data_for_FY22[[#This Row],[Median]]-AAMC_Raw_Data_for_FY22[[#This Row],[25th]])/25)*15) + AAMC_Raw_Data_for_FY22[[#This Row],[25th]]","v":144795.20000000001},{"$f":"(((AAMC_Raw_Data_for_FY22[[#This Row],[Median]]-AAMC_Raw_Data_for_FY22[[#This Row],[25th]])/25)*20) + AAMC_Raw_Data_for_FY22[[#This Row],[25th]]","v":147397.6},150000,{"$f":"(((AAMC_Raw_Data_for_FY22[[#This Row],[75th]]-AAMC_Raw_Data_for_FY22[[#This Row],[Median]])/25)*5) + AAMC_Raw_Data_for_FY22[[#This Row],[Median]]","v":155364.6},{"$f":"(((AAMC_Raw_Data_for_FY22[[#This Row],[75th]]-AAMC_Raw_Data_for_FY22[[#This Row],[Median]])/25)*10) + AAMC_Raw_Data_for_FY22[[#This Row],[Median]]","v":160729.20000000001},{"$f":"(((AAMC_Raw_Data_for_FY22[[#This Row],[75th]]-AAMC_Raw_Data_for_FY22[[#This Row],[Median]])/25)*15) + AAMC_Raw_Data_for_FY22[[#This Row],[Median]]","v":166093.79999999999},{"$f":"(((AAMC_Raw_Data_for_FY22[[#This Row],[75th]]-AAMC_Raw_Data_for_FY22[[#This Row],[Median]])/25)*20) + AAMC_Raw_Data_for_FY22[[#This Row],[Median]]","v":171458.4},176823,{"$f":"(((AAMC_Raw_Data_for_FY22[[#This Row],[75th]]-AAMC_Raw_Data_for_FY22[[#This Row],[Median]])/25)*30) + AAMC_Raw_Data_for_FY22[[#This Row],[Median]]","v":182187.6},{"$f":"(((AAMC_Raw_Data_for_FY22[[#This Row],[75th]]-AAMC_Raw_Data_for_FY22[[#This Row],[Median]])/25)*35) + AAMC_Raw_Data_for_FY22[[#This Row],[Median]]","v":187552.2},{"$f":"(((AAMC_Raw_Data_for_FY22[[#This Row],[75th]]-AAMC_Raw_Data_for_FY22[[#This Row],[Median]])/25)*40) + AAMC_Raw_Data_for_FY22[[#This Row],[Median]]","v":192916.8}]
[{"$f":"AAMC_Raw_Data_for_FY22[[#This Row],[Source]]&AAMC_Raw_Data_for_FY22[[#This Row],[Type]]&AAMC_Raw_Data_for_FY22[[#This Row],[School Subset]]&AAMC_Raw_Data_for_FY22[[#This Row],[Rank]]&AAMC_Raw_Data_for_FY22[[#This Row],[Degree]]&AAMC_Raw_Data_for_FY22[[#This Row],[Department / Specialty]]&\"L\"","v":"AAMCAcademicPrivateProfessorMDPharmacologyL"},"Pharmacology",2,"AAMC","Academic","Private","Professor","MD","2021-2022",201603,{"$f":"(((AAMC_Raw_Data_for_FY22[[#This Row],[Median]]-AAMC_Raw_Data_for_FY22[[#This Row],[25th]])/25)*5) + AAMC_Raw_Data_for_FY22[[#This Row],[25th]]","v":208476.79999999999},{"$f":"(((AAMC_Raw_Data_for_FY22[[#This Row],[Median]]-AAMC_Raw_Data_for_FY22[[#This Row],[25th]])/25)*10) + AAMC_Raw_Data_for_FY22[[#This Row],[25th]]","v":215350.6},{"$f":"(((AAMC_Raw_Data_for_FY22[[#This Row],[Median]]-AAMC_Raw_Data_for_FY22[[#This Row],[25th]])/25)*15) + AAMC_Raw_Data_for_FY22[[#This Row],[25th]]","v":222224.4},{"$f":"(((AAMC_Raw_Data_for_FY22[[#This Row],[Median]]-AAMC_Raw_Data_for_FY22[[#This Row],[25th]])/25)*20) + AAMC_Raw_Data_for_FY22[[#This Row],[25th]]","v":229098.2},235972,{"$f":"(((AAMC_Raw_Data_for_FY22[[#This Row],[75th]]-AAMC_Raw_Data_for_FY22[[#This Row],[Median]])/25)*5) + AAMC_Raw_Data_for_FY22[[#This Row],[Median]]","v":247488},{"$f":"(((AAMC_Raw_Data_for_FY22[[#This Row],[75th]]-AAMC_Raw_Data_for_FY22[[#This Row],[Median]])/25)*10) + AAMC_Raw_Data_for_FY22[[#This Row],[Median]]","v":259004},{"$f":"(((AAMC_Raw_Data_for_FY22[[#This Row],[75th]]-AAMC_Raw_Data_for_FY22[[#This Row],[Median]])/25)*15) + AAMC_Raw_Data_for_FY22[[#This Row],[Median]]","v":270520},{"$f":"(((AAMC_Raw_Data_for_FY22[[#This Row],[75th]]-AAMC_Raw_Data_for_FY22[[#This Row],[Median]])/25)*20) + AAMC_Raw_Data_for_FY22[[#This Row],[Median]]","v":282036},293552,{"$f":"(((AAMC_Raw_Data_for_FY22[[#This Row],[75th]]-AAMC_Raw_Data_for_FY22[[#This Row],[Median]])/25)*30) + AAMC_Raw_Data_for_FY22[[#This Row],[Median]]","v":305068},{"$f":"(((AAMC_Raw_Data_for_FY22[[#This Row],[75th]]-AAMC_Raw_Data_for_FY22[[#This Row],[Median]])/25)*35) + AAMC_Raw_Data_for_FY22[[#This Row],[Median]]","v":316584},{"$f":"(((AAMC_Raw_Data_for_FY22[[#This Row],[75th]]-AAMC_Raw_Data_for_FY22[[#This Row],[Median]])/25)*40) + AAMC_Raw_Data_for_FY22[[#This Row],[Median]]","v":328100}]
[{"$f":"AAMC_Raw_Data_for_FY22[[#This Row],[Source]]&AAMC_Raw_Data_for_FY22[[#This Row],[Type]]&AAMC_Raw_Data_for_FY22[[#This Row],[School Subset]]&AAMC_Raw_Data_for_FY22[[#This Row],[Rank]]&AAMC_Raw_Data_for_FY22[[#This Row],[Degree]]&AAMC_Raw_Data_for_FY22[[#This Row],[Department / Specialty]]&\"L\"","v":"AAMCAcademicPrivateChiefMDPharmacologyL"},"Pharmacology",6,"AAMC","Academic","Private","Chief","MD","2021-2022",null,{"$f":"(((AAMC_Raw_Data_for_FY22[[#This Row],[Median]]-AAMC_Raw_Data_for_FY22[[#This Row],[25th]])/25)*5) + AAMC_Raw_Data_for_FY22[[#This Row],[25th]]","v":0},{"$f":"(((AAMC_Raw_Data_for_FY22[[#This Row],[Median]]-AAMC_Raw_Data_for_FY22[[#This Row],[25th]])/25)*10) + AAMC_Raw_Data_for_FY22[[#This Row],[25th]]","v":0},{"$f":"(((AAMC_Raw_Data_for_FY22[[#This Row],[Median]]-AAMC_Raw_Data_for_FY22[[#This Row],[25th]])/25)*15) + AAMC_Raw_Data_for_FY22[[#This Row],[25th]]","v":0},{"$f":"(((AAMC_Raw_Data_for_FY22[[#This Row],[Median]]-AAMC_Raw_Data_for_FY22[[#This Row],[25th]])/25)*20) + AAMC_Raw_Data_for_FY22[[#This Row],[25th]]","v":0},null,{"$f":"(((AAMC_Raw_Data_for_FY22[[#This Row],[75th]]-AAMC_Raw_Data_for_FY22[[#This Row],[Median]])/25)*5) + AAMC_Raw_Data_for_FY22[[#This Row],[Median]]","v":0},{"$f":"(((AAMC_Raw_Data_for_FY22[[#This Row],[75th]]-AAMC_Raw_Data_for_FY22[[#This Row],[Median]])/25)*10) + AAMC_Raw_Data_for_FY22[[#This Row],[Median]]","v":0},{"$f":"(((AAMC_Raw_Data_for_FY22[[#This Row],[75th]]-AAMC_Raw_Data_for_FY22[[#This Row],[Median]])/25)*15) + AAMC_Raw_Data_for_FY22[[#This Row],[Median]]","v":0},{"$f":"(((AAMC_Raw_Data_for_FY22[[#This Row],[75th]]-AAMC_Raw_Data_for_FY22[[#This Row],[Median]])/25)*20) + AAMC_Raw_Data_for_FY22[[#This Row],[Median]]","v":0},null,{"$f":"(((AAMC_Raw_Data_for_FY22[[#This Row],[75th]]-AAMC_Raw_Data_for_FY22[[#This Row],[Median]])/25)*30) + AAMC_Raw_Data_for_FY22[[#This Row],[Median]]","v":0},{"$f":"(((AAMC_Raw_Data_for_FY22[[#This Row],[75th]]-AAMC_Raw_Data_for_FY22[[#This Row],[Median]])/25)*35) + AAMC_Raw_Data_for_FY22[[#This Row],[Median]]","v":0},{"$f":"(((AAMC_Raw_Data_for_FY22[[#This Row],[75th]]-AAMC_Raw_Data_for_FY22[[#This Row],[Median]])/25)*40) + AAMC_Raw_Data_for_FY22[[#This Row],[Median]]","v":0}]
[{"$f":"AAMC_Raw_Data_for_FY22[[#This Row],[Source]]&AAMC_Raw_Data_for_FY22[[#This Row],[Type]]&AAMC_Raw_Data_for_FY22[[#This Row],[School Subset]]&AAMC_Raw_Data_for_FY22[[#This Row],[Rank]]&AAMC_Raw_Data_for_FY22[[#This Row],[Degree]]&AAMC_Raw_Data_for_FY22[[#This Row],[Department / Specialty]]&\"L\"","v":"AAMCAcademicPrivateChairMDPharmacologyL"},"Pharmacology",1,"AAMC","Academic","Private","Chair","MD","2021-2022",340801,{"$f":"(((AAMC_Raw_Data_for_FY22[[#This Row],[Median]]-AAMC_Raw_Data_for_FY22[[#This Row],[25th]])/25)*5) + AAMC_Raw_Data_for_FY22[[#This Row],[25th]]","v":341074},{"$f":"(((AAMC_Raw_Data_for_FY22[[#This Row],[Median]]-AAMC_Raw_Data_for_FY22[[#This Row],[25th]])/25)*10) + AAMC_Raw_Data_for_FY22[[#This Row],[25th]]","v":341347},{"$f":"(((AAMC_Raw_Data_for_FY22[[#This Row],[Median]]-AAMC_Raw_Data_for_FY22[[#This Row],[25th]])/25)*15) + AAMC_Raw_Data_for_FY22[[#This Row],[25th]]","v":341620},{"$f":"(((AAMC_Raw_Data_for_FY22[[#This Row],[Median]]-AAMC_Raw_Data_for_FY22[[#This Row],[25th]])/25)*20) + AAMC_Raw_Data_for_FY22[[#This Row],[25th]]","v":341893},342166,{"$f":"(((AAMC_Raw_Data_for_FY22[[#This Row],[75th]]-AAMC_Raw_Data_for_FY22[[#This Row],[Median]])/25)*5) + AAMC_Raw_Data_for_FY22[[#This Row],[Median]]","v":363694.8},{"$f":"(((AAMC_Raw_Data_for_FY22[[#This Row],[75th]]-AAMC_Raw_Data_for_FY22[[#This Row],[Median]])/25)*10) + AAMC_Raw_Data_for_FY22[[#This Row],[Median]]","v":385223.6},{"$f":"(((AAMC_Raw_Data_for_FY22[[#This Row],[75th]]-AAMC_Raw_Data_for_FY22[[#This Row],[Median]])/25)*15) + AAMC_Raw_Data_for_FY22[[#This Row],[Median]]","v":406752.4},{"$f":"(((AAMC_Raw_Data_for_FY22[[#This Row],[75th]]-AAMC_Raw_Data_for_FY22[[#This Row],[Median]])/25)*20) + AAMC_Raw_Data_for_FY22[[#This Row],[Median]]","v":428281.2},449810,{"$f":"(((AAMC_Raw_Data_for_FY22[[#This Row],[75th]]-AAMC_Raw_Data_for_FY22[[#This Row],[Median]])/25)*30) + AAMC_Raw_Data_for_FY22[[#This Row],[Median]]","v":471338.8},{"$f":"(((AAMC_Raw_Data_for_FY22[[#This Row],[75th]]-AAMC_Raw_Data_for_FY22[[#This Row],[Median]])/25)*35) + AAMC_Raw_Data_for_FY22[[#This Row],[Median]]","v":492867.6},{"$f":"(((AAMC_Raw_Data_for_FY22[[#This Row],[75th]]-AAMC_Raw_Data_for_FY22[[#This Row],[Median]])/25)*40) + AAMC_Raw_Data_for_FY22[[#This Row],[Median]]","v":514396.4}]
[{"$f":"AAMC_Raw_Data_for_FY22[[#This Row],[Source]]&AAMC_Raw_Data_for_FY22[[#This Row],[Type]]&AAMC_Raw_Data_for_FY22[[#This Row],[School Subset]]&AAMC_Raw_Data_for_FY22[[#This Row],[Rank]]&AAMC_Raw_Data_for_FY22[[#This Row],[Degree]]&AAMC_Raw_Data_for_FY22[[#This Row],[Department / Specialty]]&\"L\"","v":"AAMCAcademicPrivateInstructorMDPhysiologyL"},"Physiology",5,"AAMC","Academic","Private","Instructor","MD","2021-2022",null,{"$f":"(((AAMC_Raw_Data_for_FY22[[#This Row],[Median]]-AAMC_Raw_Data_for_FY22[[#This Row],[25th]])/25)*5) + AAMC_Raw_Data_for_FY22[[#This Row],[25th]]","v":0},{"$f":"(((AAMC_Raw_Data_for_FY22[[#This Row],[Median]]-AAMC_Raw_Data_for_FY22[[#This Row],[25th]])/25)*10) + AAMC_Raw_Data_for_FY22[[#This Row],[25th]]","v":0},{"$f":"(((AAMC_Raw_Data_for_FY22[[#This Row],[Median]]-AAMC_Raw_Data_for_FY22[[#This Row],[25th]])/25)*15) + AAMC_Raw_Data_for_FY22[[#This Row],[25th]]","v":0},{"$f":"(((AAMC_Raw_Data_for_FY22[[#This Row],[Median]]-AAMC_Raw_Data_for_FY22[[#This Row],[25th]])/25)*20) + AAMC_Raw_Data_for_FY22[[#This Row],[25th]]","v":0},null,{"$f":"(((AAMC_Raw_Data_for_FY22[[#This Row],[75th]]-AAMC_Raw_Data_for_FY22[[#This Row],[Median]])/25)*5) + AAMC_Raw_Data_for_FY22[[#This Row],[Median]]","v":0},{"$f":"(((AAMC_Raw_Data_for_FY22[[#This Row],[75th]]-AAMC_Raw_Data_for_FY22[[#This Row],[Median]])/25)*10) + AAMC_Raw_Data_for_FY22[[#This Row],[Median]]","v":0},{"$f":"(((AAMC_Raw_Data_for_FY22[[#This Row],[75th]]-AAMC_Raw_Data_for_FY22[[#This Row],[Median]])/25)*15) + AAMC_Raw_Data_for_FY22[[#This Row],[Median]]","v":0},{"$f":"(((AAMC_Raw_Data_for_FY22[[#This Row],[75th]]-AAMC_Raw_Data_for_FY22[[#This Row],[Median]])/25)*20) + AAMC_Raw_Data_for_FY22[[#This Row],[Median]]","v":0},null,{"$f":"(((AAMC_Raw_Data_for_FY22[[#This Row],[75th]]-AAMC_Raw_Data_for_FY22[[#This Row],[Median]])/25)*30) + AAMC_Raw_Data_for_FY22[[#This Row],[Median]]","v":0},{"$f":"(((AAMC_Raw_Data_for_FY22[[#This Row],[75th]]-AAMC_Raw_Data_for_FY22[[#This Row],[Median]])/25)*35) + AAMC_Raw_Data_for_FY22[[#This Row],[Median]]","v":0},{"$f":"(((AAMC_Raw_Data_for_FY22[[#This Row],[75th]]-AAMC_Raw_Data_for_FY22[[#This Row],[Median]])/25)*40) + AAMC_Raw_Data_for_FY22[[#This Row],[Median]]","v":0}]
[{"$f":"AAMC_Raw_Data_for_FY22[[#This Row],[Source]]&AAMC_Raw_Data_for_FY22[[#This Row],[Type]]&AAMC_Raw_Data_for_FY22[[#This Row],[School Subset]]&AAMC_Raw_Data_for_FY22[[#This Row],[Rank]]&AAMC_Raw_Data_for_FY22[[#This Row],[Degree]]&AAMC_Raw_Data_for_FY22[[#This Row],[Department / Specialty]]&\"L\"","v":"AAMCAcademicPrivateAssistantMDPhysiologyL"},"Physiology",4,"AAMC","Academic","Private","Assistant","MD","2021-2022",null,{"$f":"(((AAMC_Raw_Data_for_FY22[[#This Row],[Median]]-AAMC_Raw_Data_for_FY22[[#This Row],[25th]])/25)*5) + AAMC_Raw_Data_for_FY22[[#This Row],[25th]]","v":0},{"$f":"(((AAMC_Raw_Data_for_FY22[[#This Row],[Median]]-AAMC_Raw_Data_for_FY22[[#This Row],[25th]])/25)*10) + AAMC_Raw_Data_for_FY22[[#This Row],[25th]]","v":0},{"$f":"(((AAMC_Raw_Data_for_FY22[[#This Row],[Median]]-AAMC_Raw_Data_for_FY22[[#This Row],[25th]])/25)*15) + AAMC_Raw_Data_for_FY22[[#This Row],[25th]]","v":0},{"$f":"(((AAMC_Raw_Data_for_FY22[[#This Row],[Median]]-AAMC_Raw_Data_for_FY22[[#This Row],[25th]])/25)*20) + AAMC_Raw_Data_for_FY22[[#This Row],[25th]]","v":0},null,{"$f":"(((AAMC_Raw_Data_for_FY22[[#This Row],[75th]]-AAMC_Raw_Data_for_FY22[[#This Row],[Median]])/25)*5) + AAMC_Raw_Data_for_FY22[[#This Row],[Median]]","v":0},{"$f":"(((AAMC_Raw_Data_for_FY22[[#This Row],[75th]]-AAMC_Raw_Data_for_FY22[[#This Row],[Median]])/25)*10) + AAMC_Raw_Data_for_FY22[[#This Row],[Median]]","v":0},{"$f":"(((AAMC_Raw_Data_for_FY22[[#This Row],[75th]]-AAMC_Raw_Data_for_FY22[[#This Row],[Median]])/25)*15) + AAMC_Raw_Data_for_FY22[[#This Row],[Median]]","v":0},{"$f":"(((AAMC_Raw_Data_for_FY22[[#This Row],[75th]]-AAMC_Raw_Data_for_FY22[[#This Row],[Median]])/25)*20) + AAMC_Raw_Data_for_FY22[[#This Row],[Median]]","v":0},null,{"$f":"(((AAMC_Raw_Data_for_FY22[[#This Row],[75th]]-AAMC_Raw_Data_for_FY22[[#This Row],[Median]])/25)*30) + AAMC_Raw_Data_for_FY22[[#This Row],[Median]]","v":0},{"$f":"(((AAMC_Raw_Data_for_FY22[[#This Row],[75th]]-AAMC_Raw_Data_for_FY22[[#This Row],[Median]])/25)*35) + AAMC_Raw_Data_for_FY22[[#This Row],[Median]]","v":0},{"$f":"(((AAMC_Raw_Data_for_FY22[[#This Row],[75th]]-AAMC_Raw_Data_for_FY22[[#This Row],[Median]])/25)*40) + AAMC_Raw_Data_for_FY22[[#This Row],[Median]]","v":0}]
[{"$f":"AAMC_Raw_Data_for_FY22[[#This Row],[Source]]&AAMC_Raw_Data_for_FY22[[#This Row],[Type]]&AAMC_Raw_Data_for_FY22[[#This Row],[School Subset]]&AAMC_Raw_Data_for_FY22[[#This Row],[Rank]]&AAMC_Raw_Data_for_FY22[[#This Row],[Degree]]&AAMC_Raw_Data_for_FY22[[#This Row],[Department / Specialty]]&\"L\"","v":"AAMCAcademicPrivateAssociateMDPhysiologyL"},"Physiology",3,"AAMC","Academic","Private","Associate","MD","2021-2022",119186,{"$f":"(((AAMC_Raw_Data_for_FY22[[#This Row],[Median]]-AAMC_Raw_Data_for_FY22[[#This Row],[25th]])/25)*5) + AAMC_Raw_Data_for_FY22[[#This Row],[25th]]","v":122048.4},{"$f":"(((AAMC_Raw_Data_for_FY22[[#This Row],[Median]]-AAMC_Raw_Data_for_FY22[[#This Row],[25th]])/25)*10) + AAMC_Raw_Data_for_FY22[[#This Row],[25th]]","v":124910.8},{"$f":"(((AAMC_Raw_Data_for_FY22[[#This Row],[Median]]-AAMC_Raw_Data_for_FY22[[#This Row],[25th]])/25)*15) + AAMC_Raw_Data_for_FY22[[#This Row],[25th]]","v":127773.2},{"$f":"(((AAMC_Raw_Data_for_FY22[[#This Row],[Median]]-AAMC_Raw_Data_for_FY22[[#This Row],[25th]])/25)*20) + AAMC_Raw_Data_for_FY22[[#This Row],[25th]]","v":130635.6},133498,{"$f":"(((AAMC_Raw_Data_for_FY22[[#This Row],[75th]]-AAMC_Raw_Data_for_FY22[[#This Row],[Median]])/25)*5) + AAMC_Raw_Data_for_FY22[[#This Row],[Median]]","v":137645.6},{"$f":"(((AAMC_Raw_Data_for_FY22[[#This Row],[75th]]-AAMC_Raw_Data_for_FY22[[#This Row],[Median]])/25)*10) + AAMC_Raw_Data_for_FY22[[#This Row],[Median]]","v":141793.20000000001},{"$f":"(((AAMC_Raw_Data_for_FY22[[#This Row],[75th]]-AAMC_Raw_Data_for_FY22[[#This Row],[Median]])/25)*15) + AAMC_Raw_Data_for_FY22[[#This Row],[Median]]","v":145940.79999999999},{"$f":"(((AAMC_Raw_Data_for_FY22[[#This Row],[75th]]-AAMC_Raw_Data_for_FY22[[#This Row],[Median]])/25)*20) + AAMC_Raw_Data_for_FY22[[#This Row],[Median]]","v":150088.4},154236,{"$f":"(((AAMC_Raw_Data_for_FY22[[#This Row],[75th]]-AAMC_Raw_Data_for_FY22[[#This Row],[Median]])/25)*30) + AAMC_Raw_Data_for_FY22[[#This Row],[Median]]","v":158383.6},{"$f":"(((AAMC_Raw_Data_for_FY22[[#This Row],[75th]]-AAMC_Raw_Data_for_FY22[[#This Row],[Median]])/25)*35) + AAMC_Raw_Data_for_FY22[[#This Row],[Median]]","v":162531.20000000001},{"$f":"(((AAMC_Raw_Data_for_FY22[[#This Row],[75th]]-AAMC_Raw_Data_for_FY22[[#This Row],[Median]])/25)*40) + AAMC_Raw_Data_for_FY22[[#This Row],[Median]]","v":166678.79999999999}]
[{"$f":"AAMC_Raw_Data_for_FY22[[#This Row],[Source]]&AAMC_Raw_Data_for_FY22[[#This Row],[Type]]&AAMC_Raw_Data_for_FY22[[#This Row],[School Subset]]&AAMC_Raw_Data_for_FY22[[#This Row],[Rank]]&AAMC_Raw_Data_for_FY22[[#This Row],[Degree]]&AAMC_Raw_Data_for_FY22[[#This Row],[Department / Specialty]]&\"L\"","v":"AAMCAcademicPrivateProfessorMDPhysiologyL"},"Physiology",2,"AAMC","Academic","Private","Professor","MD","2021-2022",168715,{"$f":"(((AAMC_Raw_Data_for_FY22[[#This Row],[Median]]-AAMC_Raw_Data_for_FY22[[#This Row],[25th]])/25)*5) + AAMC_Raw_Data_for_FY22[[#This Row],[25th]]","v":176962},{"$f":"(((AAMC_Raw_Data_for_FY22[[#This Row],[Median]]-AAMC_Raw_Data_for_FY22[[#This Row],[25th]])/25)*10) + AAMC_Raw_Data_for_FY22[[#This Row],[25th]]","v":185209},{"$f":"(((AAMC_Raw_Data_for_FY22[[#This Row],[Median]]-AAMC_Raw_Data_for_FY22[[#This Row],[25th]])/25)*15) + AAMC_Raw_Data_for_FY22[[#This Row],[25th]]","v":193456},{"$f":"(((AAMC_Raw_Data_for_FY22[[#This Row],[Median]]-AAMC_Raw_Data_for_FY22[[#This Row],[25th]])/25)*20) + AAMC_Raw_Data_for_FY22[[#This Row],[25th]]","v":201703},209950,{"$f":"(((AAMC_Raw_Data_for_FY22[[#This Row],[75th]]-AAMC_Raw_Data_for_FY22[[#This Row],[Median]])/25)*5) + AAMC_Raw_Data_for_FY22[[#This Row],[Median]]","v":222412.2},{"$f":"(((AAMC_Raw_Data_for_FY22[[#This Row],[75th]]-AAMC_Raw_Data_for_FY22[[#This Row],[Median]])/25)*10) + AAMC_Raw_Data_for_FY22[[#This Row],[Median]]","v":234874.4},{"$f":"(((AAMC_Raw_Data_for_FY22[[#This Row],[75th]]-AAMC_Raw_Data_for_FY22[[#This Row],[Median]])/25)*15) + AAMC_Raw_Data_for_FY22[[#This Row],[Median]]","v":247336.6},{"$f":"(((AAMC_Raw_Data_for_FY22[[#This Row],[75th]]-AAMC_Raw_Data_for_FY22[[#This Row],[Median]])/25)*20) + AAMC_Raw_Data_for_FY22[[#This Row],[Median]]","v":259798.8},272261,{"$f":"(((AAMC_Raw_Data_for_FY22[[#This Row],[75th]]-AAMC_Raw_Data_for_FY22[[#This Row],[Median]])/25)*30) + AAMC_Raw_Data_for_FY22[[#This Row],[Median]]","v":284723.20000000001},{"$f":"(((AAMC_Raw_Data_for_FY22[[#This Row],[75th]]-AAMC_Raw_Data_for_FY22[[#This Row],[Median]])/25)*35) + AAMC_Raw_Data_for_FY22[[#This Row],[Median]]","v":297185.40000000002},{"$f":"(((AAMC_Raw_Data_for_FY22[[#This Row],[75th]]-AAMC_Raw_Data_for_FY22[[#This Row],[Median]])/25)*40) + AAMC_Raw_Data_for_FY22[[#This Row],[Median]]","v":309647.59999999998}]
[{"$f":"AAMC_Raw_Data_for_FY22[[#This Row],[Source]]&AAMC_Raw_Data_for_FY22[[#This Row],[Type]]&AAMC_Raw_Data_for_FY22[[#This Row],[School Subset]]&AAMC_Raw_Data_for_FY22[[#This Row],[Rank]]&AAMC_Raw_Data_for_FY22[[#This Row],[Degree]]&AAMC_Raw_Data_for_FY22[[#This Row],[Department / Specialty]]&\"L\"","v":"AAMCAcademicPrivateChiefMDPhysiologyL"},"Physiology",6,"AAMC","Academic","Private","Chief","MD","2021-2022",null,{"$f":"(((AAMC_Raw_Data_for_FY22[[#This Row],[Median]]-AAMC_Raw_Data_for_FY22[[#This Row],[25th]])/25)*5) + AAMC_Raw_Data_for_FY22[[#This Row],[25th]]","v":0},{"$f":"(((AAMC_Raw_Data_for_FY22[[#This Row],[Median]]-AAMC_Raw_Data_for_FY22[[#This Row],[25th]])/25)*10) + AAMC_Raw_Data_for_FY22[[#This Row],[25th]]","v":0},{"$f":"(((AAMC_Raw_Data_for_FY22[[#This Row],[Median]]-AAMC_Raw_Data_for_FY22[[#This Row],[25th]])/25)*15) + AAMC_Raw_Data_for_FY22[[#This Row],[25th]]","v":0},{"$f":"(((AAMC_Raw_Data_for_FY22[[#This Row],[Median]]-AAMC_Raw_Data_for_FY22[[#This Row],[25th]])/25)*20) + AAMC_Raw_Data_for_FY22[[#This Row],[25th]]","v":0},null,{"$f":"(((AAMC_Raw_Data_for_FY22[[#This Row],[75th]]-AAMC_Raw_Data_for_FY22[[#This Row],[Median]])/25)*5) + AAMC_Raw_Data_for_FY22[[#This Row],[Median]]","v":0},{"$f":"(((AAMC_Raw_Data_for_FY22[[#This Row],[75th]]-AAMC_Raw_Data_for_FY22[[#This Row],[Median]])/25)*10) + AAMC_Raw_Data_for_FY22[[#This Row],[Median]]","v":0},{"$f":"(((AAMC_Raw_Data_for_FY22[[#This Row],[75th]]-AAMC_Raw_Data_for_FY22[[#This Row],[Median]])/25)*15) + AAMC_Raw_Data_for_FY22[[#This Row],[Median]]","v":0},{"$f":"(((AAMC_Raw_Data_for_FY22[[#This Row],[75th]]-AAMC_Raw_Data_for_FY22[[#This Row],[Median]])/25)*20) + AAMC_Raw_Data_for_FY22[[#This Row],[Median]]","v":0},null,{"$f":"(((AAMC_Raw_Data_for_FY22[[#This Row],[75th]]-AAMC_Raw_Data_for_FY22[[#This Row],[Median]])/25)*30) + AAMC_Raw_Data_for_FY22[[#This Row],[Median]]","v":0},{"$f":"(((AAMC_Raw_Data_for_FY22[[#This Row],[75th]]-AAMC_Raw_Data_for_FY22[[#This Row],[Median]])/25)*35) + AAMC_Raw_Data_for_FY22[[#This Row],[Median]]","v":0},{"$f":"(((AAMC_Raw_Data_for_FY22[[#This Row],[75th]]-AAMC_Raw_Data_for_FY22[[#This Row],[Median]])/25)*40) + AAMC_Raw_Data_for_FY22[[#This Row],[Median]]","v":0}]
[{"$f":"AAMC_Raw_Data_for_FY22[[#This Row],[Source]]&AAMC_Raw_Data_for_FY22[[#This Row],[Type]]&AAMC_Raw_Data_for_FY22[[#This Row],[School Subset]]&AAMC_Raw_Data_for_FY22[[#This Row],[Rank]]&AAMC_Raw_Data_for_FY22[[#This Row],[Degree]]&AAMC_Raw_Data_for_FY22[[#This Row],[Department / Specialty]]&\"L\"","v":"AAMCAcademicPrivateChairMDPhysiologyL"},"Physiology",1,"AAMC","Academic","Private","Chair","MD","2021-2022",null,{"$f":"(((AAMC_Raw_Data_for_FY22[[#This Row],[Median]]-AAMC_Raw_Data_for_FY22[[#This Row],[25th]])/25)*5) + AAMC_Raw_Data_for_FY22[[#This Row],[25th]]","v":0},{"$f":"(((AAMC_Raw_Data_for_FY22[[#This Row],[Median]]-AAMC_Raw_Data_for_FY22[[#This Row],[25th]])/25)*10) + AAMC_Raw_Data_for_FY22[[#This Row],[25th]]","v":0},{"$f":"(((AAMC_Raw_Data_for_FY22[[#This Row],[Median]]-AAMC_Raw_Data_for_FY22[[#This Row],[25th]])/25)*15) + AAMC_Raw_Data_for_FY22[[#This Row],[25th]]","v":0},{"$f":"(((AAMC_Raw_Data_for_FY22[[#This Row],[Median]]-AAMC_Raw_Data_for_FY22[[#This Row],[25th]])/25)*20) + AAMC_Raw_Data_for_FY22[[#This Row],[25th]]","v":0},null,{"$f":"(((AAMC_Raw_Data_for_FY22[[#This Row],[75th]]-AAMC_Raw_Data_for_FY22[[#This Row],[Median]])/25)*5) + AAMC_Raw_Data_for_FY22[[#This Row],[Median]]","v":0},{"$f":"(((AAMC_Raw_Data_for_FY22[[#This Row],[75th]]-AAMC_Raw_Data_for_FY22[[#This Row],[Median]])/25)*10) + AAMC_Raw_Data_for_FY22[[#This Row],[Median]]","v":0},{"$f":"(((AAMC_Raw_Data_for_FY22[[#This Row],[75th]]-AAMC_Raw_Data_for_FY22[[#This Row],[Median]])/25)*15) + AAMC_Raw_Data_for_FY22[[#This Row],[Median]]","v":0},{"$f":"(((AAMC_Raw_Data_for_FY22[[#This Row],[75th]]-AAMC_Raw_Data_for_FY22[[#This Row],[Median]])/25)*20) + AAMC_Raw_Data_for_FY22[[#This Row],[Median]]","v":0},null,{"$f":"(((AAMC_Raw_Data_for_FY22[[#This Row],[75th]]-AAMC_Raw_Data_for_FY22[[#This Row],[Median]])/25)*30) + AAMC_Raw_Data_for_FY22[[#This Row],[Median]]","v":0},{"$f":"(((AAMC_Raw_Data_for_FY22[[#This Row],[75th]]-AAMC_Raw_Data_for_FY22[[#This Row],[Median]])/25)*35) + AAMC_Raw_Data_for_FY22[[#This Row],[Median]]","v":0},{"$f":"(((AAMC_Raw_Data_for_FY22[[#This Row],[75th]]-AAMC_Raw_Data_for_FY22[[#This Row],[Median]])/25)*40) + AAMC_Raw_Data_for_FY22[[#This Row],[Median]]","v":0}]
[{"$f":"AAMC_Raw_Data_for_FY22[[#This Row],[Source]]&AAMC_Raw_Data_for_FY22[[#This Row],[Type]]&AAMC_Raw_Data_for_FY22[[#This Row],[School Subset]]&AAMC_Raw_Data_for_FY22[[#This Row],[Rank]]&AAMC_Raw_Data_for_FY22[[#This Row],[Degree]]&AAMC_Raw_Data_for_FY22[[#This Row],[Department / Specialty]]&\"L\"","v":"AAMCAcademicPrivateAssistantMDPopulation Health and Public HealthL"},"Population Health and Public Health",4,"AAMC","Academic","Private","Assistant","MD","2021-2022",122633,{"$f":"(((AAMC_Raw_Data_for_FY22[[#This Row],[Median]]-AAMC_Raw_Data_for_FY22[[#This Row],[25th]])/25)*5) + AAMC_Raw_Data_for_FY22[[#This Row],[25th]]","v":128666.6},{"$f":"(((AAMC_Raw_Data_for_FY22[[#This Row],[Median]]-AAMC_Raw_Data_for_FY22[[#This Row],[25th]])/25)*10) + AAMC_Raw_Data_for_FY22[[#This Row],[25th]]","v":134700.20000000001},{"$f":"(((AAMC_Raw_Data_for_FY22[[#This Row],[Median]]-AAMC_Raw_Data_for_FY22[[#This Row],[25th]])/25)*15) + AAMC_Raw_Data_for_FY22[[#This Row],[25th]]","v":140733.79999999999},{"$f":"(((AAMC_Raw_Data_for_FY22[[#This Row],[Median]]-AAMC_Raw_Data_for_FY22[[#This Row],[25th]])/25)*20) + AAMC_Raw_Data_for_FY22[[#This Row],[25th]]","v":146767.4},152801,{"$f":"(((AAMC_Raw_Data_for_FY22[[#This Row],[75th]]-AAMC_Raw_Data_for_FY22[[#This Row],[Median]])/25)*5) + AAMC_Raw_Data_for_FY22[[#This Row],[Median]]","v":160950.39999999999},{"$f":"(((AAMC_Raw_Data_for_FY22[[#This Row],[75th]]-AAMC_Raw_Data_for_FY22[[#This Row],[Median]])/25)*10) + AAMC_Raw_Data_for_FY22[[#This Row],[Median]]","v":169099.8},{"$f":"(((AAMC_Raw_Data_for_FY22[[#This Row],[75th]]-AAMC_Raw_Data_for_FY22[[#This Row],[Median]])/25)*15) + AAMC_Raw_Data_for_FY22[[#This Row],[Median]]","v":177249.2},{"$f":"(((AAMC_Raw_Data_for_FY22[[#This Row],[75th]]-AAMC_Raw_Data_for_FY22[[#This Row],[Median]])/25)*20) + AAMC_Raw_Data_for_FY22[[#This Row],[Median]]","v":185398.6},193548,{"$f":"(((AAMC_Raw_Data_for_FY22[[#This Row],[75th]]-AAMC_Raw_Data_for_FY22[[#This Row],[Median]])/25)*30) + AAMC_Raw_Data_for_FY22[[#This Row],[Median]]","v":201697.4},{"$f":"(((AAMC_Raw_Data_for_FY22[[#This Row],[75th]]-AAMC_Raw_Data_for_FY22[[#This Row],[Median]])/25)*35) + AAMC_Raw_Data_for_FY22[[#This Row],[Median]]","v":209846.8},{"$f":"(((AAMC_Raw_Data_for_FY22[[#This Row],[75th]]-AAMC_Raw_Data_for_FY22[[#This Row],[Median]])/25)*40) + AAMC_Raw_Data_for_FY22[[#This Row],[Median]]","v":217996.2}]
[{"$f":"AAMC_Raw_Data_for_FY22[[#This Row],[Source]]&AAMC_Raw_Data_for_FY22[[#This Row],[Type]]&AAMC_Raw_Data_for_FY22[[#This Row],[School Subset]]&AAMC_Raw_Data_for_FY22[[#This Row],[Rank]]&AAMC_Raw_Data_for_FY22[[#This Row],[Degree]]&AAMC_Raw_Data_for_FY22[[#This Row],[Department / Specialty]]&\"L\"","v":"AAMCAcademicPrivateAssociateMDPopulation Health and Public HealthL"},"Population Health and Public Health",3,"AAMC","Academic","Private","Associate","MD","2021-2022",155934,{"$f":"(((AAMC_Raw_Data_for_FY22[[#This Row],[Median]]-AAMC_Raw_Data_for_FY22[[#This Row],[25th]])/25)*5) + AAMC_Raw_Data_for_FY22[[#This Row],[25th]]","v":161559.79999999999},{"$f":"(((AAMC_Raw_Data_for_FY22[[#This Row],[Median]]-AAMC_Raw_Data_for_FY22[[#This Row],[25th]])/25)*10) + AAMC_Raw_Data_for_FY22[[#This Row],[25th]]","v":167185.60000000001},{"$f":"(((AAMC_Raw_Data_for_FY22[[#This Row],[Median]]-AAMC_Raw_Data_for_FY22[[#This Row],[25th]])/25)*15) + AAMC_Raw_Data_for_FY22[[#This Row],[25th]]","v":172811.4},{"$f":"(((AAMC_Raw_Data_for_FY22[[#This Row],[Median]]-AAMC_Raw_Data_for_FY22[[#This Row],[25th]])/25)*20) + AAMC_Raw_Data_for_FY22[[#This Row],[25th]]","v":178437.2},184063,{"$f":"(((AAMC_Raw_Data_for_FY22[[#This Row],[75th]]-AAMC_Raw_Data_for_FY22[[#This Row],[Median]])/25)*5) + AAMC_Raw_Data_for_FY22[[#This Row],[Median]]","v":199968.8},{"$f":"(((AAMC_Raw_Data_for_FY22[[#This Row],[75th]]-AAMC_Raw_Data_for_FY22[[#This Row],[Median]])/25)*10) + AAMC_Raw_Data_for_FY22[[#This Row],[Median]]","v":215874.6},{"$f":"(((AAMC_Raw_Data_for_FY22[[#This Row],[75th]]-AAMC_Raw_Data_for_FY22[[#This Row],[Median]])/25)*15) + AAMC_Raw_Data_for_FY22[[#This Row],[Median]]","v":231780.4},{"$f":"(((AAMC_Raw_Data_for_FY22[[#This Row],[75th]]-AAMC_Raw_Data_for_FY22[[#This Row],[Median]])/25)*20) + AAMC_Raw_Data_for_FY22[[#This Row],[Median]]","v":247686.2},263592,{"$f":"(((AAMC_Raw_Data_for_FY22[[#This Row],[75th]]-AAMC_Raw_Data_for_FY22[[#This Row],[Median]])/25)*30) + AAMC_Raw_Data_for_FY22[[#This Row],[Median]]","v":279497.8},{"$f":"(((AAMC_Raw_Data_for_FY22[[#This Row],[75th]]-AAMC_Raw_Data_for_FY22[[#This Row],[Median]])/25)*35) + AAMC_Raw_Data_for_FY22[[#This Row],[Median]]","v":295403.59999999998},{"$f":"(((AAMC_Raw_Data_for_FY22[[#This Row],[75th]]-AAMC_Raw_Data_for_FY22[[#This Row],[Median]])/25)*40) + AAMC_Raw_Data_for_FY22[[#This Row],[Median]]","v":311309.40000000002}]
[{"$f":"AAMC_Raw_Data_for_FY22[[#This Row],[Source]]&AAMC_Raw_Data_for_FY22[[#This Row],[Type]]&AAMC_Raw_Data_for_FY22[[#This Row],[School Subset]]&AAMC_Raw_Data_for_FY22[[#This Row],[Rank]]&AAMC_Raw_Data_for_FY22[[#This Row],[Degree]]&AAMC_Raw_Data_for_FY22[[#This Row],[Department / Specialty]]&\"L\"","v":"AAMCAcademicPrivateProfessorMDPopulation Health and Public HealthL"},"Population Health and Public Health",2,"AAMC","Academic","Private","Professor","MD","2021-2022",231000,{"$f":"(((AAMC_Raw_Data_for_FY22[[#This Row],[Median]]-AAMC_Raw_Data_for_FY22[[#This Row],[25th]])/25)*5) + AAMC_Raw_Data_for_FY22[[#This Row],[25th]]","v":237028.8},{"$f":"(((AAMC_Raw_Data_for_FY22[[#This Row],[Median]]-AAMC_Raw_Data_for_FY22[[#This Row],[25th]])/25)*10) + AAMC_Raw_Data_for_FY22[[#This Row],[25th]]","v":243057.6},{"$f":"(((AAMC_Raw_Data_for_FY22[[#This Row],[Median]]-AAMC_Raw_Data_for_FY22[[#This Row],[25th]])/25)*15) + AAMC_Raw_Data_for_FY22[[#This Row],[25th]]","v":249086.4},{"$f":"(((AAMC_Raw_Data_for_FY22[[#This Row],[Median]]-AAMC_Raw_Data_for_FY22[[#This Row],[25th]])/25)*20) + AAMC_Raw_Data_for_FY22[[#This Row],[25th]]","v":255115.2},261144,{"$f":"(((AAMC_Raw_Data_for_FY22[[#This Row],[75th]]-AAMC_Raw_Data_for_FY22[[#This Row],[Median]])/25)*5) + AAMC_Raw_Data_for_FY22[[#This Row],[Median]]","v":278224.2},{"$f":"(((AAMC_Raw_Data_for_FY22[[#This Row],[75th]]-AAMC_Raw_Data_for_FY22[[#This Row],[Median]])/25)*10) + AAMC_Raw_Data_for_FY22[[#This Row],[Median]]","v":295304.40000000002},{"$f":"(((AAMC_Raw_Data_for_FY22[[#This Row],[75th]]-AAMC_Raw_Data_for_FY22[[#This Row],[Median]])/25)*15) + AAMC_Raw_Data_for_FY22[[#This Row],[Median]]","v":312384.59999999998},{"$f":"(((AAMC_Raw_Data_for_FY22[[#This Row],[75th]]-AAMC_Raw_Data_for_FY22[[#This Row],[Median]])/25)*20) + AAMC_Raw_Data_for_FY22[[#This Row],[Median]]","v":329464.8},346545,{"$f":"(((AAMC_Raw_Data_for_FY22[[#This Row],[75th]]-AAMC_Raw_Data_for_FY22[[#This Row],[Median]])/25)*30) + AAMC_Raw_Data_for_FY22[[#This Row],[Median]]","v":363625.2},{"$f":"(((AAMC_Raw_Data_for_FY22[[#This Row],[75th]]-AAMC_Raw_Data_for_FY22[[#This Row],[Median]])/25)*35) + AAMC_Raw_Data_for_FY22[[#This Row],[Median]]","v":380705.4},{"$f":"(((AAMC_Raw_Data_for_FY22[[#This Row],[75th]]-AAMC_Raw_Data_for_FY22[[#This Row],[Median]])/25)*40) + AAMC_Raw_Data_for_FY22[[#This Row],[Median]]","v":397785.59999999998}]
[{"$f":"AAMC_Raw_Data_for_FY22[[#This Row],[Source]]&AAMC_Raw_Data_for_FY22[[#This Row],[Type]]&AAMC_Raw_Data_for_FY22[[#This Row],[School Subset]]&AAMC_Raw_Data_for_FY22[[#This Row],[Rank]]&AAMC_Raw_Data_for_FY22[[#This Row],[Degree]]&AAMC_Raw_Data_for_FY22[[#This Row],[Department / Specialty]]&\"L\"","v":"AAMCAcademicPrivateChiefMDPopulation Health and Public HealthL"},"Population Health and Public Health",6,"AAMC","Academic","Private","Chief","MD","2021-2022",null,{"$f":"(((AAMC_Raw_Data_for_FY22[[#This Row],[Median]]-AAMC_Raw_Data_for_FY22[[#This Row],[25th]])/25)*5) + AAMC_Raw_Data_for_FY22[[#This Row],[25th]]","v":0},{"$f":"(((AAMC_Raw_Data_for_FY22[[#This Row],[Median]]-AAMC_Raw_Data_for_FY22[[#This Row],[25th]])/25)*10) + AAMC_Raw_Data_for_FY22[[#This Row],[25th]]","v":0},{"$f":"(((AAMC_Raw_Data_for_FY22[[#This Row],[Median]]-AAMC_Raw_Data_for_FY22[[#This Row],[25th]])/25)*15) + AAMC_Raw_Data_for_FY22[[#This Row],[25th]]","v":0},{"$f":"(((AAMC_Raw_Data_for_FY22[[#This Row],[Median]]-AAMC_Raw_Data_for_FY22[[#This Row],[25th]])/25)*20) + AAMC_Raw_Data_for_FY22[[#This Row],[25th]]","v":0},null,{"$f":"(((AAMC_Raw_Data_for_FY22[[#This Row],[75th]]-AAMC_Raw_Data_for_FY22[[#This Row],[Median]])/25)*5) + AAMC_Raw_Data_for_FY22[[#This Row],[Median]]","v":0},{"$f":"(((AAMC_Raw_Data_for_FY22[[#This Row],[75th]]-AAMC_Raw_Data_for_FY22[[#This Row],[Median]])/25)*10) + AAMC_Raw_Data_for_FY22[[#This Row],[Median]]","v":0},{"$f":"(((AAMC_Raw_Data_for_FY22[[#This Row],[75th]]-AAMC_Raw_Data_for_FY22[[#This Row],[Median]])/25)*15) + AAMC_Raw_Data_for_FY22[[#This Row],[Median]]","v":0},{"$f":"(((AAMC_Raw_Data_for_FY22[[#This Row],[75th]]-AAMC_Raw_Data_for_FY22[[#This Row],[Median]])/25)*20) + AAMC_Raw_Data_for_FY22[[#This Row],[Median]]","v":0},null,{"$f":"(((AAMC_Raw_Data_for_FY22[[#This Row],[75th]]-AAMC_Raw_Data_for_FY22[[#This Row],[Median]])/25)*30) + AAMC_Raw_Data_for_FY22[[#This Row],[Median]]","v":0},{"$f":"(((AAMC_Raw_Data_for_FY22[[#This Row],[75th]]-AAMC_Raw_Data_for_FY22[[#This Row],[Median]])/25)*35) + AAMC_Raw_Data_for_FY22[[#This Row],[Median]]","v":0},{"$f":"(((AAMC_Raw_Data_for_FY22[[#This Row],[75th]]-AAMC_Raw_Data_for_FY22[[#This Row],[Median]])/25)*40) + AAMC_Raw_Data_for_FY22[[#This Row],[Median]]","v":0}]
[{"$f":"AAMC_Raw_Data_for_FY22[[#This Row],[Source]]&AAMC_Raw_Data_for_FY22[[#This Row],[Type]]&AAMC_Raw_Data_for_FY22[[#This Row],[School Subset]]&AAMC_Raw_Data_for_FY22[[#This Row],[Rank]]&AAMC_Raw_Data_for_FY22[[#This Row],[Degree]]&AAMC_Raw_Data_for_FY22[[#This Row],[Department / Specialty]]&\"L\"","v":"AAMCAcademicPrivateChairMDPopulation Health and Public HealthL"},"Population Health and Public Health",1,"AAMC","Academic","Private","Chair","MD","2021-2022",364746,{"$f":"(((AAMC_Raw_Data_for_FY22[[#This Row],[Median]]-AAMC_Raw_Data_for_FY22[[#This Row],[25th]])/25)*5) + AAMC_Raw_Data_for_FY22[[#This Row],[25th]]","v":371796.8},{"$f":"(((AAMC_Raw_Data_for_FY22[[#This Row],[Median]]-AAMC_Raw_Data_for_FY22[[#This Row],[25th]])/25)*10) + AAMC_Raw_Data_for_FY22[[#This Row],[25th]]","v":378847.6},{"$f":"(((AAMC_Raw_Data_for_FY22[[#This Row],[Median]]-AAMC_Raw_Data_for_FY22[[#This Row],[25th]])/25)*15) + AAMC_Raw_Data_for_FY22[[#This Row],[25th]]","v":385898.4},{"$f":"(((AAMC_Raw_Data_for_FY22[[#This Row],[Median]]-AAMC_Raw_Data_for_FY22[[#This Row],[25th]])/25)*20) + AAMC_Raw_Data_for_FY22[[#This Row],[25th]]","v":392949.2},400000,{"$f":"(((AAMC_Raw_Data_for_FY22[[#This Row],[75th]]-AAMC_Raw_Data_for_FY22[[#This Row],[Median]])/25)*5) + AAMC_Raw_Data_for_FY22[[#This Row],[Median]]","v":416842.4},{"$f":"(((AAMC_Raw_Data_for_FY22[[#This Row],[75th]]-AAMC_Raw_Data_for_FY22[[#This Row],[Median]])/25)*10) + AAMC_Raw_Data_for_FY22[[#This Row],[Median]]","v":433684.8},{"$f":"(((AAMC_Raw_Data_for_FY22[[#This Row],[75th]]-AAMC_Raw_Data_for_FY22[[#This Row],[Median]])/25)*15) + AAMC_Raw_Data_for_FY22[[#This Row],[Median]]","v":450527.2},{"$f":"(((AAMC_Raw_Data_for_FY22[[#This Row],[75th]]-AAMC_Raw_Data_for_FY22[[#This Row],[Median]])/25)*20) + AAMC_Raw_Data_for_FY22[[#This Row],[Median]]","v":467369.6},484212,{"$f":"(((AAMC_Raw_Data_for_FY22[[#This Row],[75th]]-AAMC_Raw_Data_for_FY22[[#This Row],[Median]])/25)*30) + AAMC_Raw_Data_for_FY22[[#This Row],[Median]]","v":501054.4},{"$f":"(((AAMC_Raw_Data_for_FY22[[#This Row],[75th]]-AAMC_Raw_Data_for_FY22[[#This Row],[Median]])/25)*35) + AAMC_Raw_Data_for_FY22[[#This Row],[Median]]","v":517896.8},{"$f":"(((AAMC_Raw_Data_for_FY22[[#This Row],[75th]]-AAMC_Raw_Data_for_FY22[[#This Row],[Median]])/25)*40) + AAMC_Raw_Data_for_FY22[[#This Row],[Median]]","v":534739.19999999995}]
[{"$f":"AAMC_Raw_Data_for_FY22[[#This Row],[Source]]&AAMC_Raw_Data_for_FY22[[#This Row],[Type]]&AAMC_Raw_Data_for_FY22[[#This Row],[School Subset]]&AAMC_Raw_Data_for_FY22[[#This Row],[Rank]]&AAMC_Raw_Data_for_FY22[[#This Row],[Degree]]&AAMC_Raw_Data_for_FY22[[#This Row],[Department / Specialty]]&\"L\"","v":"AAMCAcademicPrivateInstructorMDOther Basic SciencesL"},"Other Basic Sciences",5,"AAMC","Academic","Private","Instructor","MD","2021-2022",74383,{"$f":"(((AAMC_Raw_Data_for_FY22[[#This Row],[Median]]-AAMC_Raw_Data_for_FY22[[#This Row],[25th]])/25)*5) + AAMC_Raw_Data_for_FY22[[#This Row],[25th]]","v":78531.399999999994},{"$f":"(((AAMC_Raw_Data_for_FY22[[#This Row],[Median]]-AAMC_Raw_Data_for_FY22[[#This Row],[25th]])/25)*10) + AAMC_Raw_Data_for_FY22[[#This Row],[25th]]","v":82679.8},{"$f":"(((AAMC_Raw_Data_for_FY22[[#This Row],[Median]]-AAMC_Raw_Data_for_FY22[[#This Row],[25th]])/25)*15) + AAMC_Raw_Data_for_FY22[[#This Row],[25th]]","v":86828.2},{"$f":"(((AAMC_Raw_Data_for_FY22[[#This Row],[Median]]-AAMC_Raw_Data_for_FY22[[#This Row],[25th]])/25)*20) + AAMC_Raw_Data_for_FY22[[#This Row],[25th]]","v":90976.6},95125,{"$f":"(((AAMC_Raw_Data_for_FY22[[#This Row],[75th]]-AAMC_Raw_Data_for_FY22[[#This Row],[Median]])/25)*5) + AAMC_Raw_Data_for_FY22[[#This Row],[Median]]","v":103783},{"$f":"(((AAMC_Raw_Data_for_FY22[[#This Row],[75th]]-AAMC_Raw_Data_for_FY22[[#This Row],[Median]])/25)*10) + AAMC_Raw_Data_for_FY22[[#This Row],[Median]]","v":112441},{"$f":"(((AAMC_Raw_Data_for_FY22[[#This Row],[75th]]-AAMC_Raw_Data_for_FY22[[#This Row],[Median]])/25)*15) + AAMC_Raw_Data_for_FY22[[#This Row],[Median]]","v":121099},{"$f":"(((AAMC_Raw_Data_for_FY22[[#This Row],[75th]]-AAMC_Raw_Data_for_FY22[[#This Row],[Median]])/25)*20) + AAMC_Raw_Data_for_FY22[[#This Row],[Median]]","v":129757},138415,{"$f":"(((AAMC_Raw_Data_for_FY22[[#This Row],[75th]]-AAMC_Raw_Data_for_FY22[[#This Row],[Median]])/25)*30) + AAMC_Raw_Data_for_FY22[[#This Row],[Median]]","v":147073},{"$f":"(((AAMC_Raw_Data_for_FY22[[#This Row],[75th]]-AAMC_Raw_Data_for_FY22[[#This Row],[Median]])/25)*35) + AAMC_Raw_Data_for_FY22[[#This Row],[Median]]","v":155731},{"$f":"(((AAMC_Raw_Data_for_FY22[[#This Row],[75th]]-AAMC_Raw_Data_for_FY22[[#This Row],[Median]])/25)*40) + AAMC_Raw_Data_for_FY22[[#This Row],[Median]]","v":164389}]
[{"$f":"AAMC_Raw_Data_for_FY22[[#This Row],[Source]]&AAMC_Raw_Data_for_FY22[[#This Row],[Type]]&AAMC_Raw_Data_for_FY22[[#This Row],[School Subset]]&AAMC_Raw_Data_for_FY22[[#This Row],[Rank]]&AAMC_Raw_Data_for_FY22[[#This Row],[Degree]]&AAMC_Raw_Data_for_FY22[[#This Row],[Department / Specialty]]&\"L\"","v":"AAMCAcademicPrivateAssistantMDOther Basic SciencesL"},"Other Basic Sciences",4,"AAMC","Academic","Private","Assistant","MD","2021-2022",75525,{"$f":"(((AAMC_Raw_Data_for_FY22[[#This Row],[Median]]-AAMC_Raw_Data_for_FY22[[#This Row],[25th]])/25)*5) + AAMC_Raw_Data_for_FY22[[#This Row],[25th]]","v":82685.600000000006},{"$f":"(((AAMC_Raw_Data_for_FY22[[#This Row],[Median]]-AAMC_Raw_Data_for_FY22[[#This Row],[25th]])/25)*10) + AAMC_Raw_Data_for_FY22[[#This Row],[25th]]","v":89846.2},{"$f":"(((AAMC_Raw_Data_for_FY22[[#This Row],[Median]]-AAMC_Raw_Data_for_FY22[[#This Row],[25th]])/25)*15) + AAMC_Raw_Data_for_FY22[[#This Row],[25th]]","v":97006.8},{"$f":"(((AAMC_Raw_Data_for_FY22[[#This Row],[Median]]-AAMC_Raw_Data_for_FY22[[#This Row],[25th]])/25)*20) + AAMC_Raw_Data_for_FY22[[#This Row],[25th]]","v":104167.4},111328,{"$f":"(((AAMC_Raw_Data_for_FY22[[#This Row],[75th]]-AAMC_Raw_Data_for_FY22[[#This Row],[Median]])/25)*5) + AAMC_Raw_Data_for_FY22[[#This Row],[Median]]","v":120871.6},{"$f":"(((AAMC_Raw_Data_for_FY22[[#This Row],[75th]]-AAMC_Raw_Data_for_FY22[[#This Row],[Median]])/25)*10) + AAMC_Raw_Data_for_FY22[[#This Row],[Median]]","v":130415.2},{"$f":"(((AAMC_Raw_Data_for_FY22[[#This Row],[75th]]-AAMC_Raw_Data_for_FY22[[#This Row],[Median]])/25)*15) + AAMC_Raw_Data_for_FY22[[#This Row],[Median]]","v":139958.79999999999},{"$f":"(((AAMC_Raw_Data_for_FY22[[#This Row],[75th]]-AAMC_Raw_Data_for_FY22[[#This Row],[Median]])/25)*20) + AAMC_Raw_Data_for_FY22[[#This Row],[Median]]","v":149502.39999999999},159046,{"$f":"(((AAMC_Raw_Data_for_FY22[[#This Row],[75th]]-AAMC_Raw_Data_for_FY22[[#This Row],[Median]])/25)*30) + AAMC_Raw_Data_for_FY22[[#This Row],[Median]]","v":168589.6},{"$f":"(((AAMC_Raw_Data_for_FY22[[#This Row],[75th]]-AAMC_Raw_Data_for_FY22[[#This Row],[Median]])/25)*35) + AAMC_Raw_Data_for_FY22[[#This Row],[Median]]","v":178133.2},{"$f":"(((AAMC_Raw_Data_for_FY22[[#This Row],[75th]]-AAMC_Raw_Data_for_FY22[[#This Row],[Median]])/25)*40) + AAMC_Raw_Data_for_FY22[[#This Row],[Median]]","v":187676.79999999999}]
[{"$f":"AAMC_Raw_Data_for_FY22[[#This Row],[Source]]&AAMC_Raw_Data_for_FY22[[#This Row],[Type]]&AAMC_Raw_Data_for_FY22[[#This Row],[School Subset]]&AAMC_Raw_Data_for_FY22[[#This Row],[Rank]]&AAMC_Raw_Data_for_FY22[[#This Row],[Degree]]&AAMC_Raw_Data_for_FY22[[#This Row],[Department / Specialty]]&\"L\"","v":"AAMCAcademicPrivateAssociateMDOther Basic SciencesL"},"Other Basic Sciences",3,"AAMC","Academic","Private","Associate","MD","2021-2022",110546,{"$f":"(((AAMC_Raw_Data_for_FY22[[#This Row],[Median]]-AAMC_Raw_Data_for_FY22[[#This Row],[25th]])/25)*5) + AAMC_Raw_Data_for_FY22[[#This Row],[25th]]","v":119000.2},{"$f":"(((AAMC_Raw_Data_for_FY22[[#This Row],[Median]]-AAMC_Raw_Data_for_FY22[[#This Row],[25th]])/25)*10) + AAMC_Raw_Data_for_FY22[[#This Row],[25th]]","v":127454.39999999999},{"$f":"(((AAMC_Raw_Data_for_FY22[[#This Row],[Median]]-AAMC_Raw_Data_for_FY22[[#This Row],[25th]])/25)*15) + AAMC_Raw_Data_for_FY22[[#This Row],[25th]]","v":135908.6},{"$f":"(((AAMC_Raw_Data_for_FY22[[#This Row],[Median]]-AAMC_Raw_Data_for_FY22[[#This Row],[25th]])/25)*20) + AAMC_Raw_Data_for_FY22[[#This Row],[25th]]","v":144362.79999999999},152817,{"$f":"(((AAMC_Raw_Data_for_FY22[[#This Row],[75th]]-AAMC_Raw_Data_for_FY22[[#This Row],[Median]])/25)*5) + AAMC_Raw_Data_for_FY22[[#This Row],[Median]]","v":157858.20000000001},{"$f":"(((AAMC_Raw_Data_for_FY22[[#This Row],[75th]]-AAMC_Raw_Data_for_FY22[[#This Row],[Median]])/25)*10) + AAMC_Raw_Data_for_FY22[[#This Row],[Median]]","v":162899.4},{"$f":"(((AAMC_Raw_Data_for_FY22[[#This Row],[75th]]-AAMC_Raw_Data_for_FY22[[#This Row],[Median]])/25)*15) + AAMC_Raw_Data_for_FY22[[#This Row],[Median]]","v":167940.6},{"$f":"(((AAMC_Raw_Data_for_FY22[[#This Row],[75th]]-AAMC_Raw_Data_for_FY22[[#This Row],[Median]])/25)*20) + AAMC_Raw_Data_for_FY22[[#This Row],[Median]]","v":172981.8},178023,{"$f":"(((AAMC_Raw_Data_for_FY22[[#This Row],[75th]]-AAMC_Raw_Data_for_FY22[[#This Row],[Median]])/25)*30) + AAMC_Raw_Data_for_FY22[[#This Row],[Median]]","v":183064.2},{"$f":"(((AAMC_Raw_Data_for_FY22[[#This Row],[75th]]-AAMC_Raw_Data_for_FY22[[#This Row],[Median]])/25)*35) + AAMC_Raw_Data_for_FY22[[#This Row],[Median]]","v":188105.4},{"$f":"(((AAMC_Raw_Data_for_FY22[[#This Row],[75th]]-AAMC_Raw_Data_for_FY22[[#This Row],[Median]])/25)*40) + AAMC_Raw_Data_for_FY22[[#This Row],[Median]]","v":193146.6}]
[{"$f":"AAMC_Raw_Data_for_FY22[[#This Row],[Source]]&AAMC_Raw_Data_for_FY22[[#This Row],[Type]]&AAMC_Raw_Data_for_FY22[[#This Row],[School Subset]]&AAMC_Raw_Data_for_FY22[[#This Row],[Rank]]&AAMC_Raw_Data_for_FY22[[#This Row],[Degree]]&AAMC_Raw_Data_for_FY22[[#This Row],[Department / Specialty]]&\"L\"","v":"AAMCAcademicPrivateProfessorMDOther Basic SciencesL"},"Other Basic Sciences",2,"AAMC","Academic","Private","Professor","MD","2021-2022",193178,{"$f":"(((AAMC_Raw_Data_for_FY22[[#This Row],[Median]]-AAMC_Raw_Data_for_FY22[[#This Row],[25th]])/25)*5) + AAMC_Raw_Data_for_FY22[[#This Row],[25th]]","v":202155.6},{"$f":"(((AAMC_Raw_Data_for_FY22[[#This Row],[Median]]-AAMC_Raw_Data_for_FY22[[#This Row],[25th]])/25)*10) + AAMC_Raw_Data_for_FY22[[#This Row],[25th]]","v":211133.2},{"$f":"(((AAMC_Raw_Data_for_FY22[[#This Row],[Median]]-AAMC_Raw_Data_for_FY22[[#This Row],[25th]])/25)*15) + AAMC_Raw_Data_for_FY22[[#This Row],[25th]]","v":220110.8},{"$f":"(((AAMC_Raw_Data_for_FY22[[#This Row],[Median]]-AAMC_Raw_Data_for_FY22[[#This Row],[25th]])/25)*20) + AAMC_Raw_Data_for_FY22[[#This Row],[25th]]","v":229088.4},238066,{"$f":"(((AAMC_Raw_Data_for_FY22[[#This Row],[75th]]-AAMC_Raw_Data_for_FY22[[#This Row],[Median]])/25)*5) + AAMC_Raw_Data_for_FY22[[#This Row],[Median]]","v":251812.8},{"$f":"(((AAMC_Raw_Data_for_FY22[[#This Row],[75th]]-AAMC_Raw_Data_for_FY22[[#This Row],[Median]])/25)*10) + AAMC_Raw_Data_for_FY22[[#This Row],[Median]]","v":265559.59999999998},{"$f":"(((AAMC_Raw_Data_for_FY22[[#This Row],[75th]]-AAMC_Raw_Data_for_FY22[[#This Row],[Median]])/25)*15) + AAMC_Raw_Data_for_FY22[[#This Row],[Median]]","v":279306.40000000002},{"$f":"(((AAMC_Raw_Data_for_FY22[[#This Row],[75th]]-AAMC_Raw_Data_for_FY22[[#This Row],[Median]])/25)*20) + AAMC_Raw_Data_for_FY22[[#This Row],[Median]]","v":293053.2},306800,{"$f":"(((AAMC_Raw_Data_for_FY22[[#This Row],[75th]]-AAMC_Raw_Data_for_FY22[[#This Row],[Median]])/25)*30) + AAMC_Raw_Data_for_FY22[[#This Row],[Median]]","v":320546.8},{"$f":"(((AAMC_Raw_Data_for_FY22[[#This Row],[75th]]-AAMC_Raw_Data_for_FY22[[#This Row],[Median]])/25)*35) + AAMC_Raw_Data_for_FY22[[#This Row],[Median]]","v":334293.59999999998},{"$f":"(((AAMC_Raw_Data_for_FY22[[#This Row],[75th]]-AAMC_Raw_Data_for_FY22[[#This Row],[Median]])/25)*40) + AAMC_Raw_Data_for_FY22[[#This Row],[Median]]","v":348040.4}]
[{"$f":"AAMC_Raw_Data_for_FY22[[#This Row],[Source]]&AAMC_Raw_Data_for_FY22[[#This Row],[Type]]&AAMC_Raw_Data_for_FY22[[#This Row],[School Subset]]&AAMC_Raw_Data_for_FY22[[#This Row],[Rank]]&AAMC_Raw_Data_for_FY22[[#This Row],[Degree]]&AAMC_Raw_Data_for_FY22[[#This Row],[Department / Specialty]]&\"L\"","v":"AAMCAcademicPrivateChiefMDOther Basic SciencesL"},"Other Basic Sciences",6,"AAMC","Academic","Private","Chief","MD","2021-2022",192795,{"$f":"(((AAMC_Raw_Data_for_FY22[[#This Row],[Median]]-AAMC_Raw_Data_for_FY22[[#This Row],[25th]])/25)*5) + AAMC_Raw_Data_for_FY22[[#This Row],[25th]]","v":225543.6},{"$f":"(((AAMC_Raw_Data_for_FY22[[#This Row],[Median]]-AAMC_Raw_Data_for_FY22[[#This Row],[25th]])/25)*10) + AAMC_Raw_Data_for_FY22[[#This Row],[25th]]","v":258292.2},{"$f":"(((AAMC_Raw_Data_for_FY22[[#This Row],[Median]]-AAMC_Raw_Data_for_FY22[[#This Row],[25th]])/25)*15) + AAMC_Raw_Data_for_FY22[[#This Row],[25th]]","v":291040.8},{"$f":"(((AAMC_Raw_Data_for_FY22[[#This Row],[Median]]-AAMC_Raw_Data_for_FY22[[#This Row],[25th]])/25)*20) + AAMC_Raw_Data_for_FY22[[#This Row],[25th]]","v":323789.40000000002},356538,{"$f":"(((AAMC_Raw_Data_for_FY22[[#This Row],[75th]]-AAMC_Raw_Data_for_FY22[[#This Row],[Median]])/25)*5) + AAMC_Raw_Data_for_FY22[[#This Row],[Median]]","v":366356.6},{"$f":"(((AAMC_Raw_Data_for_FY22[[#This Row],[75th]]-AAMC_Raw_Data_for_FY22[[#This Row],[Median]])/25)*10) + AAMC_Raw_Data_for_FY22[[#This Row],[Median]]","v":376175.2},{"$f":"(((AAMC_Raw_Data_for_FY22[[#This Row],[75th]]-AAMC_Raw_Data_for_FY22[[#This Row],[Median]])/25)*15) + AAMC_Raw_Data_for_FY22[[#This Row],[Median]]","v":385993.8},{"$f":"(((AAMC_Raw_Data_for_FY22[[#This Row],[75th]]-AAMC_Raw_Data_for_FY22[[#This Row],[Median]])/25)*20) + AAMC_Raw_Data_for_FY22[[#This Row],[Median]]","v":395812.4},405631,{"$f":"(((AAMC_Raw_Data_for_FY22[[#This Row],[75th]]-AAMC_Raw_Data_for_FY22[[#This Row],[Median]])/25)*30) + AAMC_Raw_Data_for_FY22[[#This Row],[Median]]","v":415449.59999999998},{"$f":"(((AAMC_Raw_Data_for_FY22[[#This Row],[75th]]-AAMC_Raw_Data_for_FY22[[#This Row],[Median]])/25)*35) + AAMC_Raw_Data_for_FY22[[#This Row],[Median]]","v":425268.2},{"$f":"(((AAMC_Raw_Data_for_FY22[[#This Row],[75th]]-AAMC_Raw_Data_for_FY22[[#This Row],[Median]])/25)*40) + AAMC_Raw_Data_for_FY22[[#This Row],[Median]]","v":435086.8}]
[{"$f":"AAMC_Raw_Data_for_FY22[[#This Row],[Source]]&AAMC_Raw_Data_for_FY22[[#This Row],[Type]]&AAMC_Raw_Data_for_FY22[[#This Row],[School Subset]]&AAMC_Raw_Data_for_FY22[[#This Row],[Rank]]&AAMC_Raw_Data_for_FY22[[#This Row],[Degree]]&AAMC_Raw_Data_for_FY22[[#This Row],[Department / Specialty]]&\"L\"","v":"AAMCAcademicPrivateChairMDOther Basic SciencesL"},"Other Basic Sciences",1,"AAMC","Academic","Private","Chair","MD","2021-2022",257952,{"$f":"(((AAMC_Raw_Data_for_FY22[[#This Row],[Median]]-AAMC_Raw_Data_for_FY22[[#This Row],[25th]])/25)*5) + AAMC_Raw_Data_for_FY22[[#This Row],[25th]]","v":287288.59999999998},{"$f":"(((AAMC_Raw_Data_for_FY22[[#This Row],[Median]]-AAMC_Raw_Data_for_FY22[[#This Row],[25th]])/25)*10) + AAMC_Raw_Data_for_FY22[[#This Row],[25th]]","v":316625.2},{"$f":"(((AAMC_Raw_Data_for_FY22[[#This Row],[Median]]-AAMC_Raw_Data_for_FY22[[#This Row],[25th]])/25)*15) + AAMC_Raw_Data_for_FY22[[#This Row],[25th]]","v":345961.8},{"$f":"(((AAMC_Raw_Data_for_FY22[[#This Row],[Median]]-AAMC_Raw_Data_for_FY22[[#This Row],[25th]])/25)*20) + AAMC_Raw_Data_for_FY22[[#This Row],[25th]]","v":375298.4},404635,{"$f":"(((AAMC_Raw_Data_for_FY22[[#This Row],[75th]]-AAMC_Raw_Data_for_FY22[[#This Row],[Median]])/25)*5) + AAMC_Raw_Data_for_FY22[[#This Row],[Median]]","v":417203.20000000001},{"$f":"(((AAMC_Raw_Data_for_FY22[[#This Row],[75th]]-AAMC_Raw_Data_for_FY22[[#This Row],[Median]])/25)*10) + AAMC_Raw_Data_for_FY22[[#This Row],[Median]]","v":429771.4},{"$f":"(((AAMC_Raw_Data_for_FY22[[#This Row],[75th]]-AAMC_Raw_Data_for_FY22[[#This Row],[Median]])/25)*15) + AAMC_Raw_Data_for_FY22[[#This Row],[Median]]","v":442339.6},{"$f":"(((AAMC_Raw_Data_for_FY22[[#This Row],[75th]]-AAMC_Raw_Data_for_FY22[[#This Row],[Median]])/25)*20) + AAMC_Raw_Data_for_FY22[[#This Row],[Median]]","v":454907.8},467476,{"$f":"(((AAMC_Raw_Data_for_FY22[[#This Row],[75th]]-AAMC_Raw_Data_for_FY22[[#This Row],[Median]])/25)*30) + AAMC_Raw_Data_for_FY22[[#This Row],[Median]]","v":480044.2},{"$f":"(((AAMC_Raw_Data_for_FY22[[#This Row],[75th]]-AAMC_Raw_Data_for_FY22[[#This Row],[Median]])/25)*35) + AAMC_Raw_Data_for_FY22[[#This Row],[Median]]","v":492612.4},{"$f":"(((AAMC_Raw_Data_for_FY22[[#This Row],[75th]]-AAMC_Raw_Data_for_FY22[[#This Row],[Median]])/25)*40) + AAMC_Raw_Data_for_FY22[[#This Row],[Median]]","v":505180.6}]
[{"$f":"AAMC_Raw_Data_for_FY22[[#This Row],[Source]]&AAMC_Raw_Data_for_FY22[[#This Row],[Type]]&AAMC_Raw_Data_for_FY22[[#This Row],[School Subset]]&AAMC_Raw_Data_for_FY22[[#This Row],[Rank]]&AAMC_Raw_Data_for_FY22[[#This Row],[Degree]]&AAMC_Raw_Data_for_FY22[[#This Row],[Department / Specialty]]&\"L\"","v":"AAMCAcademicPublicInstructorMDBasic Sciences TotalL"},"Basic Sciences Total",5,"AAMC","Academic","Public","Instructor","MD","2021-2022",65457,{"$f":"(((AAMC_Raw_Data_for_FY22[[#This Row],[Median]]-AAMC_Raw_Data_for_FY22[[#This Row],[25th]])/25)*5) + AAMC_Raw_Data_for_FY22[[#This Row],[25th]]","v":67141.2},{"$f":"(((AAMC_Raw_Data_for_FY22[[#This Row],[Median]]-AAMC_Raw_Data_for_FY22[[#This Row],[25th]])/25)*10) + AAMC_Raw_Data_for_FY22[[#This Row],[25th]]","v":68825.399999999994},{"$f":"(((AAMC_Raw_Data_for_FY22[[#This Row],[Median]]-AAMC_Raw_Data_for_FY22[[#This Row],[25th]])/25)*15) + AAMC_Raw_Data_for_FY22[[#This Row],[25th]]","v":70509.600000000006},{"$f":"(((AAMC_Raw_Data_for_FY22[[#This Row],[Median]]-AAMC_Raw_Data_for_FY22[[#This Row],[25th]])/25)*20) + AAMC_Raw_Data_for_FY22[[#This Row],[25th]]","v":72193.8},73878,{"$f":"(((AAMC_Raw_Data_for_FY22[[#This Row],[75th]]-AAMC_Raw_Data_for_FY22[[#This Row],[Median]])/25)*5) + AAMC_Raw_Data_for_FY22[[#This Row],[Median]]","v":75020.600000000006},{"$f":"(((AAMC_Raw_Data_for_FY22[[#This Row],[75th]]-AAMC_Raw_Data_for_FY22[[#This Row],[Median]])/25)*10) + AAMC_Raw_Data_for_FY22[[#This Row],[Median]]","v":76163.199999999997},{"$f":"(((AAMC_Raw_Data_for_FY22[[#This Row],[75th]]-AAMC_Raw_Data_for_FY22[[#This Row],[Median]])/25)*15) + AAMC_Raw_Data_for_FY22[[#This Row],[Median]]","v":77305.8},{"$f":"(((AAMC_Raw_Data_for_FY22[[#This Row],[75th]]-AAMC_Raw_Data_for_FY22[[#This Row],[Median]])/25)*20) + AAMC_Raw_Data_for_FY22[[#This Row],[Median]]","v":78448.399999999994},79591,{"$f":"(((AAMC_Raw_Data_for_FY22[[#This Row],[75th]]-AAMC_Raw_Data_for_FY22[[#This Row],[Median]])/25)*30) + AAMC_Raw_Data_for_FY22[[#This Row],[Median]]","v":80733.600000000006},{"$f":"(((AAMC_Raw_Data_for_FY22[[#This Row],[75th]]-AAMC_Raw_Data_for_FY22[[#This Row],[Median]])/25)*35) + AAMC_Raw_Data_for_FY22[[#This Row],[Median]]","v":81876.2},{"$f":"(((AAMC_Raw_Data_for_FY22[[#This Row],[75th]]-AAMC_Raw_Data_for_FY22[[#This Row],[Median]])/25)*40) + AAMC_Raw_Data_for_FY22[[#This Row],[Median]]","v":83018.8}]
[{"$f":"AAMC_Raw_Data_for_FY22[[#This Row],[Source]]&AAMC_Raw_Data_for_FY22[[#This Row],[Type]]&AAMC_Raw_Data_for_FY22[[#This Row],[School Subset]]&AAMC_Raw_Data_for_FY22[[#This Row],[Rank]]&AAMC_Raw_Data_for_FY22[[#This Row],[Degree]]&AAMC_Raw_Data_for_FY22[[#This Row],[Department / Specialty]]&\"L\"","v":"AAMCAcademicPublicAssistantMDBasic Sciences TotalL"},"Basic Sciences Total",4,"AAMC","Academic","Public","Assistant","MD","2021-2022",91692,{"$f":"(((AAMC_Raw_Data_for_FY22[[#This Row],[Median]]-AAMC_Raw_Data_for_FY22[[#This Row],[25th]])/25)*5) + AAMC_Raw_Data_for_FY22[[#This Row],[25th]]","v":95950},{"$f":"(((AAMC_Raw_Data_for_FY22[[#This Row],[Median]]-AAMC_Raw_Data_for_FY22[[#This Row],[25th]])/25)*10) + AAMC_Raw_Data_for_FY22[[#This Row],[25th]]","v":100208},{"$f":"(((AAMC_Raw_Data_for_FY22[[#This Row],[Median]]-AAMC_Raw_Data_for_FY22[[#This Row],[25th]])/25)*15) + AAMC_Raw_Data_for_FY22[[#This Row],[25th]]","v":104466},{"$f":"(((AAMC_Raw_Data_for_FY22[[#This Row],[Median]]-AAMC_Raw_Data_for_FY22[[#This Row],[25th]])/25)*20) + AAMC_Raw_Data_for_FY22[[#This Row],[25th]]","v":108724},112982,{"$f":"(((AAMC_Raw_Data_for_FY22[[#This Row],[75th]]-AAMC_Raw_Data_for_FY22[[#This Row],[Median]])/25)*5) + AAMC_Raw_Data_for_FY22[[#This Row],[Median]]","v":121945.8},{"$f":"(((AAMC_Raw_Data_for_FY22[[#This Row],[75th]]-AAMC_Raw_Data_for_FY22[[#This Row],[Median]])/25)*10) + AAMC_Raw_Data_for_FY22[[#This Row],[Median]]","v":130909.6},{"$f":"(((AAMC_Raw_Data_for_FY22[[#This Row],[75th]]-AAMC_Raw_Data_for_FY22[[#This Row],[Median]])/25)*15) + AAMC_Raw_Data_for_FY22[[#This Row],[Median]]","v":139873.4},{"$f":"(((AAMC_Raw_Data_for_FY22[[#This Row],[75th]]-AAMC_Raw_Data_for_FY22[[#This Row],[Median]])/25)*20) + AAMC_Raw_Data_for_FY22[[#This Row],[Median]]","v":148837.20000000001},157801,{"$f":"(((AAMC_Raw_Data_for_FY22[[#This Row],[75th]]-AAMC_Raw_Data_for_FY22[[#This Row],[Median]])/25)*30) + AAMC_Raw_Data_for_FY22[[#This Row],[Median]]","v":166764.79999999999},{"$f":"(((AAMC_Raw_Data_for_FY22[[#This Row],[75th]]-AAMC_Raw_Data_for_FY22[[#This Row],[Median]])/25)*35) + AAMC_Raw_Data_for_FY22[[#This Row],[Median]]","v":175728.6},{"$f":"(((AAMC_Raw_Data_for_FY22[[#This Row],[75th]]-AAMC_Raw_Data_for_FY22[[#This Row],[Median]])/25)*40) + AAMC_Raw_Data_for_FY22[[#This Row],[Median]]","v":184692.4}]
[{"$f":"AAMC_Raw_Data_for_FY22[[#This Row],[Source]]&AAMC_Raw_Data_for_FY22[[#This Row],[Type]]&AAMC_Raw_Data_for_FY22[[#This Row],[School Subset]]&AAMC_Raw_Data_for_FY22[[#This Row],[Rank]]&AAMC_Raw_Data_for_FY22[[#This Row],[Degree]]&AAMC_Raw_Data_for_FY22[[#This Row],[Department / Specialty]]&\"L\"","v":"AAMCAcademicPublicAssociateMDBasic Sciences TotalL"},"Basic Sciences Total",3,"AAMC","Academic","Public","Associate","MD","2021-2022",120047,{"$f":"(((AAMC_Raw_Data_for_FY22[[#This Row],[Median]]-AAMC_Raw_Data_for_FY22[[#This Row],[25th]])/25)*5) + AAMC_Raw_Data_for_FY22[[#This Row],[25th]]","v":124227.2},{"$f":"(((AAMC_Raw_Data_for_FY22[[#This Row],[Median]]-AAMC_Raw_Data_for_FY22[[#This Row],[25th]])/25)*10) + AAMC_Raw_Data_for_FY22[[#This Row],[25th]]","v":128407.4},{"$f":"(((AAMC_Raw_Data_for_FY22[[#This Row],[Median]]-AAMC_Raw_Data_for_FY22[[#This Row],[25th]])/25)*15) + AAMC_Raw_Data_for_FY22[[#This Row],[25th]]","v":132587.6},{"$f":"(((AAMC_Raw_Data_for_FY22[[#This Row],[Median]]-AAMC_Raw_Data_for_FY22[[#This Row],[25th]])/25)*20) + AAMC_Raw_Data_for_FY22[[#This Row],[25th]]","v":136767.79999999999},140948,{"$f":"(((AAMC_Raw_Data_for_FY22[[#This Row],[75th]]-AAMC_Raw_Data_for_FY22[[#This Row],[Median]])/25)*5) + AAMC_Raw_Data_for_FY22[[#This Row],[Median]]","v":149741.4},{"$f":"(((AAMC_Raw_Data_for_FY22[[#This Row],[75th]]-AAMC_Raw_Data_for_FY22[[#This Row],[Median]])/25)*10) + AAMC_Raw_Data_for_FY22[[#This Row],[Median]]","v":158534.79999999999},{"$f":"(((AAMC_Raw_Data_for_FY22[[#This Row],[75th]]-AAMC_Raw_Data_for_FY22[[#This Row],[Median]])/25)*15) + AAMC_Raw_Data_for_FY22[[#This Row],[Median]]","v":167328.20000000001},{"$f":"(((AAMC_Raw_Data_for_FY22[[#This Row],[75th]]-AAMC_Raw_Data_for_FY22[[#This Row],[Median]])/25)*20) + AAMC_Raw_Data_for_FY22[[#This Row],[Median]]","v":176121.60000000001},184915,{"$f":"(((AAMC_Raw_Data_for_FY22[[#This Row],[75th]]-AAMC_Raw_Data_for_FY22[[#This Row],[Median]])/25)*30) + AAMC_Raw_Data_for_FY22[[#This Row],[Median]]","v":193708.4},{"$f":"(((AAMC_Raw_Data_for_FY22[[#This Row],[75th]]-AAMC_Raw_Data_for_FY22[[#This Row],[Median]])/25)*35) + AAMC_Raw_Data_for_FY22[[#This Row],[Median]]","v":202501.8},{"$f":"(((AAMC_Raw_Data_for_FY22[[#This Row],[75th]]-AAMC_Raw_Data_for_FY22[[#This Row],[Median]])/25)*40) + AAMC_Raw_Data_for_FY22[[#This Row],[Median]]","v":211295.2}]
[{"$f":"AAMC_Raw_Data_for_FY22[[#This Row],[Source]]&AAMC_Raw_Data_for_FY22[[#This Row],[Type]]&AAMC_Raw_Data_for_FY22[[#This Row],[School Subset]]&AAMC_Raw_Data_for_FY22[[#This Row],[Rank]]&AAMC_Raw_Data_for_FY22[[#This Row],[Degree]]&AAMC_Raw_Data_for_FY22[[#This Row],[Department / Specialty]]&\"L\"","v":"AAMCAcademicPublicProfessorMDBasic Sciences TotalL"},"Basic Sciences Total",2,"AAMC","Academic","Public","Professor","MD","2021-2022",183246,{"$f":"(((AAMC_Raw_Data_for_FY22[[#This Row],[Median]]-AAMC_Raw_Data_for_FY22[[#This Row],[25th]])/25)*5) + AAMC_Raw_Data_for_FY22[[#This Row],[25th]]","v":190855},{"$f":"(((AAMC_Raw_Data_for_FY22[[#This Row],[Median]]-AAMC_Raw_Data_for_FY22[[#This Row],[25th]])/25)*10) + AAMC_Raw_Data_for_FY22[[#This Row],[25th]]","v":198464},{"$f":"(((AAMC_Raw_Data_for_FY22[[#This Row],[Median]]-AAMC_Raw_Data_for_FY22[[#This Row],[25th]])/25)*15) + AAMC_Raw_Data_for_FY22[[#This Row],[25th]]","v":206073},{"$f":"(((AAMC_Raw_Data_for_FY22[[#This Row],[Median]]-AAMC_Raw_Data_for_FY22[[#This Row],[25th]])/25)*20) + AAMC_Raw_Data_for_FY22[[#This Row],[25th]]","v":213682},221291,{"$f":"(((AAMC_Raw_Data_for_FY22[[#This Row],[75th]]-AAMC_Raw_Data_for_FY22[[#This Row],[Median]])/25)*5) + AAMC_Raw_Data_for_FY22[[#This Row],[Median]]","v":231631.8},{"$f":"(((AAMC_Raw_Data_for_FY22[[#This Row],[75th]]-AAMC_Raw_Data_for_FY22[[#This Row],[Median]])/25)*10) + AAMC_Raw_Data_for_FY22[[#This Row],[Median]]","v":241972.6},{"$f":"(((AAMC_Raw_Data_for_FY22[[#This Row],[75th]]-AAMC_Raw_Data_for_FY22[[#This Row],[Median]])/25)*15) + AAMC_Raw_Data_for_FY22[[#This Row],[Median]]","v":252313.4},{"$f":"(((AAMC_Raw_Data_for_FY22[[#This Row],[75th]]-AAMC_Raw_Data_for_FY22[[#This Row],[Median]])/25)*20) + AAMC_Raw_Data_for_FY22[[#This Row],[Median]]","v":262654.2},272995,{"$f":"(((AAMC_Raw_Data_for_FY22[[#This Row],[75th]]-AAMC_Raw_Data_for_FY22[[#This Row],[Median]])/25)*30) + AAMC_Raw_Data_for_FY22[[#This Row],[Median]]","v":283335.8},{"$f":"(((AAMC_Raw_Data_for_FY22[[#This Row],[75th]]-AAMC_Raw_Data_for_FY22[[#This Row],[Median]])/25)*35) + AAMC_Raw_Data_for_FY22[[#This Row],[Median]]","v":293676.59999999998},{"$f":"(((AAMC_Raw_Data_for_FY22[[#This Row],[75th]]-AAMC_Raw_Data_for_FY22[[#This Row],[Median]])/25)*40) + AAMC_Raw_Data_for_FY22[[#This Row],[Median]]","v":304017.40000000002}]
[{"$f":"AAMC_Raw_Data_for_FY22[[#This Row],[Source]]&AAMC_Raw_Data_for_FY22[[#This Row],[Type]]&AAMC_Raw_Data_for_FY22[[#This Row],[School Subset]]&AAMC_Raw_Data_for_FY22[[#This Row],[Rank]]&AAMC_Raw_Data_for_FY22[[#This Row],[Degree]]&AAMC_Raw_Data_for_FY22[[#This Row],[Department / Specialty]]&\"L\"","v":"AAMCAcademicPublicChiefMDBasic Sciences TotalL"},"Basic Sciences Total",6,"AAMC","Academic","Public","Chief","MD","2021-2022",240043,{"$f":"(((AAMC_Raw_Data_for_FY22[[#This Row],[Median]]-AAMC_Raw_Data_for_FY22[[#This Row],[25th]])/25)*5) + AAMC_Raw_Data_for_FY22[[#This Row],[25th]]","v":260453.4},{"$f":"(((AAMC_Raw_Data_for_FY22[[#This Row],[Median]]-AAMC_Raw_Data_for_FY22[[#This Row],[25th]])/25)*10) + AAMC_Raw_Data_for_FY22[[#This Row],[25th]]","v":280863.8},{"$f":"(((AAMC_Raw_Data_for_FY22[[#This Row],[Median]]-AAMC_Raw_Data_for_FY22[[#This Row],[25th]])/25)*15) + AAMC_Raw_Data_for_FY22[[#This Row],[25th]]","v":301274.2},{"$f":"(((AAMC_Raw_Data_for_FY22[[#This Row],[Median]]-AAMC_Raw_Data_for_FY22[[#This Row],[25th]])/25)*20) + AAMC_Raw_Data_for_FY22[[#This Row],[25th]]","v":321684.59999999998},342095,{"$f":"(((AAMC_Raw_Data_for_FY22[[#This Row],[75th]]-AAMC_Raw_Data_for_FY22[[#This Row],[Median]])/25)*5) + AAMC_Raw_Data_for_FY22[[#This Row],[Median]]","v":355187.20000000001},{"$f":"(((AAMC_Raw_Data_for_FY22[[#This Row],[75th]]-AAMC_Raw_Data_for_FY22[[#This Row],[Median]])/25)*10) + AAMC_Raw_Data_for_FY22[[#This Row],[Median]]","v":368279.4},{"$f":"(((AAMC_Raw_Data_for_FY22[[#This Row],[75th]]-AAMC_Raw_Data_for_FY22[[#This Row],[Median]])/25)*15) + AAMC_Raw_Data_for_FY22[[#This Row],[Median]]","v":381371.6},{"$f":"(((AAMC_Raw_Data_for_FY22[[#This Row],[75th]]-AAMC_Raw_Data_for_FY22[[#This Row],[Median]])/25)*20) + AAMC_Raw_Data_for_FY22[[#This Row],[Median]]","v":394463.8},407556,{"$f":"(((AAMC_Raw_Data_for_FY22[[#This Row],[75th]]-AAMC_Raw_Data_for_FY22[[#This Row],[Median]])/25)*30) + AAMC_Raw_Data_for_FY22[[#This Row],[Median]]","v":420648.2},{"$f":"(((AAMC_Raw_Data_for_FY22[[#This Row],[75th]]-AAMC_Raw_Data_for_FY22[[#This Row],[Median]])/25)*35) + AAMC_Raw_Data_for_FY22[[#This Row],[Median]]","v":433740.4},{"$f":"(((AAMC_Raw_Data_for_FY22[[#This Row],[75th]]-AAMC_Raw_Data_for_FY22[[#This Row],[Median]])/25)*40) + AAMC_Raw_Data_for_FY22[[#This Row],[Median]]","v":446832.6}]
[{"$f":"AAMC_Raw_Data_for_FY22[[#This Row],[Source]]&AAMC_Raw_Data_for_FY22[[#This Row],[Type]]&AAMC_Raw_Data_for_FY22[[#This Row],[School Subset]]&AAMC_Raw_Data_for_FY22[[#This Row],[Rank]]&AAMC_Raw_Data_for_FY22[[#This Row],[Degree]]&AAMC_Raw_Data_for_FY22[[#This Row],[Department / Specialty]]&\"L\"","v":"AAMCAcademicPublicChairMDBasic Sciences TotalL"},"Basic Sciences Total",1,"AAMC","Academic","Public","Chair","MD","2021-2022",321897,{"$f":"(((AAMC_Raw_Data_for_FY22[[#This Row],[Median]]-AAMC_Raw_Data_for_FY22[[#This Row],[25th]])/25)*5) + AAMC_Raw_Data_for_FY22[[#This Row],[25th]]","v":331957.40000000002},{"$f":"(((AAMC_Raw_Data_for_FY22[[#This Row],[Median]]-AAMC_Raw_Data_for_FY22[[#This Row],[25th]])/25)*10) + AAMC_Raw_Data_for_FY22[[#This Row],[25th]]","v":342017.8},{"$f":"(((AAMC_Raw_Data_for_FY22[[#This Row],[Median]]-AAMC_Raw_Data_for_FY22[[#This Row],[25th]])/25)*15) + AAMC_Raw_Data_for_FY22[[#This Row],[25th]]","v":352078.2},{"$f":"(((AAMC_Raw_Data_for_FY22[[#This Row],[Median]]-AAMC_Raw_Data_for_FY22[[#This Row],[25th]])/25)*20) + AAMC_Raw_Data_for_FY22[[#This Row],[25th]]","v":362138.6},372199,{"$f":"(((AAMC_Raw_Data_for_FY22[[#This Row],[75th]]-AAMC_Raw_Data_for_FY22[[#This Row],[Median]])/25)*5) + AAMC_Raw_Data_for_FY22[[#This Row],[Median]]","v":385756.4},{"$f":"(((AAMC_Raw_Data_for_FY22[[#This Row],[75th]]-AAMC_Raw_Data_for_FY22[[#This Row],[Median]])/25)*10) + AAMC_Raw_Data_for_FY22[[#This Row],[Median]]","v":399313.8},{"$f":"(((AAMC_Raw_Data_for_FY22[[#This Row],[75th]]-AAMC_Raw_Data_for_FY22[[#This Row],[Median]])/25)*15) + AAMC_Raw_Data_for_FY22[[#This Row],[Median]]","v":412871.2},{"$f":"(((AAMC_Raw_Data_for_FY22[[#This Row],[75th]]-AAMC_Raw_Data_for_FY22[[#This Row],[Median]])/25)*20) + AAMC_Raw_Data_for_FY22[[#This Row],[Median]]","v":426428.6},439986,{"$f":"(((AAMC_Raw_Data_for_FY22[[#This Row],[75th]]-AAMC_Raw_Data_for_FY22[[#This Row],[Median]])/25)*30) + AAMC_Raw_Data_for_FY22[[#This Row],[Median]]","v":453543.4},{"$f":"(((AAMC_Raw_Data_for_FY22[[#This Row],[75th]]-AAMC_Raw_Data_for_FY22[[#This Row],[Median]])/25)*35) + AAMC_Raw_Data_for_FY22[[#This Row],[Median]]","v":467100.8},{"$f":"(((AAMC_Raw_Data_for_FY22[[#This Row],[75th]]-AAMC_Raw_Data_for_FY22[[#This Row],[Median]])/25)*40) + AAMC_Raw_Data_for_FY22[[#This Row],[Median]]","v":480658.2}]
[{"$f":"AAMC_Raw_Data_for_FY22[[#This Row],[Source]]&AAMC_Raw_Data_for_FY22[[#This Row],[Type]]&AAMC_Raw_Data_for_FY22[[#This Row],[School Subset]]&AAMC_Raw_Data_for_FY22[[#This Row],[Rank]]&AAMC_Raw_Data_for_FY22[[#This Row],[Degree]]&AAMC_Raw_Data_for_FY22[[#This Row],[Department / Specialty]]&\"L\"","v":"AAMCAcademicPublicInstructorMDAnatomyL"},"Anatomy",5,"AAMC","Academic","Public","Instructor","MD","2021-2022",null,{"$f":"(((AAMC_Raw_Data_for_FY22[[#This Row],[Median]]-AAMC_Raw_Data_for_FY22[[#This Row],[25th]])/25)*5) + AAMC_Raw_Data_for_FY22[[#This Row],[25th]]","v":0},{"$f":"(((AAMC_Raw_Data_for_FY22[[#This Row],[Median]]-AAMC_Raw_Data_for_FY22[[#This Row],[25th]])/25)*10) + AAMC_Raw_Data_for_FY22[[#This Row],[25th]]","v":0},{"$f":"(((AAMC_Raw_Data_for_FY22[[#This Row],[Median]]-AAMC_Raw_Data_for_FY22[[#This Row],[25th]])/25)*15) + AAMC_Raw_Data_for_FY22[[#This Row],[25th]]","v":0},{"$f":"(((AAMC_Raw_Data_for_FY22[[#This Row],[Median]]-AAMC_Raw_Data_for_FY22[[#This Row],[25th]])/25)*20) + AAMC_Raw_Data_for_FY22[[#This Row],[25th]]","v":0},null,{"$f":"(((AAMC_Raw_Data_for_FY22[[#This Row],[75th]]-AAMC_Raw_Data_for_FY22[[#This Row],[Median]])/25)*5) + AAMC_Raw_Data_for_FY22[[#This Row],[Median]]","v":0},{"$f":"(((AAMC_Raw_Data_for_FY22[[#This Row],[75th]]-AAMC_Raw_Data_for_FY22[[#This Row],[Median]])/25)*10) + AAMC_Raw_Data_for_FY22[[#This Row],[Median]]","v":0},{"$f":"(((AAMC_Raw_Data_for_FY22[[#This Row],[75th]]-AAMC_Raw_Data_for_FY22[[#This Row],[Median]])/25)*15) + AAMC_Raw_Data_for_FY22[[#This Row],[Median]]","v":0},{"$f":"(((AAMC_Raw_Data_for_FY22[[#This Row],[75th]]-AAMC_Raw_Data_for_FY22[[#This Row],[Median]])/25)*20) + AAMC_Raw_Data_for_FY22[[#This Row],[Median]]","v":0},null,{"$f":"(((AAMC_Raw_Data_for_FY22[[#This Row],[75th]]-AAMC_Raw_Data_for_FY22[[#This Row],[Median]])/25)*30) + AAMC_Raw_Data_for_FY22[[#This Row],[Median]]","v":0},{"$f":"(((AAMC_Raw_Data_for_FY22[[#This Row],[75th]]-AAMC_Raw_Data_for_FY22[[#This Row],[Median]])/25)*35) + AAMC_Raw_Data_for_FY22[[#This Row],[Median]]","v":0},{"$f":"(((AAMC_Raw_Data_for_FY22[[#This Row],[75th]]-AAMC_Raw_Data_for_FY22[[#This Row],[Median]])/25)*40) + AAMC_Raw_Data_for_FY22[[#This Row],[Median]]","v":0}]
[{"$f":"AAMC_Raw_Data_for_FY22[[#This Row],[Source]]&AAMC_Raw_Data_for_FY22[[#This Row],[Type]]&AAMC_Raw_Data_for_FY22[[#This Row],[School Subset]]&AAMC_Raw_Data_for_FY22[[#This Row],[Rank]]&AAMC_Raw_Data_for_FY22[[#This Row],[Degree]]&AAMC_Raw_Data_for_FY22[[#This Row],[Department / Specialty]]&\"L\"","v":"AAMCAcademicPublicAssistantMDAnatomyL"},"Anatomy",4,"AAMC","Academic","Public","Assistant","MD","2021-2022",76709,{"$f":"(((AAMC_Raw_Data_for_FY22[[#This Row],[Median]]-AAMC_Raw_Data_for_FY22[[#This Row],[25th]])/25)*5) + AAMC_Raw_Data_for_FY22[[#This Row],[25th]]","v":82814.8},{"$f":"(((AAMC_Raw_Data_for_FY22[[#This Row],[Median]]-AAMC_Raw_Data_for_FY22[[#This Row],[25th]])/25)*10) + AAMC_Raw_Data_for_FY22[[#This Row],[25th]]","v":88920.6},{"$f":"(((AAMC_Raw_Data_for_FY22[[#This Row],[Median]]-AAMC_Raw_Data_for_FY22[[#This Row],[25th]])/25)*15) + AAMC_Raw_Data_for_FY22[[#This Row],[25th]]","v":95026.4},{"$f":"(((AAMC_Raw_Data_for_FY22[[#This Row],[Median]]-AAMC_Raw_Data_for_FY22[[#This Row],[25th]])/25)*20) + AAMC_Raw_Data_for_FY22[[#This Row],[25th]]","v":101132.2},107238,{"$f":"(((AAMC_Raw_Data_for_FY22[[#This Row],[75th]]-AAMC_Raw_Data_for_FY22[[#This Row],[Median]])/25)*5) + AAMC_Raw_Data_for_FY22[[#This Row],[Median]]","v":112545.2},{"$f":"(((AAMC_Raw_Data_for_FY22[[#This Row],[75th]]-AAMC_Raw_Data_for_FY22[[#This Row],[Median]])/25)*10) + AAMC_Raw_Data_for_FY22[[#This Row],[Median]]","v":117852.4},{"$f":"(((AAMC_Raw_Data_for_FY22[[#This Row],[75th]]-AAMC_Raw_Data_for_FY22[[#This Row],[Median]])/25)*15) + AAMC_Raw_Data_for_FY22[[#This Row],[Median]]","v":123159.6},{"$f":"(((AAMC_Raw_Data_for_FY22[[#This Row],[75th]]-AAMC_Raw_Data_for_FY22[[#This Row],[Median]])/25)*20) + AAMC_Raw_Data_for_FY22[[#This Row],[Median]]","v":128466.8},133774,{"$f":"(((AAMC_Raw_Data_for_FY22[[#This Row],[75th]]-AAMC_Raw_Data_for_FY22[[#This Row],[Median]])/25)*30) + AAMC_Raw_Data_for_FY22[[#This Row],[Median]]","v":139081.20000000001},{"$f":"(((AAMC_Raw_Data_for_FY22[[#This Row],[75th]]-AAMC_Raw_Data_for_FY22[[#This Row],[Median]])/25)*35) + AAMC_Raw_Data_for_FY22[[#This Row],[Median]]","v":144388.4},{"$f":"(((AAMC_Raw_Data_for_FY22[[#This Row],[75th]]-AAMC_Raw_Data_for_FY22[[#This Row],[Median]])/25)*40) + AAMC_Raw_Data_for_FY22[[#This Row],[Median]]","v":149695.6}]
[{"$f":"AAMC_Raw_Data_for_FY22[[#This Row],[Source]]&AAMC_Raw_Data_for_FY22[[#This Row],[Type]]&AAMC_Raw_Data_for_FY22[[#This Row],[School Subset]]&AAMC_Raw_Data_for_FY22[[#This Row],[Rank]]&AAMC_Raw_Data_for_FY22[[#This Row],[Degree]]&AAMC_Raw_Data_for_FY22[[#This Row],[Department / Specialty]]&\"L\"","v":"AAMCAcademicPublicAssociateMDAnatomyL"},"Anatomy",3,"AAMC","Academic","Public","Associate","MD","2021-2022",123230,{"$f":"(((AAMC_Raw_Data_for_FY22[[#This Row],[Median]]-AAMC_Raw_Data_for_FY22[[#This Row],[25th]])/25)*5) + AAMC_Raw_Data_for_FY22[[#This Row],[25th]]","v":125062.39999999999},{"$f":"(((AAMC_Raw_Data_for_FY22[[#This Row],[Median]]-AAMC_Raw_Data_for_FY22[[#This Row],[25th]])/25)*10) + AAMC_Raw_Data_for_FY22[[#This Row],[25th]]","v":126894.8},{"$f":"(((AAMC_Raw_Data_for_FY22[[#This Row],[Median]]-AAMC_Raw_Data_for_FY22[[#This Row],[25th]])/25)*15) + AAMC_Raw_Data_for_FY22[[#This Row],[25th]]","v":128727.2},{"$f":"(((AAMC_Raw_Data_for_FY22[[#This Row],[Median]]-AAMC_Raw_Data_for_FY22[[#This Row],[25th]])/25)*20) + AAMC_Raw_Data_for_FY22[[#This Row],[25th]]","v":130559.6},132392,{"$f":"(((AAMC_Raw_Data_for_FY22[[#This Row],[75th]]-AAMC_Raw_Data_for_FY22[[#This Row],[Median]])/25)*5) + AAMC_Raw_Data_for_FY22[[#This Row],[Median]]","v":134796},{"$f":"(((AAMC_Raw_Data_for_FY22[[#This Row],[75th]]-AAMC_Raw_Data_for_FY22[[#This Row],[Median]])/25)*10) + AAMC_Raw_Data_for_FY22[[#This Row],[Median]]","v":137200},{"$f":"(((AAMC_Raw_Data_for_FY22[[#This Row],[75th]]-AAMC_Raw_Data_for_FY22[[#This Row],[Median]])/25)*15) + AAMC_Raw_Data_for_FY22[[#This Row],[Median]]","v":139604},{"$f":"(((AAMC_Raw_Data_for_FY22[[#This Row],[75th]]-AAMC_Raw_Data_for_FY22[[#This Row],[Median]])/25)*20) + AAMC_Raw_Data_for_FY22[[#This Row],[Median]]","v":142008},144412,{"$f":"(((AAMC_Raw_Data_for_FY22[[#This Row],[75th]]-AAMC_Raw_Data_for_FY22[[#This Row],[Median]])/25)*30) + AAMC_Raw_Data_for_FY22[[#This Row],[Median]]","v":146816},{"$f":"(((AAMC_Raw_Data_for_FY22[[#This Row],[75th]]-AAMC_Raw_Data_for_FY22[[#This Row],[Median]])/25)*35) + AAMC_Raw_Data_for_FY22[[#This Row],[Median]]","v":149220},{"$f":"(((AAMC_Raw_Data_for_FY22[[#This Row],[75th]]-AAMC_Raw_Data_for_FY22[[#This Row],[Median]])/25)*40) + AAMC_Raw_Data_for_FY22[[#This Row],[Median]]","v":151624}]
[{"$f":"AAMC_Raw_Data_for_FY22[[#This Row],[Source]]&AAMC_Raw_Data_for_FY22[[#This Row],[Type]]&AAMC_Raw_Data_for_FY22[[#This Row],[School Subset]]&AAMC_Raw_Data_for_FY22[[#This Row],[Rank]]&AAMC_Raw_Data_for_FY22[[#This Row],[Degree]]&AAMC_Raw_Data_for_FY22[[#This Row],[Department / Specialty]]&\"L\"","v":"AAMCAcademicPublicProfessorMDAnatomyL"},"Anatomy",2,"AAMC","Academic","Public","Professor","MD","2021-2022",201525,{"$f":"(((AAMC_Raw_Data_for_FY22[[#This Row],[Median]]-AAMC_Raw_Data_for_FY22[[#This Row],[25th]])/25)*5) + AAMC_Raw_Data_for_FY22[[#This Row],[25th]]","v":211020},{"$f":"(((AAMC_Raw_Data_for_FY22[[#This Row],[Median]]-AAMC_Raw_Data_for_FY22[[#This Row],[25th]])/25)*10) + AAMC_Raw_Data_for_FY22[[#This Row],[25th]]","v":220515},{"$f":"(((AAMC_Raw_Data_for_FY22[[#This Row],[Median]]-AAMC_Raw_Data_for_FY22[[#This Row],[25th]])/25)*15) + AAMC_Raw_Data_for_FY22[[#This Row],[25th]]","v":230010},{"$f":"(((AAMC_Raw_Data_for_FY22[[#This Row],[Median]]-AAMC_Raw_Data_for_FY22[[#This Row],[25th]])/25)*20) + AAMC_Raw_Data_for_FY22[[#This Row],[25th]]","v":239505},249000,{"$f":"(((AAMC_Raw_Data_for_FY22[[#This Row],[75th]]-AAMC_Raw_Data_for_FY22[[#This Row],[Median]])/25)*5) + AAMC_Raw_Data_for_FY22[[#This Row],[Median]]","v":249669},{"$f":"(((AAMC_Raw_Data_for_FY22[[#This Row],[75th]]-AAMC_Raw_Data_for_FY22[[#This Row],[Median]])/25)*10) + AAMC_Raw_Data_for_FY22[[#This Row],[Median]]","v":250338},{"$f":"(((AAMC_Raw_Data_for_FY22[[#This Row],[75th]]-AAMC_Raw_Data_for_FY22[[#This Row],[Median]])/25)*15) + AAMC_Raw_Data_for_FY22[[#This Row],[Median]]","v":251007},{"$f":"(((AAMC_Raw_Data_for_FY22[[#This Row],[75th]]-AAMC_Raw_Data_for_FY22[[#This Row],[Median]])/25)*20) + AAMC_Raw_Data_for_FY22[[#This Row],[Median]]","v":251676},252345,{"$f":"(((AAMC_Raw_Data_for_FY22[[#This Row],[75th]]-AAMC_Raw_Data_for_FY22[[#This Row],[Median]])/25)*30) + AAMC_Raw_Data_for_FY22[[#This Row],[Median]]","v":253014},{"$f":"(((AAMC_Raw_Data_for_FY22[[#This Row],[75th]]-AAMC_Raw_Data_for_FY22[[#This Row],[Median]])/25)*35) + AAMC_Raw_Data_for_FY22[[#This Row],[Median]]","v":253683},{"$f":"(((AAMC_Raw_Data_for_FY22[[#This Row],[75th]]-AAMC_Raw_Data_for_FY22[[#This Row],[Median]])/25)*40) + AAMC_Raw_Data_for_FY22[[#This Row],[Median]]","v":254352}]
[{"$f":"AAMC_Raw_Data_for_FY22[[#This Row],[Source]]&AAMC_Raw_Data_for_FY22[[#This Row],[Type]]&AAMC_Raw_Data_for_FY22[[#This Row],[School Subset]]&AAMC_Raw_Data_for_FY22[[#This Row],[Rank]]&AAMC_Raw_Data_for_FY22[[#This Row],[Degree]]&AAMC_Raw_Data_for_FY22[[#This Row],[Department / Specialty]]&\"L\"","v":"AAMCAcademicPublicChairMDAnatomyL"},"Anatomy",1,"AAMC","Academic","Public","Chair","MD","2021-2022",null,{"$f":"(((AAMC_Raw_Data_for_FY22[[#This Row],[Median]]-AAMC_Raw_Data_for_FY22[[#This Row],[25th]])/25)*5) + AAMC_Raw_Data_for_FY22[[#This Row],[25th]]","v":0},{"$f":"(((AAMC_Raw_Data_for_FY22[[#This Row],[Median]]-AAMC_Raw_Data_for_FY22[[#This Row],[25th]])/25)*10) + AAMC_Raw_Data_for_FY22[[#This Row],[25th]]","v":0},{"$f":"(((AAMC_Raw_Data_for_FY22[[#This Row],[Median]]-AAMC_Raw_Data_for_FY22[[#This Row],[25th]])/25)*15) + AAMC_Raw_Data_for_FY22[[#This Row],[25th]]","v":0},{"$f":"(((AAMC_Raw_Data_for_FY22[[#This Row],[Median]]-AAMC_Raw_Data_for_FY22[[#This Row],[25th]])/25)*20) + AAMC_Raw_Data_for_FY22[[#This Row],[25th]]","v":0},null,{"$f":"(((AAMC_Raw_Data_for_FY22[[#This Row],[75th]]-AAMC_Raw_Data_for_FY22[[#This Row],[Median]])/25)*5) + AAMC_Raw_Data_for_FY22[[#This Row],[Median]]","v":0},{"$f":"(((AAMC_Raw_Data_for_FY22[[#This Row],[75th]]-AAMC_Raw_Data_for_FY22[[#This Row],[Median]])/25)*10) + AAMC_Raw_Data_for_FY22[[#This Row],[Median]]","v":0},{"$f":"(((AAMC_Raw_Data_for_FY22[[#This Row],[75th]]-AAMC_Raw_Data_for_FY22[[#This Row],[Median]])/25)*15) + AAMC_Raw_Data_for_FY22[[#This Row],[Median]]","v":0},{"$f":"(((AAMC_Raw_Data_for_FY22[[#This Row],[75th]]-AAMC_Raw_Data_for_FY22[[#This Row],[Median]])/25)*20) + AAMC_Raw_Data_for_FY22[[#This Row],[Median]]","v":0},null,{"$f":"(((AAMC_Raw_Data_for_FY22[[#This Row],[75th]]-AAMC_Raw_Data_for_FY22[[#This Row],[Median]])/25)*30) + AAMC_Raw_Data_for_FY22[[#This Row],[Median]]","v":0},{"$f":"(((AAMC_Raw_Data_for_FY22[[#This Row],[75th]]-AAMC_Raw_Data_for_FY22[[#This Row],[Median]])/25)*35) + AAMC_Raw_Data_for_FY22[[#This Row],[Median]]","v":0},{"$f":"(((AAMC_Raw_Data_for_FY22[[#This Row],[75th]]-AAMC_Raw_Data_for_FY22[[#This Row],[Median]])/25)*40) + AAMC_Raw_Data_for_FY22[[#This Row],[Median]]","v":0}]
[{"$f":"AAMC_Raw_Data_for_FY22[[#This Row],[Source]]&AAMC_Raw_Data_for_FY22[[#This Row],[Type]]&AAMC_Raw_Data_for_FY22[[#This Row],[School Subset]]&AAMC_Raw_Data_for_FY22[[#This Row],[Rank]]&AAMC_Raw_Data_for_FY22[[#This Row],[Degree]]&AAMC_Raw_Data_for_FY22[[#This Row],[Department / Specialty]]&\"L\"","v":"AAMCAcademicPublicInstructorMDBiochemistryL"},"Biochemistry",5,"AAMC","Academic","Public","Instructor","MD","2021-2022",null,{"$f":"(((AAMC_Raw_Data_for_FY22[[#This Row],[Median]]-AAMC_Raw_Data_for_FY22[[#This Row],[25th]])/25)*5) + AAMC_Raw_Data_for_FY22[[#This Row],[25th]]","v":0},{"$f":"(((AAMC_Raw_Data_for_FY22[[#This Row],[Median]]-AAMC_Raw_Data_for_FY22[[#This Row],[25th]])/25)*10) + AAMC_Raw_Data_for_FY22[[#This Row],[25th]]","v":0},{"$f":"(((AAMC_Raw_Data_for_FY22[[#This Row],[Median]]-AAMC_Raw_Data_for_FY22[[#This Row],[25th]])/25)*15) + AAMC_Raw_Data_for_FY22[[#This Row],[25th]]","v":0},{"$f":"(((AAMC_Raw_Data_for_FY22[[#This Row],[Median]]-AAMC_Raw_Data_for_FY22[[#This Row],[25th]])/25)*20) + AAMC_Raw_Data_for_FY22[[#This Row],[25th]]","v":0},null,{"$f":"(((AAMC_Raw_Data_for_FY22[[#This Row],[75th]]-AAMC_Raw_Data_for_FY22[[#This Row],[Median]])/25)*5) + AAMC_Raw_Data_for_FY22[[#This Row],[Median]]","v":0},{"$f":"(((AAMC_Raw_Data_for_FY22[[#This Row],[75th]]-AAMC_Raw_Data_for_FY22[[#This Row],[Median]])/25)*10) + AAMC_Raw_Data_for_FY22[[#This Row],[Median]]","v":0},{"$f":"(((AAMC_Raw_Data_for_FY22[[#This Row],[75th]]-AAMC_Raw_Data_for_FY22[[#This Row],[Median]])/25)*15) + AAMC_Raw_Data_for_FY22[[#This Row],[Median]]","v":0},{"$f":"(((AAMC_Raw_Data_for_FY22[[#This Row],[75th]]-AAMC_Raw_Data_for_FY22[[#This Row],[Median]])/25)*20) + AAMC_Raw_Data_for_FY22[[#This Row],[Median]]","v":0},null,{"$f":"(((AAMC_Raw_Data_for_FY22[[#This Row],[75th]]-AAMC_Raw_Data_for_FY22[[#This Row],[Median]])/25)*30) + AAMC_Raw_Data_for_FY22[[#This Row],[Median]]","v":0},{"$f":"(((AAMC_Raw_Data_for_FY22[[#This Row],[75th]]-AAMC_Raw_Data_for_FY22[[#This Row],[Median]])/25)*35) + AAMC_Raw_Data_for_FY22[[#This Row],[Median]]","v":0},{"$f":"(((AAMC_Raw_Data_for_FY22[[#This Row],[75th]]-AAMC_Raw_Data_for_FY22[[#This Row],[Median]])/25)*40) + AAMC_Raw_Data_for_FY22[[#This Row],[Median]]","v":0}]
[{"$f":"AAMC_Raw_Data_for_FY22[[#This Row],[Source]]&AAMC_Raw_Data_for_FY22[[#This Row],[Type]]&AAMC_Raw_Data_for_FY22[[#This Row],[School Subset]]&AAMC_Raw_Data_for_FY22[[#This Row],[Rank]]&AAMC_Raw_Data_for_FY22[[#This Row],[Degree]]&AAMC_Raw_Data_for_FY22[[#This Row],[Department / Specialty]]&\"L\"","v":"AAMCAcademicPublicAssistantMDBiochemistryL"},"Biochemistry",4,"AAMC","Academic","Public","Assistant","MD","2021-2022",null,{"$f":"(((AAMC_Raw_Data_for_FY22[[#This Row],[Median]]-AAMC_Raw_Data_for_FY22[[#This Row],[25th]])/25)*5) + AAMC_Raw_Data_for_FY22[[#This Row],[25th]]","v":0},{"$f":"(((AAMC_Raw_Data_for_FY22[[#This Row],[Median]]-AAMC_Raw_Data_for_FY22[[#This Row],[25th]])/25)*10) + AAMC_Raw_Data_for_FY22[[#This Row],[25th]]","v":0},{"$f":"(((AAMC_Raw_Data_for_FY22[[#This Row],[Median]]-AAMC_Raw_Data_for_FY22[[#This Row],[25th]])/25)*15) + AAMC_Raw_Data_for_FY22[[#This Row],[25th]]","v":0},{"$f":"(((AAMC_Raw_Data_for_FY22[[#This Row],[Median]]-AAMC_Raw_Data_for_FY22[[#This Row],[25th]])/25)*20) + AAMC_Raw_Data_for_FY22[[#This Row],[25th]]","v":0},null,{"$f":"(((AAMC_Raw_Data_for_FY22[[#This Row],[75th]]-AAMC_Raw_Data_for_FY22[[#This Row],[Median]])/25)*5) + AAMC_Raw_Data_for_FY22[[#This Row],[Median]]","v":0},{"$f":"(((AAMC_Raw_Data_for_FY22[[#This Row],[75th]]-AAMC_Raw_Data_for_FY22[[#This Row],[Median]])/25)*10) + AAMC_Raw_Data_for_FY22[[#This Row],[Median]]","v":0},{"$f":"(((AAMC_Raw_Data_for_FY22[[#This Row],[75th]]-AAMC_Raw_Data_for_FY22[[#This Row],[Median]])/25)*15) + AAMC_Raw_Data_for_FY22[[#This Row],[Median]]","v":0},{"$f":"(((AAMC_Raw_Data_for_FY22[[#This Row],[75th]]-AAMC_Raw_Data_for_FY22[[#This Row],[Median]])/25)*20) + AAMC_Raw_Data_for_FY22[[#This Row],[Median]]","v":0},null,{"$f":"(((AAMC_Raw_Data_for_FY22[[#This Row],[75th]]-AAMC_Raw_Data_for_FY22[[#This Row],[Median]])/25)*30) + AAMC_Raw_Data_for_FY22[[#This Row],[Median]]","v":0},{"$f":"(((AAMC_Raw_Data_for_FY22[[#This Row],[75th]]-AAMC_Raw_Data_for_FY22[[#This Row],[Median]])/25)*35) + AAMC_Raw_Data_for_FY22[[#This Row],[Median]]","v":0},{"$f":"(((AAMC_Raw_Data_for_FY22[[#This Row],[75th]]-AAMC_Raw_Data_for_FY22[[#This Row],[Median]])/25)*40) + AAMC_Raw_Data_for_FY22[[#This Row],[Median]]","v":0}]
[{"$f":"AAMC_Raw_Data_for_FY22[[#This Row],[Source]]&AAMC_Raw_Data_for_FY22[[#This Row],[Type]]&AAMC_Raw_Data_for_FY22[[#This Row],[School Subset]]&AAMC_Raw_Data_for_FY22[[#This Row],[Rank]]&AAMC_Raw_Data_for_FY22[[#This Row],[Degree]]&AAMC_Raw_Data_for_FY22[[#This Row],[Department / Specialty]]&\"L\"","v":"AAMCAcademicPublicAssociateMDBiochemistryL"},"Biochemistry",3,"AAMC","Academic","Public","Associate","MD","2021-2022",136000,{"$f":"(((AAMC_Raw_Data_for_FY22[[#This Row],[Median]]-AAMC_Raw_Data_for_FY22[[#This Row],[25th]])/25)*5) + AAMC_Raw_Data_for_FY22[[#This Row],[25th]]","v":137510.6},{"$f":"(((AAMC_Raw_Data_for_FY22[[#This Row],[Median]]-AAMC_Raw_Data_for_FY22[[#This Row],[25th]])/25)*10) + AAMC_Raw_Data_for_FY22[[#This Row],[25th]]","v":139021.20000000001},{"$f":"(((AAMC_Raw_Data_for_FY22[[#This Row],[Median]]-AAMC_Raw_Data_for_FY22[[#This Row],[25th]])/25)*15) + AAMC_Raw_Data_for_FY22[[#This Row],[25th]]","v":140531.79999999999},{"$f":"(((AAMC_Raw_Data_for_FY22[[#This Row],[Median]]-AAMC_Raw_Data_for_FY22[[#This Row],[25th]])/25)*20) + AAMC_Raw_Data_for_FY22[[#This Row],[25th]]","v":142042.4},143553,{"$f":"(((AAMC_Raw_Data_for_FY22[[#This Row],[75th]]-AAMC_Raw_Data_for_FY22[[#This Row],[Median]])/25)*5) + AAMC_Raw_Data_for_FY22[[#This Row],[Median]]","v":144317.20000000001},{"$f":"(((AAMC_Raw_Data_for_FY22[[#This Row],[75th]]-AAMC_Raw_Data_for_FY22[[#This Row],[Median]])/25)*10) + AAMC_Raw_Data_for_FY22[[#This Row],[Median]]","v":145081.4},{"$f":"(((AAMC_Raw_Data_for_FY22[[#This Row],[75th]]-AAMC_Raw_Data_for_FY22[[#This Row],[Median]])/25)*15) + AAMC_Raw_Data_for_FY22[[#This Row],[Median]]","v":145845.6},{"$f":"(((AAMC_Raw_Data_for_FY22[[#This Row],[75th]]-AAMC_Raw_Data_for_FY22[[#This Row],[Median]])/25)*20) + AAMC_Raw_Data_for_FY22[[#This Row],[Median]]","v":146609.79999999999},147374,{"$f":"(((AAMC_Raw_Data_for_FY22[[#This Row],[75th]]-AAMC_Raw_Data_for_FY22[[#This Row],[Median]])/25)*30) + AAMC_Raw_Data_for_FY22[[#This Row],[Median]]","v":148138.20000000001},{"$f":"(((AAMC_Raw_Data_for_FY22[[#This Row],[75th]]-AAMC_Raw_Data_for_FY22[[#This Row],[Median]])/25)*35) + AAMC_Raw_Data_for_FY22[[#This Row],[Median]]","v":148902.39999999999},{"$f":"(((AAMC_Raw_Data_for_FY22[[#This Row],[75th]]-AAMC_Raw_Data_for_FY22[[#This Row],[Median]])/25)*40) + AAMC_Raw_Data_for_FY22[[#This Row],[Median]]","v":149666.6}]
[{"$f":"AAMC_Raw_Data_for_FY22[[#This Row],[Source]]&AAMC_Raw_Data_for_FY22[[#This Row],[Type]]&AAMC_Raw_Data_for_FY22[[#This Row],[School Subset]]&AAMC_Raw_Data_for_FY22[[#This Row],[Rank]]&AAMC_Raw_Data_for_FY22[[#This Row],[Degree]]&AAMC_Raw_Data_for_FY22[[#This Row],[Department / Specialty]]&\"L\"","v":"AAMCAcademicPublicProfessorMDBiochemistryL"},"Biochemistry",2,"AAMC","Academic","Public","Professor","MD","2021-2022",184500,{"$f":"(((AAMC_Raw_Data_for_FY22[[#This Row],[Median]]-AAMC_Raw_Data_for_FY22[[#This Row],[25th]])/25)*5) + AAMC_Raw_Data_for_FY22[[#This Row],[25th]]","v":192192.6},{"$f":"(((AAMC_Raw_Data_for_FY22[[#This Row],[Median]]-AAMC_Raw_Data_for_FY22[[#This Row],[25th]])/25)*10) + AAMC_Raw_Data_for_FY22[[#This Row],[25th]]","v":199885.2},{"$f":"(((AAMC_Raw_Data_for_FY22[[#This Row],[Median]]-AAMC_Raw_Data_for_FY22[[#This Row],[25th]])/25)*15) + AAMC_Raw_Data_for_FY22[[#This Row],[25th]]","v":207577.8},{"$f":"(((AAMC_Raw_Data_for_FY22[[#This Row],[Median]]-AAMC_Raw_Data_for_FY22[[#This Row],[25th]])/25)*20) + AAMC_Raw_Data_for_FY22[[#This Row],[25th]]","v":215270.39999999999},222963,{"$f":"(((AAMC_Raw_Data_for_FY22[[#This Row],[75th]]-AAMC_Raw_Data_for_FY22[[#This Row],[Median]])/25)*5) + AAMC_Raw_Data_for_FY22[[#This Row],[Median]]","v":244330.4},{"$f":"(((AAMC_Raw_Data_for_FY22[[#This Row],[75th]]-AAMC_Raw_Data_for_FY22[[#This Row],[Median]])/25)*10) + AAMC_Raw_Data_for_FY22[[#This Row],[Median]]","v":265697.8},{"$f":"(((AAMC_Raw_Data_for_FY22[[#This Row],[75th]]-AAMC_Raw_Data_for_FY22[[#This Row],[Median]])/25)*15) + AAMC_Raw_Data_for_FY22[[#This Row],[Median]]","v":287065.2},{"$f":"(((AAMC_Raw_Data_for_FY22[[#This Row],[75th]]-AAMC_Raw_Data_for_FY22[[#This Row],[Median]])/25)*20) + AAMC_Raw_Data_for_FY22[[#This Row],[Median]]","v":308432.59999999998},329800,{"$f":"(((AAMC_Raw_Data_for_FY22[[#This Row],[75th]]-AAMC_Raw_Data_for_FY22[[#This Row],[Median]])/25)*30) + AAMC_Raw_Data_for_FY22[[#This Row],[Median]]","v":351167.4},{"$f":"(((AAMC_Raw_Data_for_FY22[[#This Row],[75th]]-AAMC_Raw_Data_for_FY22[[#This Row],[Median]])/25)*35) + AAMC_Raw_Data_for_FY22[[#This Row],[Median]]","v":372534.8},{"$f":"(((AAMC_Raw_Data_for_FY22[[#This Row],[75th]]-AAMC_Raw_Data_for_FY22[[#This Row],[Median]])/25)*40) + AAMC_Raw_Data_for_FY22[[#This Row],[Median]]","v":393902.19999999995}]
[{"$f":"AAMC_Raw_Data_for_FY22[[#This Row],[Source]]&AAMC_Raw_Data_for_FY22[[#This Row],[Type]]&AAMC_Raw_Data_for_FY22[[#This Row],[School Subset]]&AAMC_Raw_Data_for_FY22[[#This Row],[Rank]]&AAMC_Raw_Data_for_FY22[[#This Row],[Degree]]&AAMC_Raw_Data_for_FY22[[#This Row],[Department / Specialty]]&\"L\"","v":"AAMCAcademicPublicChairMDBiochemistryL"},"Biochemistry",1,"AAMC","Academic","Public","Chair","MD","2021-2022",null,{"$f":"(((AAMC_Raw_Data_for_FY22[[#This Row],[Median]]-AAMC_Raw_Data_for_FY22[[#This Row],[25th]])/25)*5) + AAMC_Raw_Data_for_FY22[[#This Row],[25th]]","v":0},{"$f":"(((AAMC_Raw_Data_for_FY22[[#This Row],[Median]]-AAMC_Raw_Data_for_FY22[[#This Row],[25th]])/25)*10) + AAMC_Raw_Data_for_FY22[[#This Row],[25th]]","v":0},{"$f":"(((AAMC_Raw_Data_for_FY22[[#This Row],[Median]]-AAMC_Raw_Data_for_FY22[[#This Row],[25th]])/25)*15) + AAMC_Raw_Data_for_FY22[[#This Row],[25th]]","v":0},{"$f":"(((AAMC_Raw_Data_for_FY22[[#This Row],[Median]]-AAMC_Raw_Data_for_FY22[[#This Row],[25th]])/25)*20) + AAMC_Raw_Data_for_FY22[[#This Row],[25th]]","v":0},null,{"$f":"(((AAMC_Raw_Data_for_FY22[[#This Row],[75th]]-AAMC_Raw_Data_for_FY22[[#This Row],[Median]])/25)*5) + AAMC_Raw_Data_for_FY22[[#This Row],[Median]]","v":0},{"$f":"(((AAMC_Raw_Data_for_FY22[[#This Row],[75th]]-AAMC_Raw_Data_for_FY22[[#This Row],[Median]])/25)*10) + AAMC_Raw_Data_for_FY22[[#This Row],[Median]]","v":0},{"$f":"(((AAMC_Raw_Data_for_FY22[[#This Row],[75th]]-AAMC_Raw_Data_for_FY22[[#This Row],[Median]])/25)*15) + AAMC_Raw_Data_for_FY22[[#This Row],[Median]]","v":0},{"$f":"(((AAMC_Raw_Data_for_FY22[[#This Row],[75th]]-AAMC_Raw_Data_for_FY22[[#This Row],[Median]])/25)*20) + AAMC_Raw_Data_for_FY22[[#This Row],[Median]]","v":0},null,{"$f":"(((AAMC_Raw_Data_for_FY22[[#This Row],[75th]]-AAMC_Raw_Data_for_FY22[[#This Row],[Median]])/25)*30) + AAMC_Raw_Data_for_FY22[[#This Row],[Median]]","v":0},{"$f":"(((AAMC_Raw_Data_for_FY22[[#This Row],[75th]]-AAMC_Raw_Data_for_FY22[[#This Row],[Median]])/25)*35) + AAMC_Raw_Data_for_FY22[[#This Row],[Median]]","v":0},{"$f":"(((AAMC_Raw_Data_for_FY22[[#This Row],[75th]]-AAMC_Raw_Data_for_FY22[[#This Row],[Median]])/25)*40) + AAMC_Raw_Data_for_FY22[[#This Row],[Median]]","v":0}]
[{"$f":"AAMC_Raw_Data_for_FY22[[#This Row],[Source]]&AAMC_Raw_Data_for_FY22[[#This Row],[Type]]&AAMC_Raw_Data_for_FY22[[#This Row],[School Subset]]&AAMC_Raw_Data_for_FY22[[#This Row],[Rank]]&AAMC_Raw_Data_for_FY22[[#This Row],[Degree]]&AAMC_Raw_Data_for_FY22[[#This Row],[Department / Specialty]]&\"L\"","v":"AAMCAcademicPublicInstructorMDBioethics/Medical HumanitiesL"},"Bioethics/Medical Humanities",5,"AAMC","Academic","Public","Instructor","MD","2021-2022",null,{"$f":"(((AAMC_Raw_Data_for_FY22[[#This Row],[Median]]-AAMC_Raw_Data_for_FY22[[#This Row],[25th]])/25)*5) + AAMC_Raw_Data_for_FY22[[#This Row],[25th]]","v":0},{"$f":"(((AAMC_Raw_Data_for_FY22[[#This Row],[Median]]-AAMC_Raw_Data_for_FY22[[#This Row],[25th]])/25)*10) + AAMC_Raw_Data_for_FY22[[#This Row],[25th]]","v":0},{"$f":"(((AAMC_Raw_Data_for_FY22[[#This Row],[Median]]-AAMC_Raw_Data_for_FY22[[#This Row],[25th]])/25)*15) + AAMC_Raw_Data_for_FY22[[#This Row],[25th]]","v":0},{"$f":"(((AAMC_Raw_Data_for_FY22[[#This Row],[Median]]-AAMC_Raw_Data_for_FY22[[#This Row],[25th]])/25)*20) + AAMC_Raw_Data_for_FY22[[#This Row],[25th]]","v":0},null,{"$f":"(((AAMC_Raw_Data_for_FY22[[#This Row],[75th]]-AAMC_Raw_Data_for_FY22[[#This Row],[Median]])/25)*5) + AAMC_Raw_Data_for_FY22[[#This Row],[Median]]","v":0},{"$f":"(((AAMC_Raw_Data_for_FY22[[#This Row],[75th]]-AAMC_Raw_Data_for_FY22[[#This Row],[Median]])/25)*10) + AAMC_Raw_Data_for_FY22[[#This Row],[Median]]","v":0},{"$f":"(((AAMC_Raw_Data_for_FY22[[#This Row],[75th]]-AAMC_Raw_Data_for_FY22[[#This Row],[Median]])/25)*15) + AAMC_Raw_Data_for_FY22[[#This Row],[Median]]","v":0},{"$f":"(((AAMC_Raw_Data_for_FY22[[#This Row],[75th]]-AAMC_Raw_Data_for_FY22[[#This Row],[Median]])/25)*20) + AAMC_Raw_Data_for_FY22[[#This Row],[Median]]","v":0},null,{"$f":"(((AAMC_Raw_Data_for_FY22[[#This Row],[75th]]-AAMC_Raw_Data_for_FY22[[#This Row],[Median]])/25)*30) + AAMC_Raw_Data_for_FY22[[#This Row],[Median]]","v":0},{"$f":"(((AAMC_Raw_Data_for_FY22[[#This Row],[75th]]-AAMC_Raw_Data_for_FY22[[#This Row],[Median]])/25)*35) + AAMC_Raw_Data_for_FY22[[#This Row],[Median]]","v":0},{"$f":"(((AAMC_Raw_Data_for_FY22[[#This Row],[75th]]-AAMC_Raw_Data_for_FY22[[#This Row],[Median]])/25)*40) + AAMC_Raw_Data_for_FY22[[#This Row],[Median]]","v":0}]
[{"$f":"AAMC_Raw_Data_for_FY22[[#This Row],[Source]]&AAMC_Raw_Data_for_FY22[[#This Row],[Type]]&AAMC_Raw_Data_for_FY22[[#This Row],[School Subset]]&AAMC_Raw_Data_for_FY22[[#This Row],[Rank]]&AAMC_Raw_Data_for_FY22[[#This Row],[Degree]]&AAMC_Raw_Data_for_FY22[[#This Row],[Department / Specialty]]&\"L\"","v":"AAMCAcademicPublicAssistantMDBioethics/Medical HumanitiesL"},"Bioethics/Medical Humanities",4,"AAMC","Academic","Public","Assistant","MD","2021-2022",null,{"$f":"(((AAMC_Raw_Data_for_FY22[[#This Row],[Median]]-AAMC_Raw_Data_for_FY22[[#This Row],[25th]])/25)*5) + AAMC_Raw_Data_for_FY22[[#This Row],[25th]]","v":0},{"$f":"(((AAMC_Raw_Data_for_FY22[[#This Row],[Median]]-AAMC_Raw_Data_for_FY22[[#This Row],[25th]])/25)*10) + AAMC_Raw_Data_for_FY22[[#This Row],[25th]]","v":0},{"$f":"(((AAMC_Raw_Data_for_FY22[[#This Row],[Median]]-AAMC_Raw_Data_for_FY22[[#This Row],[25th]])/25)*15) + AAMC_Raw_Data_for_FY22[[#This Row],[25th]]","v":0},{"$f":"(((AAMC_Raw_Data_for_FY22[[#This Row],[Median]]-AAMC_Raw_Data_for_FY22[[#This Row],[25th]])/25)*20) + AAMC_Raw_Data_for_FY22[[#This Row],[25th]]","v":0},null,{"$f":"(((AAMC_Raw_Data_for_FY22[[#This Row],[75th]]-AAMC_Raw_Data_for_FY22[[#This Row],[Median]])/25)*5) + AAMC_Raw_Data_for_FY22[[#This Row],[Median]]","v":0},{"$f":"(((AAMC_Raw_Data_for_FY22[[#This Row],[75th]]-AAMC_Raw_Data_for_FY22[[#This Row],[Median]])/25)*10) + AAMC_Raw_Data_for_FY22[[#This Row],[Median]]","v":0},{"$f":"(((AAMC_Raw_Data_for_FY22[[#This Row],[75th]]-AAMC_Raw_Data_for_FY22[[#This Row],[Median]])/25)*15) + AAMC_Raw_Data_for_FY22[[#This Row],[Median]]","v":0},{"$f":"(((AAMC_Raw_Data_for_FY22[[#This Row],[75th]]-AAMC_Raw_Data_for_FY22[[#This Row],[Median]])/25)*20) + AAMC_Raw_Data_for_FY22[[#This Row],[Median]]","v":0},null,{"$f":"(((AAMC_Raw_Data_for_FY22[[#This Row],[75th]]-AAMC_Raw_Data_for_FY22[[#This Row],[Median]])/25)*30) + AAMC_Raw_Data_for_FY22[[#This Row],[Median]]","v":0},{"$f":"(((AAMC_Raw_Data_for_FY22[[#This Row],[75th]]-AAMC_Raw_Data_for_FY22[[#This Row],[Median]])/25)*35) + AAMC_Raw_Data_for_FY22[[#This Row],[Median]]","v":0},{"$f":"(((AAMC_Raw_Data_for_FY22[[#This Row],[75th]]-AAMC_Raw_Data_for_FY22[[#This Row],[Median]])/25)*40) + AAMC_Raw_Data_for_FY22[[#This Row],[Median]]","v":0}]
[{"$f":"AAMC_Raw_Data_for_FY22[[#This Row],[Source]]&AAMC_Raw_Data_for_FY22[[#This Row],[Type]]&AAMC_Raw_Data_for_FY22[[#This Row],[School Subset]]&AAMC_Raw_Data_for_FY22[[#This Row],[Rank]]&AAMC_Raw_Data_for_FY22[[#This Row],[Degree]]&AAMC_Raw_Data_for_FY22[[#This Row],[Department / Specialty]]&\"L\"","v":"AAMCAcademicPublicAssociateMDBioethics/Medical HumanitiesL"},"Bioethics/Medical Humanities",3,"AAMC","Academic","Public","Associate","MD","2021-2022",null,{"$f":"(((AAMC_Raw_Data_for_FY22[[#This Row],[Median]]-AAMC_Raw_Data_for_FY22[[#This Row],[25th]])/25)*5) + AAMC_Raw_Data_for_FY22[[#This Row],[25th]]","v":0},{"$f":"(((AAMC_Raw_Data_for_FY22[[#This Row],[Median]]-AAMC_Raw_Data_for_FY22[[#This Row],[25th]])/25)*10) + AAMC_Raw_Data_for_FY22[[#This Row],[25th]]","v":0},{"$f":"(((AAMC_Raw_Data_for_FY22[[#This Row],[Median]]-AAMC_Raw_Data_for_FY22[[#This Row],[25th]])/25)*15) + AAMC_Raw_Data_for_FY22[[#This Row],[25th]]","v":0},{"$f":"(((AAMC_Raw_Data_for_FY22[[#This Row],[Median]]-AAMC_Raw_Data_for_FY22[[#This Row],[25th]])/25)*20) + AAMC_Raw_Data_for_FY22[[#This Row],[25th]]","v":0},null,{"$f":"(((AAMC_Raw_Data_for_FY22[[#This Row],[75th]]-AAMC_Raw_Data_for_FY22[[#This Row],[Median]])/25)*5) + AAMC_Raw_Data_for_FY22[[#This Row],[Median]]","v":0},{"$f":"(((AAMC_Raw_Data_for_FY22[[#This Row],[75th]]-AAMC_Raw_Data_for_FY22[[#This Row],[Median]])/25)*10) + AAMC_Raw_Data_for_FY22[[#This Row],[Median]]","v":0},{"$f":"(((AAMC_Raw_Data_for_FY22[[#This Row],[75th]]-AAMC_Raw_Data_for_FY22[[#This Row],[Median]])/25)*15) + AAMC_Raw_Data_for_FY22[[#This Row],[Median]]","v":0},{"$f":"(((AAMC_Raw_Data_for_FY22[[#This Row],[75th]]-AAMC_Raw_Data_for_FY22[[#This Row],[Median]])/25)*20) + AAMC_Raw_Data_for_FY22[[#This Row],[Median]]","v":0},null,{"$f":"(((AAMC_Raw_Data_for_FY22[[#This Row],[75th]]-AAMC_Raw_Data_for_FY22[[#This Row],[Median]])/25)*30) + AAMC_Raw_Data_for_FY22[[#This Row],[Median]]","v":0},{"$f":"(((AAMC_Raw_Data_for_FY22[[#This Row],[75th]]-AAMC_Raw_Data_for_FY22[[#This Row],[Median]])/25)*35) + AAMC_Raw_Data_for_FY22[[#This Row],[Median]]","v":0},{"$f":"(((AAMC_Raw_Data_for_FY22[[#This Row],[75th]]-AAMC_Raw_Data_for_FY22[[#This Row],[Median]])/25)*40) + AAMC_Raw_Data_for_FY22[[#This Row],[Median]]","v":0}]
[{"$f":"AAMC_Raw_Data_for_FY22[[#This Row],[Source]]&AAMC_Raw_Data_for_FY22[[#This Row],[Type]]&AAMC_Raw_Data_for_FY22[[#This Row],[School Subset]]&AAMC_Raw_Data_for_FY22[[#This Row],[Rank]]&AAMC_Raw_Data_for_FY22[[#This Row],[Degree]]&AAMC_Raw_Data_for_FY22[[#This Row],[Department / Specialty]]&\"L\"","v":"AAMCAcademicPublicProfessorMDBioethics/Medical HumanitiesL"},"Bioethics/Medical Humanities",2,"AAMC","Academic","Public","Professor","MD","2021-2022",null,{"$f":"(((AAMC_Raw_Data_for_FY22[[#This Row],[Median]]-AAMC_Raw_Data_for_FY22[[#This Row],[25th]])/25)*5) + AAMC_Raw_Data_for_FY22[[#This Row],[25th]]","v":0},{"$f":"(((AAMC_Raw_Data_for_FY22[[#This Row],[Median]]-AAMC_Raw_Data_for_FY22[[#This Row],[25th]])/25)*10) + AAMC_Raw_Data_for_FY22[[#This Row],[25th]]","v":0},{"$f":"(((AAMC_Raw_Data_for_FY22[[#This Row],[Median]]-AAMC_Raw_Data_for_FY22[[#This Row],[25th]])/25)*15) + AAMC_Raw_Data_for_FY22[[#This Row],[25th]]","v":0},{"$f":"(((AAMC_Raw_Data_for_FY22[[#This Row],[Median]]-AAMC_Raw_Data_for_FY22[[#This Row],[25th]])/25)*20) + AAMC_Raw_Data_for_FY22[[#This Row],[25th]]","v":0},null,{"$f":"(((AAMC_Raw_Data_for_FY22[[#This Row],[75th]]-AAMC_Raw_Data_for_FY22[[#This Row],[Median]])/25)*5) + AAMC_Raw_Data_for_FY22[[#This Row],[Median]]","v":0},{"$f":"(((AAMC_Raw_Data_for_FY22[[#This Row],[75th]]-AAMC_Raw_Data_for_FY22[[#This Row],[Median]])/25)*10) + AAMC_Raw_Data_for_FY22[[#This Row],[Median]]","v":0},{"$f":"(((AAMC_Raw_Data_for_FY22[[#This Row],[75th]]-AAMC_Raw_Data_for_FY22[[#This Row],[Median]])/25)*15) + AAMC_Raw_Data_for_FY22[[#This Row],[Median]]","v":0},{"$f":"(((AAMC_Raw_Data_for_FY22[[#This Row],[75th]]-AAMC_Raw_Data_for_FY22[[#This Row],[Median]])/25)*20) + AAMC_Raw_Data_for_FY22[[#This Row],[Median]]","v":0},null,{"$f":"(((AAMC_Raw_Data_for_FY22[[#This Row],[75th]]-AAMC_Raw_Data_for_FY22[[#This Row],[Median]])/25)*30) + AAMC_Raw_Data_for_FY22[[#This Row],[Median]]","v":0},{"$f":"(((AAMC_Raw_Data_for_FY22[[#This Row],[75th]]-AAMC_Raw_Data_for_FY22[[#This Row],[Median]])/25)*35) + AAMC_Raw_Data_for_FY22[[#This Row],[Median]]","v":0},{"$f":"(((AAMC_Raw_Data_for_FY22[[#This Row],[75th]]-AAMC_Raw_Data_for_FY22[[#This Row],[Median]])/25)*40) + AAMC_Raw_Data_for_FY22[[#This Row],[Median]]","v":0}]
[{"$f":"AAMC_Raw_Data_for_FY22[[#This Row],[Source]]&AAMC_Raw_Data_for_FY22[[#This Row],[Type]]&AAMC_Raw_Data_for_FY22[[#This Row],[School Subset]]&AAMC_Raw_Data_for_FY22[[#This Row],[Rank]]&AAMC_Raw_Data_for_FY22[[#This Row],[Degree]]&AAMC_Raw_Data_for_FY22[[#This Row],[Department / Specialty]]&\"L\"","v":"AAMCAcademicPublicChairMDBioethics/Medical HumanitiesL"},"Bioethics/Medical Humanities",1,"AAMC","Academic","Public","Chair","MD","2021-2022",null,{"$f":"(((AAMC_Raw_Data_for_FY22[[#This Row],[Median]]-AAMC_Raw_Data_for_FY22[[#This Row],[25th]])/25)*5) + AAMC_Raw_Data_for_FY22[[#This Row],[25th]]","v":0},{"$f":"(((AAMC_Raw_Data_for_FY22[[#This Row],[Median]]-AAMC_Raw_Data_for_FY22[[#This Row],[25th]])/25)*10) + AAMC_Raw_Data_for_FY22[[#This Row],[25th]]","v":0},{"$f":"(((AAMC_Raw_Data_for_FY22[[#This Row],[Median]]-AAMC_Raw_Data_for_FY22[[#This Row],[25th]])/25)*15) + AAMC_Raw_Data_for_FY22[[#This Row],[25th]]","v":0},{"$f":"(((AAMC_Raw_Data_for_FY22[[#This Row],[Median]]-AAMC_Raw_Data_for_FY22[[#This Row],[25th]])/25)*20) + AAMC_Raw_Data_for_FY22[[#This Row],[25th]]","v":0},null,{"$f":"(((AAMC_Raw_Data_for_FY22[[#This Row],[75th]]-AAMC_Raw_Data_for_FY22[[#This Row],[Median]])/25)*5) + AAMC_Raw_Data_for_FY22[[#This Row],[Median]]","v":0},{"$f":"(((AAMC_Raw_Data_for_FY22[[#This Row],[75th]]-AAMC_Raw_Data_for_FY22[[#This Row],[Median]])/25)*10) + AAMC_Raw_Data_for_FY22[[#This Row],[Median]]","v":0},{"$f":"(((AAMC_Raw_Data_for_FY22[[#This Row],[75th]]-AAMC_Raw_Data_for_FY22[[#This Row],[Median]])/25)*15) + AAMC_Raw_Data_for_FY22[[#This Row],[Median]]","v":0},{"$f":"(((AAMC_Raw_Data_for_FY22[[#This Row],[75th]]-AAMC_Raw_Data_for_FY22[[#This Row],[Median]])/25)*20) + AAMC_Raw_Data_for_FY22[[#This Row],[Median]]","v":0},null,{"$f":"(((AAMC_Raw_Data_for_FY22[[#This Row],[75th]]-AAMC_Raw_Data_for_FY22[[#This Row],[Median]])/25)*30) + AAMC_Raw_Data_for_FY22[[#This Row],[Median]]","v":0},{"$f":"(((AAMC_Raw_Data_for_FY22[[#This Row],[75th]]-AAMC_Raw_Data_for_FY22[[#This Row],[Median]])/25)*35) + AAMC_Raw_Data_for_FY22[[#This Row],[Median]]","v":0},{"$f":"(((AAMC_Raw_Data_for_FY22[[#This Row],[75th]]-AAMC_Raw_Data_for_FY22[[#This Row],[Median]])/25)*40) + AAMC_Raw_Data_for_FY22[[#This Row],[Median]]","v":0}]
[{"$f":"AAMC_Raw_Data_for_FY22[[#This Row],[Source]]&AAMC_Raw_Data_for_FY22[[#This Row],[Type]]&AAMC_Raw_Data_for_FY22[[#This Row],[School Subset]]&AAMC_Raw_Data_for_FY22[[#This Row],[Rank]]&AAMC_Raw_Data_for_FY22[[#This Row],[Degree]]&AAMC_Raw_Data_for_FY22[[#This Row],[Department / Specialty]]&\"L\"","v":"AAMCAcademicPublicAssistantMDBiomedical InformaticsL"},"Biomedical Informatics",4,"AAMC","Academic","Public","Assistant","MD","2021-2022",139712,{"$f":"(((AAMC_Raw_Data_for_FY22[[#This Row],[Median]]-AAMC_Raw_Data_for_FY22[[#This Row],[25th]])/25)*5) + AAMC_Raw_Data_for_FY22[[#This Row],[25th]]","v":142027.6},{"$f":"(((AAMC_Raw_Data_for_FY22[[#This Row],[Median]]-AAMC_Raw_Data_for_FY22[[#This Row],[25th]])/25)*10) + AAMC_Raw_Data_for_FY22[[#This Row],[25th]]","v":144343.20000000001},{"$f":"(((AAMC_Raw_Data_for_FY22[[#This Row],[Median]]-AAMC_Raw_Data_for_FY22[[#This Row],[25th]])/25)*15) + AAMC_Raw_Data_for_FY22[[#This Row],[25th]]","v":146658.79999999999},{"$f":"(((AAMC_Raw_Data_for_FY22[[#This Row],[Median]]-AAMC_Raw_Data_for_FY22[[#This Row],[25th]])/25)*20) + AAMC_Raw_Data_for_FY22[[#This Row],[25th]]","v":148974.39999999999},151290,{"$f":"(((AAMC_Raw_Data_for_FY22[[#This Row],[75th]]-AAMC_Raw_Data_for_FY22[[#This Row],[Median]])/25)*5) + AAMC_Raw_Data_for_FY22[[#This Row],[Median]]","v":155731.20000000001},{"$f":"(((AAMC_Raw_Data_for_FY22[[#This Row],[75th]]-AAMC_Raw_Data_for_FY22[[#This Row],[Median]])/25)*10) + AAMC_Raw_Data_for_FY22[[#This Row],[Median]]","v":160172.4},{"$f":"(((AAMC_Raw_Data_for_FY22[[#This Row],[75th]]-AAMC_Raw_Data_for_FY22[[#This Row],[Median]])/25)*15) + AAMC_Raw_Data_for_FY22[[#This Row],[Median]]","v":164613.6},{"$f":"(((AAMC_Raw_Data_for_FY22[[#This Row],[75th]]-AAMC_Raw_Data_for_FY22[[#This Row],[Median]])/25)*20) + AAMC_Raw_Data_for_FY22[[#This Row],[Median]]","v":169054.8},173496,{"$f":"(((AAMC_Raw_Data_for_FY22[[#This Row],[75th]]-AAMC_Raw_Data_for_FY22[[#This Row],[Median]])/25)*30) + AAMC_Raw_Data_for_FY22[[#This Row],[Median]]","v":177937.2},{"$f":"(((AAMC_Raw_Data_for_FY22[[#This Row],[75th]]-AAMC_Raw_Data_for_FY22[[#This Row],[Median]])/25)*35) + AAMC_Raw_Data_for_FY22[[#This Row],[Median]]","v":182378.4},{"$f":"(((AAMC_Raw_Data_for_FY22[[#This Row],[75th]]-AAMC_Raw_Data_for_FY22[[#This Row],[Median]])/25)*40) + AAMC_Raw_Data_for_FY22[[#This Row],[Median]]","v":186819.6}]
[{"$f":"AAMC_Raw_Data_for_FY22[[#This Row],[Source]]&AAMC_Raw_Data_for_FY22[[#This Row],[Type]]&AAMC_Raw_Data_for_FY22[[#This Row],[School Subset]]&AAMC_Raw_Data_for_FY22[[#This Row],[Rank]]&AAMC_Raw_Data_for_FY22[[#This Row],[Degree]]&AAMC_Raw_Data_for_FY22[[#This Row],[Department / Specialty]]&\"L\"","v":"AAMCAcademicPublicAssociateMDBiomedical InformaticsL"},"Biomedical Informatics",3,"AAMC","Academic","Public","Associate","MD","2021-2022",194609,{"$f":"(((AAMC_Raw_Data_for_FY22[[#This Row],[Median]]-AAMC_Raw_Data_for_FY22[[#This Row],[25th]])/25)*5) + AAMC_Raw_Data_for_FY22[[#This Row],[25th]]","v":208719.2},{"$f":"(((AAMC_Raw_Data_for_FY22[[#This Row],[Median]]-AAMC_Raw_Data_for_FY22[[#This Row],[25th]])/25)*10) + AAMC_Raw_Data_for_FY22[[#This Row],[25th]]","v":222829.4},{"$f":"(((AAMC_Raw_Data_for_FY22[[#This Row],[Median]]-AAMC_Raw_Data_for_FY22[[#This Row],[25th]])/25)*15) + AAMC_Raw_Data_for_FY22[[#This Row],[25th]]","v":236939.6},{"$f":"(((AAMC_Raw_Data_for_FY22[[#This Row],[Median]]-AAMC_Raw_Data_for_FY22[[#This Row],[25th]])/25)*20) + AAMC_Raw_Data_for_FY22[[#This Row],[25th]]","v":251049.8},265160,{"$f":"(((AAMC_Raw_Data_for_FY22[[#This Row],[75th]]-AAMC_Raw_Data_for_FY22[[#This Row],[Median]])/25)*5) + AAMC_Raw_Data_for_FY22[[#This Row],[Median]]","v":276762.8},{"$f":"(((AAMC_Raw_Data_for_FY22[[#This Row],[75th]]-AAMC_Raw_Data_for_FY22[[#This Row],[Median]])/25)*10) + AAMC_Raw_Data_for_FY22[[#This Row],[Median]]","v":288365.59999999998},{"$f":"(((AAMC_Raw_Data_for_FY22[[#This Row],[75th]]-AAMC_Raw_Data_for_FY22[[#This Row],[Median]])/25)*15) + AAMC_Raw_Data_for_FY22[[#This Row],[Median]]","v":299968.40000000002},{"$f":"(((AAMC_Raw_Data_for_FY22[[#This Row],[75th]]-AAMC_Raw_Data_for_FY22[[#This Row],[Median]])/25)*20) + AAMC_Raw_Data_for_FY22[[#This Row],[Median]]","v":311571.20000000001},323174,{"$f":"(((AAMC_Raw_Data_for_FY22[[#This Row],[75th]]-AAMC_Raw_Data_for_FY22[[#This Row],[Median]])/25)*30) + AAMC_Raw_Data_for_FY22[[#This Row],[Median]]","v":334776.8},{"$f":"(((AAMC_Raw_Data_for_FY22[[#This Row],[75th]]-AAMC_Raw_Data_for_FY22[[#This Row],[Median]])/25)*35) + AAMC_Raw_Data_for_FY22[[#This Row],[Median]]","v":346379.6},{"$f":"(((AAMC_Raw_Data_for_FY22[[#This Row],[75th]]-AAMC_Raw_Data_for_FY22[[#This Row],[Median]])/25)*40) + AAMC_Raw_Data_for_FY22[[#This Row],[Median]]","v":357982.4}]
[{"$f":"AAMC_Raw_Data_for_FY22[[#This Row],[Source]]&AAMC_Raw_Data_for_FY22[[#This Row],[Type]]&AAMC_Raw_Data_for_FY22[[#This Row],[School Subset]]&AAMC_Raw_Data_for_FY22[[#This Row],[Rank]]&AAMC_Raw_Data_for_FY22[[#This Row],[Degree]]&AAMC_Raw_Data_for_FY22[[#This Row],[Department / Specialty]]&\"L\"","v":"AAMCAcademicPublicProfessorMDBiomedical InformaticsL"},"Biomedical Informatics",2,"AAMC","Academic","Public","Professor","MD","2021-2022",241207,{"$f":"(((AAMC_Raw_Data_for_FY22[[#This Row],[Median]]-AAMC_Raw_Data_for_FY22[[#This Row],[25th]])/25)*5) + AAMC_Raw_Data_for_FY22[[#This Row],[25th]]","v":244820},{"$f":"(((AAMC_Raw_Data_for_FY22[[#This Row],[Median]]-AAMC_Raw_Data_for_FY22[[#This Row],[25th]])/25)*10) + AAMC_Raw_Data_for_FY22[[#This Row],[25th]]","v":248433},{"$f":"(((AAMC_Raw_Data_for_FY22[[#This Row],[Median]]-AAMC_Raw_Data_for_FY22[[#This Row],[25th]])/25)*15) + AAMC_Raw_Data_for_FY22[[#This Row],[25th]]","v":252046},{"$f":"(((AAMC_Raw_Data_for_FY22[[#This Row],[Median]]-AAMC_Raw_Data_for_FY22[[#This Row],[25th]])/25)*20) + AAMC_Raw_Data_for_FY22[[#This Row],[25th]]","v":255659},259272,{"$f":"(((AAMC_Raw_Data_for_FY22[[#This Row],[75th]]-AAMC_Raw_Data_for_FY22[[#This Row],[Median]])/25)*5) + AAMC_Raw_Data_for_FY22[[#This Row],[Median]]","v":268711.2},{"$f":"(((AAMC_Raw_Data_for_FY22[[#This Row],[75th]]-AAMC_Raw_Data_for_FY22[[#This Row],[Median]])/25)*10) + AAMC_Raw_Data_for_FY22[[#This Row],[Median]]","v":278150.40000000002},{"$f":"(((AAMC_Raw_Data_for_FY22[[#This Row],[75th]]-AAMC_Raw_Data_for_FY22[[#This Row],[Median]])/25)*15) + AAMC_Raw_Data_for_FY22[[#This Row],[Median]]","v":287589.59999999998},{"$f":"(((AAMC_Raw_Data_for_FY22[[#This Row],[75th]]-AAMC_Raw_Data_for_FY22[[#This Row],[Median]])/25)*20) + AAMC_Raw_Data_for_FY22[[#This Row],[Median]]","v":297028.8},306468,{"$f":"(((AAMC_Raw_Data_for_FY22[[#This Row],[75th]]-AAMC_Raw_Data_for_FY22[[#This Row],[Median]])/25)*30) + AAMC_Raw_Data_for_FY22[[#This Row],[Median]]","v":315907.20000000001},{"$f":"(((AAMC_Raw_Data_for_FY22[[#This Row],[75th]]-AAMC_Raw_Data_for_FY22[[#This Row],[Median]])/25)*35) + AAMC_Raw_Data_for_FY22[[#This Row],[Median]]","v":325346.40000000002},{"$f":"(((AAMC_Raw_Data_for_FY22[[#This Row],[75th]]-AAMC_Raw_Data_for_FY22[[#This Row],[Median]])/25)*40) + AAMC_Raw_Data_for_FY22[[#This Row],[Median]]","v":334785.59999999998}]
[{"$f":"AAMC_Raw_Data_for_FY22[[#This Row],[Source]]&AAMC_Raw_Data_for_FY22[[#This Row],[Type]]&AAMC_Raw_Data_for_FY22[[#This Row],[School Subset]]&AAMC_Raw_Data_for_FY22[[#This Row],[Rank]]&AAMC_Raw_Data_for_FY22[[#This Row],[Degree]]&AAMC_Raw_Data_for_FY22[[#This Row],[Department / Specialty]]&\"L\"","v":"AAMCAcademicPublicChiefMDBiomedical InformaticsL"},"Biomedical Informatics",6,"AAMC","Academic","Public","Chief","MD","2021-2022",null,{"$f":"(((AAMC_Raw_Data_for_FY22[[#This Row],[Median]]-AAMC_Raw_Data_for_FY22[[#This Row],[25th]])/25)*5) + AAMC_Raw_Data_for_FY22[[#This Row],[25th]]","v":0},{"$f":"(((AAMC_Raw_Data_for_FY22[[#This Row],[Median]]-AAMC_Raw_Data_for_FY22[[#This Row],[25th]])/25)*10) + AAMC_Raw_Data_for_FY22[[#This Row],[25th]]","v":0},{"$f":"(((AAMC_Raw_Data_for_FY22[[#This Row],[Median]]-AAMC_Raw_Data_for_FY22[[#This Row],[25th]])/25)*15) + AAMC_Raw_Data_for_FY22[[#This Row],[25th]]","v":0},{"$f":"(((AAMC_Raw_Data_for_FY22[[#This Row],[Median]]-AAMC_Raw_Data_for_FY22[[#This Row],[25th]])/25)*20) + AAMC_Raw_Data_for_FY22[[#This Row],[25th]]","v":0},null,{"$f":"(((AAMC_Raw_Data_for_FY22[[#This Row],[75th]]-AAMC_Raw_Data_for_FY22[[#This Row],[Median]])/25)*5) + AAMC_Raw_Data_for_FY22[[#This Row],[Median]]","v":0},{"$f":"(((AAMC_Raw_Data_for_FY22[[#This Row],[75th]]-AAMC_Raw_Data_for_FY22[[#This Row],[Median]])/25)*10) + AAMC_Raw_Data_for_FY22[[#This Row],[Median]]","v":0},{"$f":"(((AAMC_Raw_Data_for_FY22[[#This Row],[75th]]-AAMC_Raw_Data_for_FY22[[#This Row],[Median]])/25)*15) + AAMC_Raw_Data_for_FY22[[#This Row],[Median]]","v":0},{"$f":"(((AAMC_Raw_Data_for_FY22[[#This Row],[75th]]-AAMC_Raw_Data_for_FY22[[#This Row],[Median]])/25)*20) + AAMC_Raw_Data_for_FY22[[#This Row],[Median]]","v":0},null,{"$f":"(((AAMC_Raw_Data_for_FY22[[#This Row],[75th]]-AAMC_Raw_Data_for_FY22[[#This Row],[Median]])/25)*30) + AAMC_Raw_Data_for_FY22[[#This Row],[Median]]","v":0},{"$f":"(((AAMC_Raw_Data_for_FY22[[#This Row],[75th]]-AAMC_Raw_Data_for_FY22[[#This Row],[Median]])/25)*35) + AAMC_Raw_Data_for_FY22[[#This Row],[Median]]","v":0},{"$f":"(((AAMC_Raw_Data_for_FY22[[#This Row],[75th]]-AAMC_Raw_Data_for_FY22[[#This Row],[Median]])/25)*40) + AAMC_Raw_Data_for_FY22[[#This Row],[Median]]","v":0}]
[{"$f":"AAMC_Raw_Data_for_FY22[[#This Row],[Source]]&AAMC_Raw_Data_for_FY22[[#This Row],[Type]]&AAMC_Raw_Data_for_FY22[[#This Row],[School Subset]]&AAMC_Raw_Data_for_FY22[[#This Row],[Rank]]&AAMC_Raw_Data_for_FY22[[#This Row],[Degree]]&AAMC_Raw_Data_for_FY22[[#This Row],[Department / Specialty]]&\"L\"","v":"AAMCAcademicPublicChairMDBiomedical InformaticsL"},"Biomedical Informatics",1,"AAMC","Academic","Public","Chair","MD","2021-2022",343639,{"$f":"(((AAMC_Raw_Data_for_FY22[[#This Row],[Median]]-AAMC_Raw_Data_for_FY22[[#This Row],[25th]])/25)*5) + AAMC_Raw_Data_for_FY22[[#This Row],[25th]]","v":348591.2},{"$f":"(((AAMC_Raw_Data_for_FY22[[#This Row],[Median]]-AAMC_Raw_Data_for_FY22[[#This Row],[25th]])/25)*10) + AAMC_Raw_Data_for_FY22[[#This Row],[25th]]","v":353543.4},{"$f":"(((AAMC_Raw_Data_for_FY22[[#This Row],[Median]]-AAMC_Raw_Data_for_FY22[[#This Row],[25th]])/25)*15) + AAMC_Raw_Data_for_FY22[[#This Row],[25th]]","v":358495.6},{"$f":"(((AAMC_Raw_Data_for_FY22[[#This Row],[Median]]-AAMC_Raw_Data_for_FY22[[#This Row],[25th]])/25)*20) + AAMC_Raw_Data_for_FY22[[#This Row],[25th]]","v":363447.8},368400,{"$f":"(((AAMC_Raw_Data_for_FY22[[#This Row],[75th]]-AAMC_Raw_Data_for_FY22[[#This Row],[Median]])/25)*5) + AAMC_Raw_Data_for_FY22[[#This Row],[Median]]","v":370986.6},{"$f":"(((AAMC_Raw_Data_for_FY22[[#This Row],[75th]]-AAMC_Raw_Data_for_FY22[[#This Row],[Median]])/25)*10) + AAMC_Raw_Data_for_FY22[[#This Row],[Median]]","v":373573.2},{"$f":"(((AAMC_Raw_Data_for_FY22[[#This Row],[75th]]-AAMC_Raw_Data_for_FY22[[#This Row],[Median]])/25)*15) + AAMC_Raw_Data_for_FY22[[#This Row],[Median]]","v":376159.8},{"$f":"(((AAMC_Raw_Data_for_FY22[[#This Row],[75th]]-AAMC_Raw_Data_for_FY22[[#This Row],[Median]])/25)*20) + AAMC_Raw_Data_for_FY22[[#This Row],[Median]]","v":378746.4},381333,{"$f":"(((AAMC_Raw_Data_for_FY22[[#This Row],[75th]]-AAMC_Raw_Data_for_FY22[[#This Row],[Median]])/25)*30) + AAMC_Raw_Data_for_FY22[[#This Row],[Median]]","v":383919.6},{"$f":"(((AAMC_Raw_Data_for_FY22[[#This Row],[75th]]-AAMC_Raw_Data_for_FY22[[#This Row],[Median]])/25)*35) + AAMC_Raw_Data_for_FY22[[#This Row],[Median]]","v":386506.2},{"$f":"(((AAMC_Raw_Data_for_FY22[[#This Row],[75th]]-AAMC_Raw_Data_for_FY22[[#This Row],[Median]])/25)*40) + AAMC_Raw_Data_for_FY22[[#This Row],[Median]]","v":389092.8}]
[{"$f":"AAMC_Raw_Data_for_FY22[[#This Row],[Source]]&AAMC_Raw_Data_for_FY22[[#This Row],[Type]]&AAMC_Raw_Data_for_FY22[[#This Row],[School Subset]]&AAMC_Raw_Data_for_FY22[[#This Row],[Rank]]&AAMC_Raw_Data_for_FY22[[#This Row],[Degree]]&AAMC_Raw_Data_for_FY22[[#This Row],[Department / Specialty]]&\"L\"","v":"AAMCAcademicPublicAssistantMDBiostatisticsL"},"Biostatistics",4,"AAMC","Academic","Public","Assistant","MD","2021-2022",null,{"$f":"(((AAMC_Raw_Data_for_FY22[[#This Row],[Median]]-AAMC_Raw_Data_for_FY22[[#This Row],[25th]])/25)*5) + AAMC_Raw_Data_for_FY22[[#This Row],[25th]]","v":0},{"$f":"(((AAMC_Raw_Data_for_FY22[[#This Row],[Median]]-AAMC_Raw_Data_for_FY22[[#This Row],[25th]])/25)*10) + AAMC_Raw_Data_for_FY22[[#This Row],[25th]]","v":0},{"$f":"(((AAMC_Raw_Data_for_FY22[[#This Row],[Median]]-AAMC_Raw_Data_for_FY22[[#This Row],[25th]])/25)*15) + AAMC_Raw_Data_for_FY22[[#This Row],[25th]]","v":0},{"$f":"(((AAMC_Raw_Data_for_FY22[[#This Row],[Median]]-AAMC_Raw_Data_for_FY22[[#This Row],[25th]])/25)*20) + AAMC_Raw_Data_for_FY22[[#This Row],[25th]]","v":0},null,{"$f":"(((AAMC_Raw_Data_for_FY22[[#This Row],[75th]]-AAMC_Raw_Data_for_FY22[[#This Row],[Median]])/25)*5) + AAMC_Raw_Data_for_FY22[[#This Row],[Median]]","v":0},{"$f":"(((AAMC_Raw_Data_for_FY22[[#This Row],[75th]]-AAMC_Raw_Data_for_FY22[[#This Row],[Median]])/25)*10) + AAMC_Raw_Data_for_FY22[[#This Row],[Median]]","v":0},{"$f":"(((AAMC_Raw_Data_for_FY22[[#This Row],[75th]]-AAMC_Raw_Data_for_FY22[[#This Row],[Median]])/25)*15) + AAMC_Raw_Data_for_FY22[[#This Row],[Median]]","v":0},{"$f":"(((AAMC_Raw_Data_for_FY22[[#This Row],[75th]]-AAMC_Raw_Data_for_FY22[[#This Row],[Median]])/25)*20) + AAMC_Raw_Data_for_FY22[[#This Row],[Median]]","v":0},null,{"$f":"(((AAMC_Raw_Data_for_FY22[[#This Row],[75th]]-AAMC_Raw_Data_for_FY22[[#This Row],[Median]])/25)*30) + AAMC_Raw_Data_for_FY22[[#This Row],[Median]]","v":0},{"$f":"(((AAMC_Raw_Data_for_FY22[[#This Row],[75th]]-AAMC_Raw_Data_for_FY22[[#This Row],[Median]])/25)*35) + AAMC_Raw_Data_for_FY22[[#This Row],[Median]]","v":0},{"$f":"(((AAMC_Raw_Data_for_FY22[[#This Row],[75th]]-AAMC_Raw_Data_for_FY22[[#This Row],[Median]])/25)*40) + AAMC_Raw_Data_for_FY22[[#This Row],[Median]]","v":0}]
[{"$f":"AAMC_Raw_Data_for_FY22[[#This Row],[Source]]&AAMC_Raw_Data_for_FY22[[#This Row],[Type]]&AAMC_Raw_Data_for_FY22[[#This Row],[School Subset]]&AAMC_Raw_Data_for_FY22[[#This Row],[Rank]]&AAMC_Raw_Data_for_FY22[[#This Row],[Degree]]&AAMC_Raw_Data_for_FY22[[#This Row],[Department / Specialty]]&\"L\"","v":"AAMCAcademicPublicAssociateMDBiostatisticsL"},"Biostatistics",3,"AAMC","Academic","Public","Associate","MD","2021-2022",null,{"$f":"(((AAMC_Raw_Data_for_FY22[[#This Row],[Median]]-AAMC_Raw_Data_for_FY22[[#This Row],[25th]])/25)*5) + AAMC_Raw_Data_for_FY22[[#This Row],[25th]]","v":0},{"$f":"(((AAMC_Raw_Data_for_FY22[[#This Row],[Median]]-AAMC_Raw_Data_for_FY22[[#This Row],[25th]])/25)*10) + AAMC_Raw_Data_for_FY22[[#This Row],[25th]]","v":0},{"$f":"(((AAMC_Raw_Data_for_FY22[[#This Row],[Median]]-AAMC_Raw_Data_for_FY22[[#This Row],[25th]])/25)*15) + AAMC_Raw_Data_for_FY22[[#This Row],[25th]]","v":0},{"$f":"(((AAMC_Raw_Data_for_FY22[[#This Row],[Median]]-AAMC_Raw_Data_for_FY22[[#This Row],[25th]])/25)*20) + AAMC_Raw_Data_for_FY22[[#This Row],[25th]]","v":0},null,{"$f":"(((AAMC_Raw_Data_for_FY22[[#This Row],[75th]]-AAMC_Raw_Data_for_FY22[[#This Row],[Median]])/25)*5) + AAMC_Raw_Data_for_FY22[[#This Row],[Median]]","v":0},{"$f":"(((AAMC_Raw_Data_for_FY22[[#This Row],[75th]]-AAMC_Raw_Data_for_FY22[[#This Row],[Median]])/25)*10) + AAMC_Raw_Data_for_FY22[[#This Row],[Median]]","v":0},{"$f":"(((AAMC_Raw_Data_for_FY22[[#This Row],[75th]]-AAMC_Raw_Data_for_FY22[[#This Row],[Median]])/25)*15) + AAMC_Raw_Data_for_FY22[[#This Row],[Median]]","v":0},{"$f":"(((AAMC_Raw_Data_for_FY22[[#This Row],[75th]]-AAMC_Raw_Data_for_FY22[[#This Row],[Median]])/25)*20) + AAMC_Raw_Data_for_FY22[[#This Row],[Median]]","v":0},null,{"$f":"(((AAMC_Raw_Data_for_FY22[[#This Row],[75th]]-AAMC_Raw_Data_for_FY22[[#This Row],[Median]])/25)*30) + AAMC_Raw_Data_for_FY22[[#This Row],[Median]]","v":0},{"$f":"(((AAMC_Raw_Data_for_FY22[[#This Row],[75th]]-AAMC_Raw_Data_for_FY22[[#This Row],[Median]])/25)*35) + AAMC_Raw_Data_for_FY22[[#This Row],[Median]]","v":0},{"$f":"(((AAMC_Raw_Data_for_FY22[[#This Row],[75th]]-AAMC_Raw_Data_for_FY22[[#This Row],[Median]])/25)*40) + AAMC_Raw_Data_for_FY22[[#This Row],[Median]]","v":0}]
[{"$f":"AAMC_Raw_Data_for_FY22[[#This Row],[Source]]&AAMC_Raw_Data_for_FY22[[#This Row],[Type]]&AAMC_Raw_Data_for_FY22[[#This Row],[School Subset]]&AAMC_Raw_Data_for_FY22[[#This Row],[Rank]]&AAMC_Raw_Data_for_FY22[[#This Row],[Degree]]&AAMC_Raw_Data_for_FY22[[#This Row],[Department / Specialty]]&\"L\"","v":"AAMCAcademicPublicProfessorMDBiostatisticsL"},"Biostatistics",2,"AAMC","Academic","Public","Professor","MD","2021-2022",null,{"$f":"(((AAMC_Raw_Data_for_FY22[[#This Row],[Median]]-AAMC_Raw_Data_for_FY22[[#This Row],[25th]])/25)*5) + AAMC_Raw_Data_for_FY22[[#This Row],[25th]]","v":0},{"$f":"(((AAMC_Raw_Data_for_FY22[[#This Row],[Median]]-AAMC_Raw_Data_for_FY22[[#This Row],[25th]])/25)*10) + AAMC_Raw_Data_for_FY22[[#This Row],[25th]]","v":0},{"$f":"(((AAMC_Raw_Data_for_FY22[[#This Row],[Median]]-AAMC_Raw_Data_for_FY22[[#This Row],[25th]])/25)*15) + AAMC_Raw_Data_for_FY22[[#This Row],[25th]]","v":0},{"$f":"(((AAMC_Raw_Data_for_FY22[[#This Row],[Median]]-AAMC_Raw_Data_for_FY22[[#This Row],[25th]])/25)*20) + AAMC_Raw_Data_for_FY22[[#This Row],[25th]]","v":0},null,{"$f":"(((AAMC_Raw_Data_for_FY22[[#This Row],[75th]]-AAMC_Raw_Data_for_FY22[[#This Row],[Median]])/25)*5) + AAMC_Raw_Data_for_FY22[[#This Row],[Median]]","v":0},{"$f":"(((AAMC_Raw_Data_for_FY22[[#This Row],[75th]]-AAMC_Raw_Data_for_FY22[[#This Row],[Median]])/25)*10) + AAMC_Raw_Data_for_FY22[[#This Row],[Median]]","v":0},{"$f":"(((AAMC_Raw_Data_for_FY22[[#This Row],[75th]]-AAMC_Raw_Data_for_FY22[[#This Row],[Median]])/25)*15) + AAMC_Raw_Data_for_FY22[[#This Row],[Median]]","v":0},{"$f":"(((AAMC_Raw_Data_for_FY22[[#This Row],[75th]]-AAMC_Raw_Data_for_FY22[[#This Row],[Median]])/25)*20) + AAMC_Raw_Data_for_FY22[[#This Row],[Median]]","v":0},null,{"$f":"(((AAMC_Raw_Data_for_FY22[[#This Row],[75th]]-AAMC_Raw_Data_for_FY22[[#This Row],[Median]])/25)*30) + AAMC_Raw_Data_for_FY22[[#This Row],[Median]]","v":0},{"$f":"(((AAMC_Raw_Data_for_FY22[[#This Row],[75th]]-AAMC_Raw_Data_for_FY22[[#This Row],[Median]])/25)*35) + AAMC_Raw_Data_for_FY22[[#This Row],[Median]]","v":0},{"$f":"(((AAMC_Raw_Data_for_FY22[[#This Row],[75th]]-AAMC_Raw_Data_for_FY22[[#This Row],[Median]])/25)*40) + AAMC_Raw_Data_for_FY22[[#This Row],[Median]]","v":0}]
[{"$f":"AAMC_Raw_Data_for_FY22[[#This Row],[Source]]&AAMC_Raw_Data_for_FY22[[#This Row],[Type]]&AAMC_Raw_Data_for_FY22[[#This Row],[School Subset]]&AAMC_Raw_Data_for_FY22[[#This Row],[Rank]]&AAMC_Raw_Data_for_FY22[[#This Row],[Degree]]&AAMC_Raw_Data_for_FY22[[#This Row],[Department / Specialty]]&\"L\"","v":"AAMCAcademicPublicChiefMDBiostatisticsL"},"Biostatistics",6,"AAMC","Academic","Public","Chief","MD","2021-2022",null,{"$f":"(((AAMC_Raw_Data_for_FY22[[#This Row],[Median]]-AAMC_Raw_Data_for_FY22[[#This Row],[25th]])/25)*5) + AAMC_Raw_Data_for_FY22[[#This Row],[25th]]","v":0},{"$f":"(((AAMC_Raw_Data_for_FY22[[#This Row],[Median]]-AAMC_Raw_Data_for_FY22[[#This Row],[25th]])/25)*10) + AAMC_Raw_Data_for_FY22[[#This Row],[25th]]","v":0},{"$f":"(((AAMC_Raw_Data_for_FY22[[#This Row],[Median]]-AAMC_Raw_Data_for_FY22[[#This Row],[25th]])/25)*15) + AAMC_Raw_Data_for_FY22[[#This Row],[25th]]","v":0},{"$f":"(((AAMC_Raw_Data_for_FY22[[#This Row],[Median]]-AAMC_Raw_Data_for_FY22[[#This Row],[25th]])/25)*20) + AAMC_Raw_Data_for_FY22[[#This Row],[25th]]","v":0},null,{"$f":"(((AAMC_Raw_Data_for_FY22[[#This Row],[75th]]-AAMC_Raw_Data_for_FY22[[#This Row],[Median]])/25)*5) + AAMC_Raw_Data_for_FY22[[#This Row],[Median]]","v":0},{"$f":"(((AAMC_Raw_Data_for_FY22[[#This Row],[75th]]-AAMC_Raw_Data_for_FY22[[#This Row],[Median]])/25)*10) + AAMC_Raw_Data_for_FY22[[#This Row],[Median]]","v":0},{"$f":"(((AAMC_Raw_Data_for_FY22[[#This Row],[75th]]-AAMC_Raw_Data_for_FY22[[#This Row],[Median]])/25)*15) + AAMC_Raw_Data_for_FY22[[#This Row],[Median]]","v":0},{"$f":"(((AAMC_Raw_Data_for_FY22[[#This Row],[75th]]-AAMC_Raw_Data_for_FY22[[#This Row],[Median]])/25)*20) + AAMC_Raw_Data_for_FY22[[#This Row],[Median]]","v":0},null,{"$f":"(((AAMC_Raw_Data_for_FY22[[#This Row],[75th]]-AAMC_Raw_Data_for_FY22[[#This Row],[Median]])/25)*30) + AAMC_Raw_Data_for_FY22[[#This Row],[Median]]","v":0},{"$f":"(((AAMC_Raw_Data_for_FY22[[#This Row],[75th]]-AAMC_Raw_Data_for_FY22[[#This Row],[Median]])/25)*35) + AAMC_Raw_Data_for_FY22[[#This Row],[Median]]","v":0},{"$f":"(((AAMC_Raw_Data_for_FY22[[#This Row],[75th]]-AAMC_Raw_Data_for_FY22[[#This Row],[Median]])/25)*40) + AAMC_Raw_Data_for_FY22[[#This Row],[Median]]","v":0}]
[{"$f":"AAMC_Raw_Data_for_FY22[[#This Row],[Source]]&AAMC_Raw_Data_for_FY22[[#This Row],[Type]]&AAMC_Raw_Data_for_FY22[[#This Row],[School Subset]]&AAMC_Raw_Data_for_FY22[[#This Row],[Rank]]&AAMC_Raw_Data_for_FY22[[#This Row],[Degree]]&AAMC_Raw_Data_for_FY22[[#This Row],[Department / Specialty]]&\"L\"","v":"AAMCAcademicPublicChairMDBiostatisticsL"},"Biostatistics",1,"AAMC","Academic","Public","Chair","MD","2021-2022",null,{"$f":"(((AAMC_Raw_Data_for_FY22[[#This Row],[Median]]-AAMC_Raw_Data_for_FY22[[#This Row],[25th]])/25)*5) + AAMC_Raw_Data_for_FY22[[#This Row],[25th]]","v":0},{"$f":"(((AAMC_Raw_Data_for_FY22[[#This Row],[Median]]-AAMC_Raw_Data_for_FY22[[#This Row],[25th]])/25)*10) + AAMC_Raw_Data_for_FY22[[#This Row],[25th]]","v":0},{"$f":"(((AAMC_Raw_Data_for_FY22[[#This Row],[Median]]-AAMC_Raw_Data_for_FY22[[#This Row],[25th]])/25)*15) + AAMC_Raw_Data_for_FY22[[#This Row],[25th]]","v":0},{"$f":"(((AAMC_Raw_Data_for_FY22[[#This Row],[Median]]-AAMC_Raw_Data_for_FY22[[#This Row],[25th]])/25)*20) + AAMC_Raw_Data_for_FY22[[#This Row],[25th]]","v":0},null,{"$f":"(((AAMC_Raw_Data_for_FY22[[#This Row],[75th]]-AAMC_Raw_Data_for_FY22[[#This Row],[Median]])/25)*5) + AAMC_Raw_Data_for_FY22[[#This Row],[Median]]","v":0},{"$f":"(((AAMC_Raw_Data_for_FY22[[#This Row],[75th]]-AAMC_Raw_Data_for_FY22[[#This Row],[Median]])/25)*10) + AAMC_Raw_Data_for_FY22[[#This Row],[Median]]","v":0},{"$f":"(((AAMC_Raw_Data_for_FY22[[#This Row],[75th]]-AAMC_Raw_Data_for_FY22[[#This Row],[Median]])/25)*15) + AAMC_Raw_Data_for_FY22[[#This Row],[Median]]","v":0},{"$f":"(((AAMC_Raw_Data_for_FY22[[#This Row],[75th]]-AAMC_Raw_Data_for_FY22[[#This Row],[Median]])/25)*20) + AAMC_Raw_Data_for_FY22[[#This Row],[Median]]","v":0},null,{"$f":"(((AAMC_Raw_Data_for_FY22[[#This Row],[75th]]-AAMC_Raw_Data_for_FY22[[#This Row],[Median]])/25)*30) + AAMC_Raw_Data_for_FY22[[#This Row],[Median]]","v":0},{"$f":"(((AAMC_Raw_Data_for_FY22[[#This Row],[75th]]-AAMC_Raw_Data_for_FY22[[#This Row],[Median]])/25)*35) + AAMC_Raw_Data_for_FY22[[#This Row],[Median]]","v":0},{"$f":"(((AAMC_Raw_Data_for_FY22[[#This Row],[75th]]-AAMC_Raw_Data_for_FY22[[#This Row],[Median]])/25)*40) + AAMC_Raw_Data_for_FY22[[#This Row],[Median]]","v":0}]
[{"$f":"AAMC_Raw_Data_for_FY22[[#This Row],[Source]]&AAMC_Raw_Data_for_FY22[[#This Row],[Type]]&AAMC_Raw_Data_for_FY22[[#This Row],[School Subset]]&AAMC_Raw_Data_for_FY22[[#This Row],[Rank]]&AAMC_Raw_Data_for_FY22[[#This Row],[Degree]]&AAMC_Raw_Data_for_FY22[[#This Row],[Department / Specialty]]&\"L\"","v":"AAMCAcademicPublicInstructorMDGeneticsL"},"Genetics",5,"AAMC","Academic","Public","Instructor","MD","2021-2022",null,{"$f":"(((AAMC_Raw_Data_for_FY22[[#This Row],[Median]]-AAMC_Raw_Data_for_FY22[[#This Row],[25th]])/25)*5) + AAMC_Raw_Data_for_FY22[[#This Row],[25th]]","v":0},{"$f":"(((AAMC_Raw_Data_for_FY22[[#This Row],[Median]]-AAMC_Raw_Data_for_FY22[[#This Row],[25th]])/25)*10) + AAMC_Raw_Data_for_FY22[[#This Row],[25th]]","v":0},{"$f":"(((AAMC_Raw_Data_for_FY22[[#This Row],[Median]]-AAMC_Raw_Data_for_FY22[[#This Row],[25th]])/25)*15) + AAMC_Raw_Data_for_FY22[[#This Row],[25th]]","v":0},{"$f":"(((AAMC_Raw_Data_for_FY22[[#This Row],[Median]]-AAMC_Raw_Data_for_FY22[[#This Row],[25th]])/25)*20) + AAMC_Raw_Data_for_FY22[[#This Row],[25th]]","v":0},null,{"$f":"(((AAMC_Raw_Data_for_FY22[[#This Row],[75th]]-AAMC_Raw_Data_for_FY22[[#This Row],[Median]])/25)*5) + AAMC_Raw_Data_for_FY22[[#This Row],[Median]]","v":0},{"$f":"(((AAMC_Raw_Data_for_FY22[[#This Row],[75th]]-AAMC_Raw_Data_for_FY22[[#This Row],[Median]])/25)*10) + AAMC_Raw_Data_for_FY22[[#This Row],[Median]]","v":0},{"$f":"(((AAMC_Raw_Data_for_FY22[[#This Row],[75th]]-AAMC_Raw_Data_for_FY22[[#This Row],[Median]])/25)*15) + AAMC_Raw_Data_for_FY22[[#This Row],[Median]]","v":0},{"$f":"(((AAMC_Raw_Data_for_FY22[[#This Row],[75th]]-AAMC_Raw_Data_for_FY22[[#This Row],[Median]])/25)*20) + AAMC_Raw_Data_for_FY22[[#This Row],[Median]]","v":0},null,{"$f":"(((AAMC_Raw_Data_for_FY22[[#This Row],[75th]]-AAMC_Raw_Data_for_FY22[[#This Row],[Median]])/25)*30) + AAMC_Raw_Data_for_FY22[[#This Row],[Median]]","v":0},{"$f":"(((AAMC_Raw_Data_for_FY22[[#This Row],[75th]]-AAMC_Raw_Data_for_FY22[[#This Row],[Median]])/25)*35) + AAMC_Raw_Data_for_FY22[[#This Row],[Median]]","v":0},{"$f":"(((AAMC_Raw_Data_for_FY22[[#This Row],[75th]]-AAMC_Raw_Data_for_FY22[[#This Row],[Median]])/25)*40) + AAMC_Raw_Data_for_FY22[[#This Row],[Median]]","v":0}]
[{"$f":"AAMC_Raw_Data_for_FY22[[#This Row],[Source]]&AAMC_Raw_Data_for_FY22[[#This Row],[Type]]&AAMC_Raw_Data_for_FY22[[#This Row],[School Subset]]&AAMC_Raw_Data_for_FY22[[#This Row],[Rank]]&AAMC_Raw_Data_for_FY22[[#This Row],[Degree]]&AAMC_Raw_Data_for_FY22[[#This Row],[Department / Specialty]]&\"L\"","v":"AAMCAcademicPublicAssistantMDGeneticsL"},"Genetics",4,"AAMC","Academic","Public","Assistant","MD","2021-2022",122250,{"$f":"(((AAMC_Raw_Data_for_FY22[[#This Row],[Median]]-AAMC_Raw_Data_for_FY22[[#This Row],[25th]])/25)*5) + AAMC_Raw_Data_for_FY22[[#This Row],[25th]]","v":132773.20000000001},{"$f":"(((AAMC_Raw_Data_for_FY22[[#This Row],[Median]]-AAMC_Raw_Data_for_FY22[[#This Row],[25th]])/25)*10) + AAMC_Raw_Data_for_FY22[[#This Row],[25th]]","v":143296.4},{"$f":"(((AAMC_Raw_Data_for_FY22[[#This Row],[Median]]-AAMC_Raw_Data_for_FY22[[#This Row],[25th]])/25)*15) + AAMC_Raw_Data_for_FY22[[#This Row],[25th]]","v":153819.6},{"$f":"(((AAMC_Raw_Data_for_FY22[[#This Row],[Median]]-AAMC_Raw_Data_for_FY22[[#This Row],[25th]])/25)*20) + AAMC_Raw_Data_for_FY22[[#This Row],[25th]]","v":164342.79999999999},174866,{"$f":"(((AAMC_Raw_Data_for_FY22[[#This Row],[75th]]-AAMC_Raw_Data_for_FY22[[#This Row],[Median]])/25)*5) + AAMC_Raw_Data_for_FY22[[#This Row],[Median]]","v":177602.4},{"$f":"(((AAMC_Raw_Data_for_FY22[[#This Row],[75th]]-AAMC_Raw_Data_for_FY22[[#This Row],[Median]])/25)*10) + AAMC_Raw_Data_for_FY22[[#This Row],[Median]]","v":180338.8},{"$f":"(((AAMC_Raw_Data_for_FY22[[#This Row],[75th]]-AAMC_Raw_Data_for_FY22[[#This Row],[Median]])/25)*15) + AAMC_Raw_Data_for_FY22[[#This Row],[Median]]","v":183075.20000000001},{"$f":"(((AAMC_Raw_Data_for_FY22[[#This Row],[75th]]-AAMC_Raw_Data_for_FY22[[#This Row],[Median]])/25)*20) + AAMC_Raw_Data_for_FY22[[#This Row],[Median]]","v":185811.6},188548,{"$f":"(((AAMC_Raw_Data_for_FY22[[#This Row],[75th]]-AAMC_Raw_Data_for_FY22[[#This Row],[Median]])/25)*30) + AAMC_Raw_Data_for_FY22[[#This Row],[Median]]","v":191284.4},{"$f":"(((AAMC_Raw_Data_for_FY22[[#This Row],[75th]]-AAMC_Raw_Data_for_FY22[[#This Row],[Median]])/25)*35) + AAMC_Raw_Data_for_FY22[[#This Row],[Median]]","v":194020.8},{"$f":"(((AAMC_Raw_Data_for_FY22[[#This Row],[75th]]-AAMC_Raw_Data_for_FY22[[#This Row],[Median]])/25)*40) + AAMC_Raw_Data_for_FY22[[#This Row],[Median]]","v":196757.2}]
[{"$f":"AAMC_Raw_Data_for_FY22[[#This Row],[Source]]&AAMC_Raw_Data_for_FY22[[#This Row],[Type]]&AAMC_Raw_Data_for_FY22[[#This Row],[School Subset]]&AAMC_Raw_Data_for_FY22[[#This Row],[Rank]]&AAMC_Raw_Data_for_FY22[[#This Row],[Degree]]&AAMC_Raw_Data_for_FY22[[#This Row],[Department / Specialty]]&\"L\"","v":"AAMCAcademicPublicAssociateMDGeneticsL"},"Genetics",3,"AAMC","Academic","Public","Associate","MD","2021-2022",146093,{"$f":"(((AAMC_Raw_Data_for_FY22[[#This Row],[Median]]-AAMC_Raw_Data_for_FY22[[#This Row],[25th]])/25)*5) + AAMC_Raw_Data_for_FY22[[#This Row],[25th]]","v":154098.20000000001},{"$f":"(((AAMC_Raw_Data_for_FY22[[#This Row],[Median]]-AAMC_Raw_Data_for_FY22[[#This Row],[25th]])/25)*10) + AAMC_Raw_Data_for_FY22[[#This Row],[25th]]","v":162103.4},{"$f":"(((AAMC_Raw_Data_for_FY22[[#This Row],[Median]]-AAMC_Raw_Data_for_FY22[[#This Row],[25th]])/25)*15) + AAMC_Raw_Data_for_FY22[[#This Row],[25th]]","v":170108.6},{"$f":"(((AAMC_Raw_Data_for_FY22[[#This Row],[Median]]-AAMC_Raw_Data_for_FY22[[#This Row],[25th]])/25)*20) + AAMC_Raw_Data_for_FY22[[#This Row],[25th]]","v":178113.8},186119,{"$f":"(((AAMC_Raw_Data_for_FY22[[#This Row],[75th]]-AAMC_Raw_Data_for_FY22[[#This Row],[Median]])/25)*5) + AAMC_Raw_Data_for_FY22[[#This Row],[Median]]","v":189524.4},{"$f":"(((AAMC_Raw_Data_for_FY22[[#This Row],[75th]]-AAMC_Raw_Data_for_FY22[[#This Row],[Median]])/25)*10) + AAMC_Raw_Data_for_FY22[[#This Row],[Median]]","v":192929.8},{"$f":"(((AAMC_Raw_Data_for_FY22[[#This Row],[75th]]-AAMC_Raw_Data_for_FY22[[#This Row],[Median]])/25)*15) + AAMC_Raw_Data_for_FY22[[#This Row],[Median]]","v":196335.2},{"$f":"(((AAMC_Raw_Data_for_FY22[[#This Row],[75th]]-AAMC_Raw_Data_for_FY22[[#This Row],[Median]])/25)*20) + AAMC_Raw_Data_for_FY22[[#This Row],[Median]]","v":199740.6},203146,{"$f":"(((AAMC_Raw_Data_for_FY22[[#This Row],[75th]]-AAMC_Raw_Data_for_FY22[[#This Row],[Median]])/25)*30) + AAMC_Raw_Data_for_FY22[[#This Row],[Median]]","v":206551.4},{"$f":"(((AAMC_Raw_Data_for_FY22[[#This Row],[75th]]-AAMC_Raw_Data_for_FY22[[#This Row],[Median]])/25)*35) + AAMC_Raw_Data_for_FY22[[#This Row],[Median]]","v":209956.8},{"$f":"(((AAMC_Raw_Data_for_FY22[[#This Row],[75th]]-AAMC_Raw_Data_for_FY22[[#This Row],[Median]])/25)*40) + AAMC_Raw_Data_for_FY22[[#This Row],[Median]]","v":213362.2}]
[{"$f":"AAMC_Raw_Data_for_FY22[[#This Row],[Source]]&AAMC_Raw_Data_for_FY22[[#This Row],[Type]]&AAMC_Raw_Data_for_FY22[[#This Row],[School Subset]]&AAMC_Raw_Data_for_FY22[[#This Row],[Rank]]&AAMC_Raw_Data_for_FY22[[#This Row],[Degree]]&AAMC_Raw_Data_for_FY22[[#This Row],[Department / Specialty]]&\"L\"","v":"AAMCAcademicPublicProfessorMDGeneticsL"},"Genetics",2,"AAMC","Academic","Public","Professor","MD","2021-2022",210630,{"$f":"(((AAMC_Raw_Data_for_FY22[[#This Row],[Median]]-AAMC_Raw_Data_for_FY22[[#This Row],[25th]])/25)*5) + AAMC_Raw_Data_for_FY22[[#This Row],[25th]]","v":218067.8},{"$f":"(((AAMC_Raw_Data_for_FY22[[#This Row],[Median]]-AAMC_Raw_Data_for_FY22[[#This Row],[25th]])/25)*10) + AAMC_Raw_Data_for_FY22[[#This Row],[25th]]","v":225505.6},{"$f":"(((AAMC_Raw_Data_for_FY22[[#This Row],[Median]]-AAMC_Raw_Data_for_FY22[[#This Row],[25th]])/25)*15) + AAMC_Raw_Data_for_FY22[[#This Row],[25th]]","v":232943.4},{"$f":"(((AAMC_Raw_Data_for_FY22[[#This Row],[Median]]-AAMC_Raw_Data_for_FY22[[#This Row],[25th]])/25)*20) + AAMC_Raw_Data_for_FY22[[#This Row],[25th]]","v":240381.2},247819,{"$f":"(((AAMC_Raw_Data_for_FY22[[#This Row],[75th]]-AAMC_Raw_Data_for_FY22[[#This Row],[Median]])/25)*5) + AAMC_Raw_Data_for_FY22[[#This Row],[Median]]","v":260102.39999999999},{"$f":"(((AAMC_Raw_Data_for_FY22[[#This Row],[75th]]-AAMC_Raw_Data_for_FY22[[#This Row],[Median]])/25)*10) + AAMC_Raw_Data_for_FY22[[#This Row],[Median]]","v":272385.8},{"$f":"(((AAMC_Raw_Data_for_FY22[[#This Row],[75th]]-AAMC_Raw_Data_for_FY22[[#This Row],[Median]])/25)*15) + AAMC_Raw_Data_for_FY22[[#This Row],[Median]]","v":284669.2},{"$f":"(((AAMC_Raw_Data_for_FY22[[#This Row],[75th]]-AAMC_Raw_Data_for_FY22[[#This Row],[Median]])/25)*20) + AAMC_Raw_Data_for_FY22[[#This Row],[Median]]","v":296952.59999999998},309236,{"$f":"(((AAMC_Raw_Data_for_FY22[[#This Row],[75th]]-AAMC_Raw_Data_for_FY22[[#This Row],[Median]])/25)*30) + AAMC_Raw_Data_for_FY22[[#This Row],[Median]]","v":321519.40000000002},{"$f":"(((AAMC_Raw_Data_for_FY22[[#This Row],[75th]]-AAMC_Raw_Data_for_FY22[[#This Row],[Median]])/25)*35) + AAMC_Raw_Data_for_FY22[[#This Row],[Median]]","v":333802.8},{"$f":"(((AAMC_Raw_Data_for_FY22[[#This Row],[75th]]-AAMC_Raw_Data_for_FY22[[#This Row],[Median]])/25)*40) + AAMC_Raw_Data_for_FY22[[#This Row],[Median]]","v":346086.2}]
[{"$f":"AAMC_Raw_Data_for_FY22[[#This Row],[Source]]&AAMC_Raw_Data_for_FY22[[#This Row],[Type]]&AAMC_Raw_Data_for_FY22[[#This Row],[School Subset]]&AAMC_Raw_Data_for_FY22[[#This Row],[Rank]]&AAMC_Raw_Data_for_FY22[[#This Row],[Degree]]&AAMC_Raw_Data_for_FY22[[#This Row],[Department / Specialty]]&\"L\"","v":"AAMCAcademicPublicChiefMDGeneticsL"},"Genetics",6,"AAMC","Academic","Public","Chief","MD","2021-2022",null,{"$f":"(((AAMC_Raw_Data_for_FY22[[#This Row],[Median]]-AAMC_Raw_Data_for_FY22[[#This Row],[25th]])/25)*5) + AAMC_Raw_Data_for_FY22[[#This Row],[25th]]","v":0},{"$f":"(((AAMC_Raw_Data_for_FY22[[#This Row],[Median]]-AAMC_Raw_Data_for_FY22[[#This Row],[25th]])/25)*10) + AAMC_Raw_Data_for_FY22[[#This Row],[25th]]","v":0},{"$f":"(((AAMC_Raw_Data_for_FY22[[#This Row],[Median]]-AAMC_Raw_Data_for_FY22[[#This Row],[25th]])/25)*15) + AAMC_Raw_Data_for_FY22[[#This Row],[25th]]","v":0},{"$f":"(((AAMC_Raw_Data_for_FY22[[#This Row],[Median]]-AAMC_Raw_Data_for_FY22[[#This Row],[25th]])/25)*20) + AAMC_Raw_Data_for_FY22[[#This Row],[25th]]","v":0},null,{"$f":"(((AAMC_Raw_Data_for_FY22[[#This Row],[75th]]-AAMC_Raw_Data_for_FY22[[#This Row],[Median]])/25)*5) + AAMC_Raw_Data_for_FY22[[#This Row],[Median]]","v":0},{"$f":"(((AAMC_Raw_Data_for_FY22[[#This Row],[75th]]-AAMC_Raw_Data_for_FY22[[#This Row],[Median]])/25)*10) + AAMC_Raw_Data_for_FY22[[#This Row],[Median]]","v":0},{"$f":"(((AAMC_Raw_Data_for_FY22[[#This Row],[75th]]-AAMC_Raw_Data_for_FY22[[#This Row],[Median]])/25)*15) + AAMC_Raw_Data_for_FY22[[#This Row],[Median]]","v":0},{"$f":"(((AAMC_Raw_Data_for_FY22[[#This Row],[75th]]-AAMC_Raw_Data_for_FY22[[#This Row],[Median]])/25)*20) + AAMC_Raw_Data_for_FY22[[#This Row],[Median]]","v":0},null,{"$f":"(((AAMC_Raw_Data_for_FY22[[#This Row],[75th]]-AAMC_Raw_Data_for_FY22[[#This Row],[Median]])/25)*30) + AAMC_Raw_Data_for_FY22[[#This Row],[Median]]","v":0},{"$f":"(((AAMC_Raw_Data_for_FY22[[#This Row],[75th]]-AAMC_Raw_Data_for_FY22[[#This Row],[Median]])/25)*35) + AAMC_Raw_Data_for_FY22[[#This Row],[Median]]","v":0},{"$f":"(((AAMC_Raw_Data_for_FY22[[#This Row],[75th]]-AAMC_Raw_Data_for_FY22[[#This Row],[Median]])/25)*40) + AAMC_Raw_Data_for_FY22[[#This Row],[Median]]","v":0}]
[{"$f":"AAMC_Raw_Data_for_FY22[[#This Row],[Source]]&AAMC_Raw_Data_for_FY22[[#This Row],[Type]]&AAMC_Raw_Data_for_FY22[[#This Row],[School Subset]]&AAMC_Raw_Data_for_FY22[[#This Row],[Rank]]&AAMC_Raw_Data_for_FY22[[#This Row],[Degree]]&AAMC_Raw_Data_for_FY22[[#This Row],[Department / Specialty]]&\"L\"","v":"AAMCAcademicPublicChairMDGeneticsL"},"Genetics",1,"AAMC","Academic","Public","Chair","MD","2021-2022",null,{"$f":"(((AAMC_Raw_Data_for_FY22[[#This Row],[Median]]-AAMC_Raw_Data_for_FY22[[#This Row],[25th]])/25)*5) + AAMC_Raw_Data_for_FY22[[#This Row],[25th]]","v":0},{"$f":"(((AAMC_Raw_Data_for_FY22[[#This Row],[Median]]-AAMC_Raw_Data_for_FY22[[#This Row],[25th]])/25)*10) + AAMC_Raw_Data_for_FY22[[#This Row],[25th]]","v":0},{"$f":"(((AAMC_Raw_Data_for_FY22[[#This Row],[Median]]-AAMC_Raw_Data_for_FY22[[#This Row],[25th]])/25)*15) + AAMC_Raw_Data_for_FY22[[#This Row],[25th]]","v":0},{"$f":"(((AAMC_Raw_Data_for_FY22[[#This Row],[Median]]-AAMC_Raw_Data_for_FY22[[#This Row],[25th]])/25)*20) + AAMC_Raw_Data_for_FY22[[#This Row],[25th]]","v":0},null,{"$f":"(((AAMC_Raw_Data_for_FY22[[#This Row],[75th]]-AAMC_Raw_Data_for_FY22[[#This Row],[Median]])/25)*5) + AAMC_Raw_Data_for_FY22[[#This Row],[Median]]","v":0},{"$f":"(((AAMC_Raw_Data_for_FY22[[#This Row],[75th]]-AAMC_Raw_Data_for_FY22[[#This Row],[Median]])/25)*10) + AAMC_Raw_Data_for_FY22[[#This Row],[Median]]","v":0},{"$f":"(((AAMC_Raw_Data_for_FY22[[#This Row],[75th]]-AAMC_Raw_Data_for_FY22[[#This Row],[Median]])/25)*15) + AAMC_Raw_Data_for_FY22[[#This Row],[Median]]","v":0},{"$f":"(((AAMC_Raw_Data_for_FY22[[#This Row],[75th]]-AAMC_Raw_Data_for_FY22[[#This Row],[Median]])/25)*20) + AAMC_Raw_Data_for_FY22[[#This Row],[Median]]","v":0},null,{"$f":"(((AAMC_Raw_Data_for_FY22[[#This Row],[75th]]-AAMC_Raw_Data_for_FY22[[#This Row],[Median]])/25)*30) + AAMC_Raw_Data_for_FY22[[#This Row],[Median]]","v":0},{"$f":"(((AAMC_Raw_Data_for_FY22[[#This Row],[75th]]-AAMC_Raw_Data_for_FY22[[#This Row],[Median]])/25)*35) + AAMC_Raw_Data_for_FY22[[#This Row],[Median]]","v":0},{"$f":"(((AAMC_Raw_Data_for_FY22[[#This Row],[75th]]-AAMC_Raw_Data_for_FY22[[#This Row],[Median]])/25)*40) + AAMC_Raw_Data_for_FY22[[#This Row],[Median]]","v":0}]
[{"$f":"AAMC_Raw_Data_for_FY22[[#This Row],[Source]]&AAMC_Raw_Data_for_FY22[[#This Row],[Type]]&AAMC_Raw_Data_for_FY22[[#This Row],[School Subset]]&AAMC_Raw_Data_for_FY22[[#This Row],[Rank]]&AAMC_Raw_Data_for_FY22[[#This Row],[Degree]]&AAMC_Raw_Data_for_FY22[[#This Row],[Department / Specialty]]&\"L\"","v":"AAMCAcademicPublicInstructorMDMicrobiologyL"},"Microbiology",5,"AAMC","Academic","Public","Instructor","MD","2021-2022",null,{"$f":"(((AAMC_Raw_Data_for_FY22[[#This Row],[Median]]-AAMC_Raw_Data_for_FY22[[#This Row],[25th]])/25)*5) + AAMC_Raw_Data_for_FY22[[#This Row],[25th]]","v":0},{"$f":"(((AAMC_Raw_Data_for_FY22[[#This Row],[Median]]-AAMC_Raw_Data_for_FY22[[#This Row],[25th]])/25)*10) + AAMC_Raw_Data_for_FY22[[#This Row],[25th]]","v":0},{"$f":"(((AAMC_Raw_Data_for_FY22[[#This Row],[Median]]-AAMC_Raw_Data_for_FY22[[#This Row],[25th]])/25)*15) + AAMC_Raw_Data_for_FY22[[#This Row],[25th]]","v":0},{"$f":"(((AAMC_Raw_Data_for_FY22[[#This Row],[Median]]-AAMC_Raw_Data_for_FY22[[#This Row],[25th]])/25)*20) + AAMC_Raw_Data_for_FY22[[#This Row],[25th]]","v":0},null,{"$f":"(((AAMC_Raw_Data_for_FY22[[#This Row],[75th]]-AAMC_Raw_Data_for_FY22[[#This Row],[Median]])/25)*5) + AAMC_Raw_Data_for_FY22[[#This Row],[Median]]","v":0},{"$f":"(((AAMC_Raw_Data_for_FY22[[#This Row],[75th]]-AAMC_Raw_Data_for_FY22[[#This Row],[Median]])/25)*10) + AAMC_Raw_Data_for_FY22[[#This Row],[Median]]","v":0},{"$f":"(((AAMC_Raw_Data_for_FY22[[#This Row],[75th]]-AAMC_Raw_Data_for_FY22[[#This Row],[Median]])/25)*15) + AAMC_Raw_Data_for_FY22[[#This Row],[Median]]","v":0},{"$f":"(((AAMC_Raw_Data_for_FY22[[#This Row],[75th]]-AAMC_Raw_Data_for_FY22[[#This Row],[Median]])/25)*20) + AAMC_Raw_Data_for_FY22[[#This Row],[Median]]","v":0},null,{"$f":"(((AAMC_Raw_Data_for_FY22[[#This Row],[75th]]-AAMC_Raw_Data_for_FY22[[#This Row],[Median]])/25)*30) + AAMC_Raw_Data_for_FY22[[#This Row],[Median]]","v":0},{"$f":"(((AAMC_Raw_Data_for_FY22[[#This Row],[75th]]-AAMC_Raw_Data_for_FY22[[#This Row],[Median]])/25)*35) + AAMC_Raw_Data_for_FY22[[#This Row],[Median]]","v":0},{"$f":"(((AAMC_Raw_Data_for_FY22[[#This Row],[75th]]-AAMC_Raw_Data_for_FY22[[#This Row],[Median]])/25)*40) + AAMC_Raw_Data_for_FY22[[#This Row],[Median]]","v":0}]
[{"$f":"AAMC_Raw_Data_for_FY22[[#This Row],[Source]]&AAMC_Raw_Data_for_FY22[[#This Row],[Type]]&AAMC_Raw_Data_for_FY22[[#This Row],[School Subset]]&AAMC_Raw_Data_for_FY22[[#This Row],[Rank]]&AAMC_Raw_Data_for_FY22[[#This Row],[Degree]]&AAMC_Raw_Data_for_FY22[[#This Row],[Department / Specialty]]&\"L\"","v":"AAMCAcademicPublicAssistantMDMicrobiologyL"},"Microbiology",4,"AAMC","Academic","Public","Assistant","MD","2021-2022",79805,{"$f":"(((AAMC_Raw_Data_for_FY22[[#This Row],[Median]]-AAMC_Raw_Data_for_FY22[[#This Row],[25th]])/25)*5) + AAMC_Raw_Data_for_FY22[[#This Row],[25th]]","v":84353.8},{"$f":"(((AAMC_Raw_Data_for_FY22[[#This Row],[Median]]-AAMC_Raw_Data_for_FY22[[#This Row],[25th]])/25)*10) + AAMC_Raw_Data_for_FY22[[#This Row],[25th]]","v":88902.6},{"$f":"(((AAMC_Raw_Data_for_FY22[[#This Row],[Median]]-AAMC_Raw_Data_for_FY22[[#This Row],[25th]])/25)*15) + AAMC_Raw_Data_for_FY22[[#This Row],[25th]]","v":93451.4},{"$f":"(((AAMC_Raw_Data_for_FY22[[#This Row],[Median]]-AAMC_Raw_Data_for_FY22[[#This Row],[25th]])/25)*20) + AAMC_Raw_Data_for_FY22[[#This Row],[25th]]","v":98000.2},102549,{"$f":"(((AAMC_Raw_Data_for_FY22[[#This Row],[75th]]-AAMC_Raw_Data_for_FY22[[#This Row],[Median]])/25)*5) + AAMC_Raw_Data_for_FY22[[#This Row],[Median]]","v":105291.2},{"$f":"(((AAMC_Raw_Data_for_FY22[[#This Row],[75th]]-AAMC_Raw_Data_for_FY22[[#This Row],[Median]])/25)*10) + AAMC_Raw_Data_for_FY22[[#This Row],[Median]]","v":108033.4},{"$f":"(((AAMC_Raw_Data_for_FY22[[#This Row],[75th]]-AAMC_Raw_Data_for_FY22[[#This Row],[Median]])/25)*15) + AAMC_Raw_Data_for_FY22[[#This Row],[Median]]","v":110775.6},{"$f":"(((AAMC_Raw_Data_for_FY22[[#This Row],[75th]]-AAMC_Raw_Data_for_FY22[[#This Row],[Median]])/25)*20) + AAMC_Raw_Data_for_FY22[[#This Row],[Median]]","v":113517.8},116260,{"$f":"(((AAMC_Raw_Data_for_FY22[[#This Row],[75th]]-AAMC_Raw_Data_for_FY22[[#This Row],[Median]])/25)*30) + AAMC_Raw_Data_for_FY22[[#This Row],[Median]]","v":119002.2},{"$f":"(((AAMC_Raw_Data_for_FY22[[#This Row],[75th]]-AAMC_Raw_Data_for_FY22[[#This Row],[Median]])/25)*35) + AAMC_Raw_Data_for_FY22[[#This Row],[Median]]","v":121744.4},{"$f":"(((AAMC_Raw_Data_for_FY22[[#This Row],[75th]]-AAMC_Raw_Data_for_FY22[[#This Row],[Median]])/25)*40) + AAMC_Raw_Data_for_FY22[[#This Row],[Median]]","v":124486.6}]
[{"$f":"AAMC_Raw_Data_for_FY22[[#This Row],[Source]]&AAMC_Raw_Data_for_FY22[[#This Row],[Type]]&AAMC_Raw_Data_for_FY22[[#This Row],[School Subset]]&AAMC_Raw_Data_for_FY22[[#This Row],[Rank]]&AAMC_Raw_Data_for_FY22[[#This Row],[Degree]]&AAMC_Raw_Data_for_FY22[[#This Row],[Department / Specialty]]&\"L\"","v":"AAMCAcademicPublicAssociateMDMicrobiologyL"},"Microbiology",3,"AAMC","Academic","Public","Associate","MD","2021-2022",126702,{"$f":"(((AAMC_Raw_Data_for_FY22[[#This Row],[Median]]-AAMC_Raw_Data_for_FY22[[#This Row],[25th]])/25)*5) + AAMC_Raw_Data_for_FY22[[#This Row],[25th]]","v":128913.4},{"$f":"(((AAMC_Raw_Data_for_FY22[[#This Row],[Median]]-AAMC_Raw_Data_for_FY22[[#This Row],[25th]])/25)*10) + AAMC_Raw_Data_for_FY22[[#This Row],[25th]]","v":131124.79999999999},{"$f":"(((AAMC_Raw_Data_for_FY22[[#This Row],[Median]]-AAMC_Raw_Data_for_FY22[[#This Row],[25th]])/25)*15) + AAMC_Raw_Data_for_FY22[[#This Row],[25th]]","v":133336.20000000001},{"$f":"(((AAMC_Raw_Data_for_FY22[[#This Row],[Median]]-AAMC_Raw_Data_for_FY22[[#This Row],[25th]])/25)*20) + AAMC_Raw_Data_for_FY22[[#This Row],[25th]]","v":135547.6},137759,{"$f":"(((AAMC_Raw_Data_for_FY22[[#This Row],[75th]]-AAMC_Raw_Data_for_FY22[[#This Row],[Median]])/25)*5) + AAMC_Raw_Data_for_FY22[[#This Row],[Median]]","v":141076.4},{"$f":"(((AAMC_Raw_Data_for_FY22[[#This Row],[75th]]-AAMC_Raw_Data_for_FY22[[#This Row],[Median]])/25)*10) + AAMC_Raw_Data_for_FY22[[#This Row],[Median]]","v":144393.79999999999},{"$f":"(((AAMC_Raw_Data_for_FY22[[#This Row],[75th]]-AAMC_Raw_Data_for_FY22[[#This Row],[Median]])/25)*15) + AAMC_Raw_Data_for_FY22[[#This Row],[Median]]","v":147711.20000000001},{"$f":"(((AAMC_Raw_Data_for_FY22[[#This Row],[75th]]-AAMC_Raw_Data_for_FY22[[#This Row],[Median]])/25)*20) + AAMC_Raw_Data_for_FY22[[#This Row],[Median]]","v":151028.6},154346,{"$f":"(((AAMC_Raw_Data_for_FY22[[#This Row],[75th]]-AAMC_Raw_Data_for_FY22[[#This Row],[Median]])/25)*30) + AAMC_Raw_Data_for_FY22[[#This Row],[Median]]","v":157663.4},{"$f":"(((AAMC_Raw_Data_for_FY22[[#This Row],[75th]]-AAMC_Raw_Data_for_FY22[[#This Row],[Median]])/25)*35) + AAMC_Raw_Data_for_FY22[[#This Row],[Median]]","v":160980.79999999999},{"$f":"(((AAMC_Raw_Data_for_FY22[[#This Row],[75th]]-AAMC_Raw_Data_for_FY22[[#This Row],[Median]])/25)*40) + AAMC_Raw_Data_for_FY22[[#This Row],[Median]]","v":164298.20000000001}]
[{"$f":"AAMC_Raw_Data_for_FY22[[#This Row],[Source]]&AAMC_Raw_Data_for_FY22[[#This Row],[Type]]&AAMC_Raw_Data_for_FY22[[#This Row],[School Subset]]&AAMC_Raw_Data_for_FY22[[#This Row],[Rank]]&AAMC_Raw_Data_for_FY22[[#This Row],[Degree]]&AAMC_Raw_Data_for_FY22[[#This Row],[Department / Specialty]]&\"L\"","v":"AAMCAcademicPublicProfessorMDMicrobiologyL"},"Microbiology",2,"AAMC","Academic","Public","Professor","MD","2021-2022",177153,{"$f":"(((AAMC_Raw_Data_for_FY22[[#This Row],[Median]]-AAMC_Raw_Data_for_FY22[[#This Row],[25th]])/25)*5) + AAMC_Raw_Data_for_FY22[[#This Row],[25th]]","v":183809.8},{"$f":"(((AAMC_Raw_Data_for_FY22[[#This Row],[Median]]-AAMC_Raw_Data_for_FY22[[#This Row],[25th]])/25)*10) + AAMC_Raw_Data_for_FY22[[#This Row],[25th]]","v":190466.6},{"$f":"(((AAMC_Raw_Data_for_FY22[[#This Row],[Median]]-AAMC_Raw_Data_for_FY22[[#This Row],[25th]])/25)*15) + AAMC_Raw_Data_for_FY22[[#This Row],[25th]]","v":197123.4},{"$f":"(((AAMC_Raw_Data_for_FY22[[#This Row],[Median]]-AAMC_Raw_Data_for_FY22[[#This Row],[25th]])/25)*20) + AAMC_Raw_Data_for_FY22[[#This Row],[25th]]","v":203780.2},210437,{"$f":"(((AAMC_Raw_Data_for_FY22[[#This Row],[75th]]-AAMC_Raw_Data_for_FY22[[#This Row],[Median]])/25)*5) + AAMC_Raw_Data_for_FY22[[#This Row],[Median]]","v":223490.2},{"$f":"(((AAMC_Raw_Data_for_FY22[[#This Row],[75th]]-AAMC_Raw_Data_for_FY22[[#This Row],[Median]])/25)*10) + AAMC_Raw_Data_for_FY22[[#This Row],[Median]]","v":236543.4},{"$f":"(((AAMC_Raw_Data_for_FY22[[#This Row],[75th]]-AAMC_Raw_Data_for_FY22[[#This Row],[Median]])/25)*15) + AAMC_Raw_Data_for_FY22[[#This Row],[Median]]","v":249596.6},{"$f":"(((AAMC_Raw_Data_for_FY22[[#This Row],[75th]]-AAMC_Raw_Data_for_FY22[[#This Row],[Median]])/25)*20) + AAMC_Raw_Data_for_FY22[[#This Row],[Median]]","v":262649.8},275703,{"$f":"(((AAMC_Raw_Data_for_FY22[[#This Row],[75th]]-AAMC_Raw_Data_for_FY22[[#This Row],[Median]])/25)*30) + AAMC_Raw_Data_for_FY22[[#This Row],[Median]]","v":288756.2},{"$f":"(((AAMC_Raw_Data_for_FY22[[#This Row],[75th]]-AAMC_Raw_Data_for_FY22[[#This Row],[Median]])/25)*35) + AAMC_Raw_Data_for_FY22[[#This Row],[Median]]","v":301809.40000000002},{"$f":"(((AAMC_Raw_Data_for_FY22[[#This Row],[75th]]-AAMC_Raw_Data_for_FY22[[#This Row],[Median]])/25)*40) + AAMC_Raw_Data_for_FY22[[#This Row],[Median]]","v":314862.59999999998}]
[{"$f":"AAMC_Raw_Data_for_FY22[[#This Row],[Source]]&AAMC_Raw_Data_for_FY22[[#This Row],[Type]]&AAMC_Raw_Data_for_FY22[[#This Row],[School Subset]]&AAMC_Raw_Data_for_FY22[[#This Row],[Rank]]&AAMC_Raw_Data_for_FY22[[#This Row],[Degree]]&AAMC_Raw_Data_for_FY22[[#This Row],[Department / Specialty]]&\"L\"","v":"AAMCAcademicPublicChiefMDMicrobiologyL"},"Microbiology",6,"AAMC","Academic","Public","Chief","MD","2021-2022",null,{"$f":"(((AAMC_Raw_Data_for_FY22[[#This Row],[Median]]-AAMC_Raw_Data_for_FY22[[#This Row],[25th]])/25)*5) + AAMC_Raw_Data_for_FY22[[#This Row],[25th]]","v":0},{"$f":"(((AAMC_Raw_Data_for_FY22[[#This Row],[Median]]-AAMC_Raw_Data_for_FY22[[#This Row],[25th]])/25)*10) + AAMC_Raw_Data_for_FY22[[#This Row],[25th]]","v":0},{"$f":"(((AAMC_Raw_Data_for_FY22[[#This Row],[Median]]-AAMC_Raw_Data_for_FY22[[#This Row],[25th]])/25)*15) + AAMC_Raw_Data_for_FY22[[#This Row],[25th]]","v":0},{"$f":"(((AAMC_Raw_Data_for_FY22[[#This Row],[Median]]-AAMC_Raw_Data_for_FY22[[#This Row],[25th]])/25)*20) + AAMC_Raw_Data_for_FY22[[#This Row],[25th]]","v":0},null,{"$f":"(((AAMC_Raw_Data_for_FY22[[#This Row],[75th]]-AAMC_Raw_Data_for_FY22[[#This Row],[Median]])/25)*5) + AAMC_Raw_Data_for_FY22[[#This Row],[Median]]","v":0},{"$f":"(((AAMC_Raw_Data_for_FY22[[#This Row],[75th]]-AAMC_Raw_Data_for_FY22[[#This Row],[Median]])/25)*10) + AAMC_Raw_Data_for_FY22[[#This Row],[Median]]","v":0},{"$f":"(((AAMC_Raw_Data_for_FY22[[#This Row],[75th]]-AAMC_Raw_Data_for_FY22[[#This Row],[Median]])/25)*15) + AAMC_Raw_Data_for_FY22[[#This Row],[Median]]","v":0},{"$f":"(((AAMC_Raw_Data_for_FY22[[#This Row],[75th]]-AAMC_Raw_Data_for_FY22[[#This Row],[Median]])/25)*20) + AAMC_Raw_Data_for_FY22[[#This Row],[Median]]","v":0},null,{"$f":"(((AAMC_Raw_Data_for_FY22[[#This Row],[75th]]-AAMC_Raw_Data_for_FY22[[#This Row],[Median]])/25)*30) + AAMC_Raw_Data_for_FY22[[#This Row],[Median]]","v":0},{"$f":"(((AAMC_Raw_Data_for_FY22[[#This Row],[75th]]-AAMC_Raw_Data_for_FY22[[#This Row],[Median]])/25)*35) + AAMC_Raw_Data_for_FY22[[#This Row],[Median]]","v":0},{"$f":"(((AAMC_Raw_Data_for_FY22[[#This Row],[75th]]-AAMC_Raw_Data_for_FY22[[#This Row],[Median]])/25)*40) + AAMC_Raw_Data_for_FY22[[#This Row],[Median]]","v":0}]
[{"$f":"AAMC_Raw_Data_for_FY22[[#This Row],[Source]]&AAMC_Raw_Data_for_FY22[[#This Row],[Type]]&AAMC_Raw_Data_for_FY22[[#This Row],[School Subset]]&AAMC_Raw_Data_for_FY22[[#This Row],[Rank]]&AAMC_Raw_Data_for_FY22[[#This Row],[Degree]]&AAMC_Raw_Data_for_FY22[[#This Row],[Department / Specialty]]&\"L\"","v":"AAMCAcademicPublicChairMDMicrobiologyL"},"Microbiology",1,"AAMC","Academic","Public","Chair","MD","2021-2022",null,{"$f":"(((AAMC_Raw_Data_for_FY22[[#This Row],[Median]]-AAMC_Raw_Data_for_FY22[[#This Row],[25th]])/25)*5) + AAMC_Raw_Data_for_FY22[[#This Row],[25th]]","v":0},{"$f":"(((AAMC_Raw_Data_for_FY22[[#This Row],[Median]]-AAMC_Raw_Data_for_FY22[[#This Row],[25th]])/25)*10) + AAMC_Raw_Data_for_FY22[[#This Row],[25th]]","v":0},{"$f":"(((AAMC_Raw_Data_for_FY22[[#This Row],[Median]]-AAMC_Raw_Data_for_FY22[[#This Row],[25th]])/25)*15) + AAMC_Raw_Data_for_FY22[[#This Row],[25th]]","v":0},{"$f":"(((AAMC_Raw_Data_for_FY22[[#This Row],[Median]]-AAMC_Raw_Data_for_FY22[[#This Row],[25th]])/25)*20) + AAMC_Raw_Data_for_FY22[[#This Row],[25th]]","v":0},null,{"$f":"(((AAMC_Raw_Data_for_FY22[[#This Row],[75th]]-AAMC_Raw_Data_for_FY22[[#This Row],[Median]])/25)*5) + AAMC_Raw_Data_for_FY22[[#This Row],[Median]]","v":0},{"$f":"(((AAMC_Raw_Data_for_FY22[[#This Row],[75th]]-AAMC_Raw_Data_for_FY22[[#This Row],[Median]])/25)*10) + AAMC_Raw_Data_for_FY22[[#This Row],[Median]]","v":0},{"$f":"(((AAMC_Raw_Data_for_FY22[[#This Row],[75th]]-AAMC_Raw_Data_for_FY22[[#This Row],[Median]])/25)*15) + AAMC_Raw_Data_for_FY22[[#This Row],[Median]]","v":0},{"$f":"(((AAMC_Raw_Data_for_FY22[[#This Row],[75th]]-AAMC_Raw_Data_for_FY22[[#This Row],[Median]])/25)*20) + AAMC_Raw_Data_for_FY22[[#This Row],[Median]]","v":0},null,{"$f":"(((AAMC_Raw_Data_for_FY22[[#This Row],[75th]]-AAMC_Raw_Data_for_FY22[[#This Row],[Median]])/25)*30) + AAMC_Raw_Data_for_FY22[[#This Row],[Median]]","v":0},{"$f":"(((AAMC_Raw_Data_for_FY22[[#This Row],[75th]]-AAMC_Raw_Data_for_FY22[[#This Row],[Median]])/25)*35) + AAMC_Raw_Data_for_FY22[[#This Row],[Median]]","v":0},{"$f":"(((AAMC_Raw_Data_for_FY22[[#This Row],[75th]]-AAMC_Raw_Data_for_FY22[[#This Row],[Median]])/25)*40) + AAMC_Raw_Data_for_FY22[[#This Row],[Median]]","v":0}]
[{"$f":"AAMC_Raw_Data_for_FY22[[#This Row],[Source]]&AAMC_Raw_Data_for_FY22[[#This Row],[Type]]&AAMC_Raw_Data_for_FY22[[#This Row],[School Subset]]&AAMC_Raw_Data_for_FY22[[#This Row],[Rank]]&AAMC_Raw_Data_for_FY22[[#This Row],[Degree]]&AAMC_Raw_Data_for_FY22[[#This Row],[Department / Specialty]]&\"L\"","v":"AAMCAcademicPublicInstructorMDMolecular & Cellular BiologyL"},"Molecular & Cellular Biology",5,"AAMC","Academic","Public","Instructor","MD","2021-2022",null,{"$f":"(((AAMC_Raw_Data_for_FY22[[#This Row],[Median]]-AAMC_Raw_Data_for_FY22[[#This Row],[25th]])/25)*5) + AAMC_Raw_Data_for_FY22[[#This Row],[25th]]","v":0},{"$f":"(((AAMC_Raw_Data_for_FY22[[#This Row],[Median]]-AAMC_Raw_Data_for_FY22[[#This Row],[25th]])/25)*10) + AAMC_Raw_Data_for_FY22[[#This Row],[25th]]","v":0},{"$f":"(((AAMC_Raw_Data_for_FY22[[#This Row],[Median]]-AAMC_Raw_Data_for_FY22[[#This Row],[25th]])/25)*15) + AAMC_Raw_Data_for_FY22[[#This Row],[25th]]","v":0},{"$f":"(((AAMC_Raw_Data_for_FY22[[#This Row],[Median]]-AAMC_Raw_Data_for_FY22[[#This Row],[25th]])/25)*20) + AAMC_Raw_Data_for_FY22[[#This Row],[25th]]","v":0},null,{"$f":"(((AAMC_Raw_Data_for_FY22[[#This Row],[75th]]-AAMC_Raw_Data_for_FY22[[#This Row],[Median]])/25)*5) + AAMC_Raw_Data_for_FY22[[#This Row],[Median]]","v":0},{"$f":"(((AAMC_Raw_Data_for_FY22[[#This Row],[75th]]-AAMC_Raw_Data_for_FY22[[#This Row],[Median]])/25)*10) + AAMC_Raw_Data_for_FY22[[#This Row],[Median]]","v":0},{"$f":"(((AAMC_Raw_Data_for_FY22[[#This Row],[75th]]-AAMC_Raw_Data_for_FY22[[#This Row],[Median]])/25)*15) + AAMC_Raw_Data_for_FY22[[#This Row],[Median]]","v":0},{"$f":"(((AAMC_Raw_Data_for_FY22[[#This Row],[75th]]-AAMC_Raw_Data_for_FY22[[#This Row],[Median]])/25)*20) + AAMC_Raw_Data_for_FY22[[#This Row],[Median]]","v":0},null,{"$f":"(((AAMC_Raw_Data_for_FY22[[#This Row],[75th]]-AAMC_Raw_Data_for_FY22[[#This Row],[Median]])/25)*30) + AAMC_Raw_Data_for_FY22[[#This Row],[Median]]","v":0},{"$f":"(((AAMC_Raw_Data_for_FY22[[#This Row],[75th]]-AAMC_Raw_Data_for_FY22[[#This Row],[Median]])/25)*35) + AAMC_Raw_Data_for_FY22[[#This Row],[Median]]","v":0},{"$f":"(((AAMC_Raw_Data_for_FY22[[#This Row],[75th]]-AAMC_Raw_Data_for_FY22[[#This Row],[Median]])/25)*40) + AAMC_Raw_Data_for_FY22[[#This Row],[Median]]","v":0}]
[{"$f":"AAMC_Raw_Data_for_FY22[[#This Row],[Source]]&AAMC_Raw_Data_for_FY22[[#This Row],[Type]]&AAMC_Raw_Data_for_FY22[[#This Row],[School Subset]]&AAMC_Raw_Data_for_FY22[[#This Row],[Rank]]&AAMC_Raw_Data_for_FY22[[#This Row],[Degree]]&AAMC_Raw_Data_for_FY22[[#This Row],[Department / Specialty]]&\"L\"","v":"AAMCAcademicPublicAssistantMDMolecular & Cellular BiologyL"},"Molecular & Cellular Biology",4,"AAMC","Academic","Public","Assistant","MD","2021-2022",84948,{"$f":"(((AAMC_Raw_Data_for_FY22[[#This Row],[Median]]-AAMC_Raw_Data_for_FY22[[#This Row],[25th]])/25)*5) + AAMC_Raw_Data_for_FY22[[#This Row],[25th]]","v":89899.199999999997},{"$f":"(((AAMC_Raw_Data_for_FY22[[#This Row],[Median]]-AAMC_Raw_Data_for_FY22[[#This Row],[25th]])/25)*10) + AAMC_Raw_Data_for_FY22[[#This Row],[25th]]","v":94850.4},{"$f":"(((AAMC_Raw_Data_for_FY22[[#This Row],[Median]]-AAMC_Raw_Data_for_FY22[[#This Row],[25th]])/25)*15) + AAMC_Raw_Data_for_FY22[[#This Row],[25th]]","v":99801.600000000006},{"$f":"(((AAMC_Raw_Data_for_FY22[[#This Row],[Median]]-AAMC_Raw_Data_for_FY22[[#This Row],[25th]])/25)*20) + AAMC_Raw_Data_for_FY22[[#This Row],[25th]]","v":104752.8},109704,{"$f":"(((AAMC_Raw_Data_for_FY22[[#This Row],[75th]]-AAMC_Raw_Data_for_FY22[[#This Row],[Median]])/25)*5) + AAMC_Raw_Data_for_FY22[[#This Row],[Median]]","v":114526},{"$f":"(((AAMC_Raw_Data_for_FY22[[#This Row],[75th]]-AAMC_Raw_Data_for_FY22[[#This Row],[Median]])/25)*10) + AAMC_Raw_Data_for_FY22[[#This Row],[Median]]","v":119348},{"$f":"(((AAMC_Raw_Data_for_FY22[[#This Row],[75th]]-AAMC_Raw_Data_for_FY22[[#This Row],[Median]])/25)*15) + AAMC_Raw_Data_for_FY22[[#This Row],[Median]]","v":124170},{"$f":"(((AAMC_Raw_Data_for_FY22[[#This Row],[75th]]-AAMC_Raw_Data_for_FY22[[#This Row],[Median]])/25)*20) + AAMC_Raw_Data_for_FY22[[#This Row],[Median]]","v":128992},133814,{"$f":"(((AAMC_Raw_Data_for_FY22[[#This Row],[75th]]-AAMC_Raw_Data_for_FY22[[#This Row],[Median]])/25)*30) + AAMC_Raw_Data_for_FY22[[#This Row],[Median]]","v":138636},{"$f":"(((AAMC_Raw_Data_for_FY22[[#This Row],[75th]]-AAMC_Raw_Data_for_FY22[[#This Row],[Median]])/25)*35) + AAMC_Raw_Data_for_FY22[[#This Row],[Median]]","v":143458},{"$f":"(((AAMC_Raw_Data_for_FY22[[#This Row],[75th]]-AAMC_Raw_Data_for_FY22[[#This Row],[Median]])/25)*40) + AAMC_Raw_Data_for_FY22[[#This Row],[Median]]","v":148280}]
[{"$f":"AAMC_Raw_Data_for_FY22[[#This Row],[Source]]&AAMC_Raw_Data_for_FY22[[#This Row],[Type]]&AAMC_Raw_Data_for_FY22[[#This Row],[School Subset]]&AAMC_Raw_Data_for_FY22[[#This Row],[Rank]]&AAMC_Raw_Data_for_FY22[[#This Row],[Degree]]&AAMC_Raw_Data_for_FY22[[#This Row],[Department / Specialty]]&\"L\"","v":"AAMCAcademicPublicAssociateMDMolecular & Cellular BiologyL"},"Molecular & Cellular Biology",3,"AAMC","Academic","Public","Associate","MD","2021-2022",114810,{"$f":"(((AAMC_Raw_Data_for_FY22[[#This Row],[Median]]-AAMC_Raw_Data_for_FY22[[#This Row],[25th]])/25)*5) + AAMC_Raw_Data_for_FY22[[#This Row],[25th]]","v":119105.60000000001},{"$f":"(((AAMC_Raw_Data_for_FY22[[#This Row],[Median]]-AAMC_Raw_Data_for_FY22[[#This Row],[25th]])/25)*10) + AAMC_Raw_Data_for_FY22[[#This Row],[25th]]","v":123401.2},{"$f":"(((AAMC_Raw_Data_for_FY22[[#This Row],[Median]]-AAMC_Raw_Data_for_FY22[[#This Row],[25th]])/25)*15) + AAMC_Raw_Data_for_FY22[[#This Row],[25th]]","v":127696.8},{"$f":"(((AAMC_Raw_Data_for_FY22[[#This Row],[Median]]-AAMC_Raw_Data_for_FY22[[#This Row],[25th]])/25)*20) + AAMC_Raw_Data_for_FY22[[#This Row],[25th]]","v":131992.4},136288,{"$f":"(((AAMC_Raw_Data_for_FY22[[#This Row],[75th]]-AAMC_Raw_Data_for_FY22[[#This Row],[Median]])/25)*5) + AAMC_Raw_Data_for_FY22[[#This Row],[Median]]","v":140430.39999999999},{"$f":"(((AAMC_Raw_Data_for_FY22[[#This Row],[75th]]-AAMC_Raw_Data_for_FY22[[#This Row],[Median]])/25)*10) + AAMC_Raw_Data_for_FY22[[#This Row],[Median]]","v":144572.79999999999},{"$f":"(((AAMC_Raw_Data_for_FY22[[#This Row],[75th]]-AAMC_Raw_Data_for_FY22[[#This Row],[Median]])/25)*15) + AAMC_Raw_Data_for_FY22[[#This Row],[Median]]","v":148715.20000000001},{"$f":"(((AAMC_Raw_Data_for_FY22[[#This Row],[75th]]-AAMC_Raw_Data_for_FY22[[#This Row],[Median]])/25)*20) + AAMC_Raw_Data_for_FY22[[#This Row],[Median]]","v":152857.60000000001},157000,{"$f":"(((AAMC_Raw_Data_for_FY22[[#This Row],[75th]]-AAMC_Raw_Data_for_FY22[[#This Row],[Median]])/25)*30) + AAMC_Raw_Data_for_FY22[[#This Row],[Median]]","v":161142.39999999999},{"$f":"(((AAMC_Raw_Data_for_FY22[[#This Row],[75th]]-AAMC_Raw_Data_for_FY22[[#This Row],[Median]])/25)*35) + AAMC_Raw_Data_for_FY22[[#This Row],[Median]]","v":165284.79999999999},{"$f":"(((AAMC_Raw_Data_for_FY22[[#This Row],[75th]]-AAMC_Raw_Data_for_FY22[[#This Row],[Median]])/25)*40) + AAMC_Raw_Data_for_FY22[[#This Row],[Median]]","v":169427.20000000001}]
[{"$f":"AAMC_Raw_Data_for_FY22[[#This Row],[Source]]&AAMC_Raw_Data_for_FY22[[#This Row],[Type]]&AAMC_Raw_Data_for_FY22[[#This Row],[School Subset]]&AAMC_Raw_Data_for_FY22[[#This Row],[Rank]]&AAMC_Raw_Data_for_FY22[[#This Row],[Degree]]&AAMC_Raw_Data_for_FY22[[#This Row],[Department / Specialty]]&\"L\"","v":"AAMCAcademicPublicProfessorMDMolecular & Cellular BiologyL"},"Molecular & Cellular Biology",2,"AAMC","Academic","Public","Professor","MD","2021-2022",188860,{"$f":"(((AAMC_Raw_Data_for_FY22[[#This Row],[Median]]-AAMC_Raw_Data_for_FY22[[#This Row],[25th]])/25)*5) + AAMC_Raw_Data_for_FY22[[#This Row],[25th]]","v":197331.20000000001},{"$f":"(((AAMC_Raw_Data_for_FY22[[#This Row],[Median]]-AAMC_Raw_Data_for_FY22[[#This Row],[25th]])/25)*10) + AAMC_Raw_Data_for_FY22[[#This Row],[25th]]","v":205802.4},{"$f":"(((AAMC_Raw_Data_for_FY22[[#This Row],[Median]]-AAMC_Raw_Data_for_FY22[[#This Row],[25th]])/25)*15) + AAMC_Raw_Data_for_FY22[[#This Row],[25th]]","v":214273.6},{"$f":"(((AAMC_Raw_Data_for_FY22[[#This Row],[Median]]-AAMC_Raw_Data_for_FY22[[#This Row],[25th]])/25)*20) + AAMC_Raw_Data_for_FY22[[#This Row],[25th]]","v":222744.8},231216,{"$f":"(((AAMC_Raw_Data_for_FY22[[#This Row],[75th]]-AAMC_Raw_Data_for_FY22[[#This Row],[Median]])/25)*5) + AAMC_Raw_Data_for_FY22[[#This Row],[Median]]","v":241961.4},{"$f":"(((AAMC_Raw_Data_for_FY22[[#This Row],[75th]]-AAMC_Raw_Data_for_FY22[[#This Row],[Median]])/25)*10) + AAMC_Raw_Data_for_FY22[[#This Row],[Median]]","v":252706.8},{"$f":"(((AAMC_Raw_Data_for_FY22[[#This Row],[75th]]-AAMC_Raw_Data_for_FY22[[#This Row],[Median]])/25)*15) + AAMC_Raw_Data_for_FY22[[#This Row],[Median]]","v":263452.2},{"$f":"(((AAMC_Raw_Data_for_FY22[[#This Row],[75th]]-AAMC_Raw_Data_for_FY22[[#This Row],[Median]])/25)*20) + AAMC_Raw_Data_for_FY22[[#This Row],[Median]]","v":274197.59999999998},284943,{"$f":"(((AAMC_Raw_Data_for_FY22[[#This Row],[75th]]-AAMC_Raw_Data_for_FY22[[#This Row],[Median]])/25)*30) + AAMC_Raw_Data_for_FY22[[#This Row],[Median]]","v":295688.40000000002},{"$f":"(((AAMC_Raw_Data_for_FY22[[#This Row],[75th]]-AAMC_Raw_Data_for_FY22[[#This Row],[Median]])/25)*35) + AAMC_Raw_Data_for_FY22[[#This Row],[Median]]","v":306433.8},{"$f":"(((AAMC_Raw_Data_for_FY22[[#This Row],[75th]]-AAMC_Raw_Data_for_FY22[[#This Row],[Median]])/25)*40) + AAMC_Raw_Data_for_FY22[[#This Row],[Median]]","v":317179.2}]
[{"$f":"AAMC_Raw_Data_for_FY22[[#This Row],[Source]]&AAMC_Raw_Data_for_FY22[[#This Row],[Type]]&AAMC_Raw_Data_for_FY22[[#This Row],[School Subset]]&AAMC_Raw_Data_for_FY22[[#This Row],[Rank]]&AAMC_Raw_Data_for_FY22[[#This Row],[Degree]]&AAMC_Raw_Data_for_FY22[[#This Row],[Department / Specialty]]&\"L\"","v":"AAMCAcademicPublicChairMDMolecular & Cellular BiologyL"},"Molecular & Cellular Biology",1,"AAMC","Academic","Public","Chair","MD","2021-2022",null,{"$f":"(((AAMC_Raw_Data_for_FY22[[#This Row],[Median]]-AAMC_Raw_Data_for_FY22[[#This Row],[25th]])/25)*5) + AAMC_Raw_Data_for_FY22[[#This Row],[25th]]","v":0},{"$f":"(((AAMC_Raw_Data_for_FY22[[#This Row],[Median]]-AAMC_Raw_Data_for_FY22[[#This Row],[25th]])/25)*10) + AAMC_Raw_Data_for_FY22[[#This Row],[25th]]","v":0},{"$f":"(((AAMC_Raw_Data_for_FY22[[#This Row],[Median]]-AAMC_Raw_Data_for_FY22[[#This Row],[25th]])/25)*15) + AAMC_Raw_Data_for_FY22[[#This Row],[25th]]","v":0},{"$f":"(((AAMC_Raw_Data_for_FY22[[#This Row],[Median]]-AAMC_Raw_Data_for_FY22[[#This Row],[25th]])/25)*20) + AAMC_Raw_Data_for_FY22[[#This Row],[25th]]","v":0},null,{"$f":"(((AAMC_Raw_Data_for_FY22[[#This Row],[75th]]-AAMC_Raw_Data_for_FY22[[#This Row],[Median]])/25)*5) + AAMC_Raw_Data_for_FY22[[#This Row],[Median]]","v":0},{"$f":"(((AAMC_Raw_Data_for_FY22[[#This Row],[75th]]-AAMC_Raw_Data_for_FY22[[#This Row],[Median]])/25)*10) + AAMC_Raw_Data_for_FY22[[#This Row],[Median]]","v":0},{"$f":"(((AAMC_Raw_Data_for_FY22[[#This Row],[75th]]-AAMC_Raw_Data_for_FY22[[#This Row],[Median]])/25)*15) + AAMC_Raw_Data_for_FY22[[#This Row],[Median]]","v":0},{"$f":"(((AAMC_Raw_Data_for_FY22[[#This Row],[75th]]-AAMC_Raw_Data_for_FY22[[#This Row],[Median]])/25)*20) + AAMC_Raw_Data_for_FY22[[#This Row],[Median]]","v":0},null,{"$f":"(((AAMC_Raw_Data_for_FY22[[#This Row],[75th]]-AAMC_Raw_Data_for_FY22[[#This Row],[Median]])/25)*30) + AAMC_Raw_Data_for_FY22[[#This Row],[Median]]","v":0},{"$f":"(((AAMC_Raw_Data_for_FY22[[#This Row],[75th]]-AAMC_Raw_Data_for_FY22[[#This Row],[Median]])/25)*35) + AAMC_Raw_Data_for_FY22[[#This Row],[Median]]","v":0},{"$f":"(((AAMC_Raw_Data_for_FY22[[#This Row],[75th]]-AAMC_Raw_Data_for_FY22[[#This Row],[Median]])/25)*40) + AAMC_Raw_Data_for_FY22[[#This Row],[Median]]","v":0}]
[{"$f":"AAMC_Raw_Data_for_FY22[[#This Row],[Source]]&AAMC_Raw_Data_for_FY22[[#This Row],[Type]]&AAMC_Raw_Data_for_FY22[[#This Row],[School Subset]]&AAMC_Raw_Data_for_FY22[[#This Row],[Rank]]&AAMC_Raw_Data_for_FY22[[#This Row],[Degree]]&AAMC_Raw_Data_for_FY22[[#This Row],[Department / Specialty]]&\"L\"","v":"AAMCAcademicPublicInstructorMDNeurosciencesL"},"Neurosciences",5,"AAMC","Academic","Public","Instructor","MD","2021-2022",null,{"$f":"(((AAMC_Raw_Data_for_FY22[[#This Row],[Median]]-AAMC_Raw_Data_for_FY22[[#This Row],[25th]])/25)*5) + AAMC_Raw_Data_for_FY22[[#This Row],[25th]]","v":0},{"$f":"(((AAMC_Raw_Data_for_FY22[[#This Row],[Median]]-AAMC_Raw_Data_for_FY22[[#This Row],[25th]])/25)*10) + AAMC_Raw_Data_for_FY22[[#This Row],[25th]]","v":0},{"$f":"(((AAMC_Raw_Data_for_FY22[[#This Row],[Median]]-AAMC_Raw_Data_for_FY22[[#This Row],[25th]])/25)*15) + AAMC_Raw_Data_for_FY22[[#This Row],[25th]]","v":0},{"$f":"(((AAMC_Raw_Data_for_FY22[[#This Row],[Median]]-AAMC_Raw_Data_for_FY22[[#This Row],[25th]])/25)*20) + AAMC_Raw_Data_for_FY22[[#This Row],[25th]]","v":0},null,{"$f":"(((AAMC_Raw_Data_for_FY22[[#This Row],[75th]]-AAMC_Raw_Data_for_FY22[[#This Row],[Median]])/25)*5) + AAMC_Raw_Data_for_FY22[[#This Row],[Median]]","v":0},{"$f":"(((AAMC_Raw_Data_for_FY22[[#This Row],[75th]]-AAMC_Raw_Data_for_FY22[[#This Row],[Median]])/25)*10) + AAMC_Raw_Data_for_FY22[[#This Row],[Median]]","v":0},{"$f":"(((AAMC_Raw_Data_for_FY22[[#This Row],[75th]]-AAMC_Raw_Data_for_FY22[[#This Row],[Median]])/25)*15) + AAMC_Raw_Data_for_FY22[[#This Row],[Median]]","v":0},{"$f":"(((AAMC_Raw_Data_for_FY22[[#This Row],[75th]]-AAMC_Raw_Data_for_FY22[[#This Row],[Median]])/25)*20) + AAMC_Raw_Data_for_FY22[[#This Row],[Median]]","v":0},null,{"$f":"(((AAMC_Raw_Data_for_FY22[[#This Row],[75th]]-AAMC_Raw_Data_for_FY22[[#This Row],[Median]])/25)*30) + AAMC_Raw_Data_for_FY22[[#This Row],[Median]]","v":0},{"$f":"(((AAMC_Raw_Data_for_FY22[[#This Row],[75th]]-AAMC_Raw_Data_for_FY22[[#This Row],[Median]])/25)*35) + AAMC_Raw_Data_for_FY22[[#This Row],[Median]]","v":0},{"$f":"(((AAMC_Raw_Data_for_FY22[[#This Row],[75th]]-AAMC_Raw_Data_for_FY22[[#This Row],[Median]])/25)*40) + AAMC_Raw_Data_for_FY22[[#This Row],[Median]]","v":0}]
[{"$f":"AAMC_Raw_Data_for_FY22[[#This Row],[Source]]&AAMC_Raw_Data_for_FY22[[#This Row],[Type]]&AAMC_Raw_Data_for_FY22[[#This Row],[School Subset]]&AAMC_Raw_Data_for_FY22[[#This Row],[Rank]]&AAMC_Raw_Data_for_FY22[[#This Row],[Degree]]&AAMC_Raw_Data_for_FY22[[#This Row],[Department / Specialty]]&\"L\"","v":"AAMCAcademicPublicAssistantMDNeurosciencesL"},"Neurosciences",4,"AAMC","Academic","Public","Assistant","MD","2021-2022",104000,{"$f":"(((AAMC_Raw_Data_for_FY22[[#This Row],[Median]]-AAMC_Raw_Data_for_FY22[[#This Row],[25th]])/25)*5) + AAMC_Raw_Data_for_FY22[[#This Row],[25th]]","v":108097.60000000001},{"$f":"(((AAMC_Raw_Data_for_FY22[[#This Row],[Median]]-AAMC_Raw_Data_for_FY22[[#This Row],[25th]])/25)*10) + AAMC_Raw_Data_for_FY22[[#This Row],[25th]]","v":112195.2},{"$f":"(((AAMC_Raw_Data_for_FY22[[#This Row],[Median]]-AAMC_Raw_Data_for_FY22[[#This Row],[25th]])/25)*15) + AAMC_Raw_Data_for_FY22[[#This Row],[25th]]","v":116292.8},{"$f":"(((AAMC_Raw_Data_for_FY22[[#This Row],[Median]]-AAMC_Raw_Data_for_FY22[[#This Row],[25th]])/25)*20) + AAMC_Raw_Data_for_FY22[[#This Row],[25th]]","v":120390.39999999999},124488,{"$f":"(((AAMC_Raw_Data_for_FY22[[#This Row],[75th]]-AAMC_Raw_Data_for_FY22[[#This Row],[Median]])/25)*5) + AAMC_Raw_Data_for_FY22[[#This Row],[Median]]","v":130390.39999999999},{"$f":"(((AAMC_Raw_Data_for_FY22[[#This Row],[75th]]-AAMC_Raw_Data_for_FY22[[#This Row],[Median]])/25)*10) + AAMC_Raw_Data_for_FY22[[#This Row],[Median]]","v":136292.79999999999},{"$f":"(((AAMC_Raw_Data_for_FY22[[#This Row],[75th]]-AAMC_Raw_Data_for_FY22[[#This Row],[Median]])/25)*15) + AAMC_Raw_Data_for_FY22[[#This Row],[Median]]","v":142195.20000000001},{"$f":"(((AAMC_Raw_Data_for_FY22[[#This Row],[75th]]-AAMC_Raw_Data_for_FY22[[#This Row],[Median]])/25)*20) + AAMC_Raw_Data_for_FY22[[#This Row],[Median]]","v":148097.60000000001},154000,{"$f":"(((AAMC_Raw_Data_for_FY22[[#This Row],[75th]]-AAMC_Raw_Data_for_FY22[[#This Row],[Median]])/25)*30) + AAMC_Raw_Data_for_FY22[[#This Row],[Median]]","v":159902.39999999999},{"$f":"(((AAMC_Raw_Data_for_FY22[[#This Row],[75th]]-AAMC_Raw_Data_for_FY22[[#This Row],[Median]])/25)*35) + AAMC_Raw_Data_for_FY22[[#This Row],[Median]]","v":165804.79999999999},{"$f":"(((AAMC_Raw_Data_for_FY22[[#This Row],[75th]]-AAMC_Raw_Data_for_FY22[[#This Row],[Median]])/25)*40) + AAMC_Raw_Data_for_FY22[[#This Row],[Median]]","v":171707.2}]
[{"$f":"AAMC_Raw_Data_for_FY22[[#This Row],[Source]]&AAMC_Raw_Data_for_FY22[[#This Row],[Type]]&AAMC_Raw_Data_for_FY22[[#This Row],[School Subset]]&AAMC_Raw_Data_for_FY22[[#This Row],[Rank]]&AAMC_Raw_Data_for_FY22[[#This Row],[Degree]]&AAMC_Raw_Data_for_FY22[[#This Row],[Department / Specialty]]&\"L\"","v":"AAMCAcademicPublicAssociateMDNeurosciencesL"},"Neurosciences",3,"AAMC","Academic","Public","Associate","MD","2021-2022",128950,{"$f":"(((AAMC_Raw_Data_for_FY22[[#This Row],[Median]]-AAMC_Raw_Data_for_FY22[[#This Row],[25th]])/25)*5) + AAMC_Raw_Data_for_FY22[[#This Row],[25th]]","v":130160},{"$f":"(((AAMC_Raw_Data_for_FY22[[#This Row],[Median]]-AAMC_Raw_Data_for_FY22[[#This Row],[25th]])/25)*10) + AAMC_Raw_Data_for_FY22[[#This Row],[25th]]","v":131370},{"$f":"(((AAMC_Raw_Data_for_FY22[[#This Row],[Median]]-AAMC_Raw_Data_for_FY22[[#This Row],[25th]])/25)*15) + AAMC_Raw_Data_for_FY22[[#This Row],[25th]]","v":132580},{"$f":"(((AAMC_Raw_Data_for_FY22[[#This Row],[Median]]-AAMC_Raw_Data_for_FY22[[#This Row],[25th]])/25)*20) + AAMC_Raw_Data_for_FY22[[#This Row],[25th]]","v":133790},135000,{"$f":"(((AAMC_Raw_Data_for_FY22[[#This Row],[75th]]-AAMC_Raw_Data_for_FY22[[#This Row],[Median]])/25)*5) + AAMC_Raw_Data_for_FY22[[#This Row],[Median]]","v":138166.79999999999},{"$f":"(((AAMC_Raw_Data_for_FY22[[#This Row],[75th]]-AAMC_Raw_Data_for_FY22[[#This Row],[Median]])/25)*10) + AAMC_Raw_Data_for_FY22[[#This Row],[Median]]","v":141333.6},{"$f":"(((AAMC_Raw_Data_for_FY22[[#This Row],[75th]]-AAMC_Raw_Data_for_FY22[[#This Row],[Median]])/25)*15) + AAMC_Raw_Data_for_FY22[[#This Row],[Median]]","v":144500.4},{"$f":"(((AAMC_Raw_Data_for_FY22[[#This Row],[75th]]-AAMC_Raw_Data_for_FY22[[#This Row],[Median]])/25)*20) + AAMC_Raw_Data_for_FY22[[#This Row],[Median]]","v":147667.20000000001},150834,{"$f":"(((AAMC_Raw_Data_for_FY22[[#This Row],[75th]]-AAMC_Raw_Data_for_FY22[[#This Row],[Median]])/25)*30) + AAMC_Raw_Data_for_FY22[[#This Row],[Median]]","v":154000.79999999999},{"$f":"(((AAMC_Raw_Data_for_FY22[[#This Row],[75th]]-AAMC_Raw_Data_for_FY22[[#This Row],[Median]])/25)*35) + AAMC_Raw_Data_for_FY22[[#This Row],[Median]]","v":157167.6},{"$f":"(((AAMC_Raw_Data_for_FY22[[#This Row],[75th]]-AAMC_Raw_Data_for_FY22[[#This Row],[Median]])/25)*40) + AAMC_Raw_Data_for_FY22[[#This Row],[Median]]","v":160334.39999999999}]
[{"$f":"AAMC_Raw_Data_for_FY22[[#This Row],[Source]]&AAMC_Raw_Data_for_FY22[[#This Row],[Type]]&AAMC_Raw_Data_for_FY22[[#This Row],[School Subset]]&AAMC_Raw_Data_for_FY22[[#This Row],[Rank]]&AAMC_Raw_Data_for_FY22[[#This Row],[Degree]]&AAMC_Raw_Data_for_FY22[[#This Row],[Department / Specialty]]&\"L\"","v":"AAMCAcademicPublicProfessorMDNeurosciencesL"},"Neurosciences",2,"AAMC","Academic","Public","Professor","MD","2021-2022",165369,{"$f":"(((AAMC_Raw_Data_for_FY22[[#This Row],[Median]]-AAMC_Raw_Data_for_FY22[[#This Row],[25th]])/25)*5) + AAMC_Raw_Data_for_FY22[[#This Row],[25th]]","v":171015.2},{"$f":"(((AAMC_Raw_Data_for_FY22[[#This Row],[Median]]-AAMC_Raw_Data_for_FY22[[#This Row],[25th]])/25)*10) + AAMC_Raw_Data_for_FY22[[#This Row],[25th]]","v":176661.4},{"$f":"(((AAMC_Raw_Data_for_FY22[[#This Row],[Median]]-AAMC_Raw_Data_for_FY22[[#This Row],[25th]])/25)*15) + AAMC_Raw_Data_for_FY22[[#This Row],[25th]]","v":182307.6},{"$f":"(((AAMC_Raw_Data_for_FY22[[#This Row],[Median]]-AAMC_Raw_Data_for_FY22[[#This Row],[25th]])/25)*20) + AAMC_Raw_Data_for_FY22[[#This Row],[25th]]","v":187953.8},193600,{"$f":"(((AAMC_Raw_Data_for_FY22[[#This Row],[75th]]-AAMC_Raw_Data_for_FY22[[#This Row],[Median]])/25)*5) + AAMC_Raw_Data_for_FY22[[#This Row],[Median]]","v":198530.6},{"$f":"(((AAMC_Raw_Data_for_FY22[[#This Row],[75th]]-AAMC_Raw_Data_for_FY22[[#This Row],[Median]])/25)*10) + AAMC_Raw_Data_for_FY22[[#This Row],[Median]]","v":203461.2},{"$f":"(((AAMC_Raw_Data_for_FY22[[#This Row],[75th]]-AAMC_Raw_Data_for_FY22[[#This Row],[Median]])/25)*15) + AAMC_Raw_Data_for_FY22[[#This Row],[Median]]","v":208391.8},{"$f":"(((AAMC_Raw_Data_for_FY22[[#This Row],[75th]]-AAMC_Raw_Data_for_FY22[[#This Row],[Median]])/25)*20) + AAMC_Raw_Data_for_FY22[[#This Row],[Median]]","v":213322.4},218253,{"$f":"(((AAMC_Raw_Data_for_FY22[[#This Row],[75th]]-AAMC_Raw_Data_for_FY22[[#This Row],[Median]])/25)*30) + AAMC_Raw_Data_for_FY22[[#This Row],[Median]]","v":223183.6},{"$f":"(((AAMC_Raw_Data_for_FY22[[#This Row],[75th]]-AAMC_Raw_Data_for_FY22[[#This Row],[Median]])/25)*35) + AAMC_Raw_Data_for_FY22[[#This Row],[Median]]","v":228114.2},{"$f":"(((AAMC_Raw_Data_for_FY22[[#This Row],[75th]]-AAMC_Raw_Data_for_FY22[[#This Row],[Median]])/25)*40) + AAMC_Raw_Data_for_FY22[[#This Row],[Median]]","v":233044.8}]
[{"$f":"AAMC_Raw_Data_for_FY22[[#This Row],[Source]]&AAMC_Raw_Data_for_FY22[[#This Row],[Type]]&AAMC_Raw_Data_for_FY22[[#This Row],[School Subset]]&AAMC_Raw_Data_for_FY22[[#This Row],[Rank]]&AAMC_Raw_Data_for_FY22[[#This Row],[Degree]]&AAMC_Raw_Data_for_FY22[[#This Row],[Department / Specialty]]&\"L\"","v":"AAMCAcademicPublicChiefMDNeurosciencesL"},"Neurosciences",6,"AAMC","Academic","Public","Chief","MD","2021-2022",null,{"$f":"(((AAMC_Raw_Data_for_FY22[[#This Row],[Median]]-AAMC_Raw_Data_for_FY22[[#This Row],[25th]])/25)*5) + AAMC_Raw_Data_for_FY22[[#This Row],[25th]]","v":0},{"$f":"(((AAMC_Raw_Data_for_FY22[[#This Row],[Median]]-AAMC_Raw_Data_for_FY22[[#This Row],[25th]])/25)*10) + AAMC_Raw_Data_for_FY22[[#This Row],[25th]]","v":0},{"$f":"(((AAMC_Raw_Data_for_FY22[[#This Row],[Median]]-AAMC_Raw_Data_for_FY22[[#This Row],[25th]])/25)*15) + AAMC_Raw_Data_for_FY22[[#This Row],[25th]]","v":0},{"$f":"(((AAMC_Raw_Data_for_FY22[[#This Row],[Median]]-AAMC_Raw_Data_for_FY22[[#This Row],[25th]])/25)*20) + AAMC_Raw_Data_for_FY22[[#This Row],[25th]]","v":0},null,{"$f":"(((AAMC_Raw_Data_for_FY22[[#This Row],[75th]]-AAMC_Raw_Data_for_FY22[[#This Row],[Median]])/25)*5) + AAMC_Raw_Data_for_FY22[[#This Row],[Median]]","v":0},{"$f":"(((AAMC_Raw_Data_for_FY22[[#This Row],[75th]]-AAMC_Raw_Data_for_FY22[[#This Row],[Median]])/25)*10) + AAMC_Raw_Data_for_FY22[[#This Row],[Median]]","v":0},{"$f":"(((AAMC_Raw_Data_for_FY22[[#This Row],[75th]]-AAMC_Raw_Data_for_FY22[[#This Row],[Median]])/25)*15) + AAMC_Raw_Data_for_FY22[[#This Row],[Median]]","v":0},{"$f":"(((AAMC_Raw_Data_for_FY22[[#This Row],[75th]]-AAMC_Raw_Data_for_FY22[[#This Row],[Median]])/25)*20) + AAMC_Raw_Data_for_FY22[[#This Row],[Median]]","v":0},null,{"$f":"(((AAMC_Raw_Data_for_FY22[[#This Row],[75th]]-AAMC_Raw_Data_for_FY22[[#This Row],[Median]])/25)*30) + AAMC_Raw_Data_for_FY22[[#This Row],[Median]]","v":0},{"$f":"(((AAMC_Raw_Data_for_FY22[[#This Row],[75th]]-AAMC_Raw_Data_for_FY22[[#This Row],[Median]])/25)*35) + AAMC_Raw_Data_for_FY22[[#This Row],[Median]]","v":0},{"$f":"(((AAMC_Raw_Data_for_FY22[[#This Row],[75th]]-AAMC_Raw_Data_for_FY22[[#This Row],[Median]])/25)*40) + AAMC_Raw_Data_for_FY22[[#This Row],[Median]]","v":0}]
[{"$f":"AAMC_Raw_Data_for_FY22[[#This Row],[Source]]&AAMC_Raw_Data_for_FY22[[#This Row],[Type]]&AAMC_Raw_Data_for_FY22[[#This Row],[School Subset]]&AAMC_Raw_Data_for_FY22[[#This Row],[Rank]]&AAMC_Raw_Data_for_FY22[[#This Row],[Degree]]&AAMC_Raw_Data_for_FY22[[#This Row],[Department / Specialty]]&\"L\"","v":"AAMCAcademicPublicChairMDNeurosciencesL"},"Neurosciences",1,"AAMC","Academic","Public","Chair","MD","2021-2022",336130,{"$f":"(((AAMC_Raw_Data_for_FY22[[#This Row],[Median]]-AAMC_Raw_Data_for_FY22[[#This Row],[25th]])/25)*5) + AAMC_Raw_Data_for_FY22[[#This Row],[25th]]","v":351066},{"$f":"(((AAMC_Raw_Data_for_FY22[[#This Row],[Median]]-AAMC_Raw_Data_for_FY22[[#This Row],[25th]])/25)*10) + AAMC_Raw_Data_for_FY22[[#This Row],[25th]]","v":366002},{"$f":"(((AAMC_Raw_Data_for_FY22[[#This Row],[Median]]-AAMC_Raw_Data_for_FY22[[#This Row],[25th]])/25)*15) + AAMC_Raw_Data_for_FY22[[#This Row],[25th]]","v":380938},{"$f":"(((AAMC_Raw_Data_for_FY22[[#This Row],[Median]]-AAMC_Raw_Data_for_FY22[[#This Row],[25th]])/25)*20) + AAMC_Raw_Data_for_FY22[[#This Row],[25th]]","v":395874},410810,{"$f":"(((AAMC_Raw_Data_for_FY22[[#This Row],[75th]]-AAMC_Raw_Data_for_FY22[[#This Row],[Median]])/25)*5) + AAMC_Raw_Data_for_FY22[[#This Row],[Median]]","v":424677},{"$f":"(((AAMC_Raw_Data_for_FY22[[#This Row],[75th]]-AAMC_Raw_Data_for_FY22[[#This Row],[Median]])/25)*10) + AAMC_Raw_Data_for_FY22[[#This Row],[Median]]","v":438544},{"$f":"(((AAMC_Raw_Data_for_FY22[[#This Row],[75th]]-AAMC_Raw_Data_for_FY22[[#This Row],[Median]])/25)*15) + AAMC_Raw_Data_for_FY22[[#This Row],[Median]]","v":452411},{"$f":"(((AAMC_Raw_Data_for_FY22[[#This Row],[75th]]-AAMC_Raw_Data_for_FY22[[#This Row],[Median]])/25)*20) + AAMC_Raw_Data_for_FY22[[#This Row],[Median]]","v":466278},480145,{"$f":"(((AAMC_Raw_Data_for_FY22[[#This Row],[75th]]-AAMC_Raw_Data_for_FY22[[#This Row],[Median]])/25)*30) + AAMC_Raw_Data_for_FY22[[#This Row],[Median]]","v":494012},{"$f":"(((AAMC_Raw_Data_for_FY22[[#This Row],[75th]]-AAMC_Raw_Data_for_FY22[[#This Row],[Median]])/25)*35) + AAMC_Raw_Data_for_FY22[[#This Row],[Median]]","v":507879},{"$f":"(((AAMC_Raw_Data_for_FY22[[#This Row],[75th]]-AAMC_Raw_Data_for_FY22[[#This Row],[Median]])/25)*40) + AAMC_Raw_Data_for_FY22[[#This Row],[Median]]","v":521746}]
[{"$f":"AAMC_Raw_Data_for_FY22[[#This Row],[Source]]&AAMC_Raw_Data_for_FY22[[#This Row],[Type]]&AAMC_Raw_Data_for_FY22[[#This Row],[School Subset]]&AAMC_Raw_Data_for_FY22[[#This Row],[Rank]]&AAMC_Raw_Data_for_FY22[[#This Row],[Degree]]&AAMC_Raw_Data_for_FY22[[#This Row],[Department / Specialty]]&\"L\"","v":"AAMCAcademicPublicInstructorMDPharmacologyL"},"Pharmacology",5,"AAMC","Academic","Public","Instructor","MD","2021-2022",null,{"$f":"(((AAMC_Raw_Data_for_FY22[[#This Row],[Median]]-AAMC_Raw_Data_for_FY22[[#This Row],[25th]])/25)*5) + AAMC_Raw_Data_for_FY22[[#This Row],[25th]]","v":0},{"$f":"(((AAMC_Raw_Data_for_FY22[[#This Row],[Median]]-AAMC_Raw_Data_for_FY22[[#This Row],[25th]])/25)*10) + AAMC_Raw_Data_for_FY22[[#This Row],[25th]]","v":0},{"$f":"(((AAMC_Raw_Data_for_FY22[[#This Row],[Median]]-AAMC_Raw_Data_for_FY22[[#This Row],[25th]])/25)*15) + AAMC_Raw_Data_for_FY22[[#This Row],[25th]]","v":0},{"$f":"(((AAMC_Raw_Data_for_FY22[[#This Row],[Median]]-AAMC_Raw_Data_for_FY22[[#This Row],[25th]])/25)*20) + AAMC_Raw_Data_for_FY22[[#This Row],[25th]]","v":0},null,{"$f":"(((AAMC_Raw_Data_for_FY22[[#This Row],[75th]]-AAMC_Raw_Data_for_FY22[[#This Row],[Median]])/25)*5) + AAMC_Raw_Data_for_FY22[[#This Row],[Median]]","v":0},{"$f":"(((AAMC_Raw_Data_for_FY22[[#This Row],[75th]]-AAMC_Raw_Data_for_FY22[[#This Row],[Median]])/25)*10) + AAMC_Raw_Data_for_FY22[[#This Row],[Median]]","v":0},{"$f":"(((AAMC_Raw_Data_for_FY22[[#This Row],[75th]]-AAMC_Raw_Data_for_FY22[[#This Row],[Median]])/25)*15) + AAMC_Raw_Data_for_FY22[[#This Row],[Median]]","v":0},{"$f":"(((AAMC_Raw_Data_for_FY22[[#This Row],[75th]]-AAMC_Raw_Data_for_FY22[[#This Row],[Median]])/25)*20) + AAMC_Raw_Data_for_FY22[[#This Row],[Median]]","v":0},null,{"$f":"(((AAMC_Raw_Data_for_FY22[[#This Row],[75th]]-AAMC_Raw_Data_for_FY22[[#This Row],[Median]])/25)*30) + AAMC_Raw_Data_for_FY22[[#This Row],[Median]]","v":0},{"$f":"(((AAMC_Raw_Data_for_FY22[[#This Row],[75th]]-AAMC_Raw_Data_for_FY22[[#This Row],[Median]])/25)*35) + AAMC_Raw_Data_for_FY22[[#This Row],[Median]]","v":0},{"$f":"(((AAMC_Raw_Data_for_FY22[[#This Row],[75th]]-AAMC_Raw_Data_for_FY22[[#This Row],[Median]])/25)*40) + AAMC_Raw_Data_for_FY22[[#This Row],[Median]]","v":0}]
[{"$f":"AAMC_Raw_Data_for_FY22[[#This Row],[Source]]&AAMC_Raw_Data_for_FY22[[#This Row],[Type]]&AAMC_Raw_Data_for_FY22[[#This Row],[School Subset]]&AAMC_Raw_Data_for_FY22[[#This Row],[Rank]]&AAMC_Raw_Data_for_FY22[[#This Row],[Degree]]&AAMC_Raw_Data_for_FY22[[#This Row],[Department / Specialty]]&\"L\"","v":"AAMCAcademicPublicAssistantMDPharmacologyL"},"Pharmacology",4,"AAMC","Academic","Public","Assistant","MD","2021-2022",75750,{"$f":"(((AAMC_Raw_Data_for_FY22[[#This Row],[Median]]-AAMC_Raw_Data_for_FY22[[#This Row],[25th]])/25)*5) + AAMC_Raw_Data_for_FY22[[#This Row],[25th]]","v":79600},{"$f":"(((AAMC_Raw_Data_for_FY22[[#This Row],[Median]]-AAMC_Raw_Data_for_FY22[[#This Row],[25th]])/25)*10) + AAMC_Raw_Data_for_FY22[[#This Row],[25th]]","v":83450},{"$f":"(((AAMC_Raw_Data_for_FY22[[#This Row],[Median]]-AAMC_Raw_Data_for_FY22[[#This Row],[25th]])/25)*15) + AAMC_Raw_Data_for_FY22[[#This Row],[25th]]","v":87300},{"$f":"(((AAMC_Raw_Data_for_FY22[[#This Row],[Median]]-AAMC_Raw_Data_for_FY22[[#This Row],[25th]])/25)*20) + AAMC_Raw_Data_for_FY22[[#This Row],[25th]]","v":91150},95000,{"$f":"(((AAMC_Raw_Data_for_FY22[[#This Row],[75th]]-AAMC_Raw_Data_for_FY22[[#This Row],[Median]])/25)*5) + AAMC_Raw_Data_for_FY22[[#This Row],[Median]]","v":98061.6},{"$f":"(((AAMC_Raw_Data_for_FY22[[#This Row],[75th]]-AAMC_Raw_Data_for_FY22[[#This Row],[Median]])/25)*10) + AAMC_Raw_Data_for_FY22[[#This Row],[Median]]","v":101123.2},{"$f":"(((AAMC_Raw_Data_for_FY22[[#This Row],[75th]]-AAMC_Raw_Data_for_FY22[[#This Row],[Median]])/25)*15) + AAMC_Raw_Data_for_FY22[[#This Row],[Median]]","v":104184.8},{"$f":"(((AAMC_Raw_Data_for_FY22[[#This Row],[75th]]-AAMC_Raw_Data_for_FY22[[#This Row],[Median]])/25)*20) + AAMC_Raw_Data_for_FY22[[#This Row],[Median]]","v":107246.39999999999},110308,{"$f":"(((AAMC_Raw_Data_for_FY22[[#This Row],[75th]]-AAMC_Raw_Data_for_FY22[[#This Row],[Median]])/25)*30) + AAMC_Raw_Data_for_FY22[[#This Row],[Median]]","v":113369.60000000001},{"$f":"(((AAMC_Raw_Data_for_FY22[[#This Row],[75th]]-AAMC_Raw_Data_for_FY22[[#This Row],[Median]])/25)*35) + AAMC_Raw_Data_for_FY22[[#This Row],[Median]]","v":116431.2},{"$f":"(((AAMC_Raw_Data_for_FY22[[#This Row],[75th]]-AAMC_Raw_Data_for_FY22[[#This Row],[Median]])/25)*40) + AAMC_Raw_Data_for_FY22[[#This Row],[Median]]","v":119492.8}]
[{"$f":"AAMC_Raw_Data_for_FY22[[#This Row],[Source]]&AAMC_Raw_Data_for_FY22[[#This Row],[Type]]&AAMC_Raw_Data_for_FY22[[#This Row],[School Subset]]&AAMC_Raw_Data_for_FY22[[#This Row],[Rank]]&AAMC_Raw_Data_for_FY22[[#This Row],[Degree]]&AAMC_Raw_Data_for_FY22[[#This Row],[Department / Specialty]]&\"L\"","v":"AAMCAcademicPublicAssociateMDPharmacologyL"},"Pharmacology",3,"AAMC","Academic","Public","Associate","MD","2021-2022",114991,{"$f":"(((AAMC_Raw_Data_for_FY22[[#This Row],[Median]]-AAMC_Raw_Data_for_FY22[[#This Row],[25th]])/25)*5) + AAMC_Raw_Data_for_FY22[[#This Row],[25th]]","v":117077.8},{"$f":"(((AAMC_Raw_Data_for_FY22[[#This Row],[Median]]-AAMC_Raw_Data_for_FY22[[#This Row],[25th]])/25)*10) + AAMC_Raw_Data_for_FY22[[#This Row],[25th]]","v":119164.6},{"$f":"(((AAMC_Raw_Data_for_FY22[[#This Row],[Median]]-AAMC_Raw_Data_for_FY22[[#This Row],[25th]])/25)*15) + AAMC_Raw_Data_for_FY22[[#This Row],[25th]]","v":121251.4},{"$f":"(((AAMC_Raw_Data_for_FY22[[#This Row],[Median]]-AAMC_Raw_Data_for_FY22[[#This Row],[25th]])/25)*20) + AAMC_Raw_Data_for_FY22[[#This Row],[25th]]","v":123338.2},125425,{"$f":"(((AAMC_Raw_Data_for_FY22[[#This Row],[75th]]-AAMC_Raw_Data_for_FY22[[#This Row],[Median]])/25)*5) + AAMC_Raw_Data_for_FY22[[#This Row],[Median]]","v":129608.6},{"$f":"(((AAMC_Raw_Data_for_FY22[[#This Row],[75th]]-AAMC_Raw_Data_for_FY22[[#This Row],[Median]])/25)*10) + AAMC_Raw_Data_for_FY22[[#This Row],[Median]]","v":133792.20000000001},{"$f":"(((AAMC_Raw_Data_for_FY22[[#This Row],[75th]]-AAMC_Raw_Data_for_FY22[[#This Row],[Median]])/25)*15) + AAMC_Raw_Data_for_FY22[[#This Row],[Median]]","v":137975.79999999999},{"$f":"(((AAMC_Raw_Data_for_FY22[[#This Row],[75th]]-AAMC_Raw_Data_for_FY22[[#This Row],[Median]])/25)*20) + AAMC_Raw_Data_for_FY22[[#This Row],[Median]]","v":142159.4},146343,{"$f":"(((AAMC_Raw_Data_for_FY22[[#This Row],[75th]]-AAMC_Raw_Data_for_FY22[[#This Row],[Median]])/25)*30) + AAMC_Raw_Data_for_FY22[[#This Row],[Median]]","v":150526.6},{"$f":"(((AAMC_Raw_Data_for_FY22[[#This Row],[75th]]-AAMC_Raw_Data_for_FY22[[#This Row],[Median]])/25)*35) + AAMC_Raw_Data_for_FY22[[#This Row],[Median]]","v":154710.20000000001},{"$f":"(((AAMC_Raw_Data_for_FY22[[#This Row],[75th]]-AAMC_Raw_Data_for_FY22[[#This Row],[Median]])/25)*40) + AAMC_Raw_Data_for_FY22[[#This Row],[Median]]","v":158893.79999999999}]
[{"$f":"AAMC_Raw_Data_for_FY22[[#This Row],[Source]]&AAMC_Raw_Data_for_FY22[[#This Row],[Type]]&AAMC_Raw_Data_for_FY22[[#This Row],[School Subset]]&AAMC_Raw_Data_for_FY22[[#This Row],[Rank]]&AAMC_Raw_Data_for_FY22[[#This Row],[Degree]]&AAMC_Raw_Data_for_FY22[[#This Row],[Department / Specialty]]&\"L\"","v":"AAMCAcademicPublicProfessorMDPharmacologyL"},"Pharmacology",2,"AAMC","Academic","Public","Professor","MD","2021-2022",171092,{"$f":"(((AAMC_Raw_Data_for_FY22[[#This Row],[Median]]-AAMC_Raw_Data_for_FY22[[#This Row],[25th]])/25)*5) + AAMC_Raw_Data_for_FY22[[#This Row],[25th]]","v":177273.8},{"$f":"(((AAMC_Raw_Data_for_FY22[[#This Row],[Median]]-AAMC_Raw_Data_for_FY22[[#This Row],[25th]])/25)*10) + AAMC_Raw_Data_for_FY22[[#This Row],[25th]]","v":183455.6},{"$f":"(((AAMC_Raw_Data_for_FY22[[#This Row],[Median]]-AAMC_Raw_Data_for_FY22[[#This Row],[25th]])/25)*15) + AAMC_Raw_Data_for_FY22[[#This Row],[25th]]","v":189637.4},{"$f":"(((AAMC_Raw_Data_for_FY22[[#This Row],[Median]]-AAMC_Raw_Data_for_FY22[[#This Row],[25th]])/25)*20) + AAMC_Raw_Data_for_FY22[[#This Row],[25th]]","v":195819.2},202001,{"$f":"(((AAMC_Raw_Data_for_FY22[[#This Row],[75th]]-AAMC_Raw_Data_for_FY22[[#This Row],[Median]])/25)*5) + AAMC_Raw_Data_for_FY22[[#This Row],[Median]]","v":208298.2},{"$f":"(((AAMC_Raw_Data_for_FY22[[#This Row],[75th]]-AAMC_Raw_Data_for_FY22[[#This Row],[Median]])/25)*10) + AAMC_Raw_Data_for_FY22[[#This Row],[Median]]","v":214595.4},{"$f":"(((AAMC_Raw_Data_for_FY22[[#This Row],[75th]]-AAMC_Raw_Data_for_FY22[[#This Row],[Median]])/25)*15) + AAMC_Raw_Data_for_FY22[[#This Row],[Median]]","v":220892.6},{"$f":"(((AAMC_Raw_Data_for_FY22[[#This Row],[75th]]-AAMC_Raw_Data_for_FY22[[#This Row],[Median]])/25)*20) + AAMC_Raw_Data_for_FY22[[#This Row],[Median]]","v":227189.8},233487,{"$f":"(((AAMC_Raw_Data_for_FY22[[#This Row],[75th]]-AAMC_Raw_Data_for_FY22[[#This Row],[Median]])/25)*30) + AAMC_Raw_Data_for_FY22[[#This Row],[Median]]","v":239784.2},{"$f":"(((AAMC_Raw_Data_for_FY22[[#This Row],[75th]]-AAMC_Raw_Data_for_FY22[[#This Row],[Median]])/25)*35) + AAMC_Raw_Data_for_FY22[[#This Row],[Median]]","v":246081.4},{"$f":"(((AAMC_Raw_Data_for_FY22[[#This Row],[75th]]-AAMC_Raw_Data_for_FY22[[#This Row],[Median]])/25)*40) + AAMC_Raw_Data_for_FY22[[#This Row],[Median]]","v":252378.6}]
[{"$f":"AAMC_Raw_Data_for_FY22[[#This Row],[Source]]&AAMC_Raw_Data_for_FY22[[#This Row],[Type]]&AAMC_Raw_Data_for_FY22[[#This Row],[School Subset]]&AAMC_Raw_Data_for_FY22[[#This Row],[Rank]]&AAMC_Raw_Data_for_FY22[[#This Row],[Degree]]&AAMC_Raw_Data_for_FY22[[#This Row],[Department / Specialty]]&\"L\"","v":"AAMCAcademicPublicChairMDPharmacologyL"},"Pharmacology",1,"AAMC","Academic","Public","Chair","MD","2021-2022",325646,{"$f":"(((AAMC_Raw_Data_for_FY22[[#This Row],[Median]]-AAMC_Raw_Data_for_FY22[[#This Row],[25th]])/25)*5) + AAMC_Raw_Data_for_FY22[[#This Row],[25th]]","v":331983},{"$f":"(((AAMC_Raw_Data_for_FY22[[#This Row],[Median]]-AAMC_Raw_Data_for_FY22[[#This Row],[25th]])/25)*10) + AAMC_Raw_Data_for_FY22[[#This Row],[25th]]","v":338320},{"$f":"(((AAMC_Raw_Data_for_FY22[[#This Row],[Median]]-AAMC_Raw_Data_for_FY22[[#This Row],[25th]])/25)*15) + AAMC_Raw_Data_for_FY22[[#This Row],[25th]]","v":344657},{"$f":"(((AAMC_Raw_Data_for_FY22[[#This Row],[Median]]-AAMC_Raw_Data_for_FY22[[#This Row],[25th]])/25)*20) + AAMC_Raw_Data_for_FY22[[#This Row],[25th]]","v":350994},357331,{"$f":"(((AAMC_Raw_Data_for_FY22[[#This Row],[75th]]-AAMC_Raw_Data_for_FY22[[#This Row],[Median]])/25)*5) + AAMC_Raw_Data_for_FY22[[#This Row],[Median]]","v":369985.4},{"$f":"(((AAMC_Raw_Data_for_FY22[[#This Row],[75th]]-AAMC_Raw_Data_for_FY22[[#This Row],[Median]])/25)*10) + AAMC_Raw_Data_for_FY22[[#This Row],[Median]]","v":382639.8},{"$f":"(((AAMC_Raw_Data_for_FY22[[#This Row],[75th]]-AAMC_Raw_Data_for_FY22[[#This Row],[Median]])/25)*15) + AAMC_Raw_Data_for_FY22[[#This Row],[Median]]","v":395294.2},{"$f":"(((AAMC_Raw_Data_for_FY22[[#This Row],[75th]]-AAMC_Raw_Data_for_FY22[[#This Row],[Median]])/25)*20) + AAMC_Raw_Data_for_FY22[[#This Row],[Median]]","v":407948.6},420603,{"$f":"(((AAMC_Raw_Data_for_FY22[[#This Row],[75th]]-AAMC_Raw_Data_for_FY22[[#This Row],[Median]])/25)*30) + AAMC_Raw_Data_for_FY22[[#This Row],[Median]]","v":433257.4},{"$f":"(((AAMC_Raw_Data_for_FY22[[#This Row],[75th]]-AAMC_Raw_Data_for_FY22[[#This Row],[Median]])/25)*35) + AAMC_Raw_Data_for_FY22[[#This Row],[Median]]","v":445911.8},{"$f":"(((AAMC_Raw_Data_for_FY22[[#This Row],[75th]]-AAMC_Raw_Data_for_FY22[[#This Row],[Median]])/25)*40) + AAMC_Raw_Data_for_FY22[[#This Row],[Median]]","v":458566.2}]
[{"$f":"AAMC_Raw_Data_for_FY22[[#This Row],[Source]]&AAMC_Raw_Data_for_FY22[[#This Row],[Type]]&AAMC_Raw_Data_for_FY22[[#This Row],[School Subset]]&AAMC_Raw_Data_for_FY22[[#This Row],[Rank]]&AAMC_Raw_Data_for_FY22[[#This Row],[Degree]]&AAMC_Raw_Data_for_FY22[[#This Row],[Department / Specialty]]&\"L\"","v":"AAMCAcademicPublicInstructorMDPhysiologyL"},"Physiology",5,"AAMC","Academic","Public","Instructor","MD","2021-2022",null,{"$f":"(((AAMC_Raw_Data_for_FY22[[#This Row],[Median]]-AAMC_Raw_Data_for_FY22[[#This Row],[25th]])/25)*5) + AAMC_Raw_Data_for_FY22[[#This Row],[25th]]","v":0},{"$f":"(((AAMC_Raw_Data_for_FY22[[#This Row],[Median]]-AAMC_Raw_Data_for_FY22[[#This Row],[25th]])/25)*10) + AAMC_Raw_Data_for_FY22[[#This Row],[25th]]","v":0},{"$f":"(((AAMC_Raw_Data_for_FY22[[#This Row],[Median]]-AAMC_Raw_Data_for_FY22[[#This Row],[25th]])/25)*15) + AAMC_Raw_Data_for_FY22[[#This Row],[25th]]","v":0},{"$f":"(((AAMC_Raw_Data_for_FY22[[#This Row],[Median]]-AAMC_Raw_Data_for_FY22[[#This Row],[25th]])/25)*20) + AAMC_Raw_Data_for_FY22[[#This Row],[25th]]","v":0},null,{"$f":"(((AAMC_Raw_Data_for_FY22[[#This Row],[75th]]-AAMC_Raw_Data_for_FY22[[#This Row],[Median]])/25)*5) + AAMC_Raw_Data_for_FY22[[#This Row],[Median]]","v":0},{"$f":"(((AAMC_Raw_Data_for_FY22[[#This Row],[75th]]-AAMC_Raw_Data_for_FY22[[#This Row],[Median]])/25)*10) + AAMC_Raw_Data_for_FY22[[#This Row],[Median]]","v":0},{"$f":"(((AAMC_Raw_Data_for_FY22[[#This Row],[75th]]-AAMC_Raw_Data_for_FY22[[#This Row],[Median]])/25)*15) + AAMC_Raw_Data_for_FY22[[#This Row],[Median]]","v":0},{"$f":"(((AAMC_Raw_Data_for_FY22[[#This Row],[75th]]-AAMC_Raw_Data_for_FY22[[#This Row],[Median]])/25)*20) + AAMC_Raw_Data_for_FY22[[#This Row],[Median]]","v":0},null,{"$f":"(((AAMC_Raw_Data_for_FY22[[#This Row],[75th]]-AAMC_Raw_Data_for_FY22[[#This Row],[Median]])/25)*30) + AAMC_Raw_Data_for_FY22[[#This Row],[Median]]","v":0},{"$f":"(((AAMC_Raw_Data_for_FY22[[#This Row],[75th]]-AAMC_Raw_Data_for_FY22[[#This Row],[Median]])/25)*35) + AAMC_Raw_Data_for_FY22[[#This Row],[Median]]","v":0},{"$f":"(((AAMC_Raw_Data_for_FY22[[#This Row],[75th]]-AAMC_Raw_Data_for_FY22[[#This Row],[Median]])/25)*40) + AAMC_Raw_Data_for_FY22[[#This Row],[Median]]","v":0}]
[{"$f":"AAMC_Raw_Data_for_FY22[[#This Row],[Source]]&AAMC_Raw_Data_for_FY22[[#This Row],[Type]]&AAMC_Raw_Data_for_FY22[[#This Row],[School Subset]]&AAMC_Raw_Data_for_FY22[[#This Row],[Rank]]&AAMC_Raw_Data_for_FY22[[#This Row],[Degree]]&AAMC_Raw_Data_for_FY22[[#This Row],[Department / Specialty]]&\"L\"","v":"AAMCAcademicPublicAssistantMDPhysiologyL"},"Physiology",4,"AAMC","Academic","Public","Assistant","MD","2021-2022",80054,{"$f":"(((AAMC_Raw_Data_for_FY22[[#This Row],[Median]]-AAMC_Raw_Data_for_FY22[[#This Row],[25th]])/25)*5) + AAMC_Raw_Data_for_FY22[[#This Row],[25th]]","v":81833.600000000006},{"$f":"(((AAMC_Raw_Data_for_FY22[[#This Row],[Median]]-AAMC_Raw_Data_for_FY22[[#This Row],[25th]])/25)*10) + AAMC_Raw_Data_for_FY22[[#This Row],[25th]]","v":83613.2},{"$f":"(((AAMC_Raw_Data_for_FY22[[#This Row],[Median]]-AAMC_Raw_Data_for_FY22[[#This Row],[25th]])/25)*15) + AAMC_Raw_Data_for_FY22[[#This Row],[25th]]","v":85392.8},{"$f":"(((AAMC_Raw_Data_for_FY22[[#This Row],[Median]]-AAMC_Raw_Data_for_FY22[[#This Row],[25th]])/25)*20) + AAMC_Raw_Data_for_FY22[[#This Row],[25th]]","v":87172.4},88952,{"$f":"(((AAMC_Raw_Data_for_FY22[[#This Row],[75th]]-AAMC_Raw_Data_for_FY22[[#This Row],[Median]])/25)*5) + AAMC_Raw_Data_for_FY22[[#This Row],[Median]]","v":92046},{"$f":"(((AAMC_Raw_Data_for_FY22[[#This Row],[75th]]-AAMC_Raw_Data_for_FY22[[#This Row],[Median]])/25)*10) + AAMC_Raw_Data_for_FY22[[#This Row],[Median]]","v":95140},{"$f":"(((AAMC_Raw_Data_for_FY22[[#This Row],[75th]]-AAMC_Raw_Data_for_FY22[[#This Row],[Median]])/25)*15) + AAMC_Raw_Data_for_FY22[[#This Row],[Median]]","v":98234},{"$f":"(((AAMC_Raw_Data_for_FY22[[#This Row],[75th]]-AAMC_Raw_Data_for_FY22[[#This Row],[Median]])/25)*20) + AAMC_Raw_Data_for_FY22[[#This Row],[Median]]","v":101328},104422,{"$f":"(((AAMC_Raw_Data_for_FY22[[#This Row],[75th]]-AAMC_Raw_Data_for_FY22[[#This Row],[Median]])/25)*30) + AAMC_Raw_Data_for_FY22[[#This Row],[Median]]","v":107516},{"$f":"(((AAMC_Raw_Data_for_FY22[[#This Row],[75th]]-AAMC_Raw_Data_for_FY22[[#This Row],[Median]])/25)*35) + AAMC_Raw_Data_for_FY22[[#This Row],[Median]]","v":110610},{"$f":"(((AAMC_Raw_Data_for_FY22[[#This Row],[75th]]-AAMC_Raw_Data_for_FY22[[#This Row],[Median]])/25)*40) + AAMC_Raw_Data_for_FY22[[#This Row],[Median]]","v":113704}]
[{"$f":"AAMC_Raw_Data_for_FY22[[#This Row],[Source]]&AAMC_Raw_Data_for_FY22[[#This Row],[Type]]&AAMC_Raw_Data_for_FY22[[#This Row],[School Subset]]&AAMC_Raw_Data_for_FY22[[#This Row],[Rank]]&AAMC_Raw_Data_for_FY22[[#This Row],[Degree]]&AAMC_Raw_Data_for_FY22[[#This Row],[Department / Specialty]]&\"L\"","v":"AAMCAcademicPublicAssociateMDPhysiologyL"},"Physiology",3,"AAMC","Academic","Public","Associate","MD","2021-2022",117330,{"$f":"(((AAMC_Raw_Data_for_FY22[[#This Row],[Median]]-AAMC_Raw_Data_for_FY22[[#This Row],[25th]])/25)*5) + AAMC_Raw_Data_for_FY22[[#This Row],[25th]]","v":119405.6},{"$f":"(((AAMC_Raw_Data_for_FY22[[#This Row],[Median]]-AAMC_Raw_Data_for_FY22[[#This Row],[25th]])/25)*10) + AAMC_Raw_Data_for_FY22[[#This Row],[25th]]","v":121481.2},{"$f":"(((AAMC_Raw_Data_for_FY22[[#This Row],[Median]]-AAMC_Raw_Data_for_FY22[[#This Row],[25th]])/25)*15) + AAMC_Raw_Data_for_FY22[[#This Row],[25th]]","v":123556.8},{"$f":"(((AAMC_Raw_Data_for_FY22[[#This Row],[Median]]-AAMC_Raw_Data_for_FY22[[#This Row],[25th]])/25)*20) + AAMC_Raw_Data_for_FY22[[#This Row],[25th]]","v":125632.4},127708,{"$f":"(((AAMC_Raw_Data_for_FY22[[#This Row],[75th]]-AAMC_Raw_Data_for_FY22[[#This Row],[Median]])/25)*5) + AAMC_Raw_Data_for_FY22[[#This Row],[Median]]","v":128276.4},{"$f":"(((AAMC_Raw_Data_for_FY22[[#This Row],[75th]]-AAMC_Raw_Data_for_FY22[[#This Row],[Median]])/25)*10) + AAMC_Raw_Data_for_FY22[[#This Row],[Median]]","v":128844.8},{"$f":"(((AAMC_Raw_Data_for_FY22[[#This Row],[75th]]-AAMC_Raw_Data_for_FY22[[#This Row],[Median]])/25)*15) + AAMC_Raw_Data_for_FY22[[#This Row],[Median]]","v":129413.2},{"$f":"(((AAMC_Raw_Data_for_FY22[[#This Row],[75th]]-AAMC_Raw_Data_for_FY22[[#This Row],[Median]])/25)*20) + AAMC_Raw_Data_for_FY22[[#This Row],[Median]]","v":129981.6},130550,{"$f":"(((AAMC_Raw_Data_for_FY22[[#This Row],[75th]]-AAMC_Raw_Data_for_FY22[[#This Row],[Median]])/25)*30) + AAMC_Raw_Data_for_FY22[[#This Row],[Median]]","v":131118.39999999999},{"$f":"(((AAMC_Raw_Data_for_FY22[[#This Row],[75th]]-AAMC_Raw_Data_for_FY22[[#This Row],[Median]])/25)*35) + AAMC_Raw_Data_for_FY22[[#This Row],[Median]]","v":131686.79999999999},{"$f":"(((AAMC_Raw_Data_for_FY22[[#This Row],[75th]]-AAMC_Raw_Data_for_FY22[[#This Row],[Median]])/25)*40) + AAMC_Raw_Data_for_FY22[[#This Row],[Median]]","v":132255.20000000001}]
[{"$f":"AAMC_Raw_Data_for_FY22[[#This Row],[Source]]&AAMC_Raw_Data_for_FY22[[#This Row],[Type]]&AAMC_Raw_Data_for_FY22[[#This Row],[School Subset]]&AAMC_Raw_Data_for_FY22[[#This Row],[Rank]]&AAMC_Raw_Data_for_FY22[[#This Row],[Degree]]&AAMC_Raw_Data_for_FY22[[#This Row],[Department / Specialty]]&\"L\"","v":"AAMCAcademicPublicProfessorMDPhysiologyL"},"Physiology",2,"AAMC","Academic","Public","Professor","MD","2021-2022",165719,{"$f":"(((AAMC_Raw_Data_for_FY22[[#This Row],[Median]]-AAMC_Raw_Data_for_FY22[[#This Row],[25th]])/25)*5) + AAMC_Raw_Data_for_FY22[[#This Row],[25th]]","v":171625.60000000001},{"$f":"(((AAMC_Raw_Data_for_FY22[[#This Row],[Median]]-AAMC_Raw_Data_for_FY22[[#This Row],[25th]])/25)*10) + AAMC_Raw_Data_for_FY22[[#This Row],[25th]]","v":177532.2},{"$f":"(((AAMC_Raw_Data_for_FY22[[#This Row],[Median]]-AAMC_Raw_Data_for_FY22[[#This Row],[25th]])/25)*15) + AAMC_Raw_Data_for_FY22[[#This Row],[25th]]","v":183438.8},{"$f":"(((AAMC_Raw_Data_for_FY22[[#This Row],[Median]]-AAMC_Raw_Data_for_FY22[[#This Row],[25th]])/25)*20) + AAMC_Raw_Data_for_FY22[[#This Row],[25th]]","v":189345.4},195252,{"$f":"(((AAMC_Raw_Data_for_FY22[[#This Row],[75th]]-AAMC_Raw_Data_for_FY22[[#This Row],[Median]])/25)*5) + AAMC_Raw_Data_for_FY22[[#This Row],[Median]]","v":207881.2},{"$f":"(((AAMC_Raw_Data_for_FY22[[#This Row],[75th]]-AAMC_Raw_Data_for_FY22[[#This Row],[Median]])/25)*10) + AAMC_Raw_Data_for_FY22[[#This Row],[Median]]","v":220510.4},{"$f":"(((AAMC_Raw_Data_for_FY22[[#This Row],[75th]]-AAMC_Raw_Data_for_FY22[[#This Row],[Median]])/25)*15) + AAMC_Raw_Data_for_FY22[[#This Row],[Median]]","v":233139.6},{"$f":"(((AAMC_Raw_Data_for_FY22[[#This Row],[75th]]-AAMC_Raw_Data_for_FY22[[#This Row],[Median]])/25)*20) + AAMC_Raw_Data_for_FY22[[#This Row],[Median]]","v":245768.8},258398,{"$f":"(((AAMC_Raw_Data_for_FY22[[#This Row],[75th]]-AAMC_Raw_Data_for_FY22[[#This Row],[Median]])/25)*30) + AAMC_Raw_Data_for_FY22[[#This Row],[Median]]","v":271027.20000000001},{"$f":"(((AAMC_Raw_Data_for_FY22[[#This Row],[75th]]-AAMC_Raw_Data_for_FY22[[#This Row],[Median]])/25)*35) + AAMC_Raw_Data_for_FY22[[#This Row],[Median]]","v":283656.40000000002},{"$f":"(((AAMC_Raw_Data_for_FY22[[#This Row],[75th]]-AAMC_Raw_Data_for_FY22[[#This Row],[Median]])/25)*40) + AAMC_Raw_Data_for_FY22[[#This Row],[Median]]","v":296285.59999999998}]
[{"$f":"AAMC_Raw_Data_for_FY22[[#This Row],[Source]]&AAMC_Raw_Data_for_FY22[[#This Row],[Type]]&AAMC_Raw_Data_for_FY22[[#This Row],[School Subset]]&AAMC_Raw_Data_for_FY22[[#This Row],[Rank]]&AAMC_Raw_Data_for_FY22[[#This Row],[Degree]]&AAMC_Raw_Data_for_FY22[[#This Row],[Department / Specialty]]&\"L\"","v":"AAMCAcademicPublicChiefMDPhysiologyL"},"Physiology",6,"AAMC","Academic","Public","Chief","MD","2021-2022",null,{"$f":"(((AAMC_Raw_Data_for_FY22[[#This Row],[Median]]-AAMC_Raw_Data_for_FY22[[#This Row],[25th]])/25)*5) + AAMC_Raw_Data_for_FY22[[#This Row],[25th]]","v":0},{"$f":"(((AAMC_Raw_Data_for_FY22[[#This Row],[Median]]-AAMC_Raw_Data_for_FY22[[#This Row],[25th]])/25)*10) + AAMC_Raw_Data_for_FY22[[#This Row],[25th]]","v":0},{"$f":"(((AAMC_Raw_Data_for_FY22[[#This Row],[Median]]-AAMC_Raw_Data_for_FY22[[#This Row],[25th]])/25)*15) + AAMC_Raw_Data_for_FY22[[#This Row],[25th]]","v":0},{"$f":"(((AAMC_Raw_Data_for_FY22[[#This Row],[Median]]-AAMC_Raw_Data_for_FY22[[#This Row],[25th]])/25)*20) + AAMC_Raw_Data_for_FY22[[#This Row],[25th]]","v":0},null,{"$f":"(((AAMC_Raw_Data_for_FY22[[#This Row],[75th]]-AAMC_Raw_Data_for_FY22[[#This Row],[Median]])/25)*5) + AAMC_Raw_Data_for_FY22[[#This Row],[Median]]","v":0},{"$f":"(((AAMC_Raw_Data_for_FY22[[#This Row],[75th]]-AAMC_Raw_Data_for_FY22[[#This Row],[Median]])/25)*10) + AAMC_Raw_Data_for_FY22[[#This Row],[Median]]","v":0},{"$f":"(((AAMC_Raw_Data_for_FY22[[#This Row],[75th]]-AAMC_Raw_Data_for_FY22[[#This Row],[Median]])/25)*15) + AAMC_Raw_Data_for_FY22[[#This Row],[Median]]","v":0},{"$f":"(((AAMC_Raw_Data_for_FY22[[#This Row],[75th]]-AAMC_Raw_Data_for_FY22[[#This Row],[Median]])/25)*20) + AAMC_Raw_Data_for_FY22[[#This Row],[Median]]","v":0},null,{"$f":"(((AAMC_Raw_Data_for_FY22[[#This Row],[75th]]-AAMC_Raw_Data_for_FY22[[#This Row],[Median]])/25)*30) + AAMC_Raw_Data_for_FY22[[#This Row],[Median]]","v":0},{"$f":"(((AAMC_Raw_Data_for_FY22[[#This Row],[75th]]-AAMC_Raw_Data_for_FY22[[#This Row],[Median]])/25)*35) + AAMC_Raw_Data_for_FY22[[#This Row],[Median]]","v":0},{"$f":"(((AAMC_Raw_Data_for_FY22[[#This Row],[75th]]-AAMC_Raw_Data_for_FY22[[#This Row],[Median]])/25)*40) + AAMC_Raw_Data_for_FY22[[#This Row],[Median]]","v":0}]
[{"$f":"AAMC_Raw_Data_for_FY22[[#This Row],[Source]]&AAMC_Raw_Data_for_FY22[[#This Row],[Type]]&AAMC_Raw_Data_for_FY22[[#This Row],[School Subset]]&AAMC_Raw_Data_for_FY22[[#This Row],[Rank]]&AAMC_Raw_Data_for_FY22[[#This Row],[Degree]]&AAMC_Raw_Data_for_FY22[[#This Row],[Department / Specialty]]&\"L\"","v":"AAMCAcademicPublicChairMDPhysiologyL"},"Physiology",1,"AAMC","Academic","Public","Chair","MD","2021-2022",282690,{"$f":"(((AAMC_Raw_Data_for_FY22[[#This Row],[Median]]-AAMC_Raw_Data_for_FY22[[#This Row],[25th]])/25)*5) + AAMC_Raw_Data_for_FY22[[#This Row],[25th]]","v":298010.8},{"$f":"(((AAMC_Raw_Data_for_FY22[[#This Row],[Median]]-AAMC_Raw_Data_for_FY22[[#This Row],[25th]])/25)*10) + AAMC_Raw_Data_for_FY22[[#This Row],[25th]]","v":313331.59999999998},{"$f":"(((AAMC_Raw_Data_for_FY22[[#This Row],[Median]]-AAMC_Raw_Data_for_FY22[[#This Row],[25th]])/25)*15) + AAMC_Raw_Data_for_FY22[[#This Row],[25th]]","v":328652.40000000002},{"$f":"(((AAMC_Raw_Data_for_FY22[[#This Row],[Median]]-AAMC_Raw_Data_for_FY22[[#This Row],[25th]])/25)*20) + AAMC_Raw_Data_for_FY22[[#This Row],[25th]]","v":343973.2},359294,{"$f":"(((AAMC_Raw_Data_for_FY22[[#This Row],[75th]]-AAMC_Raw_Data_for_FY22[[#This Row],[Median]])/25)*5) + AAMC_Raw_Data_for_FY22[[#This Row],[Median]]","v":367781.6},{"$f":"(((AAMC_Raw_Data_for_FY22[[#This Row],[75th]]-AAMC_Raw_Data_for_FY22[[#This Row],[Median]])/25)*10) + AAMC_Raw_Data_for_FY22[[#This Row],[Median]]","v":376269.2},{"$f":"(((AAMC_Raw_Data_for_FY22[[#This Row],[75th]]-AAMC_Raw_Data_for_FY22[[#This Row],[Median]])/25)*15) + AAMC_Raw_Data_for_FY22[[#This Row],[Median]]","v":384756.8},{"$f":"(((AAMC_Raw_Data_for_FY22[[#This Row],[75th]]-AAMC_Raw_Data_for_FY22[[#This Row],[Median]])/25)*20) + AAMC_Raw_Data_for_FY22[[#This Row],[Median]]","v":393244.4},401732,{"$f":"(((AAMC_Raw_Data_for_FY22[[#This Row],[75th]]-AAMC_Raw_Data_for_FY22[[#This Row],[Median]])/25)*30) + AAMC_Raw_Data_for_FY22[[#This Row],[Median]]","v":410219.6},{"$f":"(((AAMC_Raw_Data_for_FY22[[#This Row],[75th]]-AAMC_Raw_Data_for_FY22[[#This Row],[Median]])/25)*35) + AAMC_Raw_Data_for_FY22[[#This Row],[Median]]","v":418707.20000000001},{"$f":"(((AAMC_Raw_Data_for_FY22[[#This Row],[75th]]-AAMC_Raw_Data_for_FY22[[#This Row],[Median]])/25)*40) + AAMC_Raw_Data_for_FY22[[#This Row],[Median]]","v":427194.8}]
[{"$f":"AAMC_Raw_Data_for_FY22[[#This Row],[Source]]&AAMC_Raw_Data_for_FY22[[#This Row],[Type]]&AAMC_Raw_Data_for_FY22[[#This Row],[School Subset]]&AAMC_Raw_Data_for_FY22[[#This Row],[Rank]]&AAMC_Raw_Data_for_FY22[[#This Row],[Degree]]&AAMC_Raw_Data_for_FY22[[#This Row],[Department / Specialty]]&\"L\"","v":"AAMCAcademicPublicAssistantMDPopulation Health and Public HealthL"},"Population Health and Public Health",4,"AAMC","Academic","Public","Assistant","MD","2021-2022",110672,{"$f":"(((AAMC_Raw_Data_for_FY22[[#This Row],[Median]]-AAMC_Raw_Data_for_FY22[[#This Row],[25th]])/25)*5) + AAMC_Raw_Data_for_FY22[[#This Row],[25th]]","v":115594.4},{"$f":"(((AAMC_Raw_Data_for_FY22[[#This Row],[Median]]-AAMC_Raw_Data_for_FY22[[#This Row],[25th]])/25)*10) + AAMC_Raw_Data_for_FY22[[#This Row],[25th]]","v":120516.8},{"$f":"(((AAMC_Raw_Data_for_FY22[[#This Row],[Median]]-AAMC_Raw_Data_for_FY22[[#This Row],[25th]])/25)*15) + AAMC_Raw_Data_for_FY22[[#This Row],[25th]]","v":125439.2},{"$f":"(((AAMC_Raw_Data_for_FY22[[#This Row],[Median]]-AAMC_Raw_Data_for_FY22[[#This Row],[25th]])/25)*20) + AAMC_Raw_Data_for_FY22[[#This Row],[25th]]","v":130361.60000000001},135284,{"$f":"(((AAMC_Raw_Data_for_FY22[[#This Row],[75th]]-AAMC_Raw_Data_for_FY22[[#This Row],[Median]])/25)*5) + AAMC_Raw_Data_for_FY22[[#This Row],[Median]]","v":142044.4},{"$f":"(((AAMC_Raw_Data_for_FY22[[#This Row],[75th]]-AAMC_Raw_Data_for_FY22[[#This Row],[Median]])/25)*10) + AAMC_Raw_Data_for_FY22[[#This Row],[Median]]","v":148804.79999999999},{"$f":"(((AAMC_Raw_Data_for_FY22[[#This Row],[75th]]-AAMC_Raw_Data_for_FY22[[#This Row],[Median]])/25)*15) + AAMC_Raw_Data_for_FY22[[#This Row],[Median]]","v":155565.20000000001},{"$f":"(((AAMC_Raw_Data_for_FY22[[#This Row],[75th]]-AAMC_Raw_Data_for_FY22[[#This Row],[Median]])/25)*20) + AAMC_Raw_Data_for_FY22[[#This Row],[Median]]","v":162325.6},169086,{"$f":"(((AAMC_Raw_Data_for_FY22[[#This Row],[75th]]-AAMC_Raw_Data_for_FY22[[#This Row],[Median]])/25)*30) + AAMC_Raw_Data_for_FY22[[#This Row],[Median]]","v":175846.39999999999},{"$f":"(((AAMC_Raw_Data_for_FY22[[#This Row],[75th]]-AAMC_Raw_Data_for_FY22[[#This Row],[Median]])/25)*35) + AAMC_Raw_Data_for_FY22[[#This Row],[Median]]","v":182606.8},{"$f":"(((AAMC_Raw_Data_for_FY22[[#This Row],[75th]]-AAMC_Raw_Data_for_FY22[[#This Row],[Median]])/25)*40) + AAMC_Raw_Data_for_FY22[[#This Row],[Median]]","v":189367.2}]
[{"$f":"AAMC_Raw_Data_for_FY22[[#This Row],[Source]]&AAMC_Raw_Data_for_FY22[[#This Row],[Type]]&AAMC_Raw_Data_for_FY22[[#This Row],[School Subset]]&AAMC_Raw_Data_for_FY22[[#This Row],[Rank]]&AAMC_Raw_Data_for_FY22[[#This Row],[Degree]]&AAMC_Raw_Data_for_FY22[[#This Row],[Department / Specialty]]&\"L\"","v":"AAMCAcademicPublicAssociateMDPopulation Health and Public HealthL"},"Population Health and Public Health",3,"AAMC","Academic","Public","Associate","MD","2021-2022",135150,{"$f":"(((AAMC_Raw_Data_for_FY22[[#This Row],[Median]]-AAMC_Raw_Data_for_FY22[[#This Row],[25th]])/25)*5) + AAMC_Raw_Data_for_FY22[[#This Row],[25th]]","v":139665.79999999999},{"$f":"(((AAMC_Raw_Data_for_FY22[[#This Row],[Median]]-AAMC_Raw_Data_for_FY22[[#This Row],[25th]])/25)*10) + AAMC_Raw_Data_for_FY22[[#This Row],[25th]]","v":144181.6},{"$f":"(((AAMC_Raw_Data_for_FY22[[#This Row],[Median]]-AAMC_Raw_Data_for_FY22[[#This Row],[25th]])/25)*15) + AAMC_Raw_Data_for_FY22[[#This Row],[25th]]","v":148697.4},{"$f":"(((AAMC_Raw_Data_for_FY22[[#This Row],[Median]]-AAMC_Raw_Data_for_FY22[[#This Row],[25th]])/25)*20) + AAMC_Raw_Data_for_FY22[[#This Row],[25th]]","v":153213.20000000001},157729,{"$f":"(((AAMC_Raw_Data_for_FY22[[#This Row],[75th]]-AAMC_Raw_Data_for_FY22[[#This Row],[Median]])/25)*5) + AAMC_Raw_Data_for_FY22[[#This Row],[Median]]","v":163798.6},{"$f":"(((AAMC_Raw_Data_for_FY22[[#This Row],[75th]]-AAMC_Raw_Data_for_FY22[[#This Row],[Median]])/25)*10) + AAMC_Raw_Data_for_FY22[[#This Row],[Median]]","v":169868.2},{"$f":"(((AAMC_Raw_Data_for_FY22[[#This Row],[75th]]-AAMC_Raw_Data_for_FY22[[#This Row],[Median]])/25)*15) + AAMC_Raw_Data_for_FY22[[#This Row],[Median]]","v":175937.8},{"$f":"(((AAMC_Raw_Data_for_FY22[[#This Row],[75th]]-AAMC_Raw_Data_for_FY22[[#This Row],[Median]])/25)*20) + AAMC_Raw_Data_for_FY22[[#This Row],[Median]]","v":182007.4},188077,{"$f":"(((AAMC_Raw_Data_for_FY22[[#This Row],[75th]]-AAMC_Raw_Data_for_FY22[[#This Row],[Median]])/25)*30) + AAMC_Raw_Data_for_FY22[[#This Row],[Median]]","v":194146.6},{"$f":"(((AAMC_Raw_Data_for_FY22[[#This Row],[75th]]-AAMC_Raw_Data_for_FY22[[#This Row],[Median]])/25)*35) + AAMC_Raw_Data_for_FY22[[#This Row],[Median]]","v":200216.2},{"$f":"(((AAMC_Raw_Data_for_FY22[[#This Row],[75th]]-AAMC_Raw_Data_for_FY22[[#This Row],[Median]])/25)*40) + AAMC_Raw_Data_for_FY22[[#This Row],[Median]]","v":206285.8}]
[{"$f":"AAMC_Raw_Data_for_FY22[[#This Row],[Source]]&AAMC_Raw_Data_for_FY22[[#This Row],[Type]]&AAMC_Raw_Data_for_FY22[[#This Row],[School Subset]]&AAMC_Raw_Data_for_FY22[[#This Row],[Rank]]&AAMC_Raw_Data_for_FY22[[#This Row],[Degree]]&AAMC_Raw_Data_for_FY22[[#This Row],[Department / Specialty]]&\"L\"","v":"AAMCAcademicPublicProfessorMDPopulation Health and Public HealthL"},"Population Health and Public Health",2,"AAMC","Academic","Public","Professor","MD","2021-2022",215853,{"$f":"(((AAMC_Raw_Data_for_FY22[[#This Row],[Median]]-AAMC_Raw_Data_for_FY22[[#This Row],[25th]])/25)*5) + AAMC_Raw_Data_for_FY22[[#This Row],[25th]]","v":222932.8},{"$f":"(((AAMC_Raw_Data_for_FY22[[#This Row],[Median]]-AAMC_Raw_Data_for_FY22[[#This Row],[25th]])/25)*10) + AAMC_Raw_Data_for_FY22[[#This Row],[25th]]","v":230012.6},{"$f":"(((AAMC_Raw_Data_for_FY22[[#This Row],[Median]]-AAMC_Raw_Data_for_FY22[[#This Row],[25th]])/25)*15) + AAMC_Raw_Data_for_FY22[[#This Row],[25th]]","v":237092.4},{"$f":"(((AAMC_Raw_Data_for_FY22[[#This Row],[Median]]-AAMC_Raw_Data_for_FY22[[#This Row],[25th]])/25)*20) + AAMC_Raw_Data_for_FY22[[#This Row],[25th]]","v":244172.2},251252,{"$f":"(((AAMC_Raw_Data_for_FY22[[#This Row],[75th]]-AAMC_Raw_Data_for_FY22[[#This Row],[Median]])/25)*5) + AAMC_Raw_Data_for_FY22[[#This Row],[Median]]","v":258829.8},{"$f":"(((AAMC_Raw_Data_for_FY22[[#This Row],[75th]]-AAMC_Raw_Data_for_FY22[[#This Row],[Median]])/25)*10) + AAMC_Raw_Data_for_FY22[[#This Row],[Median]]","v":266407.59999999998},{"$f":"(((AAMC_Raw_Data_for_FY22[[#This Row],[75th]]-AAMC_Raw_Data_for_FY22[[#This Row],[Median]])/25)*15) + AAMC_Raw_Data_for_FY22[[#This Row],[Median]]","v":273985.40000000002},{"$f":"(((AAMC_Raw_Data_for_FY22[[#This Row],[75th]]-AAMC_Raw_Data_for_FY22[[#This Row],[Median]])/25)*20) + AAMC_Raw_Data_for_FY22[[#This Row],[Median]]","v":281563.2},289141,{"$f":"(((AAMC_Raw_Data_for_FY22[[#This Row],[75th]]-AAMC_Raw_Data_for_FY22[[#This Row],[Median]])/25)*30) + AAMC_Raw_Data_for_FY22[[#This Row],[Median]]","v":296718.8},{"$f":"(((AAMC_Raw_Data_for_FY22[[#This Row],[75th]]-AAMC_Raw_Data_for_FY22[[#This Row],[Median]])/25)*35) + AAMC_Raw_Data_for_FY22[[#This Row],[Median]]","v":304296.59999999998},{"$f":"(((AAMC_Raw_Data_for_FY22[[#This Row],[75th]]-AAMC_Raw_Data_for_FY22[[#This Row],[Median]])/25)*40) + AAMC_Raw_Data_for_FY22[[#This Row],[Median]]","v":311874.40000000002}]
[{"$f":"AAMC_Raw_Data_for_FY22[[#This Row],[Source]]&AAMC_Raw_Data_for_FY22[[#This Row],[Type]]&AAMC_Raw_Data_for_FY22[[#This Row],[School Subset]]&AAMC_Raw_Data_for_FY22[[#This Row],[Rank]]&AAMC_Raw_Data_for_FY22[[#This Row],[Degree]]&AAMC_Raw_Data_for_FY22[[#This Row],[Department / Specialty]]&\"L\"","v":"AAMCAcademicPublicChiefMDPopulation Health and Public HealthL"},"Population Health and Public Health",6,"AAMC","Academic","Public","Chief","MD","2021-2022",null,{"$f":"(((AAMC_Raw_Data_for_FY22[[#This Row],[Median]]-AAMC_Raw_Data_for_FY22[[#This Row],[25th]])/25)*5) + AAMC_Raw_Data_for_FY22[[#This Row],[25th]]","v":0},{"$f":"(((AAMC_Raw_Data_for_FY22[[#This Row],[Median]]-AAMC_Raw_Data_for_FY22[[#This Row],[25th]])/25)*10) + AAMC_Raw_Data_for_FY22[[#This Row],[25th]]","v":0},{"$f":"(((AAMC_Raw_Data_for_FY22[[#This Row],[Median]]-AAMC_Raw_Data_for_FY22[[#This Row],[25th]])/25)*15) + AAMC_Raw_Data_for_FY22[[#This Row],[25th]]","v":0},{"$f":"(((AAMC_Raw_Data_for_FY22[[#This Row],[Median]]-AAMC_Raw_Data_for_FY22[[#This Row],[25th]])/25)*20) + AAMC_Raw_Data_for_FY22[[#This Row],[25th]]","v":0},null,{"$f":"(((AAMC_Raw_Data_for_FY22[[#This Row],[75th]]-AAMC_Raw_Data_for_FY22[[#This Row],[Median]])/25)*5) + AAMC_Raw_Data_for_FY22[[#This Row],[Median]]","v":0},{"$f":"(((AAMC_Raw_Data_for_FY22[[#This Row],[75th]]-AAMC_Raw_Data_for_FY22[[#This Row],[Median]])/25)*10) + AAMC_Raw_Data_for_FY22[[#This Row],[Median]]","v":0},{"$f":"(((AAMC_Raw_Data_for_FY22[[#This Row],[75th]]-AAMC_Raw_Data_for_FY22[[#This Row],[Median]])/25)*15) + AAMC_Raw_Data_for_FY22[[#This Row],[Median]]","v":0},{"$f":"(((AAMC_Raw_Data_for_FY22[[#This Row],[75th]]-AAMC_Raw_Data_for_FY22[[#This Row],[Median]])/25)*20) + AAMC_Raw_Data_for_FY22[[#This Row],[Median]]","v":0},null,{"$f":"(((AAMC_Raw_Data_for_FY22[[#This Row],[75th]]-AAMC_Raw_Data_for_FY22[[#This Row],[Median]])/25)*30) + AAMC_Raw_Data_for_FY22[[#This Row],[Median]]","v":0},{"$f":"(((AAMC_Raw_Data_for_FY22[[#This Row],[75th]]-AAMC_Raw_Data_for_FY22[[#This Row],[Median]])/25)*35) + AAMC_Raw_Data_for_FY22[[#This Row],[Median]]","v":0},{"$f":"(((AAMC_Raw_Data_for_FY22[[#This Row],[75th]]-AAMC_Raw_Data_for_FY22[[#This Row],[Median]])/25)*40) + AAMC_Raw_Data_for_FY22[[#This Row],[Median]]","v":0}]
[{"$f":"AAMC_Raw_Data_for_FY22[[#This Row],[Source]]&AAMC_Raw_Data_for_FY22[[#This Row],[Type]]&AAMC_Raw_Data_for_FY22[[#This Row],[School Subset]]&AAMC_Raw_Data_for_FY22[[#This Row],[Rank]]&AAMC_Raw_Data_for_FY22[[#This Row],[Degree]]&AAMC_Raw_Data_for_FY22[[#This Row],[Department / Specialty]]&\"L\"","v":"AAMCAcademicPublicChairMDPopulation Health and Public HealthL"},"Population Health and Public Health",1,"AAMC","Academic","Public","Chair","MD","2021-2022",null,{"$f":"(((AAMC_Raw_Data_for_FY22[[#This Row],[Median]]-AAMC_Raw_Data_for_FY22[[#This Row],[25th]])/25)*5) + AAMC_Raw_Data_for_FY22[[#This Row],[25th]]","v":0},{"$f":"(((AAMC_Raw_Data_for_FY22[[#This Row],[Median]]-AAMC_Raw_Data_for_FY22[[#This Row],[25th]])/25)*10) + AAMC_Raw_Data_for_FY22[[#This Row],[25th]]","v":0},{"$f":"(((AAMC_Raw_Data_for_FY22[[#This Row],[Median]]-AAMC_Raw_Data_for_FY22[[#This Row],[25th]])/25)*15) + AAMC_Raw_Data_for_FY22[[#This Row],[25th]]","v":0},{"$f":"(((AAMC_Raw_Data_for_FY22[[#This Row],[Median]]-AAMC_Raw_Data_for_FY22[[#This Row],[25th]])/25)*20) + AAMC_Raw_Data_for_FY22[[#This Row],[25th]]","v":0},null,{"$f":"(((AAMC_Raw_Data_for_FY22[[#This Row],[75th]]-AAMC_Raw_Data_for_FY22[[#This Row],[Median]])/25)*5) + AAMC_Raw_Data_for_FY22[[#This Row],[Median]]","v":0},{"$f":"(((AAMC_Raw_Data_for_FY22[[#This Row],[75th]]-AAMC_Raw_Data_for_FY22[[#This Row],[Median]])/25)*10) + AAMC_Raw_Data_for_FY22[[#This Row],[Median]]","v":0},{"$f":"(((AAMC_Raw_Data_for_FY22[[#This Row],[75th]]-AAMC_Raw_Data_for_FY22[[#This Row],[Median]])/25)*15) + AAMC_Raw_Data_for_FY22[[#This Row],[Median]]","v":0},{"$f":"(((AAMC_Raw_Data_for_FY22[[#This Row],[75th]]-AAMC_Raw_Data_for_FY22[[#This Row],[Median]])/25)*20) + AAMC_Raw_Data_for_FY22[[#This Row],[Median]]","v":0},null,{"$f":"(((AAMC_Raw_Data_for_FY22[[#This Row],[75th]]-AAMC_Raw_Data_for_FY22[[#This Row],[Median]])/25)*30) + AAMC_Raw_Data_for_FY22[[#This Row],[Median]]","v":0},{"$f":"(((AAMC_Raw_Data_for_FY22[[#This Row],[75th]]-AAMC_Raw_Data_for_FY22[[#This Row],[Median]])/25)*35) + AAMC_Raw_Data_for_FY22[[#This Row],[Median]]","v":0},{"$f":"(((AAMC_Raw_Data_for_FY22[[#This Row],[75th]]-AAMC_Raw_Data_for_FY22[[#This Row],[Median]])/25)*40) + AAMC_Raw_Data_for_FY22[[#This Row],[Median]]","v":0}]
[{"$f":"AAMC_Raw_Data_for_FY22[[#This Row],[Source]]&AAMC_Raw_Data_for_FY22[[#This Row],[Type]]&AAMC_Raw_Data_for_FY22[[#This Row],[School Subset]]&AAMC_Raw_Data_for_FY22[[#This Row],[Rank]]&AAMC_Raw_Data_for_FY22[[#This Row],[Degree]]&AAMC_Raw_Data_for_FY22[[#This Row],[Department / Specialty]]&\"L\"","v":"AAMCAcademicPublicInstructorMDOther Basic SciencesL"},"Other Basic Sciences",5,"AAMC","Academic","Public","Instructor","MD","2021-2022",null,{"$f":"(((AAMC_Raw_Data_for_FY22[[#This Row],[Median]]-AAMC_Raw_Data_for_FY22[[#This Row],[25th]])/25)*5) + AAMC_Raw_Data_for_FY22[[#This Row],[25th]]","v":0},{"$f":"(((AAMC_Raw_Data_for_FY22[[#This Row],[Median]]-AAMC_Raw_Data_for_FY22[[#This Row],[25th]])/25)*10) + AAMC_Raw_Data_for_FY22[[#This Row],[25th]]","v":0},{"$f":"(((AAMC_Raw_Data_for_FY22[[#This Row],[Median]]-AAMC_Raw_Data_for_FY22[[#This Row],[25th]])/25)*15) + AAMC_Raw_Data_for_FY22[[#This Row],[25th]]","v":0},{"$f":"(((AAMC_Raw_Data_for_FY22[[#This Row],[Median]]-AAMC_Raw_Data_for_FY22[[#This Row],[25th]])/25)*20) + AAMC_Raw_Data_for_FY22[[#This Row],[25th]]","v":0},null,{"$f":"(((AAMC_Raw_Data_for_FY22[[#This Row],[75th]]-AAMC_Raw_Data_for_FY22[[#This Row],[Median]])/25)*5) + AAMC_Raw_Data_for_FY22[[#This Row],[Median]]","v":0},{"$f":"(((AAMC_Raw_Data_for_FY22[[#This Row],[75th]]-AAMC_Raw_Data_for_FY22[[#This Row],[Median]])/25)*10) + AAMC_Raw_Data_for_FY22[[#This Row],[Median]]","v":0},{"$f":"(((AAMC_Raw_Data_for_FY22[[#This Row],[75th]]-AAMC_Raw_Data_for_FY22[[#This Row],[Median]])/25)*15) + AAMC_Raw_Data_for_FY22[[#This Row],[Median]]","v":0},{"$f":"(((AAMC_Raw_Data_for_FY22[[#This Row],[75th]]-AAMC_Raw_Data_for_FY22[[#This Row],[Median]])/25)*20) + AAMC_Raw_Data_for_FY22[[#This Row],[Median]]","v":0},null,{"$f":"(((AAMC_Raw_Data_for_FY22[[#This Row],[75th]]-AAMC_Raw_Data_for_FY22[[#This Row],[Median]])/25)*30) + AAMC_Raw_Data_for_FY22[[#This Row],[Median]]","v":0},{"$f":"(((AAMC_Raw_Data_for_FY22[[#This Row],[75th]]-AAMC_Raw_Data_for_FY22[[#This Row],[Median]])/25)*35) + AAMC_Raw_Data_for_FY22[[#This Row],[Median]]","v":0},{"$f":"(((AAMC_Raw_Data_for_FY22[[#This Row],[75th]]-AAMC_Raw_Data_for_FY22[[#This Row],[Median]])/25)*40) + AAMC_Raw_Data_for_FY22[[#This Row],[Median]]","v":0}]
[{"$f":"AAMC_Raw_Data_for_FY22[[#This Row],[Source]]&AAMC_Raw_Data_for_FY22[[#This Row],[Type]]&AAMC_Raw_Data_for_FY22[[#This Row],[School Subset]]&AAMC_Raw_Data_for_FY22[[#This Row],[Rank]]&AAMC_Raw_Data_for_FY22[[#This Row],[Degree]]&AAMC_Raw_Data_for_FY22[[#This Row],[Department / Specialty]]&\"L\"","v":"AAMCAcademicPublicAssistantMDOther Basic SciencesL"},"Other Basic Sciences",4,"AAMC","Academic","Public","Assistant","MD","2021-2022",96761,{"$f":"(((AAMC_Raw_Data_for_FY22[[#This Row],[Median]]-AAMC_Raw_Data_for_FY22[[#This Row],[25th]])/25)*5) + AAMC_Raw_Data_for_FY22[[#This Row],[25th]]","v":100760.8},{"$f":"(((AAMC_Raw_Data_for_FY22[[#This Row],[Median]]-AAMC_Raw_Data_for_FY22[[#This Row],[25th]])/25)*10) + AAMC_Raw_Data_for_FY22[[#This Row],[25th]]","v":104760.6},{"$f":"(((AAMC_Raw_Data_for_FY22[[#This Row],[Median]]-AAMC_Raw_Data_for_FY22[[#This Row],[25th]])/25)*15) + AAMC_Raw_Data_for_FY22[[#This Row],[25th]]","v":108760.4},{"$f":"(((AAMC_Raw_Data_for_FY22[[#This Row],[Median]]-AAMC_Raw_Data_for_FY22[[#This Row],[25th]])/25)*20) + AAMC_Raw_Data_for_FY22[[#This Row],[25th]]","v":112760.2},116760,{"$f":"(((AAMC_Raw_Data_for_FY22[[#This Row],[75th]]-AAMC_Raw_Data_for_FY22[[#This Row],[Median]])/25)*5) + AAMC_Raw_Data_for_FY22[[#This Row],[Median]]","v":123408},{"$f":"(((AAMC_Raw_Data_for_FY22[[#This Row],[75th]]-AAMC_Raw_Data_for_FY22[[#This Row],[Median]])/25)*10) + AAMC_Raw_Data_for_FY22[[#This Row],[Median]]","v":130056},{"$f":"(((AAMC_Raw_Data_for_FY22[[#This Row],[75th]]-AAMC_Raw_Data_for_FY22[[#This Row],[Median]])/25)*15) + AAMC_Raw_Data_for_FY22[[#This Row],[Median]]","v":136704},{"$f":"(((AAMC_Raw_Data_for_FY22[[#This Row],[75th]]-AAMC_Raw_Data_for_FY22[[#This Row],[Median]])/25)*20) + AAMC_Raw_Data_for_FY22[[#This Row],[Median]]","v":143352},150000,{"$f":"(((AAMC_Raw_Data_for_FY22[[#This Row],[75th]]-AAMC_Raw_Data_for_FY22[[#This Row],[Median]])/25)*30) + AAMC_Raw_Data_for_FY22[[#This Row],[Median]]","v":156648},{"$f":"(((AAMC_Raw_Data_for_FY22[[#This Row],[75th]]-AAMC_Raw_Data_for_FY22[[#This Row],[Median]])/25)*35) + AAMC_Raw_Data_for_FY22[[#This Row],[Median]]","v":163296},{"$f":"(((AAMC_Raw_Data_for_FY22[[#This Row],[75th]]-AAMC_Raw_Data_for_FY22[[#This Row],[Median]])/25)*40) + AAMC_Raw_Data_for_FY22[[#This Row],[Median]]","v":169944}]
[{"$f":"AAMC_Raw_Data_for_FY22[[#This Row],[Source]]&AAMC_Raw_Data_for_FY22[[#This Row],[Type]]&AAMC_Raw_Data_for_FY22[[#This Row],[School Subset]]&AAMC_Raw_Data_for_FY22[[#This Row],[Rank]]&AAMC_Raw_Data_for_FY22[[#This Row],[Degree]]&AAMC_Raw_Data_for_FY22[[#This Row],[Department / Specialty]]&\"L\"","v":"AAMCAcademicPublicAssociateMDOther Basic SciencesL"},"Other Basic Sciences",3,"AAMC","Academic","Public","Associate","MD","2021-2022",106438,{"$f":"(((AAMC_Raw_Data_for_FY22[[#This Row],[Median]]-AAMC_Raw_Data_for_FY22[[#This Row],[25th]])/25)*5) + AAMC_Raw_Data_for_FY22[[#This Row],[25th]]","v":109150.39999999999},{"$f":"(((AAMC_Raw_Data_for_FY22[[#This Row],[Median]]-AAMC_Raw_Data_for_FY22[[#This Row],[25th]])/25)*10) + AAMC_Raw_Data_for_FY22[[#This Row],[25th]]","v":111862.8},{"$f":"(((AAMC_Raw_Data_for_FY22[[#This Row],[Median]]-AAMC_Raw_Data_for_FY22[[#This Row],[25th]])/25)*15) + AAMC_Raw_Data_for_FY22[[#This Row],[25th]]","v":114575.2},{"$f":"(((AAMC_Raw_Data_for_FY22[[#This Row],[Median]]-AAMC_Raw_Data_for_FY22[[#This Row],[25th]])/25)*20) + AAMC_Raw_Data_for_FY22[[#This Row],[25th]]","v":117287.6},120000,{"$f":"(((AAMC_Raw_Data_for_FY22[[#This Row],[75th]]-AAMC_Raw_Data_for_FY22[[#This Row],[Median]])/25)*5) + AAMC_Raw_Data_for_FY22[[#This Row],[Median]]","v":132900},{"$f":"(((AAMC_Raw_Data_for_FY22[[#This Row],[75th]]-AAMC_Raw_Data_for_FY22[[#This Row],[Median]])/25)*10) + AAMC_Raw_Data_for_FY22[[#This Row],[Median]]","v":145800},{"$f":"(((AAMC_Raw_Data_for_FY22[[#This Row],[75th]]-AAMC_Raw_Data_for_FY22[[#This Row],[Median]])/25)*15) + AAMC_Raw_Data_for_FY22[[#This Row],[Median]]","v":158700},{"$f":"(((AAMC_Raw_Data_for_FY22[[#This Row],[75th]]-AAMC_Raw_Data_for_FY22[[#This Row],[Median]])/25)*20) + AAMC_Raw_Data_for_FY22[[#This Row],[Median]]","v":171600},184500,{"$f":"(((AAMC_Raw_Data_for_FY22[[#This Row],[75th]]-AAMC_Raw_Data_for_FY22[[#This Row],[Median]])/25)*30) + AAMC_Raw_Data_for_FY22[[#This Row],[Median]]","v":197400},{"$f":"(((AAMC_Raw_Data_for_FY22[[#This Row],[75th]]-AAMC_Raw_Data_for_FY22[[#This Row],[Median]])/25)*35) + AAMC_Raw_Data_for_FY22[[#This Row],[Median]]","v":210300},{"$f":"(((AAMC_Raw_Data_for_FY22[[#This Row],[75th]]-AAMC_Raw_Data_for_FY22[[#This Row],[Median]])/25)*40) + AAMC_Raw_Data_for_FY22[[#This Row],[Median]]","v":223200}]
[{"$f":"AAMC_Raw_Data_for_FY22[[#This Row],[Source]]&AAMC_Raw_Data_for_FY22[[#This Row],[Type]]&AAMC_Raw_Data_for_FY22[[#This Row],[School Subset]]&AAMC_Raw_Data_for_FY22[[#This Row],[Rank]]&AAMC_Raw_Data_for_FY22[[#This Row],[Degree]]&AAMC_Raw_Data_for_FY22[[#This Row],[Department / Specialty]]&\"L\"","v":"AAMCAcademicPublicProfessorMDOther Basic SciencesL"},"Other Basic Sciences",2,"AAMC","Academic","Public","Professor","MD","2021-2022",171771,{"$f":"(((AAMC_Raw_Data_for_FY22[[#This Row],[Median]]-AAMC_Raw_Data_for_FY22[[#This Row],[25th]])/25)*5) + AAMC_Raw_Data_for_FY22[[#This Row],[25th]]","v":180975.8},{"$f":"(((AAMC_Raw_Data_for_FY22[[#This Row],[Median]]-AAMC_Raw_Data_for_FY22[[#This Row],[25th]])/25)*10) + AAMC_Raw_Data_for_FY22[[#This Row],[25th]]","v":190180.6},{"$f":"(((AAMC_Raw_Data_for_FY22[[#This Row],[Median]]-AAMC_Raw_Data_for_FY22[[#This Row],[25th]])/25)*15) + AAMC_Raw_Data_for_FY22[[#This Row],[25th]]","v":199385.4},{"$f":"(((AAMC_Raw_Data_for_FY22[[#This Row],[Median]]-AAMC_Raw_Data_for_FY22[[#This Row],[25th]])/25)*20) + AAMC_Raw_Data_for_FY22[[#This Row],[25th]]","v":208590.2},217795,{"$f":"(((AAMC_Raw_Data_for_FY22[[#This Row],[75th]]-AAMC_Raw_Data_for_FY22[[#This Row],[Median]])/25)*5) + AAMC_Raw_Data_for_FY22[[#This Row],[Median]]","v":227530.4},{"$f":"(((AAMC_Raw_Data_for_FY22[[#This Row],[75th]]-AAMC_Raw_Data_for_FY22[[#This Row],[Median]])/25)*10) + AAMC_Raw_Data_for_FY22[[#This Row],[Median]]","v":237265.8},{"$f":"(((AAMC_Raw_Data_for_FY22[[#This Row],[75th]]-AAMC_Raw_Data_for_FY22[[#This Row],[Median]])/25)*15) + AAMC_Raw_Data_for_FY22[[#This Row],[Median]]","v":247001.2},{"$f":"(((AAMC_Raw_Data_for_FY22[[#This Row],[75th]]-AAMC_Raw_Data_for_FY22[[#This Row],[Median]])/25)*20) + AAMC_Raw_Data_for_FY22[[#This Row],[Median]]","v":256736.6},266472,{"$f":"(((AAMC_Raw_Data_for_FY22[[#This Row],[75th]]-AAMC_Raw_Data_for_FY22[[#This Row],[Median]])/25)*30) + AAMC_Raw_Data_for_FY22[[#This Row],[Median]]","v":276207.40000000002},{"$f":"(((AAMC_Raw_Data_for_FY22[[#This Row],[75th]]-AAMC_Raw_Data_for_FY22[[#This Row],[Median]])/25)*35) + AAMC_Raw_Data_for_FY22[[#This Row],[Median]]","v":285942.8},{"$f":"(((AAMC_Raw_Data_for_FY22[[#This Row],[75th]]-AAMC_Raw_Data_for_FY22[[#This Row],[Median]])/25)*40) + AAMC_Raw_Data_for_FY22[[#This Row],[Median]]","v":295678.2}]
[{"$f":"AAMC_Raw_Data_for_FY22[[#This Row],[Source]]&AAMC_Raw_Data_for_FY22[[#This Row],[Type]]&AAMC_Raw_Data_for_FY22[[#This Row],[School Subset]]&AAMC_Raw_Data_for_FY22[[#This Row],[Rank]]&AAMC_Raw_Data_for_FY22[[#This Row],[Degree]]&AAMC_Raw_Data_for_FY22[[#This Row],[Department / Specialty]]&\"L\"","v":"AAMCAcademicPublicChiefMDOther Basic SciencesL"},"Other Basic Sciences",6,"AAMC","Academic","Public","Chief","MD","2021-2022",null,{"$f":"(((AAMC_Raw_Data_for_FY22[[#This Row],[Median]]-AAMC_Raw_Data_for_FY22[[#This Row],[25th]])/25)*5) + AAMC_Raw_Data_for_FY22[[#This Row],[25th]]","v":0},{"$f":"(((AAMC_Raw_Data_for_FY22[[#This Row],[Median]]-AAMC_Raw_Data_for_FY22[[#This Row],[25th]])/25)*10) + AAMC_Raw_Data_for_FY22[[#This Row],[25th]]","v":0},{"$f":"(((AAMC_Raw_Data_for_FY22[[#This Row],[Median]]-AAMC_Raw_Data_for_FY22[[#This Row],[25th]])/25)*15) + AAMC_Raw_Data_for_FY22[[#This Row],[25th]]","v":0},{"$f":"(((AAMC_Raw_Data_for_FY22[[#This Row],[Median]]-AAMC_Raw_Data_for_FY22[[#This Row],[25th]])/25)*20) + AAMC_Raw_Data_for_FY22[[#This Row],[25th]]","v":0},null,{"$f":"(((AAMC_Raw_Data_for_FY22[[#This Row],[75th]]-AAMC_Raw_Data_for_FY22[[#This Row],[Median]])/25)*5) + AAMC_Raw_Data_for_FY22[[#This Row],[Median]]","v":0},{"$f":"(((AAMC_Raw_Data_for_FY22[[#This Row],[75th]]-AAMC_Raw_Data_for_FY22[[#This Row],[Median]])/25)*10) + AAMC_Raw_Data_for_FY22[[#This Row],[Median]]","v":0},{"$f":"(((AAMC_Raw_Data_for_FY22[[#This Row],[75th]]-AAMC_Raw_Data_for_FY22[[#This Row],[Median]])/25)*15) + AAMC_Raw_Data_for_FY22[[#This Row],[Median]]","v":0},{"$f":"(((AAMC_Raw_Data_for_FY22[[#This Row],[75th]]-AAMC_Raw_Data_for_FY22[[#This Row],[Median]])/25)*20) + AAMC_Raw_Data_for_FY22[[#This Row],[Median]]","v":0},null,{"$f":"(((AAMC_Raw_Data_for_FY22[[#This Row],[75th]]-AAMC_Raw_Data_for_FY22[[#This Row],[Median]])/25)*30) + AAMC_Raw_Data_for_FY22[[#This Row],[Median]]","v":0},{"$f":"(((AAMC_Raw_Data_for_FY22[[#This Row],[75th]]-AAMC_Raw_Data_for_FY22[[#This Row],[Median]])/25)*35) + AAMC_Raw_Data_for_FY22[[#This Row],[Median]]","v":0},{"$f":"(((AAMC_Raw_Data_for_FY22[[#This Row],[75th]]-AAMC_Raw_Data_for_FY22[[#This Row],[Median]])/25)*40) + AAMC_Raw_Data_for_FY22[[#This Row],[Median]]","v":0}]
[{"$f":"AAMC_Raw_Data_for_FY22[[#This Row],[Source]]&AAMC_Raw_Data_for_FY22[[#This Row],[Type]]&AAMC_Raw_Data_for_FY22[[#This Row],[School Subset]]&AAMC_Raw_Data_for_FY22[[#This Row],[Rank]]&AAMC_Raw_Data_for_FY22[[#This Row],[Degree]]&AAMC_Raw_Data_for_FY22[[#This Row],[Department / Specialty]]&\"L\"","v":"AAMCAcademicPublicChairMDOther Basic SciencesL"},"Other Basic Sciences",1,"AAMC","Academic","Public","Chair","MD","2021-2022",342212,{"$f":"(((AAMC_Raw_Data_for_FY22[[#This Row],[Median]]-AAMC_Raw_Data_for_FY22[[#This Row],[25th]])/25)*5) + AAMC_Raw_Data_for_FY22[[#This Row],[25th]]","v":349314.6},{"$f":"(((AAMC_Raw_Data_for_FY22[[#This Row],[Median]]-AAMC_Raw_Data_for_FY22[[#This Row],[25th]])/25)*10) + AAMC_Raw_Data_for_FY22[[#This Row],[25th]]","v":356417.2},{"$f":"(((AAMC_Raw_Data_for_FY22[[#This Row],[Median]]-AAMC_Raw_Data_for_FY22[[#This Row],[25th]])/25)*15) + AAMC_Raw_Data_for_FY22[[#This Row],[25th]]","v":363519.8},{"$f":"(((AAMC_Raw_Data_for_FY22[[#This Row],[Median]]-AAMC_Raw_Data_for_FY22[[#This Row],[25th]])/25)*20) + AAMC_Raw_Data_for_FY22[[#This Row],[25th]]","v":370622.4},377725,{"$f":"(((AAMC_Raw_Data_for_FY22[[#This Row],[75th]]-AAMC_Raw_Data_for_FY22[[#This Row],[Median]])/25)*5) + AAMC_Raw_Data_for_FY22[[#This Row],[Median]]","v":392980},{"$f":"(((AAMC_Raw_Data_for_FY22[[#This Row],[75th]]-AAMC_Raw_Data_for_FY22[[#This Row],[Median]])/25)*10) + AAMC_Raw_Data_for_FY22[[#This Row],[Median]]","v":408235},{"$f":"(((AAMC_Raw_Data_for_FY22[[#This Row],[75th]]-AAMC_Raw_Data_for_FY22[[#This Row],[Median]])/25)*15) + AAMC_Raw_Data_for_FY22[[#This Row],[Median]]","v":423490},{"$f":"(((AAMC_Raw_Data_for_FY22[[#This Row],[75th]]-AAMC_Raw_Data_for_FY22[[#This Row],[Median]])/25)*20) + AAMC_Raw_Data_for_FY22[[#This Row],[Median]]","v":438745},454000,{"$f":"(((AAMC_Raw_Data_for_FY22[[#This Row],[75th]]-AAMC_Raw_Data_for_FY22[[#This Row],[Median]])/25)*30) + AAMC_Raw_Data_for_FY22[[#This Row],[Median]]","v":469255},{"$f":"(((AAMC_Raw_Data_for_FY22[[#This Row],[75th]]-AAMC_Raw_Data_for_FY22[[#This Row],[Median]])/25)*35) + AAMC_Raw_Data_for_FY22[[#This Row],[Median]]","v":484510},{"$f":"(((AAMC_Raw_Data_for_FY22[[#This Row],[75th]]-AAMC_Raw_Data_for_FY22[[#This Row],[Median]])/25)*40) + AAMC_Raw_Data_for_FY22[[#This Row],[Median]]","v":499765}]
[{"$f":"AAMC_Raw_Data_for_FY22[[#This Row],[Source]]&AAMC_Raw_Data_for_FY22[[#This Row],[Type]]&AAMC_Raw_Data_for_FY22[[#This Row],[School Subset]]&AAMC_Raw_Data_for_FY22[[#This Row],[Rank]]&AAMC_Raw_Data_for_FY22[[#This Row],[Degree]]&AAMC_Raw_Data_for_FY22[[#This Row],[Department / Specialty]]&\"L\"","v":"AAMCAcademicAllInstructorPhDBasic Sciences TotalL"},"Basic Sciences Total",5,"AAMC","Academic","All","Instructor","PhD","2021-2022",61800,{"$f":"(((AAMC_Raw_Data_for_FY22[[#This Row],[Median]]-AAMC_Raw_Data_for_FY22[[#This Row],[25th]])/25)*5) + AAMC_Raw_Data_for_FY22[[#This Row],[25th]]","v":63194.400000000001},{"$f":"(((AAMC_Raw_Data_for_FY22[[#This Row],[Median]]-AAMC_Raw_Data_for_FY22[[#This Row],[25th]])/25)*10) + AAMC_Raw_Data_for_FY22[[#This Row],[25th]]","v":64588.800000000003},{"$f":"(((AAMC_Raw_Data_for_FY22[[#This Row],[Median]]-AAMC_Raw_Data_for_FY22[[#This Row],[25th]])/25)*15) + AAMC_Raw_Data_for_FY22[[#This Row],[25th]]","v":65983.199999999997},{"$f":"(((AAMC_Raw_Data_for_FY22[[#This Row],[Median]]-AAMC_Raw_Data_for_FY22[[#This Row],[25th]])/25)*20) + AAMC_Raw_Data_for_FY22[[#This Row],[25th]]","v":67377.600000000006},68772,{"$f":"(((AAMC_Raw_Data_for_FY22[[#This Row],[75th]]-AAMC_Raw_Data_for_FY22[[#This Row],[Median]])/25)*5) + AAMC_Raw_Data_for_FY22[[#This Row],[Median]]","v":71091.8},{"$f":"(((AAMC_Raw_Data_for_FY22[[#This Row],[75th]]-AAMC_Raw_Data_for_FY22[[#This Row],[Median]])/25)*10) + AAMC_Raw_Data_for_FY22[[#This Row],[Median]]","v":73411.600000000006},{"$f":"(((AAMC_Raw_Data_for_FY22[[#This Row],[75th]]-AAMC_Raw_Data_for_FY22[[#This Row],[Median]])/25)*15) + AAMC_Raw_Data_for_FY22[[#This Row],[Median]]","v":75731.399999999994},{"$f":"(((AAMC_Raw_Data_for_FY22[[#This Row],[75th]]-AAMC_Raw_Data_for_FY22[[#This Row],[Median]])/25)*20) + AAMC_Raw_Data_for_FY22[[#This Row],[Median]]","v":78051.199999999997},80371,{"$f":"(((AAMC_Raw_Data_for_FY22[[#This Row],[75th]]-AAMC_Raw_Data_for_FY22[[#This Row],[Median]])/25)*30) + AAMC_Raw_Data_for_FY22[[#This Row],[Median]]","v":82690.8},{"$f":"(((AAMC_Raw_Data_for_FY22[[#This Row],[75th]]-AAMC_Raw_Data_for_FY22[[#This Row],[Median]])/25)*35) + AAMC_Raw_Data_for_FY22[[#This Row],[Median]]","v":85010.6},{"$f":"(((AAMC_Raw_Data_for_FY22[[#This Row],[75th]]-AAMC_Raw_Data_for_FY22[[#This Row],[Median]])/25)*40) + AAMC_Raw_Data_for_FY22[[#This Row],[Median]]","v":87330.4}]
[{"$f":"AAMC_Raw_Data_for_FY22[[#This Row],[Source]]&AAMC_Raw_Data_for_FY22[[#This Row],[Type]]&AAMC_Raw_Data_for_FY22[[#This Row],[School Subset]]&AAMC_Raw_Data_for_FY22[[#This Row],[Rank]]&AAMC_Raw_Data_for_FY22[[#This Row],[Degree]]&AAMC_Raw_Data_for_FY22[[#This Row],[Department / Specialty]]&\"L\"","v":"AAMCAcademicAllAssistantPhDBasic Sciences TotalL"},"Basic Sciences Total",4,"AAMC","Academic","All","Assistant","PhD","2021-2022",91354,{"$f":"(((AAMC_Raw_Data_for_FY22[[#This Row],[Median]]-AAMC_Raw_Data_for_FY22[[#This Row],[25th]])/25)*5) + AAMC_Raw_Data_for_FY22[[#This Row],[25th]]","v":95083.199999999997},{"$f":"(((AAMC_Raw_Data_for_FY22[[#This Row],[Median]]-AAMC_Raw_Data_for_FY22[[#This Row],[25th]])/25)*10) + AAMC_Raw_Data_for_FY22[[#This Row],[25th]]","v":98812.4},{"$f":"(((AAMC_Raw_Data_for_FY22[[#This Row],[Median]]-AAMC_Raw_Data_for_FY22[[#This Row],[25th]])/25)*15) + AAMC_Raw_Data_for_FY22[[#This Row],[25th]]","v":102541.6},{"$f":"(((AAMC_Raw_Data_for_FY22[[#This Row],[Median]]-AAMC_Raw_Data_for_FY22[[#This Row],[25th]])/25)*20) + AAMC_Raw_Data_for_FY22[[#This Row],[25th]]","v":106270.8},110000,{"$f":"(((AAMC_Raw_Data_for_FY22[[#This Row],[75th]]-AAMC_Raw_Data_for_FY22[[#This Row],[Median]])/25)*5) + AAMC_Raw_Data_for_FY22[[#This Row],[Median]]","v":113800},{"$f":"(((AAMC_Raw_Data_for_FY22[[#This Row],[75th]]-AAMC_Raw_Data_for_FY22[[#This Row],[Median]])/25)*10) + AAMC_Raw_Data_for_FY22[[#This Row],[Median]]","v":117600},{"$f":"(((AAMC_Raw_Data_for_FY22[[#This Row],[75th]]-AAMC_Raw_Data_for_FY22[[#This Row],[Median]])/25)*15) + AAMC_Raw_Data_for_FY22[[#This Row],[Median]]","v":121400},{"$f":"(((AAMC_Raw_Data_for_FY22[[#This Row],[75th]]-AAMC_Raw_Data_for_FY22[[#This Row],[Median]])/25)*20) + AAMC_Raw_Data_for_FY22[[#This Row],[Median]]","v":125200},129000,{"$f":"(((AAMC_Raw_Data_for_FY22[[#This Row],[75th]]-AAMC_Raw_Data_for_FY22[[#This Row],[Median]])/25)*30) + AAMC_Raw_Data_for_FY22[[#This Row],[Median]]","v":132800},{"$f":"(((AAMC_Raw_Data_for_FY22[[#This Row],[75th]]-AAMC_Raw_Data_for_FY22[[#This Row],[Median]])/25)*35) + AAMC_Raw_Data_for_FY22[[#This Row],[Median]]","v":136600},{"$f":"(((AAMC_Raw_Data_for_FY22[[#This Row],[75th]]-AAMC_Raw_Data_for_FY22[[#This Row],[Median]])/25)*40) + AAMC_Raw_Data_for_FY22[[#This Row],[Median]]","v":140400}]
[{"$f":"AAMC_Raw_Data_for_FY22[[#This Row],[Source]]&AAMC_Raw_Data_for_FY22[[#This Row],[Type]]&AAMC_Raw_Data_for_FY22[[#This Row],[School Subset]]&AAMC_Raw_Data_for_FY22[[#This Row],[Rank]]&AAMC_Raw_Data_for_FY22[[#This Row],[Degree]]&AAMC_Raw_Data_for_FY22[[#This Row],[Department / Specialty]]&\"L\"","v":"AAMCAcademicAllAssociatePhDBasic Sciences TotalL"},"Basic Sciences Total",3,"AAMC","Academic","All","Associate","PhD","2021-2022",121439,{"$f":"(((AAMC_Raw_Data_for_FY22[[#This Row],[Median]]-AAMC_Raw_Data_for_FY22[[#This Row],[25th]])/25)*5) + AAMC_Raw_Data_for_FY22[[#This Row],[25th]]","v":125151.2},{"$f":"(((AAMC_Raw_Data_for_FY22[[#This Row],[Median]]-AAMC_Raw_Data_for_FY22[[#This Row],[25th]])/25)*10) + AAMC_Raw_Data_for_FY22[[#This Row],[25th]]","v":128863.4},{"$f":"(((AAMC_Raw_Data_for_FY22[[#This Row],[Median]]-AAMC_Raw_Data_for_FY22[[#This Row],[25th]])/25)*15) + AAMC_Raw_Data_for_FY22[[#This Row],[25th]]","v":132575.6},{"$f":"(((AAMC_Raw_Data_for_FY22[[#This Row],[Median]]-AAMC_Raw_Data_for_FY22[[#This Row],[25th]])/25)*20) + AAMC_Raw_Data_for_FY22[[#This Row],[25th]]","v":136287.79999999999},140000,{"$f":"(((AAMC_Raw_Data_for_FY22[[#This Row],[75th]]-AAMC_Raw_Data_for_FY22[[#This Row],[Median]])/25)*5) + AAMC_Raw_Data_for_FY22[[#This Row],[Median]]","v":144560},{"$f":"(((AAMC_Raw_Data_for_FY22[[#This Row],[75th]]-AAMC_Raw_Data_for_FY22[[#This Row],[Median]])/25)*10) + AAMC_Raw_Data_for_FY22[[#This Row],[Median]]","v":149120},{"$f":"(((AAMC_Raw_Data_for_FY22[[#This Row],[75th]]-AAMC_Raw_Data_for_FY22[[#This Row],[Median]])/25)*15) + AAMC_Raw_Data_for_FY22[[#This Row],[Median]]","v":153680},{"$f":"(((AAMC_Raw_Data_for_FY22[[#This Row],[75th]]-AAMC_Raw_Data_for_FY22[[#This Row],[Median]])/25)*20) + AAMC_Raw_Data_for_FY22[[#This Row],[Median]]","v":158240},162800,{"$f":"(((AAMC_Raw_Data_for_FY22[[#This Row],[75th]]-AAMC_Raw_Data_for_FY22[[#This Row],[Median]])/25)*30) + AAMC_Raw_Data_for_FY22[[#This Row],[Median]]","v":167360},{"$f":"(((AAMC_Raw_Data_for_FY22[[#This Row],[75th]]-AAMC_Raw_Data_for_FY22[[#This Row],[Median]])/25)*35) + AAMC_Raw_Data_for_FY22[[#This Row],[Median]]","v":171920},{"$f":"(((AAMC_Raw_Data_for_FY22[[#This Row],[75th]]-AAMC_Raw_Data_for_FY22[[#This Row],[Median]])/25)*40) + AAMC_Raw_Data_for_FY22[[#This Row],[Median]]","v":176480}]
[{"$f":"AAMC_Raw_Data_for_FY22[[#This Row],[Source]]&AAMC_Raw_Data_for_FY22[[#This Row],[Type]]&AAMC_Raw_Data_for_FY22[[#This Row],[School Subset]]&AAMC_Raw_Data_for_FY22[[#This Row],[Rank]]&AAMC_Raw_Data_for_FY22[[#This Row],[Degree]]&AAMC_Raw_Data_for_FY22[[#This Row],[Department / Specialty]]&\"L\"","v":"AAMCAcademicAllProfessorPhDBasic Sciences TotalL"},"Basic Sciences Total",2,"AAMC","Academic","All","Professor","PhD","2021-2022",170300,{"$f":"(((AAMC_Raw_Data_for_FY22[[#This Row],[Median]]-AAMC_Raw_Data_for_FY22[[#This Row],[25th]])/25)*5) + AAMC_Raw_Data_for_FY22[[#This Row],[25th]]","v":176850.6},{"$f":"(((AAMC_Raw_Data_for_FY22[[#This Row],[Median]]-AAMC_Raw_Data_for_FY22[[#This Row],[25th]])/25)*10) + AAMC_Raw_Data_for_FY22[[#This Row],[25th]]","v":183401.2},{"$f":"(((AAMC_Raw_Data_for_FY22[[#This Row],[Median]]-AAMC_Raw_Data_for_FY22[[#This Row],[25th]])/25)*15) + AAMC_Raw_Data_for_FY22[[#This Row],[25th]]","v":189951.8},{"$f":"(((AAMC_Raw_Data_for_FY22[[#This Row],[Median]]-AAMC_Raw_Data_for_FY22[[#This Row],[25th]])/25)*20) + AAMC_Raw_Data_for_FY22[[#This Row],[25th]]","v":196502.39999999999},203053,{"$f":"(((AAMC_Raw_Data_for_FY22[[#This Row],[75th]]-AAMC_Raw_Data_for_FY22[[#This Row],[Median]])/25)*5) + AAMC_Raw_Data_for_FY22[[#This Row],[Median]]","v":212066.8},{"$f":"(((AAMC_Raw_Data_for_FY22[[#This Row],[75th]]-AAMC_Raw_Data_for_FY22[[#This Row],[Median]])/25)*10) + AAMC_Raw_Data_for_FY22[[#This Row],[Median]]","v":221080.6},{"$f":"(((AAMC_Raw_Data_for_FY22[[#This Row],[75th]]-AAMC_Raw_Data_for_FY22[[#This Row],[Median]])/25)*15) + AAMC_Raw_Data_for_FY22[[#This Row],[Median]]","v":230094.4},{"$f":"(((AAMC_Raw_Data_for_FY22[[#This Row],[75th]]-AAMC_Raw_Data_for_FY22[[#This Row],[Median]])/25)*20) + AAMC_Raw_Data_for_FY22[[#This Row],[Median]]","v":239108.2},248122,{"$f":"(((AAMC_Raw_Data_for_FY22[[#This Row],[75th]]-AAMC_Raw_Data_for_FY22[[#This Row],[Median]])/25)*30) + AAMC_Raw_Data_for_FY22[[#This Row],[Median]]","v":257135.8},{"$f":"(((AAMC_Raw_Data_for_FY22[[#This Row],[75th]]-AAMC_Raw_Data_for_FY22[[#This Row],[Median]])/25)*35) + AAMC_Raw_Data_for_FY22[[#This Row],[Median]]","v":266149.59999999998},{"$f":"(((AAMC_Raw_Data_for_FY22[[#This Row],[75th]]-AAMC_Raw_Data_for_FY22[[#This Row],[Median]])/25)*40) + AAMC_Raw_Data_for_FY22[[#This Row],[Median]]","v":275163.40000000002}]
[{"$f":"AAMC_Raw_Data_for_FY22[[#This Row],[Source]]&AAMC_Raw_Data_for_FY22[[#This Row],[Type]]&AAMC_Raw_Data_for_FY22[[#This Row],[School Subset]]&AAMC_Raw_Data_for_FY22[[#This Row],[Rank]]&AAMC_Raw_Data_for_FY22[[#This Row],[Degree]]&AAMC_Raw_Data_for_FY22[[#This Row],[Department / Specialty]]&\"L\"","v":"AAMCAcademicAllChiefPhDBasic Sciences TotalL"},"Basic Sciences Total",6,"AAMC","Academic","All","Chief","PhD","2021-2022",216349,{"$f":"(((AAMC_Raw_Data_for_FY22[[#This Row],[Median]]-AAMC_Raw_Data_for_FY22[[#This Row],[25th]])/25)*5) + AAMC_Raw_Data_for_FY22[[#This Row],[25th]]","v":227345.6},{"$f":"(((AAMC_Raw_Data_for_FY22[[#This Row],[Median]]-AAMC_Raw_Data_for_FY22[[#This Row],[25th]])/25)*10) + AAMC_Raw_Data_for_FY22[[#This Row],[25th]]","v":238342.2},{"$f":"(((AAMC_Raw_Data_for_FY22[[#This Row],[Median]]-AAMC_Raw_Data_for_FY22[[#This Row],[25th]])/25)*15) + AAMC_Raw_Data_for_FY22[[#This Row],[25th]]","v":249338.8},{"$f":"(((AAMC_Raw_Data_for_FY22[[#This Row],[Median]]-AAMC_Raw_Data_for_FY22[[#This Row],[25th]])/25)*20) + AAMC_Raw_Data_for_FY22[[#This Row],[25th]]","v":260335.4},271332,{"$f":"(((AAMC_Raw_Data_for_FY22[[#This Row],[75th]]-AAMC_Raw_Data_for_FY22[[#This Row],[Median]])/25)*5) + AAMC_Raw_Data_for_FY22[[#This Row],[Median]]","v":284098.40000000002},{"$f":"(((AAMC_Raw_Data_for_FY22[[#This Row],[75th]]-AAMC_Raw_Data_for_FY22[[#This Row],[Median]])/25)*10) + AAMC_Raw_Data_for_FY22[[#This Row],[Median]]","v":296864.8},{"$f":"(((AAMC_Raw_Data_for_FY22[[#This Row],[75th]]-AAMC_Raw_Data_for_FY22[[#This Row],[Median]])/25)*15) + AAMC_Raw_Data_for_FY22[[#This Row],[Median]]","v":309631.2},{"$f":"(((AAMC_Raw_Data_for_FY22[[#This Row],[75th]]-AAMC_Raw_Data_for_FY22[[#This Row],[Median]])/25)*20) + AAMC_Raw_Data_for_FY22[[#This Row],[Median]]","v":322397.59999999998},335164,{"$f":"(((AAMC_Raw_Data_for_FY22[[#This Row],[75th]]-AAMC_Raw_Data_for_FY22[[#This Row],[Median]])/25)*30) + AAMC_Raw_Data_for_FY22[[#This Row],[Median]]","v":347930.4},{"$f":"(((AAMC_Raw_Data_for_FY22[[#This Row],[75th]]-AAMC_Raw_Data_for_FY22[[#This Row],[Median]])/25)*35) + AAMC_Raw_Data_for_FY22[[#This Row],[Median]]","v":360696.8},{"$f":"(((AAMC_Raw_Data_for_FY22[[#This Row],[75th]]-AAMC_Raw_Data_for_FY22[[#This Row],[Median]])/25)*40) + AAMC_Raw_Data_for_FY22[[#This Row],[Median]]","v":373463.2}]
[{"$f":"AAMC_Raw_Data_for_FY22[[#This Row],[Source]]&AAMC_Raw_Data_for_FY22[[#This Row],[Type]]&AAMC_Raw_Data_for_FY22[[#This Row],[School Subset]]&AAMC_Raw_Data_for_FY22[[#This Row],[Rank]]&AAMC_Raw_Data_for_FY22[[#This Row],[Degree]]&AAMC_Raw_Data_for_FY22[[#This Row],[Department / Specialty]]&\"L\"","v":"AAMCAcademicAllChairPhDBasic Sciences TotalL"},"Basic Sciences Total",1,"AAMC","Academic","All","Chair","PhD","2021-2022",263187,{"$f":"(((AAMC_Raw_Data_for_FY22[[#This Row],[Median]]-AAMC_Raw_Data_for_FY22[[#This Row],[25th]])/25)*5) + AAMC_Raw_Data_for_FY22[[#This Row],[25th]]","v":277431.2},{"$f":"(((AAMC_Raw_Data_for_FY22[[#This Row],[Median]]-AAMC_Raw_Data_for_FY22[[#This Row],[25th]])/25)*10) + AAMC_Raw_Data_for_FY22[[#This Row],[25th]]","v":291675.40000000002},{"$f":"(((AAMC_Raw_Data_for_FY22[[#This Row],[Median]]-AAMC_Raw_Data_for_FY22[[#This Row],[25th]])/25)*15) + AAMC_Raw_Data_for_FY22[[#This Row],[25th]]","v":305919.59999999998},{"$f":"(((AAMC_Raw_Data_for_FY22[[#This Row],[Median]]-AAMC_Raw_Data_for_FY22[[#This Row],[25th]])/25)*20) + AAMC_Raw_Data_for_FY22[[#This Row],[25th]]","v":320163.8},334408,{"$f":"(((AAMC_Raw_Data_for_FY22[[#This Row],[75th]]-AAMC_Raw_Data_for_FY22[[#This Row],[Median]])/25)*5) + AAMC_Raw_Data_for_FY22[[#This Row],[Median]]","v":348575.8},{"$f":"(((AAMC_Raw_Data_for_FY22[[#This Row],[75th]]-AAMC_Raw_Data_for_FY22[[#This Row],[Median]])/25)*10) + AAMC_Raw_Data_for_FY22[[#This Row],[Median]]","v":362743.6},{"$f":"(((AAMC_Raw_Data_for_FY22[[#This Row],[75th]]-AAMC_Raw_Data_for_FY22[[#This Row],[Median]])/25)*15) + AAMC_Raw_Data_for_FY22[[#This Row],[Median]]","v":376911.4},{"$f":"(((AAMC_Raw_Data_for_FY22[[#This Row],[75th]]-AAMC_Raw_Data_for_FY22[[#This Row],[Median]])/25)*20) + AAMC_Raw_Data_for_FY22[[#This Row],[Median]]","v":391079.2},405247,{"$f":"(((AAMC_Raw_Data_for_FY22[[#This Row],[75th]]-AAMC_Raw_Data_for_FY22[[#This Row],[Median]])/25)*30) + AAMC_Raw_Data_for_FY22[[#This Row],[Median]]","v":419414.8},{"$f":"(((AAMC_Raw_Data_for_FY22[[#This Row],[75th]]-AAMC_Raw_Data_for_FY22[[#This Row],[Median]])/25)*35) + AAMC_Raw_Data_for_FY22[[#This Row],[Median]]","v":433582.6},{"$f":"(((AAMC_Raw_Data_for_FY22[[#This Row],[75th]]-AAMC_Raw_Data_for_FY22[[#This Row],[Median]])/25)*40) + AAMC_Raw_Data_for_FY22[[#This Row],[Median]]","v":447750.40000000002}]
[{"$f":"AAMC_Raw_Data_for_FY22[[#This Row],[Source]]&AAMC_Raw_Data_for_FY22[[#This Row],[Type]]&AAMC_Raw_Data_for_FY22[[#This Row],[School Subset]]&AAMC_Raw_Data_for_FY22[[#This Row],[Rank]]&AAMC_Raw_Data_for_FY22[[#This Row],[Degree]]&AAMC_Raw_Data_for_FY22[[#This Row],[Department / Specialty]]&\"L\"","v":"AAMCAcademicAllInstructorPhDAnatomyL"},"Anatomy",5,"AAMC","Academic","All","Instructor","PhD","2021-2022",62805,{"$f":"(((AAMC_Raw_Data_for_FY22[[#This Row],[Median]]-AAMC_Raw_Data_for_FY22[[#This Row],[25th]])/25)*5) + AAMC_Raw_Data_for_FY22[[#This Row],[25th]]","v":63634},{"$f":"(((AAMC_Raw_Data_for_FY22[[#This Row],[Median]]-AAMC_Raw_Data_for_FY22[[#This Row],[25th]])/25)*10) + AAMC_Raw_Data_for_FY22[[#This Row],[25th]]","v":64463},{"$f":"(((AAMC_Raw_Data_for_FY22[[#This Row],[Median]]-AAMC_Raw_Data_for_FY22[[#This Row],[25th]])/25)*15) + AAMC_Raw_Data_for_FY22[[#This Row],[25th]]","v":65292},{"$f":"(((AAMC_Raw_Data_for_FY22[[#This Row],[Median]]-AAMC_Raw_Data_for_FY22[[#This Row],[25th]])/25)*20) + AAMC_Raw_Data_for_FY22[[#This Row],[25th]]","v":66121},66950,{"$f":"(((AAMC_Raw_Data_for_FY22[[#This Row],[75th]]-AAMC_Raw_Data_for_FY22[[#This Row],[Median]])/25)*5) + AAMC_Raw_Data_for_FY22[[#This Row],[Median]]","v":71086.8},{"$f":"(((AAMC_Raw_Data_for_FY22[[#This Row],[75th]]-AAMC_Raw_Data_for_FY22[[#This Row],[Median]])/25)*10) + AAMC_Raw_Data_for_FY22[[#This Row],[Median]]","v":75223.600000000006},{"$f":"(((AAMC_Raw_Data_for_FY22[[#This Row],[75th]]-AAMC_Raw_Data_for_FY22[[#This Row],[Median]])/25)*15) + AAMC_Raw_Data_for_FY22[[#This Row],[Median]]","v":79360.399999999994},{"$f":"(((AAMC_Raw_Data_for_FY22[[#This Row],[75th]]-AAMC_Raw_Data_for_FY22[[#This Row],[Median]])/25)*20) + AAMC_Raw_Data_for_FY22[[#This Row],[Median]]","v":83497.2},87634,{"$f":"(((AAMC_Raw_Data_for_FY22[[#This Row],[75th]]-AAMC_Raw_Data_for_FY22[[#This Row],[Median]])/25)*30) + AAMC_Raw_Data_for_FY22[[#This Row],[Median]]","v":91770.8},{"$f":"(((AAMC_Raw_Data_for_FY22[[#This Row],[75th]]-AAMC_Raw_Data_for_FY22[[#This Row],[Median]])/25)*35) + AAMC_Raw_Data_for_FY22[[#This Row],[Median]]","v":95907.6},{"$f":"(((AAMC_Raw_Data_for_FY22[[#This Row],[75th]]-AAMC_Raw_Data_for_FY22[[#This Row],[Median]])/25)*40) + AAMC_Raw_Data_for_FY22[[#This Row],[Median]]","v":100044.4}]
[{"$f":"AAMC_Raw_Data_for_FY22[[#This Row],[Source]]&AAMC_Raw_Data_for_FY22[[#This Row],[Type]]&AAMC_Raw_Data_for_FY22[[#This Row],[School Subset]]&AAMC_Raw_Data_for_FY22[[#This Row],[Rank]]&AAMC_Raw_Data_for_FY22[[#This Row],[Degree]]&AAMC_Raw_Data_for_FY22[[#This Row],[Department / Specialty]]&\"L\"","v":"AAMCAcademicAllAssistantPhDAnatomyL"},"Anatomy",4,"AAMC","Academic","All","Assistant","PhD","2021-2022",87026,{"$f":"(((AAMC_Raw_Data_for_FY22[[#This Row],[Median]]-AAMC_Raw_Data_for_FY22[[#This Row],[25th]])/25)*5) + AAMC_Raw_Data_for_FY22[[#This Row],[25th]]","v":89272.4},{"$f":"(((AAMC_Raw_Data_for_FY22[[#This Row],[Median]]-AAMC_Raw_Data_for_FY22[[#This Row],[25th]])/25)*10) + AAMC_Raw_Data_for_FY22[[#This Row],[25th]]","v":91518.8},{"$f":"(((AAMC_Raw_Data_for_FY22[[#This Row],[Median]]-AAMC_Raw_Data_for_FY22[[#This Row],[25th]])/25)*15) + AAMC_Raw_Data_for_FY22[[#This Row],[25th]]","v":93765.2},{"$f":"(((AAMC_Raw_Data_for_FY22[[#This Row],[Median]]-AAMC_Raw_Data_for_FY22[[#This Row],[25th]])/25)*20) + AAMC_Raw_Data_for_FY22[[#This Row],[25th]]","v":96011.6},98258,{"$f":"(((AAMC_Raw_Data_for_FY22[[#This Row],[75th]]-AAMC_Raw_Data_for_FY22[[#This Row],[Median]])/25)*5) + AAMC_Raw_Data_for_FY22[[#This Row],[Median]]","v":101528},{"$f":"(((AAMC_Raw_Data_for_FY22[[#This Row],[75th]]-AAMC_Raw_Data_for_FY22[[#This Row],[Median]])/25)*10) + AAMC_Raw_Data_for_FY22[[#This Row],[Median]]","v":104798},{"$f":"(((AAMC_Raw_Data_for_FY22[[#This Row],[75th]]-AAMC_Raw_Data_for_FY22[[#This Row],[Median]])/25)*15) + AAMC_Raw_Data_for_FY22[[#This Row],[Median]]","v":108068},{"$f":"(((AAMC_Raw_Data_for_FY22[[#This Row],[75th]]-AAMC_Raw_Data_for_FY22[[#This Row],[Median]])/25)*20) + AAMC_Raw_Data_for_FY22[[#This Row],[Median]]","v":111338},114608,{"$f":"(((AAMC_Raw_Data_for_FY22[[#This Row],[75th]]-AAMC_Raw_Data_for_FY22[[#This Row],[Median]])/25)*30) + AAMC_Raw_Data_for_FY22[[#This Row],[Median]]","v":117878},{"$f":"(((AAMC_Raw_Data_for_FY22[[#This Row],[75th]]-AAMC_Raw_Data_for_FY22[[#This Row],[Median]])/25)*35) + AAMC_Raw_Data_for_FY22[[#This Row],[Median]]","v":121148},{"$f":"(((AAMC_Raw_Data_for_FY22[[#This Row],[75th]]-AAMC_Raw_Data_for_FY22[[#This Row],[Median]])/25)*40) + AAMC_Raw_Data_for_FY22[[#This Row],[Median]]","v":124418}]
[{"$f":"AAMC_Raw_Data_for_FY22[[#This Row],[Source]]&AAMC_Raw_Data_for_FY22[[#This Row],[Type]]&AAMC_Raw_Data_for_FY22[[#This Row],[School Subset]]&AAMC_Raw_Data_for_FY22[[#This Row],[Rank]]&AAMC_Raw_Data_for_FY22[[#This Row],[Degree]]&AAMC_Raw_Data_for_FY22[[#This Row],[Department / Specialty]]&\"L\"","v":"AAMCAcademicAllAssociatePhDAnatomyL"},"Anatomy",3,"AAMC","Academic","All","Associate","PhD","2021-2022",112205,{"$f":"(((AAMC_Raw_Data_for_FY22[[#This Row],[Median]]-AAMC_Raw_Data_for_FY22[[#This Row],[25th]])/25)*5) + AAMC_Raw_Data_for_FY22[[#This Row],[25th]]","v":115506.6},{"$f":"(((AAMC_Raw_Data_for_FY22[[#This Row],[Median]]-AAMC_Raw_Data_for_FY22[[#This Row],[25th]])/25)*10) + AAMC_Raw_Data_for_FY22[[#This Row],[25th]]","v":118808.2},{"$f":"(((AAMC_Raw_Data_for_FY22[[#This Row],[Median]]-AAMC_Raw_Data_for_FY22[[#This Row],[25th]])/25)*15) + AAMC_Raw_Data_for_FY22[[#This Row],[25th]]","v":122109.8},{"$f":"(((AAMC_Raw_Data_for_FY22[[#This Row],[Median]]-AAMC_Raw_Data_for_FY22[[#This Row],[25th]])/25)*20) + AAMC_Raw_Data_for_FY22[[#This Row],[25th]]","v":125411.4},128713,{"$f":"(((AAMC_Raw_Data_for_FY22[[#This Row],[75th]]-AAMC_Raw_Data_for_FY22[[#This Row],[Median]])/25)*5) + AAMC_Raw_Data_for_FY22[[#This Row],[Median]]","v":132412},{"$f":"(((AAMC_Raw_Data_for_FY22[[#This Row],[75th]]-AAMC_Raw_Data_for_FY22[[#This Row],[Median]])/25)*10) + AAMC_Raw_Data_for_FY22[[#This Row],[Median]]","v":136111},{"$f":"(((AAMC_Raw_Data_for_FY22[[#This Row],[75th]]-AAMC_Raw_Data_for_FY22[[#This Row],[Median]])/25)*15) + AAMC_Raw_Data_for_FY22[[#This Row],[Median]]","v":139810},{"$f":"(((AAMC_Raw_Data_for_FY22[[#This Row],[75th]]-AAMC_Raw_Data_for_FY22[[#This Row],[Median]])/25)*20) + AAMC_Raw_Data_for_FY22[[#This Row],[Median]]","v":143509},147208,{"$f":"(((AAMC_Raw_Data_for_FY22[[#This Row],[75th]]-AAMC_Raw_Data_for_FY22[[#This Row],[Median]])/25)*30) + AAMC_Raw_Data_for_FY22[[#This Row],[Median]]","v":150907},{"$f":"(((AAMC_Raw_Data_for_FY22[[#This Row],[75th]]-AAMC_Raw_Data_for_FY22[[#This Row],[Median]])/25)*35) + AAMC_Raw_Data_for_FY22[[#This Row],[Median]]","v":154606},{"$f":"(((AAMC_Raw_Data_for_FY22[[#This Row],[75th]]-AAMC_Raw_Data_for_FY22[[#This Row],[Median]])/25)*40) + AAMC_Raw_Data_for_FY22[[#This Row],[Median]]","v":158305}]
[{"$f":"AAMC_Raw_Data_for_FY22[[#This Row],[Source]]&AAMC_Raw_Data_for_FY22[[#This Row],[Type]]&AAMC_Raw_Data_for_FY22[[#This Row],[School Subset]]&AAMC_Raw_Data_for_FY22[[#This Row],[Rank]]&AAMC_Raw_Data_for_FY22[[#This Row],[Degree]]&AAMC_Raw_Data_for_FY22[[#This Row],[Department / Specialty]]&\"L\"","v":"AAMCAcademicAllProfessorPhDAnatomyL"},"Anatomy",2,"AAMC","Academic","All","Professor","PhD","2021-2022",156337,{"$f":"(((AAMC_Raw_Data_for_FY22[[#This Row],[Median]]-AAMC_Raw_Data_for_FY22[[#This Row],[25th]])/25)*5) + AAMC_Raw_Data_for_FY22[[#This Row],[25th]]","v":162138},{"$f":"(((AAMC_Raw_Data_for_FY22[[#This Row],[Median]]-AAMC_Raw_Data_for_FY22[[#This Row],[25th]])/25)*10) + AAMC_Raw_Data_for_FY22[[#This Row],[25th]]","v":167939},{"$f":"(((AAMC_Raw_Data_for_FY22[[#This Row],[Median]]-AAMC_Raw_Data_for_FY22[[#This Row],[25th]])/25)*15) + AAMC_Raw_Data_for_FY22[[#This Row],[25th]]","v":173740},{"$f":"(((AAMC_Raw_Data_for_FY22[[#This Row],[Median]]-AAMC_Raw_Data_for_FY22[[#This Row],[25th]])/25)*20) + AAMC_Raw_Data_for_FY22[[#This Row],[25th]]","v":179541},185342,{"$f":"(((AAMC_Raw_Data_for_FY22[[#This Row],[75th]]-AAMC_Raw_Data_for_FY22[[#This Row],[Median]])/25)*5) + AAMC_Raw_Data_for_FY22[[#This Row],[Median]]","v":192944},{"$f":"(((AAMC_Raw_Data_for_FY22[[#This Row],[75th]]-AAMC_Raw_Data_for_FY22[[#This Row],[Median]])/25)*10) + AAMC_Raw_Data_for_FY22[[#This Row],[Median]]","v":200546},{"$f":"(((AAMC_Raw_Data_for_FY22[[#This Row],[75th]]-AAMC_Raw_Data_for_FY22[[#This Row],[Median]])/25)*15) + AAMC_Raw_Data_for_FY22[[#This Row],[Median]]","v":208148},{"$f":"(((AAMC_Raw_Data_for_FY22[[#This Row],[75th]]-AAMC_Raw_Data_for_FY22[[#This Row],[Median]])/25)*20) + AAMC_Raw_Data_for_FY22[[#This Row],[Median]]","v":215750},223352,{"$f":"(((AAMC_Raw_Data_for_FY22[[#This Row],[75th]]-AAMC_Raw_Data_for_FY22[[#This Row],[Median]])/25)*30) + AAMC_Raw_Data_for_FY22[[#This Row],[Median]]","v":230954},{"$f":"(((AAMC_Raw_Data_for_FY22[[#This Row],[75th]]-AAMC_Raw_Data_for_FY22[[#This Row],[Median]])/25)*35) + AAMC_Raw_Data_for_FY22[[#This Row],[Median]]","v":238556},{"$f":"(((AAMC_Raw_Data_for_FY22[[#This Row],[75th]]-AAMC_Raw_Data_for_FY22[[#This Row],[Median]])/25)*40) + AAMC_Raw_Data_for_FY22[[#This Row],[Median]]","v":246158}]
[{"$f":"AAMC_Raw_Data_for_FY22[[#This Row],[Source]]&AAMC_Raw_Data_for_FY22[[#This Row],[Type]]&AAMC_Raw_Data_for_FY22[[#This Row],[School Subset]]&AAMC_Raw_Data_for_FY22[[#This Row],[Rank]]&AAMC_Raw_Data_for_FY22[[#This Row],[Degree]]&AAMC_Raw_Data_for_FY22[[#This Row],[Department / Specialty]]&\"L\"","v":"AAMCAcademicAllChiefPhDAnatomyL"},"Anatomy",6,"AAMC","Academic","All","Chief","PhD","2021-2022",null,{"$f":"(((AAMC_Raw_Data_for_FY22[[#This Row],[Median]]-AAMC_Raw_Data_for_FY22[[#This Row],[25th]])/25)*5) + AAMC_Raw_Data_for_FY22[[#This Row],[25th]]","v":0},{"$f":"(((AAMC_Raw_Data_for_FY22[[#This Row],[Median]]-AAMC_Raw_Data_for_FY22[[#This Row],[25th]])/25)*10) + AAMC_Raw_Data_for_FY22[[#This Row],[25th]]","v":0},{"$f":"(((AAMC_Raw_Data_for_FY22[[#This Row],[Median]]-AAMC_Raw_Data_for_FY22[[#This Row],[25th]])/25)*15) + AAMC_Raw_Data_for_FY22[[#This Row],[25th]]","v":0},{"$f":"(((AAMC_Raw_Data_for_FY22[[#This Row],[Median]]-AAMC_Raw_Data_for_FY22[[#This Row],[25th]])/25)*20) + AAMC_Raw_Data_for_FY22[[#This Row],[25th]]","v":0},null,{"$f":"(((AAMC_Raw_Data_for_FY22[[#This Row],[75th]]-AAMC_Raw_Data_for_FY22[[#This Row],[Median]])/25)*5) + AAMC_Raw_Data_for_FY22[[#This Row],[Median]]","v":0},{"$f":"(((AAMC_Raw_Data_for_FY22[[#This Row],[75th]]-AAMC_Raw_Data_for_FY22[[#This Row],[Median]])/25)*10) + AAMC_Raw_Data_for_FY22[[#This Row],[Median]]","v":0},{"$f":"(((AAMC_Raw_Data_for_FY22[[#This Row],[75th]]-AAMC_Raw_Data_for_FY22[[#This Row],[Median]])/25)*15) + AAMC_Raw_Data_for_FY22[[#This Row],[Median]]","v":0},{"$f":"(((AAMC_Raw_Data_for_FY22[[#This Row],[75th]]-AAMC_Raw_Data_for_FY22[[#This Row],[Median]])/25)*20) + AAMC_Raw_Data_for_FY22[[#This Row],[Median]]","v":0},null,{"$f":"(((AAMC_Raw_Data_for_FY22[[#This Row],[75th]]-AAMC_Raw_Data_for_FY22[[#This Row],[Median]])/25)*30) + AAMC_Raw_Data_for_FY22[[#This Row],[Median]]","v":0},{"$f":"(((AAMC_Raw_Data_for_FY22[[#This Row],[75th]]-AAMC_Raw_Data_for_FY22[[#This Row],[Median]])/25)*35) + AAMC_Raw_Data_for_FY22[[#This Row],[Median]]","v":0},{"$f":"(((AAMC_Raw_Data_for_FY22[[#This Row],[75th]]-AAMC_Raw_Data_for_FY22[[#This Row],[Median]])/25)*40) + AAMC_Raw_Data_for_FY22[[#This Row],[Median]]","v":0}]
[{"$f":"AAMC_Raw_Data_for_FY22[[#This Row],[Source]]&AAMC_Raw_Data_for_FY22[[#This Row],[Type]]&AAMC_Raw_Data_for_FY22[[#This Row],[School Subset]]&AAMC_Raw_Data_for_FY22[[#This Row],[Rank]]&AAMC_Raw_Data_for_FY22[[#This Row],[Degree]]&AAMC_Raw_Data_for_FY22[[#This Row],[Department / Specialty]]&\"L\"","v":"AAMCAcademicAllChairPhDAnatomyL"},"Anatomy",1,"AAMC","Academic","All","Chair","PhD","2021-2022",265625,{"$f":"(((AAMC_Raw_Data_for_FY22[[#This Row],[Median]]-AAMC_Raw_Data_for_FY22[[#This Row],[25th]])/25)*5) + AAMC_Raw_Data_for_FY22[[#This Row],[25th]]","v":273394.8},{"$f":"(((AAMC_Raw_Data_for_FY22[[#This Row],[Median]]-AAMC_Raw_Data_for_FY22[[#This Row],[25th]])/25)*10) + AAMC_Raw_Data_for_FY22[[#This Row],[25th]]","v":281164.59999999998},{"$f":"(((AAMC_Raw_Data_for_FY22[[#This Row],[Median]]-AAMC_Raw_Data_for_FY22[[#This Row],[25th]])/25)*15) + AAMC_Raw_Data_for_FY22[[#This Row],[25th]]","v":288934.40000000002},{"$f":"(((AAMC_Raw_Data_for_FY22[[#This Row],[Median]]-AAMC_Raw_Data_for_FY22[[#This Row],[25th]])/25)*20) + AAMC_Raw_Data_for_FY22[[#This Row],[25th]]","v":296704.2},304474,{"$f":"(((AAMC_Raw_Data_for_FY22[[#This Row],[75th]]-AAMC_Raw_Data_for_FY22[[#This Row],[Median]])/25)*5) + AAMC_Raw_Data_for_FY22[[#This Row],[Median]]","v":318138.2},{"$f":"(((AAMC_Raw_Data_for_FY22[[#This Row],[75th]]-AAMC_Raw_Data_for_FY22[[#This Row],[Median]])/25)*10) + AAMC_Raw_Data_for_FY22[[#This Row],[Median]]","v":331802.40000000002},{"$f":"(((AAMC_Raw_Data_for_FY22[[#This Row],[75th]]-AAMC_Raw_Data_for_FY22[[#This Row],[Median]])/25)*15) + AAMC_Raw_Data_for_FY22[[#This Row],[Median]]","v":345466.6},{"$f":"(((AAMC_Raw_Data_for_FY22[[#This Row],[75th]]-AAMC_Raw_Data_for_FY22[[#This Row],[Median]])/25)*20) + AAMC_Raw_Data_for_FY22[[#This Row],[Median]]","v":359130.8},372795,{"$f":"(((AAMC_Raw_Data_for_FY22[[#This Row],[75th]]-AAMC_Raw_Data_for_FY22[[#This Row],[Median]])/25)*30) + AAMC_Raw_Data_for_FY22[[#This Row],[Median]]","v":386459.2},{"$f":"(((AAMC_Raw_Data_for_FY22[[#This Row],[75th]]-AAMC_Raw_Data_for_FY22[[#This Row],[Median]])/25)*35) + AAMC_Raw_Data_for_FY22[[#This Row],[Median]]","v":400123.4},{"$f":"(((AAMC_Raw_Data_for_FY22[[#This Row],[75th]]-AAMC_Raw_Data_for_FY22[[#This Row],[Median]])/25)*40) + AAMC_Raw_Data_for_FY22[[#This Row],[Median]]","v":413787.6}]
[{"$f":"AAMC_Raw_Data_for_FY22[[#This Row],[Source]]&AAMC_Raw_Data_for_FY22[[#This Row],[Type]]&AAMC_Raw_Data_for_FY22[[#This Row],[School Subset]]&AAMC_Raw_Data_for_FY22[[#This Row],[Rank]]&AAMC_Raw_Data_for_FY22[[#This Row],[Degree]]&AAMC_Raw_Data_for_FY22[[#This Row],[Department / Specialty]]&\"L\"","v":"AAMCAcademicAllInstructorPhDBiochemistryL"},"Biochemistry",5,"AAMC","Academic","All","Instructor","PhD","2021-2022",56400,{"$f":"(((AAMC_Raw_Data_for_FY22[[#This Row],[Median]]-AAMC_Raw_Data_for_FY22[[#This Row],[25th]])/25)*5) + AAMC_Raw_Data_for_FY22[[#This Row],[25th]]","v":58524.2},{"$f":"(((AAMC_Raw_Data_for_FY22[[#This Row],[Median]]-AAMC_Raw_Data_for_FY22[[#This Row],[25th]])/25)*10) + AAMC_Raw_Data_for_FY22[[#This Row],[25th]]","v":60648.4},{"$f":"(((AAMC_Raw_Data_for_FY22[[#This Row],[Median]]-AAMC_Raw_Data_for_FY22[[#This Row],[25th]])/25)*15) + AAMC_Raw_Data_for_FY22[[#This Row],[25th]]","v":62772.6},{"$f":"(((AAMC_Raw_Data_for_FY22[[#This Row],[Median]]-AAMC_Raw_Data_for_FY22[[#This Row],[25th]])/25)*20) + AAMC_Raw_Data_for_FY22[[#This Row],[25th]]","v":64896.800000000003},67021,{"$f":"(((AAMC_Raw_Data_for_FY22[[#This Row],[75th]]-AAMC_Raw_Data_for_FY22[[#This Row],[Median]])/25)*5) + AAMC_Raw_Data_for_FY22[[#This Row],[Median]]","v":68654.399999999994},{"$f":"(((AAMC_Raw_Data_for_FY22[[#This Row],[75th]]-AAMC_Raw_Data_for_FY22[[#This Row],[Median]])/25)*10) + AAMC_Raw_Data_for_FY22[[#This Row],[Median]]","v":70287.8},{"$f":"(((AAMC_Raw_Data_for_FY22[[#This Row],[75th]]-AAMC_Raw_Data_for_FY22[[#This Row],[Median]])/25)*15) + AAMC_Raw_Data_for_FY22[[#This Row],[Median]]","v":71921.2},{"$f":"(((AAMC_Raw_Data_for_FY22[[#This Row],[75th]]-AAMC_Raw_Data_for_FY22[[#This Row],[Median]])/25)*20) + AAMC_Raw_Data_for_FY22[[#This Row],[Median]]","v":73554.600000000006},75188,{"$f":"(((AAMC_Raw_Data_for_FY22[[#This Row],[75th]]-AAMC_Raw_Data_for_FY22[[#This Row],[Median]])/25)*30) + AAMC_Raw_Data_for_FY22[[#This Row],[Median]]","v":76821.399999999994},{"$f":"(((AAMC_Raw_Data_for_FY22[[#This Row],[75th]]-AAMC_Raw_Data_for_FY22[[#This Row],[Median]])/25)*35) + AAMC_Raw_Data_for_FY22[[#This Row],[Median]]","v":78454.8},{"$f":"(((AAMC_Raw_Data_for_FY22[[#This Row],[75th]]-AAMC_Raw_Data_for_FY22[[#This Row],[Median]])/25)*40) + AAMC_Raw_Data_for_FY22[[#This Row],[Median]]","v":80088.2}]
[{"$f":"AAMC_Raw_Data_for_FY22[[#This Row],[Source]]&AAMC_Raw_Data_for_FY22[[#This Row],[Type]]&AAMC_Raw_Data_for_FY22[[#This Row],[School Subset]]&AAMC_Raw_Data_for_FY22[[#This Row],[Rank]]&AAMC_Raw_Data_for_FY22[[#This Row],[Degree]]&AAMC_Raw_Data_for_FY22[[#This Row],[Department / Specialty]]&\"L\"","v":"AAMCAcademicAllAssistantPhDBiochemistryL"},"Biochemistry",4,"AAMC","Academic","All","Assistant","PhD","2021-2022",82000,{"$f":"(((AAMC_Raw_Data_for_FY22[[#This Row],[Median]]-AAMC_Raw_Data_for_FY22[[#This Row],[25th]])/25)*5) + AAMC_Raw_Data_for_FY22[[#This Row],[25th]]","v":86534.6},{"$f":"(((AAMC_Raw_Data_for_FY22[[#This Row],[Median]]-AAMC_Raw_Data_for_FY22[[#This Row],[25th]])/25)*10) + AAMC_Raw_Data_for_FY22[[#This Row],[25th]]","v":91069.2},{"$f":"(((AAMC_Raw_Data_for_FY22[[#This Row],[Median]]-AAMC_Raw_Data_for_FY22[[#This Row],[25th]])/25)*15) + AAMC_Raw_Data_for_FY22[[#This Row],[25th]]","v":95603.8},{"$f":"(((AAMC_Raw_Data_for_FY22[[#This Row],[Median]]-AAMC_Raw_Data_for_FY22[[#This Row],[25th]])/25)*20) + AAMC_Raw_Data_for_FY22[[#This Row],[25th]]","v":100138.4},104673,{"$f":"(((AAMC_Raw_Data_for_FY22[[#This Row],[75th]]-AAMC_Raw_Data_for_FY22[[#This Row],[Median]])/25)*5) + AAMC_Raw_Data_for_FY22[[#This Row],[Median]]","v":108656.6},{"$f":"(((AAMC_Raw_Data_for_FY22[[#This Row],[75th]]-AAMC_Raw_Data_for_FY22[[#This Row],[Median]])/25)*10) + AAMC_Raw_Data_for_FY22[[#This Row],[Median]]","v":112640.2},{"$f":"(((AAMC_Raw_Data_for_FY22[[#This Row],[75th]]-AAMC_Raw_Data_for_FY22[[#This Row],[Median]])/25)*15) + AAMC_Raw_Data_for_FY22[[#This Row],[Median]]","v":116623.8},{"$f":"(((AAMC_Raw_Data_for_FY22[[#This Row],[75th]]-AAMC_Raw_Data_for_FY22[[#This Row],[Median]])/25)*20) + AAMC_Raw_Data_for_FY22[[#This Row],[Median]]","v":120607.4},124591,{"$f":"(((AAMC_Raw_Data_for_FY22[[#This Row],[75th]]-AAMC_Raw_Data_for_FY22[[#This Row],[Median]])/25)*30) + AAMC_Raw_Data_for_FY22[[#This Row],[Median]]","v":128574.6},{"$f":"(((AAMC_Raw_Data_for_FY22[[#This Row],[75th]]-AAMC_Raw_Data_for_FY22[[#This Row],[Median]])/25)*35) + AAMC_Raw_Data_for_FY22[[#This Row],[Median]]","v":132558.20000000001},{"$f":"(((AAMC_Raw_Data_for_FY22[[#This Row],[75th]]-AAMC_Raw_Data_for_FY22[[#This Row],[Median]])/25)*40) + AAMC_Raw_Data_for_FY22[[#This Row],[Median]]","v":136541.79999999999}]
[{"$f":"AAMC_Raw_Data_for_FY22[[#This Row],[Source]]&AAMC_Raw_Data_for_FY22[[#This Row],[Type]]&AAMC_Raw_Data_for_FY22[[#This Row],[School Subset]]&AAMC_Raw_Data_for_FY22[[#This Row],[Rank]]&AAMC_Raw_Data_for_FY22[[#This Row],[Degree]]&AAMC_Raw_Data_for_FY22[[#This Row],[Department / Specialty]]&\"L\"","v":"AAMCAcademicAllAssociatePhDBiochemistryL"},"Biochemistry",3,"AAMC","Academic","All","Associate","PhD","2021-2022",113664,{"$f":"(((AAMC_Raw_Data_for_FY22[[#This Row],[Median]]-AAMC_Raw_Data_for_FY22[[#This Row],[25th]])/25)*5) + AAMC_Raw_Data_for_FY22[[#This Row],[25th]]","v":117671.2},{"$f":"(((AAMC_Raw_Data_for_FY22[[#This Row],[Median]]-AAMC_Raw_Data_for_FY22[[#This Row],[25th]])/25)*10) + AAMC_Raw_Data_for_FY22[[#This Row],[25th]]","v":121678.39999999999},{"$f":"(((AAMC_Raw_Data_for_FY22[[#This Row],[Median]]-AAMC_Raw_Data_for_FY22[[#This Row],[25th]])/25)*15) + AAMC_Raw_Data_for_FY22[[#This Row],[25th]]","v":125685.6},{"$f":"(((AAMC_Raw_Data_for_FY22[[#This Row],[Median]]-AAMC_Raw_Data_for_FY22[[#This Row],[25th]])/25)*20) + AAMC_Raw_Data_for_FY22[[#This Row],[25th]]","v":129692.8},133700,{"$f":"(((AAMC_Raw_Data_for_FY22[[#This Row],[75th]]-AAMC_Raw_Data_for_FY22[[#This Row],[Median]])/25)*5) + AAMC_Raw_Data_for_FY22[[#This Row],[Median]]","v":137807.20000000001},{"$f":"(((AAMC_Raw_Data_for_FY22[[#This Row],[75th]]-AAMC_Raw_Data_for_FY22[[#This Row],[Median]])/25)*10) + AAMC_Raw_Data_for_FY22[[#This Row],[Median]]","v":141914.4},{"$f":"(((AAMC_Raw_Data_for_FY22[[#This Row],[75th]]-AAMC_Raw_Data_for_FY22[[#This Row],[Median]])/25)*15) + AAMC_Raw_Data_for_FY22[[#This Row],[Median]]","v":146021.6},{"$f":"(((AAMC_Raw_Data_for_FY22[[#This Row],[75th]]-AAMC_Raw_Data_for_FY22[[#This Row],[Median]])/25)*20) + AAMC_Raw_Data_for_FY22[[#This Row],[Median]]","v":150128.79999999999},154236,{"$f":"(((AAMC_Raw_Data_for_FY22[[#This Row],[75th]]-AAMC_Raw_Data_for_FY22[[#This Row],[Median]])/25)*30) + AAMC_Raw_Data_for_FY22[[#This Row],[Median]]","v":158343.20000000001},{"$f":"(((AAMC_Raw_Data_for_FY22[[#This Row],[75th]]-AAMC_Raw_Data_for_FY22[[#This Row],[Median]])/25)*35) + AAMC_Raw_Data_for_FY22[[#This Row],[Median]]","v":162450.4},{"$f":"(((AAMC_Raw_Data_for_FY22[[#This Row],[75th]]-AAMC_Raw_Data_for_FY22[[#This Row],[Median]])/25)*40) + AAMC_Raw_Data_for_FY22[[#This Row],[Median]]","v":166557.6}]
[{"$f":"AAMC_Raw_Data_for_FY22[[#This Row],[Source]]&AAMC_Raw_Data_for_FY22[[#This Row],[Type]]&AAMC_Raw_Data_for_FY22[[#This Row],[School Subset]]&AAMC_Raw_Data_for_FY22[[#This Row],[Rank]]&AAMC_Raw_Data_for_FY22[[#This Row],[Degree]]&AAMC_Raw_Data_for_FY22[[#This Row],[Department / Specialty]]&\"L\"","v":"AAMCAcademicAllProfessorPhDBiochemistryL"},"Biochemistry",2,"AAMC","Academic","All","Professor","PhD","2021-2022",164922,{"$f":"(((AAMC_Raw_Data_for_FY22[[#This Row],[Median]]-AAMC_Raw_Data_for_FY22[[#This Row],[25th]])/25)*5) + AAMC_Raw_Data_for_FY22[[#This Row],[25th]]","v":170978.8},{"$f":"(((AAMC_Raw_Data_for_FY22[[#This Row],[Median]]-AAMC_Raw_Data_for_FY22[[#This Row],[25th]])/25)*10) + AAMC_Raw_Data_for_FY22[[#This Row],[25th]]","v":177035.6},{"$f":"(((AAMC_Raw_Data_for_FY22[[#This Row],[Median]]-AAMC_Raw_Data_for_FY22[[#This Row],[25th]])/25)*15) + AAMC_Raw_Data_for_FY22[[#This Row],[25th]]","v":183092.4},{"$f":"(((AAMC_Raw_Data_for_FY22[[#This Row],[Median]]-AAMC_Raw_Data_for_FY22[[#This Row],[25th]])/25)*20) + AAMC_Raw_Data_for_FY22[[#This Row],[25th]]","v":189149.2},195206,{"$f":"(((AAMC_Raw_Data_for_FY22[[#This Row],[75th]]-AAMC_Raw_Data_for_FY22[[#This Row],[Median]])/25)*5) + AAMC_Raw_Data_for_FY22[[#This Row],[Median]]","v":204106.8},{"$f":"(((AAMC_Raw_Data_for_FY22[[#This Row],[75th]]-AAMC_Raw_Data_for_FY22[[#This Row],[Median]])/25)*10) + AAMC_Raw_Data_for_FY22[[#This Row],[Median]]","v":213007.6},{"$f":"(((AAMC_Raw_Data_for_FY22[[#This Row],[75th]]-AAMC_Raw_Data_for_FY22[[#This Row],[Median]])/25)*15) + AAMC_Raw_Data_for_FY22[[#This Row],[Median]]","v":221908.4},{"$f":"(((AAMC_Raw_Data_for_FY22[[#This Row],[75th]]-AAMC_Raw_Data_for_FY22[[#This Row],[Median]])/25)*20) + AAMC_Raw_Data_for_FY22[[#This Row],[Median]]","v":230809.2},239710,{"$f":"(((AAMC_Raw_Data_for_FY22[[#This Row],[75th]]-AAMC_Raw_Data_for_FY22[[#This Row],[Median]])/25)*30) + AAMC_Raw_Data_for_FY22[[#This Row],[Median]]","v":248610.8},{"$f":"(((AAMC_Raw_Data_for_FY22[[#This Row],[75th]]-AAMC_Raw_Data_for_FY22[[#This Row],[Median]])/25)*35) + AAMC_Raw_Data_for_FY22[[#This Row],[Median]]","v":257511.6},{"$f":"(((AAMC_Raw_Data_for_FY22[[#This Row],[75th]]-AAMC_Raw_Data_for_FY22[[#This Row],[Median]])/25)*40) + AAMC_Raw_Data_for_FY22[[#This Row],[Median]]","v":266412.40000000002}]
[{"$f":"AAMC_Raw_Data_for_FY22[[#This Row],[Source]]&AAMC_Raw_Data_for_FY22[[#This Row],[Type]]&AAMC_Raw_Data_for_FY22[[#This Row],[School Subset]]&AAMC_Raw_Data_for_FY22[[#This Row],[Rank]]&AAMC_Raw_Data_for_FY22[[#This Row],[Degree]]&AAMC_Raw_Data_for_FY22[[#This Row],[Department / Specialty]]&\"L\"","v":"AAMCAcademicAllChiefPhDBiochemistryL"},"Biochemistry",6,"AAMC","Academic","All","Chief","PhD","2021-2022",221048,{"$f":"(((AAMC_Raw_Data_for_FY22[[#This Row],[Median]]-AAMC_Raw_Data_for_FY22[[#This Row],[25th]])/25)*5) + AAMC_Raw_Data_for_FY22[[#This Row],[25th]]","v":233136.4},{"$f":"(((AAMC_Raw_Data_for_FY22[[#This Row],[Median]]-AAMC_Raw_Data_for_FY22[[#This Row],[25th]])/25)*10) + AAMC_Raw_Data_for_FY22[[#This Row],[25th]]","v":245224.8},{"$f":"(((AAMC_Raw_Data_for_FY22[[#This Row],[Median]]-AAMC_Raw_Data_for_FY22[[#This Row],[25th]])/25)*15) + AAMC_Raw_Data_for_FY22[[#This Row],[25th]]","v":257313.2},{"$f":"(((AAMC_Raw_Data_for_FY22[[#This Row],[Median]]-AAMC_Raw_Data_for_FY22[[#This Row],[25th]])/25)*20) + AAMC_Raw_Data_for_FY22[[#This Row],[25th]]","v":269401.59999999998},281490,{"$f":"(((AAMC_Raw_Data_for_FY22[[#This Row],[75th]]-AAMC_Raw_Data_for_FY22[[#This Row],[Median]])/25)*5) + AAMC_Raw_Data_for_FY22[[#This Row],[Median]]","v":303549.59999999998},{"$f":"(((AAMC_Raw_Data_for_FY22[[#This Row],[75th]]-AAMC_Raw_Data_for_FY22[[#This Row],[Median]])/25)*10) + AAMC_Raw_Data_for_FY22[[#This Row],[Median]]","v":325609.2},{"$f":"(((AAMC_Raw_Data_for_FY22[[#This Row],[75th]]-AAMC_Raw_Data_for_FY22[[#This Row],[Median]])/25)*15) + AAMC_Raw_Data_for_FY22[[#This Row],[Median]]","v":347668.8},{"$f":"(((AAMC_Raw_Data_for_FY22[[#This Row],[75th]]-AAMC_Raw_Data_for_FY22[[#This Row],[Median]])/25)*20) + AAMC_Raw_Data_for_FY22[[#This Row],[Median]]","v":369728.4},391788,{"$f":"(((AAMC_Raw_Data_for_FY22[[#This Row],[75th]]-AAMC_Raw_Data_for_FY22[[#This Row],[Median]])/25)*30) + AAMC_Raw_Data_for_FY22[[#This Row],[Median]]","v":413847.6},{"$f":"(((AAMC_Raw_Data_for_FY22[[#This Row],[75th]]-AAMC_Raw_Data_for_FY22[[#This Row],[Median]])/25)*35) + AAMC_Raw_Data_for_FY22[[#This Row],[Median]]","v":435907.2},{"$f":"(((AAMC_Raw_Data_for_FY22[[#This Row],[75th]]-AAMC_Raw_Data_for_FY22[[#This Row],[Median]])/25)*40) + AAMC_Raw_Data_for_FY22[[#This Row],[Median]]","v":457966.8}]
[{"$f":"AAMC_Raw_Data_for_FY22[[#This Row],[Source]]&AAMC_Raw_Data_for_FY22[[#This Row],[Type]]&AAMC_Raw_Data_for_FY22[[#This Row],[School Subset]]&AAMC_Raw_Data_for_FY22[[#This Row],[Rank]]&AAMC_Raw_Data_for_FY22[[#This Row],[Degree]]&AAMC_Raw_Data_for_FY22[[#This Row],[Department / Specialty]]&\"L\"","v":"AAMCAcademicAllChairPhDBiochemistryL"},"Biochemistry",1,"AAMC","Academic","All","Chair","PhD","2021-2022",256250,{"$f":"(((AAMC_Raw_Data_for_FY22[[#This Row],[Median]]-AAMC_Raw_Data_for_FY22[[#This Row],[25th]])/25)*5) + AAMC_Raw_Data_for_FY22[[#This Row],[25th]]","v":268552.40000000002},{"$f":"(((AAMC_Raw_Data_for_FY22[[#This Row],[Median]]-AAMC_Raw_Data_for_FY22[[#This Row],[25th]])/25)*10) + AAMC_Raw_Data_for_FY22[[#This Row],[25th]]","v":280854.8},{"$f":"(((AAMC_Raw_Data_for_FY22[[#This Row],[Median]]-AAMC_Raw_Data_for_FY22[[#This Row],[25th]])/25)*15) + AAMC_Raw_Data_for_FY22[[#This Row],[25th]]","v":293157.2},{"$f":"(((AAMC_Raw_Data_for_FY22[[#This Row],[Median]]-AAMC_Raw_Data_for_FY22[[#This Row],[25th]])/25)*20) + AAMC_Raw_Data_for_FY22[[#This Row],[25th]]","v":305459.59999999998},317762,{"$f":"(((AAMC_Raw_Data_for_FY22[[#This Row],[75th]]-AAMC_Raw_Data_for_FY22[[#This Row],[Median]])/25)*5) + AAMC_Raw_Data_for_FY22[[#This Row],[Median]]","v":332209.59999999998},{"$f":"(((AAMC_Raw_Data_for_FY22[[#This Row],[75th]]-AAMC_Raw_Data_for_FY22[[#This Row],[Median]])/25)*10) + AAMC_Raw_Data_for_FY22[[#This Row],[Median]]","v":346657.2},{"$f":"(((AAMC_Raw_Data_for_FY22[[#This Row],[75th]]-AAMC_Raw_Data_for_FY22[[#This Row],[Median]])/25)*15) + AAMC_Raw_Data_for_FY22[[#This Row],[Median]]","v":361104.8},{"$f":"(((AAMC_Raw_Data_for_FY22[[#This Row],[75th]]-AAMC_Raw_Data_for_FY22[[#This Row],[Median]])/25)*20) + AAMC_Raw_Data_for_FY22[[#This Row],[Median]]","v":375552.4},390000,{"$f":"(((AAMC_Raw_Data_for_FY22[[#This Row],[75th]]-AAMC_Raw_Data_for_FY22[[#This Row],[Median]])/25)*30) + AAMC_Raw_Data_for_FY22[[#This Row],[Median]]","v":404447.6},{"$f":"(((AAMC_Raw_Data_for_FY22[[#This Row],[75th]]-AAMC_Raw_Data_for_FY22[[#This Row],[Median]])/25)*35) + AAMC_Raw_Data_for_FY22[[#This Row],[Median]]","v":418895.2},{"$f":"(((AAMC_Raw_Data_for_FY22[[#This Row],[75th]]-AAMC_Raw_Data_for_FY22[[#This Row],[Median]])/25)*40) + AAMC_Raw_Data_for_FY22[[#This Row],[Median]]","v":433342.8}]
[{"$f":"AAMC_Raw_Data_for_FY22[[#This Row],[Source]]&AAMC_Raw_Data_for_FY22[[#This Row],[Type]]&AAMC_Raw_Data_for_FY22[[#This Row],[School Subset]]&AAMC_Raw_Data_for_FY22[[#This Row],[Rank]]&AAMC_Raw_Data_for_FY22[[#This Row],[Degree]]&AAMC_Raw_Data_for_FY22[[#This Row],[Department / Specialty]]&\"L\"","v":"AAMCAcademicAllAssistantPhDBioethics/Medical HumanitiesL"},"Bioethics/Medical Humanities",4,"AAMC","Academic","All","Assistant","PhD","2021-2022",92909,{"$f":"(((AAMC_Raw_Data_for_FY22[[#This Row],[Median]]-AAMC_Raw_Data_for_FY22[[#This Row],[25th]])/25)*5) + AAMC_Raw_Data_for_FY22[[#This Row],[25th]]","v":94482.4},{"$f":"(((AAMC_Raw_Data_for_FY22[[#This Row],[Median]]-AAMC_Raw_Data_for_FY22[[#This Row],[25th]])/25)*10) + AAMC_Raw_Data_for_FY22[[#This Row],[25th]]","v":96055.8},{"$f":"(((AAMC_Raw_Data_for_FY22[[#This Row],[Median]]-AAMC_Raw_Data_for_FY22[[#This Row],[25th]])/25)*15) + AAMC_Raw_Data_for_FY22[[#This Row],[25th]]","v":97629.2},{"$f":"(((AAMC_Raw_Data_for_FY22[[#This Row],[Median]]-AAMC_Raw_Data_for_FY22[[#This Row],[25th]])/25)*20) + AAMC_Raw_Data_for_FY22[[#This Row],[25th]]","v":99202.6},100776,{"$f":"(((AAMC_Raw_Data_for_FY22[[#This Row],[75th]]-AAMC_Raw_Data_for_FY22[[#This Row],[Median]])/25)*5) + AAMC_Raw_Data_for_FY22[[#This Row],[Median]]","v":103967.4},{"$f":"(((AAMC_Raw_Data_for_FY22[[#This Row],[75th]]-AAMC_Raw_Data_for_FY22[[#This Row],[Median]])/25)*10) + AAMC_Raw_Data_for_FY22[[#This Row],[Median]]","v":107158.8},{"$f":"(((AAMC_Raw_Data_for_FY22[[#This Row],[75th]]-AAMC_Raw_Data_for_FY22[[#This Row],[Median]])/25)*15) + AAMC_Raw_Data_for_FY22[[#This Row],[Median]]","v":110350.2},{"$f":"(((AAMC_Raw_Data_for_FY22[[#This Row],[75th]]-AAMC_Raw_Data_for_FY22[[#This Row],[Median]])/25)*20) + AAMC_Raw_Data_for_FY22[[#This Row],[Median]]","v":113541.6},116733,{"$f":"(((AAMC_Raw_Data_for_FY22[[#This Row],[75th]]-AAMC_Raw_Data_for_FY22[[#This Row],[Median]])/25)*30) + AAMC_Raw_Data_for_FY22[[#This Row],[Median]]","v":119924.4},{"$f":"(((AAMC_Raw_Data_for_FY22[[#This Row],[75th]]-AAMC_Raw_Data_for_FY22[[#This Row],[Median]])/25)*35) + AAMC_Raw_Data_for_FY22[[#This Row],[Median]]","v":123115.8},{"$f":"(((AAMC_Raw_Data_for_FY22[[#This Row],[75th]]-AAMC_Raw_Data_for_FY22[[#This Row],[Median]])/25)*40) + AAMC_Raw_Data_for_FY22[[#This Row],[Median]]","v":126307.2}]
[{"$f":"AAMC_Raw_Data_for_FY22[[#This Row],[Source]]&AAMC_Raw_Data_for_FY22[[#This Row],[Type]]&AAMC_Raw_Data_for_FY22[[#This Row],[School Subset]]&AAMC_Raw_Data_for_FY22[[#This Row],[Rank]]&AAMC_Raw_Data_for_FY22[[#This Row],[Degree]]&AAMC_Raw_Data_for_FY22[[#This Row],[Department / Specialty]]&\"L\"","v":"AAMCAcademicAllAssociatePhDBioethics/Medical HumanitiesL"},"Bioethics/Medical Humanities",3,"AAMC","Academic","All","Associate","PhD","2021-2022",115688,{"$f":"(((AAMC_Raw_Data_for_FY22[[#This Row],[Median]]-AAMC_Raw_Data_for_FY22[[#This Row],[25th]])/25)*5) + AAMC_Raw_Data_for_FY22[[#This Row],[25th]]","v":117457.4},{"$f":"(((AAMC_Raw_Data_for_FY22[[#This Row],[Median]]-AAMC_Raw_Data_for_FY22[[#This Row],[25th]])/25)*10) + AAMC_Raw_Data_for_FY22[[#This Row],[25th]]","v":119226.8},{"$f":"(((AAMC_Raw_Data_for_FY22[[#This Row],[Median]]-AAMC_Raw_Data_for_FY22[[#This Row],[25th]])/25)*15) + AAMC_Raw_Data_for_FY22[[#This Row],[25th]]","v":120996.2},{"$f":"(((AAMC_Raw_Data_for_FY22[[#This Row],[Median]]-AAMC_Raw_Data_for_FY22[[#This Row],[25th]])/25)*20) + AAMC_Raw_Data_for_FY22[[#This Row],[25th]]","v":122765.6},124535,{"$f":"(((AAMC_Raw_Data_for_FY22[[#This Row],[75th]]-AAMC_Raw_Data_for_FY22[[#This Row],[Median]])/25)*5) + AAMC_Raw_Data_for_FY22[[#This Row],[Median]]","v":130408.2},{"$f":"(((AAMC_Raw_Data_for_FY22[[#This Row],[75th]]-AAMC_Raw_Data_for_FY22[[#This Row],[Median]])/25)*10) + AAMC_Raw_Data_for_FY22[[#This Row],[Median]]","v":136281.4},{"$f":"(((AAMC_Raw_Data_for_FY22[[#This Row],[75th]]-AAMC_Raw_Data_for_FY22[[#This Row],[Median]])/25)*15) + AAMC_Raw_Data_for_FY22[[#This Row],[Median]]","v":142154.6},{"$f":"(((AAMC_Raw_Data_for_FY22[[#This Row],[75th]]-AAMC_Raw_Data_for_FY22[[#This Row],[Median]])/25)*20) + AAMC_Raw_Data_for_FY22[[#This Row],[Median]]","v":148027.79999999999},153901,{"$f":"(((AAMC_Raw_Data_for_FY22[[#This Row],[75th]]-AAMC_Raw_Data_for_FY22[[#This Row],[Median]])/25)*30) + AAMC_Raw_Data_for_FY22[[#This Row],[Median]]","v":159774.20000000001},{"$f":"(((AAMC_Raw_Data_for_FY22[[#This Row],[75th]]-AAMC_Raw_Data_for_FY22[[#This Row],[Median]])/25)*35) + AAMC_Raw_Data_for_FY22[[#This Row],[Median]]","v":165647.4},{"$f":"(((AAMC_Raw_Data_for_FY22[[#This Row],[75th]]-AAMC_Raw_Data_for_FY22[[#This Row],[Median]])/25)*40) + AAMC_Raw_Data_for_FY22[[#This Row],[Median]]","v":171520.6}]
[{"$f":"AAMC_Raw_Data_for_FY22[[#This Row],[Source]]&AAMC_Raw_Data_for_FY22[[#This Row],[Type]]&AAMC_Raw_Data_for_FY22[[#This Row],[School Subset]]&AAMC_Raw_Data_for_FY22[[#This Row],[Rank]]&AAMC_Raw_Data_for_FY22[[#This Row],[Degree]]&AAMC_Raw_Data_for_FY22[[#This Row],[Department / Specialty]]&\"L\"","v":"AAMCAcademicAllProfessorPhDBioethics/Medical HumanitiesL"},"Bioethics/Medical Humanities",2,"AAMC","Academic","All","Professor","PhD","2021-2022",148944,{"$f":"(((AAMC_Raw_Data_for_FY22[[#This Row],[Median]]-AAMC_Raw_Data_for_FY22[[#This Row],[25th]])/25)*5) + AAMC_Raw_Data_for_FY22[[#This Row],[25th]]","v":154115.4},{"$f":"(((AAMC_Raw_Data_for_FY22[[#This Row],[Median]]-AAMC_Raw_Data_for_FY22[[#This Row],[25th]])/25)*10) + AAMC_Raw_Data_for_FY22[[#This Row],[25th]]","v":159286.79999999999},{"$f":"(((AAMC_Raw_Data_for_FY22[[#This Row],[Median]]-AAMC_Raw_Data_for_FY22[[#This Row],[25th]])/25)*15) + AAMC_Raw_Data_for_FY22[[#This Row],[25th]]","v":164458.20000000001},{"$f":"(((AAMC_Raw_Data_for_FY22[[#This Row],[Median]]-AAMC_Raw_Data_for_FY22[[#This Row],[25th]])/25)*20) + AAMC_Raw_Data_for_FY22[[#This Row],[25th]]","v":169629.6},174801,{"$f":"(((AAMC_Raw_Data_for_FY22[[#This Row],[75th]]-AAMC_Raw_Data_for_FY22[[#This Row],[Median]])/25)*5) + AAMC_Raw_Data_for_FY22[[#This Row],[Median]]","v":181922.6},{"$f":"(((AAMC_Raw_Data_for_FY22[[#This Row],[75th]]-AAMC_Raw_Data_for_FY22[[#This Row],[Median]])/25)*10) + AAMC_Raw_Data_for_FY22[[#This Row],[Median]]","v":189044.2},{"$f":"(((AAMC_Raw_Data_for_FY22[[#This Row],[75th]]-AAMC_Raw_Data_for_FY22[[#This Row],[Median]])/25)*15) + AAMC_Raw_Data_for_FY22[[#This Row],[Median]]","v":196165.8},{"$f":"(((AAMC_Raw_Data_for_FY22[[#This Row],[75th]]-AAMC_Raw_Data_for_FY22[[#This Row],[Median]])/25)*20) + AAMC_Raw_Data_for_FY22[[#This Row],[Median]]","v":203287.4},210409,{"$f":"(((AAMC_Raw_Data_for_FY22[[#This Row],[75th]]-AAMC_Raw_Data_for_FY22[[#This Row],[Median]])/25)*30) + AAMC_Raw_Data_for_FY22[[#This Row],[Median]]","v":217530.6},{"$f":"(((AAMC_Raw_Data_for_FY22[[#This Row],[75th]]-AAMC_Raw_Data_for_FY22[[#This Row],[Median]])/25)*35) + AAMC_Raw_Data_for_FY22[[#This Row],[Median]]","v":224652.2},{"$f":"(((AAMC_Raw_Data_for_FY22[[#This Row],[75th]]-AAMC_Raw_Data_for_FY22[[#This Row],[Median]])/25)*40) + AAMC_Raw_Data_for_FY22[[#This Row],[Median]]","v":231773.8}]
[{"$f":"AAMC_Raw_Data_for_FY22[[#This Row],[Source]]&AAMC_Raw_Data_for_FY22[[#This Row],[Type]]&AAMC_Raw_Data_for_FY22[[#This Row],[School Subset]]&AAMC_Raw_Data_for_FY22[[#This Row],[Rank]]&AAMC_Raw_Data_for_FY22[[#This Row],[Degree]]&AAMC_Raw_Data_for_FY22[[#This Row],[Department / Specialty]]&\"L\"","v":"AAMCAcademicAllChiefPhDBioethics/Medical HumanitiesL"},"Bioethics/Medical Humanities",6,"AAMC","Academic","All","Chief","PhD","2021-2022",null,{"$f":"(((AAMC_Raw_Data_for_FY22[[#This Row],[Median]]-AAMC_Raw_Data_for_FY22[[#This Row],[25th]])/25)*5) + AAMC_Raw_Data_for_FY22[[#This Row],[25th]]","v":0},{"$f":"(((AAMC_Raw_Data_for_FY22[[#This Row],[Median]]-AAMC_Raw_Data_for_FY22[[#This Row],[25th]])/25)*10) + AAMC_Raw_Data_for_FY22[[#This Row],[25th]]","v":0},{"$f":"(((AAMC_Raw_Data_for_FY22[[#This Row],[Median]]-AAMC_Raw_Data_for_FY22[[#This Row],[25th]])/25)*15) + AAMC_Raw_Data_for_FY22[[#This Row],[25th]]","v":0},{"$f":"(((AAMC_Raw_Data_for_FY22[[#This Row],[Median]]-AAMC_Raw_Data_for_FY22[[#This Row],[25th]])/25)*20) + AAMC_Raw_Data_for_FY22[[#This Row],[25th]]","v":0},null,{"$f":"(((AAMC_Raw_Data_for_FY22[[#This Row],[75th]]-AAMC_Raw_Data_for_FY22[[#This Row],[Median]])/25)*5) + AAMC_Raw_Data_for_FY22[[#This Row],[Median]]","v":0},{"$f":"(((AAMC_Raw_Data_for_FY22[[#This Row],[75th]]-AAMC_Raw_Data_for_FY22[[#This Row],[Median]])/25)*10) + AAMC_Raw_Data_for_FY22[[#This Row],[Median]]","v":0},{"$f":"(((AAMC_Raw_Data_for_FY22[[#This Row],[75th]]-AAMC_Raw_Data_for_FY22[[#This Row],[Median]])/25)*15) + AAMC_Raw_Data_for_FY22[[#This Row],[Median]]","v":0},{"$f":"(((AAMC_Raw_Data_for_FY22[[#This Row],[75th]]-AAMC_Raw_Data_for_FY22[[#This Row],[Median]])/25)*20) + AAMC_Raw_Data_for_FY22[[#This Row],[Median]]","v":0},null,{"$f":"(((AAMC_Raw_Data_for_FY22[[#This Row],[75th]]-AAMC_Raw_Data_for_FY22[[#This Row],[Median]])/25)*30) + AAMC_Raw_Data_for_FY22[[#This Row],[Median]]","v":0},{"$f":"(((AAMC_Raw_Data_for_FY22[[#This Row],[75th]]-AAMC_Raw_Data_for_FY22[[#This Row],[Median]])/25)*35) + AAMC_Raw_Data_for_FY22[[#This Row],[Median]]","v":0},{"$f":"(((AAMC_Raw_Data_for_FY22[[#This Row],[75th]]-AAMC_Raw_Data_for_FY22[[#This Row],[Median]])/25)*40) + AAMC_Raw_Data_for_FY22[[#This Row],[Median]]","v":0}]
[{"$f":"AAMC_Raw_Data_for_FY22[[#This Row],[Source]]&AAMC_Raw_Data_for_FY22[[#This Row],[Type]]&AAMC_Raw_Data_for_FY22[[#This Row],[School Subset]]&AAMC_Raw_Data_for_FY22[[#This Row],[Rank]]&AAMC_Raw_Data_for_FY22[[#This Row],[Degree]]&AAMC_Raw_Data_for_FY22[[#This Row],[Department / Specialty]]&\"L\"","v":"AAMCAcademicAllChairPhDBioethics/Medical HumanitiesL"},"Bioethics/Medical Humanities",1,"AAMC","Academic","All","Chair","PhD","2021-2022",244298,{"$f":"(((AAMC_Raw_Data_for_FY22[[#This Row],[Median]]-AAMC_Raw_Data_for_FY22[[#This Row],[25th]])/25)*5) + AAMC_Raw_Data_for_FY22[[#This Row],[25th]]","v":247529.60000000001},{"$f":"(((AAMC_Raw_Data_for_FY22[[#This Row],[Median]]-AAMC_Raw_Data_for_FY22[[#This Row],[25th]])/25)*10) + AAMC_Raw_Data_for_FY22[[#This Row],[25th]]","v":250761.2},{"$f":"(((AAMC_Raw_Data_for_FY22[[#This Row],[Median]]-AAMC_Raw_Data_for_FY22[[#This Row],[25th]])/25)*15) + AAMC_Raw_Data_for_FY22[[#This Row],[25th]]","v":253992.8},{"$f":"(((AAMC_Raw_Data_for_FY22[[#This Row],[Median]]-AAMC_Raw_Data_for_FY22[[#This Row],[25th]])/25)*20) + AAMC_Raw_Data_for_FY22[[#This Row],[25th]]","v":257224.4},260456,{"$f":"(((AAMC_Raw_Data_for_FY22[[#This Row],[75th]]-AAMC_Raw_Data_for_FY22[[#This Row],[Median]])/25)*5) + AAMC_Raw_Data_for_FY22[[#This Row],[Median]]","v":262552.59999999998},{"$f":"(((AAMC_Raw_Data_for_FY22[[#This Row],[75th]]-AAMC_Raw_Data_for_FY22[[#This Row],[Median]])/25)*10) + AAMC_Raw_Data_for_FY22[[#This Row],[Median]]","v":264649.2},{"$f":"(((AAMC_Raw_Data_for_FY22[[#This Row],[75th]]-AAMC_Raw_Data_for_FY22[[#This Row],[Median]])/25)*15) + AAMC_Raw_Data_for_FY22[[#This Row],[Median]]","v":266745.8},{"$f":"(((AAMC_Raw_Data_for_FY22[[#This Row],[75th]]-AAMC_Raw_Data_for_FY22[[#This Row],[Median]])/25)*20) + AAMC_Raw_Data_for_FY22[[#This Row],[Median]]","v":268842.40000000002},270939,{"$f":"(((AAMC_Raw_Data_for_FY22[[#This Row],[75th]]-AAMC_Raw_Data_for_FY22[[#This Row],[Median]])/25)*30) + AAMC_Raw_Data_for_FY22[[#This Row],[Median]]","v":273035.59999999998},{"$f":"(((AAMC_Raw_Data_for_FY22[[#This Row],[75th]]-AAMC_Raw_Data_for_FY22[[#This Row],[Median]])/25)*35) + AAMC_Raw_Data_for_FY22[[#This Row],[Median]]","v":275132.2},{"$f":"(((AAMC_Raw_Data_for_FY22[[#This Row],[75th]]-AAMC_Raw_Data_for_FY22[[#This Row],[Median]])/25)*40) + AAMC_Raw_Data_for_FY22[[#This Row],[Median]]","v":277228.79999999999}]
[{"$f":"AAMC_Raw_Data_for_FY22[[#This Row],[Source]]&AAMC_Raw_Data_for_FY22[[#This Row],[Type]]&AAMC_Raw_Data_for_FY22[[#This Row],[School Subset]]&AAMC_Raw_Data_for_FY22[[#This Row],[Rank]]&AAMC_Raw_Data_for_FY22[[#This Row],[Degree]]&AAMC_Raw_Data_for_FY22[[#This Row],[Department / Specialty]]&\"L\"","v":"AAMCAcademicAllInstructorPhDBiomedical InformaticsL"},"Biomedical Informatics",5,"AAMC","Academic","All","Instructor","PhD","2021-2022",71250,{"$f":"(((AAMC_Raw_Data_for_FY22[[#This Row],[Median]]-AAMC_Raw_Data_for_FY22[[#This Row],[25th]])/25)*5) + AAMC_Raw_Data_for_FY22[[#This Row],[25th]]","v":74651.199999999997},{"$f":"(((AAMC_Raw_Data_for_FY22[[#This Row],[Median]]-AAMC_Raw_Data_for_FY22[[#This Row],[25th]])/25)*10) + AAMC_Raw_Data_for_FY22[[#This Row],[25th]]","v":78052.399999999994},{"$f":"(((AAMC_Raw_Data_for_FY22[[#This Row],[Median]]-AAMC_Raw_Data_for_FY22[[#This Row],[25th]])/25)*15) + AAMC_Raw_Data_for_FY22[[#This Row],[25th]]","v":81453.600000000006},{"$f":"(((AAMC_Raw_Data_for_FY22[[#This Row],[Median]]-AAMC_Raw_Data_for_FY22[[#This Row],[25th]])/25)*20) + AAMC_Raw_Data_for_FY22[[#This Row],[25th]]","v":84854.8},88256,{"$f":"(((AAMC_Raw_Data_for_FY22[[#This Row],[75th]]-AAMC_Raw_Data_for_FY22[[#This Row],[Median]])/25)*5) + AAMC_Raw_Data_for_FY22[[#This Row],[Median]]","v":90254.8},{"$f":"(((AAMC_Raw_Data_for_FY22[[#This Row],[75th]]-AAMC_Raw_Data_for_FY22[[#This Row],[Median]])/25)*10) + AAMC_Raw_Data_for_FY22[[#This Row],[Median]]","v":92253.6},{"$f":"(((AAMC_Raw_Data_for_FY22[[#This Row],[75th]]-AAMC_Raw_Data_for_FY22[[#This Row],[Median]])/25)*15) + AAMC_Raw_Data_for_FY22[[#This Row],[Median]]","v":94252.4},{"$f":"(((AAMC_Raw_Data_for_FY22[[#This Row],[75th]]-AAMC_Raw_Data_for_FY22[[#This Row],[Median]])/25)*20) + AAMC_Raw_Data_for_FY22[[#This Row],[Median]]","v":96251.199999999997},98250,{"$f":"(((AAMC_Raw_Data_for_FY22[[#This Row],[75th]]-AAMC_Raw_Data_for_FY22[[#This Row],[Median]])/25)*30) + AAMC_Raw_Data_for_FY22[[#This Row],[Median]]","v":100248.8},{"$f":"(((AAMC_Raw_Data_for_FY22[[#This Row],[75th]]-AAMC_Raw_Data_for_FY22[[#This Row],[Median]])/25)*35) + AAMC_Raw_Data_for_FY22[[#This Row],[Median]]","v":102247.6},{"$f":"(((AAMC_Raw_Data_for_FY22[[#This Row],[75th]]-AAMC_Raw_Data_for_FY22[[#This Row],[Median]])/25)*40) + AAMC_Raw_Data_for_FY22[[#This Row],[Median]]","v":104246.39999999999}]
[{"$f":"AAMC_Raw_Data_for_FY22[[#This Row],[Source]]&AAMC_Raw_Data_for_FY22[[#This Row],[Type]]&AAMC_Raw_Data_for_FY22[[#This Row],[School Subset]]&AAMC_Raw_Data_for_FY22[[#This Row],[Rank]]&AAMC_Raw_Data_for_FY22[[#This Row],[Degree]]&AAMC_Raw_Data_for_FY22[[#This Row],[Department / Specialty]]&\"L\"","v":"AAMCAcademicAllAssistantPhDBiomedical InformaticsL"},"Biomedical Informatics",4,"AAMC","Academic","All","Assistant","PhD","2021-2022",112125,{"$f":"(((AAMC_Raw_Data_for_FY22[[#This Row],[Median]]-AAMC_Raw_Data_for_FY22[[#This Row],[25th]])/25)*5) + AAMC_Raw_Data_for_FY22[[#This Row],[25th]]","v":115700},{"$f":"(((AAMC_Raw_Data_for_FY22[[#This Row],[Median]]-AAMC_Raw_Data_for_FY22[[#This Row],[25th]])/25)*10) + AAMC_Raw_Data_for_FY22[[#This Row],[25th]]","v":119275},{"$f":"(((AAMC_Raw_Data_for_FY22[[#This Row],[Median]]-AAMC_Raw_Data_for_FY22[[#This Row],[25th]])/25)*15) + AAMC_Raw_Data_for_FY22[[#This Row],[25th]]","v":122850},{"$f":"(((AAMC_Raw_Data_for_FY22[[#This Row],[Median]]-AAMC_Raw_Data_for_FY22[[#This Row],[25th]])/25)*20) + AAMC_Raw_Data_for_FY22[[#This Row],[25th]]","v":126425},130000,{"$f":"(((AAMC_Raw_Data_for_FY22[[#This Row],[75th]]-AAMC_Raw_Data_for_FY22[[#This Row],[Median]])/25)*5) + AAMC_Raw_Data_for_FY22[[#This Row],[Median]]","v":133176.4},{"$f":"(((AAMC_Raw_Data_for_FY22[[#This Row],[75th]]-AAMC_Raw_Data_for_FY22[[#This Row],[Median]])/25)*10) + AAMC_Raw_Data_for_FY22[[#This Row],[Median]]","v":136352.79999999999},{"$f":"(((AAMC_Raw_Data_for_FY22[[#This Row],[75th]]-AAMC_Raw_Data_for_FY22[[#This Row],[Median]])/25)*15) + AAMC_Raw_Data_for_FY22[[#This Row],[Median]]","v":139529.20000000001},{"$f":"(((AAMC_Raw_Data_for_FY22[[#This Row],[75th]]-AAMC_Raw_Data_for_FY22[[#This Row],[Median]])/25)*20) + AAMC_Raw_Data_for_FY22[[#This Row],[Median]]","v":142705.60000000001},145882,{"$f":"(((AAMC_Raw_Data_for_FY22[[#This Row],[75th]]-AAMC_Raw_Data_for_FY22[[#This Row],[Median]])/25)*30) + AAMC_Raw_Data_for_FY22[[#This Row],[Median]]","v":149058.4},{"$f":"(((AAMC_Raw_Data_for_FY22[[#This Row],[75th]]-AAMC_Raw_Data_for_FY22[[#This Row],[Median]])/25)*35) + AAMC_Raw_Data_for_FY22[[#This Row],[Median]]","v":152234.79999999999},{"$f":"(((AAMC_Raw_Data_for_FY22[[#This Row],[75th]]-AAMC_Raw_Data_for_FY22[[#This Row],[Median]])/25)*40) + AAMC_Raw_Data_for_FY22[[#This Row],[Median]]","v":155411.20000000001}]
[{"$f":"AAMC_Raw_Data_for_FY22[[#This Row],[Source]]&AAMC_Raw_Data_for_FY22[[#This Row],[Type]]&AAMC_Raw_Data_for_FY22[[#This Row],[School Subset]]&AAMC_Raw_Data_for_FY22[[#This Row],[Rank]]&AAMC_Raw_Data_for_FY22[[#This Row],[Degree]]&AAMC_Raw_Data_for_FY22[[#This Row],[Department / Specialty]]&\"L\"","v":"AAMCAcademicAllAssociatePhDBiomedical InformaticsL"},"Biomedical Informatics",3,"AAMC","Academic","All","Associate","PhD","2021-2022",149948,{"$f":"(((AAMC_Raw_Data_for_FY22[[#This Row],[Median]]-AAMC_Raw_Data_for_FY22[[#This Row],[25th]])/25)*5) + AAMC_Raw_Data_for_FY22[[#This Row],[25th]]","v":153958.39999999999},{"$f":"(((AAMC_Raw_Data_for_FY22[[#This Row],[Median]]-AAMC_Raw_Data_for_FY22[[#This Row],[25th]])/25)*10) + AAMC_Raw_Data_for_FY22[[#This Row],[25th]]","v":157968.79999999999},{"$f":"(((AAMC_Raw_Data_for_FY22[[#This Row],[Median]]-AAMC_Raw_Data_for_FY22[[#This Row],[25th]])/25)*15) + AAMC_Raw_Data_for_FY22[[#This Row],[25th]]","v":161979.20000000001},{"$f":"(((AAMC_Raw_Data_for_FY22[[#This Row],[Median]]-AAMC_Raw_Data_for_FY22[[#This Row],[25th]])/25)*20) + AAMC_Raw_Data_for_FY22[[#This Row],[25th]]","v":165989.6},170000,{"$f":"(((AAMC_Raw_Data_for_FY22[[#This Row],[75th]]-AAMC_Raw_Data_for_FY22[[#This Row],[Median]])/25)*5) + AAMC_Raw_Data_for_FY22[[#This Row],[Median]]","v":174237.8},{"$f":"(((AAMC_Raw_Data_for_FY22[[#This Row],[75th]]-AAMC_Raw_Data_for_FY22[[#This Row],[Median]])/25)*10) + AAMC_Raw_Data_for_FY22[[#This Row],[Median]]","v":178475.6},{"$f":"(((AAMC_Raw_Data_for_FY22[[#This Row],[75th]]-AAMC_Raw_Data_for_FY22[[#This Row],[Median]])/25)*15) + AAMC_Raw_Data_for_FY22[[#This Row],[Median]]","v":182713.4},{"$f":"(((AAMC_Raw_Data_for_FY22[[#This Row],[75th]]-AAMC_Raw_Data_for_FY22[[#This Row],[Median]])/25)*20) + AAMC_Raw_Data_for_FY22[[#This Row],[Median]]","v":186951.2},191189,{"$f":"(((AAMC_Raw_Data_for_FY22[[#This Row],[75th]]-AAMC_Raw_Data_for_FY22[[#This Row],[Median]])/25)*30) + AAMC_Raw_Data_for_FY22[[#This Row],[Median]]","v":195426.8},{"$f":"(((AAMC_Raw_Data_for_FY22[[#This Row],[75th]]-AAMC_Raw_Data_for_FY22[[#This Row],[Median]])/25)*35) + AAMC_Raw_Data_for_FY22[[#This Row],[Median]]","v":199664.6},{"$f":"(((AAMC_Raw_Data_for_FY22[[#This Row],[75th]]-AAMC_Raw_Data_for_FY22[[#This Row],[Median]])/25)*40) + AAMC_Raw_Data_for_FY22[[#This Row],[Median]]","v":203902.4}]
[{"$f":"AAMC_Raw_Data_for_FY22[[#This Row],[Source]]&AAMC_Raw_Data_for_FY22[[#This Row],[Type]]&AAMC_Raw_Data_for_FY22[[#This Row],[School Subset]]&AAMC_Raw_Data_for_FY22[[#This Row],[Rank]]&AAMC_Raw_Data_for_FY22[[#This Row],[Degree]]&AAMC_Raw_Data_for_FY22[[#This Row],[Department / Specialty]]&\"L\"","v":"AAMCAcademicAllProfessorPhDBiomedical InformaticsL"},"Biomedical Informatics",2,"AAMC","Academic","All","Professor","PhD","2021-2022",218977,{"$f":"(((AAMC_Raw_Data_for_FY22[[#This Row],[Median]]-AAMC_Raw_Data_for_FY22[[#This Row],[25th]])/25)*5) + AAMC_Raw_Data_for_FY22[[#This Row],[25th]]","v":227701.8},{"$f":"(((AAMC_Raw_Data_for_FY22[[#This Row],[Median]]-AAMC_Raw_Data_for_FY22[[#This Row],[25th]])/25)*10) + AAMC_Raw_Data_for_FY22[[#This Row],[25th]]","v":236426.6},{"$f":"(((AAMC_Raw_Data_for_FY22[[#This Row],[Median]]-AAMC_Raw_Data_for_FY22[[#This Row],[25th]])/25)*15) + AAMC_Raw_Data_for_FY22[[#This Row],[25th]]","v":245151.4},{"$f":"(((AAMC_Raw_Data_for_FY22[[#This Row],[Median]]-AAMC_Raw_Data_for_FY22[[#This Row],[25th]])/25)*20) + AAMC_Raw_Data_for_FY22[[#This Row],[25th]]","v":253876.2},262601,{"$f":"(((AAMC_Raw_Data_for_FY22[[#This Row],[75th]]-AAMC_Raw_Data_for_FY22[[#This Row],[Median]])/25)*5) + AAMC_Raw_Data_for_FY22[[#This Row],[Median]]","v":270318.40000000002},{"$f":"(((AAMC_Raw_Data_for_FY22[[#This Row],[75th]]-AAMC_Raw_Data_for_FY22[[#This Row],[Median]])/25)*10) + AAMC_Raw_Data_for_FY22[[#This Row],[Median]]","v":278035.8},{"$f":"(((AAMC_Raw_Data_for_FY22[[#This Row],[75th]]-AAMC_Raw_Data_for_FY22[[#This Row],[Median]])/25)*15) + AAMC_Raw_Data_for_FY22[[#This Row],[Median]]","v":285753.2},{"$f":"(((AAMC_Raw_Data_for_FY22[[#This Row],[75th]]-AAMC_Raw_Data_for_FY22[[#This Row],[Median]])/25)*20) + AAMC_Raw_Data_for_FY22[[#This Row],[Median]]","v":293470.59999999998},301188,{"$f":"(((AAMC_Raw_Data_for_FY22[[#This Row],[75th]]-AAMC_Raw_Data_for_FY22[[#This Row],[Median]])/25)*30) + AAMC_Raw_Data_for_FY22[[#This Row],[Median]]","v":308905.40000000002},{"$f":"(((AAMC_Raw_Data_for_FY22[[#This Row],[75th]]-AAMC_Raw_Data_for_FY22[[#This Row],[Median]])/25)*35) + AAMC_Raw_Data_for_FY22[[#This Row],[Median]]","v":316622.8},{"$f":"(((AAMC_Raw_Data_for_FY22[[#This Row],[75th]]-AAMC_Raw_Data_for_FY22[[#This Row],[Median]])/25)*40) + AAMC_Raw_Data_for_FY22[[#This Row],[Median]]","v":324340.2}]
[{"$f":"AAMC_Raw_Data_for_FY22[[#This Row],[Source]]&AAMC_Raw_Data_for_FY22[[#This Row],[Type]]&AAMC_Raw_Data_for_FY22[[#This Row],[School Subset]]&AAMC_Raw_Data_for_FY22[[#This Row],[Rank]]&AAMC_Raw_Data_for_FY22[[#This Row],[Degree]]&AAMC_Raw_Data_for_FY22[[#This Row],[Department / Specialty]]&\"L\"","v":"AAMCAcademicAllChiefPhDBiomedical InformaticsL"},"Biomedical Informatics",6,"AAMC","Academic","All","Chief","PhD","2021-2022",120820,{"$f":"(((AAMC_Raw_Data_for_FY22[[#This Row],[Median]]-AAMC_Raw_Data_for_FY22[[#This Row],[25th]])/25)*5) + AAMC_Raw_Data_for_FY22[[#This Row],[25th]]","v":134703},{"$f":"(((AAMC_Raw_Data_for_FY22[[#This Row],[Median]]-AAMC_Raw_Data_for_FY22[[#This Row],[25th]])/25)*10) + AAMC_Raw_Data_for_FY22[[#This Row],[25th]]","v":148586},{"$f":"(((AAMC_Raw_Data_for_FY22[[#This Row],[Median]]-AAMC_Raw_Data_for_FY22[[#This Row],[25th]])/25)*15) + AAMC_Raw_Data_for_FY22[[#This Row],[25th]]","v":162469},{"$f":"(((AAMC_Raw_Data_for_FY22[[#This Row],[Median]]-AAMC_Raw_Data_for_FY22[[#This Row],[25th]])/25)*20) + AAMC_Raw_Data_for_FY22[[#This Row],[25th]]","v":176352},190235,{"$f":"(((AAMC_Raw_Data_for_FY22[[#This Row],[75th]]-AAMC_Raw_Data_for_FY22[[#This Row],[Median]])/25)*5) + AAMC_Raw_Data_for_FY22[[#This Row],[Median]]","v":210649},{"$f":"(((AAMC_Raw_Data_for_FY22[[#This Row],[75th]]-AAMC_Raw_Data_for_FY22[[#This Row],[Median]])/25)*10) + AAMC_Raw_Data_for_FY22[[#This Row],[Median]]","v":231063},{"$f":"(((AAMC_Raw_Data_for_FY22[[#This Row],[75th]]-AAMC_Raw_Data_for_FY22[[#This Row],[Median]])/25)*15) + AAMC_Raw_Data_for_FY22[[#This Row],[Median]]","v":251477},{"$f":"(((AAMC_Raw_Data_for_FY22[[#This Row],[75th]]-AAMC_Raw_Data_for_FY22[[#This Row],[Median]])/25)*20) + AAMC_Raw_Data_for_FY22[[#This Row],[Median]]","v":271891},292305,{"$f":"(((AAMC_Raw_Data_for_FY22[[#This Row],[75th]]-AAMC_Raw_Data_for_FY22[[#This Row],[Median]])/25)*30) + AAMC_Raw_Data_for_FY22[[#This Row],[Median]]","v":312719},{"$f":"(((AAMC_Raw_Data_for_FY22[[#This Row],[75th]]-AAMC_Raw_Data_for_FY22[[#This Row],[Median]])/25)*35) + AAMC_Raw_Data_for_FY22[[#This Row],[Median]]","v":333133},{"$f":"(((AAMC_Raw_Data_for_FY22[[#This Row],[75th]]-AAMC_Raw_Data_for_FY22[[#This Row],[Median]])/25)*40) + AAMC_Raw_Data_for_FY22[[#This Row],[Median]]","v":353547}]
[{"$f":"AAMC_Raw_Data_for_FY22[[#This Row],[Source]]&AAMC_Raw_Data_for_FY22[[#This Row],[Type]]&AAMC_Raw_Data_for_FY22[[#This Row],[School Subset]]&AAMC_Raw_Data_for_FY22[[#This Row],[Rank]]&AAMC_Raw_Data_for_FY22[[#This Row],[Degree]]&AAMC_Raw_Data_for_FY22[[#This Row],[Department / Specialty]]&\"L\"","v":"AAMCAcademicAllChairPhDBiomedical InformaticsL"},"Biomedical Informatics",1,"AAMC","Academic","All","Chair","PhD","2021-2022",306866,{"$f":"(((AAMC_Raw_Data_for_FY22[[#This Row],[Median]]-AAMC_Raw_Data_for_FY22[[#This Row],[25th]])/25)*5) + AAMC_Raw_Data_for_FY22[[#This Row],[25th]]","v":320154.59999999998},{"$f":"(((AAMC_Raw_Data_for_FY22[[#This Row],[Median]]-AAMC_Raw_Data_for_FY22[[#This Row],[25th]])/25)*10) + AAMC_Raw_Data_for_FY22[[#This Row],[25th]]","v":333443.20000000001},{"$f":"(((AAMC_Raw_Data_for_FY22[[#This Row],[Median]]-AAMC_Raw_Data_for_FY22[[#This Row],[25th]])/25)*15) + AAMC_Raw_Data_for_FY22[[#This Row],[25th]]","v":346731.8},{"$f":"(((AAMC_Raw_Data_for_FY22[[#This Row],[Median]]-AAMC_Raw_Data_for_FY22[[#This Row],[25th]])/25)*20) + AAMC_Raw_Data_for_FY22[[#This Row],[25th]]","v":360020.4},373309,{"$f":"(((AAMC_Raw_Data_for_FY22[[#This Row],[75th]]-AAMC_Raw_Data_for_FY22[[#This Row],[Median]])/25)*5) + AAMC_Raw_Data_for_FY22[[#This Row],[Median]]","v":389240.8},{"$f":"(((AAMC_Raw_Data_for_FY22[[#This Row],[75th]]-AAMC_Raw_Data_for_FY22[[#This Row],[Median]])/25)*10) + AAMC_Raw_Data_for_FY22[[#This Row],[Median]]","v":405172.6},{"$f":"(((AAMC_Raw_Data_for_FY22[[#This Row],[75th]]-AAMC_Raw_Data_for_FY22[[#This Row],[Median]])/25)*15) + AAMC_Raw_Data_for_FY22[[#This Row],[Median]]","v":421104.4},{"$f":"(((AAMC_Raw_Data_for_FY22[[#This Row],[75th]]-AAMC_Raw_Data_for_FY22[[#This Row],[Median]])/25)*20) + AAMC_Raw_Data_for_FY22[[#This Row],[Median]]","v":437036.2},452968,{"$f":"(((AAMC_Raw_Data_for_FY22[[#This Row],[75th]]-AAMC_Raw_Data_for_FY22[[#This Row],[Median]])/25)*30) + AAMC_Raw_Data_for_FY22[[#This Row],[Median]]","v":468899.8},{"$f":"(((AAMC_Raw_Data_for_FY22[[#This Row],[75th]]-AAMC_Raw_Data_for_FY22[[#This Row],[Median]])/25)*35) + AAMC_Raw_Data_for_FY22[[#This Row],[Median]]","v":484831.6},{"$f":"(((AAMC_Raw_Data_for_FY22[[#This Row],[75th]]-AAMC_Raw_Data_for_FY22[[#This Row],[Median]])/25)*40) + AAMC_Raw_Data_for_FY22[[#This Row],[Median]]","v":500763.4}]
[{"$f":"AAMC_Raw_Data_for_FY22[[#This Row],[Source]]&AAMC_Raw_Data_for_FY22[[#This Row],[Type]]&AAMC_Raw_Data_for_FY22[[#This Row],[School Subset]]&AAMC_Raw_Data_for_FY22[[#This Row],[Rank]]&AAMC_Raw_Data_for_FY22[[#This Row],[Degree]]&AAMC_Raw_Data_for_FY22[[#This Row],[Department / Specialty]]&\"L\"","v":"AAMCAcademicAllInstructorPhDBiostatisticsL"},"Biostatistics",5,"AAMC","Academic","All","Instructor","PhD","2021-2022",86637,{"$f":"(((AAMC_Raw_Data_for_FY22[[#This Row],[Median]]-AAMC_Raw_Data_for_FY22[[#This Row],[25th]])/25)*5) + AAMC_Raw_Data_for_FY22[[#This Row],[25th]]","v":88400.2},{"$f":"(((AAMC_Raw_Data_for_FY22[[#This Row],[Median]]-AAMC_Raw_Data_for_FY22[[#This Row],[25th]])/25)*10) + AAMC_Raw_Data_for_FY22[[#This Row],[25th]]","v":90163.4},{"$f":"(((AAMC_Raw_Data_for_FY22[[#This Row],[Median]]-AAMC_Raw_Data_for_FY22[[#This Row],[25th]])/25)*15) + AAMC_Raw_Data_for_FY22[[#This Row],[25th]]","v":91926.6},{"$f":"(((AAMC_Raw_Data_for_FY22[[#This Row],[Median]]-AAMC_Raw_Data_for_FY22[[#This Row],[25th]])/25)*20) + AAMC_Raw_Data_for_FY22[[#This Row],[25th]]","v":93689.8},95453,{"$f":"(((AAMC_Raw_Data_for_FY22[[#This Row],[75th]]-AAMC_Raw_Data_for_FY22[[#This Row],[Median]])/25)*5) + AAMC_Raw_Data_for_FY22[[#This Row],[Median]]","v":97968.2},{"$f":"(((AAMC_Raw_Data_for_FY22[[#This Row],[75th]]-AAMC_Raw_Data_for_FY22[[#This Row],[Median]])/25)*10) + AAMC_Raw_Data_for_FY22[[#This Row],[Median]]","v":100483.4},{"$f":"(((AAMC_Raw_Data_for_FY22[[#This Row],[75th]]-AAMC_Raw_Data_for_FY22[[#This Row],[Median]])/25)*15) + AAMC_Raw_Data_for_FY22[[#This Row],[Median]]","v":102998.6},{"$f":"(((AAMC_Raw_Data_for_FY22[[#This Row],[75th]]-AAMC_Raw_Data_for_FY22[[#This Row],[Median]])/25)*20) + AAMC_Raw_Data_for_FY22[[#This Row],[Median]]","v":105513.8},108029,{"$f":"(((AAMC_Raw_Data_for_FY22[[#This Row],[75th]]-AAMC_Raw_Data_for_FY22[[#This Row],[Median]])/25)*30) + AAMC_Raw_Data_for_FY22[[#This Row],[Median]]","v":110544.2},{"$f":"(((AAMC_Raw_Data_for_FY22[[#This Row],[75th]]-AAMC_Raw_Data_for_FY22[[#This Row],[Median]])/25)*35) + AAMC_Raw_Data_for_FY22[[#This Row],[Median]]","v":113059.4},{"$f":"(((AAMC_Raw_Data_for_FY22[[#This Row],[75th]]-AAMC_Raw_Data_for_FY22[[#This Row],[Median]])/25)*40) + AAMC_Raw_Data_for_FY22[[#This Row],[Median]]","v":115574.6}]
[{"$f":"AAMC_Raw_Data_for_FY22[[#This Row],[Source]]&AAMC_Raw_Data_for_FY22[[#This Row],[Type]]&AAMC_Raw_Data_for_FY22[[#This Row],[School Subset]]&AAMC_Raw_Data_for_FY22[[#This Row],[Rank]]&AAMC_Raw_Data_for_FY22[[#This Row],[Degree]]&AAMC_Raw_Data_for_FY22[[#This Row],[Department / Specialty]]&\"L\"","v":"AAMCAcademicAllAssistantPhDBiostatisticsL"},"Biostatistics",4,"AAMC","Academic","All","Assistant","PhD","2021-2022",117362,{"$f":"(((AAMC_Raw_Data_for_FY22[[#This Row],[Median]]-AAMC_Raw_Data_for_FY22[[#This Row],[25th]])/25)*5) + AAMC_Raw_Data_for_FY22[[#This Row],[25th]]","v":120024},{"$f":"(((AAMC_Raw_Data_for_FY22[[#This Row],[Median]]-AAMC_Raw_Data_for_FY22[[#This Row],[25th]])/25)*10) + AAMC_Raw_Data_for_FY22[[#This Row],[25th]]","v":122686},{"$f":"(((AAMC_Raw_Data_for_FY22[[#This Row],[Median]]-AAMC_Raw_Data_for_FY22[[#This Row],[25th]])/25)*15) + AAMC_Raw_Data_for_FY22[[#This Row],[25th]]","v":125348},{"$f":"(((AAMC_Raw_Data_for_FY22[[#This Row],[Median]]-AAMC_Raw_Data_for_FY22[[#This Row],[25th]])/25)*20) + AAMC_Raw_Data_for_FY22[[#This Row],[25th]]","v":128010},130672,{"$f":"(((AAMC_Raw_Data_for_FY22[[#This Row],[75th]]-AAMC_Raw_Data_for_FY22[[#This Row],[Median]])/25)*5) + AAMC_Raw_Data_for_FY22[[#This Row],[Median]]","v":133008.20000000001},{"$f":"(((AAMC_Raw_Data_for_FY22[[#This Row],[75th]]-AAMC_Raw_Data_for_FY22[[#This Row],[Median]])/25)*10) + AAMC_Raw_Data_for_FY22[[#This Row],[Median]]","v":135344.4},{"$f":"(((AAMC_Raw_Data_for_FY22[[#This Row],[75th]]-AAMC_Raw_Data_for_FY22[[#This Row],[Median]])/25)*15) + AAMC_Raw_Data_for_FY22[[#This Row],[Median]]","v":137680.6},{"$f":"(((AAMC_Raw_Data_for_FY22[[#This Row],[75th]]-AAMC_Raw_Data_for_FY22[[#This Row],[Median]])/25)*20) + AAMC_Raw_Data_for_FY22[[#This Row],[Median]]","v":140016.79999999999},142353,{"$f":"(((AAMC_Raw_Data_for_FY22[[#This Row],[75th]]-AAMC_Raw_Data_for_FY22[[#This Row],[Median]])/25)*30) + AAMC_Raw_Data_for_FY22[[#This Row],[Median]]","v":144689.20000000001},{"$f":"(((AAMC_Raw_Data_for_FY22[[#This Row],[75th]]-AAMC_Raw_Data_for_FY22[[#This Row],[Median]])/25)*35) + AAMC_Raw_Data_for_FY22[[#This Row],[Median]]","v":147025.4},{"$f":"(((AAMC_Raw_Data_for_FY22[[#This Row],[75th]]-AAMC_Raw_Data_for_FY22[[#This Row],[Median]])/25)*40) + AAMC_Raw_Data_for_FY22[[#This Row],[Median]]","v":149361.60000000001}]
[{"$f":"AAMC_Raw_Data_for_FY22[[#This Row],[Source]]&AAMC_Raw_Data_for_FY22[[#This Row],[Type]]&AAMC_Raw_Data_for_FY22[[#This Row],[School Subset]]&AAMC_Raw_Data_for_FY22[[#This Row],[Rank]]&AAMC_Raw_Data_for_FY22[[#This Row],[Degree]]&AAMC_Raw_Data_for_FY22[[#This Row],[Department / Specialty]]&\"L\"","v":"AAMCAcademicAllAssociatePhDBiostatisticsL"},"Biostatistics",3,"AAMC","Academic","All","Associate","PhD","2021-2022",144460,{"$f":"(((AAMC_Raw_Data_for_FY22[[#This Row],[Median]]-AAMC_Raw_Data_for_FY22[[#This Row],[25th]])/25)*5) + AAMC_Raw_Data_for_FY22[[#This Row],[25th]]","v":147934.6},{"$f":"(((AAMC_Raw_Data_for_FY22[[#This Row],[Median]]-AAMC_Raw_Data_for_FY22[[#This Row],[25th]])/25)*10) + AAMC_Raw_Data_for_FY22[[#This Row],[25th]]","v":151409.20000000001},{"$f":"(((AAMC_Raw_Data_for_FY22[[#This Row],[Median]]-AAMC_Raw_Data_for_FY22[[#This Row],[25th]])/25)*15) + AAMC_Raw_Data_for_FY22[[#This Row],[25th]]","v":154883.79999999999},{"$f":"(((AAMC_Raw_Data_for_FY22[[#This Row],[Median]]-AAMC_Raw_Data_for_FY22[[#This Row],[25th]])/25)*20) + AAMC_Raw_Data_for_FY22[[#This Row],[25th]]","v":158358.39999999999},161833,{"$f":"(((AAMC_Raw_Data_for_FY22[[#This Row],[75th]]-AAMC_Raw_Data_for_FY22[[#This Row],[Median]])/25)*5) + AAMC_Raw_Data_for_FY22[[#This Row],[Median]]","v":165288.79999999999},{"$f":"(((AAMC_Raw_Data_for_FY22[[#This Row],[75th]]-AAMC_Raw_Data_for_FY22[[#This Row],[Median]])/25)*10) + AAMC_Raw_Data_for_FY22[[#This Row],[Median]]","v":168744.6},{"$f":"(((AAMC_Raw_Data_for_FY22[[#This Row],[75th]]-AAMC_Raw_Data_for_FY22[[#This Row],[Median]])/25)*15) + AAMC_Raw_Data_for_FY22[[#This Row],[Median]]","v":172200.4},{"$f":"(((AAMC_Raw_Data_for_FY22[[#This Row],[75th]]-AAMC_Raw_Data_for_FY22[[#This Row],[Median]])/25)*20) + AAMC_Raw_Data_for_FY22[[#This Row],[Median]]","v":175656.2},179112,{"$f":"(((AAMC_Raw_Data_for_FY22[[#This Row],[75th]]-AAMC_Raw_Data_for_FY22[[#This Row],[Median]])/25)*30) + AAMC_Raw_Data_for_FY22[[#This Row],[Median]]","v":182567.8},{"$f":"(((AAMC_Raw_Data_for_FY22[[#This Row],[75th]]-AAMC_Raw_Data_for_FY22[[#This Row],[Median]])/25)*35) + AAMC_Raw_Data_for_FY22[[#This Row],[Median]]","v":186023.6},{"$f":"(((AAMC_Raw_Data_for_FY22[[#This Row],[75th]]-AAMC_Raw_Data_for_FY22[[#This Row],[Median]])/25)*40) + AAMC_Raw_Data_for_FY22[[#This Row],[Median]]","v":189479.4}]
[{"$f":"AAMC_Raw_Data_for_FY22[[#This Row],[Source]]&AAMC_Raw_Data_for_FY22[[#This Row],[Type]]&AAMC_Raw_Data_for_FY22[[#This Row],[School Subset]]&AAMC_Raw_Data_for_FY22[[#This Row],[Rank]]&AAMC_Raw_Data_for_FY22[[#This Row],[Degree]]&AAMC_Raw_Data_for_FY22[[#This Row],[Department / Specialty]]&\"L\"","v":"AAMCAcademicAllProfessorPhDBiostatisticsL"},"Biostatistics",2,"AAMC","Academic","All","Professor","PhD","2021-2022",199992,{"$f":"(((AAMC_Raw_Data_for_FY22[[#This Row],[Median]]-AAMC_Raw_Data_for_FY22[[#This Row],[25th]])/25)*5) + AAMC_Raw_Data_for_FY22[[#This Row],[25th]]","v":205216.6},{"$f":"(((AAMC_Raw_Data_for_FY22[[#This Row],[Median]]-AAMC_Raw_Data_for_FY22[[#This Row],[25th]])/25)*10) + AAMC_Raw_Data_for_FY22[[#This Row],[25th]]","v":210441.2},{"$f":"(((AAMC_Raw_Data_for_FY22[[#This Row],[Median]]-AAMC_Raw_Data_for_FY22[[#This Row],[25th]])/25)*15) + AAMC_Raw_Data_for_FY22[[#This Row],[25th]]","v":215665.8},{"$f":"(((AAMC_Raw_Data_for_FY22[[#This Row],[Median]]-AAMC_Raw_Data_for_FY22[[#This Row],[25th]])/25)*20) + AAMC_Raw_Data_for_FY22[[#This Row],[25th]]","v":220890.4},226115,{"$f":"(((AAMC_Raw_Data_for_FY22[[#This Row],[75th]]-AAMC_Raw_Data_for_FY22[[#This Row],[Median]])/25)*5) + AAMC_Raw_Data_for_FY22[[#This Row],[Median]]","v":235096.4},{"$f":"(((AAMC_Raw_Data_for_FY22[[#This Row],[75th]]-AAMC_Raw_Data_for_FY22[[#This Row],[Median]])/25)*10) + AAMC_Raw_Data_for_FY22[[#This Row],[Median]]","v":244077.8},{"$f":"(((AAMC_Raw_Data_for_FY22[[#This Row],[75th]]-AAMC_Raw_Data_for_FY22[[#This Row],[Median]])/25)*15) + AAMC_Raw_Data_for_FY22[[#This Row],[Median]]","v":253059.20000000001},{"$f":"(((AAMC_Raw_Data_for_FY22[[#This Row],[75th]]-AAMC_Raw_Data_for_FY22[[#This Row],[Median]])/25)*20) + AAMC_Raw_Data_for_FY22[[#This Row],[Median]]","v":262040.6},271022,{"$f":"(((AAMC_Raw_Data_for_FY22[[#This Row],[75th]]-AAMC_Raw_Data_for_FY22[[#This Row],[Median]])/25)*30) + AAMC_Raw_Data_for_FY22[[#This Row],[Median]]","v":280003.40000000002},{"$f":"(((AAMC_Raw_Data_for_FY22[[#This Row],[75th]]-AAMC_Raw_Data_for_FY22[[#This Row],[Median]])/25)*35) + AAMC_Raw_Data_for_FY22[[#This Row],[Median]]","v":288984.8},{"$f":"(((AAMC_Raw_Data_for_FY22[[#This Row],[75th]]-AAMC_Raw_Data_for_FY22[[#This Row],[Median]])/25)*40) + AAMC_Raw_Data_for_FY22[[#This Row],[Median]]","v":297966.2}]
[{"$f":"AAMC_Raw_Data_for_FY22[[#This Row],[Source]]&AAMC_Raw_Data_for_FY22[[#This Row],[Type]]&AAMC_Raw_Data_for_FY22[[#This Row],[School Subset]]&AAMC_Raw_Data_for_FY22[[#This Row],[Rank]]&AAMC_Raw_Data_for_FY22[[#This Row],[Degree]]&AAMC_Raw_Data_for_FY22[[#This Row],[Department / Specialty]]&\"L\"","v":"AAMCAcademicAllChiefPhDBiostatisticsL"},"Biostatistics",6,"AAMC","Academic","All","Chief","PhD","2021-2022",271332,{"$f":"(((AAMC_Raw_Data_for_FY22[[#This Row],[Median]]-AAMC_Raw_Data_for_FY22[[#This Row],[25th]])/25)*5) + AAMC_Raw_Data_for_FY22[[#This Row],[25th]]","v":283870.8},{"$f":"(((AAMC_Raw_Data_for_FY22[[#This Row],[Median]]-AAMC_Raw_Data_for_FY22[[#This Row],[25th]])/25)*10) + AAMC_Raw_Data_for_FY22[[#This Row],[25th]]","v":296409.59999999998},{"$f":"(((AAMC_Raw_Data_for_FY22[[#This Row],[Median]]-AAMC_Raw_Data_for_FY22[[#This Row],[25th]])/25)*15) + AAMC_Raw_Data_for_FY22[[#This Row],[25th]]","v":308948.40000000002},{"$f":"(((AAMC_Raw_Data_for_FY22[[#This Row],[Median]]-AAMC_Raw_Data_for_FY22[[#This Row],[25th]])/25)*20) + AAMC_Raw_Data_for_FY22[[#This Row],[25th]]","v":321487.2},334026,{"$f":"(((AAMC_Raw_Data_for_FY22[[#This Row],[75th]]-AAMC_Raw_Data_for_FY22[[#This Row],[Median]])/25)*5) + AAMC_Raw_Data_for_FY22[[#This Row],[Median]]","v":335583.2},{"$f":"(((AAMC_Raw_Data_for_FY22[[#This Row],[75th]]-AAMC_Raw_Data_for_FY22[[#This Row],[Median]])/25)*10) + AAMC_Raw_Data_for_FY22[[#This Row],[Median]]","v":337140.4},{"$f":"(((AAMC_Raw_Data_for_FY22[[#This Row],[75th]]-AAMC_Raw_Data_for_FY22[[#This Row],[Median]])/25)*15) + AAMC_Raw_Data_for_FY22[[#This Row],[Median]]","v":338697.6},{"$f":"(((AAMC_Raw_Data_for_FY22[[#This Row],[75th]]-AAMC_Raw_Data_for_FY22[[#This Row],[Median]])/25)*20) + AAMC_Raw_Data_for_FY22[[#This Row],[Median]]","v":340254.8},341812,{"$f":"(((AAMC_Raw_Data_for_FY22[[#This Row],[75th]]-AAMC_Raw_Data_for_FY22[[#This Row],[Median]])/25)*30) + AAMC_Raw_Data_for_FY22[[#This Row],[Median]]","v":343369.2},{"$f":"(((AAMC_Raw_Data_for_FY22[[#This Row],[75th]]-AAMC_Raw_Data_for_FY22[[#This Row],[Median]])/25)*35) + AAMC_Raw_Data_for_FY22[[#This Row],[Median]]","v":344926.4},{"$f":"(((AAMC_Raw_Data_for_FY22[[#This Row],[75th]]-AAMC_Raw_Data_for_FY22[[#This Row],[Median]])/25)*40) + AAMC_Raw_Data_for_FY22[[#This Row],[Median]]","v":346483.6}]
[{"$f":"AAMC_Raw_Data_for_FY22[[#This Row],[Source]]&AAMC_Raw_Data_for_FY22[[#This Row],[Type]]&AAMC_Raw_Data_for_FY22[[#This Row],[School Subset]]&AAMC_Raw_Data_for_FY22[[#This Row],[Rank]]&AAMC_Raw_Data_for_FY22[[#This Row],[Degree]]&AAMC_Raw_Data_for_FY22[[#This Row],[Department / Specialty]]&\"L\"","v":"AAMCAcademicAllChairPhDBiostatisticsL"},"Biostatistics",1,"AAMC","Academic","All","Chair","PhD","2021-2022",360000,{"$f":"(((AAMC_Raw_Data_for_FY22[[#This Row],[Median]]-AAMC_Raw_Data_for_FY22[[#This Row],[25th]])/25)*5) + AAMC_Raw_Data_for_FY22[[#This Row],[25th]]","v":362880.4},{"$f":"(((AAMC_Raw_Data_for_FY22[[#This Row],[Median]]-AAMC_Raw_Data_for_FY22[[#This Row],[25th]])/25)*10) + AAMC_Raw_Data_for_FY22[[#This Row],[25th]]","v":365760.8},{"$f":"(((AAMC_Raw_Data_for_FY22[[#This Row],[Median]]-AAMC_Raw_Data_for_FY22[[#This Row],[25th]])/25)*15) + AAMC_Raw_Data_for_FY22[[#This Row],[25th]]","v":368641.2},{"$f":"(((AAMC_Raw_Data_for_FY22[[#This Row],[Median]]-AAMC_Raw_Data_for_FY22[[#This Row],[25th]])/25)*20) + AAMC_Raw_Data_for_FY22[[#This Row],[25th]]","v":371521.6},374402,{"$f":"(((AAMC_Raw_Data_for_FY22[[#This Row],[75th]]-AAMC_Raw_Data_for_FY22[[#This Row],[Median]])/25)*5) + AAMC_Raw_Data_for_FY22[[#This Row],[Median]]","v":376308},{"$f":"(((AAMC_Raw_Data_for_FY22[[#This Row],[75th]]-AAMC_Raw_Data_for_FY22[[#This Row],[Median]])/25)*10) + AAMC_Raw_Data_for_FY22[[#This Row],[Median]]","v":378214},{"$f":"(((AAMC_Raw_Data_for_FY22[[#This Row],[75th]]-AAMC_Raw_Data_for_FY22[[#This Row],[Median]])/25)*15) + AAMC_Raw_Data_for_FY22[[#This Row],[Median]]","v":380120},{"$f":"(((AAMC_Raw_Data_for_FY22[[#This Row],[75th]]-AAMC_Raw_Data_for_FY22[[#This Row],[Median]])/25)*20) + AAMC_Raw_Data_for_FY22[[#This Row],[Median]]","v":382026},383932,{"$f":"(((AAMC_Raw_Data_for_FY22[[#This Row],[75th]]-AAMC_Raw_Data_for_FY22[[#This Row],[Median]])/25)*30) + AAMC_Raw_Data_for_FY22[[#This Row],[Median]]","v":385838},{"$f":"(((AAMC_Raw_Data_for_FY22[[#This Row],[75th]]-AAMC_Raw_Data_for_FY22[[#This Row],[Median]])/25)*35) + AAMC_Raw_Data_for_FY22[[#This Row],[Median]]","v":387744},{"$f":"(((AAMC_Raw_Data_for_FY22[[#This Row],[75th]]-AAMC_Raw_Data_for_FY22[[#This Row],[Median]])/25)*40) + AAMC_Raw_Data_for_FY22[[#This Row],[Median]]","v":389650}]
[{"$f":"AAMC_Raw_Data_for_FY22[[#This Row],[Source]]&AAMC_Raw_Data_for_FY22[[#This Row],[Type]]&AAMC_Raw_Data_for_FY22[[#This Row],[School Subset]]&AAMC_Raw_Data_for_FY22[[#This Row],[Rank]]&AAMC_Raw_Data_for_FY22[[#This Row],[Degree]]&AAMC_Raw_Data_for_FY22[[#This Row],[Department / Specialty]]&\"L\"","v":"AAMCAcademicAllInstructorPhDGeneticsL"},"Genetics",5,"AAMC","Academic","All","Instructor","PhD","2021-2022",66720,{"$f":"(((AAMC_Raw_Data_for_FY22[[#This Row],[Median]]-AAMC_Raw_Data_for_FY22[[#This Row],[25th]])/25)*5) + AAMC_Raw_Data_for_FY22[[#This Row],[25th]]","v":68030.2},{"$f":"(((AAMC_Raw_Data_for_FY22[[#This Row],[Median]]-AAMC_Raw_Data_for_FY22[[#This Row],[25th]])/25)*10) + AAMC_Raw_Data_for_FY22[[#This Row],[25th]]","v":69340.399999999994},{"$f":"(((AAMC_Raw_Data_for_FY22[[#This Row],[Median]]-AAMC_Raw_Data_for_FY22[[#This Row],[25th]])/25)*15) + AAMC_Raw_Data_for_FY22[[#This Row],[25th]]","v":70650.600000000006},{"$f":"(((AAMC_Raw_Data_for_FY22[[#This Row],[Median]]-AAMC_Raw_Data_for_FY22[[#This Row],[25th]])/25)*20) + AAMC_Raw_Data_for_FY22[[#This Row],[25th]]","v":71960.800000000003},73271,{"$f":"(((AAMC_Raw_Data_for_FY22[[#This Row],[75th]]-AAMC_Raw_Data_for_FY22[[#This Row],[Median]])/25)*5) + AAMC_Raw_Data_for_FY22[[#This Row],[Median]]","v":76096.399999999994},{"$f":"(((AAMC_Raw_Data_for_FY22[[#This Row],[75th]]-AAMC_Raw_Data_for_FY22[[#This Row],[Median]])/25)*10) + AAMC_Raw_Data_for_FY22[[#This Row],[Median]]","v":78921.8},{"$f":"(((AAMC_Raw_Data_for_FY22[[#This Row],[75th]]-AAMC_Raw_Data_for_FY22[[#This Row],[Median]])/25)*15) + AAMC_Raw_Data_for_FY22[[#This Row],[Median]]","v":81747.199999999997},{"$f":"(((AAMC_Raw_Data_for_FY22[[#This Row],[75th]]-AAMC_Raw_Data_for_FY22[[#This Row],[Median]])/25)*20) + AAMC_Raw_Data_for_FY22[[#This Row],[Median]]","v":84572.6},87398,{"$f":"(((AAMC_Raw_Data_for_FY22[[#This Row],[75th]]-AAMC_Raw_Data_for_FY22[[#This Row],[Median]])/25)*30) + AAMC_Raw_Data_for_FY22[[#This Row],[Median]]","v":90223.4},{"$f":"(((AAMC_Raw_Data_for_FY22[[#This Row],[75th]]-AAMC_Raw_Data_for_FY22[[#This Row],[Median]])/25)*35) + AAMC_Raw_Data_for_FY22[[#This Row],[Median]]","v":93048.8},{"$f":"(((AAMC_Raw_Data_for_FY22[[#This Row],[75th]]-AAMC_Raw_Data_for_FY22[[#This Row],[Median]])/25)*40) + AAMC_Raw_Data_for_FY22[[#This Row],[Median]]","v":95874.2}]
[{"$f":"AAMC_Raw_Data_for_FY22[[#This Row],[Source]]&AAMC_Raw_Data_for_FY22[[#This Row],[Type]]&AAMC_Raw_Data_for_FY22[[#This Row],[School Subset]]&AAMC_Raw_Data_for_FY22[[#This Row],[Rank]]&AAMC_Raw_Data_for_FY22[[#This Row],[Degree]]&AAMC_Raw_Data_for_FY22[[#This Row],[Department / Specialty]]&\"L\"","v":"AAMCAcademicAllAssistantPhDGeneticsL"},"Genetics",4,"AAMC","Academic","All","Assistant","PhD","2021-2022",90107,{"$f":"(((AAMC_Raw_Data_for_FY22[[#This Row],[Median]]-AAMC_Raw_Data_for_FY22[[#This Row],[25th]])/25)*5) + AAMC_Raw_Data_for_FY22[[#This Row],[25th]]","v":95448.4},{"$f":"(((AAMC_Raw_Data_for_FY22[[#This Row],[Median]]-AAMC_Raw_Data_for_FY22[[#This Row],[25th]])/25)*10) + AAMC_Raw_Data_for_FY22[[#This Row],[25th]]","v":100789.8},{"$f":"(((AAMC_Raw_Data_for_FY22[[#This Row],[Median]]-AAMC_Raw_Data_for_FY22[[#This Row],[25th]])/25)*15) + AAMC_Raw_Data_for_FY22[[#This Row],[25th]]","v":106131.2},{"$f":"(((AAMC_Raw_Data_for_FY22[[#This Row],[Median]]-AAMC_Raw_Data_for_FY22[[#This Row],[25th]])/25)*20) + AAMC_Raw_Data_for_FY22[[#This Row],[25th]]","v":111472.6},116814,{"$f":"(((AAMC_Raw_Data_for_FY22[[#This Row],[75th]]-AAMC_Raw_Data_for_FY22[[#This Row],[Median]])/25)*5) + AAMC_Raw_Data_for_FY22[[#This Row],[Median]]","v":120576.6},{"$f":"(((AAMC_Raw_Data_for_FY22[[#This Row],[75th]]-AAMC_Raw_Data_for_FY22[[#This Row],[Median]])/25)*10) + AAMC_Raw_Data_for_FY22[[#This Row],[Median]]","v":124339.2},{"$f":"(((AAMC_Raw_Data_for_FY22[[#This Row],[75th]]-AAMC_Raw_Data_for_FY22[[#This Row],[Median]])/25)*15) + AAMC_Raw_Data_for_FY22[[#This Row],[Median]]","v":128101.8},{"$f":"(((AAMC_Raw_Data_for_FY22[[#This Row],[75th]]-AAMC_Raw_Data_for_FY22[[#This Row],[Median]])/25)*20) + AAMC_Raw_Data_for_FY22[[#This Row],[Median]]","v":131864.4},135627,{"$f":"(((AAMC_Raw_Data_for_FY22[[#This Row],[75th]]-AAMC_Raw_Data_for_FY22[[#This Row],[Median]])/25)*30) + AAMC_Raw_Data_for_FY22[[#This Row],[Median]]","v":139389.6},{"$f":"(((AAMC_Raw_Data_for_FY22[[#This Row],[75th]]-AAMC_Raw_Data_for_FY22[[#This Row],[Median]])/25)*35) + AAMC_Raw_Data_for_FY22[[#This Row],[Median]]","v":143152.20000000001},{"$f":"(((AAMC_Raw_Data_for_FY22[[#This Row],[75th]]-AAMC_Raw_Data_for_FY22[[#This Row],[Median]])/25)*40) + AAMC_Raw_Data_for_FY22[[#This Row],[Median]]","v":146914.79999999999}]
[{"$f":"AAMC_Raw_Data_for_FY22[[#This Row],[Source]]&AAMC_Raw_Data_for_FY22[[#This Row],[Type]]&AAMC_Raw_Data_for_FY22[[#This Row],[School Subset]]&AAMC_Raw_Data_for_FY22[[#This Row],[Rank]]&AAMC_Raw_Data_for_FY22[[#This Row],[Degree]]&AAMC_Raw_Data_for_FY22[[#This Row],[Department / Specialty]]&\"L\"","v":"AAMCAcademicAllAssociatePhDGeneticsL"},"Genetics",3,"AAMC","Academic","All","Associate","PhD","2021-2022",125527,{"$f":"(((AAMC_Raw_Data_for_FY22[[#This Row],[Median]]-AAMC_Raw_Data_for_FY22[[#This Row],[25th]])/25)*5) + AAMC_Raw_Data_for_FY22[[#This Row],[25th]]","v":129824.2},{"$f":"(((AAMC_Raw_Data_for_FY22[[#This Row],[Median]]-AAMC_Raw_Data_for_FY22[[#This Row],[25th]])/25)*10) + AAMC_Raw_Data_for_FY22[[#This Row],[25th]]","v":134121.4},{"$f":"(((AAMC_Raw_Data_for_FY22[[#This Row],[Median]]-AAMC_Raw_Data_for_FY22[[#This Row],[25th]])/25)*15) + AAMC_Raw_Data_for_FY22[[#This Row],[25th]]","v":138418.6},{"$f":"(((AAMC_Raw_Data_for_FY22[[#This Row],[Median]]-AAMC_Raw_Data_for_FY22[[#This Row],[25th]])/25)*20) + AAMC_Raw_Data_for_FY22[[#This Row],[25th]]","v":142715.79999999999},147013,{"$f":"(((AAMC_Raw_Data_for_FY22[[#This Row],[75th]]-AAMC_Raw_Data_for_FY22[[#This Row],[Median]])/25)*5) + AAMC_Raw_Data_for_FY22[[#This Row],[Median]]","v":151980.4},{"$f":"(((AAMC_Raw_Data_for_FY22[[#This Row],[75th]]-AAMC_Raw_Data_for_FY22[[#This Row],[Median]])/25)*10) + AAMC_Raw_Data_for_FY22[[#This Row],[Median]]","v":156947.79999999999},{"$f":"(((AAMC_Raw_Data_for_FY22[[#This Row],[75th]]-AAMC_Raw_Data_for_FY22[[#This Row],[Median]])/25)*15) + AAMC_Raw_Data_for_FY22[[#This Row],[Median]]","v":161915.20000000001},{"$f":"(((AAMC_Raw_Data_for_FY22[[#This Row],[75th]]-AAMC_Raw_Data_for_FY22[[#This Row],[Median]])/25)*20) + AAMC_Raw_Data_for_FY22[[#This Row],[Median]]","v":166882.6},171850,{"$f":"(((AAMC_Raw_Data_for_FY22[[#This Row],[75th]]-AAMC_Raw_Data_for_FY22[[#This Row],[Median]])/25)*30) + AAMC_Raw_Data_for_FY22[[#This Row],[Median]]","v":176817.4},{"$f":"(((AAMC_Raw_Data_for_FY22[[#This Row],[75th]]-AAMC_Raw_Data_for_FY22[[#This Row],[Median]])/25)*35) + AAMC_Raw_Data_for_FY22[[#This Row],[Median]]","v":181784.8},{"$f":"(((AAMC_Raw_Data_for_FY22[[#This Row],[75th]]-AAMC_Raw_Data_for_FY22[[#This Row],[Median]])/25)*40) + AAMC_Raw_Data_for_FY22[[#This Row],[Median]]","v":186752.2}]
[{"$f":"AAMC_Raw_Data_for_FY22[[#This Row],[Source]]&AAMC_Raw_Data_for_FY22[[#This Row],[Type]]&AAMC_Raw_Data_for_FY22[[#This Row],[School Subset]]&AAMC_Raw_Data_for_FY22[[#This Row],[Rank]]&AAMC_Raw_Data_for_FY22[[#This Row],[Degree]]&AAMC_Raw_Data_for_FY22[[#This Row],[Department / Specialty]]&\"L\"","v":"AAMCAcademicAllProfessorPhDGeneticsL"},"Genetics",2,"AAMC","Academic","All","Professor","PhD","2021-2022",190159,{"$f":"(((AAMC_Raw_Data_for_FY22[[#This Row],[Median]]-AAMC_Raw_Data_for_FY22[[#This Row],[25th]])/25)*5) + AAMC_Raw_Data_for_FY22[[#This Row],[25th]]","v":196127.2},{"$f":"(((AAMC_Raw_Data_for_FY22[[#This Row],[Median]]-AAMC_Raw_Data_for_FY22[[#This Row],[25th]])/25)*10) + AAMC_Raw_Data_for_FY22[[#This Row],[25th]]","v":202095.4},{"$f":"(((AAMC_Raw_Data_for_FY22[[#This Row],[Median]]-AAMC_Raw_Data_for_FY22[[#This Row],[25th]])/25)*15) + AAMC_Raw_Data_for_FY22[[#This Row],[25th]]","v":208063.6},{"$f":"(((AAMC_Raw_Data_for_FY22[[#This Row],[Median]]-AAMC_Raw_Data_for_FY22[[#This Row],[25th]])/25)*20) + AAMC_Raw_Data_for_FY22[[#This Row],[25th]]","v":214031.8},220000,{"$f":"(((AAMC_Raw_Data_for_FY22[[#This Row],[75th]]-AAMC_Raw_Data_for_FY22[[#This Row],[Median]])/25)*5) + AAMC_Raw_Data_for_FY22[[#This Row],[Median]]","v":228914},{"$f":"(((AAMC_Raw_Data_for_FY22[[#This Row],[75th]]-AAMC_Raw_Data_for_FY22[[#This Row],[Median]])/25)*10) + AAMC_Raw_Data_for_FY22[[#This Row],[Median]]","v":237828},{"$f":"(((AAMC_Raw_Data_for_FY22[[#This Row],[75th]]-AAMC_Raw_Data_for_FY22[[#This Row],[Median]])/25)*15) + AAMC_Raw_Data_for_FY22[[#This Row],[Median]]","v":246742},{"$f":"(((AAMC_Raw_Data_for_FY22[[#This Row],[75th]]-AAMC_Raw_Data_for_FY22[[#This Row],[Median]])/25)*20) + AAMC_Raw_Data_for_FY22[[#This Row],[Median]]","v":255656},264570,{"$f":"(((AAMC_Raw_Data_for_FY22[[#This Row],[75th]]-AAMC_Raw_Data_for_FY22[[#This Row],[Median]])/25)*30) + AAMC_Raw_Data_for_FY22[[#This Row],[Median]]","v":273484},{"$f":"(((AAMC_Raw_Data_for_FY22[[#This Row],[75th]]-AAMC_Raw_Data_for_FY22[[#This Row],[Median]])/25)*35) + AAMC_Raw_Data_for_FY22[[#This Row],[Median]]","v":282398},{"$f":"(((AAMC_Raw_Data_for_FY22[[#This Row],[75th]]-AAMC_Raw_Data_for_FY22[[#This Row],[Median]])/25)*40) + AAMC_Raw_Data_for_FY22[[#This Row],[Median]]","v":291312}]
[{"$f":"AAMC_Raw_Data_for_FY22[[#This Row],[Source]]&AAMC_Raw_Data_for_FY22[[#This Row],[Type]]&AAMC_Raw_Data_for_FY22[[#This Row],[School Subset]]&AAMC_Raw_Data_for_FY22[[#This Row],[Rank]]&AAMC_Raw_Data_for_FY22[[#This Row],[Degree]]&AAMC_Raw_Data_for_FY22[[#This Row],[Department / Specialty]]&\"L\"","v":"AAMCAcademicAllChiefPhDGeneticsL"},"Genetics",6,"AAMC","Academic","All","Chief","PhD","2021-2022",null,{"$f":"(((AAMC_Raw_Data_for_FY22[[#This Row],[Median]]-AAMC_Raw_Data_for_FY22[[#This Row],[25th]])/25)*5) + AAMC_Raw_Data_for_FY22[[#This Row],[25th]]","v":0},{"$f":"(((AAMC_Raw_Data_for_FY22[[#This Row],[Median]]-AAMC_Raw_Data_for_FY22[[#This Row],[25th]])/25)*10) + AAMC_Raw_Data_for_FY22[[#This Row],[25th]]","v":0},{"$f":"(((AAMC_Raw_Data_for_FY22[[#This Row],[Median]]-AAMC_Raw_Data_for_FY22[[#This Row],[25th]])/25)*15) + AAMC_Raw_Data_for_FY22[[#This Row],[25th]]","v":0},{"$f":"(((AAMC_Raw_Data_for_FY22[[#This Row],[Median]]-AAMC_Raw_Data_for_FY22[[#This Row],[25th]])/25)*20) + AAMC_Raw_Data_for_FY22[[#This Row],[25th]]","v":0},null,{"$f":"(((AAMC_Raw_Data_for_FY22[[#This Row],[75th]]-AAMC_Raw_Data_for_FY22[[#This Row],[Median]])/25)*5) + AAMC_Raw_Data_for_FY22[[#This Row],[Median]]","v":0},{"$f":"(((AAMC_Raw_Data_for_FY22[[#This Row],[75th]]-AAMC_Raw_Data_for_FY22[[#This Row],[Median]])/25)*10) + AAMC_Raw_Data_for_FY22[[#This Row],[Median]]","v":0},{"$f":"(((AAMC_Raw_Data_for_FY22[[#This Row],[75th]]-AAMC_Raw_Data_for_FY22[[#This Row],[Median]])/25)*15) + AAMC_Raw_Data_for_FY22[[#This Row],[Median]]","v":0},{"$f":"(((AAMC_Raw_Data_for_FY22[[#This Row],[75th]]-AAMC_Raw_Data_for_FY22[[#This Row],[Median]])/25)*20) + AAMC_Raw_Data_for_FY22[[#This Row],[Median]]","v":0},null,{"$f":"(((AAMC_Raw_Data_for_FY22[[#This Row],[75th]]-AAMC_Raw_Data_for_FY22[[#This Row],[Median]])/25)*30) + AAMC_Raw_Data_for_FY22[[#This Row],[Median]]","v":0},{"$f":"(((AAMC_Raw_Data_for_FY22[[#This Row],[75th]]-AAMC_Raw_Data_for_FY22[[#This Row],[Median]])/25)*35) + AAMC_Raw_Data_for_FY22[[#This Row],[Median]]","v":0},{"$f":"(((AAMC_Raw_Data_for_FY22[[#This Row],[75th]]-AAMC_Raw_Data_for_FY22[[#This Row],[Median]])/25)*40) + AAMC_Raw_Data_for_FY22[[#This Row],[Median]]","v":0}]
[{"$f":"AAMC_Raw_Data_for_FY22[[#This Row],[Source]]&AAMC_Raw_Data_for_FY22[[#This Row],[Type]]&AAMC_Raw_Data_for_FY22[[#This Row],[School Subset]]&AAMC_Raw_Data_for_FY22[[#This Row],[Rank]]&AAMC_Raw_Data_for_FY22[[#This Row],[Degree]]&AAMC_Raw_Data_for_FY22[[#This Row],[Department / Specialty]]&\"L\"","v":"AAMCAcademicAllChairPhDGeneticsL"},"Genetics",1,"AAMC","Academic","All","Chair","PhD","2021-2022",368964,{"$f":"(((AAMC_Raw_Data_for_FY22[[#This Row],[Median]]-AAMC_Raw_Data_for_FY22[[#This Row],[25th]])/25)*5) + AAMC_Raw_Data_for_FY22[[#This Row],[25th]]","v":376595.4},{"$f":"(((AAMC_Raw_Data_for_FY22[[#This Row],[Median]]-AAMC_Raw_Data_for_FY22[[#This Row],[25th]])/25)*10) + AAMC_Raw_Data_for_FY22[[#This Row],[25th]]","v":384226.8},{"$f":"(((AAMC_Raw_Data_for_FY22[[#This Row],[Median]]-AAMC_Raw_Data_for_FY22[[#This Row],[25th]])/25)*15) + AAMC_Raw_Data_for_FY22[[#This Row],[25th]]","v":391858.2},{"$f":"(((AAMC_Raw_Data_for_FY22[[#This Row],[Median]]-AAMC_Raw_Data_for_FY22[[#This Row],[25th]])/25)*20) + AAMC_Raw_Data_for_FY22[[#This Row],[25th]]","v":399489.6},407121,{"$f":"(((AAMC_Raw_Data_for_FY22[[#This Row],[75th]]-AAMC_Raw_Data_for_FY22[[#This Row],[Median]])/25)*5) + AAMC_Raw_Data_for_FY22[[#This Row],[Median]]","v":417778.2},{"$f":"(((AAMC_Raw_Data_for_FY22[[#This Row],[75th]]-AAMC_Raw_Data_for_FY22[[#This Row],[Median]])/25)*10) + AAMC_Raw_Data_for_FY22[[#This Row],[Median]]","v":428435.4},{"$f":"(((AAMC_Raw_Data_for_FY22[[#This Row],[75th]]-AAMC_Raw_Data_for_FY22[[#This Row],[Median]])/25)*15) + AAMC_Raw_Data_for_FY22[[#This Row],[Median]]","v":439092.6},{"$f":"(((AAMC_Raw_Data_for_FY22[[#This Row],[75th]]-AAMC_Raw_Data_for_FY22[[#This Row],[Median]])/25)*20) + AAMC_Raw_Data_for_FY22[[#This Row],[Median]]","v":449749.8},460407,{"$f":"(((AAMC_Raw_Data_for_FY22[[#This Row],[75th]]-AAMC_Raw_Data_for_FY22[[#This Row],[Median]])/25)*30) + AAMC_Raw_Data_for_FY22[[#This Row],[Median]]","v":471064.2},{"$f":"(((AAMC_Raw_Data_for_FY22[[#This Row],[75th]]-AAMC_Raw_Data_for_FY22[[#This Row],[Median]])/25)*35) + AAMC_Raw_Data_for_FY22[[#This Row],[Median]]","v":481721.4},{"$f":"(((AAMC_Raw_Data_for_FY22[[#This Row],[75th]]-AAMC_Raw_Data_for_FY22[[#This Row],[Median]])/25)*40) + AAMC_Raw_Data_for_FY22[[#This Row],[Median]]","v":492378.6}]
[{"$f":"AAMC_Raw_Data_for_FY22[[#This Row],[Source]]&AAMC_Raw_Data_for_FY22[[#This Row],[Type]]&AAMC_Raw_Data_for_FY22[[#This Row],[School Subset]]&AAMC_Raw_Data_for_FY22[[#This Row],[Rank]]&AAMC_Raw_Data_for_FY22[[#This Row],[Degree]]&AAMC_Raw_Data_for_FY22[[#This Row],[Department / Specialty]]&\"L\"","v":"AAMCAcademicAllInstructorPhDMicrobiologyL"},"Microbiology",5,"AAMC","Academic","All","Instructor","PhD","2021-2022",62830,{"$f":"(((AAMC_Raw_Data_for_FY22[[#This Row],[Median]]-AAMC_Raw_Data_for_FY22[[#This Row],[25th]])/25)*5) + AAMC_Raw_Data_for_FY22[[#This Row],[25th]]","v":64061.599999999999},{"$f":"(((AAMC_Raw_Data_for_FY22[[#This Row],[Median]]-AAMC_Raw_Data_for_FY22[[#This Row],[25th]])/25)*10) + AAMC_Raw_Data_for_FY22[[#This Row],[25th]]","v":65293.2},{"$f":"(((AAMC_Raw_Data_for_FY22[[#This Row],[Median]]-AAMC_Raw_Data_for_FY22[[#This Row],[25th]])/25)*15) + AAMC_Raw_Data_for_FY22[[#This Row],[25th]]","v":66524.800000000003},{"$f":"(((AAMC_Raw_Data_for_FY22[[#This Row],[Median]]-AAMC_Raw_Data_for_FY22[[#This Row],[25th]])/25)*20) + AAMC_Raw_Data_for_FY22[[#This Row],[25th]]","v":67756.399999999994},68988,{"$f":"(((AAMC_Raw_Data_for_FY22[[#This Row],[75th]]-AAMC_Raw_Data_for_FY22[[#This Row],[Median]])/25)*5) + AAMC_Raw_Data_for_FY22[[#This Row],[Median]]","v":70490.399999999994},{"$f":"(((AAMC_Raw_Data_for_FY22[[#This Row],[75th]]-AAMC_Raw_Data_for_FY22[[#This Row],[Median]])/25)*10) + AAMC_Raw_Data_for_FY22[[#This Row],[Median]]","v":71992.800000000003},{"$f":"(((AAMC_Raw_Data_for_FY22[[#This Row],[75th]]-AAMC_Raw_Data_for_FY22[[#This Row],[Median]])/25)*15) + AAMC_Raw_Data_for_FY22[[#This Row],[Median]]","v":73495.199999999997},{"$f":"(((AAMC_Raw_Data_for_FY22[[#This Row],[75th]]-AAMC_Raw_Data_for_FY22[[#This Row],[Median]])/25)*20) + AAMC_Raw_Data_for_FY22[[#This Row],[Median]]","v":74997.600000000006},76500,{"$f":"(((AAMC_Raw_Data_for_FY22[[#This Row],[75th]]-AAMC_Raw_Data_for_FY22[[#This Row],[Median]])/25)*30) + AAMC_Raw_Data_for_FY22[[#This Row],[Median]]","v":78002.399999999994},{"$f":"(((AAMC_Raw_Data_for_FY22[[#This Row],[75th]]-AAMC_Raw_Data_for_FY22[[#This Row],[Median]])/25)*35) + AAMC_Raw_Data_for_FY22[[#This Row],[Median]]","v":79504.800000000003},{"$f":"(((AAMC_Raw_Data_for_FY22[[#This Row],[75th]]-AAMC_Raw_Data_for_FY22[[#This Row],[Median]])/25)*40) + AAMC_Raw_Data_for_FY22[[#This Row],[Median]]","v":81007.199999999997}]
[{"$f":"AAMC_Raw_Data_for_FY22[[#This Row],[Source]]&AAMC_Raw_Data_for_FY22[[#This Row],[Type]]&AAMC_Raw_Data_for_FY22[[#This Row],[School Subset]]&AAMC_Raw_Data_for_FY22[[#This Row],[Rank]]&AAMC_Raw_Data_for_FY22[[#This Row],[Degree]]&AAMC_Raw_Data_for_FY22[[#This Row],[Department / Specialty]]&\"L\"","v":"AAMCAcademicAllAssistantPhDMicrobiologyL"},"Microbiology",4,"AAMC","Academic","All","Assistant","PhD","2021-2022",88375,{"$f":"(((AAMC_Raw_Data_for_FY22[[#This Row],[Median]]-AAMC_Raw_Data_for_FY22[[#This Row],[25th]])/25)*5) + AAMC_Raw_Data_for_FY22[[#This Row],[25th]]","v":91700},{"$f":"(((AAMC_Raw_Data_for_FY22[[#This Row],[Median]]-AAMC_Raw_Data_for_FY22[[#This Row],[25th]])/25)*10) + AAMC_Raw_Data_for_FY22[[#This Row],[25th]]","v":95025},{"$f":"(((AAMC_Raw_Data_for_FY22[[#This Row],[Median]]-AAMC_Raw_Data_for_FY22[[#This Row],[25th]])/25)*15) + AAMC_Raw_Data_for_FY22[[#This Row],[25th]]","v":98350},{"$f":"(((AAMC_Raw_Data_for_FY22[[#This Row],[Median]]-AAMC_Raw_Data_for_FY22[[#This Row],[25th]])/25)*20) + AAMC_Raw_Data_for_FY22[[#This Row],[25th]]","v":101675},105000,{"$f":"(((AAMC_Raw_Data_for_FY22[[#This Row],[75th]]-AAMC_Raw_Data_for_FY22[[#This Row],[Median]])/25)*5) + AAMC_Raw_Data_for_FY22[[#This Row],[Median]]","v":108072.8},{"$f":"(((AAMC_Raw_Data_for_FY22[[#This Row],[75th]]-AAMC_Raw_Data_for_FY22[[#This Row],[Median]])/25)*10) + AAMC_Raw_Data_for_FY22[[#This Row],[Median]]","v":111145.60000000001},{"$f":"(((AAMC_Raw_Data_for_FY22[[#This Row],[75th]]-AAMC_Raw_Data_for_FY22[[#This Row],[Median]])/25)*15) + AAMC_Raw_Data_for_FY22[[#This Row],[Median]]","v":114218.4},{"$f":"(((AAMC_Raw_Data_for_FY22[[#This Row],[75th]]-AAMC_Raw_Data_for_FY22[[#This Row],[Median]])/25)*20) + AAMC_Raw_Data_for_FY22[[#This Row],[Median]]","v":117291.2},120364,{"$f":"(((AAMC_Raw_Data_for_FY22[[#This Row],[75th]]-AAMC_Raw_Data_for_FY22[[#This Row],[Median]])/25)*30) + AAMC_Raw_Data_for_FY22[[#This Row],[Median]]","v":123436.8},{"$f":"(((AAMC_Raw_Data_for_FY22[[#This Row],[75th]]-AAMC_Raw_Data_for_FY22[[#This Row],[Median]])/25)*35) + AAMC_Raw_Data_for_FY22[[#This Row],[Median]]","v":126509.6},{"$f":"(((AAMC_Raw_Data_for_FY22[[#This Row],[75th]]-AAMC_Raw_Data_for_FY22[[#This Row],[Median]])/25)*40) + AAMC_Raw_Data_for_FY22[[#This Row],[Median]]","v":129582.39999999999}]
[{"$f":"AAMC_Raw_Data_for_FY22[[#This Row],[Source]]&AAMC_Raw_Data_for_FY22[[#This Row],[Type]]&AAMC_Raw_Data_for_FY22[[#This Row],[School Subset]]&AAMC_Raw_Data_for_FY22[[#This Row],[Rank]]&AAMC_Raw_Data_for_FY22[[#This Row],[Degree]]&AAMC_Raw_Data_for_FY22[[#This Row],[Department / Specialty]]&\"L\"","v":"AAMCAcademicAllAssociatePhDMicrobiologyL"},"Microbiology",3,"AAMC","Academic","All","Associate","PhD","2021-2022",118173,{"$f":"(((AAMC_Raw_Data_for_FY22[[#This Row],[Median]]-AAMC_Raw_Data_for_FY22[[#This Row],[25th]])/25)*5) + AAMC_Raw_Data_for_FY22[[#This Row],[25th]]","v":122237.6},{"$f":"(((AAMC_Raw_Data_for_FY22[[#This Row],[Median]]-AAMC_Raw_Data_for_FY22[[#This Row],[25th]])/25)*10) + AAMC_Raw_Data_for_FY22[[#This Row],[25th]]","v":126302.2},{"$f":"(((AAMC_Raw_Data_for_FY22[[#This Row],[Median]]-AAMC_Raw_Data_for_FY22[[#This Row],[25th]])/25)*15) + AAMC_Raw_Data_for_FY22[[#This Row],[25th]]","v":130366.8},{"$f":"(((AAMC_Raw_Data_for_FY22[[#This Row],[Median]]-AAMC_Raw_Data_for_FY22[[#This Row],[25th]])/25)*20) + AAMC_Raw_Data_for_FY22[[#This Row],[25th]]","v":134431.4},138496,{"$f":"(((AAMC_Raw_Data_for_FY22[[#This Row],[75th]]-AAMC_Raw_Data_for_FY22[[#This Row],[Median]])/25)*5) + AAMC_Raw_Data_for_FY22[[#This Row],[Median]]","v":143071.6},{"$f":"(((AAMC_Raw_Data_for_FY22[[#This Row],[75th]]-AAMC_Raw_Data_for_FY22[[#This Row],[Median]])/25)*10) + AAMC_Raw_Data_for_FY22[[#This Row],[Median]]","v":147647.20000000001},{"$f":"(((AAMC_Raw_Data_for_FY22[[#This Row],[75th]]-AAMC_Raw_Data_for_FY22[[#This Row],[Median]])/25)*15) + AAMC_Raw_Data_for_FY22[[#This Row],[Median]]","v":152222.79999999999},{"$f":"(((AAMC_Raw_Data_for_FY22[[#This Row],[75th]]-AAMC_Raw_Data_for_FY22[[#This Row],[Median]])/25)*20) + AAMC_Raw_Data_for_FY22[[#This Row],[Median]]","v":156798.39999999999},161374,{"$f":"(((AAMC_Raw_Data_for_FY22[[#This Row],[75th]]-AAMC_Raw_Data_for_FY22[[#This Row],[Median]])/25)*30) + AAMC_Raw_Data_for_FY22[[#This Row],[Median]]","v":165949.6},{"$f":"(((AAMC_Raw_Data_for_FY22[[#This Row],[75th]]-AAMC_Raw_Data_for_FY22[[#This Row],[Median]])/25)*35) + AAMC_Raw_Data_for_FY22[[#This Row],[Median]]","v":170525.2},{"$f":"(((AAMC_Raw_Data_for_FY22[[#This Row],[75th]]-AAMC_Raw_Data_for_FY22[[#This Row],[Median]])/25)*40) + AAMC_Raw_Data_for_FY22[[#This Row],[Median]]","v":175100.79999999999}]
[{"$f":"AAMC_Raw_Data_for_FY22[[#This Row],[Source]]&AAMC_Raw_Data_for_FY22[[#This Row],[Type]]&AAMC_Raw_Data_for_FY22[[#This Row],[School Subset]]&AAMC_Raw_Data_for_FY22[[#This Row],[Rank]]&AAMC_Raw_Data_for_FY22[[#This Row],[Degree]]&AAMC_Raw_Data_for_FY22[[#This Row],[Department / Specialty]]&\"L\"","v":"AAMCAcademicAllProfessorPhDMicrobiologyL"},"Microbiology",2,"AAMC","Academic","All","Professor","PhD","2021-2022",169196,{"$f":"(((AAMC_Raw_Data_for_FY22[[#This Row],[Median]]-AAMC_Raw_Data_for_FY22[[#This Row],[25th]])/25)*5) + AAMC_Raw_Data_for_FY22[[#This Row],[25th]]","v":176086.6},{"$f":"(((AAMC_Raw_Data_for_FY22[[#This Row],[Median]]-AAMC_Raw_Data_for_FY22[[#This Row],[25th]])/25)*10) + AAMC_Raw_Data_for_FY22[[#This Row],[25th]]","v":182977.2},{"$f":"(((AAMC_Raw_Data_for_FY22[[#This Row],[Median]]-AAMC_Raw_Data_for_FY22[[#This Row],[25th]])/25)*15) + AAMC_Raw_Data_for_FY22[[#This Row],[25th]]","v":189867.8},{"$f":"(((AAMC_Raw_Data_for_FY22[[#This Row],[Median]]-AAMC_Raw_Data_for_FY22[[#This Row],[25th]])/25)*20) + AAMC_Raw_Data_for_FY22[[#This Row],[25th]]","v":196758.39999999999},203649,{"$f":"(((AAMC_Raw_Data_for_FY22[[#This Row],[75th]]-AAMC_Raw_Data_for_FY22[[#This Row],[Median]])/25)*5) + AAMC_Raw_Data_for_FY22[[#This Row],[Median]]","v":212117.2},{"$f":"(((AAMC_Raw_Data_for_FY22[[#This Row],[75th]]-AAMC_Raw_Data_for_FY22[[#This Row],[Median]])/25)*10) + AAMC_Raw_Data_for_FY22[[#This Row],[Median]]","v":220585.4},{"$f":"(((AAMC_Raw_Data_for_FY22[[#This Row],[75th]]-AAMC_Raw_Data_for_FY22[[#This Row],[Median]])/25)*15) + AAMC_Raw_Data_for_FY22[[#This Row],[Median]]","v":229053.6},{"$f":"(((AAMC_Raw_Data_for_FY22[[#This Row],[75th]]-AAMC_Raw_Data_for_FY22[[#This Row],[Median]])/25)*20) + AAMC_Raw_Data_for_FY22[[#This Row],[Median]]","v":237521.8},245990,{"$f":"(((AAMC_Raw_Data_for_FY22[[#This Row],[75th]]-AAMC_Raw_Data_for_FY22[[#This Row],[Median]])/25)*30) + AAMC_Raw_Data_for_FY22[[#This Row],[Median]]","v":254458.2},{"$f":"(((AAMC_Raw_Data_for_FY22[[#This Row],[75th]]-AAMC_Raw_Data_for_FY22[[#This Row],[Median]])/25)*35) + AAMC_Raw_Data_for_FY22[[#This Row],[Median]]","v":262926.40000000002},{"$f":"(((AAMC_Raw_Data_for_FY22[[#This Row],[75th]]-AAMC_Raw_Data_for_FY22[[#This Row],[Median]])/25)*40) + AAMC_Raw_Data_for_FY22[[#This Row],[Median]]","v":271394.59999999998}]
[{"$f":"AAMC_Raw_Data_for_FY22[[#This Row],[Source]]&AAMC_Raw_Data_for_FY22[[#This Row],[Type]]&AAMC_Raw_Data_for_FY22[[#This Row],[School Subset]]&AAMC_Raw_Data_for_FY22[[#This Row],[Rank]]&AAMC_Raw_Data_for_FY22[[#This Row],[Degree]]&AAMC_Raw_Data_for_FY22[[#This Row],[Department / Specialty]]&\"L\"","v":"AAMCAcademicAllChiefPhDMicrobiologyL"},"Microbiology",6,"AAMC","Academic","All","Chief","PhD","2021-2022",null,{"$f":"(((AAMC_Raw_Data_for_FY22[[#This Row],[Median]]-AAMC_Raw_Data_for_FY22[[#This Row],[25th]])/25)*5) + AAMC_Raw_Data_for_FY22[[#This Row],[25th]]","v":0},{"$f":"(((AAMC_Raw_Data_for_FY22[[#This Row],[Median]]-AAMC_Raw_Data_for_FY22[[#This Row],[25th]])/25)*10) + AAMC_Raw_Data_for_FY22[[#This Row],[25th]]","v":0},{"$f":"(((AAMC_Raw_Data_for_FY22[[#This Row],[Median]]-AAMC_Raw_Data_for_FY22[[#This Row],[25th]])/25)*15) + AAMC_Raw_Data_for_FY22[[#This Row],[25th]]","v":0},{"$f":"(((AAMC_Raw_Data_for_FY22[[#This Row],[Median]]-AAMC_Raw_Data_for_FY22[[#This Row],[25th]])/25)*20) + AAMC_Raw_Data_for_FY22[[#This Row],[25th]]","v":0},null,{"$f":"(((AAMC_Raw_Data_for_FY22[[#This Row],[75th]]-AAMC_Raw_Data_for_FY22[[#This Row],[Median]])/25)*5) + AAMC_Raw_Data_for_FY22[[#This Row],[Median]]","v":0},{"$f":"(((AAMC_Raw_Data_for_FY22[[#This Row],[75th]]-AAMC_Raw_Data_for_FY22[[#This Row],[Median]])/25)*10) + AAMC_Raw_Data_for_FY22[[#This Row],[Median]]","v":0},{"$f":"(((AAMC_Raw_Data_for_FY22[[#This Row],[75th]]-AAMC_Raw_Data_for_FY22[[#This Row],[Median]])/25)*15) + AAMC_Raw_Data_for_FY22[[#This Row],[Median]]","v":0},{"$f":"(((AAMC_Raw_Data_for_FY22[[#This Row],[75th]]-AAMC_Raw_Data_for_FY22[[#This Row],[Median]])/25)*20) + AAMC_Raw_Data_for_FY22[[#This Row],[Median]]","v":0},null,{"$f":"(((AAMC_Raw_Data_for_FY22[[#This Row],[75th]]-AAMC_Raw_Data_for_FY22[[#This Row],[Median]])/25)*30) + AAMC_Raw_Data_for_FY22[[#This Row],[Median]]","v":0},{"$f":"(((AAMC_Raw_Data_for_FY22[[#This Row],[75th]]-AAMC_Raw_Data_for_FY22[[#This Row],[Median]])/25)*35) + AAMC_Raw_Data_for_FY22[[#This Row],[Median]]","v":0},{"$f":"(((AAMC_Raw_Data_for_FY22[[#This Row],[75th]]-AAMC_Raw_Data_for_FY22[[#This Row],[Median]])/25)*40) + AAMC_Raw_Data_for_FY22[[#This Row],[Median]]","v":0}]
[{"$f":"AAMC_Raw_Data_for_FY22[[#This Row],[Source]]&AAMC_Raw_Data_for_FY22[[#This Row],[Type]]&AAMC_Raw_Data_for_FY22[[#This Row],[School Subset]]&AAMC_Raw_Data_for_FY22[[#This Row],[Rank]]&AAMC_Raw_Data_for_FY22[[#This Row],[Degree]]&AAMC_Raw_Data_for_FY22[[#This Row],[Department / Specialty]]&\"L\"","v":"AAMCAcademicAllChairPhDMicrobiologyL"},"Microbiology",1,"AAMC","Academic","All","Chair","PhD","2021-2022",266639,{"$f":"(((AAMC_Raw_Data_for_FY22[[#This Row],[Median]]-AAMC_Raw_Data_for_FY22[[#This Row],[25th]])/25)*5) + AAMC_Raw_Data_for_FY22[[#This Row],[25th]]","v":278321.40000000002},{"$f":"(((AAMC_Raw_Data_for_FY22[[#This Row],[Median]]-AAMC_Raw_Data_for_FY22[[#This Row],[25th]])/25)*10) + AAMC_Raw_Data_for_FY22[[#This Row],[25th]]","v":290003.8},{"$f":"(((AAMC_Raw_Data_for_FY22[[#This Row],[Median]]-AAMC_Raw_Data_for_FY22[[#This Row],[25th]])/25)*15) + AAMC_Raw_Data_for_FY22[[#This Row],[25th]]","v":301686.2},{"$f":"(((AAMC_Raw_Data_for_FY22[[#This Row],[Median]]-AAMC_Raw_Data_for_FY22[[#This Row],[25th]])/25)*20) + AAMC_Raw_Data_for_FY22[[#This Row],[25th]]","v":313368.59999999998},325051,{"$f":"(((AAMC_Raw_Data_for_FY22[[#This Row],[75th]]-AAMC_Raw_Data_for_FY22[[#This Row],[Median]])/25)*5) + AAMC_Raw_Data_for_FY22[[#This Row],[Median]]","v":338870.8},{"$f":"(((AAMC_Raw_Data_for_FY22[[#This Row],[75th]]-AAMC_Raw_Data_for_FY22[[#This Row],[Median]])/25)*10) + AAMC_Raw_Data_for_FY22[[#This Row],[Median]]","v":352690.6},{"$f":"(((AAMC_Raw_Data_for_FY22[[#This Row],[75th]]-AAMC_Raw_Data_for_FY22[[#This Row],[Median]])/25)*15) + AAMC_Raw_Data_for_FY22[[#This Row],[Median]]","v":366510.4},{"$f":"(((AAMC_Raw_Data_for_FY22[[#This Row],[75th]]-AAMC_Raw_Data_for_FY22[[#This Row],[Median]])/25)*20) + AAMC_Raw_Data_for_FY22[[#This Row],[Median]]","v":380330.2},394150,{"$f":"(((AAMC_Raw_Data_for_FY22[[#This Row],[75th]]-AAMC_Raw_Data_for_FY22[[#This Row],[Median]])/25)*30) + AAMC_Raw_Data_for_FY22[[#This Row],[Median]]","v":407969.8},{"$f":"(((AAMC_Raw_Data_for_FY22[[#This Row],[75th]]-AAMC_Raw_Data_for_FY22[[#This Row],[Median]])/25)*35) + AAMC_Raw_Data_for_FY22[[#This Row],[Median]]","v":421789.6},{"$f":"(((AAMC_Raw_Data_for_FY22[[#This Row],[75th]]-AAMC_Raw_Data_for_FY22[[#This Row],[Median]])/25)*40) + AAMC_Raw_Data_for_FY22[[#This Row],[Median]]","v":435609.4}]
[{"$f":"AAMC_Raw_Data_for_FY22[[#This Row],[Source]]&AAMC_Raw_Data_for_FY22[[#This Row],[Type]]&AAMC_Raw_Data_for_FY22[[#This Row],[School Subset]]&AAMC_Raw_Data_for_FY22[[#This Row],[Rank]]&AAMC_Raw_Data_for_FY22[[#This Row],[Degree]]&AAMC_Raw_Data_for_FY22[[#This Row],[Department / Specialty]]&\"L\"","v":"AAMCAcademicAllInstructorPhDMolecular & Cellular BiologyL"},"Molecular & Cellular Biology",5,"AAMC","Academic","All","Instructor","PhD","2021-2022",62100,{"$f":"(((AAMC_Raw_Data_for_FY22[[#This Row],[Median]]-AAMC_Raw_Data_for_FY22[[#This Row],[25th]])/25)*5) + AAMC_Raw_Data_for_FY22[[#This Row],[25th]]","v":62938.400000000001},{"$f":"(((AAMC_Raw_Data_for_FY22[[#This Row],[Median]]-AAMC_Raw_Data_for_FY22[[#This Row],[25th]])/25)*10) + AAMC_Raw_Data_for_FY22[[#This Row],[25th]]","v":63776.800000000003},{"$f":"(((AAMC_Raw_Data_for_FY22[[#This Row],[Median]]-AAMC_Raw_Data_for_FY22[[#This Row],[25th]])/25)*15) + AAMC_Raw_Data_for_FY22[[#This Row],[25th]]","v":64615.199999999997},{"$f":"(((AAMC_Raw_Data_for_FY22[[#This Row],[Median]]-AAMC_Raw_Data_for_FY22[[#This Row],[25th]])/25)*20) + AAMC_Raw_Data_for_FY22[[#This Row],[25th]]","v":65453.599999999999},66292,{"$f":"(((AAMC_Raw_Data_for_FY22[[#This Row],[75th]]-AAMC_Raw_Data_for_FY22[[#This Row],[Median]])/25)*5) + AAMC_Raw_Data_for_FY22[[#This Row],[Median]]","v":68033.600000000006},{"$f":"(((AAMC_Raw_Data_for_FY22[[#This Row],[75th]]-AAMC_Raw_Data_for_FY22[[#This Row],[Median]])/25)*10) + AAMC_Raw_Data_for_FY22[[#This Row],[Median]]","v":69775.199999999997},{"$f":"(((AAMC_Raw_Data_for_FY22[[#This Row],[75th]]-AAMC_Raw_Data_for_FY22[[#This Row],[Median]])/25)*15) + AAMC_Raw_Data_for_FY22[[#This Row],[Median]]","v":71516.800000000003},{"$f":"(((AAMC_Raw_Data_for_FY22[[#This Row],[75th]]-AAMC_Raw_Data_for_FY22[[#This Row],[Median]])/25)*20) + AAMC_Raw_Data_for_FY22[[#This Row],[Median]]","v":73258.399999999994},75000,{"$f":"(((AAMC_Raw_Data_for_FY22[[#This Row],[75th]]-AAMC_Raw_Data_for_FY22[[#This Row],[Median]])/25)*30) + AAMC_Raw_Data_for_FY22[[#This Row],[Median]]","v":76741.600000000006},{"$f":"(((AAMC_Raw_Data_for_FY22[[#This Row],[75th]]-AAMC_Raw_Data_for_FY22[[#This Row],[Median]])/25)*35) + AAMC_Raw_Data_for_FY22[[#This Row],[Median]]","v":78483.199999999997},{"$f":"(((AAMC_Raw_Data_for_FY22[[#This Row],[75th]]-AAMC_Raw_Data_for_FY22[[#This Row],[Median]])/25)*40) + AAMC_Raw_Data_for_FY22[[#This Row],[Median]]","v":80224.800000000003}]
[{"$f":"AAMC_Raw_Data_for_FY22[[#This Row],[Source]]&AAMC_Raw_Data_for_FY22[[#This Row],[Type]]&AAMC_Raw_Data_for_FY22[[#This Row],[School Subset]]&AAMC_Raw_Data_for_FY22[[#This Row],[Rank]]&AAMC_Raw_Data_for_FY22[[#This Row],[Degree]]&AAMC_Raw_Data_for_FY22[[#This Row],[Department / Specialty]]&\"L\"","v":"AAMCAcademicAllAssistantPhDMolecular & Cellular BiologyL"},"Molecular & Cellular Biology",4,"AAMC","Academic","All","Assistant","PhD","2021-2022",93998,{"$f":"(((AAMC_Raw_Data_for_FY22[[#This Row],[Median]]-AAMC_Raw_Data_for_FY22[[#This Row],[25th]])/25)*5) + AAMC_Raw_Data_for_FY22[[#This Row],[25th]]","v":96998.399999999994},{"$f":"(((AAMC_Raw_Data_for_FY22[[#This Row],[Median]]-AAMC_Raw_Data_for_FY22[[#This Row],[25th]])/25)*10) + AAMC_Raw_Data_for_FY22[[#This Row],[25th]]","v":99998.8},{"$f":"(((AAMC_Raw_Data_for_FY22[[#This Row],[Median]]-AAMC_Raw_Data_for_FY22[[#This Row],[25th]])/25)*15) + AAMC_Raw_Data_for_FY22[[#This Row],[25th]]","v":102999.2},{"$f":"(((AAMC_Raw_Data_for_FY22[[#This Row],[Median]]-AAMC_Raw_Data_for_FY22[[#This Row],[25th]])/25)*20) + AAMC_Raw_Data_for_FY22[[#This Row],[25th]]","v":105999.6},109000,{"$f":"(((AAMC_Raw_Data_for_FY22[[#This Row],[75th]]-AAMC_Raw_Data_for_FY22[[#This Row],[Median]])/25)*5) + AAMC_Raw_Data_for_FY22[[#This Row],[Median]]","v":112930.4},{"$f":"(((AAMC_Raw_Data_for_FY22[[#This Row],[75th]]-AAMC_Raw_Data_for_FY22[[#This Row],[Median]])/25)*10) + AAMC_Raw_Data_for_FY22[[#This Row],[Median]]","v":116860.8},{"$f":"(((AAMC_Raw_Data_for_FY22[[#This Row],[75th]]-AAMC_Raw_Data_for_FY22[[#This Row],[Median]])/25)*15) + AAMC_Raw_Data_for_FY22[[#This Row],[Median]]","v":120791.2},{"$f":"(((AAMC_Raw_Data_for_FY22[[#This Row],[75th]]-AAMC_Raw_Data_for_FY22[[#This Row],[Median]])/25)*20) + AAMC_Raw_Data_for_FY22[[#This Row],[Median]]","v":124721.60000000001},128652,{"$f":"(((AAMC_Raw_Data_for_FY22[[#This Row],[75th]]-AAMC_Raw_Data_for_FY22[[#This Row],[Median]])/25)*30) + AAMC_Raw_Data_for_FY22[[#This Row],[Median]]","v":132582.39999999999},{"$f":"(((AAMC_Raw_Data_for_FY22[[#This Row],[75th]]-AAMC_Raw_Data_for_FY22[[#This Row],[Median]])/25)*35) + AAMC_Raw_Data_for_FY22[[#This Row],[Median]]","v":136512.79999999999},{"$f":"(((AAMC_Raw_Data_for_FY22[[#This Row],[75th]]-AAMC_Raw_Data_for_FY22[[#This Row],[Median]])/25)*40) + AAMC_Raw_Data_for_FY22[[#This Row],[Median]]","v":140443.20000000001}]
[{"$f":"AAMC_Raw_Data_for_FY22[[#This Row],[Source]]&AAMC_Raw_Data_for_FY22[[#This Row],[Type]]&AAMC_Raw_Data_for_FY22[[#This Row],[School Subset]]&AAMC_Raw_Data_for_FY22[[#This Row],[Rank]]&AAMC_Raw_Data_for_FY22[[#This Row],[Degree]]&AAMC_Raw_Data_for_FY22[[#This Row],[Department / Specialty]]&\"L\"","v":"AAMCAcademicAllAssociatePhDMolecular & Cellular BiologyL"},"Molecular & Cellular Biology",3,"AAMC","Academic","All","Associate","PhD","2021-2022",123600,{"$f":"(((AAMC_Raw_Data_for_FY22[[#This Row],[Median]]-AAMC_Raw_Data_for_FY22[[#This Row],[25th]])/25)*5) + AAMC_Raw_Data_for_FY22[[#This Row],[25th]]","v":126610},{"$f":"(((AAMC_Raw_Data_for_FY22[[#This Row],[Median]]-AAMC_Raw_Data_for_FY22[[#This Row],[25th]])/25)*10) + AAMC_Raw_Data_for_FY22[[#This Row],[25th]]","v":129620},{"$f":"(((AAMC_Raw_Data_for_FY22[[#This Row],[Median]]-AAMC_Raw_Data_for_FY22[[#This Row],[25th]])/25)*15) + AAMC_Raw_Data_for_FY22[[#This Row],[25th]]","v":132630},{"$f":"(((AAMC_Raw_Data_for_FY22[[#This Row],[Median]]-AAMC_Raw_Data_for_FY22[[#This Row],[25th]])/25)*20) + AAMC_Raw_Data_for_FY22[[#This Row],[25th]]","v":135640},138650,{"$f":"(((AAMC_Raw_Data_for_FY22[[#This Row],[75th]]-AAMC_Raw_Data_for_FY22[[#This Row],[Median]])/25)*5) + AAMC_Raw_Data_for_FY22[[#This Row],[Median]]","v":142788.4},{"$f":"(((AAMC_Raw_Data_for_FY22[[#This Row],[75th]]-AAMC_Raw_Data_for_FY22[[#This Row],[Median]])/25)*10) + AAMC_Raw_Data_for_FY22[[#This Row],[Median]]","v":146926.79999999999},{"$f":"(((AAMC_Raw_Data_for_FY22[[#This Row],[75th]]-AAMC_Raw_Data_for_FY22[[#This Row],[Median]])/25)*15) + AAMC_Raw_Data_for_FY22[[#This Row],[Median]]","v":151065.20000000001},{"$f":"(((AAMC_Raw_Data_for_FY22[[#This Row],[75th]]-AAMC_Raw_Data_for_FY22[[#This Row],[Median]])/25)*20) + AAMC_Raw_Data_for_FY22[[#This Row],[Median]]","v":155203.6},159342,{"$f":"(((AAMC_Raw_Data_for_FY22[[#This Row],[75th]]-AAMC_Raw_Data_for_FY22[[#This Row],[Median]])/25)*30) + AAMC_Raw_Data_for_FY22[[#This Row],[Median]]","v":163480.4},{"$f":"(((AAMC_Raw_Data_for_FY22[[#This Row],[75th]]-AAMC_Raw_Data_for_FY22[[#This Row],[Median]])/25)*35) + AAMC_Raw_Data_for_FY22[[#This Row],[Median]]","v":167618.79999999999},{"$f":"(((AAMC_Raw_Data_for_FY22[[#This Row],[75th]]-AAMC_Raw_Data_for_FY22[[#This Row],[Median]])/25)*40) + AAMC_Raw_Data_for_FY22[[#This Row],[Median]]","v":171757.2}]
[{"$f":"AAMC_Raw_Data_for_FY22[[#This Row],[Source]]&AAMC_Raw_Data_for_FY22[[#This Row],[Type]]&AAMC_Raw_Data_for_FY22[[#This Row],[School Subset]]&AAMC_Raw_Data_for_FY22[[#This Row],[Rank]]&AAMC_Raw_Data_for_FY22[[#This Row],[Degree]]&AAMC_Raw_Data_for_FY22[[#This Row],[Department / Specialty]]&\"L\"","v":"AAMCAcademicAllProfessorPhDMolecular & Cellular BiologyL"},"Molecular & Cellular Biology",2,"AAMC","Academic","All","Professor","PhD","2021-2022",175893,{"$f":"(((AAMC_Raw_Data_for_FY22[[#This Row],[Median]]-AAMC_Raw_Data_for_FY22[[#This Row],[25th]])/25)*5) + AAMC_Raw_Data_for_FY22[[#This Row],[25th]]","v":180750},{"$f":"(((AAMC_Raw_Data_for_FY22[[#This Row],[Median]]-AAMC_Raw_Data_for_FY22[[#This Row],[25th]])/25)*10) + AAMC_Raw_Data_for_FY22[[#This Row],[25th]]","v":185607},{"$f":"(((AAMC_Raw_Data_for_FY22[[#This Row],[Median]]-AAMC_Raw_Data_for_FY22[[#This Row],[25th]])/25)*15) + AAMC_Raw_Data_for_FY22[[#This Row],[25th]]","v":190464},{"$f":"(((AAMC_Raw_Data_for_FY22[[#This Row],[Median]]-AAMC_Raw_Data_for_FY22[[#This Row],[25th]])/25)*20) + AAMC_Raw_Data_for_FY22[[#This Row],[25th]]","v":195321},200178,{"$f":"(((AAMC_Raw_Data_for_FY22[[#This Row],[75th]]-AAMC_Raw_Data_for_FY22[[#This Row],[Median]])/25)*5) + AAMC_Raw_Data_for_FY22[[#This Row],[Median]]","v":211451.4},{"$f":"(((AAMC_Raw_Data_for_FY22[[#This Row],[75th]]-AAMC_Raw_Data_for_FY22[[#This Row],[Median]])/25)*10) + AAMC_Raw_Data_for_FY22[[#This Row],[Median]]","v":222724.8},{"$f":"(((AAMC_Raw_Data_for_FY22[[#This Row],[75th]]-AAMC_Raw_Data_for_FY22[[#This Row],[Median]])/25)*15) + AAMC_Raw_Data_for_FY22[[#This Row],[Median]]","v":233998.2},{"$f":"(((AAMC_Raw_Data_for_FY22[[#This Row],[75th]]-AAMC_Raw_Data_for_FY22[[#This Row],[Median]])/25)*20) + AAMC_Raw_Data_for_FY22[[#This Row],[Median]]","v":245271.6},256545,{"$f":"(((AAMC_Raw_Data_for_FY22[[#This Row],[75th]]-AAMC_Raw_Data_for_FY22[[#This Row],[Median]])/25)*30) + AAMC_Raw_Data_for_FY22[[#This Row],[Median]]","v":267818.40000000002},{"$f":"(((AAMC_Raw_Data_for_FY22[[#This Row],[75th]]-AAMC_Raw_Data_for_FY22[[#This Row],[Median]])/25)*35) + AAMC_Raw_Data_for_FY22[[#This Row],[Median]]","v":279091.8},{"$f":"(((AAMC_Raw_Data_for_FY22[[#This Row],[75th]]-AAMC_Raw_Data_for_FY22[[#This Row],[Median]])/25)*40) + AAMC_Raw_Data_for_FY22[[#This Row],[Median]]","v":290365.2}]
[{"$f":"AAMC_Raw_Data_for_FY22[[#This Row],[Source]]&AAMC_Raw_Data_for_FY22[[#This Row],[Type]]&AAMC_Raw_Data_for_FY22[[#This Row],[School Subset]]&AAMC_Raw_Data_for_FY22[[#This Row],[Rank]]&AAMC_Raw_Data_for_FY22[[#This Row],[Degree]]&AAMC_Raw_Data_for_FY22[[#This Row],[Department / Specialty]]&\"L\"","v":"AAMCAcademicAllChiefPhDMolecular & Cellular BiologyL"},"Molecular & Cellular Biology",6,"AAMC","Academic","All","Chief","PhD","2021-2022",263454,{"$f":"(((AAMC_Raw_Data_for_FY22[[#This Row],[Median]]-AAMC_Raw_Data_for_FY22[[#This Row],[25th]])/25)*5) + AAMC_Raw_Data_for_FY22[[#This Row],[25th]]","v":267972},{"$f":"(((AAMC_Raw_Data_for_FY22[[#This Row],[Median]]-AAMC_Raw_Data_for_FY22[[#This Row],[25th]])/25)*10) + AAMC_Raw_Data_for_FY22[[#This Row],[25th]]","v":272490},{"$f":"(((AAMC_Raw_Data_for_FY22[[#This Row],[Median]]-AAMC_Raw_Data_for_FY22[[#This Row],[25th]])/25)*15) + AAMC_Raw_Data_for_FY22[[#This Row],[25th]]","v":277008},{"$f":"(((AAMC_Raw_Data_for_FY22[[#This Row],[Median]]-AAMC_Raw_Data_for_FY22[[#This Row],[25th]])/25)*20) + AAMC_Raw_Data_for_FY22[[#This Row],[25th]]","v":281526},286044,{"$f":"(((AAMC_Raw_Data_for_FY22[[#This Row],[75th]]-AAMC_Raw_Data_for_FY22[[#This Row],[Median]])/25)*5) + AAMC_Raw_Data_for_FY22[[#This Row],[Median]]","v":295570.40000000002},{"$f":"(((AAMC_Raw_Data_for_FY22[[#This Row],[75th]]-AAMC_Raw_Data_for_FY22[[#This Row],[Median]])/25)*10) + AAMC_Raw_Data_for_FY22[[#This Row],[Median]]","v":305096.8},{"$f":"(((AAMC_Raw_Data_for_FY22[[#This Row],[75th]]-AAMC_Raw_Data_for_FY22[[#This Row],[Median]])/25)*15) + AAMC_Raw_Data_for_FY22[[#This Row],[Median]]","v":314623.2},{"$f":"(((AAMC_Raw_Data_for_FY22[[#This Row],[75th]]-AAMC_Raw_Data_for_FY22[[#This Row],[Median]])/25)*20) + AAMC_Raw_Data_for_FY22[[#This Row],[Median]]","v":324149.59999999998},333676,{"$f":"(((AAMC_Raw_Data_for_FY22[[#This Row],[75th]]-AAMC_Raw_Data_for_FY22[[#This Row],[Median]])/25)*30) + AAMC_Raw_Data_for_FY22[[#This Row],[Median]]","v":343202.4},{"$f":"(((AAMC_Raw_Data_for_FY22[[#This Row],[75th]]-AAMC_Raw_Data_for_FY22[[#This Row],[Median]])/25)*35) + AAMC_Raw_Data_for_FY22[[#This Row],[Median]]","v":352728.8},{"$f":"(((AAMC_Raw_Data_for_FY22[[#This Row],[75th]]-AAMC_Raw_Data_for_FY22[[#This Row],[Median]])/25)*40) + AAMC_Raw_Data_for_FY22[[#This Row],[Median]]","v":362255.2}]
[{"$f":"AAMC_Raw_Data_for_FY22[[#This Row],[Source]]&AAMC_Raw_Data_for_FY22[[#This Row],[Type]]&AAMC_Raw_Data_for_FY22[[#This Row],[School Subset]]&AAMC_Raw_Data_for_FY22[[#This Row],[Rank]]&AAMC_Raw_Data_for_FY22[[#This Row],[Degree]]&AAMC_Raw_Data_for_FY22[[#This Row],[Department / Specialty]]&\"L\"","v":"AAMCAcademicAllChairPhDMolecular & Cellular BiologyL"},"Molecular & Cellular Biology",1,"AAMC","Academic","All","Chair","PhD","2021-2022",301191,{"$f":"(((AAMC_Raw_Data_for_FY22[[#This Row],[Median]]-AAMC_Raw_Data_for_FY22[[#This Row],[25th]])/25)*5) + AAMC_Raw_Data_for_FY22[[#This Row],[25th]]","v":312712.8},{"$f":"(((AAMC_Raw_Data_for_FY22[[#This Row],[Median]]-AAMC_Raw_Data_for_FY22[[#This Row],[25th]])/25)*10) + AAMC_Raw_Data_for_FY22[[#This Row],[25th]]","v":324234.59999999998},{"$f":"(((AAMC_Raw_Data_for_FY22[[#This Row],[Median]]-AAMC_Raw_Data_for_FY22[[#This Row],[25th]])/25)*15) + AAMC_Raw_Data_for_FY22[[#This Row],[25th]]","v":335756.4},{"$f":"(((AAMC_Raw_Data_for_FY22[[#This Row],[Median]]-AAMC_Raw_Data_for_FY22[[#This Row],[25th]])/25)*20) + AAMC_Raw_Data_for_FY22[[#This Row],[25th]]","v":347278.2},358800,{"$f":"(((AAMC_Raw_Data_for_FY22[[#This Row],[75th]]-AAMC_Raw_Data_for_FY22[[#This Row],[Median]])/25)*5) + AAMC_Raw_Data_for_FY22[[#This Row],[Median]]","v":375233.4},{"$f":"(((AAMC_Raw_Data_for_FY22[[#This Row],[75th]]-AAMC_Raw_Data_for_FY22[[#This Row],[Median]])/25)*10) + AAMC_Raw_Data_for_FY22[[#This Row],[Median]]","v":391666.8},{"$f":"(((AAMC_Raw_Data_for_FY22[[#This Row],[75th]]-AAMC_Raw_Data_for_FY22[[#This Row],[Median]])/25)*15) + AAMC_Raw_Data_for_FY22[[#This Row],[Median]]","v":408100.2},{"$f":"(((AAMC_Raw_Data_for_FY22[[#This Row],[75th]]-AAMC_Raw_Data_for_FY22[[#This Row],[Median]])/25)*20) + AAMC_Raw_Data_for_FY22[[#This Row],[Median]]","v":424533.6},440967,{"$f":"(((AAMC_Raw_Data_for_FY22[[#This Row],[75th]]-AAMC_Raw_Data_for_FY22[[#This Row],[Median]])/25)*30) + AAMC_Raw_Data_for_FY22[[#This Row],[Median]]","v":457400.4},{"$f":"(((AAMC_Raw_Data_for_FY22[[#This Row],[75th]]-AAMC_Raw_Data_for_FY22[[#This Row],[Median]])/25)*35) + AAMC_Raw_Data_for_FY22[[#This Row],[Median]]","v":473833.8},{"$f":"(((AAMC_Raw_Data_for_FY22[[#This Row],[75th]]-AAMC_Raw_Data_for_FY22[[#This Row],[Median]])/25)*40) + AAMC_Raw_Data_for_FY22[[#This Row],[Median]]","v":490267.19999999995}]
[{"$f":"AAMC_Raw_Data_for_FY22[[#This Row],[Source]]&AAMC_Raw_Data_for_FY22[[#This Row],[Type]]&AAMC_Raw_Data_for_FY22[[#This Row],[School Subset]]&AAMC_Raw_Data_for_FY22[[#This Row],[Rank]]&AAMC_Raw_Data_for_FY22[[#This Row],[Degree]]&AAMC_Raw_Data_for_FY22[[#This Row],[Department / Specialty]]&\"L\"","v":"AAMCAcademicAllInstructorPhDNeurosciencesL"},"Neurosciences",5,"AAMC","Academic","All","Instructor","PhD","2021-2022",60500,{"$f":"(((AAMC_Raw_Data_for_FY22[[#This Row],[Median]]-AAMC_Raw_Data_for_FY22[[#This Row],[25th]])/25)*5) + AAMC_Raw_Data_for_FY22[[#This Row],[25th]]","v":62226.8},{"$f":"(((AAMC_Raw_Data_for_FY22[[#This Row],[Median]]-AAMC_Raw_Data_for_FY22[[#This Row],[25th]])/25)*10) + AAMC_Raw_Data_for_FY22[[#This Row],[25th]]","v":63953.599999999999},{"$f":"(((AAMC_Raw_Data_for_FY22[[#This Row],[Median]]-AAMC_Raw_Data_for_FY22[[#This Row],[25th]])/25)*15) + AAMC_Raw_Data_for_FY22[[#This Row],[25th]]","v":65680.399999999994},{"$f":"(((AAMC_Raw_Data_for_FY22[[#This Row],[Median]]-AAMC_Raw_Data_for_FY22[[#This Row],[25th]])/25)*20) + AAMC_Raw_Data_for_FY22[[#This Row],[25th]]","v":67407.199999999997},69134,{"$f":"(((AAMC_Raw_Data_for_FY22[[#This Row],[75th]]-AAMC_Raw_Data_for_FY22[[#This Row],[Median]])/25)*5) + AAMC_Raw_Data_for_FY22[[#This Row],[Median]]","v":70947},{"$f":"(((AAMC_Raw_Data_for_FY22[[#This Row],[75th]]-AAMC_Raw_Data_for_FY22[[#This Row],[Median]])/25)*10) + AAMC_Raw_Data_for_FY22[[#This Row],[Median]]","v":72760},{"$f":"(((AAMC_Raw_Data_for_FY22[[#This Row],[75th]]-AAMC_Raw_Data_for_FY22[[#This Row],[Median]])/25)*15) + AAMC_Raw_Data_for_FY22[[#This Row],[Median]]","v":74573},{"$f":"(((AAMC_Raw_Data_for_FY22[[#This Row],[75th]]-AAMC_Raw_Data_for_FY22[[#This Row],[Median]])/25)*20) + AAMC_Raw_Data_for_FY22[[#This Row],[Median]]","v":76386},78199,{"$f":"(((AAMC_Raw_Data_for_FY22[[#This Row],[75th]]-AAMC_Raw_Data_for_FY22[[#This Row],[Median]])/25)*30) + AAMC_Raw_Data_for_FY22[[#This Row],[Median]]","v":80012},{"$f":"(((AAMC_Raw_Data_for_FY22[[#This Row],[75th]]-AAMC_Raw_Data_for_FY22[[#This Row],[Median]])/25)*35) + AAMC_Raw_Data_for_FY22[[#This Row],[Median]]","v":81825},{"$f":"(((AAMC_Raw_Data_for_FY22[[#This Row],[75th]]-AAMC_Raw_Data_for_FY22[[#This Row],[Median]])/25)*40) + AAMC_Raw_Data_for_FY22[[#This Row],[Median]]","v":83638}]
[{"$f":"AAMC_Raw_Data_for_FY22[[#This Row],[Source]]&AAMC_Raw_Data_for_FY22[[#This Row],[Type]]&AAMC_Raw_Data_for_FY22[[#This Row],[School Subset]]&AAMC_Raw_Data_for_FY22[[#This Row],[Rank]]&AAMC_Raw_Data_for_FY22[[#This Row],[Degree]]&AAMC_Raw_Data_for_FY22[[#This Row],[Department / Specialty]]&\"L\"","v":"AAMCAcademicAllAssistantPhDNeurosciencesL"},"Neurosciences",4,"AAMC","Academic","All","Assistant","PhD","2021-2022",86712,{"$f":"(((AAMC_Raw_Data_for_FY22[[#This Row],[Median]]-AAMC_Raw_Data_for_FY22[[#This Row],[25th]])/25)*5) + AAMC_Raw_Data_for_FY22[[#This Row],[25th]]","v":91132.2},{"$f":"(((AAMC_Raw_Data_for_FY22[[#This Row],[Median]]-AAMC_Raw_Data_for_FY22[[#This Row],[25th]])/25)*10) + AAMC_Raw_Data_for_FY22[[#This Row],[25th]]","v":95552.4},{"$f":"(((AAMC_Raw_Data_for_FY22[[#This Row],[Median]]-AAMC_Raw_Data_for_FY22[[#This Row],[25th]])/25)*15) + AAMC_Raw_Data_for_FY22[[#This Row],[25th]]","v":99972.6},{"$f":"(((AAMC_Raw_Data_for_FY22[[#This Row],[Median]]-AAMC_Raw_Data_for_FY22[[#This Row],[25th]])/25)*20) + AAMC_Raw_Data_for_FY22[[#This Row],[25th]]","v":104392.8},108813,{"$f":"(((AAMC_Raw_Data_for_FY22[[#This Row],[75th]]-AAMC_Raw_Data_for_FY22[[#This Row],[Median]])/25)*5) + AAMC_Raw_Data_for_FY22[[#This Row],[Median]]","v":112552.8},{"$f":"(((AAMC_Raw_Data_for_FY22[[#This Row],[75th]]-AAMC_Raw_Data_for_FY22[[#This Row],[Median]])/25)*10) + AAMC_Raw_Data_for_FY22[[#This Row],[Median]]","v":116292.6},{"$f":"(((AAMC_Raw_Data_for_FY22[[#This Row],[75th]]-AAMC_Raw_Data_for_FY22[[#This Row],[Median]])/25)*15) + AAMC_Raw_Data_for_FY22[[#This Row],[Median]]","v":120032.4},{"$f":"(((AAMC_Raw_Data_for_FY22[[#This Row],[75th]]-AAMC_Raw_Data_for_FY22[[#This Row],[Median]])/25)*20) + AAMC_Raw_Data_for_FY22[[#This Row],[Median]]","v":123772.2},127512,{"$f":"(((AAMC_Raw_Data_for_FY22[[#This Row],[75th]]-AAMC_Raw_Data_for_FY22[[#This Row],[Median]])/25)*30) + AAMC_Raw_Data_for_FY22[[#This Row],[Median]]","v":131251.79999999999},{"$f":"(((AAMC_Raw_Data_for_FY22[[#This Row],[75th]]-AAMC_Raw_Data_for_FY22[[#This Row],[Median]])/25)*35) + AAMC_Raw_Data_for_FY22[[#This Row],[Median]]","v":134991.6},{"$f":"(((AAMC_Raw_Data_for_FY22[[#This Row],[75th]]-AAMC_Raw_Data_for_FY22[[#This Row],[Median]])/25)*40) + AAMC_Raw_Data_for_FY22[[#This Row],[Median]]","v":138731.4}]
[{"$f":"AAMC_Raw_Data_for_FY22[[#This Row],[Source]]&AAMC_Raw_Data_for_FY22[[#This Row],[Type]]&AAMC_Raw_Data_for_FY22[[#This Row],[School Subset]]&AAMC_Raw_Data_for_FY22[[#This Row],[Rank]]&AAMC_Raw_Data_for_FY22[[#This Row],[Degree]]&AAMC_Raw_Data_for_FY22[[#This Row],[Department / Specialty]]&\"L\"","v":"AAMCAcademicAllAssociatePhDNeurosciencesL"},"Neurosciences",3,"AAMC","Academic","All","Associate","PhD","2021-2022",120904,{"$f":"(((AAMC_Raw_Data_for_FY22[[#This Row],[Median]]-AAMC_Raw_Data_for_FY22[[#This Row],[25th]])/25)*5) + AAMC_Raw_Data_for_FY22[[#This Row],[25th]]","v":124348.2},{"$f":"(((AAMC_Raw_Data_for_FY22[[#This Row],[Median]]-AAMC_Raw_Data_for_FY22[[#This Row],[25th]])/25)*10) + AAMC_Raw_Data_for_FY22[[#This Row],[25th]]","v":127792.4},{"$f":"(((AAMC_Raw_Data_for_FY22[[#This Row],[Median]]-AAMC_Raw_Data_for_FY22[[#This Row],[25th]])/25)*15) + AAMC_Raw_Data_for_FY22[[#This Row],[25th]]","v":131236.6},{"$f":"(((AAMC_Raw_Data_for_FY22[[#This Row],[Median]]-AAMC_Raw_Data_for_FY22[[#This Row],[25th]])/25)*20) + AAMC_Raw_Data_for_FY22[[#This Row],[25th]]","v":134680.79999999999},138125,{"$f":"(((AAMC_Raw_Data_for_FY22[[#This Row],[75th]]-AAMC_Raw_Data_for_FY22[[#This Row],[Median]])/25)*5) + AAMC_Raw_Data_for_FY22[[#This Row],[Median]]","v":141688},{"$f":"(((AAMC_Raw_Data_for_FY22[[#This Row],[75th]]-AAMC_Raw_Data_for_FY22[[#This Row],[Median]])/25)*10) + AAMC_Raw_Data_for_FY22[[#This Row],[Median]]","v":145251},{"$f":"(((AAMC_Raw_Data_for_FY22[[#This Row],[75th]]-AAMC_Raw_Data_for_FY22[[#This Row],[Median]])/25)*15) + AAMC_Raw_Data_for_FY22[[#This Row],[Median]]","v":148814},{"$f":"(((AAMC_Raw_Data_for_FY22[[#This Row],[75th]]-AAMC_Raw_Data_for_FY22[[#This Row],[Median]])/25)*20) + AAMC_Raw_Data_for_FY22[[#This Row],[Median]]","v":152377},155940,{"$f":"(((AAMC_Raw_Data_for_FY22[[#This Row],[75th]]-AAMC_Raw_Data_for_FY22[[#This Row],[Median]])/25)*30) + AAMC_Raw_Data_for_FY22[[#This Row],[Median]]","v":159503},{"$f":"(((AAMC_Raw_Data_for_FY22[[#This Row],[75th]]-AAMC_Raw_Data_for_FY22[[#This Row],[Median]])/25)*35) + AAMC_Raw_Data_for_FY22[[#This Row],[Median]]","v":163066},{"$f":"(((AAMC_Raw_Data_for_FY22[[#This Row],[75th]]-AAMC_Raw_Data_for_FY22[[#This Row],[Median]])/25)*40) + AAMC_Raw_Data_for_FY22[[#This Row],[Median]]","v":166629}]
[{"$f":"AAMC_Raw_Data_for_FY22[[#This Row],[Source]]&AAMC_Raw_Data_for_FY22[[#This Row],[Type]]&AAMC_Raw_Data_for_FY22[[#This Row],[School Subset]]&AAMC_Raw_Data_for_FY22[[#This Row],[Rank]]&AAMC_Raw_Data_for_FY22[[#This Row],[Degree]]&AAMC_Raw_Data_for_FY22[[#This Row],[Department / Specialty]]&\"L\"","v":"AAMCAcademicAllProfessorPhDNeurosciencesL"},"Neurosciences",2,"AAMC","Academic","All","Professor","PhD","2021-2022",176271,{"$f":"(((AAMC_Raw_Data_for_FY22[[#This Row],[Median]]-AAMC_Raw_Data_for_FY22[[#This Row],[25th]])/25)*5) + AAMC_Raw_Data_for_FY22[[#This Row],[25th]]","v":182016.8},{"$f":"(((AAMC_Raw_Data_for_FY22[[#This Row],[Median]]-AAMC_Raw_Data_for_FY22[[#This Row],[25th]])/25)*10) + AAMC_Raw_Data_for_FY22[[#This Row],[25th]]","v":187762.6},{"$f":"(((AAMC_Raw_Data_for_FY22[[#This Row],[Median]]-AAMC_Raw_Data_for_FY22[[#This Row],[25th]])/25)*15) + AAMC_Raw_Data_for_FY22[[#This Row],[25th]]","v":193508.4},{"$f":"(((AAMC_Raw_Data_for_FY22[[#This Row],[Median]]-AAMC_Raw_Data_for_FY22[[#This Row],[25th]])/25)*20) + AAMC_Raw_Data_for_FY22[[#This Row],[25th]]","v":199254.2},205000,{"$f":"(((AAMC_Raw_Data_for_FY22[[#This Row],[75th]]-AAMC_Raw_Data_for_FY22[[#This Row],[Median]])/25)*5) + AAMC_Raw_Data_for_FY22[[#This Row],[Median]]","v":212796.79999999999},{"$f":"(((AAMC_Raw_Data_for_FY22[[#This Row],[75th]]-AAMC_Raw_Data_for_FY22[[#This Row],[Median]])/25)*10) + AAMC_Raw_Data_for_FY22[[#This Row],[Median]]","v":220593.6},{"$f":"(((AAMC_Raw_Data_for_FY22[[#This Row],[75th]]-AAMC_Raw_Data_for_FY22[[#This Row],[Median]])/25)*15) + AAMC_Raw_Data_for_FY22[[#This Row],[Median]]","v":228390.39999999999},{"$f":"(((AAMC_Raw_Data_for_FY22[[#This Row],[75th]]-AAMC_Raw_Data_for_FY22[[#This Row],[Median]])/25)*20) + AAMC_Raw_Data_for_FY22[[#This Row],[Median]]","v":236187.2},243984,{"$f":"(((AAMC_Raw_Data_for_FY22[[#This Row],[75th]]-AAMC_Raw_Data_for_FY22[[#This Row],[Median]])/25)*30) + AAMC_Raw_Data_for_FY22[[#This Row],[Median]]","v":251780.8},{"$f":"(((AAMC_Raw_Data_for_FY22[[#This Row],[75th]]-AAMC_Raw_Data_for_FY22[[#This Row],[Median]])/25)*35) + AAMC_Raw_Data_for_FY22[[#This Row],[Median]]","v":259577.60000000001},{"$f":"(((AAMC_Raw_Data_for_FY22[[#This Row],[75th]]-AAMC_Raw_Data_for_FY22[[#This Row],[Median]])/25)*40) + AAMC_Raw_Data_for_FY22[[#This Row],[Median]]","v":267374.40000000002}]
[{"$f":"AAMC_Raw_Data_for_FY22[[#This Row],[Source]]&AAMC_Raw_Data_for_FY22[[#This Row],[Type]]&AAMC_Raw_Data_for_FY22[[#This Row],[School Subset]]&AAMC_Raw_Data_for_FY22[[#This Row],[Rank]]&AAMC_Raw_Data_for_FY22[[#This Row],[Degree]]&AAMC_Raw_Data_for_FY22[[#This Row],[Department / Specialty]]&\"L\"","v":"AAMCAcademicAllChiefPhDNeurosciencesL"},"Neurosciences",6,"AAMC","Academic","All","Chief","PhD","2021-2022",null,{"$f":"(((AAMC_Raw_Data_for_FY22[[#This Row],[Median]]-AAMC_Raw_Data_for_FY22[[#This Row],[25th]])/25)*5) + AAMC_Raw_Data_for_FY22[[#This Row],[25th]]","v":0},{"$f":"(((AAMC_Raw_Data_for_FY22[[#This Row],[Median]]-AAMC_Raw_Data_for_FY22[[#This Row],[25th]])/25)*10) + AAMC_Raw_Data_for_FY22[[#This Row],[25th]]","v":0},{"$f":"(((AAMC_Raw_Data_for_FY22[[#This Row],[Median]]-AAMC_Raw_Data_for_FY22[[#This Row],[25th]])/25)*15) + AAMC_Raw_Data_for_FY22[[#This Row],[25th]]","v":0},{"$f":"(((AAMC_Raw_Data_for_FY22[[#This Row],[Median]]-AAMC_Raw_Data_for_FY22[[#This Row],[25th]])/25)*20) + AAMC_Raw_Data_for_FY22[[#This Row],[25th]]","v":0},null,{"$f":"(((AAMC_Raw_Data_for_FY22[[#This Row],[75th]]-AAMC_Raw_Data_for_FY22[[#This Row],[Median]])/25)*5) + AAMC_Raw_Data_for_FY22[[#This Row],[Median]]","v":0},{"$f":"(((AAMC_Raw_Data_for_FY22[[#This Row],[75th]]-AAMC_Raw_Data_for_FY22[[#This Row],[Median]])/25)*10) + AAMC_Raw_Data_for_FY22[[#This Row],[Median]]","v":0},{"$f":"(((AAMC_Raw_Data_for_FY22[[#This Row],[75th]]-AAMC_Raw_Data_for_FY22[[#This Row],[Median]])/25)*15) + AAMC_Raw_Data_for_FY22[[#This Row],[Median]]","v":0},{"$f":"(((AAMC_Raw_Data_for_FY22[[#This Row],[75th]]-AAMC_Raw_Data_for_FY22[[#This Row],[Median]])/25)*20) + AAMC_Raw_Data_for_FY22[[#This Row],[Median]]","v":0},null,{"$f":"(((AAMC_Raw_Data_for_FY22[[#This Row],[75th]]-AAMC_Raw_Data_for_FY22[[#This Row],[Median]])/25)*30) + AAMC_Raw_Data_for_FY22[[#This Row],[Median]]","v":0},{"$f":"(((AAMC_Raw_Data_for_FY22[[#This Row],[75th]]-AAMC_Raw_Data_for_FY22[[#This Row],[Median]])/25)*35) + AAMC_Raw_Data_for_FY22[[#This Row],[Median]]","v":0},{"$f":"(((AAMC_Raw_Data_for_FY22[[#This Row],[75th]]-AAMC_Raw_Data_for_FY22[[#This Row],[Median]])/25)*40) + AAMC_Raw_Data_for_FY22[[#This Row],[Median]]","v":0}]
[{"$f":"AAMC_Raw_Data_for_FY22[[#This Row],[Source]]&AAMC_Raw_Data_for_FY22[[#This Row],[Type]]&AAMC_Raw_Data_for_FY22[[#This Row],[School Subset]]&AAMC_Raw_Data_for_FY22[[#This Row],[Rank]]&AAMC_Raw_Data_for_FY22[[#This Row],[Degree]]&AAMC_Raw_Data_for_FY22[[#This Row],[Department / Specialty]]&\"L\"","v":"AAMCAcademicAllChairPhDNeurosciencesL"},"Neurosciences",1,"AAMC","Academic","All","Chair","PhD","2021-2022",257888,{"$f":"(((AAMC_Raw_Data_for_FY22[[#This Row],[Median]]-AAMC_Raw_Data_for_FY22[[#This Row],[25th]])/25)*5) + AAMC_Raw_Data_for_FY22[[#This Row],[25th]]","v":274848.59999999998},{"$f":"(((AAMC_Raw_Data_for_FY22[[#This Row],[Median]]-AAMC_Raw_Data_for_FY22[[#This Row],[25th]])/25)*10) + AAMC_Raw_Data_for_FY22[[#This Row],[25th]]","v":291809.2},{"$f":"(((AAMC_Raw_Data_for_FY22[[#This Row],[Median]]-AAMC_Raw_Data_for_FY22[[#This Row],[25th]])/25)*15) + AAMC_Raw_Data_for_FY22[[#This Row],[25th]]","v":308769.8},{"$f":"(((AAMC_Raw_Data_for_FY22[[#This Row],[Median]]-AAMC_Raw_Data_for_FY22[[#This Row],[25th]])/25)*20) + AAMC_Raw_Data_for_FY22[[#This Row],[25th]]","v":325730.40000000002},342691,{"$f":"(((AAMC_Raw_Data_for_FY22[[#This Row],[75th]]-AAMC_Raw_Data_for_FY22[[#This Row],[Median]])/25)*5) + AAMC_Raw_Data_for_FY22[[#This Row],[Median]]","v":356789.8},{"$f":"(((AAMC_Raw_Data_for_FY22[[#This Row],[75th]]-AAMC_Raw_Data_for_FY22[[#This Row],[Median]])/25)*10) + AAMC_Raw_Data_for_FY22[[#This Row],[Median]]","v":370888.6},{"$f":"(((AAMC_Raw_Data_for_FY22[[#This Row],[75th]]-AAMC_Raw_Data_for_FY22[[#This Row],[Median]])/25)*15) + AAMC_Raw_Data_for_FY22[[#This Row],[Median]]","v":384987.4},{"$f":"(((AAMC_Raw_Data_for_FY22[[#This Row],[75th]]-AAMC_Raw_Data_for_FY22[[#This Row],[Median]])/25)*20) + AAMC_Raw_Data_for_FY22[[#This Row],[Median]]","v":399086.2},413185,{"$f":"(((AAMC_Raw_Data_for_FY22[[#This Row],[75th]]-AAMC_Raw_Data_for_FY22[[#This Row],[Median]])/25)*30) + AAMC_Raw_Data_for_FY22[[#This Row],[Median]]","v":427283.8},{"$f":"(((AAMC_Raw_Data_for_FY22[[#This Row],[75th]]-AAMC_Raw_Data_for_FY22[[#This Row],[Median]])/25)*35) + AAMC_Raw_Data_for_FY22[[#This Row],[Median]]","v":441382.6},{"$f":"(((AAMC_Raw_Data_for_FY22[[#This Row],[75th]]-AAMC_Raw_Data_for_FY22[[#This Row],[Median]])/25)*40) + AAMC_Raw_Data_for_FY22[[#This Row],[Median]]","v":455481.4}]
[{"$f":"AAMC_Raw_Data_for_FY22[[#This Row],[Source]]&AAMC_Raw_Data_for_FY22[[#This Row],[Type]]&AAMC_Raw_Data_for_FY22[[#This Row],[School Subset]]&AAMC_Raw_Data_for_FY22[[#This Row],[Rank]]&AAMC_Raw_Data_for_FY22[[#This Row],[Degree]]&AAMC_Raw_Data_for_FY22[[#This Row],[Department / Specialty]]&\"L\"","v":"AAMCAcademicAllInstructorPhDPharmacologyL"},"Pharmacology",5,"AAMC","Academic","All","Instructor","PhD","2021-2022",60000,{"$f":"(((AAMC_Raw_Data_for_FY22[[#This Row],[Median]]-AAMC_Raw_Data_for_FY22[[#This Row],[25th]])/25)*5) + AAMC_Raw_Data_for_FY22[[#This Row],[25th]]","v":61000},{"$f":"(((AAMC_Raw_Data_for_FY22[[#This Row],[Median]]-AAMC_Raw_Data_for_FY22[[#This Row],[25th]])/25)*10) + AAMC_Raw_Data_for_FY22[[#This Row],[25th]]","v":62000},{"$f":"(((AAMC_Raw_Data_for_FY22[[#This Row],[Median]]-AAMC_Raw_Data_for_FY22[[#This Row],[25th]])/25)*15) + AAMC_Raw_Data_for_FY22[[#This Row],[25th]]","v":63000},{"$f":"(((AAMC_Raw_Data_for_FY22[[#This Row],[Median]]-AAMC_Raw_Data_for_FY22[[#This Row],[25th]])/25)*20) + AAMC_Raw_Data_for_FY22[[#This Row],[25th]]","v":64000},65000,{"$f":"(((AAMC_Raw_Data_for_FY22[[#This Row],[75th]]-AAMC_Raw_Data_for_FY22[[#This Row],[Median]])/25)*5) + AAMC_Raw_Data_for_FY22[[#This Row],[Median]]","v":67109.600000000006},{"$f":"(((AAMC_Raw_Data_for_FY22[[#This Row],[75th]]-AAMC_Raw_Data_for_FY22[[#This Row],[Median]])/25)*10) + AAMC_Raw_Data_for_FY22[[#This Row],[Median]]","v":69219.199999999997},{"$f":"(((AAMC_Raw_Data_for_FY22[[#This Row],[75th]]-AAMC_Raw_Data_for_FY22[[#This Row],[Median]])/25)*15) + AAMC_Raw_Data_for_FY22[[#This Row],[Median]]","v":71328.800000000003},{"$f":"(((AAMC_Raw_Data_for_FY22[[#This Row],[75th]]-AAMC_Raw_Data_for_FY22[[#This Row],[Median]])/25)*20) + AAMC_Raw_Data_for_FY22[[#This Row],[Median]]","v":73438.399999999994},75548,{"$f":"(((AAMC_Raw_Data_for_FY22[[#This Row],[75th]]-AAMC_Raw_Data_for_FY22[[#This Row],[Median]])/25)*30) + AAMC_Raw_Data_for_FY22[[#This Row],[Median]]","v":77657.600000000006},{"$f":"(((AAMC_Raw_Data_for_FY22[[#This Row],[75th]]-AAMC_Raw_Data_for_FY22[[#This Row],[Median]])/25)*35) + AAMC_Raw_Data_for_FY22[[#This Row],[Median]]","v":79767.199999999997},{"$f":"(((AAMC_Raw_Data_for_FY22[[#This Row],[75th]]-AAMC_Raw_Data_for_FY22[[#This Row],[Median]])/25)*40) + AAMC_Raw_Data_for_FY22[[#This Row],[Median]]","v":81876.800000000003}]
[{"$f":"AAMC_Raw_Data_for_FY22[[#This Row],[Source]]&AAMC_Raw_Data_for_FY22[[#This Row],[Type]]&AAMC_Raw_Data_for_FY22[[#This Row],[School Subset]]&AAMC_Raw_Data_for_FY22[[#This Row],[Rank]]&AAMC_Raw_Data_for_FY22[[#This Row],[Degree]]&AAMC_Raw_Data_for_FY22[[#This Row],[Department / Specialty]]&\"L\"","v":"AAMCAcademicAllAssistantPhDPharmacologyL"},"Pharmacology",4,"AAMC","Academic","All","Assistant","PhD","2021-2022",84895,{"$f":"(((AAMC_Raw_Data_for_FY22[[#This Row],[Median]]-AAMC_Raw_Data_for_FY22[[#This Row],[25th]])/25)*5) + AAMC_Raw_Data_for_FY22[[#This Row],[25th]]","v":88656},{"$f":"(((AAMC_Raw_Data_for_FY22[[#This Row],[Median]]-AAMC_Raw_Data_for_FY22[[#This Row],[25th]])/25)*10) + AAMC_Raw_Data_for_FY22[[#This Row],[25th]]","v":92417},{"$f":"(((AAMC_Raw_Data_for_FY22[[#This Row],[Median]]-AAMC_Raw_Data_for_FY22[[#This Row],[25th]])/25)*15) + AAMC_Raw_Data_for_FY22[[#This Row],[25th]]","v":96178},{"$f":"(((AAMC_Raw_Data_for_FY22[[#This Row],[Median]]-AAMC_Raw_Data_for_FY22[[#This Row],[25th]])/25)*20) + AAMC_Raw_Data_for_FY22[[#This Row],[25th]]","v":99939},103700,{"$f":"(((AAMC_Raw_Data_for_FY22[[#This Row],[75th]]-AAMC_Raw_Data_for_FY22[[#This Row],[Median]])/25)*5) + AAMC_Raw_Data_for_FY22[[#This Row],[Median]]","v":107960},{"$f":"(((AAMC_Raw_Data_for_FY22[[#This Row],[75th]]-AAMC_Raw_Data_for_FY22[[#This Row],[Median]])/25)*10) + AAMC_Raw_Data_for_FY22[[#This Row],[Median]]","v":112220},{"$f":"(((AAMC_Raw_Data_for_FY22[[#This Row],[75th]]-AAMC_Raw_Data_for_FY22[[#This Row],[Median]])/25)*15) + AAMC_Raw_Data_for_FY22[[#This Row],[Median]]","v":116480},{"$f":"(((AAMC_Raw_Data_for_FY22[[#This Row],[75th]]-AAMC_Raw_Data_for_FY22[[#This Row],[Median]])/25)*20) + AAMC_Raw_Data_for_FY22[[#This Row],[Median]]","v":120740},125000,{"$f":"(((AAMC_Raw_Data_for_FY22[[#This Row],[75th]]-AAMC_Raw_Data_for_FY22[[#This Row],[Median]])/25)*30) + AAMC_Raw_Data_for_FY22[[#This Row],[Median]]","v":129260},{"$f":"(((AAMC_Raw_Data_for_FY22[[#This Row],[75th]]-AAMC_Raw_Data_for_FY22[[#This Row],[Median]])/25)*35) + AAMC_Raw_Data_for_FY22[[#This Row],[Median]]","v":133520},{"$f":"(((AAMC_Raw_Data_for_FY22[[#This Row],[75th]]-AAMC_Raw_Data_for_FY22[[#This Row],[Median]])/25)*40) + AAMC_Raw_Data_for_FY22[[#This Row],[Median]]","v":137780}]
[{"$f":"AAMC_Raw_Data_for_FY22[[#This Row],[Source]]&AAMC_Raw_Data_for_FY22[[#This Row],[Type]]&AAMC_Raw_Data_for_FY22[[#This Row],[School Subset]]&AAMC_Raw_Data_for_FY22[[#This Row],[Rank]]&AAMC_Raw_Data_for_FY22[[#This Row],[Degree]]&AAMC_Raw_Data_for_FY22[[#This Row],[Department / Specialty]]&\"L\"","v":"AAMCAcademicAllAssociatePhDPharmacologyL"},"Pharmacology",3,"AAMC","Academic","All","Associate","PhD","2021-2022",119559,{"$f":"(((AAMC_Raw_Data_for_FY22[[#This Row],[Median]]-AAMC_Raw_Data_for_FY22[[#This Row],[25th]])/25)*5) + AAMC_Raw_Data_for_FY22[[#This Row],[25th]]","v":122819.8},{"$f":"(((AAMC_Raw_Data_for_FY22[[#This Row],[Median]]-AAMC_Raw_Data_for_FY22[[#This Row],[25th]])/25)*10) + AAMC_Raw_Data_for_FY22[[#This Row],[25th]]","v":126080.6},{"$f":"(((AAMC_Raw_Data_for_FY22[[#This Row],[Median]]-AAMC_Raw_Data_for_FY22[[#This Row],[25th]])/25)*15) + AAMC_Raw_Data_for_FY22[[#This Row],[25th]]","v":129341.4},{"$f":"(((AAMC_Raw_Data_for_FY22[[#This Row],[Median]]-AAMC_Raw_Data_for_FY22[[#This Row],[25th]])/25)*20) + AAMC_Raw_Data_for_FY22[[#This Row],[25th]]","v":132602.20000000001},135863,{"$f":"(((AAMC_Raw_Data_for_FY22[[#This Row],[75th]]-AAMC_Raw_Data_for_FY22[[#This Row],[Median]])/25)*5) + AAMC_Raw_Data_for_FY22[[#This Row],[Median]]","v":139421},{"$f":"(((AAMC_Raw_Data_for_FY22[[#This Row],[75th]]-AAMC_Raw_Data_for_FY22[[#This Row],[Median]])/25)*10) + AAMC_Raw_Data_for_FY22[[#This Row],[Median]]","v":142979},{"$f":"(((AAMC_Raw_Data_for_FY22[[#This Row],[75th]]-AAMC_Raw_Data_for_FY22[[#This Row],[Median]])/25)*15) + AAMC_Raw_Data_for_FY22[[#This Row],[Median]]","v":146537},{"$f":"(((AAMC_Raw_Data_for_FY22[[#This Row],[75th]]-AAMC_Raw_Data_for_FY22[[#This Row],[Median]])/25)*20) + AAMC_Raw_Data_for_FY22[[#This Row],[Median]]","v":150095},153653,{"$f":"(((AAMC_Raw_Data_for_FY22[[#This Row],[75th]]-AAMC_Raw_Data_for_FY22[[#This Row],[Median]])/25)*30) + AAMC_Raw_Data_for_FY22[[#This Row],[Median]]","v":157211},{"$f":"(((AAMC_Raw_Data_for_FY22[[#This Row],[75th]]-AAMC_Raw_Data_for_FY22[[#This Row],[Median]])/25)*35) + AAMC_Raw_Data_for_FY22[[#This Row],[Median]]","v":160769},{"$f":"(((AAMC_Raw_Data_for_FY22[[#This Row],[75th]]-AAMC_Raw_Data_for_FY22[[#This Row],[Median]])/25)*40) + AAMC_Raw_Data_for_FY22[[#This Row],[Median]]","v":164327}]
[{"$f":"AAMC_Raw_Data_for_FY22[[#This Row],[Source]]&AAMC_Raw_Data_for_FY22[[#This Row],[Type]]&AAMC_Raw_Data_for_FY22[[#This Row],[School Subset]]&AAMC_Raw_Data_for_FY22[[#This Row],[Rank]]&AAMC_Raw_Data_for_FY22[[#This Row],[Degree]]&AAMC_Raw_Data_for_FY22[[#This Row],[Department / Specialty]]&\"L\"","v":"AAMCAcademicAllProfessorPhDPharmacologyL"},"Pharmacology",2,"AAMC","Academic","All","Professor","PhD","2021-2022",164747,{"$f":"(((AAMC_Raw_Data_for_FY22[[#This Row],[Median]]-AAMC_Raw_Data_for_FY22[[#This Row],[25th]])/25)*5) + AAMC_Raw_Data_for_FY22[[#This Row],[25th]]","v":170495},{"$f":"(((AAMC_Raw_Data_for_FY22[[#This Row],[Median]]-AAMC_Raw_Data_for_FY22[[#This Row],[25th]])/25)*10) + AAMC_Raw_Data_for_FY22[[#This Row],[25th]]","v":176243},{"$f":"(((AAMC_Raw_Data_for_FY22[[#This Row],[Median]]-AAMC_Raw_Data_for_FY22[[#This Row],[25th]])/25)*15) + AAMC_Raw_Data_for_FY22[[#This Row],[25th]]","v":181991},{"$f":"(((AAMC_Raw_Data_for_FY22[[#This Row],[Median]]-AAMC_Raw_Data_for_FY22[[#This Row],[25th]])/25)*20) + AAMC_Raw_Data_for_FY22[[#This Row],[25th]]","v":187739},193487,{"$f":"(((AAMC_Raw_Data_for_FY22[[#This Row],[75th]]-AAMC_Raw_Data_for_FY22[[#This Row],[Median]])/25)*5) + AAMC_Raw_Data_for_FY22[[#This Row],[Median]]","v":202789.2},{"$f":"(((AAMC_Raw_Data_for_FY22[[#This Row],[75th]]-AAMC_Raw_Data_for_FY22[[#This Row],[Median]])/25)*10) + AAMC_Raw_Data_for_FY22[[#This Row],[Median]]","v":212091.4},{"$f":"(((AAMC_Raw_Data_for_FY22[[#This Row],[75th]]-AAMC_Raw_Data_for_FY22[[#This Row],[Median]])/25)*15) + AAMC_Raw_Data_for_FY22[[#This Row],[Median]]","v":221393.6},{"$f":"(((AAMC_Raw_Data_for_FY22[[#This Row],[75th]]-AAMC_Raw_Data_for_FY22[[#This Row],[Median]])/25)*20) + AAMC_Raw_Data_for_FY22[[#This Row],[Median]]","v":230695.8},239998,{"$f":"(((AAMC_Raw_Data_for_FY22[[#This Row],[75th]]-AAMC_Raw_Data_for_FY22[[#This Row],[Median]])/25)*30) + AAMC_Raw_Data_for_FY22[[#This Row],[Median]]","v":249300.2},{"$f":"(((AAMC_Raw_Data_for_FY22[[#This Row],[75th]]-AAMC_Raw_Data_for_FY22[[#This Row],[Median]])/25)*35) + AAMC_Raw_Data_for_FY22[[#This Row],[Median]]","v":258602.4},{"$f":"(((AAMC_Raw_Data_for_FY22[[#This Row],[75th]]-AAMC_Raw_Data_for_FY22[[#This Row],[Median]])/25)*40) + AAMC_Raw_Data_for_FY22[[#This Row],[Median]]","v":267904.59999999998}]
[{"$f":"AAMC_Raw_Data_for_FY22[[#This Row],[Source]]&AAMC_Raw_Data_for_FY22[[#This Row],[Type]]&AAMC_Raw_Data_for_FY22[[#This Row],[School Subset]]&AAMC_Raw_Data_for_FY22[[#This Row],[Rank]]&AAMC_Raw_Data_for_FY22[[#This Row],[Degree]]&AAMC_Raw_Data_for_FY22[[#This Row],[Department / Specialty]]&\"L\"","v":"AAMCAcademicAllChiefPhDPharmacologyL"},"Pharmacology",6,"AAMC","Academic","All","Chief","PhD","2021-2022",240951,{"$f":"(((AAMC_Raw_Data_for_FY22[[#This Row],[Median]]-AAMC_Raw_Data_for_FY22[[#This Row],[25th]])/25)*5) + AAMC_Raw_Data_for_FY22[[#This Row],[25th]]","v":251455},{"$f":"(((AAMC_Raw_Data_for_FY22[[#This Row],[Median]]-AAMC_Raw_Data_for_FY22[[#This Row],[25th]])/25)*10) + AAMC_Raw_Data_for_FY22[[#This Row],[25th]]","v":261959},{"$f":"(((AAMC_Raw_Data_for_FY22[[#This Row],[Median]]-AAMC_Raw_Data_for_FY22[[#This Row],[25th]])/25)*15) + AAMC_Raw_Data_for_FY22[[#This Row],[25th]]","v":272463},{"$f":"(((AAMC_Raw_Data_for_FY22[[#This Row],[Median]]-AAMC_Raw_Data_for_FY22[[#This Row],[25th]])/25)*20) + AAMC_Raw_Data_for_FY22[[#This Row],[25th]]","v":282967},293471,{"$f":"(((AAMC_Raw_Data_for_FY22[[#This Row],[75th]]-AAMC_Raw_Data_for_FY22[[#This Row],[Median]])/25)*5) + AAMC_Raw_Data_for_FY22[[#This Row],[Median]]","v":299527.2},{"$f":"(((AAMC_Raw_Data_for_FY22[[#This Row],[75th]]-AAMC_Raw_Data_for_FY22[[#This Row],[Median]])/25)*10) + AAMC_Raw_Data_for_FY22[[#This Row],[Median]]","v":305583.40000000002},{"$f":"(((AAMC_Raw_Data_for_FY22[[#This Row],[75th]]-AAMC_Raw_Data_for_FY22[[#This Row],[Median]])/25)*15) + AAMC_Raw_Data_for_FY22[[#This Row],[Median]]","v":311639.59999999998},{"$f":"(((AAMC_Raw_Data_for_FY22[[#This Row],[75th]]-AAMC_Raw_Data_for_FY22[[#This Row],[Median]])/25)*20) + AAMC_Raw_Data_for_FY22[[#This Row],[Median]]","v":317695.8},323752,{"$f":"(((AAMC_Raw_Data_for_FY22[[#This Row],[75th]]-AAMC_Raw_Data_for_FY22[[#This Row],[Median]])/25)*30) + AAMC_Raw_Data_for_FY22[[#This Row],[Median]]","v":329808.2},{"$f":"(((AAMC_Raw_Data_for_FY22[[#This Row],[75th]]-AAMC_Raw_Data_for_FY22[[#This Row],[Median]])/25)*35) + AAMC_Raw_Data_for_FY22[[#This Row],[Median]]","v":335864.4},{"$f":"(((AAMC_Raw_Data_for_FY22[[#This Row],[75th]]-AAMC_Raw_Data_for_FY22[[#This Row],[Median]])/25)*40) + AAMC_Raw_Data_for_FY22[[#This Row],[Median]]","v":341920.6}]
[{"$f":"AAMC_Raw_Data_for_FY22[[#This Row],[Source]]&AAMC_Raw_Data_for_FY22[[#This Row],[Type]]&AAMC_Raw_Data_for_FY22[[#This Row],[School Subset]]&AAMC_Raw_Data_for_FY22[[#This Row],[Rank]]&AAMC_Raw_Data_for_FY22[[#This Row],[Degree]]&AAMC_Raw_Data_for_FY22[[#This Row],[Department / Specialty]]&\"L\"","v":"AAMCAcademicAllChairPhDPharmacologyL"},"Pharmacology",1,"AAMC","Academic","All","Chair","PhD","2021-2022",262500,{"$f":"(((AAMC_Raw_Data_for_FY22[[#This Row],[Median]]-AAMC_Raw_Data_for_FY22[[#This Row],[25th]])/25)*5) + AAMC_Raw_Data_for_FY22[[#This Row],[25th]]","v":274812},{"$f":"(((AAMC_Raw_Data_for_FY22[[#This Row],[Median]]-AAMC_Raw_Data_for_FY22[[#This Row],[25th]])/25)*10) + AAMC_Raw_Data_for_FY22[[#This Row],[25th]]","v":287124},{"$f":"(((AAMC_Raw_Data_for_FY22[[#This Row],[Median]]-AAMC_Raw_Data_for_FY22[[#This Row],[25th]])/25)*15) + AAMC_Raw_Data_for_FY22[[#This Row],[25th]]","v":299436},{"$f":"(((AAMC_Raw_Data_for_FY22[[#This Row],[Median]]-AAMC_Raw_Data_for_FY22[[#This Row],[25th]])/25)*20) + AAMC_Raw_Data_for_FY22[[#This Row],[25th]]","v":311748},324060,{"$f":"(((AAMC_Raw_Data_for_FY22[[#This Row],[75th]]-AAMC_Raw_Data_for_FY22[[#This Row],[Median]])/25)*5) + AAMC_Raw_Data_for_FY22[[#This Row],[Median]]","v":341248},{"$f":"(((AAMC_Raw_Data_for_FY22[[#This Row],[75th]]-AAMC_Raw_Data_for_FY22[[#This Row],[Median]])/25)*10) + AAMC_Raw_Data_for_FY22[[#This Row],[Median]]","v":358436},{"$f":"(((AAMC_Raw_Data_for_FY22[[#This Row],[75th]]-AAMC_Raw_Data_for_FY22[[#This Row],[Median]])/25)*15) + AAMC_Raw_Data_for_FY22[[#This Row],[Median]]","v":375624},{"$f":"(((AAMC_Raw_Data_for_FY22[[#This Row],[75th]]-AAMC_Raw_Data_for_FY22[[#This Row],[Median]])/25)*20) + AAMC_Raw_Data_for_FY22[[#This Row],[Median]]","v":392812},410000,{"$f":"(((AAMC_Raw_Data_for_FY22[[#This Row],[75th]]-AAMC_Raw_Data_for_FY22[[#This Row],[Median]])/25)*30) + AAMC_Raw_Data_for_FY22[[#This Row],[Median]]","v":427188},{"$f":"(((AAMC_Raw_Data_for_FY22[[#This Row],[75th]]-AAMC_Raw_Data_for_FY22[[#This Row],[Median]])/25)*35) + AAMC_Raw_Data_for_FY22[[#This Row],[Median]]","v":444376},{"$f":"(((AAMC_Raw_Data_for_FY22[[#This Row],[75th]]-AAMC_Raw_Data_for_FY22[[#This Row],[Median]])/25)*40) + AAMC_Raw_Data_for_FY22[[#This Row],[Median]]","v":461564}]
[{"$f":"AAMC_Raw_Data_for_FY22[[#This Row],[Source]]&AAMC_Raw_Data_for_FY22[[#This Row],[Type]]&AAMC_Raw_Data_for_FY22[[#This Row],[School Subset]]&AAMC_Raw_Data_for_FY22[[#This Row],[Rank]]&AAMC_Raw_Data_for_FY22[[#This Row],[Degree]]&AAMC_Raw_Data_for_FY22[[#This Row],[Department / Specialty]]&\"L\"","v":"AAMCAcademicAllInstructorPhDPhysiologyL"},"Physiology",5,"AAMC","Academic","All","Instructor","PhD","2021-2022",59006,{"$f":"(((AAMC_Raw_Data_for_FY22[[#This Row],[Median]]-AAMC_Raw_Data_for_FY22[[#This Row],[25th]])/25)*5) + AAMC_Raw_Data_for_FY22[[#This Row],[25th]]","v":59873.8},{"$f":"(((AAMC_Raw_Data_for_FY22[[#This Row],[Median]]-AAMC_Raw_Data_for_FY22[[#This Row],[25th]])/25)*10) + AAMC_Raw_Data_for_FY22[[#This Row],[25th]]","v":60741.599999999999},{"$f":"(((AAMC_Raw_Data_for_FY22[[#This Row],[Median]]-AAMC_Raw_Data_for_FY22[[#This Row],[25th]])/25)*15) + AAMC_Raw_Data_for_FY22[[#This Row],[25th]]","v":61609.4},{"$f":"(((AAMC_Raw_Data_for_FY22[[#This Row],[Median]]-AAMC_Raw_Data_for_FY22[[#This Row],[25th]])/25)*20) + AAMC_Raw_Data_for_FY22[[#This Row],[25th]]","v":62477.2},63345,{"$f":"(((AAMC_Raw_Data_for_FY22[[#This Row],[75th]]-AAMC_Raw_Data_for_FY22[[#This Row],[Median]])/25)*5) + AAMC_Raw_Data_for_FY22[[#This Row],[Median]]","v":65676},{"$f":"(((AAMC_Raw_Data_for_FY22[[#This Row],[75th]]-AAMC_Raw_Data_for_FY22[[#This Row],[Median]])/25)*10) + AAMC_Raw_Data_for_FY22[[#This Row],[Median]]","v":68007},{"$f":"(((AAMC_Raw_Data_for_FY22[[#This Row],[75th]]-AAMC_Raw_Data_for_FY22[[#This Row],[Median]])/25)*15) + AAMC_Raw_Data_for_FY22[[#This Row],[Median]]","v":70338},{"$f":"(((AAMC_Raw_Data_for_FY22[[#This Row],[75th]]-AAMC_Raw_Data_for_FY22[[#This Row],[Median]])/25)*20) + AAMC_Raw_Data_for_FY22[[#This Row],[Median]]","v":72669},75000,{"$f":"(((AAMC_Raw_Data_for_FY22[[#This Row],[75th]]-AAMC_Raw_Data_for_FY22[[#This Row],[Median]])/25)*30) + AAMC_Raw_Data_for_FY22[[#This Row],[Median]]","v":77331},{"$f":"(((AAMC_Raw_Data_for_FY22[[#This Row],[75th]]-AAMC_Raw_Data_for_FY22[[#This Row],[Median]])/25)*35) + AAMC_Raw_Data_for_FY22[[#This Row],[Median]]","v":79662},{"$f":"(((AAMC_Raw_Data_for_FY22[[#This Row],[75th]]-AAMC_Raw_Data_for_FY22[[#This Row],[Median]])/25)*40) + AAMC_Raw_Data_for_FY22[[#This Row],[Median]]","v":81993}]
[{"$f":"AAMC_Raw_Data_for_FY22[[#This Row],[Source]]&AAMC_Raw_Data_for_FY22[[#This Row],[Type]]&AAMC_Raw_Data_for_FY22[[#This Row],[School Subset]]&AAMC_Raw_Data_for_FY22[[#This Row],[Rank]]&AAMC_Raw_Data_for_FY22[[#This Row],[Degree]]&AAMC_Raw_Data_for_FY22[[#This Row],[Department / Specialty]]&\"L\"","v":"AAMCAcademicAllAssistantPhDPhysiologyL"},"Physiology",4,"AAMC","Academic","All","Assistant","PhD","2021-2022",87609,{"$f":"(((AAMC_Raw_Data_for_FY22[[#This Row],[Median]]-AAMC_Raw_Data_for_FY22[[#This Row],[25th]])/25)*5) + AAMC_Raw_Data_for_FY22[[#This Row],[25th]]","v":91231.6},{"$f":"(((AAMC_Raw_Data_for_FY22[[#This Row],[Median]]-AAMC_Raw_Data_for_FY22[[#This Row],[25th]])/25)*10) + AAMC_Raw_Data_for_FY22[[#This Row],[25th]]","v":94854.2},{"$f":"(((AAMC_Raw_Data_for_FY22[[#This Row],[Median]]-AAMC_Raw_Data_for_FY22[[#This Row],[25th]])/25)*15) + AAMC_Raw_Data_for_FY22[[#This Row],[25th]]","v":98476.800000000003},{"$f":"(((AAMC_Raw_Data_for_FY22[[#This Row],[Median]]-AAMC_Raw_Data_for_FY22[[#This Row],[25th]])/25)*20) + AAMC_Raw_Data_for_FY22[[#This Row],[25th]]","v":102099.4},105722,{"$f":"(((AAMC_Raw_Data_for_FY22[[#This Row],[75th]]-AAMC_Raw_Data_for_FY22[[#This Row],[Median]])/25)*5) + AAMC_Raw_Data_for_FY22[[#This Row],[Median]]","v":109509.4},{"$f":"(((AAMC_Raw_Data_for_FY22[[#This Row],[75th]]-AAMC_Raw_Data_for_FY22[[#This Row],[Median]])/25)*10) + AAMC_Raw_Data_for_FY22[[#This Row],[Median]]","v":113296.8},{"$f":"(((AAMC_Raw_Data_for_FY22[[#This Row],[75th]]-AAMC_Raw_Data_for_FY22[[#This Row],[Median]])/25)*15) + AAMC_Raw_Data_for_FY22[[#This Row],[Median]]","v":117084.2},{"$f":"(((AAMC_Raw_Data_for_FY22[[#This Row],[75th]]-AAMC_Raw_Data_for_FY22[[#This Row],[Median]])/25)*20) + AAMC_Raw_Data_for_FY22[[#This Row],[Median]]","v":120871.6},124659,{"$f":"(((AAMC_Raw_Data_for_FY22[[#This Row],[75th]]-AAMC_Raw_Data_for_FY22[[#This Row],[Median]])/25)*30) + AAMC_Raw_Data_for_FY22[[#This Row],[Median]]","v":128446.39999999999},{"$f":"(((AAMC_Raw_Data_for_FY22[[#This Row],[75th]]-AAMC_Raw_Data_for_FY22[[#This Row],[Median]])/25)*35) + AAMC_Raw_Data_for_FY22[[#This Row],[Median]]","v":132233.79999999999},{"$f":"(((AAMC_Raw_Data_for_FY22[[#This Row],[75th]]-AAMC_Raw_Data_for_FY22[[#This Row],[Median]])/25)*40) + AAMC_Raw_Data_for_FY22[[#This Row],[Median]]","v":136021.20000000001}]
[{"$f":"AAMC_Raw_Data_for_FY22[[#This Row],[Source]]&AAMC_Raw_Data_for_FY22[[#This Row],[Type]]&AAMC_Raw_Data_for_FY22[[#This Row],[School Subset]]&AAMC_Raw_Data_for_FY22[[#This Row],[Rank]]&AAMC_Raw_Data_for_FY22[[#This Row],[Degree]]&AAMC_Raw_Data_for_FY22[[#This Row],[Department / Specialty]]&\"L\"","v":"AAMCAcademicAllAssociatePhDPhysiologyL"},"Physiology",3,"AAMC","Academic","All","Associate","PhD","2021-2022",120000,{"$f":"(((AAMC_Raw_Data_for_FY22[[#This Row],[Median]]-AAMC_Raw_Data_for_FY22[[#This Row],[25th]])/25)*5) + AAMC_Raw_Data_for_FY22[[#This Row],[25th]]","v":123229.8},{"$f":"(((AAMC_Raw_Data_for_FY22[[#This Row],[Median]]-AAMC_Raw_Data_for_FY22[[#This Row],[25th]])/25)*10) + AAMC_Raw_Data_for_FY22[[#This Row],[25th]]","v":126459.6},{"$f":"(((AAMC_Raw_Data_for_FY22[[#This Row],[Median]]-AAMC_Raw_Data_for_FY22[[#This Row],[25th]])/25)*15) + AAMC_Raw_Data_for_FY22[[#This Row],[25th]]","v":129689.4},{"$f":"(((AAMC_Raw_Data_for_FY22[[#This Row],[Median]]-AAMC_Raw_Data_for_FY22[[#This Row],[25th]])/25)*20) + AAMC_Raw_Data_for_FY22[[#This Row],[25th]]","v":132919.20000000001},136149,{"$f":"(((AAMC_Raw_Data_for_FY22[[#This Row],[75th]]-AAMC_Raw_Data_for_FY22[[#This Row],[Median]])/25)*5) + AAMC_Raw_Data_for_FY22[[#This Row],[Median]]","v":138935},{"$f":"(((AAMC_Raw_Data_for_FY22[[#This Row],[75th]]-AAMC_Raw_Data_for_FY22[[#This Row],[Median]])/25)*10) + AAMC_Raw_Data_for_FY22[[#This Row],[Median]]","v":141721},{"$f":"(((AAMC_Raw_Data_for_FY22[[#This Row],[75th]]-AAMC_Raw_Data_for_FY22[[#This Row],[Median]])/25)*15) + AAMC_Raw_Data_for_FY22[[#This Row],[Median]]","v":144507},{"$f":"(((AAMC_Raw_Data_for_FY22[[#This Row],[75th]]-AAMC_Raw_Data_for_FY22[[#This Row],[Median]])/25)*20) + AAMC_Raw_Data_for_FY22[[#This Row],[Median]]","v":147293},150079,{"$f":"(((AAMC_Raw_Data_for_FY22[[#This Row],[75th]]-AAMC_Raw_Data_for_FY22[[#This Row],[Median]])/25)*30) + AAMC_Raw_Data_for_FY22[[#This Row],[Median]]","v":152865},{"$f":"(((AAMC_Raw_Data_for_FY22[[#This Row],[75th]]-AAMC_Raw_Data_for_FY22[[#This Row],[Median]])/25)*35) + AAMC_Raw_Data_for_FY22[[#This Row],[Median]]","v":155651},{"$f":"(((AAMC_Raw_Data_for_FY22[[#This Row],[75th]]-AAMC_Raw_Data_for_FY22[[#This Row],[Median]])/25)*40) + AAMC_Raw_Data_for_FY22[[#This Row],[Median]]","v":158437}]
[{"$f":"AAMC_Raw_Data_for_FY22[[#This Row],[Source]]&AAMC_Raw_Data_for_FY22[[#This Row],[Type]]&AAMC_Raw_Data_for_FY22[[#This Row],[School Subset]]&AAMC_Raw_Data_for_FY22[[#This Row],[Rank]]&AAMC_Raw_Data_for_FY22[[#This Row],[Degree]]&AAMC_Raw_Data_for_FY22[[#This Row],[Department / Specialty]]&\"L\"","v":"AAMCAcademicAllProfessorPhDPhysiologyL"},"Physiology",2,"AAMC","Academic","All","Professor","PhD","2021-2022",159365,{"$f":"(((AAMC_Raw_Data_for_FY22[[#This Row],[Median]]-AAMC_Raw_Data_for_FY22[[#This Row],[25th]])/25)*5) + AAMC_Raw_Data_for_FY22[[#This Row],[25th]]","v":165992.20000000001},{"$f":"(((AAMC_Raw_Data_for_FY22[[#This Row],[Median]]-AAMC_Raw_Data_for_FY22[[#This Row],[25th]])/25)*10) + AAMC_Raw_Data_for_FY22[[#This Row],[25th]]","v":172619.4},{"$f":"(((AAMC_Raw_Data_for_FY22[[#This Row],[Median]]-AAMC_Raw_Data_for_FY22[[#This Row],[25th]])/25)*15) + AAMC_Raw_Data_for_FY22[[#This Row],[25th]]","v":179246.6},{"$f":"(((AAMC_Raw_Data_for_FY22[[#This Row],[Median]]-AAMC_Raw_Data_for_FY22[[#This Row],[25th]])/25)*20) + AAMC_Raw_Data_for_FY22[[#This Row],[25th]]","v":185873.8},192501,{"$f":"(((AAMC_Raw_Data_for_FY22[[#This Row],[75th]]-AAMC_Raw_Data_for_FY22[[#This Row],[Median]])/25)*5) + AAMC_Raw_Data_for_FY22[[#This Row],[Median]]","v":200555.6},{"$f":"(((AAMC_Raw_Data_for_FY22[[#This Row],[75th]]-AAMC_Raw_Data_for_FY22[[#This Row],[Median]])/25)*10) + AAMC_Raw_Data_for_FY22[[#This Row],[Median]]","v":208610.2},{"$f":"(((AAMC_Raw_Data_for_FY22[[#This Row],[75th]]-AAMC_Raw_Data_for_FY22[[#This Row],[Median]])/25)*15) + AAMC_Raw_Data_for_FY22[[#This Row],[Median]]","v":216664.8},{"$f":"(((AAMC_Raw_Data_for_FY22[[#This Row],[75th]]-AAMC_Raw_Data_for_FY22[[#This Row],[Median]])/25)*20) + AAMC_Raw_Data_for_FY22[[#This Row],[Median]]","v":224719.4},232774,{"$f":"(((AAMC_Raw_Data_for_FY22[[#This Row],[75th]]-AAMC_Raw_Data_for_FY22[[#This Row],[Median]])/25)*30) + AAMC_Raw_Data_for_FY22[[#This Row],[Median]]","v":240828.6},{"$f":"(((AAMC_Raw_Data_for_FY22[[#This Row],[75th]]-AAMC_Raw_Data_for_FY22[[#This Row],[Median]])/25)*35) + AAMC_Raw_Data_for_FY22[[#This Row],[Median]]","v":248883.20000000001},{"$f":"(((AAMC_Raw_Data_for_FY22[[#This Row],[75th]]-AAMC_Raw_Data_for_FY22[[#This Row],[Median]])/25)*40) + AAMC_Raw_Data_for_FY22[[#This Row],[Median]]","v":256937.8}]
[{"$f":"AAMC_Raw_Data_for_FY22[[#This Row],[Source]]&AAMC_Raw_Data_for_FY22[[#This Row],[Type]]&AAMC_Raw_Data_for_FY22[[#This Row],[School Subset]]&AAMC_Raw_Data_for_FY22[[#This Row],[Rank]]&AAMC_Raw_Data_for_FY22[[#This Row],[Degree]]&AAMC_Raw_Data_for_FY22[[#This Row],[Department / Specialty]]&\"L\"","v":"AAMCAcademicAllChiefPhDPhysiologyL"},"Physiology",6,"AAMC","Academic","All","Chief","PhD","2021-2022",null,{"$f":"(((AAMC_Raw_Data_for_FY22[[#This Row],[Median]]-AAMC_Raw_Data_for_FY22[[#This Row],[25th]])/25)*5) + AAMC_Raw_Data_for_FY22[[#This Row],[25th]]","v":0},{"$f":"(((AAMC_Raw_Data_for_FY22[[#This Row],[Median]]-AAMC_Raw_Data_for_FY22[[#This Row],[25th]])/25)*10) + AAMC_Raw_Data_for_FY22[[#This Row],[25th]]","v":0},{"$f":"(((AAMC_Raw_Data_for_FY22[[#This Row],[Median]]-AAMC_Raw_Data_for_FY22[[#This Row],[25th]])/25)*15) + AAMC_Raw_Data_for_FY22[[#This Row],[25th]]","v":0},{"$f":"(((AAMC_Raw_Data_for_FY22[[#This Row],[Median]]-AAMC_Raw_Data_for_FY22[[#This Row],[25th]])/25)*20) + AAMC_Raw_Data_for_FY22[[#This Row],[25th]]","v":0},null,{"$f":"(((AAMC_Raw_Data_for_FY22[[#This Row],[75th]]-AAMC_Raw_Data_for_FY22[[#This Row],[Median]])/25)*5) + AAMC_Raw_Data_for_FY22[[#This Row],[Median]]","v":0},{"$f":"(((AAMC_Raw_Data_for_FY22[[#This Row],[75th]]-AAMC_Raw_Data_for_FY22[[#This Row],[Median]])/25)*10) + AAMC_Raw_Data_for_FY22[[#This Row],[Median]]","v":0},{"$f":"(((AAMC_Raw_Data_for_FY22[[#This Row],[75th]]-AAMC_Raw_Data_for_FY22[[#This Row],[Median]])/25)*15) + AAMC_Raw_Data_for_FY22[[#This Row],[Median]]","v":0},{"$f":"(((AAMC_Raw_Data_for_FY22[[#This Row],[75th]]-AAMC_Raw_Data_for_FY22[[#This Row],[Median]])/25)*20) + AAMC_Raw_Data_for_FY22[[#This Row],[Median]]","v":0},null,{"$f":"(((AAMC_Raw_Data_for_FY22[[#This Row],[75th]]-AAMC_Raw_Data_for_FY22[[#This Row],[Median]])/25)*30) + AAMC_Raw_Data_for_FY22[[#This Row],[Median]]","v":0},{"$f":"(((AAMC_Raw_Data_for_FY22[[#This Row],[75th]]-AAMC_Raw_Data_for_FY22[[#This Row],[Median]])/25)*35) + AAMC_Raw_Data_for_FY22[[#This Row],[Median]]","v":0},{"$f":"(((AAMC_Raw_Data_for_FY22[[#This Row],[75th]]-AAMC_Raw_Data_for_FY22[[#This Row],[Median]])/25)*40) + AAMC_Raw_Data_for_FY22[[#This Row],[Median]]","v":0}]
[{"$f":"AAMC_Raw_Data_for_FY22[[#This Row],[Source]]&AAMC_Raw_Data_for_FY22[[#This Row],[Type]]&AAMC_Raw_Data_for_FY22[[#This Row],[School Subset]]&AAMC_Raw_Data_for_FY22[[#This Row],[Rank]]&AAMC_Raw_Data_for_FY22[[#This Row],[Degree]]&AAMC_Raw_Data_for_FY22[[#This Row],[Department / Specialty]]&\"L\"","v":"AAMCAcademicAllChairPhDPhysiologyL"},"Physiology",1,"AAMC","Academic","All","Chair","PhD","2021-2022",278705,{"$f":"(((AAMC_Raw_Data_for_FY22[[#This Row],[Median]]-AAMC_Raw_Data_for_FY22[[#This Row],[25th]])/25)*5) + AAMC_Raw_Data_for_FY22[[#This Row],[25th]]","v":286226.2},{"$f":"(((AAMC_Raw_Data_for_FY22[[#This Row],[Median]]-AAMC_Raw_Data_for_FY22[[#This Row],[25th]])/25)*10) + AAMC_Raw_Data_for_FY22[[#This Row],[25th]]","v":293747.40000000002},{"$f":"(((AAMC_Raw_Data_for_FY22[[#This Row],[Median]]-AAMC_Raw_Data_for_FY22[[#This Row],[25th]])/25)*15) + AAMC_Raw_Data_for_FY22[[#This Row],[25th]]","v":301268.59999999998},{"$f":"(((AAMC_Raw_Data_for_FY22[[#This Row],[Median]]-AAMC_Raw_Data_for_FY22[[#This Row],[25th]])/25)*20) + AAMC_Raw_Data_for_FY22[[#This Row],[25th]]","v":308789.8},316311,{"$f":"(((AAMC_Raw_Data_for_FY22[[#This Row],[75th]]-AAMC_Raw_Data_for_FY22[[#This Row],[Median]])/25)*5) + AAMC_Raw_Data_for_FY22[[#This Row],[Median]]","v":328057.2},{"$f":"(((AAMC_Raw_Data_for_FY22[[#This Row],[75th]]-AAMC_Raw_Data_for_FY22[[#This Row],[Median]])/25)*10) + AAMC_Raw_Data_for_FY22[[#This Row],[Median]]","v":339803.4},{"$f":"(((AAMC_Raw_Data_for_FY22[[#This Row],[75th]]-AAMC_Raw_Data_for_FY22[[#This Row],[Median]])/25)*15) + AAMC_Raw_Data_for_FY22[[#This Row],[Median]]","v":351549.6},{"$f":"(((AAMC_Raw_Data_for_FY22[[#This Row],[75th]]-AAMC_Raw_Data_for_FY22[[#This Row],[Median]])/25)*20) + AAMC_Raw_Data_for_FY22[[#This Row],[Median]]","v":363295.8},375042,{"$f":"(((AAMC_Raw_Data_for_FY22[[#This Row],[75th]]-AAMC_Raw_Data_for_FY22[[#This Row],[Median]])/25)*30) + AAMC_Raw_Data_for_FY22[[#This Row],[Median]]","v":386788.2},{"$f":"(((AAMC_Raw_Data_for_FY22[[#This Row],[75th]]-AAMC_Raw_Data_for_FY22[[#This Row],[Median]])/25)*35) + AAMC_Raw_Data_for_FY22[[#This Row],[Median]]","v":398534.40000000002},{"$f":"(((AAMC_Raw_Data_for_FY22[[#This Row],[75th]]-AAMC_Raw_Data_for_FY22[[#This Row],[Median]])/25)*40) + AAMC_Raw_Data_for_FY22[[#This Row],[Median]]","v":410280.6}]
[{"$f":"AAMC_Raw_Data_for_FY22[[#This Row],[Source]]&AAMC_Raw_Data_for_FY22[[#This Row],[Type]]&AAMC_Raw_Data_for_FY22[[#This Row],[School Subset]]&AAMC_Raw_Data_for_FY22[[#This Row],[Rank]]&AAMC_Raw_Data_for_FY22[[#This Row],[Degree]]&AAMC_Raw_Data_for_FY22[[#This Row],[Department / Specialty]]&\"L\"","v":"AAMCAcademicAllInstructorPhDPopulation Health and Public HealthL"},"Population Health and Public Health",5,"AAMC","Academic","All","Instructor","PhD","2021-2022",90375,{"$f":"(((AAMC_Raw_Data_for_FY22[[#This Row],[Median]]-AAMC_Raw_Data_for_FY22[[#This Row],[25th]])/25)*5) + AAMC_Raw_Data_for_FY22[[#This Row],[25th]]","v":92288.4},{"$f":"(((AAMC_Raw_Data_for_FY22[[#This Row],[Median]]-AAMC_Raw_Data_for_FY22[[#This Row],[25th]])/25)*10) + AAMC_Raw_Data_for_FY22[[#This Row],[25th]]","v":94201.8},{"$f":"(((AAMC_Raw_Data_for_FY22[[#This Row],[Median]]-AAMC_Raw_Data_for_FY22[[#This Row],[25th]])/25)*15) + AAMC_Raw_Data_for_FY22[[#This Row],[25th]]","v":96115.199999999997},{"$f":"(((AAMC_Raw_Data_for_FY22[[#This Row],[Median]]-AAMC_Raw_Data_for_FY22[[#This Row],[25th]])/25)*20) + AAMC_Raw_Data_for_FY22[[#This Row],[25th]]","v":98028.6},99942,{"$f":"(((AAMC_Raw_Data_for_FY22[[#This Row],[75th]]-AAMC_Raw_Data_for_FY22[[#This Row],[Median]])/25)*5) + AAMC_Raw_Data_for_FY22[[#This Row],[Median]]","v":100996.8},{"$f":"(((AAMC_Raw_Data_for_FY22[[#This Row],[75th]]-AAMC_Raw_Data_for_FY22[[#This Row],[Median]])/25)*10) + AAMC_Raw_Data_for_FY22[[#This Row],[Median]]","v":102051.6},{"$f":"(((AAMC_Raw_Data_for_FY22[[#This Row],[75th]]-AAMC_Raw_Data_for_FY22[[#This Row],[Median]])/25)*15) + AAMC_Raw_Data_for_FY22[[#This Row],[Median]]","v":103106.4},{"$f":"(((AAMC_Raw_Data_for_FY22[[#This Row],[75th]]-AAMC_Raw_Data_for_FY22[[#This Row],[Median]])/25)*20) + AAMC_Raw_Data_for_FY22[[#This Row],[Median]]","v":104161.2},105216,{"$f":"(((AAMC_Raw_Data_for_FY22[[#This Row],[75th]]-AAMC_Raw_Data_for_FY22[[#This Row],[Median]])/25)*30) + AAMC_Raw_Data_for_FY22[[#This Row],[Median]]","v":106270.8},{"$f":"(((AAMC_Raw_Data_for_FY22[[#This Row],[75th]]-AAMC_Raw_Data_for_FY22[[#This Row],[Median]])/25)*35) + AAMC_Raw_Data_for_FY22[[#This Row],[Median]]","v":107325.6},{"$f":"(((AAMC_Raw_Data_for_FY22[[#This Row],[75th]]-AAMC_Raw_Data_for_FY22[[#This Row],[Median]])/25)*40) + AAMC_Raw_Data_for_FY22[[#This Row],[Median]]","v":108380.4}]
[{"$f":"AAMC_Raw_Data_for_FY22[[#This Row],[Source]]&AAMC_Raw_Data_for_FY22[[#This Row],[Type]]&AAMC_Raw_Data_for_FY22[[#This Row],[School Subset]]&AAMC_Raw_Data_for_FY22[[#This Row],[Rank]]&AAMC_Raw_Data_for_FY22[[#This Row],[Degree]]&AAMC_Raw_Data_for_FY22[[#This Row],[Department / Specialty]]&\"L\"","v":"AAMCAcademicAllAssistantPhDPopulation Health and Public HealthL"},"Population Health and Public Health",4,"AAMC","Academic","All","Assistant","PhD","2021-2022",109647,{"$f":"(((AAMC_Raw_Data_for_FY22[[#This Row],[Median]]-AAMC_Raw_Data_for_FY22[[#This Row],[25th]])/25)*5) + AAMC_Raw_Data_for_FY22[[#This Row],[25th]]","v":111977.60000000001},{"$f":"(((AAMC_Raw_Data_for_FY22[[#This Row],[Median]]-AAMC_Raw_Data_for_FY22[[#This Row],[25th]])/25)*10) + AAMC_Raw_Data_for_FY22[[#This Row],[25th]]","v":114308.2},{"$f":"(((AAMC_Raw_Data_for_FY22[[#This Row],[Median]]-AAMC_Raw_Data_for_FY22[[#This Row],[25th]])/25)*15) + AAMC_Raw_Data_for_FY22[[#This Row],[25th]]","v":116638.8},{"$f":"(((AAMC_Raw_Data_for_FY22[[#This Row],[Median]]-AAMC_Raw_Data_for_FY22[[#This Row],[25th]])/25)*20) + AAMC_Raw_Data_for_FY22[[#This Row],[25th]]","v":118969.4},121300,{"$f":"(((AAMC_Raw_Data_for_FY22[[#This Row],[75th]]-AAMC_Raw_Data_for_FY22[[#This Row],[Median]])/25)*5) + AAMC_Raw_Data_for_FY22[[#This Row],[Median]]","v":124017.4},{"$f":"(((AAMC_Raw_Data_for_FY22[[#This Row],[75th]]-AAMC_Raw_Data_for_FY22[[#This Row],[Median]])/25)*10) + AAMC_Raw_Data_for_FY22[[#This Row],[Median]]","v":126734.8},{"$f":"(((AAMC_Raw_Data_for_FY22[[#This Row],[75th]]-AAMC_Raw_Data_for_FY22[[#This Row],[Median]])/25)*15) + AAMC_Raw_Data_for_FY22[[#This Row],[Median]]","v":129452.2},{"$f":"(((AAMC_Raw_Data_for_FY22[[#This Row],[75th]]-AAMC_Raw_Data_for_FY22[[#This Row],[Median]])/25)*20) + AAMC_Raw_Data_for_FY22[[#This Row],[Median]]","v":132169.60000000001},134887,{"$f":"(((AAMC_Raw_Data_for_FY22[[#This Row],[75th]]-AAMC_Raw_Data_for_FY22[[#This Row],[Median]])/25)*30) + AAMC_Raw_Data_for_FY22[[#This Row],[Median]]","v":137604.4},{"$f":"(((AAMC_Raw_Data_for_FY22[[#This Row],[75th]]-AAMC_Raw_Data_for_FY22[[#This Row],[Median]])/25)*35) + AAMC_Raw_Data_for_FY22[[#This Row],[Median]]","v":140321.79999999999},{"$f":"(((AAMC_Raw_Data_for_FY22[[#This Row],[75th]]-AAMC_Raw_Data_for_FY22[[#This Row],[Median]])/25)*40) + AAMC_Raw_Data_for_FY22[[#This Row],[Median]]","v":143039.20000000001}]
[{"$f":"AAMC_Raw_Data_for_FY22[[#This Row],[Source]]&AAMC_Raw_Data_for_FY22[[#This Row],[Type]]&AAMC_Raw_Data_for_FY22[[#This Row],[School Subset]]&AAMC_Raw_Data_for_FY22[[#This Row],[Rank]]&AAMC_Raw_Data_for_FY22[[#This Row],[Degree]]&AAMC_Raw_Data_for_FY22[[#This Row],[Department / Specialty]]&\"L\"","v":"AAMCAcademicAllAssociatePhDPopulation Health and Public HealthL"},"Population Health and Public Health",3,"AAMC","Academic","All","Associate","PhD","2021-2022",136000,{"$f":"(((AAMC_Raw_Data_for_FY22[[#This Row],[Median]]-AAMC_Raw_Data_for_FY22[[#This Row],[25th]])/25)*5) + AAMC_Raw_Data_for_FY22[[#This Row],[25th]]","v":140012},{"$f":"(((AAMC_Raw_Data_for_FY22[[#This Row],[Median]]-AAMC_Raw_Data_for_FY22[[#This Row],[25th]])/25)*10) + AAMC_Raw_Data_for_FY22[[#This Row],[25th]]","v":144024},{"$f":"(((AAMC_Raw_Data_for_FY22[[#This Row],[Median]]-AAMC_Raw_Data_for_FY22[[#This Row],[25th]])/25)*15) + AAMC_Raw_Data_for_FY22[[#This Row],[25th]]","v":148036},{"$f":"(((AAMC_Raw_Data_for_FY22[[#This Row],[Median]]-AAMC_Raw_Data_for_FY22[[#This Row],[25th]])/25)*20) + AAMC_Raw_Data_for_FY22[[#This Row],[25th]]","v":152048},156060,{"$f":"(((AAMC_Raw_Data_for_FY22[[#This Row],[75th]]-AAMC_Raw_Data_for_FY22[[#This Row],[Median]])/25)*5) + AAMC_Raw_Data_for_FY22[[#This Row],[Median]]","v":161966},{"$f":"(((AAMC_Raw_Data_for_FY22[[#This Row],[75th]]-AAMC_Raw_Data_for_FY22[[#This Row],[Median]])/25)*10) + AAMC_Raw_Data_for_FY22[[#This Row],[Median]]","v":167872},{"$f":"(((AAMC_Raw_Data_for_FY22[[#This Row],[75th]]-AAMC_Raw_Data_for_FY22[[#This Row],[Median]])/25)*15) + AAMC_Raw_Data_for_FY22[[#This Row],[Median]]","v":173778},{"$f":"(((AAMC_Raw_Data_for_FY22[[#This Row],[75th]]-AAMC_Raw_Data_for_FY22[[#This Row],[Median]])/25)*20) + AAMC_Raw_Data_for_FY22[[#This Row],[Median]]","v":179684},185590,{"$f":"(((AAMC_Raw_Data_for_FY22[[#This Row],[75th]]-AAMC_Raw_Data_for_FY22[[#This Row],[Median]])/25)*30) + AAMC_Raw_Data_for_FY22[[#This Row],[Median]]","v":191496},{"$f":"(((AAMC_Raw_Data_for_FY22[[#This Row],[75th]]-AAMC_Raw_Data_for_FY22[[#This Row],[Median]])/25)*35) + AAMC_Raw_Data_for_FY22[[#This Row],[Median]]","v":197402},{"$f":"(((AAMC_Raw_Data_for_FY22[[#This Row],[75th]]-AAMC_Raw_Data_for_FY22[[#This Row],[Median]])/25)*40) + AAMC_Raw_Data_for_FY22[[#This Row],[Median]]","v":203308}]
[{"$f":"AAMC_Raw_Data_for_FY22[[#This Row],[Source]]&AAMC_Raw_Data_for_FY22[[#This Row],[Type]]&AAMC_Raw_Data_for_FY22[[#This Row],[School Subset]]&AAMC_Raw_Data_for_FY22[[#This Row],[Rank]]&AAMC_Raw_Data_for_FY22[[#This Row],[Degree]]&AAMC_Raw_Data_for_FY22[[#This Row],[Department / Specialty]]&\"L\"","v":"AAMCAcademicAllProfessorPhDPopulation Health and Public HealthL"},"Population Health and Public Health",2,"AAMC","Academic","All","Professor","PhD","2021-2022",186671,{"$f":"(((AAMC_Raw_Data_for_FY22[[#This Row],[Median]]-AAMC_Raw_Data_for_FY22[[#This Row],[25th]])/25)*5) + AAMC_Raw_Data_for_FY22[[#This Row],[25th]]","v":192901},{"$f":"(((AAMC_Raw_Data_for_FY22[[#This Row],[Median]]-AAMC_Raw_Data_for_FY22[[#This Row],[25th]])/25)*10) + AAMC_Raw_Data_for_FY22[[#This Row],[25th]]","v":199131},{"$f":"(((AAMC_Raw_Data_for_FY22[[#This Row],[Median]]-AAMC_Raw_Data_for_FY22[[#This Row],[25th]])/25)*15) + AAMC_Raw_Data_for_FY22[[#This Row],[25th]]","v":205361},{"$f":"(((AAMC_Raw_Data_for_FY22[[#This Row],[Median]]-AAMC_Raw_Data_for_FY22[[#This Row],[25th]])/25)*20) + AAMC_Raw_Data_for_FY22[[#This Row],[25th]]","v":211591},217821,{"$f":"(((AAMC_Raw_Data_for_FY22[[#This Row],[75th]]-AAMC_Raw_Data_for_FY22[[#This Row],[Median]])/25)*5) + AAMC_Raw_Data_for_FY22[[#This Row],[Median]]","v":227500},{"$f":"(((AAMC_Raw_Data_for_FY22[[#This Row],[75th]]-AAMC_Raw_Data_for_FY22[[#This Row],[Median]])/25)*10) + AAMC_Raw_Data_for_FY22[[#This Row],[Median]]","v":237179},{"$f":"(((AAMC_Raw_Data_for_FY22[[#This Row],[75th]]-AAMC_Raw_Data_for_FY22[[#This Row],[Median]])/25)*15) + AAMC_Raw_Data_for_FY22[[#This Row],[Median]]","v":246858},{"$f":"(((AAMC_Raw_Data_for_FY22[[#This Row],[75th]]-AAMC_Raw_Data_for_FY22[[#This Row],[Median]])/25)*20) + AAMC_Raw_Data_for_FY22[[#This Row],[Median]]","v":256537},266216,{"$f":"(((AAMC_Raw_Data_for_FY22[[#This Row],[75th]]-AAMC_Raw_Data_for_FY22[[#This Row],[Median]])/25)*30) + AAMC_Raw_Data_for_FY22[[#This Row],[Median]]","v":275895},{"$f":"(((AAMC_Raw_Data_for_FY22[[#This Row],[75th]]-AAMC_Raw_Data_for_FY22[[#This Row],[Median]])/25)*35) + AAMC_Raw_Data_for_FY22[[#This Row],[Median]]","v":285574},{"$f":"(((AAMC_Raw_Data_for_FY22[[#This Row],[75th]]-AAMC_Raw_Data_for_FY22[[#This Row],[Median]])/25)*40) + AAMC_Raw_Data_for_FY22[[#This Row],[Median]]","v":295253}]
[{"$f":"AAMC_Raw_Data_for_FY22[[#This Row],[Source]]&AAMC_Raw_Data_for_FY22[[#This Row],[Type]]&AAMC_Raw_Data_for_FY22[[#This Row],[School Subset]]&AAMC_Raw_Data_for_FY22[[#This Row],[Rank]]&AAMC_Raw_Data_for_FY22[[#This Row],[Degree]]&AAMC_Raw_Data_for_FY22[[#This Row],[Department / Specialty]]&\"L\"","v":"AAMCAcademicAllChiefPhDPopulation Health and Public HealthL"},"Population Health and Public Health",6,"AAMC","Academic","All","Chief","PhD","2021-2022",null,{"$f":"(((AAMC_Raw_Data_for_FY22[[#This Row],[Median]]-AAMC_Raw_Data_for_FY22[[#This Row],[25th]])/25)*5) + AAMC_Raw_Data_for_FY22[[#This Row],[25th]]","v":0},{"$f":"(((AAMC_Raw_Data_for_FY22[[#This Row],[Median]]-AAMC_Raw_Data_for_FY22[[#This Row],[25th]])/25)*10) + AAMC_Raw_Data_for_FY22[[#This Row],[25th]]","v":0},{"$f":"(((AAMC_Raw_Data_for_FY22[[#This Row],[Median]]-AAMC_Raw_Data_for_FY22[[#This Row],[25th]])/25)*15) + AAMC_Raw_Data_for_FY22[[#This Row],[25th]]","v":0},{"$f":"(((AAMC_Raw_Data_for_FY22[[#This Row],[Median]]-AAMC_Raw_Data_for_FY22[[#This Row],[25th]])/25)*20) + AAMC_Raw_Data_for_FY22[[#This Row],[25th]]","v":0},null,{"$f":"(((AAMC_Raw_Data_for_FY22[[#This Row],[75th]]-AAMC_Raw_Data_for_FY22[[#This Row],[Median]])/25)*5) + AAMC_Raw_Data_for_FY22[[#This Row],[Median]]","v":0},{"$f":"(((AAMC_Raw_Data_for_FY22[[#This Row],[75th]]-AAMC_Raw_Data_for_FY22[[#This Row],[Median]])/25)*10) + AAMC_Raw_Data_for_FY22[[#This Row],[Median]]","v":0},{"$f":"(((AAMC_Raw_Data_for_FY22[[#This Row],[75th]]-AAMC_Raw_Data_for_FY22[[#This Row],[Median]])/25)*15) + AAMC_Raw_Data_for_FY22[[#This Row],[Median]]","v":0},{"$f":"(((AAMC_Raw_Data_for_FY22[[#This Row],[75th]]-AAMC_Raw_Data_for_FY22[[#This Row],[Median]])/25)*20) + AAMC_Raw_Data_for_FY22[[#This Row],[Median]]","v":0},null,{"$f":"(((AAMC_Raw_Data_for_FY22[[#This Row],[75th]]-AAMC_Raw_Data_for_FY22[[#This Row],[Median]])/25)*30) + AAMC_Raw_Data_for_FY22[[#This Row],[Median]]","v":0},{"$f":"(((AAMC_Raw_Data_for_FY22[[#This Row],[75th]]-AAMC_Raw_Data_for_FY22[[#This Row],[Median]])/25)*35) + AAMC_Raw_Data_for_FY22[[#This Row],[Median]]","v":0},{"$f":"(((AAMC_Raw_Data_for_FY22[[#This Row],[75th]]-AAMC_Raw_Data_for_FY22[[#This Row],[Median]])/25)*40) + AAMC_Raw_Data_for_FY22[[#This Row],[Median]]","v":0}]
[{"$f":"AAMC_Raw_Data_for_FY22[[#This Row],[Source]]&AAMC_Raw_Data_for_FY22[[#This Row],[Type]]&AAMC_Raw_Data_for_FY22[[#This Row],[School Subset]]&AAMC_Raw_Data_for_FY22[[#This Row],[Rank]]&AAMC_Raw_Data_for_FY22[[#This Row],[Degree]]&AAMC_Raw_Data_for_FY22[[#This Row],[Department / Specialty]]&\"L\"","v":"AAMCAcademicAllChairPhDPopulation Health and Public HealthL"},"Population Health and Public Health",1,"AAMC","Academic","All","Chair","PhD","2021-2022",243327,{"$f":"(((AAMC_Raw_Data_for_FY22[[#This Row],[Median]]-AAMC_Raw_Data_for_FY22[[#This Row],[25th]])/25)*5) + AAMC_Raw_Data_for_FY22[[#This Row],[25th]]","v":252661.6},{"$f":"(((AAMC_Raw_Data_for_FY22[[#This Row],[Median]]-AAMC_Raw_Data_for_FY22[[#This Row],[25th]])/25)*10) + AAMC_Raw_Data_for_FY22[[#This Row],[25th]]","v":261996.2},{"$f":"(((AAMC_Raw_Data_for_FY22[[#This Row],[Median]]-AAMC_Raw_Data_for_FY22[[#This Row],[25th]])/25)*15) + AAMC_Raw_Data_for_FY22[[#This Row],[25th]]","v":271330.8},{"$f":"(((AAMC_Raw_Data_for_FY22[[#This Row],[Median]]-AAMC_Raw_Data_for_FY22[[#This Row],[25th]])/25)*20) + AAMC_Raw_Data_for_FY22[[#This Row],[25th]]","v":280665.40000000002},290000,{"$f":"(((AAMC_Raw_Data_for_FY22[[#This Row],[75th]]-AAMC_Raw_Data_for_FY22[[#This Row],[Median]])/25)*5) + AAMC_Raw_Data_for_FY22[[#This Row],[Median]]","v":309089.40000000002},{"$f":"(((AAMC_Raw_Data_for_FY22[[#This Row],[75th]]-AAMC_Raw_Data_for_FY22[[#This Row],[Median]])/25)*10) + AAMC_Raw_Data_for_FY22[[#This Row],[Median]]","v":328178.8},{"$f":"(((AAMC_Raw_Data_for_FY22[[#This Row],[75th]]-AAMC_Raw_Data_for_FY22[[#This Row],[Median]])/25)*15) + AAMC_Raw_Data_for_FY22[[#This Row],[Median]]","v":347268.2},{"$f":"(((AAMC_Raw_Data_for_FY22[[#This Row],[75th]]-AAMC_Raw_Data_for_FY22[[#This Row],[Median]])/25)*20) + AAMC_Raw_Data_for_FY22[[#This Row],[Median]]","v":366357.6},385447,{"$f":"(((AAMC_Raw_Data_for_FY22[[#This Row],[75th]]-AAMC_Raw_Data_for_FY22[[#This Row],[Median]])/25)*30) + AAMC_Raw_Data_for_FY22[[#This Row],[Median]]","v":404536.4},{"$f":"(((AAMC_Raw_Data_for_FY22[[#This Row],[75th]]-AAMC_Raw_Data_for_FY22[[#This Row],[Median]])/25)*35) + AAMC_Raw_Data_for_FY22[[#This Row],[Median]]","v":423625.80000000005},{"$f":"(((AAMC_Raw_Data_for_FY22[[#This Row],[75th]]-AAMC_Raw_Data_for_FY22[[#This Row],[Median]])/25)*40) + AAMC_Raw_Data_for_FY22[[#This Row],[Median]]","v":442715.2}]
[{"$f":"AAMC_Raw_Data_for_FY22[[#This Row],[Source]]&AAMC_Raw_Data_for_FY22[[#This Row],[Type]]&AAMC_Raw_Data_for_FY22[[#This Row],[School Subset]]&AAMC_Raw_Data_for_FY22[[#This Row],[Rank]]&AAMC_Raw_Data_for_FY22[[#This Row],[Degree]]&AAMC_Raw_Data_for_FY22[[#This Row],[Department / Specialty]]&\"L\"","v":"AAMCAcademicAllInstructorPhDOther Basic SciencesL"},"Other Basic Sciences",5,"AAMC","Academic","All","Instructor","PhD","2021-2022",63021,{"$f":"(((AAMC_Raw_Data_for_FY22[[#This Row],[Median]]-AAMC_Raw_Data_for_FY22[[#This Row],[25th]])/25)*5) + AAMC_Raw_Data_for_FY22[[#This Row],[25th]]","v":65268},{"$f":"(((AAMC_Raw_Data_for_FY22[[#This Row],[Median]]-AAMC_Raw_Data_for_FY22[[#This Row],[25th]])/25)*10) + AAMC_Raw_Data_for_FY22[[#This Row],[25th]]","v":67515},{"$f":"(((AAMC_Raw_Data_for_FY22[[#This Row],[Median]]-AAMC_Raw_Data_for_FY22[[#This Row],[25th]])/25)*15) + AAMC_Raw_Data_for_FY22[[#This Row],[25th]]","v":69762},{"$f":"(((AAMC_Raw_Data_for_FY22[[#This Row],[Median]]-AAMC_Raw_Data_for_FY22[[#This Row],[25th]])/25)*20) + AAMC_Raw_Data_for_FY22[[#This Row],[25th]]","v":72009},74256,{"$f":"(((AAMC_Raw_Data_for_FY22[[#This Row],[75th]]-AAMC_Raw_Data_for_FY22[[#This Row],[Median]])/25)*5) + AAMC_Raw_Data_for_FY22[[#This Row],[Median]]","v":77415.399999999994},{"$f":"(((AAMC_Raw_Data_for_FY22[[#This Row],[75th]]-AAMC_Raw_Data_for_FY22[[#This Row],[Median]])/25)*10) + AAMC_Raw_Data_for_FY22[[#This Row],[Median]]","v":80574.8},{"$f":"(((AAMC_Raw_Data_for_FY22[[#This Row],[75th]]-AAMC_Raw_Data_for_FY22[[#This Row],[Median]])/25)*15) + AAMC_Raw_Data_for_FY22[[#This Row],[Median]]","v":83734.2},{"$f":"(((AAMC_Raw_Data_for_FY22[[#This Row],[75th]]-AAMC_Raw_Data_for_FY22[[#This Row],[Median]])/25)*20) + AAMC_Raw_Data_for_FY22[[#This Row],[Median]]","v":86893.6},90053,{"$f":"(((AAMC_Raw_Data_for_FY22[[#This Row],[75th]]-AAMC_Raw_Data_for_FY22[[#This Row],[Median]])/25)*30) + AAMC_Raw_Data_for_FY22[[#This Row],[Median]]","v":93212.4},{"$f":"(((AAMC_Raw_Data_for_FY22[[#This Row],[75th]]-AAMC_Raw_Data_for_FY22[[#This Row],[Median]])/25)*35) + AAMC_Raw_Data_for_FY22[[#This Row],[Median]]","v":96371.8},{"$f":"(((AAMC_Raw_Data_for_FY22[[#This Row],[75th]]-AAMC_Raw_Data_for_FY22[[#This Row],[Median]])/25)*40) + AAMC_Raw_Data_for_FY22[[#This Row],[Median]]","v":99531.199999999997}]
[{"$f":"AAMC_Raw_Data_for_FY22[[#This Row],[Source]]&AAMC_Raw_Data_for_FY22[[#This Row],[Type]]&AAMC_Raw_Data_for_FY22[[#This Row],[School Subset]]&AAMC_Raw_Data_for_FY22[[#This Row],[Rank]]&AAMC_Raw_Data_for_FY22[[#This Row],[Degree]]&AAMC_Raw_Data_for_FY22[[#This Row],[Department / Specialty]]&\"L\"","v":"AAMCAcademicAllAssistantPhDOther Basic SciencesL"},"Other Basic Sciences",4,"AAMC","Academic","All","Assistant","PhD","2021-2022",93443,{"$f":"(((AAMC_Raw_Data_for_FY22[[#This Row],[Median]]-AAMC_Raw_Data_for_FY22[[#This Row],[25th]])/25)*5) + AAMC_Raw_Data_for_FY22[[#This Row],[25th]]","v":96791},{"$f":"(((AAMC_Raw_Data_for_FY22[[#This Row],[Median]]-AAMC_Raw_Data_for_FY22[[#This Row],[25th]])/25)*10) + AAMC_Raw_Data_for_FY22[[#This Row],[25th]]","v":100139},{"$f":"(((AAMC_Raw_Data_for_FY22[[#This Row],[Median]]-AAMC_Raw_Data_for_FY22[[#This Row],[25th]])/25)*15) + AAMC_Raw_Data_for_FY22[[#This Row],[25th]]","v":103487},{"$f":"(((AAMC_Raw_Data_for_FY22[[#This Row],[Median]]-AAMC_Raw_Data_for_FY22[[#This Row],[25th]])/25)*20) + AAMC_Raw_Data_for_FY22[[#This Row],[25th]]","v":106835},110183,{"$f":"(((AAMC_Raw_Data_for_FY22[[#This Row],[75th]]-AAMC_Raw_Data_for_FY22[[#This Row],[Median]])/25)*5) + AAMC_Raw_Data_for_FY22[[#This Row],[Median]]","v":114257.60000000001},{"$f":"(((AAMC_Raw_Data_for_FY22[[#This Row],[75th]]-AAMC_Raw_Data_for_FY22[[#This Row],[Median]])/25)*10) + AAMC_Raw_Data_for_FY22[[#This Row],[Median]]","v":118332.2},{"$f":"(((AAMC_Raw_Data_for_FY22[[#This Row],[75th]]-AAMC_Raw_Data_for_FY22[[#This Row],[Median]])/25)*15) + AAMC_Raw_Data_for_FY22[[#This Row],[Median]]","v":122406.8},{"$f":"(((AAMC_Raw_Data_for_FY22[[#This Row],[75th]]-AAMC_Raw_Data_for_FY22[[#This Row],[Median]])/25)*20) + AAMC_Raw_Data_for_FY22[[#This Row],[Median]]","v":126481.4},130556,{"$f":"(((AAMC_Raw_Data_for_FY22[[#This Row],[75th]]-AAMC_Raw_Data_for_FY22[[#This Row],[Median]])/25)*30) + AAMC_Raw_Data_for_FY22[[#This Row],[Median]]","v":134630.6},{"$f":"(((AAMC_Raw_Data_for_FY22[[#This Row],[75th]]-AAMC_Raw_Data_for_FY22[[#This Row],[Median]])/25)*35) + AAMC_Raw_Data_for_FY22[[#This Row],[Median]]","v":138705.20000000001},{"$f":"(((AAMC_Raw_Data_for_FY22[[#This Row],[75th]]-AAMC_Raw_Data_for_FY22[[#This Row],[Median]])/25)*40) + AAMC_Raw_Data_for_FY22[[#This Row],[Median]]","v":142779.79999999999}]
[{"$f":"AAMC_Raw_Data_for_FY22[[#This Row],[Source]]&AAMC_Raw_Data_for_FY22[[#This Row],[Type]]&AAMC_Raw_Data_for_FY22[[#This Row],[School Subset]]&AAMC_Raw_Data_for_FY22[[#This Row],[Rank]]&AAMC_Raw_Data_for_FY22[[#This Row],[Degree]]&AAMC_Raw_Data_for_FY22[[#This Row],[Department / Specialty]]&\"L\"","v":"AAMCAcademicAllAssociatePhDOther Basic SciencesL"},"Other Basic Sciences",3,"AAMC","Academic","All","Associate","PhD","2021-2022",121517,{"$f":"(((AAMC_Raw_Data_for_FY22[[#This Row],[Median]]-AAMC_Raw_Data_for_FY22[[#This Row],[25th]])/25)*5) + AAMC_Raw_Data_for_FY22[[#This Row],[25th]]","v":125552},{"$f":"(((AAMC_Raw_Data_for_FY22[[#This Row],[Median]]-AAMC_Raw_Data_for_FY22[[#This Row],[25th]])/25)*10) + AAMC_Raw_Data_for_FY22[[#This Row],[25th]]","v":129587},{"$f":"(((AAMC_Raw_Data_for_FY22[[#This Row],[Median]]-AAMC_Raw_Data_for_FY22[[#This Row],[25th]])/25)*15) + AAMC_Raw_Data_for_FY22[[#This Row],[25th]]","v":133622},{"$f":"(((AAMC_Raw_Data_for_FY22[[#This Row],[Median]]-AAMC_Raw_Data_for_FY22[[#This Row],[25th]])/25)*20) + AAMC_Raw_Data_for_FY22[[#This Row],[25th]]","v":137657},141692,{"$f":"(((AAMC_Raw_Data_for_FY22[[#This Row],[75th]]-AAMC_Raw_Data_for_FY22[[#This Row],[Median]])/25)*5) + AAMC_Raw_Data_for_FY22[[#This Row],[Median]]","v":146939.6},{"$f":"(((AAMC_Raw_Data_for_FY22[[#This Row],[75th]]-AAMC_Raw_Data_for_FY22[[#This Row],[Median]])/25)*10) + AAMC_Raw_Data_for_FY22[[#This Row],[Median]]","v":152187.20000000001},{"$f":"(((AAMC_Raw_Data_for_FY22[[#This Row],[75th]]-AAMC_Raw_Data_for_FY22[[#This Row],[Median]])/25)*15) + AAMC_Raw_Data_for_FY22[[#This Row],[Median]]","v":157434.79999999999},{"$f":"(((AAMC_Raw_Data_for_FY22[[#This Row],[75th]]-AAMC_Raw_Data_for_FY22[[#This Row],[Median]])/25)*20) + AAMC_Raw_Data_for_FY22[[#This Row],[Median]]","v":162682.4},167930,{"$f":"(((AAMC_Raw_Data_for_FY22[[#This Row],[75th]]-AAMC_Raw_Data_for_FY22[[#This Row],[Median]])/25)*30) + AAMC_Raw_Data_for_FY22[[#This Row],[Median]]","v":173177.60000000001},{"$f":"(((AAMC_Raw_Data_for_FY22[[#This Row],[75th]]-AAMC_Raw_Data_for_FY22[[#This Row],[Median]])/25)*35) + AAMC_Raw_Data_for_FY22[[#This Row],[Median]]","v":178425.2},{"$f":"(((AAMC_Raw_Data_for_FY22[[#This Row],[75th]]-AAMC_Raw_Data_for_FY22[[#This Row],[Median]])/25)*40) + AAMC_Raw_Data_for_FY22[[#This Row],[Median]]","v":183672.8}]
[{"$f":"AAMC_Raw_Data_for_FY22[[#This Row],[Source]]&AAMC_Raw_Data_for_FY22[[#This Row],[Type]]&AAMC_Raw_Data_for_FY22[[#This Row],[School Subset]]&AAMC_Raw_Data_for_FY22[[#This Row],[Rank]]&AAMC_Raw_Data_for_FY22[[#This Row],[Degree]]&AAMC_Raw_Data_for_FY22[[#This Row],[Department / Specialty]]&\"L\"","v":"AAMCAcademicAllProfessorPhDOther Basic SciencesL"},"Other Basic Sciences",2,"AAMC","Academic","All","Professor","PhD","2021-2022",170338,{"$f":"(((AAMC_Raw_Data_for_FY22[[#This Row],[Median]]-AAMC_Raw_Data_for_FY22[[#This Row],[25th]])/25)*5) + AAMC_Raw_Data_for_FY22[[#This Row],[25th]]","v":176516},{"$f":"(((AAMC_Raw_Data_for_FY22[[#This Row],[Median]]-AAMC_Raw_Data_for_FY22[[#This Row],[25th]])/25)*10) + AAMC_Raw_Data_for_FY22[[#This Row],[25th]]","v":182694},{"$f":"(((AAMC_Raw_Data_for_FY22[[#This Row],[Median]]-AAMC_Raw_Data_for_FY22[[#This Row],[25th]])/25)*15) + AAMC_Raw_Data_for_FY22[[#This Row],[25th]]","v":188872},{"$f":"(((AAMC_Raw_Data_for_FY22[[#This Row],[Median]]-AAMC_Raw_Data_for_FY22[[#This Row],[25th]])/25)*20) + AAMC_Raw_Data_for_FY22[[#This Row],[25th]]","v":195050},201228,{"$f":"(((AAMC_Raw_Data_for_FY22[[#This Row],[75th]]-AAMC_Raw_Data_for_FY22[[#This Row],[Median]])/25)*5) + AAMC_Raw_Data_for_FY22[[#This Row],[Median]]","v":210962.2},{"$f":"(((AAMC_Raw_Data_for_FY22[[#This Row],[75th]]-AAMC_Raw_Data_for_FY22[[#This Row],[Median]])/25)*10) + AAMC_Raw_Data_for_FY22[[#This Row],[Median]]","v":220696.4},{"$f":"(((AAMC_Raw_Data_for_FY22[[#This Row],[75th]]-AAMC_Raw_Data_for_FY22[[#This Row],[Median]])/25)*15) + AAMC_Raw_Data_for_FY22[[#This Row],[Median]]","v":230430.6},{"$f":"(((AAMC_Raw_Data_for_FY22[[#This Row],[75th]]-AAMC_Raw_Data_for_FY22[[#This Row],[Median]])/25)*20) + AAMC_Raw_Data_for_FY22[[#This Row],[Median]]","v":240164.8},249899,{"$f":"(((AAMC_Raw_Data_for_FY22[[#This Row],[75th]]-AAMC_Raw_Data_for_FY22[[#This Row],[Median]])/25)*30) + AAMC_Raw_Data_for_FY22[[#This Row],[Median]]","v":259633.2},{"$f":"(((AAMC_Raw_Data_for_FY22[[#This Row],[75th]]-AAMC_Raw_Data_for_FY22[[#This Row],[Median]])/25)*35) + AAMC_Raw_Data_for_FY22[[#This Row],[Median]]","v":269367.40000000002},{"$f":"(((AAMC_Raw_Data_for_FY22[[#This Row],[75th]]-AAMC_Raw_Data_for_FY22[[#This Row],[Median]])/25)*40) + AAMC_Raw_Data_for_FY22[[#This Row],[Median]]","v":279101.59999999998}]
[{"$f":"AAMC_Raw_Data_for_FY22[[#This Row],[Source]]&AAMC_Raw_Data_for_FY22[[#This Row],[Type]]&AAMC_Raw_Data_for_FY22[[#This Row],[School Subset]]&AAMC_Raw_Data_for_FY22[[#This Row],[Rank]]&AAMC_Raw_Data_for_FY22[[#This Row],[Degree]]&AAMC_Raw_Data_for_FY22[[#This Row],[Department / Specialty]]&\"L\"","v":"AAMCAcademicAllChiefPhDOther Basic SciencesL"},"Other Basic Sciences",6,"AAMC","Academic","All","Chief","PhD","2021-2022",210431,{"$f":"(((AAMC_Raw_Data_for_FY22[[#This Row],[Median]]-AAMC_Raw_Data_for_FY22[[#This Row],[25th]])/25)*5) + AAMC_Raw_Data_for_FY22[[#This Row],[25th]]","v":214011.2},{"$f":"(((AAMC_Raw_Data_for_FY22[[#This Row],[Median]]-AAMC_Raw_Data_for_FY22[[#This Row],[25th]])/25)*10) + AAMC_Raw_Data_for_FY22[[#This Row],[25th]]","v":217591.4},{"$f":"(((AAMC_Raw_Data_for_FY22[[#This Row],[Median]]-AAMC_Raw_Data_for_FY22[[#This Row],[25th]])/25)*15) + AAMC_Raw_Data_for_FY22[[#This Row],[25th]]","v":221171.6},{"$f":"(((AAMC_Raw_Data_for_FY22[[#This Row],[Median]]-AAMC_Raw_Data_for_FY22[[#This Row],[25th]])/25)*20) + AAMC_Raw_Data_for_FY22[[#This Row],[25th]]","v":224751.8},228332,{"$f":"(((AAMC_Raw_Data_for_FY22[[#This Row],[75th]]-AAMC_Raw_Data_for_FY22[[#This Row],[Median]])/25)*5) + AAMC_Raw_Data_for_FY22[[#This Row],[Median]]","v":236491.8},{"$f":"(((AAMC_Raw_Data_for_FY22[[#This Row],[75th]]-AAMC_Raw_Data_for_FY22[[#This Row],[Median]])/25)*10) + AAMC_Raw_Data_for_FY22[[#This Row],[Median]]","v":244651.6},{"$f":"(((AAMC_Raw_Data_for_FY22[[#This Row],[75th]]-AAMC_Raw_Data_for_FY22[[#This Row],[Median]])/25)*15) + AAMC_Raw_Data_for_FY22[[#This Row],[Median]]","v":252811.4},{"$f":"(((AAMC_Raw_Data_for_FY22[[#This Row],[75th]]-AAMC_Raw_Data_for_FY22[[#This Row],[Median]])/25)*20) + AAMC_Raw_Data_for_FY22[[#This Row],[Median]]","v":260971.2},269131,{"$f":"(((AAMC_Raw_Data_for_FY22[[#This Row],[75th]]-AAMC_Raw_Data_for_FY22[[#This Row],[Median]])/25)*30) + AAMC_Raw_Data_for_FY22[[#This Row],[Median]]","v":277290.8},{"$f":"(((AAMC_Raw_Data_for_FY22[[#This Row],[75th]]-AAMC_Raw_Data_for_FY22[[#This Row],[Median]])/25)*35) + AAMC_Raw_Data_for_FY22[[#This Row],[Median]]","v":285450.59999999998},{"$f":"(((AAMC_Raw_Data_for_FY22[[#This Row],[75th]]-AAMC_Raw_Data_for_FY22[[#This Row],[Median]])/25)*40) + AAMC_Raw_Data_for_FY22[[#This Row],[Median]]","v":293610.40000000002}]
[{"$f":"AAMC_Raw_Data_for_FY22[[#This Row],[Source]]&AAMC_Raw_Data_for_FY22[[#This Row],[Type]]&AAMC_Raw_Data_for_FY22[[#This Row],[School Subset]]&AAMC_Raw_Data_for_FY22[[#This Row],[Rank]]&AAMC_Raw_Data_for_FY22[[#This Row],[Degree]]&AAMC_Raw_Data_for_FY22[[#This Row],[Department / Specialty]]&\"L\"","v":"AAMCAcademicAllChairPhDOther Basic SciencesL"},"Other Basic Sciences",1,"AAMC","Academic","All","Chair","PhD","2021-2022",256626,{"$f":"(((AAMC_Raw_Data_for_FY22[[#This Row],[Median]]-AAMC_Raw_Data_for_FY22[[#This Row],[25th]])/25)*5) + AAMC_Raw_Data_for_FY22[[#This Row],[25th]]","v":271028.2},{"$f":"(((AAMC_Raw_Data_for_FY22[[#This Row],[Median]]-AAMC_Raw_Data_for_FY22[[#This Row],[25th]])/25)*10) + AAMC_Raw_Data_for_FY22[[#This Row],[25th]]","v":285430.40000000002},{"$f":"(((AAMC_Raw_Data_for_FY22[[#This Row],[Median]]-AAMC_Raw_Data_for_FY22[[#This Row],[25th]])/25)*15) + AAMC_Raw_Data_for_FY22[[#This Row],[25th]]","v":299832.59999999998},{"$f":"(((AAMC_Raw_Data_for_FY22[[#This Row],[Median]]-AAMC_Raw_Data_for_FY22[[#This Row],[25th]])/25)*20) + AAMC_Raw_Data_for_FY22[[#This Row],[25th]]","v":314234.8},328637,{"$f":"(((AAMC_Raw_Data_for_FY22[[#This Row],[75th]]-AAMC_Raw_Data_for_FY22[[#This Row],[Median]])/25)*5) + AAMC_Raw_Data_for_FY22[[#This Row],[Median]]","v":342269.6},{"$f":"(((AAMC_Raw_Data_for_FY22[[#This Row],[75th]]-AAMC_Raw_Data_for_FY22[[#This Row],[Median]])/25)*10) + AAMC_Raw_Data_for_FY22[[#This Row],[Median]]","v":355902.2},{"$f":"(((AAMC_Raw_Data_for_FY22[[#This Row],[75th]]-AAMC_Raw_Data_for_FY22[[#This Row],[Median]])/25)*15) + AAMC_Raw_Data_for_FY22[[#This Row],[Median]]","v":369534.8},{"$f":"(((AAMC_Raw_Data_for_FY22[[#This Row],[75th]]-AAMC_Raw_Data_for_FY22[[#This Row],[Median]])/25)*20) + AAMC_Raw_Data_for_FY22[[#This Row],[Median]]","v":383167.4},396800,{"$f":"(((AAMC_Raw_Data_for_FY22[[#This Row],[75th]]-AAMC_Raw_Data_for_FY22[[#This Row],[Median]])/25)*30) + AAMC_Raw_Data_for_FY22[[#This Row],[Median]]","v":410432.6},{"$f":"(((AAMC_Raw_Data_for_FY22[[#This Row],[75th]]-AAMC_Raw_Data_for_FY22[[#This Row],[Median]])/25)*35) + AAMC_Raw_Data_for_FY22[[#This Row],[Median]]","v":424065.2},{"$f":"(((AAMC_Raw_Data_for_FY22[[#This Row],[75th]]-AAMC_Raw_Data_for_FY22[[#This Row],[Median]])/25)*40) + AAMC_Raw_Data_for_FY22[[#This Row],[Median]]","v":437697.8}]
[{"$f":"AAMC_Raw_Data_for_FY22[[#This Row],[Source]]&AAMC_Raw_Data_for_FY22[[#This Row],[Type]]&AAMC_Raw_Data_for_FY22[[#This Row],[School Subset]]&AAMC_Raw_Data_for_FY22[[#This Row],[Rank]]&AAMC_Raw_Data_for_FY22[[#This Row],[Degree]]&AAMC_Raw_Data_for_FY22[[#This Row],[Department / Specialty]]&\"L\"","v":"AAMCAcademicPrivateInstructorPhDBasic Sciences TotalL"},"Basic Sciences Total",5,"AAMC","Academic","Private","Instructor","PhD","2021-2022",65735,{"$f":"(((AAMC_Raw_Data_for_FY22[[#This Row],[Median]]-AAMC_Raw_Data_for_FY22[[#This Row],[25th]])/25)*5) + AAMC_Raw_Data_for_FY22[[#This Row],[25th]]","v":67512},{"$f":"(((AAMC_Raw_Data_for_FY22[[#This Row],[Median]]-AAMC_Raw_Data_for_FY22[[#This Row],[25th]])/25)*10) + AAMC_Raw_Data_for_FY22[[#This Row],[25th]]","v":69289},{"$f":"(((AAMC_Raw_Data_for_FY22[[#This Row],[Median]]-AAMC_Raw_Data_for_FY22[[#This Row],[25th]])/25)*15) + AAMC_Raw_Data_for_FY22[[#This Row],[25th]]","v":71066},{"$f":"(((AAMC_Raw_Data_for_FY22[[#This Row],[Median]]-AAMC_Raw_Data_for_FY22[[#This Row],[25th]])/25)*20) + AAMC_Raw_Data_for_FY22[[#This Row],[25th]]","v":72843},74620,{"$f":"(((AAMC_Raw_Data_for_FY22[[#This Row],[75th]]-AAMC_Raw_Data_for_FY22[[#This Row],[Median]])/25)*5) + AAMC_Raw_Data_for_FY22[[#This Row],[Median]]","v":77123.399999999994},{"$f":"(((AAMC_Raw_Data_for_FY22[[#This Row],[75th]]-AAMC_Raw_Data_for_FY22[[#This Row],[Median]])/25)*10) + AAMC_Raw_Data_for_FY22[[#This Row],[Median]]","v":79626.8},{"$f":"(((AAMC_Raw_Data_for_FY22[[#This Row],[75th]]-AAMC_Raw_Data_for_FY22[[#This Row],[Median]])/25)*15) + AAMC_Raw_Data_for_FY22[[#This Row],[Median]]","v":82130.2},{"$f":"(((AAMC_Raw_Data_for_FY22[[#This Row],[75th]]-AAMC_Raw_Data_for_FY22[[#This Row],[Median]])/25)*20) + AAMC_Raw_Data_for_FY22[[#This Row],[Median]]","v":84633.600000000006},87137,{"$f":"(((AAMC_Raw_Data_for_FY22[[#This Row],[75th]]-AAMC_Raw_Data_for_FY22[[#This Row],[Median]])/25)*30) + AAMC_Raw_Data_for_FY22[[#This Row],[Median]]","v":89640.4},{"$f":"(((AAMC_Raw_Data_for_FY22[[#This Row],[75th]]-AAMC_Raw_Data_for_FY22[[#This Row],[Median]])/25)*35) + AAMC_Raw_Data_for_FY22[[#This Row],[Median]]","v":92143.8},{"$f":"(((AAMC_Raw_Data_for_FY22[[#This Row],[75th]]-AAMC_Raw_Data_for_FY22[[#This Row],[Median]])/25)*40) + AAMC_Raw_Data_for_FY22[[#This Row],[Median]]","v":94647.2}]
[{"$f":"AAMC_Raw_Data_for_FY22[[#This Row],[Source]]&AAMC_Raw_Data_for_FY22[[#This Row],[Type]]&AAMC_Raw_Data_for_FY22[[#This Row],[School Subset]]&AAMC_Raw_Data_for_FY22[[#This Row],[Rank]]&AAMC_Raw_Data_for_FY22[[#This Row],[Degree]]&AAMC_Raw_Data_for_FY22[[#This Row],[Department / Specialty]]&\"L\"","v":"AAMCAcademicPrivateAssistantPhDBasic Sciences TotalL"},"Basic Sciences Total",4,"AAMC","Academic","Private","Assistant","PhD","2021-2022",96443,{"$f":"(((AAMC_Raw_Data_for_FY22[[#This Row],[Median]]-AAMC_Raw_Data_for_FY22[[#This Row],[25th]])/25)*5) + AAMC_Raw_Data_for_FY22[[#This Row],[25th]]","v":100754.4},{"$f":"(((AAMC_Raw_Data_for_FY22[[#This Row],[Median]]-AAMC_Raw_Data_for_FY22[[#This Row],[25th]])/25)*10) + AAMC_Raw_Data_for_FY22[[#This Row],[25th]]","v":105065.8},{"$f":"(((AAMC_Raw_Data_for_FY22[[#This Row],[Median]]-AAMC_Raw_Data_for_FY22[[#This Row],[25th]])/25)*15) + AAMC_Raw_Data_for_FY22[[#This Row],[25th]]","v":109377.2},{"$f":"(((AAMC_Raw_Data_for_FY22[[#This Row],[Median]]-AAMC_Raw_Data_for_FY22[[#This Row],[25th]])/25)*20) + AAMC_Raw_Data_for_FY22[[#This Row],[25th]]","v":113688.6},118000,{"$f":"(((AAMC_Raw_Data_for_FY22[[#This Row],[75th]]-AAMC_Raw_Data_for_FY22[[#This Row],[Median]])/25)*5) + AAMC_Raw_Data_for_FY22[[#This Row],[Median]]","v":121421.6},{"$f":"(((AAMC_Raw_Data_for_FY22[[#This Row],[75th]]-AAMC_Raw_Data_for_FY22[[#This Row],[Median]])/25)*10) + AAMC_Raw_Data_for_FY22[[#This Row],[Median]]","v":124843.2},{"$f":"(((AAMC_Raw_Data_for_FY22[[#This Row],[75th]]-AAMC_Raw_Data_for_FY22[[#This Row],[Median]])/25)*15) + AAMC_Raw_Data_for_FY22[[#This Row],[Median]]","v":128264.8},{"$f":"(((AAMC_Raw_Data_for_FY22[[#This Row],[75th]]-AAMC_Raw_Data_for_FY22[[#This Row],[Median]])/25)*20) + AAMC_Raw_Data_for_FY22[[#This Row],[Median]]","v":131686.39999999999},135108,{"$f":"(((AAMC_Raw_Data_for_FY22[[#This Row],[75th]]-AAMC_Raw_Data_for_FY22[[#This Row],[Median]])/25)*30) + AAMC_Raw_Data_for_FY22[[#This Row],[Median]]","v":138529.60000000001},{"$f":"(((AAMC_Raw_Data_for_FY22[[#This Row],[75th]]-AAMC_Raw_Data_for_FY22[[#This Row],[Median]])/25)*35) + AAMC_Raw_Data_for_FY22[[#This Row],[Median]]","v":141951.20000000001},{"$f":"(((AAMC_Raw_Data_for_FY22[[#This Row],[75th]]-AAMC_Raw_Data_for_FY22[[#This Row],[Median]])/25)*40) + AAMC_Raw_Data_for_FY22[[#This Row],[Median]]","v":145372.79999999999}]
[{"$f":"AAMC_Raw_Data_for_FY22[[#This Row],[Source]]&AAMC_Raw_Data_for_FY22[[#This Row],[Type]]&AAMC_Raw_Data_for_FY22[[#This Row],[School Subset]]&AAMC_Raw_Data_for_FY22[[#This Row],[Rank]]&AAMC_Raw_Data_for_FY22[[#This Row],[Degree]]&AAMC_Raw_Data_for_FY22[[#This Row],[Department / Specialty]]&\"L\"","v":"AAMCAcademicPrivateAssociatePhDBasic Sciences TotalL"},"Basic Sciences Total",3,"AAMC","Academic","Private","Associate","PhD","2021-2022",128000,{"$f":"(((AAMC_Raw_Data_for_FY22[[#This Row],[Median]]-AAMC_Raw_Data_for_FY22[[#This Row],[25th]])/25)*5) + AAMC_Raw_Data_for_FY22[[#This Row],[25th]]","v":132044.79999999999},{"$f":"(((AAMC_Raw_Data_for_FY22[[#This Row],[Median]]-AAMC_Raw_Data_for_FY22[[#This Row],[25th]])/25)*10) + AAMC_Raw_Data_for_FY22[[#This Row],[25th]]","v":136089.60000000001},{"$f":"(((AAMC_Raw_Data_for_FY22[[#This Row],[Median]]-AAMC_Raw_Data_for_FY22[[#This Row],[25th]])/25)*15) + AAMC_Raw_Data_for_FY22[[#This Row],[25th]]","v":140134.39999999999},{"$f":"(((AAMC_Raw_Data_for_FY22[[#This Row],[Median]]-AAMC_Raw_Data_for_FY22[[#This Row],[25th]])/25)*20) + AAMC_Raw_Data_for_FY22[[#This Row],[25th]]","v":144179.20000000001},148224,{"$f":"(((AAMC_Raw_Data_for_FY22[[#This Row],[75th]]-AAMC_Raw_Data_for_FY22[[#This Row],[Median]])/25)*5) + AAMC_Raw_Data_for_FY22[[#This Row],[Median]]","v":153452.6},{"$f":"(((AAMC_Raw_Data_for_FY22[[#This Row],[75th]]-AAMC_Raw_Data_for_FY22[[#This Row],[Median]])/25)*10) + AAMC_Raw_Data_for_FY22[[#This Row],[Median]]","v":158681.20000000001},{"$f":"(((AAMC_Raw_Data_for_FY22[[#This Row],[75th]]-AAMC_Raw_Data_for_FY22[[#This Row],[Median]])/25)*15) + AAMC_Raw_Data_for_FY22[[#This Row],[Median]]","v":163909.79999999999},{"$f":"(((AAMC_Raw_Data_for_FY22[[#This Row],[75th]]-AAMC_Raw_Data_for_FY22[[#This Row],[Median]])/25)*20) + AAMC_Raw_Data_for_FY22[[#This Row],[Median]]","v":169138.4},174367,{"$f":"(((AAMC_Raw_Data_for_FY22[[#This Row],[75th]]-AAMC_Raw_Data_for_FY22[[#This Row],[Median]])/25)*30) + AAMC_Raw_Data_for_FY22[[#This Row],[Median]]","v":179595.6},{"$f":"(((AAMC_Raw_Data_for_FY22[[#This Row],[75th]]-AAMC_Raw_Data_for_FY22[[#This Row],[Median]])/25)*35) + AAMC_Raw_Data_for_FY22[[#This Row],[Median]]","v":184824.2},{"$f":"(((AAMC_Raw_Data_for_FY22[[#This Row],[75th]]-AAMC_Raw_Data_for_FY22[[#This Row],[Median]])/25)*40) + AAMC_Raw_Data_for_FY22[[#This Row],[Median]]","v":190052.8}]
[{"$f":"AAMC_Raw_Data_for_FY22[[#This Row],[Source]]&AAMC_Raw_Data_for_FY22[[#This Row],[Type]]&AAMC_Raw_Data_for_FY22[[#This Row],[School Subset]]&AAMC_Raw_Data_for_FY22[[#This Row],[Rank]]&AAMC_Raw_Data_for_FY22[[#This Row],[Degree]]&AAMC_Raw_Data_for_FY22[[#This Row],[Department / Specialty]]&\"L\"","v":"AAMCAcademicPrivateProfessorPhDBasic Sciences TotalL"},"Basic Sciences Total",2,"AAMC","Academic","Private","Professor","PhD","2021-2022",180369,{"$f":"(((AAMC_Raw_Data_for_FY22[[#This Row],[Median]]-AAMC_Raw_Data_for_FY22[[#This Row],[25th]])/25)*5) + AAMC_Raw_Data_for_FY22[[#This Row],[25th]]","v":187767.8},{"$f":"(((AAMC_Raw_Data_for_FY22[[#This Row],[Median]]-AAMC_Raw_Data_for_FY22[[#This Row],[25th]])/25)*10) + AAMC_Raw_Data_for_FY22[[#This Row],[25th]]","v":195166.6},{"$f":"(((AAMC_Raw_Data_for_FY22[[#This Row],[Median]]-AAMC_Raw_Data_for_FY22[[#This Row],[25th]])/25)*15) + AAMC_Raw_Data_for_FY22[[#This Row],[25th]]","v":202565.4},{"$f":"(((AAMC_Raw_Data_for_FY22[[#This Row],[Median]]-AAMC_Raw_Data_for_FY22[[#This Row],[25th]])/25)*20) + AAMC_Raw_Data_for_FY22[[#This Row],[25th]]","v":209964.2},217363,{"$f":"(((AAMC_Raw_Data_for_FY22[[#This Row],[75th]]-AAMC_Raw_Data_for_FY22[[#This Row],[Median]])/25)*5) + AAMC_Raw_Data_for_FY22[[#This Row],[Median]]","v":226810.2},{"$f":"(((AAMC_Raw_Data_for_FY22[[#This Row],[75th]]-AAMC_Raw_Data_for_FY22[[#This Row],[Median]])/25)*10) + AAMC_Raw_Data_for_FY22[[#This Row],[Median]]","v":236257.4},{"$f":"(((AAMC_Raw_Data_for_FY22[[#This Row],[75th]]-AAMC_Raw_Data_for_FY22[[#This Row],[Median]])/25)*15) + AAMC_Raw_Data_for_FY22[[#This Row],[Median]]","v":245704.6},{"$f":"(((AAMC_Raw_Data_for_FY22[[#This Row],[75th]]-AAMC_Raw_Data_for_FY22[[#This Row],[Median]])/25)*20) + AAMC_Raw_Data_for_FY22[[#This Row],[Median]]","v":255151.8},264599,{"$f":"(((AAMC_Raw_Data_for_FY22[[#This Row],[75th]]-AAMC_Raw_Data_for_FY22[[#This Row],[Median]])/25)*30) + AAMC_Raw_Data_for_FY22[[#This Row],[Median]]","v":274046.2},{"$f":"(((AAMC_Raw_Data_for_FY22[[#This Row],[75th]]-AAMC_Raw_Data_for_FY22[[#This Row],[Median]])/25)*35) + AAMC_Raw_Data_for_FY22[[#This Row],[Median]]","v":283493.40000000002},{"$f":"(((AAMC_Raw_Data_for_FY22[[#This Row],[75th]]-AAMC_Raw_Data_for_FY22[[#This Row],[Median]])/25)*40) + AAMC_Raw_Data_for_FY22[[#This Row],[Median]]","v":292940.59999999998}]
[{"$f":"AAMC_Raw_Data_for_FY22[[#This Row],[Source]]&AAMC_Raw_Data_for_FY22[[#This Row],[Type]]&AAMC_Raw_Data_for_FY22[[#This Row],[School Subset]]&AAMC_Raw_Data_for_FY22[[#This Row],[Rank]]&AAMC_Raw_Data_for_FY22[[#This Row],[Degree]]&AAMC_Raw_Data_for_FY22[[#This Row],[Department / Specialty]]&\"L\"","v":"AAMCAcademicPrivateChiefPhDBasic Sciences TotalL"},"Basic Sciences Total",6,"AAMC","Academic","Private","Chief","PhD","2021-2022",207689,{"$f":"(((AAMC_Raw_Data_for_FY22[[#This Row],[Median]]-AAMC_Raw_Data_for_FY22[[#This Row],[25th]])/25)*5) + AAMC_Raw_Data_for_FY22[[#This Row],[25th]]","v":215979.2},{"$f":"(((AAMC_Raw_Data_for_FY22[[#This Row],[Median]]-AAMC_Raw_Data_for_FY22[[#This Row],[25th]])/25)*10) + AAMC_Raw_Data_for_FY22[[#This Row],[25th]]","v":224269.4},{"$f":"(((AAMC_Raw_Data_for_FY22[[#This Row],[Median]]-AAMC_Raw_Data_for_FY22[[#This Row],[25th]])/25)*15) + AAMC_Raw_Data_for_FY22[[#This Row],[25th]]","v":232559.6},{"$f":"(((AAMC_Raw_Data_for_FY22[[#This Row],[Median]]-AAMC_Raw_Data_for_FY22[[#This Row],[25th]])/25)*20) + AAMC_Raw_Data_for_FY22[[#This Row],[25th]]","v":240849.8},249140,{"$f":"(((AAMC_Raw_Data_for_FY22[[#This Row],[75th]]-AAMC_Raw_Data_for_FY22[[#This Row],[Median]])/25)*5) + AAMC_Raw_Data_for_FY22[[#This Row],[Median]]","v":266989.8},{"$f":"(((AAMC_Raw_Data_for_FY22[[#This Row],[75th]]-AAMC_Raw_Data_for_FY22[[#This Row],[Median]])/25)*10) + AAMC_Raw_Data_for_FY22[[#This Row],[Median]]","v":284839.59999999998},{"$f":"(((AAMC_Raw_Data_for_FY22[[#This Row],[75th]]-AAMC_Raw_Data_for_FY22[[#This Row],[Median]])/25)*15) + AAMC_Raw_Data_for_FY22[[#This Row],[Median]]","v":302689.40000000002},{"$f":"(((AAMC_Raw_Data_for_FY22[[#This Row],[75th]]-AAMC_Raw_Data_for_FY22[[#This Row],[Median]])/25)*20) + AAMC_Raw_Data_for_FY22[[#This Row],[Median]]","v":320539.2},338389,{"$f":"(((AAMC_Raw_Data_for_FY22[[#This Row],[75th]]-AAMC_Raw_Data_for_FY22[[#This Row],[Median]])/25)*30) + AAMC_Raw_Data_for_FY22[[#This Row],[Median]]","v":356238.8},{"$f":"(((AAMC_Raw_Data_for_FY22[[#This Row],[75th]]-AAMC_Raw_Data_for_FY22[[#This Row],[Median]])/25)*35) + AAMC_Raw_Data_for_FY22[[#This Row],[Median]]","v":374088.6},{"$f":"(((AAMC_Raw_Data_for_FY22[[#This Row],[75th]]-AAMC_Raw_Data_for_FY22[[#This Row],[Median]])/25)*40) + AAMC_Raw_Data_for_FY22[[#This Row],[Median]]","v":391938.4}]
[{"$f":"AAMC_Raw_Data_for_FY22[[#This Row],[Source]]&AAMC_Raw_Data_for_FY22[[#This Row],[Type]]&AAMC_Raw_Data_for_FY22[[#This Row],[School Subset]]&AAMC_Raw_Data_for_FY22[[#This Row],[Rank]]&AAMC_Raw_Data_for_FY22[[#This Row],[Degree]]&AAMC_Raw_Data_for_FY22[[#This Row],[Department / Specialty]]&\"L\"","v":"AAMCAcademicPrivateChairPhDBasic Sciences TotalL"},"Basic Sciences Total",1,"AAMC","Academic","Private","Chair","PhD","2021-2022",275838,{"$f":"(((AAMC_Raw_Data_for_FY22[[#This Row],[Median]]-AAMC_Raw_Data_for_FY22[[#This Row],[25th]])/25)*5) + AAMC_Raw_Data_for_FY22[[#This Row],[25th]]","v":291882.2},{"$f":"(((AAMC_Raw_Data_for_FY22[[#This Row],[Median]]-AAMC_Raw_Data_for_FY22[[#This Row],[25th]])/25)*10) + AAMC_Raw_Data_for_FY22[[#This Row],[25th]]","v":307926.40000000002},{"$f":"(((AAMC_Raw_Data_for_FY22[[#This Row],[Median]]-AAMC_Raw_Data_for_FY22[[#This Row],[25th]])/25)*15) + AAMC_Raw_Data_for_FY22[[#This Row],[25th]]","v":323970.59999999998},{"$f":"(((AAMC_Raw_Data_for_FY22[[#This Row],[Median]]-AAMC_Raw_Data_for_FY22[[#This Row],[25th]])/25)*20) + AAMC_Raw_Data_for_FY22[[#This Row],[25th]]","v":340014.8},356059,{"$f":"(((AAMC_Raw_Data_for_FY22[[#This Row],[75th]]-AAMC_Raw_Data_for_FY22[[#This Row],[Median]])/25)*5) + AAMC_Raw_Data_for_FY22[[#This Row],[Median]]","v":372875.8},{"$f":"(((AAMC_Raw_Data_for_FY22[[#This Row],[75th]]-AAMC_Raw_Data_for_FY22[[#This Row],[Median]])/25)*10) + AAMC_Raw_Data_for_FY22[[#This Row],[Median]]","v":389692.6},{"$f":"(((AAMC_Raw_Data_for_FY22[[#This Row],[75th]]-AAMC_Raw_Data_for_FY22[[#This Row],[Median]])/25)*15) + AAMC_Raw_Data_for_FY22[[#This Row],[Median]]","v":406509.4},{"$f":"(((AAMC_Raw_Data_for_FY22[[#This Row],[75th]]-AAMC_Raw_Data_for_FY22[[#This Row],[Median]])/25)*20) + AAMC_Raw_Data_for_FY22[[#This Row],[Median]]","v":423326.2},440143,{"$f":"(((AAMC_Raw_Data_for_FY22[[#This Row],[75th]]-AAMC_Raw_Data_for_FY22[[#This Row],[Median]])/25)*30) + AAMC_Raw_Data_for_FY22[[#This Row],[Median]]","v":456959.8},{"$f":"(((AAMC_Raw_Data_for_FY22[[#This Row],[75th]]-AAMC_Raw_Data_for_FY22[[#This Row],[Median]])/25)*35) + AAMC_Raw_Data_for_FY22[[#This Row],[Median]]","v":473776.6},{"$f":"(((AAMC_Raw_Data_for_FY22[[#This Row],[75th]]-AAMC_Raw_Data_for_FY22[[#This Row],[Median]])/25)*40) + AAMC_Raw_Data_for_FY22[[#This Row],[Median]]","v":490593.4}]
[{"$f":"AAMC_Raw_Data_for_FY22[[#This Row],[Source]]&AAMC_Raw_Data_for_FY22[[#This Row],[Type]]&AAMC_Raw_Data_for_FY22[[#This Row],[School Subset]]&AAMC_Raw_Data_for_FY22[[#This Row],[Rank]]&AAMC_Raw_Data_for_FY22[[#This Row],[Degree]]&AAMC_Raw_Data_for_FY22[[#This Row],[Department / Specialty]]&\"L\"","v":"AAMCAcademicPrivateInstructorPhDAnatomyL"},"Anatomy",5,"AAMC","Academic","Private","Instructor","PhD","2021-2022",null,{"$f":"(((AAMC_Raw_Data_for_FY22[[#This Row],[Median]]-AAMC_Raw_Data_for_FY22[[#This Row],[25th]])/25)*5) + AAMC_Raw_Data_for_FY22[[#This Row],[25th]]","v":0},{"$f":"(((AAMC_Raw_Data_for_FY22[[#This Row],[Median]]-AAMC_Raw_Data_for_FY22[[#This Row],[25th]])/25)*10) + AAMC_Raw_Data_for_FY22[[#This Row],[25th]]","v":0},{"$f":"(((AAMC_Raw_Data_for_FY22[[#This Row],[Median]]-AAMC_Raw_Data_for_FY22[[#This Row],[25th]])/25)*15) + AAMC_Raw_Data_for_FY22[[#This Row],[25th]]","v":0},{"$f":"(((AAMC_Raw_Data_for_FY22[[#This Row],[Median]]-AAMC_Raw_Data_for_FY22[[#This Row],[25th]])/25)*20) + AAMC_Raw_Data_for_FY22[[#This Row],[25th]]","v":0},null,{"$f":"(((AAMC_Raw_Data_for_FY22[[#This Row],[75th]]-AAMC_Raw_Data_for_FY22[[#This Row],[Median]])/25)*5) + AAMC_Raw_Data_for_FY22[[#This Row],[Median]]","v":0},{"$f":"(((AAMC_Raw_Data_for_FY22[[#This Row],[75th]]-AAMC_Raw_Data_for_FY22[[#This Row],[Median]])/25)*10) + AAMC_Raw_Data_for_FY22[[#This Row],[Median]]","v":0},{"$f":"(((AAMC_Raw_Data_for_FY22[[#This Row],[75th]]-AAMC_Raw_Data_for_FY22[[#This Row],[Median]])/25)*15) + AAMC_Raw_Data_for_FY22[[#This Row],[Median]]","v":0},{"$f":"(((AAMC_Raw_Data_for_FY22[[#This Row],[75th]]-AAMC_Raw_Data_for_FY22[[#This Row],[Median]])/25)*20) + AAMC_Raw_Data_for_FY22[[#This Row],[Median]]","v":0},null,{"$f":"(((AAMC_Raw_Data_for_FY22[[#This Row],[75th]]-AAMC_Raw_Data_for_FY22[[#This Row],[Median]])/25)*30) + AAMC_Raw_Data_for_FY22[[#This Row],[Median]]","v":0},{"$f":"(((AAMC_Raw_Data_for_FY22[[#This Row],[75th]]-AAMC_Raw_Data_for_FY22[[#This Row],[Median]])/25)*35) + AAMC_Raw_Data_for_FY22[[#This Row],[Median]]","v":0},{"$f":"(((AAMC_Raw_Data_for_FY22[[#This Row],[75th]]-AAMC_Raw_Data_for_FY22[[#This Row],[Median]])/25)*40) + AAMC_Raw_Data_for_FY22[[#This Row],[Median]]","v":0}]
[{"$f":"AAMC_Raw_Data_for_FY22[[#This Row],[Source]]&AAMC_Raw_Data_for_FY22[[#This Row],[Type]]&AAMC_Raw_Data_for_FY22[[#This Row],[School Subset]]&AAMC_Raw_Data_for_FY22[[#This Row],[Rank]]&AAMC_Raw_Data_for_FY22[[#This Row],[Degree]]&AAMC_Raw_Data_for_FY22[[#This Row],[Department / Specialty]]&\"L\"","v":"AAMCAcademicPrivateAssistantPhDAnatomyL"},"Anatomy",4,"AAMC","Academic","Private","Assistant","PhD","2021-2022",89835,{"$f":"(((AAMC_Raw_Data_for_FY22[[#This Row],[Median]]-AAMC_Raw_Data_for_FY22[[#This Row],[25th]])/25)*5) + AAMC_Raw_Data_for_FY22[[#This Row],[25th]]","v":91962},{"$f":"(((AAMC_Raw_Data_for_FY22[[#This Row],[Median]]-AAMC_Raw_Data_for_FY22[[#This Row],[25th]])/25)*10) + AAMC_Raw_Data_for_FY22[[#This Row],[25th]]","v":94089},{"$f":"(((AAMC_Raw_Data_for_FY22[[#This Row],[Median]]-AAMC_Raw_Data_for_FY22[[#This Row],[25th]])/25)*15) + AAMC_Raw_Data_for_FY22[[#This Row],[25th]]","v":96216},{"$f":"(((AAMC_Raw_Data_for_FY22[[#This Row],[Median]]-AAMC_Raw_Data_for_FY22[[#This Row],[25th]])/25)*20) + AAMC_Raw_Data_for_FY22[[#This Row],[25th]]","v":98343},100470,{"$f":"(((AAMC_Raw_Data_for_FY22[[#This Row],[75th]]-AAMC_Raw_Data_for_FY22[[#This Row],[Median]])/25)*5) + AAMC_Raw_Data_for_FY22[[#This Row],[Median]]","v":103726},{"$f":"(((AAMC_Raw_Data_for_FY22[[#This Row],[75th]]-AAMC_Raw_Data_for_FY22[[#This Row],[Median]])/25)*10) + AAMC_Raw_Data_for_FY22[[#This Row],[Median]]","v":106982},{"$f":"(((AAMC_Raw_Data_for_FY22[[#This Row],[75th]]-AAMC_Raw_Data_for_FY22[[#This Row],[Median]])/25)*15) + AAMC_Raw_Data_for_FY22[[#This Row],[Median]]","v":110238},{"$f":"(((AAMC_Raw_Data_for_FY22[[#This Row],[75th]]-AAMC_Raw_Data_for_FY22[[#This Row],[Median]])/25)*20) + AAMC_Raw_Data_for_FY22[[#This Row],[Median]]","v":113494},116750,{"$f":"(((AAMC_Raw_Data_for_FY22[[#This Row],[75th]]-AAMC_Raw_Data_for_FY22[[#This Row],[Median]])/25)*30) + AAMC_Raw_Data_for_FY22[[#This Row],[Median]]","v":120006},{"$f":"(((AAMC_Raw_Data_for_FY22[[#This Row],[75th]]-AAMC_Raw_Data_for_FY22[[#This Row],[Median]])/25)*35) + AAMC_Raw_Data_for_FY22[[#This Row],[Median]]","v":123262},{"$f":"(((AAMC_Raw_Data_for_FY22[[#This Row],[75th]]-AAMC_Raw_Data_for_FY22[[#This Row],[Median]])/25)*40) + AAMC_Raw_Data_for_FY22[[#This Row],[Median]]","v":126518}]
[{"$f":"AAMC_Raw_Data_for_FY22[[#This Row],[Source]]&AAMC_Raw_Data_for_FY22[[#This Row],[Type]]&AAMC_Raw_Data_for_FY22[[#This Row],[School Subset]]&AAMC_Raw_Data_for_FY22[[#This Row],[Rank]]&AAMC_Raw_Data_for_FY22[[#This Row],[Degree]]&AAMC_Raw_Data_for_FY22[[#This Row],[Department / Specialty]]&\"L\"","v":"AAMCAcademicPrivateAssociatePhDAnatomyL"},"Anatomy",3,"AAMC","Academic","Private","Associate","PhD","2021-2022",117490,{"$f":"(((AAMC_Raw_Data_for_FY22[[#This Row],[Median]]-AAMC_Raw_Data_for_FY22[[#This Row],[25th]])/25)*5) + AAMC_Raw_Data_for_FY22[[#This Row],[25th]]","v":120468.6},{"$f":"(((AAMC_Raw_Data_for_FY22[[#This Row],[Median]]-AAMC_Raw_Data_for_FY22[[#This Row],[25th]])/25)*10) + AAMC_Raw_Data_for_FY22[[#This Row],[25th]]","v":123447.2},{"$f":"(((AAMC_Raw_Data_for_FY22[[#This Row],[Median]]-AAMC_Raw_Data_for_FY22[[#This Row],[25th]])/25)*15) + AAMC_Raw_Data_for_FY22[[#This Row],[25th]]","v":126425.8},{"$f":"(((AAMC_Raw_Data_for_FY22[[#This Row],[Median]]-AAMC_Raw_Data_for_FY22[[#This Row],[25th]])/25)*20) + AAMC_Raw_Data_for_FY22[[#This Row],[25th]]","v":129404.4},132383,{"$f":"(((AAMC_Raw_Data_for_FY22[[#This Row],[75th]]-AAMC_Raw_Data_for_FY22[[#This Row],[Median]])/25)*5) + AAMC_Raw_Data_for_FY22[[#This Row],[Median]]","v":135068.20000000001},{"$f":"(((AAMC_Raw_Data_for_FY22[[#This Row],[75th]]-AAMC_Raw_Data_for_FY22[[#This Row],[Median]])/25)*10) + AAMC_Raw_Data_for_FY22[[#This Row],[Median]]","v":137753.4},{"$f":"(((AAMC_Raw_Data_for_FY22[[#This Row],[75th]]-AAMC_Raw_Data_for_FY22[[#This Row],[Median]])/25)*15) + AAMC_Raw_Data_for_FY22[[#This Row],[Median]]","v":140438.6},{"$f":"(((AAMC_Raw_Data_for_FY22[[#This Row],[75th]]-AAMC_Raw_Data_for_FY22[[#This Row],[Median]])/25)*20) + AAMC_Raw_Data_for_FY22[[#This Row],[Median]]","v":143123.79999999999},145809,{"$f":"(((AAMC_Raw_Data_for_FY22[[#This Row],[75th]]-AAMC_Raw_Data_for_FY22[[#This Row],[Median]])/25)*30) + AAMC_Raw_Data_for_FY22[[#This Row],[Median]]","v":148494.20000000001},{"$f":"(((AAMC_Raw_Data_for_FY22[[#This Row],[75th]]-AAMC_Raw_Data_for_FY22[[#This Row],[Median]])/25)*35) + AAMC_Raw_Data_for_FY22[[#This Row],[Median]]","v":151179.4},{"$f":"(((AAMC_Raw_Data_for_FY22[[#This Row],[75th]]-AAMC_Raw_Data_for_FY22[[#This Row],[Median]])/25)*40) + AAMC_Raw_Data_for_FY22[[#This Row],[Median]]","v":153864.6}]
[{"$f":"AAMC_Raw_Data_for_FY22[[#This Row],[Source]]&AAMC_Raw_Data_for_FY22[[#This Row],[Type]]&AAMC_Raw_Data_for_FY22[[#This Row],[School Subset]]&AAMC_Raw_Data_for_FY22[[#This Row],[Rank]]&AAMC_Raw_Data_for_FY22[[#This Row],[Degree]]&AAMC_Raw_Data_for_FY22[[#This Row],[Department / Specialty]]&\"L\"","v":"AAMCAcademicPrivateProfessorPhDAnatomyL"},"Anatomy",2,"AAMC","Academic","Private","Professor","PhD","2021-2022",153814,{"$f":"(((AAMC_Raw_Data_for_FY22[[#This Row],[Median]]-AAMC_Raw_Data_for_FY22[[#This Row],[25th]])/25)*5) + AAMC_Raw_Data_for_FY22[[#This Row],[25th]]","v":159986.6},{"$f":"(((AAMC_Raw_Data_for_FY22[[#This Row],[Median]]-AAMC_Raw_Data_for_FY22[[#This Row],[25th]])/25)*10) + AAMC_Raw_Data_for_FY22[[#This Row],[25th]]","v":166159.20000000001},{"$f":"(((AAMC_Raw_Data_for_FY22[[#This Row],[Median]]-AAMC_Raw_Data_for_FY22[[#This Row],[25th]])/25)*15) + AAMC_Raw_Data_for_FY22[[#This Row],[25th]]","v":172331.8},{"$f":"(((AAMC_Raw_Data_for_FY22[[#This Row],[Median]]-AAMC_Raw_Data_for_FY22[[#This Row],[25th]])/25)*20) + AAMC_Raw_Data_for_FY22[[#This Row],[25th]]","v":178504.4},184677,{"$f":"(((AAMC_Raw_Data_for_FY22[[#This Row],[75th]]-AAMC_Raw_Data_for_FY22[[#This Row],[Median]])/25)*5) + AAMC_Raw_Data_for_FY22[[#This Row],[Median]]","v":194477.4},{"$f":"(((AAMC_Raw_Data_for_FY22[[#This Row],[75th]]-AAMC_Raw_Data_for_FY22[[#This Row],[Median]])/25)*10) + AAMC_Raw_Data_for_FY22[[#This Row],[Median]]","v":204277.8},{"$f":"(((AAMC_Raw_Data_for_FY22[[#This Row],[75th]]-AAMC_Raw_Data_for_FY22[[#This Row],[Median]])/25)*15) + AAMC_Raw_Data_for_FY22[[#This Row],[Median]]","v":214078.2},{"$f":"(((AAMC_Raw_Data_for_FY22[[#This Row],[75th]]-AAMC_Raw_Data_for_FY22[[#This Row],[Median]])/25)*20) + AAMC_Raw_Data_for_FY22[[#This Row],[Median]]","v":223878.6},233679,{"$f":"(((AAMC_Raw_Data_for_FY22[[#This Row],[75th]]-AAMC_Raw_Data_for_FY22[[#This Row],[Median]])/25)*30) + AAMC_Raw_Data_for_FY22[[#This Row],[Median]]","v":243479.4},{"$f":"(((AAMC_Raw_Data_for_FY22[[#This Row],[75th]]-AAMC_Raw_Data_for_FY22[[#This Row],[Median]])/25)*35) + AAMC_Raw_Data_for_FY22[[#This Row],[Median]]","v":253279.8},{"$f":"(((AAMC_Raw_Data_for_FY22[[#This Row],[75th]]-AAMC_Raw_Data_for_FY22[[#This Row],[Median]])/25)*40) + AAMC_Raw_Data_for_FY22[[#This Row],[Median]]","v":263080.2}]
[{"$f":"AAMC_Raw_Data_for_FY22[[#This Row],[Source]]&AAMC_Raw_Data_for_FY22[[#This Row],[Type]]&AAMC_Raw_Data_for_FY22[[#This Row],[School Subset]]&AAMC_Raw_Data_for_FY22[[#This Row],[Rank]]&AAMC_Raw_Data_for_FY22[[#This Row],[Degree]]&AAMC_Raw_Data_for_FY22[[#This Row],[Department / Specialty]]&\"L\"","v":"AAMCAcademicPrivateChiefPhDAnatomyL"},"Anatomy",6,"AAMC","Academic","Private","Chief","PhD","2021-2022",null,{"$f":"(((AAMC_Raw_Data_for_FY22[[#This Row],[Median]]-AAMC_Raw_Data_for_FY22[[#This Row],[25th]])/25)*5) + AAMC_Raw_Data_for_FY22[[#This Row],[25th]]","v":0},{"$f":"(((AAMC_Raw_Data_for_FY22[[#This Row],[Median]]-AAMC_Raw_Data_for_FY22[[#This Row],[25th]])/25)*10) + AAMC_Raw_Data_for_FY22[[#This Row],[25th]]","v":0},{"$f":"(((AAMC_Raw_Data_for_FY22[[#This Row],[Median]]-AAMC_Raw_Data_for_FY22[[#This Row],[25th]])/25)*15) + AAMC_Raw_Data_for_FY22[[#This Row],[25th]]","v":0},{"$f":"(((AAMC_Raw_Data_for_FY22[[#This Row],[Median]]-AAMC_Raw_Data_for_FY22[[#This Row],[25th]])/25)*20) + AAMC_Raw_Data_for_FY22[[#This Row],[25th]]","v":0},null,{"$f":"(((AAMC_Raw_Data_for_FY22[[#This Row],[75th]]-AAMC_Raw_Data_for_FY22[[#This Row],[Median]])/25)*5) + AAMC_Raw_Data_for_FY22[[#This Row],[Median]]","v":0},{"$f":"(((AAMC_Raw_Data_for_FY22[[#This Row],[75th]]-AAMC_Raw_Data_for_FY22[[#This Row],[Median]])/25)*10) + AAMC_Raw_Data_for_FY22[[#This Row],[Median]]","v":0},{"$f":"(((AAMC_Raw_Data_for_FY22[[#This Row],[75th]]-AAMC_Raw_Data_for_FY22[[#This Row],[Median]])/25)*15) + AAMC_Raw_Data_for_FY22[[#This Row],[Median]]","v":0},{"$f":"(((AAMC_Raw_Data_for_FY22[[#This Row],[75th]]-AAMC_Raw_Data_for_FY22[[#This Row],[Median]])/25)*20) + AAMC_Raw_Data_for_FY22[[#This Row],[Median]]","v":0},null,{"$f":"(((AAMC_Raw_Data_for_FY22[[#This Row],[75th]]-AAMC_Raw_Data_for_FY22[[#This Row],[Median]])/25)*30) + AAMC_Raw_Data_for_FY22[[#This Row],[Median]]","v":0},{"$f":"(((AAMC_Raw_Data_for_FY22[[#This Row],[75th]]-AAMC_Raw_Data_for_FY22[[#This Row],[Median]])/25)*35) + AAMC_Raw_Data_for_FY22[[#This Row],[Median]]","v":0},{"$f":"(((AAMC_Raw_Data_for_FY22[[#This Row],[75th]]-AAMC_Raw_Data_for_FY22[[#This Row],[Median]])/25)*40) + AAMC_Raw_Data_for_FY22[[#This Row],[Median]]","v":0}]
[{"$f":"AAMC_Raw_Data_for_FY22[[#This Row],[Source]]&AAMC_Raw_Data_for_FY22[[#This Row],[Type]]&AAMC_Raw_Data_for_FY22[[#This Row],[School Subset]]&AAMC_Raw_Data_for_FY22[[#This Row],[Rank]]&AAMC_Raw_Data_for_FY22[[#This Row],[Degree]]&AAMC_Raw_Data_for_FY22[[#This Row],[Department / Specialty]]&\"L\"","v":"AAMCAcademicPrivateChairPhDAnatomyL"},"Anatomy",1,"AAMC","Academic","Private","Chair","PhD","2021-2022",256621,{"$f":"(((AAMC_Raw_Data_for_FY22[[#This Row],[Median]]-AAMC_Raw_Data_for_FY22[[#This Row],[25th]])/25)*5) + AAMC_Raw_Data_for_FY22[[#This Row],[25th]]","v":260916.8},{"$f":"(((AAMC_Raw_Data_for_FY22[[#This Row],[Median]]-AAMC_Raw_Data_for_FY22[[#This Row],[25th]])/25)*10) + AAMC_Raw_Data_for_FY22[[#This Row],[25th]]","v":265212.59999999998},{"$f":"(((AAMC_Raw_Data_for_FY22[[#This Row],[Median]]-AAMC_Raw_Data_for_FY22[[#This Row],[25th]])/25)*15) + AAMC_Raw_Data_for_FY22[[#This Row],[25th]]","v":269508.40000000002},{"$f":"(((AAMC_Raw_Data_for_FY22[[#This Row],[Median]]-AAMC_Raw_Data_for_FY22[[#This Row],[25th]])/25)*20) + AAMC_Raw_Data_for_FY22[[#This Row],[25th]]","v":273804.2},278100,{"$f":"(((AAMC_Raw_Data_for_FY22[[#This Row],[75th]]-AAMC_Raw_Data_for_FY22[[#This Row],[Median]])/25)*5) + AAMC_Raw_Data_for_FY22[[#This Row],[Median]]","v":283577.59999999998},{"$f":"(((AAMC_Raw_Data_for_FY22[[#This Row],[75th]]-AAMC_Raw_Data_for_FY22[[#This Row],[Median]])/25)*10) + AAMC_Raw_Data_for_FY22[[#This Row],[Median]]","v":289055.2},{"$f":"(((AAMC_Raw_Data_for_FY22[[#This Row],[75th]]-AAMC_Raw_Data_for_FY22[[#This Row],[Median]])/25)*15) + AAMC_Raw_Data_for_FY22[[#This Row],[Median]]","v":294532.8},{"$f":"(((AAMC_Raw_Data_for_FY22[[#This Row],[75th]]-AAMC_Raw_Data_for_FY22[[#This Row],[Median]])/25)*20) + AAMC_Raw_Data_for_FY22[[#This Row],[Median]]","v":300010.40000000002},305488,{"$f":"(((AAMC_Raw_Data_for_FY22[[#This Row],[75th]]-AAMC_Raw_Data_for_FY22[[#This Row],[Median]])/25)*30) + AAMC_Raw_Data_for_FY22[[#This Row],[Median]]","v":310965.59999999998},{"$f":"(((AAMC_Raw_Data_for_FY22[[#This Row],[75th]]-AAMC_Raw_Data_for_FY22[[#This Row],[Median]])/25)*35) + AAMC_Raw_Data_for_FY22[[#This Row],[Median]]","v":316443.2},{"$f":"(((AAMC_Raw_Data_for_FY22[[#This Row],[75th]]-AAMC_Raw_Data_for_FY22[[#This Row],[Median]])/25)*40) + AAMC_Raw_Data_for_FY22[[#This Row],[Median]]","v":321920.8}]
[{"$f":"AAMC_Raw_Data_for_FY22[[#This Row],[Source]]&AAMC_Raw_Data_for_FY22[[#This Row],[Type]]&AAMC_Raw_Data_for_FY22[[#This Row],[School Subset]]&AAMC_Raw_Data_for_FY22[[#This Row],[Rank]]&AAMC_Raw_Data_for_FY22[[#This Row],[Degree]]&AAMC_Raw_Data_for_FY22[[#This Row],[Department / Specialty]]&\"L\"","v":"AAMCAcademicPrivateInstructorPhDBiochemistryL"},"Biochemistry",5,"AAMC","Academic","Private","Instructor","PhD","2021-2022",64643,{"$f":"(((AAMC_Raw_Data_for_FY22[[#This Row],[Median]]-AAMC_Raw_Data_for_FY22[[#This Row],[25th]])/25)*5) + AAMC_Raw_Data_for_FY22[[#This Row],[25th]]","v":65556.399999999994},{"$f":"(((AAMC_Raw_Data_for_FY22[[#This Row],[Median]]-AAMC_Raw_Data_for_FY22[[#This Row],[25th]])/25)*10) + AAMC_Raw_Data_for_FY22[[#This Row],[25th]]","v":66469.8},{"$f":"(((AAMC_Raw_Data_for_FY22[[#This Row],[Median]]-AAMC_Raw_Data_for_FY22[[#This Row],[25th]])/25)*15) + AAMC_Raw_Data_for_FY22[[#This Row],[25th]]","v":67383.199999999997},{"$f":"(((AAMC_Raw_Data_for_FY22[[#This Row],[Median]]-AAMC_Raw_Data_for_FY22[[#This Row],[25th]])/25)*20) + AAMC_Raw_Data_for_FY22[[#This Row],[25th]]","v":68296.600000000006},69210,{"$f":"(((AAMC_Raw_Data_for_FY22[[#This Row],[75th]]-AAMC_Raw_Data_for_FY22[[#This Row],[Median]])/25)*5) + AAMC_Raw_Data_for_FY22[[#This Row],[Median]]","v":71391.199999999997},{"$f":"(((AAMC_Raw_Data_for_FY22[[#This Row],[75th]]-AAMC_Raw_Data_for_FY22[[#This Row],[Median]])/25)*10) + AAMC_Raw_Data_for_FY22[[#This Row],[Median]]","v":73572.399999999994},{"$f":"(((AAMC_Raw_Data_for_FY22[[#This Row],[75th]]-AAMC_Raw_Data_for_FY22[[#This Row],[Median]])/25)*15) + AAMC_Raw_Data_for_FY22[[#This Row],[Median]]","v":75753.600000000006},{"$f":"(((AAMC_Raw_Data_for_FY22[[#This Row],[75th]]-AAMC_Raw_Data_for_FY22[[#This Row],[Median]])/25)*20) + AAMC_Raw_Data_for_FY22[[#This Row],[Median]]","v":77934.8},80116,{"$f":"(((AAMC_Raw_Data_for_FY22[[#This Row],[75th]]-AAMC_Raw_Data_for_FY22[[#This Row],[Median]])/25)*30) + AAMC_Raw_Data_for_FY22[[#This Row],[Median]]","v":82297.2},{"$f":"(((AAMC_Raw_Data_for_FY22[[#This Row],[75th]]-AAMC_Raw_Data_for_FY22[[#This Row],[Median]])/25)*35) + AAMC_Raw_Data_for_FY22[[#This Row],[Median]]","v":84478.399999999994},{"$f":"(((AAMC_Raw_Data_for_FY22[[#This Row],[75th]]-AAMC_Raw_Data_for_FY22[[#This Row],[Median]])/25)*40) + AAMC_Raw_Data_for_FY22[[#This Row],[Median]]","v":86659.6}]
[{"$f":"AAMC_Raw_Data_for_FY22[[#This Row],[Source]]&AAMC_Raw_Data_for_FY22[[#This Row],[Type]]&AAMC_Raw_Data_for_FY22[[#This Row],[School Subset]]&AAMC_Raw_Data_for_FY22[[#This Row],[Rank]]&AAMC_Raw_Data_for_FY22[[#This Row],[Degree]]&AAMC_Raw_Data_for_FY22[[#This Row],[Department / Specialty]]&\"L\"","v":"AAMCAcademicPrivateAssistantPhDBiochemistryL"},"Biochemistry",4,"AAMC","Academic","Private","Assistant","PhD","2021-2022",87294,{"$f":"(((AAMC_Raw_Data_for_FY22[[#This Row],[Median]]-AAMC_Raw_Data_for_FY22[[#This Row],[25th]])/25)*5) + AAMC_Raw_Data_for_FY22[[#This Row],[25th]]","v":91571},{"$f":"(((AAMC_Raw_Data_for_FY22[[#This Row],[Median]]-AAMC_Raw_Data_for_FY22[[#This Row],[25th]])/25)*10) + AAMC_Raw_Data_for_FY22[[#This Row],[25th]]","v":95848},{"$f":"(((AAMC_Raw_Data_for_FY22[[#This Row],[Median]]-AAMC_Raw_Data_for_FY22[[#This Row],[25th]])/25)*15) + AAMC_Raw_Data_for_FY22[[#This Row],[25th]]","v":100125},{"$f":"(((AAMC_Raw_Data_for_FY22[[#This Row],[Median]]-AAMC_Raw_Data_for_FY22[[#This Row],[25th]])/25)*20) + AAMC_Raw_Data_for_FY22[[#This Row],[25th]]","v":104402},108679,{"$f":"(((AAMC_Raw_Data_for_FY22[[#This Row],[75th]]-AAMC_Raw_Data_for_FY22[[#This Row],[Median]])/25)*5) + AAMC_Raw_Data_for_FY22[[#This Row],[Median]]","v":113123},{"$f":"(((AAMC_Raw_Data_for_FY22[[#This Row],[75th]]-AAMC_Raw_Data_for_FY22[[#This Row],[Median]])/25)*10) + AAMC_Raw_Data_for_FY22[[#This Row],[Median]]","v":117567},{"$f":"(((AAMC_Raw_Data_for_FY22[[#This Row],[75th]]-AAMC_Raw_Data_for_FY22[[#This Row],[Median]])/25)*15) + AAMC_Raw_Data_for_FY22[[#This Row],[Median]]","v":122011},{"$f":"(((AAMC_Raw_Data_for_FY22[[#This Row],[75th]]-AAMC_Raw_Data_for_FY22[[#This Row],[Median]])/25)*20) + AAMC_Raw_Data_for_FY22[[#This Row],[Median]]","v":126455},130899,{"$f":"(((AAMC_Raw_Data_for_FY22[[#This Row],[75th]]-AAMC_Raw_Data_for_FY22[[#This Row],[Median]])/25)*30) + AAMC_Raw_Data_for_FY22[[#This Row],[Median]]","v":135343},{"$f":"(((AAMC_Raw_Data_for_FY22[[#This Row],[75th]]-AAMC_Raw_Data_for_FY22[[#This Row],[Median]])/25)*35) + AAMC_Raw_Data_for_FY22[[#This Row],[Median]]","v":139787},{"$f":"(((AAMC_Raw_Data_for_FY22[[#This Row],[75th]]-AAMC_Raw_Data_for_FY22[[#This Row],[Median]])/25)*40) + AAMC_Raw_Data_for_FY22[[#This Row],[Median]]","v":144231}]
[{"$f":"AAMC_Raw_Data_for_FY22[[#This Row],[Source]]&AAMC_Raw_Data_for_FY22[[#This Row],[Type]]&AAMC_Raw_Data_for_FY22[[#This Row],[School Subset]]&AAMC_Raw_Data_for_FY22[[#This Row],[Rank]]&AAMC_Raw_Data_for_FY22[[#This Row],[Degree]]&AAMC_Raw_Data_for_FY22[[#This Row],[Department / Specialty]]&\"L\"","v":"AAMCAcademicPrivateAssociatePhDBiochemistryL"},"Biochemistry",3,"AAMC","Academic","Private","Associate","PhD","2021-2022",116345,{"$f":"(((AAMC_Raw_Data_for_FY22[[#This Row],[Median]]-AAMC_Raw_Data_for_FY22[[#This Row],[25th]])/25)*5) + AAMC_Raw_Data_for_FY22[[#This Row],[25th]]","v":120593},{"$f":"(((AAMC_Raw_Data_for_FY22[[#This Row],[Median]]-AAMC_Raw_Data_for_FY22[[#This Row],[25th]])/25)*10) + AAMC_Raw_Data_for_FY22[[#This Row],[25th]]","v":124841},{"$f":"(((AAMC_Raw_Data_for_FY22[[#This Row],[Median]]-AAMC_Raw_Data_for_FY22[[#This Row],[25th]])/25)*15) + AAMC_Raw_Data_for_FY22[[#This Row],[25th]]","v":129089},{"$f":"(((AAMC_Raw_Data_for_FY22[[#This Row],[Median]]-AAMC_Raw_Data_for_FY22[[#This Row],[25th]])/25)*20) + AAMC_Raw_Data_for_FY22[[#This Row],[25th]]","v":133337},137585,{"$f":"(((AAMC_Raw_Data_for_FY22[[#This Row],[75th]]-AAMC_Raw_Data_for_FY22[[#This Row],[Median]])/25)*5) + AAMC_Raw_Data_for_FY22[[#This Row],[Median]]","v":141869.20000000001},{"$f":"(((AAMC_Raw_Data_for_FY22[[#This Row],[75th]]-AAMC_Raw_Data_for_FY22[[#This Row],[Median]])/25)*10) + AAMC_Raw_Data_for_FY22[[#This Row],[Median]]","v":146153.4},{"$f":"(((AAMC_Raw_Data_for_FY22[[#This Row],[75th]]-AAMC_Raw_Data_for_FY22[[#This Row],[Median]])/25)*15) + AAMC_Raw_Data_for_FY22[[#This Row],[Median]]","v":150437.6},{"$f":"(((AAMC_Raw_Data_for_FY22[[#This Row],[75th]]-AAMC_Raw_Data_for_FY22[[#This Row],[Median]])/25)*20) + AAMC_Raw_Data_for_FY22[[#This Row],[Median]]","v":154721.79999999999},159006,{"$f":"(((AAMC_Raw_Data_for_FY22[[#This Row],[75th]]-AAMC_Raw_Data_for_FY22[[#This Row],[Median]])/25)*30) + AAMC_Raw_Data_for_FY22[[#This Row],[Median]]","v":163290.20000000001},{"$f":"(((AAMC_Raw_Data_for_FY22[[#This Row],[75th]]-AAMC_Raw_Data_for_FY22[[#This Row],[Median]])/25)*35) + AAMC_Raw_Data_for_FY22[[#This Row],[Median]]","v":167574.39999999999},{"$f":"(((AAMC_Raw_Data_for_FY22[[#This Row],[75th]]-AAMC_Raw_Data_for_FY22[[#This Row],[Median]])/25)*40) + AAMC_Raw_Data_for_FY22[[#This Row],[Median]]","v":171858.6}]
[{"$f":"AAMC_Raw_Data_for_FY22[[#This Row],[Source]]&AAMC_Raw_Data_for_FY22[[#This Row],[Type]]&AAMC_Raw_Data_for_FY22[[#This Row],[School Subset]]&AAMC_Raw_Data_for_FY22[[#This Row],[Rank]]&AAMC_Raw_Data_for_FY22[[#This Row],[Degree]]&AAMC_Raw_Data_for_FY22[[#This Row],[Department / Specialty]]&\"L\"","v":"AAMCAcademicPrivateProfessorPhDBiochemistryL"},"Biochemistry",2,"AAMC","Academic","Private","Professor","PhD","2021-2022",174124,{"$f":"(((AAMC_Raw_Data_for_FY22[[#This Row],[Median]]-AAMC_Raw_Data_for_FY22[[#This Row],[25th]])/25)*5) + AAMC_Raw_Data_for_FY22[[#This Row],[25th]]","v":181845},{"$f":"(((AAMC_Raw_Data_for_FY22[[#This Row],[Median]]-AAMC_Raw_Data_for_FY22[[#This Row],[25th]])/25)*10) + AAMC_Raw_Data_for_FY22[[#This Row],[25th]]","v":189566},{"$f":"(((AAMC_Raw_Data_for_FY22[[#This Row],[Median]]-AAMC_Raw_Data_for_FY22[[#This Row],[25th]])/25)*15) + AAMC_Raw_Data_for_FY22[[#This Row],[25th]]","v":197287},{"$f":"(((AAMC_Raw_Data_for_FY22[[#This Row],[Median]]-AAMC_Raw_Data_for_FY22[[#This Row],[25th]])/25)*20) + AAMC_Raw_Data_for_FY22[[#This Row],[25th]]","v":205008},212729,{"$f":"(((AAMC_Raw_Data_for_FY22[[#This Row],[75th]]-AAMC_Raw_Data_for_FY22[[#This Row],[Median]])/25)*5) + AAMC_Raw_Data_for_FY22[[#This Row],[Median]]","v":221533.2},{"$f":"(((AAMC_Raw_Data_for_FY22[[#This Row],[75th]]-AAMC_Raw_Data_for_FY22[[#This Row],[Median]])/25)*10) + AAMC_Raw_Data_for_FY22[[#This Row],[Median]]","v":230337.4},{"$f":"(((AAMC_Raw_Data_for_FY22[[#This Row],[75th]]-AAMC_Raw_Data_for_FY22[[#This Row],[Median]])/25)*15) + AAMC_Raw_Data_for_FY22[[#This Row],[Median]]","v":239141.6},{"$f":"(((AAMC_Raw_Data_for_FY22[[#This Row],[75th]]-AAMC_Raw_Data_for_FY22[[#This Row],[Median]])/25)*20) + AAMC_Raw_Data_for_FY22[[#This Row],[Median]]","v":247945.8},256750,{"$f":"(((AAMC_Raw_Data_for_FY22[[#This Row],[75th]]-AAMC_Raw_Data_for_FY22[[#This Row],[Median]])/25)*30) + AAMC_Raw_Data_for_FY22[[#This Row],[Median]]","v":265554.2},{"$f":"(((AAMC_Raw_Data_for_FY22[[#This Row],[75th]]-AAMC_Raw_Data_for_FY22[[#This Row],[Median]])/25)*35) + AAMC_Raw_Data_for_FY22[[#This Row],[Median]]","v":274358.40000000002},{"$f":"(((AAMC_Raw_Data_for_FY22[[#This Row],[75th]]-AAMC_Raw_Data_for_FY22[[#This Row],[Median]])/25)*40) + AAMC_Raw_Data_for_FY22[[#This Row],[Median]]","v":283162.59999999998}]
[{"$f":"AAMC_Raw_Data_for_FY22[[#This Row],[Source]]&AAMC_Raw_Data_for_FY22[[#This Row],[Type]]&AAMC_Raw_Data_for_FY22[[#This Row],[School Subset]]&AAMC_Raw_Data_for_FY22[[#This Row],[Rank]]&AAMC_Raw_Data_for_FY22[[#This Row],[Degree]]&AAMC_Raw_Data_for_FY22[[#This Row],[Department / Specialty]]&\"L\"","v":"AAMCAcademicPrivateChiefPhDBiochemistryL"},"Biochemistry",6,"AAMC","Academic","Private","Chief","PhD","2021-2022",null,{"$f":"(((AAMC_Raw_Data_for_FY22[[#This Row],[Median]]-AAMC_Raw_Data_for_FY22[[#This Row],[25th]])/25)*5) + AAMC_Raw_Data_for_FY22[[#This Row],[25th]]","v":0},{"$f":"(((AAMC_Raw_Data_for_FY22[[#This Row],[Median]]-AAMC_Raw_Data_for_FY22[[#This Row],[25th]])/25)*10) + AAMC_Raw_Data_for_FY22[[#This Row],[25th]]","v":0},{"$f":"(((AAMC_Raw_Data_for_FY22[[#This Row],[Median]]-AAMC_Raw_Data_for_FY22[[#This Row],[25th]])/25)*15) + AAMC_Raw_Data_for_FY22[[#This Row],[25th]]","v":0},{"$f":"(((AAMC_Raw_Data_for_FY22[[#This Row],[Median]]-AAMC_Raw_Data_for_FY22[[#This Row],[25th]])/25)*20) + AAMC_Raw_Data_for_FY22[[#This Row],[25th]]","v":0},null,{"$f":"(((AAMC_Raw_Data_for_FY22[[#This Row],[75th]]-AAMC_Raw_Data_for_FY22[[#This Row],[Median]])/25)*5) + AAMC_Raw_Data_for_FY22[[#This Row],[Median]]","v":0},{"$f":"(((AAMC_Raw_Data_for_FY22[[#This Row],[75th]]-AAMC_Raw_Data_for_FY22[[#This Row],[Median]])/25)*10) + AAMC_Raw_Data_for_FY22[[#This Row],[Median]]","v":0},{"$f":"(((AAMC_Raw_Data_for_FY22[[#This Row],[75th]]-AAMC_Raw_Data_for_FY22[[#This Row],[Median]])/25)*15) + AAMC_Raw_Data_for_FY22[[#This Row],[Median]]","v":0},{"$f":"(((AAMC_Raw_Data_for_FY22[[#This Row],[75th]]-AAMC_Raw_Data_for_FY22[[#This Row],[Median]])/25)*20) + AAMC_Raw_Data_for_FY22[[#This Row],[Median]]","v":0},null,{"$f":"(((AAMC_Raw_Data_for_FY22[[#This Row],[75th]]-AAMC_Raw_Data_for_FY22[[#This Row],[Median]])/25)*30) + AAMC_Raw_Data_for_FY22[[#This Row],[Median]]","v":0},{"$f":"(((AAMC_Raw_Data_for_FY22[[#This Row],[75th]]-AAMC_Raw_Data_for_FY22[[#This Row],[Median]])/25)*35) + AAMC_Raw_Data_for_FY22[[#This Row],[Median]]","v":0},{"$f":"(((AAMC_Raw_Data_for_FY22[[#This Row],[75th]]-AAMC_Raw_Data_for_FY22[[#This Row],[Median]])/25)*40) + AAMC_Raw_Data_for_FY22[[#This Row],[Median]]","v":0}]
[{"$f":"AAMC_Raw_Data_for_FY22[[#This Row],[Source]]&AAMC_Raw_Data_for_FY22[[#This Row],[Type]]&AAMC_Raw_Data_for_FY22[[#This Row],[School Subset]]&AAMC_Raw_Data_for_FY22[[#This Row],[Rank]]&AAMC_Raw_Data_for_FY22[[#This Row],[Degree]]&AAMC_Raw_Data_for_FY22[[#This Row],[Department / Specialty]]&\"L\"","v":"AAMCAcademicPrivateChairPhDBiochemistryL"},"Biochemistry",1,"AAMC","Academic","Private","Chair","PhD","2021-2022",302500,{"$f":"(((AAMC_Raw_Data_for_FY22[[#This Row],[Median]]-AAMC_Raw_Data_for_FY22[[#This Row],[25th]])/25)*5) + AAMC_Raw_Data_for_FY22[[#This Row],[25th]]","v":313915.2},{"$f":"(((AAMC_Raw_Data_for_FY22[[#This Row],[Median]]-AAMC_Raw_Data_for_FY22[[#This Row],[25th]])/25)*10) + AAMC_Raw_Data_for_FY22[[#This Row],[25th]]","v":325330.40000000002},{"$f":"(((AAMC_Raw_Data_for_FY22[[#This Row],[Median]]-AAMC_Raw_Data_for_FY22[[#This Row],[25th]])/25)*15) + AAMC_Raw_Data_for_FY22[[#This Row],[25th]]","v":336745.6},{"$f":"(((AAMC_Raw_Data_for_FY22[[#This Row],[Median]]-AAMC_Raw_Data_for_FY22[[#This Row],[25th]])/25)*20) + AAMC_Raw_Data_for_FY22[[#This Row],[25th]]","v":348160.8},359576,{"$f":"(((AAMC_Raw_Data_for_FY22[[#This Row],[75th]]-AAMC_Raw_Data_for_FY22[[#This Row],[Median]])/25)*5) + AAMC_Raw_Data_for_FY22[[#This Row],[Median]]","v":370119},{"$f":"(((AAMC_Raw_Data_for_FY22[[#This Row],[75th]]-AAMC_Raw_Data_for_FY22[[#This Row],[Median]])/25)*10) + AAMC_Raw_Data_for_FY22[[#This Row],[Median]]","v":380662},{"$f":"(((AAMC_Raw_Data_for_FY22[[#This Row],[75th]]-AAMC_Raw_Data_for_FY22[[#This Row],[Median]])/25)*15) + AAMC_Raw_Data_for_FY22[[#This Row],[Median]]","v":391205},{"$f":"(((AAMC_Raw_Data_for_FY22[[#This Row],[75th]]-AAMC_Raw_Data_for_FY22[[#This Row],[Median]])/25)*20) + AAMC_Raw_Data_for_FY22[[#This Row],[Median]]","v":401748},412291,{"$f":"(((AAMC_Raw_Data_for_FY22[[#This Row],[75th]]-AAMC_Raw_Data_for_FY22[[#This Row],[Median]])/25)*30) + AAMC_Raw_Data_for_FY22[[#This Row],[Median]]","v":422834},{"$f":"(((AAMC_Raw_Data_for_FY22[[#This Row],[75th]]-AAMC_Raw_Data_for_FY22[[#This Row],[Median]])/25)*35) + AAMC_Raw_Data_for_FY22[[#This Row],[Median]]","v":433377},{"$f":"(((AAMC_Raw_Data_for_FY22[[#This Row],[75th]]-AAMC_Raw_Data_for_FY22[[#This Row],[Median]])/25)*40) + AAMC_Raw_Data_for_FY22[[#This Row],[Median]]","v":443920}]
[{"$f":"AAMC_Raw_Data_for_FY22[[#This Row],[Source]]&AAMC_Raw_Data_for_FY22[[#This Row],[Type]]&AAMC_Raw_Data_for_FY22[[#This Row],[School Subset]]&AAMC_Raw_Data_for_FY22[[#This Row],[Rank]]&AAMC_Raw_Data_for_FY22[[#This Row],[Degree]]&AAMC_Raw_Data_for_FY22[[#This Row],[Department / Specialty]]&\"L\"","v":"AAMCAcademicPrivateAssistantPhDBioethics/Medical HumanitiesL"},"Bioethics/Medical Humanities",4,"AAMC","Academic","Private","Assistant","PhD","2021-2022",93301,{"$f":"(((AAMC_Raw_Data_for_FY22[[#This Row],[Median]]-AAMC_Raw_Data_for_FY22[[#This Row],[25th]])/25)*5) + AAMC_Raw_Data_for_FY22[[#This Row],[25th]]","v":96657.4},{"$f":"(((AAMC_Raw_Data_for_FY22[[#This Row],[Median]]-AAMC_Raw_Data_for_FY22[[#This Row],[25th]])/25)*10) + AAMC_Raw_Data_for_FY22[[#This Row],[25th]]","v":100013.8},{"$f":"(((AAMC_Raw_Data_for_FY22[[#This Row],[Median]]-AAMC_Raw_Data_for_FY22[[#This Row],[25th]])/25)*15) + AAMC_Raw_Data_for_FY22[[#This Row],[25th]]","v":103370.2},{"$f":"(((AAMC_Raw_Data_for_FY22[[#This Row],[Median]]-AAMC_Raw_Data_for_FY22[[#This Row],[25th]])/25)*20) + AAMC_Raw_Data_for_FY22[[#This Row],[25th]]","v":106726.6},110083,{"$f":"(((AAMC_Raw_Data_for_FY22[[#This Row],[75th]]-AAMC_Raw_Data_for_FY22[[#This Row],[Median]])/25)*5) + AAMC_Raw_Data_for_FY22[[#This Row],[Median]]","v":114564},{"$f":"(((AAMC_Raw_Data_for_FY22[[#This Row],[75th]]-AAMC_Raw_Data_for_FY22[[#This Row],[Median]])/25)*10) + AAMC_Raw_Data_for_FY22[[#This Row],[Median]]","v":119045},{"$f":"(((AAMC_Raw_Data_for_FY22[[#This Row],[75th]]-AAMC_Raw_Data_for_FY22[[#This Row],[Median]])/25)*15) + AAMC_Raw_Data_for_FY22[[#This Row],[Median]]","v":123526},{"$f":"(((AAMC_Raw_Data_for_FY22[[#This Row],[75th]]-AAMC_Raw_Data_for_FY22[[#This Row],[Median]])/25)*20) + AAMC_Raw_Data_for_FY22[[#This Row],[Median]]","v":128007},132488,{"$f":"(((AAMC_Raw_Data_for_FY22[[#This Row],[75th]]-AAMC_Raw_Data_for_FY22[[#This Row],[Median]])/25)*30) + AAMC_Raw_Data_for_FY22[[#This Row],[Median]]","v":136969},{"$f":"(((AAMC_Raw_Data_for_FY22[[#This Row],[75th]]-AAMC_Raw_Data_for_FY22[[#This Row],[Median]])/25)*35) + AAMC_Raw_Data_for_FY22[[#This Row],[Median]]","v":141450},{"$f":"(((AAMC_Raw_Data_for_FY22[[#This Row],[75th]]-AAMC_Raw_Data_for_FY22[[#This Row],[Median]])/25)*40) + AAMC_Raw_Data_for_FY22[[#This Row],[Median]]","v":145931}]
[{"$f":"AAMC_Raw_Data_for_FY22[[#This Row],[Source]]&AAMC_Raw_Data_for_FY22[[#This Row],[Type]]&AAMC_Raw_Data_for_FY22[[#This Row],[School Subset]]&AAMC_Raw_Data_for_FY22[[#This Row],[Rank]]&AAMC_Raw_Data_for_FY22[[#This Row],[Degree]]&AAMC_Raw_Data_for_FY22[[#This Row],[Department / Specialty]]&\"L\"","v":"AAMCAcademicPrivateAssociatePhDBioethics/Medical HumanitiesL"},"Bioethics/Medical Humanities",3,"AAMC","Academic","Private","Associate","PhD","2021-2022",116163,{"$f":"(((AAMC_Raw_Data_for_FY22[[#This Row],[Median]]-AAMC_Raw_Data_for_FY22[[#This Row],[25th]])/25)*5) + AAMC_Raw_Data_for_FY22[[#This Row],[25th]]","v":119181.6},{"$f":"(((AAMC_Raw_Data_for_FY22[[#This Row],[Median]]-AAMC_Raw_Data_for_FY22[[#This Row],[25th]])/25)*10) + AAMC_Raw_Data_for_FY22[[#This Row],[25th]]","v":122200.2},{"$f":"(((AAMC_Raw_Data_for_FY22[[#This Row],[Median]]-AAMC_Raw_Data_for_FY22[[#This Row],[25th]])/25)*15) + AAMC_Raw_Data_for_FY22[[#This Row],[25th]]","v":125218.8},{"$f":"(((AAMC_Raw_Data_for_FY22[[#This Row],[Median]]-AAMC_Raw_Data_for_FY22[[#This Row],[25th]])/25)*20) + AAMC_Raw_Data_for_FY22[[#This Row],[25th]]","v":128237.4},131256,{"$f":"(((AAMC_Raw_Data_for_FY22[[#This Row],[75th]]-AAMC_Raw_Data_for_FY22[[#This Row],[Median]])/25)*5) + AAMC_Raw_Data_for_FY22[[#This Row],[Median]]","v":136644.20000000001},{"$f":"(((AAMC_Raw_Data_for_FY22[[#This Row],[75th]]-AAMC_Raw_Data_for_FY22[[#This Row],[Median]])/25)*10) + AAMC_Raw_Data_for_FY22[[#This Row],[Median]]","v":142032.4},{"$f":"(((AAMC_Raw_Data_for_FY22[[#This Row],[75th]]-AAMC_Raw_Data_for_FY22[[#This Row],[Median]])/25)*15) + AAMC_Raw_Data_for_FY22[[#This Row],[Median]]","v":147420.6},{"$f":"(((AAMC_Raw_Data_for_FY22[[#This Row],[75th]]-AAMC_Raw_Data_for_FY22[[#This Row],[Median]])/25)*20) + AAMC_Raw_Data_for_FY22[[#This Row],[Median]]","v":152808.79999999999},158197,{"$f":"(((AAMC_Raw_Data_for_FY22[[#This Row],[75th]]-AAMC_Raw_Data_for_FY22[[#This Row],[Median]])/25)*30) + AAMC_Raw_Data_for_FY22[[#This Row],[Median]]","v":163585.20000000001},{"$f":"(((AAMC_Raw_Data_for_FY22[[#This Row],[75th]]-AAMC_Raw_Data_for_FY22[[#This Row],[Median]])/25)*35) + AAMC_Raw_Data_for_FY22[[#This Row],[Median]]","v":168973.4},{"$f":"(((AAMC_Raw_Data_for_FY22[[#This Row],[75th]]-AAMC_Raw_Data_for_FY22[[#This Row],[Median]])/25)*40) + AAMC_Raw_Data_for_FY22[[#This Row],[Median]]","v":174361.60000000001}]
[{"$f":"AAMC_Raw_Data_for_FY22[[#This Row],[Source]]&AAMC_Raw_Data_for_FY22[[#This Row],[Type]]&AAMC_Raw_Data_for_FY22[[#This Row],[School Subset]]&AAMC_Raw_Data_for_FY22[[#This Row],[Rank]]&AAMC_Raw_Data_for_FY22[[#This Row],[Degree]]&AAMC_Raw_Data_for_FY22[[#This Row],[Department / Specialty]]&\"L\"","v":"AAMCAcademicPrivateProfessorPhDBioethics/Medical HumanitiesL"},"Bioethics/Medical Humanities",2,"AAMC","Academic","Private","Professor","PhD","2021-2022",145647,{"$f":"(((AAMC_Raw_Data_for_FY22[[#This Row],[Median]]-AAMC_Raw_Data_for_FY22[[#This Row],[25th]])/25)*5) + AAMC_Raw_Data_for_FY22[[#This Row],[25th]]","v":152526.20000000001},{"$f":"(((AAMC_Raw_Data_for_FY22[[#This Row],[Median]]-AAMC_Raw_Data_for_FY22[[#This Row],[25th]])/25)*10) + AAMC_Raw_Data_for_FY22[[#This Row],[25th]]","v":159405.4},{"$f":"(((AAMC_Raw_Data_for_FY22[[#This Row],[Median]]-AAMC_Raw_Data_for_FY22[[#This Row],[25th]])/25)*15) + AAMC_Raw_Data_for_FY22[[#This Row],[25th]]","v":166284.6},{"$f":"(((AAMC_Raw_Data_for_FY22[[#This Row],[Median]]-AAMC_Raw_Data_for_FY22[[#This Row],[25th]])/25)*20) + AAMC_Raw_Data_for_FY22[[#This Row],[25th]]","v":173163.8},180043,{"$f":"(((AAMC_Raw_Data_for_FY22[[#This Row],[75th]]-AAMC_Raw_Data_for_FY22[[#This Row],[Median]])/25)*5) + AAMC_Raw_Data_for_FY22[[#This Row],[Median]]","v":198975.8},{"$f":"(((AAMC_Raw_Data_for_FY22[[#This Row],[75th]]-AAMC_Raw_Data_for_FY22[[#This Row],[Median]])/25)*10) + AAMC_Raw_Data_for_FY22[[#This Row],[Median]]","v":217908.6},{"$f":"(((AAMC_Raw_Data_for_FY22[[#This Row],[75th]]-AAMC_Raw_Data_for_FY22[[#This Row],[Median]])/25)*15) + AAMC_Raw_Data_for_FY22[[#This Row],[Median]]","v":236841.4},{"$f":"(((AAMC_Raw_Data_for_FY22[[#This Row],[75th]]-AAMC_Raw_Data_for_FY22[[#This Row],[Median]])/25)*20) + AAMC_Raw_Data_for_FY22[[#This Row],[Median]]","v":255774.2},274707,{"$f":"(((AAMC_Raw_Data_for_FY22[[#This Row],[75th]]-AAMC_Raw_Data_for_FY22[[#This Row],[Median]])/25)*30) + AAMC_Raw_Data_for_FY22[[#This Row],[Median]]","v":293639.8},{"$f":"(((AAMC_Raw_Data_for_FY22[[#This Row],[75th]]-AAMC_Raw_Data_for_FY22[[#This Row],[Median]])/25)*35) + AAMC_Raw_Data_for_FY22[[#This Row],[Median]]","v":312572.59999999998},{"$f":"(((AAMC_Raw_Data_for_FY22[[#This Row],[75th]]-AAMC_Raw_Data_for_FY22[[#This Row],[Median]])/25)*40) + AAMC_Raw_Data_for_FY22[[#This Row],[Median]]","v":331505.40000000002}]
[{"$f":"AAMC_Raw_Data_for_FY22[[#This Row],[Source]]&AAMC_Raw_Data_for_FY22[[#This Row],[Type]]&AAMC_Raw_Data_for_FY22[[#This Row],[School Subset]]&AAMC_Raw_Data_for_FY22[[#This Row],[Rank]]&AAMC_Raw_Data_for_FY22[[#This Row],[Degree]]&AAMC_Raw_Data_for_FY22[[#This Row],[Department / Specialty]]&\"L\"","v":"AAMCAcademicPrivateChiefPhDBioethics/Medical HumanitiesL"},"Bioethics/Medical Humanities",6,"AAMC","Academic","Private","Chief","PhD","2021-2022",null,{"$f":"(((AAMC_Raw_Data_for_FY22[[#This Row],[Median]]-AAMC_Raw_Data_for_FY22[[#This Row],[25th]])/25)*5) + AAMC_Raw_Data_for_FY22[[#This Row],[25th]]","v":0},{"$f":"(((AAMC_Raw_Data_for_FY22[[#This Row],[Median]]-AAMC_Raw_Data_for_FY22[[#This Row],[25th]])/25)*10) + AAMC_Raw_Data_for_FY22[[#This Row],[25th]]","v":0},{"$f":"(((AAMC_Raw_Data_for_FY22[[#This Row],[Median]]-AAMC_Raw_Data_for_FY22[[#This Row],[25th]])/25)*15) + AAMC_Raw_Data_for_FY22[[#This Row],[25th]]","v":0},{"$f":"(((AAMC_Raw_Data_for_FY22[[#This Row],[Median]]-AAMC_Raw_Data_for_FY22[[#This Row],[25th]])/25)*20) + AAMC_Raw_Data_for_FY22[[#This Row],[25th]]","v":0},null,{"$f":"(((AAMC_Raw_Data_for_FY22[[#This Row],[75th]]-AAMC_Raw_Data_for_FY22[[#This Row],[Median]])/25)*5) + AAMC_Raw_Data_for_FY22[[#This Row],[Median]]","v":0},{"$f":"(((AAMC_Raw_Data_for_FY22[[#This Row],[75th]]-AAMC_Raw_Data_for_FY22[[#This Row],[Median]])/25)*10) + AAMC_Raw_Data_for_FY22[[#This Row],[Median]]","v":0},{"$f":"(((AAMC_Raw_Data_for_FY22[[#This Row],[75th]]-AAMC_Raw_Data_for_FY22[[#This Row],[Median]])/25)*15) + AAMC_Raw_Data_for_FY22[[#This Row],[Median]]","v":0},{"$f":"(((AAMC_Raw_Data_for_FY22[[#This Row],[75th]]-AAMC_Raw_Data_for_FY22[[#This Row],[Median]])/25)*20) + AAMC_Raw_Data_for_FY22[[#This Row],[Median]]","v":0},null,{"$f":"(((AAMC_Raw_Data_for_FY22[[#This Row],[75th]]-AAMC_Raw_Data_for_FY22[[#This Row],[Median]])/25)*30) + AAMC_Raw_Data_for_FY22[[#This Row],[Median]]","v":0},{"$f":"(((AAMC_Raw_Data_for_FY22[[#This Row],[75th]]-AAMC_Raw_Data_for_FY22[[#This Row],[Median]])/25)*35) + AAMC_Raw_Data_for_FY22[[#This Row],[Median]]","v":0},{"$f":"(((AAMC_Raw_Data_for_FY22[[#This Row],[75th]]-AAMC_Raw_Data_for_FY22[[#This Row],[Median]])/25)*40) + AAMC_Raw_Data_for_FY22[[#This Row],[Median]]","v":0}]
[{"$f":"AAMC_Raw_Data_for_FY22[[#This Row],[Source]]&AAMC_Raw_Data_for_FY22[[#This Row],[Type]]&AAMC_Raw_Data_for_FY22[[#This Row],[School Subset]]&AAMC_Raw_Data_for_FY22[[#This Row],[Rank]]&AAMC_Raw_Data_for_FY22[[#This Row],[Degree]]&AAMC_Raw_Data_for_FY22[[#This Row],[Department / Specialty]]&\"L\"","v":"AAMCAcademicPrivateChairPhDBioethics/Medical HumanitiesL"},"Bioethics/Medical Humanities",1,"AAMC","Academic","Private","Chair","PhD","2021-2022",null,{"$f":"(((AAMC_Raw_Data_for_FY22[[#This Row],[Median]]-AAMC_Raw_Data_for_FY22[[#This Row],[25th]])/25)*5) + AAMC_Raw_Data_for_FY22[[#This Row],[25th]]","v":0},{"$f":"(((AAMC_Raw_Data_for_FY22[[#This Row],[Median]]-AAMC_Raw_Data_for_FY22[[#This Row],[25th]])/25)*10) + AAMC_Raw_Data_for_FY22[[#This Row],[25th]]","v":0},{"$f":"(((AAMC_Raw_Data_for_FY22[[#This Row],[Median]]-AAMC_Raw_Data_for_FY22[[#This Row],[25th]])/25)*15) + AAMC_Raw_Data_for_FY22[[#This Row],[25th]]","v":0},{"$f":"(((AAMC_Raw_Data_for_FY22[[#This Row],[Median]]-AAMC_Raw_Data_for_FY22[[#This Row],[25th]])/25)*20) + AAMC_Raw_Data_for_FY22[[#This Row],[25th]]","v":0},null,{"$f":"(((AAMC_Raw_Data_for_FY22[[#This Row],[75th]]-AAMC_Raw_Data_for_FY22[[#This Row],[Median]])/25)*5) + AAMC_Raw_Data_for_FY22[[#This Row],[Median]]","v":0},{"$f":"(((AAMC_Raw_Data_for_FY22[[#This Row],[75th]]-AAMC_Raw_Data_for_FY22[[#This Row],[Median]])/25)*10) + AAMC_Raw_Data_for_FY22[[#This Row],[Median]]","v":0},{"$f":"(((AAMC_Raw_Data_for_FY22[[#This Row],[75th]]-AAMC_Raw_Data_for_FY22[[#This Row],[Median]])/25)*15) + AAMC_Raw_Data_for_FY22[[#This Row],[Median]]","v":0},{"$f":"(((AAMC_Raw_Data_for_FY22[[#This Row],[75th]]-AAMC_Raw_Data_for_FY22[[#This Row],[Median]])/25)*20) + AAMC_Raw_Data_for_FY22[[#This Row],[Median]]","v":0},null,{"$f":"(((AAMC_Raw_Data_for_FY22[[#This Row],[75th]]-AAMC_Raw_Data_for_FY22[[#This Row],[Median]])/25)*30) + AAMC_Raw_Data_for_FY22[[#This Row],[Median]]","v":0},{"$f":"(((AAMC_Raw_Data_for_FY22[[#This Row],[75th]]-AAMC_Raw_Data_for_FY22[[#This Row],[Median]])/25)*35) + AAMC_Raw_Data_for_FY22[[#This Row],[Median]]","v":0},{"$f":"(((AAMC_Raw_Data_for_FY22[[#This Row],[75th]]-AAMC_Raw_Data_for_FY22[[#This Row],[Median]])/25)*40) + AAMC_Raw_Data_for_FY22[[#This Row],[Median]]","v":0}]
[{"$f":"AAMC_Raw_Data_for_FY22[[#This Row],[Source]]&AAMC_Raw_Data_for_FY22[[#This Row],[Type]]&AAMC_Raw_Data_for_FY22[[#This Row],[School Subset]]&AAMC_Raw_Data_for_FY22[[#This Row],[Rank]]&AAMC_Raw_Data_for_FY22[[#This Row],[Degree]]&AAMC_Raw_Data_for_FY22[[#This Row],[Department / Specialty]]&\"L\"","v":"AAMCAcademicPrivateInstructorPhDBiomedical InformaticsL"},"Biomedical Informatics",5,"AAMC","Academic","Private","Instructor","PhD","2021-2022",72500,{"$f":"(((AAMC_Raw_Data_for_FY22[[#This Row],[Median]]-AAMC_Raw_Data_for_FY22[[#This Row],[25th]])/25)*5) + AAMC_Raw_Data_for_FY22[[#This Row],[25th]]","v":75732},{"$f":"(((AAMC_Raw_Data_for_FY22[[#This Row],[Median]]-AAMC_Raw_Data_for_FY22[[#This Row],[25th]])/25)*10) + AAMC_Raw_Data_for_FY22[[#This Row],[25th]]","v":78964},{"$f":"(((AAMC_Raw_Data_for_FY22[[#This Row],[Median]]-AAMC_Raw_Data_for_FY22[[#This Row],[25th]])/25)*15) + AAMC_Raw_Data_for_FY22[[#This Row],[25th]]","v":82196},{"$f":"(((AAMC_Raw_Data_for_FY22[[#This Row],[Median]]-AAMC_Raw_Data_for_FY22[[#This Row],[25th]])/25)*20) + AAMC_Raw_Data_for_FY22[[#This Row],[25th]]","v":85428},88660,{"$f":"(((AAMC_Raw_Data_for_FY22[[#This Row],[75th]]-AAMC_Raw_Data_for_FY22[[#This Row],[Median]])/25)*5) + AAMC_Raw_Data_for_FY22[[#This Row],[Median]]","v":90798},{"$f":"(((AAMC_Raw_Data_for_FY22[[#This Row],[75th]]-AAMC_Raw_Data_for_FY22[[#This Row],[Median]])/25)*10) + AAMC_Raw_Data_for_FY22[[#This Row],[Median]]","v":92936},{"$f":"(((AAMC_Raw_Data_for_FY22[[#This Row],[75th]]-AAMC_Raw_Data_for_FY22[[#This Row],[Median]])/25)*15) + AAMC_Raw_Data_for_FY22[[#This Row],[Median]]","v":95074},{"$f":"(((AAMC_Raw_Data_for_FY22[[#This Row],[75th]]-AAMC_Raw_Data_for_FY22[[#This Row],[Median]])/25)*20) + AAMC_Raw_Data_for_FY22[[#This Row],[Median]]","v":97212},99350,{"$f":"(((AAMC_Raw_Data_for_FY22[[#This Row],[75th]]-AAMC_Raw_Data_for_FY22[[#This Row],[Median]])/25)*30) + AAMC_Raw_Data_for_FY22[[#This Row],[Median]]","v":101488},{"$f":"(((AAMC_Raw_Data_for_FY22[[#This Row],[75th]]-AAMC_Raw_Data_for_FY22[[#This Row],[Median]])/25)*35) + AAMC_Raw_Data_for_FY22[[#This Row],[Median]]","v":103626},{"$f":"(((AAMC_Raw_Data_for_FY22[[#This Row],[75th]]-AAMC_Raw_Data_for_FY22[[#This Row],[Median]])/25)*40) + AAMC_Raw_Data_for_FY22[[#This Row],[Median]]","v":105764}]
[{"$f":"AAMC_Raw_Data_for_FY22[[#This Row],[Source]]&AAMC_Raw_Data_for_FY22[[#This Row],[Type]]&AAMC_Raw_Data_for_FY22[[#This Row],[School Subset]]&AAMC_Raw_Data_for_FY22[[#This Row],[Rank]]&AAMC_Raw_Data_for_FY22[[#This Row],[Degree]]&AAMC_Raw_Data_for_FY22[[#This Row],[Department / Specialty]]&\"L\"","v":"AAMCAcademicPrivateAssistantPhDBiomedical InformaticsL"},"Biomedical Informatics",4,"AAMC","Academic","Private","Assistant","PhD","2021-2022",124376,{"$f":"(((AAMC_Raw_Data_for_FY22[[#This Row],[Median]]-AAMC_Raw_Data_for_FY22[[#This Row],[25th]])/25)*5) + AAMC_Raw_Data_for_FY22[[#This Row],[25th]]","v":127900.8},{"$f":"(((AAMC_Raw_Data_for_FY22[[#This Row],[Median]]-AAMC_Raw_Data_for_FY22[[#This Row],[25th]])/25)*10) + AAMC_Raw_Data_for_FY22[[#This Row],[25th]]","v":131425.60000000001},{"$f":"(((AAMC_Raw_Data_for_FY22[[#This Row],[Median]]-AAMC_Raw_Data_for_FY22[[#This Row],[25th]])/25)*15) + AAMC_Raw_Data_for_FY22[[#This Row],[25th]]","v":134950.39999999999},{"$f":"(((AAMC_Raw_Data_for_FY22[[#This Row],[Median]]-AAMC_Raw_Data_for_FY22[[#This Row],[25th]])/25)*20) + AAMC_Raw_Data_for_FY22[[#This Row],[25th]]","v":138475.20000000001},142000,{"$f":"(((AAMC_Raw_Data_for_FY22[[#This Row],[75th]]-AAMC_Raw_Data_for_FY22[[#This Row],[Median]])/25)*5) + AAMC_Raw_Data_for_FY22[[#This Row],[Median]]","v":145852.6},{"$f":"(((AAMC_Raw_Data_for_FY22[[#This Row],[75th]]-AAMC_Raw_Data_for_FY22[[#This Row],[Median]])/25)*10) + AAMC_Raw_Data_for_FY22[[#This Row],[Median]]","v":149705.20000000001},{"$f":"(((AAMC_Raw_Data_for_FY22[[#This Row],[75th]]-AAMC_Raw_Data_for_FY22[[#This Row],[Median]])/25)*15) + AAMC_Raw_Data_for_FY22[[#This Row],[Median]]","v":153557.79999999999},{"$f":"(((AAMC_Raw_Data_for_FY22[[#This Row],[75th]]-AAMC_Raw_Data_for_FY22[[#This Row],[Median]])/25)*20) + AAMC_Raw_Data_for_FY22[[#This Row],[Median]]","v":157410.4},161263,{"$f":"(((AAMC_Raw_Data_for_FY22[[#This Row],[75th]]-AAMC_Raw_Data_for_FY22[[#This Row],[Median]])/25)*30) + AAMC_Raw_Data_for_FY22[[#This Row],[Median]]","v":165115.6},{"$f":"(((AAMC_Raw_Data_for_FY22[[#This Row],[75th]]-AAMC_Raw_Data_for_FY22[[#This Row],[Median]])/25)*35) + AAMC_Raw_Data_for_FY22[[#This Row],[Median]]","v":168968.2},{"$f":"(((AAMC_Raw_Data_for_FY22[[#This Row],[75th]]-AAMC_Raw_Data_for_FY22[[#This Row],[Median]])/25)*40) + AAMC_Raw_Data_for_FY22[[#This Row],[Median]]","v":172820.8}]
[{"$f":"AAMC_Raw_Data_for_FY22[[#This Row],[Source]]&AAMC_Raw_Data_for_FY22[[#This Row],[Type]]&AAMC_Raw_Data_for_FY22[[#This Row],[School Subset]]&AAMC_Raw_Data_for_FY22[[#This Row],[Rank]]&AAMC_Raw_Data_for_FY22[[#This Row],[Degree]]&AAMC_Raw_Data_for_FY22[[#This Row],[Department / Specialty]]&\"L\"","v":"AAMCAcademicPrivateAssociatePhDBiomedical InformaticsL"},"Biomedical Informatics",3,"AAMC","Academic","Private","Associate","PhD","2021-2022",156397,{"$f":"(((AAMC_Raw_Data_for_FY22[[#This Row],[Median]]-AAMC_Raw_Data_for_FY22[[#This Row],[25th]])/25)*5) + AAMC_Raw_Data_for_FY22[[#This Row],[25th]]","v":160395.79999999999},{"$f":"(((AAMC_Raw_Data_for_FY22[[#This Row],[Median]]-AAMC_Raw_Data_for_FY22[[#This Row],[25th]])/25)*10) + AAMC_Raw_Data_for_FY22[[#This Row],[25th]]","v":164394.6},{"$f":"(((AAMC_Raw_Data_for_FY22[[#This Row],[Median]]-AAMC_Raw_Data_for_FY22[[#This Row],[25th]])/25)*15) + AAMC_Raw_Data_for_FY22[[#This Row],[25th]]","v":168393.4},{"$f":"(((AAMC_Raw_Data_for_FY22[[#This Row],[Median]]-AAMC_Raw_Data_for_FY22[[#This Row],[25th]])/25)*20) + AAMC_Raw_Data_for_FY22[[#This Row],[25th]]","v":172392.2},176391,{"$f":"(((AAMC_Raw_Data_for_FY22[[#This Row],[75th]]-AAMC_Raw_Data_for_FY22[[#This Row],[Median]])/25)*5) + AAMC_Raw_Data_for_FY22[[#This Row],[Median]]","v":181121.2},{"$f":"(((AAMC_Raw_Data_for_FY22[[#This Row],[75th]]-AAMC_Raw_Data_for_FY22[[#This Row],[Median]])/25)*10) + AAMC_Raw_Data_for_FY22[[#This Row],[Median]]","v":185851.4},{"$f":"(((AAMC_Raw_Data_for_FY22[[#This Row],[75th]]-AAMC_Raw_Data_for_FY22[[#This Row],[Median]])/25)*15) + AAMC_Raw_Data_for_FY22[[#This Row],[Median]]","v":190581.6},{"$f":"(((AAMC_Raw_Data_for_FY22[[#This Row],[75th]]-AAMC_Raw_Data_for_FY22[[#This Row],[Median]])/25)*20) + AAMC_Raw_Data_for_FY22[[#This Row],[Median]]","v":195311.8},200042,{"$f":"(((AAMC_Raw_Data_for_FY22[[#This Row],[75th]]-AAMC_Raw_Data_for_FY22[[#This Row],[Median]])/25)*30) + AAMC_Raw_Data_for_FY22[[#This Row],[Median]]","v":204772.2},{"$f":"(((AAMC_Raw_Data_for_FY22[[#This Row],[75th]]-AAMC_Raw_Data_for_FY22[[#This Row],[Median]])/25)*35) + AAMC_Raw_Data_for_FY22[[#This Row],[Median]]","v":209502.4},{"$f":"(((AAMC_Raw_Data_for_FY22[[#This Row],[75th]]-AAMC_Raw_Data_for_FY22[[#This Row],[Median]])/25)*40) + AAMC_Raw_Data_for_FY22[[#This Row],[Median]]","v":214232.6}]
[{"$f":"AAMC_Raw_Data_for_FY22[[#This Row],[Source]]&AAMC_Raw_Data_for_FY22[[#This Row],[Type]]&AAMC_Raw_Data_for_FY22[[#This Row],[School Subset]]&AAMC_Raw_Data_for_FY22[[#This Row],[Rank]]&AAMC_Raw_Data_for_FY22[[#This Row],[Degree]]&AAMC_Raw_Data_for_FY22[[#This Row],[Department / Specialty]]&\"L\"","v":"AAMCAcademicPrivateProfessorPhDBiomedical InformaticsL"},"Biomedical Informatics",2,"AAMC","Academic","Private","Professor","PhD","2021-2022",217353,{"$f":"(((AAMC_Raw_Data_for_FY22[[#This Row],[Median]]-AAMC_Raw_Data_for_FY22[[#This Row],[25th]])/25)*5) + AAMC_Raw_Data_for_FY22[[#This Row],[25th]]","v":228584},{"$f":"(((AAMC_Raw_Data_for_FY22[[#This Row],[Median]]-AAMC_Raw_Data_for_FY22[[#This Row],[25th]])/25)*10) + AAMC_Raw_Data_for_FY22[[#This Row],[25th]]","v":239815},{"$f":"(((AAMC_Raw_Data_for_FY22[[#This Row],[Median]]-AAMC_Raw_Data_for_FY22[[#This Row],[25th]])/25)*15) + AAMC_Raw_Data_for_FY22[[#This Row],[25th]]","v":251046},{"$f":"(((AAMC_Raw_Data_for_FY22[[#This Row],[Median]]-AAMC_Raw_Data_for_FY22[[#This Row],[25th]])/25)*20) + AAMC_Raw_Data_for_FY22[[#This Row],[25th]]","v":262277},273508,{"$f":"(((AAMC_Raw_Data_for_FY22[[#This Row],[75th]]-AAMC_Raw_Data_for_FY22[[#This Row],[Median]])/25)*5) + AAMC_Raw_Data_for_FY22[[#This Row],[Median]]","v":283888},{"$f":"(((AAMC_Raw_Data_for_FY22[[#This Row],[75th]]-AAMC_Raw_Data_for_FY22[[#This Row],[Median]])/25)*10) + AAMC_Raw_Data_for_FY22[[#This Row],[Median]]","v":294268},{"$f":"(((AAMC_Raw_Data_for_FY22[[#This Row],[75th]]-AAMC_Raw_Data_for_FY22[[#This Row],[Median]])/25)*15) + AAMC_Raw_Data_for_FY22[[#This Row],[Median]]","v":304648},{"$f":"(((AAMC_Raw_Data_for_FY22[[#This Row],[75th]]-AAMC_Raw_Data_for_FY22[[#This Row],[Median]])/25)*20) + AAMC_Raw_Data_for_FY22[[#This Row],[Median]]","v":315028},325408,{"$f":"(((AAMC_Raw_Data_for_FY22[[#This Row],[75th]]-AAMC_Raw_Data_for_FY22[[#This Row],[Median]])/25)*30) + AAMC_Raw_Data_for_FY22[[#This Row],[Median]]","v":335788},{"$f":"(((AAMC_Raw_Data_for_FY22[[#This Row],[75th]]-AAMC_Raw_Data_for_FY22[[#This Row],[Median]])/25)*35) + AAMC_Raw_Data_for_FY22[[#This Row],[Median]]","v":346168},{"$f":"(((AAMC_Raw_Data_for_FY22[[#This Row],[75th]]-AAMC_Raw_Data_for_FY22[[#This Row],[Median]])/25)*40) + AAMC_Raw_Data_for_FY22[[#This Row],[Median]]","v":356548}]
[{"$f":"AAMC_Raw_Data_for_FY22[[#This Row],[Source]]&AAMC_Raw_Data_for_FY22[[#This Row],[Type]]&AAMC_Raw_Data_for_FY22[[#This Row],[School Subset]]&AAMC_Raw_Data_for_FY22[[#This Row],[Rank]]&AAMC_Raw_Data_for_FY22[[#This Row],[Degree]]&AAMC_Raw_Data_for_FY22[[#This Row],[Department / Specialty]]&\"L\"","v":"AAMCAcademicPrivateChiefPhDBiomedical InformaticsL"},"Biomedical Informatics",6,"AAMC","Academic","Private","Chief","PhD","2021-2022",null,{"$f":"(((AAMC_Raw_Data_for_FY22[[#This Row],[Median]]-AAMC_Raw_Data_for_FY22[[#This Row],[25th]])/25)*5) + AAMC_Raw_Data_for_FY22[[#This Row],[25th]]","v":0},{"$f":"(((AAMC_Raw_Data_for_FY22[[#This Row],[Median]]-AAMC_Raw_Data_for_FY22[[#This Row],[25th]])/25)*10) + AAMC_Raw_Data_for_FY22[[#This Row],[25th]]","v":0},{"$f":"(((AAMC_Raw_Data_for_FY22[[#This Row],[Median]]-AAMC_Raw_Data_for_FY22[[#This Row],[25th]])/25)*15) + AAMC_Raw_Data_for_FY22[[#This Row],[25th]]","v":0},{"$f":"(((AAMC_Raw_Data_for_FY22[[#This Row],[Median]]-AAMC_Raw_Data_for_FY22[[#This Row],[25th]])/25)*20) + AAMC_Raw_Data_for_FY22[[#This Row],[25th]]","v":0},null,{"$f":"(((AAMC_Raw_Data_for_FY22[[#This Row],[75th]]-AAMC_Raw_Data_for_FY22[[#This Row],[Median]])/25)*5) + AAMC_Raw_Data_for_FY22[[#This Row],[Median]]","v":0},{"$f":"(((AAMC_Raw_Data_for_FY22[[#This Row],[75th]]-AAMC_Raw_Data_for_FY22[[#This Row],[Median]])/25)*10) + AAMC_Raw_Data_for_FY22[[#This Row],[Median]]","v":0},{"$f":"(((AAMC_Raw_Data_for_FY22[[#This Row],[75th]]-AAMC_Raw_Data_for_FY22[[#This Row],[Median]])/25)*15) + AAMC_Raw_Data_for_FY22[[#This Row],[Median]]","v":0},{"$f":"(((AAMC_Raw_Data_for_FY22[[#This Row],[75th]]-AAMC_Raw_Data_for_FY22[[#This Row],[Median]])/25)*20) + AAMC_Raw_Data_for_FY22[[#This Row],[Median]]","v":0},null,{"$f":"(((AAMC_Raw_Data_for_FY22[[#This Row],[75th]]-AAMC_Raw_Data_for_FY22[[#This Row],[Median]])/25)*30) + AAMC_Raw_Data_for_FY22[[#This Row],[Median]]","v":0},{"$f":"(((AAMC_Raw_Data_for_FY22[[#This Row],[75th]]-AAMC_Raw_Data_for_FY22[[#This Row],[Median]])/25)*35) + AAMC_Raw_Data_for_FY22[[#This Row],[Median]]","v":0},{"$f":"(((AAMC_Raw_Data_for_FY22[[#This Row],[75th]]-AAMC_Raw_Data_for_FY22[[#This Row],[Median]])/25)*40) + AAMC_Raw_Data_for_FY22[[#This Row],[Median]]","v":0}]
[{"$f":"AAMC_Raw_Data_for_FY22[[#This Row],[Source]]&AAMC_Raw_Data_for_FY22[[#This Row],[Type]]&AAMC_Raw_Data_for_FY22[[#This Row],[School Subset]]&AAMC_Raw_Data_for_FY22[[#This Row],[Rank]]&AAMC_Raw_Data_for_FY22[[#This Row],[Degree]]&AAMC_Raw_Data_for_FY22[[#This Row],[Department / Specialty]]&\"L\"","v":"AAMCAcademicPrivateChairPhDBiomedical InformaticsL"},"Biomedical Informatics",1,"AAMC","Academic","Private","Chair","PhD","2021-2022",306866,{"$f":"(((AAMC_Raw_Data_for_FY22[[#This Row],[Median]]-AAMC_Raw_Data_for_FY22[[#This Row],[25th]])/25)*5) + AAMC_Raw_Data_for_FY22[[#This Row],[25th]]","v":315054},{"$f":"(((AAMC_Raw_Data_for_FY22[[#This Row],[Median]]-AAMC_Raw_Data_for_FY22[[#This Row],[25th]])/25)*10) + AAMC_Raw_Data_for_FY22[[#This Row],[25th]]","v":323242},{"$f":"(((AAMC_Raw_Data_for_FY22[[#This Row],[Median]]-AAMC_Raw_Data_for_FY22[[#This Row],[25th]])/25)*15) + AAMC_Raw_Data_for_FY22[[#This Row],[25th]]","v":331430},{"$f":"(((AAMC_Raw_Data_for_FY22[[#This Row],[Median]]-AAMC_Raw_Data_for_FY22[[#This Row],[25th]])/25)*20) + AAMC_Raw_Data_for_FY22[[#This Row],[25th]]","v":339618},347806,{"$f":"(((AAMC_Raw_Data_for_FY22[[#This Row],[75th]]-AAMC_Raw_Data_for_FY22[[#This Row],[Median]])/25)*5) + AAMC_Raw_Data_for_FY22[[#This Row],[Median]]","v":362855.2},{"$f":"(((AAMC_Raw_Data_for_FY22[[#This Row],[75th]]-AAMC_Raw_Data_for_FY22[[#This Row],[Median]])/25)*10) + AAMC_Raw_Data_for_FY22[[#This Row],[Median]]","v":377904.4},{"$f":"(((AAMC_Raw_Data_for_FY22[[#This Row],[75th]]-AAMC_Raw_Data_for_FY22[[#This Row],[Median]])/25)*15) + AAMC_Raw_Data_for_FY22[[#This Row],[Median]]","v":392953.59999999998},{"$f":"(((AAMC_Raw_Data_for_FY22[[#This Row],[75th]]-AAMC_Raw_Data_for_FY22[[#This Row],[Median]])/25)*20) + AAMC_Raw_Data_for_FY22[[#This Row],[Median]]","v":408002.8},423052,{"$f":"(((AAMC_Raw_Data_for_FY22[[#This Row],[75th]]-AAMC_Raw_Data_for_FY22[[#This Row],[Median]])/25)*30) + AAMC_Raw_Data_for_FY22[[#This Row],[Median]]","v":438101.2},{"$f":"(((AAMC_Raw_Data_for_FY22[[#This Row],[75th]]-AAMC_Raw_Data_for_FY22[[#This Row],[Median]])/25)*35) + AAMC_Raw_Data_for_FY22[[#This Row],[Median]]","v":453150.4},{"$f":"(((AAMC_Raw_Data_for_FY22[[#This Row],[75th]]-AAMC_Raw_Data_for_FY22[[#This Row],[Median]])/25)*40) + AAMC_Raw_Data_for_FY22[[#This Row],[Median]]","v":468199.6}]
[{"$f":"AAMC_Raw_Data_for_FY22[[#This Row],[Source]]&AAMC_Raw_Data_for_FY22[[#This Row],[Type]]&AAMC_Raw_Data_for_FY22[[#This Row],[School Subset]]&AAMC_Raw_Data_for_FY22[[#This Row],[Rank]]&AAMC_Raw_Data_for_FY22[[#This Row],[Degree]]&AAMC_Raw_Data_for_FY22[[#This Row],[Department / Specialty]]&\"L\"","v":"AAMCAcademicPrivateInstructorPhDBiostatisticsL"},"Biostatistics",5,"AAMC","Academic","Private","Instructor","PhD","2021-2022",93725,{"$f":"(((AAMC_Raw_Data_for_FY22[[#This Row],[Median]]-AAMC_Raw_Data_for_FY22[[#This Row],[25th]])/25)*5) + AAMC_Raw_Data_for_FY22[[#This Row],[25th]]","v":96476},{"$f":"(((AAMC_Raw_Data_for_FY22[[#This Row],[Median]]-AAMC_Raw_Data_for_FY22[[#This Row],[25th]])/25)*10) + AAMC_Raw_Data_for_FY22[[#This Row],[25th]]","v":99227},{"$f":"(((AAMC_Raw_Data_for_FY22[[#This Row],[Median]]-AAMC_Raw_Data_for_FY22[[#This Row],[25th]])/25)*15) + AAMC_Raw_Data_for_FY22[[#This Row],[25th]]","v":101978},{"$f":"(((AAMC_Raw_Data_for_FY22[[#This Row],[Median]]-AAMC_Raw_Data_for_FY22[[#This Row],[25th]])/25)*20) + AAMC_Raw_Data_for_FY22[[#This Row],[25th]]","v":104729},107480,{"$f":"(((AAMC_Raw_Data_for_FY22[[#This Row],[75th]]-AAMC_Raw_Data_for_FY22[[#This Row],[Median]])/25)*5) + AAMC_Raw_Data_for_FY22[[#This Row],[Median]]","v":108162.4},{"$f":"(((AAMC_Raw_Data_for_FY22[[#This Row],[75th]]-AAMC_Raw_Data_for_FY22[[#This Row],[Median]])/25)*10) + AAMC_Raw_Data_for_FY22[[#This Row],[Median]]","v":108844.8},{"$f":"(((AAMC_Raw_Data_for_FY22[[#This Row],[75th]]-AAMC_Raw_Data_for_FY22[[#This Row],[Median]])/25)*15) + AAMC_Raw_Data_for_FY22[[#This Row],[Median]]","v":109527.2},{"$f":"(((AAMC_Raw_Data_for_FY22[[#This Row],[75th]]-AAMC_Raw_Data_for_FY22[[#This Row],[Median]])/25)*20) + AAMC_Raw_Data_for_FY22[[#This Row],[Median]]","v":110209.60000000001},110892,{"$f":"(((AAMC_Raw_Data_for_FY22[[#This Row],[75th]]-AAMC_Raw_Data_for_FY22[[#This Row],[Median]])/25)*30) + AAMC_Raw_Data_for_FY22[[#This Row],[Median]]","v":111574.39999999999},{"$f":"(((AAMC_Raw_Data_for_FY22[[#This Row],[75th]]-AAMC_Raw_Data_for_FY22[[#This Row],[Median]])/25)*35) + AAMC_Raw_Data_for_FY22[[#This Row],[Median]]","v":112256.8},{"$f":"(((AAMC_Raw_Data_for_FY22[[#This Row],[75th]]-AAMC_Raw_Data_for_FY22[[#This Row],[Median]])/25)*40) + AAMC_Raw_Data_for_FY22[[#This Row],[Median]]","v":112939.2}]
[{"$f":"AAMC_Raw_Data_for_FY22[[#This Row],[Source]]&AAMC_Raw_Data_for_FY22[[#This Row],[Type]]&AAMC_Raw_Data_for_FY22[[#This Row],[School Subset]]&AAMC_Raw_Data_for_FY22[[#This Row],[Rank]]&AAMC_Raw_Data_for_FY22[[#This Row],[Degree]]&AAMC_Raw_Data_for_FY22[[#This Row],[Department / Specialty]]&\"L\"","v":"AAMCAcademicPrivateAssistantPhDBiostatisticsL"},"Biostatistics",4,"AAMC","Academic","Private","Assistant","PhD","2021-2022",125145,{"$f":"(((AAMC_Raw_Data_for_FY22[[#This Row],[Median]]-AAMC_Raw_Data_for_FY22[[#This Row],[25th]])/25)*5) + AAMC_Raw_Data_for_FY22[[#This Row],[25th]]","v":126857.8},{"$f":"(((AAMC_Raw_Data_for_FY22[[#This Row],[Median]]-AAMC_Raw_Data_for_FY22[[#This Row],[25th]])/25)*10) + AAMC_Raw_Data_for_FY22[[#This Row],[25th]]","v":128570.6},{"$f":"(((AAMC_Raw_Data_for_FY22[[#This Row],[Median]]-AAMC_Raw_Data_for_FY22[[#This Row],[25th]])/25)*15) + AAMC_Raw_Data_for_FY22[[#This Row],[25th]]","v":130283.4},{"$f":"(((AAMC_Raw_Data_for_FY22[[#This Row],[Median]]-AAMC_Raw_Data_for_FY22[[#This Row],[25th]])/25)*20) + AAMC_Raw_Data_for_FY22[[#This Row],[25th]]","v":131996.20000000001},133709,{"$f":"(((AAMC_Raw_Data_for_FY22[[#This Row],[75th]]-AAMC_Raw_Data_for_FY22[[#This Row],[Median]])/25)*5) + AAMC_Raw_Data_for_FY22[[#This Row],[Median]]","v":135943.20000000001},{"$f":"(((AAMC_Raw_Data_for_FY22[[#This Row],[75th]]-AAMC_Raw_Data_for_FY22[[#This Row],[Median]])/25)*10) + AAMC_Raw_Data_for_FY22[[#This Row],[Median]]","v":138177.4},{"$f":"(((AAMC_Raw_Data_for_FY22[[#This Row],[75th]]-AAMC_Raw_Data_for_FY22[[#This Row],[Median]])/25)*15) + AAMC_Raw_Data_for_FY22[[#This Row],[Median]]","v":140411.6},{"$f":"(((AAMC_Raw_Data_for_FY22[[#This Row],[75th]]-AAMC_Raw_Data_for_FY22[[#This Row],[Median]])/25)*20) + AAMC_Raw_Data_for_FY22[[#This Row],[Median]]","v":142645.79999999999},144880,{"$f":"(((AAMC_Raw_Data_for_FY22[[#This Row],[75th]]-AAMC_Raw_Data_for_FY22[[#This Row],[Median]])/25)*30) + AAMC_Raw_Data_for_FY22[[#This Row],[Median]]","v":147114.20000000001},{"$f":"(((AAMC_Raw_Data_for_FY22[[#This Row],[75th]]-AAMC_Raw_Data_for_FY22[[#This Row],[Median]])/25)*35) + AAMC_Raw_Data_for_FY22[[#This Row],[Median]]","v":149348.4},{"$f":"(((AAMC_Raw_Data_for_FY22[[#This Row],[75th]]-AAMC_Raw_Data_for_FY22[[#This Row],[Median]])/25)*40) + AAMC_Raw_Data_for_FY22[[#This Row],[Median]]","v":151582.6}]
[{"$f":"AAMC_Raw_Data_for_FY22[[#This Row],[Source]]&AAMC_Raw_Data_for_FY22[[#This Row],[Type]]&AAMC_Raw_Data_for_FY22[[#This Row],[School Subset]]&AAMC_Raw_Data_for_FY22[[#This Row],[Rank]]&AAMC_Raw_Data_for_FY22[[#This Row],[Degree]]&AAMC_Raw_Data_for_FY22[[#This Row],[Department / Specialty]]&\"L\"","v":"AAMCAcademicPrivateAssociatePhDBiostatisticsL"},"Biostatistics",3,"AAMC","Academic","Private","Associate","PhD","2021-2022",149528,{"$f":"(((AAMC_Raw_Data_for_FY22[[#This Row],[Median]]-AAMC_Raw_Data_for_FY22[[#This Row],[25th]])/25)*5) + AAMC_Raw_Data_for_FY22[[#This Row],[25th]]","v":153421.4},{"$f":"(((AAMC_Raw_Data_for_FY22[[#This Row],[Median]]-AAMC_Raw_Data_for_FY22[[#This Row],[25th]])/25)*10) + AAMC_Raw_Data_for_FY22[[#This Row],[25th]]","v":157314.79999999999},{"$f":"(((AAMC_Raw_Data_for_FY22[[#This Row],[Median]]-AAMC_Raw_Data_for_FY22[[#This Row],[25th]])/25)*15) + AAMC_Raw_Data_for_FY22[[#This Row],[25th]]","v":161208.20000000001},{"$f":"(((AAMC_Raw_Data_for_FY22[[#This Row],[Median]]-AAMC_Raw_Data_for_FY22[[#This Row],[25th]])/25)*20) + AAMC_Raw_Data_for_FY22[[#This Row],[25th]]","v":165101.6},168995,{"$f":"(((AAMC_Raw_Data_for_FY22[[#This Row],[75th]]-AAMC_Raw_Data_for_FY22[[#This Row],[Median]])/25)*5) + AAMC_Raw_Data_for_FY22[[#This Row],[Median]]","v":172973.6},{"$f":"(((AAMC_Raw_Data_for_FY22[[#This Row],[75th]]-AAMC_Raw_Data_for_FY22[[#This Row],[Median]])/25)*10) + AAMC_Raw_Data_for_FY22[[#This Row],[Median]]","v":176952.2},{"$f":"(((AAMC_Raw_Data_for_FY22[[#This Row],[75th]]-AAMC_Raw_Data_for_FY22[[#This Row],[Median]])/25)*15) + AAMC_Raw_Data_for_FY22[[#This Row],[Median]]","v":180930.8},{"$f":"(((AAMC_Raw_Data_for_FY22[[#This Row],[75th]]-AAMC_Raw_Data_for_FY22[[#This Row],[Median]])/25)*20) + AAMC_Raw_Data_for_FY22[[#This Row],[Median]]","v":184909.4},188888,{"$f":"(((AAMC_Raw_Data_for_FY22[[#This Row],[75th]]-AAMC_Raw_Data_for_FY22[[#This Row],[Median]])/25)*30) + AAMC_Raw_Data_for_FY22[[#This Row],[Median]]","v":192866.6},{"$f":"(((AAMC_Raw_Data_for_FY22[[#This Row],[75th]]-AAMC_Raw_Data_for_FY22[[#This Row],[Median]])/25)*35) + AAMC_Raw_Data_for_FY22[[#This Row],[Median]]","v":196845.2},{"$f":"(((AAMC_Raw_Data_for_FY22[[#This Row],[75th]]-AAMC_Raw_Data_for_FY22[[#This Row],[Median]])/25)*40) + AAMC_Raw_Data_for_FY22[[#This Row],[Median]]","v":200823.8}]
[{"$f":"AAMC_Raw_Data_for_FY22[[#This Row],[Source]]&AAMC_Raw_Data_for_FY22[[#This Row],[Type]]&AAMC_Raw_Data_for_FY22[[#This Row],[School Subset]]&AAMC_Raw_Data_for_FY22[[#This Row],[Rank]]&AAMC_Raw_Data_for_FY22[[#This Row],[Degree]]&AAMC_Raw_Data_for_FY22[[#This Row],[Department / Specialty]]&\"L\"","v":"AAMCAcademicPrivateProfessorPhDBiostatisticsL"},"Biostatistics",2,"AAMC","Academic","Private","Professor","PhD","2021-2022",213536,{"$f":"(((AAMC_Raw_Data_for_FY22[[#This Row],[Median]]-AAMC_Raw_Data_for_FY22[[#This Row],[25th]])/25)*5) + AAMC_Raw_Data_for_FY22[[#This Row],[25th]]","v":219638.2},{"$f":"(((AAMC_Raw_Data_for_FY22[[#This Row],[Median]]-AAMC_Raw_Data_for_FY22[[#This Row],[25th]])/25)*10) + AAMC_Raw_Data_for_FY22[[#This Row],[25th]]","v":225740.4},{"$f":"(((AAMC_Raw_Data_for_FY22[[#This Row],[Median]]-AAMC_Raw_Data_for_FY22[[#This Row],[25th]])/25)*15) + AAMC_Raw_Data_for_FY22[[#This Row],[25th]]","v":231842.6},{"$f":"(((AAMC_Raw_Data_for_FY22[[#This Row],[Median]]-AAMC_Raw_Data_for_FY22[[#This Row],[25th]])/25)*20) + AAMC_Raw_Data_for_FY22[[#This Row],[25th]]","v":237944.8},244047,{"$f":"(((AAMC_Raw_Data_for_FY22[[#This Row],[75th]]-AAMC_Raw_Data_for_FY22[[#This Row],[Median]])/25)*5) + AAMC_Raw_Data_for_FY22[[#This Row],[Median]]","v":253501},{"$f":"(((AAMC_Raw_Data_for_FY22[[#This Row],[75th]]-AAMC_Raw_Data_for_FY22[[#This Row],[Median]])/25)*10) + AAMC_Raw_Data_for_FY22[[#This Row],[Median]]","v":262955},{"$f":"(((AAMC_Raw_Data_for_FY22[[#This Row],[75th]]-AAMC_Raw_Data_for_FY22[[#This Row],[Median]])/25)*15) + AAMC_Raw_Data_for_FY22[[#This Row],[Median]]","v":272409},{"$f":"(((AAMC_Raw_Data_for_FY22[[#This Row],[75th]]-AAMC_Raw_Data_for_FY22[[#This Row],[Median]])/25)*20) + AAMC_Raw_Data_for_FY22[[#This Row],[Median]]","v":281863},291317,{"$f":"(((AAMC_Raw_Data_for_FY22[[#This Row],[75th]]-AAMC_Raw_Data_for_FY22[[#This Row],[Median]])/25)*30) + AAMC_Raw_Data_for_FY22[[#This Row],[Median]]","v":300771},{"$f":"(((AAMC_Raw_Data_for_FY22[[#This Row],[75th]]-AAMC_Raw_Data_for_FY22[[#This Row],[Median]])/25)*35) + AAMC_Raw_Data_for_FY22[[#This Row],[Median]]","v":310225},{"$f":"(((AAMC_Raw_Data_for_FY22[[#This Row],[75th]]-AAMC_Raw_Data_for_FY22[[#This Row],[Median]])/25)*40) + AAMC_Raw_Data_for_FY22[[#This Row],[Median]]","v":319679}]
[{"$f":"AAMC_Raw_Data_for_FY22[[#This Row],[Source]]&AAMC_Raw_Data_for_FY22[[#This Row],[Type]]&AAMC_Raw_Data_for_FY22[[#This Row],[School Subset]]&AAMC_Raw_Data_for_FY22[[#This Row],[Rank]]&AAMC_Raw_Data_for_FY22[[#This Row],[Degree]]&AAMC_Raw_Data_for_FY22[[#This Row],[Department / Specialty]]&\"L\"","v":"AAMCAcademicPrivateChiefPhDBiostatisticsL"},"Biostatistics",6,"AAMC","Academic","Private","Chief","PhD","2021-2022",null,{"$f":"(((AAMC_Raw_Data_for_FY22[[#This Row],[Median]]-AAMC_Raw_Data_for_FY22[[#This Row],[25th]])/25)*5) + AAMC_Raw_Data_for_FY22[[#This Row],[25th]]","v":0},{"$f":"(((AAMC_Raw_Data_for_FY22[[#This Row],[Median]]-AAMC_Raw_Data_for_FY22[[#This Row],[25th]])/25)*10) + AAMC_Raw_Data_for_FY22[[#This Row],[25th]]","v":0},{"$f":"(((AAMC_Raw_Data_for_FY22[[#This Row],[Median]]-AAMC_Raw_Data_for_FY22[[#This Row],[25th]])/25)*15) + AAMC_Raw_Data_for_FY22[[#This Row],[25th]]","v":0},{"$f":"(((AAMC_Raw_Data_for_FY22[[#This Row],[Median]]-AAMC_Raw_Data_for_FY22[[#This Row],[25th]])/25)*20) + AAMC_Raw_Data_for_FY22[[#This Row],[25th]]","v":0},null,{"$f":"(((AAMC_Raw_Data_for_FY22[[#This Row],[75th]]-AAMC_Raw_Data_for_FY22[[#This Row],[Median]])/25)*5) + AAMC_Raw_Data_for_FY22[[#This Row],[Median]]","v":0},{"$f":"(((AAMC_Raw_Data_for_FY22[[#This Row],[75th]]-AAMC_Raw_Data_for_FY22[[#This Row],[Median]])/25)*10) + AAMC_Raw_Data_for_FY22[[#This Row],[Median]]","v":0},{"$f":"(((AAMC_Raw_Data_for_FY22[[#This Row],[75th]]-AAMC_Raw_Data_for_FY22[[#This Row],[Median]])/25)*15) + AAMC_Raw_Data_for_FY22[[#This Row],[Median]]","v":0},{"$f":"(((AAMC_Raw_Data_for_FY22[[#This Row],[75th]]-AAMC_Raw_Data_for_FY22[[#This Row],[Median]])/25)*20) + AAMC_Raw_Data_for_FY22[[#This Row],[Median]]","v":0},null,{"$f":"(((AAMC_Raw_Data_for_FY22[[#This Row],[75th]]-AAMC_Raw_Data_for_FY22[[#This Row],[Median]])/25)*30) + AAMC_Raw_Data_for_FY22[[#This Row],[Median]]","v":0},{"$f":"(((AAMC_Raw_Data_for_FY22[[#This Row],[75th]]-AAMC_Raw_Data_for_FY22[[#This Row],[Median]])/25)*35) + AAMC_Raw_Data_for_FY22[[#This Row],[Median]]","v":0},{"$f":"(((AAMC_Raw_Data_for_FY22[[#This Row],[75th]]-AAMC_Raw_Data_for_FY22[[#This Row],[Median]])/25)*40) + AAMC_Raw_Data_for_FY22[[#This Row],[Median]]","v":0}]
[{"$f":"AAMC_Raw_Data_for_FY22[[#This Row],[Source]]&AAMC_Raw_Data_for_FY22[[#This Row],[Type]]&AAMC_Raw_Data_for_FY22[[#This Row],[School Subset]]&AAMC_Raw_Data_for_FY22[[#This Row],[Rank]]&AAMC_Raw_Data_for_FY22[[#This Row],[Degree]]&AAMC_Raw_Data_for_FY22[[#This Row],[Department / Specialty]]&\"L\"","v":"AAMCAcademicPrivateChairPhDBiostatisticsL"},"Biostatistics",1,"AAMC","Academic","Private","Chair","PhD","2021-2022",371551,{"$f":"(((AAMC_Raw_Data_for_FY22[[#This Row],[Median]]-AAMC_Raw_Data_for_FY22[[#This Row],[25th]])/25)*5) + AAMC_Raw_Data_for_FY22[[#This Row],[25th]]","v":372563.6},{"$f":"(((AAMC_Raw_Data_for_FY22[[#This Row],[Median]]-AAMC_Raw_Data_for_FY22[[#This Row],[25th]])/25)*10) + AAMC_Raw_Data_for_FY22[[#This Row],[25th]]","v":373576.2},{"$f":"(((AAMC_Raw_Data_for_FY22[[#This Row],[Median]]-AAMC_Raw_Data_for_FY22[[#This Row],[25th]])/25)*15) + AAMC_Raw_Data_for_FY22[[#This Row],[25th]]","v":374588.8},{"$f":"(((AAMC_Raw_Data_for_FY22[[#This Row],[Median]]-AAMC_Raw_Data_for_FY22[[#This Row],[25th]])/25)*20) + AAMC_Raw_Data_for_FY22[[#This Row],[25th]]","v":375601.4},376614,{"$f":"(((AAMC_Raw_Data_for_FY22[[#This Row],[75th]]-AAMC_Raw_Data_for_FY22[[#This Row],[Median]])/25)*5) + AAMC_Raw_Data_for_FY22[[#This Row],[Median]]","v":380556.79999999999},{"$f":"(((AAMC_Raw_Data_for_FY22[[#This Row],[75th]]-AAMC_Raw_Data_for_FY22[[#This Row],[Median]])/25)*10) + AAMC_Raw_Data_for_FY22[[#This Row],[Median]]","v":384499.6},{"$f":"(((AAMC_Raw_Data_for_FY22[[#This Row],[75th]]-AAMC_Raw_Data_for_FY22[[#This Row],[Median]])/25)*15) + AAMC_Raw_Data_for_FY22[[#This Row],[Median]]","v":388442.4},{"$f":"(((AAMC_Raw_Data_for_FY22[[#This Row],[75th]]-AAMC_Raw_Data_for_FY22[[#This Row],[Median]])/25)*20) + AAMC_Raw_Data_for_FY22[[#This Row],[Median]]","v":392385.2},396328,{"$f":"(((AAMC_Raw_Data_for_FY22[[#This Row],[75th]]-AAMC_Raw_Data_for_FY22[[#This Row],[Median]])/25)*30) + AAMC_Raw_Data_for_FY22[[#This Row],[Median]]","v":400270.8},{"$f":"(((AAMC_Raw_Data_for_FY22[[#This Row],[75th]]-AAMC_Raw_Data_for_FY22[[#This Row],[Median]])/25)*35) + AAMC_Raw_Data_for_FY22[[#This Row],[Median]]","v":404213.6},{"$f":"(((AAMC_Raw_Data_for_FY22[[#This Row],[75th]]-AAMC_Raw_Data_for_FY22[[#This Row],[Median]])/25)*40) + AAMC_Raw_Data_for_FY22[[#This Row],[Median]]","v":408156.4}]
[{"$f":"AAMC_Raw_Data_for_FY22[[#This Row],[Source]]&AAMC_Raw_Data_for_FY22[[#This Row],[Type]]&AAMC_Raw_Data_for_FY22[[#This Row],[School Subset]]&AAMC_Raw_Data_for_FY22[[#This Row],[Rank]]&AAMC_Raw_Data_for_FY22[[#This Row],[Degree]]&AAMC_Raw_Data_for_FY22[[#This Row],[Department / Specialty]]&\"L\"","v":"AAMCAcademicPrivateInstructorPhDGeneticsL"},"Genetics",5,"AAMC","Academic","Private","Instructor","PhD","2021-2022",70000,{"$f":"(((AAMC_Raw_Data_for_FY22[[#This Row],[Median]]-AAMC_Raw_Data_for_FY22[[#This Row],[25th]])/25)*5) + AAMC_Raw_Data_for_FY22[[#This Row],[25th]]","v":71028.399999999994},{"$f":"(((AAMC_Raw_Data_for_FY22[[#This Row],[Median]]-AAMC_Raw_Data_for_FY22[[#This Row],[25th]])/25)*10) + AAMC_Raw_Data_for_FY22[[#This Row],[25th]]","v":72056.800000000003},{"$f":"(((AAMC_Raw_Data_for_FY22[[#This Row],[Median]]-AAMC_Raw_Data_for_FY22[[#This Row],[25th]])/25)*15) + AAMC_Raw_Data_for_FY22[[#This Row],[25th]]","v":73085.2},{"$f":"(((AAMC_Raw_Data_for_FY22[[#This Row],[Median]]-AAMC_Raw_Data_for_FY22[[#This Row],[25th]])/25)*20) + AAMC_Raw_Data_for_FY22[[#This Row],[25th]]","v":74113.600000000006},75142,{"$f":"(((AAMC_Raw_Data_for_FY22[[#This Row],[75th]]-AAMC_Raw_Data_for_FY22[[#This Row],[Median]])/25)*5) + AAMC_Raw_Data_for_FY22[[#This Row],[Median]]","v":78190.2},{"$f":"(((AAMC_Raw_Data_for_FY22[[#This Row],[75th]]-AAMC_Raw_Data_for_FY22[[#This Row],[Median]])/25)*10) + AAMC_Raw_Data_for_FY22[[#This Row],[Median]]","v":81238.399999999994},{"$f":"(((AAMC_Raw_Data_for_FY22[[#This Row],[75th]]-AAMC_Raw_Data_for_FY22[[#This Row],[Median]])/25)*15) + AAMC_Raw_Data_for_FY22[[#This Row],[Median]]","v":84286.6},{"$f":"(((AAMC_Raw_Data_for_FY22[[#This Row],[75th]]-AAMC_Raw_Data_for_FY22[[#This Row],[Median]])/25)*20) + AAMC_Raw_Data_for_FY22[[#This Row],[Median]]","v":87334.8},90383,{"$f":"(((AAMC_Raw_Data_for_FY22[[#This Row],[75th]]-AAMC_Raw_Data_for_FY22[[#This Row],[Median]])/25)*30) + AAMC_Raw_Data_for_FY22[[#This Row],[Median]]","v":93431.2},{"$f":"(((AAMC_Raw_Data_for_FY22[[#This Row],[75th]]-AAMC_Raw_Data_for_FY22[[#This Row],[Median]])/25)*35) + AAMC_Raw_Data_for_FY22[[#This Row],[Median]]","v":96479.4},{"$f":"(((AAMC_Raw_Data_for_FY22[[#This Row],[75th]]-AAMC_Raw_Data_for_FY22[[#This Row],[Median]])/25)*40) + AAMC_Raw_Data_for_FY22[[#This Row],[Median]]","v":99527.6}]
[{"$f":"AAMC_Raw_Data_for_FY22[[#This Row],[Source]]&AAMC_Raw_Data_for_FY22[[#This Row],[Type]]&AAMC_Raw_Data_for_FY22[[#This Row],[School Subset]]&AAMC_Raw_Data_for_FY22[[#This Row],[Rank]]&AAMC_Raw_Data_for_FY22[[#This Row],[Degree]]&AAMC_Raw_Data_for_FY22[[#This Row],[Department / Specialty]]&\"L\"","v":"AAMCAcademicPrivateAssistantPhDGeneticsL"},"Genetics",4,"AAMC","Academic","Private","Assistant","PhD","2021-2022",100000,{"$f":"(((AAMC_Raw_Data_for_FY22[[#This Row],[Median]]-AAMC_Raw_Data_for_FY22[[#This Row],[25th]])/25)*5) + AAMC_Raw_Data_for_FY22[[#This Row],[25th]]","v":105000},{"$f":"(((AAMC_Raw_Data_for_FY22[[#This Row],[Median]]-AAMC_Raw_Data_for_FY22[[#This Row],[25th]])/25)*10) + AAMC_Raw_Data_for_FY22[[#This Row],[25th]]","v":110000},{"$f":"(((AAMC_Raw_Data_for_FY22[[#This Row],[Median]]-AAMC_Raw_Data_for_FY22[[#This Row],[25th]])/25)*15) + AAMC_Raw_Data_for_FY22[[#This Row],[25th]]","v":115000},{"$f":"(((AAMC_Raw_Data_for_FY22[[#This Row],[Median]]-AAMC_Raw_Data_for_FY22[[#This Row],[25th]])/25)*20) + AAMC_Raw_Data_for_FY22[[#This Row],[25th]]","v":120000},125000,{"$f":"(((AAMC_Raw_Data_for_FY22[[#This Row],[75th]]-AAMC_Raw_Data_for_FY22[[#This Row],[Median]])/25)*5) + AAMC_Raw_Data_for_FY22[[#This Row],[Median]]","v":128000},{"$f":"(((AAMC_Raw_Data_for_FY22[[#This Row],[75th]]-AAMC_Raw_Data_for_FY22[[#This Row],[Median]])/25)*10) + AAMC_Raw_Data_for_FY22[[#This Row],[Median]]","v":131000},{"$f":"(((AAMC_Raw_Data_for_FY22[[#This Row],[75th]]-AAMC_Raw_Data_for_FY22[[#This Row],[Median]])/25)*15) + AAMC_Raw_Data_for_FY22[[#This Row],[Median]]","v":134000},{"$f":"(((AAMC_Raw_Data_for_FY22[[#This Row],[75th]]-AAMC_Raw_Data_for_FY22[[#This Row],[Median]])/25)*20) + AAMC_Raw_Data_for_FY22[[#This Row],[Median]]","v":137000},140000,{"$f":"(((AAMC_Raw_Data_for_FY22[[#This Row],[75th]]-AAMC_Raw_Data_for_FY22[[#This Row],[Median]])/25)*30) + AAMC_Raw_Data_for_FY22[[#This Row],[Median]]","v":143000},{"$f":"(((AAMC_Raw_Data_for_FY22[[#This Row],[75th]]-AAMC_Raw_Data_for_FY22[[#This Row],[Median]])/25)*35) + AAMC_Raw_Data_for_FY22[[#This Row],[Median]]","v":146000},{"$f":"(((AAMC_Raw_Data_for_FY22[[#This Row],[75th]]-AAMC_Raw_Data_for_FY22[[#This Row],[Median]])/25)*40) + AAMC_Raw_Data_for_FY22[[#This Row],[Median]]","v":149000}]
[{"$f":"AAMC_Raw_Data_for_FY22[[#This Row],[Source]]&AAMC_Raw_Data_for_FY22[[#This Row],[Type]]&AAMC_Raw_Data_for_FY22[[#This Row],[School Subset]]&AAMC_Raw_Data_for_FY22[[#This Row],[Rank]]&AAMC_Raw_Data_for_FY22[[#This Row],[Degree]]&AAMC_Raw_Data_for_FY22[[#This Row],[Department / Specialty]]&\"L\"","v":"AAMCAcademicPrivateAssociatePhDGeneticsL"},"Genetics",3,"AAMC","Academic","Private","Associate","PhD","2021-2022",132761,{"$f":"(((AAMC_Raw_Data_for_FY22[[#This Row],[Median]]-AAMC_Raw_Data_for_FY22[[#This Row],[25th]])/25)*5) + AAMC_Raw_Data_for_FY22[[#This Row],[25th]]","v":138132},{"$f":"(((AAMC_Raw_Data_for_FY22[[#This Row],[Median]]-AAMC_Raw_Data_for_FY22[[#This Row],[25th]])/25)*10) + AAMC_Raw_Data_for_FY22[[#This Row],[25th]]","v":143503},{"$f":"(((AAMC_Raw_Data_for_FY22[[#This Row],[Median]]-AAMC_Raw_Data_for_FY22[[#This Row],[25th]])/25)*15) + AAMC_Raw_Data_for_FY22[[#This Row],[25th]]","v":148874},{"$f":"(((AAMC_Raw_Data_for_FY22[[#This Row],[Median]]-AAMC_Raw_Data_for_FY22[[#This Row],[25th]])/25)*20) + AAMC_Raw_Data_for_FY22[[#This Row],[25th]]","v":154245},159616,{"$f":"(((AAMC_Raw_Data_for_FY22[[#This Row],[75th]]-AAMC_Raw_Data_for_FY22[[#This Row],[Median]])/25)*5) + AAMC_Raw_Data_for_FY22[[#This Row],[Median]]","v":163339.6},{"$f":"(((AAMC_Raw_Data_for_FY22[[#This Row],[75th]]-AAMC_Raw_Data_for_FY22[[#This Row],[Median]])/25)*10) + AAMC_Raw_Data_for_FY22[[#This Row],[Median]]","v":167063.20000000001},{"$f":"(((AAMC_Raw_Data_for_FY22[[#This Row],[75th]]-AAMC_Raw_Data_for_FY22[[#This Row],[Median]])/25)*15) + AAMC_Raw_Data_for_FY22[[#This Row],[Median]]","v":170786.8},{"$f":"(((AAMC_Raw_Data_for_FY22[[#This Row],[75th]]-AAMC_Raw_Data_for_FY22[[#This Row],[Median]])/25)*20) + AAMC_Raw_Data_for_FY22[[#This Row],[Median]]","v":174510.4},178234,{"$f":"(((AAMC_Raw_Data_for_FY22[[#This Row],[75th]]-AAMC_Raw_Data_for_FY22[[#This Row],[Median]])/25)*30) + AAMC_Raw_Data_for_FY22[[#This Row],[Median]]","v":181957.6},{"$f":"(((AAMC_Raw_Data_for_FY22[[#This Row],[75th]]-AAMC_Raw_Data_for_FY22[[#This Row],[Median]])/25)*35) + AAMC_Raw_Data_for_FY22[[#This Row],[Median]]","v":185681.2},{"$f":"(((AAMC_Raw_Data_for_FY22[[#This Row],[75th]]-AAMC_Raw_Data_for_FY22[[#This Row],[Median]])/25)*40) + AAMC_Raw_Data_for_FY22[[#This Row],[Median]]","v":189404.79999999999}]
[{"$f":"AAMC_Raw_Data_for_FY22[[#This Row],[Source]]&AAMC_Raw_Data_for_FY22[[#This Row],[Type]]&AAMC_Raw_Data_for_FY22[[#This Row],[School Subset]]&AAMC_Raw_Data_for_FY22[[#This Row],[Rank]]&AAMC_Raw_Data_for_FY22[[#This Row],[Degree]]&AAMC_Raw_Data_for_FY22[[#This Row],[Department / Specialty]]&\"L\"","v":"AAMCAcademicPrivateProfessorPhDGeneticsL"},"Genetics",2,"AAMC","Academic","Private","Professor","PhD","2021-2022",200624,{"$f":"(((AAMC_Raw_Data_for_FY22[[#This Row],[Median]]-AAMC_Raw_Data_for_FY22[[#This Row],[25th]])/25)*5) + AAMC_Raw_Data_for_FY22[[#This Row],[25th]]","v":206385.6},{"$f":"(((AAMC_Raw_Data_for_FY22[[#This Row],[Median]]-AAMC_Raw_Data_for_FY22[[#This Row],[25th]])/25)*10) + AAMC_Raw_Data_for_FY22[[#This Row],[25th]]","v":212147.20000000001},{"$f":"(((AAMC_Raw_Data_for_FY22[[#This Row],[Median]]-AAMC_Raw_Data_for_FY22[[#This Row],[25th]])/25)*15) + AAMC_Raw_Data_for_FY22[[#This Row],[25th]]","v":217908.8},{"$f":"(((AAMC_Raw_Data_for_FY22[[#This Row],[Median]]-AAMC_Raw_Data_for_FY22[[#This Row],[25th]])/25)*20) + AAMC_Raw_Data_for_FY22[[#This Row],[25th]]","v":223670.39999999999},229432,{"$f":"(((AAMC_Raw_Data_for_FY22[[#This Row],[75th]]-AAMC_Raw_Data_for_FY22[[#This Row],[Median]])/25)*5) + AAMC_Raw_Data_for_FY22[[#This Row],[Median]]","v":237749.8},{"$f":"(((AAMC_Raw_Data_for_FY22[[#This Row],[75th]]-AAMC_Raw_Data_for_FY22[[#This Row],[Median]])/25)*10) + AAMC_Raw_Data_for_FY22[[#This Row],[Median]]","v":246067.6},{"$f":"(((AAMC_Raw_Data_for_FY22[[#This Row],[75th]]-AAMC_Raw_Data_for_FY22[[#This Row],[Median]])/25)*15) + AAMC_Raw_Data_for_FY22[[#This Row],[Median]]","v":254385.4},{"$f":"(((AAMC_Raw_Data_for_FY22[[#This Row],[75th]]-AAMC_Raw_Data_for_FY22[[#This Row],[Median]])/25)*20) + AAMC_Raw_Data_for_FY22[[#This Row],[Median]]","v":262703.2},271021,{"$f":"(((AAMC_Raw_Data_for_FY22[[#This Row],[75th]]-AAMC_Raw_Data_for_FY22[[#This Row],[Median]])/25)*30) + AAMC_Raw_Data_for_FY22[[#This Row],[Median]]","v":279338.8},{"$f":"(((AAMC_Raw_Data_for_FY22[[#This Row],[75th]]-AAMC_Raw_Data_for_FY22[[#This Row],[Median]])/25)*35) + AAMC_Raw_Data_for_FY22[[#This Row],[Median]]","v":287656.59999999998},{"$f":"(((AAMC_Raw_Data_for_FY22[[#This Row],[75th]]-AAMC_Raw_Data_for_FY22[[#This Row],[Median]])/25)*40) + AAMC_Raw_Data_for_FY22[[#This Row],[Median]]","v":295974.40000000002}]
[{"$f":"AAMC_Raw_Data_for_FY22[[#This Row],[Source]]&AAMC_Raw_Data_for_FY22[[#This Row],[Type]]&AAMC_Raw_Data_for_FY22[[#This Row],[School Subset]]&AAMC_Raw_Data_for_FY22[[#This Row],[Rank]]&AAMC_Raw_Data_for_FY22[[#This Row],[Degree]]&AAMC_Raw_Data_for_FY22[[#This Row],[Department / Specialty]]&\"L\"","v":"AAMCAcademicPrivateChiefPhDGeneticsL"},"Genetics",6,"AAMC","Academic","Private","Chief","PhD","2021-2022",null,{"$f":"(((AAMC_Raw_Data_for_FY22[[#This Row],[Median]]-AAMC_Raw_Data_for_FY22[[#This Row],[25th]])/25)*5) + AAMC_Raw_Data_for_FY22[[#This Row],[25th]]","v":0},{"$f":"(((AAMC_Raw_Data_for_FY22[[#This Row],[Median]]-AAMC_Raw_Data_for_FY22[[#This Row],[25th]])/25)*10) + AAMC_Raw_Data_for_FY22[[#This Row],[25th]]","v":0},{"$f":"(((AAMC_Raw_Data_for_FY22[[#This Row],[Median]]-AAMC_Raw_Data_for_FY22[[#This Row],[25th]])/25)*15) + AAMC_Raw_Data_for_FY22[[#This Row],[25th]]","v":0},{"$f":"(((AAMC_Raw_Data_for_FY22[[#This Row],[Median]]-AAMC_Raw_Data_for_FY22[[#This Row],[25th]])/25)*20) + AAMC_Raw_Data_for_FY22[[#This Row],[25th]]","v":0},null,{"$f":"(((AAMC_Raw_Data_for_FY22[[#This Row],[75th]]-AAMC_Raw_Data_for_FY22[[#This Row],[Median]])/25)*5) + AAMC_Raw_Data_for_FY22[[#This Row],[Median]]","v":0},{"$f":"(((AAMC_Raw_Data_for_FY22[[#This Row],[75th]]-AAMC_Raw_Data_for_FY22[[#This Row],[Median]])/25)*10) + AAMC_Raw_Data_for_FY22[[#This Row],[Median]]","v":0},{"$f":"(((AAMC_Raw_Data_for_FY22[[#This Row],[75th]]-AAMC_Raw_Data_for_FY22[[#This Row],[Median]])/25)*15) + AAMC_Raw_Data_for_FY22[[#This Row],[Median]]","v":0},{"$f":"(((AAMC_Raw_Data_for_FY22[[#This Row],[75th]]-AAMC_Raw_Data_for_FY22[[#This Row],[Median]])/25)*20) + AAMC_Raw_Data_for_FY22[[#This Row],[Median]]","v":0},null,{"$f":"(((AAMC_Raw_Data_for_FY22[[#This Row],[75th]]-AAMC_Raw_Data_for_FY22[[#This Row],[Median]])/25)*30) + AAMC_Raw_Data_for_FY22[[#This Row],[Median]]","v":0},{"$f":"(((AAMC_Raw_Data_for_FY22[[#This Row],[75th]]-AAMC_Raw_Data_for_FY22[[#This Row],[Median]])/25)*35) + AAMC_Raw_Data_for_FY22[[#This Row],[Median]]","v":0},{"$f":"(((AAMC_Raw_Data_for_FY22[[#This Row],[75th]]-AAMC_Raw_Data_for_FY22[[#This Row],[Median]])/25)*40) + AAMC_Raw_Data_for_FY22[[#This Row],[Median]]","v":0}]
[{"$f":"AAMC_Raw_Data_for_FY22[[#This Row],[Source]]&AAMC_Raw_Data_for_FY22[[#This Row],[Type]]&AAMC_Raw_Data_for_FY22[[#This Row],[School Subset]]&AAMC_Raw_Data_for_FY22[[#This Row],[Rank]]&AAMC_Raw_Data_for_FY22[[#This Row],[Degree]]&AAMC_Raw_Data_for_FY22[[#This Row],[Department / Specialty]]&\"L\"","v":"AAMCAcademicPrivateChairPhDGeneticsL"},"Genetics",1,"AAMC","Academic","Private","Chair","PhD","2021-2022",409472,{"$f":"(((AAMC_Raw_Data_for_FY22[[#This Row],[Median]]-AAMC_Raw_Data_for_FY22[[#This Row],[25th]])/25)*5) + AAMC_Raw_Data_for_FY22[[#This Row],[25th]]","v":422903},{"$f":"(((AAMC_Raw_Data_for_FY22[[#This Row],[Median]]-AAMC_Raw_Data_for_FY22[[#This Row],[25th]])/25)*10) + AAMC_Raw_Data_for_FY22[[#This Row],[25th]]","v":436334},{"$f":"(((AAMC_Raw_Data_for_FY22[[#This Row],[Median]]-AAMC_Raw_Data_for_FY22[[#This Row],[25th]])/25)*15) + AAMC_Raw_Data_for_FY22[[#This Row],[25th]]","v":449765},{"$f":"(((AAMC_Raw_Data_for_FY22[[#This Row],[Median]]-AAMC_Raw_Data_for_FY22[[#This Row],[25th]])/25)*20) + AAMC_Raw_Data_for_FY22[[#This Row],[25th]]","v":463196},476627,{"$f":"(((AAMC_Raw_Data_for_FY22[[#This Row],[75th]]-AAMC_Raw_Data_for_FY22[[#This Row],[Median]])/25)*5) + AAMC_Raw_Data_for_FY22[[#This Row],[Median]]","v":485231},{"$f":"(((AAMC_Raw_Data_for_FY22[[#This Row],[75th]]-AAMC_Raw_Data_for_FY22[[#This Row],[Median]])/25)*10) + AAMC_Raw_Data_for_FY22[[#This Row],[Median]]","v":493835},{"$f":"(((AAMC_Raw_Data_for_FY22[[#This Row],[75th]]-AAMC_Raw_Data_for_FY22[[#This Row],[Median]])/25)*15) + AAMC_Raw_Data_for_FY22[[#This Row],[Median]]","v":502439},{"$f":"(((AAMC_Raw_Data_for_FY22[[#This Row],[75th]]-AAMC_Raw_Data_for_FY22[[#This Row],[Median]])/25)*20) + AAMC_Raw_Data_for_FY22[[#This Row],[Median]]","v":511043},519647,{"$f":"(((AAMC_Raw_Data_for_FY22[[#This Row],[75th]]-AAMC_Raw_Data_for_FY22[[#This Row],[Median]])/25)*30) + AAMC_Raw_Data_for_FY22[[#This Row],[Median]]","v":528251},{"$f":"(((AAMC_Raw_Data_for_FY22[[#This Row],[75th]]-AAMC_Raw_Data_for_FY22[[#This Row],[Median]])/25)*35) + AAMC_Raw_Data_for_FY22[[#This Row],[Median]]","v":536855},{"$f":"(((AAMC_Raw_Data_for_FY22[[#This Row],[75th]]-AAMC_Raw_Data_for_FY22[[#This Row],[Median]])/25)*40) + AAMC_Raw_Data_for_FY22[[#This Row],[Median]]","v":545459}]
[{"$f":"AAMC_Raw_Data_for_FY22[[#This Row],[Source]]&AAMC_Raw_Data_for_FY22[[#This Row],[Type]]&AAMC_Raw_Data_for_FY22[[#This Row],[School Subset]]&AAMC_Raw_Data_for_FY22[[#This Row],[Rank]]&AAMC_Raw_Data_for_FY22[[#This Row],[Degree]]&AAMC_Raw_Data_for_FY22[[#This Row],[Department / Specialty]]&\"L\"","v":"AAMCAcademicPrivateInstructorPhDMicrobiologyL"},"Microbiology",5,"AAMC","Academic","Private","Instructor","PhD","2021-2022",66140,{"$f":"(((AAMC_Raw_Data_for_FY22[[#This Row],[Median]]-AAMC_Raw_Data_for_FY22[[#This Row],[25th]])/25)*5) + AAMC_Raw_Data_for_FY22[[#This Row],[25th]]","v":67072.399999999994},{"$f":"(((AAMC_Raw_Data_for_FY22[[#This Row],[Median]]-AAMC_Raw_Data_for_FY22[[#This Row],[25th]])/25)*10) + AAMC_Raw_Data_for_FY22[[#This Row],[25th]]","v":68004.800000000003},{"$f":"(((AAMC_Raw_Data_for_FY22[[#This Row],[Median]]-AAMC_Raw_Data_for_FY22[[#This Row],[25th]])/25)*15) + AAMC_Raw_Data_for_FY22[[#This Row],[25th]]","v":68937.2},{"$f":"(((AAMC_Raw_Data_for_FY22[[#This Row],[Median]]-AAMC_Raw_Data_for_FY22[[#This Row],[25th]])/25)*20) + AAMC_Raw_Data_for_FY22[[#This Row],[25th]]","v":69869.600000000006},70802,{"$f":"(((AAMC_Raw_Data_for_FY22[[#This Row],[75th]]-AAMC_Raw_Data_for_FY22[[#This Row],[Median]])/25)*5) + AAMC_Raw_Data_for_FY22[[#This Row],[Median]]","v":73322.399999999994},{"$f":"(((AAMC_Raw_Data_for_FY22[[#This Row],[75th]]-AAMC_Raw_Data_for_FY22[[#This Row],[Median]])/25)*10) + AAMC_Raw_Data_for_FY22[[#This Row],[Median]]","v":75842.8},{"$f":"(((AAMC_Raw_Data_for_FY22[[#This Row],[75th]]-AAMC_Raw_Data_for_FY22[[#This Row],[Median]])/25)*15) + AAMC_Raw_Data_for_FY22[[#This Row],[Median]]","v":78363.199999999997},{"$f":"(((AAMC_Raw_Data_for_FY22[[#This Row],[75th]]-AAMC_Raw_Data_for_FY22[[#This Row],[Median]])/25)*20) + AAMC_Raw_Data_for_FY22[[#This Row],[Median]]","v":80883.600000000006},83404,{"$f":"(((AAMC_Raw_Data_for_FY22[[#This Row],[75th]]-AAMC_Raw_Data_for_FY22[[#This Row],[Median]])/25)*30) + AAMC_Raw_Data_for_FY22[[#This Row],[Median]]","v":85924.4},{"$f":"(((AAMC_Raw_Data_for_FY22[[#This Row],[75th]]-AAMC_Raw_Data_for_FY22[[#This Row],[Median]])/25)*35) + AAMC_Raw_Data_for_FY22[[#This Row],[Median]]","v":88444.800000000003},{"$f":"(((AAMC_Raw_Data_for_FY22[[#This Row],[75th]]-AAMC_Raw_Data_for_FY22[[#This Row],[Median]])/25)*40) + AAMC_Raw_Data_for_FY22[[#This Row],[Median]]","v":90965.2}]
[{"$f":"AAMC_Raw_Data_for_FY22[[#This Row],[Source]]&AAMC_Raw_Data_for_FY22[[#This Row],[Type]]&AAMC_Raw_Data_for_FY22[[#This Row],[School Subset]]&AAMC_Raw_Data_for_FY22[[#This Row],[Rank]]&AAMC_Raw_Data_for_FY22[[#This Row],[Degree]]&AAMC_Raw_Data_for_FY22[[#This Row],[Department / Specialty]]&\"L\"","v":"AAMCAcademicPrivateAssistantPhDMicrobiologyL"},"Microbiology",4,"AAMC","Academic","Private","Assistant","PhD","2021-2022",95679,{"$f":"(((AAMC_Raw_Data_for_FY22[[#This Row],[Median]]-AAMC_Raw_Data_for_FY22[[#This Row],[25th]])/25)*5) + AAMC_Raw_Data_for_FY22[[#This Row],[25th]]","v":98543.2},{"$f":"(((AAMC_Raw_Data_for_FY22[[#This Row],[Median]]-AAMC_Raw_Data_for_FY22[[#This Row],[25th]])/25)*10) + AAMC_Raw_Data_for_FY22[[#This Row],[25th]]","v":101407.4},{"$f":"(((AAMC_Raw_Data_for_FY22[[#This Row],[Median]]-AAMC_Raw_Data_for_FY22[[#This Row],[25th]])/25)*15) + AAMC_Raw_Data_for_FY22[[#This Row],[25th]]","v":104271.6},{"$f":"(((AAMC_Raw_Data_for_FY22[[#This Row],[Median]]-AAMC_Raw_Data_for_FY22[[#This Row],[25th]])/25)*20) + AAMC_Raw_Data_for_FY22[[#This Row],[25th]]","v":107135.8},110000,{"$f":"(((AAMC_Raw_Data_for_FY22[[#This Row],[75th]]-AAMC_Raw_Data_for_FY22[[#This Row],[Median]])/25)*5) + AAMC_Raw_Data_for_FY22[[#This Row],[Median]]","v":113544},{"$f":"(((AAMC_Raw_Data_for_FY22[[#This Row],[75th]]-AAMC_Raw_Data_for_FY22[[#This Row],[Median]])/25)*10) + AAMC_Raw_Data_for_FY22[[#This Row],[Median]]","v":117088},{"$f":"(((AAMC_Raw_Data_for_FY22[[#This Row],[75th]]-AAMC_Raw_Data_for_FY22[[#This Row],[Median]])/25)*15) + AAMC_Raw_Data_for_FY22[[#This Row],[Median]]","v":120632},{"$f":"(((AAMC_Raw_Data_for_FY22[[#This Row],[75th]]-AAMC_Raw_Data_for_FY22[[#This Row],[Median]])/25)*20) + AAMC_Raw_Data_for_FY22[[#This Row],[Median]]","v":124176},127720,{"$f":"(((AAMC_Raw_Data_for_FY22[[#This Row],[75th]]-AAMC_Raw_Data_for_FY22[[#This Row],[Median]])/25)*30) + AAMC_Raw_Data_for_FY22[[#This Row],[Median]]","v":131264},{"$f":"(((AAMC_Raw_Data_for_FY22[[#This Row],[75th]]-AAMC_Raw_Data_for_FY22[[#This Row],[Median]])/25)*35) + AAMC_Raw_Data_for_FY22[[#This Row],[Median]]","v":134808},{"$f":"(((AAMC_Raw_Data_for_FY22[[#This Row],[75th]]-AAMC_Raw_Data_for_FY22[[#This Row],[Median]])/25)*40) + AAMC_Raw_Data_for_FY22[[#This Row],[Median]]","v":138352}]
[{"$f":"AAMC_Raw_Data_for_FY22[[#This Row],[Source]]&AAMC_Raw_Data_for_FY22[[#This Row],[Type]]&AAMC_Raw_Data_for_FY22[[#This Row],[School Subset]]&AAMC_Raw_Data_for_FY22[[#This Row],[Rank]]&AAMC_Raw_Data_for_FY22[[#This Row],[Degree]]&AAMC_Raw_Data_for_FY22[[#This Row],[Department / Specialty]]&\"L\"","v":"AAMCAcademicPrivateAssociatePhDMicrobiologyL"},"Microbiology",3,"AAMC","Academic","Private","Associate","PhD","2021-2022",126740,{"$f":"(((AAMC_Raw_Data_for_FY22[[#This Row],[Median]]-AAMC_Raw_Data_for_FY22[[#This Row],[25th]])/25)*5) + AAMC_Raw_Data_for_FY22[[#This Row],[25th]]","v":130162.6},{"$f":"(((AAMC_Raw_Data_for_FY22[[#This Row],[Median]]-AAMC_Raw_Data_for_FY22[[#This Row],[25th]])/25)*10) + AAMC_Raw_Data_for_FY22[[#This Row],[25th]]","v":133585.20000000001},{"$f":"(((AAMC_Raw_Data_for_FY22[[#This Row],[Median]]-AAMC_Raw_Data_for_FY22[[#This Row],[25th]])/25)*15) + AAMC_Raw_Data_for_FY22[[#This Row],[25th]]","v":137007.79999999999},{"$f":"(((AAMC_Raw_Data_for_FY22[[#This Row],[Median]]-AAMC_Raw_Data_for_FY22[[#This Row],[25th]])/25)*20) + AAMC_Raw_Data_for_FY22[[#This Row],[25th]]","v":140430.39999999999},143853,{"$f":"(((AAMC_Raw_Data_for_FY22[[#This Row],[75th]]-AAMC_Raw_Data_for_FY22[[#This Row],[Median]])/25)*5) + AAMC_Raw_Data_for_FY22[[#This Row],[Median]]","v":148411.79999999999},{"$f":"(((AAMC_Raw_Data_for_FY22[[#This Row],[75th]]-AAMC_Raw_Data_for_FY22[[#This Row],[Median]])/25)*10) + AAMC_Raw_Data_for_FY22[[#This Row],[Median]]","v":152970.6},{"$f":"(((AAMC_Raw_Data_for_FY22[[#This Row],[75th]]-AAMC_Raw_Data_for_FY22[[#This Row],[Median]])/25)*15) + AAMC_Raw_Data_for_FY22[[#This Row],[Median]]","v":157529.4},{"$f":"(((AAMC_Raw_Data_for_FY22[[#This Row],[75th]]-AAMC_Raw_Data_for_FY22[[#This Row],[Median]])/25)*20) + AAMC_Raw_Data_for_FY22[[#This Row],[Median]]","v":162088.20000000001},166647,{"$f":"(((AAMC_Raw_Data_for_FY22[[#This Row],[75th]]-AAMC_Raw_Data_for_FY22[[#This Row],[Median]])/25)*30) + AAMC_Raw_Data_for_FY22[[#This Row],[Median]]","v":171205.8},{"$f":"(((AAMC_Raw_Data_for_FY22[[#This Row],[75th]]-AAMC_Raw_Data_for_FY22[[#This Row],[Median]])/25)*35) + AAMC_Raw_Data_for_FY22[[#This Row],[Median]]","v":175764.6},{"$f":"(((AAMC_Raw_Data_for_FY22[[#This Row],[75th]]-AAMC_Raw_Data_for_FY22[[#This Row],[Median]])/25)*40) + AAMC_Raw_Data_for_FY22[[#This Row],[Median]]","v":180323.4}]
[{"$f":"AAMC_Raw_Data_for_FY22[[#This Row],[Source]]&AAMC_Raw_Data_for_FY22[[#This Row],[Type]]&AAMC_Raw_Data_for_FY22[[#This Row],[School Subset]]&AAMC_Raw_Data_for_FY22[[#This Row],[Rank]]&AAMC_Raw_Data_for_FY22[[#This Row],[Degree]]&AAMC_Raw_Data_for_FY22[[#This Row],[Department / Specialty]]&\"L\"","v":"AAMCAcademicPrivateProfessorPhDMicrobiologyL"},"Microbiology",2,"AAMC","Academic","Private","Professor","PhD","2021-2022",183499,{"$f":"(((AAMC_Raw_Data_for_FY22[[#This Row],[Median]]-AAMC_Raw_Data_for_FY22[[#This Row],[25th]])/25)*5) + AAMC_Raw_Data_for_FY22[[#This Row],[25th]]","v":190250.6},{"$f":"(((AAMC_Raw_Data_for_FY22[[#This Row],[Median]]-AAMC_Raw_Data_for_FY22[[#This Row],[25th]])/25)*10) + AAMC_Raw_Data_for_FY22[[#This Row],[25th]]","v":197002.2},{"$f":"(((AAMC_Raw_Data_for_FY22[[#This Row],[Median]]-AAMC_Raw_Data_for_FY22[[#This Row],[25th]])/25)*15) + AAMC_Raw_Data_for_FY22[[#This Row],[25th]]","v":203753.8},{"$f":"(((AAMC_Raw_Data_for_FY22[[#This Row],[Median]]-AAMC_Raw_Data_for_FY22[[#This Row],[25th]])/25)*20) + AAMC_Raw_Data_for_FY22[[#This Row],[25th]]","v":210505.4},217257,{"$f":"(((AAMC_Raw_Data_for_FY22[[#This Row],[75th]]-AAMC_Raw_Data_for_FY22[[#This Row],[Median]])/25)*5) + AAMC_Raw_Data_for_FY22[[#This Row],[Median]]","v":225709.8},{"$f":"(((AAMC_Raw_Data_for_FY22[[#This Row],[75th]]-AAMC_Raw_Data_for_FY22[[#This Row],[Median]])/25)*10) + AAMC_Raw_Data_for_FY22[[#This Row],[Median]]","v":234162.6},{"$f":"(((AAMC_Raw_Data_for_FY22[[#This Row],[75th]]-AAMC_Raw_Data_for_FY22[[#This Row],[Median]])/25)*15) + AAMC_Raw_Data_for_FY22[[#This Row],[Median]]","v":242615.4},{"$f":"(((AAMC_Raw_Data_for_FY22[[#This Row],[75th]]-AAMC_Raw_Data_for_FY22[[#This Row],[Median]])/25)*20) + AAMC_Raw_Data_for_FY22[[#This Row],[Median]]","v":251068.2},259521,{"$f":"(((AAMC_Raw_Data_for_FY22[[#This Row],[75th]]-AAMC_Raw_Data_for_FY22[[#This Row],[Median]])/25)*30) + AAMC_Raw_Data_for_FY22[[#This Row],[Median]]","v":267973.8},{"$f":"(((AAMC_Raw_Data_for_FY22[[#This Row],[75th]]-AAMC_Raw_Data_for_FY22[[#This Row],[Median]])/25)*35) + AAMC_Raw_Data_for_FY22[[#This Row],[Median]]","v":276426.59999999998},{"$f":"(((AAMC_Raw_Data_for_FY22[[#This Row],[75th]]-AAMC_Raw_Data_for_FY22[[#This Row],[Median]])/25)*40) + AAMC_Raw_Data_for_FY22[[#This Row],[Median]]","v":284879.40000000002}]
[{"$f":"AAMC_Raw_Data_for_FY22[[#This Row],[Source]]&AAMC_Raw_Data_for_FY22[[#This Row],[Type]]&AAMC_Raw_Data_for_FY22[[#This Row],[School Subset]]&AAMC_Raw_Data_for_FY22[[#This Row],[Rank]]&AAMC_Raw_Data_for_FY22[[#This Row],[Degree]]&AAMC_Raw_Data_for_FY22[[#This Row],[Department / Specialty]]&\"L\"","v":"AAMCAcademicPrivateChiefPhDMicrobiologyL"},"Microbiology",6,"AAMC","Academic","Private","Chief","PhD","2021-2022",null,{"$f":"(((AAMC_Raw_Data_for_FY22[[#This Row],[Median]]-AAMC_Raw_Data_for_FY22[[#This Row],[25th]])/25)*5) + AAMC_Raw_Data_for_FY22[[#This Row],[25th]]","v":0},{"$f":"(((AAMC_Raw_Data_for_FY22[[#This Row],[Median]]-AAMC_Raw_Data_for_FY22[[#This Row],[25th]])/25)*10) + AAMC_Raw_Data_for_FY22[[#This Row],[25th]]","v":0},{"$f":"(((AAMC_Raw_Data_for_FY22[[#This Row],[Median]]-AAMC_Raw_Data_for_FY22[[#This Row],[25th]])/25)*15) + AAMC_Raw_Data_for_FY22[[#This Row],[25th]]","v":0},{"$f":"(((AAMC_Raw_Data_for_FY22[[#This Row],[Median]]-AAMC_Raw_Data_for_FY22[[#This Row],[25th]])/25)*20) + AAMC_Raw_Data_for_FY22[[#This Row],[25th]]","v":0},null,{"$f":"(((AAMC_Raw_Data_for_FY22[[#This Row],[75th]]-AAMC_Raw_Data_for_FY22[[#This Row],[Median]])/25)*5) + AAMC_Raw_Data_for_FY22[[#This Row],[Median]]","v":0},{"$f":"(((AAMC_Raw_Data_for_FY22[[#This Row],[75th]]-AAMC_Raw_Data_for_FY22[[#This Row],[Median]])/25)*10) + AAMC_Raw_Data_for_FY22[[#This Row],[Median]]","v":0},{"$f":"(((AAMC_Raw_Data_for_FY22[[#This Row],[75th]]-AAMC_Raw_Data_for_FY22[[#This Row],[Median]])/25)*15) + AAMC_Raw_Data_for_FY22[[#This Row],[Median]]","v":0},{"$f":"(((AAMC_Raw_Data_for_FY22[[#This Row],[75th]]-AAMC_Raw_Data_for_FY22[[#This Row],[Median]])/25)*20) + AAMC_Raw_Data_for_FY22[[#This Row],[Median]]","v":0},null,{"$f":"(((AAMC_Raw_Data_for_FY22[[#This Row],[75th]]-AAMC_Raw_Data_for_FY22[[#This Row],[Median]])/25)*30) + AAMC_Raw_Data_for_FY22[[#This Row],[Median]]","v":0},{"$f":"(((AAMC_Raw_Data_for_FY22[[#This Row],[75th]]-AAMC_Raw_Data_for_FY22[[#This Row],[Median]])/25)*35) + AAMC_Raw_Data_for_FY22[[#This Row],[Median]]","v":0},{"$f":"(((AAMC_Raw_Data_for_FY22[[#This Row],[75th]]-AAMC_Raw_Data_for_FY22[[#This Row],[Median]])/25)*40) + AAMC_Raw_Data_for_FY22[[#This Row],[Median]]","v":0}]
[{"$f":"AAMC_Raw_Data_for_FY22[[#This Row],[Source]]&AAMC_Raw_Data_for_FY22[[#This Row],[Type]]&AAMC_Raw_Data_for_FY22[[#This Row],[School Subset]]&AAMC_Raw_Data_for_FY22[[#This Row],[Rank]]&AAMC_Raw_Data_for_FY22[[#This Row],[Degree]]&AAMC_Raw_Data_for_FY22[[#This Row],[Department / Specialty]]&\"L\"","v":"AAMCAcademicPrivateChairPhDMicrobiologyL"},"Microbiology",1,"AAMC","Academic","Private","Chair","PhD","2021-2022",291200,{"$f":"(((AAMC_Raw_Data_for_FY22[[#This Row],[Median]]-AAMC_Raw_Data_for_FY22[[#This Row],[25th]])/25)*5) + AAMC_Raw_Data_for_FY22[[#This Row],[25th]]","v":300534.2},{"$f":"(((AAMC_Raw_Data_for_FY22[[#This Row],[Median]]-AAMC_Raw_Data_for_FY22[[#This Row],[25th]])/25)*10) + AAMC_Raw_Data_for_FY22[[#This Row],[25th]]","v":309868.40000000002},{"$f":"(((AAMC_Raw_Data_for_FY22[[#This Row],[Median]]-AAMC_Raw_Data_for_FY22[[#This Row],[25th]])/25)*15) + AAMC_Raw_Data_for_FY22[[#This Row],[25th]]","v":319202.59999999998},{"$f":"(((AAMC_Raw_Data_for_FY22[[#This Row],[Median]]-AAMC_Raw_Data_for_FY22[[#This Row],[25th]])/25)*20) + AAMC_Raw_Data_for_FY22[[#This Row],[25th]]","v":328536.8},337871,{"$f":"(((AAMC_Raw_Data_for_FY22[[#This Row],[75th]]-AAMC_Raw_Data_for_FY22[[#This Row],[Median]])/25)*5) + AAMC_Raw_Data_for_FY22[[#This Row],[Median]]","v":359810},{"$f":"(((AAMC_Raw_Data_for_FY22[[#This Row],[75th]]-AAMC_Raw_Data_for_FY22[[#This Row],[Median]])/25)*10) + AAMC_Raw_Data_for_FY22[[#This Row],[Median]]","v":381749},{"$f":"(((AAMC_Raw_Data_for_FY22[[#This Row],[75th]]-AAMC_Raw_Data_for_FY22[[#This Row],[Median]])/25)*15) + AAMC_Raw_Data_for_FY22[[#This Row],[Median]]","v":403688},{"$f":"(((AAMC_Raw_Data_for_FY22[[#This Row],[75th]]-AAMC_Raw_Data_for_FY22[[#This Row],[Median]])/25)*20) + AAMC_Raw_Data_for_FY22[[#This Row],[Median]]","v":425627},447566,{"$f":"(((AAMC_Raw_Data_for_FY22[[#This Row],[75th]]-AAMC_Raw_Data_for_FY22[[#This Row],[Median]])/25)*30) + AAMC_Raw_Data_for_FY22[[#This Row],[Median]]","v":469505},{"$f":"(((AAMC_Raw_Data_for_FY22[[#This Row],[75th]]-AAMC_Raw_Data_for_FY22[[#This Row],[Median]])/25)*35) + AAMC_Raw_Data_for_FY22[[#This Row],[Median]]","v":491444},{"$f":"(((AAMC_Raw_Data_for_FY22[[#This Row],[75th]]-AAMC_Raw_Data_for_FY22[[#This Row],[Median]])/25)*40) + AAMC_Raw_Data_for_FY22[[#This Row],[Median]]","v":513383}]
[{"$f":"AAMC_Raw_Data_for_FY22[[#This Row],[Source]]&AAMC_Raw_Data_for_FY22[[#This Row],[Type]]&AAMC_Raw_Data_for_FY22[[#This Row],[School Subset]]&AAMC_Raw_Data_for_FY22[[#This Row],[Rank]]&AAMC_Raw_Data_for_FY22[[#This Row],[Degree]]&AAMC_Raw_Data_for_FY22[[#This Row],[Department / Specialty]]&\"L\"","v":"AAMCAcademicPrivateInstructorPhDMolecular & Cellular BiologyL"},"Molecular & Cellular Biology",5,"AAMC","Academic","Private","Instructor","PhD","2021-2022",63426,{"$f":"(((AAMC_Raw_Data_for_FY22[[#This Row],[Median]]-AAMC_Raw_Data_for_FY22[[#This Row],[25th]])/25)*5) + AAMC_Raw_Data_for_FY22[[#This Row],[25th]]","v":64210.8},{"$f":"(((AAMC_Raw_Data_for_FY22[[#This Row],[Median]]-AAMC_Raw_Data_for_FY22[[#This Row],[25th]])/25)*10) + AAMC_Raw_Data_for_FY22[[#This Row],[25th]]","v":64995.6},{"$f":"(((AAMC_Raw_Data_for_FY22[[#This Row],[Median]]-AAMC_Raw_Data_for_FY22[[#This Row],[25th]])/25)*15) + AAMC_Raw_Data_for_FY22[[#This Row],[25th]]","v":65780.399999999994},{"$f":"(((AAMC_Raw_Data_for_FY22[[#This Row],[Median]]-AAMC_Raw_Data_for_FY22[[#This Row],[25th]])/25)*20) + AAMC_Raw_Data_for_FY22[[#This Row],[25th]]","v":66565.2},67350,{"$f":"(((AAMC_Raw_Data_for_FY22[[#This Row],[75th]]-AAMC_Raw_Data_for_FY22[[#This Row],[Median]])/25)*5) + AAMC_Raw_Data_for_FY22[[#This Row],[Median]]","v":69180},{"$f":"(((AAMC_Raw_Data_for_FY22[[#This Row],[75th]]-AAMC_Raw_Data_for_FY22[[#This Row],[Median]])/25)*10) + AAMC_Raw_Data_for_FY22[[#This Row],[Median]]","v":71010},{"$f":"(((AAMC_Raw_Data_for_FY22[[#This Row],[75th]]-AAMC_Raw_Data_for_FY22[[#This Row],[Median]])/25)*15) + AAMC_Raw_Data_for_FY22[[#This Row],[Median]]","v":72840},{"$f":"(((AAMC_Raw_Data_for_FY22[[#This Row],[75th]]-AAMC_Raw_Data_for_FY22[[#This Row],[Median]])/25)*20) + AAMC_Raw_Data_for_FY22[[#This Row],[Median]]","v":74670},76500,{"$f":"(((AAMC_Raw_Data_for_FY22[[#This Row],[75th]]-AAMC_Raw_Data_for_FY22[[#This Row],[Median]])/25)*30) + AAMC_Raw_Data_for_FY22[[#This Row],[Median]]","v":78330},{"$f":"(((AAMC_Raw_Data_for_FY22[[#This Row],[75th]]-AAMC_Raw_Data_for_FY22[[#This Row],[Median]])/25)*35) + AAMC_Raw_Data_for_FY22[[#This Row],[Median]]","v":80160},{"$f":"(((AAMC_Raw_Data_for_FY22[[#This Row],[75th]]-AAMC_Raw_Data_for_FY22[[#This Row],[Median]])/25)*40) + AAMC_Raw_Data_for_FY22[[#This Row],[Median]]","v":81990}]
[{"$f":"AAMC_Raw_Data_for_FY22[[#This Row],[Source]]&AAMC_Raw_Data_for_FY22[[#This Row],[Type]]&AAMC_Raw_Data_for_FY22[[#This Row],[School Subset]]&AAMC_Raw_Data_for_FY22[[#This Row],[Rank]]&AAMC_Raw_Data_for_FY22[[#This Row],[Degree]]&AAMC_Raw_Data_for_FY22[[#This Row],[Department / Specialty]]&\"L\"","v":"AAMCAcademicPrivateAssistantPhDMolecular & Cellular BiologyL"},"Molecular & Cellular Biology",4,"AAMC","Academic","Private","Assistant","PhD","2021-2022",95189,{"$f":"(((AAMC_Raw_Data_for_FY22[[#This Row],[Median]]-AAMC_Raw_Data_for_FY22[[#This Row],[25th]])/25)*5) + AAMC_Raw_Data_for_FY22[[#This Row],[25th]]","v":99235},{"$f":"(((AAMC_Raw_Data_for_FY22[[#This Row],[Median]]-AAMC_Raw_Data_for_FY22[[#This Row],[25th]])/25)*10) + AAMC_Raw_Data_for_FY22[[#This Row],[25th]]","v":103281},{"$f":"(((AAMC_Raw_Data_for_FY22[[#This Row],[Median]]-AAMC_Raw_Data_for_FY22[[#This Row],[25th]])/25)*15) + AAMC_Raw_Data_for_FY22[[#This Row],[25th]]","v":107327},{"$f":"(((AAMC_Raw_Data_for_FY22[[#This Row],[Median]]-AAMC_Raw_Data_for_FY22[[#This Row],[25th]])/25)*20) + AAMC_Raw_Data_for_FY22[[#This Row],[25th]]","v":111373},115419,{"$f":"(((AAMC_Raw_Data_for_FY22[[#This Row],[75th]]-AAMC_Raw_Data_for_FY22[[#This Row],[Median]])/25)*5) + AAMC_Raw_Data_for_FY22[[#This Row],[Median]]","v":118787.4},{"$f":"(((AAMC_Raw_Data_for_FY22[[#This Row],[75th]]-AAMC_Raw_Data_for_FY22[[#This Row],[Median]])/25)*10) + AAMC_Raw_Data_for_FY22[[#This Row],[Median]]","v":122155.8},{"$f":"(((AAMC_Raw_Data_for_FY22[[#This Row],[75th]]-AAMC_Raw_Data_for_FY22[[#This Row],[Median]])/25)*15) + AAMC_Raw_Data_for_FY22[[#This Row],[Median]]","v":125524.2},{"$f":"(((AAMC_Raw_Data_for_FY22[[#This Row],[75th]]-AAMC_Raw_Data_for_FY22[[#This Row],[Median]])/25)*20) + AAMC_Raw_Data_for_FY22[[#This Row],[Median]]","v":128892.6},132261,{"$f":"(((AAMC_Raw_Data_for_FY22[[#This Row],[75th]]-AAMC_Raw_Data_for_FY22[[#This Row],[Median]])/25)*30) + AAMC_Raw_Data_for_FY22[[#This Row],[Median]]","v":135629.4},{"$f":"(((AAMC_Raw_Data_for_FY22[[#This Row],[75th]]-AAMC_Raw_Data_for_FY22[[#This Row],[Median]])/25)*35) + AAMC_Raw_Data_for_FY22[[#This Row],[Median]]","v":138997.79999999999},{"$f":"(((AAMC_Raw_Data_for_FY22[[#This Row],[75th]]-AAMC_Raw_Data_for_FY22[[#This Row],[Median]])/25)*40) + AAMC_Raw_Data_for_FY22[[#This Row],[Median]]","v":142366.20000000001}]
[{"$f":"AAMC_Raw_Data_for_FY22[[#This Row],[Source]]&AAMC_Raw_Data_for_FY22[[#This Row],[Type]]&AAMC_Raw_Data_for_FY22[[#This Row],[School Subset]]&AAMC_Raw_Data_for_FY22[[#This Row],[Rank]]&AAMC_Raw_Data_for_FY22[[#This Row],[Degree]]&AAMC_Raw_Data_for_FY22[[#This Row],[Department / Specialty]]&\"L\"","v":"AAMCAcademicPrivateAssociatePhDMolecular & Cellular BiologyL"},"Molecular & Cellular Biology",3,"AAMC","Academic","Private","Associate","PhD","2021-2022",125047,{"$f":"(((AAMC_Raw_Data_for_FY22[[#This Row],[Median]]-AAMC_Raw_Data_for_FY22[[#This Row],[25th]])/25)*5) + AAMC_Raw_Data_for_FY22[[#This Row],[25th]]","v":128476.8},{"$f":"(((AAMC_Raw_Data_for_FY22[[#This Row],[Median]]-AAMC_Raw_Data_for_FY22[[#This Row],[25th]])/25)*10) + AAMC_Raw_Data_for_FY22[[#This Row],[25th]]","v":131906.6},{"$f":"(((AAMC_Raw_Data_for_FY22[[#This Row],[Median]]-AAMC_Raw_Data_for_FY22[[#This Row],[25th]])/25)*15) + AAMC_Raw_Data_for_FY22[[#This Row],[25th]]","v":135336.4},{"$f":"(((AAMC_Raw_Data_for_FY22[[#This Row],[Median]]-AAMC_Raw_Data_for_FY22[[#This Row],[25th]])/25)*20) + AAMC_Raw_Data_for_FY22[[#This Row],[25th]]","v":138766.20000000001},142196,{"$f":"(((AAMC_Raw_Data_for_FY22[[#This Row],[75th]]-AAMC_Raw_Data_for_FY22[[#This Row],[Median]])/25)*5) + AAMC_Raw_Data_for_FY22[[#This Row],[Median]]","v":148309.79999999999},{"$f":"(((AAMC_Raw_Data_for_FY22[[#This Row],[75th]]-AAMC_Raw_Data_for_FY22[[#This Row],[Median]])/25)*10) + AAMC_Raw_Data_for_FY22[[#This Row],[Median]]","v":154423.6},{"$f":"(((AAMC_Raw_Data_for_FY22[[#This Row],[75th]]-AAMC_Raw_Data_for_FY22[[#This Row],[Median]])/25)*15) + AAMC_Raw_Data_for_FY22[[#This Row],[Median]]","v":160537.4},{"$f":"(((AAMC_Raw_Data_for_FY22[[#This Row],[75th]]-AAMC_Raw_Data_for_FY22[[#This Row],[Median]])/25)*20) + AAMC_Raw_Data_for_FY22[[#This Row],[Median]]","v":166651.20000000001},172765,{"$f":"(((AAMC_Raw_Data_for_FY22[[#This Row],[75th]]-AAMC_Raw_Data_for_FY22[[#This Row],[Median]])/25)*30) + AAMC_Raw_Data_for_FY22[[#This Row],[Median]]","v":178878.8},{"$f":"(((AAMC_Raw_Data_for_FY22[[#This Row],[75th]]-AAMC_Raw_Data_for_FY22[[#This Row],[Median]])/25)*35) + AAMC_Raw_Data_for_FY22[[#This Row],[Median]]","v":184992.6},{"$f":"(((AAMC_Raw_Data_for_FY22[[#This Row],[75th]]-AAMC_Raw_Data_for_FY22[[#This Row],[Median]])/25)*40) + AAMC_Raw_Data_for_FY22[[#This Row],[Median]]","v":191106.4}]
[{"$f":"AAMC_Raw_Data_for_FY22[[#This Row],[Source]]&AAMC_Raw_Data_for_FY22[[#This Row],[Type]]&AAMC_Raw_Data_for_FY22[[#This Row],[School Subset]]&AAMC_Raw_Data_for_FY22[[#This Row],[Rank]]&AAMC_Raw_Data_for_FY22[[#This Row],[Degree]]&AAMC_Raw_Data_for_FY22[[#This Row],[Department / Specialty]]&\"L\"","v":"AAMCAcademicPrivateProfessorPhDMolecular & Cellular BiologyL"},"Molecular & Cellular Biology",2,"AAMC","Academic","Private","Professor","PhD","2021-2022",184500,{"$f":"(((AAMC_Raw_Data_for_FY22[[#This Row],[Median]]-AAMC_Raw_Data_for_FY22[[#This Row],[25th]])/25)*5) + AAMC_Raw_Data_for_FY22[[#This Row],[25th]]","v":190251.4},{"$f":"(((AAMC_Raw_Data_for_FY22[[#This Row],[Median]]-AAMC_Raw_Data_for_FY22[[#This Row],[25th]])/25)*10) + AAMC_Raw_Data_for_FY22[[#This Row],[25th]]","v":196002.8},{"$f":"(((AAMC_Raw_Data_for_FY22[[#This Row],[Median]]-AAMC_Raw_Data_for_FY22[[#This Row],[25th]])/25)*15) + AAMC_Raw_Data_for_FY22[[#This Row],[25th]]","v":201754.2},{"$f":"(((AAMC_Raw_Data_for_FY22[[#This Row],[Median]]-AAMC_Raw_Data_for_FY22[[#This Row],[25th]])/25)*20) + AAMC_Raw_Data_for_FY22[[#This Row],[25th]]","v":207505.6},213257,{"$f":"(((AAMC_Raw_Data_for_FY22[[#This Row],[75th]]-AAMC_Raw_Data_for_FY22[[#This Row],[Median]])/25)*5) + AAMC_Raw_Data_for_FY22[[#This Row],[Median]]","v":223885.6},{"$f":"(((AAMC_Raw_Data_for_FY22[[#This Row],[75th]]-AAMC_Raw_Data_for_FY22[[#This Row],[Median]])/25)*10) + AAMC_Raw_Data_for_FY22[[#This Row],[Median]]","v":234514.2},{"$f":"(((AAMC_Raw_Data_for_FY22[[#This Row],[75th]]-AAMC_Raw_Data_for_FY22[[#This Row],[Median]])/25)*15) + AAMC_Raw_Data_for_FY22[[#This Row],[Median]]","v":245142.8},{"$f":"(((AAMC_Raw_Data_for_FY22[[#This Row],[75th]]-AAMC_Raw_Data_for_FY22[[#This Row],[Median]])/25)*20) + AAMC_Raw_Data_for_FY22[[#This Row],[Median]]","v":255771.4},266400,{"$f":"(((AAMC_Raw_Data_for_FY22[[#This Row],[75th]]-AAMC_Raw_Data_for_FY22[[#This Row],[Median]])/25)*30) + AAMC_Raw_Data_for_FY22[[#This Row],[Median]]","v":277028.59999999998},{"$f":"(((AAMC_Raw_Data_for_FY22[[#This Row],[75th]]-AAMC_Raw_Data_for_FY22[[#This Row],[Median]])/25)*35) + AAMC_Raw_Data_for_FY22[[#This Row],[Median]]","v":287657.2},{"$f":"(((AAMC_Raw_Data_for_FY22[[#This Row],[75th]]-AAMC_Raw_Data_for_FY22[[#This Row],[Median]])/25)*40) + AAMC_Raw_Data_for_FY22[[#This Row],[Median]]","v":298285.8}]
[{"$f":"AAMC_Raw_Data_for_FY22[[#This Row],[Source]]&AAMC_Raw_Data_for_FY22[[#This Row],[Type]]&AAMC_Raw_Data_for_FY22[[#This Row],[School Subset]]&AAMC_Raw_Data_for_FY22[[#This Row],[Rank]]&AAMC_Raw_Data_for_FY22[[#This Row],[Degree]]&AAMC_Raw_Data_for_FY22[[#This Row],[Department / Specialty]]&\"L\"","v":"AAMCAcademicPrivateChiefPhDMolecular & Cellular BiologyL"},"Molecular & Cellular Biology",6,"AAMC","Academic","Private","Chief","PhD","2021-2022",null,{"$f":"(((AAMC_Raw_Data_for_FY22[[#This Row],[Median]]-AAMC_Raw_Data_for_FY22[[#This Row],[25th]])/25)*5) + AAMC_Raw_Data_for_FY22[[#This Row],[25th]]","v":0},{"$f":"(((AAMC_Raw_Data_for_FY22[[#This Row],[Median]]-AAMC_Raw_Data_for_FY22[[#This Row],[25th]])/25)*10) + AAMC_Raw_Data_for_FY22[[#This Row],[25th]]","v":0},{"$f":"(((AAMC_Raw_Data_for_FY22[[#This Row],[Median]]-AAMC_Raw_Data_for_FY22[[#This Row],[25th]])/25)*15) + AAMC_Raw_Data_for_FY22[[#This Row],[25th]]","v":0},{"$f":"(((AAMC_Raw_Data_for_FY22[[#This Row],[Median]]-AAMC_Raw_Data_for_FY22[[#This Row],[25th]])/25)*20) + AAMC_Raw_Data_for_FY22[[#This Row],[25th]]","v":0},null,{"$f":"(((AAMC_Raw_Data_for_FY22[[#This Row],[75th]]-AAMC_Raw_Data_for_FY22[[#This Row],[Median]])/25)*5) + AAMC_Raw_Data_for_FY22[[#This Row],[Median]]","v":0},{"$f":"(((AAMC_Raw_Data_for_FY22[[#This Row],[75th]]-AAMC_Raw_Data_for_FY22[[#This Row],[Median]])/25)*10) + AAMC_Raw_Data_for_FY22[[#This Row],[Median]]","v":0},{"$f":"(((AAMC_Raw_Data_for_FY22[[#This Row],[75th]]-AAMC_Raw_Data_for_FY22[[#This Row],[Median]])/25)*15) + AAMC_Raw_Data_for_FY22[[#This Row],[Median]]","v":0},{"$f":"(((AAMC_Raw_Data_for_FY22[[#This Row],[75th]]-AAMC_Raw_Data_for_FY22[[#This Row],[Median]])/25)*20) + AAMC_Raw_Data_for_FY22[[#This Row],[Median]]","v":0},null,{"$f":"(((AAMC_Raw_Data_for_FY22[[#This Row],[75th]]-AAMC_Raw_Data_for_FY22[[#This Row],[Median]])/25)*30) + AAMC_Raw_Data_for_FY22[[#This Row],[Median]]","v":0},{"$f":"(((AAMC_Raw_Data_for_FY22[[#This Row],[75th]]-AAMC_Raw_Data_for_FY22[[#This Row],[Median]])/25)*35) + AAMC_Raw_Data_for_FY22[[#This Row],[Median]]","v":0},{"$f":"(((AAMC_Raw_Data_for_FY22[[#This Row],[75th]]-AAMC_Raw_Data_for_FY22[[#This Row],[Median]])/25)*40) + AAMC_Raw_Data_for_FY22[[#This Row],[Median]]","v":0}]
[{"$f":"AAMC_Raw_Data_for_FY22[[#This Row],[Source]]&AAMC_Raw_Data_for_FY22[[#This Row],[Type]]&AAMC_Raw_Data_for_FY22[[#This Row],[School Subset]]&AAMC_Raw_Data_for_FY22[[#This Row],[Rank]]&AAMC_Raw_Data_for_FY22[[#This Row],[Degree]]&AAMC_Raw_Data_for_FY22[[#This Row],[Department / Specialty]]&\"L\"","v":"AAMCAcademicPrivateChairPhDMolecular & Cellular BiologyL"},"Molecular & Cellular Biology",1,"AAMC","Academic","Private","Chair","PhD","2021-2022",316222,{"$f":"(((AAMC_Raw_Data_for_FY22[[#This Row],[Median]]-AAMC_Raw_Data_for_FY22[[#This Row],[25th]])/25)*5) + AAMC_Raw_Data_for_FY22[[#This Row],[25th]]","v":325520.59999999998},{"$f":"(((AAMC_Raw_Data_for_FY22[[#This Row],[Median]]-AAMC_Raw_Data_for_FY22[[#This Row],[25th]])/25)*10) + AAMC_Raw_Data_for_FY22[[#This Row],[25th]]","v":334819.20000000001},{"$f":"(((AAMC_Raw_Data_for_FY22[[#This Row],[Median]]-AAMC_Raw_Data_for_FY22[[#This Row],[25th]])/25)*15) + AAMC_Raw_Data_for_FY22[[#This Row],[25th]]","v":344117.8},{"$f":"(((AAMC_Raw_Data_for_FY22[[#This Row],[Median]]-AAMC_Raw_Data_for_FY22[[#This Row],[25th]])/25)*20) + AAMC_Raw_Data_for_FY22[[#This Row],[25th]]","v":353416.4},362715,{"$f":"(((AAMC_Raw_Data_for_FY22[[#This Row],[75th]]-AAMC_Raw_Data_for_FY22[[#This Row],[Median]])/25)*5) + AAMC_Raw_Data_for_FY22[[#This Row],[Median]]","v":380597.4},{"$f":"(((AAMC_Raw_Data_for_FY22[[#This Row],[75th]]-AAMC_Raw_Data_for_FY22[[#This Row],[Median]])/25)*10) + AAMC_Raw_Data_for_FY22[[#This Row],[Median]]","v":398479.8},{"$f":"(((AAMC_Raw_Data_for_FY22[[#This Row],[75th]]-AAMC_Raw_Data_for_FY22[[#This Row],[Median]])/25)*15) + AAMC_Raw_Data_for_FY22[[#This Row],[Median]]","v":416362.2},{"$f":"(((AAMC_Raw_Data_for_FY22[[#This Row],[75th]]-AAMC_Raw_Data_for_FY22[[#This Row],[Median]])/25)*20) + AAMC_Raw_Data_for_FY22[[#This Row],[Median]]","v":434244.6},452127,{"$f":"(((AAMC_Raw_Data_for_FY22[[#This Row],[75th]]-AAMC_Raw_Data_for_FY22[[#This Row],[Median]])/25)*30) + AAMC_Raw_Data_for_FY22[[#This Row],[Median]]","v":470009.4},{"$f":"(((AAMC_Raw_Data_for_FY22[[#This Row],[75th]]-AAMC_Raw_Data_for_FY22[[#This Row],[Median]])/25)*35) + AAMC_Raw_Data_for_FY22[[#This Row],[Median]]","v":487891.8},{"$f":"(((AAMC_Raw_Data_for_FY22[[#This Row],[75th]]-AAMC_Raw_Data_for_FY22[[#This Row],[Median]])/25)*40) + AAMC_Raw_Data_for_FY22[[#This Row],[Median]]","v":505774.2}]
[{"$f":"AAMC_Raw_Data_for_FY22[[#This Row],[Source]]&AAMC_Raw_Data_for_FY22[[#This Row],[Type]]&AAMC_Raw_Data_for_FY22[[#This Row],[School Subset]]&AAMC_Raw_Data_for_FY22[[#This Row],[Rank]]&AAMC_Raw_Data_for_FY22[[#This Row],[Degree]]&AAMC_Raw_Data_for_FY22[[#This Row],[Department / Specialty]]&\"L\"","v":"AAMCAcademicPrivateInstructorPhDNeurosciencesL"},"Neurosciences",5,"AAMC","Academic","Private","Instructor","PhD","2021-2022",65000,{"$f":"(((AAMC_Raw_Data_for_FY22[[#This Row],[Median]]-AAMC_Raw_Data_for_FY22[[#This Row],[25th]])/25)*5) + AAMC_Raw_Data_for_FY22[[#This Row],[25th]]","v":66920},{"$f":"(((AAMC_Raw_Data_for_FY22[[#This Row],[Median]]-AAMC_Raw_Data_for_FY22[[#This Row],[25th]])/25)*10) + AAMC_Raw_Data_for_FY22[[#This Row],[25th]]","v":68840},{"$f":"(((AAMC_Raw_Data_for_FY22[[#This Row],[Median]]-AAMC_Raw_Data_for_FY22[[#This Row],[25th]])/25)*15) + AAMC_Raw_Data_for_FY22[[#This Row],[25th]]","v":70760},{"$f":"(((AAMC_Raw_Data_for_FY22[[#This Row],[Median]]-AAMC_Raw_Data_for_FY22[[#This Row],[25th]])/25)*20) + AAMC_Raw_Data_for_FY22[[#This Row],[25th]]","v":72680},74600,{"$f":"(((AAMC_Raw_Data_for_FY22[[#This Row],[75th]]-AAMC_Raw_Data_for_FY22[[#This Row],[Median]])/25)*5) + AAMC_Raw_Data_for_FY22[[#This Row],[Median]]","v":75680},{"$f":"(((AAMC_Raw_Data_for_FY22[[#This Row],[75th]]-AAMC_Raw_Data_for_FY22[[#This Row],[Median]])/25)*10) + AAMC_Raw_Data_for_FY22[[#This Row],[Median]]","v":76760},{"$f":"(((AAMC_Raw_Data_for_FY22[[#This Row],[75th]]-AAMC_Raw_Data_for_FY22[[#This Row],[Median]])/25)*15) + AAMC_Raw_Data_for_FY22[[#This Row],[Median]]","v":77840},{"$f":"(((AAMC_Raw_Data_for_FY22[[#This Row],[75th]]-AAMC_Raw_Data_for_FY22[[#This Row],[Median]])/25)*20) + AAMC_Raw_Data_for_FY22[[#This Row],[Median]]","v":78920},80000,{"$f":"(((AAMC_Raw_Data_for_FY22[[#This Row],[75th]]-AAMC_Raw_Data_for_FY22[[#This Row],[Median]])/25)*30) + AAMC_Raw_Data_for_FY22[[#This Row],[Median]]","v":81080},{"$f":"(((AAMC_Raw_Data_for_FY22[[#This Row],[75th]]-AAMC_Raw_Data_for_FY22[[#This Row],[Median]])/25)*35) + AAMC_Raw_Data_for_FY22[[#This Row],[Median]]","v":82160},{"$f":"(((AAMC_Raw_Data_for_FY22[[#This Row],[75th]]-AAMC_Raw_Data_for_FY22[[#This Row],[Median]])/25)*40) + AAMC_Raw_Data_for_FY22[[#This Row],[Median]]","v":83240}]
[{"$f":"AAMC_Raw_Data_for_FY22[[#This Row],[Source]]&AAMC_Raw_Data_for_FY22[[#This Row],[Type]]&AAMC_Raw_Data_for_FY22[[#This Row],[School Subset]]&AAMC_Raw_Data_for_FY22[[#This Row],[Rank]]&AAMC_Raw_Data_for_FY22[[#This Row],[Degree]]&AAMC_Raw_Data_for_FY22[[#This Row],[Department / Specialty]]&\"L\"","v":"AAMCAcademicPrivateAssistantPhDNeurosciencesL"},"Neurosciences",4,"AAMC","Academic","Private","Assistant","PhD","2021-2022",90030,{"$f":"(((AAMC_Raw_Data_for_FY22[[#This Row],[Median]]-AAMC_Raw_Data_for_FY22[[#This Row],[25th]])/25)*5) + AAMC_Raw_Data_for_FY22[[#This Row],[25th]]","v":94099.8},{"$f":"(((AAMC_Raw_Data_for_FY22[[#This Row],[Median]]-AAMC_Raw_Data_for_FY22[[#This Row],[25th]])/25)*10) + AAMC_Raw_Data_for_FY22[[#This Row],[25th]]","v":98169.600000000006},{"$f":"(((AAMC_Raw_Data_for_FY22[[#This Row],[Median]]-AAMC_Raw_Data_for_FY22[[#This Row],[25th]])/25)*15) + AAMC_Raw_Data_for_FY22[[#This Row],[25th]]","v":102239.4},{"$f":"(((AAMC_Raw_Data_for_FY22[[#This Row],[Median]]-AAMC_Raw_Data_for_FY22[[#This Row],[25th]])/25)*20) + AAMC_Raw_Data_for_FY22[[#This Row],[25th]]","v":106309.2},110379,{"$f":"(((AAMC_Raw_Data_for_FY22[[#This Row],[75th]]-AAMC_Raw_Data_for_FY22[[#This Row],[Median]])/25)*5) + AAMC_Raw_Data_for_FY22[[#This Row],[Median]]","v":114783.2},{"$f":"(((AAMC_Raw_Data_for_FY22[[#This Row],[75th]]-AAMC_Raw_Data_for_FY22[[#This Row],[Median]])/25)*10) + AAMC_Raw_Data_for_FY22[[#This Row],[Median]]","v":119187.4},{"$f":"(((AAMC_Raw_Data_for_FY22[[#This Row],[75th]]-AAMC_Raw_Data_for_FY22[[#This Row],[Median]])/25)*15) + AAMC_Raw_Data_for_FY22[[#This Row],[Median]]","v":123591.6},{"$f":"(((AAMC_Raw_Data_for_FY22[[#This Row],[75th]]-AAMC_Raw_Data_for_FY22[[#This Row],[Median]])/25)*20) + AAMC_Raw_Data_for_FY22[[#This Row],[Median]]","v":127995.8},132400,{"$f":"(((AAMC_Raw_Data_for_FY22[[#This Row],[75th]]-AAMC_Raw_Data_for_FY22[[#This Row],[Median]])/25)*30) + AAMC_Raw_Data_for_FY22[[#This Row],[Median]]","v":136804.20000000001},{"$f":"(((AAMC_Raw_Data_for_FY22[[#This Row],[75th]]-AAMC_Raw_Data_for_FY22[[#This Row],[Median]])/25)*35) + AAMC_Raw_Data_for_FY22[[#This Row],[Median]]","v":141208.4},{"$f":"(((AAMC_Raw_Data_for_FY22[[#This Row],[75th]]-AAMC_Raw_Data_for_FY22[[#This Row],[Median]])/25)*40) + AAMC_Raw_Data_for_FY22[[#This Row],[Median]]","v":145612.6}]
[{"$f":"AAMC_Raw_Data_for_FY22[[#This Row],[Source]]&AAMC_Raw_Data_for_FY22[[#This Row],[Type]]&AAMC_Raw_Data_for_FY22[[#This Row],[School Subset]]&AAMC_Raw_Data_for_FY22[[#This Row],[Rank]]&AAMC_Raw_Data_for_FY22[[#This Row],[Degree]]&AAMC_Raw_Data_for_FY22[[#This Row],[Department / Specialty]]&\"L\"","v":"AAMCAcademicPrivateAssociatePhDNeurosciencesL"},"Neurosciences",3,"AAMC","Academic","Private","Associate","PhD","2021-2022",127549,{"$f":"(((AAMC_Raw_Data_for_FY22[[#This Row],[Median]]-AAMC_Raw_Data_for_FY22[[#This Row],[25th]])/25)*5) + AAMC_Raw_Data_for_FY22[[#This Row],[25th]]","v":130564.2},{"$f":"(((AAMC_Raw_Data_for_FY22[[#This Row],[Median]]-AAMC_Raw_Data_for_FY22[[#This Row],[25th]])/25)*10) + AAMC_Raw_Data_for_FY22[[#This Row],[25th]]","v":133579.4},{"$f":"(((AAMC_Raw_Data_for_FY22[[#This Row],[Median]]-AAMC_Raw_Data_for_FY22[[#This Row],[25th]])/25)*15) + AAMC_Raw_Data_for_FY22[[#This Row],[25th]]","v":136594.6},{"$f":"(((AAMC_Raw_Data_for_FY22[[#This Row],[Median]]-AAMC_Raw_Data_for_FY22[[#This Row],[25th]])/25)*20) + AAMC_Raw_Data_for_FY22[[#This Row],[25th]]","v":139609.79999999999},142625,{"$f":"(((AAMC_Raw_Data_for_FY22[[#This Row],[75th]]-AAMC_Raw_Data_for_FY22[[#This Row],[Median]])/25)*5) + AAMC_Raw_Data_for_FY22[[#This Row],[Median]]","v":148966.6},{"$f":"(((AAMC_Raw_Data_for_FY22[[#This Row],[75th]]-AAMC_Raw_Data_for_FY22[[#This Row],[Median]])/25)*10) + AAMC_Raw_Data_for_FY22[[#This Row],[Median]]","v":155308.20000000001},{"$f":"(((AAMC_Raw_Data_for_FY22[[#This Row],[75th]]-AAMC_Raw_Data_for_FY22[[#This Row],[Median]])/25)*15) + AAMC_Raw_Data_for_FY22[[#This Row],[Median]]","v":161649.79999999999},{"$f":"(((AAMC_Raw_Data_for_FY22[[#This Row],[75th]]-AAMC_Raw_Data_for_FY22[[#This Row],[Median]])/25)*20) + AAMC_Raw_Data_for_FY22[[#This Row],[Median]]","v":167991.4},174333,{"$f":"(((AAMC_Raw_Data_for_FY22[[#This Row],[75th]]-AAMC_Raw_Data_for_FY22[[#This Row],[Median]])/25)*30) + AAMC_Raw_Data_for_FY22[[#This Row],[Median]]","v":180674.6},{"$f":"(((AAMC_Raw_Data_for_FY22[[#This Row],[75th]]-AAMC_Raw_Data_for_FY22[[#This Row],[Median]])/25)*35) + AAMC_Raw_Data_for_FY22[[#This Row],[Median]]","v":187016.2},{"$f":"(((AAMC_Raw_Data_for_FY22[[#This Row],[75th]]-AAMC_Raw_Data_for_FY22[[#This Row],[Median]])/25)*40) + AAMC_Raw_Data_for_FY22[[#This Row],[Median]]","v":193357.8}]
[{"$f":"AAMC_Raw_Data_for_FY22[[#This Row],[Source]]&AAMC_Raw_Data_for_FY22[[#This Row],[Type]]&AAMC_Raw_Data_for_FY22[[#This Row],[School Subset]]&AAMC_Raw_Data_for_FY22[[#This Row],[Rank]]&AAMC_Raw_Data_for_FY22[[#This Row],[Degree]]&AAMC_Raw_Data_for_FY22[[#This Row],[Department / Specialty]]&\"L\"","v":"AAMCAcademicPrivateProfessorPhDNeurosciencesL"},"Neurosciences",2,"AAMC","Academic","Private","Professor","PhD","2021-2022",181612,{"$f":"(((AAMC_Raw_Data_for_FY22[[#This Row],[Median]]-AAMC_Raw_Data_for_FY22[[#This Row],[25th]])/25)*5) + AAMC_Raw_Data_for_FY22[[#This Row],[25th]]","v":187560},{"$f":"(((AAMC_Raw_Data_for_FY22[[#This Row],[Median]]-AAMC_Raw_Data_for_FY22[[#This Row],[25th]])/25)*10) + AAMC_Raw_Data_for_FY22[[#This Row],[25th]]","v":193508},{"$f":"(((AAMC_Raw_Data_for_FY22[[#This Row],[Median]]-AAMC_Raw_Data_for_FY22[[#This Row],[25th]])/25)*15) + AAMC_Raw_Data_for_FY22[[#This Row],[25th]]","v":199456},{"$f":"(((AAMC_Raw_Data_for_FY22[[#This Row],[Median]]-AAMC_Raw_Data_for_FY22[[#This Row],[25th]])/25)*20) + AAMC_Raw_Data_for_FY22[[#This Row],[25th]]","v":205404},211352,{"$f":"(((AAMC_Raw_Data_for_FY22[[#This Row],[75th]]-AAMC_Raw_Data_for_FY22[[#This Row],[Median]])/25)*5) + AAMC_Raw_Data_for_FY22[[#This Row],[Median]]","v":220627.6},{"$f":"(((AAMC_Raw_Data_for_FY22[[#This Row],[75th]]-AAMC_Raw_Data_for_FY22[[#This Row],[Median]])/25)*10) + AAMC_Raw_Data_for_FY22[[#This Row],[Median]]","v":229903.2},{"$f":"(((AAMC_Raw_Data_for_FY22[[#This Row],[75th]]-AAMC_Raw_Data_for_FY22[[#This Row],[Median]])/25)*15) + AAMC_Raw_Data_for_FY22[[#This Row],[Median]]","v":239178.8},{"$f":"(((AAMC_Raw_Data_for_FY22[[#This Row],[75th]]-AAMC_Raw_Data_for_FY22[[#This Row],[Median]])/25)*20) + AAMC_Raw_Data_for_FY22[[#This Row],[Median]]","v":248454.39999999999},257730,{"$f":"(((AAMC_Raw_Data_for_FY22[[#This Row],[75th]]-AAMC_Raw_Data_for_FY22[[#This Row],[Median]])/25)*30) + AAMC_Raw_Data_for_FY22[[#This Row],[Median]]","v":267005.59999999998},{"$f":"(((AAMC_Raw_Data_for_FY22[[#This Row],[75th]]-AAMC_Raw_Data_for_FY22[[#This Row],[Median]])/25)*35) + AAMC_Raw_Data_for_FY22[[#This Row],[Median]]","v":276281.2},{"$f":"(((AAMC_Raw_Data_for_FY22[[#This Row],[75th]]-AAMC_Raw_Data_for_FY22[[#This Row],[Median]])/25)*40) + AAMC_Raw_Data_for_FY22[[#This Row],[Median]]","v":285556.8}]
[{"$f":"AAMC_Raw_Data_for_FY22[[#This Row],[Source]]&AAMC_Raw_Data_for_FY22[[#This Row],[Type]]&AAMC_Raw_Data_for_FY22[[#This Row],[School Subset]]&AAMC_Raw_Data_for_FY22[[#This Row],[Rank]]&AAMC_Raw_Data_for_FY22[[#This Row],[Degree]]&AAMC_Raw_Data_for_FY22[[#This Row],[Department / Specialty]]&\"L\"","v":"AAMCAcademicPrivateChiefPhDNeurosciencesL"},"Neurosciences",6,"AAMC","Academic","Private","Chief","PhD","2021-2022",null,{"$f":"(((AAMC_Raw_Data_for_FY22[[#This Row],[Median]]-AAMC_Raw_Data_for_FY22[[#This Row],[25th]])/25)*5) + AAMC_Raw_Data_for_FY22[[#This Row],[25th]]","v":0},{"$f":"(((AAMC_Raw_Data_for_FY22[[#This Row],[Median]]-AAMC_Raw_Data_for_FY22[[#This Row],[25th]])/25)*10) + AAMC_Raw_Data_for_FY22[[#This Row],[25th]]","v":0},{"$f":"(((AAMC_Raw_Data_for_FY22[[#This Row],[Median]]-AAMC_Raw_Data_for_FY22[[#This Row],[25th]])/25)*15) + AAMC_Raw_Data_for_FY22[[#This Row],[25th]]","v":0},{"$f":"(((AAMC_Raw_Data_for_FY22[[#This Row],[Median]]-AAMC_Raw_Data_for_FY22[[#This Row],[25th]])/25)*20) + AAMC_Raw_Data_for_FY22[[#This Row],[25th]]","v":0},null,{"$f":"(((AAMC_Raw_Data_for_FY22[[#This Row],[75th]]-AAMC_Raw_Data_for_FY22[[#This Row],[Median]])/25)*5) + AAMC_Raw_Data_for_FY22[[#This Row],[Median]]","v":0},{"$f":"(((AAMC_Raw_Data_for_FY22[[#This Row],[75th]]-AAMC_Raw_Data_for_FY22[[#This Row],[Median]])/25)*10) + AAMC_Raw_Data_for_FY22[[#This Row],[Median]]","v":0},{"$f":"(((AAMC_Raw_Data_for_FY22[[#This Row],[75th]]-AAMC_Raw_Data_for_FY22[[#This Row],[Median]])/25)*15) + AAMC_Raw_Data_for_FY22[[#This Row],[Median]]","v":0},{"$f":"(((AAMC_Raw_Data_for_FY22[[#This Row],[75th]]-AAMC_Raw_Data_for_FY22[[#This Row],[Median]])/25)*20) + AAMC_Raw_Data_for_FY22[[#This Row],[Median]]","v":0},null,{"$f":"(((AAMC_Raw_Data_for_FY22[[#This Row],[75th]]-AAMC_Raw_Data_for_FY22[[#This Row],[Median]])/25)*30) + AAMC_Raw_Data_for_FY22[[#This Row],[Median]]","v":0},{"$f":"(((AAMC_Raw_Data_for_FY22[[#This Row],[75th]]-AAMC_Raw_Data_for_FY22[[#This Row],[Median]])/25)*35) + AAMC_Raw_Data_for_FY22[[#This Row],[Median]]","v":0},{"$f":"(((AAMC_Raw_Data_for_FY22[[#This Row],[75th]]-AAMC_Raw_Data_for_FY22[[#This Row],[Median]])/25)*40) + AAMC_Raw_Data_for_FY22[[#This Row],[Median]]","v":0}]
[{"$f":"AAMC_Raw_Data_for_FY22[[#This Row],[Source]]&AAMC_Raw_Data_for_FY22[[#This Row],[Type]]&AAMC_Raw_Data_for_FY22[[#This Row],[School Subset]]&AAMC_Raw_Data_for_FY22[[#This Row],[Rank]]&AAMC_Raw_Data_for_FY22[[#This Row],[Degree]]&AAMC_Raw_Data_for_FY22[[#This Row],[Department / Specialty]]&\"L\"","v":"AAMCAcademicPrivateChairPhDNeurosciencesL"},"Neurosciences",1,"AAMC","Academic","Private","Chair","PhD","2021-2022",258425,{"$f":"(((AAMC_Raw_Data_for_FY22[[#This Row],[Median]]-AAMC_Raw_Data_for_FY22[[#This Row],[25th]])/25)*5) + AAMC_Raw_Data_for_FY22[[#This Row],[25th]]","v":278749.59999999998},{"$f":"(((AAMC_Raw_Data_for_FY22[[#This Row],[Median]]-AAMC_Raw_Data_for_FY22[[#This Row],[25th]])/25)*10) + AAMC_Raw_Data_for_FY22[[#This Row],[25th]]","v":299074.2},{"$f":"(((AAMC_Raw_Data_for_FY22[[#This Row],[Median]]-AAMC_Raw_Data_for_FY22[[#This Row],[25th]])/25)*15) + AAMC_Raw_Data_for_FY22[[#This Row],[25th]]","v":319398.8},{"$f":"(((AAMC_Raw_Data_for_FY22[[#This Row],[Median]]-AAMC_Raw_Data_for_FY22[[#This Row],[25th]])/25)*20) + AAMC_Raw_Data_for_FY22[[#This Row],[25th]]","v":339723.4},360048,{"$f":"(((AAMC_Raw_Data_for_FY22[[#This Row],[75th]]-AAMC_Raw_Data_for_FY22[[#This Row],[Median]])/25)*5) + AAMC_Raw_Data_for_FY22[[#This Row],[Median]]","v":377824},{"$f":"(((AAMC_Raw_Data_for_FY22[[#This Row],[75th]]-AAMC_Raw_Data_for_FY22[[#This Row],[Median]])/25)*10) + AAMC_Raw_Data_for_FY22[[#This Row],[Median]]","v":395600},{"$f":"(((AAMC_Raw_Data_for_FY22[[#This Row],[75th]]-AAMC_Raw_Data_for_FY22[[#This Row],[Median]])/25)*15) + AAMC_Raw_Data_for_FY22[[#This Row],[Median]]","v":413376},{"$f":"(((AAMC_Raw_Data_for_FY22[[#This Row],[75th]]-AAMC_Raw_Data_for_FY22[[#This Row],[Median]])/25)*20) + AAMC_Raw_Data_for_FY22[[#This Row],[Median]]","v":431152},448928,{"$f":"(((AAMC_Raw_Data_for_FY22[[#This Row],[75th]]-AAMC_Raw_Data_for_FY22[[#This Row],[Median]])/25)*30) + AAMC_Raw_Data_for_FY22[[#This Row],[Median]]","v":466704},{"$f":"(((AAMC_Raw_Data_for_FY22[[#This Row],[75th]]-AAMC_Raw_Data_for_FY22[[#This Row],[Median]])/25)*35) + AAMC_Raw_Data_for_FY22[[#This Row],[Median]]","v":484480},{"$f":"(((AAMC_Raw_Data_for_FY22[[#This Row],[75th]]-AAMC_Raw_Data_for_FY22[[#This Row],[Median]])/25)*40) + AAMC_Raw_Data_for_FY22[[#This Row],[Median]]","v":502256}]
[{"$f":"AAMC_Raw_Data_for_FY22[[#This Row],[Source]]&AAMC_Raw_Data_for_FY22[[#This Row],[Type]]&AAMC_Raw_Data_for_FY22[[#This Row],[School Subset]]&AAMC_Raw_Data_for_FY22[[#This Row],[Rank]]&AAMC_Raw_Data_for_FY22[[#This Row],[Degree]]&AAMC_Raw_Data_for_FY22[[#This Row],[Department / Specialty]]&\"L\"","v":"AAMCAcademicPrivateInstructorPhDPharmacologyL"},"Pharmacology",5,"AAMC","Academic","Private","Instructor","PhD","2021-2022",64411,{"$f":"(((AAMC_Raw_Data_for_FY22[[#This Row],[Median]]-AAMC_Raw_Data_for_FY22[[#This Row],[25th]])/25)*5) + AAMC_Raw_Data_for_FY22[[#This Row],[25th]]","v":65357.599999999999},{"$f":"(((AAMC_Raw_Data_for_FY22[[#This Row],[Median]]-AAMC_Raw_Data_for_FY22[[#This Row],[25th]])/25)*10) + AAMC_Raw_Data_for_FY22[[#This Row],[25th]]","v":66304.2},{"$f":"(((AAMC_Raw_Data_for_FY22[[#This Row],[Median]]-AAMC_Raw_Data_for_FY22[[#This Row],[25th]])/25)*15) + AAMC_Raw_Data_for_FY22[[#This Row],[25th]]","v":67250.8},{"$f":"(((AAMC_Raw_Data_for_FY22[[#This Row],[Median]]-AAMC_Raw_Data_for_FY22[[#This Row],[25th]])/25)*20) + AAMC_Raw_Data_for_FY22[[#This Row],[25th]]","v":68197.399999999994},69144,{"$f":"(((AAMC_Raw_Data_for_FY22[[#This Row],[75th]]-AAMC_Raw_Data_for_FY22[[#This Row],[Median]])/25)*5) + AAMC_Raw_Data_for_FY22[[#This Row],[Median]]","v":71097.8},{"$f":"(((AAMC_Raw_Data_for_FY22[[#This Row],[75th]]-AAMC_Raw_Data_for_FY22[[#This Row],[Median]])/25)*10) + AAMC_Raw_Data_for_FY22[[#This Row],[Median]]","v":73051.600000000006},{"$f":"(((AAMC_Raw_Data_for_FY22[[#This Row],[75th]]-AAMC_Raw_Data_for_FY22[[#This Row],[Median]])/25)*15) + AAMC_Raw_Data_for_FY22[[#This Row],[Median]]","v":75005.399999999994},{"$f":"(((AAMC_Raw_Data_for_FY22[[#This Row],[75th]]-AAMC_Raw_Data_for_FY22[[#This Row],[Median]])/25)*20) + AAMC_Raw_Data_for_FY22[[#This Row],[Median]]","v":76959.199999999997},78913,{"$f":"(((AAMC_Raw_Data_for_FY22[[#This Row],[75th]]-AAMC_Raw_Data_for_FY22[[#This Row],[Median]])/25)*30) + AAMC_Raw_Data_for_FY22[[#This Row],[Median]]","v":80866.8},{"$f":"(((AAMC_Raw_Data_for_FY22[[#This Row],[75th]]-AAMC_Raw_Data_for_FY22[[#This Row],[Median]])/25)*35) + AAMC_Raw_Data_for_FY22[[#This Row],[Median]]","v":82820.600000000006},{"$f":"(((AAMC_Raw_Data_for_FY22[[#This Row],[75th]]-AAMC_Raw_Data_for_FY22[[#This Row],[Median]])/25)*40) + AAMC_Raw_Data_for_FY22[[#This Row],[Median]]","v":84774.399999999994}]
[{"$f":"AAMC_Raw_Data_for_FY22[[#This Row],[Source]]&AAMC_Raw_Data_for_FY22[[#This Row],[Type]]&AAMC_Raw_Data_for_FY22[[#This Row],[School Subset]]&AAMC_Raw_Data_for_FY22[[#This Row],[Rank]]&AAMC_Raw_Data_for_FY22[[#This Row],[Degree]]&AAMC_Raw_Data_for_FY22[[#This Row],[Department / Specialty]]&\"L\"","v":"AAMCAcademicPrivateAssistantPhDPharmacologyL"},"Pharmacology",4,"AAMC","Academic","Private","Assistant","PhD","2021-2022",85675,{"$f":"(((AAMC_Raw_Data_for_FY22[[#This Row],[Median]]-AAMC_Raw_Data_for_FY22[[#This Row],[25th]])/25)*5) + AAMC_Raw_Data_for_FY22[[#This Row],[25th]]","v":90690},{"$f":"(((AAMC_Raw_Data_for_FY22[[#This Row],[Median]]-AAMC_Raw_Data_for_FY22[[#This Row],[25th]])/25)*10) + AAMC_Raw_Data_for_FY22[[#This Row],[25th]]","v":95705},{"$f":"(((AAMC_Raw_Data_for_FY22[[#This Row],[Median]]-AAMC_Raw_Data_for_FY22[[#This Row],[25th]])/25)*15) + AAMC_Raw_Data_for_FY22[[#This Row],[25th]]","v":100720},{"$f":"(((AAMC_Raw_Data_for_FY22[[#This Row],[Median]]-AAMC_Raw_Data_for_FY22[[#This Row],[25th]])/25)*20) + AAMC_Raw_Data_for_FY22[[#This Row],[25th]]","v":105735},110750,{"$f":"(((AAMC_Raw_Data_for_FY22[[#This Row],[75th]]-AAMC_Raw_Data_for_FY22[[#This Row],[Median]])/25)*5) + AAMC_Raw_Data_for_FY22[[#This Row],[Median]]","v":114600},{"$f":"(((AAMC_Raw_Data_for_FY22[[#This Row],[75th]]-AAMC_Raw_Data_for_FY22[[#This Row],[Median]])/25)*10) + AAMC_Raw_Data_for_FY22[[#This Row],[Median]]","v":118450},{"$f":"(((AAMC_Raw_Data_for_FY22[[#This Row],[75th]]-AAMC_Raw_Data_for_FY22[[#This Row],[Median]])/25)*15) + AAMC_Raw_Data_for_FY22[[#This Row],[Median]]","v":122300},{"$f":"(((AAMC_Raw_Data_for_FY22[[#This Row],[75th]]-AAMC_Raw_Data_for_FY22[[#This Row],[Median]])/25)*20) + AAMC_Raw_Data_for_FY22[[#This Row],[Median]]","v":126150},130000,{"$f":"(((AAMC_Raw_Data_for_FY22[[#This Row],[75th]]-AAMC_Raw_Data_for_FY22[[#This Row],[Median]])/25)*30) + AAMC_Raw_Data_for_FY22[[#This Row],[Median]]","v":133850},{"$f":"(((AAMC_Raw_Data_for_FY22[[#This Row],[75th]]-AAMC_Raw_Data_for_FY22[[#This Row],[Median]])/25)*35) + AAMC_Raw_Data_for_FY22[[#This Row],[Median]]","v":137700},{"$f":"(((AAMC_Raw_Data_for_FY22[[#This Row],[75th]]-AAMC_Raw_Data_for_FY22[[#This Row],[Median]])/25)*40) + AAMC_Raw_Data_for_FY22[[#This Row],[Median]]","v":141550}]
[{"$f":"AAMC_Raw_Data_for_FY22[[#This Row],[Source]]&AAMC_Raw_Data_for_FY22[[#This Row],[Type]]&AAMC_Raw_Data_for_FY22[[#This Row],[School Subset]]&AAMC_Raw_Data_for_FY22[[#This Row],[Rank]]&AAMC_Raw_Data_for_FY22[[#This Row],[Degree]]&AAMC_Raw_Data_for_FY22[[#This Row],[Department / Specialty]]&\"L\"","v":"AAMCAcademicPrivateAssociatePhDPharmacologyL"},"Pharmacology",3,"AAMC","Academic","Private","Associate","PhD","2021-2022",127403,{"$f":"(((AAMC_Raw_Data_for_FY22[[#This Row],[Median]]-AAMC_Raw_Data_for_FY22[[#This Row],[25th]])/25)*5) + AAMC_Raw_Data_for_FY22[[#This Row],[25th]]","v":130652},{"$f":"(((AAMC_Raw_Data_for_FY22[[#This Row],[Median]]-AAMC_Raw_Data_for_FY22[[#This Row],[25th]])/25)*10) + AAMC_Raw_Data_for_FY22[[#This Row],[25th]]","v":133901},{"$f":"(((AAMC_Raw_Data_for_FY22[[#This Row],[Median]]-AAMC_Raw_Data_for_FY22[[#This Row],[25th]])/25)*15) + AAMC_Raw_Data_for_FY22[[#This Row],[25th]]","v":137150},{"$f":"(((AAMC_Raw_Data_for_FY22[[#This Row],[Median]]-AAMC_Raw_Data_for_FY22[[#This Row],[25th]])/25)*20) + AAMC_Raw_Data_for_FY22[[#This Row],[25th]]","v":140399},143648,{"$f":"(((AAMC_Raw_Data_for_FY22[[#This Row],[75th]]-AAMC_Raw_Data_for_FY22[[#This Row],[Median]])/25)*5) + AAMC_Raw_Data_for_FY22[[#This Row],[Median]]","v":147491},{"$f":"(((AAMC_Raw_Data_for_FY22[[#This Row],[75th]]-AAMC_Raw_Data_for_FY22[[#This Row],[Median]])/25)*10) + AAMC_Raw_Data_for_FY22[[#This Row],[Median]]","v":151334},{"$f":"(((AAMC_Raw_Data_for_FY22[[#This Row],[75th]]-AAMC_Raw_Data_for_FY22[[#This Row],[Median]])/25)*15) + AAMC_Raw_Data_for_FY22[[#This Row],[Median]]","v":155177},{"$f":"(((AAMC_Raw_Data_for_FY22[[#This Row],[75th]]-AAMC_Raw_Data_for_FY22[[#This Row],[Median]])/25)*20) + AAMC_Raw_Data_for_FY22[[#This Row],[Median]]","v":159020},162863,{"$f":"(((AAMC_Raw_Data_for_FY22[[#This Row],[75th]]-AAMC_Raw_Data_for_FY22[[#This Row],[Median]])/25)*30) + AAMC_Raw_Data_for_FY22[[#This Row],[Median]]","v":166706},{"$f":"(((AAMC_Raw_Data_for_FY22[[#This Row],[75th]]-AAMC_Raw_Data_for_FY22[[#This Row],[Median]])/25)*35) + AAMC_Raw_Data_for_FY22[[#This Row],[Median]]","v":170549},{"$f":"(((AAMC_Raw_Data_for_FY22[[#This Row],[75th]]-AAMC_Raw_Data_for_FY22[[#This Row],[Median]])/25)*40) + AAMC_Raw_Data_for_FY22[[#This Row],[Median]]","v":174392}]
[{"$f":"AAMC_Raw_Data_for_FY22[[#This Row],[Source]]&AAMC_Raw_Data_for_FY22[[#This Row],[Type]]&AAMC_Raw_Data_for_FY22[[#This Row],[School Subset]]&AAMC_Raw_Data_for_FY22[[#This Row],[Rank]]&AAMC_Raw_Data_for_FY22[[#This Row],[Degree]]&AAMC_Raw_Data_for_FY22[[#This Row],[Department / Specialty]]&\"L\"","v":"AAMCAcademicPrivateProfessorPhDPharmacologyL"},"Pharmacology",2,"AAMC","Academic","Private","Professor","PhD","2021-2022",167999,{"$f":"(((AAMC_Raw_Data_for_FY22[[#This Row],[Median]]-AAMC_Raw_Data_for_FY22[[#This Row],[25th]])/25)*5) + AAMC_Raw_Data_for_FY22[[#This Row],[25th]]","v":176334.8},{"$f":"(((AAMC_Raw_Data_for_FY22[[#This Row],[Median]]-AAMC_Raw_Data_for_FY22[[#This Row],[25th]])/25)*10) + AAMC_Raw_Data_for_FY22[[#This Row],[25th]]","v":184670.6},{"$f":"(((AAMC_Raw_Data_for_FY22[[#This Row],[Median]]-AAMC_Raw_Data_for_FY22[[#This Row],[25th]])/25)*15) + AAMC_Raw_Data_for_FY22[[#This Row],[25th]]","v":193006.4},{"$f":"(((AAMC_Raw_Data_for_FY22[[#This Row],[Median]]-AAMC_Raw_Data_for_FY22[[#This Row],[25th]])/25)*20) + AAMC_Raw_Data_for_FY22[[#This Row],[25th]]","v":201342.2},209678,{"$f":"(((AAMC_Raw_Data_for_FY22[[#This Row],[75th]]-AAMC_Raw_Data_for_FY22[[#This Row],[Median]])/25)*5) + AAMC_Raw_Data_for_FY22[[#This Row],[Median]]","v":219576.2},{"$f":"(((AAMC_Raw_Data_for_FY22[[#This Row],[75th]]-AAMC_Raw_Data_for_FY22[[#This Row],[Median]])/25)*10) + AAMC_Raw_Data_for_FY22[[#This Row],[Median]]","v":229474.4},{"$f":"(((AAMC_Raw_Data_for_FY22[[#This Row],[75th]]-AAMC_Raw_Data_for_FY22[[#This Row],[Median]])/25)*15) + AAMC_Raw_Data_for_FY22[[#This Row],[Median]]","v":239372.6},{"$f":"(((AAMC_Raw_Data_for_FY22[[#This Row],[75th]]-AAMC_Raw_Data_for_FY22[[#This Row],[Median]])/25)*20) + AAMC_Raw_Data_for_FY22[[#This Row],[Median]]","v":249270.8},259169,{"$f":"(((AAMC_Raw_Data_for_FY22[[#This Row],[75th]]-AAMC_Raw_Data_for_FY22[[#This Row],[Median]])/25)*30) + AAMC_Raw_Data_for_FY22[[#This Row],[Median]]","v":269067.2},{"$f":"(((AAMC_Raw_Data_for_FY22[[#This Row],[75th]]-AAMC_Raw_Data_for_FY22[[#This Row],[Median]])/25)*35) + AAMC_Raw_Data_for_FY22[[#This Row],[Median]]","v":278965.40000000002},{"$f":"(((AAMC_Raw_Data_for_FY22[[#This Row],[75th]]-AAMC_Raw_Data_for_FY22[[#This Row],[Median]])/25)*40) + AAMC_Raw_Data_for_FY22[[#This Row],[Median]]","v":288863.59999999998}]
[{"$f":"AAMC_Raw_Data_for_FY22[[#This Row],[Source]]&AAMC_Raw_Data_for_FY22[[#This Row],[Type]]&AAMC_Raw_Data_for_FY22[[#This Row],[School Subset]]&AAMC_Raw_Data_for_FY22[[#This Row],[Rank]]&AAMC_Raw_Data_for_FY22[[#This Row],[Degree]]&AAMC_Raw_Data_for_FY22[[#This Row],[Department / Specialty]]&\"L\"","v":"AAMCAcademicPrivateChiefPhDPharmacologyL"},"Pharmacology",6,"AAMC","Academic","Private","Chief","PhD","2021-2022",null,{"$f":"(((AAMC_Raw_Data_for_FY22[[#This Row],[Median]]-AAMC_Raw_Data_for_FY22[[#This Row],[25th]])/25)*5) + AAMC_Raw_Data_for_FY22[[#This Row],[25th]]","v":0},{"$f":"(((AAMC_Raw_Data_for_FY22[[#This Row],[Median]]-AAMC_Raw_Data_for_FY22[[#This Row],[25th]])/25)*10) + AAMC_Raw_Data_for_FY22[[#This Row],[25th]]","v":0},{"$f":"(((AAMC_Raw_Data_for_FY22[[#This Row],[Median]]-AAMC_Raw_Data_for_FY22[[#This Row],[25th]])/25)*15) + AAMC_Raw_Data_for_FY22[[#This Row],[25th]]","v":0},{"$f":"(((AAMC_Raw_Data_for_FY22[[#This Row],[Median]]-AAMC_Raw_Data_for_FY22[[#This Row],[25th]])/25)*20) + AAMC_Raw_Data_for_FY22[[#This Row],[25th]]","v":0},null,{"$f":"(((AAMC_Raw_Data_for_FY22[[#This Row],[75th]]-AAMC_Raw_Data_for_FY22[[#This Row],[Median]])/25)*5) + AAMC_Raw_Data_for_FY22[[#This Row],[Median]]","v":0},{"$f":"(((AAMC_Raw_Data_for_FY22[[#This Row],[75th]]-AAMC_Raw_Data_for_FY22[[#This Row],[Median]])/25)*10) + AAMC_Raw_Data_for_FY22[[#This Row],[Median]]","v":0},{"$f":"(((AAMC_Raw_Data_for_FY22[[#This Row],[75th]]-AAMC_Raw_Data_for_FY22[[#This Row],[Median]])/25)*15) + AAMC_Raw_Data_for_FY22[[#This Row],[Median]]","v":0},{"$f":"(((AAMC_Raw_Data_for_FY22[[#This Row],[75th]]-AAMC_Raw_Data_for_FY22[[#This Row],[Median]])/25)*20) + AAMC_Raw_Data_for_FY22[[#This Row],[Median]]","v":0},null,{"$f":"(((AAMC_Raw_Data_for_FY22[[#This Row],[75th]]-AAMC_Raw_Data_for_FY22[[#This Row],[Median]])/25)*30) + AAMC_Raw_Data_for_FY22[[#This Row],[Median]]","v":0},{"$f":"(((AAMC_Raw_Data_for_FY22[[#This Row],[75th]]-AAMC_Raw_Data_for_FY22[[#This Row],[Median]])/25)*35) + AAMC_Raw_Data_for_FY22[[#This Row],[Median]]","v":0},{"$f":"(((AAMC_Raw_Data_for_FY22[[#This Row],[75th]]-AAMC_Raw_Data_for_FY22[[#This Row],[Median]])/25)*40) + AAMC_Raw_Data_for_FY22[[#This Row],[Median]]","v":0}]
[{"$f":"AAMC_Raw_Data_for_FY22[[#This Row],[Source]]&AAMC_Raw_Data_for_FY22[[#This Row],[Type]]&AAMC_Raw_Data_for_FY22[[#This Row],[School Subset]]&AAMC_Raw_Data_for_FY22[[#This Row],[Rank]]&AAMC_Raw_Data_for_FY22[[#This Row],[Degree]]&AAMC_Raw_Data_for_FY22[[#This Row],[Department / Specialty]]&\"L\"","v":"AAMCAcademicPrivateChairPhDPharmacologyL"},"Pharmacology",1,"AAMC","Academic","Private","Chair","PhD","2021-2022",300454,{"$f":"(((AAMC_Raw_Data_for_FY22[[#This Row],[Median]]-AAMC_Raw_Data_for_FY22[[#This Row],[25th]])/25)*5) + AAMC_Raw_Data_for_FY22[[#This Row],[25th]]","v":313585.8},{"$f":"(((AAMC_Raw_Data_for_FY22[[#This Row],[Median]]-AAMC_Raw_Data_for_FY22[[#This Row],[25th]])/25)*10) + AAMC_Raw_Data_for_FY22[[#This Row],[25th]]","v":326717.59999999998},{"$f":"(((AAMC_Raw_Data_for_FY22[[#This Row],[Median]]-AAMC_Raw_Data_for_FY22[[#This Row],[25th]])/25)*15) + AAMC_Raw_Data_for_FY22[[#This Row],[25th]]","v":339849.4},{"$f":"(((AAMC_Raw_Data_for_FY22[[#This Row],[Median]]-AAMC_Raw_Data_for_FY22[[#This Row],[25th]])/25)*20) + AAMC_Raw_Data_for_FY22[[#This Row],[25th]]","v":352981.2},366113,{"$f":"(((AAMC_Raw_Data_for_FY22[[#This Row],[75th]]-AAMC_Raw_Data_for_FY22[[#This Row],[Median]])/25)*5) + AAMC_Raw_Data_for_FY22[[#This Row],[Median]]","v":381042},{"$f":"(((AAMC_Raw_Data_for_FY22[[#This Row],[75th]]-AAMC_Raw_Data_for_FY22[[#This Row],[Median]])/25)*10) + AAMC_Raw_Data_for_FY22[[#This Row],[Median]]","v":395971},{"$f":"(((AAMC_Raw_Data_for_FY22[[#This Row],[75th]]-AAMC_Raw_Data_for_FY22[[#This Row],[Median]])/25)*15) + AAMC_Raw_Data_for_FY22[[#This Row],[Median]]","v":410900},{"$f":"(((AAMC_Raw_Data_for_FY22[[#This Row],[75th]]-AAMC_Raw_Data_for_FY22[[#This Row],[Median]])/25)*20) + AAMC_Raw_Data_for_FY22[[#This Row],[Median]]","v":425829},440758,{"$f":"(((AAMC_Raw_Data_for_FY22[[#This Row],[75th]]-AAMC_Raw_Data_for_FY22[[#This Row],[Median]])/25)*30) + AAMC_Raw_Data_for_FY22[[#This Row],[Median]]","v":455687},{"$f":"(((AAMC_Raw_Data_for_FY22[[#This Row],[75th]]-AAMC_Raw_Data_for_FY22[[#This Row],[Median]])/25)*35) + AAMC_Raw_Data_for_FY22[[#This Row],[Median]]","v":470616},{"$f":"(((AAMC_Raw_Data_for_FY22[[#This Row],[75th]]-AAMC_Raw_Data_for_FY22[[#This Row],[Median]])/25)*40) + AAMC_Raw_Data_for_FY22[[#This Row],[Median]]","v":485545}]
[{"$f":"AAMC_Raw_Data_for_FY22[[#This Row],[Source]]&AAMC_Raw_Data_for_FY22[[#This Row],[Type]]&AAMC_Raw_Data_for_FY22[[#This Row],[School Subset]]&AAMC_Raw_Data_for_FY22[[#This Row],[Rank]]&AAMC_Raw_Data_for_FY22[[#This Row],[Degree]]&AAMC_Raw_Data_for_FY22[[#This Row],[Department / Specialty]]&\"L\"","v":"AAMCAcademicPrivateInstructorPhDPhysiologyL"},"Physiology",5,"AAMC","Academic","Private","Instructor","PhD","2021-2022",62467,{"$f":"(((AAMC_Raw_Data_for_FY22[[#This Row],[Median]]-AAMC_Raw_Data_for_FY22[[#This Row],[25th]])/25)*5) + AAMC_Raw_Data_for_FY22[[#This Row],[25th]]","v":63493.599999999999},{"$f":"(((AAMC_Raw_Data_for_FY22[[#This Row],[Median]]-AAMC_Raw_Data_for_FY22[[#This Row],[25th]])/25)*10) + AAMC_Raw_Data_for_FY22[[#This Row],[25th]]","v":64520.2},{"$f":"(((AAMC_Raw_Data_for_FY22[[#This Row],[Median]]-AAMC_Raw_Data_for_FY22[[#This Row],[25th]])/25)*15) + AAMC_Raw_Data_for_FY22[[#This Row],[25th]]","v":65546.8},{"$f":"(((AAMC_Raw_Data_for_FY22[[#This Row],[Median]]-AAMC_Raw_Data_for_FY22[[#This Row],[25th]])/25)*20) + AAMC_Raw_Data_for_FY22[[#This Row],[25th]]","v":66573.399999999994},67600,{"$f":"(((AAMC_Raw_Data_for_FY22[[#This Row],[75th]]-AAMC_Raw_Data_for_FY22[[#This Row],[Median]])/25)*5) + AAMC_Raw_Data_for_FY22[[#This Row],[Median]]","v":69411.600000000006},{"$f":"(((AAMC_Raw_Data_for_FY22[[#This Row],[75th]]-AAMC_Raw_Data_for_FY22[[#This Row],[Median]])/25)*10) + AAMC_Raw_Data_for_FY22[[#This Row],[Median]]","v":71223.199999999997},{"$f":"(((AAMC_Raw_Data_for_FY22[[#This Row],[75th]]-AAMC_Raw_Data_for_FY22[[#This Row],[Median]])/25)*15) + AAMC_Raw_Data_for_FY22[[#This Row],[Median]]","v":73034.8},{"$f":"(((AAMC_Raw_Data_for_FY22[[#This Row],[75th]]-AAMC_Raw_Data_for_FY22[[#This Row],[Median]])/25)*20) + AAMC_Raw_Data_for_FY22[[#This Row],[Median]]","v":74846.399999999994},76658,{"$f":"(((AAMC_Raw_Data_for_FY22[[#This Row],[75th]]-AAMC_Raw_Data_for_FY22[[#This Row],[Median]])/25)*30) + AAMC_Raw_Data_for_FY22[[#This Row],[Median]]","v":78469.600000000006},{"$f":"(((AAMC_Raw_Data_for_FY22[[#This Row],[75th]]-AAMC_Raw_Data_for_FY22[[#This Row],[Median]])/25)*35) + AAMC_Raw_Data_for_FY22[[#This Row],[Median]]","v":80281.2},{"$f":"(((AAMC_Raw_Data_for_FY22[[#This Row],[75th]]-AAMC_Raw_Data_for_FY22[[#This Row],[Median]])/25)*40) + AAMC_Raw_Data_for_FY22[[#This Row],[Median]]","v":82092.800000000003}]
[{"$f":"AAMC_Raw_Data_for_FY22[[#This Row],[Source]]&AAMC_Raw_Data_for_FY22[[#This Row],[Type]]&AAMC_Raw_Data_for_FY22[[#This Row],[School Subset]]&AAMC_Raw_Data_for_FY22[[#This Row],[Rank]]&AAMC_Raw_Data_for_FY22[[#This Row],[Degree]]&AAMC_Raw_Data_for_FY22[[#This Row],[Department / Specialty]]&\"L\"","v":"AAMCAcademicPrivateAssistantPhDPhysiologyL"},"Physiology",4,"AAMC","Academic","Private","Assistant","PhD","2021-2022",85025,{"$f":"(((AAMC_Raw_Data_for_FY22[[#This Row],[Median]]-AAMC_Raw_Data_for_FY22[[#This Row],[25th]])/25)*5) + AAMC_Raw_Data_for_FY22[[#This Row],[25th]]","v":90382.2},{"$f":"(((AAMC_Raw_Data_for_FY22[[#This Row],[Median]]-AAMC_Raw_Data_for_FY22[[#This Row],[25th]])/25)*10) + AAMC_Raw_Data_for_FY22[[#This Row],[25th]]","v":95739.4},{"$f":"(((AAMC_Raw_Data_for_FY22[[#This Row],[Median]]-AAMC_Raw_Data_for_FY22[[#This Row],[25th]])/25)*15) + AAMC_Raw_Data_for_FY22[[#This Row],[25th]]","v":101096.6},{"$f":"(((AAMC_Raw_Data_for_FY22[[#This Row],[Median]]-AAMC_Raw_Data_for_FY22[[#This Row],[25th]])/25)*20) + AAMC_Raw_Data_for_FY22[[#This Row],[25th]]","v":106453.8},111811,{"$f":"(((AAMC_Raw_Data_for_FY22[[#This Row],[75th]]-AAMC_Raw_Data_for_FY22[[#This Row],[Median]])/25)*5) + AAMC_Raw_Data_for_FY22[[#This Row],[Median]]","v":115448.8},{"$f":"(((AAMC_Raw_Data_for_FY22[[#This Row],[75th]]-AAMC_Raw_Data_for_FY22[[#This Row],[Median]])/25)*10) + AAMC_Raw_Data_for_FY22[[#This Row],[Median]]","v":119086.6},{"$f":"(((AAMC_Raw_Data_for_FY22[[#This Row],[75th]]-AAMC_Raw_Data_for_FY22[[#This Row],[Median]])/25)*15) + AAMC_Raw_Data_for_FY22[[#This Row],[Median]]","v":122724.4},{"$f":"(((AAMC_Raw_Data_for_FY22[[#This Row],[75th]]-AAMC_Raw_Data_for_FY22[[#This Row],[Median]])/25)*20) + AAMC_Raw_Data_for_FY22[[#This Row],[Median]]","v":126362.2},130000,{"$f":"(((AAMC_Raw_Data_for_FY22[[#This Row],[75th]]-AAMC_Raw_Data_for_FY22[[#This Row],[Median]])/25)*30) + AAMC_Raw_Data_for_FY22[[#This Row],[Median]]","v":133637.79999999999},{"$f":"(((AAMC_Raw_Data_for_FY22[[#This Row],[75th]]-AAMC_Raw_Data_for_FY22[[#This Row],[Median]])/25)*35) + AAMC_Raw_Data_for_FY22[[#This Row],[Median]]","v":137275.6},{"$f":"(((AAMC_Raw_Data_for_FY22[[#This Row],[75th]]-AAMC_Raw_Data_for_FY22[[#This Row],[Median]])/25)*40) + AAMC_Raw_Data_for_FY22[[#This Row],[Median]]","v":140913.4}]
[{"$f":"AAMC_Raw_Data_for_FY22[[#This Row],[Source]]&AAMC_Raw_Data_for_FY22[[#This Row],[Type]]&AAMC_Raw_Data_for_FY22[[#This Row],[School Subset]]&AAMC_Raw_Data_for_FY22[[#This Row],[Rank]]&AAMC_Raw_Data_for_FY22[[#This Row],[Degree]]&AAMC_Raw_Data_for_FY22[[#This Row],[Department / Specialty]]&\"L\"","v":"AAMCAcademicPrivateAssociatePhDPhysiologyL"},"Physiology",3,"AAMC","Academic","Private","Associate","PhD","2021-2022",124720,{"$f":"(((AAMC_Raw_Data_for_FY22[[#This Row],[Median]]-AAMC_Raw_Data_for_FY22[[#This Row],[25th]])/25)*5) + AAMC_Raw_Data_for_FY22[[#This Row],[25th]]","v":127776},{"$f":"(((AAMC_Raw_Data_for_FY22[[#This Row],[Median]]-AAMC_Raw_Data_for_FY22[[#This Row],[25th]])/25)*10) + AAMC_Raw_Data_for_FY22[[#This Row],[25th]]","v":130832},{"$f":"(((AAMC_Raw_Data_for_FY22[[#This Row],[Median]]-AAMC_Raw_Data_for_FY22[[#This Row],[25th]])/25)*15) + AAMC_Raw_Data_for_FY22[[#This Row],[25th]]","v":133888},{"$f":"(((AAMC_Raw_Data_for_FY22[[#This Row],[Median]]-AAMC_Raw_Data_for_FY22[[#This Row],[25th]])/25)*20) + AAMC_Raw_Data_for_FY22[[#This Row],[25th]]","v":136944},140000,{"$f":"(((AAMC_Raw_Data_for_FY22[[#This Row],[75th]]-AAMC_Raw_Data_for_FY22[[#This Row],[Median]])/25)*5) + AAMC_Raw_Data_for_FY22[[#This Row],[Median]]","v":142078.20000000001},{"$f":"(((AAMC_Raw_Data_for_FY22[[#This Row],[75th]]-AAMC_Raw_Data_for_FY22[[#This Row],[Median]])/25)*10) + AAMC_Raw_Data_for_FY22[[#This Row],[Median]]","v":144156.4},{"$f":"(((AAMC_Raw_Data_for_FY22[[#This Row],[75th]]-AAMC_Raw_Data_for_FY22[[#This Row],[Median]])/25)*15) + AAMC_Raw_Data_for_FY22[[#This Row],[Median]]","v":146234.6},{"$f":"(((AAMC_Raw_Data_for_FY22[[#This Row],[75th]]-AAMC_Raw_Data_for_FY22[[#This Row],[Median]])/25)*20) + AAMC_Raw_Data_for_FY22[[#This Row],[Median]]","v":148312.79999999999},150391,{"$f":"(((AAMC_Raw_Data_for_FY22[[#This Row],[75th]]-AAMC_Raw_Data_for_FY22[[#This Row],[Median]])/25)*30) + AAMC_Raw_Data_for_FY22[[#This Row],[Median]]","v":152469.20000000001},{"$f":"(((AAMC_Raw_Data_for_FY22[[#This Row],[75th]]-AAMC_Raw_Data_for_FY22[[#This Row],[Median]])/25)*35) + AAMC_Raw_Data_for_FY22[[#This Row],[Median]]","v":154547.4},{"$f":"(((AAMC_Raw_Data_for_FY22[[#This Row],[75th]]-AAMC_Raw_Data_for_FY22[[#This Row],[Median]])/25)*40) + AAMC_Raw_Data_for_FY22[[#This Row],[Median]]","v":156625.60000000001}]
[{"$f":"AAMC_Raw_Data_for_FY22[[#This Row],[Source]]&AAMC_Raw_Data_for_FY22[[#This Row],[Type]]&AAMC_Raw_Data_for_FY22[[#This Row],[School Subset]]&AAMC_Raw_Data_for_FY22[[#This Row],[Rank]]&AAMC_Raw_Data_for_FY22[[#This Row],[Degree]]&AAMC_Raw_Data_for_FY22[[#This Row],[Department / Specialty]]&\"L\"","v":"AAMCAcademicPrivateProfessorPhDPhysiologyL"},"Physiology",2,"AAMC","Academic","Private","Professor","PhD","2021-2022",151946,{"$f":"(((AAMC_Raw_Data_for_FY22[[#This Row],[Median]]-AAMC_Raw_Data_for_FY22[[#This Row],[25th]])/25)*5) + AAMC_Raw_Data_for_FY22[[#This Row],[25th]]","v":161978},{"$f":"(((AAMC_Raw_Data_for_FY22[[#This Row],[Median]]-AAMC_Raw_Data_for_FY22[[#This Row],[25th]])/25)*10) + AAMC_Raw_Data_for_FY22[[#This Row],[25th]]","v":172010},{"$f":"(((AAMC_Raw_Data_for_FY22[[#This Row],[Median]]-AAMC_Raw_Data_for_FY22[[#This Row],[25th]])/25)*15) + AAMC_Raw_Data_for_FY22[[#This Row],[25th]]","v":182042},{"$f":"(((AAMC_Raw_Data_for_FY22[[#This Row],[Median]]-AAMC_Raw_Data_for_FY22[[#This Row],[25th]])/25)*20) + AAMC_Raw_Data_for_FY22[[#This Row],[25th]]","v":192074},202106,{"$f":"(((AAMC_Raw_Data_for_FY22[[#This Row],[75th]]-AAMC_Raw_Data_for_FY22[[#This Row],[Median]])/25)*5) + AAMC_Raw_Data_for_FY22[[#This Row],[Median]]","v":211384.4},{"$f":"(((AAMC_Raw_Data_for_FY22[[#This Row],[75th]]-AAMC_Raw_Data_for_FY22[[#This Row],[Median]])/25)*10) + AAMC_Raw_Data_for_FY22[[#This Row],[Median]]","v":220662.8},{"$f":"(((AAMC_Raw_Data_for_FY22[[#This Row],[75th]]-AAMC_Raw_Data_for_FY22[[#This Row],[Median]])/25)*15) + AAMC_Raw_Data_for_FY22[[#This Row],[Median]]","v":229941.2},{"$f":"(((AAMC_Raw_Data_for_FY22[[#This Row],[75th]]-AAMC_Raw_Data_for_FY22[[#This Row],[Median]])/25)*20) + AAMC_Raw_Data_for_FY22[[#This Row],[Median]]","v":239219.6},248498,{"$f":"(((AAMC_Raw_Data_for_FY22[[#This Row],[75th]]-AAMC_Raw_Data_for_FY22[[#This Row],[Median]])/25)*30) + AAMC_Raw_Data_for_FY22[[#This Row],[Median]]","v":257776.4},{"$f":"(((AAMC_Raw_Data_for_FY22[[#This Row],[75th]]-AAMC_Raw_Data_for_FY22[[#This Row],[Median]])/25)*35) + AAMC_Raw_Data_for_FY22[[#This Row],[Median]]","v":267054.8},{"$f":"(((AAMC_Raw_Data_for_FY22[[#This Row],[75th]]-AAMC_Raw_Data_for_FY22[[#This Row],[Median]])/25)*40) + AAMC_Raw_Data_for_FY22[[#This Row],[Median]]","v":276333.2}]
[{"$f":"AAMC_Raw_Data_for_FY22[[#This Row],[Source]]&AAMC_Raw_Data_for_FY22[[#This Row],[Type]]&AAMC_Raw_Data_for_FY22[[#This Row],[School Subset]]&AAMC_Raw_Data_for_FY22[[#This Row],[Rank]]&AAMC_Raw_Data_for_FY22[[#This Row],[Degree]]&AAMC_Raw_Data_for_FY22[[#This Row],[Department / Specialty]]&\"L\"","v":"AAMCAcademicPrivateChiefPhDPhysiologyL"},"Physiology",6,"AAMC","Academic","Private","Chief","PhD","2021-2022",null,{"$f":"(((AAMC_Raw_Data_for_FY22[[#This Row],[Median]]-AAMC_Raw_Data_for_FY22[[#This Row],[25th]])/25)*5) + AAMC_Raw_Data_for_FY22[[#This Row],[25th]]","v":0},{"$f":"(((AAMC_Raw_Data_for_FY22[[#This Row],[Median]]-AAMC_Raw_Data_for_FY22[[#This Row],[25th]])/25)*10) + AAMC_Raw_Data_for_FY22[[#This Row],[25th]]","v":0},{"$f":"(((AAMC_Raw_Data_for_FY22[[#This Row],[Median]]-AAMC_Raw_Data_for_FY22[[#This Row],[25th]])/25)*15) + AAMC_Raw_Data_for_FY22[[#This Row],[25th]]","v":0},{"$f":"(((AAMC_Raw_Data_for_FY22[[#This Row],[Median]]-AAMC_Raw_Data_for_FY22[[#This Row],[25th]])/25)*20) + AAMC_Raw_Data_for_FY22[[#This Row],[25th]]","v":0},null,{"$f":"(((AAMC_Raw_Data_for_FY22[[#This Row],[75th]]-AAMC_Raw_Data_for_FY22[[#This Row],[Median]])/25)*5) + AAMC_Raw_Data_for_FY22[[#This Row],[Median]]","v":0},{"$f":"(((AAMC_Raw_Data_for_FY22[[#This Row],[75th]]-AAMC_Raw_Data_for_FY22[[#This Row],[Median]])/25)*10) + AAMC_Raw_Data_for_FY22[[#This Row],[Median]]","v":0},{"$f":"(((AAMC_Raw_Data_for_FY22[[#This Row],[75th]]-AAMC_Raw_Data_for_FY22[[#This Row],[Median]])/25)*15) + AAMC_Raw_Data_for_FY22[[#This Row],[Median]]","v":0},{"$f":"(((AAMC_Raw_Data_for_FY22[[#This Row],[75th]]-AAMC_Raw_Data_for_FY22[[#This Row],[Median]])/25)*20) + AAMC_Raw_Data_for_FY22[[#This Row],[Median]]","v":0},null,{"$f":"(((AAMC_Raw_Data_for_FY22[[#This Row],[75th]]-AAMC_Raw_Data_for_FY22[[#This Row],[Median]])/25)*30) + AAMC_Raw_Data_for_FY22[[#This Row],[Median]]","v":0},{"$f":"(((AAMC_Raw_Data_for_FY22[[#This Row],[75th]]-AAMC_Raw_Data_for_FY22[[#This Row],[Median]])/25)*35) + AAMC_Raw_Data_for_FY22[[#This Row],[Median]]","v":0},{"$f":"(((AAMC_Raw_Data_for_FY22[[#This Row],[75th]]-AAMC_Raw_Data_for_FY22[[#This Row],[Median]])/25)*40) + AAMC_Raw_Data_for_FY22[[#This Row],[Median]]","v":0}]
[{"$f":"AAMC_Raw_Data_for_FY22[[#This Row],[Source]]&AAMC_Raw_Data_for_FY22[[#This Row],[Type]]&AAMC_Raw_Data_for_FY22[[#This Row],[School Subset]]&AAMC_Raw_Data_for_FY22[[#This Row],[Rank]]&AAMC_Raw_Data_for_FY22[[#This Row],[Degree]]&AAMC_Raw_Data_for_FY22[[#This Row],[Department / Specialty]]&\"L\"","v":"AAMCAcademicPrivateChairPhDPhysiologyL"},"Physiology",1,"AAMC","Academic","Private","Chair","PhD","2021-2022",260000,{"$f":"(((AAMC_Raw_Data_for_FY22[[#This Row],[Median]]-AAMC_Raw_Data_for_FY22[[#This Row],[25th]])/25)*5) + AAMC_Raw_Data_for_FY22[[#This Row],[25th]]","v":270801.2},{"$f":"(((AAMC_Raw_Data_for_FY22[[#This Row],[Median]]-AAMC_Raw_Data_for_FY22[[#This Row],[25th]])/25)*10) + AAMC_Raw_Data_for_FY22[[#This Row],[25th]]","v":281602.40000000002},{"$f":"(((AAMC_Raw_Data_for_FY22[[#This Row],[Median]]-AAMC_Raw_Data_for_FY22[[#This Row],[25th]])/25)*15) + AAMC_Raw_Data_for_FY22[[#This Row],[25th]]","v":292403.59999999998},{"$f":"(((AAMC_Raw_Data_for_FY22[[#This Row],[Median]]-AAMC_Raw_Data_for_FY22[[#This Row],[25th]])/25)*20) + AAMC_Raw_Data_for_FY22[[#This Row],[25th]]","v":303204.8},314006,{"$f":"(((AAMC_Raw_Data_for_FY22[[#This Row],[75th]]-AAMC_Raw_Data_for_FY22[[#This Row],[Median]])/25)*5) + AAMC_Raw_Data_for_FY22[[#This Row],[Median]]","v":338404.8},{"$f":"(((AAMC_Raw_Data_for_FY22[[#This Row],[75th]]-AAMC_Raw_Data_for_FY22[[#This Row],[Median]])/25)*10) + AAMC_Raw_Data_for_FY22[[#This Row],[Median]]","v":362803.6},{"$f":"(((AAMC_Raw_Data_for_FY22[[#This Row],[75th]]-AAMC_Raw_Data_for_FY22[[#This Row],[Median]])/25)*15) + AAMC_Raw_Data_for_FY22[[#This Row],[Median]]","v":387202.4},{"$f":"(((AAMC_Raw_Data_for_FY22[[#This Row],[75th]]-AAMC_Raw_Data_for_FY22[[#This Row],[Median]])/25)*20) + AAMC_Raw_Data_for_FY22[[#This Row],[Median]]","v":411601.2},436000,{"$f":"(((AAMC_Raw_Data_for_FY22[[#This Row],[75th]]-AAMC_Raw_Data_for_FY22[[#This Row],[Median]])/25)*30) + AAMC_Raw_Data_for_FY22[[#This Row],[Median]]","v":460398.80000000005},{"$f":"(((AAMC_Raw_Data_for_FY22[[#This Row],[75th]]-AAMC_Raw_Data_for_FY22[[#This Row],[Median]])/25)*35) + AAMC_Raw_Data_for_FY22[[#This Row],[Median]]","v":484797.6},{"$f":"(((AAMC_Raw_Data_for_FY22[[#This Row],[75th]]-AAMC_Raw_Data_for_FY22[[#This Row],[Median]])/25)*40) + AAMC_Raw_Data_for_FY22[[#This Row],[Median]]","v":509196.4}]
[{"$f":"AAMC_Raw_Data_for_FY22[[#This Row],[Source]]&AAMC_Raw_Data_for_FY22[[#This Row],[Type]]&AAMC_Raw_Data_for_FY22[[#This Row],[School Subset]]&AAMC_Raw_Data_for_FY22[[#This Row],[Rank]]&AAMC_Raw_Data_for_FY22[[#This Row],[Degree]]&AAMC_Raw_Data_for_FY22[[#This Row],[Department / Specialty]]&\"L\"","v":"AAMCAcademicPrivateInstructorPhDPopulation Health and Public HealthL"},"Population Health and Public Health",5,"AAMC","Academic","Private","Instructor","PhD","2021-2022",91251,{"$f":"(((AAMC_Raw_Data_for_FY22[[#This Row],[Median]]-AAMC_Raw_Data_for_FY22[[#This Row],[25th]])/25)*5) + AAMC_Raw_Data_for_FY22[[#This Row],[25th]]","v":93500.800000000003},{"$f":"(((AAMC_Raw_Data_for_FY22[[#This Row],[Median]]-AAMC_Raw_Data_for_FY22[[#This Row],[25th]])/25)*10) + AAMC_Raw_Data_for_FY22[[#This Row],[25th]]","v":95750.6},{"$f":"(((AAMC_Raw_Data_for_FY22[[#This Row],[Median]]-AAMC_Raw_Data_for_FY22[[#This Row],[25th]])/25)*15) + AAMC_Raw_Data_for_FY22[[#This Row],[25th]]","v":98000.4},{"$f":"(((AAMC_Raw_Data_for_FY22[[#This Row],[Median]]-AAMC_Raw_Data_for_FY22[[#This Row],[25th]])/25)*20) + AAMC_Raw_Data_for_FY22[[#This Row],[25th]]","v":100250.2},102500,{"$f":"(((AAMC_Raw_Data_for_FY22[[#This Row],[75th]]-AAMC_Raw_Data_for_FY22[[#This Row],[Median]])/25)*5) + AAMC_Raw_Data_for_FY22[[#This Row],[Median]]","v":103104.8},{"$f":"(((AAMC_Raw_Data_for_FY22[[#This Row],[75th]]-AAMC_Raw_Data_for_FY22[[#This Row],[Median]])/25)*10) + AAMC_Raw_Data_for_FY22[[#This Row],[Median]]","v":103709.6},{"$f":"(((AAMC_Raw_Data_for_FY22[[#This Row],[75th]]-AAMC_Raw_Data_for_FY22[[#This Row],[Median]])/25)*15) + AAMC_Raw_Data_for_FY22[[#This Row],[Median]]","v":104314.4},{"$f":"(((AAMC_Raw_Data_for_FY22[[#This Row],[75th]]-AAMC_Raw_Data_for_FY22[[#This Row],[Median]])/25)*20) + AAMC_Raw_Data_for_FY22[[#This Row],[Median]]","v":104919.2},105524,{"$f":"(((AAMC_Raw_Data_for_FY22[[#This Row],[75th]]-AAMC_Raw_Data_for_FY22[[#This Row],[Median]])/25)*30) + AAMC_Raw_Data_for_FY22[[#This Row],[Median]]","v":106128.8},{"$f":"(((AAMC_Raw_Data_for_FY22[[#This Row],[75th]]-AAMC_Raw_Data_for_FY22[[#This Row],[Median]])/25)*35) + AAMC_Raw_Data_for_FY22[[#This Row],[Median]]","v":106733.6},{"$f":"(((AAMC_Raw_Data_for_FY22[[#This Row],[75th]]-AAMC_Raw_Data_for_FY22[[#This Row],[Median]])/25)*40) + AAMC_Raw_Data_for_FY22[[#This Row],[Median]]","v":107338.4}]
[{"$f":"AAMC_Raw_Data_for_FY22[[#This Row],[Source]]&AAMC_Raw_Data_for_FY22[[#This Row],[Type]]&AAMC_Raw_Data_for_FY22[[#This Row],[School Subset]]&AAMC_Raw_Data_for_FY22[[#This Row],[Rank]]&AAMC_Raw_Data_for_FY22[[#This Row],[Degree]]&AAMC_Raw_Data_for_FY22[[#This Row],[Department / Specialty]]&\"L\"","v":"AAMCAcademicPrivateAssistantPhDPopulation Health and Public HealthL"},"Population Health and Public Health",4,"AAMC","Academic","Private","Assistant","PhD","2021-2022",116304,{"$f":"(((AAMC_Raw_Data_for_FY22[[#This Row],[Median]]-AAMC_Raw_Data_for_FY22[[#This Row],[25th]])/25)*5) + AAMC_Raw_Data_for_FY22[[#This Row],[25th]]","v":118472.4},{"$f":"(((AAMC_Raw_Data_for_FY22[[#This Row],[Median]]-AAMC_Raw_Data_for_FY22[[#This Row],[25th]])/25)*10) + AAMC_Raw_Data_for_FY22[[#This Row],[25th]]","v":120640.8},{"$f":"(((AAMC_Raw_Data_for_FY22[[#This Row],[Median]]-AAMC_Raw_Data_for_FY22[[#This Row],[25th]])/25)*15) + AAMC_Raw_Data_for_FY22[[#This Row],[25th]]","v":122809.2},{"$f":"(((AAMC_Raw_Data_for_FY22[[#This Row],[Median]]-AAMC_Raw_Data_for_FY22[[#This Row],[25th]])/25)*20) + AAMC_Raw_Data_for_FY22[[#This Row],[25th]]","v":124977.60000000001},127146,{"$f":"(((AAMC_Raw_Data_for_FY22[[#This Row],[75th]]-AAMC_Raw_Data_for_FY22[[#This Row],[Median]])/25)*5) + AAMC_Raw_Data_for_FY22[[#This Row],[Median]]","v":129396},{"$f":"(((AAMC_Raw_Data_for_FY22[[#This Row],[75th]]-AAMC_Raw_Data_for_FY22[[#This Row],[Median]])/25)*10) + AAMC_Raw_Data_for_FY22[[#This Row],[Median]]","v":131646},{"$f":"(((AAMC_Raw_Data_for_FY22[[#This Row],[75th]]-AAMC_Raw_Data_for_FY22[[#This Row],[Median]])/25)*15) + AAMC_Raw_Data_for_FY22[[#This Row],[Median]]","v":133896},{"$f":"(((AAMC_Raw_Data_for_FY22[[#This Row],[75th]]-AAMC_Raw_Data_for_FY22[[#This Row],[Median]])/25)*20) + AAMC_Raw_Data_for_FY22[[#This Row],[Median]]","v":136146},138396,{"$f":"(((AAMC_Raw_Data_for_FY22[[#This Row],[75th]]-AAMC_Raw_Data_for_FY22[[#This Row],[Median]])/25)*30) + AAMC_Raw_Data_for_FY22[[#This Row],[Median]]","v":140646},{"$f":"(((AAMC_Raw_Data_for_FY22[[#This Row],[75th]]-AAMC_Raw_Data_for_FY22[[#This Row],[Median]])/25)*35) + AAMC_Raw_Data_for_FY22[[#This Row],[Median]]","v":142896},{"$f":"(((AAMC_Raw_Data_for_FY22[[#This Row],[75th]]-AAMC_Raw_Data_for_FY22[[#This Row],[Median]])/25)*40) + AAMC_Raw_Data_for_FY22[[#This Row],[Median]]","v":145146}]
[{"$f":"AAMC_Raw_Data_for_FY22[[#This Row],[Source]]&AAMC_Raw_Data_for_FY22[[#This Row],[Type]]&AAMC_Raw_Data_for_FY22[[#This Row],[School Subset]]&AAMC_Raw_Data_for_FY22[[#This Row],[Rank]]&AAMC_Raw_Data_for_FY22[[#This Row],[Degree]]&AAMC_Raw_Data_for_FY22[[#This Row],[Department / Specialty]]&\"L\"","v":"AAMCAcademicPrivateAssociatePhDPopulation Health and Public HealthL"},"Population Health and Public Health",3,"AAMC","Academic","Private","Associate","PhD","2021-2022",151092,{"$f":"(((AAMC_Raw_Data_for_FY22[[#This Row],[Median]]-AAMC_Raw_Data_for_FY22[[#This Row],[25th]])/25)*5) + AAMC_Raw_Data_for_FY22[[#This Row],[25th]]","v":154220.20000000001},{"$f":"(((AAMC_Raw_Data_for_FY22[[#This Row],[Median]]-AAMC_Raw_Data_for_FY22[[#This Row],[25th]])/25)*10) + AAMC_Raw_Data_for_FY22[[#This Row],[25th]]","v":157348.4},{"$f":"(((AAMC_Raw_Data_for_FY22[[#This Row],[Median]]-AAMC_Raw_Data_for_FY22[[#This Row],[25th]])/25)*15) + AAMC_Raw_Data_for_FY22[[#This Row],[25th]]","v":160476.6},{"$f":"(((AAMC_Raw_Data_for_FY22[[#This Row],[Median]]-AAMC_Raw_Data_for_FY22[[#This Row],[25th]])/25)*20) + AAMC_Raw_Data_for_FY22[[#This Row],[25th]]","v":163604.79999999999},166733,{"$f":"(((AAMC_Raw_Data_for_FY22[[#This Row],[75th]]-AAMC_Raw_Data_for_FY22[[#This Row],[Median]])/25)*5) + AAMC_Raw_Data_for_FY22[[#This Row],[Median]]","v":171706.8},{"$f":"(((AAMC_Raw_Data_for_FY22[[#This Row],[75th]]-AAMC_Raw_Data_for_FY22[[#This Row],[Median]])/25)*10) + AAMC_Raw_Data_for_FY22[[#This Row],[Median]]","v":176680.6},{"$f":"(((AAMC_Raw_Data_for_FY22[[#This Row],[75th]]-AAMC_Raw_Data_for_FY22[[#This Row],[Median]])/25)*15) + AAMC_Raw_Data_for_FY22[[#This Row],[Median]]","v":181654.39999999999},{"$f":"(((AAMC_Raw_Data_for_FY22[[#This Row],[75th]]-AAMC_Raw_Data_for_FY22[[#This Row],[Median]])/25)*20) + AAMC_Raw_Data_for_FY22[[#This Row],[Median]]","v":186628.2},191602,{"$f":"(((AAMC_Raw_Data_for_FY22[[#This Row],[75th]]-AAMC_Raw_Data_for_FY22[[#This Row],[Median]])/25)*30) + AAMC_Raw_Data_for_FY22[[#This Row],[Median]]","v":196575.8},{"$f":"(((AAMC_Raw_Data_for_FY22[[#This Row],[75th]]-AAMC_Raw_Data_for_FY22[[#This Row],[Median]])/25)*35) + AAMC_Raw_Data_for_FY22[[#This Row],[Median]]","v":201549.6},{"$f":"(((AAMC_Raw_Data_for_FY22[[#This Row],[75th]]-AAMC_Raw_Data_for_FY22[[#This Row],[Median]])/25)*40) + AAMC_Raw_Data_for_FY22[[#This Row],[Median]]","v":206523.4}]
[{"$f":"AAMC_Raw_Data_for_FY22[[#This Row],[Source]]&AAMC_Raw_Data_for_FY22[[#This Row],[Type]]&AAMC_Raw_Data_for_FY22[[#This Row],[School Subset]]&AAMC_Raw_Data_for_FY22[[#This Row],[Rank]]&AAMC_Raw_Data_for_FY22[[#This Row],[Degree]]&AAMC_Raw_Data_for_FY22[[#This Row],[Department / Specialty]]&\"L\"","v":"AAMCAcademicPrivateProfessorPhDPopulation Health and Public HealthL"},"Population Health and Public Health",2,"AAMC","Academic","Private","Professor","PhD","2021-2022",202367,{"$f":"(((AAMC_Raw_Data_for_FY22[[#This Row],[Median]]-AAMC_Raw_Data_for_FY22[[#This Row],[25th]])/25)*5) + AAMC_Raw_Data_for_FY22[[#This Row],[25th]]","v":208329.60000000001},{"$f":"(((AAMC_Raw_Data_for_FY22[[#This Row],[Median]]-AAMC_Raw_Data_for_FY22[[#This Row],[25th]])/25)*10) + AAMC_Raw_Data_for_FY22[[#This Row],[25th]]","v":214292.2},{"$f":"(((AAMC_Raw_Data_for_FY22[[#This Row],[Median]]-AAMC_Raw_Data_for_FY22[[#This Row],[25th]])/25)*15) + AAMC_Raw_Data_for_FY22[[#This Row],[25th]]","v":220254.8},{"$f":"(((AAMC_Raw_Data_for_FY22[[#This Row],[Median]]-AAMC_Raw_Data_for_FY22[[#This Row],[25th]])/25)*20) + AAMC_Raw_Data_for_FY22[[#This Row],[25th]]","v":226217.4},232180,{"$f":"(((AAMC_Raw_Data_for_FY22[[#This Row],[75th]]-AAMC_Raw_Data_for_FY22[[#This Row],[Median]])/25)*5) + AAMC_Raw_Data_for_FY22[[#This Row],[Median]]","v":244893.6},{"$f":"(((AAMC_Raw_Data_for_FY22[[#This Row],[75th]]-AAMC_Raw_Data_for_FY22[[#This Row],[Median]])/25)*10) + AAMC_Raw_Data_for_FY22[[#This Row],[Median]]","v":257607.2},{"$f":"(((AAMC_Raw_Data_for_FY22[[#This Row],[75th]]-AAMC_Raw_Data_for_FY22[[#This Row],[Median]])/25)*15) + AAMC_Raw_Data_for_FY22[[#This Row],[Median]]","v":270320.8},{"$f":"(((AAMC_Raw_Data_for_FY22[[#This Row],[75th]]-AAMC_Raw_Data_for_FY22[[#This Row],[Median]])/25)*20) + AAMC_Raw_Data_for_FY22[[#This Row],[Median]]","v":283034.40000000002},295748,{"$f":"(((AAMC_Raw_Data_for_FY22[[#This Row],[75th]]-AAMC_Raw_Data_for_FY22[[#This Row],[Median]])/25)*30) + AAMC_Raw_Data_for_FY22[[#This Row],[Median]]","v":308461.59999999998},{"$f":"(((AAMC_Raw_Data_for_FY22[[#This Row],[75th]]-AAMC_Raw_Data_for_FY22[[#This Row],[Median]])/25)*35) + AAMC_Raw_Data_for_FY22[[#This Row],[Median]]","v":321175.2},{"$f":"(((AAMC_Raw_Data_for_FY22[[#This Row],[75th]]-AAMC_Raw_Data_for_FY22[[#This Row],[Median]])/25)*40) + AAMC_Raw_Data_for_FY22[[#This Row],[Median]]","v":333888.8}]
[{"$f":"AAMC_Raw_Data_for_FY22[[#This Row],[Source]]&AAMC_Raw_Data_for_FY22[[#This Row],[Type]]&AAMC_Raw_Data_for_FY22[[#This Row],[School Subset]]&AAMC_Raw_Data_for_FY22[[#This Row],[Rank]]&AAMC_Raw_Data_for_FY22[[#This Row],[Degree]]&AAMC_Raw_Data_for_FY22[[#This Row],[Department / Specialty]]&\"L\"","v":"AAMCAcademicPrivateChiefPhDPopulation Health and Public HealthL"},"Population Health and Public Health",6,"AAMC","Academic","Private","Chief","PhD","2021-2022",null,{"$f":"(((AAMC_Raw_Data_for_FY22[[#This Row],[Median]]-AAMC_Raw_Data_for_FY22[[#This Row],[25th]])/25)*5) + AAMC_Raw_Data_for_FY22[[#This Row],[25th]]","v":0},{"$f":"(((AAMC_Raw_Data_for_FY22[[#This Row],[Median]]-AAMC_Raw_Data_for_FY22[[#This Row],[25th]])/25)*10) + AAMC_Raw_Data_for_FY22[[#This Row],[25th]]","v":0},{"$f":"(((AAMC_Raw_Data_for_FY22[[#This Row],[Median]]-AAMC_Raw_Data_for_FY22[[#This Row],[25th]])/25)*15) + AAMC_Raw_Data_for_FY22[[#This Row],[25th]]","v":0},{"$f":"(((AAMC_Raw_Data_for_FY22[[#This Row],[Median]]-AAMC_Raw_Data_for_FY22[[#This Row],[25th]])/25)*20) + AAMC_Raw_Data_for_FY22[[#This Row],[25th]]","v":0},null,{"$f":"(((AAMC_Raw_Data_for_FY22[[#This Row],[75th]]-AAMC_Raw_Data_for_FY22[[#This Row],[Median]])/25)*5) + AAMC_Raw_Data_for_FY22[[#This Row],[Median]]","v":0},{"$f":"(((AAMC_Raw_Data_for_FY22[[#This Row],[75th]]-AAMC_Raw_Data_for_FY22[[#This Row],[Median]])/25)*10) + AAMC_Raw_Data_for_FY22[[#This Row],[Median]]","v":0},{"$f":"(((AAMC_Raw_Data_for_FY22[[#This Row],[75th]]-AAMC_Raw_Data_for_FY22[[#This Row],[Median]])/25)*15) + AAMC_Raw_Data_for_FY22[[#This Row],[Median]]","v":0},{"$f":"(((AAMC_Raw_Data_for_FY22[[#This Row],[75th]]-AAMC_Raw_Data_for_FY22[[#This Row],[Median]])/25)*20) + AAMC_Raw_Data_for_FY22[[#This Row],[Median]]","v":0},null,{"$f":"(((AAMC_Raw_Data_for_FY22[[#This Row],[75th]]-AAMC_Raw_Data_for_FY22[[#This Row],[Median]])/25)*30) + AAMC_Raw_Data_for_FY22[[#This Row],[Median]]","v":0},{"$f":"(((AAMC_Raw_Data_for_FY22[[#This Row],[75th]]-AAMC_Raw_Data_for_FY22[[#This Row],[Median]])/25)*35) + AAMC_Raw_Data_for_FY22[[#This Row],[Median]]","v":0},{"$f":"(((AAMC_Raw_Data_for_FY22[[#This Row],[75th]]-AAMC_Raw_Data_for_FY22[[#This Row],[Median]])/25)*40) + AAMC_Raw_Data_for_FY22[[#This Row],[Median]]","v":0}]
[{"$f":"AAMC_Raw_Data_for_FY22[[#This Row],[Source]]&AAMC_Raw_Data_for_FY22[[#This Row],[Type]]&AAMC_Raw_Data_for_FY22[[#This Row],[School Subset]]&AAMC_Raw_Data_for_FY22[[#This Row],[Rank]]&AAMC_Raw_Data_for_FY22[[#This Row],[Degree]]&AAMC_Raw_Data_for_FY22[[#This Row],[Department / Specialty]]&\"L\"","v":"AAMCAcademicPrivateChairPhDPopulation Health and Public HealthL"},"Population Health and Public Health",1,"AAMC","Academic","Private","Chair","PhD","2021-2022",275400,{"$f":"(((AAMC_Raw_Data_for_FY22[[#This Row],[Median]]-AAMC_Raw_Data_for_FY22[[#This Row],[25th]])/25)*5) + AAMC_Raw_Data_for_FY22[[#This Row],[25th]]","v":285042.8},{"$f":"(((AAMC_Raw_Data_for_FY22[[#This Row],[Median]]-AAMC_Raw_Data_for_FY22[[#This Row],[25th]])/25)*10) + AAMC_Raw_Data_for_FY22[[#This Row],[25th]]","v":294685.59999999998},{"$f":"(((AAMC_Raw_Data_for_FY22[[#This Row],[Median]]-AAMC_Raw_Data_for_FY22[[#This Row],[25th]])/25)*15) + AAMC_Raw_Data_for_FY22[[#This Row],[25th]]","v":304328.40000000002},{"$f":"(((AAMC_Raw_Data_for_FY22[[#This Row],[Median]]-AAMC_Raw_Data_for_FY22[[#This Row],[25th]])/25)*20) + AAMC_Raw_Data_for_FY22[[#This Row],[25th]]","v":313971.20000000001},323614,{"$f":"(((AAMC_Raw_Data_for_FY22[[#This Row],[75th]]-AAMC_Raw_Data_for_FY22[[#This Row],[Median]])/25)*5) + AAMC_Raw_Data_for_FY22[[#This Row],[Median]]","v":335458.40000000002},{"$f":"(((AAMC_Raw_Data_for_FY22[[#This Row],[75th]]-AAMC_Raw_Data_for_FY22[[#This Row],[Median]])/25)*10) + AAMC_Raw_Data_for_FY22[[#This Row],[Median]]","v":347302.8},{"$f":"(((AAMC_Raw_Data_for_FY22[[#This Row],[75th]]-AAMC_Raw_Data_for_FY22[[#This Row],[Median]])/25)*15) + AAMC_Raw_Data_for_FY22[[#This Row],[Median]]","v":359147.2},{"$f":"(((AAMC_Raw_Data_for_FY22[[#This Row],[75th]]-AAMC_Raw_Data_for_FY22[[#This Row],[Median]])/25)*20) + AAMC_Raw_Data_for_FY22[[#This Row],[Median]]","v":370991.6},382836,{"$f":"(((AAMC_Raw_Data_for_FY22[[#This Row],[75th]]-AAMC_Raw_Data_for_FY22[[#This Row],[Median]])/25)*30) + AAMC_Raw_Data_for_FY22[[#This Row],[Median]]","v":394680.4},{"$f":"(((AAMC_Raw_Data_for_FY22[[#This Row],[75th]]-AAMC_Raw_Data_for_FY22[[#This Row],[Median]])/25)*35) + AAMC_Raw_Data_for_FY22[[#This Row],[Median]]","v":406524.8},{"$f":"(((AAMC_Raw_Data_for_FY22[[#This Row],[75th]]-AAMC_Raw_Data_for_FY22[[#This Row],[Median]])/25)*40) + AAMC_Raw_Data_for_FY22[[#This Row],[Median]]","v":418369.2}]
[{"$f":"AAMC_Raw_Data_for_FY22[[#This Row],[Source]]&AAMC_Raw_Data_for_FY22[[#This Row],[Type]]&AAMC_Raw_Data_for_FY22[[#This Row],[School Subset]]&AAMC_Raw_Data_for_FY22[[#This Row],[Rank]]&AAMC_Raw_Data_for_FY22[[#This Row],[Degree]]&AAMC_Raw_Data_for_FY22[[#This Row],[Department / Specialty]]&\"L\"","v":"AAMCAcademicPrivateInstructorPhDOther Basic SciencesL"},"Other Basic Sciences",5,"AAMC","Academic","Private","Instructor","PhD","2021-2022",67777,{"$f":"(((AAMC_Raw_Data_for_FY22[[#This Row],[Median]]-AAMC_Raw_Data_for_FY22[[#This Row],[25th]])/25)*5) + AAMC_Raw_Data_for_FY22[[#This Row],[25th]]","v":70265},{"$f":"(((AAMC_Raw_Data_for_FY22[[#This Row],[Median]]-AAMC_Raw_Data_for_FY22[[#This Row],[25th]])/25)*10) + AAMC_Raw_Data_for_FY22[[#This Row],[25th]]","v":72753},{"$f":"(((AAMC_Raw_Data_for_FY22[[#This Row],[Median]]-AAMC_Raw_Data_for_FY22[[#This Row],[25th]])/25)*15) + AAMC_Raw_Data_for_FY22[[#This Row],[25th]]","v":75241},{"$f":"(((AAMC_Raw_Data_for_FY22[[#This Row],[Median]]-AAMC_Raw_Data_for_FY22[[#This Row],[25th]])/25)*20) + AAMC_Raw_Data_for_FY22[[#This Row],[25th]]","v":77729},80217,{"$f":"(((AAMC_Raw_Data_for_FY22[[#This Row],[75th]]-AAMC_Raw_Data_for_FY22[[#This Row],[Median]])/25)*5) + AAMC_Raw_Data_for_FY22[[#This Row],[Median]]","v":83601.8},{"$f":"(((AAMC_Raw_Data_for_FY22[[#This Row],[75th]]-AAMC_Raw_Data_for_FY22[[#This Row],[Median]])/25)*10) + AAMC_Raw_Data_for_FY22[[#This Row],[Median]]","v":86986.6},{"$f":"(((AAMC_Raw_Data_for_FY22[[#This Row],[75th]]-AAMC_Raw_Data_for_FY22[[#This Row],[Median]])/25)*15) + AAMC_Raw_Data_for_FY22[[#This Row],[Median]]","v":90371.4},{"$f":"(((AAMC_Raw_Data_for_FY22[[#This Row],[75th]]-AAMC_Raw_Data_for_FY22[[#This Row],[Median]])/25)*20) + AAMC_Raw_Data_for_FY22[[#This Row],[Median]]","v":93756.2},97141,{"$f":"(((AAMC_Raw_Data_for_FY22[[#This Row],[75th]]-AAMC_Raw_Data_for_FY22[[#This Row],[Median]])/25)*30) + AAMC_Raw_Data_for_FY22[[#This Row],[Median]]","v":100525.8},{"$f":"(((AAMC_Raw_Data_for_FY22[[#This Row],[75th]]-AAMC_Raw_Data_for_FY22[[#This Row],[Median]])/25)*35) + AAMC_Raw_Data_for_FY22[[#This Row],[Median]]","v":103910.6},{"$f":"(((AAMC_Raw_Data_for_FY22[[#This Row],[75th]]-AAMC_Raw_Data_for_FY22[[#This Row],[Median]])/25)*40) + AAMC_Raw_Data_for_FY22[[#This Row],[Median]]","v":107295.4}]
[{"$f":"AAMC_Raw_Data_for_FY22[[#This Row],[Source]]&AAMC_Raw_Data_for_FY22[[#This Row],[Type]]&AAMC_Raw_Data_for_FY22[[#This Row],[School Subset]]&AAMC_Raw_Data_for_FY22[[#This Row],[Rank]]&AAMC_Raw_Data_for_FY22[[#This Row],[Degree]]&AAMC_Raw_Data_for_FY22[[#This Row],[Department / Specialty]]&\"L\"","v":"AAMCAcademicPrivateAssistantPhDOther Basic SciencesL"},"Other Basic Sciences",4,"AAMC","Academic","Private","Assistant","PhD","2021-2022",95159,{"$f":"(((AAMC_Raw_Data_for_FY22[[#This Row],[Median]]-AAMC_Raw_Data_for_FY22[[#This Row],[25th]])/25)*5) + AAMC_Raw_Data_for_FY22[[#This Row],[25th]]","v":98832.8},{"$f":"(((AAMC_Raw_Data_for_FY22[[#This Row],[Median]]-AAMC_Raw_Data_for_FY22[[#This Row],[25th]])/25)*10) + AAMC_Raw_Data_for_FY22[[#This Row],[25th]]","v":102506.6},{"$f":"(((AAMC_Raw_Data_for_FY22[[#This Row],[Median]]-AAMC_Raw_Data_for_FY22[[#This Row],[25th]])/25)*15) + AAMC_Raw_Data_for_FY22[[#This Row],[25th]]","v":106180.4},{"$f":"(((AAMC_Raw_Data_for_FY22[[#This Row],[Median]]-AAMC_Raw_Data_for_FY22[[#This Row],[25th]])/25)*20) + AAMC_Raw_Data_for_FY22[[#This Row],[25th]]","v":109854.2},113528,{"$f":"(((AAMC_Raw_Data_for_FY22[[#This Row],[75th]]-AAMC_Raw_Data_for_FY22[[#This Row],[Median]])/25)*5) + AAMC_Raw_Data_for_FY22[[#This Row],[Median]]","v":118231.4},{"$f":"(((AAMC_Raw_Data_for_FY22[[#This Row],[75th]]-AAMC_Raw_Data_for_FY22[[#This Row],[Median]])/25)*10) + AAMC_Raw_Data_for_FY22[[#This Row],[Median]]","v":122934.8},{"$f":"(((AAMC_Raw_Data_for_FY22[[#This Row],[75th]]-AAMC_Raw_Data_for_FY22[[#This Row],[Median]])/25)*15) + AAMC_Raw_Data_for_FY22[[#This Row],[Median]]","v":127638.2},{"$f":"(((AAMC_Raw_Data_for_FY22[[#This Row],[75th]]-AAMC_Raw_Data_for_FY22[[#This Row],[Median]])/25)*20) + AAMC_Raw_Data_for_FY22[[#This Row],[Median]]","v":132341.6},137045,{"$f":"(((AAMC_Raw_Data_for_FY22[[#This Row],[75th]]-AAMC_Raw_Data_for_FY22[[#This Row],[Median]])/25)*30) + AAMC_Raw_Data_for_FY22[[#This Row],[Median]]","v":141748.4},{"$f":"(((AAMC_Raw_Data_for_FY22[[#This Row],[75th]]-AAMC_Raw_Data_for_FY22[[#This Row],[Median]])/25)*35) + AAMC_Raw_Data_for_FY22[[#This Row],[Median]]","v":146451.79999999999},{"$f":"(((AAMC_Raw_Data_for_FY22[[#This Row],[75th]]-AAMC_Raw_Data_for_FY22[[#This Row],[Median]])/25)*40) + AAMC_Raw_Data_for_FY22[[#This Row],[Median]]","v":151155.20000000001}]
[{"$f":"AAMC_Raw_Data_for_FY22[[#This Row],[Source]]&AAMC_Raw_Data_for_FY22[[#This Row],[Type]]&AAMC_Raw_Data_for_FY22[[#This Row],[School Subset]]&AAMC_Raw_Data_for_FY22[[#This Row],[Rank]]&AAMC_Raw_Data_for_FY22[[#This Row],[Degree]]&AAMC_Raw_Data_for_FY22[[#This Row],[Department / Specialty]]&\"L\"","v":"AAMCAcademicPrivateAssociatePhDOther Basic SciencesL"},"Other Basic Sciences",3,"AAMC","Academic","Private","Associate","PhD","2021-2022",128802,{"$f":"(((AAMC_Raw_Data_for_FY22[[#This Row],[Median]]-AAMC_Raw_Data_for_FY22[[#This Row],[25th]])/25)*5) + AAMC_Raw_Data_for_FY22[[#This Row],[25th]]","v":133304.6},{"$f":"(((AAMC_Raw_Data_for_FY22[[#This Row],[Median]]-AAMC_Raw_Data_for_FY22[[#This Row],[25th]])/25)*10) + AAMC_Raw_Data_for_FY22[[#This Row],[25th]]","v":137807.20000000001},{"$f":"(((AAMC_Raw_Data_for_FY22[[#This Row],[Median]]-AAMC_Raw_Data_for_FY22[[#This Row],[25th]])/25)*15) + AAMC_Raw_Data_for_FY22[[#This Row],[25th]]","v":142309.79999999999},{"$f":"(((AAMC_Raw_Data_for_FY22[[#This Row],[Median]]-AAMC_Raw_Data_for_FY22[[#This Row],[25th]])/25)*20) + AAMC_Raw_Data_for_FY22[[#This Row],[25th]]","v":146812.4},151315,{"$f":"(((AAMC_Raw_Data_for_FY22[[#This Row],[75th]]-AAMC_Raw_Data_for_FY22[[#This Row],[Median]])/25)*5) + AAMC_Raw_Data_for_FY22[[#This Row],[Median]]","v":156785.20000000001},{"$f":"(((AAMC_Raw_Data_for_FY22[[#This Row],[75th]]-AAMC_Raw_Data_for_FY22[[#This Row],[Median]])/25)*10) + AAMC_Raw_Data_for_FY22[[#This Row],[Median]]","v":162255.4},{"$f":"(((AAMC_Raw_Data_for_FY22[[#This Row],[75th]]-AAMC_Raw_Data_for_FY22[[#This Row],[Median]])/25)*15) + AAMC_Raw_Data_for_FY22[[#This Row],[Median]]","v":167725.6},{"$f":"(((AAMC_Raw_Data_for_FY22[[#This Row],[75th]]-AAMC_Raw_Data_for_FY22[[#This Row],[Median]])/25)*20) + AAMC_Raw_Data_for_FY22[[#This Row],[Median]]","v":173195.8},178666,{"$f":"(((AAMC_Raw_Data_for_FY22[[#This Row],[75th]]-AAMC_Raw_Data_for_FY22[[#This Row],[Median]])/25)*30) + AAMC_Raw_Data_for_FY22[[#This Row],[Median]]","v":184136.2},{"$f":"(((AAMC_Raw_Data_for_FY22[[#This Row],[75th]]-AAMC_Raw_Data_for_FY22[[#This Row],[Median]])/25)*35) + AAMC_Raw_Data_for_FY22[[#This Row],[Median]]","v":189606.39999999999},{"$f":"(((AAMC_Raw_Data_for_FY22[[#This Row],[75th]]-AAMC_Raw_Data_for_FY22[[#This Row],[Median]])/25)*40) + AAMC_Raw_Data_for_FY22[[#This Row],[Median]]","v":195076.6}]
[{"$f":"AAMC_Raw_Data_for_FY22[[#This Row],[Source]]&AAMC_Raw_Data_for_FY22[[#This Row],[Type]]&AAMC_Raw_Data_for_FY22[[#This Row],[School Subset]]&AAMC_Raw_Data_for_FY22[[#This Row],[Rank]]&AAMC_Raw_Data_for_FY22[[#This Row],[Degree]]&AAMC_Raw_Data_for_FY22[[#This Row],[Department / Specialty]]&\"L\"","v":"AAMCAcademicPrivateProfessorPhDOther Basic SciencesL"},"Other Basic Sciences",2,"AAMC","Academic","Private","Professor","PhD","2021-2022",178210,{"$f":"(((AAMC_Raw_Data_for_FY22[[#This Row],[Median]]-AAMC_Raw_Data_for_FY22[[#This Row],[25th]])/25)*5) + AAMC_Raw_Data_for_FY22[[#This Row],[25th]]","v":184981.6},{"$f":"(((AAMC_Raw_Data_for_FY22[[#This Row],[Median]]-AAMC_Raw_Data_for_FY22[[#This Row],[25th]])/25)*10) + AAMC_Raw_Data_for_FY22[[#This Row],[25th]]","v":191753.2},{"$f":"(((AAMC_Raw_Data_for_FY22[[#This Row],[Median]]-AAMC_Raw_Data_for_FY22[[#This Row],[25th]])/25)*15) + AAMC_Raw_Data_for_FY22[[#This Row],[25th]]","v":198524.79999999999},{"$f":"(((AAMC_Raw_Data_for_FY22[[#This Row],[Median]]-AAMC_Raw_Data_for_FY22[[#This Row],[25th]])/25)*20) + AAMC_Raw_Data_for_FY22[[#This Row],[25th]]","v":205296.4},212068,{"$f":"(((AAMC_Raw_Data_for_FY22[[#This Row],[75th]]-AAMC_Raw_Data_for_FY22[[#This Row],[Median]])/25)*5) + AAMC_Raw_Data_for_FY22[[#This Row],[Median]]","v":222365.2},{"$f":"(((AAMC_Raw_Data_for_FY22[[#This Row],[75th]]-AAMC_Raw_Data_for_FY22[[#This Row],[Median]])/25)*10) + AAMC_Raw_Data_for_FY22[[#This Row],[Median]]","v":232662.39999999999},{"$f":"(((AAMC_Raw_Data_for_FY22[[#This Row],[75th]]-AAMC_Raw_Data_for_FY22[[#This Row],[Median]])/25)*15) + AAMC_Raw_Data_for_FY22[[#This Row],[Median]]","v":242959.6},{"$f":"(((AAMC_Raw_Data_for_FY22[[#This Row],[75th]]-AAMC_Raw_Data_for_FY22[[#This Row],[Median]])/25)*20) + AAMC_Raw_Data_for_FY22[[#This Row],[Median]]","v":253256.8},263554,{"$f":"(((AAMC_Raw_Data_for_FY22[[#This Row],[75th]]-AAMC_Raw_Data_for_FY22[[#This Row],[Median]])/25)*30) + AAMC_Raw_Data_for_FY22[[#This Row],[Median]]","v":273851.2},{"$f":"(((AAMC_Raw_Data_for_FY22[[#This Row],[75th]]-AAMC_Raw_Data_for_FY22[[#This Row],[Median]])/25)*35) + AAMC_Raw_Data_for_FY22[[#This Row],[Median]]","v":284148.40000000002},{"$f":"(((AAMC_Raw_Data_for_FY22[[#This Row],[75th]]-AAMC_Raw_Data_for_FY22[[#This Row],[Median]])/25)*40) + AAMC_Raw_Data_for_FY22[[#This Row],[Median]]","v":294445.59999999998}]
[{"$f":"AAMC_Raw_Data_for_FY22[[#This Row],[Source]]&AAMC_Raw_Data_for_FY22[[#This Row],[Type]]&AAMC_Raw_Data_for_FY22[[#This Row],[School Subset]]&AAMC_Raw_Data_for_FY22[[#This Row],[Rank]]&AAMC_Raw_Data_for_FY22[[#This Row],[Degree]]&AAMC_Raw_Data_for_FY22[[#This Row],[Department / Specialty]]&\"L\"","v":"AAMCAcademicPrivateChiefPhDOther Basic SciencesL"},"Other Basic Sciences",6,"AAMC","Academic","Private","Chief","PhD","2021-2022",211920,{"$f":"(((AAMC_Raw_Data_for_FY22[[#This Row],[Median]]-AAMC_Raw_Data_for_FY22[[#This Row],[25th]])/25)*5) + AAMC_Raw_Data_for_FY22[[#This Row],[25th]]","v":216667.8},{"$f":"(((AAMC_Raw_Data_for_FY22[[#This Row],[Median]]-AAMC_Raw_Data_for_FY22[[#This Row],[25th]])/25)*10) + AAMC_Raw_Data_for_FY22[[#This Row],[25th]]","v":221415.6},{"$f":"(((AAMC_Raw_Data_for_FY22[[#This Row],[Median]]-AAMC_Raw_Data_for_FY22[[#This Row],[25th]])/25)*15) + AAMC_Raw_Data_for_FY22[[#This Row],[25th]]","v":226163.4},{"$f":"(((AAMC_Raw_Data_for_FY22[[#This Row],[Median]]-AAMC_Raw_Data_for_FY22[[#This Row],[25th]])/25)*20) + AAMC_Raw_Data_for_FY22[[#This Row],[25th]]","v":230911.2},235659,{"$f":"(((AAMC_Raw_Data_for_FY22[[#This Row],[75th]]-AAMC_Raw_Data_for_FY22[[#This Row],[Median]])/25)*5) + AAMC_Raw_Data_for_FY22[[#This Row],[Median]]","v":251101},{"$f":"(((AAMC_Raw_Data_for_FY22[[#This Row],[75th]]-AAMC_Raw_Data_for_FY22[[#This Row],[Median]])/25)*10) + AAMC_Raw_Data_for_FY22[[#This Row],[Median]]","v":266543},{"$f":"(((AAMC_Raw_Data_for_FY22[[#This Row],[75th]]-AAMC_Raw_Data_for_FY22[[#This Row],[Median]])/25)*15) + AAMC_Raw_Data_for_FY22[[#This Row],[Median]]","v":281985},{"$f":"(((AAMC_Raw_Data_for_FY22[[#This Row],[75th]]-AAMC_Raw_Data_for_FY22[[#This Row],[Median]])/25)*20) + AAMC_Raw_Data_for_FY22[[#This Row],[Median]]","v":297427},312869,{"$f":"(((AAMC_Raw_Data_for_FY22[[#This Row],[75th]]-AAMC_Raw_Data_for_FY22[[#This Row],[Median]])/25)*30) + AAMC_Raw_Data_for_FY22[[#This Row],[Median]]","v":328311},{"$f":"(((AAMC_Raw_Data_for_FY22[[#This Row],[75th]]-AAMC_Raw_Data_for_FY22[[#This Row],[Median]])/25)*35) + AAMC_Raw_Data_for_FY22[[#This Row],[Median]]","v":343753},{"$f":"(((AAMC_Raw_Data_for_FY22[[#This Row],[75th]]-AAMC_Raw_Data_for_FY22[[#This Row],[Median]])/25)*40) + AAMC_Raw_Data_for_FY22[[#This Row],[Median]]","v":359195}]
[{"$f":"AAMC_Raw_Data_for_FY22[[#This Row],[Source]]&AAMC_Raw_Data_for_FY22[[#This Row],[Type]]&AAMC_Raw_Data_for_FY22[[#This Row],[School Subset]]&AAMC_Raw_Data_for_FY22[[#This Row],[Rank]]&AAMC_Raw_Data_for_FY22[[#This Row],[Degree]]&AAMC_Raw_Data_for_FY22[[#This Row],[Department / Specialty]]&\"L\"","v":"AAMCAcademicPrivateChairPhDOther Basic SciencesL"},"Other Basic Sciences",1,"AAMC","Academic","Private","Chair","PhD","2021-2022",258193,{"$f":"(((AAMC_Raw_Data_for_FY22[[#This Row],[Median]]-AAMC_Raw_Data_for_FY22[[#This Row],[25th]])/25)*5) + AAMC_Raw_Data_for_FY22[[#This Row],[25th]]","v":278644.8},{"$f":"(((AAMC_Raw_Data_for_FY22[[#This Row],[Median]]-AAMC_Raw_Data_for_FY22[[#This Row],[25th]])/25)*10) + AAMC_Raw_Data_for_FY22[[#This Row],[25th]]","v":299096.59999999998},{"$f":"(((AAMC_Raw_Data_for_FY22[[#This Row],[Median]]-AAMC_Raw_Data_for_FY22[[#This Row],[25th]])/25)*15) + AAMC_Raw_Data_for_FY22[[#This Row],[25th]]","v":319548.40000000002},{"$f":"(((AAMC_Raw_Data_for_FY22[[#This Row],[Median]]-AAMC_Raw_Data_for_FY22[[#This Row],[25th]])/25)*20) + AAMC_Raw_Data_for_FY22[[#This Row],[25th]]","v":340000.2},360452,{"$f":"(((AAMC_Raw_Data_for_FY22[[#This Row],[75th]]-AAMC_Raw_Data_for_FY22[[#This Row],[Median]])/25)*5) + AAMC_Raw_Data_for_FY22[[#This Row],[Median]]","v":369956.6},{"$f":"(((AAMC_Raw_Data_for_FY22[[#This Row],[75th]]-AAMC_Raw_Data_for_FY22[[#This Row],[Median]])/25)*10) + AAMC_Raw_Data_for_FY22[[#This Row],[Median]]","v":379461.2},{"$f":"(((AAMC_Raw_Data_for_FY22[[#This Row],[75th]]-AAMC_Raw_Data_for_FY22[[#This Row],[Median]])/25)*15) + AAMC_Raw_Data_for_FY22[[#This Row],[Median]]","v":388965.8},{"$f":"(((AAMC_Raw_Data_for_FY22[[#This Row],[75th]]-AAMC_Raw_Data_for_FY22[[#This Row],[Median]])/25)*20) + AAMC_Raw_Data_for_FY22[[#This Row],[Median]]","v":398470.40000000002},407975,{"$f":"(((AAMC_Raw_Data_for_FY22[[#This Row],[75th]]-AAMC_Raw_Data_for_FY22[[#This Row],[Median]])/25)*30) + AAMC_Raw_Data_for_FY22[[#This Row],[Median]]","v":417479.6},{"$f":"(((AAMC_Raw_Data_for_FY22[[#This Row],[75th]]-AAMC_Raw_Data_for_FY22[[#This Row],[Median]])/25)*35) + AAMC_Raw_Data_for_FY22[[#This Row],[Median]]","v":426984.2},{"$f":"(((AAMC_Raw_Data_for_FY22[[#This Row],[75th]]-AAMC_Raw_Data_for_FY22[[#This Row],[Median]])/25)*40) + AAMC_Raw_Data_for_FY22[[#This Row],[Median]]","v":436488.8}]
[{"$f":"AAMC_Raw_Data_for_FY22[[#This Row],[Source]]&AAMC_Raw_Data_for_FY22[[#This Row],[Type]]&AAMC_Raw_Data_for_FY22[[#This Row],[School Subset]]&AAMC_Raw_Data_for_FY22[[#This Row],[Rank]]&AAMC_Raw_Data_for_FY22[[#This Row],[Degree]]&AAMC_Raw_Data_for_FY22[[#This Row],[Department / Specialty]]&\"L\"","v":"AAMCAcademicPublicInstructorPhDBasic Sciences TotalL"},"Basic Sciences Total",5,"AAMC","Academic","Public","Instructor","PhD","2021-2022",60000,{"$f":"(((AAMC_Raw_Data_for_FY22[[#This Row],[Median]]-AAMC_Raw_Data_for_FY22[[#This Row],[25th]])/25)*5) + AAMC_Raw_Data_for_FY22[[#This Row],[25th]]","v":60940.800000000003},{"$f":"(((AAMC_Raw_Data_for_FY22[[#This Row],[Median]]-AAMC_Raw_Data_for_FY22[[#This Row],[25th]])/25)*10) + AAMC_Raw_Data_for_FY22[[#This Row],[25th]]","v":61881.599999999999},{"$f":"(((AAMC_Raw_Data_for_FY22[[#This Row],[Median]]-AAMC_Raw_Data_for_FY22[[#This Row],[25th]])/25)*15) + AAMC_Raw_Data_for_FY22[[#This Row],[25th]]","v":62822.400000000001},{"$f":"(((AAMC_Raw_Data_for_FY22[[#This Row],[Median]]-AAMC_Raw_Data_for_FY22[[#This Row],[25th]])/25)*20) + AAMC_Raw_Data_for_FY22[[#This Row],[25th]]","v":63763.199999999997},64704,{"$f":"(((AAMC_Raw_Data_for_FY22[[#This Row],[75th]]-AAMC_Raw_Data_for_FY22[[#This Row],[Median]])/25)*5) + AAMC_Raw_Data_for_FY22[[#This Row],[Median]]","v":66763.199999999997},{"$f":"(((AAMC_Raw_Data_for_FY22[[#This Row],[75th]]-AAMC_Raw_Data_for_FY22[[#This Row],[Median]])/25)*10) + AAMC_Raw_Data_for_FY22[[#This Row],[Median]]","v":68822.399999999994},{"$f":"(((AAMC_Raw_Data_for_FY22[[#This Row],[75th]]-AAMC_Raw_Data_for_FY22[[#This Row],[Median]])/25)*15) + AAMC_Raw_Data_for_FY22[[#This Row],[Median]]","v":70881.600000000006},{"$f":"(((AAMC_Raw_Data_for_FY22[[#This Row],[75th]]-AAMC_Raw_Data_for_FY22[[#This Row],[Median]])/25)*20) + AAMC_Raw_Data_for_FY22[[#This Row],[Median]]","v":72940.800000000003},75000,{"$f":"(((AAMC_Raw_Data_for_FY22[[#This Row],[75th]]-AAMC_Raw_Data_for_FY22[[#This Row],[Median]])/25)*30) + AAMC_Raw_Data_for_FY22[[#This Row],[Median]]","v":77059.199999999997},{"$f":"(((AAMC_Raw_Data_for_FY22[[#This Row],[75th]]-AAMC_Raw_Data_for_FY22[[#This Row],[Median]])/25)*35) + AAMC_Raw_Data_for_FY22[[#This Row],[Median]]","v":79118.399999999994},{"$f":"(((AAMC_Raw_Data_for_FY22[[#This Row],[75th]]-AAMC_Raw_Data_for_FY22[[#This Row],[Median]])/25)*40) + AAMC_Raw_Data_for_FY22[[#This Row],[Median]]","v":81177.600000000006}]
[{"$f":"AAMC_Raw_Data_for_FY22[[#This Row],[Source]]&AAMC_Raw_Data_for_FY22[[#This Row],[Type]]&AAMC_Raw_Data_for_FY22[[#This Row],[School Subset]]&AAMC_Raw_Data_for_FY22[[#This Row],[Rank]]&AAMC_Raw_Data_for_FY22[[#This Row],[Degree]]&AAMC_Raw_Data_for_FY22[[#This Row],[Department / Specialty]]&\"L\"","v":"AAMCAcademicPublicAssistantPhDBasic Sciences TotalL"},"Basic Sciences Total",4,"AAMC","Academic","Public","Assistant","PhD","2021-2022",88430,{"$f":"(((AAMC_Raw_Data_for_FY22[[#This Row],[Median]]-AAMC_Raw_Data_for_FY22[[#This Row],[25th]])/25)*5) + AAMC_Raw_Data_for_FY22[[#This Row],[25th]]","v":91756},{"$f":"(((AAMC_Raw_Data_for_FY22[[#This Row],[Median]]-AAMC_Raw_Data_for_FY22[[#This Row],[25th]])/25)*10) + AAMC_Raw_Data_for_FY22[[#This Row],[25th]]","v":95082},{"$f":"(((AAMC_Raw_Data_for_FY22[[#This Row],[Median]]-AAMC_Raw_Data_for_FY22[[#This Row],[25th]])/25)*15) + AAMC_Raw_Data_for_FY22[[#This Row],[25th]]","v":98408},{"$f":"(((AAMC_Raw_Data_for_FY22[[#This Row],[Median]]-AAMC_Raw_Data_for_FY22[[#This Row],[25th]])/25)*20) + AAMC_Raw_Data_for_FY22[[#This Row],[25th]]","v":101734},105060,{"$f":"(((AAMC_Raw_Data_for_FY22[[#This Row],[75th]]-AAMC_Raw_Data_for_FY22[[#This Row],[Median]])/25)*5) + AAMC_Raw_Data_for_FY22[[#This Row],[Median]]","v":108648},{"$f":"(((AAMC_Raw_Data_for_FY22[[#This Row],[75th]]-AAMC_Raw_Data_for_FY22[[#This Row],[Median]])/25)*10) + AAMC_Raw_Data_for_FY22[[#This Row],[Median]]","v":112236},{"$f":"(((AAMC_Raw_Data_for_FY22[[#This Row],[75th]]-AAMC_Raw_Data_for_FY22[[#This Row],[Median]])/25)*15) + AAMC_Raw_Data_for_FY22[[#This Row],[Median]]","v":115824},{"$f":"(((AAMC_Raw_Data_for_FY22[[#This Row],[75th]]-AAMC_Raw_Data_for_FY22[[#This Row],[Median]])/25)*20) + AAMC_Raw_Data_for_FY22[[#This Row],[Median]]","v":119412},123000,{"$f":"(((AAMC_Raw_Data_for_FY22[[#This Row],[75th]]-AAMC_Raw_Data_for_FY22[[#This Row],[Median]])/25)*30) + AAMC_Raw_Data_for_FY22[[#This Row],[Median]]","v":126588},{"$f":"(((AAMC_Raw_Data_for_FY22[[#This Row],[75th]]-AAMC_Raw_Data_for_FY22[[#This Row],[Median]])/25)*35) + AAMC_Raw_Data_for_FY22[[#This Row],[Median]]","v":130176},{"$f":"(((AAMC_Raw_Data_for_FY22[[#This Row],[75th]]-AAMC_Raw_Data_for_FY22[[#This Row],[Median]])/25)*40) + AAMC_Raw_Data_for_FY22[[#This Row],[Median]]","v":133764}]
[{"$f":"AAMC_Raw_Data_for_FY22[[#This Row],[Source]]&AAMC_Raw_Data_for_FY22[[#This Row],[Type]]&AAMC_Raw_Data_for_FY22[[#This Row],[School Subset]]&AAMC_Raw_Data_for_FY22[[#This Row],[Rank]]&AAMC_Raw_Data_for_FY22[[#This Row],[Degree]]&AAMC_Raw_Data_for_FY22[[#This Row],[Department / Specialty]]&\"L\"","v":"AAMCAcademicPublicAssociatePhDBasic Sciences TotalL"},"Basic Sciences Total",3,"AAMC","Academic","Public","Associate","PhD","2021-2022",117670,{"$f":"(((AAMC_Raw_Data_for_FY22[[#This Row],[Median]]-AAMC_Raw_Data_for_FY22[[#This Row],[25th]])/25)*5) + AAMC_Raw_Data_for_FY22[[#This Row],[25th]]","v":121144.8},{"$f":"(((AAMC_Raw_Data_for_FY22[[#This Row],[Median]]-AAMC_Raw_Data_for_FY22[[#This Row],[25th]])/25)*10) + AAMC_Raw_Data_for_FY22[[#This Row],[25th]]","v":124619.6},{"$f":"(((AAMC_Raw_Data_for_FY22[[#This Row],[Median]]-AAMC_Raw_Data_for_FY22[[#This Row],[25th]])/25)*15) + AAMC_Raw_Data_for_FY22[[#This Row],[25th]]","v":128094.39999999999},{"$f":"(((AAMC_Raw_Data_for_FY22[[#This Row],[Median]]-AAMC_Raw_Data_for_FY22[[#This Row],[25th]])/25)*20) + AAMC_Raw_Data_for_FY22[[#This Row],[25th]]","v":131569.20000000001},135044,{"$f":"(((AAMC_Raw_Data_for_FY22[[#This Row],[75th]]-AAMC_Raw_Data_for_FY22[[#This Row],[Median]])/25)*5) + AAMC_Raw_Data_for_FY22[[#This Row],[Median]]","v":139035.20000000001},{"$f":"(((AAMC_Raw_Data_for_FY22[[#This Row],[75th]]-AAMC_Raw_Data_for_FY22[[#This Row],[Median]])/25)*10) + AAMC_Raw_Data_for_FY22[[#This Row],[Median]]","v":143026.4},{"$f":"(((AAMC_Raw_Data_for_FY22[[#This Row],[75th]]-AAMC_Raw_Data_for_FY22[[#This Row],[Median]])/25)*15) + AAMC_Raw_Data_for_FY22[[#This Row],[Median]]","v":147017.60000000001},{"$f":"(((AAMC_Raw_Data_for_FY22[[#This Row],[75th]]-AAMC_Raw_Data_for_FY22[[#This Row],[Median]])/25)*20) + AAMC_Raw_Data_for_FY22[[#This Row],[Median]]","v":151008.79999999999},155000,{"$f":"(((AAMC_Raw_Data_for_FY22[[#This Row],[75th]]-AAMC_Raw_Data_for_FY22[[#This Row],[Median]])/25)*30) + AAMC_Raw_Data_for_FY22[[#This Row],[Median]]","v":158991.20000000001},{"$f":"(((AAMC_Raw_Data_for_FY22[[#This Row],[75th]]-AAMC_Raw_Data_for_FY22[[#This Row],[Median]])/25)*35) + AAMC_Raw_Data_for_FY22[[#This Row],[Median]]","v":162982.39999999999},{"$f":"(((AAMC_Raw_Data_for_FY22[[#This Row],[75th]]-AAMC_Raw_Data_for_FY22[[#This Row],[Median]])/25)*40) + AAMC_Raw_Data_for_FY22[[#This Row],[Median]]","v":166973.6}]
[{"$f":"AAMC_Raw_Data_for_FY22[[#This Row],[Source]]&AAMC_Raw_Data_for_FY22[[#This Row],[Type]]&AAMC_Raw_Data_for_FY22[[#This Row],[School Subset]]&AAMC_Raw_Data_for_FY22[[#This Row],[Rank]]&AAMC_Raw_Data_for_FY22[[#This Row],[Degree]]&AAMC_Raw_Data_for_FY22[[#This Row],[Department / Specialty]]&\"L\"","v":"AAMCAcademicPublicProfessorPhDBasic Sciences TotalL"},"Basic Sciences Total",2,"AAMC","Academic","Public","Professor","PhD","2021-2022",165000,{"$f":"(((AAMC_Raw_Data_for_FY22[[#This Row],[Median]]-AAMC_Raw_Data_for_FY22[[#This Row],[25th]])/25)*5) + AAMC_Raw_Data_for_FY22[[#This Row],[25th]]","v":170724},{"$f":"(((AAMC_Raw_Data_for_FY22[[#This Row],[Median]]-AAMC_Raw_Data_for_FY22[[#This Row],[25th]])/25)*10) + AAMC_Raw_Data_for_FY22[[#This Row],[25th]]","v":176448},{"$f":"(((AAMC_Raw_Data_for_FY22[[#This Row],[Median]]-AAMC_Raw_Data_for_FY22[[#This Row],[25th]])/25)*15) + AAMC_Raw_Data_for_FY22[[#This Row],[25th]]","v":182172},{"$f":"(((AAMC_Raw_Data_for_FY22[[#This Row],[Median]]-AAMC_Raw_Data_for_FY22[[#This Row],[25th]])/25)*20) + AAMC_Raw_Data_for_FY22[[#This Row],[25th]]","v":187896},193620,{"$f":"(((AAMC_Raw_Data_for_FY22[[#This Row],[75th]]-AAMC_Raw_Data_for_FY22[[#This Row],[Median]])/25)*5) + AAMC_Raw_Data_for_FY22[[#This Row],[Median]]","v":201481.60000000001},{"$f":"(((AAMC_Raw_Data_for_FY22[[#This Row],[75th]]-AAMC_Raw_Data_for_FY22[[#This Row],[Median]])/25)*10) + AAMC_Raw_Data_for_FY22[[#This Row],[Median]]","v":209343.2},{"$f":"(((AAMC_Raw_Data_for_FY22[[#This Row],[75th]]-AAMC_Raw_Data_for_FY22[[#This Row],[Median]])/25)*15) + AAMC_Raw_Data_for_FY22[[#This Row],[Median]]","v":217204.8},{"$f":"(((AAMC_Raw_Data_for_FY22[[#This Row],[75th]]-AAMC_Raw_Data_for_FY22[[#This Row],[Median]])/25)*20) + AAMC_Raw_Data_for_FY22[[#This Row],[Median]]","v":225066.4},232928,{"$f":"(((AAMC_Raw_Data_for_FY22[[#This Row],[75th]]-AAMC_Raw_Data_for_FY22[[#This Row],[Median]])/25)*30) + AAMC_Raw_Data_for_FY22[[#This Row],[Median]]","v":240789.6},{"$f":"(((AAMC_Raw_Data_for_FY22[[#This Row],[75th]]-AAMC_Raw_Data_for_FY22[[#This Row],[Median]])/25)*35) + AAMC_Raw_Data_for_FY22[[#This Row],[Median]]","v":248651.2},{"$f":"(((AAMC_Raw_Data_for_FY22[[#This Row],[75th]]-AAMC_Raw_Data_for_FY22[[#This Row],[Median]])/25)*40) + AAMC_Raw_Data_for_FY22[[#This Row],[Median]]","v":256512.8}]
[{"$f":"AAMC_Raw_Data_for_FY22[[#This Row],[Source]]&AAMC_Raw_Data_for_FY22[[#This Row],[Type]]&AAMC_Raw_Data_for_FY22[[#This Row],[School Subset]]&AAMC_Raw_Data_for_FY22[[#This Row],[Rank]]&AAMC_Raw_Data_for_FY22[[#This Row],[Degree]]&AAMC_Raw_Data_for_FY22[[#This Row],[Department / Specialty]]&\"L\"","v":"AAMCAcademicPublicChiefPhDBasic Sciences TotalL"},"Basic Sciences Total",6,"AAMC","Academic","Public","Chief","PhD","2021-2022",228874,{"$f":"(((AAMC_Raw_Data_for_FY22[[#This Row],[Median]]-AAMC_Raw_Data_for_FY22[[#This Row],[25th]])/25)*5) + AAMC_Raw_Data_for_FY22[[#This Row],[25th]]","v":238185.2},{"$f":"(((AAMC_Raw_Data_for_FY22[[#This Row],[Median]]-AAMC_Raw_Data_for_FY22[[#This Row],[25th]])/25)*10) + AAMC_Raw_Data_for_FY22[[#This Row],[25th]]","v":247496.4},{"$f":"(((AAMC_Raw_Data_for_FY22[[#This Row],[Median]]-AAMC_Raw_Data_for_FY22[[#This Row],[25th]])/25)*15) + AAMC_Raw_Data_for_FY22[[#This Row],[25th]]","v":256807.6},{"$f":"(((AAMC_Raw_Data_for_FY22[[#This Row],[Median]]-AAMC_Raw_Data_for_FY22[[#This Row],[25th]])/25)*20) + AAMC_Raw_Data_for_FY22[[#This Row],[25th]]","v":266118.8},275430,{"$f":"(((AAMC_Raw_Data_for_FY22[[#This Row],[75th]]-AAMC_Raw_Data_for_FY22[[#This Row],[Median]])/25)*5) + AAMC_Raw_Data_for_FY22[[#This Row],[Median]]","v":286744.2},{"$f":"(((AAMC_Raw_Data_for_FY22[[#This Row],[75th]]-AAMC_Raw_Data_for_FY22[[#This Row],[Median]])/25)*10) + AAMC_Raw_Data_for_FY22[[#This Row],[Median]]","v":298058.40000000002},{"$f":"(((AAMC_Raw_Data_for_FY22[[#This Row],[75th]]-AAMC_Raw_Data_for_FY22[[#This Row],[Median]])/25)*15) + AAMC_Raw_Data_for_FY22[[#This Row],[Median]]","v":309372.59999999998},{"$f":"(((AAMC_Raw_Data_for_FY22[[#This Row],[75th]]-AAMC_Raw_Data_for_FY22[[#This Row],[Median]])/25)*20) + AAMC_Raw_Data_for_FY22[[#This Row],[Median]]","v":320686.8},332001,{"$f":"(((AAMC_Raw_Data_for_FY22[[#This Row],[75th]]-AAMC_Raw_Data_for_FY22[[#This Row],[Median]])/25)*30) + AAMC_Raw_Data_for_FY22[[#This Row],[Median]]","v":343315.20000000001},{"$f":"(((AAMC_Raw_Data_for_FY22[[#This Row],[75th]]-AAMC_Raw_Data_for_FY22[[#This Row],[Median]])/25)*35) + AAMC_Raw_Data_for_FY22[[#This Row],[Median]]","v":354629.4},{"$f":"(((AAMC_Raw_Data_for_FY22[[#This Row],[75th]]-AAMC_Raw_Data_for_FY22[[#This Row],[Median]])/25)*40) + AAMC_Raw_Data_for_FY22[[#This Row],[Median]]","v":365943.6}]
[{"$f":"AAMC_Raw_Data_for_FY22[[#This Row],[Source]]&AAMC_Raw_Data_for_FY22[[#This Row],[Type]]&AAMC_Raw_Data_for_FY22[[#This Row],[School Subset]]&AAMC_Raw_Data_for_FY22[[#This Row],[Rank]]&AAMC_Raw_Data_for_FY22[[#This Row],[Degree]]&AAMC_Raw_Data_for_FY22[[#This Row],[Department / Specialty]]&\"L\"","v":"AAMCAcademicPublicChairPhDBasic Sciences TotalL"},"Basic Sciences Total",1,"AAMC","Academic","Public","Chair","PhD","2021-2022",260712,{"$f":"(((AAMC_Raw_Data_for_FY22[[#This Row],[Median]]-AAMC_Raw_Data_for_FY22[[#This Row],[25th]])/25)*5) + AAMC_Raw_Data_for_FY22[[#This Row],[25th]]","v":272207.40000000002},{"$f":"(((AAMC_Raw_Data_for_FY22[[#This Row],[Median]]-AAMC_Raw_Data_for_FY22[[#This Row],[25th]])/25)*10) + AAMC_Raw_Data_for_FY22[[#This Row],[25th]]","v":283702.8},{"$f":"(((AAMC_Raw_Data_for_FY22[[#This Row],[Median]]-AAMC_Raw_Data_for_FY22[[#This Row],[25th]])/25)*15) + AAMC_Raw_Data_for_FY22[[#This Row],[25th]]","v":295198.2},{"$f":"(((AAMC_Raw_Data_for_FY22[[#This Row],[Median]]-AAMC_Raw_Data_for_FY22[[#This Row],[25th]])/25)*20) + AAMC_Raw_Data_for_FY22[[#This Row],[25th]]","v":306693.59999999998},318189,{"$f":"(((AAMC_Raw_Data_for_FY22[[#This Row],[75th]]-AAMC_Raw_Data_for_FY22[[#This Row],[Median]])/25)*5) + AAMC_Raw_Data_for_FY22[[#This Row],[Median]]","v":329225.40000000002},{"$f":"(((AAMC_Raw_Data_for_FY22[[#This Row],[75th]]-AAMC_Raw_Data_for_FY22[[#This Row],[Median]])/25)*10) + AAMC_Raw_Data_for_FY22[[#This Row],[Median]]","v":340261.8},{"$f":"(((AAMC_Raw_Data_for_FY22[[#This Row],[75th]]-AAMC_Raw_Data_for_FY22[[#This Row],[Median]])/25)*15) + AAMC_Raw_Data_for_FY22[[#This Row],[Median]]","v":351298.2},{"$f":"(((AAMC_Raw_Data_for_FY22[[#This Row],[75th]]-AAMC_Raw_Data_for_FY22[[#This Row],[Median]])/25)*20) + AAMC_Raw_Data_for_FY22[[#This Row],[Median]]","v":362334.6},373371,{"$f":"(((AAMC_Raw_Data_for_FY22[[#This Row],[75th]]-AAMC_Raw_Data_for_FY22[[#This Row],[Median]])/25)*30) + AAMC_Raw_Data_for_FY22[[#This Row],[Median]]","v":384407.4},{"$f":"(((AAMC_Raw_Data_for_FY22[[#This Row],[75th]]-AAMC_Raw_Data_for_FY22[[#This Row],[Median]])/25)*35) + AAMC_Raw_Data_for_FY22[[#This Row],[Median]]","v":395443.8},{"$f":"(((AAMC_Raw_Data_for_FY22[[#This Row],[75th]]-AAMC_Raw_Data_for_FY22[[#This Row],[Median]])/25)*40) + AAMC_Raw_Data_for_FY22[[#This Row],[Median]]","v":406480.2}]
[{"$f":"AAMC_Raw_Data_for_FY22[[#This Row],[Source]]&AAMC_Raw_Data_for_FY22[[#This Row],[Type]]&AAMC_Raw_Data_for_FY22[[#This Row],[School Subset]]&AAMC_Raw_Data_for_FY22[[#This Row],[Rank]]&AAMC_Raw_Data_for_FY22[[#This Row],[Degree]]&AAMC_Raw_Data_for_FY22[[#This Row],[Department / Specialty]]&\"L\"","v":"AAMCAcademicPublicInstructorPhDAnatomyL"},"Anatomy",5,"AAMC","Academic","Public","Instructor","PhD","2021-2022",62424,{"$f":"(((AAMC_Raw_Data_for_FY22[[#This Row],[Median]]-AAMC_Raw_Data_for_FY22[[#This Row],[25th]])/25)*5) + AAMC_Raw_Data_for_FY22[[#This Row],[25th]]","v":63233.2},{"$f":"(((AAMC_Raw_Data_for_FY22[[#This Row],[Median]]-AAMC_Raw_Data_for_FY22[[#This Row],[25th]])/25)*10) + AAMC_Raw_Data_for_FY22[[#This Row],[25th]]","v":64042.400000000001},{"$f":"(((AAMC_Raw_Data_for_FY22[[#This Row],[Median]]-AAMC_Raw_Data_for_FY22[[#This Row],[25th]])/25)*15) + AAMC_Raw_Data_for_FY22[[#This Row],[25th]]","v":64851.6},{"$f":"(((AAMC_Raw_Data_for_FY22[[#This Row],[Median]]-AAMC_Raw_Data_for_FY22[[#This Row],[25th]])/25)*20) + AAMC_Raw_Data_for_FY22[[#This Row],[25th]]","v":65660.800000000003},66470,{"$f":"(((AAMC_Raw_Data_for_FY22[[#This Row],[75th]]-AAMC_Raw_Data_for_FY22[[#This Row],[Median]])/25)*5) + AAMC_Raw_Data_for_FY22[[#This Row],[Median]]","v":71029.600000000006},{"$f":"(((AAMC_Raw_Data_for_FY22[[#This Row],[75th]]-AAMC_Raw_Data_for_FY22[[#This Row],[Median]])/25)*10) + AAMC_Raw_Data_for_FY22[[#This Row],[Median]]","v":75589.2},{"$f":"(((AAMC_Raw_Data_for_FY22[[#This Row],[75th]]-AAMC_Raw_Data_for_FY22[[#This Row],[Median]])/25)*15) + AAMC_Raw_Data_for_FY22[[#This Row],[Median]]","v":80148.800000000003},{"$f":"(((AAMC_Raw_Data_for_FY22[[#This Row],[75th]]-AAMC_Raw_Data_for_FY22[[#This Row],[Median]])/25)*20) + AAMC_Raw_Data_for_FY22[[#This Row],[Median]]","v":84708.4},89268,{"$f":"(((AAMC_Raw_Data_for_FY22[[#This Row],[75th]]-AAMC_Raw_Data_for_FY22[[#This Row],[Median]])/25)*30) + AAMC_Raw_Data_for_FY22[[#This Row],[Median]]","v":93827.6},{"$f":"(((AAMC_Raw_Data_for_FY22[[#This Row],[75th]]-AAMC_Raw_Data_for_FY22[[#This Row],[Median]])/25)*35) + AAMC_Raw_Data_for_FY22[[#This Row],[Median]]","v":98387.199999999997},{"$f":"(((AAMC_Raw_Data_for_FY22[[#This Row],[75th]]-AAMC_Raw_Data_for_FY22[[#This Row],[Median]])/25)*40) + AAMC_Raw_Data_for_FY22[[#This Row],[Median]]","v":102946.79999999999}]
[{"$f":"AAMC_Raw_Data_for_FY22[[#This Row],[Source]]&AAMC_Raw_Data_for_FY22[[#This Row],[Type]]&AAMC_Raw_Data_for_FY22[[#This Row],[School Subset]]&AAMC_Raw_Data_for_FY22[[#This Row],[Rank]]&AAMC_Raw_Data_for_FY22[[#This Row],[Degree]]&AAMC_Raw_Data_for_FY22[[#This Row],[Department / Specialty]]&\"L\"","v":"AAMCAcademicPublicAssistantPhDAnatomyL"},"Anatomy",4,"AAMC","Academic","Public","Assistant","PhD","2021-2022",86210,{"$f":"(((AAMC_Raw_Data_for_FY22[[#This Row],[Median]]-AAMC_Raw_Data_for_FY22[[#This Row],[25th]])/25)*5) + AAMC_Raw_Data_for_FY22[[#This Row],[25th]]","v":88491.199999999997},{"$f":"(((AAMC_Raw_Data_for_FY22[[#This Row],[Median]]-AAMC_Raw_Data_for_FY22[[#This Row],[25th]])/25)*10) + AAMC_Raw_Data_for_FY22[[#This Row],[25th]]","v":90772.4},{"$f":"(((AAMC_Raw_Data_for_FY22[[#This Row],[Median]]-AAMC_Raw_Data_for_FY22[[#This Row],[25th]])/25)*15) + AAMC_Raw_Data_for_FY22[[#This Row],[25th]]","v":93053.6},{"$f":"(((AAMC_Raw_Data_for_FY22[[#This Row],[Median]]-AAMC_Raw_Data_for_FY22[[#This Row],[25th]])/25)*20) + AAMC_Raw_Data_for_FY22[[#This Row],[25th]]","v":95334.8},97616,{"$f":"(((AAMC_Raw_Data_for_FY22[[#This Row],[75th]]-AAMC_Raw_Data_for_FY22[[#This Row],[Median]])/25)*5) + AAMC_Raw_Data_for_FY22[[#This Row],[Median]]","v":100946.2},{"$f":"(((AAMC_Raw_Data_for_FY22[[#This Row],[75th]]-AAMC_Raw_Data_for_FY22[[#This Row],[Median]])/25)*10) + AAMC_Raw_Data_for_FY22[[#This Row],[Median]]","v":104276.4},{"$f":"(((AAMC_Raw_Data_for_FY22[[#This Row],[75th]]-AAMC_Raw_Data_for_FY22[[#This Row],[Median]])/25)*15) + AAMC_Raw_Data_for_FY22[[#This Row],[Median]]","v":107606.6},{"$f":"(((AAMC_Raw_Data_for_FY22[[#This Row],[75th]]-AAMC_Raw_Data_for_FY22[[#This Row],[Median]])/25)*20) + AAMC_Raw_Data_for_FY22[[#This Row],[Median]]","v":110936.8},114267,{"$f":"(((AAMC_Raw_Data_for_FY22[[#This Row],[75th]]-AAMC_Raw_Data_for_FY22[[#This Row],[Median]])/25)*30) + AAMC_Raw_Data_for_FY22[[#This Row],[Median]]","v":117597.2},{"$f":"(((AAMC_Raw_Data_for_FY22[[#This Row],[75th]]-AAMC_Raw_Data_for_FY22[[#This Row],[Median]])/25)*35) + AAMC_Raw_Data_for_FY22[[#This Row],[Median]]","v":120927.4},{"$f":"(((AAMC_Raw_Data_for_FY22[[#This Row],[75th]]-AAMC_Raw_Data_for_FY22[[#This Row],[Median]])/25)*40) + AAMC_Raw_Data_for_FY22[[#This Row],[Median]]","v":124257.60000000001}]
[{"$f":"AAMC_Raw_Data_for_FY22[[#This Row],[Source]]&AAMC_Raw_Data_for_FY22[[#This Row],[Type]]&AAMC_Raw_Data_for_FY22[[#This Row],[School Subset]]&AAMC_Raw_Data_for_FY22[[#This Row],[Rank]]&AAMC_Raw_Data_for_FY22[[#This Row],[Degree]]&AAMC_Raw_Data_for_FY22[[#This Row],[Department / Specialty]]&\"L\"","v":"AAMCAcademicPublicAssociatePhDAnatomyL"},"Anatomy",3,"AAMC","Academic","Public","Associate","PhD","2021-2022",111994,{"$f":"(((AAMC_Raw_Data_for_FY22[[#This Row],[Median]]-AAMC_Raw_Data_for_FY22[[#This Row],[25th]])/25)*5) + AAMC_Raw_Data_for_FY22[[#This Row],[25th]]","v":115184.6},{"$f":"(((AAMC_Raw_Data_for_FY22[[#This Row],[Median]]-AAMC_Raw_Data_for_FY22[[#This Row],[25th]])/25)*10) + AAMC_Raw_Data_for_FY22[[#This Row],[25th]]","v":118375.2},{"$f":"(((AAMC_Raw_Data_for_FY22[[#This Row],[Median]]-AAMC_Raw_Data_for_FY22[[#This Row],[25th]])/25)*15) + AAMC_Raw_Data_for_FY22[[#This Row],[25th]]","v":121565.8},{"$f":"(((AAMC_Raw_Data_for_FY22[[#This Row],[Median]]-AAMC_Raw_Data_for_FY22[[#This Row],[25th]])/25)*20) + AAMC_Raw_Data_for_FY22[[#This Row],[25th]]","v":124756.4},127947,{"$f":"(((AAMC_Raw_Data_for_FY22[[#This Row],[75th]]-AAMC_Raw_Data_for_FY22[[#This Row],[Median]])/25)*5) + AAMC_Raw_Data_for_FY22[[#This Row],[Median]]","v":131872.79999999999},{"$f":"(((AAMC_Raw_Data_for_FY22[[#This Row],[75th]]-AAMC_Raw_Data_for_FY22[[#This Row],[Median]])/25)*10) + AAMC_Raw_Data_for_FY22[[#This Row],[Median]]","v":135798.6},{"$f":"(((AAMC_Raw_Data_for_FY22[[#This Row],[75th]]-AAMC_Raw_Data_for_FY22[[#This Row],[Median]])/25)*15) + AAMC_Raw_Data_for_FY22[[#This Row],[Median]]","v":139724.4},{"$f":"(((AAMC_Raw_Data_for_FY22[[#This Row],[75th]]-AAMC_Raw_Data_for_FY22[[#This Row],[Median]])/25)*20) + AAMC_Raw_Data_for_FY22[[#This Row],[Median]]","v":143650.20000000001},147576,{"$f":"(((AAMC_Raw_Data_for_FY22[[#This Row],[75th]]-AAMC_Raw_Data_for_FY22[[#This Row],[Median]])/25)*30) + AAMC_Raw_Data_for_FY22[[#This Row],[Median]]","v":151501.79999999999},{"$f":"(((AAMC_Raw_Data_for_FY22[[#This Row],[75th]]-AAMC_Raw_Data_for_FY22[[#This Row],[Median]])/25)*35) + AAMC_Raw_Data_for_FY22[[#This Row],[Median]]","v":155427.6},{"$f":"(((AAMC_Raw_Data_for_FY22[[#This Row],[75th]]-AAMC_Raw_Data_for_FY22[[#This Row],[Median]])/25)*40) + AAMC_Raw_Data_for_FY22[[#This Row],[Median]]","v":159353.4}]
[{"$f":"AAMC_Raw_Data_for_FY22[[#This Row],[Source]]&AAMC_Raw_Data_for_FY22[[#This Row],[Type]]&AAMC_Raw_Data_for_FY22[[#This Row],[School Subset]]&AAMC_Raw_Data_for_FY22[[#This Row],[Rank]]&AAMC_Raw_Data_for_FY22[[#This Row],[Degree]]&AAMC_Raw_Data_for_FY22[[#This Row],[Department / Specialty]]&\"L\"","v":"AAMCAcademicPublicProfessorPhDAnatomyL"},"Anatomy",2,"AAMC","Academic","Public","Professor","PhD","2021-2022",157935,{"$f":"(((AAMC_Raw_Data_for_FY22[[#This Row],[Median]]-AAMC_Raw_Data_for_FY22[[#This Row],[25th]])/25)*5) + AAMC_Raw_Data_for_FY22[[#This Row],[25th]]","v":163741.4},{"$f":"(((AAMC_Raw_Data_for_FY22[[#This Row],[Median]]-AAMC_Raw_Data_for_FY22[[#This Row],[25th]])/25)*10) + AAMC_Raw_Data_for_FY22[[#This Row],[25th]]","v":169547.8},{"$f":"(((AAMC_Raw_Data_for_FY22[[#This Row],[Median]]-AAMC_Raw_Data_for_FY22[[#This Row],[25th]])/25)*15) + AAMC_Raw_Data_for_FY22[[#This Row],[25th]]","v":175354.2},{"$f":"(((AAMC_Raw_Data_for_FY22[[#This Row],[Median]]-AAMC_Raw_Data_for_FY22[[#This Row],[25th]])/25)*20) + AAMC_Raw_Data_for_FY22[[#This Row],[25th]]","v":181160.6},186967,{"$f":"(((AAMC_Raw_Data_for_FY22[[#This Row],[75th]]-AAMC_Raw_Data_for_FY22[[#This Row],[Median]])/25)*5) + AAMC_Raw_Data_for_FY22[[#This Row],[Median]]","v":194178.2},{"$f":"(((AAMC_Raw_Data_for_FY22[[#This Row],[75th]]-AAMC_Raw_Data_for_FY22[[#This Row],[Median]])/25)*10) + AAMC_Raw_Data_for_FY22[[#This Row],[Median]]","v":201389.4},{"$f":"(((AAMC_Raw_Data_for_FY22[[#This Row],[75th]]-AAMC_Raw_Data_for_FY22[[#This Row],[Median]])/25)*15) + AAMC_Raw_Data_for_FY22[[#This Row],[Median]]","v":208600.6},{"$f":"(((AAMC_Raw_Data_for_FY22[[#This Row],[75th]]-AAMC_Raw_Data_for_FY22[[#This Row],[Median]])/25)*20) + AAMC_Raw_Data_for_FY22[[#This Row],[Median]]","v":215811.8},223023,{"$f":"(((AAMC_Raw_Data_for_FY22[[#This Row],[75th]]-AAMC_Raw_Data_for_FY22[[#This Row],[Median]])/25)*30) + AAMC_Raw_Data_for_FY22[[#This Row],[Median]]","v":230234.2},{"$f":"(((AAMC_Raw_Data_for_FY22[[#This Row],[75th]]-AAMC_Raw_Data_for_FY22[[#This Row],[Median]])/25)*35) + AAMC_Raw_Data_for_FY22[[#This Row],[Median]]","v":237445.4},{"$f":"(((AAMC_Raw_Data_for_FY22[[#This Row],[75th]]-AAMC_Raw_Data_for_FY22[[#This Row],[Median]])/25)*40) + AAMC_Raw_Data_for_FY22[[#This Row],[Median]]","v":244656.6}]
[{"$f":"AAMC_Raw_Data_for_FY22[[#This Row],[Source]]&AAMC_Raw_Data_for_FY22[[#This Row],[Type]]&AAMC_Raw_Data_for_FY22[[#This Row],[School Subset]]&AAMC_Raw_Data_for_FY22[[#This Row],[Rank]]&AAMC_Raw_Data_for_FY22[[#This Row],[Degree]]&AAMC_Raw_Data_for_FY22[[#This Row],[Department / Specialty]]&\"L\"","v":"AAMCAcademicPublicChiefPhDAnatomyL"},"Anatomy",6,"AAMC","Academic","Public","Chief","PhD","2021-2022",null,{"$f":"(((AAMC_Raw_Data_for_FY22[[#This Row],[Median]]-AAMC_Raw_Data_for_FY22[[#This Row],[25th]])/25)*5) + AAMC_Raw_Data_for_FY22[[#This Row],[25th]]","v":0},{"$f":"(((AAMC_Raw_Data_for_FY22[[#This Row],[Median]]-AAMC_Raw_Data_for_FY22[[#This Row],[25th]])/25)*10) + AAMC_Raw_Data_for_FY22[[#This Row],[25th]]","v":0},{"$f":"(((AAMC_Raw_Data_for_FY22[[#This Row],[Median]]-AAMC_Raw_Data_for_FY22[[#This Row],[25th]])/25)*15) + AAMC_Raw_Data_for_FY22[[#This Row],[25th]]","v":0},{"$f":"(((AAMC_Raw_Data_for_FY22[[#This Row],[Median]]-AAMC_Raw_Data_for_FY22[[#This Row],[25th]])/25)*20) + AAMC_Raw_Data_for_FY22[[#This Row],[25th]]","v":0},null,{"$f":"(((AAMC_Raw_Data_for_FY22[[#This Row],[75th]]-AAMC_Raw_Data_for_FY22[[#This Row],[Median]])/25)*5) + AAMC_Raw_Data_for_FY22[[#This Row],[Median]]","v":0},{"$f":"(((AAMC_Raw_Data_for_FY22[[#This Row],[75th]]-AAMC_Raw_Data_for_FY22[[#This Row],[Median]])/25)*10) + AAMC_Raw_Data_for_FY22[[#This Row],[Median]]","v":0},{"$f":"(((AAMC_Raw_Data_for_FY22[[#This Row],[75th]]-AAMC_Raw_Data_for_FY22[[#This Row],[Median]])/25)*15) + AAMC_Raw_Data_for_FY22[[#This Row],[Median]]","v":0},{"$f":"(((AAMC_Raw_Data_for_FY22[[#This Row],[75th]]-AAMC_Raw_Data_for_FY22[[#This Row],[Median]])/25)*20) + AAMC_Raw_Data_for_FY22[[#This Row],[Median]]","v":0},null,{"$f":"(((AAMC_Raw_Data_for_FY22[[#This Row],[75th]]-AAMC_Raw_Data_for_FY22[[#This Row],[Median]])/25)*30) + AAMC_Raw_Data_for_FY22[[#This Row],[Median]]","v":0},{"$f":"(((AAMC_Raw_Data_for_FY22[[#This Row],[75th]]-AAMC_Raw_Data_for_FY22[[#This Row],[Median]])/25)*35) + AAMC_Raw_Data_for_FY22[[#This Row],[Median]]","v":0},{"$f":"(((AAMC_Raw_Data_for_FY22[[#This Row],[75th]]-AAMC_Raw_Data_for_FY22[[#This Row],[Median]])/25)*40) + AAMC_Raw_Data_for_FY22[[#This Row],[Median]]","v":0}]
[{"$f":"AAMC_Raw_Data_for_FY22[[#This Row],[Source]]&AAMC_Raw_Data_for_FY22[[#This Row],[Type]]&AAMC_Raw_Data_for_FY22[[#This Row],[School Subset]]&AAMC_Raw_Data_for_FY22[[#This Row],[Rank]]&AAMC_Raw_Data_for_FY22[[#This Row],[Degree]]&AAMC_Raw_Data_for_FY22[[#This Row],[Department / Specialty]]&\"L\"","v":"AAMCAcademicPublicChairPhDAnatomyL"},"Anatomy",1,"AAMC","Academic","Public","Chair","PhD","2021-2022",283227,{"$f":"(((AAMC_Raw_Data_for_FY22[[#This Row],[Median]]-AAMC_Raw_Data_for_FY22[[#This Row],[25th]])/25)*5) + AAMC_Raw_Data_for_FY22[[#This Row],[25th]]","v":287572.40000000002},{"$f":"(((AAMC_Raw_Data_for_FY22[[#This Row],[Median]]-AAMC_Raw_Data_for_FY22[[#This Row],[25th]])/25)*10) + AAMC_Raw_Data_for_FY22[[#This Row],[25th]]","v":291917.8},{"$f":"(((AAMC_Raw_Data_for_FY22[[#This Row],[Median]]-AAMC_Raw_Data_for_FY22[[#This Row],[25th]])/25)*15) + AAMC_Raw_Data_for_FY22[[#This Row],[25th]]","v":296263.2},{"$f":"(((AAMC_Raw_Data_for_FY22[[#This Row],[Median]]-AAMC_Raw_Data_for_FY22[[#This Row],[25th]])/25)*20) + AAMC_Raw_Data_for_FY22[[#This Row],[25th]]","v":300608.59999999998},304954,{"$f":"(((AAMC_Raw_Data_for_FY22[[#This Row],[75th]]-AAMC_Raw_Data_for_FY22[[#This Row],[Median]])/25)*5) + AAMC_Raw_Data_for_FY22[[#This Row],[Median]]","v":323367},{"$f":"(((AAMC_Raw_Data_for_FY22[[#This Row],[75th]]-AAMC_Raw_Data_for_FY22[[#This Row],[Median]])/25)*10) + AAMC_Raw_Data_for_FY22[[#This Row],[Median]]","v":341780},{"$f":"(((AAMC_Raw_Data_for_FY22[[#This Row],[75th]]-AAMC_Raw_Data_for_FY22[[#This Row],[Median]])/25)*15) + AAMC_Raw_Data_for_FY22[[#This Row],[Median]]","v":360193},{"$f":"(((AAMC_Raw_Data_for_FY22[[#This Row],[75th]]-AAMC_Raw_Data_for_FY22[[#This Row],[Median]])/25)*20) + AAMC_Raw_Data_for_FY22[[#This Row],[Median]]","v":378606},397019,{"$f":"(((AAMC_Raw_Data_for_FY22[[#This Row],[75th]]-AAMC_Raw_Data_for_FY22[[#This Row],[Median]])/25)*30) + AAMC_Raw_Data_for_FY22[[#This Row],[Median]]","v":415432},{"$f":"(((AAMC_Raw_Data_for_FY22[[#This Row],[75th]]-AAMC_Raw_Data_for_FY22[[#This Row],[Median]])/25)*35) + AAMC_Raw_Data_for_FY22[[#This Row],[Median]]","v":433845},{"$f":"(((AAMC_Raw_Data_for_FY22[[#This Row],[75th]]-AAMC_Raw_Data_for_FY22[[#This Row],[Median]])/25)*40) + AAMC_Raw_Data_for_FY22[[#This Row],[Median]]","v":452258}]
[{"$f":"AAMC_Raw_Data_for_FY22[[#This Row],[Source]]&AAMC_Raw_Data_for_FY22[[#This Row],[Type]]&AAMC_Raw_Data_for_FY22[[#This Row],[School Subset]]&AAMC_Raw_Data_for_FY22[[#This Row],[Rank]]&AAMC_Raw_Data_for_FY22[[#This Row],[Degree]]&AAMC_Raw_Data_for_FY22[[#This Row],[Department / Specialty]]&\"L\"","v":"AAMCAcademicPublicInstructorPhDBiochemistryL"},"Biochemistry",5,"AAMC","Academic","Public","Instructor","PhD","2021-2022",52500,{"$f":"(((AAMC_Raw_Data_for_FY22[[#This Row],[Median]]-AAMC_Raw_Data_for_FY22[[#This Row],[25th]])/25)*5) + AAMC_Raw_Data_for_FY22[[#This Row],[25th]]","v":55000},{"$f":"(((AAMC_Raw_Data_for_FY22[[#This Row],[Median]]-AAMC_Raw_Data_for_FY22[[#This Row],[25th]])/25)*10) + AAMC_Raw_Data_for_FY22[[#This Row],[25th]]","v":57500},{"$f":"(((AAMC_Raw_Data_for_FY22[[#This Row],[Median]]-AAMC_Raw_Data_for_FY22[[#This Row],[25th]])/25)*15) + AAMC_Raw_Data_for_FY22[[#This Row],[25th]]","v":60000},{"$f":"(((AAMC_Raw_Data_for_FY22[[#This Row],[Median]]-AAMC_Raw_Data_for_FY22[[#This Row],[25th]])/25)*20) + AAMC_Raw_Data_for_FY22[[#This Row],[25th]]","v":62500},65000,{"$f":"(((AAMC_Raw_Data_for_FY22[[#This Row],[75th]]-AAMC_Raw_Data_for_FY22[[#This Row],[Median]])/25)*5) + AAMC_Raw_Data_for_FY22[[#This Row],[Median]]","v":67000},{"$f":"(((AAMC_Raw_Data_for_FY22[[#This Row],[75th]]-AAMC_Raw_Data_for_FY22[[#This Row],[Median]])/25)*10) + AAMC_Raw_Data_for_FY22[[#This Row],[Median]]","v":69000},{"$f":"(((AAMC_Raw_Data_for_FY22[[#This Row],[75th]]-AAMC_Raw_Data_for_FY22[[#This Row],[Median]])/25)*15) + AAMC_Raw_Data_for_FY22[[#This Row],[Median]]","v":71000},{"$f":"(((AAMC_Raw_Data_for_FY22[[#This Row],[75th]]-AAMC_Raw_Data_for_FY22[[#This Row],[Median]])/25)*20) + AAMC_Raw_Data_for_FY22[[#This Row],[Median]]","v":73000},75000,{"$f":"(((AAMC_Raw_Data_for_FY22[[#This Row],[75th]]-AAMC_Raw_Data_for_FY22[[#This Row],[Median]])/25)*30) + AAMC_Raw_Data_for_FY22[[#This Row],[Median]]","v":77000},{"$f":"(((AAMC_Raw_Data_for_FY22[[#This Row],[75th]]-AAMC_Raw_Data_for_FY22[[#This Row],[Median]])/25)*35) + AAMC_Raw_Data_for_FY22[[#This Row],[Median]]","v":79000},{"$f":"(((AAMC_Raw_Data_for_FY22[[#This Row],[75th]]-AAMC_Raw_Data_for_FY22[[#This Row],[Median]])/25)*40) + AAMC_Raw_Data_for_FY22[[#This Row],[Median]]","v":81000}]
[{"$f":"AAMC_Raw_Data_for_FY22[[#This Row],[Source]]&AAMC_Raw_Data_for_FY22[[#This Row],[Type]]&AAMC_Raw_Data_for_FY22[[#This Row],[School Subset]]&AAMC_Raw_Data_for_FY22[[#This Row],[Rank]]&AAMC_Raw_Data_for_FY22[[#This Row],[Degree]]&AAMC_Raw_Data_for_FY22[[#This Row],[Department / Specialty]]&\"L\"","v":"AAMCAcademicPublicAssistantPhDBiochemistryL"},"Biochemistry",4,"AAMC","Academic","Public","Assistant","PhD","2021-2022",78935,{"$f":"(((AAMC_Raw_Data_for_FY22[[#This Row],[Median]]-AAMC_Raw_Data_for_FY22[[#This Row],[25th]])/25)*5) + AAMC_Raw_Data_for_FY22[[#This Row],[25th]]","v":83324.600000000006},{"$f":"(((AAMC_Raw_Data_for_FY22[[#This Row],[Median]]-AAMC_Raw_Data_for_FY22[[#This Row],[25th]])/25)*10) + AAMC_Raw_Data_for_FY22[[#This Row],[25th]]","v":87714.2},{"$f":"(((AAMC_Raw_Data_for_FY22[[#This Row],[Median]]-AAMC_Raw_Data_for_FY22[[#This Row],[25th]])/25)*15) + AAMC_Raw_Data_for_FY22[[#This Row],[25th]]","v":92103.8},{"$f":"(((AAMC_Raw_Data_for_FY22[[#This Row],[Median]]-AAMC_Raw_Data_for_FY22[[#This Row],[25th]])/25)*20) + AAMC_Raw_Data_for_FY22[[#This Row],[25th]]","v":96493.4},100883,{"$f":"(((AAMC_Raw_Data_for_FY22[[#This Row],[75th]]-AAMC_Raw_Data_for_FY22[[#This Row],[Median]])/25)*5) + AAMC_Raw_Data_for_FY22[[#This Row],[Median]]","v":104199.6},{"$f":"(((AAMC_Raw_Data_for_FY22[[#This Row],[75th]]-AAMC_Raw_Data_for_FY22[[#This Row],[Median]])/25)*10) + AAMC_Raw_Data_for_FY22[[#This Row],[Median]]","v":107516.2},{"$f":"(((AAMC_Raw_Data_for_FY22[[#This Row],[75th]]-AAMC_Raw_Data_for_FY22[[#This Row],[Median]])/25)*15) + AAMC_Raw_Data_for_FY22[[#This Row],[Median]]","v":110832.8},{"$f":"(((AAMC_Raw_Data_for_FY22[[#This Row],[75th]]-AAMC_Raw_Data_for_FY22[[#This Row],[Median]])/25)*20) + AAMC_Raw_Data_for_FY22[[#This Row],[Median]]","v":114149.4},117466,{"$f":"(((AAMC_Raw_Data_for_FY22[[#This Row],[75th]]-AAMC_Raw_Data_for_FY22[[#This Row],[Median]])/25)*30) + AAMC_Raw_Data_for_FY22[[#This Row],[Median]]","v":120782.6},{"$f":"(((AAMC_Raw_Data_for_FY22[[#This Row],[75th]]-AAMC_Raw_Data_for_FY22[[#This Row],[Median]])/25)*35) + AAMC_Raw_Data_for_FY22[[#This Row],[Median]]","v":124099.2},{"$f":"(((AAMC_Raw_Data_for_FY22[[#This Row],[75th]]-AAMC_Raw_Data_for_FY22[[#This Row],[Median]])/25)*40) + AAMC_Raw_Data_for_FY22[[#This Row],[Median]]","v":127415.8}]
[{"$f":"AAMC_Raw_Data_for_FY22[[#This Row],[Source]]&AAMC_Raw_Data_for_FY22[[#This Row],[Type]]&AAMC_Raw_Data_for_FY22[[#This Row],[School Subset]]&AAMC_Raw_Data_for_FY22[[#This Row],[Rank]]&AAMC_Raw_Data_for_FY22[[#This Row],[Degree]]&AAMC_Raw_Data_for_FY22[[#This Row],[Department / Specialty]]&\"L\"","v":"AAMCAcademicPublicAssociatePhDBiochemistryL"},"Biochemistry",3,"AAMC","Academic","Public","Associate","PhD","2021-2022",112857,{"$f":"(((AAMC_Raw_Data_for_FY22[[#This Row],[Median]]-AAMC_Raw_Data_for_FY22[[#This Row],[25th]])/25)*5) + AAMC_Raw_Data_for_FY22[[#This Row],[25th]]","v":116644.4},{"$f":"(((AAMC_Raw_Data_for_FY22[[#This Row],[Median]]-AAMC_Raw_Data_for_FY22[[#This Row],[25th]])/25)*10) + AAMC_Raw_Data_for_FY22[[#This Row],[25th]]","v":120431.8},{"$f":"(((AAMC_Raw_Data_for_FY22[[#This Row],[Median]]-AAMC_Raw_Data_for_FY22[[#This Row],[25th]])/25)*15) + AAMC_Raw_Data_for_FY22[[#This Row],[25th]]","v":124219.2},{"$f":"(((AAMC_Raw_Data_for_FY22[[#This Row],[Median]]-AAMC_Raw_Data_for_FY22[[#This Row],[25th]])/25)*20) + AAMC_Raw_Data_for_FY22[[#This Row],[25th]]","v":128006.6},131794,{"$f":"(((AAMC_Raw_Data_for_FY22[[#This Row],[75th]]-AAMC_Raw_Data_for_FY22[[#This Row],[Median]])/25)*5) + AAMC_Raw_Data_for_FY22[[#This Row],[Median]]","v":134944.6},{"$f":"(((AAMC_Raw_Data_for_FY22[[#This Row],[75th]]-AAMC_Raw_Data_for_FY22[[#This Row],[Median]])/25)*10) + AAMC_Raw_Data_for_FY22[[#This Row],[Median]]","v":138095.20000000001},{"$f":"(((AAMC_Raw_Data_for_FY22[[#This Row],[75th]]-AAMC_Raw_Data_for_FY22[[#This Row],[Median]])/25)*15) + AAMC_Raw_Data_for_FY22[[#This Row],[Median]]","v":141245.79999999999},{"$f":"(((AAMC_Raw_Data_for_FY22[[#This Row],[75th]]-AAMC_Raw_Data_for_FY22[[#This Row],[Median]])/25)*20) + AAMC_Raw_Data_for_FY22[[#This Row],[Median]]","v":144396.4},147547,{"$f":"(((AAMC_Raw_Data_for_FY22[[#This Row],[75th]]-AAMC_Raw_Data_for_FY22[[#This Row],[Median]])/25)*30) + AAMC_Raw_Data_for_FY22[[#This Row],[Median]]","v":150697.60000000001},{"$f":"(((AAMC_Raw_Data_for_FY22[[#This Row],[75th]]-AAMC_Raw_Data_for_FY22[[#This Row],[Median]])/25)*35) + AAMC_Raw_Data_for_FY22[[#This Row],[Median]]","v":153848.20000000001},{"$f":"(((AAMC_Raw_Data_for_FY22[[#This Row],[75th]]-AAMC_Raw_Data_for_FY22[[#This Row],[Median]])/25)*40) + AAMC_Raw_Data_for_FY22[[#This Row],[Median]]","v":156998.79999999999}]
[{"$f":"AAMC_Raw_Data_for_FY22[[#This Row],[Source]]&AAMC_Raw_Data_for_FY22[[#This Row],[Type]]&AAMC_Raw_Data_for_FY22[[#This Row],[School Subset]]&AAMC_Raw_Data_for_FY22[[#This Row],[Rank]]&AAMC_Raw_Data_for_FY22[[#This Row],[Degree]]&AAMC_Raw_Data_for_FY22[[#This Row],[Department / Specialty]]&\"L\"","v":"AAMCAcademicPublicProfessorPhDBiochemistryL"},"Biochemistry",2,"AAMC","Academic","Public","Professor","PhD","2021-2022",158378,{"$f":"(((AAMC_Raw_Data_for_FY22[[#This Row],[Median]]-AAMC_Raw_Data_for_FY22[[#This Row],[25th]])/25)*5) + AAMC_Raw_Data_for_FY22[[#This Row],[25th]]","v":163687.4},{"$f":"(((AAMC_Raw_Data_for_FY22[[#This Row],[Median]]-AAMC_Raw_Data_for_FY22[[#This Row],[25th]])/25)*10) + AAMC_Raw_Data_for_FY22[[#This Row],[25th]]","v":168996.8},{"$f":"(((AAMC_Raw_Data_for_FY22[[#This Row],[Median]]-AAMC_Raw_Data_for_FY22[[#This Row],[25th]])/25)*15) + AAMC_Raw_Data_for_FY22[[#This Row],[25th]]","v":174306.2},{"$f":"(((AAMC_Raw_Data_for_FY22[[#This Row],[Median]]-AAMC_Raw_Data_for_FY22[[#This Row],[25th]])/25)*20) + AAMC_Raw_Data_for_FY22[[#This Row],[25th]]","v":179615.6},184925,{"$f":"(((AAMC_Raw_Data_for_FY22[[#This Row],[75th]]-AAMC_Raw_Data_for_FY22[[#This Row],[Median]])/25)*5) + AAMC_Raw_Data_for_FY22[[#This Row],[Median]]","v":193072},{"$f":"(((AAMC_Raw_Data_for_FY22[[#This Row],[75th]]-AAMC_Raw_Data_for_FY22[[#This Row],[Median]])/25)*10) + AAMC_Raw_Data_for_FY22[[#This Row],[Median]]","v":201219},{"$f":"(((AAMC_Raw_Data_for_FY22[[#This Row],[75th]]-AAMC_Raw_Data_for_FY22[[#This Row],[Median]])/25)*15) + AAMC_Raw_Data_for_FY22[[#This Row],[Median]]","v":209366},{"$f":"(((AAMC_Raw_Data_for_FY22[[#This Row],[75th]]-AAMC_Raw_Data_for_FY22[[#This Row],[Median]])/25)*20) + AAMC_Raw_Data_for_FY22[[#This Row],[Median]]","v":217513},225660,{"$f":"(((AAMC_Raw_Data_for_FY22[[#This Row],[75th]]-AAMC_Raw_Data_for_FY22[[#This Row],[Median]])/25)*30) + AAMC_Raw_Data_for_FY22[[#This Row],[Median]]","v":233807},{"$f":"(((AAMC_Raw_Data_for_FY22[[#This Row],[75th]]-AAMC_Raw_Data_for_FY22[[#This Row],[Median]])/25)*35) + AAMC_Raw_Data_for_FY22[[#This Row],[Median]]","v":241954},{"$f":"(((AAMC_Raw_Data_for_FY22[[#This Row],[75th]]-AAMC_Raw_Data_for_FY22[[#This Row],[Median]])/25)*40) + AAMC_Raw_Data_for_FY22[[#This Row],[Median]]","v":250101}]
[{"$f":"AAMC_Raw_Data_for_FY22[[#This Row],[Source]]&AAMC_Raw_Data_for_FY22[[#This Row],[Type]]&AAMC_Raw_Data_for_FY22[[#This Row],[School Subset]]&AAMC_Raw_Data_for_FY22[[#This Row],[Rank]]&AAMC_Raw_Data_for_FY22[[#This Row],[Degree]]&AAMC_Raw_Data_for_FY22[[#This Row],[Department / Specialty]]&\"L\"","v":"AAMCAcademicPublicChiefPhDBiochemistryL"},"Biochemistry",6,"AAMC","Academic","Public","Chief","PhD","2021-2022",null,{"$f":"(((AAMC_Raw_Data_for_FY22[[#This Row],[Median]]-AAMC_Raw_Data_for_FY22[[#This Row],[25th]])/25)*5) + AAMC_Raw_Data_for_FY22[[#This Row],[25th]]","v":0},{"$f":"(((AAMC_Raw_Data_for_FY22[[#This Row],[Median]]-AAMC_Raw_Data_for_FY22[[#This Row],[25th]])/25)*10) + AAMC_Raw_Data_for_FY22[[#This Row],[25th]]","v":0},{"$f":"(((AAMC_Raw_Data_for_FY22[[#This Row],[Median]]-AAMC_Raw_Data_for_FY22[[#This Row],[25th]])/25)*15) + AAMC_Raw_Data_for_FY22[[#This Row],[25th]]","v":0},{"$f":"(((AAMC_Raw_Data_for_FY22[[#This Row],[Median]]-AAMC_Raw_Data_for_FY22[[#This Row],[25th]])/25)*20) + AAMC_Raw_Data_for_FY22[[#This Row],[25th]]","v":0},null,{"$f":"(((AAMC_Raw_Data_for_FY22[[#This Row],[75th]]-AAMC_Raw_Data_for_FY22[[#This Row],[Median]])/25)*5) + AAMC_Raw_Data_for_FY22[[#This Row],[Median]]","v":0},{"$f":"(((AAMC_Raw_Data_for_FY22[[#This Row],[75th]]-AAMC_Raw_Data_for_FY22[[#This Row],[Median]])/25)*10) + AAMC_Raw_Data_for_FY22[[#This Row],[Median]]","v":0},{"$f":"(((AAMC_Raw_Data_for_FY22[[#This Row],[75th]]-AAMC_Raw_Data_for_FY22[[#This Row],[Median]])/25)*15) + AAMC_Raw_Data_for_FY22[[#This Row],[Median]]","v":0},{"$f":"(((AAMC_Raw_Data_for_FY22[[#This Row],[75th]]-AAMC_Raw_Data_for_FY22[[#This Row],[Median]])/25)*20) + AAMC_Raw_Data_for_FY22[[#This Row],[Median]]","v":0},null,{"$f":"(((AAMC_Raw_Data_for_FY22[[#This Row],[75th]]-AAMC_Raw_Data_for_FY22[[#This Row],[Median]])/25)*30) + AAMC_Raw_Data_for_FY22[[#This Row],[Median]]","v":0},{"$f":"(((AAMC_Raw_Data_for_FY22[[#This Row],[75th]]-AAMC_Raw_Data_for_FY22[[#This Row],[Median]])/25)*35) + AAMC_Raw_Data_for_FY22[[#This Row],[Median]]","v":0},{"$f":"(((AAMC_Raw_Data_for_FY22[[#This Row],[75th]]-AAMC_Raw_Data_for_FY22[[#This Row],[Median]])/25)*40) + AAMC_Raw_Data_for_FY22[[#This Row],[Median]]","v":0}]
[{"$f":"AAMC_Raw_Data_for_FY22[[#This Row],[Source]]&AAMC_Raw_Data_for_FY22[[#This Row],[Type]]&AAMC_Raw_Data_for_FY22[[#This Row],[School Subset]]&AAMC_Raw_Data_for_FY22[[#This Row],[Rank]]&AAMC_Raw_Data_for_FY22[[#This Row],[Degree]]&AAMC_Raw_Data_for_FY22[[#This Row],[Department / Specialty]]&\"L\"","v":"AAMCAcademicPublicChairPhDBiochemistryL"},"Biochemistry",1,"AAMC","Academic","Public","Chair","PhD","2021-2022",256027,{"$f":"(((AAMC_Raw_Data_for_FY22[[#This Row],[Median]]-AAMC_Raw_Data_for_FY22[[#This Row],[25th]])/25)*5) + AAMC_Raw_Data_for_FY22[[#This Row],[25th]]","v":263406.8},{"$f":"(((AAMC_Raw_Data_for_FY22[[#This Row],[Median]]-AAMC_Raw_Data_for_FY22[[#This Row],[25th]])/25)*10) + AAMC_Raw_Data_for_FY22[[#This Row],[25th]]","v":270786.59999999998},{"$f":"(((AAMC_Raw_Data_for_FY22[[#This Row],[Median]]-AAMC_Raw_Data_for_FY22[[#This Row],[25th]])/25)*15) + AAMC_Raw_Data_for_FY22[[#This Row],[25th]]","v":278166.40000000002},{"$f":"(((AAMC_Raw_Data_for_FY22[[#This Row],[Median]]-AAMC_Raw_Data_for_FY22[[#This Row],[25th]])/25)*20) + AAMC_Raw_Data_for_FY22[[#This Row],[25th]]","v":285546.2},292926,{"$f":"(((AAMC_Raw_Data_for_FY22[[#This Row],[75th]]-AAMC_Raw_Data_for_FY22[[#This Row],[Median]])/25)*5) + AAMC_Raw_Data_for_FY22[[#This Row],[Median]]","v":307931.2},{"$f":"(((AAMC_Raw_Data_for_FY22[[#This Row],[75th]]-AAMC_Raw_Data_for_FY22[[#This Row],[Median]])/25)*10) + AAMC_Raw_Data_for_FY22[[#This Row],[Median]]","v":322936.40000000002},{"$f":"(((AAMC_Raw_Data_for_FY22[[#This Row],[75th]]-AAMC_Raw_Data_for_FY22[[#This Row],[Median]])/25)*15) + AAMC_Raw_Data_for_FY22[[#This Row],[Median]]","v":337941.6},{"$f":"(((AAMC_Raw_Data_for_FY22[[#This Row],[75th]]-AAMC_Raw_Data_for_FY22[[#This Row],[Median]])/25)*20) + AAMC_Raw_Data_for_FY22[[#This Row],[Median]]","v":352946.8},367952,{"$f":"(((AAMC_Raw_Data_for_FY22[[#This Row],[75th]]-AAMC_Raw_Data_for_FY22[[#This Row],[Median]])/25)*30) + AAMC_Raw_Data_for_FY22[[#This Row],[Median]]","v":382957.2},{"$f":"(((AAMC_Raw_Data_for_FY22[[#This Row],[75th]]-AAMC_Raw_Data_for_FY22[[#This Row],[Median]])/25)*35) + AAMC_Raw_Data_for_FY22[[#This Row],[Median]]","v":397962.4},{"$f":"(((AAMC_Raw_Data_for_FY22[[#This Row],[75th]]-AAMC_Raw_Data_for_FY22[[#This Row],[Median]])/25)*40) + AAMC_Raw_Data_for_FY22[[#This Row],[Median]]","v":412967.6}]
[{"$f":"AAMC_Raw_Data_for_FY22[[#This Row],[Source]]&AAMC_Raw_Data_for_FY22[[#This Row],[Type]]&AAMC_Raw_Data_for_FY22[[#This Row],[School Subset]]&AAMC_Raw_Data_for_FY22[[#This Row],[Rank]]&AAMC_Raw_Data_for_FY22[[#This Row],[Degree]]&AAMC_Raw_Data_for_FY22[[#This Row],[Department / Specialty]]&\"L\"","v":"AAMCAcademicPublicAssistantPhDBioethics/Medical HumanitiesL"},"Bioethics/Medical Humanities",4,"AAMC","Academic","Public","Assistant","PhD","2021-2022",88817,{"$f":"(((AAMC_Raw_Data_for_FY22[[#This Row],[Median]]-AAMC_Raw_Data_for_FY22[[#This Row],[25th]])/25)*5) + AAMC_Raw_Data_for_FY22[[#This Row],[25th]]","v":90473.600000000006},{"$f":"(((AAMC_Raw_Data_for_FY22[[#This Row],[Median]]-AAMC_Raw_Data_for_FY22[[#This Row],[25th]])/25)*10) + AAMC_Raw_Data_for_FY22[[#This Row],[25th]]","v":92130.2},{"$f":"(((AAMC_Raw_Data_for_FY22[[#This Row],[Median]]-AAMC_Raw_Data_for_FY22[[#This Row],[25th]])/25)*15) + AAMC_Raw_Data_for_FY22[[#This Row],[25th]]","v":93786.8},{"$f":"(((AAMC_Raw_Data_for_FY22[[#This Row],[Median]]-AAMC_Raw_Data_for_FY22[[#This Row],[25th]])/25)*20) + AAMC_Raw_Data_for_FY22[[#This Row],[25th]]","v":95443.4},97100,{"$f":"(((AAMC_Raw_Data_for_FY22[[#This Row],[75th]]-AAMC_Raw_Data_for_FY22[[#This Row],[Median]])/25)*5) + AAMC_Raw_Data_for_FY22[[#This Row],[Median]]","v":98727.6},{"$f":"(((AAMC_Raw_Data_for_FY22[[#This Row],[75th]]-AAMC_Raw_Data_for_FY22[[#This Row],[Median]])/25)*10) + AAMC_Raw_Data_for_FY22[[#This Row],[Median]]","v":100355.2},{"$f":"(((AAMC_Raw_Data_for_FY22[[#This Row],[75th]]-AAMC_Raw_Data_for_FY22[[#This Row],[Median]])/25)*15) + AAMC_Raw_Data_for_FY22[[#This Row],[Median]]","v":101982.8},{"$f":"(((AAMC_Raw_Data_for_FY22[[#This Row],[75th]]-AAMC_Raw_Data_for_FY22[[#This Row],[Median]])/25)*20) + AAMC_Raw_Data_for_FY22[[#This Row],[Median]]","v":103610.4},105238,{"$f":"(((AAMC_Raw_Data_for_FY22[[#This Row],[75th]]-AAMC_Raw_Data_for_FY22[[#This Row],[Median]])/25)*30) + AAMC_Raw_Data_for_FY22[[#This Row],[Median]]","v":106865.60000000001},{"$f":"(((AAMC_Raw_Data_for_FY22[[#This Row],[75th]]-AAMC_Raw_Data_for_FY22[[#This Row],[Median]])/25)*35) + AAMC_Raw_Data_for_FY22[[#This Row],[Median]]","v":108493.2},{"$f":"(((AAMC_Raw_Data_for_FY22[[#This Row],[75th]]-AAMC_Raw_Data_for_FY22[[#This Row],[Median]])/25)*40) + AAMC_Raw_Data_for_FY22[[#This Row],[Median]]","v":110120.8}]
[{"$f":"AAMC_Raw_Data_for_FY22[[#This Row],[Source]]&AAMC_Raw_Data_for_FY22[[#This Row],[Type]]&AAMC_Raw_Data_for_FY22[[#This Row],[School Subset]]&AAMC_Raw_Data_for_FY22[[#This Row],[Rank]]&AAMC_Raw_Data_for_FY22[[#This Row],[Degree]]&AAMC_Raw_Data_for_FY22[[#This Row],[Department / Specialty]]&\"L\"","v":"AAMCAcademicPublicAssociatePhDBioethics/Medical HumanitiesL"},"Bioethics/Medical Humanities",3,"AAMC","Academic","Public","Associate","PhD","2021-2022",115459,{"$f":"(((AAMC_Raw_Data_for_FY22[[#This Row],[Median]]-AAMC_Raw_Data_for_FY22[[#This Row],[25th]])/25)*5) + AAMC_Raw_Data_for_FY22[[#This Row],[25th]]","v":116867.2},{"$f":"(((AAMC_Raw_Data_for_FY22[[#This Row],[Median]]-AAMC_Raw_Data_for_FY22[[#This Row],[25th]])/25)*10) + AAMC_Raw_Data_for_FY22[[#This Row],[25th]]","v":118275.4},{"$f":"(((AAMC_Raw_Data_for_FY22[[#This Row],[Median]]-AAMC_Raw_Data_for_FY22[[#This Row],[25th]])/25)*15) + AAMC_Raw_Data_for_FY22[[#This Row],[25th]]","v":119683.6},{"$f":"(((AAMC_Raw_Data_for_FY22[[#This Row],[Median]]-AAMC_Raw_Data_for_FY22[[#This Row],[25th]])/25)*20) + AAMC_Raw_Data_for_FY22[[#This Row],[25th]]","v":121091.8},122500,{"$f":"(((AAMC_Raw_Data_for_FY22[[#This Row],[75th]]-AAMC_Raw_Data_for_FY22[[#This Row],[Median]])/25)*5) + AAMC_Raw_Data_for_FY22[[#This Row],[Median]]","v":125814.6},{"$f":"(((AAMC_Raw_Data_for_FY22[[#This Row],[75th]]-AAMC_Raw_Data_for_FY22[[#This Row],[Median]])/25)*10) + AAMC_Raw_Data_for_FY22[[#This Row],[Median]]","v":129129.2},{"$f":"(((AAMC_Raw_Data_for_FY22[[#This Row],[75th]]-AAMC_Raw_Data_for_FY22[[#This Row],[Median]])/25)*15) + AAMC_Raw_Data_for_FY22[[#This Row],[Median]]","v":132443.79999999999},{"$f":"(((AAMC_Raw_Data_for_FY22[[#This Row],[75th]]-AAMC_Raw_Data_for_FY22[[#This Row],[Median]])/25)*20) + AAMC_Raw_Data_for_FY22[[#This Row],[Median]]","v":135758.39999999999},139073,{"$f":"(((AAMC_Raw_Data_for_FY22[[#This Row],[75th]]-AAMC_Raw_Data_for_FY22[[#This Row],[Median]])/25)*30) + AAMC_Raw_Data_for_FY22[[#This Row],[Median]]","v":142387.6},{"$f":"(((AAMC_Raw_Data_for_FY22[[#This Row],[75th]]-AAMC_Raw_Data_for_FY22[[#This Row],[Median]])/25)*35) + AAMC_Raw_Data_for_FY22[[#This Row],[Median]]","v":145702.20000000001},{"$f":"(((AAMC_Raw_Data_for_FY22[[#This Row],[75th]]-AAMC_Raw_Data_for_FY22[[#This Row],[Median]])/25)*40) + AAMC_Raw_Data_for_FY22[[#This Row],[Median]]","v":149016.79999999999}]
[{"$f":"AAMC_Raw_Data_for_FY22[[#This Row],[Source]]&AAMC_Raw_Data_for_FY22[[#This Row],[Type]]&AAMC_Raw_Data_for_FY22[[#This Row],[School Subset]]&AAMC_Raw_Data_for_FY22[[#This Row],[Rank]]&AAMC_Raw_Data_for_FY22[[#This Row],[Degree]]&AAMC_Raw_Data_for_FY22[[#This Row],[Department / Specialty]]&\"L\"","v":"AAMCAcademicPublicProfessorPhDBioethics/Medical HumanitiesL"},"Bioethics/Medical Humanities",2,"AAMC","Academic","Public","Professor","PhD","2021-2022",149904,{"$f":"(((AAMC_Raw_Data_for_FY22[[#This Row],[Median]]-AAMC_Raw_Data_for_FY22[[#This Row],[25th]])/25)*5) + AAMC_Raw_Data_for_FY22[[#This Row],[25th]]","v":154501.79999999999},{"$f":"(((AAMC_Raw_Data_for_FY22[[#This Row],[Median]]-AAMC_Raw_Data_for_FY22[[#This Row],[25th]])/25)*10) + AAMC_Raw_Data_for_FY22[[#This Row],[25th]]","v":159099.6},{"$f":"(((AAMC_Raw_Data_for_FY22[[#This Row],[Median]]-AAMC_Raw_Data_for_FY22[[#This Row],[25th]])/25)*15) + AAMC_Raw_Data_for_FY22[[#This Row],[25th]]","v":163697.4},{"$f":"(((AAMC_Raw_Data_for_FY22[[#This Row],[Median]]-AAMC_Raw_Data_for_FY22[[#This Row],[25th]])/25)*20) + AAMC_Raw_Data_for_FY22[[#This Row],[25th]]","v":168295.2},172893,{"$f":"(((AAMC_Raw_Data_for_FY22[[#This Row],[75th]]-AAMC_Raw_Data_for_FY22[[#This Row],[Median]])/25)*5) + AAMC_Raw_Data_for_FY22[[#This Row],[Median]]","v":180174.4},{"$f":"(((AAMC_Raw_Data_for_FY22[[#This Row],[75th]]-AAMC_Raw_Data_for_FY22[[#This Row],[Median]])/25)*10) + AAMC_Raw_Data_for_FY22[[#This Row],[Median]]","v":187455.8},{"$f":"(((AAMC_Raw_Data_for_FY22[[#This Row],[75th]]-AAMC_Raw_Data_for_FY22[[#This Row],[Median]])/25)*15) + AAMC_Raw_Data_for_FY22[[#This Row],[Median]]","v":194737.2},{"$f":"(((AAMC_Raw_Data_for_FY22[[#This Row],[75th]]-AAMC_Raw_Data_for_FY22[[#This Row],[Median]])/25)*20) + AAMC_Raw_Data_for_FY22[[#This Row],[Median]]","v":202018.6},209300,{"$f":"(((AAMC_Raw_Data_for_FY22[[#This Row],[75th]]-AAMC_Raw_Data_for_FY22[[#This Row],[Median]])/25)*30) + AAMC_Raw_Data_for_FY22[[#This Row],[Median]]","v":216581.4},{"$f":"(((AAMC_Raw_Data_for_FY22[[#This Row],[75th]]-AAMC_Raw_Data_for_FY22[[#This Row],[Median]])/25)*35) + AAMC_Raw_Data_for_FY22[[#This Row],[Median]]","v":223862.8},{"$f":"(((AAMC_Raw_Data_for_FY22[[#This Row],[75th]]-AAMC_Raw_Data_for_FY22[[#This Row],[Median]])/25)*40) + AAMC_Raw_Data_for_FY22[[#This Row],[Median]]","v":231144.2}]
[{"$f":"AAMC_Raw_Data_for_FY22[[#This Row],[Source]]&AAMC_Raw_Data_for_FY22[[#This Row],[Type]]&AAMC_Raw_Data_for_FY22[[#This Row],[School Subset]]&AAMC_Raw_Data_for_FY22[[#This Row],[Rank]]&AAMC_Raw_Data_for_FY22[[#This Row],[Degree]]&AAMC_Raw_Data_for_FY22[[#This Row],[Department / Specialty]]&\"L\"","v":"AAMCAcademicPublicChairPhDBioethics/Medical HumanitiesL"},"Bioethics/Medical Humanities",1,"AAMC","Academic","Public","Chair","PhD","2021-2022",230662,{"$f":"(((AAMC_Raw_Data_for_FY22[[#This Row],[Median]]-AAMC_Raw_Data_for_FY22[[#This Row],[25th]])/25)*5) + AAMC_Raw_Data_for_FY22[[#This Row],[25th]]","v":236398.6},{"$f":"(((AAMC_Raw_Data_for_FY22[[#This Row],[Median]]-AAMC_Raw_Data_for_FY22[[#This Row],[25th]])/25)*10) + AAMC_Raw_Data_for_FY22[[#This Row],[25th]]","v":242135.2},{"$f":"(((AAMC_Raw_Data_for_FY22[[#This Row],[Median]]-AAMC_Raw_Data_for_FY22[[#This Row],[25th]])/25)*15) + AAMC_Raw_Data_for_FY22[[#This Row],[25th]]","v":247871.8},{"$f":"(((AAMC_Raw_Data_for_FY22[[#This Row],[Median]]-AAMC_Raw_Data_for_FY22[[#This Row],[25th]])/25)*20) + AAMC_Raw_Data_for_FY22[[#This Row],[25th]]","v":253608.4},259345,{"$f":"(((AAMC_Raw_Data_for_FY22[[#This Row],[75th]]-AAMC_Raw_Data_for_FY22[[#This Row],[Median]])/25)*5) + AAMC_Raw_Data_for_FY22[[#This Row],[Median]]","v":260967.6},{"$f":"(((AAMC_Raw_Data_for_FY22[[#This Row],[75th]]-AAMC_Raw_Data_for_FY22[[#This Row],[Median]])/25)*10) + AAMC_Raw_Data_for_FY22[[#This Row],[Median]]","v":262590.2},{"$f":"(((AAMC_Raw_Data_for_FY22[[#This Row],[75th]]-AAMC_Raw_Data_for_FY22[[#This Row],[Median]])/25)*15) + AAMC_Raw_Data_for_FY22[[#This Row],[Median]]","v":264212.8},{"$f":"(((AAMC_Raw_Data_for_FY22[[#This Row],[75th]]-AAMC_Raw_Data_for_FY22[[#This Row],[Median]])/25)*20) + AAMC_Raw_Data_for_FY22[[#This Row],[Median]]","v":265835.40000000002},267458,{"$f":"(((AAMC_Raw_Data_for_FY22[[#This Row],[75th]]-AAMC_Raw_Data_for_FY22[[#This Row],[Median]])/25)*30) + AAMC_Raw_Data_for_FY22[[#This Row],[Median]]","v":269080.59999999998},{"$f":"(((AAMC_Raw_Data_for_FY22[[#This Row],[75th]]-AAMC_Raw_Data_for_FY22[[#This Row],[Median]])/25)*35) + AAMC_Raw_Data_for_FY22[[#This Row],[Median]]","v":270703.2},{"$f":"(((AAMC_Raw_Data_for_FY22[[#This Row],[75th]]-AAMC_Raw_Data_for_FY22[[#This Row],[Median]])/25)*40) + AAMC_Raw_Data_for_FY22[[#This Row],[Median]]","v":272325.8}]
[{"$f":"AAMC_Raw_Data_for_FY22[[#This Row],[Source]]&AAMC_Raw_Data_for_FY22[[#This Row],[Type]]&AAMC_Raw_Data_for_FY22[[#This Row],[School Subset]]&AAMC_Raw_Data_for_FY22[[#This Row],[Rank]]&AAMC_Raw_Data_for_FY22[[#This Row],[Degree]]&AAMC_Raw_Data_for_FY22[[#This Row],[Department / Specialty]]&\"L\"","v":"AAMCAcademicPublicInstructorPhDBiomedical InformaticsL"},"Biomedical Informatics",5,"AAMC","Academic","Public","Instructor","PhD","2021-2022",null,{"$f":"(((AAMC_Raw_Data_for_FY22[[#This Row],[Median]]-AAMC_Raw_Data_for_FY22[[#This Row],[25th]])/25)*5) + AAMC_Raw_Data_for_FY22[[#This Row],[25th]]","v":0},{"$f":"(((AAMC_Raw_Data_for_FY22[[#This Row],[Median]]-AAMC_Raw_Data_for_FY22[[#This Row],[25th]])/25)*10) + AAMC_Raw_Data_for_FY22[[#This Row],[25th]]","v":0},{"$f":"(((AAMC_Raw_Data_for_FY22[[#This Row],[Median]]-AAMC_Raw_Data_for_FY22[[#This Row],[25th]])/25)*15) + AAMC_Raw_Data_for_FY22[[#This Row],[25th]]","v":0},{"$f":"(((AAMC_Raw_Data_for_FY22[[#This Row],[Median]]-AAMC_Raw_Data_for_FY22[[#This Row],[25th]])/25)*20) + AAMC_Raw_Data_for_FY22[[#This Row],[25th]]","v":0},null,{"$f":"(((AAMC_Raw_Data_for_FY22[[#This Row],[75th]]-AAMC_Raw_Data_for_FY22[[#This Row],[Median]])/25)*5) + AAMC_Raw_Data_for_FY22[[#This Row],[Median]]","v":0},{"$f":"(((AAMC_Raw_Data_for_FY22[[#This Row],[75th]]-AAMC_Raw_Data_for_FY22[[#This Row],[Median]])/25)*10) + AAMC_Raw_Data_for_FY22[[#This Row],[Median]]","v":0},{"$f":"(((AAMC_Raw_Data_for_FY22[[#This Row],[75th]]-AAMC_Raw_Data_for_FY22[[#This Row],[Median]])/25)*15) + AAMC_Raw_Data_for_FY22[[#This Row],[Median]]","v":0},{"$f":"(((AAMC_Raw_Data_for_FY22[[#This Row],[75th]]-AAMC_Raw_Data_for_FY22[[#This Row],[Median]])/25)*20) + AAMC_Raw_Data_for_FY22[[#This Row],[Median]]","v":0},null,{"$f":"(((AAMC_Raw_Data_for_FY22[[#This Row],[75th]]-AAMC_Raw_Data_for_FY22[[#This Row],[Median]])/25)*30) + AAMC_Raw_Data_for_FY22[[#This Row],[Median]]","v":0},{"$f":"(((AAMC_Raw_Data_for_FY22[[#This Row],[75th]]-AAMC_Raw_Data_for_FY22[[#This Row],[Median]])/25)*35) + AAMC_Raw_Data_for_FY22[[#This Row],[Median]]","v":0},{"$f":"(((AAMC_Raw_Data_for_FY22[[#This Row],[75th]]-AAMC_Raw_Data_for_FY22[[#This Row],[Median]])/25)*40) + AAMC_Raw_Data_for_FY22[[#This Row],[Median]]","v":0}]
[{"$f":"AAMC_Raw_Data_for_FY22[[#This Row],[Source]]&AAMC_Raw_Data_for_FY22[[#This Row],[Type]]&AAMC_Raw_Data_for_FY22[[#This Row],[School Subset]]&AAMC_Raw_Data_for_FY22[[#This Row],[Rank]]&AAMC_Raw_Data_for_FY22[[#This Row],[Degree]]&AAMC_Raw_Data_for_FY22[[#This Row],[Department / Specialty]]&\"L\"","v":"AAMCAcademicPublicAssistantPhDBiomedical InformaticsL"},"Biomedical Informatics",4,"AAMC","Academic","Public","Assistant","PhD","2021-2022",103000,{"$f":"(((AAMC_Raw_Data_for_FY22[[#This Row],[Median]]-AAMC_Raw_Data_for_FY22[[#This Row],[25th]])/25)*5) + AAMC_Raw_Data_for_FY22[[#This Row],[25th]]","v":107722.2},{"$f":"(((AAMC_Raw_Data_for_FY22[[#This Row],[Median]]-AAMC_Raw_Data_for_FY22[[#This Row],[25th]])/25)*10) + AAMC_Raw_Data_for_FY22[[#This Row],[25th]]","v":112444.4},{"$f":"(((AAMC_Raw_Data_for_FY22[[#This Row],[Median]]-AAMC_Raw_Data_for_FY22[[#This Row],[25th]])/25)*15) + AAMC_Raw_Data_for_FY22[[#This Row],[25th]]","v":117166.6},{"$f":"(((AAMC_Raw_Data_for_FY22[[#This Row],[Median]]-AAMC_Raw_Data_for_FY22[[#This Row],[25th]])/25)*20) + AAMC_Raw_Data_for_FY22[[#This Row],[25th]]","v":121888.8},126611,{"$f":"(((AAMC_Raw_Data_for_FY22[[#This Row],[75th]]-AAMC_Raw_Data_for_FY22[[#This Row],[Median]])/25)*5) + AAMC_Raw_Data_for_FY22[[#This Row],[Median]]","v":128809.4},{"$f":"(((AAMC_Raw_Data_for_FY22[[#This Row],[75th]]-AAMC_Raw_Data_for_FY22[[#This Row],[Median]])/25)*10) + AAMC_Raw_Data_for_FY22[[#This Row],[Median]]","v":131007.8},{"$f":"(((AAMC_Raw_Data_for_FY22[[#This Row],[75th]]-AAMC_Raw_Data_for_FY22[[#This Row],[Median]])/25)*15) + AAMC_Raw_Data_for_FY22[[#This Row],[Median]]","v":133206.20000000001},{"$f":"(((AAMC_Raw_Data_for_FY22[[#This Row],[75th]]-AAMC_Raw_Data_for_FY22[[#This Row],[Median]])/25)*20) + AAMC_Raw_Data_for_FY22[[#This Row],[Median]]","v":135404.6},137603,{"$f":"(((AAMC_Raw_Data_for_FY22[[#This Row],[75th]]-AAMC_Raw_Data_for_FY22[[#This Row],[Median]])/25)*30) + AAMC_Raw_Data_for_FY22[[#This Row],[Median]]","v":139801.4},{"$f":"(((AAMC_Raw_Data_for_FY22[[#This Row],[75th]]-AAMC_Raw_Data_for_FY22[[#This Row],[Median]])/25)*35) + AAMC_Raw_Data_for_FY22[[#This Row],[Median]]","v":141999.79999999999},{"$f":"(((AAMC_Raw_Data_for_FY22[[#This Row],[75th]]-AAMC_Raw_Data_for_FY22[[#This Row],[Median]])/25)*40) + AAMC_Raw_Data_for_FY22[[#This Row],[Median]]","v":144198.20000000001}]
[{"$f":"AAMC_Raw_Data_for_FY22[[#This Row],[Source]]&AAMC_Raw_Data_for_FY22[[#This Row],[Type]]&AAMC_Raw_Data_for_FY22[[#This Row],[School Subset]]&AAMC_Raw_Data_for_FY22[[#This Row],[Rank]]&AAMC_Raw_Data_for_FY22[[#This Row],[Degree]]&AAMC_Raw_Data_for_FY22[[#This Row],[Department / Specialty]]&\"L\"","v":"AAMCAcademicPublicAssociatePhDBiomedical InformaticsL"},"Biomedical Informatics",3,"AAMC","Academic","Public","Associate","PhD","2021-2022",147400,{"$f":"(((AAMC_Raw_Data_for_FY22[[#This Row],[Median]]-AAMC_Raw_Data_for_FY22[[#This Row],[25th]])/25)*5) + AAMC_Raw_Data_for_FY22[[#This Row],[25th]]","v":151292.79999999999},{"$f":"(((AAMC_Raw_Data_for_FY22[[#This Row],[Median]]-AAMC_Raw_Data_for_FY22[[#This Row],[25th]])/25)*10) + AAMC_Raw_Data_for_FY22[[#This Row],[25th]]","v":155185.60000000001},{"$f":"(((AAMC_Raw_Data_for_FY22[[#This Row],[Median]]-AAMC_Raw_Data_for_FY22[[#This Row],[25th]])/25)*15) + AAMC_Raw_Data_for_FY22[[#This Row],[25th]]","v":159078.39999999999},{"$f":"(((AAMC_Raw_Data_for_FY22[[#This Row],[Median]]-AAMC_Raw_Data_for_FY22[[#This Row],[25th]])/25)*20) + AAMC_Raw_Data_for_FY22[[#This Row],[25th]]","v":162971.20000000001},166864,{"$f":"(((AAMC_Raw_Data_for_FY22[[#This Row],[75th]]-AAMC_Raw_Data_for_FY22[[#This Row],[Median]])/25)*5) + AAMC_Raw_Data_for_FY22[[#This Row],[Median]]","v":170527.6},{"$f":"(((AAMC_Raw_Data_for_FY22[[#This Row],[75th]]-AAMC_Raw_Data_for_FY22[[#This Row],[Median]])/25)*10) + AAMC_Raw_Data_for_FY22[[#This Row],[Median]]","v":174191.2},{"$f":"(((AAMC_Raw_Data_for_FY22[[#This Row],[75th]]-AAMC_Raw_Data_for_FY22[[#This Row],[Median]])/25)*15) + AAMC_Raw_Data_for_FY22[[#This Row],[Median]]","v":177854.8},{"$f":"(((AAMC_Raw_Data_for_FY22[[#This Row],[75th]]-AAMC_Raw_Data_for_FY22[[#This Row],[Median]])/25)*20) + AAMC_Raw_Data_for_FY22[[#This Row],[Median]]","v":181518.4},185182,{"$f":"(((AAMC_Raw_Data_for_FY22[[#This Row],[75th]]-AAMC_Raw_Data_for_FY22[[#This Row],[Median]])/25)*30) + AAMC_Raw_Data_for_FY22[[#This Row],[Median]]","v":188845.6},{"$f":"(((AAMC_Raw_Data_for_FY22[[#This Row],[75th]]-AAMC_Raw_Data_for_FY22[[#This Row],[Median]])/25)*35) + AAMC_Raw_Data_for_FY22[[#This Row],[Median]]","v":192509.2},{"$f":"(((AAMC_Raw_Data_for_FY22[[#This Row],[75th]]-AAMC_Raw_Data_for_FY22[[#This Row],[Median]])/25)*40) + AAMC_Raw_Data_for_FY22[[#This Row],[Median]]","v":196172.79999999999}]
[{"$f":"AAMC_Raw_Data_for_FY22[[#This Row],[Source]]&AAMC_Raw_Data_for_FY22[[#This Row],[Type]]&AAMC_Raw_Data_for_FY22[[#This Row],[School Subset]]&AAMC_Raw_Data_for_FY22[[#This Row],[Rank]]&AAMC_Raw_Data_for_FY22[[#This Row],[Degree]]&AAMC_Raw_Data_for_FY22[[#This Row],[Department / Specialty]]&\"L\"","v":"AAMCAcademicPublicProfessorPhDBiomedical InformaticsL"},"Biomedical Informatics",2,"AAMC","Academic","Public","Professor","PhD","2021-2022",221119,{"$f":"(((AAMC_Raw_Data_for_FY22[[#This Row],[Median]]-AAMC_Raw_Data_for_FY22[[#This Row],[25th]])/25)*5) + AAMC_Raw_Data_for_FY22[[#This Row],[25th]]","v":225950.8},{"$f":"(((AAMC_Raw_Data_for_FY22[[#This Row],[Median]]-AAMC_Raw_Data_for_FY22[[#This Row],[25th]])/25)*10) + AAMC_Raw_Data_for_FY22[[#This Row],[25th]]","v":230782.6},{"$f":"(((AAMC_Raw_Data_for_FY22[[#This Row],[Median]]-AAMC_Raw_Data_for_FY22[[#This Row],[25th]])/25)*15) + AAMC_Raw_Data_for_FY22[[#This Row],[25th]]","v":235614.4},{"$f":"(((AAMC_Raw_Data_for_FY22[[#This Row],[Median]]-AAMC_Raw_Data_for_FY22[[#This Row],[25th]])/25)*20) + AAMC_Raw_Data_for_FY22[[#This Row],[25th]]","v":240446.2},245278,{"$f":"(((AAMC_Raw_Data_for_FY22[[#This Row],[75th]]-AAMC_Raw_Data_for_FY22[[#This Row],[Median]])/25)*5) + AAMC_Raw_Data_for_FY22[[#This Row],[Median]]","v":251680.2},{"$f":"(((AAMC_Raw_Data_for_FY22[[#This Row],[75th]]-AAMC_Raw_Data_for_FY22[[#This Row],[Median]])/25)*10) + AAMC_Raw_Data_for_FY22[[#This Row],[Median]]","v":258082.4},{"$f":"(((AAMC_Raw_Data_for_FY22[[#This Row],[75th]]-AAMC_Raw_Data_for_FY22[[#This Row],[Median]])/25)*15) + AAMC_Raw_Data_for_FY22[[#This Row],[Median]]","v":264484.59999999998},{"$f":"(((AAMC_Raw_Data_for_FY22[[#This Row],[75th]]-AAMC_Raw_Data_for_FY22[[#This Row],[Median]])/25)*20) + AAMC_Raw_Data_for_FY22[[#This Row],[Median]]","v":270886.8},277289,{"$f":"(((AAMC_Raw_Data_for_FY22[[#This Row],[75th]]-AAMC_Raw_Data_for_FY22[[#This Row],[Median]])/25)*30) + AAMC_Raw_Data_for_FY22[[#This Row],[Median]]","v":283691.2},{"$f":"(((AAMC_Raw_Data_for_FY22[[#This Row],[75th]]-AAMC_Raw_Data_for_FY22[[#This Row],[Median]])/25)*35) + AAMC_Raw_Data_for_FY22[[#This Row],[Median]]","v":290093.40000000002},{"$f":"(((AAMC_Raw_Data_for_FY22[[#This Row],[75th]]-AAMC_Raw_Data_for_FY22[[#This Row],[Median]])/25)*40) + AAMC_Raw_Data_for_FY22[[#This Row],[Median]]","v":296495.59999999998}]
[{"$f":"AAMC_Raw_Data_for_FY22[[#This Row],[Source]]&AAMC_Raw_Data_for_FY22[[#This Row],[Type]]&AAMC_Raw_Data_for_FY22[[#This Row],[School Subset]]&AAMC_Raw_Data_for_FY22[[#This Row],[Rank]]&AAMC_Raw_Data_for_FY22[[#This Row],[Degree]]&AAMC_Raw_Data_for_FY22[[#This Row],[Department / Specialty]]&\"L\"","v":"AAMCAcademicPublicChiefPhDBiomedical InformaticsL"},"Biomedical Informatics",6,"AAMC","Academic","Public","Chief","PhD","2021-2022",null,{"$f":"(((AAMC_Raw_Data_for_FY22[[#This Row],[Median]]-AAMC_Raw_Data_for_FY22[[#This Row],[25th]])/25)*5) + AAMC_Raw_Data_for_FY22[[#This Row],[25th]]","v":0},{"$f":"(((AAMC_Raw_Data_for_FY22[[#This Row],[Median]]-AAMC_Raw_Data_for_FY22[[#This Row],[25th]])/25)*10) + AAMC_Raw_Data_for_FY22[[#This Row],[25th]]","v":0},{"$f":"(((AAMC_Raw_Data_for_FY22[[#This Row],[Median]]-AAMC_Raw_Data_for_FY22[[#This Row],[25th]])/25)*15) + AAMC_Raw_Data_for_FY22[[#This Row],[25th]]","v":0},{"$f":"(((AAMC_Raw_Data_for_FY22[[#This Row],[Median]]-AAMC_Raw_Data_for_FY22[[#This Row],[25th]])/25)*20) + AAMC_Raw_Data_for_FY22[[#This Row],[25th]]","v":0},null,{"$f":"(((AAMC_Raw_Data_for_FY22[[#This Row],[75th]]-AAMC_Raw_Data_for_FY22[[#This Row],[Median]])/25)*5) + AAMC_Raw_Data_for_FY22[[#This Row],[Median]]","v":0},{"$f":"(((AAMC_Raw_Data_for_FY22[[#This Row],[75th]]-AAMC_Raw_Data_for_FY22[[#This Row],[Median]])/25)*10) + AAMC_Raw_Data_for_FY22[[#This Row],[Median]]","v":0},{"$f":"(((AAMC_Raw_Data_for_FY22[[#This Row],[75th]]-AAMC_Raw_Data_for_FY22[[#This Row],[Median]])/25)*15) + AAMC_Raw_Data_for_FY22[[#This Row],[Median]]","v":0},{"$f":"(((AAMC_Raw_Data_for_FY22[[#This Row],[75th]]-AAMC_Raw_Data_for_FY22[[#This Row],[Median]])/25)*20) + AAMC_Raw_Data_for_FY22[[#This Row],[Median]]","v":0},null,{"$f":"(((AAMC_Raw_Data_for_FY22[[#This Row],[75th]]-AAMC_Raw_Data_for_FY22[[#This Row],[Median]])/25)*30) + AAMC_Raw_Data_for_FY22[[#This Row],[Median]]","v":0},{"$f":"(((AAMC_Raw_Data_for_FY22[[#This Row],[75th]]-AAMC_Raw_Data_for_FY22[[#This Row],[Median]])/25)*35) + AAMC_Raw_Data_for_FY22[[#This Row],[Median]]","v":0},{"$f":"(((AAMC_Raw_Data_for_FY22[[#This Row],[75th]]-AAMC_Raw_Data_for_FY22[[#This Row],[Median]])/25)*40) + AAMC_Raw_Data_for_FY22[[#This Row],[Median]]","v":0}]
[{"$f":"AAMC_Raw_Data_for_FY22[[#This Row],[Source]]&AAMC_Raw_Data_for_FY22[[#This Row],[Type]]&AAMC_Raw_Data_for_FY22[[#This Row],[School Subset]]&AAMC_Raw_Data_for_FY22[[#This Row],[Rank]]&AAMC_Raw_Data_for_FY22[[#This Row],[Degree]]&AAMC_Raw_Data_for_FY22[[#This Row],[Department / Specialty]]&\"L\"","v":"AAMCAcademicPublicChairPhDBiomedical InformaticsL"},"Biomedical Informatics",1,"AAMC","Academic","Public","Chair","PhD","2021-2022",null,{"$f":"(((AAMC_Raw_Data_for_FY22[[#This Row],[Median]]-AAMC_Raw_Data_for_FY22[[#This Row],[25th]])/25)*5) + AAMC_Raw_Data_for_FY22[[#This Row],[25th]]","v":0},{"$f":"(((AAMC_Raw_Data_for_FY22[[#This Row],[Median]]-AAMC_Raw_Data_for_FY22[[#This Row],[25th]])/25)*10) + AAMC_Raw_Data_for_FY22[[#This Row],[25th]]","v":0},{"$f":"(((AAMC_Raw_Data_for_FY22[[#This Row],[Median]]-AAMC_Raw_Data_for_FY22[[#This Row],[25th]])/25)*15) + AAMC_Raw_Data_for_FY22[[#This Row],[25th]]","v":0},{"$f":"(((AAMC_Raw_Data_for_FY22[[#This Row],[Median]]-AAMC_Raw_Data_for_FY22[[#This Row],[25th]])/25)*20) + AAMC_Raw_Data_for_FY22[[#This Row],[25th]]","v":0},null,{"$f":"(((AAMC_Raw_Data_for_FY22[[#This Row],[75th]]-AAMC_Raw_Data_for_FY22[[#This Row],[Median]])/25)*5) + AAMC_Raw_Data_for_FY22[[#This Row],[Median]]","v":0},{"$f":"(((AAMC_Raw_Data_for_FY22[[#This Row],[75th]]-AAMC_Raw_Data_for_FY22[[#This Row],[Median]])/25)*10) + AAMC_Raw_Data_for_FY22[[#This Row],[Median]]","v":0},{"$f":"(((AAMC_Raw_Data_for_FY22[[#This Row],[75th]]-AAMC_Raw_Data_for_FY22[[#This Row],[Median]])/25)*15) + AAMC_Raw_Data_for_FY22[[#This Row],[Median]]","v":0},{"$f":"(((AAMC_Raw_Data_for_FY22[[#This Row],[75th]]-AAMC_Raw_Data_for_FY22[[#This Row],[Median]])/25)*20) + AAMC_Raw_Data_for_FY22[[#This Row],[Median]]","v":0},null,{"$f":"(((AAMC_Raw_Data_for_FY22[[#This Row],[75th]]-AAMC_Raw_Data_for_FY22[[#This Row],[Median]])/25)*30) + AAMC_Raw_Data_for_FY22[[#This Row],[Median]]","v":0},{"$f":"(((AAMC_Raw_Data_for_FY22[[#This Row],[75th]]-AAMC_Raw_Data_for_FY22[[#This Row],[Median]])/25)*35) + AAMC_Raw_Data_for_FY22[[#This Row],[Median]]","v":0},{"$f":"(((AAMC_Raw_Data_for_FY22[[#This Row],[75th]]-AAMC_Raw_Data_for_FY22[[#This Row],[Median]])/25)*40) + AAMC_Raw_Data_for_FY22[[#This Row],[Median]]","v":0}]
[{"$f":"AAMC_Raw_Data_for_FY22[[#This Row],[Source]]&AAMC_Raw_Data_for_FY22[[#This Row],[Type]]&AAMC_Raw_Data_for_FY22[[#This Row],[School Subset]]&AAMC_Raw_Data_for_FY22[[#This Row],[Rank]]&AAMC_Raw_Data_for_FY22[[#This Row],[Degree]]&AAMC_Raw_Data_for_FY22[[#This Row],[Department / Specialty]]&\"L\"","v":"AAMCAcademicPublicInstructorPhDBiostatisticsL"},"Biostatistics",5,"AAMC","Academic","Public","Instructor","PhD","2021-2022",null,{"$f":"(((AAMC_Raw_Data_for_FY22[[#This Row],[Median]]-AAMC_Raw_Data_for_FY22[[#This Row],[25th]])/25)*5) + AAMC_Raw_Data_for_FY22[[#This Row],[25th]]","v":0},{"$f":"(((AAMC_Raw_Data_for_FY22[[#This Row],[Median]]-AAMC_Raw_Data_for_FY22[[#This Row],[25th]])/25)*10) + AAMC_Raw_Data_for_FY22[[#This Row],[25th]]","v":0},{"$f":"(((AAMC_Raw_Data_for_FY22[[#This Row],[Median]]-AAMC_Raw_Data_for_FY22[[#This Row],[25th]])/25)*15) + AAMC_Raw_Data_for_FY22[[#This Row],[25th]]","v":0},{"$f":"(((AAMC_Raw_Data_for_FY22[[#This Row],[Median]]-AAMC_Raw_Data_for_FY22[[#This Row],[25th]])/25)*20) + AAMC_Raw_Data_for_FY22[[#This Row],[25th]]","v":0},null,{"$f":"(((AAMC_Raw_Data_for_FY22[[#This Row],[75th]]-AAMC_Raw_Data_for_FY22[[#This Row],[Median]])/25)*5) + AAMC_Raw_Data_for_FY22[[#This Row],[Median]]","v":0},{"$f":"(((AAMC_Raw_Data_for_FY22[[#This Row],[75th]]-AAMC_Raw_Data_for_FY22[[#This Row],[Median]])/25)*10) + AAMC_Raw_Data_for_FY22[[#This Row],[Median]]","v":0},{"$f":"(((AAMC_Raw_Data_for_FY22[[#This Row],[75th]]-AAMC_Raw_Data_for_FY22[[#This Row],[Median]])/25)*15) + AAMC_Raw_Data_for_FY22[[#This Row],[Median]]","v":0},{"$f":"(((AAMC_Raw_Data_for_FY22[[#This Row],[75th]]-AAMC_Raw_Data_for_FY22[[#This Row],[Median]])/25)*20) + AAMC_Raw_Data_for_FY22[[#This Row],[Median]]","v":0},null,{"$f":"(((AAMC_Raw_Data_for_FY22[[#This Row],[75th]]-AAMC_Raw_Data_for_FY22[[#This Row],[Median]])/25)*30) + AAMC_Raw_Data_for_FY22[[#This Row],[Median]]","v":0},{"$f":"(((AAMC_Raw_Data_for_FY22[[#This Row],[75th]]-AAMC_Raw_Data_for_FY22[[#This Row],[Median]])/25)*35) + AAMC_Raw_Data_for_FY22[[#This Row],[Median]]","v":0},{"$f":"(((AAMC_Raw_Data_for_FY22[[#This Row],[75th]]-AAMC_Raw_Data_for_FY22[[#This Row],[Median]])/25)*40) + AAMC_Raw_Data_for_FY22[[#This Row],[Median]]","v":0}]
[{"$f":"AAMC_Raw_Data_for_FY22[[#This Row],[Source]]&AAMC_Raw_Data_for_FY22[[#This Row],[Type]]&AAMC_Raw_Data_for_FY22[[#This Row],[School Subset]]&AAMC_Raw_Data_for_FY22[[#This Row],[Rank]]&AAMC_Raw_Data_for_FY22[[#This Row],[Degree]]&AAMC_Raw_Data_for_FY22[[#This Row],[Department / Specialty]]&\"L\"","v":"AAMCAcademicPublicAssistantPhDBiostatisticsL"},"Biostatistics",4,"AAMC","Academic","Public","Assistant","PhD","2021-2022",111995,{"$f":"(((AAMC_Raw_Data_for_FY22[[#This Row],[Median]]-AAMC_Raw_Data_for_FY22[[#This Row],[25th]])/25)*5) + AAMC_Raw_Data_for_FY22[[#This Row],[25th]]","v":113596},{"$f":"(((AAMC_Raw_Data_for_FY22[[#This Row],[Median]]-AAMC_Raw_Data_for_FY22[[#This Row],[25th]])/25)*10) + AAMC_Raw_Data_for_FY22[[#This Row],[25th]]","v":115197},{"$f":"(((AAMC_Raw_Data_for_FY22[[#This Row],[Median]]-AAMC_Raw_Data_for_FY22[[#This Row],[25th]])/25)*15) + AAMC_Raw_Data_for_FY22[[#This Row],[25th]]","v":116798},{"$f":"(((AAMC_Raw_Data_for_FY22[[#This Row],[Median]]-AAMC_Raw_Data_for_FY22[[#This Row],[25th]])/25)*20) + AAMC_Raw_Data_for_FY22[[#This Row],[25th]]","v":118399},120000,{"$f":"(((AAMC_Raw_Data_for_FY22[[#This Row],[75th]]-AAMC_Raw_Data_for_FY22[[#This Row],[Median]])/25)*5) + AAMC_Raw_Data_for_FY22[[#This Row],[Median]]","v":123516.4},{"$f":"(((AAMC_Raw_Data_for_FY22[[#This Row],[75th]]-AAMC_Raw_Data_for_FY22[[#This Row],[Median]])/25)*10) + AAMC_Raw_Data_for_FY22[[#This Row],[Median]]","v":127032.8},{"$f":"(((AAMC_Raw_Data_for_FY22[[#This Row],[75th]]-AAMC_Raw_Data_for_FY22[[#This Row],[Median]])/25)*15) + AAMC_Raw_Data_for_FY22[[#This Row],[Median]]","v":130549.2},{"$f":"(((AAMC_Raw_Data_for_FY22[[#This Row],[75th]]-AAMC_Raw_Data_for_FY22[[#This Row],[Median]])/25)*20) + AAMC_Raw_Data_for_FY22[[#This Row],[Median]]","v":134065.60000000001},137582,{"$f":"(((AAMC_Raw_Data_for_FY22[[#This Row],[75th]]-AAMC_Raw_Data_for_FY22[[#This Row],[Median]])/25)*30) + AAMC_Raw_Data_for_FY22[[#This Row],[Median]]","v":141098.4},{"$f":"(((AAMC_Raw_Data_for_FY22[[#This Row],[75th]]-AAMC_Raw_Data_for_FY22[[#This Row],[Median]])/25)*35) + AAMC_Raw_Data_for_FY22[[#This Row],[Median]]","v":144614.79999999999},{"$f":"(((AAMC_Raw_Data_for_FY22[[#This Row],[75th]]-AAMC_Raw_Data_for_FY22[[#This Row],[Median]])/25)*40) + AAMC_Raw_Data_for_FY22[[#This Row],[Median]]","v":148131.20000000001}]
[{"$f":"AAMC_Raw_Data_for_FY22[[#This Row],[Source]]&AAMC_Raw_Data_for_FY22[[#This Row],[Type]]&AAMC_Raw_Data_for_FY22[[#This Row],[School Subset]]&AAMC_Raw_Data_for_FY22[[#This Row],[Rank]]&AAMC_Raw_Data_for_FY22[[#This Row],[Degree]]&AAMC_Raw_Data_for_FY22[[#This Row],[Department / Specialty]]&\"L\"","v":"AAMCAcademicPublicAssociatePhDBiostatisticsL"},"Biostatistics",3,"AAMC","Academic","Public","Associate","PhD","2021-2022",142088,{"$f":"(((AAMC_Raw_Data_for_FY22[[#This Row],[Median]]-AAMC_Raw_Data_for_FY22[[#This Row],[25th]])/25)*5) + AAMC_Raw_Data_for_FY22[[#This Row],[25th]]","v":144570.4},{"$f":"(((AAMC_Raw_Data_for_FY22[[#This Row],[Median]]-AAMC_Raw_Data_for_FY22[[#This Row],[25th]])/25)*10) + AAMC_Raw_Data_for_FY22[[#This Row],[25th]]","v":147052.79999999999},{"$f":"(((AAMC_Raw_Data_for_FY22[[#This Row],[Median]]-AAMC_Raw_Data_for_FY22[[#This Row],[25th]])/25)*15) + AAMC_Raw_Data_for_FY22[[#This Row],[25th]]","v":149535.20000000001},{"$f":"(((AAMC_Raw_Data_for_FY22[[#This Row],[Median]]-AAMC_Raw_Data_for_FY22[[#This Row],[25th]])/25)*20) + AAMC_Raw_Data_for_FY22[[#This Row],[25th]]","v":152017.60000000001},154500,{"$f":"(((AAMC_Raw_Data_for_FY22[[#This Row],[75th]]-AAMC_Raw_Data_for_FY22[[#This Row],[Median]])/25)*5) + AAMC_Raw_Data_for_FY22[[#This Row],[Median]]","v":157970},{"$f":"(((AAMC_Raw_Data_for_FY22[[#This Row],[75th]]-AAMC_Raw_Data_for_FY22[[#This Row],[Median]])/25)*10) + AAMC_Raw_Data_for_FY22[[#This Row],[Median]]","v":161440},{"$f":"(((AAMC_Raw_Data_for_FY22[[#This Row],[75th]]-AAMC_Raw_Data_for_FY22[[#This Row],[Median]])/25)*15) + AAMC_Raw_Data_for_FY22[[#This Row],[Median]]","v":164910},{"$f":"(((AAMC_Raw_Data_for_FY22[[#This Row],[75th]]-AAMC_Raw_Data_for_FY22[[#This Row],[Median]])/25)*20) + AAMC_Raw_Data_for_FY22[[#This Row],[Median]]","v":168380},171850,{"$f":"(((AAMC_Raw_Data_for_FY22[[#This Row],[75th]]-AAMC_Raw_Data_for_FY22[[#This Row],[Median]])/25)*30) + AAMC_Raw_Data_for_FY22[[#This Row],[Median]]","v":175320},{"$f":"(((AAMC_Raw_Data_for_FY22[[#This Row],[75th]]-AAMC_Raw_Data_for_FY22[[#This Row],[Median]])/25)*35) + AAMC_Raw_Data_for_FY22[[#This Row],[Median]]","v":178790},{"$f":"(((AAMC_Raw_Data_for_FY22[[#This Row],[75th]]-AAMC_Raw_Data_for_FY22[[#This Row],[Median]])/25)*40) + AAMC_Raw_Data_for_FY22[[#This Row],[Median]]","v":182260}]
[{"$f":"AAMC_Raw_Data_for_FY22[[#This Row],[Source]]&AAMC_Raw_Data_for_FY22[[#This Row],[Type]]&AAMC_Raw_Data_for_FY22[[#This Row],[School Subset]]&AAMC_Raw_Data_for_FY22[[#This Row],[Rank]]&AAMC_Raw_Data_for_FY22[[#This Row],[Degree]]&AAMC_Raw_Data_for_FY22[[#This Row],[Department / Specialty]]&\"L\"","v":"AAMCAcademicPublicProfessorPhDBiostatisticsL"},"Biostatistics",2,"AAMC","Academic","Public","Professor","PhD","2021-2022",197586,{"$f":"(((AAMC_Raw_Data_for_FY22[[#This Row],[Median]]-AAMC_Raw_Data_for_FY22[[#This Row],[25th]])/25)*5) + AAMC_Raw_Data_for_FY22[[#This Row],[25th]]","v":200921.2},{"$f":"(((AAMC_Raw_Data_for_FY22[[#This Row],[Median]]-AAMC_Raw_Data_for_FY22[[#This Row],[25th]])/25)*10) + AAMC_Raw_Data_for_FY22[[#This Row],[25th]]","v":204256.4},{"$f":"(((AAMC_Raw_Data_for_FY22[[#This Row],[Median]]-AAMC_Raw_Data_for_FY22[[#This Row],[25th]])/25)*15) + AAMC_Raw_Data_for_FY22[[#This Row],[25th]]","v":207591.6},{"$f":"(((AAMC_Raw_Data_for_FY22[[#This Row],[Median]]-AAMC_Raw_Data_for_FY22[[#This Row],[25th]])/25)*20) + AAMC_Raw_Data_for_FY22[[#This Row],[25th]]","v":210926.8},214262,{"$f":"(((AAMC_Raw_Data_for_FY22[[#This Row],[75th]]-AAMC_Raw_Data_for_FY22[[#This Row],[Median]])/25)*5) + AAMC_Raw_Data_for_FY22[[#This Row],[Median]]","v":220855.4},{"$f":"(((AAMC_Raw_Data_for_FY22[[#This Row],[75th]]-AAMC_Raw_Data_for_FY22[[#This Row],[Median]])/25)*10) + AAMC_Raw_Data_for_FY22[[#This Row],[Median]]","v":227448.8},{"$f":"(((AAMC_Raw_Data_for_FY22[[#This Row],[75th]]-AAMC_Raw_Data_for_FY22[[#This Row],[Median]])/25)*15) + AAMC_Raw_Data_for_FY22[[#This Row],[Median]]","v":234042.2},{"$f":"(((AAMC_Raw_Data_for_FY22[[#This Row],[75th]]-AAMC_Raw_Data_for_FY22[[#This Row],[Median]])/25)*20) + AAMC_Raw_Data_for_FY22[[#This Row],[Median]]","v":240635.6},247229,{"$f":"(((AAMC_Raw_Data_for_FY22[[#This Row],[75th]]-AAMC_Raw_Data_for_FY22[[#This Row],[Median]])/25)*30) + AAMC_Raw_Data_for_FY22[[#This Row],[Median]]","v":253822.4},{"$f":"(((AAMC_Raw_Data_for_FY22[[#This Row],[75th]]-AAMC_Raw_Data_for_FY22[[#This Row],[Median]])/25)*35) + AAMC_Raw_Data_for_FY22[[#This Row],[Median]]","v":260415.8},{"$f":"(((AAMC_Raw_Data_for_FY22[[#This Row],[75th]]-AAMC_Raw_Data_for_FY22[[#This Row],[Median]])/25)*40) + AAMC_Raw_Data_for_FY22[[#This Row],[Median]]","v":267009.2}]
[{"$f":"AAMC_Raw_Data_for_FY22[[#This Row],[Source]]&AAMC_Raw_Data_for_FY22[[#This Row],[Type]]&AAMC_Raw_Data_for_FY22[[#This Row],[School Subset]]&AAMC_Raw_Data_for_FY22[[#This Row],[Rank]]&AAMC_Raw_Data_for_FY22[[#This Row],[Degree]]&AAMC_Raw_Data_for_FY22[[#This Row],[Department / Specialty]]&\"L\"","v":"AAMCAcademicPublicChiefPhDBiostatisticsL"},"Biostatistics",6,"AAMC","Academic","Public","Chief","PhD","2021-2022",269651,{"$f":"(((AAMC_Raw_Data_for_FY22[[#This Row],[Median]]-AAMC_Raw_Data_for_FY22[[#This Row],[25th]])/25)*5) + AAMC_Raw_Data_for_FY22[[#This Row],[25th]]","v":270907.40000000002},{"$f":"(((AAMC_Raw_Data_for_FY22[[#This Row],[Median]]-AAMC_Raw_Data_for_FY22[[#This Row],[25th]])/25)*10) + AAMC_Raw_Data_for_FY22[[#This Row],[25th]]","v":272163.8},{"$f":"(((AAMC_Raw_Data_for_FY22[[#This Row],[Median]]-AAMC_Raw_Data_for_FY22[[#This Row],[25th]])/25)*15) + AAMC_Raw_Data_for_FY22[[#This Row],[25th]]","v":273420.2},{"$f":"(((AAMC_Raw_Data_for_FY22[[#This Row],[Median]]-AAMC_Raw_Data_for_FY22[[#This Row],[25th]])/25)*20) + AAMC_Raw_Data_for_FY22[[#This Row],[25th]]","v":274676.59999999998},275933,{"$f":"(((AAMC_Raw_Data_for_FY22[[#This Row],[75th]]-AAMC_Raw_Data_for_FY22[[#This Row],[Median]])/25)*5) + AAMC_Raw_Data_for_FY22[[#This Row],[Median]]","v":289070.40000000002},{"$f":"(((AAMC_Raw_Data_for_FY22[[#This Row],[75th]]-AAMC_Raw_Data_for_FY22[[#This Row],[Median]])/25)*10) + AAMC_Raw_Data_for_FY22[[#This Row],[Median]]","v":302207.8},{"$f":"(((AAMC_Raw_Data_for_FY22[[#This Row],[75th]]-AAMC_Raw_Data_for_FY22[[#This Row],[Median]])/25)*15) + AAMC_Raw_Data_for_FY22[[#This Row],[Median]]","v":315345.2},{"$f":"(((AAMC_Raw_Data_for_FY22[[#This Row],[75th]]-AAMC_Raw_Data_for_FY22[[#This Row],[Median]])/25)*20) + AAMC_Raw_Data_for_FY22[[#This Row],[Median]]","v":328482.59999999998},341620,{"$f":"(((AAMC_Raw_Data_for_FY22[[#This Row],[75th]]-AAMC_Raw_Data_for_FY22[[#This Row],[Median]])/25)*30) + AAMC_Raw_Data_for_FY22[[#This Row],[Median]]","v":354757.4},{"$f":"(((AAMC_Raw_Data_for_FY22[[#This Row],[75th]]-AAMC_Raw_Data_for_FY22[[#This Row],[Median]])/25)*35) + AAMC_Raw_Data_for_FY22[[#This Row],[Median]]","v":367894.8},{"$f":"(((AAMC_Raw_Data_for_FY22[[#This Row],[75th]]-AAMC_Raw_Data_for_FY22[[#This Row],[Median]])/25)*40) + AAMC_Raw_Data_for_FY22[[#This Row],[Median]]","v":381032.2}]
[{"$f":"AAMC_Raw_Data_for_FY22[[#This Row],[Source]]&AAMC_Raw_Data_for_FY22[[#This Row],[Type]]&AAMC_Raw_Data_for_FY22[[#This Row],[School Subset]]&AAMC_Raw_Data_for_FY22[[#This Row],[Rank]]&AAMC_Raw_Data_for_FY22[[#This Row],[Degree]]&AAMC_Raw_Data_for_FY22[[#This Row],[Department / Specialty]]&\"L\"","v":"AAMCAcademicPublicChairPhDBiostatisticsL"},"Biostatistics",1,"AAMC","Academic","Public","Chair","PhD","2021-2022",340088,{"$f":"(((AAMC_Raw_Data_for_FY22[[#This Row],[Median]]-AAMC_Raw_Data_for_FY22[[#This Row],[25th]])/25)*5) + AAMC_Raw_Data_for_FY22[[#This Row],[25th]]","v":344917.6},{"$f":"(((AAMC_Raw_Data_for_FY22[[#This Row],[Median]]-AAMC_Raw_Data_for_FY22[[#This Row],[25th]])/25)*10) + AAMC_Raw_Data_for_FY22[[#This Row],[25th]]","v":349747.20000000001},{"$f":"(((AAMC_Raw_Data_for_FY22[[#This Row],[Median]]-AAMC_Raw_Data_for_FY22[[#This Row],[25th]])/25)*15) + AAMC_Raw_Data_for_FY22[[#This Row],[25th]]","v":354576.8},{"$f":"(((AAMC_Raw_Data_for_FY22[[#This Row],[Median]]-AAMC_Raw_Data_for_FY22[[#This Row],[25th]])/25)*20) + AAMC_Raw_Data_for_FY22[[#This Row],[25th]]","v":359406.4},364236,{"$f":"(((AAMC_Raw_Data_for_FY22[[#This Row],[75th]]-AAMC_Raw_Data_for_FY22[[#This Row],[Median]])/25)*5) + AAMC_Raw_Data_for_FY22[[#This Row],[Median]]","v":367402.2},{"$f":"(((AAMC_Raw_Data_for_FY22[[#This Row],[75th]]-AAMC_Raw_Data_for_FY22[[#This Row],[Median]])/25)*10) + AAMC_Raw_Data_for_FY22[[#This Row],[Median]]","v":370568.4},{"$f":"(((AAMC_Raw_Data_for_FY22[[#This Row],[75th]]-AAMC_Raw_Data_for_FY22[[#This Row],[Median]])/25)*15) + AAMC_Raw_Data_for_FY22[[#This Row],[Median]]","v":373734.6},{"$f":"(((AAMC_Raw_Data_for_FY22[[#This Row],[75th]]-AAMC_Raw_Data_for_FY22[[#This Row],[Median]])/25)*20) + AAMC_Raw_Data_for_FY22[[#This Row],[Median]]","v":376900.8},380067,{"$f":"(((AAMC_Raw_Data_for_FY22[[#This Row],[75th]]-AAMC_Raw_Data_for_FY22[[#This Row],[Median]])/25)*30) + AAMC_Raw_Data_for_FY22[[#This Row],[Median]]","v":383233.2},{"$f":"(((AAMC_Raw_Data_for_FY22[[#This Row],[75th]]-AAMC_Raw_Data_for_FY22[[#This Row],[Median]])/25)*35) + AAMC_Raw_Data_for_FY22[[#This Row],[Median]]","v":386399.4},{"$f":"(((AAMC_Raw_Data_for_FY22[[#This Row],[75th]]-AAMC_Raw_Data_for_FY22[[#This Row],[Median]])/25)*40) + AAMC_Raw_Data_for_FY22[[#This Row],[Median]]","v":389565.6}]
[{"$f":"AAMC_Raw_Data_for_FY22[[#This Row],[Source]]&AAMC_Raw_Data_for_FY22[[#This Row],[Type]]&AAMC_Raw_Data_for_FY22[[#This Row],[School Subset]]&AAMC_Raw_Data_for_FY22[[#This Row],[Rank]]&AAMC_Raw_Data_for_FY22[[#This Row],[Degree]]&AAMC_Raw_Data_for_FY22[[#This Row],[Department / Specialty]]&\"L\"","v":"AAMCAcademicPublicInstructorPhDGeneticsL"},"Genetics",5,"AAMC","Academic","Public","Instructor","PhD","2021-2022",62331,{"$f":"(((AAMC_Raw_Data_for_FY22[[#This Row],[Median]]-AAMC_Raw_Data_for_FY22[[#This Row],[25th]])/25)*5) + AAMC_Raw_Data_for_FY22[[#This Row],[25th]]","v":63324.2},{"$f":"(((AAMC_Raw_Data_for_FY22[[#This Row],[Median]]-AAMC_Raw_Data_for_FY22[[#This Row],[25th]])/25)*10) + AAMC_Raw_Data_for_FY22[[#This Row],[25th]]","v":64317.4},{"$f":"(((AAMC_Raw_Data_for_FY22[[#This Row],[Median]]-AAMC_Raw_Data_for_FY22[[#This Row],[25th]])/25)*15) + AAMC_Raw_Data_for_FY22[[#This Row],[25th]]","v":65310.6},{"$f":"(((AAMC_Raw_Data_for_FY22[[#This Row],[Median]]-AAMC_Raw_Data_for_FY22[[#This Row],[25th]])/25)*20) + AAMC_Raw_Data_for_FY22[[#This Row],[25th]]","v":66303.8},67297,{"$f":"(((AAMC_Raw_Data_for_FY22[[#This Row],[75th]]-AAMC_Raw_Data_for_FY22[[#This Row],[Median]])/25)*5) + AAMC_Raw_Data_for_FY22[[#This Row],[Median]]","v":67610.399999999994},{"$f":"(((AAMC_Raw_Data_for_FY22[[#This Row],[75th]]-AAMC_Raw_Data_for_FY22[[#This Row],[Median]])/25)*10) + AAMC_Raw_Data_for_FY22[[#This Row],[Median]]","v":67923.8},{"$f":"(((AAMC_Raw_Data_for_FY22[[#This Row],[75th]]-AAMC_Raw_Data_for_FY22[[#This Row],[Median]])/25)*15) + AAMC_Raw_Data_for_FY22[[#This Row],[Median]]","v":68237.2},{"$f":"(((AAMC_Raw_Data_for_FY22[[#This Row],[75th]]-AAMC_Raw_Data_for_FY22[[#This Row],[Median]])/25)*20) + AAMC_Raw_Data_for_FY22[[#This Row],[Median]]","v":68550.600000000006},68864,{"$f":"(((AAMC_Raw_Data_for_FY22[[#This Row],[75th]]-AAMC_Raw_Data_for_FY22[[#This Row],[Median]])/25)*30) + AAMC_Raw_Data_for_FY22[[#This Row],[Median]]","v":69177.399999999994},{"$f":"(((AAMC_Raw_Data_for_FY22[[#This Row],[75th]]-AAMC_Raw_Data_for_FY22[[#This Row],[Median]])/25)*35) + AAMC_Raw_Data_for_FY22[[#This Row],[Median]]","v":69490.8},{"$f":"(((AAMC_Raw_Data_for_FY22[[#This Row],[75th]]-AAMC_Raw_Data_for_FY22[[#This Row],[Median]])/25)*40) + AAMC_Raw_Data_for_FY22[[#This Row],[Median]]","v":69804.2}]
[{"$f":"AAMC_Raw_Data_for_FY22[[#This Row],[Source]]&AAMC_Raw_Data_for_FY22[[#This Row],[Type]]&AAMC_Raw_Data_for_FY22[[#This Row],[School Subset]]&AAMC_Raw_Data_for_FY22[[#This Row],[Rank]]&AAMC_Raw_Data_for_FY22[[#This Row],[Degree]]&AAMC_Raw_Data_for_FY22[[#This Row],[Department / Specialty]]&\"L\"","v":"AAMCAcademicPublicAssistantPhDGeneticsL"},"Genetics",4,"AAMC","Academic","Public","Assistant","PhD","2021-2022",84513,{"$f":"(((AAMC_Raw_Data_for_FY22[[#This Row],[Median]]-AAMC_Raw_Data_for_FY22[[#This Row],[25th]])/25)*5) + AAMC_Raw_Data_for_FY22[[#This Row],[25th]]","v":87974.8},{"$f":"(((AAMC_Raw_Data_for_FY22[[#This Row],[Median]]-AAMC_Raw_Data_for_FY22[[#This Row],[25th]])/25)*10) + AAMC_Raw_Data_for_FY22[[#This Row],[25th]]","v":91436.6},{"$f":"(((AAMC_Raw_Data_for_FY22[[#This Row],[Median]]-AAMC_Raw_Data_for_FY22[[#This Row],[25th]])/25)*15) + AAMC_Raw_Data_for_FY22[[#This Row],[25th]]","v":94898.4},{"$f":"(((AAMC_Raw_Data_for_FY22[[#This Row],[Median]]-AAMC_Raw_Data_for_FY22[[#This Row],[25th]])/25)*20) + AAMC_Raw_Data_for_FY22[[#This Row],[25th]]","v":98360.2},101822,{"$f":"(((AAMC_Raw_Data_for_FY22[[#This Row],[75th]]-AAMC_Raw_Data_for_FY22[[#This Row],[Median]])/25)*5) + AAMC_Raw_Data_for_FY22[[#This Row],[Median]]","v":106203.2},{"$f":"(((AAMC_Raw_Data_for_FY22[[#This Row],[75th]]-AAMC_Raw_Data_for_FY22[[#This Row],[Median]])/25)*10) + AAMC_Raw_Data_for_FY22[[#This Row],[Median]]","v":110584.4},{"$f":"(((AAMC_Raw_Data_for_FY22[[#This Row],[75th]]-AAMC_Raw_Data_for_FY22[[#This Row],[Median]])/25)*15) + AAMC_Raw_Data_for_FY22[[#This Row],[Median]]","v":114965.6},{"$f":"(((AAMC_Raw_Data_for_FY22[[#This Row],[75th]]-AAMC_Raw_Data_for_FY22[[#This Row],[Median]])/25)*20) + AAMC_Raw_Data_for_FY22[[#This Row],[Median]]","v":119346.8},123728,{"$f":"(((AAMC_Raw_Data_for_FY22[[#This Row],[75th]]-AAMC_Raw_Data_for_FY22[[#This Row],[Median]])/25)*30) + AAMC_Raw_Data_for_FY22[[#This Row],[Median]]","v":128109.2},{"$f":"(((AAMC_Raw_Data_for_FY22[[#This Row],[75th]]-AAMC_Raw_Data_for_FY22[[#This Row],[Median]])/25)*35) + AAMC_Raw_Data_for_FY22[[#This Row],[Median]]","v":132490.4},{"$f":"(((AAMC_Raw_Data_for_FY22[[#This Row],[75th]]-AAMC_Raw_Data_for_FY22[[#This Row],[Median]])/25)*40) + AAMC_Raw_Data_for_FY22[[#This Row],[Median]]","v":136871.6}]
[{"$f":"AAMC_Raw_Data_for_FY22[[#This Row],[Source]]&AAMC_Raw_Data_for_FY22[[#This Row],[Type]]&AAMC_Raw_Data_for_FY22[[#This Row],[School Subset]]&AAMC_Raw_Data_for_FY22[[#This Row],[Rank]]&AAMC_Raw_Data_for_FY22[[#This Row],[Degree]]&AAMC_Raw_Data_for_FY22[[#This Row],[Department / Specialty]]&\"L\"","v":"AAMCAcademicPublicAssociatePhDGeneticsL"},"Genetics",3,"AAMC","Academic","Public","Associate","PhD","2021-2022",124857,{"$f":"(((AAMC_Raw_Data_for_FY22[[#This Row],[Median]]-AAMC_Raw_Data_for_FY22[[#This Row],[25th]])/25)*5) + AAMC_Raw_Data_for_FY22[[#This Row],[25th]]","v":127646.8},{"$f":"(((AAMC_Raw_Data_for_FY22[[#This Row],[Median]]-AAMC_Raw_Data_for_FY22[[#This Row],[25th]])/25)*10) + AAMC_Raw_Data_for_FY22[[#This Row],[25th]]","v":130436.6},{"$f":"(((AAMC_Raw_Data_for_FY22[[#This Row],[Median]]-AAMC_Raw_Data_for_FY22[[#This Row],[25th]])/25)*15) + AAMC_Raw_Data_for_FY22[[#This Row],[25th]]","v":133226.4},{"$f":"(((AAMC_Raw_Data_for_FY22[[#This Row],[Median]]-AAMC_Raw_Data_for_FY22[[#This Row],[25th]])/25)*20) + AAMC_Raw_Data_for_FY22[[#This Row],[25th]]","v":136016.20000000001},138806,{"$f":"(((AAMC_Raw_Data_for_FY22[[#This Row],[75th]]-AAMC_Raw_Data_for_FY22[[#This Row],[Median]])/25)*5) + AAMC_Raw_Data_for_FY22[[#This Row],[Median]]","v":143588.79999999999},{"$f":"(((AAMC_Raw_Data_for_FY22[[#This Row],[75th]]-AAMC_Raw_Data_for_FY22[[#This Row],[Median]])/25)*10) + AAMC_Raw_Data_for_FY22[[#This Row],[Median]]","v":148371.6},{"$f":"(((AAMC_Raw_Data_for_FY22[[#This Row],[75th]]-AAMC_Raw_Data_for_FY22[[#This Row],[Median]])/25)*15) + AAMC_Raw_Data_for_FY22[[#This Row],[Median]]","v":153154.4},{"$f":"(((AAMC_Raw_Data_for_FY22[[#This Row],[75th]]-AAMC_Raw_Data_for_FY22[[#This Row],[Median]])/25)*20) + AAMC_Raw_Data_for_FY22[[#This Row],[Median]]","v":157937.20000000001},162720,{"$f":"(((AAMC_Raw_Data_for_FY22[[#This Row],[75th]]-AAMC_Raw_Data_for_FY22[[#This Row],[Median]])/25)*30) + AAMC_Raw_Data_for_FY22[[#This Row],[Median]]","v":167502.79999999999},{"$f":"(((AAMC_Raw_Data_for_FY22[[#This Row],[75th]]-AAMC_Raw_Data_for_FY22[[#This Row],[Median]])/25)*35) + AAMC_Raw_Data_for_FY22[[#This Row],[Median]]","v":172285.6},{"$f":"(((AAMC_Raw_Data_for_FY22[[#This Row],[75th]]-AAMC_Raw_Data_for_FY22[[#This Row],[Median]])/25)*40) + AAMC_Raw_Data_for_FY22[[#This Row],[Median]]","v":177068.4}]
[{"$f":"AAMC_Raw_Data_for_FY22[[#This Row],[Source]]&AAMC_Raw_Data_for_FY22[[#This Row],[Type]]&AAMC_Raw_Data_for_FY22[[#This Row],[School Subset]]&AAMC_Raw_Data_for_FY22[[#This Row],[Rank]]&AAMC_Raw_Data_for_FY22[[#This Row],[Degree]]&AAMC_Raw_Data_for_FY22[[#This Row],[Department / Specialty]]&\"L\"","v":"AAMCAcademicPublicProfessorPhDGeneticsL"},"Genetics",2,"AAMC","Academic","Public","Professor","PhD","2021-2022",175815,{"$f":"(((AAMC_Raw_Data_for_FY22[[#This Row],[Median]]-AAMC_Raw_Data_for_FY22[[#This Row],[25th]])/25)*5) + AAMC_Raw_Data_for_FY22[[#This Row],[25th]]","v":179965},{"$f":"(((AAMC_Raw_Data_for_FY22[[#This Row],[Median]]-AAMC_Raw_Data_for_FY22[[#This Row],[25th]])/25)*10) + AAMC_Raw_Data_for_FY22[[#This Row],[25th]]","v":184115},{"$f":"(((AAMC_Raw_Data_for_FY22[[#This Row],[Median]]-AAMC_Raw_Data_for_FY22[[#This Row],[25th]])/25)*15) + AAMC_Raw_Data_for_FY22[[#This Row],[25th]]","v":188265},{"$f":"(((AAMC_Raw_Data_for_FY22[[#This Row],[Median]]-AAMC_Raw_Data_for_FY22[[#This Row],[25th]])/25)*20) + AAMC_Raw_Data_for_FY22[[#This Row],[25th]]","v":192415},196565,{"$f":"(((AAMC_Raw_Data_for_FY22[[#This Row],[75th]]-AAMC_Raw_Data_for_FY22[[#This Row],[Median]])/25)*5) + AAMC_Raw_Data_for_FY22[[#This Row],[Median]]","v":207098.6},{"$f":"(((AAMC_Raw_Data_for_FY22[[#This Row],[75th]]-AAMC_Raw_Data_for_FY22[[#This Row],[Median]])/25)*10) + AAMC_Raw_Data_for_FY22[[#This Row],[Median]]","v":217632.2},{"$f":"(((AAMC_Raw_Data_for_FY22[[#This Row],[75th]]-AAMC_Raw_Data_for_FY22[[#This Row],[Median]])/25)*15) + AAMC_Raw_Data_for_FY22[[#This Row],[Median]]","v":228165.8},{"$f":"(((AAMC_Raw_Data_for_FY22[[#This Row],[75th]]-AAMC_Raw_Data_for_FY22[[#This Row],[Median]])/25)*20) + AAMC_Raw_Data_for_FY22[[#This Row],[Median]]","v":238699.4},249233,{"$f":"(((AAMC_Raw_Data_for_FY22[[#This Row],[75th]]-AAMC_Raw_Data_for_FY22[[#This Row],[Median]])/25)*30) + AAMC_Raw_Data_for_FY22[[#This Row],[Median]]","v":259766.59999999998},{"$f":"(((AAMC_Raw_Data_for_FY22[[#This Row],[75th]]-AAMC_Raw_Data_for_FY22[[#This Row],[Median]])/25)*35) + AAMC_Raw_Data_for_FY22[[#This Row],[Median]]","v":270300.2},{"$f":"(((AAMC_Raw_Data_for_FY22[[#This Row],[75th]]-AAMC_Raw_Data_for_FY22[[#This Row],[Median]])/25)*40) + AAMC_Raw_Data_for_FY22[[#This Row],[Median]]","v":280833.8}]
[{"$f":"AAMC_Raw_Data_for_FY22[[#This Row],[Source]]&AAMC_Raw_Data_for_FY22[[#This Row],[Type]]&AAMC_Raw_Data_for_FY22[[#This Row],[School Subset]]&AAMC_Raw_Data_for_FY22[[#This Row],[Rank]]&AAMC_Raw_Data_for_FY22[[#This Row],[Degree]]&AAMC_Raw_Data_for_FY22[[#This Row],[Department / Specialty]]&\"L\"","v":"AAMCAcademicPublicChairPhDGeneticsL"},"Genetics",1,"AAMC","Academic","Public","Chair","PhD","2021-2022",361045,{"$f":"(((AAMC_Raw_Data_for_FY22[[#This Row],[Median]]-AAMC_Raw_Data_for_FY22[[#This Row],[25th]])/25)*5) + AAMC_Raw_Data_for_FY22[[#This Row],[25th]]","v":365978},{"$f":"(((AAMC_Raw_Data_for_FY22[[#This Row],[Median]]-AAMC_Raw_Data_for_FY22[[#This Row],[25th]])/25)*10) + AAMC_Raw_Data_for_FY22[[#This Row],[25th]]","v":370911},{"$f":"(((AAMC_Raw_Data_for_FY22[[#This Row],[Median]]-AAMC_Raw_Data_for_FY22[[#This Row],[25th]])/25)*15) + AAMC_Raw_Data_for_FY22[[#This Row],[25th]]","v":375844},{"$f":"(((AAMC_Raw_Data_for_FY22[[#This Row],[Median]]-AAMC_Raw_Data_for_FY22[[#This Row],[25th]])/25)*20) + AAMC_Raw_Data_for_FY22[[#This Row],[25th]]","v":380777},385710,{"$f":"(((AAMC_Raw_Data_for_FY22[[#This Row],[75th]]-AAMC_Raw_Data_for_FY22[[#This Row],[Median]])/25)*5) + AAMC_Raw_Data_for_FY22[[#This Row],[Median]]","v":389992.2},{"$f":"(((AAMC_Raw_Data_for_FY22[[#This Row],[75th]]-AAMC_Raw_Data_for_FY22[[#This Row],[Median]])/25)*10) + AAMC_Raw_Data_for_FY22[[#This Row],[Median]]","v":394274.4},{"$f":"(((AAMC_Raw_Data_for_FY22[[#This Row],[75th]]-AAMC_Raw_Data_for_FY22[[#This Row],[Median]])/25)*15) + AAMC_Raw_Data_for_FY22[[#This Row],[Median]]","v":398556.6},{"$f":"(((AAMC_Raw_Data_for_FY22[[#This Row],[75th]]-AAMC_Raw_Data_for_FY22[[#This Row],[Median]])/25)*20) + AAMC_Raw_Data_for_FY22[[#This Row],[Median]]","v":402838.8},407121,{"$f":"(((AAMC_Raw_Data_for_FY22[[#This Row],[75th]]-AAMC_Raw_Data_for_FY22[[#This Row],[Median]])/25)*30) + AAMC_Raw_Data_for_FY22[[#This Row],[Median]]","v":411403.2},{"$f":"(((AAMC_Raw_Data_for_FY22[[#This Row],[75th]]-AAMC_Raw_Data_for_FY22[[#This Row],[Median]])/25)*35) + AAMC_Raw_Data_for_FY22[[#This Row],[Median]]","v":415685.4},{"$f":"(((AAMC_Raw_Data_for_FY22[[#This Row],[75th]]-AAMC_Raw_Data_for_FY22[[#This Row],[Median]])/25)*40) + AAMC_Raw_Data_for_FY22[[#This Row],[Median]]","v":419967.6}]
[{"$f":"AAMC_Raw_Data_for_FY22[[#This Row],[Source]]&AAMC_Raw_Data_for_FY22[[#This Row],[Type]]&AAMC_Raw_Data_for_FY22[[#This Row],[School Subset]]&AAMC_Raw_Data_for_FY22[[#This Row],[Rank]]&AAMC_Raw_Data_for_FY22[[#This Row],[Degree]]&AAMC_Raw_Data_for_FY22[[#This Row],[Department / Specialty]]&\"L\"","v":"AAMCAcademicPublicInstructorPhDMicrobiologyL"},"Microbiology",5,"AAMC","Academic","Public","Instructor","PhD","2021-2022",61940,{"$f":"(((AAMC_Raw_Data_for_FY22[[#This Row],[Median]]-AAMC_Raw_Data_for_FY22[[#This Row],[25th]])/25)*5) + AAMC_Raw_Data_for_FY22[[#This Row],[25th]]","v":62352},{"$f":"(((AAMC_Raw_Data_for_FY22[[#This Row],[Median]]-AAMC_Raw_Data_for_FY22[[#This Row],[25th]])/25)*10) + AAMC_Raw_Data_for_FY22[[#This Row],[25th]]","v":62764},{"$f":"(((AAMC_Raw_Data_for_FY22[[#This Row],[Median]]-AAMC_Raw_Data_for_FY22[[#This Row],[25th]])/25)*15) + AAMC_Raw_Data_for_FY22[[#This Row],[25th]]","v":63176},{"$f":"(((AAMC_Raw_Data_for_FY22[[#This Row],[Median]]-AAMC_Raw_Data_for_FY22[[#This Row],[25th]])/25)*20) + AAMC_Raw_Data_for_FY22[[#This Row],[25th]]","v":63588},64000,{"$f":"(((AAMC_Raw_Data_for_FY22[[#This Row],[75th]]-AAMC_Raw_Data_for_FY22[[#This Row],[Median]])/25)*5) + AAMC_Raw_Data_for_FY22[[#This Row],[Median]]","v":65287.4},{"$f":"(((AAMC_Raw_Data_for_FY22[[#This Row],[75th]]-AAMC_Raw_Data_for_FY22[[#This Row],[Median]])/25)*10) + AAMC_Raw_Data_for_FY22[[#This Row],[Median]]","v":66574.8},{"$f":"(((AAMC_Raw_Data_for_FY22[[#This Row],[75th]]-AAMC_Raw_Data_for_FY22[[#This Row],[Median]])/25)*15) + AAMC_Raw_Data_for_FY22[[#This Row],[Median]]","v":67862.2},{"$f":"(((AAMC_Raw_Data_for_FY22[[#This Row],[75th]]-AAMC_Raw_Data_for_FY22[[#This Row],[Median]])/25)*20) + AAMC_Raw_Data_for_FY22[[#This Row],[Median]]","v":69149.600000000006},70437,{"$f":"(((AAMC_Raw_Data_for_FY22[[#This Row],[75th]]-AAMC_Raw_Data_for_FY22[[#This Row],[Median]])/25)*30) + AAMC_Raw_Data_for_FY22[[#This Row],[Median]]","v":71724.399999999994},{"$f":"(((AAMC_Raw_Data_for_FY22[[#This Row],[75th]]-AAMC_Raw_Data_for_FY22[[#This Row],[Median]])/25)*35) + AAMC_Raw_Data_for_FY22[[#This Row],[Median]]","v":73011.8},{"$f":"(((AAMC_Raw_Data_for_FY22[[#This Row],[75th]]-AAMC_Raw_Data_for_FY22[[#This Row],[Median]])/25)*40) + AAMC_Raw_Data_for_FY22[[#This Row],[Median]]","v":74299.199999999997}]
[{"$f":"AAMC_Raw_Data_for_FY22[[#This Row],[Source]]&AAMC_Raw_Data_for_FY22[[#This Row],[Type]]&AAMC_Raw_Data_for_FY22[[#This Row],[School Subset]]&AAMC_Raw_Data_for_FY22[[#This Row],[Rank]]&AAMC_Raw_Data_for_FY22[[#This Row],[Degree]]&AAMC_Raw_Data_for_FY22[[#This Row],[Department / Specialty]]&\"L\"","v":"AAMCAcademicPublicAssistantPhDMicrobiologyL"},"Microbiology",4,"AAMC","Academic","Public","Assistant","PhD","2021-2022",85116,{"$f":"(((AAMC_Raw_Data_for_FY22[[#This Row],[Median]]-AAMC_Raw_Data_for_FY22[[#This Row],[25th]])/25)*5) + AAMC_Raw_Data_for_FY22[[#This Row],[25th]]","v":88405},{"$f":"(((AAMC_Raw_Data_for_FY22[[#This Row],[Median]]-AAMC_Raw_Data_for_FY22[[#This Row],[25th]])/25)*10) + AAMC_Raw_Data_for_FY22[[#This Row],[25th]]","v":91694},{"$f":"(((AAMC_Raw_Data_for_FY22[[#This Row],[Median]]-AAMC_Raw_Data_for_FY22[[#This Row],[25th]])/25)*15) + AAMC_Raw_Data_for_FY22[[#This Row],[25th]]","v":94983},{"$f":"(((AAMC_Raw_Data_for_FY22[[#This Row],[Median]]-AAMC_Raw_Data_for_FY22[[#This Row],[25th]])/25)*20) + AAMC_Raw_Data_for_FY22[[#This Row],[25th]]","v":98272},101561,{"$f":"(((AAMC_Raw_Data_for_FY22[[#This Row],[75th]]-AAMC_Raw_Data_for_FY22[[#This Row],[Median]])/25)*5) + AAMC_Raw_Data_for_FY22[[#This Row],[Median]]","v":104438.8},{"$f":"(((AAMC_Raw_Data_for_FY22[[#This Row],[75th]]-AAMC_Raw_Data_for_FY22[[#This Row],[Median]])/25)*10) + AAMC_Raw_Data_for_FY22[[#This Row],[Median]]","v":107316.6},{"$f":"(((AAMC_Raw_Data_for_FY22[[#This Row],[75th]]-AAMC_Raw_Data_for_FY22[[#This Row],[Median]])/25)*15) + AAMC_Raw_Data_for_FY22[[#This Row],[Median]]","v":110194.4},{"$f":"(((AAMC_Raw_Data_for_FY22[[#This Row],[75th]]-AAMC_Raw_Data_for_FY22[[#This Row],[Median]])/25)*20) + AAMC_Raw_Data_for_FY22[[#This Row],[Median]]","v":113072.2},115950,{"$f":"(((AAMC_Raw_Data_for_FY22[[#This Row],[75th]]-AAMC_Raw_Data_for_FY22[[#This Row],[Median]])/25)*30) + AAMC_Raw_Data_for_FY22[[#This Row],[Median]]","v":118827.8},{"$f":"(((AAMC_Raw_Data_for_FY22[[#This Row],[75th]]-AAMC_Raw_Data_for_FY22[[#This Row],[Median]])/25)*35) + AAMC_Raw_Data_for_FY22[[#This Row],[Median]]","v":121705.60000000001},{"$f":"(((AAMC_Raw_Data_for_FY22[[#This Row],[75th]]-AAMC_Raw_Data_for_FY22[[#This Row],[Median]])/25)*40) + AAMC_Raw_Data_for_FY22[[#This Row],[Median]]","v":124583.4}]
[{"$f":"AAMC_Raw_Data_for_FY22[[#This Row],[Source]]&AAMC_Raw_Data_for_FY22[[#This Row],[Type]]&AAMC_Raw_Data_for_FY22[[#This Row],[School Subset]]&AAMC_Raw_Data_for_FY22[[#This Row],[Rank]]&AAMC_Raw_Data_for_FY22[[#This Row],[Degree]]&AAMC_Raw_Data_for_FY22[[#This Row],[Department / Specialty]]&\"L\"","v":"AAMCAcademicPublicAssociatePhDMicrobiologyL"},"Microbiology",3,"AAMC","Academic","Public","Associate","PhD","2021-2022",117278,{"$f":"(((AAMC_Raw_Data_for_FY22[[#This Row],[Median]]-AAMC_Raw_Data_for_FY22[[#This Row],[25th]])/25)*5) + AAMC_Raw_Data_for_FY22[[#This Row],[25th]]","v":120857.4},{"$f":"(((AAMC_Raw_Data_for_FY22[[#This Row],[Median]]-AAMC_Raw_Data_for_FY22[[#This Row],[25th]])/25)*10) + AAMC_Raw_Data_for_FY22[[#This Row],[25th]]","v":124436.8},{"$f":"(((AAMC_Raw_Data_for_FY22[[#This Row],[Median]]-AAMC_Raw_Data_for_FY22[[#This Row],[25th]])/25)*15) + AAMC_Raw_Data_for_FY22[[#This Row],[25th]]","v":128016.2},{"$f":"(((AAMC_Raw_Data_for_FY22[[#This Row],[Median]]-AAMC_Raw_Data_for_FY22[[#This Row],[25th]])/25)*20) + AAMC_Raw_Data_for_FY22[[#This Row],[25th]]","v":131595.6},135175,{"$f":"(((AAMC_Raw_Data_for_FY22[[#This Row],[75th]]-AAMC_Raw_Data_for_FY22[[#This Row],[Median]])/25)*5) + AAMC_Raw_Data_for_FY22[[#This Row],[Median]]","v":139753},{"$f":"(((AAMC_Raw_Data_for_FY22[[#This Row],[75th]]-AAMC_Raw_Data_for_FY22[[#This Row],[Median]])/25)*10) + AAMC_Raw_Data_for_FY22[[#This Row],[Median]]","v":144331},{"$f":"(((AAMC_Raw_Data_for_FY22[[#This Row],[75th]]-AAMC_Raw_Data_for_FY22[[#This Row],[Median]])/25)*15) + AAMC_Raw_Data_for_FY22[[#This Row],[Median]]","v":148909},{"$f":"(((AAMC_Raw_Data_for_FY22[[#This Row],[75th]]-AAMC_Raw_Data_for_FY22[[#This Row],[Median]])/25)*20) + AAMC_Raw_Data_for_FY22[[#This Row],[Median]]","v":153487},158065,{"$f":"(((AAMC_Raw_Data_for_FY22[[#This Row],[75th]]-AAMC_Raw_Data_for_FY22[[#This Row],[Median]])/25)*30) + AAMC_Raw_Data_for_FY22[[#This Row],[Median]]","v":162643},{"$f":"(((AAMC_Raw_Data_for_FY22[[#This Row],[75th]]-AAMC_Raw_Data_for_FY22[[#This Row],[Median]])/25)*35) + AAMC_Raw_Data_for_FY22[[#This Row],[Median]]","v":167221},{"$f":"(((AAMC_Raw_Data_for_FY22[[#This Row],[75th]]-AAMC_Raw_Data_for_FY22[[#This Row],[Median]])/25)*40) + AAMC_Raw_Data_for_FY22[[#This Row],[Median]]","v":171799}]
[{"$f":"AAMC_Raw_Data_for_FY22[[#This Row],[Source]]&AAMC_Raw_Data_for_FY22[[#This Row],[Type]]&AAMC_Raw_Data_for_FY22[[#This Row],[School Subset]]&AAMC_Raw_Data_for_FY22[[#This Row],[Rank]]&AAMC_Raw_Data_for_FY22[[#This Row],[Degree]]&AAMC_Raw_Data_for_FY22[[#This Row],[Department / Specialty]]&\"L\"","v":"AAMCAcademicPublicProfessorPhDMicrobiologyL"},"Microbiology",2,"AAMC","Academic","Public","Professor","PhD","2021-2022",165684,{"$f":"(((AAMC_Raw_Data_for_FY22[[#This Row],[Median]]-AAMC_Raw_Data_for_FY22[[#This Row],[25th]])/25)*5) + AAMC_Raw_Data_for_FY22[[#This Row],[25th]]","v":171341.6},{"$f":"(((AAMC_Raw_Data_for_FY22[[#This Row],[Median]]-AAMC_Raw_Data_for_FY22[[#This Row],[25th]])/25)*10) + AAMC_Raw_Data_for_FY22[[#This Row],[25th]]","v":176999.2},{"$f":"(((AAMC_Raw_Data_for_FY22[[#This Row],[Median]]-AAMC_Raw_Data_for_FY22[[#This Row],[25th]])/25)*15) + AAMC_Raw_Data_for_FY22[[#This Row],[25th]]","v":182656.8},{"$f":"(((AAMC_Raw_Data_for_FY22[[#This Row],[Median]]-AAMC_Raw_Data_for_FY22[[#This Row],[25th]])/25)*20) + AAMC_Raw_Data_for_FY22[[#This Row],[25th]]","v":188314.4},193972,{"$f":"(((AAMC_Raw_Data_for_FY22[[#This Row],[75th]]-AAMC_Raw_Data_for_FY22[[#This Row],[Median]])/25)*5) + AAMC_Raw_Data_for_FY22[[#This Row],[Median]]","v":202324},{"$f":"(((AAMC_Raw_Data_for_FY22[[#This Row],[75th]]-AAMC_Raw_Data_for_FY22[[#This Row],[Median]])/25)*10) + AAMC_Raw_Data_for_FY22[[#This Row],[Median]]","v":210676},{"$f":"(((AAMC_Raw_Data_for_FY22[[#This Row],[75th]]-AAMC_Raw_Data_for_FY22[[#This Row],[Median]])/25)*15) + AAMC_Raw_Data_for_FY22[[#This Row],[Median]]","v":219028},{"$f":"(((AAMC_Raw_Data_for_FY22[[#This Row],[75th]]-AAMC_Raw_Data_for_FY22[[#This Row],[Median]])/25)*20) + AAMC_Raw_Data_for_FY22[[#This Row],[Median]]","v":227380},235732,{"$f":"(((AAMC_Raw_Data_for_FY22[[#This Row],[75th]]-AAMC_Raw_Data_for_FY22[[#This Row],[Median]])/25)*30) + AAMC_Raw_Data_for_FY22[[#This Row],[Median]]","v":244084},{"$f":"(((AAMC_Raw_Data_for_FY22[[#This Row],[75th]]-AAMC_Raw_Data_for_FY22[[#This Row],[Median]])/25)*35) + AAMC_Raw_Data_for_FY22[[#This Row],[Median]]","v":252436},{"$f":"(((AAMC_Raw_Data_for_FY22[[#This Row],[75th]]-AAMC_Raw_Data_for_FY22[[#This Row],[Median]])/25)*40) + AAMC_Raw_Data_for_FY22[[#This Row],[Median]]","v":260788}]
[{"$f":"AAMC_Raw_Data_for_FY22[[#This Row],[Source]]&AAMC_Raw_Data_for_FY22[[#This Row],[Type]]&AAMC_Raw_Data_for_FY22[[#This Row],[School Subset]]&AAMC_Raw_Data_for_FY22[[#This Row],[Rank]]&AAMC_Raw_Data_for_FY22[[#This Row],[Degree]]&AAMC_Raw_Data_for_FY22[[#This Row],[Department / Specialty]]&\"L\"","v":"AAMCAcademicPublicChiefPhDMicrobiologyL"},"Microbiology",6,"AAMC","Academic","Public","Chief","PhD","2021-2022",null,{"$f":"(((AAMC_Raw_Data_for_FY22[[#This Row],[Median]]-AAMC_Raw_Data_for_FY22[[#This Row],[25th]])/25)*5) + AAMC_Raw_Data_for_FY22[[#This Row],[25th]]","v":0},{"$f":"(((AAMC_Raw_Data_for_FY22[[#This Row],[Median]]-AAMC_Raw_Data_for_FY22[[#This Row],[25th]])/25)*10) + AAMC_Raw_Data_for_FY22[[#This Row],[25th]]","v":0},{"$f":"(((AAMC_Raw_Data_for_FY22[[#This Row],[Median]]-AAMC_Raw_Data_for_FY22[[#This Row],[25th]])/25)*15) + AAMC_Raw_Data_for_FY22[[#This Row],[25th]]","v":0},{"$f":"(((AAMC_Raw_Data_for_FY22[[#This Row],[Median]]-AAMC_Raw_Data_for_FY22[[#This Row],[25th]])/25)*20) + AAMC_Raw_Data_for_FY22[[#This Row],[25th]]","v":0},null,{"$f":"(((AAMC_Raw_Data_for_FY22[[#This Row],[75th]]-AAMC_Raw_Data_for_FY22[[#This Row],[Median]])/25)*5) + AAMC_Raw_Data_for_FY22[[#This Row],[Median]]","v":0},{"$f":"(((AAMC_Raw_Data_for_FY22[[#This Row],[75th]]-AAMC_Raw_Data_for_FY22[[#This Row],[Median]])/25)*10) + AAMC_Raw_Data_for_FY22[[#This Row],[Median]]","v":0},{"$f":"(((AAMC_Raw_Data_for_FY22[[#This Row],[75th]]-AAMC_Raw_Data_for_FY22[[#This Row],[Median]])/25)*15) + AAMC_Raw_Data_for_FY22[[#This Row],[Median]]","v":0},{"$f":"(((AAMC_Raw_Data_for_FY22[[#This Row],[75th]]-AAMC_Raw_Data_for_FY22[[#This Row],[Median]])/25)*20) + AAMC_Raw_Data_for_FY22[[#This Row],[Median]]","v":0},null,{"$f":"(((AAMC_Raw_Data_for_FY22[[#This Row],[75th]]-AAMC_Raw_Data_for_FY22[[#This Row],[Median]])/25)*30) + AAMC_Raw_Data_for_FY22[[#This Row],[Median]]","v":0},{"$f":"(((AAMC_Raw_Data_for_FY22[[#This Row],[75th]]-AAMC_Raw_Data_for_FY22[[#This Row],[Median]])/25)*35) + AAMC_Raw_Data_for_FY22[[#This Row],[Median]]","v":0},{"$f":"(((AAMC_Raw_Data_for_FY22[[#This Row],[75th]]-AAMC_Raw_Data_for_FY22[[#This Row],[Median]])/25)*40) + AAMC_Raw_Data_for_FY22[[#This Row],[Median]]","v":0}]
[{"$f":"AAMC_Raw_Data_for_FY22[[#This Row],[Source]]&AAMC_Raw_Data_for_FY22[[#This Row],[Type]]&AAMC_Raw_Data_for_FY22[[#This Row],[School Subset]]&AAMC_Raw_Data_for_FY22[[#This Row],[Rank]]&AAMC_Raw_Data_for_FY22[[#This Row],[Degree]]&AAMC_Raw_Data_for_FY22[[#This Row],[Department / Specialty]]&\"L\"","v":"AAMCAcademicPublicChairPhDMicrobiologyL"},"Microbiology",1,"AAMC","Academic","Public","Chair","PhD","2021-2022",262700,{"$f":"(((AAMC_Raw_Data_for_FY22[[#This Row],[Median]]-AAMC_Raw_Data_for_FY22[[#This Row],[25th]])/25)*5) + AAMC_Raw_Data_for_FY22[[#This Row],[25th]]","v":270923.40000000002},{"$f":"(((AAMC_Raw_Data_for_FY22[[#This Row],[Median]]-AAMC_Raw_Data_for_FY22[[#This Row],[25th]])/25)*10) + AAMC_Raw_Data_for_FY22[[#This Row],[25th]]","v":279146.8},{"$f":"(((AAMC_Raw_Data_for_FY22[[#This Row],[Median]]-AAMC_Raw_Data_for_FY22[[#This Row],[25th]])/25)*15) + AAMC_Raw_Data_for_FY22[[#This Row],[25th]]","v":287370.2},{"$f":"(((AAMC_Raw_Data_for_FY22[[#This Row],[Median]]-AAMC_Raw_Data_for_FY22[[#This Row],[25th]])/25)*20) + AAMC_Raw_Data_for_FY22[[#This Row],[25th]]","v":295593.59999999998},303817,{"$f":"(((AAMC_Raw_Data_for_FY22[[#This Row],[75th]]-AAMC_Raw_Data_for_FY22[[#This Row],[Median]])/25)*5) + AAMC_Raw_Data_for_FY22[[#This Row],[Median]]","v":314493.59999999998},{"$f":"(((AAMC_Raw_Data_for_FY22[[#This Row],[75th]]-AAMC_Raw_Data_for_FY22[[#This Row],[Median]])/25)*10) + AAMC_Raw_Data_for_FY22[[#This Row],[Median]]","v":325170.2},{"$f":"(((AAMC_Raw_Data_for_FY22[[#This Row],[75th]]-AAMC_Raw_Data_for_FY22[[#This Row],[Median]])/25)*15) + AAMC_Raw_Data_for_FY22[[#This Row],[Median]]","v":335846.8},{"$f":"(((AAMC_Raw_Data_for_FY22[[#This Row],[75th]]-AAMC_Raw_Data_for_FY22[[#This Row],[Median]])/25)*20) + AAMC_Raw_Data_for_FY22[[#This Row],[Median]]","v":346523.4},357200,{"$f":"(((AAMC_Raw_Data_for_FY22[[#This Row],[75th]]-AAMC_Raw_Data_for_FY22[[#This Row],[Median]])/25)*30) + AAMC_Raw_Data_for_FY22[[#This Row],[Median]]","v":367876.6},{"$f":"(((AAMC_Raw_Data_for_FY22[[#This Row],[75th]]-AAMC_Raw_Data_for_FY22[[#This Row],[Median]])/25)*35) + AAMC_Raw_Data_for_FY22[[#This Row],[Median]]","v":378553.2},{"$f":"(((AAMC_Raw_Data_for_FY22[[#This Row],[75th]]-AAMC_Raw_Data_for_FY22[[#This Row],[Median]])/25)*40) + AAMC_Raw_Data_for_FY22[[#This Row],[Median]]","v":389229.8}]
[{"$f":"AAMC_Raw_Data_for_FY22[[#This Row],[Source]]&AAMC_Raw_Data_for_FY22[[#This Row],[Type]]&AAMC_Raw_Data_for_FY22[[#This Row],[School Subset]]&AAMC_Raw_Data_for_FY22[[#This Row],[Rank]]&AAMC_Raw_Data_for_FY22[[#This Row],[Degree]]&AAMC_Raw_Data_for_FY22[[#This Row],[Department / Specialty]]&\"L\"","v":"AAMCAcademicPublicInstructorPhDMolecular & Cellular BiologyL"},"Molecular & Cellular Biology",5,"AAMC","Academic","Public","Instructor","PhD","2021-2022",61800,{"$f":"(((AAMC_Raw_Data_for_FY22[[#This Row],[Median]]-AAMC_Raw_Data_for_FY22[[#This Row],[25th]])/25)*5) + AAMC_Raw_Data_for_FY22[[#This Row],[25th]]","v":62440},{"$f":"(((AAMC_Raw_Data_for_FY22[[#This Row],[Median]]-AAMC_Raw_Data_for_FY22[[#This Row],[25th]])/25)*10) + AAMC_Raw_Data_for_FY22[[#This Row],[25th]]","v":63080},{"$f":"(((AAMC_Raw_Data_for_FY22[[#This Row],[Median]]-AAMC_Raw_Data_for_FY22[[#This Row],[25th]])/25)*15) + AAMC_Raw_Data_for_FY22[[#This Row],[25th]]","v":63720},{"$f":"(((AAMC_Raw_Data_for_FY22[[#This Row],[Median]]-AAMC_Raw_Data_for_FY22[[#This Row],[25th]])/25)*20) + AAMC_Raw_Data_for_FY22[[#This Row],[25th]]","v":64360},65000,{"$f":"(((AAMC_Raw_Data_for_FY22[[#This Row],[75th]]-AAMC_Raw_Data_for_FY22[[#This Row],[Median]])/25)*5) + AAMC_Raw_Data_for_FY22[[#This Row],[Median]]","v":66118.2},{"$f":"(((AAMC_Raw_Data_for_FY22[[#This Row],[75th]]-AAMC_Raw_Data_for_FY22[[#This Row],[Median]])/25)*10) + AAMC_Raw_Data_for_FY22[[#This Row],[Median]]","v":67236.399999999994},{"$f":"(((AAMC_Raw_Data_for_FY22[[#This Row],[75th]]-AAMC_Raw_Data_for_FY22[[#This Row],[Median]])/25)*15) + AAMC_Raw_Data_for_FY22[[#This Row],[Median]]","v":68354.600000000006},{"$f":"(((AAMC_Raw_Data_for_FY22[[#This Row],[75th]]-AAMC_Raw_Data_for_FY22[[#This Row],[Median]])/25)*20) + AAMC_Raw_Data_for_FY22[[#This Row],[Median]]","v":69472.800000000003},70591,{"$f":"(((AAMC_Raw_Data_for_FY22[[#This Row],[75th]]-AAMC_Raw_Data_for_FY22[[#This Row],[Median]])/25)*30) + AAMC_Raw_Data_for_FY22[[#This Row],[Median]]","v":71709.2},{"$f":"(((AAMC_Raw_Data_for_FY22[[#This Row],[75th]]-AAMC_Raw_Data_for_FY22[[#This Row],[Median]])/25)*35) + AAMC_Raw_Data_for_FY22[[#This Row],[Median]]","v":72827.399999999994},{"$f":"(((AAMC_Raw_Data_for_FY22[[#This Row],[75th]]-AAMC_Raw_Data_for_FY22[[#This Row],[Median]])/25)*40) + AAMC_Raw_Data_for_FY22[[#This Row],[Median]]","v":73945.600000000006}]
[{"$f":"AAMC_Raw_Data_for_FY22[[#This Row],[Source]]&AAMC_Raw_Data_for_FY22[[#This Row],[Type]]&AAMC_Raw_Data_for_FY22[[#This Row],[School Subset]]&AAMC_Raw_Data_for_FY22[[#This Row],[Rank]]&AAMC_Raw_Data_for_FY22[[#This Row],[Degree]]&AAMC_Raw_Data_for_FY22[[#This Row],[Department / Specialty]]&\"L\"","v":"AAMCAcademicPublicAssistantPhDMolecular & Cellular BiologyL"},"Molecular & Cellular Biology",4,"AAMC","Academic","Public","Assistant","PhD","2021-2022",93998,{"$f":"(((AAMC_Raw_Data_for_FY22[[#This Row],[Median]]-AAMC_Raw_Data_for_FY22[[#This Row],[25th]])/25)*5) + AAMC_Raw_Data_for_FY22[[#This Row],[25th]]","v":96439.6},{"$f":"(((AAMC_Raw_Data_for_FY22[[#This Row],[Median]]-AAMC_Raw_Data_for_FY22[[#This Row],[25th]])/25)*10) + AAMC_Raw_Data_for_FY22[[#This Row],[25th]]","v":98881.2},{"$f":"(((AAMC_Raw_Data_for_FY22[[#This Row],[Median]]-AAMC_Raw_Data_for_FY22[[#This Row],[25th]])/25)*15) + AAMC_Raw_Data_for_FY22[[#This Row],[25th]]","v":101322.8},{"$f":"(((AAMC_Raw_Data_for_FY22[[#This Row],[Median]]-AAMC_Raw_Data_for_FY22[[#This Row],[25th]])/25)*20) + AAMC_Raw_Data_for_FY22[[#This Row],[25th]]","v":103764.4},106206,{"$f":"(((AAMC_Raw_Data_for_FY22[[#This Row],[75th]]-AAMC_Raw_Data_for_FY22[[#This Row],[Median]])/25)*5) + AAMC_Raw_Data_for_FY22[[#This Row],[Median]]","v":109564.8},{"$f":"(((AAMC_Raw_Data_for_FY22[[#This Row],[75th]]-AAMC_Raw_Data_for_FY22[[#This Row],[Median]])/25)*10) + AAMC_Raw_Data_for_FY22[[#This Row],[Median]]","v":112923.6},{"$f":"(((AAMC_Raw_Data_for_FY22[[#This Row],[75th]]-AAMC_Raw_Data_for_FY22[[#This Row],[Median]])/25)*15) + AAMC_Raw_Data_for_FY22[[#This Row],[Median]]","v":116282.4},{"$f":"(((AAMC_Raw_Data_for_FY22[[#This Row],[75th]]-AAMC_Raw_Data_for_FY22[[#This Row],[Median]])/25)*20) + AAMC_Raw_Data_for_FY22[[#This Row],[Median]]","v":119641.2},123000,{"$f":"(((AAMC_Raw_Data_for_FY22[[#This Row],[75th]]-AAMC_Raw_Data_for_FY22[[#This Row],[Median]])/25)*30) + AAMC_Raw_Data_for_FY22[[#This Row],[Median]]","v":126358.8},{"$f":"(((AAMC_Raw_Data_for_FY22[[#This Row],[75th]]-AAMC_Raw_Data_for_FY22[[#This Row],[Median]])/25)*35) + AAMC_Raw_Data_for_FY22[[#This Row],[Median]]","v":129717.6},{"$f":"(((AAMC_Raw_Data_for_FY22[[#This Row],[75th]]-AAMC_Raw_Data_for_FY22[[#This Row],[Median]])/25)*40) + AAMC_Raw_Data_for_FY22[[#This Row],[Median]]","v":133076.4}]
[{"$f":"AAMC_Raw_Data_for_FY22[[#This Row],[Source]]&AAMC_Raw_Data_for_FY22[[#This Row],[Type]]&AAMC_Raw_Data_for_FY22[[#This Row],[School Subset]]&AAMC_Raw_Data_for_FY22[[#This Row],[Rank]]&AAMC_Raw_Data_for_FY22[[#This Row],[Degree]]&AAMC_Raw_Data_for_FY22[[#This Row],[Department / Specialty]]&\"L\"","v":"AAMCAcademicPublicAssociatePhDMolecular & Cellular BiologyL"},"Molecular & Cellular Biology",3,"AAMC","Academic","Public","Associate","PhD","2021-2022",122796,{"$f":"(((AAMC_Raw_Data_for_FY22[[#This Row],[Median]]-AAMC_Raw_Data_for_FY22[[#This Row],[25th]])/25)*5) + AAMC_Raw_Data_for_FY22[[#This Row],[25th]]","v":125342.8},{"$f":"(((AAMC_Raw_Data_for_FY22[[#This Row],[Median]]-AAMC_Raw_Data_for_FY22[[#This Row],[25th]])/25)*10) + AAMC_Raw_Data_for_FY22[[#This Row],[25th]]","v":127889.60000000001},{"$f":"(((AAMC_Raw_Data_for_FY22[[#This Row],[Median]]-AAMC_Raw_Data_for_FY22[[#This Row],[25th]])/25)*15) + AAMC_Raw_Data_for_FY22[[#This Row],[25th]]","v":130436.4},{"$f":"(((AAMC_Raw_Data_for_FY22[[#This Row],[Median]]-AAMC_Raw_Data_for_FY22[[#This Row],[25th]])/25)*20) + AAMC_Raw_Data_for_FY22[[#This Row],[25th]]","v":132983.20000000001},135530,{"$f":"(((AAMC_Raw_Data_for_FY22[[#This Row],[75th]]-AAMC_Raw_Data_for_FY22[[#This Row],[Median]])/25)*5) + AAMC_Raw_Data_for_FY22[[#This Row],[Median]]","v":139390.39999999999},{"$f":"(((AAMC_Raw_Data_for_FY22[[#This Row],[75th]]-AAMC_Raw_Data_for_FY22[[#This Row],[Median]])/25)*10) + AAMC_Raw_Data_for_FY22[[#This Row],[Median]]","v":143250.79999999999},{"$f":"(((AAMC_Raw_Data_for_FY22[[#This Row],[75th]]-AAMC_Raw_Data_for_FY22[[#This Row],[Median]])/25)*15) + AAMC_Raw_Data_for_FY22[[#This Row],[Median]]","v":147111.20000000001},{"$f":"(((AAMC_Raw_Data_for_FY22[[#This Row],[75th]]-AAMC_Raw_Data_for_FY22[[#This Row],[Median]])/25)*20) + AAMC_Raw_Data_for_FY22[[#This Row],[Median]]","v":150971.6},154832,{"$f":"(((AAMC_Raw_Data_for_FY22[[#This Row],[75th]]-AAMC_Raw_Data_for_FY22[[#This Row],[Median]])/25)*30) + AAMC_Raw_Data_for_FY22[[#This Row],[Median]]","v":158692.4},{"$f":"(((AAMC_Raw_Data_for_FY22[[#This Row],[75th]]-AAMC_Raw_Data_for_FY22[[#This Row],[Median]])/25)*35) + AAMC_Raw_Data_for_FY22[[#This Row],[Median]]","v":162552.79999999999},{"$f":"(((AAMC_Raw_Data_for_FY22[[#This Row],[75th]]-AAMC_Raw_Data_for_FY22[[#This Row],[Median]])/25)*40) + AAMC_Raw_Data_for_FY22[[#This Row],[Median]]","v":166413.20000000001}]
[{"$f":"AAMC_Raw_Data_for_FY22[[#This Row],[Source]]&AAMC_Raw_Data_for_FY22[[#This Row],[Type]]&AAMC_Raw_Data_for_FY22[[#This Row],[School Subset]]&AAMC_Raw_Data_for_FY22[[#This Row],[Rank]]&AAMC_Raw_Data_for_FY22[[#This Row],[Degree]]&AAMC_Raw_Data_for_FY22[[#This Row],[Department / Specialty]]&\"L\"","v":"AAMCAcademicPublicProfessorPhDMolecular & Cellular BiologyL"},"Molecular & Cellular Biology",2,"AAMC","Academic","Public","Professor","PhD","2021-2022",170394,{"$f":"(((AAMC_Raw_Data_for_FY22[[#This Row],[Median]]-AAMC_Raw_Data_for_FY22[[#This Row],[25th]])/25)*5) + AAMC_Raw_Data_for_FY22[[#This Row],[25th]]","v":174585.8},{"$f":"(((AAMC_Raw_Data_for_FY22[[#This Row],[Median]]-AAMC_Raw_Data_for_FY22[[#This Row],[25th]])/25)*10) + AAMC_Raw_Data_for_FY22[[#This Row],[25th]]","v":178777.60000000001},{"$f":"(((AAMC_Raw_Data_for_FY22[[#This Row],[Median]]-AAMC_Raw_Data_for_FY22[[#This Row],[25th]])/25)*15) + AAMC_Raw_Data_for_FY22[[#This Row],[25th]]","v":182969.4},{"$f":"(((AAMC_Raw_Data_for_FY22[[#This Row],[Median]]-AAMC_Raw_Data_for_FY22[[#This Row],[25th]])/25)*20) + AAMC_Raw_Data_for_FY22[[#This Row],[25th]]","v":187161.2},191353,{"$f":"(((AAMC_Raw_Data_for_FY22[[#This Row],[75th]]-AAMC_Raw_Data_for_FY22[[#This Row],[Median]])/25)*5) + AAMC_Raw_Data_for_FY22[[#This Row],[Median]]","v":200676.2},{"$f":"(((AAMC_Raw_Data_for_FY22[[#This Row],[75th]]-AAMC_Raw_Data_for_FY22[[#This Row],[Median]])/25)*10) + AAMC_Raw_Data_for_FY22[[#This Row],[Median]]","v":209999.4},{"$f":"(((AAMC_Raw_Data_for_FY22[[#This Row],[75th]]-AAMC_Raw_Data_for_FY22[[#This Row],[Median]])/25)*15) + AAMC_Raw_Data_for_FY22[[#This Row],[Median]]","v":219322.6},{"$f":"(((AAMC_Raw_Data_for_FY22[[#This Row],[75th]]-AAMC_Raw_Data_for_FY22[[#This Row],[Median]])/25)*20) + AAMC_Raw_Data_for_FY22[[#This Row],[Median]]","v":228645.8},237969,{"$f":"(((AAMC_Raw_Data_for_FY22[[#This Row],[75th]]-AAMC_Raw_Data_for_FY22[[#This Row],[Median]])/25)*30) + AAMC_Raw_Data_for_FY22[[#This Row],[Median]]","v":247292.2},{"$f":"(((AAMC_Raw_Data_for_FY22[[#This Row],[75th]]-AAMC_Raw_Data_for_FY22[[#This Row],[Median]])/25)*35) + AAMC_Raw_Data_for_FY22[[#This Row],[Median]]","v":256615.4},{"$f":"(((AAMC_Raw_Data_for_FY22[[#This Row],[75th]]-AAMC_Raw_Data_for_FY22[[#This Row],[Median]])/25)*40) + AAMC_Raw_Data_for_FY22[[#This Row],[Median]]","v":265938.59999999998}]
[{"$f":"AAMC_Raw_Data_for_FY22[[#This Row],[Source]]&AAMC_Raw_Data_for_FY22[[#This Row],[Type]]&AAMC_Raw_Data_for_FY22[[#This Row],[School Subset]]&AAMC_Raw_Data_for_FY22[[#This Row],[Rank]]&AAMC_Raw_Data_for_FY22[[#This Row],[Degree]]&AAMC_Raw_Data_for_FY22[[#This Row],[Department / Specialty]]&\"L\"","v":"AAMCAcademicPublicChiefPhDMolecular & Cellular BiologyL"},"Molecular & Cellular Biology",6,"AAMC","Academic","Public","Chief","PhD","2021-2022",271995,{"$f":"(((AAMC_Raw_Data_for_FY22[[#This Row],[Median]]-AAMC_Raw_Data_for_FY22[[#This Row],[25th]])/25)*5) + AAMC_Raw_Data_for_FY22[[#This Row],[25th]]","v":275096.59999999998},{"$f":"(((AAMC_Raw_Data_for_FY22[[#This Row],[Median]]-AAMC_Raw_Data_for_FY22[[#This Row],[25th]])/25)*10) + AAMC_Raw_Data_for_FY22[[#This Row],[25th]]","v":278198.2},{"$f":"(((AAMC_Raw_Data_for_FY22[[#This Row],[Median]]-AAMC_Raw_Data_for_FY22[[#This Row],[25th]])/25)*15) + AAMC_Raw_Data_for_FY22[[#This Row],[25th]]","v":281299.8},{"$f":"(((AAMC_Raw_Data_for_FY22[[#This Row],[Median]]-AAMC_Raw_Data_for_FY22[[#This Row],[25th]])/25)*20) + AAMC_Raw_Data_for_FY22[[#This Row],[25th]]","v":284401.40000000002},287503,{"$f":"(((AAMC_Raw_Data_for_FY22[[#This Row],[75th]]-AAMC_Raw_Data_for_FY22[[#This Row],[Median]])/25)*5) + AAMC_Raw_Data_for_FY22[[#This Row],[Median]]","v":302219},{"$f":"(((AAMC_Raw_Data_for_FY22[[#This Row],[75th]]-AAMC_Raw_Data_for_FY22[[#This Row],[Median]])/25)*10) + AAMC_Raw_Data_for_FY22[[#This Row],[Median]]","v":316935},{"$f":"(((AAMC_Raw_Data_for_FY22[[#This Row],[75th]]-AAMC_Raw_Data_for_FY22[[#This Row],[Median]])/25)*15) + AAMC_Raw_Data_for_FY22[[#This Row],[Median]]","v":331651},{"$f":"(((AAMC_Raw_Data_for_FY22[[#This Row],[75th]]-AAMC_Raw_Data_for_FY22[[#This Row],[Median]])/25)*20) + AAMC_Raw_Data_for_FY22[[#This Row],[Median]]","v":346367},361083,{"$f":"(((AAMC_Raw_Data_for_FY22[[#This Row],[75th]]-AAMC_Raw_Data_for_FY22[[#This Row],[Median]])/25)*30) + AAMC_Raw_Data_for_FY22[[#This Row],[Median]]","v":375799},{"$f":"(((AAMC_Raw_Data_for_FY22[[#This Row],[75th]]-AAMC_Raw_Data_for_FY22[[#This Row],[Median]])/25)*35) + AAMC_Raw_Data_for_FY22[[#This Row],[Median]]","v":390515},{"$f":"(((AAMC_Raw_Data_for_FY22[[#This Row],[75th]]-AAMC_Raw_Data_for_FY22[[#This Row],[Median]])/25)*40) + AAMC_Raw_Data_for_FY22[[#This Row],[Median]]","v":405231}]
[{"$f":"AAMC_Raw_Data_for_FY22[[#This Row],[Source]]&AAMC_Raw_Data_for_FY22[[#This Row],[Type]]&AAMC_Raw_Data_for_FY22[[#This Row],[School Subset]]&AAMC_Raw_Data_for_FY22[[#This Row],[Rank]]&AAMC_Raw_Data_for_FY22[[#This Row],[Degree]]&AAMC_Raw_Data_for_FY22[[#This Row],[Department / Specialty]]&\"L\"","v":"AAMCAcademicPublicChairPhDMolecular & Cellular BiologyL"},"Molecular & Cellular Biology",1,"AAMC","Academic","Public","Chair","PhD","2021-2022",297804,{"$f":"(((AAMC_Raw_Data_for_FY22[[#This Row],[Median]]-AAMC_Raw_Data_for_FY22[[#This Row],[25th]])/25)*5) + AAMC_Raw_Data_for_FY22[[#This Row],[25th]]","v":309017},{"$f":"(((AAMC_Raw_Data_for_FY22[[#This Row],[Median]]-AAMC_Raw_Data_for_FY22[[#This Row],[25th]])/25)*10) + AAMC_Raw_Data_for_FY22[[#This Row],[25th]]","v":320230},{"$f":"(((AAMC_Raw_Data_for_FY22[[#This Row],[Median]]-AAMC_Raw_Data_for_FY22[[#This Row],[25th]])/25)*15) + AAMC_Raw_Data_for_FY22[[#This Row],[25th]]","v":331443},{"$f":"(((AAMC_Raw_Data_for_FY22[[#This Row],[Median]]-AAMC_Raw_Data_for_FY22[[#This Row],[25th]])/25)*20) + AAMC_Raw_Data_for_FY22[[#This Row],[25th]]","v":342656},353869,{"$f":"(((AAMC_Raw_Data_for_FY22[[#This Row],[75th]]-AAMC_Raw_Data_for_FY22[[#This Row],[Median]])/25)*5) + AAMC_Raw_Data_for_FY22[[#This Row],[Median]]","v":366392.4},{"$f":"(((AAMC_Raw_Data_for_FY22[[#This Row],[75th]]-AAMC_Raw_Data_for_FY22[[#This Row],[Median]])/25)*10) + AAMC_Raw_Data_for_FY22[[#This Row],[Median]]","v":378915.8},{"$f":"(((AAMC_Raw_Data_for_FY22[[#This Row],[75th]]-AAMC_Raw_Data_for_FY22[[#This Row],[Median]])/25)*15) + AAMC_Raw_Data_for_FY22[[#This Row],[Median]]","v":391439.2},{"$f":"(((AAMC_Raw_Data_for_FY22[[#This Row],[75th]]-AAMC_Raw_Data_for_FY22[[#This Row],[Median]])/25)*20) + AAMC_Raw_Data_for_FY22[[#This Row],[Median]]","v":403962.6},416486,{"$f":"(((AAMC_Raw_Data_for_FY22[[#This Row],[75th]]-AAMC_Raw_Data_for_FY22[[#This Row],[Median]])/25)*30) + AAMC_Raw_Data_for_FY22[[#This Row],[Median]]","v":429009.4},{"$f":"(((AAMC_Raw_Data_for_FY22[[#This Row],[75th]]-AAMC_Raw_Data_for_FY22[[#This Row],[Median]])/25)*35) + AAMC_Raw_Data_for_FY22[[#This Row],[Median]]","v":441532.8},{"$f":"(((AAMC_Raw_Data_for_FY22[[#This Row],[75th]]-AAMC_Raw_Data_for_FY22[[#This Row],[Median]])/25)*40) + AAMC_Raw_Data_for_FY22[[#This Row],[Median]]","v":454056.2}]
[{"$f":"AAMC_Raw_Data_for_FY22[[#This Row],[Source]]&AAMC_Raw_Data_for_FY22[[#This Row],[Type]]&AAMC_Raw_Data_for_FY22[[#This Row],[School Subset]]&AAMC_Raw_Data_for_FY22[[#This Row],[Rank]]&AAMC_Raw_Data_for_FY22[[#This Row],[Degree]]&AAMC_Raw_Data_for_FY22[[#This Row],[Department / Specialty]]&\"L\"","v":"AAMCAcademicPublicInstructorPhDNeurosciencesL"},"Neurosciences",5,"AAMC","Academic","Public","Instructor","PhD","2021-2022",60000,{"$f":"(((AAMC_Raw_Data_for_FY22[[#This Row],[Median]]-AAMC_Raw_Data_for_FY22[[#This Row],[25th]])/25)*5) + AAMC_Raw_Data_for_FY22[[#This Row],[25th]]","v":60720},{"$f":"(((AAMC_Raw_Data_for_FY22[[#This Row],[Median]]-AAMC_Raw_Data_for_FY22[[#This Row],[25th]])/25)*10) + AAMC_Raw_Data_for_FY22[[#This Row],[25th]]","v":61440},{"$f":"(((AAMC_Raw_Data_for_FY22[[#This Row],[Median]]-AAMC_Raw_Data_for_FY22[[#This Row],[25th]])/25)*15) + AAMC_Raw_Data_for_FY22[[#This Row],[25th]]","v":62160},{"$f":"(((AAMC_Raw_Data_for_FY22[[#This Row],[Median]]-AAMC_Raw_Data_for_FY22[[#This Row],[25th]])/25)*20) + AAMC_Raw_Data_for_FY22[[#This Row],[25th]]","v":62880},63600,{"$f":"(((AAMC_Raw_Data_for_FY22[[#This Row],[75th]]-AAMC_Raw_Data_for_FY22[[#This Row],[Median]])/25)*5) + AAMC_Raw_Data_for_FY22[[#This Row],[Median]]","v":64922},{"$f":"(((AAMC_Raw_Data_for_FY22[[#This Row],[75th]]-AAMC_Raw_Data_for_FY22[[#This Row],[Median]])/25)*10) + AAMC_Raw_Data_for_FY22[[#This Row],[Median]]","v":66244},{"$f":"(((AAMC_Raw_Data_for_FY22[[#This Row],[75th]]-AAMC_Raw_Data_for_FY22[[#This Row],[Median]])/25)*15) + AAMC_Raw_Data_for_FY22[[#This Row],[Median]]","v":67566},{"$f":"(((AAMC_Raw_Data_for_FY22[[#This Row],[75th]]-AAMC_Raw_Data_for_FY22[[#This Row],[Median]])/25)*20) + AAMC_Raw_Data_for_FY22[[#This Row],[Median]]","v":68888},70210,{"$f":"(((AAMC_Raw_Data_for_FY22[[#This Row],[75th]]-AAMC_Raw_Data_for_FY22[[#This Row],[Median]])/25)*30) + AAMC_Raw_Data_for_FY22[[#This Row],[Median]]","v":71532},{"$f":"(((AAMC_Raw_Data_for_FY22[[#This Row],[75th]]-AAMC_Raw_Data_for_FY22[[#This Row],[Median]])/25)*35) + AAMC_Raw_Data_for_FY22[[#This Row],[Median]]","v":72854},{"$f":"(((AAMC_Raw_Data_for_FY22[[#This Row],[75th]]-AAMC_Raw_Data_for_FY22[[#This Row],[Median]])/25)*40) + AAMC_Raw_Data_for_FY22[[#This Row],[Median]]","v":74176}]
[{"$f":"AAMC_Raw_Data_for_FY22[[#This Row],[Source]]&AAMC_Raw_Data_for_FY22[[#This Row],[Type]]&AAMC_Raw_Data_for_FY22[[#This Row],[School Subset]]&AAMC_Raw_Data_for_FY22[[#This Row],[Rank]]&AAMC_Raw_Data_for_FY22[[#This Row],[Degree]]&AAMC_Raw_Data_for_FY22[[#This Row],[Department / Specialty]]&\"L\"","v":"AAMCAcademicPublicAssistantPhDNeurosciencesL"},"Neurosciences",4,"AAMC","Academic","Public","Assistant","PhD","2021-2022",84541,{"$f":"(((AAMC_Raw_Data_for_FY22[[#This Row],[Median]]-AAMC_Raw_Data_for_FY22[[#This Row],[25th]])/25)*5) + AAMC_Raw_Data_for_FY22[[#This Row],[25th]]","v":89170.6},{"$f":"(((AAMC_Raw_Data_for_FY22[[#This Row],[Median]]-AAMC_Raw_Data_for_FY22[[#This Row],[25th]])/25)*10) + AAMC_Raw_Data_for_FY22[[#This Row],[25th]]","v":93800.2},{"$f":"(((AAMC_Raw_Data_for_FY22[[#This Row],[Median]]-AAMC_Raw_Data_for_FY22[[#This Row],[25th]])/25)*15) + AAMC_Raw_Data_for_FY22[[#This Row],[25th]]","v":98429.8},{"$f":"(((AAMC_Raw_Data_for_FY22[[#This Row],[Median]]-AAMC_Raw_Data_for_FY22[[#This Row],[25th]])/25)*20) + AAMC_Raw_Data_for_FY22[[#This Row],[25th]]","v":103059.4},107689,{"$f":"(((AAMC_Raw_Data_for_FY22[[#This Row],[75th]]-AAMC_Raw_Data_for_FY22[[#This Row],[Median]])/25)*5) + AAMC_Raw_Data_for_FY22[[#This Row],[Median]]","v":110400.2},{"$f":"(((AAMC_Raw_Data_for_FY22[[#This Row],[75th]]-AAMC_Raw_Data_for_FY22[[#This Row],[Median]])/25)*10) + AAMC_Raw_Data_for_FY22[[#This Row],[Median]]","v":113111.4},{"$f":"(((AAMC_Raw_Data_for_FY22[[#This Row],[75th]]-AAMC_Raw_Data_for_FY22[[#This Row],[Median]])/25)*15) + AAMC_Raw_Data_for_FY22[[#This Row],[Median]]","v":115822.6},{"$f":"(((AAMC_Raw_Data_for_FY22[[#This Row],[75th]]-AAMC_Raw_Data_for_FY22[[#This Row],[Median]])/25)*20) + AAMC_Raw_Data_for_FY22[[#This Row],[Median]]","v":118533.8},121245,{"$f":"(((AAMC_Raw_Data_for_FY22[[#This Row],[75th]]-AAMC_Raw_Data_for_FY22[[#This Row],[Median]])/25)*30) + AAMC_Raw_Data_for_FY22[[#This Row],[Median]]","v":123956.2},{"$f":"(((AAMC_Raw_Data_for_FY22[[#This Row],[75th]]-AAMC_Raw_Data_for_FY22[[#This Row],[Median]])/25)*35) + AAMC_Raw_Data_for_FY22[[#This Row],[Median]]","v":126667.4},{"$f":"(((AAMC_Raw_Data_for_FY22[[#This Row],[75th]]-AAMC_Raw_Data_for_FY22[[#This Row],[Median]])/25)*40) + AAMC_Raw_Data_for_FY22[[#This Row],[Median]]","v":129378.6}]
[{"$f":"AAMC_Raw_Data_for_FY22[[#This Row],[Source]]&AAMC_Raw_Data_for_FY22[[#This Row],[Type]]&AAMC_Raw_Data_for_FY22[[#This Row],[School Subset]]&AAMC_Raw_Data_for_FY22[[#This Row],[Rank]]&AAMC_Raw_Data_for_FY22[[#This Row],[Degree]]&AAMC_Raw_Data_for_FY22[[#This Row],[Department / Specialty]]&\"L\"","v":"AAMCAcademicPublicAssociatePhDNeurosciencesL"},"Neurosciences",3,"AAMC","Academic","Public","Associate","PhD","2021-2022",117125,{"$f":"(((AAMC_Raw_Data_for_FY22[[#This Row],[Median]]-AAMC_Raw_Data_for_FY22[[#This Row],[25th]])/25)*5) + AAMC_Raw_Data_for_FY22[[#This Row],[25th]]","v":120385.4},{"$f":"(((AAMC_Raw_Data_for_FY22[[#This Row],[Median]]-AAMC_Raw_Data_for_FY22[[#This Row],[25th]])/25)*10) + AAMC_Raw_Data_for_FY22[[#This Row],[25th]]","v":123645.8},{"$f":"(((AAMC_Raw_Data_for_FY22[[#This Row],[Median]]-AAMC_Raw_Data_for_FY22[[#This Row],[25th]])/25)*15) + AAMC_Raw_Data_for_FY22[[#This Row],[25th]]","v":126906.2},{"$f":"(((AAMC_Raw_Data_for_FY22[[#This Row],[Median]]-AAMC_Raw_Data_for_FY22[[#This Row],[25th]])/25)*20) + AAMC_Raw_Data_for_FY22[[#This Row],[25th]]","v":130166.6},133427,{"$f":"(((AAMC_Raw_Data_for_FY22[[#This Row],[75th]]-AAMC_Raw_Data_for_FY22[[#This Row],[Median]])/25)*5) + AAMC_Raw_Data_for_FY22[[#This Row],[Median]]","v":136502},{"$f":"(((AAMC_Raw_Data_for_FY22[[#This Row],[75th]]-AAMC_Raw_Data_for_FY22[[#This Row],[Median]])/25)*10) + AAMC_Raw_Data_for_FY22[[#This Row],[Median]]","v":139577},{"$f":"(((AAMC_Raw_Data_for_FY22[[#This Row],[75th]]-AAMC_Raw_Data_for_FY22[[#This Row],[Median]])/25)*15) + AAMC_Raw_Data_for_FY22[[#This Row],[Median]]","v":142652},{"$f":"(((AAMC_Raw_Data_for_FY22[[#This Row],[75th]]-AAMC_Raw_Data_for_FY22[[#This Row],[Median]])/25)*20) + AAMC_Raw_Data_for_FY22[[#This Row],[Median]]","v":145727},148802,{"$f":"(((AAMC_Raw_Data_for_FY22[[#This Row],[75th]]-AAMC_Raw_Data_for_FY22[[#This Row],[Median]])/25)*30) + AAMC_Raw_Data_for_FY22[[#This Row],[Median]]","v":151877},{"$f":"(((AAMC_Raw_Data_for_FY22[[#This Row],[75th]]-AAMC_Raw_Data_for_FY22[[#This Row],[Median]])/25)*35) + AAMC_Raw_Data_for_FY22[[#This Row],[Median]]","v":154952},{"$f":"(((AAMC_Raw_Data_for_FY22[[#This Row],[75th]]-AAMC_Raw_Data_for_FY22[[#This Row],[Median]])/25)*40) + AAMC_Raw_Data_for_FY22[[#This Row],[Median]]","v":158027}]
[{"$f":"AAMC_Raw_Data_for_FY22[[#This Row],[Source]]&AAMC_Raw_Data_for_FY22[[#This Row],[Type]]&AAMC_Raw_Data_for_FY22[[#This Row],[School Subset]]&AAMC_Raw_Data_for_FY22[[#This Row],[Rank]]&AAMC_Raw_Data_for_FY22[[#This Row],[Degree]]&AAMC_Raw_Data_for_FY22[[#This Row],[Department / Specialty]]&\"L\"","v":"AAMCAcademicPublicProfessorPhDNeurosciencesL"},"Neurosciences",2,"AAMC","Academic","Public","Professor","PhD","2021-2022",172900,{"$f":"(((AAMC_Raw_Data_for_FY22[[#This Row],[Median]]-AAMC_Raw_Data_for_FY22[[#This Row],[25th]])/25)*5) + AAMC_Raw_Data_for_FY22[[#This Row],[25th]]","v":178455},{"$f":"(((AAMC_Raw_Data_for_FY22[[#This Row],[Median]]-AAMC_Raw_Data_for_FY22[[#This Row],[25th]])/25)*10) + AAMC_Raw_Data_for_FY22[[#This Row],[25th]]","v":184010},{"$f":"(((AAMC_Raw_Data_for_FY22[[#This Row],[Median]]-AAMC_Raw_Data_for_FY22[[#This Row],[25th]])/25)*15) + AAMC_Raw_Data_for_FY22[[#This Row],[25th]]","v":189565},{"$f":"(((AAMC_Raw_Data_for_FY22[[#This Row],[Median]]-AAMC_Raw_Data_for_FY22[[#This Row],[25th]])/25)*20) + AAMC_Raw_Data_for_FY22[[#This Row],[25th]]","v":195120},200675,{"$f":"(((AAMC_Raw_Data_for_FY22[[#This Row],[75th]]-AAMC_Raw_Data_for_FY22[[#This Row],[Median]])/25)*5) + AAMC_Raw_Data_for_FY22[[#This Row],[Median]]","v":206625.4},{"$f":"(((AAMC_Raw_Data_for_FY22[[#This Row],[75th]]-AAMC_Raw_Data_for_FY22[[#This Row],[Median]])/25)*10) + AAMC_Raw_Data_for_FY22[[#This Row],[Median]]","v":212575.8},{"$f":"(((AAMC_Raw_Data_for_FY22[[#This Row],[75th]]-AAMC_Raw_Data_for_FY22[[#This Row],[Median]])/25)*15) + AAMC_Raw_Data_for_FY22[[#This Row],[Median]]","v":218526.2},{"$f":"(((AAMC_Raw_Data_for_FY22[[#This Row],[75th]]-AAMC_Raw_Data_for_FY22[[#This Row],[Median]])/25)*20) + AAMC_Raw_Data_for_FY22[[#This Row],[Median]]","v":224476.6},230427,{"$f":"(((AAMC_Raw_Data_for_FY22[[#This Row],[75th]]-AAMC_Raw_Data_for_FY22[[#This Row],[Median]])/25)*30) + AAMC_Raw_Data_for_FY22[[#This Row],[Median]]","v":236377.4},{"$f":"(((AAMC_Raw_Data_for_FY22[[#This Row],[75th]]-AAMC_Raw_Data_for_FY22[[#This Row],[Median]])/25)*35) + AAMC_Raw_Data_for_FY22[[#This Row],[Median]]","v":242327.8},{"$f":"(((AAMC_Raw_Data_for_FY22[[#This Row],[75th]]-AAMC_Raw_Data_for_FY22[[#This Row],[Median]])/25)*40) + AAMC_Raw_Data_for_FY22[[#This Row],[Median]]","v":248278.2}]
[{"$f":"AAMC_Raw_Data_for_FY22[[#This Row],[Source]]&AAMC_Raw_Data_for_FY22[[#This Row],[Type]]&AAMC_Raw_Data_for_FY22[[#This Row],[School Subset]]&AAMC_Raw_Data_for_FY22[[#This Row],[Rank]]&AAMC_Raw_Data_for_FY22[[#This Row],[Degree]]&AAMC_Raw_Data_for_FY22[[#This Row],[Department / Specialty]]&\"L\"","v":"AAMCAcademicPublicChiefPhDNeurosciencesL"},"Neurosciences",6,"AAMC","Academic","Public","Chief","PhD","2021-2022",null,{"$f":"(((AAMC_Raw_Data_for_FY22[[#This Row],[Median]]-AAMC_Raw_Data_for_FY22[[#This Row],[25th]])/25)*5) + AAMC_Raw_Data_for_FY22[[#This Row],[25th]]","v":0},{"$f":"(((AAMC_Raw_Data_for_FY22[[#This Row],[Median]]-AAMC_Raw_Data_for_FY22[[#This Row],[25th]])/25)*10) + AAMC_Raw_Data_for_FY22[[#This Row],[25th]]","v":0},{"$f":"(((AAMC_Raw_Data_for_FY22[[#This Row],[Median]]-AAMC_Raw_Data_for_FY22[[#This Row],[25th]])/25)*15) + AAMC_Raw_Data_for_FY22[[#This Row],[25th]]","v":0},{"$f":"(((AAMC_Raw_Data_for_FY22[[#This Row],[Median]]-AAMC_Raw_Data_for_FY22[[#This Row],[25th]])/25)*20) + AAMC_Raw_Data_for_FY22[[#This Row],[25th]]","v":0},null,{"$f":"(((AAMC_Raw_Data_for_FY22[[#This Row],[75th]]-AAMC_Raw_Data_for_FY22[[#This Row],[Median]])/25)*5) + AAMC_Raw_Data_for_FY22[[#This Row],[Median]]","v":0},{"$f":"(((AAMC_Raw_Data_for_FY22[[#This Row],[75th]]-AAMC_Raw_Data_for_FY22[[#This Row],[Median]])/25)*10) + AAMC_Raw_Data_for_FY22[[#This Row],[Median]]","v":0},{"$f":"(((AAMC_Raw_Data_for_FY22[[#This Row],[75th]]-AAMC_Raw_Data_for_FY22[[#This Row],[Median]])/25)*15) + AAMC_Raw_Data_for_FY22[[#This Row],[Median]]","v":0},{"$f":"(((AAMC_Raw_Data_for_FY22[[#This Row],[75th]]-AAMC_Raw_Data_for_FY22[[#This Row],[Median]])/25)*20) + AAMC_Raw_Data_for_FY22[[#This Row],[Median]]","v":0},null,{"$f":"(((AAMC_Raw_Data_for_FY22[[#This Row],[75th]]-AAMC_Raw_Data_for_FY22[[#This Row],[Median]])/25)*30) + AAMC_Raw_Data_for_FY22[[#This Row],[Median]]","v":0},{"$f":"(((AAMC_Raw_Data_for_FY22[[#This Row],[75th]]-AAMC_Raw_Data_for_FY22[[#This Row],[Median]])/25)*35) + AAMC_Raw_Data_for_FY22[[#This Row],[Median]]","v":0},{"$f":"(((AAMC_Raw_Data_for_FY22[[#This Row],[75th]]-AAMC_Raw_Data_for_FY22[[#This Row],[Median]])/25)*40) + AAMC_Raw_Data_for_FY22[[#This Row],[Median]]","v":0}]
[{"$f":"AAMC_Raw_Data_for_FY22[[#This Row],[Source]]&AAMC_Raw_Data_for_FY22[[#This Row],[Type]]&AAMC_Raw_Data_for_FY22[[#This Row],[School Subset]]&AAMC_Raw_Data_for_FY22[[#This Row],[Rank]]&AAMC_Raw_Data_for_FY22[[#This Row],[Degree]]&AAMC_Raw_Data_for_FY22[[#This Row],[Department / Specialty]]&\"L\"","v":"AAMCAcademicPublicChairPhDNeurosciencesL"},"Neurosciences",1,"AAMC","Academic","Public","Chair","PhD","2021-2022",268716,{"$f":"(((AAMC_Raw_Data_for_FY22[[#This Row],[Median]]-AAMC_Raw_Data_for_FY22[[#This Row],[25th]])/25)*5) + AAMC_Raw_Data_for_FY22[[#This Row],[25th]]","v":277461.8},{"$f":"(((AAMC_Raw_Data_for_FY22[[#This Row],[Median]]-AAMC_Raw_Data_for_FY22[[#This Row],[25th]])/25)*10) + AAMC_Raw_Data_for_FY22[[#This Row],[25th]]","v":286207.59999999998},{"$f":"(((AAMC_Raw_Data_for_FY22[[#This Row],[Median]]-AAMC_Raw_Data_for_FY22[[#This Row],[25th]])/25)*15) + AAMC_Raw_Data_for_FY22[[#This Row],[25th]]","v":294953.40000000002},{"$f":"(((AAMC_Raw_Data_for_FY22[[#This Row],[Median]]-AAMC_Raw_Data_for_FY22[[#This Row],[25th]])/25)*20) + AAMC_Raw_Data_for_FY22[[#This Row],[25th]]","v":303699.20000000001},312445,{"$f":"(((AAMC_Raw_Data_for_FY22[[#This Row],[75th]]-AAMC_Raw_Data_for_FY22[[#This Row],[Median]])/25)*5) + AAMC_Raw_Data_for_FY22[[#This Row],[Median]]","v":323060.59999999998},{"$f":"(((AAMC_Raw_Data_for_FY22[[#This Row],[75th]]-AAMC_Raw_Data_for_FY22[[#This Row],[Median]])/25)*10) + AAMC_Raw_Data_for_FY22[[#This Row],[Median]]","v":333676.2},{"$f":"(((AAMC_Raw_Data_for_FY22[[#This Row],[75th]]-AAMC_Raw_Data_for_FY22[[#This Row],[Median]])/25)*15) + AAMC_Raw_Data_for_FY22[[#This Row],[Median]]","v":344291.8},{"$f":"(((AAMC_Raw_Data_for_FY22[[#This Row],[75th]]-AAMC_Raw_Data_for_FY22[[#This Row],[Median]])/25)*20) + AAMC_Raw_Data_for_FY22[[#This Row],[Median]]","v":354907.4},365523,{"$f":"(((AAMC_Raw_Data_for_FY22[[#This Row],[75th]]-AAMC_Raw_Data_for_FY22[[#This Row],[Median]])/25)*30) + AAMC_Raw_Data_for_FY22[[#This Row],[Median]]","v":376138.6},{"$f":"(((AAMC_Raw_Data_for_FY22[[#This Row],[75th]]-AAMC_Raw_Data_for_FY22[[#This Row],[Median]])/25)*35) + AAMC_Raw_Data_for_FY22[[#This Row],[Median]]","v":386754.2},{"$f":"(((AAMC_Raw_Data_for_FY22[[#This Row],[75th]]-AAMC_Raw_Data_for_FY22[[#This Row],[Median]])/25)*40) + AAMC_Raw_Data_for_FY22[[#This Row],[Median]]","v":397369.8}]
[{"$f":"AAMC_Raw_Data_for_FY22[[#This Row],[Source]]&AAMC_Raw_Data_for_FY22[[#This Row],[Type]]&AAMC_Raw_Data_for_FY22[[#This Row],[School Subset]]&AAMC_Raw_Data_for_FY22[[#This Row],[Rank]]&AAMC_Raw_Data_for_FY22[[#This Row],[Degree]]&AAMC_Raw_Data_for_FY22[[#This Row],[Department / Specialty]]&\"L\"","v":"AAMCAcademicPublicInstructorPhDPharmacologyL"},"Pharmacology",5,"AAMC","Academic","Public","Instructor","PhD","2021-2022",58000,{"$f":"(((AAMC_Raw_Data_for_FY22[[#This Row],[Median]]-AAMC_Raw_Data_for_FY22[[#This Row],[25th]])/25)*5) + AAMC_Raw_Data_for_FY22[[#This Row],[25th]]","v":58760},{"$f":"(((AAMC_Raw_Data_for_FY22[[#This Row],[Median]]-AAMC_Raw_Data_for_FY22[[#This Row],[25th]])/25)*10) + AAMC_Raw_Data_for_FY22[[#This Row],[25th]]","v":59520},{"$f":"(((AAMC_Raw_Data_for_FY22[[#This Row],[Median]]-AAMC_Raw_Data_for_FY22[[#This Row],[25th]])/25)*15) + AAMC_Raw_Data_for_FY22[[#This Row],[25th]]","v":60280},{"$f":"(((AAMC_Raw_Data_for_FY22[[#This Row],[Median]]-AAMC_Raw_Data_for_FY22[[#This Row],[25th]])/25)*20) + AAMC_Raw_Data_for_FY22[[#This Row],[25th]]","v":61040},61800,{"$f":"(((AAMC_Raw_Data_for_FY22[[#This Row],[75th]]-AAMC_Raw_Data_for_FY22[[#This Row],[Median]])/25)*5) + AAMC_Raw_Data_for_FY22[[#This Row],[Median]]","v":62783.8},{"$f":"(((AAMC_Raw_Data_for_FY22[[#This Row],[75th]]-AAMC_Raw_Data_for_FY22[[#This Row],[Median]])/25)*10) + AAMC_Raw_Data_for_FY22[[#This Row],[Median]]","v":63767.6},{"$f":"(((AAMC_Raw_Data_for_FY22[[#This Row],[75th]]-AAMC_Raw_Data_for_FY22[[#This Row],[Median]])/25)*15) + AAMC_Raw_Data_for_FY22[[#This Row],[Median]]","v":64751.4},{"$f":"(((AAMC_Raw_Data_for_FY22[[#This Row],[75th]]-AAMC_Raw_Data_for_FY22[[#This Row],[Median]])/25)*20) + AAMC_Raw_Data_for_FY22[[#This Row],[Median]]","v":65735.199999999997},66719,{"$f":"(((AAMC_Raw_Data_for_FY22[[#This Row],[75th]]-AAMC_Raw_Data_for_FY22[[#This Row],[Median]])/25)*30) + AAMC_Raw_Data_for_FY22[[#This Row],[Median]]","v":67702.8},{"$f":"(((AAMC_Raw_Data_for_FY22[[#This Row],[75th]]-AAMC_Raw_Data_for_FY22[[#This Row],[Median]])/25)*35) + AAMC_Raw_Data_for_FY22[[#This Row],[Median]]","v":68686.600000000006},{"$f":"(((AAMC_Raw_Data_for_FY22[[#This Row],[75th]]-AAMC_Raw_Data_for_FY22[[#This Row],[Median]])/25)*40) + AAMC_Raw_Data_for_FY22[[#This Row],[Median]]","v":69670.399999999994}]
[{"$f":"AAMC_Raw_Data_for_FY22[[#This Row],[Source]]&AAMC_Raw_Data_for_FY22[[#This Row],[Type]]&AAMC_Raw_Data_for_FY22[[#This Row],[School Subset]]&AAMC_Raw_Data_for_FY22[[#This Row],[Rank]]&AAMC_Raw_Data_for_FY22[[#This Row],[Degree]]&AAMC_Raw_Data_for_FY22[[#This Row],[Department / Specialty]]&\"L\"","v":"AAMCAcademicPublicAssistantPhDPharmacologyL"},"Pharmacology",4,"AAMC","Academic","Public","Assistant","PhD","2021-2022",83552,{"$f":"(((AAMC_Raw_Data_for_FY22[[#This Row],[Median]]-AAMC_Raw_Data_for_FY22[[#This Row],[25th]])/25)*5) + AAMC_Raw_Data_for_FY22[[#This Row],[25th]]","v":87041.600000000006},{"$f":"(((AAMC_Raw_Data_for_FY22[[#This Row],[Median]]-AAMC_Raw_Data_for_FY22[[#This Row],[25th]])/25)*10) + AAMC_Raw_Data_for_FY22[[#This Row],[25th]]","v":90531.199999999997},{"$f":"(((AAMC_Raw_Data_for_FY22[[#This Row],[Median]]-AAMC_Raw_Data_for_FY22[[#This Row],[25th]])/25)*15) + AAMC_Raw_Data_for_FY22[[#This Row],[25th]]","v":94020.800000000003},{"$f":"(((AAMC_Raw_Data_for_FY22[[#This Row],[Median]]-AAMC_Raw_Data_for_FY22[[#This Row],[25th]])/25)*20) + AAMC_Raw_Data_for_FY22[[#This Row],[25th]]","v":97510.399999999994},101000,{"$f":"(((AAMC_Raw_Data_for_FY22[[#This Row],[75th]]-AAMC_Raw_Data_for_FY22[[#This Row],[Median]])/25)*5) + AAMC_Raw_Data_for_FY22[[#This Row],[Median]]","v":104855.4},{"$f":"(((AAMC_Raw_Data_for_FY22[[#This Row],[75th]]-AAMC_Raw_Data_for_FY22[[#This Row],[Median]])/25)*10) + AAMC_Raw_Data_for_FY22[[#This Row],[Median]]","v":108710.8},{"$f":"(((AAMC_Raw_Data_for_FY22[[#This Row],[75th]]-AAMC_Raw_Data_for_FY22[[#This Row],[Median]])/25)*15) + AAMC_Raw_Data_for_FY22[[#This Row],[Median]]","v":112566.2},{"$f":"(((AAMC_Raw_Data_for_FY22[[#This Row],[75th]]-AAMC_Raw_Data_for_FY22[[#This Row],[Median]])/25)*20) + AAMC_Raw_Data_for_FY22[[#This Row],[Median]]","v":116421.6},120277,{"$f":"(((AAMC_Raw_Data_for_FY22[[#This Row],[75th]]-AAMC_Raw_Data_for_FY22[[#This Row],[Median]])/25)*30) + AAMC_Raw_Data_for_FY22[[#This Row],[Median]]","v":124132.4},{"$f":"(((AAMC_Raw_Data_for_FY22[[#This Row],[75th]]-AAMC_Raw_Data_for_FY22[[#This Row],[Median]])/25)*35) + AAMC_Raw_Data_for_FY22[[#This Row],[Median]]","v":127987.8},{"$f":"(((AAMC_Raw_Data_for_FY22[[#This Row],[75th]]-AAMC_Raw_Data_for_FY22[[#This Row],[Median]])/25)*40) + AAMC_Raw_Data_for_FY22[[#This Row],[Median]]","v":131843.20000000001}]
[{"$f":"AAMC_Raw_Data_for_FY22[[#This Row],[Source]]&AAMC_Raw_Data_for_FY22[[#This Row],[Type]]&AAMC_Raw_Data_for_FY22[[#This Row],[School Subset]]&AAMC_Raw_Data_for_FY22[[#This Row],[Rank]]&AAMC_Raw_Data_for_FY22[[#This Row],[Degree]]&AAMC_Raw_Data_for_FY22[[#This Row],[Department / Specialty]]&\"L\"","v":"AAMCAcademicPublicAssociatePhDPharmacologyL"},"Pharmacology",3,"AAMC","Academic","Public","Associate","PhD","2021-2022",115946,{"$f":"(((AAMC_Raw_Data_for_FY22[[#This Row],[Median]]-AAMC_Raw_Data_for_FY22[[#This Row],[25th]])/25)*5) + AAMC_Raw_Data_for_FY22[[#This Row],[25th]]","v":119216},{"$f":"(((AAMC_Raw_Data_for_FY22[[#This Row],[Median]]-AAMC_Raw_Data_for_FY22[[#This Row],[25th]])/25)*10) + AAMC_Raw_Data_for_FY22[[#This Row],[25th]]","v":122486},{"$f":"(((AAMC_Raw_Data_for_FY22[[#This Row],[Median]]-AAMC_Raw_Data_for_FY22[[#This Row],[25th]])/25)*15) + AAMC_Raw_Data_for_FY22[[#This Row],[25th]]","v":125756},{"$f":"(((AAMC_Raw_Data_for_FY22[[#This Row],[Median]]-AAMC_Raw_Data_for_FY22[[#This Row],[25th]])/25)*20) + AAMC_Raw_Data_for_FY22[[#This Row],[25th]]","v":129026},132296,{"$f":"(((AAMC_Raw_Data_for_FY22[[#This Row],[75th]]-AAMC_Raw_Data_for_FY22[[#This Row],[Median]])/25)*5) + AAMC_Raw_Data_for_FY22[[#This Row],[Median]]","v":135082.20000000001},{"$f":"(((AAMC_Raw_Data_for_FY22[[#This Row],[75th]]-AAMC_Raw_Data_for_FY22[[#This Row],[Median]])/25)*10) + AAMC_Raw_Data_for_FY22[[#This Row],[Median]]","v":137868.4},{"$f":"(((AAMC_Raw_Data_for_FY22[[#This Row],[75th]]-AAMC_Raw_Data_for_FY22[[#This Row],[Median]])/25)*15) + AAMC_Raw_Data_for_FY22[[#This Row],[Median]]","v":140654.6},{"$f":"(((AAMC_Raw_Data_for_FY22[[#This Row],[75th]]-AAMC_Raw_Data_for_FY22[[#This Row],[Median]])/25)*20) + AAMC_Raw_Data_for_FY22[[#This Row],[Median]]","v":143440.79999999999},146227,{"$f":"(((AAMC_Raw_Data_for_FY22[[#This Row],[75th]]-AAMC_Raw_Data_for_FY22[[#This Row],[Median]])/25)*30) + AAMC_Raw_Data_for_FY22[[#This Row],[Median]]","v":149013.20000000001},{"$f":"(((AAMC_Raw_Data_for_FY22[[#This Row],[75th]]-AAMC_Raw_Data_for_FY22[[#This Row],[Median]])/25)*35) + AAMC_Raw_Data_for_FY22[[#This Row],[Median]]","v":151799.4},{"$f":"(((AAMC_Raw_Data_for_FY22[[#This Row],[75th]]-AAMC_Raw_Data_for_FY22[[#This Row],[Median]])/25)*40) + AAMC_Raw_Data_for_FY22[[#This Row],[Median]]","v":154585.60000000001}]
[{"$f":"AAMC_Raw_Data_for_FY22[[#This Row],[Source]]&AAMC_Raw_Data_for_FY22[[#This Row],[Type]]&AAMC_Raw_Data_for_FY22[[#This Row],[School Subset]]&AAMC_Raw_Data_for_FY22[[#This Row],[Rank]]&AAMC_Raw_Data_for_FY22[[#This Row],[Degree]]&AAMC_Raw_Data_for_FY22[[#This Row],[Department / Specialty]]&\"L\"","v":"AAMCAcademicPublicProfessorPhDPharmacologyL"},"Pharmacology",2,"AAMC","Academic","Public","Professor","PhD","2021-2022",162235,{"$f":"(((AAMC_Raw_Data_for_FY22[[#This Row],[Median]]-AAMC_Raw_Data_for_FY22[[#This Row],[25th]])/25)*5) + AAMC_Raw_Data_for_FY22[[#This Row],[25th]]","v":167339.4},{"$f":"(((AAMC_Raw_Data_for_FY22[[#This Row],[Median]]-AAMC_Raw_Data_for_FY22[[#This Row],[25th]])/25)*10) + AAMC_Raw_Data_for_FY22[[#This Row],[25th]]","v":172443.8},{"$f":"(((AAMC_Raw_Data_for_FY22[[#This Row],[Median]]-AAMC_Raw_Data_for_FY22[[#This Row],[25th]])/25)*15) + AAMC_Raw_Data_for_FY22[[#This Row],[25th]]","v":177548.2},{"$f":"(((AAMC_Raw_Data_for_FY22[[#This Row],[Median]]-AAMC_Raw_Data_for_FY22[[#This Row],[25th]])/25)*20) + AAMC_Raw_Data_for_FY22[[#This Row],[25th]]","v":182652.6},187757,{"$f":"(((AAMC_Raw_Data_for_FY22[[#This Row],[75th]]-AAMC_Raw_Data_for_FY22[[#This Row],[Median]])/25)*5) + AAMC_Raw_Data_for_FY22[[#This Row],[Median]]","v":196406},{"$f":"(((AAMC_Raw_Data_for_FY22[[#This Row],[75th]]-AAMC_Raw_Data_for_FY22[[#This Row],[Median]])/25)*10) + AAMC_Raw_Data_for_FY22[[#This Row],[Median]]","v":205055},{"$f":"(((AAMC_Raw_Data_for_FY22[[#This Row],[75th]]-AAMC_Raw_Data_for_FY22[[#This Row],[Median]])/25)*15) + AAMC_Raw_Data_for_FY22[[#This Row],[Median]]","v":213704},{"$f":"(((AAMC_Raw_Data_for_FY22[[#This Row],[75th]]-AAMC_Raw_Data_for_FY22[[#This Row],[Median]])/25)*20) + AAMC_Raw_Data_for_FY22[[#This Row],[Median]]","v":222353},231002,{"$f":"(((AAMC_Raw_Data_for_FY22[[#This Row],[75th]]-AAMC_Raw_Data_for_FY22[[#This Row],[Median]])/25)*30) + AAMC_Raw_Data_for_FY22[[#This Row],[Median]]","v":239651},{"$f":"(((AAMC_Raw_Data_for_FY22[[#This Row],[75th]]-AAMC_Raw_Data_for_FY22[[#This Row],[Median]])/25)*35) + AAMC_Raw_Data_for_FY22[[#This Row],[Median]]","v":248300},{"$f":"(((AAMC_Raw_Data_for_FY22[[#This Row],[75th]]-AAMC_Raw_Data_for_FY22[[#This Row],[Median]])/25)*40) + AAMC_Raw_Data_for_FY22[[#This Row],[Median]]","v":256949}]
[{"$f":"AAMC_Raw_Data_for_FY22[[#This Row],[Source]]&AAMC_Raw_Data_for_FY22[[#This Row],[Type]]&AAMC_Raw_Data_for_FY22[[#This Row],[School Subset]]&AAMC_Raw_Data_for_FY22[[#This Row],[Rank]]&AAMC_Raw_Data_for_FY22[[#This Row],[Degree]]&AAMC_Raw_Data_for_FY22[[#This Row],[Department / Specialty]]&\"L\"","v":"AAMCAcademicPublicChiefPhDPharmacologyL"},"Pharmacology",6,"AAMC","Academic","Public","Chief","PhD","2021-2022",255896,{"$f":"(((AAMC_Raw_Data_for_FY22[[#This Row],[Median]]-AAMC_Raw_Data_for_FY22[[#This Row],[25th]])/25)*5) + AAMC_Raw_Data_for_FY22[[#This Row],[25th]]","v":263411},{"$f":"(((AAMC_Raw_Data_for_FY22[[#This Row],[Median]]-AAMC_Raw_Data_for_FY22[[#This Row],[25th]])/25)*10) + AAMC_Raw_Data_for_FY22[[#This Row],[25th]]","v":270926},{"$f":"(((AAMC_Raw_Data_for_FY22[[#This Row],[Median]]-AAMC_Raw_Data_for_FY22[[#This Row],[25th]])/25)*15) + AAMC_Raw_Data_for_FY22[[#This Row],[25th]]","v":278441},{"$f":"(((AAMC_Raw_Data_for_FY22[[#This Row],[Median]]-AAMC_Raw_Data_for_FY22[[#This Row],[25th]])/25)*20) + AAMC_Raw_Data_for_FY22[[#This Row],[25th]]","v":285956},293471,{"$f":"(((AAMC_Raw_Data_for_FY22[[#This Row],[75th]]-AAMC_Raw_Data_for_FY22[[#This Row],[Median]])/25)*5) + AAMC_Raw_Data_for_FY22[[#This Row],[Median]]","v":299340},{"$f":"(((AAMC_Raw_Data_for_FY22[[#This Row],[75th]]-AAMC_Raw_Data_for_FY22[[#This Row],[Median]])/25)*10) + AAMC_Raw_Data_for_FY22[[#This Row],[Median]]","v":305209},{"$f":"(((AAMC_Raw_Data_for_FY22[[#This Row],[75th]]-AAMC_Raw_Data_for_FY22[[#This Row],[Median]])/25)*15) + AAMC_Raw_Data_for_FY22[[#This Row],[Median]]","v":311078},{"$f":"(((AAMC_Raw_Data_for_FY22[[#This Row],[75th]]-AAMC_Raw_Data_for_FY22[[#This Row],[Median]])/25)*20) + AAMC_Raw_Data_for_FY22[[#This Row],[Median]]","v":316947},322816,{"$f":"(((AAMC_Raw_Data_for_FY22[[#This Row],[75th]]-AAMC_Raw_Data_for_FY22[[#This Row],[Median]])/25)*30) + AAMC_Raw_Data_for_FY22[[#This Row],[Median]]","v":328685},{"$f":"(((AAMC_Raw_Data_for_FY22[[#This Row],[75th]]-AAMC_Raw_Data_for_FY22[[#This Row],[Median]])/25)*35) + AAMC_Raw_Data_for_FY22[[#This Row],[Median]]","v":334554},{"$f":"(((AAMC_Raw_Data_for_FY22[[#This Row],[75th]]-AAMC_Raw_Data_for_FY22[[#This Row],[Median]])/25)*40) + AAMC_Raw_Data_for_FY22[[#This Row],[Median]]","v":340423}]
[{"$f":"AAMC_Raw_Data_for_FY22[[#This Row],[Source]]&AAMC_Raw_Data_for_FY22[[#This Row],[Type]]&AAMC_Raw_Data_for_FY22[[#This Row],[School Subset]]&AAMC_Raw_Data_for_FY22[[#This Row],[Rank]]&AAMC_Raw_Data_for_FY22[[#This Row],[Degree]]&AAMC_Raw_Data_for_FY22[[#This Row],[Department / Specialty]]&\"L\"","v":"AAMCAcademicPublicChairPhDPharmacologyL"},"Pharmacology",1,"AAMC","Academic","Public","Chair","PhD","2021-2022",260596,{"$f":"(((AAMC_Raw_Data_for_FY22[[#This Row],[Median]]-AAMC_Raw_Data_for_FY22[[#This Row],[25th]])/25)*5) + AAMC_Raw_Data_for_FY22[[#This Row],[25th]]","v":270980.8},{"$f":"(((AAMC_Raw_Data_for_FY22[[#This Row],[Median]]-AAMC_Raw_Data_for_FY22[[#This Row],[25th]])/25)*10) + AAMC_Raw_Data_for_FY22[[#This Row],[25th]]","v":281365.59999999998},{"$f":"(((AAMC_Raw_Data_for_FY22[[#This Row],[Median]]-AAMC_Raw_Data_for_FY22[[#This Row],[25th]])/25)*15) + AAMC_Raw_Data_for_FY22[[#This Row],[25th]]","v":291750.40000000002},{"$f":"(((AAMC_Raw_Data_for_FY22[[#This Row],[Median]]-AAMC_Raw_Data_for_FY22[[#This Row],[25th]])/25)*20) + AAMC_Raw_Data_for_FY22[[#This Row],[25th]]","v":302135.2},312520,{"$f":"(((AAMC_Raw_Data_for_FY22[[#This Row],[75th]]-AAMC_Raw_Data_for_FY22[[#This Row],[Median]])/25)*5) + AAMC_Raw_Data_for_FY22[[#This Row],[Median]]","v":328016},{"$f":"(((AAMC_Raw_Data_for_FY22[[#This Row],[75th]]-AAMC_Raw_Data_for_FY22[[#This Row],[Median]])/25)*10) + AAMC_Raw_Data_for_FY22[[#This Row],[Median]]","v":343512},{"$f":"(((AAMC_Raw_Data_for_FY22[[#This Row],[75th]]-AAMC_Raw_Data_for_FY22[[#This Row],[Median]])/25)*15) + AAMC_Raw_Data_for_FY22[[#This Row],[Median]]","v":359008},{"$f":"(((AAMC_Raw_Data_for_FY22[[#This Row],[75th]]-AAMC_Raw_Data_for_FY22[[#This Row],[Median]])/25)*20) + AAMC_Raw_Data_for_FY22[[#This Row],[Median]]","v":374504},390000,{"$f":"(((AAMC_Raw_Data_for_FY22[[#This Row],[75th]]-AAMC_Raw_Data_for_FY22[[#This Row],[Median]])/25)*30) + AAMC_Raw_Data_for_FY22[[#This Row],[Median]]","v":405496},{"$f":"(((AAMC_Raw_Data_for_FY22[[#This Row],[75th]]-AAMC_Raw_Data_for_FY22[[#This Row],[Median]])/25)*35) + AAMC_Raw_Data_for_FY22[[#This Row],[Median]]","v":420992},{"$f":"(((AAMC_Raw_Data_for_FY22[[#This Row],[75th]]-AAMC_Raw_Data_for_FY22[[#This Row],[Median]])/25)*40) + AAMC_Raw_Data_for_FY22[[#This Row],[Median]]","v":436488}]
[{"$f":"AAMC_Raw_Data_for_FY22[[#This Row],[Source]]&AAMC_Raw_Data_for_FY22[[#This Row],[Type]]&AAMC_Raw_Data_for_FY22[[#This Row],[School Subset]]&AAMC_Raw_Data_for_FY22[[#This Row],[Rank]]&AAMC_Raw_Data_for_FY22[[#This Row],[Degree]]&AAMC_Raw_Data_for_FY22[[#This Row],[Department / Specialty]]&\"L\"","v":"AAMCAcademicPublicInstructorPhDPhysiologyL"},"Physiology",5,"AAMC","Academic","Public","Instructor","PhD","2021-2022",56872,{"$f":"(((AAMC_Raw_Data_for_FY22[[#This Row],[Median]]-AAMC_Raw_Data_for_FY22[[#This Row],[25th]])/25)*5) + AAMC_Raw_Data_for_FY22[[#This Row],[25th]]","v":57999.4},{"$f":"(((AAMC_Raw_Data_for_FY22[[#This Row],[Median]]-AAMC_Raw_Data_for_FY22[[#This Row],[25th]])/25)*10) + AAMC_Raw_Data_for_FY22[[#This Row],[25th]]","v":59126.8},{"$f":"(((AAMC_Raw_Data_for_FY22[[#This Row],[Median]]-AAMC_Raw_Data_for_FY22[[#This Row],[25th]])/25)*15) + AAMC_Raw_Data_for_FY22[[#This Row],[25th]]","v":60254.2},{"$f":"(((AAMC_Raw_Data_for_FY22[[#This Row],[Median]]-AAMC_Raw_Data_for_FY22[[#This Row],[25th]])/25)*20) + AAMC_Raw_Data_for_FY22[[#This Row],[25th]]","v":61381.599999999999},62509,{"$f":"(((AAMC_Raw_Data_for_FY22[[#This Row],[75th]]-AAMC_Raw_Data_for_FY22[[#This Row],[Median]])/25)*5) + AAMC_Raw_Data_for_FY22[[#This Row],[Median]]","v":63226.2},{"$f":"(((AAMC_Raw_Data_for_FY22[[#This Row],[75th]]-AAMC_Raw_Data_for_FY22[[#This Row],[Median]])/25)*10) + AAMC_Raw_Data_for_FY22[[#This Row],[Median]]","v":63943.4},{"$f":"(((AAMC_Raw_Data_for_FY22[[#This Row],[75th]]-AAMC_Raw_Data_for_FY22[[#This Row],[Median]])/25)*15) + AAMC_Raw_Data_for_FY22[[#This Row],[Median]]","v":64660.6},{"$f":"(((AAMC_Raw_Data_for_FY22[[#This Row],[75th]]-AAMC_Raw_Data_for_FY22[[#This Row],[Median]])/25)*20) + AAMC_Raw_Data_for_FY22[[#This Row],[Median]]","v":65377.8},66095,{"$f":"(((AAMC_Raw_Data_for_FY22[[#This Row],[75th]]-AAMC_Raw_Data_for_FY22[[#This Row],[Median]])/25)*30) + AAMC_Raw_Data_for_FY22[[#This Row],[Median]]","v":66812.2},{"$f":"(((AAMC_Raw_Data_for_FY22[[#This Row],[75th]]-AAMC_Raw_Data_for_FY22[[#This Row],[Median]])/25)*35) + AAMC_Raw_Data_for_FY22[[#This Row],[Median]]","v":67529.399999999994},{"$f":"(((AAMC_Raw_Data_for_FY22[[#This Row],[75th]]-AAMC_Raw_Data_for_FY22[[#This Row],[Median]])/25)*40) + AAMC_Raw_Data_for_FY22[[#This Row],[Median]]","v":68246.600000000006}]
[{"$f":"AAMC_Raw_Data_for_FY22[[#This Row],[Source]]&AAMC_Raw_Data_for_FY22[[#This Row],[Type]]&AAMC_Raw_Data_for_FY22[[#This Row],[School Subset]]&AAMC_Raw_Data_for_FY22[[#This Row],[Rank]]&AAMC_Raw_Data_for_FY22[[#This Row],[Degree]]&AAMC_Raw_Data_for_FY22[[#This Row],[Department / Specialty]]&\"L\"","v":"AAMCAcademicPublicAssistantPhDPhysiologyL"},"Physiology",4,"AAMC","Academic","Public","Assistant","PhD","2021-2022",87820,{"$f":"(((AAMC_Raw_Data_for_FY22[[#This Row],[Median]]-AAMC_Raw_Data_for_FY22[[#This Row],[25th]])/25)*5) + AAMC_Raw_Data_for_FY22[[#This Row],[25th]]","v":91189.6},{"$f":"(((AAMC_Raw_Data_for_FY22[[#This Row],[Median]]-AAMC_Raw_Data_for_FY22[[#This Row],[25th]])/25)*10) + AAMC_Raw_Data_for_FY22[[#This Row],[25th]]","v":94559.2},{"$f":"(((AAMC_Raw_Data_for_FY22[[#This Row],[Median]]-AAMC_Raw_Data_for_FY22[[#This Row],[25th]])/25)*15) + AAMC_Raw_Data_for_FY22[[#This Row],[25th]]","v":97928.8},{"$f":"(((AAMC_Raw_Data_for_FY22[[#This Row],[Median]]-AAMC_Raw_Data_for_FY22[[#This Row],[25th]])/25)*20) + AAMC_Raw_Data_for_FY22[[#This Row],[25th]]","v":101298.4},104668,{"$f":"(((AAMC_Raw_Data_for_FY22[[#This Row],[75th]]-AAMC_Raw_Data_for_FY22[[#This Row],[Median]])/25)*5) + AAMC_Raw_Data_for_FY22[[#This Row],[Median]]","v":107809.4},{"$f":"(((AAMC_Raw_Data_for_FY22[[#This Row],[75th]]-AAMC_Raw_Data_for_FY22[[#This Row],[Median]])/25)*10) + AAMC_Raw_Data_for_FY22[[#This Row],[Median]]","v":110950.8},{"$f":"(((AAMC_Raw_Data_for_FY22[[#This Row],[75th]]-AAMC_Raw_Data_for_FY22[[#This Row],[Median]])/25)*15) + AAMC_Raw_Data_for_FY22[[#This Row],[Median]]","v":114092.2},{"$f":"(((AAMC_Raw_Data_for_FY22[[#This Row],[75th]]-AAMC_Raw_Data_for_FY22[[#This Row],[Median]])/25)*20) + AAMC_Raw_Data_for_FY22[[#This Row],[Median]]","v":117233.60000000001},120375,{"$f":"(((AAMC_Raw_Data_for_FY22[[#This Row],[75th]]-AAMC_Raw_Data_for_FY22[[#This Row],[Median]])/25)*30) + AAMC_Raw_Data_for_FY22[[#This Row],[Median]]","v":123516.4},{"$f":"(((AAMC_Raw_Data_for_FY22[[#This Row],[75th]]-AAMC_Raw_Data_for_FY22[[#This Row],[Median]])/25)*35) + AAMC_Raw_Data_for_FY22[[#This Row],[Median]]","v":126657.8},{"$f":"(((AAMC_Raw_Data_for_FY22[[#This Row],[75th]]-AAMC_Raw_Data_for_FY22[[#This Row],[Median]])/25)*40) + AAMC_Raw_Data_for_FY22[[#This Row],[Median]]","v":129799.2}]
[{"$f":"AAMC_Raw_Data_for_FY22[[#This Row],[Source]]&AAMC_Raw_Data_for_FY22[[#This Row],[Type]]&AAMC_Raw_Data_for_FY22[[#This Row],[School Subset]]&AAMC_Raw_Data_for_FY22[[#This Row],[Rank]]&AAMC_Raw_Data_for_FY22[[#This Row],[Degree]]&AAMC_Raw_Data_for_FY22[[#This Row],[Department / Specialty]]&\"L\"","v":"AAMCAcademicPublicAssociatePhDPhysiologyL"},"Physiology",3,"AAMC","Academic","Public","Associate","PhD","2021-2022",117666,{"$f":"(((AAMC_Raw_Data_for_FY22[[#This Row],[Median]]-AAMC_Raw_Data_for_FY22[[#This Row],[25th]])/25)*5) + AAMC_Raw_Data_for_FY22[[#This Row],[25th]]","v":121083},{"$f":"(((AAMC_Raw_Data_for_FY22[[#This Row],[Median]]-AAMC_Raw_Data_for_FY22[[#This Row],[25th]])/25)*10) + AAMC_Raw_Data_for_FY22[[#This Row],[25th]]","v":124500},{"$f":"(((AAMC_Raw_Data_for_FY22[[#This Row],[Median]]-AAMC_Raw_Data_for_FY22[[#This Row],[25th]])/25)*15) + AAMC_Raw_Data_for_FY22[[#This Row],[25th]]","v":127917},{"$f":"(((AAMC_Raw_Data_for_FY22[[#This Row],[Median]]-AAMC_Raw_Data_for_FY22[[#This Row],[25th]])/25)*20) + AAMC_Raw_Data_for_FY22[[#This Row],[25th]]","v":131334},134751,{"$f":"(((AAMC_Raw_Data_for_FY22[[#This Row],[75th]]-AAMC_Raw_Data_for_FY22[[#This Row],[Median]])/25)*5) + AAMC_Raw_Data_for_FY22[[#This Row],[Median]]","v":137778.6},{"$f":"(((AAMC_Raw_Data_for_FY22[[#This Row],[75th]]-AAMC_Raw_Data_for_FY22[[#This Row],[Median]])/25)*10) + AAMC_Raw_Data_for_FY22[[#This Row],[Median]]","v":140806.20000000001},{"$f":"(((AAMC_Raw_Data_for_FY22[[#This Row],[75th]]-AAMC_Raw_Data_for_FY22[[#This Row],[Median]])/25)*15) + AAMC_Raw_Data_for_FY22[[#This Row],[Median]]","v":143833.79999999999},{"$f":"(((AAMC_Raw_Data_for_FY22[[#This Row],[75th]]-AAMC_Raw_Data_for_FY22[[#This Row],[Median]])/25)*20) + AAMC_Raw_Data_for_FY22[[#This Row],[Median]]","v":146861.4},149889,{"$f":"(((AAMC_Raw_Data_for_FY22[[#This Row],[75th]]-AAMC_Raw_Data_for_FY22[[#This Row],[Median]])/25)*30) + AAMC_Raw_Data_for_FY22[[#This Row],[Median]]","v":152916.6},{"$f":"(((AAMC_Raw_Data_for_FY22[[#This Row],[75th]]-AAMC_Raw_Data_for_FY22[[#This Row],[Median]])/25)*35) + AAMC_Raw_Data_for_FY22[[#This Row],[Median]]","v":155944.20000000001},{"$f":"(((AAMC_Raw_Data_for_FY22[[#This Row],[75th]]-AAMC_Raw_Data_for_FY22[[#This Row],[Median]])/25)*40) + AAMC_Raw_Data_for_FY22[[#This Row],[Median]]","v":158971.79999999999}]
[{"$f":"AAMC_Raw_Data_for_FY22[[#This Row],[Source]]&AAMC_Raw_Data_for_FY22[[#This Row],[Type]]&AAMC_Raw_Data_for_FY22[[#This Row],[School Subset]]&AAMC_Raw_Data_for_FY22[[#This Row],[Rank]]&AAMC_Raw_Data_for_FY22[[#This Row],[Degree]]&AAMC_Raw_Data_for_FY22[[#This Row],[Department / Specialty]]&\"L\"","v":"AAMCAcademicPublicProfessorPhDPhysiologyL"},"Physiology",2,"AAMC","Academic","Public","Professor","PhD","2021-2022",161644,{"$f":"(((AAMC_Raw_Data_for_FY22[[#This Row],[Median]]-AAMC_Raw_Data_for_FY22[[#This Row],[25th]])/25)*5) + AAMC_Raw_Data_for_FY22[[#This Row],[25th]]","v":167089.20000000001},{"$f":"(((AAMC_Raw_Data_for_FY22[[#This Row],[Median]]-AAMC_Raw_Data_for_FY22[[#This Row],[25th]])/25)*10) + AAMC_Raw_Data_for_FY22[[#This Row],[25th]]","v":172534.39999999999},{"$f":"(((AAMC_Raw_Data_for_FY22[[#This Row],[Median]]-AAMC_Raw_Data_for_FY22[[#This Row],[25th]])/25)*15) + AAMC_Raw_Data_for_FY22[[#This Row],[25th]]","v":177979.6},{"$f":"(((AAMC_Raw_Data_for_FY22[[#This Row],[Median]]-AAMC_Raw_Data_for_FY22[[#This Row],[25th]])/25)*20) + AAMC_Raw_Data_for_FY22[[#This Row],[25th]]","v":183424.8},188870,{"$f":"(((AAMC_Raw_Data_for_FY22[[#This Row],[75th]]-AAMC_Raw_Data_for_FY22[[#This Row],[Median]])/25)*5) + AAMC_Raw_Data_for_FY22[[#This Row],[Median]]","v":195671.2},{"$f":"(((AAMC_Raw_Data_for_FY22[[#This Row],[75th]]-AAMC_Raw_Data_for_FY22[[#This Row],[Median]])/25)*10) + AAMC_Raw_Data_for_FY22[[#This Row],[Median]]","v":202472.4},{"$f":"(((AAMC_Raw_Data_for_FY22[[#This Row],[75th]]-AAMC_Raw_Data_for_FY22[[#This Row],[Median]])/25)*15) + AAMC_Raw_Data_for_FY22[[#This Row],[Median]]","v":209273.60000000001},{"$f":"(((AAMC_Raw_Data_for_FY22[[#This Row],[75th]]-AAMC_Raw_Data_for_FY22[[#This Row],[Median]])/25)*20) + AAMC_Raw_Data_for_FY22[[#This Row],[Median]]","v":216074.8},222876,{"$f":"(((AAMC_Raw_Data_for_FY22[[#This Row],[75th]]-AAMC_Raw_Data_for_FY22[[#This Row],[Median]])/25)*30) + AAMC_Raw_Data_for_FY22[[#This Row],[Median]]","v":229677.2},{"$f":"(((AAMC_Raw_Data_for_FY22[[#This Row],[75th]]-AAMC_Raw_Data_for_FY22[[#This Row],[Median]])/25)*35) + AAMC_Raw_Data_for_FY22[[#This Row],[Median]]","v":236478.4},{"$f":"(((AAMC_Raw_Data_for_FY22[[#This Row],[75th]]-AAMC_Raw_Data_for_FY22[[#This Row],[Median]])/25)*40) + AAMC_Raw_Data_for_FY22[[#This Row],[Median]]","v":243279.6}]
[{"$f":"AAMC_Raw_Data_for_FY22[[#This Row],[Source]]&AAMC_Raw_Data_for_FY22[[#This Row],[Type]]&AAMC_Raw_Data_for_FY22[[#This Row],[School Subset]]&AAMC_Raw_Data_for_FY22[[#This Row],[Rank]]&AAMC_Raw_Data_for_FY22[[#This Row],[Degree]]&AAMC_Raw_Data_for_FY22[[#This Row],[Department / Specialty]]&\"L\"","v":"AAMCAcademicPublicChiefPhDPhysiologyL"},"Physiology",6,"AAMC","Academic","Public","Chief","PhD","2021-2022",null,{"$f":"(((AAMC_Raw_Data_for_FY22[[#This Row],[Median]]-AAMC_Raw_Data_for_FY22[[#This Row],[25th]])/25)*5) + AAMC_Raw_Data_for_FY22[[#This Row],[25th]]","v":0},{"$f":"(((AAMC_Raw_Data_for_FY22[[#This Row],[Median]]-AAMC_Raw_Data_for_FY22[[#This Row],[25th]])/25)*10) + AAMC_Raw_Data_for_FY22[[#This Row],[25th]]","v":0},{"$f":"(((AAMC_Raw_Data_for_FY22[[#This Row],[Median]]-AAMC_Raw_Data_for_FY22[[#This Row],[25th]])/25)*15) + AAMC_Raw_Data_for_FY22[[#This Row],[25th]]","v":0},{"$f":"(((AAMC_Raw_Data_for_FY22[[#This Row],[Median]]-AAMC_Raw_Data_for_FY22[[#This Row],[25th]])/25)*20) + AAMC_Raw_Data_for_FY22[[#This Row],[25th]]","v":0},null,{"$f":"(((AAMC_Raw_Data_for_FY22[[#This Row],[75th]]-AAMC_Raw_Data_for_FY22[[#This Row],[Median]])/25)*5) + AAMC_Raw_Data_for_FY22[[#This Row],[Median]]","v":0},{"$f":"(((AAMC_Raw_Data_for_FY22[[#This Row],[75th]]-AAMC_Raw_Data_for_FY22[[#This Row],[Median]])/25)*10) + AAMC_Raw_Data_for_FY22[[#This Row],[Median]]","v":0},{"$f":"(((AAMC_Raw_Data_for_FY22[[#This Row],[75th]]-AAMC_Raw_Data_for_FY22[[#This Row],[Median]])/25)*15) + AAMC_Raw_Data_for_FY22[[#This Row],[Median]]","v":0},{"$f":"(((AAMC_Raw_Data_for_FY22[[#This Row],[75th]]-AAMC_Raw_Data_for_FY22[[#This Row],[Median]])/25)*20) + AAMC_Raw_Data_for_FY22[[#This Row],[Median]]","v":0},null,{"$f":"(((AAMC_Raw_Data_for_FY22[[#This Row],[75th]]-AAMC_Raw_Data_for_FY22[[#This Row],[Median]])/25)*30) + AAMC_Raw_Data_for_FY22[[#This Row],[Median]]","v":0},{"$f":"(((AAMC_Raw_Data_for_FY22[[#This Row],[75th]]-AAMC_Raw_Data_for_FY22[[#This Row],[Median]])/25)*35) + AAMC_Raw_Data_for_FY22[[#This Row],[Median]]","v":0},{"$f":"(((AAMC_Raw_Data_for_FY22[[#This Row],[75th]]-AAMC_Raw_Data_for_FY22[[#This Row],[Median]])/25)*40) + AAMC_Raw_Data_for_FY22[[#This Row],[Median]]","v":0}]
[{"$f":"AAMC_Raw_Data_for_FY22[[#This Row],[Source]]&AAMC_Raw_Data_for_FY22[[#This Row],[Type]]&AAMC_Raw_Data_for_FY22[[#This Row],[School Subset]]&AAMC_Raw_Data_for_FY22[[#This Row],[Rank]]&AAMC_Raw_Data_for_FY22[[#This Row],[Degree]]&AAMC_Raw_Data_for_FY22[[#This Row],[Department / Specialty]]&\"L\"","v":"AAMCAcademicPublicChairPhDPhysiologyL"},"Physiology",1,"AAMC","Academic","Public","Chair","PhD","2021-2022",283453,{"$f":"(((AAMC_Raw_Data_for_FY22[[#This Row],[Median]]-AAMC_Raw_Data_for_FY22[[#This Row],[25th]])/25)*5) + AAMC_Raw_Data_for_FY22[[#This Row],[25th]]","v":290485.40000000002},{"$f":"(((AAMC_Raw_Data_for_FY22[[#This Row],[Median]]-AAMC_Raw_Data_for_FY22[[#This Row],[25th]])/25)*10) + AAMC_Raw_Data_for_FY22[[#This Row],[25th]]","v":297517.8},{"$f":"(((AAMC_Raw_Data_for_FY22[[#This Row],[Median]]-AAMC_Raw_Data_for_FY22[[#This Row],[25th]])/25)*15) + AAMC_Raw_Data_for_FY22[[#This Row],[25th]]","v":304550.2},{"$f":"(((AAMC_Raw_Data_for_FY22[[#This Row],[Median]]-AAMC_Raw_Data_for_FY22[[#This Row],[25th]])/25)*20) + AAMC_Raw_Data_for_FY22[[#This Row],[25th]]","v":311582.59999999998},318615,{"$f":"(((AAMC_Raw_Data_for_FY22[[#This Row],[75th]]-AAMC_Raw_Data_for_FY22[[#This Row],[Median]])/25)*5) + AAMC_Raw_Data_for_FY22[[#This Row],[Median]]","v":328392},{"$f":"(((AAMC_Raw_Data_for_FY22[[#This Row],[75th]]-AAMC_Raw_Data_for_FY22[[#This Row],[Median]])/25)*10) + AAMC_Raw_Data_for_FY22[[#This Row],[Median]]","v":338169},{"$f":"(((AAMC_Raw_Data_for_FY22[[#This Row],[75th]]-AAMC_Raw_Data_for_FY22[[#This Row],[Median]])/25)*15) + AAMC_Raw_Data_for_FY22[[#This Row],[Median]]","v":347946},{"$f":"(((AAMC_Raw_Data_for_FY22[[#This Row],[75th]]-AAMC_Raw_Data_for_FY22[[#This Row],[Median]])/25)*20) + AAMC_Raw_Data_for_FY22[[#This Row],[Median]]","v":357723},367500,{"$f":"(((AAMC_Raw_Data_for_FY22[[#This Row],[75th]]-AAMC_Raw_Data_for_FY22[[#This Row],[Median]])/25)*30) + AAMC_Raw_Data_for_FY22[[#This Row],[Median]]","v":377277},{"$f":"(((AAMC_Raw_Data_for_FY22[[#This Row],[75th]]-AAMC_Raw_Data_for_FY22[[#This Row],[Median]])/25)*35) + AAMC_Raw_Data_for_FY22[[#This Row],[Median]]","v":387054},{"$f":"(((AAMC_Raw_Data_for_FY22[[#This Row],[75th]]-AAMC_Raw_Data_for_FY22[[#This Row],[Median]])/25)*40) + AAMC_Raw_Data_for_FY22[[#This Row],[Median]]","v":396831}]
[{"$f":"AAMC_Raw_Data_for_FY22[[#This Row],[Source]]&AAMC_Raw_Data_for_FY22[[#This Row],[Type]]&AAMC_Raw_Data_for_FY22[[#This Row],[School Subset]]&AAMC_Raw_Data_for_FY22[[#This Row],[Rank]]&AAMC_Raw_Data_for_FY22[[#This Row],[Degree]]&AAMC_Raw_Data_for_FY22[[#This Row],[Department / Specialty]]&\"L\"","v":"AAMCAcademicPublicInstructorPhDPopulation Health and Public HealthL"},"Population Health and Public Health",5,"AAMC","Academic","Public","Instructor","PhD","2021-2022",null,{"$f":"(((AAMC_Raw_Data_for_FY22[[#This Row],[Median]]-AAMC_Raw_Data_for_FY22[[#This Row],[25th]])/25)*5) + AAMC_Raw_Data_for_FY22[[#This Row],[25th]]","v":0},{"$f":"(((AAMC_Raw_Data_for_FY22[[#This Row],[Median]]-AAMC_Raw_Data_for_FY22[[#This Row],[25th]])/25)*10) + AAMC_Raw_Data_for_FY22[[#This Row],[25th]]","v":0},{"$f":"(((AAMC_Raw_Data_for_FY22[[#This Row],[Median]]-AAMC_Raw_Data_for_FY22[[#This Row],[25th]])/25)*15) + AAMC_Raw_Data_for_FY22[[#This Row],[25th]]","v":0},{"$f":"(((AAMC_Raw_Data_for_FY22[[#This Row],[Median]]-AAMC_Raw_Data_for_FY22[[#This Row],[25th]])/25)*20) + AAMC_Raw_Data_for_FY22[[#This Row],[25th]]","v":0},null,{"$f":"(((AAMC_Raw_Data_for_FY22[[#This Row],[75th]]-AAMC_Raw_Data_for_FY22[[#This Row],[Median]])/25)*5) + AAMC_Raw_Data_for_FY22[[#This Row],[Median]]","v":0},{"$f":"(((AAMC_Raw_Data_for_FY22[[#This Row],[75th]]-AAMC_Raw_Data_for_FY22[[#This Row],[Median]])/25)*10) + AAMC_Raw_Data_for_FY22[[#This Row],[Median]]","v":0},{"$f":"(((AAMC_Raw_Data_for_FY22[[#This Row],[75th]]-AAMC_Raw_Data_for_FY22[[#This Row],[Median]])/25)*15) + AAMC_Raw_Data_for_FY22[[#This Row],[Median]]","v":0},{"$f":"(((AAMC_Raw_Data_for_FY22[[#This Row],[75th]]-AAMC_Raw_Data_for_FY22[[#This Row],[Median]])/25)*20) + AAMC_Raw_Data_for_FY22[[#This Row],[Median]]","v":0},null,{"$f":"(((AAMC_Raw_Data_for_FY22[[#This Row],[75th]]-AAMC_Raw_Data_for_FY22[[#This Row],[Median]])/25)*30) + AAMC_Raw_Data_for_FY22[[#This Row],[Median]]","v":0},{"$f":"(((AAMC_Raw_Data_for_FY22[[#This Row],[75th]]-AAMC_Raw_Data_for_FY22[[#This Row],[Median]])/25)*35) + AAMC_Raw_Data_for_FY22[[#This Row],[Median]]","v":0},{"$f":"(((AAMC_Raw_Data_for_FY22[[#This Row],[75th]]-AAMC_Raw_Data_for_FY22[[#This Row],[Median]])/25)*40) + AAMC_Raw_Data_for_FY22[[#This Row],[Median]]","v":0}]
[{"$f":"AAMC_Raw_Data_for_FY22[[#This Row],[Source]]&AAMC_Raw_Data_for_FY22[[#This Row],[Type]]&AAMC_Raw_Data_for_FY22[[#This Row],[School Subset]]&AAMC_Raw_Data_for_FY22[[#This Row],[Rank]]&AAMC_Raw_Data_for_FY22[[#This Row],[Degree]]&AAMC_Raw_Data_for_FY22[[#This Row],[Department / Specialty]]&\"L\"","v":"AAMCAcademicPublicAssistantPhDPopulation Health and Public HealthL"},"Population Health and Public Health",4,"AAMC","Academic","Public","Assistant","PhD","2021-2022",96117,{"$f":"(((AAMC_Raw_Data_for_FY22[[#This Row],[Median]]-AAMC_Raw_Data_for_FY22[[#This Row],[25th]])/25)*5) + AAMC_Raw_Data_for_FY22[[#This Row],[25th]]","v":98976.8},{"$f":"(((AAMC_Raw_Data_for_FY22[[#This Row],[Median]]-AAMC_Raw_Data_for_FY22[[#This Row],[25th]])/25)*10) + AAMC_Raw_Data_for_FY22[[#This Row],[25th]]","v":101836.6},{"$f":"(((AAMC_Raw_Data_for_FY22[[#This Row],[Median]]-AAMC_Raw_Data_for_FY22[[#This Row],[25th]])/25)*15) + AAMC_Raw_Data_for_FY22[[#This Row],[25th]]","v":104696.4},{"$f":"(((AAMC_Raw_Data_for_FY22[[#This Row],[Median]]-AAMC_Raw_Data_for_FY22[[#This Row],[25th]])/25)*20) + AAMC_Raw_Data_for_FY22[[#This Row],[25th]]","v":107556.2},110416,{"$f":"(((AAMC_Raw_Data_for_FY22[[#This Row],[75th]]-AAMC_Raw_Data_for_FY22[[#This Row],[Median]])/25)*5) + AAMC_Raw_Data_for_FY22[[#This Row],[Median]]","v":113178.8},{"$f":"(((AAMC_Raw_Data_for_FY22[[#This Row],[75th]]-AAMC_Raw_Data_for_FY22[[#This Row],[Median]])/25)*10) + AAMC_Raw_Data_for_FY22[[#This Row],[Median]]","v":115941.6},{"$f":"(((AAMC_Raw_Data_for_FY22[[#This Row],[75th]]-AAMC_Raw_Data_for_FY22[[#This Row],[Median]])/25)*15) + AAMC_Raw_Data_for_FY22[[#This Row],[Median]]","v":118704.4},{"$f":"(((AAMC_Raw_Data_for_FY22[[#This Row],[75th]]-AAMC_Raw_Data_for_FY22[[#This Row],[Median]])/25)*20) + AAMC_Raw_Data_for_FY22[[#This Row],[Median]]","v":121467.2},124230,{"$f":"(((AAMC_Raw_Data_for_FY22[[#This Row],[75th]]-AAMC_Raw_Data_for_FY22[[#This Row],[Median]])/25)*30) + AAMC_Raw_Data_for_FY22[[#This Row],[Median]]","v":126992.8},{"$f":"(((AAMC_Raw_Data_for_FY22[[#This Row],[75th]]-AAMC_Raw_Data_for_FY22[[#This Row],[Median]])/25)*35) + AAMC_Raw_Data_for_FY22[[#This Row],[Median]]","v":129755.6},{"$f":"(((AAMC_Raw_Data_for_FY22[[#This Row],[75th]]-AAMC_Raw_Data_for_FY22[[#This Row],[Median]])/25)*40) + AAMC_Raw_Data_for_FY22[[#This Row],[Median]]","v":132518.39999999999}]
[{"$f":"AAMC_Raw_Data_for_FY22[[#This Row],[Source]]&AAMC_Raw_Data_for_FY22[[#This Row],[Type]]&AAMC_Raw_Data_for_FY22[[#This Row],[School Subset]]&AAMC_Raw_Data_for_FY22[[#This Row],[Rank]]&AAMC_Raw_Data_for_FY22[[#This Row],[Degree]]&AAMC_Raw_Data_for_FY22[[#This Row],[Department / Specialty]]&\"L\"","v":"AAMCAcademicPublicAssociatePhDPopulation Health and Public HealthL"},"Population Health and Public Health",3,"AAMC","Academic","Public","Associate","PhD","2021-2022",127586,{"$f":"(((AAMC_Raw_Data_for_FY22[[#This Row],[Median]]-AAMC_Raw_Data_for_FY22[[#This Row],[25th]])/25)*5) + AAMC_Raw_Data_for_FY22[[#This Row],[25th]]","v":129343.8},{"$f":"(((AAMC_Raw_Data_for_FY22[[#This Row],[Median]]-AAMC_Raw_Data_for_FY22[[#This Row],[25th]])/25)*10) + AAMC_Raw_Data_for_FY22[[#This Row],[25th]]","v":131101.6},{"$f":"(((AAMC_Raw_Data_for_FY22[[#This Row],[Median]]-AAMC_Raw_Data_for_FY22[[#This Row],[25th]])/25)*15) + AAMC_Raw_Data_for_FY22[[#This Row],[25th]]","v":132859.4},{"$f":"(((AAMC_Raw_Data_for_FY22[[#This Row],[Median]]-AAMC_Raw_Data_for_FY22[[#This Row],[25th]])/25)*20) + AAMC_Raw_Data_for_FY22[[#This Row],[25th]]","v":134617.20000000001},136375,{"$f":"(((AAMC_Raw_Data_for_FY22[[#This Row],[75th]]-AAMC_Raw_Data_for_FY22[[#This Row],[Median]])/25)*5) + AAMC_Raw_Data_for_FY22[[#This Row],[Median]]","v":141045.79999999999},{"$f":"(((AAMC_Raw_Data_for_FY22[[#This Row],[75th]]-AAMC_Raw_Data_for_FY22[[#This Row],[Median]])/25)*10) + AAMC_Raw_Data_for_FY22[[#This Row],[Median]]","v":145716.6},{"$f":"(((AAMC_Raw_Data_for_FY22[[#This Row],[75th]]-AAMC_Raw_Data_for_FY22[[#This Row],[Median]])/25)*15) + AAMC_Raw_Data_for_FY22[[#This Row],[Median]]","v":150387.4},{"$f":"(((AAMC_Raw_Data_for_FY22[[#This Row],[75th]]-AAMC_Raw_Data_for_FY22[[#This Row],[Median]])/25)*20) + AAMC_Raw_Data_for_FY22[[#This Row],[Median]]","v":155058.20000000001},159729,{"$f":"(((AAMC_Raw_Data_for_FY22[[#This Row],[75th]]-AAMC_Raw_Data_for_FY22[[#This Row],[Median]])/25)*30) + AAMC_Raw_Data_for_FY22[[#This Row],[Median]]","v":164399.79999999999},{"$f":"(((AAMC_Raw_Data_for_FY22[[#This Row],[75th]]-AAMC_Raw_Data_for_FY22[[#This Row],[Median]])/25)*35) + AAMC_Raw_Data_for_FY22[[#This Row],[Median]]","v":169070.6},{"$f":"(((AAMC_Raw_Data_for_FY22[[#This Row],[75th]]-AAMC_Raw_Data_for_FY22[[#This Row],[Median]])/25)*40) + AAMC_Raw_Data_for_FY22[[#This Row],[Median]]","v":173741.4}]
[{"$f":"AAMC_Raw_Data_for_FY22[[#This Row],[Source]]&AAMC_Raw_Data_for_FY22[[#This Row],[Type]]&AAMC_Raw_Data_for_FY22[[#This Row],[School Subset]]&AAMC_Raw_Data_for_FY22[[#This Row],[Rank]]&AAMC_Raw_Data_for_FY22[[#This Row],[Degree]]&AAMC_Raw_Data_for_FY22[[#This Row],[Department / Specialty]]&\"L\"","v":"AAMCAcademicPublicProfessorPhDPopulation Health and Public HealthL"},"Population Health and Public Health",2,"AAMC","Academic","Public","Professor","PhD","2021-2022",166990,{"$f":"(((AAMC_Raw_Data_for_FY22[[#This Row],[Median]]-AAMC_Raw_Data_for_FY22[[#This Row],[25th]])/25)*5) + AAMC_Raw_Data_for_FY22[[#This Row],[25th]]","v":173945},{"$f":"(((AAMC_Raw_Data_for_FY22[[#This Row],[Median]]-AAMC_Raw_Data_for_FY22[[#This Row],[25th]])/25)*10) + AAMC_Raw_Data_for_FY22[[#This Row],[25th]]","v":180900},{"$f":"(((AAMC_Raw_Data_for_FY22[[#This Row],[Median]]-AAMC_Raw_Data_for_FY22[[#This Row],[25th]])/25)*15) + AAMC_Raw_Data_for_FY22[[#This Row],[25th]]","v":187855},{"$f":"(((AAMC_Raw_Data_for_FY22[[#This Row],[Median]]-AAMC_Raw_Data_for_FY22[[#This Row],[25th]])/25)*20) + AAMC_Raw_Data_for_FY22[[#This Row],[25th]]","v":194810},201765,{"$f":"(((AAMC_Raw_Data_for_FY22[[#This Row],[75th]]-AAMC_Raw_Data_for_FY22[[#This Row],[Median]])/25)*5) + AAMC_Raw_Data_for_FY22[[#This Row],[Median]]","v":208727.6},{"$f":"(((AAMC_Raw_Data_for_FY22[[#This Row],[75th]]-AAMC_Raw_Data_for_FY22[[#This Row],[Median]])/25)*10) + AAMC_Raw_Data_for_FY22[[#This Row],[Median]]","v":215690.2},{"$f":"(((AAMC_Raw_Data_for_FY22[[#This Row],[75th]]-AAMC_Raw_Data_for_FY22[[#This Row],[Median]])/25)*15) + AAMC_Raw_Data_for_FY22[[#This Row],[Median]]","v":222652.79999999999},{"$f":"(((AAMC_Raw_Data_for_FY22[[#This Row],[75th]]-AAMC_Raw_Data_for_FY22[[#This Row],[Median]])/25)*20) + AAMC_Raw_Data_for_FY22[[#This Row],[Median]]","v":229615.4},236578,{"$f":"(((AAMC_Raw_Data_for_FY22[[#This Row],[75th]]-AAMC_Raw_Data_for_FY22[[#This Row],[Median]])/25)*30) + AAMC_Raw_Data_for_FY22[[#This Row],[Median]]","v":243540.6},{"$f":"(((AAMC_Raw_Data_for_FY22[[#This Row],[75th]]-AAMC_Raw_Data_for_FY22[[#This Row],[Median]])/25)*35) + AAMC_Raw_Data_for_FY22[[#This Row],[Median]]","v":250503.2},{"$f":"(((AAMC_Raw_Data_for_FY22[[#This Row],[75th]]-AAMC_Raw_Data_for_FY22[[#This Row],[Median]])/25)*40) + AAMC_Raw_Data_for_FY22[[#This Row],[Median]]","v":257465.8}]
[{"$f":"AAMC_Raw_Data_for_FY22[[#This Row],[Source]]&AAMC_Raw_Data_for_FY22[[#This Row],[Type]]&AAMC_Raw_Data_for_FY22[[#This Row],[School Subset]]&AAMC_Raw_Data_for_FY22[[#This Row],[Rank]]&AAMC_Raw_Data_for_FY22[[#This Row],[Degree]]&AAMC_Raw_Data_for_FY22[[#This Row],[Department / Specialty]]&\"L\"","v":"AAMCAcademicPublicChiefPhDPopulation Health and Public HealthL"},"Population Health and Public Health",6,"AAMC","Academic","Public","Chief","PhD","2021-2022",null,{"$f":"(((AAMC_Raw_Data_for_FY22[[#This Row],[Median]]-AAMC_Raw_Data_for_FY22[[#This Row],[25th]])/25)*5) + AAMC_Raw_Data_for_FY22[[#This Row],[25th]]","v":0},{"$f":"(((AAMC_Raw_Data_for_FY22[[#This Row],[Median]]-AAMC_Raw_Data_for_FY22[[#This Row],[25th]])/25)*10) + AAMC_Raw_Data_for_FY22[[#This Row],[25th]]","v":0},{"$f":"(((AAMC_Raw_Data_for_FY22[[#This Row],[Median]]-AAMC_Raw_Data_for_FY22[[#This Row],[25th]])/25)*15) + AAMC_Raw_Data_for_FY22[[#This Row],[25th]]","v":0},{"$f":"(((AAMC_Raw_Data_for_FY22[[#This Row],[Median]]-AAMC_Raw_Data_for_FY22[[#This Row],[25th]])/25)*20) + AAMC_Raw_Data_for_FY22[[#This Row],[25th]]","v":0},null,{"$f":"(((AAMC_Raw_Data_for_FY22[[#This Row],[75th]]-AAMC_Raw_Data_for_FY22[[#This Row],[Median]])/25)*5) + AAMC_Raw_Data_for_FY22[[#This Row],[Median]]","v":0},{"$f":"(((AAMC_Raw_Data_for_FY22[[#This Row],[75th]]-AAMC_Raw_Data_for_FY22[[#This Row],[Median]])/25)*10) + AAMC_Raw_Data_for_FY22[[#This Row],[Median]]","v":0},{"$f":"(((AAMC_Raw_Data_for_FY22[[#This Row],[75th]]-AAMC_Raw_Data_for_FY22[[#This Row],[Median]])/25)*15) + AAMC_Raw_Data_for_FY22[[#This Row],[Median]]","v":0},{"$f":"(((AAMC_Raw_Data_for_FY22[[#This Row],[75th]]-AAMC_Raw_Data_for_FY22[[#This Row],[Median]])/25)*20) + AAMC_Raw_Data_for_FY22[[#This Row],[Median]]","v":0},null,{"$f":"(((AAMC_Raw_Data_for_FY22[[#This Row],[75th]]-AAMC_Raw_Data_for_FY22[[#This Row],[Median]])/25)*30) + AAMC_Raw_Data_for_FY22[[#This Row],[Median]]","v":0},{"$f":"(((AAMC_Raw_Data_for_FY22[[#This Row],[75th]]-AAMC_Raw_Data_for_FY22[[#This Row],[Median]])/25)*35) + AAMC_Raw_Data_for_FY22[[#This Row],[Median]]","v":0},{"$f":"(((AAMC_Raw_Data_for_FY22[[#This Row],[75th]]-AAMC_Raw_Data_for_FY22[[#This Row],[Median]])/25)*40) + AAMC_Raw_Data_for_FY22[[#This Row],[Median]]","v":0}]
[{"$f":"AAMC_Raw_Data_for_FY22[[#This Row],[Source]]&AAMC_Raw_Data_for_FY22[[#This Row],[Type]]&AAMC_Raw_Data_for_FY22[[#This Row],[School Subset]]&AAMC_Raw_Data_for_FY22[[#This Row],[Rank]]&AAMC_Raw_Data_for_FY22[[#This Row],[Degree]]&AAMC_Raw_Data_for_FY22[[#This Row],[Department / Specialty]]&\"L\"","v":"AAMCAcademicPublicChairPhDPopulation Health and Public HealthL"},"Population Health and Public Health",1,"AAMC","Academic","Public","Chair","PhD","2021-2022",200560,{"$f":"(((AAMC_Raw_Data_for_FY22[[#This Row],[Median]]-AAMC_Raw_Data_for_FY22[[#This Row],[25th]])/25)*5) + AAMC_Raw_Data_for_FY22[[#This Row],[25th]]","v":213623.4},{"$f":"(((AAMC_Raw_Data_for_FY22[[#This Row],[Median]]-AAMC_Raw_Data_for_FY22[[#This Row],[25th]])/25)*10) + AAMC_Raw_Data_for_FY22[[#This Row],[25th]]","v":226686.8},{"$f":"(((AAMC_Raw_Data_for_FY22[[#This Row],[Median]]-AAMC_Raw_Data_for_FY22[[#This Row],[25th]])/25)*15) + AAMC_Raw_Data_for_FY22[[#This Row],[25th]]","v":239750.2},{"$f":"(((AAMC_Raw_Data_for_FY22[[#This Row],[Median]]-AAMC_Raw_Data_for_FY22[[#This Row],[25th]])/25)*20) + AAMC_Raw_Data_for_FY22[[#This Row],[25th]]","v":252813.6},265877,{"$f":"(((AAMC_Raw_Data_for_FY22[[#This Row],[75th]]-AAMC_Raw_Data_for_FY22[[#This Row],[Median]])/25)*5) + AAMC_Raw_Data_for_FY22[[#This Row],[Median]]","v":285410.2},{"$f":"(((AAMC_Raw_Data_for_FY22[[#This Row],[75th]]-AAMC_Raw_Data_for_FY22[[#This Row],[Median]])/25)*10) + AAMC_Raw_Data_for_FY22[[#This Row],[Median]]","v":304943.40000000002},{"$f":"(((AAMC_Raw_Data_for_FY22[[#This Row],[75th]]-AAMC_Raw_Data_for_FY22[[#This Row],[Median]])/25)*15) + AAMC_Raw_Data_for_FY22[[#This Row],[Median]]","v":324476.59999999998},{"$f":"(((AAMC_Raw_Data_for_FY22[[#This Row],[75th]]-AAMC_Raw_Data_for_FY22[[#This Row],[Median]])/25)*20) + AAMC_Raw_Data_for_FY22[[#This Row],[Median]]","v":344009.8},363543,{"$f":"(((AAMC_Raw_Data_for_FY22[[#This Row],[75th]]-AAMC_Raw_Data_for_FY22[[#This Row],[Median]])/25)*30) + AAMC_Raw_Data_for_FY22[[#This Row],[Median]]","v":383076.2},{"$f":"(((AAMC_Raw_Data_for_FY22[[#This Row],[75th]]-AAMC_Raw_Data_for_FY22[[#This Row],[Median]])/25)*35) + AAMC_Raw_Data_for_FY22[[#This Row],[Median]]","v":402609.4},{"$f":"(((AAMC_Raw_Data_for_FY22[[#This Row],[75th]]-AAMC_Raw_Data_for_FY22[[#This Row],[Median]])/25)*40) + AAMC_Raw_Data_for_FY22[[#This Row],[Median]]","v":422142.6}]
[{"$f":"AAMC_Raw_Data_for_FY22[[#This Row],[Source]]&AAMC_Raw_Data_for_FY22[[#This Row],[Type]]&AAMC_Raw_Data_for_FY22[[#This Row],[School Subset]]&AAMC_Raw_Data_for_FY22[[#This Row],[Rank]]&AAMC_Raw_Data_for_FY22[[#This Row],[Degree]]&AAMC_Raw_Data_for_FY22[[#This Row],[Department / Specialty]]&\"L\"","v":"AAMCAcademicPublicInstructorPhDOther Basic SciencesL"},"Other Basic Sciences",5,"AAMC","Academic","Public","Instructor","PhD","2021-2022",60300,{"$f":"(((AAMC_Raw_Data_for_FY22[[#This Row],[Median]]-AAMC_Raw_Data_for_FY22[[#This Row],[25th]])/25)*5) + AAMC_Raw_Data_for_FY22[[#This Row],[25th]]","v":61240},{"$f":"(((AAMC_Raw_Data_for_FY22[[#This Row],[Median]]-AAMC_Raw_Data_for_FY22[[#This Row],[25th]])/25)*10) + AAMC_Raw_Data_for_FY22[[#This Row],[25th]]","v":62180},{"$f":"(((AAMC_Raw_Data_for_FY22[[#This Row],[Median]]-AAMC_Raw_Data_for_FY22[[#This Row],[25th]])/25)*15) + AAMC_Raw_Data_for_FY22[[#This Row],[25th]]","v":63120},{"$f":"(((AAMC_Raw_Data_for_FY22[[#This Row],[Median]]-AAMC_Raw_Data_for_FY22[[#This Row],[25th]])/25)*20) + AAMC_Raw_Data_for_FY22[[#This Row],[25th]]","v":64060},65000,{"$f":"(((AAMC_Raw_Data_for_FY22[[#This Row],[75th]]-AAMC_Raw_Data_for_FY22[[#This Row],[Median]])/25)*5) + AAMC_Raw_Data_for_FY22[[#This Row],[Median]]","v":67875},{"$f":"(((AAMC_Raw_Data_for_FY22[[#This Row],[75th]]-AAMC_Raw_Data_for_FY22[[#This Row],[Median]])/25)*10) + AAMC_Raw_Data_for_FY22[[#This Row],[Median]]","v":70750},{"$f":"(((AAMC_Raw_Data_for_FY22[[#This Row],[75th]]-AAMC_Raw_Data_for_FY22[[#This Row],[Median]])/25)*15) + AAMC_Raw_Data_for_FY22[[#This Row],[Median]]","v":73625},{"$f":"(((AAMC_Raw_Data_for_FY22[[#This Row],[75th]]-AAMC_Raw_Data_for_FY22[[#This Row],[Median]])/25)*20) + AAMC_Raw_Data_for_FY22[[#This Row],[Median]]","v":76500},79375,{"$f":"(((AAMC_Raw_Data_for_FY22[[#This Row],[75th]]-AAMC_Raw_Data_for_FY22[[#This Row],[Median]])/25)*30) + AAMC_Raw_Data_for_FY22[[#This Row],[Median]]","v":82250},{"$f":"(((AAMC_Raw_Data_for_FY22[[#This Row],[75th]]-AAMC_Raw_Data_for_FY22[[#This Row],[Median]])/25)*35) + AAMC_Raw_Data_for_FY22[[#This Row],[Median]]","v":85125},{"$f":"(((AAMC_Raw_Data_for_FY22[[#This Row],[75th]]-AAMC_Raw_Data_for_FY22[[#This Row],[Median]])/25)*40) + AAMC_Raw_Data_for_FY22[[#This Row],[Median]]","v":88000}]
[{"$f":"AAMC_Raw_Data_for_FY22[[#This Row],[Source]]&AAMC_Raw_Data_for_FY22[[#This Row],[Type]]&AAMC_Raw_Data_for_FY22[[#This Row],[School Subset]]&AAMC_Raw_Data_for_FY22[[#This Row],[Rank]]&AAMC_Raw_Data_for_FY22[[#This Row],[Degree]]&AAMC_Raw_Data_for_FY22[[#This Row],[Department / Specialty]]&\"L\"","v":"AAMCAcademicPublicAssistantPhDOther Basic SciencesL"},"Other Basic Sciences",4,"AAMC","Academic","Public","Assistant","PhD","2021-2022",91668,{"$f":"(((AAMC_Raw_Data_for_FY22[[#This Row],[Median]]-AAMC_Raw_Data_for_FY22[[#This Row],[25th]])/25)*5) + AAMC_Raw_Data_for_FY22[[#This Row],[25th]]","v":94725.2},{"$f":"(((AAMC_Raw_Data_for_FY22[[#This Row],[Median]]-AAMC_Raw_Data_for_FY22[[#This Row],[25th]])/25)*10) + AAMC_Raw_Data_for_FY22[[#This Row],[25th]]","v":97782.399999999994},{"$f":"(((AAMC_Raw_Data_for_FY22[[#This Row],[Median]]-AAMC_Raw_Data_for_FY22[[#This Row],[25th]])/25)*15) + AAMC_Raw_Data_for_FY22[[#This Row],[25th]]","v":100839.6},{"$f":"(((AAMC_Raw_Data_for_FY22[[#This Row],[Median]]-AAMC_Raw_Data_for_FY22[[#This Row],[25th]])/25)*20) + AAMC_Raw_Data_for_FY22[[#This Row],[25th]]","v":103896.8},106954,{"$f":"(((AAMC_Raw_Data_for_FY22[[#This Row],[75th]]-AAMC_Raw_Data_for_FY22[[#This Row],[Median]])/25)*5) + AAMC_Raw_Data_for_FY22[[#This Row],[Median]]","v":110688},{"$f":"(((AAMC_Raw_Data_for_FY22[[#This Row],[75th]]-AAMC_Raw_Data_for_FY22[[#This Row],[Median]])/25)*10) + AAMC_Raw_Data_for_FY22[[#This Row],[Median]]","v":114422},{"$f":"(((AAMC_Raw_Data_for_FY22[[#This Row],[75th]]-AAMC_Raw_Data_for_FY22[[#This Row],[Median]])/25)*15) + AAMC_Raw_Data_for_FY22[[#This Row],[Median]]","v":118156},{"$f":"(((AAMC_Raw_Data_for_FY22[[#This Row],[75th]]-AAMC_Raw_Data_for_FY22[[#This Row],[Median]])/25)*20) + AAMC_Raw_Data_for_FY22[[#This Row],[Median]]","v":121890},125624,{"$f":"(((AAMC_Raw_Data_for_FY22[[#This Row],[75th]]-AAMC_Raw_Data_for_FY22[[#This Row],[Median]])/25)*30) + AAMC_Raw_Data_for_FY22[[#This Row],[Median]]","v":129358},{"$f":"(((AAMC_Raw_Data_for_FY22[[#This Row],[75th]]-AAMC_Raw_Data_for_FY22[[#This Row],[Median]])/25)*35) + AAMC_Raw_Data_for_FY22[[#This Row],[Median]]","v":133092},{"$f":"(((AAMC_Raw_Data_for_FY22[[#This Row],[75th]]-AAMC_Raw_Data_for_FY22[[#This Row],[Median]])/25)*40) + AAMC_Raw_Data_for_FY22[[#This Row],[Median]]","v":136826}]
[{"$f":"AAMC_Raw_Data_for_FY22[[#This Row],[Source]]&AAMC_Raw_Data_for_FY22[[#This Row],[Type]]&AAMC_Raw_Data_for_FY22[[#This Row],[School Subset]]&AAMC_Raw_Data_for_FY22[[#This Row],[Rank]]&AAMC_Raw_Data_for_FY22[[#This Row],[Degree]]&AAMC_Raw_Data_for_FY22[[#This Row],[Department / Specialty]]&\"L\"","v":"AAMCAcademicPublicAssociatePhDOther Basic SciencesL"},"Other Basic Sciences",3,"AAMC","Academic","Public","Associate","PhD","2021-2022",116566,{"$f":"(((AAMC_Raw_Data_for_FY22[[#This Row],[Median]]-AAMC_Raw_Data_for_FY22[[#This Row],[25th]])/25)*5) + AAMC_Raw_Data_for_FY22[[#This Row],[25th]]","v":120118.8},{"$f":"(((AAMC_Raw_Data_for_FY22[[#This Row],[Median]]-AAMC_Raw_Data_for_FY22[[#This Row],[25th]])/25)*10) + AAMC_Raw_Data_for_FY22[[#This Row],[25th]]","v":123671.6},{"$f":"(((AAMC_Raw_Data_for_FY22[[#This Row],[Median]]-AAMC_Raw_Data_for_FY22[[#This Row],[25th]])/25)*15) + AAMC_Raw_Data_for_FY22[[#This Row],[25th]]","v":127224.4},{"$f":"(((AAMC_Raw_Data_for_FY22[[#This Row],[Median]]-AAMC_Raw_Data_for_FY22[[#This Row],[25th]])/25)*20) + AAMC_Raw_Data_for_FY22[[#This Row],[25th]]","v":130777.2},134330,{"$f":"(((AAMC_Raw_Data_for_FY22[[#This Row],[75th]]-AAMC_Raw_Data_for_FY22[[#This Row],[Median]])/25)*5) + AAMC_Raw_Data_for_FY22[[#This Row],[Median]]","v":138977},{"$f":"(((AAMC_Raw_Data_for_FY22[[#This Row],[75th]]-AAMC_Raw_Data_for_FY22[[#This Row],[Median]])/25)*10) + AAMC_Raw_Data_for_FY22[[#This Row],[Median]]","v":143624},{"$f":"(((AAMC_Raw_Data_for_FY22[[#This Row],[75th]]-AAMC_Raw_Data_for_FY22[[#This Row],[Median]])/25)*15) + AAMC_Raw_Data_for_FY22[[#This Row],[Median]]","v":148271},{"$f":"(((AAMC_Raw_Data_for_FY22[[#This Row],[75th]]-AAMC_Raw_Data_for_FY22[[#This Row],[Median]])/25)*20) + AAMC_Raw_Data_for_FY22[[#This Row],[Median]]","v":152918},157565,{"$f":"(((AAMC_Raw_Data_for_FY22[[#This Row],[75th]]-AAMC_Raw_Data_for_FY22[[#This Row],[Median]])/25)*30) + AAMC_Raw_Data_for_FY22[[#This Row],[Median]]","v":162212},{"$f":"(((AAMC_Raw_Data_for_FY22[[#This Row],[75th]]-AAMC_Raw_Data_for_FY22[[#This Row],[Median]])/25)*35) + AAMC_Raw_Data_for_FY22[[#This Row],[Median]]","v":166859},{"$f":"(((AAMC_Raw_Data_for_FY22[[#This Row],[75th]]-AAMC_Raw_Data_for_FY22[[#This Row],[Median]])/25)*40) + AAMC_Raw_Data_for_FY22[[#This Row],[Median]]","v":171506}]
[{"$f":"AAMC_Raw_Data_for_FY22[[#This Row],[Source]]&AAMC_Raw_Data_for_FY22[[#This Row],[Type]]&AAMC_Raw_Data_for_FY22[[#This Row],[School Subset]]&AAMC_Raw_Data_for_FY22[[#This Row],[Rank]]&AAMC_Raw_Data_for_FY22[[#This Row],[Degree]]&AAMC_Raw_Data_for_FY22[[#This Row],[Department / Specialty]]&\"L\"","v":"AAMCAcademicPublicProfessorPhDOther Basic SciencesL"},"Other Basic Sciences",2,"AAMC","Academic","Public","Professor","PhD","2021-2022",163238,{"$f":"(((AAMC_Raw_Data_for_FY22[[#This Row],[Median]]-AAMC_Raw_Data_for_FY22[[#This Row],[25th]])/25)*5) + AAMC_Raw_Data_for_FY22[[#This Row],[25th]]","v":168872},{"$f":"(((AAMC_Raw_Data_for_FY22[[#This Row],[Median]]-AAMC_Raw_Data_for_FY22[[#This Row],[25th]])/25)*10) + AAMC_Raw_Data_for_FY22[[#This Row],[25th]]","v":174506},{"$f":"(((AAMC_Raw_Data_for_FY22[[#This Row],[Median]]-AAMC_Raw_Data_for_FY22[[#This Row],[25th]])/25)*15) + AAMC_Raw_Data_for_FY22[[#This Row],[25th]]","v":180140},{"$f":"(((AAMC_Raw_Data_for_FY22[[#This Row],[Median]]-AAMC_Raw_Data_for_FY22[[#This Row],[25th]])/25)*20) + AAMC_Raw_Data_for_FY22[[#This Row],[25th]]","v":185774},191408,{"$f":"(((AAMC_Raw_Data_for_FY22[[#This Row],[75th]]-AAMC_Raw_Data_for_FY22[[#This Row],[Median]])/25)*5) + AAMC_Raw_Data_for_FY22[[#This Row],[Median]]","v":199635},{"$f":"(((AAMC_Raw_Data_for_FY22[[#This Row],[75th]]-AAMC_Raw_Data_for_FY22[[#This Row],[Median]])/25)*10) + AAMC_Raw_Data_for_FY22[[#This Row],[Median]]","v":207862},{"$f":"(((AAMC_Raw_Data_for_FY22[[#This Row],[75th]]-AAMC_Raw_Data_for_FY22[[#This Row],[Median]])/25)*15) + AAMC_Raw_Data_for_FY22[[#This Row],[Median]]","v":216089},{"$f":"(((AAMC_Raw_Data_for_FY22[[#This Row],[75th]]-AAMC_Raw_Data_for_FY22[[#This Row],[Median]])/25)*20) + AAMC_Raw_Data_for_FY22[[#This Row],[Median]]","v":224316},232543,{"$f":"(((AAMC_Raw_Data_for_FY22[[#This Row],[75th]]-AAMC_Raw_Data_for_FY22[[#This Row],[Median]])/25)*30) + AAMC_Raw_Data_for_FY22[[#This Row],[Median]]","v":240770},{"$f":"(((AAMC_Raw_Data_for_FY22[[#This Row],[75th]]-AAMC_Raw_Data_for_FY22[[#This Row],[Median]])/25)*35) + AAMC_Raw_Data_for_FY22[[#This Row],[Median]]","v":248997},{"$f":"(((AAMC_Raw_Data_for_FY22[[#This Row],[75th]]-AAMC_Raw_Data_for_FY22[[#This Row],[Median]])/25)*40) + AAMC_Raw_Data_for_FY22[[#This Row],[Median]]","v":257224}]
[{"$f":"AAMC_Raw_Data_for_FY22[[#This Row],[Source]]&AAMC_Raw_Data_for_FY22[[#This Row],[Type]]&AAMC_Raw_Data_for_FY22[[#This Row],[School Subset]]&AAMC_Raw_Data_for_FY22[[#This Row],[Rank]]&AAMC_Raw_Data_for_FY22[[#This Row],[Degree]]&AAMC_Raw_Data_for_FY22[[#This Row],[Department / Specialty]]&\"L\"","v":"AAMCAcademicPublicChiefPhDOther Basic SciencesL"},"Other Basic Sciences",6,"AAMC","Academic","Public","Chief","PhD","2021-2022",211283,{"$f":"(((AAMC_Raw_Data_for_FY22[[#This Row],[Median]]-AAMC_Raw_Data_for_FY22[[#This Row],[25th]])/25)*5) + AAMC_Raw_Data_for_FY22[[#This Row],[25th]]","v":213081.8},{"$f":"(((AAMC_Raw_Data_for_FY22[[#This Row],[Median]]-AAMC_Raw_Data_for_FY22[[#This Row],[25th]])/25)*10) + AAMC_Raw_Data_for_FY22[[#This Row],[25th]]","v":214880.6},{"$f":"(((AAMC_Raw_Data_for_FY22[[#This Row],[Median]]-AAMC_Raw_Data_for_FY22[[#This Row],[25th]])/25)*15) + AAMC_Raw_Data_for_FY22[[#This Row],[25th]]","v":216679.4},{"$f":"(((AAMC_Raw_Data_for_FY22[[#This Row],[Median]]-AAMC_Raw_Data_for_FY22[[#This Row],[25th]])/25)*20) + AAMC_Raw_Data_for_FY22[[#This Row],[25th]]","v":218478.2},220277,{"$f":"(((AAMC_Raw_Data_for_FY22[[#This Row],[75th]]-AAMC_Raw_Data_for_FY22[[#This Row],[Median]])/25)*5) + AAMC_Raw_Data_for_FY22[[#This Row],[Median]]","v":223932.2},{"$f":"(((AAMC_Raw_Data_for_FY22[[#This Row],[75th]]-AAMC_Raw_Data_for_FY22[[#This Row],[Median]])/25)*10) + AAMC_Raw_Data_for_FY22[[#This Row],[Median]]","v":227587.4},{"$f":"(((AAMC_Raw_Data_for_FY22[[#This Row],[75th]]-AAMC_Raw_Data_for_FY22[[#This Row],[Median]])/25)*15) + AAMC_Raw_Data_for_FY22[[#This Row],[Median]]","v":231242.6},{"$f":"(((AAMC_Raw_Data_for_FY22[[#This Row],[75th]]-AAMC_Raw_Data_for_FY22[[#This Row],[Median]])/25)*20) + AAMC_Raw_Data_for_FY22[[#This Row],[Median]]","v":234897.8},238553,{"$f":"(((AAMC_Raw_Data_for_FY22[[#This Row],[75th]]-AAMC_Raw_Data_for_FY22[[#This Row],[Median]])/25)*30) + AAMC_Raw_Data_for_FY22[[#This Row],[Median]]","v":242208.2},{"$f":"(((AAMC_Raw_Data_for_FY22[[#This Row],[75th]]-AAMC_Raw_Data_for_FY22[[#This Row],[Median]])/25)*35) + AAMC_Raw_Data_for_FY22[[#This Row],[Median]]","v":245863.4},{"$f":"(((AAMC_Raw_Data_for_FY22[[#This Row],[75th]]-AAMC_Raw_Data_for_FY22[[#This Row],[Median]])/25)*40) + AAMC_Raw_Data_for_FY22[[#This Row],[Median]]","v":249518.6}]
[{"$f":"AAMC_Raw_Data_for_FY22[[#This Row],[Source]]&AAMC_Raw_Data_for_FY22[[#This Row],[Type]]&AAMC_Raw_Data_for_FY22[[#This Row],[School Subset]]&AAMC_Raw_Data_for_FY22[[#This Row],[Rank]]&AAMC_Raw_Data_for_FY22[[#This Row],[Degree]]&AAMC_Raw_Data_for_FY22[[#This Row],[Department / Specialty]]&\"L\"","v":"AAMCAcademicPublicChairPhDOther Basic SciencesL"},"Other Basic Sciences",1,"AAMC","Academic","Public","Chair","PhD","2021-2022",235127,{"$f":"(((AAMC_Raw_Data_for_FY22[[#This Row],[Median]]-AAMC_Raw_Data_for_FY22[[#This Row],[25th]])/25)*5) + AAMC_Raw_Data_for_FY22[[#This Row],[25th]]","v":251703.4},{"$f":"(((AAMC_Raw_Data_for_FY22[[#This Row],[Median]]-AAMC_Raw_Data_for_FY22[[#This Row],[25th]])/25)*10) + AAMC_Raw_Data_for_FY22[[#This Row],[25th]]","v":268279.8},{"$f":"(((AAMC_Raw_Data_for_FY22[[#This Row],[Median]]-AAMC_Raw_Data_for_FY22[[#This Row],[25th]])/25)*15) + AAMC_Raw_Data_for_FY22[[#This Row],[25th]]","v":284856.2},{"$f":"(((AAMC_Raw_Data_for_FY22[[#This Row],[Median]]-AAMC_Raw_Data_for_FY22[[#This Row],[25th]])/25)*20) + AAMC_Raw_Data_for_FY22[[#This Row],[25th]]","v":301432.59999999998},318009,{"$f":"(((AAMC_Raw_Data_for_FY22[[#This Row],[75th]]-AAMC_Raw_Data_for_FY22[[#This Row],[Median]])/25)*5) + AAMC_Raw_Data_for_FY22[[#This Row],[Median]]","v":325566.40000000002},{"$f":"(((AAMC_Raw_Data_for_FY22[[#This Row],[75th]]-AAMC_Raw_Data_for_FY22[[#This Row],[Median]])/25)*10) + AAMC_Raw_Data_for_FY22[[#This Row],[Median]]","v":333123.8},{"$f":"(((AAMC_Raw_Data_for_FY22[[#This Row],[75th]]-AAMC_Raw_Data_for_FY22[[#This Row],[Median]])/25)*15) + AAMC_Raw_Data_for_FY22[[#This Row],[Median]]","v":340681.2},{"$f":"(((AAMC_Raw_Data_for_FY22[[#This Row],[75th]]-AAMC_Raw_Data_for_FY22[[#This Row],[Median]])/25)*20) + AAMC_Raw_Data_for_FY22[[#This Row],[Median]]","v":348238.6},355796,{"$f":"(((AAMC_Raw_Data_for_FY22[[#This Row],[75th]]-AAMC_Raw_Data_for_FY22[[#This Row],[Median]])/25)*30) + AAMC_Raw_Data_for_FY22[[#This Row],[Median]]","v":363353.4},{"$f":"(((AAMC_Raw_Data_for_FY22[[#This Row],[75th]]-AAMC_Raw_Data_for_FY22[[#This Row],[Median]])/25)*35) + AAMC_Raw_Data_for_FY22[[#This Row],[Median]]","v":370910.8},{"$f":"(((AAMC_Raw_Data_for_FY22[[#This Row],[75th]]-AAMC_Raw_Data_for_FY22[[#This Row],[Median]])/25)*40) + AAMC_Raw_Data_for_FY22[[#This Row],[Median]]","v":378468.2}]
[{"$f":"AAMC_Raw_Data_for_FY22[[#This Row],[Source]]&AAMC_Raw_Data_for_FY22[[#This Row],[Type]]&AAMC_Raw_Data_for_FY22[[#This Row],[School Subset]]&AAMC_Raw_Data_for_FY22[[#This Row],[Rank]]&AAMC_Raw_Data_for_FY22[[#This Row],[Degree]]&AAMC_Raw_Data_for_FY22[[#This Row],[Department / Specialty]]&\"L\"","v":"AAMCAcademicAllInstructorMDClinical Sciences TotalL"},"Clinical Sciences Total",5,"AAMC","Academic","All","Instructor","MD","2021-2022",146450,{"$f":"(((AAMC_Raw_Data_for_FY22[[#This Row],[Median]]-AAMC_Raw_Data_for_FY22[[#This Row],[25th]])/25)*5) + AAMC_Raw_Data_for_FY22[[#This Row],[25th]]","v":161960},{"$f":"(((AAMC_Raw_Data_for_FY22[[#This Row],[Median]]-AAMC_Raw_Data_for_FY22[[#This Row],[25th]])/25)*10) + AAMC_Raw_Data_for_FY22[[#This Row],[25th]]","v":177470},{"$f":"(((AAMC_Raw_Data_for_FY22[[#This Row],[Median]]-AAMC_Raw_Data_for_FY22[[#This Row],[25th]])/25)*15) + AAMC_Raw_Data_for_FY22[[#This Row],[25th]]","v":192980},{"$f":"(((AAMC_Raw_Data_for_FY22[[#This Row],[Median]]-AAMC_Raw_Data_for_FY22[[#This Row],[25th]])/25)*20) + AAMC_Raw_Data_for_FY22[[#This Row],[25th]]","v":208490},224000,{"$f":"(((AAMC_Raw_Data_for_FY22[[#This Row],[75th]]-AAMC_Raw_Data_for_FY22[[#This Row],[Median]])/25)*5) + AAMC_Raw_Data_for_FY22[[#This Row],[Median]]","v":240405.4},{"$f":"(((AAMC_Raw_Data_for_FY22[[#This Row],[75th]]-AAMC_Raw_Data_for_FY22[[#This Row],[Median]])/25)*10) + AAMC_Raw_Data_for_FY22[[#This Row],[Median]]","v":256810.8},{"$f":"(((AAMC_Raw_Data_for_FY22[[#This Row],[75th]]-AAMC_Raw_Data_for_FY22[[#This Row],[Median]])/25)*15) + AAMC_Raw_Data_for_FY22[[#This Row],[Median]]","v":273216.2},{"$f":"(((AAMC_Raw_Data_for_FY22[[#This Row],[75th]]-AAMC_Raw_Data_for_FY22[[#This Row],[Median]])/25)*20) + AAMC_Raw_Data_for_FY22[[#This Row],[Median]]","v":289621.59999999998},306027,{"$f":"(((AAMC_Raw_Data_for_FY22[[#This Row],[75th]]-AAMC_Raw_Data_for_FY22[[#This Row],[Median]])/25)*30) + AAMC_Raw_Data_for_FY22[[#This Row],[Median]]","v":322432.40000000002},{"$f":"(((AAMC_Raw_Data_for_FY22[[#This Row],[75th]]-AAMC_Raw_Data_for_FY22[[#This Row],[Median]])/25)*35) + AAMC_Raw_Data_for_FY22[[#This Row],[Median]]","v":338837.8},{"$f":"(((AAMC_Raw_Data_for_FY22[[#This Row],[75th]]-AAMC_Raw_Data_for_FY22[[#This Row],[Median]])/25)*40) + AAMC_Raw_Data_for_FY22[[#This Row],[Median]]","v":355243.2}]
[{"$f":"AAMC_Raw_Data_for_FY22[[#This Row],[Source]]&AAMC_Raw_Data_for_FY22[[#This Row],[Type]]&AAMC_Raw_Data_for_FY22[[#This Row],[School Subset]]&AAMC_Raw_Data_for_FY22[[#This Row],[Rank]]&AAMC_Raw_Data_for_FY22[[#This Row],[Degree]]&AAMC_Raw_Data_for_FY22[[#This Row],[Department / Specialty]]&\"L\"","v":"AAMCAcademicAllAssistantMDClinical Sciences TotalL"},"Clinical Sciences Total",4,"AAMC","Academic","All","Assistant","MD","2021-2022",223221,{"$f":"(((AAMC_Raw_Data_for_FY22[[#This Row],[Median]]-AAMC_Raw_Data_for_FY22[[#This Row],[25th]])/25)*5) + AAMC_Raw_Data_for_FY22[[#This Row],[25th]]","v":235261.4},{"$f":"(((AAMC_Raw_Data_for_FY22[[#This Row],[Median]]-AAMC_Raw_Data_for_FY22[[#This Row],[25th]])/25)*10) + AAMC_Raw_Data_for_FY22[[#This Row],[25th]]","v":247301.8},{"$f":"(((AAMC_Raw_Data_for_FY22[[#This Row],[Median]]-AAMC_Raw_Data_for_FY22[[#This Row],[25th]])/25)*15) + AAMC_Raw_Data_for_FY22[[#This Row],[25th]]","v":259342.2},{"$f":"(((AAMC_Raw_Data_for_FY22[[#This Row],[Median]]-AAMC_Raw_Data_for_FY22[[#This Row],[25th]])/25)*20) + AAMC_Raw_Data_for_FY22[[#This Row],[25th]]","v":271382.59999999998},283423,{"$f":"(((AAMC_Raw_Data_for_FY22[[#This Row],[75th]]-AAMC_Raw_Data_for_FY22[[#This Row],[Median]])/25)*5) + AAMC_Raw_Data_for_FY22[[#This Row],[Median]]","v":303928},{"$f":"(((AAMC_Raw_Data_for_FY22[[#This Row],[75th]]-AAMC_Raw_Data_for_FY22[[#This Row],[Median]])/25)*10) + AAMC_Raw_Data_for_FY22[[#This Row],[Median]]","v":324433},{"$f":"(((AAMC_Raw_Data_for_FY22[[#This Row],[75th]]-AAMC_Raw_Data_for_FY22[[#This Row],[Median]])/25)*15) + AAMC_Raw_Data_for_FY22[[#This Row],[Median]]","v":344938},{"$f":"(((AAMC_Raw_Data_for_FY22[[#This Row],[75th]]-AAMC_Raw_Data_for_FY22[[#This Row],[Median]])/25)*20) + AAMC_Raw_Data_for_FY22[[#This Row],[Median]]","v":365443},385948,{"$f":"(((AAMC_Raw_Data_for_FY22[[#This Row],[75th]]-AAMC_Raw_Data_for_FY22[[#This Row],[Median]])/25)*30) + AAMC_Raw_Data_for_FY22[[#This Row],[Median]]","v":406453},{"$f":"(((AAMC_Raw_Data_for_FY22[[#This Row],[75th]]-AAMC_Raw_Data_for_FY22[[#This Row],[Median]])/25)*35) + AAMC_Raw_Data_for_FY22[[#This Row],[Median]]","v":426958},{"$f":"(((AAMC_Raw_Data_for_FY22[[#This Row],[75th]]-AAMC_Raw_Data_for_FY22[[#This Row],[Median]])/25)*40) + AAMC_Raw_Data_for_FY22[[#This Row],[Median]]","v":447463}]
[{"$f":"AAMC_Raw_Data_for_FY22[[#This Row],[Source]]&AAMC_Raw_Data_for_FY22[[#This Row],[Type]]&AAMC_Raw_Data_for_FY22[[#This Row],[School Subset]]&AAMC_Raw_Data_for_FY22[[#This Row],[Rank]]&AAMC_Raw_Data_for_FY22[[#This Row],[Degree]]&AAMC_Raw_Data_for_FY22[[#This Row],[Department / Specialty]]&\"L\"","v":"AAMCAcademicAllAssociateMDClinical Sciences TotalL"},"Clinical Sciences Total",3,"AAMC","Academic","All","Associate","MD","2021-2022",252760,{"$f":"(((AAMC_Raw_Data_for_FY22[[#This Row],[Median]]-AAMC_Raw_Data_for_FY22[[#This Row],[25th]])/25)*5) + AAMC_Raw_Data_for_FY22[[#This Row],[25th]]","v":267938.8},{"$f":"(((AAMC_Raw_Data_for_FY22[[#This Row],[Median]]-AAMC_Raw_Data_for_FY22[[#This Row],[25th]])/25)*10) + AAMC_Raw_Data_for_FY22[[#This Row],[25th]]","v":283117.59999999998},{"$f":"(((AAMC_Raw_Data_for_FY22[[#This Row],[Median]]-AAMC_Raw_Data_for_FY22[[#This Row],[25th]])/25)*15) + AAMC_Raw_Data_for_FY22[[#This Row],[25th]]","v":298296.40000000002},{"$f":"(((AAMC_Raw_Data_for_FY22[[#This Row],[Median]]-AAMC_Raw_Data_for_FY22[[#This Row],[25th]])/25)*20) + AAMC_Raw_Data_for_FY22[[#This Row],[25th]]","v":313475.20000000001},328654,{"$f":"(((AAMC_Raw_Data_for_FY22[[#This Row],[75th]]-AAMC_Raw_Data_for_FY22[[#This Row],[Median]])/25)*5) + AAMC_Raw_Data_for_FY22[[#This Row],[Median]]","v":353180.8},{"$f":"(((AAMC_Raw_Data_for_FY22[[#This Row],[75th]]-AAMC_Raw_Data_for_FY22[[#This Row],[Median]])/25)*10) + AAMC_Raw_Data_for_FY22[[#This Row],[Median]]","v":377707.6},{"$f":"(((AAMC_Raw_Data_for_FY22[[#This Row],[75th]]-AAMC_Raw_Data_for_FY22[[#This Row],[Median]])/25)*15) + AAMC_Raw_Data_for_FY22[[#This Row],[Median]]","v":402234.4},{"$f":"(((AAMC_Raw_Data_for_FY22[[#This Row],[75th]]-AAMC_Raw_Data_for_FY22[[#This Row],[Median]])/25)*20) + AAMC_Raw_Data_for_FY22[[#This Row],[Median]]","v":426761.2},451288,{"$f":"(((AAMC_Raw_Data_for_FY22[[#This Row],[75th]]-AAMC_Raw_Data_for_FY22[[#This Row],[Median]])/25)*30) + AAMC_Raw_Data_for_FY22[[#This Row],[Median]]","v":475814.8},{"$f":"(((AAMC_Raw_Data_for_FY22[[#This Row],[75th]]-AAMC_Raw_Data_for_FY22[[#This Row],[Median]])/25)*35) + AAMC_Raw_Data_for_FY22[[#This Row],[Median]]","v":500341.6},{"$f":"(((AAMC_Raw_Data_for_FY22[[#This Row],[75th]]-AAMC_Raw_Data_for_FY22[[#This Row],[Median]])/25)*40) + AAMC_Raw_Data_for_FY22[[#This Row],[Median]]","v":524868.4}]
[{"$f":"AAMC_Raw_Data_for_FY22[[#This Row],[Source]]&AAMC_Raw_Data_for_FY22[[#This Row],[Type]]&AAMC_Raw_Data_for_FY22[[#This Row],[School Subset]]&AAMC_Raw_Data_for_FY22[[#This Row],[Rank]]&AAMC_Raw_Data_for_FY22[[#This Row],[Degree]]&AAMC_Raw_Data_for_FY22[[#This Row],[Department / Specialty]]&\"L\"","v":"AAMCAcademicAllProfessorMDClinical Sciences TotalL"},"Clinical Sciences Total",2,"AAMC","Academic","All","Professor","MD","2021-2022",287605,{"$f":"(((AAMC_Raw_Data_for_FY22[[#This Row],[Median]]-AAMC_Raw_Data_for_FY22[[#This Row],[25th]])/25)*5) + AAMC_Raw_Data_for_FY22[[#This Row],[25th]]","v":304936.40000000002},{"$f":"(((AAMC_Raw_Data_for_FY22[[#This Row],[Median]]-AAMC_Raw_Data_for_FY22[[#This Row],[25th]])/25)*10) + AAMC_Raw_Data_for_FY22[[#This Row],[25th]]","v":322267.8},{"$f":"(((AAMC_Raw_Data_for_FY22[[#This Row],[Median]]-AAMC_Raw_Data_for_FY22[[#This Row],[25th]])/25)*15) + AAMC_Raw_Data_for_FY22[[#This Row],[25th]]","v":339599.2},{"$f":"(((AAMC_Raw_Data_for_FY22[[#This Row],[Median]]-AAMC_Raw_Data_for_FY22[[#This Row],[25th]])/25)*20) + AAMC_Raw_Data_for_FY22[[#This Row],[25th]]","v":356930.6},374262,{"$f":"(((AAMC_Raw_Data_for_FY22[[#This Row],[75th]]-AAMC_Raw_Data_for_FY22[[#This Row],[Median]])/25)*5) + AAMC_Raw_Data_for_FY22[[#This Row],[Median]]","v":399609.59999999998},{"$f":"(((AAMC_Raw_Data_for_FY22[[#This Row],[75th]]-AAMC_Raw_Data_for_FY22[[#This Row],[Median]])/25)*10) + AAMC_Raw_Data_for_FY22[[#This Row],[Median]]","v":424957.2},{"$f":"(((AAMC_Raw_Data_for_FY22[[#This Row],[75th]]-AAMC_Raw_Data_for_FY22[[#This Row],[Median]])/25)*15) + AAMC_Raw_Data_for_FY22[[#This Row],[Median]]","v":450304.8},{"$f":"(((AAMC_Raw_Data_for_FY22[[#This Row],[75th]]-AAMC_Raw_Data_for_FY22[[#This Row],[Median]])/25)*20) + AAMC_Raw_Data_for_FY22[[#This Row],[Median]]","v":475652.4},501000,{"$f":"(((AAMC_Raw_Data_for_FY22[[#This Row],[75th]]-AAMC_Raw_Data_for_FY22[[#This Row],[Median]])/25)*30) + AAMC_Raw_Data_for_FY22[[#This Row],[Median]]","v":526347.6},{"$f":"(((AAMC_Raw_Data_for_FY22[[#This Row],[75th]]-AAMC_Raw_Data_for_FY22[[#This Row],[Median]])/25)*35) + AAMC_Raw_Data_for_FY22[[#This Row],[Median]]","v":551695.19999999995},{"$f":"(((AAMC_Raw_Data_for_FY22[[#This Row],[75th]]-AAMC_Raw_Data_for_FY22[[#This Row],[Median]])/25)*40) + AAMC_Raw_Data_for_FY22[[#This Row],[Median]]","v":577042.80000000005}]
[{"$f":"AAMC_Raw_Data_for_FY22[[#This Row],[Source]]&AAMC_Raw_Data_for_FY22[[#This Row],[Type]]&AAMC_Raw_Data_for_FY22[[#This Row],[School Subset]]&AAMC_Raw_Data_for_FY22[[#This Row],[Rank]]&AAMC_Raw_Data_for_FY22[[#This Row],[Degree]]&AAMC_Raw_Data_for_FY22[[#This Row],[Department / Specialty]]&\"L\"","v":"AAMCAcademicAllChiefMDClinical Sciences TotalL"},"Clinical Sciences Total",6,"AAMC","Academic","All","Chief","MD","2021-2022",326392,{"$f":"(((AAMC_Raw_Data_for_FY22[[#This Row],[Median]]-AAMC_Raw_Data_for_FY22[[#This Row],[25th]])/25)*5) + AAMC_Raw_Data_for_FY22[[#This Row],[25th]]","v":347864.8},{"$f":"(((AAMC_Raw_Data_for_FY22[[#This Row],[Median]]-AAMC_Raw_Data_for_FY22[[#This Row],[25th]])/25)*10) + AAMC_Raw_Data_for_FY22[[#This Row],[25th]]","v":369337.59999999998},{"$f":"(((AAMC_Raw_Data_for_FY22[[#This Row],[Median]]-AAMC_Raw_Data_for_FY22[[#This Row],[25th]])/25)*15) + AAMC_Raw_Data_for_FY22[[#This Row],[25th]]","v":390810.4},{"$f":"(((AAMC_Raw_Data_for_FY22[[#This Row],[Median]]-AAMC_Raw_Data_for_FY22[[#This Row],[25th]])/25)*20) + AAMC_Raw_Data_for_FY22[[#This Row],[25th]]","v":412283.2},433756,{"$f":"(((AAMC_Raw_Data_for_FY22[[#This Row],[75th]]-AAMC_Raw_Data_for_FY22[[#This Row],[Median]])/25)*5) + AAMC_Raw_Data_for_FY22[[#This Row],[Median]]","v":463143.2},{"$f":"(((AAMC_Raw_Data_for_FY22[[#This Row],[75th]]-AAMC_Raw_Data_for_FY22[[#This Row],[Median]])/25)*10) + AAMC_Raw_Data_for_FY22[[#This Row],[Median]]","v":492530.4},{"$f":"(((AAMC_Raw_Data_for_FY22[[#This Row],[75th]]-AAMC_Raw_Data_for_FY22[[#This Row],[Median]])/25)*15) + AAMC_Raw_Data_for_FY22[[#This Row],[Median]]","v":521917.6},{"$f":"(((AAMC_Raw_Data_for_FY22[[#This Row],[75th]]-AAMC_Raw_Data_for_FY22[[#This Row],[Median]])/25)*20) + AAMC_Raw_Data_for_FY22[[#This Row],[Median]]","v":551304.80000000005},580692,{"$f":"(((AAMC_Raw_Data_for_FY22[[#This Row],[75th]]-AAMC_Raw_Data_for_FY22[[#This Row],[Median]])/25)*30) + AAMC_Raw_Data_for_FY22[[#This Row],[Median]]","v":610079.19999999995},{"$f":"(((AAMC_Raw_Data_for_FY22[[#This Row],[75th]]-AAMC_Raw_Data_for_FY22[[#This Row],[Median]])/25)*35) + AAMC_Raw_Data_for_FY22[[#This Row],[Median]]","v":639466.4},{"$f":"(((AAMC_Raw_Data_for_FY22[[#This Row],[75th]]-AAMC_Raw_Data_for_FY22[[#This Row],[Median]])/25)*40) + AAMC_Raw_Data_for_FY22[[#This Row],[Median]]","v":668853.6}]
[{"$f":"AAMC_Raw_Data_for_FY22[[#This Row],[Source]]&AAMC_Raw_Data_for_FY22[[#This Row],[Type]]&AAMC_Raw_Data_for_FY22[[#This Row],[School Subset]]&AAMC_Raw_Data_for_FY22[[#This Row],[Rank]]&AAMC_Raw_Data_for_FY22[[#This Row],[Degree]]&AAMC_Raw_Data_for_FY22[[#This Row],[Department / Specialty]]&\"L\"","v":"AAMCAcademicAllChairMDClinical Sciences TotalL"},"Clinical Sciences Total",1,"AAMC","Academic","All","Chair","MD","2021-2022",515119,{"$f":"(((AAMC_Raw_Data_for_FY22[[#This Row],[Median]]-AAMC_Raw_Data_for_FY22[[#This Row],[25th]])/25)*5) + AAMC_Raw_Data_for_FY22[[#This Row],[25th]]","v":545706.80000000005},{"$f":"(((AAMC_Raw_Data_for_FY22[[#This Row],[Median]]-AAMC_Raw_Data_for_FY22[[#This Row],[25th]])/25)*10) + AAMC_Raw_Data_for_FY22[[#This Row],[25th]]","v":576294.6},{"$f":"(((AAMC_Raw_Data_for_FY22[[#This Row],[Median]]-AAMC_Raw_Data_for_FY22[[#This Row],[25th]])/25)*15) + AAMC_Raw_Data_for_FY22[[#This Row],[25th]]","v":606882.4},{"$f":"(((AAMC_Raw_Data_for_FY22[[#This Row],[Median]]-AAMC_Raw_Data_for_FY22[[#This Row],[25th]])/25)*20) + AAMC_Raw_Data_for_FY22[[#This Row],[25th]]","v":637470.19999999995},668058,{"$f":"(((AAMC_Raw_Data_for_FY22[[#This Row],[75th]]-AAMC_Raw_Data_for_FY22[[#This Row],[Median]])/25)*5) + AAMC_Raw_Data_for_FY22[[#This Row],[Median]]","v":708840.4},{"$f":"(((AAMC_Raw_Data_for_FY22[[#This Row],[75th]]-AAMC_Raw_Data_for_FY22[[#This Row],[Median]])/25)*10) + AAMC_Raw_Data_for_FY22[[#This Row],[Median]]","v":749622.8},{"$f":"(((AAMC_Raw_Data_for_FY22[[#This Row],[75th]]-AAMC_Raw_Data_for_FY22[[#This Row],[Median]])/25)*15) + AAMC_Raw_Data_for_FY22[[#This Row],[Median]]","v":790405.2},{"$f":"(((AAMC_Raw_Data_for_FY22[[#This Row],[75th]]-AAMC_Raw_Data_for_FY22[[#This Row],[Median]])/25)*20) + AAMC_Raw_Data_for_FY22[[#This Row],[Median]]","v":831187.6},871970,{"$f":"(((AAMC_Raw_Data_for_FY22[[#This Row],[75th]]-AAMC_Raw_Data_for_FY22[[#This Row],[Median]])/25)*30) + AAMC_Raw_Data_for_FY22[[#This Row],[Median]]","v":912752.4},{"$f":"(((AAMC_Raw_Data_for_FY22[[#This Row],[75th]]-AAMC_Raw_Data_for_FY22[[#This Row],[Median]])/25)*35) + AAMC_Raw_Data_for_FY22[[#This Row],[Median]]","v":953534.8},{"$f":"(((AAMC_Raw_Data_for_FY22[[#This Row],[75th]]-AAMC_Raw_Data_for_FY22[[#This Row],[Median]])/25)*40) + AAMC_Raw_Data_for_FY22[[#This Row],[Median]]","v":994317.2}]
[{"$f":"AAMC_Raw_Data_for_FY22[[#This Row],[Source]]&AAMC_Raw_Data_for_FY22[[#This Row],[Type]]&AAMC_Raw_Data_for_FY22[[#This Row],[School Subset]]&AAMC_Raw_Data_for_FY22[[#This Row],[Rank]]&AAMC_Raw_Data_for_FY22[[#This Row],[Degree]]&AAMC_Raw_Data_for_FY22[[#This Row],[Department / Specialty]]&\"L\"","v":"AAMCAcademicAllInstructorMDAnesthesiology TotalL"},"Anesthesiology Total",5,"AAMC","Academic","All","Instructor","MD","2021-2022",293242,{"$f":"(((AAMC_Raw_Data_for_FY22[[#This Row],[Median]]-AAMC_Raw_Data_for_FY22[[#This Row],[25th]])/25)*5) + AAMC_Raw_Data_for_FY22[[#This Row],[25th]]","v":309083.40000000002},{"$f":"(((AAMC_Raw_Data_for_FY22[[#This Row],[Median]]-AAMC_Raw_Data_for_FY22[[#This Row],[25th]])/25)*10) + AAMC_Raw_Data_for_FY22[[#This Row],[25th]]","v":324924.79999999999},{"$f":"(((AAMC_Raw_Data_for_FY22[[#This Row],[Median]]-AAMC_Raw_Data_for_FY22[[#This Row],[25th]])/25)*15) + AAMC_Raw_Data_for_FY22[[#This Row],[25th]]","v":340766.2},{"$f":"(((AAMC_Raw_Data_for_FY22[[#This Row],[Median]]-AAMC_Raw_Data_for_FY22[[#This Row],[25th]])/25)*20) + AAMC_Raw_Data_for_FY22[[#This Row],[25th]]","v":356607.6},372449,{"$f":"(((AAMC_Raw_Data_for_FY22[[#This Row],[75th]]-AAMC_Raw_Data_for_FY22[[#This Row],[Median]])/25)*5) + AAMC_Raw_Data_for_FY22[[#This Row],[Median]]","v":384846.4},{"$f":"(((AAMC_Raw_Data_for_FY22[[#This Row],[75th]]-AAMC_Raw_Data_for_FY22[[#This Row],[Median]])/25)*10) + AAMC_Raw_Data_for_FY22[[#This Row],[Median]]","v":397243.8},{"$f":"(((AAMC_Raw_Data_for_FY22[[#This Row],[75th]]-AAMC_Raw_Data_for_FY22[[#This Row],[Median]])/25)*15) + AAMC_Raw_Data_for_FY22[[#This Row],[Median]]","v":409641.2},{"$f":"(((AAMC_Raw_Data_for_FY22[[#This Row],[75th]]-AAMC_Raw_Data_for_FY22[[#This Row],[Median]])/25)*20) + AAMC_Raw_Data_for_FY22[[#This Row],[Median]]","v":422038.6},434436,{"$f":"(((AAMC_Raw_Data_for_FY22[[#This Row],[75th]]-AAMC_Raw_Data_for_FY22[[#This Row],[Median]])/25)*30) + AAMC_Raw_Data_for_FY22[[#This Row],[Median]]","v":446833.4},{"$f":"(((AAMC_Raw_Data_for_FY22[[#This Row],[75th]]-AAMC_Raw_Data_for_FY22[[#This Row],[Median]])/25)*35) + AAMC_Raw_Data_for_FY22[[#This Row],[Median]]","v":459230.8},{"$f":"(((AAMC_Raw_Data_for_FY22[[#This Row],[75th]]-AAMC_Raw_Data_for_FY22[[#This Row],[Median]])/25)*40) + AAMC_Raw_Data_for_FY22[[#This Row],[Median]]","v":471628.2}]
[{"$f":"AAMC_Raw_Data_for_FY22[[#This Row],[Source]]&AAMC_Raw_Data_for_FY22[[#This Row],[Type]]&AAMC_Raw_Data_for_FY22[[#This Row],[School Subset]]&AAMC_Raw_Data_for_FY22[[#This Row],[Rank]]&AAMC_Raw_Data_for_FY22[[#This Row],[Degree]]&AAMC_Raw_Data_for_FY22[[#This Row],[Department / Specialty]]&\"L\"","v":"AAMCAcademicAllAssistantMDAnesthesiology TotalL"},"Anesthesiology Total",4,"AAMC","Academic","All","Assistant","MD","2021-2022",377407,{"$f":"(((AAMC_Raw_Data_for_FY22[[#This Row],[Median]]-AAMC_Raw_Data_for_FY22[[#This Row],[25th]])/25)*5) + AAMC_Raw_Data_for_FY22[[#This Row],[25th]]","v":387192.2},{"$f":"(((AAMC_Raw_Data_for_FY22[[#This Row],[Median]]-AAMC_Raw_Data_for_FY22[[#This Row],[25th]])/25)*10) + AAMC_Raw_Data_for_FY22[[#This Row],[25th]]","v":396977.4},{"$f":"(((AAMC_Raw_Data_for_FY22[[#This Row],[Median]]-AAMC_Raw_Data_for_FY22[[#This Row],[25th]])/25)*15) + AAMC_Raw_Data_for_FY22[[#This Row],[25th]]","v":406762.6},{"$f":"(((AAMC_Raw_Data_for_FY22[[#This Row],[Median]]-AAMC_Raw_Data_for_FY22[[#This Row],[25th]])/25)*20) + AAMC_Raw_Data_for_FY22[[#This Row],[25th]]","v":416547.8},426333,{"$f":"(((AAMC_Raw_Data_for_FY22[[#This Row],[75th]]-AAMC_Raw_Data_for_FY22[[#This Row],[Median]])/25)*5) + AAMC_Raw_Data_for_FY22[[#This Row],[Median]]","v":436374.4},{"$f":"(((AAMC_Raw_Data_for_FY22[[#This Row],[75th]]-AAMC_Raw_Data_for_FY22[[#This Row],[Median]])/25)*10) + AAMC_Raw_Data_for_FY22[[#This Row],[Median]]","v":446415.8},{"$f":"(((AAMC_Raw_Data_for_FY22[[#This Row],[75th]]-AAMC_Raw_Data_for_FY22[[#This Row],[Median]])/25)*15) + AAMC_Raw_Data_for_FY22[[#This Row],[Median]]","v":456457.2},{"$f":"(((AAMC_Raw_Data_for_FY22[[#This Row],[75th]]-AAMC_Raw_Data_for_FY22[[#This Row],[Median]])/25)*20) + AAMC_Raw_Data_for_FY22[[#This Row],[Median]]","v":466498.6},476540,{"$f":"(((AAMC_Raw_Data_for_FY22[[#This Row],[75th]]-AAMC_Raw_Data_for_FY22[[#This Row],[Median]])/25)*30) + AAMC_Raw_Data_for_FY22[[#This Row],[Median]]","v":486581.4},{"$f":"(((AAMC_Raw_Data_for_FY22[[#This Row],[75th]]-AAMC_Raw_Data_for_FY22[[#This Row],[Median]])/25)*35) + AAMC_Raw_Data_for_FY22[[#This Row],[Median]]","v":496622.8},{"$f":"(((AAMC_Raw_Data_for_FY22[[#This Row],[75th]]-AAMC_Raw_Data_for_FY22[[#This Row],[Median]])/25)*40) + AAMC_Raw_Data_for_FY22[[#This Row],[Median]]","v":506664.2}]
[{"$f":"AAMC_Raw_Data_for_FY22[[#This Row],[Source]]&AAMC_Raw_Data_for_FY22[[#This Row],[Type]]&AAMC_Raw_Data_for_FY22[[#This Row],[School Subset]]&AAMC_Raw_Data_for_FY22[[#This Row],[Rank]]&AAMC_Raw_Data_for_FY22[[#This Row],[Degree]]&AAMC_Raw_Data_for_FY22[[#This Row],[Department / Specialty]]&\"L\"","v":"AAMCAcademicAllAssociateMDAnesthesiology TotalL"},"Anesthesiology Total",3,"AAMC","Academic","All","Associate","MD","2021-2022",408363,{"$f":"(((AAMC_Raw_Data_for_FY22[[#This Row],[Median]]-AAMC_Raw_Data_for_FY22[[#This Row],[25th]])/25)*5) + AAMC_Raw_Data_for_FY22[[#This Row],[25th]]","v":418416.4},{"$f":"(((AAMC_Raw_Data_for_FY22[[#This Row],[Median]]-AAMC_Raw_Data_for_FY22[[#This Row],[25th]])/25)*10) + AAMC_Raw_Data_for_FY22[[#This Row],[25th]]","v":428469.8},{"$f":"(((AAMC_Raw_Data_for_FY22[[#This Row],[Median]]-AAMC_Raw_Data_for_FY22[[#This Row],[25th]])/25)*15) + AAMC_Raw_Data_for_FY22[[#This Row],[25th]]","v":438523.2},{"$f":"(((AAMC_Raw_Data_for_FY22[[#This Row],[Median]]-AAMC_Raw_Data_for_FY22[[#This Row],[25th]])/25)*20) + AAMC_Raw_Data_for_FY22[[#This Row],[25th]]","v":448576.6},458630,{"$f":"(((AAMC_Raw_Data_for_FY22[[#This Row],[75th]]-AAMC_Raw_Data_for_FY22[[#This Row],[Median]])/25)*5) + AAMC_Raw_Data_for_FY22[[#This Row],[Median]]","v":468532.4},{"$f":"(((AAMC_Raw_Data_for_FY22[[#This Row],[75th]]-AAMC_Raw_Data_for_FY22[[#This Row],[Median]])/25)*10) + AAMC_Raw_Data_for_FY22[[#This Row],[Median]]","v":478434.8},{"$f":"(((AAMC_Raw_Data_for_FY22[[#This Row],[75th]]-AAMC_Raw_Data_for_FY22[[#This Row],[Median]])/25)*15) + AAMC_Raw_Data_for_FY22[[#This Row],[Median]]","v":488337.2},{"$f":"(((AAMC_Raw_Data_for_FY22[[#This Row],[75th]]-AAMC_Raw_Data_for_FY22[[#This Row],[Median]])/25)*20) + AAMC_Raw_Data_for_FY22[[#This Row],[Median]]","v":498239.6},508142,{"$f":"(((AAMC_Raw_Data_for_FY22[[#This Row],[75th]]-AAMC_Raw_Data_for_FY22[[#This Row],[Median]])/25)*30) + AAMC_Raw_Data_for_FY22[[#This Row],[Median]]","v":518044.4},{"$f":"(((AAMC_Raw_Data_for_FY22[[#This Row],[75th]]-AAMC_Raw_Data_for_FY22[[#This Row],[Median]])/25)*35) + AAMC_Raw_Data_for_FY22[[#This Row],[Median]]","v":527946.80000000005},{"$f":"(((AAMC_Raw_Data_for_FY22[[#This Row],[75th]]-AAMC_Raw_Data_for_FY22[[#This Row],[Median]])/25)*40) + AAMC_Raw_Data_for_FY22[[#This Row],[Median]]","v":537849.19999999995}]
[{"$f":"AAMC_Raw_Data_for_FY22[[#This Row],[Source]]&AAMC_Raw_Data_for_FY22[[#This Row],[Type]]&AAMC_Raw_Data_for_FY22[[#This Row],[School Subset]]&AAMC_Raw_Data_for_FY22[[#This Row],[Rank]]&AAMC_Raw_Data_for_FY22[[#This Row],[Degree]]&AAMC_Raw_Data_for_FY22[[#This Row],[Department / Specialty]]&\"L\"","v":"AAMCAcademicAllProfessorMDAnesthesiology TotalL"},"Anesthesiology Total",2,"AAMC","Academic","All","Professor","MD","2021-2022",410204,{"$f":"(((AAMC_Raw_Data_for_FY22[[#This Row],[Median]]-AAMC_Raw_Data_for_FY22[[#This Row],[25th]])/25)*5) + AAMC_Raw_Data_for_FY22[[#This Row],[25th]]","v":422433.8},{"$f":"(((AAMC_Raw_Data_for_FY22[[#This Row],[Median]]-AAMC_Raw_Data_for_FY22[[#This Row],[25th]])/25)*10) + AAMC_Raw_Data_for_FY22[[#This Row],[25th]]","v":434663.6},{"$f":"(((AAMC_Raw_Data_for_FY22[[#This Row],[Median]]-AAMC_Raw_Data_for_FY22[[#This Row],[25th]])/25)*15) + AAMC_Raw_Data_for_FY22[[#This Row],[25th]]","v":446893.4},{"$f":"(((AAMC_Raw_Data_for_FY22[[#This Row],[Median]]-AAMC_Raw_Data_for_FY22[[#This Row],[25th]])/25)*20) + AAMC_Raw_Data_for_FY22[[#This Row],[25th]]","v":459123.20000000001},471353,{"$f":"(((AAMC_Raw_Data_for_FY22[[#This Row],[75th]]-AAMC_Raw_Data_for_FY22[[#This Row],[Median]])/25)*5) + AAMC_Raw_Data_for_FY22[[#This Row],[Median]]","v":482830.8},{"$f":"(((AAMC_Raw_Data_for_FY22[[#This Row],[75th]]-AAMC_Raw_Data_for_FY22[[#This Row],[Median]])/25)*10) + AAMC_Raw_Data_for_FY22[[#This Row],[Median]]","v":494308.6},{"$f":"(((AAMC_Raw_Data_for_FY22[[#This Row],[75th]]-AAMC_Raw_Data_for_FY22[[#This Row],[Median]])/25)*15) + AAMC_Raw_Data_for_FY22[[#This Row],[Median]]","v":505786.4},{"$f":"(((AAMC_Raw_Data_for_FY22[[#This Row],[75th]]-AAMC_Raw_Data_for_FY22[[#This Row],[Median]])/25)*20) + AAMC_Raw_Data_for_FY22[[#This Row],[Median]]","v":517264.2},528742,{"$f":"(((AAMC_Raw_Data_for_FY22[[#This Row],[75th]]-AAMC_Raw_Data_for_FY22[[#This Row],[Median]])/25)*30) + AAMC_Raw_Data_for_FY22[[#This Row],[Median]]","v":540219.80000000005},{"$f":"(((AAMC_Raw_Data_for_FY22[[#This Row],[75th]]-AAMC_Raw_Data_for_FY22[[#This Row],[Median]])/25)*35) + AAMC_Raw_Data_for_FY22[[#This Row],[Median]]","v":551697.6},{"$f":"(((AAMC_Raw_Data_for_FY22[[#This Row],[75th]]-AAMC_Raw_Data_for_FY22[[#This Row],[Median]])/25)*40) + AAMC_Raw_Data_for_FY22[[#This Row],[Median]]","v":563175.4}]
[{"$f":"AAMC_Raw_Data_for_FY22[[#This Row],[Source]]&AAMC_Raw_Data_for_FY22[[#This Row],[Type]]&AAMC_Raw_Data_for_FY22[[#This Row],[School Subset]]&AAMC_Raw_Data_for_FY22[[#This Row],[Rank]]&AAMC_Raw_Data_for_FY22[[#This Row],[Degree]]&AAMC_Raw_Data_for_FY22[[#This Row],[Department / Specialty]]&\"L\"","v":"AAMCAcademicAllChiefMDAnesthesiology TotalL"},"Anesthesiology Total",6,"AAMC","Academic","All","Chief","MD","2021-2022",439296,{"$f":"(((AAMC_Raw_Data_for_FY22[[#This Row],[Median]]-AAMC_Raw_Data_for_FY22[[#This Row],[25th]])/25)*5) + AAMC_Raw_Data_for_FY22[[#This Row],[25th]]","v":450851},{"$f":"(((AAMC_Raw_Data_for_FY22[[#This Row],[Median]]-AAMC_Raw_Data_for_FY22[[#This Row],[25th]])/25)*10) + AAMC_Raw_Data_for_FY22[[#This Row],[25th]]","v":462406},{"$f":"(((AAMC_Raw_Data_for_FY22[[#This Row],[Median]]-AAMC_Raw_Data_for_FY22[[#This Row],[25th]])/25)*15) + AAMC_Raw_Data_for_FY22[[#This Row],[25th]]","v":473961},{"$f":"(((AAMC_Raw_Data_for_FY22[[#This Row],[Median]]-AAMC_Raw_Data_for_FY22[[#This Row],[25th]])/25)*20) + AAMC_Raw_Data_for_FY22[[#This Row],[25th]]","v":485516},497071,{"$f":"(((AAMC_Raw_Data_for_FY22[[#This Row],[75th]]-AAMC_Raw_Data_for_FY22[[#This Row],[Median]])/25)*5) + AAMC_Raw_Data_for_FY22[[#This Row],[Median]]","v":513575},{"$f":"(((AAMC_Raw_Data_for_FY22[[#This Row],[75th]]-AAMC_Raw_Data_for_FY22[[#This Row],[Median]])/25)*10) + AAMC_Raw_Data_for_FY22[[#This Row],[Median]]","v":530079},{"$f":"(((AAMC_Raw_Data_for_FY22[[#This Row],[75th]]-AAMC_Raw_Data_for_FY22[[#This Row],[Median]])/25)*15) + AAMC_Raw_Data_for_FY22[[#This Row],[Median]]","v":546583},{"$f":"(((AAMC_Raw_Data_for_FY22[[#This Row],[75th]]-AAMC_Raw_Data_for_FY22[[#This Row],[Median]])/25)*20) + AAMC_Raw_Data_for_FY22[[#This Row],[Median]]","v":563087},579591,{"$f":"(((AAMC_Raw_Data_for_FY22[[#This Row],[75th]]-AAMC_Raw_Data_for_FY22[[#This Row],[Median]])/25)*30) + AAMC_Raw_Data_for_FY22[[#This Row],[Median]]","v":596095},{"$f":"(((AAMC_Raw_Data_for_FY22[[#This Row],[75th]]-AAMC_Raw_Data_for_FY22[[#This Row],[Median]])/25)*35) + AAMC_Raw_Data_for_FY22[[#This Row],[Median]]","v":612599},{"$f":"(((AAMC_Raw_Data_for_FY22[[#This Row],[75th]]-AAMC_Raw_Data_for_FY22[[#This Row],[Median]])/25)*40) + AAMC_Raw_Data_for_FY22[[#This Row],[Median]]","v":629103}]
[{"$f":"AAMC_Raw_Data_for_FY22[[#This Row],[Source]]&AAMC_Raw_Data_for_FY22[[#This Row],[Type]]&AAMC_Raw_Data_for_FY22[[#This Row],[School Subset]]&AAMC_Raw_Data_for_FY22[[#This Row],[Rank]]&AAMC_Raw_Data_for_FY22[[#This Row],[Degree]]&AAMC_Raw_Data_for_FY22[[#This Row],[Department / Specialty]]&\"L\"","v":"AAMCAcademicAllChairMDAnesthesiology TotalL"},"Anesthesiology Total",1,"AAMC","Academic","All","Chair","MD","2021-2022",625000,{"$f":"(((AAMC_Raw_Data_for_FY22[[#This Row],[Median]]-AAMC_Raw_Data_for_FY22[[#This Row],[25th]])/25)*5) + AAMC_Raw_Data_for_FY22[[#This Row],[25th]]","v":636189.4},{"$f":"(((AAMC_Raw_Data_for_FY22[[#This Row],[Median]]-AAMC_Raw_Data_for_FY22[[#This Row],[25th]])/25)*10) + AAMC_Raw_Data_for_FY22[[#This Row],[25th]]","v":647378.80000000005},{"$f":"(((AAMC_Raw_Data_for_FY22[[#This Row],[Median]]-AAMC_Raw_Data_for_FY22[[#This Row],[25th]])/25)*15) + AAMC_Raw_Data_for_FY22[[#This Row],[25th]]","v":658568.19999999995},{"$f":"(((AAMC_Raw_Data_for_FY22[[#This Row],[Median]]-AAMC_Raw_Data_for_FY22[[#This Row],[25th]])/25)*20) + AAMC_Raw_Data_for_FY22[[#This Row],[25th]]","v":669757.6},680947,{"$f":"(((AAMC_Raw_Data_for_FY22[[#This Row],[75th]]-AAMC_Raw_Data_for_FY22[[#This Row],[Median]])/25)*5) + AAMC_Raw_Data_for_FY22[[#This Row],[Median]]","v":706526.4},{"$f":"(((AAMC_Raw_Data_for_FY22[[#This Row],[75th]]-AAMC_Raw_Data_for_FY22[[#This Row],[Median]])/25)*10) + AAMC_Raw_Data_for_FY22[[#This Row],[Median]]","v":732105.8},{"$f":"(((AAMC_Raw_Data_for_FY22[[#This Row],[75th]]-AAMC_Raw_Data_for_FY22[[#This Row],[Median]])/25)*15) + AAMC_Raw_Data_for_FY22[[#This Row],[Median]]","v":757685.2},{"$f":"(((AAMC_Raw_Data_for_FY22[[#This Row],[75th]]-AAMC_Raw_Data_for_FY22[[#This Row],[Median]])/25)*20) + AAMC_Raw_Data_for_FY22[[#This Row],[Median]]","v":783264.6},808844,{"$f":"(((AAMC_Raw_Data_for_FY22[[#This Row],[75th]]-AAMC_Raw_Data_for_FY22[[#This Row],[Median]])/25)*30) + AAMC_Raw_Data_for_FY22[[#This Row],[Median]]","v":834423.4},{"$f":"(((AAMC_Raw_Data_for_FY22[[#This Row],[75th]]-AAMC_Raw_Data_for_FY22[[#This Row],[Median]])/25)*35) + AAMC_Raw_Data_for_FY22[[#This Row],[Median]]","v":860002.8},{"$f":"(((AAMC_Raw_Data_for_FY22[[#This Row],[75th]]-AAMC_Raw_Data_for_FY22[[#This Row],[Median]])/25)*40) + AAMC_Raw_Data_for_FY22[[#This Row],[Median]]","v":885582.2}]
[{"$f":"AAMC_Raw_Data_for_FY22[[#This Row],[Source]]&AAMC_Raw_Data_for_FY22[[#This Row],[Type]]&AAMC_Raw_Data_for_FY22[[#This Row],[School Subset]]&AAMC_Raw_Data_for_FY22[[#This Row],[Rank]]&AAMC_Raw_Data_for_FY22[[#This Row],[Degree]]&AAMC_Raw_Data_for_FY22[[#This Row],[Department / Specialty]]&\"L\"","v":"AAMCAcademicAllInstructorMDAnesthesiology: GeneralL"},"Anesthesiology: General",5,"AAMC","Academic","All","Instructor","MD","2021-2022",294414,{"$f":"(((AAMC_Raw_Data_for_FY22[[#This Row],[Median]]-AAMC_Raw_Data_for_FY22[[#This Row],[25th]])/25)*5) + AAMC_Raw_Data_for_FY22[[#This Row],[25th]]","v":310870.40000000002},{"$f":"(((AAMC_Raw_Data_for_FY22[[#This Row],[Median]]-AAMC_Raw_Data_for_FY22[[#This Row],[25th]])/25)*10) + AAMC_Raw_Data_for_FY22[[#This Row],[25th]]","v":327326.8},{"$f":"(((AAMC_Raw_Data_for_FY22[[#This Row],[Median]]-AAMC_Raw_Data_for_FY22[[#This Row],[25th]])/25)*15) + AAMC_Raw_Data_for_FY22[[#This Row],[25th]]","v":343783.2},{"$f":"(((AAMC_Raw_Data_for_FY22[[#This Row],[Median]]-AAMC_Raw_Data_for_FY22[[#This Row],[25th]])/25)*20) + AAMC_Raw_Data_for_FY22[[#This Row],[25th]]","v":360239.6},376696,{"$f":"(((AAMC_Raw_Data_for_FY22[[#This Row],[75th]]-AAMC_Raw_Data_for_FY22[[#This Row],[Median]])/25)*5) + AAMC_Raw_Data_for_FY22[[#This Row],[Median]]","v":388757.8},{"$f":"(((AAMC_Raw_Data_for_FY22[[#This Row],[75th]]-AAMC_Raw_Data_for_FY22[[#This Row],[Median]])/25)*10) + AAMC_Raw_Data_for_FY22[[#This Row],[Median]]","v":400819.6},{"$f":"(((AAMC_Raw_Data_for_FY22[[#This Row],[75th]]-AAMC_Raw_Data_for_FY22[[#This Row],[Median]])/25)*15) + AAMC_Raw_Data_for_FY22[[#This Row],[Median]]","v":412881.4},{"$f":"(((AAMC_Raw_Data_for_FY22[[#This Row],[75th]]-AAMC_Raw_Data_for_FY22[[#This Row],[Median]])/25)*20) + AAMC_Raw_Data_for_FY22[[#This Row],[Median]]","v":424943.2},437005,{"$f":"(((AAMC_Raw_Data_for_FY22[[#This Row],[75th]]-AAMC_Raw_Data_for_FY22[[#This Row],[Median]])/25)*30) + AAMC_Raw_Data_for_FY22[[#This Row],[Median]]","v":449066.8},{"$f":"(((AAMC_Raw_Data_for_FY22[[#This Row],[75th]]-AAMC_Raw_Data_for_FY22[[#This Row],[Median]])/25)*35) + AAMC_Raw_Data_for_FY22[[#This Row],[Median]]","v":461128.6},{"$f":"(((AAMC_Raw_Data_for_FY22[[#This Row],[75th]]-AAMC_Raw_Data_for_FY22[[#This Row],[Median]])/25)*40) + AAMC_Raw_Data_for_FY22[[#This Row],[Median]]","v":473190.40000000002}]
[{"$f":"AAMC_Raw_Data_for_FY22[[#This Row],[Source]]&AAMC_Raw_Data_for_FY22[[#This Row],[Type]]&AAMC_Raw_Data_for_FY22[[#This Row],[School Subset]]&AAMC_Raw_Data_for_FY22[[#This Row],[Rank]]&AAMC_Raw_Data_for_FY22[[#This Row],[Degree]]&AAMC_Raw_Data_for_FY22[[#This Row],[Department / Specialty]]&\"L\"","v":"AAMCAcademicAllAssistantMDAnesthesiology: GeneralL"},"Anesthesiology: General",4,"AAMC","Academic","All","Assistant","MD","2021-2022",377263,{"$f":"(((AAMC_Raw_Data_for_FY22[[#This Row],[Median]]-AAMC_Raw_Data_for_FY22[[#This Row],[25th]])/25)*5) + AAMC_Raw_Data_for_FY22[[#This Row],[25th]]","v":386892.79999999999},{"$f":"(((AAMC_Raw_Data_for_FY22[[#This Row],[Median]]-AAMC_Raw_Data_for_FY22[[#This Row],[25th]])/25)*10) + AAMC_Raw_Data_for_FY22[[#This Row],[25th]]","v":396522.6},{"$f":"(((AAMC_Raw_Data_for_FY22[[#This Row],[Median]]-AAMC_Raw_Data_for_FY22[[#This Row],[25th]])/25)*15) + AAMC_Raw_Data_for_FY22[[#This Row],[25th]]","v":406152.4},{"$f":"(((AAMC_Raw_Data_for_FY22[[#This Row],[Median]]-AAMC_Raw_Data_for_FY22[[#This Row],[25th]])/25)*20) + AAMC_Raw_Data_for_FY22[[#This Row],[25th]]","v":415782.2},425412,{"$f":"(((AAMC_Raw_Data_for_FY22[[#This Row],[75th]]-AAMC_Raw_Data_for_FY22[[#This Row],[Median]])/25)*5) + AAMC_Raw_Data_for_FY22[[#This Row],[Median]]","v":435812.4},{"$f":"(((AAMC_Raw_Data_for_FY22[[#This Row],[75th]]-AAMC_Raw_Data_for_FY22[[#This Row],[Median]])/25)*10) + AAMC_Raw_Data_for_FY22[[#This Row],[Median]]","v":446212.8},{"$f":"(((AAMC_Raw_Data_for_FY22[[#This Row],[75th]]-AAMC_Raw_Data_for_FY22[[#This Row],[Median]])/25)*15) + AAMC_Raw_Data_for_FY22[[#This Row],[Median]]","v":456613.2},{"$f":"(((AAMC_Raw_Data_for_FY22[[#This Row],[75th]]-AAMC_Raw_Data_for_FY22[[#This Row],[Median]])/25)*20) + AAMC_Raw_Data_for_FY22[[#This Row],[Median]]","v":467013.6},477414,{"$f":"(((AAMC_Raw_Data_for_FY22[[#This Row],[75th]]-AAMC_Raw_Data_for_FY22[[#This Row],[Median]])/25)*30) + AAMC_Raw_Data_for_FY22[[#This Row],[Median]]","v":487814.40000000002},{"$f":"(((AAMC_Raw_Data_for_FY22[[#This Row],[75th]]-AAMC_Raw_Data_for_FY22[[#This Row],[Median]])/25)*35) + AAMC_Raw_Data_for_FY22[[#This Row],[Median]]","v":498214.8},{"$f":"(((AAMC_Raw_Data_for_FY22[[#This Row],[75th]]-AAMC_Raw_Data_for_FY22[[#This Row],[Median]])/25)*40) + AAMC_Raw_Data_for_FY22[[#This Row],[Median]]","v":508615.2}]
[{"$f":"AAMC_Raw_Data_for_FY22[[#This Row],[Source]]&AAMC_Raw_Data_for_FY22[[#This Row],[Type]]&AAMC_Raw_Data_for_FY22[[#This Row],[School Subset]]&AAMC_Raw_Data_for_FY22[[#This Row],[Rank]]&AAMC_Raw_Data_for_FY22[[#This Row],[Degree]]&AAMC_Raw_Data_for_FY22[[#This Row],[Department / Specialty]]&\"L\"","v":"AAMCAcademicAllAssociateMDAnesthesiology: GeneralL"},"Anesthesiology: General",3,"AAMC","Academic","All","Associate","MD","2021-2022",408268,{"$f":"(((AAMC_Raw_Data_for_FY22[[#This Row],[Median]]-AAMC_Raw_Data_for_FY22[[#This Row],[25th]])/25)*5) + AAMC_Raw_Data_for_FY22[[#This Row],[25th]]","v":417450.6},{"$f":"(((AAMC_Raw_Data_for_FY22[[#This Row],[Median]]-AAMC_Raw_Data_for_FY22[[#This Row],[25th]])/25)*10) + AAMC_Raw_Data_for_FY22[[#This Row],[25th]]","v":426633.2},{"$f":"(((AAMC_Raw_Data_for_FY22[[#This Row],[Median]]-AAMC_Raw_Data_for_FY22[[#This Row],[25th]])/25)*15) + AAMC_Raw_Data_for_FY22[[#This Row],[25th]]","v":435815.8},{"$f":"(((AAMC_Raw_Data_for_FY22[[#This Row],[Median]]-AAMC_Raw_Data_for_FY22[[#This Row],[25th]])/25)*20) + AAMC_Raw_Data_for_FY22[[#This Row],[25th]]","v":444998.40000000002},454181,{"$f":"(((AAMC_Raw_Data_for_FY22[[#This Row],[75th]]-AAMC_Raw_Data_for_FY22[[#This Row],[Median]])/25)*5) + AAMC_Raw_Data_for_FY22[[#This Row],[Median]]","v":464053.2},{"$f":"(((AAMC_Raw_Data_for_FY22[[#This Row],[75th]]-AAMC_Raw_Data_for_FY22[[#This Row],[Median]])/25)*10) + AAMC_Raw_Data_for_FY22[[#This Row],[Median]]","v":473925.4},{"$f":"(((AAMC_Raw_Data_for_FY22[[#This Row],[75th]]-AAMC_Raw_Data_for_FY22[[#This Row],[Median]])/25)*15) + AAMC_Raw_Data_for_FY22[[#This Row],[Median]]","v":483797.6},{"$f":"(((AAMC_Raw_Data_for_FY22[[#This Row],[75th]]-AAMC_Raw_Data_for_FY22[[#This Row],[Median]])/25)*20) + AAMC_Raw_Data_for_FY22[[#This Row],[Median]]","v":493669.8},503542,{"$f":"(((AAMC_Raw_Data_for_FY22[[#This Row],[75th]]-AAMC_Raw_Data_for_FY22[[#This Row],[Median]])/25)*30) + AAMC_Raw_Data_for_FY22[[#This Row],[Median]]","v":513414.2},{"$f":"(((AAMC_Raw_Data_for_FY22[[#This Row],[75th]]-AAMC_Raw_Data_for_FY22[[#This Row],[Median]])/25)*35) + AAMC_Raw_Data_for_FY22[[#This Row],[Median]]","v":523286.4},{"$f":"(((AAMC_Raw_Data_for_FY22[[#This Row],[75th]]-AAMC_Raw_Data_for_FY22[[#This Row],[Median]])/25)*40) + AAMC_Raw_Data_for_FY22[[#This Row],[Median]]","v":533158.6}]
[{"$f":"AAMC_Raw_Data_for_FY22[[#This Row],[Source]]&AAMC_Raw_Data_for_FY22[[#This Row],[Type]]&AAMC_Raw_Data_for_FY22[[#This Row],[School Subset]]&AAMC_Raw_Data_for_FY22[[#This Row],[Rank]]&AAMC_Raw_Data_for_FY22[[#This Row],[Degree]]&AAMC_Raw_Data_for_FY22[[#This Row],[Department / Specialty]]&\"L\"","v":"AAMCAcademicAllProfessorMDAnesthesiology: GeneralL"},"Anesthesiology: General",2,"AAMC","Academic","All","Professor","MD","2021-2022",407749,{"$f":"(((AAMC_Raw_Data_for_FY22[[#This Row],[Median]]-AAMC_Raw_Data_for_FY22[[#This Row],[25th]])/25)*5) + AAMC_Raw_Data_for_FY22[[#This Row],[25th]]","v":419812.4},{"$f":"(((AAMC_Raw_Data_for_FY22[[#This Row],[Median]]-AAMC_Raw_Data_for_FY22[[#This Row],[25th]])/25)*10) + AAMC_Raw_Data_for_FY22[[#This Row],[25th]]","v":431875.8},{"$f":"(((AAMC_Raw_Data_for_FY22[[#This Row],[Median]]-AAMC_Raw_Data_for_FY22[[#This Row],[25th]])/25)*15) + AAMC_Raw_Data_for_FY22[[#This Row],[25th]]","v":443939.2},{"$f":"(((AAMC_Raw_Data_for_FY22[[#This Row],[Median]]-AAMC_Raw_Data_for_FY22[[#This Row],[25th]])/25)*20) + AAMC_Raw_Data_for_FY22[[#This Row],[25th]]","v":456002.6},468066,{"$f":"(((AAMC_Raw_Data_for_FY22[[#This Row],[75th]]-AAMC_Raw_Data_for_FY22[[#This Row],[Median]])/25)*5) + AAMC_Raw_Data_for_FY22[[#This Row],[Median]]","v":479678.6},{"$f":"(((AAMC_Raw_Data_for_FY22[[#This Row],[75th]]-AAMC_Raw_Data_for_FY22[[#This Row],[Median]])/25)*10) + AAMC_Raw_Data_for_FY22[[#This Row],[Median]]","v":491291.2},{"$f":"(((AAMC_Raw_Data_for_FY22[[#This Row],[75th]]-AAMC_Raw_Data_for_FY22[[#This Row],[Median]])/25)*15) + AAMC_Raw_Data_for_FY22[[#This Row],[Median]]","v":502903.8},{"$f":"(((AAMC_Raw_Data_for_FY22[[#This Row],[75th]]-AAMC_Raw_Data_for_FY22[[#This Row],[Median]])/25)*20) + AAMC_Raw_Data_for_FY22[[#This Row],[Median]]","v":514516.4},526129,{"$f":"(((AAMC_Raw_Data_for_FY22[[#This Row],[75th]]-AAMC_Raw_Data_for_FY22[[#This Row],[Median]])/25)*30) + AAMC_Raw_Data_for_FY22[[#This Row],[Median]]","v":537741.6},{"$f":"(((AAMC_Raw_Data_for_FY22[[#This Row],[75th]]-AAMC_Raw_Data_for_FY22[[#This Row],[Median]])/25)*35) + AAMC_Raw_Data_for_FY22[[#This Row],[Median]]","v":549354.19999999995},{"$f":"(((AAMC_Raw_Data_for_FY22[[#This Row],[75th]]-AAMC_Raw_Data_for_FY22[[#This Row],[Median]])/25)*40) + AAMC_Raw_Data_for_FY22[[#This Row],[Median]]","v":560966.80000000005}]
[{"$f":"AAMC_Raw_Data_for_FY22[[#This Row],[Source]]&AAMC_Raw_Data_for_FY22[[#This Row],[Type]]&AAMC_Raw_Data_for_FY22[[#This Row],[School Subset]]&AAMC_Raw_Data_for_FY22[[#This Row],[Rank]]&AAMC_Raw_Data_for_FY22[[#This Row],[Degree]]&AAMC_Raw_Data_for_FY22[[#This Row],[Department / Specialty]]&\"L\"","v":"AAMCAcademicAllChiefMDAnesthesiology: GeneralL"},"Anesthesiology: General",6,"AAMC","Academic","All","Chief","MD","2021-2022",439378,{"$f":"(((AAMC_Raw_Data_for_FY22[[#This Row],[Median]]-AAMC_Raw_Data_for_FY22[[#This Row],[25th]])/25)*5) + AAMC_Raw_Data_for_FY22[[#This Row],[25th]]","v":450553.59999999998},{"$f":"(((AAMC_Raw_Data_for_FY22[[#This Row],[Median]]-AAMC_Raw_Data_for_FY22[[#This Row],[25th]])/25)*10) + AAMC_Raw_Data_for_FY22[[#This Row],[25th]]","v":461729.2},{"$f":"(((AAMC_Raw_Data_for_FY22[[#This Row],[Median]]-AAMC_Raw_Data_for_FY22[[#This Row],[25th]])/25)*15) + AAMC_Raw_Data_for_FY22[[#This Row],[25th]]","v":472904.8},{"$f":"(((AAMC_Raw_Data_for_FY22[[#This Row],[Median]]-AAMC_Raw_Data_for_FY22[[#This Row],[25th]])/25)*20) + AAMC_Raw_Data_for_FY22[[#This Row],[25th]]","v":484080.4},495256,{"$f":"(((AAMC_Raw_Data_for_FY22[[#This Row],[75th]]-AAMC_Raw_Data_for_FY22[[#This Row],[Median]])/25)*5) + AAMC_Raw_Data_for_FY22[[#This Row],[Median]]","v":508274.4},{"$f":"(((AAMC_Raw_Data_for_FY22[[#This Row],[75th]]-AAMC_Raw_Data_for_FY22[[#This Row],[Median]])/25)*10) + AAMC_Raw_Data_for_FY22[[#This Row],[Median]]","v":521292.79999999999},{"$f":"(((AAMC_Raw_Data_for_FY22[[#This Row],[75th]]-AAMC_Raw_Data_for_FY22[[#This Row],[Median]])/25)*15) + AAMC_Raw_Data_for_FY22[[#This Row],[Median]]","v":534311.19999999995},{"$f":"(((AAMC_Raw_Data_for_FY22[[#This Row],[75th]]-AAMC_Raw_Data_for_FY22[[#This Row],[Median]])/25)*20) + AAMC_Raw_Data_for_FY22[[#This Row],[Median]]","v":547329.6},560348,{"$f":"(((AAMC_Raw_Data_for_FY22[[#This Row],[75th]]-AAMC_Raw_Data_for_FY22[[#This Row],[Median]])/25)*30) + AAMC_Raw_Data_for_FY22[[#This Row],[Median]]","v":573366.4},{"$f":"(((AAMC_Raw_Data_for_FY22[[#This Row],[75th]]-AAMC_Raw_Data_for_FY22[[#This Row],[Median]])/25)*35) + AAMC_Raw_Data_for_FY22[[#This Row],[Median]]","v":586384.80000000005},{"$f":"(((AAMC_Raw_Data_for_FY22[[#This Row],[75th]]-AAMC_Raw_Data_for_FY22[[#This Row],[Median]])/25)*40) + AAMC_Raw_Data_for_FY22[[#This Row],[Median]]","v":599403.19999999995}]
[{"$f":"AAMC_Raw_Data_for_FY22[[#This Row],[Source]]&AAMC_Raw_Data_for_FY22[[#This Row],[Type]]&AAMC_Raw_Data_for_FY22[[#This Row],[School Subset]]&AAMC_Raw_Data_for_FY22[[#This Row],[Rank]]&AAMC_Raw_Data_for_FY22[[#This Row],[Degree]]&AAMC_Raw_Data_for_FY22[[#This Row],[Department / Specialty]]&\"L\"","v":"AAMCAcademicAllChairMDAnesthesiology: GeneralL"},"Anesthesiology: General",1,"AAMC","Academic","All","Chair","MD","2021-2022",632430,{"$f":"(((AAMC_Raw_Data_for_FY22[[#This Row],[Median]]-AAMC_Raw_Data_for_FY22[[#This Row],[25th]])/25)*5) + AAMC_Raw_Data_for_FY22[[#This Row],[25th]]","v":642291.80000000005},{"$f":"(((AAMC_Raw_Data_for_FY22[[#This Row],[Median]]-AAMC_Raw_Data_for_FY22[[#This Row],[25th]])/25)*10) + AAMC_Raw_Data_for_FY22[[#This Row],[25th]]","v":652153.59999999998},{"$f":"(((AAMC_Raw_Data_for_FY22[[#This Row],[Median]]-AAMC_Raw_Data_for_FY22[[#This Row],[25th]])/25)*15) + AAMC_Raw_Data_for_FY22[[#This Row],[25th]]","v":662015.4},{"$f":"(((AAMC_Raw_Data_for_FY22[[#This Row],[Median]]-AAMC_Raw_Data_for_FY22[[#This Row],[25th]])/25)*20) + AAMC_Raw_Data_for_FY22[[#This Row],[25th]]","v":671877.2},681739,{"$f":"(((AAMC_Raw_Data_for_FY22[[#This Row],[75th]]-AAMC_Raw_Data_for_FY22[[#This Row],[Median]])/25)*5) + AAMC_Raw_Data_for_FY22[[#This Row],[Median]]","v":709294},{"$f":"(((AAMC_Raw_Data_for_FY22[[#This Row],[75th]]-AAMC_Raw_Data_for_FY22[[#This Row],[Median]])/25)*10) + AAMC_Raw_Data_for_FY22[[#This Row],[Median]]","v":736849},{"$f":"(((AAMC_Raw_Data_for_FY22[[#This Row],[75th]]-AAMC_Raw_Data_for_FY22[[#This Row],[Median]])/25)*15) + AAMC_Raw_Data_for_FY22[[#This Row],[Median]]","v":764404},{"$f":"(((AAMC_Raw_Data_for_FY22[[#This Row],[75th]]-AAMC_Raw_Data_for_FY22[[#This Row],[Median]])/25)*20) + AAMC_Raw_Data_for_FY22[[#This Row],[Median]]","v":791959},819514,{"$f":"(((AAMC_Raw_Data_for_FY22[[#This Row],[75th]]-AAMC_Raw_Data_for_FY22[[#This Row],[Median]])/25)*30) + AAMC_Raw_Data_for_FY22[[#This Row],[Median]]","v":847069},{"$f":"(((AAMC_Raw_Data_for_FY22[[#This Row],[75th]]-AAMC_Raw_Data_for_FY22[[#This Row],[Median]])/25)*35) + AAMC_Raw_Data_for_FY22[[#This Row],[Median]]","v":874624},{"$f":"(((AAMC_Raw_Data_for_FY22[[#This Row],[75th]]-AAMC_Raw_Data_for_FY22[[#This Row],[Median]])/25)*40) + AAMC_Raw_Data_for_FY22[[#This Row],[Median]]","v":902179}]
[{"$f":"AAMC_Raw_Data_for_FY22[[#This Row],[Source]]&AAMC_Raw_Data_for_FY22[[#This Row],[Type]]&AAMC_Raw_Data_for_FY22[[#This Row],[School Subset]]&AAMC_Raw_Data_for_FY22[[#This Row],[Rank]]&AAMC_Raw_Data_for_FY22[[#This Row],[Degree]]&AAMC_Raw_Data_for_FY22[[#This Row],[Department / Specialty]]&\"L\"","v":"AAMCAcademicAllInstructorMDAnesthesiology: Pain ManagementL"},"Anesthesiology: Pain Management",5,"AAMC","Academic","All","Instructor","MD","2021-2022",273000,{"$f":"(((AAMC_Raw_Data_for_FY22[[#This Row],[Median]]-AAMC_Raw_Data_for_FY22[[#This Row],[25th]])/25)*5) + AAMC_Raw_Data_for_FY22[[#This Row],[25th]]","v":282200},{"$f":"(((AAMC_Raw_Data_for_FY22[[#This Row],[Median]]-AAMC_Raw_Data_for_FY22[[#This Row],[25th]])/25)*10) + AAMC_Raw_Data_for_FY22[[#This Row],[25th]]","v":291400},{"$f":"(((AAMC_Raw_Data_for_FY22[[#This Row],[Median]]-AAMC_Raw_Data_for_FY22[[#This Row],[25th]])/25)*15) + AAMC_Raw_Data_for_FY22[[#This Row],[25th]]","v":300600},{"$f":"(((AAMC_Raw_Data_for_FY22[[#This Row],[Median]]-AAMC_Raw_Data_for_FY22[[#This Row],[25th]])/25)*20) + AAMC_Raw_Data_for_FY22[[#This Row],[25th]]","v":309800},319000,{"$f":"(((AAMC_Raw_Data_for_FY22[[#This Row],[75th]]-AAMC_Raw_Data_for_FY22[[#This Row],[Median]])/25)*5) + AAMC_Raw_Data_for_FY22[[#This Row],[Median]]","v":334017.59999999998},{"$f":"(((AAMC_Raw_Data_for_FY22[[#This Row],[75th]]-AAMC_Raw_Data_for_FY22[[#This Row],[Median]])/25)*10) + AAMC_Raw_Data_for_FY22[[#This Row],[Median]]","v":349035.2},{"$f":"(((AAMC_Raw_Data_for_FY22[[#This Row],[75th]]-AAMC_Raw_Data_for_FY22[[#This Row],[Median]])/25)*15) + AAMC_Raw_Data_for_FY22[[#This Row],[Median]]","v":364052.8},{"$f":"(((AAMC_Raw_Data_for_FY22[[#This Row],[75th]]-AAMC_Raw_Data_for_FY22[[#This Row],[Median]])/25)*20) + AAMC_Raw_Data_for_FY22[[#This Row],[Median]]","v":379070.4},394088,{"$f":"(((AAMC_Raw_Data_for_FY22[[#This Row],[75th]]-AAMC_Raw_Data_for_FY22[[#This Row],[Median]])/25)*30) + AAMC_Raw_Data_for_FY22[[#This Row],[Median]]","v":409105.6},{"$f":"(((AAMC_Raw_Data_for_FY22[[#This Row],[75th]]-AAMC_Raw_Data_for_FY22[[#This Row],[Median]])/25)*35) + AAMC_Raw_Data_for_FY22[[#This Row],[Median]]","v":424123.2},{"$f":"(((AAMC_Raw_Data_for_FY22[[#This Row],[75th]]-AAMC_Raw_Data_for_FY22[[#This Row],[Median]])/25)*40) + AAMC_Raw_Data_for_FY22[[#This Row],[Median]]","v":439140.8}]
[{"$f":"AAMC_Raw_Data_for_FY22[[#This Row],[Source]]&AAMC_Raw_Data_for_FY22[[#This Row],[Type]]&AAMC_Raw_Data_for_FY22[[#This Row],[School Subset]]&AAMC_Raw_Data_for_FY22[[#This Row],[Rank]]&AAMC_Raw_Data_for_FY22[[#This Row],[Degree]]&AAMC_Raw_Data_for_FY22[[#This Row],[Department / Specialty]]&\"L\"","v":"AAMCAcademicAllAssistantMDAnesthesiology: Pain ManagementL"},"Anesthesiology: Pain Management",4,"AAMC","Academic","All","Assistant","MD","2021-2022",373535,{"$f":"(((AAMC_Raw_Data_for_FY22[[#This Row],[Median]]-AAMC_Raw_Data_for_FY22[[#This Row],[25th]])/25)*5) + AAMC_Raw_Data_for_FY22[[#This Row],[25th]]","v":383381.6},{"$f":"(((AAMC_Raw_Data_for_FY22[[#This Row],[Median]]-AAMC_Raw_Data_for_FY22[[#This Row],[25th]])/25)*10) + AAMC_Raw_Data_for_FY22[[#This Row],[25th]]","v":393228.2},{"$f":"(((AAMC_Raw_Data_for_FY22[[#This Row],[Median]]-AAMC_Raw_Data_for_FY22[[#This Row],[25th]])/25)*15) + AAMC_Raw_Data_for_FY22[[#This Row],[25th]]","v":403074.8},{"$f":"(((AAMC_Raw_Data_for_FY22[[#This Row],[Median]]-AAMC_Raw_Data_for_FY22[[#This Row],[25th]])/25)*20) + AAMC_Raw_Data_for_FY22[[#This Row],[25th]]","v":412921.4},422768,{"$f":"(((AAMC_Raw_Data_for_FY22[[#This Row],[75th]]-AAMC_Raw_Data_for_FY22[[#This Row],[Median]])/25)*5) + AAMC_Raw_Data_for_FY22[[#This Row],[Median]]","v":435031.8},{"$f":"(((AAMC_Raw_Data_for_FY22[[#This Row],[75th]]-AAMC_Raw_Data_for_FY22[[#This Row],[Median]])/25)*10) + AAMC_Raw_Data_for_FY22[[#This Row],[Median]]","v":447295.6},{"$f":"(((AAMC_Raw_Data_for_FY22[[#This Row],[75th]]-AAMC_Raw_Data_for_FY22[[#This Row],[Median]])/25)*15) + AAMC_Raw_Data_for_FY22[[#This Row],[Median]]","v":459559.4},{"$f":"(((AAMC_Raw_Data_for_FY22[[#This Row],[75th]]-AAMC_Raw_Data_for_FY22[[#This Row],[Median]])/25)*20) + AAMC_Raw_Data_for_FY22[[#This Row],[Median]]","v":471823.2},484087,{"$f":"(((AAMC_Raw_Data_for_FY22[[#This Row],[75th]]-AAMC_Raw_Data_for_FY22[[#This Row],[Median]])/25)*30) + AAMC_Raw_Data_for_FY22[[#This Row],[Median]]","v":496350.8},{"$f":"(((AAMC_Raw_Data_for_FY22[[#This Row],[75th]]-AAMC_Raw_Data_for_FY22[[#This Row],[Median]])/25)*35) + AAMC_Raw_Data_for_FY22[[#This Row],[Median]]","v":508614.6},{"$f":"(((AAMC_Raw_Data_for_FY22[[#This Row],[75th]]-AAMC_Raw_Data_for_FY22[[#This Row],[Median]])/25)*40) + AAMC_Raw_Data_for_FY22[[#This Row],[Median]]","v":520878.4}]
[{"$f":"AAMC_Raw_Data_for_FY22[[#This Row],[Source]]&AAMC_Raw_Data_for_FY22[[#This Row],[Type]]&AAMC_Raw_Data_for_FY22[[#This Row],[School Subset]]&AAMC_Raw_Data_for_FY22[[#This Row],[Rank]]&AAMC_Raw_Data_for_FY22[[#This Row],[Degree]]&AAMC_Raw_Data_for_FY22[[#This Row],[Department / Specialty]]&\"L\"","v":"AAMCAcademicAllAssociateMDAnesthesiology: Pain ManagementL"},"Anesthesiology: Pain Management",3,"AAMC","Academic","All","Associate","MD","2021-2022",397795,{"$f":"(((AAMC_Raw_Data_for_FY22[[#This Row],[Median]]-AAMC_Raw_Data_for_FY22[[#This Row],[25th]])/25)*5) + AAMC_Raw_Data_for_FY22[[#This Row],[25th]]","v":406404.2},{"$f":"(((AAMC_Raw_Data_for_FY22[[#This Row],[Median]]-AAMC_Raw_Data_for_FY22[[#This Row],[25th]])/25)*10) + AAMC_Raw_Data_for_FY22[[#This Row],[25th]]","v":415013.4},{"$f":"(((AAMC_Raw_Data_for_FY22[[#This Row],[Median]]-AAMC_Raw_Data_for_FY22[[#This Row],[25th]])/25)*15) + AAMC_Raw_Data_for_FY22[[#This Row],[25th]]","v":423622.6},{"$f":"(((AAMC_Raw_Data_for_FY22[[#This Row],[Median]]-AAMC_Raw_Data_for_FY22[[#This Row],[25th]])/25)*20) + AAMC_Raw_Data_for_FY22[[#This Row],[25th]]","v":432231.8},440841,{"$f":"(((AAMC_Raw_Data_for_FY22[[#This Row],[75th]]-AAMC_Raw_Data_for_FY22[[#This Row],[Median]])/25)*5) + AAMC_Raw_Data_for_FY22[[#This Row],[Median]]","v":451309.2},{"$f":"(((AAMC_Raw_Data_for_FY22[[#This Row],[75th]]-AAMC_Raw_Data_for_FY22[[#This Row],[Median]])/25)*10) + AAMC_Raw_Data_for_FY22[[#This Row],[Median]]","v":461777.4},{"$f":"(((AAMC_Raw_Data_for_FY22[[#This Row],[75th]]-AAMC_Raw_Data_for_FY22[[#This Row],[Median]])/25)*15) + AAMC_Raw_Data_for_FY22[[#This Row],[Median]]","v":472245.6},{"$f":"(((AAMC_Raw_Data_for_FY22[[#This Row],[75th]]-AAMC_Raw_Data_for_FY22[[#This Row],[Median]])/25)*20) + AAMC_Raw_Data_for_FY22[[#This Row],[Median]]","v":482713.8},493182,{"$f":"(((AAMC_Raw_Data_for_FY22[[#This Row],[75th]]-AAMC_Raw_Data_for_FY22[[#This Row],[Median]])/25)*30) + AAMC_Raw_Data_for_FY22[[#This Row],[Median]]","v":503650.2},{"$f":"(((AAMC_Raw_Data_for_FY22[[#This Row],[75th]]-AAMC_Raw_Data_for_FY22[[#This Row],[Median]])/25)*35) + AAMC_Raw_Data_for_FY22[[#This Row],[Median]]","v":514118.40000000002},{"$f":"(((AAMC_Raw_Data_for_FY22[[#This Row],[75th]]-AAMC_Raw_Data_for_FY22[[#This Row],[Median]])/25)*40) + AAMC_Raw_Data_for_FY22[[#This Row],[Median]]","v":524586.6}]
[{"$f":"AAMC_Raw_Data_for_FY22[[#This Row],[Source]]&AAMC_Raw_Data_for_FY22[[#This Row],[Type]]&AAMC_Raw_Data_for_FY22[[#This Row],[School Subset]]&AAMC_Raw_Data_for_FY22[[#This Row],[Rank]]&AAMC_Raw_Data_for_FY22[[#This Row],[Degree]]&AAMC_Raw_Data_for_FY22[[#This Row],[Department / Specialty]]&\"L\"","v":"AAMCAcademicAllProfessorMDAnesthesiology: Pain ManagementL"},"Anesthesiology: Pain Management",2,"AAMC","Academic","All","Professor","MD","2021-2022",398262,{"$f":"(((AAMC_Raw_Data_for_FY22[[#This Row],[Median]]-AAMC_Raw_Data_for_FY22[[#This Row],[25th]])/25)*5) + AAMC_Raw_Data_for_FY22[[#This Row],[25th]]","v":408403.20000000001},{"$f":"(((AAMC_Raw_Data_for_FY22[[#This Row],[Median]]-AAMC_Raw_Data_for_FY22[[#This Row],[25th]])/25)*10) + AAMC_Raw_Data_for_FY22[[#This Row],[25th]]","v":418544.4},{"$f":"(((AAMC_Raw_Data_for_FY22[[#This Row],[Median]]-AAMC_Raw_Data_for_FY22[[#This Row],[25th]])/25)*15) + AAMC_Raw_Data_for_FY22[[#This Row],[25th]]","v":428685.6},{"$f":"(((AAMC_Raw_Data_for_FY22[[#This Row],[Median]]-AAMC_Raw_Data_for_FY22[[#This Row],[25th]])/25)*20) + AAMC_Raw_Data_for_FY22[[#This Row],[25th]]","v":438826.8},448968,{"$f":"(((AAMC_Raw_Data_for_FY22[[#This Row],[75th]]-AAMC_Raw_Data_for_FY22[[#This Row],[Median]])/25)*5) + AAMC_Raw_Data_for_FY22[[#This Row],[Median]]","v":462324.4},{"$f":"(((AAMC_Raw_Data_for_FY22[[#This Row],[75th]]-AAMC_Raw_Data_for_FY22[[#This Row],[Median]])/25)*10) + AAMC_Raw_Data_for_FY22[[#This Row],[Median]]","v":475680.8},{"$f":"(((AAMC_Raw_Data_for_FY22[[#This Row],[75th]]-AAMC_Raw_Data_for_FY22[[#This Row],[Median]])/25)*15) + AAMC_Raw_Data_for_FY22[[#This Row],[Median]]","v":489037.2},{"$f":"(((AAMC_Raw_Data_for_FY22[[#This Row],[75th]]-AAMC_Raw_Data_for_FY22[[#This Row],[Median]])/25)*20) + AAMC_Raw_Data_for_FY22[[#This Row],[Median]]","v":502393.59999999998},515750,{"$f":"(((AAMC_Raw_Data_for_FY22[[#This Row],[75th]]-AAMC_Raw_Data_for_FY22[[#This Row],[Median]])/25)*30) + AAMC_Raw_Data_for_FY22[[#This Row],[Median]]","v":529106.4},{"$f":"(((AAMC_Raw_Data_for_FY22[[#This Row],[75th]]-AAMC_Raw_Data_for_FY22[[#This Row],[Median]])/25)*35) + AAMC_Raw_Data_for_FY22[[#This Row],[Median]]","v":542462.80000000005},{"$f":"(((AAMC_Raw_Data_for_FY22[[#This Row],[75th]]-AAMC_Raw_Data_for_FY22[[#This Row],[Median]])/25)*40) + AAMC_Raw_Data_for_FY22[[#This Row],[Median]]","v":555819.19999999995}]
[{"$f":"AAMC_Raw_Data_for_FY22[[#This Row],[Source]]&AAMC_Raw_Data_for_FY22[[#This Row],[Type]]&AAMC_Raw_Data_for_FY22[[#This Row],[School Subset]]&AAMC_Raw_Data_for_FY22[[#This Row],[Rank]]&AAMC_Raw_Data_for_FY22[[#This Row],[Degree]]&AAMC_Raw_Data_for_FY22[[#This Row],[Department / Specialty]]&\"L\"","v":"AAMCAcademicAllChiefMDAnesthesiology: Pain ManagementL"},"Anesthesiology: Pain Management",6,"AAMC","Academic","All","Chief","MD","2021-2022",413297,{"$f":"(((AAMC_Raw_Data_for_FY22[[#This Row],[Median]]-AAMC_Raw_Data_for_FY22[[#This Row],[25th]])/25)*5) + AAMC_Raw_Data_for_FY22[[#This Row],[25th]]","v":423639.2},{"$f":"(((AAMC_Raw_Data_for_FY22[[#This Row],[Median]]-AAMC_Raw_Data_for_FY22[[#This Row],[25th]])/25)*10) + AAMC_Raw_Data_for_FY22[[#This Row],[25th]]","v":433981.4},{"$f":"(((AAMC_Raw_Data_for_FY22[[#This Row],[Median]]-AAMC_Raw_Data_for_FY22[[#This Row],[25th]])/25)*15) + AAMC_Raw_Data_for_FY22[[#This Row],[25th]]","v":444323.6},{"$f":"(((AAMC_Raw_Data_for_FY22[[#This Row],[Median]]-AAMC_Raw_Data_for_FY22[[#This Row],[25th]])/25)*20) + AAMC_Raw_Data_for_FY22[[#This Row],[25th]]","v":454665.8},465008,{"$f":"(((AAMC_Raw_Data_for_FY22[[#This Row],[75th]]-AAMC_Raw_Data_for_FY22[[#This Row],[Median]])/25)*5) + AAMC_Raw_Data_for_FY22[[#This Row],[Median]]","v":487668.4},{"$f":"(((AAMC_Raw_Data_for_FY22[[#This Row],[75th]]-AAMC_Raw_Data_for_FY22[[#This Row],[Median]])/25)*10) + AAMC_Raw_Data_for_FY22[[#This Row],[Median]]","v":510328.8},{"$f":"(((AAMC_Raw_Data_for_FY22[[#This Row],[75th]]-AAMC_Raw_Data_for_FY22[[#This Row],[Median]])/25)*15) + AAMC_Raw_Data_for_FY22[[#This Row],[Median]]","v":532989.19999999995},{"$f":"(((AAMC_Raw_Data_for_FY22[[#This Row],[75th]]-AAMC_Raw_Data_for_FY22[[#This Row],[Median]])/25)*20) + AAMC_Raw_Data_for_FY22[[#This Row],[Median]]","v":555649.6},578310,{"$f":"(((AAMC_Raw_Data_for_FY22[[#This Row],[75th]]-AAMC_Raw_Data_for_FY22[[#This Row],[Median]])/25)*30) + AAMC_Raw_Data_for_FY22[[#This Row],[Median]]","v":600970.4},{"$f":"(((AAMC_Raw_Data_for_FY22[[#This Row],[75th]]-AAMC_Raw_Data_for_FY22[[#This Row],[Median]])/25)*35) + AAMC_Raw_Data_for_FY22[[#This Row],[Median]]","v":623630.80000000005},{"$f":"(((AAMC_Raw_Data_for_FY22[[#This Row],[75th]]-AAMC_Raw_Data_for_FY22[[#This Row],[Median]])/25)*40) + AAMC_Raw_Data_for_FY22[[#This Row],[Median]]","v":646291.19999999995}]
[{"$f":"AAMC_Raw_Data_for_FY22[[#This Row],[Source]]&AAMC_Raw_Data_for_FY22[[#This Row],[Type]]&AAMC_Raw_Data_for_FY22[[#This Row],[School Subset]]&AAMC_Raw_Data_for_FY22[[#This Row],[Rank]]&AAMC_Raw_Data_for_FY22[[#This Row],[Degree]]&AAMC_Raw_Data_for_FY22[[#This Row],[Department / Specialty]]&\"L\"","v":"AAMCAcademicAllChairMDAnesthesiology: Pain ManagementL"},"Anesthesiology: Pain Management",1,"AAMC","Academic","All","Chair","MD","2021-2022",null,{"$f":"(((AAMC_Raw_Data_for_FY22[[#This Row],[Median]]-AAMC_Raw_Data_for_FY22[[#This Row],[25th]])/25)*5) + AAMC_Raw_Data_for_FY22[[#This Row],[25th]]","v":0},{"$f":"(((AAMC_Raw_Data_for_FY22[[#This Row],[Median]]-AAMC_Raw_Data_for_FY22[[#This Row],[25th]])/25)*10) + AAMC_Raw_Data_for_FY22[[#This Row],[25th]]","v":0},{"$f":"(((AAMC_Raw_Data_for_FY22[[#This Row],[Median]]-AAMC_Raw_Data_for_FY22[[#This Row],[25th]])/25)*15) + AAMC_Raw_Data_for_FY22[[#This Row],[25th]]","v":0},{"$f":"(((AAMC_Raw_Data_for_FY22[[#This Row],[Median]]-AAMC_Raw_Data_for_FY22[[#This Row],[25th]])/25)*20) + AAMC_Raw_Data_for_FY22[[#This Row],[25th]]","v":0},null,{"$f":"(((AAMC_Raw_Data_for_FY22[[#This Row],[75th]]-AAMC_Raw_Data_for_FY22[[#This Row],[Median]])/25)*5) + AAMC_Raw_Data_for_FY22[[#This Row],[Median]]","v":0},{"$f":"(((AAMC_Raw_Data_for_FY22[[#This Row],[75th]]-AAMC_Raw_Data_for_FY22[[#This Row],[Median]])/25)*10) + AAMC_Raw_Data_for_FY22[[#This Row],[Median]]","v":0},{"$f":"(((AAMC_Raw_Data_for_FY22[[#This Row],[75th]]-AAMC_Raw_Data_for_FY22[[#This Row],[Median]])/25)*15) + AAMC_Raw_Data_for_FY22[[#This Row],[Median]]","v":0},{"$f":"(((AAMC_Raw_Data_for_FY22[[#This Row],[75th]]-AAMC_Raw_Data_for_FY22[[#This Row],[Median]])/25)*20) + AAMC_Raw_Data_for_FY22[[#This Row],[Median]]","v":0},null,{"$f":"(((AAMC_Raw_Data_for_FY22[[#This Row],[75th]]-AAMC_Raw_Data_for_FY22[[#This Row],[Median]])/25)*30) + AAMC_Raw_Data_for_FY22[[#This Row],[Median]]","v":0},{"$f":"(((AAMC_Raw_Data_for_FY22[[#This Row],[75th]]-AAMC_Raw_Data_for_FY22[[#This Row],[Median]])/25)*35) + AAMC_Raw_Data_for_FY22[[#This Row],[Median]]","v":0},{"$f":"(((AAMC_Raw_Data_for_FY22[[#This Row],[75th]]-AAMC_Raw_Data_for_FY22[[#This Row],[Median]])/25)*40) + AAMC_Raw_Data_for_FY22[[#This Row],[Median]]","v":0}]
[{"$f":"AAMC_Raw_Data_for_FY22[[#This Row],[Source]]&AAMC_Raw_Data_for_FY22[[#This Row],[Type]]&AAMC_Raw_Data_for_FY22[[#This Row],[School Subset]]&AAMC_Raw_Data_for_FY22[[#This Row],[Rank]]&AAMC_Raw_Data_for_FY22[[#This Row],[Degree]]&AAMC_Raw_Data_for_FY22[[#This Row],[Department / Specialty]]&\"L\"","v":"AAMCAcademicAllInstructorMDAnesthesiology: PediatricL"},"Anesthesiology: Pediatric",5,"AAMC","Academic","All","Instructor","MD","2021-2022",307707,{"$f":"(((AAMC_Raw_Data_for_FY22[[#This Row],[Median]]-AAMC_Raw_Data_for_FY22[[#This Row],[25th]])/25)*5) + AAMC_Raw_Data_for_FY22[[#This Row],[25th]]","v":319044},{"$f":"(((AAMC_Raw_Data_for_FY22[[#This Row],[Median]]-AAMC_Raw_Data_for_FY22[[#This Row],[25th]])/25)*10) + AAMC_Raw_Data_for_FY22[[#This Row],[25th]]","v":330381},{"$f":"(((AAMC_Raw_Data_for_FY22[[#This Row],[Median]]-AAMC_Raw_Data_for_FY22[[#This Row],[25th]])/25)*15) + AAMC_Raw_Data_for_FY22[[#This Row],[25th]]","v":341718},{"$f":"(((AAMC_Raw_Data_for_FY22[[#This Row],[Median]]-AAMC_Raw_Data_for_FY22[[#This Row],[25th]])/25)*20) + AAMC_Raw_Data_for_FY22[[#This Row],[25th]]","v":353055},364392,{"$f":"(((AAMC_Raw_Data_for_FY22[[#This Row],[75th]]-AAMC_Raw_Data_for_FY22[[#This Row],[Median]])/25)*5) + AAMC_Raw_Data_for_FY22[[#This Row],[Median]]","v":376448.2},{"$f":"(((AAMC_Raw_Data_for_FY22[[#This Row],[75th]]-AAMC_Raw_Data_for_FY22[[#This Row],[Median]])/25)*10) + AAMC_Raw_Data_for_FY22[[#This Row],[Median]]","v":388504.4},{"$f":"(((AAMC_Raw_Data_for_FY22[[#This Row],[75th]]-AAMC_Raw_Data_for_FY22[[#This Row],[Median]])/25)*15) + AAMC_Raw_Data_for_FY22[[#This Row],[Median]]","v":400560.6},{"$f":"(((AAMC_Raw_Data_for_FY22[[#This Row],[75th]]-AAMC_Raw_Data_for_FY22[[#This Row],[Median]])/25)*20) + AAMC_Raw_Data_for_FY22[[#This Row],[Median]]","v":412616.8},424673,{"$f":"(((AAMC_Raw_Data_for_FY22[[#This Row],[75th]]-AAMC_Raw_Data_for_FY22[[#This Row],[Median]])/25)*30) + AAMC_Raw_Data_for_FY22[[#This Row],[Median]]","v":436729.2},{"$f":"(((AAMC_Raw_Data_for_FY22[[#This Row],[75th]]-AAMC_Raw_Data_for_FY22[[#This Row],[Median]])/25)*35) + AAMC_Raw_Data_for_FY22[[#This Row],[Median]]","v":448785.4},{"$f":"(((AAMC_Raw_Data_for_FY22[[#This Row],[75th]]-AAMC_Raw_Data_for_FY22[[#This Row],[Median]])/25)*40) + AAMC_Raw_Data_for_FY22[[#This Row],[Median]]","v":460841.6}]
[{"$f":"AAMC_Raw_Data_for_FY22[[#This Row],[Source]]&AAMC_Raw_Data_for_FY22[[#This Row],[Type]]&AAMC_Raw_Data_for_FY22[[#This Row],[School Subset]]&AAMC_Raw_Data_for_FY22[[#This Row],[Rank]]&AAMC_Raw_Data_for_FY22[[#This Row],[Degree]]&AAMC_Raw_Data_for_FY22[[#This Row],[Department / Specialty]]&\"L\"","v":"AAMCAcademicAllAssistantMDAnesthesiology: PediatricL"},"Anesthesiology: Pediatric",4,"AAMC","Academic","All","Assistant","MD","2021-2022",383649,{"$f":"(((AAMC_Raw_Data_for_FY22[[#This Row],[Median]]-AAMC_Raw_Data_for_FY22[[#This Row],[25th]])/25)*5) + AAMC_Raw_Data_for_FY22[[#This Row],[25th]]","v":393079.2},{"$f":"(((AAMC_Raw_Data_for_FY22[[#This Row],[Median]]-AAMC_Raw_Data_for_FY22[[#This Row],[25th]])/25)*10) + AAMC_Raw_Data_for_FY22[[#This Row],[25th]]","v":402509.4},{"$f":"(((AAMC_Raw_Data_for_FY22[[#This Row],[Median]]-AAMC_Raw_Data_for_FY22[[#This Row],[25th]])/25)*15) + AAMC_Raw_Data_for_FY22[[#This Row],[25th]]","v":411939.6},{"$f":"(((AAMC_Raw_Data_for_FY22[[#This Row],[Median]]-AAMC_Raw_Data_for_FY22[[#This Row],[25th]])/25)*20) + AAMC_Raw_Data_for_FY22[[#This Row],[25th]]","v":421369.8},430800,{"$f":"(((AAMC_Raw_Data_for_FY22[[#This Row],[75th]]-AAMC_Raw_Data_for_FY22[[#This Row],[Median]])/25)*5) + AAMC_Raw_Data_for_FY22[[#This Row],[Median]]","v":439160.4},{"$f":"(((AAMC_Raw_Data_for_FY22[[#This Row],[75th]]-AAMC_Raw_Data_for_FY22[[#This Row],[Median]])/25)*10) + AAMC_Raw_Data_for_FY22[[#This Row],[Median]]","v":447520.8},{"$f":"(((AAMC_Raw_Data_for_FY22[[#This Row],[75th]]-AAMC_Raw_Data_for_FY22[[#This Row],[Median]])/25)*15) + AAMC_Raw_Data_for_FY22[[#This Row],[Median]]","v":455881.2},{"$f":"(((AAMC_Raw_Data_for_FY22[[#This Row],[75th]]-AAMC_Raw_Data_for_FY22[[#This Row],[Median]])/25)*20) + AAMC_Raw_Data_for_FY22[[#This Row],[Median]]","v":464241.6},472602,{"$f":"(((AAMC_Raw_Data_for_FY22[[#This Row],[75th]]-AAMC_Raw_Data_for_FY22[[#This Row],[Median]])/25)*30) + AAMC_Raw_Data_for_FY22[[#This Row],[Median]]","v":480962.4},{"$f":"(((AAMC_Raw_Data_for_FY22[[#This Row],[75th]]-AAMC_Raw_Data_for_FY22[[#This Row],[Median]])/25)*35) + AAMC_Raw_Data_for_FY22[[#This Row],[Median]]","v":489322.8},{"$f":"(((AAMC_Raw_Data_for_FY22[[#This Row],[75th]]-AAMC_Raw_Data_for_FY22[[#This Row],[Median]])/25)*40) + AAMC_Raw_Data_for_FY22[[#This Row],[Median]]","v":497683.20000000001}]
[{"$f":"AAMC_Raw_Data_for_FY22[[#This Row],[Source]]&AAMC_Raw_Data_for_FY22[[#This Row],[Type]]&AAMC_Raw_Data_for_FY22[[#This Row],[School Subset]]&AAMC_Raw_Data_for_FY22[[#This Row],[Rank]]&AAMC_Raw_Data_for_FY22[[#This Row],[Degree]]&AAMC_Raw_Data_for_FY22[[#This Row],[Department / Specialty]]&\"L\"","v":"AAMCAcademicAllAssociateMDAnesthesiology: PediatricL"},"Anesthesiology: Pediatric",3,"AAMC","Academic","All","Associate","MD","2021-2022",430680,{"$f":"(((AAMC_Raw_Data_for_FY22[[#This Row],[Median]]-AAMC_Raw_Data_for_FY22[[#This Row],[25th]])/25)*5) + AAMC_Raw_Data_for_FY22[[#This Row],[25th]]","v":440364.79999999999},{"$f":"(((AAMC_Raw_Data_for_FY22[[#This Row],[Median]]-AAMC_Raw_Data_for_FY22[[#This Row],[25th]])/25)*10) + AAMC_Raw_Data_for_FY22[[#This Row],[25th]]","v":450049.6},{"$f":"(((AAMC_Raw_Data_for_FY22[[#This Row],[Median]]-AAMC_Raw_Data_for_FY22[[#This Row],[25th]])/25)*15) + AAMC_Raw_Data_for_FY22[[#This Row],[25th]]","v":459734.4},{"$f":"(((AAMC_Raw_Data_for_FY22[[#This Row],[Median]]-AAMC_Raw_Data_for_FY22[[#This Row],[25th]])/25)*20) + AAMC_Raw_Data_for_FY22[[#This Row],[25th]]","v":469419.2},479104,{"$f":"(((AAMC_Raw_Data_for_FY22[[#This Row],[75th]]-AAMC_Raw_Data_for_FY22[[#This Row],[Median]])/25)*5) + AAMC_Raw_Data_for_FY22[[#This Row],[Median]]","v":487041},{"$f":"(((AAMC_Raw_Data_for_FY22[[#This Row],[75th]]-AAMC_Raw_Data_for_FY22[[#This Row],[Median]])/25)*10) + AAMC_Raw_Data_for_FY22[[#This Row],[Median]]","v":494978},{"$f":"(((AAMC_Raw_Data_for_FY22[[#This Row],[75th]]-AAMC_Raw_Data_for_FY22[[#This Row],[Median]])/25)*15) + AAMC_Raw_Data_for_FY22[[#This Row],[Median]]","v":502915},{"$f":"(((AAMC_Raw_Data_for_FY22[[#This Row],[75th]]-AAMC_Raw_Data_for_FY22[[#This Row],[Median]])/25)*20) + AAMC_Raw_Data_for_FY22[[#This Row],[Median]]","v":510852},518789,{"$f":"(((AAMC_Raw_Data_for_FY22[[#This Row],[75th]]-AAMC_Raw_Data_for_FY22[[#This Row],[Median]])/25)*30) + AAMC_Raw_Data_for_FY22[[#This Row],[Median]]","v":526726},{"$f":"(((AAMC_Raw_Data_for_FY22[[#This Row],[75th]]-AAMC_Raw_Data_for_FY22[[#This Row],[Median]])/25)*35) + AAMC_Raw_Data_for_FY22[[#This Row],[Median]]","v":534663},{"$f":"(((AAMC_Raw_Data_for_FY22[[#This Row],[75th]]-AAMC_Raw_Data_for_FY22[[#This Row],[Median]])/25)*40) + AAMC_Raw_Data_for_FY22[[#This Row],[Median]]","v":542600}]
[{"$f":"AAMC_Raw_Data_for_FY22[[#This Row],[Source]]&AAMC_Raw_Data_for_FY22[[#This Row],[Type]]&AAMC_Raw_Data_for_FY22[[#This Row],[School Subset]]&AAMC_Raw_Data_for_FY22[[#This Row],[Rank]]&AAMC_Raw_Data_for_FY22[[#This Row],[Degree]]&AAMC_Raw_Data_for_FY22[[#This Row],[Department / Specialty]]&\"L\"","v":"AAMCAcademicAllProfessorMDAnesthesiology: PediatricL"},"Anesthesiology: Pediatric",2,"AAMC","Academic","All","Professor","MD","2021-2022",441578,{"$f":"(((AAMC_Raw_Data_for_FY22[[#This Row],[Median]]-AAMC_Raw_Data_for_FY22[[#This Row],[25th]])/25)*5) + AAMC_Raw_Data_for_FY22[[#This Row],[25th]]","v":453664.2},{"$f":"(((AAMC_Raw_Data_for_FY22[[#This Row],[Median]]-AAMC_Raw_Data_for_FY22[[#This Row],[25th]])/25)*10) + AAMC_Raw_Data_for_FY22[[#This Row],[25th]]","v":465750.4},{"$f":"(((AAMC_Raw_Data_for_FY22[[#This Row],[Median]]-AAMC_Raw_Data_for_FY22[[#This Row],[25th]])/25)*15) + AAMC_Raw_Data_for_FY22[[#This Row],[25th]]","v":477836.6},{"$f":"(((AAMC_Raw_Data_for_FY22[[#This Row],[Median]]-AAMC_Raw_Data_for_FY22[[#This Row],[25th]])/25)*20) + AAMC_Raw_Data_for_FY22[[#This Row],[25th]]","v":489922.8},502009,{"$f":"(((AAMC_Raw_Data_for_FY22[[#This Row],[75th]]-AAMC_Raw_Data_for_FY22[[#This Row],[Median]])/25)*5) + AAMC_Raw_Data_for_FY22[[#This Row],[Median]]","v":513764.4},{"$f":"(((AAMC_Raw_Data_for_FY22[[#This Row],[75th]]-AAMC_Raw_Data_for_FY22[[#This Row],[Median]])/25)*10) + AAMC_Raw_Data_for_FY22[[#This Row],[Median]]","v":525519.80000000005},{"$f":"(((AAMC_Raw_Data_for_FY22[[#This Row],[75th]]-AAMC_Raw_Data_for_FY22[[#This Row],[Median]])/25)*15) + AAMC_Raw_Data_for_FY22[[#This Row],[Median]]","v":537275.19999999995},{"$f":"(((AAMC_Raw_Data_for_FY22[[#This Row],[75th]]-AAMC_Raw_Data_for_FY22[[#This Row],[Median]])/25)*20) + AAMC_Raw_Data_for_FY22[[#This Row],[Median]]","v":549030.6},560786,{"$f":"(((AAMC_Raw_Data_for_FY22[[#This Row],[75th]]-AAMC_Raw_Data_for_FY22[[#This Row],[Median]])/25)*30) + AAMC_Raw_Data_for_FY22[[#This Row],[Median]]","v":572541.4},{"$f":"(((AAMC_Raw_Data_for_FY22[[#This Row],[75th]]-AAMC_Raw_Data_for_FY22[[#This Row],[Median]])/25)*35) + AAMC_Raw_Data_for_FY22[[#This Row],[Median]]","v":584296.80000000005},{"$f":"(((AAMC_Raw_Data_for_FY22[[#This Row],[75th]]-AAMC_Raw_Data_for_FY22[[#This Row],[Median]])/25)*40) + AAMC_Raw_Data_for_FY22[[#This Row],[Median]]","v":596052.19999999995}]
[{"$f":"AAMC_Raw_Data_for_FY22[[#This Row],[Source]]&AAMC_Raw_Data_for_FY22[[#This Row],[Type]]&AAMC_Raw_Data_for_FY22[[#This Row],[School Subset]]&AAMC_Raw_Data_for_FY22[[#This Row],[Rank]]&AAMC_Raw_Data_for_FY22[[#This Row],[Degree]]&AAMC_Raw_Data_for_FY22[[#This Row],[Department / Specialty]]&\"L\"","v":"AAMCAcademicAllChiefMDAnesthesiology: PediatricL"},"Anesthesiology: Pediatric",6,"AAMC","Academic","All","Chief","MD","2021-2022",452779,{"$f":"(((AAMC_Raw_Data_for_FY22[[#This Row],[Median]]-AAMC_Raw_Data_for_FY22[[#This Row],[25th]])/25)*5) + AAMC_Raw_Data_for_FY22[[#This Row],[25th]]","v":468140.2},{"$f":"(((AAMC_Raw_Data_for_FY22[[#This Row],[Median]]-AAMC_Raw_Data_for_FY22[[#This Row],[25th]])/25)*10) + AAMC_Raw_Data_for_FY22[[#This Row],[25th]]","v":483501.4},{"$f":"(((AAMC_Raw_Data_for_FY22[[#This Row],[Median]]-AAMC_Raw_Data_for_FY22[[#This Row],[25th]])/25)*15) + AAMC_Raw_Data_for_FY22[[#This Row],[25th]]","v":498862.6},{"$f":"(((AAMC_Raw_Data_for_FY22[[#This Row],[Median]]-AAMC_Raw_Data_for_FY22[[#This Row],[25th]])/25)*20) + AAMC_Raw_Data_for_FY22[[#This Row],[25th]]","v":514223.8},529585,{"$f":"(((AAMC_Raw_Data_for_FY22[[#This Row],[75th]]-AAMC_Raw_Data_for_FY22[[#This Row],[Median]])/25)*5) + AAMC_Raw_Data_for_FY22[[#This Row],[Median]]","v":549544.6},{"$f":"(((AAMC_Raw_Data_for_FY22[[#This Row],[75th]]-AAMC_Raw_Data_for_FY22[[#This Row],[Median]])/25)*10) + AAMC_Raw_Data_for_FY22[[#This Row],[Median]]","v":569504.19999999995},{"$f":"(((AAMC_Raw_Data_for_FY22[[#This Row],[75th]]-AAMC_Raw_Data_for_FY22[[#This Row],[Median]])/25)*15) + AAMC_Raw_Data_for_FY22[[#This Row],[Median]]","v":589463.80000000005},{"$f":"(((AAMC_Raw_Data_for_FY22[[#This Row],[75th]]-AAMC_Raw_Data_for_FY22[[#This Row],[Median]])/25)*20) + AAMC_Raw_Data_for_FY22[[#This Row],[Median]]","v":609423.4},629383,{"$f":"(((AAMC_Raw_Data_for_FY22[[#This Row],[75th]]-AAMC_Raw_Data_for_FY22[[#This Row],[Median]])/25)*30) + AAMC_Raw_Data_for_FY22[[#This Row],[Median]]","v":649342.6},{"$f":"(((AAMC_Raw_Data_for_FY22[[#This Row],[75th]]-AAMC_Raw_Data_for_FY22[[#This Row],[Median]])/25)*35) + AAMC_Raw_Data_for_FY22[[#This Row],[Median]]","v":669302.19999999995},{"$f":"(((AAMC_Raw_Data_for_FY22[[#This Row],[75th]]-AAMC_Raw_Data_for_FY22[[#This Row],[Median]])/25)*40) + AAMC_Raw_Data_for_FY22[[#This Row],[Median]]","v":689261.8}]
[{"$f":"AAMC_Raw_Data_for_FY22[[#This Row],[Source]]&AAMC_Raw_Data_for_FY22[[#This Row],[Type]]&AAMC_Raw_Data_for_FY22[[#This Row],[School Subset]]&AAMC_Raw_Data_for_FY22[[#This Row],[Rank]]&AAMC_Raw_Data_for_FY22[[#This Row],[Degree]]&AAMC_Raw_Data_for_FY22[[#This Row],[Department / Specialty]]&\"L\"","v":"AAMCAcademicAllChairMDAnesthesiology: PediatricL"},"Anesthesiology: Pediatric",1,"AAMC","Academic","All","Chair","MD","2021-2022",547144,{"$f":"(((AAMC_Raw_Data_for_FY22[[#This Row],[Median]]-AAMC_Raw_Data_for_FY22[[#This Row],[25th]])/25)*5) + AAMC_Raw_Data_for_FY22[[#This Row],[25th]]","v":564255.6},{"$f":"(((AAMC_Raw_Data_for_FY22[[#This Row],[Median]]-AAMC_Raw_Data_for_FY22[[#This Row],[25th]])/25)*10) + AAMC_Raw_Data_for_FY22[[#This Row],[25th]]","v":581367.19999999995},{"$f":"(((AAMC_Raw_Data_for_FY22[[#This Row],[Median]]-AAMC_Raw_Data_for_FY22[[#This Row],[25th]])/25)*15) + AAMC_Raw_Data_for_FY22[[#This Row],[25th]]","v":598478.80000000005},{"$f":"(((AAMC_Raw_Data_for_FY22[[#This Row],[Median]]-AAMC_Raw_Data_for_FY22[[#This Row],[25th]])/25)*20) + AAMC_Raw_Data_for_FY22[[#This Row],[25th]]","v":615590.40000000002},632702,{"$f":"(((AAMC_Raw_Data_for_FY22[[#This Row],[75th]]-AAMC_Raw_Data_for_FY22[[#This Row],[Median]])/25)*5) + AAMC_Raw_Data_for_FY22[[#This Row],[Median]]","v":649239.4},{"$f":"(((AAMC_Raw_Data_for_FY22[[#This Row],[75th]]-AAMC_Raw_Data_for_FY22[[#This Row],[Median]])/25)*10) + AAMC_Raw_Data_for_FY22[[#This Row],[Median]]","v":665776.80000000005},{"$f":"(((AAMC_Raw_Data_for_FY22[[#This Row],[75th]]-AAMC_Raw_Data_for_FY22[[#This Row],[Median]])/25)*15) + AAMC_Raw_Data_for_FY22[[#This Row],[Median]]","v":682314.2},{"$f":"(((AAMC_Raw_Data_for_FY22[[#This Row],[75th]]-AAMC_Raw_Data_for_FY22[[#This Row],[Median]])/25)*20) + AAMC_Raw_Data_for_FY22[[#This Row],[Median]]","v":698851.6},715389,{"$f":"(((AAMC_Raw_Data_for_FY22[[#This Row],[75th]]-AAMC_Raw_Data_for_FY22[[#This Row],[Median]])/25)*30) + AAMC_Raw_Data_for_FY22[[#This Row],[Median]]","v":731926.4},{"$f":"(((AAMC_Raw_Data_for_FY22[[#This Row],[75th]]-AAMC_Raw_Data_for_FY22[[#This Row],[Median]])/25)*35) + AAMC_Raw_Data_for_FY22[[#This Row],[Median]]","v":748463.8},{"$f":"(((AAMC_Raw_Data_for_FY22[[#This Row],[75th]]-AAMC_Raw_Data_for_FY22[[#This Row],[Median]])/25)*40) + AAMC_Raw_Data_for_FY22[[#This Row],[Median]]","v":765001.2}]
[{"$f":"AAMC_Raw_Data_for_FY22[[#This Row],[Source]]&AAMC_Raw_Data_for_FY22[[#This Row],[Type]]&AAMC_Raw_Data_for_FY22[[#This Row],[School Subset]]&AAMC_Raw_Data_for_FY22[[#This Row],[Rank]]&AAMC_Raw_Data_for_FY22[[#This Row],[Degree]]&AAMC_Raw_Data_for_FY22[[#This Row],[Department / Specialty]]&\"L\"","v":"AAMCAcademicAllInstructorMDDermatology TotalL"},"Dermatology Total",5,"AAMC","Academic","All","Instructor","MD","2021-2022",181950,{"$f":"(((AAMC_Raw_Data_for_FY22[[#This Row],[Median]]-AAMC_Raw_Data_for_FY22[[#This Row],[25th]])/25)*5) + AAMC_Raw_Data_for_FY22[[#This Row],[25th]]","v":202277.6},{"$f":"(((AAMC_Raw_Data_for_FY22[[#This Row],[Median]]-AAMC_Raw_Data_for_FY22[[#This Row],[25th]])/25)*10) + AAMC_Raw_Data_for_FY22[[#This Row],[25th]]","v":222605.2},{"$f":"(((AAMC_Raw_Data_for_FY22[[#This Row],[Median]]-AAMC_Raw_Data_for_FY22[[#This Row],[25th]])/25)*15) + AAMC_Raw_Data_for_FY22[[#This Row],[25th]]","v":242932.8},{"$f":"(((AAMC_Raw_Data_for_FY22[[#This Row],[Median]]-AAMC_Raw_Data_for_FY22[[#This Row],[25th]])/25)*20) + AAMC_Raw_Data_for_FY22[[#This Row],[25th]]","v":263260.40000000002},283588,{"$f":"(((AAMC_Raw_Data_for_FY22[[#This Row],[75th]]-AAMC_Raw_Data_for_FY22[[#This Row],[Median]])/25)*5) + AAMC_Raw_Data_for_FY22[[#This Row],[Median]]","v":294700.59999999998},{"$f":"(((AAMC_Raw_Data_for_FY22[[#This Row],[75th]]-AAMC_Raw_Data_for_FY22[[#This Row],[Median]])/25)*10) + AAMC_Raw_Data_for_FY22[[#This Row],[Median]]","v":305813.2},{"$f":"(((AAMC_Raw_Data_for_FY22[[#This Row],[75th]]-AAMC_Raw_Data_for_FY22[[#This Row],[Median]])/25)*15) + AAMC_Raw_Data_for_FY22[[#This Row],[Median]]","v":316925.8},{"$f":"(((AAMC_Raw_Data_for_FY22[[#This Row],[75th]]-AAMC_Raw_Data_for_FY22[[#This Row],[Median]])/25)*20) + AAMC_Raw_Data_for_FY22[[#This Row],[Median]]","v":328038.40000000002},339151,{"$f":"(((AAMC_Raw_Data_for_FY22[[#This Row],[75th]]-AAMC_Raw_Data_for_FY22[[#This Row],[Median]])/25)*30) + AAMC_Raw_Data_for_FY22[[#This Row],[Median]]","v":350263.6},{"$f":"(((AAMC_Raw_Data_for_FY22[[#This Row],[75th]]-AAMC_Raw_Data_for_FY22[[#This Row],[Median]])/25)*35) + AAMC_Raw_Data_for_FY22[[#This Row],[Median]]","v":361376.2},{"$f":"(((AAMC_Raw_Data_for_FY22[[#This Row],[75th]]-AAMC_Raw_Data_for_FY22[[#This Row],[Median]])/25)*40) + AAMC_Raw_Data_for_FY22[[#This Row],[Median]]","v":372488.8}]
[{"$f":"AAMC_Raw_Data_for_FY22[[#This Row],[Source]]&AAMC_Raw_Data_for_FY22[[#This Row],[Type]]&AAMC_Raw_Data_for_FY22[[#This Row],[School Subset]]&AAMC_Raw_Data_for_FY22[[#This Row],[Rank]]&AAMC_Raw_Data_for_FY22[[#This Row],[Degree]]&AAMC_Raw_Data_for_FY22[[#This Row],[Department / Specialty]]&\"L\"","v":"AAMCAcademicAllAssistantMDDermatology TotalL"},"Dermatology Total",4,"AAMC","Academic","All","Assistant","MD","2021-2022",285457,{"$f":"(((AAMC_Raw_Data_for_FY22[[#This Row],[Median]]-AAMC_Raw_Data_for_FY22[[#This Row],[25th]])/25)*5) + AAMC_Raw_Data_for_FY22[[#This Row],[25th]]","v":297344.2},{"$f":"(((AAMC_Raw_Data_for_FY22[[#This Row],[Median]]-AAMC_Raw_Data_for_FY22[[#This Row],[25th]])/25)*10) + AAMC_Raw_Data_for_FY22[[#This Row],[25th]]","v":309231.40000000002},{"$f":"(((AAMC_Raw_Data_for_FY22[[#This Row],[Median]]-AAMC_Raw_Data_for_FY22[[#This Row],[25th]])/25)*15) + AAMC_Raw_Data_for_FY22[[#This Row],[25th]]","v":321118.59999999998},{"$f":"(((AAMC_Raw_Data_for_FY22[[#This Row],[Median]]-AAMC_Raw_Data_for_FY22[[#This Row],[25th]])/25)*20) + AAMC_Raw_Data_for_FY22[[#This Row],[25th]]","v":333005.8},344893,{"$f":"(((AAMC_Raw_Data_for_FY22[[#This Row],[75th]]-AAMC_Raw_Data_for_FY22[[#This Row],[Median]])/25)*5) + AAMC_Raw_Data_for_FY22[[#This Row],[Median]]","v":363663.2},{"$f":"(((AAMC_Raw_Data_for_FY22[[#This Row],[75th]]-AAMC_Raw_Data_for_FY22[[#This Row],[Median]])/25)*10) + AAMC_Raw_Data_for_FY22[[#This Row],[Median]]","v":382433.4},{"$f":"(((AAMC_Raw_Data_for_FY22[[#This Row],[75th]]-AAMC_Raw_Data_for_FY22[[#This Row],[Median]])/25)*15) + AAMC_Raw_Data_for_FY22[[#This Row],[Median]]","v":401203.6},{"$f":"(((AAMC_Raw_Data_for_FY22[[#This Row],[75th]]-AAMC_Raw_Data_for_FY22[[#This Row],[Median]])/25)*20) + AAMC_Raw_Data_for_FY22[[#This Row],[Median]]","v":419973.8},438744,{"$f":"(((AAMC_Raw_Data_for_FY22[[#This Row],[75th]]-AAMC_Raw_Data_for_FY22[[#This Row],[Median]])/25)*30) + AAMC_Raw_Data_for_FY22[[#This Row],[Median]]","v":457514.2},{"$f":"(((AAMC_Raw_Data_for_FY22[[#This Row],[75th]]-AAMC_Raw_Data_for_FY22[[#This Row],[Median]])/25)*35) + AAMC_Raw_Data_for_FY22[[#This Row],[Median]]","v":476284.4},{"$f":"(((AAMC_Raw_Data_for_FY22[[#This Row],[75th]]-AAMC_Raw_Data_for_FY22[[#This Row],[Median]])/25)*40) + AAMC_Raw_Data_for_FY22[[#This Row],[Median]]","v":495054.6}]
[{"$f":"AAMC_Raw_Data_for_FY22[[#This Row],[Source]]&AAMC_Raw_Data_for_FY22[[#This Row],[Type]]&AAMC_Raw_Data_for_FY22[[#This Row],[School Subset]]&AAMC_Raw_Data_for_FY22[[#This Row],[Rank]]&AAMC_Raw_Data_for_FY22[[#This Row],[Degree]]&AAMC_Raw_Data_for_FY22[[#This Row],[Department / Specialty]]&\"L\"","v":"AAMCAcademicAllAssociateMDDermatology TotalL"},"Dermatology Total",3,"AAMC","Academic","All","Associate","MD","2021-2022",327331,{"$f":"(((AAMC_Raw_Data_for_FY22[[#This Row],[Median]]-AAMC_Raw_Data_for_FY22[[#This Row],[25th]])/25)*5) + AAMC_Raw_Data_for_FY22[[#This Row],[25th]]","v":342067.20000000001},{"$f":"(((AAMC_Raw_Data_for_FY22[[#This Row],[Median]]-AAMC_Raw_Data_for_FY22[[#This Row],[25th]])/25)*10) + AAMC_Raw_Data_for_FY22[[#This Row],[25th]]","v":356803.4},{"$f":"(((AAMC_Raw_Data_for_FY22[[#This Row],[Median]]-AAMC_Raw_Data_for_FY22[[#This Row],[25th]])/25)*15) + AAMC_Raw_Data_for_FY22[[#This Row],[25th]]","v":371539.6},{"$f":"(((AAMC_Raw_Data_for_FY22[[#This Row],[Median]]-AAMC_Raw_Data_for_FY22[[#This Row],[25th]])/25)*20) + AAMC_Raw_Data_for_FY22[[#This Row],[25th]]","v":386275.8},401012,{"$f":"(((AAMC_Raw_Data_for_FY22[[#This Row],[75th]]-AAMC_Raw_Data_for_FY22[[#This Row],[Median]])/25)*5) + AAMC_Raw_Data_for_FY22[[#This Row],[Median]]","v":428974.2},{"$f":"(((AAMC_Raw_Data_for_FY22[[#This Row],[75th]]-AAMC_Raw_Data_for_FY22[[#This Row],[Median]])/25)*10) + AAMC_Raw_Data_for_FY22[[#This Row],[Median]]","v":456936.4},{"$f":"(((AAMC_Raw_Data_for_FY22[[#This Row],[75th]]-AAMC_Raw_Data_for_FY22[[#This Row],[Median]])/25)*15) + AAMC_Raw_Data_for_FY22[[#This Row],[Median]]","v":484898.6},{"$f":"(((AAMC_Raw_Data_for_FY22[[#This Row],[75th]]-AAMC_Raw_Data_for_FY22[[#This Row],[Median]])/25)*20) + AAMC_Raw_Data_for_FY22[[#This Row],[Median]]","v":512860.8},540823,{"$f":"(((AAMC_Raw_Data_for_FY22[[#This Row],[75th]]-AAMC_Raw_Data_for_FY22[[#This Row],[Median]])/25)*30) + AAMC_Raw_Data_for_FY22[[#This Row],[Median]]","v":568785.19999999995},{"$f":"(((AAMC_Raw_Data_for_FY22[[#This Row],[75th]]-AAMC_Raw_Data_for_FY22[[#This Row],[Median]])/25)*35) + AAMC_Raw_Data_for_FY22[[#This Row],[Median]]","v":596747.4},{"$f":"(((AAMC_Raw_Data_for_FY22[[#This Row],[75th]]-AAMC_Raw_Data_for_FY22[[#This Row],[Median]])/25)*40) + AAMC_Raw_Data_for_FY22[[#This Row],[Median]]","v":624709.6}]
[{"$f":"AAMC_Raw_Data_for_FY22[[#This Row],[Source]]&AAMC_Raw_Data_for_FY22[[#This Row],[Type]]&AAMC_Raw_Data_for_FY22[[#This Row],[School Subset]]&AAMC_Raw_Data_for_FY22[[#This Row],[Rank]]&AAMC_Raw_Data_for_FY22[[#This Row],[Degree]]&AAMC_Raw_Data_for_FY22[[#This Row],[Department / Specialty]]&\"L\"","v":"AAMCAcademicAllProfessorMDDermatology TotalL"},"Dermatology Total",2,"AAMC","Academic","All","Professor","MD","2021-2022",328983,{"$f":"(((AAMC_Raw_Data_for_FY22[[#This Row],[Median]]-AAMC_Raw_Data_for_FY22[[#This Row],[25th]])/25)*5) + AAMC_Raw_Data_for_FY22[[#This Row],[25th]]","v":345767.2},{"$f":"(((AAMC_Raw_Data_for_FY22[[#This Row],[Median]]-AAMC_Raw_Data_for_FY22[[#This Row],[25th]])/25)*10) + AAMC_Raw_Data_for_FY22[[#This Row],[25th]]","v":362551.4},{"$f":"(((AAMC_Raw_Data_for_FY22[[#This Row],[Median]]-AAMC_Raw_Data_for_FY22[[#This Row],[25th]])/25)*15) + AAMC_Raw_Data_for_FY22[[#This Row],[25th]]","v":379335.6},{"$f":"(((AAMC_Raw_Data_for_FY22[[#This Row],[Median]]-AAMC_Raw_Data_for_FY22[[#This Row],[25th]])/25)*20) + AAMC_Raw_Data_for_FY22[[#This Row],[25th]]","v":396119.8},412904,{"$f":"(((AAMC_Raw_Data_for_FY22[[#This Row],[75th]]-AAMC_Raw_Data_for_FY22[[#This Row],[Median]])/25)*5) + AAMC_Raw_Data_for_FY22[[#This Row],[Median]]","v":445738.4},{"$f":"(((AAMC_Raw_Data_for_FY22[[#This Row],[75th]]-AAMC_Raw_Data_for_FY22[[#This Row],[Median]])/25)*10) + AAMC_Raw_Data_for_FY22[[#This Row],[Median]]","v":478572.79999999999},{"$f":"(((AAMC_Raw_Data_for_FY22[[#This Row],[75th]]-AAMC_Raw_Data_for_FY22[[#This Row],[Median]])/25)*15) + AAMC_Raw_Data_for_FY22[[#This Row],[Median]]","v":511407.2},{"$f":"(((AAMC_Raw_Data_for_FY22[[#This Row],[75th]]-AAMC_Raw_Data_for_FY22[[#This Row],[Median]])/25)*20) + AAMC_Raw_Data_for_FY22[[#This Row],[Median]]","v":544241.6},577076,{"$f":"(((AAMC_Raw_Data_for_FY22[[#This Row],[75th]]-AAMC_Raw_Data_for_FY22[[#This Row],[Median]])/25)*30) + AAMC_Raw_Data_for_FY22[[#This Row],[Median]]","v":609910.4},{"$f":"(((AAMC_Raw_Data_for_FY22[[#This Row],[75th]]-AAMC_Raw_Data_for_FY22[[#This Row],[Median]])/25)*35) + AAMC_Raw_Data_for_FY22[[#This Row],[Median]]","v":642744.80000000005},{"$f":"(((AAMC_Raw_Data_for_FY22[[#This Row],[75th]]-AAMC_Raw_Data_for_FY22[[#This Row],[Median]])/25)*40) + AAMC_Raw_Data_for_FY22[[#This Row],[Median]]","v":675579.2}]
[{"$f":"AAMC_Raw_Data_for_FY22[[#This Row],[Source]]&AAMC_Raw_Data_for_FY22[[#This Row],[Type]]&AAMC_Raw_Data_for_FY22[[#This Row],[School Subset]]&AAMC_Raw_Data_for_FY22[[#This Row],[Rank]]&AAMC_Raw_Data_for_FY22[[#This Row],[Degree]]&AAMC_Raw_Data_for_FY22[[#This Row],[Department / Specialty]]&\"L\"","v":"AAMCAcademicAllChiefMDDermatology TotalL"},"Dermatology Total",6,"AAMC","Academic","All","Chief","MD","2021-2022",418792,{"$f":"(((AAMC_Raw_Data_for_FY22[[#This Row],[Median]]-AAMC_Raw_Data_for_FY22[[#This Row],[25th]])/25)*5) + AAMC_Raw_Data_for_FY22[[#This Row],[25th]]","v":442581},{"$f":"(((AAMC_Raw_Data_for_FY22[[#This Row],[Median]]-AAMC_Raw_Data_for_FY22[[#This Row],[25th]])/25)*10) + AAMC_Raw_Data_for_FY22[[#This Row],[25th]]","v":466370},{"$f":"(((AAMC_Raw_Data_for_FY22[[#This Row],[Median]]-AAMC_Raw_Data_for_FY22[[#This Row],[25th]])/25)*15) + AAMC_Raw_Data_for_FY22[[#This Row],[25th]]","v":490159},{"$f":"(((AAMC_Raw_Data_for_FY22[[#This Row],[Median]]-AAMC_Raw_Data_for_FY22[[#This Row],[25th]])/25)*20) + AAMC_Raw_Data_for_FY22[[#This Row],[25th]]","v":513948},537737,{"$f":"(((AAMC_Raw_Data_for_FY22[[#This Row],[75th]]-AAMC_Raw_Data_for_FY22[[#This Row],[Median]])/25)*5) + AAMC_Raw_Data_for_FY22[[#This Row],[Median]]","v":560801.80000000005},{"$f":"(((AAMC_Raw_Data_for_FY22[[#This Row],[75th]]-AAMC_Raw_Data_for_FY22[[#This Row],[Median]])/25)*10) + AAMC_Raw_Data_for_FY22[[#This Row],[Median]]","v":583866.6},{"$f":"(((AAMC_Raw_Data_for_FY22[[#This Row],[75th]]-AAMC_Raw_Data_for_FY22[[#This Row],[Median]])/25)*15) + AAMC_Raw_Data_for_FY22[[#This Row],[Median]]","v":606931.4},{"$f":"(((AAMC_Raw_Data_for_FY22[[#This Row],[75th]]-AAMC_Raw_Data_for_FY22[[#This Row],[Median]])/25)*20) + AAMC_Raw_Data_for_FY22[[#This Row],[Median]]","v":629996.19999999995},653061,{"$f":"(((AAMC_Raw_Data_for_FY22[[#This Row],[75th]]-AAMC_Raw_Data_for_FY22[[#This Row],[Median]])/25)*30) + AAMC_Raw_Data_for_FY22[[#This Row],[Median]]","v":676125.8},{"$f":"(((AAMC_Raw_Data_for_FY22[[#This Row],[75th]]-AAMC_Raw_Data_for_FY22[[#This Row],[Median]])/25)*35) + AAMC_Raw_Data_for_FY22[[#This Row],[Median]]","v":699190.6},{"$f":"(((AAMC_Raw_Data_for_FY22[[#This Row],[75th]]-AAMC_Raw_Data_for_FY22[[#This Row],[Median]])/25)*40) + AAMC_Raw_Data_for_FY22[[#This Row],[Median]]","v":722255.4}]
[{"$f":"AAMC_Raw_Data_for_FY22[[#This Row],[Source]]&AAMC_Raw_Data_for_FY22[[#This Row],[Type]]&AAMC_Raw_Data_for_FY22[[#This Row],[School Subset]]&AAMC_Raw_Data_for_FY22[[#This Row],[Rank]]&AAMC_Raw_Data_for_FY22[[#This Row],[Degree]]&AAMC_Raw_Data_for_FY22[[#This Row],[Department / Specialty]]&\"L\"","v":"AAMCAcademicAllChairMDDermatology TotalL"},"Dermatology Total",1,"AAMC","Academic","All","Chair","MD","2021-2022",544567,{"$f":"(((AAMC_Raw_Data_for_FY22[[#This Row],[Median]]-AAMC_Raw_Data_for_FY22[[#This Row],[25th]])/25)*5) + AAMC_Raw_Data_for_FY22[[#This Row],[25th]]","v":565919},{"$f":"(((AAMC_Raw_Data_for_FY22[[#This Row],[Median]]-AAMC_Raw_Data_for_FY22[[#This Row],[25th]])/25)*10) + AAMC_Raw_Data_for_FY22[[#This Row],[25th]]","v":587271},{"$f":"(((AAMC_Raw_Data_for_FY22[[#This Row],[Median]]-AAMC_Raw_Data_for_FY22[[#This Row],[25th]])/25)*15) + AAMC_Raw_Data_for_FY22[[#This Row],[25th]]","v":608623},{"$f":"(((AAMC_Raw_Data_for_FY22[[#This Row],[Median]]-AAMC_Raw_Data_for_FY22[[#This Row],[25th]])/25)*20) + AAMC_Raw_Data_for_FY22[[#This Row],[25th]]","v":629975},651327,{"$f":"(((AAMC_Raw_Data_for_FY22[[#This Row],[75th]]-AAMC_Raw_Data_for_FY22[[#This Row],[Median]])/25)*5) + AAMC_Raw_Data_for_FY22[[#This Row],[Median]]","v":673682.8},{"$f":"(((AAMC_Raw_Data_for_FY22[[#This Row],[75th]]-AAMC_Raw_Data_for_FY22[[#This Row],[Median]])/25)*10) + AAMC_Raw_Data_for_FY22[[#This Row],[Median]]","v":696038.6},{"$f":"(((AAMC_Raw_Data_for_FY22[[#This Row],[75th]]-AAMC_Raw_Data_for_FY22[[#This Row],[Median]])/25)*15) + AAMC_Raw_Data_for_FY22[[#This Row],[Median]]","v":718394.4},{"$f":"(((AAMC_Raw_Data_for_FY22[[#This Row],[75th]]-AAMC_Raw_Data_for_FY22[[#This Row],[Median]])/25)*20) + AAMC_Raw_Data_for_FY22[[#This Row],[Median]]","v":740750.2},763106,{"$f":"(((AAMC_Raw_Data_for_FY22[[#This Row],[75th]]-AAMC_Raw_Data_for_FY22[[#This Row],[Median]])/25)*30) + AAMC_Raw_Data_for_FY22[[#This Row],[Median]]","v":785461.8},{"$f":"(((AAMC_Raw_Data_for_FY22[[#This Row],[75th]]-AAMC_Raw_Data_for_FY22[[#This Row],[Median]])/25)*35) + AAMC_Raw_Data_for_FY22[[#This Row],[Median]]","v":807817.6},{"$f":"(((AAMC_Raw_Data_for_FY22[[#This Row],[75th]]-AAMC_Raw_Data_for_FY22[[#This Row],[Median]])/25)*40) + AAMC_Raw_Data_for_FY22[[#This Row],[Median]]","v":830173.4}]
[{"$f":"AAMC_Raw_Data_for_FY22[[#This Row],[Source]]&AAMC_Raw_Data_for_FY22[[#This Row],[Type]]&AAMC_Raw_Data_for_FY22[[#This Row],[School Subset]]&AAMC_Raw_Data_for_FY22[[#This Row],[Rank]]&AAMC_Raw_Data_for_FY22[[#This Row],[Degree]]&AAMC_Raw_Data_for_FY22[[#This Row],[Department / Specialty]]&\"L\"","v":"AAMCAcademicAllInstructorMDDermatology (excluding Mohs Surgery)L"},"Dermatology (excluding Mohs Surgery)",5,"AAMC","Academic","All","Instructor","MD","2021-2022",196509,{"$f":"(((AAMC_Raw_Data_for_FY22[[#This Row],[Median]]-AAMC_Raw_Data_for_FY22[[#This Row],[25th]])/25)*5) + AAMC_Raw_Data_for_FY22[[#This Row],[25th]]","v":215807.2},{"$f":"(((AAMC_Raw_Data_for_FY22[[#This Row],[Median]]-AAMC_Raw_Data_for_FY22[[#This Row],[25th]])/25)*10) + AAMC_Raw_Data_for_FY22[[#This Row],[25th]]","v":235105.4},{"$f":"(((AAMC_Raw_Data_for_FY22[[#This Row],[Median]]-AAMC_Raw_Data_for_FY22[[#This Row],[25th]])/25)*15) + AAMC_Raw_Data_for_FY22[[#This Row],[25th]]","v":254403.6},{"$f":"(((AAMC_Raw_Data_for_FY22[[#This Row],[Median]]-AAMC_Raw_Data_for_FY22[[#This Row],[25th]])/25)*20) + AAMC_Raw_Data_for_FY22[[#This Row],[25th]]","v":273701.8},293000,{"$f":"(((AAMC_Raw_Data_for_FY22[[#This Row],[75th]]-AAMC_Raw_Data_for_FY22[[#This Row],[Median]])/25)*5) + AAMC_Raw_Data_for_FY22[[#This Row],[Median]]","v":302593},{"$f":"(((AAMC_Raw_Data_for_FY22[[#This Row],[75th]]-AAMC_Raw_Data_for_FY22[[#This Row],[Median]])/25)*10) + AAMC_Raw_Data_for_FY22[[#This Row],[Median]]","v":312186},{"$f":"(((AAMC_Raw_Data_for_FY22[[#This Row],[75th]]-AAMC_Raw_Data_for_FY22[[#This Row],[Median]])/25)*15) + AAMC_Raw_Data_for_FY22[[#This Row],[Median]]","v":321779},{"$f":"(((AAMC_Raw_Data_for_FY22[[#This Row],[75th]]-AAMC_Raw_Data_for_FY22[[#This Row],[Median]])/25)*20) + AAMC_Raw_Data_for_FY22[[#This Row],[Median]]","v":331372},340965,{"$f":"(((AAMC_Raw_Data_for_FY22[[#This Row],[75th]]-AAMC_Raw_Data_for_FY22[[#This Row],[Median]])/25)*30) + AAMC_Raw_Data_for_FY22[[#This Row],[Median]]","v":350558},{"$f":"(((AAMC_Raw_Data_for_FY22[[#This Row],[75th]]-AAMC_Raw_Data_for_FY22[[#This Row],[Median]])/25)*35) + AAMC_Raw_Data_for_FY22[[#This Row],[Median]]","v":360151},{"$f":"(((AAMC_Raw_Data_for_FY22[[#This Row],[75th]]-AAMC_Raw_Data_for_FY22[[#This Row],[Median]])/25)*40) + AAMC_Raw_Data_for_FY22[[#This Row],[Median]]","v":369744}]
[{"$f":"AAMC_Raw_Data_for_FY22[[#This Row],[Source]]&AAMC_Raw_Data_for_FY22[[#This Row],[Type]]&AAMC_Raw_Data_for_FY22[[#This Row],[School Subset]]&AAMC_Raw_Data_for_FY22[[#This Row],[Rank]]&AAMC_Raw_Data_for_FY22[[#This Row],[Degree]]&AAMC_Raw_Data_for_FY22[[#This Row],[Department / Specialty]]&\"L\"","v":"AAMCAcademicAllAssistantMDDermatology (excluding Mohs Surgery)L"},"Dermatology (excluding Mohs Surgery)",4,"AAMC","Academic","All","Assistant","MD","2021-2022",273039,{"$f":"(((AAMC_Raw_Data_for_FY22[[#This Row],[Median]]-AAMC_Raw_Data_for_FY22[[#This Row],[25th]])/25)*5) + AAMC_Raw_Data_for_FY22[[#This Row],[25th]]","v":284781.59999999998},{"$f":"(((AAMC_Raw_Data_for_FY22[[#This Row],[Median]]-AAMC_Raw_Data_for_FY22[[#This Row],[25th]])/25)*10) + AAMC_Raw_Data_for_FY22[[#This Row],[25th]]","v":296524.2},{"$f":"(((AAMC_Raw_Data_for_FY22[[#This Row],[Median]]-AAMC_Raw_Data_for_FY22[[#This Row],[25th]])/25)*15) + AAMC_Raw_Data_for_FY22[[#This Row],[25th]]","v":308266.8},{"$f":"(((AAMC_Raw_Data_for_FY22[[#This Row],[Median]]-AAMC_Raw_Data_for_FY22[[#This Row],[25th]])/25)*20) + AAMC_Raw_Data_for_FY22[[#This Row],[25th]]","v":320009.40000000002},331752,{"$f":"(((AAMC_Raw_Data_for_FY22[[#This Row],[75th]]-AAMC_Raw_Data_for_FY22[[#This Row],[Median]])/25)*5) + AAMC_Raw_Data_for_FY22[[#This Row],[Median]]","v":348162.6},{"$f":"(((AAMC_Raw_Data_for_FY22[[#This Row],[75th]]-AAMC_Raw_Data_for_FY22[[#This Row],[Median]])/25)*10) + AAMC_Raw_Data_for_FY22[[#This Row],[Median]]","v":364573.2},{"$f":"(((AAMC_Raw_Data_for_FY22[[#This Row],[75th]]-AAMC_Raw_Data_for_FY22[[#This Row],[Median]])/25)*15) + AAMC_Raw_Data_for_FY22[[#This Row],[Median]]","v":380983.8},{"$f":"(((AAMC_Raw_Data_for_FY22[[#This Row],[75th]]-AAMC_Raw_Data_for_FY22[[#This Row],[Median]])/25)*20) + AAMC_Raw_Data_for_FY22[[#This Row],[Median]]","v":397394.4},413805,{"$f":"(((AAMC_Raw_Data_for_FY22[[#This Row],[75th]]-AAMC_Raw_Data_for_FY22[[#This Row],[Median]])/25)*30) + AAMC_Raw_Data_for_FY22[[#This Row],[Median]]","v":430215.6},{"$f":"(((AAMC_Raw_Data_for_FY22[[#This Row],[75th]]-AAMC_Raw_Data_for_FY22[[#This Row],[Median]])/25)*35) + AAMC_Raw_Data_for_FY22[[#This Row],[Median]]","v":446626.2},{"$f":"(((AAMC_Raw_Data_for_FY22[[#This Row],[75th]]-AAMC_Raw_Data_for_FY22[[#This Row],[Median]])/25)*40) + AAMC_Raw_Data_for_FY22[[#This Row],[Median]]","v":463036.8}]
[{"$f":"AAMC_Raw_Data_for_FY22[[#This Row],[Source]]&AAMC_Raw_Data_for_FY22[[#This Row],[Type]]&AAMC_Raw_Data_for_FY22[[#This Row],[School Subset]]&AAMC_Raw_Data_for_FY22[[#This Row],[Rank]]&AAMC_Raw_Data_for_FY22[[#This Row],[Degree]]&AAMC_Raw_Data_for_FY22[[#This Row],[Department / Specialty]]&\"L\"","v":"AAMCAcademicAllAssociateMDDermatology (excluding Mohs Surgery)L"},"Dermatology (excluding Mohs Surgery)",3,"AAMC","Academic","All","Associate","MD","2021-2022",317225,{"$f":"(((AAMC_Raw_Data_for_FY22[[#This Row],[Median]]-AAMC_Raw_Data_for_FY22[[#This Row],[25th]])/25)*5) + AAMC_Raw_Data_for_FY22[[#This Row],[25th]]","v":330145.59999999998},{"$f":"(((AAMC_Raw_Data_for_FY22[[#This Row],[Median]]-AAMC_Raw_Data_for_FY22[[#This Row],[25th]])/25)*10) + AAMC_Raw_Data_for_FY22[[#This Row],[25th]]","v":343066.2},{"$f":"(((AAMC_Raw_Data_for_FY22[[#This Row],[Median]]-AAMC_Raw_Data_for_FY22[[#This Row],[25th]])/25)*15) + AAMC_Raw_Data_for_FY22[[#This Row],[25th]]","v":355986.8},{"$f":"(((AAMC_Raw_Data_for_FY22[[#This Row],[Median]]-AAMC_Raw_Data_for_FY22[[#This Row],[25th]])/25)*20) + AAMC_Raw_Data_for_FY22[[#This Row],[25th]]","v":368907.4},381828,{"$f":"(((AAMC_Raw_Data_for_FY22[[#This Row],[75th]]-AAMC_Raw_Data_for_FY22[[#This Row],[Median]])/25)*5) + AAMC_Raw_Data_for_FY22[[#This Row],[Median]]","v":402226.8},{"$f":"(((AAMC_Raw_Data_for_FY22[[#This Row],[75th]]-AAMC_Raw_Data_for_FY22[[#This Row],[Median]])/25)*10) + AAMC_Raw_Data_for_FY22[[#This Row],[Median]]","v":422625.6},{"$f":"(((AAMC_Raw_Data_for_FY22[[#This Row],[75th]]-AAMC_Raw_Data_for_FY22[[#This Row],[Median]])/25)*15) + AAMC_Raw_Data_for_FY22[[#This Row],[Median]]","v":443024.4},{"$f":"(((AAMC_Raw_Data_for_FY22[[#This Row],[75th]]-AAMC_Raw_Data_for_FY22[[#This Row],[Median]])/25)*20) + AAMC_Raw_Data_for_FY22[[#This Row],[Median]]","v":463423.2},483822,{"$f":"(((AAMC_Raw_Data_for_FY22[[#This Row],[75th]]-AAMC_Raw_Data_for_FY22[[#This Row],[Median]])/25)*30) + AAMC_Raw_Data_for_FY22[[#This Row],[Median]]","v":504220.8},{"$f":"(((AAMC_Raw_Data_for_FY22[[#This Row],[75th]]-AAMC_Raw_Data_for_FY22[[#This Row],[Median]])/25)*35) + AAMC_Raw_Data_for_FY22[[#This Row],[Median]]","v":524619.6},{"$f":"(((AAMC_Raw_Data_for_FY22[[#This Row],[75th]]-AAMC_Raw_Data_for_FY22[[#This Row],[Median]])/25)*40) + AAMC_Raw_Data_for_FY22[[#This Row],[Median]]","v":545018.4}]
[{"$f":"AAMC_Raw_Data_for_FY22[[#This Row],[Source]]&AAMC_Raw_Data_for_FY22[[#This Row],[Type]]&AAMC_Raw_Data_for_FY22[[#This Row],[School Subset]]&AAMC_Raw_Data_for_FY22[[#This Row],[Rank]]&AAMC_Raw_Data_for_FY22[[#This Row],[Degree]]&AAMC_Raw_Data_for_FY22[[#This Row],[Department / Specialty]]&\"L\"","v":"AAMCAcademicAllProfessorMDDermatology (excluding Mohs Surgery)L"},"Dermatology (excluding Mohs Surgery)",2,"AAMC","Academic","All","Professor","MD","2021-2022",320040,{"$f":"(((AAMC_Raw_Data_for_FY22[[#This Row],[Median]]-AAMC_Raw_Data_for_FY22[[#This Row],[25th]])/25)*5) + AAMC_Raw_Data_for_FY22[[#This Row],[25th]]","v":336463.2},{"$f":"(((AAMC_Raw_Data_for_FY22[[#This Row],[Median]]-AAMC_Raw_Data_for_FY22[[#This Row],[25th]])/25)*10) + AAMC_Raw_Data_for_FY22[[#This Row],[25th]]","v":352886.4},{"$f":"(((AAMC_Raw_Data_for_FY22[[#This Row],[Median]]-AAMC_Raw_Data_for_FY22[[#This Row],[25th]])/25)*15) + AAMC_Raw_Data_for_FY22[[#This Row],[25th]]","v":369309.6},{"$f":"(((AAMC_Raw_Data_for_FY22[[#This Row],[Median]]-AAMC_Raw_Data_for_FY22[[#This Row],[25th]])/25)*20) + AAMC_Raw_Data_for_FY22[[#This Row],[25th]]","v":385732.8},402156,{"$f":"(((AAMC_Raw_Data_for_FY22[[#This Row],[75th]]-AAMC_Raw_Data_for_FY22[[#This Row],[Median]])/25)*5) + AAMC_Raw_Data_for_FY22[[#This Row],[Median]]","v":425159.8},{"$f":"(((AAMC_Raw_Data_for_FY22[[#This Row],[75th]]-AAMC_Raw_Data_for_FY22[[#This Row],[Median]])/25)*10) + AAMC_Raw_Data_for_FY22[[#This Row],[Median]]","v":448163.6},{"$f":"(((AAMC_Raw_Data_for_FY22[[#This Row],[75th]]-AAMC_Raw_Data_for_FY22[[#This Row],[Median]])/25)*15) + AAMC_Raw_Data_for_FY22[[#This Row],[Median]]","v":471167.4},{"$f":"(((AAMC_Raw_Data_for_FY22[[#This Row],[75th]]-AAMC_Raw_Data_for_FY22[[#This Row],[Median]])/25)*20) + AAMC_Raw_Data_for_FY22[[#This Row],[Median]]","v":494171.2},517175,{"$f":"(((AAMC_Raw_Data_for_FY22[[#This Row],[75th]]-AAMC_Raw_Data_for_FY22[[#This Row],[Median]])/25)*30) + AAMC_Raw_Data_for_FY22[[#This Row],[Median]]","v":540178.80000000005},{"$f":"(((AAMC_Raw_Data_for_FY22[[#This Row],[75th]]-AAMC_Raw_Data_for_FY22[[#This Row],[Median]])/25)*35) + AAMC_Raw_Data_for_FY22[[#This Row],[Median]]","v":563182.6},{"$f":"(((AAMC_Raw_Data_for_FY22[[#This Row],[75th]]-AAMC_Raw_Data_for_FY22[[#This Row],[Median]])/25)*40) + AAMC_Raw_Data_for_FY22[[#This Row],[Median]]","v":586186.4}]
[{"$f":"AAMC_Raw_Data_for_FY22[[#This Row],[Source]]&AAMC_Raw_Data_for_FY22[[#This Row],[Type]]&AAMC_Raw_Data_for_FY22[[#This Row],[School Subset]]&AAMC_Raw_Data_for_FY22[[#This Row],[Rank]]&AAMC_Raw_Data_for_FY22[[#This Row],[Degree]]&AAMC_Raw_Data_for_FY22[[#This Row],[Department / Specialty]]&\"L\"","v":"AAMCAcademicAllChiefMDDermatology (excluding Mohs Surgery)L"},"Dermatology (excluding Mohs Surgery)",6,"AAMC","Academic","All","Chief","MD","2021-2022",399710,{"$f":"(((AAMC_Raw_Data_for_FY22[[#This Row],[Median]]-AAMC_Raw_Data_for_FY22[[#This Row],[25th]])/25)*5) + AAMC_Raw_Data_for_FY22[[#This Row],[25th]]","v":418844.2},{"$f":"(((AAMC_Raw_Data_for_FY22[[#This Row],[Median]]-AAMC_Raw_Data_for_FY22[[#This Row],[25th]])/25)*10) + AAMC_Raw_Data_for_FY22[[#This Row],[25th]]","v":437978.4},{"$f":"(((AAMC_Raw_Data_for_FY22[[#This Row],[Median]]-AAMC_Raw_Data_for_FY22[[#This Row],[25th]])/25)*15) + AAMC_Raw_Data_for_FY22[[#This Row],[25th]]","v":457112.6},{"$f":"(((AAMC_Raw_Data_for_FY22[[#This Row],[Median]]-AAMC_Raw_Data_for_FY22[[#This Row],[25th]])/25)*20) + AAMC_Raw_Data_for_FY22[[#This Row],[25th]]","v":476246.8},495381,{"$f":"(((AAMC_Raw_Data_for_FY22[[#This Row],[75th]]-AAMC_Raw_Data_for_FY22[[#This Row],[Median]])/25)*5) + AAMC_Raw_Data_for_FY22[[#This Row],[Median]]","v":510446.6},{"$f":"(((AAMC_Raw_Data_for_FY22[[#This Row],[75th]]-AAMC_Raw_Data_for_FY22[[#This Row],[Median]])/25)*10) + AAMC_Raw_Data_for_FY22[[#This Row],[Median]]","v":525512.19999999995},{"$f":"(((AAMC_Raw_Data_for_FY22[[#This Row],[75th]]-AAMC_Raw_Data_for_FY22[[#This Row],[Median]])/25)*15) + AAMC_Raw_Data_for_FY22[[#This Row],[Median]]","v":540577.80000000005},{"$f":"(((AAMC_Raw_Data_for_FY22[[#This Row],[75th]]-AAMC_Raw_Data_for_FY22[[#This Row],[Median]])/25)*20) + AAMC_Raw_Data_for_FY22[[#This Row],[Median]]","v":555643.4},570709,{"$f":"(((AAMC_Raw_Data_for_FY22[[#This Row],[75th]]-AAMC_Raw_Data_for_FY22[[#This Row],[Median]])/25)*30) + AAMC_Raw_Data_for_FY22[[#This Row],[Median]]","v":585774.6},{"$f":"(((AAMC_Raw_Data_for_FY22[[#This Row],[75th]]-AAMC_Raw_Data_for_FY22[[#This Row],[Median]])/25)*35) + AAMC_Raw_Data_for_FY22[[#This Row],[Median]]","v":600840.19999999995},{"$f":"(((AAMC_Raw_Data_for_FY22[[#This Row],[75th]]-AAMC_Raw_Data_for_FY22[[#This Row],[Median]])/25)*40) + AAMC_Raw_Data_for_FY22[[#This Row],[Median]]","v":615905.80000000005}]
[{"$f":"AAMC_Raw_Data_for_FY22[[#This Row],[Source]]&AAMC_Raw_Data_for_FY22[[#This Row],[Type]]&AAMC_Raw_Data_for_FY22[[#This Row],[School Subset]]&AAMC_Raw_Data_for_FY22[[#This Row],[Rank]]&AAMC_Raw_Data_for_FY22[[#This Row],[Degree]]&AAMC_Raw_Data_for_FY22[[#This Row],[Department / Specialty]]&\"L\"","v":"AAMCAcademicAllChairMDDermatology (excluding Mohs Surgery)L"},"Dermatology (excluding Mohs Surgery)",1,"AAMC","Academic","All","Chair","MD","2021-2022",528950,{"$f":"(((AAMC_Raw_Data_for_FY22[[#This Row],[Median]]-AAMC_Raw_Data_for_FY22[[#This Row],[25th]])/25)*5) + AAMC_Raw_Data_for_FY22[[#This Row],[25th]]","v":553160},{"$f":"(((AAMC_Raw_Data_for_FY22[[#This Row],[Median]]-AAMC_Raw_Data_for_FY22[[#This Row],[25th]])/25)*10) + AAMC_Raw_Data_for_FY22[[#This Row],[25th]]","v":577370},{"$f":"(((AAMC_Raw_Data_for_FY22[[#This Row],[Median]]-AAMC_Raw_Data_for_FY22[[#This Row],[25th]])/25)*15) + AAMC_Raw_Data_for_FY22[[#This Row],[25th]]","v":601580},{"$f":"(((AAMC_Raw_Data_for_FY22[[#This Row],[Median]]-AAMC_Raw_Data_for_FY22[[#This Row],[25th]])/25)*20) + AAMC_Raw_Data_for_FY22[[#This Row],[25th]]","v":625790},650000,{"$f":"(((AAMC_Raw_Data_for_FY22[[#This Row],[75th]]-AAMC_Raw_Data_for_FY22[[#This Row],[Median]])/25)*5) + AAMC_Raw_Data_for_FY22[[#This Row],[Median]]","v":669625},{"$f":"(((AAMC_Raw_Data_for_FY22[[#This Row],[75th]]-AAMC_Raw_Data_for_FY22[[#This Row],[Median]])/25)*10) + AAMC_Raw_Data_for_FY22[[#This Row],[Median]]","v":689250},{"$f":"(((AAMC_Raw_Data_for_FY22[[#This Row],[75th]]-AAMC_Raw_Data_for_FY22[[#This Row],[Median]])/25)*15) + AAMC_Raw_Data_for_FY22[[#This Row],[Median]]","v":708875},{"$f":"(((AAMC_Raw_Data_for_FY22[[#This Row],[75th]]-AAMC_Raw_Data_for_FY22[[#This Row],[Median]])/25)*20) + AAMC_Raw_Data_for_FY22[[#This Row],[Median]]","v":728500},748125,{"$f":"(((AAMC_Raw_Data_for_FY22[[#This Row],[75th]]-AAMC_Raw_Data_for_FY22[[#This Row],[Median]])/25)*30) + AAMC_Raw_Data_for_FY22[[#This Row],[Median]]","v":767750},{"$f":"(((AAMC_Raw_Data_for_FY22[[#This Row],[75th]]-AAMC_Raw_Data_for_FY22[[#This Row],[Median]])/25)*35) + AAMC_Raw_Data_for_FY22[[#This Row],[Median]]","v":787375},{"$f":"(((AAMC_Raw_Data_for_FY22[[#This Row],[75th]]-AAMC_Raw_Data_for_FY22[[#This Row],[Median]])/25)*40) + AAMC_Raw_Data_for_FY22[[#This Row],[Median]]","v":807000}]
[{"$f":"AAMC_Raw_Data_for_FY22[[#This Row],[Source]]&AAMC_Raw_Data_for_FY22[[#This Row],[Type]]&AAMC_Raw_Data_for_FY22[[#This Row],[School Subset]]&AAMC_Raw_Data_for_FY22[[#This Row],[Rank]]&AAMC_Raw_Data_for_FY22[[#This Row],[Degree]]&AAMC_Raw_Data_for_FY22[[#This Row],[Department / Specialty]]&\"L\"","v":"AAMCAcademicAllInstructorMDDermatology: Mohs SurgeryL"},"Dermatology: Mohs Surgery",5,"AAMC","Academic","All","Instructor","MD","2021-2022",null,{"$f":"(((AAMC_Raw_Data_for_FY22[[#This Row],[Median]]-AAMC_Raw_Data_for_FY22[[#This Row],[25th]])/25)*5) + AAMC_Raw_Data_for_FY22[[#This Row],[25th]]","v":0},{"$f":"(((AAMC_Raw_Data_for_FY22[[#This Row],[Median]]-AAMC_Raw_Data_for_FY22[[#This Row],[25th]])/25)*10) + AAMC_Raw_Data_for_FY22[[#This Row],[25th]]","v":0},{"$f":"(((AAMC_Raw_Data_for_FY22[[#This Row],[Median]]-AAMC_Raw_Data_for_FY22[[#This Row],[25th]])/25)*15) + AAMC_Raw_Data_for_FY22[[#This Row],[25th]]","v":0},{"$f":"(((AAMC_Raw_Data_for_FY22[[#This Row],[Median]]-AAMC_Raw_Data_for_FY22[[#This Row],[25th]])/25)*20) + AAMC_Raw_Data_for_FY22[[#This Row],[25th]]","v":0},null,{"$f":"(((AAMC_Raw_Data_for_FY22[[#This Row],[75th]]-AAMC_Raw_Data_for_FY22[[#This Row],[Median]])/25)*5) + AAMC_Raw_Data_for_FY22[[#This Row],[Median]]","v":0},{"$f":"(((AAMC_Raw_Data_for_FY22[[#This Row],[75th]]-AAMC_Raw_Data_for_FY22[[#This Row],[Median]])/25)*10) + AAMC_Raw_Data_for_FY22[[#This Row],[Median]]","v":0},{"$f":"(((AAMC_Raw_Data_for_FY22[[#This Row],[75th]]-AAMC_Raw_Data_for_FY22[[#This Row],[Median]])/25)*15) + AAMC_Raw_Data_for_FY22[[#This Row],[Median]]","v":0},{"$f":"(((AAMC_Raw_Data_for_FY22[[#This Row],[75th]]-AAMC_Raw_Data_for_FY22[[#This Row],[Median]])/25)*20) + AAMC_Raw_Data_for_FY22[[#This Row],[Median]]","v":0},null,{"$f":"(((AAMC_Raw_Data_for_FY22[[#This Row],[75th]]-AAMC_Raw_Data_for_FY22[[#This Row],[Median]])/25)*30) + AAMC_Raw_Data_for_FY22[[#This Row],[Median]]","v":0},{"$f":"(((AAMC_Raw_Data_for_FY22[[#This Row],[75th]]-AAMC_Raw_Data_for_FY22[[#This Row],[Median]])/25)*35) + AAMC_Raw_Data_for_FY22[[#This Row],[Median]]","v":0},{"$f":"(((AAMC_Raw_Data_for_FY22[[#This Row],[75th]]-AAMC_Raw_Data_for_FY22[[#This Row],[Median]])/25)*40) + AAMC_Raw_Data_for_FY22[[#This Row],[Median]]","v":0}]
[{"$f":"AAMC_Raw_Data_for_FY22[[#This Row],[Source]]&AAMC_Raw_Data_for_FY22[[#This Row],[Type]]&AAMC_Raw_Data_for_FY22[[#This Row],[School Subset]]&AAMC_Raw_Data_for_FY22[[#This Row],[Rank]]&AAMC_Raw_Data_for_FY22[[#This Row],[Degree]]&AAMC_Raw_Data_for_FY22[[#This Row],[Department / Specialty]]&\"L\"","v":"AAMCAcademicAllAssistantMDDermatology: Mohs SurgeryL"},"Dermatology: Mohs Surgery",4,"AAMC","Academic","All","Assistant","MD","2021-2022",422713,{"$f":"(((AAMC_Raw_Data_for_FY22[[#This Row],[Median]]-AAMC_Raw_Data_for_FY22[[#This Row],[25th]])/25)*5) + AAMC_Raw_Data_for_FY22[[#This Row],[25th]]","v":440645.4},{"$f":"(((AAMC_Raw_Data_for_FY22[[#This Row],[Median]]-AAMC_Raw_Data_for_FY22[[#This Row],[25th]])/25)*10) + AAMC_Raw_Data_for_FY22[[#This Row],[25th]]","v":458577.8},{"$f":"(((AAMC_Raw_Data_for_FY22[[#This Row],[Median]]-AAMC_Raw_Data_for_FY22[[#This Row],[25th]])/25)*15) + AAMC_Raw_Data_for_FY22[[#This Row],[25th]]","v":476510.2},{"$f":"(((AAMC_Raw_Data_for_FY22[[#This Row],[Median]]-AAMC_Raw_Data_for_FY22[[#This Row],[25th]])/25)*20) + AAMC_Raw_Data_for_FY22[[#This Row],[25th]]","v":494442.6},512375,{"$f":"(((AAMC_Raw_Data_for_FY22[[#This Row],[75th]]-AAMC_Raw_Data_for_FY22[[#This Row],[Median]])/25)*5) + AAMC_Raw_Data_for_FY22[[#This Row],[Median]]","v":540729.59999999998},{"$f":"(((AAMC_Raw_Data_for_FY22[[#This Row],[75th]]-AAMC_Raw_Data_for_FY22[[#This Row],[Median]])/25)*10) + AAMC_Raw_Data_for_FY22[[#This Row],[Median]]","v":569084.19999999995},{"$f":"(((AAMC_Raw_Data_for_FY22[[#This Row],[75th]]-AAMC_Raw_Data_for_FY22[[#This Row],[Median]])/25)*15) + AAMC_Raw_Data_for_FY22[[#This Row],[Median]]","v":597438.80000000005},{"$f":"(((AAMC_Raw_Data_for_FY22[[#This Row],[75th]]-AAMC_Raw_Data_for_FY22[[#This Row],[Median]])/25)*20) + AAMC_Raw_Data_for_FY22[[#This Row],[Median]]","v":625793.4},654148,{"$f":"(((AAMC_Raw_Data_for_FY22[[#This Row],[75th]]-AAMC_Raw_Data_for_FY22[[#This Row],[Median]])/25)*30) + AAMC_Raw_Data_for_FY22[[#This Row],[Median]]","v":682502.6},{"$f":"(((AAMC_Raw_Data_for_FY22[[#This Row],[75th]]-AAMC_Raw_Data_for_FY22[[#This Row],[Median]])/25)*35) + AAMC_Raw_Data_for_FY22[[#This Row],[Median]]","v":710857.2},{"$f":"(((AAMC_Raw_Data_for_FY22[[#This Row],[75th]]-AAMC_Raw_Data_for_FY22[[#This Row],[Median]])/25)*40) + AAMC_Raw_Data_for_FY22[[#This Row],[Median]]","v":739211.8}]
[{"$f":"AAMC_Raw_Data_for_FY22[[#This Row],[Source]]&AAMC_Raw_Data_for_FY22[[#This Row],[Type]]&AAMC_Raw_Data_for_FY22[[#This Row],[School Subset]]&AAMC_Raw_Data_for_FY22[[#This Row],[Rank]]&AAMC_Raw_Data_for_FY22[[#This Row],[Degree]]&AAMC_Raw_Data_for_FY22[[#This Row],[Department / Specialty]]&\"L\"","v":"AAMCAcademicAllAssociateMDDermatology: Mohs SurgeryL"},"Dermatology: Mohs Surgery",3,"AAMC","Academic","All","Associate","MD","2021-2022",574559,{"$f":"(((AAMC_Raw_Data_for_FY22[[#This Row],[Median]]-AAMC_Raw_Data_for_FY22[[#This Row],[25th]])/25)*5) + AAMC_Raw_Data_for_FY22[[#This Row],[25th]]","v":586508.4},{"$f":"(((AAMC_Raw_Data_for_FY22[[#This Row],[Median]]-AAMC_Raw_Data_for_FY22[[#This Row],[25th]])/25)*10) + AAMC_Raw_Data_for_FY22[[#This Row],[25th]]","v":598457.80000000005},{"$f":"(((AAMC_Raw_Data_for_FY22[[#This Row],[Median]]-AAMC_Raw_Data_for_FY22[[#This Row],[25th]])/25)*15) + AAMC_Raw_Data_for_FY22[[#This Row],[25th]]","v":610407.19999999995},{"$f":"(((AAMC_Raw_Data_for_FY22[[#This Row],[Median]]-AAMC_Raw_Data_for_FY22[[#This Row],[25th]])/25)*20) + AAMC_Raw_Data_for_FY22[[#This Row],[25th]]","v":622356.6},634306,{"$f":"(((AAMC_Raw_Data_for_FY22[[#This Row],[75th]]-AAMC_Raw_Data_for_FY22[[#This Row],[Median]])/25)*5) + AAMC_Raw_Data_for_FY22[[#This Row],[Median]]","v":667229.4},{"$f":"(((AAMC_Raw_Data_for_FY22[[#This Row],[75th]]-AAMC_Raw_Data_for_FY22[[#This Row],[Median]])/25)*10) + AAMC_Raw_Data_for_FY22[[#This Row],[Median]]","v":700152.8},{"$f":"(((AAMC_Raw_Data_for_FY22[[#This Row],[75th]]-AAMC_Raw_Data_for_FY22[[#This Row],[Median]])/25)*15) + AAMC_Raw_Data_for_FY22[[#This Row],[Median]]","v":733076.2},{"$f":"(((AAMC_Raw_Data_for_FY22[[#This Row],[75th]]-AAMC_Raw_Data_for_FY22[[#This Row],[Median]])/25)*20) + AAMC_Raw_Data_for_FY22[[#This Row],[Median]]","v":765999.6},798923,{"$f":"(((AAMC_Raw_Data_for_FY22[[#This Row],[75th]]-AAMC_Raw_Data_for_FY22[[#This Row],[Median]])/25)*30) + AAMC_Raw_Data_for_FY22[[#This Row],[Median]]","v":831846.40000000002},{"$f":"(((AAMC_Raw_Data_for_FY22[[#This Row],[75th]]-AAMC_Raw_Data_for_FY22[[#This Row],[Median]])/25)*35) + AAMC_Raw_Data_for_FY22[[#This Row],[Median]]","v":864769.8},{"$f":"(((AAMC_Raw_Data_for_FY22[[#This Row],[75th]]-AAMC_Raw_Data_for_FY22[[#This Row],[Median]])/25)*40) + AAMC_Raw_Data_for_FY22[[#This Row],[Median]]","v":897693.2}]
[{"$f":"AAMC_Raw_Data_for_FY22[[#This Row],[Source]]&AAMC_Raw_Data_for_FY22[[#This Row],[Type]]&AAMC_Raw_Data_for_FY22[[#This Row],[School Subset]]&AAMC_Raw_Data_for_FY22[[#This Row],[Rank]]&AAMC_Raw_Data_for_FY22[[#This Row],[Degree]]&AAMC_Raw_Data_for_FY22[[#This Row],[Department / Specialty]]&\"L\"","v":"AAMCAcademicAllProfessorMDDermatology: Mohs SurgeryL"},"Dermatology: Mohs Surgery",2,"AAMC","Academic","All","Professor","MD","2021-2022",655447,{"$f":"(((AAMC_Raw_Data_for_FY22[[#This Row],[Median]]-AAMC_Raw_Data_for_FY22[[#This Row],[25th]])/25)*5) + AAMC_Raw_Data_for_FY22[[#This Row],[25th]]","v":700846},{"$f":"(((AAMC_Raw_Data_for_FY22[[#This Row],[Median]]-AAMC_Raw_Data_for_FY22[[#This Row],[25th]])/25)*10) + AAMC_Raw_Data_for_FY22[[#This Row],[25th]]","v":746245},{"$f":"(((AAMC_Raw_Data_for_FY22[[#This Row],[Median]]-AAMC_Raw_Data_for_FY22[[#This Row],[25th]])/25)*15) + AAMC_Raw_Data_for_FY22[[#This Row],[25th]]","v":791644},{"$f":"(((AAMC_Raw_Data_for_FY22[[#This Row],[Median]]-AAMC_Raw_Data_for_FY22[[#This Row],[25th]])/25)*20) + AAMC_Raw_Data_for_FY22[[#This Row],[25th]]","v":837043},882442,{"$f":"(((AAMC_Raw_Data_for_FY22[[#This Row],[75th]]-AAMC_Raw_Data_for_FY22[[#This Row],[Median]])/25)*5) + AAMC_Raw_Data_for_FY22[[#This Row],[Median]]","v":960876.2},{"$f":"(((AAMC_Raw_Data_for_FY22[[#This Row],[75th]]-AAMC_Raw_Data_for_FY22[[#This Row],[Median]])/25)*10) + AAMC_Raw_Data_for_FY22[[#This Row],[Median]]","v":1039310.4},{"$f":"(((AAMC_Raw_Data_for_FY22[[#This Row],[75th]]-AAMC_Raw_Data_for_FY22[[#This Row],[Median]])/25)*15) + AAMC_Raw_Data_for_FY22[[#This Row],[Median]]","v":1117744.6000000001},{"$f":"(((AAMC_Raw_Data_for_FY22[[#This Row],[75th]]-AAMC_Raw_Data_for_FY22[[#This Row],[Median]])/25)*20) + AAMC_Raw_Data_for_FY22[[#This Row],[Median]]","v":1196178.8},1274613,{"$f":"(((AAMC_Raw_Data_for_FY22[[#This Row],[75th]]-AAMC_Raw_Data_for_FY22[[#This Row],[Median]])/25)*30) + AAMC_Raw_Data_for_FY22[[#This Row],[Median]]","v":1353047.2},{"$f":"(((AAMC_Raw_Data_for_FY22[[#This Row],[75th]]-AAMC_Raw_Data_for_FY22[[#This Row],[Median]])/25)*35) + AAMC_Raw_Data_for_FY22[[#This Row],[Median]]","v":1431481.4},{"$f":"(((AAMC_Raw_Data_for_FY22[[#This Row],[75th]]-AAMC_Raw_Data_for_FY22[[#This Row],[Median]])/25)*40) + AAMC_Raw_Data_for_FY22[[#This Row],[Median]]","v":1509915.6}]
[{"$f":"AAMC_Raw_Data_for_FY22[[#This Row],[Source]]&AAMC_Raw_Data_for_FY22[[#This Row],[Type]]&AAMC_Raw_Data_for_FY22[[#This Row],[School Subset]]&AAMC_Raw_Data_for_FY22[[#This Row],[Rank]]&AAMC_Raw_Data_for_FY22[[#This Row],[Degree]]&AAMC_Raw_Data_for_FY22[[#This Row],[Department / Specialty]]&\"L\"","v":"AAMCAcademicAllChiefMDDermatology: Mohs SurgeryL"},"Dermatology: Mohs Surgery",6,"AAMC","Academic","All","Chief","MD","2021-2022",591933,{"$f":"(((AAMC_Raw_Data_for_FY22[[#This Row],[Median]]-AAMC_Raw_Data_for_FY22[[#This Row],[25th]])/25)*5) + AAMC_Raw_Data_for_FY22[[#This Row],[25th]]","v":603345.4},{"$f":"(((AAMC_Raw_Data_for_FY22[[#This Row],[Median]]-AAMC_Raw_Data_for_FY22[[#This Row],[25th]])/25)*10) + AAMC_Raw_Data_for_FY22[[#This Row],[25th]]","v":614757.80000000005},{"$f":"(((AAMC_Raw_Data_for_FY22[[#This Row],[Median]]-AAMC_Raw_Data_for_FY22[[#This Row],[25th]])/25)*15) + AAMC_Raw_Data_for_FY22[[#This Row],[25th]]","v":626170.19999999995},{"$f":"(((AAMC_Raw_Data_for_FY22[[#This Row],[Median]]-AAMC_Raw_Data_for_FY22[[#This Row],[25th]])/25)*20) + AAMC_Raw_Data_for_FY22[[#This Row],[25th]]","v":637582.6},648995,{"$f":"(((AAMC_Raw_Data_for_FY22[[#This Row],[75th]]-AAMC_Raw_Data_for_FY22[[#This Row],[Median]])/25)*5) + AAMC_Raw_Data_for_FY22[[#This Row],[Median]]","v":689378.4},{"$f":"(((AAMC_Raw_Data_for_FY22[[#This Row],[75th]]-AAMC_Raw_Data_for_FY22[[#This Row],[Median]])/25)*10) + AAMC_Raw_Data_for_FY22[[#This Row],[Median]]","v":729761.8},{"$f":"(((AAMC_Raw_Data_for_FY22[[#This Row],[75th]]-AAMC_Raw_Data_for_FY22[[#This Row],[Median]])/25)*15) + AAMC_Raw_Data_for_FY22[[#This Row],[Median]]","v":770145.2},{"$f":"(((AAMC_Raw_Data_for_FY22[[#This Row],[75th]]-AAMC_Raw_Data_for_FY22[[#This Row],[Median]])/25)*20) + AAMC_Raw_Data_for_FY22[[#This Row],[Median]]","v":810528.6},850912,{"$f":"(((AAMC_Raw_Data_for_FY22[[#This Row],[75th]]-AAMC_Raw_Data_for_FY22[[#This Row],[Median]])/25)*30) + AAMC_Raw_Data_for_FY22[[#This Row],[Median]]","v":891295.4},{"$f":"(((AAMC_Raw_Data_for_FY22[[#This Row],[75th]]-AAMC_Raw_Data_for_FY22[[#This Row],[Median]])/25)*35) + AAMC_Raw_Data_for_FY22[[#This Row],[Median]]","v":931678.8},{"$f":"(((AAMC_Raw_Data_for_FY22[[#This Row],[75th]]-AAMC_Raw_Data_for_FY22[[#This Row],[Median]])/25)*40) + AAMC_Raw_Data_for_FY22[[#This Row],[Median]]","v":972062.2}]
[{"$f":"AAMC_Raw_Data_for_FY22[[#This Row],[Source]]&AAMC_Raw_Data_for_FY22[[#This Row],[Type]]&AAMC_Raw_Data_for_FY22[[#This Row],[School Subset]]&AAMC_Raw_Data_for_FY22[[#This Row],[Rank]]&AAMC_Raw_Data_for_FY22[[#This Row],[Degree]]&AAMC_Raw_Data_for_FY22[[#This Row],[Department / Specialty]]&\"L\"","v":"AAMCAcademicAllChairMDDermatology: Mohs SurgeryL"},"Dermatology: Mohs Surgery",1,"AAMC","Academic","All","Chair","MD","2021-2022",null,{"$f":"(((AAMC_Raw_Data_for_FY22[[#This Row],[Median]]-AAMC_Raw_Data_for_FY22[[#This Row],[25th]])/25)*5) + AAMC_Raw_Data_for_FY22[[#This Row],[25th]]","v":0},{"$f":"(((AAMC_Raw_Data_for_FY22[[#This Row],[Median]]-AAMC_Raw_Data_for_FY22[[#This Row],[25th]])/25)*10) + AAMC_Raw_Data_for_FY22[[#This Row],[25th]]","v":0},{"$f":"(((AAMC_Raw_Data_for_FY22[[#This Row],[Median]]-AAMC_Raw_Data_for_FY22[[#This Row],[25th]])/25)*15) + AAMC_Raw_Data_for_FY22[[#This Row],[25th]]","v":0},{"$f":"(((AAMC_Raw_Data_for_FY22[[#This Row],[Median]]-AAMC_Raw_Data_for_FY22[[#This Row],[25th]])/25)*20) + AAMC_Raw_Data_for_FY22[[#This Row],[25th]]","v":0},null,{"$f":"(((AAMC_Raw_Data_for_FY22[[#This Row],[75th]]-AAMC_Raw_Data_for_FY22[[#This Row],[Median]])/25)*5) + AAMC_Raw_Data_for_FY22[[#This Row],[Median]]","v":0},{"$f":"(((AAMC_Raw_Data_for_FY22[[#This Row],[75th]]-AAMC_Raw_Data_for_FY22[[#This Row],[Median]])/25)*10) + AAMC_Raw_Data_for_FY22[[#This Row],[Median]]","v":0},{"$f":"(((AAMC_Raw_Data_for_FY22[[#This Row],[75th]]-AAMC_Raw_Data_for_FY22[[#This Row],[Median]])/25)*15) + AAMC_Raw_Data_for_FY22[[#This Row],[Median]]","v":0},{"$f":"(((AAMC_Raw_Data_for_FY22[[#This Row],[75th]]-AAMC_Raw_Data_for_FY22[[#This Row],[Median]])/25)*20) + AAMC_Raw_Data_for_FY22[[#This Row],[Median]]","v":0},null,{"$f":"(((AAMC_Raw_Data_for_FY22[[#This Row],[75th]]-AAMC_Raw_Data_for_FY22[[#This Row],[Median]])/25)*30) + AAMC_Raw_Data_for_FY22[[#This Row],[Median]]","v":0},{"$f":"(((AAMC_Raw_Data_for_FY22[[#This Row],[75th]]-AAMC_Raw_Data_for_FY22[[#This Row],[Median]])/25)*35) + AAMC_Raw_Data_for_FY22[[#This Row],[Median]]","v":0},{"$f":"(((AAMC_Raw_Data_for_FY22[[#This Row],[75th]]-AAMC_Raw_Data_for_FY22[[#This Row],[Median]])/25)*40) + AAMC_Raw_Data_for_FY22[[#This Row],[Median]]","v":0}]
[{"$f":"AAMC_Raw_Data_for_FY22[[#This Row],[Source]]&AAMC_Raw_Data_for_FY22[[#This Row],[Type]]&AAMC_Raw_Data_for_FY22[[#This Row],[School Subset]]&AAMC_Raw_Data_for_FY22[[#This Row],[Rank]]&AAMC_Raw_Data_for_FY22[[#This Row],[Degree]]&AAMC_Raw_Data_for_FY22[[#This Row],[Department / Specialty]]&\"L\"","v":"AAMCAcademicAllInstructorMDFamily Medicine TotalL"},"Family Medicine Total",5,"AAMC","Academic","All","Instructor","MD","2021-2022",202759,{"$f":"(((AAMC_Raw_Data_for_FY22[[#This Row],[Median]]-AAMC_Raw_Data_for_FY22[[#This Row],[25th]])/25)*5) + AAMC_Raw_Data_for_FY22[[#This Row],[25th]]","v":209598.8},{"$f":"(((AAMC_Raw_Data_for_FY22[[#This Row],[Median]]-AAMC_Raw_Data_for_FY22[[#This Row],[25th]])/25)*10) + AAMC_Raw_Data_for_FY22[[#This Row],[25th]]","v":216438.6},{"$f":"(((AAMC_Raw_Data_for_FY22[[#This Row],[Median]]-AAMC_Raw_Data_for_FY22[[#This Row],[25th]])/25)*15) + AAMC_Raw_Data_for_FY22[[#This Row],[25th]]","v":223278.4},{"$f":"(((AAMC_Raw_Data_for_FY22[[#This Row],[Median]]-AAMC_Raw_Data_for_FY22[[#This Row],[25th]])/25)*20) + AAMC_Raw_Data_for_FY22[[#This Row],[25th]]","v":230118.2},236958,{"$f":"(((AAMC_Raw_Data_for_FY22[[#This Row],[75th]]-AAMC_Raw_Data_for_FY22[[#This Row],[Median]])/25)*5) + AAMC_Raw_Data_for_FY22[[#This Row],[Median]]","v":243578},{"$f":"(((AAMC_Raw_Data_for_FY22[[#This Row],[75th]]-AAMC_Raw_Data_for_FY22[[#This Row],[Median]])/25)*10) + AAMC_Raw_Data_for_FY22[[#This Row],[Median]]","v":250198},{"$f":"(((AAMC_Raw_Data_for_FY22[[#This Row],[75th]]-AAMC_Raw_Data_for_FY22[[#This Row],[Median]])/25)*15) + AAMC_Raw_Data_for_FY22[[#This Row],[Median]]","v":256818},{"$f":"(((AAMC_Raw_Data_for_FY22[[#This Row],[75th]]-AAMC_Raw_Data_for_FY22[[#This Row],[Median]])/25)*20) + AAMC_Raw_Data_for_FY22[[#This Row],[Median]]","v":263438},270058,{"$f":"(((AAMC_Raw_Data_for_FY22[[#This Row],[75th]]-AAMC_Raw_Data_for_FY22[[#This Row],[Median]])/25)*30) + AAMC_Raw_Data_for_FY22[[#This Row],[Median]]","v":276678},{"$f":"(((AAMC_Raw_Data_for_FY22[[#This Row],[75th]]-AAMC_Raw_Data_for_FY22[[#This Row],[Median]])/25)*35) + AAMC_Raw_Data_for_FY22[[#This Row],[Median]]","v":283298},{"$f":"(((AAMC_Raw_Data_for_FY22[[#This Row],[75th]]-AAMC_Raw_Data_for_FY22[[#This Row],[Median]])/25)*40) + AAMC_Raw_Data_for_FY22[[#This Row],[Median]]","v":289918}]
[{"$f":"AAMC_Raw_Data_for_FY22[[#This Row],[Source]]&AAMC_Raw_Data_for_FY22[[#This Row],[Type]]&AAMC_Raw_Data_for_FY22[[#This Row],[School Subset]]&AAMC_Raw_Data_for_FY22[[#This Row],[Rank]]&AAMC_Raw_Data_for_FY22[[#This Row],[Degree]]&AAMC_Raw_Data_for_FY22[[#This Row],[Department / Specialty]]&\"L\"","v":"AAMCAcademicAllAssistantMDFamily Medicine TotalL"},"Family Medicine Total",4,"AAMC","Academic","All","Assistant","MD","2021-2022",202486,{"$f":"(((AAMC_Raw_Data_for_FY22[[#This Row],[Median]]-AAMC_Raw_Data_for_FY22[[#This Row],[25th]])/25)*5) + AAMC_Raw_Data_for_FY22[[#This Row],[25th]]","v":207678.2},{"$f":"(((AAMC_Raw_Data_for_FY22[[#This Row],[Median]]-AAMC_Raw_Data_for_FY22[[#This Row],[25th]])/25)*10) + AAMC_Raw_Data_for_FY22[[#This Row],[25th]]","v":212870.39999999999},{"$f":"(((AAMC_Raw_Data_for_FY22[[#This Row],[Median]]-AAMC_Raw_Data_for_FY22[[#This Row],[25th]])/25)*15) + AAMC_Raw_Data_for_FY22[[#This Row],[25th]]","v":218062.6},{"$f":"(((AAMC_Raw_Data_for_FY22[[#This Row],[Median]]-AAMC_Raw_Data_for_FY22[[#This Row],[25th]])/25)*20) + AAMC_Raw_Data_for_FY22[[#This Row],[25th]]","v":223254.8},228447,{"$f":"(((AAMC_Raw_Data_for_FY22[[#This Row],[75th]]-AAMC_Raw_Data_for_FY22[[#This Row],[Median]])/25)*5) + AAMC_Raw_Data_for_FY22[[#This Row],[Median]]","v":234548.2},{"$f":"(((AAMC_Raw_Data_for_FY22[[#This Row],[75th]]-AAMC_Raw_Data_for_FY22[[#This Row],[Median]])/25)*10) + AAMC_Raw_Data_for_FY22[[#This Row],[Median]]","v":240649.4},{"$f":"(((AAMC_Raw_Data_for_FY22[[#This Row],[75th]]-AAMC_Raw_Data_for_FY22[[#This Row],[Median]])/25)*15) + AAMC_Raw_Data_for_FY22[[#This Row],[Median]]","v":246750.6},{"$f":"(((AAMC_Raw_Data_for_FY22[[#This Row],[75th]]-AAMC_Raw_Data_for_FY22[[#This Row],[Median]])/25)*20) + AAMC_Raw_Data_for_FY22[[#This Row],[Median]]","v":252851.8},258953,{"$f":"(((AAMC_Raw_Data_for_FY22[[#This Row],[75th]]-AAMC_Raw_Data_for_FY22[[#This Row],[Median]])/25)*30) + AAMC_Raw_Data_for_FY22[[#This Row],[Median]]","v":265054.2},{"$f":"(((AAMC_Raw_Data_for_FY22[[#This Row],[75th]]-AAMC_Raw_Data_for_FY22[[#This Row],[Median]])/25)*35) + AAMC_Raw_Data_for_FY22[[#This Row],[Median]]","v":271155.40000000002},{"$f":"(((AAMC_Raw_Data_for_FY22[[#This Row],[75th]]-AAMC_Raw_Data_for_FY22[[#This Row],[Median]])/25)*40) + AAMC_Raw_Data_for_FY22[[#This Row],[Median]]","v":277256.59999999998}]
[{"$f":"AAMC_Raw_Data_for_FY22[[#This Row],[Source]]&AAMC_Raw_Data_for_FY22[[#This Row],[Type]]&AAMC_Raw_Data_for_FY22[[#This Row],[School Subset]]&AAMC_Raw_Data_for_FY22[[#This Row],[Rank]]&AAMC_Raw_Data_for_FY22[[#This Row],[Degree]]&AAMC_Raw_Data_for_FY22[[#This Row],[Department / Specialty]]&\"L\"","v":"AAMCAcademicAllAssociateMDFamily Medicine TotalL"},"Family Medicine Total",3,"AAMC","Academic","All","Associate","MD","2021-2022",218696,{"$f":"(((AAMC_Raw_Data_for_FY22[[#This Row],[Median]]-AAMC_Raw_Data_for_FY22[[#This Row],[25th]])/25)*5) + AAMC_Raw_Data_for_FY22[[#This Row],[25th]]","v":223648.4},{"$f":"(((AAMC_Raw_Data_for_FY22[[#This Row],[Median]]-AAMC_Raw_Data_for_FY22[[#This Row],[25th]])/25)*10) + AAMC_Raw_Data_for_FY22[[#This Row],[25th]]","v":228600.8},{"$f":"(((AAMC_Raw_Data_for_FY22[[#This Row],[Median]]-AAMC_Raw_Data_for_FY22[[#This Row],[25th]])/25)*15) + AAMC_Raw_Data_for_FY22[[#This Row],[25th]]","v":233553.2},{"$f":"(((AAMC_Raw_Data_for_FY22[[#This Row],[Median]]-AAMC_Raw_Data_for_FY22[[#This Row],[25th]])/25)*20) + AAMC_Raw_Data_for_FY22[[#This Row],[25th]]","v":238505.60000000001},243458,{"$f":"(((AAMC_Raw_Data_for_FY22[[#This Row],[75th]]-AAMC_Raw_Data_for_FY22[[#This Row],[Median]])/25)*5) + AAMC_Raw_Data_for_FY22[[#This Row],[Median]]","v":249468.2},{"$f":"(((AAMC_Raw_Data_for_FY22[[#This Row],[75th]]-AAMC_Raw_Data_for_FY22[[#This Row],[Median]])/25)*10) + AAMC_Raw_Data_for_FY22[[#This Row],[Median]]","v":255478.39999999999},{"$f":"(((AAMC_Raw_Data_for_FY22[[#This Row],[75th]]-AAMC_Raw_Data_for_FY22[[#This Row],[Median]])/25)*15) + AAMC_Raw_Data_for_FY22[[#This Row],[Median]]","v":261488.6},{"$f":"(((AAMC_Raw_Data_for_FY22[[#This Row],[75th]]-AAMC_Raw_Data_for_FY22[[#This Row],[Median]])/25)*20) + AAMC_Raw_Data_for_FY22[[#This Row],[Median]]","v":267498.8},273509,{"$f":"(((AAMC_Raw_Data_for_FY22[[#This Row],[75th]]-AAMC_Raw_Data_for_FY22[[#This Row],[Median]])/25)*30) + AAMC_Raw_Data_for_FY22[[#This Row],[Median]]","v":279519.2},{"$f":"(((AAMC_Raw_Data_for_FY22[[#This Row],[75th]]-AAMC_Raw_Data_for_FY22[[#This Row],[Median]])/25)*35) + AAMC_Raw_Data_for_FY22[[#This Row],[Median]]","v":285529.40000000002},{"$f":"(((AAMC_Raw_Data_for_FY22[[#This Row],[75th]]-AAMC_Raw_Data_for_FY22[[#This Row],[Median]])/25)*40) + AAMC_Raw_Data_for_FY22[[#This Row],[Median]]","v":291539.59999999998}]
[{"$f":"AAMC_Raw_Data_for_FY22[[#This Row],[Source]]&AAMC_Raw_Data_for_FY22[[#This Row],[Type]]&AAMC_Raw_Data_for_FY22[[#This Row],[School Subset]]&AAMC_Raw_Data_for_FY22[[#This Row],[Rank]]&AAMC_Raw_Data_for_FY22[[#This Row],[Degree]]&AAMC_Raw_Data_for_FY22[[#This Row],[Department / Specialty]]&\"L\"","v":"AAMCAcademicAllProfessorMDFamily Medicine TotalL"},"Family Medicine Total",2,"AAMC","Academic","All","Professor","MD","2021-2022",236682,{"$f":"(((AAMC_Raw_Data_for_FY22[[#This Row],[Median]]-AAMC_Raw_Data_for_FY22[[#This Row],[25th]])/25)*5) + AAMC_Raw_Data_for_FY22[[#This Row],[25th]]","v":241978.8},{"$f":"(((AAMC_Raw_Data_for_FY22[[#This Row],[Median]]-AAMC_Raw_Data_for_FY22[[#This Row],[25th]])/25)*10) + AAMC_Raw_Data_for_FY22[[#This Row],[25th]]","v":247275.6},{"$f":"(((AAMC_Raw_Data_for_FY22[[#This Row],[Median]]-AAMC_Raw_Data_for_FY22[[#This Row],[25th]])/25)*15) + AAMC_Raw_Data_for_FY22[[#This Row],[25th]]","v":252572.4},{"$f":"(((AAMC_Raw_Data_for_FY22[[#This Row],[Median]]-AAMC_Raw_Data_for_FY22[[#This Row],[25th]])/25)*20) + AAMC_Raw_Data_for_FY22[[#This Row],[25th]]","v":257869.2},263166,{"$f":"(((AAMC_Raw_Data_for_FY22[[#This Row],[75th]]-AAMC_Raw_Data_for_FY22[[#This Row],[Median]])/25)*5) + AAMC_Raw_Data_for_FY22[[#This Row],[Median]]","v":270583.59999999998},{"$f":"(((AAMC_Raw_Data_for_FY22[[#This Row],[75th]]-AAMC_Raw_Data_for_FY22[[#This Row],[Median]])/25)*10) + AAMC_Raw_Data_for_FY22[[#This Row],[Median]]","v":278001.2},{"$f":"(((AAMC_Raw_Data_for_FY22[[#This Row],[75th]]-AAMC_Raw_Data_for_FY22[[#This Row],[Median]])/25)*15) + AAMC_Raw_Data_for_FY22[[#This Row],[Median]]","v":285418.8},{"$f":"(((AAMC_Raw_Data_for_FY22[[#This Row],[75th]]-AAMC_Raw_Data_for_FY22[[#This Row],[Median]])/25)*20) + AAMC_Raw_Data_for_FY22[[#This Row],[Median]]","v":292836.40000000002},300254,{"$f":"(((AAMC_Raw_Data_for_FY22[[#This Row],[75th]]-AAMC_Raw_Data_for_FY22[[#This Row],[Median]])/25)*30) + AAMC_Raw_Data_for_FY22[[#This Row],[Median]]","v":307671.59999999998},{"$f":"(((AAMC_Raw_Data_for_FY22[[#This Row],[75th]]-AAMC_Raw_Data_for_FY22[[#This Row],[Median]])/25)*35) + AAMC_Raw_Data_for_FY22[[#This Row],[Median]]","v":315089.2},{"$f":"(((AAMC_Raw_Data_for_FY22[[#This Row],[75th]]-AAMC_Raw_Data_for_FY22[[#This Row],[Median]])/25)*40) + AAMC_Raw_Data_for_FY22[[#This Row],[Median]]","v":322506.8}]
[{"$f":"AAMC_Raw_Data_for_FY22[[#This Row],[Source]]&AAMC_Raw_Data_for_FY22[[#This Row],[Type]]&AAMC_Raw_Data_for_FY22[[#This Row],[School Subset]]&AAMC_Raw_Data_for_FY22[[#This Row],[Rank]]&AAMC_Raw_Data_for_FY22[[#This Row],[Degree]]&AAMC_Raw_Data_for_FY22[[#This Row],[Department / Specialty]]&\"L\"","v":"AAMCAcademicAllChiefMDFamily Medicine TotalL"},"Family Medicine Total",6,"AAMC","Academic","All","Chief","MD","2021-2022",253300,{"$f":"(((AAMC_Raw_Data_for_FY22[[#This Row],[Median]]-AAMC_Raw_Data_for_FY22[[#This Row],[25th]])/25)*5) + AAMC_Raw_Data_for_FY22[[#This Row],[25th]]","v":256660.4},{"$f":"(((AAMC_Raw_Data_for_FY22[[#This Row],[Median]]-AAMC_Raw_Data_for_FY22[[#This Row],[25th]])/25)*10) + AAMC_Raw_Data_for_FY22[[#This Row],[25th]]","v":260020.8},{"$f":"(((AAMC_Raw_Data_for_FY22[[#This Row],[Median]]-AAMC_Raw_Data_for_FY22[[#This Row],[25th]])/25)*15) + AAMC_Raw_Data_for_FY22[[#This Row],[25th]]","v":263381.2},{"$f":"(((AAMC_Raw_Data_for_FY22[[#This Row],[Median]]-AAMC_Raw_Data_for_FY22[[#This Row],[25th]])/25)*20) + AAMC_Raw_Data_for_FY22[[#This Row],[25th]]","v":266741.59999999998},270102,{"$f":"(((AAMC_Raw_Data_for_FY22[[#This Row],[75th]]-AAMC_Raw_Data_for_FY22[[#This Row],[Median]])/25)*5) + AAMC_Raw_Data_for_FY22[[#This Row],[Median]]","v":280210.8},{"$f":"(((AAMC_Raw_Data_for_FY22[[#This Row],[75th]]-AAMC_Raw_Data_for_FY22[[#This Row],[Median]])/25)*10) + AAMC_Raw_Data_for_FY22[[#This Row],[Median]]","v":290319.59999999998},{"$f":"(((AAMC_Raw_Data_for_FY22[[#This Row],[75th]]-AAMC_Raw_Data_for_FY22[[#This Row],[Median]])/25)*15) + AAMC_Raw_Data_for_FY22[[#This Row],[Median]]","v":300428.40000000002},{"$f":"(((AAMC_Raw_Data_for_FY22[[#This Row],[75th]]-AAMC_Raw_Data_for_FY22[[#This Row],[Median]])/25)*20) + AAMC_Raw_Data_for_FY22[[#This Row],[Median]]","v":310537.2},320646,{"$f":"(((AAMC_Raw_Data_for_FY22[[#This Row],[75th]]-AAMC_Raw_Data_for_FY22[[#This Row],[Median]])/25)*30) + AAMC_Raw_Data_for_FY22[[#This Row],[Median]]","v":330754.8},{"$f":"(((AAMC_Raw_Data_for_FY22[[#This Row],[75th]]-AAMC_Raw_Data_for_FY22[[#This Row],[Median]])/25)*35) + AAMC_Raw_Data_for_FY22[[#This Row],[Median]]","v":340863.6},{"$f":"(((AAMC_Raw_Data_for_FY22[[#This Row],[75th]]-AAMC_Raw_Data_for_FY22[[#This Row],[Median]])/25)*40) + AAMC_Raw_Data_for_FY22[[#This Row],[Median]]","v":350972.4}]
[{"$f":"AAMC_Raw_Data_for_FY22[[#This Row],[Source]]&AAMC_Raw_Data_for_FY22[[#This Row],[Type]]&AAMC_Raw_Data_for_FY22[[#This Row],[School Subset]]&AAMC_Raw_Data_for_FY22[[#This Row],[Rank]]&AAMC_Raw_Data_for_FY22[[#This Row],[Degree]]&AAMC_Raw_Data_for_FY22[[#This Row],[Department / Specialty]]&\"L\"","v":"AAMCAcademicAllChairMDFamily Medicine TotalL"},"Family Medicine Total",1,"AAMC","Academic","All","Chair","MD","2021-2022",322153,{"$f":"(((AAMC_Raw_Data_for_FY22[[#This Row],[Median]]-AAMC_Raw_Data_for_FY22[[#This Row],[25th]])/25)*5) + AAMC_Raw_Data_for_FY22[[#This Row],[25th]]","v":339528},{"$f":"(((AAMC_Raw_Data_for_FY22[[#This Row],[Median]]-AAMC_Raw_Data_for_FY22[[#This Row],[25th]])/25)*10) + AAMC_Raw_Data_for_FY22[[#This Row],[25th]]","v":356903},{"$f":"(((AAMC_Raw_Data_for_FY22[[#This Row],[Median]]-AAMC_Raw_Data_for_FY22[[#This Row],[25th]])/25)*15) + AAMC_Raw_Data_for_FY22[[#This Row],[25th]]","v":374278},{"$f":"(((AAMC_Raw_Data_for_FY22[[#This Row],[Median]]-AAMC_Raw_Data_for_FY22[[#This Row],[25th]])/25)*20) + AAMC_Raw_Data_for_FY22[[#This Row],[25th]]","v":391653},409028,{"$f":"(((AAMC_Raw_Data_for_FY22[[#This Row],[75th]]-AAMC_Raw_Data_for_FY22[[#This Row],[Median]])/25)*5) + AAMC_Raw_Data_for_FY22[[#This Row],[Median]]","v":414159.4},{"$f":"(((AAMC_Raw_Data_for_FY22[[#This Row],[75th]]-AAMC_Raw_Data_for_FY22[[#This Row],[Median]])/25)*10) + AAMC_Raw_Data_for_FY22[[#This Row],[Median]]","v":419290.8},{"$f":"(((AAMC_Raw_Data_for_FY22[[#This Row],[75th]]-AAMC_Raw_Data_for_FY22[[#This Row],[Median]])/25)*15) + AAMC_Raw_Data_for_FY22[[#This Row],[Median]]","v":424422.2},{"$f":"(((AAMC_Raw_Data_for_FY22[[#This Row],[75th]]-AAMC_Raw_Data_for_FY22[[#This Row],[Median]])/25)*20) + AAMC_Raw_Data_for_FY22[[#This Row],[Median]]","v":429553.6},434685,{"$f":"(((AAMC_Raw_Data_for_FY22[[#This Row],[75th]]-AAMC_Raw_Data_for_FY22[[#This Row],[Median]])/25)*30) + AAMC_Raw_Data_for_FY22[[#This Row],[Median]]","v":439816.4},{"$f":"(((AAMC_Raw_Data_for_FY22[[#This Row],[75th]]-AAMC_Raw_Data_for_FY22[[#This Row],[Median]])/25)*35) + AAMC_Raw_Data_for_FY22[[#This Row],[Median]]","v":444947.8},{"$f":"(((AAMC_Raw_Data_for_FY22[[#This Row],[75th]]-AAMC_Raw_Data_for_FY22[[#This Row],[Median]])/25)*40) + AAMC_Raw_Data_for_FY22[[#This Row],[Median]]","v":450079.2}]
[{"$f":"AAMC_Raw_Data_for_FY22[[#This Row],[Source]]&AAMC_Raw_Data_for_FY22[[#This Row],[Type]]&AAMC_Raw_Data_for_FY22[[#This Row],[School Subset]]&AAMC_Raw_Data_for_FY22[[#This Row],[Rank]]&AAMC_Raw_Data_for_FY22[[#This Row],[Degree]]&AAMC_Raw_Data_for_FY22[[#This Row],[Department / Specialty]]&\"L\"","v":"AAMCAcademicAllInstructorMDFamily Medicine: GeneralL"},"Family Medicine: General",5,"AAMC","Academic","All","Instructor","MD","2021-2022",202759,{"$f":"(((AAMC_Raw_Data_for_FY22[[#This Row],[Median]]-AAMC_Raw_Data_for_FY22[[#This Row],[25th]])/25)*5) + AAMC_Raw_Data_for_FY22[[#This Row],[25th]]","v":209598.8},{"$f":"(((AAMC_Raw_Data_for_FY22[[#This Row],[Median]]-AAMC_Raw_Data_for_FY22[[#This Row],[25th]])/25)*10) + AAMC_Raw_Data_for_FY22[[#This Row],[25th]]","v":216438.6},{"$f":"(((AAMC_Raw_Data_for_FY22[[#This Row],[Median]]-AAMC_Raw_Data_for_FY22[[#This Row],[25th]])/25)*15) + AAMC_Raw_Data_for_FY22[[#This Row],[25th]]","v":223278.4},{"$f":"(((AAMC_Raw_Data_for_FY22[[#This Row],[Median]]-AAMC_Raw_Data_for_FY22[[#This Row],[25th]])/25)*20) + AAMC_Raw_Data_for_FY22[[#This Row],[25th]]","v":230118.2},236958,{"$f":"(((AAMC_Raw_Data_for_FY22[[#This Row],[75th]]-AAMC_Raw_Data_for_FY22[[#This Row],[Median]])/25)*5) + AAMC_Raw_Data_for_FY22[[#This Row],[Median]]","v":243435},{"$f":"(((AAMC_Raw_Data_for_FY22[[#This Row],[75th]]-AAMC_Raw_Data_for_FY22[[#This Row],[Median]])/25)*10) + AAMC_Raw_Data_for_FY22[[#This Row],[Median]]","v":249912},{"$f":"(((AAMC_Raw_Data_for_FY22[[#This Row],[75th]]-AAMC_Raw_Data_for_FY22[[#This Row],[Median]])/25)*15) + AAMC_Raw_Data_for_FY22[[#This Row],[Median]]","v":256389},{"$f":"(((AAMC_Raw_Data_for_FY22[[#This Row],[75th]]-AAMC_Raw_Data_for_FY22[[#This Row],[Median]])/25)*20) + AAMC_Raw_Data_for_FY22[[#This Row],[Median]]","v":262866},269343,{"$f":"(((AAMC_Raw_Data_for_FY22[[#This Row],[75th]]-AAMC_Raw_Data_for_FY22[[#This Row],[Median]])/25)*30) + AAMC_Raw_Data_for_FY22[[#This Row],[Median]]","v":275820},{"$f":"(((AAMC_Raw_Data_for_FY22[[#This Row],[75th]]-AAMC_Raw_Data_for_FY22[[#This Row],[Median]])/25)*35) + AAMC_Raw_Data_for_FY22[[#This Row],[Median]]","v":282297},{"$f":"(((AAMC_Raw_Data_for_FY22[[#This Row],[75th]]-AAMC_Raw_Data_for_FY22[[#This Row],[Median]])/25)*40) + AAMC_Raw_Data_for_FY22[[#This Row],[Median]]","v":288774}]
[{"$f":"AAMC_Raw_Data_for_FY22[[#This Row],[Source]]&AAMC_Raw_Data_for_FY22[[#This Row],[Type]]&AAMC_Raw_Data_for_FY22[[#This Row],[School Subset]]&AAMC_Raw_Data_for_FY22[[#This Row],[Rank]]&AAMC_Raw_Data_for_FY22[[#This Row],[Degree]]&AAMC_Raw_Data_for_FY22[[#This Row],[Department / Specialty]]&\"L\"","v":"AAMCAcademicAllAssistantMDFamily Medicine: GeneralL"},"Family Medicine: General",4,"AAMC","Academic","All","Assistant","MD","2021-2022",202500,{"$f":"(((AAMC_Raw_Data_for_FY22[[#This Row],[Median]]-AAMC_Raw_Data_for_FY22[[#This Row],[25th]])/25)*5) + AAMC_Raw_Data_for_FY22[[#This Row],[25th]]","v":207428.2},{"$f":"(((AAMC_Raw_Data_for_FY22[[#This Row],[Median]]-AAMC_Raw_Data_for_FY22[[#This Row],[25th]])/25)*10) + AAMC_Raw_Data_for_FY22[[#This Row],[25th]]","v":212356.4},{"$f":"(((AAMC_Raw_Data_for_FY22[[#This Row],[Median]]-AAMC_Raw_Data_for_FY22[[#This Row],[25th]])/25)*15) + AAMC_Raw_Data_for_FY22[[#This Row],[25th]]","v":217284.6},{"$f":"(((AAMC_Raw_Data_for_FY22[[#This Row],[Median]]-AAMC_Raw_Data_for_FY22[[#This Row],[25th]])/25)*20) + AAMC_Raw_Data_for_FY22[[#This Row],[25th]]","v":222212.8},227141,{"$f":"(((AAMC_Raw_Data_for_FY22[[#This Row],[75th]]-AAMC_Raw_Data_for_FY22[[#This Row],[Median]])/25)*5) + AAMC_Raw_Data_for_FY22[[#This Row],[Median]]","v":232940},{"$f":"(((AAMC_Raw_Data_for_FY22[[#This Row],[75th]]-AAMC_Raw_Data_for_FY22[[#This Row],[Median]])/25)*10) + AAMC_Raw_Data_for_FY22[[#This Row],[Median]]","v":238739},{"$f":"(((AAMC_Raw_Data_for_FY22[[#This Row],[75th]]-AAMC_Raw_Data_for_FY22[[#This Row],[Median]])/25)*15) + AAMC_Raw_Data_for_FY22[[#This Row],[Median]]","v":244538},{"$f":"(((AAMC_Raw_Data_for_FY22[[#This Row],[75th]]-AAMC_Raw_Data_for_FY22[[#This Row],[Median]])/25)*20) + AAMC_Raw_Data_for_FY22[[#This Row],[Median]]","v":250337},256136,{"$f":"(((AAMC_Raw_Data_for_FY22[[#This Row],[75th]]-AAMC_Raw_Data_for_FY22[[#This Row],[Median]])/25)*30) + AAMC_Raw_Data_for_FY22[[#This Row],[Median]]","v":261935},{"$f":"(((AAMC_Raw_Data_for_FY22[[#This Row],[75th]]-AAMC_Raw_Data_for_FY22[[#This Row],[Median]])/25)*35) + AAMC_Raw_Data_for_FY22[[#This Row],[Median]]","v":267734},{"$f":"(((AAMC_Raw_Data_for_FY22[[#This Row],[75th]]-AAMC_Raw_Data_for_FY22[[#This Row],[Median]])/25)*40) + AAMC_Raw_Data_for_FY22[[#This Row],[Median]]","v":273533}]
[{"$f":"AAMC_Raw_Data_for_FY22[[#This Row],[Source]]&AAMC_Raw_Data_for_FY22[[#This Row],[Type]]&AAMC_Raw_Data_for_FY22[[#This Row],[School Subset]]&AAMC_Raw_Data_for_FY22[[#This Row],[Rank]]&AAMC_Raw_Data_for_FY22[[#This Row],[Degree]]&AAMC_Raw_Data_for_FY22[[#This Row],[Department / Specialty]]&\"L\"","v":"AAMCAcademicAllAssociateMDFamily Medicine: GeneralL"},"Family Medicine: General",3,"AAMC","Academic","All","Associate","MD","2021-2022",217751,{"$f":"(((AAMC_Raw_Data_for_FY22[[#This Row],[Median]]-AAMC_Raw_Data_for_FY22[[#This Row],[25th]])/25)*5) + AAMC_Raw_Data_for_FY22[[#This Row],[25th]]","v":222497.4},{"$f":"(((AAMC_Raw_Data_for_FY22[[#This Row],[Median]]-AAMC_Raw_Data_for_FY22[[#This Row],[25th]])/25)*10) + AAMC_Raw_Data_for_FY22[[#This Row],[25th]]","v":227243.8},{"$f":"(((AAMC_Raw_Data_for_FY22[[#This Row],[Median]]-AAMC_Raw_Data_for_FY22[[#This Row],[25th]])/25)*15) + AAMC_Raw_Data_for_FY22[[#This Row],[25th]]","v":231990.2},{"$f":"(((AAMC_Raw_Data_for_FY22[[#This Row],[Median]]-AAMC_Raw_Data_for_FY22[[#This Row],[25th]])/25)*20) + AAMC_Raw_Data_for_FY22[[#This Row],[25th]]","v":236736.6},241483,{"$f":"(((AAMC_Raw_Data_for_FY22[[#This Row],[75th]]-AAMC_Raw_Data_for_FY22[[#This Row],[Median]])/25)*5) + AAMC_Raw_Data_for_FY22[[#This Row],[Median]]","v":246881},{"$f":"(((AAMC_Raw_Data_for_FY22[[#This Row],[75th]]-AAMC_Raw_Data_for_FY22[[#This Row],[Median]])/25)*10) + AAMC_Raw_Data_for_FY22[[#This Row],[Median]]","v":252279},{"$f":"(((AAMC_Raw_Data_for_FY22[[#This Row],[75th]]-AAMC_Raw_Data_for_FY22[[#This Row],[Median]])/25)*15) + AAMC_Raw_Data_for_FY22[[#This Row],[Median]]","v":257677},{"$f":"(((AAMC_Raw_Data_for_FY22[[#This Row],[75th]]-AAMC_Raw_Data_for_FY22[[#This Row],[Median]])/25)*20) + AAMC_Raw_Data_for_FY22[[#This Row],[Median]]","v":263075},268473,{"$f":"(((AAMC_Raw_Data_for_FY22[[#This Row],[75th]]-AAMC_Raw_Data_for_FY22[[#This Row],[Median]])/25)*30) + AAMC_Raw_Data_for_FY22[[#This Row],[Median]]","v":273871},{"$f":"(((AAMC_Raw_Data_for_FY22[[#This Row],[75th]]-AAMC_Raw_Data_for_FY22[[#This Row],[Median]])/25)*35) + AAMC_Raw_Data_for_FY22[[#This Row],[Median]]","v":279269},{"$f":"(((AAMC_Raw_Data_for_FY22[[#This Row],[75th]]-AAMC_Raw_Data_for_FY22[[#This Row],[Median]])/25)*40) + AAMC_Raw_Data_for_FY22[[#This Row],[Median]]","v":284667}]
[{"$f":"AAMC_Raw_Data_for_FY22[[#This Row],[Source]]&AAMC_Raw_Data_for_FY22[[#This Row],[Type]]&AAMC_Raw_Data_for_FY22[[#This Row],[School Subset]]&AAMC_Raw_Data_for_FY22[[#This Row],[Rank]]&AAMC_Raw_Data_for_FY22[[#This Row],[Degree]]&AAMC_Raw_Data_for_FY22[[#This Row],[Department / Specialty]]&\"L\"","v":"AAMCAcademicAllProfessorMDFamily Medicine: GeneralL"},"Family Medicine: General",2,"AAMC","Academic","All","Professor","MD","2021-2022",235670,{"$f":"(((AAMC_Raw_Data_for_FY22[[#This Row],[Median]]-AAMC_Raw_Data_for_FY22[[#This Row],[25th]])/25)*5) + AAMC_Raw_Data_for_FY22[[#This Row],[25th]]","v":240947},{"$f":"(((AAMC_Raw_Data_for_FY22[[#This Row],[Median]]-AAMC_Raw_Data_for_FY22[[#This Row],[25th]])/25)*10) + AAMC_Raw_Data_for_FY22[[#This Row],[25th]]","v":246224},{"$f":"(((AAMC_Raw_Data_for_FY22[[#This Row],[Median]]-AAMC_Raw_Data_for_FY22[[#This Row],[25th]])/25)*15) + AAMC_Raw_Data_for_FY22[[#This Row],[25th]]","v":251501},{"$f":"(((AAMC_Raw_Data_for_FY22[[#This Row],[Median]]-AAMC_Raw_Data_for_FY22[[#This Row],[25th]])/25)*20) + AAMC_Raw_Data_for_FY22[[#This Row],[25th]]","v":256778},262055,{"$f":"(((AAMC_Raw_Data_for_FY22[[#This Row],[75th]]-AAMC_Raw_Data_for_FY22[[#This Row],[Median]])/25)*5) + AAMC_Raw_Data_for_FY22[[#This Row],[Median]]","v":268402.2},{"$f":"(((AAMC_Raw_Data_for_FY22[[#This Row],[75th]]-AAMC_Raw_Data_for_FY22[[#This Row],[Median]])/25)*10) + AAMC_Raw_Data_for_FY22[[#This Row],[Median]]","v":274749.40000000002},{"$f":"(((AAMC_Raw_Data_for_FY22[[#This Row],[75th]]-AAMC_Raw_Data_for_FY22[[#This Row],[Median]])/25)*15) + AAMC_Raw_Data_for_FY22[[#This Row],[Median]]","v":281096.59999999998},{"$f":"(((AAMC_Raw_Data_for_FY22[[#This Row],[75th]]-AAMC_Raw_Data_for_FY22[[#This Row],[Median]])/25)*20) + AAMC_Raw_Data_for_FY22[[#This Row],[Median]]","v":287443.8},293791,{"$f":"(((AAMC_Raw_Data_for_FY22[[#This Row],[75th]]-AAMC_Raw_Data_for_FY22[[#This Row],[Median]])/25)*30) + AAMC_Raw_Data_for_FY22[[#This Row],[Median]]","v":300138.2},{"$f":"(((AAMC_Raw_Data_for_FY22[[#This Row],[75th]]-AAMC_Raw_Data_for_FY22[[#This Row],[Median]])/25)*35) + AAMC_Raw_Data_for_FY22[[#This Row],[Median]]","v":306485.40000000002},{"$f":"(((AAMC_Raw_Data_for_FY22[[#This Row],[75th]]-AAMC_Raw_Data_for_FY22[[#This Row],[Median]])/25)*40) + AAMC_Raw_Data_for_FY22[[#This Row],[Median]]","v":312832.59999999998}]
[{"$f":"AAMC_Raw_Data_for_FY22[[#This Row],[Source]]&AAMC_Raw_Data_for_FY22[[#This Row],[Type]]&AAMC_Raw_Data_for_FY22[[#This Row],[School Subset]]&AAMC_Raw_Data_for_FY22[[#This Row],[Rank]]&AAMC_Raw_Data_for_FY22[[#This Row],[Degree]]&AAMC_Raw_Data_for_FY22[[#This Row],[Department / Specialty]]&\"L\"","v":"AAMCAcademicAllChiefMDFamily Medicine: GeneralL"},"Family Medicine: General",6,"AAMC","Academic","All","Chief","MD","2021-2022",254966,{"$f":"(((AAMC_Raw_Data_for_FY22[[#This Row],[Median]]-AAMC_Raw_Data_for_FY22[[#This Row],[25th]])/25)*5) + AAMC_Raw_Data_for_FY22[[#This Row],[25th]]","v":257993.2},{"$f":"(((AAMC_Raw_Data_for_FY22[[#This Row],[Median]]-AAMC_Raw_Data_for_FY22[[#This Row],[25th]])/25)*10) + AAMC_Raw_Data_for_FY22[[#This Row],[25th]]","v":261020.4},{"$f":"(((AAMC_Raw_Data_for_FY22[[#This Row],[Median]]-AAMC_Raw_Data_for_FY22[[#This Row],[25th]])/25)*15) + AAMC_Raw_Data_for_FY22[[#This Row],[25th]]","v":264047.59999999998},{"$f":"(((AAMC_Raw_Data_for_FY22[[#This Row],[Median]]-AAMC_Raw_Data_for_FY22[[#This Row],[25th]])/25)*20) + AAMC_Raw_Data_for_FY22[[#This Row],[25th]]","v":267074.8},270102,{"$f":"(((AAMC_Raw_Data_for_FY22[[#This Row],[75th]]-AAMC_Raw_Data_for_FY22[[#This Row],[Median]])/25)*5) + AAMC_Raw_Data_for_FY22[[#This Row],[Median]]","v":279764.8},{"$f":"(((AAMC_Raw_Data_for_FY22[[#This Row],[75th]]-AAMC_Raw_Data_for_FY22[[#This Row],[Median]])/25)*10) + AAMC_Raw_Data_for_FY22[[#This Row],[Median]]","v":289427.59999999998},{"$f":"(((AAMC_Raw_Data_for_FY22[[#This Row],[75th]]-AAMC_Raw_Data_for_FY22[[#This Row],[Median]])/25)*15) + AAMC_Raw_Data_for_FY22[[#This Row],[Median]]","v":299090.40000000002},{"$f":"(((AAMC_Raw_Data_for_FY22[[#This Row],[75th]]-AAMC_Raw_Data_for_FY22[[#This Row],[Median]])/25)*20) + AAMC_Raw_Data_for_FY22[[#This Row],[Median]]","v":308753.2},318416,{"$f":"(((AAMC_Raw_Data_for_FY22[[#This Row],[75th]]-AAMC_Raw_Data_for_FY22[[#This Row],[Median]])/25)*30) + AAMC_Raw_Data_for_FY22[[#This Row],[Median]]","v":328078.8},{"$f":"(((AAMC_Raw_Data_for_FY22[[#This Row],[75th]]-AAMC_Raw_Data_for_FY22[[#This Row],[Median]])/25)*35) + AAMC_Raw_Data_for_FY22[[#This Row],[Median]]","v":337741.6},{"$f":"(((AAMC_Raw_Data_for_FY22[[#This Row],[75th]]-AAMC_Raw_Data_for_FY22[[#This Row],[Median]])/25)*40) + AAMC_Raw_Data_for_FY22[[#This Row],[Median]]","v":347404.4}]
[{"$f":"AAMC_Raw_Data_for_FY22[[#This Row],[Source]]&AAMC_Raw_Data_for_FY22[[#This Row],[Type]]&AAMC_Raw_Data_for_FY22[[#This Row],[School Subset]]&AAMC_Raw_Data_for_FY22[[#This Row],[Rank]]&AAMC_Raw_Data_for_FY22[[#This Row],[Degree]]&AAMC_Raw_Data_for_FY22[[#This Row],[Department / Specialty]]&\"L\"","v":"AAMCAcademicAllChairMDFamily Medicine: GeneralL"},"Family Medicine: General",1,"AAMC","Academic","All","Chair","MD","2021-2022",321300,{"$f":"(((AAMC_Raw_Data_for_FY22[[#This Row],[Median]]-AAMC_Raw_Data_for_FY22[[#This Row],[25th]])/25)*5) + AAMC_Raw_Data_for_FY22[[#This Row],[25th]]","v":336407.8},{"$f":"(((AAMC_Raw_Data_for_FY22[[#This Row],[Median]]-AAMC_Raw_Data_for_FY22[[#This Row],[25th]])/25)*10) + AAMC_Raw_Data_for_FY22[[#This Row],[25th]]","v":351515.6},{"$f":"(((AAMC_Raw_Data_for_FY22[[#This Row],[Median]]-AAMC_Raw_Data_for_FY22[[#This Row],[25th]])/25)*15) + AAMC_Raw_Data_for_FY22[[#This Row],[25th]]","v":366623.4},{"$f":"(((AAMC_Raw_Data_for_FY22[[#This Row],[Median]]-AAMC_Raw_Data_for_FY22[[#This Row],[25th]])/25)*20) + AAMC_Raw_Data_for_FY22[[#This Row],[25th]]","v":381731.2},396839,{"$f":"(((AAMC_Raw_Data_for_FY22[[#This Row],[75th]]-AAMC_Raw_Data_for_FY22[[#This Row],[Median]])/25)*5) + AAMC_Raw_Data_for_FY22[[#This Row],[Median]]","v":403452.8},{"$f":"(((AAMC_Raw_Data_for_FY22[[#This Row],[75th]]-AAMC_Raw_Data_for_FY22[[#This Row],[Median]])/25)*10) + AAMC_Raw_Data_for_FY22[[#This Row],[Median]]","v":410066.6},{"$f":"(((AAMC_Raw_Data_for_FY22[[#This Row],[75th]]-AAMC_Raw_Data_for_FY22[[#This Row],[Median]])/25)*15) + AAMC_Raw_Data_for_FY22[[#This Row],[Median]]","v":416680.4},{"$f":"(((AAMC_Raw_Data_for_FY22[[#This Row],[75th]]-AAMC_Raw_Data_for_FY22[[#This Row],[Median]])/25)*20) + AAMC_Raw_Data_for_FY22[[#This Row],[Median]]","v":423294.2},429908,{"$f":"(((AAMC_Raw_Data_for_FY22[[#This Row],[75th]]-AAMC_Raw_Data_for_FY22[[#This Row],[Median]])/25)*30) + AAMC_Raw_Data_for_FY22[[#This Row],[Median]]","v":436521.8},{"$f":"(((AAMC_Raw_Data_for_FY22[[#This Row],[75th]]-AAMC_Raw_Data_for_FY22[[#This Row],[Median]])/25)*35) + AAMC_Raw_Data_for_FY22[[#This Row],[Median]]","v":443135.6},{"$f":"(((AAMC_Raw_Data_for_FY22[[#This Row],[75th]]-AAMC_Raw_Data_for_FY22[[#This Row],[Median]])/25)*40) + AAMC_Raw_Data_for_FY22[[#This Row],[Median]]","v":449749.4}]
[{"$f":"AAMC_Raw_Data_for_FY22[[#This Row],[Source]]&AAMC_Raw_Data_for_FY22[[#This Row],[Type]]&AAMC_Raw_Data_for_FY22[[#This Row],[School Subset]]&AAMC_Raw_Data_for_FY22[[#This Row],[Rank]]&AAMC_Raw_Data_for_FY22[[#This Row],[Degree]]&AAMC_Raw_Data_for_FY22[[#This Row],[Department / Specialty]]&\"L\"","v":"AAMCAcademicAllInstructorMDFamily Medicine: Sports MedicineL"},"Family Medicine: Sports Medicine",5,"AAMC","Academic","All","Instructor","MD","2021-2022",null,{"$f":"(((AAMC_Raw_Data_for_FY22[[#This Row],[Median]]-AAMC_Raw_Data_for_FY22[[#This Row],[25th]])/25)*5) + AAMC_Raw_Data_for_FY22[[#This Row],[25th]]","v":0},{"$f":"(((AAMC_Raw_Data_for_FY22[[#This Row],[Median]]-AAMC_Raw_Data_for_FY22[[#This Row],[25th]])/25)*10) + AAMC_Raw_Data_for_FY22[[#This Row],[25th]]","v":0},{"$f":"(((AAMC_Raw_Data_for_FY22[[#This Row],[Median]]-AAMC_Raw_Data_for_FY22[[#This Row],[25th]])/25)*15) + AAMC_Raw_Data_for_FY22[[#This Row],[25th]]","v":0},{"$f":"(((AAMC_Raw_Data_for_FY22[[#This Row],[Median]]-AAMC_Raw_Data_for_FY22[[#This Row],[25th]])/25)*20) + AAMC_Raw_Data_for_FY22[[#This Row],[25th]]","v":0},null,{"$f":"(((AAMC_Raw_Data_for_FY22[[#This Row],[75th]]-AAMC_Raw_Data_for_FY22[[#This Row],[Median]])/25)*5) + AAMC_Raw_Data_for_FY22[[#This Row],[Median]]","v":0},{"$f":"(((AAMC_Raw_Data_for_FY22[[#This Row],[75th]]-AAMC_Raw_Data_for_FY22[[#This Row],[Median]])/25)*10) + AAMC_Raw_Data_for_FY22[[#This Row],[Median]]","v":0},{"$f":"(((AAMC_Raw_Data_for_FY22[[#This Row],[75th]]-AAMC_Raw_Data_for_FY22[[#This Row],[Median]])/25)*15) + AAMC_Raw_Data_for_FY22[[#This Row],[Median]]","v":0},{"$f":"(((AAMC_Raw_Data_for_FY22[[#This Row],[75th]]-AAMC_Raw_Data_for_FY22[[#This Row],[Median]])/25)*20) + AAMC_Raw_Data_for_FY22[[#This Row],[Median]]","v":0},null,{"$f":"(((AAMC_Raw_Data_for_FY22[[#This Row],[75th]]-AAMC_Raw_Data_for_FY22[[#This Row],[Median]])/25)*30) + AAMC_Raw_Data_for_FY22[[#This Row],[Median]]","v":0},{"$f":"(((AAMC_Raw_Data_for_FY22[[#This Row],[75th]]-AAMC_Raw_Data_for_FY22[[#This Row],[Median]])/25)*35) + AAMC_Raw_Data_for_FY22[[#This Row],[Median]]","v":0},{"$f":"(((AAMC_Raw_Data_for_FY22[[#This Row],[75th]]-AAMC_Raw_Data_for_FY22[[#This Row],[Median]])/25)*40) + AAMC_Raw_Data_for_FY22[[#This Row],[Median]]","v":0}]
[{"$f":"AAMC_Raw_Data_for_FY22[[#This Row],[Source]]&AAMC_Raw_Data_for_FY22[[#This Row],[Type]]&AAMC_Raw_Data_for_FY22[[#This Row],[School Subset]]&AAMC_Raw_Data_for_FY22[[#This Row],[Rank]]&AAMC_Raw_Data_for_FY22[[#This Row],[Degree]]&AAMC_Raw_Data_for_FY22[[#This Row],[Department / Specialty]]&\"L\"","v":"AAMCAcademicAllAssistantMDFamily Medicine: Sports MedicineL"},"Family Medicine: Sports Medicine",4,"AAMC","Academic","All","Assistant","MD","2021-2022",199700,{"$f":"(((AAMC_Raw_Data_for_FY22[[#This Row],[Median]]-AAMC_Raw_Data_for_FY22[[#This Row],[25th]])/25)*5) + AAMC_Raw_Data_for_FY22[[#This Row],[25th]]","v":205722.8},{"$f":"(((AAMC_Raw_Data_for_FY22[[#This Row],[Median]]-AAMC_Raw_Data_for_FY22[[#This Row],[25th]])/25)*10) + AAMC_Raw_Data_for_FY22[[#This Row],[25th]]","v":211745.6},{"$f":"(((AAMC_Raw_Data_for_FY22[[#This Row],[Median]]-AAMC_Raw_Data_for_FY22[[#This Row],[25th]])/25)*15) + AAMC_Raw_Data_for_FY22[[#This Row],[25th]]","v":217768.4},{"$f":"(((AAMC_Raw_Data_for_FY22[[#This Row],[Median]]-AAMC_Raw_Data_for_FY22[[#This Row],[25th]])/25)*20) + AAMC_Raw_Data_for_FY22[[#This Row],[25th]]","v":223791.2},229814,{"$f":"(((AAMC_Raw_Data_for_FY22[[#This Row],[75th]]-AAMC_Raw_Data_for_FY22[[#This Row],[Median]])/25)*5) + AAMC_Raw_Data_for_FY22[[#This Row],[Median]]","v":242491.8},{"$f":"(((AAMC_Raw_Data_for_FY22[[#This Row],[75th]]-AAMC_Raw_Data_for_FY22[[#This Row],[Median]])/25)*10) + AAMC_Raw_Data_for_FY22[[#This Row],[Median]]","v":255169.6},{"$f":"(((AAMC_Raw_Data_for_FY22[[#This Row],[75th]]-AAMC_Raw_Data_for_FY22[[#This Row],[Median]])/25)*15) + AAMC_Raw_Data_for_FY22[[#This Row],[Median]]","v":267847.40000000002},{"$f":"(((AAMC_Raw_Data_for_FY22[[#This Row],[75th]]-AAMC_Raw_Data_for_FY22[[#This Row],[Median]])/25)*20) + AAMC_Raw_Data_for_FY22[[#This Row],[Median]]","v":280525.2},293203,{"$f":"(((AAMC_Raw_Data_for_FY22[[#This Row],[75th]]-AAMC_Raw_Data_for_FY22[[#This Row],[Median]])/25)*30) + AAMC_Raw_Data_for_FY22[[#This Row],[Median]]","v":305880.8},{"$f":"(((AAMC_Raw_Data_for_FY22[[#This Row],[75th]]-AAMC_Raw_Data_for_FY22[[#This Row],[Median]])/25)*35) + AAMC_Raw_Data_for_FY22[[#This Row],[Median]]","v":318558.59999999998},{"$f":"(((AAMC_Raw_Data_for_FY22[[#This Row],[75th]]-AAMC_Raw_Data_for_FY22[[#This Row],[Median]])/25)*40) + AAMC_Raw_Data_for_FY22[[#This Row],[Median]]","v":331236.40000000002}]
[{"$f":"AAMC_Raw_Data_for_FY22[[#This Row],[Source]]&AAMC_Raw_Data_for_FY22[[#This Row],[Type]]&AAMC_Raw_Data_for_FY22[[#This Row],[School Subset]]&AAMC_Raw_Data_for_FY22[[#This Row],[Rank]]&AAMC_Raw_Data_for_FY22[[#This Row],[Degree]]&AAMC_Raw_Data_for_FY22[[#This Row],[Department / Specialty]]&\"L\"","v":"AAMCAcademicAllAssociateMDFamily Medicine: Sports MedicineL"},"Family Medicine: Sports Medicine",3,"AAMC","Academic","All","Associate","MD","2021-2022",235759,{"$f":"(((AAMC_Raw_Data_for_FY22[[#This Row],[Median]]-AAMC_Raw_Data_for_FY22[[#This Row],[25th]])/25)*5) + AAMC_Raw_Data_for_FY22[[#This Row],[25th]]","v":247102.8},{"$f":"(((AAMC_Raw_Data_for_FY22[[#This Row],[Median]]-AAMC_Raw_Data_for_FY22[[#This Row],[25th]])/25)*10) + AAMC_Raw_Data_for_FY22[[#This Row],[25th]]","v":258446.6},{"$f":"(((AAMC_Raw_Data_for_FY22[[#This Row],[Median]]-AAMC_Raw_Data_for_FY22[[#This Row],[25th]])/25)*15) + AAMC_Raw_Data_for_FY22[[#This Row],[25th]]","v":269790.40000000002},{"$f":"(((AAMC_Raw_Data_for_FY22[[#This Row],[Median]]-AAMC_Raw_Data_for_FY22[[#This Row],[25th]])/25)*20) + AAMC_Raw_Data_for_FY22[[#This Row],[25th]]","v":281134.2},292478,{"$f":"(((AAMC_Raw_Data_for_FY22[[#This Row],[75th]]-AAMC_Raw_Data_for_FY22[[#This Row],[Median]])/25)*5) + AAMC_Raw_Data_for_FY22[[#This Row],[Median]]","v":307116.79999999999},{"$f":"(((AAMC_Raw_Data_for_FY22[[#This Row],[75th]]-AAMC_Raw_Data_for_FY22[[#This Row],[Median]])/25)*10) + AAMC_Raw_Data_for_FY22[[#This Row],[Median]]","v":321755.59999999998},{"$f":"(((AAMC_Raw_Data_for_FY22[[#This Row],[75th]]-AAMC_Raw_Data_for_FY22[[#This Row],[Median]])/25)*15) + AAMC_Raw_Data_for_FY22[[#This Row],[Median]]","v":336394.4},{"$f":"(((AAMC_Raw_Data_for_FY22[[#This Row],[75th]]-AAMC_Raw_Data_for_FY22[[#This Row],[Median]])/25)*20) + AAMC_Raw_Data_for_FY22[[#This Row],[Median]]","v":351033.2},365672,{"$f":"(((AAMC_Raw_Data_for_FY22[[#This Row],[75th]]-AAMC_Raw_Data_for_FY22[[#This Row],[Median]])/25)*30) + AAMC_Raw_Data_for_FY22[[#This Row],[Median]]","v":380310.8},{"$f":"(((AAMC_Raw_Data_for_FY22[[#This Row],[75th]]-AAMC_Raw_Data_for_FY22[[#This Row],[Median]])/25)*35) + AAMC_Raw_Data_for_FY22[[#This Row],[Median]]","v":394949.6},{"$f":"(((AAMC_Raw_Data_for_FY22[[#This Row],[75th]]-AAMC_Raw_Data_for_FY22[[#This Row],[Median]])/25)*40) + AAMC_Raw_Data_for_FY22[[#This Row],[Median]]","v":409588.4}]
[{"$f":"AAMC_Raw_Data_for_FY22[[#This Row],[Source]]&AAMC_Raw_Data_for_FY22[[#This Row],[Type]]&AAMC_Raw_Data_for_FY22[[#This Row],[School Subset]]&AAMC_Raw_Data_for_FY22[[#This Row],[Rank]]&AAMC_Raw_Data_for_FY22[[#This Row],[Degree]]&AAMC_Raw_Data_for_FY22[[#This Row],[Department / Specialty]]&\"L\"","v":"AAMCAcademicAllProfessorMDFamily Medicine: Sports MedicineL"},"Family Medicine: Sports Medicine",2,"AAMC","Academic","All","Professor","MD","2021-2022",285860,{"$f":"(((AAMC_Raw_Data_for_FY22[[#This Row],[Median]]-AAMC_Raw_Data_for_FY22[[#This Row],[25th]])/25)*5) + AAMC_Raw_Data_for_FY22[[#This Row],[25th]]","v":295087.8},{"$f":"(((AAMC_Raw_Data_for_FY22[[#This Row],[Median]]-AAMC_Raw_Data_for_FY22[[#This Row],[25th]])/25)*10) + AAMC_Raw_Data_for_FY22[[#This Row],[25th]]","v":304315.59999999998},{"$f":"(((AAMC_Raw_Data_for_FY22[[#This Row],[Median]]-AAMC_Raw_Data_for_FY22[[#This Row],[25th]])/25)*15) + AAMC_Raw_Data_for_FY22[[#This Row],[25th]]","v":313543.40000000002},{"$f":"(((AAMC_Raw_Data_for_FY22[[#This Row],[Median]]-AAMC_Raw_Data_for_FY22[[#This Row],[25th]])/25)*20) + AAMC_Raw_Data_for_FY22[[#This Row],[25th]]","v":322771.20000000001},331999,{"$f":"(((AAMC_Raw_Data_for_FY22[[#This Row],[75th]]-AAMC_Raw_Data_for_FY22[[#This Row],[Median]])/25)*5) + AAMC_Raw_Data_for_FY22[[#This Row],[Median]]","v":342621.2},{"$f":"(((AAMC_Raw_Data_for_FY22[[#This Row],[75th]]-AAMC_Raw_Data_for_FY22[[#This Row],[Median]])/25)*10) + AAMC_Raw_Data_for_FY22[[#This Row],[Median]]","v":353243.4},{"$f":"(((AAMC_Raw_Data_for_FY22[[#This Row],[75th]]-AAMC_Raw_Data_for_FY22[[#This Row],[Median]])/25)*15) + AAMC_Raw_Data_for_FY22[[#This Row],[Median]]","v":363865.59999999998},{"$f":"(((AAMC_Raw_Data_for_FY22[[#This Row],[75th]]-AAMC_Raw_Data_for_FY22[[#This Row],[Median]])/25)*20) + AAMC_Raw_Data_for_FY22[[#This Row],[Median]]","v":374487.8},385110,{"$f":"(((AAMC_Raw_Data_for_FY22[[#This Row],[75th]]-AAMC_Raw_Data_for_FY22[[#This Row],[Median]])/25)*30) + AAMC_Raw_Data_for_FY22[[#This Row],[Median]]","v":395732.2},{"$f":"(((AAMC_Raw_Data_for_FY22[[#This Row],[75th]]-AAMC_Raw_Data_for_FY22[[#This Row],[Median]])/25)*35) + AAMC_Raw_Data_for_FY22[[#This Row],[Median]]","v":406354.4},{"$f":"(((AAMC_Raw_Data_for_FY22[[#This Row],[75th]]-AAMC_Raw_Data_for_FY22[[#This Row],[Median]])/25)*40) + AAMC_Raw_Data_for_FY22[[#This Row],[Median]]","v":416976.6}]
[{"$f":"AAMC_Raw_Data_for_FY22[[#This Row],[Source]]&AAMC_Raw_Data_for_FY22[[#This Row],[Type]]&AAMC_Raw_Data_for_FY22[[#This Row],[School Subset]]&AAMC_Raw_Data_for_FY22[[#This Row],[Rank]]&AAMC_Raw_Data_for_FY22[[#This Row],[Degree]]&AAMC_Raw_Data_for_FY22[[#This Row],[Department / Specialty]]&\"L\"","v":"AAMCAcademicAllChiefMDFamily Medicine: Sports MedicineL"},"Family Medicine: Sports Medicine",6,"AAMC","Academic","All","Chief","MD","2021-2022",null,{"$f":"(((AAMC_Raw_Data_for_FY22[[#This Row],[Median]]-AAMC_Raw_Data_for_FY22[[#This Row],[25th]])/25)*5) + AAMC_Raw_Data_for_FY22[[#This Row],[25th]]","v":0},{"$f":"(((AAMC_Raw_Data_for_FY22[[#This Row],[Median]]-AAMC_Raw_Data_for_FY22[[#This Row],[25th]])/25)*10) + AAMC_Raw_Data_for_FY22[[#This Row],[25th]]","v":0},{"$f":"(((AAMC_Raw_Data_for_FY22[[#This Row],[Median]]-AAMC_Raw_Data_for_FY22[[#This Row],[25th]])/25)*15) + AAMC_Raw_Data_for_FY22[[#This Row],[25th]]","v":0},{"$f":"(((AAMC_Raw_Data_for_FY22[[#This Row],[Median]]-AAMC_Raw_Data_for_FY22[[#This Row],[25th]])/25)*20) + AAMC_Raw_Data_for_FY22[[#This Row],[25th]]","v":0},null,{"$f":"(((AAMC_Raw_Data_for_FY22[[#This Row],[75th]]-AAMC_Raw_Data_for_FY22[[#This Row],[Median]])/25)*5) + AAMC_Raw_Data_for_FY22[[#This Row],[Median]]","v":0},{"$f":"(((AAMC_Raw_Data_for_FY22[[#This Row],[75th]]-AAMC_Raw_Data_for_FY22[[#This Row],[Median]])/25)*10) + AAMC_Raw_Data_for_FY22[[#This Row],[Median]]","v":0},{"$f":"(((AAMC_Raw_Data_for_FY22[[#This Row],[75th]]-AAMC_Raw_Data_for_FY22[[#This Row],[Median]])/25)*15) + AAMC_Raw_Data_for_FY22[[#This Row],[Median]]","v":0},{"$f":"(((AAMC_Raw_Data_for_FY22[[#This Row],[75th]]-AAMC_Raw_Data_for_FY22[[#This Row],[Median]])/25)*20) + AAMC_Raw_Data_for_FY22[[#This Row],[Median]]","v":0},null,{"$f":"(((AAMC_Raw_Data_for_FY22[[#This Row],[75th]]-AAMC_Raw_Data_for_FY22[[#This Row],[Median]])/25)*30) + AAMC_Raw_Data_for_FY22[[#This Row],[Median]]","v":0},{"$f":"(((AAMC_Raw_Data_for_FY22[[#This Row],[75th]]-AAMC_Raw_Data_for_FY22[[#This Row],[Median]])/25)*35) + AAMC_Raw_Data_for_FY22[[#This Row],[Median]]","v":0},{"$f":"(((AAMC_Raw_Data_for_FY22[[#This Row],[75th]]-AAMC_Raw_Data_for_FY22[[#This Row],[Median]])/25)*40) + AAMC_Raw_Data_for_FY22[[#This Row],[Median]]","v":0}]
[{"$f":"AAMC_Raw_Data_for_FY22[[#This Row],[Source]]&AAMC_Raw_Data_for_FY22[[#This Row],[Type]]&AAMC_Raw_Data_for_FY22[[#This Row],[School Subset]]&AAMC_Raw_Data_for_FY22[[#This Row],[Rank]]&AAMC_Raw_Data_for_FY22[[#This Row],[Degree]]&AAMC_Raw_Data_for_FY22[[#This Row],[Department / Specialty]]&\"L\"","v":"AAMCAcademicAllChairMDFamily Medicine: Sports MedicineL"},"Family Medicine: Sports Medicine",1,"AAMC","Academic","All","Chair","MD","2021-2022",null,{"$f":"(((AAMC_Raw_Data_for_FY22[[#This Row],[Median]]-AAMC_Raw_Data_for_FY22[[#This Row],[25th]])/25)*5) + AAMC_Raw_Data_for_FY22[[#This Row],[25th]]","v":0},{"$f":"(((AAMC_Raw_Data_for_FY22[[#This Row],[Median]]-AAMC_Raw_Data_for_FY22[[#This Row],[25th]])/25)*10) + AAMC_Raw_Data_for_FY22[[#This Row],[25th]]","v":0},{"$f":"(((AAMC_Raw_Data_for_FY22[[#This Row],[Median]]-AAMC_Raw_Data_for_FY22[[#This Row],[25th]])/25)*15) + AAMC_Raw_Data_for_FY22[[#This Row],[25th]]","v":0},{"$f":"(((AAMC_Raw_Data_for_FY22[[#This Row],[Median]]-AAMC_Raw_Data_for_FY22[[#This Row],[25th]])/25)*20) + AAMC_Raw_Data_for_FY22[[#This Row],[25th]]","v":0},null,{"$f":"(((AAMC_Raw_Data_for_FY22[[#This Row],[75th]]-AAMC_Raw_Data_for_FY22[[#This Row],[Median]])/25)*5) + AAMC_Raw_Data_for_FY22[[#This Row],[Median]]","v":0},{"$f":"(((AAMC_Raw_Data_for_FY22[[#This Row],[75th]]-AAMC_Raw_Data_for_FY22[[#This Row],[Median]])/25)*10) + AAMC_Raw_Data_for_FY22[[#This Row],[Median]]","v":0},{"$f":"(((AAMC_Raw_Data_for_FY22[[#This Row],[75th]]-AAMC_Raw_Data_for_FY22[[#This Row],[Median]])/25)*15) + AAMC_Raw_Data_for_FY22[[#This Row],[Median]]","v":0},{"$f":"(((AAMC_Raw_Data_for_FY22[[#This Row],[75th]]-AAMC_Raw_Data_for_FY22[[#This Row],[Median]])/25)*20) + AAMC_Raw_Data_for_FY22[[#This Row],[Median]]","v":0},null,{"$f":"(((AAMC_Raw_Data_for_FY22[[#This Row],[75th]]-AAMC_Raw_Data_for_FY22[[#This Row],[Median]])/25)*30) + AAMC_Raw_Data_for_FY22[[#This Row],[Median]]","v":0},{"$f":"(((AAMC_Raw_Data_for_FY22[[#This Row],[75th]]-AAMC_Raw_Data_for_FY22[[#This Row],[Median]])/25)*35) + AAMC_Raw_Data_for_FY22[[#This Row],[Median]]","v":0},{"$f":"(((AAMC_Raw_Data_for_FY22[[#This Row],[75th]]-AAMC_Raw_Data_for_FY22[[#This Row],[Median]])/25)*40) + AAMC_Raw_Data_for_FY22[[#This Row],[Median]]","v":0}]
[{"$f":"AAMC_Raw_Data_for_FY22[[#This Row],[Source]]&AAMC_Raw_Data_for_FY22[[#This Row],[Type]]&AAMC_Raw_Data_for_FY22[[#This Row],[School Subset]]&AAMC_Raw_Data_for_FY22[[#This Row],[Rank]]&AAMC_Raw_Data_for_FY22[[#This Row],[Degree]]&AAMC_Raw_Data_for_FY22[[#This Row],[Department / Specialty]]&\"L\"","v":"AAMCAcademicAllInstructorMDFamily Medicine: OtherL"},"Family Medicine: Other",5,"AAMC","Academic","All","Instructor","MD","2021-2022",115176,{"$f":"(((AAMC_Raw_Data_for_FY22[[#This Row],[Median]]-AAMC_Raw_Data_for_FY22[[#This Row],[25th]])/25)*5) + AAMC_Raw_Data_for_FY22[[#This Row],[25th]]","v":138037.6},{"$f":"(((AAMC_Raw_Data_for_FY22[[#This Row],[Median]]-AAMC_Raw_Data_for_FY22[[#This Row],[25th]])/25)*10) + AAMC_Raw_Data_for_FY22[[#This Row],[25th]]","v":160899.20000000001},{"$f":"(((AAMC_Raw_Data_for_FY22[[#This Row],[Median]]-AAMC_Raw_Data_for_FY22[[#This Row],[25th]])/25)*15) + AAMC_Raw_Data_for_FY22[[#This Row],[25th]]","v":183760.8},{"$f":"(((AAMC_Raw_Data_for_FY22[[#This Row],[Median]]-AAMC_Raw_Data_for_FY22[[#This Row],[25th]])/25)*20) + AAMC_Raw_Data_for_FY22[[#This Row],[25th]]","v":206622.4},229484,{"$f":"(((AAMC_Raw_Data_for_FY22[[#This Row],[75th]]-AAMC_Raw_Data_for_FY22[[#This Row],[Median]])/25)*5) + AAMC_Raw_Data_for_FY22[[#This Row],[Median]]","v":242099.6},{"$f":"(((AAMC_Raw_Data_for_FY22[[#This Row],[75th]]-AAMC_Raw_Data_for_FY22[[#This Row],[Median]])/25)*10) + AAMC_Raw_Data_for_FY22[[#This Row],[Median]]","v":254715.2},{"$f":"(((AAMC_Raw_Data_for_FY22[[#This Row],[75th]]-AAMC_Raw_Data_for_FY22[[#This Row],[Median]])/25)*15) + AAMC_Raw_Data_for_FY22[[#This Row],[Median]]","v":267330.8},{"$f":"(((AAMC_Raw_Data_for_FY22[[#This Row],[75th]]-AAMC_Raw_Data_for_FY22[[#This Row],[Median]])/25)*20) + AAMC_Raw_Data_for_FY22[[#This Row],[Median]]","v":279946.40000000002},292562,{"$f":"(((AAMC_Raw_Data_for_FY22[[#This Row],[75th]]-AAMC_Raw_Data_for_FY22[[#This Row],[Median]])/25)*30) + AAMC_Raw_Data_for_FY22[[#This Row],[Median]]","v":305177.59999999998},{"$f":"(((AAMC_Raw_Data_for_FY22[[#This Row],[75th]]-AAMC_Raw_Data_for_FY22[[#This Row],[Median]])/25)*35) + AAMC_Raw_Data_for_FY22[[#This Row],[Median]]","v":317793.2},{"$f":"(((AAMC_Raw_Data_for_FY22[[#This Row],[75th]]-AAMC_Raw_Data_for_FY22[[#This Row],[Median]])/25)*40) + AAMC_Raw_Data_for_FY22[[#This Row],[Median]]","v":330408.8}]
[{"$f":"AAMC_Raw_Data_for_FY22[[#This Row],[Source]]&AAMC_Raw_Data_for_FY22[[#This Row],[Type]]&AAMC_Raw_Data_for_FY22[[#This Row],[School Subset]]&AAMC_Raw_Data_for_FY22[[#This Row],[Rank]]&AAMC_Raw_Data_for_FY22[[#This Row],[Degree]]&AAMC_Raw_Data_for_FY22[[#This Row],[Department / Specialty]]&\"L\"","v":"AAMCAcademicAllAssistantMDFamily Medicine: OtherL"},"Family Medicine: Other",4,"AAMC","Academic","All","Assistant","MD","2021-2022",198715,{"$f":"(((AAMC_Raw_Data_for_FY22[[#This Row],[Median]]-AAMC_Raw_Data_for_FY22[[#This Row],[25th]])/25)*5) + AAMC_Raw_Data_for_FY22[[#This Row],[25th]]","v":207005.8},{"$f":"(((AAMC_Raw_Data_for_FY22[[#This Row],[Median]]-AAMC_Raw_Data_for_FY22[[#This Row],[25th]])/25)*10) + AAMC_Raw_Data_for_FY22[[#This Row],[25th]]","v":215296.6},{"$f":"(((AAMC_Raw_Data_for_FY22[[#This Row],[Median]]-AAMC_Raw_Data_for_FY22[[#This Row],[25th]])/25)*15) + AAMC_Raw_Data_for_FY22[[#This Row],[25th]]","v":223587.4},{"$f":"(((AAMC_Raw_Data_for_FY22[[#This Row],[Median]]-AAMC_Raw_Data_for_FY22[[#This Row],[25th]])/25)*20) + AAMC_Raw_Data_for_FY22[[#This Row],[25th]]","v":231878.2},240169,{"$f":"(((AAMC_Raw_Data_for_FY22[[#This Row],[75th]]-AAMC_Raw_Data_for_FY22[[#This Row],[Median]])/25)*5) + AAMC_Raw_Data_for_FY22[[#This Row],[Median]]","v":247427.8},{"$f":"(((AAMC_Raw_Data_for_FY22[[#This Row],[75th]]-AAMC_Raw_Data_for_FY22[[#This Row],[Median]])/25)*10) + AAMC_Raw_Data_for_FY22[[#This Row],[Median]]","v":254686.6},{"$f":"(((AAMC_Raw_Data_for_FY22[[#This Row],[75th]]-AAMC_Raw_Data_for_FY22[[#This Row],[Median]])/25)*15) + AAMC_Raw_Data_for_FY22[[#This Row],[Median]]","v":261945.4},{"$f":"(((AAMC_Raw_Data_for_FY22[[#This Row],[75th]]-AAMC_Raw_Data_for_FY22[[#This Row],[Median]])/25)*20) + AAMC_Raw_Data_for_FY22[[#This Row],[Median]]","v":269204.2},276463,{"$f":"(((AAMC_Raw_Data_for_FY22[[#This Row],[75th]]-AAMC_Raw_Data_for_FY22[[#This Row],[Median]])/25)*30) + AAMC_Raw_Data_for_FY22[[#This Row],[Median]]","v":283721.8},{"$f":"(((AAMC_Raw_Data_for_FY22[[#This Row],[75th]]-AAMC_Raw_Data_for_FY22[[#This Row],[Median]])/25)*35) + AAMC_Raw_Data_for_FY22[[#This Row],[Median]]","v":290980.59999999998},{"$f":"(((AAMC_Raw_Data_for_FY22[[#This Row],[75th]]-AAMC_Raw_Data_for_FY22[[#This Row],[Median]])/25)*40) + AAMC_Raw_Data_for_FY22[[#This Row],[Median]]","v":298239.40000000002}]
[{"$f":"AAMC_Raw_Data_for_FY22[[#This Row],[Source]]&AAMC_Raw_Data_for_FY22[[#This Row],[Type]]&AAMC_Raw_Data_for_FY22[[#This Row],[School Subset]]&AAMC_Raw_Data_for_FY22[[#This Row],[Rank]]&AAMC_Raw_Data_for_FY22[[#This Row],[Degree]]&AAMC_Raw_Data_for_FY22[[#This Row],[Department / Specialty]]&\"L\"","v":"AAMCAcademicAllAssociateMDFamily Medicine: OtherL"},"Family Medicine: Other",3,"AAMC","Academic","All","Associate","MD","2021-2022",216156,{"$f":"(((AAMC_Raw_Data_for_FY22[[#This Row],[Median]]-AAMC_Raw_Data_for_FY22[[#This Row],[25th]])/25)*5) + AAMC_Raw_Data_for_FY22[[#This Row],[25th]]","v":222082.4},{"$f":"(((AAMC_Raw_Data_for_FY22[[#This Row],[Median]]-AAMC_Raw_Data_for_FY22[[#This Row],[25th]])/25)*10) + AAMC_Raw_Data_for_FY22[[#This Row],[25th]]","v":228008.8},{"$f":"(((AAMC_Raw_Data_for_FY22[[#This Row],[Median]]-AAMC_Raw_Data_for_FY22[[#This Row],[25th]])/25)*15) + AAMC_Raw_Data_for_FY22[[#This Row],[25th]]","v":233935.2},{"$f":"(((AAMC_Raw_Data_for_FY22[[#This Row],[Median]]-AAMC_Raw_Data_for_FY22[[#This Row],[25th]])/25)*20) + AAMC_Raw_Data_for_FY22[[#This Row],[25th]]","v":239861.6},245788,{"$f":"(((AAMC_Raw_Data_for_FY22[[#This Row],[75th]]-AAMC_Raw_Data_for_FY22[[#This Row],[Median]])/25)*5) + AAMC_Raw_Data_for_FY22[[#This Row],[Median]]","v":253147.2},{"$f":"(((AAMC_Raw_Data_for_FY22[[#This Row],[75th]]-AAMC_Raw_Data_for_FY22[[#This Row],[Median]])/25)*10) + AAMC_Raw_Data_for_FY22[[#This Row],[Median]]","v":260506.4},{"$f":"(((AAMC_Raw_Data_for_FY22[[#This Row],[75th]]-AAMC_Raw_Data_for_FY22[[#This Row],[Median]])/25)*15) + AAMC_Raw_Data_for_FY22[[#This Row],[Median]]","v":267865.59999999998},{"$f":"(((AAMC_Raw_Data_for_FY22[[#This Row],[75th]]-AAMC_Raw_Data_for_FY22[[#This Row],[Median]])/25)*20) + AAMC_Raw_Data_for_FY22[[#This Row],[Median]]","v":275224.8},282584,{"$f":"(((AAMC_Raw_Data_for_FY22[[#This Row],[75th]]-AAMC_Raw_Data_for_FY22[[#This Row],[Median]])/25)*30) + AAMC_Raw_Data_for_FY22[[#This Row],[Median]]","v":289943.2},{"$f":"(((AAMC_Raw_Data_for_FY22[[#This Row],[75th]]-AAMC_Raw_Data_for_FY22[[#This Row],[Median]])/25)*35) + AAMC_Raw_Data_for_FY22[[#This Row],[Median]]","v":297302.40000000002},{"$f":"(((AAMC_Raw_Data_for_FY22[[#This Row],[75th]]-AAMC_Raw_Data_for_FY22[[#This Row],[Median]])/25)*40) + AAMC_Raw_Data_for_FY22[[#This Row],[Median]]","v":304661.59999999998}]
[{"$f":"AAMC_Raw_Data_for_FY22[[#This Row],[Source]]&AAMC_Raw_Data_for_FY22[[#This Row],[Type]]&AAMC_Raw_Data_for_FY22[[#This Row],[School Subset]]&AAMC_Raw_Data_for_FY22[[#This Row],[Rank]]&AAMC_Raw_Data_for_FY22[[#This Row],[Degree]]&AAMC_Raw_Data_for_FY22[[#This Row],[Department / Specialty]]&\"L\"","v":"AAMCAcademicAllProfessorMDFamily Medicine: OtherL"},"Family Medicine: Other",2,"AAMC","Academic","All","Professor","MD","2021-2022",181671,{"$f":"(((AAMC_Raw_Data_for_FY22[[#This Row],[Median]]-AAMC_Raw_Data_for_FY22[[#This Row],[25th]])/25)*5) + AAMC_Raw_Data_for_FY22[[#This Row],[25th]]","v":194613.6},{"$f":"(((AAMC_Raw_Data_for_FY22[[#This Row],[Median]]-AAMC_Raw_Data_for_FY22[[#This Row],[25th]])/25)*10) + AAMC_Raw_Data_for_FY22[[#This Row],[25th]]","v":207556.2},{"$f":"(((AAMC_Raw_Data_for_FY22[[#This Row],[Median]]-AAMC_Raw_Data_for_FY22[[#This Row],[25th]])/25)*15) + AAMC_Raw_Data_for_FY22[[#This Row],[25th]]","v":220498.8},{"$f":"(((AAMC_Raw_Data_for_FY22[[#This Row],[Median]]-AAMC_Raw_Data_for_FY22[[#This Row],[25th]])/25)*20) + AAMC_Raw_Data_for_FY22[[#This Row],[25th]]","v":233441.4},246384,{"$f":"(((AAMC_Raw_Data_for_FY22[[#This Row],[75th]]-AAMC_Raw_Data_for_FY22[[#This Row],[Median]])/25)*5) + AAMC_Raw_Data_for_FY22[[#This Row],[Median]]","v":251336.2},{"$f":"(((AAMC_Raw_Data_for_FY22[[#This Row],[75th]]-AAMC_Raw_Data_for_FY22[[#This Row],[Median]])/25)*10) + AAMC_Raw_Data_for_FY22[[#This Row],[Median]]","v":256288.4},{"$f":"(((AAMC_Raw_Data_for_FY22[[#This Row],[75th]]-AAMC_Raw_Data_for_FY22[[#This Row],[Median]])/25)*15) + AAMC_Raw_Data_for_FY22[[#This Row],[Median]]","v":261240.6},{"$f":"(((AAMC_Raw_Data_for_FY22[[#This Row],[75th]]-AAMC_Raw_Data_for_FY22[[#This Row],[Median]])/25)*20) + AAMC_Raw_Data_for_FY22[[#This Row],[Median]]","v":266192.8},271145,{"$f":"(((AAMC_Raw_Data_for_FY22[[#This Row],[75th]]-AAMC_Raw_Data_for_FY22[[#This Row],[Median]])/25)*30) + AAMC_Raw_Data_for_FY22[[#This Row],[Median]]","v":276097.2},{"$f":"(((AAMC_Raw_Data_for_FY22[[#This Row],[75th]]-AAMC_Raw_Data_for_FY22[[#This Row],[Median]])/25)*35) + AAMC_Raw_Data_for_FY22[[#This Row],[Median]]","v":281049.40000000002},{"$f":"(((AAMC_Raw_Data_for_FY22[[#This Row],[75th]]-AAMC_Raw_Data_for_FY22[[#This Row],[Median]])/25)*40) + AAMC_Raw_Data_for_FY22[[#This Row],[Median]]","v":286001.59999999998}]
[{"$f":"AAMC_Raw_Data_for_FY22[[#This Row],[Source]]&AAMC_Raw_Data_for_FY22[[#This Row],[Type]]&AAMC_Raw_Data_for_FY22[[#This Row],[School Subset]]&AAMC_Raw_Data_for_FY22[[#This Row],[Rank]]&AAMC_Raw_Data_for_FY22[[#This Row],[Degree]]&AAMC_Raw_Data_for_FY22[[#This Row],[Department / Specialty]]&\"L\"","v":"AAMCAcademicAllChiefMDFamily Medicine: OtherL"},"Family Medicine: Other",6,"AAMC","Academic","All","Chief","MD","2021-2022",null,{"$f":"(((AAMC_Raw_Data_for_FY22[[#This Row],[Median]]-AAMC_Raw_Data_for_FY22[[#This Row],[25th]])/25)*5) + AAMC_Raw_Data_for_FY22[[#This Row],[25th]]","v":0},{"$f":"(((AAMC_Raw_Data_for_FY22[[#This Row],[Median]]-AAMC_Raw_Data_for_FY22[[#This Row],[25th]])/25)*10) + AAMC_Raw_Data_for_FY22[[#This Row],[25th]]","v":0},{"$f":"(((AAMC_Raw_Data_for_FY22[[#This Row],[Median]]-AAMC_Raw_Data_for_FY22[[#This Row],[25th]])/25)*15) + AAMC_Raw_Data_for_FY22[[#This Row],[25th]]","v":0},{"$f":"(((AAMC_Raw_Data_for_FY22[[#This Row],[Median]]-AAMC_Raw_Data_for_FY22[[#This Row],[25th]])/25)*20) + AAMC_Raw_Data_for_FY22[[#This Row],[25th]]","v":0},null,{"$f":"(((AAMC_Raw_Data_for_FY22[[#This Row],[75th]]-AAMC_Raw_Data_for_FY22[[#This Row],[Median]])/25)*5) + AAMC_Raw_Data_for_FY22[[#This Row],[Median]]","v":0},{"$f":"(((AAMC_Raw_Data_for_FY22[[#This Row],[75th]]-AAMC_Raw_Data_for_FY22[[#This Row],[Median]])/25)*10) + AAMC_Raw_Data_for_FY22[[#This Row],[Median]]","v":0},{"$f":"(((AAMC_Raw_Data_for_FY22[[#This Row],[75th]]-AAMC_Raw_Data_for_FY22[[#This Row],[Median]])/25)*15) + AAMC_Raw_Data_for_FY22[[#This Row],[Median]]","v":0},{"$f":"(((AAMC_Raw_Data_for_FY22[[#This Row],[75th]]-AAMC_Raw_Data_for_FY22[[#This Row],[Median]])/25)*20) + AAMC_Raw_Data_for_FY22[[#This Row],[Median]]","v":0},null,{"$f":"(((AAMC_Raw_Data_for_FY22[[#This Row],[75th]]-AAMC_Raw_Data_for_FY22[[#This Row],[Median]])/25)*30) + AAMC_Raw_Data_for_FY22[[#This Row],[Median]]","v":0},{"$f":"(((AAMC_Raw_Data_for_FY22[[#This Row],[75th]]-AAMC_Raw_Data_for_FY22[[#This Row],[Median]])/25)*35) + AAMC_Raw_Data_for_FY22[[#This Row],[Median]]","v":0},{"$f":"(((AAMC_Raw_Data_for_FY22[[#This Row],[75th]]-AAMC_Raw_Data_for_FY22[[#This Row],[Median]])/25)*40) + AAMC_Raw_Data_for_FY22[[#This Row],[Median]]","v":0}]
[{"$f":"AAMC_Raw_Data_for_FY22[[#This Row],[Source]]&AAMC_Raw_Data_for_FY22[[#This Row],[Type]]&AAMC_Raw_Data_for_FY22[[#This Row],[School Subset]]&AAMC_Raw_Data_for_FY22[[#This Row],[Rank]]&AAMC_Raw_Data_for_FY22[[#This Row],[Degree]]&AAMC_Raw_Data_for_FY22[[#This Row],[Department / Specialty]]&\"L\"","v":"AAMCAcademicAllChairMDFamily Medicine: OtherL"},"Family Medicine: Other",1,"AAMC","Academic","All","Chair","MD","2021-2022",417147,{"$f":"(((AAMC_Raw_Data_for_FY22[[#This Row],[Median]]-AAMC_Raw_Data_for_FY22[[#This Row],[25th]])/25)*5) + AAMC_Raw_Data_for_FY22[[#This Row],[25th]]","v":421227},{"$f":"(((AAMC_Raw_Data_for_FY22[[#This Row],[Median]]-AAMC_Raw_Data_for_FY22[[#This Row],[25th]])/25)*10) + AAMC_Raw_Data_for_FY22[[#This Row],[25th]]","v":425307},{"$f":"(((AAMC_Raw_Data_for_FY22[[#This Row],[Median]]-AAMC_Raw_Data_for_FY22[[#This Row],[25th]])/25)*15) + AAMC_Raw_Data_for_FY22[[#This Row],[25th]]","v":429387},{"$f":"(((AAMC_Raw_Data_for_FY22[[#This Row],[Median]]-AAMC_Raw_Data_for_FY22[[#This Row],[25th]])/25)*20) + AAMC_Raw_Data_for_FY22[[#This Row],[25th]]","v":433467},437547,{"$f":"(((AAMC_Raw_Data_for_FY22[[#This Row],[75th]]-AAMC_Raw_Data_for_FY22[[#This Row],[Median]])/25)*5) + AAMC_Raw_Data_for_FY22[[#This Row],[Median]]","v":445537.4},{"$f":"(((AAMC_Raw_Data_for_FY22[[#This Row],[75th]]-AAMC_Raw_Data_for_FY22[[#This Row],[Median]])/25)*10) + AAMC_Raw_Data_for_FY22[[#This Row],[Median]]","v":453527.8},{"$f":"(((AAMC_Raw_Data_for_FY22[[#This Row],[75th]]-AAMC_Raw_Data_for_FY22[[#This Row],[Median]])/25)*15) + AAMC_Raw_Data_for_FY22[[#This Row],[Median]]","v":461518.2},{"$f":"(((AAMC_Raw_Data_for_FY22[[#This Row],[75th]]-AAMC_Raw_Data_for_FY22[[#This Row],[Median]])/25)*20) + AAMC_Raw_Data_for_FY22[[#This Row],[Median]]","v":469508.6},477499,{"$f":"(((AAMC_Raw_Data_for_FY22[[#This Row],[75th]]-AAMC_Raw_Data_for_FY22[[#This Row],[Median]])/25)*30) + AAMC_Raw_Data_for_FY22[[#This Row],[Median]]","v":485489.4},{"$f":"(((AAMC_Raw_Data_for_FY22[[#This Row],[75th]]-AAMC_Raw_Data_for_FY22[[#This Row],[Median]])/25)*35) + AAMC_Raw_Data_for_FY22[[#This Row],[Median]]","v":493479.8},{"$f":"(((AAMC_Raw_Data_for_FY22[[#This Row],[75th]]-AAMC_Raw_Data_for_FY22[[#This Row],[Median]])/25)*40) + AAMC_Raw_Data_for_FY22[[#This Row],[Median]]","v":501470.2}]
[{"$f":"AAMC_Raw_Data_for_FY22[[#This Row],[Source]]&AAMC_Raw_Data_for_FY22[[#This Row],[Type]]&AAMC_Raw_Data_for_FY22[[#This Row],[School Subset]]&AAMC_Raw_Data_for_FY22[[#This Row],[Rank]]&AAMC_Raw_Data_for_FY22[[#This Row],[Degree]]&AAMC_Raw_Data_for_FY22[[#This Row],[Department / Specialty]]&\"L\"","v":"AAMCAcademicAllInstructorMDMedicine TotalL"},"Medicine Total",5,"AAMC","Academic","All","Instructor","MD","2021-2022",166643,{"$f":"(((AAMC_Raw_Data_for_FY22[[#This Row],[Median]]-AAMC_Raw_Data_for_FY22[[#This Row],[25th]])/25)*5) + AAMC_Raw_Data_for_FY22[[#This Row],[25th]]","v":177234.2},{"$f":"(((AAMC_Raw_Data_for_FY22[[#This Row],[Median]]-AAMC_Raw_Data_for_FY22[[#This Row],[25th]])/25)*10) + AAMC_Raw_Data_for_FY22[[#This Row],[25th]]","v":187825.4},{"$f":"(((AAMC_Raw_Data_for_FY22[[#This Row],[Median]]-AAMC_Raw_Data_for_FY22[[#This Row],[25th]])/25)*15) + AAMC_Raw_Data_for_FY22[[#This Row],[25th]]","v":198416.6},{"$f":"(((AAMC_Raw_Data_for_FY22[[#This Row],[Median]]-AAMC_Raw_Data_for_FY22[[#This Row],[25th]])/25)*20) + AAMC_Raw_Data_for_FY22[[#This Row],[25th]]","v":209007.8},219599,{"$f":"(((AAMC_Raw_Data_for_FY22[[#This Row],[75th]]-AAMC_Raw_Data_for_FY22[[#This Row],[Median]])/25)*5) + AAMC_Raw_Data_for_FY22[[#This Row],[Median]]","v":228890.6},{"$f":"(((AAMC_Raw_Data_for_FY22[[#This Row],[75th]]-AAMC_Raw_Data_for_FY22[[#This Row],[Median]])/25)*10) + AAMC_Raw_Data_for_FY22[[#This Row],[Median]]","v":238182.2},{"$f":"(((AAMC_Raw_Data_for_FY22[[#This Row],[75th]]-AAMC_Raw_Data_for_FY22[[#This Row],[Median]])/25)*15) + AAMC_Raw_Data_for_FY22[[#This Row],[Median]]","v":247473.8},{"$f":"(((AAMC_Raw_Data_for_FY22[[#This Row],[75th]]-AAMC_Raw_Data_for_FY22[[#This Row],[Median]])/25)*20) + AAMC_Raw_Data_for_FY22[[#This Row],[Median]]","v":256765.4},266057,{"$f":"(((AAMC_Raw_Data_for_FY22[[#This Row],[75th]]-AAMC_Raw_Data_for_FY22[[#This Row],[Median]])/25)*30) + AAMC_Raw_Data_for_FY22[[#This Row],[Median]]","v":275348.59999999998},{"$f":"(((AAMC_Raw_Data_for_FY22[[#This Row],[75th]]-AAMC_Raw_Data_for_FY22[[#This Row],[Median]])/25)*35) + AAMC_Raw_Data_for_FY22[[#This Row],[Median]]","v":284640.2},{"$f":"(((AAMC_Raw_Data_for_FY22[[#This Row],[75th]]-AAMC_Raw_Data_for_FY22[[#This Row],[Median]])/25)*40) + AAMC_Raw_Data_for_FY22[[#This Row],[Median]]","v":293931.8}]
[{"$f":"AAMC_Raw_Data_for_FY22[[#This Row],[Source]]&AAMC_Raw_Data_for_FY22[[#This Row],[Type]]&AAMC_Raw_Data_for_FY22[[#This Row],[School Subset]]&AAMC_Raw_Data_for_FY22[[#This Row],[Rank]]&AAMC_Raw_Data_for_FY22[[#This Row],[Degree]]&AAMC_Raw_Data_for_FY22[[#This Row],[Department / Specialty]]&\"L\"","v":"AAMCAcademicAllAssistantMDMedicine TotalL"},"Medicine Total",4,"AAMC","Academic","All","Assistant","MD","2021-2022",217017,{"$f":"(((AAMC_Raw_Data_for_FY22[[#This Row],[Median]]-AAMC_Raw_Data_for_FY22[[#This Row],[25th]])/25)*5) + AAMC_Raw_Data_for_FY22[[#This Row],[25th]]","v":225657.2},{"$f":"(((AAMC_Raw_Data_for_FY22[[#This Row],[Median]]-AAMC_Raw_Data_for_FY22[[#This Row],[25th]])/25)*10) + AAMC_Raw_Data_for_FY22[[#This Row],[25th]]","v":234297.4},{"$f":"(((AAMC_Raw_Data_for_FY22[[#This Row],[Median]]-AAMC_Raw_Data_for_FY22[[#This Row],[25th]])/25)*15) + AAMC_Raw_Data_for_FY22[[#This Row],[25th]]","v":242937.60000000001},{"$f":"(((AAMC_Raw_Data_for_FY22[[#This Row],[Median]]-AAMC_Raw_Data_for_FY22[[#This Row],[25th]])/25)*20) + AAMC_Raw_Data_for_FY22[[#This Row],[25th]]","v":251577.8},260218,{"$f":"(((AAMC_Raw_Data_for_FY22[[#This Row],[75th]]-AAMC_Raw_Data_for_FY22[[#This Row],[Median]])/25)*5) + AAMC_Raw_Data_for_FY22[[#This Row],[Median]]","v":274114.59999999998},{"$f":"(((AAMC_Raw_Data_for_FY22[[#This Row],[75th]]-AAMC_Raw_Data_for_FY22[[#This Row],[Median]])/25)*10) + AAMC_Raw_Data_for_FY22[[#This Row],[Median]]","v":288011.2},{"$f":"(((AAMC_Raw_Data_for_FY22[[#This Row],[75th]]-AAMC_Raw_Data_for_FY22[[#This Row],[Median]])/25)*15) + AAMC_Raw_Data_for_FY22[[#This Row],[Median]]","v":301907.8},{"$f":"(((AAMC_Raw_Data_for_FY22[[#This Row],[75th]]-AAMC_Raw_Data_for_FY22[[#This Row],[Median]])/25)*20) + AAMC_Raw_Data_for_FY22[[#This Row],[Median]]","v":315804.40000000002},329701,{"$f":"(((AAMC_Raw_Data_for_FY22[[#This Row],[75th]]-AAMC_Raw_Data_for_FY22[[#This Row],[Median]])/25)*30) + AAMC_Raw_Data_for_FY22[[#This Row],[Median]]","v":343597.6},{"$f":"(((AAMC_Raw_Data_for_FY22[[#This Row],[75th]]-AAMC_Raw_Data_for_FY22[[#This Row],[Median]])/25)*35) + AAMC_Raw_Data_for_FY22[[#This Row],[Median]]","v":357494.2},{"$f":"(((AAMC_Raw_Data_for_FY22[[#This Row],[75th]]-AAMC_Raw_Data_for_FY22[[#This Row],[Median]])/25)*40) + AAMC_Raw_Data_for_FY22[[#This Row],[Median]]","v":371390.8}]
[{"$f":"AAMC_Raw_Data_for_FY22[[#This Row],[Source]]&AAMC_Raw_Data_for_FY22[[#This Row],[Type]]&AAMC_Raw_Data_for_FY22[[#This Row],[School Subset]]&AAMC_Raw_Data_for_FY22[[#This Row],[Rank]]&AAMC_Raw_Data_for_FY22[[#This Row],[Degree]]&AAMC_Raw_Data_for_FY22[[#This Row],[Department / Specialty]]&\"L\"","v":"AAMCAcademicAllAssociateMDMedicine TotalL"},"Medicine Total",3,"AAMC","Academic","All","Associate","MD","2021-2022",240915,{"$f":"(((AAMC_Raw_Data_for_FY22[[#This Row],[Median]]-AAMC_Raw_Data_for_FY22[[#This Row],[25th]])/25)*5) + AAMC_Raw_Data_for_FY22[[#This Row],[25th]]","v":252136.4},{"$f":"(((AAMC_Raw_Data_for_FY22[[#This Row],[Median]]-AAMC_Raw_Data_for_FY22[[#This Row],[25th]])/25)*10) + AAMC_Raw_Data_for_FY22[[#This Row],[25th]]","v":263357.8},{"$f":"(((AAMC_Raw_Data_for_FY22[[#This Row],[Median]]-AAMC_Raw_Data_for_FY22[[#This Row],[25th]])/25)*15) + AAMC_Raw_Data_for_FY22[[#This Row],[25th]]","v":274579.20000000001},{"$f":"(((AAMC_Raw_Data_for_FY22[[#This Row],[Median]]-AAMC_Raw_Data_for_FY22[[#This Row],[25th]])/25)*20) + AAMC_Raw_Data_for_FY22[[#This Row],[25th]]","v":285800.59999999998},297022,{"$f":"(((AAMC_Raw_Data_for_FY22[[#This Row],[75th]]-AAMC_Raw_Data_for_FY22[[#This Row],[Median]])/25)*5) + AAMC_Raw_Data_for_FY22[[#This Row],[Median]]","v":314712.40000000002},{"$f":"(((AAMC_Raw_Data_for_FY22[[#This Row],[75th]]-AAMC_Raw_Data_for_FY22[[#This Row],[Median]])/25)*10) + AAMC_Raw_Data_for_FY22[[#This Row],[Median]]","v":332402.8},{"$f":"(((AAMC_Raw_Data_for_FY22[[#This Row],[75th]]-AAMC_Raw_Data_for_FY22[[#This Row],[Median]])/25)*15) + AAMC_Raw_Data_for_FY22[[#This Row],[Median]]","v":350093.2},{"$f":"(((AAMC_Raw_Data_for_FY22[[#This Row],[75th]]-AAMC_Raw_Data_for_FY22[[#This Row],[Median]])/25)*20) + AAMC_Raw_Data_for_FY22[[#This Row],[Median]]","v":367783.6},385474,{"$f":"(((AAMC_Raw_Data_for_FY22[[#This Row],[75th]]-AAMC_Raw_Data_for_FY22[[#This Row],[Median]])/25)*30) + AAMC_Raw_Data_for_FY22[[#This Row],[Median]]","v":403164.4},{"$f":"(((AAMC_Raw_Data_for_FY22[[#This Row],[75th]]-AAMC_Raw_Data_for_FY22[[#This Row],[Median]])/25)*35) + AAMC_Raw_Data_for_FY22[[#This Row],[Median]]","v":420854.8},{"$f":"(((AAMC_Raw_Data_for_FY22[[#This Row],[75th]]-AAMC_Raw_Data_for_FY22[[#This Row],[Median]])/25)*40) + AAMC_Raw_Data_for_FY22[[#This Row],[Median]]","v":438545.2}]
[{"$f":"AAMC_Raw_Data_for_FY22[[#This Row],[Source]]&AAMC_Raw_Data_for_FY22[[#This Row],[Type]]&AAMC_Raw_Data_for_FY22[[#This Row],[School Subset]]&AAMC_Raw_Data_for_FY22[[#This Row],[Rank]]&AAMC_Raw_Data_for_FY22[[#This Row],[Degree]]&AAMC_Raw_Data_for_FY22[[#This Row],[Department / Specialty]]&\"L\"","v":"AAMCAcademicAllProfessorMDMedicine TotalL"},"Medicine Total",2,"AAMC","Academic","All","Professor","MD","2021-2022",275396,{"$f":"(((AAMC_Raw_Data_for_FY22[[#This Row],[Median]]-AAMC_Raw_Data_for_FY22[[#This Row],[25th]])/25)*5) + AAMC_Raw_Data_for_FY22[[#This Row],[25th]]","v":289084.79999999999},{"$f":"(((AAMC_Raw_Data_for_FY22[[#This Row],[Median]]-AAMC_Raw_Data_for_FY22[[#This Row],[25th]])/25)*10) + AAMC_Raw_Data_for_FY22[[#This Row],[25th]]","v":302773.59999999998},{"$f":"(((AAMC_Raw_Data_for_FY22[[#This Row],[Median]]-AAMC_Raw_Data_for_FY22[[#This Row],[25th]])/25)*15) + AAMC_Raw_Data_for_FY22[[#This Row],[25th]]","v":316462.40000000002},{"$f":"(((AAMC_Raw_Data_for_FY22[[#This Row],[Median]]-AAMC_Raw_Data_for_FY22[[#This Row],[25th]])/25)*20) + AAMC_Raw_Data_for_FY22[[#This Row],[25th]]","v":330151.2},343840,{"$f":"(((AAMC_Raw_Data_for_FY22[[#This Row],[75th]]-AAMC_Raw_Data_for_FY22[[#This Row],[Median]])/25)*5) + AAMC_Raw_Data_for_FY22[[#This Row],[Median]]","v":364196.4},{"$f":"(((AAMC_Raw_Data_for_FY22[[#This Row],[75th]]-AAMC_Raw_Data_for_FY22[[#This Row],[Median]])/25)*10) + AAMC_Raw_Data_for_FY22[[#This Row],[Median]]","v":384552.8},{"$f":"(((AAMC_Raw_Data_for_FY22[[#This Row],[75th]]-AAMC_Raw_Data_for_FY22[[#This Row],[Median]])/25)*15) + AAMC_Raw_Data_for_FY22[[#This Row],[Median]]","v":404909.2},{"$f":"(((AAMC_Raw_Data_for_FY22[[#This Row],[75th]]-AAMC_Raw_Data_for_FY22[[#This Row],[Median]])/25)*20) + AAMC_Raw_Data_for_FY22[[#This Row],[Median]]","v":425265.6},445622,{"$f":"(((AAMC_Raw_Data_for_FY22[[#This Row],[75th]]-AAMC_Raw_Data_for_FY22[[#This Row],[Median]])/25)*30) + AAMC_Raw_Data_for_FY22[[#This Row],[Median]]","v":465978.4},{"$f":"(((AAMC_Raw_Data_for_FY22[[#This Row],[75th]]-AAMC_Raw_Data_for_FY22[[#This Row],[Median]])/25)*35) + AAMC_Raw_Data_for_FY22[[#This Row],[Median]]","v":486334.80000000005},{"$f":"(((AAMC_Raw_Data_for_FY22[[#This Row],[75th]]-AAMC_Raw_Data_for_FY22[[#This Row],[Median]])/25)*40) + AAMC_Raw_Data_for_FY22[[#This Row],[Median]]","v":506691.2}]
[{"$f":"AAMC_Raw_Data_for_FY22[[#This Row],[Source]]&AAMC_Raw_Data_for_FY22[[#This Row],[Type]]&AAMC_Raw_Data_for_FY22[[#This Row],[School Subset]]&AAMC_Raw_Data_for_FY22[[#This Row],[Rank]]&AAMC_Raw_Data_for_FY22[[#This Row],[Degree]]&AAMC_Raw_Data_for_FY22[[#This Row],[Department / Specialty]]&\"L\"","v":"AAMCAcademicAllChiefMDMedicine TotalL"},"Medicine Total",6,"AAMC","Academic","All","Chief","MD","2021-2022",321060,{"$f":"(((AAMC_Raw_Data_for_FY22[[#This Row],[Median]]-AAMC_Raw_Data_for_FY22[[#This Row],[25th]])/25)*5) + AAMC_Raw_Data_for_FY22[[#This Row],[25th]]","v":335546.6},{"$f":"(((AAMC_Raw_Data_for_FY22[[#This Row],[Median]]-AAMC_Raw_Data_for_FY22[[#This Row],[25th]])/25)*10) + AAMC_Raw_Data_for_FY22[[#This Row],[25th]]","v":350033.2},{"$f":"(((AAMC_Raw_Data_for_FY22[[#This Row],[Median]]-AAMC_Raw_Data_for_FY22[[#This Row],[25th]])/25)*15) + AAMC_Raw_Data_for_FY22[[#This Row],[25th]]","v":364519.8},{"$f":"(((AAMC_Raw_Data_for_FY22[[#This Row],[Median]]-AAMC_Raw_Data_for_FY22[[#This Row],[25th]])/25)*20) + AAMC_Raw_Data_for_FY22[[#This Row],[25th]]","v":379006.4},393493,{"$f":"(((AAMC_Raw_Data_for_FY22[[#This Row],[75th]]-AAMC_Raw_Data_for_FY22[[#This Row],[Median]])/25)*5) + AAMC_Raw_Data_for_FY22[[#This Row],[Median]]","v":415266.8},{"$f":"(((AAMC_Raw_Data_for_FY22[[#This Row],[75th]]-AAMC_Raw_Data_for_FY22[[#This Row],[Median]])/25)*10) + AAMC_Raw_Data_for_FY22[[#This Row],[Median]]","v":437040.6},{"$f":"(((AAMC_Raw_Data_for_FY22[[#This Row],[75th]]-AAMC_Raw_Data_for_FY22[[#This Row],[Median]])/25)*15) + AAMC_Raw_Data_for_FY22[[#This Row],[Median]]","v":458814.4},{"$f":"(((AAMC_Raw_Data_for_FY22[[#This Row],[75th]]-AAMC_Raw_Data_for_FY22[[#This Row],[Median]])/25)*20) + AAMC_Raw_Data_for_FY22[[#This Row],[Median]]","v":480588.2},502362,{"$f":"(((AAMC_Raw_Data_for_FY22[[#This Row],[75th]]-AAMC_Raw_Data_for_FY22[[#This Row],[Median]])/25)*30) + AAMC_Raw_Data_for_FY22[[#This Row],[Median]]","v":524135.8},{"$f":"(((AAMC_Raw_Data_for_FY22[[#This Row],[75th]]-AAMC_Raw_Data_for_FY22[[#This Row],[Median]])/25)*35) + AAMC_Raw_Data_for_FY22[[#This Row],[Median]]","v":545909.6},{"$f":"(((AAMC_Raw_Data_for_FY22[[#This Row],[75th]]-AAMC_Raw_Data_for_FY22[[#This Row],[Median]])/25)*40) + AAMC_Raw_Data_for_FY22[[#This Row],[Median]]","v":567683.4}]
[{"$f":"AAMC_Raw_Data_for_FY22[[#This Row],[Source]]&AAMC_Raw_Data_for_FY22[[#This Row],[Type]]&AAMC_Raw_Data_for_FY22[[#This Row],[School Subset]]&AAMC_Raw_Data_for_FY22[[#This Row],[Rank]]&AAMC_Raw_Data_for_FY22[[#This Row],[Degree]]&AAMC_Raw_Data_for_FY22[[#This Row],[Department / Specialty]]&\"L\"","v":"AAMCAcademicAllChairMDMedicine TotalL"},"Medicine Total",1,"AAMC","Academic","All","Chair","MD","2021-2022",459466,{"$f":"(((AAMC_Raw_Data_for_FY22[[#This Row],[Median]]-AAMC_Raw_Data_for_FY22[[#This Row],[25th]])/25)*5) + AAMC_Raw_Data_for_FY22[[#This Row],[25th]]","v":492037.4},{"$f":"(((AAMC_Raw_Data_for_FY22[[#This Row],[Median]]-AAMC_Raw_Data_for_FY22[[#This Row],[25th]])/25)*10) + AAMC_Raw_Data_for_FY22[[#This Row],[25th]]","v":524608.80000000005},{"$f":"(((AAMC_Raw_Data_for_FY22[[#This Row],[Median]]-AAMC_Raw_Data_for_FY22[[#This Row],[25th]])/25)*15) + AAMC_Raw_Data_for_FY22[[#This Row],[25th]]","v":557180.19999999995},{"$f":"(((AAMC_Raw_Data_for_FY22[[#This Row],[Median]]-AAMC_Raw_Data_for_FY22[[#This Row],[25th]])/25)*20) + AAMC_Raw_Data_for_FY22[[#This Row],[25th]]","v":589751.6},622323,{"$f":"(((AAMC_Raw_Data_for_FY22[[#This Row],[75th]]-AAMC_Raw_Data_for_FY22[[#This Row],[Median]])/25)*5) + AAMC_Raw_Data_for_FY22[[#This Row],[Median]]","v":655029.4},{"$f":"(((AAMC_Raw_Data_for_FY22[[#This Row],[75th]]-AAMC_Raw_Data_for_FY22[[#This Row],[Median]])/25)*10) + AAMC_Raw_Data_for_FY22[[#This Row],[Median]]","v":687735.8},{"$f":"(((AAMC_Raw_Data_for_FY22[[#This Row],[75th]]-AAMC_Raw_Data_for_FY22[[#This Row],[Median]])/25)*15) + AAMC_Raw_Data_for_FY22[[#This Row],[Median]]","v":720442.2},{"$f":"(((AAMC_Raw_Data_for_FY22[[#This Row],[75th]]-AAMC_Raw_Data_for_FY22[[#This Row],[Median]])/25)*20) + AAMC_Raw_Data_for_FY22[[#This Row],[Median]]","v":753148.6},785855,{"$f":"(((AAMC_Raw_Data_for_FY22[[#This Row],[75th]]-AAMC_Raw_Data_for_FY22[[#This Row],[Median]])/25)*30) + AAMC_Raw_Data_for_FY22[[#This Row],[Median]]","v":818561.4},{"$f":"(((AAMC_Raw_Data_for_FY22[[#This Row],[75th]]-AAMC_Raw_Data_for_FY22[[#This Row],[Median]])/25)*35) + AAMC_Raw_Data_for_FY22[[#This Row],[Median]]","v":851267.8},{"$f":"(((AAMC_Raw_Data_for_FY22[[#This Row],[75th]]-AAMC_Raw_Data_for_FY22[[#This Row],[Median]])/25)*40) + AAMC_Raw_Data_for_FY22[[#This Row],[Median]]","v":883974.2}]
[{"$f":"AAMC_Raw_Data_for_FY22[[#This Row],[Source]]&AAMC_Raw_Data_for_FY22[[#This Row],[Type]]&AAMC_Raw_Data_for_FY22[[#This Row],[School Subset]]&AAMC_Raw_Data_for_FY22[[#This Row],[Rank]]&AAMC_Raw_Data_for_FY22[[#This Row],[Degree]]&AAMC_Raw_Data_for_FY22[[#This Row],[Department / Specialty]]&\"L\"","v":"AAMCAcademicAllInstructorMDAllergy/Immunology-Med.L"},"Allergy/Immunology-Med.",5,"AAMC","Academic","All","Instructor","MD","2021-2022",119265,{"$f":"(((AAMC_Raw_Data_for_FY22[[#This Row],[Median]]-AAMC_Raw_Data_for_FY22[[#This Row],[25th]])/25)*5) + AAMC_Raw_Data_for_FY22[[#This Row],[25th]]","v":126316},{"$f":"(((AAMC_Raw_Data_for_FY22[[#This Row],[Median]]-AAMC_Raw_Data_for_FY22[[#This Row],[25th]])/25)*10) + AAMC_Raw_Data_for_FY22[[#This Row],[25th]]","v":133367},{"$f":"(((AAMC_Raw_Data_for_FY22[[#This Row],[Median]]-AAMC_Raw_Data_for_FY22[[#This Row],[25th]])/25)*15) + AAMC_Raw_Data_for_FY22[[#This Row],[25th]]","v":140418},{"$f":"(((AAMC_Raw_Data_for_FY22[[#This Row],[Median]]-AAMC_Raw_Data_for_FY22[[#This Row],[25th]])/25)*20) + AAMC_Raw_Data_for_FY22[[#This Row],[25th]]","v":147469},154520,{"$f":"(((AAMC_Raw_Data_for_FY22[[#This Row],[75th]]-AAMC_Raw_Data_for_FY22[[#This Row],[Median]])/25)*5) + AAMC_Raw_Data_for_FY22[[#This Row],[Median]]","v":160841.60000000001},{"$f":"(((AAMC_Raw_Data_for_FY22[[#This Row],[75th]]-AAMC_Raw_Data_for_FY22[[#This Row],[Median]])/25)*10) + AAMC_Raw_Data_for_FY22[[#This Row],[Median]]","v":167163.20000000001},{"$f":"(((AAMC_Raw_Data_for_FY22[[#This Row],[75th]]-AAMC_Raw_Data_for_FY22[[#This Row],[Median]])/25)*15) + AAMC_Raw_Data_for_FY22[[#This Row],[Median]]","v":173484.79999999999},{"$f":"(((AAMC_Raw_Data_for_FY22[[#This Row],[75th]]-AAMC_Raw_Data_for_FY22[[#This Row],[Median]])/25)*20) + AAMC_Raw_Data_for_FY22[[#This Row],[Median]]","v":179806.4},186128,{"$f":"(((AAMC_Raw_Data_for_FY22[[#This Row],[75th]]-AAMC_Raw_Data_for_FY22[[#This Row],[Median]])/25)*30) + AAMC_Raw_Data_for_FY22[[#This Row],[Median]]","v":192449.6},{"$f":"(((AAMC_Raw_Data_for_FY22[[#This Row],[75th]]-AAMC_Raw_Data_for_FY22[[#This Row],[Median]])/25)*35) + AAMC_Raw_Data_for_FY22[[#This Row],[Median]]","v":198771.20000000001},{"$f":"(((AAMC_Raw_Data_for_FY22[[#This Row],[75th]]-AAMC_Raw_Data_for_FY22[[#This Row],[Median]])/25)*40) + AAMC_Raw_Data_for_FY22[[#This Row],[Median]]","v":205092.8}]
[{"$f":"AAMC_Raw_Data_for_FY22[[#This Row],[Source]]&AAMC_Raw_Data_for_FY22[[#This Row],[Type]]&AAMC_Raw_Data_for_FY22[[#This Row],[School Subset]]&AAMC_Raw_Data_for_FY22[[#This Row],[Rank]]&AAMC_Raw_Data_for_FY22[[#This Row],[Degree]]&AAMC_Raw_Data_for_FY22[[#This Row],[Department / Specialty]]&\"L\"","v":"AAMCAcademicAllAssistantMDAllergy/Immunology-Med.L"},"Allergy/Immunology-Med.",4,"AAMC","Academic","All","Assistant","MD","2021-2022",184053,{"$f":"(((AAMC_Raw_Data_for_FY22[[#This Row],[Median]]-AAMC_Raw_Data_for_FY22[[#This Row],[25th]])/25)*5) + AAMC_Raw_Data_for_FY22[[#This Row],[25th]]","v":190434.2},{"$f":"(((AAMC_Raw_Data_for_FY22[[#This Row],[Median]]-AAMC_Raw_Data_for_FY22[[#This Row],[25th]])/25)*10) + AAMC_Raw_Data_for_FY22[[#This Row],[25th]]","v":196815.4},{"$f":"(((AAMC_Raw_Data_for_FY22[[#This Row],[Median]]-AAMC_Raw_Data_for_FY22[[#This Row],[25th]])/25)*15) + AAMC_Raw_Data_for_FY22[[#This Row],[25th]]","v":203196.6},{"$f":"(((AAMC_Raw_Data_for_FY22[[#This Row],[Median]]-AAMC_Raw_Data_for_FY22[[#This Row],[25th]])/25)*20) + AAMC_Raw_Data_for_FY22[[#This Row],[25th]]","v":209577.8},215959,{"$f":"(((AAMC_Raw_Data_for_FY22[[#This Row],[75th]]-AAMC_Raw_Data_for_FY22[[#This Row],[Median]])/25)*5) + AAMC_Raw_Data_for_FY22[[#This Row],[Median]]","v":225915.4},{"$f":"(((AAMC_Raw_Data_for_FY22[[#This Row],[75th]]-AAMC_Raw_Data_for_FY22[[#This Row],[Median]])/25)*10) + AAMC_Raw_Data_for_FY22[[#This Row],[Median]]","v":235871.8},{"$f":"(((AAMC_Raw_Data_for_FY22[[#This Row],[75th]]-AAMC_Raw_Data_for_FY22[[#This Row],[Median]])/25)*15) + AAMC_Raw_Data_for_FY22[[#This Row],[Median]]","v":245828.2},{"$f":"(((AAMC_Raw_Data_for_FY22[[#This Row],[75th]]-AAMC_Raw_Data_for_FY22[[#This Row],[Median]])/25)*20) + AAMC_Raw_Data_for_FY22[[#This Row],[Median]]","v":255784.6},265741,{"$f":"(((AAMC_Raw_Data_for_FY22[[#This Row],[75th]]-AAMC_Raw_Data_for_FY22[[#This Row],[Median]])/25)*30) + AAMC_Raw_Data_for_FY22[[#This Row],[Median]]","v":275697.40000000002},{"$f":"(((AAMC_Raw_Data_for_FY22[[#This Row],[75th]]-AAMC_Raw_Data_for_FY22[[#This Row],[Median]])/25)*35) + AAMC_Raw_Data_for_FY22[[#This Row],[Median]]","v":285653.8},{"$f":"(((AAMC_Raw_Data_for_FY22[[#This Row],[75th]]-AAMC_Raw_Data_for_FY22[[#This Row],[Median]])/25)*40) + AAMC_Raw_Data_for_FY22[[#This Row],[Median]]","v":295610.2}]
[{"$f":"AAMC_Raw_Data_for_FY22[[#This Row],[Source]]&AAMC_Raw_Data_for_FY22[[#This Row],[Type]]&AAMC_Raw_Data_for_FY22[[#This Row],[School Subset]]&AAMC_Raw_Data_for_FY22[[#This Row],[Rank]]&AAMC_Raw_Data_for_FY22[[#This Row],[Degree]]&AAMC_Raw_Data_for_FY22[[#This Row],[Department / Specialty]]&\"L\"","v":"AAMCAcademicAllAssociateMDAllergy/Immunology-Med.L"},"Allergy/Immunology-Med.",3,"AAMC","Academic","All","Associate","MD","2021-2022",208063,{"$f":"(((AAMC_Raw_Data_for_FY22[[#This Row],[Median]]-AAMC_Raw_Data_for_FY22[[#This Row],[25th]])/25)*5) + AAMC_Raw_Data_for_FY22[[#This Row],[25th]]","v":215620},{"$f":"(((AAMC_Raw_Data_for_FY22[[#This Row],[Median]]-AAMC_Raw_Data_for_FY22[[#This Row],[25th]])/25)*10) + AAMC_Raw_Data_for_FY22[[#This Row],[25th]]","v":223177},{"$f":"(((AAMC_Raw_Data_for_FY22[[#This Row],[Median]]-AAMC_Raw_Data_for_FY22[[#This Row],[25th]])/25)*15) + AAMC_Raw_Data_for_FY22[[#This Row],[25th]]","v":230734},{"$f":"(((AAMC_Raw_Data_for_FY22[[#This Row],[Median]]-AAMC_Raw_Data_for_FY22[[#This Row],[25th]])/25)*20) + AAMC_Raw_Data_for_FY22[[#This Row],[25th]]","v":238291},245848,{"$f":"(((AAMC_Raw_Data_for_FY22[[#This Row],[75th]]-AAMC_Raw_Data_for_FY22[[#This Row],[Median]])/25)*5) + AAMC_Raw_Data_for_FY22[[#This Row],[Median]]","v":253333},{"$f":"(((AAMC_Raw_Data_for_FY22[[#This Row],[75th]]-AAMC_Raw_Data_for_FY22[[#This Row],[Median]])/25)*10) + AAMC_Raw_Data_for_FY22[[#This Row],[Median]]","v":260818},{"$f":"(((AAMC_Raw_Data_for_FY22[[#This Row],[75th]]-AAMC_Raw_Data_for_FY22[[#This Row],[Median]])/25)*15) + AAMC_Raw_Data_for_FY22[[#This Row],[Median]]","v":268303},{"$f":"(((AAMC_Raw_Data_for_FY22[[#This Row],[75th]]-AAMC_Raw_Data_for_FY22[[#This Row],[Median]])/25)*20) + AAMC_Raw_Data_for_FY22[[#This Row],[Median]]","v":275788},283273,{"$f":"(((AAMC_Raw_Data_for_FY22[[#This Row],[75th]]-AAMC_Raw_Data_for_FY22[[#This Row],[Median]])/25)*30) + AAMC_Raw_Data_for_FY22[[#This Row],[Median]]","v":290758},{"$f":"(((AAMC_Raw_Data_for_FY22[[#This Row],[75th]]-AAMC_Raw_Data_for_FY22[[#This Row],[Median]])/25)*35) + AAMC_Raw_Data_for_FY22[[#This Row],[Median]]","v":298243},{"$f":"(((AAMC_Raw_Data_for_FY22[[#This Row],[75th]]-AAMC_Raw_Data_for_FY22[[#This Row],[Median]])/25)*40) + AAMC_Raw_Data_for_FY22[[#This Row],[Median]]","v":305728}]
[{"$f":"AAMC_Raw_Data_for_FY22[[#This Row],[Source]]&AAMC_Raw_Data_for_FY22[[#This Row],[Type]]&AAMC_Raw_Data_for_FY22[[#This Row],[School Subset]]&AAMC_Raw_Data_for_FY22[[#This Row],[Rank]]&AAMC_Raw_Data_for_FY22[[#This Row],[Degree]]&AAMC_Raw_Data_for_FY22[[#This Row],[Department / Specialty]]&\"L\"","v":"AAMCAcademicAllProfessorMDAllergy/Immunology-Med.L"},"Allergy/Immunology-Med.",2,"AAMC","Academic","All","Professor","MD","2021-2022",217003,{"$f":"(((AAMC_Raw_Data_for_FY22[[#This Row],[Median]]-AAMC_Raw_Data_for_FY22[[#This Row],[25th]])/25)*5) + AAMC_Raw_Data_for_FY22[[#This Row],[25th]]","v":229900.4},{"$f":"(((AAMC_Raw_Data_for_FY22[[#This Row],[Median]]-AAMC_Raw_Data_for_FY22[[#This Row],[25th]])/25)*10) + AAMC_Raw_Data_for_FY22[[#This Row],[25th]]","v":242797.8},{"$f":"(((AAMC_Raw_Data_for_FY22[[#This Row],[Median]]-AAMC_Raw_Data_for_FY22[[#This Row],[25th]])/25)*15) + AAMC_Raw_Data_for_FY22[[#This Row],[25th]]","v":255695.2},{"$f":"(((AAMC_Raw_Data_for_FY22[[#This Row],[Median]]-AAMC_Raw_Data_for_FY22[[#This Row],[25th]])/25)*20) + AAMC_Raw_Data_for_FY22[[#This Row],[25th]]","v":268592.59999999998},281490,{"$f":"(((AAMC_Raw_Data_for_FY22[[#This Row],[75th]]-AAMC_Raw_Data_for_FY22[[#This Row],[Median]])/25)*5) + AAMC_Raw_Data_for_FY22[[#This Row],[Median]]","v":296332.79999999999},{"$f":"(((AAMC_Raw_Data_for_FY22[[#This Row],[75th]]-AAMC_Raw_Data_for_FY22[[#This Row],[Median]])/25)*10) + AAMC_Raw_Data_for_FY22[[#This Row],[Median]]","v":311175.59999999998},{"$f":"(((AAMC_Raw_Data_for_FY22[[#This Row],[75th]]-AAMC_Raw_Data_for_FY22[[#This Row],[Median]])/25)*15) + AAMC_Raw_Data_for_FY22[[#This Row],[Median]]","v":326018.40000000002},{"$f":"(((AAMC_Raw_Data_for_FY22[[#This Row],[75th]]-AAMC_Raw_Data_for_FY22[[#This Row],[Median]])/25)*20) + AAMC_Raw_Data_for_FY22[[#This Row],[Median]]","v":340861.2},355704,{"$f":"(((AAMC_Raw_Data_for_FY22[[#This Row],[75th]]-AAMC_Raw_Data_for_FY22[[#This Row],[Median]])/25)*30) + AAMC_Raw_Data_for_FY22[[#This Row],[Median]]","v":370546.8},{"$f":"(((AAMC_Raw_Data_for_FY22[[#This Row],[75th]]-AAMC_Raw_Data_for_FY22[[#This Row],[Median]])/25)*35) + AAMC_Raw_Data_for_FY22[[#This Row],[Median]]","v":385389.6},{"$f":"(((AAMC_Raw_Data_for_FY22[[#This Row],[75th]]-AAMC_Raw_Data_for_FY22[[#This Row],[Median]])/25)*40) + AAMC_Raw_Data_for_FY22[[#This Row],[Median]]","v":400232.4}]
[{"$f":"AAMC_Raw_Data_for_FY22[[#This Row],[Source]]&AAMC_Raw_Data_for_FY22[[#This Row],[Type]]&AAMC_Raw_Data_for_FY22[[#This Row],[School Subset]]&AAMC_Raw_Data_for_FY22[[#This Row],[Rank]]&AAMC_Raw_Data_for_FY22[[#This Row],[Degree]]&AAMC_Raw_Data_for_FY22[[#This Row],[Department / Specialty]]&\"L\"","v":"AAMCAcademicAllChiefMDAllergy/Immunology-Med.L"},"Allergy/Immunology-Med.",6,"AAMC","Academic","All","Chief","MD","2021-2022",265131,{"$f":"(((AAMC_Raw_Data_for_FY22[[#This Row],[Median]]-AAMC_Raw_Data_for_FY22[[#This Row],[25th]])/25)*5) + AAMC_Raw_Data_for_FY22[[#This Row],[25th]]","v":270192.8},{"$f":"(((AAMC_Raw_Data_for_FY22[[#This Row],[Median]]-AAMC_Raw_Data_for_FY22[[#This Row],[25th]])/25)*10) + AAMC_Raw_Data_for_FY22[[#This Row],[25th]]","v":275254.59999999998},{"$f":"(((AAMC_Raw_Data_for_FY22[[#This Row],[Median]]-AAMC_Raw_Data_for_FY22[[#This Row],[25th]])/25)*15) + AAMC_Raw_Data_for_FY22[[#This Row],[25th]]","v":280316.40000000002},{"$f":"(((AAMC_Raw_Data_for_FY22[[#This Row],[Median]]-AAMC_Raw_Data_for_FY22[[#This Row],[25th]])/25)*20) + AAMC_Raw_Data_for_FY22[[#This Row],[25th]]","v":285378.2},290440,{"$f":"(((AAMC_Raw_Data_for_FY22[[#This Row],[75th]]-AAMC_Raw_Data_for_FY22[[#This Row],[Median]])/25)*5) + AAMC_Raw_Data_for_FY22[[#This Row],[Median]]","v":308210.59999999998},{"$f":"(((AAMC_Raw_Data_for_FY22[[#This Row],[75th]]-AAMC_Raw_Data_for_FY22[[#This Row],[Median]])/25)*10) + AAMC_Raw_Data_for_FY22[[#This Row],[Median]]","v":325981.2},{"$f":"(((AAMC_Raw_Data_for_FY22[[#This Row],[75th]]-AAMC_Raw_Data_for_FY22[[#This Row],[Median]])/25)*15) + AAMC_Raw_Data_for_FY22[[#This Row],[Median]]","v":343751.8},{"$f":"(((AAMC_Raw_Data_for_FY22[[#This Row],[75th]]-AAMC_Raw_Data_for_FY22[[#This Row],[Median]])/25)*20) + AAMC_Raw_Data_for_FY22[[#This Row],[Median]]","v":361522.4},379293,{"$f":"(((AAMC_Raw_Data_for_FY22[[#This Row],[75th]]-AAMC_Raw_Data_for_FY22[[#This Row],[Median]])/25)*30) + AAMC_Raw_Data_for_FY22[[#This Row],[Median]]","v":397063.6},{"$f":"(((AAMC_Raw_Data_for_FY22[[#This Row],[75th]]-AAMC_Raw_Data_for_FY22[[#This Row],[Median]])/25)*35) + AAMC_Raw_Data_for_FY22[[#This Row],[Median]]","v":414834.2},{"$f":"(((AAMC_Raw_Data_for_FY22[[#This Row],[75th]]-AAMC_Raw_Data_for_FY22[[#This Row],[Median]])/25)*40) + AAMC_Raw_Data_for_FY22[[#This Row],[Median]]","v":432604.8}]
[{"$f":"AAMC_Raw_Data_for_FY22[[#This Row],[Source]]&AAMC_Raw_Data_for_FY22[[#This Row],[Type]]&AAMC_Raw_Data_for_FY22[[#This Row],[School Subset]]&AAMC_Raw_Data_for_FY22[[#This Row],[Rank]]&AAMC_Raw_Data_for_FY22[[#This Row],[Degree]]&AAMC_Raw_Data_for_FY22[[#This Row],[Department / Specialty]]&\"L\"","v":"AAMCAcademicAllInstructorMDCardiology TotalL"},"Cardiology Total",5,"AAMC","Academic","All","Instructor","MD","2021-2022",151000,{"$f":"(((AAMC_Raw_Data_for_FY22[[#This Row],[Median]]-AAMC_Raw_Data_for_FY22[[#This Row],[25th]])/25)*5) + AAMC_Raw_Data_for_FY22[[#This Row],[25th]]","v":166631},{"$f":"(((AAMC_Raw_Data_for_FY22[[#This Row],[Median]]-AAMC_Raw_Data_for_FY22[[#This Row],[25th]])/25)*10) + AAMC_Raw_Data_for_FY22[[#This Row],[25th]]","v":182262},{"$f":"(((AAMC_Raw_Data_for_FY22[[#This Row],[Median]]-AAMC_Raw_Data_for_FY22[[#This Row],[25th]])/25)*15) + AAMC_Raw_Data_for_FY22[[#This Row],[25th]]","v":197893},{"$f":"(((AAMC_Raw_Data_for_FY22[[#This Row],[Median]]-AAMC_Raw_Data_for_FY22[[#This Row],[25th]])/25)*20) + AAMC_Raw_Data_for_FY22[[#This Row],[25th]]","v":213524},229155,{"$f":"(((AAMC_Raw_Data_for_FY22[[#This Row],[75th]]-AAMC_Raw_Data_for_FY22[[#This Row],[Median]])/25)*5) + AAMC_Raw_Data_for_FY22[[#This Row],[Median]]","v":245363.4},{"$f":"(((AAMC_Raw_Data_for_FY22[[#This Row],[75th]]-AAMC_Raw_Data_for_FY22[[#This Row],[Median]])/25)*10) + AAMC_Raw_Data_for_FY22[[#This Row],[Median]]","v":261571.8},{"$f":"(((AAMC_Raw_Data_for_FY22[[#This Row],[75th]]-AAMC_Raw_Data_for_FY22[[#This Row],[Median]])/25)*15) + AAMC_Raw_Data_for_FY22[[#This Row],[Median]]","v":277780.2},{"$f":"(((AAMC_Raw_Data_for_FY22[[#This Row],[75th]]-AAMC_Raw_Data_for_FY22[[#This Row],[Median]])/25)*20) + AAMC_Raw_Data_for_FY22[[#This Row],[Median]]","v":293988.59999999998},310197,{"$f":"(((AAMC_Raw_Data_for_FY22[[#This Row],[75th]]-AAMC_Raw_Data_for_FY22[[#This Row],[Median]])/25)*30) + AAMC_Raw_Data_for_FY22[[#This Row],[Median]]","v":326405.40000000002},{"$f":"(((AAMC_Raw_Data_for_FY22[[#This Row],[75th]]-AAMC_Raw_Data_for_FY22[[#This Row],[Median]])/25)*35) + AAMC_Raw_Data_for_FY22[[#This Row],[Median]]","v":342613.8},{"$f":"(((AAMC_Raw_Data_for_FY22[[#This Row],[75th]]-AAMC_Raw_Data_for_FY22[[#This Row],[Median]])/25)*40) + AAMC_Raw_Data_for_FY22[[#This Row],[Median]]","v":358822.2}]
[{"$f":"AAMC_Raw_Data_for_FY22[[#This Row],[Source]]&AAMC_Raw_Data_for_FY22[[#This Row],[Type]]&AAMC_Raw_Data_for_FY22[[#This Row],[School Subset]]&AAMC_Raw_Data_for_FY22[[#This Row],[Rank]]&AAMC_Raw_Data_for_FY22[[#This Row],[Degree]]&AAMC_Raw_Data_for_FY22[[#This Row],[Department / Specialty]]&\"L\"","v":"AAMCAcademicAllAssistantMDCardiology TotalL"},"Cardiology Total",4,"AAMC","Academic","All","Assistant","MD","2021-2022",306876,{"$f":"(((AAMC_Raw_Data_for_FY22[[#This Row],[Median]]-AAMC_Raw_Data_for_FY22[[#This Row],[25th]])/25)*5) + AAMC_Raw_Data_for_FY22[[#This Row],[25th]]","v":321333.2},{"$f":"(((AAMC_Raw_Data_for_FY22[[#This Row],[Median]]-AAMC_Raw_Data_for_FY22[[#This Row],[25th]])/25)*10) + AAMC_Raw_Data_for_FY22[[#This Row],[25th]]","v":335790.4},{"$f":"(((AAMC_Raw_Data_for_FY22[[#This Row],[Median]]-AAMC_Raw_Data_for_FY22[[#This Row],[25th]])/25)*15) + AAMC_Raw_Data_for_FY22[[#This Row],[25th]]","v":350247.6},{"$f":"(((AAMC_Raw_Data_for_FY22[[#This Row],[Median]]-AAMC_Raw_Data_for_FY22[[#This Row],[25th]])/25)*20) + AAMC_Raw_Data_for_FY22[[#This Row],[25th]]","v":364704.8},379162,{"$f":"(((AAMC_Raw_Data_for_FY22[[#This Row],[75th]]-AAMC_Raw_Data_for_FY22[[#This Row],[Median]])/25)*5) + AAMC_Raw_Data_for_FY22[[#This Row],[Median]]","v":400359.4},{"$f":"(((AAMC_Raw_Data_for_FY22[[#This Row],[75th]]-AAMC_Raw_Data_for_FY22[[#This Row],[Median]])/25)*10) + AAMC_Raw_Data_for_FY22[[#This Row],[Median]]","v":421556.8},{"$f":"(((AAMC_Raw_Data_for_FY22[[#This Row],[75th]]-AAMC_Raw_Data_for_FY22[[#This Row],[Median]])/25)*15) + AAMC_Raw_Data_for_FY22[[#This Row],[Median]]","v":442754.2},{"$f":"(((AAMC_Raw_Data_for_FY22[[#This Row],[75th]]-AAMC_Raw_Data_for_FY22[[#This Row],[Median]])/25)*20) + AAMC_Raw_Data_for_FY22[[#This Row],[Median]]","v":463951.6},485149,{"$f":"(((AAMC_Raw_Data_for_FY22[[#This Row],[75th]]-AAMC_Raw_Data_for_FY22[[#This Row],[Median]])/25)*30) + AAMC_Raw_Data_for_FY22[[#This Row],[Median]]","v":506346.4},{"$f":"(((AAMC_Raw_Data_for_FY22[[#This Row],[75th]]-AAMC_Raw_Data_for_FY22[[#This Row],[Median]])/25)*35) + AAMC_Raw_Data_for_FY22[[#This Row],[Median]]","v":527543.80000000005},{"$f":"(((AAMC_Raw_Data_for_FY22[[#This Row],[75th]]-AAMC_Raw_Data_for_FY22[[#This Row],[Median]])/25)*40) + AAMC_Raw_Data_for_FY22[[#This Row],[Median]]","v":548741.19999999995}]
[{"$f":"AAMC_Raw_Data_for_FY22[[#This Row],[Source]]&AAMC_Raw_Data_for_FY22[[#This Row],[Type]]&AAMC_Raw_Data_for_FY22[[#This Row],[School Subset]]&AAMC_Raw_Data_for_FY22[[#This Row],[Rank]]&AAMC_Raw_Data_for_FY22[[#This Row],[Degree]]&AAMC_Raw_Data_for_FY22[[#This Row],[Department / Specialty]]&\"L\"","v":"AAMCAcademicAllAssociateMDCardiology TotalL"},"Cardiology Total",3,"AAMC","Academic","All","Associate","MD","2021-2022",348607,{"$f":"(((AAMC_Raw_Data_for_FY22[[#This Row],[Median]]-AAMC_Raw_Data_for_FY22[[#This Row],[25th]])/25)*5) + AAMC_Raw_Data_for_FY22[[#This Row],[25th]]","v":364743.2},{"$f":"(((AAMC_Raw_Data_for_FY22[[#This Row],[Median]]-AAMC_Raw_Data_for_FY22[[#This Row],[25th]])/25)*10) + AAMC_Raw_Data_for_FY22[[#This Row],[25th]]","v":380879.4},{"$f":"(((AAMC_Raw_Data_for_FY22[[#This Row],[Median]]-AAMC_Raw_Data_for_FY22[[#This Row],[25th]])/25)*15) + AAMC_Raw_Data_for_FY22[[#This Row],[25th]]","v":397015.6},{"$f":"(((AAMC_Raw_Data_for_FY22[[#This Row],[Median]]-AAMC_Raw_Data_for_FY22[[#This Row],[25th]])/25)*20) + AAMC_Raw_Data_for_FY22[[#This Row],[25th]]","v":413151.8},429288,{"$f":"(((AAMC_Raw_Data_for_FY22[[#This Row],[75th]]-AAMC_Raw_Data_for_FY22[[#This Row],[Median]])/25)*5) + AAMC_Raw_Data_for_FY22[[#This Row],[Median]]","v":451330},{"$f":"(((AAMC_Raw_Data_for_FY22[[#This Row],[75th]]-AAMC_Raw_Data_for_FY22[[#This Row],[Median]])/25)*10) + AAMC_Raw_Data_for_FY22[[#This Row],[Median]]","v":473372},{"$f":"(((AAMC_Raw_Data_for_FY22[[#This Row],[75th]]-AAMC_Raw_Data_for_FY22[[#This Row],[Median]])/25)*15) + AAMC_Raw_Data_for_FY22[[#This Row],[Median]]","v":495414},{"$f":"(((AAMC_Raw_Data_for_FY22[[#This Row],[75th]]-AAMC_Raw_Data_for_FY22[[#This Row],[Median]])/25)*20) + AAMC_Raw_Data_for_FY22[[#This Row],[Median]]","v":517456},539498,{"$f":"(((AAMC_Raw_Data_for_FY22[[#This Row],[75th]]-AAMC_Raw_Data_for_FY22[[#This Row],[Median]])/25)*30) + AAMC_Raw_Data_for_FY22[[#This Row],[Median]]","v":561540},{"$f":"(((AAMC_Raw_Data_for_FY22[[#This Row],[75th]]-AAMC_Raw_Data_for_FY22[[#This Row],[Median]])/25)*35) + AAMC_Raw_Data_for_FY22[[#This Row],[Median]]","v":583582},{"$f":"(((AAMC_Raw_Data_for_FY22[[#This Row],[75th]]-AAMC_Raw_Data_for_FY22[[#This Row],[Median]])/25)*40) + AAMC_Raw_Data_for_FY22[[#This Row],[Median]]","v":605624}]
[{"$f":"AAMC_Raw_Data_for_FY22[[#This Row],[Source]]&AAMC_Raw_Data_for_FY22[[#This Row],[Type]]&AAMC_Raw_Data_for_FY22[[#This Row],[School Subset]]&AAMC_Raw_Data_for_FY22[[#This Row],[Rank]]&AAMC_Raw_Data_for_FY22[[#This Row],[Degree]]&AAMC_Raw_Data_for_FY22[[#This Row],[Department / Specialty]]&\"L\"","v":"AAMCAcademicAllProfessorMDCardiology TotalL"},"Cardiology Total",2,"AAMC","Academic","All","Professor","MD","2021-2022",350640,{"$f":"(((AAMC_Raw_Data_for_FY22[[#This Row],[Median]]-AAMC_Raw_Data_for_FY22[[#This Row],[25th]])/25)*5) + AAMC_Raw_Data_for_FY22[[#This Row],[25th]]","v":368493.4},{"$f":"(((AAMC_Raw_Data_for_FY22[[#This Row],[Median]]-AAMC_Raw_Data_for_FY22[[#This Row],[25th]])/25)*10) + AAMC_Raw_Data_for_FY22[[#This Row],[25th]]","v":386346.8},{"$f":"(((AAMC_Raw_Data_for_FY22[[#This Row],[Median]]-AAMC_Raw_Data_for_FY22[[#This Row],[25th]])/25)*15) + AAMC_Raw_Data_for_FY22[[#This Row],[25th]]","v":404200.2},{"$f":"(((AAMC_Raw_Data_for_FY22[[#This Row],[Median]]-AAMC_Raw_Data_for_FY22[[#This Row],[25th]])/25)*20) + AAMC_Raw_Data_for_FY22[[#This Row],[25th]]","v":422053.6},439907,{"$f":"(((AAMC_Raw_Data_for_FY22[[#This Row],[75th]]-AAMC_Raw_Data_for_FY22[[#This Row],[Median]])/25)*5) + AAMC_Raw_Data_for_FY22[[#This Row],[Median]]","v":461000.6},{"$f":"(((AAMC_Raw_Data_for_FY22[[#This Row],[75th]]-AAMC_Raw_Data_for_FY22[[#This Row],[Median]])/25)*10) + AAMC_Raw_Data_for_FY22[[#This Row],[Median]]","v":482094.2},{"$f":"(((AAMC_Raw_Data_for_FY22[[#This Row],[75th]]-AAMC_Raw_Data_for_FY22[[#This Row],[Median]])/25)*15) + AAMC_Raw_Data_for_FY22[[#This Row],[Median]]","v":503187.8},{"$f":"(((AAMC_Raw_Data_for_FY22[[#This Row],[75th]]-AAMC_Raw_Data_for_FY22[[#This Row],[Median]])/25)*20) + AAMC_Raw_Data_for_FY22[[#This Row],[Median]]","v":524281.4},545375,{"$f":"(((AAMC_Raw_Data_for_FY22[[#This Row],[75th]]-AAMC_Raw_Data_for_FY22[[#This Row],[Median]])/25)*30) + AAMC_Raw_Data_for_FY22[[#This Row],[Median]]","v":566468.6},{"$f":"(((AAMC_Raw_Data_for_FY22[[#This Row],[75th]]-AAMC_Raw_Data_for_FY22[[#This Row],[Median]])/25)*35) + AAMC_Raw_Data_for_FY22[[#This Row],[Median]]","v":587562.19999999995},{"$f":"(((AAMC_Raw_Data_for_FY22[[#This Row],[75th]]-AAMC_Raw_Data_for_FY22[[#This Row],[Median]])/25)*40) + AAMC_Raw_Data_for_FY22[[#This Row],[Median]]","v":608655.80000000005}]
[{"$f":"AAMC_Raw_Data_for_FY22[[#This Row],[Source]]&AAMC_Raw_Data_for_FY22[[#This Row],[Type]]&AAMC_Raw_Data_for_FY22[[#This Row],[School Subset]]&AAMC_Raw_Data_for_FY22[[#This Row],[Rank]]&AAMC_Raw_Data_for_FY22[[#This Row],[Degree]]&AAMC_Raw_Data_for_FY22[[#This Row],[Department / Specialty]]&\"L\"","v":"AAMCAcademicAllChiefMDCardiology TotalL"},"Cardiology Total",6,"AAMC","Academic","All","Chief","MD","2021-2022",513379,{"$f":"(((AAMC_Raw_Data_for_FY22[[#This Row],[Median]]-AAMC_Raw_Data_for_FY22[[#This Row],[25th]])/25)*5) + AAMC_Raw_Data_for_FY22[[#This Row],[25th]]","v":532452.4},{"$f":"(((AAMC_Raw_Data_for_FY22[[#This Row],[Median]]-AAMC_Raw_Data_for_FY22[[#This Row],[25th]])/25)*10) + AAMC_Raw_Data_for_FY22[[#This Row],[25th]]","v":551525.80000000005},{"$f":"(((AAMC_Raw_Data_for_FY22[[#This Row],[Median]]-AAMC_Raw_Data_for_FY22[[#This Row],[25th]])/25)*15) + AAMC_Raw_Data_for_FY22[[#This Row],[25th]]","v":570599.19999999995},{"$f":"(((AAMC_Raw_Data_for_FY22[[#This Row],[Median]]-AAMC_Raw_Data_for_FY22[[#This Row],[25th]])/25)*20) + AAMC_Raw_Data_for_FY22[[#This Row],[25th]]","v":589672.6},608746,{"$f":"(((AAMC_Raw_Data_for_FY22[[#This Row],[75th]]-AAMC_Raw_Data_for_FY22[[#This Row],[Median]])/25)*5) + AAMC_Raw_Data_for_FY22[[#This Row],[Median]]","v":634436.19999999995},{"$f":"(((AAMC_Raw_Data_for_FY22[[#This Row],[75th]]-AAMC_Raw_Data_for_FY22[[#This Row],[Median]])/25)*10) + AAMC_Raw_Data_for_FY22[[#This Row],[Median]]","v":660126.4},{"$f":"(((AAMC_Raw_Data_for_FY22[[#This Row],[75th]]-AAMC_Raw_Data_for_FY22[[#This Row],[Median]])/25)*15) + AAMC_Raw_Data_for_FY22[[#This Row],[Median]]","v":685816.6},{"$f":"(((AAMC_Raw_Data_for_FY22[[#This Row],[75th]]-AAMC_Raw_Data_for_FY22[[#This Row],[Median]])/25)*20) + AAMC_Raw_Data_for_FY22[[#This Row],[Median]]","v":711506.8},737197,{"$f":"(((AAMC_Raw_Data_for_FY22[[#This Row],[75th]]-AAMC_Raw_Data_for_FY22[[#This Row],[Median]])/25)*30) + AAMC_Raw_Data_for_FY22[[#This Row],[Median]]","v":762887.2},{"$f":"(((AAMC_Raw_Data_for_FY22[[#This Row],[75th]]-AAMC_Raw_Data_for_FY22[[#This Row],[Median]])/25)*35) + AAMC_Raw_Data_for_FY22[[#This Row],[Median]]","v":788577.4},{"$f":"(((AAMC_Raw_Data_for_FY22[[#This Row],[75th]]-AAMC_Raw_Data_for_FY22[[#This Row],[Median]])/25)*40) + AAMC_Raw_Data_for_FY22[[#This Row],[Median]]","v":814267.6}]
[{"$f":"AAMC_Raw_Data_for_FY22[[#This Row],[Source]]&AAMC_Raw_Data_for_FY22[[#This Row],[Type]]&AAMC_Raw_Data_for_FY22[[#This Row],[School Subset]]&AAMC_Raw_Data_for_FY22[[#This Row],[Rank]]&AAMC_Raw_Data_for_FY22[[#This Row],[Degree]]&AAMC_Raw_Data_for_FY22[[#This Row],[Department / Specialty]]&\"L\"","v":"AAMCAcademicAllChairMDCardiology TotalL"},"Cardiology Total",1,"AAMC","Academic","All","Chair","MD","2021-2022",589206,{"$f":"(((AAMC_Raw_Data_for_FY22[[#This Row],[Median]]-AAMC_Raw_Data_for_FY22[[#This Row],[25th]])/25)*5) + AAMC_Raw_Data_for_FY22[[#This Row],[25th]]","v":610913.80000000005},{"$f":"(((AAMC_Raw_Data_for_FY22[[#This Row],[Median]]-AAMC_Raw_Data_for_FY22[[#This Row],[25th]])/25)*10) + AAMC_Raw_Data_for_FY22[[#This Row],[25th]]","v":632621.6},{"$f":"(((AAMC_Raw_Data_for_FY22[[#This Row],[Median]]-AAMC_Raw_Data_for_FY22[[#This Row],[25th]])/25)*15) + AAMC_Raw_Data_for_FY22[[#This Row],[25th]]","v":654329.4},{"$f":"(((AAMC_Raw_Data_for_FY22[[#This Row],[Median]]-AAMC_Raw_Data_for_FY22[[#This Row],[25th]])/25)*20) + AAMC_Raw_Data_for_FY22[[#This Row],[25th]]","v":676037.2},697745,{"$f":"(((AAMC_Raw_Data_for_FY22[[#This Row],[75th]]-AAMC_Raw_Data_for_FY22[[#This Row],[Median]])/25)*5) + AAMC_Raw_Data_for_FY22[[#This Row],[Median]]","v":725544},{"$f":"(((AAMC_Raw_Data_for_FY22[[#This Row],[75th]]-AAMC_Raw_Data_for_FY22[[#This Row],[Median]])/25)*10) + AAMC_Raw_Data_for_FY22[[#This Row],[Median]]","v":753343},{"$f":"(((AAMC_Raw_Data_for_FY22[[#This Row],[75th]]-AAMC_Raw_Data_for_FY22[[#This Row],[Median]])/25)*15) + AAMC_Raw_Data_for_FY22[[#This Row],[Median]]","v":781142},{"$f":"(((AAMC_Raw_Data_for_FY22[[#This Row],[75th]]-AAMC_Raw_Data_for_FY22[[#This Row],[Median]])/25)*20) + AAMC_Raw_Data_for_FY22[[#This Row],[Median]]","v":808941},836740,{"$f":"(((AAMC_Raw_Data_for_FY22[[#This Row],[75th]]-AAMC_Raw_Data_for_FY22[[#This Row],[Median]])/25)*30) + AAMC_Raw_Data_for_FY22[[#This Row],[Median]]","v":864539},{"$f":"(((AAMC_Raw_Data_for_FY22[[#This Row],[75th]]-AAMC_Raw_Data_for_FY22[[#This Row],[Median]])/25)*35) + AAMC_Raw_Data_for_FY22[[#This Row],[Median]]","v":892338},{"$f":"(((AAMC_Raw_Data_for_FY22[[#This Row],[75th]]-AAMC_Raw_Data_for_FY22[[#This Row],[Median]])/25)*40) + AAMC_Raw_Data_for_FY22[[#This Row],[Median]]","v":920137}]
[{"$f":"AAMC_Raw_Data_for_FY22[[#This Row],[Source]]&AAMC_Raw_Data_for_FY22[[#This Row],[Type]]&AAMC_Raw_Data_for_FY22[[#This Row],[School Subset]]&AAMC_Raw_Data_for_FY22[[#This Row],[Rank]]&AAMC_Raw_Data_for_FY22[[#This Row],[Degree]]&AAMC_Raw_Data_for_FY22[[#This Row],[Department / Specialty]]&\"L\"","v":"AAMCAcademicAllInstructorMDCardiology: Invasive Interventional-Med.L"},"Cardiology: Invasive Interventional-Med.",5,"AAMC","Academic","All","Instructor","MD","2021-2022",162556,{"$f":"(((AAMC_Raw_Data_for_FY22[[#This Row],[Median]]-AAMC_Raw_Data_for_FY22[[#This Row],[25th]])/25)*5) + AAMC_Raw_Data_for_FY22[[#This Row],[25th]]","v":198644.8},{"$f":"(((AAMC_Raw_Data_for_FY22[[#This Row],[Median]]-AAMC_Raw_Data_for_FY22[[#This Row],[25th]])/25)*10) + AAMC_Raw_Data_for_FY22[[#This Row],[25th]]","v":234733.6},{"$f":"(((AAMC_Raw_Data_for_FY22[[#This Row],[Median]]-AAMC_Raw_Data_for_FY22[[#This Row],[25th]])/25)*15) + AAMC_Raw_Data_for_FY22[[#This Row],[25th]]","v":270822.40000000002},{"$f":"(((AAMC_Raw_Data_for_FY22[[#This Row],[Median]]-AAMC_Raw_Data_for_FY22[[#This Row],[25th]])/25)*20) + AAMC_Raw_Data_for_FY22[[#This Row],[25th]]","v":306911.2},343000,{"$f":"(((AAMC_Raw_Data_for_FY22[[#This Row],[75th]]-AAMC_Raw_Data_for_FY22[[#This Row],[Median]])/25)*5) + AAMC_Raw_Data_for_FY22[[#This Row],[Median]]","v":364243.6},{"$f":"(((AAMC_Raw_Data_for_FY22[[#This Row],[75th]]-AAMC_Raw_Data_for_FY22[[#This Row],[Median]])/25)*10) + AAMC_Raw_Data_for_FY22[[#This Row],[Median]]","v":385487.2},{"$f":"(((AAMC_Raw_Data_for_FY22[[#This Row],[75th]]-AAMC_Raw_Data_for_FY22[[#This Row],[Median]])/25)*15) + AAMC_Raw_Data_for_FY22[[#This Row],[Median]]","v":406730.8},{"$f":"(((AAMC_Raw_Data_for_FY22[[#This Row],[75th]]-AAMC_Raw_Data_for_FY22[[#This Row],[Median]])/25)*20) + AAMC_Raw_Data_for_FY22[[#This Row],[Median]]","v":427974.40000000002},449218,{"$f":"(((AAMC_Raw_Data_for_FY22[[#This Row],[75th]]-AAMC_Raw_Data_for_FY22[[#This Row],[Median]])/25)*30) + AAMC_Raw_Data_for_FY22[[#This Row],[Median]]","v":470461.6},{"$f":"(((AAMC_Raw_Data_for_FY22[[#This Row],[75th]]-AAMC_Raw_Data_for_FY22[[#This Row],[Median]])/25)*35) + AAMC_Raw_Data_for_FY22[[#This Row],[Median]]","v":491705.2},{"$f":"(((AAMC_Raw_Data_for_FY22[[#This Row],[75th]]-AAMC_Raw_Data_for_FY22[[#This Row],[Median]])/25)*40) + AAMC_Raw_Data_for_FY22[[#This Row],[Median]]","v":512948.80000000005}]
[{"$f":"AAMC_Raw_Data_for_FY22[[#This Row],[Source]]&AAMC_Raw_Data_for_FY22[[#This Row],[Type]]&AAMC_Raw_Data_for_FY22[[#This Row],[School Subset]]&AAMC_Raw_Data_for_FY22[[#This Row],[Rank]]&AAMC_Raw_Data_for_FY22[[#This Row],[Degree]]&AAMC_Raw_Data_for_FY22[[#This Row],[Department / Specialty]]&\"L\"","v":"AAMCAcademicAllAssistantMDCardiology: Invasive Interventional-Med.L"},"Cardiology: Invasive Interventional-Med.",4,"AAMC","Academic","All","Assistant","MD","2021-2022",347994,{"$f":"(((AAMC_Raw_Data_for_FY22[[#This Row],[Median]]-AAMC_Raw_Data_for_FY22[[#This Row],[25th]])/25)*5) + AAMC_Raw_Data_for_FY22[[#This Row],[25th]]","v":361453.6},{"$f":"(((AAMC_Raw_Data_for_FY22[[#This Row],[Median]]-AAMC_Raw_Data_for_FY22[[#This Row],[25th]])/25)*10) + AAMC_Raw_Data_for_FY22[[#This Row],[25th]]","v":374913.2},{"$f":"(((AAMC_Raw_Data_for_FY22[[#This Row],[Median]]-AAMC_Raw_Data_for_FY22[[#This Row],[25th]])/25)*15) + AAMC_Raw_Data_for_FY22[[#This Row],[25th]]","v":388372.8},{"$f":"(((AAMC_Raw_Data_for_FY22[[#This Row],[Median]]-AAMC_Raw_Data_for_FY22[[#This Row],[25th]])/25)*20) + AAMC_Raw_Data_for_FY22[[#This Row],[25th]]","v":401832.4},415292,{"$f":"(((AAMC_Raw_Data_for_FY22[[#This Row],[75th]]-AAMC_Raw_Data_for_FY22[[#This Row],[Median]])/25)*5) + AAMC_Raw_Data_for_FY22[[#This Row],[Median]]","v":439743.6},{"$f":"(((AAMC_Raw_Data_for_FY22[[#This Row],[75th]]-AAMC_Raw_Data_for_FY22[[#This Row],[Median]])/25)*10) + AAMC_Raw_Data_for_FY22[[#This Row],[Median]]","v":464195.2},{"$f":"(((AAMC_Raw_Data_for_FY22[[#This Row],[75th]]-AAMC_Raw_Data_for_FY22[[#This Row],[Median]])/25)*15) + AAMC_Raw_Data_for_FY22[[#This Row],[Median]]","v":488646.8},{"$f":"(((AAMC_Raw_Data_for_FY22[[#This Row],[75th]]-AAMC_Raw_Data_for_FY22[[#This Row],[Median]])/25)*20) + AAMC_Raw_Data_for_FY22[[#This Row],[Median]]","v":513098.4},537550,{"$f":"(((AAMC_Raw_Data_for_FY22[[#This Row],[75th]]-AAMC_Raw_Data_for_FY22[[#This Row],[Median]])/25)*30) + AAMC_Raw_Data_for_FY22[[#This Row],[Median]]","v":562001.6},{"$f":"(((AAMC_Raw_Data_for_FY22[[#This Row],[75th]]-AAMC_Raw_Data_for_FY22[[#This Row],[Median]])/25)*35) + AAMC_Raw_Data_for_FY22[[#This Row],[Median]]","v":586453.19999999995},{"$f":"(((AAMC_Raw_Data_for_FY22[[#This Row],[75th]]-AAMC_Raw_Data_for_FY22[[#This Row],[Median]])/25)*40) + AAMC_Raw_Data_for_FY22[[#This Row],[Median]]","v":610904.80000000005}]
[{"$f":"AAMC_Raw_Data_for_FY22[[#This Row],[Source]]&AAMC_Raw_Data_for_FY22[[#This Row],[Type]]&AAMC_Raw_Data_for_FY22[[#This Row],[School Subset]]&AAMC_Raw_Data_for_FY22[[#This Row],[Rank]]&AAMC_Raw_Data_for_FY22[[#This Row],[Degree]]&AAMC_Raw_Data_for_FY22[[#This Row],[Department / Specialty]]&\"L\"","v":"AAMCAcademicAllAssociateMDCardiology: Invasive Interventional-Med.L"},"Cardiology: Invasive Interventional-Med.",3,"AAMC","Academic","All","Associate","MD","2021-2022",411102,{"$f":"(((AAMC_Raw_Data_for_FY22[[#This Row],[Median]]-AAMC_Raw_Data_for_FY22[[#This Row],[25th]])/25)*5) + AAMC_Raw_Data_for_FY22[[#This Row],[25th]]","v":424337.2},{"$f":"(((AAMC_Raw_Data_for_FY22[[#This Row],[Median]]-AAMC_Raw_Data_for_FY22[[#This Row],[25th]])/25)*10) + AAMC_Raw_Data_for_FY22[[#This Row],[25th]]","v":437572.4},{"$f":"(((AAMC_Raw_Data_for_FY22[[#This Row],[Median]]-AAMC_Raw_Data_for_FY22[[#This Row],[25th]])/25)*15) + AAMC_Raw_Data_for_FY22[[#This Row],[25th]]","v":450807.6},{"$f":"(((AAMC_Raw_Data_for_FY22[[#This Row],[Median]]-AAMC_Raw_Data_for_FY22[[#This Row],[25th]])/25)*20) + AAMC_Raw_Data_for_FY22[[#This Row],[25th]]","v":464042.8},477278,{"$f":"(((AAMC_Raw_Data_for_FY22[[#This Row],[75th]]-AAMC_Raw_Data_for_FY22[[#This Row],[Median]])/25)*5) + AAMC_Raw_Data_for_FY22[[#This Row],[Median]]","v":498963.20000000001},{"$f":"(((AAMC_Raw_Data_for_FY22[[#This Row],[75th]]-AAMC_Raw_Data_for_FY22[[#This Row],[Median]])/25)*10) + AAMC_Raw_Data_for_FY22[[#This Row],[Median]]","v":520648.4},{"$f":"(((AAMC_Raw_Data_for_FY22[[#This Row],[75th]]-AAMC_Raw_Data_for_FY22[[#This Row],[Median]])/25)*15) + AAMC_Raw_Data_for_FY22[[#This Row],[Median]]","v":542333.6},{"$f":"(((AAMC_Raw_Data_for_FY22[[#This Row],[75th]]-AAMC_Raw_Data_for_FY22[[#This Row],[Median]])/25)*20) + AAMC_Raw_Data_for_FY22[[#This Row],[Median]]","v":564018.80000000005},585704,{"$f":"(((AAMC_Raw_Data_for_FY22[[#This Row],[75th]]-AAMC_Raw_Data_for_FY22[[#This Row],[Median]])/25)*30) + AAMC_Raw_Data_for_FY22[[#This Row],[Median]]","v":607389.19999999995},{"$f":"(((AAMC_Raw_Data_for_FY22[[#This Row],[75th]]-AAMC_Raw_Data_for_FY22[[#This Row],[Median]])/25)*35) + AAMC_Raw_Data_for_FY22[[#This Row],[Median]]","v":629074.4},{"$f":"(((AAMC_Raw_Data_for_FY22[[#This Row],[75th]]-AAMC_Raw_Data_for_FY22[[#This Row],[Median]])/25)*40) + AAMC_Raw_Data_for_FY22[[#This Row],[Median]]","v":650759.6}]
[{"$f":"AAMC_Raw_Data_for_FY22[[#This Row],[Source]]&AAMC_Raw_Data_for_FY22[[#This Row],[Type]]&AAMC_Raw_Data_for_FY22[[#This Row],[School Subset]]&AAMC_Raw_Data_for_FY22[[#This Row],[Rank]]&AAMC_Raw_Data_for_FY22[[#This Row],[Degree]]&AAMC_Raw_Data_for_FY22[[#This Row],[Department / Specialty]]&\"L\"","v":"AAMCAcademicAllProfessorMDCardiology: Invasive Interventional-Med.L"},"Cardiology: Invasive Interventional-Med.",2,"AAMC","Academic","All","Professor","MD","2021-2022",410665,{"$f":"(((AAMC_Raw_Data_for_FY22[[#This Row],[Median]]-AAMC_Raw_Data_for_FY22[[#This Row],[25th]])/25)*5) + AAMC_Raw_Data_for_FY22[[#This Row],[25th]]","v":424783.2},{"$f":"(((AAMC_Raw_Data_for_FY22[[#This Row],[Median]]-AAMC_Raw_Data_for_FY22[[#This Row],[25th]])/25)*10) + AAMC_Raw_Data_for_FY22[[#This Row],[25th]]","v":438901.4},{"$f":"(((AAMC_Raw_Data_for_FY22[[#This Row],[Median]]-AAMC_Raw_Data_for_FY22[[#This Row],[25th]])/25)*15) + AAMC_Raw_Data_for_FY22[[#This Row],[25th]]","v":453019.6},{"$f":"(((AAMC_Raw_Data_for_FY22[[#This Row],[Median]]-AAMC_Raw_Data_for_FY22[[#This Row],[25th]])/25)*20) + AAMC_Raw_Data_for_FY22[[#This Row],[25th]]","v":467137.8},481256,{"$f":"(((AAMC_Raw_Data_for_FY22[[#This Row],[75th]]-AAMC_Raw_Data_for_FY22[[#This Row],[Median]])/25)*5) + AAMC_Raw_Data_for_FY22[[#This Row],[Median]]","v":507297.6},{"$f":"(((AAMC_Raw_Data_for_FY22[[#This Row],[75th]]-AAMC_Raw_Data_for_FY22[[#This Row],[Median]])/25)*10) + AAMC_Raw_Data_for_FY22[[#This Row],[Median]]","v":533339.19999999995},{"$f":"(((AAMC_Raw_Data_for_FY22[[#This Row],[75th]]-AAMC_Raw_Data_for_FY22[[#This Row],[Median]])/25)*15) + AAMC_Raw_Data_for_FY22[[#This Row],[Median]]","v":559380.80000000005},{"$f":"(((AAMC_Raw_Data_for_FY22[[#This Row],[75th]]-AAMC_Raw_Data_for_FY22[[#This Row],[Median]])/25)*20) + AAMC_Raw_Data_for_FY22[[#This Row],[Median]]","v":585422.4},611464,{"$f":"(((AAMC_Raw_Data_for_FY22[[#This Row],[75th]]-AAMC_Raw_Data_for_FY22[[#This Row],[Median]])/25)*30) + AAMC_Raw_Data_for_FY22[[#This Row],[Median]]","v":637505.6},{"$f":"(((AAMC_Raw_Data_for_FY22[[#This Row],[75th]]-AAMC_Raw_Data_for_FY22[[#This Row],[Median]])/25)*35) + AAMC_Raw_Data_for_FY22[[#This Row],[Median]]","v":663547.19999999995},{"$f":"(((AAMC_Raw_Data_for_FY22[[#This Row],[75th]]-AAMC_Raw_Data_for_FY22[[#This Row],[Median]])/25)*40) + AAMC_Raw_Data_for_FY22[[#This Row],[Median]]","v":689588.8}]
[{"$f":"AAMC_Raw_Data_for_FY22[[#This Row],[Source]]&AAMC_Raw_Data_for_FY22[[#This Row],[Type]]&AAMC_Raw_Data_for_FY22[[#This Row],[School Subset]]&AAMC_Raw_Data_for_FY22[[#This Row],[Rank]]&AAMC_Raw_Data_for_FY22[[#This Row],[Degree]]&AAMC_Raw_Data_for_FY22[[#This Row],[Department / Specialty]]&\"L\"","v":"AAMCAcademicAllChiefMDCardiology: Invasive Interventional-Med.L"},"Cardiology: Invasive Interventional-Med.",6,"AAMC","Academic","All","Chief","MD","2021-2022",554160,{"$f":"(((AAMC_Raw_Data_for_FY22[[#This Row],[Median]]-AAMC_Raw_Data_for_FY22[[#This Row],[25th]])/25)*5) + AAMC_Raw_Data_for_FY22[[#This Row],[25th]]","v":586569},{"$f":"(((AAMC_Raw_Data_for_FY22[[#This Row],[Median]]-AAMC_Raw_Data_for_FY22[[#This Row],[25th]])/25)*10) + AAMC_Raw_Data_for_FY22[[#This Row],[25th]]","v":618978},{"$f":"(((AAMC_Raw_Data_for_FY22[[#This Row],[Median]]-AAMC_Raw_Data_for_FY22[[#This Row],[25th]])/25)*15) + AAMC_Raw_Data_for_FY22[[#This Row],[25th]]","v":651387},{"$f":"(((AAMC_Raw_Data_for_FY22[[#This Row],[Median]]-AAMC_Raw_Data_for_FY22[[#This Row],[25th]])/25)*20) + AAMC_Raw_Data_for_FY22[[#This Row],[25th]]","v":683796},716205,{"$f":"(((AAMC_Raw_Data_for_FY22[[#This Row],[75th]]-AAMC_Raw_Data_for_FY22[[#This Row],[Median]])/25)*5) + AAMC_Raw_Data_for_FY22[[#This Row],[Median]]","v":740299.4},{"$f":"(((AAMC_Raw_Data_for_FY22[[#This Row],[75th]]-AAMC_Raw_Data_for_FY22[[#This Row],[Median]])/25)*10) + AAMC_Raw_Data_for_FY22[[#This Row],[Median]]","v":764393.8},{"$f":"(((AAMC_Raw_Data_for_FY22[[#This Row],[75th]]-AAMC_Raw_Data_for_FY22[[#This Row],[Median]])/25)*15) + AAMC_Raw_Data_for_FY22[[#This Row],[Median]]","v":788488.2},{"$f":"(((AAMC_Raw_Data_for_FY22[[#This Row],[75th]]-AAMC_Raw_Data_for_FY22[[#This Row],[Median]])/25)*20) + AAMC_Raw_Data_for_FY22[[#This Row],[Median]]","v":812582.6},836677,{"$f":"(((AAMC_Raw_Data_for_FY22[[#This Row],[75th]]-AAMC_Raw_Data_for_FY22[[#This Row],[Median]])/25)*30) + AAMC_Raw_Data_for_FY22[[#This Row],[Median]]","v":860771.4},{"$f":"(((AAMC_Raw_Data_for_FY22[[#This Row],[75th]]-AAMC_Raw_Data_for_FY22[[#This Row],[Median]])/25)*35) + AAMC_Raw_Data_for_FY22[[#This Row],[Median]]","v":884865.8},{"$f":"(((AAMC_Raw_Data_for_FY22[[#This Row],[75th]]-AAMC_Raw_Data_for_FY22[[#This Row],[Median]])/25)*40) + AAMC_Raw_Data_for_FY22[[#This Row],[Median]]","v":908960.2}]
[{"$f":"AAMC_Raw_Data_for_FY22[[#This Row],[Source]]&AAMC_Raw_Data_for_FY22[[#This Row],[Type]]&AAMC_Raw_Data_for_FY22[[#This Row],[School Subset]]&AAMC_Raw_Data_for_FY22[[#This Row],[Rank]]&AAMC_Raw_Data_for_FY22[[#This Row],[Degree]]&AAMC_Raw_Data_for_FY22[[#This Row],[Department / Specialty]]&\"L\"","v":"AAMCAcademicAllChairMDCardiology: Invasive Interventional-Med.L"},"Cardiology: Invasive Interventional-Med.",1,"AAMC","Academic","All","Chair","MD","2021-2022",614794,{"$f":"(((AAMC_Raw_Data_for_FY22[[#This Row],[Median]]-AAMC_Raw_Data_for_FY22[[#This Row],[25th]])/25)*5) + AAMC_Raw_Data_for_FY22[[#This Row],[25th]]","v":634835.19999999995},{"$f":"(((AAMC_Raw_Data_for_FY22[[#This Row],[Median]]-AAMC_Raw_Data_for_FY22[[#This Row],[25th]])/25)*10) + AAMC_Raw_Data_for_FY22[[#This Row],[25th]]","v":654876.4},{"$f":"(((AAMC_Raw_Data_for_FY22[[#This Row],[Median]]-AAMC_Raw_Data_for_FY22[[#This Row],[25th]])/25)*15) + AAMC_Raw_Data_for_FY22[[#This Row],[25th]]","v":674917.6},{"$f":"(((AAMC_Raw_Data_for_FY22[[#This Row],[Median]]-AAMC_Raw_Data_for_FY22[[#This Row],[25th]])/25)*20) + AAMC_Raw_Data_for_FY22[[#This Row],[25th]]","v":694958.8},715000,{"$f":"(((AAMC_Raw_Data_for_FY22[[#This Row],[75th]]-AAMC_Raw_Data_for_FY22[[#This Row],[Median]])/25)*5) + AAMC_Raw_Data_for_FY22[[#This Row],[Median]]","v":751914.2},{"$f":"(((AAMC_Raw_Data_for_FY22[[#This Row],[75th]]-AAMC_Raw_Data_for_FY22[[#This Row],[Median]])/25)*10) + AAMC_Raw_Data_for_FY22[[#This Row],[Median]]","v":788828.4},{"$f":"(((AAMC_Raw_Data_for_FY22[[#This Row],[75th]]-AAMC_Raw_Data_for_FY22[[#This Row],[Median]])/25)*15) + AAMC_Raw_Data_for_FY22[[#This Row],[Median]]","v":825742.6},{"$f":"(((AAMC_Raw_Data_for_FY22[[#This Row],[75th]]-AAMC_Raw_Data_for_FY22[[#This Row],[Median]])/25)*20) + AAMC_Raw_Data_for_FY22[[#This Row],[Median]]","v":862656.8},899571,{"$f":"(((AAMC_Raw_Data_for_FY22[[#This Row],[75th]]-AAMC_Raw_Data_for_FY22[[#This Row],[Median]])/25)*30) + AAMC_Raw_Data_for_FY22[[#This Row],[Median]]","v":936485.2},{"$f":"(((AAMC_Raw_Data_for_FY22[[#This Row],[75th]]-AAMC_Raw_Data_for_FY22[[#This Row],[Median]])/25)*35) + AAMC_Raw_Data_for_FY22[[#This Row],[Median]]","v":973399.4},{"$f":"(((AAMC_Raw_Data_for_FY22[[#This Row],[75th]]-AAMC_Raw_Data_for_FY22[[#This Row],[Median]])/25)*40) + AAMC_Raw_Data_for_FY22[[#This Row],[Median]]","v":1010313.6}]
[{"$f":"AAMC_Raw_Data_for_FY22[[#This Row],[Source]]&AAMC_Raw_Data_for_FY22[[#This Row],[Type]]&AAMC_Raw_Data_for_FY22[[#This Row],[School Subset]]&AAMC_Raw_Data_for_FY22[[#This Row],[Rank]]&AAMC_Raw_Data_for_FY22[[#This Row],[Degree]]&AAMC_Raw_Data_for_FY22[[#This Row],[Department / Specialty]]&\"L\"","v":"AAMCAcademicAllInstructorMDCardiology: Invasive Non-interventional-Med.L"},"Cardiology: Invasive Non-interventional-Med.",5,"AAMC","Academic","All","Instructor","MD","2021-2022",null,{"$f":"(((AAMC_Raw_Data_for_FY22[[#This Row],[Median]]-AAMC_Raw_Data_for_FY22[[#This Row],[25th]])/25)*5) + AAMC_Raw_Data_for_FY22[[#This Row],[25th]]","v":0},{"$f":"(((AAMC_Raw_Data_for_FY22[[#This Row],[Median]]-AAMC_Raw_Data_for_FY22[[#This Row],[25th]])/25)*10) + AAMC_Raw_Data_for_FY22[[#This Row],[25th]]","v":0},{"$f":"(((AAMC_Raw_Data_for_FY22[[#This Row],[Median]]-AAMC_Raw_Data_for_FY22[[#This Row],[25th]])/25)*15) + AAMC_Raw_Data_for_FY22[[#This Row],[25th]]","v":0},{"$f":"(((AAMC_Raw_Data_for_FY22[[#This Row],[Median]]-AAMC_Raw_Data_for_FY22[[#This Row],[25th]])/25)*20) + AAMC_Raw_Data_for_FY22[[#This Row],[25th]]","v":0},null,{"$f":"(((AAMC_Raw_Data_for_FY22[[#This Row],[75th]]-AAMC_Raw_Data_for_FY22[[#This Row],[Median]])/25)*5) + AAMC_Raw_Data_for_FY22[[#This Row],[Median]]","v":0},{"$f":"(((AAMC_Raw_Data_for_FY22[[#This Row],[75th]]-AAMC_Raw_Data_for_FY22[[#This Row],[Median]])/25)*10) + AAMC_Raw_Data_for_FY22[[#This Row],[Median]]","v":0},{"$f":"(((AAMC_Raw_Data_for_FY22[[#This Row],[75th]]-AAMC_Raw_Data_for_FY22[[#This Row],[Median]])/25)*15) + AAMC_Raw_Data_for_FY22[[#This Row],[Median]]","v":0},{"$f":"(((AAMC_Raw_Data_for_FY22[[#This Row],[75th]]-AAMC_Raw_Data_for_FY22[[#This Row],[Median]])/25)*20) + AAMC_Raw_Data_for_FY22[[#This Row],[Median]]","v":0},null,{"$f":"(((AAMC_Raw_Data_for_FY22[[#This Row],[75th]]-AAMC_Raw_Data_for_FY22[[#This Row],[Median]])/25)*30) + AAMC_Raw_Data_for_FY22[[#This Row],[Median]]","v":0},{"$f":"(((AAMC_Raw_Data_for_FY22[[#This Row],[75th]]-AAMC_Raw_Data_for_FY22[[#This Row],[Median]])/25)*35) + AAMC_Raw_Data_for_FY22[[#This Row],[Median]]","v":0},{"$f":"(((AAMC_Raw_Data_for_FY22[[#This Row],[75th]]-AAMC_Raw_Data_for_FY22[[#This Row],[Median]])/25)*40) + AAMC_Raw_Data_for_FY22[[#This Row],[Median]]","v":0}]
[{"$f":"AAMC_Raw_Data_for_FY22[[#This Row],[Source]]&AAMC_Raw_Data_for_FY22[[#This Row],[Type]]&AAMC_Raw_Data_for_FY22[[#This Row],[School Subset]]&AAMC_Raw_Data_for_FY22[[#This Row],[Rank]]&AAMC_Raw_Data_for_FY22[[#This Row],[Degree]]&AAMC_Raw_Data_for_FY22[[#This Row],[Department / Specialty]]&\"L\"","v":"AAMCAcademicAllAssistantMDCardiology: Invasive Non-interventional-Med.L"},"Cardiology: Invasive Non-interventional-Med.",4,"AAMC","Academic","All","Assistant","MD","2021-2022",330200,{"$f":"(((AAMC_Raw_Data_for_FY22[[#This Row],[Median]]-AAMC_Raw_Data_for_FY22[[#This Row],[25th]])/25)*5) + AAMC_Raw_Data_for_FY22[[#This Row],[25th]]","v":344160},{"$f":"(((AAMC_Raw_Data_for_FY22[[#This Row],[Median]]-AAMC_Raw_Data_for_FY22[[#This Row],[25th]])/25)*10) + AAMC_Raw_Data_for_FY22[[#This Row],[25th]]","v":358120},{"$f":"(((AAMC_Raw_Data_for_FY22[[#This Row],[Median]]-AAMC_Raw_Data_for_FY22[[#This Row],[25th]])/25)*15) + AAMC_Raw_Data_for_FY22[[#This Row],[25th]]","v":372080},{"$f":"(((AAMC_Raw_Data_for_FY22[[#This Row],[Median]]-AAMC_Raw_Data_for_FY22[[#This Row],[25th]])/25)*20) + AAMC_Raw_Data_for_FY22[[#This Row],[25th]]","v":386040},400000,{"$f":"(((AAMC_Raw_Data_for_FY22[[#This Row],[75th]]-AAMC_Raw_Data_for_FY22[[#This Row],[Median]])/25)*5) + AAMC_Raw_Data_for_FY22[[#This Row],[Median]]","v":424655},{"$f":"(((AAMC_Raw_Data_for_FY22[[#This Row],[75th]]-AAMC_Raw_Data_for_FY22[[#This Row],[Median]])/25)*10) + AAMC_Raw_Data_for_FY22[[#This Row],[Median]]","v":449310},{"$f":"(((AAMC_Raw_Data_for_FY22[[#This Row],[75th]]-AAMC_Raw_Data_for_FY22[[#This Row],[Median]])/25)*15) + AAMC_Raw_Data_for_FY22[[#This Row],[Median]]","v":473965},{"$f":"(((AAMC_Raw_Data_for_FY22[[#This Row],[75th]]-AAMC_Raw_Data_for_FY22[[#This Row],[Median]])/25)*20) + AAMC_Raw_Data_for_FY22[[#This Row],[Median]]","v":498620},523275,{"$f":"(((AAMC_Raw_Data_for_FY22[[#This Row],[75th]]-AAMC_Raw_Data_for_FY22[[#This Row],[Median]])/25)*30) + AAMC_Raw_Data_for_FY22[[#This Row],[Median]]","v":547930},{"$f":"(((AAMC_Raw_Data_for_FY22[[#This Row],[75th]]-AAMC_Raw_Data_for_FY22[[#This Row],[Median]])/25)*35) + AAMC_Raw_Data_for_FY22[[#This Row],[Median]]","v":572585},{"$f":"(((AAMC_Raw_Data_for_FY22[[#This Row],[75th]]-AAMC_Raw_Data_for_FY22[[#This Row],[Median]])/25)*40) + AAMC_Raw_Data_for_FY22[[#This Row],[Median]]","v":597240}]
[{"$f":"AAMC_Raw_Data_for_FY22[[#This Row],[Source]]&AAMC_Raw_Data_for_FY22[[#This Row],[Type]]&AAMC_Raw_Data_for_FY22[[#This Row],[School Subset]]&AAMC_Raw_Data_for_FY22[[#This Row],[Rank]]&AAMC_Raw_Data_for_FY22[[#This Row],[Degree]]&AAMC_Raw_Data_for_FY22[[#This Row],[Department / Specialty]]&\"L\"","v":"AAMCAcademicAllAssociateMDCardiology: Invasive Non-interventional-Med.L"},"Cardiology: Invasive Non-interventional-Med.",3,"AAMC","Academic","All","Associate","MD","2021-2022",372276,{"$f":"(((AAMC_Raw_Data_for_FY22[[#This Row],[Median]]-AAMC_Raw_Data_for_FY22[[#This Row],[25th]])/25)*5) + AAMC_Raw_Data_for_FY22[[#This Row],[25th]]","v":386894.8},{"$f":"(((AAMC_Raw_Data_for_FY22[[#This Row],[Median]]-AAMC_Raw_Data_for_FY22[[#This Row],[25th]])/25)*10) + AAMC_Raw_Data_for_FY22[[#This Row],[25th]]","v":401513.6},{"$f":"(((AAMC_Raw_Data_for_FY22[[#This Row],[Median]]-AAMC_Raw_Data_for_FY22[[#This Row],[25th]])/25)*15) + AAMC_Raw_Data_for_FY22[[#This Row],[25th]]","v":416132.4},{"$f":"(((AAMC_Raw_Data_for_FY22[[#This Row],[Median]]-AAMC_Raw_Data_for_FY22[[#This Row],[25th]])/25)*20) + AAMC_Raw_Data_for_FY22[[#This Row],[25th]]","v":430751.2},445370,{"$f":"(((AAMC_Raw_Data_for_FY22[[#This Row],[75th]]-AAMC_Raw_Data_for_FY22[[#This Row],[Median]])/25)*5) + AAMC_Raw_Data_for_FY22[[#This Row],[Median]]","v":466549.4},{"$f":"(((AAMC_Raw_Data_for_FY22[[#This Row],[75th]]-AAMC_Raw_Data_for_FY22[[#This Row],[Median]])/25)*10) + AAMC_Raw_Data_for_FY22[[#This Row],[Median]]","v":487728.8},{"$f":"(((AAMC_Raw_Data_for_FY22[[#This Row],[75th]]-AAMC_Raw_Data_for_FY22[[#This Row],[Median]])/25)*15) + AAMC_Raw_Data_for_FY22[[#This Row],[Median]]","v":508908.2},{"$f":"(((AAMC_Raw_Data_for_FY22[[#This Row],[75th]]-AAMC_Raw_Data_for_FY22[[#This Row],[Median]])/25)*20) + AAMC_Raw_Data_for_FY22[[#This Row],[Median]]","v":530087.6},551267,{"$f":"(((AAMC_Raw_Data_for_FY22[[#This Row],[75th]]-AAMC_Raw_Data_for_FY22[[#This Row],[Median]])/25)*30) + AAMC_Raw_Data_for_FY22[[#This Row],[Median]]","v":572446.4},{"$f":"(((AAMC_Raw_Data_for_FY22[[#This Row],[75th]]-AAMC_Raw_Data_for_FY22[[#This Row],[Median]])/25)*35) + AAMC_Raw_Data_for_FY22[[#This Row],[Median]]","v":593625.80000000005},{"$f":"(((AAMC_Raw_Data_for_FY22[[#This Row],[75th]]-AAMC_Raw_Data_for_FY22[[#This Row],[Median]])/25)*40) + AAMC_Raw_Data_for_FY22[[#This Row],[Median]]","v":614805.19999999995}]
[{"$f":"AAMC_Raw_Data_for_FY22[[#This Row],[Source]]&AAMC_Raw_Data_for_FY22[[#This Row],[Type]]&AAMC_Raw_Data_for_FY22[[#This Row],[School Subset]]&AAMC_Raw_Data_for_FY22[[#This Row],[Rank]]&AAMC_Raw_Data_for_FY22[[#This Row],[Degree]]&AAMC_Raw_Data_for_FY22[[#This Row],[Department / Specialty]]&\"L\"","v":"AAMCAcademicAllProfessorMDCardiology: Invasive Non-interventional-Med.L"},"Cardiology: Invasive Non-interventional-Med.",2,"AAMC","Academic","All","Professor","MD","2021-2022",386753,{"$f":"(((AAMC_Raw_Data_for_FY22[[#This Row],[Median]]-AAMC_Raw_Data_for_FY22[[#This Row],[25th]])/25)*5) + AAMC_Raw_Data_for_FY22[[#This Row],[25th]]","v":409260},{"$f":"(((AAMC_Raw_Data_for_FY22[[#This Row],[Median]]-AAMC_Raw_Data_for_FY22[[#This Row],[25th]])/25)*10) + AAMC_Raw_Data_for_FY22[[#This Row],[25th]]","v":431767},{"$f":"(((AAMC_Raw_Data_for_FY22[[#This Row],[Median]]-AAMC_Raw_Data_for_FY22[[#This Row],[25th]])/25)*15) + AAMC_Raw_Data_for_FY22[[#This Row],[25th]]","v":454274},{"$f":"(((AAMC_Raw_Data_for_FY22[[#This Row],[Median]]-AAMC_Raw_Data_for_FY22[[#This Row],[25th]])/25)*20) + AAMC_Raw_Data_for_FY22[[#This Row],[25th]]","v":476781},499288,{"$f":"(((AAMC_Raw_Data_for_FY22[[#This Row],[75th]]-AAMC_Raw_Data_for_FY22[[#This Row],[Median]])/25)*5) + AAMC_Raw_Data_for_FY22[[#This Row],[Median]]","v":513820},{"$f":"(((AAMC_Raw_Data_for_FY22[[#This Row],[75th]]-AAMC_Raw_Data_for_FY22[[#This Row],[Median]])/25)*10) + AAMC_Raw_Data_for_FY22[[#This Row],[Median]]","v":528352},{"$f":"(((AAMC_Raw_Data_for_FY22[[#This Row],[75th]]-AAMC_Raw_Data_for_FY22[[#This Row],[Median]])/25)*15) + AAMC_Raw_Data_for_FY22[[#This Row],[Median]]","v":542884},{"$f":"(((AAMC_Raw_Data_for_FY22[[#This Row],[75th]]-AAMC_Raw_Data_for_FY22[[#This Row],[Median]])/25)*20) + AAMC_Raw_Data_for_FY22[[#This Row],[Median]]","v":557416},571948,{"$f":"(((AAMC_Raw_Data_for_FY22[[#This Row],[75th]]-AAMC_Raw_Data_for_FY22[[#This Row],[Median]])/25)*30) + AAMC_Raw_Data_for_FY22[[#This Row],[Median]]","v":586480},{"$f":"(((AAMC_Raw_Data_for_FY22[[#This Row],[75th]]-AAMC_Raw_Data_for_FY22[[#This Row],[Median]])/25)*35) + AAMC_Raw_Data_for_FY22[[#This Row],[Median]]","v":601012},{"$f":"(((AAMC_Raw_Data_for_FY22[[#This Row],[75th]]-AAMC_Raw_Data_for_FY22[[#This Row],[Median]])/25)*40) + AAMC_Raw_Data_for_FY22[[#This Row],[Median]]","v":615544}]
[{"$f":"AAMC_Raw_Data_for_FY22[[#This Row],[Source]]&AAMC_Raw_Data_for_FY22[[#This Row],[Type]]&AAMC_Raw_Data_for_FY22[[#This Row],[School Subset]]&AAMC_Raw_Data_for_FY22[[#This Row],[Rank]]&AAMC_Raw_Data_for_FY22[[#This Row],[Degree]]&AAMC_Raw_Data_for_FY22[[#This Row],[Department / Specialty]]&\"L\"","v":"AAMCAcademicAllChiefMDCardiology: Invasive Non-interventional-Med.L"},"Cardiology: Invasive Non-interventional-Med.",6,"AAMC","Academic","All","Chief","MD","2021-2022",608618,{"$f":"(((AAMC_Raw_Data_for_FY22[[#This Row],[Median]]-AAMC_Raw_Data_for_FY22[[#This Row],[25th]])/25)*5) + AAMC_Raw_Data_for_FY22[[#This Row],[25th]]","v":615855.6},{"$f":"(((AAMC_Raw_Data_for_FY22[[#This Row],[Median]]-AAMC_Raw_Data_for_FY22[[#This Row],[25th]])/25)*10) + AAMC_Raw_Data_for_FY22[[#This Row],[25th]]","v":623093.19999999995},{"$f":"(((AAMC_Raw_Data_for_FY22[[#This Row],[Median]]-AAMC_Raw_Data_for_FY22[[#This Row],[25th]])/25)*15) + AAMC_Raw_Data_for_FY22[[#This Row],[25th]]","v":630330.80000000005},{"$f":"(((AAMC_Raw_Data_for_FY22[[#This Row],[Median]]-AAMC_Raw_Data_for_FY22[[#This Row],[25th]])/25)*20) + AAMC_Raw_Data_for_FY22[[#This Row],[25th]]","v":637568.4},644806,{"$f":"(((AAMC_Raw_Data_for_FY22[[#This Row],[75th]]-AAMC_Raw_Data_for_FY22[[#This Row],[Median]])/25)*5) + AAMC_Raw_Data_for_FY22[[#This Row],[Median]]","v":647001.80000000005},{"$f":"(((AAMC_Raw_Data_for_FY22[[#This Row],[75th]]-AAMC_Raw_Data_for_FY22[[#This Row],[Median]])/25)*10) + AAMC_Raw_Data_for_FY22[[#This Row],[Median]]","v":649197.6},{"$f":"(((AAMC_Raw_Data_for_FY22[[#This Row],[75th]]-AAMC_Raw_Data_for_FY22[[#This Row],[Median]])/25)*15) + AAMC_Raw_Data_for_FY22[[#This Row],[Median]]","v":651393.4},{"$f":"(((AAMC_Raw_Data_for_FY22[[#This Row],[75th]]-AAMC_Raw_Data_for_FY22[[#This Row],[Median]])/25)*20) + AAMC_Raw_Data_for_FY22[[#This Row],[Median]]","v":653589.19999999995},655785,{"$f":"(((AAMC_Raw_Data_for_FY22[[#This Row],[75th]]-AAMC_Raw_Data_for_FY22[[#This Row],[Median]])/25)*30) + AAMC_Raw_Data_for_FY22[[#This Row],[Median]]","v":657980.80000000005},{"$f":"(((AAMC_Raw_Data_for_FY22[[#This Row],[75th]]-AAMC_Raw_Data_for_FY22[[#This Row],[Median]])/25)*35) + AAMC_Raw_Data_for_FY22[[#This Row],[Median]]","v":660176.6},{"$f":"(((AAMC_Raw_Data_for_FY22[[#This Row],[75th]]-AAMC_Raw_Data_for_FY22[[#This Row],[Median]])/25)*40) + AAMC_Raw_Data_for_FY22[[#This Row],[Median]]","v":662372.4}]
[{"$f":"AAMC_Raw_Data_for_FY22[[#This Row],[Source]]&AAMC_Raw_Data_for_FY22[[#This Row],[Type]]&AAMC_Raw_Data_for_FY22[[#This Row],[School Subset]]&AAMC_Raw_Data_for_FY22[[#This Row],[Rank]]&AAMC_Raw_Data_for_FY22[[#This Row],[Degree]]&AAMC_Raw_Data_for_FY22[[#This Row],[Department / Specialty]]&\"L\"","v":"AAMCAcademicAllChairMDCardiology: Invasive Non-interventional-Med.L"},"Cardiology: Invasive Non-interventional-Med.",1,"AAMC","Academic","All","Chair","MD","2021-2022",null,{"$f":"(((AAMC_Raw_Data_for_FY22[[#This Row],[Median]]-AAMC_Raw_Data_for_FY22[[#This Row],[25th]])/25)*5) + AAMC_Raw_Data_for_FY22[[#This Row],[25th]]","v":0},{"$f":"(((AAMC_Raw_Data_for_FY22[[#This Row],[Median]]-AAMC_Raw_Data_for_FY22[[#This Row],[25th]])/25)*10) + AAMC_Raw_Data_for_FY22[[#This Row],[25th]]","v":0},{"$f":"(((AAMC_Raw_Data_for_FY22[[#This Row],[Median]]-AAMC_Raw_Data_for_FY22[[#This Row],[25th]])/25)*15) + AAMC_Raw_Data_for_FY22[[#This Row],[25th]]","v":0},{"$f":"(((AAMC_Raw_Data_for_FY22[[#This Row],[Median]]-AAMC_Raw_Data_for_FY22[[#This Row],[25th]])/25)*20) + AAMC_Raw_Data_for_FY22[[#This Row],[25th]]","v":0},null,{"$f":"(((AAMC_Raw_Data_for_FY22[[#This Row],[75th]]-AAMC_Raw_Data_for_FY22[[#This Row],[Median]])/25)*5) + AAMC_Raw_Data_for_FY22[[#This Row],[Median]]","v":0},{"$f":"(((AAMC_Raw_Data_for_FY22[[#This Row],[75th]]-AAMC_Raw_Data_for_FY22[[#This Row],[Median]])/25)*10) + AAMC_Raw_Data_for_FY22[[#This Row],[Median]]","v":0},{"$f":"(((AAMC_Raw_Data_for_FY22[[#This Row],[75th]]-AAMC_Raw_Data_for_FY22[[#This Row],[Median]])/25)*15) + AAMC_Raw_Data_for_FY22[[#This Row],[Median]]","v":0},{"$f":"(((AAMC_Raw_Data_for_FY22[[#This Row],[75th]]-AAMC_Raw_Data_for_FY22[[#This Row],[Median]])/25)*20) + AAMC_Raw_Data_for_FY22[[#This Row],[Median]]","v":0},null,{"$f":"(((AAMC_Raw_Data_for_FY22[[#This Row],[75th]]-AAMC_Raw_Data_for_FY22[[#This Row],[Median]])/25)*30) + AAMC_Raw_Data_for_FY22[[#This Row],[Median]]","v":0},{"$f":"(((AAMC_Raw_Data_for_FY22[[#This Row],[75th]]-AAMC_Raw_Data_for_FY22[[#This Row],[Median]])/25)*35) + AAMC_Raw_Data_for_FY22[[#This Row],[Median]]","v":0},{"$f":"(((AAMC_Raw_Data_for_FY22[[#This Row],[75th]]-AAMC_Raw_Data_for_FY22[[#This Row],[Median]])/25)*40) + AAMC_Raw_Data_for_FY22[[#This Row],[Median]]","v":0}]
[{"$f":"AAMC_Raw_Data_for_FY22[[#This Row],[Source]]&AAMC_Raw_Data_for_FY22[[#This Row],[Type]]&AAMC_Raw_Data_for_FY22[[#This Row],[School Subset]]&AAMC_Raw_Data_for_FY22[[#This Row],[Rank]]&AAMC_Raw_Data_for_FY22[[#This Row],[Degree]]&AAMC_Raw_Data_for_FY22[[#This Row],[Department / Specialty]]&\"L\"","v":"AAMCAcademicAllInstructorMDCardiology: Non-invasive-Med.L"},"Cardiology: Non-invasive-Med.",5,"AAMC","Academic","All","Instructor","MD","2021-2022",130350,{"$f":"(((AAMC_Raw_Data_for_FY22[[#This Row],[Median]]-AAMC_Raw_Data_for_FY22[[#This Row],[25th]])/25)*5) + AAMC_Raw_Data_for_FY22[[#This Row],[25th]]","v":144424.79999999999},{"$f":"(((AAMC_Raw_Data_for_FY22[[#This Row],[Median]]-AAMC_Raw_Data_for_FY22[[#This Row],[25th]])/25)*10) + AAMC_Raw_Data_for_FY22[[#This Row],[25th]]","v":158499.6},{"$f":"(((AAMC_Raw_Data_for_FY22[[#This Row],[Median]]-AAMC_Raw_Data_for_FY22[[#This Row],[25th]])/25)*15) + AAMC_Raw_Data_for_FY22[[#This Row],[25th]]","v":172574.4},{"$f":"(((AAMC_Raw_Data_for_FY22[[#This Row],[Median]]-AAMC_Raw_Data_for_FY22[[#This Row],[25th]])/25)*20) + AAMC_Raw_Data_for_FY22[[#This Row],[25th]]","v":186649.2},200724,{"$f":"(((AAMC_Raw_Data_for_FY22[[#This Row],[75th]]-AAMC_Raw_Data_for_FY22[[#This Row],[Median]])/25)*5) + AAMC_Raw_Data_for_FY22[[#This Row],[Median]]","v":216043.2},{"$f":"(((AAMC_Raw_Data_for_FY22[[#This Row],[75th]]-AAMC_Raw_Data_for_FY22[[#This Row],[Median]])/25)*10) + AAMC_Raw_Data_for_FY22[[#This Row],[Median]]","v":231362.4},{"$f":"(((AAMC_Raw_Data_for_FY22[[#This Row],[75th]]-AAMC_Raw_Data_for_FY22[[#This Row],[Median]])/25)*15) + AAMC_Raw_Data_for_FY22[[#This Row],[Median]]","v":246681.60000000001},{"$f":"(((AAMC_Raw_Data_for_FY22[[#This Row],[75th]]-AAMC_Raw_Data_for_FY22[[#This Row],[Median]])/25)*20) + AAMC_Raw_Data_for_FY22[[#This Row],[Median]]","v":262000.8},277320,{"$f":"(((AAMC_Raw_Data_for_FY22[[#This Row],[75th]]-AAMC_Raw_Data_for_FY22[[#This Row],[Median]])/25)*30) + AAMC_Raw_Data_for_FY22[[#This Row],[Median]]","v":292639.2},{"$f":"(((AAMC_Raw_Data_for_FY22[[#This Row],[75th]]-AAMC_Raw_Data_for_FY22[[#This Row],[Median]])/25)*35) + AAMC_Raw_Data_for_FY22[[#This Row],[Median]]","v":307958.40000000002},{"$f":"(((AAMC_Raw_Data_for_FY22[[#This Row],[75th]]-AAMC_Raw_Data_for_FY22[[#This Row],[Median]])/25)*40) + AAMC_Raw_Data_for_FY22[[#This Row],[Median]]","v":323277.59999999998}]
[{"$f":"AAMC_Raw_Data_for_FY22[[#This Row],[Source]]&AAMC_Raw_Data_for_FY22[[#This Row],[Type]]&AAMC_Raw_Data_for_FY22[[#This Row],[School Subset]]&AAMC_Raw_Data_for_FY22[[#This Row],[Rank]]&AAMC_Raw_Data_for_FY22[[#This Row],[Degree]]&AAMC_Raw_Data_for_FY22[[#This Row],[Department / Specialty]]&\"L\"","v":"AAMCAcademicAllAssistantMDCardiology: Non-invasive-Med.L"},"Cardiology: Non-invasive-Med.",4,"AAMC","Academic","All","Assistant","MD","2021-2022",295189,{"$f":"(((AAMC_Raw_Data_for_FY22[[#This Row],[Median]]-AAMC_Raw_Data_for_FY22[[#This Row],[25th]])/25)*5) + AAMC_Raw_Data_for_FY22[[#This Row],[25th]]","v":307338.8},{"$f":"(((AAMC_Raw_Data_for_FY22[[#This Row],[Median]]-AAMC_Raw_Data_for_FY22[[#This Row],[25th]])/25)*10) + AAMC_Raw_Data_for_FY22[[#This Row],[25th]]","v":319488.59999999998},{"$f":"(((AAMC_Raw_Data_for_FY22[[#This Row],[Median]]-AAMC_Raw_Data_for_FY22[[#This Row],[25th]])/25)*15) + AAMC_Raw_Data_for_FY22[[#This Row],[25th]]","v":331638.40000000002},{"$f":"(((AAMC_Raw_Data_for_FY22[[#This Row],[Median]]-AAMC_Raw_Data_for_FY22[[#This Row],[25th]])/25)*20) + AAMC_Raw_Data_for_FY22[[#This Row],[25th]]","v":343788.2},355938,{"$f":"(((AAMC_Raw_Data_for_FY22[[#This Row],[75th]]-AAMC_Raw_Data_for_FY22[[#This Row],[Median]])/25)*5) + AAMC_Raw_Data_for_FY22[[#This Row],[Median]]","v":374761.6},{"$f":"(((AAMC_Raw_Data_for_FY22[[#This Row],[75th]]-AAMC_Raw_Data_for_FY22[[#This Row],[Median]])/25)*10) + AAMC_Raw_Data_for_FY22[[#This Row],[Median]]","v":393585.2},{"$f":"(((AAMC_Raw_Data_for_FY22[[#This Row],[75th]]-AAMC_Raw_Data_for_FY22[[#This Row],[Median]])/25)*15) + AAMC_Raw_Data_for_FY22[[#This Row],[Median]]","v":412408.8},{"$f":"(((AAMC_Raw_Data_for_FY22[[#This Row],[75th]]-AAMC_Raw_Data_for_FY22[[#This Row],[Median]])/25)*20) + AAMC_Raw_Data_for_FY22[[#This Row],[Median]]","v":431232.4},450056,{"$f":"(((AAMC_Raw_Data_for_FY22[[#This Row],[75th]]-AAMC_Raw_Data_for_FY22[[#This Row],[Median]])/25)*30) + AAMC_Raw_Data_for_FY22[[#This Row],[Median]]","v":468879.6},{"$f":"(((AAMC_Raw_Data_for_FY22[[#This Row],[75th]]-AAMC_Raw_Data_for_FY22[[#This Row],[Median]])/25)*35) + AAMC_Raw_Data_for_FY22[[#This Row],[Median]]","v":487703.19999999995},{"$f":"(((AAMC_Raw_Data_for_FY22[[#This Row],[75th]]-AAMC_Raw_Data_for_FY22[[#This Row],[Median]])/25)*40) + AAMC_Raw_Data_for_FY22[[#This Row],[Median]]","v":506526.8}]
[{"$f":"AAMC_Raw_Data_for_FY22[[#This Row],[Source]]&AAMC_Raw_Data_for_FY22[[#This Row],[Type]]&AAMC_Raw_Data_for_FY22[[#This Row],[School Subset]]&AAMC_Raw_Data_for_FY22[[#This Row],[Rank]]&AAMC_Raw_Data_for_FY22[[#This Row],[Degree]]&AAMC_Raw_Data_for_FY22[[#This Row],[Department / Specialty]]&\"L\"","v":"AAMCAcademicAllAssociateMDCardiology: Non-invasive-Med.L"},"Cardiology: Non-invasive-Med.",3,"AAMC","Academic","All","Associate","MD","2021-2022",320453,{"$f":"(((AAMC_Raw_Data_for_FY22[[#This Row],[Median]]-AAMC_Raw_Data_for_FY22[[#This Row],[25th]])/25)*5) + AAMC_Raw_Data_for_FY22[[#This Row],[25th]]","v":334744.59999999998},{"$f":"(((AAMC_Raw_Data_for_FY22[[#This Row],[Median]]-AAMC_Raw_Data_for_FY22[[#This Row],[25th]])/25)*10) + AAMC_Raw_Data_for_FY22[[#This Row],[25th]]","v":349036.2},{"$f":"(((AAMC_Raw_Data_for_FY22[[#This Row],[Median]]-AAMC_Raw_Data_for_FY22[[#This Row],[25th]])/25)*15) + AAMC_Raw_Data_for_FY22[[#This Row],[25th]]","v":363327.8},{"$f":"(((AAMC_Raw_Data_for_FY22[[#This Row],[Median]]-AAMC_Raw_Data_for_FY22[[#This Row],[25th]])/25)*20) + AAMC_Raw_Data_for_FY22[[#This Row],[25th]]","v":377619.4},391911,{"$f":"(((AAMC_Raw_Data_for_FY22[[#This Row],[75th]]-AAMC_Raw_Data_for_FY22[[#This Row],[Median]])/25)*5) + AAMC_Raw_Data_for_FY22[[#This Row],[Median]]","v":413529.2},{"$f":"(((AAMC_Raw_Data_for_FY22[[#This Row],[75th]]-AAMC_Raw_Data_for_FY22[[#This Row],[Median]])/25)*10) + AAMC_Raw_Data_for_FY22[[#This Row],[Median]]","v":435147.4},{"$f":"(((AAMC_Raw_Data_for_FY22[[#This Row],[75th]]-AAMC_Raw_Data_for_FY22[[#This Row],[Median]])/25)*15) + AAMC_Raw_Data_for_FY22[[#This Row],[Median]]","v":456765.6},{"$f":"(((AAMC_Raw_Data_for_FY22[[#This Row],[75th]]-AAMC_Raw_Data_for_FY22[[#This Row],[Median]])/25)*20) + AAMC_Raw_Data_for_FY22[[#This Row],[Median]]","v":478383.8},500002,{"$f":"(((AAMC_Raw_Data_for_FY22[[#This Row],[75th]]-AAMC_Raw_Data_for_FY22[[#This Row],[Median]])/25)*30) + AAMC_Raw_Data_for_FY22[[#This Row],[Median]]","v":521620.2},{"$f":"(((AAMC_Raw_Data_for_FY22[[#This Row],[75th]]-AAMC_Raw_Data_for_FY22[[#This Row],[Median]])/25)*35) + AAMC_Raw_Data_for_FY22[[#This Row],[Median]]","v":543238.40000000002},{"$f":"(((AAMC_Raw_Data_for_FY22[[#This Row],[75th]]-AAMC_Raw_Data_for_FY22[[#This Row],[Median]])/25)*40) + AAMC_Raw_Data_for_FY22[[#This Row],[Median]]","v":564856.6}]
[{"$f":"AAMC_Raw_Data_for_FY22[[#This Row],[Source]]&AAMC_Raw_Data_for_FY22[[#This Row],[Type]]&AAMC_Raw_Data_for_FY22[[#This Row],[School Subset]]&AAMC_Raw_Data_for_FY22[[#This Row],[Rank]]&AAMC_Raw_Data_for_FY22[[#This Row],[Degree]]&AAMC_Raw_Data_for_FY22[[#This Row],[Department / Specialty]]&\"L\"","v":"AAMCAcademicAllProfessorMDCardiology: Non-invasive-Med.L"},"Cardiology: Non-invasive-Med.",2,"AAMC","Academic","All","Professor","MD","2021-2022",325795,{"$f":"(((AAMC_Raw_Data_for_FY22[[#This Row],[Median]]-AAMC_Raw_Data_for_FY22[[#This Row],[25th]])/25)*5) + AAMC_Raw_Data_for_FY22[[#This Row],[25th]]","v":340960.2},{"$f":"(((AAMC_Raw_Data_for_FY22[[#This Row],[Median]]-AAMC_Raw_Data_for_FY22[[#This Row],[25th]])/25)*10) + AAMC_Raw_Data_for_FY22[[#This Row],[25th]]","v":356125.4},{"$f":"(((AAMC_Raw_Data_for_FY22[[#This Row],[Median]]-AAMC_Raw_Data_for_FY22[[#This Row],[25th]])/25)*15) + AAMC_Raw_Data_for_FY22[[#This Row],[25th]]","v":371290.6},{"$f":"(((AAMC_Raw_Data_for_FY22[[#This Row],[Median]]-AAMC_Raw_Data_for_FY22[[#This Row],[25th]])/25)*20) + AAMC_Raw_Data_for_FY22[[#This Row],[25th]]","v":386455.8},401621,{"$f":"(((AAMC_Raw_Data_for_FY22[[#This Row],[75th]]-AAMC_Raw_Data_for_FY22[[#This Row],[Median]])/25)*5) + AAMC_Raw_Data_for_FY22[[#This Row],[Median]]","v":423286.4},{"$f":"(((AAMC_Raw_Data_for_FY22[[#This Row],[75th]]-AAMC_Raw_Data_for_FY22[[#This Row],[Median]])/25)*10) + AAMC_Raw_Data_for_FY22[[#This Row],[Median]]","v":444951.8},{"$f":"(((AAMC_Raw_Data_for_FY22[[#This Row],[75th]]-AAMC_Raw_Data_for_FY22[[#This Row],[Median]])/25)*15) + AAMC_Raw_Data_for_FY22[[#This Row],[Median]]","v":466617.2},{"$f":"(((AAMC_Raw_Data_for_FY22[[#This Row],[75th]]-AAMC_Raw_Data_for_FY22[[#This Row],[Median]])/25)*20) + AAMC_Raw_Data_for_FY22[[#This Row],[Median]]","v":488282.6},509948,{"$f":"(((AAMC_Raw_Data_for_FY22[[#This Row],[75th]]-AAMC_Raw_Data_for_FY22[[#This Row],[Median]])/25)*30) + AAMC_Raw_Data_for_FY22[[#This Row],[Median]]","v":531613.4},{"$f":"(((AAMC_Raw_Data_for_FY22[[#This Row],[75th]]-AAMC_Raw_Data_for_FY22[[#This Row],[Median]])/25)*35) + AAMC_Raw_Data_for_FY22[[#This Row],[Median]]","v":553278.80000000005},{"$f":"(((AAMC_Raw_Data_for_FY22[[#This Row],[75th]]-AAMC_Raw_Data_for_FY22[[#This Row],[Median]])/25)*40) + AAMC_Raw_Data_for_FY22[[#This Row],[Median]]","v":574944.19999999995}]
[{"$f":"AAMC_Raw_Data_for_FY22[[#This Row],[Source]]&AAMC_Raw_Data_for_FY22[[#This Row],[Type]]&AAMC_Raw_Data_for_FY22[[#This Row],[School Subset]]&AAMC_Raw_Data_for_FY22[[#This Row],[Rank]]&AAMC_Raw_Data_for_FY22[[#This Row],[Degree]]&AAMC_Raw_Data_for_FY22[[#This Row],[Department / Specialty]]&\"L\"","v":"AAMCAcademicAllChiefMDCardiology: Non-invasive-Med.L"},"Cardiology: Non-invasive-Med.",6,"AAMC","Academic","All","Chief","MD","2021-2022",482430,{"$f":"(((AAMC_Raw_Data_for_FY22[[#This Row],[Median]]-AAMC_Raw_Data_for_FY22[[#This Row],[25th]])/25)*5) + AAMC_Raw_Data_for_FY22[[#This Row],[25th]]","v":498935},{"$f":"(((AAMC_Raw_Data_for_FY22[[#This Row],[Median]]-AAMC_Raw_Data_for_FY22[[#This Row],[25th]])/25)*10) + AAMC_Raw_Data_for_FY22[[#This Row],[25th]]","v":515440},{"$f":"(((AAMC_Raw_Data_for_FY22[[#This Row],[Median]]-AAMC_Raw_Data_for_FY22[[#This Row],[25th]])/25)*15) + AAMC_Raw_Data_for_FY22[[#This Row],[25th]]","v":531945},{"$f":"(((AAMC_Raw_Data_for_FY22[[#This Row],[Median]]-AAMC_Raw_Data_for_FY22[[#This Row],[25th]])/25)*20) + AAMC_Raw_Data_for_FY22[[#This Row],[25th]]","v":548450},564955,{"$f":"(((AAMC_Raw_Data_for_FY22[[#This Row],[75th]]-AAMC_Raw_Data_for_FY22[[#This Row],[Median]])/25)*5) + AAMC_Raw_Data_for_FY22[[#This Row],[Median]]","v":583561.19999999995},{"$f":"(((AAMC_Raw_Data_for_FY22[[#This Row],[75th]]-AAMC_Raw_Data_for_FY22[[#This Row],[Median]])/25)*10) + AAMC_Raw_Data_for_FY22[[#This Row],[Median]]","v":602167.4},{"$f":"(((AAMC_Raw_Data_for_FY22[[#This Row],[75th]]-AAMC_Raw_Data_for_FY22[[#This Row],[Median]])/25)*15) + AAMC_Raw_Data_for_FY22[[#This Row],[Median]]","v":620773.6},{"$f":"(((AAMC_Raw_Data_for_FY22[[#This Row],[75th]]-AAMC_Raw_Data_for_FY22[[#This Row],[Median]])/25)*20) + AAMC_Raw_Data_for_FY22[[#This Row],[Median]]","v":639379.80000000005},657986,{"$f":"(((AAMC_Raw_Data_for_FY22[[#This Row],[75th]]-AAMC_Raw_Data_for_FY22[[#This Row],[Median]])/25)*30) + AAMC_Raw_Data_for_FY22[[#This Row],[Median]]","v":676592.2},{"$f":"(((AAMC_Raw_Data_for_FY22[[#This Row],[75th]]-AAMC_Raw_Data_for_FY22[[#This Row],[Median]])/25)*35) + AAMC_Raw_Data_for_FY22[[#This Row],[Median]]","v":695198.4},{"$f":"(((AAMC_Raw_Data_for_FY22[[#This Row],[75th]]-AAMC_Raw_Data_for_FY22[[#This Row],[Median]])/25)*40) + AAMC_Raw_Data_for_FY22[[#This Row],[Median]]","v":713804.6}]
[{"$f":"AAMC_Raw_Data_for_FY22[[#This Row],[Source]]&AAMC_Raw_Data_for_FY22[[#This Row],[Type]]&AAMC_Raw_Data_for_FY22[[#This Row],[School Subset]]&AAMC_Raw_Data_for_FY22[[#This Row],[Rank]]&AAMC_Raw_Data_for_FY22[[#This Row],[Degree]]&AAMC_Raw_Data_for_FY22[[#This Row],[Department / Specialty]]&\"L\"","v":"AAMCAcademicAllChairMDCardiology: Non-invasive-Med.L"},"Cardiology: Non-invasive-Med.",1,"AAMC","Academic","All","Chair","MD","2021-2022",540803,{"$f":"(((AAMC_Raw_Data_for_FY22[[#This Row],[Median]]-AAMC_Raw_Data_for_FY22[[#This Row],[25th]])/25)*5) + AAMC_Raw_Data_for_FY22[[#This Row],[25th]]","v":562748.6},{"$f":"(((AAMC_Raw_Data_for_FY22[[#This Row],[Median]]-AAMC_Raw_Data_for_FY22[[#This Row],[25th]])/25)*10) + AAMC_Raw_Data_for_FY22[[#This Row],[25th]]","v":584694.19999999995},{"$f":"(((AAMC_Raw_Data_for_FY22[[#This Row],[Median]]-AAMC_Raw_Data_for_FY22[[#This Row],[25th]])/25)*15) + AAMC_Raw_Data_for_FY22[[#This Row],[25th]]","v":606639.80000000005},{"$f":"(((AAMC_Raw_Data_for_FY22[[#This Row],[Median]]-AAMC_Raw_Data_for_FY22[[#This Row],[25th]])/25)*20) + AAMC_Raw_Data_for_FY22[[#This Row],[25th]]","v":628585.4},650531,{"$f":"(((AAMC_Raw_Data_for_FY22[[#This Row],[75th]]-AAMC_Raw_Data_for_FY22[[#This Row],[Median]])/25)*5) + AAMC_Raw_Data_for_FY22[[#This Row],[Median]]","v":686314.8},{"$f":"(((AAMC_Raw_Data_for_FY22[[#This Row],[75th]]-AAMC_Raw_Data_for_FY22[[#This Row],[Median]])/25)*10) + AAMC_Raw_Data_for_FY22[[#This Row],[Median]]","v":722098.6},{"$f":"(((AAMC_Raw_Data_for_FY22[[#This Row],[75th]]-AAMC_Raw_Data_for_FY22[[#This Row],[Median]])/25)*15) + AAMC_Raw_Data_for_FY22[[#This Row],[Median]]","v":757882.4},{"$f":"(((AAMC_Raw_Data_for_FY22[[#This Row],[75th]]-AAMC_Raw_Data_for_FY22[[#This Row],[Median]])/25)*20) + AAMC_Raw_Data_for_FY22[[#This Row],[Median]]","v":793666.2},829450,{"$f":"(((AAMC_Raw_Data_for_FY22[[#This Row],[75th]]-AAMC_Raw_Data_for_FY22[[#This Row],[Median]])/25)*30) + AAMC_Raw_Data_for_FY22[[#This Row],[Median]]","v":865233.8},{"$f":"(((AAMC_Raw_Data_for_FY22[[#This Row],[75th]]-AAMC_Raw_Data_for_FY22[[#This Row],[Median]])/25)*35) + AAMC_Raw_Data_for_FY22[[#This Row],[Median]]","v":901017.59999999998},{"$f":"(((AAMC_Raw_Data_for_FY22[[#This Row],[75th]]-AAMC_Raw_Data_for_FY22[[#This Row],[Median]])/25)*40) + AAMC_Raw_Data_for_FY22[[#This Row],[Median]]","v":936801.4}]
[{"$f":"AAMC_Raw_Data_for_FY22[[#This Row],[Source]]&AAMC_Raw_Data_for_FY22[[#This Row],[Type]]&AAMC_Raw_Data_for_FY22[[#This Row],[School Subset]]&AAMC_Raw_Data_for_FY22[[#This Row],[Rank]]&AAMC_Raw_Data_for_FY22[[#This Row],[Degree]]&AAMC_Raw_Data_for_FY22[[#This Row],[Department / Specialty]]&\"L\"","v":"AAMCAcademicAllInstructorMDCritical/Intensive Care-Med.L"},"Critical/Intensive Care-Med.",5,"AAMC","Academic","All","Instructor","MD","2021-2022",165128,{"$f":"(((AAMC_Raw_Data_for_FY22[[#This Row],[Median]]-AAMC_Raw_Data_for_FY22[[#This Row],[25th]])/25)*5) + AAMC_Raw_Data_for_FY22[[#This Row],[25th]]","v":175537},{"$f":"(((AAMC_Raw_Data_for_FY22[[#This Row],[Median]]-AAMC_Raw_Data_for_FY22[[#This Row],[25th]])/25)*10) + AAMC_Raw_Data_for_FY22[[#This Row],[25th]]","v":185946},{"$f":"(((AAMC_Raw_Data_for_FY22[[#This Row],[Median]]-AAMC_Raw_Data_for_FY22[[#This Row],[25th]])/25)*15) + AAMC_Raw_Data_for_FY22[[#This Row],[25th]]","v":196355},{"$f":"(((AAMC_Raw_Data_for_FY22[[#This Row],[Median]]-AAMC_Raw_Data_for_FY22[[#This Row],[25th]])/25)*20) + AAMC_Raw_Data_for_FY22[[#This Row],[25th]]","v":206764},217173,{"$f":"(((AAMC_Raw_Data_for_FY22[[#This Row],[75th]]-AAMC_Raw_Data_for_FY22[[#This Row],[Median]])/25)*5) + AAMC_Raw_Data_for_FY22[[#This Row],[Median]]","v":239836.79999999999},{"$f":"(((AAMC_Raw_Data_for_FY22[[#This Row],[75th]]-AAMC_Raw_Data_for_FY22[[#This Row],[Median]])/25)*10) + AAMC_Raw_Data_for_FY22[[#This Row],[Median]]","v":262500.59999999998},{"$f":"(((AAMC_Raw_Data_for_FY22[[#This Row],[75th]]-AAMC_Raw_Data_for_FY22[[#This Row],[Median]])/25)*15) + AAMC_Raw_Data_for_FY22[[#This Row],[Median]]","v":285164.40000000002},{"$f":"(((AAMC_Raw_Data_for_FY22[[#This Row],[75th]]-AAMC_Raw_Data_for_FY22[[#This Row],[Median]])/25)*20) + AAMC_Raw_Data_for_FY22[[#This Row],[Median]]","v":307828.2},330492,{"$f":"(((AAMC_Raw_Data_for_FY22[[#This Row],[75th]]-AAMC_Raw_Data_for_FY22[[#This Row],[Median]])/25)*30) + AAMC_Raw_Data_for_FY22[[#This Row],[Median]]","v":353155.80000000005},{"$f":"(((AAMC_Raw_Data_for_FY22[[#This Row],[75th]]-AAMC_Raw_Data_for_FY22[[#This Row],[Median]])/25)*35) + AAMC_Raw_Data_for_FY22[[#This Row],[Median]]","v":375819.6},{"$f":"(((AAMC_Raw_Data_for_FY22[[#This Row],[75th]]-AAMC_Raw_Data_for_FY22[[#This Row],[Median]])/25)*40) + AAMC_Raw_Data_for_FY22[[#This Row],[Median]]","v":398483.4}]
[{"$f":"AAMC_Raw_Data_for_FY22[[#This Row],[Source]]&AAMC_Raw_Data_for_FY22[[#This Row],[Type]]&AAMC_Raw_Data_for_FY22[[#This Row],[School Subset]]&AAMC_Raw_Data_for_FY22[[#This Row],[Rank]]&AAMC_Raw_Data_for_FY22[[#This Row],[Degree]]&AAMC_Raw_Data_for_FY22[[#This Row],[Department / Specialty]]&\"L\"","v":"AAMCAcademicAllAssistantMDCritical/Intensive Care-Med.L"},"Critical/Intensive Care-Med.",4,"AAMC","Academic","All","Assistant","MD","2021-2022",277034,{"$f":"(((AAMC_Raw_Data_for_FY22[[#This Row],[Median]]-AAMC_Raw_Data_for_FY22[[#This Row],[25th]])/25)*5) + AAMC_Raw_Data_for_FY22[[#This Row],[25th]]","v":291119.59999999998},{"$f":"(((AAMC_Raw_Data_for_FY22[[#This Row],[Median]]-AAMC_Raw_Data_for_FY22[[#This Row],[25th]])/25)*10) + AAMC_Raw_Data_for_FY22[[#This Row],[25th]]","v":305205.2},{"$f":"(((AAMC_Raw_Data_for_FY22[[#This Row],[Median]]-AAMC_Raw_Data_for_FY22[[#This Row],[25th]])/25)*15) + AAMC_Raw_Data_for_FY22[[#This Row],[25th]]","v":319290.8},{"$f":"(((AAMC_Raw_Data_for_FY22[[#This Row],[Median]]-AAMC_Raw_Data_for_FY22[[#This Row],[25th]])/25)*20) + AAMC_Raw_Data_for_FY22[[#This Row],[25th]]","v":333376.40000000002},347462,{"$f":"(((AAMC_Raw_Data_for_FY22[[#This Row],[75th]]-AAMC_Raw_Data_for_FY22[[#This Row],[Median]])/25)*5) + AAMC_Raw_Data_for_FY22[[#This Row],[Median]]","v":361930},{"$f":"(((AAMC_Raw_Data_for_FY22[[#This Row],[75th]]-AAMC_Raw_Data_for_FY22[[#This Row],[Median]])/25)*10) + AAMC_Raw_Data_for_FY22[[#This Row],[Median]]","v":376398},{"$f":"(((AAMC_Raw_Data_for_FY22[[#This Row],[75th]]-AAMC_Raw_Data_for_FY22[[#This Row],[Median]])/25)*15) + AAMC_Raw_Data_for_FY22[[#This Row],[Median]]","v":390866},{"$f":"(((AAMC_Raw_Data_for_FY22[[#This Row],[75th]]-AAMC_Raw_Data_for_FY22[[#This Row],[Median]])/25)*20) + AAMC_Raw_Data_for_FY22[[#This Row],[Median]]","v":405334},419802,{"$f":"(((AAMC_Raw_Data_for_FY22[[#This Row],[75th]]-AAMC_Raw_Data_for_FY22[[#This Row],[Median]])/25)*30) + AAMC_Raw_Data_for_FY22[[#This Row],[Median]]","v":434270},{"$f":"(((AAMC_Raw_Data_for_FY22[[#This Row],[75th]]-AAMC_Raw_Data_for_FY22[[#This Row],[Median]])/25)*35) + AAMC_Raw_Data_for_FY22[[#This Row],[Median]]","v":448738},{"$f":"(((AAMC_Raw_Data_for_FY22[[#This Row],[75th]]-AAMC_Raw_Data_for_FY22[[#This Row],[Median]])/25)*40) + AAMC_Raw_Data_for_FY22[[#This Row],[Median]]","v":463206}]
[{"$f":"AAMC_Raw_Data_for_FY22[[#This Row],[Source]]&AAMC_Raw_Data_for_FY22[[#This Row],[Type]]&AAMC_Raw_Data_for_FY22[[#This Row],[School Subset]]&AAMC_Raw_Data_for_FY22[[#This Row],[Rank]]&AAMC_Raw_Data_for_FY22[[#This Row],[Degree]]&AAMC_Raw_Data_for_FY22[[#This Row],[Department / Specialty]]&\"L\"","v":"AAMCAcademicAllAssociateMDCritical/Intensive Care-Med.L"},"Critical/Intensive Care-Med.",3,"AAMC","Academic","All","Associate","MD","2021-2022",301461,{"$f":"(((AAMC_Raw_Data_for_FY22[[#This Row],[Median]]-AAMC_Raw_Data_for_FY22[[#This Row],[25th]])/25)*5) + AAMC_Raw_Data_for_FY22[[#This Row],[25th]]","v":314927.8},{"$f":"(((AAMC_Raw_Data_for_FY22[[#This Row],[Median]]-AAMC_Raw_Data_for_FY22[[#This Row],[25th]])/25)*10) + AAMC_Raw_Data_for_FY22[[#This Row],[25th]]","v":328394.59999999998},{"$f":"(((AAMC_Raw_Data_for_FY22[[#This Row],[Median]]-AAMC_Raw_Data_for_FY22[[#This Row],[25th]])/25)*15) + AAMC_Raw_Data_for_FY22[[#This Row],[25th]]","v":341861.4},{"$f":"(((AAMC_Raw_Data_for_FY22[[#This Row],[Median]]-AAMC_Raw_Data_for_FY22[[#This Row],[25th]])/25)*20) + AAMC_Raw_Data_for_FY22[[#This Row],[25th]]","v":355328.2},368795,{"$f":"(((AAMC_Raw_Data_for_FY22[[#This Row],[75th]]-AAMC_Raw_Data_for_FY22[[#This Row],[Median]])/25)*5) + AAMC_Raw_Data_for_FY22[[#This Row],[Median]]","v":385179.2},{"$f":"(((AAMC_Raw_Data_for_FY22[[#This Row],[75th]]-AAMC_Raw_Data_for_FY22[[#This Row],[Median]])/25)*10) + AAMC_Raw_Data_for_FY22[[#This Row],[Median]]","v":401563.4},{"$f":"(((AAMC_Raw_Data_for_FY22[[#This Row],[75th]]-AAMC_Raw_Data_for_FY22[[#This Row],[Median]])/25)*15) + AAMC_Raw_Data_for_FY22[[#This Row],[Median]]","v":417947.6},{"$f":"(((AAMC_Raw_Data_for_FY22[[#This Row],[75th]]-AAMC_Raw_Data_for_FY22[[#This Row],[Median]])/25)*20) + AAMC_Raw_Data_for_FY22[[#This Row],[Median]]","v":434331.8},450716,{"$f":"(((AAMC_Raw_Data_for_FY22[[#This Row],[75th]]-AAMC_Raw_Data_for_FY22[[#This Row],[Median]])/25)*30) + AAMC_Raw_Data_for_FY22[[#This Row],[Median]]","v":467100.2},{"$f":"(((AAMC_Raw_Data_for_FY22[[#This Row],[75th]]-AAMC_Raw_Data_for_FY22[[#This Row],[Median]])/25)*35) + AAMC_Raw_Data_for_FY22[[#This Row],[Median]]","v":483484.4},{"$f":"(((AAMC_Raw_Data_for_FY22[[#This Row],[75th]]-AAMC_Raw_Data_for_FY22[[#This Row],[Median]])/25)*40) + AAMC_Raw_Data_for_FY22[[#This Row],[Median]]","v":499868.6}]
[{"$f":"AAMC_Raw_Data_for_FY22[[#This Row],[Source]]&AAMC_Raw_Data_for_FY22[[#This Row],[Type]]&AAMC_Raw_Data_for_FY22[[#This Row],[School Subset]]&AAMC_Raw_Data_for_FY22[[#This Row],[Rank]]&AAMC_Raw_Data_for_FY22[[#This Row],[Degree]]&AAMC_Raw_Data_for_FY22[[#This Row],[Department / Specialty]]&\"L\"","v":"AAMCAcademicAllProfessorMDCritical/Intensive Care-Med.L"},"Critical/Intensive Care-Med.",2,"AAMC","Academic","All","Professor","MD","2021-2022",328084,{"$f":"(((AAMC_Raw_Data_for_FY22[[#This Row],[Median]]-AAMC_Raw_Data_for_FY22[[#This Row],[25th]])/25)*5) + AAMC_Raw_Data_for_FY22[[#This Row],[25th]]","v":339491.4},{"$f":"(((AAMC_Raw_Data_for_FY22[[#This Row],[Median]]-AAMC_Raw_Data_for_FY22[[#This Row],[25th]])/25)*10) + AAMC_Raw_Data_for_FY22[[#This Row],[25th]]","v":350898.8},{"$f":"(((AAMC_Raw_Data_for_FY22[[#This Row],[Median]]-AAMC_Raw_Data_for_FY22[[#This Row],[25th]])/25)*15) + AAMC_Raw_Data_for_FY22[[#This Row],[25th]]","v":362306.2},{"$f":"(((AAMC_Raw_Data_for_FY22[[#This Row],[Median]]-AAMC_Raw_Data_for_FY22[[#This Row],[25th]])/25)*20) + AAMC_Raw_Data_for_FY22[[#This Row],[25th]]","v":373713.6},385121,{"$f":"(((AAMC_Raw_Data_for_FY22[[#This Row],[75th]]-AAMC_Raw_Data_for_FY22[[#This Row],[Median]])/25)*5) + AAMC_Raw_Data_for_FY22[[#This Row],[Median]]","v":401359.2},{"$f":"(((AAMC_Raw_Data_for_FY22[[#This Row],[75th]]-AAMC_Raw_Data_for_FY22[[#This Row],[Median]])/25)*10) + AAMC_Raw_Data_for_FY22[[#This Row],[Median]]","v":417597.4},{"$f":"(((AAMC_Raw_Data_for_FY22[[#This Row],[75th]]-AAMC_Raw_Data_for_FY22[[#This Row],[Median]])/25)*15) + AAMC_Raw_Data_for_FY22[[#This Row],[Median]]","v":433835.6},{"$f":"(((AAMC_Raw_Data_for_FY22[[#This Row],[75th]]-AAMC_Raw_Data_for_FY22[[#This Row],[Median]])/25)*20) + AAMC_Raw_Data_for_FY22[[#This Row],[Median]]","v":450073.8},466312,{"$f":"(((AAMC_Raw_Data_for_FY22[[#This Row],[75th]]-AAMC_Raw_Data_for_FY22[[#This Row],[Median]])/25)*30) + AAMC_Raw_Data_for_FY22[[#This Row],[Median]]","v":482550.2},{"$f":"(((AAMC_Raw_Data_for_FY22[[#This Row],[75th]]-AAMC_Raw_Data_for_FY22[[#This Row],[Median]])/25)*35) + AAMC_Raw_Data_for_FY22[[#This Row],[Median]]","v":498788.4},{"$f":"(((AAMC_Raw_Data_for_FY22[[#This Row],[75th]]-AAMC_Raw_Data_for_FY22[[#This Row],[Median]])/25)*40) + AAMC_Raw_Data_for_FY22[[#This Row],[Median]]","v":515026.6}]
[{"$f":"AAMC_Raw_Data_for_FY22[[#This Row],[Source]]&AAMC_Raw_Data_for_FY22[[#This Row],[Type]]&AAMC_Raw_Data_for_FY22[[#This Row],[School Subset]]&AAMC_Raw_Data_for_FY22[[#This Row],[Rank]]&AAMC_Raw_Data_for_FY22[[#This Row],[Degree]]&AAMC_Raw_Data_for_FY22[[#This Row],[Department / Specialty]]&\"L\"","v":"AAMCAcademicAllChiefMDCritical/Intensive Care-Med.L"},"Critical/Intensive Care-Med.",6,"AAMC","Academic","All","Chief","MD","2021-2022",442083,{"$f":"(((AAMC_Raw_Data_for_FY22[[#This Row],[Median]]-AAMC_Raw_Data_for_FY22[[#This Row],[25th]])/25)*5) + AAMC_Raw_Data_for_FY22[[#This Row],[25th]]","v":449272},{"$f":"(((AAMC_Raw_Data_for_FY22[[#This Row],[Median]]-AAMC_Raw_Data_for_FY22[[#This Row],[25th]])/25)*10) + AAMC_Raw_Data_for_FY22[[#This Row],[25th]]","v":456461},{"$f":"(((AAMC_Raw_Data_for_FY22[[#This Row],[Median]]-AAMC_Raw_Data_for_FY22[[#This Row],[25th]])/25)*15) + AAMC_Raw_Data_for_FY22[[#This Row],[25th]]","v":463650},{"$f":"(((AAMC_Raw_Data_for_FY22[[#This Row],[Median]]-AAMC_Raw_Data_for_FY22[[#This Row],[25th]])/25)*20) + AAMC_Raw_Data_for_FY22[[#This Row],[25th]]","v":470839},478028,{"$f":"(((AAMC_Raw_Data_for_FY22[[#This Row],[75th]]-AAMC_Raw_Data_for_FY22[[#This Row],[Median]])/25)*5) + AAMC_Raw_Data_for_FY22[[#This Row],[Median]]","v":488591},{"$f":"(((AAMC_Raw_Data_for_FY22[[#This Row],[75th]]-AAMC_Raw_Data_for_FY22[[#This Row],[Median]])/25)*10) + AAMC_Raw_Data_for_FY22[[#This Row],[Median]]","v":499154},{"$f":"(((AAMC_Raw_Data_for_FY22[[#This Row],[75th]]-AAMC_Raw_Data_for_FY22[[#This Row],[Median]])/25)*15) + AAMC_Raw_Data_for_FY22[[#This Row],[Median]]","v":509717},{"$f":"(((AAMC_Raw_Data_for_FY22[[#This Row],[75th]]-AAMC_Raw_Data_for_FY22[[#This Row],[Median]])/25)*20) + AAMC_Raw_Data_for_FY22[[#This Row],[Median]]","v":520280},530843,{"$f":"(((AAMC_Raw_Data_for_FY22[[#This Row],[75th]]-AAMC_Raw_Data_for_FY22[[#This Row],[Median]])/25)*30) + AAMC_Raw_Data_for_FY22[[#This Row],[Median]]","v":541406},{"$f":"(((AAMC_Raw_Data_for_FY22[[#This Row],[75th]]-AAMC_Raw_Data_for_FY22[[#This Row],[Median]])/25)*35) + AAMC_Raw_Data_for_FY22[[#This Row],[Median]]","v":551969},{"$f":"(((AAMC_Raw_Data_for_FY22[[#This Row],[75th]]-AAMC_Raw_Data_for_FY22[[#This Row],[Median]])/25)*40) + AAMC_Raw_Data_for_FY22[[#This Row],[Median]]","v":562532}]
[{"$f":"AAMC_Raw_Data_for_FY22[[#This Row],[Source]]&AAMC_Raw_Data_for_FY22[[#This Row],[Type]]&AAMC_Raw_Data_for_FY22[[#This Row],[School Subset]]&AAMC_Raw_Data_for_FY22[[#This Row],[Rank]]&AAMC_Raw_Data_for_FY22[[#This Row],[Degree]]&AAMC_Raw_Data_for_FY22[[#This Row],[Department / Specialty]]&\"L\"","v":"AAMCAcademicAllChairMDCritical/Intensive Care-Med.L"},"Critical/Intensive Care-Med.",1,"AAMC","Academic","All","Chair","MD","2021-2022",545307,{"$f":"(((AAMC_Raw_Data_for_FY22[[#This Row],[Median]]-AAMC_Raw_Data_for_FY22[[#This Row],[25th]])/25)*5) + AAMC_Raw_Data_for_FY22[[#This Row],[25th]]","v":551245.6},{"$f":"(((AAMC_Raw_Data_for_FY22[[#This Row],[Median]]-AAMC_Raw_Data_for_FY22[[#This Row],[25th]])/25)*10) + AAMC_Raw_Data_for_FY22[[#This Row],[25th]]","v":557184.19999999995},{"$f":"(((AAMC_Raw_Data_for_FY22[[#This Row],[Median]]-AAMC_Raw_Data_for_FY22[[#This Row],[25th]])/25)*15) + AAMC_Raw_Data_for_FY22[[#This Row],[25th]]","v":563122.80000000005},{"$f":"(((AAMC_Raw_Data_for_FY22[[#This Row],[Median]]-AAMC_Raw_Data_for_FY22[[#This Row],[25th]])/25)*20) + AAMC_Raw_Data_for_FY22[[#This Row],[25th]]","v":569061.4},575000,{"$f":"(((AAMC_Raw_Data_for_FY22[[#This Row],[75th]]-AAMC_Raw_Data_for_FY22[[#This Row],[Median]])/25)*5) + AAMC_Raw_Data_for_FY22[[#This Row],[Median]]","v":648897.4},{"$f":"(((AAMC_Raw_Data_for_FY22[[#This Row],[75th]]-AAMC_Raw_Data_for_FY22[[#This Row],[Median]])/25)*10) + AAMC_Raw_Data_for_FY22[[#This Row],[Median]]","v":722794.8},{"$f":"(((AAMC_Raw_Data_for_FY22[[#This Row],[75th]]-AAMC_Raw_Data_for_FY22[[#This Row],[Median]])/25)*15) + AAMC_Raw_Data_for_FY22[[#This Row],[Median]]","v":796692.2},{"$f":"(((AAMC_Raw_Data_for_FY22[[#This Row],[75th]]-AAMC_Raw_Data_for_FY22[[#This Row],[Median]])/25)*20) + AAMC_Raw_Data_for_FY22[[#This Row],[Median]]","v":870589.6},944487,{"$f":"(((AAMC_Raw_Data_for_FY22[[#This Row],[75th]]-AAMC_Raw_Data_for_FY22[[#This Row],[Median]])/25)*30) + AAMC_Raw_Data_for_FY22[[#This Row],[Median]]","v":1018384.3999999999},{"$f":"(((AAMC_Raw_Data_for_FY22[[#This Row],[75th]]-AAMC_Raw_Data_for_FY22[[#This Row],[Median]])/25)*35) + AAMC_Raw_Data_for_FY22[[#This Row],[Median]]","v":1092281.8},{"$f":"(((AAMC_Raw_Data_for_FY22[[#This Row],[75th]]-AAMC_Raw_Data_for_FY22[[#This Row],[Median]])/25)*40) + AAMC_Raw_Data_for_FY22[[#This Row],[Median]]","v":1166179.2}]
[{"$f":"AAMC_Raw_Data_for_FY22[[#This Row],[Source]]&AAMC_Raw_Data_for_FY22[[#This Row],[Type]]&AAMC_Raw_Data_for_FY22[[#This Row],[School Subset]]&AAMC_Raw_Data_for_FY22[[#This Row],[Rank]]&AAMC_Raw_Data_for_FY22[[#This Row],[Degree]]&AAMC_Raw_Data_for_FY22[[#This Row],[Department / Specialty]]&\"L\"","v":"AAMCAcademicAllInstructorMDEndocrinology-Med.L"},"Endocrinology-Med.",5,"AAMC","Academic","All","Instructor","MD","2021-2022",105328,{"$f":"(((AAMC_Raw_Data_for_FY22[[#This Row],[Median]]-AAMC_Raw_Data_for_FY22[[#This Row],[25th]])/25)*5) + AAMC_Raw_Data_for_FY22[[#This Row],[25th]]","v":118262.39999999999},{"$f":"(((AAMC_Raw_Data_for_FY22[[#This Row],[Median]]-AAMC_Raw_Data_for_FY22[[#This Row],[25th]])/25)*10) + AAMC_Raw_Data_for_FY22[[#This Row],[25th]]","v":131196.79999999999},{"$f":"(((AAMC_Raw_Data_for_FY22[[#This Row],[Median]]-AAMC_Raw_Data_for_FY22[[#This Row],[25th]])/25)*15) + AAMC_Raw_Data_for_FY22[[#This Row],[25th]]","v":144131.20000000001},{"$f":"(((AAMC_Raw_Data_for_FY22[[#This Row],[Median]]-AAMC_Raw_Data_for_FY22[[#This Row],[25th]])/25)*20) + AAMC_Raw_Data_for_FY22[[#This Row],[25th]]","v":157065.60000000001},170000,{"$f":"(((AAMC_Raw_Data_for_FY22[[#This Row],[75th]]-AAMC_Raw_Data_for_FY22[[#This Row],[Median]])/25)*5) + AAMC_Raw_Data_for_FY22[[#This Row],[Median]]","v":176435.4},{"$f":"(((AAMC_Raw_Data_for_FY22[[#This Row],[75th]]-AAMC_Raw_Data_for_FY22[[#This Row],[Median]])/25)*10) + AAMC_Raw_Data_for_FY22[[#This Row],[Median]]","v":182870.8},{"$f":"(((AAMC_Raw_Data_for_FY22[[#This Row],[75th]]-AAMC_Raw_Data_for_FY22[[#This Row],[Median]])/25)*15) + AAMC_Raw_Data_for_FY22[[#This Row],[Median]]","v":189306.2},{"$f":"(((AAMC_Raw_Data_for_FY22[[#This Row],[75th]]-AAMC_Raw_Data_for_FY22[[#This Row],[Median]])/25)*20) + AAMC_Raw_Data_for_FY22[[#This Row],[Median]]","v":195741.6},202177,{"$f":"(((AAMC_Raw_Data_for_FY22[[#This Row],[75th]]-AAMC_Raw_Data_for_FY22[[#This Row],[Median]])/25)*30) + AAMC_Raw_Data_for_FY22[[#This Row],[Median]]","v":208612.4},{"$f":"(((AAMC_Raw_Data_for_FY22[[#This Row],[75th]]-AAMC_Raw_Data_for_FY22[[#This Row],[Median]])/25)*35) + AAMC_Raw_Data_for_FY22[[#This Row],[Median]]","v":215047.8},{"$f":"(((AAMC_Raw_Data_for_FY22[[#This Row],[75th]]-AAMC_Raw_Data_for_FY22[[#This Row],[Median]])/25)*40) + AAMC_Raw_Data_for_FY22[[#This Row],[Median]]","v":221483.2}]
[{"$f":"AAMC_Raw_Data_for_FY22[[#This Row],[Source]]&AAMC_Raw_Data_for_FY22[[#This Row],[Type]]&AAMC_Raw_Data_for_FY22[[#This Row],[School Subset]]&AAMC_Raw_Data_for_FY22[[#This Row],[Rank]]&AAMC_Raw_Data_for_FY22[[#This Row],[Degree]]&AAMC_Raw_Data_for_FY22[[#This Row],[Department / Specialty]]&\"L\"","v":"AAMCAcademicAllAssistantMDEndocrinology-Med.L"},"Endocrinology-Med.",4,"AAMC","Academic","All","Assistant","MD","2021-2022",177036,{"$f":"(((AAMC_Raw_Data_for_FY22[[#This Row],[Median]]-AAMC_Raw_Data_for_FY22[[#This Row],[25th]])/25)*5) + AAMC_Raw_Data_for_FY22[[#This Row],[25th]]","v":181613.8},{"$f":"(((AAMC_Raw_Data_for_FY22[[#This Row],[Median]]-AAMC_Raw_Data_for_FY22[[#This Row],[25th]])/25)*10) + AAMC_Raw_Data_for_FY22[[#This Row],[25th]]","v":186191.6},{"$f":"(((AAMC_Raw_Data_for_FY22[[#This Row],[Median]]-AAMC_Raw_Data_for_FY22[[#This Row],[25th]])/25)*15) + AAMC_Raw_Data_for_FY22[[#This Row],[25th]]","v":190769.4},{"$f":"(((AAMC_Raw_Data_for_FY22[[#This Row],[Median]]-AAMC_Raw_Data_for_FY22[[#This Row],[25th]])/25)*20) + AAMC_Raw_Data_for_FY22[[#This Row],[25th]]","v":195347.20000000001},199925,{"$f":"(((AAMC_Raw_Data_for_FY22[[#This Row],[75th]]-AAMC_Raw_Data_for_FY22[[#This Row],[Median]])/25)*5) + AAMC_Raw_Data_for_FY22[[#This Row],[Median]]","v":207799.2},{"$f":"(((AAMC_Raw_Data_for_FY22[[#This Row],[75th]]-AAMC_Raw_Data_for_FY22[[#This Row],[Median]])/25)*10) + AAMC_Raw_Data_for_FY22[[#This Row],[Median]]","v":215673.4},{"$f":"(((AAMC_Raw_Data_for_FY22[[#This Row],[75th]]-AAMC_Raw_Data_for_FY22[[#This Row],[Median]])/25)*15) + AAMC_Raw_Data_for_FY22[[#This Row],[Median]]","v":223547.6},{"$f":"(((AAMC_Raw_Data_for_FY22[[#This Row],[75th]]-AAMC_Raw_Data_for_FY22[[#This Row],[Median]])/25)*20) + AAMC_Raw_Data_for_FY22[[#This Row],[Median]]","v":231421.8},239296,{"$f":"(((AAMC_Raw_Data_for_FY22[[#This Row],[75th]]-AAMC_Raw_Data_for_FY22[[#This Row],[Median]])/25)*30) + AAMC_Raw_Data_for_FY22[[#This Row],[Median]]","v":247170.2},{"$f":"(((AAMC_Raw_Data_for_FY22[[#This Row],[75th]]-AAMC_Raw_Data_for_FY22[[#This Row],[Median]])/25)*35) + AAMC_Raw_Data_for_FY22[[#This Row],[Median]]","v":255044.4},{"$f":"(((AAMC_Raw_Data_for_FY22[[#This Row],[75th]]-AAMC_Raw_Data_for_FY22[[#This Row],[Median]])/25)*40) + AAMC_Raw_Data_for_FY22[[#This Row],[Median]]","v":262918.59999999998}]
[{"$f":"AAMC_Raw_Data_for_FY22[[#This Row],[Source]]&AAMC_Raw_Data_for_FY22[[#This Row],[Type]]&AAMC_Raw_Data_for_FY22[[#This Row],[School Subset]]&AAMC_Raw_Data_for_FY22[[#This Row],[Rank]]&AAMC_Raw_Data_for_FY22[[#This Row],[Degree]]&AAMC_Raw_Data_for_FY22[[#This Row],[Department / Specialty]]&\"L\"","v":"AAMCAcademicAllAssociateMDEndocrinology-Med.L"},"Endocrinology-Med.",3,"AAMC","Academic","All","Associate","MD","2021-2022",201378,{"$f":"(((AAMC_Raw_Data_for_FY22[[#This Row],[Median]]-AAMC_Raw_Data_for_FY22[[#This Row],[25th]])/25)*5) + AAMC_Raw_Data_for_FY22[[#This Row],[25th]]","v":205733.4},{"$f":"(((AAMC_Raw_Data_for_FY22[[#This Row],[Median]]-AAMC_Raw_Data_for_FY22[[#This Row],[25th]])/25)*10) + AAMC_Raw_Data_for_FY22[[#This Row],[25th]]","v":210088.8},{"$f":"(((AAMC_Raw_Data_for_FY22[[#This Row],[Median]]-AAMC_Raw_Data_for_FY22[[#This Row],[25th]])/25)*15) + AAMC_Raw_Data_for_FY22[[#This Row],[25th]]","v":214444.2},{"$f":"(((AAMC_Raw_Data_for_FY22[[#This Row],[Median]]-AAMC_Raw_Data_for_FY22[[#This Row],[25th]])/25)*20) + AAMC_Raw_Data_for_FY22[[#This Row],[25th]]","v":218799.6},223155,{"$f":"(((AAMC_Raw_Data_for_FY22[[#This Row],[75th]]-AAMC_Raw_Data_for_FY22[[#This Row],[Median]])/25)*5) + AAMC_Raw_Data_for_FY22[[#This Row],[Median]]","v":230542.2},{"$f":"(((AAMC_Raw_Data_for_FY22[[#This Row],[75th]]-AAMC_Raw_Data_for_FY22[[#This Row],[Median]])/25)*10) + AAMC_Raw_Data_for_FY22[[#This Row],[Median]]","v":237929.4},{"$f":"(((AAMC_Raw_Data_for_FY22[[#This Row],[75th]]-AAMC_Raw_Data_for_FY22[[#This Row],[Median]])/25)*15) + AAMC_Raw_Data_for_FY22[[#This Row],[Median]]","v":245316.6},{"$f":"(((AAMC_Raw_Data_for_FY22[[#This Row],[75th]]-AAMC_Raw_Data_for_FY22[[#This Row],[Median]])/25)*20) + AAMC_Raw_Data_for_FY22[[#This Row],[Median]]","v":252703.8},260091,{"$f":"(((AAMC_Raw_Data_for_FY22[[#This Row],[75th]]-AAMC_Raw_Data_for_FY22[[#This Row],[Median]])/25)*30) + AAMC_Raw_Data_for_FY22[[#This Row],[Median]]","v":267478.2},{"$f":"(((AAMC_Raw_Data_for_FY22[[#This Row],[75th]]-AAMC_Raw_Data_for_FY22[[#This Row],[Median]])/25)*35) + AAMC_Raw_Data_for_FY22[[#This Row],[Median]]","v":274865.40000000002},{"$f":"(((AAMC_Raw_Data_for_FY22[[#This Row],[75th]]-AAMC_Raw_Data_for_FY22[[#This Row],[Median]])/25)*40) + AAMC_Raw_Data_for_FY22[[#This Row],[Median]]","v":282252.59999999998}]
[{"$f":"AAMC_Raw_Data_for_FY22[[#This Row],[Source]]&AAMC_Raw_Data_for_FY22[[#This Row],[Type]]&AAMC_Raw_Data_for_FY22[[#This Row],[School Subset]]&AAMC_Raw_Data_for_FY22[[#This Row],[Rank]]&AAMC_Raw_Data_for_FY22[[#This Row],[Degree]]&AAMC_Raw_Data_for_FY22[[#This Row],[Department / Specialty]]&\"L\"","v":"AAMCAcademicAllProfessorMDEndocrinology-Med.L"},"Endocrinology-Med.",2,"AAMC","Academic","All","Professor","MD","2021-2022",227916,{"$f":"(((AAMC_Raw_Data_for_FY22[[#This Row],[Median]]-AAMC_Raw_Data_for_FY22[[#This Row],[25th]])/25)*5) + AAMC_Raw_Data_for_FY22[[#This Row],[25th]]","v":236818.6},{"$f":"(((AAMC_Raw_Data_for_FY22[[#This Row],[Median]]-AAMC_Raw_Data_for_FY22[[#This Row],[25th]])/25)*10) + AAMC_Raw_Data_for_FY22[[#This Row],[25th]]","v":245721.2},{"$f":"(((AAMC_Raw_Data_for_FY22[[#This Row],[Median]]-AAMC_Raw_Data_for_FY22[[#This Row],[25th]])/25)*15) + AAMC_Raw_Data_for_FY22[[#This Row],[25th]]","v":254623.8},{"$f":"(((AAMC_Raw_Data_for_FY22[[#This Row],[Median]]-AAMC_Raw_Data_for_FY22[[#This Row],[25th]])/25)*20) + AAMC_Raw_Data_for_FY22[[#This Row],[25th]]","v":263526.40000000002},272429,{"$f":"(((AAMC_Raw_Data_for_FY22[[#This Row],[75th]]-AAMC_Raw_Data_for_FY22[[#This Row],[Median]])/25)*5) + AAMC_Raw_Data_for_FY22[[#This Row],[Median]]","v":282833.2},{"$f":"(((AAMC_Raw_Data_for_FY22[[#This Row],[75th]]-AAMC_Raw_Data_for_FY22[[#This Row],[Median]])/25)*10) + AAMC_Raw_Data_for_FY22[[#This Row],[Median]]","v":293237.40000000002},{"$f":"(((AAMC_Raw_Data_for_FY22[[#This Row],[75th]]-AAMC_Raw_Data_for_FY22[[#This Row],[Median]])/25)*15) + AAMC_Raw_Data_for_FY22[[#This Row],[Median]]","v":303641.59999999998},{"$f":"(((AAMC_Raw_Data_for_FY22[[#This Row],[75th]]-AAMC_Raw_Data_for_FY22[[#This Row],[Median]])/25)*20) + AAMC_Raw_Data_for_FY22[[#This Row],[Median]]","v":314045.8},324450,{"$f":"(((AAMC_Raw_Data_for_FY22[[#This Row],[75th]]-AAMC_Raw_Data_for_FY22[[#This Row],[Median]])/25)*30) + AAMC_Raw_Data_for_FY22[[#This Row],[Median]]","v":334854.2},{"$f":"(((AAMC_Raw_Data_for_FY22[[#This Row],[75th]]-AAMC_Raw_Data_for_FY22[[#This Row],[Median]])/25)*35) + AAMC_Raw_Data_for_FY22[[#This Row],[Median]]","v":345258.4},{"$f":"(((AAMC_Raw_Data_for_FY22[[#This Row],[75th]]-AAMC_Raw_Data_for_FY22[[#This Row],[Median]])/25)*40) + AAMC_Raw_Data_for_FY22[[#This Row],[Median]]","v":355662.6}]
[{"$f":"AAMC_Raw_Data_for_FY22[[#This Row],[Source]]&AAMC_Raw_Data_for_FY22[[#This Row],[Type]]&AAMC_Raw_Data_for_FY22[[#This Row],[School Subset]]&AAMC_Raw_Data_for_FY22[[#This Row],[Rank]]&AAMC_Raw_Data_for_FY22[[#This Row],[Degree]]&AAMC_Raw_Data_for_FY22[[#This Row],[Department / Specialty]]&\"L\"","v":"AAMCAcademicAllChiefMDEndocrinology-Med.L"},"Endocrinology-Med.",6,"AAMC","Academic","All","Chief","MD","2021-2022",290652,{"$f":"(((AAMC_Raw_Data_for_FY22[[#This Row],[Median]]-AAMC_Raw_Data_for_FY22[[#This Row],[25th]])/25)*5) + AAMC_Raw_Data_for_FY22[[#This Row],[25th]]","v":297824.8},{"$f":"(((AAMC_Raw_Data_for_FY22[[#This Row],[Median]]-AAMC_Raw_Data_for_FY22[[#This Row],[25th]])/25)*10) + AAMC_Raw_Data_for_FY22[[#This Row],[25th]]","v":304997.59999999998},{"$f":"(((AAMC_Raw_Data_for_FY22[[#This Row],[Median]]-AAMC_Raw_Data_for_FY22[[#This Row],[25th]])/25)*15) + AAMC_Raw_Data_for_FY22[[#This Row],[25th]]","v":312170.40000000002},{"$f":"(((AAMC_Raw_Data_for_FY22[[#This Row],[Median]]-AAMC_Raw_Data_for_FY22[[#This Row],[25th]])/25)*20) + AAMC_Raw_Data_for_FY22[[#This Row],[25th]]","v":319343.2},326516,{"$f":"(((AAMC_Raw_Data_for_FY22[[#This Row],[75th]]-AAMC_Raw_Data_for_FY22[[#This Row],[Median]])/25)*5) + AAMC_Raw_Data_for_FY22[[#This Row],[Median]]","v":331090},{"$f":"(((AAMC_Raw_Data_for_FY22[[#This Row],[75th]]-AAMC_Raw_Data_for_FY22[[#This Row],[Median]])/25)*10) + AAMC_Raw_Data_for_FY22[[#This Row],[Median]]","v":335664},{"$f":"(((AAMC_Raw_Data_for_FY22[[#This Row],[75th]]-AAMC_Raw_Data_for_FY22[[#This Row],[Median]])/25)*15) + AAMC_Raw_Data_for_FY22[[#This Row],[Median]]","v":340238},{"$f":"(((AAMC_Raw_Data_for_FY22[[#This Row],[75th]]-AAMC_Raw_Data_for_FY22[[#This Row],[Median]])/25)*20) + AAMC_Raw_Data_for_FY22[[#This Row],[Median]]","v":344812},349386,{"$f":"(((AAMC_Raw_Data_for_FY22[[#This Row],[75th]]-AAMC_Raw_Data_for_FY22[[#This Row],[Median]])/25)*30) + AAMC_Raw_Data_for_FY22[[#This Row],[Median]]","v":353960},{"$f":"(((AAMC_Raw_Data_for_FY22[[#This Row],[75th]]-AAMC_Raw_Data_for_FY22[[#This Row],[Median]])/25)*35) + AAMC_Raw_Data_for_FY22[[#This Row],[Median]]","v":358534},{"$f":"(((AAMC_Raw_Data_for_FY22[[#This Row],[75th]]-AAMC_Raw_Data_for_FY22[[#This Row],[Median]])/25)*40) + AAMC_Raw_Data_for_FY22[[#This Row],[Median]]","v":363108}]
[{"$f":"AAMC_Raw_Data_for_FY22[[#This Row],[Source]]&AAMC_Raw_Data_for_FY22[[#This Row],[Type]]&AAMC_Raw_Data_for_FY22[[#This Row],[School Subset]]&AAMC_Raw_Data_for_FY22[[#This Row],[Rank]]&AAMC_Raw_Data_for_FY22[[#This Row],[Degree]]&AAMC_Raw_Data_for_FY22[[#This Row],[Department / Specialty]]&\"L\"","v":"AAMCAcademicAllChairMDEndocrinology-Med.L"},"Endocrinology-Med.",1,"AAMC","Academic","All","Chair","MD","2021-2022",404592,{"$f":"(((AAMC_Raw_Data_for_FY22[[#This Row],[Median]]-AAMC_Raw_Data_for_FY22[[#This Row],[25th]])/25)*5) + AAMC_Raw_Data_for_FY22[[#This Row],[25th]]","v":412387.2},{"$f":"(((AAMC_Raw_Data_for_FY22[[#This Row],[Median]]-AAMC_Raw_Data_for_FY22[[#This Row],[25th]])/25)*10) + AAMC_Raw_Data_for_FY22[[#This Row],[25th]]","v":420182.4},{"$f":"(((AAMC_Raw_Data_for_FY22[[#This Row],[Median]]-AAMC_Raw_Data_for_FY22[[#This Row],[25th]])/25)*15) + AAMC_Raw_Data_for_FY22[[#This Row],[25th]]","v":427977.6},{"$f":"(((AAMC_Raw_Data_for_FY22[[#This Row],[Median]]-AAMC_Raw_Data_for_FY22[[#This Row],[25th]])/25)*20) + AAMC_Raw_Data_for_FY22[[#This Row],[25th]]","v":435772.8},443568,{"$f":"(((AAMC_Raw_Data_for_FY22[[#This Row],[75th]]-AAMC_Raw_Data_for_FY22[[#This Row],[Median]])/25)*5) + AAMC_Raw_Data_for_FY22[[#This Row],[Median]]","v":452778},{"$f":"(((AAMC_Raw_Data_for_FY22[[#This Row],[75th]]-AAMC_Raw_Data_for_FY22[[#This Row],[Median]])/25)*10) + AAMC_Raw_Data_for_FY22[[#This Row],[Median]]","v":461988},{"$f":"(((AAMC_Raw_Data_for_FY22[[#This Row],[75th]]-AAMC_Raw_Data_for_FY22[[#This Row],[Median]])/25)*15) + AAMC_Raw_Data_for_FY22[[#This Row],[Median]]","v":471198},{"$f":"(((AAMC_Raw_Data_for_FY22[[#This Row],[75th]]-AAMC_Raw_Data_for_FY22[[#This Row],[Median]])/25)*20) + AAMC_Raw_Data_for_FY22[[#This Row],[Median]]","v":480408},489618,{"$f":"(((AAMC_Raw_Data_for_FY22[[#This Row],[75th]]-AAMC_Raw_Data_for_FY22[[#This Row],[Median]])/25)*30) + AAMC_Raw_Data_for_FY22[[#This Row],[Median]]","v":498828},{"$f":"(((AAMC_Raw_Data_for_FY22[[#This Row],[75th]]-AAMC_Raw_Data_for_FY22[[#This Row],[Median]])/25)*35) + AAMC_Raw_Data_for_FY22[[#This Row],[Median]]","v":508038},{"$f":"(((AAMC_Raw_Data_for_FY22[[#This Row],[75th]]-AAMC_Raw_Data_for_FY22[[#This Row],[Median]])/25)*40) + AAMC_Raw_Data_for_FY22[[#This Row],[Median]]","v":517248}]
[{"$f":"AAMC_Raw_Data_for_FY22[[#This Row],[Source]]&AAMC_Raw_Data_for_FY22[[#This Row],[Type]]&AAMC_Raw_Data_for_FY22[[#This Row],[School Subset]]&AAMC_Raw_Data_for_FY22[[#This Row],[Rank]]&AAMC_Raw_Data_for_FY22[[#This Row],[Degree]]&AAMC_Raw_Data_for_FY22[[#This Row],[Department / Specialty]]&\"L\"","v":"AAMCAcademicAllInstructorMDGastroenterology-Med.L"},"Gastroenterology-Med.",5,"AAMC","Academic","All","Instructor","MD","2021-2022",115500,{"$f":"(((AAMC_Raw_Data_for_FY22[[#This Row],[Median]]-AAMC_Raw_Data_for_FY22[[#This Row],[25th]])/25)*5) + AAMC_Raw_Data_for_FY22[[#This Row],[25th]]","v":140025.4},{"$f":"(((AAMC_Raw_Data_for_FY22[[#This Row],[Median]]-AAMC_Raw_Data_for_FY22[[#This Row],[25th]])/25)*10) + AAMC_Raw_Data_for_FY22[[#This Row],[25th]]","v":164550.79999999999},{"$f":"(((AAMC_Raw_Data_for_FY22[[#This Row],[Median]]-AAMC_Raw_Data_for_FY22[[#This Row],[25th]])/25)*15) + AAMC_Raw_Data_for_FY22[[#This Row],[25th]]","v":189076.2},{"$f":"(((AAMC_Raw_Data_for_FY22[[#This Row],[Median]]-AAMC_Raw_Data_for_FY22[[#This Row],[25th]])/25)*20) + AAMC_Raw_Data_for_FY22[[#This Row],[25th]]","v":213601.6},238127,{"$f":"(((AAMC_Raw_Data_for_FY22[[#This Row],[75th]]-AAMC_Raw_Data_for_FY22[[#This Row],[Median]])/25)*5) + AAMC_Raw_Data_for_FY22[[#This Row],[Median]]","v":254855.8},{"$f":"(((AAMC_Raw_Data_for_FY22[[#This Row],[75th]]-AAMC_Raw_Data_for_FY22[[#This Row],[Median]])/25)*10) + AAMC_Raw_Data_for_FY22[[#This Row],[Median]]","v":271584.59999999998},{"$f":"(((AAMC_Raw_Data_for_FY22[[#This Row],[75th]]-AAMC_Raw_Data_for_FY22[[#This Row],[Median]])/25)*15) + AAMC_Raw_Data_for_FY22[[#This Row],[Median]]","v":288313.40000000002},{"$f":"(((AAMC_Raw_Data_for_FY22[[#This Row],[75th]]-AAMC_Raw_Data_for_FY22[[#This Row],[Median]])/25)*20) + AAMC_Raw_Data_for_FY22[[#This Row],[Median]]","v":305042.2},321771,{"$f":"(((AAMC_Raw_Data_for_FY22[[#This Row],[75th]]-AAMC_Raw_Data_for_FY22[[#This Row],[Median]])/25)*30) + AAMC_Raw_Data_for_FY22[[#This Row],[Median]]","v":338499.8},{"$f":"(((AAMC_Raw_Data_for_FY22[[#This Row],[75th]]-AAMC_Raw_Data_for_FY22[[#This Row],[Median]])/25)*35) + AAMC_Raw_Data_for_FY22[[#This Row],[Median]]","v":355228.6},{"$f":"(((AAMC_Raw_Data_for_FY22[[#This Row],[75th]]-AAMC_Raw_Data_for_FY22[[#This Row],[Median]])/25)*40) + AAMC_Raw_Data_for_FY22[[#This Row],[Median]]","v":371957.4}]
[{"$f":"AAMC_Raw_Data_for_FY22[[#This Row],[Source]]&AAMC_Raw_Data_for_FY22[[#This Row],[Type]]&AAMC_Raw_Data_for_FY22[[#This Row],[School Subset]]&AAMC_Raw_Data_for_FY22[[#This Row],[Rank]]&AAMC_Raw_Data_for_FY22[[#This Row],[Degree]]&AAMC_Raw_Data_for_FY22[[#This Row],[Department / Specialty]]&\"L\"","v":"AAMCAcademicAllAssistantMDGastroenterology-Med.L"},"Gastroenterology-Med.",4,"AAMC","Academic","All","Assistant","MD","2021-2022",289680,{"$f":"(((AAMC_Raw_Data_for_FY22[[#This Row],[Median]]-AAMC_Raw_Data_for_FY22[[#This Row],[25th]])/25)*5) + AAMC_Raw_Data_for_FY22[[#This Row],[25th]]","v":299744},{"$f":"(((AAMC_Raw_Data_for_FY22[[#This Row],[Median]]-AAMC_Raw_Data_for_FY22[[#This Row],[25th]])/25)*10) + AAMC_Raw_Data_for_FY22[[#This Row],[25th]]","v":309808},{"$f":"(((AAMC_Raw_Data_for_FY22[[#This Row],[Median]]-AAMC_Raw_Data_for_FY22[[#This Row],[25th]])/25)*15) + AAMC_Raw_Data_for_FY22[[#This Row],[25th]]","v":319872},{"$f":"(((AAMC_Raw_Data_for_FY22[[#This Row],[Median]]-AAMC_Raw_Data_for_FY22[[#This Row],[25th]])/25)*20) + AAMC_Raw_Data_for_FY22[[#This Row],[25th]]","v":329936},340000,{"$f":"(((AAMC_Raw_Data_for_FY22[[#This Row],[75th]]-AAMC_Raw_Data_for_FY22[[#This Row],[Median]])/25)*5) + AAMC_Raw_Data_for_FY22[[#This Row],[Median]]","v":354563},{"$f":"(((AAMC_Raw_Data_for_FY22[[#This Row],[75th]]-AAMC_Raw_Data_for_FY22[[#This Row],[Median]])/25)*10) + AAMC_Raw_Data_for_FY22[[#This Row],[Median]]","v":369126},{"$f":"(((AAMC_Raw_Data_for_FY22[[#This Row],[75th]]-AAMC_Raw_Data_for_FY22[[#This Row],[Median]])/25)*15) + AAMC_Raw_Data_for_FY22[[#This Row],[Median]]","v":383689},{"$f":"(((AAMC_Raw_Data_for_FY22[[#This Row],[75th]]-AAMC_Raw_Data_for_FY22[[#This Row],[Median]])/25)*20) + AAMC_Raw_Data_for_FY22[[#This Row],[Median]]","v":398252},412815,{"$f":"(((AAMC_Raw_Data_for_FY22[[#This Row],[75th]]-AAMC_Raw_Data_for_FY22[[#This Row],[Median]])/25)*30) + AAMC_Raw_Data_for_FY22[[#This Row],[Median]]","v":427378},{"$f":"(((AAMC_Raw_Data_for_FY22[[#This Row],[75th]]-AAMC_Raw_Data_for_FY22[[#This Row],[Median]])/25)*35) + AAMC_Raw_Data_for_FY22[[#This Row],[Median]]","v":441941},{"$f":"(((AAMC_Raw_Data_for_FY22[[#This Row],[75th]]-AAMC_Raw_Data_for_FY22[[#This Row],[Median]])/25)*40) + AAMC_Raw_Data_for_FY22[[#This Row],[Median]]","v":456504}]
[{"$f":"AAMC_Raw_Data_for_FY22[[#This Row],[Source]]&AAMC_Raw_Data_for_FY22[[#This Row],[Type]]&AAMC_Raw_Data_for_FY22[[#This Row],[School Subset]]&AAMC_Raw_Data_for_FY22[[#This Row],[Rank]]&AAMC_Raw_Data_for_FY22[[#This Row],[Degree]]&AAMC_Raw_Data_for_FY22[[#This Row],[Department / Specialty]]&\"L\"","v":"AAMCAcademicAllAssociateMDGastroenterology-Med.L"},"Gastroenterology-Med.",3,"AAMC","Academic","All","Associate","MD","2021-2022",334750,{"$f":"(((AAMC_Raw_Data_for_FY22[[#This Row],[Median]]-AAMC_Raw_Data_for_FY22[[#This Row],[25th]])/25)*5) + AAMC_Raw_Data_for_FY22[[#This Row],[25th]]","v":348136},{"$f":"(((AAMC_Raw_Data_for_FY22[[#This Row],[Median]]-AAMC_Raw_Data_for_FY22[[#This Row],[25th]])/25)*10) + AAMC_Raw_Data_for_FY22[[#This Row],[25th]]","v":361522},{"$f":"(((AAMC_Raw_Data_for_FY22[[#This Row],[Median]]-AAMC_Raw_Data_for_FY22[[#This Row],[25th]])/25)*15) + AAMC_Raw_Data_for_FY22[[#This Row],[25th]]","v":374908},{"$f":"(((AAMC_Raw_Data_for_FY22[[#This Row],[Median]]-AAMC_Raw_Data_for_FY22[[#This Row],[25th]])/25)*20) + AAMC_Raw_Data_for_FY22[[#This Row],[25th]]","v":388294},401680,{"$f":"(((AAMC_Raw_Data_for_FY22[[#This Row],[75th]]-AAMC_Raw_Data_for_FY22[[#This Row],[Median]])/25)*5) + AAMC_Raw_Data_for_FY22[[#This Row],[Median]]","v":418501},{"$f":"(((AAMC_Raw_Data_for_FY22[[#This Row],[75th]]-AAMC_Raw_Data_for_FY22[[#This Row],[Median]])/25)*10) + AAMC_Raw_Data_for_FY22[[#This Row],[Median]]","v":435322},{"$f":"(((AAMC_Raw_Data_for_FY22[[#This Row],[75th]]-AAMC_Raw_Data_for_FY22[[#This Row],[Median]])/25)*15) + AAMC_Raw_Data_for_FY22[[#This Row],[Median]]","v":452143},{"$f":"(((AAMC_Raw_Data_for_FY22[[#This Row],[75th]]-AAMC_Raw_Data_for_FY22[[#This Row],[Median]])/25)*20) + AAMC_Raw_Data_for_FY22[[#This Row],[Median]]","v":468964},485785,{"$f":"(((AAMC_Raw_Data_for_FY22[[#This Row],[75th]]-AAMC_Raw_Data_for_FY22[[#This Row],[Median]])/25)*30) + AAMC_Raw_Data_for_FY22[[#This Row],[Median]]","v":502606},{"$f":"(((AAMC_Raw_Data_for_FY22[[#This Row],[75th]]-AAMC_Raw_Data_for_FY22[[#This Row],[Median]])/25)*35) + AAMC_Raw_Data_for_FY22[[#This Row],[Median]]","v":519427},{"$f":"(((AAMC_Raw_Data_for_FY22[[#This Row],[75th]]-AAMC_Raw_Data_for_FY22[[#This Row],[Median]])/25)*40) + AAMC_Raw_Data_for_FY22[[#This Row],[Median]]","v":536248}]
[{"$f":"AAMC_Raw_Data_for_FY22[[#This Row],[Source]]&AAMC_Raw_Data_for_FY22[[#This Row],[Type]]&AAMC_Raw_Data_for_FY22[[#This Row],[School Subset]]&AAMC_Raw_Data_for_FY22[[#This Row],[Rank]]&AAMC_Raw_Data_for_FY22[[#This Row],[Degree]]&AAMC_Raw_Data_for_FY22[[#This Row],[Department / Specialty]]&\"L\"","v":"AAMCAcademicAllProfessorMDGastroenterology-Med.L"},"Gastroenterology-Med.",2,"AAMC","Academic","All","Professor","MD","2021-2022",345189,{"$f":"(((AAMC_Raw_Data_for_FY22[[#This Row],[Median]]-AAMC_Raw_Data_for_FY22[[#This Row],[25th]])/25)*5) + AAMC_Raw_Data_for_FY22[[#This Row],[25th]]","v":361340.2},{"$f":"(((AAMC_Raw_Data_for_FY22[[#This Row],[Median]]-AAMC_Raw_Data_for_FY22[[#This Row],[25th]])/25)*10) + AAMC_Raw_Data_for_FY22[[#This Row],[25th]]","v":377491.4},{"$f":"(((AAMC_Raw_Data_for_FY22[[#This Row],[Median]]-AAMC_Raw_Data_for_FY22[[#This Row],[25th]])/25)*15) + AAMC_Raw_Data_for_FY22[[#This Row],[25th]]","v":393642.6},{"$f":"(((AAMC_Raw_Data_for_FY22[[#This Row],[Median]]-AAMC_Raw_Data_for_FY22[[#This Row],[25th]])/25)*20) + AAMC_Raw_Data_for_FY22[[#This Row],[25th]]","v":409793.8},425945,{"$f":"(((AAMC_Raw_Data_for_FY22[[#This Row],[75th]]-AAMC_Raw_Data_for_FY22[[#This Row],[Median]])/25)*5) + AAMC_Raw_Data_for_FY22[[#This Row],[Median]]","v":447160.8},{"$f":"(((AAMC_Raw_Data_for_FY22[[#This Row],[75th]]-AAMC_Raw_Data_for_FY22[[#This Row],[Median]])/25)*10) + AAMC_Raw_Data_for_FY22[[#This Row],[Median]]","v":468376.6},{"$f":"(((AAMC_Raw_Data_for_FY22[[#This Row],[75th]]-AAMC_Raw_Data_for_FY22[[#This Row],[Median]])/25)*15) + AAMC_Raw_Data_for_FY22[[#This Row],[Median]]","v":489592.4},{"$f":"(((AAMC_Raw_Data_for_FY22[[#This Row],[75th]]-AAMC_Raw_Data_for_FY22[[#This Row],[Median]])/25)*20) + AAMC_Raw_Data_for_FY22[[#This Row],[Median]]","v":510808.2},532024,{"$f":"(((AAMC_Raw_Data_for_FY22[[#This Row],[75th]]-AAMC_Raw_Data_for_FY22[[#This Row],[Median]])/25)*30) + AAMC_Raw_Data_for_FY22[[#This Row],[Median]]","v":553239.80000000005},{"$f":"(((AAMC_Raw_Data_for_FY22[[#This Row],[75th]]-AAMC_Raw_Data_for_FY22[[#This Row],[Median]])/25)*35) + AAMC_Raw_Data_for_FY22[[#This Row],[Median]]","v":574455.6},{"$f":"(((AAMC_Raw_Data_for_FY22[[#This Row],[75th]]-AAMC_Raw_Data_for_FY22[[#This Row],[Median]])/25)*40) + AAMC_Raw_Data_for_FY22[[#This Row],[Median]]","v":595671.4}]
[{"$f":"AAMC_Raw_Data_for_FY22[[#This Row],[Source]]&AAMC_Raw_Data_for_FY22[[#This Row],[Type]]&AAMC_Raw_Data_for_FY22[[#This Row],[School Subset]]&AAMC_Raw_Data_for_FY22[[#This Row],[Rank]]&AAMC_Raw_Data_for_FY22[[#This Row],[Degree]]&AAMC_Raw_Data_for_FY22[[#This Row],[Department / Specialty]]&\"L\"","v":"AAMCAcademicAllChiefMDGastroenterology-Med.L"},"Gastroenterology-Med.",6,"AAMC","Academic","All","Chief","MD","2021-2022",471592,{"$f":"(((AAMC_Raw_Data_for_FY22[[#This Row],[Median]]-AAMC_Raw_Data_for_FY22[[#This Row],[25th]])/25)*5) + AAMC_Raw_Data_for_FY22[[#This Row],[25th]]","v":485594.2},{"$f":"(((AAMC_Raw_Data_for_FY22[[#This Row],[Median]]-AAMC_Raw_Data_for_FY22[[#This Row],[25th]])/25)*10) + AAMC_Raw_Data_for_FY22[[#This Row],[25th]]","v":499596.4},{"$f":"(((AAMC_Raw_Data_for_FY22[[#This Row],[Median]]-AAMC_Raw_Data_for_FY22[[#This Row],[25th]])/25)*15) + AAMC_Raw_Data_for_FY22[[#This Row],[25th]]","v":513598.6},{"$f":"(((AAMC_Raw_Data_for_FY22[[#This Row],[Median]]-AAMC_Raw_Data_for_FY22[[#This Row],[25th]])/25)*20) + AAMC_Raw_Data_for_FY22[[#This Row],[25th]]","v":527600.80000000005},541603,{"$f":"(((AAMC_Raw_Data_for_FY22[[#This Row],[75th]]-AAMC_Raw_Data_for_FY22[[#This Row],[Median]])/25)*5) + AAMC_Raw_Data_for_FY22[[#This Row],[Median]]","v":557727.6},{"$f":"(((AAMC_Raw_Data_for_FY22[[#This Row],[75th]]-AAMC_Raw_Data_for_FY22[[#This Row],[Median]])/25)*10) + AAMC_Raw_Data_for_FY22[[#This Row],[Median]]","v":573852.19999999995},{"$f":"(((AAMC_Raw_Data_for_FY22[[#This Row],[75th]]-AAMC_Raw_Data_for_FY22[[#This Row],[Median]])/25)*15) + AAMC_Raw_Data_for_FY22[[#This Row],[Median]]","v":589976.80000000005},{"$f":"(((AAMC_Raw_Data_for_FY22[[#This Row],[75th]]-AAMC_Raw_Data_for_FY22[[#This Row],[Median]])/25)*20) + AAMC_Raw_Data_for_FY22[[#This Row],[Median]]","v":606101.4},622226,{"$f":"(((AAMC_Raw_Data_for_FY22[[#This Row],[75th]]-AAMC_Raw_Data_for_FY22[[#This Row],[Median]])/25)*30) + AAMC_Raw_Data_for_FY22[[#This Row],[Median]]","v":638350.6},{"$f":"(((AAMC_Raw_Data_for_FY22[[#This Row],[75th]]-AAMC_Raw_Data_for_FY22[[#This Row],[Median]])/25)*35) + AAMC_Raw_Data_for_FY22[[#This Row],[Median]]","v":654475.19999999995},{"$f":"(((AAMC_Raw_Data_for_FY22[[#This Row],[75th]]-AAMC_Raw_Data_for_FY22[[#This Row],[Median]])/25)*40) + AAMC_Raw_Data_for_FY22[[#This Row],[Median]]","v":670599.80000000005}]
[{"$f":"AAMC_Raw_Data_for_FY22[[#This Row],[Source]]&AAMC_Raw_Data_for_FY22[[#This Row],[Type]]&AAMC_Raw_Data_for_FY22[[#This Row],[School Subset]]&AAMC_Raw_Data_for_FY22[[#This Row],[Rank]]&AAMC_Raw_Data_for_FY22[[#This Row],[Degree]]&AAMC_Raw_Data_for_FY22[[#This Row],[Department / Specialty]]&\"L\"","v":"AAMCAcademicAllChairMDGastroenterology-Med.L"},"Gastroenterology-Med.",1,"AAMC","Academic","All","Chair","MD","2021-2022",651500,{"$f":"(((AAMC_Raw_Data_for_FY22[[#This Row],[Median]]-AAMC_Raw_Data_for_FY22[[#This Row],[25th]])/25)*5) + AAMC_Raw_Data_for_FY22[[#This Row],[25th]]","v":654800},{"$f":"(((AAMC_Raw_Data_for_FY22[[#This Row],[Median]]-AAMC_Raw_Data_for_FY22[[#This Row],[25th]])/25)*10) + AAMC_Raw_Data_for_FY22[[#This Row],[25th]]","v":658100},{"$f":"(((AAMC_Raw_Data_for_FY22[[#This Row],[Median]]-AAMC_Raw_Data_for_FY22[[#This Row],[25th]])/25)*15) + AAMC_Raw_Data_for_FY22[[#This Row],[25th]]","v":661400},{"$f":"(((AAMC_Raw_Data_for_FY22[[#This Row],[Median]]-AAMC_Raw_Data_for_FY22[[#This Row],[25th]])/25)*20) + AAMC_Raw_Data_for_FY22[[#This Row],[25th]]","v":664700},668000,{"$f":"(((AAMC_Raw_Data_for_FY22[[#This Row],[75th]]-AAMC_Raw_Data_for_FY22[[#This Row],[Median]])/25)*5) + AAMC_Raw_Data_for_FY22[[#This Row],[Median]]","v":680496.6},{"$f":"(((AAMC_Raw_Data_for_FY22[[#This Row],[75th]]-AAMC_Raw_Data_for_FY22[[#This Row],[Median]])/25)*10) + AAMC_Raw_Data_for_FY22[[#This Row],[Median]]","v":692993.2},{"$f":"(((AAMC_Raw_Data_for_FY22[[#This Row],[75th]]-AAMC_Raw_Data_for_FY22[[#This Row],[Median]])/25)*15) + AAMC_Raw_Data_for_FY22[[#This Row],[Median]]","v":705489.8},{"$f":"(((AAMC_Raw_Data_for_FY22[[#This Row],[75th]]-AAMC_Raw_Data_for_FY22[[#This Row],[Median]])/25)*20) + AAMC_Raw_Data_for_FY22[[#This Row],[Median]]","v":717986.4},730483,{"$f":"(((AAMC_Raw_Data_for_FY22[[#This Row],[75th]]-AAMC_Raw_Data_for_FY22[[#This Row],[Median]])/25)*30) + AAMC_Raw_Data_for_FY22[[#This Row],[Median]]","v":742979.6},{"$f":"(((AAMC_Raw_Data_for_FY22[[#This Row],[75th]]-AAMC_Raw_Data_for_FY22[[#This Row],[Median]])/25)*35) + AAMC_Raw_Data_for_FY22[[#This Row],[Median]]","v":755476.2},{"$f":"(((AAMC_Raw_Data_for_FY22[[#This Row],[75th]]-AAMC_Raw_Data_for_FY22[[#This Row],[Median]])/25)*40) + AAMC_Raw_Data_for_FY22[[#This Row],[Median]]","v":767972.8}]
[{"$f":"AAMC_Raw_Data_for_FY22[[#This Row],[Source]]&AAMC_Raw_Data_for_FY22[[#This Row],[Type]]&AAMC_Raw_Data_for_FY22[[#This Row],[School Subset]]&AAMC_Raw_Data_for_FY22[[#This Row],[Rank]]&AAMC_Raw_Data_for_FY22[[#This Row],[Degree]]&AAMC_Raw_Data_for_FY22[[#This Row],[Department / Specialty]]&\"L\"","v":"AAMCAcademicAllInstructorMDGeneral Internal MedicineL"},"General Internal Medicine",5,"AAMC","Academic","All","Instructor","MD","2021-2022",148961,{"$f":"(((AAMC_Raw_Data_for_FY22[[#This Row],[Median]]-AAMC_Raw_Data_for_FY22[[#This Row],[25th]])/25)*5) + AAMC_Raw_Data_for_FY22[[#This Row],[25th]]","v":161175.6},{"$f":"(((AAMC_Raw_Data_for_FY22[[#This Row],[Median]]-AAMC_Raw_Data_for_FY22[[#This Row],[25th]])/25)*10) + AAMC_Raw_Data_for_FY22[[#This Row],[25th]]","v":173390.2},{"$f":"(((AAMC_Raw_Data_for_FY22[[#This Row],[Median]]-AAMC_Raw_Data_for_FY22[[#This Row],[25th]])/25)*15) + AAMC_Raw_Data_for_FY22[[#This Row],[25th]]","v":185604.8},{"$f":"(((AAMC_Raw_Data_for_FY22[[#This Row],[Median]]-AAMC_Raw_Data_for_FY22[[#This Row],[25th]])/25)*20) + AAMC_Raw_Data_for_FY22[[#This Row],[25th]]","v":197819.4},210034,{"$f":"(((AAMC_Raw_Data_for_FY22[[#This Row],[75th]]-AAMC_Raw_Data_for_FY22[[#This Row],[Median]])/25)*5) + AAMC_Raw_Data_for_FY22[[#This Row],[Median]]","v":220880.8},{"$f":"(((AAMC_Raw_Data_for_FY22[[#This Row],[75th]]-AAMC_Raw_Data_for_FY22[[#This Row],[Median]])/25)*10) + AAMC_Raw_Data_for_FY22[[#This Row],[Median]]","v":231727.6},{"$f":"(((AAMC_Raw_Data_for_FY22[[#This Row],[75th]]-AAMC_Raw_Data_for_FY22[[#This Row],[Median]])/25)*15) + AAMC_Raw_Data_for_FY22[[#This Row],[Median]]","v":242574.4},{"$f":"(((AAMC_Raw_Data_for_FY22[[#This Row],[75th]]-AAMC_Raw_Data_for_FY22[[#This Row],[Median]])/25)*20) + AAMC_Raw_Data_for_FY22[[#This Row],[Median]]","v":253421.2},264268,{"$f":"(((AAMC_Raw_Data_for_FY22[[#This Row],[75th]]-AAMC_Raw_Data_for_FY22[[#This Row],[Median]])/25)*30) + AAMC_Raw_Data_for_FY22[[#This Row],[Median]]","v":275114.8},{"$f":"(((AAMC_Raw_Data_for_FY22[[#This Row],[75th]]-AAMC_Raw_Data_for_FY22[[#This Row],[Median]])/25)*35) + AAMC_Raw_Data_for_FY22[[#This Row],[Median]]","v":285961.59999999998},{"$f":"(((AAMC_Raw_Data_for_FY22[[#This Row],[75th]]-AAMC_Raw_Data_for_FY22[[#This Row],[Median]])/25)*40) + AAMC_Raw_Data_for_FY22[[#This Row],[Median]]","v":296808.40000000002}]
[{"$f":"AAMC_Raw_Data_for_FY22[[#This Row],[Source]]&AAMC_Raw_Data_for_FY22[[#This Row],[Type]]&AAMC_Raw_Data_for_FY22[[#This Row],[School Subset]]&AAMC_Raw_Data_for_FY22[[#This Row],[Rank]]&AAMC_Raw_Data_for_FY22[[#This Row],[Degree]]&AAMC_Raw_Data_for_FY22[[#This Row],[Department / Specialty]]&\"L\"","v":"AAMCAcademicAllAssistantMDGeneral Internal MedicineL"},"General Internal Medicine",4,"AAMC","Academic","All","Assistant","MD","2021-2022",207222,{"$f":"(((AAMC_Raw_Data_for_FY22[[#This Row],[Median]]-AAMC_Raw_Data_for_FY22[[#This Row],[25th]])/25)*5) + AAMC_Raw_Data_for_FY22[[#This Row],[25th]]","v":212906.2},{"$f":"(((AAMC_Raw_Data_for_FY22[[#This Row],[Median]]-AAMC_Raw_Data_for_FY22[[#This Row],[25th]])/25)*10) + AAMC_Raw_Data_for_FY22[[#This Row],[25th]]","v":218590.4},{"$f":"(((AAMC_Raw_Data_for_FY22[[#This Row],[Median]]-AAMC_Raw_Data_for_FY22[[#This Row],[25th]])/25)*15) + AAMC_Raw_Data_for_FY22[[#This Row],[25th]]","v":224274.6},{"$f":"(((AAMC_Raw_Data_for_FY22[[#This Row],[Median]]-AAMC_Raw_Data_for_FY22[[#This Row],[25th]])/25)*20) + AAMC_Raw_Data_for_FY22[[#This Row],[25th]]","v":229958.8},235643,{"$f":"(((AAMC_Raw_Data_for_FY22[[#This Row],[75th]]-AAMC_Raw_Data_for_FY22[[#This Row],[Median]])/25)*5) + AAMC_Raw_Data_for_FY22[[#This Row],[Median]]","v":243749.2},{"$f":"(((AAMC_Raw_Data_for_FY22[[#This Row],[75th]]-AAMC_Raw_Data_for_FY22[[#This Row],[Median]])/25)*10) + AAMC_Raw_Data_for_FY22[[#This Row],[Median]]","v":251855.4},{"$f":"(((AAMC_Raw_Data_for_FY22[[#This Row],[75th]]-AAMC_Raw_Data_for_FY22[[#This Row],[Median]])/25)*15) + AAMC_Raw_Data_for_FY22[[#This Row],[Median]]","v":259961.60000000001},{"$f":"(((AAMC_Raw_Data_for_FY22[[#This Row],[75th]]-AAMC_Raw_Data_for_FY22[[#This Row],[Median]])/25)*20) + AAMC_Raw_Data_for_FY22[[#This Row],[Median]]","v":268067.8},276174,{"$f":"(((AAMC_Raw_Data_for_FY22[[#This Row],[75th]]-AAMC_Raw_Data_for_FY22[[#This Row],[Median]])/25)*30) + AAMC_Raw_Data_for_FY22[[#This Row],[Median]]","v":284280.2},{"$f":"(((AAMC_Raw_Data_for_FY22[[#This Row],[75th]]-AAMC_Raw_Data_for_FY22[[#This Row],[Median]])/25)*35) + AAMC_Raw_Data_for_FY22[[#This Row],[Median]]","v":292386.40000000002},{"$f":"(((AAMC_Raw_Data_for_FY22[[#This Row],[75th]]-AAMC_Raw_Data_for_FY22[[#This Row],[Median]])/25)*40) + AAMC_Raw_Data_for_FY22[[#This Row],[Median]]","v":300492.59999999998}]
[{"$f":"AAMC_Raw_Data_for_FY22[[#This Row],[Source]]&AAMC_Raw_Data_for_FY22[[#This Row],[Type]]&AAMC_Raw_Data_for_FY22[[#This Row],[School Subset]]&AAMC_Raw_Data_for_FY22[[#This Row],[Rank]]&AAMC_Raw_Data_for_FY22[[#This Row],[Degree]]&AAMC_Raw_Data_for_FY22[[#This Row],[Department / Specialty]]&\"L\"","v":"AAMCAcademicAllAssociateMDGeneral Internal MedicineL"},"General Internal Medicine",3,"AAMC","Academic","All","Associate","MD","2021-2022",225000,{"$f":"(((AAMC_Raw_Data_for_FY22[[#This Row],[Median]]-AAMC_Raw_Data_for_FY22[[#This Row],[25th]])/25)*5) + AAMC_Raw_Data_for_FY22[[#This Row],[25th]]","v":230956.79999999999},{"$f":"(((AAMC_Raw_Data_for_FY22[[#This Row],[Median]]-AAMC_Raw_Data_for_FY22[[#This Row],[25th]])/25)*10) + AAMC_Raw_Data_for_FY22[[#This Row],[25th]]","v":236913.6},{"$f":"(((AAMC_Raw_Data_for_FY22[[#This Row],[Median]]-AAMC_Raw_Data_for_FY22[[#This Row],[25th]])/25)*15) + AAMC_Raw_Data_for_FY22[[#This Row],[25th]]","v":242870.39999999999},{"$f":"(((AAMC_Raw_Data_for_FY22[[#This Row],[Median]]-AAMC_Raw_Data_for_FY22[[#This Row],[25th]])/25)*20) + AAMC_Raw_Data_for_FY22[[#This Row],[25th]]","v":248827.2},254784,{"$f":"(((AAMC_Raw_Data_for_FY22[[#This Row],[75th]]-AAMC_Raw_Data_for_FY22[[#This Row],[Median]])/25)*5) + AAMC_Raw_Data_for_FY22[[#This Row],[Median]]","v":263467.2},{"$f":"(((AAMC_Raw_Data_for_FY22[[#This Row],[75th]]-AAMC_Raw_Data_for_FY22[[#This Row],[Median]])/25)*10) + AAMC_Raw_Data_for_FY22[[#This Row],[Median]]","v":272150.40000000002},{"$f":"(((AAMC_Raw_Data_for_FY22[[#This Row],[75th]]-AAMC_Raw_Data_for_FY22[[#This Row],[Median]])/25)*15) + AAMC_Raw_Data_for_FY22[[#This Row],[Median]]","v":280833.59999999998},{"$f":"(((AAMC_Raw_Data_for_FY22[[#This Row],[75th]]-AAMC_Raw_Data_for_FY22[[#This Row],[Median]])/25)*20) + AAMC_Raw_Data_for_FY22[[#This Row],[Median]]","v":289516.79999999999},298200,{"$f":"(((AAMC_Raw_Data_for_FY22[[#This Row],[75th]]-AAMC_Raw_Data_for_FY22[[#This Row],[Median]])/25)*30) + AAMC_Raw_Data_for_FY22[[#This Row],[Median]]","v":306883.20000000001},{"$f":"(((AAMC_Raw_Data_for_FY22[[#This Row],[75th]]-AAMC_Raw_Data_for_FY22[[#This Row],[Median]])/25)*35) + AAMC_Raw_Data_for_FY22[[#This Row],[Median]]","v":315566.40000000002},{"$f":"(((AAMC_Raw_Data_for_FY22[[#This Row],[75th]]-AAMC_Raw_Data_for_FY22[[#This Row],[Median]])/25)*40) + AAMC_Raw_Data_for_FY22[[#This Row],[Median]]","v":324249.59999999998}]
[{"$f":"AAMC_Raw_Data_for_FY22[[#This Row],[Source]]&AAMC_Raw_Data_for_FY22[[#This Row],[Type]]&AAMC_Raw_Data_for_FY22[[#This Row],[School Subset]]&AAMC_Raw_Data_for_FY22[[#This Row],[Rank]]&AAMC_Raw_Data_for_FY22[[#This Row],[Degree]]&AAMC_Raw_Data_for_FY22[[#This Row],[Department / Specialty]]&\"L\"","v":"AAMCAcademicAllProfessorMDGeneral Internal MedicineL"},"General Internal Medicine",2,"AAMC","Academic","All","Professor","MD","2021-2022",254173,{"$f":"(((AAMC_Raw_Data_for_FY22[[#This Row],[Median]]-AAMC_Raw_Data_for_FY22[[#This Row],[25th]])/25)*5) + AAMC_Raw_Data_for_FY22[[#This Row],[25th]]","v":260814.4},{"$f":"(((AAMC_Raw_Data_for_FY22[[#This Row],[Median]]-AAMC_Raw_Data_for_FY22[[#This Row],[25th]])/25)*10) + AAMC_Raw_Data_for_FY22[[#This Row],[25th]]","v":267455.8},{"$f":"(((AAMC_Raw_Data_for_FY22[[#This Row],[Median]]-AAMC_Raw_Data_for_FY22[[#This Row],[25th]])/25)*15) + AAMC_Raw_Data_for_FY22[[#This Row],[25th]]","v":274097.2},{"$f":"(((AAMC_Raw_Data_for_FY22[[#This Row],[Median]]-AAMC_Raw_Data_for_FY22[[#This Row],[25th]])/25)*20) + AAMC_Raw_Data_for_FY22[[#This Row],[25th]]","v":280738.59999999998},287380,{"$f":"(((AAMC_Raw_Data_for_FY22[[#This Row],[75th]]-AAMC_Raw_Data_for_FY22[[#This Row],[Median]])/25)*5) + AAMC_Raw_Data_for_FY22[[#This Row],[Median]]","v":298265.2},{"$f":"(((AAMC_Raw_Data_for_FY22[[#This Row],[75th]]-AAMC_Raw_Data_for_FY22[[#This Row],[Median]])/25)*10) + AAMC_Raw_Data_for_FY22[[#This Row],[Median]]","v":309150.40000000002},{"$f":"(((AAMC_Raw_Data_for_FY22[[#This Row],[75th]]-AAMC_Raw_Data_for_FY22[[#This Row],[Median]])/25)*15) + AAMC_Raw_Data_for_FY22[[#This Row],[Median]]","v":320035.59999999998},{"$f":"(((AAMC_Raw_Data_for_FY22[[#This Row],[75th]]-AAMC_Raw_Data_for_FY22[[#This Row],[Median]])/25)*20) + AAMC_Raw_Data_for_FY22[[#This Row],[Median]]","v":330920.8},341806,{"$f":"(((AAMC_Raw_Data_for_FY22[[#This Row],[75th]]-AAMC_Raw_Data_for_FY22[[#This Row],[Median]])/25)*30) + AAMC_Raw_Data_for_FY22[[#This Row],[Median]]","v":352691.20000000001},{"$f":"(((AAMC_Raw_Data_for_FY22[[#This Row],[75th]]-AAMC_Raw_Data_for_FY22[[#This Row],[Median]])/25)*35) + AAMC_Raw_Data_for_FY22[[#This Row],[Median]]","v":363576.4},{"$f":"(((AAMC_Raw_Data_for_FY22[[#This Row],[75th]]-AAMC_Raw_Data_for_FY22[[#This Row],[Median]])/25)*40) + AAMC_Raw_Data_for_FY22[[#This Row],[Median]]","v":374461.6}]
[{"$f":"AAMC_Raw_Data_for_FY22[[#This Row],[Source]]&AAMC_Raw_Data_for_FY22[[#This Row],[Type]]&AAMC_Raw_Data_for_FY22[[#This Row],[School Subset]]&AAMC_Raw_Data_for_FY22[[#This Row],[Rank]]&AAMC_Raw_Data_for_FY22[[#This Row],[Degree]]&AAMC_Raw_Data_for_FY22[[#This Row],[Department / Specialty]]&\"L\"","v":"AAMCAcademicAllChiefMDGeneral Internal MedicineL"},"General Internal Medicine",6,"AAMC","Academic","All","Chief","MD","2021-2022",274840,{"$f":"(((AAMC_Raw_Data_for_FY22[[#This Row],[Median]]-AAMC_Raw_Data_for_FY22[[#This Row],[25th]])/25)*5) + AAMC_Raw_Data_for_FY22[[#This Row],[25th]]","v":285908},{"$f":"(((AAMC_Raw_Data_for_FY22[[#This Row],[Median]]-AAMC_Raw_Data_for_FY22[[#This Row],[25th]])/25)*10) + AAMC_Raw_Data_for_FY22[[#This Row],[25th]]","v":296976},{"$f":"(((AAMC_Raw_Data_for_FY22[[#This Row],[Median]]-AAMC_Raw_Data_for_FY22[[#This Row],[25th]])/25)*15) + AAMC_Raw_Data_for_FY22[[#This Row],[25th]]","v":308044},{"$f":"(((AAMC_Raw_Data_for_FY22[[#This Row],[Median]]-AAMC_Raw_Data_for_FY22[[#This Row],[25th]])/25)*20) + AAMC_Raw_Data_for_FY22[[#This Row],[25th]]","v":319112},330180,{"$f":"(((AAMC_Raw_Data_for_FY22[[#This Row],[75th]]-AAMC_Raw_Data_for_FY22[[#This Row],[Median]])/25)*5) + AAMC_Raw_Data_for_FY22[[#This Row],[Median]]","v":342729},{"$f":"(((AAMC_Raw_Data_for_FY22[[#This Row],[75th]]-AAMC_Raw_Data_for_FY22[[#This Row],[Median]])/25)*10) + AAMC_Raw_Data_for_FY22[[#This Row],[Median]]","v":355278},{"$f":"(((AAMC_Raw_Data_for_FY22[[#This Row],[75th]]-AAMC_Raw_Data_for_FY22[[#This Row],[Median]])/25)*15) + AAMC_Raw_Data_for_FY22[[#This Row],[Median]]","v":367827},{"$f":"(((AAMC_Raw_Data_for_FY22[[#This Row],[75th]]-AAMC_Raw_Data_for_FY22[[#This Row],[Median]])/25)*20) + AAMC_Raw_Data_for_FY22[[#This Row],[Median]]","v":380376},392925,{"$f":"(((AAMC_Raw_Data_for_FY22[[#This Row],[75th]]-AAMC_Raw_Data_for_FY22[[#This Row],[Median]])/25)*30) + AAMC_Raw_Data_for_FY22[[#This Row],[Median]]","v":405474},{"$f":"(((AAMC_Raw_Data_for_FY22[[#This Row],[75th]]-AAMC_Raw_Data_for_FY22[[#This Row],[Median]])/25)*35) + AAMC_Raw_Data_for_FY22[[#This Row],[Median]]","v":418023},{"$f":"(((AAMC_Raw_Data_for_FY22[[#This Row],[75th]]-AAMC_Raw_Data_for_FY22[[#This Row],[Median]])/25)*40) + AAMC_Raw_Data_for_FY22[[#This Row],[Median]]","v":430572}]
[{"$f":"AAMC_Raw_Data_for_FY22[[#This Row],[Source]]&AAMC_Raw_Data_for_FY22[[#This Row],[Type]]&AAMC_Raw_Data_for_FY22[[#This Row],[School Subset]]&AAMC_Raw_Data_for_FY22[[#This Row],[Rank]]&AAMC_Raw_Data_for_FY22[[#This Row],[Degree]]&AAMC_Raw_Data_for_FY22[[#This Row],[Department / Specialty]]&\"L\"","v":"AAMCAcademicAllChairMDGeneral Internal MedicineL"},"General Internal Medicine",1,"AAMC","Academic","All","Chair","MD","2021-2022",413437,{"$f":"(((AAMC_Raw_Data_for_FY22[[#This Row],[Median]]-AAMC_Raw_Data_for_FY22[[#This Row],[25th]])/25)*5) + AAMC_Raw_Data_for_FY22[[#This Row],[25th]]","v":439198.4},{"$f":"(((AAMC_Raw_Data_for_FY22[[#This Row],[Median]]-AAMC_Raw_Data_for_FY22[[#This Row],[25th]])/25)*10) + AAMC_Raw_Data_for_FY22[[#This Row],[25th]]","v":464959.8},{"$f":"(((AAMC_Raw_Data_for_FY22[[#This Row],[Median]]-AAMC_Raw_Data_for_FY22[[#This Row],[25th]])/25)*15) + AAMC_Raw_Data_for_FY22[[#This Row],[25th]]","v":490721.2},{"$f":"(((AAMC_Raw_Data_for_FY22[[#This Row],[Median]]-AAMC_Raw_Data_for_FY22[[#This Row],[25th]])/25)*20) + AAMC_Raw_Data_for_FY22[[#This Row],[25th]]","v":516482.6},542244,{"$f":"(((AAMC_Raw_Data_for_FY22[[#This Row],[75th]]-AAMC_Raw_Data_for_FY22[[#This Row],[Median]])/25)*5) + AAMC_Raw_Data_for_FY22[[#This Row],[Median]]","v":568834},{"$f":"(((AAMC_Raw_Data_for_FY22[[#This Row],[75th]]-AAMC_Raw_Data_for_FY22[[#This Row],[Median]])/25)*10) + AAMC_Raw_Data_for_FY22[[#This Row],[Median]]","v":595424},{"$f":"(((AAMC_Raw_Data_for_FY22[[#This Row],[75th]]-AAMC_Raw_Data_for_FY22[[#This Row],[Median]])/25)*15) + AAMC_Raw_Data_for_FY22[[#This Row],[Median]]","v":622014},{"$f":"(((AAMC_Raw_Data_for_FY22[[#This Row],[75th]]-AAMC_Raw_Data_for_FY22[[#This Row],[Median]])/25)*20) + AAMC_Raw_Data_for_FY22[[#This Row],[Median]]","v":648604},675194,{"$f":"(((AAMC_Raw_Data_for_FY22[[#This Row],[75th]]-AAMC_Raw_Data_for_FY22[[#This Row],[Median]])/25)*30) + AAMC_Raw_Data_for_FY22[[#This Row],[Median]]","v":701784},{"$f":"(((AAMC_Raw_Data_for_FY22[[#This Row],[75th]]-AAMC_Raw_Data_for_FY22[[#This Row],[Median]])/25)*35) + AAMC_Raw_Data_for_FY22[[#This Row],[Median]]","v":728374},{"$f":"(((AAMC_Raw_Data_for_FY22[[#This Row],[75th]]-AAMC_Raw_Data_for_FY22[[#This Row],[Median]])/25)*40) + AAMC_Raw_Data_for_FY22[[#This Row],[Median]]","v":754964}]
[{"$f":"AAMC_Raw_Data_for_FY22[[#This Row],[Source]]&AAMC_Raw_Data_for_FY22[[#This Row],[Type]]&AAMC_Raw_Data_for_FY22[[#This Row],[School Subset]]&AAMC_Raw_Data_for_FY22[[#This Row],[Rank]]&AAMC_Raw_Data_for_FY22[[#This Row],[Degree]]&AAMC_Raw_Data_for_FY22[[#This Row],[Department / Specialty]]&\"L\"","v":"AAMCAcademicAllInstructorMDGeriatrics-Med.L"},"Geriatrics-Med.",5,"AAMC","Academic","All","Instructor","MD","2021-2022",175757,{"$f":"(((AAMC_Raw_Data_for_FY22[[#This Row],[Median]]-AAMC_Raw_Data_for_FY22[[#This Row],[25th]])/25)*5) + AAMC_Raw_Data_for_FY22[[#This Row],[25th]]","v":182646.39999999999},{"$f":"(((AAMC_Raw_Data_for_FY22[[#This Row],[Median]]-AAMC_Raw_Data_for_FY22[[#This Row],[25th]])/25)*10) + AAMC_Raw_Data_for_FY22[[#This Row],[25th]]","v":189535.8},{"$f":"(((AAMC_Raw_Data_for_FY22[[#This Row],[Median]]-AAMC_Raw_Data_for_FY22[[#This Row],[25th]])/25)*15) + AAMC_Raw_Data_for_FY22[[#This Row],[25th]]","v":196425.2},{"$f":"(((AAMC_Raw_Data_for_FY22[[#This Row],[Median]]-AAMC_Raw_Data_for_FY22[[#This Row],[25th]])/25)*20) + AAMC_Raw_Data_for_FY22[[#This Row],[25th]]","v":203314.6},210204,{"$f":"(((AAMC_Raw_Data_for_FY22[[#This Row],[75th]]-AAMC_Raw_Data_for_FY22[[#This Row],[Median]])/25)*5) + AAMC_Raw_Data_for_FY22[[#This Row],[Median]]","v":213233.2},{"$f":"(((AAMC_Raw_Data_for_FY22[[#This Row],[75th]]-AAMC_Raw_Data_for_FY22[[#This Row],[Median]])/25)*10) + AAMC_Raw_Data_for_FY22[[#This Row],[Median]]","v":216262.39999999999},{"$f":"(((AAMC_Raw_Data_for_FY22[[#This Row],[75th]]-AAMC_Raw_Data_for_FY22[[#This Row],[Median]])/25)*15) + AAMC_Raw_Data_for_FY22[[#This Row],[Median]]","v":219291.6},{"$f":"(((AAMC_Raw_Data_for_FY22[[#This Row],[75th]]-AAMC_Raw_Data_for_FY22[[#This Row],[Median]])/25)*20) + AAMC_Raw_Data_for_FY22[[#This Row],[Median]]","v":222320.8},225350,{"$f":"(((AAMC_Raw_Data_for_FY22[[#This Row],[75th]]-AAMC_Raw_Data_for_FY22[[#This Row],[Median]])/25)*30) + AAMC_Raw_Data_for_FY22[[#This Row],[Median]]","v":228379.2},{"$f":"(((AAMC_Raw_Data_for_FY22[[#This Row],[75th]]-AAMC_Raw_Data_for_FY22[[#This Row],[Median]])/25)*35) + AAMC_Raw_Data_for_FY22[[#This Row],[Median]]","v":231408.4},{"$f":"(((AAMC_Raw_Data_for_FY22[[#This Row],[75th]]-AAMC_Raw_Data_for_FY22[[#This Row],[Median]])/25)*40) + AAMC_Raw_Data_for_FY22[[#This Row],[Median]]","v":234437.6}]
[{"$f":"AAMC_Raw_Data_for_FY22[[#This Row],[Source]]&AAMC_Raw_Data_for_FY22[[#This Row],[Type]]&AAMC_Raw_Data_for_FY22[[#This Row],[School Subset]]&AAMC_Raw_Data_for_FY22[[#This Row],[Rank]]&AAMC_Raw_Data_for_FY22[[#This Row],[Degree]]&AAMC_Raw_Data_for_FY22[[#This Row],[Department / Specialty]]&\"L\"","v":"AAMCAcademicAllAssistantMDGeriatrics-Med.L"},"Geriatrics-Med.",4,"AAMC","Academic","All","Assistant","MD","2021-2022",195000,{"$f":"(((AAMC_Raw_Data_for_FY22[[#This Row],[Median]]-AAMC_Raw_Data_for_FY22[[#This Row],[25th]])/25)*5) + AAMC_Raw_Data_for_FY22[[#This Row],[25th]]","v":198164.2},{"$f":"(((AAMC_Raw_Data_for_FY22[[#This Row],[Median]]-AAMC_Raw_Data_for_FY22[[#This Row],[25th]])/25)*10) + AAMC_Raw_Data_for_FY22[[#This Row],[25th]]","v":201328.4},{"$f":"(((AAMC_Raw_Data_for_FY22[[#This Row],[Median]]-AAMC_Raw_Data_for_FY22[[#This Row],[25th]])/25)*15) + AAMC_Raw_Data_for_FY22[[#This Row],[25th]]","v":204492.6},{"$f":"(((AAMC_Raw_Data_for_FY22[[#This Row],[Median]]-AAMC_Raw_Data_for_FY22[[#This Row],[25th]])/25)*20) + AAMC_Raw_Data_for_FY22[[#This Row],[25th]]","v":207656.8},210821,{"$f":"(((AAMC_Raw_Data_for_FY22[[#This Row],[75th]]-AAMC_Raw_Data_for_FY22[[#This Row],[Median]])/25)*5) + AAMC_Raw_Data_for_FY22[[#This Row],[Median]]","v":214511.6},{"$f":"(((AAMC_Raw_Data_for_FY22[[#This Row],[75th]]-AAMC_Raw_Data_for_FY22[[#This Row],[Median]])/25)*10) + AAMC_Raw_Data_for_FY22[[#This Row],[Median]]","v":218202.2},{"$f":"(((AAMC_Raw_Data_for_FY22[[#This Row],[75th]]-AAMC_Raw_Data_for_FY22[[#This Row],[Median]])/25)*15) + AAMC_Raw_Data_for_FY22[[#This Row],[Median]]","v":221892.8},{"$f":"(((AAMC_Raw_Data_for_FY22[[#This Row],[75th]]-AAMC_Raw_Data_for_FY22[[#This Row],[Median]])/25)*20) + AAMC_Raw_Data_for_FY22[[#This Row],[Median]]","v":225583.4},229274,{"$f":"(((AAMC_Raw_Data_for_FY22[[#This Row],[75th]]-AAMC_Raw_Data_for_FY22[[#This Row],[Median]])/25)*30) + AAMC_Raw_Data_for_FY22[[#This Row],[Median]]","v":232964.6},{"$f":"(((AAMC_Raw_Data_for_FY22[[#This Row],[75th]]-AAMC_Raw_Data_for_FY22[[#This Row],[Median]])/25)*35) + AAMC_Raw_Data_for_FY22[[#This Row],[Median]]","v":236655.2},{"$f":"(((AAMC_Raw_Data_for_FY22[[#This Row],[75th]]-AAMC_Raw_Data_for_FY22[[#This Row],[Median]])/25)*40) + AAMC_Raw_Data_for_FY22[[#This Row],[Median]]","v":240345.8}]
[{"$f":"AAMC_Raw_Data_for_FY22[[#This Row],[Source]]&AAMC_Raw_Data_for_FY22[[#This Row],[Type]]&AAMC_Raw_Data_for_FY22[[#This Row],[School Subset]]&AAMC_Raw_Data_for_FY22[[#This Row],[Rank]]&AAMC_Raw_Data_for_FY22[[#This Row],[Degree]]&AAMC_Raw_Data_for_FY22[[#This Row],[Department / Specialty]]&\"L\"","v":"AAMCAcademicAllAssociateMDGeriatrics-Med.L"},"Geriatrics-Med.",3,"AAMC","Academic","All","Associate","MD","2021-2022",217000,{"$f":"(((AAMC_Raw_Data_for_FY22[[#This Row],[Median]]-AAMC_Raw_Data_for_FY22[[#This Row],[25th]])/25)*5) + AAMC_Raw_Data_for_FY22[[#This Row],[25th]]","v":220907.6},{"$f":"(((AAMC_Raw_Data_for_FY22[[#This Row],[Median]]-AAMC_Raw_Data_for_FY22[[#This Row],[25th]])/25)*10) + AAMC_Raw_Data_for_FY22[[#This Row],[25th]]","v":224815.2},{"$f":"(((AAMC_Raw_Data_for_FY22[[#This Row],[Median]]-AAMC_Raw_Data_for_FY22[[#This Row],[25th]])/25)*15) + AAMC_Raw_Data_for_FY22[[#This Row],[25th]]","v":228722.8},{"$f":"(((AAMC_Raw_Data_for_FY22[[#This Row],[Median]]-AAMC_Raw_Data_for_FY22[[#This Row],[25th]])/25)*20) + AAMC_Raw_Data_for_FY22[[#This Row],[25th]]","v":232630.39999999999},236538,{"$f":"(((AAMC_Raw_Data_for_FY22[[#This Row],[75th]]-AAMC_Raw_Data_for_FY22[[#This Row],[Median]])/25)*5) + AAMC_Raw_Data_for_FY22[[#This Row],[Median]]","v":241256.4},{"$f":"(((AAMC_Raw_Data_for_FY22[[#This Row],[75th]]-AAMC_Raw_Data_for_FY22[[#This Row],[Median]])/25)*10) + AAMC_Raw_Data_for_FY22[[#This Row],[Median]]","v":245974.8},{"$f":"(((AAMC_Raw_Data_for_FY22[[#This Row],[75th]]-AAMC_Raw_Data_for_FY22[[#This Row],[Median]])/25)*15) + AAMC_Raw_Data_for_FY22[[#This Row],[Median]]","v":250693.2},{"$f":"(((AAMC_Raw_Data_for_FY22[[#This Row],[75th]]-AAMC_Raw_Data_for_FY22[[#This Row],[Median]])/25)*20) + AAMC_Raw_Data_for_FY22[[#This Row],[Median]]","v":255411.6},260130,{"$f":"(((AAMC_Raw_Data_for_FY22[[#This Row],[75th]]-AAMC_Raw_Data_for_FY22[[#This Row],[Median]])/25)*30) + AAMC_Raw_Data_for_FY22[[#This Row],[Median]]","v":264848.40000000002},{"$f":"(((AAMC_Raw_Data_for_FY22[[#This Row],[75th]]-AAMC_Raw_Data_for_FY22[[#This Row],[Median]])/25)*35) + AAMC_Raw_Data_for_FY22[[#This Row],[Median]]","v":269566.8},{"$f":"(((AAMC_Raw_Data_for_FY22[[#This Row],[75th]]-AAMC_Raw_Data_for_FY22[[#This Row],[Median]])/25)*40) + AAMC_Raw_Data_for_FY22[[#This Row],[Median]]","v":274285.2}]
[{"$f":"AAMC_Raw_Data_for_FY22[[#This Row],[Source]]&AAMC_Raw_Data_for_FY22[[#This Row],[Type]]&AAMC_Raw_Data_for_FY22[[#This Row],[School Subset]]&AAMC_Raw_Data_for_FY22[[#This Row],[Rank]]&AAMC_Raw_Data_for_FY22[[#This Row],[Degree]]&AAMC_Raw_Data_for_FY22[[#This Row],[Department / Specialty]]&\"L\"","v":"AAMCAcademicAllProfessorMDGeriatrics-Med.L"},"Geriatrics-Med.",2,"AAMC","Academic","All","Professor","MD","2021-2022",243423,{"$f":"(((AAMC_Raw_Data_for_FY22[[#This Row],[Median]]-AAMC_Raw_Data_for_FY22[[#This Row],[25th]])/25)*5) + AAMC_Raw_Data_for_FY22[[#This Row],[25th]]","v":249704.6},{"$f":"(((AAMC_Raw_Data_for_FY22[[#This Row],[Median]]-AAMC_Raw_Data_for_FY22[[#This Row],[25th]])/25)*10) + AAMC_Raw_Data_for_FY22[[#This Row],[25th]]","v":255986.2},{"$f":"(((AAMC_Raw_Data_for_FY22[[#This Row],[Median]]-AAMC_Raw_Data_for_FY22[[#This Row],[25th]])/25)*15) + AAMC_Raw_Data_for_FY22[[#This Row],[25th]]","v":262267.8},{"$f":"(((AAMC_Raw_Data_for_FY22[[#This Row],[Median]]-AAMC_Raw_Data_for_FY22[[#This Row],[25th]])/25)*20) + AAMC_Raw_Data_for_FY22[[#This Row],[25th]]","v":268549.40000000002},274831,{"$f":"(((AAMC_Raw_Data_for_FY22[[#This Row],[75th]]-AAMC_Raw_Data_for_FY22[[#This Row],[Median]])/25)*5) + AAMC_Raw_Data_for_FY22[[#This Row],[Median]]","v":283035.59999999998},{"$f":"(((AAMC_Raw_Data_for_FY22[[#This Row],[75th]]-AAMC_Raw_Data_for_FY22[[#This Row],[Median]])/25)*10) + AAMC_Raw_Data_for_FY22[[#This Row],[Median]]","v":291240.2},{"$f":"(((AAMC_Raw_Data_for_FY22[[#This Row],[75th]]-AAMC_Raw_Data_for_FY22[[#This Row],[Median]])/25)*15) + AAMC_Raw_Data_for_FY22[[#This Row],[Median]]","v":299444.8},{"$f":"(((AAMC_Raw_Data_for_FY22[[#This Row],[75th]]-AAMC_Raw_Data_for_FY22[[#This Row],[Median]])/25)*20) + AAMC_Raw_Data_for_FY22[[#This Row],[Median]]","v":307649.40000000002},315854,{"$f":"(((AAMC_Raw_Data_for_FY22[[#This Row],[75th]]-AAMC_Raw_Data_for_FY22[[#This Row],[Median]])/25)*30) + AAMC_Raw_Data_for_FY22[[#This Row],[Median]]","v":324058.59999999998},{"$f":"(((AAMC_Raw_Data_for_FY22[[#This Row],[75th]]-AAMC_Raw_Data_for_FY22[[#This Row],[Median]])/25)*35) + AAMC_Raw_Data_for_FY22[[#This Row],[Median]]","v":332263.2},{"$f":"(((AAMC_Raw_Data_for_FY22[[#This Row],[75th]]-AAMC_Raw_Data_for_FY22[[#This Row],[Median]])/25)*40) + AAMC_Raw_Data_for_FY22[[#This Row],[Median]]","v":340467.8}]
[{"$f":"AAMC_Raw_Data_for_FY22[[#This Row],[Source]]&AAMC_Raw_Data_for_FY22[[#This Row],[Type]]&AAMC_Raw_Data_for_FY22[[#This Row],[School Subset]]&AAMC_Raw_Data_for_FY22[[#This Row],[Rank]]&AAMC_Raw_Data_for_FY22[[#This Row],[Degree]]&AAMC_Raw_Data_for_FY22[[#This Row],[Department / Specialty]]&\"L\"","v":"AAMCAcademicAllChiefMDGeriatrics-Med.L"},"Geriatrics-Med.",6,"AAMC","Academic","All","Chief","MD","2021-2022",298592,{"$f":"(((AAMC_Raw_Data_for_FY22[[#This Row],[Median]]-AAMC_Raw_Data_for_FY22[[#This Row],[25th]])/25)*5) + AAMC_Raw_Data_for_FY22[[#This Row],[25th]]","v":304808.59999999998},{"$f":"(((AAMC_Raw_Data_for_FY22[[#This Row],[Median]]-AAMC_Raw_Data_for_FY22[[#This Row],[25th]])/25)*10) + AAMC_Raw_Data_for_FY22[[#This Row],[25th]]","v":311025.2},{"$f":"(((AAMC_Raw_Data_for_FY22[[#This Row],[Median]]-AAMC_Raw_Data_for_FY22[[#This Row],[25th]])/25)*15) + AAMC_Raw_Data_for_FY22[[#This Row],[25th]]","v":317241.8},{"$f":"(((AAMC_Raw_Data_for_FY22[[#This Row],[Median]]-AAMC_Raw_Data_for_FY22[[#This Row],[25th]])/25)*20) + AAMC_Raw_Data_for_FY22[[#This Row],[25th]]","v":323458.40000000002},329675,{"$f":"(((AAMC_Raw_Data_for_FY22[[#This Row],[75th]]-AAMC_Raw_Data_for_FY22[[#This Row],[Median]])/25)*5) + AAMC_Raw_Data_for_FY22[[#This Row],[Median]]","v":335263},{"$f":"(((AAMC_Raw_Data_for_FY22[[#This Row],[75th]]-AAMC_Raw_Data_for_FY22[[#This Row],[Median]])/25)*10) + AAMC_Raw_Data_for_FY22[[#This Row],[Median]]","v":340851},{"$f":"(((AAMC_Raw_Data_for_FY22[[#This Row],[75th]]-AAMC_Raw_Data_for_FY22[[#This Row],[Median]])/25)*15) + AAMC_Raw_Data_for_FY22[[#This Row],[Median]]","v":346439},{"$f":"(((AAMC_Raw_Data_for_FY22[[#This Row],[75th]]-AAMC_Raw_Data_for_FY22[[#This Row],[Median]])/25)*20) + AAMC_Raw_Data_for_FY22[[#This Row],[Median]]","v":352027},357615,{"$f":"(((AAMC_Raw_Data_for_FY22[[#This Row],[75th]]-AAMC_Raw_Data_for_FY22[[#This Row],[Median]])/25)*30) + AAMC_Raw_Data_for_FY22[[#This Row],[Median]]","v":363203},{"$f":"(((AAMC_Raw_Data_for_FY22[[#This Row],[75th]]-AAMC_Raw_Data_for_FY22[[#This Row],[Median]])/25)*35) + AAMC_Raw_Data_for_FY22[[#This Row],[Median]]","v":368791},{"$f":"(((AAMC_Raw_Data_for_FY22[[#This Row],[75th]]-AAMC_Raw_Data_for_FY22[[#This Row],[Median]])/25)*40) + AAMC_Raw_Data_for_FY22[[#This Row],[Median]]","v":374379}]
[{"$f":"AAMC_Raw_Data_for_FY22[[#This Row],[Source]]&AAMC_Raw_Data_for_FY22[[#This Row],[Type]]&AAMC_Raw_Data_for_FY22[[#This Row],[School Subset]]&AAMC_Raw_Data_for_FY22[[#This Row],[Rank]]&AAMC_Raw_Data_for_FY22[[#This Row],[Degree]]&AAMC_Raw_Data_for_FY22[[#This Row],[Department / Specialty]]&\"L\"","v":"AAMCAcademicAllChairMDGeriatrics-Med.L"},"Geriatrics-Med.",1,"AAMC","Academic","All","Chair","MD","2021-2022",370584,{"$f":"(((AAMC_Raw_Data_for_FY22[[#This Row],[Median]]-AAMC_Raw_Data_for_FY22[[#This Row],[25th]])/25)*5) + AAMC_Raw_Data_for_FY22[[#This Row],[25th]]","v":379295.6},{"$f":"(((AAMC_Raw_Data_for_FY22[[#This Row],[Median]]-AAMC_Raw_Data_for_FY22[[#This Row],[25th]])/25)*10) + AAMC_Raw_Data_for_FY22[[#This Row],[25th]]","v":388007.2},{"$f":"(((AAMC_Raw_Data_for_FY22[[#This Row],[Median]]-AAMC_Raw_Data_for_FY22[[#This Row],[25th]])/25)*15) + AAMC_Raw_Data_for_FY22[[#This Row],[25th]]","v":396718.8},{"$f":"(((AAMC_Raw_Data_for_FY22[[#This Row],[Median]]-AAMC_Raw_Data_for_FY22[[#This Row],[25th]])/25)*20) + AAMC_Raw_Data_for_FY22[[#This Row],[25th]]","v":405430.4},414142,{"$f":"(((AAMC_Raw_Data_for_FY22[[#This Row],[75th]]-AAMC_Raw_Data_for_FY22[[#This Row],[Median]])/25)*5) + AAMC_Raw_Data_for_FY22[[#This Row],[Median]]","v":425511.2},{"$f":"(((AAMC_Raw_Data_for_FY22[[#This Row],[75th]]-AAMC_Raw_Data_for_FY22[[#This Row],[Median]])/25)*10) + AAMC_Raw_Data_for_FY22[[#This Row],[Median]]","v":436880.4},{"$f":"(((AAMC_Raw_Data_for_FY22[[#This Row],[75th]]-AAMC_Raw_Data_for_FY22[[#This Row],[Median]])/25)*15) + AAMC_Raw_Data_for_FY22[[#This Row],[Median]]","v":448249.59999999998},{"$f":"(((AAMC_Raw_Data_for_FY22[[#This Row],[75th]]-AAMC_Raw_Data_for_FY22[[#This Row],[Median]])/25)*20) + AAMC_Raw_Data_for_FY22[[#This Row],[Median]]","v":459618.8},470988,{"$f":"(((AAMC_Raw_Data_for_FY22[[#This Row],[75th]]-AAMC_Raw_Data_for_FY22[[#This Row],[Median]])/25)*30) + AAMC_Raw_Data_for_FY22[[#This Row],[Median]]","v":482357.2},{"$f":"(((AAMC_Raw_Data_for_FY22[[#This Row],[75th]]-AAMC_Raw_Data_for_FY22[[#This Row],[Median]])/25)*35) + AAMC_Raw_Data_for_FY22[[#This Row],[Median]]","v":493726.4},{"$f":"(((AAMC_Raw_Data_for_FY22[[#This Row],[75th]]-AAMC_Raw_Data_for_FY22[[#This Row],[Median]])/25)*40) + AAMC_Raw_Data_for_FY22[[#This Row],[Median]]","v":505095.6}]
[{"$f":"AAMC_Raw_Data_for_FY22[[#This Row],[Source]]&AAMC_Raw_Data_for_FY22[[#This Row],[Type]]&AAMC_Raw_Data_for_FY22[[#This Row],[School Subset]]&AAMC_Raw_Data_for_FY22[[#This Row],[Rank]]&AAMC_Raw_Data_for_FY22[[#This Row],[Degree]]&AAMC_Raw_Data_for_FY22[[#This Row],[Department / Specialty]]&\"L\"","v":"AAMCAcademicAllInstructorMDHematology/Oncology-Med.L"},"Hematology/Oncology-Med.",5,"AAMC","Academic","All","Instructor","MD","2021-2022",145013,{"$f":"(((AAMC_Raw_Data_for_FY22[[#This Row],[Median]]-AAMC_Raw_Data_for_FY22[[#This Row],[25th]])/25)*5) + AAMC_Raw_Data_for_FY22[[#This Row],[25th]]","v":157610.4},{"$f":"(((AAMC_Raw_Data_for_FY22[[#This Row],[Median]]-AAMC_Raw_Data_for_FY22[[#This Row],[25th]])/25)*10) + AAMC_Raw_Data_for_FY22[[#This Row],[25th]]","v":170207.8},{"$f":"(((AAMC_Raw_Data_for_FY22[[#This Row],[Median]]-AAMC_Raw_Data_for_FY22[[#This Row],[25th]])/25)*15) + AAMC_Raw_Data_for_FY22[[#This Row],[25th]]","v":182805.2},{"$f":"(((AAMC_Raw_Data_for_FY22[[#This Row],[Median]]-AAMC_Raw_Data_for_FY22[[#This Row],[25th]])/25)*20) + AAMC_Raw_Data_for_FY22[[#This Row],[25th]]","v":195402.6},208000,{"$f":"(((AAMC_Raw_Data_for_FY22[[#This Row],[75th]]-AAMC_Raw_Data_for_FY22[[#This Row],[Median]])/25)*5) + AAMC_Raw_Data_for_FY22[[#This Row],[Median]]","v":218656},{"$f":"(((AAMC_Raw_Data_for_FY22[[#This Row],[75th]]-AAMC_Raw_Data_for_FY22[[#This Row],[Median]])/25)*10) + AAMC_Raw_Data_for_FY22[[#This Row],[Median]]","v":229312},{"$f":"(((AAMC_Raw_Data_for_FY22[[#This Row],[75th]]-AAMC_Raw_Data_for_FY22[[#This Row],[Median]])/25)*15) + AAMC_Raw_Data_for_FY22[[#This Row],[Median]]","v":239968},{"$f":"(((AAMC_Raw_Data_for_FY22[[#This Row],[75th]]-AAMC_Raw_Data_for_FY22[[#This Row],[Median]])/25)*20) + AAMC_Raw_Data_for_FY22[[#This Row],[Median]]","v":250624},261280,{"$f":"(((AAMC_Raw_Data_for_FY22[[#This Row],[75th]]-AAMC_Raw_Data_for_FY22[[#This Row],[Median]])/25)*30) + AAMC_Raw_Data_for_FY22[[#This Row],[Median]]","v":271936},{"$f":"(((AAMC_Raw_Data_for_FY22[[#This Row],[75th]]-AAMC_Raw_Data_for_FY22[[#This Row],[Median]])/25)*35) + AAMC_Raw_Data_for_FY22[[#This Row],[Median]]","v":282592},{"$f":"(((AAMC_Raw_Data_for_FY22[[#This Row],[75th]]-AAMC_Raw_Data_for_FY22[[#This Row],[Median]])/25)*40) + AAMC_Raw_Data_for_FY22[[#This Row],[Median]]","v":293248}]
[{"$f":"AAMC_Raw_Data_for_FY22[[#This Row],[Source]]&AAMC_Raw_Data_for_FY22[[#This Row],[Type]]&AAMC_Raw_Data_for_FY22[[#This Row],[School Subset]]&AAMC_Raw_Data_for_FY22[[#This Row],[Rank]]&AAMC_Raw_Data_for_FY22[[#This Row],[Degree]]&AAMC_Raw_Data_for_FY22[[#This Row],[Department / Specialty]]&\"L\"","v":"AAMCAcademicAllAssistantMDHematology/Oncology-Med.L"},"Hematology/Oncology-Med.",4,"AAMC","Academic","All","Assistant","MD","2021-2022",236278,{"$f":"(((AAMC_Raw_Data_for_FY22[[#This Row],[Median]]-AAMC_Raw_Data_for_FY22[[#This Row],[25th]])/25)*5) + AAMC_Raw_Data_for_FY22[[#This Row],[25th]]","v":243570.4},{"$f":"(((AAMC_Raw_Data_for_FY22[[#This Row],[Median]]-AAMC_Raw_Data_for_FY22[[#This Row],[25th]])/25)*10) + AAMC_Raw_Data_for_FY22[[#This Row],[25th]]","v":250862.8},{"$f":"(((AAMC_Raw_Data_for_FY22[[#This Row],[Median]]-AAMC_Raw_Data_for_FY22[[#This Row],[25th]])/25)*15) + AAMC_Raw_Data_for_FY22[[#This Row],[25th]]","v":258155.2},{"$f":"(((AAMC_Raw_Data_for_FY22[[#This Row],[Median]]-AAMC_Raw_Data_for_FY22[[#This Row],[25th]])/25)*20) + AAMC_Raw_Data_for_FY22[[#This Row],[25th]]","v":265447.59999999998},272740,{"$f":"(((AAMC_Raw_Data_for_FY22[[#This Row],[75th]]-AAMC_Raw_Data_for_FY22[[#This Row],[Median]])/25)*5) + AAMC_Raw_Data_for_FY22[[#This Row],[Median]]","v":287533.59999999998},{"$f":"(((AAMC_Raw_Data_for_FY22[[#This Row],[75th]]-AAMC_Raw_Data_for_FY22[[#This Row],[Median]])/25)*10) + AAMC_Raw_Data_for_FY22[[#This Row],[Median]]","v":302327.2},{"$f":"(((AAMC_Raw_Data_for_FY22[[#This Row],[75th]]-AAMC_Raw_Data_for_FY22[[#This Row],[Median]])/25)*15) + AAMC_Raw_Data_for_FY22[[#This Row],[Median]]","v":317120.8},{"$f":"(((AAMC_Raw_Data_for_FY22[[#This Row],[75th]]-AAMC_Raw_Data_for_FY22[[#This Row],[Median]])/25)*20) + AAMC_Raw_Data_for_FY22[[#This Row],[Median]]","v":331914.40000000002},346708,{"$f":"(((AAMC_Raw_Data_for_FY22[[#This Row],[75th]]-AAMC_Raw_Data_for_FY22[[#This Row],[Median]])/25)*30) + AAMC_Raw_Data_for_FY22[[#This Row],[Median]]","v":361501.6},{"$f":"(((AAMC_Raw_Data_for_FY22[[#This Row],[75th]]-AAMC_Raw_Data_for_FY22[[#This Row],[Median]])/25)*35) + AAMC_Raw_Data_for_FY22[[#This Row],[Median]]","v":376295.2},{"$f":"(((AAMC_Raw_Data_for_FY22[[#This Row],[75th]]-AAMC_Raw_Data_for_FY22[[#This Row],[Median]])/25)*40) + AAMC_Raw_Data_for_FY22[[#This Row],[Median]]","v":391088.8}]
[{"$f":"AAMC_Raw_Data_for_FY22[[#This Row],[Source]]&AAMC_Raw_Data_for_FY22[[#This Row],[Type]]&AAMC_Raw_Data_for_FY22[[#This Row],[School Subset]]&AAMC_Raw_Data_for_FY22[[#This Row],[Rank]]&AAMC_Raw_Data_for_FY22[[#This Row],[Degree]]&AAMC_Raw_Data_for_FY22[[#This Row],[Department / Specialty]]&\"L\"","v":"AAMCAcademicAllAssociateMDHematology/Oncology-Med.L"},"Hematology/Oncology-Med.",3,"AAMC","Academic","All","Associate","MD","2021-2022",285044,{"$f":"(((AAMC_Raw_Data_for_FY22[[#This Row],[Median]]-AAMC_Raw_Data_for_FY22[[#This Row],[25th]])/25)*5) + AAMC_Raw_Data_for_FY22[[#This Row],[25th]]","v":292614.8},{"$f":"(((AAMC_Raw_Data_for_FY22[[#This Row],[Median]]-AAMC_Raw_Data_for_FY22[[#This Row],[25th]])/25)*10) + AAMC_Raw_Data_for_FY22[[#This Row],[25th]]","v":300185.59999999998},{"$f":"(((AAMC_Raw_Data_for_FY22[[#This Row],[Median]]-AAMC_Raw_Data_for_FY22[[#This Row],[25th]])/25)*15) + AAMC_Raw_Data_for_FY22[[#This Row],[25th]]","v":307756.40000000002},{"$f":"(((AAMC_Raw_Data_for_FY22[[#This Row],[Median]]-AAMC_Raw_Data_for_FY22[[#This Row],[25th]])/25)*20) + AAMC_Raw_Data_for_FY22[[#This Row],[25th]]","v":315327.2},322898,{"$f":"(((AAMC_Raw_Data_for_FY22[[#This Row],[75th]]-AAMC_Raw_Data_for_FY22[[#This Row],[Median]])/25)*5) + AAMC_Raw_Data_for_FY22[[#This Row],[Median]]","v":336735.6},{"$f":"(((AAMC_Raw_Data_for_FY22[[#This Row],[75th]]-AAMC_Raw_Data_for_FY22[[#This Row],[Median]])/25)*10) + AAMC_Raw_Data_for_FY22[[#This Row],[Median]]","v":350573.2},{"$f":"(((AAMC_Raw_Data_for_FY22[[#This Row],[75th]]-AAMC_Raw_Data_for_FY22[[#This Row],[Median]])/25)*15) + AAMC_Raw_Data_for_FY22[[#This Row],[Median]]","v":364410.8},{"$f":"(((AAMC_Raw_Data_for_FY22[[#This Row],[75th]]-AAMC_Raw_Data_for_FY22[[#This Row],[Median]])/25)*20) + AAMC_Raw_Data_for_FY22[[#This Row],[Median]]","v":378248.4},392086,{"$f":"(((AAMC_Raw_Data_for_FY22[[#This Row],[75th]]-AAMC_Raw_Data_for_FY22[[#This Row],[Median]])/25)*30) + AAMC_Raw_Data_for_FY22[[#This Row],[Median]]","v":405923.6},{"$f":"(((AAMC_Raw_Data_for_FY22[[#This Row],[75th]]-AAMC_Raw_Data_for_FY22[[#This Row],[Median]])/25)*35) + AAMC_Raw_Data_for_FY22[[#This Row],[Median]]","v":419761.2},{"$f":"(((AAMC_Raw_Data_for_FY22[[#This Row],[75th]]-AAMC_Raw_Data_for_FY22[[#This Row],[Median]])/25)*40) + AAMC_Raw_Data_for_FY22[[#This Row],[Median]]","v":433598.8}]
[{"$f":"AAMC_Raw_Data_for_FY22[[#This Row],[Source]]&AAMC_Raw_Data_for_FY22[[#This Row],[Type]]&AAMC_Raw_Data_for_FY22[[#This Row],[School Subset]]&AAMC_Raw_Data_for_FY22[[#This Row],[Rank]]&AAMC_Raw_Data_for_FY22[[#This Row],[Degree]]&AAMC_Raw_Data_for_FY22[[#This Row],[Department / Specialty]]&\"L\"","v":"AAMCAcademicAllProfessorMDHematology/Oncology-Med.L"},"Hematology/Oncology-Med.",2,"AAMC","Academic","All","Professor","MD","2021-2022",329947,{"$f":"(((AAMC_Raw_Data_for_FY22[[#This Row],[Median]]-AAMC_Raw_Data_for_FY22[[#This Row],[25th]])/25)*5) + AAMC_Raw_Data_for_FY22[[#This Row],[25th]]","v":344124.6},{"$f":"(((AAMC_Raw_Data_for_FY22[[#This Row],[Median]]-AAMC_Raw_Data_for_FY22[[#This Row],[25th]])/25)*10) + AAMC_Raw_Data_for_FY22[[#This Row],[25th]]","v":358302.2},{"$f":"(((AAMC_Raw_Data_for_FY22[[#This Row],[Median]]-AAMC_Raw_Data_for_FY22[[#This Row],[25th]])/25)*15) + AAMC_Raw_Data_for_FY22[[#This Row],[25th]]","v":372479.8},{"$f":"(((AAMC_Raw_Data_for_FY22[[#This Row],[Median]]-AAMC_Raw_Data_for_FY22[[#This Row],[25th]])/25)*20) + AAMC_Raw_Data_for_FY22[[#This Row],[25th]]","v":386657.4},400835,{"$f":"(((AAMC_Raw_Data_for_FY22[[#This Row],[75th]]-AAMC_Raw_Data_for_FY22[[#This Row],[Median]])/25)*5) + AAMC_Raw_Data_for_FY22[[#This Row],[Median]]","v":417399},{"$f":"(((AAMC_Raw_Data_for_FY22[[#This Row],[75th]]-AAMC_Raw_Data_for_FY22[[#This Row],[Median]])/25)*10) + AAMC_Raw_Data_for_FY22[[#This Row],[Median]]","v":433963},{"$f":"(((AAMC_Raw_Data_for_FY22[[#This Row],[75th]]-AAMC_Raw_Data_for_FY22[[#This Row],[Median]])/25)*15) + AAMC_Raw_Data_for_FY22[[#This Row],[Median]]","v":450527},{"$f":"(((AAMC_Raw_Data_for_FY22[[#This Row],[75th]]-AAMC_Raw_Data_for_FY22[[#This Row],[Median]])/25)*20) + AAMC_Raw_Data_for_FY22[[#This Row],[Median]]","v":467091},483655,{"$f":"(((AAMC_Raw_Data_for_FY22[[#This Row],[75th]]-AAMC_Raw_Data_for_FY22[[#This Row],[Median]])/25)*30) + AAMC_Raw_Data_for_FY22[[#This Row],[Median]]","v":500219},{"$f":"(((AAMC_Raw_Data_for_FY22[[#This Row],[75th]]-AAMC_Raw_Data_for_FY22[[#This Row],[Median]])/25)*35) + AAMC_Raw_Data_for_FY22[[#This Row],[Median]]","v":516783},{"$f":"(((AAMC_Raw_Data_for_FY22[[#This Row],[75th]]-AAMC_Raw_Data_for_FY22[[#This Row],[Median]])/25)*40) + AAMC_Raw_Data_for_FY22[[#This Row],[Median]]","v":533347}]
[{"$f":"AAMC_Raw_Data_for_FY22[[#This Row],[Source]]&AAMC_Raw_Data_for_FY22[[#This Row],[Type]]&AAMC_Raw_Data_for_FY22[[#This Row],[School Subset]]&AAMC_Raw_Data_for_FY22[[#This Row],[Rank]]&AAMC_Raw_Data_for_FY22[[#This Row],[Degree]]&AAMC_Raw_Data_for_FY22[[#This Row],[Department / Specialty]]&\"L\"","v":"AAMCAcademicAllChiefMDHematology/Oncology-Med.L"},"Hematology/Oncology-Med.",6,"AAMC","Academic","All","Chief","MD","2021-2022",414458,{"$f":"(((AAMC_Raw_Data_for_FY22[[#This Row],[Median]]-AAMC_Raw_Data_for_FY22[[#This Row],[25th]])/25)*5) + AAMC_Raw_Data_for_FY22[[#This Row],[25th]]","v":431207.4},{"$f":"(((AAMC_Raw_Data_for_FY22[[#This Row],[Median]]-AAMC_Raw_Data_for_FY22[[#This Row],[25th]])/25)*10) + AAMC_Raw_Data_for_FY22[[#This Row],[25th]]","v":447956.8},{"$f":"(((AAMC_Raw_Data_for_FY22[[#This Row],[Median]]-AAMC_Raw_Data_for_FY22[[#This Row],[25th]])/25)*15) + AAMC_Raw_Data_for_FY22[[#This Row],[25th]]","v":464706.2},{"$f":"(((AAMC_Raw_Data_for_FY22[[#This Row],[Median]]-AAMC_Raw_Data_for_FY22[[#This Row],[25th]])/25)*20) + AAMC_Raw_Data_for_FY22[[#This Row],[25th]]","v":481455.6},498205,{"$f":"(((AAMC_Raw_Data_for_FY22[[#This Row],[75th]]-AAMC_Raw_Data_for_FY22[[#This Row],[Median]])/25)*5) + AAMC_Raw_Data_for_FY22[[#This Row],[Median]]","v":526355},{"$f":"(((AAMC_Raw_Data_for_FY22[[#This Row],[75th]]-AAMC_Raw_Data_for_FY22[[#This Row],[Median]])/25)*10) + AAMC_Raw_Data_for_FY22[[#This Row],[Median]]","v":554505},{"$f":"(((AAMC_Raw_Data_for_FY22[[#This Row],[75th]]-AAMC_Raw_Data_for_FY22[[#This Row],[Median]])/25)*15) + AAMC_Raw_Data_for_FY22[[#This Row],[Median]]","v":582655},{"$f":"(((AAMC_Raw_Data_for_FY22[[#This Row],[75th]]-AAMC_Raw_Data_for_FY22[[#This Row],[Median]])/25)*20) + AAMC_Raw_Data_for_FY22[[#This Row],[Median]]","v":610805},638955,{"$f":"(((AAMC_Raw_Data_for_FY22[[#This Row],[75th]]-AAMC_Raw_Data_for_FY22[[#This Row],[Median]])/25)*30) + AAMC_Raw_Data_for_FY22[[#This Row],[Median]]","v":667105},{"$f":"(((AAMC_Raw_Data_for_FY22[[#This Row],[75th]]-AAMC_Raw_Data_for_FY22[[#This Row],[Median]])/25)*35) + AAMC_Raw_Data_for_FY22[[#This Row],[Median]]","v":695255},{"$f":"(((AAMC_Raw_Data_for_FY22[[#This Row],[75th]]-AAMC_Raw_Data_for_FY22[[#This Row],[Median]])/25)*40) + AAMC_Raw_Data_for_FY22[[#This Row],[Median]]","v":723405}]
[{"$f":"AAMC_Raw_Data_for_FY22[[#This Row],[Source]]&AAMC_Raw_Data_for_FY22[[#This Row],[Type]]&AAMC_Raw_Data_for_FY22[[#This Row],[School Subset]]&AAMC_Raw_Data_for_FY22[[#This Row],[Rank]]&AAMC_Raw_Data_for_FY22[[#This Row],[Degree]]&AAMC_Raw_Data_for_FY22[[#This Row],[Department / Specialty]]&\"L\"","v":"AAMCAcademicAllChairMDHematology/Oncology-Med.L"},"Hematology/Oncology-Med.",1,"AAMC","Academic","All","Chair","MD","2021-2022",630020,{"$f":"(((AAMC_Raw_Data_for_FY22[[#This Row],[Median]]-AAMC_Raw_Data_for_FY22[[#This Row],[25th]])/25)*5) + AAMC_Raw_Data_for_FY22[[#This Row],[25th]]","v":658766.19999999995},{"$f":"(((AAMC_Raw_Data_for_FY22[[#This Row],[Median]]-AAMC_Raw_Data_for_FY22[[#This Row],[25th]])/25)*10) + AAMC_Raw_Data_for_FY22[[#This Row],[25th]]","v":687512.4},{"$f":"(((AAMC_Raw_Data_for_FY22[[#This Row],[Median]]-AAMC_Raw_Data_for_FY22[[#This Row],[25th]])/25)*15) + AAMC_Raw_Data_for_FY22[[#This Row],[25th]]","v":716258.6},{"$f":"(((AAMC_Raw_Data_for_FY22[[#This Row],[Median]]-AAMC_Raw_Data_for_FY22[[#This Row],[25th]])/25)*20) + AAMC_Raw_Data_for_FY22[[#This Row],[25th]]","v":745004.8},773751,{"$f":"(((AAMC_Raw_Data_for_FY22[[#This Row],[75th]]-AAMC_Raw_Data_for_FY22[[#This Row],[Median]])/25)*5) + AAMC_Raw_Data_for_FY22[[#This Row],[Median]]","v":784699.2},{"$f":"(((AAMC_Raw_Data_for_FY22[[#This Row],[75th]]-AAMC_Raw_Data_for_FY22[[#This Row],[Median]])/25)*10) + AAMC_Raw_Data_for_FY22[[#This Row],[Median]]","v":795647.4},{"$f":"(((AAMC_Raw_Data_for_FY22[[#This Row],[75th]]-AAMC_Raw_Data_for_FY22[[#This Row],[Median]])/25)*15) + AAMC_Raw_Data_for_FY22[[#This Row],[Median]]","v":806595.6},{"$f":"(((AAMC_Raw_Data_for_FY22[[#This Row],[75th]]-AAMC_Raw_Data_for_FY22[[#This Row],[Median]])/25)*20) + AAMC_Raw_Data_for_FY22[[#This Row],[Median]]","v":817543.8},828492,{"$f":"(((AAMC_Raw_Data_for_FY22[[#This Row],[75th]]-AAMC_Raw_Data_for_FY22[[#This Row],[Median]])/25)*30) + AAMC_Raw_Data_for_FY22[[#This Row],[Median]]","v":839440.2},{"$f":"(((AAMC_Raw_Data_for_FY22[[#This Row],[75th]]-AAMC_Raw_Data_for_FY22[[#This Row],[Median]])/25)*35) + AAMC_Raw_Data_for_FY22[[#This Row],[Median]]","v":850388.4},{"$f":"(((AAMC_Raw_Data_for_FY22[[#This Row],[75th]]-AAMC_Raw_Data_for_FY22[[#This Row],[Median]])/25)*40) + AAMC_Raw_Data_for_FY22[[#This Row],[Median]]","v":861336.6}]
[{"$f":"AAMC_Raw_Data_for_FY22[[#This Row],[Source]]&AAMC_Raw_Data_for_FY22[[#This Row],[Type]]&AAMC_Raw_Data_for_FY22[[#This Row],[School Subset]]&AAMC_Raw_Data_for_FY22[[#This Row],[Rank]]&AAMC_Raw_Data_for_FY22[[#This Row],[Degree]]&AAMC_Raw_Data_for_FY22[[#This Row],[Department / Specialty]]&\"L\"","v":"AAMCAcademicAllInstructorMDHospital MedicineL"},"Hospital Medicine",5,"AAMC","Academic","All","Instructor","MD","2021-2022",209000,{"$f":"(((AAMC_Raw_Data_for_FY22[[#This Row],[Median]]-AAMC_Raw_Data_for_FY22[[#This Row],[25th]])/25)*5) + AAMC_Raw_Data_for_FY22[[#This Row],[25th]]","v":214040.6},{"$f":"(((AAMC_Raw_Data_for_FY22[[#This Row],[Median]]-AAMC_Raw_Data_for_FY22[[#This Row],[25th]])/25)*10) + AAMC_Raw_Data_for_FY22[[#This Row],[25th]]","v":219081.2},{"$f":"(((AAMC_Raw_Data_for_FY22[[#This Row],[Median]]-AAMC_Raw_Data_for_FY22[[#This Row],[25th]])/25)*15) + AAMC_Raw_Data_for_FY22[[#This Row],[25th]]","v":224121.8},{"$f":"(((AAMC_Raw_Data_for_FY22[[#This Row],[Median]]-AAMC_Raw_Data_for_FY22[[#This Row],[25th]])/25)*20) + AAMC_Raw_Data_for_FY22[[#This Row],[25th]]","v":229162.4},234203,{"$f":"(((AAMC_Raw_Data_for_FY22[[#This Row],[75th]]-AAMC_Raw_Data_for_FY22[[#This Row],[Median]])/25)*5) + AAMC_Raw_Data_for_FY22[[#This Row],[Median]]","v":241035.6},{"$f":"(((AAMC_Raw_Data_for_FY22[[#This Row],[75th]]-AAMC_Raw_Data_for_FY22[[#This Row],[Median]])/25)*10) + AAMC_Raw_Data_for_FY22[[#This Row],[Median]]","v":247868.2},{"$f":"(((AAMC_Raw_Data_for_FY22[[#This Row],[75th]]-AAMC_Raw_Data_for_FY22[[#This Row],[Median]])/25)*15) + AAMC_Raw_Data_for_FY22[[#This Row],[Median]]","v":254700.79999999999},{"$f":"(((AAMC_Raw_Data_for_FY22[[#This Row],[75th]]-AAMC_Raw_Data_for_FY22[[#This Row],[Median]])/25)*20) + AAMC_Raw_Data_for_FY22[[#This Row],[Median]]","v":261533.4},268366,{"$f":"(((AAMC_Raw_Data_for_FY22[[#This Row],[75th]]-AAMC_Raw_Data_for_FY22[[#This Row],[Median]])/25)*30) + AAMC_Raw_Data_for_FY22[[#This Row],[Median]]","v":275198.59999999998},{"$f":"(((AAMC_Raw_Data_for_FY22[[#This Row],[75th]]-AAMC_Raw_Data_for_FY22[[#This Row],[Median]])/25)*35) + AAMC_Raw_Data_for_FY22[[#This Row],[Median]]","v":282031.2},{"$f":"(((AAMC_Raw_Data_for_FY22[[#This Row],[75th]]-AAMC_Raw_Data_for_FY22[[#This Row],[Median]])/25)*40) + AAMC_Raw_Data_for_FY22[[#This Row],[Median]]","v":288863.8}]
[{"$f":"AAMC_Raw_Data_for_FY22[[#This Row],[Source]]&AAMC_Raw_Data_for_FY22[[#This Row],[Type]]&AAMC_Raw_Data_for_FY22[[#This Row],[School Subset]]&AAMC_Raw_Data_for_FY22[[#This Row],[Rank]]&AAMC_Raw_Data_for_FY22[[#This Row],[Degree]]&AAMC_Raw_Data_for_FY22[[#This Row],[Department / Specialty]]&\"L\"","v":"AAMCAcademicAllAssistantMDHospital MedicineL"},"Hospital Medicine",4,"AAMC","Academic","All","Assistant","MD","2021-2022",234262,{"$f":"(((AAMC_Raw_Data_for_FY22[[#This Row],[Median]]-AAMC_Raw_Data_for_FY22[[#This Row],[25th]])/25)*5) + AAMC_Raw_Data_for_FY22[[#This Row],[25th]]","v":239572.2},{"$f":"(((AAMC_Raw_Data_for_FY22[[#This Row],[Median]]-AAMC_Raw_Data_for_FY22[[#This Row],[25th]])/25)*10) + AAMC_Raw_Data_for_FY22[[#This Row],[25th]]","v":244882.4},{"$f":"(((AAMC_Raw_Data_for_FY22[[#This Row],[Median]]-AAMC_Raw_Data_for_FY22[[#This Row],[25th]])/25)*15) + AAMC_Raw_Data_for_FY22[[#This Row],[25th]]","v":250192.6},{"$f":"(((AAMC_Raw_Data_for_FY22[[#This Row],[Median]]-AAMC_Raw_Data_for_FY22[[#This Row],[25th]])/25)*20) + AAMC_Raw_Data_for_FY22[[#This Row],[25th]]","v":255502.8},260813,{"$f":"(((AAMC_Raw_Data_for_FY22[[#This Row],[75th]]-AAMC_Raw_Data_for_FY22[[#This Row],[Median]])/25)*5) + AAMC_Raw_Data_for_FY22[[#This Row],[Median]]","v":267300.8},{"$f":"(((AAMC_Raw_Data_for_FY22[[#This Row],[75th]]-AAMC_Raw_Data_for_FY22[[#This Row],[Median]])/25)*10) + AAMC_Raw_Data_for_FY22[[#This Row],[Median]]","v":273788.59999999998},{"$f":"(((AAMC_Raw_Data_for_FY22[[#This Row],[75th]]-AAMC_Raw_Data_for_FY22[[#This Row],[Median]])/25)*15) + AAMC_Raw_Data_for_FY22[[#This Row],[Median]]","v":280276.40000000002},{"$f":"(((AAMC_Raw_Data_for_FY22[[#This Row],[75th]]-AAMC_Raw_Data_for_FY22[[#This Row],[Median]])/25)*20) + AAMC_Raw_Data_for_FY22[[#This Row],[Median]]","v":286764.2},293252,{"$f":"(((AAMC_Raw_Data_for_FY22[[#This Row],[75th]]-AAMC_Raw_Data_for_FY22[[#This Row],[Median]])/25)*30) + AAMC_Raw_Data_for_FY22[[#This Row],[Median]]","v":299739.8},{"$f":"(((AAMC_Raw_Data_for_FY22[[#This Row],[75th]]-AAMC_Raw_Data_for_FY22[[#This Row],[Median]])/25)*35) + AAMC_Raw_Data_for_FY22[[#This Row],[Median]]","v":306227.59999999998},{"$f":"(((AAMC_Raw_Data_for_FY22[[#This Row],[75th]]-AAMC_Raw_Data_for_FY22[[#This Row],[Median]])/25)*40) + AAMC_Raw_Data_for_FY22[[#This Row],[Median]]","v":312715.40000000002}]
[{"$f":"AAMC_Raw_Data_for_FY22[[#This Row],[Source]]&AAMC_Raw_Data_for_FY22[[#This Row],[Type]]&AAMC_Raw_Data_for_FY22[[#This Row],[School Subset]]&AAMC_Raw_Data_for_FY22[[#This Row],[Rank]]&AAMC_Raw_Data_for_FY22[[#This Row],[Degree]]&AAMC_Raw_Data_for_FY22[[#This Row],[Department / Specialty]]&\"L\"","v":"AAMCAcademicAllAssociateMDHospital MedicineL"},"Hospital Medicine",3,"AAMC","Academic","All","Associate","MD","2021-2022",251028,{"$f":"(((AAMC_Raw_Data_for_FY22[[#This Row],[Median]]-AAMC_Raw_Data_for_FY22[[#This Row],[25th]])/25)*5) + AAMC_Raw_Data_for_FY22[[#This Row],[25th]]","v":256876.79999999999},{"$f":"(((AAMC_Raw_Data_for_FY22[[#This Row],[Median]]-AAMC_Raw_Data_for_FY22[[#This Row],[25th]])/25)*10) + AAMC_Raw_Data_for_FY22[[#This Row],[25th]]","v":262725.59999999998},{"$f":"(((AAMC_Raw_Data_for_FY22[[#This Row],[Median]]-AAMC_Raw_Data_for_FY22[[#This Row],[25th]])/25)*15) + AAMC_Raw_Data_for_FY22[[#This Row],[25th]]","v":268574.40000000002},{"$f":"(((AAMC_Raw_Data_for_FY22[[#This Row],[Median]]-AAMC_Raw_Data_for_FY22[[#This Row],[25th]])/25)*20) + AAMC_Raw_Data_for_FY22[[#This Row],[25th]]","v":274423.2},280272,{"$f":"(((AAMC_Raw_Data_for_FY22[[#This Row],[75th]]-AAMC_Raw_Data_for_FY22[[#This Row],[Median]])/25)*5) + AAMC_Raw_Data_for_FY22[[#This Row],[Median]]","v":288751.40000000002},{"$f":"(((AAMC_Raw_Data_for_FY22[[#This Row],[75th]]-AAMC_Raw_Data_for_FY22[[#This Row],[Median]])/25)*10) + AAMC_Raw_Data_for_FY22[[#This Row],[Median]]","v":297230.8},{"$f":"(((AAMC_Raw_Data_for_FY22[[#This Row],[75th]]-AAMC_Raw_Data_for_FY22[[#This Row],[Median]])/25)*15) + AAMC_Raw_Data_for_FY22[[#This Row],[Median]]","v":305710.2},{"$f":"(((AAMC_Raw_Data_for_FY22[[#This Row],[75th]]-AAMC_Raw_Data_for_FY22[[#This Row],[Median]])/25)*20) + AAMC_Raw_Data_for_FY22[[#This Row],[Median]]","v":314189.59999999998},322669,{"$f":"(((AAMC_Raw_Data_for_FY22[[#This Row],[75th]]-AAMC_Raw_Data_for_FY22[[#This Row],[Median]])/25)*30) + AAMC_Raw_Data_for_FY22[[#This Row],[Median]]","v":331148.40000000002},{"$f":"(((AAMC_Raw_Data_for_FY22[[#This Row],[75th]]-AAMC_Raw_Data_for_FY22[[#This Row],[Median]])/25)*35) + AAMC_Raw_Data_for_FY22[[#This Row],[Median]]","v":339627.8},{"$f":"(((AAMC_Raw_Data_for_FY22[[#This Row],[75th]]-AAMC_Raw_Data_for_FY22[[#This Row],[Median]])/25)*40) + AAMC_Raw_Data_for_FY22[[#This Row],[Median]]","v":348107.2}]
[{"$f":"AAMC_Raw_Data_for_FY22[[#This Row],[Source]]&AAMC_Raw_Data_for_FY22[[#This Row],[Type]]&AAMC_Raw_Data_for_FY22[[#This Row],[School Subset]]&AAMC_Raw_Data_for_FY22[[#This Row],[Rank]]&AAMC_Raw_Data_for_FY22[[#This Row],[Degree]]&AAMC_Raw_Data_for_FY22[[#This Row],[Department / Specialty]]&\"L\"","v":"AAMCAcademicAllProfessorMDHospital MedicineL"},"Hospital Medicine",2,"AAMC","Academic","All","Professor","MD","2021-2022",282391,{"$f":"(((AAMC_Raw_Data_for_FY22[[#This Row],[Median]]-AAMC_Raw_Data_for_FY22[[#This Row],[25th]])/25)*5) + AAMC_Raw_Data_for_FY22[[#This Row],[25th]]","v":290608.40000000002},{"$f":"(((AAMC_Raw_Data_for_FY22[[#This Row],[Median]]-AAMC_Raw_Data_for_FY22[[#This Row],[25th]])/25)*10) + AAMC_Raw_Data_for_FY22[[#This Row],[25th]]","v":298825.8},{"$f":"(((AAMC_Raw_Data_for_FY22[[#This Row],[Median]]-AAMC_Raw_Data_for_FY22[[#This Row],[25th]])/25)*15) + AAMC_Raw_Data_for_FY22[[#This Row],[25th]]","v":307043.20000000001},{"$f":"(((AAMC_Raw_Data_for_FY22[[#This Row],[Median]]-AAMC_Raw_Data_for_FY22[[#This Row],[25th]])/25)*20) + AAMC_Raw_Data_for_FY22[[#This Row],[25th]]","v":315260.59999999998},323478,{"$f":"(((AAMC_Raw_Data_for_FY22[[#This Row],[75th]]-AAMC_Raw_Data_for_FY22[[#This Row],[Median]])/25)*5) + AAMC_Raw_Data_for_FY22[[#This Row],[Median]]","v":332520.8},{"$f":"(((AAMC_Raw_Data_for_FY22[[#This Row],[75th]]-AAMC_Raw_Data_for_FY22[[#This Row],[Median]])/25)*10) + AAMC_Raw_Data_for_FY22[[#This Row],[Median]]","v":341563.6},{"$f":"(((AAMC_Raw_Data_for_FY22[[#This Row],[75th]]-AAMC_Raw_Data_for_FY22[[#This Row],[Median]])/25)*15) + AAMC_Raw_Data_for_FY22[[#This Row],[Median]]","v":350606.4},{"$f":"(((AAMC_Raw_Data_for_FY22[[#This Row],[75th]]-AAMC_Raw_Data_for_FY22[[#This Row],[Median]])/25)*20) + AAMC_Raw_Data_for_FY22[[#This Row],[Median]]","v":359649.2},368692,{"$f":"(((AAMC_Raw_Data_for_FY22[[#This Row],[75th]]-AAMC_Raw_Data_for_FY22[[#This Row],[Median]])/25)*30) + AAMC_Raw_Data_for_FY22[[#This Row],[Median]]","v":377734.8},{"$f":"(((AAMC_Raw_Data_for_FY22[[#This Row],[75th]]-AAMC_Raw_Data_for_FY22[[#This Row],[Median]])/25)*35) + AAMC_Raw_Data_for_FY22[[#This Row],[Median]]","v":386777.59999999998},{"$f":"(((AAMC_Raw_Data_for_FY22[[#This Row],[75th]]-AAMC_Raw_Data_for_FY22[[#This Row],[Median]])/25)*40) + AAMC_Raw_Data_for_FY22[[#This Row],[Median]]","v":395820.4}]
[{"$f":"AAMC_Raw_Data_for_FY22[[#This Row],[Source]]&AAMC_Raw_Data_for_FY22[[#This Row],[Type]]&AAMC_Raw_Data_for_FY22[[#This Row],[School Subset]]&AAMC_Raw_Data_for_FY22[[#This Row],[Rank]]&AAMC_Raw_Data_for_FY22[[#This Row],[Degree]]&AAMC_Raw_Data_for_FY22[[#This Row],[Department / Specialty]]&\"L\"","v":"AAMCAcademicAllChiefMDHospital MedicineL"},"Hospital Medicine",6,"AAMC","Academic","All","Chief","MD","2021-2022",318223,{"$f":"(((AAMC_Raw_Data_for_FY22[[#This Row],[Median]]-AAMC_Raw_Data_for_FY22[[#This Row],[25th]])/25)*5) + AAMC_Raw_Data_for_FY22[[#This Row],[25th]]","v":330441.2},{"$f":"(((AAMC_Raw_Data_for_FY22[[#This Row],[Median]]-AAMC_Raw_Data_for_FY22[[#This Row],[25th]])/25)*10) + AAMC_Raw_Data_for_FY22[[#This Row],[25th]]","v":342659.4},{"$f":"(((AAMC_Raw_Data_for_FY22[[#This Row],[Median]]-AAMC_Raw_Data_for_FY22[[#This Row],[25th]])/25)*15) + AAMC_Raw_Data_for_FY22[[#This Row],[25th]]","v":354877.6},{"$f":"(((AAMC_Raw_Data_for_FY22[[#This Row],[Median]]-AAMC_Raw_Data_for_FY22[[#This Row],[25th]])/25)*20) + AAMC_Raw_Data_for_FY22[[#This Row],[25th]]","v":367095.8},379314,{"$f":"(((AAMC_Raw_Data_for_FY22[[#This Row],[75th]]-AAMC_Raw_Data_for_FY22[[#This Row],[Median]])/25)*5) + AAMC_Raw_Data_for_FY22[[#This Row],[Median]]","v":386639.4},{"$f":"(((AAMC_Raw_Data_for_FY22[[#This Row],[75th]]-AAMC_Raw_Data_for_FY22[[#This Row],[Median]])/25)*10) + AAMC_Raw_Data_for_FY22[[#This Row],[Median]]","v":393964.79999999999},{"$f":"(((AAMC_Raw_Data_for_FY22[[#This Row],[75th]]-AAMC_Raw_Data_for_FY22[[#This Row],[Median]])/25)*15) + AAMC_Raw_Data_for_FY22[[#This Row],[Median]]","v":401290.2},{"$f":"(((AAMC_Raw_Data_for_FY22[[#This Row],[75th]]-AAMC_Raw_Data_for_FY22[[#This Row],[Median]])/25)*20) + AAMC_Raw_Data_for_FY22[[#This Row],[Median]]","v":408615.6},415941,{"$f":"(((AAMC_Raw_Data_for_FY22[[#This Row],[75th]]-AAMC_Raw_Data_for_FY22[[#This Row],[Median]])/25)*30) + AAMC_Raw_Data_for_FY22[[#This Row],[Median]]","v":423266.4},{"$f":"(((AAMC_Raw_Data_for_FY22[[#This Row],[75th]]-AAMC_Raw_Data_for_FY22[[#This Row],[Median]])/25)*35) + AAMC_Raw_Data_for_FY22[[#This Row],[Median]]","v":430591.8},{"$f":"(((AAMC_Raw_Data_for_FY22[[#This Row],[75th]]-AAMC_Raw_Data_for_FY22[[#This Row],[Median]])/25)*40) + AAMC_Raw_Data_for_FY22[[#This Row],[Median]]","v":437917.2}]
[{"$f":"AAMC_Raw_Data_for_FY22[[#This Row],[Source]]&AAMC_Raw_Data_for_FY22[[#This Row],[Type]]&AAMC_Raw_Data_for_FY22[[#This Row],[School Subset]]&AAMC_Raw_Data_for_FY22[[#This Row],[Rank]]&AAMC_Raw_Data_for_FY22[[#This Row],[Degree]]&AAMC_Raw_Data_for_FY22[[#This Row],[Department / Specialty]]&\"L\"","v":"AAMCAcademicAllChairMDHospital MedicineL"},"Hospital Medicine",1,"AAMC","Academic","All","Chair","MD","2021-2022",312071,{"$f":"(((AAMC_Raw_Data_for_FY22[[#This Row],[Median]]-AAMC_Raw_Data_for_FY22[[#This Row],[25th]])/25)*5) + AAMC_Raw_Data_for_FY22[[#This Row],[25th]]","v":344376.8},{"$f":"(((AAMC_Raw_Data_for_FY22[[#This Row],[Median]]-AAMC_Raw_Data_for_FY22[[#This Row],[25th]])/25)*10) + AAMC_Raw_Data_for_FY22[[#This Row],[25th]]","v":376682.6},{"$f":"(((AAMC_Raw_Data_for_FY22[[#This Row],[Median]]-AAMC_Raw_Data_for_FY22[[#This Row],[25th]])/25)*15) + AAMC_Raw_Data_for_FY22[[#This Row],[25th]]","v":408988.4},{"$f":"(((AAMC_Raw_Data_for_FY22[[#This Row],[Median]]-AAMC_Raw_Data_for_FY22[[#This Row],[25th]])/25)*20) + AAMC_Raw_Data_for_FY22[[#This Row],[25th]]","v":441294.2},473600,{"$f":"(((AAMC_Raw_Data_for_FY22[[#This Row],[75th]]-AAMC_Raw_Data_for_FY22[[#This Row],[Median]])/25)*5) + AAMC_Raw_Data_for_FY22[[#This Row],[Median]]","v":554847.80000000005},{"$f":"(((AAMC_Raw_Data_for_FY22[[#This Row],[75th]]-AAMC_Raw_Data_for_FY22[[#This Row],[Median]])/25)*10) + AAMC_Raw_Data_for_FY22[[#This Row],[Median]]","v":636095.6},{"$f":"(((AAMC_Raw_Data_for_FY22[[#This Row],[75th]]-AAMC_Raw_Data_for_FY22[[#This Row],[Median]])/25)*15) + AAMC_Raw_Data_for_FY22[[#This Row],[Median]]","v":717343.4},{"$f":"(((AAMC_Raw_Data_for_FY22[[#This Row],[75th]]-AAMC_Raw_Data_for_FY22[[#This Row],[Median]])/25)*20) + AAMC_Raw_Data_for_FY22[[#This Row],[Median]]","v":798591.2},879839,{"$f":"(((AAMC_Raw_Data_for_FY22[[#This Row],[75th]]-AAMC_Raw_Data_for_FY22[[#This Row],[Median]])/25)*30) + AAMC_Raw_Data_for_FY22[[#This Row],[Median]]","v":961086.8},{"$f":"(((AAMC_Raw_Data_for_FY22[[#This Row],[75th]]-AAMC_Raw_Data_for_FY22[[#This Row],[Median]])/25)*35) + AAMC_Raw_Data_for_FY22[[#This Row],[Median]]","v":1042334.6},{"$f":"(((AAMC_Raw_Data_for_FY22[[#This Row],[75th]]-AAMC_Raw_Data_for_FY22[[#This Row],[Median]])/25)*40) + AAMC_Raw_Data_for_FY22[[#This Row],[Median]]","v":1123582.3999999999}]
[{"$f":"AAMC_Raw_Data_for_FY22[[#This Row],[Source]]&AAMC_Raw_Data_for_FY22[[#This Row],[Type]]&AAMC_Raw_Data_for_FY22[[#This Row],[School Subset]]&AAMC_Raw_Data_for_FY22[[#This Row],[Rank]]&AAMC_Raw_Data_for_FY22[[#This Row],[Degree]]&AAMC_Raw_Data_for_FY22[[#This Row],[Department / Specialty]]&\"L\"","v":"AAMCAcademicAllInstructorMDInfectious Disease-Med.L"},"Infectious Disease-Med.",5,"AAMC","Academic","All","Instructor","MD","2021-2022",125200,{"$f":"(((AAMC_Raw_Data_for_FY22[[#This Row],[Median]]-AAMC_Raw_Data_for_FY22[[#This Row],[25th]])/25)*5) + AAMC_Raw_Data_for_FY22[[#This Row],[25th]]","v":133160},{"$f":"(((AAMC_Raw_Data_for_FY22[[#This Row],[Median]]-AAMC_Raw_Data_for_FY22[[#This Row],[25th]])/25)*10) + AAMC_Raw_Data_for_FY22[[#This Row],[25th]]","v":141120},{"$f":"(((AAMC_Raw_Data_for_FY22[[#This Row],[Median]]-AAMC_Raw_Data_for_FY22[[#This Row],[25th]])/25)*15) + AAMC_Raw_Data_for_FY22[[#This Row],[25th]]","v":149080},{"$f":"(((AAMC_Raw_Data_for_FY22[[#This Row],[Median]]-AAMC_Raw_Data_for_FY22[[#This Row],[25th]])/25)*20) + AAMC_Raw_Data_for_FY22[[#This Row],[25th]]","v":157040},165000,{"$f":"(((AAMC_Raw_Data_for_FY22[[#This Row],[75th]]-AAMC_Raw_Data_for_FY22[[#This Row],[Median]])/25)*5) + AAMC_Raw_Data_for_FY22[[#This Row],[Median]]","v":171600},{"$f":"(((AAMC_Raw_Data_for_FY22[[#This Row],[75th]]-AAMC_Raw_Data_for_FY22[[#This Row],[Median]])/25)*10) + AAMC_Raw_Data_for_FY22[[#This Row],[Median]]","v":178200},{"$f":"(((AAMC_Raw_Data_for_FY22[[#This Row],[75th]]-AAMC_Raw_Data_for_FY22[[#This Row],[Median]])/25)*15) + AAMC_Raw_Data_for_FY22[[#This Row],[Median]]","v":184800},{"$f":"(((AAMC_Raw_Data_for_FY22[[#This Row],[75th]]-AAMC_Raw_Data_for_FY22[[#This Row],[Median]])/25)*20) + AAMC_Raw_Data_for_FY22[[#This Row],[Median]]","v":191400},198000,{"$f":"(((AAMC_Raw_Data_for_FY22[[#This Row],[75th]]-AAMC_Raw_Data_for_FY22[[#This Row],[Median]])/25)*30) + AAMC_Raw_Data_for_FY22[[#This Row],[Median]]","v":204600},{"$f":"(((AAMC_Raw_Data_for_FY22[[#This Row],[75th]]-AAMC_Raw_Data_for_FY22[[#This Row],[Median]])/25)*35) + AAMC_Raw_Data_for_FY22[[#This Row],[Median]]","v":211200},{"$f":"(((AAMC_Raw_Data_for_FY22[[#This Row],[75th]]-AAMC_Raw_Data_for_FY22[[#This Row],[Median]])/25)*40) + AAMC_Raw_Data_for_FY22[[#This Row],[Median]]","v":217800}]
[{"$f":"AAMC_Raw_Data_for_FY22[[#This Row],[Source]]&AAMC_Raw_Data_for_FY22[[#This Row],[Type]]&AAMC_Raw_Data_for_FY22[[#This Row],[School Subset]]&AAMC_Raw_Data_for_FY22[[#This Row],[Rank]]&AAMC_Raw_Data_for_FY22[[#This Row],[Degree]]&AAMC_Raw_Data_for_FY22[[#This Row],[Department / Specialty]]&\"L\"","v":"AAMCAcademicAllAssistantMDInfectious Disease-Med.L"},"Infectious Disease-Med.",4,"AAMC","Academic","All","Assistant","MD","2021-2022",173921,{"$f":"(((AAMC_Raw_Data_for_FY22[[#This Row],[Median]]-AAMC_Raw_Data_for_FY22[[#This Row],[25th]])/25)*5) + AAMC_Raw_Data_for_FY22[[#This Row],[25th]]","v":178567.2},{"$f":"(((AAMC_Raw_Data_for_FY22[[#This Row],[Median]]-AAMC_Raw_Data_for_FY22[[#This Row],[25th]])/25)*10) + AAMC_Raw_Data_for_FY22[[#This Row],[25th]]","v":183213.4},{"$f":"(((AAMC_Raw_Data_for_FY22[[#This Row],[Median]]-AAMC_Raw_Data_for_FY22[[#This Row],[25th]])/25)*15) + AAMC_Raw_Data_for_FY22[[#This Row],[25th]]","v":187859.6},{"$f":"(((AAMC_Raw_Data_for_FY22[[#This Row],[Median]]-AAMC_Raw_Data_for_FY22[[#This Row],[25th]])/25)*20) + AAMC_Raw_Data_for_FY22[[#This Row],[25th]]","v":192505.8},197152,{"$f":"(((AAMC_Raw_Data_for_FY22[[#This Row],[75th]]-AAMC_Raw_Data_for_FY22[[#This Row],[Median]])/25)*5) + AAMC_Raw_Data_for_FY22[[#This Row],[Median]]","v":203035.6},{"$f":"(((AAMC_Raw_Data_for_FY22[[#This Row],[75th]]-AAMC_Raw_Data_for_FY22[[#This Row],[Median]])/25)*10) + AAMC_Raw_Data_for_FY22[[#This Row],[Median]]","v":208919.2},{"$f":"(((AAMC_Raw_Data_for_FY22[[#This Row],[75th]]-AAMC_Raw_Data_for_FY22[[#This Row],[Median]])/25)*15) + AAMC_Raw_Data_for_FY22[[#This Row],[Median]]","v":214802.8},{"$f":"(((AAMC_Raw_Data_for_FY22[[#This Row],[75th]]-AAMC_Raw_Data_for_FY22[[#This Row],[Median]])/25)*20) + AAMC_Raw_Data_for_FY22[[#This Row],[Median]]","v":220686.4},226570,{"$f":"(((AAMC_Raw_Data_for_FY22[[#This Row],[75th]]-AAMC_Raw_Data_for_FY22[[#This Row],[Median]])/25)*30) + AAMC_Raw_Data_for_FY22[[#This Row],[Median]]","v":232453.6},{"$f":"(((AAMC_Raw_Data_for_FY22[[#This Row],[75th]]-AAMC_Raw_Data_for_FY22[[#This Row],[Median]])/25)*35) + AAMC_Raw_Data_for_FY22[[#This Row],[Median]]","v":238337.2},{"$f":"(((AAMC_Raw_Data_for_FY22[[#This Row],[75th]]-AAMC_Raw_Data_for_FY22[[#This Row],[Median]])/25)*40) + AAMC_Raw_Data_for_FY22[[#This Row],[Median]]","v":244220.79999999999}]
[{"$f":"AAMC_Raw_Data_for_FY22[[#This Row],[Source]]&AAMC_Raw_Data_for_FY22[[#This Row],[Type]]&AAMC_Raw_Data_for_FY22[[#This Row],[School Subset]]&AAMC_Raw_Data_for_FY22[[#This Row],[Rank]]&AAMC_Raw_Data_for_FY22[[#This Row],[Degree]]&AAMC_Raw_Data_for_FY22[[#This Row],[Department / Specialty]]&\"L\"","v":"AAMCAcademicAllAssociateMDInfectious Disease-Med.L"},"Infectious Disease-Med.",3,"AAMC","Academic","All","Associate","MD","2021-2022",203861,{"$f":"(((AAMC_Raw_Data_for_FY22[[#This Row],[Median]]-AAMC_Raw_Data_for_FY22[[#This Row],[25th]])/25)*5) + AAMC_Raw_Data_for_FY22[[#This Row],[25th]]","v":208512.4},{"$f":"(((AAMC_Raw_Data_for_FY22[[#This Row],[Median]]-AAMC_Raw_Data_for_FY22[[#This Row],[25th]])/25)*10) + AAMC_Raw_Data_for_FY22[[#This Row],[25th]]","v":213163.8},{"$f":"(((AAMC_Raw_Data_for_FY22[[#This Row],[Median]]-AAMC_Raw_Data_for_FY22[[#This Row],[25th]])/25)*15) + AAMC_Raw_Data_for_FY22[[#This Row],[25th]]","v":217815.2},{"$f":"(((AAMC_Raw_Data_for_FY22[[#This Row],[Median]]-AAMC_Raw_Data_for_FY22[[#This Row],[25th]])/25)*20) + AAMC_Raw_Data_for_FY22[[#This Row],[25th]]","v":222466.6},227118,{"$f":"(((AAMC_Raw_Data_for_FY22[[#This Row],[75th]]-AAMC_Raw_Data_for_FY22[[#This Row],[Median]])/25)*5) + AAMC_Raw_Data_for_FY22[[#This Row],[Median]]","v":233805.8},{"$f":"(((AAMC_Raw_Data_for_FY22[[#This Row],[75th]]-AAMC_Raw_Data_for_FY22[[#This Row],[Median]])/25)*10) + AAMC_Raw_Data_for_FY22[[#This Row],[Median]]","v":240493.6},{"$f":"(((AAMC_Raw_Data_for_FY22[[#This Row],[75th]]-AAMC_Raw_Data_for_FY22[[#This Row],[Median]])/25)*15) + AAMC_Raw_Data_for_FY22[[#This Row],[Median]]","v":247181.4},{"$f":"(((AAMC_Raw_Data_for_FY22[[#This Row],[75th]]-AAMC_Raw_Data_for_FY22[[#This Row],[Median]])/25)*20) + AAMC_Raw_Data_for_FY22[[#This Row],[Median]]","v":253869.2},260557,{"$f":"(((AAMC_Raw_Data_for_FY22[[#This Row],[75th]]-AAMC_Raw_Data_for_FY22[[#This Row],[Median]])/25)*30) + AAMC_Raw_Data_for_FY22[[#This Row],[Median]]","v":267244.79999999999},{"$f":"(((AAMC_Raw_Data_for_FY22[[#This Row],[75th]]-AAMC_Raw_Data_for_FY22[[#This Row],[Median]])/25)*35) + AAMC_Raw_Data_for_FY22[[#This Row],[Median]]","v":273932.59999999998},{"$f":"(((AAMC_Raw_Data_for_FY22[[#This Row],[75th]]-AAMC_Raw_Data_for_FY22[[#This Row],[Median]])/25)*40) + AAMC_Raw_Data_for_FY22[[#This Row],[Median]]","v":280620.40000000002}]
[{"$f":"AAMC_Raw_Data_for_FY22[[#This Row],[Source]]&AAMC_Raw_Data_for_FY22[[#This Row],[Type]]&AAMC_Raw_Data_for_FY22[[#This Row],[School Subset]]&AAMC_Raw_Data_for_FY22[[#This Row],[Rank]]&AAMC_Raw_Data_for_FY22[[#This Row],[Degree]]&AAMC_Raw_Data_for_FY22[[#This Row],[Department / Specialty]]&\"L\"","v":"AAMCAcademicAllProfessorMDInfectious Disease-Med.L"},"Infectious Disease-Med.",2,"AAMC","Academic","All","Professor","MD","2021-2022",237565,{"$f":"(((AAMC_Raw_Data_for_FY22[[#This Row],[Median]]-AAMC_Raw_Data_for_FY22[[#This Row],[25th]])/25)*5) + AAMC_Raw_Data_for_FY22[[#This Row],[25th]]","v":245093.2},{"$f":"(((AAMC_Raw_Data_for_FY22[[#This Row],[Median]]-AAMC_Raw_Data_for_FY22[[#This Row],[25th]])/25)*10) + AAMC_Raw_Data_for_FY22[[#This Row],[25th]]","v":252621.4},{"$f":"(((AAMC_Raw_Data_for_FY22[[#This Row],[Median]]-AAMC_Raw_Data_for_FY22[[#This Row],[25th]])/25)*15) + AAMC_Raw_Data_for_FY22[[#This Row],[25th]]","v":260149.6},{"$f":"(((AAMC_Raw_Data_for_FY22[[#This Row],[Median]]-AAMC_Raw_Data_for_FY22[[#This Row],[25th]])/25)*20) + AAMC_Raw_Data_for_FY22[[#This Row],[25th]]","v":267677.8},275206,{"$f":"(((AAMC_Raw_Data_for_FY22[[#This Row],[75th]]-AAMC_Raw_Data_for_FY22[[#This Row],[Median]])/25)*5) + AAMC_Raw_Data_for_FY22[[#This Row],[Median]]","v":285055},{"$f":"(((AAMC_Raw_Data_for_FY22[[#This Row],[75th]]-AAMC_Raw_Data_for_FY22[[#This Row],[Median]])/25)*10) + AAMC_Raw_Data_for_FY22[[#This Row],[Median]]","v":294904},{"$f":"(((AAMC_Raw_Data_for_FY22[[#This Row],[75th]]-AAMC_Raw_Data_for_FY22[[#This Row],[Median]])/25)*15) + AAMC_Raw_Data_for_FY22[[#This Row],[Median]]","v":304753},{"$f":"(((AAMC_Raw_Data_for_FY22[[#This Row],[75th]]-AAMC_Raw_Data_for_FY22[[#This Row],[Median]])/25)*20) + AAMC_Raw_Data_for_FY22[[#This Row],[Median]]","v":314602},324451,{"$f":"(((AAMC_Raw_Data_for_FY22[[#This Row],[75th]]-AAMC_Raw_Data_for_FY22[[#This Row],[Median]])/25)*30) + AAMC_Raw_Data_for_FY22[[#This Row],[Median]]","v":334300},{"$f":"(((AAMC_Raw_Data_for_FY22[[#This Row],[75th]]-AAMC_Raw_Data_for_FY22[[#This Row],[Median]])/25)*35) + AAMC_Raw_Data_for_FY22[[#This Row],[Median]]","v":344149},{"$f":"(((AAMC_Raw_Data_for_FY22[[#This Row],[75th]]-AAMC_Raw_Data_for_FY22[[#This Row],[Median]])/25)*40) + AAMC_Raw_Data_for_FY22[[#This Row],[Median]]","v":353998}]
[{"$f":"AAMC_Raw_Data_for_FY22[[#This Row],[Source]]&AAMC_Raw_Data_for_FY22[[#This Row],[Type]]&AAMC_Raw_Data_for_FY22[[#This Row],[School Subset]]&AAMC_Raw_Data_for_FY22[[#This Row],[Rank]]&AAMC_Raw_Data_for_FY22[[#This Row],[Degree]]&AAMC_Raw_Data_for_FY22[[#This Row],[Department / Specialty]]&\"L\"","v":"AAMCAcademicAllChiefMDInfectious Disease-Med.L"},"Infectious Disease-Med.",6,"AAMC","Academic","All","Chief","MD","2021-2022",292128,{"$f":"(((AAMC_Raw_Data_for_FY22[[#This Row],[Median]]-AAMC_Raw_Data_for_FY22[[#This Row],[25th]])/25)*5) + AAMC_Raw_Data_for_FY22[[#This Row],[25th]]","v":301338.59999999998},{"$f":"(((AAMC_Raw_Data_for_FY22[[#This Row],[Median]]-AAMC_Raw_Data_for_FY22[[#This Row],[25th]])/25)*10) + AAMC_Raw_Data_for_FY22[[#This Row],[25th]]","v":310549.2},{"$f":"(((AAMC_Raw_Data_for_FY22[[#This Row],[Median]]-AAMC_Raw_Data_for_FY22[[#This Row],[25th]])/25)*15) + AAMC_Raw_Data_for_FY22[[#This Row],[25th]]","v":319759.8},{"$f":"(((AAMC_Raw_Data_for_FY22[[#This Row],[Median]]-AAMC_Raw_Data_for_FY22[[#This Row],[25th]])/25)*20) + AAMC_Raw_Data_for_FY22[[#This Row],[25th]]","v":328970.40000000002},338181,{"$f":"(((AAMC_Raw_Data_for_FY22[[#This Row],[75th]]-AAMC_Raw_Data_for_FY22[[#This Row],[Median]])/25)*5) + AAMC_Raw_Data_for_FY22[[#This Row],[Median]]","v":349006.4},{"$f":"(((AAMC_Raw_Data_for_FY22[[#This Row],[75th]]-AAMC_Raw_Data_for_FY22[[#This Row],[Median]])/25)*10) + AAMC_Raw_Data_for_FY22[[#This Row],[Median]]","v":359831.8},{"$f":"(((AAMC_Raw_Data_for_FY22[[#This Row],[75th]]-AAMC_Raw_Data_for_FY22[[#This Row],[Median]])/25)*15) + AAMC_Raw_Data_for_FY22[[#This Row],[Median]]","v":370657.2},{"$f":"(((AAMC_Raw_Data_for_FY22[[#This Row],[75th]]-AAMC_Raw_Data_for_FY22[[#This Row],[Median]])/25)*20) + AAMC_Raw_Data_for_FY22[[#This Row],[Median]]","v":381482.6},392308,{"$f":"(((AAMC_Raw_Data_for_FY22[[#This Row],[75th]]-AAMC_Raw_Data_for_FY22[[#This Row],[Median]])/25)*30) + AAMC_Raw_Data_for_FY22[[#This Row],[Median]]","v":403133.4},{"$f":"(((AAMC_Raw_Data_for_FY22[[#This Row],[75th]]-AAMC_Raw_Data_for_FY22[[#This Row],[Median]])/25)*35) + AAMC_Raw_Data_for_FY22[[#This Row],[Median]]","v":413958.8},{"$f":"(((AAMC_Raw_Data_for_FY22[[#This Row],[75th]]-AAMC_Raw_Data_for_FY22[[#This Row],[Median]])/25)*40) + AAMC_Raw_Data_for_FY22[[#This Row],[Median]]","v":424784.2}]
[{"$f":"AAMC_Raw_Data_for_FY22[[#This Row],[Source]]&AAMC_Raw_Data_for_FY22[[#This Row],[Type]]&AAMC_Raw_Data_for_FY22[[#This Row],[School Subset]]&AAMC_Raw_Data_for_FY22[[#This Row],[Rank]]&AAMC_Raw_Data_for_FY22[[#This Row],[Degree]]&AAMC_Raw_Data_for_FY22[[#This Row],[Department / Specialty]]&\"L\"","v":"AAMCAcademicAllChairMDInfectious Disease-Med.L"},"Infectious Disease-Med.",1,"AAMC","Academic","All","Chair","MD","2021-2022",441435,{"$f":"(((AAMC_Raw_Data_for_FY22[[#This Row],[Median]]-AAMC_Raw_Data_for_FY22[[#This Row],[25th]])/25)*5) + AAMC_Raw_Data_for_FY22[[#This Row],[25th]]","v":479786},{"$f":"(((AAMC_Raw_Data_for_FY22[[#This Row],[Median]]-AAMC_Raw_Data_for_FY22[[#This Row],[25th]])/25)*10) + AAMC_Raw_Data_for_FY22[[#This Row],[25th]]","v":518137},{"$f":"(((AAMC_Raw_Data_for_FY22[[#This Row],[Median]]-AAMC_Raw_Data_for_FY22[[#This Row],[25th]])/25)*15) + AAMC_Raw_Data_for_FY22[[#This Row],[25th]]","v":556488},{"$f":"(((AAMC_Raw_Data_for_FY22[[#This Row],[Median]]-AAMC_Raw_Data_for_FY22[[#This Row],[25th]])/25)*20) + AAMC_Raw_Data_for_FY22[[#This Row],[25th]]","v":594839},633190,{"$f":"(((AAMC_Raw_Data_for_FY22[[#This Row],[75th]]-AAMC_Raw_Data_for_FY22[[#This Row],[Median]])/25)*5) + AAMC_Raw_Data_for_FY22[[#This Row],[Median]]","v":659757.19999999995},{"$f":"(((AAMC_Raw_Data_for_FY22[[#This Row],[75th]]-AAMC_Raw_Data_for_FY22[[#This Row],[Median]])/25)*10) + AAMC_Raw_Data_for_FY22[[#This Row],[Median]]","v":686324.4},{"$f":"(((AAMC_Raw_Data_for_FY22[[#This Row],[75th]]-AAMC_Raw_Data_for_FY22[[#This Row],[Median]])/25)*15) + AAMC_Raw_Data_for_FY22[[#This Row],[Median]]","v":712891.6},{"$f":"(((AAMC_Raw_Data_for_FY22[[#This Row],[75th]]-AAMC_Raw_Data_for_FY22[[#This Row],[Median]])/25)*20) + AAMC_Raw_Data_for_FY22[[#This Row],[Median]]","v":739458.8},766026,{"$f":"(((AAMC_Raw_Data_for_FY22[[#This Row],[75th]]-AAMC_Raw_Data_for_FY22[[#This Row],[Median]])/25)*30) + AAMC_Raw_Data_for_FY22[[#This Row],[Median]]","v":792593.2},{"$f":"(((AAMC_Raw_Data_for_FY22[[#This Row],[75th]]-AAMC_Raw_Data_for_FY22[[#This Row],[Median]])/25)*35) + AAMC_Raw_Data_for_FY22[[#This Row],[Median]]","v":819160.4},{"$f":"(((AAMC_Raw_Data_for_FY22[[#This Row],[75th]]-AAMC_Raw_Data_for_FY22[[#This Row],[Median]])/25)*40) + AAMC_Raw_Data_for_FY22[[#This Row],[Median]]","v":845727.6}]
[{"$f":"AAMC_Raw_Data_for_FY22[[#This Row],[Source]]&AAMC_Raw_Data_for_FY22[[#This Row],[Type]]&AAMC_Raw_Data_for_FY22[[#This Row],[School Subset]]&AAMC_Raw_Data_for_FY22[[#This Row],[Rank]]&AAMC_Raw_Data_for_FY22[[#This Row],[Degree]]&AAMC_Raw_Data_for_FY22[[#This Row],[Department / Specialty]]&\"L\"","v":"AAMCAcademicAllInstructorMDNephrology-Med.L"},"Nephrology-Med.",5,"AAMC","Academic","All","Instructor","MD","2021-2022",114261,{"$f":"(((AAMC_Raw_Data_for_FY22[[#This Row],[Median]]-AAMC_Raw_Data_for_FY22[[#This Row],[25th]])/25)*5) + AAMC_Raw_Data_for_FY22[[#This Row],[25th]]","v":125683.8},{"$f":"(((AAMC_Raw_Data_for_FY22[[#This Row],[Median]]-AAMC_Raw_Data_for_FY22[[#This Row],[25th]])/25)*10) + AAMC_Raw_Data_for_FY22[[#This Row],[25th]]","v":137106.6},{"$f":"(((AAMC_Raw_Data_for_FY22[[#This Row],[Median]]-AAMC_Raw_Data_for_FY22[[#This Row],[25th]])/25)*15) + AAMC_Raw_Data_for_FY22[[#This Row],[25th]]","v":148529.4},{"$f":"(((AAMC_Raw_Data_for_FY22[[#This Row],[Median]]-AAMC_Raw_Data_for_FY22[[#This Row],[25th]])/25)*20) + AAMC_Raw_Data_for_FY22[[#This Row],[25th]]","v":159952.20000000001},171375,{"$f":"(((AAMC_Raw_Data_for_FY22[[#This Row],[75th]]-AAMC_Raw_Data_for_FY22[[#This Row],[Median]])/25)*5) + AAMC_Raw_Data_for_FY22[[#This Row],[Median]]","v":178630.39999999999},{"$f":"(((AAMC_Raw_Data_for_FY22[[#This Row],[75th]]-AAMC_Raw_Data_for_FY22[[#This Row],[Median]])/25)*10) + AAMC_Raw_Data_for_FY22[[#This Row],[Median]]","v":185885.8},{"$f":"(((AAMC_Raw_Data_for_FY22[[#This Row],[75th]]-AAMC_Raw_Data_for_FY22[[#This Row],[Median]])/25)*15) + AAMC_Raw_Data_for_FY22[[#This Row],[Median]]","v":193141.2},{"$f":"(((AAMC_Raw_Data_for_FY22[[#This Row],[75th]]-AAMC_Raw_Data_for_FY22[[#This Row],[Median]])/25)*20) + AAMC_Raw_Data_for_FY22[[#This Row],[Median]]","v":200396.6},207652,{"$f":"(((AAMC_Raw_Data_for_FY22[[#This Row],[75th]]-AAMC_Raw_Data_for_FY22[[#This Row],[Median]])/25)*30) + AAMC_Raw_Data_for_FY22[[#This Row],[Median]]","v":214907.4},{"$f":"(((AAMC_Raw_Data_for_FY22[[#This Row],[75th]]-AAMC_Raw_Data_for_FY22[[#This Row],[Median]])/25)*35) + AAMC_Raw_Data_for_FY22[[#This Row],[Median]]","v":222162.8},{"$f":"(((AAMC_Raw_Data_for_FY22[[#This Row],[75th]]-AAMC_Raw_Data_for_FY22[[#This Row],[Median]])/25)*40) + AAMC_Raw_Data_for_FY22[[#This Row],[Median]]","v":229418.2}]
[{"$f":"AAMC_Raw_Data_for_FY22[[#This Row],[Source]]&AAMC_Raw_Data_for_FY22[[#This Row],[Type]]&AAMC_Raw_Data_for_FY22[[#This Row],[School Subset]]&AAMC_Raw_Data_for_FY22[[#This Row],[Rank]]&AAMC_Raw_Data_for_FY22[[#This Row],[Degree]]&AAMC_Raw_Data_for_FY22[[#This Row],[Department / Specialty]]&\"L\"","v":"AAMCAcademicAllAssistantMDNephrology-Med.L"},"Nephrology-Med.",4,"AAMC","Academic","All","Assistant","MD","2021-2022",200000,{"$f":"(((AAMC_Raw_Data_for_FY22[[#This Row],[Median]]-AAMC_Raw_Data_for_FY22[[#This Row],[25th]])/25)*5) + AAMC_Raw_Data_for_FY22[[#This Row],[25th]]","v":206424},{"$f":"(((AAMC_Raw_Data_for_FY22[[#This Row],[Median]]-AAMC_Raw_Data_for_FY22[[#This Row],[25th]])/25)*10) + AAMC_Raw_Data_for_FY22[[#This Row],[25th]]","v":212848},{"$f":"(((AAMC_Raw_Data_for_FY22[[#This Row],[Median]]-AAMC_Raw_Data_for_FY22[[#This Row],[25th]])/25)*15) + AAMC_Raw_Data_for_FY22[[#This Row],[25th]]","v":219272},{"$f":"(((AAMC_Raw_Data_for_FY22[[#This Row],[Median]]-AAMC_Raw_Data_for_FY22[[#This Row],[25th]])/25)*20) + AAMC_Raw_Data_for_FY22[[#This Row],[25th]]","v":225696},232120,{"$f":"(((AAMC_Raw_Data_for_FY22[[#This Row],[75th]]-AAMC_Raw_Data_for_FY22[[#This Row],[Median]])/25)*5) + AAMC_Raw_Data_for_FY22[[#This Row],[Median]]","v":241664.2},{"$f":"(((AAMC_Raw_Data_for_FY22[[#This Row],[75th]]-AAMC_Raw_Data_for_FY22[[#This Row],[Median]])/25)*10) + AAMC_Raw_Data_for_FY22[[#This Row],[Median]]","v":251208.4},{"$f":"(((AAMC_Raw_Data_for_FY22[[#This Row],[75th]]-AAMC_Raw_Data_for_FY22[[#This Row],[Median]])/25)*15) + AAMC_Raw_Data_for_FY22[[#This Row],[Median]]","v":260752.6},{"$f":"(((AAMC_Raw_Data_for_FY22[[#This Row],[75th]]-AAMC_Raw_Data_for_FY22[[#This Row],[Median]])/25)*20) + AAMC_Raw_Data_for_FY22[[#This Row],[Median]]","v":270296.8},279841,{"$f":"(((AAMC_Raw_Data_for_FY22[[#This Row],[75th]]-AAMC_Raw_Data_for_FY22[[#This Row],[Median]])/25)*30) + AAMC_Raw_Data_for_FY22[[#This Row],[Median]]","v":289385.2},{"$f":"(((AAMC_Raw_Data_for_FY22[[#This Row],[75th]]-AAMC_Raw_Data_for_FY22[[#This Row],[Median]])/25)*35) + AAMC_Raw_Data_for_FY22[[#This Row],[Median]]","v":298929.40000000002},{"$f":"(((AAMC_Raw_Data_for_FY22[[#This Row],[75th]]-AAMC_Raw_Data_for_FY22[[#This Row],[Median]])/25)*40) + AAMC_Raw_Data_for_FY22[[#This Row],[Median]]","v":308473.59999999998}]
[{"$f":"AAMC_Raw_Data_for_FY22[[#This Row],[Source]]&AAMC_Raw_Data_for_FY22[[#This Row],[Type]]&AAMC_Raw_Data_for_FY22[[#This Row],[School Subset]]&AAMC_Raw_Data_for_FY22[[#This Row],[Rank]]&AAMC_Raw_Data_for_FY22[[#This Row],[Degree]]&AAMC_Raw_Data_for_FY22[[#This Row],[Department / Specialty]]&\"L\"","v":"AAMCAcademicAllAssociateMDNephrology-Med.L"},"Nephrology-Med.",3,"AAMC","Academic","All","Associate","MD","2021-2022",238666,{"$f":"(((AAMC_Raw_Data_for_FY22[[#This Row],[Median]]-AAMC_Raw_Data_for_FY22[[#This Row],[25th]])/25)*5) + AAMC_Raw_Data_for_FY22[[#This Row],[25th]]","v":245763.4},{"$f":"(((AAMC_Raw_Data_for_FY22[[#This Row],[Median]]-AAMC_Raw_Data_for_FY22[[#This Row],[25th]])/25)*10) + AAMC_Raw_Data_for_FY22[[#This Row],[25th]]","v":252860.79999999999},{"$f":"(((AAMC_Raw_Data_for_FY22[[#This Row],[Median]]-AAMC_Raw_Data_for_FY22[[#This Row],[25th]])/25)*15) + AAMC_Raw_Data_for_FY22[[#This Row],[25th]]","v":259958.2},{"$f":"(((AAMC_Raw_Data_for_FY22[[#This Row],[Median]]-AAMC_Raw_Data_for_FY22[[#This Row],[25th]])/25)*20) + AAMC_Raw_Data_for_FY22[[#This Row],[25th]]","v":267055.59999999998},274153,{"$f":"(((AAMC_Raw_Data_for_FY22[[#This Row],[75th]]-AAMC_Raw_Data_for_FY22[[#This Row],[Median]])/25)*5) + AAMC_Raw_Data_for_FY22[[#This Row],[Median]]","v":284169.2},{"$f":"(((AAMC_Raw_Data_for_FY22[[#This Row],[75th]]-AAMC_Raw_Data_for_FY22[[#This Row],[Median]])/25)*10) + AAMC_Raw_Data_for_FY22[[#This Row],[Median]]","v":294185.40000000002},{"$f":"(((AAMC_Raw_Data_for_FY22[[#This Row],[75th]]-AAMC_Raw_Data_for_FY22[[#This Row],[Median]])/25)*15) + AAMC_Raw_Data_for_FY22[[#This Row],[Median]]","v":304201.59999999998},{"$f":"(((AAMC_Raw_Data_for_FY22[[#This Row],[75th]]-AAMC_Raw_Data_for_FY22[[#This Row],[Median]])/25)*20) + AAMC_Raw_Data_for_FY22[[#This Row],[Median]]","v":314217.8},324234,{"$f":"(((AAMC_Raw_Data_for_FY22[[#This Row],[75th]]-AAMC_Raw_Data_for_FY22[[#This Row],[Median]])/25)*30) + AAMC_Raw_Data_for_FY22[[#This Row],[Median]]","v":334250.2},{"$f":"(((AAMC_Raw_Data_for_FY22[[#This Row],[75th]]-AAMC_Raw_Data_for_FY22[[#This Row],[Median]])/25)*35) + AAMC_Raw_Data_for_FY22[[#This Row],[Median]]","v":344266.4},{"$f":"(((AAMC_Raw_Data_for_FY22[[#This Row],[75th]]-AAMC_Raw_Data_for_FY22[[#This Row],[Median]])/25)*40) + AAMC_Raw_Data_for_FY22[[#This Row],[Median]]","v":354282.6}]
[{"$f":"AAMC_Raw_Data_for_FY22[[#This Row],[Source]]&AAMC_Raw_Data_for_FY22[[#This Row],[Type]]&AAMC_Raw_Data_for_FY22[[#This Row],[School Subset]]&AAMC_Raw_Data_for_FY22[[#This Row],[Rank]]&AAMC_Raw_Data_for_FY22[[#This Row],[Degree]]&AAMC_Raw_Data_for_FY22[[#This Row],[Department / Specialty]]&\"L\"","v":"AAMCAcademicAllProfessorMDNephrology-Med.L"},"Nephrology-Med.",2,"AAMC","Academic","All","Professor","MD","2021-2022",283874,{"$f":"(((AAMC_Raw_Data_for_FY22[[#This Row],[Median]]-AAMC_Raw_Data_for_FY22[[#This Row],[25th]])/25)*5) + AAMC_Raw_Data_for_FY22[[#This Row],[25th]]","v":294117.59999999998},{"$f":"(((AAMC_Raw_Data_for_FY22[[#This Row],[Median]]-AAMC_Raw_Data_for_FY22[[#This Row],[25th]])/25)*10) + AAMC_Raw_Data_for_FY22[[#This Row],[25th]]","v":304361.2},{"$f":"(((AAMC_Raw_Data_for_FY22[[#This Row],[Median]]-AAMC_Raw_Data_for_FY22[[#This Row],[25th]])/25)*15) + AAMC_Raw_Data_for_FY22[[#This Row],[25th]]","v":314604.79999999999},{"$f":"(((AAMC_Raw_Data_for_FY22[[#This Row],[Median]]-AAMC_Raw_Data_for_FY22[[#This Row],[25th]])/25)*20) + AAMC_Raw_Data_for_FY22[[#This Row],[25th]]","v":324848.40000000002},335092,{"$f":"(((AAMC_Raw_Data_for_FY22[[#This Row],[75th]]-AAMC_Raw_Data_for_FY22[[#This Row],[Median]])/25)*5) + AAMC_Raw_Data_for_FY22[[#This Row],[Median]]","v":347102.6},{"$f":"(((AAMC_Raw_Data_for_FY22[[#This Row],[75th]]-AAMC_Raw_Data_for_FY22[[#This Row],[Median]])/25)*10) + AAMC_Raw_Data_for_FY22[[#This Row],[Median]]","v":359113.2},{"$f":"(((AAMC_Raw_Data_for_FY22[[#This Row],[75th]]-AAMC_Raw_Data_for_FY22[[#This Row],[Median]])/25)*15) + AAMC_Raw_Data_for_FY22[[#This Row],[Median]]","v":371123.8},{"$f":"(((AAMC_Raw_Data_for_FY22[[#This Row],[75th]]-AAMC_Raw_Data_for_FY22[[#This Row],[Median]])/25)*20) + AAMC_Raw_Data_for_FY22[[#This Row],[Median]]","v":383134.4},395145,{"$f":"(((AAMC_Raw_Data_for_FY22[[#This Row],[75th]]-AAMC_Raw_Data_for_FY22[[#This Row],[Median]])/25)*30) + AAMC_Raw_Data_for_FY22[[#This Row],[Median]]","v":407155.6},{"$f":"(((AAMC_Raw_Data_for_FY22[[#This Row],[75th]]-AAMC_Raw_Data_for_FY22[[#This Row],[Median]])/25)*35) + AAMC_Raw_Data_for_FY22[[#This Row],[Median]]","v":419166.2},{"$f":"(((AAMC_Raw_Data_for_FY22[[#This Row],[75th]]-AAMC_Raw_Data_for_FY22[[#This Row],[Median]])/25)*40) + AAMC_Raw_Data_for_FY22[[#This Row],[Median]]","v":431176.8}]
[{"$f":"AAMC_Raw_Data_for_FY22[[#This Row],[Source]]&AAMC_Raw_Data_for_FY22[[#This Row],[Type]]&AAMC_Raw_Data_for_FY22[[#This Row],[School Subset]]&AAMC_Raw_Data_for_FY22[[#This Row],[Rank]]&AAMC_Raw_Data_for_FY22[[#This Row],[Degree]]&AAMC_Raw_Data_for_FY22[[#This Row],[Department / Specialty]]&\"L\"","v":"AAMCAcademicAllChiefMDNephrology-Med.L"},"Nephrology-Med.",6,"AAMC","Academic","All","Chief","MD","2021-2022",356993,{"$f":"(((AAMC_Raw_Data_for_FY22[[#This Row],[Median]]-AAMC_Raw_Data_for_FY22[[#This Row],[25th]])/25)*5) + AAMC_Raw_Data_for_FY22[[#This Row],[25th]]","v":369410.8},{"$f":"(((AAMC_Raw_Data_for_FY22[[#This Row],[Median]]-AAMC_Raw_Data_for_FY22[[#This Row],[25th]])/25)*10) + AAMC_Raw_Data_for_FY22[[#This Row],[25th]]","v":381828.6},{"$f":"(((AAMC_Raw_Data_for_FY22[[#This Row],[Median]]-AAMC_Raw_Data_for_FY22[[#This Row],[25th]])/25)*15) + AAMC_Raw_Data_for_FY22[[#This Row],[25th]]","v":394246.40000000002},{"$f":"(((AAMC_Raw_Data_for_FY22[[#This Row],[Median]]-AAMC_Raw_Data_for_FY22[[#This Row],[25th]])/25)*20) + AAMC_Raw_Data_for_FY22[[#This Row],[25th]]","v":406664.2},419082,{"$f":"(((AAMC_Raw_Data_for_FY22[[#This Row],[75th]]-AAMC_Raw_Data_for_FY22[[#This Row],[Median]])/25)*5) + AAMC_Raw_Data_for_FY22[[#This Row],[Median]]","v":427804.2},{"$f":"(((AAMC_Raw_Data_for_FY22[[#This Row],[75th]]-AAMC_Raw_Data_for_FY22[[#This Row],[Median]])/25)*10) + AAMC_Raw_Data_for_FY22[[#This Row],[Median]]","v":436526.4},{"$f":"(((AAMC_Raw_Data_for_FY22[[#This Row],[75th]]-AAMC_Raw_Data_for_FY22[[#This Row],[Median]])/25)*15) + AAMC_Raw_Data_for_FY22[[#This Row],[Median]]","v":445248.6},{"$f":"(((AAMC_Raw_Data_for_FY22[[#This Row],[75th]]-AAMC_Raw_Data_for_FY22[[#This Row],[Median]])/25)*20) + AAMC_Raw_Data_for_FY22[[#This Row],[Median]]","v":453970.8},462693,{"$f":"(((AAMC_Raw_Data_for_FY22[[#This Row],[75th]]-AAMC_Raw_Data_for_FY22[[#This Row],[Median]])/25)*30) + AAMC_Raw_Data_for_FY22[[#This Row],[Median]]","v":471415.2},{"$f":"(((AAMC_Raw_Data_for_FY22[[#This Row],[75th]]-AAMC_Raw_Data_for_FY22[[#This Row],[Median]])/25)*35) + AAMC_Raw_Data_for_FY22[[#This Row],[Median]]","v":480137.4},{"$f":"(((AAMC_Raw_Data_for_FY22[[#This Row],[75th]]-AAMC_Raw_Data_for_FY22[[#This Row],[Median]])/25)*40) + AAMC_Raw_Data_for_FY22[[#This Row],[Median]]","v":488859.6}]
[{"$f":"AAMC_Raw_Data_for_FY22[[#This Row],[Source]]&AAMC_Raw_Data_for_FY22[[#This Row],[Type]]&AAMC_Raw_Data_for_FY22[[#This Row],[School Subset]]&AAMC_Raw_Data_for_FY22[[#This Row],[Rank]]&AAMC_Raw_Data_for_FY22[[#This Row],[Degree]]&AAMC_Raw_Data_for_FY22[[#This Row],[Department / Specialty]]&\"L\"","v":"AAMCAcademicAllChairMDNephrology-Med.L"},"Nephrology-Med.",1,"AAMC","Academic","All","Chair","MD","2021-2022",383744,{"$f":"(((AAMC_Raw_Data_for_FY22[[#This Row],[Median]]-AAMC_Raw_Data_for_FY22[[#This Row],[25th]])/25)*5) + AAMC_Raw_Data_for_FY22[[#This Row],[25th]]","v":394565.2},{"$f":"(((AAMC_Raw_Data_for_FY22[[#This Row],[Median]]-AAMC_Raw_Data_for_FY22[[#This Row],[25th]])/25)*10) + AAMC_Raw_Data_for_FY22[[#This Row],[25th]]","v":405386.4},{"$f":"(((AAMC_Raw_Data_for_FY22[[#This Row],[Median]]-AAMC_Raw_Data_for_FY22[[#This Row],[25th]])/25)*15) + AAMC_Raw_Data_for_FY22[[#This Row],[25th]]","v":416207.6},{"$f":"(((AAMC_Raw_Data_for_FY22[[#This Row],[Median]]-AAMC_Raw_Data_for_FY22[[#This Row],[25th]])/25)*20) + AAMC_Raw_Data_for_FY22[[#This Row],[25th]]","v":427028.8},437850,{"$f":"(((AAMC_Raw_Data_for_FY22[[#This Row],[75th]]-AAMC_Raw_Data_for_FY22[[#This Row],[Median]])/25)*5) + AAMC_Raw_Data_for_FY22[[#This Row],[Median]]","v":500774},{"$f":"(((AAMC_Raw_Data_for_FY22[[#This Row],[75th]]-AAMC_Raw_Data_for_FY22[[#This Row],[Median]])/25)*10) + AAMC_Raw_Data_for_FY22[[#This Row],[Median]]","v":563698},{"$f":"(((AAMC_Raw_Data_for_FY22[[#This Row],[75th]]-AAMC_Raw_Data_for_FY22[[#This Row],[Median]])/25)*15) + AAMC_Raw_Data_for_FY22[[#This Row],[Median]]","v":626622},{"$f":"(((AAMC_Raw_Data_for_FY22[[#This Row],[75th]]-AAMC_Raw_Data_for_FY22[[#This Row],[Median]])/25)*20) + AAMC_Raw_Data_for_FY22[[#This Row],[Median]]","v":689546},752470,{"$f":"(((AAMC_Raw_Data_for_FY22[[#This Row],[75th]]-AAMC_Raw_Data_for_FY22[[#This Row],[Median]])/25)*30) + AAMC_Raw_Data_for_FY22[[#This Row],[Median]]","v":815394},{"$f":"(((AAMC_Raw_Data_for_FY22[[#This Row],[75th]]-AAMC_Raw_Data_for_FY22[[#This Row],[Median]])/25)*35) + AAMC_Raw_Data_for_FY22[[#This Row],[Median]]","v":878318},{"$f":"(((AAMC_Raw_Data_for_FY22[[#This Row],[75th]]-AAMC_Raw_Data_for_FY22[[#This Row],[Median]])/25)*40) + AAMC_Raw_Data_for_FY22[[#This Row],[Median]]","v":941242}]
[{"$f":"AAMC_Raw_Data_for_FY22[[#This Row],[Source]]&AAMC_Raw_Data_for_FY22[[#This Row],[Type]]&AAMC_Raw_Data_for_FY22[[#This Row],[School Subset]]&AAMC_Raw_Data_for_FY22[[#This Row],[Rank]]&AAMC_Raw_Data_for_FY22[[#This Row],[Degree]]&AAMC_Raw_Data_for_FY22[[#This Row],[Department / Specialty]]&\"L\"","v":"AAMCAcademicAllInstructorMDPalliative Care-Med.L"},"Palliative Care-Med.",5,"AAMC","Academic","All","Instructor","MD","2021-2022",null,{"$f":"(((AAMC_Raw_Data_for_FY22[[#This Row],[Median]]-AAMC_Raw_Data_for_FY22[[#This Row],[25th]])/25)*5) + AAMC_Raw_Data_for_FY22[[#This Row],[25th]]","v":0},{"$f":"(((AAMC_Raw_Data_for_FY22[[#This Row],[Median]]-AAMC_Raw_Data_for_FY22[[#This Row],[25th]])/25)*10) + AAMC_Raw_Data_for_FY22[[#This Row],[25th]]","v":0},{"$f":"(((AAMC_Raw_Data_for_FY22[[#This Row],[Median]]-AAMC_Raw_Data_for_FY22[[#This Row],[25th]])/25)*15) + AAMC_Raw_Data_for_FY22[[#This Row],[25th]]","v":0},{"$f":"(((AAMC_Raw_Data_for_FY22[[#This Row],[Median]]-AAMC_Raw_Data_for_FY22[[#This Row],[25th]])/25)*20) + AAMC_Raw_Data_for_FY22[[#This Row],[25th]]","v":0},null,{"$f":"(((AAMC_Raw_Data_for_FY22[[#This Row],[75th]]-AAMC_Raw_Data_for_FY22[[#This Row],[Median]])/25)*5) + AAMC_Raw_Data_for_FY22[[#This Row],[Median]]","v":0},{"$f":"(((AAMC_Raw_Data_for_FY22[[#This Row],[75th]]-AAMC_Raw_Data_for_FY22[[#This Row],[Median]])/25)*10) + AAMC_Raw_Data_for_FY22[[#This Row],[Median]]","v":0},{"$f":"(((AAMC_Raw_Data_for_FY22[[#This Row],[75th]]-AAMC_Raw_Data_for_FY22[[#This Row],[Median]])/25)*15) + AAMC_Raw_Data_for_FY22[[#This Row],[Median]]","v":0},{"$f":"(((AAMC_Raw_Data_for_FY22[[#This Row],[75th]]-AAMC_Raw_Data_for_FY22[[#This Row],[Median]])/25)*20) + AAMC_Raw_Data_for_FY22[[#This Row],[Median]]","v":0},null,{"$f":"(((AAMC_Raw_Data_for_FY22[[#This Row],[75th]]-AAMC_Raw_Data_for_FY22[[#This Row],[Median]])/25)*30) + AAMC_Raw_Data_for_FY22[[#This Row],[Median]]","v":0},{"$f":"(((AAMC_Raw_Data_for_FY22[[#This Row],[75th]]-AAMC_Raw_Data_for_FY22[[#This Row],[Median]])/25)*35) + AAMC_Raw_Data_for_FY22[[#This Row],[Median]]","v":0},{"$f":"(((AAMC_Raw_Data_for_FY22[[#This Row],[75th]]-AAMC_Raw_Data_for_FY22[[#This Row],[Median]])/25)*40) + AAMC_Raw_Data_for_FY22[[#This Row],[Median]]","v":0}]
[{"$f":"AAMC_Raw_Data_for_FY22[[#This Row],[Source]]&AAMC_Raw_Data_for_FY22[[#This Row],[Type]]&AAMC_Raw_Data_for_FY22[[#This Row],[School Subset]]&AAMC_Raw_Data_for_FY22[[#This Row],[Rank]]&AAMC_Raw_Data_for_FY22[[#This Row],[Degree]]&AAMC_Raw_Data_for_FY22[[#This Row],[Department / Specialty]]&\"L\"","v":"AAMCAcademicAllAssistantMDPalliative Care-Med.L"},"Palliative Care-Med.",4,"AAMC","Academic","All","Assistant","MD","2021-2022",211804,{"$f":"(((AAMC_Raw_Data_for_FY22[[#This Row],[Median]]-AAMC_Raw_Data_for_FY22[[#This Row],[25th]])/25)*5) + AAMC_Raw_Data_for_FY22[[#This Row],[25th]]","v":216149.8},{"$f":"(((AAMC_Raw_Data_for_FY22[[#This Row],[Median]]-AAMC_Raw_Data_for_FY22[[#This Row],[25th]])/25)*10) + AAMC_Raw_Data_for_FY22[[#This Row],[25th]]","v":220495.6},{"$f":"(((AAMC_Raw_Data_for_FY22[[#This Row],[Median]]-AAMC_Raw_Data_for_FY22[[#This Row],[25th]])/25)*15) + AAMC_Raw_Data_for_FY22[[#This Row],[25th]]","v":224841.4},{"$f":"(((AAMC_Raw_Data_for_FY22[[#This Row],[Median]]-AAMC_Raw_Data_for_FY22[[#This Row],[25th]])/25)*20) + AAMC_Raw_Data_for_FY22[[#This Row],[25th]]","v":229187.20000000001},233533,{"$f":"(((AAMC_Raw_Data_for_FY22[[#This Row],[75th]]-AAMC_Raw_Data_for_FY22[[#This Row],[Median]])/25)*5) + AAMC_Raw_Data_for_FY22[[#This Row],[Median]]","v":241560.6},{"$f":"(((AAMC_Raw_Data_for_FY22[[#This Row],[75th]]-AAMC_Raw_Data_for_FY22[[#This Row],[Median]])/25)*10) + AAMC_Raw_Data_for_FY22[[#This Row],[Median]]","v":249588.2},{"$f":"(((AAMC_Raw_Data_for_FY22[[#This Row],[75th]]-AAMC_Raw_Data_for_FY22[[#This Row],[Median]])/25)*15) + AAMC_Raw_Data_for_FY22[[#This Row],[Median]]","v":257615.8},{"$f":"(((AAMC_Raw_Data_for_FY22[[#This Row],[75th]]-AAMC_Raw_Data_for_FY22[[#This Row],[Median]])/25)*20) + AAMC_Raw_Data_for_FY22[[#This Row],[Median]]","v":265643.40000000002},273671,{"$f":"(((AAMC_Raw_Data_for_FY22[[#This Row],[75th]]-AAMC_Raw_Data_for_FY22[[#This Row],[Median]])/25)*30) + AAMC_Raw_Data_for_FY22[[#This Row],[Median]]","v":281698.59999999998},{"$f":"(((AAMC_Raw_Data_for_FY22[[#This Row],[75th]]-AAMC_Raw_Data_for_FY22[[#This Row],[Median]])/25)*35) + AAMC_Raw_Data_for_FY22[[#This Row],[Median]]","v":289726.2},{"$f":"(((AAMC_Raw_Data_for_FY22[[#This Row],[75th]]-AAMC_Raw_Data_for_FY22[[#This Row],[Median]])/25)*40) + AAMC_Raw_Data_for_FY22[[#This Row],[Median]]","v":297753.8}]
[{"$f":"AAMC_Raw_Data_for_FY22[[#This Row],[Source]]&AAMC_Raw_Data_for_FY22[[#This Row],[Type]]&AAMC_Raw_Data_for_FY22[[#This Row],[School Subset]]&AAMC_Raw_Data_for_FY22[[#This Row],[Rank]]&AAMC_Raw_Data_for_FY22[[#This Row],[Degree]]&AAMC_Raw_Data_for_FY22[[#This Row],[Department / Specialty]]&\"L\"","v":"AAMCAcademicAllAssociateMDPalliative Care-Med.L"},"Palliative Care-Med.",3,"AAMC","Academic","All","Associate","MD","2021-2022",243139,{"$f":"(((AAMC_Raw_Data_for_FY22[[#This Row],[Median]]-AAMC_Raw_Data_for_FY22[[#This Row],[25th]])/25)*5) + AAMC_Raw_Data_for_FY22[[#This Row],[25th]]","v":248356.4},{"$f":"(((AAMC_Raw_Data_for_FY22[[#This Row],[Median]]-AAMC_Raw_Data_for_FY22[[#This Row],[25th]])/25)*10) + AAMC_Raw_Data_for_FY22[[#This Row],[25th]]","v":253573.8},{"$f":"(((AAMC_Raw_Data_for_FY22[[#This Row],[Median]]-AAMC_Raw_Data_for_FY22[[#This Row],[25th]])/25)*15) + AAMC_Raw_Data_for_FY22[[#This Row],[25th]]","v":258791.2},{"$f":"(((AAMC_Raw_Data_for_FY22[[#This Row],[Median]]-AAMC_Raw_Data_for_FY22[[#This Row],[25th]])/25)*20) + AAMC_Raw_Data_for_FY22[[#This Row],[25th]]","v":264008.59999999998},269226,{"$f":"(((AAMC_Raw_Data_for_FY22[[#This Row],[75th]]-AAMC_Raw_Data_for_FY22[[#This Row],[Median]])/25)*5) + AAMC_Raw_Data_for_FY22[[#This Row],[Median]]","v":288542.59999999998},{"$f":"(((AAMC_Raw_Data_for_FY22[[#This Row],[75th]]-AAMC_Raw_Data_for_FY22[[#This Row],[Median]])/25)*10) + AAMC_Raw_Data_for_FY22[[#This Row],[Median]]","v":307859.20000000001},{"$f":"(((AAMC_Raw_Data_for_FY22[[#This Row],[75th]]-AAMC_Raw_Data_for_FY22[[#This Row],[Median]])/25)*15) + AAMC_Raw_Data_for_FY22[[#This Row],[Median]]","v":327175.8},{"$f":"(((AAMC_Raw_Data_for_FY22[[#This Row],[75th]]-AAMC_Raw_Data_for_FY22[[#This Row],[Median]])/25)*20) + AAMC_Raw_Data_for_FY22[[#This Row],[Median]]","v":346492.4},365809,{"$f":"(((AAMC_Raw_Data_for_FY22[[#This Row],[75th]]-AAMC_Raw_Data_for_FY22[[#This Row],[Median]])/25)*30) + AAMC_Raw_Data_for_FY22[[#This Row],[Median]]","v":385125.6},{"$f":"(((AAMC_Raw_Data_for_FY22[[#This Row],[75th]]-AAMC_Raw_Data_for_FY22[[#This Row],[Median]])/25)*35) + AAMC_Raw_Data_for_FY22[[#This Row],[Median]]","v":404442.2},{"$f":"(((AAMC_Raw_Data_for_FY22[[#This Row],[75th]]-AAMC_Raw_Data_for_FY22[[#This Row],[Median]])/25)*40) + AAMC_Raw_Data_for_FY22[[#This Row],[Median]]","v":423758.80000000005}]
[{"$f":"AAMC_Raw_Data_for_FY22[[#This Row],[Source]]&AAMC_Raw_Data_for_FY22[[#This Row],[Type]]&AAMC_Raw_Data_for_FY22[[#This Row],[School Subset]]&AAMC_Raw_Data_for_FY22[[#This Row],[Rank]]&AAMC_Raw_Data_for_FY22[[#This Row],[Degree]]&AAMC_Raw_Data_for_FY22[[#This Row],[Department / Specialty]]&\"L\"","v":"AAMCAcademicAllProfessorMDPalliative Care-Med.L"},"Palliative Care-Med.",2,"AAMC","Academic","All","Professor","MD","2021-2022",306450,{"$f":"(((AAMC_Raw_Data_for_FY22[[#This Row],[Median]]-AAMC_Raw_Data_for_FY22[[#This Row],[25th]])/25)*5) + AAMC_Raw_Data_for_FY22[[#This Row],[25th]]","v":311599.40000000002},{"$f":"(((AAMC_Raw_Data_for_FY22[[#This Row],[Median]]-AAMC_Raw_Data_for_FY22[[#This Row],[25th]])/25)*10) + AAMC_Raw_Data_for_FY22[[#This Row],[25th]]","v":316748.79999999999},{"$f":"(((AAMC_Raw_Data_for_FY22[[#This Row],[Median]]-AAMC_Raw_Data_for_FY22[[#This Row],[25th]])/25)*15) + AAMC_Raw_Data_for_FY22[[#This Row],[25th]]","v":321898.2},{"$f":"(((AAMC_Raw_Data_for_FY22[[#This Row],[Median]]-AAMC_Raw_Data_for_FY22[[#This Row],[25th]])/25)*20) + AAMC_Raw_Data_for_FY22[[#This Row],[25th]]","v":327047.59999999998},332197,{"$f":"(((AAMC_Raw_Data_for_FY22[[#This Row],[75th]]-AAMC_Raw_Data_for_FY22[[#This Row],[Median]])/25)*5) + AAMC_Raw_Data_for_FY22[[#This Row],[Median]]","v":383569.6},{"$f":"(((AAMC_Raw_Data_for_FY22[[#This Row],[75th]]-AAMC_Raw_Data_for_FY22[[#This Row],[Median]])/25)*10) + AAMC_Raw_Data_for_FY22[[#This Row],[Median]]","v":434942.2},{"$f":"(((AAMC_Raw_Data_for_FY22[[#This Row],[75th]]-AAMC_Raw_Data_for_FY22[[#This Row],[Median]])/25)*15) + AAMC_Raw_Data_for_FY22[[#This Row],[Median]]","v":486314.80000000005},{"$f":"(((AAMC_Raw_Data_for_FY22[[#This Row],[75th]]-AAMC_Raw_Data_for_FY22[[#This Row],[Median]])/25)*20) + AAMC_Raw_Data_for_FY22[[#This Row],[Median]]","v":537687.4},589060,{"$f":"(((AAMC_Raw_Data_for_FY22[[#This Row],[75th]]-AAMC_Raw_Data_for_FY22[[#This Row],[Median]])/25)*30) + AAMC_Raw_Data_for_FY22[[#This Row],[Median]]","v":640432.60000000009},{"$f":"(((AAMC_Raw_Data_for_FY22[[#This Row],[75th]]-AAMC_Raw_Data_for_FY22[[#This Row],[Median]])/25)*35) + AAMC_Raw_Data_for_FY22[[#This Row],[Median]]","v":691805.2},{"$f":"(((AAMC_Raw_Data_for_FY22[[#This Row],[75th]]-AAMC_Raw_Data_for_FY22[[#This Row],[Median]])/25)*40) + AAMC_Raw_Data_for_FY22[[#This Row],[Median]]","v":743177.8}]
[{"$f":"AAMC_Raw_Data_for_FY22[[#This Row],[Source]]&AAMC_Raw_Data_for_FY22[[#This Row],[Type]]&AAMC_Raw_Data_for_FY22[[#This Row],[School Subset]]&AAMC_Raw_Data_for_FY22[[#This Row],[Rank]]&AAMC_Raw_Data_for_FY22[[#This Row],[Degree]]&AAMC_Raw_Data_for_FY22[[#This Row],[Department / Specialty]]&\"L\"","v":"AAMCAcademicAllChiefMDPalliative Care-Med.L"},"Palliative Care-Med.",6,"AAMC","Academic","All","Chief","MD","2021-2022",307724,{"$f":"(((AAMC_Raw_Data_for_FY22[[#This Row],[Median]]-AAMC_Raw_Data_for_FY22[[#This Row],[25th]])/25)*5) + AAMC_Raw_Data_for_FY22[[#This Row],[25th]]","v":314020.40000000002},{"$f":"(((AAMC_Raw_Data_for_FY22[[#This Row],[Median]]-AAMC_Raw_Data_for_FY22[[#This Row],[25th]])/25)*10) + AAMC_Raw_Data_for_FY22[[#This Row],[25th]]","v":320316.79999999999},{"$f":"(((AAMC_Raw_Data_for_FY22[[#This Row],[Median]]-AAMC_Raw_Data_for_FY22[[#This Row],[25th]])/25)*15) + AAMC_Raw_Data_for_FY22[[#This Row],[25th]]","v":326613.2},{"$f":"(((AAMC_Raw_Data_for_FY22[[#This Row],[Median]]-AAMC_Raw_Data_for_FY22[[#This Row],[25th]])/25)*20) + AAMC_Raw_Data_for_FY22[[#This Row],[25th]]","v":332909.59999999998},339206,{"$f":"(((AAMC_Raw_Data_for_FY22[[#This Row],[75th]]-AAMC_Raw_Data_for_FY22[[#This Row],[Median]])/25)*5) + AAMC_Raw_Data_for_FY22[[#This Row],[Median]]","v":348671},{"$f":"(((AAMC_Raw_Data_for_FY22[[#This Row],[75th]]-AAMC_Raw_Data_for_FY22[[#This Row],[Median]])/25)*10) + AAMC_Raw_Data_for_FY22[[#This Row],[Median]]","v":358136},{"$f":"(((AAMC_Raw_Data_for_FY22[[#This Row],[75th]]-AAMC_Raw_Data_for_FY22[[#This Row],[Median]])/25)*15) + AAMC_Raw_Data_for_FY22[[#This Row],[Median]]","v":367601},{"$f":"(((AAMC_Raw_Data_for_FY22[[#This Row],[75th]]-AAMC_Raw_Data_for_FY22[[#This Row],[Median]])/25)*20) + AAMC_Raw_Data_for_FY22[[#This Row],[Median]]","v":377066},386531,{"$f":"(((AAMC_Raw_Data_for_FY22[[#This Row],[75th]]-AAMC_Raw_Data_for_FY22[[#This Row],[Median]])/25)*30) + AAMC_Raw_Data_for_FY22[[#This Row],[Median]]","v":395996},{"$f":"(((AAMC_Raw_Data_for_FY22[[#This Row],[75th]]-AAMC_Raw_Data_for_FY22[[#This Row],[Median]])/25)*35) + AAMC_Raw_Data_for_FY22[[#This Row],[Median]]","v":405461},{"$f":"(((AAMC_Raw_Data_for_FY22[[#This Row],[75th]]-AAMC_Raw_Data_for_FY22[[#This Row],[Median]])/25)*40) + AAMC_Raw_Data_for_FY22[[#This Row],[Median]]","v":414926}]
[{"$f":"AAMC_Raw_Data_for_FY22[[#This Row],[Source]]&AAMC_Raw_Data_for_FY22[[#This Row],[Type]]&AAMC_Raw_Data_for_FY22[[#This Row],[School Subset]]&AAMC_Raw_Data_for_FY22[[#This Row],[Rank]]&AAMC_Raw_Data_for_FY22[[#This Row],[Degree]]&AAMC_Raw_Data_for_FY22[[#This Row],[Department / Specialty]]&\"L\"","v":"AAMCAcademicAllChairMDPalliative Care-Med.L"},"Palliative Care-Med.",1,"AAMC","Academic","All","Chair","MD","2021-2022",null,{"$f":"(((AAMC_Raw_Data_for_FY22[[#This Row],[Median]]-AAMC_Raw_Data_for_FY22[[#This Row],[25th]])/25)*5) + AAMC_Raw_Data_for_FY22[[#This Row],[25th]]","v":0},{"$f":"(((AAMC_Raw_Data_for_FY22[[#This Row],[Median]]-AAMC_Raw_Data_for_FY22[[#This Row],[25th]])/25)*10) + AAMC_Raw_Data_for_FY22[[#This Row],[25th]]","v":0},{"$f":"(((AAMC_Raw_Data_for_FY22[[#This Row],[Median]]-AAMC_Raw_Data_for_FY22[[#This Row],[25th]])/25)*15) + AAMC_Raw_Data_for_FY22[[#This Row],[25th]]","v":0},{"$f":"(((AAMC_Raw_Data_for_FY22[[#This Row],[Median]]-AAMC_Raw_Data_for_FY22[[#This Row],[25th]])/25)*20) + AAMC_Raw_Data_for_FY22[[#This Row],[25th]]","v":0},null,{"$f":"(((AAMC_Raw_Data_for_FY22[[#This Row],[75th]]-AAMC_Raw_Data_for_FY22[[#This Row],[Median]])/25)*5) + AAMC_Raw_Data_for_FY22[[#This Row],[Median]]","v":0},{"$f":"(((AAMC_Raw_Data_for_FY22[[#This Row],[75th]]-AAMC_Raw_Data_for_FY22[[#This Row],[Median]])/25)*10) + AAMC_Raw_Data_for_FY22[[#This Row],[Median]]","v":0},{"$f":"(((AAMC_Raw_Data_for_FY22[[#This Row],[75th]]-AAMC_Raw_Data_for_FY22[[#This Row],[Median]])/25)*15) + AAMC_Raw_Data_for_FY22[[#This Row],[Median]]","v":0},{"$f":"(((AAMC_Raw_Data_for_FY22[[#This Row],[75th]]-AAMC_Raw_Data_for_FY22[[#This Row],[Median]])/25)*20) + AAMC_Raw_Data_for_FY22[[#This Row],[Median]]","v":0},null,{"$f":"(((AAMC_Raw_Data_for_FY22[[#This Row],[75th]]-AAMC_Raw_Data_for_FY22[[#This Row],[Median]])/25)*30) + AAMC_Raw_Data_for_FY22[[#This Row],[Median]]","v":0},{"$f":"(((AAMC_Raw_Data_for_FY22[[#This Row],[75th]]-AAMC_Raw_Data_for_FY22[[#This Row],[Median]])/25)*35) + AAMC_Raw_Data_for_FY22[[#This Row],[Median]]","v":0},{"$f":"(((AAMC_Raw_Data_for_FY22[[#This Row],[75th]]-AAMC_Raw_Data_for_FY22[[#This Row],[Median]])/25)*40) + AAMC_Raw_Data_for_FY22[[#This Row],[Median]]","v":0}]
[{"$f":"AAMC_Raw_Data_for_FY22[[#This Row],[Source]]&AAMC_Raw_Data_for_FY22[[#This Row],[Type]]&AAMC_Raw_Data_for_FY22[[#This Row],[School Subset]]&AAMC_Raw_Data_for_FY22[[#This Row],[Rank]]&AAMC_Raw_Data_for_FY22[[#This Row],[Degree]]&AAMC_Raw_Data_for_FY22[[#This Row],[Department / Specialty]]&\"L\"","v":"AAMCAcademicAllInstructorMDPulmonary-Med.L"},"Pulmonary-Med.",5,"AAMC","Academic","All","Instructor","MD","2021-2022",168094,{"$f":"(((AAMC_Raw_Data_for_FY22[[#This Row],[Median]]-AAMC_Raw_Data_for_FY22[[#This Row],[25th]])/25)*5) + AAMC_Raw_Data_for_FY22[[#This Row],[25th]]","v":177877.2},{"$f":"(((AAMC_Raw_Data_for_FY22[[#This Row],[Median]]-AAMC_Raw_Data_for_FY22[[#This Row],[25th]])/25)*10) + AAMC_Raw_Data_for_FY22[[#This Row],[25th]]","v":187660.4},{"$f":"(((AAMC_Raw_Data_for_FY22[[#This Row],[Median]]-AAMC_Raw_Data_for_FY22[[#This Row],[25th]])/25)*15) + AAMC_Raw_Data_for_FY22[[#This Row],[25th]]","v":197443.6},{"$f":"(((AAMC_Raw_Data_for_FY22[[#This Row],[Median]]-AAMC_Raw_Data_for_FY22[[#This Row],[25th]])/25)*20) + AAMC_Raw_Data_for_FY22[[#This Row],[25th]]","v":207226.8},217010,{"$f":"(((AAMC_Raw_Data_for_FY22[[#This Row],[75th]]-AAMC_Raw_Data_for_FY22[[#This Row],[Median]])/25)*5) + AAMC_Raw_Data_for_FY22[[#This Row],[Median]]","v":229340.2},{"$f":"(((AAMC_Raw_Data_for_FY22[[#This Row],[75th]]-AAMC_Raw_Data_for_FY22[[#This Row],[Median]])/25)*10) + AAMC_Raw_Data_for_FY22[[#This Row],[Median]]","v":241670.39999999999},{"$f":"(((AAMC_Raw_Data_for_FY22[[#This Row],[75th]]-AAMC_Raw_Data_for_FY22[[#This Row],[Median]])/25)*15) + AAMC_Raw_Data_for_FY22[[#This Row],[Median]]","v":254000.6},{"$f":"(((AAMC_Raw_Data_for_FY22[[#This Row],[75th]]-AAMC_Raw_Data_for_FY22[[#This Row],[Median]])/25)*20) + AAMC_Raw_Data_for_FY22[[#This Row],[Median]]","v":266330.8},278661,{"$f":"(((AAMC_Raw_Data_for_FY22[[#This Row],[75th]]-AAMC_Raw_Data_for_FY22[[#This Row],[Median]])/25)*30) + AAMC_Raw_Data_for_FY22[[#This Row],[Median]]","v":290991.2},{"$f":"(((AAMC_Raw_Data_for_FY22[[#This Row],[75th]]-AAMC_Raw_Data_for_FY22[[#This Row],[Median]])/25)*35) + AAMC_Raw_Data_for_FY22[[#This Row],[Median]]","v":303321.40000000002},{"$f":"(((AAMC_Raw_Data_for_FY22[[#This Row],[75th]]-AAMC_Raw_Data_for_FY22[[#This Row],[Median]])/25)*40) + AAMC_Raw_Data_for_FY22[[#This Row],[Median]]","v":315651.59999999998}]
[{"$f":"AAMC_Raw_Data_for_FY22[[#This Row],[Source]]&AAMC_Raw_Data_for_FY22[[#This Row],[Type]]&AAMC_Raw_Data_for_FY22[[#This Row],[School Subset]]&AAMC_Raw_Data_for_FY22[[#This Row],[Rank]]&AAMC_Raw_Data_for_FY22[[#This Row],[Degree]]&AAMC_Raw_Data_for_FY22[[#This Row],[Department / Specialty]]&\"L\"","v":"AAMCAcademicAllAssistantMDPulmonary-Med.L"},"Pulmonary-Med.",4,"AAMC","Academic","All","Assistant","MD","2021-2022",232948,{"$f":"(((AAMC_Raw_Data_for_FY22[[#This Row],[Median]]-AAMC_Raw_Data_for_FY22[[#This Row],[25th]])/25)*5) + AAMC_Raw_Data_for_FY22[[#This Row],[25th]]","v":242705.8},{"$f":"(((AAMC_Raw_Data_for_FY22[[#This Row],[Median]]-AAMC_Raw_Data_for_FY22[[#This Row],[25th]])/25)*10) + AAMC_Raw_Data_for_FY22[[#This Row],[25th]]","v":252463.6},{"$f":"(((AAMC_Raw_Data_for_FY22[[#This Row],[Median]]-AAMC_Raw_Data_for_FY22[[#This Row],[25th]])/25)*15) + AAMC_Raw_Data_for_FY22[[#This Row],[25th]]","v":262221.40000000002},{"$f":"(((AAMC_Raw_Data_for_FY22[[#This Row],[Median]]-AAMC_Raw_Data_for_FY22[[#This Row],[25th]])/25)*20) + AAMC_Raw_Data_for_FY22[[#This Row],[25th]]","v":271979.2},281737,{"$f":"(((AAMC_Raw_Data_for_FY22[[#This Row],[75th]]-AAMC_Raw_Data_for_FY22[[#This Row],[Median]])/25)*5) + AAMC_Raw_Data_for_FY22[[#This Row],[Median]]","v":295642.2},{"$f":"(((AAMC_Raw_Data_for_FY22[[#This Row],[75th]]-AAMC_Raw_Data_for_FY22[[#This Row],[Median]])/25)*10) + AAMC_Raw_Data_for_FY22[[#This Row],[Median]]","v":309547.40000000002},{"$f":"(((AAMC_Raw_Data_for_FY22[[#This Row],[75th]]-AAMC_Raw_Data_for_FY22[[#This Row],[Median]])/25)*15) + AAMC_Raw_Data_for_FY22[[#This Row],[Median]]","v":323452.59999999998},{"$f":"(((AAMC_Raw_Data_for_FY22[[#This Row],[75th]]-AAMC_Raw_Data_for_FY22[[#This Row],[Median]])/25)*20) + AAMC_Raw_Data_for_FY22[[#This Row],[Median]]","v":337357.8},351263,{"$f":"(((AAMC_Raw_Data_for_FY22[[#This Row],[75th]]-AAMC_Raw_Data_for_FY22[[#This Row],[Median]])/25)*30) + AAMC_Raw_Data_for_FY22[[#This Row],[Median]]","v":365168.2},{"$f":"(((AAMC_Raw_Data_for_FY22[[#This Row],[75th]]-AAMC_Raw_Data_for_FY22[[#This Row],[Median]])/25)*35) + AAMC_Raw_Data_for_FY22[[#This Row],[Median]]","v":379073.4},{"$f":"(((AAMC_Raw_Data_for_FY22[[#This Row],[75th]]-AAMC_Raw_Data_for_FY22[[#This Row],[Median]])/25)*40) + AAMC_Raw_Data_for_FY22[[#This Row],[Median]]","v":392978.6}]
[{"$f":"AAMC_Raw_Data_for_FY22[[#This Row],[Source]]&AAMC_Raw_Data_for_FY22[[#This Row],[Type]]&AAMC_Raw_Data_for_FY22[[#This Row],[School Subset]]&AAMC_Raw_Data_for_FY22[[#This Row],[Rank]]&AAMC_Raw_Data_for_FY22[[#This Row],[Degree]]&AAMC_Raw_Data_for_FY22[[#This Row],[Department / Specialty]]&\"L\"","v":"AAMCAcademicAllAssociateMDPulmonary-Med.L"},"Pulmonary-Med.",3,"AAMC","Academic","All","Associate","MD","2021-2022",260275,{"$f":"(((AAMC_Raw_Data_for_FY22[[#This Row],[Median]]-AAMC_Raw_Data_for_FY22[[#This Row],[25th]])/25)*5) + AAMC_Raw_Data_for_FY22[[#This Row],[25th]]","v":270980.40000000002},{"$f":"(((AAMC_Raw_Data_for_FY22[[#This Row],[Median]]-AAMC_Raw_Data_for_FY22[[#This Row],[25th]])/25)*10) + AAMC_Raw_Data_for_FY22[[#This Row],[25th]]","v":281685.8},{"$f":"(((AAMC_Raw_Data_for_FY22[[#This Row],[Median]]-AAMC_Raw_Data_for_FY22[[#This Row],[25th]])/25)*15) + AAMC_Raw_Data_for_FY22[[#This Row],[25th]]","v":292391.2},{"$f":"(((AAMC_Raw_Data_for_FY22[[#This Row],[Median]]-AAMC_Raw_Data_for_FY22[[#This Row],[25th]])/25)*20) + AAMC_Raw_Data_for_FY22[[#This Row],[25th]]","v":303096.59999999998},313802,{"$f":"(((AAMC_Raw_Data_for_FY22[[#This Row],[75th]]-AAMC_Raw_Data_for_FY22[[#This Row],[Median]])/25)*5) + AAMC_Raw_Data_for_FY22[[#This Row],[Median]]","v":327559.59999999998},{"$f":"(((AAMC_Raw_Data_for_FY22[[#This Row],[75th]]-AAMC_Raw_Data_for_FY22[[#This Row],[Median]])/25)*10) + AAMC_Raw_Data_for_FY22[[#This Row],[Median]]","v":341317.2},{"$f":"(((AAMC_Raw_Data_for_FY22[[#This Row],[75th]]-AAMC_Raw_Data_for_FY22[[#This Row],[Median]])/25)*15) + AAMC_Raw_Data_for_FY22[[#This Row],[Median]]","v":355074.8},{"$f":"(((AAMC_Raw_Data_for_FY22[[#This Row],[75th]]-AAMC_Raw_Data_for_FY22[[#This Row],[Median]])/25)*20) + AAMC_Raw_Data_for_FY22[[#This Row],[Median]]","v":368832.4},382590,{"$f":"(((AAMC_Raw_Data_for_FY22[[#This Row],[75th]]-AAMC_Raw_Data_for_FY22[[#This Row],[Median]])/25)*30) + AAMC_Raw_Data_for_FY22[[#This Row],[Median]]","v":396347.6},{"$f":"(((AAMC_Raw_Data_for_FY22[[#This Row],[75th]]-AAMC_Raw_Data_for_FY22[[#This Row],[Median]])/25)*35) + AAMC_Raw_Data_for_FY22[[#This Row],[Median]]","v":410105.2},{"$f":"(((AAMC_Raw_Data_for_FY22[[#This Row],[75th]]-AAMC_Raw_Data_for_FY22[[#This Row],[Median]])/25)*40) + AAMC_Raw_Data_for_FY22[[#This Row],[Median]]","v":423862.8}]
[{"$f":"AAMC_Raw_Data_for_FY22[[#This Row],[Source]]&AAMC_Raw_Data_for_FY22[[#This Row],[Type]]&AAMC_Raw_Data_for_FY22[[#This Row],[School Subset]]&AAMC_Raw_Data_for_FY22[[#This Row],[Rank]]&AAMC_Raw_Data_for_FY22[[#This Row],[Degree]]&AAMC_Raw_Data_for_FY22[[#This Row],[Department / Specialty]]&\"L\"","v":"AAMCAcademicAllProfessorMDPulmonary-Med.L"},"Pulmonary-Med.",2,"AAMC","Academic","All","Professor","MD","2021-2022",281245,{"$f":"(((AAMC_Raw_Data_for_FY22[[#This Row],[Median]]-AAMC_Raw_Data_for_FY22[[#This Row],[25th]])/25)*5) + AAMC_Raw_Data_for_FY22[[#This Row],[25th]]","v":291981.2},{"$f":"(((AAMC_Raw_Data_for_FY22[[#This Row],[Median]]-AAMC_Raw_Data_for_FY22[[#This Row],[25th]])/25)*10) + AAMC_Raw_Data_for_FY22[[#This Row],[25th]]","v":302717.40000000002},{"$f":"(((AAMC_Raw_Data_for_FY22[[#This Row],[Median]]-AAMC_Raw_Data_for_FY22[[#This Row],[25th]])/25)*15) + AAMC_Raw_Data_for_FY22[[#This Row],[25th]]","v":313453.59999999998},{"$f":"(((AAMC_Raw_Data_for_FY22[[#This Row],[Median]]-AAMC_Raw_Data_for_FY22[[#This Row],[25th]])/25)*20) + AAMC_Raw_Data_for_FY22[[#This Row],[25th]]","v":324189.8},334926,{"$f":"(((AAMC_Raw_Data_for_FY22[[#This Row],[75th]]-AAMC_Raw_Data_for_FY22[[#This Row],[Median]])/25)*5) + AAMC_Raw_Data_for_FY22[[#This Row],[Median]]","v":347940.8},{"$f":"(((AAMC_Raw_Data_for_FY22[[#This Row],[75th]]-AAMC_Raw_Data_for_FY22[[#This Row],[Median]])/25)*10) + AAMC_Raw_Data_for_FY22[[#This Row],[Median]]","v":360955.6},{"$f":"(((AAMC_Raw_Data_for_FY22[[#This Row],[75th]]-AAMC_Raw_Data_for_FY22[[#This Row],[Median]])/25)*15) + AAMC_Raw_Data_for_FY22[[#This Row],[Median]]","v":373970.4},{"$f":"(((AAMC_Raw_Data_for_FY22[[#This Row],[75th]]-AAMC_Raw_Data_for_FY22[[#This Row],[Median]])/25)*20) + AAMC_Raw_Data_for_FY22[[#This Row],[Median]]","v":386985.2},400000,{"$f":"(((AAMC_Raw_Data_for_FY22[[#This Row],[75th]]-AAMC_Raw_Data_for_FY22[[#This Row],[Median]])/25)*30) + AAMC_Raw_Data_for_FY22[[#This Row],[Median]]","v":413014.8},{"$f":"(((AAMC_Raw_Data_for_FY22[[#This Row],[75th]]-AAMC_Raw_Data_for_FY22[[#This Row],[Median]])/25)*35) + AAMC_Raw_Data_for_FY22[[#This Row],[Median]]","v":426029.6},{"$f":"(((AAMC_Raw_Data_for_FY22[[#This Row],[75th]]-AAMC_Raw_Data_for_FY22[[#This Row],[Median]])/25)*40) + AAMC_Raw_Data_for_FY22[[#This Row],[Median]]","v":439044.4}]
[{"$f":"AAMC_Raw_Data_for_FY22[[#This Row],[Source]]&AAMC_Raw_Data_for_FY22[[#This Row],[Type]]&AAMC_Raw_Data_for_FY22[[#This Row],[School Subset]]&AAMC_Raw_Data_for_FY22[[#This Row],[Rank]]&AAMC_Raw_Data_for_FY22[[#This Row],[Degree]]&AAMC_Raw_Data_for_FY22[[#This Row],[Department / Specialty]]&\"L\"","v":"AAMCAcademicAllChiefMDPulmonary-Med.L"},"Pulmonary-Med.",6,"AAMC","Academic","All","Chief","MD","2021-2022",389752,{"$f":"(((AAMC_Raw_Data_for_FY22[[#This Row],[Median]]-AAMC_Raw_Data_for_FY22[[#This Row],[25th]])/25)*5) + AAMC_Raw_Data_for_FY22[[#This Row],[25th]]","v":399165.6},{"$f":"(((AAMC_Raw_Data_for_FY22[[#This Row],[Median]]-AAMC_Raw_Data_for_FY22[[#This Row],[25th]])/25)*10) + AAMC_Raw_Data_for_FY22[[#This Row],[25th]]","v":408579.2},{"$f":"(((AAMC_Raw_Data_for_FY22[[#This Row],[Median]]-AAMC_Raw_Data_for_FY22[[#This Row],[25th]])/25)*15) + AAMC_Raw_Data_for_FY22[[#This Row],[25th]]","v":417992.8},{"$f":"(((AAMC_Raw_Data_for_FY22[[#This Row],[Median]]-AAMC_Raw_Data_for_FY22[[#This Row],[25th]])/25)*20) + AAMC_Raw_Data_for_FY22[[#This Row],[25th]]","v":427406.4},436820,{"$f":"(((AAMC_Raw_Data_for_FY22[[#This Row],[75th]]-AAMC_Raw_Data_for_FY22[[#This Row],[Median]])/25)*5) + AAMC_Raw_Data_for_FY22[[#This Row],[Median]]","v":449840.6},{"$f":"(((AAMC_Raw_Data_for_FY22[[#This Row],[75th]]-AAMC_Raw_Data_for_FY22[[#This Row],[Median]])/25)*10) + AAMC_Raw_Data_for_FY22[[#This Row],[Median]]","v":462861.2},{"$f":"(((AAMC_Raw_Data_for_FY22[[#This Row],[75th]]-AAMC_Raw_Data_for_FY22[[#This Row],[Median]])/25)*15) + AAMC_Raw_Data_for_FY22[[#This Row],[Median]]","v":475881.8},{"$f":"(((AAMC_Raw_Data_for_FY22[[#This Row],[75th]]-AAMC_Raw_Data_for_FY22[[#This Row],[Median]])/25)*20) + AAMC_Raw_Data_for_FY22[[#This Row],[Median]]","v":488902.40000000002},501923,{"$f":"(((AAMC_Raw_Data_for_FY22[[#This Row],[75th]]-AAMC_Raw_Data_for_FY22[[#This Row],[Median]])/25)*30) + AAMC_Raw_Data_for_FY22[[#This Row],[Median]]","v":514943.6},{"$f":"(((AAMC_Raw_Data_for_FY22[[#This Row],[75th]]-AAMC_Raw_Data_for_FY22[[#This Row],[Median]])/25)*35) + AAMC_Raw_Data_for_FY22[[#This Row],[Median]]","v":527964.19999999995},{"$f":"(((AAMC_Raw_Data_for_FY22[[#This Row],[75th]]-AAMC_Raw_Data_for_FY22[[#This Row],[Median]])/25)*40) + AAMC_Raw_Data_for_FY22[[#This Row],[Median]]","v":540984.80000000005}]
[{"$f":"AAMC_Raw_Data_for_FY22[[#This Row],[Source]]&AAMC_Raw_Data_for_FY22[[#This Row],[Type]]&AAMC_Raw_Data_for_FY22[[#This Row],[School Subset]]&AAMC_Raw_Data_for_FY22[[#This Row],[Rank]]&AAMC_Raw_Data_for_FY22[[#This Row],[Degree]]&AAMC_Raw_Data_for_FY22[[#This Row],[Department / Specialty]]&\"L\"","v":"AAMCAcademicAllChairMDPulmonary-Med.L"},"Pulmonary-Med.",1,"AAMC","Academic","All","Chair","MD","2021-2022",557350,{"$f":"(((AAMC_Raw_Data_for_FY22[[#This Row],[Median]]-AAMC_Raw_Data_for_FY22[[#This Row],[25th]])/25)*5) + AAMC_Raw_Data_for_FY22[[#This Row],[25th]]","v":585020.19999999995},{"$f":"(((AAMC_Raw_Data_for_FY22[[#This Row],[Median]]-AAMC_Raw_Data_for_FY22[[#This Row],[25th]])/25)*10) + AAMC_Raw_Data_for_FY22[[#This Row],[25th]]","v":612690.4},{"$f":"(((AAMC_Raw_Data_for_FY22[[#This Row],[Median]]-AAMC_Raw_Data_for_FY22[[#This Row],[25th]])/25)*15) + AAMC_Raw_Data_for_FY22[[#This Row],[25th]]","v":640360.6},{"$f":"(((AAMC_Raw_Data_for_FY22[[#This Row],[Median]]-AAMC_Raw_Data_for_FY22[[#This Row],[25th]])/25)*20) + AAMC_Raw_Data_for_FY22[[#This Row],[25th]]","v":668030.80000000005},695701,{"$f":"(((AAMC_Raw_Data_for_FY22[[#This Row],[75th]]-AAMC_Raw_Data_for_FY22[[#This Row],[Median]])/25)*5) + AAMC_Raw_Data_for_FY22[[#This Row],[Median]]","v":709333},{"$f":"(((AAMC_Raw_Data_for_FY22[[#This Row],[75th]]-AAMC_Raw_Data_for_FY22[[#This Row],[Median]])/25)*10) + AAMC_Raw_Data_for_FY22[[#This Row],[Median]]","v":722965},{"$f":"(((AAMC_Raw_Data_for_FY22[[#This Row],[75th]]-AAMC_Raw_Data_for_FY22[[#This Row],[Median]])/25)*15) + AAMC_Raw_Data_for_FY22[[#This Row],[Median]]","v":736597},{"$f":"(((AAMC_Raw_Data_for_FY22[[#This Row],[75th]]-AAMC_Raw_Data_for_FY22[[#This Row],[Median]])/25)*20) + AAMC_Raw_Data_for_FY22[[#This Row],[Median]]","v":750229},763861,{"$f":"(((AAMC_Raw_Data_for_FY22[[#This Row],[75th]]-AAMC_Raw_Data_for_FY22[[#This Row],[Median]])/25)*30) + AAMC_Raw_Data_for_FY22[[#This Row],[Median]]","v":777493},{"$f":"(((AAMC_Raw_Data_for_FY22[[#This Row],[75th]]-AAMC_Raw_Data_for_FY22[[#This Row],[Median]])/25)*35) + AAMC_Raw_Data_for_FY22[[#This Row],[Median]]","v":791125},{"$f":"(((AAMC_Raw_Data_for_FY22[[#This Row],[75th]]-AAMC_Raw_Data_for_FY22[[#This Row],[Median]])/25)*40) + AAMC_Raw_Data_for_FY22[[#This Row],[Median]]","v":804757}]
[{"$f":"AAMC_Raw_Data_for_FY22[[#This Row],[Source]]&AAMC_Raw_Data_for_FY22[[#This Row],[Type]]&AAMC_Raw_Data_for_FY22[[#This Row],[School Subset]]&AAMC_Raw_Data_for_FY22[[#This Row],[Rank]]&AAMC_Raw_Data_for_FY22[[#This Row],[Degree]]&AAMC_Raw_Data_for_FY22[[#This Row],[Department / Specialty]]&\"L\"","v":"AAMCAcademicAllInstructorMDRheumatology-Med.L"},"Rheumatology-Med.",5,"AAMC","Academic","All","Instructor","MD","2021-2022",137022,{"$f":"(((AAMC_Raw_Data_for_FY22[[#This Row],[Median]]-AAMC_Raw_Data_for_FY22[[#This Row],[25th]])/25)*5) + AAMC_Raw_Data_for_FY22[[#This Row],[25th]]","v":147649.4},{"$f":"(((AAMC_Raw_Data_for_FY22[[#This Row],[Median]]-AAMC_Raw_Data_for_FY22[[#This Row],[25th]])/25)*10) + AAMC_Raw_Data_for_FY22[[#This Row],[25th]]","v":158276.79999999999},{"$f":"(((AAMC_Raw_Data_for_FY22[[#This Row],[Median]]-AAMC_Raw_Data_for_FY22[[#This Row],[25th]])/25)*15) + AAMC_Raw_Data_for_FY22[[#This Row],[25th]]","v":168904.2},{"$f":"(((AAMC_Raw_Data_for_FY22[[#This Row],[Median]]-AAMC_Raw_Data_for_FY22[[#This Row],[25th]])/25)*20) + AAMC_Raw_Data_for_FY22[[#This Row],[25th]]","v":179531.6},190159,{"$f":"(((AAMC_Raw_Data_for_FY22[[#This Row],[75th]]-AAMC_Raw_Data_for_FY22[[#This Row],[Median]])/25)*5) + AAMC_Raw_Data_for_FY22[[#This Row],[Median]]","v":199360.6},{"$f":"(((AAMC_Raw_Data_for_FY22[[#This Row],[75th]]-AAMC_Raw_Data_for_FY22[[#This Row],[Median]])/25)*10) + AAMC_Raw_Data_for_FY22[[#This Row],[Median]]","v":208562.2},{"$f":"(((AAMC_Raw_Data_for_FY22[[#This Row],[75th]]-AAMC_Raw_Data_for_FY22[[#This Row],[Median]])/25)*15) + AAMC_Raw_Data_for_FY22[[#This Row],[Median]]","v":217763.8},{"$f":"(((AAMC_Raw_Data_for_FY22[[#This Row],[75th]]-AAMC_Raw_Data_for_FY22[[#This Row],[Median]])/25)*20) + AAMC_Raw_Data_for_FY22[[#This Row],[Median]]","v":226965.4},236167,{"$f":"(((AAMC_Raw_Data_for_FY22[[#This Row],[75th]]-AAMC_Raw_Data_for_FY22[[#This Row],[Median]])/25)*30) + AAMC_Raw_Data_for_FY22[[#This Row],[Median]]","v":245368.6},{"$f":"(((AAMC_Raw_Data_for_FY22[[#This Row],[75th]]-AAMC_Raw_Data_for_FY22[[#This Row],[Median]])/25)*35) + AAMC_Raw_Data_for_FY22[[#This Row],[Median]]","v":254570.2},{"$f":"(((AAMC_Raw_Data_for_FY22[[#This Row],[75th]]-AAMC_Raw_Data_for_FY22[[#This Row],[Median]])/25)*40) + AAMC_Raw_Data_for_FY22[[#This Row],[Median]]","v":263771.8}]
[{"$f":"AAMC_Raw_Data_for_FY22[[#This Row],[Source]]&AAMC_Raw_Data_for_FY22[[#This Row],[Type]]&AAMC_Raw_Data_for_FY22[[#This Row],[School Subset]]&AAMC_Raw_Data_for_FY22[[#This Row],[Rank]]&AAMC_Raw_Data_for_FY22[[#This Row],[Degree]]&AAMC_Raw_Data_for_FY22[[#This Row],[Department / Specialty]]&\"L\"","v":"AAMCAcademicAllAssistantMDRheumatology-Med.L"},"Rheumatology-Med.",4,"AAMC","Academic","All","Assistant","MD","2021-2022",182137,{"$f":"(((AAMC_Raw_Data_for_FY22[[#This Row],[Median]]-AAMC_Raw_Data_for_FY22[[#This Row],[25th]])/25)*5) + AAMC_Raw_Data_for_FY22[[#This Row],[25th]]","v":186593.2},{"$f":"(((AAMC_Raw_Data_for_FY22[[#This Row],[Median]]-AAMC_Raw_Data_for_FY22[[#This Row],[25th]])/25)*10) + AAMC_Raw_Data_for_FY22[[#This Row],[25th]]","v":191049.4},{"$f":"(((AAMC_Raw_Data_for_FY22[[#This Row],[Median]]-AAMC_Raw_Data_for_FY22[[#This Row],[25th]])/25)*15) + AAMC_Raw_Data_for_FY22[[#This Row],[25th]]","v":195505.6},{"$f":"(((AAMC_Raw_Data_for_FY22[[#This Row],[Median]]-AAMC_Raw_Data_for_FY22[[#This Row],[25th]])/25)*20) + AAMC_Raw_Data_for_FY22[[#This Row],[25th]]","v":199961.8},204418,{"$f":"(((AAMC_Raw_Data_for_FY22[[#This Row],[75th]]-AAMC_Raw_Data_for_FY22[[#This Row],[Median]])/25)*5) + AAMC_Raw_Data_for_FY22[[#This Row],[Median]]","v":211708},{"$f":"(((AAMC_Raw_Data_for_FY22[[#This Row],[75th]]-AAMC_Raw_Data_for_FY22[[#This Row],[Median]])/25)*10) + AAMC_Raw_Data_for_FY22[[#This Row],[Median]]","v":218998},{"$f":"(((AAMC_Raw_Data_for_FY22[[#This Row],[75th]]-AAMC_Raw_Data_for_FY22[[#This Row],[Median]])/25)*15) + AAMC_Raw_Data_for_FY22[[#This Row],[Median]]","v":226288},{"$f":"(((AAMC_Raw_Data_for_FY22[[#This Row],[75th]]-AAMC_Raw_Data_for_FY22[[#This Row],[Median]])/25)*20) + AAMC_Raw_Data_for_FY22[[#This Row],[Median]]","v":233578},240868,{"$f":"(((AAMC_Raw_Data_for_FY22[[#This Row],[75th]]-AAMC_Raw_Data_for_FY22[[#This Row],[Median]])/25)*30) + AAMC_Raw_Data_for_FY22[[#This Row],[Median]]","v":248158},{"$f":"(((AAMC_Raw_Data_for_FY22[[#This Row],[75th]]-AAMC_Raw_Data_for_FY22[[#This Row],[Median]])/25)*35) + AAMC_Raw_Data_for_FY22[[#This Row],[Median]]","v":255448},{"$f":"(((AAMC_Raw_Data_for_FY22[[#This Row],[75th]]-AAMC_Raw_Data_for_FY22[[#This Row],[Median]])/25)*40) + AAMC_Raw_Data_for_FY22[[#This Row],[Median]]","v":262738}]
[{"$f":"AAMC_Raw_Data_for_FY22[[#This Row],[Source]]&AAMC_Raw_Data_for_FY22[[#This Row],[Type]]&AAMC_Raw_Data_for_FY22[[#This Row],[School Subset]]&AAMC_Raw_Data_for_FY22[[#This Row],[Rank]]&AAMC_Raw_Data_for_FY22[[#This Row],[Degree]]&AAMC_Raw_Data_for_FY22[[#This Row],[Department / Specialty]]&\"L\"","v":"AAMCAcademicAllAssociateMDRheumatology-Med.L"},"Rheumatology-Med.",3,"AAMC","Academic","All","Associate","MD","2021-2022",207928,{"$f":"(((AAMC_Raw_Data_for_FY22[[#This Row],[Median]]-AAMC_Raw_Data_for_FY22[[#This Row],[25th]])/25)*5) + AAMC_Raw_Data_for_FY22[[#This Row],[25th]]","v":214223},{"$f":"(((AAMC_Raw_Data_for_FY22[[#This Row],[Median]]-AAMC_Raw_Data_for_FY22[[#This Row],[25th]])/25)*10) + AAMC_Raw_Data_for_FY22[[#This Row],[25th]]","v":220518},{"$f":"(((AAMC_Raw_Data_for_FY22[[#This Row],[Median]]-AAMC_Raw_Data_for_FY22[[#This Row],[25th]])/25)*15) + AAMC_Raw_Data_for_FY22[[#This Row],[25th]]","v":226813},{"$f":"(((AAMC_Raw_Data_for_FY22[[#This Row],[Median]]-AAMC_Raw_Data_for_FY22[[#This Row],[25th]])/25)*20) + AAMC_Raw_Data_for_FY22[[#This Row],[25th]]","v":233108},239403,{"$f":"(((AAMC_Raw_Data_for_FY22[[#This Row],[75th]]-AAMC_Raw_Data_for_FY22[[#This Row],[Median]])/25)*5) + AAMC_Raw_Data_for_FY22[[#This Row],[Median]]","v":246448.8},{"$f":"(((AAMC_Raw_Data_for_FY22[[#This Row],[75th]]-AAMC_Raw_Data_for_FY22[[#This Row],[Median]])/25)*10) + AAMC_Raw_Data_for_FY22[[#This Row],[Median]]","v":253494.6},{"$f":"(((AAMC_Raw_Data_for_FY22[[#This Row],[75th]]-AAMC_Raw_Data_for_FY22[[#This Row],[Median]])/25)*15) + AAMC_Raw_Data_for_FY22[[#This Row],[Median]]","v":260540.4},{"$f":"(((AAMC_Raw_Data_for_FY22[[#This Row],[75th]]-AAMC_Raw_Data_for_FY22[[#This Row],[Median]])/25)*20) + AAMC_Raw_Data_for_FY22[[#This Row],[Median]]","v":267586.2},274632,{"$f":"(((AAMC_Raw_Data_for_FY22[[#This Row],[75th]]-AAMC_Raw_Data_for_FY22[[#This Row],[Median]])/25)*30) + AAMC_Raw_Data_for_FY22[[#This Row],[Median]]","v":281677.8},{"$f":"(((AAMC_Raw_Data_for_FY22[[#This Row],[75th]]-AAMC_Raw_Data_for_FY22[[#This Row],[Median]])/25)*35) + AAMC_Raw_Data_for_FY22[[#This Row],[Median]]","v":288723.59999999998},{"$f":"(((AAMC_Raw_Data_for_FY22[[#This Row],[75th]]-AAMC_Raw_Data_for_FY22[[#This Row],[Median]])/25)*40) + AAMC_Raw_Data_for_FY22[[#This Row],[Median]]","v":295769.40000000002}]
[{"$f":"AAMC_Raw_Data_for_FY22[[#This Row],[Source]]&AAMC_Raw_Data_for_FY22[[#This Row],[Type]]&AAMC_Raw_Data_for_FY22[[#This Row],[School Subset]]&AAMC_Raw_Data_for_FY22[[#This Row],[Rank]]&AAMC_Raw_Data_for_FY22[[#This Row],[Degree]]&AAMC_Raw_Data_for_FY22[[#This Row],[Department / Specialty]]&\"L\"","v":"AAMCAcademicAllProfessorMDRheumatology-Med.L"},"Rheumatology-Med.",2,"AAMC","Academic","All","Professor","MD","2021-2022",233753,{"$f":"(((AAMC_Raw_Data_for_FY22[[#This Row],[Median]]-AAMC_Raw_Data_for_FY22[[#This Row],[25th]])/25)*5) + AAMC_Raw_Data_for_FY22[[#This Row],[25th]]","v":240754.2},{"$f":"(((AAMC_Raw_Data_for_FY22[[#This Row],[Median]]-AAMC_Raw_Data_for_FY22[[#This Row],[25th]])/25)*10) + AAMC_Raw_Data_for_FY22[[#This Row],[25th]]","v":247755.4},{"$f":"(((AAMC_Raw_Data_for_FY22[[#This Row],[Median]]-AAMC_Raw_Data_for_FY22[[#This Row],[25th]])/25)*15) + AAMC_Raw_Data_for_FY22[[#This Row],[25th]]","v":254756.6},{"$f":"(((AAMC_Raw_Data_for_FY22[[#This Row],[Median]]-AAMC_Raw_Data_for_FY22[[#This Row],[25th]])/25)*20) + AAMC_Raw_Data_for_FY22[[#This Row],[25th]]","v":261757.8},268759,{"$f":"(((AAMC_Raw_Data_for_FY22[[#This Row],[75th]]-AAMC_Raw_Data_for_FY22[[#This Row],[Median]])/25)*5) + AAMC_Raw_Data_for_FY22[[#This Row],[Median]]","v":280576.40000000002},{"$f":"(((AAMC_Raw_Data_for_FY22[[#This Row],[75th]]-AAMC_Raw_Data_for_FY22[[#This Row],[Median]])/25)*10) + AAMC_Raw_Data_for_FY22[[#This Row],[Median]]","v":292393.8},{"$f":"(((AAMC_Raw_Data_for_FY22[[#This Row],[75th]]-AAMC_Raw_Data_for_FY22[[#This Row],[Median]])/25)*15) + AAMC_Raw_Data_for_FY22[[#This Row],[Median]]","v":304211.20000000001},{"$f":"(((AAMC_Raw_Data_for_FY22[[#This Row],[75th]]-AAMC_Raw_Data_for_FY22[[#This Row],[Median]])/25)*20) + AAMC_Raw_Data_for_FY22[[#This Row],[Median]]","v":316028.59999999998},327846,{"$f":"(((AAMC_Raw_Data_for_FY22[[#This Row],[75th]]-AAMC_Raw_Data_for_FY22[[#This Row],[Median]])/25)*30) + AAMC_Raw_Data_for_FY22[[#This Row],[Median]]","v":339663.4},{"$f":"(((AAMC_Raw_Data_for_FY22[[#This Row],[75th]]-AAMC_Raw_Data_for_FY22[[#This Row],[Median]])/25)*35) + AAMC_Raw_Data_for_FY22[[#This Row],[Median]]","v":351480.8},{"$f":"(((AAMC_Raw_Data_for_FY22[[#This Row],[75th]]-AAMC_Raw_Data_for_FY22[[#This Row],[Median]])/25)*40) + AAMC_Raw_Data_for_FY22[[#This Row],[Median]]","v":363298.2}]
[{"$f":"AAMC_Raw_Data_for_FY22[[#This Row],[Source]]&AAMC_Raw_Data_for_FY22[[#This Row],[Type]]&AAMC_Raw_Data_for_FY22[[#This Row],[School Subset]]&AAMC_Raw_Data_for_FY22[[#This Row],[Rank]]&AAMC_Raw_Data_for_FY22[[#This Row],[Degree]]&AAMC_Raw_Data_for_FY22[[#This Row],[Department / Specialty]]&\"L\"","v":"AAMCAcademicAllChiefMDRheumatology-Med.L"},"Rheumatology-Med.",6,"AAMC","Academic","All","Chief","MD","2021-2022",275176,{"$f":"(((AAMC_Raw_Data_for_FY22[[#This Row],[Median]]-AAMC_Raw_Data_for_FY22[[#This Row],[25th]])/25)*5) + AAMC_Raw_Data_for_FY22[[#This Row],[25th]]","v":281475},{"$f":"(((AAMC_Raw_Data_for_FY22[[#This Row],[Median]]-AAMC_Raw_Data_for_FY22[[#This Row],[25th]])/25)*10) + AAMC_Raw_Data_for_FY22[[#This Row],[25th]]","v":287774},{"$f":"(((AAMC_Raw_Data_for_FY22[[#This Row],[Median]]-AAMC_Raw_Data_for_FY22[[#This Row],[25th]])/25)*15) + AAMC_Raw_Data_for_FY22[[#This Row],[25th]]","v":294073},{"$f":"(((AAMC_Raw_Data_for_FY22[[#This Row],[Median]]-AAMC_Raw_Data_for_FY22[[#This Row],[25th]])/25)*20) + AAMC_Raw_Data_for_FY22[[#This Row],[25th]]","v":300372},306671,{"$f":"(((AAMC_Raw_Data_for_FY22[[#This Row],[75th]]-AAMC_Raw_Data_for_FY22[[#This Row],[Median]])/25)*5) + AAMC_Raw_Data_for_FY22[[#This Row],[Median]]","v":313666.2},{"$f":"(((AAMC_Raw_Data_for_FY22[[#This Row],[75th]]-AAMC_Raw_Data_for_FY22[[#This Row],[Median]])/25)*10) + AAMC_Raw_Data_for_FY22[[#This Row],[Median]]","v":320661.40000000002},{"$f":"(((AAMC_Raw_Data_for_FY22[[#This Row],[75th]]-AAMC_Raw_Data_for_FY22[[#This Row],[Median]])/25)*15) + AAMC_Raw_Data_for_FY22[[#This Row],[Median]]","v":327656.59999999998},{"$f":"(((AAMC_Raw_Data_for_FY22[[#This Row],[75th]]-AAMC_Raw_Data_for_FY22[[#This Row],[Median]])/25)*20) + AAMC_Raw_Data_for_FY22[[#This Row],[Median]]","v":334651.8},341647,{"$f":"(((AAMC_Raw_Data_for_FY22[[#This Row],[75th]]-AAMC_Raw_Data_for_FY22[[#This Row],[Median]])/25)*30) + AAMC_Raw_Data_for_FY22[[#This Row],[Median]]","v":348642.2},{"$f":"(((AAMC_Raw_Data_for_FY22[[#This Row],[75th]]-AAMC_Raw_Data_for_FY22[[#This Row],[Median]])/25)*35) + AAMC_Raw_Data_for_FY22[[#This Row],[Median]]","v":355637.4},{"$f":"(((AAMC_Raw_Data_for_FY22[[#This Row],[75th]]-AAMC_Raw_Data_for_FY22[[#This Row],[Median]])/25)*40) + AAMC_Raw_Data_for_FY22[[#This Row],[Median]]","v":362632.6}]
[{"$f":"AAMC_Raw_Data_for_FY22[[#This Row],[Source]]&AAMC_Raw_Data_for_FY22[[#This Row],[Type]]&AAMC_Raw_Data_for_FY22[[#This Row],[School Subset]]&AAMC_Raw_Data_for_FY22[[#This Row],[Rank]]&AAMC_Raw_Data_for_FY22[[#This Row],[Degree]]&AAMC_Raw_Data_for_FY22[[#This Row],[Department / Specialty]]&\"L\"","v":"AAMCAcademicAllInstructorMDOther MedicineL"},"Other Medicine",5,"AAMC","Academic","All","Instructor","MD","2021-2022",194169,{"$f":"(((AAMC_Raw_Data_for_FY22[[#This Row],[Median]]-AAMC_Raw_Data_for_FY22[[#This Row],[25th]])/25)*5) + AAMC_Raw_Data_for_FY22[[#This Row],[25th]]","v":203891.8},{"$f":"(((AAMC_Raw_Data_for_FY22[[#This Row],[Median]]-AAMC_Raw_Data_for_FY22[[#This Row],[25th]])/25)*10) + AAMC_Raw_Data_for_FY22[[#This Row],[25th]]","v":213614.6},{"$f":"(((AAMC_Raw_Data_for_FY22[[#This Row],[Median]]-AAMC_Raw_Data_for_FY22[[#This Row],[25th]])/25)*15) + AAMC_Raw_Data_for_FY22[[#This Row],[25th]]","v":223337.4},{"$f":"(((AAMC_Raw_Data_for_FY22[[#This Row],[Median]]-AAMC_Raw_Data_for_FY22[[#This Row],[25th]])/25)*20) + AAMC_Raw_Data_for_FY22[[#This Row],[25th]]","v":233060.2},242783,{"$f":"(((AAMC_Raw_Data_for_FY22[[#This Row],[75th]]-AAMC_Raw_Data_for_FY22[[#This Row],[Median]])/25)*5) + AAMC_Raw_Data_for_FY22[[#This Row],[Median]]","v":254490.8},{"$f":"(((AAMC_Raw_Data_for_FY22[[#This Row],[75th]]-AAMC_Raw_Data_for_FY22[[#This Row],[Median]])/25)*10) + AAMC_Raw_Data_for_FY22[[#This Row],[Median]]","v":266198.59999999998},{"$f":"(((AAMC_Raw_Data_for_FY22[[#This Row],[75th]]-AAMC_Raw_Data_for_FY22[[#This Row],[Median]])/25)*15) + AAMC_Raw_Data_for_FY22[[#This Row],[Median]]","v":277906.40000000002},{"$f":"(((AAMC_Raw_Data_for_FY22[[#This Row],[75th]]-AAMC_Raw_Data_for_FY22[[#This Row],[Median]])/25)*20) + AAMC_Raw_Data_for_FY22[[#This Row],[Median]]","v":289614.2},301322,{"$f":"(((AAMC_Raw_Data_for_FY22[[#This Row],[75th]]-AAMC_Raw_Data_for_FY22[[#This Row],[Median]])/25)*30) + AAMC_Raw_Data_for_FY22[[#This Row],[Median]]","v":313029.8},{"$f":"(((AAMC_Raw_Data_for_FY22[[#This Row],[75th]]-AAMC_Raw_Data_for_FY22[[#This Row],[Median]])/25)*35) + AAMC_Raw_Data_for_FY22[[#This Row],[Median]]","v":324737.59999999998},{"$f":"(((AAMC_Raw_Data_for_FY22[[#This Row],[75th]]-AAMC_Raw_Data_for_FY22[[#This Row],[Median]])/25)*40) + AAMC_Raw_Data_for_FY22[[#This Row],[Median]]","v":336445.4}]
[{"$f":"AAMC_Raw_Data_for_FY22[[#This Row],[Source]]&AAMC_Raw_Data_for_FY22[[#This Row],[Type]]&AAMC_Raw_Data_for_FY22[[#This Row],[School Subset]]&AAMC_Raw_Data_for_FY22[[#This Row],[Rank]]&AAMC_Raw_Data_for_FY22[[#This Row],[Degree]]&AAMC_Raw_Data_for_FY22[[#This Row],[Department / Specialty]]&\"L\"","v":"AAMCAcademicAllAssistantMDOther MedicineL"},"Other Medicine",4,"AAMC","Academic","All","Assistant","MD","2021-2022",201400,{"$f":"(((AAMC_Raw_Data_for_FY22[[#This Row],[Median]]-AAMC_Raw_Data_for_FY22[[#This Row],[25th]])/25)*5) + AAMC_Raw_Data_for_FY22[[#This Row],[25th]]","v":211582},{"$f":"(((AAMC_Raw_Data_for_FY22[[#This Row],[Median]]-AAMC_Raw_Data_for_FY22[[#This Row],[25th]])/25)*10) + AAMC_Raw_Data_for_FY22[[#This Row],[25th]]","v":221764},{"$f":"(((AAMC_Raw_Data_for_FY22[[#This Row],[Median]]-AAMC_Raw_Data_for_FY22[[#This Row],[25th]])/25)*15) + AAMC_Raw_Data_for_FY22[[#This Row],[25th]]","v":231946},{"$f":"(((AAMC_Raw_Data_for_FY22[[#This Row],[Median]]-AAMC_Raw_Data_for_FY22[[#This Row],[25th]])/25)*20) + AAMC_Raw_Data_for_FY22[[#This Row],[25th]]","v":242128},252310,{"$f":"(((AAMC_Raw_Data_for_FY22[[#This Row],[75th]]-AAMC_Raw_Data_for_FY22[[#This Row],[Median]])/25)*5) + AAMC_Raw_Data_for_FY22[[#This Row],[Median]]","v":265267.59999999998},{"$f":"(((AAMC_Raw_Data_for_FY22[[#This Row],[75th]]-AAMC_Raw_Data_for_FY22[[#This Row],[Median]])/25)*10) + AAMC_Raw_Data_for_FY22[[#This Row],[Median]]","v":278225.2},{"$f":"(((AAMC_Raw_Data_for_FY22[[#This Row],[75th]]-AAMC_Raw_Data_for_FY22[[#This Row],[Median]])/25)*15) + AAMC_Raw_Data_for_FY22[[#This Row],[Median]]","v":291182.8},{"$f":"(((AAMC_Raw_Data_for_FY22[[#This Row],[75th]]-AAMC_Raw_Data_for_FY22[[#This Row],[Median]])/25)*20) + AAMC_Raw_Data_for_FY22[[#This Row],[Median]]","v":304140.40000000002},317098,{"$f":"(((AAMC_Raw_Data_for_FY22[[#This Row],[75th]]-AAMC_Raw_Data_for_FY22[[#This Row],[Median]])/25)*30) + AAMC_Raw_Data_for_FY22[[#This Row],[Median]]","v":330055.59999999998},{"$f":"(((AAMC_Raw_Data_for_FY22[[#This Row],[75th]]-AAMC_Raw_Data_for_FY22[[#This Row],[Median]])/25)*35) + AAMC_Raw_Data_for_FY22[[#This Row],[Median]]","v":343013.2},{"$f":"(((AAMC_Raw_Data_for_FY22[[#This Row],[75th]]-AAMC_Raw_Data_for_FY22[[#This Row],[Median]])/25)*40) + AAMC_Raw_Data_for_FY22[[#This Row],[Median]]","v":355970.8}]
[{"$f":"AAMC_Raw_Data_for_FY22[[#This Row],[Source]]&AAMC_Raw_Data_for_FY22[[#This Row],[Type]]&AAMC_Raw_Data_for_FY22[[#This Row],[School Subset]]&AAMC_Raw_Data_for_FY22[[#This Row],[Rank]]&AAMC_Raw_Data_for_FY22[[#This Row],[Degree]]&AAMC_Raw_Data_for_FY22[[#This Row],[Department / Specialty]]&\"L\"","v":"AAMCAcademicAllAssociateMDOther MedicineL"},"Other Medicine",3,"AAMC","Academic","All","Associate","MD","2021-2022",227006,{"$f":"(((AAMC_Raw_Data_for_FY22[[#This Row],[Median]]-AAMC_Raw_Data_for_FY22[[#This Row],[25th]])/25)*5) + AAMC_Raw_Data_for_FY22[[#This Row],[25th]]","v":236099.8},{"$f":"(((AAMC_Raw_Data_for_FY22[[#This Row],[Median]]-AAMC_Raw_Data_for_FY22[[#This Row],[25th]])/25)*10) + AAMC_Raw_Data_for_FY22[[#This Row],[25th]]","v":245193.60000000001},{"$f":"(((AAMC_Raw_Data_for_FY22[[#This Row],[Median]]-AAMC_Raw_Data_for_FY22[[#This Row],[25th]])/25)*15) + AAMC_Raw_Data_for_FY22[[#This Row],[25th]]","v":254287.4},{"$f":"(((AAMC_Raw_Data_for_FY22[[#This Row],[Median]]-AAMC_Raw_Data_for_FY22[[#This Row],[25th]])/25)*20) + AAMC_Raw_Data_for_FY22[[#This Row],[25th]]","v":263381.2},272475,{"$f":"(((AAMC_Raw_Data_for_FY22[[#This Row],[75th]]-AAMC_Raw_Data_for_FY22[[#This Row],[Median]])/25)*5) + AAMC_Raw_Data_for_FY22[[#This Row],[Median]]","v":288636.79999999999},{"$f":"(((AAMC_Raw_Data_for_FY22[[#This Row],[75th]]-AAMC_Raw_Data_for_FY22[[#This Row],[Median]])/25)*10) + AAMC_Raw_Data_for_FY22[[#This Row],[Median]]","v":304798.59999999998},{"$f":"(((AAMC_Raw_Data_for_FY22[[#This Row],[75th]]-AAMC_Raw_Data_for_FY22[[#This Row],[Median]])/25)*15) + AAMC_Raw_Data_for_FY22[[#This Row],[Median]]","v":320960.40000000002},{"$f":"(((AAMC_Raw_Data_for_FY22[[#This Row],[75th]]-AAMC_Raw_Data_for_FY22[[#This Row],[Median]])/25)*20) + AAMC_Raw_Data_for_FY22[[#This Row],[Median]]","v":337122.2},353284,{"$f":"(((AAMC_Raw_Data_for_FY22[[#This Row],[75th]]-AAMC_Raw_Data_for_FY22[[#This Row],[Median]])/25)*30) + AAMC_Raw_Data_for_FY22[[#This Row],[Median]]","v":369445.8},{"$f":"(((AAMC_Raw_Data_for_FY22[[#This Row],[75th]]-AAMC_Raw_Data_for_FY22[[#This Row],[Median]])/25)*35) + AAMC_Raw_Data_for_FY22[[#This Row],[Median]]","v":385607.6},{"$f":"(((AAMC_Raw_Data_for_FY22[[#This Row],[75th]]-AAMC_Raw_Data_for_FY22[[#This Row],[Median]])/25)*40) + AAMC_Raw_Data_for_FY22[[#This Row],[Median]]","v":401769.4}]
[{"$f":"AAMC_Raw_Data_for_FY22[[#This Row],[Source]]&AAMC_Raw_Data_for_FY22[[#This Row],[Type]]&AAMC_Raw_Data_for_FY22[[#This Row],[School Subset]]&AAMC_Raw_Data_for_FY22[[#This Row],[Rank]]&AAMC_Raw_Data_for_FY22[[#This Row],[Degree]]&AAMC_Raw_Data_for_FY22[[#This Row],[Department / Specialty]]&\"L\"","v":"AAMCAcademicAllProfessorMDOther MedicineL"},"Other Medicine",2,"AAMC","Academic","All","Professor","MD","2021-2022",259060,{"$f":"(((AAMC_Raw_Data_for_FY22[[#This Row],[Median]]-AAMC_Raw_Data_for_FY22[[#This Row],[25th]])/25)*5) + AAMC_Raw_Data_for_FY22[[#This Row],[25th]]","v":268004.40000000002},{"$f":"(((AAMC_Raw_Data_for_FY22[[#This Row],[Median]]-AAMC_Raw_Data_for_FY22[[#This Row],[25th]])/25)*10) + AAMC_Raw_Data_for_FY22[[#This Row],[25th]]","v":276948.8},{"$f":"(((AAMC_Raw_Data_for_FY22[[#This Row],[Median]]-AAMC_Raw_Data_for_FY22[[#This Row],[25th]])/25)*15) + AAMC_Raw_Data_for_FY22[[#This Row],[25th]]","v":285893.2},{"$f":"(((AAMC_Raw_Data_for_FY22[[#This Row],[Median]]-AAMC_Raw_Data_for_FY22[[#This Row],[25th]])/25)*20) + AAMC_Raw_Data_for_FY22[[#This Row],[25th]]","v":294837.59999999998},303782,{"$f":"(((AAMC_Raw_Data_for_FY22[[#This Row],[75th]]-AAMC_Raw_Data_for_FY22[[#This Row],[Median]])/25)*5) + AAMC_Raw_Data_for_FY22[[#This Row],[Median]]","v":325952.40000000002},{"$f":"(((AAMC_Raw_Data_for_FY22[[#This Row],[75th]]-AAMC_Raw_Data_for_FY22[[#This Row],[Median]])/25)*10) + AAMC_Raw_Data_for_FY22[[#This Row],[Median]]","v":348122.8},{"$f":"(((AAMC_Raw_Data_for_FY22[[#This Row],[75th]]-AAMC_Raw_Data_for_FY22[[#This Row],[Median]])/25)*15) + AAMC_Raw_Data_for_FY22[[#This Row],[Median]]","v":370293.2},{"$f":"(((AAMC_Raw_Data_for_FY22[[#This Row],[75th]]-AAMC_Raw_Data_for_FY22[[#This Row],[Median]])/25)*20) + AAMC_Raw_Data_for_FY22[[#This Row],[Median]]","v":392463.6},414634,{"$f":"(((AAMC_Raw_Data_for_FY22[[#This Row],[75th]]-AAMC_Raw_Data_for_FY22[[#This Row],[Median]])/25)*30) + AAMC_Raw_Data_for_FY22[[#This Row],[Median]]","v":436804.4},{"$f":"(((AAMC_Raw_Data_for_FY22[[#This Row],[75th]]-AAMC_Raw_Data_for_FY22[[#This Row],[Median]])/25)*35) + AAMC_Raw_Data_for_FY22[[#This Row],[Median]]","v":458974.8},{"$f":"(((AAMC_Raw_Data_for_FY22[[#This Row],[75th]]-AAMC_Raw_Data_for_FY22[[#This Row],[Median]])/25)*40) + AAMC_Raw_Data_for_FY22[[#This Row],[Median]]","v":481145.2}]
[{"$f":"AAMC_Raw_Data_for_FY22[[#This Row],[Source]]&AAMC_Raw_Data_for_FY22[[#This Row],[Type]]&AAMC_Raw_Data_for_FY22[[#This Row],[School Subset]]&AAMC_Raw_Data_for_FY22[[#This Row],[Rank]]&AAMC_Raw_Data_for_FY22[[#This Row],[Degree]]&AAMC_Raw_Data_for_FY22[[#This Row],[Department / Specialty]]&\"L\"","v":"AAMCAcademicAllChiefMDOther MedicineL"},"Other Medicine",6,"AAMC","Academic","All","Chief","MD","2021-2022",352464,{"$f":"(((AAMC_Raw_Data_for_FY22[[#This Row],[Median]]-AAMC_Raw_Data_for_FY22[[#This Row],[25th]])/25)*5) + AAMC_Raw_Data_for_FY22[[#This Row],[25th]]","v":365605.2},{"$f":"(((AAMC_Raw_Data_for_FY22[[#This Row],[Median]]-AAMC_Raw_Data_for_FY22[[#This Row],[25th]])/25)*10) + AAMC_Raw_Data_for_FY22[[#This Row],[25th]]","v":378746.4},{"$f":"(((AAMC_Raw_Data_for_FY22[[#This Row],[Median]]-AAMC_Raw_Data_for_FY22[[#This Row],[25th]])/25)*15) + AAMC_Raw_Data_for_FY22[[#This Row],[25th]]","v":391887.6},{"$f":"(((AAMC_Raw_Data_for_FY22[[#This Row],[Median]]-AAMC_Raw_Data_for_FY22[[#This Row],[25th]])/25)*20) + AAMC_Raw_Data_for_FY22[[#This Row],[25th]]","v":405028.8},418170,{"$f":"(((AAMC_Raw_Data_for_FY22[[#This Row],[75th]]-AAMC_Raw_Data_for_FY22[[#This Row],[Median]])/25)*5) + AAMC_Raw_Data_for_FY22[[#This Row],[Median]]","v":429807.2},{"$f":"(((AAMC_Raw_Data_for_FY22[[#This Row],[75th]]-AAMC_Raw_Data_for_FY22[[#This Row],[Median]])/25)*10) + AAMC_Raw_Data_for_FY22[[#This Row],[Median]]","v":441444.4},{"$f":"(((AAMC_Raw_Data_for_FY22[[#This Row],[75th]]-AAMC_Raw_Data_for_FY22[[#This Row],[Median]])/25)*15) + AAMC_Raw_Data_for_FY22[[#This Row],[Median]]","v":453081.59999999998},{"$f":"(((AAMC_Raw_Data_for_FY22[[#This Row],[75th]]-AAMC_Raw_Data_for_FY22[[#This Row],[Median]])/25)*20) + AAMC_Raw_Data_for_FY22[[#This Row],[Median]]","v":464718.8},476356,{"$f":"(((AAMC_Raw_Data_for_FY22[[#This Row],[75th]]-AAMC_Raw_Data_for_FY22[[#This Row],[Median]])/25)*30) + AAMC_Raw_Data_for_FY22[[#This Row],[Median]]","v":487993.2},{"$f":"(((AAMC_Raw_Data_for_FY22[[#This Row],[75th]]-AAMC_Raw_Data_for_FY22[[#This Row],[Median]])/25)*35) + AAMC_Raw_Data_for_FY22[[#This Row],[Median]]","v":499630.4},{"$f":"(((AAMC_Raw_Data_for_FY22[[#This Row],[75th]]-AAMC_Raw_Data_for_FY22[[#This Row],[Median]])/25)*40) + AAMC_Raw_Data_for_FY22[[#This Row],[Median]]","v":511267.6}]
[{"$f":"AAMC_Raw_Data_for_FY22[[#This Row],[Source]]&AAMC_Raw_Data_for_FY22[[#This Row],[Type]]&AAMC_Raw_Data_for_FY22[[#This Row],[School Subset]]&AAMC_Raw_Data_for_FY22[[#This Row],[Rank]]&AAMC_Raw_Data_for_FY22[[#This Row],[Degree]]&AAMC_Raw_Data_for_FY22[[#This Row],[Department / Specialty]]&\"L\"","v":"AAMCAcademicAllChairMDOther MedicineL"},"Other Medicine",1,"AAMC","Academic","All","Chair","MD","2021-2022",579231,{"$f":"(((AAMC_Raw_Data_for_FY22[[#This Row],[Median]]-AAMC_Raw_Data_for_FY22[[#This Row],[25th]])/25)*5) + AAMC_Raw_Data_for_FY22[[#This Row],[25th]]","v":592981.19999999995},{"$f":"(((AAMC_Raw_Data_for_FY22[[#This Row],[Median]]-AAMC_Raw_Data_for_FY22[[#This Row],[25th]])/25)*10) + AAMC_Raw_Data_for_FY22[[#This Row],[25th]]","v":606731.4},{"$f":"(((AAMC_Raw_Data_for_FY22[[#This Row],[Median]]-AAMC_Raw_Data_for_FY22[[#This Row],[25th]])/25)*15) + AAMC_Raw_Data_for_FY22[[#This Row],[25th]]","v":620481.6},{"$f":"(((AAMC_Raw_Data_for_FY22[[#This Row],[Median]]-AAMC_Raw_Data_for_FY22[[#This Row],[25th]])/25)*20) + AAMC_Raw_Data_for_FY22[[#This Row],[25th]]","v":634231.80000000005},647982,{"$f":"(((AAMC_Raw_Data_for_FY22[[#This Row],[75th]]-AAMC_Raw_Data_for_FY22[[#This Row],[Median]])/25)*5) + AAMC_Raw_Data_for_FY22[[#This Row],[Median]]","v":673861},{"$f":"(((AAMC_Raw_Data_for_FY22[[#This Row],[75th]]-AAMC_Raw_Data_for_FY22[[#This Row],[Median]])/25)*10) + AAMC_Raw_Data_for_FY22[[#This Row],[Median]]","v":699740},{"$f":"(((AAMC_Raw_Data_for_FY22[[#This Row],[75th]]-AAMC_Raw_Data_for_FY22[[#This Row],[Median]])/25)*15) + AAMC_Raw_Data_for_FY22[[#This Row],[Median]]","v":725619},{"$f":"(((AAMC_Raw_Data_for_FY22[[#This Row],[75th]]-AAMC_Raw_Data_for_FY22[[#This Row],[Median]])/25)*20) + AAMC_Raw_Data_for_FY22[[#This Row],[Median]]","v":751498},777377,{"$f":"(((AAMC_Raw_Data_for_FY22[[#This Row],[75th]]-AAMC_Raw_Data_for_FY22[[#This Row],[Median]])/25)*30) + AAMC_Raw_Data_for_FY22[[#This Row],[Median]]","v":803256},{"$f":"(((AAMC_Raw_Data_for_FY22[[#This Row],[75th]]-AAMC_Raw_Data_for_FY22[[#This Row],[Median]])/25)*35) + AAMC_Raw_Data_for_FY22[[#This Row],[Median]]","v":829135},{"$f":"(((AAMC_Raw_Data_for_FY22[[#This Row],[75th]]-AAMC_Raw_Data_for_FY22[[#This Row],[Median]])/25)*40) + AAMC_Raw_Data_for_FY22[[#This Row],[Median]]","v":855014}]
[{"$f":"AAMC_Raw_Data_for_FY22[[#This Row],[Source]]&AAMC_Raw_Data_for_FY22[[#This Row],[Type]]&AAMC_Raw_Data_for_FY22[[#This Row],[School Subset]]&AAMC_Raw_Data_for_FY22[[#This Row],[Rank]]&AAMC_Raw_Data_for_FY22[[#This Row],[Degree]]&AAMC_Raw_Data_for_FY22[[#This Row],[Department / Specialty]]&\"L\"","v":"AAMCAcademicAllInstructorMDOB/GYN TotalL"},"OB/GYN Total",5,"AAMC","Academic","All","Instructor","MD","2021-2022",212875,{"$f":"(((AAMC_Raw_Data_for_FY22[[#This Row],[Median]]-AAMC_Raw_Data_for_FY22[[#This Row],[25th]])/25)*5) + AAMC_Raw_Data_for_FY22[[#This Row],[25th]]","v":224869.6},{"$f":"(((AAMC_Raw_Data_for_FY22[[#This Row],[Median]]-AAMC_Raw_Data_for_FY22[[#This Row],[25th]])/25)*10) + AAMC_Raw_Data_for_FY22[[#This Row],[25th]]","v":236864.2},{"$f":"(((AAMC_Raw_Data_for_FY22[[#This Row],[Median]]-AAMC_Raw_Data_for_FY22[[#This Row],[25th]])/25)*15) + AAMC_Raw_Data_for_FY22[[#This Row],[25th]]","v":248858.8},{"$f":"(((AAMC_Raw_Data_for_FY22[[#This Row],[Median]]-AAMC_Raw_Data_for_FY22[[#This Row],[25th]])/25)*20) + AAMC_Raw_Data_for_FY22[[#This Row],[25th]]","v":260853.4},272848,{"$f":"(((AAMC_Raw_Data_for_FY22[[#This Row],[75th]]-AAMC_Raw_Data_for_FY22[[#This Row],[Median]])/25)*5) + AAMC_Raw_Data_for_FY22[[#This Row],[Median]]","v":285039},{"$f":"(((AAMC_Raw_Data_for_FY22[[#This Row],[75th]]-AAMC_Raw_Data_for_FY22[[#This Row],[Median]])/25)*10) + AAMC_Raw_Data_for_FY22[[#This Row],[Median]]","v":297230},{"$f":"(((AAMC_Raw_Data_for_FY22[[#This Row],[75th]]-AAMC_Raw_Data_for_FY22[[#This Row],[Median]])/25)*15) + AAMC_Raw_Data_for_FY22[[#This Row],[Median]]","v":309421},{"$f":"(((AAMC_Raw_Data_for_FY22[[#This Row],[75th]]-AAMC_Raw_Data_for_FY22[[#This Row],[Median]])/25)*20) + AAMC_Raw_Data_for_FY22[[#This Row],[Median]]","v":321612},333803,{"$f":"(((AAMC_Raw_Data_for_FY22[[#This Row],[75th]]-AAMC_Raw_Data_for_FY22[[#This Row],[Median]])/25)*30) + AAMC_Raw_Data_for_FY22[[#This Row],[Median]]","v":345994},{"$f":"(((AAMC_Raw_Data_for_FY22[[#This Row],[75th]]-AAMC_Raw_Data_for_FY22[[#This Row],[Median]])/25)*35) + AAMC_Raw_Data_for_FY22[[#This Row],[Median]]","v":358185},{"$f":"(((AAMC_Raw_Data_for_FY22[[#This Row],[75th]]-AAMC_Raw_Data_for_FY22[[#This Row],[Median]])/25)*40) + AAMC_Raw_Data_for_FY22[[#This Row],[Median]]","v":370376}]
[{"$f":"AAMC_Raw_Data_for_FY22[[#This Row],[Source]]&AAMC_Raw_Data_for_FY22[[#This Row],[Type]]&AAMC_Raw_Data_for_FY22[[#This Row],[School Subset]]&AAMC_Raw_Data_for_FY22[[#This Row],[Rank]]&AAMC_Raw_Data_for_FY22[[#This Row],[Degree]]&AAMC_Raw_Data_for_FY22[[#This Row],[Department / Specialty]]&\"L\"","v":"AAMCAcademicAllAssistantMDOB/GYN TotalL"},"OB/GYN Total",4,"AAMC","Academic","All","Assistant","MD","2021-2022",263466,{"$f":"(((AAMC_Raw_Data_for_FY22[[#This Row],[Median]]-AAMC_Raw_Data_for_FY22[[#This Row],[25th]])/25)*5) + AAMC_Raw_Data_for_FY22[[#This Row],[25th]]","v":273785.8},{"$f":"(((AAMC_Raw_Data_for_FY22[[#This Row],[Median]]-AAMC_Raw_Data_for_FY22[[#This Row],[25th]])/25)*10) + AAMC_Raw_Data_for_FY22[[#This Row],[25th]]","v":284105.59999999998},{"$f":"(((AAMC_Raw_Data_for_FY22[[#This Row],[Median]]-AAMC_Raw_Data_for_FY22[[#This Row],[25th]])/25)*15) + AAMC_Raw_Data_for_FY22[[#This Row],[25th]]","v":294425.40000000002},{"$f":"(((AAMC_Raw_Data_for_FY22[[#This Row],[Median]]-AAMC_Raw_Data_for_FY22[[#This Row],[25th]])/25)*20) + AAMC_Raw_Data_for_FY22[[#This Row],[25th]]","v":304745.2},315065,{"$f":"(((AAMC_Raw_Data_for_FY22[[#This Row],[75th]]-AAMC_Raw_Data_for_FY22[[#This Row],[Median]])/25)*5) + AAMC_Raw_Data_for_FY22[[#This Row],[Median]]","v":329629.2},{"$f":"(((AAMC_Raw_Data_for_FY22[[#This Row],[75th]]-AAMC_Raw_Data_for_FY22[[#This Row],[Median]])/25)*10) + AAMC_Raw_Data_for_FY22[[#This Row],[Median]]","v":344193.4},{"$f":"(((AAMC_Raw_Data_for_FY22[[#This Row],[75th]]-AAMC_Raw_Data_for_FY22[[#This Row],[Median]])/25)*15) + AAMC_Raw_Data_for_FY22[[#This Row],[Median]]","v":358757.6},{"$f":"(((AAMC_Raw_Data_for_FY22[[#This Row],[75th]]-AAMC_Raw_Data_for_FY22[[#This Row],[Median]])/25)*20) + AAMC_Raw_Data_for_FY22[[#This Row],[Median]]","v":373321.8},387886,{"$f":"(((AAMC_Raw_Data_for_FY22[[#This Row],[75th]]-AAMC_Raw_Data_for_FY22[[#This Row],[Median]])/25)*30) + AAMC_Raw_Data_for_FY22[[#This Row],[Median]]","v":402450.2},{"$f":"(((AAMC_Raw_Data_for_FY22[[#This Row],[75th]]-AAMC_Raw_Data_for_FY22[[#This Row],[Median]])/25)*35) + AAMC_Raw_Data_for_FY22[[#This Row],[Median]]","v":417014.4},{"$f":"(((AAMC_Raw_Data_for_FY22[[#This Row],[75th]]-AAMC_Raw_Data_for_FY22[[#This Row],[Median]])/25)*40) + AAMC_Raw_Data_for_FY22[[#This Row],[Median]]","v":431578.6}]
[{"$f":"AAMC_Raw_Data_for_FY22[[#This Row],[Source]]&AAMC_Raw_Data_for_FY22[[#This Row],[Type]]&AAMC_Raw_Data_for_FY22[[#This Row],[School Subset]]&AAMC_Raw_Data_for_FY22[[#This Row],[Rank]]&AAMC_Raw_Data_for_FY22[[#This Row],[Degree]]&AAMC_Raw_Data_for_FY22[[#This Row],[Department / Specialty]]&\"L\"","v":"AAMCAcademicAllAssociateMDOB/GYN TotalL"},"OB/GYN Total",3,"AAMC","Academic","All","Associate","MD","2021-2022",309712,{"$f":"(((AAMC_Raw_Data_for_FY22[[#This Row],[Median]]-AAMC_Raw_Data_for_FY22[[#This Row],[25th]])/25)*5) + AAMC_Raw_Data_for_FY22[[#This Row],[25th]]","v":324005},{"$f":"(((AAMC_Raw_Data_for_FY22[[#This Row],[Median]]-AAMC_Raw_Data_for_FY22[[#This Row],[25th]])/25)*10) + AAMC_Raw_Data_for_FY22[[#This Row],[25th]]","v":338298},{"$f":"(((AAMC_Raw_Data_for_FY22[[#This Row],[Median]]-AAMC_Raw_Data_for_FY22[[#This Row],[25th]])/25)*15) + AAMC_Raw_Data_for_FY22[[#This Row],[25th]]","v":352591},{"$f":"(((AAMC_Raw_Data_for_FY22[[#This Row],[Median]]-AAMC_Raw_Data_for_FY22[[#This Row],[25th]])/25)*20) + AAMC_Raw_Data_for_FY22[[#This Row],[25th]]","v":366884},381177,{"$f":"(((AAMC_Raw_Data_for_FY22[[#This Row],[75th]]-AAMC_Raw_Data_for_FY22[[#This Row],[Median]])/25)*5) + AAMC_Raw_Data_for_FY22[[#This Row],[Median]]","v":397775.6},{"$f":"(((AAMC_Raw_Data_for_FY22[[#This Row],[75th]]-AAMC_Raw_Data_for_FY22[[#This Row],[Median]])/25)*10) + AAMC_Raw_Data_for_FY22[[#This Row],[Median]]","v":414374.2},{"$f":"(((AAMC_Raw_Data_for_FY22[[#This Row],[75th]]-AAMC_Raw_Data_for_FY22[[#This Row],[Median]])/25)*15) + AAMC_Raw_Data_for_FY22[[#This Row],[Median]]","v":430972.8},{"$f":"(((AAMC_Raw_Data_for_FY22[[#This Row],[75th]]-AAMC_Raw_Data_for_FY22[[#This Row],[Median]])/25)*20) + AAMC_Raw_Data_for_FY22[[#This Row],[Median]]","v":447571.4},464170,{"$f":"(((AAMC_Raw_Data_for_FY22[[#This Row],[75th]]-AAMC_Raw_Data_for_FY22[[#This Row],[Median]])/25)*30) + AAMC_Raw_Data_for_FY22[[#This Row],[Median]]","v":480768.6},{"$f":"(((AAMC_Raw_Data_for_FY22[[#This Row],[75th]]-AAMC_Raw_Data_for_FY22[[#This Row],[Median]])/25)*35) + AAMC_Raw_Data_for_FY22[[#This Row],[Median]]","v":497367.2},{"$f":"(((AAMC_Raw_Data_for_FY22[[#This Row],[75th]]-AAMC_Raw_Data_for_FY22[[#This Row],[Median]])/25)*40) + AAMC_Raw_Data_for_FY22[[#This Row],[Median]]","v":513965.8}]
[{"$f":"AAMC_Raw_Data_for_FY22[[#This Row],[Source]]&AAMC_Raw_Data_for_FY22[[#This Row],[Type]]&AAMC_Raw_Data_for_FY22[[#This Row],[School Subset]]&AAMC_Raw_Data_for_FY22[[#This Row],[Rank]]&AAMC_Raw_Data_for_FY22[[#This Row],[Degree]]&AAMC_Raw_Data_for_FY22[[#This Row],[Department / Specialty]]&\"L\"","v":"AAMCAcademicAllProfessorMDOB/GYN TotalL"},"OB/GYN Total",2,"AAMC","Academic","All","Professor","MD","2021-2022",334397,{"$f":"(((AAMC_Raw_Data_for_FY22[[#This Row],[Median]]-AAMC_Raw_Data_for_FY22[[#This Row],[25th]])/25)*5) + AAMC_Raw_Data_for_FY22[[#This Row],[25th]]","v":349504.6},{"$f":"(((AAMC_Raw_Data_for_FY22[[#This Row],[Median]]-AAMC_Raw_Data_for_FY22[[#This Row],[25th]])/25)*10) + AAMC_Raw_Data_for_FY22[[#This Row],[25th]]","v":364612.2},{"$f":"(((AAMC_Raw_Data_for_FY22[[#This Row],[Median]]-AAMC_Raw_Data_for_FY22[[#This Row],[25th]])/25)*15) + AAMC_Raw_Data_for_FY22[[#This Row],[25th]]","v":379719.8},{"$f":"(((AAMC_Raw_Data_for_FY22[[#This Row],[Median]]-AAMC_Raw_Data_for_FY22[[#This Row],[25th]])/25)*20) + AAMC_Raw_Data_for_FY22[[#This Row],[25th]]","v":394827.4},409935,{"$f":"(((AAMC_Raw_Data_for_FY22[[#This Row],[75th]]-AAMC_Raw_Data_for_FY22[[#This Row],[Median]])/25)*5) + AAMC_Raw_Data_for_FY22[[#This Row],[Median]]","v":429112.4},{"$f":"(((AAMC_Raw_Data_for_FY22[[#This Row],[75th]]-AAMC_Raw_Data_for_FY22[[#This Row],[Median]])/25)*10) + AAMC_Raw_Data_for_FY22[[#This Row],[Median]]","v":448289.8},{"$f":"(((AAMC_Raw_Data_for_FY22[[#This Row],[75th]]-AAMC_Raw_Data_for_FY22[[#This Row],[Median]])/25)*15) + AAMC_Raw_Data_for_FY22[[#This Row],[Median]]","v":467467.2},{"$f":"(((AAMC_Raw_Data_for_FY22[[#This Row],[75th]]-AAMC_Raw_Data_for_FY22[[#This Row],[Median]])/25)*20) + AAMC_Raw_Data_for_FY22[[#This Row],[Median]]","v":486644.6},505822,{"$f":"(((AAMC_Raw_Data_for_FY22[[#This Row],[75th]]-AAMC_Raw_Data_for_FY22[[#This Row],[Median]])/25)*30) + AAMC_Raw_Data_for_FY22[[#This Row],[Median]]","v":524999.4},{"$f":"(((AAMC_Raw_Data_for_FY22[[#This Row],[75th]]-AAMC_Raw_Data_for_FY22[[#This Row],[Median]])/25)*35) + AAMC_Raw_Data_for_FY22[[#This Row],[Median]]","v":544176.80000000005},{"$f":"(((AAMC_Raw_Data_for_FY22[[#This Row],[75th]]-AAMC_Raw_Data_for_FY22[[#This Row],[Median]])/25)*40) + AAMC_Raw_Data_for_FY22[[#This Row],[Median]]","v":563354.19999999995}]
[{"$f":"AAMC_Raw_Data_for_FY22[[#This Row],[Source]]&AAMC_Raw_Data_for_FY22[[#This Row],[Type]]&AAMC_Raw_Data_for_FY22[[#This Row],[School Subset]]&AAMC_Raw_Data_for_FY22[[#This Row],[Rank]]&AAMC_Raw_Data_for_FY22[[#This Row],[Degree]]&AAMC_Raw_Data_for_FY22[[#This Row],[Department / Specialty]]&\"L\"","v":"AAMCAcademicAllChiefMDOB/GYN TotalL"},"OB/GYN Total",6,"AAMC","Academic","All","Chief","MD","2021-2022",368791,{"$f":"(((AAMC_Raw_Data_for_FY22[[#This Row],[Median]]-AAMC_Raw_Data_for_FY22[[#This Row],[25th]])/25)*5) + AAMC_Raw_Data_for_FY22[[#This Row],[25th]]","v":384170.6},{"$f":"(((AAMC_Raw_Data_for_FY22[[#This Row],[Median]]-AAMC_Raw_Data_for_FY22[[#This Row],[25th]])/25)*10) + AAMC_Raw_Data_for_FY22[[#This Row],[25th]]","v":399550.2},{"$f":"(((AAMC_Raw_Data_for_FY22[[#This Row],[Median]]-AAMC_Raw_Data_for_FY22[[#This Row],[25th]])/25)*15) + AAMC_Raw_Data_for_FY22[[#This Row],[25th]]","v":414929.8},{"$f":"(((AAMC_Raw_Data_for_FY22[[#This Row],[Median]]-AAMC_Raw_Data_for_FY22[[#This Row],[25th]])/25)*20) + AAMC_Raw_Data_for_FY22[[#This Row],[25th]]","v":430309.4},445689,{"$f":"(((AAMC_Raw_Data_for_FY22[[#This Row],[75th]]-AAMC_Raw_Data_for_FY22[[#This Row],[Median]])/25)*5) + AAMC_Raw_Data_for_FY22[[#This Row],[Median]]","v":461347.6},{"$f":"(((AAMC_Raw_Data_for_FY22[[#This Row],[75th]]-AAMC_Raw_Data_for_FY22[[#This Row],[Median]])/25)*10) + AAMC_Raw_Data_for_FY22[[#This Row],[Median]]","v":477006.2},{"$f":"(((AAMC_Raw_Data_for_FY22[[#This Row],[75th]]-AAMC_Raw_Data_for_FY22[[#This Row],[Median]])/25)*15) + AAMC_Raw_Data_for_FY22[[#This Row],[Median]]","v":492664.8},{"$f":"(((AAMC_Raw_Data_for_FY22[[#This Row],[75th]]-AAMC_Raw_Data_for_FY22[[#This Row],[Median]])/25)*20) + AAMC_Raw_Data_for_FY22[[#This Row],[Median]]","v":508323.4},523982,{"$f":"(((AAMC_Raw_Data_for_FY22[[#This Row],[75th]]-AAMC_Raw_Data_for_FY22[[#This Row],[Median]])/25)*30) + AAMC_Raw_Data_for_FY22[[#This Row],[Median]]","v":539640.6},{"$f":"(((AAMC_Raw_Data_for_FY22[[#This Row],[75th]]-AAMC_Raw_Data_for_FY22[[#This Row],[Median]])/25)*35) + AAMC_Raw_Data_for_FY22[[#This Row],[Median]]","v":555299.19999999995},{"$f":"(((AAMC_Raw_Data_for_FY22[[#This Row],[75th]]-AAMC_Raw_Data_for_FY22[[#This Row],[Median]])/25)*40) + AAMC_Raw_Data_for_FY22[[#This Row],[Median]]","v":570957.80000000005}]
[{"$f":"AAMC_Raw_Data_for_FY22[[#This Row],[Source]]&AAMC_Raw_Data_for_FY22[[#This Row],[Type]]&AAMC_Raw_Data_for_FY22[[#This Row],[School Subset]]&AAMC_Raw_Data_for_FY22[[#This Row],[Rank]]&AAMC_Raw_Data_for_FY22[[#This Row],[Degree]]&AAMC_Raw_Data_for_FY22[[#This Row],[Department / Specialty]]&\"L\"","v":"AAMCAcademicAllChairMDOB/GYN TotalL"},"OB/GYN Total",1,"AAMC","Academic","All","Chair","MD","2021-2022",561419,{"$f":"(((AAMC_Raw_Data_for_FY22[[#This Row],[Median]]-AAMC_Raw_Data_for_FY22[[#This Row],[25th]])/25)*5) + AAMC_Raw_Data_for_FY22[[#This Row],[25th]]","v":576764.19999999995},{"$f":"(((AAMC_Raw_Data_for_FY22[[#This Row],[Median]]-AAMC_Raw_Data_for_FY22[[#This Row],[25th]])/25)*10) + AAMC_Raw_Data_for_FY22[[#This Row],[25th]]","v":592109.4},{"$f":"(((AAMC_Raw_Data_for_FY22[[#This Row],[Median]]-AAMC_Raw_Data_for_FY22[[#This Row],[25th]])/25)*15) + AAMC_Raw_Data_for_FY22[[#This Row],[25th]]","v":607454.6},{"$f":"(((AAMC_Raw_Data_for_FY22[[#This Row],[Median]]-AAMC_Raw_Data_for_FY22[[#This Row],[25th]])/25)*20) + AAMC_Raw_Data_for_FY22[[#This Row],[25th]]","v":622799.80000000005},638145,{"$f":"(((AAMC_Raw_Data_for_FY22[[#This Row],[75th]]-AAMC_Raw_Data_for_FY22[[#This Row],[Median]])/25)*5) + AAMC_Raw_Data_for_FY22[[#This Row],[Median]]","v":657079.80000000005},{"$f":"(((AAMC_Raw_Data_for_FY22[[#This Row],[75th]]-AAMC_Raw_Data_for_FY22[[#This Row],[Median]])/25)*10) + AAMC_Raw_Data_for_FY22[[#This Row],[Median]]","v":676014.6},{"$f":"(((AAMC_Raw_Data_for_FY22[[#This Row],[75th]]-AAMC_Raw_Data_for_FY22[[#This Row],[Median]])/25)*15) + AAMC_Raw_Data_for_FY22[[#This Row],[Median]]","v":694949.4},{"$f":"(((AAMC_Raw_Data_for_FY22[[#This Row],[75th]]-AAMC_Raw_Data_for_FY22[[#This Row],[Median]])/25)*20) + AAMC_Raw_Data_for_FY22[[#This Row],[Median]]","v":713884.2},732819,{"$f":"(((AAMC_Raw_Data_for_FY22[[#This Row],[75th]]-AAMC_Raw_Data_for_FY22[[#This Row],[Median]])/25)*30) + AAMC_Raw_Data_for_FY22[[#This Row],[Median]]","v":751753.8},{"$f":"(((AAMC_Raw_Data_for_FY22[[#This Row],[75th]]-AAMC_Raw_Data_for_FY22[[#This Row],[Median]])/25)*35) + AAMC_Raw_Data_for_FY22[[#This Row],[Median]]","v":770688.6},{"$f":"(((AAMC_Raw_Data_for_FY22[[#This Row],[75th]]-AAMC_Raw_Data_for_FY22[[#This Row],[Median]])/25)*40) + AAMC_Raw_Data_for_FY22[[#This Row],[Median]]","v":789623.4}]
[{"$f":"AAMC_Raw_Data_for_FY22[[#This Row],[Source]]&AAMC_Raw_Data_for_FY22[[#This Row],[Type]]&AAMC_Raw_Data_for_FY22[[#This Row],[School Subset]]&AAMC_Raw_Data_for_FY22[[#This Row],[Rank]]&AAMC_Raw_Data_for_FY22[[#This Row],[Degree]]&AAMC_Raw_Data_for_FY22[[#This Row],[Department / Specialty]]&\"L\"","v":"AAMCAcademicAllInstructorMDOB/GYN: GeneralL"},"OB/GYN: General",5,"AAMC","Academic","All","Instructor","MD","2021-2022",232200,{"$f":"(((AAMC_Raw_Data_for_FY22[[#This Row],[Median]]-AAMC_Raw_Data_for_FY22[[#This Row],[25th]])/25)*5) + AAMC_Raw_Data_for_FY22[[#This Row],[25th]]","v":240740.8},{"$f":"(((AAMC_Raw_Data_for_FY22[[#This Row],[Median]]-AAMC_Raw_Data_for_FY22[[#This Row],[25th]])/25)*10) + AAMC_Raw_Data_for_FY22[[#This Row],[25th]]","v":249281.6},{"$f":"(((AAMC_Raw_Data_for_FY22[[#This Row],[Median]]-AAMC_Raw_Data_for_FY22[[#This Row],[25th]])/25)*15) + AAMC_Raw_Data_for_FY22[[#This Row],[25th]]","v":257822.4},{"$f":"(((AAMC_Raw_Data_for_FY22[[#This Row],[Median]]-AAMC_Raw_Data_for_FY22[[#This Row],[25th]])/25)*20) + AAMC_Raw_Data_for_FY22[[#This Row],[25th]]","v":266363.2},274904,{"$f":"(((AAMC_Raw_Data_for_FY22[[#This Row],[75th]]-AAMC_Raw_Data_for_FY22[[#This Row],[Median]])/25)*5) + AAMC_Raw_Data_for_FY22[[#This Row],[Median]]","v":285862.2},{"$f":"(((AAMC_Raw_Data_for_FY22[[#This Row],[75th]]-AAMC_Raw_Data_for_FY22[[#This Row],[Median]])/25)*10) + AAMC_Raw_Data_for_FY22[[#This Row],[Median]]","v":296820.40000000002},{"$f":"(((AAMC_Raw_Data_for_FY22[[#This Row],[75th]]-AAMC_Raw_Data_for_FY22[[#This Row],[Median]])/25)*15) + AAMC_Raw_Data_for_FY22[[#This Row],[Median]]","v":307778.59999999998},{"$f":"(((AAMC_Raw_Data_for_FY22[[#This Row],[75th]]-AAMC_Raw_Data_for_FY22[[#This Row],[Median]])/25)*20) + AAMC_Raw_Data_for_FY22[[#This Row],[Median]]","v":318736.8},329695,{"$f":"(((AAMC_Raw_Data_for_FY22[[#This Row],[75th]]-AAMC_Raw_Data_for_FY22[[#This Row],[Median]])/25)*30) + AAMC_Raw_Data_for_FY22[[#This Row],[Median]]","v":340653.2},{"$f":"(((AAMC_Raw_Data_for_FY22[[#This Row],[75th]]-AAMC_Raw_Data_for_FY22[[#This Row],[Median]])/25)*35) + AAMC_Raw_Data_for_FY22[[#This Row],[Median]]","v":351611.4},{"$f":"(((AAMC_Raw_Data_for_FY22[[#This Row],[75th]]-AAMC_Raw_Data_for_FY22[[#This Row],[Median]])/25)*40) + AAMC_Raw_Data_for_FY22[[#This Row],[Median]]","v":362569.6}]
[{"$f":"AAMC_Raw_Data_for_FY22[[#This Row],[Source]]&AAMC_Raw_Data_for_FY22[[#This Row],[Type]]&AAMC_Raw_Data_for_FY22[[#This Row],[School Subset]]&AAMC_Raw_Data_for_FY22[[#This Row],[Rank]]&AAMC_Raw_Data_for_FY22[[#This Row],[Degree]]&AAMC_Raw_Data_for_FY22[[#This Row],[Department / Specialty]]&\"L\"","v":"AAMCAcademicAllAssistantMDOB/GYN: GeneralL"},"OB/GYN: General",4,"AAMC","Academic","All","Assistant","MD","2021-2022",254021,{"$f":"(((AAMC_Raw_Data_for_FY22[[#This Row],[Median]]-AAMC_Raw_Data_for_FY22[[#This Row],[25th]])/25)*5) + AAMC_Raw_Data_for_FY22[[#This Row],[25th]]","v":261576.8},{"$f":"(((AAMC_Raw_Data_for_FY22[[#This Row],[Median]]-AAMC_Raw_Data_for_FY22[[#This Row],[25th]])/25)*10) + AAMC_Raw_Data_for_FY22[[#This Row],[25th]]","v":269132.59999999998},{"$f":"(((AAMC_Raw_Data_for_FY22[[#This Row],[Median]]-AAMC_Raw_Data_for_FY22[[#This Row],[25th]])/25)*15) + AAMC_Raw_Data_for_FY22[[#This Row],[25th]]","v":276688.40000000002},{"$f":"(((AAMC_Raw_Data_for_FY22[[#This Row],[Median]]-AAMC_Raw_Data_for_FY22[[#This Row],[25th]])/25)*20) + AAMC_Raw_Data_for_FY22[[#This Row],[25th]]","v":284244.2},291800,{"$f":"(((AAMC_Raw_Data_for_FY22[[#This Row],[75th]]-AAMC_Raw_Data_for_FY22[[#This Row],[Median]])/25)*5) + AAMC_Raw_Data_for_FY22[[#This Row],[Median]]","v":304984.8},{"$f":"(((AAMC_Raw_Data_for_FY22[[#This Row],[75th]]-AAMC_Raw_Data_for_FY22[[#This Row],[Median]])/25)*10) + AAMC_Raw_Data_for_FY22[[#This Row],[Median]]","v":318169.59999999998},{"$f":"(((AAMC_Raw_Data_for_FY22[[#This Row],[75th]]-AAMC_Raw_Data_for_FY22[[#This Row],[Median]])/25)*15) + AAMC_Raw_Data_for_FY22[[#This Row],[Median]]","v":331354.40000000002},{"$f":"(((AAMC_Raw_Data_for_FY22[[#This Row],[75th]]-AAMC_Raw_Data_for_FY22[[#This Row],[Median]])/25)*20) + AAMC_Raw_Data_for_FY22[[#This Row],[Median]]","v":344539.2},357724,{"$f":"(((AAMC_Raw_Data_for_FY22[[#This Row],[75th]]-AAMC_Raw_Data_for_FY22[[#This Row],[Median]])/25)*30) + AAMC_Raw_Data_for_FY22[[#This Row],[Median]]","v":370908.8},{"$f":"(((AAMC_Raw_Data_for_FY22[[#This Row],[75th]]-AAMC_Raw_Data_for_FY22[[#This Row],[Median]])/25)*35) + AAMC_Raw_Data_for_FY22[[#This Row],[Median]]","v":384093.6},{"$f":"(((AAMC_Raw_Data_for_FY22[[#This Row],[75th]]-AAMC_Raw_Data_for_FY22[[#This Row],[Median]])/25)*40) + AAMC_Raw_Data_for_FY22[[#This Row],[Median]]","v":397278.4}]
[{"$f":"AAMC_Raw_Data_for_FY22[[#This Row],[Source]]&AAMC_Raw_Data_for_FY22[[#This Row],[Type]]&AAMC_Raw_Data_for_FY22[[#This Row],[School Subset]]&AAMC_Raw_Data_for_FY22[[#This Row],[Rank]]&AAMC_Raw_Data_for_FY22[[#This Row],[Degree]]&AAMC_Raw_Data_for_FY22[[#This Row],[Department / Specialty]]&\"L\"","v":"AAMCAcademicAllAssociateMDOB/GYN: GeneralL"},"OB/GYN: General",3,"AAMC","Academic","All","Associate","MD","2021-2022",290647,{"$f":"(((AAMC_Raw_Data_for_FY22[[#This Row],[Median]]-AAMC_Raw_Data_for_FY22[[#This Row],[25th]])/25)*5) + AAMC_Raw_Data_for_FY22[[#This Row],[25th]]","v":297689.40000000002},{"$f":"(((AAMC_Raw_Data_for_FY22[[#This Row],[Median]]-AAMC_Raw_Data_for_FY22[[#This Row],[25th]])/25)*10) + AAMC_Raw_Data_for_FY22[[#This Row],[25th]]","v":304731.8},{"$f":"(((AAMC_Raw_Data_for_FY22[[#This Row],[Median]]-AAMC_Raw_Data_for_FY22[[#This Row],[25th]])/25)*15) + AAMC_Raw_Data_for_FY22[[#This Row],[25th]]","v":311774.2},{"$f":"(((AAMC_Raw_Data_for_FY22[[#This Row],[Median]]-AAMC_Raw_Data_for_FY22[[#This Row],[25th]])/25)*20) + AAMC_Raw_Data_for_FY22[[#This Row],[25th]]","v":318816.59999999998},325859,{"$f":"(((AAMC_Raw_Data_for_FY22[[#This Row],[75th]]-AAMC_Raw_Data_for_FY22[[#This Row],[Median]])/25)*5) + AAMC_Raw_Data_for_FY22[[#This Row],[Median]]","v":339925.4},{"$f":"(((AAMC_Raw_Data_for_FY22[[#This Row],[75th]]-AAMC_Raw_Data_for_FY22[[#This Row],[Median]])/25)*10) + AAMC_Raw_Data_for_FY22[[#This Row],[Median]]","v":353991.8},{"$f":"(((AAMC_Raw_Data_for_FY22[[#This Row],[75th]]-AAMC_Raw_Data_for_FY22[[#This Row],[Median]])/25)*15) + AAMC_Raw_Data_for_FY22[[#This Row],[Median]]","v":368058.2},{"$f":"(((AAMC_Raw_Data_for_FY22[[#This Row],[75th]]-AAMC_Raw_Data_for_FY22[[#This Row],[Median]])/25)*20) + AAMC_Raw_Data_for_FY22[[#This Row],[Median]]","v":382124.6},396191,{"$f":"(((AAMC_Raw_Data_for_FY22[[#This Row],[75th]]-AAMC_Raw_Data_for_FY22[[#This Row],[Median]])/25)*30) + AAMC_Raw_Data_for_FY22[[#This Row],[Median]]","v":410257.4},{"$f":"(((AAMC_Raw_Data_for_FY22[[#This Row],[75th]]-AAMC_Raw_Data_for_FY22[[#This Row],[Median]])/25)*35) + AAMC_Raw_Data_for_FY22[[#This Row],[Median]]","v":424323.8},{"$f":"(((AAMC_Raw_Data_for_FY22[[#This Row],[75th]]-AAMC_Raw_Data_for_FY22[[#This Row],[Median]])/25)*40) + AAMC_Raw_Data_for_FY22[[#This Row],[Median]]","v":438390.2}]
[{"$f":"AAMC_Raw_Data_for_FY22[[#This Row],[Source]]&AAMC_Raw_Data_for_FY22[[#This Row],[Type]]&AAMC_Raw_Data_for_FY22[[#This Row],[School Subset]]&AAMC_Raw_Data_for_FY22[[#This Row],[Rank]]&AAMC_Raw_Data_for_FY22[[#This Row],[Degree]]&AAMC_Raw_Data_for_FY22[[#This Row],[Department / Specialty]]&\"L\"","v":"AAMCAcademicAllProfessorMDOB/GYN: GeneralL"},"OB/GYN: General",2,"AAMC","Academic","All","Professor","MD","2021-2022",306118,{"$f":"(((AAMC_Raw_Data_for_FY22[[#This Row],[Median]]-AAMC_Raw_Data_for_FY22[[#This Row],[25th]])/25)*5) + AAMC_Raw_Data_for_FY22[[#This Row],[25th]]","v":317495},{"$f":"(((AAMC_Raw_Data_for_FY22[[#This Row],[Median]]-AAMC_Raw_Data_for_FY22[[#This Row],[25th]])/25)*10) + AAMC_Raw_Data_for_FY22[[#This Row],[25th]]","v":328872},{"$f":"(((AAMC_Raw_Data_for_FY22[[#This Row],[Median]]-AAMC_Raw_Data_for_FY22[[#This Row],[25th]])/25)*15) + AAMC_Raw_Data_for_FY22[[#This Row],[25th]]","v":340249},{"$f":"(((AAMC_Raw_Data_for_FY22[[#This Row],[Median]]-AAMC_Raw_Data_for_FY22[[#This Row],[25th]])/25)*20) + AAMC_Raw_Data_for_FY22[[#This Row],[25th]]","v":351626},363003,{"$f":"(((AAMC_Raw_Data_for_FY22[[#This Row],[75th]]-AAMC_Raw_Data_for_FY22[[#This Row],[Median]])/25)*5) + AAMC_Raw_Data_for_FY22[[#This Row],[Median]]","v":376847.6},{"$f":"(((AAMC_Raw_Data_for_FY22[[#This Row],[75th]]-AAMC_Raw_Data_for_FY22[[#This Row],[Median]])/25)*10) + AAMC_Raw_Data_for_FY22[[#This Row],[Median]]","v":390692.2},{"$f":"(((AAMC_Raw_Data_for_FY22[[#This Row],[75th]]-AAMC_Raw_Data_for_FY22[[#This Row],[Median]])/25)*15) + AAMC_Raw_Data_for_FY22[[#This Row],[Median]]","v":404536.8},{"$f":"(((AAMC_Raw_Data_for_FY22[[#This Row],[75th]]-AAMC_Raw_Data_for_FY22[[#This Row],[Median]])/25)*20) + AAMC_Raw_Data_for_FY22[[#This Row],[Median]]","v":418381.4},432226,{"$f":"(((AAMC_Raw_Data_for_FY22[[#This Row],[75th]]-AAMC_Raw_Data_for_FY22[[#This Row],[Median]])/25)*30) + AAMC_Raw_Data_for_FY22[[#This Row],[Median]]","v":446070.6},{"$f":"(((AAMC_Raw_Data_for_FY22[[#This Row],[75th]]-AAMC_Raw_Data_for_FY22[[#This Row],[Median]])/25)*35) + AAMC_Raw_Data_for_FY22[[#This Row],[Median]]","v":459915.2},{"$f":"(((AAMC_Raw_Data_for_FY22[[#This Row],[75th]]-AAMC_Raw_Data_for_FY22[[#This Row],[Median]])/25)*40) + AAMC_Raw_Data_for_FY22[[#This Row],[Median]]","v":473759.8}]
[{"$f":"AAMC_Raw_Data_for_FY22[[#This Row],[Source]]&AAMC_Raw_Data_for_FY22[[#This Row],[Type]]&AAMC_Raw_Data_for_FY22[[#This Row],[School Subset]]&AAMC_Raw_Data_for_FY22[[#This Row],[Rank]]&AAMC_Raw_Data_for_FY22[[#This Row],[Degree]]&AAMC_Raw_Data_for_FY22[[#This Row],[Department / Specialty]]&\"L\"","v":"AAMCAcademicAllChiefMDOB/GYN: GeneralL"},"OB/GYN: General",6,"AAMC","Academic","All","Chief","MD","2021-2022",336515,{"$f":"(((AAMC_Raw_Data_for_FY22[[#This Row],[Median]]-AAMC_Raw_Data_for_FY22[[#This Row],[25th]])/25)*5) + AAMC_Raw_Data_for_FY22[[#This Row],[25th]]","v":347750.40000000002},{"$f":"(((AAMC_Raw_Data_for_FY22[[#This Row],[Median]]-AAMC_Raw_Data_for_FY22[[#This Row],[25th]])/25)*10) + AAMC_Raw_Data_for_FY22[[#This Row],[25th]]","v":358985.8},{"$f":"(((AAMC_Raw_Data_for_FY22[[#This Row],[Median]]-AAMC_Raw_Data_for_FY22[[#This Row],[25th]])/25)*15) + AAMC_Raw_Data_for_FY22[[#This Row],[25th]]","v":370221.2},{"$f":"(((AAMC_Raw_Data_for_FY22[[#This Row],[Median]]-AAMC_Raw_Data_for_FY22[[#This Row],[25th]])/25)*20) + AAMC_Raw_Data_for_FY22[[#This Row],[25th]]","v":381456.6},392692,{"$f":"(((AAMC_Raw_Data_for_FY22[[#This Row],[75th]]-AAMC_Raw_Data_for_FY22[[#This Row],[Median]])/25)*5) + AAMC_Raw_Data_for_FY22[[#This Row],[Median]]","v":404410.4},{"$f":"(((AAMC_Raw_Data_for_FY22[[#This Row],[75th]]-AAMC_Raw_Data_for_FY22[[#This Row],[Median]])/25)*10) + AAMC_Raw_Data_for_FY22[[#This Row],[Median]]","v":416128.8},{"$f":"(((AAMC_Raw_Data_for_FY22[[#This Row],[75th]]-AAMC_Raw_Data_for_FY22[[#This Row],[Median]])/25)*15) + AAMC_Raw_Data_for_FY22[[#This Row],[Median]]","v":427847.2},{"$f":"(((AAMC_Raw_Data_for_FY22[[#This Row],[75th]]-AAMC_Raw_Data_for_FY22[[#This Row],[Median]])/25)*20) + AAMC_Raw_Data_for_FY22[[#This Row],[Median]]","v":439565.6},451284,{"$f":"(((AAMC_Raw_Data_for_FY22[[#This Row],[75th]]-AAMC_Raw_Data_for_FY22[[#This Row],[Median]])/25)*30) + AAMC_Raw_Data_for_FY22[[#This Row],[Median]]","v":463002.4},{"$f":"(((AAMC_Raw_Data_for_FY22[[#This Row],[75th]]-AAMC_Raw_Data_for_FY22[[#This Row],[Median]])/25)*35) + AAMC_Raw_Data_for_FY22[[#This Row],[Median]]","v":474720.8},{"$f":"(((AAMC_Raw_Data_for_FY22[[#This Row],[75th]]-AAMC_Raw_Data_for_FY22[[#This Row],[Median]])/25)*40) + AAMC_Raw_Data_for_FY22[[#This Row],[Median]]","v":486439.2}]
[{"$f":"AAMC_Raw_Data_for_FY22[[#This Row],[Source]]&AAMC_Raw_Data_for_FY22[[#This Row],[Type]]&AAMC_Raw_Data_for_FY22[[#This Row],[School Subset]]&AAMC_Raw_Data_for_FY22[[#This Row],[Rank]]&AAMC_Raw_Data_for_FY22[[#This Row],[Degree]]&AAMC_Raw_Data_for_FY22[[#This Row],[Department / Specialty]]&\"L\"","v":"AAMCAcademicAllChairMDOB/GYN: GeneralL"},"OB/GYN: General",1,"AAMC","Academic","All","Chair","MD","2021-2022",544679,{"$f":"(((AAMC_Raw_Data_for_FY22[[#This Row],[Median]]-AAMC_Raw_Data_for_FY22[[#This Row],[25th]])/25)*5) + AAMC_Raw_Data_for_FY22[[#This Row],[25th]]","v":555924.6},{"$f":"(((AAMC_Raw_Data_for_FY22[[#This Row],[Median]]-AAMC_Raw_Data_for_FY22[[#This Row],[25th]])/25)*10) + AAMC_Raw_Data_for_FY22[[#This Row],[25th]]","v":567170.19999999995},{"$f":"(((AAMC_Raw_Data_for_FY22[[#This Row],[Median]]-AAMC_Raw_Data_for_FY22[[#This Row],[25th]])/25)*15) + AAMC_Raw_Data_for_FY22[[#This Row],[25th]]","v":578415.80000000005},{"$f":"(((AAMC_Raw_Data_for_FY22[[#This Row],[Median]]-AAMC_Raw_Data_for_FY22[[#This Row],[25th]])/25)*20) + AAMC_Raw_Data_for_FY22[[#This Row],[25th]]","v":589661.4},600907,{"$f":"(((AAMC_Raw_Data_for_FY22[[#This Row],[75th]]-AAMC_Raw_Data_for_FY22[[#This Row],[Median]])/25)*5) + AAMC_Raw_Data_for_FY22[[#This Row],[Median]]","v":624948.4},{"$f":"(((AAMC_Raw_Data_for_FY22[[#This Row],[75th]]-AAMC_Raw_Data_for_FY22[[#This Row],[Median]])/25)*10) + AAMC_Raw_Data_for_FY22[[#This Row],[Median]]","v":648989.80000000005},{"$f":"(((AAMC_Raw_Data_for_FY22[[#This Row],[75th]]-AAMC_Raw_Data_for_FY22[[#This Row],[Median]])/25)*15) + AAMC_Raw_Data_for_FY22[[#This Row],[Median]]","v":673031.2},{"$f":"(((AAMC_Raw_Data_for_FY22[[#This Row],[75th]]-AAMC_Raw_Data_for_FY22[[#This Row],[Median]])/25)*20) + AAMC_Raw_Data_for_FY22[[#This Row],[Median]]","v":697072.6},721114,{"$f":"(((AAMC_Raw_Data_for_FY22[[#This Row],[75th]]-AAMC_Raw_Data_for_FY22[[#This Row],[Median]])/25)*30) + AAMC_Raw_Data_for_FY22[[#This Row],[Median]]","v":745155.4},{"$f":"(((AAMC_Raw_Data_for_FY22[[#This Row],[75th]]-AAMC_Raw_Data_for_FY22[[#This Row],[Median]])/25)*35) + AAMC_Raw_Data_for_FY22[[#This Row],[Median]]","v":769196.8},{"$f":"(((AAMC_Raw_Data_for_FY22[[#This Row],[75th]]-AAMC_Raw_Data_for_FY22[[#This Row],[Median]])/25)*40) + AAMC_Raw_Data_for_FY22[[#This Row],[Median]]","v":793238.2}]
[{"$f":"AAMC_Raw_Data_for_FY22[[#This Row],[Source]]&AAMC_Raw_Data_for_FY22[[#This Row],[Type]]&AAMC_Raw_Data_for_FY22[[#This Row],[School Subset]]&AAMC_Raw_Data_for_FY22[[#This Row],[Rank]]&AAMC_Raw_Data_for_FY22[[#This Row],[Degree]]&AAMC_Raw_Data_for_FY22[[#This Row],[Department / Specialty]]&\"L\"","v":"AAMCAcademicAllInstructorMDOB/GYN: Gynecologic OncologyL"},"OB/GYN: Gynecologic Oncology",5,"AAMC","Academic","All","Instructor","MD","2021-2022",184976,{"$f":"(((AAMC_Raw_Data_for_FY22[[#This Row],[Median]]-AAMC_Raw_Data_for_FY22[[#This Row],[25th]])/25)*5) + AAMC_Raw_Data_for_FY22[[#This Row],[25th]]","v":210380.79999999999},{"$f":"(((AAMC_Raw_Data_for_FY22[[#This Row],[Median]]-AAMC_Raw_Data_for_FY22[[#This Row],[25th]])/25)*10) + AAMC_Raw_Data_for_FY22[[#This Row],[25th]]","v":235785.60000000001},{"$f":"(((AAMC_Raw_Data_for_FY22[[#This Row],[Median]]-AAMC_Raw_Data_for_FY22[[#This Row],[25th]])/25)*15) + AAMC_Raw_Data_for_FY22[[#This Row],[25th]]","v":261190.39999999999},{"$f":"(((AAMC_Raw_Data_for_FY22[[#This Row],[Median]]-AAMC_Raw_Data_for_FY22[[#This Row],[25th]])/25)*20) + AAMC_Raw_Data_for_FY22[[#This Row],[25th]]","v":286595.20000000001},312000,{"$f":"(((AAMC_Raw_Data_for_FY22[[#This Row],[75th]]-AAMC_Raw_Data_for_FY22[[#This Row],[Median]])/25)*5) + AAMC_Raw_Data_for_FY22[[#This Row],[Median]]","v":324068.2},{"$f":"(((AAMC_Raw_Data_for_FY22[[#This Row],[75th]]-AAMC_Raw_Data_for_FY22[[#This Row],[Median]])/25)*10) + AAMC_Raw_Data_for_FY22[[#This Row],[Median]]","v":336136.4},{"$f":"(((AAMC_Raw_Data_for_FY22[[#This Row],[75th]]-AAMC_Raw_Data_for_FY22[[#This Row],[Median]])/25)*15) + AAMC_Raw_Data_for_FY22[[#This Row],[Median]]","v":348204.6},{"$f":"(((AAMC_Raw_Data_for_FY22[[#This Row],[75th]]-AAMC_Raw_Data_for_FY22[[#This Row],[Median]])/25)*20) + AAMC_Raw_Data_for_FY22[[#This Row],[Median]]","v":360272.8},372341,{"$f":"(((AAMC_Raw_Data_for_FY22[[#This Row],[75th]]-AAMC_Raw_Data_for_FY22[[#This Row],[Median]])/25)*30) + AAMC_Raw_Data_for_FY22[[#This Row],[Median]]","v":384409.2},{"$f":"(((AAMC_Raw_Data_for_FY22[[#This Row],[75th]]-AAMC_Raw_Data_for_FY22[[#This Row],[Median]])/25)*35) + AAMC_Raw_Data_for_FY22[[#This Row],[Median]]","v":396477.4},{"$f":"(((AAMC_Raw_Data_for_FY22[[#This Row],[75th]]-AAMC_Raw_Data_for_FY22[[#This Row],[Median]])/25)*40) + AAMC_Raw_Data_for_FY22[[#This Row],[Median]]","v":408545.6}]
[{"$f":"AAMC_Raw_Data_for_FY22[[#This Row],[Source]]&AAMC_Raw_Data_for_FY22[[#This Row],[Type]]&AAMC_Raw_Data_for_FY22[[#This Row],[School Subset]]&AAMC_Raw_Data_for_FY22[[#This Row],[Rank]]&AAMC_Raw_Data_for_FY22[[#This Row],[Degree]]&AAMC_Raw_Data_for_FY22[[#This Row],[Department / Specialty]]&\"L\"","v":"AAMCAcademicAllAssistantMDOB/GYN: Gynecologic OncologyL"},"OB/GYN: Gynecologic Oncology",4,"AAMC","Academic","All","Assistant","MD","2021-2022",319463,{"$f":"(((AAMC_Raw_Data_for_FY22[[#This Row],[Median]]-AAMC_Raw_Data_for_FY22[[#This Row],[25th]])/25)*5) + AAMC_Raw_Data_for_FY22[[#This Row],[25th]]","v":326337.59999999998},{"$f":"(((AAMC_Raw_Data_for_FY22[[#This Row],[Median]]-AAMC_Raw_Data_for_FY22[[#This Row],[25th]])/25)*10) + AAMC_Raw_Data_for_FY22[[#This Row],[25th]]","v":333212.2},{"$f":"(((AAMC_Raw_Data_for_FY22[[#This Row],[Median]]-AAMC_Raw_Data_for_FY22[[#This Row],[25th]])/25)*15) + AAMC_Raw_Data_for_FY22[[#This Row],[25th]]","v":340086.8},{"$f":"(((AAMC_Raw_Data_for_FY22[[#This Row],[Median]]-AAMC_Raw_Data_for_FY22[[#This Row],[25th]])/25)*20) + AAMC_Raw_Data_for_FY22[[#This Row],[25th]]","v":346961.4},353836,{"$f":"(((AAMC_Raw_Data_for_FY22[[#This Row],[75th]]-AAMC_Raw_Data_for_FY22[[#This Row],[Median]])/25)*5) + AAMC_Raw_Data_for_FY22[[#This Row],[Median]]","v":365946.2},{"$f":"(((AAMC_Raw_Data_for_FY22[[#This Row],[75th]]-AAMC_Raw_Data_for_FY22[[#This Row],[Median]])/25)*10) + AAMC_Raw_Data_for_FY22[[#This Row],[Median]]","v":378056.4},{"$f":"(((AAMC_Raw_Data_for_FY22[[#This Row],[75th]]-AAMC_Raw_Data_for_FY22[[#This Row],[Median]])/25)*15) + AAMC_Raw_Data_for_FY22[[#This Row],[Median]]","v":390166.6},{"$f":"(((AAMC_Raw_Data_for_FY22[[#This Row],[75th]]-AAMC_Raw_Data_for_FY22[[#This Row],[Median]])/25)*20) + AAMC_Raw_Data_for_FY22[[#This Row],[Median]]","v":402276.8},414387,{"$f":"(((AAMC_Raw_Data_for_FY22[[#This Row],[75th]]-AAMC_Raw_Data_for_FY22[[#This Row],[Median]])/25)*30) + AAMC_Raw_Data_for_FY22[[#This Row],[Median]]","v":426497.2},{"$f":"(((AAMC_Raw_Data_for_FY22[[#This Row],[75th]]-AAMC_Raw_Data_for_FY22[[#This Row],[Median]])/25)*35) + AAMC_Raw_Data_for_FY22[[#This Row],[Median]]","v":438607.4},{"$f":"(((AAMC_Raw_Data_for_FY22[[#This Row],[75th]]-AAMC_Raw_Data_for_FY22[[#This Row],[Median]])/25)*40) + AAMC_Raw_Data_for_FY22[[#This Row],[Median]]","v":450717.6}]
[{"$f":"AAMC_Raw_Data_for_FY22[[#This Row],[Source]]&AAMC_Raw_Data_for_FY22[[#This Row],[Type]]&AAMC_Raw_Data_for_FY22[[#This Row],[School Subset]]&AAMC_Raw_Data_for_FY22[[#This Row],[Rank]]&AAMC_Raw_Data_for_FY22[[#This Row],[Degree]]&AAMC_Raw_Data_for_FY22[[#This Row],[Department / Specialty]]&\"L\"","v":"AAMCAcademicAllAssociateMDOB/GYN: Gynecologic OncologyL"},"OB/GYN: Gynecologic Oncology",3,"AAMC","Academic","All","Associate","MD","2021-2022",377023,{"$f":"(((AAMC_Raw_Data_for_FY22[[#This Row],[Median]]-AAMC_Raw_Data_for_FY22[[#This Row],[25th]])/25)*5) + AAMC_Raw_Data_for_FY22[[#This Row],[25th]]","v":385018.4},{"$f":"(((AAMC_Raw_Data_for_FY22[[#This Row],[Median]]-AAMC_Raw_Data_for_FY22[[#This Row],[25th]])/25)*10) + AAMC_Raw_Data_for_FY22[[#This Row],[25th]]","v":393013.8},{"$f":"(((AAMC_Raw_Data_for_FY22[[#This Row],[Median]]-AAMC_Raw_Data_for_FY22[[#This Row],[25th]])/25)*15) + AAMC_Raw_Data_for_FY22[[#This Row],[25th]]","v":401009.2},{"$f":"(((AAMC_Raw_Data_for_FY22[[#This Row],[Median]]-AAMC_Raw_Data_for_FY22[[#This Row],[25th]])/25)*20) + AAMC_Raw_Data_for_FY22[[#This Row],[25th]]","v":409004.6},417000,{"$f":"(((AAMC_Raw_Data_for_FY22[[#This Row],[75th]]-AAMC_Raw_Data_for_FY22[[#This Row],[Median]])/25)*5) + AAMC_Raw_Data_for_FY22[[#This Row],[Median]]","v":435331.8},{"$f":"(((AAMC_Raw_Data_for_FY22[[#This Row],[75th]]-AAMC_Raw_Data_for_FY22[[#This Row],[Median]])/25)*10) + AAMC_Raw_Data_for_FY22[[#This Row],[Median]]","v":453663.6},{"$f":"(((AAMC_Raw_Data_for_FY22[[#This Row],[75th]]-AAMC_Raw_Data_for_FY22[[#This Row],[Median]])/25)*15) + AAMC_Raw_Data_for_FY22[[#This Row],[Median]]","v":471995.4},{"$f":"(((AAMC_Raw_Data_for_FY22[[#This Row],[75th]]-AAMC_Raw_Data_for_FY22[[#This Row],[Median]])/25)*20) + AAMC_Raw_Data_for_FY22[[#This Row],[Median]]","v":490327.2},508659,{"$f":"(((AAMC_Raw_Data_for_FY22[[#This Row],[75th]]-AAMC_Raw_Data_for_FY22[[#This Row],[Median]])/25)*30) + AAMC_Raw_Data_for_FY22[[#This Row],[Median]]","v":526990.80000000005},{"$f":"(((AAMC_Raw_Data_for_FY22[[#This Row],[75th]]-AAMC_Raw_Data_for_FY22[[#This Row],[Median]])/25)*35) + AAMC_Raw_Data_for_FY22[[#This Row],[Median]]","v":545322.6},{"$f":"(((AAMC_Raw_Data_for_FY22[[#This Row],[75th]]-AAMC_Raw_Data_for_FY22[[#This Row],[Median]])/25)*40) + AAMC_Raw_Data_for_FY22[[#This Row],[Median]]","v":563654.40000000002}]
[{"$f":"AAMC_Raw_Data_for_FY22[[#This Row],[Source]]&AAMC_Raw_Data_for_FY22[[#This Row],[Type]]&AAMC_Raw_Data_for_FY22[[#This Row],[School Subset]]&AAMC_Raw_Data_for_FY22[[#This Row],[Rank]]&AAMC_Raw_Data_for_FY22[[#This Row],[Degree]]&AAMC_Raw_Data_for_FY22[[#This Row],[Department / Specialty]]&\"L\"","v":"AAMCAcademicAllProfessorMDOB/GYN: Gynecologic OncologyL"},"OB/GYN: Gynecologic Oncology",2,"AAMC","Academic","All","Professor","MD","2021-2022",421099,{"$f":"(((AAMC_Raw_Data_for_FY22[[#This Row],[Median]]-AAMC_Raw_Data_for_FY22[[#This Row],[25th]])/25)*5) + AAMC_Raw_Data_for_FY22[[#This Row],[25th]]","v":433442.2},{"$f":"(((AAMC_Raw_Data_for_FY22[[#This Row],[Median]]-AAMC_Raw_Data_for_FY22[[#This Row],[25th]])/25)*10) + AAMC_Raw_Data_for_FY22[[#This Row],[25th]]","v":445785.4},{"$f":"(((AAMC_Raw_Data_for_FY22[[#This Row],[Median]]-AAMC_Raw_Data_for_FY22[[#This Row],[25th]])/25)*15) + AAMC_Raw_Data_for_FY22[[#This Row],[25th]]","v":458128.6},{"$f":"(((AAMC_Raw_Data_for_FY22[[#This Row],[Median]]-AAMC_Raw_Data_for_FY22[[#This Row],[25th]])/25)*20) + AAMC_Raw_Data_for_FY22[[#This Row],[25th]]","v":470471.8},482815,{"$f":"(((AAMC_Raw_Data_for_FY22[[#This Row],[75th]]-AAMC_Raw_Data_for_FY22[[#This Row],[Median]])/25)*5) + AAMC_Raw_Data_for_FY22[[#This Row],[Median]]","v":507938},{"$f":"(((AAMC_Raw_Data_for_FY22[[#This Row],[75th]]-AAMC_Raw_Data_for_FY22[[#This Row],[Median]])/25)*10) + AAMC_Raw_Data_for_FY22[[#This Row],[Median]]","v":533061},{"$f":"(((AAMC_Raw_Data_for_FY22[[#This Row],[75th]]-AAMC_Raw_Data_for_FY22[[#This Row],[Median]])/25)*15) + AAMC_Raw_Data_for_FY22[[#This Row],[Median]]","v":558184},{"$f":"(((AAMC_Raw_Data_for_FY22[[#This Row],[75th]]-AAMC_Raw_Data_for_FY22[[#This Row],[Median]])/25)*20) + AAMC_Raw_Data_for_FY22[[#This Row],[Median]]","v":583307},608430,{"$f":"(((AAMC_Raw_Data_for_FY22[[#This Row],[75th]]-AAMC_Raw_Data_for_FY22[[#This Row],[Median]])/25)*30) + AAMC_Raw_Data_for_FY22[[#This Row],[Median]]","v":633553},{"$f":"(((AAMC_Raw_Data_for_FY22[[#This Row],[75th]]-AAMC_Raw_Data_for_FY22[[#This Row],[Median]])/25)*35) + AAMC_Raw_Data_for_FY22[[#This Row],[Median]]","v":658676},{"$f":"(((AAMC_Raw_Data_for_FY22[[#This Row],[75th]]-AAMC_Raw_Data_for_FY22[[#This Row],[Median]])/25)*40) + AAMC_Raw_Data_for_FY22[[#This Row],[Median]]","v":683799}]
[{"$f":"AAMC_Raw_Data_for_FY22[[#This Row],[Source]]&AAMC_Raw_Data_for_FY22[[#This Row],[Type]]&AAMC_Raw_Data_for_FY22[[#This Row],[School Subset]]&AAMC_Raw_Data_for_FY22[[#This Row],[Rank]]&AAMC_Raw_Data_for_FY22[[#This Row],[Degree]]&AAMC_Raw_Data_for_FY22[[#This Row],[Department / Specialty]]&\"L\"","v":"AAMCAcademicAllChiefMDOB/GYN: Gynecologic OncologyL"},"OB/GYN: Gynecologic Oncology",6,"AAMC","Academic","All","Chief","MD","2021-2022",472894,{"$f":"(((AAMC_Raw_Data_for_FY22[[#This Row],[Median]]-AAMC_Raw_Data_for_FY22[[#This Row],[25th]])/25)*5) + AAMC_Raw_Data_for_FY22[[#This Row],[25th]]","v":485317.8},{"$f":"(((AAMC_Raw_Data_for_FY22[[#This Row],[Median]]-AAMC_Raw_Data_for_FY22[[#This Row],[25th]])/25)*10) + AAMC_Raw_Data_for_FY22[[#This Row],[25th]]","v":497741.6},{"$f":"(((AAMC_Raw_Data_for_FY22[[#This Row],[Median]]-AAMC_Raw_Data_for_FY22[[#This Row],[25th]])/25)*15) + AAMC_Raw_Data_for_FY22[[#This Row],[25th]]","v":510165.4},{"$f":"(((AAMC_Raw_Data_for_FY22[[#This Row],[Median]]-AAMC_Raw_Data_for_FY22[[#This Row],[25th]])/25)*20) + AAMC_Raw_Data_for_FY22[[#This Row],[25th]]","v":522589.2},535013,{"$f":"(((AAMC_Raw_Data_for_FY22[[#This Row],[75th]]-AAMC_Raw_Data_for_FY22[[#This Row],[Median]])/25)*5) + AAMC_Raw_Data_for_FY22[[#This Row],[Median]]","v":557765.4},{"$f":"(((AAMC_Raw_Data_for_FY22[[#This Row],[75th]]-AAMC_Raw_Data_for_FY22[[#This Row],[Median]])/25)*10) + AAMC_Raw_Data_for_FY22[[#This Row],[Median]]","v":580517.80000000005},{"$f":"(((AAMC_Raw_Data_for_FY22[[#This Row],[75th]]-AAMC_Raw_Data_for_FY22[[#This Row],[Median]])/25)*15) + AAMC_Raw_Data_for_FY22[[#This Row],[Median]]","v":603270.19999999995},{"$f":"(((AAMC_Raw_Data_for_FY22[[#This Row],[75th]]-AAMC_Raw_Data_for_FY22[[#This Row],[Median]])/25)*20) + AAMC_Raw_Data_for_FY22[[#This Row],[Median]]","v":626022.6},648775,{"$f":"(((AAMC_Raw_Data_for_FY22[[#This Row],[75th]]-AAMC_Raw_Data_for_FY22[[#This Row],[Median]])/25)*30) + AAMC_Raw_Data_for_FY22[[#This Row],[Median]]","v":671527.4},{"$f":"(((AAMC_Raw_Data_for_FY22[[#This Row],[75th]]-AAMC_Raw_Data_for_FY22[[#This Row],[Median]])/25)*35) + AAMC_Raw_Data_for_FY22[[#This Row],[Median]]","v":694279.8},{"$f":"(((AAMC_Raw_Data_for_FY22[[#This Row],[75th]]-AAMC_Raw_Data_for_FY22[[#This Row],[Median]])/25)*40) + AAMC_Raw_Data_for_FY22[[#This Row],[Median]]","v":717032.2}]
[{"$f":"AAMC_Raw_Data_for_FY22[[#This Row],[Source]]&AAMC_Raw_Data_for_FY22[[#This Row],[Type]]&AAMC_Raw_Data_for_FY22[[#This Row],[School Subset]]&AAMC_Raw_Data_for_FY22[[#This Row],[Rank]]&AAMC_Raw_Data_for_FY22[[#This Row],[Degree]]&AAMC_Raw_Data_for_FY22[[#This Row],[Department / Specialty]]&\"L\"","v":"AAMCAcademicAllChairMDOB/GYN: Gynecologic OncologyL"},"OB/GYN: Gynecologic Oncology",1,"AAMC","Academic","All","Chair","MD","2021-2022",637000,{"$f":"(((AAMC_Raw_Data_for_FY22[[#This Row],[Median]]-AAMC_Raw_Data_for_FY22[[#This Row],[25th]])/25)*5) + AAMC_Raw_Data_for_FY22[[#This Row],[25th]]","v":643412.6},{"$f":"(((AAMC_Raw_Data_for_FY22[[#This Row],[Median]]-AAMC_Raw_Data_for_FY22[[#This Row],[25th]])/25)*10) + AAMC_Raw_Data_for_FY22[[#This Row],[25th]]","v":649825.19999999995},{"$f":"(((AAMC_Raw_Data_for_FY22[[#This Row],[Median]]-AAMC_Raw_Data_for_FY22[[#This Row],[25th]])/25)*15) + AAMC_Raw_Data_for_FY22[[#This Row],[25th]]","v":656237.80000000005},{"$f":"(((AAMC_Raw_Data_for_FY22[[#This Row],[Median]]-AAMC_Raw_Data_for_FY22[[#This Row],[25th]])/25)*20) + AAMC_Raw_Data_for_FY22[[#This Row],[25th]]","v":662650.4},669063,{"$f":"(((AAMC_Raw_Data_for_FY22[[#This Row],[75th]]-AAMC_Raw_Data_for_FY22[[#This Row],[Median]])/25)*5) + AAMC_Raw_Data_for_FY22[[#This Row],[Median]]","v":697250.4},{"$f":"(((AAMC_Raw_Data_for_FY22[[#This Row],[75th]]-AAMC_Raw_Data_for_FY22[[#This Row],[Median]])/25)*10) + AAMC_Raw_Data_for_FY22[[#This Row],[Median]]","v":725437.8},{"$f":"(((AAMC_Raw_Data_for_FY22[[#This Row],[75th]]-AAMC_Raw_Data_for_FY22[[#This Row],[Median]])/25)*15) + AAMC_Raw_Data_for_FY22[[#This Row],[Median]]","v":753625.2},{"$f":"(((AAMC_Raw_Data_for_FY22[[#This Row],[75th]]-AAMC_Raw_Data_for_FY22[[#This Row],[Median]])/25)*20) + AAMC_Raw_Data_for_FY22[[#This Row],[Median]]","v":781812.6},810000,{"$f":"(((AAMC_Raw_Data_for_FY22[[#This Row],[75th]]-AAMC_Raw_Data_for_FY22[[#This Row],[Median]])/25)*30) + AAMC_Raw_Data_for_FY22[[#This Row],[Median]]","v":838187.4},{"$f":"(((AAMC_Raw_Data_for_FY22[[#This Row],[75th]]-AAMC_Raw_Data_for_FY22[[#This Row],[Median]])/25)*35) + AAMC_Raw_Data_for_FY22[[#This Row],[Median]]","v":866374.8},{"$f":"(((AAMC_Raw_Data_for_FY22[[#This Row],[75th]]-AAMC_Raw_Data_for_FY22[[#This Row],[Median]])/25)*40) + AAMC_Raw_Data_for_FY22[[#This Row],[Median]]","v":894562.2}]
[{"$f":"AAMC_Raw_Data_for_FY22[[#This Row],[Source]]&AAMC_Raw_Data_for_FY22[[#This Row],[Type]]&AAMC_Raw_Data_for_FY22[[#This Row],[School Subset]]&AAMC_Raw_Data_for_FY22[[#This Row],[Rank]]&AAMC_Raw_Data_for_FY22[[#This Row],[Degree]]&AAMC_Raw_Data_for_FY22[[#This Row],[Department / Specialty]]&\"L\"","v":"AAMCAcademicAllInstructorMDOB/GYN: Maternal & FetalL"},"OB/GYN: Maternal & Fetal",5,"AAMC","Academic","All","Instructor","MD","2021-2022",97460,{"$f":"(((AAMC_Raw_Data_for_FY22[[#This Row],[Median]]-AAMC_Raw_Data_for_FY22[[#This Row],[25th]])/25)*5) + AAMC_Raw_Data_for_FY22[[#This Row],[25th]]","v":131168},{"$f":"(((AAMC_Raw_Data_for_FY22[[#This Row],[Median]]-AAMC_Raw_Data_for_FY22[[#This Row],[25th]])/25)*10) + AAMC_Raw_Data_for_FY22[[#This Row],[25th]]","v":164876},{"$f":"(((AAMC_Raw_Data_for_FY22[[#This Row],[Median]]-AAMC_Raw_Data_for_FY22[[#This Row],[25th]])/25)*15) + AAMC_Raw_Data_for_FY22[[#This Row],[25th]]","v":198584},{"$f":"(((AAMC_Raw_Data_for_FY22[[#This Row],[Median]]-AAMC_Raw_Data_for_FY22[[#This Row],[25th]])/25)*20) + AAMC_Raw_Data_for_FY22[[#This Row],[25th]]","v":232292},266000,{"$f":"(((AAMC_Raw_Data_for_FY22[[#This Row],[75th]]-AAMC_Raw_Data_for_FY22[[#This Row],[Median]])/25)*5) + AAMC_Raw_Data_for_FY22[[#This Row],[Median]]","v":287800},{"$f":"(((AAMC_Raw_Data_for_FY22[[#This Row],[75th]]-AAMC_Raw_Data_for_FY22[[#This Row],[Median]])/25)*10) + AAMC_Raw_Data_for_FY22[[#This Row],[Median]]","v":309600},{"$f":"(((AAMC_Raw_Data_for_FY22[[#This Row],[75th]]-AAMC_Raw_Data_for_FY22[[#This Row],[Median]])/25)*15) + AAMC_Raw_Data_for_FY22[[#This Row],[Median]]","v":331400},{"$f":"(((AAMC_Raw_Data_for_FY22[[#This Row],[75th]]-AAMC_Raw_Data_for_FY22[[#This Row],[Median]])/25)*20) + AAMC_Raw_Data_for_FY22[[#This Row],[Median]]","v":353200},375000,{"$f":"(((AAMC_Raw_Data_for_FY22[[#This Row],[75th]]-AAMC_Raw_Data_for_FY22[[#This Row],[Median]])/25)*30) + AAMC_Raw_Data_for_FY22[[#This Row],[Median]]","v":396800},{"$f":"(((AAMC_Raw_Data_for_FY22[[#This Row],[75th]]-AAMC_Raw_Data_for_FY22[[#This Row],[Median]])/25)*35) + AAMC_Raw_Data_for_FY22[[#This Row],[Median]]","v":418600},{"$f":"(((AAMC_Raw_Data_for_FY22[[#This Row],[75th]]-AAMC_Raw_Data_for_FY22[[#This Row],[Median]])/25)*40) + AAMC_Raw_Data_for_FY22[[#This Row],[Median]]","v":440400}]
[{"$f":"AAMC_Raw_Data_for_FY22[[#This Row],[Source]]&AAMC_Raw_Data_for_FY22[[#This Row],[Type]]&AAMC_Raw_Data_for_FY22[[#This Row],[School Subset]]&AAMC_Raw_Data_for_FY22[[#This Row],[Rank]]&AAMC_Raw_Data_for_FY22[[#This Row],[Degree]]&AAMC_Raw_Data_for_FY22[[#This Row],[Department / Specialty]]&\"L\"","v":"AAMCAcademicAllAssistantMDOB/GYN: Maternal & FetalL"},"OB/GYN: Maternal & Fetal",4,"AAMC","Academic","All","Assistant","MD","2021-2022",338000,{"$f":"(((AAMC_Raw_Data_for_FY22[[#This Row],[Median]]-AAMC_Raw_Data_for_FY22[[#This Row],[25th]])/25)*5) + AAMC_Raw_Data_for_FY22[[#This Row],[25th]]","v":346813.8},{"$f":"(((AAMC_Raw_Data_for_FY22[[#This Row],[Median]]-AAMC_Raw_Data_for_FY22[[#This Row],[25th]])/25)*10) + AAMC_Raw_Data_for_FY22[[#This Row],[25th]]","v":355627.6},{"$f":"(((AAMC_Raw_Data_for_FY22[[#This Row],[Median]]-AAMC_Raw_Data_for_FY22[[#This Row],[25th]])/25)*15) + AAMC_Raw_Data_for_FY22[[#This Row],[25th]]","v":364441.4},{"$f":"(((AAMC_Raw_Data_for_FY22[[#This Row],[Median]]-AAMC_Raw_Data_for_FY22[[#This Row],[25th]])/25)*20) + AAMC_Raw_Data_for_FY22[[#This Row],[25th]]","v":373255.2},382069,{"$f":"(((AAMC_Raw_Data_for_FY22[[#This Row],[75th]]-AAMC_Raw_Data_for_FY22[[#This Row],[Median]])/25)*5) + AAMC_Raw_Data_for_FY22[[#This Row],[Median]]","v":394277.2},{"$f":"(((AAMC_Raw_Data_for_FY22[[#This Row],[75th]]-AAMC_Raw_Data_for_FY22[[#This Row],[Median]])/25)*10) + AAMC_Raw_Data_for_FY22[[#This Row],[Median]]","v":406485.4},{"$f":"(((AAMC_Raw_Data_for_FY22[[#This Row],[75th]]-AAMC_Raw_Data_for_FY22[[#This Row],[Median]])/25)*15) + AAMC_Raw_Data_for_FY22[[#This Row],[Median]]","v":418693.6},{"$f":"(((AAMC_Raw_Data_for_FY22[[#This Row],[75th]]-AAMC_Raw_Data_for_FY22[[#This Row],[Median]])/25)*20) + AAMC_Raw_Data_for_FY22[[#This Row],[Median]]","v":430901.8},443110,{"$f":"(((AAMC_Raw_Data_for_FY22[[#This Row],[75th]]-AAMC_Raw_Data_for_FY22[[#This Row],[Median]])/25)*30) + AAMC_Raw_Data_for_FY22[[#This Row],[Median]]","v":455318.2},{"$f":"(((AAMC_Raw_Data_for_FY22[[#This Row],[75th]]-AAMC_Raw_Data_for_FY22[[#This Row],[Median]])/25)*35) + AAMC_Raw_Data_for_FY22[[#This Row],[Median]]","v":467526.40000000002},{"$f":"(((AAMC_Raw_Data_for_FY22[[#This Row],[75th]]-AAMC_Raw_Data_for_FY22[[#This Row],[Median]])/25)*40) + AAMC_Raw_Data_for_FY22[[#This Row],[Median]]","v":479734.6}]
[{"$f":"AAMC_Raw_Data_for_FY22[[#This Row],[Source]]&AAMC_Raw_Data_for_FY22[[#This Row],[Type]]&AAMC_Raw_Data_for_FY22[[#This Row],[School Subset]]&AAMC_Raw_Data_for_FY22[[#This Row],[Rank]]&AAMC_Raw_Data_for_FY22[[#This Row],[Degree]]&AAMC_Raw_Data_for_FY22[[#This Row],[Department / Specialty]]&\"L\"","v":"AAMCAcademicAllAssociateMDOB/GYN: Maternal & FetalL"},"OB/GYN: Maternal & Fetal",3,"AAMC","Academic","All","Associate","MD","2021-2022",402368,{"$f":"(((AAMC_Raw_Data_for_FY22[[#This Row],[Median]]-AAMC_Raw_Data_for_FY22[[#This Row],[25th]])/25)*5) + AAMC_Raw_Data_for_FY22[[#This Row],[25th]]","v":413667.6},{"$f":"(((AAMC_Raw_Data_for_FY22[[#This Row],[Median]]-AAMC_Raw_Data_for_FY22[[#This Row],[25th]])/25)*10) + AAMC_Raw_Data_for_FY22[[#This Row],[25th]]","v":424967.2},{"$f":"(((AAMC_Raw_Data_for_FY22[[#This Row],[Median]]-AAMC_Raw_Data_for_FY22[[#This Row],[25th]])/25)*15) + AAMC_Raw_Data_for_FY22[[#This Row],[25th]]","v":436266.8},{"$f":"(((AAMC_Raw_Data_for_FY22[[#This Row],[Median]]-AAMC_Raw_Data_for_FY22[[#This Row],[25th]])/25)*20) + AAMC_Raw_Data_for_FY22[[#This Row],[25th]]","v":447566.4},458866,{"$f":"(((AAMC_Raw_Data_for_FY22[[#This Row],[75th]]-AAMC_Raw_Data_for_FY22[[#This Row],[Median]])/25)*5) + AAMC_Raw_Data_for_FY22[[#This Row],[Median]]","v":473292.79999999999},{"$f":"(((AAMC_Raw_Data_for_FY22[[#This Row],[75th]]-AAMC_Raw_Data_for_FY22[[#This Row],[Median]])/25)*10) + AAMC_Raw_Data_for_FY22[[#This Row],[Median]]","v":487719.6},{"$f":"(((AAMC_Raw_Data_for_FY22[[#This Row],[75th]]-AAMC_Raw_Data_for_FY22[[#This Row],[Median]])/25)*15) + AAMC_Raw_Data_for_FY22[[#This Row],[Median]]","v":502146.4},{"$f":"(((AAMC_Raw_Data_for_FY22[[#This Row],[75th]]-AAMC_Raw_Data_for_FY22[[#This Row],[Median]])/25)*20) + AAMC_Raw_Data_for_FY22[[#This Row],[Median]]","v":516573.2},531000,{"$f":"(((AAMC_Raw_Data_for_FY22[[#This Row],[75th]]-AAMC_Raw_Data_for_FY22[[#This Row],[Median]])/25)*30) + AAMC_Raw_Data_for_FY22[[#This Row],[Median]]","v":545426.80000000005},{"$f":"(((AAMC_Raw_Data_for_FY22[[#This Row],[75th]]-AAMC_Raw_Data_for_FY22[[#This Row],[Median]])/25)*35) + AAMC_Raw_Data_for_FY22[[#This Row],[Median]]","v":559853.6},{"$f":"(((AAMC_Raw_Data_for_FY22[[#This Row],[75th]]-AAMC_Raw_Data_for_FY22[[#This Row],[Median]])/25)*40) + AAMC_Raw_Data_for_FY22[[#This Row],[Median]]","v":574280.4}]
[{"$f":"AAMC_Raw_Data_for_FY22[[#This Row],[Source]]&AAMC_Raw_Data_for_FY22[[#This Row],[Type]]&AAMC_Raw_Data_for_FY22[[#This Row],[School Subset]]&AAMC_Raw_Data_for_FY22[[#This Row],[Rank]]&AAMC_Raw_Data_for_FY22[[#This Row],[Degree]]&AAMC_Raw_Data_for_FY22[[#This Row],[Department / Specialty]]&\"L\"","v":"AAMCAcademicAllProfessorMDOB/GYN: Maternal & FetalL"},"OB/GYN: Maternal & Fetal",2,"AAMC","Academic","All","Professor","MD","2021-2022",399673,{"$f":"(((AAMC_Raw_Data_for_FY22[[#This Row],[Median]]-AAMC_Raw_Data_for_FY22[[#This Row],[25th]])/25)*5) + AAMC_Raw_Data_for_FY22[[#This Row],[25th]]","v":414454.6},{"$f":"(((AAMC_Raw_Data_for_FY22[[#This Row],[Median]]-AAMC_Raw_Data_for_FY22[[#This Row],[25th]])/25)*10) + AAMC_Raw_Data_for_FY22[[#This Row],[25th]]","v":429236.2},{"$f":"(((AAMC_Raw_Data_for_FY22[[#This Row],[Median]]-AAMC_Raw_Data_for_FY22[[#This Row],[25th]])/25)*15) + AAMC_Raw_Data_for_FY22[[#This Row],[25th]]","v":444017.8},{"$f":"(((AAMC_Raw_Data_for_FY22[[#This Row],[Median]]-AAMC_Raw_Data_for_FY22[[#This Row],[25th]])/25)*20) + AAMC_Raw_Data_for_FY22[[#This Row],[25th]]","v":458799.4},473581,{"$f":"(((AAMC_Raw_Data_for_FY22[[#This Row],[75th]]-AAMC_Raw_Data_for_FY22[[#This Row],[Median]])/25)*5) + AAMC_Raw_Data_for_FY22[[#This Row],[Median]]","v":495300.4},{"$f":"(((AAMC_Raw_Data_for_FY22[[#This Row],[75th]]-AAMC_Raw_Data_for_FY22[[#This Row],[Median]])/25)*10) + AAMC_Raw_Data_for_FY22[[#This Row],[Median]]","v":517019.8},{"$f":"(((AAMC_Raw_Data_for_FY22[[#This Row],[75th]]-AAMC_Raw_Data_for_FY22[[#This Row],[Median]])/25)*15) + AAMC_Raw_Data_for_FY22[[#This Row],[Median]]","v":538739.19999999995},{"$f":"(((AAMC_Raw_Data_for_FY22[[#This Row],[75th]]-AAMC_Raw_Data_for_FY22[[#This Row],[Median]])/25)*20) + AAMC_Raw_Data_for_FY22[[#This Row],[Median]]","v":560458.6},582178,{"$f":"(((AAMC_Raw_Data_for_FY22[[#This Row],[75th]]-AAMC_Raw_Data_for_FY22[[#This Row],[Median]])/25)*30) + AAMC_Raw_Data_for_FY22[[#This Row],[Median]]","v":603897.4},{"$f":"(((AAMC_Raw_Data_for_FY22[[#This Row],[75th]]-AAMC_Raw_Data_for_FY22[[#This Row],[Median]])/25)*35) + AAMC_Raw_Data_for_FY22[[#This Row],[Median]]","v":625616.80000000005},{"$f":"(((AAMC_Raw_Data_for_FY22[[#This Row],[75th]]-AAMC_Raw_Data_for_FY22[[#This Row],[Median]])/25)*40) + AAMC_Raw_Data_for_FY22[[#This Row],[Median]]","v":647336.19999999995}]
[{"$f":"AAMC_Raw_Data_for_FY22[[#This Row],[Source]]&AAMC_Raw_Data_for_FY22[[#This Row],[Type]]&AAMC_Raw_Data_for_FY22[[#This Row],[School Subset]]&AAMC_Raw_Data_for_FY22[[#This Row],[Rank]]&AAMC_Raw_Data_for_FY22[[#This Row],[Degree]]&AAMC_Raw_Data_for_FY22[[#This Row],[Department / Specialty]]&\"L\"","v":"AAMCAcademicAllChiefMDOB/GYN: Maternal & FetalL"},"OB/GYN: Maternal & Fetal",6,"AAMC","Academic","All","Chief","MD","2021-2022",446875,{"$f":"(((AAMC_Raw_Data_for_FY22[[#This Row],[Median]]-AAMC_Raw_Data_for_FY22[[#This Row],[25th]])/25)*5) + AAMC_Raw_Data_for_FY22[[#This Row],[25th]]","v":457963},{"$f":"(((AAMC_Raw_Data_for_FY22[[#This Row],[Median]]-AAMC_Raw_Data_for_FY22[[#This Row],[25th]])/25)*10) + AAMC_Raw_Data_for_FY22[[#This Row],[25th]]","v":469051},{"$f":"(((AAMC_Raw_Data_for_FY22[[#This Row],[Median]]-AAMC_Raw_Data_for_FY22[[#This Row],[25th]])/25)*15) + AAMC_Raw_Data_for_FY22[[#This Row],[25th]]","v":480139},{"$f":"(((AAMC_Raw_Data_for_FY22[[#This Row],[Median]]-AAMC_Raw_Data_for_FY22[[#This Row],[25th]])/25)*20) + AAMC_Raw_Data_for_FY22[[#This Row],[25th]]","v":491227},502315,{"$f":"(((AAMC_Raw_Data_for_FY22[[#This Row],[75th]]-AAMC_Raw_Data_for_FY22[[#This Row],[Median]])/25)*5) + AAMC_Raw_Data_for_FY22[[#This Row],[Median]]","v":515091.4},{"$f":"(((AAMC_Raw_Data_for_FY22[[#This Row],[75th]]-AAMC_Raw_Data_for_FY22[[#This Row],[Median]])/25)*10) + AAMC_Raw_Data_for_FY22[[#This Row],[Median]]","v":527867.80000000005},{"$f":"(((AAMC_Raw_Data_for_FY22[[#This Row],[75th]]-AAMC_Raw_Data_for_FY22[[#This Row],[Median]])/25)*15) + AAMC_Raw_Data_for_FY22[[#This Row],[Median]]","v":540644.19999999995},{"$f":"(((AAMC_Raw_Data_for_FY22[[#This Row],[75th]]-AAMC_Raw_Data_for_FY22[[#This Row],[Median]])/25)*20) + AAMC_Raw_Data_for_FY22[[#This Row],[Median]]","v":553420.6},566197,{"$f":"(((AAMC_Raw_Data_for_FY22[[#This Row],[75th]]-AAMC_Raw_Data_for_FY22[[#This Row],[Median]])/25)*30) + AAMC_Raw_Data_for_FY22[[#This Row],[Median]]","v":578973.4},{"$f":"(((AAMC_Raw_Data_for_FY22[[#This Row],[75th]]-AAMC_Raw_Data_for_FY22[[#This Row],[Median]])/25)*35) + AAMC_Raw_Data_for_FY22[[#This Row],[Median]]","v":591749.80000000005},{"$f":"(((AAMC_Raw_Data_for_FY22[[#This Row],[75th]]-AAMC_Raw_Data_for_FY22[[#This Row],[Median]])/25)*40) + AAMC_Raw_Data_for_FY22[[#This Row],[Median]]","v":604526.19999999995}]
[{"$f":"AAMC_Raw_Data_for_FY22[[#This Row],[Source]]&AAMC_Raw_Data_for_FY22[[#This Row],[Type]]&AAMC_Raw_Data_for_FY22[[#This Row],[School Subset]]&AAMC_Raw_Data_for_FY22[[#This Row],[Rank]]&AAMC_Raw_Data_for_FY22[[#This Row],[Degree]]&AAMC_Raw_Data_for_FY22[[#This Row],[Department / Specialty]]&\"L\"","v":"AAMCAcademicAllChairMDOB/GYN: Maternal & FetalL"},"OB/GYN: Maternal & Fetal",1,"AAMC","Academic","All","Chair","MD","2021-2022",539688,{"$f":"(((AAMC_Raw_Data_for_FY22[[#This Row],[Median]]-AAMC_Raw_Data_for_FY22[[#This Row],[25th]])/25)*5) + AAMC_Raw_Data_for_FY22[[#This Row],[25th]]","v":558321.19999999995},{"$f":"(((AAMC_Raw_Data_for_FY22[[#This Row],[Median]]-AAMC_Raw_Data_for_FY22[[#This Row],[25th]])/25)*10) + AAMC_Raw_Data_for_FY22[[#This Row],[25th]]","v":576954.4},{"$f":"(((AAMC_Raw_Data_for_FY22[[#This Row],[Median]]-AAMC_Raw_Data_for_FY22[[#This Row],[25th]])/25)*15) + AAMC_Raw_Data_for_FY22[[#This Row],[25th]]","v":595587.6},{"$f":"(((AAMC_Raw_Data_for_FY22[[#This Row],[Median]]-AAMC_Raw_Data_for_FY22[[#This Row],[25th]])/25)*20) + AAMC_Raw_Data_for_FY22[[#This Row],[25th]]","v":614220.80000000005},632854,{"$f":"(((AAMC_Raw_Data_for_FY22[[#This Row],[75th]]-AAMC_Raw_Data_for_FY22[[#This Row],[Median]])/25)*5) + AAMC_Raw_Data_for_FY22[[#This Row],[Median]]","v":643123.80000000005},{"$f":"(((AAMC_Raw_Data_for_FY22[[#This Row],[75th]]-AAMC_Raw_Data_for_FY22[[#This Row],[Median]])/25)*10) + AAMC_Raw_Data_for_FY22[[#This Row],[Median]]","v":653393.6},{"$f":"(((AAMC_Raw_Data_for_FY22[[#This Row],[75th]]-AAMC_Raw_Data_for_FY22[[#This Row],[Median]])/25)*15) + AAMC_Raw_Data_for_FY22[[#This Row],[Median]]","v":663663.4},{"$f":"(((AAMC_Raw_Data_for_FY22[[#This Row],[75th]]-AAMC_Raw_Data_for_FY22[[#This Row],[Median]])/25)*20) + AAMC_Raw_Data_for_FY22[[#This Row],[Median]]","v":673933.2},684203,{"$f":"(((AAMC_Raw_Data_for_FY22[[#This Row],[75th]]-AAMC_Raw_Data_for_FY22[[#This Row],[Median]])/25)*30) + AAMC_Raw_Data_for_FY22[[#This Row],[Median]]","v":694472.8},{"$f":"(((AAMC_Raw_Data_for_FY22[[#This Row],[75th]]-AAMC_Raw_Data_for_FY22[[#This Row],[Median]])/25)*35) + AAMC_Raw_Data_for_FY22[[#This Row],[Median]]","v":704742.6},{"$f":"(((AAMC_Raw_Data_for_FY22[[#This Row],[75th]]-AAMC_Raw_Data_for_FY22[[#This Row],[Median]])/25)*40) + AAMC_Raw_Data_for_FY22[[#This Row],[Median]]","v":715012.4}]
[{"$f":"AAMC_Raw_Data_for_FY22[[#This Row],[Source]]&AAMC_Raw_Data_for_FY22[[#This Row],[Type]]&AAMC_Raw_Data_for_FY22[[#This Row],[School Subset]]&AAMC_Raw_Data_for_FY22[[#This Row],[Rank]]&AAMC_Raw_Data_for_FY22[[#This Row],[Degree]]&AAMC_Raw_Data_for_FY22[[#This Row],[Department / Specialty]]&\"L\"","v":"AAMCAcademicAllInstructorMDOB/GYN: Reproductive EndocrinologyL"},"OB/GYN: Reproductive Endocrinology",5,"AAMC","Academic","All","Instructor","MD","2021-2022",null,{"$f":"(((AAMC_Raw_Data_for_FY22[[#This Row],[Median]]-AAMC_Raw_Data_for_FY22[[#This Row],[25th]])/25)*5) + AAMC_Raw_Data_for_FY22[[#This Row],[25th]]","v":0},{"$f":"(((AAMC_Raw_Data_for_FY22[[#This Row],[Median]]-AAMC_Raw_Data_for_FY22[[#This Row],[25th]])/25)*10) + AAMC_Raw_Data_for_FY22[[#This Row],[25th]]","v":0},{"$f":"(((AAMC_Raw_Data_for_FY22[[#This Row],[Median]]-AAMC_Raw_Data_for_FY22[[#This Row],[25th]])/25)*15) + AAMC_Raw_Data_for_FY22[[#This Row],[25th]]","v":0},{"$f":"(((AAMC_Raw_Data_for_FY22[[#This Row],[Median]]-AAMC_Raw_Data_for_FY22[[#This Row],[25th]])/25)*20) + AAMC_Raw_Data_for_FY22[[#This Row],[25th]]","v":0},null,{"$f":"(((AAMC_Raw_Data_for_FY22[[#This Row],[75th]]-AAMC_Raw_Data_for_FY22[[#This Row],[Median]])/25)*5) + AAMC_Raw_Data_for_FY22[[#This Row],[Median]]","v":0},{"$f":"(((AAMC_Raw_Data_for_FY22[[#This Row],[75th]]-AAMC_Raw_Data_for_FY22[[#This Row],[Median]])/25)*10) + AAMC_Raw_Data_for_FY22[[#This Row],[Median]]","v":0},{"$f":"(((AAMC_Raw_Data_for_FY22[[#This Row],[75th]]-AAMC_Raw_Data_for_FY22[[#This Row],[Median]])/25)*15) + AAMC_Raw_Data_for_FY22[[#This Row],[Median]]","v":0},{"$f":"(((AAMC_Raw_Data_for_FY22[[#This Row],[75th]]-AAMC_Raw_Data_for_FY22[[#This Row],[Median]])/25)*20) + AAMC_Raw_Data_for_FY22[[#This Row],[Median]]","v":0},null,{"$f":"(((AAMC_Raw_Data_for_FY22[[#This Row],[75th]]-AAMC_Raw_Data_for_FY22[[#This Row],[Median]])/25)*30) + AAMC_Raw_Data_for_FY22[[#This Row],[Median]]","v":0},{"$f":"(((AAMC_Raw_Data_for_FY22[[#This Row],[75th]]-AAMC_Raw_Data_for_FY22[[#This Row],[Median]])/25)*35) + AAMC_Raw_Data_for_FY22[[#This Row],[Median]]","v":0},{"$f":"(((AAMC_Raw_Data_for_FY22[[#This Row],[75th]]-AAMC_Raw_Data_for_FY22[[#This Row],[Median]])/25)*40) + AAMC_Raw_Data_for_FY22[[#This Row],[Median]]","v":0}]
[{"$f":"AAMC_Raw_Data_for_FY22[[#This Row],[Source]]&AAMC_Raw_Data_for_FY22[[#This Row],[Type]]&AAMC_Raw_Data_for_FY22[[#This Row],[School Subset]]&AAMC_Raw_Data_for_FY22[[#This Row],[Rank]]&AAMC_Raw_Data_for_FY22[[#This Row],[Degree]]&AAMC_Raw_Data_for_FY22[[#This Row],[Department / Specialty]]&\"L\"","v":"AAMCAcademicAllAssistantMDOB/GYN: Reproductive EndocrinologyL"},"OB/GYN: Reproductive Endocrinology",4,"AAMC","Academic","All","Assistant","MD","2021-2022",277000,{"$f":"(((AAMC_Raw_Data_for_FY22[[#This Row],[Median]]-AAMC_Raw_Data_for_FY22[[#This Row],[25th]])/25)*5) + AAMC_Raw_Data_for_FY22[[#This Row],[25th]]","v":287143.59999999998},{"$f":"(((AAMC_Raw_Data_for_FY22[[#This Row],[Median]]-AAMC_Raw_Data_for_FY22[[#This Row],[25th]])/25)*10) + AAMC_Raw_Data_for_FY22[[#This Row],[25th]]","v":297287.2},{"$f":"(((AAMC_Raw_Data_for_FY22[[#This Row],[Median]]-AAMC_Raw_Data_for_FY22[[#This Row],[25th]])/25)*15) + AAMC_Raw_Data_for_FY22[[#This Row],[25th]]","v":307430.8},{"$f":"(((AAMC_Raw_Data_for_FY22[[#This Row],[Median]]-AAMC_Raw_Data_for_FY22[[#This Row],[25th]])/25)*20) + AAMC_Raw_Data_for_FY22[[#This Row],[25th]]","v":317574.40000000002},327718,{"$f":"(((AAMC_Raw_Data_for_FY22[[#This Row],[75th]]-AAMC_Raw_Data_for_FY22[[#This Row],[Median]])/25)*5) + AAMC_Raw_Data_for_FY22[[#This Row],[Median]]","v":360045.4},{"$f":"(((AAMC_Raw_Data_for_FY22[[#This Row],[75th]]-AAMC_Raw_Data_for_FY22[[#This Row],[Median]])/25)*10) + AAMC_Raw_Data_for_FY22[[#This Row],[Median]]","v":392372.8},{"$f":"(((AAMC_Raw_Data_for_FY22[[#This Row],[75th]]-AAMC_Raw_Data_for_FY22[[#This Row],[Median]])/25)*15) + AAMC_Raw_Data_for_FY22[[#This Row],[Median]]","v":424700.2},{"$f":"(((AAMC_Raw_Data_for_FY22[[#This Row],[75th]]-AAMC_Raw_Data_for_FY22[[#This Row],[Median]])/25)*20) + AAMC_Raw_Data_for_FY22[[#This Row],[Median]]","v":457027.6},489355,{"$f":"(((AAMC_Raw_Data_for_FY22[[#This Row],[75th]]-AAMC_Raw_Data_for_FY22[[#This Row],[Median]])/25)*30) + AAMC_Raw_Data_for_FY22[[#This Row],[Median]]","v":521682.4},{"$f":"(((AAMC_Raw_Data_for_FY22[[#This Row],[75th]]-AAMC_Raw_Data_for_FY22[[#This Row],[Median]])/25)*35) + AAMC_Raw_Data_for_FY22[[#This Row],[Median]]","v":554009.80000000005},{"$f":"(((AAMC_Raw_Data_for_FY22[[#This Row],[75th]]-AAMC_Raw_Data_for_FY22[[#This Row],[Median]])/25)*40) + AAMC_Raw_Data_for_FY22[[#This Row],[Median]]","v":586337.19999999995}]
[{"$f":"AAMC_Raw_Data_for_FY22[[#This Row],[Source]]&AAMC_Raw_Data_for_FY22[[#This Row],[Type]]&AAMC_Raw_Data_for_FY22[[#This Row],[School Subset]]&AAMC_Raw_Data_for_FY22[[#This Row],[Rank]]&AAMC_Raw_Data_for_FY22[[#This Row],[Degree]]&AAMC_Raw_Data_for_FY22[[#This Row],[Department / Specialty]]&\"L\"","v":"AAMCAcademicAllAssociateMDOB/GYN: Reproductive EndocrinologyL"},"OB/GYN: Reproductive Endocrinology",3,"AAMC","Academic","All","Associate","MD","2021-2022",357610,{"$f":"(((AAMC_Raw_Data_for_FY22[[#This Row],[Median]]-AAMC_Raw_Data_for_FY22[[#This Row],[25th]])/25)*5) + AAMC_Raw_Data_for_FY22[[#This Row],[25th]]","v":389338},{"$f":"(((AAMC_Raw_Data_for_FY22[[#This Row],[Median]]-AAMC_Raw_Data_for_FY22[[#This Row],[25th]])/25)*10) + AAMC_Raw_Data_for_FY22[[#This Row],[25th]]","v":421066},{"$f":"(((AAMC_Raw_Data_for_FY22[[#This Row],[Median]]-AAMC_Raw_Data_for_FY22[[#This Row],[25th]])/25)*15) + AAMC_Raw_Data_for_FY22[[#This Row],[25th]]","v":452794},{"$f":"(((AAMC_Raw_Data_for_FY22[[#This Row],[Median]]-AAMC_Raw_Data_for_FY22[[#This Row],[25th]])/25)*20) + AAMC_Raw_Data_for_FY22[[#This Row],[25th]]","v":484522},516250,{"$f":"(((AAMC_Raw_Data_for_FY22[[#This Row],[75th]]-AAMC_Raw_Data_for_FY22[[#This Row],[Median]])/25)*5) + AAMC_Raw_Data_for_FY22[[#This Row],[Median]]","v":588347.4},{"$f":"(((AAMC_Raw_Data_for_FY22[[#This Row],[75th]]-AAMC_Raw_Data_for_FY22[[#This Row],[Median]])/25)*10) + AAMC_Raw_Data_for_FY22[[#This Row],[Median]]","v":660444.80000000005},{"$f":"(((AAMC_Raw_Data_for_FY22[[#This Row],[75th]]-AAMC_Raw_Data_for_FY22[[#This Row],[Median]])/25)*15) + AAMC_Raw_Data_for_FY22[[#This Row],[Median]]","v":732542.2},{"$f":"(((AAMC_Raw_Data_for_FY22[[#This Row],[75th]]-AAMC_Raw_Data_for_FY22[[#This Row],[Median]])/25)*20) + AAMC_Raw_Data_for_FY22[[#This Row],[Median]]","v":804639.6},876737,{"$f":"(((AAMC_Raw_Data_for_FY22[[#This Row],[75th]]-AAMC_Raw_Data_for_FY22[[#This Row],[Median]])/25)*30) + AAMC_Raw_Data_for_FY22[[#This Row],[Median]]","v":948834.39999999991},{"$f":"(((AAMC_Raw_Data_for_FY22[[#This Row],[75th]]-AAMC_Raw_Data_for_FY22[[#This Row],[Median]])/25)*35) + AAMC_Raw_Data_for_FY22[[#This Row],[Median]]","v":1020931.8},{"$f":"(((AAMC_Raw_Data_for_FY22[[#This Row],[75th]]-AAMC_Raw_Data_for_FY22[[#This Row],[Median]])/25)*40) + AAMC_Raw_Data_for_FY22[[#This Row],[Median]]","v":1093029.2}]
[{"$f":"AAMC_Raw_Data_for_FY22[[#This Row],[Source]]&AAMC_Raw_Data_for_FY22[[#This Row],[Type]]&AAMC_Raw_Data_for_FY22[[#This Row],[School Subset]]&AAMC_Raw_Data_for_FY22[[#This Row],[Rank]]&AAMC_Raw_Data_for_FY22[[#This Row],[Degree]]&AAMC_Raw_Data_for_FY22[[#This Row],[Department / Specialty]]&\"L\"","v":"AAMCAcademicAllProfessorMDOB/GYN: Reproductive EndocrinologyL"},"OB/GYN: Reproductive Endocrinology",2,"AAMC","Academic","All","Professor","MD","2021-2022",349894,{"$f":"(((AAMC_Raw_Data_for_FY22[[#This Row],[Median]]-AAMC_Raw_Data_for_FY22[[#This Row],[25th]])/25)*5) + AAMC_Raw_Data_for_FY22[[#This Row],[25th]]","v":362371.8},{"$f":"(((AAMC_Raw_Data_for_FY22[[#This Row],[Median]]-AAMC_Raw_Data_for_FY22[[#This Row],[25th]])/25)*10) + AAMC_Raw_Data_for_FY22[[#This Row],[25th]]","v":374849.6},{"$f":"(((AAMC_Raw_Data_for_FY22[[#This Row],[Median]]-AAMC_Raw_Data_for_FY22[[#This Row],[25th]])/25)*15) + AAMC_Raw_Data_for_FY22[[#This Row],[25th]]","v":387327.4},{"$f":"(((AAMC_Raw_Data_for_FY22[[#This Row],[Median]]-AAMC_Raw_Data_for_FY22[[#This Row],[25th]])/25)*20) + AAMC_Raw_Data_for_FY22[[#This Row],[25th]]","v":399805.2},412283,{"$f":"(((AAMC_Raw_Data_for_FY22[[#This Row],[75th]]-AAMC_Raw_Data_for_FY22[[#This Row],[Median]])/25)*5) + AAMC_Raw_Data_for_FY22[[#This Row],[Median]]","v":426042},{"$f":"(((AAMC_Raw_Data_for_FY22[[#This Row],[75th]]-AAMC_Raw_Data_for_FY22[[#This Row],[Median]])/25)*10) + AAMC_Raw_Data_for_FY22[[#This Row],[Median]]","v":439801},{"$f":"(((AAMC_Raw_Data_for_FY22[[#This Row],[75th]]-AAMC_Raw_Data_for_FY22[[#This Row],[Median]])/25)*15) + AAMC_Raw_Data_for_FY22[[#This Row],[Median]]","v":453560},{"$f":"(((AAMC_Raw_Data_for_FY22[[#This Row],[75th]]-AAMC_Raw_Data_for_FY22[[#This Row],[Median]])/25)*20) + AAMC_Raw_Data_for_FY22[[#This Row],[Median]]","v":467319},481078,{"$f":"(((AAMC_Raw_Data_for_FY22[[#This Row],[75th]]-AAMC_Raw_Data_for_FY22[[#This Row],[Median]])/25)*30) + AAMC_Raw_Data_for_FY22[[#This Row],[Median]]","v":494837},{"$f":"(((AAMC_Raw_Data_for_FY22[[#This Row],[75th]]-AAMC_Raw_Data_for_FY22[[#This Row],[Median]])/25)*35) + AAMC_Raw_Data_for_FY22[[#This Row],[Median]]","v":508596},{"$f":"(((AAMC_Raw_Data_for_FY22[[#This Row],[75th]]-AAMC_Raw_Data_for_FY22[[#This Row],[Median]])/25)*40) + AAMC_Raw_Data_for_FY22[[#This Row],[Median]]","v":522355}]
[{"$f":"AAMC_Raw_Data_for_FY22[[#This Row],[Source]]&AAMC_Raw_Data_for_FY22[[#This Row],[Type]]&AAMC_Raw_Data_for_FY22[[#This Row],[School Subset]]&AAMC_Raw_Data_for_FY22[[#This Row],[Rank]]&AAMC_Raw_Data_for_FY22[[#This Row],[Degree]]&AAMC_Raw_Data_for_FY22[[#This Row],[Department / Specialty]]&\"L\"","v":"AAMCAcademicAllChiefMDOB/GYN: Reproductive EndocrinologyL"},"OB/GYN: Reproductive Endocrinology",6,"AAMC","Academic","All","Chief","MD","2021-2022",367052,{"$f":"(((AAMC_Raw_Data_for_FY22[[#This Row],[Median]]-AAMC_Raw_Data_for_FY22[[#This Row],[25th]])/25)*5) + AAMC_Raw_Data_for_FY22[[#This Row],[25th]]","v":377595.2},{"$f":"(((AAMC_Raw_Data_for_FY22[[#This Row],[Median]]-AAMC_Raw_Data_for_FY22[[#This Row],[25th]])/25)*10) + AAMC_Raw_Data_for_FY22[[#This Row],[25th]]","v":388138.4},{"$f":"(((AAMC_Raw_Data_for_FY22[[#This Row],[Median]]-AAMC_Raw_Data_for_FY22[[#This Row],[25th]])/25)*15) + AAMC_Raw_Data_for_FY22[[#This Row],[25th]]","v":398681.59999999998},{"$f":"(((AAMC_Raw_Data_for_FY22[[#This Row],[Median]]-AAMC_Raw_Data_for_FY22[[#This Row],[25th]])/25)*20) + AAMC_Raw_Data_for_FY22[[#This Row],[25th]]","v":409224.8},419768,{"$f":"(((AAMC_Raw_Data_for_FY22[[#This Row],[75th]]-AAMC_Raw_Data_for_FY22[[#This Row],[Median]])/25)*5) + AAMC_Raw_Data_for_FY22[[#This Row],[Median]]","v":433153.8},{"$f":"(((AAMC_Raw_Data_for_FY22[[#This Row],[75th]]-AAMC_Raw_Data_for_FY22[[#This Row],[Median]])/25)*10) + AAMC_Raw_Data_for_FY22[[#This Row],[Median]]","v":446539.6},{"$f":"(((AAMC_Raw_Data_for_FY22[[#This Row],[75th]]-AAMC_Raw_Data_for_FY22[[#This Row],[Median]])/25)*15) + AAMC_Raw_Data_for_FY22[[#This Row],[Median]]","v":459925.4},{"$f":"(((AAMC_Raw_Data_for_FY22[[#This Row],[75th]]-AAMC_Raw_Data_for_FY22[[#This Row],[Median]])/25)*20) + AAMC_Raw_Data_for_FY22[[#This Row],[Median]]","v":473311.2},486697,{"$f":"(((AAMC_Raw_Data_for_FY22[[#This Row],[75th]]-AAMC_Raw_Data_for_FY22[[#This Row],[Median]])/25)*30) + AAMC_Raw_Data_for_FY22[[#This Row],[Median]]","v":500082.8},{"$f":"(((AAMC_Raw_Data_for_FY22[[#This Row],[75th]]-AAMC_Raw_Data_for_FY22[[#This Row],[Median]])/25)*35) + AAMC_Raw_Data_for_FY22[[#This Row],[Median]]","v":513468.6},{"$f":"(((AAMC_Raw_Data_for_FY22[[#This Row],[75th]]-AAMC_Raw_Data_for_FY22[[#This Row],[Median]])/25)*40) + AAMC_Raw_Data_for_FY22[[#This Row],[Median]]","v":526854.40000000002}]
[{"$f":"AAMC_Raw_Data_for_FY22[[#This Row],[Source]]&AAMC_Raw_Data_for_FY22[[#This Row],[Type]]&AAMC_Raw_Data_for_FY22[[#This Row],[School Subset]]&AAMC_Raw_Data_for_FY22[[#This Row],[Rank]]&AAMC_Raw_Data_for_FY22[[#This Row],[Degree]]&AAMC_Raw_Data_for_FY22[[#This Row],[Department / Specialty]]&\"L\"","v":"AAMCAcademicAllChairMDOB/GYN: Reproductive EndocrinologyL"},"OB/GYN: Reproductive Endocrinology",1,"AAMC","Academic","All","Chair","MD","2021-2022",650000,{"$f":"(((AAMC_Raw_Data_for_FY22[[#This Row],[Median]]-AAMC_Raw_Data_for_FY22[[#This Row],[25th]])/25)*5) + AAMC_Raw_Data_for_FY22[[#This Row],[25th]]","v":654872.6},{"$f":"(((AAMC_Raw_Data_for_FY22[[#This Row],[Median]]-AAMC_Raw_Data_for_FY22[[#This Row],[25th]])/25)*10) + AAMC_Raw_Data_for_FY22[[#This Row],[25th]]","v":659745.19999999995},{"$f":"(((AAMC_Raw_Data_for_FY22[[#This Row],[Median]]-AAMC_Raw_Data_for_FY22[[#This Row],[25th]])/25)*15) + AAMC_Raw_Data_for_FY22[[#This Row],[25th]]","v":664617.80000000005},{"$f":"(((AAMC_Raw_Data_for_FY22[[#This Row],[Median]]-AAMC_Raw_Data_for_FY22[[#This Row],[25th]])/25)*20) + AAMC_Raw_Data_for_FY22[[#This Row],[25th]]","v":669490.4},674363,{"$f":"(((AAMC_Raw_Data_for_FY22[[#This Row],[75th]]-AAMC_Raw_Data_for_FY22[[#This Row],[Median]])/25)*5) + AAMC_Raw_Data_for_FY22[[#This Row],[Median]]","v":714490.4},{"$f":"(((AAMC_Raw_Data_for_FY22[[#This Row],[75th]]-AAMC_Raw_Data_for_FY22[[#This Row],[Median]])/25)*10) + AAMC_Raw_Data_for_FY22[[#This Row],[Median]]","v":754617.8},{"$f":"(((AAMC_Raw_Data_for_FY22[[#This Row],[75th]]-AAMC_Raw_Data_for_FY22[[#This Row],[Median]])/25)*15) + AAMC_Raw_Data_for_FY22[[#This Row],[Median]]","v":794745.2},{"$f":"(((AAMC_Raw_Data_for_FY22[[#This Row],[75th]]-AAMC_Raw_Data_for_FY22[[#This Row],[Median]])/25)*20) + AAMC_Raw_Data_for_FY22[[#This Row],[Median]]","v":834872.6},875000,{"$f":"(((AAMC_Raw_Data_for_FY22[[#This Row],[75th]]-AAMC_Raw_Data_for_FY22[[#This Row],[Median]])/25)*30) + AAMC_Raw_Data_for_FY22[[#This Row],[Median]]","v":915127.4},{"$f":"(((AAMC_Raw_Data_for_FY22[[#This Row],[75th]]-AAMC_Raw_Data_for_FY22[[#This Row],[Median]])/25)*35) + AAMC_Raw_Data_for_FY22[[#This Row],[Median]]","v":955254.8},{"$f":"(((AAMC_Raw_Data_for_FY22[[#This Row],[75th]]-AAMC_Raw_Data_for_FY22[[#This Row],[Median]])/25)*40) + AAMC_Raw_Data_for_FY22[[#This Row],[Median]]","v":995382.2}]
[{"$f":"AAMC_Raw_Data_for_FY22[[#This Row],[Source]]&AAMC_Raw_Data_for_FY22[[#This Row],[Type]]&AAMC_Raw_Data_for_FY22[[#This Row],[School Subset]]&AAMC_Raw_Data_for_FY22[[#This Row],[Rank]]&AAMC_Raw_Data_for_FY22[[#This Row],[Degree]]&AAMC_Raw_Data_for_FY22[[#This Row],[Department / Specialty]]&\"L\"","v":"AAMCAcademicAllInstructorMDOB/GYN: Other OB/GYNL"},"OB/GYN: Other OB/GYN",5,"AAMC","Academic","All","Instructor","MD","2021-2022",68207,{"$f":"(((AAMC_Raw_Data_for_FY22[[#This Row],[Median]]-AAMC_Raw_Data_for_FY22[[#This Row],[25th]])/25)*5) + AAMC_Raw_Data_for_FY22[[#This Row],[25th]]","v":73766.600000000006},{"$f":"(((AAMC_Raw_Data_for_FY22[[#This Row],[Median]]-AAMC_Raw_Data_for_FY22[[#This Row],[25th]])/25)*10) + AAMC_Raw_Data_for_FY22[[#This Row],[25th]]","v":79326.2},{"$f":"(((AAMC_Raw_Data_for_FY22[[#This Row],[Median]]-AAMC_Raw_Data_for_FY22[[#This Row],[25th]])/25)*15) + AAMC_Raw_Data_for_FY22[[#This Row],[25th]]","v":84885.8},{"$f":"(((AAMC_Raw_Data_for_FY22[[#This Row],[Median]]-AAMC_Raw_Data_for_FY22[[#This Row],[25th]])/25)*20) + AAMC_Raw_Data_for_FY22[[#This Row],[25th]]","v":90445.4},96005,{"$f":"(((AAMC_Raw_Data_for_FY22[[#This Row],[75th]]-AAMC_Raw_Data_for_FY22[[#This Row],[Median]])/25)*5) + AAMC_Raw_Data_for_FY22[[#This Row],[Median]]","v":131004},{"$f":"(((AAMC_Raw_Data_for_FY22[[#This Row],[75th]]-AAMC_Raw_Data_for_FY22[[#This Row],[Median]])/25)*10) + AAMC_Raw_Data_for_FY22[[#This Row],[Median]]","v":166003},{"$f":"(((AAMC_Raw_Data_for_FY22[[#This Row],[75th]]-AAMC_Raw_Data_for_FY22[[#This Row],[Median]])/25)*15) + AAMC_Raw_Data_for_FY22[[#This Row],[Median]]","v":201002},{"$f":"(((AAMC_Raw_Data_for_FY22[[#This Row],[75th]]-AAMC_Raw_Data_for_FY22[[#This Row],[Median]])/25)*20) + AAMC_Raw_Data_for_FY22[[#This Row],[Median]]","v":236001},271000,{"$f":"(((AAMC_Raw_Data_for_FY22[[#This Row],[75th]]-AAMC_Raw_Data_for_FY22[[#This Row],[Median]])/25)*30) + AAMC_Raw_Data_for_FY22[[#This Row],[Median]]","v":305999},{"$f":"(((AAMC_Raw_Data_for_FY22[[#This Row],[75th]]-AAMC_Raw_Data_for_FY22[[#This Row],[Median]])/25)*35) + AAMC_Raw_Data_for_FY22[[#This Row],[Median]]","v":340998},{"$f":"(((AAMC_Raw_Data_for_FY22[[#This Row],[75th]]-AAMC_Raw_Data_for_FY22[[#This Row],[Median]])/25)*40) + AAMC_Raw_Data_for_FY22[[#This Row],[Median]]","v":375997}]
[{"$f":"AAMC_Raw_Data_for_FY22[[#This Row],[Source]]&AAMC_Raw_Data_for_FY22[[#This Row],[Type]]&AAMC_Raw_Data_for_FY22[[#This Row],[School Subset]]&AAMC_Raw_Data_for_FY22[[#This Row],[Rank]]&AAMC_Raw_Data_for_FY22[[#This Row],[Degree]]&AAMC_Raw_Data_for_FY22[[#This Row],[Department / Specialty]]&\"L\"","v":"AAMCAcademicAllAssistantMDOB/GYN: Other OB/GYNL"},"OB/GYN: Other OB/GYN",4,"AAMC","Academic","All","Assistant","MD","2021-2022",255642,{"$f":"(((AAMC_Raw_Data_for_FY22[[#This Row],[Median]]-AAMC_Raw_Data_for_FY22[[#This Row],[25th]])/25)*5) + AAMC_Raw_Data_for_FY22[[#This Row],[25th]]","v":262337.8},{"$f":"(((AAMC_Raw_Data_for_FY22[[#This Row],[Median]]-AAMC_Raw_Data_for_FY22[[#This Row],[25th]])/25)*10) + AAMC_Raw_Data_for_FY22[[#This Row],[25th]]","v":269033.59999999998},{"$f":"(((AAMC_Raw_Data_for_FY22[[#This Row],[Median]]-AAMC_Raw_Data_for_FY22[[#This Row],[25th]])/25)*15) + AAMC_Raw_Data_for_FY22[[#This Row],[25th]]","v":275729.40000000002},{"$f":"(((AAMC_Raw_Data_for_FY22[[#This Row],[Median]]-AAMC_Raw_Data_for_FY22[[#This Row],[25th]])/25)*20) + AAMC_Raw_Data_for_FY22[[#This Row],[25th]]","v":282425.2},289121,{"$f":"(((AAMC_Raw_Data_for_FY22[[#This Row],[75th]]-AAMC_Raw_Data_for_FY22[[#This Row],[Median]])/25)*5) + AAMC_Raw_Data_for_FY22[[#This Row],[Median]]","v":298329.40000000002},{"$f":"(((AAMC_Raw_Data_for_FY22[[#This Row],[75th]]-AAMC_Raw_Data_for_FY22[[#This Row],[Median]])/25)*10) + AAMC_Raw_Data_for_FY22[[#This Row],[Median]]","v":307537.8},{"$f":"(((AAMC_Raw_Data_for_FY22[[#This Row],[75th]]-AAMC_Raw_Data_for_FY22[[#This Row],[Median]])/25)*15) + AAMC_Raw_Data_for_FY22[[#This Row],[Median]]","v":316746.2},{"$f":"(((AAMC_Raw_Data_for_FY22[[#This Row],[75th]]-AAMC_Raw_Data_for_FY22[[#This Row],[Median]])/25)*20) + AAMC_Raw_Data_for_FY22[[#This Row],[Median]]","v":325954.59999999998},335163,{"$f":"(((AAMC_Raw_Data_for_FY22[[#This Row],[75th]]-AAMC_Raw_Data_for_FY22[[#This Row],[Median]])/25)*30) + AAMC_Raw_Data_for_FY22[[#This Row],[Median]]","v":344371.4},{"$f":"(((AAMC_Raw_Data_for_FY22[[#This Row],[75th]]-AAMC_Raw_Data_for_FY22[[#This Row],[Median]])/25)*35) + AAMC_Raw_Data_for_FY22[[#This Row],[Median]]","v":353579.8},{"$f":"(((AAMC_Raw_Data_for_FY22[[#This Row],[75th]]-AAMC_Raw_Data_for_FY22[[#This Row],[Median]])/25)*40) + AAMC_Raw_Data_for_FY22[[#This Row],[Median]]","v":362788.2}]
[{"$f":"AAMC_Raw_Data_for_FY22[[#This Row],[Source]]&AAMC_Raw_Data_for_FY22[[#This Row],[Type]]&AAMC_Raw_Data_for_FY22[[#This Row],[School Subset]]&AAMC_Raw_Data_for_FY22[[#This Row],[Rank]]&AAMC_Raw_Data_for_FY22[[#This Row],[Degree]]&AAMC_Raw_Data_for_FY22[[#This Row],[Department / Specialty]]&\"L\"","v":"AAMCAcademicAllAssociateMDOB/GYN: Other OB/GYNL"},"OB/GYN: Other OB/GYN",3,"AAMC","Academic","All","Associate","MD","2021-2022",303806,{"$f":"(((AAMC_Raw_Data_for_FY22[[#This Row],[Median]]-AAMC_Raw_Data_for_FY22[[#This Row],[25th]])/25)*5) + AAMC_Raw_Data_for_FY22[[#This Row],[25th]]","v":313381.2},{"$f":"(((AAMC_Raw_Data_for_FY22[[#This Row],[Median]]-AAMC_Raw_Data_for_FY22[[#This Row],[25th]])/25)*10) + AAMC_Raw_Data_for_FY22[[#This Row],[25th]]","v":322956.40000000002},{"$f":"(((AAMC_Raw_Data_for_FY22[[#This Row],[Median]]-AAMC_Raw_Data_for_FY22[[#This Row],[25th]])/25)*15) + AAMC_Raw_Data_for_FY22[[#This Row],[25th]]","v":332531.59999999998},{"$f":"(((AAMC_Raw_Data_for_FY22[[#This Row],[Median]]-AAMC_Raw_Data_for_FY22[[#This Row],[25th]])/25)*20) + AAMC_Raw_Data_for_FY22[[#This Row],[25th]]","v":342106.8},351682,{"$f":"(((AAMC_Raw_Data_for_FY22[[#This Row],[75th]]-AAMC_Raw_Data_for_FY22[[#This Row],[Median]])/25)*5) + AAMC_Raw_Data_for_FY22[[#This Row],[Median]]","v":368151},{"$f":"(((AAMC_Raw_Data_for_FY22[[#This Row],[75th]]-AAMC_Raw_Data_for_FY22[[#This Row],[Median]])/25)*10) + AAMC_Raw_Data_for_FY22[[#This Row],[Median]]","v":384620},{"$f":"(((AAMC_Raw_Data_for_FY22[[#This Row],[75th]]-AAMC_Raw_Data_for_FY22[[#This Row],[Median]])/25)*15) + AAMC_Raw_Data_for_FY22[[#This Row],[Median]]","v":401089},{"$f":"(((AAMC_Raw_Data_for_FY22[[#This Row],[75th]]-AAMC_Raw_Data_for_FY22[[#This Row],[Median]])/25)*20) + AAMC_Raw_Data_for_FY22[[#This Row],[Median]]","v":417558},434027,{"$f":"(((AAMC_Raw_Data_for_FY22[[#This Row],[75th]]-AAMC_Raw_Data_for_FY22[[#This Row],[Median]])/25)*30) + AAMC_Raw_Data_for_FY22[[#This Row],[Median]]","v":450496},{"$f":"(((AAMC_Raw_Data_for_FY22[[#This Row],[75th]]-AAMC_Raw_Data_for_FY22[[#This Row],[Median]])/25)*35) + AAMC_Raw_Data_for_FY22[[#This Row],[Median]]","v":466965},{"$f":"(((AAMC_Raw_Data_for_FY22[[#This Row],[75th]]-AAMC_Raw_Data_for_FY22[[#This Row],[Median]])/25)*40) + AAMC_Raw_Data_for_FY22[[#This Row],[Median]]","v":483434}]
[{"$f":"AAMC_Raw_Data_for_FY22[[#This Row],[Source]]&AAMC_Raw_Data_for_FY22[[#This Row],[Type]]&AAMC_Raw_Data_for_FY22[[#This Row],[School Subset]]&AAMC_Raw_Data_for_FY22[[#This Row],[Rank]]&AAMC_Raw_Data_for_FY22[[#This Row],[Degree]]&AAMC_Raw_Data_for_FY22[[#This Row],[Department / Specialty]]&\"L\"","v":"AAMCAcademicAllProfessorMDOB/GYN: Other OB/GYNL"},"OB/GYN: Other OB/GYN",2,"AAMC","Academic","All","Professor","MD","2021-2022",277530,{"$f":"(((AAMC_Raw_Data_for_FY22[[#This Row],[Median]]-AAMC_Raw_Data_for_FY22[[#This Row],[25th]])/25)*5) + AAMC_Raw_Data_for_FY22[[#This Row],[25th]]","v":291792.8},{"$f":"(((AAMC_Raw_Data_for_FY22[[#This Row],[Median]]-AAMC_Raw_Data_for_FY22[[#This Row],[25th]])/25)*10) + AAMC_Raw_Data_for_FY22[[#This Row],[25th]]","v":306055.59999999998},{"$f":"(((AAMC_Raw_Data_for_FY22[[#This Row],[Median]]-AAMC_Raw_Data_for_FY22[[#This Row],[25th]])/25)*15) + AAMC_Raw_Data_for_FY22[[#This Row],[25th]]","v":320318.40000000002},{"$f":"(((AAMC_Raw_Data_for_FY22[[#This Row],[Median]]-AAMC_Raw_Data_for_FY22[[#This Row],[25th]])/25)*20) + AAMC_Raw_Data_for_FY22[[#This Row],[25th]]","v":334581.2},348844,{"$f":"(((AAMC_Raw_Data_for_FY22[[#This Row],[75th]]-AAMC_Raw_Data_for_FY22[[#This Row],[Median]])/25)*5) + AAMC_Raw_Data_for_FY22[[#This Row],[Median]]","v":357406.8},{"$f":"(((AAMC_Raw_Data_for_FY22[[#This Row],[75th]]-AAMC_Raw_Data_for_FY22[[#This Row],[Median]])/25)*10) + AAMC_Raw_Data_for_FY22[[#This Row],[Median]]","v":365969.6},{"$f":"(((AAMC_Raw_Data_for_FY22[[#This Row],[75th]]-AAMC_Raw_Data_for_FY22[[#This Row],[Median]])/25)*15) + AAMC_Raw_Data_for_FY22[[#This Row],[Median]]","v":374532.4},{"$f":"(((AAMC_Raw_Data_for_FY22[[#This Row],[75th]]-AAMC_Raw_Data_for_FY22[[#This Row],[Median]])/25)*20) + AAMC_Raw_Data_for_FY22[[#This Row],[Median]]","v":383095.2},391658,{"$f":"(((AAMC_Raw_Data_for_FY22[[#This Row],[75th]]-AAMC_Raw_Data_for_FY22[[#This Row],[Median]])/25)*30) + AAMC_Raw_Data_for_FY22[[#This Row],[Median]]","v":400220.8},{"$f":"(((AAMC_Raw_Data_for_FY22[[#This Row],[75th]]-AAMC_Raw_Data_for_FY22[[#This Row],[Median]])/25)*35) + AAMC_Raw_Data_for_FY22[[#This Row],[Median]]","v":408783.6},{"$f":"(((AAMC_Raw_Data_for_FY22[[#This Row],[75th]]-AAMC_Raw_Data_for_FY22[[#This Row],[Median]])/25)*40) + AAMC_Raw_Data_for_FY22[[#This Row],[Median]]","v":417346.4}]
[{"$f":"AAMC_Raw_Data_for_FY22[[#This Row],[Source]]&AAMC_Raw_Data_for_FY22[[#This Row],[Type]]&AAMC_Raw_Data_for_FY22[[#This Row],[School Subset]]&AAMC_Raw_Data_for_FY22[[#This Row],[Rank]]&AAMC_Raw_Data_for_FY22[[#This Row],[Degree]]&AAMC_Raw_Data_for_FY22[[#This Row],[Department / Specialty]]&\"L\"","v":"AAMCAcademicAllChiefMDOB/GYN: Other OB/GYNL"},"OB/GYN: Other OB/GYN",6,"AAMC","Academic","All","Chief","MD","2021-2022",369255,{"$f":"(((AAMC_Raw_Data_for_FY22[[#This Row],[Median]]-AAMC_Raw_Data_for_FY22[[#This Row],[25th]])/25)*5) + AAMC_Raw_Data_for_FY22[[#This Row],[25th]]","v":379432.2},{"$f":"(((AAMC_Raw_Data_for_FY22[[#This Row],[Median]]-AAMC_Raw_Data_for_FY22[[#This Row],[25th]])/25)*10) + AAMC_Raw_Data_for_FY22[[#This Row],[25th]]","v":389609.4},{"$f":"(((AAMC_Raw_Data_for_FY22[[#This Row],[Median]]-AAMC_Raw_Data_for_FY22[[#This Row],[25th]])/25)*15) + AAMC_Raw_Data_for_FY22[[#This Row],[25th]]","v":399786.6},{"$f":"(((AAMC_Raw_Data_for_FY22[[#This Row],[Median]]-AAMC_Raw_Data_for_FY22[[#This Row],[25th]])/25)*20) + AAMC_Raw_Data_for_FY22[[#This Row],[25th]]","v":409963.8},420141,{"$f":"(((AAMC_Raw_Data_for_FY22[[#This Row],[75th]]-AAMC_Raw_Data_for_FY22[[#This Row],[Median]])/25)*5) + AAMC_Raw_Data_for_FY22[[#This Row],[Median]]","v":434848.8},{"$f":"(((AAMC_Raw_Data_for_FY22[[#This Row],[75th]]-AAMC_Raw_Data_for_FY22[[#This Row],[Median]])/25)*10) + AAMC_Raw_Data_for_FY22[[#This Row],[Median]]","v":449556.6},{"$f":"(((AAMC_Raw_Data_for_FY22[[#This Row],[75th]]-AAMC_Raw_Data_for_FY22[[#This Row],[Median]])/25)*15) + AAMC_Raw_Data_for_FY22[[#This Row],[Median]]","v":464264.4},{"$f":"(((AAMC_Raw_Data_for_FY22[[#This Row],[75th]]-AAMC_Raw_Data_for_FY22[[#This Row],[Median]])/25)*20) + AAMC_Raw_Data_for_FY22[[#This Row],[Median]]","v":478972.2},493680,{"$f":"(((AAMC_Raw_Data_for_FY22[[#This Row],[75th]]-AAMC_Raw_Data_for_FY22[[#This Row],[Median]])/25)*30) + AAMC_Raw_Data_for_FY22[[#This Row],[Median]]","v":508387.8},{"$f":"(((AAMC_Raw_Data_for_FY22[[#This Row],[75th]]-AAMC_Raw_Data_for_FY22[[#This Row],[Median]])/25)*35) + AAMC_Raw_Data_for_FY22[[#This Row],[Median]]","v":523095.6},{"$f":"(((AAMC_Raw_Data_for_FY22[[#This Row],[75th]]-AAMC_Raw_Data_for_FY22[[#This Row],[Median]])/25)*40) + AAMC_Raw_Data_for_FY22[[#This Row],[Median]]","v":537803.4}]
[{"$f":"AAMC_Raw_Data_for_FY22[[#This Row],[Source]]&AAMC_Raw_Data_for_FY22[[#This Row],[Type]]&AAMC_Raw_Data_for_FY22[[#This Row],[School Subset]]&AAMC_Raw_Data_for_FY22[[#This Row],[Rank]]&AAMC_Raw_Data_for_FY22[[#This Row],[Degree]]&AAMC_Raw_Data_for_FY22[[#This Row],[Department / Specialty]]&\"L\"","v":"AAMCAcademicAllChairMDOB/GYN: Other OB/GYNL"},"OB/GYN: Other OB/GYN",1,"AAMC","Academic","All","Chair","MD","2021-2022",569046,{"$f":"(((AAMC_Raw_Data_for_FY22[[#This Row],[Median]]-AAMC_Raw_Data_for_FY22[[#This Row],[25th]])/25)*5) + AAMC_Raw_Data_for_FY22[[#This Row],[25th]]","v":585554.19999999995},{"$f":"(((AAMC_Raw_Data_for_FY22[[#This Row],[Median]]-AAMC_Raw_Data_for_FY22[[#This Row],[25th]])/25)*10) + AAMC_Raw_Data_for_FY22[[#This Row],[25th]]","v":602062.4},{"$f":"(((AAMC_Raw_Data_for_FY22[[#This Row],[Median]]-AAMC_Raw_Data_for_FY22[[#This Row],[25th]])/25)*15) + AAMC_Raw_Data_for_FY22[[#This Row],[25th]]","v":618570.6},{"$f":"(((AAMC_Raw_Data_for_FY22[[#This Row],[Median]]-AAMC_Raw_Data_for_FY22[[#This Row],[25th]])/25)*20) + AAMC_Raw_Data_for_FY22[[#This Row],[25th]]","v":635078.80000000005},651587,{"$f":"(((AAMC_Raw_Data_for_FY22[[#This Row],[75th]]-AAMC_Raw_Data_for_FY22[[#This Row],[Median]])/25)*5) + AAMC_Raw_Data_for_FY22[[#This Row],[Median]]","v":677952.4},{"$f":"(((AAMC_Raw_Data_for_FY22[[#This Row],[75th]]-AAMC_Raw_Data_for_FY22[[#This Row],[Median]])/25)*10) + AAMC_Raw_Data_for_FY22[[#This Row],[Median]]","v":704317.8},{"$f":"(((AAMC_Raw_Data_for_FY22[[#This Row],[75th]]-AAMC_Raw_Data_for_FY22[[#This Row],[Median]])/25)*15) + AAMC_Raw_Data_for_FY22[[#This Row],[Median]]","v":730683.2},{"$f":"(((AAMC_Raw_Data_for_FY22[[#This Row],[75th]]-AAMC_Raw_Data_for_FY22[[#This Row],[Median]])/25)*20) + AAMC_Raw_Data_for_FY22[[#This Row],[Median]]","v":757048.6},783414,{"$f":"(((AAMC_Raw_Data_for_FY22[[#This Row],[75th]]-AAMC_Raw_Data_for_FY22[[#This Row],[Median]])/25)*30) + AAMC_Raw_Data_for_FY22[[#This Row],[Median]]","v":809779.4},{"$f":"(((AAMC_Raw_Data_for_FY22[[#This Row],[75th]]-AAMC_Raw_Data_for_FY22[[#This Row],[Median]])/25)*35) + AAMC_Raw_Data_for_FY22[[#This Row],[Median]]","v":836144.8},{"$f":"(((AAMC_Raw_Data_for_FY22[[#This Row],[75th]]-AAMC_Raw_Data_for_FY22[[#This Row],[Median]])/25)*40) + AAMC_Raw_Data_for_FY22[[#This Row],[Median]]","v":862510.2}]
[{"$f":"AAMC_Raw_Data_for_FY22[[#This Row],[Source]]&AAMC_Raw_Data_for_FY22[[#This Row],[Type]]&AAMC_Raw_Data_for_FY22[[#This Row],[School Subset]]&AAMC_Raw_Data_for_FY22[[#This Row],[Rank]]&AAMC_Raw_Data_for_FY22[[#This Row],[Degree]]&AAMC_Raw_Data_for_FY22[[#This Row],[Department / Specialty]]&\"L\"","v":"AAMCAcademicAllInstructorMDPathology TotalL"},"Pathology Total",5,"AAMC","Academic","All","Instructor","MD","2021-2022",87160,{"$f":"(((AAMC_Raw_Data_for_FY22[[#This Row],[Median]]-AAMC_Raw_Data_for_FY22[[#This Row],[25th]])/25)*5) + AAMC_Raw_Data_for_FY22[[#This Row],[25th]]","v":101371.2},{"$f":"(((AAMC_Raw_Data_for_FY22[[#This Row],[Median]]-AAMC_Raw_Data_for_FY22[[#This Row],[25th]])/25)*10) + AAMC_Raw_Data_for_FY22[[#This Row],[25th]]","v":115582.39999999999},{"$f":"(((AAMC_Raw_Data_for_FY22[[#This Row],[Median]]-AAMC_Raw_Data_for_FY22[[#This Row],[25th]])/25)*15) + AAMC_Raw_Data_for_FY22[[#This Row],[25th]]","v":129793.60000000001},{"$f":"(((AAMC_Raw_Data_for_FY22[[#This Row],[Median]]-AAMC_Raw_Data_for_FY22[[#This Row],[25th]])/25)*20) + AAMC_Raw_Data_for_FY22[[#This Row],[25th]]","v":144004.79999999999},158216,{"$f":"(((AAMC_Raw_Data_for_FY22[[#This Row],[75th]]-AAMC_Raw_Data_for_FY22[[#This Row],[Median]])/25)*5) + AAMC_Raw_Data_for_FY22[[#This Row],[Median]]","v":174177},{"$f":"(((AAMC_Raw_Data_for_FY22[[#This Row],[75th]]-AAMC_Raw_Data_for_FY22[[#This Row],[Median]])/25)*10) + AAMC_Raw_Data_for_FY22[[#This Row],[Median]]","v":190138},{"$f":"(((AAMC_Raw_Data_for_FY22[[#This Row],[75th]]-AAMC_Raw_Data_for_FY22[[#This Row],[Median]])/25)*15) + AAMC_Raw_Data_for_FY22[[#This Row],[Median]]","v":206099},{"$f":"(((AAMC_Raw_Data_for_FY22[[#This Row],[75th]]-AAMC_Raw_Data_for_FY22[[#This Row],[Median]])/25)*20) + AAMC_Raw_Data_for_FY22[[#This Row],[Median]]","v":222060},238021,{"$f":"(((AAMC_Raw_Data_for_FY22[[#This Row],[75th]]-AAMC_Raw_Data_for_FY22[[#This Row],[Median]])/25)*30) + AAMC_Raw_Data_for_FY22[[#This Row],[Median]]","v":253982},{"$f":"(((AAMC_Raw_Data_for_FY22[[#This Row],[75th]]-AAMC_Raw_Data_for_FY22[[#This Row],[Median]])/25)*35) + AAMC_Raw_Data_for_FY22[[#This Row],[Median]]","v":269943},{"$f":"(((AAMC_Raw_Data_for_FY22[[#This Row],[75th]]-AAMC_Raw_Data_for_FY22[[#This Row],[Median]])/25)*40) + AAMC_Raw_Data_for_FY22[[#This Row],[Median]]","v":285904}]
[{"$f":"AAMC_Raw_Data_for_FY22[[#This Row],[Source]]&AAMC_Raw_Data_for_FY22[[#This Row],[Type]]&AAMC_Raw_Data_for_FY22[[#This Row],[School Subset]]&AAMC_Raw_Data_for_FY22[[#This Row],[Rank]]&AAMC_Raw_Data_for_FY22[[#This Row],[Degree]]&AAMC_Raw_Data_for_FY22[[#This Row],[Department / Specialty]]&\"L\"","v":"AAMCAcademicAllAssistantMDPathology TotalL"},"Pathology Total",4,"AAMC","Academic","All","Assistant","MD","2021-2022",220000,{"$f":"(((AAMC_Raw_Data_for_FY22[[#This Row],[Median]]-AAMC_Raw_Data_for_FY22[[#This Row],[25th]])/25)*5) + AAMC_Raw_Data_for_FY22[[#This Row],[25th]]","v":224886},{"$f":"(((AAMC_Raw_Data_for_FY22[[#This Row],[Median]]-AAMC_Raw_Data_for_FY22[[#This Row],[25th]])/25)*10) + AAMC_Raw_Data_for_FY22[[#This Row],[25th]]","v":229772},{"$f":"(((AAMC_Raw_Data_for_FY22[[#This Row],[Median]]-AAMC_Raw_Data_for_FY22[[#This Row],[25th]])/25)*15) + AAMC_Raw_Data_for_FY22[[#This Row],[25th]]","v":234658},{"$f":"(((AAMC_Raw_Data_for_FY22[[#This Row],[Median]]-AAMC_Raw_Data_for_FY22[[#This Row],[25th]])/25)*20) + AAMC_Raw_Data_for_FY22[[#This Row],[25th]]","v":239544},244430,{"$f":"(((AAMC_Raw_Data_for_FY22[[#This Row],[75th]]-AAMC_Raw_Data_for_FY22[[#This Row],[Median]])/25)*5) + AAMC_Raw_Data_for_FY22[[#This Row],[Median]]","v":251114},{"$f":"(((AAMC_Raw_Data_for_FY22[[#This Row],[75th]]-AAMC_Raw_Data_for_FY22[[#This Row],[Median]])/25)*10) + AAMC_Raw_Data_for_FY22[[#This Row],[Median]]","v":257798},{"$f":"(((AAMC_Raw_Data_for_FY22[[#This Row],[75th]]-AAMC_Raw_Data_for_FY22[[#This Row],[Median]])/25)*15) + AAMC_Raw_Data_for_FY22[[#This Row],[Median]]","v":264482},{"$f":"(((AAMC_Raw_Data_for_FY22[[#This Row],[75th]]-AAMC_Raw_Data_for_FY22[[#This Row],[Median]])/25)*20) + AAMC_Raw_Data_for_FY22[[#This Row],[Median]]","v":271166},277850,{"$f":"(((AAMC_Raw_Data_for_FY22[[#This Row],[75th]]-AAMC_Raw_Data_for_FY22[[#This Row],[Median]])/25)*30) + AAMC_Raw_Data_for_FY22[[#This Row],[Median]]","v":284534},{"$f":"(((AAMC_Raw_Data_for_FY22[[#This Row],[75th]]-AAMC_Raw_Data_for_FY22[[#This Row],[Median]])/25)*35) + AAMC_Raw_Data_for_FY22[[#This Row],[Median]]","v":291218},{"$f":"(((AAMC_Raw_Data_for_FY22[[#This Row],[75th]]-AAMC_Raw_Data_for_FY22[[#This Row],[Median]])/25)*40) + AAMC_Raw_Data_for_FY22[[#This Row],[Median]]","v":297902}]
[{"$f":"AAMC_Raw_Data_for_FY22[[#This Row],[Source]]&AAMC_Raw_Data_for_FY22[[#This Row],[Type]]&AAMC_Raw_Data_for_FY22[[#This Row],[School Subset]]&AAMC_Raw_Data_for_FY22[[#This Row],[Rank]]&AAMC_Raw_Data_for_FY22[[#This Row],[Degree]]&AAMC_Raw_Data_for_FY22[[#This Row],[Department / Specialty]]&\"L\"","v":"AAMCAcademicAllAssociateMDPathology TotalL"},"Pathology Total",3,"AAMC","Academic","All","Associate","MD","2021-2022",261507,{"$f":"(((AAMC_Raw_Data_for_FY22[[#This Row],[Median]]-AAMC_Raw_Data_for_FY22[[#This Row],[25th]])/25)*5) + AAMC_Raw_Data_for_FY22[[#This Row],[25th]]","v":267755.2},{"$f":"(((AAMC_Raw_Data_for_FY22[[#This Row],[Median]]-AAMC_Raw_Data_for_FY22[[#This Row],[25th]])/25)*10) + AAMC_Raw_Data_for_FY22[[#This Row],[25th]]","v":274003.40000000002},{"$f":"(((AAMC_Raw_Data_for_FY22[[#This Row],[Median]]-AAMC_Raw_Data_for_FY22[[#This Row],[25th]])/25)*15) + AAMC_Raw_Data_for_FY22[[#This Row],[25th]]","v":280251.59999999998},{"$f":"(((AAMC_Raw_Data_for_FY22[[#This Row],[Median]]-AAMC_Raw_Data_for_FY22[[#This Row],[25th]])/25)*20) + AAMC_Raw_Data_for_FY22[[#This Row],[25th]]","v":286499.8},292748,{"$f":"(((AAMC_Raw_Data_for_FY22[[#This Row],[75th]]-AAMC_Raw_Data_for_FY22[[#This Row],[Median]])/25)*5) + AAMC_Raw_Data_for_FY22[[#This Row],[Median]]","v":299097.2},{"$f":"(((AAMC_Raw_Data_for_FY22[[#This Row],[75th]]-AAMC_Raw_Data_for_FY22[[#This Row],[Median]])/25)*10) + AAMC_Raw_Data_for_FY22[[#This Row],[Median]]","v":305446.40000000002},{"$f":"(((AAMC_Raw_Data_for_FY22[[#This Row],[75th]]-AAMC_Raw_Data_for_FY22[[#This Row],[Median]])/25)*15) + AAMC_Raw_Data_for_FY22[[#This Row],[Median]]","v":311795.59999999998},{"$f":"(((AAMC_Raw_Data_for_FY22[[#This Row],[75th]]-AAMC_Raw_Data_for_FY22[[#This Row],[Median]])/25)*20) + AAMC_Raw_Data_for_FY22[[#This Row],[Median]]","v":318144.8},324494,{"$f":"(((AAMC_Raw_Data_for_FY22[[#This Row],[75th]]-AAMC_Raw_Data_for_FY22[[#This Row],[Median]])/25)*30) + AAMC_Raw_Data_for_FY22[[#This Row],[Median]]","v":330843.2},{"$f":"(((AAMC_Raw_Data_for_FY22[[#This Row],[75th]]-AAMC_Raw_Data_for_FY22[[#This Row],[Median]])/25)*35) + AAMC_Raw_Data_for_FY22[[#This Row],[Median]]","v":337192.4},{"$f":"(((AAMC_Raw_Data_for_FY22[[#This Row],[75th]]-AAMC_Raw_Data_for_FY22[[#This Row],[Median]])/25)*40) + AAMC_Raw_Data_for_FY22[[#This Row],[Median]]","v":343541.6}]
[{"$f":"AAMC_Raw_Data_for_FY22[[#This Row],[Source]]&AAMC_Raw_Data_for_FY22[[#This Row],[Type]]&AAMC_Raw_Data_for_FY22[[#This Row],[School Subset]]&AAMC_Raw_Data_for_FY22[[#This Row],[Rank]]&AAMC_Raw_Data_for_FY22[[#This Row],[Degree]]&AAMC_Raw_Data_for_FY22[[#This Row],[Department / Specialty]]&\"L\"","v":"AAMCAcademicAllProfessorMDPathology TotalL"},"Pathology Total",2,"AAMC","Academic","All","Professor","MD","2021-2022",295291,{"$f":"(((AAMC_Raw_Data_for_FY22[[#This Row],[Median]]-AAMC_Raw_Data_for_FY22[[#This Row],[25th]])/25)*5) + AAMC_Raw_Data_for_FY22[[#This Row],[25th]]","v":306080},{"$f":"(((AAMC_Raw_Data_for_FY22[[#This Row],[Median]]-AAMC_Raw_Data_for_FY22[[#This Row],[25th]])/25)*10) + AAMC_Raw_Data_for_FY22[[#This Row],[25th]]","v":316869},{"$f":"(((AAMC_Raw_Data_for_FY22[[#This Row],[Median]]-AAMC_Raw_Data_for_FY22[[#This Row],[25th]])/25)*15) + AAMC_Raw_Data_for_FY22[[#This Row],[25th]]","v":327658},{"$f":"(((AAMC_Raw_Data_for_FY22[[#This Row],[Median]]-AAMC_Raw_Data_for_FY22[[#This Row],[25th]])/25)*20) + AAMC_Raw_Data_for_FY22[[#This Row],[25th]]","v":338447},349236,{"$f":"(((AAMC_Raw_Data_for_FY22[[#This Row],[75th]]-AAMC_Raw_Data_for_FY22[[#This Row],[Median]])/25)*5) + AAMC_Raw_Data_for_FY22[[#This Row],[Median]]","v":359269.2},{"$f":"(((AAMC_Raw_Data_for_FY22[[#This Row],[75th]]-AAMC_Raw_Data_for_FY22[[#This Row],[Median]])/25)*10) + AAMC_Raw_Data_for_FY22[[#This Row],[Median]]","v":369302.4},{"$f":"(((AAMC_Raw_Data_for_FY22[[#This Row],[75th]]-AAMC_Raw_Data_for_FY22[[#This Row],[Median]])/25)*15) + AAMC_Raw_Data_for_FY22[[#This Row],[Median]]","v":379335.6},{"$f":"(((AAMC_Raw_Data_for_FY22[[#This Row],[75th]]-AAMC_Raw_Data_for_FY22[[#This Row],[Median]])/25)*20) + AAMC_Raw_Data_for_FY22[[#This Row],[Median]]","v":389368.8},399402,{"$f":"(((AAMC_Raw_Data_for_FY22[[#This Row],[75th]]-AAMC_Raw_Data_for_FY22[[#This Row],[Median]])/25)*30) + AAMC_Raw_Data_for_FY22[[#This Row],[Median]]","v":409435.2},{"$f":"(((AAMC_Raw_Data_for_FY22[[#This Row],[75th]]-AAMC_Raw_Data_for_FY22[[#This Row],[Median]])/25)*35) + AAMC_Raw_Data_for_FY22[[#This Row],[Median]]","v":419468.4},{"$f":"(((AAMC_Raw_Data_for_FY22[[#This Row],[75th]]-AAMC_Raw_Data_for_FY22[[#This Row],[Median]])/25)*40) + AAMC_Raw_Data_for_FY22[[#This Row],[Median]]","v":429501.6}]
[{"$f":"AAMC_Raw_Data_for_FY22[[#This Row],[Source]]&AAMC_Raw_Data_for_FY22[[#This Row],[Type]]&AAMC_Raw_Data_for_FY22[[#This Row],[School Subset]]&AAMC_Raw_Data_for_FY22[[#This Row],[Rank]]&AAMC_Raw_Data_for_FY22[[#This Row],[Degree]]&AAMC_Raw_Data_for_FY22[[#This Row],[Department / Specialty]]&\"L\"","v":"AAMCAcademicAllChiefMDPathology TotalL"},"Pathology Total",6,"AAMC","Academic","All","Chief","MD","2021-2022",322879,{"$f":"(((AAMC_Raw_Data_for_FY22[[#This Row],[Median]]-AAMC_Raw_Data_for_FY22[[#This Row],[25th]])/25)*5) + AAMC_Raw_Data_for_FY22[[#This Row],[25th]]","v":336272.2},{"$f":"(((AAMC_Raw_Data_for_FY22[[#This Row],[Median]]-AAMC_Raw_Data_for_FY22[[#This Row],[25th]])/25)*10) + AAMC_Raw_Data_for_FY22[[#This Row],[25th]]","v":349665.4},{"$f":"(((AAMC_Raw_Data_for_FY22[[#This Row],[Median]]-AAMC_Raw_Data_for_FY22[[#This Row],[25th]])/25)*15) + AAMC_Raw_Data_for_FY22[[#This Row],[25th]]","v":363058.6},{"$f":"(((AAMC_Raw_Data_for_FY22[[#This Row],[Median]]-AAMC_Raw_Data_for_FY22[[#This Row],[25th]])/25)*20) + AAMC_Raw_Data_for_FY22[[#This Row],[25th]]","v":376451.8},389845,{"$f":"(((AAMC_Raw_Data_for_FY22[[#This Row],[75th]]-AAMC_Raw_Data_for_FY22[[#This Row],[Median]])/25)*5) + AAMC_Raw_Data_for_FY22[[#This Row],[Median]]","v":399550},{"$f":"(((AAMC_Raw_Data_for_FY22[[#This Row],[75th]]-AAMC_Raw_Data_for_FY22[[#This Row],[Median]])/25)*10) + AAMC_Raw_Data_for_FY22[[#This Row],[Median]]","v":409255},{"$f":"(((AAMC_Raw_Data_for_FY22[[#This Row],[75th]]-AAMC_Raw_Data_for_FY22[[#This Row],[Median]])/25)*15) + AAMC_Raw_Data_for_FY22[[#This Row],[Median]]","v":418960},{"$f":"(((AAMC_Raw_Data_for_FY22[[#This Row],[75th]]-AAMC_Raw_Data_for_FY22[[#This Row],[Median]])/25)*20) + AAMC_Raw_Data_for_FY22[[#This Row],[Median]]","v":428665},438370,{"$f":"(((AAMC_Raw_Data_for_FY22[[#This Row],[75th]]-AAMC_Raw_Data_for_FY22[[#This Row],[Median]])/25)*30) + AAMC_Raw_Data_for_FY22[[#This Row],[Median]]","v":448075},{"$f":"(((AAMC_Raw_Data_for_FY22[[#This Row],[75th]]-AAMC_Raw_Data_for_FY22[[#This Row],[Median]])/25)*35) + AAMC_Raw_Data_for_FY22[[#This Row],[Median]]","v":457780},{"$f":"(((AAMC_Raw_Data_for_FY22[[#This Row],[75th]]-AAMC_Raw_Data_for_FY22[[#This Row],[Median]])/25)*40) + AAMC_Raw_Data_for_FY22[[#This Row],[Median]]","v":467485}]
[{"$f":"AAMC_Raw_Data_for_FY22[[#This Row],[Source]]&AAMC_Raw_Data_for_FY22[[#This Row],[Type]]&AAMC_Raw_Data_for_FY22[[#This Row],[School Subset]]&AAMC_Raw_Data_for_FY22[[#This Row],[Rank]]&AAMC_Raw_Data_for_FY22[[#This Row],[Degree]]&AAMC_Raw_Data_for_FY22[[#This Row],[Department / Specialty]]&\"L\"","v":"AAMCAcademicAllChairMDPathology TotalL"},"Pathology Total",1,"AAMC","Academic","All","Chair","MD","2021-2022",506434,{"$f":"(((AAMC_Raw_Data_for_FY22[[#This Row],[Median]]-AAMC_Raw_Data_for_FY22[[#This Row],[25th]])/25)*5) + AAMC_Raw_Data_for_FY22[[#This Row],[25th]]","v":526143.6},{"$f":"(((AAMC_Raw_Data_for_FY22[[#This Row],[Median]]-AAMC_Raw_Data_for_FY22[[#This Row],[25th]])/25)*10) + AAMC_Raw_Data_for_FY22[[#This Row],[25th]]","v":545853.19999999995},{"$f":"(((AAMC_Raw_Data_for_FY22[[#This Row],[Median]]-AAMC_Raw_Data_for_FY22[[#This Row],[25th]])/25)*15) + AAMC_Raw_Data_for_FY22[[#This Row],[25th]]","v":565562.80000000005},{"$f":"(((AAMC_Raw_Data_for_FY22[[#This Row],[Median]]-AAMC_Raw_Data_for_FY22[[#This Row],[25th]])/25)*20) + AAMC_Raw_Data_for_FY22[[#This Row],[25th]]","v":585272.4},604982,{"$f":"(((AAMC_Raw_Data_for_FY22[[#This Row],[75th]]-AAMC_Raw_Data_for_FY22[[#This Row],[Median]])/25)*5) + AAMC_Raw_Data_for_FY22[[#This Row],[Median]]","v":626045.4},{"$f":"(((AAMC_Raw_Data_for_FY22[[#This Row],[75th]]-AAMC_Raw_Data_for_FY22[[#This Row],[Median]])/25)*10) + AAMC_Raw_Data_for_FY22[[#This Row],[Median]]","v":647108.80000000005},{"$f":"(((AAMC_Raw_Data_for_FY22[[#This Row],[75th]]-AAMC_Raw_Data_for_FY22[[#This Row],[Median]])/25)*15) + AAMC_Raw_Data_for_FY22[[#This Row],[Median]]","v":668172.19999999995},{"$f":"(((AAMC_Raw_Data_for_FY22[[#This Row],[75th]]-AAMC_Raw_Data_for_FY22[[#This Row],[Median]])/25)*20) + AAMC_Raw_Data_for_FY22[[#This Row],[Median]]","v":689235.6},710299,{"$f":"(((AAMC_Raw_Data_for_FY22[[#This Row],[75th]]-AAMC_Raw_Data_for_FY22[[#This Row],[Median]])/25)*30) + AAMC_Raw_Data_for_FY22[[#This Row],[Median]]","v":731362.4},{"$f":"(((AAMC_Raw_Data_for_FY22[[#This Row],[75th]]-AAMC_Raw_Data_for_FY22[[#This Row],[Median]])/25)*35) + AAMC_Raw_Data_for_FY22[[#This Row],[Median]]","v":752425.8},{"$f":"(((AAMC_Raw_Data_for_FY22[[#This Row],[75th]]-AAMC_Raw_Data_for_FY22[[#This Row],[Median]])/25)*40) + AAMC_Raw_Data_for_FY22[[#This Row],[Median]]","v":773489.2}]
[{"$f":"AAMC_Raw_Data_for_FY22[[#This Row],[Source]]&AAMC_Raw_Data_for_FY22[[#This Row],[Type]]&AAMC_Raw_Data_for_FY22[[#This Row],[School Subset]]&AAMC_Raw_Data_for_FY22[[#This Row],[Rank]]&AAMC_Raw_Data_for_FY22[[#This Row],[Degree]]&AAMC_Raw_Data_for_FY22[[#This Row],[Department / Specialty]]&\"L\"","v":"AAMCAcademicAllInstructorMDPathology: AnatomicL"},"Pathology: Anatomic",5,"AAMC","Academic","All","Instructor","MD","2021-2022",86958,{"$f":"(((AAMC_Raw_Data_for_FY22[[#This Row],[Median]]-AAMC_Raw_Data_for_FY22[[#This Row],[25th]])/25)*5) + AAMC_Raw_Data_for_FY22[[#This Row],[25th]]","v":112166.39999999999},{"$f":"(((AAMC_Raw_Data_for_FY22[[#This Row],[Median]]-AAMC_Raw_Data_for_FY22[[#This Row],[25th]])/25)*10) + AAMC_Raw_Data_for_FY22[[#This Row],[25th]]","v":137374.79999999999},{"$f":"(((AAMC_Raw_Data_for_FY22[[#This Row],[Median]]-AAMC_Raw_Data_for_FY22[[#This Row],[25th]])/25)*15) + AAMC_Raw_Data_for_FY22[[#This Row],[25th]]","v":162583.20000000001},{"$f":"(((AAMC_Raw_Data_for_FY22[[#This Row],[Median]]-AAMC_Raw_Data_for_FY22[[#This Row],[25th]])/25)*20) + AAMC_Raw_Data_for_FY22[[#This Row],[25th]]","v":187791.6},213000,{"$f":"(((AAMC_Raw_Data_for_FY22[[#This Row],[75th]]-AAMC_Raw_Data_for_FY22[[#This Row],[Median]])/25)*5) + AAMC_Raw_Data_for_FY22[[#This Row],[Median]]","v":225001.60000000001},{"$f":"(((AAMC_Raw_Data_for_FY22[[#This Row],[75th]]-AAMC_Raw_Data_for_FY22[[#This Row],[Median]])/25)*10) + AAMC_Raw_Data_for_FY22[[#This Row],[Median]]","v":237003.2},{"$f":"(((AAMC_Raw_Data_for_FY22[[#This Row],[75th]]-AAMC_Raw_Data_for_FY22[[#This Row],[Median]])/25)*15) + AAMC_Raw_Data_for_FY22[[#This Row],[Median]]","v":249004.79999999999},{"$f":"(((AAMC_Raw_Data_for_FY22[[#This Row],[75th]]-AAMC_Raw_Data_for_FY22[[#This Row],[Median]])/25)*20) + AAMC_Raw_Data_for_FY22[[#This Row],[Median]]","v":261006.4},273008,{"$f":"(((AAMC_Raw_Data_for_FY22[[#This Row],[75th]]-AAMC_Raw_Data_for_FY22[[#This Row],[Median]])/25)*30) + AAMC_Raw_Data_for_FY22[[#This Row],[Median]]","v":285009.59999999998},{"$f":"(((AAMC_Raw_Data_for_FY22[[#This Row],[75th]]-AAMC_Raw_Data_for_FY22[[#This Row],[Median]])/25)*35) + AAMC_Raw_Data_for_FY22[[#This Row],[Median]]","v":297011.20000000001},{"$f":"(((AAMC_Raw_Data_for_FY22[[#This Row],[75th]]-AAMC_Raw_Data_for_FY22[[#This Row],[Median]])/25)*40) + AAMC_Raw_Data_for_FY22[[#This Row],[Median]]","v":309012.8}]
[{"$f":"AAMC_Raw_Data_for_FY22[[#This Row],[Source]]&AAMC_Raw_Data_for_FY22[[#This Row],[Type]]&AAMC_Raw_Data_for_FY22[[#This Row],[School Subset]]&AAMC_Raw_Data_for_FY22[[#This Row],[Rank]]&AAMC_Raw_Data_for_FY22[[#This Row],[Degree]]&AAMC_Raw_Data_for_FY22[[#This Row],[Department / Specialty]]&\"L\"","v":"AAMCAcademicAllAssistantMDPathology: AnatomicL"},"Pathology: Anatomic",4,"AAMC","Academic","All","Assistant","MD","2021-2022",226493,{"$f":"(((AAMC_Raw_Data_for_FY22[[#This Row],[Median]]-AAMC_Raw_Data_for_FY22[[#This Row],[25th]])/25)*5) + AAMC_Raw_Data_for_FY22[[#This Row],[25th]]","v":231200},{"$f":"(((AAMC_Raw_Data_for_FY22[[#This Row],[Median]]-AAMC_Raw_Data_for_FY22[[#This Row],[25th]])/25)*10) + AAMC_Raw_Data_for_FY22[[#This Row],[25th]]","v":235907},{"$f":"(((AAMC_Raw_Data_for_FY22[[#This Row],[Median]]-AAMC_Raw_Data_for_FY22[[#This Row],[25th]])/25)*15) + AAMC_Raw_Data_for_FY22[[#This Row],[25th]]","v":240614},{"$f":"(((AAMC_Raw_Data_for_FY22[[#This Row],[Median]]-AAMC_Raw_Data_for_FY22[[#This Row],[25th]])/25)*20) + AAMC_Raw_Data_for_FY22[[#This Row],[25th]]","v":245321},250028,{"$f":"(((AAMC_Raw_Data_for_FY22[[#This Row],[75th]]-AAMC_Raw_Data_for_FY22[[#This Row],[Median]])/25)*5) + AAMC_Raw_Data_for_FY22[[#This Row],[Median]]","v":257343},{"$f":"(((AAMC_Raw_Data_for_FY22[[#This Row],[75th]]-AAMC_Raw_Data_for_FY22[[#This Row],[Median]])/25)*10) + AAMC_Raw_Data_for_FY22[[#This Row],[Median]]","v":264658},{"$f":"(((AAMC_Raw_Data_for_FY22[[#This Row],[75th]]-AAMC_Raw_Data_for_FY22[[#This Row],[Median]])/25)*15) + AAMC_Raw_Data_for_FY22[[#This Row],[Median]]","v":271973},{"$f":"(((AAMC_Raw_Data_for_FY22[[#This Row],[75th]]-AAMC_Raw_Data_for_FY22[[#This Row],[Median]])/25)*20) + AAMC_Raw_Data_for_FY22[[#This Row],[Median]]","v":279288},286603,{"$f":"(((AAMC_Raw_Data_for_FY22[[#This Row],[75th]]-AAMC_Raw_Data_for_FY22[[#This Row],[Median]])/25)*30) + AAMC_Raw_Data_for_FY22[[#This Row],[Median]]","v":293918},{"$f":"(((AAMC_Raw_Data_for_FY22[[#This Row],[75th]]-AAMC_Raw_Data_for_FY22[[#This Row],[Median]])/25)*35) + AAMC_Raw_Data_for_FY22[[#This Row],[Median]]","v":301233},{"$f":"(((AAMC_Raw_Data_for_FY22[[#This Row],[75th]]-AAMC_Raw_Data_for_FY22[[#This Row],[Median]])/25)*40) + AAMC_Raw_Data_for_FY22[[#This Row],[Median]]","v":308548}]
[{"$f":"AAMC_Raw_Data_for_FY22[[#This Row],[Source]]&AAMC_Raw_Data_for_FY22[[#This Row],[Type]]&AAMC_Raw_Data_for_FY22[[#This Row],[School Subset]]&AAMC_Raw_Data_for_FY22[[#This Row],[Rank]]&AAMC_Raw_Data_for_FY22[[#This Row],[Degree]]&AAMC_Raw_Data_for_FY22[[#This Row],[Department / Specialty]]&\"L\"","v":"AAMCAcademicAllAssociateMDPathology: AnatomicL"},"Pathology: Anatomic",3,"AAMC","Academic","All","Associate","MD","2021-2022",270487,{"$f":"(((AAMC_Raw_Data_for_FY22[[#This Row],[Median]]-AAMC_Raw_Data_for_FY22[[#This Row],[25th]])/25)*5) + AAMC_Raw_Data_for_FY22[[#This Row],[25th]]","v":275786.2},{"$f":"(((AAMC_Raw_Data_for_FY22[[#This Row],[Median]]-AAMC_Raw_Data_for_FY22[[#This Row],[25th]])/25)*10) + AAMC_Raw_Data_for_FY22[[#This Row],[25th]]","v":281085.40000000002},{"$f":"(((AAMC_Raw_Data_for_FY22[[#This Row],[Median]]-AAMC_Raw_Data_for_FY22[[#This Row],[25th]])/25)*15) + AAMC_Raw_Data_for_FY22[[#This Row],[25th]]","v":286384.59999999998},{"$f":"(((AAMC_Raw_Data_for_FY22[[#This Row],[Median]]-AAMC_Raw_Data_for_FY22[[#This Row],[25th]])/25)*20) + AAMC_Raw_Data_for_FY22[[#This Row],[25th]]","v":291683.8},296983,{"$f":"(((AAMC_Raw_Data_for_FY22[[#This Row],[75th]]-AAMC_Raw_Data_for_FY22[[#This Row],[Median]])/25)*5) + AAMC_Raw_Data_for_FY22[[#This Row],[Median]]","v":303761},{"$f":"(((AAMC_Raw_Data_for_FY22[[#This Row],[75th]]-AAMC_Raw_Data_for_FY22[[#This Row],[Median]])/25)*10) + AAMC_Raw_Data_for_FY22[[#This Row],[Median]]","v":310539},{"$f":"(((AAMC_Raw_Data_for_FY22[[#This Row],[75th]]-AAMC_Raw_Data_for_FY22[[#This Row],[Median]])/25)*15) + AAMC_Raw_Data_for_FY22[[#This Row],[Median]]","v":317317},{"$f":"(((AAMC_Raw_Data_for_FY22[[#This Row],[75th]]-AAMC_Raw_Data_for_FY22[[#This Row],[Median]])/25)*20) + AAMC_Raw_Data_for_FY22[[#This Row],[Median]]","v":324095},330873,{"$f":"(((AAMC_Raw_Data_for_FY22[[#This Row],[75th]]-AAMC_Raw_Data_for_FY22[[#This Row],[Median]])/25)*30) + AAMC_Raw_Data_for_FY22[[#This Row],[Median]]","v":337651},{"$f":"(((AAMC_Raw_Data_for_FY22[[#This Row],[75th]]-AAMC_Raw_Data_for_FY22[[#This Row],[Median]])/25)*35) + AAMC_Raw_Data_for_FY22[[#This Row],[Median]]","v":344429},{"$f":"(((AAMC_Raw_Data_for_FY22[[#This Row],[75th]]-AAMC_Raw_Data_for_FY22[[#This Row],[Median]])/25)*40) + AAMC_Raw_Data_for_FY22[[#This Row],[Median]]","v":351207}]
[{"$f":"AAMC_Raw_Data_for_FY22[[#This Row],[Source]]&AAMC_Raw_Data_for_FY22[[#This Row],[Type]]&AAMC_Raw_Data_for_FY22[[#This Row],[School Subset]]&AAMC_Raw_Data_for_FY22[[#This Row],[Rank]]&AAMC_Raw_Data_for_FY22[[#This Row],[Degree]]&AAMC_Raw_Data_for_FY22[[#This Row],[Department / Specialty]]&\"L\"","v":"AAMCAcademicAllProfessorMDPathology: AnatomicL"},"Pathology: Anatomic",2,"AAMC","Academic","All","Professor","MD","2021-2022",318146,{"$f":"(((AAMC_Raw_Data_for_FY22[[#This Row],[Median]]-AAMC_Raw_Data_for_FY22[[#This Row],[25th]])/25)*5) + AAMC_Raw_Data_for_FY22[[#This Row],[25th]]","v":326883.40000000002},{"$f":"(((AAMC_Raw_Data_for_FY22[[#This Row],[Median]]-AAMC_Raw_Data_for_FY22[[#This Row],[25th]])/25)*10) + AAMC_Raw_Data_for_FY22[[#This Row],[25th]]","v":335620.8},{"$f":"(((AAMC_Raw_Data_for_FY22[[#This Row],[Median]]-AAMC_Raw_Data_for_FY22[[#This Row],[25th]])/25)*15) + AAMC_Raw_Data_for_FY22[[#This Row],[25th]]","v":344358.2},{"$f":"(((AAMC_Raw_Data_for_FY22[[#This Row],[Median]]-AAMC_Raw_Data_for_FY22[[#This Row],[25th]])/25)*20) + AAMC_Raw_Data_for_FY22[[#This Row],[25th]]","v":353095.6},361833,{"$f":"(((AAMC_Raw_Data_for_FY22[[#This Row],[75th]]-AAMC_Raw_Data_for_FY22[[#This Row],[Median]])/25)*5) + AAMC_Raw_Data_for_FY22[[#This Row],[Median]]","v":371636.4},{"$f":"(((AAMC_Raw_Data_for_FY22[[#This Row],[75th]]-AAMC_Raw_Data_for_FY22[[#This Row],[Median]])/25)*10) + AAMC_Raw_Data_for_FY22[[#This Row],[Median]]","v":381439.8},{"$f":"(((AAMC_Raw_Data_for_FY22[[#This Row],[75th]]-AAMC_Raw_Data_for_FY22[[#This Row],[Median]])/25)*15) + AAMC_Raw_Data_for_FY22[[#This Row],[Median]]","v":391243.2},{"$f":"(((AAMC_Raw_Data_for_FY22[[#This Row],[75th]]-AAMC_Raw_Data_for_FY22[[#This Row],[Median]])/25)*20) + AAMC_Raw_Data_for_FY22[[#This Row],[Median]]","v":401046.6},410850,{"$f":"(((AAMC_Raw_Data_for_FY22[[#This Row],[75th]]-AAMC_Raw_Data_for_FY22[[#This Row],[Median]])/25)*30) + AAMC_Raw_Data_for_FY22[[#This Row],[Median]]","v":420653.4},{"$f":"(((AAMC_Raw_Data_for_FY22[[#This Row],[75th]]-AAMC_Raw_Data_for_FY22[[#This Row],[Median]])/25)*35) + AAMC_Raw_Data_for_FY22[[#This Row],[Median]]","v":430456.8},{"$f":"(((AAMC_Raw_Data_for_FY22[[#This Row],[75th]]-AAMC_Raw_Data_for_FY22[[#This Row],[Median]])/25)*40) + AAMC_Raw_Data_for_FY22[[#This Row],[Median]]","v":440260.2}]
[{"$f":"AAMC_Raw_Data_for_FY22[[#This Row],[Source]]&AAMC_Raw_Data_for_FY22[[#This Row],[Type]]&AAMC_Raw_Data_for_FY22[[#This Row],[School Subset]]&AAMC_Raw_Data_for_FY22[[#This Row],[Rank]]&AAMC_Raw_Data_for_FY22[[#This Row],[Degree]]&AAMC_Raw_Data_for_FY22[[#This Row],[Department / Specialty]]&\"L\"","v":"AAMCAcademicAllChiefMDPathology: AnatomicL"},"Pathology: Anatomic",6,"AAMC","Academic","All","Chief","MD","2021-2022",350327,{"$f":"(((AAMC_Raw_Data_for_FY22[[#This Row],[Median]]-AAMC_Raw_Data_for_FY22[[#This Row],[25th]])/25)*5) + AAMC_Raw_Data_for_FY22[[#This Row],[25th]]","v":361592.8},{"$f":"(((AAMC_Raw_Data_for_FY22[[#This Row],[Median]]-AAMC_Raw_Data_for_FY22[[#This Row],[25th]])/25)*10) + AAMC_Raw_Data_for_FY22[[#This Row],[25th]]","v":372858.6},{"$f":"(((AAMC_Raw_Data_for_FY22[[#This Row],[Median]]-AAMC_Raw_Data_for_FY22[[#This Row],[25th]])/25)*15) + AAMC_Raw_Data_for_FY22[[#This Row],[25th]]","v":384124.4},{"$f":"(((AAMC_Raw_Data_for_FY22[[#This Row],[Median]]-AAMC_Raw_Data_for_FY22[[#This Row],[25th]])/25)*20) + AAMC_Raw_Data_for_FY22[[#This Row],[25th]]","v":395390.2},406656,{"$f":"(((AAMC_Raw_Data_for_FY22[[#This Row],[75th]]-AAMC_Raw_Data_for_FY22[[#This Row],[Median]])/25)*5) + AAMC_Raw_Data_for_FY22[[#This Row],[Median]]","v":416271.6},{"$f":"(((AAMC_Raw_Data_for_FY22[[#This Row],[75th]]-AAMC_Raw_Data_for_FY22[[#This Row],[Median]])/25)*10) + AAMC_Raw_Data_for_FY22[[#This Row],[Median]]","v":425887.2},{"$f":"(((AAMC_Raw_Data_for_FY22[[#This Row],[75th]]-AAMC_Raw_Data_for_FY22[[#This Row],[Median]])/25)*15) + AAMC_Raw_Data_for_FY22[[#This Row],[Median]]","v":435502.8},{"$f":"(((AAMC_Raw_Data_for_FY22[[#This Row],[75th]]-AAMC_Raw_Data_for_FY22[[#This Row],[Median]])/25)*20) + AAMC_Raw_Data_for_FY22[[#This Row],[Median]]","v":445118.4},454734,{"$f":"(((AAMC_Raw_Data_for_FY22[[#This Row],[75th]]-AAMC_Raw_Data_for_FY22[[#This Row],[Median]])/25)*30) + AAMC_Raw_Data_for_FY22[[#This Row],[Median]]","v":464349.6},{"$f":"(((AAMC_Raw_Data_for_FY22[[#This Row],[75th]]-AAMC_Raw_Data_for_FY22[[#This Row],[Median]])/25)*35) + AAMC_Raw_Data_for_FY22[[#This Row],[Median]]","v":473965.2},{"$f":"(((AAMC_Raw_Data_for_FY22[[#This Row],[75th]]-AAMC_Raw_Data_for_FY22[[#This Row],[Median]])/25)*40) + AAMC_Raw_Data_for_FY22[[#This Row],[Median]]","v":483580.8}]
[{"$f":"AAMC_Raw_Data_for_FY22[[#This Row],[Source]]&AAMC_Raw_Data_for_FY22[[#This Row],[Type]]&AAMC_Raw_Data_for_FY22[[#This Row],[School Subset]]&AAMC_Raw_Data_for_FY22[[#This Row],[Rank]]&AAMC_Raw_Data_for_FY22[[#This Row],[Degree]]&AAMC_Raw_Data_for_FY22[[#This Row],[Department / Specialty]]&\"L\"","v":"AAMCAcademicAllChairMDPathology: AnatomicL"},"Pathology: Anatomic",1,"AAMC","Academic","All","Chair","MD","2021-2022",500500,{"$f":"(((AAMC_Raw_Data_for_FY22[[#This Row],[Median]]-AAMC_Raw_Data_for_FY22[[#This Row],[25th]])/25)*5) + AAMC_Raw_Data_for_FY22[[#This Row],[25th]]","v":518660.2},{"$f":"(((AAMC_Raw_Data_for_FY22[[#This Row],[Median]]-AAMC_Raw_Data_for_FY22[[#This Row],[25th]])/25)*10) + AAMC_Raw_Data_for_FY22[[#This Row],[25th]]","v":536820.4},{"$f":"(((AAMC_Raw_Data_for_FY22[[#This Row],[Median]]-AAMC_Raw_Data_for_FY22[[#This Row],[25th]])/25)*15) + AAMC_Raw_Data_for_FY22[[#This Row],[25th]]","v":554980.6},{"$f":"(((AAMC_Raw_Data_for_FY22[[#This Row],[Median]]-AAMC_Raw_Data_for_FY22[[#This Row],[25th]])/25)*20) + AAMC_Raw_Data_for_FY22[[#This Row],[25th]]","v":573140.80000000005},591301,{"$f":"(((AAMC_Raw_Data_for_FY22[[#This Row],[75th]]-AAMC_Raw_Data_for_FY22[[#This Row],[Median]])/25)*5) + AAMC_Raw_Data_for_FY22[[#This Row],[Median]]","v":603340.80000000005},{"$f":"(((AAMC_Raw_Data_for_FY22[[#This Row],[75th]]-AAMC_Raw_Data_for_FY22[[#This Row],[Median]])/25)*10) + AAMC_Raw_Data_for_FY22[[#This Row],[Median]]","v":615380.6},{"$f":"(((AAMC_Raw_Data_for_FY22[[#This Row],[75th]]-AAMC_Raw_Data_for_FY22[[#This Row],[Median]])/25)*15) + AAMC_Raw_Data_for_FY22[[#This Row],[Median]]","v":627420.4},{"$f":"(((AAMC_Raw_Data_for_FY22[[#This Row],[75th]]-AAMC_Raw_Data_for_FY22[[#This Row],[Median]])/25)*20) + AAMC_Raw_Data_for_FY22[[#This Row],[Median]]","v":639460.19999999995},651500,{"$f":"(((AAMC_Raw_Data_for_FY22[[#This Row],[75th]]-AAMC_Raw_Data_for_FY22[[#This Row],[Median]])/25)*30) + AAMC_Raw_Data_for_FY22[[#This Row],[Median]]","v":663539.80000000005},{"$f":"(((AAMC_Raw_Data_for_FY22[[#This Row],[75th]]-AAMC_Raw_Data_for_FY22[[#This Row],[Median]])/25)*35) + AAMC_Raw_Data_for_FY22[[#This Row],[Median]]","v":675579.6},{"$f":"(((AAMC_Raw_Data_for_FY22[[#This Row],[75th]]-AAMC_Raw_Data_for_FY22[[#This Row],[Median]])/25)*40) + AAMC_Raw_Data_for_FY22[[#This Row],[Median]]","v":687619.4}]
[{"$f":"AAMC_Raw_Data_for_FY22[[#This Row],[Source]]&AAMC_Raw_Data_for_FY22[[#This Row],[Type]]&AAMC_Raw_Data_for_FY22[[#This Row],[School Subset]]&AAMC_Raw_Data_for_FY22[[#This Row],[Rank]]&AAMC_Raw_Data_for_FY22[[#This Row],[Degree]]&AAMC_Raw_Data_for_FY22[[#This Row],[Department / Specialty]]&\"L\"","v":"AAMCAcademicAllInstructorMDPathology: ClinicalL"},"Pathology: Clinical",5,"AAMC","Academic","All","Instructor","MD","2021-2022",119856,{"$f":"(((AAMC_Raw_Data_for_FY22[[#This Row],[Median]]-AAMC_Raw_Data_for_FY22[[#This Row],[25th]])/25)*5) + AAMC_Raw_Data_for_FY22[[#This Row],[25th]]","v":133564.79999999999},{"$f":"(((AAMC_Raw_Data_for_FY22[[#This Row],[Median]]-AAMC_Raw_Data_for_FY22[[#This Row],[25th]])/25)*10) + AAMC_Raw_Data_for_FY22[[#This Row],[25th]]","v":147273.60000000001},{"$f":"(((AAMC_Raw_Data_for_FY22[[#This Row],[Median]]-AAMC_Raw_Data_for_FY22[[#This Row],[25th]])/25)*15) + AAMC_Raw_Data_for_FY22[[#This Row],[25th]]","v":160982.39999999999},{"$f":"(((AAMC_Raw_Data_for_FY22[[#This Row],[Median]]-AAMC_Raw_Data_for_FY22[[#This Row],[25th]])/25)*20) + AAMC_Raw_Data_for_FY22[[#This Row],[25th]]","v":174691.20000000001},188400,{"$f":"(((AAMC_Raw_Data_for_FY22[[#This Row],[75th]]-AAMC_Raw_Data_for_FY22[[#This Row],[Median]])/25)*5) + AAMC_Raw_Data_for_FY22[[#This Row],[Median]]","v":193651.8},{"$f":"(((AAMC_Raw_Data_for_FY22[[#This Row],[75th]]-AAMC_Raw_Data_for_FY22[[#This Row],[Median]])/25)*10) + AAMC_Raw_Data_for_FY22[[#This Row],[Median]]","v":198903.6},{"$f":"(((AAMC_Raw_Data_for_FY22[[#This Row],[75th]]-AAMC_Raw_Data_for_FY22[[#This Row],[Median]])/25)*15) + AAMC_Raw_Data_for_FY22[[#This Row],[Median]]","v":204155.4},{"$f":"(((AAMC_Raw_Data_for_FY22[[#This Row],[75th]]-AAMC_Raw_Data_for_FY22[[#This Row],[Median]])/25)*20) + AAMC_Raw_Data_for_FY22[[#This Row],[Median]]","v":209407.2},214659,{"$f":"(((AAMC_Raw_Data_for_FY22[[#This Row],[75th]]-AAMC_Raw_Data_for_FY22[[#This Row],[Median]])/25)*30) + AAMC_Raw_Data_for_FY22[[#This Row],[Median]]","v":219910.8},{"$f":"(((AAMC_Raw_Data_for_FY22[[#This Row],[75th]]-AAMC_Raw_Data_for_FY22[[#This Row],[Median]])/25)*35) + AAMC_Raw_Data_for_FY22[[#This Row],[Median]]","v":225162.6},{"$f":"(((AAMC_Raw_Data_for_FY22[[#This Row],[75th]]-AAMC_Raw_Data_for_FY22[[#This Row],[Median]])/25)*40) + AAMC_Raw_Data_for_FY22[[#This Row],[Median]]","v":230414.4}]
[{"$f":"AAMC_Raw_Data_for_FY22[[#This Row],[Source]]&AAMC_Raw_Data_for_FY22[[#This Row],[Type]]&AAMC_Raw_Data_for_FY22[[#This Row],[School Subset]]&AAMC_Raw_Data_for_FY22[[#This Row],[Rank]]&AAMC_Raw_Data_for_FY22[[#This Row],[Degree]]&AAMC_Raw_Data_for_FY22[[#This Row],[Department / Specialty]]&\"L\"","v":"AAMCAcademicAllAssistantMDPathology: ClinicalL"},"Pathology: Clinical",4,"AAMC","Academic","All","Assistant","MD","2021-2022",213636,{"$f":"(((AAMC_Raw_Data_for_FY22[[#This Row],[Median]]-AAMC_Raw_Data_for_FY22[[#This Row],[25th]])/25)*5) + AAMC_Raw_Data_for_FY22[[#This Row],[25th]]","v":218182.2},{"$f":"(((AAMC_Raw_Data_for_FY22[[#This Row],[Median]]-AAMC_Raw_Data_for_FY22[[#This Row],[25th]])/25)*10) + AAMC_Raw_Data_for_FY22[[#This Row],[25th]]","v":222728.4},{"$f":"(((AAMC_Raw_Data_for_FY22[[#This Row],[Median]]-AAMC_Raw_Data_for_FY22[[#This Row],[25th]])/25)*15) + AAMC_Raw_Data_for_FY22[[#This Row],[25th]]","v":227274.6},{"$f":"(((AAMC_Raw_Data_for_FY22[[#This Row],[Median]]-AAMC_Raw_Data_for_FY22[[#This Row],[25th]])/25)*20) + AAMC_Raw_Data_for_FY22[[#This Row],[25th]]","v":231820.79999999999},236367,{"$f":"(((AAMC_Raw_Data_for_FY22[[#This Row],[75th]]-AAMC_Raw_Data_for_FY22[[#This Row],[Median]])/25)*5) + AAMC_Raw_Data_for_FY22[[#This Row],[Median]]","v":242078.6},{"$f":"(((AAMC_Raw_Data_for_FY22[[#This Row],[75th]]-AAMC_Raw_Data_for_FY22[[#This Row],[Median]])/25)*10) + AAMC_Raw_Data_for_FY22[[#This Row],[Median]]","v":247790.2},{"$f":"(((AAMC_Raw_Data_for_FY22[[#This Row],[75th]]-AAMC_Raw_Data_for_FY22[[#This Row],[Median]])/25)*15) + AAMC_Raw_Data_for_FY22[[#This Row],[Median]]","v":253501.8},{"$f":"(((AAMC_Raw_Data_for_FY22[[#This Row],[75th]]-AAMC_Raw_Data_for_FY22[[#This Row],[Median]])/25)*20) + AAMC_Raw_Data_for_FY22[[#This Row],[Median]]","v":259213.4},264925,{"$f":"(((AAMC_Raw_Data_for_FY22[[#This Row],[75th]]-AAMC_Raw_Data_for_FY22[[#This Row],[Median]])/25)*30) + AAMC_Raw_Data_for_FY22[[#This Row],[Median]]","v":270636.59999999998},{"$f":"(((AAMC_Raw_Data_for_FY22[[#This Row],[75th]]-AAMC_Raw_Data_for_FY22[[#This Row],[Median]])/25)*35) + AAMC_Raw_Data_for_FY22[[#This Row],[Median]]","v":276348.2},{"$f":"(((AAMC_Raw_Data_for_FY22[[#This Row],[75th]]-AAMC_Raw_Data_for_FY22[[#This Row],[Median]])/25)*40) + AAMC_Raw_Data_for_FY22[[#This Row],[Median]]","v":282059.8}]
[{"$f":"AAMC_Raw_Data_for_FY22[[#This Row],[Source]]&AAMC_Raw_Data_for_FY22[[#This Row],[Type]]&AAMC_Raw_Data_for_FY22[[#This Row],[School Subset]]&AAMC_Raw_Data_for_FY22[[#This Row],[Rank]]&AAMC_Raw_Data_for_FY22[[#This Row],[Degree]]&AAMC_Raw_Data_for_FY22[[#This Row],[Department / Specialty]]&\"L\"","v":"AAMCAcademicAllAssociateMDPathology: ClinicalL"},"Pathology: Clinical",3,"AAMC","Academic","All","Associate","MD","2021-2022",263295,{"$f":"(((AAMC_Raw_Data_for_FY22[[#This Row],[Median]]-AAMC_Raw_Data_for_FY22[[#This Row],[25th]])/25)*5) + AAMC_Raw_Data_for_FY22[[#This Row],[25th]]","v":269016},{"$f":"(((AAMC_Raw_Data_for_FY22[[#This Row],[Median]]-AAMC_Raw_Data_for_FY22[[#This Row],[25th]])/25)*10) + AAMC_Raw_Data_for_FY22[[#This Row],[25th]]","v":274737},{"$f":"(((AAMC_Raw_Data_for_FY22[[#This Row],[Median]]-AAMC_Raw_Data_for_FY22[[#This Row],[25th]])/25)*15) + AAMC_Raw_Data_for_FY22[[#This Row],[25th]]","v":280458},{"$f":"(((AAMC_Raw_Data_for_FY22[[#This Row],[Median]]-AAMC_Raw_Data_for_FY22[[#This Row],[25th]])/25)*20) + AAMC_Raw_Data_for_FY22[[#This Row],[25th]]","v":286179},291900,{"$f":"(((AAMC_Raw_Data_for_FY22[[#This Row],[75th]]-AAMC_Raw_Data_for_FY22[[#This Row],[Median]])/25)*5) + AAMC_Raw_Data_for_FY22[[#This Row],[Median]]","v":298190.40000000002},{"$f":"(((AAMC_Raw_Data_for_FY22[[#This Row],[75th]]-AAMC_Raw_Data_for_FY22[[#This Row],[Median]])/25)*10) + AAMC_Raw_Data_for_FY22[[#This Row],[Median]]","v":304480.8},{"$f":"(((AAMC_Raw_Data_for_FY22[[#This Row],[75th]]-AAMC_Raw_Data_for_FY22[[#This Row],[Median]])/25)*15) + AAMC_Raw_Data_for_FY22[[#This Row],[Median]]","v":310771.20000000001},{"$f":"(((AAMC_Raw_Data_for_FY22[[#This Row],[75th]]-AAMC_Raw_Data_for_FY22[[#This Row],[Median]])/25)*20) + AAMC_Raw_Data_for_FY22[[#This Row],[Median]]","v":317061.59999999998},323352,{"$f":"(((AAMC_Raw_Data_for_FY22[[#This Row],[75th]]-AAMC_Raw_Data_for_FY22[[#This Row],[Median]])/25)*30) + AAMC_Raw_Data_for_FY22[[#This Row],[Median]]","v":329642.40000000002},{"$f":"(((AAMC_Raw_Data_for_FY22[[#This Row],[75th]]-AAMC_Raw_Data_for_FY22[[#This Row],[Median]])/25)*35) + AAMC_Raw_Data_for_FY22[[#This Row],[Median]]","v":335932.8},{"$f":"(((AAMC_Raw_Data_for_FY22[[#This Row],[75th]]-AAMC_Raw_Data_for_FY22[[#This Row],[Median]])/25)*40) + AAMC_Raw_Data_for_FY22[[#This Row],[Median]]","v":342223.2}]
[{"$f":"AAMC_Raw_Data_for_FY22[[#This Row],[Source]]&AAMC_Raw_Data_for_FY22[[#This Row],[Type]]&AAMC_Raw_Data_for_FY22[[#This Row],[School Subset]]&AAMC_Raw_Data_for_FY22[[#This Row],[Rank]]&AAMC_Raw_Data_for_FY22[[#This Row],[Degree]]&AAMC_Raw_Data_for_FY22[[#This Row],[Department / Specialty]]&\"L\"","v":"AAMCAcademicAllProfessorMDPathology: ClinicalL"},"Pathology: Clinical",2,"AAMC","Academic","All","Professor","MD","2021-2022",292850,{"$f":"(((AAMC_Raw_Data_for_FY22[[#This Row],[Median]]-AAMC_Raw_Data_for_FY22[[#This Row],[25th]])/25)*5) + AAMC_Raw_Data_for_FY22[[#This Row],[25th]]","v":302318.40000000002},{"$f":"(((AAMC_Raw_Data_for_FY22[[#This Row],[Median]]-AAMC_Raw_Data_for_FY22[[#This Row],[25th]])/25)*10) + AAMC_Raw_Data_for_FY22[[#This Row],[25th]]","v":311786.8},{"$f":"(((AAMC_Raw_Data_for_FY22[[#This Row],[Median]]-AAMC_Raw_Data_for_FY22[[#This Row],[25th]])/25)*15) + AAMC_Raw_Data_for_FY22[[#This Row],[25th]]","v":321255.2},{"$f":"(((AAMC_Raw_Data_for_FY22[[#This Row],[Median]]-AAMC_Raw_Data_for_FY22[[#This Row],[25th]])/25)*20) + AAMC_Raw_Data_for_FY22[[#This Row],[25th]]","v":330723.59999999998},340192,{"$f":"(((AAMC_Raw_Data_for_FY22[[#This Row],[75th]]-AAMC_Raw_Data_for_FY22[[#This Row],[Median]])/25)*5) + AAMC_Raw_Data_for_FY22[[#This Row],[Median]]","v":349102.4},{"$f":"(((AAMC_Raw_Data_for_FY22[[#This Row],[75th]]-AAMC_Raw_Data_for_FY22[[#This Row],[Median]])/25)*10) + AAMC_Raw_Data_for_FY22[[#This Row],[Median]]","v":358012.8},{"$f":"(((AAMC_Raw_Data_for_FY22[[#This Row],[75th]]-AAMC_Raw_Data_for_FY22[[#This Row],[Median]])/25)*15) + AAMC_Raw_Data_for_FY22[[#This Row],[Median]]","v":366923.2},{"$f":"(((AAMC_Raw_Data_for_FY22[[#This Row],[75th]]-AAMC_Raw_Data_for_FY22[[#This Row],[Median]])/25)*20) + AAMC_Raw_Data_for_FY22[[#This Row],[Median]]","v":375833.59999999998},384744,{"$f":"(((AAMC_Raw_Data_for_FY22[[#This Row],[75th]]-AAMC_Raw_Data_for_FY22[[#This Row],[Median]])/25)*30) + AAMC_Raw_Data_for_FY22[[#This Row],[Median]]","v":393654.4},{"$f":"(((AAMC_Raw_Data_for_FY22[[#This Row],[75th]]-AAMC_Raw_Data_for_FY22[[#This Row],[Median]])/25)*35) + AAMC_Raw_Data_for_FY22[[#This Row],[Median]]","v":402564.8},{"$f":"(((AAMC_Raw_Data_for_FY22[[#This Row],[75th]]-AAMC_Raw_Data_for_FY22[[#This Row],[Median]])/25)*40) + AAMC_Raw_Data_for_FY22[[#This Row],[Median]]","v":411475.20000000001}]
[{"$f":"AAMC_Raw_Data_for_FY22[[#This Row],[Source]]&AAMC_Raw_Data_for_FY22[[#This Row],[Type]]&AAMC_Raw_Data_for_FY22[[#This Row],[School Subset]]&AAMC_Raw_Data_for_FY22[[#This Row],[Rank]]&AAMC_Raw_Data_for_FY22[[#This Row],[Degree]]&AAMC_Raw_Data_for_FY22[[#This Row],[Department / Specialty]]&\"L\"","v":"AAMCAcademicAllChiefMDPathology: ClinicalL"},"Pathology: Clinical",6,"AAMC","Academic","All","Chief","MD","2021-2022",317072,{"$f":"(((AAMC_Raw_Data_for_FY22[[#This Row],[Median]]-AAMC_Raw_Data_for_FY22[[#This Row],[25th]])/25)*5) + AAMC_Raw_Data_for_FY22[[#This Row],[25th]]","v":327171.20000000001},{"$f":"(((AAMC_Raw_Data_for_FY22[[#This Row],[Median]]-AAMC_Raw_Data_for_FY22[[#This Row],[25th]])/25)*10) + AAMC_Raw_Data_for_FY22[[#This Row],[25th]]","v":337270.4},{"$f":"(((AAMC_Raw_Data_for_FY22[[#This Row],[Median]]-AAMC_Raw_Data_for_FY22[[#This Row],[25th]])/25)*15) + AAMC_Raw_Data_for_FY22[[#This Row],[25th]]","v":347369.6},{"$f":"(((AAMC_Raw_Data_for_FY22[[#This Row],[Median]]-AAMC_Raw_Data_for_FY22[[#This Row],[25th]])/25)*20) + AAMC_Raw_Data_for_FY22[[#This Row],[25th]]","v":357468.8},367568,{"$f":"(((AAMC_Raw_Data_for_FY22[[#This Row],[75th]]-AAMC_Raw_Data_for_FY22[[#This Row],[Median]])/25)*5) + AAMC_Raw_Data_for_FY22[[#This Row],[Median]]","v":376062},{"$f":"(((AAMC_Raw_Data_for_FY22[[#This Row],[75th]]-AAMC_Raw_Data_for_FY22[[#This Row],[Median]])/25)*10) + AAMC_Raw_Data_for_FY22[[#This Row],[Median]]","v":384556},{"$f":"(((AAMC_Raw_Data_for_FY22[[#This Row],[75th]]-AAMC_Raw_Data_for_FY22[[#This Row],[Median]])/25)*15) + AAMC_Raw_Data_for_FY22[[#This Row],[Median]]","v":393050},{"$f":"(((AAMC_Raw_Data_for_FY22[[#This Row],[75th]]-AAMC_Raw_Data_for_FY22[[#This Row],[Median]])/25)*20) + AAMC_Raw_Data_for_FY22[[#This Row],[Median]]","v":401544},410038,{"$f":"(((AAMC_Raw_Data_for_FY22[[#This Row],[75th]]-AAMC_Raw_Data_for_FY22[[#This Row],[Median]])/25)*30) + AAMC_Raw_Data_for_FY22[[#This Row],[Median]]","v":418532},{"$f":"(((AAMC_Raw_Data_for_FY22[[#This Row],[75th]]-AAMC_Raw_Data_for_FY22[[#This Row],[Median]])/25)*35) + AAMC_Raw_Data_for_FY22[[#This Row],[Median]]","v":427026},{"$f":"(((AAMC_Raw_Data_for_FY22[[#This Row],[75th]]-AAMC_Raw_Data_for_FY22[[#This Row],[Median]])/25)*40) + AAMC_Raw_Data_for_FY22[[#This Row],[Median]]","v":435520}]
[{"$f":"AAMC_Raw_Data_for_FY22[[#This Row],[Source]]&AAMC_Raw_Data_for_FY22[[#This Row],[Type]]&AAMC_Raw_Data_for_FY22[[#This Row],[School Subset]]&AAMC_Raw_Data_for_FY22[[#This Row],[Rank]]&AAMC_Raw_Data_for_FY22[[#This Row],[Degree]]&AAMC_Raw_Data_for_FY22[[#This Row],[Department / Specialty]]&\"L\"","v":"AAMCAcademicAllChairMDPathology: ClinicalL"},"Pathology: Clinical",1,"AAMC","Academic","All","Chair","MD","2021-2022",488703,{"$f":"(((AAMC_Raw_Data_for_FY22[[#This Row],[Median]]-AAMC_Raw_Data_for_FY22[[#This Row],[25th]])/25)*5) + AAMC_Raw_Data_for_FY22[[#This Row],[25th]]","v":512775.6},{"$f":"(((AAMC_Raw_Data_for_FY22[[#This Row],[Median]]-AAMC_Raw_Data_for_FY22[[#This Row],[25th]])/25)*10) + AAMC_Raw_Data_for_FY22[[#This Row],[25th]]","v":536848.19999999995},{"$f":"(((AAMC_Raw_Data_for_FY22[[#This Row],[Median]]-AAMC_Raw_Data_for_FY22[[#This Row],[25th]])/25)*15) + AAMC_Raw_Data_for_FY22[[#This Row],[25th]]","v":560920.80000000005},{"$f":"(((AAMC_Raw_Data_for_FY22[[#This Row],[Median]]-AAMC_Raw_Data_for_FY22[[#This Row],[25th]])/25)*20) + AAMC_Raw_Data_for_FY22[[#This Row],[25th]]","v":584993.4},609066,{"$f":"(((AAMC_Raw_Data_for_FY22[[#This Row],[75th]]-AAMC_Raw_Data_for_FY22[[#This Row],[Median]])/25)*5) + AAMC_Raw_Data_for_FY22[[#This Row],[Median]]","v":636939.4},{"$f":"(((AAMC_Raw_Data_for_FY22[[#This Row],[75th]]-AAMC_Raw_Data_for_FY22[[#This Row],[Median]])/25)*10) + AAMC_Raw_Data_for_FY22[[#This Row],[Median]]","v":664812.80000000005},{"$f":"(((AAMC_Raw_Data_for_FY22[[#This Row],[75th]]-AAMC_Raw_Data_for_FY22[[#This Row],[Median]])/25)*15) + AAMC_Raw_Data_for_FY22[[#This Row],[Median]]","v":692686.2},{"$f":"(((AAMC_Raw_Data_for_FY22[[#This Row],[75th]]-AAMC_Raw_Data_for_FY22[[#This Row],[Median]])/25)*20) + AAMC_Raw_Data_for_FY22[[#This Row],[Median]]","v":720559.6},748433,{"$f":"(((AAMC_Raw_Data_for_FY22[[#This Row],[75th]]-AAMC_Raw_Data_for_FY22[[#This Row],[Median]])/25)*30) + AAMC_Raw_Data_for_FY22[[#This Row],[Median]]","v":776306.4},{"$f":"(((AAMC_Raw_Data_for_FY22[[#This Row],[75th]]-AAMC_Raw_Data_for_FY22[[#This Row],[Median]])/25)*35) + AAMC_Raw_Data_for_FY22[[#This Row],[Median]]","v":804179.8},{"$f":"(((AAMC_Raw_Data_for_FY22[[#This Row],[75th]]-AAMC_Raw_Data_for_FY22[[#This Row],[Median]])/25)*40) + AAMC_Raw_Data_for_FY22[[#This Row],[Median]]","v":832053.2}]
[{"$f":"AAMC_Raw_Data_for_FY22[[#This Row],[Source]]&AAMC_Raw_Data_for_FY22[[#This Row],[Type]]&AAMC_Raw_Data_for_FY22[[#This Row],[School Subset]]&AAMC_Raw_Data_for_FY22[[#This Row],[Rank]]&AAMC_Raw_Data_for_FY22[[#This Row],[Degree]]&AAMC_Raw_Data_for_FY22[[#This Row],[Department / Specialty]]&\"L\"","v":"AAMCAcademicAllInstructorMDPathology: Other PathologyL"},"Pathology: Other Pathology",5,"AAMC","Academic","All","Instructor","MD","2021-2022",70476,{"$f":"(((AAMC_Raw_Data_for_FY22[[#This Row],[Median]]-AAMC_Raw_Data_for_FY22[[#This Row],[25th]])/25)*5) + AAMC_Raw_Data_for_FY22[[#This Row],[25th]]","v":72256.2},{"$f":"(((AAMC_Raw_Data_for_FY22[[#This Row],[Median]]-AAMC_Raw_Data_for_FY22[[#This Row],[25th]])/25)*10) + AAMC_Raw_Data_for_FY22[[#This Row],[25th]]","v":74036.399999999994},{"$f":"(((AAMC_Raw_Data_for_FY22[[#This Row],[Median]]-AAMC_Raw_Data_for_FY22[[#This Row],[25th]])/25)*15) + AAMC_Raw_Data_for_FY22[[#This Row],[25th]]","v":75816.600000000006},{"$f":"(((AAMC_Raw_Data_for_FY22[[#This Row],[Median]]-AAMC_Raw_Data_for_FY22[[#This Row],[25th]])/25)*20) + AAMC_Raw_Data_for_FY22[[#This Row],[25th]]","v":77596.800000000003},79377,{"$f":"(((AAMC_Raw_Data_for_FY22[[#This Row],[75th]]-AAMC_Raw_Data_for_FY22[[#This Row],[Median]])/25)*5) + AAMC_Raw_Data_for_FY22[[#This Row],[Median]]","v":84831.6},{"$f":"(((AAMC_Raw_Data_for_FY22[[#This Row],[75th]]-AAMC_Raw_Data_for_FY22[[#This Row],[Median]])/25)*10) + AAMC_Raw_Data_for_FY22[[#This Row],[Median]]","v":90286.2},{"$f":"(((AAMC_Raw_Data_for_FY22[[#This Row],[75th]]-AAMC_Raw_Data_for_FY22[[#This Row],[Median]])/25)*15) + AAMC_Raw_Data_for_FY22[[#This Row],[Median]]","v":95740.800000000003},{"$f":"(((AAMC_Raw_Data_for_FY22[[#This Row],[75th]]-AAMC_Raw_Data_for_FY22[[#This Row],[Median]])/25)*20) + AAMC_Raw_Data_for_FY22[[#This Row],[Median]]","v":101195.4},106650,{"$f":"(((AAMC_Raw_Data_for_FY22[[#This Row],[75th]]-AAMC_Raw_Data_for_FY22[[#This Row],[Median]])/25)*30) + AAMC_Raw_Data_for_FY22[[#This Row],[Median]]","v":112104.6},{"$f":"(((AAMC_Raw_Data_for_FY22[[#This Row],[75th]]-AAMC_Raw_Data_for_FY22[[#This Row],[Median]])/25)*35) + AAMC_Raw_Data_for_FY22[[#This Row],[Median]]","v":117559.20000000001},{"$f":"(((AAMC_Raw_Data_for_FY22[[#This Row],[75th]]-AAMC_Raw_Data_for_FY22[[#This Row],[Median]])/25)*40) + AAMC_Raw_Data_for_FY22[[#This Row],[Median]]","v":123013.8}]
[{"$f":"AAMC_Raw_Data_for_FY22[[#This Row],[Source]]&AAMC_Raw_Data_for_FY22[[#This Row],[Type]]&AAMC_Raw_Data_for_FY22[[#This Row],[School Subset]]&AAMC_Raw_Data_for_FY22[[#This Row],[Rank]]&AAMC_Raw_Data_for_FY22[[#This Row],[Degree]]&AAMC_Raw_Data_for_FY22[[#This Row],[Department / Specialty]]&\"L\"","v":"AAMCAcademicAllAssistantMDPathology: Other PathologyL"},"Pathology: Other Pathology",4,"AAMC","Academic","All","Assistant","MD","2021-2022",205000,{"$f":"(((AAMC_Raw_Data_for_FY22[[#This Row],[Median]]-AAMC_Raw_Data_for_FY22[[#This Row],[25th]])/25)*5) + AAMC_Raw_Data_for_FY22[[#This Row],[25th]]","v":211416.4},{"$f":"(((AAMC_Raw_Data_for_FY22[[#This Row],[Median]]-AAMC_Raw_Data_for_FY22[[#This Row],[25th]])/25)*10) + AAMC_Raw_Data_for_FY22[[#This Row],[25th]]","v":217832.8},{"$f":"(((AAMC_Raw_Data_for_FY22[[#This Row],[Median]]-AAMC_Raw_Data_for_FY22[[#This Row],[25th]])/25)*15) + AAMC_Raw_Data_for_FY22[[#This Row],[25th]]","v":224249.2},{"$f":"(((AAMC_Raw_Data_for_FY22[[#This Row],[Median]]-AAMC_Raw_Data_for_FY22[[#This Row],[25th]])/25)*20) + AAMC_Raw_Data_for_FY22[[#This Row],[25th]]","v":230665.60000000001},237082,{"$f":"(((AAMC_Raw_Data_for_FY22[[#This Row],[75th]]-AAMC_Raw_Data_for_FY22[[#This Row],[Median]])/25)*5) + AAMC_Raw_Data_for_FY22[[#This Row],[Median]]","v":245394.6},{"$f":"(((AAMC_Raw_Data_for_FY22[[#This Row],[75th]]-AAMC_Raw_Data_for_FY22[[#This Row],[Median]])/25)*10) + AAMC_Raw_Data_for_FY22[[#This Row],[Median]]","v":253707.2},{"$f":"(((AAMC_Raw_Data_for_FY22[[#This Row],[75th]]-AAMC_Raw_Data_for_FY22[[#This Row],[Median]])/25)*15) + AAMC_Raw_Data_for_FY22[[#This Row],[Median]]","v":262019.8},{"$f":"(((AAMC_Raw_Data_for_FY22[[#This Row],[75th]]-AAMC_Raw_Data_for_FY22[[#This Row],[Median]])/25)*20) + AAMC_Raw_Data_for_FY22[[#This Row],[Median]]","v":270332.40000000002},278645,{"$f":"(((AAMC_Raw_Data_for_FY22[[#This Row],[75th]]-AAMC_Raw_Data_for_FY22[[#This Row],[Median]])/25)*30) + AAMC_Raw_Data_for_FY22[[#This Row],[Median]]","v":286957.59999999998},{"$f":"(((AAMC_Raw_Data_for_FY22[[#This Row],[75th]]-AAMC_Raw_Data_for_FY22[[#This Row],[Median]])/25)*35) + AAMC_Raw_Data_for_FY22[[#This Row],[Median]]","v":295270.2},{"$f":"(((AAMC_Raw_Data_for_FY22[[#This Row],[75th]]-AAMC_Raw_Data_for_FY22[[#This Row],[Median]])/25)*40) + AAMC_Raw_Data_for_FY22[[#This Row],[Median]]","v":303582.8}]
[{"$f":"AAMC_Raw_Data_for_FY22[[#This Row],[Source]]&AAMC_Raw_Data_for_FY22[[#This Row],[Type]]&AAMC_Raw_Data_for_FY22[[#This Row],[School Subset]]&AAMC_Raw_Data_for_FY22[[#This Row],[Rank]]&AAMC_Raw_Data_for_FY22[[#This Row],[Degree]]&AAMC_Raw_Data_for_FY22[[#This Row],[Department / Specialty]]&\"L\"","v":"AAMCAcademicAllAssociateMDPathology: Other PathologyL"},"Pathology: Other Pathology",3,"AAMC","Academic","All","Associate","MD","2021-2022",182030,{"$f":"(((AAMC_Raw_Data_for_FY22[[#This Row],[Median]]-AAMC_Raw_Data_for_FY22[[#This Row],[25th]])/25)*5) + AAMC_Raw_Data_for_FY22[[#This Row],[25th]]","v":197814.2},{"$f":"(((AAMC_Raw_Data_for_FY22[[#This Row],[Median]]-AAMC_Raw_Data_for_FY22[[#This Row],[25th]])/25)*10) + AAMC_Raw_Data_for_FY22[[#This Row],[25th]]","v":213598.4},{"$f":"(((AAMC_Raw_Data_for_FY22[[#This Row],[Median]]-AAMC_Raw_Data_for_FY22[[#This Row],[25th]])/25)*15) + AAMC_Raw_Data_for_FY22[[#This Row],[25th]]","v":229382.6},{"$f":"(((AAMC_Raw_Data_for_FY22[[#This Row],[Median]]-AAMC_Raw_Data_for_FY22[[#This Row],[25th]])/25)*20) + AAMC_Raw_Data_for_FY22[[#This Row],[25th]]","v":245166.8},260951,{"$f":"(((AAMC_Raw_Data_for_FY22[[#This Row],[75th]]-AAMC_Raw_Data_for_FY22[[#This Row],[Median]])/25)*5) + AAMC_Raw_Data_for_FY22[[#This Row],[Median]]","v":270867.8},{"$f":"(((AAMC_Raw_Data_for_FY22[[#This Row],[75th]]-AAMC_Raw_Data_for_FY22[[#This Row],[Median]])/25)*10) + AAMC_Raw_Data_for_FY22[[#This Row],[Median]]","v":280784.59999999998},{"$f":"(((AAMC_Raw_Data_for_FY22[[#This Row],[75th]]-AAMC_Raw_Data_for_FY22[[#This Row],[Median]])/25)*15) + AAMC_Raw_Data_for_FY22[[#This Row],[Median]]","v":290701.40000000002},{"$f":"(((AAMC_Raw_Data_for_FY22[[#This Row],[75th]]-AAMC_Raw_Data_for_FY22[[#This Row],[Median]])/25)*20) + AAMC_Raw_Data_for_FY22[[#This Row],[Median]]","v":300618.2},310535,{"$f":"(((AAMC_Raw_Data_for_FY22[[#This Row],[75th]]-AAMC_Raw_Data_for_FY22[[#This Row],[Median]])/25)*30) + AAMC_Raw_Data_for_FY22[[#This Row],[Median]]","v":320451.8},{"$f":"(((AAMC_Raw_Data_for_FY22[[#This Row],[75th]]-AAMC_Raw_Data_for_FY22[[#This Row],[Median]])/25)*35) + AAMC_Raw_Data_for_FY22[[#This Row],[Median]]","v":330368.59999999998},{"$f":"(((AAMC_Raw_Data_for_FY22[[#This Row],[75th]]-AAMC_Raw_Data_for_FY22[[#This Row],[Median]])/25)*40) + AAMC_Raw_Data_for_FY22[[#This Row],[Median]]","v":340285.4}]
[{"$f":"AAMC_Raw_Data_for_FY22[[#This Row],[Source]]&AAMC_Raw_Data_for_FY22[[#This Row],[Type]]&AAMC_Raw_Data_for_FY22[[#This Row],[School Subset]]&AAMC_Raw_Data_for_FY22[[#This Row],[Rank]]&AAMC_Raw_Data_for_FY22[[#This Row],[Degree]]&AAMC_Raw_Data_for_FY22[[#This Row],[Department / Specialty]]&\"L\"","v":"AAMCAcademicAllProfessorMDPathology: Other PathologyL"},"Pathology: Other Pathology",2,"AAMC","Academic","All","Professor","MD","2021-2022",229995,{"$f":"(((AAMC_Raw_Data_for_FY22[[#This Row],[Median]]-AAMC_Raw_Data_for_FY22[[#This Row],[25th]])/25)*5) + AAMC_Raw_Data_for_FY22[[#This Row],[25th]]","v":242934.2},{"$f":"(((AAMC_Raw_Data_for_FY22[[#This Row],[Median]]-AAMC_Raw_Data_for_FY22[[#This Row],[25th]])/25)*10) + AAMC_Raw_Data_for_FY22[[#This Row],[25th]]","v":255873.4},{"$f":"(((AAMC_Raw_Data_for_FY22[[#This Row],[Median]]-AAMC_Raw_Data_for_FY22[[#This Row],[25th]])/25)*15) + AAMC_Raw_Data_for_FY22[[#This Row],[25th]]","v":268812.59999999998},{"$f":"(((AAMC_Raw_Data_for_FY22[[#This Row],[Median]]-AAMC_Raw_Data_for_FY22[[#This Row],[25th]])/25)*20) + AAMC_Raw_Data_for_FY22[[#This Row],[25th]]","v":281751.8},294691,{"$f":"(((AAMC_Raw_Data_for_FY22[[#This Row],[75th]]-AAMC_Raw_Data_for_FY22[[#This Row],[Median]])/25)*5) + AAMC_Raw_Data_for_FY22[[#This Row],[Median]]","v":309476.8},{"$f":"(((AAMC_Raw_Data_for_FY22[[#This Row],[75th]]-AAMC_Raw_Data_for_FY22[[#This Row],[Median]])/25)*10) + AAMC_Raw_Data_for_FY22[[#This Row],[Median]]","v":324262.59999999998},{"$f":"(((AAMC_Raw_Data_for_FY22[[#This Row],[75th]]-AAMC_Raw_Data_for_FY22[[#This Row],[Median]])/25)*15) + AAMC_Raw_Data_for_FY22[[#This Row],[Median]]","v":339048.4},{"$f":"(((AAMC_Raw_Data_for_FY22[[#This Row],[75th]]-AAMC_Raw_Data_for_FY22[[#This Row],[Median]])/25)*20) + AAMC_Raw_Data_for_FY22[[#This Row],[Median]]","v":353834.2},368620,{"$f":"(((AAMC_Raw_Data_for_FY22[[#This Row],[75th]]-AAMC_Raw_Data_for_FY22[[#This Row],[Median]])/25)*30) + AAMC_Raw_Data_for_FY22[[#This Row],[Median]]","v":383405.8},{"$f":"(((AAMC_Raw_Data_for_FY22[[#This Row],[75th]]-AAMC_Raw_Data_for_FY22[[#This Row],[Median]])/25)*35) + AAMC_Raw_Data_for_FY22[[#This Row],[Median]]","v":398191.6},{"$f":"(((AAMC_Raw_Data_for_FY22[[#This Row],[75th]]-AAMC_Raw_Data_for_FY22[[#This Row],[Median]])/25)*40) + AAMC_Raw_Data_for_FY22[[#This Row],[Median]]","v":412977.4}]
[{"$f":"AAMC_Raw_Data_for_FY22[[#This Row],[Source]]&AAMC_Raw_Data_for_FY22[[#This Row],[Type]]&AAMC_Raw_Data_for_FY22[[#This Row],[School Subset]]&AAMC_Raw_Data_for_FY22[[#This Row],[Rank]]&AAMC_Raw_Data_for_FY22[[#This Row],[Degree]]&AAMC_Raw_Data_for_FY22[[#This Row],[Department / Specialty]]&\"L\"","v":"AAMCAcademicAllChiefMDPathology: Other PathologyL"},"Pathology: Other Pathology",6,"AAMC","Academic","All","Chief","MD","2021-2022",339395,{"$f":"(((AAMC_Raw_Data_for_FY22[[#This Row],[Median]]-AAMC_Raw_Data_for_FY22[[#This Row],[25th]])/25)*5) + AAMC_Raw_Data_for_FY22[[#This Row],[25th]]","v":351825.8},{"$f":"(((AAMC_Raw_Data_for_FY22[[#This Row],[Median]]-AAMC_Raw_Data_for_FY22[[#This Row],[25th]])/25)*10) + AAMC_Raw_Data_for_FY22[[#This Row],[25th]]","v":364256.6},{"$f":"(((AAMC_Raw_Data_for_FY22[[#This Row],[Median]]-AAMC_Raw_Data_for_FY22[[#This Row],[25th]])/25)*15) + AAMC_Raw_Data_for_FY22[[#This Row],[25th]]","v":376687.4},{"$f":"(((AAMC_Raw_Data_for_FY22[[#This Row],[Median]]-AAMC_Raw_Data_for_FY22[[#This Row],[25th]])/25)*20) + AAMC_Raw_Data_for_FY22[[#This Row],[25th]]","v":389118.2},401549,{"$f":"(((AAMC_Raw_Data_for_FY22[[#This Row],[75th]]-AAMC_Raw_Data_for_FY22[[#This Row],[Median]])/25)*5) + AAMC_Raw_Data_for_FY22[[#This Row],[Median]]","v":412824.6},{"$f":"(((AAMC_Raw_Data_for_FY22[[#This Row],[75th]]-AAMC_Raw_Data_for_FY22[[#This Row],[Median]])/25)*10) + AAMC_Raw_Data_for_FY22[[#This Row],[Median]]","v":424100.2},{"$f":"(((AAMC_Raw_Data_for_FY22[[#This Row],[75th]]-AAMC_Raw_Data_for_FY22[[#This Row],[Median]])/25)*15) + AAMC_Raw_Data_for_FY22[[#This Row],[Median]]","v":435375.8},{"$f":"(((AAMC_Raw_Data_for_FY22[[#This Row],[75th]]-AAMC_Raw_Data_for_FY22[[#This Row],[Median]])/25)*20) + AAMC_Raw_Data_for_FY22[[#This Row],[Median]]","v":446651.4},457927,{"$f":"(((AAMC_Raw_Data_for_FY22[[#This Row],[75th]]-AAMC_Raw_Data_for_FY22[[#This Row],[Median]])/25)*30) + AAMC_Raw_Data_for_FY22[[#This Row],[Median]]","v":469202.6},{"$f":"(((AAMC_Raw_Data_for_FY22[[#This Row],[75th]]-AAMC_Raw_Data_for_FY22[[#This Row],[Median]])/25)*35) + AAMC_Raw_Data_for_FY22[[#This Row],[Median]]","v":480478.2},{"$f":"(((AAMC_Raw_Data_for_FY22[[#This Row],[75th]]-AAMC_Raw_Data_for_FY22[[#This Row],[Median]])/25)*40) + AAMC_Raw_Data_for_FY22[[#This Row],[Median]]","v":491753.8}]
[{"$f":"AAMC_Raw_Data_for_FY22[[#This Row],[Source]]&AAMC_Raw_Data_for_FY22[[#This Row],[Type]]&AAMC_Raw_Data_for_FY22[[#This Row],[School Subset]]&AAMC_Raw_Data_for_FY22[[#This Row],[Rank]]&AAMC_Raw_Data_for_FY22[[#This Row],[Degree]]&AAMC_Raw_Data_for_FY22[[#This Row],[Department / Specialty]]&\"L\"","v":"AAMCAcademicAllChairMDPathology: Other PathologyL"},"Pathology: Other Pathology",1,"AAMC","Academic","All","Chair","MD","2021-2022",523729,{"$f":"(((AAMC_Raw_Data_for_FY22[[#This Row],[Median]]-AAMC_Raw_Data_for_FY22[[#This Row],[25th]])/25)*5) + AAMC_Raw_Data_for_FY22[[#This Row],[25th]]","v":533052.80000000005},{"$f":"(((AAMC_Raw_Data_for_FY22[[#This Row],[Median]]-AAMC_Raw_Data_for_FY22[[#This Row],[25th]])/25)*10) + AAMC_Raw_Data_for_FY22[[#This Row],[25th]]","v":542376.6},{"$f":"(((AAMC_Raw_Data_for_FY22[[#This Row],[Median]]-AAMC_Raw_Data_for_FY22[[#This Row],[25th]])/25)*15) + AAMC_Raw_Data_for_FY22[[#This Row],[25th]]","v":551700.4},{"$f":"(((AAMC_Raw_Data_for_FY22[[#This Row],[Median]]-AAMC_Raw_Data_for_FY22[[#This Row],[25th]])/25)*20) + AAMC_Raw_Data_for_FY22[[#This Row],[25th]]","v":561024.19999999995},570348,{"$f":"(((AAMC_Raw_Data_for_FY22[[#This Row],[75th]]-AAMC_Raw_Data_for_FY22[[#This Row],[Median]])/25)*5) + AAMC_Raw_Data_for_FY22[[#This Row],[Median]]","v":598631},{"$f":"(((AAMC_Raw_Data_for_FY22[[#This Row],[75th]]-AAMC_Raw_Data_for_FY22[[#This Row],[Median]])/25)*10) + AAMC_Raw_Data_for_FY22[[#This Row],[Median]]","v":626914},{"$f":"(((AAMC_Raw_Data_for_FY22[[#This Row],[75th]]-AAMC_Raw_Data_for_FY22[[#This Row],[Median]])/25)*15) + AAMC_Raw_Data_for_FY22[[#This Row],[Median]]","v":655197},{"$f":"(((AAMC_Raw_Data_for_FY22[[#This Row],[75th]]-AAMC_Raw_Data_for_FY22[[#This Row],[Median]])/25)*20) + AAMC_Raw_Data_for_FY22[[#This Row],[Median]]","v":683480},711763,{"$f":"(((AAMC_Raw_Data_for_FY22[[#This Row],[75th]]-AAMC_Raw_Data_for_FY22[[#This Row],[Median]])/25)*30) + AAMC_Raw_Data_for_FY22[[#This Row],[Median]]","v":740046},{"$f":"(((AAMC_Raw_Data_for_FY22[[#This Row],[75th]]-AAMC_Raw_Data_for_FY22[[#This Row],[Median]])/25)*35) + AAMC_Raw_Data_for_FY22[[#This Row],[Median]]","v":768329},{"$f":"(((AAMC_Raw_Data_for_FY22[[#This Row],[75th]]-AAMC_Raw_Data_for_FY22[[#This Row],[Median]])/25)*40) + AAMC_Raw_Data_for_FY22[[#This Row],[Median]]","v":796612}]
[{"$f":"AAMC_Raw_Data_for_FY22[[#This Row],[Source]]&AAMC_Raw_Data_for_FY22[[#This Row],[Type]]&AAMC_Raw_Data_for_FY22[[#This Row],[School Subset]]&AAMC_Raw_Data_for_FY22[[#This Row],[Rank]]&AAMC_Raw_Data_for_FY22[[#This Row],[Degree]]&AAMC_Raw_Data_for_FY22[[#This Row],[Department / Specialty]]&\"L\"","v":"AAMCAcademicAllInstructorMDPediatrics TotalL"},"Pediatrics Total",5,"AAMC","Academic","All","Instructor","MD","2021-2022",141458,{"$f":"(((AAMC_Raw_Data_for_FY22[[#This Row],[Median]]-AAMC_Raw_Data_for_FY22[[#This Row],[25th]])/25)*5) + AAMC_Raw_Data_for_FY22[[#This Row],[25th]]","v":149882.79999999999},{"$f":"(((AAMC_Raw_Data_for_FY22[[#This Row],[Median]]-AAMC_Raw_Data_for_FY22[[#This Row],[25th]])/25)*10) + AAMC_Raw_Data_for_FY22[[#This Row],[25th]]","v":158307.6},{"$f":"(((AAMC_Raw_Data_for_FY22[[#This Row],[Median]]-AAMC_Raw_Data_for_FY22[[#This Row],[25th]])/25)*15) + AAMC_Raw_Data_for_FY22[[#This Row],[25th]]","v":166732.4},{"$f":"(((AAMC_Raw_Data_for_FY22[[#This Row],[Median]]-AAMC_Raw_Data_for_FY22[[#This Row],[25th]])/25)*20) + AAMC_Raw_Data_for_FY22[[#This Row],[25th]]","v":175157.2},183582,{"$f":"(((AAMC_Raw_Data_for_FY22[[#This Row],[75th]]-AAMC_Raw_Data_for_FY22[[#This Row],[Median]])/25)*5) + AAMC_Raw_Data_for_FY22[[#This Row],[Median]]","v":191687.4},{"$f":"(((AAMC_Raw_Data_for_FY22[[#This Row],[75th]]-AAMC_Raw_Data_for_FY22[[#This Row],[Median]])/25)*10) + AAMC_Raw_Data_for_FY22[[#This Row],[Median]]","v":199792.8},{"$f":"(((AAMC_Raw_Data_for_FY22[[#This Row],[75th]]-AAMC_Raw_Data_for_FY22[[#This Row],[Median]])/25)*15) + AAMC_Raw_Data_for_FY22[[#This Row],[Median]]","v":207898.2},{"$f":"(((AAMC_Raw_Data_for_FY22[[#This Row],[75th]]-AAMC_Raw_Data_for_FY22[[#This Row],[Median]])/25)*20) + AAMC_Raw_Data_for_FY22[[#This Row],[Median]]","v":216003.6},224109,{"$f":"(((AAMC_Raw_Data_for_FY22[[#This Row],[75th]]-AAMC_Raw_Data_for_FY22[[#This Row],[Median]])/25)*30) + AAMC_Raw_Data_for_FY22[[#This Row],[Median]]","v":232214.39999999999},{"$f":"(((AAMC_Raw_Data_for_FY22[[#This Row],[75th]]-AAMC_Raw_Data_for_FY22[[#This Row],[Median]])/25)*35) + AAMC_Raw_Data_for_FY22[[#This Row],[Median]]","v":240319.8},{"$f":"(((AAMC_Raw_Data_for_FY22[[#This Row],[75th]]-AAMC_Raw_Data_for_FY22[[#This Row],[Median]])/25)*40) + AAMC_Raw_Data_for_FY22[[#This Row],[Median]]","v":248425.2}]
[{"$f":"AAMC_Raw_Data_for_FY22[[#This Row],[Source]]&AAMC_Raw_Data_for_FY22[[#This Row],[Type]]&AAMC_Raw_Data_for_FY22[[#This Row],[School Subset]]&AAMC_Raw_Data_for_FY22[[#This Row],[Rank]]&AAMC_Raw_Data_for_FY22[[#This Row],[Degree]]&AAMC_Raw_Data_for_FY22[[#This Row],[Department / Specialty]]&\"L\"","v":"AAMCAcademicAllAssistantMDPediatrics TotalL"},"Pediatrics Total",4,"AAMC","Academic","All","Assistant","MD","2021-2022",180520,{"$f":"(((AAMC_Raw_Data_for_FY22[[#This Row],[Median]]-AAMC_Raw_Data_for_FY22[[#This Row],[25th]])/25)*5) + AAMC_Raw_Data_for_FY22[[#This Row],[25th]]","v":187168.4},{"$f":"(((AAMC_Raw_Data_for_FY22[[#This Row],[Median]]-AAMC_Raw_Data_for_FY22[[#This Row],[25th]])/25)*10) + AAMC_Raw_Data_for_FY22[[#This Row],[25th]]","v":193816.8},{"$f":"(((AAMC_Raw_Data_for_FY22[[#This Row],[Median]]-AAMC_Raw_Data_for_FY22[[#This Row],[25th]])/25)*15) + AAMC_Raw_Data_for_FY22[[#This Row],[25th]]","v":200465.2},{"$f":"(((AAMC_Raw_Data_for_FY22[[#This Row],[Median]]-AAMC_Raw_Data_for_FY22[[#This Row],[25th]])/25)*20) + AAMC_Raw_Data_for_FY22[[#This Row],[25th]]","v":207113.60000000001},213762,{"$f":"(((AAMC_Raw_Data_for_FY22[[#This Row],[75th]]-AAMC_Raw_Data_for_FY22[[#This Row],[Median]])/25)*5) + AAMC_Raw_Data_for_FY22[[#This Row],[Median]]","v":221855.4},{"$f":"(((AAMC_Raw_Data_for_FY22[[#This Row],[75th]]-AAMC_Raw_Data_for_FY22[[#This Row],[Median]])/25)*10) + AAMC_Raw_Data_for_FY22[[#This Row],[Median]]","v":229948.79999999999},{"$f":"(((AAMC_Raw_Data_for_FY22[[#This Row],[75th]]-AAMC_Raw_Data_for_FY22[[#This Row],[Median]])/25)*15) + AAMC_Raw_Data_for_FY22[[#This Row],[Median]]","v":238042.2},{"$f":"(((AAMC_Raw_Data_for_FY22[[#This Row],[75th]]-AAMC_Raw_Data_for_FY22[[#This Row],[Median]])/25)*20) + AAMC_Raw_Data_for_FY22[[#This Row],[Median]]","v":246135.6},254229,{"$f":"(((AAMC_Raw_Data_for_FY22[[#This Row],[75th]]-AAMC_Raw_Data_for_FY22[[#This Row],[Median]])/25)*30) + AAMC_Raw_Data_for_FY22[[#This Row],[Median]]","v":262322.40000000002},{"$f":"(((AAMC_Raw_Data_for_FY22[[#This Row],[75th]]-AAMC_Raw_Data_for_FY22[[#This Row],[Median]])/25)*35) + AAMC_Raw_Data_for_FY22[[#This Row],[Median]]","v":270415.8},{"$f":"(((AAMC_Raw_Data_for_FY22[[#This Row],[75th]]-AAMC_Raw_Data_for_FY22[[#This Row],[Median]])/25)*40) + AAMC_Raw_Data_for_FY22[[#This Row],[Median]]","v":278509.2}]
[{"$f":"AAMC_Raw_Data_for_FY22[[#This Row],[Source]]&AAMC_Raw_Data_for_FY22[[#This Row],[Type]]&AAMC_Raw_Data_for_FY22[[#This Row],[School Subset]]&AAMC_Raw_Data_for_FY22[[#This Row],[Rank]]&AAMC_Raw_Data_for_FY22[[#This Row],[Degree]]&AAMC_Raw_Data_for_FY22[[#This Row],[Department / Specialty]]&\"L\"","v":"AAMCAcademicAllAssociateMDPediatrics TotalL"},"Pediatrics Total",3,"AAMC","Academic","All","Associate","MD","2021-2022",210330,{"$f":"(((AAMC_Raw_Data_for_FY22[[#This Row],[Median]]-AAMC_Raw_Data_for_FY22[[#This Row],[25th]])/25)*5) + AAMC_Raw_Data_for_FY22[[#This Row],[25th]]","v":218480.2},{"$f":"(((AAMC_Raw_Data_for_FY22[[#This Row],[Median]]-AAMC_Raw_Data_for_FY22[[#This Row],[25th]])/25)*10) + AAMC_Raw_Data_for_FY22[[#This Row],[25th]]","v":226630.39999999999},{"$f":"(((AAMC_Raw_Data_for_FY22[[#This Row],[Median]]-AAMC_Raw_Data_for_FY22[[#This Row],[25th]])/25)*15) + AAMC_Raw_Data_for_FY22[[#This Row],[25th]]","v":234780.6},{"$f":"(((AAMC_Raw_Data_for_FY22[[#This Row],[Median]]-AAMC_Raw_Data_for_FY22[[#This Row],[25th]])/25)*20) + AAMC_Raw_Data_for_FY22[[#This Row],[25th]]","v":242930.8},251081,{"$f":"(((AAMC_Raw_Data_for_FY22[[#This Row],[75th]]-AAMC_Raw_Data_for_FY22[[#This Row],[Median]])/25)*5) + AAMC_Raw_Data_for_FY22[[#This Row],[Median]]","v":261271},{"$f":"(((AAMC_Raw_Data_for_FY22[[#This Row],[75th]]-AAMC_Raw_Data_for_FY22[[#This Row],[Median]])/25)*10) + AAMC_Raw_Data_for_FY22[[#This Row],[Median]]","v":271461},{"$f":"(((AAMC_Raw_Data_for_FY22[[#This Row],[75th]]-AAMC_Raw_Data_for_FY22[[#This Row],[Median]])/25)*15) + AAMC_Raw_Data_for_FY22[[#This Row],[Median]]","v":281651},{"$f":"(((AAMC_Raw_Data_for_FY22[[#This Row],[75th]]-AAMC_Raw_Data_for_FY22[[#This Row],[Median]])/25)*20) + AAMC_Raw_Data_for_FY22[[#This Row],[Median]]","v":291841},302031,{"$f":"(((AAMC_Raw_Data_for_FY22[[#This Row],[75th]]-AAMC_Raw_Data_for_FY22[[#This Row],[Median]])/25)*30) + AAMC_Raw_Data_for_FY22[[#This Row],[Median]]","v":312221},{"$f":"(((AAMC_Raw_Data_for_FY22[[#This Row],[75th]]-AAMC_Raw_Data_for_FY22[[#This Row],[Median]])/25)*35) + AAMC_Raw_Data_for_FY22[[#This Row],[Median]]","v":322411},{"$f":"(((AAMC_Raw_Data_for_FY22[[#This Row],[75th]]-AAMC_Raw_Data_for_FY22[[#This Row],[Median]])/25)*40) + AAMC_Raw_Data_for_FY22[[#This Row],[Median]]","v":332601}]
[{"$f":"AAMC_Raw_Data_for_FY22[[#This Row],[Source]]&AAMC_Raw_Data_for_FY22[[#This Row],[Type]]&AAMC_Raw_Data_for_FY22[[#This Row],[School Subset]]&AAMC_Raw_Data_for_FY22[[#This Row],[Rank]]&AAMC_Raw_Data_for_FY22[[#This Row],[Degree]]&AAMC_Raw_Data_for_FY22[[#This Row],[Department / Specialty]]&\"L\"","v":"AAMCAcademicAllProfessorMDPediatrics TotalL"},"Pediatrics Total",2,"AAMC","Academic","All","Professor","MD","2021-2022",255938,{"$f":"(((AAMC_Raw_Data_for_FY22[[#This Row],[Median]]-AAMC_Raw_Data_for_FY22[[#This Row],[25th]])/25)*5) + AAMC_Raw_Data_for_FY22[[#This Row],[25th]]","v":265917.40000000002},{"$f":"(((AAMC_Raw_Data_for_FY22[[#This Row],[Median]]-AAMC_Raw_Data_for_FY22[[#This Row],[25th]])/25)*10) + AAMC_Raw_Data_for_FY22[[#This Row],[25th]]","v":275896.8},{"$f":"(((AAMC_Raw_Data_for_FY22[[#This Row],[Median]]-AAMC_Raw_Data_for_FY22[[#This Row],[25th]])/25)*15) + AAMC_Raw_Data_for_FY22[[#This Row],[25th]]","v":285876.2},{"$f":"(((AAMC_Raw_Data_for_FY22[[#This Row],[Median]]-AAMC_Raw_Data_for_FY22[[#This Row],[25th]])/25)*20) + AAMC_Raw_Data_for_FY22[[#This Row],[25th]]","v":295855.59999999998},305835,{"$f":"(((AAMC_Raw_Data_for_FY22[[#This Row],[75th]]-AAMC_Raw_Data_for_FY22[[#This Row],[Median]])/25)*5) + AAMC_Raw_Data_for_FY22[[#This Row],[Median]]","v":318128.2},{"$f":"(((AAMC_Raw_Data_for_FY22[[#This Row],[75th]]-AAMC_Raw_Data_for_FY22[[#This Row],[Median]])/25)*10) + AAMC_Raw_Data_for_FY22[[#This Row],[Median]]","v":330421.40000000002},{"$f":"(((AAMC_Raw_Data_for_FY22[[#This Row],[75th]]-AAMC_Raw_Data_for_FY22[[#This Row],[Median]])/25)*15) + AAMC_Raw_Data_for_FY22[[#This Row],[Median]]","v":342714.6},{"$f":"(((AAMC_Raw_Data_for_FY22[[#This Row],[75th]]-AAMC_Raw_Data_for_FY22[[#This Row],[Median]])/25)*20) + AAMC_Raw_Data_for_FY22[[#This Row],[Median]]","v":355007.8},367301,{"$f":"(((AAMC_Raw_Data_for_FY22[[#This Row],[75th]]-AAMC_Raw_Data_for_FY22[[#This Row],[Median]])/25)*30) + AAMC_Raw_Data_for_FY22[[#This Row],[Median]]","v":379594.2},{"$f":"(((AAMC_Raw_Data_for_FY22[[#This Row],[75th]]-AAMC_Raw_Data_for_FY22[[#This Row],[Median]])/25)*35) + AAMC_Raw_Data_for_FY22[[#This Row],[Median]]","v":391887.4},{"$f":"(((AAMC_Raw_Data_for_FY22[[#This Row],[75th]]-AAMC_Raw_Data_for_FY22[[#This Row],[Median]])/25)*40) + AAMC_Raw_Data_for_FY22[[#This Row],[Median]]","v":404180.6}]
[{"$f":"AAMC_Raw_Data_for_FY22[[#This Row],[Source]]&AAMC_Raw_Data_for_FY22[[#This Row],[Type]]&AAMC_Raw_Data_for_FY22[[#This Row],[School Subset]]&AAMC_Raw_Data_for_FY22[[#This Row],[Rank]]&AAMC_Raw_Data_for_FY22[[#This Row],[Degree]]&AAMC_Raw_Data_for_FY22[[#This Row],[Department / Specialty]]&\"L\"","v":"AAMCAcademicAllChiefMDPediatrics TotalL"},"Pediatrics Total",6,"AAMC","Academic","All","Chief","MD","2021-2022",261918,{"$f":"(((AAMC_Raw_Data_for_FY22[[#This Row],[Median]]-AAMC_Raw_Data_for_FY22[[#This Row],[25th]])/25)*5) + AAMC_Raw_Data_for_FY22[[#This Row],[25th]]","v":273380.40000000002},{"$f":"(((AAMC_Raw_Data_for_FY22[[#This Row],[Median]]-AAMC_Raw_Data_for_FY22[[#This Row],[25th]])/25)*10) + AAMC_Raw_Data_for_FY22[[#This Row],[25th]]","v":284842.8},{"$f":"(((AAMC_Raw_Data_for_FY22[[#This Row],[Median]]-AAMC_Raw_Data_for_FY22[[#This Row],[25th]])/25)*15) + AAMC_Raw_Data_for_FY22[[#This Row],[25th]]","v":296305.2},{"$f":"(((AAMC_Raw_Data_for_FY22[[#This Row],[Median]]-AAMC_Raw_Data_for_FY22[[#This Row],[25th]])/25)*20) + AAMC_Raw_Data_for_FY22[[#This Row],[25th]]","v":307767.59999999998},319230,{"$f":"(((AAMC_Raw_Data_for_FY22[[#This Row],[75th]]-AAMC_Raw_Data_for_FY22[[#This Row],[Median]])/25)*5) + AAMC_Raw_Data_for_FY22[[#This Row],[Median]]","v":333035.2},{"$f":"(((AAMC_Raw_Data_for_FY22[[#This Row],[75th]]-AAMC_Raw_Data_for_FY22[[#This Row],[Median]])/25)*10) + AAMC_Raw_Data_for_FY22[[#This Row],[Median]]","v":346840.4},{"$f":"(((AAMC_Raw_Data_for_FY22[[#This Row],[75th]]-AAMC_Raw_Data_for_FY22[[#This Row],[Median]])/25)*15) + AAMC_Raw_Data_for_FY22[[#This Row],[Median]]","v":360645.6},{"$f":"(((AAMC_Raw_Data_for_FY22[[#This Row],[75th]]-AAMC_Raw_Data_for_FY22[[#This Row],[Median]])/25)*20) + AAMC_Raw_Data_for_FY22[[#This Row],[Median]]","v":374450.8},388256,{"$f":"(((AAMC_Raw_Data_for_FY22[[#This Row],[75th]]-AAMC_Raw_Data_for_FY22[[#This Row],[Median]])/25)*30) + AAMC_Raw_Data_for_FY22[[#This Row],[Median]]","v":402061.2},{"$f":"(((AAMC_Raw_Data_for_FY22[[#This Row],[75th]]-AAMC_Raw_Data_for_FY22[[#This Row],[Median]])/25)*35) + AAMC_Raw_Data_for_FY22[[#This Row],[Median]]","v":415866.4},{"$f":"(((AAMC_Raw_Data_for_FY22[[#This Row],[75th]]-AAMC_Raw_Data_for_FY22[[#This Row],[Median]])/25)*40) + AAMC_Raw_Data_for_FY22[[#This Row],[Median]]","v":429671.6}]
[{"$f":"AAMC_Raw_Data_for_FY22[[#This Row],[Source]]&AAMC_Raw_Data_for_FY22[[#This Row],[Type]]&AAMC_Raw_Data_for_FY22[[#This Row],[School Subset]]&AAMC_Raw_Data_for_FY22[[#This Row],[Rank]]&AAMC_Raw_Data_for_FY22[[#This Row],[Degree]]&AAMC_Raw_Data_for_FY22[[#This Row],[Department / Specialty]]&\"L\"","v":"AAMCAcademicAllChairMDPediatrics TotalL"},"Pediatrics Total",1,"AAMC","Academic","All","Chair","MD","2021-2022",467376,{"$f":"(((AAMC_Raw_Data_for_FY22[[#This Row],[Median]]-AAMC_Raw_Data_for_FY22[[#This Row],[25th]])/25)*5) + AAMC_Raw_Data_for_FY22[[#This Row],[25th]]","v":486261},{"$f":"(((AAMC_Raw_Data_for_FY22[[#This Row],[Median]]-AAMC_Raw_Data_for_FY22[[#This Row],[25th]])/25)*10) + AAMC_Raw_Data_for_FY22[[#This Row],[25th]]","v":505146},{"$f":"(((AAMC_Raw_Data_for_FY22[[#This Row],[Median]]-AAMC_Raw_Data_for_FY22[[#This Row],[25th]])/25)*15) + AAMC_Raw_Data_for_FY22[[#This Row],[25th]]","v":524031},{"$f":"(((AAMC_Raw_Data_for_FY22[[#This Row],[Median]]-AAMC_Raw_Data_for_FY22[[#This Row],[25th]])/25)*20) + AAMC_Raw_Data_for_FY22[[#This Row],[25th]]","v":542916},561801,{"$f":"(((AAMC_Raw_Data_for_FY22[[#This Row],[75th]]-AAMC_Raw_Data_for_FY22[[#This Row],[Median]])/25)*5) + AAMC_Raw_Data_for_FY22[[#This Row],[Median]]","v":577944.80000000005},{"$f":"(((AAMC_Raw_Data_for_FY22[[#This Row],[75th]]-AAMC_Raw_Data_for_FY22[[#This Row],[Median]])/25)*10) + AAMC_Raw_Data_for_FY22[[#This Row],[Median]]","v":594088.6},{"$f":"(((AAMC_Raw_Data_for_FY22[[#This Row],[75th]]-AAMC_Raw_Data_for_FY22[[#This Row],[Median]])/25)*15) + AAMC_Raw_Data_for_FY22[[#This Row],[Median]]","v":610232.4},{"$f":"(((AAMC_Raw_Data_for_FY22[[#This Row],[75th]]-AAMC_Raw_Data_for_FY22[[#This Row],[Median]])/25)*20) + AAMC_Raw_Data_for_FY22[[#This Row],[Median]]","v":626376.19999999995},642520,{"$f":"(((AAMC_Raw_Data_for_FY22[[#This Row],[75th]]-AAMC_Raw_Data_for_FY22[[#This Row],[Median]])/25)*30) + AAMC_Raw_Data_for_FY22[[#This Row],[Median]]","v":658663.80000000005},{"$f":"(((AAMC_Raw_Data_for_FY22[[#This Row],[75th]]-AAMC_Raw_Data_for_FY22[[#This Row],[Median]])/25)*35) + AAMC_Raw_Data_for_FY22[[#This Row],[Median]]","v":674807.6},{"$f":"(((AAMC_Raw_Data_for_FY22[[#This Row],[75th]]-AAMC_Raw_Data_for_FY22[[#This Row],[Median]])/25)*40) + AAMC_Raw_Data_for_FY22[[#This Row],[Median]]","v":690951.4}]
[{"$f":"AAMC_Raw_Data_for_FY22[[#This Row],[Source]]&AAMC_Raw_Data_for_FY22[[#This Row],[Type]]&AAMC_Raw_Data_for_FY22[[#This Row],[School Subset]]&AAMC_Raw_Data_for_FY22[[#This Row],[Rank]]&AAMC_Raw_Data_for_FY22[[#This Row],[Degree]]&AAMC_Raw_Data_for_FY22[[#This Row],[Department / Specialty]]&\"L\"","v":"AAMCAcademicAllInstructorMDAdolescent MedicineL"},"Adolescent Medicine",5,"AAMC","Academic","All","Instructor","MD","2021-2022",null,{"$f":"(((AAMC_Raw_Data_for_FY22[[#This Row],[Median]]-AAMC_Raw_Data_for_FY22[[#This Row],[25th]])/25)*5) + AAMC_Raw_Data_for_FY22[[#This Row],[25th]]","v":0},{"$f":"(((AAMC_Raw_Data_for_FY22[[#This Row],[Median]]-AAMC_Raw_Data_for_FY22[[#This Row],[25th]])/25)*10) + AAMC_Raw_Data_for_FY22[[#This Row],[25th]]","v":0},{"$f":"(((AAMC_Raw_Data_for_FY22[[#This Row],[Median]]-AAMC_Raw_Data_for_FY22[[#This Row],[25th]])/25)*15) + AAMC_Raw_Data_for_FY22[[#This Row],[25th]]","v":0},{"$f":"(((AAMC_Raw_Data_for_FY22[[#This Row],[Median]]-AAMC_Raw_Data_for_FY22[[#This Row],[25th]])/25)*20) + AAMC_Raw_Data_for_FY22[[#This Row],[25th]]","v":0},null,{"$f":"(((AAMC_Raw_Data_for_FY22[[#This Row],[75th]]-AAMC_Raw_Data_for_FY22[[#This Row],[Median]])/25)*5) + AAMC_Raw_Data_for_FY22[[#This Row],[Median]]","v":0},{"$f":"(((AAMC_Raw_Data_for_FY22[[#This Row],[75th]]-AAMC_Raw_Data_for_FY22[[#This Row],[Median]])/25)*10) + AAMC_Raw_Data_for_FY22[[#This Row],[Median]]","v":0},{"$f":"(((AAMC_Raw_Data_for_FY22[[#This Row],[75th]]-AAMC_Raw_Data_for_FY22[[#This Row],[Median]])/25)*15) + AAMC_Raw_Data_for_FY22[[#This Row],[Median]]","v":0},{"$f":"(((AAMC_Raw_Data_for_FY22[[#This Row],[75th]]-AAMC_Raw_Data_for_FY22[[#This Row],[Median]])/25)*20) + AAMC_Raw_Data_for_FY22[[#This Row],[Median]]","v":0},null,{"$f":"(((AAMC_Raw_Data_for_FY22[[#This Row],[75th]]-AAMC_Raw_Data_for_FY22[[#This Row],[Median]])/25)*30) + AAMC_Raw_Data_for_FY22[[#This Row],[Median]]","v":0},{"$f":"(((AAMC_Raw_Data_for_FY22[[#This Row],[75th]]-AAMC_Raw_Data_for_FY22[[#This Row],[Median]])/25)*35) + AAMC_Raw_Data_for_FY22[[#This Row],[Median]]","v":0},{"$f":"(((AAMC_Raw_Data_for_FY22[[#This Row],[75th]]-AAMC_Raw_Data_for_FY22[[#This Row],[Median]])/25)*40) + AAMC_Raw_Data_for_FY22[[#This Row],[Median]]","v":0}]
[{"$f":"AAMC_Raw_Data_for_FY22[[#This Row],[Source]]&AAMC_Raw_Data_for_FY22[[#This Row],[Type]]&AAMC_Raw_Data_for_FY22[[#This Row],[School Subset]]&AAMC_Raw_Data_for_FY22[[#This Row],[Rank]]&AAMC_Raw_Data_for_FY22[[#This Row],[Degree]]&AAMC_Raw_Data_for_FY22[[#This Row],[Department / Specialty]]&\"L\"","v":"AAMCAcademicAllAssistantMDAdolescent MedicineL"},"Adolescent Medicine",4,"AAMC","Academic","All","Assistant","MD","2021-2022",160614,{"$f":"(((AAMC_Raw_Data_for_FY22[[#This Row],[Median]]-AAMC_Raw_Data_for_FY22[[#This Row],[25th]])/25)*5) + AAMC_Raw_Data_for_FY22[[#This Row],[25th]]","v":163452.20000000001},{"$f":"(((AAMC_Raw_Data_for_FY22[[#This Row],[Median]]-AAMC_Raw_Data_for_FY22[[#This Row],[25th]])/25)*10) + AAMC_Raw_Data_for_FY22[[#This Row],[25th]]","v":166290.4},{"$f":"(((AAMC_Raw_Data_for_FY22[[#This Row],[Median]]-AAMC_Raw_Data_for_FY22[[#This Row],[25th]])/25)*15) + AAMC_Raw_Data_for_FY22[[#This Row],[25th]]","v":169128.6},{"$f":"(((AAMC_Raw_Data_for_FY22[[#This Row],[Median]]-AAMC_Raw_Data_for_FY22[[#This Row],[25th]])/25)*20) + AAMC_Raw_Data_for_FY22[[#This Row],[25th]]","v":171966.8},174805,{"$f":"(((AAMC_Raw_Data_for_FY22[[#This Row],[75th]]-AAMC_Raw_Data_for_FY22[[#This Row],[Median]])/25)*5) + AAMC_Raw_Data_for_FY22[[#This Row],[Median]]","v":178844},{"$f":"(((AAMC_Raw_Data_for_FY22[[#This Row],[75th]]-AAMC_Raw_Data_for_FY22[[#This Row],[Median]])/25)*10) + AAMC_Raw_Data_for_FY22[[#This Row],[Median]]","v":182883},{"$f":"(((AAMC_Raw_Data_for_FY22[[#This Row],[75th]]-AAMC_Raw_Data_for_FY22[[#This Row],[Median]])/25)*15) + AAMC_Raw_Data_for_FY22[[#This Row],[Median]]","v":186922},{"$f":"(((AAMC_Raw_Data_for_FY22[[#This Row],[75th]]-AAMC_Raw_Data_for_FY22[[#This Row],[Median]])/25)*20) + AAMC_Raw_Data_for_FY22[[#This Row],[Median]]","v":190961},195000,{"$f":"(((AAMC_Raw_Data_for_FY22[[#This Row],[75th]]-AAMC_Raw_Data_for_FY22[[#This Row],[Median]])/25)*30) + AAMC_Raw_Data_for_FY22[[#This Row],[Median]]","v":199039},{"$f":"(((AAMC_Raw_Data_for_FY22[[#This Row],[75th]]-AAMC_Raw_Data_for_FY22[[#This Row],[Median]])/25)*35) + AAMC_Raw_Data_for_FY22[[#This Row],[Median]]","v":203078},{"$f":"(((AAMC_Raw_Data_for_FY22[[#This Row],[75th]]-AAMC_Raw_Data_for_FY22[[#This Row],[Median]])/25)*40) + AAMC_Raw_Data_for_FY22[[#This Row],[Median]]","v":207117}]
[{"$f":"AAMC_Raw_Data_for_FY22[[#This Row],[Source]]&AAMC_Raw_Data_for_FY22[[#This Row],[Type]]&AAMC_Raw_Data_for_FY22[[#This Row],[School Subset]]&AAMC_Raw_Data_for_FY22[[#This Row],[Rank]]&AAMC_Raw_Data_for_FY22[[#This Row],[Degree]]&AAMC_Raw_Data_for_FY22[[#This Row],[Department / Specialty]]&\"L\"","v":"AAMCAcademicAllAssociateMDAdolescent MedicineL"},"Adolescent Medicine",3,"AAMC","Academic","All","Associate","MD","2021-2022",181966,{"$f":"(((AAMC_Raw_Data_for_FY22[[#This Row],[Median]]-AAMC_Raw_Data_for_FY22[[#This Row],[25th]])/25)*5) + AAMC_Raw_Data_for_FY22[[#This Row],[25th]]","v":185643},{"$f":"(((AAMC_Raw_Data_for_FY22[[#This Row],[Median]]-AAMC_Raw_Data_for_FY22[[#This Row],[25th]])/25)*10) + AAMC_Raw_Data_for_FY22[[#This Row],[25th]]","v":189320},{"$f":"(((AAMC_Raw_Data_for_FY22[[#This Row],[Median]]-AAMC_Raw_Data_for_FY22[[#This Row],[25th]])/25)*15) + AAMC_Raw_Data_for_FY22[[#This Row],[25th]]","v":192997},{"$f":"(((AAMC_Raw_Data_for_FY22[[#This Row],[Median]]-AAMC_Raw_Data_for_FY22[[#This Row],[25th]])/25)*20) + AAMC_Raw_Data_for_FY22[[#This Row],[25th]]","v":196674},200351,{"$f":"(((AAMC_Raw_Data_for_FY22[[#This Row],[75th]]-AAMC_Raw_Data_for_FY22[[#This Row],[Median]])/25)*5) + AAMC_Raw_Data_for_FY22[[#This Row],[Median]]","v":202932.2},{"$f":"(((AAMC_Raw_Data_for_FY22[[#This Row],[75th]]-AAMC_Raw_Data_for_FY22[[#This Row],[Median]])/25)*10) + AAMC_Raw_Data_for_FY22[[#This Row],[Median]]","v":205513.4},{"$f":"(((AAMC_Raw_Data_for_FY22[[#This Row],[75th]]-AAMC_Raw_Data_for_FY22[[#This Row],[Median]])/25)*15) + AAMC_Raw_Data_for_FY22[[#This Row],[Median]]","v":208094.6},{"$f":"(((AAMC_Raw_Data_for_FY22[[#This Row],[75th]]-AAMC_Raw_Data_for_FY22[[#This Row],[Median]])/25)*20) + AAMC_Raw_Data_for_FY22[[#This Row],[Median]]","v":210675.8},213257,{"$f":"(((AAMC_Raw_Data_for_FY22[[#This Row],[75th]]-AAMC_Raw_Data_for_FY22[[#This Row],[Median]])/25)*30) + AAMC_Raw_Data_for_FY22[[#This Row],[Median]]","v":215838.2},{"$f":"(((AAMC_Raw_Data_for_FY22[[#This Row],[75th]]-AAMC_Raw_Data_for_FY22[[#This Row],[Median]])/25)*35) + AAMC_Raw_Data_for_FY22[[#This Row],[Median]]","v":218419.4},{"$f":"(((AAMC_Raw_Data_for_FY22[[#This Row],[75th]]-AAMC_Raw_Data_for_FY22[[#This Row],[Median]])/25)*40) + AAMC_Raw_Data_for_FY22[[#This Row],[Median]]","v":221000.6}]
[{"$f":"AAMC_Raw_Data_for_FY22[[#This Row],[Source]]&AAMC_Raw_Data_for_FY22[[#This Row],[Type]]&AAMC_Raw_Data_for_FY22[[#This Row],[School Subset]]&AAMC_Raw_Data_for_FY22[[#This Row],[Rank]]&AAMC_Raw_Data_for_FY22[[#This Row],[Degree]]&AAMC_Raw_Data_for_FY22[[#This Row],[Department / Specialty]]&\"L\"","v":"AAMCAcademicAllProfessorMDAdolescent MedicineL"},"Adolescent Medicine",2,"AAMC","Academic","All","Professor","MD","2021-2022",218415,{"$f":"(((AAMC_Raw_Data_for_FY22[[#This Row],[Median]]-AAMC_Raw_Data_for_FY22[[#This Row],[25th]])/25)*5) + AAMC_Raw_Data_for_FY22[[#This Row],[25th]]","v":223821.2},{"$f":"(((AAMC_Raw_Data_for_FY22[[#This Row],[Median]]-AAMC_Raw_Data_for_FY22[[#This Row],[25th]])/25)*10) + AAMC_Raw_Data_for_FY22[[#This Row],[25th]]","v":229227.4},{"$f":"(((AAMC_Raw_Data_for_FY22[[#This Row],[Median]]-AAMC_Raw_Data_for_FY22[[#This Row],[25th]])/25)*15) + AAMC_Raw_Data_for_FY22[[#This Row],[25th]]","v":234633.60000000001},{"$f":"(((AAMC_Raw_Data_for_FY22[[#This Row],[Median]]-AAMC_Raw_Data_for_FY22[[#This Row],[25th]])/25)*20) + AAMC_Raw_Data_for_FY22[[#This Row],[25th]]","v":240039.8},245446,{"$f":"(((AAMC_Raw_Data_for_FY22[[#This Row],[75th]]-AAMC_Raw_Data_for_FY22[[#This Row],[Median]])/25)*5) + AAMC_Raw_Data_for_FY22[[#This Row],[Median]]","v":256496},{"$f":"(((AAMC_Raw_Data_for_FY22[[#This Row],[75th]]-AAMC_Raw_Data_for_FY22[[#This Row],[Median]])/25)*10) + AAMC_Raw_Data_for_FY22[[#This Row],[Median]]","v":267546},{"$f":"(((AAMC_Raw_Data_for_FY22[[#This Row],[75th]]-AAMC_Raw_Data_for_FY22[[#This Row],[Median]])/25)*15) + AAMC_Raw_Data_for_FY22[[#This Row],[Median]]","v":278596},{"$f":"(((AAMC_Raw_Data_for_FY22[[#This Row],[75th]]-AAMC_Raw_Data_for_FY22[[#This Row],[Median]])/25)*20) + AAMC_Raw_Data_for_FY22[[#This Row],[Median]]","v":289646},300696,{"$f":"(((AAMC_Raw_Data_for_FY22[[#This Row],[75th]]-AAMC_Raw_Data_for_FY22[[#This Row],[Median]])/25)*30) + AAMC_Raw_Data_for_FY22[[#This Row],[Median]]","v":311746},{"$f":"(((AAMC_Raw_Data_for_FY22[[#This Row],[75th]]-AAMC_Raw_Data_for_FY22[[#This Row],[Median]])/25)*35) + AAMC_Raw_Data_for_FY22[[#This Row],[Median]]","v":322796},{"$f":"(((AAMC_Raw_Data_for_FY22[[#This Row],[75th]]-AAMC_Raw_Data_for_FY22[[#This Row],[Median]])/25)*40) + AAMC_Raw_Data_for_FY22[[#This Row],[Median]]","v":333846}]
[{"$f":"AAMC_Raw_Data_for_FY22[[#This Row],[Source]]&AAMC_Raw_Data_for_FY22[[#This Row],[Type]]&AAMC_Raw_Data_for_FY22[[#This Row],[School Subset]]&AAMC_Raw_Data_for_FY22[[#This Row],[Rank]]&AAMC_Raw_Data_for_FY22[[#This Row],[Degree]]&AAMC_Raw_Data_for_FY22[[#This Row],[Department / Specialty]]&\"L\"","v":"AAMCAcademicAllChiefMDAdolescent MedicineL"},"Adolescent Medicine",6,"AAMC","Academic","All","Chief","MD","2021-2022",217575,{"$f":"(((AAMC_Raw_Data_for_FY22[[#This Row],[Median]]-AAMC_Raw_Data_for_FY22[[#This Row],[25th]])/25)*5) + AAMC_Raw_Data_for_FY22[[#This Row],[25th]]","v":224960},{"$f":"(((AAMC_Raw_Data_for_FY22[[#This Row],[Median]]-AAMC_Raw_Data_for_FY22[[#This Row],[25th]])/25)*10) + AAMC_Raw_Data_for_FY22[[#This Row],[25th]]","v":232345},{"$f":"(((AAMC_Raw_Data_for_FY22[[#This Row],[Median]]-AAMC_Raw_Data_for_FY22[[#This Row],[25th]])/25)*15) + AAMC_Raw_Data_for_FY22[[#This Row],[25th]]","v":239730},{"$f":"(((AAMC_Raw_Data_for_FY22[[#This Row],[Median]]-AAMC_Raw_Data_for_FY22[[#This Row],[25th]])/25)*20) + AAMC_Raw_Data_for_FY22[[#This Row],[25th]]","v":247115},254500,{"$f":"(((AAMC_Raw_Data_for_FY22[[#This Row],[75th]]-AAMC_Raw_Data_for_FY22[[#This Row],[Median]])/25)*5) + AAMC_Raw_Data_for_FY22[[#This Row],[Median]]","v":262894.59999999998},{"$f":"(((AAMC_Raw_Data_for_FY22[[#This Row],[75th]]-AAMC_Raw_Data_for_FY22[[#This Row],[Median]])/25)*10) + AAMC_Raw_Data_for_FY22[[#This Row],[Median]]","v":271289.2},{"$f":"(((AAMC_Raw_Data_for_FY22[[#This Row],[75th]]-AAMC_Raw_Data_for_FY22[[#This Row],[Median]])/25)*15) + AAMC_Raw_Data_for_FY22[[#This Row],[Median]]","v":279683.8},{"$f":"(((AAMC_Raw_Data_for_FY22[[#This Row],[75th]]-AAMC_Raw_Data_for_FY22[[#This Row],[Median]])/25)*20) + AAMC_Raw_Data_for_FY22[[#This Row],[Median]]","v":288078.40000000002},296473,{"$f":"(((AAMC_Raw_Data_for_FY22[[#This Row],[75th]]-AAMC_Raw_Data_for_FY22[[#This Row],[Median]])/25)*30) + AAMC_Raw_Data_for_FY22[[#This Row],[Median]]","v":304867.59999999998},{"$f":"(((AAMC_Raw_Data_for_FY22[[#This Row],[75th]]-AAMC_Raw_Data_for_FY22[[#This Row],[Median]])/25)*35) + AAMC_Raw_Data_for_FY22[[#This Row],[Median]]","v":313262.2},{"$f":"(((AAMC_Raw_Data_for_FY22[[#This Row],[75th]]-AAMC_Raw_Data_for_FY22[[#This Row],[Median]])/25)*40) + AAMC_Raw_Data_for_FY22[[#This Row],[Median]]","v":321656.8}]
[{"$f":"AAMC_Raw_Data_for_FY22[[#This Row],[Source]]&AAMC_Raw_Data_for_FY22[[#This Row],[Type]]&AAMC_Raw_Data_for_FY22[[#This Row],[School Subset]]&AAMC_Raw_Data_for_FY22[[#This Row],[Rank]]&AAMC_Raw_Data_for_FY22[[#This Row],[Degree]]&AAMC_Raw_Data_for_FY22[[#This Row],[Department / Specialty]]&\"L\"","v":"AAMCAcademicAllChairMDAdolescent MedicineL"},"Adolescent Medicine",1,"AAMC","Academic","All","Chair","MD","2021-2022",null,{"$f":"(((AAMC_Raw_Data_for_FY22[[#This Row],[Median]]-AAMC_Raw_Data_for_FY22[[#This Row],[25th]])/25)*5) + AAMC_Raw_Data_for_FY22[[#This Row],[25th]]","v":0},{"$f":"(((AAMC_Raw_Data_for_FY22[[#This Row],[Median]]-AAMC_Raw_Data_for_FY22[[#This Row],[25th]])/25)*10) + AAMC_Raw_Data_for_FY22[[#This Row],[25th]]","v":0},{"$f":"(((AAMC_Raw_Data_for_FY22[[#This Row],[Median]]-AAMC_Raw_Data_for_FY22[[#This Row],[25th]])/25)*15) + AAMC_Raw_Data_for_FY22[[#This Row],[25th]]","v":0},{"$f":"(((AAMC_Raw_Data_for_FY22[[#This Row],[Median]]-AAMC_Raw_Data_for_FY22[[#This Row],[25th]])/25)*20) + AAMC_Raw_Data_for_FY22[[#This Row],[25th]]","v":0},null,{"$f":"(((AAMC_Raw_Data_for_FY22[[#This Row],[75th]]-AAMC_Raw_Data_for_FY22[[#This Row],[Median]])/25)*5) + AAMC_Raw_Data_for_FY22[[#This Row],[Median]]","v":0},{"$f":"(((AAMC_Raw_Data_for_FY22[[#This Row],[75th]]-AAMC_Raw_Data_for_FY22[[#This Row],[Median]])/25)*10) + AAMC_Raw_Data_for_FY22[[#This Row],[Median]]","v":0},{"$f":"(((AAMC_Raw_Data_for_FY22[[#This Row],[75th]]-AAMC_Raw_Data_for_FY22[[#This Row],[Median]])/25)*15) + AAMC_Raw_Data_for_FY22[[#This Row],[Median]]","v":0},{"$f":"(((AAMC_Raw_Data_for_FY22[[#This Row],[75th]]-AAMC_Raw_Data_for_FY22[[#This Row],[Median]])/25)*20) + AAMC_Raw_Data_for_FY22[[#This Row],[Median]]","v":0},null,{"$f":"(((AAMC_Raw_Data_for_FY22[[#This Row],[75th]]-AAMC_Raw_Data_for_FY22[[#This Row],[Median]])/25)*30) + AAMC_Raw_Data_for_FY22[[#This Row],[Median]]","v":0},{"$f":"(((AAMC_Raw_Data_for_FY22[[#This Row],[75th]]-AAMC_Raw_Data_for_FY22[[#This Row],[Median]])/25)*35) + AAMC_Raw_Data_for_FY22[[#This Row],[Median]]","v":0},{"$f":"(((AAMC_Raw_Data_for_FY22[[#This Row],[75th]]-AAMC_Raw_Data_for_FY22[[#This Row],[Median]])/25)*40) + AAMC_Raw_Data_for_FY22[[#This Row],[Median]]","v":0}]
[{"$f":"AAMC_Raw_Data_for_FY22[[#This Row],[Source]]&AAMC_Raw_Data_for_FY22[[#This Row],[Type]]&AAMC_Raw_Data_for_FY22[[#This Row],[School Subset]]&AAMC_Raw_Data_for_FY22[[#This Row],[Rank]]&AAMC_Raw_Data_for_FY22[[#This Row],[Degree]]&AAMC_Raw_Data_for_FY22[[#This Row],[Department / Specialty]]&\"L\"","v":"AAMCAcademicAllInstructorMDAllergy/Immunology-Peds.L"},"Allergy/Immunology-Peds.",5,"AAMC","Academic","All","Instructor","MD","2021-2022",105466,{"$f":"(((AAMC_Raw_Data_for_FY22[[#This Row],[Median]]-AAMC_Raw_Data_for_FY22[[#This Row],[25th]])/25)*5) + AAMC_Raw_Data_for_FY22[[#This Row],[25th]]","v":120551.2},{"$f":"(((AAMC_Raw_Data_for_FY22[[#This Row],[Median]]-AAMC_Raw_Data_for_FY22[[#This Row],[25th]])/25)*10) + AAMC_Raw_Data_for_FY22[[#This Row],[25th]]","v":135636.4},{"$f":"(((AAMC_Raw_Data_for_FY22[[#This Row],[Median]]-AAMC_Raw_Data_for_FY22[[#This Row],[25th]])/25)*15) + AAMC_Raw_Data_for_FY22[[#This Row],[25th]]","v":150721.60000000001},{"$f":"(((AAMC_Raw_Data_for_FY22[[#This Row],[Median]]-AAMC_Raw_Data_for_FY22[[#This Row],[25th]])/25)*20) + AAMC_Raw_Data_for_FY22[[#This Row],[25th]]","v":165806.79999999999},180892,{"$f":"(((AAMC_Raw_Data_for_FY22[[#This Row],[75th]]-AAMC_Raw_Data_for_FY22[[#This Row],[Median]])/25)*5) + AAMC_Raw_Data_for_FY22[[#This Row],[Median]]","v":191774.2},{"$f":"(((AAMC_Raw_Data_for_FY22[[#This Row],[75th]]-AAMC_Raw_Data_for_FY22[[#This Row],[Median]])/25)*10) + AAMC_Raw_Data_for_FY22[[#This Row],[Median]]","v":202656.4},{"$f":"(((AAMC_Raw_Data_for_FY22[[#This Row],[75th]]-AAMC_Raw_Data_for_FY22[[#This Row],[Median]])/25)*15) + AAMC_Raw_Data_for_FY22[[#This Row],[Median]]","v":213538.6},{"$f":"(((AAMC_Raw_Data_for_FY22[[#This Row],[75th]]-AAMC_Raw_Data_for_FY22[[#This Row],[Median]])/25)*20) + AAMC_Raw_Data_for_FY22[[#This Row],[Median]]","v":224420.8},235303,{"$f":"(((AAMC_Raw_Data_for_FY22[[#This Row],[75th]]-AAMC_Raw_Data_for_FY22[[#This Row],[Median]])/25)*30) + AAMC_Raw_Data_for_FY22[[#This Row],[Median]]","v":246185.2},{"$f":"(((AAMC_Raw_Data_for_FY22[[#This Row],[75th]]-AAMC_Raw_Data_for_FY22[[#This Row],[Median]])/25)*35) + AAMC_Raw_Data_for_FY22[[#This Row],[Median]]","v":257067.40000000002},{"$f":"(((AAMC_Raw_Data_for_FY22[[#This Row],[75th]]-AAMC_Raw_Data_for_FY22[[#This Row],[Median]])/25)*40) + AAMC_Raw_Data_for_FY22[[#This Row],[Median]]","v":267949.59999999998}]
[{"$f":"AAMC_Raw_Data_for_FY22[[#This Row],[Source]]&AAMC_Raw_Data_for_FY22[[#This Row],[Type]]&AAMC_Raw_Data_for_FY22[[#This Row],[School Subset]]&AAMC_Raw_Data_for_FY22[[#This Row],[Rank]]&AAMC_Raw_Data_for_FY22[[#This Row],[Degree]]&AAMC_Raw_Data_for_FY22[[#This Row],[Department / Specialty]]&\"L\"","v":"AAMCAcademicAllAssistantMDAllergy/Immunology-Peds.L"},"Allergy/Immunology-Peds.",4,"AAMC","Academic","All","Assistant","MD","2021-2022",172442,{"$f":"(((AAMC_Raw_Data_for_FY22[[#This Row],[Median]]-AAMC_Raw_Data_for_FY22[[#This Row],[25th]])/25)*5) + AAMC_Raw_Data_for_FY22[[#This Row],[25th]]","v":175226.4},{"$f":"(((AAMC_Raw_Data_for_FY22[[#This Row],[Median]]-AAMC_Raw_Data_for_FY22[[#This Row],[25th]])/25)*10) + AAMC_Raw_Data_for_FY22[[#This Row],[25th]]","v":178010.8},{"$f":"(((AAMC_Raw_Data_for_FY22[[#This Row],[Median]]-AAMC_Raw_Data_for_FY22[[#This Row],[25th]])/25)*15) + AAMC_Raw_Data_for_FY22[[#This Row],[25th]]","v":180795.2},{"$f":"(((AAMC_Raw_Data_for_FY22[[#This Row],[Median]]-AAMC_Raw_Data_for_FY22[[#This Row],[25th]])/25)*20) + AAMC_Raw_Data_for_FY22[[#This Row],[25th]]","v":183579.6},186364,{"$f":"(((AAMC_Raw_Data_for_FY22[[#This Row],[75th]]-AAMC_Raw_Data_for_FY22[[#This Row],[Median]])/25)*5) + AAMC_Raw_Data_for_FY22[[#This Row],[Median]]","v":190688},{"$f":"(((AAMC_Raw_Data_for_FY22[[#This Row],[75th]]-AAMC_Raw_Data_for_FY22[[#This Row],[Median]])/25)*10) + AAMC_Raw_Data_for_FY22[[#This Row],[Median]]","v":195012},{"$f":"(((AAMC_Raw_Data_for_FY22[[#This Row],[75th]]-AAMC_Raw_Data_for_FY22[[#This Row],[Median]])/25)*15) + AAMC_Raw_Data_for_FY22[[#This Row],[Median]]","v":199336},{"$f":"(((AAMC_Raw_Data_for_FY22[[#This Row],[75th]]-AAMC_Raw_Data_for_FY22[[#This Row],[Median]])/25)*20) + AAMC_Raw_Data_for_FY22[[#This Row],[Median]]","v":203660},207984,{"$f":"(((AAMC_Raw_Data_for_FY22[[#This Row],[75th]]-AAMC_Raw_Data_for_FY22[[#This Row],[Median]])/25)*30) + AAMC_Raw_Data_for_FY22[[#This Row],[Median]]","v":212308},{"$f":"(((AAMC_Raw_Data_for_FY22[[#This Row],[75th]]-AAMC_Raw_Data_for_FY22[[#This Row],[Median]])/25)*35) + AAMC_Raw_Data_for_FY22[[#This Row],[Median]]","v":216632},{"$f":"(((AAMC_Raw_Data_for_FY22[[#This Row],[75th]]-AAMC_Raw_Data_for_FY22[[#This Row],[Median]])/25)*40) + AAMC_Raw_Data_for_FY22[[#This Row],[Median]]","v":220956}]
[{"$f":"AAMC_Raw_Data_for_FY22[[#This Row],[Source]]&AAMC_Raw_Data_for_FY22[[#This Row],[Type]]&AAMC_Raw_Data_for_FY22[[#This Row],[School Subset]]&AAMC_Raw_Data_for_FY22[[#This Row],[Rank]]&AAMC_Raw_Data_for_FY22[[#This Row],[Degree]]&AAMC_Raw_Data_for_FY22[[#This Row],[Department / Specialty]]&\"L\"","v":"AAMCAcademicAllAssociateMDAllergy/Immunology-Peds.L"},"Allergy/Immunology-Peds.",3,"AAMC","Academic","All","Associate","MD","2021-2022",200432,{"$f":"(((AAMC_Raw_Data_for_FY22[[#This Row],[Median]]-AAMC_Raw_Data_for_FY22[[#This Row],[25th]])/25)*5) + AAMC_Raw_Data_for_FY22[[#This Row],[25th]]","v":204447.4},{"$f":"(((AAMC_Raw_Data_for_FY22[[#This Row],[Median]]-AAMC_Raw_Data_for_FY22[[#This Row],[25th]])/25)*10) + AAMC_Raw_Data_for_FY22[[#This Row],[25th]]","v":208462.8},{"$f":"(((AAMC_Raw_Data_for_FY22[[#This Row],[Median]]-AAMC_Raw_Data_for_FY22[[#This Row],[25th]])/25)*15) + AAMC_Raw_Data_for_FY22[[#This Row],[25th]]","v":212478.2},{"$f":"(((AAMC_Raw_Data_for_FY22[[#This Row],[Median]]-AAMC_Raw_Data_for_FY22[[#This Row],[25th]])/25)*20) + AAMC_Raw_Data_for_FY22[[#This Row],[25th]]","v":216493.6},220509,{"$f":"(((AAMC_Raw_Data_for_FY22[[#This Row],[75th]]-AAMC_Raw_Data_for_FY22[[#This Row],[Median]])/25)*5) + AAMC_Raw_Data_for_FY22[[#This Row],[Median]]","v":223125},{"$f":"(((AAMC_Raw_Data_for_FY22[[#This Row],[75th]]-AAMC_Raw_Data_for_FY22[[#This Row],[Median]])/25)*10) + AAMC_Raw_Data_for_FY22[[#This Row],[Median]]","v":225741},{"$f":"(((AAMC_Raw_Data_for_FY22[[#This Row],[75th]]-AAMC_Raw_Data_for_FY22[[#This Row],[Median]])/25)*15) + AAMC_Raw_Data_for_FY22[[#This Row],[Median]]","v":228357},{"$f":"(((AAMC_Raw_Data_for_FY22[[#This Row],[75th]]-AAMC_Raw_Data_for_FY22[[#This Row],[Median]])/25)*20) + AAMC_Raw_Data_for_FY22[[#This Row],[Median]]","v":230973},233589,{"$f":"(((AAMC_Raw_Data_for_FY22[[#This Row],[75th]]-AAMC_Raw_Data_for_FY22[[#This Row],[Median]])/25)*30) + AAMC_Raw_Data_for_FY22[[#This Row],[Median]]","v":236205},{"$f":"(((AAMC_Raw_Data_for_FY22[[#This Row],[75th]]-AAMC_Raw_Data_for_FY22[[#This Row],[Median]])/25)*35) + AAMC_Raw_Data_for_FY22[[#This Row],[Median]]","v":238821},{"$f":"(((AAMC_Raw_Data_for_FY22[[#This Row],[75th]]-AAMC_Raw_Data_for_FY22[[#This Row],[Median]])/25)*40) + AAMC_Raw_Data_for_FY22[[#This Row],[Median]]","v":241437}]
[{"$f":"AAMC_Raw_Data_for_FY22[[#This Row],[Source]]&AAMC_Raw_Data_for_FY22[[#This Row],[Type]]&AAMC_Raw_Data_for_FY22[[#This Row],[School Subset]]&AAMC_Raw_Data_for_FY22[[#This Row],[Rank]]&AAMC_Raw_Data_for_FY22[[#This Row],[Degree]]&AAMC_Raw_Data_for_FY22[[#This Row],[Department / Specialty]]&\"L\"","v":"AAMCAcademicAllProfessorMDAllergy/Immunology-Peds.L"},"Allergy/Immunology-Peds.",2,"AAMC","Academic","All","Professor","MD","2021-2022",232426,{"$f":"(((AAMC_Raw_Data_for_FY22[[#This Row],[Median]]-AAMC_Raw_Data_for_FY22[[#This Row],[25th]])/25)*5) + AAMC_Raw_Data_for_FY22[[#This Row],[25th]]","v":240044.6},{"$f":"(((AAMC_Raw_Data_for_FY22[[#This Row],[Median]]-AAMC_Raw_Data_for_FY22[[#This Row],[25th]])/25)*10) + AAMC_Raw_Data_for_FY22[[#This Row],[25th]]","v":247663.2},{"$f":"(((AAMC_Raw_Data_for_FY22[[#This Row],[Median]]-AAMC_Raw_Data_for_FY22[[#This Row],[25th]])/25)*15) + AAMC_Raw_Data_for_FY22[[#This Row],[25th]]","v":255281.8},{"$f":"(((AAMC_Raw_Data_for_FY22[[#This Row],[Median]]-AAMC_Raw_Data_for_FY22[[#This Row],[25th]])/25)*20) + AAMC_Raw_Data_for_FY22[[#This Row],[25th]]","v":262900.40000000002},270519,{"$f":"(((AAMC_Raw_Data_for_FY22[[#This Row],[75th]]-AAMC_Raw_Data_for_FY22[[#This Row],[Median]])/25)*5) + AAMC_Raw_Data_for_FY22[[#This Row],[Median]]","v":279339.40000000002},{"$f":"(((AAMC_Raw_Data_for_FY22[[#This Row],[75th]]-AAMC_Raw_Data_for_FY22[[#This Row],[Median]])/25)*10) + AAMC_Raw_Data_for_FY22[[#This Row],[Median]]","v":288159.8},{"$f":"(((AAMC_Raw_Data_for_FY22[[#This Row],[75th]]-AAMC_Raw_Data_for_FY22[[#This Row],[Median]])/25)*15) + AAMC_Raw_Data_for_FY22[[#This Row],[Median]]","v":296980.2},{"$f":"(((AAMC_Raw_Data_for_FY22[[#This Row],[75th]]-AAMC_Raw_Data_for_FY22[[#This Row],[Median]])/25)*20) + AAMC_Raw_Data_for_FY22[[#This Row],[Median]]","v":305800.59999999998},314621,{"$f":"(((AAMC_Raw_Data_for_FY22[[#This Row],[75th]]-AAMC_Raw_Data_for_FY22[[#This Row],[Median]])/25)*30) + AAMC_Raw_Data_for_FY22[[#This Row],[Median]]","v":323441.40000000002},{"$f":"(((AAMC_Raw_Data_for_FY22[[#This Row],[75th]]-AAMC_Raw_Data_for_FY22[[#This Row],[Median]])/25)*35) + AAMC_Raw_Data_for_FY22[[#This Row],[Median]]","v":332261.8},{"$f":"(((AAMC_Raw_Data_for_FY22[[#This Row],[75th]]-AAMC_Raw_Data_for_FY22[[#This Row],[Median]])/25)*40) + AAMC_Raw_Data_for_FY22[[#This Row],[Median]]","v":341082.2}]
[{"$f":"AAMC_Raw_Data_for_FY22[[#This Row],[Source]]&AAMC_Raw_Data_for_FY22[[#This Row],[Type]]&AAMC_Raw_Data_for_FY22[[#This Row],[School Subset]]&AAMC_Raw_Data_for_FY22[[#This Row],[Rank]]&AAMC_Raw_Data_for_FY22[[#This Row],[Degree]]&AAMC_Raw_Data_for_FY22[[#This Row],[Department / Specialty]]&\"L\"","v":"AAMCAcademicAllChiefMDAllergy/Immunology-Peds.L"},"Allergy/Immunology-Peds.",6,"AAMC","Academic","All","Chief","MD","2021-2022",288196,{"$f":"(((AAMC_Raw_Data_for_FY22[[#This Row],[Median]]-AAMC_Raw_Data_for_FY22[[#This Row],[25th]])/25)*5) + AAMC_Raw_Data_for_FY22[[#This Row],[25th]]","v":294238.8},{"$f":"(((AAMC_Raw_Data_for_FY22[[#This Row],[Median]]-AAMC_Raw_Data_for_FY22[[#This Row],[25th]])/25)*10) + AAMC_Raw_Data_for_FY22[[#This Row],[25th]]","v":300281.59999999998},{"$f":"(((AAMC_Raw_Data_for_FY22[[#This Row],[Median]]-AAMC_Raw_Data_for_FY22[[#This Row],[25th]])/25)*15) + AAMC_Raw_Data_for_FY22[[#This Row],[25th]]","v":306324.40000000002},{"$f":"(((AAMC_Raw_Data_for_FY22[[#This Row],[Median]]-AAMC_Raw_Data_for_FY22[[#This Row],[25th]])/25)*20) + AAMC_Raw_Data_for_FY22[[#This Row],[25th]]","v":312367.2},318410,{"$f":"(((AAMC_Raw_Data_for_FY22[[#This Row],[75th]]-AAMC_Raw_Data_for_FY22[[#This Row],[Median]])/25)*5) + AAMC_Raw_Data_for_FY22[[#This Row],[Median]]","v":329963.2},{"$f":"(((AAMC_Raw_Data_for_FY22[[#This Row],[75th]]-AAMC_Raw_Data_for_FY22[[#This Row],[Median]])/25)*10) + AAMC_Raw_Data_for_FY22[[#This Row],[Median]]","v":341516.4},{"$f":"(((AAMC_Raw_Data_for_FY22[[#This Row],[75th]]-AAMC_Raw_Data_for_FY22[[#This Row],[Median]])/25)*15) + AAMC_Raw_Data_for_FY22[[#This Row],[Median]]","v":353069.6},{"$f":"(((AAMC_Raw_Data_for_FY22[[#This Row],[75th]]-AAMC_Raw_Data_for_FY22[[#This Row],[Median]])/25)*20) + AAMC_Raw_Data_for_FY22[[#This Row],[Median]]","v":364622.8},376176,{"$f":"(((AAMC_Raw_Data_for_FY22[[#This Row],[75th]]-AAMC_Raw_Data_for_FY22[[#This Row],[Median]])/25)*30) + AAMC_Raw_Data_for_FY22[[#This Row],[Median]]","v":387729.2},{"$f":"(((AAMC_Raw_Data_for_FY22[[#This Row],[75th]]-AAMC_Raw_Data_for_FY22[[#This Row],[Median]])/25)*35) + AAMC_Raw_Data_for_FY22[[#This Row],[Median]]","v":399282.4},{"$f":"(((AAMC_Raw_Data_for_FY22[[#This Row],[75th]]-AAMC_Raw_Data_for_FY22[[#This Row],[Median]])/25)*40) + AAMC_Raw_Data_for_FY22[[#This Row],[Median]]","v":410835.6}]
[{"$f":"AAMC_Raw_Data_for_FY22[[#This Row],[Source]]&AAMC_Raw_Data_for_FY22[[#This Row],[Type]]&AAMC_Raw_Data_for_FY22[[#This Row],[School Subset]]&AAMC_Raw_Data_for_FY22[[#This Row],[Rank]]&AAMC_Raw_Data_for_FY22[[#This Row],[Degree]]&AAMC_Raw_Data_for_FY22[[#This Row],[Department / Specialty]]&\"L\"","v":"AAMCAcademicAllChairMDAllergy/Immunology-Peds.L"},"Allergy/Immunology-Peds.",1,"AAMC","Academic","All","Chair","MD","2021-2022",null,{"$f":"(((AAMC_Raw_Data_for_FY22[[#This Row],[Median]]-AAMC_Raw_Data_for_FY22[[#This Row],[25th]])/25)*5) + AAMC_Raw_Data_for_FY22[[#This Row],[25th]]","v":0},{"$f":"(((AAMC_Raw_Data_for_FY22[[#This Row],[Median]]-AAMC_Raw_Data_for_FY22[[#This Row],[25th]])/25)*10) + AAMC_Raw_Data_for_FY22[[#This Row],[25th]]","v":0},{"$f":"(((AAMC_Raw_Data_for_FY22[[#This Row],[Median]]-AAMC_Raw_Data_for_FY22[[#This Row],[25th]])/25)*15) + AAMC_Raw_Data_for_FY22[[#This Row],[25th]]","v":0},{"$f":"(((AAMC_Raw_Data_for_FY22[[#This Row],[Median]]-AAMC_Raw_Data_for_FY22[[#This Row],[25th]])/25)*20) + AAMC_Raw_Data_for_FY22[[#This Row],[25th]]","v":0},null,{"$f":"(((AAMC_Raw_Data_for_FY22[[#This Row],[75th]]-AAMC_Raw_Data_for_FY22[[#This Row],[Median]])/25)*5) + AAMC_Raw_Data_for_FY22[[#This Row],[Median]]","v":0},{"$f":"(((AAMC_Raw_Data_for_FY22[[#This Row],[75th]]-AAMC_Raw_Data_for_FY22[[#This Row],[Median]])/25)*10) + AAMC_Raw_Data_for_FY22[[#This Row],[Median]]","v":0},{"$f":"(((AAMC_Raw_Data_for_FY22[[#This Row],[75th]]-AAMC_Raw_Data_for_FY22[[#This Row],[Median]])/25)*15) + AAMC_Raw_Data_for_FY22[[#This Row],[Median]]","v":0},{"$f":"(((AAMC_Raw_Data_for_FY22[[#This Row],[75th]]-AAMC_Raw_Data_for_FY22[[#This Row],[Median]])/25)*20) + AAMC_Raw_Data_for_FY22[[#This Row],[Median]]","v":0},null,{"$f":"(((AAMC_Raw_Data_for_FY22[[#This Row],[75th]]-AAMC_Raw_Data_for_FY22[[#This Row],[Median]])/25)*30) + AAMC_Raw_Data_for_FY22[[#This Row],[Median]]","v":0},{"$f":"(((AAMC_Raw_Data_for_FY22[[#This Row],[75th]]-AAMC_Raw_Data_for_FY22[[#This Row],[Median]])/25)*35) + AAMC_Raw_Data_for_FY22[[#This Row],[Median]]","v":0},{"$f":"(((AAMC_Raw_Data_for_FY22[[#This Row],[75th]]-AAMC_Raw_Data_for_FY22[[#This Row],[Median]])/25)*40) + AAMC_Raw_Data_for_FY22[[#This Row],[Median]]","v":0}]
[{"$f":"AAMC_Raw_Data_for_FY22[[#This Row],[Source]]&AAMC_Raw_Data_for_FY22[[#This Row],[Type]]&AAMC_Raw_Data_for_FY22[[#This Row],[School Subset]]&AAMC_Raw_Data_for_FY22[[#This Row],[Rank]]&AAMC_Raw_Data_for_FY22[[#This Row],[Degree]]&AAMC_Raw_Data_for_FY22[[#This Row],[Department / Specialty]]&\"L\"","v":"AAMCAcademicAllInstructorMDCritical/Intensive Care-Peds.L"},"Critical/Intensive Care-Peds.",5,"AAMC","Academic","All","Instructor","MD","2021-2022",175354,{"$f":"(((AAMC_Raw_Data_for_FY22[[#This Row],[Median]]-AAMC_Raw_Data_for_FY22[[#This Row],[25th]])/25)*5) + AAMC_Raw_Data_for_FY22[[#This Row],[25th]]","v":184167.6},{"$f":"(((AAMC_Raw_Data_for_FY22[[#This Row],[Median]]-AAMC_Raw_Data_for_FY22[[#This Row],[25th]])/25)*10) + AAMC_Raw_Data_for_FY22[[#This Row],[25th]]","v":192981.2},{"$f":"(((AAMC_Raw_Data_for_FY22[[#This Row],[Median]]-AAMC_Raw_Data_for_FY22[[#This Row],[25th]])/25)*15) + AAMC_Raw_Data_for_FY22[[#This Row],[25th]]","v":201794.8},{"$f":"(((AAMC_Raw_Data_for_FY22[[#This Row],[Median]]-AAMC_Raw_Data_for_FY22[[#This Row],[25th]])/25)*20) + AAMC_Raw_Data_for_FY22[[#This Row],[25th]]","v":210608.4},219422,{"$f":"(((AAMC_Raw_Data_for_FY22[[#This Row],[75th]]-AAMC_Raw_Data_for_FY22[[#This Row],[Median]])/25)*5) + AAMC_Raw_Data_for_FY22[[#This Row],[Median]]","v":231815.8},{"$f":"(((AAMC_Raw_Data_for_FY22[[#This Row],[75th]]-AAMC_Raw_Data_for_FY22[[#This Row],[Median]])/25)*10) + AAMC_Raw_Data_for_FY22[[#This Row],[Median]]","v":244209.6},{"$f":"(((AAMC_Raw_Data_for_FY22[[#This Row],[75th]]-AAMC_Raw_Data_for_FY22[[#This Row],[Median]])/25)*15) + AAMC_Raw_Data_for_FY22[[#This Row],[Median]]","v":256603.4},{"$f":"(((AAMC_Raw_Data_for_FY22[[#This Row],[75th]]-AAMC_Raw_Data_for_FY22[[#This Row],[Median]])/25)*20) + AAMC_Raw_Data_for_FY22[[#This Row],[Median]]","v":268997.2},281391,{"$f":"(((AAMC_Raw_Data_for_FY22[[#This Row],[75th]]-AAMC_Raw_Data_for_FY22[[#This Row],[Median]])/25)*30) + AAMC_Raw_Data_for_FY22[[#This Row],[Median]]","v":293784.8},{"$f":"(((AAMC_Raw_Data_for_FY22[[#This Row],[75th]]-AAMC_Raw_Data_for_FY22[[#This Row],[Median]])/25)*35) + AAMC_Raw_Data_for_FY22[[#This Row],[Median]]","v":306178.59999999998},{"$f":"(((AAMC_Raw_Data_for_FY22[[#This Row],[75th]]-AAMC_Raw_Data_for_FY22[[#This Row],[Median]])/25)*40) + AAMC_Raw_Data_for_FY22[[#This Row],[Median]]","v":318572.40000000002}]
[{"$f":"AAMC_Raw_Data_for_FY22[[#This Row],[Source]]&AAMC_Raw_Data_for_FY22[[#This Row],[Type]]&AAMC_Raw_Data_for_FY22[[#This Row],[School Subset]]&AAMC_Raw_Data_for_FY22[[#This Row],[Rank]]&AAMC_Raw_Data_for_FY22[[#This Row],[Degree]]&AAMC_Raw_Data_for_FY22[[#This Row],[Department / Specialty]]&\"L\"","v":"AAMCAcademicAllAssistantMDCritical/Intensive Care-Peds.L"},"Critical/Intensive Care-Peds.",4,"AAMC","Academic","All","Assistant","MD","2021-2022",239011,{"$f":"(((AAMC_Raw_Data_for_FY22[[#This Row],[Median]]-AAMC_Raw_Data_for_FY22[[#This Row],[25th]])/25)*5) + AAMC_Raw_Data_for_FY22[[#This Row],[25th]]","v":245306.6},{"$f":"(((AAMC_Raw_Data_for_FY22[[#This Row],[Median]]-AAMC_Raw_Data_for_FY22[[#This Row],[25th]])/25)*10) + AAMC_Raw_Data_for_FY22[[#This Row],[25th]]","v":251602.2},{"$f":"(((AAMC_Raw_Data_for_FY22[[#This Row],[Median]]-AAMC_Raw_Data_for_FY22[[#This Row],[25th]])/25)*15) + AAMC_Raw_Data_for_FY22[[#This Row],[25th]]","v":257897.8},{"$f":"(((AAMC_Raw_Data_for_FY22[[#This Row],[Median]]-AAMC_Raw_Data_for_FY22[[#This Row],[25th]])/25)*20) + AAMC_Raw_Data_for_FY22[[#This Row],[25th]]","v":264193.40000000002},270489,{"$f":"(((AAMC_Raw_Data_for_FY22[[#This Row],[75th]]-AAMC_Raw_Data_for_FY22[[#This Row],[Median]])/25)*5) + AAMC_Raw_Data_for_FY22[[#This Row],[Median]]","v":278953.8},{"$f":"(((AAMC_Raw_Data_for_FY22[[#This Row],[75th]]-AAMC_Raw_Data_for_FY22[[#This Row],[Median]])/25)*10) + AAMC_Raw_Data_for_FY22[[#This Row],[Median]]","v":287418.59999999998},{"$f":"(((AAMC_Raw_Data_for_FY22[[#This Row],[75th]]-AAMC_Raw_Data_for_FY22[[#This Row],[Median]])/25)*15) + AAMC_Raw_Data_for_FY22[[#This Row],[Median]]","v":295883.40000000002},{"$f":"(((AAMC_Raw_Data_for_FY22[[#This Row],[75th]]-AAMC_Raw_Data_for_FY22[[#This Row],[Median]])/25)*20) + AAMC_Raw_Data_for_FY22[[#This Row],[Median]]","v":304348.2},312813,{"$f":"(((AAMC_Raw_Data_for_FY22[[#This Row],[75th]]-AAMC_Raw_Data_for_FY22[[#This Row],[Median]])/25)*30) + AAMC_Raw_Data_for_FY22[[#This Row],[Median]]","v":321277.8},{"$f":"(((AAMC_Raw_Data_for_FY22[[#This Row],[75th]]-AAMC_Raw_Data_for_FY22[[#This Row],[Median]])/25)*35) + AAMC_Raw_Data_for_FY22[[#This Row],[Median]]","v":329742.59999999998},{"$f":"(((AAMC_Raw_Data_for_FY22[[#This Row],[75th]]-AAMC_Raw_Data_for_FY22[[#This Row],[Median]])/25)*40) + AAMC_Raw_Data_for_FY22[[#This Row],[Median]]","v":338207.4}]
[{"$f":"AAMC_Raw_Data_for_FY22[[#This Row],[Source]]&AAMC_Raw_Data_for_FY22[[#This Row],[Type]]&AAMC_Raw_Data_for_FY22[[#This Row],[School Subset]]&AAMC_Raw_Data_for_FY22[[#This Row],[Rank]]&AAMC_Raw_Data_for_FY22[[#This Row],[Degree]]&AAMC_Raw_Data_for_FY22[[#This Row],[Department / Specialty]]&\"L\"","v":"AAMCAcademicAllAssociateMDCritical/Intensive Care-Peds.L"},"Critical/Intensive Care-Peds.",3,"AAMC","Academic","All","Associate","MD","2021-2022",276841,{"$f":"(((AAMC_Raw_Data_for_FY22[[#This Row],[Median]]-AAMC_Raw_Data_for_FY22[[#This Row],[25th]])/25)*5) + AAMC_Raw_Data_for_FY22[[#This Row],[25th]]","v":284700.40000000002},{"$f":"(((AAMC_Raw_Data_for_FY22[[#This Row],[Median]]-AAMC_Raw_Data_for_FY22[[#This Row],[25th]])/25)*10) + AAMC_Raw_Data_for_FY22[[#This Row],[25th]]","v":292559.8},{"$f":"(((AAMC_Raw_Data_for_FY22[[#This Row],[Median]]-AAMC_Raw_Data_for_FY22[[#This Row],[25th]])/25)*15) + AAMC_Raw_Data_for_FY22[[#This Row],[25th]]","v":300419.20000000001},{"$f":"(((AAMC_Raw_Data_for_FY22[[#This Row],[Median]]-AAMC_Raw_Data_for_FY22[[#This Row],[25th]])/25)*20) + AAMC_Raw_Data_for_FY22[[#This Row],[25th]]","v":308278.59999999998},316138,{"$f":"(((AAMC_Raw_Data_for_FY22[[#This Row],[75th]]-AAMC_Raw_Data_for_FY22[[#This Row],[Median]])/25)*5) + AAMC_Raw_Data_for_FY22[[#This Row],[Median]]","v":326130.59999999998},{"$f":"(((AAMC_Raw_Data_for_FY22[[#This Row],[75th]]-AAMC_Raw_Data_for_FY22[[#This Row],[Median]])/25)*10) + AAMC_Raw_Data_for_FY22[[#This Row],[Median]]","v":336123.2},{"$f":"(((AAMC_Raw_Data_for_FY22[[#This Row],[75th]]-AAMC_Raw_Data_for_FY22[[#This Row],[Median]])/25)*15) + AAMC_Raw_Data_for_FY22[[#This Row],[Median]]","v":346115.8},{"$f":"(((AAMC_Raw_Data_for_FY22[[#This Row],[75th]]-AAMC_Raw_Data_for_FY22[[#This Row],[Median]])/25)*20) + AAMC_Raw_Data_for_FY22[[#This Row],[Median]]","v":356108.4},366101,{"$f":"(((AAMC_Raw_Data_for_FY22[[#This Row],[75th]]-AAMC_Raw_Data_for_FY22[[#This Row],[Median]])/25)*30) + AAMC_Raw_Data_for_FY22[[#This Row],[Median]]","v":376093.6},{"$f":"(((AAMC_Raw_Data_for_FY22[[#This Row],[75th]]-AAMC_Raw_Data_for_FY22[[#This Row],[Median]])/25)*35) + AAMC_Raw_Data_for_FY22[[#This Row],[Median]]","v":386086.2},{"$f":"(((AAMC_Raw_Data_for_FY22[[#This Row],[75th]]-AAMC_Raw_Data_for_FY22[[#This Row],[Median]])/25)*40) + AAMC_Raw_Data_for_FY22[[#This Row],[Median]]","v":396078.8}]
[{"$f":"AAMC_Raw_Data_for_FY22[[#This Row],[Source]]&AAMC_Raw_Data_for_FY22[[#This Row],[Type]]&AAMC_Raw_Data_for_FY22[[#This Row],[School Subset]]&AAMC_Raw_Data_for_FY22[[#This Row],[Rank]]&AAMC_Raw_Data_for_FY22[[#This Row],[Degree]]&AAMC_Raw_Data_for_FY22[[#This Row],[Department / Specialty]]&\"L\"","v":"AAMCAcademicAllProfessorMDCritical/Intensive Care-Peds.L"},"Critical/Intensive Care-Peds.",2,"AAMC","Academic","All","Professor","MD","2021-2022",325610,{"$f":"(((AAMC_Raw_Data_for_FY22[[#This Row],[Median]]-AAMC_Raw_Data_for_FY22[[#This Row],[25th]])/25)*5) + AAMC_Raw_Data_for_FY22[[#This Row],[25th]]","v":334888},{"$f":"(((AAMC_Raw_Data_for_FY22[[#This Row],[Median]]-AAMC_Raw_Data_for_FY22[[#This Row],[25th]])/25)*10) + AAMC_Raw_Data_for_FY22[[#This Row],[25th]]","v":344166},{"$f":"(((AAMC_Raw_Data_for_FY22[[#This Row],[Median]]-AAMC_Raw_Data_for_FY22[[#This Row],[25th]])/25)*15) + AAMC_Raw_Data_for_FY22[[#This Row],[25th]]","v":353444},{"$f":"(((AAMC_Raw_Data_for_FY22[[#This Row],[Median]]-AAMC_Raw_Data_for_FY22[[#This Row],[25th]])/25)*20) + AAMC_Raw_Data_for_FY22[[#This Row],[25th]]","v":362722},372000,{"$f":"(((AAMC_Raw_Data_for_FY22[[#This Row],[75th]]-AAMC_Raw_Data_for_FY22[[#This Row],[Median]])/25)*5) + AAMC_Raw_Data_for_FY22[[#This Row],[Median]]","v":383143.8},{"$f":"(((AAMC_Raw_Data_for_FY22[[#This Row],[75th]]-AAMC_Raw_Data_for_FY22[[#This Row],[Median]])/25)*10) + AAMC_Raw_Data_for_FY22[[#This Row],[Median]]","v":394287.6},{"$f":"(((AAMC_Raw_Data_for_FY22[[#This Row],[75th]]-AAMC_Raw_Data_for_FY22[[#This Row],[Median]])/25)*15) + AAMC_Raw_Data_for_FY22[[#This Row],[Median]]","v":405431.4},{"$f":"(((AAMC_Raw_Data_for_FY22[[#This Row],[75th]]-AAMC_Raw_Data_for_FY22[[#This Row],[Median]])/25)*20) + AAMC_Raw_Data_for_FY22[[#This Row],[Median]]","v":416575.2},427719,{"$f":"(((AAMC_Raw_Data_for_FY22[[#This Row],[75th]]-AAMC_Raw_Data_for_FY22[[#This Row],[Median]])/25)*30) + AAMC_Raw_Data_for_FY22[[#This Row],[Median]]","v":438862.8},{"$f":"(((AAMC_Raw_Data_for_FY22[[#This Row],[75th]]-AAMC_Raw_Data_for_FY22[[#This Row],[Median]])/25)*35) + AAMC_Raw_Data_for_FY22[[#This Row],[Median]]","v":450006.6},{"$f":"(((AAMC_Raw_Data_for_FY22[[#This Row],[75th]]-AAMC_Raw_Data_for_FY22[[#This Row],[Median]])/25)*40) + AAMC_Raw_Data_for_FY22[[#This Row],[Median]]","v":461150.4}]
[{"$f":"AAMC_Raw_Data_for_FY22[[#This Row],[Source]]&AAMC_Raw_Data_for_FY22[[#This Row],[Type]]&AAMC_Raw_Data_for_FY22[[#This Row],[School Subset]]&AAMC_Raw_Data_for_FY22[[#This Row],[Rank]]&AAMC_Raw_Data_for_FY22[[#This Row],[Degree]]&AAMC_Raw_Data_for_FY22[[#This Row],[Department / Specialty]]&\"L\"","v":"AAMCAcademicAllChiefMDCritical/Intensive Care-Peds.L"},"Critical/Intensive Care-Peds.",6,"AAMC","Academic","All","Chief","MD","2021-2022",321037,{"$f":"(((AAMC_Raw_Data_for_FY22[[#This Row],[Median]]-AAMC_Raw_Data_for_FY22[[#This Row],[25th]])/25)*5) + AAMC_Raw_Data_for_FY22[[#This Row],[25th]]","v":333112.8},{"$f":"(((AAMC_Raw_Data_for_FY22[[#This Row],[Median]]-AAMC_Raw_Data_for_FY22[[#This Row],[25th]])/25)*10) + AAMC_Raw_Data_for_FY22[[#This Row],[25th]]","v":345188.6},{"$f":"(((AAMC_Raw_Data_for_FY22[[#This Row],[Median]]-AAMC_Raw_Data_for_FY22[[#This Row],[25th]])/25)*15) + AAMC_Raw_Data_for_FY22[[#This Row],[25th]]","v":357264.4},{"$f":"(((AAMC_Raw_Data_for_FY22[[#This Row],[Median]]-AAMC_Raw_Data_for_FY22[[#This Row],[25th]])/25)*20) + AAMC_Raw_Data_for_FY22[[#This Row],[25th]]","v":369340.2},381416,{"$f":"(((AAMC_Raw_Data_for_FY22[[#This Row],[75th]]-AAMC_Raw_Data_for_FY22[[#This Row],[Median]])/25)*5) + AAMC_Raw_Data_for_FY22[[#This Row],[Median]]","v":389536.6},{"$f":"(((AAMC_Raw_Data_for_FY22[[#This Row],[75th]]-AAMC_Raw_Data_for_FY22[[#This Row],[Median]])/25)*10) + AAMC_Raw_Data_for_FY22[[#This Row],[Median]]","v":397657.2},{"$f":"(((AAMC_Raw_Data_for_FY22[[#This Row],[75th]]-AAMC_Raw_Data_for_FY22[[#This Row],[Median]])/25)*15) + AAMC_Raw_Data_for_FY22[[#This Row],[Median]]","v":405777.8},{"$f":"(((AAMC_Raw_Data_for_FY22[[#This Row],[75th]]-AAMC_Raw_Data_for_FY22[[#This Row],[Median]])/25)*20) + AAMC_Raw_Data_for_FY22[[#This Row],[Median]]","v":413898.4},422019,{"$f":"(((AAMC_Raw_Data_for_FY22[[#This Row],[75th]]-AAMC_Raw_Data_for_FY22[[#This Row],[Median]])/25)*30) + AAMC_Raw_Data_for_FY22[[#This Row],[Median]]","v":430139.6},{"$f":"(((AAMC_Raw_Data_for_FY22[[#This Row],[75th]]-AAMC_Raw_Data_for_FY22[[#This Row],[Median]])/25)*35) + AAMC_Raw_Data_for_FY22[[#This Row],[Median]]","v":438260.2},{"$f":"(((AAMC_Raw_Data_for_FY22[[#This Row],[75th]]-AAMC_Raw_Data_for_FY22[[#This Row],[Median]])/25)*40) + AAMC_Raw_Data_for_FY22[[#This Row],[Median]]","v":446380.79999999999}]
[{"$f":"AAMC_Raw_Data_for_FY22[[#This Row],[Source]]&AAMC_Raw_Data_for_FY22[[#This Row],[Type]]&AAMC_Raw_Data_for_FY22[[#This Row],[School Subset]]&AAMC_Raw_Data_for_FY22[[#This Row],[Rank]]&AAMC_Raw_Data_for_FY22[[#This Row],[Degree]]&AAMC_Raw_Data_for_FY22[[#This Row],[Department / Specialty]]&\"L\"","v":"AAMCAcademicAllChairMDCritical/Intensive Care-Peds.L"},"Critical/Intensive Care-Peds.",1,"AAMC","Academic","All","Chair","MD","2021-2022",449197,{"$f":"(((AAMC_Raw_Data_for_FY22[[#This Row],[Median]]-AAMC_Raw_Data_for_FY22[[#This Row],[25th]])/25)*5) + AAMC_Raw_Data_for_FY22[[#This Row],[25th]]","v":470021.6},{"$f":"(((AAMC_Raw_Data_for_FY22[[#This Row],[Median]]-AAMC_Raw_Data_for_FY22[[#This Row],[25th]])/25)*10) + AAMC_Raw_Data_for_FY22[[#This Row],[25th]]","v":490846.2},{"$f":"(((AAMC_Raw_Data_for_FY22[[#This Row],[Median]]-AAMC_Raw_Data_for_FY22[[#This Row],[25th]])/25)*15) + AAMC_Raw_Data_for_FY22[[#This Row],[25th]]","v":511670.8},{"$f":"(((AAMC_Raw_Data_for_FY22[[#This Row],[Median]]-AAMC_Raw_Data_for_FY22[[#This Row],[25th]])/25)*20) + AAMC_Raw_Data_for_FY22[[#This Row],[25th]]","v":532495.4},553320,{"$f":"(((AAMC_Raw_Data_for_FY22[[#This Row],[75th]]-AAMC_Raw_Data_for_FY22[[#This Row],[Median]])/25)*5) + AAMC_Raw_Data_for_FY22[[#This Row],[Median]]","v":555591},{"$f":"(((AAMC_Raw_Data_for_FY22[[#This Row],[75th]]-AAMC_Raw_Data_for_FY22[[#This Row],[Median]])/25)*10) + AAMC_Raw_Data_for_FY22[[#This Row],[Median]]","v":557862},{"$f":"(((AAMC_Raw_Data_for_FY22[[#This Row],[75th]]-AAMC_Raw_Data_for_FY22[[#This Row],[Median]])/25)*15) + AAMC_Raw_Data_for_FY22[[#This Row],[Median]]","v":560133},{"$f":"(((AAMC_Raw_Data_for_FY22[[#This Row],[75th]]-AAMC_Raw_Data_for_FY22[[#This Row],[Median]])/25)*20) + AAMC_Raw_Data_for_FY22[[#This Row],[Median]]","v":562404},564675,{"$f":"(((AAMC_Raw_Data_for_FY22[[#This Row],[75th]]-AAMC_Raw_Data_for_FY22[[#This Row],[Median]])/25)*30) + AAMC_Raw_Data_for_FY22[[#This Row],[Median]]","v":566946},{"$f":"(((AAMC_Raw_Data_for_FY22[[#This Row],[75th]]-AAMC_Raw_Data_for_FY22[[#This Row],[Median]])/25)*35) + AAMC_Raw_Data_for_FY22[[#This Row],[Median]]","v":569217},{"$f":"(((AAMC_Raw_Data_for_FY22[[#This Row],[75th]]-AAMC_Raw_Data_for_FY22[[#This Row],[Median]])/25)*40) + AAMC_Raw_Data_for_FY22[[#This Row],[Median]]","v":571488}]
[{"$f":"AAMC_Raw_Data_for_FY22[[#This Row],[Source]]&AAMC_Raw_Data_for_FY22[[#This Row],[Type]]&AAMC_Raw_Data_for_FY22[[#This Row],[School Subset]]&AAMC_Raw_Data_for_FY22[[#This Row],[Rank]]&AAMC_Raw_Data_for_FY22[[#This Row],[Degree]]&AAMC_Raw_Data_for_FY22[[#This Row],[Department / Specialty]]&\"L\"","v":"AAMCAcademicAllInstructorMDDevelopmental-Behavioral PediatricsL"},"Developmental-Behavioral Pediatrics",5,"AAMC","Academic","All","Instructor","MD","2021-2022",null,{"$f":"(((AAMC_Raw_Data_for_FY22[[#This Row],[Median]]-AAMC_Raw_Data_for_FY22[[#This Row],[25th]])/25)*5) + AAMC_Raw_Data_for_FY22[[#This Row],[25th]]","v":0},{"$f":"(((AAMC_Raw_Data_for_FY22[[#This Row],[Median]]-AAMC_Raw_Data_for_FY22[[#This Row],[25th]])/25)*10) + AAMC_Raw_Data_for_FY22[[#This Row],[25th]]","v":0},{"$f":"(((AAMC_Raw_Data_for_FY22[[#This Row],[Median]]-AAMC_Raw_Data_for_FY22[[#This Row],[25th]])/25)*15) + AAMC_Raw_Data_for_FY22[[#This Row],[25th]]","v":0},{"$f":"(((AAMC_Raw_Data_for_FY22[[#This Row],[Median]]-AAMC_Raw_Data_for_FY22[[#This Row],[25th]])/25)*20) + AAMC_Raw_Data_for_FY22[[#This Row],[25th]]","v":0},null,{"$f":"(((AAMC_Raw_Data_for_FY22[[#This Row],[75th]]-AAMC_Raw_Data_for_FY22[[#This Row],[Median]])/25)*5) + AAMC_Raw_Data_for_FY22[[#This Row],[Median]]","v":0},{"$f":"(((AAMC_Raw_Data_for_FY22[[#This Row],[75th]]-AAMC_Raw_Data_for_FY22[[#This Row],[Median]])/25)*10) + AAMC_Raw_Data_for_FY22[[#This Row],[Median]]","v":0},{"$f":"(((AAMC_Raw_Data_for_FY22[[#This Row],[75th]]-AAMC_Raw_Data_for_FY22[[#This Row],[Median]])/25)*15) + AAMC_Raw_Data_for_FY22[[#This Row],[Median]]","v":0},{"$f":"(((AAMC_Raw_Data_for_FY22[[#This Row],[75th]]-AAMC_Raw_Data_for_FY22[[#This Row],[Median]])/25)*20) + AAMC_Raw_Data_for_FY22[[#This Row],[Median]]","v":0},null,{"$f":"(((AAMC_Raw_Data_for_FY22[[#This Row],[75th]]-AAMC_Raw_Data_for_FY22[[#This Row],[Median]])/25)*30) + AAMC_Raw_Data_for_FY22[[#This Row],[Median]]","v":0},{"$f":"(((AAMC_Raw_Data_for_FY22[[#This Row],[75th]]-AAMC_Raw_Data_for_FY22[[#This Row],[Median]])/25)*35) + AAMC_Raw_Data_for_FY22[[#This Row],[Median]]","v":0},{"$f":"(((AAMC_Raw_Data_for_FY22[[#This Row],[75th]]-AAMC_Raw_Data_for_FY22[[#This Row],[Median]])/25)*40) + AAMC_Raw_Data_for_FY22[[#This Row],[Median]]","v":0}]
[{"$f":"AAMC_Raw_Data_for_FY22[[#This Row],[Source]]&AAMC_Raw_Data_for_FY22[[#This Row],[Type]]&AAMC_Raw_Data_for_FY22[[#This Row],[School Subset]]&AAMC_Raw_Data_for_FY22[[#This Row],[Rank]]&AAMC_Raw_Data_for_FY22[[#This Row],[Degree]]&AAMC_Raw_Data_for_FY22[[#This Row],[Department / Specialty]]&\"L\"","v":"AAMCAcademicAllAssistantMDDevelopmental-Behavioral PediatricsL"},"Developmental-Behavioral Pediatrics",4,"AAMC","Academic","All","Assistant","MD","2021-2022",176408,{"$f":"(((AAMC_Raw_Data_for_FY22[[#This Row],[Median]]-AAMC_Raw_Data_for_FY22[[#This Row],[25th]])/25)*5) + AAMC_Raw_Data_for_FY22[[#This Row],[25th]]","v":177442},{"$f":"(((AAMC_Raw_Data_for_FY22[[#This Row],[Median]]-AAMC_Raw_Data_for_FY22[[#This Row],[25th]])/25)*10) + AAMC_Raw_Data_for_FY22[[#This Row],[25th]]","v":178476},{"$f":"(((AAMC_Raw_Data_for_FY22[[#This Row],[Median]]-AAMC_Raw_Data_for_FY22[[#This Row],[25th]])/25)*15) + AAMC_Raw_Data_for_FY22[[#This Row],[25th]]","v":179510},{"$f":"(((AAMC_Raw_Data_for_FY22[[#This Row],[Median]]-AAMC_Raw_Data_for_FY22[[#This Row],[25th]])/25)*20) + AAMC_Raw_Data_for_FY22[[#This Row],[25th]]","v":180544},181578,{"$f":"(((AAMC_Raw_Data_for_FY22[[#This Row],[75th]]-AAMC_Raw_Data_for_FY22[[#This Row],[Median]])/25)*5) + AAMC_Raw_Data_for_FY22[[#This Row],[Median]]","v":190522.4},{"$f":"(((AAMC_Raw_Data_for_FY22[[#This Row],[75th]]-AAMC_Raw_Data_for_FY22[[#This Row],[Median]])/25)*10) + AAMC_Raw_Data_for_FY22[[#This Row],[Median]]","v":199466.8},{"$f":"(((AAMC_Raw_Data_for_FY22[[#This Row],[75th]]-AAMC_Raw_Data_for_FY22[[#This Row],[Median]])/25)*15) + AAMC_Raw_Data_for_FY22[[#This Row],[Median]]","v":208411.2},{"$f":"(((AAMC_Raw_Data_for_FY22[[#This Row],[75th]]-AAMC_Raw_Data_for_FY22[[#This Row],[Median]])/25)*20) + AAMC_Raw_Data_for_FY22[[#This Row],[Median]]","v":217355.6},226300,{"$f":"(((AAMC_Raw_Data_for_FY22[[#This Row],[75th]]-AAMC_Raw_Data_for_FY22[[#This Row],[Median]])/25)*30) + AAMC_Raw_Data_for_FY22[[#This Row],[Median]]","v":235244.4},{"$f":"(((AAMC_Raw_Data_for_FY22[[#This Row],[75th]]-AAMC_Raw_Data_for_FY22[[#This Row],[Median]])/25)*35) + AAMC_Raw_Data_for_FY22[[#This Row],[Median]]","v":244188.79999999999},{"$f":"(((AAMC_Raw_Data_for_FY22[[#This Row],[75th]]-AAMC_Raw_Data_for_FY22[[#This Row],[Median]])/25)*40) + AAMC_Raw_Data_for_FY22[[#This Row],[Median]]","v":253133.2}]
[{"$f":"AAMC_Raw_Data_for_FY22[[#This Row],[Source]]&AAMC_Raw_Data_for_FY22[[#This Row],[Type]]&AAMC_Raw_Data_for_FY22[[#This Row],[School Subset]]&AAMC_Raw_Data_for_FY22[[#This Row],[Rank]]&AAMC_Raw_Data_for_FY22[[#This Row],[Degree]]&AAMC_Raw_Data_for_FY22[[#This Row],[Department / Specialty]]&\"L\"","v":"AAMCAcademicAllAssociateMDDevelopmental-Behavioral PediatricsL"},"Developmental-Behavioral Pediatrics",3,"AAMC","Academic","All","Associate","MD","2021-2022",188994,{"$f":"(((AAMC_Raw_Data_for_FY22[[#This Row],[Median]]-AAMC_Raw_Data_for_FY22[[#This Row],[25th]])/25)*5) + AAMC_Raw_Data_for_FY22[[#This Row],[25th]]","v":191619.4},{"$f":"(((AAMC_Raw_Data_for_FY22[[#This Row],[Median]]-AAMC_Raw_Data_for_FY22[[#This Row],[25th]])/25)*10) + AAMC_Raw_Data_for_FY22[[#This Row],[25th]]","v":194244.8},{"$f":"(((AAMC_Raw_Data_for_FY22[[#This Row],[Median]]-AAMC_Raw_Data_for_FY22[[#This Row],[25th]])/25)*15) + AAMC_Raw_Data_for_FY22[[#This Row],[25th]]","v":196870.2},{"$f":"(((AAMC_Raw_Data_for_FY22[[#This Row],[Median]]-AAMC_Raw_Data_for_FY22[[#This Row],[25th]])/25)*20) + AAMC_Raw_Data_for_FY22[[#This Row],[25th]]","v":199495.6},202121,{"$f":"(((AAMC_Raw_Data_for_FY22[[#This Row],[75th]]-AAMC_Raw_Data_for_FY22[[#This Row],[Median]])/25)*5) + AAMC_Raw_Data_for_FY22[[#This Row],[Median]]","v":207390},{"$f":"(((AAMC_Raw_Data_for_FY22[[#This Row],[75th]]-AAMC_Raw_Data_for_FY22[[#This Row],[Median]])/25)*10) + AAMC_Raw_Data_for_FY22[[#This Row],[Median]]","v":212659},{"$f":"(((AAMC_Raw_Data_for_FY22[[#This Row],[75th]]-AAMC_Raw_Data_for_FY22[[#This Row],[Median]])/25)*15) + AAMC_Raw_Data_for_FY22[[#This Row],[Median]]","v":217928},{"$f":"(((AAMC_Raw_Data_for_FY22[[#This Row],[75th]]-AAMC_Raw_Data_for_FY22[[#This Row],[Median]])/25)*20) + AAMC_Raw_Data_for_FY22[[#This Row],[Median]]","v":223197},228466,{"$f":"(((AAMC_Raw_Data_for_FY22[[#This Row],[75th]]-AAMC_Raw_Data_for_FY22[[#This Row],[Median]])/25)*30) + AAMC_Raw_Data_for_FY22[[#This Row],[Median]]","v":233735},{"$f":"(((AAMC_Raw_Data_for_FY22[[#This Row],[75th]]-AAMC_Raw_Data_for_FY22[[#This Row],[Median]])/25)*35) + AAMC_Raw_Data_for_FY22[[#This Row],[Median]]","v":239004},{"$f":"(((AAMC_Raw_Data_for_FY22[[#This Row],[75th]]-AAMC_Raw_Data_for_FY22[[#This Row],[Median]])/25)*40) + AAMC_Raw_Data_for_FY22[[#This Row],[Median]]","v":244273}]
[{"$f":"AAMC_Raw_Data_for_FY22[[#This Row],[Source]]&AAMC_Raw_Data_for_FY22[[#This Row],[Type]]&AAMC_Raw_Data_for_FY22[[#This Row],[School Subset]]&AAMC_Raw_Data_for_FY22[[#This Row],[Rank]]&AAMC_Raw_Data_for_FY22[[#This Row],[Degree]]&AAMC_Raw_Data_for_FY22[[#This Row],[Department / Specialty]]&\"L\"","v":"AAMCAcademicAllProfessorMDDevelopmental-Behavioral PediatricsL"},"Developmental-Behavioral Pediatrics",2,"AAMC","Academic","All","Professor","MD","2021-2022",234937,{"$f":"(((AAMC_Raw_Data_for_FY22[[#This Row],[Median]]-AAMC_Raw_Data_for_FY22[[#This Row],[25th]])/25)*5) + AAMC_Raw_Data_for_FY22[[#This Row],[25th]]","v":238816.6},{"$f":"(((AAMC_Raw_Data_for_FY22[[#This Row],[Median]]-AAMC_Raw_Data_for_FY22[[#This Row],[25th]])/25)*10) + AAMC_Raw_Data_for_FY22[[#This Row],[25th]]","v":242696.2},{"$f":"(((AAMC_Raw_Data_for_FY22[[#This Row],[Median]]-AAMC_Raw_Data_for_FY22[[#This Row],[25th]])/25)*15) + AAMC_Raw_Data_for_FY22[[#This Row],[25th]]","v":246575.8},{"$f":"(((AAMC_Raw_Data_for_FY22[[#This Row],[Median]]-AAMC_Raw_Data_for_FY22[[#This Row],[25th]])/25)*20) + AAMC_Raw_Data_for_FY22[[#This Row],[25th]]","v":250455.4},254335,{"$f":"(((AAMC_Raw_Data_for_FY22[[#This Row],[75th]]-AAMC_Raw_Data_for_FY22[[#This Row],[Median]])/25)*5) + AAMC_Raw_Data_for_FY22[[#This Row],[Median]]","v":259620.8},{"$f":"(((AAMC_Raw_Data_for_FY22[[#This Row],[75th]]-AAMC_Raw_Data_for_FY22[[#This Row],[Median]])/25)*10) + AAMC_Raw_Data_for_FY22[[#This Row],[Median]]","v":264906.59999999998},{"$f":"(((AAMC_Raw_Data_for_FY22[[#This Row],[75th]]-AAMC_Raw_Data_for_FY22[[#This Row],[Median]])/25)*15) + AAMC_Raw_Data_for_FY22[[#This Row],[Median]]","v":270192.40000000002},{"$f":"(((AAMC_Raw_Data_for_FY22[[#This Row],[75th]]-AAMC_Raw_Data_for_FY22[[#This Row],[Median]])/25)*20) + AAMC_Raw_Data_for_FY22[[#This Row],[Median]]","v":275478.2},280764,{"$f":"(((AAMC_Raw_Data_for_FY22[[#This Row],[75th]]-AAMC_Raw_Data_for_FY22[[#This Row],[Median]])/25)*30) + AAMC_Raw_Data_for_FY22[[#This Row],[Median]]","v":286049.8},{"$f":"(((AAMC_Raw_Data_for_FY22[[#This Row],[75th]]-AAMC_Raw_Data_for_FY22[[#This Row],[Median]])/25)*35) + AAMC_Raw_Data_for_FY22[[#This Row],[Median]]","v":291335.59999999998},{"$f":"(((AAMC_Raw_Data_for_FY22[[#This Row],[75th]]-AAMC_Raw_Data_for_FY22[[#This Row],[Median]])/25)*40) + AAMC_Raw_Data_for_FY22[[#This Row],[Median]]","v":296621.40000000002}]
[{"$f":"AAMC_Raw_Data_for_FY22[[#This Row],[Source]]&AAMC_Raw_Data_for_FY22[[#This Row],[Type]]&AAMC_Raw_Data_for_FY22[[#This Row],[School Subset]]&AAMC_Raw_Data_for_FY22[[#This Row],[Rank]]&AAMC_Raw_Data_for_FY22[[#This Row],[Degree]]&AAMC_Raw_Data_for_FY22[[#This Row],[Department / Specialty]]&\"L\"","v":"AAMCAcademicAllChiefMDDevelopmental-Behavioral PediatricsL"},"Developmental-Behavioral Pediatrics",6,"AAMC","Academic","All","Chief","MD","2021-2022",248821,{"$f":"(((AAMC_Raw_Data_for_FY22[[#This Row],[Median]]-AAMC_Raw_Data_for_FY22[[#This Row],[25th]])/25)*5) + AAMC_Raw_Data_for_FY22[[#This Row],[25th]]","v":257957.6},{"$f":"(((AAMC_Raw_Data_for_FY22[[#This Row],[Median]]-AAMC_Raw_Data_for_FY22[[#This Row],[25th]])/25)*10) + AAMC_Raw_Data_for_FY22[[#This Row],[25th]]","v":267094.2},{"$f":"(((AAMC_Raw_Data_for_FY22[[#This Row],[Median]]-AAMC_Raw_Data_for_FY22[[#This Row],[25th]])/25)*15) + AAMC_Raw_Data_for_FY22[[#This Row],[25th]]","v":276230.8},{"$f":"(((AAMC_Raw_Data_for_FY22[[#This Row],[Median]]-AAMC_Raw_Data_for_FY22[[#This Row],[25th]])/25)*20) + AAMC_Raw_Data_for_FY22[[#This Row],[25th]]","v":285367.40000000002},294504,{"$f":"(((AAMC_Raw_Data_for_FY22[[#This Row],[75th]]-AAMC_Raw_Data_for_FY22[[#This Row],[Median]])/25)*5) + AAMC_Raw_Data_for_FY22[[#This Row],[Median]]","v":302260},{"$f":"(((AAMC_Raw_Data_for_FY22[[#This Row],[75th]]-AAMC_Raw_Data_for_FY22[[#This Row],[Median]])/25)*10) + AAMC_Raw_Data_for_FY22[[#This Row],[Median]]","v":310016},{"$f":"(((AAMC_Raw_Data_for_FY22[[#This Row],[75th]]-AAMC_Raw_Data_for_FY22[[#This Row],[Median]])/25)*15) + AAMC_Raw_Data_for_FY22[[#This Row],[Median]]","v":317772},{"$f":"(((AAMC_Raw_Data_for_FY22[[#This Row],[75th]]-AAMC_Raw_Data_for_FY22[[#This Row],[Median]])/25)*20) + AAMC_Raw_Data_for_FY22[[#This Row],[Median]]","v":325528},333284,{"$f":"(((AAMC_Raw_Data_for_FY22[[#This Row],[75th]]-AAMC_Raw_Data_for_FY22[[#This Row],[Median]])/25)*30) + AAMC_Raw_Data_for_FY22[[#This Row],[Median]]","v":341040},{"$f":"(((AAMC_Raw_Data_for_FY22[[#This Row],[75th]]-AAMC_Raw_Data_for_FY22[[#This Row],[Median]])/25)*35) + AAMC_Raw_Data_for_FY22[[#This Row],[Median]]","v":348796},{"$f":"(((AAMC_Raw_Data_for_FY22[[#This Row],[75th]]-AAMC_Raw_Data_for_FY22[[#This Row],[Median]])/25)*40) + AAMC_Raw_Data_for_FY22[[#This Row],[Median]]","v":356552}]
[{"$f":"AAMC_Raw_Data_for_FY22[[#This Row],[Source]]&AAMC_Raw_Data_for_FY22[[#This Row],[Type]]&AAMC_Raw_Data_for_FY22[[#This Row],[School Subset]]&AAMC_Raw_Data_for_FY22[[#This Row],[Rank]]&AAMC_Raw_Data_for_FY22[[#This Row],[Degree]]&AAMC_Raw_Data_for_FY22[[#This Row],[Department / Specialty]]&\"L\"","v":"AAMCAcademicAllChairMDDevelopmental-Behavioral PediatricsL"},"Developmental-Behavioral Pediatrics",1,"AAMC","Academic","All","Chair","MD","2021-2022",null,{"$f":"(((AAMC_Raw_Data_for_FY22[[#This Row],[Median]]-AAMC_Raw_Data_for_FY22[[#This Row],[25th]])/25)*5) + AAMC_Raw_Data_for_FY22[[#This Row],[25th]]","v":0},{"$f":"(((AAMC_Raw_Data_for_FY22[[#This Row],[Median]]-AAMC_Raw_Data_for_FY22[[#This Row],[25th]])/25)*10) + AAMC_Raw_Data_for_FY22[[#This Row],[25th]]","v":0},{"$f":"(((AAMC_Raw_Data_for_FY22[[#This Row],[Median]]-AAMC_Raw_Data_for_FY22[[#This Row],[25th]])/25)*15) + AAMC_Raw_Data_for_FY22[[#This Row],[25th]]","v":0},{"$f":"(((AAMC_Raw_Data_for_FY22[[#This Row],[Median]]-AAMC_Raw_Data_for_FY22[[#This Row],[25th]])/25)*20) + AAMC_Raw_Data_for_FY22[[#This Row],[25th]]","v":0},null,{"$f":"(((AAMC_Raw_Data_for_FY22[[#This Row],[75th]]-AAMC_Raw_Data_for_FY22[[#This Row],[Median]])/25)*5) + AAMC_Raw_Data_for_FY22[[#This Row],[Median]]","v":0},{"$f":"(((AAMC_Raw_Data_for_FY22[[#This Row],[75th]]-AAMC_Raw_Data_for_FY22[[#This Row],[Median]])/25)*10) + AAMC_Raw_Data_for_FY22[[#This Row],[Median]]","v":0},{"$f":"(((AAMC_Raw_Data_for_FY22[[#This Row],[75th]]-AAMC_Raw_Data_for_FY22[[#This Row],[Median]])/25)*15) + AAMC_Raw_Data_for_FY22[[#This Row],[Median]]","v":0},{"$f":"(((AAMC_Raw_Data_for_FY22[[#This Row],[75th]]-AAMC_Raw_Data_for_FY22[[#This Row],[Median]])/25)*20) + AAMC_Raw_Data_for_FY22[[#This Row],[Median]]","v":0},null,{"$f":"(((AAMC_Raw_Data_for_FY22[[#This Row],[75th]]-AAMC_Raw_Data_for_FY22[[#This Row],[Median]])/25)*30) + AAMC_Raw_Data_for_FY22[[#This Row],[Median]]","v":0},{"$f":"(((AAMC_Raw_Data_for_FY22[[#This Row],[75th]]-AAMC_Raw_Data_for_FY22[[#This Row],[Median]])/25)*35) + AAMC_Raw_Data_for_FY22[[#This Row],[Median]]","v":0},{"$f":"(((AAMC_Raw_Data_for_FY22[[#This Row],[75th]]-AAMC_Raw_Data_for_FY22[[#This Row],[Median]])/25)*40) + AAMC_Raw_Data_for_FY22[[#This Row],[Median]]","v":0}]
[{"$f":"AAMC_Raw_Data_for_FY22[[#This Row],[Source]]&AAMC_Raw_Data_for_FY22[[#This Row],[Type]]&AAMC_Raw_Data_for_FY22[[#This Row],[School Subset]]&AAMC_Raw_Data_for_FY22[[#This Row],[Rank]]&AAMC_Raw_Data_for_FY22[[#This Row],[Degree]]&AAMC_Raw_Data_for_FY22[[#This Row],[Department / Specialty]]&\"L\"","v":"AAMCAcademicAllInstructorMDEmergency Medicine-Peds.L"},"Emergency Medicine-Peds.",5,"AAMC","Academic","All","Instructor","MD","2021-2022",199914,{"$f":"(((AAMC_Raw_Data_for_FY22[[#This Row],[Median]]-AAMC_Raw_Data_for_FY22[[#This Row],[25th]])/25)*5) + AAMC_Raw_Data_for_FY22[[#This Row],[25th]]","v":204316.4},{"$f":"(((AAMC_Raw_Data_for_FY22[[#This Row],[Median]]-AAMC_Raw_Data_for_FY22[[#This Row],[25th]])/25)*10) + AAMC_Raw_Data_for_FY22[[#This Row],[25th]]","v":208718.8},{"$f":"(((AAMC_Raw_Data_for_FY22[[#This Row],[Median]]-AAMC_Raw_Data_for_FY22[[#This Row],[25th]])/25)*15) + AAMC_Raw_Data_for_FY22[[#This Row],[25th]]","v":213121.2},{"$f":"(((AAMC_Raw_Data_for_FY22[[#This Row],[Median]]-AAMC_Raw_Data_for_FY22[[#This Row],[25th]])/25)*20) + AAMC_Raw_Data_for_FY22[[#This Row],[25th]]","v":217523.6},221926,{"$f":"(((AAMC_Raw_Data_for_FY22[[#This Row],[75th]]-AAMC_Raw_Data_for_FY22[[#This Row],[Median]])/25)*5) + AAMC_Raw_Data_for_FY22[[#This Row],[Median]]","v":227881},{"$f":"(((AAMC_Raw_Data_for_FY22[[#This Row],[75th]]-AAMC_Raw_Data_for_FY22[[#This Row],[Median]])/25)*10) + AAMC_Raw_Data_for_FY22[[#This Row],[Median]]","v":233836},{"$f":"(((AAMC_Raw_Data_for_FY22[[#This Row],[75th]]-AAMC_Raw_Data_for_FY22[[#This Row],[Median]])/25)*15) + AAMC_Raw_Data_for_FY22[[#This Row],[Median]]","v":239791},{"$f":"(((AAMC_Raw_Data_for_FY22[[#This Row],[75th]]-AAMC_Raw_Data_for_FY22[[#This Row],[Median]])/25)*20) + AAMC_Raw_Data_for_FY22[[#This Row],[Median]]","v":245746},251701,{"$f":"(((AAMC_Raw_Data_for_FY22[[#This Row],[75th]]-AAMC_Raw_Data_for_FY22[[#This Row],[Median]])/25)*30) + AAMC_Raw_Data_for_FY22[[#This Row],[Median]]","v":257656},{"$f":"(((AAMC_Raw_Data_for_FY22[[#This Row],[75th]]-AAMC_Raw_Data_for_FY22[[#This Row],[Median]])/25)*35) + AAMC_Raw_Data_for_FY22[[#This Row],[Median]]","v":263611},{"$f":"(((AAMC_Raw_Data_for_FY22[[#This Row],[75th]]-AAMC_Raw_Data_for_FY22[[#This Row],[Median]])/25)*40) + AAMC_Raw_Data_for_FY22[[#This Row],[Median]]","v":269566}]
[{"$f":"AAMC_Raw_Data_for_FY22[[#This Row],[Source]]&AAMC_Raw_Data_for_FY22[[#This Row],[Type]]&AAMC_Raw_Data_for_FY22[[#This Row],[School Subset]]&AAMC_Raw_Data_for_FY22[[#This Row],[Rank]]&AAMC_Raw_Data_for_FY22[[#This Row],[Degree]]&AAMC_Raw_Data_for_FY22[[#This Row],[Department / Specialty]]&\"L\"","v":"AAMCAcademicAllAssistantMDEmergency Medicine-Peds.L"},"Emergency Medicine-Peds.",4,"AAMC","Academic","All","Assistant","MD","2021-2022",226800,{"$f":"(((AAMC_Raw_Data_for_FY22[[#This Row],[Median]]-AAMC_Raw_Data_for_FY22[[#This Row],[25th]])/25)*5) + AAMC_Raw_Data_for_FY22[[#This Row],[25th]]","v":230968.8},{"$f":"(((AAMC_Raw_Data_for_FY22[[#This Row],[Median]]-AAMC_Raw_Data_for_FY22[[#This Row],[25th]])/25)*10) + AAMC_Raw_Data_for_FY22[[#This Row],[25th]]","v":235137.6},{"$f":"(((AAMC_Raw_Data_for_FY22[[#This Row],[Median]]-AAMC_Raw_Data_for_FY22[[#This Row],[25th]])/25)*15) + AAMC_Raw_Data_for_FY22[[#This Row],[25th]]","v":239306.4},{"$f":"(((AAMC_Raw_Data_for_FY22[[#This Row],[Median]]-AAMC_Raw_Data_for_FY22[[#This Row],[25th]])/25)*20) + AAMC_Raw_Data_for_FY22[[#This Row],[25th]]","v":243475.20000000001},247644,{"$f":"(((AAMC_Raw_Data_for_FY22[[#This Row],[75th]]-AAMC_Raw_Data_for_FY22[[#This Row],[Median]])/25)*5) + AAMC_Raw_Data_for_FY22[[#This Row],[Median]]","v":254348.4},{"$f":"(((AAMC_Raw_Data_for_FY22[[#This Row],[75th]]-AAMC_Raw_Data_for_FY22[[#This Row],[Median]])/25)*10) + AAMC_Raw_Data_for_FY22[[#This Row],[Median]]","v":261052.79999999999},{"$f":"(((AAMC_Raw_Data_for_FY22[[#This Row],[75th]]-AAMC_Raw_Data_for_FY22[[#This Row],[Median]])/25)*15) + AAMC_Raw_Data_for_FY22[[#This Row],[Median]]","v":267757.2},{"$f":"(((AAMC_Raw_Data_for_FY22[[#This Row],[75th]]-AAMC_Raw_Data_for_FY22[[#This Row],[Median]])/25)*20) + AAMC_Raw_Data_for_FY22[[#This Row],[Median]]","v":274461.59999999998},281166,{"$f":"(((AAMC_Raw_Data_for_FY22[[#This Row],[75th]]-AAMC_Raw_Data_for_FY22[[#This Row],[Median]])/25)*30) + AAMC_Raw_Data_for_FY22[[#This Row],[Median]]","v":287870.40000000002},{"$f":"(((AAMC_Raw_Data_for_FY22[[#This Row],[75th]]-AAMC_Raw_Data_for_FY22[[#This Row],[Median]])/25)*35) + AAMC_Raw_Data_for_FY22[[#This Row],[Median]]","v":294574.8},{"$f":"(((AAMC_Raw_Data_for_FY22[[#This Row],[75th]]-AAMC_Raw_Data_for_FY22[[#This Row],[Median]])/25)*40) + AAMC_Raw_Data_for_FY22[[#This Row],[Median]]","v":301279.2}]
[{"$f":"AAMC_Raw_Data_for_FY22[[#This Row],[Source]]&AAMC_Raw_Data_for_FY22[[#This Row],[Type]]&AAMC_Raw_Data_for_FY22[[#This Row],[School Subset]]&AAMC_Raw_Data_for_FY22[[#This Row],[Rank]]&AAMC_Raw_Data_for_FY22[[#This Row],[Degree]]&AAMC_Raw_Data_for_FY22[[#This Row],[Department / Specialty]]&\"L\"","v":"AAMCAcademicAllAssociateMDEmergency Medicine-Peds.L"},"Emergency Medicine-Peds.",3,"AAMC","Academic","All","Associate","MD","2021-2022",262024,{"$f":"(((AAMC_Raw_Data_for_FY22[[#This Row],[Median]]-AAMC_Raw_Data_for_FY22[[#This Row],[25th]])/25)*5) + AAMC_Raw_Data_for_FY22[[#This Row],[25th]]","v":265439.8},{"$f":"(((AAMC_Raw_Data_for_FY22[[#This Row],[Median]]-AAMC_Raw_Data_for_FY22[[#This Row],[25th]])/25)*10) + AAMC_Raw_Data_for_FY22[[#This Row],[25th]]","v":268855.59999999998},{"$f":"(((AAMC_Raw_Data_for_FY22[[#This Row],[Median]]-AAMC_Raw_Data_for_FY22[[#This Row],[25th]])/25)*15) + AAMC_Raw_Data_for_FY22[[#This Row],[25th]]","v":272271.40000000002},{"$f":"(((AAMC_Raw_Data_for_FY22[[#This Row],[Median]]-AAMC_Raw_Data_for_FY22[[#This Row],[25th]])/25)*20) + AAMC_Raw_Data_for_FY22[[#This Row],[25th]]","v":275687.2},279103,{"$f":"(((AAMC_Raw_Data_for_FY22[[#This Row],[75th]]-AAMC_Raw_Data_for_FY22[[#This Row],[Median]])/25)*5) + AAMC_Raw_Data_for_FY22[[#This Row],[Median]]","v":286114.59999999998},{"$f":"(((AAMC_Raw_Data_for_FY22[[#This Row],[75th]]-AAMC_Raw_Data_for_FY22[[#This Row],[Median]])/25)*10) + AAMC_Raw_Data_for_FY22[[#This Row],[Median]]","v":293126.2},{"$f":"(((AAMC_Raw_Data_for_FY22[[#This Row],[75th]]-AAMC_Raw_Data_for_FY22[[#This Row],[Median]])/25)*15) + AAMC_Raw_Data_for_FY22[[#This Row],[Median]]","v":300137.8},{"$f":"(((AAMC_Raw_Data_for_FY22[[#This Row],[75th]]-AAMC_Raw_Data_for_FY22[[#This Row],[Median]])/25)*20) + AAMC_Raw_Data_for_FY22[[#This Row],[Median]]","v":307149.40000000002},314161,{"$f":"(((AAMC_Raw_Data_for_FY22[[#This Row],[75th]]-AAMC_Raw_Data_for_FY22[[#This Row],[Median]])/25)*30) + AAMC_Raw_Data_for_FY22[[#This Row],[Median]]","v":321172.59999999998},{"$f":"(((AAMC_Raw_Data_for_FY22[[#This Row],[75th]]-AAMC_Raw_Data_for_FY22[[#This Row],[Median]])/25)*35) + AAMC_Raw_Data_for_FY22[[#This Row],[Median]]","v":328184.2},{"$f":"(((AAMC_Raw_Data_for_FY22[[#This Row],[75th]]-AAMC_Raw_Data_for_FY22[[#This Row],[Median]])/25)*40) + AAMC_Raw_Data_for_FY22[[#This Row],[Median]]","v":335195.8}]
[{"$f":"AAMC_Raw_Data_for_FY22[[#This Row],[Source]]&AAMC_Raw_Data_for_FY22[[#This Row],[Type]]&AAMC_Raw_Data_for_FY22[[#This Row],[School Subset]]&AAMC_Raw_Data_for_FY22[[#This Row],[Rank]]&AAMC_Raw_Data_for_FY22[[#This Row],[Degree]]&AAMC_Raw_Data_for_FY22[[#This Row],[Department / Specialty]]&\"L\"","v":"AAMCAcademicAllProfessorMDEmergency Medicine-Peds.L"},"Emergency Medicine-Peds.",2,"AAMC","Academic","All","Professor","MD","2021-2022",308156,{"$f":"(((AAMC_Raw_Data_for_FY22[[#This Row],[Median]]-AAMC_Raw_Data_for_FY22[[#This Row],[25th]])/25)*5) + AAMC_Raw_Data_for_FY22[[#This Row],[25th]]","v":311634.8},{"$f":"(((AAMC_Raw_Data_for_FY22[[#This Row],[Median]]-AAMC_Raw_Data_for_FY22[[#This Row],[25th]])/25)*10) + AAMC_Raw_Data_for_FY22[[#This Row],[25th]]","v":315113.59999999998},{"$f":"(((AAMC_Raw_Data_for_FY22[[#This Row],[Median]]-AAMC_Raw_Data_for_FY22[[#This Row],[25th]])/25)*15) + AAMC_Raw_Data_for_FY22[[#This Row],[25th]]","v":318592.40000000002},{"$f":"(((AAMC_Raw_Data_for_FY22[[#This Row],[Median]]-AAMC_Raw_Data_for_FY22[[#This Row],[25th]])/25)*20) + AAMC_Raw_Data_for_FY22[[#This Row],[25th]]","v":322071.2},325550,{"$f":"(((AAMC_Raw_Data_for_FY22[[#This Row],[75th]]-AAMC_Raw_Data_for_FY22[[#This Row],[Median]])/25)*5) + AAMC_Raw_Data_for_FY22[[#This Row],[Median]]","v":332542.59999999998},{"$f":"(((AAMC_Raw_Data_for_FY22[[#This Row],[75th]]-AAMC_Raw_Data_for_FY22[[#This Row],[Median]])/25)*10) + AAMC_Raw_Data_for_FY22[[#This Row],[Median]]","v":339535.2},{"$f":"(((AAMC_Raw_Data_for_FY22[[#This Row],[75th]]-AAMC_Raw_Data_for_FY22[[#This Row],[Median]])/25)*15) + AAMC_Raw_Data_for_FY22[[#This Row],[Median]]","v":346527.8},{"$f":"(((AAMC_Raw_Data_for_FY22[[#This Row],[75th]]-AAMC_Raw_Data_for_FY22[[#This Row],[Median]])/25)*20) + AAMC_Raw_Data_for_FY22[[#This Row],[Median]]","v":353520.4},360513,{"$f":"(((AAMC_Raw_Data_for_FY22[[#This Row],[75th]]-AAMC_Raw_Data_for_FY22[[#This Row],[Median]])/25)*30) + AAMC_Raw_Data_for_FY22[[#This Row],[Median]]","v":367505.6},{"$f":"(((AAMC_Raw_Data_for_FY22[[#This Row],[75th]]-AAMC_Raw_Data_for_FY22[[#This Row],[Median]])/25)*35) + AAMC_Raw_Data_for_FY22[[#This Row],[Median]]","v":374498.2},{"$f":"(((AAMC_Raw_Data_for_FY22[[#This Row],[75th]]-AAMC_Raw_Data_for_FY22[[#This Row],[Median]])/25)*40) + AAMC_Raw_Data_for_FY22[[#This Row],[Median]]","v":381490.8}]
[{"$f":"AAMC_Raw_Data_for_FY22[[#This Row],[Source]]&AAMC_Raw_Data_for_FY22[[#This Row],[Type]]&AAMC_Raw_Data_for_FY22[[#This Row],[School Subset]]&AAMC_Raw_Data_for_FY22[[#This Row],[Rank]]&AAMC_Raw_Data_for_FY22[[#This Row],[Degree]]&AAMC_Raw_Data_for_FY22[[#This Row],[Department / Specialty]]&\"L\"","v":"AAMCAcademicAllChiefMDEmergency Medicine-Peds.L"},"Emergency Medicine-Peds.",6,"AAMC","Academic","All","Chief","MD","2021-2022",360723,{"$f":"(((AAMC_Raw_Data_for_FY22[[#This Row],[Median]]-AAMC_Raw_Data_for_FY22[[#This Row],[25th]])/25)*5) + AAMC_Raw_Data_for_FY22[[#This Row],[25th]]","v":368798.4},{"$f":"(((AAMC_Raw_Data_for_FY22[[#This Row],[Median]]-AAMC_Raw_Data_for_FY22[[#This Row],[25th]])/25)*10) + AAMC_Raw_Data_for_FY22[[#This Row],[25th]]","v":376873.8},{"$f":"(((AAMC_Raw_Data_for_FY22[[#This Row],[Median]]-AAMC_Raw_Data_for_FY22[[#This Row],[25th]])/25)*15) + AAMC_Raw_Data_for_FY22[[#This Row],[25th]]","v":384949.2},{"$f":"(((AAMC_Raw_Data_for_FY22[[#This Row],[Median]]-AAMC_Raw_Data_for_FY22[[#This Row],[25th]])/25)*20) + AAMC_Raw_Data_for_FY22[[#This Row],[25th]]","v":393024.6},401100,{"$f":"(((AAMC_Raw_Data_for_FY22[[#This Row],[75th]]-AAMC_Raw_Data_for_FY22[[#This Row],[Median]])/25)*5) + AAMC_Raw_Data_for_FY22[[#This Row],[Median]]","v":407234.6},{"$f":"(((AAMC_Raw_Data_for_FY22[[#This Row],[75th]]-AAMC_Raw_Data_for_FY22[[#This Row],[Median]])/25)*10) + AAMC_Raw_Data_for_FY22[[#This Row],[Median]]","v":413369.2},{"$f":"(((AAMC_Raw_Data_for_FY22[[#This Row],[75th]]-AAMC_Raw_Data_for_FY22[[#This Row],[Median]])/25)*15) + AAMC_Raw_Data_for_FY22[[#This Row],[Median]]","v":419503.8},{"$f":"(((AAMC_Raw_Data_for_FY22[[#This Row],[75th]]-AAMC_Raw_Data_for_FY22[[#This Row],[Median]])/25)*20) + AAMC_Raw_Data_for_FY22[[#This Row],[Median]]","v":425638.40000000002},431773,{"$f":"(((AAMC_Raw_Data_for_FY22[[#This Row],[75th]]-AAMC_Raw_Data_for_FY22[[#This Row],[Median]])/25)*30) + AAMC_Raw_Data_for_FY22[[#This Row],[Median]]","v":437907.6},{"$f":"(((AAMC_Raw_Data_for_FY22[[#This Row],[75th]]-AAMC_Raw_Data_for_FY22[[#This Row],[Median]])/25)*35) + AAMC_Raw_Data_for_FY22[[#This Row],[Median]]","v":444042.2},{"$f":"(((AAMC_Raw_Data_for_FY22[[#This Row],[75th]]-AAMC_Raw_Data_for_FY22[[#This Row],[Median]])/25)*40) + AAMC_Raw_Data_for_FY22[[#This Row],[Median]]","v":450176.8}]
[{"$f":"AAMC_Raw_Data_for_FY22[[#This Row],[Source]]&AAMC_Raw_Data_for_FY22[[#This Row],[Type]]&AAMC_Raw_Data_for_FY22[[#This Row],[School Subset]]&AAMC_Raw_Data_for_FY22[[#This Row],[Rank]]&AAMC_Raw_Data_for_FY22[[#This Row],[Degree]]&AAMC_Raw_Data_for_FY22[[#This Row],[Department / Specialty]]&\"L\"","v":"AAMCAcademicAllChairMDEmergency Medicine-Peds.L"},"Emergency Medicine-Peds.",1,"AAMC","Academic","All","Chair","MD","2021-2022",null,{"$f":"(((AAMC_Raw_Data_for_FY22[[#This Row],[Median]]-AAMC_Raw_Data_for_FY22[[#This Row],[25th]])/25)*5) + AAMC_Raw_Data_for_FY22[[#This Row],[25th]]","v":0},{"$f":"(((AAMC_Raw_Data_for_FY22[[#This Row],[Median]]-AAMC_Raw_Data_for_FY22[[#This Row],[25th]])/25)*10) + AAMC_Raw_Data_for_FY22[[#This Row],[25th]]","v":0},{"$f":"(((AAMC_Raw_Data_for_FY22[[#This Row],[Median]]-AAMC_Raw_Data_for_FY22[[#This Row],[25th]])/25)*15) + AAMC_Raw_Data_for_FY22[[#This Row],[25th]]","v":0},{"$f":"(((AAMC_Raw_Data_for_FY22[[#This Row],[Median]]-AAMC_Raw_Data_for_FY22[[#This Row],[25th]])/25)*20) + AAMC_Raw_Data_for_FY22[[#This Row],[25th]]","v":0},null,{"$f":"(((AAMC_Raw_Data_for_FY22[[#This Row],[75th]]-AAMC_Raw_Data_for_FY22[[#This Row],[Median]])/25)*5) + AAMC_Raw_Data_for_FY22[[#This Row],[Median]]","v":0},{"$f":"(((AAMC_Raw_Data_for_FY22[[#This Row],[75th]]-AAMC_Raw_Data_for_FY22[[#This Row],[Median]])/25)*10) + AAMC_Raw_Data_for_FY22[[#This Row],[Median]]","v":0},{"$f":"(((AAMC_Raw_Data_for_FY22[[#This Row],[75th]]-AAMC_Raw_Data_for_FY22[[#This Row],[Median]])/25)*15) + AAMC_Raw_Data_for_FY22[[#This Row],[Median]]","v":0},{"$f":"(((AAMC_Raw_Data_for_FY22[[#This Row],[75th]]-AAMC_Raw_Data_for_FY22[[#This Row],[Median]])/25)*20) + AAMC_Raw_Data_for_FY22[[#This Row],[Median]]","v":0},null,{"$f":"(((AAMC_Raw_Data_for_FY22[[#This Row],[75th]]-AAMC_Raw_Data_for_FY22[[#This Row],[Median]])/25)*30) + AAMC_Raw_Data_for_FY22[[#This Row],[Median]]","v":0},{"$f":"(((AAMC_Raw_Data_for_FY22[[#This Row],[75th]]-AAMC_Raw_Data_for_FY22[[#This Row],[Median]])/25)*35) + AAMC_Raw_Data_for_FY22[[#This Row],[Median]]","v":0},{"$f":"(((AAMC_Raw_Data_for_FY22[[#This Row],[75th]]-AAMC_Raw_Data_for_FY22[[#This Row],[Median]])/25)*40) + AAMC_Raw_Data_for_FY22[[#This Row],[Median]]","v":0}]
[{"$f":"AAMC_Raw_Data_for_FY22[[#This Row],[Source]]&AAMC_Raw_Data_for_FY22[[#This Row],[Type]]&AAMC_Raw_Data_for_FY22[[#This Row],[School Subset]]&AAMC_Raw_Data_for_FY22[[#This Row],[Rank]]&AAMC_Raw_Data_for_FY22[[#This Row],[Degree]]&AAMC_Raw_Data_for_FY22[[#This Row],[Department / Specialty]]&\"L\"","v":"AAMCAcademicAllInstructorMDEndocrinology-Peds.L"},"Endocrinology-Peds.",5,"AAMC","Academic","All","Instructor","MD","2021-2022",127074,{"$f":"(((AAMC_Raw_Data_for_FY22[[#This Row],[Median]]-AAMC_Raw_Data_for_FY22[[#This Row],[25th]])/25)*5) + AAMC_Raw_Data_for_FY22[[#This Row],[25th]]","v":129149.8},{"$f":"(((AAMC_Raw_Data_for_FY22[[#This Row],[Median]]-AAMC_Raw_Data_for_FY22[[#This Row],[25th]])/25)*10) + AAMC_Raw_Data_for_FY22[[#This Row],[25th]]","v":131225.60000000001},{"$f":"(((AAMC_Raw_Data_for_FY22[[#This Row],[Median]]-AAMC_Raw_Data_for_FY22[[#This Row],[25th]])/25)*15) + AAMC_Raw_Data_for_FY22[[#This Row],[25th]]","v":133301.4},{"$f":"(((AAMC_Raw_Data_for_FY22[[#This Row],[Median]]-AAMC_Raw_Data_for_FY22[[#This Row],[25th]])/25)*20) + AAMC_Raw_Data_for_FY22[[#This Row],[25th]]","v":135377.20000000001},137453,{"$f":"(((AAMC_Raw_Data_for_FY22[[#This Row],[75th]]-AAMC_Raw_Data_for_FY22[[#This Row],[Median]])/25)*5) + AAMC_Raw_Data_for_FY22[[#This Row],[Median]]","v":139850.6},{"$f":"(((AAMC_Raw_Data_for_FY22[[#This Row],[75th]]-AAMC_Raw_Data_for_FY22[[#This Row],[Median]])/25)*10) + AAMC_Raw_Data_for_FY22[[#This Row],[Median]]","v":142248.20000000001},{"$f":"(((AAMC_Raw_Data_for_FY22[[#This Row],[75th]]-AAMC_Raw_Data_for_FY22[[#This Row],[Median]])/25)*15) + AAMC_Raw_Data_for_FY22[[#This Row],[Median]]","v":144645.79999999999},{"$f":"(((AAMC_Raw_Data_for_FY22[[#This Row],[75th]]-AAMC_Raw_Data_for_FY22[[#This Row],[Median]])/25)*20) + AAMC_Raw_Data_for_FY22[[#This Row],[Median]]","v":147043.4},149441,{"$f":"(((AAMC_Raw_Data_for_FY22[[#This Row],[75th]]-AAMC_Raw_Data_for_FY22[[#This Row],[Median]])/25)*30) + AAMC_Raw_Data_for_FY22[[#This Row],[Median]]","v":151838.6},{"$f":"(((AAMC_Raw_Data_for_FY22[[#This Row],[75th]]-AAMC_Raw_Data_for_FY22[[#This Row],[Median]])/25)*35) + AAMC_Raw_Data_for_FY22[[#This Row],[Median]]","v":154236.20000000001},{"$f":"(((AAMC_Raw_Data_for_FY22[[#This Row],[75th]]-AAMC_Raw_Data_for_FY22[[#This Row],[Median]])/25)*40) + AAMC_Raw_Data_for_FY22[[#This Row],[Median]]","v":156633.79999999999}]
[{"$f":"AAMC_Raw_Data_for_FY22[[#This Row],[Source]]&AAMC_Raw_Data_for_FY22[[#This Row],[Type]]&AAMC_Raw_Data_for_FY22[[#This Row],[School Subset]]&AAMC_Raw_Data_for_FY22[[#This Row],[Rank]]&AAMC_Raw_Data_for_FY22[[#This Row],[Degree]]&AAMC_Raw_Data_for_FY22[[#This Row],[Department / Specialty]]&\"L\"","v":"AAMCAcademicAllAssistantMDEndocrinology-Peds.L"},"Endocrinology-Peds.",4,"AAMC","Academic","All","Assistant","MD","2021-2022",162063,{"$f":"(((AAMC_Raw_Data_for_FY22[[#This Row],[Median]]-AAMC_Raw_Data_for_FY22[[#This Row],[25th]])/25)*5) + AAMC_Raw_Data_for_FY22[[#This Row],[25th]]","v":164955},{"$f":"(((AAMC_Raw_Data_for_FY22[[#This Row],[Median]]-AAMC_Raw_Data_for_FY22[[#This Row],[25th]])/25)*10) + AAMC_Raw_Data_for_FY22[[#This Row],[25th]]","v":167847},{"$f":"(((AAMC_Raw_Data_for_FY22[[#This Row],[Median]]-AAMC_Raw_Data_for_FY22[[#This Row],[25th]])/25)*15) + AAMC_Raw_Data_for_FY22[[#This Row],[25th]]","v":170739},{"$f":"(((AAMC_Raw_Data_for_FY22[[#This Row],[Median]]-AAMC_Raw_Data_for_FY22[[#This Row],[25th]])/25)*20) + AAMC_Raw_Data_for_FY22[[#This Row],[25th]]","v":173631},176523,{"$f":"(((AAMC_Raw_Data_for_FY22[[#This Row],[75th]]-AAMC_Raw_Data_for_FY22[[#This Row],[Median]])/25)*5) + AAMC_Raw_Data_for_FY22[[#This Row],[Median]]","v":180382.6},{"$f":"(((AAMC_Raw_Data_for_FY22[[#This Row],[75th]]-AAMC_Raw_Data_for_FY22[[#This Row],[Median]])/25)*10) + AAMC_Raw_Data_for_FY22[[#This Row],[Median]]","v":184242.2},{"$f":"(((AAMC_Raw_Data_for_FY22[[#This Row],[75th]]-AAMC_Raw_Data_for_FY22[[#This Row],[Median]])/25)*15) + AAMC_Raw_Data_for_FY22[[#This Row],[Median]]","v":188101.8},{"$f":"(((AAMC_Raw_Data_for_FY22[[#This Row],[75th]]-AAMC_Raw_Data_for_FY22[[#This Row],[Median]])/25)*20) + AAMC_Raw_Data_for_FY22[[#This Row],[Median]]","v":191961.4},195821,{"$f":"(((AAMC_Raw_Data_for_FY22[[#This Row],[75th]]-AAMC_Raw_Data_for_FY22[[#This Row],[Median]])/25)*30) + AAMC_Raw_Data_for_FY22[[#This Row],[Median]]","v":199680.6},{"$f":"(((AAMC_Raw_Data_for_FY22[[#This Row],[75th]]-AAMC_Raw_Data_for_FY22[[#This Row],[Median]])/25)*35) + AAMC_Raw_Data_for_FY22[[#This Row],[Median]]","v":203540.2},{"$f":"(((AAMC_Raw_Data_for_FY22[[#This Row],[75th]]-AAMC_Raw_Data_for_FY22[[#This Row],[Median]])/25)*40) + AAMC_Raw_Data_for_FY22[[#This Row],[Median]]","v":207399.8}]
[{"$f":"AAMC_Raw_Data_for_FY22[[#This Row],[Source]]&AAMC_Raw_Data_for_FY22[[#This Row],[Type]]&AAMC_Raw_Data_for_FY22[[#This Row],[School Subset]]&AAMC_Raw_Data_for_FY22[[#This Row],[Rank]]&AAMC_Raw_Data_for_FY22[[#This Row],[Degree]]&AAMC_Raw_Data_for_FY22[[#This Row],[Department / Specialty]]&\"L\"","v":"AAMCAcademicAllAssociateMDEndocrinology-Peds.L"},"Endocrinology-Peds.",3,"AAMC","Academic","All","Associate","MD","2021-2022",190293,{"$f":"(((AAMC_Raw_Data_for_FY22[[#This Row],[Median]]-AAMC_Raw_Data_for_FY22[[#This Row],[25th]])/25)*5) + AAMC_Raw_Data_for_FY22[[#This Row],[25th]]","v":192847.8},{"$f":"(((AAMC_Raw_Data_for_FY22[[#This Row],[Median]]-AAMC_Raw_Data_for_FY22[[#This Row],[25th]])/25)*10) + AAMC_Raw_Data_for_FY22[[#This Row],[25th]]","v":195402.6},{"$f":"(((AAMC_Raw_Data_for_FY22[[#This Row],[Median]]-AAMC_Raw_Data_for_FY22[[#This Row],[25th]])/25)*15) + AAMC_Raw_Data_for_FY22[[#This Row],[25th]]","v":197957.4},{"$f":"(((AAMC_Raw_Data_for_FY22[[#This Row],[Median]]-AAMC_Raw_Data_for_FY22[[#This Row],[25th]])/25)*20) + AAMC_Raw_Data_for_FY22[[#This Row],[25th]]","v":200512.2},203067,{"$f":"(((AAMC_Raw_Data_for_FY22[[#This Row],[75th]]-AAMC_Raw_Data_for_FY22[[#This Row],[Median]])/25)*5) + AAMC_Raw_Data_for_FY22[[#This Row],[Median]]","v":206293.2},{"$f":"(((AAMC_Raw_Data_for_FY22[[#This Row],[75th]]-AAMC_Raw_Data_for_FY22[[#This Row],[Median]])/25)*10) + AAMC_Raw_Data_for_FY22[[#This Row],[Median]]","v":209519.4},{"$f":"(((AAMC_Raw_Data_for_FY22[[#This Row],[75th]]-AAMC_Raw_Data_for_FY22[[#This Row],[Median]])/25)*15) + AAMC_Raw_Data_for_FY22[[#This Row],[Median]]","v":212745.60000000001},{"$f":"(((AAMC_Raw_Data_for_FY22[[#This Row],[75th]]-AAMC_Raw_Data_for_FY22[[#This Row],[Median]])/25)*20) + AAMC_Raw_Data_for_FY22[[#This Row],[Median]]","v":215971.8},219198,{"$f":"(((AAMC_Raw_Data_for_FY22[[#This Row],[75th]]-AAMC_Raw_Data_for_FY22[[#This Row],[Median]])/25)*30) + AAMC_Raw_Data_for_FY22[[#This Row],[Median]]","v":222424.2},{"$f":"(((AAMC_Raw_Data_for_FY22[[#This Row],[75th]]-AAMC_Raw_Data_for_FY22[[#This Row],[Median]])/25)*35) + AAMC_Raw_Data_for_FY22[[#This Row],[Median]]","v":225650.4},{"$f":"(((AAMC_Raw_Data_for_FY22[[#This Row],[75th]]-AAMC_Raw_Data_for_FY22[[#This Row],[Median]])/25)*40) + AAMC_Raw_Data_for_FY22[[#This Row],[Median]]","v":228876.6}]
[{"$f":"AAMC_Raw_Data_for_FY22[[#This Row],[Source]]&AAMC_Raw_Data_for_FY22[[#This Row],[Type]]&AAMC_Raw_Data_for_FY22[[#This Row],[School Subset]]&AAMC_Raw_Data_for_FY22[[#This Row],[Rank]]&AAMC_Raw_Data_for_FY22[[#This Row],[Degree]]&AAMC_Raw_Data_for_FY22[[#This Row],[Department / Specialty]]&\"L\"","v":"AAMCAcademicAllProfessorMDEndocrinology-Peds.L"},"Endocrinology-Peds.",2,"AAMC","Academic","All","Professor","MD","2021-2022",235134,{"$f":"(((AAMC_Raw_Data_for_FY22[[#This Row],[Median]]-AAMC_Raw_Data_for_FY22[[#This Row],[25th]])/25)*5) + AAMC_Raw_Data_for_FY22[[#This Row],[25th]]","v":237926},{"$f":"(((AAMC_Raw_Data_for_FY22[[#This Row],[Median]]-AAMC_Raw_Data_for_FY22[[#This Row],[25th]])/25)*10) + AAMC_Raw_Data_for_FY22[[#This Row],[25th]]","v":240718},{"$f":"(((AAMC_Raw_Data_for_FY22[[#This Row],[Median]]-AAMC_Raw_Data_for_FY22[[#This Row],[25th]])/25)*15) + AAMC_Raw_Data_for_FY22[[#This Row],[25th]]","v":243510},{"$f":"(((AAMC_Raw_Data_for_FY22[[#This Row],[Median]]-AAMC_Raw_Data_for_FY22[[#This Row],[25th]])/25)*20) + AAMC_Raw_Data_for_FY22[[#This Row],[25th]]","v":246302},249094,{"$f":"(((AAMC_Raw_Data_for_FY22[[#This Row],[75th]]-AAMC_Raw_Data_for_FY22[[#This Row],[Median]])/25)*5) + AAMC_Raw_Data_for_FY22[[#This Row],[Median]]","v":256964.4},{"$f":"(((AAMC_Raw_Data_for_FY22[[#This Row],[75th]]-AAMC_Raw_Data_for_FY22[[#This Row],[Median]])/25)*10) + AAMC_Raw_Data_for_FY22[[#This Row],[Median]]","v":264834.8},{"$f":"(((AAMC_Raw_Data_for_FY22[[#This Row],[75th]]-AAMC_Raw_Data_for_FY22[[#This Row],[Median]])/25)*15) + AAMC_Raw_Data_for_FY22[[#This Row],[Median]]","v":272705.2},{"$f":"(((AAMC_Raw_Data_for_FY22[[#This Row],[75th]]-AAMC_Raw_Data_for_FY22[[#This Row],[Median]])/25)*20) + AAMC_Raw_Data_for_FY22[[#This Row],[Median]]","v":280575.59999999998},288446,{"$f":"(((AAMC_Raw_Data_for_FY22[[#This Row],[75th]]-AAMC_Raw_Data_for_FY22[[#This Row],[Median]])/25)*30) + AAMC_Raw_Data_for_FY22[[#This Row],[Median]]","v":296316.40000000002},{"$f":"(((AAMC_Raw_Data_for_FY22[[#This Row],[75th]]-AAMC_Raw_Data_for_FY22[[#This Row],[Median]])/25)*35) + AAMC_Raw_Data_for_FY22[[#This Row],[Median]]","v":304186.8},{"$f":"(((AAMC_Raw_Data_for_FY22[[#This Row],[75th]]-AAMC_Raw_Data_for_FY22[[#This Row],[Median]])/25)*40) + AAMC_Raw_Data_for_FY22[[#This Row],[Median]]","v":312057.2}]
[{"$f":"AAMC_Raw_Data_for_FY22[[#This Row],[Source]]&AAMC_Raw_Data_for_FY22[[#This Row],[Type]]&AAMC_Raw_Data_for_FY22[[#This Row],[School Subset]]&AAMC_Raw_Data_for_FY22[[#This Row],[Rank]]&AAMC_Raw_Data_for_FY22[[#This Row],[Degree]]&AAMC_Raw_Data_for_FY22[[#This Row],[Department / Specialty]]&\"L\"","v":"AAMCAcademicAllChiefMDEndocrinology-Peds.L"},"Endocrinology-Peds.",6,"AAMC","Academic","All","Chief","MD","2021-2022",252935,{"$f":"(((AAMC_Raw_Data_for_FY22[[#This Row],[Median]]-AAMC_Raw_Data_for_FY22[[#This Row],[25th]])/25)*5) + AAMC_Raw_Data_for_FY22[[#This Row],[25th]]","v":259469.2},{"$f":"(((AAMC_Raw_Data_for_FY22[[#This Row],[Median]]-AAMC_Raw_Data_for_FY22[[#This Row],[25th]])/25)*10) + AAMC_Raw_Data_for_FY22[[#This Row],[25th]]","v":266003.40000000002},{"$f":"(((AAMC_Raw_Data_for_FY22[[#This Row],[Median]]-AAMC_Raw_Data_for_FY22[[#This Row],[25th]])/25)*15) + AAMC_Raw_Data_for_FY22[[#This Row],[25th]]","v":272537.59999999998},{"$f":"(((AAMC_Raw_Data_for_FY22[[#This Row],[Median]]-AAMC_Raw_Data_for_FY22[[#This Row],[25th]])/25)*20) + AAMC_Raw_Data_for_FY22[[#This Row],[25th]]","v":279071.8},285606,{"$f":"(((AAMC_Raw_Data_for_FY22[[#This Row],[75th]]-AAMC_Raw_Data_for_FY22[[#This Row],[Median]])/25)*5) + AAMC_Raw_Data_for_FY22[[#This Row],[Median]]","v":292030},{"$f":"(((AAMC_Raw_Data_for_FY22[[#This Row],[75th]]-AAMC_Raw_Data_for_FY22[[#This Row],[Median]])/25)*10) + AAMC_Raw_Data_for_FY22[[#This Row],[Median]]","v":298454},{"$f":"(((AAMC_Raw_Data_for_FY22[[#This Row],[75th]]-AAMC_Raw_Data_for_FY22[[#This Row],[Median]])/25)*15) + AAMC_Raw_Data_for_FY22[[#This Row],[Median]]","v":304878},{"$f":"(((AAMC_Raw_Data_for_FY22[[#This Row],[75th]]-AAMC_Raw_Data_for_FY22[[#This Row],[Median]])/25)*20) + AAMC_Raw_Data_for_FY22[[#This Row],[Median]]","v":311302},317726,{"$f":"(((AAMC_Raw_Data_for_FY22[[#This Row],[75th]]-AAMC_Raw_Data_for_FY22[[#This Row],[Median]])/25)*30) + AAMC_Raw_Data_for_FY22[[#This Row],[Median]]","v":324150},{"$f":"(((AAMC_Raw_Data_for_FY22[[#This Row],[75th]]-AAMC_Raw_Data_for_FY22[[#This Row],[Median]])/25)*35) + AAMC_Raw_Data_for_FY22[[#This Row],[Median]]","v":330574},{"$f":"(((AAMC_Raw_Data_for_FY22[[#This Row],[75th]]-AAMC_Raw_Data_for_FY22[[#This Row],[Median]])/25)*40) + AAMC_Raw_Data_for_FY22[[#This Row],[Median]]","v":336998}]
[{"$f":"AAMC_Raw_Data_for_FY22[[#This Row],[Source]]&AAMC_Raw_Data_for_FY22[[#This Row],[Type]]&AAMC_Raw_Data_for_FY22[[#This Row],[School Subset]]&AAMC_Raw_Data_for_FY22[[#This Row],[Rank]]&AAMC_Raw_Data_for_FY22[[#This Row],[Degree]]&AAMC_Raw_Data_for_FY22[[#This Row],[Department / Specialty]]&\"L\"","v":"AAMCAcademicAllChairMDEndocrinology-Peds.L"},"Endocrinology-Peds.",1,"AAMC","Academic","All","Chair","MD","2021-2022",null,{"$f":"(((AAMC_Raw_Data_for_FY22[[#This Row],[Median]]-AAMC_Raw_Data_for_FY22[[#This Row],[25th]])/25)*5) + AAMC_Raw_Data_for_FY22[[#This Row],[25th]]","v":0},{"$f":"(((AAMC_Raw_Data_for_FY22[[#This Row],[Median]]-AAMC_Raw_Data_for_FY22[[#This Row],[25th]])/25)*10) + AAMC_Raw_Data_for_FY22[[#This Row],[25th]]","v":0},{"$f":"(((AAMC_Raw_Data_for_FY22[[#This Row],[Median]]-AAMC_Raw_Data_for_FY22[[#This Row],[25th]])/25)*15) + AAMC_Raw_Data_for_FY22[[#This Row],[25th]]","v":0},{"$f":"(((AAMC_Raw_Data_for_FY22[[#This Row],[Median]]-AAMC_Raw_Data_for_FY22[[#This Row],[25th]])/25)*20) + AAMC_Raw_Data_for_FY22[[#This Row],[25th]]","v":0},null,{"$f":"(((AAMC_Raw_Data_for_FY22[[#This Row],[75th]]-AAMC_Raw_Data_for_FY22[[#This Row],[Median]])/25)*5) + AAMC_Raw_Data_for_FY22[[#This Row],[Median]]","v":0},{"$f":"(((AAMC_Raw_Data_for_FY22[[#This Row],[75th]]-AAMC_Raw_Data_for_FY22[[#This Row],[Median]])/25)*10) + AAMC_Raw_Data_for_FY22[[#This Row],[Median]]","v":0},{"$f":"(((AAMC_Raw_Data_for_FY22[[#This Row],[75th]]-AAMC_Raw_Data_for_FY22[[#This Row],[Median]])/25)*15) + AAMC_Raw_Data_for_FY22[[#This Row],[Median]]","v":0},{"$f":"(((AAMC_Raw_Data_for_FY22[[#This Row],[75th]]-AAMC_Raw_Data_for_FY22[[#This Row],[Median]])/25)*20) + AAMC_Raw_Data_for_FY22[[#This Row],[Median]]","v":0},null,{"$f":"(((AAMC_Raw_Data_for_FY22[[#This Row],[75th]]-AAMC_Raw_Data_for_FY22[[#This Row],[Median]])/25)*30) + AAMC_Raw_Data_for_FY22[[#This Row],[Median]]","v":0},{"$f":"(((AAMC_Raw_Data_for_FY22[[#This Row],[75th]]-AAMC_Raw_Data_for_FY22[[#This Row],[Median]])/25)*35) + AAMC_Raw_Data_for_FY22[[#This Row],[Median]]","v":0},{"$f":"(((AAMC_Raw_Data_for_FY22[[#This Row],[75th]]-AAMC_Raw_Data_for_FY22[[#This Row],[Median]])/25)*40) + AAMC_Raw_Data_for_FY22[[#This Row],[Median]]","v":0}]
[{"$f":"AAMC_Raw_Data_for_FY22[[#This Row],[Source]]&AAMC_Raw_Data_for_FY22[[#This Row],[Type]]&AAMC_Raw_Data_for_FY22[[#This Row],[School Subset]]&AAMC_Raw_Data_for_FY22[[#This Row],[Rank]]&AAMC_Raw_Data_for_FY22[[#This Row],[Degree]]&AAMC_Raw_Data_for_FY22[[#This Row],[Department / Specialty]]&\"L\"","v":"AAMCAcademicAllInstructorMDGastroenterology-Peds.L"},"Gastroenterology-Peds.",5,"AAMC","Academic","All","Instructor","MD","2021-2022",167503,{"$f":"(((AAMC_Raw_Data_for_FY22[[#This Row],[Median]]-AAMC_Raw_Data_for_FY22[[#This Row],[25th]])/25)*5) + AAMC_Raw_Data_for_FY22[[#This Row],[25th]]","v":174481.2},{"$f":"(((AAMC_Raw_Data_for_FY22[[#This Row],[Median]]-AAMC_Raw_Data_for_FY22[[#This Row],[25th]])/25)*10) + AAMC_Raw_Data_for_FY22[[#This Row],[25th]]","v":181459.4},{"$f":"(((AAMC_Raw_Data_for_FY22[[#This Row],[Median]]-AAMC_Raw_Data_for_FY22[[#This Row],[25th]])/25)*15) + AAMC_Raw_Data_for_FY22[[#This Row],[25th]]","v":188437.6},{"$f":"(((AAMC_Raw_Data_for_FY22[[#This Row],[Median]]-AAMC_Raw_Data_for_FY22[[#This Row],[25th]])/25)*20) + AAMC_Raw_Data_for_FY22[[#This Row],[25th]]","v":195415.8},202394,{"$f":"(((AAMC_Raw_Data_for_FY22[[#This Row],[75th]]-AAMC_Raw_Data_for_FY22[[#This Row],[Median]])/25)*5) + AAMC_Raw_Data_for_FY22[[#This Row],[Median]]","v":205177.4},{"$f":"(((AAMC_Raw_Data_for_FY22[[#This Row],[75th]]-AAMC_Raw_Data_for_FY22[[#This Row],[Median]])/25)*10) + AAMC_Raw_Data_for_FY22[[#This Row],[Median]]","v":207960.8},{"$f":"(((AAMC_Raw_Data_for_FY22[[#This Row],[75th]]-AAMC_Raw_Data_for_FY22[[#This Row],[Median]])/25)*15) + AAMC_Raw_Data_for_FY22[[#This Row],[Median]]","v":210744.2},{"$f":"(((AAMC_Raw_Data_for_FY22[[#This Row],[75th]]-AAMC_Raw_Data_for_FY22[[#This Row],[Median]])/25)*20) + AAMC_Raw_Data_for_FY22[[#This Row],[Median]]","v":213527.6},216311,{"$f":"(((AAMC_Raw_Data_for_FY22[[#This Row],[75th]]-AAMC_Raw_Data_for_FY22[[#This Row],[Median]])/25)*30) + AAMC_Raw_Data_for_FY22[[#This Row],[Median]]","v":219094.39999999999},{"$f":"(((AAMC_Raw_Data_for_FY22[[#This Row],[75th]]-AAMC_Raw_Data_for_FY22[[#This Row],[Median]])/25)*35) + AAMC_Raw_Data_for_FY22[[#This Row],[Median]]","v":221877.8},{"$f":"(((AAMC_Raw_Data_for_FY22[[#This Row],[75th]]-AAMC_Raw_Data_for_FY22[[#This Row],[Median]])/25)*40) + AAMC_Raw_Data_for_FY22[[#This Row],[Median]]","v":224661.2}]
[{"$f":"AAMC_Raw_Data_for_FY22[[#This Row],[Source]]&AAMC_Raw_Data_for_FY22[[#This Row],[Type]]&AAMC_Raw_Data_for_FY22[[#This Row],[School Subset]]&AAMC_Raw_Data_for_FY22[[#This Row],[Rank]]&AAMC_Raw_Data_for_FY22[[#This Row],[Degree]]&AAMC_Raw_Data_for_FY22[[#This Row],[Department / Specialty]]&\"L\"","v":"AAMCAcademicAllAssistantMDGastroenterology-Peds.L"},"Gastroenterology-Peds.",4,"AAMC","Academic","All","Assistant","MD","2021-2022",204230,{"$f":"(((AAMC_Raw_Data_for_FY22[[#This Row],[Median]]-AAMC_Raw_Data_for_FY22[[#This Row],[25th]])/25)*5) + AAMC_Raw_Data_for_FY22[[#This Row],[25th]]","v":207384},{"$f":"(((AAMC_Raw_Data_for_FY22[[#This Row],[Median]]-AAMC_Raw_Data_for_FY22[[#This Row],[25th]])/25)*10) + AAMC_Raw_Data_for_FY22[[#This Row],[25th]]","v":210538},{"$f":"(((AAMC_Raw_Data_for_FY22[[#This Row],[Median]]-AAMC_Raw_Data_for_FY22[[#This Row],[25th]])/25)*15) + AAMC_Raw_Data_for_FY22[[#This Row],[25th]]","v":213692},{"$f":"(((AAMC_Raw_Data_for_FY22[[#This Row],[Median]]-AAMC_Raw_Data_for_FY22[[#This Row],[25th]])/25)*20) + AAMC_Raw_Data_for_FY22[[#This Row],[25th]]","v":216846},220000,{"$f":"(((AAMC_Raw_Data_for_FY22[[#This Row],[75th]]-AAMC_Raw_Data_for_FY22[[#This Row],[Median]])/25)*5) + AAMC_Raw_Data_for_FY22[[#This Row],[Median]]","v":224332.6},{"$f":"(((AAMC_Raw_Data_for_FY22[[#This Row],[75th]]-AAMC_Raw_Data_for_FY22[[#This Row],[Median]])/25)*10) + AAMC_Raw_Data_for_FY22[[#This Row],[Median]]","v":228665.2},{"$f":"(((AAMC_Raw_Data_for_FY22[[#This Row],[75th]]-AAMC_Raw_Data_for_FY22[[#This Row],[Median]])/25)*15) + AAMC_Raw_Data_for_FY22[[#This Row],[Median]]","v":232997.8},{"$f":"(((AAMC_Raw_Data_for_FY22[[#This Row],[75th]]-AAMC_Raw_Data_for_FY22[[#This Row],[Median]])/25)*20) + AAMC_Raw_Data_for_FY22[[#This Row],[Median]]","v":237330.4},241663,{"$f":"(((AAMC_Raw_Data_for_FY22[[#This Row],[75th]]-AAMC_Raw_Data_for_FY22[[#This Row],[Median]])/25)*30) + AAMC_Raw_Data_for_FY22[[#This Row],[Median]]","v":245995.6},{"$f":"(((AAMC_Raw_Data_for_FY22[[#This Row],[75th]]-AAMC_Raw_Data_for_FY22[[#This Row],[Median]])/25)*35) + AAMC_Raw_Data_for_FY22[[#This Row],[Median]]","v":250328.2},{"$f":"(((AAMC_Raw_Data_for_FY22[[#This Row],[75th]]-AAMC_Raw_Data_for_FY22[[#This Row],[Median]])/25)*40) + AAMC_Raw_Data_for_FY22[[#This Row],[Median]]","v":254660.8}]
[{"$f":"AAMC_Raw_Data_for_FY22[[#This Row],[Source]]&AAMC_Raw_Data_for_FY22[[#This Row],[Type]]&AAMC_Raw_Data_for_FY22[[#This Row],[School Subset]]&AAMC_Raw_Data_for_FY22[[#This Row],[Rank]]&AAMC_Raw_Data_for_FY22[[#This Row],[Degree]]&AAMC_Raw_Data_for_FY22[[#This Row],[Department / Specialty]]&\"L\"","v":"AAMCAcademicAllAssociateMDGastroenterology-Peds.L"},"Gastroenterology-Peds.",3,"AAMC","Academic","All","Associate","MD","2021-2022",241005,{"$f":"(((AAMC_Raw_Data_for_FY22[[#This Row],[Median]]-AAMC_Raw_Data_for_FY22[[#This Row],[25th]])/25)*5) + AAMC_Raw_Data_for_FY22[[#This Row],[25th]]","v":245224.8},{"$f":"(((AAMC_Raw_Data_for_FY22[[#This Row],[Median]]-AAMC_Raw_Data_for_FY22[[#This Row],[25th]])/25)*10) + AAMC_Raw_Data_for_FY22[[#This Row],[25th]]","v":249444.6},{"$f":"(((AAMC_Raw_Data_for_FY22[[#This Row],[Median]]-AAMC_Raw_Data_for_FY22[[#This Row],[25th]])/25)*15) + AAMC_Raw_Data_for_FY22[[#This Row],[25th]]","v":253664.4},{"$f":"(((AAMC_Raw_Data_for_FY22[[#This Row],[Median]]-AAMC_Raw_Data_for_FY22[[#This Row],[25th]])/25)*20) + AAMC_Raw_Data_for_FY22[[#This Row],[25th]]","v":257884.2},262104,{"$f":"(((AAMC_Raw_Data_for_FY22[[#This Row],[75th]]-AAMC_Raw_Data_for_FY22[[#This Row],[Median]])/25)*5) + AAMC_Raw_Data_for_FY22[[#This Row],[Median]]","v":268374.2},{"$f":"(((AAMC_Raw_Data_for_FY22[[#This Row],[75th]]-AAMC_Raw_Data_for_FY22[[#This Row],[Median]])/25)*10) + AAMC_Raw_Data_for_FY22[[#This Row],[Median]]","v":274644.40000000002},{"$f":"(((AAMC_Raw_Data_for_FY22[[#This Row],[75th]]-AAMC_Raw_Data_for_FY22[[#This Row],[Median]])/25)*15) + AAMC_Raw_Data_for_FY22[[#This Row],[Median]]","v":280914.59999999998},{"$f":"(((AAMC_Raw_Data_for_FY22[[#This Row],[75th]]-AAMC_Raw_Data_for_FY22[[#This Row],[Median]])/25)*20) + AAMC_Raw_Data_for_FY22[[#This Row],[Median]]","v":287184.8},293455,{"$f":"(((AAMC_Raw_Data_for_FY22[[#This Row],[75th]]-AAMC_Raw_Data_for_FY22[[#This Row],[Median]])/25)*30) + AAMC_Raw_Data_for_FY22[[#This Row],[Median]]","v":299725.2},{"$f":"(((AAMC_Raw_Data_for_FY22[[#This Row],[75th]]-AAMC_Raw_Data_for_FY22[[#This Row],[Median]])/25)*35) + AAMC_Raw_Data_for_FY22[[#This Row],[Median]]","v":305995.40000000002},{"$f":"(((AAMC_Raw_Data_for_FY22[[#This Row],[75th]]-AAMC_Raw_Data_for_FY22[[#This Row],[Median]])/25)*40) + AAMC_Raw_Data_for_FY22[[#This Row],[Median]]","v":312265.59999999998}]
[{"$f":"AAMC_Raw_Data_for_FY22[[#This Row],[Source]]&AAMC_Raw_Data_for_FY22[[#This Row],[Type]]&AAMC_Raw_Data_for_FY22[[#This Row],[School Subset]]&AAMC_Raw_Data_for_FY22[[#This Row],[Rank]]&AAMC_Raw_Data_for_FY22[[#This Row],[Degree]]&AAMC_Raw_Data_for_FY22[[#This Row],[Department / Specialty]]&\"L\"","v":"AAMCAcademicAllProfessorMDGastroenterology-Peds.L"},"Gastroenterology-Peds.",2,"AAMC","Academic","All","Professor","MD","2021-2022",295966,{"$f":"(((AAMC_Raw_Data_for_FY22[[#This Row],[Median]]-AAMC_Raw_Data_for_FY22[[#This Row],[25th]])/25)*5) + AAMC_Raw_Data_for_FY22[[#This Row],[25th]]","v":303460.2},{"$f":"(((AAMC_Raw_Data_for_FY22[[#This Row],[Median]]-AAMC_Raw_Data_for_FY22[[#This Row],[25th]])/25)*10) + AAMC_Raw_Data_for_FY22[[#This Row],[25th]]","v":310954.40000000002},{"$f":"(((AAMC_Raw_Data_for_FY22[[#This Row],[Median]]-AAMC_Raw_Data_for_FY22[[#This Row],[25th]])/25)*15) + AAMC_Raw_Data_for_FY22[[#This Row],[25th]]","v":318448.59999999998},{"$f":"(((AAMC_Raw_Data_for_FY22[[#This Row],[Median]]-AAMC_Raw_Data_for_FY22[[#This Row],[25th]])/25)*20) + AAMC_Raw_Data_for_FY22[[#This Row],[25th]]","v":325942.8},333437,{"$f":"(((AAMC_Raw_Data_for_FY22[[#This Row],[75th]]-AAMC_Raw_Data_for_FY22[[#This Row],[Median]])/25)*5) + AAMC_Raw_Data_for_FY22[[#This Row],[Median]]","v":340048.4},{"$f":"(((AAMC_Raw_Data_for_FY22[[#This Row],[75th]]-AAMC_Raw_Data_for_FY22[[#This Row],[Median]])/25)*10) + AAMC_Raw_Data_for_FY22[[#This Row],[Median]]","v":346659.8},{"$f":"(((AAMC_Raw_Data_for_FY22[[#This Row],[75th]]-AAMC_Raw_Data_for_FY22[[#This Row],[Median]])/25)*15) + AAMC_Raw_Data_for_FY22[[#This Row],[Median]]","v":353271.2},{"$f":"(((AAMC_Raw_Data_for_FY22[[#This Row],[75th]]-AAMC_Raw_Data_for_FY22[[#This Row],[Median]])/25)*20) + AAMC_Raw_Data_for_FY22[[#This Row],[Median]]","v":359882.6},366494,{"$f":"(((AAMC_Raw_Data_for_FY22[[#This Row],[75th]]-AAMC_Raw_Data_for_FY22[[#This Row],[Median]])/25)*30) + AAMC_Raw_Data_for_FY22[[#This Row],[Median]]","v":373105.4},{"$f":"(((AAMC_Raw_Data_for_FY22[[#This Row],[75th]]-AAMC_Raw_Data_for_FY22[[#This Row],[Median]])/25)*35) + AAMC_Raw_Data_for_FY22[[#This Row],[Median]]","v":379716.8},{"$f":"(((AAMC_Raw_Data_for_FY22[[#This Row],[75th]]-AAMC_Raw_Data_for_FY22[[#This Row],[Median]])/25)*40) + AAMC_Raw_Data_for_FY22[[#This Row],[Median]]","v":386328.2}]
[{"$f":"AAMC_Raw_Data_for_FY22[[#This Row],[Source]]&AAMC_Raw_Data_for_FY22[[#This Row],[Type]]&AAMC_Raw_Data_for_FY22[[#This Row],[School Subset]]&AAMC_Raw_Data_for_FY22[[#This Row],[Rank]]&AAMC_Raw_Data_for_FY22[[#This Row],[Degree]]&AAMC_Raw_Data_for_FY22[[#This Row],[Department / Specialty]]&\"L\"","v":"AAMCAcademicAllChiefMDGastroenterology-Peds.L"},"Gastroenterology-Peds.",6,"AAMC","Academic","All","Chief","MD","2021-2022",325305,{"$f":"(((AAMC_Raw_Data_for_FY22[[#This Row],[Median]]-AAMC_Raw_Data_for_FY22[[#This Row],[25th]])/25)*5) + AAMC_Raw_Data_for_FY22[[#This Row],[25th]]","v":332381.8},{"$f":"(((AAMC_Raw_Data_for_FY22[[#This Row],[Median]]-AAMC_Raw_Data_for_FY22[[#This Row],[25th]])/25)*10) + AAMC_Raw_Data_for_FY22[[#This Row],[25th]]","v":339458.6},{"$f":"(((AAMC_Raw_Data_for_FY22[[#This Row],[Median]]-AAMC_Raw_Data_for_FY22[[#This Row],[25th]])/25)*15) + AAMC_Raw_Data_for_FY22[[#This Row],[25th]]","v":346535.4},{"$f":"(((AAMC_Raw_Data_for_FY22[[#This Row],[Median]]-AAMC_Raw_Data_for_FY22[[#This Row],[25th]])/25)*20) + AAMC_Raw_Data_for_FY22[[#This Row],[25th]]","v":353612.2},360689,{"$f":"(((AAMC_Raw_Data_for_FY22[[#This Row],[75th]]-AAMC_Raw_Data_for_FY22[[#This Row],[Median]])/25)*5) + AAMC_Raw_Data_for_FY22[[#This Row],[Median]]","v":369910.6},{"$f":"(((AAMC_Raw_Data_for_FY22[[#This Row],[75th]]-AAMC_Raw_Data_for_FY22[[#This Row],[Median]])/25)*10) + AAMC_Raw_Data_for_FY22[[#This Row],[Median]]","v":379132.2},{"$f":"(((AAMC_Raw_Data_for_FY22[[#This Row],[75th]]-AAMC_Raw_Data_for_FY22[[#This Row],[Median]])/25)*15) + AAMC_Raw_Data_for_FY22[[#This Row],[Median]]","v":388353.8},{"$f":"(((AAMC_Raw_Data_for_FY22[[#This Row],[75th]]-AAMC_Raw_Data_for_FY22[[#This Row],[Median]])/25)*20) + AAMC_Raw_Data_for_FY22[[#This Row],[Median]]","v":397575.4},406797,{"$f":"(((AAMC_Raw_Data_for_FY22[[#This Row],[75th]]-AAMC_Raw_Data_for_FY22[[#This Row],[Median]])/25)*30) + AAMC_Raw_Data_for_FY22[[#This Row],[Median]]","v":416018.6},{"$f":"(((AAMC_Raw_Data_for_FY22[[#This Row],[75th]]-AAMC_Raw_Data_for_FY22[[#This Row],[Median]])/25)*35) + AAMC_Raw_Data_for_FY22[[#This Row],[Median]]","v":425240.2},{"$f":"(((AAMC_Raw_Data_for_FY22[[#This Row],[75th]]-AAMC_Raw_Data_for_FY22[[#This Row],[Median]])/25)*40) + AAMC_Raw_Data_for_FY22[[#This Row],[Median]]","v":434461.8}]
[{"$f":"AAMC_Raw_Data_for_FY22[[#This Row],[Source]]&AAMC_Raw_Data_for_FY22[[#This Row],[Type]]&AAMC_Raw_Data_for_FY22[[#This Row],[School Subset]]&AAMC_Raw_Data_for_FY22[[#This Row],[Rank]]&AAMC_Raw_Data_for_FY22[[#This Row],[Degree]]&AAMC_Raw_Data_for_FY22[[#This Row],[Department / Specialty]]&\"L\"","v":"AAMCAcademicAllChairMDGastroenterology-Peds.L"},"Gastroenterology-Peds.",1,"AAMC","Academic","All","Chair","MD","2021-2022",null,{"$f":"(((AAMC_Raw_Data_for_FY22[[#This Row],[Median]]-AAMC_Raw_Data_for_FY22[[#This Row],[25th]])/25)*5) + AAMC_Raw_Data_for_FY22[[#This Row],[25th]]","v":0},{"$f":"(((AAMC_Raw_Data_for_FY22[[#This Row],[Median]]-AAMC_Raw_Data_for_FY22[[#This Row],[25th]])/25)*10) + AAMC_Raw_Data_for_FY22[[#This Row],[25th]]","v":0},{"$f":"(((AAMC_Raw_Data_for_FY22[[#This Row],[Median]]-AAMC_Raw_Data_for_FY22[[#This Row],[25th]])/25)*15) + AAMC_Raw_Data_for_FY22[[#This Row],[25th]]","v":0},{"$f":"(((AAMC_Raw_Data_for_FY22[[#This Row],[Median]]-AAMC_Raw_Data_for_FY22[[#This Row],[25th]])/25)*20) + AAMC_Raw_Data_for_FY22[[#This Row],[25th]]","v":0},null,{"$f":"(((AAMC_Raw_Data_for_FY22[[#This Row],[75th]]-AAMC_Raw_Data_for_FY22[[#This Row],[Median]])/25)*5) + AAMC_Raw_Data_for_FY22[[#This Row],[Median]]","v":0},{"$f":"(((AAMC_Raw_Data_for_FY22[[#This Row],[75th]]-AAMC_Raw_Data_for_FY22[[#This Row],[Median]])/25)*10) + AAMC_Raw_Data_for_FY22[[#This Row],[Median]]","v":0},{"$f":"(((AAMC_Raw_Data_for_FY22[[#This Row],[75th]]-AAMC_Raw_Data_for_FY22[[#This Row],[Median]])/25)*15) + AAMC_Raw_Data_for_FY22[[#This Row],[Median]]","v":0},{"$f":"(((AAMC_Raw_Data_for_FY22[[#This Row],[75th]]-AAMC_Raw_Data_for_FY22[[#This Row],[Median]])/25)*20) + AAMC_Raw_Data_for_FY22[[#This Row],[Median]]","v":0},null,{"$f":"(((AAMC_Raw_Data_for_FY22[[#This Row],[75th]]-AAMC_Raw_Data_for_FY22[[#This Row],[Median]])/25)*30) + AAMC_Raw_Data_for_FY22[[#This Row],[Median]]","v":0},{"$f":"(((AAMC_Raw_Data_for_FY22[[#This Row],[75th]]-AAMC_Raw_Data_for_FY22[[#This Row],[Median]])/25)*35) + AAMC_Raw_Data_for_FY22[[#This Row],[Median]]","v":0},{"$f":"(((AAMC_Raw_Data_for_FY22[[#This Row],[75th]]-AAMC_Raw_Data_for_FY22[[#This Row],[Median]])/25)*40) + AAMC_Raw_Data_for_FY22[[#This Row],[Median]]","v":0}]
[{"$f":"AAMC_Raw_Data_for_FY22[[#This Row],[Source]]&AAMC_Raw_Data_for_FY22[[#This Row],[Type]]&AAMC_Raw_Data_for_FY22[[#This Row],[School Subset]]&AAMC_Raw_Data_for_FY22[[#This Row],[Rank]]&AAMC_Raw_Data_for_FY22[[#This Row],[Degree]]&AAMC_Raw_Data_for_FY22[[#This Row],[Department / Specialty]]&\"L\"","v":"AAMCAcademicAllInstructorMDGeneral PediatricsL"},"General Pediatrics",5,"AAMC","Academic","All","Instructor","MD","2021-2022",134241,{"$f":"(((AAMC_Raw_Data_for_FY22[[#This Row],[Median]]-AAMC_Raw_Data_for_FY22[[#This Row],[25th]])/25)*5) + AAMC_Raw_Data_for_FY22[[#This Row],[25th]]","v":142286},{"$f":"(((AAMC_Raw_Data_for_FY22[[#This Row],[Median]]-AAMC_Raw_Data_for_FY22[[#This Row],[25th]])/25)*10) + AAMC_Raw_Data_for_FY22[[#This Row],[25th]]","v":150331},{"$f":"(((AAMC_Raw_Data_for_FY22[[#This Row],[Median]]-AAMC_Raw_Data_for_FY22[[#This Row],[25th]])/25)*15) + AAMC_Raw_Data_for_FY22[[#This Row],[25th]]","v":158376},{"$f":"(((AAMC_Raw_Data_for_FY22[[#This Row],[Median]]-AAMC_Raw_Data_for_FY22[[#This Row],[25th]])/25)*20) + AAMC_Raw_Data_for_FY22[[#This Row],[25th]]","v":166421},174466,{"$f":"(((AAMC_Raw_Data_for_FY22[[#This Row],[75th]]-AAMC_Raw_Data_for_FY22[[#This Row],[Median]])/25)*5) + AAMC_Raw_Data_for_FY22[[#This Row],[Median]]","v":182680.4},{"$f":"(((AAMC_Raw_Data_for_FY22[[#This Row],[75th]]-AAMC_Raw_Data_for_FY22[[#This Row],[Median]])/25)*10) + AAMC_Raw_Data_for_FY22[[#This Row],[Median]]","v":190894.8},{"$f":"(((AAMC_Raw_Data_for_FY22[[#This Row],[75th]]-AAMC_Raw_Data_for_FY22[[#This Row],[Median]])/25)*15) + AAMC_Raw_Data_for_FY22[[#This Row],[Median]]","v":199109.2},{"$f":"(((AAMC_Raw_Data_for_FY22[[#This Row],[75th]]-AAMC_Raw_Data_for_FY22[[#This Row],[Median]])/25)*20) + AAMC_Raw_Data_for_FY22[[#This Row],[Median]]","v":207323.6},215538,{"$f":"(((AAMC_Raw_Data_for_FY22[[#This Row],[75th]]-AAMC_Raw_Data_for_FY22[[#This Row],[Median]])/25)*30) + AAMC_Raw_Data_for_FY22[[#This Row],[Median]]","v":223752.4},{"$f":"(((AAMC_Raw_Data_for_FY22[[#This Row],[75th]]-AAMC_Raw_Data_for_FY22[[#This Row],[Median]])/25)*35) + AAMC_Raw_Data_for_FY22[[#This Row],[Median]]","v":231966.8},{"$f":"(((AAMC_Raw_Data_for_FY22[[#This Row],[75th]]-AAMC_Raw_Data_for_FY22[[#This Row],[Median]])/25)*40) + AAMC_Raw_Data_for_FY22[[#This Row],[Median]]","v":240181.2}]
[{"$f":"AAMC_Raw_Data_for_FY22[[#This Row],[Source]]&AAMC_Raw_Data_for_FY22[[#This Row],[Type]]&AAMC_Raw_Data_for_FY22[[#This Row],[School Subset]]&AAMC_Raw_Data_for_FY22[[#This Row],[Rank]]&AAMC_Raw_Data_for_FY22[[#This Row],[Degree]]&AAMC_Raw_Data_for_FY22[[#This Row],[Department / Specialty]]&\"L\"","v":"AAMCAcademicAllAssistantMDGeneral PediatricsL"},"General Pediatrics",4,"AAMC","Academic","All","Assistant","MD","2021-2022",166012,{"$f":"(((AAMC_Raw_Data_for_FY22[[#This Row],[Median]]-AAMC_Raw_Data_for_FY22[[#This Row],[25th]])/25)*5) + AAMC_Raw_Data_for_FY22[[#This Row],[25th]]","v":169934.8},{"$f":"(((AAMC_Raw_Data_for_FY22[[#This Row],[Median]]-AAMC_Raw_Data_for_FY22[[#This Row],[25th]])/25)*10) + AAMC_Raw_Data_for_FY22[[#This Row],[25th]]","v":173857.6},{"$f":"(((AAMC_Raw_Data_for_FY22[[#This Row],[Median]]-AAMC_Raw_Data_for_FY22[[#This Row],[25th]])/25)*15) + AAMC_Raw_Data_for_FY22[[#This Row],[25th]]","v":177780.4},{"$f":"(((AAMC_Raw_Data_for_FY22[[#This Row],[Median]]-AAMC_Raw_Data_for_FY22[[#This Row],[25th]])/25)*20) + AAMC_Raw_Data_for_FY22[[#This Row],[25th]]","v":181703.2},185626,{"$f":"(((AAMC_Raw_Data_for_FY22[[#This Row],[75th]]-AAMC_Raw_Data_for_FY22[[#This Row],[Median]])/25)*5) + AAMC_Raw_Data_for_FY22[[#This Row],[Median]]","v":191873.8},{"$f":"(((AAMC_Raw_Data_for_FY22[[#This Row],[75th]]-AAMC_Raw_Data_for_FY22[[#This Row],[Median]])/25)*10) + AAMC_Raw_Data_for_FY22[[#This Row],[Median]]","v":198121.60000000001},{"$f":"(((AAMC_Raw_Data_for_FY22[[#This Row],[75th]]-AAMC_Raw_Data_for_FY22[[#This Row],[Median]])/25)*15) + AAMC_Raw_Data_for_FY22[[#This Row],[Median]]","v":204369.4},{"$f":"(((AAMC_Raw_Data_for_FY22[[#This Row],[75th]]-AAMC_Raw_Data_for_FY22[[#This Row],[Median]])/25)*20) + AAMC_Raw_Data_for_FY22[[#This Row],[Median]]","v":210617.2},216865,{"$f":"(((AAMC_Raw_Data_for_FY22[[#This Row],[75th]]-AAMC_Raw_Data_for_FY22[[#This Row],[Median]])/25)*30) + AAMC_Raw_Data_for_FY22[[#This Row],[Median]]","v":223112.8},{"$f":"(((AAMC_Raw_Data_for_FY22[[#This Row],[75th]]-AAMC_Raw_Data_for_FY22[[#This Row],[Median]])/25)*35) + AAMC_Raw_Data_for_FY22[[#This Row],[Median]]","v":229360.6},{"$f":"(((AAMC_Raw_Data_for_FY22[[#This Row],[75th]]-AAMC_Raw_Data_for_FY22[[#This Row],[Median]])/25)*40) + AAMC_Raw_Data_for_FY22[[#This Row],[Median]]","v":235608.4}]
[{"$f":"AAMC_Raw_Data_for_FY22[[#This Row],[Source]]&AAMC_Raw_Data_for_FY22[[#This Row],[Type]]&AAMC_Raw_Data_for_FY22[[#This Row],[School Subset]]&AAMC_Raw_Data_for_FY22[[#This Row],[Rank]]&AAMC_Raw_Data_for_FY22[[#This Row],[Degree]]&AAMC_Raw_Data_for_FY22[[#This Row],[Department / Specialty]]&\"L\"","v":"AAMCAcademicAllAssociateMDGeneral PediatricsL"},"General Pediatrics",3,"AAMC","Academic","All","Associate","MD","2021-2022",188282,{"$f":"(((AAMC_Raw_Data_for_FY22[[#This Row],[Median]]-AAMC_Raw_Data_for_FY22[[#This Row],[25th]])/25)*5) + AAMC_Raw_Data_for_FY22[[#This Row],[25th]]","v":192355},{"$f":"(((AAMC_Raw_Data_for_FY22[[#This Row],[Median]]-AAMC_Raw_Data_for_FY22[[#This Row],[25th]])/25)*10) + AAMC_Raw_Data_for_FY22[[#This Row],[25th]]","v":196428},{"$f":"(((AAMC_Raw_Data_for_FY22[[#This Row],[Median]]-AAMC_Raw_Data_for_FY22[[#This Row],[25th]])/25)*15) + AAMC_Raw_Data_for_FY22[[#This Row],[25th]]","v":200501},{"$f":"(((AAMC_Raw_Data_for_FY22[[#This Row],[Median]]-AAMC_Raw_Data_for_FY22[[#This Row],[25th]])/25)*20) + AAMC_Raw_Data_for_FY22[[#This Row],[25th]]","v":204574},208647,{"$f":"(((AAMC_Raw_Data_for_FY22[[#This Row],[75th]]-AAMC_Raw_Data_for_FY22[[#This Row],[Median]])/25)*5) + AAMC_Raw_Data_for_FY22[[#This Row],[Median]]","v":214579.4},{"$f":"(((AAMC_Raw_Data_for_FY22[[#This Row],[75th]]-AAMC_Raw_Data_for_FY22[[#This Row],[Median]])/25)*10) + AAMC_Raw_Data_for_FY22[[#This Row],[Median]]","v":220511.8},{"$f":"(((AAMC_Raw_Data_for_FY22[[#This Row],[75th]]-AAMC_Raw_Data_for_FY22[[#This Row],[Median]])/25)*15) + AAMC_Raw_Data_for_FY22[[#This Row],[Median]]","v":226444.2},{"$f":"(((AAMC_Raw_Data_for_FY22[[#This Row],[75th]]-AAMC_Raw_Data_for_FY22[[#This Row],[Median]])/25)*20) + AAMC_Raw_Data_for_FY22[[#This Row],[Median]]","v":232376.6},238309,{"$f":"(((AAMC_Raw_Data_for_FY22[[#This Row],[75th]]-AAMC_Raw_Data_for_FY22[[#This Row],[Median]])/25)*30) + AAMC_Raw_Data_for_FY22[[#This Row],[Median]]","v":244241.4},{"$f":"(((AAMC_Raw_Data_for_FY22[[#This Row],[75th]]-AAMC_Raw_Data_for_FY22[[#This Row],[Median]])/25)*35) + AAMC_Raw_Data_for_FY22[[#This Row],[Median]]","v":250173.8},{"$f":"(((AAMC_Raw_Data_for_FY22[[#This Row],[75th]]-AAMC_Raw_Data_for_FY22[[#This Row],[Median]])/25)*40) + AAMC_Raw_Data_for_FY22[[#This Row],[Median]]","v":256106.2}]
[{"$f":"AAMC_Raw_Data_for_FY22[[#This Row],[Source]]&AAMC_Raw_Data_for_FY22[[#This Row],[Type]]&AAMC_Raw_Data_for_FY22[[#This Row],[School Subset]]&AAMC_Raw_Data_for_FY22[[#This Row],[Rank]]&AAMC_Raw_Data_for_FY22[[#This Row],[Degree]]&AAMC_Raw_Data_for_FY22[[#This Row],[Department / Specialty]]&\"L\"","v":"AAMCAcademicAllProfessorMDGeneral PediatricsL"},"General Pediatrics",2,"AAMC","Academic","All","Professor","MD","2021-2022",227305,{"$f":"(((AAMC_Raw_Data_for_FY22[[#This Row],[Median]]-AAMC_Raw_Data_for_FY22[[#This Row],[25th]])/25)*5) + AAMC_Raw_Data_for_FY22[[#This Row],[25th]]","v":233726},{"$f":"(((AAMC_Raw_Data_for_FY22[[#This Row],[Median]]-AAMC_Raw_Data_for_FY22[[#This Row],[25th]])/25)*10) + AAMC_Raw_Data_for_FY22[[#This Row],[25th]]","v":240147},{"$f":"(((AAMC_Raw_Data_for_FY22[[#This Row],[Median]]-AAMC_Raw_Data_for_FY22[[#This Row],[25th]])/25)*15) + AAMC_Raw_Data_for_FY22[[#This Row],[25th]]","v":246568},{"$f":"(((AAMC_Raw_Data_for_FY22[[#This Row],[Median]]-AAMC_Raw_Data_for_FY22[[#This Row],[25th]])/25)*20) + AAMC_Raw_Data_for_FY22[[#This Row],[25th]]","v":252989},259410,{"$f":"(((AAMC_Raw_Data_for_FY22[[#This Row],[75th]]-AAMC_Raw_Data_for_FY22[[#This Row],[Median]])/25)*5) + AAMC_Raw_Data_for_FY22[[#This Row],[Median]]","v":267268.59999999998},{"$f":"(((AAMC_Raw_Data_for_FY22[[#This Row],[75th]]-AAMC_Raw_Data_for_FY22[[#This Row],[Median]])/25)*10) + AAMC_Raw_Data_for_FY22[[#This Row],[Median]]","v":275127.2},{"$f":"(((AAMC_Raw_Data_for_FY22[[#This Row],[75th]]-AAMC_Raw_Data_for_FY22[[#This Row],[Median]])/25)*15) + AAMC_Raw_Data_for_FY22[[#This Row],[Median]]","v":282985.8},{"$f":"(((AAMC_Raw_Data_for_FY22[[#This Row],[75th]]-AAMC_Raw_Data_for_FY22[[#This Row],[Median]])/25)*20) + AAMC_Raw_Data_for_FY22[[#This Row],[Median]]","v":290844.40000000002},298703,{"$f":"(((AAMC_Raw_Data_for_FY22[[#This Row],[75th]]-AAMC_Raw_Data_for_FY22[[#This Row],[Median]])/25)*30) + AAMC_Raw_Data_for_FY22[[#This Row],[Median]]","v":306561.59999999998},{"$f":"(((AAMC_Raw_Data_for_FY22[[#This Row],[75th]]-AAMC_Raw_Data_for_FY22[[#This Row],[Median]])/25)*35) + AAMC_Raw_Data_for_FY22[[#This Row],[Median]]","v":314420.2},{"$f":"(((AAMC_Raw_Data_for_FY22[[#This Row],[75th]]-AAMC_Raw_Data_for_FY22[[#This Row],[Median]])/25)*40) + AAMC_Raw_Data_for_FY22[[#This Row],[Median]]","v":322278.8}]
[{"$f":"AAMC_Raw_Data_for_FY22[[#This Row],[Source]]&AAMC_Raw_Data_for_FY22[[#This Row],[Type]]&AAMC_Raw_Data_for_FY22[[#This Row],[School Subset]]&AAMC_Raw_Data_for_FY22[[#This Row],[Rank]]&AAMC_Raw_Data_for_FY22[[#This Row],[Degree]]&AAMC_Raw_Data_for_FY22[[#This Row],[Department / Specialty]]&\"L\"","v":"AAMCAcademicAllChiefMDGeneral PediatricsL"},"General Pediatrics",6,"AAMC","Academic","All","Chief","MD","2021-2022",228594,{"$f":"(((AAMC_Raw_Data_for_FY22[[#This Row],[Median]]-AAMC_Raw_Data_for_FY22[[#This Row],[25th]])/25)*5) + AAMC_Raw_Data_for_FY22[[#This Row],[25th]]","v":235420},{"$f":"(((AAMC_Raw_Data_for_FY22[[#This Row],[Median]]-AAMC_Raw_Data_for_FY22[[#This Row],[25th]])/25)*10) + AAMC_Raw_Data_for_FY22[[#This Row],[25th]]","v":242246},{"$f":"(((AAMC_Raw_Data_for_FY22[[#This Row],[Median]]-AAMC_Raw_Data_for_FY22[[#This Row],[25th]])/25)*15) + AAMC_Raw_Data_for_FY22[[#This Row],[25th]]","v":249072},{"$f":"(((AAMC_Raw_Data_for_FY22[[#This Row],[Median]]-AAMC_Raw_Data_for_FY22[[#This Row],[25th]])/25)*20) + AAMC_Raw_Data_for_FY22[[#This Row],[25th]]","v":255898},262724,{"$f":"(((AAMC_Raw_Data_for_FY22[[#This Row],[75th]]-AAMC_Raw_Data_for_FY22[[#This Row],[Median]])/25)*5) + AAMC_Raw_Data_for_FY22[[#This Row],[Median]]","v":274121.2},{"$f":"(((AAMC_Raw_Data_for_FY22[[#This Row],[75th]]-AAMC_Raw_Data_for_FY22[[#This Row],[Median]])/25)*10) + AAMC_Raw_Data_for_FY22[[#This Row],[Median]]","v":285518.40000000002},{"$f":"(((AAMC_Raw_Data_for_FY22[[#This Row],[75th]]-AAMC_Raw_Data_for_FY22[[#This Row],[Median]])/25)*15) + AAMC_Raw_Data_for_FY22[[#This Row],[Median]]","v":296915.59999999998},{"$f":"(((AAMC_Raw_Data_for_FY22[[#This Row],[75th]]-AAMC_Raw_Data_for_FY22[[#This Row],[Median]])/25)*20) + AAMC_Raw_Data_for_FY22[[#This Row],[Median]]","v":308312.8},319710,{"$f":"(((AAMC_Raw_Data_for_FY22[[#This Row],[75th]]-AAMC_Raw_Data_for_FY22[[#This Row],[Median]])/25)*30) + AAMC_Raw_Data_for_FY22[[#This Row],[Median]]","v":331107.20000000001},{"$f":"(((AAMC_Raw_Data_for_FY22[[#This Row],[75th]]-AAMC_Raw_Data_for_FY22[[#This Row],[Median]])/25)*35) + AAMC_Raw_Data_for_FY22[[#This Row],[Median]]","v":342504.4},{"$f":"(((AAMC_Raw_Data_for_FY22[[#This Row],[75th]]-AAMC_Raw_Data_for_FY22[[#This Row],[Median]])/25)*40) + AAMC_Raw_Data_for_FY22[[#This Row],[Median]]","v":353901.6}]
[{"$f":"AAMC_Raw_Data_for_FY22[[#This Row],[Source]]&AAMC_Raw_Data_for_FY22[[#This Row],[Type]]&AAMC_Raw_Data_for_FY22[[#This Row],[School Subset]]&AAMC_Raw_Data_for_FY22[[#This Row],[Rank]]&AAMC_Raw_Data_for_FY22[[#This Row],[Degree]]&AAMC_Raw_Data_for_FY22[[#This Row],[Department / Specialty]]&\"L\"","v":"AAMCAcademicAllChairMDGeneral PediatricsL"},"General Pediatrics",1,"AAMC","Academic","All","Chair","MD","2021-2022",448650,{"$f":"(((AAMC_Raw_Data_for_FY22[[#This Row],[Median]]-AAMC_Raw_Data_for_FY22[[#This Row],[25th]])/25)*5) + AAMC_Raw_Data_for_FY22[[#This Row],[25th]]","v":464308.4},{"$f":"(((AAMC_Raw_Data_for_FY22[[#This Row],[Median]]-AAMC_Raw_Data_for_FY22[[#This Row],[25th]])/25)*10) + AAMC_Raw_Data_for_FY22[[#This Row],[25th]]","v":479966.8},{"$f":"(((AAMC_Raw_Data_for_FY22[[#This Row],[Median]]-AAMC_Raw_Data_for_FY22[[#This Row],[25th]])/25)*15) + AAMC_Raw_Data_for_FY22[[#This Row],[25th]]","v":495625.2},{"$f":"(((AAMC_Raw_Data_for_FY22[[#This Row],[Median]]-AAMC_Raw_Data_for_FY22[[#This Row],[25th]])/25)*20) + AAMC_Raw_Data_for_FY22[[#This Row],[25th]]","v":511283.6},526942,{"$f":"(((AAMC_Raw_Data_for_FY22[[#This Row],[75th]]-AAMC_Raw_Data_for_FY22[[#This Row],[Median]])/25)*5) + AAMC_Raw_Data_for_FY22[[#This Row],[Median]]","v":542350.19999999995},{"$f":"(((AAMC_Raw_Data_for_FY22[[#This Row],[75th]]-AAMC_Raw_Data_for_FY22[[#This Row],[Median]])/25)*10) + AAMC_Raw_Data_for_FY22[[#This Row],[Median]]","v":557758.4},{"$f":"(((AAMC_Raw_Data_for_FY22[[#This Row],[75th]]-AAMC_Raw_Data_for_FY22[[#This Row],[Median]])/25)*15) + AAMC_Raw_Data_for_FY22[[#This Row],[Median]]","v":573166.6},{"$f":"(((AAMC_Raw_Data_for_FY22[[#This Row],[75th]]-AAMC_Raw_Data_for_FY22[[#This Row],[Median]])/25)*20) + AAMC_Raw_Data_for_FY22[[#This Row],[Median]]","v":588574.80000000005},603983,{"$f":"(((AAMC_Raw_Data_for_FY22[[#This Row],[75th]]-AAMC_Raw_Data_for_FY22[[#This Row],[Median]])/25)*30) + AAMC_Raw_Data_for_FY22[[#This Row],[Median]]","v":619391.19999999995},{"$f":"(((AAMC_Raw_Data_for_FY22[[#This Row],[75th]]-AAMC_Raw_Data_for_FY22[[#This Row],[Median]])/25)*35) + AAMC_Raw_Data_for_FY22[[#This Row],[Median]]","v":634799.4},{"$f":"(((AAMC_Raw_Data_for_FY22[[#This Row],[75th]]-AAMC_Raw_Data_for_FY22[[#This Row],[Median]])/25)*40) + AAMC_Raw_Data_for_FY22[[#This Row],[Median]]","v":650207.6}]
[{"$f":"AAMC_Raw_Data_for_FY22[[#This Row],[Source]]&AAMC_Raw_Data_for_FY22[[#This Row],[Type]]&AAMC_Raw_Data_for_FY22[[#This Row],[School Subset]]&AAMC_Raw_Data_for_FY22[[#This Row],[Rank]]&AAMC_Raw_Data_for_FY22[[#This Row],[Degree]]&AAMC_Raw_Data_for_FY22[[#This Row],[Department / Specialty]]&\"L\"","v":"AAMCAcademicAllInstructorMDGenetics-Peds.L"},"Genetics-Peds.",5,"AAMC","Academic","All","Instructor","MD","2021-2022",null,{"$f":"(((AAMC_Raw_Data_for_FY22[[#This Row],[Median]]-AAMC_Raw_Data_for_FY22[[#This Row],[25th]])/25)*5) + AAMC_Raw_Data_for_FY22[[#This Row],[25th]]","v":0},{"$f":"(((AAMC_Raw_Data_for_FY22[[#This Row],[Median]]-AAMC_Raw_Data_for_FY22[[#This Row],[25th]])/25)*10) + AAMC_Raw_Data_for_FY22[[#This Row],[25th]]","v":0},{"$f":"(((AAMC_Raw_Data_for_FY22[[#This Row],[Median]]-AAMC_Raw_Data_for_FY22[[#This Row],[25th]])/25)*15) + AAMC_Raw_Data_for_FY22[[#This Row],[25th]]","v":0},{"$f":"(((AAMC_Raw_Data_for_FY22[[#This Row],[Median]]-AAMC_Raw_Data_for_FY22[[#This Row],[25th]])/25)*20) + AAMC_Raw_Data_for_FY22[[#This Row],[25th]]","v":0},null,{"$f":"(((AAMC_Raw_Data_for_FY22[[#This Row],[75th]]-AAMC_Raw_Data_for_FY22[[#This Row],[Median]])/25)*5) + AAMC_Raw_Data_for_FY22[[#This Row],[Median]]","v":0},{"$f":"(((AAMC_Raw_Data_for_FY22[[#This Row],[75th]]-AAMC_Raw_Data_for_FY22[[#This Row],[Median]])/25)*10) + AAMC_Raw_Data_for_FY22[[#This Row],[Median]]","v":0},{"$f":"(((AAMC_Raw_Data_for_FY22[[#This Row],[75th]]-AAMC_Raw_Data_for_FY22[[#This Row],[Median]])/25)*15) + AAMC_Raw_Data_for_FY22[[#This Row],[Median]]","v":0},{"$f":"(((AAMC_Raw_Data_for_FY22[[#This Row],[75th]]-AAMC_Raw_Data_for_FY22[[#This Row],[Median]])/25)*20) + AAMC_Raw_Data_for_FY22[[#This Row],[Median]]","v":0},null,{"$f":"(((AAMC_Raw_Data_for_FY22[[#This Row],[75th]]-AAMC_Raw_Data_for_FY22[[#This Row],[Median]])/25)*30) + AAMC_Raw_Data_for_FY22[[#This Row],[Median]]","v":0},{"$f":"(((AAMC_Raw_Data_for_FY22[[#This Row],[75th]]-AAMC_Raw_Data_for_FY22[[#This Row],[Median]])/25)*35) + AAMC_Raw_Data_for_FY22[[#This Row],[Median]]","v":0},{"$f":"(((AAMC_Raw_Data_for_FY22[[#This Row],[75th]]-AAMC_Raw_Data_for_FY22[[#This Row],[Median]])/25)*40) + AAMC_Raw_Data_for_FY22[[#This Row],[Median]]","v":0}]
[{"$f":"AAMC_Raw_Data_for_FY22[[#This Row],[Source]]&AAMC_Raw_Data_for_FY22[[#This Row],[Type]]&AAMC_Raw_Data_for_FY22[[#This Row],[School Subset]]&AAMC_Raw_Data_for_FY22[[#This Row],[Rank]]&AAMC_Raw_Data_for_FY22[[#This Row],[Degree]]&AAMC_Raw_Data_for_FY22[[#This Row],[Department / Specialty]]&\"L\"","v":"AAMCAcademicAllAssistantMDGenetics-Peds.L"},"Genetics-Peds.",4,"AAMC","Academic","All","Assistant","MD","2021-2022",169910,{"$f":"(((AAMC_Raw_Data_for_FY22[[#This Row],[Median]]-AAMC_Raw_Data_for_FY22[[#This Row],[25th]])/25)*5) + AAMC_Raw_Data_for_FY22[[#This Row],[25th]]","v":172176.4},{"$f":"(((AAMC_Raw_Data_for_FY22[[#This Row],[Median]]-AAMC_Raw_Data_for_FY22[[#This Row],[25th]])/25)*10) + AAMC_Raw_Data_for_FY22[[#This Row],[25th]]","v":174442.8},{"$f":"(((AAMC_Raw_Data_for_FY22[[#This Row],[Median]]-AAMC_Raw_Data_for_FY22[[#This Row],[25th]])/25)*15) + AAMC_Raw_Data_for_FY22[[#This Row],[25th]]","v":176709.2},{"$f":"(((AAMC_Raw_Data_for_FY22[[#This Row],[Median]]-AAMC_Raw_Data_for_FY22[[#This Row],[25th]])/25)*20) + AAMC_Raw_Data_for_FY22[[#This Row],[25th]]","v":178975.6},181242,{"$f":"(((AAMC_Raw_Data_for_FY22[[#This Row],[75th]]-AAMC_Raw_Data_for_FY22[[#This Row],[Median]])/25)*5) + AAMC_Raw_Data_for_FY22[[#This Row],[Median]]","v":183435.2},{"$f":"(((AAMC_Raw_Data_for_FY22[[#This Row],[75th]]-AAMC_Raw_Data_for_FY22[[#This Row],[Median]])/25)*10) + AAMC_Raw_Data_for_FY22[[#This Row],[Median]]","v":185628.4},{"$f":"(((AAMC_Raw_Data_for_FY22[[#This Row],[75th]]-AAMC_Raw_Data_for_FY22[[#This Row],[Median]])/25)*15) + AAMC_Raw_Data_for_FY22[[#This Row],[Median]]","v":187821.6},{"$f":"(((AAMC_Raw_Data_for_FY22[[#This Row],[75th]]-AAMC_Raw_Data_for_FY22[[#This Row],[Median]])/25)*20) + AAMC_Raw_Data_for_FY22[[#This Row],[Median]]","v":190014.8},192208,{"$f":"(((AAMC_Raw_Data_for_FY22[[#This Row],[75th]]-AAMC_Raw_Data_for_FY22[[#This Row],[Median]])/25)*30) + AAMC_Raw_Data_for_FY22[[#This Row],[Median]]","v":194401.2},{"$f":"(((AAMC_Raw_Data_for_FY22[[#This Row],[75th]]-AAMC_Raw_Data_for_FY22[[#This Row],[Median]])/25)*35) + AAMC_Raw_Data_for_FY22[[#This Row],[Median]]","v":196594.4},{"$f":"(((AAMC_Raw_Data_for_FY22[[#This Row],[75th]]-AAMC_Raw_Data_for_FY22[[#This Row],[Median]])/25)*40) + AAMC_Raw_Data_for_FY22[[#This Row],[Median]]","v":198787.6}]
[{"$f":"AAMC_Raw_Data_for_FY22[[#This Row],[Source]]&AAMC_Raw_Data_for_FY22[[#This Row],[Type]]&AAMC_Raw_Data_for_FY22[[#This Row],[School Subset]]&AAMC_Raw_Data_for_FY22[[#This Row],[Rank]]&AAMC_Raw_Data_for_FY22[[#This Row],[Degree]]&AAMC_Raw_Data_for_FY22[[#This Row],[Department / Specialty]]&\"L\"","v":"AAMCAcademicAllAssociateMDGenetics-Peds.L"},"Genetics-Peds.",3,"AAMC","Academic","All","Associate","MD","2021-2022",189200,{"$f":"(((AAMC_Raw_Data_for_FY22[[#This Row],[Median]]-AAMC_Raw_Data_for_FY22[[#This Row],[25th]])/25)*5) + AAMC_Raw_Data_for_FY22[[#This Row],[25th]]","v":192298.8},{"$f":"(((AAMC_Raw_Data_for_FY22[[#This Row],[Median]]-AAMC_Raw_Data_for_FY22[[#This Row],[25th]])/25)*10) + AAMC_Raw_Data_for_FY22[[#This Row],[25th]]","v":195397.6},{"$f":"(((AAMC_Raw_Data_for_FY22[[#This Row],[Median]]-AAMC_Raw_Data_for_FY22[[#This Row],[25th]])/25)*15) + AAMC_Raw_Data_for_FY22[[#This Row],[25th]]","v":198496.4},{"$f":"(((AAMC_Raw_Data_for_FY22[[#This Row],[Median]]-AAMC_Raw_Data_for_FY22[[#This Row],[25th]])/25)*20) + AAMC_Raw_Data_for_FY22[[#This Row],[25th]]","v":201595.2},204694,{"$f":"(((AAMC_Raw_Data_for_FY22[[#This Row],[75th]]-AAMC_Raw_Data_for_FY22[[#This Row],[Median]])/25)*5) + AAMC_Raw_Data_for_FY22[[#This Row],[Median]]","v":208372.6},{"$f":"(((AAMC_Raw_Data_for_FY22[[#This Row],[75th]]-AAMC_Raw_Data_for_FY22[[#This Row],[Median]])/25)*10) + AAMC_Raw_Data_for_FY22[[#This Row],[Median]]","v":212051.20000000001},{"$f":"(((AAMC_Raw_Data_for_FY22[[#This Row],[75th]]-AAMC_Raw_Data_for_FY22[[#This Row],[Median]])/25)*15) + AAMC_Raw_Data_for_FY22[[#This Row],[Median]]","v":215729.8},{"$f":"(((AAMC_Raw_Data_for_FY22[[#This Row],[75th]]-AAMC_Raw_Data_for_FY22[[#This Row],[Median]])/25)*20) + AAMC_Raw_Data_for_FY22[[#This Row],[Median]]","v":219408.4},223087,{"$f":"(((AAMC_Raw_Data_for_FY22[[#This Row],[75th]]-AAMC_Raw_Data_for_FY22[[#This Row],[Median]])/25)*30) + AAMC_Raw_Data_for_FY22[[#This Row],[Median]]","v":226765.6},{"$f":"(((AAMC_Raw_Data_for_FY22[[#This Row],[75th]]-AAMC_Raw_Data_for_FY22[[#This Row],[Median]])/25)*35) + AAMC_Raw_Data_for_FY22[[#This Row],[Median]]","v":230444.2},{"$f":"(((AAMC_Raw_Data_for_FY22[[#This Row],[75th]]-AAMC_Raw_Data_for_FY22[[#This Row],[Median]])/25)*40) + AAMC_Raw_Data_for_FY22[[#This Row],[Median]]","v":234122.8}]
[{"$f":"AAMC_Raw_Data_for_FY22[[#This Row],[Source]]&AAMC_Raw_Data_for_FY22[[#This Row],[Type]]&AAMC_Raw_Data_for_FY22[[#This Row],[School Subset]]&AAMC_Raw_Data_for_FY22[[#This Row],[Rank]]&AAMC_Raw_Data_for_FY22[[#This Row],[Degree]]&AAMC_Raw_Data_for_FY22[[#This Row],[Department / Specialty]]&\"L\"","v":"AAMCAcademicAllProfessorMDGenetics-Peds.L"},"Genetics-Peds.",2,"AAMC","Academic","All","Professor","MD","2021-2022",216196,{"$f":"(((AAMC_Raw_Data_for_FY22[[#This Row],[Median]]-AAMC_Raw_Data_for_FY22[[#This Row],[25th]])/25)*5) + AAMC_Raw_Data_for_FY22[[#This Row],[25th]]","v":223262.2},{"$f":"(((AAMC_Raw_Data_for_FY22[[#This Row],[Median]]-AAMC_Raw_Data_for_FY22[[#This Row],[25th]])/25)*10) + AAMC_Raw_Data_for_FY22[[#This Row],[25th]]","v":230328.4},{"$f":"(((AAMC_Raw_Data_for_FY22[[#This Row],[Median]]-AAMC_Raw_Data_for_FY22[[#This Row],[25th]])/25)*15) + AAMC_Raw_Data_for_FY22[[#This Row],[25th]]","v":237394.6},{"$f":"(((AAMC_Raw_Data_for_FY22[[#This Row],[Median]]-AAMC_Raw_Data_for_FY22[[#This Row],[25th]])/25)*20) + AAMC_Raw_Data_for_FY22[[#This Row],[25th]]","v":244460.79999999999},251527,{"$f":"(((AAMC_Raw_Data_for_FY22[[#This Row],[75th]]-AAMC_Raw_Data_for_FY22[[#This Row],[Median]])/25)*5) + AAMC_Raw_Data_for_FY22[[#This Row],[Median]]","v":257858.4},{"$f":"(((AAMC_Raw_Data_for_FY22[[#This Row],[75th]]-AAMC_Raw_Data_for_FY22[[#This Row],[Median]])/25)*10) + AAMC_Raw_Data_for_FY22[[#This Row],[Median]]","v":264189.8},{"$f":"(((AAMC_Raw_Data_for_FY22[[#This Row],[75th]]-AAMC_Raw_Data_for_FY22[[#This Row],[Median]])/25)*15) + AAMC_Raw_Data_for_FY22[[#This Row],[Median]]","v":270521.2},{"$f":"(((AAMC_Raw_Data_for_FY22[[#This Row],[75th]]-AAMC_Raw_Data_for_FY22[[#This Row],[Median]])/25)*20) + AAMC_Raw_Data_for_FY22[[#This Row],[Median]]","v":276852.59999999998},283184,{"$f":"(((AAMC_Raw_Data_for_FY22[[#This Row],[75th]]-AAMC_Raw_Data_for_FY22[[#This Row],[Median]])/25)*30) + AAMC_Raw_Data_for_FY22[[#This Row],[Median]]","v":289515.40000000002},{"$f":"(((AAMC_Raw_Data_for_FY22[[#This Row],[75th]]-AAMC_Raw_Data_for_FY22[[#This Row],[Median]])/25)*35) + AAMC_Raw_Data_for_FY22[[#This Row],[Median]]","v":295846.8},{"$f":"(((AAMC_Raw_Data_for_FY22[[#This Row],[75th]]-AAMC_Raw_Data_for_FY22[[#This Row],[Median]])/25)*40) + AAMC_Raw_Data_for_FY22[[#This Row],[Median]]","v":302178.2}]
[{"$f":"AAMC_Raw_Data_for_FY22[[#This Row],[Source]]&AAMC_Raw_Data_for_FY22[[#This Row],[Type]]&AAMC_Raw_Data_for_FY22[[#This Row],[School Subset]]&AAMC_Raw_Data_for_FY22[[#This Row],[Rank]]&AAMC_Raw_Data_for_FY22[[#This Row],[Degree]]&AAMC_Raw_Data_for_FY22[[#This Row],[Department / Specialty]]&\"L\"","v":"AAMCAcademicAllChiefMDGenetics-Peds.L"},"Genetics-Peds.",6,"AAMC","Academic","All","Chief","MD","2021-2022",240277,{"$f":"(((AAMC_Raw_Data_for_FY22[[#This Row],[Median]]-AAMC_Raw_Data_for_FY22[[#This Row],[25th]])/25)*5) + AAMC_Raw_Data_for_FY22[[#This Row],[25th]]","v":252812.6},{"$f":"(((AAMC_Raw_Data_for_FY22[[#This Row],[Median]]-AAMC_Raw_Data_for_FY22[[#This Row],[25th]])/25)*10) + AAMC_Raw_Data_for_FY22[[#This Row],[25th]]","v":265348.2},{"$f":"(((AAMC_Raw_Data_for_FY22[[#This Row],[Median]]-AAMC_Raw_Data_for_FY22[[#This Row],[25th]])/25)*15) + AAMC_Raw_Data_for_FY22[[#This Row],[25th]]","v":277883.8},{"$f":"(((AAMC_Raw_Data_for_FY22[[#This Row],[Median]]-AAMC_Raw_Data_for_FY22[[#This Row],[25th]])/25)*20) + AAMC_Raw_Data_for_FY22[[#This Row],[25th]]","v":290419.40000000002},302955,{"$f":"(((AAMC_Raw_Data_for_FY22[[#This Row],[75th]]-AAMC_Raw_Data_for_FY22[[#This Row],[Median]])/25)*5) + AAMC_Raw_Data_for_FY22[[#This Row],[Median]]","v":313557},{"$f":"(((AAMC_Raw_Data_for_FY22[[#This Row],[75th]]-AAMC_Raw_Data_for_FY22[[#This Row],[Median]])/25)*10) + AAMC_Raw_Data_for_FY22[[#This Row],[Median]]","v":324159},{"$f":"(((AAMC_Raw_Data_for_FY22[[#This Row],[75th]]-AAMC_Raw_Data_for_FY22[[#This Row],[Median]])/25)*15) + AAMC_Raw_Data_for_FY22[[#This Row],[Median]]","v":334761},{"$f":"(((AAMC_Raw_Data_for_FY22[[#This Row],[75th]]-AAMC_Raw_Data_for_FY22[[#This Row],[Median]])/25)*20) + AAMC_Raw_Data_for_FY22[[#This Row],[Median]]","v":345363},355965,{"$f":"(((AAMC_Raw_Data_for_FY22[[#This Row],[75th]]-AAMC_Raw_Data_for_FY22[[#This Row],[Median]])/25)*30) + AAMC_Raw_Data_for_FY22[[#This Row],[Median]]","v":366567},{"$f":"(((AAMC_Raw_Data_for_FY22[[#This Row],[75th]]-AAMC_Raw_Data_for_FY22[[#This Row],[Median]])/25)*35) + AAMC_Raw_Data_for_FY22[[#This Row],[Median]]","v":377169},{"$f":"(((AAMC_Raw_Data_for_FY22[[#This Row],[75th]]-AAMC_Raw_Data_for_FY22[[#This Row],[Median]])/25)*40) + AAMC_Raw_Data_for_FY22[[#This Row],[Median]]","v":387771}]
[{"$f":"AAMC_Raw_Data_for_FY22[[#This Row],[Source]]&AAMC_Raw_Data_for_FY22[[#This Row],[Type]]&AAMC_Raw_Data_for_FY22[[#This Row],[School Subset]]&AAMC_Raw_Data_for_FY22[[#This Row],[Rank]]&AAMC_Raw_Data_for_FY22[[#This Row],[Degree]]&AAMC_Raw_Data_for_FY22[[#This Row],[Department / Specialty]]&\"L\"","v":"AAMCAcademicAllInstructorMDHematology/Oncology-Peds.L"},"Hematology/Oncology-Peds.",5,"AAMC","Academic","All","Instructor","MD","2021-2022",116666,{"$f":"(((AAMC_Raw_Data_for_FY22[[#This Row],[Median]]-AAMC_Raw_Data_for_FY22[[#This Row],[25th]])/25)*5) + AAMC_Raw_Data_for_FY22[[#This Row],[25th]]","v":120323.8},{"$f":"(((AAMC_Raw_Data_for_FY22[[#This Row],[Median]]-AAMC_Raw_Data_for_FY22[[#This Row],[25th]])/25)*10) + AAMC_Raw_Data_for_FY22[[#This Row],[25th]]","v":123981.6},{"$f":"(((AAMC_Raw_Data_for_FY22[[#This Row],[Median]]-AAMC_Raw_Data_for_FY22[[#This Row],[25th]])/25)*15) + AAMC_Raw_Data_for_FY22[[#This Row],[25th]]","v":127639.4},{"$f":"(((AAMC_Raw_Data_for_FY22[[#This Row],[Median]]-AAMC_Raw_Data_for_FY22[[#This Row],[25th]])/25)*20) + AAMC_Raw_Data_for_FY22[[#This Row],[25th]]","v":131297.20000000001},134955,{"$f":"(((AAMC_Raw_Data_for_FY22[[#This Row],[75th]]-AAMC_Raw_Data_for_FY22[[#This Row],[Median]])/25)*5) + AAMC_Raw_Data_for_FY22[[#This Row],[Median]]","v":142479},{"$f":"(((AAMC_Raw_Data_for_FY22[[#This Row],[75th]]-AAMC_Raw_Data_for_FY22[[#This Row],[Median]])/25)*10) + AAMC_Raw_Data_for_FY22[[#This Row],[Median]]","v":150003},{"$f":"(((AAMC_Raw_Data_for_FY22[[#This Row],[75th]]-AAMC_Raw_Data_for_FY22[[#This Row],[Median]])/25)*15) + AAMC_Raw_Data_for_FY22[[#This Row],[Median]]","v":157527},{"$f":"(((AAMC_Raw_Data_for_FY22[[#This Row],[75th]]-AAMC_Raw_Data_for_FY22[[#This Row],[Median]])/25)*20) + AAMC_Raw_Data_for_FY22[[#This Row],[Median]]","v":165051},172575,{"$f":"(((AAMC_Raw_Data_for_FY22[[#This Row],[75th]]-AAMC_Raw_Data_for_FY22[[#This Row],[Median]])/25)*30) + AAMC_Raw_Data_for_FY22[[#This Row],[Median]]","v":180099},{"$f":"(((AAMC_Raw_Data_for_FY22[[#This Row],[75th]]-AAMC_Raw_Data_for_FY22[[#This Row],[Median]])/25)*35) + AAMC_Raw_Data_for_FY22[[#This Row],[Median]]","v":187623},{"$f":"(((AAMC_Raw_Data_for_FY22[[#This Row],[75th]]-AAMC_Raw_Data_for_FY22[[#This Row],[Median]])/25)*40) + AAMC_Raw_Data_for_FY22[[#This Row],[Median]]","v":195147}]
[{"$f":"AAMC_Raw_Data_for_FY22[[#This Row],[Source]]&AAMC_Raw_Data_for_FY22[[#This Row],[Type]]&AAMC_Raw_Data_for_FY22[[#This Row],[School Subset]]&AAMC_Raw_Data_for_FY22[[#This Row],[Rank]]&AAMC_Raw_Data_for_FY22[[#This Row],[Degree]]&AAMC_Raw_Data_for_FY22[[#This Row],[Department / Specialty]]&\"L\"","v":"AAMCAcademicAllAssistantMDHematology/Oncology-Peds.L"},"Hematology/Oncology-Peds.",4,"AAMC","Academic","All","Assistant","MD","2021-2022",172853,{"$f":"(((AAMC_Raw_Data_for_FY22[[#This Row],[Median]]-AAMC_Raw_Data_for_FY22[[#This Row],[25th]])/25)*5) + AAMC_Raw_Data_for_FY22[[#This Row],[25th]]","v":175600.2},{"$f":"(((AAMC_Raw_Data_for_FY22[[#This Row],[Median]]-AAMC_Raw_Data_for_FY22[[#This Row],[25th]])/25)*10) + AAMC_Raw_Data_for_FY22[[#This Row],[25th]]","v":178347.4},{"$f":"(((AAMC_Raw_Data_for_FY22[[#This Row],[Median]]-AAMC_Raw_Data_for_FY22[[#This Row],[25th]])/25)*15) + AAMC_Raw_Data_for_FY22[[#This Row],[25th]]","v":181094.6},{"$f":"(((AAMC_Raw_Data_for_FY22[[#This Row],[Median]]-AAMC_Raw_Data_for_FY22[[#This Row],[25th]])/25)*20) + AAMC_Raw_Data_for_FY22[[#This Row],[25th]]","v":183841.8},186589,{"$f":"(((AAMC_Raw_Data_for_FY22[[#This Row],[75th]]-AAMC_Raw_Data_for_FY22[[#This Row],[Median]])/25)*5) + AAMC_Raw_Data_for_FY22[[#This Row],[Median]]","v":190853.6},{"$f":"(((AAMC_Raw_Data_for_FY22[[#This Row],[75th]]-AAMC_Raw_Data_for_FY22[[#This Row],[Median]])/25)*10) + AAMC_Raw_Data_for_FY22[[#This Row],[Median]]","v":195118.2},{"$f":"(((AAMC_Raw_Data_for_FY22[[#This Row],[75th]]-AAMC_Raw_Data_for_FY22[[#This Row],[Median]])/25)*15) + AAMC_Raw_Data_for_FY22[[#This Row],[Median]]","v":199382.8},{"$f":"(((AAMC_Raw_Data_for_FY22[[#This Row],[75th]]-AAMC_Raw_Data_for_FY22[[#This Row],[Median]])/25)*20) + AAMC_Raw_Data_for_FY22[[#This Row],[Median]]","v":203647.4},207912,{"$f":"(((AAMC_Raw_Data_for_FY22[[#This Row],[75th]]-AAMC_Raw_Data_for_FY22[[#This Row],[Median]])/25)*30) + AAMC_Raw_Data_for_FY22[[#This Row],[Median]]","v":212176.6},{"$f":"(((AAMC_Raw_Data_for_FY22[[#This Row],[75th]]-AAMC_Raw_Data_for_FY22[[#This Row],[Median]])/25)*35) + AAMC_Raw_Data_for_FY22[[#This Row],[Median]]","v":216441.2},{"$f":"(((AAMC_Raw_Data_for_FY22[[#This Row],[75th]]-AAMC_Raw_Data_for_FY22[[#This Row],[Median]])/25)*40) + AAMC_Raw_Data_for_FY22[[#This Row],[Median]]","v":220705.8}]
[{"$f":"AAMC_Raw_Data_for_FY22[[#This Row],[Source]]&AAMC_Raw_Data_for_FY22[[#This Row],[Type]]&AAMC_Raw_Data_for_FY22[[#This Row],[School Subset]]&AAMC_Raw_Data_for_FY22[[#This Row],[Rank]]&AAMC_Raw_Data_for_FY22[[#This Row],[Degree]]&AAMC_Raw_Data_for_FY22[[#This Row],[Department / Specialty]]&\"L\"","v":"AAMCAcademicAllAssociateMDHematology/Oncology-Peds.L"},"Hematology/Oncology-Peds.",3,"AAMC","Academic","All","Associate","MD","2021-2022",211687,{"$f":"(((AAMC_Raw_Data_for_FY22[[#This Row],[Median]]-AAMC_Raw_Data_for_FY22[[#This Row],[25th]])/25)*5) + AAMC_Raw_Data_for_FY22[[#This Row],[25th]]","v":216129.2},{"$f":"(((AAMC_Raw_Data_for_FY22[[#This Row],[Median]]-AAMC_Raw_Data_for_FY22[[#This Row],[25th]])/25)*10) + AAMC_Raw_Data_for_FY22[[#This Row],[25th]]","v":220571.4},{"$f":"(((AAMC_Raw_Data_for_FY22[[#This Row],[Median]]-AAMC_Raw_Data_for_FY22[[#This Row],[25th]])/25)*15) + AAMC_Raw_Data_for_FY22[[#This Row],[25th]]","v":225013.6},{"$f":"(((AAMC_Raw_Data_for_FY22[[#This Row],[Median]]-AAMC_Raw_Data_for_FY22[[#This Row],[25th]])/25)*20) + AAMC_Raw_Data_for_FY22[[#This Row],[25th]]","v":229455.8},233898,{"$f":"(((AAMC_Raw_Data_for_FY22[[#This Row],[75th]]-AAMC_Raw_Data_for_FY22[[#This Row],[Median]])/25)*5) + AAMC_Raw_Data_for_FY22[[#This Row],[Median]]","v":238757.4},{"$f":"(((AAMC_Raw_Data_for_FY22[[#This Row],[75th]]-AAMC_Raw_Data_for_FY22[[#This Row],[Median]])/25)*10) + AAMC_Raw_Data_for_FY22[[#This Row],[Median]]","v":243616.8},{"$f":"(((AAMC_Raw_Data_for_FY22[[#This Row],[75th]]-AAMC_Raw_Data_for_FY22[[#This Row],[Median]])/25)*15) + AAMC_Raw_Data_for_FY22[[#This Row],[Median]]","v":248476.2},{"$f":"(((AAMC_Raw_Data_for_FY22[[#This Row],[75th]]-AAMC_Raw_Data_for_FY22[[#This Row],[Median]])/25)*20) + AAMC_Raw_Data_for_FY22[[#This Row],[Median]]","v":253335.6},258195,{"$f":"(((AAMC_Raw_Data_for_FY22[[#This Row],[75th]]-AAMC_Raw_Data_for_FY22[[#This Row],[Median]])/25)*30) + AAMC_Raw_Data_for_FY22[[#This Row],[Median]]","v":263054.40000000002},{"$f":"(((AAMC_Raw_Data_for_FY22[[#This Row],[75th]]-AAMC_Raw_Data_for_FY22[[#This Row],[Median]])/25)*35) + AAMC_Raw_Data_for_FY22[[#This Row],[Median]]","v":267913.8},{"$f":"(((AAMC_Raw_Data_for_FY22[[#This Row],[75th]]-AAMC_Raw_Data_for_FY22[[#This Row],[Median]])/25)*40) + AAMC_Raw_Data_for_FY22[[#This Row],[Median]]","v":272773.2}]
[{"$f":"AAMC_Raw_Data_for_FY22[[#This Row],[Source]]&AAMC_Raw_Data_for_FY22[[#This Row],[Type]]&AAMC_Raw_Data_for_FY22[[#This Row],[School Subset]]&AAMC_Raw_Data_for_FY22[[#This Row],[Rank]]&AAMC_Raw_Data_for_FY22[[#This Row],[Degree]]&AAMC_Raw_Data_for_FY22[[#This Row],[Department / Specialty]]&\"L\"","v":"AAMCAcademicAllProfessorMDHematology/Oncology-Peds.L"},"Hematology/Oncology-Peds.",2,"AAMC","Academic","All","Professor","MD","2021-2022",268765,{"$f":"(((AAMC_Raw_Data_for_FY22[[#This Row],[Median]]-AAMC_Raw_Data_for_FY22[[#This Row],[25th]])/25)*5) + AAMC_Raw_Data_for_FY22[[#This Row],[25th]]","v":274936.2},{"$f":"(((AAMC_Raw_Data_for_FY22[[#This Row],[Median]]-AAMC_Raw_Data_for_FY22[[#This Row],[25th]])/25)*10) + AAMC_Raw_Data_for_FY22[[#This Row],[25th]]","v":281107.40000000002},{"$f":"(((AAMC_Raw_Data_for_FY22[[#This Row],[Median]]-AAMC_Raw_Data_for_FY22[[#This Row],[25th]])/25)*15) + AAMC_Raw_Data_for_FY22[[#This Row],[25th]]","v":287278.59999999998},{"$f":"(((AAMC_Raw_Data_for_FY22[[#This Row],[Median]]-AAMC_Raw_Data_for_FY22[[#This Row],[25th]])/25)*20) + AAMC_Raw_Data_for_FY22[[#This Row],[25th]]","v":293449.8},299621,{"$f":"(((AAMC_Raw_Data_for_FY22[[#This Row],[75th]]-AAMC_Raw_Data_for_FY22[[#This Row],[Median]])/25)*5) + AAMC_Raw_Data_for_FY22[[#This Row],[Median]]","v":308724},{"$f":"(((AAMC_Raw_Data_for_FY22[[#This Row],[75th]]-AAMC_Raw_Data_for_FY22[[#This Row],[Median]])/25)*10) + AAMC_Raw_Data_for_FY22[[#This Row],[Median]]","v":317827},{"$f":"(((AAMC_Raw_Data_for_FY22[[#This Row],[75th]]-AAMC_Raw_Data_for_FY22[[#This Row],[Median]])/25)*15) + AAMC_Raw_Data_for_FY22[[#This Row],[Median]]","v":326930},{"$f":"(((AAMC_Raw_Data_for_FY22[[#This Row],[75th]]-AAMC_Raw_Data_for_FY22[[#This Row],[Median]])/25)*20) + AAMC_Raw_Data_for_FY22[[#This Row],[Median]]","v":336033},345136,{"$f":"(((AAMC_Raw_Data_for_FY22[[#This Row],[75th]]-AAMC_Raw_Data_for_FY22[[#This Row],[Median]])/25)*30) + AAMC_Raw_Data_for_FY22[[#This Row],[Median]]","v":354239},{"$f":"(((AAMC_Raw_Data_for_FY22[[#This Row],[75th]]-AAMC_Raw_Data_for_FY22[[#This Row],[Median]])/25)*35) + AAMC_Raw_Data_for_FY22[[#This Row],[Median]]","v":363342},{"$f":"(((AAMC_Raw_Data_for_FY22[[#This Row],[75th]]-AAMC_Raw_Data_for_FY22[[#This Row],[Median]])/25)*40) + AAMC_Raw_Data_for_FY22[[#This Row],[Median]]","v":372445}]
[{"$f":"AAMC_Raw_Data_for_FY22[[#This Row],[Source]]&AAMC_Raw_Data_for_FY22[[#This Row],[Type]]&AAMC_Raw_Data_for_FY22[[#This Row],[School Subset]]&AAMC_Raw_Data_for_FY22[[#This Row],[Rank]]&AAMC_Raw_Data_for_FY22[[#This Row],[Degree]]&AAMC_Raw_Data_for_FY22[[#This Row],[Department / Specialty]]&\"L\"","v":"AAMCAcademicAllChiefMDHematology/Oncology-Peds.L"},"Hematology/Oncology-Peds.",6,"AAMC","Academic","All","Chief","MD","2021-2022",283014,{"$f":"(((AAMC_Raw_Data_for_FY22[[#This Row],[Median]]-AAMC_Raw_Data_for_FY22[[#This Row],[25th]])/25)*5) + AAMC_Raw_Data_for_FY22[[#This Row],[25th]]","v":293914},{"$f":"(((AAMC_Raw_Data_for_FY22[[#This Row],[Median]]-AAMC_Raw_Data_for_FY22[[#This Row],[25th]])/25)*10) + AAMC_Raw_Data_for_FY22[[#This Row],[25th]]","v":304814},{"$f":"(((AAMC_Raw_Data_for_FY22[[#This Row],[Median]]-AAMC_Raw_Data_for_FY22[[#This Row],[25th]])/25)*15) + AAMC_Raw_Data_for_FY22[[#This Row],[25th]]","v":315714},{"$f":"(((AAMC_Raw_Data_for_FY22[[#This Row],[Median]]-AAMC_Raw_Data_for_FY22[[#This Row],[25th]])/25)*20) + AAMC_Raw_Data_for_FY22[[#This Row],[25th]]","v":326614},337514,{"$f":"(((AAMC_Raw_Data_for_FY22[[#This Row],[75th]]-AAMC_Raw_Data_for_FY22[[#This Row],[Median]])/25)*5) + AAMC_Raw_Data_for_FY22[[#This Row],[Median]]","v":351565},{"$f":"(((AAMC_Raw_Data_for_FY22[[#This Row],[75th]]-AAMC_Raw_Data_for_FY22[[#This Row],[Median]])/25)*10) + AAMC_Raw_Data_for_FY22[[#This Row],[Median]]","v":365616},{"$f":"(((AAMC_Raw_Data_for_FY22[[#This Row],[75th]]-AAMC_Raw_Data_for_FY22[[#This Row],[Median]])/25)*15) + AAMC_Raw_Data_for_FY22[[#This Row],[Median]]","v":379667},{"$f":"(((AAMC_Raw_Data_for_FY22[[#This Row],[75th]]-AAMC_Raw_Data_for_FY22[[#This Row],[Median]])/25)*20) + AAMC_Raw_Data_for_FY22[[#This Row],[Median]]","v":393718},407769,{"$f":"(((AAMC_Raw_Data_for_FY22[[#This Row],[75th]]-AAMC_Raw_Data_for_FY22[[#This Row],[Median]])/25)*30) + AAMC_Raw_Data_for_FY22[[#This Row],[Median]]","v":421820},{"$f":"(((AAMC_Raw_Data_for_FY22[[#This Row],[75th]]-AAMC_Raw_Data_for_FY22[[#This Row],[Median]])/25)*35) + AAMC_Raw_Data_for_FY22[[#This Row],[Median]]","v":435871},{"$f":"(((AAMC_Raw_Data_for_FY22[[#This Row],[75th]]-AAMC_Raw_Data_for_FY22[[#This Row],[Median]])/25)*40) + AAMC_Raw_Data_for_FY22[[#This Row],[Median]]","v":449922}]
[{"$f":"AAMC_Raw_Data_for_FY22[[#This Row],[Source]]&AAMC_Raw_Data_for_FY22[[#This Row],[Type]]&AAMC_Raw_Data_for_FY22[[#This Row],[School Subset]]&AAMC_Raw_Data_for_FY22[[#This Row],[Rank]]&AAMC_Raw_Data_for_FY22[[#This Row],[Degree]]&AAMC_Raw_Data_for_FY22[[#This Row],[Department / Specialty]]&\"L\"","v":"AAMCAcademicAllChairMDHematology/Oncology-Peds.L"},"Hematology/Oncology-Peds.",1,"AAMC","Academic","All","Chair","MD","2021-2022",null,{"$f":"(((AAMC_Raw_Data_for_FY22[[#This Row],[Median]]-AAMC_Raw_Data_for_FY22[[#This Row],[25th]])/25)*5) + AAMC_Raw_Data_for_FY22[[#This Row],[25th]]","v":0},{"$f":"(((AAMC_Raw_Data_for_FY22[[#This Row],[Median]]-AAMC_Raw_Data_for_FY22[[#This Row],[25th]])/25)*10) + AAMC_Raw_Data_for_FY22[[#This Row],[25th]]","v":0},{"$f":"(((AAMC_Raw_Data_for_FY22[[#This Row],[Median]]-AAMC_Raw_Data_for_FY22[[#This Row],[25th]])/25)*15) + AAMC_Raw_Data_for_FY22[[#This Row],[25th]]","v":0},{"$f":"(((AAMC_Raw_Data_for_FY22[[#This Row],[Median]]-AAMC_Raw_Data_for_FY22[[#This Row],[25th]])/25)*20) + AAMC_Raw_Data_for_FY22[[#This Row],[25th]]","v":0},null,{"$f":"(((AAMC_Raw_Data_for_FY22[[#This Row],[75th]]-AAMC_Raw_Data_for_FY22[[#This Row],[Median]])/25)*5) + AAMC_Raw_Data_for_FY22[[#This Row],[Median]]","v":0},{"$f":"(((AAMC_Raw_Data_for_FY22[[#This Row],[75th]]-AAMC_Raw_Data_for_FY22[[#This Row],[Median]])/25)*10) + AAMC_Raw_Data_for_FY22[[#This Row],[Median]]","v":0},{"$f":"(((AAMC_Raw_Data_for_FY22[[#This Row],[75th]]-AAMC_Raw_Data_for_FY22[[#This Row],[Median]])/25)*15) + AAMC_Raw_Data_for_FY22[[#This Row],[Median]]","v":0},{"$f":"(((AAMC_Raw_Data_for_FY22[[#This Row],[75th]]-AAMC_Raw_Data_for_FY22[[#This Row],[Median]])/25)*20) + AAMC_Raw_Data_for_FY22[[#This Row],[Median]]","v":0},null,{"$f":"(((AAMC_Raw_Data_for_FY22[[#This Row],[75th]]-AAMC_Raw_Data_for_FY22[[#This Row],[Median]])/25)*30) + AAMC_Raw_Data_for_FY22[[#This Row],[Median]]","v":0},{"$f":"(((AAMC_Raw_Data_for_FY22[[#This Row],[75th]]-AAMC_Raw_Data_for_FY22[[#This Row],[Median]])/25)*35) + AAMC_Raw_Data_for_FY22[[#This Row],[Median]]","v":0},{"$f":"(((AAMC_Raw_Data_for_FY22[[#This Row],[75th]]-AAMC_Raw_Data_for_FY22[[#This Row],[Median]])/25)*40) + AAMC_Raw_Data_for_FY22[[#This Row],[Median]]","v":0}]
[{"$f":"AAMC_Raw_Data_for_FY22[[#This Row],[Source]]&AAMC_Raw_Data_for_FY22[[#This Row],[Type]]&AAMC_Raw_Data_for_FY22[[#This Row],[School Subset]]&AAMC_Raw_Data_for_FY22[[#This Row],[Rank]]&AAMC_Raw_Data_for_FY22[[#This Row],[Degree]]&AAMC_Raw_Data_for_FY22[[#This Row],[Department / Specialty]]&\"L\"","v":"AAMCAcademicAllInstructorMDHospital Medicine-Peds.L"},"Hospital Medicine-Peds.",5,"AAMC","Academic","All","Instructor","MD","2021-2022",163410,{"$f":"(((AAMC_Raw_Data_for_FY22[[#This Row],[Median]]-AAMC_Raw_Data_for_FY22[[#This Row],[25th]])/25)*5) + AAMC_Raw_Data_for_FY22[[#This Row],[25th]]","v":167482.20000000001},{"$f":"(((AAMC_Raw_Data_for_FY22[[#This Row],[Median]]-AAMC_Raw_Data_for_FY22[[#This Row],[25th]])/25)*10) + AAMC_Raw_Data_for_FY22[[#This Row],[25th]]","v":171554.4},{"$f":"(((AAMC_Raw_Data_for_FY22[[#This Row],[Median]]-AAMC_Raw_Data_for_FY22[[#This Row],[25th]])/25)*15) + AAMC_Raw_Data_for_FY22[[#This Row],[25th]]","v":175626.6},{"$f":"(((AAMC_Raw_Data_for_FY22[[#This Row],[Median]]-AAMC_Raw_Data_for_FY22[[#This Row],[25th]])/25)*20) + AAMC_Raw_Data_for_FY22[[#This Row],[25th]]","v":179698.8},183771,{"$f":"(((AAMC_Raw_Data_for_FY22[[#This Row],[75th]]-AAMC_Raw_Data_for_FY22[[#This Row],[Median]])/25)*5) + AAMC_Raw_Data_for_FY22[[#This Row],[Median]]","v":188442.8},{"$f":"(((AAMC_Raw_Data_for_FY22[[#This Row],[75th]]-AAMC_Raw_Data_for_FY22[[#This Row],[Median]])/25)*10) + AAMC_Raw_Data_for_FY22[[#This Row],[Median]]","v":193114.6},{"$f":"(((AAMC_Raw_Data_for_FY22[[#This Row],[75th]]-AAMC_Raw_Data_for_FY22[[#This Row],[Median]])/25)*15) + AAMC_Raw_Data_for_FY22[[#This Row],[Median]]","v":197786.4},{"$f":"(((AAMC_Raw_Data_for_FY22[[#This Row],[75th]]-AAMC_Raw_Data_for_FY22[[#This Row],[Median]])/25)*20) + AAMC_Raw_Data_for_FY22[[#This Row],[Median]]","v":202458.2},207130,{"$f":"(((AAMC_Raw_Data_for_FY22[[#This Row],[75th]]-AAMC_Raw_Data_for_FY22[[#This Row],[Median]])/25)*30) + AAMC_Raw_Data_for_FY22[[#This Row],[Median]]","v":211801.8},{"$f":"(((AAMC_Raw_Data_for_FY22[[#This Row],[75th]]-AAMC_Raw_Data_for_FY22[[#This Row],[Median]])/25)*35) + AAMC_Raw_Data_for_FY22[[#This Row],[Median]]","v":216473.60000000001},{"$f":"(((AAMC_Raw_Data_for_FY22[[#This Row],[75th]]-AAMC_Raw_Data_for_FY22[[#This Row],[Median]])/25)*40) + AAMC_Raw_Data_for_FY22[[#This Row],[Median]]","v":221145.4}]
[{"$f":"AAMC_Raw_Data_for_FY22[[#This Row],[Source]]&AAMC_Raw_Data_for_FY22[[#This Row],[Type]]&AAMC_Raw_Data_for_FY22[[#This Row],[School Subset]]&AAMC_Raw_Data_for_FY22[[#This Row],[Rank]]&AAMC_Raw_Data_for_FY22[[#This Row],[Degree]]&AAMC_Raw_Data_for_FY22[[#This Row],[Department / Specialty]]&\"L\"","v":"AAMCAcademicAllAssistantMDHospital Medicine-Peds.L"},"Hospital Medicine-Peds.",4,"AAMC","Academic","All","Assistant","MD","2021-2022",178181,{"$f":"(((AAMC_Raw_Data_for_FY22[[#This Row],[Median]]-AAMC_Raw_Data_for_FY22[[#This Row],[25th]])/25)*5) + AAMC_Raw_Data_for_FY22[[#This Row],[25th]]","v":181542.6},{"$f":"(((AAMC_Raw_Data_for_FY22[[#This Row],[Median]]-AAMC_Raw_Data_for_FY22[[#This Row],[25th]])/25)*10) + AAMC_Raw_Data_for_FY22[[#This Row],[25th]]","v":184904.2},{"$f":"(((AAMC_Raw_Data_for_FY22[[#This Row],[Median]]-AAMC_Raw_Data_for_FY22[[#This Row],[25th]])/25)*15) + AAMC_Raw_Data_for_FY22[[#This Row],[25th]]","v":188265.8},{"$f":"(((AAMC_Raw_Data_for_FY22[[#This Row],[Median]]-AAMC_Raw_Data_for_FY22[[#This Row],[25th]])/25)*20) + AAMC_Raw_Data_for_FY22[[#This Row],[25th]]","v":191627.4},194989,{"$f":"(((AAMC_Raw_Data_for_FY22[[#This Row],[75th]]-AAMC_Raw_Data_for_FY22[[#This Row],[Median]])/25)*5) + AAMC_Raw_Data_for_FY22[[#This Row],[Median]]","v":200446.8},{"$f":"(((AAMC_Raw_Data_for_FY22[[#This Row],[75th]]-AAMC_Raw_Data_for_FY22[[#This Row],[Median]])/25)*10) + AAMC_Raw_Data_for_FY22[[#This Row],[Median]]","v":205904.6},{"$f":"(((AAMC_Raw_Data_for_FY22[[#This Row],[75th]]-AAMC_Raw_Data_for_FY22[[#This Row],[Median]])/25)*15) + AAMC_Raw_Data_for_FY22[[#This Row],[Median]]","v":211362.4},{"$f":"(((AAMC_Raw_Data_for_FY22[[#This Row],[75th]]-AAMC_Raw_Data_for_FY22[[#This Row],[Median]])/25)*20) + AAMC_Raw_Data_for_FY22[[#This Row],[Median]]","v":216820.2},222278,{"$f":"(((AAMC_Raw_Data_for_FY22[[#This Row],[75th]]-AAMC_Raw_Data_for_FY22[[#This Row],[Median]])/25)*30) + AAMC_Raw_Data_for_FY22[[#This Row],[Median]]","v":227735.8},{"$f":"(((AAMC_Raw_Data_for_FY22[[#This Row],[75th]]-AAMC_Raw_Data_for_FY22[[#This Row],[Median]])/25)*35) + AAMC_Raw_Data_for_FY22[[#This Row],[Median]]","v":233193.60000000001},{"$f":"(((AAMC_Raw_Data_for_FY22[[#This Row],[75th]]-AAMC_Raw_Data_for_FY22[[#This Row],[Median]])/25)*40) + AAMC_Raw_Data_for_FY22[[#This Row],[Median]]","v":238651.4}]
[{"$f":"AAMC_Raw_Data_for_FY22[[#This Row],[Source]]&AAMC_Raw_Data_for_FY22[[#This Row],[Type]]&AAMC_Raw_Data_for_FY22[[#This Row],[School Subset]]&AAMC_Raw_Data_for_FY22[[#This Row],[Rank]]&AAMC_Raw_Data_for_FY22[[#This Row],[Degree]]&AAMC_Raw_Data_for_FY22[[#This Row],[Department / Specialty]]&\"L\"","v":"AAMCAcademicAllAssociateMDHospital Medicine-Peds.L"},"Hospital Medicine-Peds.",3,"AAMC","Academic","All","Associate","MD","2021-2022",201769,{"$f":"(((AAMC_Raw_Data_for_FY22[[#This Row],[Median]]-AAMC_Raw_Data_for_FY22[[#This Row],[25th]])/25)*5) + AAMC_Raw_Data_for_FY22[[#This Row],[25th]]","v":205442.6},{"$f":"(((AAMC_Raw_Data_for_FY22[[#This Row],[Median]]-AAMC_Raw_Data_for_FY22[[#This Row],[25th]])/25)*10) + AAMC_Raw_Data_for_FY22[[#This Row],[25th]]","v":209116.2},{"$f":"(((AAMC_Raw_Data_for_FY22[[#This Row],[Median]]-AAMC_Raw_Data_for_FY22[[#This Row],[25th]])/25)*15) + AAMC_Raw_Data_for_FY22[[#This Row],[25th]]","v":212789.8},{"$f":"(((AAMC_Raw_Data_for_FY22[[#This Row],[Median]]-AAMC_Raw_Data_for_FY22[[#This Row],[25th]])/25)*20) + AAMC_Raw_Data_for_FY22[[#This Row],[25th]]","v":216463.4},220137,{"$f":"(((AAMC_Raw_Data_for_FY22[[#This Row],[75th]]-AAMC_Raw_Data_for_FY22[[#This Row],[Median]])/25)*5) + AAMC_Raw_Data_for_FY22[[#This Row],[Median]]","v":226820.8},{"$f":"(((AAMC_Raw_Data_for_FY22[[#This Row],[75th]]-AAMC_Raw_Data_for_FY22[[#This Row],[Median]])/25)*10) + AAMC_Raw_Data_for_FY22[[#This Row],[Median]]","v":233504.6},{"$f":"(((AAMC_Raw_Data_for_FY22[[#This Row],[75th]]-AAMC_Raw_Data_for_FY22[[#This Row],[Median]])/25)*15) + AAMC_Raw_Data_for_FY22[[#This Row],[Median]]","v":240188.4},{"$f":"(((AAMC_Raw_Data_for_FY22[[#This Row],[75th]]-AAMC_Raw_Data_for_FY22[[#This Row],[Median]])/25)*20) + AAMC_Raw_Data_for_FY22[[#This Row],[Median]]","v":246872.2},253556,{"$f":"(((AAMC_Raw_Data_for_FY22[[#This Row],[75th]]-AAMC_Raw_Data_for_FY22[[#This Row],[Median]])/25)*30) + AAMC_Raw_Data_for_FY22[[#This Row],[Median]]","v":260239.8},{"$f":"(((AAMC_Raw_Data_for_FY22[[#This Row],[75th]]-AAMC_Raw_Data_for_FY22[[#This Row],[Median]])/25)*35) + AAMC_Raw_Data_for_FY22[[#This Row],[Median]]","v":266923.59999999998},{"$f":"(((AAMC_Raw_Data_for_FY22[[#This Row],[75th]]-AAMC_Raw_Data_for_FY22[[#This Row],[Median]])/25)*40) + AAMC_Raw_Data_for_FY22[[#This Row],[Median]]","v":273607.40000000002}]
[{"$f":"AAMC_Raw_Data_for_FY22[[#This Row],[Source]]&AAMC_Raw_Data_for_FY22[[#This Row],[Type]]&AAMC_Raw_Data_for_FY22[[#This Row],[School Subset]]&AAMC_Raw_Data_for_FY22[[#This Row],[Rank]]&AAMC_Raw_Data_for_FY22[[#This Row],[Degree]]&AAMC_Raw_Data_for_FY22[[#This Row],[Department / Specialty]]&\"L\"","v":"AAMCAcademicAllProfessorMDHospital Medicine-Peds.L"},"Hospital Medicine-Peds.",2,"AAMC","Academic","All","Professor","MD","2021-2022",227703,{"$f":"(((AAMC_Raw_Data_for_FY22[[#This Row],[Median]]-AAMC_Raw_Data_for_FY22[[#This Row],[25th]])/25)*5) + AAMC_Raw_Data_for_FY22[[#This Row],[25th]]","v":237244},{"$f":"(((AAMC_Raw_Data_for_FY22[[#This Row],[Median]]-AAMC_Raw_Data_for_FY22[[#This Row],[25th]])/25)*10) + AAMC_Raw_Data_for_FY22[[#This Row],[25th]]","v":246785},{"$f":"(((AAMC_Raw_Data_for_FY22[[#This Row],[Median]]-AAMC_Raw_Data_for_FY22[[#This Row],[25th]])/25)*15) + AAMC_Raw_Data_for_FY22[[#This Row],[25th]]","v":256326},{"$f":"(((AAMC_Raw_Data_for_FY22[[#This Row],[Median]]-AAMC_Raw_Data_for_FY22[[#This Row],[25th]])/25)*20) + AAMC_Raw_Data_for_FY22[[#This Row],[25th]]","v":265867},275408,{"$f":"(((AAMC_Raw_Data_for_FY22[[#This Row],[75th]]-AAMC_Raw_Data_for_FY22[[#This Row],[Median]])/25)*5) + AAMC_Raw_Data_for_FY22[[#This Row],[Median]]","v":285342.2},{"$f":"(((AAMC_Raw_Data_for_FY22[[#This Row],[75th]]-AAMC_Raw_Data_for_FY22[[#This Row],[Median]])/25)*10) + AAMC_Raw_Data_for_FY22[[#This Row],[Median]]","v":295276.40000000002},{"$f":"(((AAMC_Raw_Data_for_FY22[[#This Row],[75th]]-AAMC_Raw_Data_for_FY22[[#This Row],[Median]])/25)*15) + AAMC_Raw_Data_for_FY22[[#This Row],[Median]]","v":305210.59999999998},{"$f":"(((AAMC_Raw_Data_for_FY22[[#This Row],[75th]]-AAMC_Raw_Data_for_FY22[[#This Row],[Median]])/25)*20) + AAMC_Raw_Data_for_FY22[[#This Row],[Median]]","v":315144.8},325079,{"$f":"(((AAMC_Raw_Data_for_FY22[[#This Row],[75th]]-AAMC_Raw_Data_for_FY22[[#This Row],[Median]])/25)*30) + AAMC_Raw_Data_for_FY22[[#This Row],[Median]]","v":335013.2},{"$f":"(((AAMC_Raw_Data_for_FY22[[#This Row],[75th]]-AAMC_Raw_Data_for_FY22[[#This Row],[Median]])/25)*35) + AAMC_Raw_Data_for_FY22[[#This Row],[Median]]","v":344947.4},{"$f":"(((AAMC_Raw_Data_for_FY22[[#This Row],[75th]]-AAMC_Raw_Data_for_FY22[[#This Row],[Median]])/25)*40) + AAMC_Raw_Data_for_FY22[[#This Row],[Median]]","v":354881.6}]
[{"$f":"AAMC_Raw_Data_for_FY22[[#This Row],[Source]]&AAMC_Raw_Data_for_FY22[[#This Row],[Type]]&AAMC_Raw_Data_for_FY22[[#This Row],[School Subset]]&AAMC_Raw_Data_for_FY22[[#This Row],[Rank]]&AAMC_Raw_Data_for_FY22[[#This Row],[Degree]]&AAMC_Raw_Data_for_FY22[[#This Row],[Department / Specialty]]&\"L\"","v":"AAMCAcademicAllChiefMDHospital Medicine-Peds.L"},"Hospital Medicine-Peds.",6,"AAMC","Academic","All","Chief","MD","2021-2022",237198,{"$f":"(((AAMC_Raw_Data_for_FY22[[#This Row],[Median]]-AAMC_Raw_Data_for_FY22[[#This Row],[25th]])/25)*5) + AAMC_Raw_Data_for_FY22[[#This Row],[25th]]","v":242486},{"$f":"(((AAMC_Raw_Data_for_FY22[[#This Row],[Median]]-AAMC_Raw_Data_for_FY22[[#This Row],[25th]])/25)*10) + AAMC_Raw_Data_for_FY22[[#This Row],[25th]]","v":247774},{"$f":"(((AAMC_Raw_Data_for_FY22[[#This Row],[Median]]-AAMC_Raw_Data_for_FY22[[#This Row],[25th]])/25)*15) + AAMC_Raw_Data_for_FY22[[#This Row],[25th]]","v":253062},{"$f":"(((AAMC_Raw_Data_for_FY22[[#This Row],[Median]]-AAMC_Raw_Data_for_FY22[[#This Row],[25th]])/25)*20) + AAMC_Raw_Data_for_FY22[[#This Row],[25th]]","v":258350},263638,{"$f":"(((AAMC_Raw_Data_for_FY22[[#This Row],[75th]]-AAMC_Raw_Data_for_FY22[[#This Row],[Median]])/25)*5) + AAMC_Raw_Data_for_FY22[[#This Row],[Median]]","v":274540.40000000002},{"$f":"(((AAMC_Raw_Data_for_FY22[[#This Row],[75th]]-AAMC_Raw_Data_for_FY22[[#This Row],[Median]])/25)*10) + AAMC_Raw_Data_for_FY22[[#This Row],[Median]]","v":285442.8},{"$f":"(((AAMC_Raw_Data_for_FY22[[#This Row],[75th]]-AAMC_Raw_Data_for_FY22[[#This Row],[Median]])/25)*15) + AAMC_Raw_Data_for_FY22[[#This Row],[Median]]","v":296345.2},{"$f":"(((AAMC_Raw_Data_for_FY22[[#This Row],[75th]]-AAMC_Raw_Data_for_FY22[[#This Row],[Median]])/25)*20) + AAMC_Raw_Data_for_FY22[[#This Row],[Median]]","v":307247.59999999998},318150,{"$f":"(((AAMC_Raw_Data_for_FY22[[#This Row],[75th]]-AAMC_Raw_Data_for_FY22[[#This Row],[Median]])/25)*30) + AAMC_Raw_Data_for_FY22[[#This Row],[Median]]","v":329052.40000000002},{"$f":"(((AAMC_Raw_Data_for_FY22[[#This Row],[75th]]-AAMC_Raw_Data_for_FY22[[#This Row],[Median]])/25)*35) + AAMC_Raw_Data_for_FY22[[#This Row],[Median]]","v":339954.8},{"$f":"(((AAMC_Raw_Data_for_FY22[[#This Row],[75th]]-AAMC_Raw_Data_for_FY22[[#This Row],[Median]])/25)*40) + AAMC_Raw_Data_for_FY22[[#This Row],[Median]]","v":350857.2}]
[{"$f":"AAMC_Raw_Data_for_FY22[[#This Row],[Source]]&AAMC_Raw_Data_for_FY22[[#This Row],[Type]]&AAMC_Raw_Data_for_FY22[[#This Row],[School Subset]]&AAMC_Raw_Data_for_FY22[[#This Row],[Rank]]&AAMC_Raw_Data_for_FY22[[#This Row],[Degree]]&AAMC_Raw_Data_for_FY22[[#This Row],[Department / Specialty]]&\"L\"","v":"AAMCAcademicAllChairMDHospital Medicine-Peds.L"},"Hospital Medicine-Peds.",1,"AAMC","Academic","All","Chair","MD","2021-2022",327120,{"$f":"(((AAMC_Raw_Data_for_FY22[[#This Row],[Median]]-AAMC_Raw_Data_for_FY22[[#This Row],[25th]])/25)*5) + AAMC_Raw_Data_for_FY22[[#This Row],[25th]]","v":364896},{"$f":"(((AAMC_Raw_Data_for_FY22[[#This Row],[Median]]-AAMC_Raw_Data_for_FY22[[#This Row],[25th]])/25)*10) + AAMC_Raw_Data_for_FY22[[#This Row],[25th]]","v":402672},{"$f":"(((AAMC_Raw_Data_for_FY22[[#This Row],[Median]]-AAMC_Raw_Data_for_FY22[[#This Row],[25th]])/25)*15) + AAMC_Raw_Data_for_FY22[[#This Row],[25th]]","v":440448},{"$f":"(((AAMC_Raw_Data_for_FY22[[#This Row],[Median]]-AAMC_Raw_Data_for_FY22[[#This Row],[25th]])/25)*20) + AAMC_Raw_Data_for_FY22[[#This Row],[25th]]","v":478224},516000,{"$f":"(((AAMC_Raw_Data_for_FY22[[#This Row],[75th]]-AAMC_Raw_Data_for_FY22[[#This Row],[Median]])/25)*5) + AAMC_Raw_Data_for_FY22[[#This Row],[Median]]","v":522237.4},{"$f":"(((AAMC_Raw_Data_for_FY22[[#This Row],[75th]]-AAMC_Raw_Data_for_FY22[[#This Row],[Median]])/25)*10) + AAMC_Raw_Data_for_FY22[[#This Row],[Median]]","v":528474.80000000005},{"$f":"(((AAMC_Raw_Data_for_FY22[[#This Row],[75th]]-AAMC_Raw_Data_for_FY22[[#This Row],[Median]])/25)*15) + AAMC_Raw_Data_for_FY22[[#This Row],[Median]]","v":534712.19999999995},{"$f":"(((AAMC_Raw_Data_for_FY22[[#This Row],[75th]]-AAMC_Raw_Data_for_FY22[[#This Row],[Median]])/25)*20) + AAMC_Raw_Data_for_FY22[[#This Row],[Median]]","v":540949.6},547187,{"$f":"(((AAMC_Raw_Data_for_FY22[[#This Row],[75th]]-AAMC_Raw_Data_for_FY22[[#This Row],[Median]])/25)*30) + AAMC_Raw_Data_for_FY22[[#This Row],[Median]]","v":553424.4},{"$f":"(((AAMC_Raw_Data_for_FY22[[#This Row],[75th]]-AAMC_Raw_Data_for_FY22[[#This Row],[Median]])/25)*35) + AAMC_Raw_Data_for_FY22[[#This Row],[Median]]","v":559661.80000000005},{"$f":"(((AAMC_Raw_Data_for_FY22[[#This Row],[75th]]-AAMC_Raw_Data_for_FY22[[#This Row],[Median]])/25)*40) + AAMC_Raw_Data_for_FY22[[#This Row],[Median]]","v":565899.19999999995}]
[{"$f":"AAMC_Raw_Data_for_FY22[[#This Row],[Source]]&AAMC_Raw_Data_for_FY22[[#This Row],[Type]]&AAMC_Raw_Data_for_FY22[[#This Row],[School Subset]]&AAMC_Raw_Data_for_FY22[[#This Row],[Rank]]&AAMC_Raw_Data_for_FY22[[#This Row],[Degree]]&AAMC_Raw_Data_for_FY22[[#This Row],[Department / Specialty]]&\"L\"","v":"AAMCAcademicAllInstructorMDInfectious Disease-Peds.L"},"Infectious Disease-Peds.",5,"AAMC","Academic","All","Instructor","MD","2021-2022",119333,{"$f":"(((AAMC_Raw_Data_for_FY22[[#This Row],[Median]]-AAMC_Raw_Data_for_FY22[[#This Row],[25th]])/25)*5) + AAMC_Raw_Data_for_FY22[[#This Row],[25th]]","v":127021.2},{"$f":"(((AAMC_Raw_Data_for_FY22[[#This Row],[Median]]-AAMC_Raw_Data_for_FY22[[#This Row],[25th]])/25)*10) + AAMC_Raw_Data_for_FY22[[#This Row],[25th]]","v":134709.4},{"$f":"(((AAMC_Raw_Data_for_FY22[[#This Row],[Median]]-AAMC_Raw_Data_for_FY22[[#This Row],[25th]])/25)*15) + AAMC_Raw_Data_for_FY22[[#This Row],[25th]]","v":142397.6},{"$f":"(((AAMC_Raw_Data_for_FY22[[#This Row],[Median]]-AAMC_Raw_Data_for_FY22[[#This Row],[25th]])/25)*20) + AAMC_Raw_Data_for_FY22[[#This Row],[25th]]","v":150085.79999999999},157774,{"$f":"(((AAMC_Raw_Data_for_FY22[[#This Row],[75th]]-AAMC_Raw_Data_for_FY22[[#This Row],[Median]])/25)*5) + AAMC_Raw_Data_for_FY22[[#This Row],[Median]]","v":164265},{"$f":"(((AAMC_Raw_Data_for_FY22[[#This Row],[75th]]-AAMC_Raw_Data_for_FY22[[#This Row],[Median]])/25)*10) + AAMC_Raw_Data_for_FY22[[#This Row],[Median]]","v":170756},{"$f":"(((AAMC_Raw_Data_for_FY22[[#This Row],[75th]]-AAMC_Raw_Data_for_FY22[[#This Row],[Median]])/25)*15) + AAMC_Raw_Data_for_FY22[[#This Row],[Median]]","v":177247},{"$f":"(((AAMC_Raw_Data_for_FY22[[#This Row],[75th]]-AAMC_Raw_Data_for_FY22[[#This Row],[Median]])/25)*20) + AAMC_Raw_Data_for_FY22[[#This Row],[Median]]","v":183738},190229,{"$f":"(((AAMC_Raw_Data_for_FY22[[#This Row],[75th]]-AAMC_Raw_Data_for_FY22[[#This Row],[Median]])/25)*30) + AAMC_Raw_Data_for_FY22[[#This Row],[Median]]","v":196720},{"$f":"(((AAMC_Raw_Data_for_FY22[[#This Row],[75th]]-AAMC_Raw_Data_for_FY22[[#This Row],[Median]])/25)*35) + AAMC_Raw_Data_for_FY22[[#This Row],[Median]]","v":203211},{"$f":"(((AAMC_Raw_Data_for_FY22[[#This Row],[75th]]-AAMC_Raw_Data_for_FY22[[#This Row],[Median]])/25)*40) + AAMC_Raw_Data_for_FY22[[#This Row],[Median]]","v":209702}]
[{"$f":"AAMC_Raw_Data_for_FY22[[#This Row],[Source]]&AAMC_Raw_Data_for_FY22[[#This Row],[Type]]&AAMC_Raw_Data_for_FY22[[#This Row],[School Subset]]&AAMC_Raw_Data_for_FY22[[#This Row],[Rank]]&AAMC_Raw_Data_for_FY22[[#This Row],[Degree]]&AAMC_Raw_Data_for_FY22[[#This Row],[Department / Specialty]]&\"L\"","v":"AAMCAcademicAllAssistantMDInfectious Disease-Peds.L"},"Infectious Disease-Peds.",4,"AAMC","Academic","All","Assistant","MD","2021-2022",154300,{"$f":"(((AAMC_Raw_Data_for_FY22[[#This Row],[Median]]-AAMC_Raw_Data_for_FY22[[#This Row],[25th]])/25)*5) + AAMC_Raw_Data_for_FY22[[#This Row],[25th]]","v":156828},{"$f":"(((AAMC_Raw_Data_for_FY22[[#This Row],[Median]]-AAMC_Raw_Data_for_FY22[[#This Row],[25th]])/25)*10) + AAMC_Raw_Data_for_FY22[[#This Row],[25th]]","v":159356},{"$f":"(((AAMC_Raw_Data_for_FY22[[#This Row],[Median]]-AAMC_Raw_Data_for_FY22[[#This Row],[25th]])/25)*15) + AAMC_Raw_Data_for_FY22[[#This Row],[25th]]","v":161884},{"$f":"(((AAMC_Raw_Data_for_FY22[[#This Row],[Median]]-AAMC_Raw_Data_for_FY22[[#This Row],[25th]])/25)*20) + AAMC_Raw_Data_for_FY22[[#This Row],[25th]]","v":164412},166940,{"$f":"(((AAMC_Raw_Data_for_FY22[[#This Row],[75th]]-AAMC_Raw_Data_for_FY22[[#This Row],[Median]])/25)*5) + AAMC_Raw_Data_for_FY22[[#This Row],[Median]]","v":170535.2},{"$f":"(((AAMC_Raw_Data_for_FY22[[#This Row],[75th]]-AAMC_Raw_Data_for_FY22[[#This Row],[Median]])/25)*10) + AAMC_Raw_Data_for_FY22[[#This Row],[Median]]","v":174130.4},{"$f":"(((AAMC_Raw_Data_for_FY22[[#This Row],[75th]]-AAMC_Raw_Data_for_FY22[[#This Row],[Median]])/25)*15) + AAMC_Raw_Data_for_FY22[[#This Row],[Median]]","v":177725.6},{"$f":"(((AAMC_Raw_Data_for_FY22[[#This Row],[75th]]-AAMC_Raw_Data_for_FY22[[#This Row],[Median]])/25)*20) + AAMC_Raw_Data_for_FY22[[#This Row],[Median]]","v":181320.8},184916,{"$f":"(((AAMC_Raw_Data_for_FY22[[#This Row],[75th]]-AAMC_Raw_Data_for_FY22[[#This Row],[Median]])/25)*30) + AAMC_Raw_Data_for_FY22[[#This Row],[Median]]","v":188511.2},{"$f":"(((AAMC_Raw_Data_for_FY22[[#This Row],[75th]]-AAMC_Raw_Data_for_FY22[[#This Row],[Median]])/25)*35) + AAMC_Raw_Data_for_FY22[[#This Row],[Median]]","v":192106.4},{"$f":"(((AAMC_Raw_Data_for_FY22[[#This Row],[75th]]-AAMC_Raw_Data_for_FY22[[#This Row],[Median]])/25)*40) + AAMC_Raw_Data_for_FY22[[#This Row],[Median]]","v":195701.6}]
[{"$f":"AAMC_Raw_Data_for_FY22[[#This Row],[Source]]&AAMC_Raw_Data_for_FY22[[#This Row],[Type]]&AAMC_Raw_Data_for_FY22[[#This Row],[School Subset]]&AAMC_Raw_Data_for_FY22[[#This Row],[Rank]]&AAMC_Raw_Data_for_FY22[[#This Row],[Degree]]&AAMC_Raw_Data_for_FY22[[#This Row],[Department / Specialty]]&\"L\"","v":"AAMCAcademicAllAssociateMDInfectious Disease-Peds.L"},"Infectious Disease-Peds.",3,"AAMC","Academic","All","Associate","MD","2021-2022",182433,{"$f":"(((AAMC_Raw_Data_for_FY22[[#This Row],[Median]]-AAMC_Raw_Data_for_FY22[[#This Row],[25th]])/25)*5) + AAMC_Raw_Data_for_FY22[[#This Row],[25th]]","v":185513.60000000001},{"$f":"(((AAMC_Raw_Data_for_FY22[[#This Row],[Median]]-AAMC_Raw_Data_for_FY22[[#This Row],[25th]])/25)*10) + AAMC_Raw_Data_for_FY22[[#This Row],[25th]]","v":188594.2},{"$f":"(((AAMC_Raw_Data_for_FY22[[#This Row],[Median]]-AAMC_Raw_Data_for_FY22[[#This Row],[25th]])/25)*15) + AAMC_Raw_Data_for_FY22[[#This Row],[25th]]","v":191674.8},{"$f":"(((AAMC_Raw_Data_for_FY22[[#This Row],[Median]]-AAMC_Raw_Data_for_FY22[[#This Row],[25th]])/25)*20) + AAMC_Raw_Data_for_FY22[[#This Row],[25th]]","v":194755.4},197836,{"$f":"(((AAMC_Raw_Data_for_FY22[[#This Row],[75th]]-AAMC_Raw_Data_for_FY22[[#This Row],[Median]])/25)*5) + AAMC_Raw_Data_for_FY22[[#This Row],[Median]]","v":203348.8},{"$f":"(((AAMC_Raw_Data_for_FY22[[#This Row],[75th]]-AAMC_Raw_Data_for_FY22[[#This Row],[Median]])/25)*10) + AAMC_Raw_Data_for_FY22[[#This Row],[Median]]","v":208861.6},{"$f":"(((AAMC_Raw_Data_for_FY22[[#This Row],[75th]]-AAMC_Raw_Data_for_FY22[[#This Row],[Median]])/25)*15) + AAMC_Raw_Data_for_FY22[[#This Row],[Median]]","v":214374.39999999999},{"$f":"(((AAMC_Raw_Data_for_FY22[[#This Row],[75th]]-AAMC_Raw_Data_for_FY22[[#This Row],[Median]])/25)*20) + AAMC_Raw_Data_for_FY22[[#This Row],[Median]]","v":219887.2},225400,{"$f":"(((AAMC_Raw_Data_for_FY22[[#This Row],[75th]]-AAMC_Raw_Data_for_FY22[[#This Row],[Median]])/25)*30) + AAMC_Raw_Data_for_FY22[[#This Row],[Median]]","v":230912.8},{"$f":"(((AAMC_Raw_Data_for_FY22[[#This Row],[75th]]-AAMC_Raw_Data_for_FY22[[#This Row],[Median]])/25)*35) + AAMC_Raw_Data_for_FY22[[#This Row],[Median]]","v":236425.60000000001},{"$f":"(((AAMC_Raw_Data_for_FY22[[#This Row],[75th]]-AAMC_Raw_Data_for_FY22[[#This Row],[Median]])/25)*40) + AAMC_Raw_Data_for_FY22[[#This Row],[Median]]","v":241938.4}]
[{"$f":"AAMC_Raw_Data_for_FY22[[#This Row],[Source]]&AAMC_Raw_Data_for_FY22[[#This Row],[Type]]&AAMC_Raw_Data_for_FY22[[#This Row],[School Subset]]&AAMC_Raw_Data_for_FY22[[#This Row],[Rank]]&AAMC_Raw_Data_for_FY22[[#This Row],[Degree]]&AAMC_Raw_Data_for_FY22[[#This Row],[Department / Specialty]]&\"L\"","v":"AAMCAcademicAllProfessorMDInfectious Disease-Peds.L"},"Infectious Disease-Peds.",2,"AAMC","Academic","All","Professor","MD","2021-2022",230499,{"$f":"(((AAMC_Raw_Data_for_FY22[[#This Row],[Median]]-AAMC_Raw_Data_for_FY22[[#This Row],[25th]])/25)*5) + AAMC_Raw_Data_for_FY22[[#This Row],[25th]]","v":236361.60000000001},{"$f":"(((AAMC_Raw_Data_for_FY22[[#This Row],[Median]]-AAMC_Raw_Data_for_FY22[[#This Row],[25th]])/25)*10) + AAMC_Raw_Data_for_FY22[[#This Row],[25th]]","v":242224.2},{"$f":"(((AAMC_Raw_Data_for_FY22[[#This Row],[Median]]-AAMC_Raw_Data_for_FY22[[#This Row],[25th]])/25)*15) + AAMC_Raw_Data_for_FY22[[#This Row],[25th]]","v":248086.8},{"$f":"(((AAMC_Raw_Data_for_FY22[[#This Row],[Median]]-AAMC_Raw_Data_for_FY22[[#This Row],[25th]])/25)*20) + AAMC_Raw_Data_for_FY22[[#This Row],[25th]]","v":253949.4},259812,{"$f":"(((AAMC_Raw_Data_for_FY22[[#This Row],[75th]]-AAMC_Raw_Data_for_FY22[[#This Row],[Median]])/25)*5) + AAMC_Raw_Data_for_FY22[[#This Row],[Median]]","v":268177.8},{"$f":"(((AAMC_Raw_Data_for_FY22[[#This Row],[75th]]-AAMC_Raw_Data_for_FY22[[#This Row],[Median]])/25)*10) + AAMC_Raw_Data_for_FY22[[#This Row],[Median]]","v":276543.59999999998},{"$f":"(((AAMC_Raw_Data_for_FY22[[#This Row],[75th]]-AAMC_Raw_Data_for_FY22[[#This Row],[Median]])/25)*15) + AAMC_Raw_Data_for_FY22[[#This Row],[Median]]","v":284909.40000000002},{"$f":"(((AAMC_Raw_Data_for_FY22[[#This Row],[75th]]-AAMC_Raw_Data_for_FY22[[#This Row],[Median]])/25)*20) + AAMC_Raw_Data_for_FY22[[#This Row],[Median]]","v":293275.2},301641,{"$f":"(((AAMC_Raw_Data_for_FY22[[#This Row],[75th]]-AAMC_Raw_Data_for_FY22[[#This Row],[Median]])/25)*30) + AAMC_Raw_Data_for_FY22[[#This Row],[Median]]","v":310006.8},{"$f":"(((AAMC_Raw_Data_for_FY22[[#This Row],[75th]]-AAMC_Raw_Data_for_FY22[[#This Row],[Median]])/25)*35) + AAMC_Raw_Data_for_FY22[[#This Row],[Median]]","v":318372.59999999998},{"$f":"(((AAMC_Raw_Data_for_FY22[[#This Row],[75th]]-AAMC_Raw_Data_for_FY22[[#This Row],[Median]])/25)*40) + AAMC_Raw_Data_for_FY22[[#This Row],[Median]]","v":326738.40000000002}]
[{"$f":"AAMC_Raw_Data_for_FY22[[#This Row],[Source]]&AAMC_Raw_Data_for_FY22[[#This Row],[Type]]&AAMC_Raw_Data_for_FY22[[#This Row],[School Subset]]&AAMC_Raw_Data_for_FY22[[#This Row],[Rank]]&AAMC_Raw_Data_for_FY22[[#This Row],[Degree]]&AAMC_Raw_Data_for_FY22[[#This Row],[Department / Specialty]]&\"L\"","v":"AAMCAcademicAllChiefMDInfectious Disease-Peds.L"},"Infectious Disease-Peds.",6,"AAMC","Academic","All","Chief","MD","2021-2022",227486,{"$f":"(((AAMC_Raw_Data_for_FY22[[#This Row],[Median]]-AAMC_Raw_Data_for_FY22[[#This Row],[25th]])/25)*5) + AAMC_Raw_Data_for_FY22[[#This Row],[25th]]","v":237519},{"$f":"(((AAMC_Raw_Data_for_FY22[[#This Row],[Median]]-AAMC_Raw_Data_for_FY22[[#This Row],[25th]])/25)*10) + AAMC_Raw_Data_for_FY22[[#This Row],[25th]]","v":247552},{"$f":"(((AAMC_Raw_Data_for_FY22[[#This Row],[Median]]-AAMC_Raw_Data_for_FY22[[#This Row],[25th]])/25)*15) + AAMC_Raw_Data_for_FY22[[#This Row],[25th]]","v":257585},{"$f":"(((AAMC_Raw_Data_for_FY22[[#This Row],[Median]]-AAMC_Raw_Data_for_FY22[[#This Row],[25th]])/25)*20) + AAMC_Raw_Data_for_FY22[[#This Row],[25th]]","v":267618},277651,{"$f":"(((AAMC_Raw_Data_for_FY22[[#This Row],[75th]]-AAMC_Raw_Data_for_FY22[[#This Row],[Median]])/25)*5) + AAMC_Raw_Data_for_FY22[[#This Row],[Median]]","v":288655},{"$f":"(((AAMC_Raw_Data_for_FY22[[#This Row],[75th]]-AAMC_Raw_Data_for_FY22[[#This Row],[Median]])/25)*10) + AAMC_Raw_Data_for_FY22[[#This Row],[Median]]","v":299659},{"$f":"(((AAMC_Raw_Data_for_FY22[[#This Row],[75th]]-AAMC_Raw_Data_for_FY22[[#This Row],[Median]])/25)*15) + AAMC_Raw_Data_for_FY22[[#This Row],[Median]]","v":310663},{"$f":"(((AAMC_Raw_Data_for_FY22[[#This Row],[75th]]-AAMC_Raw_Data_for_FY22[[#This Row],[Median]])/25)*20) + AAMC_Raw_Data_for_FY22[[#This Row],[Median]]","v":321667},332671,{"$f":"(((AAMC_Raw_Data_for_FY22[[#This Row],[75th]]-AAMC_Raw_Data_for_FY22[[#This Row],[Median]])/25)*30) + AAMC_Raw_Data_for_FY22[[#This Row],[Median]]","v":343675},{"$f":"(((AAMC_Raw_Data_for_FY22[[#This Row],[75th]]-AAMC_Raw_Data_for_FY22[[#This Row],[Median]])/25)*35) + AAMC_Raw_Data_for_FY22[[#This Row],[Median]]","v":354679},{"$f":"(((AAMC_Raw_Data_for_FY22[[#This Row],[75th]]-AAMC_Raw_Data_for_FY22[[#This Row],[Median]])/25)*40) + AAMC_Raw_Data_for_FY22[[#This Row],[Median]]","v":365683}]
[{"$f":"AAMC_Raw_Data_for_FY22[[#This Row],[Source]]&AAMC_Raw_Data_for_FY22[[#This Row],[Type]]&AAMC_Raw_Data_for_FY22[[#This Row],[School Subset]]&AAMC_Raw_Data_for_FY22[[#This Row],[Rank]]&AAMC_Raw_Data_for_FY22[[#This Row],[Degree]]&AAMC_Raw_Data_for_FY22[[#This Row],[Department / Specialty]]&\"L\"","v":"AAMCAcademicAllChairMDInfectious Disease-Peds.L"},"Infectious Disease-Peds.",1,"AAMC","Academic","All","Chair","MD","2021-2022",526475,{"$f":"(((AAMC_Raw_Data_for_FY22[[#This Row],[Median]]-AAMC_Raw_Data_for_FY22[[#This Row],[25th]])/25)*5) + AAMC_Raw_Data_for_FY22[[#This Row],[25th]]","v":540591.80000000005},{"$f":"(((AAMC_Raw_Data_for_FY22[[#This Row],[Median]]-AAMC_Raw_Data_for_FY22[[#This Row],[25th]])/25)*10) + AAMC_Raw_Data_for_FY22[[#This Row],[25th]]","v":554708.6},{"$f":"(((AAMC_Raw_Data_for_FY22[[#This Row],[Median]]-AAMC_Raw_Data_for_FY22[[#This Row],[25th]])/25)*15) + AAMC_Raw_Data_for_FY22[[#This Row],[25th]]","v":568825.4},{"$f":"(((AAMC_Raw_Data_for_FY22[[#This Row],[Median]]-AAMC_Raw_Data_for_FY22[[#This Row],[25th]])/25)*20) + AAMC_Raw_Data_for_FY22[[#This Row],[25th]]","v":582942.19999999995},597059,{"$f":"(((AAMC_Raw_Data_for_FY22[[#This Row],[75th]]-AAMC_Raw_Data_for_FY22[[#This Row],[Median]])/25)*5) + AAMC_Raw_Data_for_FY22[[#This Row],[Median]]","v":624468},{"$f":"(((AAMC_Raw_Data_for_FY22[[#This Row],[75th]]-AAMC_Raw_Data_for_FY22[[#This Row],[Median]])/25)*10) + AAMC_Raw_Data_for_FY22[[#This Row],[Median]]","v":651877},{"$f":"(((AAMC_Raw_Data_for_FY22[[#This Row],[75th]]-AAMC_Raw_Data_for_FY22[[#This Row],[Median]])/25)*15) + AAMC_Raw_Data_for_FY22[[#This Row],[Median]]","v":679286},{"$f":"(((AAMC_Raw_Data_for_FY22[[#This Row],[75th]]-AAMC_Raw_Data_for_FY22[[#This Row],[Median]])/25)*20) + AAMC_Raw_Data_for_FY22[[#This Row],[Median]]","v":706695},734104,{"$f":"(((AAMC_Raw_Data_for_FY22[[#This Row],[75th]]-AAMC_Raw_Data_for_FY22[[#This Row],[Median]])/25)*30) + AAMC_Raw_Data_for_FY22[[#This Row],[Median]]","v":761513},{"$f":"(((AAMC_Raw_Data_for_FY22[[#This Row],[75th]]-AAMC_Raw_Data_for_FY22[[#This Row],[Median]])/25)*35) + AAMC_Raw_Data_for_FY22[[#This Row],[Median]]","v":788922},{"$f":"(((AAMC_Raw_Data_for_FY22[[#This Row],[75th]]-AAMC_Raw_Data_for_FY22[[#This Row],[Median]])/25)*40) + AAMC_Raw_Data_for_FY22[[#This Row],[Median]]","v":816331}]
[{"$f":"AAMC_Raw_Data_for_FY22[[#This Row],[Source]]&AAMC_Raw_Data_for_FY22[[#This Row],[Type]]&AAMC_Raw_Data_for_FY22[[#This Row],[School Subset]]&AAMC_Raw_Data_for_FY22[[#This Row],[Rank]]&AAMC_Raw_Data_for_FY22[[#This Row],[Degree]]&AAMC_Raw_Data_for_FY22[[#This Row],[Department / Specialty]]&\"L\"","v":"AAMCAcademicAllInstructorMDNeonatologyL"},"Neonatology",5,"AAMC","Academic","All","Instructor","MD","2021-2022",183123,{"$f":"(((AAMC_Raw_Data_for_FY22[[#This Row],[Median]]-AAMC_Raw_Data_for_FY22[[#This Row],[25th]])/25)*5) + AAMC_Raw_Data_for_FY22[[#This Row],[25th]]","v":192327.4},{"$f":"(((AAMC_Raw_Data_for_FY22[[#This Row],[Median]]-AAMC_Raw_Data_for_FY22[[#This Row],[25th]])/25)*10) + AAMC_Raw_Data_for_FY22[[#This Row],[25th]]","v":201531.8},{"$f":"(((AAMC_Raw_Data_for_FY22[[#This Row],[Median]]-AAMC_Raw_Data_for_FY22[[#This Row],[25th]])/25)*15) + AAMC_Raw_Data_for_FY22[[#This Row],[25th]]","v":210736.2},{"$f":"(((AAMC_Raw_Data_for_FY22[[#This Row],[Median]]-AAMC_Raw_Data_for_FY22[[#This Row],[25th]])/25)*20) + AAMC_Raw_Data_for_FY22[[#This Row],[25th]]","v":219940.6},229145,{"$f":"(((AAMC_Raw_Data_for_FY22[[#This Row],[75th]]-AAMC_Raw_Data_for_FY22[[#This Row],[Median]])/25)*5) + AAMC_Raw_Data_for_FY22[[#This Row],[Median]]","v":237328.8},{"$f":"(((AAMC_Raw_Data_for_FY22[[#This Row],[75th]]-AAMC_Raw_Data_for_FY22[[#This Row],[Median]])/25)*10) + AAMC_Raw_Data_for_FY22[[#This Row],[Median]]","v":245512.6},{"$f":"(((AAMC_Raw_Data_for_FY22[[#This Row],[75th]]-AAMC_Raw_Data_for_FY22[[#This Row],[Median]])/25)*15) + AAMC_Raw_Data_for_FY22[[#This Row],[Median]]","v":253696.4},{"$f":"(((AAMC_Raw_Data_for_FY22[[#This Row],[75th]]-AAMC_Raw_Data_for_FY22[[#This Row],[Median]])/25)*20) + AAMC_Raw_Data_for_FY22[[#This Row],[Median]]","v":261880.2},270064,{"$f":"(((AAMC_Raw_Data_for_FY22[[#This Row],[75th]]-AAMC_Raw_Data_for_FY22[[#This Row],[Median]])/25)*30) + AAMC_Raw_Data_for_FY22[[#This Row],[Median]]","v":278247.8},{"$f":"(((AAMC_Raw_Data_for_FY22[[#This Row],[75th]]-AAMC_Raw_Data_for_FY22[[#This Row],[Median]])/25)*35) + AAMC_Raw_Data_for_FY22[[#This Row],[Median]]","v":286431.59999999998},{"$f":"(((AAMC_Raw_Data_for_FY22[[#This Row],[75th]]-AAMC_Raw_Data_for_FY22[[#This Row],[Median]])/25)*40) + AAMC_Raw_Data_for_FY22[[#This Row],[Median]]","v":294615.40000000002}]
[{"$f":"AAMC_Raw_Data_for_FY22[[#This Row],[Source]]&AAMC_Raw_Data_for_FY22[[#This Row],[Type]]&AAMC_Raw_Data_for_FY22[[#This Row],[School Subset]]&AAMC_Raw_Data_for_FY22[[#This Row],[Rank]]&AAMC_Raw_Data_for_FY22[[#This Row],[Degree]]&AAMC_Raw_Data_for_FY22[[#This Row],[Department / Specialty]]&\"L\"","v":"AAMCAcademicAllAssistantMDNeonatologyL"},"Neonatology",4,"AAMC","Academic","All","Assistant","MD","2021-2022",233671,{"$f":"(((AAMC_Raw_Data_for_FY22[[#This Row],[Median]]-AAMC_Raw_Data_for_FY22[[#This Row],[25th]])/25)*5) + AAMC_Raw_Data_for_FY22[[#This Row],[25th]]","v":239808.8},{"$f":"(((AAMC_Raw_Data_for_FY22[[#This Row],[Median]]-AAMC_Raw_Data_for_FY22[[#This Row],[25th]])/25)*10) + AAMC_Raw_Data_for_FY22[[#This Row],[25th]]","v":245946.6},{"$f":"(((AAMC_Raw_Data_for_FY22[[#This Row],[Median]]-AAMC_Raw_Data_for_FY22[[#This Row],[25th]])/25)*15) + AAMC_Raw_Data_for_FY22[[#This Row],[25th]]","v":252084.4},{"$f":"(((AAMC_Raw_Data_for_FY22[[#This Row],[Median]]-AAMC_Raw_Data_for_FY22[[#This Row],[25th]])/25)*20) + AAMC_Raw_Data_for_FY22[[#This Row],[25th]]","v":258222.2},264360,{"$f":"(((AAMC_Raw_Data_for_FY22[[#This Row],[75th]]-AAMC_Raw_Data_for_FY22[[#This Row],[Median]])/25)*5) + AAMC_Raw_Data_for_FY22[[#This Row],[Median]]","v":274042.59999999998},{"$f":"(((AAMC_Raw_Data_for_FY22[[#This Row],[75th]]-AAMC_Raw_Data_for_FY22[[#This Row],[Median]])/25)*10) + AAMC_Raw_Data_for_FY22[[#This Row],[Median]]","v":283725.2},{"$f":"(((AAMC_Raw_Data_for_FY22[[#This Row],[75th]]-AAMC_Raw_Data_for_FY22[[#This Row],[Median]])/25)*15) + AAMC_Raw_Data_for_FY22[[#This Row],[Median]]","v":293407.8},{"$f":"(((AAMC_Raw_Data_for_FY22[[#This Row],[75th]]-AAMC_Raw_Data_for_FY22[[#This Row],[Median]])/25)*20) + AAMC_Raw_Data_for_FY22[[#This Row],[Median]]","v":303090.40000000002},312773,{"$f":"(((AAMC_Raw_Data_for_FY22[[#This Row],[75th]]-AAMC_Raw_Data_for_FY22[[#This Row],[Median]])/25)*30) + AAMC_Raw_Data_for_FY22[[#This Row],[Median]]","v":322455.59999999998},{"$f":"(((AAMC_Raw_Data_for_FY22[[#This Row],[75th]]-AAMC_Raw_Data_for_FY22[[#This Row],[Median]])/25)*35) + AAMC_Raw_Data_for_FY22[[#This Row],[Median]]","v":332138.2},{"$f":"(((AAMC_Raw_Data_for_FY22[[#This Row],[75th]]-AAMC_Raw_Data_for_FY22[[#This Row],[Median]])/25)*40) + AAMC_Raw_Data_for_FY22[[#This Row],[Median]]","v":341820.8}]
[{"$f":"AAMC_Raw_Data_for_FY22[[#This Row],[Source]]&AAMC_Raw_Data_for_FY22[[#This Row],[Type]]&AAMC_Raw_Data_for_FY22[[#This Row],[School Subset]]&AAMC_Raw_Data_for_FY22[[#This Row],[Rank]]&AAMC_Raw_Data_for_FY22[[#This Row],[Degree]]&AAMC_Raw_Data_for_FY22[[#This Row],[Department / Specialty]]&\"L\"","v":"AAMCAcademicAllAssociateMDNeonatologyL"},"Neonatology",3,"AAMC","Academic","All","Associate","MD","2021-2022",274837,{"$f":"(((AAMC_Raw_Data_for_FY22[[#This Row],[Median]]-AAMC_Raw_Data_for_FY22[[#This Row],[25th]])/25)*5) + AAMC_Raw_Data_for_FY22[[#This Row],[25th]]","v":281488.59999999998},{"$f":"(((AAMC_Raw_Data_for_FY22[[#This Row],[Median]]-AAMC_Raw_Data_for_FY22[[#This Row],[25th]])/25)*10) + AAMC_Raw_Data_for_FY22[[#This Row],[25th]]","v":288140.2},{"$f":"(((AAMC_Raw_Data_for_FY22[[#This Row],[Median]]-AAMC_Raw_Data_for_FY22[[#This Row],[25th]])/25)*15) + AAMC_Raw_Data_for_FY22[[#This Row],[25th]]","v":294791.8},{"$f":"(((AAMC_Raw_Data_for_FY22[[#This Row],[Median]]-AAMC_Raw_Data_for_FY22[[#This Row],[25th]])/25)*20) + AAMC_Raw_Data_for_FY22[[#This Row],[25th]]","v":301443.40000000002},308095,{"$f":"(((AAMC_Raw_Data_for_FY22[[#This Row],[75th]]-AAMC_Raw_Data_for_FY22[[#This Row],[Median]])/25)*5) + AAMC_Raw_Data_for_FY22[[#This Row],[Median]]","v":317353.59999999998},{"$f":"(((AAMC_Raw_Data_for_FY22[[#This Row],[75th]]-AAMC_Raw_Data_for_FY22[[#This Row],[Median]])/25)*10) + AAMC_Raw_Data_for_FY22[[#This Row],[Median]]","v":326612.2},{"$f":"(((AAMC_Raw_Data_for_FY22[[#This Row],[75th]]-AAMC_Raw_Data_for_FY22[[#This Row],[Median]])/25)*15) + AAMC_Raw_Data_for_FY22[[#This Row],[Median]]","v":335870.8},{"$f":"(((AAMC_Raw_Data_for_FY22[[#This Row],[75th]]-AAMC_Raw_Data_for_FY22[[#This Row],[Median]])/25)*20) + AAMC_Raw_Data_for_FY22[[#This Row],[Median]]","v":345129.4},354388,{"$f":"(((AAMC_Raw_Data_for_FY22[[#This Row],[75th]]-AAMC_Raw_Data_for_FY22[[#This Row],[Median]])/25)*30) + AAMC_Raw_Data_for_FY22[[#This Row],[Median]]","v":363646.6},{"$f":"(((AAMC_Raw_Data_for_FY22[[#This Row],[75th]]-AAMC_Raw_Data_for_FY22[[#This Row],[Median]])/25)*35) + AAMC_Raw_Data_for_FY22[[#This Row],[Median]]","v":372905.2},{"$f":"(((AAMC_Raw_Data_for_FY22[[#This Row],[75th]]-AAMC_Raw_Data_for_FY22[[#This Row],[Median]])/25)*40) + AAMC_Raw_Data_for_FY22[[#This Row],[Median]]","v":382163.8}]
[{"$f":"AAMC_Raw_Data_for_FY22[[#This Row],[Source]]&AAMC_Raw_Data_for_FY22[[#This Row],[Type]]&AAMC_Raw_Data_for_FY22[[#This Row],[School Subset]]&AAMC_Raw_Data_for_FY22[[#This Row],[Rank]]&AAMC_Raw_Data_for_FY22[[#This Row],[Degree]]&AAMC_Raw_Data_for_FY22[[#This Row],[Department / Specialty]]&\"L\"","v":"AAMCAcademicAllProfessorMDNeonatologyL"},"Neonatology",2,"AAMC","Academic","All","Professor","MD","2021-2022",318510,{"$f":"(((AAMC_Raw_Data_for_FY22[[#This Row],[Median]]-AAMC_Raw_Data_for_FY22[[#This Row],[25th]])/25)*5) + AAMC_Raw_Data_for_FY22[[#This Row],[25th]]","v":326273.40000000002},{"$f":"(((AAMC_Raw_Data_for_FY22[[#This Row],[Median]]-AAMC_Raw_Data_for_FY22[[#This Row],[25th]])/25)*10) + AAMC_Raw_Data_for_FY22[[#This Row],[25th]]","v":334036.8},{"$f":"(((AAMC_Raw_Data_for_FY22[[#This Row],[Median]]-AAMC_Raw_Data_for_FY22[[#This Row],[25th]])/25)*15) + AAMC_Raw_Data_for_FY22[[#This Row],[25th]]","v":341800.2},{"$f":"(((AAMC_Raw_Data_for_FY22[[#This Row],[Median]]-AAMC_Raw_Data_for_FY22[[#This Row],[25th]])/25)*20) + AAMC_Raw_Data_for_FY22[[#This Row],[25th]]","v":349563.6},357327,{"$f":"(((AAMC_Raw_Data_for_FY22[[#This Row],[75th]]-AAMC_Raw_Data_for_FY22[[#This Row],[Median]])/25)*5) + AAMC_Raw_Data_for_FY22[[#This Row],[Median]]","v":367551.8},{"$f":"(((AAMC_Raw_Data_for_FY22[[#This Row],[75th]]-AAMC_Raw_Data_for_FY22[[#This Row],[Median]])/25)*10) + AAMC_Raw_Data_for_FY22[[#This Row],[Median]]","v":377776.6},{"$f":"(((AAMC_Raw_Data_for_FY22[[#This Row],[75th]]-AAMC_Raw_Data_for_FY22[[#This Row],[Median]])/25)*15) + AAMC_Raw_Data_for_FY22[[#This Row],[Median]]","v":388001.4},{"$f":"(((AAMC_Raw_Data_for_FY22[[#This Row],[75th]]-AAMC_Raw_Data_for_FY22[[#This Row],[Median]])/25)*20) + AAMC_Raw_Data_for_FY22[[#This Row],[Median]]","v":398226.2},408451,{"$f":"(((AAMC_Raw_Data_for_FY22[[#This Row],[75th]]-AAMC_Raw_Data_for_FY22[[#This Row],[Median]])/25)*30) + AAMC_Raw_Data_for_FY22[[#This Row],[Median]]","v":418675.8},{"$f":"(((AAMC_Raw_Data_for_FY22[[#This Row],[75th]]-AAMC_Raw_Data_for_FY22[[#This Row],[Median]])/25)*35) + AAMC_Raw_Data_for_FY22[[#This Row],[Median]]","v":428900.6},{"$f":"(((AAMC_Raw_Data_for_FY22[[#This Row],[75th]]-AAMC_Raw_Data_for_FY22[[#This Row],[Median]])/25)*40) + AAMC_Raw_Data_for_FY22[[#This Row],[Median]]","v":439125.4}]
[{"$f":"AAMC_Raw_Data_for_FY22[[#This Row],[Source]]&AAMC_Raw_Data_for_FY22[[#This Row],[Type]]&AAMC_Raw_Data_for_FY22[[#This Row],[School Subset]]&AAMC_Raw_Data_for_FY22[[#This Row],[Rank]]&AAMC_Raw_Data_for_FY22[[#This Row],[Degree]]&AAMC_Raw_Data_for_FY22[[#This Row],[Department / Specialty]]&\"L\"","v":"AAMCAcademicAllChiefMDNeonatologyL"},"Neonatology",6,"AAMC","Academic","All","Chief","MD","2021-2022",371672,{"$f":"(((AAMC_Raw_Data_for_FY22[[#This Row],[Median]]-AAMC_Raw_Data_for_FY22[[#This Row],[25th]])/25)*5) + AAMC_Raw_Data_for_FY22[[#This Row],[25th]]","v":382757.6},{"$f":"(((AAMC_Raw_Data_for_FY22[[#This Row],[Median]]-AAMC_Raw_Data_for_FY22[[#This Row],[25th]])/25)*10) + AAMC_Raw_Data_for_FY22[[#This Row],[25th]]","v":393843.20000000001},{"$f":"(((AAMC_Raw_Data_for_FY22[[#This Row],[Median]]-AAMC_Raw_Data_for_FY22[[#This Row],[25th]])/25)*15) + AAMC_Raw_Data_for_FY22[[#This Row],[25th]]","v":404928.8},{"$f":"(((AAMC_Raw_Data_for_FY22[[#This Row],[Median]]-AAMC_Raw_Data_for_FY22[[#This Row],[25th]])/25)*20) + AAMC_Raw_Data_for_FY22[[#This Row],[25th]]","v":416014.4},427100,{"$f":"(((AAMC_Raw_Data_for_FY22[[#This Row],[75th]]-AAMC_Raw_Data_for_FY22[[#This Row],[Median]])/25)*5) + AAMC_Raw_Data_for_FY22[[#This Row],[Median]]","v":439621.6},{"$f":"(((AAMC_Raw_Data_for_FY22[[#This Row],[75th]]-AAMC_Raw_Data_for_FY22[[#This Row],[Median]])/25)*10) + AAMC_Raw_Data_for_FY22[[#This Row],[Median]]","v":452143.2},{"$f":"(((AAMC_Raw_Data_for_FY22[[#This Row],[75th]]-AAMC_Raw_Data_for_FY22[[#This Row],[Median]])/25)*15) + AAMC_Raw_Data_for_FY22[[#This Row],[Median]]","v":464664.8},{"$f":"(((AAMC_Raw_Data_for_FY22[[#This Row],[75th]]-AAMC_Raw_Data_for_FY22[[#This Row],[Median]])/25)*20) + AAMC_Raw_Data_for_FY22[[#This Row],[Median]]","v":477186.4},489708,{"$f":"(((AAMC_Raw_Data_for_FY22[[#This Row],[75th]]-AAMC_Raw_Data_for_FY22[[#This Row],[Median]])/25)*30) + AAMC_Raw_Data_for_FY22[[#This Row],[Median]]","v":502229.6},{"$f":"(((AAMC_Raw_Data_for_FY22[[#This Row],[75th]]-AAMC_Raw_Data_for_FY22[[#This Row],[Median]])/25)*35) + AAMC_Raw_Data_for_FY22[[#This Row],[Median]]","v":514751.2},{"$f":"(((AAMC_Raw_Data_for_FY22[[#This Row],[75th]]-AAMC_Raw_Data_for_FY22[[#This Row],[Median]])/25)*40) + AAMC_Raw_Data_for_FY22[[#This Row],[Median]]","v":527272.80000000005}]
[{"$f":"AAMC_Raw_Data_for_FY22[[#This Row],[Source]]&AAMC_Raw_Data_for_FY22[[#This Row],[Type]]&AAMC_Raw_Data_for_FY22[[#This Row],[School Subset]]&AAMC_Raw_Data_for_FY22[[#This Row],[Rank]]&AAMC_Raw_Data_for_FY22[[#This Row],[Degree]]&AAMC_Raw_Data_for_FY22[[#This Row],[Department / Specialty]]&\"L\"","v":"AAMCAcademicAllChairMDNeonatologyL"},"Neonatology",1,"AAMC","Academic","All","Chair","MD","2021-2022",520631,{"$f":"(((AAMC_Raw_Data_for_FY22[[#This Row],[Median]]-AAMC_Raw_Data_for_FY22[[#This Row],[25th]])/25)*5) + AAMC_Raw_Data_for_FY22[[#This Row],[25th]]","v":541265.6},{"$f":"(((AAMC_Raw_Data_for_FY22[[#This Row],[Median]]-AAMC_Raw_Data_for_FY22[[#This Row],[25th]])/25)*10) + AAMC_Raw_Data_for_FY22[[#This Row],[25th]]","v":561900.19999999995},{"$f":"(((AAMC_Raw_Data_for_FY22[[#This Row],[Median]]-AAMC_Raw_Data_for_FY22[[#This Row],[25th]])/25)*15) + AAMC_Raw_Data_for_FY22[[#This Row],[25th]]","v":582534.80000000005},{"$f":"(((AAMC_Raw_Data_for_FY22[[#This Row],[Median]]-AAMC_Raw_Data_for_FY22[[#This Row],[25th]])/25)*20) + AAMC_Raw_Data_for_FY22[[#This Row],[25th]]","v":603169.4},623804,{"$f":"(((AAMC_Raw_Data_for_FY22[[#This Row],[75th]]-AAMC_Raw_Data_for_FY22[[#This Row],[Median]])/25)*5) + AAMC_Raw_Data_for_FY22[[#This Row],[Median]]","v":639668.19999999995},{"$f":"(((AAMC_Raw_Data_for_FY22[[#This Row],[75th]]-AAMC_Raw_Data_for_FY22[[#This Row],[Median]])/25)*10) + AAMC_Raw_Data_for_FY22[[#This Row],[Median]]","v":655532.4},{"$f":"(((AAMC_Raw_Data_for_FY22[[#This Row],[75th]]-AAMC_Raw_Data_for_FY22[[#This Row],[Median]])/25)*15) + AAMC_Raw_Data_for_FY22[[#This Row],[Median]]","v":671396.6},{"$f":"(((AAMC_Raw_Data_for_FY22[[#This Row],[75th]]-AAMC_Raw_Data_for_FY22[[#This Row],[Median]])/25)*20) + AAMC_Raw_Data_for_FY22[[#This Row],[Median]]","v":687260.8},703125,{"$f":"(((AAMC_Raw_Data_for_FY22[[#This Row],[75th]]-AAMC_Raw_Data_for_FY22[[#This Row],[Median]])/25)*30) + AAMC_Raw_Data_for_FY22[[#This Row],[Median]]","v":718989.2},{"$f":"(((AAMC_Raw_Data_for_FY22[[#This Row],[75th]]-AAMC_Raw_Data_for_FY22[[#This Row],[Median]])/25)*35) + AAMC_Raw_Data_for_FY22[[#This Row],[Median]]","v":734853.4},{"$f":"(((AAMC_Raw_Data_for_FY22[[#This Row],[75th]]-AAMC_Raw_Data_for_FY22[[#This Row],[Median]])/25)*40) + AAMC_Raw_Data_for_FY22[[#This Row],[Median]]","v":750717.6}]
[{"$f":"AAMC_Raw_Data_for_FY22[[#This Row],[Source]]&AAMC_Raw_Data_for_FY22[[#This Row],[Type]]&AAMC_Raw_Data_for_FY22[[#This Row],[School Subset]]&AAMC_Raw_Data_for_FY22[[#This Row],[Rank]]&AAMC_Raw_Data_for_FY22[[#This Row],[Degree]]&AAMC_Raw_Data_for_FY22[[#This Row],[Department / Specialty]]&\"L\"","v":"AAMCAcademicAllInstructorMDNephrology-Peds.L"},"Nephrology-Peds.",5,"AAMC","Academic","All","Instructor","MD","2021-2022",141440,{"$f":"(((AAMC_Raw_Data_for_FY22[[#This Row],[Median]]-AAMC_Raw_Data_for_FY22[[#This Row],[25th]])/25)*5) + AAMC_Raw_Data_for_FY22[[#This Row],[25th]]","v":145586},{"$f":"(((AAMC_Raw_Data_for_FY22[[#This Row],[Median]]-AAMC_Raw_Data_for_FY22[[#This Row],[25th]])/25)*10) + AAMC_Raw_Data_for_FY22[[#This Row],[25th]]","v":149732},{"$f":"(((AAMC_Raw_Data_for_FY22[[#This Row],[Median]]-AAMC_Raw_Data_for_FY22[[#This Row],[25th]])/25)*15) + AAMC_Raw_Data_for_FY22[[#This Row],[25th]]","v":153878},{"$f":"(((AAMC_Raw_Data_for_FY22[[#This Row],[Median]]-AAMC_Raw_Data_for_FY22[[#This Row],[25th]])/25)*20) + AAMC_Raw_Data_for_FY22[[#This Row],[25th]]","v":158024},162170,{"$f":"(((AAMC_Raw_Data_for_FY22[[#This Row],[75th]]-AAMC_Raw_Data_for_FY22[[#This Row],[Median]])/25)*5) + AAMC_Raw_Data_for_FY22[[#This Row],[Median]]","v":162736},{"$f":"(((AAMC_Raw_Data_for_FY22[[#This Row],[75th]]-AAMC_Raw_Data_for_FY22[[#This Row],[Median]])/25)*10) + AAMC_Raw_Data_for_FY22[[#This Row],[Median]]","v":163302},{"$f":"(((AAMC_Raw_Data_for_FY22[[#This Row],[75th]]-AAMC_Raw_Data_for_FY22[[#This Row],[Median]])/25)*15) + AAMC_Raw_Data_for_FY22[[#This Row],[Median]]","v":163868},{"$f":"(((AAMC_Raw_Data_for_FY22[[#This Row],[75th]]-AAMC_Raw_Data_for_FY22[[#This Row],[Median]])/25)*20) + AAMC_Raw_Data_for_FY22[[#This Row],[Median]]","v":164434},165000,{"$f":"(((AAMC_Raw_Data_for_FY22[[#This Row],[75th]]-AAMC_Raw_Data_for_FY22[[#This Row],[Median]])/25)*30) + AAMC_Raw_Data_for_FY22[[#This Row],[Median]]","v":165566},{"$f":"(((AAMC_Raw_Data_for_FY22[[#This Row],[75th]]-AAMC_Raw_Data_for_FY22[[#This Row],[Median]])/25)*35) + AAMC_Raw_Data_for_FY22[[#This Row],[Median]]","v":166132},{"$f":"(((AAMC_Raw_Data_for_FY22[[#This Row],[75th]]-AAMC_Raw_Data_for_FY22[[#This Row],[Median]])/25)*40) + AAMC_Raw_Data_for_FY22[[#This Row],[Median]]","v":166698}]
[{"$f":"AAMC_Raw_Data_for_FY22[[#This Row],[Source]]&AAMC_Raw_Data_for_FY22[[#This Row],[Type]]&AAMC_Raw_Data_for_FY22[[#This Row],[School Subset]]&AAMC_Raw_Data_for_FY22[[#This Row],[Rank]]&AAMC_Raw_Data_for_FY22[[#This Row],[Degree]]&AAMC_Raw_Data_for_FY22[[#This Row],[Department / Specialty]]&\"L\"","v":"AAMCAcademicAllAssistantMDNephrology-Peds.L"},"Nephrology-Peds.",4,"AAMC","Academic","All","Assistant","MD","2021-2022",169976,{"$f":"(((AAMC_Raw_Data_for_FY22[[#This Row],[Median]]-AAMC_Raw_Data_for_FY22[[#This Row],[25th]])/25)*5) + AAMC_Raw_Data_for_FY22[[#This Row],[25th]]","v":171633},{"$f":"(((AAMC_Raw_Data_for_FY22[[#This Row],[Median]]-AAMC_Raw_Data_for_FY22[[#This Row],[25th]])/25)*10) + AAMC_Raw_Data_for_FY22[[#This Row],[25th]]","v":173290},{"$f":"(((AAMC_Raw_Data_for_FY22[[#This Row],[Median]]-AAMC_Raw_Data_for_FY22[[#This Row],[25th]])/25)*15) + AAMC_Raw_Data_for_FY22[[#This Row],[25th]]","v":174947},{"$f":"(((AAMC_Raw_Data_for_FY22[[#This Row],[Median]]-AAMC_Raw_Data_for_FY22[[#This Row],[25th]])/25)*20) + AAMC_Raw_Data_for_FY22[[#This Row],[25th]]","v":176604},178261,{"$f":"(((AAMC_Raw_Data_for_FY22[[#This Row],[75th]]-AAMC_Raw_Data_for_FY22[[#This Row],[Median]])/25)*5) + AAMC_Raw_Data_for_FY22[[#This Row],[Median]]","v":180592.2},{"$f":"(((AAMC_Raw_Data_for_FY22[[#This Row],[75th]]-AAMC_Raw_Data_for_FY22[[#This Row],[Median]])/25)*10) + AAMC_Raw_Data_for_FY22[[#This Row],[Median]]","v":182923.4},{"$f":"(((AAMC_Raw_Data_for_FY22[[#This Row],[75th]]-AAMC_Raw_Data_for_FY22[[#This Row],[Median]])/25)*15) + AAMC_Raw_Data_for_FY22[[#This Row],[Median]]","v":185254.6},{"$f":"(((AAMC_Raw_Data_for_FY22[[#This Row],[75th]]-AAMC_Raw_Data_for_FY22[[#This Row],[Median]])/25)*20) + AAMC_Raw_Data_for_FY22[[#This Row],[Median]]","v":187585.8},189917,{"$f":"(((AAMC_Raw_Data_for_FY22[[#This Row],[75th]]-AAMC_Raw_Data_for_FY22[[#This Row],[Median]])/25)*30) + AAMC_Raw_Data_for_FY22[[#This Row],[Median]]","v":192248.2},{"$f":"(((AAMC_Raw_Data_for_FY22[[#This Row],[75th]]-AAMC_Raw_Data_for_FY22[[#This Row],[Median]])/25)*35) + AAMC_Raw_Data_for_FY22[[#This Row],[Median]]","v":194579.4},{"$f":"(((AAMC_Raw_Data_for_FY22[[#This Row],[75th]]-AAMC_Raw_Data_for_FY22[[#This Row],[Median]])/25)*40) + AAMC_Raw_Data_for_FY22[[#This Row],[Median]]","v":196910.6}]
[{"$f":"AAMC_Raw_Data_for_FY22[[#This Row],[Source]]&AAMC_Raw_Data_for_FY22[[#This Row],[Type]]&AAMC_Raw_Data_for_FY22[[#This Row],[School Subset]]&AAMC_Raw_Data_for_FY22[[#This Row],[Rank]]&AAMC_Raw_Data_for_FY22[[#This Row],[Degree]]&AAMC_Raw_Data_for_FY22[[#This Row],[Department / Specialty]]&\"L\"","v":"AAMCAcademicAllAssociateMDNephrology-Peds.L"},"Nephrology-Peds.",3,"AAMC","Academic","All","Associate","MD","2021-2022",201994,{"$f":"(((AAMC_Raw_Data_for_FY22[[#This Row],[Median]]-AAMC_Raw_Data_for_FY22[[#This Row],[25th]])/25)*5) + AAMC_Raw_Data_for_FY22[[#This Row],[25th]]","v":205679.6},{"$f":"(((AAMC_Raw_Data_for_FY22[[#This Row],[Median]]-AAMC_Raw_Data_for_FY22[[#This Row],[25th]])/25)*10) + AAMC_Raw_Data_for_FY22[[#This Row],[25th]]","v":209365.2},{"$f":"(((AAMC_Raw_Data_for_FY22[[#This Row],[Median]]-AAMC_Raw_Data_for_FY22[[#This Row],[25th]])/25)*15) + AAMC_Raw_Data_for_FY22[[#This Row],[25th]]","v":213050.8},{"$f":"(((AAMC_Raw_Data_for_FY22[[#This Row],[Median]]-AAMC_Raw_Data_for_FY22[[#This Row],[25th]])/25)*20) + AAMC_Raw_Data_for_FY22[[#This Row],[25th]]","v":216736.4},220422,{"$f":"(((AAMC_Raw_Data_for_FY22[[#This Row],[75th]]-AAMC_Raw_Data_for_FY22[[#This Row],[Median]])/25)*5) + AAMC_Raw_Data_for_FY22[[#This Row],[Median]]","v":224614.6},{"$f":"(((AAMC_Raw_Data_for_FY22[[#This Row],[75th]]-AAMC_Raw_Data_for_FY22[[#This Row],[Median]])/25)*10) + AAMC_Raw_Data_for_FY22[[#This Row],[Median]]","v":228807.2},{"$f":"(((AAMC_Raw_Data_for_FY22[[#This Row],[75th]]-AAMC_Raw_Data_for_FY22[[#This Row],[Median]])/25)*15) + AAMC_Raw_Data_for_FY22[[#This Row],[Median]]","v":232999.8},{"$f":"(((AAMC_Raw_Data_for_FY22[[#This Row],[75th]]-AAMC_Raw_Data_for_FY22[[#This Row],[Median]])/25)*20) + AAMC_Raw_Data_for_FY22[[#This Row],[Median]]","v":237192.4},241385,{"$f":"(((AAMC_Raw_Data_for_FY22[[#This Row],[75th]]-AAMC_Raw_Data_for_FY22[[#This Row],[Median]])/25)*30) + AAMC_Raw_Data_for_FY22[[#This Row],[Median]]","v":245577.60000000001},{"$f":"(((AAMC_Raw_Data_for_FY22[[#This Row],[75th]]-AAMC_Raw_Data_for_FY22[[#This Row],[Median]])/25)*35) + AAMC_Raw_Data_for_FY22[[#This Row],[Median]]","v":249770.2},{"$f":"(((AAMC_Raw_Data_for_FY22[[#This Row],[75th]]-AAMC_Raw_Data_for_FY22[[#This Row],[Median]])/25)*40) + AAMC_Raw_Data_for_FY22[[#This Row],[Median]]","v":253962.8}]
[{"$f":"AAMC_Raw_Data_for_FY22[[#This Row],[Source]]&AAMC_Raw_Data_for_FY22[[#This Row],[Type]]&AAMC_Raw_Data_for_FY22[[#This Row],[School Subset]]&AAMC_Raw_Data_for_FY22[[#This Row],[Rank]]&AAMC_Raw_Data_for_FY22[[#This Row],[Degree]]&AAMC_Raw_Data_for_FY22[[#This Row],[Department / Specialty]]&\"L\"","v":"AAMCAcademicAllProfessorMDNephrology-Peds.L"},"Nephrology-Peds.",2,"AAMC","Academic","All","Professor","MD","2021-2022",249296,{"$f":"(((AAMC_Raw_Data_for_FY22[[#This Row],[Median]]-AAMC_Raw_Data_for_FY22[[#This Row],[25th]])/25)*5) + AAMC_Raw_Data_for_FY22[[#This Row],[25th]]","v":255091},{"$f":"(((AAMC_Raw_Data_for_FY22[[#This Row],[Median]]-AAMC_Raw_Data_for_FY22[[#This Row],[25th]])/25)*10) + AAMC_Raw_Data_for_FY22[[#This Row],[25th]]","v":260886},{"$f":"(((AAMC_Raw_Data_for_FY22[[#This Row],[Median]]-AAMC_Raw_Data_for_FY22[[#This Row],[25th]])/25)*15) + AAMC_Raw_Data_for_FY22[[#This Row],[25th]]","v":266681},{"$f":"(((AAMC_Raw_Data_for_FY22[[#This Row],[Median]]-AAMC_Raw_Data_for_FY22[[#This Row],[25th]])/25)*20) + AAMC_Raw_Data_for_FY22[[#This Row],[25th]]","v":272476},278271,{"$f":"(((AAMC_Raw_Data_for_FY22[[#This Row],[75th]]-AAMC_Raw_Data_for_FY22[[#This Row],[Median]])/25)*5) + AAMC_Raw_Data_for_FY22[[#This Row],[Median]]","v":288371.59999999998},{"$f":"(((AAMC_Raw_Data_for_FY22[[#This Row],[75th]]-AAMC_Raw_Data_for_FY22[[#This Row],[Median]])/25)*10) + AAMC_Raw_Data_for_FY22[[#This Row],[Median]]","v":298472.2},{"$f":"(((AAMC_Raw_Data_for_FY22[[#This Row],[75th]]-AAMC_Raw_Data_for_FY22[[#This Row],[Median]])/25)*15) + AAMC_Raw_Data_for_FY22[[#This Row],[Median]]","v":308572.79999999999},{"$f":"(((AAMC_Raw_Data_for_FY22[[#This Row],[75th]]-AAMC_Raw_Data_for_FY22[[#This Row],[Median]])/25)*20) + AAMC_Raw_Data_for_FY22[[#This Row],[Median]]","v":318673.40000000002},328774,{"$f":"(((AAMC_Raw_Data_for_FY22[[#This Row],[75th]]-AAMC_Raw_Data_for_FY22[[#This Row],[Median]])/25)*30) + AAMC_Raw_Data_for_FY22[[#This Row],[Median]]","v":338874.6},{"$f":"(((AAMC_Raw_Data_for_FY22[[#This Row],[75th]]-AAMC_Raw_Data_for_FY22[[#This Row],[Median]])/25)*35) + AAMC_Raw_Data_for_FY22[[#This Row],[Median]]","v":348975.2},{"$f":"(((AAMC_Raw_Data_for_FY22[[#This Row],[75th]]-AAMC_Raw_Data_for_FY22[[#This Row],[Median]])/25)*40) + AAMC_Raw_Data_for_FY22[[#This Row],[Median]]","v":359075.8}]
[{"$f":"AAMC_Raw_Data_for_FY22[[#This Row],[Source]]&AAMC_Raw_Data_for_FY22[[#This Row],[Type]]&AAMC_Raw_Data_for_FY22[[#This Row],[School Subset]]&AAMC_Raw_Data_for_FY22[[#This Row],[Rank]]&AAMC_Raw_Data_for_FY22[[#This Row],[Degree]]&AAMC_Raw_Data_for_FY22[[#This Row],[Department / Specialty]]&\"L\"","v":"AAMCAcademicAllChiefMDNephrology-Peds.L"},"Nephrology-Peds.",6,"AAMC","Academic","All","Chief","MD","2021-2022",247238,{"$f":"(((AAMC_Raw_Data_for_FY22[[#This Row],[Median]]-AAMC_Raw_Data_for_FY22[[#This Row],[25th]])/25)*5) + AAMC_Raw_Data_for_FY22[[#This Row],[25th]]","v":252659.20000000001},{"$f":"(((AAMC_Raw_Data_for_FY22[[#This Row],[Median]]-AAMC_Raw_Data_for_FY22[[#This Row],[25th]])/25)*10) + AAMC_Raw_Data_for_FY22[[#This Row],[25th]]","v":258080.4},{"$f":"(((AAMC_Raw_Data_for_FY22[[#This Row],[Median]]-AAMC_Raw_Data_for_FY22[[#This Row],[25th]])/25)*15) + AAMC_Raw_Data_for_FY22[[#This Row],[25th]]","v":263501.59999999998},{"$f":"(((AAMC_Raw_Data_for_FY22[[#This Row],[Median]]-AAMC_Raw_Data_for_FY22[[#This Row],[25th]])/25)*20) + AAMC_Raw_Data_for_FY22[[#This Row],[25th]]","v":268922.8},274344,{"$f":"(((AAMC_Raw_Data_for_FY22[[#This Row],[75th]]-AAMC_Raw_Data_for_FY22[[#This Row],[Median]])/25)*5) + AAMC_Raw_Data_for_FY22[[#This Row],[Median]]","v":283719.40000000002},{"$f":"(((AAMC_Raw_Data_for_FY22[[#This Row],[75th]]-AAMC_Raw_Data_for_FY22[[#This Row],[Median]])/25)*10) + AAMC_Raw_Data_for_FY22[[#This Row],[Median]]","v":293094.8},{"$f":"(((AAMC_Raw_Data_for_FY22[[#This Row],[75th]]-AAMC_Raw_Data_for_FY22[[#This Row],[Median]])/25)*15) + AAMC_Raw_Data_for_FY22[[#This Row],[Median]]","v":302470.2},{"$f":"(((AAMC_Raw_Data_for_FY22[[#This Row],[75th]]-AAMC_Raw_Data_for_FY22[[#This Row],[Median]])/25)*20) + AAMC_Raw_Data_for_FY22[[#This Row],[Median]]","v":311845.59999999998},321221,{"$f":"(((AAMC_Raw_Data_for_FY22[[#This Row],[75th]]-AAMC_Raw_Data_for_FY22[[#This Row],[Median]])/25)*30) + AAMC_Raw_Data_for_FY22[[#This Row],[Median]]","v":330596.40000000002},{"$f":"(((AAMC_Raw_Data_for_FY22[[#This Row],[75th]]-AAMC_Raw_Data_for_FY22[[#This Row],[Median]])/25)*35) + AAMC_Raw_Data_for_FY22[[#This Row],[Median]]","v":339971.8},{"$f":"(((AAMC_Raw_Data_for_FY22[[#This Row],[75th]]-AAMC_Raw_Data_for_FY22[[#This Row],[Median]])/25)*40) + AAMC_Raw_Data_for_FY22[[#This Row],[Median]]","v":349347.2}]
[{"$f":"AAMC_Raw_Data_for_FY22[[#This Row],[Source]]&AAMC_Raw_Data_for_FY22[[#This Row],[Type]]&AAMC_Raw_Data_for_FY22[[#This Row],[School Subset]]&AAMC_Raw_Data_for_FY22[[#This Row],[Rank]]&AAMC_Raw_Data_for_FY22[[#This Row],[Degree]]&AAMC_Raw_Data_for_FY22[[#This Row],[Department / Specialty]]&\"L\"","v":"AAMCAcademicAllChairMDNephrology-Peds.L"},"Nephrology-Peds.",1,"AAMC","Academic","All","Chair","MD","2021-2022",null,{"$f":"(((AAMC_Raw_Data_for_FY22[[#This Row],[Median]]-AAMC_Raw_Data_for_FY22[[#This Row],[25th]])/25)*5) + AAMC_Raw_Data_for_FY22[[#This Row],[25th]]","v":0},{"$f":"(((AAMC_Raw_Data_for_FY22[[#This Row],[Median]]-AAMC_Raw_Data_for_FY22[[#This Row],[25th]])/25)*10) + AAMC_Raw_Data_for_FY22[[#This Row],[25th]]","v":0},{"$f":"(((AAMC_Raw_Data_for_FY22[[#This Row],[Median]]-AAMC_Raw_Data_for_FY22[[#This Row],[25th]])/25)*15) + AAMC_Raw_Data_for_FY22[[#This Row],[25th]]","v":0},{"$f":"(((AAMC_Raw_Data_for_FY22[[#This Row],[Median]]-AAMC_Raw_Data_for_FY22[[#This Row],[25th]])/25)*20) + AAMC_Raw_Data_for_FY22[[#This Row],[25th]]","v":0},null,{"$f":"(((AAMC_Raw_Data_for_FY22[[#This Row],[75th]]-AAMC_Raw_Data_for_FY22[[#This Row],[Median]])/25)*5) + AAMC_Raw_Data_for_FY22[[#This Row],[Median]]","v":0},{"$f":"(((AAMC_Raw_Data_for_FY22[[#This Row],[75th]]-AAMC_Raw_Data_for_FY22[[#This Row],[Median]])/25)*10) + AAMC_Raw_Data_for_FY22[[#This Row],[Median]]","v":0},{"$f":"(((AAMC_Raw_Data_for_FY22[[#This Row],[75th]]-AAMC_Raw_Data_for_FY22[[#This Row],[Median]])/25)*15) + AAMC_Raw_Data_for_FY22[[#This Row],[Median]]","v":0},{"$f":"(((AAMC_Raw_Data_for_FY22[[#This Row],[75th]]-AAMC_Raw_Data_for_FY22[[#This Row],[Median]])/25)*20) + AAMC_Raw_Data_for_FY22[[#This Row],[Median]]","v":0},null,{"$f":"(((AAMC_Raw_Data_for_FY22[[#This Row],[75th]]-AAMC_Raw_Data_for_FY22[[#This Row],[Median]])/25)*30) + AAMC_Raw_Data_for_FY22[[#This Row],[Median]]","v":0},{"$f":"(((AAMC_Raw_Data_for_FY22[[#This Row],[75th]]-AAMC_Raw_Data_for_FY22[[#This Row],[Median]])/25)*35) + AAMC_Raw_Data_for_FY22[[#This Row],[Median]]","v":0},{"$f":"(((AAMC_Raw_Data_for_FY22[[#This Row],[75th]]-AAMC_Raw_Data_for_FY22[[#This Row],[Median]])/25)*40) + AAMC_Raw_Data_for_FY22[[#This Row],[Median]]","v":0}]
[{"$f":"AAMC_Raw_Data_for_FY22[[#This Row],[Source]]&AAMC_Raw_Data_for_FY22[[#This Row],[Type]]&AAMC_Raw_Data_for_FY22[[#This Row],[School Subset]]&AAMC_Raw_Data_for_FY22[[#This Row],[Rank]]&AAMC_Raw_Data_for_FY22[[#This Row],[Degree]]&AAMC_Raw_Data_for_FY22[[#This Row],[Department / Specialty]]&\"L\"","v":"AAMCAcademicAllInstructorMDNeurology-Peds.L"},"Neurology-Peds.",5,"AAMC","Academic","All","Instructor","MD","2021-2022",120000,{"$f":"(((AAMC_Raw_Data_for_FY22[[#This Row],[Median]]-AAMC_Raw_Data_for_FY22[[#This Row],[25th]])/25)*5) + AAMC_Raw_Data_for_FY22[[#This Row],[25th]]","v":131526},{"$f":"(((AAMC_Raw_Data_for_FY22[[#This Row],[Median]]-AAMC_Raw_Data_for_FY22[[#This Row],[25th]])/25)*10) + AAMC_Raw_Data_for_FY22[[#This Row],[25th]]","v":143052},{"$f":"(((AAMC_Raw_Data_for_FY22[[#This Row],[Median]]-AAMC_Raw_Data_for_FY22[[#This Row],[25th]])/25)*15) + AAMC_Raw_Data_for_FY22[[#This Row],[25th]]","v":154578},{"$f":"(((AAMC_Raw_Data_for_FY22[[#This Row],[Median]]-AAMC_Raw_Data_for_FY22[[#This Row],[25th]])/25)*20) + AAMC_Raw_Data_for_FY22[[#This Row],[25th]]","v":166104},177630,{"$f":"(((AAMC_Raw_Data_for_FY22[[#This Row],[75th]]-AAMC_Raw_Data_for_FY22[[#This Row],[Median]])/25)*5) + AAMC_Raw_Data_for_FY22[[#This Row],[Median]]","v":186817.6},{"$f":"(((AAMC_Raw_Data_for_FY22[[#This Row],[75th]]-AAMC_Raw_Data_for_FY22[[#This Row],[Median]])/25)*10) + AAMC_Raw_Data_for_FY22[[#This Row],[Median]]","v":196005.2},{"$f":"(((AAMC_Raw_Data_for_FY22[[#This Row],[75th]]-AAMC_Raw_Data_for_FY22[[#This Row],[Median]])/25)*15) + AAMC_Raw_Data_for_FY22[[#This Row],[Median]]","v":205192.8},{"$f":"(((AAMC_Raw_Data_for_FY22[[#This Row],[75th]]-AAMC_Raw_Data_for_FY22[[#This Row],[Median]])/25)*20) + AAMC_Raw_Data_for_FY22[[#This Row],[Median]]","v":214380.4},223568,{"$f":"(((AAMC_Raw_Data_for_FY22[[#This Row],[75th]]-AAMC_Raw_Data_for_FY22[[#This Row],[Median]])/25)*30) + AAMC_Raw_Data_for_FY22[[#This Row],[Median]]","v":232755.6},{"$f":"(((AAMC_Raw_Data_for_FY22[[#This Row],[75th]]-AAMC_Raw_Data_for_FY22[[#This Row],[Median]])/25)*35) + AAMC_Raw_Data_for_FY22[[#This Row],[Median]]","v":241943.2},{"$f":"(((AAMC_Raw_Data_for_FY22[[#This Row],[75th]]-AAMC_Raw_Data_for_FY22[[#This Row],[Median]])/25)*40) + AAMC_Raw_Data_for_FY22[[#This Row],[Median]]","v":251130.8}]
[{"$f":"AAMC_Raw_Data_for_FY22[[#This Row],[Source]]&AAMC_Raw_Data_for_FY22[[#This Row],[Type]]&AAMC_Raw_Data_for_FY22[[#This Row],[School Subset]]&AAMC_Raw_Data_for_FY22[[#This Row],[Rank]]&AAMC_Raw_Data_for_FY22[[#This Row],[Degree]]&AAMC_Raw_Data_for_FY22[[#This Row],[Department / Specialty]]&\"L\"","v":"AAMCAcademicAllAssistantMDNeurology-Peds.L"},"Neurology-Peds.",4,"AAMC","Academic","All","Assistant","MD","2021-2022",201626,{"$f":"(((AAMC_Raw_Data_for_FY22[[#This Row],[Median]]-AAMC_Raw_Data_for_FY22[[#This Row],[25th]])/25)*5) + AAMC_Raw_Data_for_FY22[[#This Row],[25th]]","v":205404.4},{"$f":"(((AAMC_Raw_Data_for_FY22[[#This Row],[Median]]-AAMC_Raw_Data_for_FY22[[#This Row],[25th]])/25)*10) + AAMC_Raw_Data_for_FY22[[#This Row],[25th]]","v":209182.8},{"$f":"(((AAMC_Raw_Data_for_FY22[[#This Row],[Median]]-AAMC_Raw_Data_for_FY22[[#This Row],[25th]])/25)*15) + AAMC_Raw_Data_for_FY22[[#This Row],[25th]]","v":212961.2},{"$f":"(((AAMC_Raw_Data_for_FY22[[#This Row],[Median]]-AAMC_Raw_Data_for_FY22[[#This Row],[25th]])/25)*20) + AAMC_Raw_Data_for_FY22[[#This Row],[25th]]","v":216739.6},220518,{"$f":"(((AAMC_Raw_Data_for_FY22[[#This Row],[75th]]-AAMC_Raw_Data_for_FY22[[#This Row],[Median]])/25)*5) + AAMC_Raw_Data_for_FY22[[#This Row],[Median]]","v":225116.2},{"$f":"(((AAMC_Raw_Data_for_FY22[[#This Row],[75th]]-AAMC_Raw_Data_for_FY22[[#This Row],[Median]])/25)*10) + AAMC_Raw_Data_for_FY22[[#This Row],[Median]]","v":229714.4},{"$f":"(((AAMC_Raw_Data_for_FY22[[#This Row],[75th]]-AAMC_Raw_Data_for_FY22[[#This Row],[Median]])/25)*15) + AAMC_Raw_Data_for_FY22[[#This Row],[Median]]","v":234312.6},{"$f":"(((AAMC_Raw_Data_for_FY22[[#This Row],[75th]]-AAMC_Raw_Data_for_FY22[[#This Row],[Median]])/25)*20) + AAMC_Raw_Data_for_FY22[[#This Row],[Median]]","v":238910.8},243509,{"$f":"(((AAMC_Raw_Data_for_FY22[[#This Row],[75th]]-AAMC_Raw_Data_for_FY22[[#This Row],[Median]])/25)*30) + AAMC_Raw_Data_for_FY22[[#This Row],[Median]]","v":248107.2},{"$f":"(((AAMC_Raw_Data_for_FY22[[#This Row],[75th]]-AAMC_Raw_Data_for_FY22[[#This Row],[Median]])/25)*35) + AAMC_Raw_Data_for_FY22[[#This Row],[Median]]","v":252705.4},{"$f":"(((AAMC_Raw_Data_for_FY22[[#This Row],[75th]]-AAMC_Raw_Data_for_FY22[[#This Row],[Median]])/25)*40) + AAMC_Raw_Data_for_FY22[[#This Row],[Median]]","v":257303.6}]
[{"$f":"AAMC_Raw_Data_for_FY22[[#This Row],[Source]]&AAMC_Raw_Data_for_FY22[[#This Row],[Type]]&AAMC_Raw_Data_for_FY22[[#This Row],[School Subset]]&AAMC_Raw_Data_for_FY22[[#This Row],[Rank]]&AAMC_Raw_Data_for_FY22[[#This Row],[Degree]]&AAMC_Raw_Data_for_FY22[[#This Row],[Department / Specialty]]&\"L\"","v":"AAMCAcademicAllAssociateMDNeurology-Peds.L"},"Neurology-Peds.",3,"AAMC","Academic","All","Associate","MD","2021-2022",229500,{"$f":"(((AAMC_Raw_Data_for_FY22[[#This Row],[Median]]-AAMC_Raw_Data_for_FY22[[#This Row],[25th]])/25)*5) + AAMC_Raw_Data_for_FY22[[#This Row],[25th]]","v":232731},{"$f":"(((AAMC_Raw_Data_for_FY22[[#This Row],[Median]]-AAMC_Raw_Data_for_FY22[[#This Row],[25th]])/25)*10) + AAMC_Raw_Data_for_FY22[[#This Row],[25th]]","v":235962},{"$f":"(((AAMC_Raw_Data_for_FY22[[#This Row],[Median]]-AAMC_Raw_Data_for_FY22[[#This Row],[25th]])/25)*15) + AAMC_Raw_Data_for_FY22[[#This Row],[25th]]","v":239193},{"$f":"(((AAMC_Raw_Data_for_FY22[[#This Row],[Median]]-AAMC_Raw_Data_for_FY22[[#This Row],[25th]])/25)*20) + AAMC_Raw_Data_for_FY22[[#This Row],[25th]]","v":242424},245655,{"$f":"(((AAMC_Raw_Data_for_FY22[[#This Row],[75th]]-AAMC_Raw_Data_for_FY22[[#This Row],[Median]])/25)*5) + AAMC_Raw_Data_for_FY22[[#This Row],[Median]]","v":251878},{"$f":"(((AAMC_Raw_Data_for_FY22[[#This Row],[75th]]-AAMC_Raw_Data_for_FY22[[#This Row],[Median]])/25)*10) + AAMC_Raw_Data_for_FY22[[#This Row],[Median]]","v":258101},{"$f":"(((AAMC_Raw_Data_for_FY22[[#This Row],[75th]]-AAMC_Raw_Data_for_FY22[[#This Row],[Median]])/25)*15) + AAMC_Raw_Data_for_FY22[[#This Row],[Median]]","v":264324},{"$f":"(((AAMC_Raw_Data_for_FY22[[#This Row],[75th]]-AAMC_Raw_Data_for_FY22[[#This Row],[Median]])/25)*20) + AAMC_Raw_Data_for_FY22[[#This Row],[Median]]","v":270547},276770,{"$f":"(((AAMC_Raw_Data_for_FY22[[#This Row],[75th]]-AAMC_Raw_Data_for_FY22[[#This Row],[Median]])/25)*30) + AAMC_Raw_Data_for_FY22[[#This Row],[Median]]","v":282993},{"$f":"(((AAMC_Raw_Data_for_FY22[[#This Row],[75th]]-AAMC_Raw_Data_for_FY22[[#This Row],[Median]])/25)*35) + AAMC_Raw_Data_for_FY22[[#This Row],[Median]]","v":289216},{"$f":"(((AAMC_Raw_Data_for_FY22[[#This Row],[75th]]-AAMC_Raw_Data_for_FY22[[#This Row],[Median]])/25)*40) + AAMC_Raw_Data_for_FY22[[#This Row],[Median]]","v":295439}]
[{"$f":"AAMC_Raw_Data_for_FY22[[#This Row],[Source]]&AAMC_Raw_Data_for_FY22[[#This Row],[Type]]&AAMC_Raw_Data_for_FY22[[#This Row],[School Subset]]&AAMC_Raw_Data_for_FY22[[#This Row],[Rank]]&AAMC_Raw_Data_for_FY22[[#This Row],[Degree]]&AAMC_Raw_Data_for_FY22[[#This Row],[Department / Specialty]]&\"L\"","v":"AAMCAcademicAllProfessorMDNeurology-Peds.L"},"Neurology-Peds.",2,"AAMC","Academic","All","Professor","MD","2021-2022",256994,{"$f":"(((AAMC_Raw_Data_for_FY22[[#This Row],[Median]]-AAMC_Raw_Data_for_FY22[[#This Row],[25th]])/25)*5) + AAMC_Raw_Data_for_FY22[[#This Row],[25th]]","v":261593.8},{"$f":"(((AAMC_Raw_Data_for_FY22[[#This Row],[Median]]-AAMC_Raw_Data_for_FY22[[#This Row],[25th]])/25)*10) + AAMC_Raw_Data_for_FY22[[#This Row],[25th]]","v":266193.59999999998},{"$f":"(((AAMC_Raw_Data_for_FY22[[#This Row],[Median]]-AAMC_Raw_Data_for_FY22[[#This Row],[25th]])/25)*15) + AAMC_Raw_Data_for_FY22[[#This Row],[25th]]","v":270793.40000000002},{"$f":"(((AAMC_Raw_Data_for_FY22[[#This Row],[Median]]-AAMC_Raw_Data_for_FY22[[#This Row],[25th]])/25)*20) + AAMC_Raw_Data_for_FY22[[#This Row],[25th]]","v":275393.2},279993,{"$f":"(((AAMC_Raw_Data_for_FY22[[#This Row],[75th]]-AAMC_Raw_Data_for_FY22[[#This Row],[Median]])/25)*5) + AAMC_Raw_Data_for_FY22[[#This Row],[Median]]","v":287650.2},{"$f":"(((AAMC_Raw_Data_for_FY22[[#This Row],[75th]]-AAMC_Raw_Data_for_FY22[[#This Row],[Median]])/25)*10) + AAMC_Raw_Data_for_FY22[[#This Row],[Median]]","v":295307.40000000002},{"$f":"(((AAMC_Raw_Data_for_FY22[[#This Row],[75th]]-AAMC_Raw_Data_for_FY22[[#This Row],[Median]])/25)*15) + AAMC_Raw_Data_for_FY22[[#This Row],[Median]]","v":302964.59999999998},{"$f":"(((AAMC_Raw_Data_for_FY22[[#This Row],[75th]]-AAMC_Raw_Data_for_FY22[[#This Row],[Median]])/25)*20) + AAMC_Raw_Data_for_FY22[[#This Row],[Median]]","v":310621.8},318279,{"$f":"(((AAMC_Raw_Data_for_FY22[[#This Row],[75th]]-AAMC_Raw_Data_for_FY22[[#This Row],[Median]])/25)*30) + AAMC_Raw_Data_for_FY22[[#This Row],[Median]]","v":325936.2},{"$f":"(((AAMC_Raw_Data_for_FY22[[#This Row],[75th]]-AAMC_Raw_Data_for_FY22[[#This Row],[Median]])/25)*35) + AAMC_Raw_Data_for_FY22[[#This Row],[Median]]","v":333593.40000000002},{"$f":"(((AAMC_Raw_Data_for_FY22[[#This Row],[75th]]-AAMC_Raw_Data_for_FY22[[#This Row],[Median]])/25)*40) + AAMC_Raw_Data_for_FY22[[#This Row],[Median]]","v":341250.6}]
[{"$f":"AAMC_Raw_Data_for_FY22[[#This Row],[Source]]&AAMC_Raw_Data_for_FY22[[#This Row],[Type]]&AAMC_Raw_Data_for_FY22[[#This Row],[School Subset]]&AAMC_Raw_Data_for_FY22[[#This Row],[Rank]]&AAMC_Raw_Data_for_FY22[[#This Row],[Degree]]&AAMC_Raw_Data_for_FY22[[#This Row],[Department / Specialty]]&\"L\"","v":"AAMCAcademicAllChiefMDNeurology-Peds.L"},"Neurology-Peds.",6,"AAMC","Academic","All","Chief","MD","2021-2022",290975,{"$f":"(((AAMC_Raw_Data_for_FY22[[#This Row],[Median]]-AAMC_Raw_Data_for_FY22[[#This Row],[25th]])/25)*5) + AAMC_Raw_Data_for_FY22[[#This Row],[25th]]","v":300038.2},{"$f":"(((AAMC_Raw_Data_for_FY22[[#This Row],[Median]]-AAMC_Raw_Data_for_FY22[[#This Row],[25th]])/25)*10) + AAMC_Raw_Data_for_FY22[[#This Row],[25th]]","v":309101.40000000002},{"$f":"(((AAMC_Raw_Data_for_FY22[[#This Row],[Median]]-AAMC_Raw_Data_for_FY22[[#This Row],[25th]])/25)*15) + AAMC_Raw_Data_for_FY22[[#This Row],[25th]]","v":318164.59999999998},{"$f":"(((AAMC_Raw_Data_for_FY22[[#This Row],[Median]]-AAMC_Raw_Data_for_FY22[[#This Row],[25th]])/25)*20) + AAMC_Raw_Data_for_FY22[[#This Row],[25th]]","v":327227.8},336291,{"$f":"(((AAMC_Raw_Data_for_FY22[[#This Row],[75th]]-AAMC_Raw_Data_for_FY22[[#This Row],[Median]])/25)*5) + AAMC_Raw_Data_for_FY22[[#This Row],[Median]]","v":347884},{"$f":"(((AAMC_Raw_Data_for_FY22[[#This Row],[75th]]-AAMC_Raw_Data_for_FY22[[#This Row],[Median]])/25)*10) + AAMC_Raw_Data_for_FY22[[#This Row],[Median]]","v":359477},{"$f":"(((AAMC_Raw_Data_for_FY22[[#This Row],[75th]]-AAMC_Raw_Data_for_FY22[[#This Row],[Median]])/25)*15) + AAMC_Raw_Data_for_FY22[[#This Row],[Median]]","v":371070},{"$f":"(((AAMC_Raw_Data_for_FY22[[#This Row],[75th]]-AAMC_Raw_Data_for_FY22[[#This Row],[Median]])/25)*20) + AAMC_Raw_Data_for_FY22[[#This Row],[Median]]","v":382663},394256,{"$f":"(((AAMC_Raw_Data_for_FY22[[#This Row],[75th]]-AAMC_Raw_Data_for_FY22[[#This Row],[Median]])/25)*30) + AAMC_Raw_Data_for_FY22[[#This Row],[Median]]","v":405849},{"$f":"(((AAMC_Raw_Data_for_FY22[[#This Row],[75th]]-AAMC_Raw_Data_for_FY22[[#This Row],[Median]])/25)*35) + AAMC_Raw_Data_for_FY22[[#This Row],[Median]]","v":417442},{"$f":"(((AAMC_Raw_Data_for_FY22[[#This Row],[75th]]-AAMC_Raw_Data_for_FY22[[#This Row],[Median]])/25)*40) + AAMC_Raw_Data_for_FY22[[#This Row],[Median]]","v":429035}]
[{"$f":"AAMC_Raw_Data_for_FY22[[#This Row],[Source]]&AAMC_Raw_Data_for_FY22[[#This Row],[Type]]&AAMC_Raw_Data_for_FY22[[#This Row],[School Subset]]&AAMC_Raw_Data_for_FY22[[#This Row],[Rank]]&AAMC_Raw_Data_for_FY22[[#This Row],[Degree]]&AAMC_Raw_Data_for_FY22[[#This Row],[Department / Specialty]]&\"L\"","v":"AAMCAcademicAllChairMDNeurology-Peds.L"},"Neurology-Peds.",1,"AAMC","Academic","All","Chair","MD","2021-2022",null,{"$f":"(((AAMC_Raw_Data_for_FY22[[#This Row],[Median]]-AAMC_Raw_Data_for_FY22[[#This Row],[25th]])/25)*5) + AAMC_Raw_Data_for_FY22[[#This Row],[25th]]","v":0},{"$f":"(((AAMC_Raw_Data_for_FY22[[#This Row],[Median]]-AAMC_Raw_Data_for_FY22[[#This Row],[25th]])/25)*10) + AAMC_Raw_Data_for_FY22[[#This Row],[25th]]","v":0},{"$f":"(((AAMC_Raw_Data_for_FY22[[#This Row],[Median]]-AAMC_Raw_Data_for_FY22[[#This Row],[25th]])/25)*15) + AAMC_Raw_Data_for_FY22[[#This Row],[25th]]","v":0},{"$f":"(((AAMC_Raw_Data_for_FY22[[#This Row],[Median]]-AAMC_Raw_Data_for_FY22[[#This Row],[25th]])/25)*20) + AAMC_Raw_Data_for_FY22[[#This Row],[25th]]","v":0},null,{"$f":"(((AAMC_Raw_Data_for_FY22[[#This Row],[75th]]-AAMC_Raw_Data_for_FY22[[#This Row],[Median]])/25)*5) + AAMC_Raw_Data_for_FY22[[#This Row],[Median]]","v":0},{"$f":"(((AAMC_Raw_Data_for_FY22[[#This Row],[75th]]-AAMC_Raw_Data_for_FY22[[#This Row],[Median]])/25)*10) + AAMC_Raw_Data_for_FY22[[#This Row],[Median]]","v":0},{"$f":"(((AAMC_Raw_Data_for_FY22[[#This Row],[75th]]-AAMC_Raw_Data_for_FY22[[#This Row],[Median]])/25)*15) + AAMC_Raw_Data_for_FY22[[#This Row],[Median]]","v":0},{"$f":"(((AAMC_Raw_Data_for_FY22[[#This Row],[75th]]-AAMC_Raw_Data_for_FY22[[#This Row],[Median]])/25)*20) + AAMC_Raw_Data_for_FY22[[#This Row],[Median]]","v":0},null,{"$f":"(((AAMC_Raw_Data_for_FY22[[#This Row],[75th]]-AAMC_Raw_Data_for_FY22[[#This Row],[Median]])/25)*30) + AAMC_Raw_Data_for_FY22[[#This Row],[Median]]","v":0},{"$f":"(((AAMC_Raw_Data_for_FY22[[#This Row],[75th]]-AAMC_Raw_Data_for_FY22[[#This Row],[Median]])/25)*35) + AAMC_Raw_Data_for_FY22[[#This Row],[Median]]","v":0},{"$f":"(((AAMC_Raw_Data_for_FY22[[#This Row],[75th]]-AAMC_Raw_Data_for_FY22[[#This Row],[Median]])/25)*40) + AAMC_Raw_Data_for_FY22[[#This Row],[Median]]","v":0}]
[{"$f":"AAMC_Raw_Data_for_FY22[[#This Row],[Source]]&AAMC_Raw_Data_for_FY22[[#This Row],[Type]]&AAMC_Raw_Data_for_FY22[[#This Row],[School Subset]]&AAMC_Raw_Data_for_FY22[[#This Row],[Rank]]&AAMC_Raw_Data_for_FY22[[#This Row],[Degree]]&AAMC_Raw_Data_for_FY22[[#This Row],[Department / Specialty]]&\"L\"","v":"AAMCAcademicAllInstructorMDPediatric CardiologyL"},"Pediatric Cardiology",5,"AAMC","Academic","All","Instructor","MD","2021-2022",125388,{"$f":"(((AAMC_Raw_Data_for_FY22[[#This Row],[Median]]-AAMC_Raw_Data_for_FY22[[#This Row],[25th]])/25)*5) + AAMC_Raw_Data_for_FY22[[#This Row],[25th]]","v":142444.4},{"$f":"(((AAMC_Raw_Data_for_FY22[[#This Row],[Median]]-AAMC_Raw_Data_for_FY22[[#This Row],[25th]])/25)*10) + AAMC_Raw_Data_for_FY22[[#This Row],[25th]]","v":159500.79999999999},{"$f":"(((AAMC_Raw_Data_for_FY22[[#This Row],[Median]]-AAMC_Raw_Data_for_FY22[[#This Row],[25th]])/25)*15) + AAMC_Raw_Data_for_FY22[[#This Row],[25th]]","v":176557.2},{"$f":"(((AAMC_Raw_Data_for_FY22[[#This Row],[Median]]-AAMC_Raw_Data_for_FY22[[#This Row],[25th]])/25)*20) + AAMC_Raw_Data_for_FY22[[#This Row],[25th]]","v":193613.6},210670,{"$f":"(((AAMC_Raw_Data_for_FY22[[#This Row],[75th]]-AAMC_Raw_Data_for_FY22[[#This Row],[Median]])/25)*5) + AAMC_Raw_Data_for_FY22[[#This Row],[Median]]","v":222197},{"$f":"(((AAMC_Raw_Data_for_FY22[[#This Row],[75th]]-AAMC_Raw_Data_for_FY22[[#This Row],[Median]])/25)*10) + AAMC_Raw_Data_for_FY22[[#This Row],[Median]]","v":233724},{"$f":"(((AAMC_Raw_Data_for_FY22[[#This Row],[75th]]-AAMC_Raw_Data_for_FY22[[#This Row],[Median]])/25)*15) + AAMC_Raw_Data_for_FY22[[#This Row],[Median]]","v":245251},{"$f":"(((AAMC_Raw_Data_for_FY22[[#This Row],[75th]]-AAMC_Raw_Data_for_FY22[[#This Row],[Median]])/25)*20) + AAMC_Raw_Data_for_FY22[[#This Row],[Median]]","v":256778},268305,{"$f":"(((AAMC_Raw_Data_for_FY22[[#This Row],[75th]]-AAMC_Raw_Data_for_FY22[[#This Row],[Median]])/25)*30) + AAMC_Raw_Data_for_FY22[[#This Row],[Median]]","v":279832},{"$f":"(((AAMC_Raw_Data_for_FY22[[#This Row],[75th]]-AAMC_Raw_Data_for_FY22[[#This Row],[Median]])/25)*35) + AAMC_Raw_Data_for_FY22[[#This Row],[Median]]","v":291359},{"$f":"(((AAMC_Raw_Data_for_FY22[[#This Row],[75th]]-AAMC_Raw_Data_for_FY22[[#This Row],[Median]])/25)*40) + AAMC_Raw_Data_for_FY22[[#This Row],[Median]]","v":302886}]
[{"$f":"AAMC_Raw_Data_for_FY22[[#This Row],[Source]]&AAMC_Raw_Data_for_FY22[[#This Row],[Type]]&AAMC_Raw_Data_for_FY22[[#This Row],[School Subset]]&AAMC_Raw_Data_for_FY22[[#This Row],[Rank]]&AAMC_Raw_Data_for_FY22[[#This Row],[Degree]]&AAMC_Raw_Data_for_FY22[[#This Row],[Department / Specialty]]&\"L\"","v":"AAMCAcademicAllAssistantMDPediatric CardiologyL"},"Pediatric Cardiology",4,"AAMC","Academic","All","Assistant","MD","2021-2022",235628,{"$f":"(((AAMC_Raw_Data_for_FY22[[#This Row],[Median]]-AAMC_Raw_Data_for_FY22[[#This Row],[25th]])/25)*5) + AAMC_Raw_Data_for_FY22[[#This Row],[25th]]","v":240231.4},{"$f":"(((AAMC_Raw_Data_for_FY22[[#This Row],[Median]]-AAMC_Raw_Data_for_FY22[[#This Row],[25th]])/25)*10) + AAMC_Raw_Data_for_FY22[[#This Row],[25th]]","v":244834.8},{"$f":"(((AAMC_Raw_Data_for_FY22[[#This Row],[Median]]-AAMC_Raw_Data_for_FY22[[#This Row],[25th]])/25)*15) + AAMC_Raw_Data_for_FY22[[#This Row],[25th]]","v":249438.2},{"$f":"(((AAMC_Raw_Data_for_FY22[[#This Row],[Median]]-AAMC_Raw_Data_for_FY22[[#This Row],[25th]])/25)*20) + AAMC_Raw_Data_for_FY22[[#This Row],[25th]]","v":254041.60000000001},258645,{"$f":"(((AAMC_Raw_Data_for_FY22[[#This Row],[75th]]-AAMC_Raw_Data_for_FY22[[#This Row],[Median]])/25)*5) + AAMC_Raw_Data_for_FY22[[#This Row],[Median]]","v":266670.8},{"$f":"(((AAMC_Raw_Data_for_FY22[[#This Row],[75th]]-AAMC_Raw_Data_for_FY22[[#This Row],[Median]])/25)*10) + AAMC_Raw_Data_for_FY22[[#This Row],[Median]]","v":274696.59999999998},{"$f":"(((AAMC_Raw_Data_for_FY22[[#This Row],[75th]]-AAMC_Raw_Data_for_FY22[[#This Row],[Median]])/25)*15) + AAMC_Raw_Data_for_FY22[[#This Row],[Median]]","v":282722.40000000002},{"$f":"(((AAMC_Raw_Data_for_FY22[[#This Row],[75th]]-AAMC_Raw_Data_for_FY22[[#This Row],[Median]])/25)*20) + AAMC_Raw_Data_for_FY22[[#This Row],[Median]]","v":290748.2},298774,{"$f":"(((AAMC_Raw_Data_for_FY22[[#This Row],[75th]]-AAMC_Raw_Data_for_FY22[[#This Row],[Median]])/25)*30) + AAMC_Raw_Data_for_FY22[[#This Row],[Median]]","v":306799.8},{"$f":"(((AAMC_Raw_Data_for_FY22[[#This Row],[75th]]-AAMC_Raw_Data_for_FY22[[#This Row],[Median]])/25)*35) + AAMC_Raw_Data_for_FY22[[#This Row],[Median]]","v":314825.59999999998},{"$f":"(((AAMC_Raw_Data_for_FY22[[#This Row],[75th]]-AAMC_Raw_Data_for_FY22[[#This Row],[Median]])/25)*40) + AAMC_Raw_Data_for_FY22[[#This Row],[Median]]","v":322851.40000000002}]
[{"$f":"AAMC_Raw_Data_for_FY22[[#This Row],[Source]]&AAMC_Raw_Data_for_FY22[[#This Row],[Type]]&AAMC_Raw_Data_for_FY22[[#This Row],[School Subset]]&AAMC_Raw_Data_for_FY22[[#This Row],[Rank]]&AAMC_Raw_Data_for_FY22[[#This Row],[Degree]]&AAMC_Raw_Data_for_FY22[[#This Row],[Department / Specialty]]&\"L\"","v":"AAMCAcademicAllAssociateMDPediatric CardiologyL"},"Pediatric Cardiology",3,"AAMC","Academic","All","Associate","MD","2021-2022",286519,{"$f":"(((AAMC_Raw_Data_for_FY22[[#This Row],[Median]]-AAMC_Raw_Data_for_FY22[[#This Row],[25th]])/25)*5) + AAMC_Raw_Data_for_FY22[[#This Row],[25th]]","v":291547.8},{"$f":"(((AAMC_Raw_Data_for_FY22[[#This Row],[Median]]-AAMC_Raw_Data_for_FY22[[#This Row],[25th]])/25)*10) + AAMC_Raw_Data_for_FY22[[#This Row],[25th]]","v":296576.59999999998},{"$f":"(((AAMC_Raw_Data_for_FY22[[#This Row],[Median]]-AAMC_Raw_Data_for_FY22[[#This Row],[25th]])/25)*15) + AAMC_Raw_Data_for_FY22[[#This Row],[25th]]","v":301605.40000000002},{"$f":"(((AAMC_Raw_Data_for_FY22[[#This Row],[Median]]-AAMC_Raw_Data_for_FY22[[#This Row],[25th]])/25)*20) + AAMC_Raw_Data_for_FY22[[#This Row],[25th]]","v":306634.2},311663,{"$f":"(((AAMC_Raw_Data_for_FY22[[#This Row],[75th]]-AAMC_Raw_Data_for_FY22[[#This Row],[Median]])/25)*5) + AAMC_Raw_Data_for_FY22[[#This Row],[Median]]","v":319221.40000000002},{"$f":"(((AAMC_Raw_Data_for_FY22[[#This Row],[75th]]-AAMC_Raw_Data_for_FY22[[#This Row],[Median]])/25)*10) + AAMC_Raw_Data_for_FY22[[#This Row],[Median]]","v":326779.8},{"$f":"(((AAMC_Raw_Data_for_FY22[[#This Row],[75th]]-AAMC_Raw_Data_for_FY22[[#This Row],[Median]])/25)*15) + AAMC_Raw_Data_for_FY22[[#This Row],[Median]]","v":334338.2},{"$f":"(((AAMC_Raw_Data_for_FY22[[#This Row],[75th]]-AAMC_Raw_Data_for_FY22[[#This Row],[Median]])/25)*20) + AAMC_Raw_Data_for_FY22[[#This Row],[Median]]","v":341896.6},349455,{"$f":"(((AAMC_Raw_Data_for_FY22[[#This Row],[75th]]-AAMC_Raw_Data_for_FY22[[#This Row],[Median]])/25)*30) + AAMC_Raw_Data_for_FY22[[#This Row],[Median]]","v":357013.4},{"$f":"(((AAMC_Raw_Data_for_FY22[[#This Row],[75th]]-AAMC_Raw_Data_for_FY22[[#This Row],[Median]])/25)*35) + AAMC_Raw_Data_for_FY22[[#This Row],[Median]]","v":364571.8},{"$f":"(((AAMC_Raw_Data_for_FY22[[#This Row],[75th]]-AAMC_Raw_Data_for_FY22[[#This Row],[Median]])/25)*40) + AAMC_Raw_Data_for_FY22[[#This Row],[Median]]","v":372130.2}]
[{"$f":"AAMC_Raw_Data_for_FY22[[#This Row],[Source]]&AAMC_Raw_Data_for_FY22[[#This Row],[Type]]&AAMC_Raw_Data_for_FY22[[#This Row],[School Subset]]&AAMC_Raw_Data_for_FY22[[#This Row],[Rank]]&AAMC_Raw_Data_for_FY22[[#This Row],[Degree]]&AAMC_Raw_Data_for_FY22[[#This Row],[Department / Specialty]]&\"L\"","v":"AAMCAcademicAllProfessorMDPediatric CardiologyL"},"Pediatric Cardiology",2,"AAMC","Academic","All","Professor","MD","2021-2022",356494,{"$f":"(((AAMC_Raw_Data_for_FY22[[#This Row],[Median]]-AAMC_Raw_Data_for_FY22[[#This Row],[25th]])/25)*5) + AAMC_Raw_Data_for_FY22[[#This Row],[25th]]","v":364428.4},{"$f":"(((AAMC_Raw_Data_for_FY22[[#This Row],[Median]]-AAMC_Raw_Data_for_FY22[[#This Row],[25th]])/25)*10) + AAMC_Raw_Data_for_FY22[[#This Row],[25th]]","v":372362.8},{"$f":"(((AAMC_Raw_Data_for_FY22[[#This Row],[Median]]-AAMC_Raw_Data_for_FY22[[#This Row],[25th]])/25)*15) + AAMC_Raw_Data_for_FY22[[#This Row],[25th]]","v":380297.2},{"$f":"(((AAMC_Raw_Data_for_FY22[[#This Row],[Median]]-AAMC_Raw_Data_for_FY22[[#This Row],[25th]])/25)*20) + AAMC_Raw_Data_for_FY22[[#This Row],[25th]]","v":388231.6},396166,{"$f":"(((AAMC_Raw_Data_for_FY22[[#This Row],[75th]]-AAMC_Raw_Data_for_FY22[[#This Row],[Median]])/25)*5) + AAMC_Raw_Data_for_FY22[[#This Row],[Median]]","v":409880.8},{"$f":"(((AAMC_Raw_Data_for_FY22[[#This Row],[75th]]-AAMC_Raw_Data_for_FY22[[#This Row],[Median]])/25)*10) + AAMC_Raw_Data_for_FY22[[#This Row],[Median]]","v":423595.6},{"$f":"(((AAMC_Raw_Data_for_FY22[[#This Row],[75th]]-AAMC_Raw_Data_for_FY22[[#This Row],[Median]])/25)*15) + AAMC_Raw_Data_for_FY22[[#This Row],[Median]]","v":437310.4},{"$f":"(((AAMC_Raw_Data_for_FY22[[#This Row],[75th]]-AAMC_Raw_Data_for_FY22[[#This Row],[Median]])/25)*20) + AAMC_Raw_Data_for_FY22[[#This Row],[Median]]","v":451025.2},464740,{"$f":"(((AAMC_Raw_Data_for_FY22[[#This Row],[75th]]-AAMC_Raw_Data_for_FY22[[#This Row],[Median]])/25)*30) + AAMC_Raw_Data_for_FY22[[#This Row],[Median]]","v":478454.8},{"$f":"(((AAMC_Raw_Data_for_FY22[[#This Row],[75th]]-AAMC_Raw_Data_for_FY22[[#This Row],[Median]])/25)*35) + AAMC_Raw_Data_for_FY22[[#This Row],[Median]]","v":492169.6},{"$f":"(((AAMC_Raw_Data_for_FY22[[#This Row],[75th]]-AAMC_Raw_Data_for_FY22[[#This Row],[Median]])/25)*40) + AAMC_Raw_Data_for_FY22[[#This Row],[Median]]","v":505884.4}]
[{"$f":"AAMC_Raw_Data_for_FY22[[#This Row],[Source]]&AAMC_Raw_Data_for_FY22[[#This Row],[Type]]&AAMC_Raw_Data_for_FY22[[#This Row],[School Subset]]&AAMC_Raw_Data_for_FY22[[#This Row],[Rank]]&AAMC_Raw_Data_for_FY22[[#This Row],[Degree]]&AAMC_Raw_Data_for_FY22[[#This Row],[Department / Specialty]]&\"L\"","v":"AAMCAcademicAllChiefMDPediatric CardiologyL"},"Pediatric Cardiology",6,"AAMC","Academic","All","Chief","MD","2021-2022",386102,{"$f":"(((AAMC_Raw_Data_for_FY22[[#This Row],[Median]]-AAMC_Raw_Data_for_FY22[[#This Row],[25th]])/25)*5) + AAMC_Raw_Data_for_FY22[[#This Row],[25th]]","v":396956.8},{"$f":"(((AAMC_Raw_Data_for_FY22[[#This Row],[Median]]-AAMC_Raw_Data_for_FY22[[#This Row],[25th]])/25)*10) + AAMC_Raw_Data_for_FY22[[#This Row],[25th]]","v":407811.6},{"$f":"(((AAMC_Raw_Data_for_FY22[[#This Row],[Median]]-AAMC_Raw_Data_for_FY22[[#This Row],[25th]])/25)*15) + AAMC_Raw_Data_for_FY22[[#This Row],[25th]]","v":418666.4},{"$f":"(((AAMC_Raw_Data_for_FY22[[#This Row],[Median]]-AAMC_Raw_Data_for_FY22[[#This Row],[25th]])/25)*20) + AAMC_Raw_Data_for_FY22[[#This Row],[25th]]","v":429521.2},440376,{"$f":"(((AAMC_Raw_Data_for_FY22[[#This Row],[75th]]-AAMC_Raw_Data_for_FY22[[#This Row],[Median]])/25)*5) + AAMC_Raw_Data_for_FY22[[#This Row],[Median]]","v":464236.6},{"$f":"(((AAMC_Raw_Data_for_FY22[[#This Row],[75th]]-AAMC_Raw_Data_for_FY22[[#This Row],[Median]])/25)*10) + AAMC_Raw_Data_for_FY22[[#This Row],[Median]]","v":488097.2},{"$f":"(((AAMC_Raw_Data_for_FY22[[#This Row],[75th]]-AAMC_Raw_Data_for_FY22[[#This Row],[Median]])/25)*15) + AAMC_Raw_Data_for_FY22[[#This Row],[Median]]","v":511957.8},{"$f":"(((AAMC_Raw_Data_for_FY22[[#This Row],[75th]]-AAMC_Raw_Data_for_FY22[[#This Row],[Median]])/25)*20) + AAMC_Raw_Data_for_FY22[[#This Row],[Median]]","v":535818.4},559679,{"$f":"(((AAMC_Raw_Data_for_FY22[[#This Row],[75th]]-AAMC_Raw_Data_for_FY22[[#This Row],[Median]])/25)*30) + AAMC_Raw_Data_for_FY22[[#This Row],[Median]]","v":583539.6},{"$f":"(((AAMC_Raw_Data_for_FY22[[#This Row],[75th]]-AAMC_Raw_Data_for_FY22[[#This Row],[Median]])/25)*35) + AAMC_Raw_Data_for_FY22[[#This Row],[Median]]","v":607400.19999999995},{"$f":"(((AAMC_Raw_Data_for_FY22[[#This Row],[75th]]-AAMC_Raw_Data_for_FY22[[#This Row],[Median]])/25)*40) + AAMC_Raw_Data_for_FY22[[#This Row],[Median]]","v":631260.80000000005}]
[{"$f":"AAMC_Raw_Data_for_FY22[[#This Row],[Source]]&AAMC_Raw_Data_for_FY22[[#This Row],[Type]]&AAMC_Raw_Data_for_FY22[[#This Row],[School Subset]]&AAMC_Raw_Data_for_FY22[[#This Row],[Rank]]&AAMC_Raw_Data_for_FY22[[#This Row],[Degree]]&AAMC_Raw_Data_for_FY22[[#This Row],[Department / Specialty]]&\"L\"","v":"AAMCAcademicAllChairMDPediatric CardiologyL"},"Pediatric Cardiology",1,"AAMC","Academic","All","Chair","MD","2021-2022",null,{"$f":"(((AAMC_Raw_Data_for_FY22[[#This Row],[Median]]-AAMC_Raw_Data_for_FY22[[#This Row],[25th]])/25)*5) + AAMC_Raw_Data_for_FY22[[#This Row],[25th]]","v":0},{"$f":"(((AAMC_Raw_Data_for_FY22[[#This Row],[Median]]-AAMC_Raw_Data_for_FY22[[#This Row],[25th]])/25)*10) + AAMC_Raw_Data_for_FY22[[#This Row],[25th]]","v":0},{"$f":"(((AAMC_Raw_Data_for_FY22[[#This Row],[Median]]-AAMC_Raw_Data_for_FY22[[#This Row],[25th]])/25)*15) + AAMC_Raw_Data_for_FY22[[#This Row],[25th]]","v":0},{"$f":"(((AAMC_Raw_Data_for_FY22[[#This Row],[Median]]-AAMC_Raw_Data_for_FY22[[#This Row],[25th]])/25)*20) + AAMC_Raw_Data_for_FY22[[#This Row],[25th]]","v":0},null,{"$f":"(((AAMC_Raw_Data_for_FY22[[#This Row],[75th]]-AAMC_Raw_Data_for_FY22[[#This Row],[Median]])/25)*5) + AAMC_Raw_Data_for_FY22[[#This Row],[Median]]","v":0},{"$f":"(((AAMC_Raw_Data_for_FY22[[#This Row],[75th]]-AAMC_Raw_Data_for_FY22[[#This Row],[Median]])/25)*10) + AAMC_Raw_Data_for_FY22[[#This Row],[Median]]","v":0},{"$f":"(((AAMC_Raw_Data_for_FY22[[#This Row],[75th]]-AAMC_Raw_Data_for_FY22[[#This Row],[Median]])/25)*15) + AAMC_Raw_Data_for_FY22[[#This Row],[Median]]","v":0},{"$f":"(((AAMC_Raw_Data_for_FY22[[#This Row],[75th]]-AAMC_Raw_Data_for_FY22[[#This Row],[Median]])/25)*20) + AAMC_Raw_Data_for_FY22[[#This Row],[Median]]","v":0},null,{"$f":"(((AAMC_Raw_Data_for_FY22[[#This Row],[75th]]-AAMC_Raw_Data_for_FY22[[#This Row],[Median]])/25)*30) + AAMC_Raw_Data_for_FY22[[#This Row],[Median]]","v":0},{"$f":"(((AAMC_Raw_Data_for_FY22[[#This Row],[75th]]-AAMC_Raw_Data_for_FY22[[#This Row],[Median]])/25)*35) + AAMC_Raw_Data_for_FY22[[#This Row],[Median]]","v":0},{"$f":"(((AAMC_Raw_Data_for_FY22[[#This Row],[75th]]-AAMC_Raw_Data_for_FY22[[#This Row],[Median]])/25)*40) + AAMC_Raw_Data_for_FY22[[#This Row],[Median]]","v":0}]
[{"$f":"AAMC_Raw_Data_for_FY22[[#This Row],[Source]]&AAMC_Raw_Data_for_FY22[[#This Row],[Type]]&AAMC_Raw_Data_for_FY22[[#This Row],[School Subset]]&AAMC_Raw_Data_for_FY22[[#This Row],[Rank]]&AAMC_Raw_Data_for_FY22[[#This Row],[Degree]]&AAMC_Raw_Data_for_FY22[[#This Row],[Department / Specialty]]&\"L\"","v":"AAMCAcademicAllInstructorMDPsychology-Peds.L"},"Psychology-Peds.",5,"AAMC","Academic","All","Instructor","MD","2021-2022",null,{"$f":"(((AAMC_Raw_Data_for_FY22[[#This Row],[Median]]-AAMC_Raw_Data_for_FY22[[#This Row],[25th]])/25)*5) + AAMC_Raw_Data_for_FY22[[#This Row],[25th]]","v":0},{"$f":"(((AAMC_Raw_Data_for_FY22[[#This Row],[Median]]-AAMC_Raw_Data_for_FY22[[#This Row],[25th]])/25)*10) + AAMC_Raw_Data_for_FY22[[#This Row],[25th]]","v":0},{"$f":"(((AAMC_Raw_Data_for_FY22[[#This Row],[Median]]-AAMC_Raw_Data_for_FY22[[#This Row],[25th]])/25)*15) + AAMC_Raw_Data_for_FY22[[#This Row],[25th]]","v":0},{"$f":"(((AAMC_Raw_Data_for_FY22[[#This Row],[Median]]-AAMC_Raw_Data_for_FY22[[#This Row],[25th]])/25)*20) + AAMC_Raw_Data_for_FY22[[#This Row],[25th]]","v":0},null,{"$f":"(((AAMC_Raw_Data_for_FY22[[#This Row],[75th]]-AAMC_Raw_Data_for_FY22[[#This Row],[Median]])/25)*5) + AAMC_Raw_Data_for_FY22[[#This Row],[Median]]","v":0},{"$f":"(((AAMC_Raw_Data_for_FY22[[#This Row],[75th]]-AAMC_Raw_Data_for_FY22[[#This Row],[Median]])/25)*10) + AAMC_Raw_Data_for_FY22[[#This Row],[Median]]","v":0},{"$f":"(((AAMC_Raw_Data_for_FY22[[#This Row],[75th]]-AAMC_Raw_Data_for_FY22[[#This Row],[Median]])/25)*15) + AAMC_Raw_Data_for_FY22[[#This Row],[Median]]","v":0},{"$f":"(((AAMC_Raw_Data_for_FY22[[#This Row],[75th]]-AAMC_Raw_Data_for_FY22[[#This Row],[Median]])/25)*20) + AAMC_Raw_Data_for_FY22[[#This Row],[Median]]","v":0},null,{"$f":"(((AAMC_Raw_Data_for_FY22[[#This Row],[75th]]-AAMC_Raw_Data_for_FY22[[#This Row],[Median]])/25)*30) + AAMC_Raw_Data_for_FY22[[#This Row],[Median]]","v":0},{"$f":"(((AAMC_Raw_Data_for_FY22[[#This Row],[75th]]-AAMC_Raw_Data_for_FY22[[#This Row],[Median]])/25)*35) + AAMC_Raw_Data_for_FY22[[#This Row],[Median]]","v":0},{"$f":"(((AAMC_Raw_Data_for_FY22[[#This Row],[75th]]-AAMC_Raw_Data_for_FY22[[#This Row],[Median]])/25)*40) + AAMC_Raw_Data_for_FY22[[#This Row],[Median]]","v":0}]
[{"$f":"AAMC_Raw_Data_for_FY22[[#This Row],[Source]]&AAMC_Raw_Data_for_FY22[[#This Row],[Type]]&AAMC_Raw_Data_for_FY22[[#This Row],[School Subset]]&AAMC_Raw_Data_for_FY22[[#This Row],[Rank]]&AAMC_Raw_Data_for_FY22[[#This Row],[Degree]]&AAMC_Raw_Data_for_FY22[[#This Row],[Department / Specialty]]&\"L\"","v":"AAMCAcademicAllAssistantMDPsychology-Peds.L"},"Psychology-Peds.",4,"AAMC","Academic","All","Assistant","MD","2021-2022",null,{"$f":"(((AAMC_Raw_Data_for_FY22[[#This Row],[Median]]-AAMC_Raw_Data_for_FY22[[#This Row],[25th]])/25)*5) + AAMC_Raw_Data_for_FY22[[#This Row],[25th]]","v":0},{"$f":"(((AAMC_Raw_Data_for_FY22[[#This Row],[Median]]-AAMC_Raw_Data_for_FY22[[#This Row],[25th]])/25)*10) + AAMC_Raw_Data_for_FY22[[#This Row],[25th]]","v":0},{"$f":"(((AAMC_Raw_Data_for_FY22[[#This Row],[Median]]-AAMC_Raw_Data_for_FY22[[#This Row],[25th]])/25)*15) + AAMC_Raw_Data_for_FY22[[#This Row],[25th]]","v":0},{"$f":"(((AAMC_Raw_Data_for_FY22[[#This Row],[Median]]-AAMC_Raw_Data_for_FY22[[#This Row],[25th]])/25)*20) + AAMC_Raw_Data_for_FY22[[#This Row],[25th]]","v":0},null,{"$f":"(((AAMC_Raw_Data_for_FY22[[#This Row],[75th]]-AAMC_Raw_Data_for_FY22[[#This Row],[Median]])/25)*5) + AAMC_Raw_Data_for_FY22[[#This Row],[Median]]","v":0},{"$f":"(((AAMC_Raw_Data_for_FY22[[#This Row],[75th]]-AAMC_Raw_Data_for_FY22[[#This Row],[Median]])/25)*10) + AAMC_Raw_Data_for_FY22[[#This Row],[Median]]","v":0},{"$f":"(((AAMC_Raw_Data_for_FY22[[#This Row],[75th]]-AAMC_Raw_Data_for_FY22[[#This Row],[Median]])/25)*15) + AAMC_Raw_Data_for_FY22[[#This Row],[Median]]","v":0},{"$f":"(((AAMC_Raw_Data_for_FY22[[#This Row],[75th]]-AAMC_Raw_Data_for_FY22[[#This Row],[Median]])/25)*20) + AAMC_Raw_Data_for_FY22[[#This Row],[Median]]","v":0},null,{"$f":"(((AAMC_Raw_Data_for_FY22[[#This Row],[75th]]-AAMC_Raw_Data_for_FY22[[#This Row],[Median]])/25)*30) + AAMC_Raw_Data_for_FY22[[#This Row],[Median]]","v":0},{"$f":"(((AAMC_Raw_Data_for_FY22[[#This Row],[75th]]-AAMC_Raw_Data_for_FY22[[#This Row],[Median]])/25)*35) + AAMC_Raw_Data_for_FY22[[#This Row],[Median]]","v":0},{"$f":"(((AAMC_Raw_Data_for_FY22[[#This Row],[75th]]-AAMC_Raw_Data_for_FY22[[#This Row],[Median]])/25)*40) + AAMC_Raw_Data_for_FY22[[#This Row],[Median]]","v":0}]
[{"$f":"AAMC_Raw_Data_for_FY22[[#This Row],[Source]]&AAMC_Raw_Data_for_FY22[[#This Row],[Type]]&AAMC_Raw_Data_for_FY22[[#This Row],[School Subset]]&AAMC_Raw_Data_for_FY22[[#This Row],[Rank]]&AAMC_Raw_Data_for_FY22[[#This Row],[Degree]]&AAMC_Raw_Data_for_FY22[[#This Row],[Department / Specialty]]&\"L\"","v":"AAMCAcademicAllAssociateMDPsychology-Peds.L"},"Psychology-Peds.",3,"AAMC","Academic","All","Associate","MD","2021-2022",null,{"$f":"(((AAMC_Raw_Data_for_FY22[[#This Row],[Median]]-AAMC_Raw_Data_for_FY22[[#This Row],[25th]])/25)*5) + AAMC_Raw_Data_for_FY22[[#This Row],[25th]]","v":0},{"$f":"(((AAMC_Raw_Data_for_FY22[[#This Row],[Median]]-AAMC_Raw_Data_for_FY22[[#This Row],[25th]])/25)*10) + AAMC_Raw_Data_for_FY22[[#This Row],[25th]]","v":0},{"$f":"(((AAMC_Raw_Data_for_FY22[[#This Row],[Median]]-AAMC_Raw_Data_for_FY22[[#This Row],[25th]])/25)*15) + AAMC_Raw_Data_for_FY22[[#This Row],[25th]]","v":0},{"$f":"(((AAMC_Raw_Data_for_FY22[[#This Row],[Median]]-AAMC_Raw_Data_for_FY22[[#This Row],[25th]])/25)*20) + AAMC_Raw_Data_for_FY22[[#This Row],[25th]]","v":0},null,{"$f":"(((AAMC_Raw_Data_for_FY22[[#This Row],[75th]]-AAMC_Raw_Data_for_FY22[[#This Row],[Median]])/25)*5) + AAMC_Raw_Data_for_FY22[[#This Row],[Median]]","v":0},{"$f":"(((AAMC_Raw_Data_for_FY22[[#This Row],[75th]]-AAMC_Raw_Data_for_FY22[[#This Row],[Median]])/25)*10) + AAMC_Raw_Data_for_FY22[[#This Row],[Median]]","v":0},{"$f":"(((AAMC_Raw_Data_for_FY22[[#This Row],[75th]]-AAMC_Raw_Data_for_FY22[[#This Row],[Median]])/25)*15) + AAMC_Raw_Data_for_FY22[[#This Row],[Median]]","v":0},{"$f":"(((AAMC_Raw_Data_for_FY22[[#This Row],[75th]]-AAMC_Raw_Data_for_FY22[[#This Row],[Median]])/25)*20) + AAMC_Raw_Data_for_FY22[[#This Row],[Median]]","v":0},null,{"$f":"(((AAMC_Raw_Data_for_FY22[[#This Row],[75th]]-AAMC_Raw_Data_for_FY22[[#This Row],[Median]])/25)*30) + AAMC_Raw_Data_for_FY22[[#This Row],[Median]]","v":0},{"$f":"(((AAMC_Raw_Data_for_FY22[[#This Row],[75th]]-AAMC_Raw_Data_for_FY22[[#This Row],[Median]])/25)*35) + AAMC_Raw_Data_for_FY22[[#This Row],[Median]]","v":0},{"$f":"(((AAMC_Raw_Data_for_FY22[[#This Row],[75th]]-AAMC_Raw_Data_for_FY22[[#This Row],[Median]])/25)*40) + AAMC_Raw_Data_for_FY22[[#This Row],[Median]]","v":0}]
[{"$f":"AAMC_Raw_Data_for_FY22[[#This Row],[Source]]&AAMC_Raw_Data_for_FY22[[#This Row],[Type]]&AAMC_Raw_Data_for_FY22[[#This Row],[School Subset]]&AAMC_Raw_Data_for_FY22[[#This Row],[Rank]]&AAMC_Raw_Data_for_FY22[[#This Row],[Degree]]&AAMC_Raw_Data_for_FY22[[#This Row],[Department / Specialty]]&\"L\"","v":"AAMCAcademicAllProfessorMDPsychology-Peds.L"},"Psychology-Peds.",2,"AAMC","Academic","All","Professor","MD","2021-2022",null,{"$f":"(((AAMC_Raw_Data_for_FY22[[#This Row],[Median]]-AAMC_Raw_Data_for_FY22[[#This Row],[25th]])/25)*5) + AAMC_Raw_Data_for_FY22[[#This Row],[25th]]","v":0},{"$f":"(((AAMC_Raw_Data_for_FY22[[#This Row],[Median]]-AAMC_Raw_Data_for_FY22[[#This Row],[25th]])/25)*10) + AAMC_Raw_Data_for_FY22[[#This Row],[25th]]","v":0},{"$f":"(((AAMC_Raw_Data_for_FY22[[#This Row],[Median]]-AAMC_Raw_Data_for_FY22[[#This Row],[25th]])/25)*15) + AAMC_Raw_Data_for_FY22[[#This Row],[25th]]","v":0},{"$f":"(((AAMC_Raw_Data_for_FY22[[#This Row],[Median]]-AAMC_Raw_Data_for_FY22[[#This Row],[25th]])/25)*20) + AAMC_Raw_Data_for_FY22[[#This Row],[25th]]","v":0},null,{"$f":"(((AAMC_Raw_Data_for_FY22[[#This Row],[75th]]-AAMC_Raw_Data_for_FY22[[#This Row],[Median]])/25)*5) + AAMC_Raw_Data_for_FY22[[#This Row],[Median]]","v":0},{"$f":"(((AAMC_Raw_Data_for_FY22[[#This Row],[75th]]-AAMC_Raw_Data_for_FY22[[#This Row],[Median]])/25)*10) + AAMC_Raw_Data_for_FY22[[#This Row],[Median]]","v":0},{"$f":"(((AAMC_Raw_Data_for_FY22[[#This Row],[75th]]-AAMC_Raw_Data_for_FY22[[#This Row],[Median]])/25)*15) + AAMC_Raw_Data_for_FY22[[#This Row],[Median]]","v":0},{"$f":"(((AAMC_Raw_Data_for_FY22[[#This Row],[75th]]-AAMC_Raw_Data_for_FY22[[#This Row],[Median]])/25)*20) + AAMC_Raw_Data_for_FY22[[#This Row],[Median]]","v":0},null,{"$f":"(((AAMC_Raw_Data_for_FY22[[#This Row],[75th]]-AAMC_Raw_Data_for_FY22[[#This Row],[Median]])/25)*30) + AAMC_Raw_Data_for_FY22[[#This Row],[Median]]","v":0},{"$f":"(((AAMC_Raw_Data_for_FY22[[#This Row],[75th]]-AAMC_Raw_Data_for_FY22[[#This Row],[Median]])/25)*35) + AAMC_Raw_Data_for_FY22[[#This Row],[Median]]","v":0},{"$f":"(((AAMC_Raw_Data_for_FY22[[#This Row],[75th]]-AAMC_Raw_Data_for_FY22[[#This Row],[Median]])/25)*40) + AAMC_Raw_Data_for_FY22[[#This Row],[Median]]","v":0}]
[{"$f":"AAMC_Raw_Data_for_FY22[[#This Row],[Source]]&AAMC_Raw_Data_for_FY22[[#This Row],[Type]]&AAMC_Raw_Data_for_FY22[[#This Row],[School Subset]]&AAMC_Raw_Data_for_FY22[[#This Row],[Rank]]&AAMC_Raw_Data_for_FY22[[#This Row],[Degree]]&AAMC_Raw_Data_for_FY22[[#This Row],[Department / Specialty]]&\"L\"","v":"AAMCAcademicAllChiefMDPsychology-Peds.L"},"Psychology-Peds.",6,"AAMC","Academic","All","Chief","MD","2021-2022",null,{"$f":"(((AAMC_Raw_Data_for_FY22[[#This Row],[Median]]-AAMC_Raw_Data_for_FY22[[#This Row],[25th]])/25)*5) + AAMC_Raw_Data_for_FY22[[#This Row],[25th]]","v":0},{"$f":"(((AAMC_Raw_Data_for_FY22[[#This Row],[Median]]-AAMC_Raw_Data_for_FY22[[#This Row],[25th]])/25)*10) + AAMC_Raw_Data_for_FY22[[#This Row],[25th]]","v":0},{"$f":"(((AAMC_Raw_Data_for_FY22[[#This Row],[Median]]-AAMC_Raw_Data_for_FY22[[#This Row],[25th]])/25)*15) + AAMC_Raw_Data_for_FY22[[#This Row],[25th]]","v":0},{"$f":"(((AAMC_Raw_Data_for_FY22[[#This Row],[Median]]-AAMC_Raw_Data_for_FY22[[#This Row],[25th]])/25)*20) + AAMC_Raw_Data_for_FY22[[#This Row],[25th]]","v":0},null,{"$f":"(((AAMC_Raw_Data_for_FY22[[#This Row],[75th]]-AAMC_Raw_Data_for_FY22[[#This Row],[Median]])/25)*5) + AAMC_Raw_Data_for_FY22[[#This Row],[Median]]","v":0},{"$f":"(((AAMC_Raw_Data_for_FY22[[#This Row],[75th]]-AAMC_Raw_Data_for_FY22[[#This Row],[Median]])/25)*10) + AAMC_Raw_Data_for_FY22[[#This Row],[Median]]","v":0},{"$f":"(((AAMC_Raw_Data_for_FY22[[#This Row],[75th]]-AAMC_Raw_Data_for_FY22[[#This Row],[Median]])/25)*15) + AAMC_Raw_Data_for_FY22[[#This Row],[Median]]","v":0},{"$f":"(((AAMC_Raw_Data_for_FY22[[#This Row],[75th]]-AAMC_Raw_Data_for_FY22[[#This Row],[Median]])/25)*20) + AAMC_Raw_Data_for_FY22[[#This Row],[Median]]","v":0},null,{"$f":"(((AAMC_Raw_Data_for_FY22[[#This Row],[75th]]-AAMC_Raw_Data_for_FY22[[#This Row],[Median]])/25)*30) + AAMC_Raw_Data_for_FY22[[#This Row],[Median]]","v":0},{"$f":"(((AAMC_Raw_Data_for_FY22[[#This Row],[75th]]-AAMC_Raw_Data_for_FY22[[#This Row],[Median]])/25)*35) + AAMC_Raw_Data_for_FY22[[#This Row],[Median]]","v":0},{"$f":"(((AAMC_Raw_Data_for_FY22[[#This Row],[75th]]-AAMC_Raw_Data_for_FY22[[#This Row],[Median]])/25)*40) + AAMC_Raw_Data_for_FY22[[#This Row],[Median]]","v":0}]
[{"$f":"AAMC_Raw_Data_for_FY22[[#This Row],[Source]]&AAMC_Raw_Data_for_FY22[[#This Row],[Type]]&AAMC_Raw_Data_for_FY22[[#This Row],[School Subset]]&AAMC_Raw_Data_for_FY22[[#This Row],[Rank]]&AAMC_Raw_Data_for_FY22[[#This Row],[Degree]]&AAMC_Raw_Data_for_FY22[[#This Row],[Department / Specialty]]&\"L\"","v":"AAMCAcademicAllInstructorMDPulmonary-Peds.L"},"Pulmonary-Peds.",5,"AAMC","Academic","All","Instructor","MD","2021-2022",null,{"$f":"(((AAMC_Raw_Data_for_FY22[[#This Row],[Median]]-AAMC_Raw_Data_for_FY22[[#This Row],[25th]])/25)*5) + AAMC_Raw_Data_for_FY22[[#This Row],[25th]]","v":0},{"$f":"(((AAMC_Raw_Data_for_FY22[[#This Row],[Median]]-AAMC_Raw_Data_for_FY22[[#This Row],[25th]])/25)*10) + AAMC_Raw_Data_for_FY22[[#This Row],[25th]]","v":0},{"$f":"(((AAMC_Raw_Data_for_FY22[[#This Row],[Median]]-AAMC_Raw_Data_for_FY22[[#This Row],[25th]])/25)*15) + AAMC_Raw_Data_for_FY22[[#This Row],[25th]]","v":0},{"$f":"(((AAMC_Raw_Data_for_FY22[[#This Row],[Median]]-AAMC_Raw_Data_for_FY22[[#This Row],[25th]])/25)*20) + AAMC_Raw_Data_for_FY22[[#This Row],[25th]]","v":0},null,{"$f":"(((AAMC_Raw_Data_for_FY22[[#This Row],[75th]]-AAMC_Raw_Data_for_FY22[[#This Row],[Median]])/25)*5) + AAMC_Raw_Data_for_FY22[[#This Row],[Median]]","v":0},{"$f":"(((AAMC_Raw_Data_for_FY22[[#This Row],[75th]]-AAMC_Raw_Data_for_FY22[[#This Row],[Median]])/25)*10) + AAMC_Raw_Data_for_FY22[[#This Row],[Median]]","v":0},{"$f":"(((AAMC_Raw_Data_for_FY22[[#This Row],[75th]]-AAMC_Raw_Data_for_FY22[[#This Row],[Median]])/25)*15) + AAMC_Raw_Data_for_FY22[[#This Row],[Median]]","v":0},{"$f":"(((AAMC_Raw_Data_for_FY22[[#This Row],[75th]]-AAMC_Raw_Data_for_FY22[[#This Row],[Median]])/25)*20) + AAMC_Raw_Data_for_FY22[[#This Row],[Median]]","v":0},null,{"$f":"(((AAMC_Raw_Data_for_FY22[[#This Row],[75th]]-AAMC_Raw_Data_for_FY22[[#This Row],[Median]])/25)*30) + AAMC_Raw_Data_for_FY22[[#This Row],[Median]]","v":0},{"$f":"(((AAMC_Raw_Data_for_FY22[[#This Row],[75th]]-AAMC_Raw_Data_for_FY22[[#This Row],[Median]])/25)*35) + AAMC_Raw_Data_for_FY22[[#This Row],[Median]]","v":0},{"$f":"(((AAMC_Raw_Data_for_FY22[[#This Row],[75th]]-AAMC_Raw_Data_for_FY22[[#This Row],[Median]])/25)*40) + AAMC_Raw_Data_for_FY22[[#This Row],[Median]]","v":0}]
[{"$f":"AAMC_Raw_Data_for_FY22[[#This Row],[Source]]&AAMC_Raw_Data_for_FY22[[#This Row],[Type]]&AAMC_Raw_Data_for_FY22[[#This Row],[School Subset]]&AAMC_Raw_Data_for_FY22[[#This Row],[Rank]]&AAMC_Raw_Data_for_FY22[[#This Row],[Degree]]&AAMC_Raw_Data_for_FY22[[#This Row],[Department / Specialty]]&\"L\"","v":"AAMCAcademicAllAssistantMDPulmonary-Peds.L"},"Pulmonary-Peds.",4,"AAMC","Academic","All","Assistant","MD","2021-2022",183036,{"$f":"(((AAMC_Raw_Data_for_FY22[[#This Row],[Median]]-AAMC_Raw_Data_for_FY22[[#This Row],[25th]])/25)*5) + AAMC_Raw_Data_for_FY22[[#This Row],[25th]]","v":185857.4},{"$f":"(((AAMC_Raw_Data_for_FY22[[#This Row],[Median]]-AAMC_Raw_Data_for_FY22[[#This Row],[25th]])/25)*10) + AAMC_Raw_Data_for_FY22[[#This Row],[25th]]","v":188678.8},{"$f":"(((AAMC_Raw_Data_for_FY22[[#This Row],[Median]]-AAMC_Raw_Data_for_FY22[[#This Row],[25th]])/25)*15) + AAMC_Raw_Data_for_FY22[[#This Row],[25th]]","v":191500.2},{"$f":"(((AAMC_Raw_Data_for_FY22[[#This Row],[Median]]-AAMC_Raw_Data_for_FY22[[#This Row],[25th]])/25)*20) + AAMC_Raw_Data_for_FY22[[#This Row],[25th]]","v":194321.6},197143,{"$f":"(((AAMC_Raw_Data_for_FY22[[#This Row],[75th]]-AAMC_Raw_Data_for_FY22[[#This Row],[Median]])/25)*5) + AAMC_Raw_Data_for_FY22[[#This Row],[Median]]","v":201534.6},{"$f":"(((AAMC_Raw_Data_for_FY22[[#This Row],[75th]]-AAMC_Raw_Data_for_FY22[[#This Row],[Median]])/25)*10) + AAMC_Raw_Data_for_FY22[[#This Row],[Median]]","v":205926.2},{"$f":"(((AAMC_Raw_Data_for_FY22[[#This Row],[75th]]-AAMC_Raw_Data_for_FY22[[#This Row],[Median]])/25)*15) + AAMC_Raw_Data_for_FY22[[#This Row],[Median]]","v":210317.8},{"$f":"(((AAMC_Raw_Data_for_FY22[[#This Row],[75th]]-AAMC_Raw_Data_for_FY22[[#This Row],[Median]])/25)*20) + AAMC_Raw_Data_for_FY22[[#This Row],[Median]]","v":214709.4},219101,{"$f":"(((AAMC_Raw_Data_for_FY22[[#This Row],[75th]]-AAMC_Raw_Data_for_FY22[[#This Row],[Median]])/25)*30) + AAMC_Raw_Data_for_FY22[[#This Row],[Median]]","v":223492.6},{"$f":"(((AAMC_Raw_Data_for_FY22[[#This Row],[75th]]-AAMC_Raw_Data_for_FY22[[#This Row],[Median]])/25)*35) + AAMC_Raw_Data_for_FY22[[#This Row],[Median]]","v":227884.2},{"$f":"(((AAMC_Raw_Data_for_FY22[[#This Row],[75th]]-AAMC_Raw_Data_for_FY22[[#This Row],[Median]])/25)*40) + AAMC_Raw_Data_for_FY22[[#This Row],[Median]]","v":232275.8}]
[{"$f":"AAMC_Raw_Data_for_FY22[[#This Row],[Source]]&AAMC_Raw_Data_for_FY22[[#This Row],[Type]]&AAMC_Raw_Data_for_FY22[[#This Row],[School Subset]]&AAMC_Raw_Data_for_FY22[[#This Row],[Rank]]&AAMC_Raw_Data_for_FY22[[#This Row],[Degree]]&AAMC_Raw_Data_for_FY22[[#This Row],[Department / Specialty]]&\"L\"","v":"AAMCAcademicAllAssociateMDPulmonary-Peds.L"},"Pulmonary-Peds.",3,"AAMC","Academic","All","Associate","MD","2021-2022",215372,{"$f":"(((AAMC_Raw_Data_for_FY22[[#This Row],[Median]]-AAMC_Raw_Data_for_FY22[[#This Row],[25th]])/25)*5) + AAMC_Raw_Data_for_FY22[[#This Row],[25th]]","v":220198.6},{"$f":"(((AAMC_Raw_Data_for_FY22[[#This Row],[Median]]-AAMC_Raw_Data_for_FY22[[#This Row],[25th]])/25)*10) + AAMC_Raw_Data_for_FY22[[#This Row],[25th]]","v":225025.2},{"$f":"(((AAMC_Raw_Data_for_FY22[[#This Row],[Median]]-AAMC_Raw_Data_for_FY22[[#This Row],[25th]])/25)*15) + AAMC_Raw_Data_for_FY22[[#This Row],[25th]]","v":229851.8},{"$f":"(((AAMC_Raw_Data_for_FY22[[#This Row],[Median]]-AAMC_Raw_Data_for_FY22[[#This Row],[25th]])/25)*20) + AAMC_Raw_Data_for_FY22[[#This Row],[25th]]","v":234678.39999999999},239505,{"$f":"(((AAMC_Raw_Data_for_FY22[[#This Row],[75th]]-AAMC_Raw_Data_for_FY22[[#This Row],[Median]])/25)*5) + AAMC_Raw_Data_for_FY22[[#This Row],[Median]]","v":245406.4},{"$f":"(((AAMC_Raw_Data_for_FY22[[#This Row],[75th]]-AAMC_Raw_Data_for_FY22[[#This Row],[Median]])/25)*10) + AAMC_Raw_Data_for_FY22[[#This Row],[Median]]","v":251307.8},{"$f":"(((AAMC_Raw_Data_for_FY22[[#This Row],[75th]]-AAMC_Raw_Data_for_FY22[[#This Row],[Median]])/25)*15) + AAMC_Raw_Data_for_FY22[[#This Row],[Median]]","v":257209.2},{"$f":"(((AAMC_Raw_Data_for_FY22[[#This Row],[75th]]-AAMC_Raw_Data_for_FY22[[#This Row],[Median]])/25)*20) + AAMC_Raw_Data_for_FY22[[#This Row],[Median]]","v":263110.59999999998},269012,{"$f":"(((AAMC_Raw_Data_for_FY22[[#This Row],[75th]]-AAMC_Raw_Data_for_FY22[[#This Row],[Median]])/25)*30) + AAMC_Raw_Data_for_FY22[[#This Row],[Median]]","v":274913.40000000002},{"$f":"(((AAMC_Raw_Data_for_FY22[[#This Row],[75th]]-AAMC_Raw_Data_for_FY22[[#This Row],[Median]])/25)*35) + AAMC_Raw_Data_for_FY22[[#This Row],[Median]]","v":280814.8},{"$f":"(((AAMC_Raw_Data_for_FY22[[#This Row],[75th]]-AAMC_Raw_Data_for_FY22[[#This Row],[Median]])/25)*40) + AAMC_Raw_Data_for_FY22[[#This Row],[Median]]","v":286716.2}]
[{"$f":"AAMC_Raw_Data_for_FY22[[#This Row],[Source]]&AAMC_Raw_Data_for_FY22[[#This Row],[Type]]&AAMC_Raw_Data_for_FY22[[#This Row],[School Subset]]&AAMC_Raw_Data_for_FY22[[#This Row],[Rank]]&AAMC_Raw_Data_for_FY22[[#This Row],[Degree]]&AAMC_Raw_Data_for_FY22[[#This Row],[Department / Specialty]]&\"L\"","v":"AAMCAcademicAllProfessorMDPulmonary-Peds.L"},"Pulmonary-Peds.",2,"AAMC","Academic","All","Professor","MD","2021-2022",253874,{"$f":"(((AAMC_Raw_Data_for_FY22[[#This Row],[Median]]-AAMC_Raw_Data_for_FY22[[#This Row],[25th]])/25)*5) + AAMC_Raw_Data_for_FY22[[#This Row],[25th]]","v":259021.6},{"$f":"(((AAMC_Raw_Data_for_FY22[[#This Row],[Median]]-AAMC_Raw_Data_for_FY22[[#This Row],[25th]])/25)*10) + AAMC_Raw_Data_for_FY22[[#This Row],[25th]]","v":264169.2},{"$f":"(((AAMC_Raw_Data_for_FY22[[#This Row],[Median]]-AAMC_Raw_Data_for_FY22[[#This Row],[25th]])/25)*15) + AAMC_Raw_Data_for_FY22[[#This Row],[25th]]","v":269316.8},{"$f":"(((AAMC_Raw_Data_for_FY22[[#This Row],[Median]]-AAMC_Raw_Data_for_FY22[[#This Row],[25th]])/25)*20) + AAMC_Raw_Data_for_FY22[[#This Row],[25th]]","v":274464.40000000002},279612,{"$f":"(((AAMC_Raw_Data_for_FY22[[#This Row],[75th]]-AAMC_Raw_Data_for_FY22[[#This Row],[Median]])/25)*5) + AAMC_Raw_Data_for_FY22[[#This Row],[Median]]","v":287360.59999999998},{"$f":"(((AAMC_Raw_Data_for_FY22[[#This Row],[75th]]-AAMC_Raw_Data_for_FY22[[#This Row],[Median]])/25)*10) + AAMC_Raw_Data_for_FY22[[#This Row],[Median]]","v":295109.2},{"$f":"(((AAMC_Raw_Data_for_FY22[[#This Row],[75th]]-AAMC_Raw_Data_for_FY22[[#This Row],[Median]])/25)*15) + AAMC_Raw_Data_for_FY22[[#This Row],[Median]]","v":302857.8},{"$f":"(((AAMC_Raw_Data_for_FY22[[#This Row],[75th]]-AAMC_Raw_Data_for_FY22[[#This Row],[Median]])/25)*20) + AAMC_Raw_Data_for_FY22[[#This Row],[Median]]","v":310606.40000000002},318355,{"$f":"(((AAMC_Raw_Data_for_FY22[[#This Row],[75th]]-AAMC_Raw_Data_for_FY22[[#This Row],[Median]])/25)*30) + AAMC_Raw_Data_for_FY22[[#This Row],[Median]]","v":326103.59999999998},{"$f":"(((AAMC_Raw_Data_for_FY22[[#This Row],[75th]]-AAMC_Raw_Data_for_FY22[[#This Row],[Median]])/25)*35) + AAMC_Raw_Data_for_FY22[[#This Row],[Median]]","v":333852.2},{"$f":"(((AAMC_Raw_Data_for_FY22[[#This Row],[75th]]-AAMC_Raw_Data_for_FY22[[#This Row],[Median]])/25)*40) + AAMC_Raw_Data_for_FY22[[#This Row],[Median]]","v":341600.8}]
[{"$f":"AAMC_Raw_Data_for_FY22[[#This Row],[Source]]&AAMC_Raw_Data_for_FY22[[#This Row],[Type]]&AAMC_Raw_Data_for_FY22[[#This Row],[School Subset]]&AAMC_Raw_Data_for_FY22[[#This Row],[Rank]]&AAMC_Raw_Data_for_FY22[[#This Row],[Degree]]&AAMC_Raw_Data_for_FY22[[#This Row],[Department / Specialty]]&\"L\"","v":"AAMCAcademicAllChiefMDPulmonary-Peds.L"},"Pulmonary-Peds.",6,"AAMC","Academic","All","Chief","MD","2021-2022",269259,{"$f":"(((AAMC_Raw_Data_for_FY22[[#This Row],[Median]]-AAMC_Raw_Data_for_FY22[[#This Row],[25th]])/25)*5) + AAMC_Raw_Data_for_FY22[[#This Row],[25th]]","v":276169},{"$f":"(((AAMC_Raw_Data_for_FY22[[#This Row],[Median]]-AAMC_Raw_Data_for_FY22[[#This Row],[25th]])/25)*10) + AAMC_Raw_Data_for_FY22[[#This Row],[25th]]","v":283079},{"$f":"(((AAMC_Raw_Data_for_FY22[[#This Row],[Median]]-AAMC_Raw_Data_for_FY22[[#This Row],[25th]])/25)*15) + AAMC_Raw_Data_for_FY22[[#This Row],[25th]]","v":289989},{"$f":"(((AAMC_Raw_Data_for_FY22[[#This Row],[Median]]-AAMC_Raw_Data_for_FY22[[#This Row],[25th]])/25)*20) + AAMC_Raw_Data_for_FY22[[#This Row],[25th]]","v":296899},303809,{"$f":"(((AAMC_Raw_Data_for_FY22[[#This Row],[75th]]-AAMC_Raw_Data_for_FY22[[#This Row],[Median]])/25)*5) + AAMC_Raw_Data_for_FY22[[#This Row],[Median]]","v":318402.40000000002},{"$f":"(((AAMC_Raw_Data_for_FY22[[#This Row],[75th]]-AAMC_Raw_Data_for_FY22[[#This Row],[Median]])/25)*10) + AAMC_Raw_Data_for_FY22[[#This Row],[Median]]","v":332995.8},{"$f":"(((AAMC_Raw_Data_for_FY22[[#This Row],[75th]]-AAMC_Raw_Data_for_FY22[[#This Row],[Median]])/25)*15) + AAMC_Raw_Data_for_FY22[[#This Row],[Median]]","v":347589.2},{"$f":"(((AAMC_Raw_Data_for_FY22[[#This Row],[75th]]-AAMC_Raw_Data_for_FY22[[#This Row],[Median]])/25)*20) + AAMC_Raw_Data_for_FY22[[#This Row],[Median]]","v":362182.6},376776,{"$f":"(((AAMC_Raw_Data_for_FY22[[#This Row],[75th]]-AAMC_Raw_Data_for_FY22[[#This Row],[Median]])/25)*30) + AAMC_Raw_Data_for_FY22[[#This Row],[Median]]","v":391369.4},{"$f":"(((AAMC_Raw_Data_for_FY22[[#This Row],[75th]]-AAMC_Raw_Data_for_FY22[[#This Row],[Median]])/25)*35) + AAMC_Raw_Data_for_FY22[[#This Row],[Median]]","v":405962.8},{"$f":"(((AAMC_Raw_Data_for_FY22[[#This Row],[75th]]-AAMC_Raw_Data_for_FY22[[#This Row],[Median]])/25)*40) + AAMC_Raw_Data_for_FY22[[#This Row],[Median]]","v":420556.2}]
[{"$f":"AAMC_Raw_Data_for_FY22[[#This Row],[Source]]&AAMC_Raw_Data_for_FY22[[#This Row],[Type]]&AAMC_Raw_Data_for_FY22[[#This Row],[School Subset]]&AAMC_Raw_Data_for_FY22[[#This Row],[Rank]]&AAMC_Raw_Data_for_FY22[[#This Row],[Degree]]&AAMC_Raw_Data_for_FY22[[#This Row],[Department / Specialty]]&\"L\"","v":"AAMCAcademicAllChairMDPulmonary-Peds.L"},"Pulmonary-Peds.",1,"AAMC","Academic","All","Chair","MD","2021-2022",492435,{"$f":"(((AAMC_Raw_Data_for_FY22[[#This Row],[Median]]-AAMC_Raw_Data_for_FY22[[#This Row],[25th]])/25)*5) + AAMC_Raw_Data_for_FY22[[#This Row],[25th]]","v":508757.4},{"$f":"(((AAMC_Raw_Data_for_FY22[[#This Row],[Median]]-AAMC_Raw_Data_for_FY22[[#This Row],[25th]])/25)*10) + AAMC_Raw_Data_for_FY22[[#This Row],[25th]]","v":525079.80000000005},{"$f":"(((AAMC_Raw_Data_for_FY22[[#This Row],[Median]]-AAMC_Raw_Data_for_FY22[[#This Row],[25th]])/25)*15) + AAMC_Raw_Data_for_FY22[[#This Row],[25th]]","v":541402.19999999995},{"$f":"(((AAMC_Raw_Data_for_FY22[[#This Row],[Median]]-AAMC_Raw_Data_for_FY22[[#This Row],[25th]])/25)*20) + AAMC_Raw_Data_for_FY22[[#This Row],[25th]]","v":557724.6},574047,{"$f":"(((AAMC_Raw_Data_for_FY22[[#This Row],[75th]]-AAMC_Raw_Data_for_FY22[[#This Row],[Median]])/25)*5) + AAMC_Raw_Data_for_FY22[[#This Row],[Median]]","v":581948.6},{"$f":"(((AAMC_Raw_Data_for_FY22[[#This Row],[75th]]-AAMC_Raw_Data_for_FY22[[#This Row],[Median]])/25)*10) + AAMC_Raw_Data_for_FY22[[#This Row],[Median]]","v":589850.19999999995},{"$f":"(((AAMC_Raw_Data_for_FY22[[#This Row],[75th]]-AAMC_Raw_Data_for_FY22[[#This Row],[Median]])/25)*15) + AAMC_Raw_Data_for_FY22[[#This Row],[Median]]","v":597751.80000000005},{"$f":"(((AAMC_Raw_Data_for_FY22[[#This Row],[75th]]-AAMC_Raw_Data_for_FY22[[#This Row],[Median]])/25)*20) + AAMC_Raw_Data_for_FY22[[#This Row],[Median]]","v":605653.4},613555,{"$f":"(((AAMC_Raw_Data_for_FY22[[#This Row],[75th]]-AAMC_Raw_Data_for_FY22[[#This Row],[Median]])/25)*30) + AAMC_Raw_Data_for_FY22[[#This Row],[Median]]","v":621456.6},{"$f":"(((AAMC_Raw_Data_for_FY22[[#This Row],[75th]]-AAMC_Raw_Data_for_FY22[[#This Row],[Median]])/25)*35) + AAMC_Raw_Data_for_FY22[[#This Row],[Median]]","v":629358.19999999995},{"$f":"(((AAMC_Raw_Data_for_FY22[[#This Row],[75th]]-AAMC_Raw_Data_for_FY22[[#This Row],[Median]])/25)*40) + AAMC_Raw_Data_for_FY22[[#This Row],[Median]]","v":637259.80000000005}]
[{"$f":"AAMC_Raw_Data_for_FY22[[#This Row],[Source]]&AAMC_Raw_Data_for_FY22[[#This Row],[Type]]&AAMC_Raw_Data_for_FY22[[#This Row],[School Subset]]&AAMC_Raw_Data_for_FY22[[#This Row],[Rank]]&AAMC_Raw_Data_for_FY22[[#This Row],[Degree]]&AAMC_Raw_Data_for_FY22[[#This Row],[Department / Specialty]]&\"L\"","v":"AAMCAcademicAllInstructorMDRheumatology-Peds.L"},"Rheumatology-Peds.",5,"AAMC","Academic","All","Instructor","MD","2021-2022",127565,{"$f":"(((AAMC_Raw_Data_for_FY22[[#This Row],[Median]]-AAMC_Raw_Data_for_FY22[[#This Row],[25th]])/25)*5) + AAMC_Raw_Data_for_FY22[[#This Row],[25th]]","v":133038},{"$f":"(((AAMC_Raw_Data_for_FY22[[#This Row],[Median]]-AAMC_Raw_Data_for_FY22[[#This Row],[25th]])/25)*10) + AAMC_Raw_Data_for_FY22[[#This Row],[25th]]","v":138511},{"$f":"(((AAMC_Raw_Data_for_FY22[[#This Row],[Median]]-AAMC_Raw_Data_for_FY22[[#This Row],[25th]])/25)*15) + AAMC_Raw_Data_for_FY22[[#This Row],[25th]]","v":143984},{"$f":"(((AAMC_Raw_Data_for_FY22[[#This Row],[Median]]-AAMC_Raw_Data_for_FY22[[#This Row],[25th]])/25)*20) + AAMC_Raw_Data_for_FY22[[#This Row],[25th]]","v":149457},154930,{"$f":"(((AAMC_Raw_Data_for_FY22[[#This Row],[75th]]-AAMC_Raw_Data_for_FY22[[#This Row],[Median]])/25)*5) + AAMC_Raw_Data_for_FY22[[#This Row],[Median]]","v":160954.20000000001},{"$f":"(((AAMC_Raw_Data_for_FY22[[#This Row],[75th]]-AAMC_Raw_Data_for_FY22[[#This Row],[Median]])/25)*10) + AAMC_Raw_Data_for_FY22[[#This Row],[Median]]","v":166978.4},{"$f":"(((AAMC_Raw_Data_for_FY22[[#This Row],[75th]]-AAMC_Raw_Data_for_FY22[[#This Row],[Median]])/25)*15) + AAMC_Raw_Data_for_FY22[[#This Row],[Median]]","v":173002.6},{"$f":"(((AAMC_Raw_Data_for_FY22[[#This Row],[75th]]-AAMC_Raw_Data_for_FY22[[#This Row],[Median]])/25)*20) + AAMC_Raw_Data_for_FY22[[#This Row],[Median]]","v":179026.8},185051,{"$f":"(((AAMC_Raw_Data_for_FY22[[#This Row],[75th]]-AAMC_Raw_Data_for_FY22[[#This Row],[Median]])/25)*30) + AAMC_Raw_Data_for_FY22[[#This Row],[Median]]","v":191075.20000000001},{"$f":"(((AAMC_Raw_Data_for_FY22[[#This Row],[75th]]-AAMC_Raw_Data_for_FY22[[#This Row],[Median]])/25)*35) + AAMC_Raw_Data_for_FY22[[#This Row],[Median]]","v":197099.4},{"$f":"(((AAMC_Raw_Data_for_FY22[[#This Row],[75th]]-AAMC_Raw_Data_for_FY22[[#This Row],[Median]])/25)*40) + AAMC_Raw_Data_for_FY22[[#This Row],[Median]]","v":203123.6}]
[{"$f":"AAMC_Raw_Data_for_FY22[[#This Row],[Source]]&AAMC_Raw_Data_for_FY22[[#This Row],[Type]]&AAMC_Raw_Data_for_FY22[[#This Row],[School Subset]]&AAMC_Raw_Data_for_FY22[[#This Row],[Rank]]&AAMC_Raw_Data_for_FY22[[#This Row],[Degree]]&AAMC_Raw_Data_for_FY22[[#This Row],[Department / Specialty]]&\"L\"","v":"AAMCAcademicAllAssistantMDRheumatology-Peds.L"},"Rheumatology-Peds.",4,"AAMC","Academic","All","Assistant","MD","2021-2022",168668,{"$f":"(((AAMC_Raw_Data_for_FY22[[#This Row],[Median]]-AAMC_Raw_Data_for_FY22[[#This Row],[25th]])/25)*5) + AAMC_Raw_Data_for_FY22[[#This Row],[25th]]","v":169924.4},{"$f":"(((AAMC_Raw_Data_for_FY22[[#This Row],[Median]]-AAMC_Raw_Data_for_FY22[[#This Row],[25th]])/25)*10) + AAMC_Raw_Data_for_FY22[[#This Row],[25th]]","v":171180.79999999999},{"$f":"(((AAMC_Raw_Data_for_FY22[[#This Row],[Median]]-AAMC_Raw_Data_for_FY22[[#This Row],[25th]])/25)*15) + AAMC_Raw_Data_for_FY22[[#This Row],[25th]]","v":172437.2},{"$f":"(((AAMC_Raw_Data_for_FY22[[#This Row],[Median]]-AAMC_Raw_Data_for_FY22[[#This Row],[25th]])/25)*20) + AAMC_Raw_Data_for_FY22[[#This Row],[25th]]","v":173693.6},174950,{"$f":"(((AAMC_Raw_Data_for_FY22[[#This Row],[75th]]-AAMC_Raw_Data_for_FY22[[#This Row],[Median]])/25)*5) + AAMC_Raw_Data_for_FY22[[#This Row],[Median]]","v":178419.6},{"$f":"(((AAMC_Raw_Data_for_FY22[[#This Row],[75th]]-AAMC_Raw_Data_for_FY22[[#This Row],[Median]])/25)*10) + AAMC_Raw_Data_for_FY22[[#This Row],[Median]]","v":181889.2},{"$f":"(((AAMC_Raw_Data_for_FY22[[#This Row],[75th]]-AAMC_Raw_Data_for_FY22[[#This Row],[Median]])/25)*15) + AAMC_Raw_Data_for_FY22[[#This Row],[Median]]","v":185358.8},{"$f":"(((AAMC_Raw_Data_for_FY22[[#This Row],[75th]]-AAMC_Raw_Data_for_FY22[[#This Row],[Median]])/25)*20) + AAMC_Raw_Data_for_FY22[[#This Row],[Median]]","v":188828.4},192298,{"$f":"(((AAMC_Raw_Data_for_FY22[[#This Row],[75th]]-AAMC_Raw_Data_for_FY22[[#This Row],[Median]])/25)*30) + AAMC_Raw_Data_for_FY22[[#This Row],[Median]]","v":195767.6},{"$f":"(((AAMC_Raw_Data_for_FY22[[#This Row],[75th]]-AAMC_Raw_Data_for_FY22[[#This Row],[Median]])/25)*35) + AAMC_Raw_Data_for_FY22[[#This Row],[Median]]","v":199237.2},{"$f":"(((AAMC_Raw_Data_for_FY22[[#This Row],[75th]]-AAMC_Raw_Data_for_FY22[[#This Row],[Median]])/25)*40) + AAMC_Raw_Data_for_FY22[[#This Row],[Median]]","v":202706.8}]
[{"$f":"AAMC_Raw_Data_for_FY22[[#This Row],[Source]]&AAMC_Raw_Data_for_FY22[[#This Row],[Type]]&AAMC_Raw_Data_for_FY22[[#This Row],[School Subset]]&AAMC_Raw_Data_for_FY22[[#This Row],[Rank]]&AAMC_Raw_Data_for_FY22[[#This Row],[Degree]]&AAMC_Raw_Data_for_FY22[[#This Row],[Department / Specialty]]&\"L\"","v":"AAMCAcademicAllAssociateMDRheumatology-Peds.L"},"Rheumatology-Peds.",3,"AAMC","Academic","All","Associate","MD","2021-2022",202726,{"$f":"(((AAMC_Raw_Data_for_FY22[[#This Row],[Median]]-AAMC_Raw_Data_for_FY22[[#This Row],[25th]])/25)*5) + AAMC_Raw_Data_for_FY22[[#This Row],[25th]]","v":205293.2},{"$f":"(((AAMC_Raw_Data_for_FY22[[#This Row],[Median]]-AAMC_Raw_Data_for_FY22[[#This Row],[25th]])/25)*10) + AAMC_Raw_Data_for_FY22[[#This Row],[25th]]","v":207860.4},{"$f":"(((AAMC_Raw_Data_for_FY22[[#This Row],[Median]]-AAMC_Raw_Data_for_FY22[[#This Row],[25th]])/25)*15) + AAMC_Raw_Data_for_FY22[[#This Row],[25th]]","v":210427.6},{"$f":"(((AAMC_Raw_Data_for_FY22[[#This Row],[Median]]-AAMC_Raw_Data_for_FY22[[#This Row],[25th]])/25)*20) + AAMC_Raw_Data_for_FY22[[#This Row],[25th]]","v":212994.8},215562,{"$f":"(((AAMC_Raw_Data_for_FY22[[#This Row],[75th]]-AAMC_Raw_Data_for_FY22[[#This Row],[Median]])/25)*5) + AAMC_Raw_Data_for_FY22[[#This Row],[Median]]","v":219154.8},{"$f":"(((AAMC_Raw_Data_for_FY22[[#This Row],[75th]]-AAMC_Raw_Data_for_FY22[[#This Row],[Median]])/25)*10) + AAMC_Raw_Data_for_FY22[[#This Row],[Median]]","v":222747.6},{"$f":"(((AAMC_Raw_Data_for_FY22[[#This Row],[75th]]-AAMC_Raw_Data_for_FY22[[#This Row],[Median]])/25)*15) + AAMC_Raw_Data_for_FY22[[#This Row],[Median]]","v":226340.4},{"$f":"(((AAMC_Raw_Data_for_FY22[[#This Row],[75th]]-AAMC_Raw_Data_for_FY22[[#This Row],[Median]])/25)*20) + AAMC_Raw_Data_for_FY22[[#This Row],[Median]]","v":229933.2},233526,{"$f":"(((AAMC_Raw_Data_for_FY22[[#This Row],[75th]]-AAMC_Raw_Data_for_FY22[[#This Row],[Median]])/25)*30) + AAMC_Raw_Data_for_FY22[[#This Row],[Median]]","v":237118.8},{"$f":"(((AAMC_Raw_Data_for_FY22[[#This Row],[75th]]-AAMC_Raw_Data_for_FY22[[#This Row],[Median]])/25)*35) + AAMC_Raw_Data_for_FY22[[#This Row],[Median]]","v":240711.6},{"$f":"(((AAMC_Raw_Data_for_FY22[[#This Row],[75th]]-AAMC_Raw_Data_for_FY22[[#This Row],[Median]])/25)*40) + AAMC_Raw_Data_for_FY22[[#This Row],[Median]]","v":244304.4}]
[{"$f":"AAMC_Raw_Data_for_FY22[[#This Row],[Source]]&AAMC_Raw_Data_for_FY22[[#This Row],[Type]]&AAMC_Raw_Data_for_FY22[[#This Row],[School Subset]]&AAMC_Raw_Data_for_FY22[[#This Row],[Rank]]&AAMC_Raw_Data_for_FY22[[#This Row],[Degree]]&AAMC_Raw_Data_for_FY22[[#This Row],[Department / Specialty]]&\"L\"","v":"AAMCAcademicAllProfessorMDRheumatology-Peds.L"},"Rheumatology-Peds.",2,"AAMC","Academic","All","Professor","MD","2021-2022",252247,{"$f":"(((AAMC_Raw_Data_for_FY22[[#This Row],[Median]]-AAMC_Raw_Data_for_FY22[[#This Row],[25th]])/25)*5) + AAMC_Raw_Data_for_FY22[[#This Row],[25th]]","v":255935.6},{"$f":"(((AAMC_Raw_Data_for_FY22[[#This Row],[Median]]-AAMC_Raw_Data_for_FY22[[#This Row],[25th]])/25)*10) + AAMC_Raw_Data_for_FY22[[#This Row],[25th]]","v":259624.2},{"$f":"(((AAMC_Raw_Data_for_FY22[[#This Row],[Median]]-AAMC_Raw_Data_for_FY22[[#This Row],[25th]])/25)*15) + AAMC_Raw_Data_for_FY22[[#This Row],[25th]]","v":263312.8},{"$f":"(((AAMC_Raw_Data_for_FY22[[#This Row],[Median]]-AAMC_Raw_Data_for_FY22[[#This Row],[25th]])/25)*20) + AAMC_Raw_Data_for_FY22[[#This Row],[25th]]","v":267001.40000000002},270690,{"$f":"(((AAMC_Raw_Data_for_FY22[[#This Row],[75th]]-AAMC_Raw_Data_for_FY22[[#This Row],[Median]])/25)*5) + AAMC_Raw_Data_for_FY22[[#This Row],[Median]]","v":280219},{"$f":"(((AAMC_Raw_Data_for_FY22[[#This Row],[75th]]-AAMC_Raw_Data_for_FY22[[#This Row],[Median]])/25)*10) + AAMC_Raw_Data_for_FY22[[#This Row],[Median]]","v":289748},{"$f":"(((AAMC_Raw_Data_for_FY22[[#This Row],[75th]]-AAMC_Raw_Data_for_FY22[[#This Row],[Median]])/25)*15) + AAMC_Raw_Data_for_FY22[[#This Row],[Median]]","v":299277},{"$f":"(((AAMC_Raw_Data_for_FY22[[#This Row],[75th]]-AAMC_Raw_Data_for_FY22[[#This Row],[Median]])/25)*20) + AAMC_Raw_Data_for_FY22[[#This Row],[Median]]","v":308806},318335,{"$f":"(((AAMC_Raw_Data_for_FY22[[#This Row],[75th]]-AAMC_Raw_Data_for_FY22[[#This Row],[Median]])/25)*30) + AAMC_Raw_Data_for_FY22[[#This Row],[Median]]","v":327864},{"$f":"(((AAMC_Raw_Data_for_FY22[[#This Row],[75th]]-AAMC_Raw_Data_for_FY22[[#This Row],[Median]])/25)*35) + AAMC_Raw_Data_for_FY22[[#This Row],[Median]]","v":337393},{"$f":"(((AAMC_Raw_Data_for_FY22[[#This Row],[75th]]-AAMC_Raw_Data_for_FY22[[#This Row],[Median]])/25)*40) + AAMC_Raw_Data_for_FY22[[#This Row],[Median]]","v":346922}]
[{"$f":"AAMC_Raw_Data_for_FY22[[#This Row],[Source]]&AAMC_Raw_Data_for_FY22[[#This Row],[Type]]&AAMC_Raw_Data_for_FY22[[#This Row],[School Subset]]&AAMC_Raw_Data_for_FY22[[#This Row],[Rank]]&AAMC_Raw_Data_for_FY22[[#This Row],[Degree]]&AAMC_Raw_Data_for_FY22[[#This Row],[Department / Specialty]]&\"L\"","v":"AAMCAcademicAllChiefMDRheumatology-Peds.L"},"Rheumatology-Peds.",6,"AAMC","Academic","All","Chief","MD","2021-2022",247975,{"$f":"(((AAMC_Raw_Data_for_FY22[[#This Row],[Median]]-AAMC_Raw_Data_for_FY22[[#This Row],[25th]])/25)*5) + AAMC_Raw_Data_for_FY22[[#This Row],[25th]]","v":256134.6},{"$f":"(((AAMC_Raw_Data_for_FY22[[#This Row],[Median]]-AAMC_Raw_Data_for_FY22[[#This Row],[25th]])/25)*10) + AAMC_Raw_Data_for_FY22[[#This Row],[25th]]","v":264294.2},{"$f":"(((AAMC_Raw_Data_for_FY22[[#This Row],[Median]]-AAMC_Raw_Data_for_FY22[[#This Row],[25th]])/25)*15) + AAMC_Raw_Data_for_FY22[[#This Row],[25th]]","v":272453.8},{"$f":"(((AAMC_Raw_Data_for_FY22[[#This Row],[Median]]-AAMC_Raw_Data_for_FY22[[#This Row],[25th]])/25)*20) + AAMC_Raw_Data_for_FY22[[#This Row],[25th]]","v":280613.40000000002},288773,{"$f":"(((AAMC_Raw_Data_for_FY22[[#This Row],[75th]]-AAMC_Raw_Data_for_FY22[[#This Row],[Median]])/25)*5) + AAMC_Raw_Data_for_FY22[[#This Row],[Median]]","v":295475.20000000001},{"$f":"(((AAMC_Raw_Data_for_FY22[[#This Row],[75th]]-AAMC_Raw_Data_for_FY22[[#This Row],[Median]])/25)*10) + AAMC_Raw_Data_for_FY22[[#This Row],[Median]]","v":302177.40000000002},{"$f":"(((AAMC_Raw_Data_for_FY22[[#This Row],[75th]]-AAMC_Raw_Data_for_FY22[[#This Row],[Median]])/25)*15) + AAMC_Raw_Data_for_FY22[[#This Row],[Median]]","v":308879.59999999998},{"$f":"(((AAMC_Raw_Data_for_FY22[[#This Row],[75th]]-AAMC_Raw_Data_for_FY22[[#This Row],[Median]])/25)*20) + AAMC_Raw_Data_for_FY22[[#This Row],[Median]]","v":315581.8},322284,{"$f":"(((AAMC_Raw_Data_for_FY22[[#This Row],[75th]]-AAMC_Raw_Data_for_FY22[[#This Row],[Median]])/25)*30) + AAMC_Raw_Data_for_FY22[[#This Row],[Median]]","v":328986.2},{"$f":"(((AAMC_Raw_Data_for_FY22[[#This Row],[75th]]-AAMC_Raw_Data_for_FY22[[#This Row],[Median]])/25)*35) + AAMC_Raw_Data_for_FY22[[#This Row],[Median]]","v":335688.4},{"$f":"(((AAMC_Raw_Data_for_FY22[[#This Row],[75th]]-AAMC_Raw_Data_for_FY22[[#This Row],[Median]])/25)*40) + AAMC_Raw_Data_for_FY22[[#This Row],[Median]]","v":342390.6}]
[{"$f":"AAMC_Raw_Data_for_FY22[[#This Row],[Source]]&AAMC_Raw_Data_for_FY22[[#This Row],[Type]]&AAMC_Raw_Data_for_FY22[[#This Row],[School Subset]]&AAMC_Raw_Data_for_FY22[[#This Row],[Rank]]&AAMC_Raw_Data_for_FY22[[#This Row],[Degree]]&AAMC_Raw_Data_for_FY22[[#This Row],[Department / Specialty]]&\"L\"","v":"AAMCAcademicAllChairMDRheumatology-Peds.L"},"Rheumatology-Peds.",1,"AAMC","Academic","All","Chair","MD","2021-2022",null,{"$f":"(((AAMC_Raw_Data_for_FY22[[#This Row],[Median]]-AAMC_Raw_Data_for_FY22[[#This Row],[25th]])/25)*5) + AAMC_Raw_Data_for_FY22[[#This Row],[25th]]","v":0},{"$f":"(((AAMC_Raw_Data_for_FY22[[#This Row],[Median]]-AAMC_Raw_Data_for_FY22[[#This Row],[25th]])/25)*10) + AAMC_Raw_Data_for_FY22[[#This Row],[25th]]","v":0},{"$f":"(((AAMC_Raw_Data_for_FY22[[#This Row],[Median]]-AAMC_Raw_Data_for_FY22[[#This Row],[25th]])/25)*15) + AAMC_Raw_Data_for_FY22[[#This Row],[25th]]","v":0},{"$f":"(((AAMC_Raw_Data_for_FY22[[#This Row],[Median]]-AAMC_Raw_Data_for_FY22[[#This Row],[25th]])/25)*20) + AAMC_Raw_Data_for_FY22[[#This Row],[25th]]","v":0},null,{"$f":"(((AAMC_Raw_Data_for_FY22[[#This Row],[75th]]-AAMC_Raw_Data_for_FY22[[#This Row],[Median]])/25)*5) + AAMC_Raw_Data_for_FY22[[#This Row],[Median]]","v":0},{"$f":"(((AAMC_Raw_Data_for_FY22[[#This Row],[75th]]-AAMC_Raw_Data_for_FY22[[#This Row],[Median]])/25)*10) + AAMC_Raw_Data_for_FY22[[#This Row],[Median]]","v":0},{"$f":"(((AAMC_Raw_Data_for_FY22[[#This Row],[75th]]-AAMC_Raw_Data_for_FY22[[#This Row],[Median]])/25)*15) + AAMC_Raw_Data_for_FY22[[#This Row],[Median]]","v":0},{"$f":"(((AAMC_Raw_Data_for_FY22[[#This Row],[75th]]-AAMC_Raw_Data_for_FY22[[#This Row],[Median]])/25)*20) + AAMC_Raw_Data_for_FY22[[#This Row],[Median]]","v":0},null,{"$f":"(((AAMC_Raw_Data_for_FY22[[#This Row],[75th]]-AAMC_Raw_Data_for_FY22[[#This Row],[Median]])/25)*30) + AAMC_Raw_Data_for_FY22[[#This Row],[Median]]","v":0},{"$f":"(((AAMC_Raw_Data_for_FY22[[#This Row],[75th]]-AAMC_Raw_Data_for_FY22[[#This Row],[Median]])/25)*35) + AAMC_Raw_Data_for_FY22[[#This Row],[Median]]","v":0},{"$f":"(((AAMC_Raw_Data_for_FY22[[#This Row],[75th]]-AAMC_Raw_Data_for_FY22[[#This Row],[Median]])/25)*40) + AAMC_Raw_Data_for_FY22[[#This Row],[Median]]","v":0}]
[{"$f":"AAMC_Raw_Data_for_FY22[[#This Row],[Source]]&AAMC_Raw_Data_for_FY22[[#This Row],[Type]]&AAMC_Raw_Data_for_FY22[[#This Row],[School Subset]]&AAMC_Raw_Data_for_FY22[[#This Row],[Rank]]&AAMC_Raw_Data_for_FY22[[#This Row],[Degree]]&AAMC_Raw_Data_for_FY22[[#This Row],[Department / Specialty]]&\"L\"","v":"AAMCAcademicAllInstructorMDOther PediatricsL"},"Other Pediatrics",5,"AAMC","Academic","All","Instructor","MD","2021-2022",92400,{"$f":"(((AAMC_Raw_Data_for_FY22[[#This Row],[Median]]-AAMC_Raw_Data_for_FY22[[#This Row],[25th]])/25)*5) + AAMC_Raw_Data_for_FY22[[#This Row],[25th]]","v":103922},{"$f":"(((AAMC_Raw_Data_for_FY22[[#This Row],[Median]]-AAMC_Raw_Data_for_FY22[[#This Row],[25th]])/25)*10) + AAMC_Raw_Data_for_FY22[[#This Row],[25th]]","v":115444},{"$f":"(((AAMC_Raw_Data_for_FY22[[#This Row],[Median]]-AAMC_Raw_Data_for_FY22[[#This Row],[25th]])/25)*15) + AAMC_Raw_Data_for_FY22[[#This Row],[25th]]","v":126966},{"$f":"(((AAMC_Raw_Data_for_FY22[[#This Row],[Median]]-AAMC_Raw_Data_for_FY22[[#This Row],[25th]])/25)*20) + AAMC_Raw_Data_for_FY22[[#This Row],[25th]]","v":138488},150010,{"$f":"(((AAMC_Raw_Data_for_FY22[[#This Row],[75th]]-AAMC_Raw_Data_for_FY22[[#This Row],[Median]])/25)*5) + AAMC_Raw_Data_for_FY22[[#This Row],[Median]]","v":158085.6},{"$f":"(((AAMC_Raw_Data_for_FY22[[#This Row],[75th]]-AAMC_Raw_Data_for_FY22[[#This Row],[Median]])/25)*10) + AAMC_Raw_Data_for_FY22[[#This Row],[Median]]","v":166161.20000000001},{"$f":"(((AAMC_Raw_Data_for_FY22[[#This Row],[75th]]-AAMC_Raw_Data_for_FY22[[#This Row],[Median]])/25)*15) + AAMC_Raw_Data_for_FY22[[#This Row],[Median]]","v":174236.79999999999},{"$f":"(((AAMC_Raw_Data_for_FY22[[#This Row],[75th]]-AAMC_Raw_Data_for_FY22[[#This Row],[Median]])/25)*20) + AAMC_Raw_Data_for_FY22[[#This Row],[Median]]","v":182312.4},190388,{"$f":"(((AAMC_Raw_Data_for_FY22[[#This Row],[75th]]-AAMC_Raw_Data_for_FY22[[#This Row],[Median]])/25)*30) + AAMC_Raw_Data_for_FY22[[#This Row],[Median]]","v":198463.6},{"$f":"(((AAMC_Raw_Data_for_FY22[[#This Row],[75th]]-AAMC_Raw_Data_for_FY22[[#This Row],[Median]])/25)*35) + AAMC_Raw_Data_for_FY22[[#This Row],[Median]]","v":206539.2},{"$f":"(((AAMC_Raw_Data_for_FY22[[#This Row],[75th]]-AAMC_Raw_Data_for_FY22[[#This Row],[Median]])/25)*40) + AAMC_Raw_Data_for_FY22[[#This Row],[Median]]","v":214614.8}]
[{"$f":"AAMC_Raw_Data_for_FY22[[#This Row],[Source]]&AAMC_Raw_Data_for_FY22[[#This Row],[Type]]&AAMC_Raw_Data_for_FY22[[#This Row],[School Subset]]&AAMC_Raw_Data_for_FY22[[#This Row],[Rank]]&AAMC_Raw_Data_for_FY22[[#This Row],[Degree]]&AAMC_Raw_Data_for_FY22[[#This Row],[Department / Specialty]]&\"L\"","v":"AAMCAcademicAllAssistantMDOther PediatricsL"},"Other Pediatrics",4,"AAMC","Academic","All","Assistant","MD","2021-2022",177881,{"$f":"(((AAMC_Raw_Data_for_FY22[[#This Row],[Median]]-AAMC_Raw_Data_for_FY22[[#This Row],[25th]])/25)*5) + AAMC_Raw_Data_for_FY22[[#This Row],[25th]]","v":184304.8},{"$f":"(((AAMC_Raw_Data_for_FY22[[#This Row],[Median]]-AAMC_Raw_Data_for_FY22[[#This Row],[25th]])/25)*10) + AAMC_Raw_Data_for_FY22[[#This Row],[25th]]","v":190728.6},{"$f":"(((AAMC_Raw_Data_for_FY22[[#This Row],[Median]]-AAMC_Raw_Data_for_FY22[[#This Row],[25th]])/25)*15) + AAMC_Raw_Data_for_FY22[[#This Row],[25th]]","v":197152.4},{"$f":"(((AAMC_Raw_Data_for_FY22[[#This Row],[Median]]-AAMC_Raw_Data_for_FY22[[#This Row],[25th]])/25)*20) + AAMC_Raw_Data_for_FY22[[#This Row],[25th]]","v":203576.2},210000,{"$f":"(((AAMC_Raw_Data_for_FY22[[#This Row],[75th]]-AAMC_Raw_Data_for_FY22[[#This Row],[Median]])/25)*5) + AAMC_Raw_Data_for_FY22[[#This Row],[Median]]","v":218260.4},{"$f":"(((AAMC_Raw_Data_for_FY22[[#This Row],[75th]]-AAMC_Raw_Data_for_FY22[[#This Row],[Median]])/25)*10) + AAMC_Raw_Data_for_FY22[[#This Row],[Median]]","v":226520.8},{"$f":"(((AAMC_Raw_Data_for_FY22[[#This Row],[75th]]-AAMC_Raw_Data_for_FY22[[#This Row],[Median]])/25)*15) + AAMC_Raw_Data_for_FY22[[#This Row],[Median]]","v":234781.2},{"$f":"(((AAMC_Raw_Data_for_FY22[[#This Row],[75th]]-AAMC_Raw_Data_for_FY22[[#This Row],[Median]])/25)*20) + AAMC_Raw_Data_for_FY22[[#This Row],[Median]]","v":243041.6},251302,{"$f":"(((AAMC_Raw_Data_for_FY22[[#This Row],[75th]]-AAMC_Raw_Data_for_FY22[[#This Row],[Median]])/25)*30) + AAMC_Raw_Data_for_FY22[[#This Row],[Median]]","v":259562.4},{"$f":"(((AAMC_Raw_Data_for_FY22[[#This Row],[75th]]-AAMC_Raw_Data_for_FY22[[#This Row],[Median]])/25)*35) + AAMC_Raw_Data_for_FY22[[#This Row],[Median]]","v":267822.8},{"$f":"(((AAMC_Raw_Data_for_FY22[[#This Row],[75th]]-AAMC_Raw_Data_for_FY22[[#This Row],[Median]])/25)*40) + AAMC_Raw_Data_for_FY22[[#This Row],[Median]]","v":276083.20000000001}]
[{"$f":"AAMC_Raw_Data_for_FY22[[#This Row],[Source]]&AAMC_Raw_Data_for_FY22[[#This Row],[Type]]&AAMC_Raw_Data_for_FY22[[#This Row],[School Subset]]&AAMC_Raw_Data_for_FY22[[#This Row],[Rank]]&AAMC_Raw_Data_for_FY22[[#This Row],[Degree]]&AAMC_Raw_Data_for_FY22[[#This Row],[Department / Specialty]]&\"L\"","v":"AAMCAcademicAllAssociateMDOther PediatricsL"},"Other Pediatrics",3,"AAMC","Academic","All","Associate","MD","2021-2022",200231,{"$f":"(((AAMC_Raw_Data_for_FY22[[#This Row],[Median]]-AAMC_Raw_Data_for_FY22[[#This Row],[25th]])/25)*5) + AAMC_Raw_Data_for_FY22[[#This Row],[25th]]","v":209100.6},{"$f":"(((AAMC_Raw_Data_for_FY22[[#This Row],[Median]]-AAMC_Raw_Data_for_FY22[[#This Row],[25th]])/25)*10) + AAMC_Raw_Data_for_FY22[[#This Row],[25th]]","v":217970.2},{"$f":"(((AAMC_Raw_Data_for_FY22[[#This Row],[Median]]-AAMC_Raw_Data_for_FY22[[#This Row],[25th]])/25)*15) + AAMC_Raw_Data_for_FY22[[#This Row],[25th]]","v":226839.8},{"$f":"(((AAMC_Raw_Data_for_FY22[[#This Row],[Median]]-AAMC_Raw_Data_for_FY22[[#This Row],[25th]])/25)*20) + AAMC_Raw_Data_for_FY22[[#This Row],[25th]]","v":235709.4},244579,{"$f":"(((AAMC_Raw_Data_for_FY22[[#This Row],[75th]]-AAMC_Raw_Data_for_FY22[[#This Row],[Median]])/25)*5) + AAMC_Raw_Data_for_FY22[[#This Row],[Median]]","v":251369.8},{"$f":"(((AAMC_Raw_Data_for_FY22[[#This Row],[75th]]-AAMC_Raw_Data_for_FY22[[#This Row],[Median]])/25)*10) + AAMC_Raw_Data_for_FY22[[#This Row],[Median]]","v":258160.6},{"$f":"(((AAMC_Raw_Data_for_FY22[[#This Row],[75th]]-AAMC_Raw_Data_for_FY22[[#This Row],[Median]])/25)*15) + AAMC_Raw_Data_for_FY22[[#This Row],[Median]]","v":264951.40000000002},{"$f":"(((AAMC_Raw_Data_for_FY22[[#This Row],[75th]]-AAMC_Raw_Data_for_FY22[[#This Row],[Median]])/25)*20) + AAMC_Raw_Data_for_FY22[[#This Row],[Median]]","v":271742.2},278533,{"$f":"(((AAMC_Raw_Data_for_FY22[[#This Row],[75th]]-AAMC_Raw_Data_for_FY22[[#This Row],[Median]])/25)*30) + AAMC_Raw_Data_for_FY22[[#This Row],[Median]]","v":285323.8},{"$f":"(((AAMC_Raw_Data_for_FY22[[#This Row],[75th]]-AAMC_Raw_Data_for_FY22[[#This Row],[Median]])/25)*35) + AAMC_Raw_Data_for_FY22[[#This Row],[Median]]","v":292114.59999999998},{"$f":"(((AAMC_Raw_Data_for_FY22[[#This Row],[75th]]-AAMC_Raw_Data_for_FY22[[#This Row],[Median]])/25)*40) + AAMC_Raw_Data_for_FY22[[#This Row],[Median]]","v":298905.40000000002}]
[{"$f":"AAMC_Raw_Data_for_FY22[[#This Row],[Source]]&AAMC_Raw_Data_for_FY22[[#This Row],[Type]]&AAMC_Raw_Data_for_FY22[[#This Row],[School Subset]]&AAMC_Raw_Data_for_FY22[[#This Row],[Rank]]&AAMC_Raw_Data_for_FY22[[#This Row],[Degree]]&AAMC_Raw_Data_for_FY22[[#This Row],[Department / Specialty]]&\"L\"","v":"AAMCAcademicAllProfessorMDOther PediatricsL"},"Other Pediatrics",2,"AAMC","Academic","All","Professor","MD","2021-2022",252924,{"$f":"(((AAMC_Raw_Data_for_FY22[[#This Row],[Median]]-AAMC_Raw_Data_for_FY22[[#This Row],[25th]])/25)*5) + AAMC_Raw_Data_for_FY22[[#This Row],[25th]]","v":262539.2},{"$f":"(((AAMC_Raw_Data_for_FY22[[#This Row],[Median]]-AAMC_Raw_Data_for_FY22[[#This Row],[25th]])/25)*10) + AAMC_Raw_Data_for_FY22[[#This Row],[25th]]","v":272154.40000000002},{"$f":"(((AAMC_Raw_Data_for_FY22[[#This Row],[Median]]-AAMC_Raw_Data_for_FY22[[#This Row],[25th]])/25)*15) + AAMC_Raw_Data_for_FY22[[#This Row],[25th]]","v":281769.59999999998},{"$f":"(((AAMC_Raw_Data_for_FY22[[#This Row],[Median]]-AAMC_Raw_Data_for_FY22[[#This Row],[25th]])/25)*20) + AAMC_Raw_Data_for_FY22[[#This Row],[25th]]","v":291384.8},301000,{"$f":"(((AAMC_Raw_Data_for_FY22[[#This Row],[75th]]-AAMC_Raw_Data_for_FY22[[#This Row],[Median]])/25)*5) + AAMC_Raw_Data_for_FY22[[#This Row],[Median]]","v":313117.40000000002},{"$f":"(((AAMC_Raw_Data_for_FY22[[#This Row],[75th]]-AAMC_Raw_Data_for_FY22[[#This Row],[Median]])/25)*10) + AAMC_Raw_Data_for_FY22[[#This Row],[Median]]","v":325234.8},{"$f":"(((AAMC_Raw_Data_for_FY22[[#This Row],[75th]]-AAMC_Raw_Data_for_FY22[[#This Row],[Median]])/25)*15) + AAMC_Raw_Data_for_FY22[[#This Row],[Median]]","v":337352.2},{"$f":"(((AAMC_Raw_Data_for_FY22[[#This Row],[75th]]-AAMC_Raw_Data_for_FY22[[#This Row],[Median]])/25)*20) + AAMC_Raw_Data_for_FY22[[#This Row],[Median]]","v":349469.6},361587,{"$f":"(((AAMC_Raw_Data_for_FY22[[#This Row],[75th]]-AAMC_Raw_Data_for_FY22[[#This Row],[Median]])/25)*30) + AAMC_Raw_Data_for_FY22[[#This Row],[Median]]","v":373704.4},{"$f":"(((AAMC_Raw_Data_for_FY22[[#This Row],[75th]]-AAMC_Raw_Data_for_FY22[[#This Row],[Median]])/25)*35) + AAMC_Raw_Data_for_FY22[[#This Row],[Median]]","v":385821.8},{"$f":"(((AAMC_Raw_Data_for_FY22[[#This Row],[75th]]-AAMC_Raw_Data_for_FY22[[#This Row],[Median]])/25)*40) + AAMC_Raw_Data_for_FY22[[#This Row],[Median]]","v":397939.20000000001}]
[{"$f":"AAMC_Raw_Data_for_FY22[[#This Row],[Source]]&AAMC_Raw_Data_for_FY22[[#This Row],[Type]]&AAMC_Raw_Data_for_FY22[[#This Row],[School Subset]]&AAMC_Raw_Data_for_FY22[[#This Row],[Rank]]&AAMC_Raw_Data_for_FY22[[#This Row],[Degree]]&AAMC_Raw_Data_for_FY22[[#This Row],[Department / Specialty]]&\"L\"","v":"AAMCAcademicAllChiefMDOther PediatricsL"},"Other Pediatrics",6,"AAMC","Academic","All","Chief","MD","2021-2022",260385,{"$f":"(((AAMC_Raw_Data_for_FY22[[#This Row],[Median]]-AAMC_Raw_Data_for_FY22[[#This Row],[25th]])/25)*5) + AAMC_Raw_Data_for_FY22[[#This Row],[25th]]","v":271558},{"$f":"(((AAMC_Raw_Data_for_FY22[[#This Row],[Median]]-AAMC_Raw_Data_for_FY22[[#This Row],[25th]])/25)*10) + AAMC_Raw_Data_for_FY22[[#This Row],[25th]]","v":282731},{"$f":"(((AAMC_Raw_Data_for_FY22[[#This Row],[Median]]-AAMC_Raw_Data_for_FY22[[#This Row],[25th]])/25)*15) + AAMC_Raw_Data_for_FY22[[#This Row],[25th]]","v":293904},{"$f":"(((AAMC_Raw_Data_for_FY22[[#This Row],[Median]]-AAMC_Raw_Data_for_FY22[[#This Row],[25th]])/25)*20) + AAMC_Raw_Data_for_FY22[[#This Row],[25th]]","v":305077},316250,{"$f":"(((AAMC_Raw_Data_for_FY22[[#This Row],[75th]]-AAMC_Raw_Data_for_FY22[[#This Row],[Median]])/25)*5) + AAMC_Raw_Data_for_FY22[[#This Row],[Median]]","v":331321.2},{"$f":"(((AAMC_Raw_Data_for_FY22[[#This Row],[75th]]-AAMC_Raw_Data_for_FY22[[#This Row],[Median]])/25)*10) + AAMC_Raw_Data_for_FY22[[#This Row],[Median]]","v":346392.4},{"$f":"(((AAMC_Raw_Data_for_FY22[[#This Row],[75th]]-AAMC_Raw_Data_for_FY22[[#This Row],[Median]])/25)*15) + AAMC_Raw_Data_for_FY22[[#This Row],[Median]]","v":361463.6},{"$f":"(((AAMC_Raw_Data_for_FY22[[#This Row],[75th]]-AAMC_Raw_Data_for_FY22[[#This Row],[Median]])/25)*20) + AAMC_Raw_Data_for_FY22[[#This Row],[Median]]","v":376534.8},391606,{"$f":"(((AAMC_Raw_Data_for_FY22[[#This Row],[75th]]-AAMC_Raw_Data_for_FY22[[#This Row],[Median]])/25)*30) + AAMC_Raw_Data_for_FY22[[#This Row],[Median]]","v":406677.2},{"$f":"(((AAMC_Raw_Data_for_FY22[[#This Row],[75th]]-AAMC_Raw_Data_for_FY22[[#This Row],[Median]])/25)*35) + AAMC_Raw_Data_for_FY22[[#This Row],[Median]]","v":421748.4},{"$f":"(((AAMC_Raw_Data_for_FY22[[#This Row],[75th]]-AAMC_Raw_Data_for_FY22[[#This Row],[Median]])/25)*40) + AAMC_Raw_Data_for_FY22[[#This Row],[Median]]","v":436819.6}]
[{"$f":"AAMC_Raw_Data_for_FY22[[#This Row],[Source]]&AAMC_Raw_Data_for_FY22[[#This Row],[Type]]&AAMC_Raw_Data_for_FY22[[#This Row],[School Subset]]&AAMC_Raw_Data_for_FY22[[#This Row],[Rank]]&AAMC_Raw_Data_for_FY22[[#This Row],[Degree]]&AAMC_Raw_Data_for_FY22[[#This Row],[Department / Specialty]]&\"L\"","v":"AAMCAcademicAllChairMDOther PediatricsL"},"Other Pediatrics",1,"AAMC","Academic","All","Chair","MD","2021-2022",565133,{"$f":"(((AAMC_Raw_Data_for_FY22[[#This Row],[Median]]-AAMC_Raw_Data_for_FY22[[#This Row],[25th]])/25)*5) + AAMC_Raw_Data_for_FY22[[#This Row],[25th]]","v":583951.19999999995},{"$f":"(((AAMC_Raw_Data_for_FY22[[#This Row],[Median]]-AAMC_Raw_Data_for_FY22[[#This Row],[25th]])/25)*10) + AAMC_Raw_Data_for_FY22[[#This Row],[25th]]","v":602769.4},{"$f":"(((AAMC_Raw_Data_for_FY22[[#This Row],[Median]]-AAMC_Raw_Data_for_FY22[[#This Row],[25th]])/25)*15) + AAMC_Raw_Data_for_FY22[[#This Row],[25th]]","v":621587.6},{"$f":"(((AAMC_Raw_Data_for_FY22[[#This Row],[Median]]-AAMC_Raw_Data_for_FY22[[#This Row],[25th]])/25)*20) + AAMC_Raw_Data_for_FY22[[#This Row],[25th]]","v":640405.80000000005},659224,{"$f":"(((AAMC_Raw_Data_for_FY22[[#This Row],[75th]]-AAMC_Raw_Data_for_FY22[[#This Row],[Median]])/25)*5) + AAMC_Raw_Data_for_FY22[[#This Row],[Median]]","v":708244.2},{"$f":"(((AAMC_Raw_Data_for_FY22[[#This Row],[75th]]-AAMC_Raw_Data_for_FY22[[#This Row],[Median]])/25)*10) + AAMC_Raw_Data_for_FY22[[#This Row],[Median]]","v":757264.4},{"$f":"(((AAMC_Raw_Data_for_FY22[[#This Row],[75th]]-AAMC_Raw_Data_for_FY22[[#This Row],[Median]])/25)*15) + AAMC_Raw_Data_for_FY22[[#This Row],[Median]]","v":806284.6},{"$f":"(((AAMC_Raw_Data_for_FY22[[#This Row],[75th]]-AAMC_Raw_Data_for_FY22[[#This Row],[Median]])/25)*20) + AAMC_Raw_Data_for_FY22[[#This Row],[Median]]","v":855304.8},904325,{"$f":"(((AAMC_Raw_Data_for_FY22[[#This Row],[75th]]-AAMC_Raw_Data_for_FY22[[#This Row],[Median]])/25)*30) + AAMC_Raw_Data_for_FY22[[#This Row],[Median]]","v":953345.2},{"$f":"(((AAMC_Raw_Data_for_FY22[[#This Row],[75th]]-AAMC_Raw_Data_for_FY22[[#This Row],[Median]])/25)*35) + AAMC_Raw_Data_for_FY22[[#This Row],[Median]]","v":1002365.4},{"$f":"(((AAMC_Raw_Data_for_FY22[[#This Row],[75th]]-AAMC_Raw_Data_for_FY22[[#This Row],[Median]])/25)*40) + AAMC_Raw_Data_for_FY22[[#This Row],[Median]]","v":1051385.6000000001}]
[{"$f":"AAMC_Raw_Data_for_FY22[[#This Row],[Source]]&AAMC_Raw_Data_for_FY22[[#This Row],[Type]]&AAMC_Raw_Data_for_FY22[[#This Row],[School Subset]]&AAMC_Raw_Data_for_FY22[[#This Row],[Rank]]&AAMC_Raw_Data_for_FY22[[#This Row],[Degree]]&AAMC_Raw_Data_for_FY22[[#This Row],[Department / Specialty]]&\"L\"","v":"AAMCAcademicAllInstructorMDPsychiatry TotalL"},"Psychiatry Total",5,"AAMC","Academic","All","Instructor","MD","2021-2022",198058,{"$f":"(((AAMC_Raw_Data_for_FY22[[#This Row],[Median]]-AAMC_Raw_Data_for_FY22[[#This Row],[25th]])/25)*5) + AAMC_Raw_Data_for_FY22[[#This Row],[25th]]","v":203446.39999999999},{"$f":"(((AAMC_Raw_Data_for_FY22[[#This Row],[Median]]-AAMC_Raw_Data_for_FY22[[#This Row],[25th]])/25)*10) + AAMC_Raw_Data_for_FY22[[#This Row],[25th]]","v":208834.8},{"$f":"(((AAMC_Raw_Data_for_FY22[[#This Row],[Median]]-AAMC_Raw_Data_for_FY22[[#This Row],[25th]])/25)*15) + AAMC_Raw_Data_for_FY22[[#This Row],[25th]]","v":214223.2},{"$f":"(((AAMC_Raw_Data_for_FY22[[#This Row],[Median]]-AAMC_Raw_Data_for_FY22[[#This Row],[25th]])/25)*20) + AAMC_Raw_Data_for_FY22[[#This Row],[25th]]","v":219611.6},225000,{"$f":"(((AAMC_Raw_Data_for_FY22[[#This Row],[75th]]-AAMC_Raw_Data_for_FY22[[#This Row],[Median]])/25)*5) + AAMC_Raw_Data_for_FY22[[#This Row],[Median]]","v":229440},{"$f":"(((AAMC_Raw_Data_for_FY22[[#This Row],[75th]]-AAMC_Raw_Data_for_FY22[[#This Row],[Median]])/25)*10) + AAMC_Raw_Data_for_FY22[[#This Row],[Median]]","v":233880},{"$f":"(((AAMC_Raw_Data_for_FY22[[#This Row],[75th]]-AAMC_Raw_Data_for_FY22[[#This Row],[Median]])/25)*15) + AAMC_Raw_Data_for_FY22[[#This Row],[Median]]","v":238320},{"$f":"(((AAMC_Raw_Data_for_FY22[[#This Row],[75th]]-AAMC_Raw_Data_for_FY22[[#This Row],[Median]])/25)*20) + AAMC_Raw_Data_for_FY22[[#This Row],[Median]]","v":242760},247200,{"$f":"(((AAMC_Raw_Data_for_FY22[[#This Row],[75th]]-AAMC_Raw_Data_for_FY22[[#This Row],[Median]])/25)*30) + AAMC_Raw_Data_for_FY22[[#This Row],[Median]]","v":251640},{"$f":"(((AAMC_Raw_Data_for_FY22[[#This Row],[75th]]-AAMC_Raw_Data_for_FY22[[#This Row],[Median]])/25)*35) + AAMC_Raw_Data_for_FY22[[#This Row],[Median]]","v":256080},{"$f":"(((AAMC_Raw_Data_for_FY22[[#This Row],[75th]]-AAMC_Raw_Data_for_FY22[[#This Row],[Median]])/25)*40) + AAMC_Raw_Data_for_FY22[[#This Row],[Median]]","v":260520}]
[{"$f":"AAMC_Raw_Data_for_FY22[[#This Row],[Source]]&AAMC_Raw_Data_for_FY22[[#This Row],[Type]]&AAMC_Raw_Data_for_FY22[[#This Row],[School Subset]]&AAMC_Raw_Data_for_FY22[[#This Row],[Rank]]&AAMC_Raw_Data_for_FY22[[#This Row],[Degree]]&AAMC_Raw_Data_for_FY22[[#This Row],[Department / Specialty]]&\"L\"","v":"AAMCAcademicAllAssistantMDPsychiatry TotalL"},"Psychiatry Total",4,"AAMC","Academic","All","Assistant","MD","2021-2022",217440,{"$f":"(((AAMC_Raw_Data_for_FY22[[#This Row],[Median]]-AAMC_Raw_Data_for_FY22[[#This Row],[25th]])/25)*5) + AAMC_Raw_Data_for_FY22[[#This Row],[25th]]","v":222344.4},{"$f":"(((AAMC_Raw_Data_for_FY22[[#This Row],[Median]]-AAMC_Raw_Data_for_FY22[[#This Row],[25th]])/25)*10) + AAMC_Raw_Data_for_FY22[[#This Row],[25th]]","v":227248.8},{"$f":"(((AAMC_Raw_Data_for_FY22[[#This Row],[Median]]-AAMC_Raw_Data_for_FY22[[#This Row],[25th]])/25)*15) + AAMC_Raw_Data_for_FY22[[#This Row],[25th]]","v":232153.2},{"$f":"(((AAMC_Raw_Data_for_FY22[[#This Row],[Median]]-AAMC_Raw_Data_for_FY22[[#This Row],[25th]])/25)*20) + AAMC_Raw_Data_for_FY22[[#This Row],[25th]]","v":237057.6},241962,{"$f":"(((AAMC_Raw_Data_for_FY22[[#This Row],[75th]]-AAMC_Raw_Data_for_FY22[[#This Row],[Median]])/25)*5) + AAMC_Raw_Data_for_FY22[[#This Row],[Median]]","v":247878.39999999999},{"$f":"(((AAMC_Raw_Data_for_FY22[[#This Row],[75th]]-AAMC_Raw_Data_for_FY22[[#This Row],[Median]])/25)*10) + AAMC_Raw_Data_for_FY22[[#This Row],[Median]]","v":253794.8},{"$f":"(((AAMC_Raw_Data_for_FY22[[#This Row],[75th]]-AAMC_Raw_Data_for_FY22[[#This Row],[Median]])/25)*15) + AAMC_Raw_Data_for_FY22[[#This Row],[Median]]","v":259711.2},{"$f":"(((AAMC_Raw_Data_for_FY22[[#This Row],[75th]]-AAMC_Raw_Data_for_FY22[[#This Row],[Median]])/25)*20) + AAMC_Raw_Data_for_FY22[[#This Row],[Median]]","v":265627.59999999998},271544,{"$f":"(((AAMC_Raw_Data_for_FY22[[#This Row],[75th]]-AAMC_Raw_Data_for_FY22[[#This Row],[Median]])/25)*30) + AAMC_Raw_Data_for_FY22[[#This Row],[Median]]","v":277460.40000000002},{"$f":"(((AAMC_Raw_Data_for_FY22[[#This Row],[75th]]-AAMC_Raw_Data_for_FY22[[#This Row],[Median]])/25)*35) + AAMC_Raw_Data_for_FY22[[#This Row],[Median]]","v":283376.8},{"$f":"(((AAMC_Raw_Data_for_FY22[[#This Row],[75th]]-AAMC_Raw_Data_for_FY22[[#This Row],[Median]])/25)*40) + AAMC_Raw_Data_for_FY22[[#This Row],[Median]]","v":289293.2}]
[{"$f":"AAMC_Raw_Data_for_FY22[[#This Row],[Source]]&AAMC_Raw_Data_for_FY22[[#This Row],[Type]]&AAMC_Raw_Data_for_FY22[[#This Row],[School Subset]]&AAMC_Raw_Data_for_FY22[[#This Row],[Rank]]&AAMC_Raw_Data_for_FY22[[#This Row],[Degree]]&AAMC_Raw_Data_for_FY22[[#This Row],[Department / Specialty]]&\"L\"","v":"AAMCAcademicAllAssociateMDPsychiatry TotalL"},"Psychiatry Total",3,"AAMC","Academic","All","Associate","MD","2021-2022",234432,{"$f":"(((AAMC_Raw_Data_for_FY22[[#This Row],[Median]]-AAMC_Raw_Data_for_FY22[[#This Row],[25th]])/25)*5) + AAMC_Raw_Data_for_FY22[[#This Row],[25th]]","v":240188.2},{"$f":"(((AAMC_Raw_Data_for_FY22[[#This Row],[Median]]-AAMC_Raw_Data_for_FY22[[#This Row],[25th]])/25)*10) + AAMC_Raw_Data_for_FY22[[#This Row],[25th]]","v":245944.4},{"$f":"(((AAMC_Raw_Data_for_FY22[[#This Row],[Median]]-AAMC_Raw_Data_for_FY22[[#This Row],[25th]])/25)*15) + AAMC_Raw_Data_for_FY22[[#This Row],[25th]]","v":251700.6},{"$f":"(((AAMC_Raw_Data_for_FY22[[#This Row],[Median]]-AAMC_Raw_Data_for_FY22[[#This Row],[25th]])/25)*20) + AAMC_Raw_Data_for_FY22[[#This Row],[25th]]","v":257456.8},263213,{"$f":"(((AAMC_Raw_Data_for_FY22[[#This Row],[75th]]-AAMC_Raw_Data_for_FY22[[#This Row],[Median]])/25)*5) + AAMC_Raw_Data_for_FY22[[#This Row],[Median]]","v":271024.2},{"$f":"(((AAMC_Raw_Data_for_FY22[[#This Row],[75th]]-AAMC_Raw_Data_for_FY22[[#This Row],[Median]])/25)*10) + AAMC_Raw_Data_for_FY22[[#This Row],[Median]]","v":278835.40000000002},{"$f":"(((AAMC_Raw_Data_for_FY22[[#This Row],[75th]]-AAMC_Raw_Data_for_FY22[[#This Row],[Median]])/25)*15) + AAMC_Raw_Data_for_FY22[[#This Row],[Median]]","v":286646.59999999998},{"$f":"(((AAMC_Raw_Data_for_FY22[[#This Row],[75th]]-AAMC_Raw_Data_for_FY22[[#This Row],[Median]])/25)*20) + AAMC_Raw_Data_for_FY22[[#This Row],[Median]]","v":294457.8},302269,{"$f":"(((AAMC_Raw_Data_for_FY22[[#This Row],[75th]]-AAMC_Raw_Data_for_FY22[[#This Row],[Median]])/25)*30) + AAMC_Raw_Data_for_FY22[[#This Row],[Median]]","v":310080.2},{"$f":"(((AAMC_Raw_Data_for_FY22[[#This Row],[75th]]-AAMC_Raw_Data_for_FY22[[#This Row],[Median]])/25)*35) + AAMC_Raw_Data_for_FY22[[#This Row],[Median]]","v":317891.40000000002},{"$f":"(((AAMC_Raw_Data_for_FY22[[#This Row],[75th]]-AAMC_Raw_Data_for_FY22[[#This Row],[Median]])/25)*40) + AAMC_Raw_Data_for_FY22[[#This Row],[Median]]","v":325702.59999999998}]
[{"$f":"AAMC_Raw_Data_for_FY22[[#This Row],[Source]]&AAMC_Raw_Data_for_FY22[[#This Row],[Type]]&AAMC_Raw_Data_for_FY22[[#This Row],[School Subset]]&AAMC_Raw_Data_for_FY22[[#This Row],[Rank]]&AAMC_Raw_Data_for_FY22[[#This Row],[Degree]]&AAMC_Raw_Data_for_FY22[[#This Row],[Department / Specialty]]&\"L\"","v":"AAMCAcademicAllProfessorMDPsychiatry TotalL"},"Psychiatry Total",2,"AAMC","Academic","All","Professor","MD","2021-2022",253315,{"$f":"(((AAMC_Raw_Data_for_FY22[[#This Row],[Median]]-AAMC_Raw_Data_for_FY22[[#This Row],[25th]])/25)*5) + AAMC_Raw_Data_for_FY22[[#This Row],[25th]]","v":262328.40000000002},{"$f":"(((AAMC_Raw_Data_for_FY22[[#This Row],[Median]]-AAMC_Raw_Data_for_FY22[[#This Row],[25th]])/25)*10) + AAMC_Raw_Data_for_FY22[[#This Row],[25th]]","v":271341.8},{"$f":"(((AAMC_Raw_Data_for_FY22[[#This Row],[Median]]-AAMC_Raw_Data_for_FY22[[#This Row],[25th]])/25)*15) + AAMC_Raw_Data_for_FY22[[#This Row],[25th]]","v":280355.20000000001},{"$f":"(((AAMC_Raw_Data_for_FY22[[#This Row],[Median]]-AAMC_Raw_Data_for_FY22[[#This Row],[25th]])/25)*20) + AAMC_Raw_Data_for_FY22[[#This Row],[25th]]","v":289368.59999999998},298382,{"$f":"(((AAMC_Raw_Data_for_FY22[[#This Row],[75th]]-AAMC_Raw_Data_for_FY22[[#This Row],[Median]])/25)*5) + AAMC_Raw_Data_for_FY22[[#This Row],[Median]]","v":309335.2},{"$f":"(((AAMC_Raw_Data_for_FY22[[#This Row],[75th]]-AAMC_Raw_Data_for_FY22[[#This Row],[Median]])/25)*10) + AAMC_Raw_Data_for_FY22[[#This Row],[Median]]","v":320288.40000000002},{"$f":"(((AAMC_Raw_Data_for_FY22[[#This Row],[75th]]-AAMC_Raw_Data_for_FY22[[#This Row],[Median]])/25)*15) + AAMC_Raw_Data_for_FY22[[#This Row],[Median]]","v":331241.59999999998},{"$f":"(((AAMC_Raw_Data_for_FY22[[#This Row],[75th]]-AAMC_Raw_Data_for_FY22[[#This Row],[Median]])/25)*20) + AAMC_Raw_Data_for_FY22[[#This Row],[Median]]","v":342194.8},353148,{"$f":"(((AAMC_Raw_Data_for_FY22[[#This Row],[75th]]-AAMC_Raw_Data_for_FY22[[#This Row],[Median]])/25)*30) + AAMC_Raw_Data_for_FY22[[#This Row],[Median]]","v":364101.2},{"$f":"(((AAMC_Raw_Data_for_FY22[[#This Row],[75th]]-AAMC_Raw_Data_for_FY22[[#This Row],[Median]])/25)*35) + AAMC_Raw_Data_for_FY22[[#This Row],[Median]]","v":375054.4},{"$f":"(((AAMC_Raw_Data_for_FY22[[#This Row],[75th]]-AAMC_Raw_Data_for_FY22[[#This Row],[Median]])/25)*40) + AAMC_Raw_Data_for_FY22[[#This Row],[Median]]","v":386007.6}]
[{"$f":"AAMC_Raw_Data_for_FY22[[#This Row],[Source]]&AAMC_Raw_Data_for_FY22[[#This Row],[Type]]&AAMC_Raw_Data_for_FY22[[#This Row],[School Subset]]&AAMC_Raw_Data_for_FY22[[#This Row],[Rank]]&AAMC_Raw_Data_for_FY22[[#This Row],[Degree]]&AAMC_Raw_Data_for_FY22[[#This Row],[Department / Specialty]]&\"L\"","v":"AAMCAcademicAllChiefMDPsychiatry TotalL"},"Psychiatry Total",6,"AAMC","Academic","All","Chief","MD","2021-2022",272447,{"$f":"(((AAMC_Raw_Data_for_FY22[[#This Row],[Median]]-AAMC_Raw_Data_for_FY22[[#This Row],[25th]])/25)*5) + AAMC_Raw_Data_for_FY22[[#This Row],[25th]]","v":280531.59999999998},{"$f":"(((AAMC_Raw_Data_for_FY22[[#This Row],[Median]]-AAMC_Raw_Data_for_FY22[[#This Row],[25th]])/25)*10) + AAMC_Raw_Data_for_FY22[[#This Row],[25th]]","v":288616.2},{"$f":"(((AAMC_Raw_Data_for_FY22[[#This Row],[Median]]-AAMC_Raw_Data_for_FY22[[#This Row],[25th]])/25)*15) + AAMC_Raw_Data_for_FY22[[#This Row],[25th]]","v":296700.79999999999},{"$f":"(((AAMC_Raw_Data_for_FY22[[#This Row],[Median]]-AAMC_Raw_Data_for_FY22[[#This Row],[25th]])/25)*20) + AAMC_Raw_Data_for_FY22[[#This Row],[25th]]","v":304785.40000000002},312870,{"$f":"(((AAMC_Raw_Data_for_FY22[[#This Row],[75th]]-AAMC_Raw_Data_for_FY22[[#This Row],[Median]])/25)*5) + AAMC_Raw_Data_for_FY22[[#This Row],[Median]]","v":326205.8},{"$f":"(((AAMC_Raw_Data_for_FY22[[#This Row],[75th]]-AAMC_Raw_Data_for_FY22[[#This Row],[Median]])/25)*10) + AAMC_Raw_Data_for_FY22[[#This Row],[Median]]","v":339541.6},{"$f":"(((AAMC_Raw_Data_for_FY22[[#This Row],[75th]]-AAMC_Raw_Data_for_FY22[[#This Row],[Median]])/25)*15) + AAMC_Raw_Data_for_FY22[[#This Row],[Median]]","v":352877.4},{"$f":"(((AAMC_Raw_Data_for_FY22[[#This Row],[75th]]-AAMC_Raw_Data_for_FY22[[#This Row],[Median]])/25)*20) + AAMC_Raw_Data_for_FY22[[#This Row],[Median]]","v":366213.2},379549,{"$f":"(((AAMC_Raw_Data_for_FY22[[#This Row],[75th]]-AAMC_Raw_Data_for_FY22[[#This Row],[Median]])/25)*30) + AAMC_Raw_Data_for_FY22[[#This Row],[Median]]","v":392884.8},{"$f":"(((AAMC_Raw_Data_for_FY22[[#This Row],[75th]]-AAMC_Raw_Data_for_FY22[[#This Row],[Median]])/25)*35) + AAMC_Raw_Data_for_FY22[[#This Row],[Median]]","v":406220.6},{"$f":"(((AAMC_Raw_Data_for_FY22[[#This Row],[75th]]-AAMC_Raw_Data_for_FY22[[#This Row],[Median]])/25)*40) + AAMC_Raw_Data_for_FY22[[#This Row],[Median]]","v":419556.4}]
[{"$f":"AAMC_Raw_Data_for_FY22[[#This Row],[Source]]&AAMC_Raw_Data_for_FY22[[#This Row],[Type]]&AAMC_Raw_Data_for_FY22[[#This Row],[School Subset]]&AAMC_Raw_Data_for_FY22[[#This Row],[Rank]]&AAMC_Raw_Data_for_FY22[[#This Row],[Degree]]&AAMC_Raw_Data_for_FY22[[#This Row],[Department / Specialty]]&\"L\"","v":"AAMCAcademicAllChairMDPsychiatry TotalL"},"Psychiatry Total",1,"AAMC","Academic","All","Chair","MD","2021-2022",397767,{"$f":"(((AAMC_Raw_Data_for_FY22[[#This Row],[Median]]-AAMC_Raw_Data_for_FY22[[#This Row],[25th]])/25)*5) + AAMC_Raw_Data_for_FY22[[#This Row],[25th]]","v":418260},{"$f":"(((AAMC_Raw_Data_for_FY22[[#This Row],[Median]]-AAMC_Raw_Data_for_FY22[[#This Row],[25th]])/25)*10) + AAMC_Raw_Data_for_FY22[[#This Row],[25th]]","v":438753},{"$f":"(((AAMC_Raw_Data_for_FY22[[#This Row],[Median]]-AAMC_Raw_Data_for_FY22[[#This Row],[25th]])/25)*15) + AAMC_Raw_Data_for_FY22[[#This Row],[25th]]","v":459246},{"$f":"(((AAMC_Raw_Data_for_FY22[[#This Row],[Median]]-AAMC_Raw_Data_for_FY22[[#This Row],[25th]])/25)*20) + AAMC_Raw_Data_for_FY22[[#This Row],[25th]]","v":479739},500232,{"$f":"(((AAMC_Raw_Data_for_FY22[[#This Row],[75th]]-AAMC_Raw_Data_for_FY22[[#This Row],[Median]])/25)*5) + AAMC_Raw_Data_for_FY22[[#This Row],[Median]]","v":516496.4},{"$f":"(((AAMC_Raw_Data_for_FY22[[#This Row],[75th]]-AAMC_Raw_Data_for_FY22[[#This Row],[Median]])/25)*10) + AAMC_Raw_Data_for_FY22[[#This Row],[Median]]","v":532760.80000000005},{"$f":"(((AAMC_Raw_Data_for_FY22[[#This Row],[75th]]-AAMC_Raw_Data_for_FY22[[#This Row],[Median]])/25)*15) + AAMC_Raw_Data_for_FY22[[#This Row],[Median]]","v":549025.19999999995},{"$f":"(((AAMC_Raw_Data_for_FY22[[#This Row],[75th]]-AAMC_Raw_Data_for_FY22[[#This Row],[Median]])/25)*20) + AAMC_Raw_Data_for_FY22[[#This Row],[Median]]","v":565289.6},581554,{"$f":"(((AAMC_Raw_Data_for_FY22[[#This Row],[75th]]-AAMC_Raw_Data_for_FY22[[#This Row],[Median]])/25)*30) + AAMC_Raw_Data_for_FY22[[#This Row],[Median]]","v":597818.4},{"$f":"(((AAMC_Raw_Data_for_FY22[[#This Row],[75th]]-AAMC_Raw_Data_for_FY22[[#This Row],[Median]])/25)*35) + AAMC_Raw_Data_for_FY22[[#This Row],[Median]]","v":614082.80000000005},{"$f":"(((AAMC_Raw_Data_for_FY22[[#This Row],[75th]]-AAMC_Raw_Data_for_FY22[[#This Row],[Median]])/25)*40) + AAMC_Raw_Data_for_FY22[[#This Row],[Median]]","v":630347.19999999995}]
[{"$f":"AAMC_Raw_Data_for_FY22[[#This Row],[Source]]&AAMC_Raw_Data_for_FY22[[#This Row],[Type]]&AAMC_Raw_Data_for_FY22[[#This Row],[School Subset]]&AAMC_Raw_Data_for_FY22[[#This Row],[Rank]]&AAMC_Raw_Data_for_FY22[[#This Row],[Degree]]&AAMC_Raw_Data_for_FY22[[#This Row],[Department / Specialty]]&\"L\"","v":"AAMCAcademicAllInstructorMDPsychiatry: Child & AdolescentL"},"Psychiatry: Child & Adolescent",5,"AAMC","Academic","All","Instructor","MD","2021-2022",229845,{"$f":"(((AAMC_Raw_Data_for_FY22[[#This Row],[Median]]-AAMC_Raw_Data_for_FY22[[#This Row],[25th]])/25)*5) + AAMC_Raw_Data_for_FY22[[#This Row],[25th]]","v":231602.2},{"$f":"(((AAMC_Raw_Data_for_FY22[[#This Row],[Median]]-AAMC_Raw_Data_for_FY22[[#This Row],[25th]])/25)*10) + AAMC_Raw_Data_for_FY22[[#This Row],[25th]]","v":233359.4},{"$f":"(((AAMC_Raw_Data_for_FY22[[#This Row],[Median]]-AAMC_Raw_Data_for_FY22[[#This Row],[25th]])/25)*15) + AAMC_Raw_Data_for_FY22[[#This Row],[25th]]","v":235116.6},{"$f":"(((AAMC_Raw_Data_for_FY22[[#This Row],[Median]]-AAMC_Raw_Data_for_FY22[[#This Row],[25th]])/25)*20) + AAMC_Raw_Data_for_FY22[[#This Row],[25th]]","v":236873.8},238631,{"$f":"(((AAMC_Raw_Data_for_FY22[[#This Row],[75th]]-AAMC_Raw_Data_for_FY22[[#This Row],[Median]])/25)*5) + AAMC_Raw_Data_for_FY22[[#This Row],[Median]]","v":246063},{"$f":"(((AAMC_Raw_Data_for_FY22[[#This Row],[75th]]-AAMC_Raw_Data_for_FY22[[#This Row],[Median]])/25)*10) + AAMC_Raw_Data_for_FY22[[#This Row],[Median]]","v":253495},{"$f":"(((AAMC_Raw_Data_for_FY22[[#This Row],[75th]]-AAMC_Raw_Data_for_FY22[[#This Row],[Median]])/25)*15) + AAMC_Raw_Data_for_FY22[[#This Row],[Median]]","v":260927},{"$f":"(((AAMC_Raw_Data_for_FY22[[#This Row],[75th]]-AAMC_Raw_Data_for_FY22[[#This Row],[Median]])/25)*20) + AAMC_Raw_Data_for_FY22[[#This Row],[Median]]","v":268359},275791,{"$f":"(((AAMC_Raw_Data_for_FY22[[#This Row],[75th]]-AAMC_Raw_Data_for_FY22[[#This Row],[Median]])/25)*30) + AAMC_Raw_Data_for_FY22[[#This Row],[Median]]","v":283223},{"$f":"(((AAMC_Raw_Data_for_FY22[[#This Row],[75th]]-AAMC_Raw_Data_for_FY22[[#This Row],[Median]])/25)*35) + AAMC_Raw_Data_for_FY22[[#This Row],[Median]]","v":290655},{"$f":"(((AAMC_Raw_Data_for_FY22[[#This Row],[75th]]-AAMC_Raw_Data_for_FY22[[#This Row],[Median]])/25)*40) + AAMC_Raw_Data_for_FY22[[#This Row],[Median]]","v":298087}]
[{"$f":"AAMC_Raw_Data_for_FY22[[#This Row],[Source]]&AAMC_Raw_Data_for_FY22[[#This Row],[Type]]&AAMC_Raw_Data_for_FY22[[#This Row],[School Subset]]&AAMC_Raw_Data_for_FY22[[#This Row],[Rank]]&AAMC_Raw_Data_for_FY22[[#This Row],[Degree]]&AAMC_Raw_Data_for_FY22[[#This Row],[Department / Specialty]]&\"L\"","v":"AAMCAcademicAllAssistantMDPsychiatry: Child & AdolescentL"},"Psychiatry: Child & Adolescent",4,"AAMC","Academic","All","Assistant","MD","2021-2022",219003,{"$f":"(((AAMC_Raw_Data_for_FY22[[#This Row],[Median]]-AAMC_Raw_Data_for_FY22[[#This Row],[25th]])/25)*5) + AAMC_Raw_Data_for_FY22[[#This Row],[25th]]","v":224617.4},{"$f":"(((AAMC_Raw_Data_for_FY22[[#This Row],[Median]]-AAMC_Raw_Data_for_FY22[[#This Row],[25th]])/25)*10) + AAMC_Raw_Data_for_FY22[[#This Row],[25th]]","v":230231.8},{"$f":"(((AAMC_Raw_Data_for_FY22[[#This Row],[Median]]-AAMC_Raw_Data_for_FY22[[#This Row],[25th]])/25)*15) + AAMC_Raw_Data_for_FY22[[#This Row],[25th]]","v":235846.2},{"$f":"(((AAMC_Raw_Data_for_FY22[[#This Row],[Median]]-AAMC_Raw_Data_for_FY22[[#This Row],[25th]])/25)*20) + AAMC_Raw_Data_for_FY22[[#This Row],[25th]]","v":241460.6},247075,{"$f":"(((AAMC_Raw_Data_for_FY22[[#This Row],[75th]]-AAMC_Raw_Data_for_FY22[[#This Row],[Median]])/25)*5) + AAMC_Raw_Data_for_FY22[[#This Row],[Median]]","v":251984.6},{"$f":"(((AAMC_Raw_Data_for_FY22[[#This Row],[75th]]-AAMC_Raw_Data_for_FY22[[#This Row],[Median]])/25)*10) + AAMC_Raw_Data_for_FY22[[#This Row],[Median]]","v":256894.2},{"$f":"(((AAMC_Raw_Data_for_FY22[[#This Row],[75th]]-AAMC_Raw_Data_for_FY22[[#This Row],[Median]])/25)*15) + AAMC_Raw_Data_for_FY22[[#This Row],[Median]]","v":261803.8},{"$f":"(((AAMC_Raw_Data_for_FY22[[#This Row],[75th]]-AAMC_Raw_Data_for_FY22[[#This Row],[Median]])/25)*20) + AAMC_Raw_Data_for_FY22[[#This Row],[Median]]","v":266713.40000000002},271623,{"$f":"(((AAMC_Raw_Data_for_FY22[[#This Row],[75th]]-AAMC_Raw_Data_for_FY22[[#This Row],[Median]])/25)*30) + AAMC_Raw_Data_for_FY22[[#This Row],[Median]]","v":276532.59999999998},{"$f":"(((AAMC_Raw_Data_for_FY22[[#This Row],[75th]]-AAMC_Raw_Data_for_FY22[[#This Row],[Median]])/25)*35) + AAMC_Raw_Data_for_FY22[[#This Row],[Median]]","v":281442.2},{"$f":"(((AAMC_Raw_Data_for_FY22[[#This Row],[75th]]-AAMC_Raw_Data_for_FY22[[#This Row],[Median]])/25)*40) + AAMC_Raw_Data_for_FY22[[#This Row],[Median]]","v":286351.8}]
[{"$f":"AAMC_Raw_Data_for_FY22[[#This Row],[Source]]&AAMC_Raw_Data_for_FY22[[#This Row],[Type]]&AAMC_Raw_Data_for_FY22[[#This Row],[School Subset]]&AAMC_Raw_Data_for_FY22[[#This Row],[Rank]]&AAMC_Raw_Data_for_FY22[[#This Row],[Degree]]&AAMC_Raw_Data_for_FY22[[#This Row],[Department / Specialty]]&\"L\"","v":"AAMCAcademicAllAssociateMDPsychiatry: Child & AdolescentL"},"Psychiatry: Child & Adolescent",3,"AAMC","Academic","All","Associate","MD","2021-2022",241879,{"$f":"(((AAMC_Raw_Data_for_FY22[[#This Row],[Median]]-AAMC_Raw_Data_for_FY22[[#This Row],[25th]])/25)*5) + AAMC_Raw_Data_for_FY22[[#This Row],[25th]]","v":248797.6},{"$f":"(((AAMC_Raw_Data_for_FY22[[#This Row],[Median]]-AAMC_Raw_Data_for_FY22[[#This Row],[25th]])/25)*10) + AAMC_Raw_Data_for_FY22[[#This Row],[25th]]","v":255716.2},{"$f":"(((AAMC_Raw_Data_for_FY22[[#This Row],[Median]]-AAMC_Raw_Data_for_FY22[[#This Row],[25th]])/25)*15) + AAMC_Raw_Data_for_FY22[[#This Row],[25th]]","v":262634.8},{"$f":"(((AAMC_Raw_Data_for_FY22[[#This Row],[Median]]-AAMC_Raw_Data_for_FY22[[#This Row],[25th]])/25)*20) + AAMC_Raw_Data_for_FY22[[#This Row],[25th]]","v":269553.40000000002},276472,{"$f":"(((AAMC_Raw_Data_for_FY22[[#This Row],[75th]]-AAMC_Raw_Data_for_FY22[[#This Row],[Median]])/25)*5) + AAMC_Raw_Data_for_FY22[[#This Row],[Median]]","v":282030.8},{"$f":"(((AAMC_Raw_Data_for_FY22[[#This Row],[75th]]-AAMC_Raw_Data_for_FY22[[#This Row],[Median]])/25)*10) + AAMC_Raw_Data_for_FY22[[#This Row],[Median]]","v":287589.59999999998},{"$f":"(((AAMC_Raw_Data_for_FY22[[#This Row],[75th]]-AAMC_Raw_Data_for_FY22[[#This Row],[Median]])/25)*15) + AAMC_Raw_Data_for_FY22[[#This Row],[Median]]","v":293148.40000000002},{"$f":"(((AAMC_Raw_Data_for_FY22[[#This Row],[75th]]-AAMC_Raw_Data_for_FY22[[#This Row],[Median]])/25)*20) + AAMC_Raw_Data_for_FY22[[#This Row],[Median]]","v":298707.20000000001},304266,{"$f":"(((AAMC_Raw_Data_for_FY22[[#This Row],[75th]]-AAMC_Raw_Data_for_FY22[[#This Row],[Median]])/25)*30) + AAMC_Raw_Data_for_FY22[[#This Row],[Median]]","v":309824.8},{"$f":"(((AAMC_Raw_Data_for_FY22[[#This Row],[75th]]-AAMC_Raw_Data_for_FY22[[#This Row],[Median]])/25)*35) + AAMC_Raw_Data_for_FY22[[#This Row],[Median]]","v":315383.59999999998},{"$f":"(((AAMC_Raw_Data_for_FY22[[#This Row],[75th]]-AAMC_Raw_Data_for_FY22[[#This Row],[Median]])/25)*40) + AAMC_Raw_Data_for_FY22[[#This Row],[Median]]","v":320942.40000000002}]
[{"$f":"AAMC_Raw_Data_for_FY22[[#This Row],[Source]]&AAMC_Raw_Data_for_FY22[[#This Row],[Type]]&AAMC_Raw_Data_for_FY22[[#This Row],[School Subset]]&AAMC_Raw_Data_for_FY22[[#This Row],[Rank]]&AAMC_Raw_Data_for_FY22[[#This Row],[Degree]]&AAMC_Raw_Data_for_FY22[[#This Row],[Department / Specialty]]&\"L\"","v":"AAMCAcademicAllProfessorMDPsychiatry: Child & AdolescentL"},"Psychiatry: Child & Adolescent",2,"AAMC","Academic","All","Professor","MD","2021-2022",269205,{"$f":"(((AAMC_Raw_Data_for_FY22[[#This Row],[Median]]-AAMC_Raw_Data_for_FY22[[#This Row],[25th]])/25)*5) + AAMC_Raw_Data_for_FY22[[#This Row],[25th]]","v":276965},{"$f":"(((AAMC_Raw_Data_for_FY22[[#This Row],[Median]]-AAMC_Raw_Data_for_FY22[[#This Row],[25th]])/25)*10) + AAMC_Raw_Data_for_FY22[[#This Row],[25th]]","v":284725},{"$f":"(((AAMC_Raw_Data_for_FY22[[#This Row],[Median]]-AAMC_Raw_Data_for_FY22[[#This Row],[25th]])/25)*15) + AAMC_Raw_Data_for_FY22[[#This Row],[25th]]","v":292485},{"$f":"(((AAMC_Raw_Data_for_FY22[[#This Row],[Median]]-AAMC_Raw_Data_for_FY22[[#This Row],[25th]])/25)*20) + AAMC_Raw_Data_for_FY22[[#This Row],[25th]]","v":300245},308005,{"$f":"(((AAMC_Raw_Data_for_FY22[[#This Row],[75th]]-AAMC_Raw_Data_for_FY22[[#This Row],[Median]])/25)*5) + AAMC_Raw_Data_for_FY22[[#This Row],[Median]]","v":319880.59999999998},{"$f":"(((AAMC_Raw_Data_for_FY22[[#This Row],[75th]]-AAMC_Raw_Data_for_FY22[[#This Row],[Median]])/25)*10) + AAMC_Raw_Data_for_FY22[[#This Row],[Median]]","v":331756.2},{"$f":"(((AAMC_Raw_Data_for_FY22[[#This Row],[75th]]-AAMC_Raw_Data_for_FY22[[#This Row],[Median]])/25)*15) + AAMC_Raw_Data_for_FY22[[#This Row],[Median]]","v":343631.8},{"$f":"(((AAMC_Raw_Data_for_FY22[[#This Row],[75th]]-AAMC_Raw_Data_for_FY22[[#This Row],[Median]])/25)*20) + AAMC_Raw_Data_for_FY22[[#This Row],[Median]]","v":355507.4},367383,{"$f":"(((AAMC_Raw_Data_for_FY22[[#This Row],[75th]]-AAMC_Raw_Data_for_FY22[[#This Row],[Median]])/25)*30) + AAMC_Raw_Data_for_FY22[[#This Row],[Median]]","v":379258.6},{"$f":"(((AAMC_Raw_Data_for_FY22[[#This Row],[75th]]-AAMC_Raw_Data_for_FY22[[#This Row],[Median]])/25)*35) + AAMC_Raw_Data_for_FY22[[#This Row],[Median]]","v":391134.2},{"$f":"(((AAMC_Raw_Data_for_FY22[[#This Row],[75th]]-AAMC_Raw_Data_for_FY22[[#This Row],[Median]])/25)*40) + AAMC_Raw_Data_for_FY22[[#This Row],[Median]]","v":403009.8}]
[{"$f":"AAMC_Raw_Data_for_FY22[[#This Row],[Source]]&AAMC_Raw_Data_for_FY22[[#This Row],[Type]]&AAMC_Raw_Data_for_FY22[[#This Row],[School Subset]]&AAMC_Raw_Data_for_FY22[[#This Row],[Rank]]&AAMC_Raw_Data_for_FY22[[#This Row],[Degree]]&AAMC_Raw_Data_for_FY22[[#This Row],[Department / Specialty]]&\"L\"","v":"AAMCAcademicAllChiefMDPsychiatry: Child & AdolescentL"},"Psychiatry: Child & Adolescent",6,"AAMC","Academic","All","Chief","MD","2021-2022",261053,{"$f":"(((AAMC_Raw_Data_for_FY22[[#This Row],[Median]]-AAMC_Raw_Data_for_FY22[[#This Row],[25th]])/25)*5) + AAMC_Raw_Data_for_FY22[[#This Row],[25th]]","v":268322.59999999998},{"$f":"(((AAMC_Raw_Data_for_FY22[[#This Row],[Median]]-AAMC_Raw_Data_for_FY22[[#This Row],[25th]])/25)*10) + AAMC_Raw_Data_for_FY22[[#This Row],[25th]]","v":275592.2},{"$f":"(((AAMC_Raw_Data_for_FY22[[#This Row],[Median]]-AAMC_Raw_Data_for_FY22[[#This Row],[25th]])/25)*15) + AAMC_Raw_Data_for_FY22[[#This Row],[25th]]","v":282861.8},{"$f":"(((AAMC_Raw_Data_for_FY22[[#This Row],[Median]]-AAMC_Raw_Data_for_FY22[[#This Row],[25th]])/25)*20) + AAMC_Raw_Data_for_FY22[[#This Row],[25th]]","v":290131.40000000002},297401,{"$f":"(((AAMC_Raw_Data_for_FY22[[#This Row],[75th]]-AAMC_Raw_Data_for_FY22[[#This Row],[Median]])/25)*5) + AAMC_Raw_Data_for_FY22[[#This Row],[Median]]","v":311462.8},{"$f":"(((AAMC_Raw_Data_for_FY22[[#This Row],[75th]]-AAMC_Raw_Data_for_FY22[[#This Row],[Median]])/25)*10) + AAMC_Raw_Data_for_FY22[[#This Row],[Median]]","v":325524.59999999998},{"$f":"(((AAMC_Raw_Data_for_FY22[[#This Row],[75th]]-AAMC_Raw_Data_for_FY22[[#This Row],[Median]])/25)*15) + AAMC_Raw_Data_for_FY22[[#This Row],[Median]]","v":339586.4},{"$f":"(((AAMC_Raw_Data_for_FY22[[#This Row],[75th]]-AAMC_Raw_Data_for_FY22[[#This Row],[Median]])/25)*20) + AAMC_Raw_Data_for_FY22[[#This Row],[Median]]","v":353648.2},367710,{"$f":"(((AAMC_Raw_Data_for_FY22[[#This Row],[75th]]-AAMC_Raw_Data_for_FY22[[#This Row],[Median]])/25)*30) + AAMC_Raw_Data_for_FY22[[#This Row],[Median]]","v":381771.8},{"$f":"(((AAMC_Raw_Data_for_FY22[[#This Row],[75th]]-AAMC_Raw_Data_for_FY22[[#This Row],[Median]])/25)*35) + AAMC_Raw_Data_for_FY22[[#This Row],[Median]]","v":395833.59999999998},{"$f":"(((AAMC_Raw_Data_for_FY22[[#This Row],[75th]]-AAMC_Raw_Data_for_FY22[[#This Row],[Median]])/25)*40) + AAMC_Raw_Data_for_FY22[[#This Row],[Median]]","v":409895.4}]
[{"$f":"AAMC_Raw_Data_for_FY22[[#This Row],[Source]]&AAMC_Raw_Data_for_FY22[[#This Row],[Type]]&AAMC_Raw_Data_for_FY22[[#This Row],[School Subset]]&AAMC_Raw_Data_for_FY22[[#This Row],[Rank]]&AAMC_Raw_Data_for_FY22[[#This Row],[Degree]]&AAMC_Raw_Data_for_FY22[[#This Row],[Department / Specialty]]&\"L\"","v":"AAMCAcademicAllChairMDPsychiatry: Child & AdolescentL"},"Psychiatry: Child & Adolescent",1,"AAMC","Academic","All","Chair","MD","2021-2022",306784,{"$f":"(((AAMC_Raw_Data_for_FY22[[#This Row],[Median]]-AAMC_Raw_Data_for_FY22[[#This Row],[25th]])/25)*5) + AAMC_Raw_Data_for_FY22[[#This Row],[25th]]","v":354225.6},{"$f":"(((AAMC_Raw_Data_for_FY22[[#This Row],[Median]]-AAMC_Raw_Data_for_FY22[[#This Row],[25th]])/25)*10) + AAMC_Raw_Data_for_FY22[[#This Row],[25th]]","v":401667.2},{"$f":"(((AAMC_Raw_Data_for_FY22[[#This Row],[Median]]-AAMC_Raw_Data_for_FY22[[#This Row],[25th]])/25)*15) + AAMC_Raw_Data_for_FY22[[#This Row],[25th]]","v":449108.8},{"$f":"(((AAMC_Raw_Data_for_FY22[[#This Row],[Median]]-AAMC_Raw_Data_for_FY22[[#This Row],[25th]])/25)*20) + AAMC_Raw_Data_for_FY22[[#This Row],[25th]]","v":496550.40000000002},543992,{"$f":"(((AAMC_Raw_Data_for_FY22[[#This Row],[75th]]-AAMC_Raw_Data_for_FY22[[#This Row],[Median]])/25)*5) + AAMC_Raw_Data_for_FY22[[#This Row],[Median]]","v":566497},{"$f":"(((AAMC_Raw_Data_for_FY22[[#This Row],[75th]]-AAMC_Raw_Data_for_FY22[[#This Row],[Median]])/25)*10) + AAMC_Raw_Data_for_FY22[[#This Row],[Median]]","v":589002},{"$f":"(((AAMC_Raw_Data_for_FY22[[#This Row],[75th]]-AAMC_Raw_Data_for_FY22[[#This Row],[Median]])/25)*15) + AAMC_Raw_Data_for_FY22[[#This Row],[Median]]","v":611507},{"$f":"(((AAMC_Raw_Data_for_FY22[[#This Row],[75th]]-AAMC_Raw_Data_for_FY22[[#This Row],[Median]])/25)*20) + AAMC_Raw_Data_for_FY22[[#This Row],[Median]]","v":634012},656517,{"$f":"(((AAMC_Raw_Data_for_FY22[[#This Row],[75th]]-AAMC_Raw_Data_for_FY22[[#This Row],[Median]])/25)*30) + AAMC_Raw_Data_for_FY22[[#This Row],[Median]]","v":679022},{"$f":"(((AAMC_Raw_Data_for_FY22[[#This Row],[75th]]-AAMC_Raw_Data_for_FY22[[#This Row],[Median]])/25)*35) + AAMC_Raw_Data_for_FY22[[#This Row],[Median]]","v":701527},{"$f":"(((AAMC_Raw_Data_for_FY22[[#This Row],[75th]]-AAMC_Raw_Data_for_FY22[[#This Row],[Median]])/25)*40) + AAMC_Raw_Data_for_FY22[[#This Row],[Median]]","v":724032}]
[{"$f":"AAMC_Raw_Data_for_FY22[[#This Row],[Source]]&AAMC_Raw_Data_for_FY22[[#This Row],[Type]]&AAMC_Raw_Data_for_FY22[[#This Row],[School Subset]]&AAMC_Raw_Data_for_FY22[[#This Row],[Rank]]&AAMC_Raw_Data_for_FY22[[#This Row],[Degree]]&AAMC_Raw_Data_for_FY22[[#This Row],[Department / Specialty]]&\"L\"","v":"AAMCAcademicAllInstructorMDPsychiatry: GeneralL"},"Psychiatry: General",5,"AAMC","Academic","All","Instructor","MD","2021-2022",201049,{"$f":"(((AAMC_Raw_Data_for_FY22[[#This Row],[Median]]-AAMC_Raw_Data_for_FY22[[#This Row],[25th]])/25)*5) + AAMC_Raw_Data_for_FY22[[#This Row],[25th]]","v":206180.6},{"$f":"(((AAMC_Raw_Data_for_FY22[[#This Row],[Median]]-AAMC_Raw_Data_for_FY22[[#This Row],[25th]])/25)*10) + AAMC_Raw_Data_for_FY22[[#This Row],[25th]]","v":211312.2},{"$f":"(((AAMC_Raw_Data_for_FY22[[#This Row],[Median]]-AAMC_Raw_Data_for_FY22[[#This Row],[25th]])/25)*15) + AAMC_Raw_Data_for_FY22[[#This Row],[25th]]","v":216443.8},{"$f":"(((AAMC_Raw_Data_for_FY22[[#This Row],[Median]]-AAMC_Raw_Data_for_FY22[[#This Row],[25th]])/25)*20) + AAMC_Raw_Data_for_FY22[[#This Row],[25th]]","v":221575.4},226707,{"$f":"(((AAMC_Raw_Data_for_FY22[[#This Row],[75th]]-AAMC_Raw_Data_for_FY22[[#This Row],[Median]])/25)*5) + AAMC_Raw_Data_for_FY22[[#This Row],[Median]]","v":230805.6},{"$f":"(((AAMC_Raw_Data_for_FY22[[#This Row],[75th]]-AAMC_Raw_Data_for_FY22[[#This Row],[Median]])/25)*10) + AAMC_Raw_Data_for_FY22[[#This Row],[Median]]","v":234904.2},{"$f":"(((AAMC_Raw_Data_for_FY22[[#This Row],[75th]]-AAMC_Raw_Data_for_FY22[[#This Row],[Median]])/25)*15) + AAMC_Raw_Data_for_FY22[[#This Row],[Median]]","v":239002.8},{"$f":"(((AAMC_Raw_Data_for_FY22[[#This Row],[75th]]-AAMC_Raw_Data_for_FY22[[#This Row],[Median]])/25)*20) + AAMC_Raw_Data_for_FY22[[#This Row],[Median]]","v":243101.4},247200,{"$f":"(((AAMC_Raw_Data_for_FY22[[#This Row],[75th]]-AAMC_Raw_Data_for_FY22[[#This Row],[Median]])/25)*30) + AAMC_Raw_Data_for_FY22[[#This Row],[Median]]","v":251298.6},{"$f":"(((AAMC_Raw_Data_for_FY22[[#This Row],[75th]]-AAMC_Raw_Data_for_FY22[[#This Row],[Median]])/25)*35) + AAMC_Raw_Data_for_FY22[[#This Row],[Median]]","v":255397.2},{"$f":"(((AAMC_Raw_Data_for_FY22[[#This Row],[75th]]-AAMC_Raw_Data_for_FY22[[#This Row],[Median]])/25)*40) + AAMC_Raw_Data_for_FY22[[#This Row],[Median]]","v":259495.8}]
[{"$f":"AAMC_Raw_Data_for_FY22[[#This Row],[Source]]&AAMC_Raw_Data_for_FY22[[#This Row],[Type]]&AAMC_Raw_Data_for_FY22[[#This Row],[School Subset]]&AAMC_Raw_Data_for_FY22[[#This Row],[Rank]]&AAMC_Raw_Data_for_FY22[[#This Row],[Degree]]&AAMC_Raw_Data_for_FY22[[#This Row],[Department / Specialty]]&\"L\"","v":"AAMCAcademicAllAssistantMDPsychiatry: GeneralL"},"Psychiatry: General",4,"AAMC","Academic","All","Assistant","MD","2021-2022",217823,{"$f":"(((AAMC_Raw_Data_for_FY22[[#This Row],[Median]]-AAMC_Raw_Data_for_FY22[[#This Row],[25th]])/25)*5) + AAMC_Raw_Data_for_FY22[[#This Row],[25th]]","v":222458},{"$f":"(((AAMC_Raw_Data_for_FY22[[#This Row],[Median]]-AAMC_Raw_Data_for_FY22[[#This Row],[25th]])/25)*10) + AAMC_Raw_Data_for_FY22[[#This Row],[25th]]","v":227093},{"$f":"(((AAMC_Raw_Data_for_FY22[[#This Row],[Median]]-AAMC_Raw_Data_for_FY22[[#This Row],[25th]])/25)*15) + AAMC_Raw_Data_for_FY22[[#This Row],[25th]]","v":231728},{"$f":"(((AAMC_Raw_Data_for_FY22[[#This Row],[Median]]-AAMC_Raw_Data_for_FY22[[#This Row],[25th]])/25)*20) + AAMC_Raw_Data_for_FY22[[#This Row],[25th]]","v":236363},240998,{"$f":"(((AAMC_Raw_Data_for_FY22[[#This Row],[75th]]-AAMC_Raw_Data_for_FY22[[#This Row],[Median]])/25)*5) + AAMC_Raw_Data_for_FY22[[#This Row],[Median]]","v":246906.4},{"$f":"(((AAMC_Raw_Data_for_FY22[[#This Row],[75th]]-AAMC_Raw_Data_for_FY22[[#This Row],[Median]])/25)*10) + AAMC_Raw_Data_for_FY22[[#This Row],[Median]]","v":252814.8},{"$f":"(((AAMC_Raw_Data_for_FY22[[#This Row],[75th]]-AAMC_Raw_Data_for_FY22[[#This Row],[Median]])/25)*15) + AAMC_Raw_Data_for_FY22[[#This Row],[Median]]","v":258723.20000000001},{"$f":"(((AAMC_Raw_Data_for_FY22[[#This Row],[75th]]-AAMC_Raw_Data_for_FY22[[#This Row],[Median]])/25)*20) + AAMC_Raw_Data_for_FY22[[#This Row],[Median]]","v":264631.59999999998},270540,{"$f":"(((AAMC_Raw_Data_for_FY22[[#This Row],[75th]]-AAMC_Raw_Data_for_FY22[[#This Row],[Median]])/25)*30) + AAMC_Raw_Data_for_FY22[[#This Row],[Median]]","v":276448.40000000002},{"$f":"(((AAMC_Raw_Data_for_FY22[[#This Row],[75th]]-AAMC_Raw_Data_for_FY22[[#This Row],[Median]])/25)*35) + AAMC_Raw_Data_for_FY22[[#This Row],[Median]]","v":282356.8},{"$f":"(((AAMC_Raw_Data_for_FY22[[#This Row],[75th]]-AAMC_Raw_Data_for_FY22[[#This Row],[Median]])/25)*40) + AAMC_Raw_Data_for_FY22[[#This Row],[Median]]","v":288265.2}]
[{"$f":"AAMC_Raw_Data_for_FY22[[#This Row],[Source]]&AAMC_Raw_Data_for_FY22[[#This Row],[Type]]&AAMC_Raw_Data_for_FY22[[#This Row],[School Subset]]&AAMC_Raw_Data_for_FY22[[#This Row],[Rank]]&AAMC_Raw_Data_for_FY22[[#This Row],[Degree]]&AAMC_Raw_Data_for_FY22[[#This Row],[Department / Specialty]]&\"L\"","v":"AAMCAcademicAllAssociateMDPsychiatry: GeneralL"},"Psychiatry: General",3,"AAMC","Academic","All","Associate","MD","2021-2022",233405,{"$f":"(((AAMC_Raw_Data_for_FY22[[#This Row],[Median]]-AAMC_Raw_Data_for_FY22[[#This Row],[25th]])/25)*5) + AAMC_Raw_Data_for_FY22[[#This Row],[25th]]","v":238457.4},{"$f":"(((AAMC_Raw_Data_for_FY22[[#This Row],[Median]]-AAMC_Raw_Data_for_FY22[[#This Row],[25th]])/25)*10) + AAMC_Raw_Data_for_FY22[[#This Row],[25th]]","v":243509.8},{"$f":"(((AAMC_Raw_Data_for_FY22[[#This Row],[Median]]-AAMC_Raw_Data_for_FY22[[#This Row],[25th]])/25)*15) + AAMC_Raw_Data_for_FY22[[#This Row],[25th]]","v":248562.2},{"$f":"(((AAMC_Raw_Data_for_FY22[[#This Row],[Median]]-AAMC_Raw_Data_for_FY22[[#This Row],[25th]])/25)*20) + AAMC_Raw_Data_for_FY22[[#This Row],[25th]]","v":253614.6},258667,{"$f":"(((AAMC_Raw_Data_for_FY22[[#This Row],[75th]]-AAMC_Raw_Data_for_FY22[[#This Row],[Median]])/25)*5) + AAMC_Raw_Data_for_FY22[[#This Row],[Median]]","v":266694},{"$f":"(((AAMC_Raw_Data_for_FY22[[#This Row],[75th]]-AAMC_Raw_Data_for_FY22[[#This Row],[Median]])/25)*10) + AAMC_Raw_Data_for_FY22[[#This Row],[Median]]","v":274721},{"$f":"(((AAMC_Raw_Data_for_FY22[[#This Row],[75th]]-AAMC_Raw_Data_for_FY22[[#This Row],[Median]])/25)*15) + AAMC_Raw_Data_for_FY22[[#This Row],[Median]]","v":282748},{"$f":"(((AAMC_Raw_Data_for_FY22[[#This Row],[75th]]-AAMC_Raw_Data_for_FY22[[#This Row],[Median]])/25)*20) + AAMC_Raw_Data_for_FY22[[#This Row],[Median]]","v":290775},298802,{"$f":"(((AAMC_Raw_Data_for_FY22[[#This Row],[75th]]-AAMC_Raw_Data_for_FY22[[#This Row],[Median]])/25)*30) + AAMC_Raw_Data_for_FY22[[#This Row],[Median]]","v":306829},{"$f":"(((AAMC_Raw_Data_for_FY22[[#This Row],[75th]]-AAMC_Raw_Data_for_FY22[[#This Row],[Median]])/25)*35) + AAMC_Raw_Data_for_FY22[[#This Row],[Median]]","v":314856},{"$f":"(((AAMC_Raw_Data_for_FY22[[#This Row],[75th]]-AAMC_Raw_Data_for_FY22[[#This Row],[Median]])/25)*40) + AAMC_Raw_Data_for_FY22[[#This Row],[Median]]","v":322883}]
[{"$f":"AAMC_Raw_Data_for_FY22[[#This Row],[Source]]&AAMC_Raw_Data_for_FY22[[#This Row],[Type]]&AAMC_Raw_Data_for_FY22[[#This Row],[School Subset]]&AAMC_Raw_Data_for_FY22[[#This Row],[Rank]]&AAMC_Raw_Data_for_FY22[[#This Row],[Degree]]&AAMC_Raw_Data_for_FY22[[#This Row],[Department / Specialty]]&\"L\"","v":"AAMCAcademicAllProfessorMDPsychiatry: GeneralL"},"Psychiatry: General",2,"AAMC","Academic","All","Professor","MD","2021-2022",257480,{"$f":"(((AAMC_Raw_Data_for_FY22[[#This Row],[Median]]-AAMC_Raw_Data_for_FY22[[#This Row],[25th]])/25)*5) + AAMC_Raw_Data_for_FY22[[#This Row],[25th]]","v":265984},{"$f":"(((AAMC_Raw_Data_for_FY22[[#This Row],[Median]]-AAMC_Raw_Data_for_FY22[[#This Row],[25th]])/25)*10) + AAMC_Raw_Data_for_FY22[[#This Row],[25th]]","v":274488},{"$f":"(((AAMC_Raw_Data_for_FY22[[#This Row],[Median]]-AAMC_Raw_Data_for_FY22[[#This Row],[25th]])/25)*15) + AAMC_Raw_Data_for_FY22[[#This Row],[25th]]","v":282992},{"$f":"(((AAMC_Raw_Data_for_FY22[[#This Row],[Median]]-AAMC_Raw_Data_for_FY22[[#This Row],[25th]])/25)*20) + AAMC_Raw_Data_for_FY22[[#This Row],[25th]]","v":291496},300000,{"$f":"(((AAMC_Raw_Data_for_FY22[[#This Row],[75th]]-AAMC_Raw_Data_for_FY22[[#This Row],[Median]])/25)*5) + AAMC_Raw_Data_for_FY22[[#This Row],[Median]]","v":312140.2},{"$f":"(((AAMC_Raw_Data_for_FY22[[#This Row],[75th]]-AAMC_Raw_Data_for_FY22[[#This Row],[Median]])/25)*10) + AAMC_Raw_Data_for_FY22[[#This Row],[Median]]","v":324280.40000000002},{"$f":"(((AAMC_Raw_Data_for_FY22[[#This Row],[75th]]-AAMC_Raw_Data_for_FY22[[#This Row],[Median]])/25)*15) + AAMC_Raw_Data_for_FY22[[#This Row],[Median]]","v":336420.6},{"$f":"(((AAMC_Raw_Data_for_FY22[[#This Row],[75th]]-AAMC_Raw_Data_for_FY22[[#This Row],[Median]])/25)*20) + AAMC_Raw_Data_for_FY22[[#This Row],[Median]]","v":348560.8},360701,{"$f":"(((AAMC_Raw_Data_for_FY22[[#This Row],[75th]]-AAMC_Raw_Data_for_FY22[[#This Row],[Median]])/25)*30) + AAMC_Raw_Data_for_FY22[[#This Row],[Median]]","v":372841.2},{"$f":"(((AAMC_Raw_Data_for_FY22[[#This Row],[75th]]-AAMC_Raw_Data_for_FY22[[#This Row],[Median]])/25)*35) + AAMC_Raw_Data_for_FY22[[#This Row],[Median]]","v":384981.4},{"$f":"(((AAMC_Raw_Data_for_FY22[[#This Row],[75th]]-AAMC_Raw_Data_for_FY22[[#This Row],[Median]])/25)*40) + AAMC_Raw_Data_for_FY22[[#This Row],[Median]]","v":397121.6}]
[{"$f":"AAMC_Raw_Data_for_FY22[[#This Row],[Source]]&AAMC_Raw_Data_for_FY22[[#This Row],[Type]]&AAMC_Raw_Data_for_FY22[[#This Row],[School Subset]]&AAMC_Raw_Data_for_FY22[[#This Row],[Rank]]&AAMC_Raw_Data_for_FY22[[#This Row],[Degree]]&AAMC_Raw_Data_for_FY22[[#This Row],[Department / Specialty]]&\"L\"","v":"AAMCAcademicAllChiefMDPsychiatry: GeneralL"},"Psychiatry: General",6,"AAMC","Academic","All","Chief","MD","2021-2022",286721,{"$f":"(((AAMC_Raw_Data_for_FY22[[#This Row],[Median]]-AAMC_Raw_Data_for_FY22[[#This Row],[25th]])/25)*5) + AAMC_Raw_Data_for_FY22[[#This Row],[25th]]","v":297081.59999999998},{"$f":"(((AAMC_Raw_Data_for_FY22[[#This Row],[Median]]-AAMC_Raw_Data_for_FY22[[#This Row],[25th]])/25)*10) + AAMC_Raw_Data_for_FY22[[#This Row],[25th]]","v":307442.2},{"$f":"(((AAMC_Raw_Data_for_FY22[[#This Row],[Median]]-AAMC_Raw_Data_for_FY22[[#This Row],[25th]])/25)*15) + AAMC_Raw_Data_for_FY22[[#This Row],[25th]]","v":317802.8},{"$f":"(((AAMC_Raw_Data_for_FY22[[#This Row],[Median]]-AAMC_Raw_Data_for_FY22[[#This Row],[25th]])/25)*20) + AAMC_Raw_Data_for_FY22[[#This Row],[25th]]","v":328163.40000000002},338524,{"$f":"(((AAMC_Raw_Data_for_FY22[[#This Row],[75th]]-AAMC_Raw_Data_for_FY22[[#This Row],[Median]])/25)*5) + AAMC_Raw_Data_for_FY22[[#This Row],[Median]]","v":346729},{"$f":"(((AAMC_Raw_Data_for_FY22[[#This Row],[75th]]-AAMC_Raw_Data_for_FY22[[#This Row],[Median]])/25)*10) + AAMC_Raw_Data_for_FY22[[#This Row],[Median]]","v":354934},{"$f":"(((AAMC_Raw_Data_for_FY22[[#This Row],[75th]]-AAMC_Raw_Data_for_FY22[[#This Row],[Median]])/25)*15) + AAMC_Raw_Data_for_FY22[[#This Row],[Median]]","v":363139},{"$f":"(((AAMC_Raw_Data_for_FY22[[#This Row],[75th]]-AAMC_Raw_Data_for_FY22[[#This Row],[Median]])/25)*20) + AAMC_Raw_Data_for_FY22[[#This Row],[Median]]","v":371344},379549,{"$f":"(((AAMC_Raw_Data_for_FY22[[#This Row],[75th]]-AAMC_Raw_Data_for_FY22[[#This Row],[Median]])/25)*30) + AAMC_Raw_Data_for_FY22[[#This Row],[Median]]","v":387754},{"$f":"(((AAMC_Raw_Data_for_FY22[[#This Row],[75th]]-AAMC_Raw_Data_for_FY22[[#This Row],[Median]])/25)*35) + AAMC_Raw_Data_for_FY22[[#This Row],[Median]]","v":395959},{"$f":"(((AAMC_Raw_Data_for_FY22[[#This Row],[75th]]-AAMC_Raw_Data_for_FY22[[#This Row],[Median]])/25)*40) + AAMC_Raw_Data_for_FY22[[#This Row],[Median]]","v":404164}]
[{"$f":"AAMC_Raw_Data_for_FY22[[#This Row],[Source]]&AAMC_Raw_Data_for_FY22[[#This Row],[Type]]&AAMC_Raw_Data_for_FY22[[#This Row],[School Subset]]&AAMC_Raw_Data_for_FY22[[#This Row],[Rank]]&AAMC_Raw_Data_for_FY22[[#This Row],[Degree]]&AAMC_Raw_Data_for_FY22[[#This Row],[Department / Specialty]]&\"L\"","v":"AAMCAcademicAllChairMDPsychiatry: GeneralL"},"Psychiatry: General",1,"AAMC","Academic","All","Chair","MD","2021-2022",400782,{"$f":"(((AAMC_Raw_Data_for_FY22[[#This Row],[Median]]-AAMC_Raw_Data_for_FY22[[#This Row],[25th]])/25)*5) + AAMC_Raw_Data_for_FY22[[#This Row],[25th]]","v":420257.4},{"$f":"(((AAMC_Raw_Data_for_FY22[[#This Row],[Median]]-AAMC_Raw_Data_for_FY22[[#This Row],[25th]])/25)*10) + AAMC_Raw_Data_for_FY22[[#This Row],[25th]]","v":439732.8},{"$f":"(((AAMC_Raw_Data_for_FY22[[#This Row],[Median]]-AAMC_Raw_Data_for_FY22[[#This Row],[25th]])/25)*15) + AAMC_Raw_Data_for_FY22[[#This Row],[25th]]","v":459208.2},{"$f":"(((AAMC_Raw_Data_for_FY22[[#This Row],[Median]]-AAMC_Raw_Data_for_FY22[[#This Row],[25th]])/25)*20) + AAMC_Raw_Data_for_FY22[[#This Row],[25th]]","v":478683.6},498159,{"$f":"(((AAMC_Raw_Data_for_FY22[[#This Row],[75th]]-AAMC_Raw_Data_for_FY22[[#This Row],[Median]])/25)*5) + AAMC_Raw_Data_for_FY22[[#This Row],[Median]]","v":513992.2},{"$f":"(((AAMC_Raw_Data_for_FY22[[#This Row],[75th]]-AAMC_Raw_Data_for_FY22[[#This Row],[Median]])/25)*10) + AAMC_Raw_Data_for_FY22[[#This Row],[Median]]","v":529825.4},{"$f":"(((AAMC_Raw_Data_for_FY22[[#This Row],[75th]]-AAMC_Raw_Data_for_FY22[[#This Row],[Median]])/25)*15) + AAMC_Raw_Data_for_FY22[[#This Row],[Median]]","v":545658.6},{"$f":"(((AAMC_Raw_Data_for_FY22[[#This Row],[75th]]-AAMC_Raw_Data_for_FY22[[#This Row],[Median]])/25)*20) + AAMC_Raw_Data_for_FY22[[#This Row],[Median]]","v":561491.80000000005},577325,{"$f":"(((AAMC_Raw_Data_for_FY22[[#This Row],[75th]]-AAMC_Raw_Data_for_FY22[[#This Row],[Median]])/25)*30) + AAMC_Raw_Data_for_FY22[[#This Row],[Median]]","v":593158.19999999995},{"$f":"(((AAMC_Raw_Data_for_FY22[[#This Row],[75th]]-AAMC_Raw_Data_for_FY22[[#This Row],[Median]])/25)*35) + AAMC_Raw_Data_for_FY22[[#This Row],[Median]]","v":608991.4},{"$f":"(((AAMC_Raw_Data_for_FY22[[#This Row],[75th]]-AAMC_Raw_Data_for_FY22[[#This Row],[Median]])/25)*40) + AAMC_Raw_Data_for_FY22[[#This Row],[Median]]","v":624824.6}]
[{"$f":"AAMC_Raw_Data_for_FY22[[#This Row],[Source]]&AAMC_Raw_Data_for_FY22[[#This Row],[Type]]&AAMC_Raw_Data_for_FY22[[#This Row],[School Subset]]&AAMC_Raw_Data_for_FY22[[#This Row],[Rank]]&AAMC_Raw_Data_for_FY22[[#This Row],[Degree]]&AAMC_Raw_Data_for_FY22[[#This Row],[Department / Specialty]]&\"L\"","v":"AAMCAcademicAllInstructorMDPsychiatry: PsychologyL"},"Psychiatry: Psychology",5,"AAMC","Academic","All","Instructor","MD","2021-2022",null,{"$f":"(((AAMC_Raw_Data_for_FY22[[#This Row],[Median]]-AAMC_Raw_Data_for_FY22[[#This Row],[25th]])/25)*5) + AAMC_Raw_Data_for_FY22[[#This Row],[25th]]","v":0},{"$f":"(((AAMC_Raw_Data_for_FY22[[#This Row],[Median]]-AAMC_Raw_Data_for_FY22[[#This Row],[25th]])/25)*10) + AAMC_Raw_Data_for_FY22[[#This Row],[25th]]","v":0},{"$f":"(((AAMC_Raw_Data_for_FY22[[#This Row],[Median]]-AAMC_Raw_Data_for_FY22[[#This Row],[25th]])/25)*15) + AAMC_Raw_Data_for_FY22[[#This Row],[25th]]","v":0},{"$f":"(((AAMC_Raw_Data_for_FY22[[#This Row],[Median]]-AAMC_Raw_Data_for_FY22[[#This Row],[25th]])/25)*20) + AAMC_Raw_Data_for_FY22[[#This Row],[25th]]","v":0},null,{"$f":"(((AAMC_Raw_Data_for_FY22[[#This Row],[75th]]-AAMC_Raw_Data_for_FY22[[#This Row],[Median]])/25)*5) + AAMC_Raw_Data_for_FY22[[#This Row],[Median]]","v":0},{"$f":"(((AAMC_Raw_Data_for_FY22[[#This Row],[75th]]-AAMC_Raw_Data_for_FY22[[#This Row],[Median]])/25)*10) + AAMC_Raw_Data_for_FY22[[#This Row],[Median]]","v":0},{"$f":"(((AAMC_Raw_Data_for_FY22[[#This Row],[75th]]-AAMC_Raw_Data_for_FY22[[#This Row],[Median]])/25)*15) + AAMC_Raw_Data_for_FY22[[#This Row],[Median]]","v":0},{"$f":"(((AAMC_Raw_Data_for_FY22[[#This Row],[75th]]-AAMC_Raw_Data_for_FY22[[#This Row],[Median]])/25)*20) + AAMC_Raw_Data_for_FY22[[#This Row],[Median]]","v":0},null,{"$f":"(((AAMC_Raw_Data_for_FY22[[#This Row],[75th]]-AAMC_Raw_Data_for_FY22[[#This Row],[Median]])/25)*30) + AAMC_Raw_Data_for_FY22[[#This Row],[Median]]","v":0},{"$f":"(((AAMC_Raw_Data_for_FY22[[#This Row],[75th]]-AAMC_Raw_Data_for_FY22[[#This Row],[Median]])/25)*35) + AAMC_Raw_Data_for_FY22[[#This Row],[Median]]","v":0},{"$f":"(((AAMC_Raw_Data_for_FY22[[#This Row],[75th]]-AAMC_Raw_Data_for_FY22[[#This Row],[Median]])/25)*40) + AAMC_Raw_Data_for_FY22[[#This Row],[Median]]","v":0}]
[{"$f":"AAMC_Raw_Data_for_FY22[[#This Row],[Source]]&AAMC_Raw_Data_for_FY22[[#This Row],[Type]]&AAMC_Raw_Data_for_FY22[[#This Row],[School Subset]]&AAMC_Raw_Data_for_FY22[[#This Row],[Rank]]&AAMC_Raw_Data_for_FY22[[#This Row],[Degree]]&AAMC_Raw_Data_for_FY22[[#This Row],[Department / Specialty]]&\"L\"","v":"AAMCAcademicAllAssistantMDPsychiatry: PsychologyL"},"Psychiatry: Psychology",4,"AAMC","Academic","All","Assistant","MD","2021-2022",208730,{"$f":"(((AAMC_Raw_Data_for_FY22[[#This Row],[Median]]-AAMC_Raw_Data_for_FY22[[#This Row],[25th]])/25)*5) + AAMC_Raw_Data_for_FY22[[#This Row],[25th]]","v":212014.8},{"$f":"(((AAMC_Raw_Data_for_FY22[[#This Row],[Median]]-AAMC_Raw_Data_for_FY22[[#This Row],[25th]])/25)*10) + AAMC_Raw_Data_for_FY22[[#This Row],[25th]]","v":215299.6},{"$f":"(((AAMC_Raw_Data_for_FY22[[#This Row],[Median]]-AAMC_Raw_Data_for_FY22[[#This Row],[25th]])/25)*15) + AAMC_Raw_Data_for_FY22[[#This Row],[25th]]","v":218584.4},{"$f":"(((AAMC_Raw_Data_for_FY22[[#This Row],[Median]]-AAMC_Raw_Data_for_FY22[[#This Row],[25th]])/25)*20) + AAMC_Raw_Data_for_FY22[[#This Row],[25th]]","v":221869.2},225154,{"$f":"(((AAMC_Raw_Data_for_FY22[[#This Row],[75th]]-AAMC_Raw_Data_for_FY22[[#This Row],[Median]])/25)*5) + AAMC_Raw_Data_for_FY22[[#This Row],[Median]]","v":233162.4},{"$f":"(((AAMC_Raw_Data_for_FY22[[#This Row],[75th]]-AAMC_Raw_Data_for_FY22[[#This Row],[Median]])/25)*10) + AAMC_Raw_Data_for_FY22[[#This Row],[Median]]","v":241170.8},{"$f":"(((AAMC_Raw_Data_for_FY22[[#This Row],[75th]]-AAMC_Raw_Data_for_FY22[[#This Row],[Median]])/25)*15) + AAMC_Raw_Data_for_FY22[[#This Row],[Median]]","v":249179.2},{"$f":"(((AAMC_Raw_Data_for_FY22[[#This Row],[75th]]-AAMC_Raw_Data_for_FY22[[#This Row],[Median]])/25)*20) + AAMC_Raw_Data_for_FY22[[#This Row],[Median]]","v":257187.6},265196,{"$f":"(((AAMC_Raw_Data_for_FY22[[#This Row],[75th]]-AAMC_Raw_Data_for_FY22[[#This Row],[Median]])/25)*30) + AAMC_Raw_Data_for_FY22[[#This Row],[Median]]","v":273204.40000000002},{"$f":"(((AAMC_Raw_Data_for_FY22[[#This Row],[75th]]-AAMC_Raw_Data_for_FY22[[#This Row],[Median]])/25)*35) + AAMC_Raw_Data_for_FY22[[#This Row],[Median]]","v":281212.79999999999},{"$f":"(((AAMC_Raw_Data_for_FY22[[#This Row],[75th]]-AAMC_Raw_Data_for_FY22[[#This Row],[Median]])/25)*40) + AAMC_Raw_Data_for_FY22[[#This Row],[Median]]","v":289221.2}]
[{"$f":"AAMC_Raw_Data_for_FY22[[#This Row],[Source]]&AAMC_Raw_Data_for_FY22[[#This Row],[Type]]&AAMC_Raw_Data_for_FY22[[#This Row],[School Subset]]&AAMC_Raw_Data_for_FY22[[#This Row],[Rank]]&AAMC_Raw_Data_for_FY22[[#This Row],[Degree]]&AAMC_Raw_Data_for_FY22[[#This Row],[Department / Specialty]]&\"L\"","v":"AAMCAcademicAllAssociateMDPsychiatry: PsychologyL"},"Psychiatry: Psychology",3,"AAMC","Academic","All","Associate","MD","2021-2022",null,{"$f":"(((AAMC_Raw_Data_for_FY22[[#This Row],[Median]]-AAMC_Raw_Data_for_FY22[[#This Row],[25th]])/25)*5) + AAMC_Raw_Data_for_FY22[[#This Row],[25th]]","v":0},{"$f":"(((AAMC_Raw_Data_for_FY22[[#This Row],[Median]]-AAMC_Raw_Data_for_FY22[[#This Row],[25th]])/25)*10) + AAMC_Raw_Data_for_FY22[[#This Row],[25th]]","v":0},{"$f":"(((AAMC_Raw_Data_for_FY22[[#This Row],[Median]]-AAMC_Raw_Data_for_FY22[[#This Row],[25th]])/25)*15) + AAMC_Raw_Data_for_FY22[[#This Row],[25th]]","v":0},{"$f":"(((AAMC_Raw_Data_for_FY22[[#This Row],[Median]]-AAMC_Raw_Data_for_FY22[[#This Row],[25th]])/25)*20) + AAMC_Raw_Data_for_FY22[[#This Row],[25th]]","v":0},null,{"$f":"(((AAMC_Raw_Data_for_FY22[[#This Row],[75th]]-AAMC_Raw_Data_for_FY22[[#This Row],[Median]])/25)*5) + AAMC_Raw_Data_for_FY22[[#This Row],[Median]]","v":0},{"$f":"(((AAMC_Raw_Data_for_FY22[[#This Row],[75th]]-AAMC_Raw_Data_for_FY22[[#This Row],[Median]])/25)*10) + AAMC_Raw_Data_for_FY22[[#This Row],[Median]]","v":0},{"$f":"(((AAMC_Raw_Data_for_FY22[[#This Row],[75th]]-AAMC_Raw_Data_for_FY22[[#This Row],[Median]])/25)*15) + AAMC_Raw_Data_for_FY22[[#This Row],[Median]]","v":0},{"$f":"(((AAMC_Raw_Data_for_FY22[[#This Row],[75th]]-AAMC_Raw_Data_for_FY22[[#This Row],[Median]])/25)*20) + AAMC_Raw_Data_for_FY22[[#This Row],[Median]]","v":0},null,{"$f":"(((AAMC_Raw_Data_for_FY22[[#This Row],[75th]]-AAMC_Raw_Data_for_FY22[[#This Row],[Median]])/25)*30) + AAMC_Raw_Data_for_FY22[[#This Row],[Median]]","v":0},{"$f":"(((AAMC_Raw_Data_for_FY22[[#This Row],[75th]]-AAMC_Raw_Data_for_FY22[[#This Row],[Median]])/25)*35) + AAMC_Raw_Data_for_FY22[[#This Row],[Median]]","v":0},{"$f":"(((AAMC_Raw_Data_for_FY22[[#This Row],[75th]]-AAMC_Raw_Data_for_FY22[[#This Row],[Median]])/25)*40) + AAMC_Raw_Data_for_FY22[[#This Row],[Median]]","v":0}]
[{"$f":"AAMC_Raw_Data_for_FY22[[#This Row],[Source]]&AAMC_Raw_Data_for_FY22[[#This Row],[Type]]&AAMC_Raw_Data_for_FY22[[#This Row],[School Subset]]&AAMC_Raw_Data_for_FY22[[#This Row],[Rank]]&AAMC_Raw_Data_for_FY22[[#This Row],[Degree]]&AAMC_Raw_Data_for_FY22[[#This Row],[Department / Specialty]]&\"L\"","v":"AAMCAcademicAllProfessorMDPsychiatry: PsychologyL"},"Psychiatry: Psychology",2,"AAMC","Academic","All","Professor","MD","2021-2022",227684,{"$f":"(((AAMC_Raw_Data_for_FY22[[#This Row],[Median]]-AAMC_Raw_Data_for_FY22[[#This Row],[25th]])/25)*5) + AAMC_Raw_Data_for_FY22[[#This Row],[25th]]","v":245516.6},{"$f":"(((AAMC_Raw_Data_for_FY22[[#This Row],[Median]]-AAMC_Raw_Data_for_FY22[[#This Row],[25th]])/25)*10) + AAMC_Raw_Data_for_FY22[[#This Row],[25th]]","v":263349.2},{"$f":"(((AAMC_Raw_Data_for_FY22[[#This Row],[Median]]-AAMC_Raw_Data_for_FY22[[#This Row],[25th]])/25)*15) + AAMC_Raw_Data_for_FY22[[#This Row],[25th]]","v":281181.8},{"$f":"(((AAMC_Raw_Data_for_FY22[[#This Row],[Median]]-AAMC_Raw_Data_for_FY22[[#This Row],[25th]])/25)*20) + AAMC_Raw_Data_for_FY22[[#This Row],[25th]]","v":299014.40000000002},316847,{"$f":"(((AAMC_Raw_Data_for_FY22[[#This Row],[75th]]-AAMC_Raw_Data_for_FY22[[#This Row],[Median]])/25)*5) + AAMC_Raw_Data_for_FY22[[#This Row],[Median]]","v":318878.2},{"$f":"(((AAMC_Raw_Data_for_FY22[[#This Row],[75th]]-AAMC_Raw_Data_for_FY22[[#This Row],[Median]])/25)*10) + AAMC_Raw_Data_for_FY22[[#This Row],[Median]]","v":320909.40000000002},{"$f":"(((AAMC_Raw_Data_for_FY22[[#This Row],[75th]]-AAMC_Raw_Data_for_FY22[[#This Row],[Median]])/25)*15) + AAMC_Raw_Data_for_FY22[[#This Row],[Median]]","v":322940.59999999998},{"$f":"(((AAMC_Raw_Data_for_FY22[[#This Row],[75th]]-AAMC_Raw_Data_for_FY22[[#This Row],[Median]])/25)*20) + AAMC_Raw_Data_for_FY22[[#This Row],[Median]]","v":324971.8},327003,{"$f":"(((AAMC_Raw_Data_for_FY22[[#This Row],[75th]]-AAMC_Raw_Data_for_FY22[[#This Row],[Median]])/25)*30) + AAMC_Raw_Data_for_FY22[[#This Row],[Median]]","v":329034.2},{"$f":"(((AAMC_Raw_Data_for_FY22[[#This Row],[75th]]-AAMC_Raw_Data_for_FY22[[#This Row],[Median]])/25)*35) + AAMC_Raw_Data_for_FY22[[#This Row],[Median]]","v":331065.40000000002},{"$f":"(((AAMC_Raw_Data_for_FY22[[#This Row],[75th]]-AAMC_Raw_Data_for_FY22[[#This Row],[Median]])/25)*40) + AAMC_Raw_Data_for_FY22[[#This Row],[Median]]","v":333096.59999999998}]
[{"$f":"AAMC_Raw_Data_for_FY22[[#This Row],[Source]]&AAMC_Raw_Data_for_FY22[[#This Row],[Type]]&AAMC_Raw_Data_for_FY22[[#This Row],[School Subset]]&AAMC_Raw_Data_for_FY22[[#This Row],[Rank]]&AAMC_Raw_Data_for_FY22[[#This Row],[Degree]]&AAMC_Raw_Data_for_FY22[[#This Row],[Department / Specialty]]&\"L\"","v":"AAMCAcademicAllInstructorMDPsychiatry: OtherL"},"Psychiatry: Other",5,"AAMC","Academic","All","Instructor","MD","2021-2022",177250,{"$f":"(((AAMC_Raw_Data_for_FY22[[#This Row],[Median]]-AAMC_Raw_Data_for_FY22[[#This Row],[25th]])/25)*5) + AAMC_Raw_Data_for_FY22[[#This Row],[25th]]","v":185048},{"$f":"(((AAMC_Raw_Data_for_FY22[[#This Row],[Median]]-AAMC_Raw_Data_for_FY22[[#This Row],[25th]])/25)*10) + AAMC_Raw_Data_for_FY22[[#This Row],[25th]]","v":192846},{"$f":"(((AAMC_Raw_Data_for_FY22[[#This Row],[Median]]-AAMC_Raw_Data_for_FY22[[#This Row],[25th]])/25)*15) + AAMC_Raw_Data_for_FY22[[#This Row],[25th]]","v":200644},{"$f":"(((AAMC_Raw_Data_for_FY22[[#This Row],[Median]]-AAMC_Raw_Data_for_FY22[[#This Row],[25th]])/25)*20) + AAMC_Raw_Data_for_FY22[[#This Row],[25th]]","v":208442},216240,{"$f":"(((AAMC_Raw_Data_for_FY22[[#This Row],[75th]]-AAMC_Raw_Data_for_FY22[[#This Row],[Median]])/25)*5) + AAMC_Raw_Data_for_FY22[[#This Row],[Median]]","v":217240},{"$f":"(((AAMC_Raw_Data_for_FY22[[#This Row],[75th]]-AAMC_Raw_Data_for_FY22[[#This Row],[Median]])/25)*10) + AAMC_Raw_Data_for_FY22[[#This Row],[Median]]","v":218240},{"$f":"(((AAMC_Raw_Data_for_FY22[[#This Row],[75th]]-AAMC_Raw_Data_for_FY22[[#This Row],[Median]])/25)*15) + AAMC_Raw_Data_for_FY22[[#This Row],[Median]]","v":219240},{"$f":"(((AAMC_Raw_Data_for_FY22[[#This Row],[75th]]-AAMC_Raw_Data_for_FY22[[#This Row],[Median]])/25)*20) + AAMC_Raw_Data_for_FY22[[#This Row],[Median]]","v":220240},221240,{"$f":"(((AAMC_Raw_Data_for_FY22[[#This Row],[75th]]-AAMC_Raw_Data_for_FY22[[#This Row],[Median]])/25)*30) + AAMC_Raw_Data_for_FY22[[#This Row],[Median]]","v":222240},{"$f":"(((AAMC_Raw_Data_for_FY22[[#This Row],[75th]]-AAMC_Raw_Data_for_FY22[[#This Row],[Median]])/25)*35) + AAMC_Raw_Data_for_FY22[[#This Row],[Median]]","v":223240},{"$f":"(((AAMC_Raw_Data_for_FY22[[#This Row],[75th]]-AAMC_Raw_Data_for_FY22[[#This Row],[Median]])/25)*40) + AAMC_Raw_Data_for_FY22[[#This Row],[Median]]","v":224240}]
[{"$f":"AAMC_Raw_Data_for_FY22[[#This Row],[Source]]&AAMC_Raw_Data_for_FY22[[#This Row],[Type]]&AAMC_Raw_Data_for_FY22[[#This Row],[School Subset]]&AAMC_Raw_Data_for_FY22[[#This Row],[Rank]]&AAMC_Raw_Data_for_FY22[[#This Row],[Degree]]&AAMC_Raw_Data_for_FY22[[#This Row],[Department / Specialty]]&\"L\"","v":"AAMCAcademicAllAssistantMDPsychiatry: OtherL"},"Psychiatry: Other",4,"AAMC","Academic","All","Assistant","MD","2021-2022",202197,{"$f":"(((AAMC_Raw_Data_for_FY22[[#This Row],[Median]]-AAMC_Raw_Data_for_FY22[[#This Row],[25th]])/25)*5) + AAMC_Raw_Data_for_FY22[[#This Row],[25th]]","v":210717.6},{"$f":"(((AAMC_Raw_Data_for_FY22[[#This Row],[Median]]-AAMC_Raw_Data_for_FY22[[#This Row],[25th]])/25)*10) + AAMC_Raw_Data_for_FY22[[#This Row],[25th]]","v":219238.2},{"$f":"(((AAMC_Raw_Data_for_FY22[[#This Row],[Median]]-AAMC_Raw_Data_for_FY22[[#This Row],[25th]])/25)*15) + AAMC_Raw_Data_for_FY22[[#This Row],[25th]]","v":227758.8},{"$f":"(((AAMC_Raw_Data_for_FY22[[#This Row],[Median]]-AAMC_Raw_Data_for_FY22[[#This Row],[25th]])/25)*20) + AAMC_Raw_Data_for_FY22[[#This Row],[25th]]","v":236279.4},244800,{"$f":"(((AAMC_Raw_Data_for_FY22[[#This Row],[75th]]-AAMC_Raw_Data_for_FY22[[#This Row],[Median]])/25)*5) + AAMC_Raw_Data_for_FY22[[#This Row],[Median]]","v":252774.6},{"$f":"(((AAMC_Raw_Data_for_FY22[[#This Row],[75th]]-AAMC_Raw_Data_for_FY22[[#This Row],[Median]])/25)*10) + AAMC_Raw_Data_for_FY22[[#This Row],[Median]]","v":260749.2},{"$f":"(((AAMC_Raw_Data_for_FY22[[#This Row],[75th]]-AAMC_Raw_Data_for_FY22[[#This Row],[Median]])/25)*15) + AAMC_Raw_Data_for_FY22[[#This Row],[Median]]","v":268723.8},{"$f":"(((AAMC_Raw_Data_for_FY22[[#This Row],[75th]]-AAMC_Raw_Data_for_FY22[[#This Row],[Median]])/25)*20) + AAMC_Raw_Data_for_FY22[[#This Row],[Median]]","v":276698.40000000002},284673,{"$f":"(((AAMC_Raw_Data_for_FY22[[#This Row],[75th]]-AAMC_Raw_Data_for_FY22[[#This Row],[Median]])/25)*30) + AAMC_Raw_Data_for_FY22[[#This Row],[Median]]","v":292647.59999999998},{"$f":"(((AAMC_Raw_Data_for_FY22[[#This Row],[75th]]-AAMC_Raw_Data_for_FY22[[#This Row],[Median]])/25)*35) + AAMC_Raw_Data_for_FY22[[#This Row],[Median]]","v":300622.2},{"$f":"(((AAMC_Raw_Data_for_FY22[[#This Row],[75th]]-AAMC_Raw_Data_for_FY22[[#This Row],[Median]])/25)*40) + AAMC_Raw_Data_for_FY22[[#This Row],[Median]]","v":308596.8}]
[{"$f":"AAMC_Raw_Data_for_FY22[[#This Row],[Source]]&AAMC_Raw_Data_for_FY22[[#This Row],[Type]]&AAMC_Raw_Data_for_FY22[[#This Row],[School Subset]]&AAMC_Raw_Data_for_FY22[[#This Row],[Rank]]&AAMC_Raw_Data_for_FY22[[#This Row],[Degree]]&AAMC_Raw_Data_for_FY22[[#This Row],[Department / Specialty]]&\"L\"","v":"AAMCAcademicAllAssociateMDPsychiatry: OtherL"},"Psychiatry: Other",3,"AAMC","Academic","All","Associate","MD","2021-2022",215452,{"$f":"(((AAMC_Raw_Data_for_FY22[[#This Row],[Median]]-AAMC_Raw_Data_for_FY22[[#This Row],[25th]])/25)*5) + AAMC_Raw_Data_for_FY22[[#This Row],[25th]]","v":228478.8},{"$f":"(((AAMC_Raw_Data_for_FY22[[#This Row],[Median]]-AAMC_Raw_Data_for_FY22[[#This Row],[25th]])/25)*10) + AAMC_Raw_Data_for_FY22[[#This Row],[25th]]","v":241505.6},{"$f":"(((AAMC_Raw_Data_for_FY22[[#This Row],[Median]]-AAMC_Raw_Data_for_FY22[[#This Row],[25th]])/25)*15) + AAMC_Raw_Data_for_FY22[[#This Row],[25th]]","v":254532.4},{"$f":"(((AAMC_Raw_Data_for_FY22[[#This Row],[Median]]-AAMC_Raw_Data_for_FY22[[#This Row],[25th]])/25)*20) + AAMC_Raw_Data_for_FY22[[#This Row],[25th]]","v":267559.2},280586,{"$f":"(((AAMC_Raw_Data_for_FY22[[#This Row],[75th]]-AAMC_Raw_Data_for_FY22[[#This Row],[Median]])/25)*5) + AAMC_Raw_Data_for_FY22[[#This Row],[Median]]","v":292941.40000000002},{"$f":"(((AAMC_Raw_Data_for_FY22[[#This Row],[75th]]-AAMC_Raw_Data_for_FY22[[#This Row],[Median]])/25)*10) + AAMC_Raw_Data_for_FY22[[#This Row],[Median]]","v":305296.8},{"$f":"(((AAMC_Raw_Data_for_FY22[[#This Row],[75th]]-AAMC_Raw_Data_for_FY22[[#This Row],[Median]])/25)*15) + AAMC_Raw_Data_for_FY22[[#This Row],[Median]]","v":317652.2},{"$f":"(((AAMC_Raw_Data_for_FY22[[#This Row],[75th]]-AAMC_Raw_Data_for_FY22[[#This Row],[Median]])/25)*20) + AAMC_Raw_Data_for_FY22[[#This Row],[Median]]","v":330007.59999999998},342363,{"$f":"(((AAMC_Raw_Data_for_FY22[[#This Row],[75th]]-AAMC_Raw_Data_for_FY22[[#This Row],[Median]])/25)*30) + AAMC_Raw_Data_for_FY22[[#This Row],[Median]]","v":354718.4},{"$f":"(((AAMC_Raw_Data_for_FY22[[#This Row],[75th]]-AAMC_Raw_Data_for_FY22[[#This Row],[Median]])/25)*35) + AAMC_Raw_Data_for_FY22[[#This Row],[Median]]","v":367073.8},{"$f":"(((AAMC_Raw_Data_for_FY22[[#This Row],[75th]]-AAMC_Raw_Data_for_FY22[[#This Row],[Median]])/25)*40) + AAMC_Raw_Data_for_FY22[[#This Row],[Median]]","v":379429.2}]
[{"$f":"AAMC_Raw_Data_for_FY22[[#This Row],[Source]]&AAMC_Raw_Data_for_FY22[[#This Row],[Type]]&AAMC_Raw_Data_for_FY22[[#This Row],[School Subset]]&AAMC_Raw_Data_for_FY22[[#This Row],[Rank]]&AAMC_Raw_Data_for_FY22[[#This Row],[Degree]]&AAMC_Raw_Data_for_FY22[[#This Row],[Department / Specialty]]&\"L\"","v":"AAMCAcademicAllProfessorMDPsychiatry: OtherL"},"Psychiatry: Other",2,"AAMC","Academic","All","Professor","MD","2021-2022",189954,{"$f":"(((AAMC_Raw_Data_for_FY22[[#This Row],[Median]]-AAMC_Raw_Data_for_FY22[[#This Row],[25th]])/25)*5) + AAMC_Raw_Data_for_FY22[[#This Row],[25th]]","v":204515.20000000001},{"$f":"(((AAMC_Raw_Data_for_FY22[[#This Row],[Median]]-AAMC_Raw_Data_for_FY22[[#This Row],[25th]])/25)*10) + AAMC_Raw_Data_for_FY22[[#This Row],[25th]]","v":219076.4},{"$f":"(((AAMC_Raw_Data_for_FY22[[#This Row],[Median]]-AAMC_Raw_Data_for_FY22[[#This Row],[25th]])/25)*15) + AAMC_Raw_Data_for_FY22[[#This Row],[25th]]","v":233637.6},{"$f":"(((AAMC_Raw_Data_for_FY22[[#This Row],[Median]]-AAMC_Raw_Data_for_FY22[[#This Row],[25th]])/25)*20) + AAMC_Raw_Data_for_FY22[[#This Row],[25th]]","v":248198.8},262760,{"$f":"(((AAMC_Raw_Data_for_FY22[[#This Row],[75th]]-AAMC_Raw_Data_for_FY22[[#This Row],[Median]])/25)*5) + AAMC_Raw_Data_for_FY22[[#This Row],[Median]]","v":273801.8},{"$f":"(((AAMC_Raw_Data_for_FY22[[#This Row],[75th]]-AAMC_Raw_Data_for_FY22[[#This Row],[Median]])/25)*10) + AAMC_Raw_Data_for_FY22[[#This Row],[Median]]","v":284843.59999999998},{"$f":"(((AAMC_Raw_Data_for_FY22[[#This Row],[75th]]-AAMC_Raw_Data_for_FY22[[#This Row],[Median]])/25)*15) + AAMC_Raw_Data_for_FY22[[#This Row],[Median]]","v":295885.40000000002},{"$f":"(((AAMC_Raw_Data_for_FY22[[#This Row],[75th]]-AAMC_Raw_Data_for_FY22[[#This Row],[Median]])/25)*20) + AAMC_Raw_Data_for_FY22[[#This Row],[Median]]","v":306927.2},317969,{"$f":"(((AAMC_Raw_Data_for_FY22[[#This Row],[75th]]-AAMC_Raw_Data_for_FY22[[#This Row],[Median]])/25)*30) + AAMC_Raw_Data_for_FY22[[#This Row],[Median]]","v":329010.8},{"$f":"(((AAMC_Raw_Data_for_FY22[[#This Row],[75th]]-AAMC_Raw_Data_for_FY22[[#This Row],[Median]])/25)*35) + AAMC_Raw_Data_for_FY22[[#This Row],[Median]]","v":340052.6},{"$f":"(((AAMC_Raw_Data_for_FY22[[#This Row],[75th]]-AAMC_Raw_Data_for_FY22[[#This Row],[Median]])/25)*40) + AAMC_Raw_Data_for_FY22[[#This Row],[Median]]","v":351094.4}]
[{"$f":"AAMC_Raw_Data_for_FY22[[#This Row],[Source]]&AAMC_Raw_Data_for_FY22[[#This Row],[Type]]&AAMC_Raw_Data_for_FY22[[#This Row],[School Subset]]&AAMC_Raw_Data_for_FY22[[#This Row],[Rank]]&AAMC_Raw_Data_for_FY22[[#This Row],[Degree]]&AAMC_Raw_Data_for_FY22[[#This Row],[Department / Specialty]]&\"L\"","v":"AAMCAcademicAllChiefMDPsychiatry: OtherL"},"Psychiatry: Other",6,"AAMC","Academic","All","Chief","MD","2021-2022",null,{"$f":"(((AAMC_Raw_Data_for_FY22[[#This Row],[Median]]-AAMC_Raw_Data_for_FY22[[#This Row],[25th]])/25)*5) + AAMC_Raw_Data_for_FY22[[#This Row],[25th]]","v":0},{"$f":"(((AAMC_Raw_Data_for_FY22[[#This Row],[Median]]-AAMC_Raw_Data_for_FY22[[#This Row],[25th]])/25)*10) + AAMC_Raw_Data_for_FY22[[#This Row],[25th]]","v":0},{"$f":"(((AAMC_Raw_Data_for_FY22[[#This Row],[Median]]-AAMC_Raw_Data_for_FY22[[#This Row],[25th]])/25)*15) + AAMC_Raw_Data_for_FY22[[#This Row],[25th]]","v":0},{"$f":"(((AAMC_Raw_Data_for_FY22[[#This Row],[Median]]-AAMC_Raw_Data_for_FY22[[#This Row],[25th]])/25)*20) + AAMC_Raw_Data_for_FY22[[#This Row],[25th]]","v":0},null,{"$f":"(((AAMC_Raw_Data_for_FY22[[#This Row],[75th]]-AAMC_Raw_Data_for_FY22[[#This Row],[Median]])/25)*5) + AAMC_Raw_Data_for_FY22[[#This Row],[Median]]","v":0},{"$f":"(((AAMC_Raw_Data_for_FY22[[#This Row],[75th]]-AAMC_Raw_Data_for_FY22[[#This Row],[Median]])/25)*10) + AAMC_Raw_Data_for_FY22[[#This Row],[Median]]","v":0},{"$f":"(((AAMC_Raw_Data_for_FY22[[#This Row],[75th]]-AAMC_Raw_Data_for_FY22[[#This Row],[Median]])/25)*15) + AAMC_Raw_Data_for_FY22[[#This Row],[Median]]","v":0},{"$f":"(((AAMC_Raw_Data_for_FY22[[#This Row],[75th]]-AAMC_Raw_Data_for_FY22[[#This Row],[Median]])/25)*20) + AAMC_Raw_Data_for_FY22[[#This Row],[Median]]","v":0},null,{"$f":"(((AAMC_Raw_Data_for_FY22[[#This Row],[75th]]-AAMC_Raw_Data_for_FY22[[#This Row],[Median]])/25)*30) + AAMC_Raw_Data_for_FY22[[#This Row],[Median]]","v":0},{"$f":"(((AAMC_Raw_Data_for_FY22[[#This Row],[75th]]-AAMC_Raw_Data_for_FY22[[#This Row],[Median]])/25)*35) + AAMC_Raw_Data_for_FY22[[#This Row],[Median]]","v":0},{"$f":"(((AAMC_Raw_Data_for_FY22[[#This Row],[75th]]-AAMC_Raw_Data_for_FY22[[#This Row],[Median]])/25)*40) + AAMC_Raw_Data_for_FY22[[#This Row],[Median]]","v":0}]
[{"$f":"AAMC_Raw_Data_for_FY22[[#This Row],[Source]]&AAMC_Raw_Data_for_FY22[[#This Row],[Type]]&AAMC_Raw_Data_for_FY22[[#This Row],[School Subset]]&AAMC_Raw_Data_for_FY22[[#This Row],[Rank]]&AAMC_Raw_Data_for_FY22[[#This Row],[Degree]]&AAMC_Raw_Data_for_FY22[[#This Row],[Department / Specialty]]&\"L\"","v":"AAMCAcademicAllChairMDPsychiatry: OtherL"},"Psychiatry: Other",1,"AAMC","Academic","All","Chair","MD","2021-2022",447706,{"$f":"(((AAMC_Raw_Data_for_FY22[[#This Row],[Median]]-AAMC_Raw_Data_for_FY22[[#This Row],[25th]])/25)*5) + AAMC_Raw_Data_for_FY22[[#This Row],[25th]]","v":459603.8},{"$f":"(((AAMC_Raw_Data_for_FY22[[#This Row],[Median]]-AAMC_Raw_Data_for_FY22[[#This Row],[25th]])/25)*10) + AAMC_Raw_Data_for_FY22[[#This Row],[25th]]","v":471501.6},{"$f":"(((AAMC_Raw_Data_for_FY22[[#This Row],[Median]]-AAMC_Raw_Data_for_FY22[[#This Row],[25th]])/25)*15) + AAMC_Raw_Data_for_FY22[[#This Row],[25th]]","v":483399.4},{"$f":"(((AAMC_Raw_Data_for_FY22[[#This Row],[Median]]-AAMC_Raw_Data_for_FY22[[#This Row],[25th]])/25)*20) + AAMC_Raw_Data_for_FY22[[#This Row],[25th]]","v":495297.2},507195,{"$f":"(((AAMC_Raw_Data_for_FY22[[#This Row],[75th]]-AAMC_Raw_Data_for_FY22[[#This Row],[Median]])/25)*5) + AAMC_Raw_Data_for_FY22[[#This Row],[Median]]","v":527862.6},{"$f":"(((AAMC_Raw_Data_for_FY22[[#This Row],[75th]]-AAMC_Raw_Data_for_FY22[[#This Row],[Median]])/25)*10) + AAMC_Raw_Data_for_FY22[[#This Row],[Median]]","v":548530.19999999995},{"$f":"(((AAMC_Raw_Data_for_FY22[[#This Row],[75th]]-AAMC_Raw_Data_for_FY22[[#This Row],[Median]])/25)*15) + AAMC_Raw_Data_for_FY22[[#This Row],[Median]]","v":569197.80000000005},{"$f":"(((AAMC_Raw_Data_for_FY22[[#This Row],[75th]]-AAMC_Raw_Data_for_FY22[[#This Row],[Median]])/25)*20) + AAMC_Raw_Data_for_FY22[[#This Row],[Median]]","v":589865.4},610533,{"$f":"(((AAMC_Raw_Data_for_FY22[[#This Row],[75th]]-AAMC_Raw_Data_for_FY22[[#This Row],[Median]])/25)*30) + AAMC_Raw_Data_for_FY22[[#This Row],[Median]]","v":631200.6},{"$f":"(((AAMC_Raw_Data_for_FY22[[#This Row],[75th]]-AAMC_Raw_Data_for_FY22[[#This Row],[Median]])/25)*35) + AAMC_Raw_Data_for_FY22[[#This Row],[Median]]","v":651868.19999999995},{"$f":"(((AAMC_Raw_Data_for_FY22[[#This Row],[75th]]-AAMC_Raw_Data_for_FY22[[#This Row],[Median]])/25)*40) + AAMC_Raw_Data_for_FY22[[#This Row],[Median]]","v":672535.8}]
[{"$f":"AAMC_Raw_Data_for_FY22[[#This Row],[Source]]&AAMC_Raw_Data_for_FY22[[#This Row],[Type]]&AAMC_Raw_Data_for_FY22[[#This Row],[School Subset]]&AAMC_Raw_Data_for_FY22[[#This Row],[Rank]]&AAMC_Raw_Data_for_FY22[[#This Row],[Degree]]&AAMC_Raw_Data_for_FY22[[#This Row],[Department / Specialty]]&\"L\"","v":"AAMCAcademicAllInstructorMDRadiology TotalL"},"Radiology Total",5,"AAMC","Academic","All","Instructor","MD","2021-2022",107775,{"$f":"(((AAMC_Raw_Data_for_FY22[[#This Row],[Median]]-AAMC_Raw_Data_for_FY22[[#This Row],[25th]])/25)*5) + AAMC_Raw_Data_for_FY22[[#This Row],[25th]]","v":153020},{"$f":"(((AAMC_Raw_Data_for_FY22[[#This Row],[Median]]-AAMC_Raw_Data_for_FY22[[#This Row],[25th]])/25)*10) + AAMC_Raw_Data_for_FY22[[#This Row],[25th]]","v":198265},{"$f":"(((AAMC_Raw_Data_for_FY22[[#This Row],[Median]]-AAMC_Raw_Data_for_FY22[[#This Row],[25th]])/25)*15) + AAMC_Raw_Data_for_FY22[[#This Row],[25th]]","v":243510},{"$f":"(((AAMC_Raw_Data_for_FY22[[#This Row],[Median]]-AAMC_Raw_Data_for_FY22[[#This Row],[25th]])/25)*20) + AAMC_Raw_Data_for_FY22[[#This Row],[25th]]","v":288755},334000,{"$f":"(((AAMC_Raw_Data_for_FY22[[#This Row],[75th]]-AAMC_Raw_Data_for_FY22[[#This Row],[Median]])/25)*5) + AAMC_Raw_Data_for_FY22[[#This Row],[Median]]","v":358802},{"$f":"(((AAMC_Raw_Data_for_FY22[[#This Row],[75th]]-AAMC_Raw_Data_for_FY22[[#This Row],[Median]])/25)*10) + AAMC_Raw_Data_for_FY22[[#This Row],[Median]]","v":383604},{"$f":"(((AAMC_Raw_Data_for_FY22[[#This Row],[75th]]-AAMC_Raw_Data_for_FY22[[#This Row],[Median]])/25)*15) + AAMC_Raw_Data_for_FY22[[#This Row],[Median]]","v":408406},{"$f":"(((AAMC_Raw_Data_for_FY22[[#This Row],[75th]]-AAMC_Raw_Data_for_FY22[[#This Row],[Median]])/25)*20) + AAMC_Raw_Data_for_FY22[[#This Row],[Median]]","v":433208},458010,{"$f":"(((AAMC_Raw_Data_for_FY22[[#This Row],[75th]]-AAMC_Raw_Data_for_FY22[[#This Row],[Median]])/25)*30) + AAMC_Raw_Data_for_FY22[[#This Row],[Median]]","v":482812},{"$f":"(((AAMC_Raw_Data_for_FY22[[#This Row],[75th]]-AAMC_Raw_Data_for_FY22[[#This Row],[Median]])/25)*35) + AAMC_Raw_Data_for_FY22[[#This Row],[Median]]","v":507614},{"$f":"(((AAMC_Raw_Data_for_FY22[[#This Row],[75th]]-AAMC_Raw_Data_for_FY22[[#This Row],[Median]])/25)*40) + AAMC_Raw_Data_for_FY22[[#This Row],[Median]]","v":532416}]
[{"$f":"AAMC_Raw_Data_for_FY22[[#This Row],[Source]]&AAMC_Raw_Data_for_FY22[[#This Row],[Type]]&AAMC_Raw_Data_for_FY22[[#This Row],[School Subset]]&AAMC_Raw_Data_for_FY22[[#This Row],[Rank]]&AAMC_Raw_Data_for_FY22[[#This Row],[Degree]]&AAMC_Raw_Data_for_FY22[[#This Row],[Department / Specialty]]&\"L\"","v":"AAMCAcademicAllAssistantMDRadiology TotalL"},"Radiology Total",4,"AAMC","Academic","All","Assistant","MD","2021-2022",374757,{"$f":"(((AAMC_Raw_Data_for_FY22[[#This Row],[Median]]-AAMC_Raw_Data_for_FY22[[#This Row],[25th]])/25)*5) + AAMC_Raw_Data_for_FY22[[#This Row],[25th]]","v":383591.4},{"$f":"(((AAMC_Raw_Data_for_FY22[[#This Row],[Median]]-AAMC_Raw_Data_for_FY22[[#This Row],[25th]])/25)*10) + AAMC_Raw_Data_for_FY22[[#This Row],[25th]]","v":392425.8},{"$f":"(((AAMC_Raw_Data_for_FY22[[#This Row],[Median]]-AAMC_Raw_Data_for_FY22[[#This Row],[25th]])/25)*15) + AAMC_Raw_Data_for_FY22[[#This Row],[25th]]","v":401260.2},{"$f":"(((AAMC_Raw_Data_for_FY22[[#This Row],[Median]]-AAMC_Raw_Data_for_FY22[[#This Row],[25th]])/25)*20) + AAMC_Raw_Data_for_FY22[[#This Row],[25th]]","v":410094.6},418929,{"$f":"(((AAMC_Raw_Data_for_FY22[[#This Row],[75th]]-AAMC_Raw_Data_for_FY22[[#This Row],[Median]])/25)*5) + AAMC_Raw_Data_for_FY22[[#This Row],[Median]]","v":430733},{"$f":"(((AAMC_Raw_Data_for_FY22[[#This Row],[75th]]-AAMC_Raw_Data_for_FY22[[#This Row],[Median]])/25)*10) + AAMC_Raw_Data_for_FY22[[#This Row],[Median]]","v":442537},{"$f":"(((AAMC_Raw_Data_for_FY22[[#This Row],[75th]]-AAMC_Raw_Data_for_FY22[[#This Row],[Median]])/25)*15) + AAMC_Raw_Data_for_FY22[[#This Row],[Median]]","v":454341},{"$f":"(((AAMC_Raw_Data_for_FY22[[#This Row],[75th]]-AAMC_Raw_Data_for_FY22[[#This Row],[Median]])/25)*20) + AAMC_Raw_Data_for_FY22[[#This Row],[Median]]","v":466145},477949,{"$f":"(((AAMC_Raw_Data_for_FY22[[#This Row],[75th]]-AAMC_Raw_Data_for_FY22[[#This Row],[Median]])/25)*30) + AAMC_Raw_Data_for_FY22[[#This Row],[Median]]","v":489753},{"$f":"(((AAMC_Raw_Data_for_FY22[[#This Row],[75th]]-AAMC_Raw_Data_for_FY22[[#This Row],[Median]])/25)*35) + AAMC_Raw_Data_for_FY22[[#This Row],[Median]]","v":501557},{"$f":"(((AAMC_Raw_Data_for_FY22[[#This Row],[75th]]-AAMC_Raw_Data_for_FY22[[#This Row],[Median]])/25)*40) + AAMC_Raw_Data_for_FY22[[#This Row],[Median]]","v":513361}]
[{"$f":"AAMC_Raw_Data_for_FY22[[#This Row],[Source]]&AAMC_Raw_Data_for_FY22[[#This Row],[Type]]&AAMC_Raw_Data_for_FY22[[#This Row],[School Subset]]&AAMC_Raw_Data_for_FY22[[#This Row],[Rank]]&AAMC_Raw_Data_for_FY22[[#This Row],[Degree]]&AAMC_Raw_Data_for_FY22[[#This Row],[Department / Specialty]]&\"L\"","v":"AAMCAcademicAllAssociateMDRadiology TotalL"},"Radiology Total",3,"AAMC","Academic","All","Associate","MD","2021-2022",418928,{"$f":"(((AAMC_Raw_Data_for_FY22[[#This Row],[Median]]-AAMC_Raw_Data_for_FY22[[#This Row],[25th]])/25)*5) + AAMC_Raw_Data_for_FY22[[#This Row],[25th]]","v":427837.8},{"$f":"(((AAMC_Raw_Data_for_FY22[[#This Row],[Median]]-AAMC_Raw_Data_for_FY22[[#This Row],[25th]])/25)*10) + AAMC_Raw_Data_for_FY22[[#This Row],[25th]]","v":436747.6},{"$f":"(((AAMC_Raw_Data_for_FY22[[#This Row],[Median]]-AAMC_Raw_Data_for_FY22[[#This Row],[25th]])/25)*15) + AAMC_Raw_Data_for_FY22[[#This Row],[25th]]","v":445657.4},{"$f":"(((AAMC_Raw_Data_for_FY22[[#This Row],[Median]]-AAMC_Raw_Data_for_FY22[[#This Row],[25th]])/25)*20) + AAMC_Raw_Data_for_FY22[[#This Row],[25th]]","v":454567.2},463477,{"$f":"(((AAMC_Raw_Data_for_FY22[[#This Row],[75th]]-AAMC_Raw_Data_for_FY22[[#This Row],[Median]])/25)*5) + AAMC_Raw_Data_for_FY22[[#This Row],[Median]]","v":476808},{"$f":"(((AAMC_Raw_Data_for_FY22[[#This Row],[75th]]-AAMC_Raw_Data_for_FY22[[#This Row],[Median]])/25)*10) + AAMC_Raw_Data_for_FY22[[#This Row],[Median]]","v":490139},{"$f":"(((AAMC_Raw_Data_for_FY22[[#This Row],[75th]]-AAMC_Raw_Data_for_FY22[[#This Row],[Median]])/25)*15) + AAMC_Raw_Data_for_FY22[[#This Row],[Median]]","v":503470},{"$f":"(((AAMC_Raw_Data_for_FY22[[#This Row],[75th]]-AAMC_Raw_Data_for_FY22[[#This Row],[Median]])/25)*20) + AAMC_Raw_Data_for_FY22[[#This Row],[Median]]","v":516801},530132,{"$f":"(((AAMC_Raw_Data_for_FY22[[#This Row],[75th]]-AAMC_Raw_Data_for_FY22[[#This Row],[Median]])/25)*30) + AAMC_Raw_Data_for_FY22[[#This Row],[Median]]","v":543463},{"$f":"(((AAMC_Raw_Data_for_FY22[[#This Row],[75th]]-AAMC_Raw_Data_for_FY22[[#This Row],[Median]])/25)*35) + AAMC_Raw_Data_for_FY22[[#This Row],[Median]]","v":556794},{"$f":"(((AAMC_Raw_Data_for_FY22[[#This Row],[75th]]-AAMC_Raw_Data_for_FY22[[#This Row],[Median]])/25)*40) + AAMC_Raw_Data_for_FY22[[#This Row],[Median]]","v":570125}]
[{"$f":"AAMC_Raw_Data_for_FY22[[#This Row],[Source]]&AAMC_Raw_Data_for_FY22[[#This Row],[Type]]&AAMC_Raw_Data_for_FY22[[#This Row],[School Subset]]&AAMC_Raw_Data_for_FY22[[#This Row],[Rank]]&AAMC_Raw_Data_for_FY22[[#This Row],[Degree]]&AAMC_Raw_Data_for_FY22[[#This Row],[Department / Specialty]]&\"L\"","v":"AAMCAcademicAllProfessorMDRadiology TotalL"},"Radiology Total",2,"AAMC","Academic","All","Professor","MD","2021-2022",430052,{"$f":"(((AAMC_Raw_Data_for_FY22[[#This Row],[Median]]-AAMC_Raw_Data_for_FY22[[#This Row],[25th]])/25)*5) + AAMC_Raw_Data_for_FY22[[#This Row],[25th]]","v":442311.8},{"$f":"(((AAMC_Raw_Data_for_FY22[[#This Row],[Median]]-AAMC_Raw_Data_for_FY22[[#This Row],[25th]])/25)*10) + AAMC_Raw_Data_for_FY22[[#This Row],[25th]]","v":454571.6},{"$f":"(((AAMC_Raw_Data_for_FY22[[#This Row],[Median]]-AAMC_Raw_Data_for_FY22[[#This Row],[25th]])/25)*15) + AAMC_Raw_Data_for_FY22[[#This Row],[25th]]","v":466831.4},{"$f":"(((AAMC_Raw_Data_for_FY22[[#This Row],[Median]]-AAMC_Raw_Data_for_FY22[[#This Row],[25th]])/25)*20) + AAMC_Raw_Data_for_FY22[[#This Row],[25th]]","v":479091.20000000001},491351,{"$f":"(((AAMC_Raw_Data_for_FY22[[#This Row],[75th]]-AAMC_Raw_Data_for_FY22[[#This Row],[Median]])/25)*5) + AAMC_Raw_Data_for_FY22[[#This Row],[Median]]","v":506123.4},{"$f":"(((AAMC_Raw_Data_for_FY22[[#This Row],[75th]]-AAMC_Raw_Data_for_FY22[[#This Row],[Median]])/25)*10) + AAMC_Raw_Data_for_FY22[[#This Row],[Median]]","v":520895.8},{"$f":"(((AAMC_Raw_Data_for_FY22[[#This Row],[75th]]-AAMC_Raw_Data_for_FY22[[#This Row],[Median]])/25)*15) + AAMC_Raw_Data_for_FY22[[#This Row],[Median]]","v":535668.19999999995},{"$f":"(((AAMC_Raw_Data_for_FY22[[#This Row],[75th]]-AAMC_Raw_Data_for_FY22[[#This Row],[Median]])/25)*20) + AAMC_Raw_Data_for_FY22[[#This Row],[Median]]","v":550440.6},565213,{"$f":"(((AAMC_Raw_Data_for_FY22[[#This Row],[75th]]-AAMC_Raw_Data_for_FY22[[#This Row],[Median]])/25)*30) + AAMC_Raw_Data_for_FY22[[#This Row],[Median]]","v":579985.4},{"$f":"(((AAMC_Raw_Data_for_FY22[[#This Row],[75th]]-AAMC_Raw_Data_for_FY22[[#This Row],[Median]])/25)*35) + AAMC_Raw_Data_for_FY22[[#This Row],[Median]]","v":594757.80000000005},{"$f":"(((AAMC_Raw_Data_for_FY22[[#This Row],[75th]]-AAMC_Raw_Data_for_FY22[[#This Row],[Median]])/25)*40) + AAMC_Raw_Data_for_FY22[[#This Row],[Median]]","v":609530.19999999995}]
[{"$f":"AAMC_Raw_Data_for_FY22[[#This Row],[Source]]&AAMC_Raw_Data_for_FY22[[#This Row],[Type]]&AAMC_Raw_Data_for_FY22[[#This Row],[School Subset]]&AAMC_Raw_Data_for_FY22[[#This Row],[Rank]]&AAMC_Raw_Data_for_FY22[[#This Row],[Degree]]&AAMC_Raw_Data_for_FY22[[#This Row],[Department / Specialty]]&\"L\"","v":"AAMCAcademicAllChiefMDRadiology TotalL"},"Radiology Total",6,"AAMC","Academic","All","Chief","MD","2021-2022",455070,{"$f":"(((AAMC_Raw_Data_for_FY22[[#This Row],[Median]]-AAMC_Raw_Data_for_FY22[[#This Row],[25th]])/25)*5) + AAMC_Raw_Data_for_FY22[[#This Row],[25th]]","v":463436},{"$f":"(((AAMC_Raw_Data_for_FY22[[#This Row],[Median]]-AAMC_Raw_Data_for_FY22[[#This Row],[25th]])/25)*10) + AAMC_Raw_Data_for_FY22[[#This Row],[25th]]","v":471802},{"$f":"(((AAMC_Raw_Data_for_FY22[[#This Row],[Median]]-AAMC_Raw_Data_for_FY22[[#This Row],[25th]])/25)*15) + AAMC_Raw_Data_for_FY22[[#This Row],[25th]]","v":480168},{"$f":"(((AAMC_Raw_Data_for_FY22[[#This Row],[Median]]-AAMC_Raw_Data_for_FY22[[#This Row],[25th]])/25)*20) + AAMC_Raw_Data_for_FY22[[#This Row],[25th]]","v":488534},496900,{"$f":"(((AAMC_Raw_Data_for_FY22[[#This Row],[75th]]-AAMC_Raw_Data_for_FY22[[#This Row],[Median]])/25)*5) + AAMC_Raw_Data_for_FY22[[#This Row],[Median]]","v":513662.4},{"$f":"(((AAMC_Raw_Data_for_FY22[[#This Row],[75th]]-AAMC_Raw_Data_for_FY22[[#This Row],[Median]])/25)*10) + AAMC_Raw_Data_for_FY22[[#This Row],[Median]]","v":530424.80000000005},{"$f":"(((AAMC_Raw_Data_for_FY22[[#This Row],[75th]]-AAMC_Raw_Data_for_FY22[[#This Row],[Median]])/25)*15) + AAMC_Raw_Data_for_FY22[[#This Row],[Median]]","v":547187.19999999995},{"$f":"(((AAMC_Raw_Data_for_FY22[[#This Row],[75th]]-AAMC_Raw_Data_for_FY22[[#This Row],[Median]])/25)*20) + AAMC_Raw_Data_for_FY22[[#This Row],[Median]]","v":563949.6},580712,{"$f":"(((AAMC_Raw_Data_for_FY22[[#This Row],[75th]]-AAMC_Raw_Data_for_FY22[[#This Row],[Median]])/25)*30) + AAMC_Raw_Data_for_FY22[[#This Row],[Median]]","v":597474.4},{"$f":"(((AAMC_Raw_Data_for_FY22[[#This Row],[75th]]-AAMC_Raw_Data_for_FY22[[#This Row],[Median]])/25)*35) + AAMC_Raw_Data_for_FY22[[#This Row],[Median]]","v":614236.80000000005},{"$f":"(((AAMC_Raw_Data_for_FY22[[#This Row],[75th]]-AAMC_Raw_Data_for_FY22[[#This Row],[Median]])/25)*40) + AAMC_Raw_Data_for_FY22[[#This Row],[Median]]","v":630999.19999999995}]
[{"$f":"AAMC_Raw_Data_for_FY22[[#This Row],[Source]]&AAMC_Raw_Data_for_FY22[[#This Row],[Type]]&AAMC_Raw_Data_for_FY22[[#This Row],[School Subset]]&AAMC_Raw_Data_for_FY22[[#This Row],[Rank]]&AAMC_Raw_Data_for_FY22[[#This Row],[Degree]]&AAMC_Raw_Data_for_FY22[[#This Row],[Department / Specialty]]&\"L\"","v":"AAMCAcademicAllChairMDRadiology TotalL"},"Radiology Total",1,"AAMC","Academic","All","Chair","MD","2021-2022",713379,{"$f":"(((AAMC_Raw_Data_for_FY22[[#This Row],[Median]]-AAMC_Raw_Data_for_FY22[[#This Row],[25th]])/25)*5) + AAMC_Raw_Data_for_FY22[[#This Row],[25th]]","v":732466.4},{"$f":"(((AAMC_Raw_Data_for_FY22[[#This Row],[Median]]-AAMC_Raw_Data_for_FY22[[#This Row],[25th]])/25)*10) + AAMC_Raw_Data_for_FY22[[#This Row],[25th]]","v":751553.8},{"$f":"(((AAMC_Raw_Data_for_FY22[[#This Row],[Median]]-AAMC_Raw_Data_for_FY22[[#This Row],[25th]])/25)*15) + AAMC_Raw_Data_for_FY22[[#This Row],[25th]]","v":770641.2},{"$f":"(((AAMC_Raw_Data_for_FY22[[#This Row],[Median]]-AAMC_Raw_Data_for_FY22[[#This Row],[25th]])/25)*20) + AAMC_Raw_Data_for_FY22[[#This Row],[25th]]","v":789728.6},808816,{"$f":"(((AAMC_Raw_Data_for_FY22[[#This Row],[75th]]-AAMC_Raw_Data_for_FY22[[#This Row],[Median]])/25)*5) + AAMC_Raw_Data_for_FY22[[#This Row],[Median]]","v":828053.4},{"$f":"(((AAMC_Raw_Data_for_FY22[[#This Row],[75th]]-AAMC_Raw_Data_for_FY22[[#This Row],[Median]])/25)*10) + AAMC_Raw_Data_for_FY22[[#This Row],[Median]]","v":847290.8},{"$f":"(((AAMC_Raw_Data_for_FY22[[#This Row],[75th]]-AAMC_Raw_Data_for_FY22[[#This Row],[Median]])/25)*15) + AAMC_Raw_Data_for_FY22[[#This Row],[Median]]","v":866528.2},{"$f":"(((AAMC_Raw_Data_for_FY22[[#This Row],[75th]]-AAMC_Raw_Data_for_FY22[[#This Row],[Median]])/25)*20) + AAMC_Raw_Data_for_FY22[[#This Row],[Median]]","v":885765.6},905003,{"$f":"(((AAMC_Raw_Data_for_FY22[[#This Row],[75th]]-AAMC_Raw_Data_for_FY22[[#This Row],[Median]])/25)*30) + AAMC_Raw_Data_for_FY22[[#This Row],[Median]]","v":924240.4},{"$f":"(((AAMC_Raw_Data_for_FY22[[#This Row],[75th]]-AAMC_Raw_Data_for_FY22[[#This Row],[Median]])/25)*35) + AAMC_Raw_Data_for_FY22[[#This Row],[Median]]","v":943477.8},{"$f":"(((AAMC_Raw_Data_for_FY22[[#This Row],[75th]]-AAMC_Raw_Data_for_FY22[[#This Row],[Median]])/25)*40) + AAMC_Raw_Data_for_FY22[[#This Row],[Median]]","v":962715.2}]
[{"$f":"AAMC_Raw_Data_for_FY22[[#This Row],[Source]]&AAMC_Raw_Data_for_FY22[[#This Row],[Type]]&AAMC_Raw_Data_for_FY22[[#This Row],[School Subset]]&AAMC_Raw_Data_for_FY22[[#This Row],[Rank]]&AAMC_Raw_Data_for_FY22[[#This Row],[Degree]]&AAMC_Raw_Data_for_FY22[[#This Row],[Department / Specialty]]&\"L\"","v":"AAMCAcademicAllInstructorMDDiagnostic Radiology TotalL"},"Diagnostic Radiology Total",5,"AAMC","Academic","All","Instructor","MD","2021-2022",96978,{"$f":"(((AAMC_Raw_Data_for_FY22[[#This Row],[Median]]-AAMC_Raw_Data_for_FY22[[#This Row],[25th]])/25)*5) + AAMC_Raw_Data_for_FY22[[#This Row],[25th]]","v":145782.39999999999},{"$f":"(((AAMC_Raw_Data_for_FY22[[#This Row],[Median]]-AAMC_Raw_Data_for_FY22[[#This Row],[25th]])/25)*10) + AAMC_Raw_Data_for_FY22[[#This Row],[25th]]","v":194586.8},{"$f":"(((AAMC_Raw_Data_for_FY22[[#This Row],[Median]]-AAMC_Raw_Data_for_FY22[[#This Row],[25th]])/25)*15) + AAMC_Raw_Data_for_FY22[[#This Row],[25th]]","v":243391.19999999998},{"$f":"(((AAMC_Raw_Data_for_FY22[[#This Row],[Median]]-AAMC_Raw_Data_for_FY22[[#This Row],[25th]])/25)*20) + AAMC_Raw_Data_for_FY22[[#This Row],[25th]]","v":292195.59999999998},341000,{"$f":"(((AAMC_Raw_Data_for_FY22[[#This Row],[75th]]-AAMC_Raw_Data_for_FY22[[#This Row],[Median]])/25)*5) + AAMC_Raw_Data_for_FY22[[#This Row],[Median]]","v":365695.8},{"$f":"(((AAMC_Raw_Data_for_FY22[[#This Row],[75th]]-AAMC_Raw_Data_for_FY22[[#This Row],[Median]])/25)*10) + AAMC_Raw_Data_for_FY22[[#This Row],[Median]]","v":390391.6},{"$f":"(((AAMC_Raw_Data_for_FY22[[#This Row],[75th]]-AAMC_Raw_Data_for_FY22[[#This Row],[Median]])/25)*15) + AAMC_Raw_Data_for_FY22[[#This Row],[Median]]","v":415087.4},{"$f":"(((AAMC_Raw_Data_for_FY22[[#This Row],[75th]]-AAMC_Raw_Data_for_FY22[[#This Row],[Median]])/25)*20) + AAMC_Raw_Data_for_FY22[[#This Row],[Median]]","v":439783.2},464479,{"$f":"(((AAMC_Raw_Data_for_FY22[[#This Row],[75th]]-AAMC_Raw_Data_for_FY22[[#This Row],[Median]])/25)*30) + AAMC_Raw_Data_for_FY22[[#This Row],[Median]]","v":489174.8},{"$f":"(((AAMC_Raw_Data_for_FY22[[#This Row],[75th]]-AAMC_Raw_Data_for_FY22[[#This Row],[Median]])/25)*35) + AAMC_Raw_Data_for_FY22[[#This Row],[Median]]","v":513870.6},{"$f":"(((AAMC_Raw_Data_for_FY22[[#This Row],[75th]]-AAMC_Raw_Data_for_FY22[[#This Row],[Median]])/25)*40) + AAMC_Raw_Data_for_FY22[[#This Row],[Median]]","v":538566.40000000002}]
[{"$f":"AAMC_Raw_Data_for_FY22[[#This Row],[Source]]&AAMC_Raw_Data_for_FY22[[#This Row],[Type]]&AAMC_Raw_Data_for_FY22[[#This Row],[School Subset]]&AAMC_Raw_Data_for_FY22[[#This Row],[Rank]]&AAMC_Raw_Data_for_FY22[[#This Row],[Degree]]&AAMC_Raw_Data_for_FY22[[#This Row],[Department / Specialty]]&\"L\"","v":"AAMCAcademicAllAssistantMDDiagnostic Radiology TotalL"},"Diagnostic Radiology Total",4,"AAMC","Academic","All","Assistant","MD","2021-2022",379042,{"$f":"(((AAMC_Raw_Data_for_FY22[[#This Row],[Median]]-AAMC_Raw_Data_for_FY22[[#This Row],[25th]])/25)*5) + AAMC_Raw_Data_for_FY22[[#This Row],[25th]]","v":388058.6},{"$f":"(((AAMC_Raw_Data_for_FY22[[#This Row],[Median]]-AAMC_Raw_Data_for_FY22[[#This Row],[25th]])/25)*10) + AAMC_Raw_Data_for_FY22[[#This Row],[25th]]","v":397075.20000000001},{"$f":"(((AAMC_Raw_Data_for_FY22[[#This Row],[Median]]-AAMC_Raw_Data_for_FY22[[#This Row],[25th]])/25)*15) + AAMC_Raw_Data_for_FY22[[#This Row],[25th]]","v":406091.8},{"$f":"(((AAMC_Raw_Data_for_FY22[[#This Row],[Median]]-AAMC_Raw_Data_for_FY22[[#This Row],[25th]])/25)*20) + AAMC_Raw_Data_for_FY22[[#This Row],[25th]]","v":415108.4},424125,{"$f":"(((AAMC_Raw_Data_for_FY22[[#This Row],[75th]]-AAMC_Raw_Data_for_FY22[[#This Row],[Median]])/25)*5) + AAMC_Raw_Data_for_FY22[[#This Row],[Median]]","v":436252.8},{"$f":"(((AAMC_Raw_Data_for_FY22[[#This Row],[75th]]-AAMC_Raw_Data_for_FY22[[#This Row],[Median]])/25)*10) + AAMC_Raw_Data_for_FY22[[#This Row],[Median]]","v":448380.6},{"$f":"(((AAMC_Raw_Data_for_FY22[[#This Row],[75th]]-AAMC_Raw_Data_for_FY22[[#This Row],[Median]])/25)*15) + AAMC_Raw_Data_for_FY22[[#This Row],[Median]]","v":460508.4},{"$f":"(((AAMC_Raw_Data_for_FY22[[#This Row],[75th]]-AAMC_Raw_Data_for_FY22[[#This Row],[Median]])/25)*20) + AAMC_Raw_Data_for_FY22[[#This Row],[Median]]","v":472636.2},484764,{"$f":"(((AAMC_Raw_Data_for_FY22[[#This Row],[75th]]-AAMC_Raw_Data_for_FY22[[#This Row],[Median]])/25)*30) + AAMC_Raw_Data_for_FY22[[#This Row],[Median]]","v":496891.8},{"$f":"(((AAMC_Raw_Data_for_FY22[[#This Row],[75th]]-AAMC_Raw_Data_for_FY22[[#This Row],[Median]])/25)*35) + AAMC_Raw_Data_for_FY22[[#This Row],[Median]]","v":509019.6},{"$f":"(((AAMC_Raw_Data_for_FY22[[#This Row],[75th]]-AAMC_Raw_Data_for_FY22[[#This Row],[Median]])/25)*40) + AAMC_Raw_Data_for_FY22[[#This Row],[Median]]","v":521147.4}]
[{"$f":"AAMC_Raw_Data_for_FY22[[#This Row],[Source]]&AAMC_Raw_Data_for_FY22[[#This Row],[Type]]&AAMC_Raw_Data_for_FY22[[#This Row],[School Subset]]&AAMC_Raw_Data_for_FY22[[#This Row],[Rank]]&AAMC_Raw_Data_for_FY22[[#This Row],[Degree]]&AAMC_Raw_Data_for_FY22[[#This Row],[Department / Specialty]]&\"L\"","v":"AAMCAcademicAllAssociateMDDiagnostic Radiology TotalL"},"Diagnostic Radiology Total",3,"AAMC","Academic","All","Associate","MD","2021-2022",418245,{"$f":"(((AAMC_Raw_Data_for_FY22[[#This Row],[Median]]-AAMC_Raw_Data_for_FY22[[#This Row],[25th]])/25)*5) + AAMC_Raw_Data_for_FY22[[#This Row],[25th]]","v":426507.8},{"$f":"(((AAMC_Raw_Data_for_FY22[[#This Row],[Median]]-AAMC_Raw_Data_for_FY22[[#This Row],[25th]])/25)*10) + AAMC_Raw_Data_for_FY22[[#This Row],[25th]]","v":434770.6},{"$f":"(((AAMC_Raw_Data_for_FY22[[#This Row],[Median]]-AAMC_Raw_Data_for_FY22[[#This Row],[25th]])/25)*15) + AAMC_Raw_Data_for_FY22[[#This Row],[25th]]","v":443033.4},{"$f":"(((AAMC_Raw_Data_for_FY22[[#This Row],[Median]]-AAMC_Raw_Data_for_FY22[[#This Row],[25th]])/25)*20) + AAMC_Raw_Data_for_FY22[[#This Row],[25th]]","v":451296.2},459559,{"$f":"(((AAMC_Raw_Data_for_FY22[[#This Row],[75th]]-AAMC_Raw_Data_for_FY22[[#This Row],[Median]])/25)*5) + AAMC_Raw_Data_for_FY22[[#This Row],[Median]]","v":471990.4},{"$f":"(((AAMC_Raw_Data_for_FY22[[#This Row],[75th]]-AAMC_Raw_Data_for_FY22[[#This Row],[Median]])/25)*10) + AAMC_Raw_Data_for_FY22[[#This Row],[Median]]","v":484421.8},{"$f":"(((AAMC_Raw_Data_for_FY22[[#This Row],[75th]]-AAMC_Raw_Data_for_FY22[[#This Row],[Median]])/25)*15) + AAMC_Raw_Data_for_FY22[[#This Row],[Median]]","v":496853.2},{"$f":"(((AAMC_Raw_Data_for_FY22[[#This Row],[75th]]-AAMC_Raw_Data_for_FY22[[#This Row],[Median]])/25)*20) + AAMC_Raw_Data_for_FY22[[#This Row],[Median]]","v":509284.6},521716,{"$f":"(((AAMC_Raw_Data_for_FY22[[#This Row],[75th]]-AAMC_Raw_Data_for_FY22[[#This Row],[Median]])/25)*30) + AAMC_Raw_Data_for_FY22[[#This Row],[Median]]","v":534147.4},{"$f":"(((AAMC_Raw_Data_for_FY22[[#This Row],[75th]]-AAMC_Raw_Data_for_FY22[[#This Row],[Median]])/25)*35) + AAMC_Raw_Data_for_FY22[[#This Row],[Median]]","v":546578.80000000005},{"$f":"(((AAMC_Raw_Data_for_FY22[[#This Row],[75th]]-AAMC_Raw_Data_for_FY22[[#This Row],[Median]])/25)*40) + AAMC_Raw_Data_for_FY22[[#This Row],[Median]]","v":559010.19999999995}]
[{"$f":"AAMC_Raw_Data_for_FY22[[#This Row],[Source]]&AAMC_Raw_Data_for_FY22[[#This Row],[Type]]&AAMC_Raw_Data_for_FY22[[#This Row],[School Subset]]&AAMC_Raw_Data_for_FY22[[#This Row],[Rank]]&AAMC_Raw_Data_for_FY22[[#This Row],[Degree]]&AAMC_Raw_Data_for_FY22[[#This Row],[Department / Specialty]]&\"L\"","v":"AAMCAcademicAllProfessorMDDiagnostic Radiology TotalL"},"Diagnostic Radiology Total",2,"AAMC","Academic","All","Professor","MD","2021-2022",435166,{"$f":"(((AAMC_Raw_Data_for_FY22[[#This Row],[Median]]-AAMC_Raw_Data_for_FY22[[#This Row],[25th]])/25)*5) + AAMC_Raw_Data_for_FY22[[#This Row],[25th]]","v":445210.6},{"$f":"(((AAMC_Raw_Data_for_FY22[[#This Row],[Median]]-AAMC_Raw_Data_for_FY22[[#This Row],[25th]])/25)*10) + AAMC_Raw_Data_for_FY22[[#This Row],[25th]]","v":455255.2},{"$f":"(((AAMC_Raw_Data_for_FY22[[#This Row],[Median]]-AAMC_Raw_Data_for_FY22[[#This Row],[25th]])/25)*15) + AAMC_Raw_Data_for_FY22[[#This Row],[25th]]","v":465299.8},{"$f":"(((AAMC_Raw_Data_for_FY22[[#This Row],[Median]]-AAMC_Raw_Data_for_FY22[[#This Row],[25th]])/25)*20) + AAMC_Raw_Data_for_FY22[[#This Row],[25th]]","v":475344.4},485389,{"$f":"(((AAMC_Raw_Data_for_FY22[[#This Row],[75th]]-AAMC_Raw_Data_for_FY22[[#This Row],[Median]])/25)*5) + AAMC_Raw_Data_for_FY22[[#This Row],[Median]]","v":498891.8},{"$f":"(((AAMC_Raw_Data_for_FY22[[#This Row],[75th]]-AAMC_Raw_Data_for_FY22[[#This Row],[Median]])/25)*10) + AAMC_Raw_Data_for_FY22[[#This Row],[Median]]","v":512394.6},{"$f":"(((AAMC_Raw_Data_for_FY22[[#This Row],[75th]]-AAMC_Raw_Data_for_FY22[[#This Row],[Median]])/25)*15) + AAMC_Raw_Data_for_FY22[[#This Row],[Median]]","v":525897.4},{"$f":"(((AAMC_Raw_Data_for_FY22[[#This Row],[75th]]-AAMC_Raw_Data_for_FY22[[#This Row],[Median]])/25)*20) + AAMC_Raw_Data_for_FY22[[#This Row],[Median]]","v":539400.19999999995},552903,{"$f":"(((AAMC_Raw_Data_for_FY22[[#This Row],[75th]]-AAMC_Raw_Data_for_FY22[[#This Row],[Median]])/25)*30) + AAMC_Raw_Data_for_FY22[[#This Row],[Median]]","v":566405.80000000005},{"$f":"(((AAMC_Raw_Data_for_FY22[[#This Row],[75th]]-AAMC_Raw_Data_for_FY22[[#This Row],[Median]])/25)*35) + AAMC_Raw_Data_for_FY22[[#This Row],[Median]]","v":579908.6},{"$f":"(((AAMC_Raw_Data_for_FY22[[#This Row],[75th]]-AAMC_Raw_Data_for_FY22[[#This Row],[Median]])/25)*40) + AAMC_Raw_Data_for_FY22[[#This Row],[Median]]","v":593411.4}]
[{"$f":"AAMC_Raw_Data_for_FY22[[#This Row],[Source]]&AAMC_Raw_Data_for_FY22[[#This Row],[Type]]&AAMC_Raw_Data_for_FY22[[#This Row],[School Subset]]&AAMC_Raw_Data_for_FY22[[#This Row],[Rank]]&AAMC_Raw_Data_for_FY22[[#This Row],[Degree]]&AAMC_Raw_Data_for_FY22[[#This Row],[Department / Specialty]]&\"L\"","v":"AAMCAcademicAllChiefMDDiagnostic Radiology TotalL"},"Diagnostic Radiology Total",6,"AAMC","Academic","All","Chief","MD","2021-2022",453037,{"$f":"(((AAMC_Raw_Data_for_FY22[[#This Row],[Median]]-AAMC_Raw_Data_for_FY22[[#This Row],[25th]])/25)*5) + AAMC_Raw_Data_for_FY22[[#This Row],[25th]]","v":460769.6},{"$f":"(((AAMC_Raw_Data_for_FY22[[#This Row],[Median]]-AAMC_Raw_Data_for_FY22[[#This Row],[25th]])/25)*10) + AAMC_Raw_Data_for_FY22[[#This Row],[25th]]","v":468502.2},{"$f":"(((AAMC_Raw_Data_for_FY22[[#This Row],[Median]]-AAMC_Raw_Data_for_FY22[[#This Row],[25th]])/25)*15) + AAMC_Raw_Data_for_FY22[[#This Row],[25th]]","v":476234.8},{"$f":"(((AAMC_Raw_Data_for_FY22[[#This Row],[Median]]-AAMC_Raw_Data_for_FY22[[#This Row],[25th]])/25)*20) + AAMC_Raw_Data_for_FY22[[#This Row],[25th]]","v":483967.4},491700,{"$f":"(((AAMC_Raw_Data_for_FY22[[#This Row],[75th]]-AAMC_Raw_Data_for_FY22[[#This Row],[Median]])/25)*5) + AAMC_Raw_Data_for_FY22[[#This Row],[Median]]","v":506636.2},{"$f":"(((AAMC_Raw_Data_for_FY22[[#This Row],[75th]]-AAMC_Raw_Data_for_FY22[[#This Row],[Median]])/25)*10) + AAMC_Raw_Data_for_FY22[[#This Row],[Median]]","v":521572.4},{"$f":"(((AAMC_Raw_Data_for_FY22[[#This Row],[75th]]-AAMC_Raw_Data_for_FY22[[#This Row],[Median]])/25)*15) + AAMC_Raw_Data_for_FY22[[#This Row],[Median]]","v":536508.6},{"$f":"(((AAMC_Raw_Data_for_FY22[[#This Row],[75th]]-AAMC_Raw_Data_for_FY22[[#This Row],[Median]])/25)*20) + AAMC_Raw_Data_for_FY22[[#This Row],[Median]]","v":551444.80000000005},566381,{"$f":"(((AAMC_Raw_Data_for_FY22[[#This Row],[75th]]-AAMC_Raw_Data_for_FY22[[#This Row],[Median]])/25)*30) + AAMC_Raw_Data_for_FY22[[#This Row],[Median]]","v":581317.19999999995},{"$f":"(((AAMC_Raw_Data_for_FY22[[#This Row],[75th]]-AAMC_Raw_Data_for_FY22[[#This Row],[Median]])/25)*35) + AAMC_Raw_Data_for_FY22[[#This Row],[Median]]","v":596253.4},{"$f":"(((AAMC_Raw_Data_for_FY22[[#This Row],[75th]]-AAMC_Raw_Data_for_FY22[[#This Row],[Median]])/25)*40) + AAMC_Raw_Data_for_FY22[[#This Row],[Median]]","v":611189.6}]
[{"$f":"AAMC_Raw_Data_for_FY22[[#This Row],[Source]]&AAMC_Raw_Data_for_FY22[[#This Row],[Type]]&AAMC_Raw_Data_for_FY22[[#This Row],[School Subset]]&AAMC_Raw_Data_for_FY22[[#This Row],[Rank]]&AAMC_Raw_Data_for_FY22[[#This Row],[Degree]]&AAMC_Raw_Data_for_FY22[[#This Row],[Department / Specialty]]&\"L\"","v":"AAMCAcademicAllChairMDDiagnostic Radiology TotalL"},"Diagnostic Radiology Total",1,"AAMC","Academic","All","Chair","MD","2021-2022",694314,{"$f":"(((AAMC_Raw_Data_for_FY22[[#This Row],[Median]]-AAMC_Raw_Data_for_FY22[[#This Row],[25th]])/25)*5) + AAMC_Raw_Data_for_FY22[[#This Row],[25th]]","v":712035},{"$f":"(((AAMC_Raw_Data_for_FY22[[#This Row],[Median]]-AAMC_Raw_Data_for_FY22[[#This Row],[25th]])/25)*10) + AAMC_Raw_Data_for_FY22[[#This Row],[25th]]","v":729756},{"$f":"(((AAMC_Raw_Data_for_FY22[[#This Row],[Median]]-AAMC_Raw_Data_for_FY22[[#This Row],[25th]])/25)*15) + AAMC_Raw_Data_for_FY22[[#This Row],[25th]]","v":747477},{"$f":"(((AAMC_Raw_Data_for_FY22[[#This Row],[Median]]-AAMC_Raw_Data_for_FY22[[#This Row],[25th]])/25)*20) + AAMC_Raw_Data_for_FY22[[#This Row],[25th]]","v":765198},782919,{"$f":"(((AAMC_Raw_Data_for_FY22[[#This Row],[75th]]-AAMC_Raw_Data_for_FY22[[#This Row],[Median]])/25)*5) + AAMC_Raw_Data_for_FY22[[#This Row],[Median]]","v":796537.2},{"$f":"(((AAMC_Raw_Data_for_FY22[[#This Row],[75th]]-AAMC_Raw_Data_for_FY22[[#This Row],[Median]])/25)*10) + AAMC_Raw_Data_for_FY22[[#This Row],[Median]]","v":810155.4},{"$f":"(((AAMC_Raw_Data_for_FY22[[#This Row],[75th]]-AAMC_Raw_Data_for_FY22[[#This Row],[Median]])/25)*15) + AAMC_Raw_Data_for_FY22[[#This Row],[Median]]","v":823773.6},{"$f":"(((AAMC_Raw_Data_for_FY22[[#This Row],[75th]]-AAMC_Raw_Data_for_FY22[[#This Row],[Median]])/25)*20) + AAMC_Raw_Data_for_FY22[[#This Row],[Median]]","v":837391.8},851010,{"$f":"(((AAMC_Raw_Data_for_FY22[[#This Row],[75th]]-AAMC_Raw_Data_for_FY22[[#This Row],[Median]])/25)*30) + AAMC_Raw_Data_for_FY22[[#This Row],[Median]]","v":864628.2},{"$f":"(((AAMC_Raw_Data_for_FY22[[#This Row],[75th]]-AAMC_Raw_Data_for_FY22[[#This Row],[Median]])/25)*35) + AAMC_Raw_Data_for_FY22[[#This Row],[Median]]","v":878246.40000000002},{"$f":"(((AAMC_Raw_Data_for_FY22[[#This Row],[75th]]-AAMC_Raw_Data_for_FY22[[#This Row],[Median]])/25)*40) + AAMC_Raw_Data_for_FY22[[#This Row],[Median]]","v":891864.6}]
[{"$f":"AAMC_Raw_Data_for_FY22[[#This Row],[Source]]&AAMC_Raw_Data_for_FY22[[#This Row],[Type]]&AAMC_Raw_Data_for_FY22[[#This Row],[School Subset]]&AAMC_Raw_Data_for_FY22[[#This Row],[Rank]]&AAMC_Raw_Data_for_FY22[[#This Row],[Degree]]&AAMC_Raw_Data_for_FY22[[#This Row],[Department / Specialty]]&\"L\"","v":"AAMCAcademicAllInstructorMDDiagnostic Radiology: InterventionalL"},"Diagnostic Radiology: Interventional",5,"AAMC","Academic","All","Instructor","MD","2021-2022",378254,{"$f":"(((AAMC_Raw_Data_for_FY22[[#This Row],[Median]]-AAMC_Raw_Data_for_FY22[[#This Row],[25th]])/25)*5) + AAMC_Raw_Data_for_FY22[[#This Row],[25th]]","v":385103.2},{"$f":"(((AAMC_Raw_Data_for_FY22[[#This Row],[Median]]-AAMC_Raw_Data_for_FY22[[#This Row],[25th]])/25)*10) + AAMC_Raw_Data_for_FY22[[#This Row],[25th]]","v":391952.4},{"$f":"(((AAMC_Raw_Data_for_FY22[[#This Row],[Median]]-AAMC_Raw_Data_for_FY22[[#This Row],[25th]])/25)*15) + AAMC_Raw_Data_for_FY22[[#This Row],[25th]]","v":398801.6},{"$f":"(((AAMC_Raw_Data_for_FY22[[#This Row],[Median]]-AAMC_Raw_Data_for_FY22[[#This Row],[25th]])/25)*20) + AAMC_Raw_Data_for_FY22[[#This Row],[25th]]","v":405650.8},412500,{"$f":"(((AAMC_Raw_Data_for_FY22[[#This Row],[75th]]-AAMC_Raw_Data_for_FY22[[#This Row],[Median]])/25)*5) + AAMC_Raw_Data_for_FY22[[#This Row],[Median]]","v":438443.4},{"$f":"(((AAMC_Raw_Data_for_FY22[[#This Row],[75th]]-AAMC_Raw_Data_for_FY22[[#This Row],[Median]])/25)*10) + AAMC_Raw_Data_for_FY22[[#This Row],[Median]]","v":464386.8},{"$f":"(((AAMC_Raw_Data_for_FY22[[#This Row],[75th]]-AAMC_Raw_Data_for_FY22[[#This Row],[Median]])/25)*15) + AAMC_Raw_Data_for_FY22[[#This Row],[Median]]","v":490330.2},{"$f":"(((AAMC_Raw_Data_for_FY22[[#This Row],[75th]]-AAMC_Raw_Data_for_FY22[[#This Row],[Median]])/25)*20) + AAMC_Raw_Data_for_FY22[[#This Row],[Median]]","v":516273.6},542217,{"$f":"(((AAMC_Raw_Data_for_FY22[[#This Row],[75th]]-AAMC_Raw_Data_for_FY22[[#This Row],[Median]])/25)*30) + AAMC_Raw_Data_for_FY22[[#This Row],[Median]]","v":568160.4},{"$f":"(((AAMC_Raw_Data_for_FY22[[#This Row],[75th]]-AAMC_Raw_Data_for_FY22[[#This Row],[Median]])/25)*35) + AAMC_Raw_Data_for_FY22[[#This Row],[Median]]","v":594103.80000000005},{"$f":"(((AAMC_Raw_Data_for_FY22[[#This Row],[75th]]-AAMC_Raw_Data_for_FY22[[#This Row],[Median]])/25)*40) + AAMC_Raw_Data_for_FY22[[#This Row],[Median]]","v":620047.19999999995}]
[{"$f":"AAMC_Raw_Data_for_FY22[[#This Row],[Source]]&AAMC_Raw_Data_for_FY22[[#This Row],[Type]]&AAMC_Raw_Data_for_FY22[[#This Row],[School Subset]]&AAMC_Raw_Data_for_FY22[[#This Row],[Rank]]&AAMC_Raw_Data_for_FY22[[#This Row],[Degree]]&AAMC_Raw_Data_for_FY22[[#This Row],[Department / Specialty]]&\"L\"","v":"AAMCAcademicAllAssistantMDDiagnostic Radiology: InterventionalL"},"Diagnostic Radiology: Interventional",4,"AAMC","Academic","All","Assistant","MD","2021-2022",412060,{"$f":"(((AAMC_Raw_Data_for_FY22[[#This Row],[Median]]-AAMC_Raw_Data_for_FY22[[#This Row],[25th]])/25)*5) + AAMC_Raw_Data_for_FY22[[#This Row],[25th]]","v":420719.4},{"$f":"(((AAMC_Raw_Data_for_FY22[[#This Row],[Median]]-AAMC_Raw_Data_for_FY22[[#This Row],[25th]])/25)*10) + AAMC_Raw_Data_for_FY22[[#This Row],[25th]]","v":429378.8},{"$f":"(((AAMC_Raw_Data_for_FY22[[#This Row],[Median]]-AAMC_Raw_Data_for_FY22[[#This Row],[25th]])/25)*15) + AAMC_Raw_Data_for_FY22[[#This Row],[25th]]","v":438038.2},{"$f":"(((AAMC_Raw_Data_for_FY22[[#This Row],[Median]]-AAMC_Raw_Data_for_FY22[[#This Row],[25th]])/25)*20) + AAMC_Raw_Data_for_FY22[[#This Row],[25th]]","v":446697.6},455357,{"$f":"(((AAMC_Raw_Data_for_FY22[[#This Row],[75th]]-AAMC_Raw_Data_for_FY22[[#This Row],[Median]])/25)*5) + AAMC_Raw_Data_for_FY22[[#This Row],[Median]]","v":469635.4},{"$f":"(((AAMC_Raw_Data_for_FY22[[#This Row],[75th]]-AAMC_Raw_Data_for_FY22[[#This Row],[Median]])/25)*10) + AAMC_Raw_Data_for_FY22[[#This Row],[Median]]","v":483913.8},{"$f":"(((AAMC_Raw_Data_for_FY22[[#This Row],[75th]]-AAMC_Raw_Data_for_FY22[[#This Row],[Median]])/25)*15) + AAMC_Raw_Data_for_FY22[[#This Row],[Median]]","v":498192.2},{"$f":"(((AAMC_Raw_Data_for_FY22[[#This Row],[75th]]-AAMC_Raw_Data_for_FY22[[#This Row],[Median]])/25)*20) + AAMC_Raw_Data_for_FY22[[#This Row],[Median]]","v":512470.6},526749,{"$f":"(((AAMC_Raw_Data_for_FY22[[#This Row],[75th]]-AAMC_Raw_Data_for_FY22[[#This Row],[Median]])/25)*30) + AAMC_Raw_Data_for_FY22[[#This Row],[Median]]","v":541027.4},{"$f":"(((AAMC_Raw_Data_for_FY22[[#This Row],[75th]]-AAMC_Raw_Data_for_FY22[[#This Row],[Median]])/25)*35) + AAMC_Raw_Data_for_FY22[[#This Row],[Median]]","v":555305.80000000005},{"$f":"(((AAMC_Raw_Data_for_FY22[[#This Row],[75th]]-AAMC_Raw_Data_for_FY22[[#This Row],[Median]])/25)*40) + AAMC_Raw_Data_for_FY22[[#This Row],[Median]]","v":569584.19999999995}]
[{"$f":"AAMC_Raw_Data_for_FY22[[#This Row],[Source]]&AAMC_Raw_Data_for_FY22[[#This Row],[Type]]&AAMC_Raw_Data_for_FY22[[#This Row],[School Subset]]&AAMC_Raw_Data_for_FY22[[#This Row],[Rank]]&AAMC_Raw_Data_for_FY22[[#This Row],[Degree]]&AAMC_Raw_Data_for_FY22[[#This Row],[Department / Specialty]]&\"L\"","v":"AAMCAcademicAllAssociateMDDiagnostic Radiology: InterventionalL"},"Diagnostic Radiology: Interventional",3,"AAMC","Academic","All","Associate","MD","2021-2022",452513,{"$f":"(((AAMC_Raw_Data_for_FY22[[#This Row],[Median]]-AAMC_Raw_Data_for_FY22[[#This Row],[25th]])/25)*5) + AAMC_Raw_Data_for_FY22[[#This Row],[25th]]","v":461592},{"$f":"(((AAMC_Raw_Data_for_FY22[[#This Row],[Median]]-AAMC_Raw_Data_for_FY22[[#This Row],[25th]])/25)*10) + AAMC_Raw_Data_for_FY22[[#This Row],[25th]]","v":470671},{"$f":"(((AAMC_Raw_Data_for_FY22[[#This Row],[Median]]-AAMC_Raw_Data_for_FY22[[#This Row],[25th]])/25)*15) + AAMC_Raw_Data_for_FY22[[#This Row],[25th]]","v":479750},{"$f":"(((AAMC_Raw_Data_for_FY22[[#This Row],[Median]]-AAMC_Raw_Data_for_FY22[[#This Row],[25th]])/25)*20) + AAMC_Raw_Data_for_FY22[[#This Row],[25th]]","v":488829},497908,{"$f":"(((AAMC_Raw_Data_for_FY22[[#This Row],[75th]]-AAMC_Raw_Data_for_FY22[[#This Row],[Median]])/25)*5) + AAMC_Raw_Data_for_FY22[[#This Row],[Median]]","v":511864.2},{"$f":"(((AAMC_Raw_Data_for_FY22[[#This Row],[75th]]-AAMC_Raw_Data_for_FY22[[#This Row],[Median]])/25)*10) + AAMC_Raw_Data_for_FY22[[#This Row],[Median]]","v":525820.4},{"$f":"(((AAMC_Raw_Data_for_FY22[[#This Row],[75th]]-AAMC_Raw_Data_for_FY22[[#This Row],[Median]])/25)*15) + AAMC_Raw_Data_for_FY22[[#This Row],[Median]]","v":539776.6},{"$f":"(((AAMC_Raw_Data_for_FY22[[#This Row],[75th]]-AAMC_Raw_Data_for_FY22[[#This Row],[Median]])/25)*20) + AAMC_Raw_Data_for_FY22[[#This Row],[Median]]","v":553732.80000000005},567689,{"$f":"(((AAMC_Raw_Data_for_FY22[[#This Row],[75th]]-AAMC_Raw_Data_for_FY22[[#This Row],[Median]])/25)*30) + AAMC_Raw_Data_for_FY22[[#This Row],[Median]]","v":581645.19999999995},{"$f":"(((AAMC_Raw_Data_for_FY22[[#This Row],[75th]]-AAMC_Raw_Data_for_FY22[[#This Row],[Median]])/25)*35) + AAMC_Raw_Data_for_FY22[[#This Row],[Median]]","v":595601.4},{"$f":"(((AAMC_Raw_Data_for_FY22[[#This Row],[75th]]-AAMC_Raw_Data_for_FY22[[#This Row],[Median]])/25)*40) + AAMC_Raw_Data_for_FY22[[#This Row],[Median]]","v":609557.6}]
[{"$f":"AAMC_Raw_Data_for_FY22[[#This Row],[Source]]&AAMC_Raw_Data_for_FY22[[#This Row],[Type]]&AAMC_Raw_Data_for_FY22[[#This Row],[School Subset]]&AAMC_Raw_Data_for_FY22[[#This Row],[Rank]]&AAMC_Raw_Data_for_FY22[[#This Row],[Degree]]&AAMC_Raw_Data_for_FY22[[#This Row],[Department / Specialty]]&\"L\"","v":"AAMCAcademicAllProfessorMDDiagnostic Radiology: InterventionalL"},"Diagnostic Radiology: Interventional",2,"AAMC","Academic","All","Professor","MD","2021-2022",479631,{"$f":"(((AAMC_Raw_Data_for_FY22[[#This Row],[Median]]-AAMC_Raw_Data_for_FY22[[#This Row],[25th]])/25)*5) + AAMC_Raw_Data_for_FY22[[#This Row],[25th]]","v":490928.8},{"$f":"(((AAMC_Raw_Data_for_FY22[[#This Row],[Median]]-AAMC_Raw_Data_for_FY22[[#This Row],[25th]])/25)*10) + AAMC_Raw_Data_for_FY22[[#This Row],[25th]]","v":502226.6},{"$f":"(((AAMC_Raw_Data_for_FY22[[#This Row],[Median]]-AAMC_Raw_Data_for_FY22[[#This Row],[25th]])/25)*15) + AAMC_Raw_Data_for_FY22[[#This Row],[25th]]","v":513524.4},{"$f":"(((AAMC_Raw_Data_for_FY22[[#This Row],[Median]]-AAMC_Raw_Data_for_FY22[[#This Row],[25th]])/25)*20) + AAMC_Raw_Data_for_FY22[[#This Row],[25th]]","v":524822.19999999995},536120,{"$f":"(((AAMC_Raw_Data_for_FY22[[#This Row],[75th]]-AAMC_Raw_Data_for_FY22[[#This Row],[Median]])/25)*5) + AAMC_Raw_Data_for_FY22[[#This Row],[Median]]","v":547384.19999999995},{"$f":"(((AAMC_Raw_Data_for_FY22[[#This Row],[75th]]-AAMC_Raw_Data_for_FY22[[#This Row],[Median]])/25)*10) + AAMC_Raw_Data_for_FY22[[#This Row],[Median]]","v":558648.4},{"$f":"(((AAMC_Raw_Data_for_FY22[[#This Row],[75th]]-AAMC_Raw_Data_for_FY22[[#This Row],[Median]])/25)*15) + AAMC_Raw_Data_for_FY22[[#This Row],[Median]]","v":569912.6},{"$f":"(((AAMC_Raw_Data_for_FY22[[#This Row],[75th]]-AAMC_Raw_Data_for_FY22[[#This Row],[Median]])/25)*20) + AAMC_Raw_Data_for_FY22[[#This Row],[Median]]","v":581176.80000000005},592441,{"$f":"(((AAMC_Raw_Data_for_FY22[[#This Row],[75th]]-AAMC_Raw_Data_for_FY22[[#This Row],[Median]])/25)*30) + AAMC_Raw_Data_for_FY22[[#This Row],[Median]]","v":603705.19999999995},{"$f":"(((AAMC_Raw_Data_for_FY22[[#This Row],[75th]]-AAMC_Raw_Data_for_FY22[[#This Row],[Median]])/25)*35) + AAMC_Raw_Data_for_FY22[[#This Row],[Median]]","v":614969.4},{"$f":"(((AAMC_Raw_Data_for_FY22[[#This Row],[75th]]-AAMC_Raw_Data_for_FY22[[#This Row],[Median]])/25)*40) + AAMC_Raw_Data_for_FY22[[#This Row],[Median]]","v":626233.59999999998}]
[{"$f":"AAMC_Raw_Data_for_FY22[[#This Row],[Source]]&AAMC_Raw_Data_for_FY22[[#This Row],[Type]]&AAMC_Raw_Data_for_FY22[[#This Row],[School Subset]]&AAMC_Raw_Data_for_FY22[[#This Row],[Rank]]&AAMC_Raw_Data_for_FY22[[#This Row],[Degree]]&AAMC_Raw_Data_for_FY22[[#This Row],[Department / Specialty]]&\"L\"","v":"AAMCAcademicAllChiefMDDiagnostic Radiology: InterventionalL"},"Diagnostic Radiology: Interventional",6,"AAMC","Academic","All","Chief","MD","2021-2022",502385,{"$f":"(((AAMC_Raw_Data_for_FY22[[#This Row],[Median]]-AAMC_Raw_Data_for_FY22[[#This Row],[25th]])/25)*5) + AAMC_Raw_Data_for_FY22[[#This Row],[25th]]","v":515241.2},{"$f":"(((AAMC_Raw_Data_for_FY22[[#This Row],[Median]]-AAMC_Raw_Data_for_FY22[[#This Row],[25th]])/25)*10) + AAMC_Raw_Data_for_FY22[[#This Row],[25th]]","v":528097.4},{"$f":"(((AAMC_Raw_Data_for_FY22[[#This Row],[Median]]-AAMC_Raw_Data_for_FY22[[#This Row],[25th]])/25)*15) + AAMC_Raw_Data_for_FY22[[#This Row],[25th]]","v":540953.59999999998},{"$f":"(((AAMC_Raw_Data_for_FY22[[#This Row],[Median]]-AAMC_Raw_Data_for_FY22[[#This Row],[25th]])/25)*20) + AAMC_Raw_Data_for_FY22[[#This Row],[25th]]","v":553809.80000000005},566666,{"$f":"(((AAMC_Raw_Data_for_FY22[[#This Row],[75th]]-AAMC_Raw_Data_for_FY22[[#This Row],[Median]])/25)*5) + AAMC_Raw_Data_for_FY22[[#This Row],[Median]]","v":583088.6},{"$f":"(((AAMC_Raw_Data_for_FY22[[#This Row],[75th]]-AAMC_Raw_Data_for_FY22[[#This Row],[Median]])/25)*10) + AAMC_Raw_Data_for_FY22[[#This Row],[Median]]","v":599511.19999999995},{"$f":"(((AAMC_Raw_Data_for_FY22[[#This Row],[75th]]-AAMC_Raw_Data_for_FY22[[#This Row],[Median]])/25)*15) + AAMC_Raw_Data_for_FY22[[#This Row],[Median]]","v":615933.80000000005},{"$f":"(((AAMC_Raw_Data_for_FY22[[#This Row],[75th]]-AAMC_Raw_Data_for_FY22[[#This Row],[Median]])/25)*20) + AAMC_Raw_Data_for_FY22[[#This Row],[Median]]","v":632356.4},648779,{"$f":"(((AAMC_Raw_Data_for_FY22[[#This Row],[75th]]-AAMC_Raw_Data_for_FY22[[#This Row],[Median]])/25)*30) + AAMC_Raw_Data_for_FY22[[#This Row],[Median]]","v":665201.6},{"$f":"(((AAMC_Raw_Data_for_FY22[[#This Row],[75th]]-AAMC_Raw_Data_for_FY22[[#This Row],[Median]])/25)*35) + AAMC_Raw_Data_for_FY22[[#This Row],[Median]]","v":681624.2},{"$f":"(((AAMC_Raw_Data_for_FY22[[#This Row],[75th]]-AAMC_Raw_Data_for_FY22[[#This Row],[Median]])/25)*40) + AAMC_Raw_Data_for_FY22[[#This Row],[Median]]","v":698046.8}]
[{"$f":"AAMC_Raw_Data_for_FY22[[#This Row],[Source]]&AAMC_Raw_Data_for_FY22[[#This Row],[Type]]&AAMC_Raw_Data_for_FY22[[#This Row],[School Subset]]&AAMC_Raw_Data_for_FY22[[#This Row],[Rank]]&AAMC_Raw_Data_for_FY22[[#This Row],[Degree]]&AAMC_Raw_Data_for_FY22[[#This Row],[Department / Specialty]]&\"L\"","v":"AAMCAcademicAllChairMDDiagnostic Radiology: InterventionalL"},"Diagnostic Radiology: Interventional",1,"AAMC","Academic","All","Chair","MD","2021-2022",684833,{"$f":"(((AAMC_Raw_Data_for_FY22[[#This Row],[Median]]-AAMC_Raw_Data_for_FY22[[#This Row],[25th]])/25)*5) + AAMC_Raw_Data_for_FY22[[#This Row],[25th]]","v":696616.4},{"$f":"(((AAMC_Raw_Data_for_FY22[[#This Row],[Median]]-AAMC_Raw_Data_for_FY22[[#This Row],[25th]])/25)*10) + AAMC_Raw_Data_for_FY22[[#This Row],[25th]]","v":708399.8},{"$f":"(((AAMC_Raw_Data_for_FY22[[#This Row],[Median]]-AAMC_Raw_Data_for_FY22[[#This Row],[25th]])/25)*15) + AAMC_Raw_Data_for_FY22[[#This Row],[25th]]","v":720183.2},{"$f":"(((AAMC_Raw_Data_for_FY22[[#This Row],[Median]]-AAMC_Raw_Data_for_FY22[[#This Row],[25th]])/25)*20) + AAMC_Raw_Data_for_FY22[[#This Row],[25th]]","v":731966.6},743750,{"$f":"(((AAMC_Raw_Data_for_FY22[[#This Row],[75th]]-AAMC_Raw_Data_for_FY22[[#This Row],[Median]])/25)*5) + AAMC_Raw_Data_for_FY22[[#This Row],[Median]]","v":782894.8},{"$f":"(((AAMC_Raw_Data_for_FY22[[#This Row],[75th]]-AAMC_Raw_Data_for_FY22[[#This Row],[Median]])/25)*10) + AAMC_Raw_Data_for_FY22[[#This Row],[Median]]","v":822039.6},{"$f":"(((AAMC_Raw_Data_for_FY22[[#This Row],[75th]]-AAMC_Raw_Data_for_FY22[[#This Row],[Median]])/25)*15) + AAMC_Raw_Data_for_FY22[[#This Row],[Median]]","v":861184.4},{"$f":"(((AAMC_Raw_Data_for_FY22[[#This Row],[75th]]-AAMC_Raw_Data_for_FY22[[#This Row],[Median]])/25)*20) + AAMC_Raw_Data_for_FY22[[#This Row],[Median]]","v":900329.2},939474,{"$f":"(((AAMC_Raw_Data_for_FY22[[#This Row],[75th]]-AAMC_Raw_Data_for_FY22[[#This Row],[Median]])/25)*30) + AAMC_Raw_Data_for_FY22[[#This Row],[Median]]","v":978618.8},{"$f":"(((AAMC_Raw_Data_for_FY22[[#This Row],[75th]]-AAMC_Raw_Data_for_FY22[[#This Row],[Median]])/25)*35) + AAMC_Raw_Data_for_FY22[[#This Row],[Median]]","v":1017763.6},{"$f":"(((AAMC_Raw_Data_for_FY22[[#This Row],[75th]]-AAMC_Raw_Data_for_FY22[[#This Row],[Median]])/25)*40) + AAMC_Raw_Data_for_FY22[[#This Row],[Median]]","v":1056908.3999999999}]
[{"$f":"AAMC_Raw_Data_for_FY22[[#This Row],[Source]]&AAMC_Raw_Data_for_FY22[[#This Row],[Type]]&AAMC_Raw_Data_for_FY22[[#This Row],[School Subset]]&AAMC_Raw_Data_for_FY22[[#This Row],[Rank]]&AAMC_Raw_Data_for_FY22[[#This Row],[Degree]]&AAMC_Raw_Data_for_FY22[[#This Row],[Department / Specialty]]&\"L\"","v":"AAMCAcademicAllInstructorMDDiagnostic Radiology: Non-interventionalL"},"Diagnostic Radiology: Non-interventional",5,"AAMC","Academic","All","Instructor","MD","2021-2022",96494,{"$f":"(((AAMC_Raw_Data_for_FY22[[#This Row],[Median]]-AAMC_Raw_Data_for_FY22[[#This Row],[25th]])/25)*5) + AAMC_Raw_Data_for_FY22[[#This Row],[25th]]","v":143083.6},{"$f":"(((AAMC_Raw_Data_for_FY22[[#This Row],[Median]]-AAMC_Raw_Data_for_FY22[[#This Row],[25th]])/25)*10) + AAMC_Raw_Data_for_FY22[[#This Row],[25th]]","v":189673.2},{"$f":"(((AAMC_Raw_Data_for_FY22[[#This Row],[Median]]-AAMC_Raw_Data_for_FY22[[#This Row],[25th]])/25)*15) + AAMC_Raw_Data_for_FY22[[#This Row],[25th]]","v":236262.8},{"$f":"(((AAMC_Raw_Data_for_FY22[[#This Row],[Median]]-AAMC_Raw_Data_for_FY22[[#This Row],[25th]])/25)*20) + AAMC_Raw_Data_for_FY22[[#This Row],[25th]]","v":282852.40000000002},329442,{"$f":"(((AAMC_Raw_Data_for_FY22[[#This Row],[75th]]-AAMC_Raw_Data_for_FY22[[#This Row],[Median]])/25)*5) + AAMC_Raw_Data_for_FY22[[#This Row],[Median]]","v":354899.20000000001},{"$f":"(((AAMC_Raw_Data_for_FY22[[#This Row],[75th]]-AAMC_Raw_Data_for_FY22[[#This Row],[Median]])/25)*10) + AAMC_Raw_Data_for_FY22[[#This Row],[Median]]","v":380356.4},{"$f":"(((AAMC_Raw_Data_for_FY22[[#This Row],[75th]]-AAMC_Raw_Data_for_FY22[[#This Row],[Median]])/25)*15) + AAMC_Raw_Data_for_FY22[[#This Row],[Median]]","v":405813.6},{"$f":"(((AAMC_Raw_Data_for_FY22[[#This Row],[75th]]-AAMC_Raw_Data_for_FY22[[#This Row],[Median]])/25)*20) + AAMC_Raw_Data_for_FY22[[#This Row],[Median]]","v":431270.8},456728,{"$f":"(((AAMC_Raw_Data_for_FY22[[#This Row],[75th]]-AAMC_Raw_Data_for_FY22[[#This Row],[Median]])/25)*30) + AAMC_Raw_Data_for_FY22[[#This Row],[Median]]","v":482185.19999999995},{"$f":"(((AAMC_Raw_Data_for_FY22[[#This Row],[75th]]-AAMC_Raw_Data_for_FY22[[#This Row],[Median]])/25)*35) + AAMC_Raw_Data_for_FY22[[#This Row],[Median]]","v":507642.4},{"$f":"(((AAMC_Raw_Data_for_FY22[[#This Row],[75th]]-AAMC_Raw_Data_for_FY22[[#This Row],[Median]])/25)*40) + AAMC_Raw_Data_for_FY22[[#This Row],[Median]]","v":533099.6}]
[{"$f":"AAMC_Raw_Data_for_FY22[[#This Row],[Source]]&AAMC_Raw_Data_for_FY22[[#This Row],[Type]]&AAMC_Raw_Data_for_FY22[[#This Row],[School Subset]]&AAMC_Raw_Data_for_FY22[[#This Row],[Rank]]&AAMC_Raw_Data_for_FY22[[#This Row],[Degree]]&AAMC_Raw_Data_for_FY22[[#This Row],[Department / Specialty]]&\"L\"","v":"AAMCAcademicAllAssistantMDDiagnostic Radiology: Non-interventionalL"},"Diagnostic Radiology: Non-interventional",4,"AAMC","Academic","All","Assistant","MD","2021-2022",374631,{"$f":"(((AAMC_Raw_Data_for_FY22[[#This Row],[Median]]-AAMC_Raw_Data_for_FY22[[#This Row],[25th]])/25)*5) + AAMC_Raw_Data_for_FY22[[#This Row],[25th]]","v":382677},{"$f":"(((AAMC_Raw_Data_for_FY22[[#This Row],[Median]]-AAMC_Raw_Data_for_FY22[[#This Row],[25th]])/25)*10) + AAMC_Raw_Data_for_FY22[[#This Row],[25th]]","v":390723},{"$f":"(((AAMC_Raw_Data_for_FY22[[#This Row],[Median]]-AAMC_Raw_Data_for_FY22[[#This Row],[25th]])/25)*15) + AAMC_Raw_Data_for_FY22[[#This Row],[25th]]","v":398769},{"$f":"(((AAMC_Raw_Data_for_FY22[[#This Row],[Median]]-AAMC_Raw_Data_for_FY22[[#This Row],[25th]])/25)*20) + AAMC_Raw_Data_for_FY22[[#This Row],[25th]]","v":406815},414861,{"$f":"(((AAMC_Raw_Data_for_FY22[[#This Row],[75th]]-AAMC_Raw_Data_for_FY22[[#This Row],[Median]])/25)*5) + AAMC_Raw_Data_for_FY22[[#This Row],[Median]]","v":426818.6},{"$f":"(((AAMC_Raw_Data_for_FY22[[#This Row],[75th]]-AAMC_Raw_Data_for_FY22[[#This Row],[Median]])/25)*10) + AAMC_Raw_Data_for_FY22[[#This Row],[Median]]","v":438776.2},{"$f":"(((AAMC_Raw_Data_for_FY22[[#This Row],[75th]]-AAMC_Raw_Data_for_FY22[[#This Row],[Median]])/25)*15) + AAMC_Raw_Data_for_FY22[[#This Row],[Median]]","v":450733.8},{"$f":"(((AAMC_Raw_Data_for_FY22[[#This Row],[75th]]-AAMC_Raw_Data_for_FY22[[#This Row],[Median]])/25)*20) + AAMC_Raw_Data_for_FY22[[#This Row],[Median]]","v":462691.4},474649,{"$f":"(((AAMC_Raw_Data_for_FY22[[#This Row],[75th]]-AAMC_Raw_Data_for_FY22[[#This Row],[Median]])/25)*30) + AAMC_Raw_Data_for_FY22[[#This Row],[Median]]","v":486606.6},{"$f":"(((AAMC_Raw_Data_for_FY22[[#This Row],[75th]]-AAMC_Raw_Data_for_FY22[[#This Row],[Median]])/25)*35) + AAMC_Raw_Data_for_FY22[[#This Row],[Median]]","v":498564.2},{"$f":"(((AAMC_Raw_Data_for_FY22[[#This Row],[75th]]-AAMC_Raw_Data_for_FY22[[#This Row],[Median]])/25)*40) + AAMC_Raw_Data_for_FY22[[#This Row],[Median]]","v":510521.8}]
[{"$f":"AAMC_Raw_Data_for_FY22[[#This Row],[Source]]&AAMC_Raw_Data_for_FY22[[#This Row],[Type]]&AAMC_Raw_Data_for_FY22[[#This Row],[School Subset]]&AAMC_Raw_Data_for_FY22[[#This Row],[Rank]]&AAMC_Raw_Data_for_FY22[[#This Row],[Degree]]&AAMC_Raw_Data_for_FY22[[#This Row],[Department / Specialty]]&\"L\"","v":"AAMCAcademicAllAssociateMDDiagnostic Radiology: Non-interventionalL"},"Diagnostic Radiology: Non-interventional",3,"AAMC","Academic","All","Associate","MD","2021-2022",413592,{"$f":"(((AAMC_Raw_Data_for_FY22[[#This Row],[Median]]-AAMC_Raw_Data_for_FY22[[#This Row],[25th]])/25)*5) + AAMC_Raw_Data_for_FY22[[#This Row],[25th]]","v":420873.6},{"$f":"(((AAMC_Raw_Data_for_FY22[[#This Row],[Median]]-AAMC_Raw_Data_for_FY22[[#This Row],[25th]])/25)*10) + AAMC_Raw_Data_for_FY22[[#This Row],[25th]]","v":428155.2},{"$f":"(((AAMC_Raw_Data_for_FY22[[#This Row],[Median]]-AAMC_Raw_Data_for_FY22[[#This Row],[25th]])/25)*15) + AAMC_Raw_Data_for_FY22[[#This Row],[25th]]","v":435436.79999999999},{"$f":"(((AAMC_Raw_Data_for_FY22[[#This Row],[Median]]-AAMC_Raw_Data_for_FY22[[#This Row],[25th]])/25)*20) + AAMC_Raw_Data_for_FY22[[#This Row],[25th]]","v":442718.4},450000,{"$f":"(((AAMC_Raw_Data_for_FY22[[#This Row],[75th]]-AAMC_Raw_Data_for_FY22[[#This Row],[Median]])/25)*5) + AAMC_Raw_Data_for_FY22[[#This Row],[Median]]","v":462015.2},{"$f":"(((AAMC_Raw_Data_for_FY22[[#This Row],[75th]]-AAMC_Raw_Data_for_FY22[[#This Row],[Median]])/25)*10) + AAMC_Raw_Data_for_FY22[[#This Row],[Median]]","v":474030.4},{"$f":"(((AAMC_Raw_Data_for_FY22[[#This Row],[75th]]-AAMC_Raw_Data_for_FY22[[#This Row],[Median]])/25)*15) + AAMC_Raw_Data_for_FY22[[#This Row],[Median]]","v":486045.6},{"$f":"(((AAMC_Raw_Data_for_FY22[[#This Row],[75th]]-AAMC_Raw_Data_for_FY22[[#This Row],[Median]])/25)*20) + AAMC_Raw_Data_for_FY22[[#This Row],[Median]]","v":498060.79999999999},510076,{"$f":"(((AAMC_Raw_Data_for_FY22[[#This Row],[75th]]-AAMC_Raw_Data_for_FY22[[#This Row],[Median]])/25)*30) + AAMC_Raw_Data_for_FY22[[#This Row],[Median]]","v":522091.2},{"$f":"(((AAMC_Raw_Data_for_FY22[[#This Row],[75th]]-AAMC_Raw_Data_for_FY22[[#This Row],[Median]])/25)*35) + AAMC_Raw_Data_for_FY22[[#This Row],[Median]]","v":534106.4},{"$f":"(((AAMC_Raw_Data_for_FY22[[#This Row],[75th]]-AAMC_Raw_Data_for_FY22[[#This Row],[Median]])/25)*40) + AAMC_Raw_Data_for_FY22[[#This Row],[Median]]","v":546121.6}]
[{"$f":"AAMC_Raw_Data_for_FY22[[#This Row],[Source]]&AAMC_Raw_Data_for_FY22[[#This Row],[Type]]&AAMC_Raw_Data_for_FY22[[#This Row],[School Subset]]&AAMC_Raw_Data_for_FY22[[#This Row],[Rank]]&AAMC_Raw_Data_for_FY22[[#This Row],[Degree]]&AAMC_Raw_Data_for_FY22[[#This Row],[Department / Specialty]]&\"L\"","v":"AAMCAcademicAllProfessorMDDiagnostic Radiology: Non-interventionalL"},"Diagnostic Radiology: Non-interventional",2,"AAMC","Academic","All","Professor","MD","2021-2022",427549,{"$f":"(((AAMC_Raw_Data_for_FY22[[#This Row],[Median]]-AAMC_Raw_Data_for_FY22[[#This Row],[25th]])/25)*5) + AAMC_Raw_Data_for_FY22[[#This Row],[25th]]","v":437401.2},{"$f":"(((AAMC_Raw_Data_for_FY22[[#This Row],[Median]]-AAMC_Raw_Data_for_FY22[[#This Row],[25th]])/25)*10) + AAMC_Raw_Data_for_FY22[[#This Row],[25th]]","v":447253.4},{"$f":"(((AAMC_Raw_Data_for_FY22[[#This Row],[Median]]-AAMC_Raw_Data_for_FY22[[#This Row],[25th]])/25)*15) + AAMC_Raw_Data_for_FY22[[#This Row],[25th]]","v":457105.6},{"$f":"(((AAMC_Raw_Data_for_FY22[[#This Row],[Median]]-AAMC_Raw_Data_for_FY22[[#This Row],[25th]])/25)*20) + AAMC_Raw_Data_for_FY22[[#This Row],[25th]]","v":466957.8},476810,{"$f":"(((AAMC_Raw_Data_for_FY22[[#This Row],[75th]]-AAMC_Raw_Data_for_FY22[[#This Row],[Median]])/25)*5) + AAMC_Raw_Data_for_FY22[[#This Row],[Median]]","v":489625.8},{"$f":"(((AAMC_Raw_Data_for_FY22[[#This Row],[75th]]-AAMC_Raw_Data_for_FY22[[#This Row],[Median]])/25)*10) + AAMC_Raw_Data_for_FY22[[#This Row],[Median]]","v":502441.6},{"$f":"(((AAMC_Raw_Data_for_FY22[[#This Row],[75th]]-AAMC_Raw_Data_for_FY22[[#This Row],[Median]])/25)*15) + AAMC_Raw_Data_for_FY22[[#This Row],[Median]]","v":515257.4},{"$f":"(((AAMC_Raw_Data_for_FY22[[#This Row],[75th]]-AAMC_Raw_Data_for_FY22[[#This Row],[Median]])/25)*20) + AAMC_Raw_Data_for_FY22[[#This Row],[Median]]","v":528073.19999999995},540889,{"$f":"(((AAMC_Raw_Data_for_FY22[[#This Row],[75th]]-AAMC_Raw_Data_for_FY22[[#This Row],[Median]])/25)*30) + AAMC_Raw_Data_for_FY22[[#This Row],[Median]]","v":553704.80000000005},{"$f":"(((AAMC_Raw_Data_for_FY22[[#This Row],[75th]]-AAMC_Raw_Data_for_FY22[[#This Row],[Median]])/25)*35) + AAMC_Raw_Data_for_FY22[[#This Row],[Median]]","v":566520.6},{"$f":"(((AAMC_Raw_Data_for_FY22[[#This Row],[75th]]-AAMC_Raw_Data_for_FY22[[#This Row],[Median]])/25)*40) + AAMC_Raw_Data_for_FY22[[#This Row],[Median]]","v":579336.4}]
[{"$f":"AAMC_Raw_Data_for_FY22[[#This Row],[Source]]&AAMC_Raw_Data_for_FY22[[#This Row],[Type]]&AAMC_Raw_Data_for_FY22[[#This Row],[School Subset]]&AAMC_Raw_Data_for_FY22[[#This Row],[Rank]]&AAMC_Raw_Data_for_FY22[[#This Row],[Degree]]&AAMC_Raw_Data_for_FY22[[#This Row],[Department / Specialty]]&\"L\"","v":"AAMCAcademicAllChiefMDDiagnostic Radiology: Non-interventionalL"},"Diagnostic Radiology: Non-interventional",6,"AAMC","Academic","All","Chief","MD","2021-2022",444529,{"$f":"(((AAMC_Raw_Data_for_FY22[[#This Row],[Median]]-AAMC_Raw_Data_for_FY22[[#This Row],[25th]])/25)*5) + AAMC_Raw_Data_for_FY22[[#This Row],[25th]]","v":452458.8},{"$f":"(((AAMC_Raw_Data_for_FY22[[#This Row],[Median]]-AAMC_Raw_Data_for_FY22[[#This Row],[25th]])/25)*10) + AAMC_Raw_Data_for_FY22[[#This Row],[25th]]","v":460388.6},{"$f":"(((AAMC_Raw_Data_for_FY22[[#This Row],[Median]]-AAMC_Raw_Data_for_FY22[[#This Row],[25th]])/25)*15) + AAMC_Raw_Data_for_FY22[[#This Row],[25th]]","v":468318.4},{"$f":"(((AAMC_Raw_Data_for_FY22[[#This Row],[Median]]-AAMC_Raw_Data_for_FY22[[#This Row],[25th]])/25)*20) + AAMC_Raw_Data_for_FY22[[#This Row],[25th]]","v":476248.2},484178,{"$f":"(((AAMC_Raw_Data_for_FY22[[#This Row],[75th]]-AAMC_Raw_Data_for_FY22[[#This Row],[Median]])/25)*5) + AAMC_Raw_Data_for_FY22[[#This Row],[Median]]","v":494199.6},{"$f":"(((AAMC_Raw_Data_for_FY22[[#This Row],[75th]]-AAMC_Raw_Data_for_FY22[[#This Row],[Median]])/25)*10) + AAMC_Raw_Data_for_FY22[[#This Row],[Median]]","v":504221.2},{"$f":"(((AAMC_Raw_Data_for_FY22[[#This Row],[75th]]-AAMC_Raw_Data_for_FY22[[#This Row],[Median]])/25)*15) + AAMC_Raw_Data_for_FY22[[#This Row],[Median]]","v":514242.8},{"$f":"(((AAMC_Raw_Data_for_FY22[[#This Row],[75th]]-AAMC_Raw_Data_for_FY22[[#This Row],[Median]])/25)*20) + AAMC_Raw_Data_for_FY22[[#This Row],[Median]]","v":524264.4},534286,{"$f":"(((AAMC_Raw_Data_for_FY22[[#This Row],[75th]]-AAMC_Raw_Data_for_FY22[[#This Row],[Median]])/25)*30) + AAMC_Raw_Data_for_FY22[[#This Row],[Median]]","v":544307.6},{"$f":"(((AAMC_Raw_Data_for_FY22[[#This Row],[75th]]-AAMC_Raw_Data_for_FY22[[#This Row],[Median]])/25)*35) + AAMC_Raw_Data_for_FY22[[#This Row],[Median]]","v":554329.19999999995},{"$f":"(((AAMC_Raw_Data_for_FY22[[#This Row],[75th]]-AAMC_Raw_Data_for_FY22[[#This Row],[Median]])/25)*40) + AAMC_Raw_Data_for_FY22[[#This Row],[Median]]","v":564350.80000000005}]
[{"$f":"AAMC_Raw_Data_for_FY22[[#This Row],[Source]]&AAMC_Raw_Data_for_FY22[[#This Row],[Type]]&AAMC_Raw_Data_for_FY22[[#This Row],[School Subset]]&AAMC_Raw_Data_for_FY22[[#This Row],[Rank]]&AAMC_Raw_Data_for_FY22[[#This Row],[Degree]]&AAMC_Raw_Data_for_FY22[[#This Row],[Department / Specialty]]&\"L\"","v":"AAMCAcademicAllChairMDDiagnostic Radiology: Non-interventionalL"},"Diagnostic Radiology: Non-interventional",1,"AAMC","Academic","All","Chair","MD","2021-2022",700000,{"$f":"(((AAMC_Raw_Data_for_FY22[[#This Row],[Median]]-AAMC_Raw_Data_for_FY22[[#This Row],[25th]])/25)*5) + AAMC_Raw_Data_for_FY22[[#This Row],[25th]]","v":717292},{"$f":"(((AAMC_Raw_Data_for_FY22[[#This Row],[Median]]-AAMC_Raw_Data_for_FY22[[#This Row],[25th]])/25)*10) + AAMC_Raw_Data_for_FY22[[#This Row],[25th]]","v":734584},{"$f":"(((AAMC_Raw_Data_for_FY22[[#This Row],[Median]]-AAMC_Raw_Data_for_FY22[[#This Row],[25th]])/25)*15) + AAMC_Raw_Data_for_FY22[[#This Row],[25th]]","v":751876},{"$f":"(((AAMC_Raw_Data_for_FY22[[#This Row],[Median]]-AAMC_Raw_Data_for_FY22[[#This Row],[25th]])/25)*20) + AAMC_Raw_Data_for_FY22[[#This Row],[25th]]","v":769168},786460,{"$f":"(((AAMC_Raw_Data_for_FY22[[#This Row],[75th]]-AAMC_Raw_Data_for_FY22[[#This Row],[Median]])/25)*5) + AAMC_Raw_Data_for_FY22[[#This Row],[Median]]","v":796724.6},{"$f":"(((AAMC_Raw_Data_for_FY22[[#This Row],[75th]]-AAMC_Raw_Data_for_FY22[[#This Row],[Median]])/25)*10) + AAMC_Raw_Data_for_FY22[[#This Row],[Median]]","v":806989.2},{"$f":"(((AAMC_Raw_Data_for_FY22[[#This Row],[75th]]-AAMC_Raw_Data_for_FY22[[#This Row],[Median]])/25)*15) + AAMC_Raw_Data_for_FY22[[#This Row],[Median]]","v":817253.8},{"$f":"(((AAMC_Raw_Data_for_FY22[[#This Row],[75th]]-AAMC_Raw_Data_for_FY22[[#This Row],[Median]])/25)*20) + AAMC_Raw_Data_for_FY22[[#This Row],[Median]]","v":827518.4},837783,{"$f":"(((AAMC_Raw_Data_for_FY22[[#This Row],[75th]]-AAMC_Raw_Data_for_FY22[[#This Row],[Median]])/25)*30) + AAMC_Raw_Data_for_FY22[[#This Row],[Median]]","v":848047.6},{"$f":"(((AAMC_Raw_Data_for_FY22[[#This Row],[75th]]-AAMC_Raw_Data_for_FY22[[#This Row],[Median]])/25)*35) + AAMC_Raw_Data_for_FY22[[#This Row],[Median]]","v":858312.2},{"$f":"(((AAMC_Raw_Data_for_FY22[[#This Row],[75th]]-AAMC_Raw_Data_for_FY22[[#This Row],[Median]])/25)*40) + AAMC_Raw_Data_for_FY22[[#This Row],[Median]]","v":868576.8}]
[{"$f":"AAMC_Raw_Data_for_FY22[[#This Row],[Source]]&AAMC_Raw_Data_for_FY22[[#This Row],[Type]]&AAMC_Raw_Data_for_FY22[[#This Row],[School Subset]]&AAMC_Raw_Data_for_FY22[[#This Row],[Rank]]&AAMC_Raw_Data_for_FY22[[#This Row],[Degree]]&AAMC_Raw_Data_for_FY22[[#This Row],[Department / Specialty]]&\"L\"","v":"AAMCAcademicAllInstructorMDNuclear MedicineL"},"Nuclear Medicine",5,"AAMC","Academic","All","Instructor","MD","2021-2022",278972,{"$f":"(((AAMC_Raw_Data_for_FY22[[#This Row],[Median]]-AAMC_Raw_Data_for_FY22[[#This Row],[25th]])/25)*5) + AAMC_Raw_Data_for_FY22[[#This Row],[25th]]","v":282027.59999999998},{"$f":"(((AAMC_Raw_Data_for_FY22[[#This Row],[Median]]-AAMC_Raw_Data_for_FY22[[#This Row],[25th]])/25)*10) + AAMC_Raw_Data_for_FY22[[#This Row],[25th]]","v":285083.2},{"$f":"(((AAMC_Raw_Data_for_FY22[[#This Row],[Median]]-AAMC_Raw_Data_for_FY22[[#This Row],[25th]])/25)*15) + AAMC_Raw_Data_for_FY22[[#This Row],[25th]]","v":288138.8},{"$f":"(((AAMC_Raw_Data_for_FY22[[#This Row],[Median]]-AAMC_Raw_Data_for_FY22[[#This Row],[25th]])/25)*20) + AAMC_Raw_Data_for_FY22[[#This Row],[25th]]","v":291194.40000000002},294250,{"$f":"(((AAMC_Raw_Data_for_FY22[[#This Row],[75th]]-AAMC_Raw_Data_for_FY22[[#This Row],[Median]])/25)*5) + AAMC_Raw_Data_for_FY22[[#This Row],[Median]]","v":298073.8},{"$f":"(((AAMC_Raw_Data_for_FY22[[#This Row],[75th]]-AAMC_Raw_Data_for_FY22[[#This Row],[Median]])/25)*10) + AAMC_Raw_Data_for_FY22[[#This Row],[Median]]","v":301897.59999999998},{"$f":"(((AAMC_Raw_Data_for_FY22[[#This Row],[75th]]-AAMC_Raw_Data_for_FY22[[#This Row],[Median]])/25)*15) + AAMC_Raw_Data_for_FY22[[#This Row],[Median]]","v":305721.40000000002},{"$f":"(((AAMC_Raw_Data_for_FY22[[#This Row],[75th]]-AAMC_Raw_Data_for_FY22[[#This Row],[Median]])/25)*20) + AAMC_Raw_Data_for_FY22[[#This Row],[Median]]","v":309545.2},313369,{"$f":"(((AAMC_Raw_Data_for_FY22[[#This Row],[75th]]-AAMC_Raw_Data_for_FY22[[#This Row],[Median]])/25)*30) + AAMC_Raw_Data_for_FY22[[#This Row],[Median]]","v":317192.8},{"$f":"(((AAMC_Raw_Data_for_FY22[[#This Row],[75th]]-AAMC_Raw_Data_for_FY22[[#This Row],[Median]])/25)*35) + AAMC_Raw_Data_for_FY22[[#This Row],[Median]]","v":321016.59999999998},{"$f":"(((AAMC_Raw_Data_for_FY22[[#This Row],[75th]]-AAMC_Raw_Data_for_FY22[[#This Row],[Median]])/25)*40) + AAMC_Raw_Data_for_FY22[[#This Row],[Median]]","v":324840.40000000002}]
[{"$f":"AAMC_Raw_Data_for_FY22[[#This Row],[Source]]&AAMC_Raw_Data_for_FY22[[#This Row],[Type]]&AAMC_Raw_Data_for_FY22[[#This Row],[School Subset]]&AAMC_Raw_Data_for_FY22[[#This Row],[Rank]]&AAMC_Raw_Data_for_FY22[[#This Row],[Degree]]&AAMC_Raw_Data_for_FY22[[#This Row],[Department / Specialty]]&\"L\"","v":"AAMCAcademicAllAssistantMDNuclear MedicineL"},"Nuclear Medicine",4,"AAMC","Academic","All","Assistant","MD","2021-2022",338337,{"$f":"(((AAMC_Raw_Data_for_FY22[[#This Row],[Median]]-AAMC_Raw_Data_for_FY22[[#This Row],[25th]])/25)*5) + AAMC_Raw_Data_for_FY22[[#This Row],[25th]]","v":346239.6},{"$f":"(((AAMC_Raw_Data_for_FY22[[#This Row],[Median]]-AAMC_Raw_Data_for_FY22[[#This Row],[25th]])/25)*10) + AAMC_Raw_Data_for_FY22[[#This Row],[25th]]","v":354142.2},{"$f":"(((AAMC_Raw_Data_for_FY22[[#This Row],[Median]]-AAMC_Raw_Data_for_FY22[[#This Row],[25th]])/25)*15) + AAMC_Raw_Data_for_FY22[[#This Row],[25th]]","v":362044.8},{"$f":"(((AAMC_Raw_Data_for_FY22[[#This Row],[Median]]-AAMC_Raw_Data_for_FY22[[#This Row],[25th]])/25)*20) + AAMC_Raw_Data_for_FY22[[#This Row],[25th]]","v":369947.4},377850,{"$f":"(((AAMC_Raw_Data_for_FY22[[#This Row],[75th]]-AAMC_Raw_Data_for_FY22[[#This Row],[Median]])/25)*5) + AAMC_Raw_Data_for_FY22[[#This Row],[Median]]","v":386655},{"$f":"(((AAMC_Raw_Data_for_FY22[[#This Row],[75th]]-AAMC_Raw_Data_for_FY22[[#This Row],[Median]])/25)*10) + AAMC_Raw_Data_for_FY22[[#This Row],[Median]]","v":395460},{"$f":"(((AAMC_Raw_Data_for_FY22[[#This Row],[75th]]-AAMC_Raw_Data_for_FY22[[#This Row],[Median]])/25)*15) + AAMC_Raw_Data_for_FY22[[#This Row],[Median]]","v":404265},{"$f":"(((AAMC_Raw_Data_for_FY22[[#This Row],[75th]]-AAMC_Raw_Data_for_FY22[[#This Row],[Median]])/25)*20) + AAMC_Raw_Data_for_FY22[[#This Row],[Median]]","v":413070},421875,{"$f":"(((AAMC_Raw_Data_for_FY22[[#This Row],[75th]]-AAMC_Raw_Data_for_FY22[[#This Row],[Median]])/25)*30) + AAMC_Raw_Data_for_FY22[[#This Row],[Median]]","v":430680},{"$f":"(((AAMC_Raw_Data_for_FY22[[#This Row],[75th]]-AAMC_Raw_Data_for_FY22[[#This Row],[Median]])/25)*35) + AAMC_Raw_Data_for_FY22[[#This Row],[Median]]","v":439485},{"$f":"(((AAMC_Raw_Data_for_FY22[[#This Row],[75th]]-AAMC_Raw_Data_for_FY22[[#This Row],[Median]])/25)*40) + AAMC_Raw_Data_for_FY22[[#This Row],[Median]]","v":448290}]
[{"$f":"AAMC_Raw_Data_for_FY22[[#This Row],[Source]]&AAMC_Raw_Data_for_FY22[[#This Row],[Type]]&AAMC_Raw_Data_for_FY22[[#This Row],[School Subset]]&AAMC_Raw_Data_for_FY22[[#This Row],[Rank]]&AAMC_Raw_Data_for_FY22[[#This Row],[Degree]]&AAMC_Raw_Data_for_FY22[[#This Row],[Department / Specialty]]&\"L\"","v":"AAMCAcademicAllAssociateMDNuclear MedicineL"},"Nuclear Medicine",3,"AAMC","Academic","All","Associate","MD","2021-2022",383415,{"$f":"(((AAMC_Raw_Data_for_FY22[[#This Row],[Median]]-AAMC_Raw_Data_for_FY22[[#This Row],[25th]])/25)*5) + AAMC_Raw_Data_for_FY22[[#This Row],[25th]]","v":388889.4},{"$f":"(((AAMC_Raw_Data_for_FY22[[#This Row],[Median]]-AAMC_Raw_Data_for_FY22[[#This Row],[25th]])/25)*10) + AAMC_Raw_Data_for_FY22[[#This Row],[25th]]","v":394363.8},{"$f":"(((AAMC_Raw_Data_for_FY22[[#This Row],[Median]]-AAMC_Raw_Data_for_FY22[[#This Row],[25th]])/25)*15) + AAMC_Raw_Data_for_FY22[[#This Row],[25th]]","v":399838.2},{"$f":"(((AAMC_Raw_Data_for_FY22[[#This Row],[Median]]-AAMC_Raw_Data_for_FY22[[#This Row],[25th]])/25)*20) + AAMC_Raw_Data_for_FY22[[#This Row],[25th]]","v":405312.6},410787,{"$f":"(((AAMC_Raw_Data_for_FY22[[#This Row],[75th]]-AAMC_Raw_Data_for_FY22[[#This Row],[Median]])/25)*5) + AAMC_Raw_Data_for_FY22[[#This Row],[Median]]","v":422071},{"$f":"(((AAMC_Raw_Data_for_FY22[[#This Row],[75th]]-AAMC_Raw_Data_for_FY22[[#This Row],[Median]])/25)*10) + AAMC_Raw_Data_for_FY22[[#This Row],[Median]]","v":433355},{"$f":"(((AAMC_Raw_Data_for_FY22[[#This Row],[75th]]-AAMC_Raw_Data_for_FY22[[#This Row],[Median]])/25)*15) + AAMC_Raw_Data_for_FY22[[#This Row],[Median]]","v":444639},{"$f":"(((AAMC_Raw_Data_for_FY22[[#This Row],[75th]]-AAMC_Raw_Data_for_FY22[[#This Row],[Median]])/25)*20) + AAMC_Raw_Data_for_FY22[[#This Row],[Median]]","v":455923},467207,{"$f":"(((AAMC_Raw_Data_for_FY22[[#This Row],[75th]]-AAMC_Raw_Data_for_FY22[[#This Row],[Median]])/25)*30) + AAMC_Raw_Data_for_FY22[[#This Row],[Median]]","v":478491},{"$f":"(((AAMC_Raw_Data_for_FY22[[#This Row],[75th]]-AAMC_Raw_Data_for_FY22[[#This Row],[Median]])/25)*35) + AAMC_Raw_Data_for_FY22[[#This Row],[Median]]","v":489775},{"$f":"(((AAMC_Raw_Data_for_FY22[[#This Row],[75th]]-AAMC_Raw_Data_for_FY22[[#This Row],[Median]])/25)*40) + AAMC_Raw_Data_for_FY22[[#This Row],[Median]]","v":501059}]
[{"$f":"AAMC_Raw_Data_for_FY22[[#This Row],[Source]]&AAMC_Raw_Data_for_FY22[[#This Row],[Type]]&AAMC_Raw_Data_for_FY22[[#This Row],[School Subset]]&AAMC_Raw_Data_for_FY22[[#This Row],[Rank]]&AAMC_Raw_Data_for_FY22[[#This Row],[Degree]]&AAMC_Raw_Data_for_FY22[[#This Row],[Department / Specialty]]&\"L\"","v":"AAMCAcademicAllProfessorMDNuclear MedicineL"},"Nuclear Medicine",2,"AAMC","Academic","All","Professor","MD","2021-2022",345492,{"$f":"(((AAMC_Raw_Data_for_FY22[[#This Row],[Median]]-AAMC_Raw_Data_for_FY22[[#This Row],[25th]])/25)*5) + AAMC_Raw_Data_for_FY22[[#This Row],[25th]]","v":357199.6},{"$f":"(((AAMC_Raw_Data_for_FY22[[#This Row],[Median]]-AAMC_Raw_Data_for_FY22[[#This Row],[25th]])/25)*10) + AAMC_Raw_Data_for_FY22[[#This Row],[25th]]","v":368907.2},{"$f":"(((AAMC_Raw_Data_for_FY22[[#This Row],[Median]]-AAMC_Raw_Data_for_FY22[[#This Row],[25th]])/25)*15) + AAMC_Raw_Data_for_FY22[[#This Row],[25th]]","v":380614.8},{"$f":"(((AAMC_Raw_Data_for_FY22[[#This Row],[Median]]-AAMC_Raw_Data_for_FY22[[#This Row],[25th]])/25)*20) + AAMC_Raw_Data_for_FY22[[#This Row],[25th]]","v":392322.4},404030,{"$f":"(((AAMC_Raw_Data_for_FY22[[#This Row],[75th]]-AAMC_Raw_Data_for_FY22[[#This Row],[Median]])/25)*5) + AAMC_Raw_Data_for_FY22[[#This Row],[Median]]","v":419594.6},{"$f":"(((AAMC_Raw_Data_for_FY22[[#This Row],[75th]]-AAMC_Raw_Data_for_FY22[[#This Row],[Median]])/25)*10) + AAMC_Raw_Data_for_FY22[[#This Row],[Median]]","v":435159.2},{"$f":"(((AAMC_Raw_Data_for_FY22[[#This Row],[75th]]-AAMC_Raw_Data_for_FY22[[#This Row],[Median]])/25)*15) + AAMC_Raw_Data_for_FY22[[#This Row],[Median]]","v":450723.8},{"$f":"(((AAMC_Raw_Data_for_FY22[[#This Row],[75th]]-AAMC_Raw_Data_for_FY22[[#This Row],[Median]])/25)*20) + AAMC_Raw_Data_for_FY22[[#This Row],[Median]]","v":466288.4},481853,{"$f":"(((AAMC_Raw_Data_for_FY22[[#This Row],[75th]]-AAMC_Raw_Data_for_FY22[[#This Row],[Median]])/25)*30) + AAMC_Raw_Data_for_FY22[[#This Row],[Median]]","v":497417.6},{"$f":"(((AAMC_Raw_Data_for_FY22[[#This Row],[75th]]-AAMC_Raw_Data_for_FY22[[#This Row],[Median]])/25)*35) + AAMC_Raw_Data_for_FY22[[#This Row],[Median]]","v":512982.2},{"$f":"(((AAMC_Raw_Data_for_FY22[[#This Row],[75th]]-AAMC_Raw_Data_for_FY22[[#This Row],[Median]])/25)*40) + AAMC_Raw_Data_for_FY22[[#This Row],[Median]]","v":528546.80000000005}]
[{"$f":"AAMC_Raw_Data_for_FY22[[#This Row],[Source]]&AAMC_Raw_Data_for_FY22[[#This Row],[Type]]&AAMC_Raw_Data_for_FY22[[#This Row],[School Subset]]&AAMC_Raw_Data_for_FY22[[#This Row],[Rank]]&AAMC_Raw_Data_for_FY22[[#This Row],[Degree]]&AAMC_Raw_Data_for_FY22[[#This Row],[Department / Specialty]]&\"L\"","v":"AAMCAcademicAllChiefMDNuclear MedicineL"},"Nuclear Medicine",6,"AAMC","Academic","All","Chief","MD","2021-2022",433515,{"$f":"(((AAMC_Raw_Data_for_FY22[[#This Row],[Median]]-AAMC_Raw_Data_for_FY22[[#This Row],[25th]])/25)*5) + AAMC_Raw_Data_for_FY22[[#This Row],[25th]]","v":437886.4},{"$f":"(((AAMC_Raw_Data_for_FY22[[#This Row],[Median]]-AAMC_Raw_Data_for_FY22[[#This Row],[25th]])/25)*10) + AAMC_Raw_Data_for_FY22[[#This Row],[25th]]","v":442257.8},{"$f":"(((AAMC_Raw_Data_for_FY22[[#This Row],[Median]]-AAMC_Raw_Data_for_FY22[[#This Row],[25th]])/25)*15) + AAMC_Raw_Data_for_FY22[[#This Row],[25th]]","v":446629.2},{"$f":"(((AAMC_Raw_Data_for_FY22[[#This Row],[Median]]-AAMC_Raw_Data_for_FY22[[#This Row],[25th]])/25)*20) + AAMC_Raw_Data_for_FY22[[#This Row],[25th]]","v":451000.6},455372,{"$f":"(((AAMC_Raw_Data_for_FY22[[#This Row],[75th]]-AAMC_Raw_Data_for_FY22[[#This Row],[Median]])/25)*5) + AAMC_Raw_Data_for_FY22[[#This Row],[Median]]","v":472830.2},{"$f":"(((AAMC_Raw_Data_for_FY22[[#This Row],[75th]]-AAMC_Raw_Data_for_FY22[[#This Row],[Median]])/25)*10) + AAMC_Raw_Data_for_FY22[[#This Row],[Median]]","v":490288.4},{"$f":"(((AAMC_Raw_Data_for_FY22[[#This Row],[75th]]-AAMC_Raw_Data_for_FY22[[#This Row],[Median]])/25)*15) + AAMC_Raw_Data_for_FY22[[#This Row],[Median]]","v":507746.6},{"$f":"(((AAMC_Raw_Data_for_FY22[[#This Row],[75th]]-AAMC_Raw_Data_for_FY22[[#This Row],[Median]])/25)*20) + AAMC_Raw_Data_for_FY22[[#This Row],[Median]]","v":525204.80000000005},542663,{"$f":"(((AAMC_Raw_Data_for_FY22[[#This Row],[75th]]-AAMC_Raw_Data_for_FY22[[#This Row],[Median]])/25)*30) + AAMC_Raw_Data_for_FY22[[#This Row],[Median]]","v":560121.19999999995},{"$f":"(((AAMC_Raw_Data_for_FY22[[#This Row],[75th]]-AAMC_Raw_Data_for_FY22[[#This Row],[Median]])/25)*35) + AAMC_Raw_Data_for_FY22[[#This Row],[Median]]","v":577579.4},{"$f":"(((AAMC_Raw_Data_for_FY22[[#This Row],[75th]]-AAMC_Raw_Data_for_FY22[[#This Row],[Median]])/25)*40) + AAMC_Raw_Data_for_FY22[[#This Row],[Median]]","v":595037.6}]
[{"$f":"AAMC_Raw_Data_for_FY22[[#This Row],[Source]]&AAMC_Raw_Data_for_FY22[[#This Row],[Type]]&AAMC_Raw_Data_for_FY22[[#This Row],[School Subset]]&AAMC_Raw_Data_for_FY22[[#This Row],[Rank]]&AAMC_Raw_Data_for_FY22[[#This Row],[Degree]]&AAMC_Raw_Data_for_FY22[[#This Row],[Department / Specialty]]&\"L\"","v":"AAMCAcademicAllChairMDNuclear MedicineL"},"Nuclear Medicine",1,"AAMC","Academic","All","Chair","MD","2021-2022",null,{"$f":"(((AAMC_Raw_Data_for_FY22[[#This Row],[Median]]-AAMC_Raw_Data_for_FY22[[#This Row],[25th]])/25)*5) + AAMC_Raw_Data_for_FY22[[#This Row],[25th]]","v":0},{"$f":"(((AAMC_Raw_Data_for_FY22[[#This Row],[Median]]-AAMC_Raw_Data_for_FY22[[#This Row],[25th]])/25)*10) + AAMC_Raw_Data_for_FY22[[#This Row],[25th]]","v":0},{"$f":"(((AAMC_Raw_Data_for_FY22[[#This Row],[Median]]-AAMC_Raw_Data_for_FY22[[#This Row],[25th]])/25)*15) + AAMC_Raw_Data_for_FY22[[#This Row],[25th]]","v":0},{"$f":"(((AAMC_Raw_Data_for_FY22[[#This Row],[Median]]-AAMC_Raw_Data_for_FY22[[#This Row],[25th]])/25)*20) + AAMC_Raw_Data_for_FY22[[#This Row],[25th]]","v":0},null,{"$f":"(((AAMC_Raw_Data_for_FY22[[#This Row],[75th]]-AAMC_Raw_Data_for_FY22[[#This Row],[Median]])/25)*5) + AAMC_Raw_Data_for_FY22[[#This Row],[Median]]","v":0},{"$f":"(((AAMC_Raw_Data_for_FY22[[#This Row],[75th]]-AAMC_Raw_Data_for_FY22[[#This Row],[Median]])/25)*10) + AAMC_Raw_Data_for_FY22[[#This Row],[Median]]","v":0},{"$f":"(((AAMC_Raw_Data_for_FY22[[#This Row],[75th]]-AAMC_Raw_Data_for_FY22[[#This Row],[Median]])/25)*15) + AAMC_Raw_Data_for_FY22[[#This Row],[Median]]","v":0},{"$f":"(((AAMC_Raw_Data_for_FY22[[#This Row],[75th]]-AAMC_Raw_Data_for_FY22[[#This Row],[Median]])/25)*20) + AAMC_Raw_Data_for_FY22[[#This Row],[Median]]","v":0},null,{"$f":"(((AAMC_Raw_Data_for_FY22[[#This Row],[75th]]-AAMC_Raw_Data_for_FY22[[#This Row],[Median]])/25)*30) + AAMC_Raw_Data_for_FY22[[#This Row],[Median]]","v":0},{"$f":"(((AAMC_Raw_Data_for_FY22[[#This Row],[75th]]-AAMC_Raw_Data_for_FY22[[#This Row],[Median]])/25)*35) + AAMC_Raw_Data_for_FY22[[#This Row],[Median]]","v":0},{"$f":"(((AAMC_Raw_Data_for_FY22[[#This Row],[75th]]-AAMC_Raw_Data_for_FY22[[#This Row],[Median]])/25)*40) + AAMC_Raw_Data_for_FY22[[#This Row],[Median]]","v":0}]
[{"$f":"AAMC_Raw_Data_for_FY22[[#This Row],[Source]]&AAMC_Raw_Data_for_FY22[[#This Row],[Type]]&AAMC_Raw_Data_for_FY22[[#This Row],[School Subset]]&AAMC_Raw_Data_for_FY22[[#This Row],[Rank]]&AAMC_Raw_Data_for_FY22[[#This Row],[Degree]]&AAMC_Raw_Data_for_FY22[[#This Row],[Department / Specialty]]&\"L\"","v":"AAMCAcademicAllInstructorMDRadiation OncologyL"},"Radiation Oncology",5,"AAMC","Academic","All","Instructor","MD","2021-2022",280000,{"$f":"(((AAMC_Raw_Data_for_FY22[[#This Row],[Median]]-AAMC_Raw_Data_for_FY22[[#This Row],[25th]])/25)*5) + AAMC_Raw_Data_for_FY22[[#This Row],[25th]]","v":294800},{"$f":"(((AAMC_Raw_Data_for_FY22[[#This Row],[Median]]-AAMC_Raw_Data_for_FY22[[#This Row],[25th]])/25)*10) + AAMC_Raw_Data_for_FY22[[#This Row],[25th]]","v":309600},{"$f":"(((AAMC_Raw_Data_for_FY22[[#This Row],[Median]]-AAMC_Raw_Data_for_FY22[[#This Row],[25th]])/25)*15) + AAMC_Raw_Data_for_FY22[[#This Row],[25th]]","v":324400},{"$f":"(((AAMC_Raw_Data_for_FY22[[#This Row],[Median]]-AAMC_Raw_Data_for_FY22[[#This Row],[25th]])/25)*20) + AAMC_Raw_Data_for_FY22[[#This Row],[25th]]","v":339200},354000,{"$f":"(((AAMC_Raw_Data_for_FY22[[#This Row],[75th]]-AAMC_Raw_Data_for_FY22[[#This Row],[Median]])/25)*5) + AAMC_Raw_Data_for_FY22[[#This Row],[Median]]","v":371372.6},{"$f":"(((AAMC_Raw_Data_for_FY22[[#This Row],[75th]]-AAMC_Raw_Data_for_FY22[[#This Row],[Median]])/25)*10) + AAMC_Raw_Data_for_FY22[[#This Row],[Median]]","v":388745.2},{"$f":"(((AAMC_Raw_Data_for_FY22[[#This Row],[75th]]-AAMC_Raw_Data_for_FY22[[#This Row],[Median]])/25)*15) + AAMC_Raw_Data_for_FY22[[#This Row],[Median]]","v":406117.8},{"$f":"(((AAMC_Raw_Data_for_FY22[[#This Row],[75th]]-AAMC_Raw_Data_for_FY22[[#This Row],[Median]])/25)*20) + AAMC_Raw_Data_for_FY22[[#This Row],[Median]]","v":423490.4},440863,{"$f":"(((AAMC_Raw_Data_for_FY22[[#This Row],[75th]]-AAMC_Raw_Data_for_FY22[[#This Row],[Median]])/25)*30) + AAMC_Raw_Data_for_FY22[[#This Row],[Median]]","v":458235.6},{"$f":"(((AAMC_Raw_Data_for_FY22[[#This Row],[75th]]-AAMC_Raw_Data_for_FY22[[#This Row],[Median]])/25)*35) + AAMC_Raw_Data_for_FY22[[#This Row],[Median]]","v":475608.2},{"$f":"(((AAMC_Raw_Data_for_FY22[[#This Row],[75th]]-AAMC_Raw_Data_for_FY22[[#This Row],[Median]])/25)*40) + AAMC_Raw_Data_for_FY22[[#This Row],[Median]]","v":492980.8}]
[{"$f":"AAMC_Raw_Data_for_FY22[[#This Row],[Source]]&AAMC_Raw_Data_for_FY22[[#This Row],[Type]]&AAMC_Raw_Data_for_FY22[[#This Row],[School Subset]]&AAMC_Raw_Data_for_FY22[[#This Row],[Rank]]&AAMC_Raw_Data_for_FY22[[#This Row],[Degree]]&AAMC_Raw_Data_for_FY22[[#This Row],[Department / Specialty]]&\"L\"","v":"AAMCAcademicAllAssistantMDRadiation OncologyL"},"Radiation Oncology",4,"AAMC","Academic","All","Assistant","MD","2021-2022",357709,{"$f":"(((AAMC_Raw_Data_for_FY22[[#This Row],[Median]]-AAMC_Raw_Data_for_FY22[[#This Row],[25th]])/25)*5) + AAMC_Raw_Data_for_FY22[[#This Row],[25th]]","v":366466.8},{"$f":"(((AAMC_Raw_Data_for_FY22[[#This Row],[Median]]-AAMC_Raw_Data_for_FY22[[#This Row],[25th]])/25)*10) + AAMC_Raw_Data_for_FY22[[#This Row],[25th]]","v":375224.6},{"$f":"(((AAMC_Raw_Data_for_FY22[[#This Row],[Median]]-AAMC_Raw_Data_for_FY22[[#This Row],[25th]])/25)*15) + AAMC_Raw_Data_for_FY22[[#This Row],[25th]]","v":383982.4},{"$f":"(((AAMC_Raw_Data_for_FY22[[#This Row],[Median]]-AAMC_Raw_Data_for_FY22[[#This Row],[25th]])/25)*20) + AAMC_Raw_Data_for_FY22[[#This Row],[25th]]","v":392740.2},401498,{"$f":"(((AAMC_Raw_Data_for_FY22[[#This Row],[75th]]-AAMC_Raw_Data_for_FY22[[#This Row],[Median]])/25)*5) + AAMC_Raw_Data_for_FY22[[#This Row],[Median]]","v":413811.20000000001},{"$f":"(((AAMC_Raw_Data_for_FY22[[#This Row],[75th]]-AAMC_Raw_Data_for_FY22[[#This Row],[Median]])/25)*10) + AAMC_Raw_Data_for_FY22[[#This Row],[Median]]","v":426124.4},{"$f":"(((AAMC_Raw_Data_for_FY22[[#This Row],[75th]]-AAMC_Raw_Data_for_FY22[[#This Row],[Median]])/25)*15) + AAMC_Raw_Data_for_FY22[[#This Row],[Median]]","v":438437.6},{"$f":"(((AAMC_Raw_Data_for_FY22[[#This Row],[75th]]-AAMC_Raw_Data_for_FY22[[#This Row],[Median]])/25)*20) + AAMC_Raw_Data_for_FY22[[#This Row],[Median]]","v":450750.8},463064,{"$f":"(((AAMC_Raw_Data_for_FY22[[#This Row],[75th]]-AAMC_Raw_Data_for_FY22[[#This Row],[Median]])/25)*30) + AAMC_Raw_Data_for_FY22[[#This Row],[Median]]","v":475377.2},{"$f":"(((AAMC_Raw_Data_for_FY22[[#This Row],[75th]]-AAMC_Raw_Data_for_FY22[[#This Row],[Median]])/25)*35) + AAMC_Raw_Data_for_FY22[[#This Row],[Median]]","v":487690.4},{"$f":"(((AAMC_Raw_Data_for_FY22[[#This Row],[75th]]-AAMC_Raw_Data_for_FY22[[#This Row],[Median]])/25)*40) + AAMC_Raw_Data_for_FY22[[#This Row],[Median]]","v":500003.6}]
[{"$f":"AAMC_Raw_Data_for_FY22[[#This Row],[Source]]&AAMC_Raw_Data_for_FY22[[#This Row],[Type]]&AAMC_Raw_Data_for_FY22[[#This Row],[School Subset]]&AAMC_Raw_Data_for_FY22[[#This Row],[Rank]]&AAMC_Raw_Data_for_FY22[[#This Row],[Degree]]&AAMC_Raw_Data_for_FY22[[#This Row],[Department / Specialty]]&\"L\"","v":"AAMCAcademicAllAssociateMDRadiation OncologyL"},"Radiation Oncology",3,"AAMC","Academic","All","Associate","MD","2021-2022",440428,{"$f":"(((AAMC_Raw_Data_for_FY22[[#This Row],[Median]]-AAMC_Raw_Data_for_FY22[[#This Row],[25th]])/25)*5) + AAMC_Raw_Data_for_FY22[[#This Row],[25th]]","v":453012.4},{"$f":"(((AAMC_Raw_Data_for_FY22[[#This Row],[Median]]-AAMC_Raw_Data_for_FY22[[#This Row],[25th]])/25)*10) + AAMC_Raw_Data_for_FY22[[#This Row],[25th]]","v":465596.8},{"$f":"(((AAMC_Raw_Data_for_FY22[[#This Row],[Median]]-AAMC_Raw_Data_for_FY22[[#This Row],[25th]])/25)*15) + AAMC_Raw_Data_for_FY22[[#This Row],[25th]]","v":478181.2},{"$f":"(((AAMC_Raw_Data_for_FY22[[#This Row],[Median]]-AAMC_Raw_Data_for_FY22[[#This Row],[25th]])/25)*20) + AAMC_Raw_Data_for_FY22[[#This Row],[25th]]","v":490765.6},503350,{"$f":"(((AAMC_Raw_Data_for_FY22[[#This Row],[75th]]-AAMC_Raw_Data_for_FY22[[#This Row],[Median]])/25)*5) + AAMC_Raw_Data_for_FY22[[#This Row],[Median]]","v":515230.2},{"$f":"(((AAMC_Raw_Data_for_FY22[[#This Row],[75th]]-AAMC_Raw_Data_for_FY22[[#This Row],[Median]])/25)*10) + AAMC_Raw_Data_for_FY22[[#This Row],[Median]]","v":527110.40000000002},{"$f":"(((AAMC_Raw_Data_for_FY22[[#This Row],[75th]]-AAMC_Raw_Data_for_FY22[[#This Row],[Median]])/25)*15) + AAMC_Raw_Data_for_FY22[[#This Row],[Median]]","v":538990.6},{"$f":"(((AAMC_Raw_Data_for_FY22[[#This Row],[75th]]-AAMC_Raw_Data_for_FY22[[#This Row],[Median]])/25)*20) + AAMC_Raw_Data_for_FY22[[#This Row],[Median]]","v":550870.80000000005},562751,{"$f":"(((AAMC_Raw_Data_for_FY22[[#This Row],[75th]]-AAMC_Raw_Data_for_FY22[[#This Row],[Median]])/25)*30) + AAMC_Raw_Data_for_FY22[[#This Row],[Median]]","v":574631.19999999995},{"$f":"(((AAMC_Raw_Data_for_FY22[[#This Row],[75th]]-AAMC_Raw_Data_for_FY22[[#This Row],[Median]])/25)*35) + AAMC_Raw_Data_for_FY22[[#This Row],[Median]]","v":586511.4},{"$f":"(((AAMC_Raw_Data_for_FY22[[#This Row],[75th]]-AAMC_Raw_Data_for_FY22[[#This Row],[Median]])/25)*40) + AAMC_Raw_Data_for_FY22[[#This Row],[Median]]","v":598391.6}]
[{"$f":"AAMC_Raw_Data_for_FY22[[#This Row],[Source]]&AAMC_Raw_Data_for_FY22[[#This Row],[Type]]&AAMC_Raw_Data_for_FY22[[#This Row],[School Subset]]&AAMC_Raw_Data_for_FY22[[#This Row],[Rank]]&AAMC_Raw_Data_for_FY22[[#This Row],[Degree]]&AAMC_Raw_Data_for_FY22[[#This Row],[Department / Specialty]]&\"L\"","v":"AAMCAcademicAllProfessorMDRadiation OncologyL"},"Radiation Oncology",2,"AAMC","Academic","All","Professor","MD","2021-2022",486494,{"$f":"(((AAMC_Raw_Data_for_FY22[[#This Row],[Median]]-AAMC_Raw_Data_for_FY22[[#This Row],[25th]])/25)*5) + AAMC_Raw_Data_for_FY22[[#This Row],[25th]]","v":500191.4},{"$f":"(((AAMC_Raw_Data_for_FY22[[#This Row],[Median]]-AAMC_Raw_Data_for_FY22[[#This Row],[25th]])/25)*10) + AAMC_Raw_Data_for_FY22[[#This Row],[25th]]","v":513888.8},{"$f":"(((AAMC_Raw_Data_for_FY22[[#This Row],[Median]]-AAMC_Raw_Data_for_FY22[[#This Row],[25th]])/25)*15) + AAMC_Raw_Data_for_FY22[[#This Row],[25th]]","v":527586.19999999995},{"$f":"(((AAMC_Raw_Data_for_FY22[[#This Row],[Median]]-AAMC_Raw_Data_for_FY22[[#This Row],[25th]])/25)*20) + AAMC_Raw_Data_for_FY22[[#This Row],[25th]]","v":541283.6},554981,{"$f":"(((AAMC_Raw_Data_for_FY22[[#This Row],[75th]]-AAMC_Raw_Data_for_FY22[[#This Row],[Median]])/25)*5) + AAMC_Raw_Data_for_FY22[[#This Row],[Median]]","v":568650.80000000005},{"$f":"(((AAMC_Raw_Data_for_FY22[[#This Row],[75th]]-AAMC_Raw_Data_for_FY22[[#This Row],[Median]])/25)*10) + AAMC_Raw_Data_for_FY22[[#This Row],[Median]]","v":582320.6},{"$f":"(((AAMC_Raw_Data_for_FY22[[#This Row],[75th]]-AAMC_Raw_Data_for_FY22[[#This Row],[Median]])/25)*15) + AAMC_Raw_Data_for_FY22[[#This Row],[Median]]","v":595990.4},{"$f":"(((AAMC_Raw_Data_for_FY22[[#This Row],[75th]]-AAMC_Raw_Data_for_FY22[[#This Row],[Median]])/25)*20) + AAMC_Raw_Data_for_FY22[[#This Row],[Median]]","v":609660.19999999995},623330,{"$f":"(((AAMC_Raw_Data_for_FY22[[#This Row],[75th]]-AAMC_Raw_Data_for_FY22[[#This Row],[Median]])/25)*30) + AAMC_Raw_Data_for_FY22[[#This Row],[Median]]","v":636999.80000000005},{"$f":"(((AAMC_Raw_Data_for_FY22[[#This Row],[75th]]-AAMC_Raw_Data_for_FY22[[#This Row],[Median]])/25)*35) + AAMC_Raw_Data_for_FY22[[#This Row],[Median]]","v":650669.6},{"$f":"(((AAMC_Raw_Data_for_FY22[[#This Row],[75th]]-AAMC_Raw_Data_for_FY22[[#This Row],[Median]])/25)*40) + AAMC_Raw_Data_for_FY22[[#This Row],[Median]]","v":664339.4}]
[{"$f":"AAMC_Raw_Data_for_FY22[[#This Row],[Source]]&AAMC_Raw_Data_for_FY22[[#This Row],[Type]]&AAMC_Raw_Data_for_FY22[[#This Row],[School Subset]]&AAMC_Raw_Data_for_FY22[[#This Row],[Rank]]&AAMC_Raw_Data_for_FY22[[#This Row],[Degree]]&AAMC_Raw_Data_for_FY22[[#This Row],[Department / Specialty]]&\"L\"","v":"AAMCAcademicAllChiefMDRadiation OncologyL"},"Radiation Oncology",6,"AAMC","Academic","All","Chief","MD","2021-2022",517769,{"$f":"(((AAMC_Raw_Data_for_FY22[[#This Row],[Median]]-AAMC_Raw_Data_for_FY22[[#This Row],[25th]])/25)*5) + AAMC_Raw_Data_for_FY22[[#This Row],[25th]]","v":529595.6},{"$f":"(((AAMC_Raw_Data_for_FY22[[#This Row],[Median]]-AAMC_Raw_Data_for_FY22[[#This Row],[25th]])/25)*10) + AAMC_Raw_Data_for_FY22[[#This Row],[25th]]","v":541422.19999999995},{"$f":"(((AAMC_Raw_Data_for_FY22[[#This Row],[Median]]-AAMC_Raw_Data_for_FY22[[#This Row],[25th]])/25)*15) + AAMC_Raw_Data_for_FY22[[#This Row],[25th]]","v":553248.80000000005},{"$f":"(((AAMC_Raw_Data_for_FY22[[#This Row],[Median]]-AAMC_Raw_Data_for_FY22[[#This Row],[25th]])/25)*20) + AAMC_Raw_Data_for_FY22[[#This Row],[25th]]","v":565075.4},576902,{"$f":"(((AAMC_Raw_Data_for_FY22[[#This Row],[75th]]-AAMC_Raw_Data_for_FY22[[#This Row],[Median]])/25)*5) + AAMC_Raw_Data_for_FY22[[#This Row],[Median]]","v":591641.19999999995},{"$f":"(((AAMC_Raw_Data_for_FY22[[#This Row],[75th]]-AAMC_Raw_Data_for_FY22[[#This Row],[Median]])/25)*10) + AAMC_Raw_Data_for_FY22[[#This Row],[Median]]","v":606380.4},{"$f":"(((AAMC_Raw_Data_for_FY22[[#This Row],[75th]]-AAMC_Raw_Data_for_FY22[[#This Row],[Median]])/25)*15) + AAMC_Raw_Data_for_FY22[[#This Row],[Median]]","v":621119.6},{"$f":"(((AAMC_Raw_Data_for_FY22[[#This Row],[75th]]-AAMC_Raw_Data_for_FY22[[#This Row],[Median]])/25)*20) + AAMC_Raw_Data_for_FY22[[#This Row],[Median]]","v":635858.80000000005},650598,{"$f":"(((AAMC_Raw_Data_for_FY22[[#This Row],[75th]]-AAMC_Raw_Data_for_FY22[[#This Row],[Median]])/25)*30) + AAMC_Raw_Data_for_FY22[[#This Row],[Median]]","v":665337.19999999995},{"$f":"(((AAMC_Raw_Data_for_FY22[[#This Row],[75th]]-AAMC_Raw_Data_for_FY22[[#This Row],[Median]])/25)*35) + AAMC_Raw_Data_for_FY22[[#This Row],[Median]]","v":680076.4},{"$f":"(((AAMC_Raw_Data_for_FY22[[#This Row],[75th]]-AAMC_Raw_Data_for_FY22[[#This Row],[Median]])/25)*40) + AAMC_Raw_Data_for_FY22[[#This Row],[Median]]","v":694815.6}]
[{"$f":"AAMC_Raw_Data_for_FY22[[#This Row],[Source]]&AAMC_Raw_Data_for_FY22[[#This Row],[Type]]&AAMC_Raw_Data_for_FY22[[#This Row],[School Subset]]&AAMC_Raw_Data_for_FY22[[#This Row],[Rank]]&AAMC_Raw_Data_for_FY22[[#This Row],[Degree]]&AAMC_Raw_Data_for_FY22[[#This Row],[Department / Specialty]]&\"L\"","v":"AAMCAcademicAllChairMDRadiation OncologyL"},"Radiation Oncology",1,"AAMC","Academic","All","Chair","MD","2021-2022",765134,{"$f":"(((AAMC_Raw_Data_for_FY22[[#This Row],[Median]]-AAMC_Raw_Data_for_FY22[[#This Row],[25th]])/25)*5) + AAMC_Raw_Data_for_FY22[[#This Row],[25th]]","v":778707.2},{"$f":"(((AAMC_Raw_Data_for_FY22[[#This Row],[Median]]-AAMC_Raw_Data_for_FY22[[#This Row],[25th]])/25)*10) + AAMC_Raw_Data_for_FY22[[#This Row],[25th]]","v":792280.4},{"$f":"(((AAMC_Raw_Data_for_FY22[[#This Row],[Median]]-AAMC_Raw_Data_for_FY22[[#This Row],[25th]])/25)*15) + AAMC_Raw_Data_for_FY22[[#This Row],[25th]]","v":805853.6},{"$f":"(((AAMC_Raw_Data_for_FY22[[#This Row],[Median]]-AAMC_Raw_Data_for_FY22[[#This Row],[25th]])/25)*20) + AAMC_Raw_Data_for_FY22[[#This Row],[25th]]","v":819426.8},833000,{"$f":"(((AAMC_Raw_Data_for_FY22[[#This Row],[75th]]-AAMC_Raw_Data_for_FY22[[#This Row],[Median]])/25)*5) + AAMC_Raw_Data_for_FY22[[#This Row],[Median]]","v":861265.6},{"$f":"(((AAMC_Raw_Data_for_FY22[[#This Row],[75th]]-AAMC_Raw_Data_for_FY22[[#This Row],[Median]])/25)*10) + AAMC_Raw_Data_for_FY22[[#This Row],[Median]]","v":889531.2},{"$f":"(((AAMC_Raw_Data_for_FY22[[#This Row],[75th]]-AAMC_Raw_Data_for_FY22[[#This Row],[Median]])/25)*15) + AAMC_Raw_Data_for_FY22[[#This Row],[Median]]","v":917796.8},{"$f":"(((AAMC_Raw_Data_for_FY22[[#This Row],[75th]]-AAMC_Raw_Data_for_FY22[[#This Row],[Median]])/25)*20) + AAMC_Raw_Data_for_FY22[[#This Row],[Median]]","v":946062.4},974328,{"$f":"(((AAMC_Raw_Data_for_FY22[[#This Row],[75th]]-AAMC_Raw_Data_for_FY22[[#This Row],[Median]])/25)*30) + AAMC_Raw_Data_for_FY22[[#This Row],[Median]]","v":1002593.6},{"$f":"(((AAMC_Raw_Data_for_FY22[[#This Row],[75th]]-AAMC_Raw_Data_for_FY22[[#This Row],[Median]])/25)*35) + AAMC_Raw_Data_for_FY22[[#This Row],[Median]]","v":1030859.2},{"$f":"(((AAMC_Raw_Data_for_FY22[[#This Row],[75th]]-AAMC_Raw_Data_for_FY22[[#This Row],[Median]])/25)*40) + AAMC_Raw_Data_for_FY22[[#This Row],[Median]]","v":1059124.8}]
[{"$f":"AAMC_Raw_Data_for_FY22[[#This Row],[Source]]&AAMC_Raw_Data_for_FY22[[#This Row],[Type]]&AAMC_Raw_Data_for_FY22[[#This Row],[School Subset]]&AAMC_Raw_Data_for_FY22[[#This Row],[Rank]]&AAMC_Raw_Data_for_FY22[[#This Row],[Degree]]&AAMC_Raw_Data_for_FY22[[#This Row],[Department / Specialty]]&\"L\"","v":"AAMCAcademicAllInstructorMDOther RadiologyL"},"Other Radiology",5,"AAMC","Academic","All","Instructor","MD","2021-2022",97134,{"$f":"(((AAMC_Raw_Data_for_FY22[[#This Row],[Median]]-AAMC_Raw_Data_for_FY22[[#This Row],[25th]])/25)*5) + AAMC_Raw_Data_for_FY22[[#This Row],[25th]]","v":138024.79999999999},{"$f":"(((AAMC_Raw_Data_for_FY22[[#This Row],[Median]]-AAMC_Raw_Data_for_FY22[[#This Row],[25th]])/25)*10) + AAMC_Raw_Data_for_FY22[[#This Row],[25th]]","v":178915.6},{"$f":"(((AAMC_Raw_Data_for_FY22[[#This Row],[Median]]-AAMC_Raw_Data_for_FY22[[#This Row],[25th]])/25)*15) + AAMC_Raw_Data_for_FY22[[#This Row],[25th]]","v":219806.4},{"$f":"(((AAMC_Raw_Data_for_FY22[[#This Row],[Median]]-AAMC_Raw_Data_for_FY22[[#This Row],[25th]])/25)*20) + AAMC_Raw_Data_for_FY22[[#This Row],[25th]]","v":260697.2},301588,{"$f":"(((AAMC_Raw_Data_for_FY22[[#This Row],[75th]]-AAMC_Raw_Data_for_FY22[[#This Row],[Median]])/25)*5) + AAMC_Raw_Data_for_FY22[[#This Row],[Median]]","v":308467.40000000002},{"$f":"(((AAMC_Raw_Data_for_FY22[[#This Row],[75th]]-AAMC_Raw_Data_for_FY22[[#This Row],[Median]])/25)*10) + AAMC_Raw_Data_for_FY22[[#This Row],[Median]]","v":315346.8},{"$f":"(((AAMC_Raw_Data_for_FY22[[#This Row],[75th]]-AAMC_Raw_Data_for_FY22[[#This Row],[Median]])/25)*15) + AAMC_Raw_Data_for_FY22[[#This Row],[Median]]","v":322226.2},{"$f":"(((AAMC_Raw_Data_for_FY22[[#This Row],[75th]]-AAMC_Raw_Data_for_FY22[[#This Row],[Median]])/25)*20) + AAMC_Raw_Data_for_FY22[[#This Row],[Median]]","v":329105.59999999998},335985,{"$f":"(((AAMC_Raw_Data_for_FY22[[#This Row],[75th]]-AAMC_Raw_Data_for_FY22[[#This Row],[Median]])/25)*30) + AAMC_Raw_Data_for_FY22[[#This Row],[Median]]","v":342864.4},{"$f":"(((AAMC_Raw_Data_for_FY22[[#This Row],[75th]]-AAMC_Raw_Data_for_FY22[[#This Row],[Median]])/25)*35) + AAMC_Raw_Data_for_FY22[[#This Row],[Median]]","v":349743.8},{"$f":"(((AAMC_Raw_Data_for_FY22[[#This Row],[75th]]-AAMC_Raw_Data_for_FY22[[#This Row],[Median]])/25)*40) + AAMC_Raw_Data_for_FY22[[#This Row],[Median]]","v":356623.2}]
[{"$f":"AAMC_Raw_Data_for_FY22[[#This Row],[Source]]&AAMC_Raw_Data_for_FY22[[#This Row],[Type]]&AAMC_Raw_Data_for_FY22[[#This Row],[School Subset]]&AAMC_Raw_Data_for_FY22[[#This Row],[Rank]]&AAMC_Raw_Data_for_FY22[[#This Row],[Degree]]&AAMC_Raw_Data_for_FY22[[#This Row],[Department / Specialty]]&\"L\"","v":"AAMCAcademicAllAssistantMDOther RadiologyL"},"Other Radiology",4,"AAMC","Academic","All","Assistant","MD","2021-2022",365126,{"$f":"(((AAMC_Raw_Data_for_FY22[[#This Row],[Median]]-AAMC_Raw_Data_for_FY22[[#This Row],[25th]])/25)*5) + AAMC_Raw_Data_for_FY22[[#This Row],[25th]]","v":375248.8},{"$f":"(((AAMC_Raw_Data_for_FY22[[#This Row],[Median]]-AAMC_Raw_Data_for_FY22[[#This Row],[25th]])/25)*10) + AAMC_Raw_Data_for_FY22[[#This Row],[25th]]","v":385371.6},{"$f":"(((AAMC_Raw_Data_for_FY22[[#This Row],[Median]]-AAMC_Raw_Data_for_FY22[[#This Row],[25th]])/25)*15) + AAMC_Raw_Data_for_FY22[[#This Row],[25th]]","v":395494.40000000002},{"$f":"(((AAMC_Raw_Data_for_FY22[[#This Row],[Median]]-AAMC_Raw_Data_for_FY22[[#This Row],[25th]])/25)*20) + AAMC_Raw_Data_for_FY22[[#This Row],[25th]]","v":405617.2},415740,{"$f":"(((AAMC_Raw_Data_for_FY22[[#This Row],[75th]]-AAMC_Raw_Data_for_FY22[[#This Row],[Median]])/25)*5) + AAMC_Raw_Data_for_FY22[[#This Row],[Median]]","v":424894.6},{"$f":"(((AAMC_Raw_Data_for_FY22[[#This Row],[75th]]-AAMC_Raw_Data_for_FY22[[#This Row],[Median]])/25)*10) + AAMC_Raw_Data_for_FY22[[#This Row],[Median]]","v":434049.2},{"$f":"(((AAMC_Raw_Data_for_FY22[[#This Row],[75th]]-AAMC_Raw_Data_for_FY22[[#This Row],[Median]])/25)*15) + AAMC_Raw_Data_for_FY22[[#This Row],[Median]]","v":443203.8},{"$f":"(((AAMC_Raw_Data_for_FY22[[#This Row],[75th]]-AAMC_Raw_Data_for_FY22[[#This Row],[Median]])/25)*20) + AAMC_Raw_Data_for_FY22[[#This Row],[Median]]","v":452358.40000000002},461513,{"$f":"(((AAMC_Raw_Data_for_FY22[[#This Row],[75th]]-AAMC_Raw_Data_for_FY22[[#This Row],[Median]])/25)*30) + AAMC_Raw_Data_for_FY22[[#This Row],[Median]]","v":470667.6},{"$f":"(((AAMC_Raw_Data_for_FY22[[#This Row],[75th]]-AAMC_Raw_Data_for_FY22[[#This Row],[Median]])/25)*35) + AAMC_Raw_Data_for_FY22[[#This Row],[Median]]","v":479822.2},{"$f":"(((AAMC_Raw_Data_for_FY22[[#This Row],[75th]]-AAMC_Raw_Data_for_FY22[[#This Row],[Median]])/25)*40) + AAMC_Raw_Data_for_FY22[[#This Row],[Median]]","v":488976.8}]
[{"$f":"AAMC_Raw_Data_for_FY22[[#This Row],[Source]]&AAMC_Raw_Data_for_FY22[[#This Row],[Type]]&AAMC_Raw_Data_for_FY22[[#This Row],[School Subset]]&AAMC_Raw_Data_for_FY22[[#This Row],[Rank]]&AAMC_Raw_Data_for_FY22[[#This Row],[Degree]]&AAMC_Raw_Data_for_FY22[[#This Row],[Department / Specialty]]&\"L\"","v":"AAMCAcademicAllAssociateMDOther RadiologyL"},"Other Radiology",3,"AAMC","Academic","All","Associate","MD","2021-2022",400466,{"$f":"(((AAMC_Raw_Data_for_FY22[[#This Row],[Median]]-AAMC_Raw_Data_for_FY22[[#This Row],[25th]])/25)*5) + AAMC_Raw_Data_for_FY22[[#This Row],[25th]]","v":410350.8},{"$f":"(((AAMC_Raw_Data_for_FY22[[#This Row],[Median]]-AAMC_Raw_Data_for_FY22[[#This Row],[25th]])/25)*10) + AAMC_Raw_Data_for_FY22[[#This Row],[25th]]","v":420235.6},{"$f":"(((AAMC_Raw_Data_for_FY22[[#This Row],[Median]]-AAMC_Raw_Data_for_FY22[[#This Row],[25th]])/25)*15) + AAMC_Raw_Data_for_FY22[[#This Row],[25th]]","v":430120.4},{"$f":"(((AAMC_Raw_Data_for_FY22[[#This Row],[Median]]-AAMC_Raw_Data_for_FY22[[#This Row],[25th]])/25)*20) + AAMC_Raw_Data_for_FY22[[#This Row],[25th]]","v":440005.2},449890,{"$f":"(((AAMC_Raw_Data_for_FY22[[#This Row],[75th]]-AAMC_Raw_Data_for_FY22[[#This Row],[Median]])/25)*5) + AAMC_Raw_Data_for_FY22[[#This Row],[Median]]","v":461910.6},{"$f":"(((AAMC_Raw_Data_for_FY22[[#This Row],[75th]]-AAMC_Raw_Data_for_FY22[[#This Row],[Median]])/25)*10) + AAMC_Raw_Data_for_FY22[[#This Row],[Median]]","v":473931.2},{"$f":"(((AAMC_Raw_Data_for_FY22[[#This Row],[75th]]-AAMC_Raw_Data_for_FY22[[#This Row],[Median]])/25)*15) + AAMC_Raw_Data_for_FY22[[#This Row],[Median]]","v":485951.8},{"$f":"(((AAMC_Raw_Data_for_FY22[[#This Row],[75th]]-AAMC_Raw_Data_for_FY22[[#This Row],[Median]])/25)*20) + AAMC_Raw_Data_for_FY22[[#This Row],[Median]]","v":497972.4},509993,{"$f":"(((AAMC_Raw_Data_for_FY22[[#This Row],[75th]]-AAMC_Raw_Data_for_FY22[[#This Row],[Median]])/25)*30) + AAMC_Raw_Data_for_FY22[[#This Row],[Median]]","v":522013.6},{"$f":"(((AAMC_Raw_Data_for_FY22[[#This Row],[75th]]-AAMC_Raw_Data_for_FY22[[#This Row],[Median]])/25)*35) + AAMC_Raw_Data_for_FY22[[#This Row],[Median]]","v":534034.19999999995},{"$f":"(((AAMC_Raw_Data_for_FY22[[#This Row],[75th]]-AAMC_Raw_Data_for_FY22[[#This Row],[Median]])/25)*40) + AAMC_Raw_Data_for_FY22[[#This Row],[Median]]","v":546054.80000000005}]
[{"$f":"AAMC_Raw_Data_for_FY22[[#This Row],[Source]]&AAMC_Raw_Data_for_FY22[[#This Row],[Type]]&AAMC_Raw_Data_for_FY22[[#This Row],[School Subset]]&AAMC_Raw_Data_for_FY22[[#This Row],[Rank]]&AAMC_Raw_Data_for_FY22[[#This Row],[Degree]]&AAMC_Raw_Data_for_FY22[[#This Row],[Department / Specialty]]&\"L\"","v":"AAMCAcademicAllProfessorMDOther RadiologyL"},"Other Radiology",2,"AAMC","Academic","All","Professor","MD","2021-2022",372915,{"$f":"(((AAMC_Raw_Data_for_FY22[[#This Row],[Median]]-AAMC_Raw_Data_for_FY22[[#This Row],[25th]])/25)*5) + AAMC_Raw_Data_for_FY22[[#This Row],[25th]]","v":385861},{"$f":"(((AAMC_Raw_Data_for_FY22[[#This Row],[Median]]-AAMC_Raw_Data_for_FY22[[#This Row],[25th]])/25)*10) + AAMC_Raw_Data_for_FY22[[#This Row],[25th]]","v":398807},{"$f":"(((AAMC_Raw_Data_for_FY22[[#This Row],[Median]]-AAMC_Raw_Data_for_FY22[[#This Row],[25th]])/25)*15) + AAMC_Raw_Data_for_FY22[[#This Row],[25th]]","v":411753},{"$f":"(((AAMC_Raw_Data_for_FY22[[#This Row],[Median]]-AAMC_Raw_Data_for_FY22[[#This Row],[25th]])/25)*20) + AAMC_Raw_Data_for_FY22[[#This Row],[25th]]","v":424699},437645,{"$f":"(((AAMC_Raw_Data_for_FY22[[#This Row],[75th]]-AAMC_Raw_Data_for_FY22[[#This Row],[Median]])/25)*5) + AAMC_Raw_Data_for_FY22[[#This Row],[Median]]","v":454876},{"$f":"(((AAMC_Raw_Data_for_FY22[[#This Row],[75th]]-AAMC_Raw_Data_for_FY22[[#This Row],[Median]])/25)*10) + AAMC_Raw_Data_for_FY22[[#This Row],[Median]]","v":472107},{"$f":"(((AAMC_Raw_Data_for_FY22[[#This Row],[75th]]-AAMC_Raw_Data_for_FY22[[#This Row],[Median]])/25)*15) + AAMC_Raw_Data_for_FY22[[#This Row],[Median]]","v":489338},{"$f":"(((AAMC_Raw_Data_for_FY22[[#This Row],[75th]]-AAMC_Raw_Data_for_FY22[[#This Row],[Median]])/25)*20) + AAMC_Raw_Data_for_FY22[[#This Row],[Median]]","v":506569},523800,{"$f":"(((AAMC_Raw_Data_for_FY22[[#This Row],[75th]]-AAMC_Raw_Data_for_FY22[[#This Row],[Median]])/25)*30) + AAMC_Raw_Data_for_FY22[[#This Row],[Median]]","v":541031},{"$f":"(((AAMC_Raw_Data_for_FY22[[#This Row],[75th]]-AAMC_Raw_Data_for_FY22[[#This Row],[Median]])/25)*35) + AAMC_Raw_Data_for_FY22[[#This Row],[Median]]","v":558262},{"$f":"(((AAMC_Raw_Data_for_FY22[[#This Row],[75th]]-AAMC_Raw_Data_for_FY22[[#This Row],[Median]])/25)*40) + AAMC_Raw_Data_for_FY22[[#This Row],[Median]]","v":575493}]
[{"$f":"AAMC_Raw_Data_for_FY22[[#This Row],[Source]]&AAMC_Raw_Data_for_FY22[[#This Row],[Type]]&AAMC_Raw_Data_for_FY22[[#This Row],[School Subset]]&AAMC_Raw_Data_for_FY22[[#This Row],[Rank]]&AAMC_Raw_Data_for_FY22[[#This Row],[Degree]]&AAMC_Raw_Data_for_FY22[[#This Row],[Department / Specialty]]&\"L\"","v":"AAMCAcademicAllChiefMDOther RadiologyL"},"Other Radiology",6,"AAMC","Academic","All","Chief","MD","2021-2022",471311,{"$f":"(((AAMC_Raw_Data_for_FY22[[#This Row],[Median]]-AAMC_Raw_Data_for_FY22[[#This Row],[25th]])/25)*5) + AAMC_Raw_Data_for_FY22[[#This Row],[25th]]","v":476040},{"$f":"(((AAMC_Raw_Data_for_FY22[[#This Row],[Median]]-AAMC_Raw_Data_for_FY22[[#This Row],[25th]])/25)*10) + AAMC_Raw_Data_for_FY22[[#This Row],[25th]]","v":480769},{"$f":"(((AAMC_Raw_Data_for_FY22[[#This Row],[Median]]-AAMC_Raw_Data_for_FY22[[#This Row],[25th]])/25)*15) + AAMC_Raw_Data_for_FY22[[#This Row],[25th]]","v":485498},{"$f":"(((AAMC_Raw_Data_for_FY22[[#This Row],[Median]]-AAMC_Raw_Data_for_FY22[[#This Row],[25th]])/25)*20) + AAMC_Raw_Data_for_FY22[[#This Row],[25th]]","v":490227},494956,{"$f":"(((AAMC_Raw_Data_for_FY22[[#This Row],[75th]]-AAMC_Raw_Data_for_FY22[[#This Row],[Median]])/25)*5) + AAMC_Raw_Data_for_FY22[[#This Row],[Median]]","v":504002.4},{"$f":"(((AAMC_Raw_Data_for_FY22[[#This Row],[75th]]-AAMC_Raw_Data_for_FY22[[#This Row],[Median]])/25)*10) + AAMC_Raw_Data_for_FY22[[#This Row],[Median]]","v":513048.8},{"$f":"(((AAMC_Raw_Data_for_FY22[[#This Row],[75th]]-AAMC_Raw_Data_for_FY22[[#This Row],[Median]])/25)*15) + AAMC_Raw_Data_for_FY22[[#This Row],[Median]]","v":522095.2},{"$f":"(((AAMC_Raw_Data_for_FY22[[#This Row],[75th]]-AAMC_Raw_Data_for_FY22[[#This Row],[Median]])/25)*20) + AAMC_Raw_Data_for_FY22[[#This Row],[Median]]","v":531141.6},540188,{"$f":"(((AAMC_Raw_Data_for_FY22[[#This Row],[75th]]-AAMC_Raw_Data_for_FY22[[#This Row],[Median]])/25)*30) + AAMC_Raw_Data_for_FY22[[#This Row],[Median]]","v":549234.4},{"$f":"(((AAMC_Raw_Data_for_FY22[[#This Row],[75th]]-AAMC_Raw_Data_for_FY22[[#This Row],[Median]])/25)*35) + AAMC_Raw_Data_for_FY22[[#This Row],[Median]]","v":558280.80000000005},{"$f":"(((AAMC_Raw_Data_for_FY22[[#This Row],[75th]]-AAMC_Raw_Data_for_FY22[[#This Row],[Median]])/25)*40) + AAMC_Raw_Data_for_FY22[[#This Row],[Median]]","v":567327.19999999995}]
[{"$f":"AAMC_Raw_Data_for_FY22[[#This Row],[Source]]&AAMC_Raw_Data_for_FY22[[#This Row],[Type]]&AAMC_Raw_Data_for_FY22[[#This Row],[School Subset]]&AAMC_Raw_Data_for_FY22[[#This Row],[Rank]]&AAMC_Raw_Data_for_FY22[[#This Row],[Degree]]&AAMC_Raw_Data_for_FY22[[#This Row],[Department / Specialty]]&\"L\"","v":"AAMCAcademicAllChairMDOther RadiologyL"},"Other Radiology",1,"AAMC","Academic","All","Chair","MD","2021-2022",562066,{"$f":"(((AAMC_Raw_Data_for_FY22[[#This Row],[Median]]-AAMC_Raw_Data_for_FY22[[#This Row],[25th]])/25)*5) + AAMC_Raw_Data_for_FY22[[#This Row],[25th]]","v":601166.6},{"$f":"(((AAMC_Raw_Data_for_FY22[[#This Row],[Median]]-AAMC_Raw_Data_for_FY22[[#This Row],[25th]])/25)*10) + AAMC_Raw_Data_for_FY22[[#This Row],[25th]]","v":640267.19999999995},{"$f":"(((AAMC_Raw_Data_for_FY22[[#This Row],[Median]]-AAMC_Raw_Data_for_FY22[[#This Row],[25th]])/25)*15) + AAMC_Raw_Data_for_FY22[[#This Row],[25th]]","v":679367.8},{"$f":"(((AAMC_Raw_Data_for_FY22[[#This Row],[Median]]-AAMC_Raw_Data_for_FY22[[#This Row],[25th]])/25)*20) + AAMC_Raw_Data_for_FY22[[#This Row],[25th]]","v":718468.4},757569,{"$f":"(((AAMC_Raw_Data_for_FY22[[#This Row],[75th]]-AAMC_Raw_Data_for_FY22[[#This Row],[Median]])/25)*5) + AAMC_Raw_Data_for_FY22[[#This Row],[Median]]","v":773466.8},{"$f":"(((AAMC_Raw_Data_for_FY22[[#This Row],[75th]]-AAMC_Raw_Data_for_FY22[[#This Row],[Median]])/25)*10) + AAMC_Raw_Data_for_FY22[[#This Row],[Median]]","v":789364.6},{"$f":"(((AAMC_Raw_Data_for_FY22[[#This Row],[75th]]-AAMC_Raw_Data_for_FY22[[#This Row],[Median]])/25)*15) + AAMC_Raw_Data_for_FY22[[#This Row],[Median]]","v":805262.4},{"$f":"(((AAMC_Raw_Data_for_FY22[[#This Row],[75th]]-AAMC_Raw_Data_for_FY22[[#This Row],[Median]])/25)*20) + AAMC_Raw_Data_for_FY22[[#This Row],[Median]]","v":821160.2},837058,{"$f":"(((AAMC_Raw_Data_for_FY22[[#This Row],[75th]]-AAMC_Raw_Data_for_FY22[[#This Row],[Median]])/25)*30) + AAMC_Raw_Data_for_FY22[[#This Row],[Median]]","v":852955.8},{"$f":"(((AAMC_Raw_Data_for_FY22[[#This Row],[75th]]-AAMC_Raw_Data_for_FY22[[#This Row],[Median]])/25)*35) + AAMC_Raw_Data_for_FY22[[#This Row],[Median]]","v":868853.6},{"$f":"(((AAMC_Raw_Data_for_FY22[[#This Row],[75th]]-AAMC_Raw_Data_for_FY22[[#This Row],[Median]])/25)*40) + AAMC_Raw_Data_for_FY22[[#This Row],[Median]]","v":884751.4}]
[{"$f":"AAMC_Raw_Data_for_FY22[[#This Row],[Source]]&AAMC_Raw_Data_for_FY22[[#This Row],[Type]]&AAMC_Raw_Data_for_FY22[[#This Row],[School Subset]]&AAMC_Raw_Data_for_FY22[[#This Row],[Rank]]&AAMC_Raw_Data_for_FY22[[#This Row],[Degree]]&AAMC_Raw_Data_for_FY22[[#This Row],[Department / Specialty]]&\"L\"","v":"AAMCAcademicAllInstructorMDSurgery TotalL"},"Surgery Total",5,"AAMC","Academic","All","Instructor","MD","2021-2022",87357,{"$f":"(((AAMC_Raw_Data_for_FY22[[#This Row],[Median]]-AAMC_Raw_Data_for_FY22[[#This Row],[25th]])/25)*5) + AAMC_Raw_Data_for_FY22[[#This Row],[25th]]","v":116386},{"$f":"(((AAMC_Raw_Data_for_FY22[[#This Row],[Median]]-AAMC_Raw_Data_for_FY22[[#This Row],[25th]])/25)*10) + AAMC_Raw_Data_for_FY22[[#This Row],[25th]]","v":145415},{"$f":"(((AAMC_Raw_Data_for_FY22[[#This Row],[Median]]-AAMC_Raw_Data_for_FY22[[#This Row],[25th]])/25)*15) + AAMC_Raw_Data_for_FY22[[#This Row],[25th]]","v":174444},{"$f":"(((AAMC_Raw_Data_for_FY22[[#This Row],[Median]]-AAMC_Raw_Data_for_FY22[[#This Row],[25th]])/25)*20) + AAMC_Raw_Data_for_FY22[[#This Row],[25th]]","v":203473},232502,{"$f":"(((AAMC_Raw_Data_for_FY22[[#This Row],[75th]]-AAMC_Raw_Data_for_FY22[[#This Row],[Median]])/25)*5) + AAMC_Raw_Data_for_FY22[[#This Row],[Median]]","v":271199.2},{"$f":"(((AAMC_Raw_Data_for_FY22[[#This Row],[75th]]-AAMC_Raw_Data_for_FY22[[#This Row],[Median]])/25)*10) + AAMC_Raw_Data_for_FY22[[#This Row],[Median]]","v":309896.40000000002},{"$f":"(((AAMC_Raw_Data_for_FY22[[#This Row],[75th]]-AAMC_Raw_Data_for_FY22[[#This Row],[Median]])/25)*15) + AAMC_Raw_Data_for_FY22[[#This Row],[Median]]","v":348593.6},{"$f":"(((AAMC_Raw_Data_for_FY22[[#This Row],[75th]]-AAMC_Raw_Data_for_FY22[[#This Row],[Median]])/25)*20) + AAMC_Raw_Data_for_FY22[[#This Row],[Median]]","v":387290.8},425988,{"$f":"(((AAMC_Raw_Data_for_FY22[[#This Row],[75th]]-AAMC_Raw_Data_for_FY22[[#This Row],[Median]])/25)*30) + AAMC_Raw_Data_for_FY22[[#This Row],[Median]]","v":464685.19999999995},{"$f":"(((AAMC_Raw_Data_for_FY22[[#This Row],[75th]]-AAMC_Raw_Data_for_FY22[[#This Row],[Median]])/25)*35) + AAMC_Raw_Data_for_FY22[[#This Row],[Median]]","v":503382.39999999997},{"$f":"(((AAMC_Raw_Data_for_FY22[[#This Row],[75th]]-AAMC_Raw_Data_for_FY22[[#This Row],[Median]])/25)*40) + AAMC_Raw_Data_for_FY22[[#This Row],[Median]]","v":542079.6}]
[{"$f":"AAMC_Raw_Data_for_FY22[[#This Row],[Source]]&AAMC_Raw_Data_for_FY22[[#This Row],[Type]]&AAMC_Raw_Data_for_FY22[[#This Row],[School Subset]]&AAMC_Raw_Data_for_FY22[[#This Row],[Rank]]&AAMC_Raw_Data_for_FY22[[#This Row],[Degree]]&AAMC_Raw_Data_for_FY22[[#This Row],[Department / Specialty]]&\"L\"","v":"AAMCAcademicAllAssistantMDSurgery TotalL"},"Surgery Total",4,"AAMC","Academic","All","Assistant","MD","2021-2022",350181,{"$f":"(((AAMC_Raw_Data_for_FY22[[#This Row],[Median]]-AAMC_Raw_Data_for_FY22[[#This Row],[25th]])/25)*5) + AAMC_Raw_Data_for_FY22[[#This Row],[25th]]","v":366450.6},{"$f":"(((AAMC_Raw_Data_for_FY22[[#This Row],[Median]]-AAMC_Raw_Data_for_FY22[[#This Row],[25th]])/25)*10) + AAMC_Raw_Data_for_FY22[[#This Row],[25th]]","v":382720.2},{"$f":"(((AAMC_Raw_Data_for_FY22[[#This Row],[Median]]-AAMC_Raw_Data_for_FY22[[#This Row],[25th]])/25)*15) + AAMC_Raw_Data_for_FY22[[#This Row],[25th]]","v":398989.8},{"$f":"(((AAMC_Raw_Data_for_FY22[[#This Row],[Median]]-AAMC_Raw_Data_for_FY22[[#This Row],[25th]])/25)*20) + AAMC_Raw_Data_for_FY22[[#This Row],[25th]]","v":415259.4},431529,{"$f":"(((AAMC_Raw_Data_for_FY22[[#This Row],[75th]]-AAMC_Raw_Data_for_FY22[[#This Row],[Median]])/25)*5) + AAMC_Raw_Data_for_FY22[[#This Row],[Median]]","v":459853.2},{"$f":"(((AAMC_Raw_Data_for_FY22[[#This Row],[75th]]-AAMC_Raw_Data_for_FY22[[#This Row],[Median]])/25)*10) + AAMC_Raw_Data_for_FY22[[#This Row],[Median]]","v":488177.4},{"$f":"(((AAMC_Raw_Data_for_FY22[[#This Row],[75th]]-AAMC_Raw_Data_for_FY22[[#This Row],[Median]])/25)*15) + AAMC_Raw_Data_for_FY22[[#This Row],[Median]]","v":516501.6},{"$f":"(((AAMC_Raw_Data_for_FY22[[#This Row],[75th]]-AAMC_Raw_Data_for_FY22[[#This Row],[Median]])/25)*20) + AAMC_Raw_Data_for_FY22[[#This Row],[Median]]","v":544825.80000000005},573150,{"$f":"(((AAMC_Raw_Data_for_FY22[[#This Row],[75th]]-AAMC_Raw_Data_for_FY22[[#This Row],[Median]])/25)*30) + AAMC_Raw_Data_for_FY22[[#This Row],[Median]]","v":601474.19999999995},{"$f":"(((AAMC_Raw_Data_for_FY22[[#This Row],[75th]]-AAMC_Raw_Data_for_FY22[[#This Row],[Median]])/25)*35) + AAMC_Raw_Data_for_FY22[[#This Row],[Median]]","v":629798.40000000002},{"$f":"(((AAMC_Raw_Data_for_FY22[[#This Row],[75th]]-AAMC_Raw_Data_for_FY22[[#This Row],[Median]])/25)*40) + AAMC_Raw_Data_for_FY22[[#This Row],[Median]]","v":658122.6}]
[{"$f":"AAMC_Raw_Data_for_FY22[[#This Row],[Source]]&AAMC_Raw_Data_for_FY22[[#This Row],[Type]]&AAMC_Raw_Data_for_FY22[[#This Row],[School Subset]]&AAMC_Raw_Data_for_FY22[[#This Row],[Rank]]&AAMC_Raw_Data_for_FY22[[#This Row],[Degree]]&AAMC_Raw_Data_for_FY22[[#This Row],[Department / Specialty]]&\"L\"","v":"AAMCAcademicAllAssociateMDSurgery TotalL"},"Surgery Total",3,"AAMC","Academic","All","Associate","MD","2021-2022",428290,{"$f":"(((AAMC_Raw_Data_for_FY22[[#This Row],[Median]]-AAMC_Raw_Data_for_FY22[[#This Row],[25th]])/25)*5) + AAMC_Raw_Data_for_FY22[[#This Row],[25th]]","v":449216.2},{"$f":"(((AAMC_Raw_Data_for_FY22[[#This Row],[Median]]-AAMC_Raw_Data_for_FY22[[#This Row],[25th]])/25)*10) + AAMC_Raw_Data_for_FY22[[#This Row],[25th]]","v":470142.4},{"$f":"(((AAMC_Raw_Data_for_FY22[[#This Row],[Median]]-AAMC_Raw_Data_for_FY22[[#This Row],[25th]])/25)*15) + AAMC_Raw_Data_for_FY22[[#This Row],[25th]]","v":491068.6},{"$f":"(((AAMC_Raw_Data_for_FY22[[#This Row],[Median]]-AAMC_Raw_Data_for_FY22[[#This Row],[25th]])/25)*20) + AAMC_Raw_Data_for_FY22[[#This Row],[25th]]","v":511994.8},532921,{"$f":"(((AAMC_Raw_Data_for_FY22[[#This Row],[75th]]-AAMC_Raw_Data_for_FY22[[#This Row],[Median]])/25)*5) + AAMC_Raw_Data_for_FY22[[#This Row],[Median]]","v":568387.80000000005},{"$f":"(((AAMC_Raw_Data_for_FY22[[#This Row],[75th]]-AAMC_Raw_Data_for_FY22[[#This Row],[Median]])/25)*10) + AAMC_Raw_Data_for_FY22[[#This Row],[Median]]","v":603854.6},{"$f":"(((AAMC_Raw_Data_for_FY22[[#This Row],[75th]]-AAMC_Raw_Data_for_FY22[[#This Row],[Median]])/25)*15) + AAMC_Raw_Data_for_FY22[[#This Row],[Median]]","v":639321.4},{"$f":"(((AAMC_Raw_Data_for_FY22[[#This Row],[75th]]-AAMC_Raw_Data_for_FY22[[#This Row],[Median]])/25)*20) + AAMC_Raw_Data_for_FY22[[#This Row],[Median]]","v":674788.2},710255,{"$f":"(((AAMC_Raw_Data_for_FY22[[#This Row],[75th]]-AAMC_Raw_Data_for_FY22[[#This Row],[Median]])/25)*30) + AAMC_Raw_Data_for_FY22[[#This Row],[Median]]","v":745721.8},{"$f":"(((AAMC_Raw_Data_for_FY22[[#This Row],[75th]]-AAMC_Raw_Data_for_FY22[[#This Row],[Median]])/25)*35) + AAMC_Raw_Data_for_FY22[[#This Row],[Median]]","v":781188.6},{"$f":"(((AAMC_Raw_Data_for_FY22[[#This Row],[75th]]-AAMC_Raw_Data_for_FY22[[#This Row],[Median]])/25)*40) + AAMC_Raw_Data_for_FY22[[#This Row],[Median]]","v":816655.39999999991}]
[{"$f":"AAMC_Raw_Data_for_FY22[[#This Row],[Source]]&AAMC_Raw_Data_for_FY22[[#This Row],[Type]]&AAMC_Raw_Data_for_FY22[[#This Row],[School Subset]]&AAMC_Raw_Data_for_FY22[[#This Row],[Rank]]&AAMC_Raw_Data_for_FY22[[#This Row],[Degree]]&AAMC_Raw_Data_for_FY22[[#This Row],[Department / Specialty]]&\"L\"","v":"AAMCAcademicAllProfessorMDSurgery TotalL"},"Surgery Total",2,"AAMC","Academic","All","Professor","MD","2021-2022",455173,{"$f":"(((AAMC_Raw_Data_for_FY22[[#This Row],[Median]]-AAMC_Raw_Data_for_FY22[[#This Row],[25th]])/25)*5) + AAMC_Raw_Data_for_FY22[[#This Row],[25th]]","v":484086.2},{"$f":"(((AAMC_Raw_Data_for_FY22[[#This Row],[Median]]-AAMC_Raw_Data_for_FY22[[#This Row],[25th]])/25)*10) + AAMC_Raw_Data_for_FY22[[#This Row],[25th]]","v":512999.4},{"$f":"(((AAMC_Raw_Data_for_FY22[[#This Row],[Median]]-AAMC_Raw_Data_for_FY22[[#This Row],[25th]])/25)*15) + AAMC_Raw_Data_for_FY22[[#This Row],[25th]]","v":541912.6},{"$f":"(((AAMC_Raw_Data_for_FY22[[#This Row],[Median]]-AAMC_Raw_Data_for_FY22[[#This Row],[25th]])/25)*20) + AAMC_Raw_Data_for_FY22[[#This Row],[25th]]","v":570825.80000000005},599739,{"$f":"(((AAMC_Raw_Data_for_FY22[[#This Row],[75th]]-AAMC_Raw_Data_for_FY22[[#This Row],[Median]])/25)*5) + AAMC_Raw_Data_for_FY22[[#This Row],[Median]]","v":639824},{"$f":"(((AAMC_Raw_Data_for_FY22[[#This Row],[75th]]-AAMC_Raw_Data_for_FY22[[#This Row],[Median]])/25)*10) + AAMC_Raw_Data_for_FY22[[#This Row],[Median]]","v":679909},{"$f":"(((AAMC_Raw_Data_for_FY22[[#This Row],[75th]]-AAMC_Raw_Data_for_FY22[[#This Row],[Median]])/25)*15) + AAMC_Raw_Data_for_FY22[[#This Row],[Median]]","v":719994},{"$f":"(((AAMC_Raw_Data_for_FY22[[#This Row],[75th]]-AAMC_Raw_Data_for_FY22[[#This Row],[Median]])/25)*20) + AAMC_Raw_Data_for_FY22[[#This Row],[Median]]","v":760079},800164,{"$f":"(((AAMC_Raw_Data_for_FY22[[#This Row],[75th]]-AAMC_Raw_Data_for_FY22[[#This Row],[Median]])/25)*30) + AAMC_Raw_Data_for_FY22[[#This Row],[Median]]","v":840249},{"$f":"(((AAMC_Raw_Data_for_FY22[[#This Row],[75th]]-AAMC_Raw_Data_for_FY22[[#This Row],[Median]])/25)*35) + AAMC_Raw_Data_for_FY22[[#This Row],[Median]]","v":880334},{"$f":"(((AAMC_Raw_Data_for_FY22[[#This Row],[75th]]-AAMC_Raw_Data_for_FY22[[#This Row],[Median]])/25)*40) + AAMC_Raw_Data_for_FY22[[#This Row],[Median]]","v":920419}]
[{"$f":"AAMC_Raw_Data_for_FY22[[#This Row],[Source]]&AAMC_Raw_Data_for_FY22[[#This Row],[Type]]&AAMC_Raw_Data_for_FY22[[#This Row],[School Subset]]&AAMC_Raw_Data_for_FY22[[#This Row],[Rank]]&AAMC_Raw_Data_for_FY22[[#This Row],[Degree]]&AAMC_Raw_Data_for_FY22[[#This Row],[Department / Specialty]]&\"L\"","v":"AAMCAcademicAllChiefMDSurgery TotalL"},"Surgery Total",6,"AAMC","Academic","All","Chief","MD","2021-2022",572399,{"$f":"(((AAMC_Raw_Data_for_FY22[[#This Row],[Median]]-AAMC_Raw_Data_for_FY22[[#This Row],[25th]])/25)*5) + AAMC_Raw_Data_for_FY22[[#This Row],[25th]]","v":600182.19999999995},{"$f":"(((AAMC_Raw_Data_for_FY22[[#This Row],[Median]]-AAMC_Raw_Data_for_FY22[[#This Row],[25th]])/25)*10) + AAMC_Raw_Data_for_FY22[[#This Row],[25th]]","v":627965.4},{"$f":"(((AAMC_Raw_Data_for_FY22[[#This Row],[Median]]-AAMC_Raw_Data_for_FY22[[#This Row],[25th]])/25)*15) + AAMC_Raw_Data_for_FY22[[#This Row],[25th]]","v":655748.6},{"$f":"(((AAMC_Raw_Data_for_FY22[[#This Row],[Median]]-AAMC_Raw_Data_for_FY22[[#This Row],[25th]])/25)*20) + AAMC_Raw_Data_for_FY22[[#This Row],[25th]]","v":683531.8},711315,{"$f":"(((AAMC_Raw_Data_for_FY22[[#This Row],[75th]]-AAMC_Raw_Data_for_FY22[[#This Row],[Median]])/25)*5) + AAMC_Raw_Data_for_FY22[[#This Row],[Median]]","v":755185.4},{"$f":"(((AAMC_Raw_Data_for_FY22[[#This Row],[75th]]-AAMC_Raw_Data_for_FY22[[#This Row],[Median]])/25)*10) + AAMC_Raw_Data_for_FY22[[#This Row],[Median]]","v":799055.8},{"$f":"(((AAMC_Raw_Data_for_FY22[[#This Row],[75th]]-AAMC_Raw_Data_for_FY22[[#This Row],[Median]])/25)*15) + AAMC_Raw_Data_for_FY22[[#This Row],[Median]]","v":842926.2},{"$f":"(((AAMC_Raw_Data_for_FY22[[#This Row],[75th]]-AAMC_Raw_Data_for_FY22[[#This Row],[Median]])/25)*20) + AAMC_Raw_Data_for_FY22[[#This Row],[Median]]","v":886796.6},930667,{"$f":"(((AAMC_Raw_Data_for_FY22[[#This Row],[75th]]-AAMC_Raw_Data_for_FY22[[#This Row],[Median]])/25)*30) + AAMC_Raw_Data_for_FY22[[#This Row],[Median]]","v":974537.4},{"$f":"(((AAMC_Raw_Data_for_FY22[[#This Row],[75th]]-AAMC_Raw_Data_for_FY22[[#This Row],[Median]])/25)*35) + AAMC_Raw_Data_for_FY22[[#This Row],[Median]]","v":1018407.8},{"$f":"(((AAMC_Raw_Data_for_FY22[[#This Row],[75th]]-AAMC_Raw_Data_for_FY22[[#This Row],[Median]])/25)*40) + AAMC_Raw_Data_for_FY22[[#This Row],[Median]]","v":1062278.2}]
[{"$f":"AAMC_Raw_Data_for_FY22[[#This Row],[Source]]&AAMC_Raw_Data_for_FY22[[#This Row],[Type]]&AAMC_Raw_Data_for_FY22[[#This Row],[School Subset]]&AAMC_Raw_Data_for_FY22[[#This Row],[Rank]]&AAMC_Raw_Data_for_FY22[[#This Row],[Degree]]&AAMC_Raw_Data_for_FY22[[#This Row],[Department / Specialty]]&\"L\"","v":"AAMCAcademicAllChairMDSurgery TotalL"},"Surgery Total",1,"AAMC","Academic","All","Chair","MD","2021-2022",802450,{"$f":"(((AAMC_Raw_Data_for_FY22[[#This Row],[Median]]-AAMC_Raw_Data_for_FY22[[#This Row],[25th]])/25)*5) + AAMC_Raw_Data_for_FY22[[#This Row],[25th]]","v":841180.4},{"$f":"(((AAMC_Raw_Data_for_FY22[[#This Row],[Median]]-AAMC_Raw_Data_for_FY22[[#This Row],[25th]])/25)*10) + AAMC_Raw_Data_for_FY22[[#This Row],[25th]]","v":879910.8},{"$f":"(((AAMC_Raw_Data_for_FY22[[#This Row],[Median]]-AAMC_Raw_Data_for_FY22[[#This Row],[25th]])/25)*15) + AAMC_Raw_Data_for_FY22[[#This Row],[25th]]","v":918641.2},{"$f":"(((AAMC_Raw_Data_for_FY22[[#This Row],[Median]]-AAMC_Raw_Data_for_FY22[[#This Row],[25th]])/25)*20) + AAMC_Raw_Data_for_FY22[[#This Row],[25th]]","v":957371.6},996102,{"$f":"(((AAMC_Raw_Data_for_FY22[[#This Row],[75th]]-AAMC_Raw_Data_for_FY22[[#This Row],[Median]])/25)*5) + AAMC_Raw_Data_for_FY22[[#This Row],[Median]]","v":1055567.8},{"$f":"(((AAMC_Raw_Data_for_FY22[[#This Row],[75th]]-AAMC_Raw_Data_for_FY22[[#This Row],[Median]])/25)*10) + AAMC_Raw_Data_for_FY22[[#This Row],[Median]]","v":1115033.6000000001},{"$f":"(((AAMC_Raw_Data_for_FY22[[#This Row],[75th]]-AAMC_Raw_Data_for_FY22[[#This Row],[Median]])/25)*15) + AAMC_Raw_Data_for_FY22[[#This Row],[Median]]","v":1174499.3999999999},{"$f":"(((AAMC_Raw_Data_for_FY22[[#This Row],[75th]]-AAMC_Raw_Data_for_FY22[[#This Row],[Median]])/25)*20) + AAMC_Raw_Data_for_FY22[[#This Row],[Median]]","v":1233965.2},1293431,{"$f":"(((AAMC_Raw_Data_for_FY22[[#This Row],[75th]]-AAMC_Raw_Data_for_FY22[[#This Row],[Median]])/25)*30) + AAMC_Raw_Data_for_FY22[[#This Row],[Median]]","v":1352896.8},{"$f":"(((AAMC_Raw_Data_for_FY22[[#This Row],[75th]]-AAMC_Raw_Data_for_FY22[[#This Row],[Median]])/25)*35) + AAMC_Raw_Data_for_FY22[[#This Row],[Median]]","v":1412362.6},{"$f":"(((AAMC_Raw_Data_for_FY22[[#This Row],[75th]]-AAMC_Raw_Data_for_FY22[[#This Row],[Median]])/25)*40) + AAMC_Raw_Data_for_FY22[[#This Row],[Median]]","v":1471828.4}]
[{"$f":"AAMC_Raw_Data_for_FY22[[#This Row],[Source]]&AAMC_Raw_Data_for_FY22[[#This Row],[Type]]&AAMC_Raw_Data_for_FY22[[#This Row],[School Subset]]&AAMC_Raw_Data_for_FY22[[#This Row],[Rank]]&AAMC_Raw_Data_for_FY22[[#This Row],[Degree]]&AAMC_Raw_Data_for_FY22[[#This Row],[Department / Specialty]]&\"L\"","v":"AAMCAcademicAllInstructorMDGeneral SurgeryL"},"General Surgery",5,"AAMC","Academic","All","Instructor","MD","2021-2022",117250,{"$f":"(((AAMC_Raw_Data_for_FY22[[#This Row],[Median]]-AAMC_Raw_Data_for_FY22[[#This Row],[25th]])/25)*5) + AAMC_Raw_Data_for_FY22[[#This Row],[25th]]","v":152400},{"$f":"(((AAMC_Raw_Data_for_FY22[[#This Row],[Median]]-AAMC_Raw_Data_for_FY22[[#This Row],[25th]])/25)*10) + AAMC_Raw_Data_for_FY22[[#This Row],[25th]]","v":187550},{"$f":"(((AAMC_Raw_Data_for_FY22[[#This Row],[Median]]-AAMC_Raw_Data_for_FY22[[#This Row],[25th]])/25)*15) + AAMC_Raw_Data_for_FY22[[#This Row],[25th]]","v":222700},{"$f":"(((AAMC_Raw_Data_for_FY22[[#This Row],[Median]]-AAMC_Raw_Data_for_FY22[[#This Row],[25th]])/25)*20) + AAMC_Raw_Data_for_FY22[[#This Row],[25th]]","v":257850},293000,{"$f":"(((AAMC_Raw_Data_for_FY22[[#This Row],[75th]]-AAMC_Raw_Data_for_FY22[[#This Row],[Median]])/25)*5) + AAMC_Raw_Data_for_FY22[[#This Row],[Median]]","v":324028},{"$f":"(((AAMC_Raw_Data_for_FY22[[#This Row],[75th]]-AAMC_Raw_Data_for_FY22[[#This Row],[Median]])/25)*10) + AAMC_Raw_Data_for_FY22[[#This Row],[Median]]","v":355056},{"$f":"(((AAMC_Raw_Data_for_FY22[[#This Row],[75th]]-AAMC_Raw_Data_for_FY22[[#This Row],[Median]])/25)*15) + AAMC_Raw_Data_for_FY22[[#This Row],[Median]]","v":386084},{"$f":"(((AAMC_Raw_Data_for_FY22[[#This Row],[75th]]-AAMC_Raw_Data_for_FY22[[#This Row],[Median]])/25)*20) + AAMC_Raw_Data_for_FY22[[#This Row],[Median]]","v":417112},448140,{"$f":"(((AAMC_Raw_Data_for_FY22[[#This Row],[75th]]-AAMC_Raw_Data_for_FY22[[#This Row],[Median]])/25)*30) + AAMC_Raw_Data_for_FY22[[#This Row],[Median]]","v":479168},{"$f":"(((AAMC_Raw_Data_for_FY22[[#This Row],[75th]]-AAMC_Raw_Data_for_FY22[[#This Row],[Median]])/25)*35) + AAMC_Raw_Data_for_FY22[[#This Row],[Median]]","v":510196},{"$f":"(((AAMC_Raw_Data_for_FY22[[#This Row],[75th]]-AAMC_Raw_Data_for_FY22[[#This Row],[Median]])/25)*40) + AAMC_Raw_Data_for_FY22[[#This Row],[Median]]","v":541224}]
[{"$f":"AAMC_Raw_Data_for_FY22[[#This Row],[Source]]&AAMC_Raw_Data_for_FY22[[#This Row],[Type]]&AAMC_Raw_Data_for_FY22[[#This Row],[School Subset]]&AAMC_Raw_Data_for_FY22[[#This Row],[Rank]]&AAMC_Raw_Data_for_FY22[[#This Row],[Degree]]&AAMC_Raw_Data_for_FY22[[#This Row],[Department / Specialty]]&\"L\"","v":"AAMCAcademicAllAssistantMDGeneral SurgeryL"},"General Surgery",4,"AAMC","Academic","All","Assistant","MD","2021-2022",325000,{"$f":"(((AAMC_Raw_Data_for_FY22[[#This Row],[Median]]-AAMC_Raw_Data_for_FY22[[#This Row],[25th]])/25)*5) + AAMC_Raw_Data_for_FY22[[#This Row],[25th]]","v":334300},{"$f":"(((AAMC_Raw_Data_for_FY22[[#This Row],[Median]]-AAMC_Raw_Data_for_FY22[[#This Row],[25th]])/25)*10) + AAMC_Raw_Data_for_FY22[[#This Row],[25th]]","v":343600},{"$f":"(((AAMC_Raw_Data_for_FY22[[#This Row],[Median]]-AAMC_Raw_Data_for_FY22[[#This Row],[25th]])/25)*15) + AAMC_Raw_Data_for_FY22[[#This Row],[25th]]","v":352900},{"$f":"(((AAMC_Raw_Data_for_FY22[[#This Row],[Median]]-AAMC_Raw_Data_for_FY22[[#This Row],[25th]])/25)*20) + AAMC_Raw_Data_for_FY22[[#This Row],[25th]]","v":362200},371500,{"$f":"(((AAMC_Raw_Data_for_FY22[[#This Row],[75th]]-AAMC_Raw_Data_for_FY22[[#This Row],[Median]])/25)*5) + AAMC_Raw_Data_for_FY22[[#This Row],[Median]]","v":388294.6},{"$f":"(((AAMC_Raw_Data_for_FY22[[#This Row],[75th]]-AAMC_Raw_Data_for_FY22[[#This Row],[Median]])/25)*10) + AAMC_Raw_Data_for_FY22[[#This Row],[Median]]","v":405089.2},{"$f":"(((AAMC_Raw_Data_for_FY22[[#This Row],[75th]]-AAMC_Raw_Data_for_FY22[[#This Row],[Median]])/25)*15) + AAMC_Raw_Data_for_FY22[[#This Row],[Median]]","v":421883.8},{"$f":"(((AAMC_Raw_Data_for_FY22[[#This Row],[75th]]-AAMC_Raw_Data_for_FY22[[#This Row],[Median]])/25)*20) + AAMC_Raw_Data_for_FY22[[#This Row],[Median]]","v":438678.4},455473,{"$f":"(((AAMC_Raw_Data_for_FY22[[#This Row],[75th]]-AAMC_Raw_Data_for_FY22[[#This Row],[Median]])/25)*30) + AAMC_Raw_Data_for_FY22[[#This Row],[Median]]","v":472267.6},{"$f":"(((AAMC_Raw_Data_for_FY22[[#This Row],[75th]]-AAMC_Raw_Data_for_FY22[[#This Row],[Median]])/25)*35) + AAMC_Raw_Data_for_FY22[[#This Row],[Median]]","v":489062.2},{"$f":"(((AAMC_Raw_Data_for_FY22[[#This Row],[75th]]-AAMC_Raw_Data_for_FY22[[#This Row],[Median]])/25)*40) + AAMC_Raw_Data_for_FY22[[#This Row],[Median]]","v":505856.8}]
[{"$f":"AAMC_Raw_Data_for_FY22[[#This Row],[Source]]&AAMC_Raw_Data_for_FY22[[#This Row],[Type]]&AAMC_Raw_Data_for_FY22[[#This Row],[School Subset]]&AAMC_Raw_Data_for_FY22[[#This Row],[Rank]]&AAMC_Raw_Data_for_FY22[[#This Row],[Degree]]&AAMC_Raw_Data_for_FY22[[#This Row],[Department / Specialty]]&\"L\"","v":"AAMCAcademicAllAssociateMDGeneral SurgeryL"},"General Surgery",3,"AAMC","Academic","All","Associate","MD","2021-2022",378628,{"$f":"(((AAMC_Raw_Data_for_FY22[[#This Row],[Median]]-AAMC_Raw_Data_for_FY22[[#This Row],[25th]])/25)*5) + AAMC_Raw_Data_for_FY22[[#This Row],[25th]]","v":390646},{"$f":"(((AAMC_Raw_Data_for_FY22[[#This Row],[Median]]-AAMC_Raw_Data_for_FY22[[#This Row],[25th]])/25)*10) + AAMC_Raw_Data_for_FY22[[#This Row],[25th]]","v":402664},{"$f":"(((AAMC_Raw_Data_for_FY22[[#This Row],[Median]]-AAMC_Raw_Data_for_FY22[[#This Row],[25th]])/25)*15) + AAMC_Raw_Data_for_FY22[[#This Row],[25th]]","v":414682},{"$f":"(((AAMC_Raw_Data_for_FY22[[#This Row],[Median]]-AAMC_Raw_Data_for_FY22[[#This Row],[25th]])/25)*20) + AAMC_Raw_Data_for_FY22[[#This Row],[25th]]","v":426700},438718,{"$f":"(((AAMC_Raw_Data_for_FY22[[#This Row],[75th]]-AAMC_Raw_Data_for_FY22[[#This Row],[Median]])/25)*5) + AAMC_Raw_Data_for_FY22[[#This Row],[Median]]","v":455551.2},{"$f":"(((AAMC_Raw_Data_for_FY22[[#This Row],[75th]]-AAMC_Raw_Data_for_FY22[[#This Row],[Median]])/25)*10) + AAMC_Raw_Data_for_FY22[[#This Row],[Median]]","v":472384.4},{"$f":"(((AAMC_Raw_Data_for_FY22[[#This Row],[75th]]-AAMC_Raw_Data_for_FY22[[#This Row],[Median]])/25)*15) + AAMC_Raw_Data_for_FY22[[#This Row],[Median]]","v":489217.6},{"$f":"(((AAMC_Raw_Data_for_FY22[[#This Row],[75th]]-AAMC_Raw_Data_for_FY22[[#This Row],[Median]])/25)*20) + AAMC_Raw_Data_for_FY22[[#This Row],[Median]]","v":506050.8},522884,{"$f":"(((AAMC_Raw_Data_for_FY22[[#This Row],[75th]]-AAMC_Raw_Data_for_FY22[[#This Row],[Median]])/25)*30) + AAMC_Raw_Data_for_FY22[[#This Row],[Median]]","v":539717.19999999995},{"$f":"(((AAMC_Raw_Data_for_FY22[[#This Row],[75th]]-AAMC_Raw_Data_for_FY22[[#This Row],[Median]])/25)*35) + AAMC_Raw_Data_for_FY22[[#This Row],[Median]]","v":556550.40000000002},{"$f":"(((AAMC_Raw_Data_for_FY22[[#This Row],[75th]]-AAMC_Raw_Data_for_FY22[[#This Row],[Median]])/25)*40) + AAMC_Raw_Data_for_FY22[[#This Row],[Median]]","v":573383.6}]
[{"$f":"AAMC_Raw_Data_for_FY22[[#This Row],[Source]]&AAMC_Raw_Data_for_FY22[[#This Row],[Type]]&AAMC_Raw_Data_for_FY22[[#This Row],[School Subset]]&AAMC_Raw_Data_for_FY22[[#This Row],[Rank]]&AAMC_Raw_Data_for_FY22[[#This Row],[Degree]]&AAMC_Raw_Data_for_FY22[[#This Row],[Department / Specialty]]&\"L\"","v":"AAMCAcademicAllProfessorMDGeneral SurgeryL"},"General Surgery",2,"AAMC","Academic","All","Professor","MD","2021-2022",378362,{"$f":"(((AAMC_Raw_Data_for_FY22[[#This Row],[Median]]-AAMC_Raw_Data_for_FY22[[#This Row],[25th]])/25)*5) + AAMC_Raw_Data_for_FY22[[#This Row],[25th]]","v":400892.2},{"$f":"(((AAMC_Raw_Data_for_FY22[[#This Row],[Median]]-AAMC_Raw_Data_for_FY22[[#This Row],[25th]])/25)*10) + AAMC_Raw_Data_for_FY22[[#This Row],[25th]]","v":423422.4},{"$f":"(((AAMC_Raw_Data_for_FY22[[#This Row],[Median]]-AAMC_Raw_Data_for_FY22[[#This Row],[25th]])/25)*15) + AAMC_Raw_Data_for_FY22[[#This Row],[25th]]","v":445952.6},{"$f":"(((AAMC_Raw_Data_for_FY22[[#This Row],[Median]]-AAMC_Raw_Data_for_FY22[[#This Row],[25th]])/25)*20) + AAMC_Raw_Data_for_FY22[[#This Row],[25th]]","v":468482.8},491013,{"$f":"(((AAMC_Raw_Data_for_FY22[[#This Row],[75th]]-AAMC_Raw_Data_for_FY22[[#This Row],[Median]])/25)*5) + AAMC_Raw_Data_for_FY22[[#This Row],[Median]]","v":510169.4},{"$f":"(((AAMC_Raw_Data_for_FY22[[#This Row],[75th]]-AAMC_Raw_Data_for_FY22[[#This Row],[Median]])/25)*10) + AAMC_Raw_Data_for_FY22[[#This Row],[Median]]","v":529325.80000000005},{"$f":"(((AAMC_Raw_Data_for_FY22[[#This Row],[75th]]-AAMC_Raw_Data_for_FY22[[#This Row],[Median]])/25)*15) + AAMC_Raw_Data_for_FY22[[#This Row],[Median]]","v":548482.19999999995},{"$f":"(((AAMC_Raw_Data_for_FY22[[#This Row],[75th]]-AAMC_Raw_Data_for_FY22[[#This Row],[Median]])/25)*20) + AAMC_Raw_Data_for_FY22[[#This Row],[Median]]","v":567638.6},586795,{"$f":"(((AAMC_Raw_Data_for_FY22[[#This Row],[75th]]-AAMC_Raw_Data_for_FY22[[#This Row],[Median]])/25)*30) + AAMC_Raw_Data_for_FY22[[#This Row],[Median]]","v":605951.4},{"$f":"(((AAMC_Raw_Data_for_FY22[[#This Row],[75th]]-AAMC_Raw_Data_for_FY22[[#This Row],[Median]])/25)*35) + AAMC_Raw_Data_for_FY22[[#This Row],[Median]]","v":625107.80000000005},{"$f":"(((AAMC_Raw_Data_for_FY22[[#This Row],[75th]]-AAMC_Raw_Data_for_FY22[[#This Row],[Median]])/25)*40) + AAMC_Raw_Data_for_FY22[[#This Row],[Median]]","v":644264.19999999995}]
[{"$f":"AAMC_Raw_Data_for_FY22[[#This Row],[Source]]&AAMC_Raw_Data_for_FY22[[#This Row],[Type]]&AAMC_Raw_Data_for_FY22[[#This Row],[School Subset]]&AAMC_Raw_Data_for_FY22[[#This Row],[Rank]]&AAMC_Raw_Data_for_FY22[[#This Row],[Degree]]&AAMC_Raw_Data_for_FY22[[#This Row],[Department / Specialty]]&\"L\"","v":"AAMCAcademicAllChiefMDGeneral SurgeryL"},"General Surgery",6,"AAMC","Academic","All","Chief","MD","2021-2022",520000,{"$f":"(((AAMC_Raw_Data_for_FY22[[#This Row],[Median]]-AAMC_Raw_Data_for_FY22[[#This Row],[25th]])/25)*5) + AAMC_Raw_Data_for_FY22[[#This Row],[25th]]","v":535163.6},{"$f":"(((AAMC_Raw_Data_for_FY22[[#This Row],[Median]]-AAMC_Raw_Data_for_FY22[[#This Row],[25th]])/25)*10) + AAMC_Raw_Data_for_FY22[[#This Row],[25th]]","v":550327.19999999995},{"$f":"(((AAMC_Raw_Data_for_FY22[[#This Row],[Median]]-AAMC_Raw_Data_for_FY22[[#This Row],[25th]])/25)*15) + AAMC_Raw_Data_for_FY22[[#This Row],[25th]]","v":565490.80000000005},{"$f":"(((AAMC_Raw_Data_for_FY22[[#This Row],[Median]]-AAMC_Raw_Data_for_FY22[[#This Row],[25th]])/25)*20) + AAMC_Raw_Data_for_FY22[[#This Row],[25th]]","v":580654.4},595818,{"$f":"(((AAMC_Raw_Data_for_FY22[[#This Row],[75th]]-AAMC_Raw_Data_for_FY22[[#This Row],[Median]])/25)*5) + AAMC_Raw_Data_for_FY22[[#This Row],[Median]]","v":616299.6},{"$f":"(((AAMC_Raw_Data_for_FY22[[#This Row],[75th]]-AAMC_Raw_Data_for_FY22[[#This Row],[Median]])/25)*10) + AAMC_Raw_Data_for_FY22[[#This Row],[Median]]","v":636781.19999999995},{"$f":"(((AAMC_Raw_Data_for_FY22[[#This Row],[75th]]-AAMC_Raw_Data_for_FY22[[#This Row],[Median]])/25)*15) + AAMC_Raw_Data_for_FY22[[#This Row],[Median]]","v":657262.80000000005},{"$f":"(((AAMC_Raw_Data_for_FY22[[#This Row],[75th]]-AAMC_Raw_Data_for_FY22[[#This Row],[Median]])/25)*20) + AAMC_Raw_Data_for_FY22[[#This Row],[Median]]","v":677744.4},698226,{"$f":"(((AAMC_Raw_Data_for_FY22[[#This Row],[75th]]-AAMC_Raw_Data_for_FY22[[#This Row],[Median]])/25)*30) + AAMC_Raw_Data_for_FY22[[#This Row],[Median]]","v":718707.6},{"$f":"(((AAMC_Raw_Data_for_FY22[[#This Row],[75th]]-AAMC_Raw_Data_for_FY22[[#This Row],[Median]])/25)*35) + AAMC_Raw_Data_for_FY22[[#This Row],[Median]]","v":739189.2},{"$f":"(((AAMC_Raw_Data_for_FY22[[#This Row],[75th]]-AAMC_Raw_Data_for_FY22[[#This Row],[Median]])/25)*40) + AAMC_Raw_Data_for_FY22[[#This Row],[Median]]","v":759670.8}]
[{"$f":"AAMC_Raw_Data_for_FY22[[#This Row],[Source]]&AAMC_Raw_Data_for_FY22[[#This Row],[Type]]&AAMC_Raw_Data_for_FY22[[#This Row],[School Subset]]&AAMC_Raw_Data_for_FY22[[#This Row],[Rank]]&AAMC_Raw_Data_for_FY22[[#This Row],[Degree]]&AAMC_Raw_Data_for_FY22[[#This Row],[Department / Specialty]]&\"L\"","v":"AAMCAcademicAllChairMDGeneral SurgeryL"},"General Surgery",1,"AAMC","Academic","All","Chair","MD","2021-2022",668742,{"$f":"(((AAMC_Raw_Data_for_FY22[[#This Row],[Median]]-AAMC_Raw_Data_for_FY22[[#This Row],[25th]])/25)*5) + AAMC_Raw_Data_for_FY22[[#This Row],[25th]]","v":707938.2},{"$f":"(((AAMC_Raw_Data_for_FY22[[#This Row],[Median]]-AAMC_Raw_Data_for_FY22[[#This Row],[25th]])/25)*10) + AAMC_Raw_Data_for_FY22[[#This Row],[25th]]","v":747134.4},{"$f":"(((AAMC_Raw_Data_for_FY22[[#This Row],[Median]]-AAMC_Raw_Data_for_FY22[[#This Row],[25th]])/25)*15) + AAMC_Raw_Data_for_FY22[[#This Row],[25th]]","v":786330.6},{"$f":"(((AAMC_Raw_Data_for_FY22[[#This Row],[Median]]-AAMC_Raw_Data_for_FY22[[#This Row],[25th]])/25)*20) + AAMC_Raw_Data_for_FY22[[#This Row],[25th]]","v":825526.8},864723,{"$f":"(((AAMC_Raw_Data_for_FY22[[#This Row],[75th]]-AAMC_Raw_Data_for_FY22[[#This Row],[Median]])/25)*5) + AAMC_Raw_Data_for_FY22[[#This Row],[Median]]","v":895601.4},{"$f":"(((AAMC_Raw_Data_for_FY22[[#This Row],[75th]]-AAMC_Raw_Data_for_FY22[[#This Row],[Median]])/25)*10) + AAMC_Raw_Data_for_FY22[[#This Row],[Median]]","v":926479.8},{"$f":"(((AAMC_Raw_Data_for_FY22[[#This Row],[75th]]-AAMC_Raw_Data_for_FY22[[#This Row],[Median]])/25)*15) + AAMC_Raw_Data_for_FY22[[#This Row],[Median]]","v":957358.2},{"$f":"(((AAMC_Raw_Data_for_FY22[[#This Row],[75th]]-AAMC_Raw_Data_for_FY22[[#This Row],[Median]])/25)*20) + AAMC_Raw_Data_for_FY22[[#This Row],[Median]]","v":988236.6},1019115,{"$f":"(((AAMC_Raw_Data_for_FY22[[#This Row],[75th]]-AAMC_Raw_Data_for_FY22[[#This Row],[Median]])/25)*30) + AAMC_Raw_Data_for_FY22[[#This Row],[Median]]","v":1049993.3999999999},{"$f":"(((AAMC_Raw_Data_for_FY22[[#This Row],[75th]]-AAMC_Raw_Data_for_FY22[[#This Row],[Median]])/25)*35) + AAMC_Raw_Data_for_FY22[[#This Row],[Median]]","v":1080871.8},{"$f":"(((AAMC_Raw_Data_for_FY22[[#This Row],[75th]]-AAMC_Raw_Data_for_FY22[[#This Row],[Median]])/25)*40) + AAMC_Raw_Data_for_FY22[[#This Row],[Median]]","v":1111750.2}]
[{"$f":"AAMC_Raw_Data_for_FY22[[#This Row],[Source]]&AAMC_Raw_Data_for_FY22[[#This Row],[Type]]&AAMC_Raw_Data_for_FY22[[#This Row],[School Subset]]&AAMC_Raw_Data_for_FY22[[#This Row],[Rank]]&AAMC_Raw_Data_for_FY22[[#This Row],[Degree]]&AAMC_Raw_Data_for_FY22[[#This Row],[Department / Specialty]]&\"L\"","v":"AAMCAcademicAllInstructorMDNeurosurgeryL"},"Neurosurgery",5,"AAMC","Academic","All","Instructor","MD","2021-2022",79982,{"$f":"(((AAMC_Raw_Data_for_FY22[[#This Row],[Median]]-AAMC_Raw_Data_for_FY22[[#This Row],[25th]])/25)*5) + AAMC_Raw_Data_for_FY22[[#This Row],[25th]]","v":83987.199999999997},{"$f":"(((AAMC_Raw_Data_for_FY22[[#This Row],[Median]]-AAMC_Raw_Data_for_FY22[[#This Row],[25th]])/25)*10) + AAMC_Raw_Data_for_FY22[[#This Row],[25th]]","v":87992.4},{"$f":"(((AAMC_Raw_Data_for_FY22[[#This Row],[Median]]-AAMC_Raw_Data_for_FY22[[#This Row],[25th]])/25)*15) + AAMC_Raw_Data_for_FY22[[#This Row],[25th]]","v":91997.6},{"$f":"(((AAMC_Raw_Data_for_FY22[[#This Row],[Median]]-AAMC_Raw_Data_for_FY22[[#This Row],[25th]])/25)*20) + AAMC_Raw_Data_for_FY22[[#This Row],[25th]]","v":96002.8},100008,{"$f":"(((AAMC_Raw_Data_for_FY22[[#This Row],[75th]]-AAMC_Raw_Data_for_FY22[[#This Row],[Median]])/25)*5) + AAMC_Raw_Data_for_FY22[[#This Row],[Median]]","v":117434.2},{"$f":"(((AAMC_Raw_Data_for_FY22[[#This Row],[75th]]-AAMC_Raw_Data_for_FY22[[#This Row],[Median]])/25)*10) + AAMC_Raw_Data_for_FY22[[#This Row],[Median]]","v":134860.4},{"$f":"(((AAMC_Raw_Data_for_FY22[[#This Row],[75th]]-AAMC_Raw_Data_for_FY22[[#This Row],[Median]])/25)*15) + AAMC_Raw_Data_for_FY22[[#This Row],[Median]]","v":152286.6},{"$f":"(((AAMC_Raw_Data_for_FY22[[#This Row],[75th]]-AAMC_Raw_Data_for_FY22[[#This Row],[Median]])/25)*20) + AAMC_Raw_Data_for_FY22[[#This Row],[Median]]","v":169712.8},187139,{"$f":"(((AAMC_Raw_Data_for_FY22[[#This Row],[75th]]-AAMC_Raw_Data_for_FY22[[#This Row],[Median]])/25)*30) + AAMC_Raw_Data_for_FY22[[#This Row],[Median]]","v":204565.2},{"$f":"(((AAMC_Raw_Data_for_FY22[[#This Row],[75th]]-AAMC_Raw_Data_for_FY22[[#This Row],[Median]])/25)*35) + AAMC_Raw_Data_for_FY22[[#This Row],[Median]]","v":221991.4},{"$f":"(((AAMC_Raw_Data_for_FY22[[#This Row],[75th]]-AAMC_Raw_Data_for_FY22[[#This Row],[Median]])/25)*40) + AAMC_Raw_Data_for_FY22[[#This Row],[Median]]","v":239417.59999999998}]
[{"$f":"AAMC_Raw_Data_for_FY22[[#This Row],[Source]]&AAMC_Raw_Data_for_FY22[[#This Row],[Type]]&AAMC_Raw_Data_for_FY22[[#This Row],[School Subset]]&AAMC_Raw_Data_for_FY22[[#This Row],[Rank]]&AAMC_Raw_Data_for_FY22[[#This Row],[Degree]]&AAMC_Raw_Data_for_FY22[[#This Row],[Department / Specialty]]&\"L\"","v":"AAMCAcademicAllAssistantMDNeurosurgeryL"},"Neurosurgery",4,"AAMC","Academic","All","Assistant","MD","2021-2022",501191,{"$f":"(((AAMC_Raw_Data_for_FY22[[#This Row],[Median]]-AAMC_Raw_Data_for_FY22[[#This Row],[25th]])/25)*5) + AAMC_Raw_Data_for_FY22[[#This Row],[25th]]","v":523052.79999999999},{"$f":"(((AAMC_Raw_Data_for_FY22[[#This Row],[Median]]-AAMC_Raw_Data_for_FY22[[#This Row],[25th]])/25)*10) + AAMC_Raw_Data_for_FY22[[#This Row],[25th]]","v":544914.6},{"$f":"(((AAMC_Raw_Data_for_FY22[[#This Row],[Median]]-AAMC_Raw_Data_for_FY22[[#This Row],[25th]])/25)*15) + AAMC_Raw_Data_for_FY22[[#This Row],[25th]]","v":566776.4},{"$f":"(((AAMC_Raw_Data_for_FY22[[#This Row],[Median]]-AAMC_Raw_Data_for_FY22[[#This Row],[25th]])/25)*20) + AAMC_Raw_Data_for_FY22[[#This Row],[25th]]","v":588638.19999999995},610500,{"$f":"(((AAMC_Raw_Data_for_FY22[[#This Row],[75th]]-AAMC_Raw_Data_for_FY22[[#This Row],[Median]])/25)*5) + AAMC_Raw_Data_for_FY22[[#This Row],[Median]]","v":645861},{"$f":"(((AAMC_Raw_Data_for_FY22[[#This Row],[75th]]-AAMC_Raw_Data_for_FY22[[#This Row],[Median]])/25)*10) + AAMC_Raw_Data_for_FY22[[#This Row],[Median]]","v":681222},{"$f":"(((AAMC_Raw_Data_for_FY22[[#This Row],[75th]]-AAMC_Raw_Data_for_FY22[[#This Row],[Median]])/25)*15) + AAMC_Raw_Data_for_FY22[[#This Row],[Median]]","v":716583},{"$f":"(((AAMC_Raw_Data_for_FY22[[#This Row],[75th]]-AAMC_Raw_Data_for_FY22[[#This Row],[Median]])/25)*20) + AAMC_Raw_Data_for_FY22[[#This Row],[Median]]","v":751944},787305,{"$f":"(((AAMC_Raw_Data_for_FY22[[#This Row],[75th]]-AAMC_Raw_Data_for_FY22[[#This Row],[Median]])/25)*30) + AAMC_Raw_Data_for_FY22[[#This Row],[Median]]","v":822666},{"$f":"(((AAMC_Raw_Data_for_FY22[[#This Row],[75th]]-AAMC_Raw_Data_for_FY22[[#This Row],[Median]])/25)*35) + AAMC_Raw_Data_for_FY22[[#This Row],[Median]]","v":858027},{"$f":"(((AAMC_Raw_Data_for_FY22[[#This Row],[75th]]-AAMC_Raw_Data_for_FY22[[#This Row],[Median]])/25)*40) + AAMC_Raw_Data_for_FY22[[#This Row],[Median]]","v":893388}]
[{"$f":"AAMC_Raw_Data_for_FY22[[#This Row],[Source]]&AAMC_Raw_Data_for_FY22[[#This Row],[Type]]&AAMC_Raw_Data_for_FY22[[#This Row],[School Subset]]&AAMC_Raw_Data_for_FY22[[#This Row],[Rank]]&AAMC_Raw_Data_for_FY22[[#This Row],[Degree]]&AAMC_Raw_Data_for_FY22[[#This Row],[Department / Specialty]]&\"L\"","v":"AAMCAcademicAllAssociateMDNeurosurgeryL"},"Neurosurgery",3,"AAMC","Academic","All","Associate","MD","2021-2022",600000,{"$f":"(((AAMC_Raw_Data_for_FY22[[#This Row],[Median]]-AAMC_Raw_Data_for_FY22[[#This Row],[25th]])/25)*5) + AAMC_Raw_Data_for_FY22[[#This Row],[25th]]","v":633404.6},{"$f":"(((AAMC_Raw_Data_for_FY22[[#This Row],[Median]]-AAMC_Raw_Data_for_FY22[[#This Row],[25th]])/25)*10) + AAMC_Raw_Data_for_FY22[[#This Row],[25th]]","v":666809.19999999995},{"$f":"(((AAMC_Raw_Data_for_FY22[[#This Row],[Median]]-AAMC_Raw_Data_for_FY22[[#This Row],[25th]])/25)*15) + AAMC_Raw_Data_for_FY22[[#This Row],[25th]]","v":700213.8},{"$f":"(((AAMC_Raw_Data_for_FY22[[#This Row],[Median]]-AAMC_Raw_Data_for_FY22[[#This Row],[25th]])/25)*20) + AAMC_Raw_Data_for_FY22[[#This Row],[25th]]","v":733618.4},767023,{"$f":"(((AAMC_Raw_Data_for_FY22[[#This Row],[75th]]-AAMC_Raw_Data_for_FY22[[#This Row],[Median]])/25)*5) + AAMC_Raw_Data_for_FY22[[#This Row],[Median]]","v":808312.8},{"$f":"(((AAMC_Raw_Data_for_FY22[[#This Row],[75th]]-AAMC_Raw_Data_for_FY22[[#This Row],[Median]])/25)*10) + AAMC_Raw_Data_for_FY22[[#This Row],[Median]]","v":849602.6},{"$f":"(((AAMC_Raw_Data_for_FY22[[#This Row],[75th]]-AAMC_Raw_Data_for_FY22[[#This Row],[Median]])/25)*15) + AAMC_Raw_Data_for_FY22[[#This Row],[Median]]","v":890892.4},{"$f":"(((AAMC_Raw_Data_for_FY22[[#This Row],[75th]]-AAMC_Raw_Data_for_FY22[[#This Row],[Median]])/25)*20) + AAMC_Raw_Data_for_FY22[[#This Row],[Median]]","v":932182.2},973472,{"$f":"(((AAMC_Raw_Data_for_FY22[[#This Row],[75th]]-AAMC_Raw_Data_for_FY22[[#This Row],[Median]])/25)*30) + AAMC_Raw_Data_for_FY22[[#This Row],[Median]]","v":1014761.8},{"$f":"(((AAMC_Raw_Data_for_FY22[[#This Row],[75th]]-AAMC_Raw_Data_for_FY22[[#This Row],[Median]])/25)*35) + AAMC_Raw_Data_for_FY22[[#This Row],[Median]]","v":1056051.6000000001},{"$f":"(((AAMC_Raw_Data_for_FY22[[#This Row],[75th]]-AAMC_Raw_Data_for_FY22[[#This Row],[Median]])/25)*40) + AAMC_Raw_Data_for_FY22[[#This Row],[Median]]","v":1097341.3999999999}]
[{"$f":"AAMC_Raw_Data_for_FY22[[#This Row],[Source]]&AAMC_Raw_Data_for_FY22[[#This Row],[Type]]&AAMC_Raw_Data_for_FY22[[#This Row],[School Subset]]&AAMC_Raw_Data_for_FY22[[#This Row],[Rank]]&AAMC_Raw_Data_for_FY22[[#This Row],[Degree]]&AAMC_Raw_Data_for_FY22[[#This Row],[Department / Specialty]]&\"L\"","v":"AAMCAcademicAllProfessorMDNeurosurgeryL"},"Neurosurgery",2,"AAMC","Academic","All","Professor","MD","2021-2022",620000,{"$f":"(((AAMC_Raw_Data_for_FY22[[#This Row],[Median]]-AAMC_Raw_Data_for_FY22[[#This Row],[25th]])/25)*5) + AAMC_Raw_Data_for_FY22[[#This Row],[25th]]","v":658000},{"$f":"(((AAMC_Raw_Data_for_FY22[[#This Row],[Median]]-AAMC_Raw_Data_for_FY22[[#This Row],[25th]])/25)*10) + AAMC_Raw_Data_for_FY22[[#This Row],[25th]]","v":696000},{"$f":"(((AAMC_Raw_Data_for_FY22[[#This Row],[Median]]-AAMC_Raw_Data_for_FY22[[#This Row],[25th]])/25)*15) + AAMC_Raw_Data_for_FY22[[#This Row],[25th]]","v":734000},{"$f":"(((AAMC_Raw_Data_for_FY22[[#This Row],[Median]]-AAMC_Raw_Data_for_FY22[[#This Row],[25th]])/25)*20) + AAMC_Raw_Data_for_FY22[[#This Row],[25th]]","v":772000},810000,{"$f":"(((AAMC_Raw_Data_for_FY22[[#This Row],[75th]]-AAMC_Raw_Data_for_FY22[[#This Row],[Median]])/25)*5) + AAMC_Raw_Data_for_FY22[[#This Row],[Median]]","v":858267.2},{"$f":"(((AAMC_Raw_Data_for_FY22[[#This Row],[75th]]-AAMC_Raw_Data_for_FY22[[#This Row],[Median]])/25)*10) + AAMC_Raw_Data_for_FY22[[#This Row],[Median]]","v":906534.40000000002},{"$f":"(((AAMC_Raw_Data_for_FY22[[#This Row],[75th]]-AAMC_Raw_Data_for_FY22[[#This Row],[Median]])/25)*15) + AAMC_Raw_Data_for_FY22[[#This Row],[Median]]","v":954801.6},{"$f":"(((AAMC_Raw_Data_for_FY22[[#This Row],[75th]]-AAMC_Raw_Data_for_FY22[[#This Row],[Median]])/25)*20) + AAMC_Raw_Data_for_FY22[[#This Row],[Median]]","v":1003068.8},1051336,{"$f":"(((AAMC_Raw_Data_for_FY22[[#This Row],[75th]]-AAMC_Raw_Data_for_FY22[[#This Row],[Median]])/25)*30) + AAMC_Raw_Data_for_FY22[[#This Row],[Median]]","v":1099603.2},{"$f":"(((AAMC_Raw_Data_for_FY22[[#This Row],[75th]]-AAMC_Raw_Data_for_FY22[[#This Row],[Median]])/25)*35) + AAMC_Raw_Data_for_FY22[[#This Row],[Median]]","v":1147870.3999999999},{"$f":"(((AAMC_Raw_Data_for_FY22[[#This Row],[75th]]-AAMC_Raw_Data_for_FY22[[#This Row],[Median]])/25)*40) + AAMC_Raw_Data_for_FY22[[#This Row],[Median]]","v":1196137.6000000001}]
[{"$f":"AAMC_Raw_Data_for_FY22[[#This Row],[Source]]&AAMC_Raw_Data_for_FY22[[#This Row],[Type]]&AAMC_Raw_Data_for_FY22[[#This Row],[School Subset]]&AAMC_Raw_Data_for_FY22[[#This Row],[Rank]]&AAMC_Raw_Data_for_FY22[[#This Row],[Degree]]&AAMC_Raw_Data_for_FY22[[#This Row],[Department / Specialty]]&\"L\"","v":"AAMCAcademicAllChiefMDNeurosurgeryL"},"Neurosurgery",6,"AAMC","Academic","All","Chief","MD","2021-2022",684746,{"$f":"(((AAMC_Raw_Data_for_FY22[[#This Row],[Median]]-AAMC_Raw_Data_for_FY22[[#This Row],[25th]])/25)*5) + AAMC_Raw_Data_for_FY22[[#This Row],[25th]]","v":725665},{"$f":"(((AAMC_Raw_Data_for_FY22[[#This Row],[Median]]-AAMC_Raw_Data_for_FY22[[#This Row],[25th]])/25)*10) + AAMC_Raw_Data_for_FY22[[#This Row],[25th]]","v":766584},{"$f":"(((AAMC_Raw_Data_for_FY22[[#This Row],[Median]]-AAMC_Raw_Data_for_FY22[[#This Row],[25th]])/25)*15) + AAMC_Raw_Data_for_FY22[[#This Row],[25th]]","v":807503},{"$f":"(((AAMC_Raw_Data_for_FY22[[#This Row],[Median]]-AAMC_Raw_Data_for_FY22[[#This Row],[25th]])/25)*20) + AAMC_Raw_Data_for_FY22[[#This Row],[25th]]","v":848422},889341,{"$f":"(((AAMC_Raw_Data_for_FY22[[#This Row],[75th]]-AAMC_Raw_Data_for_FY22[[#This Row],[Median]])/25)*5) + AAMC_Raw_Data_for_FY22[[#This Row],[Median]]","v":926262.2},{"$f":"(((AAMC_Raw_Data_for_FY22[[#This Row],[75th]]-AAMC_Raw_Data_for_FY22[[#This Row],[Median]])/25)*10) + AAMC_Raw_Data_for_FY22[[#This Row],[Median]]","v":963183.4},{"$f":"(((AAMC_Raw_Data_for_FY22[[#This Row],[75th]]-AAMC_Raw_Data_for_FY22[[#This Row],[Median]])/25)*15) + AAMC_Raw_Data_for_FY22[[#This Row],[Median]]","v":1000104.6},{"$f":"(((AAMC_Raw_Data_for_FY22[[#This Row],[75th]]-AAMC_Raw_Data_for_FY22[[#This Row],[Median]])/25)*20) + AAMC_Raw_Data_for_FY22[[#This Row],[Median]]","v":1037025.8},1073947,{"$f":"(((AAMC_Raw_Data_for_FY22[[#This Row],[75th]]-AAMC_Raw_Data_for_FY22[[#This Row],[Median]])/25)*30) + AAMC_Raw_Data_for_FY22[[#This Row],[Median]]","v":1110868.2},{"$f":"(((AAMC_Raw_Data_for_FY22[[#This Row],[75th]]-AAMC_Raw_Data_for_FY22[[#This Row],[Median]])/25)*35) + AAMC_Raw_Data_for_FY22[[#This Row],[Median]]","v":1147789.3999999999},{"$f":"(((AAMC_Raw_Data_for_FY22[[#This Row],[75th]]-AAMC_Raw_Data_for_FY22[[#This Row],[Median]])/25)*40) + AAMC_Raw_Data_for_FY22[[#This Row],[Median]]","v":1184710.6000000001}]
[{"$f":"AAMC_Raw_Data_for_FY22[[#This Row],[Source]]&AAMC_Raw_Data_for_FY22[[#This Row],[Type]]&AAMC_Raw_Data_for_FY22[[#This Row],[School Subset]]&AAMC_Raw_Data_for_FY22[[#This Row],[Rank]]&AAMC_Raw_Data_for_FY22[[#This Row],[Degree]]&AAMC_Raw_Data_for_FY22[[#This Row],[Department / Specialty]]&\"L\"","v":"AAMCAcademicAllChairMDNeurosurgeryL"},"Neurosurgery",1,"AAMC","Academic","All","Chair","MD","2021-2022",1014033,{"$f":"(((AAMC_Raw_Data_for_FY22[[#This Row],[Median]]-AAMC_Raw_Data_for_FY22[[#This Row],[25th]])/25)*5) + AAMC_Raw_Data_for_FY22[[#This Row],[25th]]","v":1064328.3999999999},{"$f":"(((AAMC_Raw_Data_for_FY22[[#This Row],[Median]]-AAMC_Raw_Data_for_FY22[[#This Row],[25th]])/25)*10) + AAMC_Raw_Data_for_FY22[[#This Row],[25th]]","v":1114623.8},{"$f":"(((AAMC_Raw_Data_for_FY22[[#This Row],[Median]]-AAMC_Raw_Data_for_FY22[[#This Row],[25th]])/25)*15) + AAMC_Raw_Data_for_FY22[[#This Row],[25th]]","v":1164919.2},{"$f":"(((AAMC_Raw_Data_for_FY22[[#This Row],[Median]]-AAMC_Raw_Data_for_FY22[[#This Row],[25th]])/25)*20) + AAMC_Raw_Data_for_FY22[[#This Row],[25th]]","v":1215214.6000000001},1265510,{"$f":"(((AAMC_Raw_Data_for_FY22[[#This Row],[75th]]-AAMC_Raw_Data_for_FY22[[#This Row],[Median]])/25)*5) + AAMC_Raw_Data_for_FY22[[#This Row],[Median]]","v":1335668},{"$f":"(((AAMC_Raw_Data_for_FY22[[#This Row],[75th]]-AAMC_Raw_Data_for_FY22[[#This Row],[Median]])/25)*10) + AAMC_Raw_Data_for_FY22[[#This Row],[Median]]","v":1405826},{"$f":"(((AAMC_Raw_Data_for_FY22[[#This Row],[75th]]-AAMC_Raw_Data_for_FY22[[#This Row],[Median]])/25)*15) + AAMC_Raw_Data_for_FY22[[#This Row],[Median]]","v":1475984},{"$f":"(((AAMC_Raw_Data_for_FY22[[#This Row],[75th]]-AAMC_Raw_Data_for_FY22[[#This Row],[Median]])/25)*20) + AAMC_Raw_Data_for_FY22[[#This Row],[Median]]","v":1546142},1616300,{"$f":"(((AAMC_Raw_Data_for_FY22[[#This Row],[75th]]-AAMC_Raw_Data_for_FY22[[#This Row],[Median]])/25)*30) + AAMC_Raw_Data_for_FY22[[#This Row],[Median]]","v":1686458},{"$f":"(((AAMC_Raw_Data_for_FY22[[#This Row],[75th]]-AAMC_Raw_Data_for_FY22[[#This Row],[Median]])/25)*35) + AAMC_Raw_Data_for_FY22[[#This Row],[Median]]","v":1756616},{"$f":"(((AAMC_Raw_Data_for_FY22[[#This Row],[75th]]-AAMC_Raw_Data_for_FY22[[#This Row],[Median]])/25)*40) + AAMC_Raw_Data_for_FY22[[#This Row],[Median]]","v":1826774}]
[{"$f":"AAMC_Raw_Data_for_FY22[[#This Row],[Source]]&AAMC_Raw_Data_for_FY22[[#This Row],[Type]]&AAMC_Raw_Data_for_FY22[[#This Row],[School Subset]]&AAMC_Raw_Data_for_FY22[[#This Row],[Rank]]&AAMC_Raw_Data_for_FY22[[#This Row],[Degree]]&AAMC_Raw_Data_for_FY22[[#This Row],[Department / Specialty]]&\"L\"","v":"AAMCAcademicAllInstructorMDOrthopedic Surgery TotalL"},"Orthopedic Surgery Total",5,"AAMC","Academic","All","Instructor","MD","2021-2022",81144,{"$f":"(((AAMC_Raw_Data_for_FY22[[#This Row],[Median]]-AAMC_Raw_Data_for_FY22[[#This Row],[25th]])/25)*5) + AAMC_Raw_Data_for_FY22[[#This Row],[25th]]","v":130200.6},{"$f":"(((AAMC_Raw_Data_for_FY22[[#This Row],[Median]]-AAMC_Raw_Data_for_FY22[[#This Row],[25th]])/25)*10) + AAMC_Raw_Data_for_FY22[[#This Row],[25th]]","v":179257.2},{"$f":"(((AAMC_Raw_Data_for_FY22[[#This Row],[Median]]-AAMC_Raw_Data_for_FY22[[#This Row],[25th]])/25)*15) + AAMC_Raw_Data_for_FY22[[#This Row],[25th]]","v":228313.8},{"$f":"(((AAMC_Raw_Data_for_FY22[[#This Row],[Median]]-AAMC_Raw_Data_for_FY22[[#This Row],[25th]])/25)*20) + AAMC_Raw_Data_for_FY22[[#This Row],[25th]]","v":277370.40000000002},326427,{"$f":"(((AAMC_Raw_Data_for_FY22[[#This Row],[75th]]-AAMC_Raw_Data_for_FY22[[#This Row],[Median]])/25)*5) + AAMC_Raw_Data_for_FY22[[#This Row],[Median]]","v":361701.8},{"$f":"(((AAMC_Raw_Data_for_FY22[[#This Row],[75th]]-AAMC_Raw_Data_for_FY22[[#This Row],[Median]])/25)*10) + AAMC_Raw_Data_for_FY22[[#This Row],[Median]]","v":396976.6},{"$f":"(((AAMC_Raw_Data_for_FY22[[#This Row],[75th]]-AAMC_Raw_Data_for_FY22[[#This Row],[Median]])/25)*15) + AAMC_Raw_Data_for_FY22[[#This Row],[Median]]","v":432251.4},{"$f":"(((AAMC_Raw_Data_for_FY22[[#This Row],[75th]]-AAMC_Raw_Data_for_FY22[[#This Row],[Median]])/25)*20) + AAMC_Raw_Data_for_FY22[[#This Row],[Median]]","v":467526.2},502801,{"$f":"(((AAMC_Raw_Data_for_FY22[[#This Row],[75th]]-AAMC_Raw_Data_for_FY22[[#This Row],[Median]])/25)*30) + AAMC_Raw_Data_for_FY22[[#This Row],[Median]]","v":538075.80000000005},{"$f":"(((AAMC_Raw_Data_for_FY22[[#This Row],[75th]]-AAMC_Raw_Data_for_FY22[[#This Row],[Median]])/25)*35) + AAMC_Raw_Data_for_FY22[[#This Row],[Median]]","v":573350.6},{"$f":"(((AAMC_Raw_Data_for_FY22[[#This Row],[75th]]-AAMC_Raw_Data_for_FY22[[#This Row],[Median]])/25)*40) + AAMC_Raw_Data_for_FY22[[#This Row],[Median]]","v":608625.4}]
[{"$f":"AAMC_Raw_Data_for_FY22[[#This Row],[Source]]&AAMC_Raw_Data_for_FY22[[#This Row],[Type]]&AAMC_Raw_Data_for_FY22[[#This Row],[School Subset]]&AAMC_Raw_Data_for_FY22[[#This Row],[Rank]]&AAMC_Raw_Data_for_FY22[[#This Row],[Degree]]&AAMC_Raw_Data_for_FY22[[#This Row],[Department / Specialty]]&\"L\"","v":"AAMCAcademicAllAssistantMDOrthopedic Surgery TotalL"},"Orthopedic Surgery Total",4,"AAMC","Academic","All","Assistant","MD","2021-2022",403748,{"$f":"(((AAMC_Raw_Data_for_FY22[[#This Row],[Median]]-AAMC_Raw_Data_for_FY22[[#This Row],[25th]])/25)*5) + AAMC_Raw_Data_for_FY22[[#This Row],[25th]]","v":426936.2},{"$f":"(((AAMC_Raw_Data_for_FY22[[#This Row],[Median]]-AAMC_Raw_Data_for_FY22[[#This Row],[25th]])/25)*10) + AAMC_Raw_Data_for_FY22[[#This Row],[25th]]","v":450124.4},{"$f":"(((AAMC_Raw_Data_for_FY22[[#This Row],[Median]]-AAMC_Raw_Data_for_FY22[[#This Row],[25th]])/25)*15) + AAMC_Raw_Data_for_FY22[[#This Row],[25th]]","v":473312.6},{"$f":"(((AAMC_Raw_Data_for_FY22[[#This Row],[Median]]-AAMC_Raw_Data_for_FY22[[#This Row],[25th]])/25)*20) + AAMC_Raw_Data_for_FY22[[#This Row],[25th]]","v":496500.8},519689,{"$f":"(((AAMC_Raw_Data_for_FY22[[#This Row],[75th]]-AAMC_Raw_Data_for_FY22[[#This Row],[Median]])/25)*5) + AAMC_Raw_Data_for_FY22[[#This Row],[Median]]","v":554990.6},{"$f":"(((AAMC_Raw_Data_for_FY22[[#This Row],[75th]]-AAMC_Raw_Data_for_FY22[[#This Row],[Median]])/25)*10) + AAMC_Raw_Data_for_FY22[[#This Row],[Median]]","v":590292.19999999995},{"$f":"(((AAMC_Raw_Data_for_FY22[[#This Row],[75th]]-AAMC_Raw_Data_for_FY22[[#This Row],[Median]])/25)*15) + AAMC_Raw_Data_for_FY22[[#This Row],[Median]]","v":625593.80000000005},{"$f":"(((AAMC_Raw_Data_for_FY22[[#This Row],[75th]]-AAMC_Raw_Data_for_FY22[[#This Row],[Median]])/25)*20) + AAMC_Raw_Data_for_FY22[[#This Row],[Median]]","v":660895.4},696197,{"$f":"(((AAMC_Raw_Data_for_FY22[[#This Row],[75th]]-AAMC_Raw_Data_for_FY22[[#This Row],[Median]])/25)*30) + AAMC_Raw_Data_for_FY22[[#This Row],[Median]]","v":731498.6},{"$f":"(((AAMC_Raw_Data_for_FY22[[#This Row],[75th]]-AAMC_Raw_Data_for_FY22[[#This Row],[Median]])/25)*35) + AAMC_Raw_Data_for_FY22[[#This Row],[Median]]","v":766800.2},{"$f":"(((AAMC_Raw_Data_for_FY22[[#This Row],[75th]]-AAMC_Raw_Data_for_FY22[[#This Row],[Median]])/25)*40) + AAMC_Raw_Data_for_FY22[[#This Row],[Median]]","v":802101.8}]
[{"$f":"AAMC_Raw_Data_for_FY22[[#This Row],[Source]]&AAMC_Raw_Data_for_FY22[[#This Row],[Type]]&AAMC_Raw_Data_for_FY22[[#This Row],[School Subset]]&AAMC_Raw_Data_for_FY22[[#This Row],[Rank]]&AAMC_Raw_Data_for_FY22[[#This Row],[Degree]]&AAMC_Raw_Data_for_FY22[[#This Row],[Department / Specialty]]&\"L\"","v":"AAMCAcademicAllAssociateMDOrthopedic Surgery TotalL"},"Orthopedic Surgery Total",3,"AAMC","Academic","All","Associate","MD","2021-2022",500000,{"$f":"(((AAMC_Raw_Data_for_FY22[[#This Row],[Median]]-AAMC_Raw_Data_for_FY22[[#This Row],[25th]])/25)*5) + AAMC_Raw_Data_for_FY22[[#This Row],[25th]]","v":524517},{"$f":"(((AAMC_Raw_Data_for_FY22[[#This Row],[Median]]-AAMC_Raw_Data_for_FY22[[#This Row],[25th]])/25)*10) + AAMC_Raw_Data_for_FY22[[#This Row],[25th]]","v":549034},{"$f":"(((AAMC_Raw_Data_for_FY22[[#This Row],[Median]]-AAMC_Raw_Data_for_FY22[[#This Row],[25th]])/25)*15) + AAMC_Raw_Data_for_FY22[[#This Row],[25th]]","v":573551},{"$f":"(((AAMC_Raw_Data_for_FY22[[#This Row],[Median]]-AAMC_Raw_Data_for_FY22[[#This Row],[25th]])/25)*20) + AAMC_Raw_Data_for_FY22[[#This Row],[25th]]","v":598068},622585,{"$f":"(((AAMC_Raw_Data_for_FY22[[#This Row],[75th]]-AAMC_Raw_Data_for_FY22[[#This Row],[Median]])/25)*5) + AAMC_Raw_Data_for_FY22[[#This Row],[Median]]","v":660610.6},{"$f":"(((AAMC_Raw_Data_for_FY22[[#This Row],[75th]]-AAMC_Raw_Data_for_FY22[[#This Row],[Median]])/25)*10) + AAMC_Raw_Data_for_FY22[[#This Row],[Median]]","v":698636.2},{"$f":"(((AAMC_Raw_Data_for_FY22[[#This Row],[75th]]-AAMC_Raw_Data_for_FY22[[#This Row],[Median]])/25)*15) + AAMC_Raw_Data_for_FY22[[#This Row],[Median]]","v":736661.8},{"$f":"(((AAMC_Raw_Data_for_FY22[[#This Row],[75th]]-AAMC_Raw_Data_for_FY22[[#This Row],[Median]])/25)*20) + AAMC_Raw_Data_for_FY22[[#This Row],[Median]]","v":774687.4},812713,{"$f":"(((AAMC_Raw_Data_for_FY22[[#This Row],[75th]]-AAMC_Raw_Data_for_FY22[[#This Row],[Median]])/25)*30) + AAMC_Raw_Data_for_FY22[[#This Row],[Median]]","v":850738.6},{"$f":"(((AAMC_Raw_Data_for_FY22[[#This Row],[75th]]-AAMC_Raw_Data_for_FY22[[#This Row],[Median]])/25)*35) + AAMC_Raw_Data_for_FY22[[#This Row],[Median]]","v":888764.2},{"$f":"(((AAMC_Raw_Data_for_FY22[[#This Row],[75th]]-AAMC_Raw_Data_for_FY22[[#This Row],[Median]])/25)*40) + AAMC_Raw_Data_for_FY22[[#This Row],[Median]]","v":926789.8}]
[{"$f":"AAMC_Raw_Data_for_FY22[[#This Row],[Source]]&AAMC_Raw_Data_for_FY22[[#This Row],[Type]]&AAMC_Raw_Data_for_FY22[[#This Row],[School Subset]]&AAMC_Raw_Data_for_FY22[[#This Row],[Rank]]&AAMC_Raw_Data_for_FY22[[#This Row],[Degree]]&AAMC_Raw_Data_for_FY22[[#This Row],[Department / Specialty]]&\"L\"","v":"AAMCAcademicAllProfessorMDOrthopedic Surgery TotalL"},"Orthopedic Surgery Total",2,"AAMC","Academic","All","Professor","MD","2021-2022",478597,{"$f":"(((AAMC_Raw_Data_for_FY22[[#This Row],[Median]]-AAMC_Raw_Data_for_FY22[[#This Row],[25th]])/25)*5) + AAMC_Raw_Data_for_FY22[[#This Row],[25th]]","v":512877.6},{"$f":"(((AAMC_Raw_Data_for_FY22[[#This Row],[Median]]-AAMC_Raw_Data_for_FY22[[#This Row],[25th]])/25)*10) + AAMC_Raw_Data_for_FY22[[#This Row],[25th]]","v":547158.19999999995},{"$f":"(((AAMC_Raw_Data_for_FY22[[#This Row],[Median]]-AAMC_Raw_Data_for_FY22[[#This Row],[25th]])/25)*15) + AAMC_Raw_Data_for_FY22[[#This Row],[25th]]","v":581438.80000000005},{"$f":"(((AAMC_Raw_Data_for_FY22[[#This Row],[Median]]-AAMC_Raw_Data_for_FY22[[#This Row],[25th]])/25)*20) + AAMC_Raw_Data_for_FY22[[#This Row],[25th]]","v":615719.4},650000,{"$f":"(((AAMC_Raw_Data_for_FY22[[#This Row],[75th]]-AAMC_Raw_Data_for_FY22[[#This Row],[Median]])/25)*5) + AAMC_Raw_Data_for_FY22[[#This Row],[Median]]","v":684295.4},{"$f":"(((AAMC_Raw_Data_for_FY22[[#This Row],[75th]]-AAMC_Raw_Data_for_FY22[[#This Row],[Median]])/25)*10) + AAMC_Raw_Data_for_FY22[[#This Row],[Median]]","v":718590.8},{"$f":"(((AAMC_Raw_Data_for_FY22[[#This Row],[75th]]-AAMC_Raw_Data_for_FY22[[#This Row],[Median]])/25)*15) + AAMC_Raw_Data_for_FY22[[#This Row],[Median]]","v":752886.2},{"$f":"(((AAMC_Raw_Data_for_FY22[[#This Row],[75th]]-AAMC_Raw_Data_for_FY22[[#This Row],[Median]])/25)*20) + AAMC_Raw_Data_for_FY22[[#This Row],[Median]]","v":787181.6},821477,{"$f":"(((AAMC_Raw_Data_for_FY22[[#This Row],[75th]]-AAMC_Raw_Data_for_FY22[[#This Row],[Median]])/25)*30) + AAMC_Raw_Data_for_FY22[[#This Row],[Median]]","v":855772.4},{"$f":"(((AAMC_Raw_Data_for_FY22[[#This Row],[75th]]-AAMC_Raw_Data_for_FY22[[#This Row],[Median]])/25)*35) + AAMC_Raw_Data_for_FY22[[#This Row],[Median]]","v":890067.8},{"$f":"(((AAMC_Raw_Data_for_FY22[[#This Row],[75th]]-AAMC_Raw_Data_for_FY22[[#This Row],[Median]])/25)*40) + AAMC_Raw_Data_for_FY22[[#This Row],[Median]]","v":924363.2}]
[{"$f":"AAMC_Raw_Data_for_FY22[[#This Row],[Source]]&AAMC_Raw_Data_for_FY22[[#This Row],[Type]]&AAMC_Raw_Data_for_FY22[[#This Row],[School Subset]]&AAMC_Raw_Data_for_FY22[[#This Row],[Rank]]&AAMC_Raw_Data_for_FY22[[#This Row],[Degree]]&AAMC_Raw_Data_for_FY22[[#This Row],[Department / Specialty]]&\"L\"","v":"AAMCAcademicAllChiefMDOrthopedic Surgery TotalL"},"Orthopedic Surgery Total",6,"AAMC","Academic","All","Chief","MD","2021-2022",599736,{"$f":"(((AAMC_Raw_Data_for_FY22[[#This Row],[Median]]-AAMC_Raw_Data_for_FY22[[#This Row],[25th]])/25)*5) + AAMC_Raw_Data_for_FY22[[#This Row],[25th]]","v":630973.4},{"$f":"(((AAMC_Raw_Data_for_FY22[[#This Row],[Median]]-AAMC_Raw_Data_for_FY22[[#This Row],[25th]])/25)*10) + AAMC_Raw_Data_for_FY22[[#This Row],[25th]]","v":662210.80000000005},{"$f":"(((AAMC_Raw_Data_for_FY22[[#This Row],[Median]]-AAMC_Raw_Data_for_FY22[[#This Row],[25th]])/25)*15) + AAMC_Raw_Data_for_FY22[[#This Row],[25th]]","v":693448.2},{"$f":"(((AAMC_Raw_Data_for_FY22[[#This Row],[Median]]-AAMC_Raw_Data_for_FY22[[#This Row],[25th]])/25)*20) + AAMC_Raw_Data_for_FY22[[#This Row],[25th]]","v":724685.6},755923,{"$f":"(((AAMC_Raw_Data_for_FY22[[#This Row],[75th]]-AAMC_Raw_Data_for_FY22[[#This Row],[Median]])/25)*5) + AAMC_Raw_Data_for_FY22[[#This Row],[Median]]","v":807890},{"$f":"(((AAMC_Raw_Data_for_FY22[[#This Row],[75th]]-AAMC_Raw_Data_for_FY22[[#This Row],[Median]])/25)*10) + AAMC_Raw_Data_for_FY22[[#This Row],[Median]]","v":859857},{"$f":"(((AAMC_Raw_Data_for_FY22[[#This Row],[75th]]-AAMC_Raw_Data_for_FY22[[#This Row],[Median]])/25)*15) + AAMC_Raw_Data_for_FY22[[#This Row],[Median]]","v":911824},{"$f":"(((AAMC_Raw_Data_for_FY22[[#This Row],[75th]]-AAMC_Raw_Data_for_FY22[[#This Row],[Median]])/25)*20) + AAMC_Raw_Data_for_FY22[[#This Row],[Median]]","v":963791},1015758,{"$f":"(((AAMC_Raw_Data_for_FY22[[#This Row],[75th]]-AAMC_Raw_Data_for_FY22[[#This Row],[Median]])/25)*30) + AAMC_Raw_Data_for_FY22[[#This Row],[Median]]","v":1067725},{"$f":"(((AAMC_Raw_Data_for_FY22[[#This Row],[75th]]-AAMC_Raw_Data_for_FY22[[#This Row],[Median]])/25)*35) + AAMC_Raw_Data_for_FY22[[#This Row],[Median]]","v":1119692},{"$f":"(((AAMC_Raw_Data_for_FY22[[#This Row],[75th]]-AAMC_Raw_Data_for_FY22[[#This Row],[Median]])/25)*40) + AAMC_Raw_Data_for_FY22[[#This Row],[Median]]","v":1171659}]
[{"$f":"AAMC_Raw_Data_for_FY22[[#This Row],[Source]]&AAMC_Raw_Data_for_FY22[[#This Row],[Type]]&AAMC_Raw_Data_for_FY22[[#This Row],[School Subset]]&AAMC_Raw_Data_for_FY22[[#This Row],[Rank]]&AAMC_Raw_Data_for_FY22[[#This Row],[Degree]]&AAMC_Raw_Data_for_FY22[[#This Row],[Department / Specialty]]&\"L\"","v":"AAMCAcademicAllChairMDOrthopedic Surgery TotalL"},"Orthopedic Surgery Total",1,"AAMC","Academic","All","Chair","MD","2021-2022",875535,{"$f":"(((AAMC_Raw_Data_for_FY22[[#This Row],[Median]]-AAMC_Raw_Data_for_FY22[[#This Row],[25th]])/25)*5) + AAMC_Raw_Data_for_FY22[[#This Row],[25th]]","v":903202},{"$f":"(((AAMC_Raw_Data_for_FY22[[#This Row],[Median]]-AAMC_Raw_Data_for_FY22[[#This Row],[25th]])/25)*10) + AAMC_Raw_Data_for_FY22[[#This Row],[25th]]","v":930869},{"$f":"(((AAMC_Raw_Data_for_FY22[[#This Row],[Median]]-AAMC_Raw_Data_for_FY22[[#This Row],[25th]])/25)*15) + AAMC_Raw_Data_for_FY22[[#This Row],[25th]]","v":958536},{"$f":"(((AAMC_Raw_Data_for_FY22[[#This Row],[Median]]-AAMC_Raw_Data_for_FY22[[#This Row],[25th]])/25)*20) + AAMC_Raw_Data_for_FY22[[#This Row],[25th]]","v":986203},1013870,{"$f":"(((AAMC_Raw_Data_for_FY22[[#This Row],[75th]]-AAMC_Raw_Data_for_FY22[[#This Row],[Median]])/25)*5) + AAMC_Raw_Data_for_FY22[[#This Row],[Median]]","v":1047274.6},{"$f":"(((AAMC_Raw_Data_for_FY22[[#This Row],[75th]]-AAMC_Raw_Data_for_FY22[[#This Row],[Median]])/25)*10) + AAMC_Raw_Data_for_FY22[[#This Row],[Median]]","v":1080679.2},{"$f":"(((AAMC_Raw_Data_for_FY22[[#This Row],[75th]]-AAMC_Raw_Data_for_FY22[[#This Row],[Median]])/25)*15) + AAMC_Raw_Data_for_FY22[[#This Row],[Median]]","v":1114083.8},{"$f":"(((AAMC_Raw_Data_for_FY22[[#This Row],[75th]]-AAMC_Raw_Data_for_FY22[[#This Row],[Median]])/25)*20) + AAMC_Raw_Data_for_FY22[[#This Row],[Median]]","v":1147488.3999999999},1180893,{"$f":"(((AAMC_Raw_Data_for_FY22[[#This Row],[75th]]-AAMC_Raw_Data_for_FY22[[#This Row],[Median]])/25)*30) + AAMC_Raw_Data_for_FY22[[#This Row],[Median]]","v":1214297.6000000001},{"$f":"(((AAMC_Raw_Data_for_FY22[[#This Row],[75th]]-AAMC_Raw_Data_for_FY22[[#This Row],[Median]])/25)*35) + AAMC_Raw_Data_for_FY22[[#This Row],[Median]]","v":1247702.2},{"$f":"(((AAMC_Raw_Data_for_FY22[[#This Row],[75th]]-AAMC_Raw_Data_for_FY22[[#This Row],[Median]])/25)*40) + AAMC_Raw_Data_for_FY22[[#This Row],[Median]]","v":1281106.8}]
[{"$f":"AAMC_Raw_Data_for_FY22[[#This Row],[Source]]&AAMC_Raw_Data_for_FY22[[#This Row],[Type]]&AAMC_Raw_Data_for_FY22[[#This Row],[School Subset]]&AAMC_Raw_Data_for_FY22[[#This Row],[Rank]]&AAMC_Raw_Data_for_FY22[[#This Row],[Degree]]&AAMC_Raw_Data_for_FY22[[#This Row],[Department / Specialty]]&\"L\"","v":"AAMCAcademicAllInstructorMDOrthopedic Surgery: GeneralL"},"Orthopedic Surgery: General",5,"AAMC","Academic","All","Instructor","MD","2021-2022",76128,{"$f":"(((AAMC_Raw_Data_for_FY22[[#This Row],[Median]]-AAMC_Raw_Data_for_FY22[[#This Row],[25th]])/25)*5) + AAMC_Raw_Data_for_FY22[[#This Row],[25th]]","v":78902.399999999994},{"$f":"(((AAMC_Raw_Data_for_FY22[[#This Row],[Median]]-AAMC_Raw_Data_for_FY22[[#This Row],[25th]])/25)*10) + AAMC_Raw_Data_for_FY22[[#This Row],[25th]]","v":81676.800000000003},{"$f":"(((AAMC_Raw_Data_for_FY22[[#This Row],[Median]]-AAMC_Raw_Data_for_FY22[[#This Row],[25th]])/25)*15) + AAMC_Raw_Data_for_FY22[[#This Row],[25th]]","v":84451.199999999997},{"$f":"(((AAMC_Raw_Data_for_FY22[[#This Row],[Median]]-AAMC_Raw_Data_for_FY22[[#This Row],[25th]])/25)*20) + AAMC_Raw_Data_for_FY22[[#This Row],[25th]]","v":87225.600000000006},90000,{"$f":"(((AAMC_Raw_Data_for_FY22[[#This Row],[75th]]-AAMC_Raw_Data_for_FY22[[#This Row],[Median]])/25)*5) + AAMC_Raw_Data_for_FY22[[#This Row],[Median]]","v":146764},{"$f":"(((AAMC_Raw_Data_for_FY22[[#This Row],[75th]]-AAMC_Raw_Data_for_FY22[[#This Row],[Median]])/25)*10) + AAMC_Raw_Data_for_FY22[[#This Row],[Median]]","v":203528},{"$f":"(((AAMC_Raw_Data_for_FY22[[#This Row],[75th]]-AAMC_Raw_Data_for_FY22[[#This Row],[Median]])/25)*15) + AAMC_Raw_Data_for_FY22[[#This Row],[Median]]","v":260292},{"$f":"(((AAMC_Raw_Data_for_FY22[[#This Row],[75th]]-AAMC_Raw_Data_for_FY22[[#This Row],[Median]])/25)*20) + AAMC_Raw_Data_for_FY22[[#This Row],[Median]]","v":317056},373820,{"$f":"(((AAMC_Raw_Data_for_FY22[[#This Row],[75th]]-AAMC_Raw_Data_for_FY22[[#This Row],[Median]])/25)*30) + AAMC_Raw_Data_for_FY22[[#This Row],[Median]]","v":430584},{"$f":"(((AAMC_Raw_Data_for_FY22[[#This Row],[75th]]-AAMC_Raw_Data_for_FY22[[#This Row],[Median]])/25)*35) + AAMC_Raw_Data_for_FY22[[#This Row],[Median]]","v":487348},{"$f":"(((AAMC_Raw_Data_for_FY22[[#This Row],[75th]]-AAMC_Raw_Data_for_FY22[[#This Row],[Median]])/25)*40) + AAMC_Raw_Data_for_FY22[[#This Row],[Median]]","v":544112}]
[{"$f":"AAMC_Raw_Data_for_FY22[[#This Row],[Source]]&AAMC_Raw_Data_for_FY22[[#This Row],[Type]]&AAMC_Raw_Data_for_FY22[[#This Row],[School Subset]]&AAMC_Raw_Data_for_FY22[[#This Row],[Rank]]&AAMC_Raw_Data_for_FY22[[#This Row],[Degree]]&AAMC_Raw_Data_for_FY22[[#This Row],[Department / Specialty]]&\"L\"","v":"AAMCAcademicAllAssistantMDOrthopedic Surgery: GeneralL"},"Orthopedic Surgery: General",4,"AAMC","Academic","All","Assistant","MD","2021-2022",400000,{"$f":"(((AAMC_Raw_Data_for_FY22[[#This Row],[Median]]-AAMC_Raw_Data_for_FY22[[#This Row],[25th]])/25)*5) + AAMC_Raw_Data_for_FY22[[#This Row],[25th]]","v":420204.6},{"$f":"(((AAMC_Raw_Data_for_FY22[[#This Row],[Median]]-AAMC_Raw_Data_for_FY22[[#This Row],[25th]])/25)*10) + AAMC_Raw_Data_for_FY22[[#This Row],[25th]]","v":440409.2},{"$f":"(((AAMC_Raw_Data_for_FY22[[#This Row],[Median]]-AAMC_Raw_Data_for_FY22[[#This Row],[25th]])/25)*15) + AAMC_Raw_Data_for_FY22[[#This Row],[25th]]","v":460613.8},{"$f":"(((AAMC_Raw_Data_for_FY22[[#This Row],[Median]]-AAMC_Raw_Data_for_FY22[[#This Row],[25th]])/25)*20) + AAMC_Raw_Data_for_FY22[[#This Row],[25th]]","v":480818.4},501023,{"$f":"(((AAMC_Raw_Data_for_FY22[[#This Row],[75th]]-AAMC_Raw_Data_for_FY22[[#This Row],[Median]])/25)*5) + AAMC_Raw_Data_for_FY22[[#This Row],[Median]]","v":534461.4},{"$f":"(((AAMC_Raw_Data_for_FY22[[#This Row],[75th]]-AAMC_Raw_Data_for_FY22[[#This Row],[Median]])/25)*10) + AAMC_Raw_Data_for_FY22[[#This Row],[Median]]","v":567899.80000000005},{"$f":"(((AAMC_Raw_Data_for_FY22[[#This Row],[75th]]-AAMC_Raw_Data_for_FY22[[#This Row],[Median]])/25)*15) + AAMC_Raw_Data_for_FY22[[#This Row],[Median]]","v":601338.19999999995},{"$f":"(((AAMC_Raw_Data_for_FY22[[#This Row],[75th]]-AAMC_Raw_Data_for_FY22[[#This Row],[Median]])/25)*20) + AAMC_Raw_Data_for_FY22[[#This Row],[Median]]","v":634776.6},668215,{"$f":"(((AAMC_Raw_Data_for_FY22[[#This Row],[75th]]-AAMC_Raw_Data_for_FY22[[#This Row],[Median]])/25)*30) + AAMC_Raw_Data_for_FY22[[#This Row],[Median]]","v":701653.4},{"$f":"(((AAMC_Raw_Data_for_FY22[[#This Row],[75th]]-AAMC_Raw_Data_for_FY22[[#This Row],[Median]])/25)*35) + AAMC_Raw_Data_for_FY22[[#This Row],[Median]]","v":735091.8},{"$f":"(((AAMC_Raw_Data_for_FY22[[#This Row],[75th]]-AAMC_Raw_Data_for_FY22[[#This Row],[Median]])/25)*40) + AAMC_Raw_Data_for_FY22[[#This Row],[Median]]","v":768530.2}]
[{"$f":"AAMC_Raw_Data_for_FY22[[#This Row],[Source]]&AAMC_Raw_Data_for_FY22[[#This Row],[Type]]&AAMC_Raw_Data_for_FY22[[#This Row],[School Subset]]&AAMC_Raw_Data_for_FY22[[#This Row],[Rank]]&AAMC_Raw_Data_for_FY22[[#This Row],[Degree]]&AAMC_Raw_Data_for_FY22[[#This Row],[Department / Specialty]]&\"L\"","v":"AAMCAcademicAllAssociateMDOrthopedic Surgery: GeneralL"},"Orthopedic Surgery: General",3,"AAMC","Academic","All","Associate","MD","2021-2022",490099,{"$f":"(((AAMC_Raw_Data_for_FY22[[#This Row],[Median]]-AAMC_Raw_Data_for_FY22[[#This Row],[25th]])/25)*5) + AAMC_Raw_Data_for_FY22[[#This Row],[25th]]","v":513671},{"$f":"(((AAMC_Raw_Data_for_FY22[[#This Row],[Median]]-AAMC_Raw_Data_for_FY22[[#This Row],[25th]])/25)*10) + AAMC_Raw_Data_for_FY22[[#This Row],[25th]]","v":537243},{"$f":"(((AAMC_Raw_Data_for_FY22[[#This Row],[Median]]-AAMC_Raw_Data_for_FY22[[#This Row],[25th]])/25)*15) + AAMC_Raw_Data_for_FY22[[#This Row],[25th]]","v":560815},{"$f":"(((AAMC_Raw_Data_for_FY22[[#This Row],[Median]]-AAMC_Raw_Data_for_FY22[[#This Row],[25th]])/25)*20) + AAMC_Raw_Data_for_FY22[[#This Row],[25th]]","v":584387},607959,{"$f":"(((AAMC_Raw_Data_for_FY22[[#This Row],[75th]]-AAMC_Raw_Data_for_FY22[[#This Row],[Median]])/25)*5) + AAMC_Raw_Data_for_FY22[[#This Row],[Median]]","v":646165.4},{"$f":"(((AAMC_Raw_Data_for_FY22[[#This Row],[75th]]-AAMC_Raw_Data_for_FY22[[#This Row],[Median]])/25)*10) + AAMC_Raw_Data_for_FY22[[#This Row],[Median]]","v":684371.8},{"$f":"(((AAMC_Raw_Data_for_FY22[[#This Row],[75th]]-AAMC_Raw_Data_for_FY22[[#This Row],[Median]])/25)*15) + AAMC_Raw_Data_for_FY22[[#This Row],[Median]]","v":722578.2},{"$f":"(((AAMC_Raw_Data_for_FY22[[#This Row],[75th]]-AAMC_Raw_Data_for_FY22[[#This Row],[Median]])/25)*20) + AAMC_Raw_Data_for_FY22[[#This Row],[Median]]","v":760784.6},798991,{"$f":"(((AAMC_Raw_Data_for_FY22[[#This Row],[75th]]-AAMC_Raw_Data_for_FY22[[#This Row],[Median]])/25)*30) + AAMC_Raw_Data_for_FY22[[#This Row],[Median]]","v":837197.4},{"$f":"(((AAMC_Raw_Data_for_FY22[[#This Row],[75th]]-AAMC_Raw_Data_for_FY22[[#This Row],[Median]])/25)*35) + AAMC_Raw_Data_for_FY22[[#This Row],[Median]]","v":875403.8},{"$f":"(((AAMC_Raw_Data_for_FY22[[#This Row],[75th]]-AAMC_Raw_Data_for_FY22[[#This Row],[Median]])/25)*40) + AAMC_Raw_Data_for_FY22[[#This Row],[Median]]","v":913610.2}]
[{"$f":"AAMC_Raw_Data_for_FY22[[#This Row],[Source]]&AAMC_Raw_Data_for_FY22[[#This Row],[Type]]&AAMC_Raw_Data_for_FY22[[#This Row],[School Subset]]&AAMC_Raw_Data_for_FY22[[#This Row],[Rank]]&AAMC_Raw_Data_for_FY22[[#This Row],[Degree]]&AAMC_Raw_Data_for_FY22[[#This Row],[Department / Specialty]]&\"L\"","v":"AAMCAcademicAllProfessorMDOrthopedic Surgery: GeneralL"},"Orthopedic Surgery: General",2,"AAMC","Academic","All","Professor","MD","2021-2022",475003,{"$f":"(((AAMC_Raw_Data_for_FY22[[#This Row],[Median]]-AAMC_Raw_Data_for_FY22[[#This Row],[25th]])/25)*5) + AAMC_Raw_Data_for_FY22[[#This Row],[25th]]","v":505452.6},{"$f":"(((AAMC_Raw_Data_for_FY22[[#This Row],[Median]]-AAMC_Raw_Data_for_FY22[[#This Row],[25th]])/25)*10) + AAMC_Raw_Data_for_FY22[[#This Row],[25th]]","v":535902.19999999995},{"$f":"(((AAMC_Raw_Data_for_FY22[[#This Row],[Median]]-AAMC_Raw_Data_for_FY22[[#This Row],[25th]])/25)*15) + AAMC_Raw_Data_for_FY22[[#This Row],[25th]]","v":566351.80000000005},{"$f":"(((AAMC_Raw_Data_for_FY22[[#This Row],[Median]]-AAMC_Raw_Data_for_FY22[[#This Row],[25th]])/25)*20) + AAMC_Raw_Data_for_FY22[[#This Row],[25th]]","v":596801.4},627251,{"$f":"(((AAMC_Raw_Data_for_FY22[[#This Row],[75th]]-AAMC_Raw_Data_for_FY22[[#This Row],[Median]])/25)*5) + AAMC_Raw_Data_for_FY22[[#This Row],[Median]]","v":656296.80000000005},{"$f":"(((AAMC_Raw_Data_for_FY22[[#This Row],[75th]]-AAMC_Raw_Data_for_FY22[[#This Row],[Median]])/25)*10) + AAMC_Raw_Data_for_FY22[[#This Row],[Median]]","v":685342.6},{"$f":"(((AAMC_Raw_Data_for_FY22[[#This Row],[75th]]-AAMC_Raw_Data_for_FY22[[#This Row],[Median]])/25)*15) + AAMC_Raw_Data_for_FY22[[#This Row],[Median]]","v":714388.4},{"$f":"(((AAMC_Raw_Data_for_FY22[[#This Row],[75th]]-AAMC_Raw_Data_for_FY22[[#This Row],[Median]])/25)*20) + AAMC_Raw_Data_for_FY22[[#This Row],[Median]]","v":743434.2},772480,{"$f":"(((AAMC_Raw_Data_for_FY22[[#This Row],[75th]]-AAMC_Raw_Data_for_FY22[[#This Row],[Median]])/25)*30) + AAMC_Raw_Data_for_FY22[[#This Row],[Median]]","v":801525.8},{"$f":"(((AAMC_Raw_Data_for_FY22[[#This Row],[75th]]-AAMC_Raw_Data_for_FY22[[#This Row],[Median]])/25)*35) + AAMC_Raw_Data_for_FY22[[#This Row],[Median]]","v":830571.6},{"$f":"(((AAMC_Raw_Data_for_FY22[[#This Row],[75th]]-AAMC_Raw_Data_for_FY22[[#This Row],[Median]])/25)*40) + AAMC_Raw_Data_for_FY22[[#This Row],[Median]]","v":859617.4}]
[{"$f":"AAMC_Raw_Data_for_FY22[[#This Row],[Source]]&AAMC_Raw_Data_for_FY22[[#This Row],[Type]]&AAMC_Raw_Data_for_FY22[[#This Row],[School Subset]]&AAMC_Raw_Data_for_FY22[[#This Row],[Rank]]&AAMC_Raw_Data_for_FY22[[#This Row],[Degree]]&AAMC_Raw_Data_for_FY22[[#This Row],[Department / Specialty]]&\"L\"","v":"AAMCAcademicAllChiefMDOrthopedic Surgery: GeneralL"},"Orthopedic Surgery: General",6,"AAMC","Academic","All","Chief","MD","2021-2022",654972,{"$f":"(((AAMC_Raw_Data_for_FY22[[#This Row],[Median]]-AAMC_Raw_Data_for_FY22[[#This Row],[25th]])/25)*5) + AAMC_Raw_Data_for_FY22[[#This Row],[25th]]","v":681535},{"$f":"(((AAMC_Raw_Data_for_FY22[[#This Row],[Median]]-AAMC_Raw_Data_for_FY22[[#This Row],[25th]])/25)*10) + AAMC_Raw_Data_for_FY22[[#This Row],[25th]]","v":708098},{"$f":"(((AAMC_Raw_Data_for_FY22[[#This Row],[Median]]-AAMC_Raw_Data_for_FY22[[#This Row],[25th]])/25)*15) + AAMC_Raw_Data_for_FY22[[#This Row],[25th]]","v":734661},{"$f":"(((AAMC_Raw_Data_for_FY22[[#This Row],[Median]]-AAMC_Raw_Data_for_FY22[[#This Row],[25th]])/25)*20) + AAMC_Raw_Data_for_FY22[[#This Row],[25th]]","v":761224},787787,{"$f":"(((AAMC_Raw_Data_for_FY22[[#This Row],[75th]]-AAMC_Raw_Data_for_FY22[[#This Row],[Median]])/25)*5) + AAMC_Raw_Data_for_FY22[[#This Row],[Median]]","v":882577},{"$f":"(((AAMC_Raw_Data_for_FY22[[#This Row],[75th]]-AAMC_Raw_Data_for_FY22[[#This Row],[Median]])/25)*10) + AAMC_Raw_Data_for_FY22[[#This Row],[Median]]","v":977367},{"$f":"(((AAMC_Raw_Data_for_FY22[[#This Row],[75th]]-AAMC_Raw_Data_for_FY22[[#This Row],[Median]])/25)*15) + AAMC_Raw_Data_for_FY22[[#This Row],[Median]]","v":1072157},{"$f":"(((AAMC_Raw_Data_for_FY22[[#This Row],[75th]]-AAMC_Raw_Data_for_FY22[[#This Row],[Median]])/25)*20) + AAMC_Raw_Data_for_FY22[[#This Row],[Median]]","v":1166947},1261737,{"$f":"(((AAMC_Raw_Data_for_FY22[[#This Row],[75th]]-AAMC_Raw_Data_for_FY22[[#This Row],[Median]])/25)*30) + AAMC_Raw_Data_for_FY22[[#This Row],[Median]]","v":1356527},{"$f":"(((AAMC_Raw_Data_for_FY22[[#This Row],[75th]]-AAMC_Raw_Data_for_FY22[[#This Row],[Median]])/25)*35) + AAMC_Raw_Data_for_FY22[[#This Row],[Median]]","v":1451317},{"$f":"(((AAMC_Raw_Data_for_FY22[[#This Row],[75th]]-AAMC_Raw_Data_for_FY22[[#This Row],[Median]])/25)*40) + AAMC_Raw_Data_for_FY22[[#This Row],[Median]]","v":1546107}]
[{"$f":"AAMC_Raw_Data_for_FY22[[#This Row],[Source]]&AAMC_Raw_Data_for_FY22[[#This Row],[Type]]&AAMC_Raw_Data_for_FY22[[#This Row],[School Subset]]&AAMC_Raw_Data_for_FY22[[#This Row],[Rank]]&AAMC_Raw_Data_for_FY22[[#This Row],[Degree]]&AAMC_Raw_Data_for_FY22[[#This Row],[Department / Specialty]]&\"L\"","v":"AAMCAcademicAllChairMDOrthopedic Surgery: GeneralL"},"Orthopedic Surgery: General",1,"AAMC","Academic","All","Chair","MD","2021-2022",875535,{"$f":"(((AAMC_Raw_Data_for_FY22[[#This Row],[Median]]-AAMC_Raw_Data_for_FY22[[#This Row],[25th]])/25)*5) + AAMC_Raw_Data_for_FY22[[#This Row],[25th]]","v":895059},{"$f":"(((AAMC_Raw_Data_for_FY22[[#This Row],[Median]]-AAMC_Raw_Data_for_FY22[[#This Row],[25th]])/25)*10) + AAMC_Raw_Data_for_FY22[[#This Row],[25th]]","v":914583},{"$f":"(((AAMC_Raw_Data_for_FY22[[#This Row],[Median]]-AAMC_Raw_Data_for_FY22[[#This Row],[25th]])/25)*15) + AAMC_Raw_Data_for_FY22[[#This Row],[25th]]","v":934107},{"$f":"(((AAMC_Raw_Data_for_FY22[[#This Row],[Median]]-AAMC_Raw_Data_for_FY22[[#This Row],[25th]])/25)*20) + AAMC_Raw_Data_for_FY22[[#This Row],[25th]]","v":953631},973155,{"$f":"(((AAMC_Raw_Data_for_FY22[[#This Row],[75th]]-AAMC_Raw_Data_for_FY22[[#This Row],[Median]])/25)*5) + AAMC_Raw_Data_for_FY22[[#This Row],[Median]]","v":1005172.2},{"$f":"(((AAMC_Raw_Data_for_FY22[[#This Row],[75th]]-AAMC_Raw_Data_for_FY22[[#This Row],[Median]])/25)*10) + AAMC_Raw_Data_for_FY22[[#This Row],[Median]]","v":1037189.4},{"$f":"(((AAMC_Raw_Data_for_FY22[[#This Row],[75th]]-AAMC_Raw_Data_for_FY22[[#This Row],[Median]])/25)*15) + AAMC_Raw_Data_for_FY22[[#This Row],[Median]]","v":1069206.6000000001},{"$f":"(((AAMC_Raw_Data_for_FY22[[#This Row],[75th]]-AAMC_Raw_Data_for_FY22[[#This Row],[Median]])/25)*20) + AAMC_Raw_Data_for_FY22[[#This Row],[Median]]","v":1101223.8},1133241,{"$f":"(((AAMC_Raw_Data_for_FY22[[#This Row],[75th]]-AAMC_Raw_Data_for_FY22[[#This Row],[Median]])/25)*30) + AAMC_Raw_Data_for_FY22[[#This Row],[Median]]","v":1165258.2},{"$f":"(((AAMC_Raw_Data_for_FY22[[#This Row],[75th]]-AAMC_Raw_Data_for_FY22[[#This Row],[Median]])/25)*35) + AAMC_Raw_Data_for_FY22[[#This Row],[Median]]","v":1197275.3999999999},{"$f":"(((AAMC_Raw_Data_for_FY22[[#This Row],[75th]]-AAMC_Raw_Data_for_FY22[[#This Row],[Median]])/25)*40) + AAMC_Raw_Data_for_FY22[[#This Row],[Median]]","v":1229292.6000000001}]
[{"$f":"AAMC_Raw_Data_for_FY22[[#This Row],[Source]]&AAMC_Raw_Data_for_FY22[[#This Row],[Type]]&AAMC_Raw_Data_for_FY22[[#This Row],[School Subset]]&AAMC_Raw_Data_for_FY22[[#This Row],[Rank]]&AAMC_Raw_Data_for_FY22[[#This Row],[Degree]]&AAMC_Raw_Data_for_FY22[[#This Row],[Department / Specialty]]&\"L\"","v":"AAMCAcademicAllInstructorMDOrthopedic Surgery: HandL"},"Orthopedic Surgery: Hand",5,"AAMC","Academic","All","Instructor","MD","2021-2022",null,{"$f":"(((AAMC_Raw_Data_for_FY22[[#This Row],[Median]]-AAMC_Raw_Data_for_FY22[[#This Row],[25th]])/25)*5) + AAMC_Raw_Data_for_FY22[[#This Row],[25th]]","v":0},{"$f":"(((AAMC_Raw_Data_for_FY22[[#This Row],[Median]]-AAMC_Raw_Data_for_FY22[[#This Row],[25th]])/25)*10) + AAMC_Raw_Data_for_FY22[[#This Row],[25th]]","v":0},{"$f":"(((AAMC_Raw_Data_for_FY22[[#This Row],[Median]]-AAMC_Raw_Data_for_FY22[[#This Row],[25th]])/25)*15) + AAMC_Raw_Data_for_FY22[[#This Row],[25th]]","v":0},{"$f":"(((AAMC_Raw_Data_for_FY22[[#This Row],[Median]]-AAMC_Raw_Data_for_FY22[[#This Row],[25th]])/25)*20) + AAMC_Raw_Data_for_FY22[[#This Row],[25th]]","v":0},null,{"$f":"(((AAMC_Raw_Data_for_FY22[[#This Row],[75th]]-AAMC_Raw_Data_for_FY22[[#This Row],[Median]])/25)*5) + AAMC_Raw_Data_for_FY22[[#This Row],[Median]]","v":0},{"$f":"(((AAMC_Raw_Data_for_FY22[[#This Row],[75th]]-AAMC_Raw_Data_for_FY22[[#This Row],[Median]])/25)*10) + AAMC_Raw_Data_for_FY22[[#This Row],[Median]]","v":0},{"$f":"(((AAMC_Raw_Data_for_FY22[[#This Row],[75th]]-AAMC_Raw_Data_for_FY22[[#This Row],[Median]])/25)*15) + AAMC_Raw_Data_for_FY22[[#This Row],[Median]]","v":0},{"$f":"(((AAMC_Raw_Data_for_FY22[[#This Row],[75th]]-AAMC_Raw_Data_for_FY22[[#This Row],[Median]])/25)*20) + AAMC_Raw_Data_for_FY22[[#This Row],[Median]]","v":0},null,{"$f":"(((AAMC_Raw_Data_for_FY22[[#This Row],[75th]]-AAMC_Raw_Data_for_FY22[[#This Row],[Median]])/25)*30) + AAMC_Raw_Data_for_FY22[[#This Row],[Median]]","v":0},{"$f":"(((AAMC_Raw_Data_for_FY22[[#This Row],[75th]]-AAMC_Raw_Data_for_FY22[[#This Row],[Median]])/25)*35) + AAMC_Raw_Data_for_FY22[[#This Row],[Median]]","v":0},{"$f":"(((AAMC_Raw_Data_for_FY22[[#This Row],[75th]]-AAMC_Raw_Data_for_FY22[[#This Row],[Median]])/25)*40) + AAMC_Raw_Data_for_FY22[[#This Row],[Median]]","v":0}]
[{"$f":"AAMC_Raw_Data_for_FY22[[#This Row],[Source]]&AAMC_Raw_Data_for_FY22[[#This Row],[Type]]&AAMC_Raw_Data_for_FY22[[#This Row],[School Subset]]&AAMC_Raw_Data_for_FY22[[#This Row],[Rank]]&AAMC_Raw_Data_for_FY22[[#This Row],[Degree]]&AAMC_Raw_Data_for_FY22[[#This Row],[Department / Specialty]]&\"L\"","v":"AAMCAcademicAllAssistantMDOrthopedic Surgery: HandL"},"Orthopedic Surgery: Hand",4,"AAMC","Academic","All","Assistant","MD","2021-2022",436813,{"$f":"(((AAMC_Raw_Data_for_FY22[[#This Row],[Median]]-AAMC_Raw_Data_for_FY22[[#This Row],[25th]])/25)*5) + AAMC_Raw_Data_for_FY22[[#This Row],[25th]]","v":459126.4},{"$f":"(((AAMC_Raw_Data_for_FY22[[#This Row],[Median]]-AAMC_Raw_Data_for_FY22[[#This Row],[25th]])/25)*10) + AAMC_Raw_Data_for_FY22[[#This Row],[25th]]","v":481439.8},{"$f":"(((AAMC_Raw_Data_for_FY22[[#This Row],[Median]]-AAMC_Raw_Data_for_FY22[[#This Row],[25th]])/25)*15) + AAMC_Raw_Data_for_FY22[[#This Row],[25th]]","v":503753.2},{"$f":"(((AAMC_Raw_Data_for_FY22[[#This Row],[Median]]-AAMC_Raw_Data_for_FY22[[#This Row],[25th]])/25)*20) + AAMC_Raw_Data_for_FY22[[#This Row],[25th]]","v":526066.6},548380,{"$f":"(((AAMC_Raw_Data_for_FY22[[#This Row],[75th]]-AAMC_Raw_Data_for_FY22[[#This Row],[Median]])/25)*5) + AAMC_Raw_Data_for_FY22[[#This Row],[Median]]","v":586849.80000000005},{"$f":"(((AAMC_Raw_Data_for_FY22[[#This Row],[75th]]-AAMC_Raw_Data_for_FY22[[#This Row],[Median]])/25)*10) + AAMC_Raw_Data_for_FY22[[#This Row],[Median]]","v":625319.6},{"$f":"(((AAMC_Raw_Data_for_FY22[[#This Row],[75th]]-AAMC_Raw_Data_for_FY22[[#This Row],[Median]])/25)*15) + AAMC_Raw_Data_for_FY22[[#This Row],[Median]]","v":663789.4},{"$f":"(((AAMC_Raw_Data_for_FY22[[#This Row],[75th]]-AAMC_Raw_Data_for_FY22[[#This Row],[Median]])/25)*20) + AAMC_Raw_Data_for_FY22[[#This Row],[Median]]","v":702259.19999999995},740729,{"$f":"(((AAMC_Raw_Data_for_FY22[[#This Row],[75th]]-AAMC_Raw_Data_for_FY22[[#This Row],[Median]])/25)*30) + AAMC_Raw_Data_for_FY22[[#This Row],[Median]]","v":779198.8},{"$f":"(((AAMC_Raw_Data_for_FY22[[#This Row],[75th]]-AAMC_Raw_Data_for_FY22[[#This Row],[Median]])/25)*35) + AAMC_Raw_Data_for_FY22[[#This Row],[Median]]","v":817668.6},{"$f":"(((AAMC_Raw_Data_for_FY22[[#This Row],[75th]]-AAMC_Raw_Data_for_FY22[[#This Row],[Median]])/25)*40) + AAMC_Raw_Data_for_FY22[[#This Row],[Median]]","v":856138.4}]
[{"$f":"AAMC_Raw_Data_for_FY22[[#This Row],[Source]]&AAMC_Raw_Data_for_FY22[[#This Row],[Type]]&AAMC_Raw_Data_for_FY22[[#This Row],[School Subset]]&AAMC_Raw_Data_for_FY22[[#This Row],[Rank]]&AAMC_Raw_Data_for_FY22[[#This Row],[Degree]]&AAMC_Raw_Data_for_FY22[[#This Row],[Department / Specialty]]&\"L\"","v":"AAMCAcademicAllAssociateMDOrthopedic Surgery: HandL"},"Orthopedic Surgery: Hand",3,"AAMC","Academic","All","Associate","MD","2021-2022",529390,{"$f":"(((AAMC_Raw_Data_for_FY22[[#This Row],[Median]]-AAMC_Raw_Data_for_FY22[[#This Row],[25th]])/25)*5) + AAMC_Raw_Data_for_FY22[[#This Row],[25th]]","v":550116.4},{"$f":"(((AAMC_Raw_Data_for_FY22[[#This Row],[Median]]-AAMC_Raw_Data_for_FY22[[#This Row],[25th]])/25)*10) + AAMC_Raw_Data_for_FY22[[#This Row],[25th]]","v":570842.80000000005},{"$f":"(((AAMC_Raw_Data_for_FY22[[#This Row],[Median]]-AAMC_Raw_Data_for_FY22[[#This Row],[25th]])/25)*15) + AAMC_Raw_Data_for_FY22[[#This Row],[25th]]","v":591569.19999999995},{"$f":"(((AAMC_Raw_Data_for_FY22[[#This Row],[Median]]-AAMC_Raw_Data_for_FY22[[#This Row],[25th]])/25)*20) + AAMC_Raw_Data_for_FY22[[#This Row],[25th]]","v":612295.6},633022,{"$f":"(((AAMC_Raw_Data_for_FY22[[#This Row],[75th]]-AAMC_Raw_Data_for_FY22[[#This Row],[Median]])/25)*5) + AAMC_Raw_Data_for_FY22[[#This Row],[Median]]","v":667496.19999999995},{"$f":"(((AAMC_Raw_Data_for_FY22[[#This Row],[75th]]-AAMC_Raw_Data_for_FY22[[#This Row],[Median]])/25)*10) + AAMC_Raw_Data_for_FY22[[#This Row],[Median]]","v":701970.4},{"$f":"(((AAMC_Raw_Data_for_FY22[[#This Row],[75th]]-AAMC_Raw_Data_for_FY22[[#This Row],[Median]])/25)*15) + AAMC_Raw_Data_for_FY22[[#This Row],[Median]]","v":736444.6},{"$f":"(((AAMC_Raw_Data_for_FY22[[#This Row],[75th]]-AAMC_Raw_Data_for_FY22[[#This Row],[Median]])/25)*20) + AAMC_Raw_Data_for_FY22[[#This Row],[Median]]","v":770918.8},805393,{"$f":"(((AAMC_Raw_Data_for_FY22[[#This Row],[75th]]-AAMC_Raw_Data_for_FY22[[#This Row],[Median]])/25)*30) + AAMC_Raw_Data_for_FY22[[#This Row],[Median]]","v":839867.2},{"$f":"(((AAMC_Raw_Data_for_FY22[[#This Row],[75th]]-AAMC_Raw_Data_for_FY22[[#This Row],[Median]])/25)*35) + AAMC_Raw_Data_for_FY22[[#This Row],[Median]]","v":874341.4},{"$f":"(((AAMC_Raw_Data_for_FY22[[#This Row],[75th]]-AAMC_Raw_Data_for_FY22[[#This Row],[Median]])/25)*40) + AAMC_Raw_Data_for_FY22[[#This Row],[Median]]","v":908815.6}]
[{"$f":"AAMC_Raw_Data_for_FY22[[#This Row],[Source]]&AAMC_Raw_Data_for_FY22[[#This Row],[Type]]&AAMC_Raw_Data_for_FY22[[#This Row],[School Subset]]&AAMC_Raw_Data_for_FY22[[#This Row],[Rank]]&AAMC_Raw_Data_for_FY22[[#This Row],[Degree]]&AAMC_Raw_Data_for_FY22[[#This Row],[Department / Specialty]]&\"L\"","v":"AAMCAcademicAllProfessorMDOrthopedic Surgery: HandL"},"Orthopedic Surgery: Hand",2,"AAMC","Academic","All","Professor","MD","2021-2022",503476,{"$f":"(((AAMC_Raw_Data_for_FY22[[#This Row],[Median]]-AAMC_Raw_Data_for_FY22[[#This Row],[25th]])/25)*5) + AAMC_Raw_Data_for_FY22[[#This Row],[25th]]","v":529944.6},{"$f":"(((AAMC_Raw_Data_for_FY22[[#This Row],[Median]]-AAMC_Raw_Data_for_FY22[[#This Row],[25th]])/25)*10) + AAMC_Raw_Data_for_FY22[[#This Row],[25th]]","v":556413.19999999995},{"$f":"(((AAMC_Raw_Data_for_FY22[[#This Row],[Median]]-AAMC_Raw_Data_for_FY22[[#This Row],[25th]])/25)*15) + AAMC_Raw_Data_for_FY22[[#This Row],[25th]]","v":582881.80000000005},{"$f":"(((AAMC_Raw_Data_for_FY22[[#This Row],[Median]]-AAMC_Raw_Data_for_FY22[[#This Row],[25th]])/25)*20) + AAMC_Raw_Data_for_FY22[[#This Row],[25th]]","v":609350.40000000002},635819,{"$f":"(((AAMC_Raw_Data_for_FY22[[#This Row],[75th]]-AAMC_Raw_Data_for_FY22[[#This Row],[Median]])/25)*5) + AAMC_Raw_Data_for_FY22[[#This Row],[Median]]","v":670018.4},{"$f":"(((AAMC_Raw_Data_for_FY22[[#This Row],[75th]]-AAMC_Raw_Data_for_FY22[[#This Row],[Median]])/25)*10) + AAMC_Raw_Data_for_FY22[[#This Row],[Median]]","v":704217.8},{"$f":"(((AAMC_Raw_Data_for_FY22[[#This Row],[75th]]-AAMC_Raw_Data_for_FY22[[#This Row],[Median]])/25)*15) + AAMC_Raw_Data_for_FY22[[#This Row],[Median]]","v":738417.2},{"$f":"(((AAMC_Raw_Data_for_FY22[[#This Row],[75th]]-AAMC_Raw_Data_for_FY22[[#This Row],[Median]])/25)*20) + AAMC_Raw_Data_for_FY22[[#This Row],[Median]]","v":772616.6},806816,{"$f":"(((AAMC_Raw_Data_for_FY22[[#This Row],[75th]]-AAMC_Raw_Data_for_FY22[[#This Row],[Median]])/25)*30) + AAMC_Raw_Data_for_FY22[[#This Row],[Median]]","v":841015.4},{"$f":"(((AAMC_Raw_Data_for_FY22[[#This Row],[75th]]-AAMC_Raw_Data_for_FY22[[#This Row],[Median]])/25)*35) + AAMC_Raw_Data_for_FY22[[#This Row],[Median]]","v":875214.8},{"$f":"(((AAMC_Raw_Data_for_FY22[[#This Row],[75th]]-AAMC_Raw_Data_for_FY22[[#This Row],[Median]])/25)*40) + AAMC_Raw_Data_for_FY22[[#This Row],[Median]]","v":909414.2}]
[{"$f":"AAMC_Raw_Data_for_FY22[[#This Row],[Source]]&AAMC_Raw_Data_for_FY22[[#This Row],[Type]]&AAMC_Raw_Data_for_FY22[[#This Row],[School Subset]]&AAMC_Raw_Data_for_FY22[[#This Row],[Rank]]&AAMC_Raw_Data_for_FY22[[#This Row],[Degree]]&AAMC_Raw_Data_for_FY22[[#This Row],[Department / Specialty]]&\"L\"","v":"AAMCAcademicAllChiefMDOrthopedic Surgery: HandL"},"Orthopedic Surgery: Hand",6,"AAMC","Academic","All","Chief","MD","2021-2022",687956,{"$f":"(((AAMC_Raw_Data_for_FY22[[#This Row],[Median]]-AAMC_Raw_Data_for_FY22[[#This Row],[25th]])/25)*5) + AAMC_Raw_Data_for_FY22[[#This Row],[25th]]","v":709348.2},{"$f":"(((AAMC_Raw_Data_for_FY22[[#This Row],[Median]]-AAMC_Raw_Data_for_FY22[[#This Row],[25th]])/25)*10) + AAMC_Raw_Data_for_FY22[[#This Row],[25th]]","v":730740.4},{"$f":"(((AAMC_Raw_Data_for_FY22[[#This Row],[Median]]-AAMC_Raw_Data_for_FY22[[#This Row],[25th]])/25)*15) + AAMC_Raw_Data_for_FY22[[#This Row],[25th]]","v":752132.6},{"$f":"(((AAMC_Raw_Data_for_FY22[[#This Row],[Median]]-AAMC_Raw_Data_for_FY22[[#This Row],[25th]])/25)*20) + AAMC_Raw_Data_for_FY22[[#This Row],[25th]]","v":773524.8},794917,{"$f":"(((AAMC_Raw_Data_for_FY22[[#This Row],[75th]]-AAMC_Raw_Data_for_FY22[[#This Row],[Median]])/25)*5) + AAMC_Raw_Data_for_FY22[[#This Row],[Median]]","v":822852},{"$f":"(((AAMC_Raw_Data_for_FY22[[#This Row],[75th]]-AAMC_Raw_Data_for_FY22[[#This Row],[Median]])/25)*10) + AAMC_Raw_Data_for_FY22[[#This Row],[Median]]","v":850787},{"$f":"(((AAMC_Raw_Data_for_FY22[[#This Row],[75th]]-AAMC_Raw_Data_for_FY22[[#This Row],[Median]])/25)*15) + AAMC_Raw_Data_for_FY22[[#This Row],[Median]]","v":878722},{"$f":"(((AAMC_Raw_Data_for_FY22[[#This Row],[75th]]-AAMC_Raw_Data_for_FY22[[#This Row],[Median]])/25)*20) + AAMC_Raw_Data_for_FY22[[#This Row],[Median]]","v":906657},934592,{"$f":"(((AAMC_Raw_Data_for_FY22[[#This Row],[75th]]-AAMC_Raw_Data_for_FY22[[#This Row],[Median]])/25)*30) + AAMC_Raw_Data_for_FY22[[#This Row],[Median]]","v":962527},{"$f":"(((AAMC_Raw_Data_for_FY22[[#This Row],[75th]]-AAMC_Raw_Data_for_FY22[[#This Row],[Median]])/25)*35) + AAMC_Raw_Data_for_FY22[[#This Row],[Median]]","v":990462},{"$f":"(((AAMC_Raw_Data_for_FY22[[#This Row],[75th]]-AAMC_Raw_Data_for_FY22[[#This Row],[Median]])/25)*40) + AAMC_Raw_Data_for_FY22[[#This Row],[Median]]","v":1018397}]
[{"$f":"AAMC_Raw_Data_for_FY22[[#This Row],[Source]]&AAMC_Raw_Data_for_FY22[[#This Row],[Type]]&AAMC_Raw_Data_for_FY22[[#This Row],[School Subset]]&AAMC_Raw_Data_for_FY22[[#This Row],[Rank]]&AAMC_Raw_Data_for_FY22[[#This Row],[Degree]]&AAMC_Raw_Data_for_FY22[[#This Row],[Department / Specialty]]&\"L\"","v":"AAMCAcademicAllChairMDOrthopedic Surgery: HandL"},"Orthopedic Surgery: Hand",1,"AAMC","Academic","All","Chair","MD","2021-2022",null,{"$f":"(((AAMC_Raw_Data_for_FY22[[#This Row],[Median]]-AAMC_Raw_Data_for_FY22[[#This Row],[25th]])/25)*5) + AAMC_Raw_Data_for_FY22[[#This Row],[25th]]","v":0},{"$f":"(((AAMC_Raw_Data_for_FY22[[#This Row],[Median]]-AAMC_Raw_Data_for_FY22[[#This Row],[25th]])/25)*10) + AAMC_Raw_Data_for_FY22[[#This Row],[25th]]","v":0},{"$f":"(((AAMC_Raw_Data_for_FY22[[#This Row],[Median]]-AAMC_Raw_Data_for_FY22[[#This Row],[25th]])/25)*15) + AAMC_Raw_Data_for_FY22[[#This Row],[25th]]","v":0},{"$f":"(((AAMC_Raw_Data_for_FY22[[#This Row],[Median]]-AAMC_Raw_Data_for_FY22[[#This Row],[25th]])/25)*20) + AAMC_Raw_Data_for_FY22[[#This Row],[25th]]","v":0},null,{"$f":"(((AAMC_Raw_Data_for_FY22[[#This Row],[75th]]-AAMC_Raw_Data_for_FY22[[#This Row],[Median]])/25)*5) + AAMC_Raw_Data_for_FY22[[#This Row],[Median]]","v":0},{"$f":"(((AAMC_Raw_Data_for_FY22[[#This Row],[75th]]-AAMC_Raw_Data_for_FY22[[#This Row],[Median]])/25)*10) + AAMC_Raw_Data_for_FY22[[#This Row],[Median]]","v":0},{"$f":"(((AAMC_Raw_Data_for_FY22[[#This Row],[75th]]-AAMC_Raw_Data_for_FY22[[#This Row],[Median]])/25)*15) + AAMC_Raw_Data_for_FY22[[#This Row],[Median]]","v":0},{"$f":"(((AAMC_Raw_Data_for_FY22[[#This Row],[75th]]-AAMC_Raw_Data_for_FY22[[#This Row],[Median]])/25)*20) + AAMC_Raw_Data_for_FY22[[#This Row],[Median]]","v":0},null,{"$f":"(((AAMC_Raw_Data_for_FY22[[#This Row],[75th]]-AAMC_Raw_Data_for_FY22[[#This Row],[Median]])/25)*30) + AAMC_Raw_Data_for_FY22[[#This Row],[Median]]","v":0},{"$f":"(((AAMC_Raw_Data_for_FY22[[#This Row],[75th]]-AAMC_Raw_Data_for_FY22[[#This Row],[Median]])/25)*35) + AAMC_Raw_Data_for_FY22[[#This Row],[Median]]","v":0},{"$f":"(((AAMC_Raw_Data_for_FY22[[#This Row],[75th]]-AAMC_Raw_Data_for_FY22[[#This Row],[Median]])/25)*40) + AAMC_Raw_Data_for_FY22[[#This Row],[Median]]","v":0}]
[{"$f":"AAMC_Raw_Data_for_FY22[[#This Row],[Source]]&AAMC_Raw_Data_for_FY22[[#This Row],[Type]]&AAMC_Raw_Data_for_FY22[[#This Row],[School Subset]]&AAMC_Raw_Data_for_FY22[[#This Row],[Rank]]&AAMC_Raw_Data_for_FY22[[#This Row],[Degree]]&AAMC_Raw_Data_for_FY22[[#This Row],[Department / Specialty]]&\"L\"","v":"AAMCAcademicAllInstructorMDOrthopedic Surgery: SpineL"},"Orthopedic Surgery: Spine",5,"AAMC","Academic","All","Instructor","MD","2021-2022",null,{"$f":"(((AAMC_Raw_Data_for_FY22[[#This Row],[Median]]-AAMC_Raw_Data_for_FY22[[#This Row],[25th]])/25)*5) + AAMC_Raw_Data_for_FY22[[#This Row],[25th]]","v":0},{"$f":"(((AAMC_Raw_Data_for_FY22[[#This Row],[Median]]-AAMC_Raw_Data_for_FY22[[#This Row],[25th]])/25)*10) + AAMC_Raw_Data_for_FY22[[#This Row],[25th]]","v":0},{"$f":"(((AAMC_Raw_Data_for_FY22[[#This Row],[Median]]-AAMC_Raw_Data_for_FY22[[#This Row],[25th]])/25)*15) + AAMC_Raw_Data_for_FY22[[#This Row],[25th]]","v":0},{"$f":"(((AAMC_Raw_Data_for_FY22[[#This Row],[Median]]-AAMC_Raw_Data_for_FY22[[#This Row],[25th]])/25)*20) + AAMC_Raw_Data_for_FY22[[#This Row],[25th]]","v":0},null,{"$f":"(((AAMC_Raw_Data_for_FY22[[#This Row],[75th]]-AAMC_Raw_Data_for_FY22[[#This Row],[Median]])/25)*5) + AAMC_Raw_Data_for_FY22[[#This Row],[Median]]","v":0},{"$f":"(((AAMC_Raw_Data_for_FY22[[#This Row],[75th]]-AAMC_Raw_Data_for_FY22[[#This Row],[Median]])/25)*10) + AAMC_Raw_Data_for_FY22[[#This Row],[Median]]","v":0},{"$f":"(((AAMC_Raw_Data_for_FY22[[#This Row],[75th]]-AAMC_Raw_Data_for_FY22[[#This Row],[Median]])/25)*15) + AAMC_Raw_Data_for_FY22[[#This Row],[Median]]","v":0},{"$f":"(((AAMC_Raw_Data_for_FY22[[#This Row],[75th]]-AAMC_Raw_Data_for_FY22[[#This Row],[Median]])/25)*20) + AAMC_Raw_Data_for_FY22[[#This Row],[Median]]","v":0},null,{"$f":"(((AAMC_Raw_Data_for_FY22[[#This Row],[75th]]-AAMC_Raw_Data_for_FY22[[#This Row],[Median]])/25)*30) + AAMC_Raw_Data_for_FY22[[#This Row],[Median]]","v":0},{"$f":"(((AAMC_Raw_Data_for_FY22[[#This Row],[75th]]-AAMC_Raw_Data_for_FY22[[#This Row],[Median]])/25)*35) + AAMC_Raw_Data_for_FY22[[#This Row],[Median]]","v":0},{"$f":"(((AAMC_Raw_Data_for_FY22[[#This Row],[75th]]-AAMC_Raw_Data_for_FY22[[#This Row],[Median]])/25)*40) + AAMC_Raw_Data_for_FY22[[#This Row],[Median]]","v":0}]
[{"$f":"AAMC_Raw_Data_for_FY22[[#This Row],[Source]]&AAMC_Raw_Data_for_FY22[[#This Row],[Type]]&AAMC_Raw_Data_for_FY22[[#This Row],[School Subset]]&AAMC_Raw_Data_for_FY22[[#This Row],[Rank]]&AAMC_Raw_Data_for_FY22[[#This Row],[Degree]]&AAMC_Raw_Data_for_FY22[[#This Row],[Department / Specialty]]&\"L\"","v":"AAMCAcademicAllAssistantMDOrthopedic Surgery: SpineL"},"Orthopedic Surgery: Spine",4,"AAMC","Academic","All","Assistant","MD","2021-2022",520674,{"$f":"(((AAMC_Raw_Data_for_FY22[[#This Row],[Median]]-AAMC_Raw_Data_for_FY22[[#This Row],[25th]])/25)*5) + AAMC_Raw_Data_for_FY22[[#This Row],[25th]]","v":546506.19999999995},{"$f":"(((AAMC_Raw_Data_for_FY22[[#This Row],[Median]]-AAMC_Raw_Data_for_FY22[[#This Row],[25th]])/25)*10) + AAMC_Raw_Data_for_FY22[[#This Row],[25th]]","v":572338.4},{"$f":"(((AAMC_Raw_Data_for_FY22[[#This Row],[Median]]-AAMC_Raw_Data_for_FY22[[#This Row],[25th]])/25)*15) + AAMC_Raw_Data_for_FY22[[#This Row],[25th]]","v":598170.6},{"$f":"(((AAMC_Raw_Data_for_FY22[[#This Row],[Median]]-AAMC_Raw_Data_for_FY22[[#This Row],[25th]])/25)*20) + AAMC_Raw_Data_for_FY22[[#This Row],[25th]]","v":624002.80000000005},649835,{"$f":"(((AAMC_Raw_Data_for_FY22[[#This Row],[75th]]-AAMC_Raw_Data_for_FY22[[#This Row],[Median]])/25)*5) + AAMC_Raw_Data_for_FY22[[#This Row],[Median]]","v":685536},{"$f":"(((AAMC_Raw_Data_for_FY22[[#This Row],[75th]]-AAMC_Raw_Data_for_FY22[[#This Row],[Median]])/25)*10) + AAMC_Raw_Data_for_FY22[[#This Row],[Median]]","v":721237},{"$f":"(((AAMC_Raw_Data_for_FY22[[#This Row],[75th]]-AAMC_Raw_Data_for_FY22[[#This Row],[Median]])/25)*15) + AAMC_Raw_Data_for_FY22[[#This Row],[Median]]","v":756938},{"$f":"(((AAMC_Raw_Data_for_FY22[[#This Row],[75th]]-AAMC_Raw_Data_for_FY22[[#This Row],[Median]])/25)*20) + AAMC_Raw_Data_for_FY22[[#This Row],[Median]]","v":792639},828340,{"$f":"(((AAMC_Raw_Data_for_FY22[[#This Row],[75th]]-AAMC_Raw_Data_for_FY22[[#This Row],[Median]])/25)*30) + AAMC_Raw_Data_for_FY22[[#This Row],[Median]]","v":864041},{"$f":"(((AAMC_Raw_Data_for_FY22[[#This Row],[75th]]-AAMC_Raw_Data_for_FY22[[#This Row],[Median]])/25)*35) + AAMC_Raw_Data_for_FY22[[#This Row],[Median]]","v":899742},{"$f":"(((AAMC_Raw_Data_for_FY22[[#This Row],[75th]]-AAMC_Raw_Data_for_FY22[[#This Row],[Median]])/25)*40) + AAMC_Raw_Data_for_FY22[[#This Row],[Median]]","v":935443}]
[{"$f":"AAMC_Raw_Data_for_FY22[[#This Row],[Source]]&AAMC_Raw_Data_for_FY22[[#This Row],[Type]]&AAMC_Raw_Data_for_FY22[[#This Row],[School Subset]]&AAMC_Raw_Data_for_FY22[[#This Row],[Rank]]&AAMC_Raw_Data_for_FY22[[#This Row],[Degree]]&AAMC_Raw_Data_for_FY22[[#This Row],[Department / Specialty]]&\"L\"","v":"AAMCAcademicAllAssociateMDOrthopedic Surgery: SpineL"},"Orthopedic Surgery: Spine",3,"AAMC","Academic","All","Associate","MD","2021-2022",611198,{"$f":"(((AAMC_Raw_Data_for_FY22[[#This Row],[Median]]-AAMC_Raw_Data_for_FY22[[#This Row],[25th]])/25)*5) + AAMC_Raw_Data_for_FY22[[#This Row],[25th]]","v":636136.4},{"$f":"(((AAMC_Raw_Data_for_FY22[[#This Row],[Median]]-AAMC_Raw_Data_for_FY22[[#This Row],[25th]])/25)*10) + AAMC_Raw_Data_for_FY22[[#This Row],[25th]]","v":661074.80000000005},{"$f":"(((AAMC_Raw_Data_for_FY22[[#This Row],[Median]]-AAMC_Raw_Data_for_FY22[[#This Row],[25th]])/25)*15) + AAMC_Raw_Data_for_FY22[[#This Row],[25th]]","v":686013.2},{"$f":"(((AAMC_Raw_Data_for_FY22[[#This Row],[Median]]-AAMC_Raw_Data_for_FY22[[#This Row],[25th]])/25)*20) + AAMC_Raw_Data_for_FY22[[#This Row],[25th]]","v":710951.6},735890,{"$f":"(((AAMC_Raw_Data_for_FY22[[#This Row],[75th]]-AAMC_Raw_Data_for_FY22[[#This Row],[Median]])/25)*5) + AAMC_Raw_Data_for_FY22[[#This Row],[Median]]","v":771277},{"$f":"(((AAMC_Raw_Data_for_FY22[[#This Row],[75th]]-AAMC_Raw_Data_for_FY22[[#This Row],[Median]])/25)*10) + AAMC_Raw_Data_for_FY22[[#This Row],[Median]]","v":806664},{"$f":"(((AAMC_Raw_Data_for_FY22[[#This Row],[75th]]-AAMC_Raw_Data_for_FY22[[#This Row],[Median]])/25)*15) + AAMC_Raw_Data_for_FY22[[#This Row],[Median]]","v":842051},{"$f":"(((AAMC_Raw_Data_for_FY22[[#This Row],[75th]]-AAMC_Raw_Data_for_FY22[[#This Row],[Median]])/25)*20) + AAMC_Raw_Data_for_FY22[[#This Row],[Median]]","v":877438},912825,{"$f":"(((AAMC_Raw_Data_for_FY22[[#This Row],[75th]]-AAMC_Raw_Data_for_FY22[[#This Row],[Median]])/25)*30) + AAMC_Raw_Data_for_FY22[[#This Row],[Median]]","v":948212},{"$f":"(((AAMC_Raw_Data_for_FY22[[#This Row],[75th]]-AAMC_Raw_Data_for_FY22[[#This Row],[Median]])/25)*35) + AAMC_Raw_Data_for_FY22[[#This Row],[Median]]","v":983599},{"$f":"(((AAMC_Raw_Data_for_FY22[[#This Row],[75th]]-AAMC_Raw_Data_for_FY22[[#This Row],[Median]])/25)*40) + AAMC_Raw_Data_for_FY22[[#This Row],[Median]]","v":1018986}]
[{"$f":"AAMC_Raw_Data_for_FY22[[#This Row],[Source]]&AAMC_Raw_Data_for_FY22[[#This Row],[Type]]&AAMC_Raw_Data_for_FY22[[#This Row],[School Subset]]&AAMC_Raw_Data_for_FY22[[#This Row],[Rank]]&AAMC_Raw_Data_for_FY22[[#This Row],[Degree]]&AAMC_Raw_Data_for_FY22[[#This Row],[Department / Specialty]]&\"L\"","v":"AAMCAcademicAllProfessorMDOrthopedic Surgery: SpineL"},"Orthopedic Surgery: Spine",2,"AAMC","Academic","All","Professor","MD","2021-2022",677754,{"$f":"(((AAMC_Raw_Data_for_FY22[[#This Row],[Median]]-AAMC_Raw_Data_for_FY22[[#This Row],[25th]])/25)*5) + AAMC_Raw_Data_for_FY22[[#This Row],[25th]]","v":714535.4},{"$f":"(((AAMC_Raw_Data_for_FY22[[#This Row],[Median]]-AAMC_Raw_Data_for_FY22[[#This Row],[25th]])/25)*10) + AAMC_Raw_Data_for_FY22[[#This Row],[25th]]","v":751316.8},{"$f":"(((AAMC_Raw_Data_for_FY22[[#This Row],[Median]]-AAMC_Raw_Data_for_FY22[[#This Row],[25th]])/25)*15) + AAMC_Raw_Data_for_FY22[[#This Row],[25th]]","v":788098.2},{"$f":"(((AAMC_Raw_Data_for_FY22[[#This Row],[Median]]-AAMC_Raw_Data_for_FY22[[#This Row],[25th]])/25)*20) + AAMC_Raw_Data_for_FY22[[#This Row],[25th]]","v":824879.6},861661,{"$f":"(((AAMC_Raw_Data_for_FY22[[#This Row],[75th]]-AAMC_Raw_Data_for_FY22[[#This Row],[Median]])/25)*5) + AAMC_Raw_Data_for_FY22[[#This Row],[Median]]","v":895052.6},{"$f":"(((AAMC_Raw_Data_for_FY22[[#This Row],[75th]]-AAMC_Raw_Data_for_FY22[[#This Row],[Median]])/25)*10) + AAMC_Raw_Data_for_FY22[[#This Row],[Median]]","v":928444.2},{"$f":"(((AAMC_Raw_Data_for_FY22[[#This Row],[75th]]-AAMC_Raw_Data_for_FY22[[#This Row],[Median]])/25)*15) + AAMC_Raw_Data_for_FY22[[#This Row],[Median]]","v":961835.8},{"$f":"(((AAMC_Raw_Data_for_FY22[[#This Row],[75th]]-AAMC_Raw_Data_for_FY22[[#This Row],[Median]])/25)*20) + AAMC_Raw_Data_for_FY22[[#This Row],[Median]]","v":995227.4},1028619,{"$f":"(((AAMC_Raw_Data_for_FY22[[#This Row],[75th]]-AAMC_Raw_Data_for_FY22[[#This Row],[Median]])/25)*30) + AAMC_Raw_Data_for_FY22[[#This Row],[Median]]","v":1062010.6000000001},{"$f":"(((AAMC_Raw_Data_for_FY22[[#This Row],[75th]]-AAMC_Raw_Data_for_FY22[[#This Row],[Median]])/25)*35) + AAMC_Raw_Data_for_FY22[[#This Row],[Median]]","v":1095402.2},{"$f":"(((AAMC_Raw_Data_for_FY22[[#This Row],[75th]]-AAMC_Raw_Data_for_FY22[[#This Row],[Median]])/25)*40) + AAMC_Raw_Data_for_FY22[[#This Row],[Median]]","v":1128793.8}]
[{"$f":"AAMC_Raw_Data_for_FY22[[#This Row],[Source]]&AAMC_Raw_Data_for_FY22[[#This Row],[Type]]&AAMC_Raw_Data_for_FY22[[#This Row],[School Subset]]&AAMC_Raw_Data_for_FY22[[#This Row],[Rank]]&AAMC_Raw_Data_for_FY22[[#This Row],[Degree]]&AAMC_Raw_Data_for_FY22[[#This Row],[Department / Specialty]]&\"L\"","v":"AAMCAcademicAllChiefMDOrthopedic Surgery: SpineL"},"Orthopedic Surgery: Spine",6,"AAMC","Academic","All","Chief","MD","2021-2022",990511,{"$f":"(((AAMC_Raw_Data_for_FY22[[#This Row],[Median]]-AAMC_Raw_Data_for_FY22[[#This Row],[25th]])/25)*5) + AAMC_Raw_Data_for_FY22[[#This Row],[25th]]","v":996210.8},{"$f":"(((AAMC_Raw_Data_for_FY22[[#This Row],[Median]]-AAMC_Raw_Data_for_FY22[[#This Row],[25th]])/25)*10) + AAMC_Raw_Data_for_FY22[[#This Row],[25th]]","v":1001910.6},{"$f":"(((AAMC_Raw_Data_for_FY22[[#This Row],[Median]]-AAMC_Raw_Data_for_FY22[[#This Row],[25th]])/25)*15) + AAMC_Raw_Data_for_FY22[[#This Row],[25th]]","v":1007610.4},{"$f":"(((AAMC_Raw_Data_for_FY22[[#This Row],[Median]]-AAMC_Raw_Data_for_FY22[[#This Row],[25th]])/25)*20) + AAMC_Raw_Data_for_FY22[[#This Row],[25th]]","v":1013310.2},1019010,{"$f":"(((AAMC_Raw_Data_for_FY22[[#This Row],[75th]]-AAMC_Raw_Data_for_FY22[[#This Row],[Median]])/25)*5) + AAMC_Raw_Data_for_FY22[[#This Row],[Median]]","v":1027312.2},{"$f":"(((AAMC_Raw_Data_for_FY22[[#This Row],[75th]]-AAMC_Raw_Data_for_FY22[[#This Row],[Median]])/25)*10) + AAMC_Raw_Data_for_FY22[[#This Row],[Median]]","v":1035614.4},{"$f":"(((AAMC_Raw_Data_for_FY22[[#This Row],[75th]]-AAMC_Raw_Data_for_FY22[[#This Row],[Median]])/25)*15) + AAMC_Raw_Data_for_FY22[[#This Row],[Median]]","v":1043916.6},{"$f":"(((AAMC_Raw_Data_for_FY22[[#This Row],[75th]]-AAMC_Raw_Data_for_FY22[[#This Row],[Median]])/25)*20) + AAMC_Raw_Data_for_FY22[[#This Row],[Median]]","v":1052218.8},1060521,{"$f":"(((AAMC_Raw_Data_for_FY22[[#This Row],[75th]]-AAMC_Raw_Data_for_FY22[[#This Row],[Median]])/25)*30) + AAMC_Raw_Data_for_FY22[[#This Row],[Median]]","v":1068823.2},{"$f":"(((AAMC_Raw_Data_for_FY22[[#This Row],[75th]]-AAMC_Raw_Data_for_FY22[[#This Row],[Median]])/25)*35) + AAMC_Raw_Data_for_FY22[[#This Row],[Median]]","v":1077125.3999999999},{"$f":"(((AAMC_Raw_Data_for_FY22[[#This Row],[75th]]-AAMC_Raw_Data_for_FY22[[#This Row],[Median]])/25)*40) + AAMC_Raw_Data_for_FY22[[#This Row],[Median]]","v":1085427.6000000001}]
[{"$f":"AAMC_Raw_Data_for_FY22[[#This Row],[Source]]&AAMC_Raw_Data_for_FY22[[#This Row],[Type]]&AAMC_Raw_Data_for_FY22[[#This Row],[School Subset]]&AAMC_Raw_Data_for_FY22[[#This Row],[Rank]]&AAMC_Raw_Data_for_FY22[[#This Row],[Degree]]&AAMC_Raw_Data_for_FY22[[#This Row],[Department / Specialty]]&\"L\"","v":"AAMCAcademicAllChairMDOrthopedic Surgery: SpineL"},"Orthopedic Surgery: Spine",1,"AAMC","Academic","All","Chair","MD","2021-2022",996161,{"$f":"(((AAMC_Raw_Data_for_FY22[[#This Row],[Median]]-AAMC_Raw_Data_for_FY22[[#This Row],[25th]])/25)*5) + AAMC_Raw_Data_for_FY22[[#This Row],[25th]]","v":1050928.8},{"$f":"(((AAMC_Raw_Data_for_FY22[[#This Row],[Median]]-AAMC_Raw_Data_for_FY22[[#This Row],[25th]])/25)*10) + AAMC_Raw_Data_for_FY22[[#This Row],[25th]]","v":1105696.6000000001},{"$f":"(((AAMC_Raw_Data_for_FY22[[#This Row],[Median]]-AAMC_Raw_Data_for_FY22[[#This Row],[25th]])/25)*15) + AAMC_Raw_Data_for_FY22[[#This Row],[25th]]","v":1160464.3999999999},{"$f":"(((AAMC_Raw_Data_for_FY22[[#This Row],[Median]]-AAMC_Raw_Data_for_FY22[[#This Row],[25th]])/25)*20) + AAMC_Raw_Data_for_FY22[[#This Row],[25th]]","v":1215232.2},1270000,{"$f":"(((AAMC_Raw_Data_for_FY22[[#This Row],[75th]]-AAMC_Raw_Data_for_FY22[[#This Row],[Median]])/25)*5) + AAMC_Raw_Data_for_FY22[[#This Row],[Median]]","v":1275671.6000000001},{"$f":"(((AAMC_Raw_Data_for_FY22[[#This Row],[75th]]-AAMC_Raw_Data_for_FY22[[#This Row],[Median]])/25)*10) + AAMC_Raw_Data_for_FY22[[#This Row],[Median]]","v":1281343.2},{"$f":"(((AAMC_Raw_Data_for_FY22[[#This Row],[75th]]-AAMC_Raw_Data_for_FY22[[#This Row],[Median]])/25)*15) + AAMC_Raw_Data_for_FY22[[#This Row],[Median]]","v":1287014.8},{"$f":"(((AAMC_Raw_Data_for_FY22[[#This Row],[75th]]-AAMC_Raw_Data_for_FY22[[#This Row],[Median]])/25)*20) + AAMC_Raw_Data_for_FY22[[#This Row],[Median]]","v":1292686.3999999999},1298358,{"$f":"(((AAMC_Raw_Data_for_FY22[[#This Row],[75th]]-AAMC_Raw_Data_for_FY22[[#This Row],[Median]])/25)*30) + AAMC_Raw_Data_for_FY22[[#This Row],[Median]]","v":1304029.6000000001},{"$f":"(((AAMC_Raw_Data_for_FY22[[#This Row],[75th]]-AAMC_Raw_Data_for_FY22[[#This Row],[Median]])/25)*35) + AAMC_Raw_Data_for_FY22[[#This Row],[Median]]","v":1309701.2},{"$f":"(((AAMC_Raw_Data_for_FY22[[#This Row],[75th]]-AAMC_Raw_Data_for_FY22[[#This Row],[Median]])/25)*40) + AAMC_Raw_Data_for_FY22[[#This Row],[Median]]","v":1315372.8}]
[{"$f":"AAMC_Raw_Data_for_FY22[[#This Row],[Source]]&AAMC_Raw_Data_for_FY22[[#This Row],[Type]]&AAMC_Raw_Data_for_FY22[[#This Row],[School Subset]]&AAMC_Raw_Data_for_FY22[[#This Row],[Rank]]&AAMC_Raw_Data_for_FY22[[#This Row],[Degree]]&AAMC_Raw_Data_for_FY22[[#This Row],[Department / Specialty]]&\"L\"","v":"AAMCAcademicAllInstructorMDOrthopedic Surgery: Sports MedicineL"},"Orthopedic Surgery: Sports Medicine",5,"AAMC","Academic","All","Instructor","MD","2021-2022",null,{"$f":"(((AAMC_Raw_Data_for_FY22[[#This Row],[Median]]-AAMC_Raw_Data_for_FY22[[#This Row],[25th]])/25)*5) + AAMC_Raw_Data_for_FY22[[#This Row],[25th]]","v":0},{"$f":"(((AAMC_Raw_Data_for_FY22[[#This Row],[Median]]-AAMC_Raw_Data_for_FY22[[#This Row],[25th]])/25)*10) + AAMC_Raw_Data_for_FY22[[#This Row],[25th]]","v":0},{"$f":"(((AAMC_Raw_Data_for_FY22[[#This Row],[Median]]-AAMC_Raw_Data_for_FY22[[#This Row],[25th]])/25)*15) + AAMC_Raw_Data_for_FY22[[#This Row],[25th]]","v":0},{"$f":"(((AAMC_Raw_Data_for_FY22[[#This Row],[Median]]-AAMC_Raw_Data_for_FY22[[#This Row],[25th]])/25)*20) + AAMC_Raw_Data_for_FY22[[#This Row],[25th]]","v":0},null,{"$f":"(((AAMC_Raw_Data_for_FY22[[#This Row],[75th]]-AAMC_Raw_Data_for_FY22[[#This Row],[Median]])/25)*5) + AAMC_Raw_Data_for_FY22[[#This Row],[Median]]","v":0},{"$f":"(((AAMC_Raw_Data_for_FY22[[#This Row],[75th]]-AAMC_Raw_Data_for_FY22[[#This Row],[Median]])/25)*10) + AAMC_Raw_Data_for_FY22[[#This Row],[Median]]","v":0},{"$f":"(((AAMC_Raw_Data_for_FY22[[#This Row],[75th]]-AAMC_Raw_Data_for_FY22[[#This Row],[Median]])/25)*15) + AAMC_Raw_Data_for_FY22[[#This Row],[Median]]","v":0},{"$f":"(((AAMC_Raw_Data_for_FY22[[#This Row],[75th]]-AAMC_Raw_Data_for_FY22[[#This Row],[Median]])/25)*20) + AAMC_Raw_Data_for_FY22[[#This Row],[Median]]","v":0},null,{"$f":"(((AAMC_Raw_Data_for_FY22[[#This Row],[75th]]-AAMC_Raw_Data_for_FY22[[#This Row],[Median]])/25)*30) + AAMC_Raw_Data_for_FY22[[#This Row],[Median]]","v":0},{"$f":"(((AAMC_Raw_Data_for_FY22[[#This Row],[75th]]-AAMC_Raw_Data_for_FY22[[#This Row],[Median]])/25)*35) + AAMC_Raw_Data_for_FY22[[#This Row],[Median]]","v":0},{"$f":"(((AAMC_Raw_Data_for_FY22[[#This Row],[75th]]-AAMC_Raw_Data_for_FY22[[#This Row],[Median]])/25)*40) + AAMC_Raw_Data_for_FY22[[#This Row],[Median]]","v":0}]
[{"$f":"AAMC_Raw_Data_for_FY22[[#This Row],[Source]]&AAMC_Raw_Data_for_FY22[[#This Row],[Type]]&AAMC_Raw_Data_for_FY22[[#This Row],[School Subset]]&AAMC_Raw_Data_for_FY22[[#This Row],[Rank]]&AAMC_Raw_Data_for_FY22[[#This Row],[Degree]]&AAMC_Raw_Data_for_FY22[[#This Row],[Department / Specialty]]&\"L\"","v":"AAMCAcademicAllAssistantMDOrthopedic Surgery: Sports MedicineL"},"Orthopedic Surgery: Sports Medicine",4,"AAMC","Academic","All","Assistant","MD","2021-2022",416262,{"$f":"(((AAMC_Raw_Data_for_FY22[[#This Row],[Median]]-AAMC_Raw_Data_for_FY22[[#This Row],[25th]])/25)*5) + AAMC_Raw_Data_for_FY22[[#This Row],[25th]]","v":444260.4},{"$f":"(((AAMC_Raw_Data_for_FY22[[#This Row],[Median]]-AAMC_Raw_Data_for_FY22[[#This Row],[25th]])/25)*10) + AAMC_Raw_Data_for_FY22[[#This Row],[25th]]","v":472258.8},{"$f":"(((AAMC_Raw_Data_for_FY22[[#This Row],[Median]]-AAMC_Raw_Data_for_FY22[[#This Row],[25th]])/25)*15) + AAMC_Raw_Data_for_FY22[[#This Row],[25th]]","v":500257.2},{"$f":"(((AAMC_Raw_Data_for_FY22[[#This Row],[Median]]-AAMC_Raw_Data_for_FY22[[#This Row],[25th]])/25)*20) + AAMC_Raw_Data_for_FY22[[#This Row],[25th]]","v":528255.6},556254,{"$f":"(((AAMC_Raw_Data_for_FY22[[#This Row],[75th]]-AAMC_Raw_Data_for_FY22[[#This Row],[Median]])/25)*5) + AAMC_Raw_Data_for_FY22[[#This Row],[Median]]","v":595214.4},{"$f":"(((AAMC_Raw_Data_for_FY22[[#This Row],[75th]]-AAMC_Raw_Data_for_FY22[[#This Row],[Median]])/25)*10) + AAMC_Raw_Data_for_FY22[[#This Row],[Median]]","v":634174.80000000005},{"$f":"(((AAMC_Raw_Data_for_FY22[[#This Row],[75th]]-AAMC_Raw_Data_for_FY22[[#This Row],[Median]])/25)*15) + AAMC_Raw_Data_for_FY22[[#This Row],[Median]]","v":673135.2},{"$f":"(((AAMC_Raw_Data_for_FY22[[#This Row],[75th]]-AAMC_Raw_Data_for_FY22[[#This Row],[Median]])/25)*20) + AAMC_Raw_Data_for_FY22[[#This Row],[Median]]","v":712095.6},751056,{"$f":"(((AAMC_Raw_Data_for_FY22[[#This Row],[75th]]-AAMC_Raw_Data_for_FY22[[#This Row],[Median]])/25)*30) + AAMC_Raw_Data_for_FY22[[#This Row],[Median]]","v":790016.4},{"$f":"(((AAMC_Raw_Data_for_FY22[[#This Row],[75th]]-AAMC_Raw_Data_for_FY22[[#This Row],[Median]])/25)*35) + AAMC_Raw_Data_for_FY22[[#This Row],[Median]]","v":828976.8},{"$f":"(((AAMC_Raw_Data_for_FY22[[#This Row],[75th]]-AAMC_Raw_Data_for_FY22[[#This Row],[Median]])/25)*40) + AAMC_Raw_Data_for_FY22[[#This Row],[Median]]","v":867937.2}]
[{"$f":"AAMC_Raw_Data_for_FY22[[#This Row],[Source]]&AAMC_Raw_Data_for_FY22[[#This Row],[Type]]&AAMC_Raw_Data_for_FY22[[#This Row],[School Subset]]&AAMC_Raw_Data_for_FY22[[#This Row],[Rank]]&AAMC_Raw_Data_for_FY22[[#This Row],[Degree]]&AAMC_Raw_Data_for_FY22[[#This Row],[Department / Specialty]]&\"L\"","v":"AAMCAcademicAllAssociateMDOrthopedic Surgery: Sports MedicineL"},"Orthopedic Surgery: Sports Medicine",3,"AAMC","Academic","All","Associate","MD","2021-2022",484691,{"$f":"(((AAMC_Raw_Data_for_FY22[[#This Row],[Median]]-AAMC_Raw_Data_for_FY22[[#This Row],[25th]])/25)*5) + AAMC_Raw_Data_for_FY22[[#This Row],[25th]]","v":524343.19999999995},{"$f":"(((AAMC_Raw_Data_for_FY22[[#This Row],[Median]]-AAMC_Raw_Data_for_FY22[[#This Row],[25th]])/25)*10) + AAMC_Raw_Data_for_FY22[[#This Row],[25th]]","v":563995.4},{"$f":"(((AAMC_Raw_Data_for_FY22[[#This Row],[Median]]-AAMC_Raw_Data_for_FY22[[#This Row],[25th]])/25)*15) + AAMC_Raw_Data_for_FY22[[#This Row],[25th]]","v":603647.6},{"$f":"(((AAMC_Raw_Data_for_FY22[[#This Row],[Median]]-AAMC_Raw_Data_for_FY22[[#This Row],[25th]])/25)*20) + AAMC_Raw_Data_for_FY22[[#This Row],[25th]]","v":643299.80000000005},682952,{"$f":"(((AAMC_Raw_Data_for_FY22[[#This Row],[75th]]-AAMC_Raw_Data_for_FY22[[#This Row],[Median]])/25)*5) + AAMC_Raw_Data_for_FY22[[#This Row],[Median]]","v":740732.6},{"$f":"(((AAMC_Raw_Data_for_FY22[[#This Row],[75th]]-AAMC_Raw_Data_for_FY22[[#This Row],[Median]])/25)*10) + AAMC_Raw_Data_for_FY22[[#This Row],[Median]]","v":798513.2},{"$f":"(((AAMC_Raw_Data_for_FY22[[#This Row],[75th]]-AAMC_Raw_Data_for_FY22[[#This Row],[Median]])/25)*15) + AAMC_Raw_Data_for_FY22[[#This Row],[Median]]","v":856293.8},{"$f":"(((AAMC_Raw_Data_for_FY22[[#This Row],[75th]]-AAMC_Raw_Data_for_FY22[[#This Row],[Median]])/25)*20) + AAMC_Raw_Data_for_FY22[[#This Row],[Median]]","v":914074.4},971855,{"$f":"(((AAMC_Raw_Data_for_FY22[[#This Row],[75th]]-AAMC_Raw_Data_for_FY22[[#This Row],[Median]])/25)*30) + AAMC_Raw_Data_for_FY22[[#This Row],[Median]]","v":1029635.6000000001},{"$f":"(((AAMC_Raw_Data_for_FY22[[#This Row],[75th]]-AAMC_Raw_Data_for_FY22[[#This Row],[Median]])/25)*35) + AAMC_Raw_Data_for_FY22[[#This Row],[Median]]","v":1087416.2},{"$f":"(((AAMC_Raw_Data_for_FY22[[#This Row],[75th]]-AAMC_Raw_Data_for_FY22[[#This Row],[Median]])/25)*40) + AAMC_Raw_Data_for_FY22[[#This Row],[Median]]","v":1145196.8}]
[{"$f":"AAMC_Raw_Data_for_FY22[[#This Row],[Source]]&AAMC_Raw_Data_for_FY22[[#This Row],[Type]]&AAMC_Raw_Data_for_FY22[[#This Row],[School Subset]]&AAMC_Raw_Data_for_FY22[[#This Row],[Rank]]&AAMC_Raw_Data_for_FY22[[#This Row],[Degree]]&AAMC_Raw_Data_for_FY22[[#This Row],[Department / Specialty]]&\"L\"","v":"AAMCAcademicAllProfessorMDOrthopedic Surgery: Sports MedicineL"},"Orthopedic Surgery: Sports Medicine",2,"AAMC","Academic","All","Professor","MD","2021-2022",510272,{"$f":"(((AAMC_Raw_Data_for_FY22[[#This Row],[Median]]-AAMC_Raw_Data_for_FY22[[#This Row],[25th]])/25)*5) + AAMC_Raw_Data_for_FY22[[#This Row],[25th]]","v":548227},{"$f":"(((AAMC_Raw_Data_for_FY22[[#This Row],[Median]]-AAMC_Raw_Data_for_FY22[[#This Row],[25th]])/25)*10) + AAMC_Raw_Data_for_FY22[[#This Row],[25th]]","v":586182},{"$f":"(((AAMC_Raw_Data_for_FY22[[#This Row],[Median]]-AAMC_Raw_Data_for_FY22[[#This Row],[25th]])/25)*15) + AAMC_Raw_Data_for_FY22[[#This Row],[25th]]","v":624137},{"$f":"(((AAMC_Raw_Data_for_FY22[[#This Row],[Median]]-AAMC_Raw_Data_for_FY22[[#This Row],[25th]])/25)*20) + AAMC_Raw_Data_for_FY22[[#This Row],[25th]]","v":662092},700047,{"$f":"(((AAMC_Raw_Data_for_FY22[[#This Row],[75th]]-AAMC_Raw_Data_for_FY22[[#This Row],[Median]])/25)*5) + AAMC_Raw_Data_for_FY22[[#This Row],[Median]]","v":738502.6},{"$f":"(((AAMC_Raw_Data_for_FY22[[#This Row],[75th]]-AAMC_Raw_Data_for_FY22[[#This Row],[Median]])/25)*10) + AAMC_Raw_Data_for_FY22[[#This Row],[Median]]","v":776958.2},{"$f":"(((AAMC_Raw_Data_for_FY22[[#This Row],[75th]]-AAMC_Raw_Data_for_FY22[[#This Row],[Median]])/25)*15) + AAMC_Raw_Data_for_FY22[[#This Row],[Median]]","v":815413.8},{"$f":"(((AAMC_Raw_Data_for_FY22[[#This Row],[75th]]-AAMC_Raw_Data_for_FY22[[#This Row],[Median]])/25)*20) + AAMC_Raw_Data_for_FY22[[#This Row],[Median]]","v":853869.4},892325,{"$f":"(((AAMC_Raw_Data_for_FY22[[#This Row],[75th]]-AAMC_Raw_Data_for_FY22[[#This Row],[Median]])/25)*30) + AAMC_Raw_Data_for_FY22[[#This Row],[Median]]","v":930780.6},{"$f":"(((AAMC_Raw_Data_for_FY22[[#This Row],[75th]]-AAMC_Raw_Data_for_FY22[[#This Row],[Median]])/25)*35) + AAMC_Raw_Data_for_FY22[[#This Row],[Median]]","v":969236.2},{"$f":"(((AAMC_Raw_Data_for_FY22[[#This Row],[75th]]-AAMC_Raw_Data_for_FY22[[#This Row],[Median]])/25)*40) + AAMC_Raw_Data_for_FY22[[#This Row],[Median]]","v":1007691.8}]
[{"$f":"AAMC_Raw_Data_for_FY22[[#This Row],[Source]]&AAMC_Raw_Data_for_FY22[[#This Row],[Type]]&AAMC_Raw_Data_for_FY22[[#This Row],[School Subset]]&AAMC_Raw_Data_for_FY22[[#This Row],[Rank]]&AAMC_Raw_Data_for_FY22[[#This Row],[Degree]]&AAMC_Raw_Data_for_FY22[[#This Row],[Department / Specialty]]&\"L\"","v":"AAMCAcademicAllChiefMDOrthopedic Surgery: Sports MedicineL"},"Orthopedic Surgery: Sports Medicine",6,"AAMC","Academic","All","Chief","MD","2021-2022",658696,{"$f":"(((AAMC_Raw_Data_for_FY22[[#This Row],[Median]]-AAMC_Raw_Data_for_FY22[[#This Row],[25th]])/25)*5) + AAMC_Raw_Data_for_FY22[[#This Row],[25th]]","v":690272.4},{"$f":"(((AAMC_Raw_Data_for_FY22[[#This Row],[Median]]-AAMC_Raw_Data_for_FY22[[#This Row],[25th]])/25)*10) + AAMC_Raw_Data_for_FY22[[#This Row],[25th]]","v":721848.8},{"$f":"(((AAMC_Raw_Data_for_FY22[[#This Row],[Median]]-AAMC_Raw_Data_for_FY22[[#This Row],[25th]])/25)*15) + AAMC_Raw_Data_for_FY22[[#This Row],[25th]]","v":753425.2},{"$f":"(((AAMC_Raw_Data_for_FY22[[#This Row],[Median]]-AAMC_Raw_Data_for_FY22[[#This Row],[25th]])/25)*20) + AAMC_Raw_Data_for_FY22[[#This Row],[25th]]","v":785001.6},816578,{"$f":"(((AAMC_Raw_Data_for_FY22[[#This Row],[75th]]-AAMC_Raw_Data_for_FY22[[#This Row],[Median]])/25)*5) + AAMC_Raw_Data_for_FY22[[#This Row],[Median]]","v":849583.4},{"$f":"(((AAMC_Raw_Data_for_FY22[[#This Row],[75th]]-AAMC_Raw_Data_for_FY22[[#This Row],[Median]])/25)*10) + AAMC_Raw_Data_for_FY22[[#This Row],[Median]]","v":882588.8},{"$f":"(((AAMC_Raw_Data_for_FY22[[#This Row],[75th]]-AAMC_Raw_Data_for_FY22[[#This Row],[Median]])/25)*15) + AAMC_Raw_Data_for_FY22[[#This Row],[Median]]","v":915594.2},{"$f":"(((AAMC_Raw_Data_for_FY22[[#This Row],[75th]]-AAMC_Raw_Data_for_FY22[[#This Row],[Median]])/25)*20) + AAMC_Raw_Data_for_FY22[[#This Row],[Median]]","v":948599.6},981605,{"$f":"(((AAMC_Raw_Data_for_FY22[[#This Row],[75th]]-AAMC_Raw_Data_for_FY22[[#This Row],[Median]])/25)*30) + AAMC_Raw_Data_for_FY22[[#This Row],[Median]]","v":1014610.4},{"$f":"(((AAMC_Raw_Data_for_FY22[[#This Row],[75th]]-AAMC_Raw_Data_for_FY22[[#This Row],[Median]])/25)*35) + AAMC_Raw_Data_for_FY22[[#This Row],[Median]]","v":1047615.8},{"$f":"(((AAMC_Raw_Data_for_FY22[[#This Row],[75th]]-AAMC_Raw_Data_for_FY22[[#This Row],[Median]])/25)*40) + AAMC_Raw_Data_for_FY22[[#This Row],[Median]]","v":1080621.2}]
[{"$f":"AAMC_Raw_Data_for_FY22[[#This Row],[Source]]&AAMC_Raw_Data_for_FY22[[#This Row],[Type]]&AAMC_Raw_Data_for_FY22[[#This Row],[School Subset]]&AAMC_Raw_Data_for_FY22[[#This Row],[Rank]]&AAMC_Raw_Data_for_FY22[[#This Row],[Degree]]&AAMC_Raw_Data_for_FY22[[#This Row],[Department / Specialty]]&\"L\"","v":"AAMCAcademicAllChairMDOrthopedic Surgery: Sports MedicineL"},"Orthopedic Surgery: Sports Medicine",1,"AAMC","Academic","All","Chair","MD","2021-2022",736203,{"$f":"(((AAMC_Raw_Data_for_FY22[[#This Row],[Median]]-AAMC_Raw_Data_for_FY22[[#This Row],[25th]])/25)*5) + AAMC_Raw_Data_for_FY22[[#This Row],[25th]]","v":739112.4},{"$f":"(((AAMC_Raw_Data_for_FY22[[#This Row],[Median]]-AAMC_Raw_Data_for_FY22[[#This Row],[25th]])/25)*10) + AAMC_Raw_Data_for_FY22[[#This Row],[25th]]","v":742021.8},{"$f":"(((AAMC_Raw_Data_for_FY22[[#This Row],[Median]]-AAMC_Raw_Data_for_FY22[[#This Row],[25th]])/25)*15) + AAMC_Raw_Data_for_FY22[[#This Row],[25th]]","v":744931.2},{"$f":"(((AAMC_Raw_Data_for_FY22[[#This Row],[Median]]-AAMC_Raw_Data_for_FY22[[#This Row],[25th]])/25)*20) + AAMC_Raw_Data_for_FY22[[#This Row],[25th]]","v":747840.6},750750,{"$f":"(((AAMC_Raw_Data_for_FY22[[#This Row],[75th]]-AAMC_Raw_Data_for_FY22[[#This Row],[Median]])/25)*5) + AAMC_Raw_Data_for_FY22[[#This Row],[Median]]","v":830123.8},{"$f":"(((AAMC_Raw_Data_for_FY22[[#This Row],[75th]]-AAMC_Raw_Data_for_FY22[[#This Row],[Median]])/25)*10) + AAMC_Raw_Data_for_FY22[[#This Row],[Median]]","v":909497.6},{"$f":"(((AAMC_Raw_Data_for_FY22[[#This Row],[75th]]-AAMC_Raw_Data_for_FY22[[#This Row],[Median]])/25)*15) + AAMC_Raw_Data_for_FY22[[#This Row],[Median]]","v":988871.4},{"$f":"(((AAMC_Raw_Data_for_FY22[[#This Row],[75th]]-AAMC_Raw_Data_for_FY22[[#This Row],[Median]])/25)*20) + AAMC_Raw_Data_for_FY22[[#This Row],[Median]]","v":1068245.2},1147619,{"$f":"(((AAMC_Raw_Data_for_FY22[[#This Row],[75th]]-AAMC_Raw_Data_for_FY22[[#This Row],[Median]])/25)*30) + AAMC_Raw_Data_for_FY22[[#This Row],[Median]]","v":1226992.8},{"$f":"(((AAMC_Raw_Data_for_FY22[[#This Row],[75th]]-AAMC_Raw_Data_for_FY22[[#This Row],[Median]])/25)*35) + AAMC_Raw_Data_for_FY22[[#This Row],[Median]]","v":1306366.6000000001},{"$f":"(((AAMC_Raw_Data_for_FY22[[#This Row],[75th]]-AAMC_Raw_Data_for_FY22[[#This Row],[Median]])/25)*40) + AAMC_Raw_Data_for_FY22[[#This Row],[Median]]","v":1385740.4}]
[{"$f":"AAMC_Raw_Data_for_FY22[[#This Row],[Source]]&AAMC_Raw_Data_for_FY22[[#This Row],[Type]]&AAMC_Raw_Data_for_FY22[[#This Row],[School Subset]]&AAMC_Raw_Data_for_FY22[[#This Row],[Rank]]&AAMC_Raw_Data_for_FY22[[#This Row],[Degree]]&AAMC_Raw_Data_for_FY22[[#This Row],[Department / Specialty]]&\"L\"","v":"AAMCAcademicAllAssistantMDOrthopedic Surgery: TraumaL"},"Orthopedic Surgery: Trauma",4,"AAMC","Academic","All","Assistant","MD","2021-2022",474117,{"$f":"(((AAMC_Raw_Data_for_FY22[[#This Row],[Median]]-AAMC_Raw_Data_for_FY22[[#This Row],[25th]])/25)*5) + AAMC_Raw_Data_for_FY22[[#This Row],[25th]]","v":494408.6},{"$f":"(((AAMC_Raw_Data_for_FY22[[#This Row],[Median]]-AAMC_Raw_Data_for_FY22[[#This Row],[25th]])/25)*10) + AAMC_Raw_Data_for_FY22[[#This Row],[25th]]","v":514700.2},{"$f":"(((AAMC_Raw_Data_for_FY22[[#This Row],[Median]]-AAMC_Raw_Data_for_FY22[[#This Row],[25th]])/25)*15) + AAMC_Raw_Data_for_FY22[[#This Row],[25th]]","v":534991.80000000005},{"$f":"(((AAMC_Raw_Data_for_FY22[[#This Row],[Median]]-AAMC_Raw_Data_for_FY22[[#This Row],[25th]])/25)*20) + AAMC_Raw_Data_for_FY22[[#This Row],[25th]]","v":555283.4},575575,{"$f":"(((AAMC_Raw_Data_for_FY22[[#This Row],[75th]]-AAMC_Raw_Data_for_FY22[[#This Row],[Median]])/25)*5) + AAMC_Raw_Data_for_FY22[[#This Row],[Median]]","v":599011},{"$f":"(((AAMC_Raw_Data_for_FY22[[#This Row],[75th]]-AAMC_Raw_Data_for_FY22[[#This Row],[Median]])/25)*10) + AAMC_Raw_Data_for_FY22[[#This Row],[Median]]","v":622447},{"$f":"(((AAMC_Raw_Data_for_FY22[[#This Row],[75th]]-AAMC_Raw_Data_for_FY22[[#This Row],[Median]])/25)*15) + AAMC_Raw_Data_for_FY22[[#This Row],[Median]]","v":645883},{"$f":"(((AAMC_Raw_Data_for_FY22[[#This Row],[75th]]-AAMC_Raw_Data_for_FY22[[#This Row],[Median]])/25)*20) + AAMC_Raw_Data_for_FY22[[#This Row],[Median]]","v":669319},692755,{"$f":"(((AAMC_Raw_Data_for_FY22[[#This Row],[75th]]-AAMC_Raw_Data_for_FY22[[#This Row],[Median]])/25)*30) + AAMC_Raw_Data_for_FY22[[#This Row],[Median]]","v":716191},{"$f":"(((AAMC_Raw_Data_for_FY22[[#This Row],[75th]]-AAMC_Raw_Data_for_FY22[[#This Row],[Median]])/25)*35) + AAMC_Raw_Data_for_FY22[[#This Row],[Median]]","v":739627},{"$f":"(((AAMC_Raw_Data_for_FY22[[#This Row],[75th]]-AAMC_Raw_Data_for_FY22[[#This Row],[Median]])/25)*40) + AAMC_Raw_Data_for_FY22[[#This Row],[Median]]","v":763063}]
[{"$f":"AAMC_Raw_Data_for_FY22[[#This Row],[Source]]&AAMC_Raw_Data_for_FY22[[#This Row],[Type]]&AAMC_Raw_Data_for_FY22[[#This Row],[School Subset]]&AAMC_Raw_Data_for_FY22[[#This Row],[Rank]]&AAMC_Raw_Data_for_FY22[[#This Row],[Degree]]&AAMC_Raw_Data_for_FY22[[#This Row],[Department / Specialty]]&\"L\"","v":"AAMCAcademicAllAssociateMDOrthopedic Surgery: TraumaL"},"Orthopedic Surgery: Trauma",3,"AAMC","Academic","All","Associate","MD","2021-2022",551070,{"$f":"(((AAMC_Raw_Data_for_FY22[[#This Row],[Median]]-AAMC_Raw_Data_for_FY22[[#This Row],[25th]])/25)*5) + AAMC_Raw_Data_for_FY22[[#This Row],[25th]]","v":576517.4},{"$f":"(((AAMC_Raw_Data_for_FY22[[#This Row],[Median]]-AAMC_Raw_Data_for_FY22[[#This Row],[25th]])/25)*10) + AAMC_Raw_Data_for_FY22[[#This Row],[25th]]","v":601964.80000000005},{"$f":"(((AAMC_Raw_Data_for_FY22[[#This Row],[Median]]-AAMC_Raw_Data_for_FY22[[#This Row],[25th]])/25)*15) + AAMC_Raw_Data_for_FY22[[#This Row],[25th]]","v":627412.19999999995},{"$f":"(((AAMC_Raw_Data_for_FY22[[#This Row],[Median]]-AAMC_Raw_Data_for_FY22[[#This Row],[25th]])/25)*20) + AAMC_Raw_Data_for_FY22[[#This Row],[25th]]","v":652859.6},678307,{"$f":"(((AAMC_Raw_Data_for_FY22[[#This Row],[75th]]-AAMC_Raw_Data_for_FY22[[#This Row],[Median]])/25)*5) + AAMC_Raw_Data_for_FY22[[#This Row],[Median]]","v":697928},{"$f":"(((AAMC_Raw_Data_for_FY22[[#This Row],[75th]]-AAMC_Raw_Data_for_FY22[[#This Row],[Median]])/25)*10) + AAMC_Raw_Data_for_FY22[[#This Row],[Median]]","v":717549},{"$f":"(((AAMC_Raw_Data_for_FY22[[#This Row],[75th]]-AAMC_Raw_Data_for_FY22[[#This Row],[Median]])/25)*15) + AAMC_Raw_Data_for_FY22[[#This Row],[Median]]","v":737170},{"$f":"(((AAMC_Raw_Data_for_FY22[[#This Row],[75th]]-AAMC_Raw_Data_for_FY22[[#This Row],[Median]])/25)*20) + AAMC_Raw_Data_for_FY22[[#This Row],[Median]]","v":756791},776412,{"$f":"(((AAMC_Raw_Data_for_FY22[[#This Row],[75th]]-AAMC_Raw_Data_for_FY22[[#This Row],[Median]])/25)*30) + AAMC_Raw_Data_for_FY22[[#This Row],[Median]]","v":796033},{"$f":"(((AAMC_Raw_Data_for_FY22[[#This Row],[75th]]-AAMC_Raw_Data_for_FY22[[#This Row],[Median]])/25)*35) + AAMC_Raw_Data_for_FY22[[#This Row],[Median]]","v":815654},{"$f":"(((AAMC_Raw_Data_for_FY22[[#This Row],[75th]]-AAMC_Raw_Data_for_FY22[[#This Row],[Median]])/25)*40) + AAMC_Raw_Data_for_FY22[[#This Row],[Median]]","v":835275}]
[{"$f":"AAMC_Raw_Data_for_FY22[[#This Row],[Source]]&AAMC_Raw_Data_for_FY22[[#This Row],[Type]]&AAMC_Raw_Data_for_FY22[[#This Row],[School Subset]]&AAMC_Raw_Data_for_FY22[[#This Row],[Rank]]&AAMC_Raw_Data_for_FY22[[#This Row],[Degree]]&AAMC_Raw_Data_for_FY22[[#This Row],[Department / Specialty]]&\"L\"","v":"AAMCAcademicAllProfessorMDOrthopedic Surgery: TraumaL"},"Orthopedic Surgery: Trauma",2,"AAMC","Academic","All","Professor","MD","2021-2022",565168,{"$f":"(((AAMC_Raw_Data_for_FY22[[#This Row],[Median]]-AAMC_Raw_Data_for_FY22[[#This Row],[25th]])/25)*5) + AAMC_Raw_Data_for_FY22[[#This Row],[25th]]","v":586838.80000000005},{"$f":"(((AAMC_Raw_Data_for_FY22[[#This Row],[Median]]-AAMC_Raw_Data_for_FY22[[#This Row],[25th]])/25)*10) + AAMC_Raw_Data_for_FY22[[#This Row],[25th]]","v":608509.6},{"$f":"(((AAMC_Raw_Data_for_FY22[[#This Row],[Median]]-AAMC_Raw_Data_for_FY22[[#This Row],[25th]])/25)*15) + AAMC_Raw_Data_for_FY22[[#This Row],[25th]]","v":630180.4},{"$f":"(((AAMC_Raw_Data_for_FY22[[#This Row],[Median]]-AAMC_Raw_Data_for_FY22[[#This Row],[25th]])/25)*20) + AAMC_Raw_Data_for_FY22[[#This Row],[25th]]","v":651851.19999999995},673522,{"$f":"(((AAMC_Raw_Data_for_FY22[[#This Row],[75th]]-AAMC_Raw_Data_for_FY22[[#This Row],[Median]])/25)*5) + AAMC_Raw_Data_for_FY22[[#This Row],[Median]]","v":696129.4},{"$f":"(((AAMC_Raw_Data_for_FY22[[#This Row],[75th]]-AAMC_Raw_Data_for_FY22[[#This Row],[Median]])/25)*10) + AAMC_Raw_Data_for_FY22[[#This Row],[Median]]","v":718736.8},{"$f":"(((AAMC_Raw_Data_for_FY22[[#This Row],[75th]]-AAMC_Raw_Data_for_FY22[[#This Row],[Median]])/25)*15) + AAMC_Raw_Data_for_FY22[[#This Row],[Median]]","v":741344.2},{"$f":"(((AAMC_Raw_Data_for_FY22[[#This Row],[75th]]-AAMC_Raw_Data_for_FY22[[#This Row],[Median]])/25)*20) + AAMC_Raw_Data_for_FY22[[#This Row],[Median]]","v":763951.6},786559,{"$f":"(((AAMC_Raw_Data_for_FY22[[#This Row],[75th]]-AAMC_Raw_Data_for_FY22[[#This Row],[Median]])/25)*30) + AAMC_Raw_Data_for_FY22[[#This Row],[Median]]","v":809166.4},{"$f":"(((AAMC_Raw_Data_for_FY22[[#This Row],[75th]]-AAMC_Raw_Data_for_FY22[[#This Row],[Median]])/25)*35) + AAMC_Raw_Data_for_FY22[[#This Row],[Median]]","v":831773.8},{"$f":"(((AAMC_Raw_Data_for_FY22[[#This Row],[75th]]-AAMC_Raw_Data_for_FY22[[#This Row],[Median]])/25)*40) + AAMC_Raw_Data_for_FY22[[#This Row],[Median]]","v":854381.2}]
[{"$f":"AAMC_Raw_Data_for_FY22[[#This Row],[Source]]&AAMC_Raw_Data_for_FY22[[#This Row],[Type]]&AAMC_Raw_Data_for_FY22[[#This Row],[School Subset]]&AAMC_Raw_Data_for_FY22[[#This Row],[Rank]]&AAMC_Raw_Data_for_FY22[[#This Row],[Degree]]&AAMC_Raw_Data_for_FY22[[#This Row],[Department / Specialty]]&\"L\"","v":"AAMCAcademicAllChiefMDOrthopedic Surgery: TraumaL"},"Orthopedic Surgery: Trauma",6,"AAMC","Academic","All","Chief","MD","2021-2022",580824,{"$f":"(((AAMC_Raw_Data_for_FY22[[#This Row],[Median]]-AAMC_Raw_Data_for_FY22[[#This Row],[25th]])/25)*5) + AAMC_Raw_Data_for_FY22[[#This Row],[25th]]","v":613359.19999999995},{"$f":"(((AAMC_Raw_Data_for_FY22[[#This Row],[Median]]-AAMC_Raw_Data_for_FY22[[#This Row],[25th]])/25)*10) + AAMC_Raw_Data_for_FY22[[#This Row],[25th]]","v":645894.40000000002},{"$f":"(((AAMC_Raw_Data_for_FY22[[#This Row],[Median]]-AAMC_Raw_Data_for_FY22[[#This Row],[25th]])/25)*15) + AAMC_Raw_Data_for_FY22[[#This Row],[25th]]","v":678429.6},{"$f":"(((AAMC_Raw_Data_for_FY22[[#This Row],[Median]]-AAMC_Raw_Data_for_FY22[[#This Row],[25th]])/25)*20) + AAMC_Raw_Data_for_FY22[[#This Row],[25th]]","v":710964.8},743500,{"$f":"(((AAMC_Raw_Data_for_FY22[[#This Row],[75th]]-AAMC_Raw_Data_for_FY22[[#This Row],[Median]])/25)*5) + AAMC_Raw_Data_for_FY22[[#This Row],[Median]]","v":770963},{"$f":"(((AAMC_Raw_Data_for_FY22[[#This Row],[75th]]-AAMC_Raw_Data_for_FY22[[#This Row],[Median]])/25)*10) + AAMC_Raw_Data_for_FY22[[#This Row],[Median]]","v":798426},{"$f":"(((AAMC_Raw_Data_for_FY22[[#This Row],[75th]]-AAMC_Raw_Data_for_FY22[[#This Row],[Median]])/25)*15) + AAMC_Raw_Data_for_FY22[[#This Row],[Median]]","v":825889},{"$f":"(((AAMC_Raw_Data_for_FY22[[#This Row],[75th]]-AAMC_Raw_Data_for_FY22[[#This Row],[Median]])/25)*20) + AAMC_Raw_Data_for_FY22[[#This Row],[Median]]","v":853352},880815,{"$f":"(((AAMC_Raw_Data_for_FY22[[#This Row],[75th]]-AAMC_Raw_Data_for_FY22[[#This Row],[Median]])/25)*30) + AAMC_Raw_Data_for_FY22[[#This Row],[Median]]","v":908278},{"$f":"(((AAMC_Raw_Data_for_FY22[[#This Row],[75th]]-AAMC_Raw_Data_for_FY22[[#This Row],[Median]])/25)*35) + AAMC_Raw_Data_for_FY22[[#This Row],[Median]]","v":935741},{"$f":"(((AAMC_Raw_Data_for_FY22[[#This Row],[75th]]-AAMC_Raw_Data_for_FY22[[#This Row],[Median]])/25)*40) + AAMC_Raw_Data_for_FY22[[#This Row],[Median]]","v":963204}]
[{"$f":"AAMC_Raw_Data_for_FY22[[#This Row],[Source]]&AAMC_Raw_Data_for_FY22[[#This Row],[Type]]&AAMC_Raw_Data_for_FY22[[#This Row],[School Subset]]&AAMC_Raw_Data_for_FY22[[#This Row],[Rank]]&AAMC_Raw_Data_for_FY22[[#This Row],[Degree]]&AAMC_Raw_Data_for_FY22[[#This Row],[Department / Specialty]]&\"L\"","v":"AAMCAcademicAllChairMDOrthopedic Surgery: TraumaL"},"Orthopedic Surgery: Trauma",1,"AAMC","Academic","All","Chair","MD","2021-2022",null,{"$f":"(((AAMC_Raw_Data_for_FY22[[#This Row],[Median]]-AAMC_Raw_Data_for_FY22[[#This Row],[25th]])/25)*5) + AAMC_Raw_Data_for_FY22[[#This Row],[25th]]","v":0},{"$f":"(((AAMC_Raw_Data_for_FY22[[#This Row],[Median]]-AAMC_Raw_Data_for_FY22[[#This Row],[25th]])/25)*10) + AAMC_Raw_Data_for_FY22[[#This Row],[25th]]","v":0},{"$f":"(((AAMC_Raw_Data_for_FY22[[#This Row],[Median]]-AAMC_Raw_Data_for_FY22[[#This Row],[25th]])/25)*15) + AAMC_Raw_Data_for_FY22[[#This Row],[25th]]","v":0},{"$f":"(((AAMC_Raw_Data_for_FY22[[#This Row],[Median]]-AAMC_Raw_Data_for_FY22[[#This Row],[25th]])/25)*20) + AAMC_Raw_Data_for_FY22[[#This Row],[25th]]","v":0},null,{"$f":"(((AAMC_Raw_Data_for_FY22[[#This Row],[75th]]-AAMC_Raw_Data_for_FY22[[#This Row],[Median]])/25)*5) + AAMC_Raw_Data_for_FY22[[#This Row],[Median]]","v":0},{"$f":"(((AAMC_Raw_Data_for_FY22[[#This Row],[75th]]-AAMC_Raw_Data_for_FY22[[#This Row],[Median]])/25)*10) + AAMC_Raw_Data_for_FY22[[#This Row],[Median]]","v":0},{"$f":"(((AAMC_Raw_Data_for_FY22[[#This Row],[75th]]-AAMC_Raw_Data_for_FY22[[#This Row],[Median]])/25)*15) + AAMC_Raw_Data_for_FY22[[#This Row],[Median]]","v":0},{"$f":"(((AAMC_Raw_Data_for_FY22[[#This Row],[75th]]-AAMC_Raw_Data_for_FY22[[#This Row],[Median]])/25)*20) + AAMC_Raw_Data_for_FY22[[#This Row],[Median]]","v":0},null,{"$f":"(((AAMC_Raw_Data_for_FY22[[#This Row],[75th]]-AAMC_Raw_Data_for_FY22[[#This Row],[Median]])/25)*30) + AAMC_Raw_Data_for_FY22[[#This Row],[Median]]","v":0},{"$f":"(((AAMC_Raw_Data_for_FY22[[#This Row],[75th]]-AAMC_Raw_Data_for_FY22[[#This Row],[Median]])/25)*35) + AAMC_Raw_Data_for_FY22[[#This Row],[Median]]","v":0},{"$f":"(((AAMC_Raw_Data_for_FY22[[#This Row],[75th]]-AAMC_Raw_Data_for_FY22[[#This Row],[Median]])/25)*40) + AAMC_Raw_Data_for_FY22[[#This Row],[Median]]","v":0}]
[{"$f":"AAMC_Raw_Data_for_FY22[[#This Row],[Source]]&AAMC_Raw_Data_for_FY22[[#This Row],[Type]]&AAMC_Raw_Data_for_FY22[[#This Row],[School Subset]]&AAMC_Raw_Data_for_FY22[[#This Row],[Rank]]&AAMC_Raw_Data_for_FY22[[#This Row],[Degree]]&AAMC_Raw_Data_for_FY22[[#This Row],[Department / Specialty]]&\"L\"","v":"AAMCAcademicAllInstructorMDOrthopedic Surgery: OtherL"},"Orthopedic Surgery: Other",5,"AAMC","Academic","All","Instructor","MD","2021-2022",226799,{"$f":"(((AAMC_Raw_Data_for_FY22[[#This Row],[Median]]-AAMC_Raw_Data_for_FY22[[#This Row],[25th]])/25)*5) + AAMC_Raw_Data_for_FY22[[#This Row],[25th]]","v":264239.8},{"$f":"(((AAMC_Raw_Data_for_FY22[[#This Row],[Median]]-AAMC_Raw_Data_for_FY22[[#This Row],[25th]])/25)*10) + AAMC_Raw_Data_for_FY22[[#This Row],[25th]]","v":301680.59999999998},{"$f":"(((AAMC_Raw_Data_for_FY22[[#This Row],[Median]]-AAMC_Raw_Data_for_FY22[[#This Row],[25th]])/25)*15) + AAMC_Raw_Data_for_FY22[[#This Row],[25th]]","v":339121.4},{"$f":"(((AAMC_Raw_Data_for_FY22[[#This Row],[Median]]-AAMC_Raw_Data_for_FY22[[#This Row],[25th]])/25)*20) + AAMC_Raw_Data_for_FY22[[#This Row],[25th]]","v":376562.2},414003,{"$f":"(((AAMC_Raw_Data_for_FY22[[#This Row],[75th]]-AAMC_Raw_Data_for_FY22[[#This Row],[Median]])/25)*5) + AAMC_Raw_Data_for_FY22[[#This Row],[Median]]","v":431762.6},{"$f":"(((AAMC_Raw_Data_for_FY22[[#This Row],[75th]]-AAMC_Raw_Data_for_FY22[[#This Row],[Median]])/25)*10) + AAMC_Raw_Data_for_FY22[[#This Row],[Median]]","v":449522.2},{"$f":"(((AAMC_Raw_Data_for_FY22[[#This Row],[75th]]-AAMC_Raw_Data_for_FY22[[#This Row],[Median]])/25)*15) + AAMC_Raw_Data_for_FY22[[#This Row],[Median]]","v":467281.8},{"$f":"(((AAMC_Raw_Data_for_FY22[[#This Row],[75th]]-AAMC_Raw_Data_for_FY22[[#This Row],[Median]])/25)*20) + AAMC_Raw_Data_for_FY22[[#This Row],[Median]]","v":485041.4},502801,{"$f":"(((AAMC_Raw_Data_for_FY22[[#This Row],[75th]]-AAMC_Raw_Data_for_FY22[[#This Row],[Median]])/25)*30) + AAMC_Raw_Data_for_FY22[[#This Row],[Median]]","v":520560.6},{"$f":"(((AAMC_Raw_Data_for_FY22[[#This Row],[75th]]-AAMC_Raw_Data_for_FY22[[#This Row],[Median]])/25)*35) + AAMC_Raw_Data_for_FY22[[#This Row],[Median]]","v":538320.19999999995},{"$f":"(((AAMC_Raw_Data_for_FY22[[#This Row],[75th]]-AAMC_Raw_Data_for_FY22[[#This Row],[Median]])/25)*40) + AAMC_Raw_Data_for_FY22[[#This Row],[Median]]","v":556079.80000000005}]
[{"$f":"AAMC_Raw_Data_for_FY22[[#This Row],[Source]]&AAMC_Raw_Data_for_FY22[[#This Row],[Type]]&AAMC_Raw_Data_for_FY22[[#This Row],[School Subset]]&AAMC_Raw_Data_for_FY22[[#This Row],[Rank]]&AAMC_Raw_Data_for_FY22[[#This Row],[Degree]]&AAMC_Raw_Data_for_FY22[[#This Row],[Department / Specialty]]&\"L\"","v":"AAMCAcademicAllAssistantMDOrthopedic Surgery: OtherL"},"Orthopedic Surgery: Other",4,"AAMC","Academic","All","Assistant","MD","2021-2022",364437,{"$f":"(((AAMC_Raw_Data_for_FY22[[#This Row],[Median]]-AAMC_Raw_Data_for_FY22[[#This Row],[25th]])/25)*5) + AAMC_Raw_Data_for_FY22[[#This Row],[25th]]","v":387364},{"$f":"(((AAMC_Raw_Data_for_FY22[[#This Row],[Median]]-AAMC_Raw_Data_for_FY22[[#This Row],[25th]])/25)*10) + AAMC_Raw_Data_for_FY22[[#This Row],[25th]]","v":410291},{"$f":"(((AAMC_Raw_Data_for_FY22[[#This Row],[Median]]-AAMC_Raw_Data_for_FY22[[#This Row],[25th]])/25)*15) + AAMC_Raw_Data_for_FY22[[#This Row],[25th]]","v":433218},{"$f":"(((AAMC_Raw_Data_for_FY22[[#This Row],[Median]]-AAMC_Raw_Data_for_FY22[[#This Row],[25th]])/25)*20) + AAMC_Raw_Data_for_FY22[[#This Row],[25th]]","v":456145},479072,{"$f":"(((AAMC_Raw_Data_for_FY22[[#This Row],[75th]]-AAMC_Raw_Data_for_FY22[[#This Row],[Median]])/25)*5) + AAMC_Raw_Data_for_FY22[[#This Row],[Median]]","v":510866.4},{"$f":"(((AAMC_Raw_Data_for_FY22[[#This Row],[75th]]-AAMC_Raw_Data_for_FY22[[#This Row],[Median]])/25)*10) + AAMC_Raw_Data_for_FY22[[#This Row],[Median]]","v":542660.80000000005},{"$f":"(((AAMC_Raw_Data_for_FY22[[#This Row],[75th]]-AAMC_Raw_Data_for_FY22[[#This Row],[Median]])/25)*15) + AAMC_Raw_Data_for_FY22[[#This Row],[Median]]","v":574455.19999999995},{"$f":"(((AAMC_Raw_Data_for_FY22[[#This Row],[75th]]-AAMC_Raw_Data_for_FY22[[#This Row],[Median]])/25)*20) + AAMC_Raw_Data_for_FY22[[#This Row],[Median]]","v":606249.6},638044,{"$f":"(((AAMC_Raw_Data_for_FY22[[#This Row],[75th]]-AAMC_Raw_Data_for_FY22[[#This Row],[Median]])/25)*30) + AAMC_Raw_Data_for_FY22[[#This Row],[Median]]","v":669838.4},{"$f":"(((AAMC_Raw_Data_for_FY22[[#This Row],[75th]]-AAMC_Raw_Data_for_FY22[[#This Row],[Median]])/25)*35) + AAMC_Raw_Data_for_FY22[[#This Row],[Median]]","v":701632.8},{"$f":"(((AAMC_Raw_Data_for_FY22[[#This Row],[75th]]-AAMC_Raw_Data_for_FY22[[#This Row],[Median]])/25)*40) + AAMC_Raw_Data_for_FY22[[#This Row],[Median]]","v":733427.19999999995}]
[{"$f":"AAMC_Raw_Data_for_FY22[[#This Row],[Source]]&AAMC_Raw_Data_for_FY22[[#This Row],[Type]]&AAMC_Raw_Data_for_FY22[[#This Row],[School Subset]]&AAMC_Raw_Data_for_FY22[[#This Row],[Rank]]&AAMC_Raw_Data_for_FY22[[#This Row],[Degree]]&AAMC_Raw_Data_for_FY22[[#This Row],[Department / Specialty]]&\"L\"","v":"AAMCAcademicAllAssociateMDOrthopedic Surgery: OtherL"},"Orthopedic Surgery: Other",3,"AAMC","Academic","All","Associate","MD","2021-2022",484944,{"$f":"(((AAMC_Raw_Data_for_FY22[[#This Row],[Median]]-AAMC_Raw_Data_for_FY22[[#This Row],[25th]])/25)*5) + AAMC_Raw_Data_for_FY22[[#This Row],[25th]]","v":501283.8},{"$f":"(((AAMC_Raw_Data_for_FY22[[#This Row],[Median]]-AAMC_Raw_Data_for_FY22[[#This Row],[25th]])/25)*10) + AAMC_Raw_Data_for_FY22[[#This Row],[25th]]","v":517623.6},{"$f":"(((AAMC_Raw_Data_for_FY22[[#This Row],[Median]]-AAMC_Raw_Data_for_FY22[[#This Row],[25th]])/25)*15) + AAMC_Raw_Data_for_FY22[[#This Row],[25th]]","v":533963.4},{"$f":"(((AAMC_Raw_Data_for_FY22[[#This Row],[Median]]-AAMC_Raw_Data_for_FY22[[#This Row],[25th]])/25)*20) + AAMC_Raw_Data_for_FY22[[#This Row],[25th]]","v":550303.19999999995},566643,{"$f":"(((AAMC_Raw_Data_for_FY22[[#This Row],[75th]]-AAMC_Raw_Data_for_FY22[[#This Row],[Median]])/25)*5) + AAMC_Raw_Data_for_FY22[[#This Row],[Median]]","v":605399.6},{"$f":"(((AAMC_Raw_Data_for_FY22[[#This Row],[75th]]-AAMC_Raw_Data_for_FY22[[#This Row],[Median]])/25)*10) + AAMC_Raw_Data_for_FY22[[#This Row],[Median]]","v":644156.19999999995},{"$f":"(((AAMC_Raw_Data_for_FY22[[#This Row],[75th]]-AAMC_Raw_Data_for_FY22[[#This Row],[Median]])/25)*15) + AAMC_Raw_Data_for_FY22[[#This Row],[Median]]","v":682912.8},{"$f":"(((AAMC_Raw_Data_for_FY22[[#This Row],[75th]]-AAMC_Raw_Data_for_FY22[[#This Row],[Median]])/25)*20) + AAMC_Raw_Data_for_FY22[[#This Row],[Median]]","v":721669.4},760426,{"$f":"(((AAMC_Raw_Data_for_FY22[[#This Row],[75th]]-AAMC_Raw_Data_for_FY22[[#This Row],[Median]])/25)*30) + AAMC_Raw_Data_for_FY22[[#This Row],[Median]]","v":799182.6},{"$f":"(((AAMC_Raw_Data_for_FY22[[#This Row],[75th]]-AAMC_Raw_Data_for_FY22[[#This Row],[Median]])/25)*35) + AAMC_Raw_Data_for_FY22[[#This Row],[Median]]","v":837939.19999999995},{"$f":"(((AAMC_Raw_Data_for_FY22[[#This Row],[75th]]-AAMC_Raw_Data_for_FY22[[#This Row],[Median]])/25)*40) + AAMC_Raw_Data_for_FY22[[#This Row],[Median]]","v":876695.8}]
[{"$f":"AAMC_Raw_Data_for_FY22[[#This Row],[Source]]&AAMC_Raw_Data_for_FY22[[#This Row],[Type]]&AAMC_Raw_Data_for_FY22[[#This Row],[School Subset]]&AAMC_Raw_Data_for_FY22[[#This Row],[Rank]]&AAMC_Raw_Data_for_FY22[[#This Row],[Degree]]&AAMC_Raw_Data_for_FY22[[#This Row],[Department / Specialty]]&\"L\"","v":"AAMCAcademicAllProfessorMDOrthopedic Surgery: OtherL"},"Orthopedic Surgery: Other",2,"AAMC","Academic","All","Professor","MD","2021-2022",420921,{"$f":"(((AAMC_Raw_Data_for_FY22[[#This Row],[Median]]-AAMC_Raw_Data_for_FY22[[#This Row],[25th]])/25)*5) + AAMC_Raw_Data_for_FY22[[#This Row],[25th]]","v":459543.8},{"$f":"(((AAMC_Raw_Data_for_FY22[[#This Row],[Median]]-AAMC_Raw_Data_for_FY22[[#This Row],[25th]])/25)*10) + AAMC_Raw_Data_for_FY22[[#This Row],[25th]]","v":498166.6},{"$f":"(((AAMC_Raw_Data_for_FY22[[#This Row],[Median]]-AAMC_Raw_Data_for_FY22[[#This Row],[25th]])/25)*15) + AAMC_Raw_Data_for_FY22[[#This Row],[25th]]","v":536789.4},{"$f":"(((AAMC_Raw_Data_for_FY22[[#This Row],[Median]]-AAMC_Raw_Data_for_FY22[[#This Row],[25th]])/25)*20) + AAMC_Raw_Data_for_FY22[[#This Row],[25th]]","v":575412.19999999995},614035,{"$f":"(((AAMC_Raw_Data_for_FY22[[#This Row],[75th]]-AAMC_Raw_Data_for_FY22[[#This Row],[Median]])/25)*5) + AAMC_Raw_Data_for_FY22[[#This Row],[Median]]","v":653288.19999999995},{"$f":"(((AAMC_Raw_Data_for_FY22[[#This Row],[75th]]-AAMC_Raw_Data_for_FY22[[#This Row],[Median]])/25)*10) + AAMC_Raw_Data_for_FY22[[#This Row],[Median]]","v":692541.4},{"$f":"(((AAMC_Raw_Data_for_FY22[[#This Row],[75th]]-AAMC_Raw_Data_for_FY22[[#This Row],[Median]])/25)*15) + AAMC_Raw_Data_for_FY22[[#This Row],[Median]]","v":731794.6},{"$f":"(((AAMC_Raw_Data_for_FY22[[#This Row],[75th]]-AAMC_Raw_Data_for_FY22[[#This Row],[Median]])/25)*20) + AAMC_Raw_Data_for_FY22[[#This Row],[Median]]","v":771047.8},810301,{"$f":"(((AAMC_Raw_Data_for_FY22[[#This Row],[75th]]-AAMC_Raw_Data_for_FY22[[#This Row],[Median]])/25)*30) + AAMC_Raw_Data_for_FY22[[#This Row],[Median]]","v":849554.2},{"$f":"(((AAMC_Raw_Data_for_FY22[[#This Row],[75th]]-AAMC_Raw_Data_for_FY22[[#This Row],[Median]])/25)*35) + AAMC_Raw_Data_for_FY22[[#This Row],[Median]]","v":888807.4},{"$f":"(((AAMC_Raw_Data_for_FY22[[#This Row],[75th]]-AAMC_Raw_Data_for_FY22[[#This Row],[Median]])/25)*40) + AAMC_Raw_Data_for_FY22[[#This Row],[Median]]","v":928060.60000000009}]
[{"$f":"AAMC_Raw_Data_for_FY22[[#This Row],[Source]]&AAMC_Raw_Data_for_FY22[[#This Row],[Type]]&AAMC_Raw_Data_for_FY22[[#This Row],[School Subset]]&AAMC_Raw_Data_for_FY22[[#This Row],[Rank]]&AAMC_Raw_Data_for_FY22[[#This Row],[Degree]]&AAMC_Raw_Data_for_FY22[[#This Row],[Department / Specialty]]&\"L\"","v":"AAMCAcademicAllChiefMDOrthopedic Surgery: OtherL"},"Orthopedic Surgery: Other",6,"AAMC","Academic","All","Chief","MD","2021-2022",490124,{"$f":"(((AAMC_Raw_Data_for_FY22[[#This Row],[Median]]-AAMC_Raw_Data_for_FY22[[#This Row],[25th]])/25)*5) + AAMC_Raw_Data_for_FY22[[#This Row],[25th]]","v":508603.4},{"$f":"(((AAMC_Raw_Data_for_FY22[[#This Row],[Median]]-AAMC_Raw_Data_for_FY22[[#This Row],[25th]])/25)*10) + AAMC_Raw_Data_for_FY22[[#This Row],[25th]]","v":527082.80000000005},{"$f":"(((AAMC_Raw_Data_for_FY22[[#This Row],[Median]]-AAMC_Raw_Data_for_FY22[[#This Row],[25th]])/25)*15) + AAMC_Raw_Data_for_FY22[[#This Row],[25th]]","v":545562.19999999995},{"$f":"(((AAMC_Raw_Data_for_FY22[[#This Row],[Median]]-AAMC_Raw_Data_for_FY22[[#This Row],[25th]])/25)*20) + AAMC_Raw_Data_for_FY22[[#This Row],[25th]]","v":564041.6},582521,{"$f":"(((AAMC_Raw_Data_for_FY22[[#This Row],[75th]]-AAMC_Raw_Data_for_FY22[[#This Row],[Median]])/25)*5) + AAMC_Raw_Data_for_FY22[[#This Row],[Median]]","v":625680.19999999995},{"$f":"(((AAMC_Raw_Data_for_FY22[[#This Row],[75th]]-AAMC_Raw_Data_for_FY22[[#This Row],[Median]])/25)*10) + AAMC_Raw_Data_for_FY22[[#This Row],[Median]]","v":668839.4},{"$f":"(((AAMC_Raw_Data_for_FY22[[#This Row],[75th]]-AAMC_Raw_Data_for_FY22[[#This Row],[Median]])/25)*15) + AAMC_Raw_Data_for_FY22[[#This Row],[Median]]","v":711998.6},{"$f":"(((AAMC_Raw_Data_for_FY22[[#This Row],[75th]]-AAMC_Raw_Data_for_FY22[[#This Row],[Median]])/25)*20) + AAMC_Raw_Data_for_FY22[[#This Row],[Median]]","v":755157.8},798317,{"$f":"(((AAMC_Raw_Data_for_FY22[[#This Row],[75th]]-AAMC_Raw_Data_for_FY22[[#This Row],[Median]])/25)*30) + AAMC_Raw_Data_for_FY22[[#This Row],[Median]]","v":841476.2},{"$f":"(((AAMC_Raw_Data_for_FY22[[#This Row],[75th]]-AAMC_Raw_Data_for_FY22[[#This Row],[Median]])/25)*35) + AAMC_Raw_Data_for_FY22[[#This Row],[Median]]","v":884635.4},{"$f":"(((AAMC_Raw_Data_for_FY22[[#This Row],[75th]]-AAMC_Raw_Data_for_FY22[[#This Row],[Median]])/25)*40) + AAMC_Raw_Data_for_FY22[[#This Row],[Median]]","v":927794.6}]
[{"$f":"AAMC_Raw_Data_for_FY22[[#This Row],[Source]]&AAMC_Raw_Data_for_FY22[[#This Row],[Type]]&AAMC_Raw_Data_for_FY22[[#This Row],[School Subset]]&AAMC_Raw_Data_for_FY22[[#This Row],[Rank]]&AAMC_Raw_Data_for_FY22[[#This Row],[Degree]]&AAMC_Raw_Data_for_FY22[[#This Row],[Department / Specialty]]&\"L\"","v":"AAMCAcademicAllChairMDOrthopedic Surgery: OtherL"},"Orthopedic Surgery: Other",1,"AAMC","Academic","All","Chair","MD","2021-2022",940000,{"$f":"(((AAMC_Raw_Data_for_FY22[[#This Row],[Median]]-AAMC_Raw_Data_for_FY22[[#This Row],[25th]])/25)*5) + AAMC_Raw_Data_for_FY22[[#This Row],[25th]]","v":960283.2},{"$f":"(((AAMC_Raw_Data_for_FY22[[#This Row],[Median]]-AAMC_Raw_Data_for_FY22[[#This Row],[25th]])/25)*10) + AAMC_Raw_Data_for_FY22[[#This Row],[25th]]","v":980566.4},{"$f":"(((AAMC_Raw_Data_for_FY22[[#This Row],[Median]]-AAMC_Raw_Data_for_FY22[[#This Row],[25th]])/25)*15) + AAMC_Raw_Data_for_FY22[[#This Row],[25th]]","v":1000849.6},{"$f":"(((AAMC_Raw_Data_for_FY22[[#This Row],[Median]]-AAMC_Raw_Data_for_FY22[[#This Row],[25th]])/25)*20) + AAMC_Raw_Data_for_FY22[[#This Row],[25th]]","v":1021132.8},1041416,{"$f":"(((AAMC_Raw_Data_for_FY22[[#This Row],[75th]]-AAMC_Raw_Data_for_FY22[[#This Row],[Median]])/25)*5) + AAMC_Raw_Data_for_FY22[[#This Row],[Median]]","v":1063577.8},{"$f":"(((AAMC_Raw_Data_for_FY22[[#This Row],[75th]]-AAMC_Raw_Data_for_FY22[[#This Row],[Median]])/25)*10) + AAMC_Raw_Data_for_FY22[[#This Row],[Median]]","v":1085739.6000000001},{"$f":"(((AAMC_Raw_Data_for_FY22[[#This Row],[75th]]-AAMC_Raw_Data_for_FY22[[#This Row],[Median]])/25)*15) + AAMC_Raw_Data_for_FY22[[#This Row],[Median]]","v":1107901.3999999999},{"$f":"(((AAMC_Raw_Data_for_FY22[[#This Row],[75th]]-AAMC_Raw_Data_for_FY22[[#This Row],[Median]])/25)*20) + AAMC_Raw_Data_for_FY22[[#This Row],[Median]]","v":1130063.2},1152225,{"$f":"(((AAMC_Raw_Data_for_FY22[[#This Row],[75th]]-AAMC_Raw_Data_for_FY22[[#This Row],[Median]])/25)*30) + AAMC_Raw_Data_for_FY22[[#This Row],[Median]]","v":1174386.8},{"$f":"(((AAMC_Raw_Data_for_FY22[[#This Row],[75th]]-AAMC_Raw_Data_for_FY22[[#This Row],[Median]])/25)*35) + AAMC_Raw_Data_for_FY22[[#This Row],[Median]]","v":1196548.6000000001},{"$f":"(((AAMC_Raw_Data_for_FY22[[#This Row],[75th]]-AAMC_Raw_Data_for_FY22[[#This Row],[Median]])/25)*40) + AAMC_Raw_Data_for_FY22[[#This Row],[Median]]","v":1218710.3999999999}]
[{"$f":"AAMC_Raw_Data_for_FY22[[#This Row],[Source]]&AAMC_Raw_Data_for_FY22[[#This Row],[Type]]&AAMC_Raw_Data_for_FY22[[#This Row],[School Subset]]&AAMC_Raw_Data_for_FY22[[#This Row],[Rank]]&AAMC_Raw_Data_for_FY22[[#This Row],[Degree]]&AAMC_Raw_Data_for_FY22[[#This Row],[Department / Specialty]]&\"L\"","v":"AAMCAcademicAllInstructorMDPediatric SurgeryL"},"Pediatric Surgery",5,"AAMC","Academic","All","Instructor","MD","2021-2022",null,{"$f":"(((AAMC_Raw_Data_for_FY22[[#This Row],[Median]]-AAMC_Raw_Data_for_FY22[[#This Row],[25th]])/25)*5) + AAMC_Raw_Data_for_FY22[[#This Row],[25th]]","v":0},{"$f":"(((AAMC_Raw_Data_for_FY22[[#This Row],[Median]]-AAMC_Raw_Data_for_FY22[[#This Row],[25th]])/25)*10) + AAMC_Raw_Data_for_FY22[[#This Row],[25th]]","v":0},{"$f":"(((AAMC_Raw_Data_for_FY22[[#This Row],[Median]]-AAMC_Raw_Data_for_FY22[[#This Row],[25th]])/25)*15) + AAMC_Raw_Data_for_FY22[[#This Row],[25th]]","v":0},{"$f":"(((AAMC_Raw_Data_for_FY22[[#This Row],[Median]]-AAMC_Raw_Data_for_FY22[[#This Row],[25th]])/25)*20) + AAMC_Raw_Data_for_FY22[[#This Row],[25th]]","v":0},null,{"$f":"(((AAMC_Raw_Data_for_FY22[[#This Row],[75th]]-AAMC_Raw_Data_for_FY22[[#This Row],[Median]])/25)*5) + AAMC_Raw_Data_for_FY22[[#This Row],[Median]]","v":0},{"$f":"(((AAMC_Raw_Data_for_FY22[[#This Row],[75th]]-AAMC_Raw_Data_for_FY22[[#This Row],[Median]])/25)*10) + AAMC_Raw_Data_for_FY22[[#This Row],[Median]]","v":0},{"$f":"(((AAMC_Raw_Data_for_FY22[[#This Row],[75th]]-AAMC_Raw_Data_for_FY22[[#This Row],[Median]])/25)*15) + AAMC_Raw_Data_for_FY22[[#This Row],[Median]]","v":0},{"$f":"(((AAMC_Raw_Data_for_FY22[[#This Row],[75th]]-AAMC_Raw_Data_for_FY22[[#This Row],[Median]])/25)*20) + AAMC_Raw_Data_for_FY22[[#This Row],[Median]]","v":0},null,{"$f":"(((AAMC_Raw_Data_for_FY22[[#This Row],[75th]]-AAMC_Raw_Data_for_FY22[[#This Row],[Median]])/25)*30) + AAMC_Raw_Data_for_FY22[[#This Row],[Median]]","v":0},{"$f":"(((AAMC_Raw_Data_for_FY22[[#This Row],[75th]]-AAMC_Raw_Data_for_FY22[[#This Row],[Median]])/25)*35) + AAMC_Raw_Data_for_FY22[[#This Row],[Median]]","v":0},{"$f":"(((AAMC_Raw_Data_for_FY22[[#This Row],[75th]]-AAMC_Raw_Data_for_FY22[[#This Row],[Median]])/25)*40) + AAMC_Raw_Data_for_FY22[[#This Row],[Median]]","v":0}]
[{"$f":"AAMC_Raw_Data_for_FY22[[#This Row],[Source]]&AAMC_Raw_Data_for_FY22[[#This Row],[Type]]&AAMC_Raw_Data_for_FY22[[#This Row],[School Subset]]&AAMC_Raw_Data_for_FY22[[#This Row],[Rank]]&AAMC_Raw_Data_for_FY22[[#This Row],[Degree]]&AAMC_Raw_Data_for_FY22[[#This Row],[Department / Specialty]]&\"L\"","v":"AAMCAcademicAllAssistantMDPediatric SurgeryL"},"Pediatric Surgery",4,"AAMC","Academic","All","Assistant","MD","2021-2022",424050,{"$f":"(((AAMC_Raw_Data_for_FY22[[#This Row],[Median]]-AAMC_Raw_Data_for_FY22[[#This Row],[25th]])/25)*5) + AAMC_Raw_Data_for_FY22[[#This Row],[25th]]","v":434344.2},{"$f":"(((AAMC_Raw_Data_for_FY22[[#This Row],[Median]]-AAMC_Raw_Data_for_FY22[[#This Row],[25th]])/25)*10) + AAMC_Raw_Data_for_FY22[[#This Row],[25th]]","v":444638.4},{"$f":"(((AAMC_Raw_Data_for_FY22[[#This Row],[Median]]-AAMC_Raw_Data_for_FY22[[#This Row],[25th]])/25)*15) + AAMC_Raw_Data_for_FY22[[#This Row],[25th]]","v":454932.6},{"$f":"(((AAMC_Raw_Data_for_FY22[[#This Row],[Median]]-AAMC_Raw_Data_for_FY22[[#This Row],[25th]])/25)*20) + AAMC_Raw_Data_for_FY22[[#This Row],[25th]]","v":465226.8},475521,{"$f":"(((AAMC_Raw_Data_for_FY22[[#This Row],[75th]]-AAMC_Raw_Data_for_FY22[[#This Row],[Median]])/25)*5) + AAMC_Raw_Data_for_FY22[[#This Row],[Median]]","v":491563},{"$f":"(((AAMC_Raw_Data_for_FY22[[#This Row],[75th]]-AAMC_Raw_Data_for_FY22[[#This Row],[Median]])/25)*10) + AAMC_Raw_Data_for_FY22[[#This Row],[Median]]","v":507605},{"$f":"(((AAMC_Raw_Data_for_FY22[[#This Row],[75th]]-AAMC_Raw_Data_for_FY22[[#This Row],[Median]])/25)*15) + AAMC_Raw_Data_for_FY22[[#This Row],[Median]]","v":523647},{"$f":"(((AAMC_Raw_Data_for_FY22[[#This Row],[75th]]-AAMC_Raw_Data_for_FY22[[#This Row],[Median]])/25)*20) + AAMC_Raw_Data_for_FY22[[#This Row],[Median]]","v":539689},555731,{"$f":"(((AAMC_Raw_Data_for_FY22[[#This Row],[75th]]-AAMC_Raw_Data_for_FY22[[#This Row],[Median]])/25)*30) + AAMC_Raw_Data_for_FY22[[#This Row],[Median]]","v":571773},{"$f":"(((AAMC_Raw_Data_for_FY22[[#This Row],[75th]]-AAMC_Raw_Data_for_FY22[[#This Row],[Median]])/25)*35) + AAMC_Raw_Data_for_FY22[[#This Row],[Median]]","v":587815},{"$f":"(((AAMC_Raw_Data_for_FY22[[#This Row],[75th]]-AAMC_Raw_Data_for_FY22[[#This Row],[Median]])/25)*40) + AAMC_Raw_Data_for_FY22[[#This Row],[Median]]","v":603857}]
[{"$f":"AAMC_Raw_Data_for_FY22[[#This Row],[Source]]&AAMC_Raw_Data_for_FY22[[#This Row],[Type]]&AAMC_Raw_Data_for_FY22[[#This Row],[School Subset]]&AAMC_Raw_Data_for_FY22[[#This Row],[Rank]]&AAMC_Raw_Data_for_FY22[[#This Row],[Degree]]&AAMC_Raw_Data_for_FY22[[#This Row],[Department / Specialty]]&\"L\"","v":"AAMCAcademicAllAssociateMDPediatric SurgeryL"},"Pediatric Surgery",3,"AAMC","Academic","All","Associate","MD","2021-2022",521017,{"$f":"(((AAMC_Raw_Data_for_FY22[[#This Row],[Median]]-AAMC_Raw_Data_for_FY22[[#This Row],[25th]])/25)*5) + AAMC_Raw_Data_for_FY22[[#This Row],[25th]]","v":533711.6},{"$f":"(((AAMC_Raw_Data_for_FY22[[#This Row],[Median]]-AAMC_Raw_Data_for_FY22[[#This Row],[25th]])/25)*10) + AAMC_Raw_Data_for_FY22[[#This Row],[25th]]","v":546406.19999999995},{"$f":"(((AAMC_Raw_Data_for_FY22[[#This Row],[Median]]-AAMC_Raw_Data_for_FY22[[#This Row],[25th]])/25)*15) + AAMC_Raw_Data_for_FY22[[#This Row],[25th]]","v":559100.80000000005},{"$f":"(((AAMC_Raw_Data_for_FY22[[#This Row],[Median]]-AAMC_Raw_Data_for_FY22[[#This Row],[25th]])/25)*20) + AAMC_Raw_Data_for_FY22[[#This Row],[25th]]","v":571795.4},584490,{"$f":"(((AAMC_Raw_Data_for_FY22[[#This Row],[75th]]-AAMC_Raw_Data_for_FY22[[#This Row],[Median]])/25)*5) + AAMC_Raw_Data_for_FY22[[#This Row],[Median]]","v":602785.19999999995},{"$f":"(((AAMC_Raw_Data_for_FY22[[#This Row],[75th]]-AAMC_Raw_Data_for_FY22[[#This Row],[Median]])/25)*10) + AAMC_Raw_Data_for_FY22[[#This Row],[Median]]","v":621080.4},{"$f":"(((AAMC_Raw_Data_for_FY22[[#This Row],[75th]]-AAMC_Raw_Data_for_FY22[[#This Row],[Median]])/25)*15) + AAMC_Raw_Data_for_FY22[[#This Row],[Median]]","v":639375.6},{"$f":"(((AAMC_Raw_Data_for_FY22[[#This Row],[75th]]-AAMC_Raw_Data_for_FY22[[#This Row],[Median]])/25)*20) + AAMC_Raw_Data_for_FY22[[#This Row],[Median]]","v":657670.80000000005},675966,{"$f":"(((AAMC_Raw_Data_for_FY22[[#This Row],[75th]]-AAMC_Raw_Data_for_FY22[[#This Row],[Median]])/25)*30) + AAMC_Raw_Data_for_FY22[[#This Row],[Median]]","v":694261.2},{"$f":"(((AAMC_Raw_Data_for_FY22[[#This Row],[75th]]-AAMC_Raw_Data_for_FY22[[#This Row],[Median]])/25)*35) + AAMC_Raw_Data_for_FY22[[#This Row],[Median]]","v":712556.4},{"$f":"(((AAMC_Raw_Data_for_FY22[[#This Row],[75th]]-AAMC_Raw_Data_for_FY22[[#This Row],[Median]])/25)*40) + AAMC_Raw_Data_for_FY22[[#This Row],[Median]]","v":730851.6}]
[{"$f":"AAMC_Raw_Data_for_FY22[[#This Row],[Source]]&AAMC_Raw_Data_for_FY22[[#This Row],[Type]]&AAMC_Raw_Data_for_FY22[[#This Row],[School Subset]]&AAMC_Raw_Data_for_FY22[[#This Row],[Rank]]&AAMC_Raw_Data_for_FY22[[#This Row],[Degree]]&AAMC_Raw_Data_for_FY22[[#This Row],[Department / Specialty]]&\"L\"","v":"AAMCAcademicAllProfessorMDPediatric SurgeryL"},"Pediatric Surgery",2,"AAMC","Academic","All","Professor","MD","2021-2022",575603,{"$f":"(((AAMC_Raw_Data_for_FY22[[#This Row],[Median]]-AAMC_Raw_Data_for_FY22[[#This Row],[25th]])/25)*5) + AAMC_Raw_Data_for_FY22[[#This Row],[25th]]","v":595242.4},{"$f":"(((AAMC_Raw_Data_for_FY22[[#This Row],[Median]]-AAMC_Raw_Data_for_FY22[[#This Row],[25th]])/25)*10) + AAMC_Raw_Data_for_FY22[[#This Row],[25th]]","v":614881.80000000005},{"$f":"(((AAMC_Raw_Data_for_FY22[[#This Row],[Median]]-AAMC_Raw_Data_for_FY22[[#This Row],[25th]])/25)*15) + AAMC_Raw_Data_for_FY22[[#This Row],[25th]]","v":634521.19999999995},{"$f":"(((AAMC_Raw_Data_for_FY22[[#This Row],[Median]]-AAMC_Raw_Data_for_FY22[[#This Row],[25th]])/25)*20) + AAMC_Raw_Data_for_FY22[[#This Row],[25th]]","v":654160.6},673800,{"$f":"(((AAMC_Raw_Data_for_FY22[[#This Row],[75th]]-AAMC_Raw_Data_for_FY22[[#This Row],[Median]])/25)*5) + AAMC_Raw_Data_for_FY22[[#This Row],[Median]]","v":699728.4},{"$f":"(((AAMC_Raw_Data_for_FY22[[#This Row],[75th]]-AAMC_Raw_Data_for_FY22[[#This Row],[Median]])/25)*10) + AAMC_Raw_Data_for_FY22[[#This Row],[Median]]","v":725656.8},{"$f":"(((AAMC_Raw_Data_for_FY22[[#This Row],[75th]]-AAMC_Raw_Data_for_FY22[[#This Row],[Median]])/25)*15) + AAMC_Raw_Data_for_FY22[[#This Row],[Median]]","v":751585.2},{"$f":"(((AAMC_Raw_Data_for_FY22[[#This Row],[75th]]-AAMC_Raw_Data_for_FY22[[#This Row],[Median]])/25)*20) + AAMC_Raw_Data_for_FY22[[#This Row],[Median]]","v":777513.6},803442,{"$f":"(((AAMC_Raw_Data_for_FY22[[#This Row],[75th]]-AAMC_Raw_Data_for_FY22[[#This Row],[Median]])/25)*30) + AAMC_Raw_Data_for_FY22[[#This Row],[Median]]","v":829370.4},{"$f":"(((AAMC_Raw_Data_for_FY22[[#This Row],[75th]]-AAMC_Raw_Data_for_FY22[[#This Row],[Median]])/25)*35) + AAMC_Raw_Data_for_FY22[[#This Row],[Median]]","v":855298.8},{"$f":"(((AAMC_Raw_Data_for_FY22[[#This Row],[75th]]-AAMC_Raw_Data_for_FY22[[#This Row],[Median]])/25)*40) + AAMC_Raw_Data_for_FY22[[#This Row],[Median]]","v":881227.2}]
[{"$f":"AAMC_Raw_Data_for_FY22[[#This Row],[Source]]&AAMC_Raw_Data_for_FY22[[#This Row],[Type]]&AAMC_Raw_Data_for_FY22[[#This Row],[School Subset]]&AAMC_Raw_Data_for_FY22[[#This Row],[Rank]]&AAMC_Raw_Data_for_FY22[[#This Row],[Degree]]&AAMC_Raw_Data_for_FY22[[#This Row],[Department / Specialty]]&\"L\"","v":"AAMCAcademicAllChiefMDPediatric SurgeryL"},"Pediatric Surgery",6,"AAMC","Academic","All","Chief","MD","2021-2022",668344,{"$f":"(((AAMC_Raw_Data_for_FY22[[#This Row],[Median]]-AAMC_Raw_Data_for_FY22[[#This Row],[25th]])/25)*5) + AAMC_Raw_Data_for_FY22[[#This Row],[25th]]","v":695136.8},{"$f":"(((AAMC_Raw_Data_for_FY22[[#This Row],[Median]]-AAMC_Raw_Data_for_FY22[[#This Row],[25th]])/25)*10) + AAMC_Raw_Data_for_FY22[[#This Row],[25th]]","v":721929.6},{"$f":"(((AAMC_Raw_Data_for_FY22[[#This Row],[Median]]-AAMC_Raw_Data_for_FY22[[#This Row],[25th]])/25)*15) + AAMC_Raw_Data_for_FY22[[#This Row],[25th]]","v":748722.4},{"$f":"(((AAMC_Raw_Data_for_FY22[[#This Row],[Median]]-AAMC_Raw_Data_for_FY22[[#This Row],[25th]])/25)*20) + AAMC_Raw_Data_for_FY22[[#This Row],[25th]]","v":775515.2},802308,{"$f":"(((AAMC_Raw_Data_for_FY22[[#This Row],[75th]]-AAMC_Raw_Data_for_FY22[[#This Row],[Median]])/25)*5) + AAMC_Raw_Data_for_FY22[[#This Row],[Median]]","v":840702},{"$f":"(((AAMC_Raw_Data_for_FY22[[#This Row],[75th]]-AAMC_Raw_Data_for_FY22[[#This Row],[Median]])/25)*10) + AAMC_Raw_Data_for_FY22[[#This Row],[Median]]","v":879096},{"$f":"(((AAMC_Raw_Data_for_FY22[[#This Row],[75th]]-AAMC_Raw_Data_for_FY22[[#This Row],[Median]])/25)*15) + AAMC_Raw_Data_for_FY22[[#This Row],[Median]]","v":917490},{"$f":"(((AAMC_Raw_Data_for_FY22[[#This Row],[75th]]-AAMC_Raw_Data_for_FY22[[#This Row],[Median]])/25)*20) + AAMC_Raw_Data_for_FY22[[#This Row],[Median]]","v":955884},994278,{"$f":"(((AAMC_Raw_Data_for_FY22[[#This Row],[75th]]-AAMC_Raw_Data_for_FY22[[#This Row],[Median]])/25)*30) + AAMC_Raw_Data_for_FY22[[#This Row],[Median]]","v":1032672},{"$f":"(((AAMC_Raw_Data_for_FY22[[#This Row],[75th]]-AAMC_Raw_Data_for_FY22[[#This Row],[Median]])/25)*35) + AAMC_Raw_Data_for_FY22[[#This Row],[Median]]","v":1071066},{"$f":"(((AAMC_Raw_Data_for_FY22[[#This Row],[75th]]-AAMC_Raw_Data_for_FY22[[#This Row],[Median]])/25)*40) + AAMC_Raw_Data_for_FY22[[#This Row],[Median]]","v":1109460}]
[{"$f":"AAMC_Raw_Data_for_FY22[[#This Row],[Source]]&AAMC_Raw_Data_for_FY22[[#This Row],[Type]]&AAMC_Raw_Data_for_FY22[[#This Row],[School Subset]]&AAMC_Raw_Data_for_FY22[[#This Row],[Rank]]&AAMC_Raw_Data_for_FY22[[#This Row],[Degree]]&AAMC_Raw_Data_for_FY22[[#This Row],[Department / Specialty]]&\"L\"","v":"AAMCAcademicAllChairMDPediatric SurgeryL"},"Pediatric Surgery",1,"AAMC","Academic","All","Chair","MD","2021-2022",null,{"$f":"(((AAMC_Raw_Data_for_FY22[[#This Row],[Median]]-AAMC_Raw_Data_for_FY22[[#This Row],[25th]])/25)*5) + AAMC_Raw_Data_for_FY22[[#This Row],[25th]]","v":0},{"$f":"(((AAMC_Raw_Data_for_FY22[[#This Row],[Median]]-AAMC_Raw_Data_for_FY22[[#This Row],[25th]])/25)*10) + AAMC_Raw_Data_for_FY22[[#This Row],[25th]]","v":0},{"$f":"(((AAMC_Raw_Data_for_FY22[[#This Row],[Median]]-AAMC_Raw_Data_for_FY22[[#This Row],[25th]])/25)*15) + AAMC_Raw_Data_for_FY22[[#This Row],[25th]]","v":0},{"$f":"(((AAMC_Raw_Data_for_FY22[[#This Row],[Median]]-AAMC_Raw_Data_for_FY22[[#This Row],[25th]])/25)*20) + AAMC_Raw_Data_for_FY22[[#This Row],[25th]]","v":0},null,{"$f":"(((AAMC_Raw_Data_for_FY22[[#This Row],[75th]]-AAMC_Raw_Data_for_FY22[[#This Row],[Median]])/25)*5) + AAMC_Raw_Data_for_FY22[[#This Row],[Median]]","v":0},{"$f":"(((AAMC_Raw_Data_for_FY22[[#This Row],[75th]]-AAMC_Raw_Data_for_FY22[[#This Row],[Median]])/25)*10) + AAMC_Raw_Data_for_FY22[[#This Row],[Median]]","v":0},{"$f":"(((AAMC_Raw_Data_for_FY22[[#This Row],[75th]]-AAMC_Raw_Data_for_FY22[[#This Row],[Median]])/25)*15) + AAMC_Raw_Data_for_FY22[[#This Row],[Median]]","v":0},{"$f":"(((AAMC_Raw_Data_for_FY22[[#This Row],[75th]]-AAMC_Raw_Data_for_FY22[[#This Row],[Median]])/25)*20) + AAMC_Raw_Data_for_FY22[[#This Row],[Median]]","v":0},null,{"$f":"(((AAMC_Raw_Data_for_FY22[[#This Row],[75th]]-AAMC_Raw_Data_for_FY22[[#This Row],[Median]])/25)*30) + AAMC_Raw_Data_for_FY22[[#This Row],[Median]]","v":0},{"$f":"(((AAMC_Raw_Data_for_FY22[[#This Row],[75th]]-AAMC_Raw_Data_for_FY22[[#This Row],[Median]])/25)*35) + AAMC_Raw_Data_for_FY22[[#This Row],[Median]]","v":0},{"$f":"(((AAMC_Raw_Data_for_FY22[[#This Row],[75th]]-AAMC_Raw_Data_for_FY22[[#This Row],[Median]])/25)*40) + AAMC_Raw_Data_for_FY22[[#This Row],[Median]]","v":0}]
[{"$f":"AAMC_Raw_Data_for_FY22[[#This Row],[Source]]&AAMC_Raw_Data_for_FY22[[#This Row],[Type]]&AAMC_Raw_Data_for_FY22[[#This Row],[School Subset]]&AAMC_Raw_Data_for_FY22[[#This Row],[Rank]]&AAMC_Raw_Data_for_FY22[[#This Row],[Degree]]&AAMC_Raw_Data_for_FY22[[#This Row],[Department / Specialty]]&\"L\"","v":"AAMCAcademicAllInstructorMDPlastic SurgeryL"},"Plastic Surgery",5,"AAMC","Academic","All","Instructor","MD","2021-2022",79196,{"$f":"(((AAMC_Raw_Data_for_FY22[[#This Row],[Median]]-AAMC_Raw_Data_for_FY22[[#This Row],[25th]])/25)*5) + AAMC_Raw_Data_for_FY22[[#This Row],[25th]]","v":80356.800000000003},{"$f":"(((AAMC_Raw_Data_for_FY22[[#This Row],[Median]]-AAMC_Raw_Data_for_FY22[[#This Row],[25th]])/25)*10) + AAMC_Raw_Data_for_FY22[[#This Row],[25th]]","v":81517.600000000006},{"$f":"(((AAMC_Raw_Data_for_FY22[[#This Row],[Median]]-AAMC_Raw_Data_for_FY22[[#This Row],[25th]])/25)*15) + AAMC_Raw_Data_for_FY22[[#This Row],[25th]]","v":82678.399999999994},{"$f":"(((AAMC_Raw_Data_for_FY22[[#This Row],[Median]]-AAMC_Raw_Data_for_FY22[[#This Row],[25th]])/25)*20) + AAMC_Raw_Data_for_FY22[[#This Row],[25th]]","v":83839.199999999997},85000,{"$f":"(((AAMC_Raw_Data_for_FY22[[#This Row],[75th]]-AAMC_Raw_Data_for_FY22[[#This Row],[Median]])/25)*5) + AAMC_Raw_Data_for_FY22[[#This Row],[Median]]","v":114852.8},{"$f":"(((AAMC_Raw_Data_for_FY22[[#This Row],[75th]]-AAMC_Raw_Data_for_FY22[[#This Row],[Median]])/25)*10) + AAMC_Raw_Data_for_FY22[[#This Row],[Median]]","v":144705.60000000001},{"$f":"(((AAMC_Raw_Data_for_FY22[[#This Row],[75th]]-AAMC_Raw_Data_for_FY22[[#This Row],[Median]])/25)*15) + AAMC_Raw_Data_for_FY22[[#This Row],[Median]]","v":174558.40000000002},{"$f":"(((AAMC_Raw_Data_for_FY22[[#This Row],[75th]]-AAMC_Raw_Data_for_FY22[[#This Row],[Median]])/25)*20) + AAMC_Raw_Data_for_FY22[[#This Row],[Median]]","v":204411.2},234264,{"$f":"(((AAMC_Raw_Data_for_FY22[[#This Row],[75th]]-AAMC_Raw_Data_for_FY22[[#This Row],[Median]])/25)*30) + AAMC_Raw_Data_for_FY22[[#This Row],[Median]]","v":264116.80000000005},{"$f":"(((AAMC_Raw_Data_for_FY22[[#This Row],[75th]]-AAMC_Raw_Data_for_FY22[[#This Row],[Median]])/25)*35) + AAMC_Raw_Data_for_FY22[[#This Row],[Median]]","v":293969.59999999998},{"$f":"(((AAMC_Raw_Data_for_FY22[[#This Row],[75th]]-AAMC_Raw_Data_for_FY22[[#This Row],[Median]])/25)*40) + AAMC_Raw_Data_for_FY22[[#This Row],[Median]]","v":323822.40000000002}]
[{"$f":"AAMC_Raw_Data_for_FY22[[#This Row],[Source]]&AAMC_Raw_Data_for_FY22[[#This Row],[Type]]&AAMC_Raw_Data_for_FY22[[#This Row],[School Subset]]&AAMC_Raw_Data_for_FY22[[#This Row],[Rank]]&AAMC_Raw_Data_for_FY22[[#This Row],[Degree]]&AAMC_Raw_Data_for_FY22[[#This Row],[Department / Specialty]]&\"L\"","v":"AAMCAcademicAllAssistantMDPlastic SurgeryL"},"Plastic Surgery",4,"AAMC","Academic","All","Assistant","MD","2021-2022",365500,{"$f":"(((AAMC_Raw_Data_for_FY22[[#This Row],[Median]]-AAMC_Raw_Data_for_FY22[[#This Row],[25th]])/25)*5) + AAMC_Raw_Data_for_FY22[[#This Row],[25th]]","v":378169.2},{"$f":"(((AAMC_Raw_Data_for_FY22[[#This Row],[Median]]-AAMC_Raw_Data_for_FY22[[#This Row],[25th]])/25)*10) + AAMC_Raw_Data_for_FY22[[#This Row],[25th]]","v":390838.4},{"$f":"(((AAMC_Raw_Data_for_FY22[[#This Row],[Median]]-AAMC_Raw_Data_for_FY22[[#This Row],[25th]])/25)*15) + AAMC_Raw_Data_for_FY22[[#This Row],[25th]]","v":403507.6},{"$f":"(((AAMC_Raw_Data_for_FY22[[#This Row],[Median]]-AAMC_Raw_Data_for_FY22[[#This Row],[25th]])/25)*20) + AAMC_Raw_Data_for_FY22[[#This Row],[25th]]","v":416176.8},428846,{"$f":"(((AAMC_Raw_Data_for_FY22[[#This Row],[75th]]-AAMC_Raw_Data_for_FY22[[#This Row],[Median]])/25)*5) + AAMC_Raw_Data_for_FY22[[#This Row],[Median]]","v":458076.8},{"$f":"(((AAMC_Raw_Data_for_FY22[[#This Row],[75th]]-AAMC_Raw_Data_for_FY22[[#This Row],[Median]])/25)*10) + AAMC_Raw_Data_for_FY22[[#This Row],[Median]]","v":487307.6},{"$f":"(((AAMC_Raw_Data_for_FY22[[#This Row],[75th]]-AAMC_Raw_Data_for_FY22[[#This Row],[Median]])/25)*15) + AAMC_Raw_Data_for_FY22[[#This Row],[Median]]","v":516538.4},{"$f":"(((AAMC_Raw_Data_for_FY22[[#This Row],[75th]]-AAMC_Raw_Data_for_FY22[[#This Row],[Median]])/25)*20) + AAMC_Raw_Data_for_FY22[[#This Row],[Median]]","v":545769.19999999995},575000,{"$f":"(((AAMC_Raw_Data_for_FY22[[#This Row],[75th]]-AAMC_Raw_Data_for_FY22[[#This Row],[Median]])/25)*30) + AAMC_Raw_Data_for_FY22[[#This Row],[Median]]","v":604230.80000000005},{"$f":"(((AAMC_Raw_Data_for_FY22[[#This Row],[75th]]-AAMC_Raw_Data_for_FY22[[#This Row],[Median]])/25)*35) + AAMC_Raw_Data_for_FY22[[#This Row],[Median]]","v":633461.6},{"$f":"(((AAMC_Raw_Data_for_FY22[[#This Row],[75th]]-AAMC_Raw_Data_for_FY22[[#This Row],[Median]])/25)*40) + AAMC_Raw_Data_for_FY22[[#This Row],[Median]]","v":662692.4}]
[{"$f":"AAMC_Raw_Data_for_FY22[[#This Row],[Source]]&AAMC_Raw_Data_for_FY22[[#This Row],[Type]]&AAMC_Raw_Data_for_FY22[[#This Row],[School Subset]]&AAMC_Raw_Data_for_FY22[[#This Row],[Rank]]&AAMC_Raw_Data_for_FY22[[#This Row],[Degree]]&AAMC_Raw_Data_for_FY22[[#This Row],[Department / Specialty]]&\"L\"","v":"AAMCAcademicAllAssociateMDPlastic SurgeryL"},"Plastic Surgery",3,"AAMC","Academic","All","Associate","MD","2021-2022",458250,{"$f":"(((AAMC_Raw_Data_for_FY22[[#This Row],[Median]]-AAMC_Raw_Data_for_FY22[[#This Row],[25th]])/25)*5) + AAMC_Raw_Data_for_FY22[[#This Row],[25th]]","v":482176.4},{"$f":"(((AAMC_Raw_Data_for_FY22[[#This Row],[Median]]-AAMC_Raw_Data_for_FY22[[#This Row],[25th]])/25)*10) + AAMC_Raw_Data_for_FY22[[#This Row],[25th]]","v":506102.8},{"$f":"(((AAMC_Raw_Data_for_FY22[[#This Row],[Median]]-AAMC_Raw_Data_for_FY22[[#This Row],[25th]])/25)*15) + AAMC_Raw_Data_for_FY22[[#This Row],[25th]]","v":530029.19999999995},{"$f":"(((AAMC_Raw_Data_for_FY22[[#This Row],[Median]]-AAMC_Raw_Data_for_FY22[[#This Row],[25th]])/25)*20) + AAMC_Raw_Data_for_FY22[[#This Row],[25th]]","v":553955.6},577882,{"$f":"(((AAMC_Raw_Data_for_FY22[[#This Row],[75th]]-AAMC_Raw_Data_for_FY22[[#This Row],[Median]])/25)*5) + AAMC_Raw_Data_for_FY22[[#This Row],[Median]]","v":614744.19999999995},{"$f":"(((AAMC_Raw_Data_for_FY22[[#This Row],[75th]]-AAMC_Raw_Data_for_FY22[[#This Row],[Median]])/25)*10) + AAMC_Raw_Data_for_FY22[[#This Row],[Median]]","v":651606.4},{"$f":"(((AAMC_Raw_Data_for_FY22[[#This Row],[75th]]-AAMC_Raw_Data_for_FY22[[#This Row],[Median]])/25)*15) + AAMC_Raw_Data_for_FY22[[#This Row],[Median]]","v":688468.6},{"$f":"(((AAMC_Raw_Data_for_FY22[[#This Row],[75th]]-AAMC_Raw_Data_for_FY22[[#This Row],[Median]])/25)*20) + AAMC_Raw_Data_for_FY22[[#This Row],[Median]]","v":725330.8},762193,{"$f":"(((AAMC_Raw_Data_for_FY22[[#This Row],[75th]]-AAMC_Raw_Data_for_FY22[[#This Row],[Median]])/25)*30) + AAMC_Raw_Data_for_FY22[[#This Row],[Median]]","v":799055.2},{"$f":"(((AAMC_Raw_Data_for_FY22[[#This Row],[75th]]-AAMC_Raw_Data_for_FY22[[#This Row],[Median]])/25)*35) + AAMC_Raw_Data_for_FY22[[#This Row],[Median]]","v":835917.4},{"$f":"(((AAMC_Raw_Data_for_FY22[[#This Row],[75th]]-AAMC_Raw_Data_for_FY22[[#This Row],[Median]])/25)*40) + AAMC_Raw_Data_for_FY22[[#This Row],[Median]]","v":872779.6}]
[{"$f":"AAMC_Raw_Data_for_FY22[[#This Row],[Source]]&AAMC_Raw_Data_for_FY22[[#This Row],[Type]]&AAMC_Raw_Data_for_FY22[[#This Row],[School Subset]]&AAMC_Raw_Data_for_FY22[[#This Row],[Rank]]&AAMC_Raw_Data_for_FY22[[#This Row],[Degree]]&AAMC_Raw_Data_for_FY22[[#This Row],[Department / Specialty]]&\"L\"","v":"AAMCAcademicAllProfessorMDPlastic SurgeryL"},"Plastic Surgery",2,"AAMC","Academic","All","Professor","MD","2021-2022",493792,{"$f":"(((AAMC_Raw_Data_for_FY22[[#This Row],[Median]]-AAMC_Raw_Data_for_FY22[[#This Row],[25th]])/25)*5) + AAMC_Raw_Data_for_FY22[[#This Row],[25th]]","v":529647.4},{"$f":"(((AAMC_Raw_Data_for_FY22[[#This Row],[Median]]-AAMC_Raw_Data_for_FY22[[#This Row],[25th]])/25)*10) + AAMC_Raw_Data_for_FY22[[#This Row],[25th]]","v":565502.80000000005},{"$f":"(((AAMC_Raw_Data_for_FY22[[#This Row],[Median]]-AAMC_Raw_Data_for_FY22[[#This Row],[25th]])/25)*15) + AAMC_Raw_Data_for_FY22[[#This Row],[25th]]","v":601358.19999999995},{"$f":"(((AAMC_Raw_Data_for_FY22[[#This Row],[Median]]-AAMC_Raw_Data_for_FY22[[#This Row],[25th]])/25)*20) + AAMC_Raw_Data_for_FY22[[#This Row],[25th]]","v":637213.6},673069,{"$f":"(((AAMC_Raw_Data_for_FY22[[#This Row],[75th]]-AAMC_Raw_Data_for_FY22[[#This Row],[Median]])/25)*5) + AAMC_Raw_Data_for_FY22[[#This Row],[Median]]","v":714731.2},{"$f":"(((AAMC_Raw_Data_for_FY22[[#This Row],[75th]]-AAMC_Raw_Data_for_FY22[[#This Row],[Median]])/25)*10) + AAMC_Raw_Data_for_FY22[[#This Row],[Median]]","v":756393.4},{"$f":"(((AAMC_Raw_Data_for_FY22[[#This Row],[75th]]-AAMC_Raw_Data_for_FY22[[#This Row],[Median]])/25)*15) + AAMC_Raw_Data_for_FY22[[#This Row],[Median]]","v":798055.6},{"$f":"(((AAMC_Raw_Data_for_FY22[[#This Row],[75th]]-AAMC_Raw_Data_for_FY22[[#This Row],[Median]])/25)*20) + AAMC_Raw_Data_for_FY22[[#This Row],[Median]]","v":839717.8},881380,{"$f":"(((AAMC_Raw_Data_for_FY22[[#This Row],[75th]]-AAMC_Raw_Data_for_FY22[[#This Row],[Median]])/25)*30) + AAMC_Raw_Data_for_FY22[[#This Row],[Median]]","v":923042.2},{"$f":"(((AAMC_Raw_Data_for_FY22[[#This Row],[75th]]-AAMC_Raw_Data_for_FY22[[#This Row],[Median]])/25)*35) + AAMC_Raw_Data_for_FY22[[#This Row],[Median]]","v":964704.4},{"$f":"(((AAMC_Raw_Data_for_FY22[[#This Row],[75th]]-AAMC_Raw_Data_for_FY22[[#This Row],[Median]])/25)*40) + AAMC_Raw_Data_for_FY22[[#This Row],[Median]]","v":1006366.6000000001}]
[{"$f":"AAMC_Raw_Data_for_FY22[[#This Row],[Source]]&AAMC_Raw_Data_for_FY22[[#This Row],[Type]]&AAMC_Raw_Data_for_FY22[[#This Row],[School Subset]]&AAMC_Raw_Data_for_FY22[[#This Row],[Rank]]&AAMC_Raw_Data_for_FY22[[#This Row],[Degree]]&AAMC_Raw_Data_for_FY22[[#This Row],[Department / Specialty]]&\"L\"","v":"AAMCAcademicAllChiefMDPlastic SurgeryL"},"Plastic Surgery",6,"AAMC","Academic","All","Chief","MD","2021-2022",613351,{"$f":"(((AAMC_Raw_Data_for_FY22[[#This Row],[Median]]-AAMC_Raw_Data_for_FY22[[#This Row],[25th]])/25)*5) + AAMC_Raw_Data_for_FY22[[#This Row],[25th]]","v":634113.19999999995},{"$f":"(((AAMC_Raw_Data_for_FY22[[#This Row],[Median]]-AAMC_Raw_Data_for_FY22[[#This Row],[25th]])/25)*10) + AAMC_Raw_Data_for_FY22[[#This Row],[25th]]","v":654875.4},{"$f":"(((AAMC_Raw_Data_for_FY22[[#This Row],[Median]]-AAMC_Raw_Data_for_FY22[[#This Row],[25th]])/25)*15) + AAMC_Raw_Data_for_FY22[[#This Row],[25th]]","v":675637.6},{"$f":"(((AAMC_Raw_Data_for_FY22[[#This Row],[Median]]-AAMC_Raw_Data_for_FY22[[#This Row],[25th]])/25)*20) + AAMC_Raw_Data_for_FY22[[#This Row],[25th]]","v":696399.8},717162,{"$f":"(((AAMC_Raw_Data_for_FY22[[#This Row],[75th]]-AAMC_Raw_Data_for_FY22[[#This Row],[Median]])/25)*5) + AAMC_Raw_Data_for_FY22[[#This Row],[Median]]","v":748254.6},{"$f":"(((AAMC_Raw_Data_for_FY22[[#This Row],[75th]]-AAMC_Raw_Data_for_FY22[[#This Row],[Median]])/25)*10) + AAMC_Raw_Data_for_FY22[[#This Row],[Median]]","v":779347.2},{"$f":"(((AAMC_Raw_Data_for_FY22[[#This Row],[75th]]-AAMC_Raw_Data_for_FY22[[#This Row],[Median]])/25)*15) + AAMC_Raw_Data_for_FY22[[#This Row],[Median]]","v":810439.8},{"$f":"(((AAMC_Raw_Data_for_FY22[[#This Row],[75th]]-AAMC_Raw_Data_for_FY22[[#This Row],[Median]])/25)*20) + AAMC_Raw_Data_for_FY22[[#This Row],[Median]]","v":841532.4},872625,{"$f":"(((AAMC_Raw_Data_for_FY22[[#This Row],[75th]]-AAMC_Raw_Data_for_FY22[[#This Row],[Median]])/25)*30) + AAMC_Raw_Data_for_FY22[[#This Row],[Median]]","v":903717.6},{"$f":"(((AAMC_Raw_Data_for_FY22[[#This Row],[75th]]-AAMC_Raw_Data_for_FY22[[#This Row],[Median]])/25)*35) + AAMC_Raw_Data_for_FY22[[#This Row],[Median]]","v":934810.2},{"$f":"(((AAMC_Raw_Data_for_FY22[[#This Row],[75th]]-AAMC_Raw_Data_for_FY22[[#This Row],[Median]])/25)*40) + AAMC_Raw_Data_for_FY22[[#This Row],[Median]]","v":965902.8}]
[{"$f":"AAMC_Raw_Data_for_FY22[[#This Row],[Source]]&AAMC_Raw_Data_for_FY22[[#This Row],[Type]]&AAMC_Raw_Data_for_FY22[[#This Row],[School Subset]]&AAMC_Raw_Data_for_FY22[[#This Row],[Rank]]&AAMC_Raw_Data_for_FY22[[#This Row],[Degree]]&AAMC_Raw_Data_for_FY22[[#This Row],[Department / Specialty]]&\"L\"","v":"AAMCAcademicAllChairMDPlastic SurgeryL"},"Plastic Surgery",1,"AAMC","Academic","All","Chair","MD","2021-2022",852901,{"$f":"(((AAMC_Raw_Data_for_FY22[[#This Row],[Median]]-AAMC_Raw_Data_for_FY22[[#This Row],[25th]])/25)*5) + AAMC_Raw_Data_for_FY22[[#This Row],[25th]]","v":858943},{"$f":"(((AAMC_Raw_Data_for_FY22[[#This Row],[Median]]-AAMC_Raw_Data_for_FY22[[#This Row],[25th]])/25)*10) + AAMC_Raw_Data_for_FY22[[#This Row],[25th]]","v":864985},{"$f":"(((AAMC_Raw_Data_for_FY22[[#This Row],[Median]]-AAMC_Raw_Data_for_FY22[[#This Row],[25th]])/25)*15) + AAMC_Raw_Data_for_FY22[[#This Row],[25th]]","v":871027},{"$f":"(((AAMC_Raw_Data_for_FY22[[#This Row],[Median]]-AAMC_Raw_Data_for_FY22[[#This Row],[25th]])/25)*20) + AAMC_Raw_Data_for_FY22[[#This Row],[25th]]","v":877069},883111,{"$f":"(((AAMC_Raw_Data_for_FY22[[#This Row],[75th]]-AAMC_Raw_Data_for_FY22[[#This Row],[Median]])/25)*5) + AAMC_Raw_Data_for_FY22[[#This Row],[Median]]","v":913609},{"$f":"(((AAMC_Raw_Data_for_FY22[[#This Row],[75th]]-AAMC_Raw_Data_for_FY22[[#This Row],[Median]])/25)*10) + AAMC_Raw_Data_for_FY22[[#This Row],[Median]]","v":944107},{"$f":"(((AAMC_Raw_Data_for_FY22[[#This Row],[75th]]-AAMC_Raw_Data_for_FY22[[#This Row],[Median]])/25)*15) + AAMC_Raw_Data_for_FY22[[#This Row],[Median]]","v":974605},{"$f":"(((AAMC_Raw_Data_for_FY22[[#This Row],[75th]]-AAMC_Raw_Data_for_FY22[[#This Row],[Median]])/25)*20) + AAMC_Raw_Data_for_FY22[[#This Row],[Median]]","v":1005103},1035601,{"$f":"(((AAMC_Raw_Data_for_FY22[[#This Row],[75th]]-AAMC_Raw_Data_for_FY22[[#This Row],[Median]])/25)*30) + AAMC_Raw_Data_for_FY22[[#This Row],[Median]]","v":1066099},{"$f":"(((AAMC_Raw_Data_for_FY22[[#This Row],[75th]]-AAMC_Raw_Data_for_FY22[[#This Row],[Median]])/25)*35) + AAMC_Raw_Data_for_FY22[[#This Row],[Median]]","v":1096597},{"$f":"(((AAMC_Raw_Data_for_FY22[[#This Row],[75th]]-AAMC_Raw_Data_for_FY22[[#This Row],[Median]])/25)*40) + AAMC_Raw_Data_for_FY22[[#This Row],[Median]]","v":1127095}]
[{"$f":"AAMC_Raw_Data_for_FY22[[#This Row],[Source]]&AAMC_Raw_Data_for_FY22[[#This Row],[Type]]&AAMC_Raw_Data_for_FY22[[#This Row],[School Subset]]&AAMC_Raw_Data_for_FY22[[#This Row],[Rank]]&AAMC_Raw_Data_for_FY22[[#This Row],[Degree]]&AAMC_Raw_Data_for_FY22[[#This Row],[Department / Specialty]]&\"L\"","v":"AAMCAcademicAllInstructorMDSurgical OncologyL"},"Surgical Oncology",5,"AAMC","Academic","All","Instructor","MD","2021-2022",284965,{"$f":"(((AAMC_Raw_Data_for_FY22[[#This Row],[Median]]-AAMC_Raw_Data_for_FY22[[#This Row],[25th]])/25)*5) + AAMC_Raw_Data_for_FY22[[#This Row],[25th]]","v":292874.8},{"$f":"(((AAMC_Raw_Data_for_FY22[[#This Row],[Median]]-AAMC_Raw_Data_for_FY22[[#This Row],[25th]])/25)*10) + AAMC_Raw_Data_for_FY22[[#This Row],[25th]]","v":300784.59999999998},{"$f":"(((AAMC_Raw_Data_for_FY22[[#This Row],[Median]]-AAMC_Raw_Data_for_FY22[[#This Row],[25th]])/25)*15) + AAMC_Raw_Data_for_FY22[[#This Row],[25th]]","v":308694.40000000002},{"$f":"(((AAMC_Raw_Data_for_FY22[[#This Row],[Median]]-AAMC_Raw_Data_for_FY22[[#This Row],[25th]])/25)*20) + AAMC_Raw_Data_for_FY22[[#This Row],[25th]]","v":316604.2},324514,{"$f":"(((AAMC_Raw_Data_for_FY22[[#This Row],[75th]]-AAMC_Raw_Data_for_FY22[[#This Row],[Median]])/25)*5) + AAMC_Raw_Data_for_FY22[[#This Row],[Median]]","v":334177.2},{"$f":"(((AAMC_Raw_Data_for_FY22[[#This Row],[75th]]-AAMC_Raw_Data_for_FY22[[#This Row],[Median]])/25)*10) + AAMC_Raw_Data_for_FY22[[#This Row],[Median]]","v":343840.4},{"$f":"(((AAMC_Raw_Data_for_FY22[[#This Row],[75th]]-AAMC_Raw_Data_for_FY22[[#This Row],[Median]])/25)*15) + AAMC_Raw_Data_for_FY22[[#This Row],[Median]]","v":353503.6},{"$f":"(((AAMC_Raw_Data_for_FY22[[#This Row],[75th]]-AAMC_Raw_Data_for_FY22[[#This Row],[Median]])/25)*20) + AAMC_Raw_Data_for_FY22[[#This Row],[Median]]","v":363166.8},372830,{"$f":"(((AAMC_Raw_Data_for_FY22[[#This Row],[75th]]-AAMC_Raw_Data_for_FY22[[#This Row],[Median]])/25)*30) + AAMC_Raw_Data_for_FY22[[#This Row],[Median]]","v":382493.2},{"$f":"(((AAMC_Raw_Data_for_FY22[[#This Row],[75th]]-AAMC_Raw_Data_for_FY22[[#This Row],[Median]])/25)*35) + AAMC_Raw_Data_for_FY22[[#This Row],[Median]]","v":392156.4},{"$f":"(((AAMC_Raw_Data_for_FY22[[#This Row],[75th]]-AAMC_Raw_Data_for_FY22[[#This Row],[Median]])/25)*40) + AAMC_Raw_Data_for_FY22[[#This Row],[Median]]","v":401819.6}]
[{"$f":"AAMC_Raw_Data_for_FY22[[#This Row],[Source]]&AAMC_Raw_Data_for_FY22[[#This Row],[Type]]&AAMC_Raw_Data_for_FY22[[#This Row],[School Subset]]&AAMC_Raw_Data_for_FY22[[#This Row],[Rank]]&AAMC_Raw_Data_for_FY22[[#This Row],[Degree]]&AAMC_Raw_Data_for_FY22[[#This Row],[Department / Specialty]]&\"L\"","v":"AAMCAcademicAllAssistantMDSurgical OncologyL"},"Surgical Oncology",4,"AAMC","Academic","All","Assistant","MD","2021-2022",310000,{"$f":"(((AAMC_Raw_Data_for_FY22[[#This Row],[Median]]-AAMC_Raw_Data_for_FY22[[#This Row],[25th]])/25)*5) + AAMC_Raw_Data_for_FY22[[#This Row],[25th]]","v":317823},{"$f":"(((AAMC_Raw_Data_for_FY22[[#This Row],[Median]]-AAMC_Raw_Data_for_FY22[[#This Row],[25th]])/25)*10) + AAMC_Raw_Data_for_FY22[[#This Row],[25th]]","v":325646},{"$f":"(((AAMC_Raw_Data_for_FY22[[#This Row],[Median]]-AAMC_Raw_Data_for_FY22[[#This Row],[25th]])/25)*15) + AAMC_Raw_Data_for_FY22[[#This Row],[25th]]","v":333469},{"$f":"(((AAMC_Raw_Data_for_FY22[[#This Row],[Median]]-AAMC_Raw_Data_for_FY22[[#This Row],[25th]])/25)*20) + AAMC_Raw_Data_for_FY22[[#This Row],[25th]]","v":341292},349115,{"$f":"(((AAMC_Raw_Data_for_FY22[[#This Row],[75th]]-AAMC_Raw_Data_for_FY22[[#This Row],[Median]])/25)*5) + AAMC_Raw_Data_for_FY22[[#This Row],[Median]]","v":361669},{"$f":"(((AAMC_Raw_Data_for_FY22[[#This Row],[75th]]-AAMC_Raw_Data_for_FY22[[#This Row],[Median]])/25)*10) + AAMC_Raw_Data_for_FY22[[#This Row],[Median]]","v":374223},{"$f":"(((AAMC_Raw_Data_for_FY22[[#This Row],[75th]]-AAMC_Raw_Data_for_FY22[[#This Row],[Median]])/25)*15) + AAMC_Raw_Data_for_FY22[[#This Row],[Median]]","v":386777},{"$f":"(((AAMC_Raw_Data_for_FY22[[#This Row],[75th]]-AAMC_Raw_Data_for_FY22[[#This Row],[Median]])/25)*20) + AAMC_Raw_Data_for_FY22[[#This Row],[Median]]","v":399331},411885,{"$f":"(((AAMC_Raw_Data_for_FY22[[#This Row],[75th]]-AAMC_Raw_Data_for_FY22[[#This Row],[Median]])/25)*30) + AAMC_Raw_Data_for_FY22[[#This Row],[Median]]","v":424439},{"$f":"(((AAMC_Raw_Data_for_FY22[[#This Row],[75th]]-AAMC_Raw_Data_for_FY22[[#This Row],[Median]])/25)*35) + AAMC_Raw_Data_for_FY22[[#This Row],[Median]]","v":436993},{"$f":"(((AAMC_Raw_Data_for_FY22[[#This Row],[75th]]-AAMC_Raw_Data_for_FY22[[#This Row],[Median]])/25)*40) + AAMC_Raw_Data_for_FY22[[#This Row],[Median]]","v":449547}]
[{"$f":"AAMC_Raw_Data_for_FY22[[#This Row],[Source]]&AAMC_Raw_Data_for_FY22[[#This Row],[Type]]&AAMC_Raw_Data_for_FY22[[#This Row],[School Subset]]&AAMC_Raw_Data_for_FY22[[#This Row],[Rank]]&AAMC_Raw_Data_for_FY22[[#This Row],[Degree]]&AAMC_Raw_Data_for_FY22[[#This Row],[Department / Specialty]]&\"L\"","v":"AAMCAcademicAllAssociateMDSurgical OncologyL"},"Surgical Oncology",3,"AAMC","Academic","All","Associate","MD","2021-2022",360744,{"$f":"(((AAMC_Raw_Data_for_FY22[[#This Row],[Median]]-AAMC_Raw_Data_for_FY22[[#This Row],[25th]])/25)*5) + AAMC_Raw_Data_for_FY22[[#This Row],[25th]]","v":372443.6},{"$f":"(((AAMC_Raw_Data_for_FY22[[#This Row],[Median]]-AAMC_Raw_Data_for_FY22[[#This Row],[25th]])/25)*10) + AAMC_Raw_Data_for_FY22[[#This Row],[25th]]","v":384143.2},{"$f":"(((AAMC_Raw_Data_for_FY22[[#This Row],[Median]]-AAMC_Raw_Data_for_FY22[[#This Row],[25th]])/25)*15) + AAMC_Raw_Data_for_FY22[[#This Row],[25th]]","v":395842.8},{"$f":"(((AAMC_Raw_Data_for_FY22[[#This Row],[Median]]-AAMC_Raw_Data_for_FY22[[#This Row],[25th]])/25)*20) + AAMC_Raw_Data_for_FY22[[#This Row],[25th]]","v":407542.4},419242,{"$f":"(((AAMC_Raw_Data_for_FY22[[#This Row],[75th]]-AAMC_Raw_Data_for_FY22[[#This Row],[Median]])/25)*5) + AAMC_Raw_Data_for_FY22[[#This Row],[Median]]","v":440533},{"$f":"(((AAMC_Raw_Data_for_FY22[[#This Row],[75th]]-AAMC_Raw_Data_for_FY22[[#This Row],[Median]])/25)*10) + AAMC_Raw_Data_for_FY22[[#This Row],[Median]]","v":461824},{"$f":"(((AAMC_Raw_Data_for_FY22[[#This Row],[75th]]-AAMC_Raw_Data_for_FY22[[#This Row],[Median]])/25)*15) + AAMC_Raw_Data_for_FY22[[#This Row],[Median]]","v":483115},{"$f":"(((AAMC_Raw_Data_for_FY22[[#This Row],[75th]]-AAMC_Raw_Data_for_FY22[[#This Row],[Median]])/25)*20) + AAMC_Raw_Data_for_FY22[[#This Row],[Median]]","v":504406},525697,{"$f":"(((AAMC_Raw_Data_for_FY22[[#This Row],[75th]]-AAMC_Raw_Data_for_FY22[[#This Row],[Median]])/25)*30) + AAMC_Raw_Data_for_FY22[[#This Row],[Median]]","v":546988},{"$f":"(((AAMC_Raw_Data_for_FY22[[#This Row],[75th]]-AAMC_Raw_Data_for_FY22[[#This Row],[Median]])/25)*35) + AAMC_Raw_Data_for_FY22[[#This Row],[Median]]","v":568279},{"$f":"(((AAMC_Raw_Data_for_FY22[[#This Row],[75th]]-AAMC_Raw_Data_for_FY22[[#This Row],[Median]])/25)*40) + AAMC_Raw_Data_for_FY22[[#This Row],[Median]]","v":589570}]
[{"$f":"AAMC_Raw_Data_for_FY22[[#This Row],[Source]]&AAMC_Raw_Data_for_FY22[[#This Row],[Type]]&AAMC_Raw_Data_for_FY22[[#This Row],[School Subset]]&AAMC_Raw_Data_for_FY22[[#This Row],[Rank]]&AAMC_Raw_Data_for_FY22[[#This Row],[Degree]]&AAMC_Raw_Data_for_FY22[[#This Row],[Department / Specialty]]&\"L\"","v":"AAMCAcademicAllProfessorMDSurgical OncologyL"},"Surgical Oncology",2,"AAMC","Academic","All","Professor","MD","2021-2022",414934,{"$f":"(((AAMC_Raw_Data_for_FY22[[#This Row],[Median]]-AAMC_Raw_Data_for_FY22[[#This Row],[25th]])/25)*5) + AAMC_Raw_Data_for_FY22[[#This Row],[25th]]","v":431947.2},{"$f":"(((AAMC_Raw_Data_for_FY22[[#This Row],[Median]]-AAMC_Raw_Data_for_FY22[[#This Row],[25th]])/25)*10) + AAMC_Raw_Data_for_FY22[[#This Row],[25th]]","v":448960.4},{"$f":"(((AAMC_Raw_Data_for_FY22[[#This Row],[Median]]-AAMC_Raw_Data_for_FY22[[#This Row],[25th]])/25)*15) + AAMC_Raw_Data_for_FY22[[#This Row],[25th]]","v":465973.6},{"$f":"(((AAMC_Raw_Data_for_FY22[[#This Row],[Median]]-AAMC_Raw_Data_for_FY22[[#This Row],[25th]])/25)*20) + AAMC_Raw_Data_for_FY22[[#This Row],[25th]]","v":482986.8},500000,{"$f":"(((AAMC_Raw_Data_for_FY22[[#This Row],[75th]]-AAMC_Raw_Data_for_FY22[[#This Row],[Median]])/25)*5) + AAMC_Raw_Data_for_FY22[[#This Row],[Median]]","v":528301},{"$f":"(((AAMC_Raw_Data_for_FY22[[#This Row],[75th]]-AAMC_Raw_Data_for_FY22[[#This Row],[Median]])/25)*10) + AAMC_Raw_Data_for_FY22[[#This Row],[Median]]","v":556602},{"$f":"(((AAMC_Raw_Data_for_FY22[[#This Row],[75th]]-AAMC_Raw_Data_for_FY22[[#This Row],[Median]])/25)*15) + AAMC_Raw_Data_for_FY22[[#This Row],[Median]]","v":584903},{"$f":"(((AAMC_Raw_Data_for_FY22[[#This Row],[75th]]-AAMC_Raw_Data_for_FY22[[#This Row],[Median]])/25)*20) + AAMC_Raw_Data_for_FY22[[#This Row],[Median]]","v":613204},641505,{"$f":"(((AAMC_Raw_Data_for_FY22[[#This Row],[75th]]-AAMC_Raw_Data_for_FY22[[#This Row],[Median]])/25)*30) + AAMC_Raw_Data_for_FY22[[#This Row],[Median]]","v":669806},{"$f":"(((AAMC_Raw_Data_for_FY22[[#This Row],[75th]]-AAMC_Raw_Data_for_FY22[[#This Row],[Median]])/25)*35) + AAMC_Raw_Data_for_FY22[[#This Row],[Median]]","v":698107},{"$f":"(((AAMC_Raw_Data_for_FY22[[#This Row],[75th]]-AAMC_Raw_Data_for_FY22[[#This Row],[Median]])/25)*40) + AAMC_Raw_Data_for_FY22[[#This Row],[Median]]","v":726408}]
[{"$f":"AAMC_Raw_Data_for_FY22[[#This Row],[Source]]&AAMC_Raw_Data_for_FY22[[#This Row],[Type]]&AAMC_Raw_Data_for_FY22[[#This Row],[School Subset]]&AAMC_Raw_Data_for_FY22[[#This Row],[Rank]]&AAMC_Raw_Data_for_FY22[[#This Row],[Degree]]&AAMC_Raw_Data_for_FY22[[#This Row],[Department / Specialty]]&\"L\"","v":"AAMCAcademicAllChiefMDSurgical OncologyL"},"Surgical Oncology",6,"AAMC","Academic","All","Chief","MD","2021-2022",510222,{"$f":"(((AAMC_Raw_Data_for_FY22[[#This Row],[Median]]-AAMC_Raw_Data_for_FY22[[#This Row],[25th]])/25)*5) + AAMC_Raw_Data_for_FY22[[#This Row],[25th]]","v":525854},{"$f":"(((AAMC_Raw_Data_for_FY22[[#This Row],[Median]]-AAMC_Raw_Data_for_FY22[[#This Row],[25th]])/25)*10) + AAMC_Raw_Data_for_FY22[[#This Row],[25th]]","v":541486},{"$f":"(((AAMC_Raw_Data_for_FY22[[#This Row],[Median]]-AAMC_Raw_Data_for_FY22[[#This Row],[25th]])/25)*15) + AAMC_Raw_Data_for_FY22[[#This Row],[25th]]","v":557118},{"$f":"(((AAMC_Raw_Data_for_FY22[[#This Row],[Median]]-AAMC_Raw_Data_for_FY22[[#This Row],[25th]])/25)*20) + AAMC_Raw_Data_for_FY22[[#This Row],[25th]]","v":572750},588382,{"$f":"(((AAMC_Raw_Data_for_FY22[[#This Row],[75th]]-AAMC_Raw_Data_for_FY22[[#This Row],[Median]])/25)*5) + AAMC_Raw_Data_for_FY22[[#This Row],[Median]]","v":619376.4},{"$f":"(((AAMC_Raw_Data_for_FY22[[#This Row],[75th]]-AAMC_Raw_Data_for_FY22[[#This Row],[Median]])/25)*10) + AAMC_Raw_Data_for_FY22[[#This Row],[Median]]","v":650370.80000000005},{"$f":"(((AAMC_Raw_Data_for_FY22[[#This Row],[75th]]-AAMC_Raw_Data_for_FY22[[#This Row],[Median]])/25)*15) + AAMC_Raw_Data_for_FY22[[#This Row],[Median]]","v":681365.2},{"$f":"(((AAMC_Raw_Data_for_FY22[[#This Row],[75th]]-AAMC_Raw_Data_for_FY22[[#This Row],[Median]])/25)*20) + AAMC_Raw_Data_for_FY22[[#This Row],[Median]]","v":712359.6},743354,{"$f":"(((AAMC_Raw_Data_for_FY22[[#This Row],[75th]]-AAMC_Raw_Data_for_FY22[[#This Row],[Median]])/25)*30) + AAMC_Raw_Data_for_FY22[[#This Row],[Median]]","v":774348.4},{"$f":"(((AAMC_Raw_Data_for_FY22[[#This Row],[75th]]-AAMC_Raw_Data_for_FY22[[#This Row],[Median]])/25)*35) + AAMC_Raw_Data_for_FY22[[#This Row],[Median]]","v":805342.8},{"$f":"(((AAMC_Raw_Data_for_FY22[[#This Row],[75th]]-AAMC_Raw_Data_for_FY22[[#This Row],[Median]])/25)*40) + AAMC_Raw_Data_for_FY22[[#This Row],[Median]]","v":836337.2}]
[{"$f":"AAMC_Raw_Data_for_FY22[[#This Row],[Source]]&AAMC_Raw_Data_for_FY22[[#This Row],[Type]]&AAMC_Raw_Data_for_FY22[[#This Row],[School Subset]]&AAMC_Raw_Data_for_FY22[[#This Row],[Rank]]&AAMC_Raw_Data_for_FY22[[#This Row],[Degree]]&AAMC_Raw_Data_for_FY22[[#This Row],[Department / Specialty]]&\"L\"","v":"AAMCAcademicAllChairMDSurgical OncologyL"},"Surgical Oncology",1,"AAMC","Academic","All","Chair","MD","2021-2022",916197,{"$f":"(((AAMC_Raw_Data_for_FY22[[#This Row],[Median]]-AAMC_Raw_Data_for_FY22[[#This Row],[25th]])/25)*5) + AAMC_Raw_Data_for_FY22[[#This Row],[25th]]","v":938601.6},{"$f":"(((AAMC_Raw_Data_for_FY22[[#This Row],[Median]]-AAMC_Raw_Data_for_FY22[[#This Row],[25th]])/25)*10) + AAMC_Raw_Data_for_FY22[[#This Row],[25th]]","v":961006.2},{"$f":"(((AAMC_Raw_Data_for_FY22[[#This Row],[Median]]-AAMC_Raw_Data_for_FY22[[#This Row],[25th]])/25)*15) + AAMC_Raw_Data_for_FY22[[#This Row],[25th]]","v":983410.8},{"$f":"(((AAMC_Raw_Data_for_FY22[[#This Row],[Median]]-AAMC_Raw_Data_for_FY22[[#This Row],[25th]])/25)*20) + AAMC_Raw_Data_for_FY22[[#This Row],[25th]]","v":1005815.4},1028220,{"$f":"(((AAMC_Raw_Data_for_FY22[[#This Row],[75th]]-AAMC_Raw_Data_for_FY22[[#This Row],[Median]])/25)*5) + AAMC_Raw_Data_for_FY22[[#This Row],[Median]]","v":1060243.6000000001},{"$f":"(((AAMC_Raw_Data_for_FY22[[#This Row],[75th]]-AAMC_Raw_Data_for_FY22[[#This Row],[Median]])/25)*10) + AAMC_Raw_Data_for_FY22[[#This Row],[Median]]","v":1092267.2},{"$f":"(((AAMC_Raw_Data_for_FY22[[#This Row],[75th]]-AAMC_Raw_Data_for_FY22[[#This Row],[Median]])/25)*15) + AAMC_Raw_Data_for_FY22[[#This Row],[Median]]","v":1124290.8},{"$f":"(((AAMC_Raw_Data_for_FY22[[#This Row],[75th]]-AAMC_Raw_Data_for_FY22[[#This Row],[Median]])/25)*20) + AAMC_Raw_Data_for_FY22[[#This Row],[Median]]","v":1156314.3999999999},1188338,{"$f":"(((AAMC_Raw_Data_for_FY22[[#This Row],[75th]]-AAMC_Raw_Data_for_FY22[[#This Row],[Median]])/25)*30) + AAMC_Raw_Data_for_FY22[[#This Row],[Median]]","v":1220361.6000000001},{"$f":"(((AAMC_Raw_Data_for_FY22[[#This Row],[75th]]-AAMC_Raw_Data_for_FY22[[#This Row],[Median]])/25)*35) + AAMC_Raw_Data_for_FY22[[#This Row],[Median]]","v":1252385.2},{"$f":"(((AAMC_Raw_Data_for_FY22[[#This Row],[75th]]-AAMC_Raw_Data_for_FY22[[#This Row],[Median]])/25)*40) + AAMC_Raw_Data_for_FY22[[#This Row],[Median]]","v":1284408.8}]
[{"$f":"AAMC_Raw_Data_for_FY22[[#This Row],[Source]]&AAMC_Raw_Data_for_FY22[[#This Row],[Type]]&AAMC_Raw_Data_for_FY22[[#This Row],[School Subset]]&AAMC_Raw_Data_for_FY22[[#This Row],[Rank]]&AAMC_Raw_Data_for_FY22[[#This Row],[Degree]]&AAMC_Raw_Data_for_FY22[[#This Row],[Department / Specialty]]&\"L\"","v":"AAMCAcademicAllInstructorMDThoracic & Cardiovascular SurgeryL"},"Thoracic & Cardiovascular Surgery",5,"AAMC","Academic","All","Instructor","MD","2021-2022",132525,{"$f":"(((AAMC_Raw_Data_for_FY22[[#This Row],[Median]]-AAMC_Raw_Data_for_FY22[[#This Row],[25th]])/25)*5) + AAMC_Raw_Data_for_FY22[[#This Row],[25th]]","v":163796.4},{"$f":"(((AAMC_Raw_Data_for_FY22[[#This Row],[Median]]-AAMC_Raw_Data_for_FY22[[#This Row],[25th]])/25)*10) + AAMC_Raw_Data_for_FY22[[#This Row],[25th]]","v":195067.8},{"$f":"(((AAMC_Raw_Data_for_FY22[[#This Row],[Median]]-AAMC_Raw_Data_for_FY22[[#This Row],[25th]])/25)*15) + AAMC_Raw_Data_for_FY22[[#This Row],[25th]]","v":226339.20000000001},{"$f":"(((AAMC_Raw_Data_for_FY22[[#This Row],[Median]]-AAMC_Raw_Data_for_FY22[[#This Row],[25th]])/25)*20) + AAMC_Raw_Data_for_FY22[[#This Row],[25th]]","v":257610.59999999998},288882,{"$f":"(((AAMC_Raw_Data_for_FY22[[#This Row],[75th]]-AAMC_Raw_Data_for_FY22[[#This Row],[Median]])/25)*5) + AAMC_Raw_Data_for_FY22[[#This Row],[Median]]","v":315713.40000000002},{"$f":"(((AAMC_Raw_Data_for_FY22[[#This Row],[75th]]-AAMC_Raw_Data_for_FY22[[#This Row],[Median]])/25)*10) + AAMC_Raw_Data_for_FY22[[#This Row],[Median]]","v":342544.8},{"$f":"(((AAMC_Raw_Data_for_FY22[[#This Row],[75th]]-AAMC_Raw_Data_for_FY22[[#This Row],[Median]])/25)*15) + AAMC_Raw_Data_for_FY22[[#This Row],[Median]]","v":369376.2},{"$f":"(((AAMC_Raw_Data_for_FY22[[#This Row],[75th]]-AAMC_Raw_Data_for_FY22[[#This Row],[Median]])/25)*20) + AAMC_Raw_Data_for_FY22[[#This Row],[Median]]","v":396207.6},423039,{"$f":"(((AAMC_Raw_Data_for_FY22[[#This Row],[75th]]-AAMC_Raw_Data_for_FY22[[#This Row],[Median]])/25)*30) + AAMC_Raw_Data_for_FY22[[#This Row],[Median]]","v":449870.4},{"$f":"(((AAMC_Raw_Data_for_FY22[[#This Row],[75th]]-AAMC_Raw_Data_for_FY22[[#This Row],[Median]])/25)*35) + AAMC_Raw_Data_for_FY22[[#This Row],[Median]]","v":476701.8},{"$f":"(((AAMC_Raw_Data_for_FY22[[#This Row],[75th]]-AAMC_Raw_Data_for_FY22[[#This Row],[Median]])/25)*40) + AAMC_Raw_Data_for_FY22[[#This Row],[Median]]","v":503533.19999999995}]
[{"$f":"AAMC_Raw_Data_for_FY22[[#This Row],[Source]]&AAMC_Raw_Data_for_FY22[[#This Row],[Type]]&AAMC_Raw_Data_for_FY22[[#This Row],[School Subset]]&AAMC_Raw_Data_for_FY22[[#This Row],[Rank]]&AAMC_Raw_Data_for_FY22[[#This Row],[Degree]]&AAMC_Raw_Data_for_FY22[[#This Row],[Department / Specialty]]&\"L\"","v":"AAMCAcademicAllAssistantMDThoracic & Cardiovascular SurgeryL"},"Thoracic & Cardiovascular Surgery",4,"AAMC","Academic","All","Assistant","MD","2021-2022",401001,{"$f":"(((AAMC_Raw_Data_for_FY22[[#This Row],[Median]]-AAMC_Raw_Data_for_FY22[[#This Row],[25th]])/25)*5) + AAMC_Raw_Data_for_FY22[[#This Row],[25th]]","v":418300.8},{"$f":"(((AAMC_Raw_Data_for_FY22[[#This Row],[Median]]-AAMC_Raw_Data_for_FY22[[#This Row],[25th]])/25)*10) + AAMC_Raw_Data_for_FY22[[#This Row],[25th]]","v":435600.6},{"$f":"(((AAMC_Raw_Data_for_FY22[[#This Row],[Median]]-AAMC_Raw_Data_for_FY22[[#This Row],[25th]])/25)*15) + AAMC_Raw_Data_for_FY22[[#This Row],[25th]]","v":452900.4},{"$f":"(((AAMC_Raw_Data_for_FY22[[#This Row],[Median]]-AAMC_Raw_Data_for_FY22[[#This Row],[25th]])/25)*20) + AAMC_Raw_Data_for_FY22[[#This Row],[25th]]","v":470200.2},487500,{"$f":"(((AAMC_Raw_Data_for_FY22[[#This Row],[75th]]-AAMC_Raw_Data_for_FY22[[#This Row],[Median]])/25)*5) + AAMC_Raw_Data_for_FY22[[#This Row],[Median]]","v":514661.6},{"$f":"(((AAMC_Raw_Data_for_FY22[[#This Row],[75th]]-AAMC_Raw_Data_for_FY22[[#This Row],[Median]])/25)*10) + AAMC_Raw_Data_for_FY22[[#This Row],[Median]]","v":541823.19999999995},{"$f":"(((AAMC_Raw_Data_for_FY22[[#This Row],[75th]]-AAMC_Raw_Data_for_FY22[[#This Row],[Median]])/25)*15) + AAMC_Raw_Data_for_FY22[[#This Row],[Median]]","v":568984.80000000005},{"$f":"(((AAMC_Raw_Data_for_FY22[[#This Row],[75th]]-AAMC_Raw_Data_for_FY22[[#This Row],[Median]])/25)*20) + AAMC_Raw_Data_for_FY22[[#This Row],[Median]]","v":596146.4},623308,{"$f":"(((AAMC_Raw_Data_for_FY22[[#This Row],[75th]]-AAMC_Raw_Data_for_FY22[[#This Row],[Median]])/25)*30) + AAMC_Raw_Data_for_FY22[[#This Row],[Median]]","v":650469.6},{"$f":"(((AAMC_Raw_Data_for_FY22[[#This Row],[75th]]-AAMC_Raw_Data_for_FY22[[#This Row],[Median]])/25)*35) + AAMC_Raw_Data_for_FY22[[#This Row],[Median]]","v":677631.2},{"$f":"(((AAMC_Raw_Data_for_FY22[[#This Row],[75th]]-AAMC_Raw_Data_for_FY22[[#This Row],[Median]])/25)*40) + AAMC_Raw_Data_for_FY22[[#This Row],[Median]]","v":704792.8}]
[{"$f":"AAMC_Raw_Data_for_FY22[[#This Row],[Source]]&AAMC_Raw_Data_for_FY22[[#This Row],[Type]]&AAMC_Raw_Data_for_FY22[[#This Row],[School Subset]]&AAMC_Raw_Data_for_FY22[[#This Row],[Rank]]&AAMC_Raw_Data_for_FY22[[#This Row],[Degree]]&AAMC_Raw_Data_for_FY22[[#This Row],[Department / Specialty]]&\"L\"","v":"AAMCAcademicAllAssociateMDThoracic & Cardiovascular SurgeryL"},"Thoracic & Cardiovascular Surgery",3,"AAMC","Academic","All","Associate","MD","2021-2022",545608,{"$f":"(((AAMC_Raw_Data_for_FY22[[#This Row],[Median]]-AAMC_Raw_Data_for_FY22[[#This Row],[25th]])/25)*5) + AAMC_Raw_Data_for_FY22[[#This Row],[25th]]","v":570859.19999999995},{"$f":"(((AAMC_Raw_Data_for_FY22[[#This Row],[Median]]-AAMC_Raw_Data_for_FY22[[#This Row],[25th]])/25)*10) + AAMC_Raw_Data_for_FY22[[#This Row],[25th]]","v":596110.4},{"$f":"(((AAMC_Raw_Data_for_FY22[[#This Row],[Median]]-AAMC_Raw_Data_for_FY22[[#This Row],[25th]])/25)*15) + AAMC_Raw_Data_for_FY22[[#This Row],[25th]]","v":621361.6},{"$f":"(((AAMC_Raw_Data_for_FY22[[#This Row],[Median]]-AAMC_Raw_Data_for_FY22[[#This Row],[25th]])/25)*20) + AAMC_Raw_Data_for_FY22[[#This Row],[25th]]","v":646612.80000000005},671864,{"$f":"(((AAMC_Raw_Data_for_FY22[[#This Row],[75th]]-AAMC_Raw_Data_for_FY22[[#This Row],[Median]])/25)*5) + AAMC_Raw_Data_for_FY22[[#This Row],[Median]]","v":718841.2},{"$f":"(((AAMC_Raw_Data_for_FY22[[#This Row],[75th]]-AAMC_Raw_Data_for_FY22[[#This Row],[Median]])/25)*10) + AAMC_Raw_Data_for_FY22[[#This Row],[Median]]","v":765818.4},{"$f":"(((AAMC_Raw_Data_for_FY22[[#This Row],[75th]]-AAMC_Raw_Data_for_FY22[[#This Row],[Median]])/25)*15) + AAMC_Raw_Data_for_FY22[[#This Row],[Median]]","v":812795.6},{"$f":"(((AAMC_Raw_Data_for_FY22[[#This Row],[75th]]-AAMC_Raw_Data_for_FY22[[#This Row],[Median]])/25)*20) + AAMC_Raw_Data_for_FY22[[#This Row],[Median]]","v":859772.8},906750,{"$f":"(((AAMC_Raw_Data_for_FY22[[#This Row],[75th]]-AAMC_Raw_Data_for_FY22[[#This Row],[Median]])/25)*30) + AAMC_Raw_Data_for_FY22[[#This Row],[Median]]","v":953727.2},{"$f":"(((AAMC_Raw_Data_for_FY22[[#This Row],[75th]]-AAMC_Raw_Data_for_FY22[[#This Row],[Median]])/25)*35) + AAMC_Raw_Data_for_FY22[[#This Row],[Median]]","v":1000704.4},{"$f":"(((AAMC_Raw_Data_for_FY22[[#This Row],[75th]]-AAMC_Raw_Data_for_FY22[[#This Row],[Median]])/25)*40) + AAMC_Raw_Data_for_FY22[[#This Row],[Median]]","v":1047681.6000000001}]
[{"$f":"AAMC_Raw_Data_for_FY22[[#This Row],[Source]]&AAMC_Raw_Data_for_FY22[[#This Row],[Type]]&AAMC_Raw_Data_for_FY22[[#This Row],[School Subset]]&AAMC_Raw_Data_for_FY22[[#This Row],[Rank]]&AAMC_Raw_Data_for_FY22[[#This Row],[Degree]]&AAMC_Raw_Data_for_FY22[[#This Row],[Department / Specialty]]&\"L\"","v":"AAMCAcademicAllProfessorMDThoracic & Cardiovascular SurgeryL"},"Thoracic & Cardiovascular Surgery",2,"AAMC","Academic","All","Professor","MD","2021-2022",577855,{"$f":"(((AAMC_Raw_Data_for_FY22[[#This Row],[Median]]-AAMC_Raw_Data_for_FY22[[#This Row],[25th]])/25)*5) + AAMC_Raw_Data_for_FY22[[#This Row],[25th]]","v":619127.6},{"$f":"(((AAMC_Raw_Data_for_FY22[[#This Row],[Median]]-AAMC_Raw_Data_for_FY22[[#This Row],[25th]])/25)*10) + AAMC_Raw_Data_for_FY22[[#This Row],[25th]]","v":660400.19999999995},{"$f":"(((AAMC_Raw_Data_for_FY22[[#This Row],[Median]]-AAMC_Raw_Data_for_FY22[[#This Row],[25th]])/25)*15) + AAMC_Raw_Data_for_FY22[[#This Row],[25th]]","v":701672.8},{"$f":"(((AAMC_Raw_Data_for_FY22[[#This Row],[Median]]-AAMC_Raw_Data_for_FY22[[#This Row],[25th]])/25)*20) + AAMC_Raw_Data_for_FY22[[#This Row],[25th]]","v":742945.4},784218,{"$f":"(((AAMC_Raw_Data_for_FY22[[#This Row],[75th]]-AAMC_Raw_Data_for_FY22[[#This Row],[Median]])/25)*5) + AAMC_Raw_Data_for_FY22[[#This Row],[Median]]","v":846499.4},{"$f":"(((AAMC_Raw_Data_for_FY22[[#This Row],[75th]]-AAMC_Raw_Data_for_FY22[[#This Row],[Median]])/25)*10) + AAMC_Raw_Data_for_FY22[[#This Row],[Median]]","v":908780.8},{"$f":"(((AAMC_Raw_Data_for_FY22[[#This Row],[75th]]-AAMC_Raw_Data_for_FY22[[#This Row],[Median]])/25)*15) + AAMC_Raw_Data_for_FY22[[#This Row],[Median]]","v":971062.2},{"$f":"(((AAMC_Raw_Data_for_FY22[[#This Row],[75th]]-AAMC_Raw_Data_for_FY22[[#This Row],[Median]])/25)*20) + AAMC_Raw_Data_for_FY22[[#This Row],[Median]]","v":1033343.6},1095625,{"$f":"(((AAMC_Raw_Data_for_FY22[[#This Row],[75th]]-AAMC_Raw_Data_for_FY22[[#This Row],[Median]])/25)*30) + AAMC_Raw_Data_for_FY22[[#This Row],[Median]]","v":1157906.3999999999},{"$f":"(((AAMC_Raw_Data_for_FY22[[#This Row],[75th]]-AAMC_Raw_Data_for_FY22[[#This Row],[Median]])/25)*35) + AAMC_Raw_Data_for_FY22[[#This Row],[Median]]","v":1220187.8},{"$f":"(((AAMC_Raw_Data_for_FY22[[#This Row],[75th]]-AAMC_Raw_Data_for_FY22[[#This Row],[Median]])/25)*40) + AAMC_Raw_Data_for_FY22[[#This Row],[Median]]","v":1282469.2}]
[{"$f":"AAMC_Raw_Data_for_FY22[[#This Row],[Source]]&AAMC_Raw_Data_for_FY22[[#This Row],[Type]]&AAMC_Raw_Data_for_FY22[[#This Row],[School Subset]]&AAMC_Raw_Data_for_FY22[[#This Row],[Rank]]&AAMC_Raw_Data_for_FY22[[#This Row],[Degree]]&AAMC_Raw_Data_for_FY22[[#This Row],[Department / Specialty]]&\"L\"","v":"AAMCAcademicAllChiefMDThoracic & Cardiovascular SurgeryL"},"Thoracic & Cardiovascular Surgery",6,"AAMC","Academic","All","Chief","MD","2021-2022",749120,{"$f":"(((AAMC_Raw_Data_for_FY22[[#This Row],[Median]]-AAMC_Raw_Data_for_FY22[[#This Row],[25th]])/25)*5) + AAMC_Raw_Data_for_FY22[[#This Row],[25th]]","v":788352.8},{"$f":"(((AAMC_Raw_Data_for_FY22[[#This Row],[Median]]-AAMC_Raw_Data_for_FY22[[#This Row],[25th]])/25)*10) + AAMC_Raw_Data_for_FY22[[#This Row],[25th]]","v":827585.6},{"$f":"(((AAMC_Raw_Data_for_FY22[[#This Row],[Median]]-AAMC_Raw_Data_for_FY22[[#This Row],[25th]])/25)*15) + AAMC_Raw_Data_for_FY22[[#This Row],[25th]]","v":866818.4},{"$f":"(((AAMC_Raw_Data_for_FY22[[#This Row],[Median]]-AAMC_Raw_Data_for_FY22[[#This Row],[25th]])/25)*20) + AAMC_Raw_Data_for_FY22[[#This Row],[25th]]","v":906051.2},945284,{"$f":"(((AAMC_Raw_Data_for_FY22[[#This Row],[75th]]-AAMC_Raw_Data_for_FY22[[#This Row],[Median]])/25)*5) + AAMC_Raw_Data_for_FY22[[#This Row],[Median]]","v":1069347.6000000001},{"$f":"(((AAMC_Raw_Data_for_FY22[[#This Row],[75th]]-AAMC_Raw_Data_for_FY22[[#This Row],[Median]])/25)*10) + AAMC_Raw_Data_for_FY22[[#This Row],[Median]]","v":1193411.2},{"$f":"(((AAMC_Raw_Data_for_FY22[[#This Row],[75th]]-AAMC_Raw_Data_for_FY22[[#This Row],[Median]])/25)*15) + AAMC_Raw_Data_for_FY22[[#This Row],[Median]]","v":1317474.8},{"$f":"(((AAMC_Raw_Data_for_FY22[[#This Row],[75th]]-AAMC_Raw_Data_for_FY22[[#This Row],[Median]])/25)*20) + AAMC_Raw_Data_for_FY22[[#This Row],[Median]]","v":1441538.4},1565602,{"$f":"(((AAMC_Raw_Data_for_FY22[[#This Row],[75th]]-AAMC_Raw_Data_for_FY22[[#This Row],[Median]])/25)*30) + AAMC_Raw_Data_for_FY22[[#This Row],[Median]]","v":1689665.6},{"$f":"(((AAMC_Raw_Data_for_FY22[[#This Row],[75th]]-AAMC_Raw_Data_for_FY22[[#This Row],[Median]])/25)*35) + AAMC_Raw_Data_for_FY22[[#This Row],[Median]]","v":1813729.2000000002},{"$f":"(((AAMC_Raw_Data_for_FY22[[#This Row],[75th]]-AAMC_Raw_Data_for_FY22[[#This Row],[Median]])/25)*40) + AAMC_Raw_Data_for_FY22[[#This Row],[Median]]","v":1937792.8}]
[{"$f":"AAMC_Raw_Data_for_FY22[[#This Row],[Source]]&AAMC_Raw_Data_for_FY22[[#This Row],[Type]]&AAMC_Raw_Data_for_FY22[[#This Row],[School Subset]]&AAMC_Raw_Data_for_FY22[[#This Row],[Rank]]&AAMC_Raw_Data_for_FY22[[#This Row],[Degree]]&AAMC_Raw_Data_for_FY22[[#This Row],[Department / Specialty]]&\"L\"","v":"AAMCAcademicAllChairMDThoracic & Cardiovascular SurgeryL"},"Thoracic & Cardiovascular Surgery",1,"AAMC","Academic","All","Chair","MD","2021-2022",1057416,{"$f":"(((AAMC_Raw_Data_for_FY22[[#This Row],[Median]]-AAMC_Raw_Data_for_FY22[[#This Row],[25th]])/25)*5) + AAMC_Raw_Data_for_FY22[[#This Row],[25th]]","v":1129683},{"$f":"(((AAMC_Raw_Data_for_FY22[[#This Row],[Median]]-AAMC_Raw_Data_for_FY22[[#This Row],[25th]])/25)*10) + AAMC_Raw_Data_for_FY22[[#This Row],[25th]]","v":1201950},{"$f":"(((AAMC_Raw_Data_for_FY22[[#This Row],[Median]]-AAMC_Raw_Data_for_FY22[[#This Row],[25th]])/25)*15) + AAMC_Raw_Data_for_FY22[[#This Row],[25th]]","v":1274217},{"$f":"(((AAMC_Raw_Data_for_FY22[[#This Row],[Median]]-AAMC_Raw_Data_for_FY22[[#This Row],[25th]])/25)*20) + AAMC_Raw_Data_for_FY22[[#This Row],[25th]]","v":1346484},1418751,{"$f":"(((AAMC_Raw_Data_for_FY22[[#This Row],[75th]]-AAMC_Raw_Data_for_FY22[[#This Row],[Median]])/25)*5) + AAMC_Raw_Data_for_FY22[[#This Row],[Median]]","v":1651665.8},{"$f":"(((AAMC_Raw_Data_for_FY22[[#This Row],[75th]]-AAMC_Raw_Data_for_FY22[[#This Row],[Median]])/25)*10) + AAMC_Raw_Data_for_FY22[[#This Row],[Median]]","v":1884580.6},{"$f":"(((AAMC_Raw_Data_for_FY22[[#This Row],[75th]]-AAMC_Raw_Data_for_FY22[[#This Row],[Median]])/25)*15) + AAMC_Raw_Data_for_FY22[[#This Row],[Median]]","v":2117495.4},{"$f":"(((AAMC_Raw_Data_for_FY22[[#This Row],[75th]]-AAMC_Raw_Data_for_FY22[[#This Row],[Median]])/25)*20) + AAMC_Raw_Data_for_FY22[[#This Row],[Median]]","v":2350410.2000000002},2583325,{"$f":"(((AAMC_Raw_Data_for_FY22[[#This Row],[75th]]-AAMC_Raw_Data_for_FY22[[#This Row],[Median]])/25)*30) + AAMC_Raw_Data_for_FY22[[#This Row],[Median]]","v":2816239.8},{"$f":"(((AAMC_Raw_Data_for_FY22[[#This Row],[75th]]-AAMC_Raw_Data_for_FY22[[#This Row],[Median]])/25)*35) + AAMC_Raw_Data_for_FY22[[#This Row],[Median]]","v":3049154.5999999996},{"$f":"(((AAMC_Raw_Data_for_FY22[[#This Row],[75th]]-AAMC_Raw_Data_for_FY22[[#This Row],[Median]])/25)*40) + AAMC_Raw_Data_for_FY22[[#This Row],[Median]]","v":3282069.4}]
[{"$f":"AAMC_Raw_Data_for_FY22[[#This Row],[Source]]&AAMC_Raw_Data_for_FY22[[#This Row],[Type]]&AAMC_Raw_Data_for_FY22[[#This Row],[School Subset]]&AAMC_Raw_Data_for_FY22[[#This Row],[Rank]]&AAMC_Raw_Data_for_FY22[[#This Row],[Degree]]&AAMC_Raw_Data_for_FY22[[#This Row],[Department / Specialty]]&\"L\"","v":"AAMCAcademicAllInstructorMDTransplant SurgeryL"},"Transplant Surgery",5,"AAMC","Academic","All","Instructor","MD","2021-2022",113324,{"$f":"(((AAMC_Raw_Data_for_FY22[[#This Row],[Median]]-AAMC_Raw_Data_for_FY22[[#This Row],[25th]])/25)*5) + AAMC_Raw_Data_for_FY22[[#This Row],[25th]]","v":116394.8},{"$f":"(((AAMC_Raw_Data_for_FY22[[#This Row],[Median]]-AAMC_Raw_Data_for_FY22[[#This Row],[25th]])/25)*10) + AAMC_Raw_Data_for_FY22[[#This Row],[25th]]","v":119465.60000000001},{"$f":"(((AAMC_Raw_Data_for_FY22[[#This Row],[Median]]-AAMC_Raw_Data_for_FY22[[#This Row],[25th]])/25)*15) + AAMC_Raw_Data_for_FY22[[#This Row],[25th]]","v":122536.4},{"$f":"(((AAMC_Raw_Data_for_FY22[[#This Row],[Median]]-AAMC_Raw_Data_for_FY22[[#This Row],[25th]])/25)*20) + AAMC_Raw_Data_for_FY22[[#This Row],[25th]]","v":125607.2},128678,{"$f":"(((AAMC_Raw_Data_for_FY22[[#This Row],[75th]]-AAMC_Raw_Data_for_FY22[[#This Row],[Median]])/25)*5) + AAMC_Raw_Data_for_FY22[[#This Row],[Median]]","v":135947.4},{"$f":"(((AAMC_Raw_Data_for_FY22[[#This Row],[75th]]-AAMC_Raw_Data_for_FY22[[#This Row],[Median]])/25)*10) + AAMC_Raw_Data_for_FY22[[#This Row],[Median]]","v":143216.79999999999},{"$f":"(((AAMC_Raw_Data_for_FY22[[#This Row],[75th]]-AAMC_Raw_Data_for_FY22[[#This Row],[Median]])/25)*15) + AAMC_Raw_Data_for_FY22[[#This Row],[Median]]","v":150486.20000000001},{"$f":"(((AAMC_Raw_Data_for_FY22[[#This Row],[75th]]-AAMC_Raw_Data_for_FY22[[#This Row],[Median]])/25)*20) + AAMC_Raw_Data_for_FY22[[#This Row],[Median]]","v":157755.6},165025,{"$f":"(((AAMC_Raw_Data_for_FY22[[#This Row],[75th]]-AAMC_Raw_Data_for_FY22[[#This Row],[Median]])/25)*30) + AAMC_Raw_Data_for_FY22[[#This Row],[Median]]","v":172294.39999999999},{"$f":"(((AAMC_Raw_Data_for_FY22[[#This Row],[75th]]-AAMC_Raw_Data_for_FY22[[#This Row],[Median]])/25)*35) + AAMC_Raw_Data_for_FY22[[#This Row],[Median]]","v":179563.8},{"$f":"(((AAMC_Raw_Data_for_FY22[[#This Row],[75th]]-AAMC_Raw_Data_for_FY22[[#This Row],[Median]])/25)*40) + AAMC_Raw_Data_for_FY22[[#This Row],[Median]]","v":186833.2}]
[{"$f":"AAMC_Raw_Data_for_FY22[[#This Row],[Source]]&AAMC_Raw_Data_for_FY22[[#This Row],[Type]]&AAMC_Raw_Data_for_FY22[[#This Row],[School Subset]]&AAMC_Raw_Data_for_FY22[[#This Row],[Rank]]&AAMC_Raw_Data_for_FY22[[#This Row],[Degree]]&AAMC_Raw_Data_for_FY22[[#This Row],[Department / Specialty]]&\"L\"","v":"AAMCAcademicAllAssistantMDTransplant SurgeryL"},"Transplant Surgery",4,"AAMC","Academic","All","Assistant","MD","2021-2022",317832,{"$f":"(((AAMC_Raw_Data_for_FY22[[#This Row],[Median]]-AAMC_Raw_Data_for_FY22[[#This Row],[25th]])/25)*5) + AAMC_Raw_Data_for_FY22[[#This Row],[25th]]","v":330265.59999999998},{"$f":"(((AAMC_Raw_Data_for_FY22[[#This Row],[Median]]-AAMC_Raw_Data_for_FY22[[#This Row],[25th]])/25)*10) + AAMC_Raw_Data_for_FY22[[#This Row],[25th]]","v":342699.2},{"$f":"(((AAMC_Raw_Data_for_FY22[[#This Row],[Median]]-AAMC_Raw_Data_for_FY22[[#This Row],[25th]])/25)*15) + AAMC_Raw_Data_for_FY22[[#This Row],[25th]]","v":355132.8},{"$f":"(((AAMC_Raw_Data_for_FY22[[#This Row],[Median]]-AAMC_Raw_Data_for_FY22[[#This Row],[25th]])/25)*20) + AAMC_Raw_Data_for_FY22[[#This Row],[25th]]","v":367566.4},380000,{"$f":"(((AAMC_Raw_Data_for_FY22[[#This Row],[75th]]-AAMC_Raw_Data_for_FY22[[#This Row],[Median]])/25)*5) + AAMC_Raw_Data_for_FY22[[#This Row],[Median]]","v":390890.2},{"$f":"(((AAMC_Raw_Data_for_FY22[[#This Row],[75th]]-AAMC_Raw_Data_for_FY22[[#This Row],[Median]])/25)*10) + AAMC_Raw_Data_for_FY22[[#This Row],[Median]]","v":401780.4},{"$f":"(((AAMC_Raw_Data_for_FY22[[#This Row],[75th]]-AAMC_Raw_Data_for_FY22[[#This Row],[Median]])/25)*15) + AAMC_Raw_Data_for_FY22[[#This Row],[Median]]","v":412670.6},{"$f":"(((AAMC_Raw_Data_for_FY22[[#This Row],[75th]]-AAMC_Raw_Data_for_FY22[[#This Row],[Median]])/25)*20) + AAMC_Raw_Data_for_FY22[[#This Row],[Median]]","v":423560.8},434451,{"$f":"(((AAMC_Raw_Data_for_FY22[[#This Row],[75th]]-AAMC_Raw_Data_for_FY22[[#This Row],[Median]])/25)*30) + AAMC_Raw_Data_for_FY22[[#This Row],[Median]]","v":445341.2},{"$f":"(((AAMC_Raw_Data_for_FY22[[#This Row],[75th]]-AAMC_Raw_Data_for_FY22[[#This Row],[Median]])/25)*35) + AAMC_Raw_Data_for_FY22[[#This Row],[Median]]","v":456231.4},{"$f":"(((AAMC_Raw_Data_for_FY22[[#This Row],[75th]]-AAMC_Raw_Data_for_FY22[[#This Row],[Median]])/25)*40) + AAMC_Raw_Data_for_FY22[[#This Row],[Median]]","v":467121.6}]
[{"$f":"AAMC_Raw_Data_for_FY22[[#This Row],[Source]]&AAMC_Raw_Data_for_FY22[[#This Row],[Type]]&AAMC_Raw_Data_for_FY22[[#This Row],[School Subset]]&AAMC_Raw_Data_for_FY22[[#This Row],[Rank]]&AAMC_Raw_Data_for_FY22[[#This Row],[Degree]]&AAMC_Raw_Data_for_FY22[[#This Row],[Department / Specialty]]&\"L\"","v":"AAMCAcademicAllAssociateMDTransplant SurgeryL"},"Transplant Surgery",3,"AAMC","Academic","All","Associate","MD","2021-2022",448316,{"$f":"(((AAMC_Raw_Data_for_FY22[[#This Row],[Median]]-AAMC_Raw_Data_for_FY22[[#This Row],[25th]])/25)*5) + AAMC_Raw_Data_for_FY22[[#This Row],[25th]]","v":459345},{"$f":"(((AAMC_Raw_Data_for_FY22[[#This Row],[Median]]-AAMC_Raw_Data_for_FY22[[#This Row],[25th]])/25)*10) + AAMC_Raw_Data_for_FY22[[#This Row],[25th]]","v":470374},{"$f":"(((AAMC_Raw_Data_for_FY22[[#This Row],[Median]]-AAMC_Raw_Data_for_FY22[[#This Row],[25th]])/25)*15) + AAMC_Raw_Data_for_FY22[[#This Row],[25th]]","v":481403},{"$f":"(((AAMC_Raw_Data_for_FY22[[#This Row],[Median]]-AAMC_Raw_Data_for_FY22[[#This Row],[25th]])/25)*20) + AAMC_Raw_Data_for_FY22[[#This Row],[25th]]","v":492432},503461,{"$f":"(((AAMC_Raw_Data_for_FY22[[#This Row],[75th]]-AAMC_Raw_Data_for_FY22[[#This Row],[Median]])/25)*5) + AAMC_Raw_Data_for_FY22[[#This Row],[Median]]","v":525278.80000000005},{"$f":"(((AAMC_Raw_Data_for_FY22[[#This Row],[75th]]-AAMC_Raw_Data_for_FY22[[#This Row],[Median]])/25)*10) + AAMC_Raw_Data_for_FY22[[#This Row],[Median]]","v":547096.6},{"$f":"(((AAMC_Raw_Data_for_FY22[[#This Row],[75th]]-AAMC_Raw_Data_for_FY22[[#This Row],[Median]])/25)*15) + AAMC_Raw_Data_for_FY22[[#This Row],[Median]]","v":568914.4},{"$f":"(((AAMC_Raw_Data_for_FY22[[#This Row],[75th]]-AAMC_Raw_Data_for_FY22[[#This Row],[Median]])/25)*20) + AAMC_Raw_Data_for_FY22[[#This Row],[Median]]","v":590732.19999999995},612550,{"$f":"(((AAMC_Raw_Data_for_FY22[[#This Row],[75th]]-AAMC_Raw_Data_for_FY22[[#This Row],[Median]])/25)*30) + AAMC_Raw_Data_for_FY22[[#This Row],[Median]]","v":634367.80000000005},{"$f":"(((AAMC_Raw_Data_for_FY22[[#This Row],[75th]]-AAMC_Raw_Data_for_FY22[[#This Row],[Median]])/25)*35) + AAMC_Raw_Data_for_FY22[[#This Row],[Median]]","v":656185.59999999998},{"$f":"(((AAMC_Raw_Data_for_FY22[[#This Row],[75th]]-AAMC_Raw_Data_for_FY22[[#This Row],[Median]])/25)*40) + AAMC_Raw_Data_for_FY22[[#This Row],[Median]]","v":678003.4}]
[{"$f":"AAMC_Raw_Data_for_FY22[[#This Row],[Source]]&AAMC_Raw_Data_for_FY22[[#This Row],[Type]]&AAMC_Raw_Data_for_FY22[[#This Row],[School Subset]]&AAMC_Raw_Data_for_FY22[[#This Row],[Rank]]&AAMC_Raw_Data_for_FY22[[#This Row],[Degree]]&AAMC_Raw_Data_for_FY22[[#This Row],[Department / Specialty]]&\"L\"","v":"AAMCAcademicAllProfessorMDTransplant SurgeryL"},"Transplant Surgery",2,"AAMC","Academic","All","Professor","MD","2021-2022",469372,{"$f":"(((AAMC_Raw_Data_for_FY22[[#This Row],[Median]]-AAMC_Raw_Data_for_FY22[[#This Row],[25th]])/25)*5) + AAMC_Raw_Data_for_FY22[[#This Row],[25th]]","v":498468.8},{"$f":"(((AAMC_Raw_Data_for_FY22[[#This Row],[Median]]-AAMC_Raw_Data_for_FY22[[#This Row],[25th]])/25)*10) + AAMC_Raw_Data_for_FY22[[#This Row],[25th]]","v":527565.6},{"$f":"(((AAMC_Raw_Data_for_FY22[[#This Row],[Median]]-AAMC_Raw_Data_for_FY22[[#This Row],[25th]])/25)*15) + AAMC_Raw_Data_for_FY22[[#This Row],[25th]]","v":556662.4},{"$f":"(((AAMC_Raw_Data_for_FY22[[#This Row],[Median]]-AAMC_Raw_Data_for_FY22[[#This Row],[25th]])/25)*20) + AAMC_Raw_Data_for_FY22[[#This Row],[25th]]","v":585759.19999999995},614856,{"$f":"(((AAMC_Raw_Data_for_FY22[[#This Row],[75th]]-AAMC_Raw_Data_for_FY22[[#This Row],[Median]])/25)*5) + AAMC_Raw_Data_for_FY22[[#This Row],[Median]]","v":653955.6},{"$f":"(((AAMC_Raw_Data_for_FY22[[#This Row],[75th]]-AAMC_Raw_Data_for_FY22[[#This Row],[Median]])/25)*10) + AAMC_Raw_Data_for_FY22[[#This Row],[Median]]","v":693055.2},{"$f":"(((AAMC_Raw_Data_for_FY22[[#This Row],[75th]]-AAMC_Raw_Data_for_FY22[[#This Row],[Median]])/25)*15) + AAMC_Raw_Data_for_FY22[[#This Row],[Median]]","v":732154.8},{"$f":"(((AAMC_Raw_Data_for_FY22[[#This Row],[75th]]-AAMC_Raw_Data_for_FY22[[#This Row],[Median]])/25)*20) + AAMC_Raw_Data_for_FY22[[#This Row],[Median]]","v":771254.4},810354,{"$f":"(((AAMC_Raw_Data_for_FY22[[#This Row],[75th]]-AAMC_Raw_Data_for_FY22[[#This Row],[Median]])/25)*30) + AAMC_Raw_Data_for_FY22[[#This Row],[Median]]","v":849453.6},{"$f":"(((AAMC_Raw_Data_for_FY22[[#This Row],[75th]]-AAMC_Raw_Data_for_FY22[[#This Row],[Median]])/25)*35) + AAMC_Raw_Data_for_FY22[[#This Row],[Median]]","v":888553.2},{"$f":"(((AAMC_Raw_Data_for_FY22[[#This Row],[75th]]-AAMC_Raw_Data_for_FY22[[#This Row],[Median]])/25)*40) + AAMC_Raw_Data_for_FY22[[#This Row],[Median]]","v":927652.8}]
[{"$f":"AAMC_Raw_Data_for_FY22[[#This Row],[Source]]&AAMC_Raw_Data_for_FY22[[#This Row],[Type]]&AAMC_Raw_Data_for_FY22[[#This Row],[School Subset]]&AAMC_Raw_Data_for_FY22[[#This Row],[Rank]]&AAMC_Raw_Data_for_FY22[[#This Row],[Degree]]&AAMC_Raw_Data_for_FY22[[#This Row],[Department / Specialty]]&\"L\"","v":"AAMCAcademicAllChiefMDTransplant SurgeryL"},"Transplant Surgery",6,"AAMC","Academic","All","Chief","MD","2021-2022",651521,{"$f":"(((AAMC_Raw_Data_for_FY22[[#This Row],[Median]]-AAMC_Raw_Data_for_FY22[[#This Row],[25th]])/25)*5) + AAMC_Raw_Data_for_FY22[[#This Row],[25th]]","v":685338.4},{"$f":"(((AAMC_Raw_Data_for_FY22[[#This Row],[Median]]-AAMC_Raw_Data_for_FY22[[#This Row],[25th]])/25)*10) + AAMC_Raw_Data_for_FY22[[#This Row],[25th]]","v":719155.8},{"$f":"(((AAMC_Raw_Data_for_FY22[[#This Row],[Median]]-AAMC_Raw_Data_for_FY22[[#This Row],[25th]])/25)*15) + AAMC_Raw_Data_for_FY22[[#This Row],[25th]]","v":752973.2},{"$f":"(((AAMC_Raw_Data_for_FY22[[#This Row],[Median]]-AAMC_Raw_Data_for_FY22[[#This Row],[25th]])/25)*20) + AAMC_Raw_Data_for_FY22[[#This Row],[25th]]","v":786790.6},820608,{"$f":"(((AAMC_Raw_Data_for_FY22[[#This Row],[75th]]-AAMC_Raw_Data_for_FY22[[#This Row],[Median]])/25)*5) + AAMC_Raw_Data_for_FY22[[#This Row],[Median]]","v":857982.8},{"$f":"(((AAMC_Raw_Data_for_FY22[[#This Row],[75th]]-AAMC_Raw_Data_for_FY22[[#This Row],[Median]])/25)*10) + AAMC_Raw_Data_for_FY22[[#This Row],[Median]]","v":895357.6},{"$f":"(((AAMC_Raw_Data_for_FY22[[#This Row],[75th]]-AAMC_Raw_Data_for_FY22[[#This Row],[Median]])/25)*15) + AAMC_Raw_Data_for_FY22[[#This Row],[Median]]","v":932732.4},{"$f":"(((AAMC_Raw_Data_for_FY22[[#This Row],[75th]]-AAMC_Raw_Data_for_FY22[[#This Row],[Median]])/25)*20) + AAMC_Raw_Data_for_FY22[[#This Row],[Median]]","v":970107.2},1007482,{"$f":"(((AAMC_Raw_Data_for_FY22[[#This Row],[75th]]-AAMC_Raw_Data_for_FY22[[#This Row],[Median]])/25)*30) + AAMC_Raw_Data_for_FY22[[#This Row],[Median]]","v":1044856.8},{"$f":"(((AAMC_Raw_Data_for_FY22[[#This Row],[75th]]-AAMC_Raw_Data_for_FY22[[#This Row],[Median]])/25)*35) + AAMC_Raw_Data_for_FY22[[#This Row],[Median]]","v":1082231.6000000001},{"$f":"(((AAMC_Raw_Data_for_FY22[[#This Row],[75th]]-AAMC_Raw_Data_for_FY22[[#This Row],[Median]])/25)*40) + AAMC_Raw_Data_for_FY22[[#This Row],[Median]]","v":1119606.3999999999}]
[{"$f":"AAMC_Raw_Data_for_FY22[[#This Row],[Source]]&AAMC_Raw_Data_for_FY22[[#This Row],[Type]]&AAMC_Raw_Data_for_FY22[[#This Row],[School Subset]]&AAMC_Raw_Data_for_FY22[[#This Row],[Rank]]&AAMC_Raw_Data_for_FY22[[#This Row],[Degree]]&AAMC_Raw_Data_for_FY22[[#This Row],[Department / Specialty]]&\"L\"","v":"AAMCAcademicAllChairMDTransplant SurgeryL"},"Transplant Surgery",1,"AAMC","Academic","All","Chair","MD","2021-2022",819734,{"$f":"(((AAMC_Raw_Data_for_FY22[[#This Row],[Median]]-AAMC_Raw_Data_for_FY22[[#This Row],[25th]])/25)*5) + AAMC_Raw_Data_for_FY22[[#This Row],[25th]]","v":852321.4},{"$f":"(((AAMC_Raw_Data_for_FY22[[#This Row],[Median]]-AAMC_Raw_Data_for_FY22[[#This Row],[25th]])/25)*10) + AAMC_Raw_Data_for_FY22[[#This Row],[25th]]","v":884908.8},{"$f":"(((AAMC_Raw_Data_for_FY22[[#This Row],[Median]]-AAMC_Raw_Data_for_FY22[[#This Row],[25th]])/25)*15) + AAMC_Raw_Data_for_FY22[[#This Row],[25th]]","v":917496.2},{"$f":"(((AAMC_Raw_Data_for_FY22[[#This Row],[Median]]-AAMC_Raw_Data_for_FY22[[#This Row],[25th]])/25)*20) + AAMC_Raw_Data_for_FY22[[#This Row],[25th]]","v":950083.6},982671,{"$f":"(((AAMC_Raw_Data_for_FY22[[#This Row],[75th]]-AAMC_Raw_Data_for_FY22[[#This Row],[Median]])/25)*5) + AAMC_Raw_Data_for_FY22[[#This Row],[Median]]","v":1035365.4},{"$f":"(((AAMC_Raw_Data_for_FY22[[#This Row],[75th]]-AAMC_Raw_Data_for_FY22[[#This Row],[Median]])/25)*10) + AAMC_Raw_Data_for_FY22[[#This Row],[Median]]","v":1088059.8},{"$f":"(((AAMC_Raw_Data_for_FY22[[#This Row],[75th]]-AAMC_Raw_Data_for_FY22[[#This Row],[Median]])/25)*15) + AAMC_Raw_Data_for_FY22[[#This Row],[Median]]","v":1140754.2},{"$f":"(((AAMC_Raw_Data_for_FY22[[#This Row],[75th]]-AAMC_Raw_Data_for_FY22[[#This Row],[Median]])/25)*20) + AAMC_Raw_Data_for_FY22[[#This Row],[Median]]","v":1193448.6000000001},1246143,{"$f":"(((AAMC_Raw_Data_for_FY22[[#This Row],[75th]]-AAMC_Raw_Data_for_FY22[[#This Row],[Median]])/25)*30) + AAMC_Raw_Data_for_FY22[[#This Row],[Median]]","v":1298837.3999999999},{"$f":"(((AAMC_Raw_Data_for_FY22[[#This Row],[75th]]-AAMC_Raw_Data_for_FY22[[#This Row],[Median]])/25)*35) + AAMC_Raw_Data_for_FY22[[#This Row],[Median]]","v":1351531.8},{"$f":"(((AAMC_Raw_Data_for_FY22[[#This Row],[75th]]-AAMC_Raw_Data_for_FY22[[#This Row],[Median]])/25)*40) + AAMC_Raw_Data_for_FY22[[#This Row],[Median]]","v":1404226.2}]
[{"$f":"AAMC_Raw_Data_for_FY22[[#This Row],[Source]]&AAMC_Raw_Data_for_FY22[[#This Row],[Type]]&AAMC_Raw_Data_for_FY22[[#This Row],[School Subset]]&AAMC_Raw_Data_for_FY22[[#This Row],[Rank]]&AAMC_Raw_Data_for_FY22[[#This Row],[Degree]]&AAMC_Raw_Data_for_FY22[[#This Row],[Department / Specialty]]&\"L\"","v":"AAMCAcademicAllInstructorMDTrauma/Critical Care SurgeryL"},"Trauma/Critical Care Surgery",5,"AAMC","Academic","All","Instructor","MD","2021-2022",116840,{"$f":"(((AAMC_Raw_Data_for_FY22[[#This Row],[Median]]-AAMC_Raw_Data_for_FY22[[#This Row],[25th]])/25)*5) + AAMC_Raw_Data_for_FY22[[#This Row],[25th]]","v":161657},{"$f":"(((AAMC_Raw_Data_for_FY22[[#This Row],[Median]]-AAMC_Raw_Data_for_FY22[[#This Row],[25th]])/25)*10) + AAMC_Raw_Data_for_FY22[[#This Row],[25th]]","v":206474},{"$f":"(((AAMC_Raw_Data_for_FY22[[#This Row],[Median]]-AAMC_Raw_Data_for_FY22[[#This Row],[25th]])/25)*15) + AAMC_Raw_Data_for_FY22[[#This Row],[25th]]","v":251291},{"$f":"(((AAMC_Raw_Data_for_FY22[[#This Row],[Median]]-AAMC_Raw_Data_for_FY22[[#This Row],[25th]])/25)*20) + AAMC_Raw_Data_for_FY22[[#This Row],[25th]]","v":296108},340925,{"$f":"(((AAMC_Raw_Data_for_FY22[[#This Row],[75th]]-AAMC_Raw_Data_for_FY22[[#This Row],[Median]])/25)*5) + AAMC_Raw_Data_for_FY22[[#This Row],[Median]]","v":364264.2},{"$f":"(((AAMC_Raw_Data_for_FY22[[#This Row],[75th]]-AAMC_Raw_Data_for_FY22[[#This Row],[Median]])/25)*10) + AAMC_Raw_Data_for_FY22[[#This Row],[Median]]","v":387603.4},{"$f":"(((AAMC_Raw_Data_for_FY22[[#This Row],[75th]]-AAMC_Raw_Data_for_FY22[[#This Row],[Median]])/25)*15) + AAMC_Raw_Data_for_FY22[[#This Row],[Median]]","v":410942.6},{"$f":"(((AAMC_Raw_Data_for_FY22[[#This Row],[75th]]-AAMC_Raw_Data_for_FY22[[#This Row],[Median]])/25)*20) + AAMC_Raw_Data_for_FY22[[#This Row],[Median]]","v":434281.8},457621,{"$f":"(((AAMC_Raw_Data_for_FY22[[#This Row],[75th]]-AAMC_Raw_Data_for_FY22[[#This Row],[Median]])/25)*30) + AAMC_Raw_Data_for_FY22[[#This Row],[Median]]","v":480960.2},{"$f":"(((AAMC_Raw_Data_for_FY22[[#This Row],[75th]]-AAMC_Raw_Data_for_FY22[[#This Row],[Median]])/25)*35) + AAMC_Raw_Data_for_FY22[[#This Row],[Median]]","v":504299.4},{"$f":"(((AAMC_Raw_Data_for_FY22[[#This Row],[75th]]-AAMC_Raw_Data_for_FY22[[#This Row],[Median]])/25)*40) + AAMC_Raw_Data_for_FY22[[#This Row],[Median]]","v":527638.6}]
[{"$f":"AAMC_Raw_Data_for_FY22[[#This Row],[Source]]&AAMC_Raw_Data_for_FY22[[#This Row],[Type]]&AAMC_Raw_Data_for_FY22[[#This Row],[School Subset]]&AAMC_Raw_Data_for_FY22[[#This Row],[Rank]]&AAMC_Raw_Data_for_FY22[[#This Row],[Degree]]&AAMC_Raw_Data_for_FY22[[#This Row],[Department / Specialty]]&\"L\"","v":"AAMCAcademicAllAssistantMDTrauma/Critical Care SurgeryL"},"Trauma/Critical Care Surgery",4,"AAMC","Academic","All","Assistant","MD","2021-2022",363350,{"$f":"(((AAMC_Raw_Data_for_FY22[[#This Row],[Median]]-AAMC_Raw_Data_for_FY22[[#This Row],[25th]])/25)*5) + AAMC_Raw_Data_for_FY22[[#This Row],[25th]]","v":371152.6},{"$f":"(((AAMC_Raw_Data_for_FY22[[#This Row],[Median]]-AAMC_Raw_Data_for_FY22[[#This Row],[25th]])/25)*10) + AAMC_Raw_Data_for_FY22[[#This Row],[25th]]","v":378955.2},{"$f":"(((AAMC_Raw_Data_for_FY22[[#This Row],[Median]]-AAMC_Raw_Data_for_FY22[[#This Row],[25th]])/25)*15) + AAMC_Raw_Data_for_FY22[[#This Row],[25th]]","v":386757.8},{"$f":"(((AAMC_Raw_Data_for_FY22[[#This Row],[Median]]-AAMC_Raw_Data_for_FY22[[#This Row],[25th]])/25)*20) + AAMC_Raw_Data_for_FY22[[#This Row],[25th]]","v":394560.4},402363,{"$f":"(((AAMC_Raw_Data_for_FY22[[#This Row],[75th]]-AAMC_Raw_Data_for_FY22[[#This Row],[Median]])/25)*5) + AAMC_Raw_Data_for_FY22[[#This Row],[Median]]","v":415395.4},{"$f":"(((AAMC_Raw_Data_for_FY22[[#This Row],[75th]]-AAMC_Raw_Data_for_FY22[[#This Row],[Median]])/25)*10) + AAMC_Raw_Data_for_FY22[[#This Row],[Median]]","v":428427.8},{"$f":"(((AAMC_Raw_Data_for_FY22[[#This Row],[75th]]-AAMC_Raw_Data_for_FY22[[#This Row],[Median]])/25)*15) + AAMC_Raw_Data_for_FY22[[#This Row],[Median]]","v":441460.2},{"$f":"(((AAMC_Raw_Data_for_FY22[[#This Row],[75th]]-AAMC_Raw_Data_for_FY22[[#This Row],[Median]])/25)*20) + AAMC_Raw_Data_for_FY22[[#This Row],[Median]]","v":454492.6},467525,{"$f":"(((AAMC_Raw_Data_for_FY22[[#This Row],[75th]]-AAMC_Raw_Data_for_FY22[[#This Row],[Median]])/25)*30) + AAMC_Raw_Data_for_FY22[[#This Row],[Median]]","v":480557.4},{"$f":"(((AAMC_Raw_Data_for_FY22[[#This Row],[75th]]-AAMC_Raw_Data_for_FY22[[#This Row],[Median]])/25)*35) + AAMC_Raw_Data_for_FY22[[#This Row],[Median]]","v":493589.8},{"$f":"(((AAMC_Raw_Data_for_FY22[[#This Row],[75th]]-AAMC_Raw_Data_for_FY22[[#This Row],[Median]])/25)*40) + AAMC_Raw_Data_for_FY22[[#This Row],[Median]]","v":506622.2}]
[{"$f":"AAMC_Raw_Data_for_FY22[[#This Row],[Source]]&AAMC_Raw_Data_for_FY22[[#This Row],[Type]]&AAMC_Raw_Data_for_FY22[[#This Row],[School Subset]]&AAMC_Raw_Data_for_FY22[[#This Row],[Rank]]&AAMC_Raw_Data_for_FY22[[#This Row],[Degree]]&AAMC_Raw_Data_for_FY22[[#This Row],[Department / Specialty]]&\"L\"","v":"AAMCAcademicAllAssociateMDTrauma/Critical Care SurgeryL"},"Trauma/Critical Care Surgery",3,"AAMC","Academic","All","Associate","MD","2021-2022",423830,{"$f":"(((AAMC_Raw_Data_for_FY22[[#This Row],[Median]]-AAMC_Raw_Data_for_FY22[[#This Row],[25th]])/25)*5) + AAMC_Raw_Data_for_FY22[[#This Row],[25th]]","v":434904.8},{"$f":"(((AAMC_Raw_Data_for_FY22[[#This Row],[Median]]-AAMC_Raw_Data_for_FY22[[#This Row],[25th]])/25)*10) + AAMC_Raw_Data_for_FY22[[#This Row],[25th]]","v":445979.6},{"$f":"(((AAMC_Raw_Data_for_FY22[[#This Row],[Median]]-AAMC_Raw_Data_for_FY22[[#This Row],[25th]])/25)*15) + AAMC_Raw_Data_for_FY22[[#This Row],[25th]]","v":457054.4},{"$f":"(((AAMC_Raw_Data_for_FY22[[#This Row],[Median]]-AAMC_Raw_Data_for_FY22[[#This Row],[25th]])/25)*20) + AAMC_Raw_Data_for_FY22[[#This Row],[25th]]","v":468129.2},479204,{"$f":"(((AAMC_Raw_Data_for_FY22[[#This Row],[75th]]-AAMC_Raw_Data_for_FY22[[#This Row],[Median]])/25)*5) + AAMC_Raw_Data_for_FY22[[#This Row],[Median]]","v":493575.2},{"$f":"(((AAMC_Raw_Data_for_FY22[[#This Row],[75th]]-AAMC_Raw_Data_for_FY22[[#This Row],[Median]])/25)*10) + AAMC_Raw_Data_for_FY22[[#This Row],[Median]]","v":507946.4},{"$f":"(((AAMC_Raw_Data_for_FY22[[#This Row],[75th]]-AAMC_Raw_Data_for_FY22[[#This Row],[Median]])/25)*15) + AAMC_Raw_Data_for_FY22[[#This Row],[Median]]","v":522317.6},{"$f":"(((AAMC_Raw_Data_for_FY22[[#This Row],[75th]]-AAMC_Raw_Data_for_FY22[[#This Row],[Median]])/25)*20) + AAMC_Raw_Data_for_FY22[[#This Row],[Median]]","v":536688.80000000005},551060,{"$f":"(((AAMC_Raw_Data_for_FY22[[#This Row],[75th]]-AAMC_Raw_Data_for_FY22[[#This Row],[Median]])/25)*30) + AAMC_Raw_Data_for_FY22[[#This Row],[Median]]","v":565431.19999999995},{"$f":"(((AAMC_Raw_Data_for_FY22[[#This Row],[75th]]-AAMC_Raw_Data_for_FY22[[#This Row],[Median]])/25)*35) + AAMC_Raw_Data_for_FY22[[#This Row],[Median]]","v":579802.4},{"$f":"(((AAMC_Raw_Data_for_FY22[[#This Row],[75th]]-AAMC_Raw_Data_for_FY22[[#This Row],[Median]])/25)*40) + AAMC_Raw_Data_for_FY22[[#This Row],[Median]]","v":594173.6}]
[{"$f":"AAMC_Raw_Data_for_FY22[[#This Row],[Source]]&AAMC_Raw_Data_for_FY22[[#This Row],[Type]]&AAMC_Raw_Data_for_FY22[[#This Row],[School Subset]]&AAMC_Raw_Data_for_FY22[[#This Row],[Rank]]&AAMC_Raw_Data_for_FY22[[#This Row],[Degree]]&AAMC_Raw_Data_for_FY22[[#This Row],[Department / Specialty]]&\"L\"","v":"AAMCAcademicAllProfessorMDTrauma/Critical Care SurgeryL"},"Trauma/Critical Care Surgery",2,"AAMC","Academic","All","Professor","MD","2021-2022",451607,{"$f":"(((AAMC_Raw_Data_for_FY22[[#This Row],[Median]]-AAMC_Raw_Data_for_FY22[[#This Row],[25th]])/25)*5) + AAMC_Raw_Data_for_FY22[[#This Row],[25th]]","v":465724},{"$f":"(((AAMC_Raw_Data_for_FY22[[#This Row],[Median]]-AAMC_Raw_Data_for_FY22[[#This Row],[25th]])/25)*10) + AAMC_Raw_Data_for_FY22[[#This Row],[25th]]","v":479841},{"$f":"(((AAMC_Raw_Data_for_FY22[[#This Row],[Median]]-AAMC_Raw_Data_for_FY22[[#This Row],[25th]])/25)*15) + AAMC_Raw_Data_for_FY22[[#This Row],[25th]]","v":493958},{"$f":"(((AAMC_Raw_Data_for_FY22[[#This Row],[Median]]-AAMC_Raw_Data_for_FY22[[#This Row],[25th]])/25)*20) + AAMC_Raw_Data_for_FY22[[#This Row],[25th]]","v":508075},522192,{"$f":"(((AAMC_Raw_Data_for_FY22[[#This Row],[75th]]-AAMC_Raw_Data_for_FY22[[#This Row],[Median]])/25)*5) + AAMC_Raw_Data_for_FY22[[#This Row],[Median]]","v":538173.80000000005},{"$f":"(((AAMC_Raw_Data_for_FY22[[#This Row],[75th]]-AAMC_Raw_Data_for_FY22[[#This Row],[Median]])/25)*10) + AAMC_Raw_Data_for_FY22[[#This Row],[Median]]","v":554155.6},{"$f":"(((AAMC_Raw_Data_for_FY22[[#This Row],[75th]]-AAMC_Raw_Data_for_FY22[[#This Row],[Median]])/25)*15) + AAMC_Raw_Data_for_FY22[[#This Row],[Median]]","v":570137.4},{"$f":"(((AAMC_Raw_Data_for_FY22[[#This Row],[75th]]-AAMC_Raw_Data_for_FY22[[#This Row],[Median]])/25)*20) + AAMC_Raw_Data_for_FY22[[#This Row],[Median]]","v":586119.19999999995},602101,{"$f":"(((AAMC_Raw_Data_for_FY22[[#This Row],[75th]]-AAMC_Raw_Data_for_FY22[[#This Row],[Median]])/25)*30) + AAMC_Raw_Data_for_FY22[[#This Row],[Median]]","v":618082.80000000005},{"$f":"(((AAMC_Raw_Data_for_FY22[[#This Row],[75th]]-AAMC_Raw_Data_for_FY22[[#This Row],[Median]])/25)*35) + AAMC_Raw_Data_for_FY22[[#This Row],[Median]]","v":634064.6},{"$f":"(((AAMC_Raw_Data_for_FY22[[#This Row],[75th]]-AAMC_Raw_Data_for_FY22[[#This Row],[Median]])/25)*40) + AAMC_Raw_Data_for_FY22[[#This Row],[Median]]","v":650046.4}]
[{"$f":"AAMC_Raw_Data_for_FY22[[#This Row],[Source]]&AAMC_Raw_Data_for_FY22[[#This Row],[Type]]&AAMC_Raw_Data_for_FY22[[#This Row],[School Subset]]&AAMC_Raw_Data_for_FY22[[#This Row],[Rank]]&AAMC_Raw_Data_for_FY22[[#This Row],[Degree]]&AAMC_Raw_Data_for_FY22[[#This Row],[Department / Specialty]]&\"L\"","v":"AAMCAcademicAllChiefMDTrauma/Critical Care SurgeryL"},"Trauma/Critical Care Surgery",6,"AAMC","Academic","All","Chief","MD","2021-2022",548766,{"$f":"(((AAMC_Raw_Data_for_FY22[[#This Row],[Median]]-AAMC_Raw_Data_for_FY22[[#This Row],[25th]])/25)*5) + AAMC_Raw_Data_for_FY22[[#This Row],[25th]]","v":567288},{"$f":"(((AAMC_Raw_Data_for_FY22[[#This Row],[Median]]-AAMC_Raw_Data_for_FY22[[#This Row],[25th]])/25)*10) + AAMC_Raw_Data_for_FY22[[#This Row],[25th]]","v":585810},{"$f":"(((AAMC_Raw_Data_for_FY22[[#This Row],[Median]]-AAMC_Raw_Data_for_FY22[[#This Row],[25th]])/25)*15) + AAMC_Raw_Data_for_FY22[[#This Row],[25th]]","v":604332},{"$f":"(((AAMC_Raw_Data_for_FY22[[#This Row],[Median]]-AAMC_Raw_Data_for_FY22[[#This Row],[25th]])/25)*20) + AAMC_Raw_Data_for_FY22[[#This Row],[25th]]","v":622854},641376,{"$f":"(((AAMC_Raw_Data_for_FY22[[#This Row],[75th]]-AAMC_Raw_Data_for_FY22[[#This Row],[Median]])/25)*5) + AAMC_Raw_Data_for_FY22[[#This Row],[Median]]","v":656909.6},{"$f":"(((AAMC_Raw_Data_for_FY22[[#This Row],[75th]]-AAMC_Raw_Data_for_FY22[[#This Row],[Median]])/25)*10) + AAMC_Raw_Data_for_FY22[[#This Row],[Median]]","v":672443.2},{"$f":"(((AAMC_Raw_Data_for_FY22[[#This Row],[75th]]-AAMC_Raw_Data_for_FY22[[#This Row],[Median]])/25)*15) + AAMC_Raw_Data_for_FY22[[#This Row],[Median]]","v":687976.8},{"$f":"(((AAMC_Raw_Data_for_FY22[[#This Row],[75th]]-AAMC_Raw_Data_for_FY22[[#This Row],[Median]])/25)*20) + AAMC_Raw_Data_for_FY22[[#This Row],[Median]]","v":703510.4},719044,{"$f":"(((AAMC_Raw_Data_for_FY22[[#This Row],[75th]]-AAMC_Raw_Data_for_FY22[[#This Row],[Median]])/25)*30) + AAMC_Raw_Data_for_FY22[[#This Row],[Median]]","v":734577.6},{"$f":"(((AAMC_Raw_Data_for_FY22[[#This Row],[75th]]-AAMC_Raw_Data_for_FY22[[#This Row],[Median]])/25)*35) + AAMC_Raw_Data_for_FY22[[#This Row],[Median]]","v":750111.2},{"$f":"(((AAMC_Raw_Data_for_FY22[[#This Row],[75th]]-AAMC_Raw_Data_for_FY22[[#This Row],[Median]])/25)*40) + AAMC_Raw_Data_for_FY22[[#This Row],[Median]]","v":765644.80000000005}]
[{"$f":"AAMC_Raw_Data_for_FY22[[#This Row],[Source]]&AAMC_Raw_Data_for_FY22[[#This Row],[Type]]&AAMC_Raw_Data_for_FY22[[#This Row],[School Subset]]&AAMC_Raw_Data_for_FY22[[#This Row],[Rank]]&AAMC_Raw_Data_for_FY22[[#This Row],[Degree]]&AAMC_Raw_Data_for_FY22[[#This Row],[Department / Specialty]]&\"L\"","v":"AAMCAcademicAllChairMDTrauma/Critical Care SurgeryL"},"Trauma/Critical Care Surgery",1,"AAMC","Academic","All","Chair","MD","2021-2022",701547,{"$f":"(((AAMC_Raw_Data_for_FY22[[#This Row],[Median]]-AAMC_Raw_Data_for_FY22[[#This Row],[25th]])/25)*5) + AAMC_Raw_Data_for_FY22[[#This Row],[25th]]","v":721814},{"$f":"(((AAMC_Raw_Data_for_FY22[[#This Row],[Median]]-AAMC_Raw_Data_for_FY22[[#This Row],[25th]])/25)*10) + AAMC_Raw_Data_for_FY22[[#This Row],[25th]]","v":742081},{"$f":"(((AAMC_Raw_Data_for_FY22[[#This Row],[Median]]-AAMC_Raw_Data_for_FY22[[#This Row],[25th]])/25)*15) + AAMC_Raw_Data_for_FY22[[#This Row],[25th]]","v":762348},{"$f":"(((AAMC_Raw_Data_for_FY22[[#This Row],[Median]]-AAMC_Raw_Data_for_FY22[[#This Row],[25th]])/25)*20) + AAMC_Raw_Data_for_FY22[[#This Row],[25th]]","v":782615},802882,{"$f":"(((AAMC_Raw_Data_for_FY22[[#This Row],[75th]]-AAMC_Raw_Data_for_FY22[[#This Row],[Median]])/25)*5) + AAMC_Raw_Data_for_FY22[[#This Row],[Median]]","v":835689.6},{"$f":"(((AAMC_Raw_Data_for_FY22[[#This Row],[75th]]-AAMC_Raw_Data_for_FY22[[#This Row],[Median]])/25)*10) + AAMC_Raw_Data_for_FY22[[#This Row],[Median]]","v":868497.2},{"$f":"(((AAMC_Raw_Data_for_FY22[[#This Row],[75th]]-AAMC_Raw_Data_for_FY22[[#This Row],[Median]])/25)*15) + AAMC_Raw_Data_for_FY22[[#This Row],[Median]]","v":901304.8},{"$f":"(((AAMC_Raw_Data_for_FY22[[#This Row],[75th]]-AAMC_Raw_Data_for_FY22[[#This Row],[Median]])/25)*20) + AAMC_Raw_Data_for_FY22[[#This Row],[Median]]","v":934112.4},966920,{"$f":"(((AAMC_Raw_Data_for_FY22[[#This Row],[75th]]-AAMC_Raw_Data_for_FY22[[#This Row],[Median]])/25)*30) + AAMC_Raw_Data_for_FY22[[#This Row],[Median]]","v":999727.6},{"$f":"(((AAMC_Raw_Data_for_FY22[[#This Row],[75th]]-AAMC_Raw_Data_for_FY22[[#This Row],[Median]])/25)*35) + AAMC_Raw_Data_for_FY22[[#This Row],[Median]]","v":1032535.2},{"$f":"(((AAMC_Raw_Data_for_FY22[[#This Row],[75th]]-AAMC_Raw_Data_for_FY22[[#This Row],[Median]])/25)*40) + AAMC_Raw_Data_for_FY22[[#This Row],[Median]]","v":1065342.8}]
[{"$f":"AAMC_Raw_Data_for_FY22[[#This Row],[Source]]&AAMC_Raw_Data_for_FY22[[#This Row],[Type]]&AAMC_Raw_Data_for_FY22[[#This Row],[School Subset]]&AAMC_Raw_Data_for_FY22[[#This Row],[Rank]]&AAMC_Raw_Data_for_FY22[[#This Row],[Degree]]&AAMC_Raw_Data_for_FY22[[#This Row],[Department / Specialty]]&\"L\"","v":"AAMCAcademicAllInstructorMDUrologyL"},"Urology",5,"AAMC","Academic","All","Instructor","MD","2021-2022",79631,{"$f":"(((AAMC_Raw_Data_for_FY22[[#This Row],[Median]]-AAMC_Raw_Data_for_FY22[[#This Row],[25th]])/25)*5) + AAMC_Raw_Data_for_FY22[[#This Row],[25th]]","v":84841.8},{"$f":"(((AAMC_Raw_Data_for_FY22[[#This Row],[Median]]-AAMC_Raw_Data_for_FY22[[#This Row],[25th]])/25)*10) + AAMC_Raw_Data_for_FY22[[#This Row],[25th]]","v":90052.6},{"$f":"(((AAMC_Raw_Data_for_FY22[[#This Row],[Median]]-AAMC_Raw_Data_for_FY22[[#This Row],[25th]])/25)*15) + AAMC_Raw_Data_for_FY22[[#This Row],[25th]]","v":95263.4},{"$f":"(((AAMC_Raw_Data_for_FY22[[#This Row],[Median]]-AAMC_Raw_Data_for_FY22[[#This Row],[25th]])/25)*20) + AAMC_Raw_Data_for_FY22[[#This Row],[25th]]","v":100474.2},105685,{"$f":"(((AAMC_Raw_Data_for_FY22[[#This Row],[75th]]-AAMC_Raw_Data_for_FY22[[#This Row],[Median]])/25)*5) + AAMC_Raw_Data_for_FY22[[#This Row],[Median]]","v":151345.20000000001},{"$f":"(((AAMC_Raw_Data_for_FY22[[#This Row],[75th]]-AAMC_Raw_Data_for_FY22[[#This Row],[Median]])/25)*10) + AAMC_Raw_Data_for_FY22[[#This Row],[Median]]","v":197005.40000000002},{"$f":"(((AAMC_Raw_Data_for_FY22[[#This Row],[75th]]-AAMC_Raw_Data_for_FY22[[#This Row],[Median]])/25)*15) + AAMC_Raw_Data_for_FY22[[#This Row],[Median]]","v":242665.60000000001},{"$f":"(((AAMC_Raw_Data_for_FY22[[#This Row],[75th]]-AAMC_Raw_Data_for_FY22[[#This Row],[Median]])/25)*20) + AAMC_Raw_Data_for_FY22[[#This Row],[Median]]","v":288325.80000000005},333986,{"$f":"(((AAMC_Raw_Data_for_FY22[[#This Row],[75th]]-AAMC_Raw_Data_for_FY22[[#This Row],[Median]])/25)*30) + AAMC_Raw_Data_for_FY22[[#This Row],[Median]]","v":379646.2},{"$f":"(((AAMC_Raw_Data_for_FY22[[#This Row],[75th]]-AAMC_Raw_Data_for_FY22[[#This Row],[Median]])/25)*35) + AAMC_Raw_Data_for_FY22[[#This Row],[Median]]","v":425306.4},{"$f":"(((AAMC_Raw_Data_for_FY22[[#This Row],[75th]]-AAMC_Raw_Data_for_FY22[[#This Row],[Median]])/25)*40) + AAMC_Raw_Data_for_FY22[[#This Row],[Median]]","v":470966.60000000003}]
[{"$f":"AAMC_Raw_Data_for_FY22[[#This Row],[Source]]&AAMC_Raw_Data_for_FY22[[#This Row],[Type]]&AAMC_Raw_Data_for_FY22[[#This Row],[School Subset]]&AAMC_Raw_Data_for_FY22[[#This Row],[Rank]]&AAMC_Raw_Data_for_FY22[[#This Row],[Degree]]&AAMC_Raw_Data_for_FY22[[#This Row],[Department / Specialty]]&\"L\"","v":"AAMCAcademicAllAssistantMDUrologyL"},"Urology",4,"AAMC","Academic","All","Assistant","MD","2021-2022",332842,{"$f":"(((AAMC_Raw_Data_for_FY22[[#This Row],[Median]]-AAMC_Raw_Data_for_FY22[[#This Row],[25th]])/25)*5) + AAMC_Raw_Data_for_FY22[[#This Row],[25th]]","v":344064.8},{"$f":"(((AAMC_Raw_Data_for_FY22[[#This Row],[Median]]-AAMC_Raw_Data_for_FY22[[#This Row],[25th]])/25)*10) + AAMC_Raw_Data_for_FY22[[#This Row],[25th]]","v":355287.6},{"$f":"(((AAMC_Raw_Data_for_FY22[[#This Row],[Median]]-AAMC_Raw_Data_for_FY22[[#This Row],[25th]])/25)*15) + AAMC_Raw_Data_for_FY22[[#This Row],[25th]]","v":366510.4},{"$f":"(((AAMC_Raw_Data_for_FY22[[#This Row],[Median]]-AAMC_Raw_Data_for_FY22[[#This Row],[25th]])/25)*20) + AAMC_Raw_Data_for_FY22[[#This Row],[25th]]","v":377733.2},388956,{"$f":"(((AAMC_Raw_Data_for_FY22[[#This Row],[75th]]-AAMC_Raw_Data_for_FY22[[#This Row],[Median]])/25)*5) + AAMC_Raw_Data_for_FY22[[#This Row],[Median]]","v":402602.6},{"$f":"(((AAMC_Raw_Data_for_FY22[[#This Row],[75th]]-AAMC_Raw_Data_for_FY22[[#This Row],[Median]])/25)*10) + AAMC_Raw_Data_for_FY22[[#This Row],[Median]]","v":416249.2},{"$f":"(((AAMC_Raw_Data_for_FY22[[#This Row],[75th]]-AAMC_Raw_Data_for_FY22[[#This Row],[Median]])/25)*15) + AAMC_Raw_Data_for_FY22[[#This Row],[Median]]","v":429895.8},{"$f":"(((AAMC_Raw_Data_for_FY22[[#This Row],[75th]]-AAMC_Raw_Data_for_FY22[[#This Row],[Median]])/25)*20) + AAMC_Raw_Data_for_FY22[[#This Row],[Median]]","v":443542.4},457189,{"$f":"(((AAMC_Raw_Data_for_FY22[[#This Row],[75th]]-AAMC_Raw_Data_for_FY22[[#This Row],[Median]])/25)*30) + AAMC_Raw_Data_for_FY22[[#This Row],[Median]]","v":470835.6},{"$f":"(((AAMC_Raw_Data_for_FY22[[#This Row],[75th]]-AAMC_Raw_Data_for_FY22[[#This Row],[Median]])/25)*35) + AAMC_Raw_Data_for_FY22[[#This Row],[Median]]","v":484482.2},{"$f":"(((AAMC_Raw_Data_for_FY22[[#This Row],[75th]]-AAMC_Raw_Data_for_FY22[[#This Row],[Median]])/25)*40) + AAMC_Raw_Data_for_FY22[[#This Row],[Median]]","v":498128.8}]
[{"$f":"AAMC_Raw_Data_for_FY22[[#This Row],[Source]]&AAMC_Raw_Data_for_FY22[[#This Row],[Type]]&AAMC_Raw_Data_for_FY22[[#This Row],[School Subset]]&AAMC_Raw_Data_for_FY22[[#This Row],[Rank]]&AAMC_Raw_Data_for_FY22[[#This Row],[Degree]]&AAMC_Raw_Data_for_FY22[[#This Row],[Department / Specialty]]&\"L\"","v":"AAMCAcademicAllAssociateMDUrologyL"},"Urology",3,"AAMC","Academic","All","Associate","MD","2021-2022",400000,{"$f":"(((AAMC_Raw_Data_for_FY22[[#This Row],[Median]]-AAMC_Raw_Data_for_FY22[[#This Row],[25th]])/25)*5) + AAMC_Raw_Data_for_FY22[[#This Row],[25th]]","v":409969},{"$f":"(((AAMC_Raw_Data_for_FY22[[#This Row],[Median]]-AAMC_Raw_Data_for_FY22[[#This Row],[25th]])/25)*10) + AAMC_Raw_Data_for_FY22[[#This Row],[25th]]","v":419938},{"$f":"(((AAMC_Raw_Data_for_FY22[[#This Row],[Median]]-AAMC_Raw_Data_for_FY22[[#This Row],[25th]])/25)*15) + AAMC_Raw_Data_for_FY22[[#This Row],[25th]]","v":429907},{"$f":"(((AAMC_Raw_Data_for_FY22[[#This Row],[Median]]-AAMC_Raw_Data_for_FY22[[#This Row],[25th]])/25)*20) + AAMC_Raw_Data_for_FY22[[#This Row],[25th]]","v":439876},449845,{"$f":"(((AAMC_Raw_Data_for_FY22[[#This Row],[75th]]-AAMC_Raw_Data_for_FY22[[#This Row],[Median]])/25)*5) + AAMC_Raw_Data_for_FY22[[#This Row],[Median]]","v":470361.2},{"$f":"(((AAMC_Raw_Data_for_FY22[[#This Row],[75th]]-AAMC_Raw_Data_for_FY22[[#This Row],[Median]])/25)*10) + AAMC_Raw_Data_for_FY22[[#This Row],[Median]]","v":490877.4},{"$f":"(((AAMC_Raw_Data_for_FY22[[#This Row],[75th]]-AAMC_Raw_Data_for_FY22[[#This Row],[Median]])/25)*15) + AAMC_Raw_Data_for_FY22[[#This Row],[Median]]","v":511393.6},{"$f":"(((AAMC_Raw_Data_for_FY22[[#This Row],[75th]]-AAMC_Raw_Data_for_FY22[[#This Row],[Median]])/25)*20) + AAMC_Raw_Data_for_FY22[[#This Row],[Median]]","v":531909.80000000005},552426,{"$f":"(((AAMC_Raw_Data_for_FY22[[#This Row],[75th]]-AAMC_Raw_Data_for_FY22[[#This Row],[Median]])/25)*30) + AAMC_Raw_Data_for_FY22[[#This Row],[Median]]","v":572942.19999999995},{"$f":"(((AAMC_Raw_Data_for_FY22[[#This Row],[75th]]-AAMC_Raw_Data_for_FY22[[#This Row],[Median]])/25)*35) + AAMC_Raw_Data_for_FY22[[#This Row],[Median]]","v":593458.4},{"$f":"(((AAMC_Raw_Data_for_FY22[[#This Row],[75th]]-AAMC_Raw_Data_for_FY22[[#This Row],[Median]])/25)*40) + AAMC_Raw_Data_for_FY22[[#This Row],[Median]]","v":613974.6}]
[{"$f":"AAMC_Raw_Data_for_FY22[[#This Row],[Source]]&AAMC_Raw_Data_for_FY22[[#This Row],[Type]]&AAMC_Raw_Data_for_FY22[[#This Row],[School Subset]]&AAMC_Raw_Data_for_FY22[[#This Row],[Rank]]&AAMC_Raw_Data_for_FY22[[#This Row],[Degree]]&AAMC_Raw_Data_for_FY22[[#This Row],[Department / Specialty]]&\"L\"","v":"AAMCAcademicAllProfessorMDUrologyL"},"Urology",2,"AAMC","Academic","All","Professor","MD","2021-2022",443712,{"$f":"(((AAMC_Raw_Data_for_FY22[[#This Row],[Median]]-AAMC_Raw_Data_for_FY22[[#This Row],[25th]])/25)*5) + AAMC_Raw_Data_for_FY22[[#This Row],[25th]]","v":462421.4},{"$f":"(((AAMC_Raw_Data_for_FY22[[#This Row],[Median]]-AAMC_Raw_Data_for_FY22[[#This Row],[25th]])/25)*10) + AAMC_Raw_Data_for_FY22[[#This Row],[25th]]","v":481130.8},{"$f":"(((AAMC_Raw_Data_for_FY22[[#This Row],[Median]]-AAMC_Raw_Data_for_FY22[[#This Row],[25th]])/25)*15) + AAMC_Raw_Data_for_FY22[[#This Row],[25th]]","v":499840.2},{"$f":"(((AAMC_Raw_Data_for_FY22[[#This Row],[Median]]-AAMC_Raw_Data_for_FY22[[#This Row],[25th]])/25)*20) + AAMC_Raw_Data_for_FY22[[#This Row],[25th]]","v":518549.6},537259,{"$f":"(((AAMC_Raw_Data_for_FY22[[#This Row],[75th]]-AAMC_Raw_Data_for_FY22[[#This Row],[Median]])/25)*5) + AAMC_Raw_Data_for_FY22[[#This Row],[Median]]","v":559730},{"$f":"(((AAMC_Raw_Data_for_FY22[[#This Row],[75th]]-AAMC_Raw_Data_for_FY22[[#This Row],[Median]])/25)*10) + AAMC_Raw_Data_for_FY22[[#This Row],[Median]]","v":582201},{"$f":"(((AAMC_Raw_Data_for_FY22[[#This Row],[75th]]-AAMC_Raw_Data_for_FY22[[#This Row],[Median]])/25)*15) + AAMC_Raw_Data_for_FY22[[#This Row],[Median]]","v":604672},{"$f":"(((AAMC_Raw_Data_for_FY22[[#This Row],[75th]]-AAMC_Raw_Data_for_FY22[[#This Row],[Median]])/25)*20) + AAMC_Raw_Data_for_FY22[[#This Row],[Median]]","v":627143},649614,{"$f":"(((AAMC_Raw_Data_for_FY22[[#This Row],[75th]]-AAMC_Raw_Data_for_FY22[[#This Row],[Median]])/25)*30) + AAMC_Raw_Data_for_FY22[[#This Row],[Median]]","v":672085},{"$f":"(((AAMC_Raw_Data_for_FY22[[#This Row],[75th]]-AAMC_Raw_Data_for_FY22[[#This Row],[Median]])/25)*35) + AAMC_Raw_Data_for_FY22[[#This Row],[Median]]","v":694556},{"$f":"(((AAMC_Raw_Data_for_FY22[[#This Row],[75th]]-AAMC_Raw_Data_for_FY22[[#This Row],[Median]])/25)*40) + AAMC_Raw_Data_for_FY22[[#This Row],[Median]]","v":717027}]
[{"$f":"AAMC_Raw_Data_for_FY22[[#This Row],[Source]]&AAMC_Raw_Data_for_FY22[[#This Row],[Type]]&AAMC_Raw_Data_for_FY22[[#This Row],[School Subset]]&AAMC_Raw_Data_for_FY22[[#This Row],[Rank]]&AAMC_Raw_Data_for_FY22[[#This Row],[Degree]]&AAMC_Raw_Data_for_FY22[[#This Row],[Department / Specialty]]&\"L\"","v":"AAMCAcademicAllChiefMDUrologyL"},"Urology",6,"AAMC","Academic","All","Chief","MD","2021-2022",501863,{"$f":"(((AAMC_Raw_Data_for_FY22[[#This Row],[Median]]-AAMC_Raw_Data_for_FY22[[#This Row],[25th]])/25)*5) + AAMC_Raw_Data_for_FY22[[#This Row],[25th]]","v":519747.6},{"$f":"(((AAMC_Raw_Data_for_FY22[[#This Row],[Median]]-AAMC_Raw_Data_for_FY22[[#This Row],[25th]])/25)*10) + AAMC_Raw_Data_for_FY22[[#This Row],[25th]]","v":537632.19999999995},{"$f":"(((AAMC_Raw_Data_for_FY22[[#This Row],[Median]]-AAMC_Raw_Data_for_FY22[[#This Row],[25th]])/25)*15) + AAMC_Raw_Data_for_FY22[[#This Row],[25th]]","v":555516.80000000005},{"$f":"(((AAMC_Raw_Data_for_FY22[[#This Row],[Median]]-AAMC_Raw_Data_for_FY22[[#This Row],[25th]])/25)*20) + AAMC_Raw_Data_for_FY22[[#This Row],[25th]]","v":573401.4},591286,{"$f":"(((AAMC_Raw_Data_for_FY22[[#This Row],[75th]]-AAMC_Raw_Data_for_FY22[[#This Row],[Median]])/25)*5) + AAMC_Raw_Data_for_FY22[[#This Row],[Median]]","v":619668.6},{"$f":"(((AAMC_Raw_Data_for_FY22[[#This Row],[75th]]-AAMC_Raw_Data_for_FY22[[#This Row],[Median]])/25)*10) + AAMC_Raw_Data_for_FY22[[#This Row],[Median]]","v":648051.19999999995},{"$f":"(((AAMC_Raw_Data_for_FY22[[#This Row],[75th]]-AAMC_Raw_Data_for_FY22[[#This Row],[Median]])/25)*15) + AAMC_Raw_Data_for_FY22[[#This Row],[Median]]","v":676433.8},{"$f":"(((AAMC_Raw_Data_for_FY22[[#This Row],[75th]]-AAMC_Raw_Data_for_FY22[[#This Row],[Median]])/25)*20) + AAMC_Raw_Data_for_FY22[[#This Row],[Median]]","v":704816.4},733199,{"$f":"(((AAMC_Raw_Data_for_FY22[[#This Row],[75th]]-AAMC_Raw_Data_for_FY22[[#This Row],[Median]])/25)*30) + AAMC_Raw_Data_for_FY22[[#This Row],[Median]]","v":761581.6},{"$f":"(((AAMC_Raw_Data_for_FY22[[#This Row],[75th]]-AAMC_Raw_Data_for_FY22[[#This Row],[Median]])/25)*35) + AAMC_Raw_Data_for_FY22[[#This Row],[Median]]","v":789964.2},{"$f":"(((AAMC_Raw_Data_for_FY22[[#This Row],[75th]]-AAMC_Raw_Data_for_FY22[[#This Row],[Median]])/25)*40) + AAMC_Raw_Data_for_FY22[[#This Row],[Median]]","v":818346.8}]
[{"$f":"AAMC_Raw_Data_for_FY22[[#This Row],[Source]]&AAMC_Raw_Data_for_FY22[[#This Row],[Type]]&AAMC_Raw_Data_for_FY22[[#This Row],[School Subset]]&AAMC_Raw_Data_for_FY22[[#This Row],[Rank]]&AAMC_Raw_Data_for_FY22[[#This Row],[Degree]]&AAMC_Raw_Data_for_FY22[[#This Row],[Department / Specialty]]&\"L\"","v":"AAMCAcademicAllChairMDUrologyL"},"Urology",1,"AAMC","Academic","All","Chair","MD","2021-2022",630327,{"$f":"(((AAMC_Raw_Data_for_FY22[[#This Row],[Median]]-AAMC_Raw_Data_for_FY22[[#This Row],[25th]])/25)*5) + AAMC_Raw_Data_for_FY22[[#This Row],[25th]]","v":663471.80000000005},{"$f":"(((AAMC_Raw_Data_for_FY22[[#This Row],[Median]]-AAMC_Raw_Data_for_FY22[[#This Row],[25th]])/25)*10) + AAMC_Raw_Data_for_FY22[[#This Row],[25th]]","v":696616.6},{"$f":"(((AAMC_Raw_Data_for_FY22[[#This Row],[Median]]-AAMC_Raw_Data_for_FY22[[#This Row],[25th]])/25)*15) + AAMC_Raw_Data_for_FY22[[#This Row],[25th]]","v":729761.4},{"$f":"(((AAMC_Raw_Data_for_FY22[[#This Row],[Median]]-AAMC_Raw_Data_for_FY22[[#This Row],[25th]])/25)*20) + AAMC_Raw_Data_for_FY22[[#This Row],[25th]]","v":762906.2},796051,{"$f":"(((AAMC_Raw_Data_for_FY22[[#This Row],[75th]]-AAMC_Raw_Data_for_FY22[[#This Row],[Median]])/25)*5) + AAMC_Raw_Data_for_FY22[[#This Row],[Median]]","v":823559.8},{"$f":"(((AAMC_Raw_Data_for_FY22[[#This Row],[75th]]-AAMC_Raw_Data_for_FY22[[#This Row],[Median]])/25)*10) + AAMC_Raw_Data_for_FY22[[#This Row],[Median]]","v":851068.6},{"$f":"(((AAMC_Raw_Data_for_FY22[[#This Row],[75th]]-AAMC_Raw_Data_for_FY22[[#This Row],[Median]])/25)*15) + AAMC_Raw_Data_for_FY22[[#This Row],[Median]]","v":878577.4},{"$f":"(((AAMC_Raw_Data_for_FY22[[#This Row],[75th]]-AAMC_Raw_Data_for_FY22[[#This Row],[Median]])/25)*20) + AAMC_Raw_Data_for_FY22[[#This Row],[Median]]","v":906086.2},933595,{"$f":"(((AAMC_Raw_Data_for_FY22[[#This Row],[75th]]-AAMC_Raw_Data_for_FY22[[#This Row],[Median]])/25)*30) + AAMC_Raw_Data_for_FY22[[#This Row],[Median]]","v":961103.8},{"$f":"(((AAMC_Raw_Data_for_FY22[[#This Row],[75th]]-AAMC_Raw_Data_for_FY22[[#This Row],[Median]])/25)*35) + AAMC_Raw_Data_for_FY22[[#This Row],[Median]]","v":988612.6},{"$f":"(((AAMC_Raw_Data_for_FY22[[#This Row],[75th]]-AAMC_Raw_Data_for_FY22[[#This Row],[Median]])/25)*40) + AAMC_Raw_Data_for_FY22[[#This Row],[Median]]","v":1016121.4}]
[{"$f":"AAMC_Raw_Data_for_FY22[[#This Row],[Source]]&AAMC_Raw_Data_for_FY22[[#This Row],[Type]]&AAMC_Raw_Data_for_FY22[[#This Row],[School Subset]]&AAMC_Raw_Data_for_FY22[[#This Row],[Rank]]&AAMC_Raw_Data_for_FY22[[#This Row],[Degree]]&AAMC_Raw_Data_for_FY22[[#This Row],[Department / Specialty]]&\"L\"","v":"AAMCAcademicAllInstructorMDVascular SurgeryL"},"Vascular Surgery",5,"AAMC","Academic","All","Instructor","MD","2021-2022",367500,{"$f":"(((AAMC_Raw_Data_for_FY22[[#This Row],[Median]]-AAMC_Raw_Data_for_FY22[[#This Row],[25th]])/25)*5) + AAMC_Raw_Data_for_FY22[[#This Row],[25th]]","v":375795.6},{"$f":"(((AAMC_Raw_Data_for_FY22[[#This Row],[Median]]-AAMC_Raw_Data_for_FY22[[#This Row],[25th]])/25)*10) + AAMC_Raw_Data_for_FY22[[#This Row],[25th]]","v":384091.2},{"$f":"(((AAMC_Raw_Data_for_FY22[[#This Row],[Median]]-AAMC_Raw_Data_for_FY22[[#This Row],[25th]])/25)*15) + AAMC_Raw_Data_for_FY22[[#This Row],[25th]]","v":392386.8},{"$f":"(((AAMC_Raw_Data_for_FY22[[#This Row],[Median]]-AAMC_Raw_Data_for_FY22[[#This Row],[25th]])/25)*20) + AAMC_Raw_Data_for_FY22[[#This Row],[25th]]","v":400682.4},408978,{"$f":"(((AAMC_Raw_Data_for_FY22[[#This Row],[75th]]-AAMC_Raw_Data_for_FY22[[#This Row],[Median]])/25)*5) + AAMC_Raw_Data_for_FY22[[#This Row],[Median]]","v":443631.8},{"$f":"(((AAMC_Raw_Data_for_FY22[[#This Row],[75th]]-AAMC_Raw_Data_for_FY22[[#This Row],[Median]])/25)*10) + AAMC_Raw_Data_for_FY22[[#This Row],[Median]]","v":478285.6},{"$f":"(((AAMC_Raw_Data_for_FY22[[#This Row],[75th]]-AAMC_Raw_Data_for_FY22[[#This Row],[Median]])/25)*15) + AAMC_Raw_Data_for_FY22[[#This Row],[Median]]","v":512939.4},{"$f":"(((AAMC_Raw_Data_for_FY22[[#This Row],[75th]]-AAMC_Raw_Data_for_FY22[[#This Row],[Median]])/25)*20) + AAMC_Raw_Data_for_FY22[[#This Row],[Median]]","v":547593.19999999995},582247,{"$f":"(((AAMC_Raw_Data_for_FY22[[#This Row],[75th]]-AAMC_Raw_Data_for_FY22[[#This Row],[Median]])/25)*30) + AAMC_Raw_Data_for_FY22[[#This Row],[Median]]","v":616900.80000000005},{"$f":"(((AAMC_Raw_Data_for_FY22[[#This Row],[75th]]-AAMC_Raw_Data_for_FY22[[#This Row],[Median]])/25)*35) + AAMC_Raw_Data_for_FY22[[#This Row],[Median]]","v":651554.6},{"$f":"(((AAMC_Raw_Data_for_FY22[[#This Row],[75th]]-AAMC_Raw_Data_for_FY22[[#This Row],[Median]])/25)*40) + AAMC_Raw_Data_for_FY22[[#This Row],[Median]]","v":686208.4}]
[{"$f":"AAMC_Raw_Data_for_FY22[[#This Row],[Source]]&AAMC_Raw_Data_for_FY22[[#This Row],[Type]]&AAMC_Raw_Data_for_FY22[[#This Row],[School Subset]]&AAMC_Raw_Data_for_FY22[[#This Row],[Rank]]&AAMC_Raw_Data_for_FY22[[#This Row],[Degree]]&AAMC_Raw_Data_for_FY22[[#This Row],[Department / Specialty]]&\"L\"","v":"AAMCAcademicAllAssistantMDVascular SurgeryL"},"Vascular Surgery",4,"AAMC","Academic","All","Assistant","MD","2021-2022",354446,{"$f":"(((AAMC_Raw_Data_for_FY22[[#This Row],[Median]]-AAMC_Raw_Data_for_FY22[[#This Row],[25th]])/25)*5) + AAMC_Raw_Data_for_FY22[[#This Row],[25th]]","v":365364},{"$f":"(((AAMC_Raw_Data_for_FY22[[#This Row],[Median]]-AAMC_Raw_Data_for_FY22[[#This Row],[25th]])/25)*10) + AAMC_Raw_Data_for_FY22[[#This Row],[25th]]","v":376282},{"$f":"(((AAMC_Raw_Data_for_FY22[[#This Row],[Median]]-AAMC_Raw_Data_for_FY22[[#This Row],[25th]])/25)*15) + AAMC_Raw_Data_for_FY22[[#This Row],[25th]]","v":387200},{"$f":"(((AAMC_Raw_Data_for_FY22[[#This Row],[Median]]-AAMC_Raw_Data_for_FY22[[#This Row],[25th]])/25)*20) + AAMC_Raw_Data_for_FY22[[#This Row],[25th]]","v":398118},409036,{"$f":"(((AAMC_Raw_Data_for_FY22[[#This Row],[75th]]-AAMC_Raw_Data_for_FY22[[#This Row],[Median]])/25)*5) + AAMC_Raw_Data_for_FY22[[#This Row],[Median]]","v":427380.6},{"$f":"(((AAMC_Raw_Data_for_FY22[[#This Row],[75th]]-AAMC_Raw_Data_for_FY22[[#This Row],[Median]])/25)*10) + AAMC_Raw_Data_for_FY22[[#This Row],[Median]]","v":445725.2},{"$f":"(((AAMC_Raw_Data_for_FY22[[#This Row],[75th]]-AAMC_Raw_Data_for_FY22[[#This Row],[Median]])/25)*15) + AAMC_Raw_Data_for_FY22[[#This Row],[Median]]","v":464069.8},{"$f":"(((AAMC_Raw_Data_for_FY22[[#This Row],[75th]]-AAMC_Raw_Data_for_FY22[[#This Row],[Median]])/25)*20) + AAMC_Raw_Data_for_FY22[[#This Row],[Median]]","v":482414.4},500759,{"$f":"(((AAMC_Raw_Data_for_FY22[[#This Row],[75th]]-AAMC_Raw_Data_for_FY22[[#This Row],[Median]])/25)*30) + AAMC_Raw_Data_for_FY22[[#This Row],[Median]]","v":519103.6},{"$f":"(((AAMC_Raw_Data_for_FY22[[#This Row],[75th]]-AAMC_Raw_Data_for_FY22[[#This Row],[Median]])/25)*35) + AAMC_Raw_Data_for_FY22[[#This Row],[Median]]","v":537448.19999999995},{"$f":"(((AAMC_Raw_Data_for_FY22[[#This Row],[75th]]-AAMC_Raw_Data_for_FY22[[#This Row],[Median]])/25)*40) + AAMC_Raw_Data_for_FY22[[#This Row],[Median]]","v":555792.80000000005}]
[{"$f":"AAMC_Raw_Data_for_FY22[[#This Row],[Source]]&AAMC_Raw_Data_for_FY22[[#This Row],[Type]]&AAMC_Raw_Data_for_FY22[[#This Row],[School Subset]]&AAMC_Raw_Data_for_FY22[[#This Row],[Rank]]&AAMC_Raw_Data_for_FY22[[#This Row],[Degree]]&AAMC_Raw_Data_for_FY22[[#This Row],[Department / Specialty]]&\"L\"","v":"AAMCAcademicAllAssociateMDVascular SurgeryL"},"Vascular Surgery",3,"AAMC","Academic","All","Associate","MD","2021-2022",420664,{"$f":"(((AAMC_Raw_Data_for_FY22[[#This Row],[Median]]-AAMC_Raw_Data_for_FY22[[#This Row],[25th]])/25)*5) + AAMC_Raw_Data_for_FY22[[#This Row],[25th]]","v":432288.6},{"$f":"(((AAMC_Raw_Data_for_FY22[[#This Row],[Median]]-AAMC_Raw_Data_for_FY22[[#This Row],[25th]])/25)*10) + AAMC_Raw_Data_for_FY22[[#This Row],[25th]]","v":443913.2},{"$f":"(((AAMC_Raw_Data_for_FY22[[#This Row],[Median]]-AAMC_Raw_Data_for_FY22[[#This Row],[25th]])/25)*15) + AAMC_Raw_Data_for_FY22[[#This Row],[25th]]","v":455537.8},{"$f":"(((AAMC_Raw_Data_for_FY22[[#This Row],[Median]]-AAMC_Raw_Data_for_FY22[[#This Row],[25th]])/25)*20) + AAMC_Raw_Data_for_FY22[[#This Row],[25th]]","v":467162.4},478787,{"$f":"(((AAMC_Raw_Data_for_FY22[[#This Row],[75th]]-AAMC_Raw_Data_for_FY22[[#This Row],[Median]])/25)*5) + AAMC_Raw_Data_for_FY22[[#This Row],[Median]]","v":495335.2},{"$f":"(((AAMC_Raw_Data_for_FY22[[#This Row],[75th]]-AAMC_Raw_Data_for_FY22[[#This Row],[Median]])/25)*10) + AAMC_Raw_Data_for_FY22[[#This Row],[Median]]","v":511883.4},{"$f":"(((AAMC_Raw_Data_for_FY22[[#This Row],[75th]]-AAMC_Raw_Data_for_FY22[[#This Row],[Median]])/25)*15) + AAMC_Raw_Data_for_FY22[[#This Row],[Median]]","v":528431.6},{"$f":"(((AAMC_Raw_Data_for_FY22[[#This Row],[75th]]-AAMC_Raw_Data_for_FY22[[#This Row],[Median]])/25)*20) + AAMC_Raw_Data_for_FY22[[#This Row],[Median]]","v":544979.80000000005},561528,{"$f":"(((AAMC_Raw_Data_for_FY22[[#This Row],[75th]]-AAMC_Raw_Data_for_FY22[[#This Row],[Median]])/25)*30) + AAMC_Raw_Data_for_FY22[[#This Row],[Median]]","v":578076.19999999995},{"$f":"(((AAMC_Raw_Data_for_FY22[[#This Row],[75th]]-AAMC_Raw_Data_for_FY22[[#This Row],[Median]])/25)*35) + AAMC_Raw_Data_for_FY22[[#This Row],[Median]]","v":594624.4},{"$f":"(((AAMC_Raw_Data_for_FY22[[#This Row],[75th]]-AAMC_Raw_Data_for_FY22[[#This Row],[Median]])/25)*40) + AAMC_Raw_Data_for_FY22[[#This Row],[Median]]","v":611172.6}]
[{"$f":"AAMC_Raw_Data_for_FY22[[#This Row],[Source]]&AAMC_Raw_Data_for_FY22[[#This Row],[Type]]&AAMC_Raw_Data_for_FY22[[#This Row],[School Subset]]&AAMC_Raw_Data_for_FY22[[#This Row],[Rank]]&AAMC_Raw_Data_for_FY22[[#This Row],[Degree]]&AAMC_Raw_Data_for_FY22[[#This Row],[Department / Specialty]]&\"L\"","v":"AAMCAcademicAllProfessorMDVascular SurgeryL"},"Vascular Surgery",2,"AAMC","Academic","All","Professor","MD","2021-2022",441304,{"$f":"(((AAMC_Raw_Data_for_FY22[[#This Row],[Median]]-AAMC_Raw_Data_for_FY22[[#This Row],[25th]])/25)*5) + AAMC_Raw_Data_for_FY22[[#This Row],[25th]]","v":462295.2},{"$f":"(((AAMC_Raw_Data_for_FY22[[#This Row],[Median]]-AAMC_Raw_Data_for_FY22[[#This Row],[25th]])/25)*10) + AAMC_Raw_Data_for_FY22[[#This Row],[25th]]","v":483286.4},{"$f":"(((AAMC_Raw_Data_for_FY22[[#This Row],[Median]]-AAMC_Raw_Data_for_FY22[[#This Row],[25th]])/25)*15) + AAMC_Raw_Data_for_FY22[[#This Row],[25th]]","v":504277.6},{"$f":"(((AAMC_Raw_Data_for_FY22[[#This Row],[Median]]-AAMC_Raw_Data_for_FY22[[#This Row],[25th]])/25)*20) + AAMC_Raw_Data_for_FY22[[#This Row],[25th]]","v":525268.80000000005},546260,{"$f":"(((AAMC_Raw_Data_for_FY22[[#This Row],[75th]]-AAMC_Raw_Data_for_FY22[[#This Row],[Median]])/25)*5) + AAMC_Raw_Data_for_FY22[[#This Row],[Median]]","v":572535.4},{"$f":"(((AAMC_Raw_Data_for_FY22[[#This Row],[75th]]-AAMC_Raw_Data_for_FY22[[#This Row],[Median]])/25)*10) + AAMC_Raw_Data_for_FY22[[#This Row],[Median]]","v":598810.80000000005},{"$f":"(((AAMC_Raw_Data_for_FY22[[#This Row],[75th]]-AAMC_Raw_Data_for_FY22[[#This Row],[Median]])/25)*15) + AAMC_Raw_Data_for_FY22[[#This Row],[Median]]","v":625086.19999999995},{"$f":"(((AAMC_Raw_Data_for_FY22[[#This Row],[75th]]-AAMC_Raw_Data_for_FY22[[#This Row],[Median]])/25)*20) + AAMC_Raw_Data_for_FY22[[#This Row],[Median]]","v":651361.6},677637,{"$f":"(((AAMC_Raw_Data_for_FY22[[#This Row],[75th]]-AAMC_Raw_Data_for_FY22[[#This Row],[Median]])/25)*30) + AAMC_Raw_Data_for_FY22[[#This Row],[Median]]","v":703912.4},{"$f":"(((AAMC_Raw_Data_for_FY22[[#This Row],[75th]]-AAMC_Raw_Data_for_FY22[[#This Row],[Median]])/25)*35) + AAMC_Raw_Data_for_FY22[[#This Row],[Median]]","v":730187.8},{"$f":"(((AAMC_Raw_Data_for_FY22[[#This Row],[75th]]-AAMC_Raw_Data_for_FY22[[#This Row],[Median]])/25)*40) + AAMC_Raw_Data_for_FY22[[#This Row],[Median]]","v":756463.2}]
[{"$f":"AAMC_Raw_Data_for_FY22[[#This Row],[Source]]&AAMC_Raw_Data_for_FY22[[#This Row],[Type]]&AAMC_Raw_Data_for_FY22[[#This Row],[School Subset]]&AAMC_Raw_Data_for_FY22[[#This Row],[Rank]]&AAMC_Raw_Data_for_FY22[[#This Row],[Degree]]&AAMC_Raw_Data_for_FY22[[#This Row],[Department / Specialty]]&\"L\"","v":"AAMCAcademicAllChiefMDVascular SurgeryL"},"Vascular Surgery",6,"AAMC","Academic","All","Chief","MD","2021-2022",592187,{"$f":"(((AAMC_Raw_Data_for_FY22[[#This Row],[Median]]-AAMC_Raw_Data_for_FY22[[#This Row],[25th]])/25)*5) + AAMC_Raw_Data_for_FY22[[#This Row],[25th]]","v":613093},{"$f":"(((AAMC_Raw_Data_for_FY22[[#This Row],[Median]]-AAMC_Raw_Data_for_FY22[[#This Row],[25th]])/25)*10) + AAMC_Raw_Data_for_FY22[[#This Row],[25th]]","v":633999},{"$f":"(((AAMC_Raw_Data_for_FY22[[#This Row],[Median]]-AAMC_Raw_Data_for_FY22[[#This Row],[25th]])/25)*15) + AAMC_Raw_Data_for_FY22[[#This Row],[25th]]","v":654905},{"$f":"(((AAMC_Raw_Data_for_FY22[[#This Row],[Median]]-AAMC_Raw_Data_for_FY22[[#This Row],[25th]])/25)*20) + AAMC_Raw_Data_for_FY22[[#This Row],[25th]]","v":675811},696717,{"$f":"(((AAMC_Raw_Data_for_FY22[[#This Row],[75th]]-AAMC_Raw_Data_for_FY22[[#This Row],[Median]])/25)*5) + AAMC_Raw_Data_for_FY22[[#This Row],[Median]]","v":715886.4},{"$f":"(((AAMC_Raw_Data_for_FY22[[#This Row],[75th]]-AAMC_Raw_Data_for_FY22[[#This Row],[Median]])/25)*10) + AAMC_Raw_Data_for_FY22[[#This Row],[Median]]","v":735055.8},{"$f":"(((AAMC_Raw_Data_for_FY22[[#This Row],[75th]]-AAMC_Raw_Data_for_FY22[[#This Row],[Median]])/25)*15) + AAMC_Raw_Data_for_FY22[[#This Row],[Median]]","v":754225.2},{"$f":"(((AAMC_Raw_Data_for_FY22[[#This Row],[75th]]-AAMC_Raw_Data_for_FY22[[#This Row],[Median]])/25)*20) + AAMC_Raw_Data_for_FY22[[#This Row],[Median]]","v":773394.6},792564,{"$f":"(((AAMC_Raw_Data_for_FY22[[#This Row],[75th]]-AAMC_Raw_Data_for_FY22[[#This Row],[Median]])/25)*30) + AAMC_Raw_Data_for_FY22[[#This Row],[Median]]","v":811733.4},{"$f":"(((AAMC_Raw_Data_for_FY22[[#This Row],[75th]]-AAMC_Raw_Data_for_FY22[[#This Row],[Median]])/25)*35) + AAMC_Raw_Data_for_FY22[[#This Row],[Median]]","v":830902.8},{"$f":"(((AAMC_Raw_Data_for_FY22[[#This Row],[75th]]-AAMC_Raw_Data_for_FY22[[#This Row],[Median]])/25)*40) + AAMC_Raw_Data_for_FY22[[#This Row],[Median]]","v":850072.2}]
[{"$f":"AAMC_Raw_Data_for_FY22[[#This Row],[Source]]&AAMC_Raw_Data_for_FY22[[#This Row],[Type]]&AAMC_Raw_Data_for_FY22[[#This Row],[School Subset]]&AAMC_Raw_Data_for_FY22[[#This Row],[Rank]]&AAMC_Raw_Data_for_FY22[[#This Row],[Degree]]&AAMC_Raw_Data_for_FY22[[#This Row],[Department / Specialty]]&\"L\"","v":"AAMCAcademicAllChairMDVascular SurgeryL"},"Vascular Surgery",1,"AAMC","Academic","All","Chair","MD","2021-2022",741358,{"$f":"(((AAMC_Raw_Data_for_FY22[[#This Row],[Median]]-AAMC_Raw_Data_for_FY22[[#This Row],[25th]])/25)*5) + AAMC_Raw_Data_for_FY22[[#This Row],[25th]]","v":776786.4},{"$f":"(((AAMC_Raw_Data_for_FY22[[#This Row],[Median]]-AAMC_Raw_Data_for_FY22[[#This Row],[25th]])/25)*10) + AAMC_Raw_Data_for_FY22[[#This Row],[25th]]","v":812214.8},{"$f":"(((AAMC_Raw_Data_for_FY22[[#This Row],[Median]]-AAMC_Raw_Data_for_FY22[[#This Row],[25th]])/25)*15) + AAMC_Raw_Data_for_FY22[[#This Row],[25th]]","v":847643.2},{"$f":"(((AAMC_Raw_Data_for_FY22[[#This Row],[Median]]-AAMC_Raw_Data_for_FY22[[#This Row],[25th]])/25)*20) + AAMC_Raw_Data_for_FY22[[#This Row],[25th]]","v":883071.6},918500,{"$f":"(((AAMC_Raw_Data_for_FY22[[#This Row],[75th]]-AAMC_Raw_Data_for_FY22[[#This Row],[Median]])/25)*5) + AAMC_Raw_Data_for_FY22[[#This Row],[Median]]","v":947058},{"$f":"(((AAMC_Raw_Data_for_FY22[[#This Row],[75th]]-AAMC_Raw_Data_for_FY22[[#This Row],[Median]])/25)*10) + AAMC_Raw_Data_for_FY22[[#This Row],[Median]]","v":975616},{"$f":"(((AAMC_Raw_Data_for_FY22[[#This Row],[75th]]-AAMC_Raw_Data_for_FY22[[#This Row],[Median]])/25)*15) + AAMC_Raw_Data_for_FY22[[#This Row],[Median]]","v":1004174},{"$f":"(((AAMC_Raw_Data_for_FY22[[#This Row],[75th]]-AAMC_Raw_Data_for_FY22[[#This Row],[Median]])/25)*20) + AAMC_Raw_Data_for_FY22[[#This Row],[Median]]","v":1032732},1061290,{"$f":"(((AAMC_Raw_Data_for_FY22[[#This Row],[75th]]-AAMC_Raw_Data_for_FY22[[#This Row],[Median]])/25)*30) + AAMC_Raw_Data_for_FY22[[#This Row],[Median]]","v":1089848},{"$f":"(((AAMC_Raw_Data_for_FY22[[#This Row],[75th]]-AAMC_Raw_Data_for_FY22[[#This Row],[Median]])/25)*35) + AAMC_Raw_Data_for_FY22[[#This Row],[Median]]","v":1118406},{"$f":"(((AAMC_Raw_Data_for_FY22[[#This Row],[75th]]-AAMC_Raw_Data_for_FY22[[#This Row],[Median]])/25)*40) + AAMC_Raw_Data_for_FY22[[#This Row],[Median]]","v":1146964}]
[{"$f":"AAMC_Raw_Data_for_FY22[[#This Row],[Source]]&AAMC_Raw_Data_for_FY22[[#This Row],[Type]]&AAMC_Raw_Data_for_FY22[[#This Row],[School Subset]]&AAMC_Raw_Data_for_FY22[[#This Row],[Rank]]&AAMC_Raw_Data_for_FY22[[#This Row],[Degree]]&AAMC_Raw_Data_for_FY22[[#This Row],[Department / Specialty]]&\"L\"","v":"AAMCAcademicAllInstructorMDOther SurgeryL"},"Other Surgery",5,"AAMC","Academic","All","Instructor","MD","2021-2022",99408,{"$f":"(((AAMC_Raw_Data_for_FY22[[#This Row],[Median]]-AAMC_Raw_Data_for_FY22[[#This Row],[25th]])/25)*5) + AAMC_Raw_Data_for_FY22[[#This Row],[25th]]","v":131343.20000000001},{"$f":"(((AAMC_Raw_Data_for_FY22[[#This Row],[Median]]-AAMC_Raw_Data_for_FY22[[#This Row],[25th]])/25)*10) + AAMC_Raw_Data_for_FY22[[#This Row],[25th]]","v":163278.39999999999},{"$f":"(((AAMC_Raw_Data_for_FY22[[#This Row],[Median]]-AAMC_Raw_Data_for_FY22[[#This Row],[25th]])/25)*15) + AAMC_Raw_Data_for_FY22[[#This Row],[25th]]","v":195213.6},{"$f":"(((AAMC_Raw_Data_for_FY22[[#This Row],[Median]]-AAMC_Raw_Data_for_FY22[[#This Row],[25th]])/25)*20) + AAMC_Raw_Data_for_FY22[[#This Row],[25th]]","v":227148.79999999999},259084,{"$f":"(((AAMC_Raw_Data_for_FY22[[#This Row],[75th]]-AAMC_Raw_Data_for_FY22[[#This Row],[Median]])/25)*5) + AAMC_Raw_Data_for_FY22[[#This Row],[Median]]","v":274975.40000000002},{"$f":"(((AAMC_Raw_Data_for_FY22[[#This Row],[75th]]-AAMC_Raw_Data_for_FY22[[#This Row],[Median]])/25)*10) + AAMC_Raw_Data_for_FY22[[#This Row],[Median]]","v":290866.8},{"$f":"(((AAMC_Raw_Data_for_FY22[[#This Row],[75th]]-AAMC_Raw_Data_for_FY22[[#This Row],[Median]])/25)*15) + AAMC_Raw_Data_for_FY22[[#This Row],[Median]]","v":306758.2},{"$f":"(((AAMC_Raw_Data_for_FY22[[#This Row],[75th]]-AAMC_Raw_Data_for_FY22[[#This Row],[Median]])/25)*20) + AAMC_Raw_Data_for_FY22[[#This Row],[Median]]","v":322649.59999999998},338541,{"$f":"(((AAMC_Raw_Data_for_FY22[[#This Row],[75th]]-AAMC_Raw_Data_for_FY22[[#This Row],[Median]])/25)*30) + AAMC_Raw_Data_for_FY22[[#This Row],[Median]]","v":354432.4},{"$f":"(((AAMC_Raw_Data_for_FY22[[#This Row],[75th]]-AAMC_Raw_Data_for_FY22[[#This Row],[Median]])/25)*35) + AAMC_Raw_Data_for_FY22[[#This Row],[Median]]","v":370323.8},{"$f":"(((AAMC_Raw_Data_for_FY22[[#This Row],[75th]]-AAMC_Raw_Data_for_FY22[[#This Row],[Median]])/25)*40) + AAMC_Raw_Data_for_FY22[[#This Row],[Median]]","v":386215.2}]
[{"$f":"AAMC_Raw_Data_for_FY22[[#This Row],[Source]]&AAMC_Raw_Data_for_FY22[[#This Row],[Type]]&AAMC_Raw_Data_for_FY22[[#This Row],[School Subset]]&AAMC_Raw_Data_for_FY22[[#This Row],[Rank]]&AAMC_Raw_Data_for_FY22[[#This Row],[Degree]]&AAMC_Raw_Data_for_FY22[[#This Row],[Department / Specialty]]&\"L\"","v":"AAMCAcademicAllAssistantMDOther SurgeryL"},"Other Surgery",4,"AAMC","Academic","All","Assistant","MD","2021-2022",274827,{"$f":"(((AAMC_Raw_Data_for_FY22[[#This Row],[Median]]-AAMC_Raw_Data_for_FY22[[#This Row],[25th]])/25)*5) + AAMC_Raw_Data_for_FY22[[#This Row],[25th]]","v":288647.2},{"$f":"(((AAMC_Raw_Data_for_FY22[[#This Row],[Median]]-AAMC_Raw_Data_for_FY22[[#This Row],[25th]])/25)*10) + AAMC_Raw_Data_for_FY22[[#This Row],[25th]]","v":302467.40000000002},{"$f":"(((AAMC_Raw_Data_for_FY22[[#This Row],[Median]]-AAMC_Raw_Data_for_FY22[[#This Row],[25th]])/25)*15) + AAMC_Raw_Data_for_FY22[[#This Row],[25th]]","v":316287.59999999998},{"$f":"(((AAMC_Raw_Data_for_FY22[[#This Row],[Median]]-AAMC_Raw_Data_for_FY22[[#This Row],[25th]])/25)*20) + AAMC_Raw_Data_for_FY22[[#This Row],[25th]]","v":330107.8},343928,{"$f":"(((AAMC_Raw_Data_for_FY22[[#This Row],[75th]]-AAMC_Raw_Data_for_FY22[[#This Row],[Median]])/25)*5) + AAMC_Raw_Data_for_FY22[[#This Row],[Median]]","v":364697.4},{"$f":"(((AAMC_Raw_Data_for_FY22[[#This Row],[75th]]-AAMC_Raw_Data_for_FY22[[#This Row],[Median]])/25)*10) + AAMC_Raw_Data_for_FY22[[#This Row],[Median]]","v":385466.8},{"$f":"(((AAMC_Raw_Data_for_FY22[[#This Row],[75th]]-AAMC_Raw_Data_for_FY22[[#This Row],[Median]])/25)*15) + AAMC_Raw_Data_for_FY22[[#This Row],[Median]]","v":406236.2},{"$f":"(((AAMC_Raw_Data_for_FY22[[#This Row],[75th]]-AAMC_Raw_Data_for_FY22[[#This Row],[Median]])/25)*20) + AAMC_Raw_Data_for_FY22[[#This Row],[Median]]","v":427005.6},447775,{"$f":"(((AAMC_Raw_Data_for_FY22[[#This Row],[75th]]-AAMC_Raw_Data_for_FY22[[#This Row],[Median]])/25)*30) + AAMC_Raw_Data_for_FY22[[#This Row],[Median]]","v":468544.4},{"$f":"(((AAMC_Raw_Data_for_FY22[[#This Row],[75th]]-AAMC_Raw_Data_for_FY22[[#This Row],[Median]])/25)*35) + AAMC_Raw_Data_for_FY22[[#This Row],[Median]]","v":489313.80000000005},{"$f":"(((AAMC_Raw_Data_for_FY22[[#This Row],[75th]]-AAMC_Raw_Data_for_FY22[[#This Row],[Median]])/25)*40) + AAMC_Raw_Data_for_FY22[[#This Row],[Median]]","v":510083.2}]
[{"$f":"AAMC_Raw_Data_for_FY22[[#This Row],[Source]]&AAMC_Raw_Data_for_FY22[[#This Row],[Type]]&AAMC_Raw_Data_for_FY22[[#This Row],[School Subset]]&AAMC_Raw_Data_for_FY22[[#This Row],[Rank]]&AAMC_Raw_Data_for_FY22[[#This Row],[Degree]]&AAMC_Raw_Data_for_FY22[[#This Row],[Department / Specialty]]&\"L\"","v":"AAMCAcademicAllAssociateMDOther SurgeryL"},"Other Surgery",3,"AAMC","Academic","All","Associate","MD","2021-2022",357369,{"$f":"(((AAMC_Raw_Data_for_FY22[[#This Row],[Median]]-AAMC_Raw_Data_for_FY22[[#This Row],[25th]])/25)*5) + AAMC_Raw_Data_for_FY22[[#This Row],[25th]]","v":374045.2},{"$f":"(((AAMC_Raw_Data_for_FY22[[#This Row],[Median]]-AAMC_Raw_Data_for_FY22[[#This Row],[25th]])/25)*10) + AAMC_Raw_Data_for_FY22[[#This Row],[25th]]","v":390721.4},{"$f":"(((AAMC_Raw_Data_for_FY22[[#This Row],[Median]]-AAMC_Raw_Data_for_FY22[[#This Row],[25th]])/25)*15) + AAMC_Raw_Data_for_FY22[[#This Row],[25th]]","v":407397.6},{"$f":"(((AAMC_Raw_Data_for_FY22[[#This Row],[Median]]-AAMC_Raw_Data_for_FY22[[#This Row],[25th]])/25)*20) + AAMC_Raw_Data_for_FY22[[#This Row],[25th]]","v":424073.8},440750,{"$f":"(((AAMC_Raw_Data_for_FY22[[#This Row],[75th]]-AAMC_Raw_Data_for_FY22[[#This Row],[Median]])/25)*5) + AAMC_Raw_Data_for_FY22[[#This Row],[Median]]","v":454866},{"$f":"(((AAMC_Raw_Data_for_FY22[[#This Row],[75th]]-AAMC_Raw_Data_for_FY22[[#This Row],[Median]])/25)*10) + AAMC_Raw_Data_for_FY22[[#This Row],[Median]]","v":468982},{"$f":"(((AAMC_Raw_Data_for_FY22[[#This Row],[75th]]-AAMC_Raw_Data_for_FY22[[#This Row],[Median]])/25)*15) + AAMC_Raw_Data_for_FY22[[#This Row],[Median]]","v":483098},{"$f":"(((AAMC_Raw_Data_for_FY22[[#This Row],[75th]]-AAMC_Raw_Data_for_FY22[[#This Row],[Median]])/25)*20) + AAMC_Raw_Data_for_FY22[[#This Row],[Median]]","v":497214},511330,{"$f":"(((AAMC_Raw_Data_for_FY22[[#This Row],[75th]]-AAMC_Raw_Data_for_FY22[[#This Row],[Median]])/25)*30) + AAMC_Raw_Data_for_FY22[[#This Row],[Median]]","v":525446},{"$f":"(((AAMC_Raw_Data_for_FY22[[#This Row],[75th]]-AAMC_Raw_Data_for_FY22[[#This Row],[Median]])/25)*35) + AAMC_Raw_Data_for_FY22[[#This Row],[Median]]","v":539562},{"$f":"(((AAMC_Raw_Data_for_FY22[[#This Row],[75th]]-AAMC_Raw_Data_for_FY22[[#This Row],[Median]])/25)*40) + AAMC_Raw_Data_for_FY22[[#This Row],[Median]]","v":553678}]
[{"$f":"AAMC_Raw_Data_for_FY22[[#This Row],[Source]]&AAMC_Raw_Data_for_FY22[[#This Row],[Type]]&AAMC_Raw_Data_for_FY22[[#This Row],[School Subset]]&AAMC_Raw_Data_for_FY22[[#This Row],[Rank]]&AAMC_Raw_Data_for_FY22[[#This Row],[Degree]]&AAMC_Raw_Data_for_FY22[[#This Row],[Department / Specialty]]&\"L\"","v":"AAMCAcademicAllProfessorMDOther SurgeryL"},"Other Surgery",2,"AAMC","Academic","All","Professor","MD","2021-2022",274479,{"$f":"(((AAMC_Raw_Data_for_FY22[[#This Row],[Median]]-AAMC_Raw_Data_for_FY22[[#This Row],[25th]])/25)*5) + AAMC_Raw_Data_for_FY22[[#This Row],[25th]]","v":308568.8},{"$f":"(((AAMC_Raw_Data_for_FY22[[#This Row],[Median]]-AAMC_Raw_Data_for_FY22[[#This Row],[25th]])/25)*10) + AAMC_Raw_Data_for_FY22[[#This Row],[25th]]","v":342658.6},{"$f":"(((AAMC_Raw_Data_for_FY22[[#This Row],[Median]]-AAMC_Raw_Data_for_FY22[[#This Row],[25th]])/25)*15) + AAMC_Raw_Data_for_FY22[[#This Row],[25th]]","v":376748.4},{"$f":"(((AAMC_Raw_Data_for_FY22[[#This Row],[Median]]-AAMC_Raw_Data_for_FY22[[#This Row],[25th]])/25)*20) + AAMC_Raw_Data_for_FY22[[#This Row],[25th]]","v":410838.2},444928,{"$f":"(((AAMC_Raw_Data_for_FY22[[#This Row],[75th]]-AAMC_Raw_Data_for_FY22[[#This Row],[Median]])/25)*5) + AAMC_Raw_Data_for_FY22[[#This Row],[Median]]","v":486205},{"$f":"(((AAMC_Raw_Data_for_FY22[[#This Row],[75th]]-AAMC_Raw_Data_for_FY22[[#This Row],[Median]])/25)*10) + AAMC_Raw_Data_for_FY22[[#This Row],[Median]]","v":527482},{"$f":"(((AAMC_Raw_Data_for_FY22[[#This Row],[75th]]-AAMC_Raw_Data_for_FY22[[#This Row],[Median]])/25)*15) + AAMC_Raw_Data_for_FY22[[#This Row],[Median]]","v":568759},{"$f":"(((AAMC_Raw_Data_for_FY22[[#This Row],[75th]]-AAMC_Raw_Data_for_FY22[[#This Row],[Median]])/25)*20) + AAMC_Raw_Data_for_FY22[[#This Row],[Median]]","v":610036},651313,{"$f":"(((AAMC_Raw_Data_for_FY22[[#This Row],[75th]]-AAMC_Raw_Data_for_FY22[[#This Row],[Median]])/25)*30) + AAMC_Raw_Data_for_FY22[[#This Row],[Median]]","v":692590},{"$f":"(((AAMC_Raw_Data_for_FY22[[#This Row],[75th]]-AAMC_Raw_Data_for_FY22[[#This Row],[Median]])/25)*35) + AAMC_Raw_Data_for_FY22[[#This Row],[Median]]","v":733867},{"$f":"(((AAMC_Raw_Data_for_FY22[[#This Row],[75th]]-AAMC_Raw_Data_for_FY22[[#This Row],[Median]])/25)*40) + AAMC_Raw_Data_for_FY22[[#This Row],[Median]]","v":775144}]
[{"$f":"AAMC_Raw_Data_for_FY22[[#This Row],[Source]]&AAMC_Raw_Data_for_FY22[[#This Row],[Type]]&AAMC_Raw_Data_for_FY22[[#This Row],[School Subset]]&AAMC_Raw_Data_for_FY22[[#This Row],[Rank]]&AAMC_Raw_Data_for_FY22[[#This Row],[Degree]]&AAMC_Raw_Data_for_FY22[[#This Row],[Department / Specialty]]&\"L\"","v":"AAMCAcademicAllChiefMDOther SurgeryL"},"Other Surgery",6,"AAMC","Academic","All","Chief","MD","2021-2022",530130,{"$f":"(((AAMC_Raw_Data_for_FY22[[#This Row],[Median]]-AAMC_Raw_Data_for_FY22[[#This Row],[25th]])/25)*5) + AAMC_Raw_Data_for_FY22[[#This Row],[25th]]","v":546340.19999999995},{"$f":"(((AAMC_Raw_Data_for_FY22[[#This Row],[Median]]-AAMC_Raw_Data_for_FY22[[#This Row],[25th]])/25)*10) + AAMC_Raw_Data_for_FY22[[#This Row],[25th]]","v":562550.4},{"$f":"(((AAMC_Raw_Data_for_FY22[[#This Row],[Median]]-AAMC_Raw_Data_for_FY22[[#This Row],[25th]])/25)*15) + AAMC_Raw_Data_for_FY22[[#This Row],[25th]]","v":578760.6},{"$f":"(((AAMC_Raw_Data_for_FY22[[#This Row],[Median]]-AAMC_Raw_Data_for_FY22[[#This Row],[25th]])/25)*20) + AAMC_Raw_Data_for_FY22[[#This Row],[25th]]","v":594970.80000000005},611181,{"$f":"(((AAMC_Raw_Data_for_FY22[[#This Row],[75th]]-AAMC_Raw_Data_for_FY22[[#This Row],[Median]])/25)*5) + AAMC_Raw_Data_for_FY22[[#This Row],[Median]]","v":644769.80000000005},{"$f":"(((AAMC_Raw_Data_for_FY22[[#This Row],[75th]]-AAMC_Raw_Data_for_FY22[[#This Row],[Median]])/25)*10) + AAMC_Raw_Data_for_FY22[[#This Row],[Median]]","v":678358.6},{"$f":"(((AAMC_Raw_Data_for_FY22[[#This Row],[75th]]-AAMC_Raw_Data_for_FY22[[#This Row],[Median]])/25)*15) + AAMC_Raw_Data_for_FY22[[#This Row],[Median]]","v":711947.4},{"$f":"(((AAMC_Raw_Data_for_FY22[[#This Row],[75th]]-AAMC_Raw_Data_for_FY22[[#This Row],[Median]])/25)*20) + AAMC_Raw_Data_for_FY22[[#This Row],[Median]]","v":745536.2},779125,{"$f":"(((AAMC_Raw_Data_for_FY22[[#This Row],[75th]]-AAMC_Raw_Data_for_FY22[[#This Row],[Median]])/25)*30) + AAMC_Raw_Data_for_FY22[[#This Row],[Median]]","v":812713.8},{"$f":"(((AAMC_Raw_Data_for_FY22[[#This Row],[75th]]-AAMC_Raw_Data_for_FY22[[#This Row],[Median]])/25)*35) + AAMC_Raw_Data_for_FY22[[#This Row],[Median]]","v":846302.6},{"$f":"(((AAMC_Raw_Data_for_FY22[[#This Row],[75th]]-AAMC_Raw_Data_for_FY22[[#This Row],[Median]])/25)*40) + AAMC_Raw_Data_for_FY22[[#This Row],[Median]]","v":879891.4}]
[{"$f":"AAMC_Raw_Data_for_FY22[[#This Row],[Source]]&AAMC_Raw_Data_for_FY22[[#This Row],[Type]]&AAMC_Raw_Data_for_FY22[[#This Row],[School Subset]]&AAMC_Raw_Data_for_FY22[[#This Row],[Rank]]&AAMC_Raw_Data_for_FY22[[#This Row],[Degree]]&AAMC_Raw_Data_for_FY22[[#This Row],[Department / Specialty]]&\"L\"","v":"AAMCAcademicAllChairMDOther SurgeryL"},"Other Surgery",1,"AAMC","Academic","All","Chair","MD","2021-2022",753300,{"$f":"(((AAMC_Raw_Data_for_FY22[[#This Row],[Median]]-AAMC_Raw_Data_for_FY22[[#This Row],[25th]])/25)*5) + AAMC_Raw_Data_for_FY22[[#This Row],[25th]]","v":764441},{"$f":"(((AAMC_Raw_Data_for_FY22[[#This Row],[Median]]-AAMC_Raw_Data_for_FY22[[#This Row],[25th]])/25)*10) + AAMC_Raw_Data_for_FY22[[#This Row],[25th]]","v":775582},{"$f":"(((AAMC_Raw_Data_for_FY22[[#This Row],[Median]]-AAMC_Raw_Data_for_FY22[[#This Row],[25th]])/25)*15) + AAMC_Raw_Data_for_FY22[[#This Row],[25th]]","v":786723},{"$f":"(((AAMC_Raw_Data_for_FY22[[#This Row],[Median]]-AAMC_Raw_Data_for_FY22[[#This Row],[25th]])/25)*20) + AAMC_Raw_Data_for_FY22[[#This Row],[25th]]","v":797864},809005,{"$f":"(((AAMC_Raw_Data_for_FY22[[#This Row],[75th]]-AAMC_Raw_Data_for_FY22[[#This Row],[Median]])/25)*5) + AAMC_Raw_Data_for_FY22[[#This Row],[Median]]","v":843409.6},{"$f":"(((AAMC_Raw_Data_for_FY22[[#This Row],[75th]]-AAMC_Raw_Data_for_FY22[[#This Row],[Median]])/25)*10) + AAMC_Raw_Data_for_FY22[[#This Row],[Median]]","v":877814.2},{"$f":"(((AAMC_Raw_Data_for_FY22[[#This Row],[75th]]-AAMC_Raw_Data_for_FY22[[#This Row],[Median]])/25)*15) + AAMC_Raw_Data_for_FY22[[#This Row],[Median]]","v":912218.8},{"$f":"(((AAMC_Raw_Data_for_FY22[[#This Row],[75th]]-AAMC_Raw_Data_for_FY22[[#This Row],[Median]])/25)*20) + AAMC_Raw_Data_for_FY22[[#This Row],[Median]]","v":946623.4},981028,{"$f":"(((AAMC_Raw_Data_for_FY22[[#This Row],[75th]]-AAMC_Raw_Data_for_FY22[[#This Row],[Median]])/25)*30) + AAMC_Raw_Data_for_FY22[[#This Row],[Median]]","v":1015432.6},{"$f":"(((AAMC_Raw_Data_for_FY22[[#This Row],[75th]]-AAMC_Raw_Data_for_FY22[[#This Row],[Median]])/25)*35) + AAMC_Raw_Data_for_FY22[[#This Row],[Median]]","v":1049837.2},{"$f":"(((AAMC_Raw_Data_for_FY22[[#This Row],[75th]]-AAMC_Raw_Data_for_FY22[[#This Row],[Median]])/25)*40) + AAMC_Raw_Data_for_FY22[[#This Row],[Median]]","v":1084241.8}]
[{"$f":"AAMC_Raw_Data_for_FY22[[#This Row],[Source]]&AAMC_Raw_Data_for_FY22[[#This Row],[Type]]&AAMC_Raw_Data_for_FY22[[#This Row],[School Subset]]&AAMC_Raw_Data_for_FY22[[#This Row],[Rank]]&AAMC_Raw_Data_for_FY22[[#This Row],[Degree]]&AAMC_Raw_Data_for_FY22[[#This Row],[Department / Specialty]]&\"L\"","v":"AAMCAcademicAllInstructorMDOther Clinical Science TotalL"},"Other Clinical Science Total",5,"AAMC","Academic","All","Instructor","MD","2021-2022",103177,{"$f":"(((AAMC_Raw_Data_for_FY22[[#This Row],[Median]]-AAMC_Raw_Data_for_FY22[[#This Row],[25th]])/25)*5) + AAMC_Raw_Data_for_FY22[[#This Row],[25th]]","v":122174.6},{"$f":"(((AAMC_Raw_Data_for_FY22[[#This Row],[Median]]-AAMC_Raw_Data_for_FY22[[#This Row],[25th]])/25)*10) + AAMC_Raw_Data_for_FY22[[#This Row],[25th]]","v":141172.20000000001},{"$f":"(((AAMC_Raw_Data_for_FY22[[#This Row],[Median]]-AAMC_Raw_Data_for_FY22[[#This Row],[25th]])/25)*15) + AAMC_Raw_Data_for_FY22[[#This Row],[25th]]","v":160169.79999999999},{"$f":"(((AAMC_Raw_Data_for_FY22[[#This Row],[Median]]-AAMC_Raw_Data_for_FY22[[#This Row],[25th]])/25)*20) + AAMC_Raw_Data_for_FY22[[#This Row],[25th]]","v":179167.4},198165,{"$f":"(((AAMC_Raw_Data_for_FY22[[#This Row],[75th]]-AAMC_Raw_Data_for_FY22[[#This Row],[Median]])/25)*5) + AAMC_Raw_Data_for_FY22[[#This Row],[Median]]","v":218870},{"$f":"(((AAMC_Raw_Data_for_FY22[[#This Row],[75th]]-AAMC_Raw_Data_for_FY22[[#This Row],[Median]])/25)*10) + AAMC_Raw_Data_for_FY22[[#This Row],[Median]]","v":239575},{"$f":"(((AAMC_Raw_Data_for_FY22[[#This Row],[75th]]-AAMC_Raw_Data_for_FY22[[#This Row],[Median]])/25)*15) + AAMC_Raw_Data_for_FY22[[#This Row],[Median]]","v":260280},{"$f":"(((AAMC_Raw_Data_for_FY22[[#This Row],[75th]]-AAMC_Raw_Data_for_FY22[[#This Row],[Median]])/25)*20) + AAMC_Raw_Data_for_FY22[[#This Row],[Median]]","v":280985},301690,{"$f":"(((AAMC_Raw_Data_for_FY22[[#This Row],[75th]]-AAMC_Raw_Data_for_FY22[[#This Row],[Median]])/25)*30) + AAMC_Raw_Data_for_FY22[[#This Row],[Median]]","v":322395},{"$f":"(((AAMC_Raw_Data_for_FY22[[#This Row],[75th]]-AAMC_Raw_Data_for_FY22[[#This Row],[Median]])/25)*35) + AAMC_Raw_Data_for_FY22[[#This Row],[Median]]","v":343100},{"$f":"(((AAMC_Raw_Data_for_FY22[[#This Row],[75th]]-AAMC_Raw_Data_for_FY22[[#This Row],[Median]])/25)*40) + AAMC_Raw_Data_for_FY22[[#This Row],[Median]]","v":363805}]
[{"$f":"AAMC_Raw_Data_for_FY22[[#This Row],[Source]]&AAMC_Raw_Data_for_FY22[[#This Row],[Type]]&AAMC_Raw_Data_for_FY22[[#This Row],[School Subset]]&AAMC_Raw_Data_for_FY22[[#This Row],[Rank]]&AAMC_Raw_Data_for_FY22[[#This Row],[Degree]]&AAMC_Raw_Data_for_FY22[[#This Row],[Department / Specialty]]&\"L\"","v":"AAMCAcademicAllAssistantMDOther Clinical Science TotalL"},"Other Clinical Science Total",4,"AAMC","Academic","All","Assistant","MD","2021-2022",233204,{"$f":"(((AAMC_Raw_Data_for_FY22[[#This Row],[Median]]-AAMC_Raw_Data_for_FY22[[#This Row],[25th]])/25)*5) + AAMC_Raw_Data_for_FY22[[#This Row],[25th]]","v":244375.2},{"$f":"(((AAMC_Raw_Data_for_FY22[[#This Row],[Median]]-AAMC_Raw_Data_for_FY22[[#This Row],[25th]])/25)*10) + AAMC_Raw_Data_for_FY22[[#This Row],[25th]]","v":255546.4},{"$f":"(((AAMC_Raw_Data_for_FY22[[#This Row],[Median]]-AAMC_Raw_Data_for_FY22[[#This Row],[25th]])/25)*15) + AAMC_Raw_Data_for_FY22[[#This Row],[25th]]","v":266717.59999999998},{"$f":"(((AAMC_Raw_Data_for_FY22[[#This Row],[Median]]-AAMC_Raw_Data_for_FY22[[#This Row],[25th]])/25)*20) + AAMC_Raw_Data_for_FY22[[#This Row],[25th]]","v":277888.8},289060,{"$f":"(((AAMC_Raw_Data_for_FY22[[#This Row],[75th]]-AAMC_Raw_Data_for_FY22[[#This Row],[Median]])/25)*5) + AAMC_Raw_Data_for_FY22[[#This Row],[Median]]","v":299120.40000000002},{"$f":"(((AAMC_Raw_Data_for_FY22[[#This Row],[75th]]-AAMC_Raw_Data_for_FY22[[#This Row],[Median]])/25)*10) + AAMC_Raw_Data_for_FY22[[#This Row],[Median]]","v":309180.79999999999},{"$f":"(((AAMC_Raw_Data_for_FY22[[#This Row],[75th]]-AAMC_Raw_Data_for_FY22[[#This Row],[Median]])/25)*15) + AAMC_Raw_Data_for_FY22[[#This Row],[Median]]","v":319241.2},{"$f":"(((AAMC_Raw_Data_for_FY22[[#This Row],[75th]]-AAMC_Raw_Data_for_FY22[[#This Row],[Median]])/25)*20) + AAMC_Raw_Data_for_FY22[[#This Row],[Median]]","v":329301.59999999998},339362,{"$f":"(((AAMC_Raw_Data_for_FY22[[#This Row],[75th]]-AAMC_Raw_Data_for_FY22[[#This Row],[Median]])/25)*30) + AAMC_Raw_Data_for_FY22[[#This Row],[Median]]","v":349422.4},{"$f":"(((AAMC_Raw_Data_for_FY22[[#This Row],[75th]]-AAMC_Raw_Data_for_FY22[[#This Row],[Median]])/25)*35) + AAMC_Raw_Data_for_FY22[[#This Row],[Median]]","v":359482.8},{"$f":"(((AAMC_Raw_Data_for_FY22[[#This Row],[75th]]-AAMC_Raw_Data_for_FY22[[#This Row],[Median]])/25)*40) + AAMC_Raw_Data_for_FY22[[#This Row],[Median]]","v":369543.2}]
[{"$f":"AAMC_Raw_Data_for_FY22[[#This Row],[Source]]&AAMC_Raw_Data_for_FY22[[#This Row],[Type]]&AAMC_Raw_Data_for_FY22[[#This Row],[School Subset]]&AAMC_Raw_Data_for_FY22[[#This Row],[Rank]]&AAMC_Raw_Data_for_FY22[[#This Row],[Degree]]&AAMC_Raw_Data_for_FY22[[#This Row],[Department / Specialty]]&\"L\"","v":"AAMCAcademicAllAssociateMDOther Clinical Science TotalL"},"Other Clinical Science Total",3,"AAMC","Academic","All","Associate","MD","2021-2022",265120,{"$f":"(((AAMC_Raw_Data_for_FY22[[#This Row],[Median]]-AAMC_Raw_Data_for_FY22[[#This Row],[25th]])/25)*5) + AAMC_Raw_Data_for_FY22[[#This Row],[25th]]","v":277316.40000000002},{"$f":"(((AAMC_Raw_Data_for_FY22[[#This Row],[Median]]-AAMC_Raw_Data_for_FY22[[#This Row],[25th]])/25)*10) + AAMC_Raw_Data_for_FY22[[#This Row],[25th]]","v":289512.8},{"$f":"(((AAMC_Raw_Data_for_FY22[[#This Row],[Median]]-AAMC_Raw_Data_for_FY22[[#This Row],[25th]])/25)*15) + AAMC_Raw_Data_for_FY22[[#This Row],[25th]]","v":301709.2},{"$f":"(((AAMC_Raw_Data_for_FY22[[#This Row],[Median]]-AAMC_Raw_Data_for_FY22[[#This Row],[25th]])/25)*20) + AAMC_Raw_Data_for_FY22[[#This Row],[25th]]","v":313905.59999999998},326102,{"$f":"(((AAMC_Raw_Data_for_FY22[[#This Row],[75th]]-AAMC_Raw_Data_for_FY22[[#This Row],[Median]])/25)*5) + AAMC_Raw_Data_for_FY22[[#This Row],[Median]]","v":340881.6},{"$f":"(((AAMC_Raw_Data_for_FY22[[#This Row],[75th]]-AAMC_Raw_Data_for_FY22[[#This Row],[Median]])/25)*10) + AAMC_Raw_Data_for_FY22[[#This Row],[Median]]","v":355661.2},{"$f":"(((AAMC_Raw_Data_for_FY22[[#This Row],[75th]]-AAMC_Raw_Data_for_FY22[[#This Row],[Median]])/25)*15) + AAMC_Raw_Data_for_FY22[[#This Row],[Median]]","v":370440.8},{"$f":"(((AAMC_Raw_Data_for_FY22[[#This Row],[75th]]-AAMC_Raw_Data_for_FY22[[#This Row],[Median]])/25)*20) + AAMC_Raw_Data_for_FY22[[#This Row],[Median]]","v":385220.4},400000,{"$f":"(((AAMC_Raw_Data_for_FY22[[#This Row],[75th]]-AAMC_Raw_Data_for_FY22[[#This Row],[Median]])/25)*30) + AAMC_Raw_Data_for_FY22[[#This Row],[Median]]","v":414779.6},{"$f":"(((AAMC_Raw_Data_for_FY22[[#This Row],[75th]]-AAMC_Raw_Data_for_FY22[[#This Row],[Median]])/25)*35) + AAMC_Raw_Data_for_FY22[[#This Row],[Median]]","v":429559.2},{"$f":"(((AAMC_Raw_Data_for_FY22[[#This Row],[75th]]-AAMC_Raw_Data_for_FY22[[#This Row],[Median]])/25)*40) + AAMC_Raw_Data_for_FY22[[#This Row],[Median]]","v":444338.8}]
[{"$f":"AAMC_Raw_Data_for_FY22[[#This Row],[Source]]&AAMC_Raw_Data_for_FY22[[#This Row],[Type]]&AAMC_Raw_Data_for_FY22[[#This Row],[School Subset]]&AAMC_Raw_Data_for_FY22[[#This Row],[Rank]]&AAMC_Raw_Data_for_FY22[[#This Row],[Degree]]&AAMC_Raw_Data_for_FY22[[#This Row],[Department / Specialty]]&\"L\"","v":"AAMCAcademicAllProfessorMDOther Clinical Science TotalL"},"Other Clinical Science Total",2,"AAMC","Academic","All","Professor","MD","2021-2022",286314,{"$f":"(((AAMC_Raw_Data_for_FY22[[#This Row],[Median]]-AAMC_Raw_Data_for_FY22[[#This Row],[25th]])/25)*5) + AAMC_Raw_Data_for_FY22[[#This Row],[25th]]","v":299722.59999999998},{"$f":"(((AAMC_Raw_Data_for_FY22[[#This Row],[Median]]-AAMC_Raw_Data_for_FY22[[#This Row],[25th]])/25)*10) + AAMC_Raw_Data_for_FY22[[#This Row],[25th]]","v":313131.2},{"$f":"(((AAMC_Raw_Data_for_FY22[[#This Row],[Median]]-AAMC_Raw_Data_for_FY22[[#This Row],[25th]])/25)*15) + AAMC_Raw_Data_for_FY22[[#This Row],[25th]]","v":326539.8},{"$f":"(((AAMC_Raw_Data_for_FY22[[#This Row],[Median]]-AAMC_Raw_Data_for_FY22[[#This Row],[25th]])/25)*20) + AAMC_Raw_Data_for_FY22[[#This Row],[25th]]","v":339948.4},353357,{"$f":"(((AAMC_Raw_Data_for_FY22[[#This Row],[75th]]-AAMC_Raw_Data_for_FY22[[#This Row],[Median]])/25)*5) + AAMC_Raw_Data_for_FY22[[#This Row],[Median]]","v":373087},{"$f":"(((AAMC_Raw_Data_for_FY22[[#This Row],[75th]]-AAMC_Raw_Data_for_FY22[[#This Row],[Median]])/25)*10) + AAMC_Raw_Data_for_FY22[[#This Row],[Median]]","v":392817},{"$f":"(((AAMC_Raw_Data_for_FY22[[#This Row],[75th]]-AAMC_Raw_Data_for_FY22[[#This Row],[Median]])/25)*15) + AAMC_Raw_Data_for_FY22[[#This Row],[Median]]","v":412547},{"$f":"(((AAMC_Raw_Data_for_FY22[[#This Row],[75th]]-AAMC_Raw_Data_for_FY22[[#This Row],[Median]])/25)*20) + AAMC_Raw_Data_for_FY22[[#This Row],[Median]]","v":432277},452007,{"$f":"(((AAMC_Raw_Data_for_FY22[[#This Row],[75th]]-AAMC_Raw_Data_for_FY22[[#This Row],[Median]])/25)*30) + AAMC_Raw_Data_for_FY22[[#This Row],[Median]]","v":471737},{"$f":"(((AAMC_Raw_Data_for_FY22[[#This Row],[75th]]-AAMC_Raw_Data_for_FY22[[#This Row],[Median]])/25)*35) + AAMC_Raw_Data_for_FY22[[#This Row],[Median]]","v":491467},{"$f":"(((AAMC_Raw_Data_for_FY22[[#This Row],[75th]]-AAMC_Raw_Data_for_FY22[[#This Row],[Median]])/25)*40) + AAMC_Raw_Data_for_FY22[[#This Row],[Median]]","v":511197}]
[{"$f":"AAMC_Raw_Data_for_FY22[[#This Row],[Source]]&AAMC_Raw_Data_for_FY22[[#This Row],[Type]]&AAMC_Raw_Data_for_FY22[[#This Row],[School Subset]]&AAMC_Raw_Data_for_FY22[[#This Row],[Rank]]&AAMC_Raw_Data_for_FY22[[#This Row],[Degree]]&AAMC_Raw_Data_for_FY22[[#This Row],[Department / Specialty]]&\"L\"","v":"AAMCAcademicAllChiefMDOther Clinical Science TotalL"},"Other Clinical Science Total",6,"AAMC","Academic","All","Chief","MD","2021-2022",310419,{"$f":"(((AAMC_Raw_Data_for_FY22[[#This Row],[Median]]-AAMC_Raw_Data_for_FY22[[#This Row],[25th]])/25)*5) + AAMC_Raw_Data_for_FY22[[#This Row],[25th]]","v":324730.8},{"$f":"(((AAMC_Raw_Data_for_FY22[[#This Row],[Median]]-AAMC_Raw_Data_for_FY22[[#This Row],[25th]])/25)*10) + AAMC_Raw_Data_for_FY22[[#This Row],[25th]]","v":339042.6},{"$f":"(((AAMC_Raw_Data_for_FY22[[#This Row],[Median]]-AAMC_Raw_Data_for_FY22[[#This Row],[25th]])/25)*15) + AAMC_Raw_Data_for_FY22[[#This Row],[25th]]","v":353354.4},{"$f":"(((AAMC_Raw_Data_for_FY22[[#This Row],[Median]]-AAMC_Raw_Data_for_FY22[[#This Row],[25th]])/25)*20) + AAMC_Raw_Data_for_FY22[[#This Row],[25th]]","v":367666.2},381978,{"$f":"(((AAMC_Raw_Data_for_FY22[[#This Row],[75th]]-AAMC_Raw_Data_for_FY22[[#This Row],[Median]])/25)*5) + AAMC_Raw_Data_for_FY22[[#This Row],[Median]]","v":402681.4},{"$f":"(((AAMC_Raw_Data_for_FY22[[#This Row],[75th]]-AAMC_Raw_Data_for_FY22[[#This Row],[Median]])/25)*10) + AAMC_Raw_Data_for_FY22[[#This Row],[Median]]","v":423384.8},{"$f":"(((AAMC_Raw_Data_for_FY22[[#This Row],[75th]]-AAMC_Raw_Data_for_FY22[[#This Row],[Median]])/25)*15) + AAMC_Raw_Data_for_FY22[[#This Row],[Median]]","v":444088.2},{"$f":"(((AAMC_Raw_Data_for_FY22[[#This Row],[75th]]-AAMC_Raw_Data_for_FY22[[#This Row],[Median]])/25)*20) + AAMC_Raw_Data_for_FY22[[#This Row],[Median]]","v":464791.6},485495,{"$f":"(((AAMC_Raw_Data_for_FY22[[#This Row],[75th]]-AAMC_Raw_Data_for_FY22[[#This Row],[Median]])/25)*30) + AAMC_Raw_Data_for_FY22[[#This Row],[Median]]","v":506198.4},{"$f":"(((AAMC_Raw_Data_for_FY22[[#This Row],[75th]]-AAMC_Raw_Data_for_FY22[[#This Row],[Median]])/25)*35) + AAMC_Raw_Data_for_FY22[[#This Row],[Median]]","v":526901.80000000005},{"$f":"(((AAMC_Raw_Data_for_FY22[[#This Row],[75th]]-AAMC_Raw_Data_for_FY22[[#This Row],[Median]])/25)*40) + AAMC_Raw_Data_for_FY22[[#This Row],[Median]]","v":547605.19999999995}]
[{"$f":"AAMC_Raw_Data_for_FY22[[#This Row],[Source]]&AAMC_Raw_Data_for_FY22[[#This Row],[Type]]&AAMC_Raw_Data_for_FY22[[#This Row],[School Subset]]&AAMC_Raw_Data_for_FY22[[#This Row],[Rank]]&AAMC_Raw_Data_for_FY22[[#This Row],[Degree]]&AAMC_Raw_Data_for_FY22[[#This Row],[Department / Specialty]]&\"L\"","v":"AAMCAcademicAllChairMDOther Clinical Science TotalL"},"Other Clinical Science Total",1,"AAMC","Academic","All","Chair","MD","2021-2022",512001,{"$f":"(((AAMC_Raw_Data_for_FY22[[#This Row],[Median]]-AAMC_Raw_Data_for_FY22[[#This Row],[25th]])/25)*5) + AAMC_Raw_Data_for_FY22[[#This Row],[25th]]","v":532960.80000000005},{"$f":"(((AAMC_Raw_Data_for_FY22[[#This Row],[Median]]-AAMC_Raw_Data_for_FY22[[#This Row],[25th]])/25)*10) + AAMC_Raw_Data_for_FY22[[#This Row],[25th]]","v":553920.6},{"$f":"(((AAMC_Raw_Data_for_FY22[[#This Row],[Median]]-AAMC_Raw_Data_for_FY22[[#This Row],[25th]])/25)*15) + AAMC_Raw_Data_for_FY22[[#This Row],[25th]]","v":574880.4},{"$f":"(((AAMC_Raw_Data_for_FY22[[#This Row],[Median]]-AAMC_Raw_Data_for_FY22[[#This Row],[25th]])/25)*20) + AAMC_Raw_Data_for_FY22[[#This Row],[25th]]","v":595840.19999999995},616800,{"$f":"(((AAMC_Raw_Data_for_FY22[[#This Row],[75th]]-AAMC_Raw_Data_for_FY22[[#This Row],[Median]])/25)*5) + AAMC_Raw_Data_for_FY22[[#This Row],[Median]]","v":644272.19999999995},{"$f":"(((AAMC_Raw_Data_for_FY22[[#This Row],[75th]]-AAMC_Raw_Data_for_FY22[[#This Row],[Median]])/25)*10) + AAMC_Raw_Data_for_FY22[[#This Row],[Median]]","v":671744.4},{"$f":"(((AAMC_Raw_Data_for_FY22[[#This Row],[75th]]-AAMC_Raw_Data_for_FY22[[#This Row],[Median]])/25)*15) + AAMC_Raw_Data_for_FY22[[#This Row],[Median]]","v":699216.6},{"$f":"(((AAMC_Raw_Data_for_FY22[[#This Row],[75th]]-AAMC_Raw_Data_for_FY22[[#This Row],[Median]])/25)*20) + AAMC_Raw_Data_for_FY22[[#This Row],[Median]]","v":726688.8},754161,{"$f":"(((AAMC_Raw_Data_for_FY22[[#This Row],[75th]]-AAMC_Raw_Data_for_FY22[[#This Row],[Median]])/25)*30) + AAMC_Raw_Data_for_FY22[[#This Row],[Median]]","v":781633.2},{"$f":"(((AAMC_Raw_Data_for_FY22[[#This Row],[75th]]-AAMC_Raw_Data_for_FY22[[#This Row],[Median]])/25)*35) + AAMC_Raw_Data_for_FY22[[#This Row],[Median]]","v":809105.4},{"$f":"(((AAMC_Raw_Data_for_FY22[[#This Row],[75th]]-AAMC_Raw_Data_for_FY22[[#This Row],[Median]])/25)*40) + AAMC_Raw_Data_for_FY22[[#This Row],[Median]]","v":836577.6}]
[{"$f":"AAMC_Raw_Data_for_FY22[[#This Row],[Source]]&AAMC_Raw_Data_for_FY22[[#This Row],[Type]]&AAMC_Raw_Data_for_FY22[[#This Row],[School Subset]]&AAMC_Raw_Data_for_FY22[[#This Row],[Rank]]&AAMC_Raw_Data_for_FY22[[#This Row],[Degree]]&AAMC_Raw_Data_for_FY22[[#This Row],[Department / Specialty]]&\"L\"","v":"AAMCAcademicAllInstructorMDCommunity HealthL"},"Community Health",5,"AAMC","Academic","All","Instructor","MD","2021-2022",null,{"$f":"(((AAMC_Raw_Data_for_FY22[[#This Row],[Median]]-AAMC_Raw_Data_for_FY22[[#This Row],[25th]])/25)*5) + AAMC_Raw_Data_for_FY22[[#This Row],[25th]]","v":0},{"$f":"(((AAMC_Raw_Data_for_FY22[[#This Row],[Median]]-AAMC_Raw_Data_for_FY22[[#This Row],[25th]])/25)*10) + AAMC_Raw_Data_for_FY22[[#This Row],[25th]]","v":0},{"$f":"(((AAMC_Raw_Data_for_FY22[[#This Row],[Median]]-AAMC_Raw_Data_for_FY22[[#This Row],[25th]])/25)*15) + AAMC_Raw_Data_for_FY22[[#This Row],[25th]]","v":0},{"$f":"(((AAMC_Raw_Data_for_FY22[[#This Row],[Median]]-AAMC_Raw_Data_for_FY22[[#This Row],[25th]])/25)*20) + AAMC_Raw_Data_for_FY22[[#This Row],[25th]]","v":0},null,{"$f":"(((AAMC_Raw_Data_for_FY22[[#This Row],[75th]]-AAMC_Raw_Data_for_FY22[[#This Row],[Median]])/25)*5) + AAMC_Raw_Data_for_FY22[[#This Row],[Median]]","v":0},{"$f":"(((AAMC_Raw_Data_for_FY22[[#This Row],[75th]]-AAMC_Raw_Data_for_FY22[[#This Row],[Median]])/25)*10) + AAMC_Raw_Data_for_FY22[[#This Row],[Median]]","v":0},{"$f":"(((AAMC_Raw_Data_for_FY22[[#This Row],[75th]]-AAMC_Raw_Data_for_FY22[[#This Row],[Median]])/25)*15) + AAMC_Raw_Data_for_FY22[[#This Row],[Median]]","v":0},{"$f":"(((AAMC_Raw_Data_for_FY22[[#This Row],[75th]]-AAMC_Raw_Data_for_FY22[[#This Row],[Median]])/25)*20) + AAMC_Raw_Data_for_FY22[[#This Row],[Median]]","v":0},null,{"$f":"(((AAMC_Raw_Data_for_FY22[[#This Row],[75th]]-AAMC_Raw_Data_for_FY22[[#This Row],[Median]])/25)*30) + AAMC_Raw_Data_for_FY22[[#This Row],[Median]]","v":0},{"$f":"(((AAMC_Raw_Data_for_FY22[[#This Row],[75th]]-AAMC_Raw_Data_for_FY22[[#This Row],[Median]])/25)*35) + AAMC_Raw_Data_for_FY22[[#This Row],[Median]]","v":0},{"$f":"(((AAMC_Raw_Data_for_FY22[[#This Row],[75th]]-AAMC_Raw_Data_for_FY22[[#This Row],[Median]])/25)*40) + AAMC_Raw_Data_for_FY22[[#This Row],[Median]]","v":0}]
[{"$f":"AAMC_Raw_Data_for_FY22[[#This Row],[Source]]&AAMC_Raw_Data_for_FY22[[#This Row],[Type]]&AAMC_Raw_Data_for_FY22[[#This Row],[School Subset]]&AAMC_Raw_Data_for_FY22[[#This Row],[Rank]]&AAMC_Raw_Data_for_FY22[[#This Row],[Degree]]&AAMC_Raw_Data_for_FY22[[#This Row],[Department / Specialty]]&\"L\"","v":"AAMCAcademicAllAssistantMDCommunity HealthL"},"Community Health",4,"AAMC","Academic","All","Assistant","MD","2021-2022",169753,{"$f":"(((AAMC_Raw_Data_for_FY22[[#This Row],[Median]]-AAMC_Raw_Data_for_FY22[[#This Row],[25th]])/25)*5) + AAMC_Raw_Data_for_FY22[[#This Row],[25th]]","v":176976.6},{"$f":"(((AAMC_Raw_Data_for_FY22[[#This Row],[Median]]-AAMC_Raw_Data_for_FY22[[#This Row],[25th]])/25)*10) + AAMC_Raw_Data_for_FY22[[#This Row],[25th]]","v":184200.2},{"$f":"(((AAMC_Raw_Data_for_FY22[[#This Row],[Median]]-AAMC_Raw_Data_for_FY22[[#This Row],[25th]])/25)*15) + AAMC_Raw_Data_for_FY22[[#This Row],[25th]]","v":191423.8},{"$f":"(((AAMC_Raw_Data_for_FY22[[#This Row],[Median]]-AAMC_Raw_Data_for_FY22[[#This Row],[25th]])/25)*20) + AAMC_Raw_Data_for_FY22[[#This Row],[25th]]","v":198647.4},205871,{"$f":"(((AAMC_Raw_Data_for_FY22[[#This Row],[75th]]-AAMC_Raw_Data_for_FY22[[#This Row],[Median]])/25)*5) + AAMC_Raw_Data_for_FY22[[#This Row],[Median]]","v":209562.6},{"$f":"(((AAMC_Raw_Data_for_FY22[[#This Row],[75th]]-AAMC_Raw_Data_for_FY22[[#This Row],[Median]])/25)*10) + AAMC_Raw_Data_for_FY22[[#This Row],[Median]]","v":213254.2},{"$f":"(((AAMC_Raw_Data_for_FY22[[#This Row],[75th]]-AAMC_Raw_Data_for_FY22[[#This Row],[Median]])/25)*15) + AAMC_Raw_Data_for_FY22[[#This Row],[Median]]","v":216945.8},{"$f":"(((AAMC_Raw_Data_for_FY22[[#This Row],[75th]]-AAMC_Raw_Data_for_FY22[[#This Row],[Median]])/25)*20) + AAMC_Raw_Data_for_FY22[[#This Row],[Median]]","v":220637.4},224329,{"$f":"(((AAMC_Raw_Data_for_FY22[[#This Row],[75th]]-AAMC_Raw_Data_for_FY22[[#This Row],[Median]])/25)*30) + AAMC_Raw_Data_for_FY22[[#This Row],[Median]]","v":228020.6},{"$f":"(((AAMC_Raw_Data_for_FY22[[#This Row],[75th]]-AAMC_Raw_Data_for_FY22[[#This Row],[Median]])/25)*35) + AAMC_Raw_Data_for_FY22[[#This Row],[Median]]","v":231712.2},{"$f":"(((AAMC_Raw_Data_for_FY22[[#This Row],[75th]]-AAMC_Raw_Data_for_FY22[[#This Row],[Median]])/25)*40) + AAMC_Raw_Data_for_FY22[[#This Row],[Median]]","v":235403.8}]
[{"$f":"AAMC_Raw_Data_for_FY22[[#This Row],[Source]]&AAMC_Raw_Data_for_FY22[[#This Row],[Type]]&AAMC_Raw_Data_for_FY22[[#This Row],[School Subset]]&AAMC_Raw_Data_for_FY22[[#This Row],[Rank]]&AAMC_Raw_Data_for_FY22[[#This Row],[Degree]]&AAMC_Raw_Data_for_FY22[[#This Row],[Department / Specialty]]&\"L\"","v":"AAMCAcademicAllAssociateMDCommunity HealthL"},"Community Health",3,"AAMC","Academic","All","Associate","MD","2021-2022",181900,{"$f":"(((AAMC_Raw_Data_for_FY22[[#This Row],[Median]]-AAMC_Raw_Data_for_FY22[[#This Row],[25th]])/25)*5) + AAMC_Raw_Data_for_FY22[[#This Row],[25th]]","v":186800},{"$f":"(((AAMC_Raw_Data_for_FY22[[#This Row],[Median]]-AAMC_Raw_Data_for_FY22[[#This Row],[25th]])/25)*10) + AAMC_Raw_Data_for_FY22[[#This Row],[25th]]","v":191700},{"$f":"(((AAMC_Raw_Data_for_FY22[[#This Row],[Median]]-AAMC_Raw_Data_for_FY22[[#This Row],[25th]])/25)*15) + AAMC_Raw_Data_for_FY22[[#This Row],[25th]]","v":196600},{"$f":"(((AAMC_Raw_Data_for_FY22[[#This Row],[Median]]-AAMC_Raw_Data_for_FY22[[#This Row],[25th]])/25)*20) + AAMC_Raw_Data_for_FY22[[#This Row],[25th]]","v":201500},206400,{"$f":"(((AAMC_Raw_Data_for_FY22[[#This Row],[75th]]-AAMC_Raw_Data_for_FY22[[#This Row],[Median]])/25)*5) + AAMC_Raw_Data_for_FY22[[#This Row],[Median]]","v":218030.4},{"$f":"(((AAMC_Raw_Data_for_FY22[[#This Row],[75th]]-AAMC_Raw_Data_for_FY22[[#This Row],[Median]])/25)*10) + AAMC_Raw_Data_for_FY22[[#This Row],[Median]]","v":229660.79999999999},{"$f":"(((AAMC_Raw_Data_for_FY22[[#This Row],[75th]]-AAMC_Raw_Data_for_FY22[[#This Row],[Median]])/25)*15) + AAMC_Raw_Data_for_FY22[[#This Row],[Median]]","v":241291.2},{"$f":"(((AAMC_Raw_Data_for_FY22[[#This Row],[75th]]-AAMC_Raw_Data_for_FY22[[#This Row],[Median]])/25)*20) + AAMC_Raw_Data_for_FY22[[#This Row],[Median]]","v":252921.60000000001},264552,{"$f":"(((AAMC_Raw_Data_for_FY22[[#This Row],[75th]]-AAMC_Raw_Data_for_FY22[[#This Row],[Median]])/25)*30) + AAMC_Raw_Data_for_FY22[[#This Row],[Median]]","v":276182.40000000002},{"$f":"(((AAMC_Raw_Data_for_FY22[[#This Row],[75th]]-AAMC_Raw_Data_for_FY22[[#This Row],[Median]])/25)*35) + AAMC_Raw_Data_for_FY22[[#This Row],[Median]]","v":287812.8},{"$f":"(((AAMC_Raw_Data_for_FY22[[#This Row],[75th]]-AAMC_Raw_Data_for_FY22[[#This Row],[Median]])/25)*40) + AAMC_Raw_Data_for_FY22[[#This Row],[Median]]","v":299443.20000000001}]
[{"$f":"AAMC_Raw_Data_for_FY22[[#This Row],[Source]]&AAMC_Raw_Data_for_FY22[[#This Row],[Type]]&AAMC_Raw_Data_for_FY22[[#This Row],[School Subset]]&AAMC_Raw_Data_for_FY22[[#This Row],[Rank]]&AAMC_Raw_Data_for_FY22[[#This Row],[Degree]]&AAMC_Raw_Data_for_FY22[[#This Row],[Department / Specialty]]&\"L\"","v":"AAMCAcademicAllProfessorMDCommunity HealthL"},"Community Health",2,"AAMC","Academic","All","Professor","MD","2021-2022",240926,{"$f":"(((AAMC_Raw_Data_for_FY22[[#This Row],[Median]]-AAMC_Raw_Data_for_FY22[[#This Row],[25th]])/25)*5) + AAMC_Raw_Data_for_FY22[[#This Row],[25th]]","v":251730.8},{"$f":"(((AAMC_Raw_Data_for_FY22[[#This Row],[Median]]-AAMC_Raw_Data_for_FY22[[#This Row],[25th]])/25)*10) + AAMC_Raw_Data_for_FY22[[#This Row],[25th]]","v":262535.59999999998},{"$f":"(((AAMC_Raw_Data_for_FY22[[#This Row],[Median]]-AAMC_Raw_Data_for_FY22[[#This Row],[25th]])/25)*15) + AAMC_Raw_Data_for_FY22[[#This Row],[25th]]","v":273340.40000000002},{"$f":"(((AAMC_Raw_Data_for_FY22[[#This Row],[Median]]-AAMC_Raw_Data_for_FY22[[#This Row],[25th]])/25)*20) + AAMC_Raw_Data_for_FY22[[#This Row],[25th]]","v":284145.2},294950,{"$f":"(((AAMC_Raw_Data_for_FY22[[#This Row],[75th]]-AAMC_Raw_Data_for_FY22[[#This Row],[Median]])/25)*5) + AAMC_Raw_Data_for_FY22[[#This Row],[Median]]","v":299725.2},{"$f":"(((AAMC_Raw_Data_for_FY22[[#This Row],[75th]]-AAMC_Raw_Data_for_FY22[[#This Row],[Median]])/25)*10) + AAMC_Raw_Data_for_FY22[[#This Row],[Median]]","v":304500.40000000002},{"$f":"(((AAMC_Raw_Data_for_FY22[[#This Row],[75th]]-AAMC_Raw_Data_for_FY22[[#This Row],[Median]])/25)*15) + AAMC_Raw_Data_for_FY22[[#This Row],[Median]]","v":309275.59999999998},{"$f":"(((AAMC_Raw_Data_for_FY22[[#This Row],[75th]]-AAMC_Raw_Data_for_FY22[[#This Row],[Median]])/25)*20) + AAMC_Raw_Data_for_FY22[[#This Row],[Median]]","v":314050.8},318826,{"$f":"(((AAMC_Raw_Data_for_FY22[[#This Row],[75th]]-AAMC_Raw_Data_for_FY22[[#This Row],[Median]])/25)*30) + AAMC_Raw_Data_for_FY22[[#This Row],[Median]]","v":323601.2},{"$f":"(((AAMC_Raw_Data_for_FY22[[#This Row],[75th]]-AAMC_Raw_Data_for_FY22[[#This Row],[Median]])/25)*35) + AAMC_Raw_Data_for_FY22[[#This Row],[Median]]","v":328376.40000000002},{"$f":"(((AAMC_Raw_Data_for_FY22[[#This Row],[75th]]-AAMC_Raw_Data_for_FY22[[#This Row],[Median]])/25)*40) + AAMC_Raw_Data_for_FY22[[#This Row],[Median]]","v":333151.59999999998}]
[{"$f":"AAMC_Raw_Data_for_FY22[[#This Row],[Source]]&AAMC_Raw_Data_for_FY22[[#This Row],[Type]]&AAMC_Raw_Data_for_FY22[[#This Row],[School Subset]]&AAMC_Raw_Data_for_FY22[[#This Row],[Rank]]&AAMC_Raw_Data_for_FY22[[#This Row],[Degree]]&AAMC_Raw_Data_for_FY22[[#This Row],[Department / Specialty]]&\"L\"","v":"AAMCAcademicAllChiefMDCommunity HealthL"},"Community Health",6,"AAMC","Academic","All","Chief","MD","2021-2022",null,{"$f":"(((AAMC_Raw_Data_for_FY22[[#This Row],[Median]]-AAMC_Raw_Data_for_FY22[[#This Row],[25th]])/25)*5) + AAMC_Raw_Data_for_FY22[[#This Row],[25th]]","v":0},{"$f":"(((AAMC_Raw_Data_for_FY22[[#This Row],[Median]]-AAMC_Raw_Data_for_FY22[[#This Row],[25th]])/25)*10) + AAMC_Raw_Data_for_FY22[[#This Row],[25th]]","v":0},{"$f":"(((AAMC_Raw_Data_for_FY22[[#This Row],[Median]]-AAMC_Raw_Data_for_FY22[[#This Row],[25th]])/25)*15) + AAMC_Raw_Data_for_FY22[[#This Row],[25th]]","v":0},{"$f":"(((AAMC_Raw_Data_for_FY22[[#This Row],[Median]]-AAMC_Raw_Data_for_FY22[[#This Row],[25th]])/25)*20) + AAMC_Raw_Data_for_FY22[[#This Row],[25th]]","v":0},null,{"$f":"(((AAMC_Raw_Data_for_FY22[[#This Row],[75th]]-AAMC_Raw_Data_for_FY22[[#This Row],[Median]])/25)*5) + AAMC_Raw_Data_for_FY22[[#This Row],[Median]]","v":0},{"$f":"(((AAMC_Raw_Data_for_FY22[[#This Row],[75th]]-AAMC_Raw_Data_for_FY22[[#This Row],[Median]])/25)*10) + AAMC_Raw_Data_for_FY22[[#This Row],[Median]]","v":0},{"$f":"(((AAMC_Raw_Data_for_FY22[[#This Row],[75th]]-AAMC_Raw_Data_for_FY22[[#This Row],[Median]])/25)*15) + AAMC_Raw_Data_for_FY22[[#This Row],[Median]]","v":0},{"$f":"(((AAMC_Raw_Data_for_FY22[[#This Row],[75th]]-AAMC_Raw_Data_for_FY22[[#This Row],[Median]])/25)*20) + AAMC_Raw_Data_for_FY22[[#This Row],[Median]]","v":0},null,{"$f":"(((AAMC_Raw_Data_for_FY22[[#This Row],[75th]]-AAMC_Raw_Data_for_FY22[[#This Row],[Median]])/25)*30) + AAMC_Raw_Data_for_FY22[[#This Row],[Median]]","v":0},{"$f":"(((AAMC_Raw_Data_for_FY22[[#This Row],[75th]]-AAMC_Raw_Data_for_FY22[[#This Row],[Median]])/25)*35) + AAMC_Raw_Data_for_FY22[[#This Row],[Median]]","v":0},{"$f":"(((AAMC_Raw_Data_for_FY22[[#This Row],[75th]]-AAMC_Raw_Data_for_FY22[[#This Row],[Median]])/25)*40) + AAMC_Raw_Data_for_FY22[[#This Row],[Median]]","v":0}]
[{"$f":"AAMC_Raw_Data_for_FY22[[#This Row],[Source]]&AAMC_Raw_Data_for_FY22[[#This Row],[Type]]&AAMC_Raw_Data_for_FY22[[#This Row],[School Subset]]&AAMC_Raw_Data_for_FY22[[#This Row],[Rank]]&AAMC_Raw_Data_for_FY22[[#This Row],[Degree]]&AAMC_Raw_Data_for_FY22[[#This Row],[Department / Specialty]]&\"L\"","v":"AAMCAcademicAllChairMDCommunity HealthL"},"Community Health",1,"AAMC","Academic","All","Chair","MD","2021-2022",null,{"$f":"(((AAMC_Raw_Data_for_FY22[[#This Row],[Median]]-AAMC_Raw_Data_for_FY22[[#This Row],[25th]])/25)*5) + AAMC_Raw_Data_for_FY22[[#This Row],[25th]]","v":0},{"$f":"(((AAMC_Raw_Data_for_FY22[[#This Row],[Median]]-AAMC_Raw_Data_for_FY22[[#This Row],[25th]])/25)*10) + AAMC_Raw_Data_for_FY22[[#This Row],[25th]]","v":0},{"$f":"(((AAMC_Raw_Data_for_FY22[[#This Row],[Median]]-AAMC_Raw_Data_for_FY22[[#This Row],[25th]])/25)*15) + AAMC_Raw_Data_for_FY22[[#This Row],[25th]]","v":0},{"$f":"(((AAMC_Raw_Data_for_FY22[[#This Row],[Median]]-AAMC_Raw_Data_for_FY22[[#This Row],[25th]])/25)*20) + AAMC_Raw_Data_for_FY22[[#This Row],[25th]]","v":0},null,{"$f":"(((AAMC_Raw_Data_for_FY22[[#This Row],[75th]]-AAMC_Raw_Data_for_FY22[[#This Row],[Median]])/25)*5) + AAMC_Raw_Data_for_FY22[[#This Row],[Median]]","v":0},{"$f":"(((AAMC_Raw_Data_for_FY22[[#This Row],[75th]]-AAMC_Raw_Data_for_FY22[[#This Row],[Median]])/25)*10) + AAMC_Raw_Data_for_FY22[[#This Row],[Median]]","v":0},{"$f":"(((AAMC_Raw_Data_for_FY22[[#This Row],[75th]]-AAMC_Raw_Data_for_FY22[[#This Row],[Median]])/25)*15) + AAMC_Raw_Data_for_FY22[[#This Row],[Median]]","v":0},{"$f":"(((AAMC_Raw_Data_for_FY22[[#This Row],[75th]]-AAMC_Raw_Data_for_FY22[[#This Row],[Median]])/25)*20) + AAMC_Raw_Data_for_FY22[[#This Row],[Median]]","v":0},null,{"$f":"(((AAMC_Raw_Data_for_FY22[[#This Row],[75th]]-AAMC_Raw_Data_for_FY22[[#This Row],[Median]])/25)*30) + AAMC_Raw_Data_for_FY22[[#This Row],[Median]]","v":0},{"$f":"(((AAMC_Raw_Data_for_FY22[[#This Row],[75th]]-AAMC_Raw_Data_for_FY22[[#This Row],[Median]])/25)*35) + AAMC_Raw_Data_for_FY22[[#This Row],[Median]]","v":0},{"$f":"(((AAMC_Raw_Data_for_FY22[[#This Row],[75th]]-AAMC_Raw_Data_for_FY22[[#This Row],[Median]])/25)*40) + AAMC_Raw_Data_for_FY22[[#This Row],[Median]]","v":0}]
[{"$f":"AAMC_Raw_Data_for_FY22[[#This Row],[Source]]&AAMC_Raw_Data_for_FY22[[#This Row],[Type]]&AAMC_Raw_Data_for_FY22[[#This Row],[School Subset]]&AAMC_Raw_Data_for_FY22[[#This Row],[Rank]]&AAMC_Raw_Data_for_FY22[[#This Row],[Degree]]&AAMC_Raw_Data_for_FY22[[#This Row],[Department / Specialty]]&\"L\"","v":"AAMCAcademicAllInstructorMDEmergency MedicineL"},"Emergency Medicine",5,"AAMC","Academic","All","Instructor","MD","2021-2022",196228,{"$f":"(((AAMC_Raw_Data_for_FY22[[#This Row],[Median]]-AAMC_Raw_Data_for_FY22[[#This Row],[25th]])/25)*5) + AAMC_Raw_Data_for_FY22[[#This Row],[25th]]","v":214073.2},{"$f":"(((AAMC_Raw_Data_for_FY22[[#This Row],[Median]]-AAMC_Raw_Data_for_FY22[[#This Row],[25th]])/25)*10) + AAMC_Raw_Data_for_FY22[[#This Row],[25th]]","v":231918.4},{"$f":"(((AAMC_Raw_Data_for_FY22[[#This Row],[Median]]-AAMC_Raw_Data_for_FY22[[#This Row],[25th]])/25)*15) + AAMC_Raw_Data_for_FY22[[#This Row],[25th]]","v":249763.6},{"$f":"(((AAMC_Raw_Data_for_FY22[[#This Row],[Median]]-AAMC_Raw_Data_for_FY22[[#This Row],[25th]])/25)*20) + AAMC_Raw_Data_for_FY22[[#This Row],[25th]]","v":267608.8},285454,{"$f":"(((AAMC_Raw_Data_for_FY22[[#This Row],[75th]]-AAMC_Raw_Data_for_FY22[[#This Row],[Median]])/25)*5) + AAMC_Raw_Data_for_FY22[[#This Row],[Median]]","v":296976},{"$f":"(((AAMC_Raw_Data_for_FY22[[#This Row],[75th]]-AAMC_Raw_Data_for_FY22[[#This Row],[Median]])/25)*10) + AAMC_Raw_Data_for_FY22[[#This Row],[Median]]","v":308498},{"$f":"(((AAMC_Raw_Data_for_FY22[[#This Row],[75th]]-AAMC_Raw_Data_for_FY22[[#This Row],[Median]])/25)*15) + AAMC_Raw_Data_for_FY22[[#This Row],[Median]]","v":320020},{"$f":"(((AAMC_Raw_Data_for_FY22[[#This Row],[75th]]-AAMC_Raw_Data_for_FY22[[#This Row],[Median]])/25)*20) + AAMC_Raw_Data_for_FY22[[#This Row],[Median]]","v":331542},343064,{"$f":"(((AAMC_Raw_Data_for_FY22[[#This Row],[75th]]-AAMC_Raw_Data_for_FY22[[#This Row],[Median]])/25)*30) + AAMC_Raw_Data_for_FY22[[#This Row],[Median]]","v":354586},{"$f":"(((AAMC_Raw_Data_for_FY22[[#This Row],[75th]]-AAMC_Raw_Data_for_FY22[[#This Row],[Median]])/25)*35) + AAMC_Raw_Data_for_FY22[[#This Row],[Median]]","v":366108},{"$f":"(((AAMC_Raw_Data_for_FY22[[#This Row],[75th]]-AAMC_Raw_Data_for_FY22[[#This Row],[Median]])/25)*40) + AAMC_Raw_Data_for_FY22[[#This Row],[Median]]","v":377630}]
[{"$f":"AAMC_Raw_Data_for_FY22[[#This Row],[Source]]&AAMC_Raw_Data_for_FY22[[#This Row],[Type]]&AAMC_Raw_Data_for_FY22[[#This Row],[School Subset]]&AAMC_Raw_Data_for_FY22[[#This Row],[Rank]]&AAMC_Raw_Data_for_FY22[[#This Row],[Degree]]&AAMC_Raw_Data_for_FY22[[#This Row],[Department / Specialty]]&\"L\"","v":"AAMCAcademicAllAssistantMDEmergency MedicineL"},"Emergency Medicine",4,"AAMC","Academic","All","Assistant","MD","2021-2022",281296,{"$f":"(((AAMC_Raw_Data_for_FY22[[#This Row],[Median]]-AAMC_Raw_Data_for_FY22[[#This Row],[25th]])/25)*5) + AAMC_Raw_Data_for_FY22[[#This Row],[25th]]","v":287036.79999999999},{"$f":"(((AAMC_Raw_Data_for_FY22[[#This Row],[Median]]-AAMC_Raw_Data_for_FY22[[#This Row],[25th]])/25)*10) + AAMC_Raw_Data_for_FY22[[#This Row],[25th]]","v":292777.59999999998},{"$f":"(((AAMC_Raw_Data_for_FY22[[#This Row],[Median]]-AAMC_Raw_Data_for_FY22[[#This Row],[25th]])/25)*15) + AAMC_Raw_Data_for_FY22[[#This Row],[25th]]","v":298518.40000000002},{"$f":"(((AAMC_Raw_Data_for_FY22[[#This Row],[Median]]-AAMC_Raw_Data_for_FY22[[#This Row],[25th]])/25)*20) + AAMC_Raw_Data_for_FY22[[#This Row],[25th]]","v":304259.20000000001},310000,{"$f":"(((AAMC_Raw_Data_for_FY22[[#This Row],[75th]]-AAMC_Raw_Data_for_FY22[[#This Row],[Median]])/25)*5) + AAMC_Raw_Data_for_FY22[[#This Row],[Median]]","v":316727},{"$f":"(((AAMC_Raw_Data_for_FY22[[#This Row],[75th]]-AAMC_Raw_Data_for_FY22[[#This Row],[Median]])/25)*10) + AAMC_Raw_Data_for_FY22[[#This Row],[Median]]","v":323454},{"$f":"(((AAMC_Raw_Data_for_FY22[[#This Row],[75th]]-AAMC_Raw_Data_for_FY22[[#This Row],[Median]])/25)*15) + AAMC_Raw_Data_for_FY22[[#This Row],[Median]]","v":330181},{"$f":"(((AAMC_Raw_Data_for_FY22[[#This Row],[75th]]-AAMC_Raw_Data_for_FY22[[#This Row],[Median]])/25)*20) + AAMC_Raw_Data_for_FY22[[#This Row],[Median]]","v":336908},343635,{"$f":"(((AAMC_Raw_Data_for_FY22[[#This Row],[75th]]-AAMC_Raw_Data_for_FY22[[#This Row],[Median]])/25)*30) + AAMC_Raw_Data_for_FY22[[#This Row],[Median]]","v":350362},{"$f":"(((AAMC_Raw_Data_for_FY22[[#This Row],[75th]]-AAMC_Raw_Data_for_FY22[[#This Row],[Median]])/25)*35) + AAMC_Raw_Data_for_FY22[[#This Row],[Median]]","v":357089},{"$f":"(((AAMC_Raw_Data_for_FY22[[#This Row],[75th]]-AAMC_Raw_Data_for_FY22[[#This Row],[Median]])/25)*40) + AAMC_Raw_Data_for_FY22[[#This Row],[Median]]","v":363816}]
[{"$f":"AAMC_Raw_Data_for_FY22[[#This Row],[Source]]&AAMC_Raw_Data_for_FY22[[#This Row],[Type]]&AAMC_Raw_Data_for_FY22[[#This Row],[School Subset]]&AAMC_Raw_Data_for_FY22[[#This Row],[Rank]]&AAMC_Raw_Data_for_FY22[[#This Row],[Degree]]&AAMC_Raw_Data_for_FY22[[#This Row],[Department / Specialty]]&\"L\"","v":"AAMCAcademicAllAssociateMDEmergency MedicineL"},"Emergency Medicine",3,"AAMC","Academic","All","Associate","MD","2021-2022",308677,{"$f":"(((AAMC_Raw_Data_for_FY22[[#This Row],[Median]]-AAMC_Raw_Data_for_FY22[[#This Row],[25th]])/25)*5) + AAMC_Raw_Data_for_FY22[[#This Row],[25th]]","v":314497.8},{"$f":"(((AAMC_Raw_Data_for_FY22[[#This Row],[Median]]-AAMC_Raw_Data_for_FY22[[#This Row],[25th]])/25)*10) + AAMC_Raw_Data_for_FY22[[#This Row],[25th]]","v":320318.59999999998},{"$f":"(((AAMC_Raw_Data_for_FY22[[#This Row],[Median]]-AAMC_Raw_Data_for_FY22[[#This Row],[25th]])/25)*15) + AAMC_Raw_Data_for_FY22[[#This Row],[25th]]","v":326139.40000000002},{"$f":"(((AAMC_Raw_Data_for_FY22[[#This Row],[Median]]-AAMC_Raw_Data_for_FY22[[#This Row],[25th]])/25)*20) + AAMC_Raw_Data_for_FY22[[#This Row],[25th]]","v":331960.2},337781,{"$f":"(((AAMC_Raw_Data_for_FY22[[#This Row],[75th]]-AAMC_Raw_Data_for_FY22[[#This Row],[Median]])/25)*5) + AAMC_Raw_Data_for_FY22[[#This Row],[Median]]","v":345368.6},{"$f":"(((AAMC_Raw_Data_for_FY22[[#This Row],[75th]]-AAMC_Raw_Data_for_FY22[[#This Row],[Median]])/25)*10) + AAMC_Raw_Data_for_FY22[[#This Row],[Median]]","v":352956.2},{"$f":"(((AAMC_Raw_Data_for_FY22[[#This Row],[75th]]-AAMC_Raw_Data_for_FY22[[#This Row],[Median]])/25)*15) + AAMC_Raw_Data_for_FY22[[#This Row],[Median]]","v":360543.8},{"$f":"(((AAMC_Raw_Data_for_FY22[[#This Row],[75th]]-AAMC_Raw_Data_for_FY22[[#This Row],[Median]])/25)*20) + AAMC_Raw_Data_for_FY22[[#This Row],[Median]]","v":368131.4},375719,{"$f":"(((AAMC_Raw_Data_for_FY22[[#This Row],[75th]]-AAMC_Raw_Data_for_FY22[[#This Row],[Median]])/25)*30) + AAMC_Raw_Data_for_FY22[[#This Row],[Median]]","v":383306.6},{"$f":"(((AAMC_Raw_Data_for_FY22[[#This Row],[75th]]-AAMC_Raw_Data_for_FY22[[#This Row],[Median]])/25)*35) + AAMC_Raw_Data_for_FY22[[#This Row],[Median]]","v":390894.2},{"$f":"(((AAMC_Raw_Data_for_FY22[[#This Row],[75th]]-AAMC_Raw_Data_for_FY22[[#This Row],[Median]])/25)*40) + AAMC_Raw_Data_for_FY22[[#This Row],[Median]]","v":398481.8}]
[{"$f":"AAMC_Raw_Data_for_FY22[[#This Row],[Source]]&AAMC_Raw_Data_for_FY22[[#This Row],[Type]]&AAMC_Raw_Data_for_FY22[[#This Row],[School Subset]]&AAMC_Raw_Data_for_FY22[[#This Row],[Rank]]&AAMC_Raw_Data_for_FY22[[#This Row],[Degree]]&AAMC_Raw_Data_for_FY22[[#This Row],[Department / Specialty]]&\"L\"","v":"AAMCAcademicAllProfessorMDEmergency MedicineL"},"Emergency Medicine",2,"AAMC","Academic","All","Professor","MD","2021-2022",327949,{"$f":"(((AAMC_Raw_Data_for_FY22[[#This Row],[Median]]-AAMC_Raw_Data_for_FY22[[#This Row],[25th]])/25)*5) + AAMC_Raw_Data_for_FY22[[#This Row],[25th]]","v":335299.20000000001},{"$f":"(((AAMC_Raw_Data_for_FY22[[#This Row],[Median]]-AAMC_Raw_Data_for_FY22[[#This Row],[25th]])/25)*10) + AAMC_Raw_Data_for_FY22[[#This Row],[25th]]","v":342649.4},{"$f":"(((AAMC_Raw_Data_for_FY22[[#This Row],[Median]]-AAMC_Raw_Data_for_FY22[[#This Row],[25th]])/25)*15) + AAMC_Raw_Data_for_FY22[[#This Row],[25th]]","v":349999.6},{"$f":"(((AAMC_Raw_Data_for_FY22[[#This Row],[Median]]-AAMC_Raw_Data_for_FY22[[#This Row],[25th]])/25)*20) + AAMC_Raw_Data_for_FY22[[#This Row],[25th]]","v":357349.8},364700,{"$f":"(((AAMC_Raw_Data_for_FY22[[#This Row],[75th]]-AAMC_Raw_Data_for_FY22[[#This Row],[Median]])/25)*5) + AAMC_Raw_Data_for_FY22[[#This Row],[Median]]","v":375520},{"$f":"(((AAMC_Raw_Data_for_FY22[[#This Row],[75th]]-AAMC_Raw_Data_for_FY22[[#This Row],[Median]])/25)*10) + AAMC_Raw_Data_for_FY22[[#This Row],[Median]]","v":386340},{"$f":"(((AAMC_Raw_Data_for_FY22[[#This Row],[75th]]-AAMC_Raw_Data_for_FY22[[#This Row],[Median]])/25)*15) + AAMC_Raw_Data_for_FY22[[#This Row],[Median]]","v":397160},{"$f":"(((AAMC_Raw_Data_for_FY22[[#This Row],[75th]]-AAMC_Raw_Data_for_FY22[[#This Row],[Median]])/25)*20) + AAMC_Raw_Data_for_FY22[[#This Row],[Median]]","v":407980},418800,{"$f":"(((AAMC_Raw_Data_for_FY22[[#This Row],[75th]]-AAMC_Raw_Data_for_FY22[[#This Row],[Median]])/25)*30) + AAMC_Raw_Data_for_FY22[[#This Row],[Median]]","v":429620},{"$f":"(((AAMC_Raw_Data_for_FY22[[#This Row],[75th]]-AAMC_Raw_Data_for_FY22[[#This Row],[Median]])/25)*35) + AAMC_Raw_Data_for_FY22[[#This Row],[Median]]","v":440440},{"$f":"(((AAMC_Raw_Data_for_FY22[[#This Row],[75th]]-AAMC_Raw_Data_for_FY22[[#This Row],[Median]])/25)*40) + AAMC_Raw_Data_for_FY22[[#This Row],[Median]]","v":451260}]
[{"$f":"AAMC_Raw_Data_for_FY22[[#This Row],[Source]]&AAMC_Raw_Data_for_FY22[[#This Row],[Type]]&AAMC_Raw_Data_for_FY22[[#This Row],[School Subset]]&AAMC_Raw_Data_for_FY22[[#This Row],[Rank]]&AAMC_Raw_Data_for_FY22[[#This Row],[Degree]]&AAMC_Raw_Data_for_FY22[[#This Row],[Department / Specialty]]&\"L\"","v":"AAMCAcademicAllChiefMDEmergency MedicineL"},"Emergency Medicine",6,"AAMC","Academic","All","Chief","MD","2021-2022",335239,{"$f":"(((AAMC_Raw_Data_for_FY22[[#This Row],[Median]]-AAMC_Raw_Data_for_FY22[[#This Row],[25th]])/25)*5) + AAMC_Raw_Data_for_FY22[[#This Row],[25th]]","v":344443},{"$f":"(((AAMC_Raw_Data_for_FY22[[#This Row],[Median]]-AAMC_Raw_Data_for_FY22[[#This Row],[25th]])/25)*10) + AAMC_Raw_Data_for_FY22[[#This Row],[25th]]","v":353647},{"$f":"(((AAMC_Raw_Data_for_FY22[[#This Row],[Median]]-AAMC_Raw_Data_for_FY22[[#This Row],[25th]])/25)*15) + AAMC_Raw_Data_for_FY22[[#This Row],[25th]]","v":362851},{"$f":"(((AAMC_Raw_Data_for_FY22[[#This Row],[Median]]-AAMC_Raw_Data_for_FY22[[#This Row],[25th]])/25)*20) + AAMC_Raw_Data_for_FY22[[#This Row],[25th]]","v":372055},381259,{"$f":"(((AAMC_Raw_Data_for_FY22[[#This Row],[75th]]-AAMC_Raw_Data_for_FY22[[#This Row],[Median]])/25)*5) + AAMC_Raw_Data_for_FY22[[#This Row],[Median]]","v":393903.6},{"$f":"(((AAMC_Raw_Data_for_FY22[[#This Row],[75th]]-AAMC_Raw_Data_for_FY22[[#This Row],[Median]])/25)*10) + AAMC_Raw_Data_for_FY22[[#This Row],[Median]]","v":406548.2},{"$f":"(((AAMC_Raw_Data_for_FY22[[#This Row],[75th]]-AAMC_Raw_Data_for_FY22[[#This Row],[Median]])/25)*15) + AAMC_Raw_Data_for_FY22[[#This Row],[Median]]","v":419192.8},{"$f":"(((AAMC_Raw_Data_for_FY22[[#This Row],[75th]]-AAMC_Raw_Data_for_FY22[[#This Row],[Median]])/25)*20) + AAMC_Raw_Data_for_FY22[[#This Row],[Median]]","v":431837.4},444482,{"$f":"(((AAMC_Raw_Data_for_FY22[[#This Row],[75th]]-AAMC_Raw_Data_for_FY22[[#This Row],[Median]])/25)*30) + AAMC_Raw_Data_for_FY22[[#This Row],[Median]]","v":457126.6},{"$f":"(((AAMC_Raw_Data_for_FY22[[#This Row],[75th]]-AAMC_Raw_Data_for_FY22[[#This Row],[Median]])/25)*35) + AAMC_Raw_Data_for_FY22[[#This Row],[Median]]","v":469771.2},{"$f":"(((AAMC_Raw_Data_for_FY22[[#This Row],[75th]]-AAMC_Raw_Data_for_FY22[[#This Row],[Median]])/25)*40) + AAMC_Raw_Data_for_FY22[[#This Row],[Median]]","v":482415.8}]
[{"$f":"AAMC_Raw_Data_for_FY22[[#This Row],[Source]]&AAMC_Raw_Data_for_FY22[[#This Row],[Type]]&AAMC_Raw_Data_for_FY22[[#This Row],[School Subset]]&AAMC_Raw_Data_for_FY22[[#This Row],[Rank]]&AAMC_Raw_Data_for_FY22[[#This Row],[Degree]]&AAMC_Raw_Data_for_FY22[[#This Row],[Department / Specialty]]&\"L\"","v":"AAMCAcademicAllChairMDEmergency MedicineL"},"Emergency Medicine",1,"AAMC","Academic","All","Chair","MD","2021-2022",536831,{"$f":"(((AAMC_Raw_Data_for_FY22[[#This Row],[Median]]-AAMC_Raw_Data_for_FY22[[#This Row],[25th]])/25)*5) + AAMC_Raw_Data_for_FY22[[#This Row],[25th]]","v":559614},{"$f":"(((AAMC_Raw_Data_for_FY22[[#This Row],[Median]]-AAMC_Raw_Data_for_FY22[[#This Row],[25th]])/25)*10) + AAMC_Raw_Data_for_FY22[[#This Row],[25th]]","v":582397},{"$f":"(((AAMC_Raw_Data_for_FY22[[#This Row],[Median]]-AAMC_Raw_Data_for_FY22[[#This Row],[25th]])/25)*15) + AAMC_Raw_Data_for_FY22[[#This Row],[25th]]","v":605180},{"$f":"(((AAMC_Raw_Data_for_FY22[[#This Row],[Median]]-AAMC_Raw_Data_for_FY22[[#This Row],[25th]])/25)*20) + AAMC_Raw_Data_for_FY22[[#This Row],[25th]]","v":627963},650746,{"$f":"(((AAMC_Raw_Data_for_FY22[[#This Row],[75th]]-AAMC_Raw_Data_for_FY22[[#This Row],[Median]])/25)*5) + AAMC_Raw_Data_for_FY22[[#This Row],[Median]]","v":660096.4},{"$f":"(((AAMC_Raw_Data_for_FY22[[#This Row],[75th]]-AAMC_Raw_Data_for_FY22[[#This Row],[Median]])/25)*10) + AAMC_Raw_Data_for_FY22[[#This Row],[Median]]","v":669446.80000000005},{"$f":"(((AAMC_Raw_Data_for_FY22[[#This Row],[75th]]-AAMC_Raw_Data_for_FY22[[#This Row],[Median]])/25)*15) + AAMC_Raw_Data_for_FY22[[#This Row],[Median]]","v":678797.2},{"$f":"(((AAMC_Raw_Data_for_FY22[[#This Row],[75th]]-AAMC_Raw_Data_for_FY22[[#This Row],[Median]])/25)*20) + AAMC_Raw_Data_for_FY22[[#This Row],[Median]]","v":688147.6},697498,{"$f":"(((AAMC_Raw_Data_for_FY22[[#This Row],[75th]]-AAMC_Raw_Data_for_FY22[[#This Row],[Median]])/25)*30) + AAMC_Raw_Data_for_FY22[[#This Row],[Median]]","v":706848.4},{"$f":"(((AAMC_Raw_Data_for_FY22[[#This Row],[75th]]-AAMC_Raw_Data_for_FY22[[#This Row],[Median]])/25)*35) + AAMC_Raw_Data_for_FY22[[#This Row],[Median]]","v":716198.8},{"$f":"(((AAMC_Raw_Data_for_FY22[[#This Row],[75th]]-AAMC_Raw_Data_for_FY22[[#This Row],[Median]])/25)*40) + AAMC_Raw_Data_for_FY22[[#This Row],[Median]]","v":725549.2}]
[{"$f":"AAMC_Raw_Data_for_FY22[[#This Row],[Source]]&AAMC_Raw_Data_for_FY22[[#This Row],[Type]]&AAMC_Raw_Data_for_FY22[[#This Row],[School Subset]]&AAMC_Raw_Data_for_FY22[[#This Row],[Rank]]&AAMC_Raw_Data_for_FY22[[#This Row],[Degree]]&AAMC_Raw_Data_for_FY22[[#This Row],[Department / Specialty]]&\"L\"","v":"AAMCAcademicAllInstructorMDNeurologyL"},"Neurology",5,"AAMC","Academic","All","Instructor","MD","2021-2022",117171,{"$f":"(((AAMC_Raw_Data_for_FY22[[#This Row],[Median]]-AAMC_Raw_Data_for_FY22[[#This Row],[25th]])/25)*5) + AAMC_Raw_Data_for_FY22[[#This Row],[25th]]","v":127547.8},{"$f":"(((AAMC_Raw_Data_for_FY22[[#This Row],[Median]]-AAMC_Raw_Data_for_FY22[[#This Row],[25th]])/25)*10) + AAMC_Raw_Data_for_FY22[[#This Row],[25th]]","v":137924.6},{"$f":"(((AAMC_Raw_Data_for_FY22[[#This Row],[Median]]-AAMC_Raw_Data_for_FY22[[#This Row],[25th]])/25)*15) + AAMC_Raw_Data_for_FY22[[#This Row],[25th]]","v":148301.4},{"$f":"(((AAMC_Raw_Data_for_FY22[[#This Row],[Median]]-AAMC_Raw_Data_for_FY22[[#This Row],[25th]])/25)*20) + AAMC_Raw_Data_for_FY22[[#This Row],[25th]]","v":158678.20000000001},169055,{"$f":"(((AAMC_Raw_Data_for_FY22[[#This Row],[75th]]-AAMC_Raw_Data_for_FY22[[#This Row],[Median]])/25)*5) + AAMC_Raw_Data_for_FY22[[#This Row],[Median]]","v":178436.6},{"$f":"(((AAMC_Raw_Data_for_FY22[[#This Row],[75th]]-AAMC_Raw_Data_for_FY22[[#This Row],[Median]])/25)*10) + AAMC_Raw_Data_for_FY22[[#This Row],[Median]]","v":187818.2},{"$f":"(((AAMC_Raw_Data_for_FY22[[#This Row],[75th]]-AAMC_Raw_Data_for_FY22[[#This Row],[Median]])/25)*15) + AAMC_Raw_Data_for_FY22[[#This Row],[Median]]","v":197199.8},{"$f":"(((AAMC_Raw_Data_for_FY22[[#This Row],[75th]]-AAMC_Raw_Data_for_FY22[[#This Row],[Median]])/25)*20) + AAMC_Raw_Data_for_FY22[[#This Row],[Median]]","v":206581.4},215963,{"$f":"(((AAMC_Raw_Data_for_FY22[[#This Row],[75th]]-AAMC_Raw_Data_for_FY22[[#This Row],[Median]])/25)*30) + AAMC_Raw_Data_for_FY22[[#This Row],[Median]]","v":225344.6},{"$f":"(((AAMC_Raw_Data_for_FY22[[#This Row],[75th]]-AAMC_Raw_Data_for_FY22[[#This Row],[Median]])/25)*35) + AAMC_Raw_Data_for_FY22[[#This Row],[Median]]","v":234726.2},{"$f":"(((AAMC_Raw_Data_for_FY22[[#This Row],[75th]]-AAMC_Raw_Data_for_FY22[[#This Row],[Median]])/25)*40) + AAMC_Raw_Data_for_FY22[[#This Row],[Median]]","v":244107.8}]
[{"$f":"AAMC_Raw_Data_for_FY22[[#This Row],[Source]]&AAMC_Raw_Data_for_FY22[[#This Row],[Type]]&AAMC_Raw_Data_for_FY22[[#This Row],[School Subset]]&AAMC_Raw_Data_for_FY22[[#This Row],[Rank]]&AAMC_Raw_Data_for_FY22[[#This Row],[Degree]]&AAMC_Raw_Data_for_FY22[[#This Row],[Department / Specialty]]&\"L\"","v":"AAMCAcademicAllAssistantMDNeurologyL"},"Neurology",4,"AAMC","Academic","All","Assistant","MD","2021-2022",206000,{"$f":"(((AAMC_Raw_Data_for_FY22[[#This Row],[Median]]-AAMC_Raw_Data_for_FY22[[#This Row],[25th]])/25)*5) + AAMC_Raw_Data_for_FY22[[#This Row],[25th]]","v":211976.4},{"$f":"(((AAMC_Raw_Data_for_FY22[[#This Row],[Median]]-AAMC_Raw_Data_for_FY22[[#This Row],[25th]])/25)*10) + AAMC_Raw_Data_for_FY22[[#This Row],[25th]]","v":217952.8},{"$f":"(((AAMC_Raw_Data_for_FY22[[#This Row],[Median]]-AAMC_Raw_Data_for_FY22[[#This Row],[25th]])/25)*15) + AAMC_Raw_Data_for_FY22[[#This Row],[25th]]","v":223929.2},{"$f":"(((AAMC_Raw_Data_for_FY22[[#This Row],[Median]]-AAMC_Raw_Data_for_FY22[[#This Row],[25th]])/25)*20) + AAMC_Raw_Data_for_FY22[[#This Row],[25th]]","v":229905.6},235882,{"$f":"(((AAMC_Raw_Data_for_FY22[[#This Row],[75th]]-AAMC_Raw_Data_for_FY22[[#This Row],[Median]])/25)*5) + AAMC_Raw_Data_for_FY22[[#This Row],[Median]]","v":245263.2},{"$f":"(((AAMC_Raw_Data_for_FY22[[#This Row],[75th]]-AAMC_Raw_Data_for_FY22[[#This Row],[Median]])/25)*10) + AAMC_Raw_Data_for_FY22[[#This Row],[Median]]","v":254644.4},{"$f":"(((AAMC_Raw_Data_for_FY22[[#This Row],[75th]]-AAMC_Raw_Data_for_FY22[[#This Row],[Median]])/25)*15) + AAMC_Raw_Data_for_FY22[[#This Row],[Median]]","v":264025.59999999998},{"$f":"(((AAMC_Raw_Data_for_FY22[[#This Row],[75th]]-AAMC_Raw_Data_for_FY22[[#This Row],[Median]])/25)*20) + AAMC_Raw_Data_for_FY22[[#This Row],[Median]]","v":273406.8},282788,{"$f":"(((AAMC_Raw_Data_for_FY22[[#This Row],[75th]]-AAMC_Raw_Data_for_FY22[[#This Row],[Median]])/25)*30) + AAMC_Raw_Data_for_FY22[[#This Row],[Median]]","v":292169.2},{"$f":"(((AAMC_Raw_Data_for_FY22[[#This Row],[75th]]-AAMC_Raw_Data_for_FY22[[#This Row],[Median]])/25)*35) + AAMC_Raw_Data_for_FY22[[#This Row],[Median]]","v":301550.40000000002},{"$f":"(((AAMC_Raw_Data_for_FY22[[#This Row],[75th]]-AAMC_Raw_Data_for_FY22[[#This Row],[Median]])/25)*40) + AAMC_Raw_Data_for_FY22[[#This Row],[Median]]","v":310931.59999999998}]
[{"$f":"AAMC_Raw_Data_for_FY22[[#This Row],[Source]]&AAMC_Raw_Data_for_FY22[[#This Row],[Type]]&AAMC_Raw_Data_for_FY22[[#This Row],[School Subset]]&AAMC_Raw_Data_for_FY22[[#This Row],[Rank]]&AAMC_Raw_Data_for_FY22[[#This Row],[Degree]]&AAMC_Raw_Data_for_FY22[[#This Row],[Department / Specialty]]&\"L\"","v":"AAMCAcademicAllAssociateMDNeurologyL"},"Neurology",3,"AAMC","Academic","All","Associate","MD","2021-2022",229797,{"$f":"(((AAMC_Raw_Data_for_FY22[[#This Row],[Median]]-AAMC_Raw_Data_for_FY22[[#This Row],[25th]])/25)*5) + AAMC_Raw_Data_for_FY22[[#This Row],[25th]]","v":236811.8},{"$f":"(((AAMC_Raw_Data_for_FY22[[#This Row],[Median]]-AAMC_Raw_Data_for_FY22[[#This Row],[25th]])/25)*10) + AAMC_Raw_Data_for_FY22[[#This Row],[25th]]","v":243826.6},{"$f":"(((AAMC_Raw_Data_for_FY22[[#This Row],[Median]]-AAMC_Raw_Data_for_FY22[[#This Row],[25th]])/25)*15) + AAMC_Raw_Data_for_FY22[[#This Row],[25th]]","v":250841.4},{"$f":"(((AAMC_Raw_Data_for_FY22[[#This Row],[Median]]-AAMC_Raw_Data_for_FY22[[#This Row],[25th]])/25)*20) + AAMC_Raw_Data_for_FY22[[#This Row],[25th]]","v":257856.2},264871,{"$f":"(((AAMC_Raw_Data_for_FY22[[#This Row],[75th]]-AAMC_Raw_Data_for_FY22[[#This Row],[Median]])/25)*5) + AAMC_Raw_Data_for_FY22[[#This Row],[Median]]","v":275450.8},{"$f":"(((AAMC_Raw_Data_for_FY22[[#This Row],[75th]]-AAMC_Raw_Data_for_FY22[[#This Row],[Median]])/25)*10) + AAMC_Raw_Data_for_FY22[[#This Row],[Median]]","v":286030.59999999998},{"$f":"(((AAMC_Raw_Data_for_FY22[[#This Row],[75th]]-AAMC_Raw_Data_for_FY22[[#This Row],[Median]])/25)*15) + AAMC_Raw_Data_for_FY22[[#This Row],[Median]]","v":296610.40000000002},{"$f":"(((AAMC_Raw_Data_for_FY22[[#This Row],[75th]]-AAMC_Raw_Data_for_FY22[[#This Row],[Median]])/25)*20) + AAMC_Raw_Data_for_FY22[[#This Row],[Median]]","v":307190.2},317770,{"$f":"(((AAMC_Raw_Data_for_FY22[[#This Row],[75th]]-AAMC_Raw_Data_for_FY22[[#This Row],[Median]])/25)*30) + AAMC_Raw_Data_for_FY22[[#This Row],[Median]]","v":328349.8},{"$f":"(((AAMC_Raw_Data_for_FY22[[#This Row],[75th]]-AAMC_Raw_Data_for_FY22[[#This Row],[Median]])/25)*35) + AAMC_Raw_Data_for_FY22[[#This Row],[Median]]","v":338929.6},{"$f":"(((AAMC_Raw_Data_for_FY22[[#This Row],[75th]]-AAMC_Raw_Data_for_FY22[[#This Row],[Median]])/25)*40) + AAMC_Raw_Data_for_FY22[[#This Row],[Median]]","v":349509.4}]
[{"$f":"AAMC_Raw_Data_for_FY22[[#This Row],[Source]]&AAMC_Raw_Data_for_FY22[[#This Row],[Type]]&AAMC_Raw_Data_for_FY22[[#This Row],[School Subset]]&AAMC_Raw_Data_for_FY22[[#This Row],[Rank]]&AAMC_Raw_Data_for_FY22[[#This Row],[Degree]]&AAMC_Raw_Data_for_FY22[[#This Row],[Department / Specialty]]&\"L\"","v":"AAMCAcademicAllProfessorMDNeurologyL"},"Neurology",2,"AAMC","Academic","All","Professor","MD","2021-2022",260700,{"$f":"(((AAMC_Raw_Data_for_FY22[[#This Row],[Median]]-AAMC_Raw_Data_for_FY22[[#This Row],[25th]])/25)*5) + AAMC_Raw_Data_for_FY22[[#This Row],[25th]]","v":269384.40000000002},{"$f":"(((AAMC_Raw_Data_for_FY22[[#This Row],[Median]]-AAMC_Raw_Data_for_FY22[[#This Row],[25th]])/25)*10) + AAMC_Raw_Data_for_FY22[[#This Row],[25th]]","v":278068.8},{"$f":"(((AAMC_Raw_Data_for_FY22[[#This Row],[Median]]-AAMC_Raw_Data_for_FY22[[#This Row],[25th]])/25)*15) + AAMC_Raw_Data_for_FY22[[#This Row],[25th]]","v":286753.2},{"$f":"(((AAMC_Raw_Data_for_FY22[[#This Row],[Median]]-AAMC_Raw_Data_for_FY22[[#This Row],[25th]])/25)*20) + AAMC_Raw_Data_for_FY22[[#This Row],[25th]]","v":295437.59999999998},304122,{"$f":"(((AAMC_Raw_Data_for_FY22[[#This Row],[75th]]-AAMC_Raw_Data_for_FY22[[#This Row],[Median]])/25)*5) + AAMC_Raw_Data_for_FY22[[#This Row],[Median]]","v":316133.8},{"$f":"(((AAMC_Raw_Data_for_FY22[[#This Row],[75th]]-AAMC_Raw_Data_for_FY22[[#This Row],[Median]])/25)*10) + AAMC_Raw_Data_for_FY22[[#This Row],[Median]]","v":328145.59999999998},{"$f":"(((AAMC_Raw_Data_for_FY22[[#This Row],[75th]]-AAMC_Raw_Data_for_FY22[[#This Row],[Median]])/25)*15) + AAMC_Raw_Data_for_FY22[[#This Row],[Median]]","v":340157.4},{"$f":"(((AAMC_Raw_Data_for_FY22[[#This Row],[75th]]-AAMC_Raw_Data_for_FY22[[#This Row],[Median]])/25)*20) + AAMC_Raw_Data_for_FY22[[#This Row],[Median]]","v":352169.2},364181,{"$f":"(((AAMC_Raw_Data_for_FY22[[#This Row],[75th]]-AAMC_Raw_Data_for_FY22[[#This Row],[Median]])/25)*30) + AAMC_Raw_Data_for_FY22[[#This Row],[Median]]","v":376192.8},{"$f":"(((AAMC_Raw_Data_for_FY22[[#This Row],[75th]]-AAMC_Raw_Data_for_FY22[[#This Row],[Median]])/25)*35) + AAMC_Raw_Data_for_FY22[[#This Row],[Median]]","v":388204.6},{"$f":"(((AAMC_Raw_Data_for_FY22[[#This Row],[75th]]-AAMC_Raw_Data_for_FY22[[#This Row],[Median]])/25)*40) + AAMC_Raw_Data_for_FY22[[#This Row],[Median]]","v":400216.4}]
[{"$f":"AAMC_Raw_Data_for_FY22[[#This Row],[Source]]&AAMC_Raw_Data_for_FY22[[#This Row],[Type]]&AAMC_Raw_Data_for_FY22[[#This Row],[School Subset]]&AAMC_Raw_Data_for_FY22[[#This Row],[Rank]]&AAMC_Raw_Data_for_FY22[[#This Row],[Degree]]&AAMC_Raw_Data_for_FY22[[#This Row],[Department / Specialty]]&\"L\"","v":"AAMCAcademicAllChiefMDNeurologyL"},"Neurology",6,"AAMC","Academic","All","Chief","MD","2021-2022",294163,{"$f":"(((AAMC_Raw_Data_for_FY22[[#This Row],[Median]]-AAMC_Raw_Data_for_FY22[[#This Row],[25th]])/25)*5) + AAMC_Raw_Data_for_FY22[[#This Row],[25th]]","v":301441.40000000002},{"$f":"(((AAMC_Raw_Data_for_FY22[[#This Row],[Median]]-AAMC_Raw_Data_for_FY22[[#This Row],[25th]])/25)*10) + AAMC_Raw_Data_for_FY22[[#This Row],[25th]]","v":308719.8},{"$f":"(((AAMC_Raw_Data_for_FY22[[#This Row],[Median]]-AAMC_Raw_Data_for_FY22[[#This Row],[25th]])/25)*15) + AAMC_Raw_Data_for_FY22[[#This Row],[25th]]","v":315998.2},{"$f":"(((AAMC_Raw_Data_for_FY22[[#This Row],[Median]]-AAMC_Raw_Data_for_FY22[[#This Row],[25th]])/25)*20) + AAMC_Raw_Data_for_FY22[[#This Row],[25th]]","v":323276.59999999998},330555,{"$f":"(((AAMC_Raw_Data_for_FY22[[#This Row],[75th]]-AAMC_Raw_Data_for_FY22[[#This Row],[Median]])/25)*5) + AAMC_Raw_Data_for_FY22[[#This Row],[Median]]","v":344164},{"$f":"(((AAMC_Raw_Data_for_FY22[[#This Row],[75th]]-AAMC_Raw_Data_for_FY22[[#This Row],[Median]])/25)*10) + AAMC_Raw_Data_for_FY22[[#This Row],[Median]]","v":357773},{"$f":"(((AAMC_Raw_Data_for_FY22[[#This Row],[75th]]-AAMC_Raw_Data_for_FY22[[#This Row],[Median]])/25)*15) + AAMC_Raw_Data_for_FY22[[#This Row],[Median]]","v":371382},{"$f":"(((AAMC_Raw_Data_for_FY22[[#This Row],[75th]]-AAMC_Raw_Data_for_FY22[[#This Row],[Median]])/25)*20) + AAMC_Raw_Data_for_FY22[[#This Row],[Median]]","v":384991},398600,{"$f":"(((AAMC_Raw_Data_for_FY22[[#This Row],[75th]]-AAMC_Raw_Data_for_FY22[[#This Row],[Median]])/25)*30) + AAMC_Raw_Data_for_FY22[[#This Row],[Median]]","v":412209},{"$f":"(((AAMC_Raw_Data_for_FY22[[#This Row],[75th]]-AAMC_Raw_Data_for_FY22[[#This Row],[Median]])/25)*35) + AAMC_Raw_Data_for_FY22[[#This Row],[Median]]","v":425818},{"$f":"(((AAMC_Raw_Data_for_FY22[[#This Row],[75th]]-AAMC_Raw_Data_for_FY22[[#This Row],[Median]])/25)*40) + AAMC_Raw_Data_for_FY22[[#This Row],[Median]]","v":439427}]
[{"$f":"AAMC_Raw_Data_for_FY22[[#This Row],[Source]]&AAMC_Raw_Data_for_FY22[[#This Row],[Type]]&AAMC_Raw_Data_for_FY22[[#This Row],[School Subset]]&AAMC_Raw_Data_for_FY22[[#This Row],[Rank]]&AAMC_Raw_Data_for_FY22[[#This Row],[Degree]]&AAMC_Raw_Data_for_FY22[[#This Row],[Department / Specialty]]&\"L\"","v":"AAMCAcademicAllChairMDNeurologyL"},"Neurology",1,"AAMC","Academic","All","Chair","MD","2021-2022",469450,{"$f":"(((AAMC_Raw_Data_for_FY22[[#This Row],[Median]]-AAMC_Raw_Data_for_FY22[[#This Row],[25th]])/25)*5) + AAMC_Raw_Data_for_FY22[[#This Row],[25th]]","v":482559},{"$f":"(((AAMC_Raw_Data_for_FY22[[#This Row],[Median]]-AAMC_Raw_Data_for_FY22[[#This Row],[25th]])/25)*10) + AAMC_Raw_Data_for_FY22[[#This Row],[25th]]","v":495668},{"$f":"(((AAMC_Raw_Data_for_FY22[[#This Row],[Median]]-AAMC_Raw_Data_for_FY22[[#This Row],[25th]])/25)*15) + AAMC_Raw_Data_for_FY22[[#This Row],[25th]]","v":508777},{"$f":"(((AAMC_Raw_Data_for_FY22[[#This Row],[Median]]-AAMC_Raw_Data_for_FY22[[#This Row],[25th]])/25)*20) + AAMC_Raw_Data_for_FY22[[#This Row],[25th]]","v":521886},534995,{"$f":"(((AAMC_Raw_Data_for_FY22[[#This Row],[75th]]-AAMC_Raw_Data_for_FY22[[#This Row],[Median]])/25)*5) + AAMC_Raw_Data_for_FY22[[#This Row],[Median]]","v":551766},{"$f":"(((AAMC_Raw_Data_for_FY22[[#This Row],[75th]]-AAMC_Raw_Data_for_FY22[[#This Row],[Median]])/25)*10) + AAMC_Raw_Data_for_FY22[[#This Row],[Median]]","v":568537},{"$f":"(((AAMC_Raw_Data_for_FY22[[#This Row],[75th]]-AAMC_Raw_Data_for_FY22[[#This Row],[Median]])/25)*15) + AAMC_Raw_Data_for_FY22[[#This Row],[Median]]","v":585308},{"$f":"(((AAMC_Raw_Data_for_FY22[[#This Row],[75th]]-AAMC_Raw_Data_for_FY22[[#This Row],[Median]])/25)*20) + AAMC_Raw_Data_for_FY22[[#This Row],[Median]]","v":602079},618850,{"$f":"(((AAMC_Raw_Data_for_FY22[[#This Row],[75th]]-AAMC_Raw_Data_for_FY22[[#This Row],[Median]])/25)*30) + AAMC_Raw_Data_for_FY22[[#This Row],[Median]]","v":635621},{"$f":"(((AAMC_Raw_Data_for_FY22[[#This Row],[75th]]-AAMC_Raw_Data_for_FY22[[#This Row],[Median]])/25)*35) + AAMC_Raw_Data_for_FY22[[#This Row],[Median]]","v":652392},{"$f":"(((AAMC_Raw_Data_for_FY22[[#This Row],[75th]]-AAMC_Raw_Data_for_FY22[[#This Row],[Median]])/25)*40) + AAMC_Raw_Data_for_FY22[[#This Row],[Median]]","v":669163}]
[{"$f":"AAMC_Raw_Data_for_FY22[[#This Row],[Source]]&AAMC_Raw_Data_for_FY22[[#This Row],[Type]]&AAMC_Raw_Data_for_FY22[[#This Row],[School Subset]]&AAMC_Raw_Data_for_FY22[[#This Row],[Rank]]&AAMC_Raw_Data_for_FY22[[#This Row],[Degree]]&AAMC_Raw_Data_for_FY22[[#This Row],[Department / Specialty]]&\"L\"","v":"AAMCAcademicAllInstructorMDOphthalmologyL"},"Ophthalmology",5,"AAMC","Academic","All","Instructor","MD","2021-2022",66500,{"$f":"(((AAMC_Raw_Data_for_FY22[[#This Row],[Median]]-AAMC_Raw_Data_for_FY22[[#This Row],[25th]])/25)*5) + AAMC_Raw_Data_for_FY22[[#This Row],[25th]]","v":69704.399999999994},{"$f":"(((AAMC_Raw_Data_for_FY22[[#This Row],[Median]]-AAMC_Raw_Data_for_FY22[[#This Row],[25th]])/25)*10) + AAMC_Raw_Data_for_FY22[[#This Row],[25th]]","v":72908.800000000003},{"$f":"(((AAMC_Raw_Data_for_FY22[[#This Row],[Median]]-AAMC_Raw_Data_for_FY22[[#This Row],[25th]])/25)*15) + AAMC_Raw_Data_for_FY22[[#This Row],[25th]]","v":76113.2},{"$f":"(((AAMC_Raw_Data_for_FY22[[#This Row],[Median]]-AAMC_Raw_Data_for_FY22[[#This Row],[25th]])/25)*20) + AAMC_Raw_Data_for_FY22[[#This Row],[25th]]","v":79317.600000000006},82522,{"$f":"(((AAMC_Raw_Data_for_FY22[[#This Row],[75th]]-AAMC_Raw_Data_for_FY22[[#This Row],[Median]])/25)*5) + AAMC_Raw_Data_for_FY22[[#This Row],[Median]]","v":92602},{"$f":"(((AAMC_Raw_Data_for_FY22[[#This Row],[75th]]-AAMC_Raw_Data_for_FY22[[#This Row],[Median]])/25)*10) + AAMC_Raw_Data_for_FY22[[#This Row],[Median]]","v":102682},{"$f":"(((AAMC_Raw_Data_for_FY22[[#This Row],[75th]]-AAMC_Raw_Data_for_FY22[[#This Row],[Median]])/25)*15) + AAMC_Raw_Data_for_FY22[[#This Row],[Median]]","v":112762},{"$f":"(((AAMC_Raw_Data_for_FY22[[#This Row],[75th]]-AAMC_Raw_Data_for_FY22[[#This Row],[Median]])/25)*20) + AAMC_Raw_Data_for_FY22[[#This Row],[Median]]","v":122842},132922,{"$f":"(((AAMC_Raw_Data_for_FY22[[#This Row],[75th]]-AAMC_Raw_Data_for_FY22[[#This Row],[Median]])/25)*30) + AAMC_Raw_Data_for_FY22[[#This Row],[Median]]","v":143002},{"$f":"(((AAMC_Raw_Data_for_FY22[[#This Row],[75th]]-AAMC_Raw_Data_for_FY22[[#This Row],[Median]])/25)*35) + AAMC_Raw_Data_for_FY22[[#This Row],[Median]]","v":153082},{"$f":"(((AAMC_Raw_Data_for_FY22[[#This Row],[75th]]-AAMC_Raw_Data_for_FY22[[#This Row],[Median]])/25)*40) + AAMC_Raw_Data_for_FY22[[#This Row],[Median]]","v":163162}]
[{"$f":"AAMC_Raw_Data_for_FY22[[#This Row],[Source]]&AAMC_Raw_Data_for_FY22[[#This Row],[Type]]&AAMC_Raw_Data_for_FY22[[#This Row],[School Subset]]&AAMC_Raw_Data_for_FY22[[#This Row],[Rank]]&AAMC_Raw_Data_for_FY22[[#This Row],[Degree]]&AAMC_Raw_Data_for_FY22[[#This Row],[Department / Specialty]]&\"L\"","v":"AAMCAcademicAllAssistantMDOphthalmologyL"},"Ophthalmology",4,"AAMC","Academic","All","Assistant","MD","2021-2022",232645,{"$f":"(((AAMC_Raw_Data_for_FY22[[#This Row],[Median]]-AAMC_Raw_Data_for_FY22[[#This Row],[25th]])/25)*5) + AAMC_Raw_Data_for_FY22[[#This Row],[25th]]","v":243053.2},{"$f":"(((AAMC_Raw_Data_for_FY22[[#This Row],[Median]]-AAMC_Raw_Data_for_FY22[[#This Row],[25th]])/25)*10) + AAMC_Raw_Data_for_FY22[[#This Row],[25th]]","v":253461.4},{"$f":"(((AAMC_Raw_Data_for_FY22[[#This Row],[Median]]-AAMC_Raw_Data_for_FY22[[#This Row],[25th]])/25)*15) + AAMC_Raw_Data_for_FY22[[#This Row],[25th]]","v":263869.59999999998},{"$f":"(((AAMC_Raw_Data_for_FY22[[#This Row],[Median]]-AAMC_Raw_Data_for_FY22[[#This Row],[25th]])/25)*20) + AAMC_Raw_Data_for_FY22[[#This Row],[25th]]","v":274277.8},284686,{"$f":"(((AAMC_Raw_Data_for_FY22[[#This Row],[75th]]-AAMC_Raw_Data_for_FY22[[#This Row],[Median]])/25)*5) + AAMC_Raw_Data_for_FY22[[#This Row],[Median]]","v":301362},{"$f":"(((AAMC_Raw_Data_for_FY22[[#This Row],[75th]]-AAMC_Raw_Data_for_FY22[[#This Row],[Median]])/25)*10) + AAMC_Raw_Data_for_FY22[[#This Row],[Median]]","v":318038},{"$f":"(((AAMC_Raw_Data_for_FY22[[#This Row],[75th]]-AAMC_Raw_Data_for_FY22[[#This Row],[Median]])/25)*15) + AAMC_Raw_Data_for_FY22[[#This Row],[Median]]","v":334714},{"$f":"(((AAMC_Raw_Data_for_FY22[[#This Row],[75th]]-AAMC_Raw_Data_for_FY22[[#This Row],[Median]])/25)*20) + AAMC_Raw_Data_for_FY22[[#This Row],[Median]]","v":351390},368066,{"$f":"(((AAMC_Raw_Data_for_FY22[[#This Row],[75th]]-AAMC_Raw_Data_for_FY22[[#This Row],[Median]])/25)*30) + AAMC_Raw_Data_for_FY22[[#This Row],[Median]]","v":384742},{"$f":"(((AAMC_Raw_Data_for_FY22[[#This Row],[75th]]-AAMC_Raw_Data_for_FY22[[#This Row],[Median]])/25)*35) + AAMC_Raw_Data_for_FY22[[#This Row],[Median]]","v":401418},{"$f":"(((AAMC_Raw_Data_for_FY22[[#This Row],[75th]]-AAMC_Raw_Data_for_FY22[[#This Row],[Median]])/25)*40) + AAMC_Raw_Data_for_FY22[[#This Row],[Median]]","v":418094}]
[{"$f":"AAMC_Raw_Data_for_FY22[[#This Row],[Source]]&AAMC_Raw_Data_for_FY22[[#This Row],[Type]]&AAMC_Raw_Data_for_FY22[[#This Row],[School Subset]]&AAMC_Raw_Data_for_FY22[[#This Row],[Rank]]&AAMC_Raw_Data_for_FY22[[#This Row],[Degree]]&AAMC_Raw_Data_for_FY22[[#This Row],[Department / Specialty]]&\"L\"","v":"AAMCAcademicAllAssociateMDOphthalmologyL"},"Ophthalmology",3,"AAMC","Academic","All","Associate","MD","2021-2022",281700,{"$f":"(((AAMC_Raw_Data_for_FY22[[#This Row],[Median]]-AAMC_Raw_Data_for_FY22[[#This Row],[25th]])/25)*5) + AAMC_Raw_Data_for_FY22[[#This Row],[25th]]","v":296975.59999999998},{"$f":"(((AAMC_Raw_Data_for_FY22[[#This Row],[Median]]-AAMC_Raw_Data_for_FY22[[#This Row],[25th]])/25)*10) + AAMC_Raw_Data_for_FY22[[#This Row],[25th]]","v":312251.2},{"$f":"(((AAMC_Raw_Data_for_FY22[[#This Row],[Median]]-AAMC_Raw_Data_for_FY22[[#This Row],[25th]])/25)*15) + AAMC_Raw_Data_for_FY22[[#This Row],[25th]]","v":327526.8},{"$f":"(((AAMC_Raw_Data_for_FY22[[#This Row],[Median]]-AAMC_Raw_Data_for_FY22[[#This Row],[25th]])/25)*20) + AAMC_Raw_Data_for_FY22[[#This Row],[25th]]","v":342802.4},358078,{"$f":"(((AAMC_Raw_Data_for_FY22[[#This Row],[75th]]-AAMC_Raw_Data_for_FY22[[#This Row],[Median]])/25)*5) + AAMC_Raw_Data_for_FY22[[#This Row],[Median]]","v":378270.2},{"$f":"(((AAMC_Raw_Data_for_FY22[[#This Row],[75th]]-AAMC_Raw_Data_for_FY22[[#This Row],[Median]])/25)*10) + AAMC_Raw_Data_for_FY22[[#This Row],[Median]]","v":398462.4},{"$f":"(((AAMC_Raw_Data_for_FY22[[#This Row],[75th]]-AAMC_Raw_Data_for_FY22[[#This Row],[Median]])/25)*15) + AAMC_Raw_Data_for_FY22[[#This Row],[Median]]","v":418654.6},{"$f":"(((AAMC_Raw_Data_for_FY22[[#This Row],[75th]]-AAMC_Raw_Data_for_FY22[[#This Row],[Median]])/25)*20) + AAMC_Raw_Data_for_FY22[[#This Row],[Median]]","v":438846.8},459039,{"$f":"(((AAMC_Raw_Data_for_FY22[[#This Row],[75th]]-AAMC_Raw_Data_for_FY22[[#This Row],[Median]])/25)*30) + AAMC_Raw_Data_for_FY22[[#This Row],[Median]]","v":479231.2},{"$f":"(((AAMC_Raw_Data_for_FY22[[#This Row],[75th]]-AAMC_Raw_Data_for_FY22[[#This Row],[Median]])/25)*35) + AAMC_Raw_Data_for_FY22[[#This Row],[Median]]","v":499423.4},{"$f":"(((AAMC_Raw_Data_for_FY22[[#This Row],[75th]]-AAMC_Raw_Data_for_FY22[[#This Row],[Median]])/25)*40) + AAMC_Raw_Data_for_FY22[[#This Row],[Median]]","v":519615.6}]
[{"$f":"AAMC_Raw_Data_for_FY22[[#This Row],[Source]]&AAMC_Raw_Data_for_FY22[[#This Row],[Type]]&AAMC_Raw_Data_for_FY22[[#This Row],[School Subset]]&AAMC_Raw_Data_for_FY22[[#This Row],[Rank]]&AAMC_Raw_Data_for_FY22[[#This Row],[Degree]]&AAMC_Raw_Data_for_FY22[[#This Row],[Department / Specialty]]&\"L\"","v":"AAMCAcademicAllProfessorMDOphthalmologyL"},"Ophthalmology",2,"AAMC","Academic","All","Professor","MD","2021-2022",318241,{"$f":"(((AAMC_Raw_Data_for_FY22[[#This Row],[Median]]-AAMC_Raw_Data_for_FY22[[#This Row],[25th]])/25)*5) + AAMC_Raw_Data_for_FY22[[#This Row],[25th]]","v":335724},{"$f":"(((AAMC_Raw_Data_for_FY22[[#This Row],[Median]]-AAMC_Raw_Data_for_FY22[[#This Row],[25th]])/25)*10) + AAMC_Raw_Data_for_FY22[[#This Row],[25th]]","v":353207},{"$f":"(((AAMC_Raw_Data_for_FY22[[#This Row],[Median]]-AAMC_Raw_Data_for_FY22[[#This Row],[25th]])/25)*15) + AAMC_Raw_Data_for_FY22[[#This Row],[25th]]","v":370690},{"$f":"(((AAMC_Raw_Data_for_FY22[[#This Row],[Median]]-AAMC_Raw_Data_for_FY22[[#This Row],[25th]])/25)*20) + AAMC_Raw_Data_for_FY22[[#This Row],[25th]]","v":388173},405656,{"$f":"(((AAMC_Raw_Data_for_FY22[[#This Row],[75th]]-AAMC_Raw_Data_for_FY22[[#This Row],[Median]])/25)*5) + AAMC_Raw_Data_for_FY22[[#This Row],[Median]]","v":435519.2},{"$f":"(((AAMC_Raw_Data_for_FY22[[#This Row],[75th]]-AAMC_Raw_Data_for_FY22[[#This Row],[Median]])/25)*10) + AAMC_Raw_Data_for_FY22[[#This Row],[Median]]","v":465382.40000000002},{"$f":"(((AAMC_Raw_Data_for_FY22[[#This Row],[75th]]-AAMC_Raw_Data_for_FY22[[#This Row],[Median]])/25)*15) + AAMC_Raw_Data_for_FY22[[#This Row],[Median]]","v":495245.6},{"$f":"(((AAMC_Raw_Data_for_FY22[[#This Row],[75th]]-AAMC_Raw_Data_for_FY22[[#This Row],[Median]])/25)*20) + AAMC_Raw_Data_for_FY22[[#This Row],[Median]]","v":525108.80000000005},554972,{"$f":"(((AAMC_Raw_Data_for_FY22[[#This Row],[75th]]-AAMC_Raw_Data_for_FY22[[#This Row],[Median]])/25)*30) + AAMC_Raw_Data_for_FY22[[#This Row],[Median]]","v":584835.19999999995},{"$f":"(((AAMC_Raw_Data_for_FY22[[#This Row],[75th]]-AAMC_Raw_Data_for_FY22[[#This Row],[Median]])/25)*35) + AAMC_Raw_Data_for_FY22[[#This Row],[Median]]","v":614698.4},{"$f":"(((AAMC_Raw_Data_for_FY22[[#This Row],[75th]]-AAMC_Raw_Data_for_FY22[[#This Row],[Median]])/25)*40) + AAMC_Raw_Data_for_FY22[[#This Row],[Median]]","v":644561.6}]
[{"$f":"AAMC_Raw_Data_for_FY22[[#This Row],[Source]]&AAMC_Raw_Data_for_FY22[[#This Row],[Type]]&AAMC_Raw_Data_for_FY22[[#This Row],[School Subset]]&AAMC_Raw_Data_for_FY22[[#This Row],[Rank]]&AAMC_Raw_Data_for_FY22[[#This Row],[Degree]]&AAMC_Raw_Data_for_FY22[[#This Row],[Department / Specialty]]&\"L\"","v":"AAMCAcademicAllChiefMDOphthalmologyL"},"Ophthalmology",6,"AAMC","Academic","All","Chief","MD","2021-2022",412721,{"$f":"(((AAMC_Raw_Data_for_FY22[[#This Row],[Median]]-AAMC_Raw_Data_for_FY22[[#This Row],[25th]])/25)*5) + AAMC_Raw_Data_for_FY22[[#This Row],[25th]]","v":433028.4},{"$f":"(((AAMC_Raw_Data_for_FY22[[#This Row],[Median]]-AAMC_Raw_Data_for_FY22[[#This Row],[25th]])/25)*10) + AAMC_Raw_Data_for_FY22[[#This Row],[25th]]","v":453335.8},{"$f":"(((AAMC_Raw_Data_for_FY22[[#This Row],[Median]]-AAMC_Raw_Data_for_FY22[[#This Row],[25th]])/25)*15) + AAMC_Raw_Data_for_FY22[[#This Row],[25th]]","v":473643.2},{"$f":"(((AAMC_Raw_Data_for_FY22[[#This Row],[Median]]-AAMC_Raw_Data_for_FY22[[#This Row],[25th]])/25)*20) + AAMC_Raw_Data_for_FY22[[#This Row],[25th]]","v":493950.6},514258,{"$f":"(((AAMC_Raw_Data_for_FY22[[#This Row],[75th]]-AAMC_Raw_Data_for_FY22[[#This Row],[Median]])/25)*5) + AAMC_Raw_Data_for_FY22[[#This Row],[Median]]","v":548156.6},{"$f":"(((AAMC_Raw_Data_for_FY22[[#This Row],[75th]]-AAMC_Raw_Data_for_FY22[[#This Row],[Median]])/25)*10) + AAMC_Raw_Data_for_FY22[[#This Row],[Median]]","v":582055.19999999995},{"$f":"(((AAMC_Raw_Data_for_FY22[[#This Row],[75th]]-AAMC_Raw_Data_for_FY22[[#This Row],[Median]])/25)*15) + AAMC_Raw_Data_for_FY22[[#This Row],[Median]]","v":615953.80000000005},{"$f":"(((AAMC_Raw_Data_for_FY22[[#This Row],[75th]]-AAMC_Raw_Data_for_FY22[[#This Row],[Median]])/25)*20) + AAMC_Raw_Data_for_FY22[[#This Row],[Median]]","v":649852.4},683751,{"$f":"(((AAMC_Raw_Data_for_FY22[[#This Row],[75th]]-AAMC_Raw_Data_for_FY22[[#This Row],[Median]])/25)*30) + AAMC_Raw_Data_for_FY22[[#This Row],[Median]]","v":717649.6},{"$f":"(((AAMC_Raw_Data_for_FY22[[#This Row],[75th]]-AAMC_Raw_Data_for_FY22[[#This Row],[Median]])/25)*35) + AAMC_Raw_Data_for_FY22[[#This Row],[Median]]","v":751548.2},{"$f":"(((AAMC_Raw_Data_for_FY22[[#This Row],[75th]]-AAMC_Raw_Data_for_FY22[[#This Row],[Median]])/25)*40) + AAMC_Raw_Data_for_FY22[[#This Row],[Median]]","v":785446.8}]
[{"$f":"AAMC_Raw_Data_for_FY22[[#This Row],[Source]]&AAMC_Raw_Data_for_FY22[[#This Row],[Type]]&AAMC_Raw_Data_for_FY22[[#This Row],[School Subset]]&AAMC_Raw_Data_for_FY22[[#This Row],[Rank]]&AAMC_Raw_Data_for_FY22[[#This Row],[Degree]]&AAMC_Raw_Data_for_FY22[[#This Row],[Department / Specialty]]&\"L\"","v":"AAMCAcademicAllChairMDOphthalmologyL"},"Ophthalmology",1,"AAMC","Academic","All","Chair","MD","2021-2022",602712,{"$f":"(((AAMC_Raw_Data_for_FY22[[#This Row],[Median]]-AAMC_Raw_Data_for_FY22[[#This Row],[25th]])/25)*5) + AAMC_Raw_Data_for_FY22[[#This Row],[25th]]","v":621654.4},{"$f":"(((AAMC_Raw_Data_for_FY22[[#This Row],[Median]]-AAMC_Raw_Data_for_FY22[[#This Row],[25th]])/25)*10) + AAMC_Raw_Data_for_FY22[[#This Row],[25th]]","v":640596.80000000005},{"$f":"(((AAMC_Raw_Data_for_FY22[[#This Row],[Median]]-AAMC_Raw_Data_for_FY22[[#This Row],[25th]])/25)*15) + AAMC_Raw_Data_for_FY22[[#This Row],[25th]]","v":659539.19999999995},{"$f":"(((AAMC_Raw_Data_for_FY22[[#This Row],[Median]]-AAMC_Raw_Data_for_FY22[[#This Row],[25th]])/25)*20) + AAMC_Raw_Data_for_FY22[[#This Row],[25th]]","v":678481.6},697424,{"$f":"(((AAMC_Raw_Data_for_FY22[[#This Row],[75th]]-AAMC_Raw_Data_for_FY22[[#This Row],[Median]])/25)*5) + AAMC_Raw_Data_for_FY22[[#This Row],[Median]]","v":720555.4},{"$f":"(((AAMC_Raw_Data_for_FY22[[#This Row],[75th]]-AAMC_Raw_Data_for_FY22[[#This Row],[Median]])/25)*10) + AAMC_Raw_Data_for_FY22[[#This Row],[Median]]","v":743686.8},{"$f":"(((AAMC_Raw_Data_for_FY22[[#This Row],[75th]]-AAMC_Raw_Data_for_FY22[[#This Row],[Median]])/25)*15) + AAMC_Raw_Data_for_FY22[[#This Row],[Median]]","v":766818.2},{"$f":"(((AAMC_Raw_Data_for_FY22[[#This Row],[75th]]-AAMC_Raw_Data_for_FY22[[#This Row],[Median]])/25)*20) + AAMC_Raw_Data_for_FY22[[#This Row],[Median]]","v":789949.6},813081,{"$f":"(((AAMC_Raw_Data_for_FY22[[#This Row],[75th]]-AAMC_Raw_Data_for_FY22[[#This Row],[Median]])/25)*30) + AAMC_Raw_Data_for_FY22[[#This Row],[Median]]","v":836212.4},{"$f":"(((AAMC_Raw_Data_for_FY22[[#This Row],[75th]]-AAMC_Raw_Data_for_FY22[[#This Row],[Median]])/25)*35) + AAMC_Raw_Data_for_FY22[[#This Row],[Median]]","v":859343.8},{"$f":"(((AAMC_Raw_Data_for_FY22[[#This Row],[75th]]-AAMC_Raw_Data_for_FY22[[#This Row],[Median]])/25)*40) + AAMC_Raw_Data_for_FY22[[#This Row],[Median]]","v":882475.2}]
[{"$f":"AAMC_Raw_Data_for_FY22[[#This Row],[Source]]&AAMC_Raw_Data_for_FY22[[#This Row],[Type]]&AAMC_Raw_Data_for_FY22[[#This Row],[School Subset]]&AAMC_Raw_Data_for_FY22[[#This Row],[Rank]]&AAMC_Raw_Data_for_FY22[[#This Row],[Degree]]&AAMC_Raw_Data_for_FY22[[#This Row],[Department / Specialty]]&\"L\"","v":"AAMCAcademicAllInstructorMDOtolaryngologyL"},"Otolaryngology",5,"AAMC","Academic","All","Instructor","MD","2021-2022",73317,{"$f":"(((AAMC_Raw_Data_for_FY22[[#This Row],[Median]]-AAMC_Raw_Data_for_FY22[[#This Row],[25th]])/25)*5) + AAMC_Raw_Data_for_FY22[[#This Row],[25th]]","v":75047.600000000006},{"$f":"(((AAMC_Raw_Data_for_FY22[[#This Row],[Median]]-AAMC_Raw_Data_for_FY22[[#This Row],[25th]])/25)*10) + AAMC_Raw_Data_for_FY22[[#This Row],[25th]]","v":76778.2},{"$f":"(((AAMC_Raw_Data_for_FY22[[#This Row],[Median]]-AAMC_Raw_Data_for_FY22[[#This Row],[25th]])/25)*15) + AAMC_Raw_Data_for_FY22[[#This Row],[25th]]","v":78508.800000000003},{"$f":"(((AAMC_Raw_Data_for_FY22[[#This Row],[Median]]-AAMC_Raw_Data_for_FY22[[#This Row],[25th]])/25)*20) + AAMC_Raw_Data_for_FY22[[#This Row],[25th]]","v":80239.399999999994},81970,{"$f":"(((AAMC_Raw_Data_for_FY22[[#This Row],[75th]]-AAMC_Raw_Data_for_FY22[[#This Row],[Median]])/25)*5) + AAMC_Raw_Data_for_FY22[[#This Row],[Median]]","v":110576},{"$f":"(((AAMC_Raw_Data_for_FY22[[#This Row],[75th]]-AAMC_Raw_Data_for_FY22[[#This Row],[Median]])/25)*10) + AAMC_Raw_Data_for_FY22[[#This Row],[Median]]","v":139182},{"$f":"(((AAMC_Raw_Data_for_FY22[[#This Row],[75th]]-AAMC_Raw_Data_for_FY22[[#This Row],[Median]])/25)*15) + AAMC_Raw_Data_for_FY22[[#This Row],[Median]]","v":167788},{"$f":"(((AAMC_Raw_Data_for_FY22[[#This Row],[75th]]-AAMC_Raw_Data_for_FY22[[#This Row],[Median]])/25)*20) + AAMC_Raw_Data_for_FY22[[#This Row],[Median]]","v":196394},225000,{"$f":"(((AAMC_Raw_Data_for_FY22[[#This Row],[75th]]-AAMC_Raw_Data_for_FY22[[#This Row],[Median]])/25)*30) + AAMC_Raw_Data_for_FY22[[#This Row],[Median]]","v":253606},{"$f":"(((AAMC_Raw_Data_for_FY22[[#This Row],[75th]]-AAMC_Raw_Data_for_FY22[[#This Row],[Median]])/25)*35) + AAMC_Raw_Data_for_FY22[[#This Row],[Median]]","v":282212},{"$f":"(((AAMC_Raw_Data_for_FY22[[#This Row],[75th]]-AAMC_Raw_Data_for_FY22[[#This Row],[Median]])/25)*40) + AAMC_Raw_Data_for_FY22[[#This Row],[Median]]","v":310818}]
[{"$f":"AAMC_Raw_Data_for_FY22[[#This Row],[Source]]&AAMC_Raw_Data_for_FY22[[#This Row],[Type]]&AAMC_Raw_Data_for_FY22[[#This Row],[School Subset]]&AAMC_Raw_Data_for_FY22[[#This Row],[Rank]]&AAMC_Raw_Data_for_FY22[[#This Row],[Degree]]&AAMC_Raw_Data_for_FY22[[#This Row],[Department / Specialty]]&\"L\"","v":"AAMCAcademicAllAssistantMDOtolaryngologyL"},"Otolaryngology",4,"AAMC","Academic","All","Assistant","MD","2021-2022",307353,{"$f":"(((AAMC_Raw_Data_for_FY22[[#This Row],[Median]]-AAMC_Raw_Data_for_FY22[[#This Row],[25th]])/25)*5) + AAMC_Raw_Data_for_FY22[[#This Row],[25th]]","v":316158.40000000002},{"$f":"(((AAMC_Raw_Data_for_FY22[[#This Row],[Median]]-AAMC_Raw_Data_for_FY22[[#This Row],[25th]])/25)*10) + AAMC_Raw_Data_for_FY22[[#This Row],[25th]]","v":324963.8},{"$f":"(((AAMC_Raw_Data_for_FY22[[#This Row],[Median]]-AAMC_Raw_Data_for_FY22[[#This Row],[25th]])/25)*15) + AAMC_Raw_Data_for_FY22[[#This Row],[25th]]","v":333769.2},{"$f":"(((AAMC_Raw_Data_for_FY22[[#This Row],[Median]]-AAMC_Raw_Data_for_FY22[[#This Row],[25th]])/25)*20) + AAMC_Raw_Data_for_FY22[[#This Row],[25th]]","v":342574.6},351380,{"$f":"(((AAMC_Raw_Data_for_FY22[[#This Row],[75th]]-AAMC_Raw_Data_for_FY22[[#This Row],[Median]])/25)*5) + AAMC_Raw_Data_for_FY22[[#This Row],[Median]]","v":367711.4},{"$f":"(((AAMC_Raw_Data_for_FY22[[#This Row],[75th]]-AAMC_Raw_Data_for_FY22[[#This Row],[Median]])/25)*10) + AAMC_Raw_Data_for_FY22[[#This Row],[Median]]","v":384042.8},{"$f":"(((AAMC_Raw_Data_for_FY22[[#This Row],[75th]]-AAMC_Raw_Data_for_FY22[[#This Row],[Median]])/25)*15) + AAMC_Raw_Data_for_FY22[[#This Row],[Median]]","v":400374.2},{"$f":"(((AAMC_Raw_Data_for_FY22[[#This Row],[75th]]-AAMC_Raw_Data_for_FY22[[#This Row],[Median]])/25)*20) + AAMC_Raw_Data_for_FY22[[#This Row],[Median]]","v":416705.6},433037,{"$f":"(((AAMC_Raw_Data_for_FY22[[#This Row],[75th]]-AAMC_Raw_Data_for_FY22[[#This Row],[Median]])/25)*30) + AAMC_Raw_Data_for_FY22[[#This Row],[Median]]","v":449368.4},{"$f":"(((AAMC_Raw_Data_for_FY22[[#This Row],[75th]]-AAMC_Raw_Data_for_FY22[[#This Row],[Median]])/25)*35) + AAMC_Raw_Data_for_FY22[[#This Row],[Median]]","v":465699.8},{"$f":"(((AAMC_Raw_Data_for_FY22[[#This Row],[75th]]-AAMC_Raw_Data_for_FY22[[#This Row],[Median]])/25)*40) + AAMC_Raw_Data_for_FY22[[#This Row],[Median]]","v":482031.2}]
[{"$f":"AAMC_Raw_Data_for_FY22[[#This Row],[Source]]&AAMC_Raw_Data_for_FY22[[#This Row],[Type]]&AAMC_Raw_Data_for_FY22[[#This Row],[School Subset]]&AAMC_Raw_Data_for_FY22[[#This Row],[Rank]]&AAMC_Raw_Data_for_FY22[[#This Row],[Degree]]&AAMC_Raw_Data_for_FY22[[#This Row],[Department / Specialty]]&\"L\"","v":"AAMCAcademicAllAssociateMDOtolaryngologyL"},"Otolaryngology",3,"AAMC","Academic","All","Associate","MD","2021-2022",385167,{"$f":"(((AAMC_Raw_Data_for_FY22[[#This Row],[Median]]-AAMC_Raw_Data_for_FY22[[#This Row],[25th]])/25)*5) + AAMC_Raw_Data_for_FY22[[#This Row],[25th]]","v":399816.2},{"$f":"(((AAMC_Raw_Data_for_FY22[[#This Row],[Median]]-AAMC_Raw_Data_for_FY22[[#This Row],[25th]])/25)*10) + AAMC_Raw_Data_for_FY22[[#This Row],[25th]]","v":414465.4},{"$f":"(((AAMC_Raw_Data_for_FY22[[#This Row],[Median]]-AAMC_Raw_Data_for_FY22[[#This Row],[25th]])/25)*15) + AAMC_Raw_Data_for_FY22[[#This Row],[25th]]","v":429114.6},{"$f":"(((AAMC_Raw_Data_for_FY22[[#This Row],[Median]]-AAMC_Raw_Data_for_FY22[[#This Row],[25th]])/25)*20) + AAMC_Raw_Data_for_FY22[[#This Row],[25th]]","v":443763.8},458413,{"$f":"(((AAMC_Raw_Data_for_FY22[[#This Row],[75th]]-AAMC_Raw_Data_for_FY22[[#This Row],[Median]])/25)*5) + AAMC_Raw_Data_for_FY22[[#This Row],[Median]]","v":477672.2},{"$f":"(((AAMC_Raw_Data_for_FY22[[#This Row],[75th]]-AAMC_Raw_Data_for_FY22[[#This Row],[Median]])/25)*10) + AAMC_Raw_Data_for_FY22[[#This Row],[Median]]","v":496931.4},{"$f":"(((AAMC_Raw_Data_for_FY22[[#This Row],[75th]]-AAMC_Raw_Data_for_FY22[[#This Row],[Median]])/25)*15) + AAMC_Raw_Data_for_FY22[[#This Row],[Median]]","v":516190.6},{"$f":"(((AAMC_Raw_Data_for_FY22[[#This Row],[75th]]-AAMC_Raw_Data_for_FY22[[#This Row],[Median]])/25)*20) + AAMC_Raw_Data_for_FY22[[#This Row],[Median]]","v":535449.80000000005},554709,{"$f":"(((AAMC_Raw_Data_for_FY22[[#This Row],[75th]]-AAMC_Raw_Data_for_FY22[[#This Row],[Median]])/25)*30) + AAMC_Raw_Data_for_FY22[[#This Row],[Median]]","v":573968.19999999995},{"$f":"(((AAMC_Raw_Data_for_FY22[[#This Row],[75th]]-AAMC_Raw_Data_for_FY22[[#This Row],[Median]])/25)*35) + AAMC_Raw_Data_for_FY22[[#This Row],[Median]]","v":593227.4},{"$f":"(((AAMC_Raw_Data_for_FY22[[#This Row],[75th]]-AAMC_Raw_Data_for_FY22[[#This Row],[Median]])/25)*40) + AAMC_Raw_Data_for_FY22[[#This Row],[Median]]","v":612486.6}]
[{"$f":"AAMC_Raw_Data_for_FY22[[#This Row],[Source]]&AAMC_Raw_Data_for_FY22[[#This Row],[Type]]&AAMC_Raw_Data_for_FY22[[#This Row],[School Subset]]&AAMC_Raw_Data_for_FY22[[#This Row],[Rank]]&AAMC_Raw_Data_for_FY22[[#This Row],[Degree]]&AAMC_Raw_Data_for_FY22[[#This Row],[Department / Specialty]]&\"L\"","v":"AAMCAcademicAllProfessorMDOtolaryngologyL"},"Otolaryngology",2,"AAMC","Academic","All","Professor","MD","2021-2022",412500,{"$f":"(((AAMC_Raw_Data_for_FY22[[#This Row],[Median]]-AAMC_Raw_Data_for_FY22[[#This Row],[25th]])/25)*5) + AAMC_Raw_Data_for_FY22[[#This Row],[25th]]","v":430109.4},{"$f":"(((AAMC_Raw_Data_for_FY22[[#This Row],[Median]]-AAMC_Raw_Data_for_FY22[[#This Row],[25th]])/25)*10) + AAMC_Raw_Data_for_FY22[[#This Row],[25th]]","v":447718.8},{"$f":"(((AAMC_Raw_Data_for_FY22[[#This Row],[Median]]-AAMC_Raw_Data_for_FY22[[#This Row],[25th]])/25)*15) + AAMC_Raw_Data_for_FY22[[#This Row],[25th]]","v":465328.2},{"$f":"(((AAMC_Raw_Data_for_FY22[[#This Row],[Median]]-AAMC_Raw_Data_for_FY22[[#This Row],[25th]])/25)*20) + AAMC_Raw_Data_for_FY22[[#This Row],[25th]]","v":482937.59999999998},500547,{"$f":"(((AAMC_Raw_Data_for_FY22[[#This Row],[75th]]-AAMC_Raw_Data_for_FY22[[#This Row],[Median]])/25)*5) + AAMC_Raw_Data_for_FY22[[#This Row],[Median]]","v":528604.80000000005},{"$f":"(((AAMC_Raw_Data_for_FY22[[#This Row],[75th]]-AAMC_Raw_Data_for_FY22[[#This Row],[Median]])/25)*10) + AAMC_Raw_Data_for_FY22[[#This Row],[Median]]","v":556662.6},{"$f":"(((AAMC_Raw_Data_for_FY22[[#This Row],[75th]]-AAMC_Raw_Data_for_FY22[[#This Row],[Median]])/25)*15) + AAMC_Raw_Data_for_FY22[[#This Row],[Median]]","v":584720.4},{"$f":"(((AAMC_Raw_Data_for_FY22[[#This Row],[75th]]-AAMC_Raw_Data_for_FY22[[#This Row],[Median]])/25)*20) + AAMC_Raw_Data_for_FY22[[#This Row],[Median]]","v":612778.19999999995},640836,{"$f":"(((AAMC_Raw_Data_for_FY22[[#This Row],[75th]]-AAMC_Raw_Data_for_FY22[[#This Row],[Median]])/25)*30) + AAMC_Raw_Data_for_FY22[[#This Row],[Median]]","v":668893.80000000005},{"$f":"(((AAMC_Raw_Data_for_FY22[[#This Row],[75th]]-AAMC_Raw_Data_for_FY22[[#This Row],[Median]])/25)*35) + AAMC_Raw_Data_for_FY22[[#This Row],[Median]]","v":696951.6},{"$f":"(((AAMC_Raw_Data_for_FY22[[#This Row],[75th]]-AAMC_Raw_Data_for_FY22[[#This Row],[Median]])/25)*40) + AAMC_Raw_Data_for_FY22[[#This Row],[Median]]","v":725009.4}]
[{"$f":"AAMC_Raw_Data_for_FY22[[#This Row],[Source]]&AAMC_Raw_Data_for_FY22[[#This Row],[Type]]&AAMC_Raw_Data_for_FY22[[#This Row],[School Subset]]&AAMC_Raw_Data_for_FY22[[#This Row],[Rank]]&AAMC_Raw_Data_for_FY22[[#This Row],[Degree]]&AAMC_Raw_Data_for_FY22[[#This Row],[Department / Specialty]]&\"L\"","v":"AAMCAcademicAllChiefMDOtolaryngologyL"},"Otolaryngology",6,"AAMC","Academic","All","Chief","MD","2021-2022",419048,{"$f":"(((AAMC_Raw_Data_for_FY22[[#This Row],[Median]]-AAMC_Raw_Data_for_FY22[[#This Row],[25th]])/25)*5) + AAMC_Raw_Data_for_FY22[[#This Row],[25th]]","v":433248.4},{"$f":"(((AAMC_Raw_Data_for_FY22[[#This Row],[Median]]-AAMC_Raw_Data_for_FY22[[#This Row],[25th]])/25)*10) + AAMC_Raw_Data_for_FY22[[#This Row],[25th]]","v":447448.8},{"$f":"(((AAMC_Raw_Data_for_FY22[[#This Row],[Median]]-AAMC_Raw_Data_for_FY22[[#This Row],[25th]])/25)*15) + AAMC_Raw_Data_for_FY22[[#This Row],[25th]]","v":461649.2},{"$f":"(((AAMC_Raw_Data_for_FY22[[#This Row],[Median]]-AAMC_Raw_Data_for_FY22[[#This Row],[25th]])/25)*20) + AAMC_Raw_Data_for_FY22[[#This Row],[25th]]","v":475849.6},490050,{"$f":"(((AAMC_Raw_Data_for_FY22[[#This Row],[75th]]-AAMC_Raw_Data_for_FY22[[#This Row],[Median]])/25)*5) + AAMC_Raw_Data_for_FY22[[#This Row],[Median]]","v":503271.4},{"$f":"(((AAMC_Raw_Data_for_FY22[[#This Row],[75th]]-AAMC_Raw_Data_for_FY22[[#This Row],[Median]])/25)*10) + AAMC_Raw_Data_for_FY22[[#This Row],[Median]]","v":516492.79999999999},{"$f":"(((AAMC_Raw_Data_for_FY22[[#This Row],[75th]]-AAMC_Raw_Data_for_FY22[[#This Row],[Median]])/25)*15) + AAMC_Raw_Data_for_FY22[[#This Row],[Median]]","v":529714.19999999995},{"$f":"(((AAMC_Raw_Data_for_FY22[[#This Row],[75th]]-AAMC_Raw_Data_for_FY22[[#This Row],[Median]])/25)*20) + AAMC_Raw_Data_for_FY22[[#This Row],[Median]]","v":542935.6},556157,{"$f":"(((AAMC_Raw_Data_for_FY22[[#This Row],[75th]]-AAMC_Raw_Data_for_FY22[[#This Row],[Median]])/25)*30) + AAMC_Raw_Data_for_FY22[[#This Row],[Median]]","v":569378.4},{"$f":"(((AAMC_Raw_Data_for_FY22[[#This Row],[75th]]-AAMC_Raw_Data_for_FY22[[#This Row],[Median]])/25)*35) + AAMC_Raw_Data_for_FY22[[#This Row],[Median]]","v":582599.80000000005},{"$f":"(((AAMC_Raw_Data_for_FY22[[#This Row],[75th]]-AAMC_Raw_Data_for_FY22[[#This Row],[Median]])/25)*40) + AAMC_Raw_Data_for_FY22[[#This Row],[Median]]","v":595821.19999999995}]
[{"$f":"AAMC_Raw_Data_for_FY22[[#This Row],[Source]]&AAMC_Raw_Data_for_FY22[[#This Row],[Type]]&AAMC_Raw_Data_for_FY22[[#This Row],[School Subset]]&AAMC_Raw_Data_for_FY22[[#This Row],[Rank]]&AAMC_Raw_Data_for_FY22[[#This Row],[Degree]]&AAMC_Raw_Data_for_FY22[[#This Row],[Department / Specialty]]&\"L\"","v":"AAMCAcademicAllChairMDOtolaryngologyL"},"Otolaryngology",1,"AAMC","Academic","All","Chair","MD","2021-2022",700204,{"$f":"(((AAMC_Raw_Data_for_FY22[[#This Row],[Median]]-AAMC_Raw_Data_for_FY22[[#This Row],[25th]])/25)*5) + AAMC_Raw_Data_for_FY22[[#This Row],[25th]]","v":723345.6},{"$f":"(((AAMC_Raw_Data_for_FY22[[#This Row],[Median]]-AAMC_Raw_Data_for_FY22[[#This Row],[25th]])/25)*10) + AAMC_Raw_Data_for_FY22[[#This Row],[25th]]","v":746487.2},{"$f":"(((AAMC_Raw_Data_for_FY22[[#This Row],[Median]]-AAMC_Raw_Data_for_FY22[[#This Row],[25th]])/25)*15) + AAMC_Raw_Data_for_FY22[[#This Row],[25th]]","v":769628.8},{"$f":"(((AAMC_Raw_Data_for_FY22[[#This Row],[Median]]-AAMC_Raw_Data_for_FY22[[#This Row],[25th]])/25)*20) + AAMC_Raw_Data_for_FY22[[#This Row],[25th]]","v":792770.4},815912,{"$f":"(((AAMC_Raw_Data_for_FY22[[#This Row],[75th]]-AAMC_Raw_Data_for_FY22[[#This Row],[Median]])/25)*5) + AAMC_Raw_Data_for_FY22[[#This Row],[Median]]","v":845803},{"$f":"(((AAMC_Raw_Data_for_FY22[[#This Row],[75th]]-AAMC_Raw_Data_for_FY22[[#This Row],[Median]])/25)*10) + AAMC_Raw_Data_for_FY22[[#This Row],[Median]]","v":875694},{"$f":"(((AAMC_Raw_Data_for_FY22[[#This Row],[75th]]-AAMC_Raw_Data_for_FY22[[#This Row],[Median]])/25)*15) + AAMC_Raw_Data_for_FY22[[#This Row],[Median]]","v":905585},{"$f":"(((AAMC_Raw_Data_for_FY22[[#This Row],[75th]]-AAMC_Raw_Data_for_FY22[[#This Row],[Median]])/25)*20) + AAMC_Raw_Data_for_FY22[[#This Row],[Median]]","v":935476},965367,{"$f":"(((AAMC_Raw_Data_for_FY22[[#This Row],[75th]]-AAMC_Raw_Data_for_FY22[[#This Row],[Median]])/25)*30) + AAMC_Raw_Data_for_FY22[[#This Row],[Median]]","v":995258},{"$f":"(((AAMC_Raw_Data_for_FY22[[#This Row],[75th]]-AAMC_Raw_Data_for_FY22[[#This Row],[Median]])/25)*35) + AAMC_Raw_Data_for_FY22[[#This Row],[Median]]","v":1025149},{"$f":"(((AAMC_Raw_Data_for_FY22[[#This Row],[75th]]-AAMC_Raw_Data_for_FY22[[#This Row],[Median]])/25)*40) + AAMC_Raw_Data_for_FY22[[#This Row],[Median]]","v":1055040}]
[{"$f":"AAMC_Raw_Data_for_FY22[[#This Row],[Source]]&AAMC_Raw_Data_for_FY22[[#This Row],[Type]]&AAMC_Raw_Data_for_FY22[[#This Row],[School Subset]]&AAMC_Raw_Data_for_FY22[[#This Row],[Rank]]&AAMC_Raw_Data_for_FY22[[#This Row],[Degree]]&AAMC_Raw_Data_for_FY22[[#This Row],[Department / Specialty]]&\"L\"","v":"AAMCAcademicAllInstructorMDPhysical Medicine & RehabilitationL"},"Physical Medicine & Rehabilitation",5,"AAMC","Academic","All","Instructor","MD","2021-2022",80040,{"$f":"(((AAMC_Raw_Data_for_FY22[[#This Row],[Median]]-AAMC_Raw_Data_for_FY22[[#This Row],[25th]])/25)*5) + AAMC_Raw_Data_for_FY22[[#This Row],[25th]]","v":103518},{"$f":"(((AAMC_Raw_Data_for_FY22[[#This Row],[Median]]-AAMC_Raw_Data_for_FY22[[#This Row],[25th]])/25)*10) + AAMC_Raw_Data_for_FY22[[#This Row],[25th]]","v":126996},{"$f":"(((AAMC_Raw_Data_for_FY22[[#This Row],[Median]]-AAMC_Raw_Data_for_FY22[[#This Row],[25th]])/25)*15) + AAMC_Raw_Data_for_FY22[[#This Row],[25th]]","v":150474},{"$f":"(((AAMC_Raw_Data_for_FY22[[#This Row],[Median]]-AAMC_Raw_Data_for_FY22[[#This Row],[25th]])/25)*20) + AAMC_Raw_Data_for_FY22[[#This Row],[25th]]","v":173952},197430,{"$f":"(((AAMC_Raw_Data_for_FY22[[#This Row],[75th]]-AAMC_Raw_Data_for_FY22[[#This Row],[Median]])/25)*5) + AAMC_Raw_Data_for_FY22[[#This Row],[Median]]","v":211944.4},{"$f":"(((AAMC_Raw_Data_for_FY22[[#This Row],[75th]]-AAMC_Raw_Data_for_FY22[[#This Row],[Median]])/25)*10) + AAMC_Raw_Data_for_FY22[[#This Row],[Median]]","v":226458.8},{"$f":"(((AAMC_Raw_Data_for_FY22[[#This Row],[75th]]-AAMC_Raw_Data_for_FY22[[#This Row],[Median]])/25)*15) + AAMC_Raw_Data_for_FY22[[#This Row],[Median]]","v":240973.2},{"$f":"(((AAMC_Raw_Data_for_FY22[[#This Row],[75th]]-AAMC_Raw_Data_for_FY22[[#This Row],[Median]])/25)*20) + AAMC_Raw_Data_for_FY22[[#This Row],[Median]]","v":255487.6},270002,{"$f":"(((AAMC_Raw_Data_for_FY22[[#This Row],[75th]]-AAMC_Raw_Data_for_FY22[[#This Row],[Median]])/25)*30) + AAMC_Raw_Data_for_FY22[[#This Row],[Median]]","v":284516.40000000002},{"$f":"(((AAMC_Raw_Data_for_FY22[[#This Row],[75th]]-AAMC_Raw_Data_for_FY22[[#This Row],[Median]])/25)*35) + AAMC_Raw_Data_for_FY22[[#This Row],[Median]]","v":299030.8},{"$f":"(((AAMC_Raw_Data_for_FY22[[#This Row],[75th]]-AAMC_Raw_Data_for_FY22[[#This Row],[Median]])/25)*40) + AAMC_Raw_Data_for_FY22[[#This Row],[Median]]","v":313545.2}]
[{"$f":"AAMC_Raw_Data_for_FY22[[#This Row],[Source]]&AAMC_Raw_Data_for_FY22[[#This Row],[Type]]&AAMC_Raw_Data_for_FY22[[#This Row],[School Subset]]&AAMC_Raw_Data_for_FY22[[#This Row],[Rank]]&AAMC_Raw_Data_for_FY22[[#This Row],[Degree]]&AAMC_Raw_Data_for_FY22[[#This Row],[Department / Specialty]]&\"L\"","v":"AAMCAcademicAllAssistantMDPhysical Medicine & RehabilitationL"},"Physical Medicine & Rehabilitation",4,"AAMC","Academic","All","Assistant","MD","2021-2022",214457,{"$f":"(((AAMC_Raw_Data_for_FY22[[#This Row],[Median]]-AAMC_Raw_Data_for_FY22[[#This Row],[25th]])/25)*5) + AAMC_Raw_Data_for_FY22[[#This Row],[25th]]","v":220686.2},{"$f":"(((AAMC_Raw_Data_for_FY22[[#This Row],[Median]]-AAMC_Raw_Data_for_FY22[[#This Row],[25th]])/25)*10) + AAMC_Raw_Data_for_FY22[[#This Row],[25th]]","v":226915.4},{"$f":"(((AAMC_Raw_Data_for_FY22[[#This Row],[Median]]-AAMC_Raw_Data_for_FY22[[#This Row],[25th]])/25)*15) + AAMC_Raw_Data_for_FY22[[#This Row],[25th]]","v":233144.6},{"$f":"(((AAMC_Raw_Data_for_FY22[[#This Row],[Median]]-AAMC_Raw_Data_for_FY22[[#This Row],[25th]])/25)*20) + AAMC_Raw_Data_for_FY22[[#This Row],[25th]]","v":239373.8},245603,{"$f":"(((AAMC_Raw_Data_for_FY22[[#This Row],[75th]]-AAMC_Raw_Data_for_FY22[[#This Row],[Median]])/25)*5) + AAMC_Raw_Data_for_FY22[[#This Row],[Median]]","v":257363.6},{"$f":"(((AAMC_Raw_Data_for_FY22[[#This Row],[75th]]-AAMC_Raw_Data_for_FY22[[#This Row],[Median]])/25)*10) + AAMC_Raw_Data_for_FY22[[#This Row],[Median]]","v":269124.2},{"$f":"(((AAMC_Raw_Data_for_FY22[[#This Row],[75th]]-AAMC_Raw_Data_for_FY22[[#This Row],[Median]])/25)*15) + AAMC_Raw_Data_for_FY22[[#This Row],[Median]]","v":280884.8},{"$f":"(((AAMC_Raw_Data_for_FY22[[#This Row],[75th]]-AAMC_Raw_Data_for_FY22[[#This Row],[Median]])/25)*20) + AAMC_Raw_Data_for_FY22[[#This Row],[Median]]","v":292645.40000000002},304406,{"$f":"(((AAMC_Raw_Data_for_FY22[[#This Row],[75th]]-AAMC_Raw_Data_for_FY22[[#This Row],[Median]])/25)*30) + AAMC_Raw_Data_for_FY22[[#This Row],[Median]]","v":316166.59999999998},{"$f":"(((AAMC_Raw_Data_for_FY22[[#This Row],[75th]]-AAMC_Raw_Data_for_FY22[[#This Row],[Median]])/25)*35) + AAMC_Raw_Data_for_FY22[[#This Row],[Median]]","v":327927.2},{"$f":"(((AAMC_Raw_Data_for_FY22[[#This Row],[75th]]-AAMC_Raw_Data_for_FY22[[#This Row],[Median]])/25)*40) + AAMC_Raw_Data_for_FY22[[#This Row],[Median]]","v":339687.8}]
[{"$f":"AAMC_Raw_Data_for_FY22[[#This Row],[Source]]&AAMC_Raw_Data_for_FY22[[#This Row],[Type]]&AAMC_Raw_Data_for_FY22[[#This Row],[School Subset]]&AAMC_Raw_Data_for_FY22[[#This Row],[Rank]]&AAMC_Raw_Data_for_FY22[[#This Row],[Degree]]&AAMC_Raw_Data_for_FY22[[#This Row],[Department / Specialty]]&\"L\"","v":"AAMCAcademicAllAssociateMDPhysical Medicine & RehabilitationL"},"Physical Medicine & Rehabilitation",3,"AAMC","Academic","All","Associate","MD","2021-2022",236285,{"$f":"(((AAMC_Raw_Data_for_FY22[[#This Row],[Median]]-AAMC_Raw_Data_for_FY22[[#This Row],[25th]])/25)*5) + AAMC_Raw_Data_for_FY22[[#This Row],[25th]]","v":244166.8},{"$f":"(((AAMC_Raw_Data_for_FY22[[#This Row],[Median]]-AAMC_Raw_Data_for_FY22[[#This Row],[25th]])/25)*10) + AAMC_Raw_Data_for_FY22[[#This Row],[25th]]","v":252048.6},{"$f":"(((AAMC_Raw_Data_for_FY22[[#This Row],[Median]]-AAMC_Raw_Data_for_FY22[[#This Row],[25th]])/25)*15) + AAMC_Raw_Data_for_FY22[[#This Row],[25th]]","v":259930.4},{"$f":"(((AAMC_Raw_Data_for_FY22[[#This Row],[Median]]-AAMC_Raw_Data_for_FY22[[#This Row],[25th]])/25)*20) + AAMC_Raw_Data_for_FY22[[#This Row],[25th]]","v":267812.2},275694,{"$f":"(((AAMC_Raw_Data_for_FY22[[#This Row],[75th]]-AAMC_Raw_Data_for_FY22[[#This Row],[Median]])/25)*5) + AAMC_Raw_Data_for_FY22[[#This Row],[Median]]","v":287766},{"$f":"(((AAMC_Raw_Data_for_FY22[[#This Row],[75th]]-AAMC_Raw_Data_for_FY22[[#This Row],[Median]])/25)*10) + AAMC_Raw_Data_for_FY22[[#This Row],[Median]]","v":299838},{"$f":"(((AAMC_Raw_Data_for_FY22[[#This Row],[75th]]-AAMC_Raw_Data_for_FY22[[#This Row],[Median]])/25)*15) + AAMC_Raw_Data_for_FY22[[#This Row],[Median]]","v":311910},{"$f":"(((AAMC_Raw_Data_for_FY22[[#This Row],[75th]]-AAMC_Raw_Data_for_FY22[[#This Row],[Median]])/25)*20) + AAMC_Raw_Data_for_FY22[[#This Row],[Median]]","v":323982},336054,{"$f":"(((AAMC_Raw_Data_for_FY22[[#This Row],[75th]]-AAMC_Raw_Data_for_FY22[[#This Row],[Median]])/25)*30) + AAMC_Raw_Data_for_FY22[[#This Row],[Median]]","v":348126},{"$f":"(((AAMC_Raw_Data_for_FY22[[#This Row],[75th]]-AAMC_Raw_Data_for_FY22[[#This Row],[Median]])/25)*35) + AAMC_Raw_Data_for_FY22[[#This Row],[Median]]","v":360198},{"$f":"(((AAMC_Raw_Data_for_FY22[[#This Row],[75th]]-AAMC_Raw_Data_for_FY22[[#This Row],[Median]])/25)*40) + AAMC_Raw_Data_for_FY22[[#This Row],[Median]]","v":372270}]
[{"$f":"AAMC_Raw_Data_for_FY22[[#This Row],[Source]]&AAMC_Raw_Data_for_FY22[[#This Row],[Type]]&AAMC_Raw_Data_for_FY22[[#This Row],[School Subset]]&AAMC_Raw_Data_for_FY22[[#This Row],[Rank]]&AAMC_Raw_Data_for_FY22[[#This Row],[Degree]]&AAMC_Raw_Data_for_FY22[[#This Row],[Department / Specialty]]&\"L\"","v":"AAMCAcademicAllProfessorMDPhysical Medicine & RehabilitationL"},"Physical Medicine & Rehabilitation",2,"AAMC","Academic","All","Professor","MD","2021-2022",270532,{"$f":"(((AAMC_Raw_Data_for_FY22[[#This Row],[Median]]-AAMC_Raw_Data_for_FY22[[#This Row],[25th]])/25)*5) + AAMC_Raw_Data_for_FY22[[#This Row],[25th]]","v":278105.8},{"$f":"(((AAMC_Raw_Data_for_FY22[[#This Row],[Median]]-AAMC_Raw_Data_for_FY22[[#This Row],[25th]])/25)*10) + AAMC_Raw_Data_for_FY22[[#This Row],[25th]]","v":285679.59999999998},{"$f":"(((AAMC_Raw_Data_for_FY22[[#This Row],[Median]]-AAMC_Raw_Data_for_FY22[[#This Row],[25th]])/25)*15) + AAMC_Raw_Data_for_FY22[[#This Row],[25th]]","v":293253.40000000002},{"$f":"(((AAMC_Raw_Data_for_FY22[[#This Row],[Median]]-AAMC_Raw_Data_for_FY22[[#This Row],[25th]])/25)*20) + AAMC_Raw_Data_for_FY22[[#This Row],[25th]]","v":300827.2},308401,{"$f":"(((AAMC_Raw_Data_for_FY22[[#This Row],[75th]]-AAMC_Raw_Data_for_FY22[[#This Row],[Median]])/25)*5) + AAMC_Raw_Data_for_FY22[[#This Row],[Median]]","v":319934.40000000002},{"$f":"(((AAMC_Raw_Data_for_FY22[[#This Row],[75th]]-AAMC_Raw_Data_for_FY22[[#This Row],[Median]])/25)*10) + AAMC_Raw_Data_for_FY22[[#This Row],[Median]]","v":331467.8},{"$f":"(((AAMC_Raw_Data_for_FY22[[#This Row],[75th]]-AAMC_Raw_Data_for_FY22[[#This Row],[Median]])/25)*15) + AAMC_Raw_Data_for_FY22[[#This Row],[Median]]","v":343001.2},{"$f":"(((AAMC_Raw_Data_for_FY22[[#This Row],[75th]]-AAMC_Raw_Data_for_FY22[[#This Row],[Median]])/25)*20) + AAMC_Raw_Data_for_FY22[[#This Row],[Median]]","v":354534.6},366068,{"$f":"(((AAMC_Raw_Data_for_FY22[[#This Row],[75th]]-AAMC_Raw_Data_for_FY22[[#This Row],[Median]])/25)*30) + AAMC_Raw_Data_for_FY22[[#This Row],[Median]]","v":377601.4},{"$f":"(((AAMC_Raw_Data_for_FY22[[#This Row],[75th]]-AAMC_Raw_Data_for_FY22[[#This Row],[Median]])/25)*35) + AAMC_Raw_Data_for_FY22[[#This Row],[Median]]","v":389134.8},{"$f":"(((AAMC_Raw_Data_for_FY22[[#This Row],[75th]]-AAMC_Raw_Data_for_FY22[[#This Row],[Median]])/25)*40) + AAMC_Raw_Data_for_FY22[[#This Row],[Median]]","v":400668.2}]
[{"$f":"AAMC_Raw_Data_for_FY22[[#This Row],[Source]]&AAMC_Raw_Data_for_FY22[[#This Row],[Type]]&AAMC_Raw_Data_for_FY22[[#This Row],[School Subset]]&AAMC_Raw_Data_for_FY22[[#This Row],[Rank]]&AAMC_Raw_Data_for_FY22[[#This Row],[Degree]]&AAMC_Raw_Data_for_FY22[[#This Row],[Department / Specialty]]&\"L\"","v":"AAMCAcademicAllChiefMDPhysical Medicine & RehabilitationL"},"Physical Medicine & Rehabilitation",6,"AAMC","Academic","All","Chief","MD","2021-2022",227668,{"$f":"(((AAMC_Raw_Data_for_FY22[[#This Row],[Median]]-AAMC_Raw_Data_for_FY22[[#This Row],[25th]])/25)*5) + AAMC_Raw_Data_for_FY22[[#This Row],[25th]]","v":243173.8},{"$f":"(((AAMC_Raw_Data_for_FY22[[#This Row],[Median]]-AAMC_Raw_Data_for_FY22[[#This Row],[25th]])/25)*10) + AAMC_Raw_Data_for_FY22[[#This Row],[25th]]","v":258679.6},{"$f":"(((AAMC_Raw_Data_for_FY22[[#This Row],[Median]]-AAMC_Raw_Data_for_FY22[[#This Row],[25th]])/25)*15) + AAMC_Raw_Data_for_FY22[[#This Row],[25th]]","v":274185.40000000002},{"$f":"(((AAMC_Raw_Data_for_FY22[[#This Row],[Median]]-AAMC_Raw_Data_for_FY22[[#This Row],[25th]])/25)*20) + AAMC_Raw_Data_for_FY22[[#This Row],[25th]]","v":289691.2},305197,{"$f":"(((AAMC_Raw_Data_for_FY22[[#This Row],[75th]]-AAMC_Raw_Data_for_FY22[[#This Row],[Median]])/25)*5) + AAMC_Raw_Data_for_FY22[[#This Row],[Median]]","v":311798.59999999998},{"$f":"(((AAMC_Raw_Data_for_FY22[[#This Row],[75th]]-AAMC_Raw_Data_for_FY22[[#This Row],[Median]])/25)*10) + AAMC_Raw_Data_for_FY22[[#This Row],[Median]]","v":318400.2},{"$f":"(((AAMC_Raw_Data_for_FY22[[#This Row],[75th]]-AAMC_Raw_Data_for_FY22[[#This Row],[Median]])/25)*15) + AAMC_Raw_Data_for_FY22[[#This Row],[Median]]","v":325001.8},{"$f":"(((AAMC_Raw_Data_for_FY22[[#This Row],[75th]]-AAMC_Raw_Data_for_FY22[[#This Row],[Median]])/25)*20) + AAMC_Raw_Data_for_FY22[[#This Row],[Median]]","v":331603.40000000002},338205,{"$f":"(((AAMC_Raw_Data_for_FY22[[#This Row],[75th]]-AAMC_Raw_Data_for_FY22[[#This Row],[Median]])/25)*30) + AAMC_Raw_Data_for_FY22[[#This Row],[Median]]","v":344806.6},{"$f":"(((AAMC_Raw_Data_for_FY22[[#This Row],[75th]]-AAMC_Raw_Data_for_FY22[[#This Row],[Median]])/25)*35) + AAMC_Raw_Data_for_FY22[[#This Row],[Median]]","v":351408.2},{"$f":"(((AAMC_Raw_Data_for_FY22[[#This Row],[75th]]-AAMC_Raw_Data_for_FY22[[#This Row],[Median]])/25)*40) + AAMC_Raw_Data_for_FY22[[#This Row],[Median]]","v":358009.8}]
[{"$f":"AAMC_Raw_Data_for_FY22[[#This Row],[Source]]&AAMC_Raw_Data_for_FY22[[#This Row],[Type]]&AAMC_Raw_Data_for_FY22[[#This Row],[School Subset]]&AAMC_Raw_Data_for_FY22[[#This Row],[Rank]]&AAMC_Raw_Data_for_FY22[[#This Row],[Degree]]&AAMC_Raw_Data_for_FY22[[#This Row],[Department / Specialty]]&\"L\"","v":"AAMCAcademicAllChairMDPhysical Medicine & RehabilitationL"},"Physical Medicine & Rehabilitation",1,"AAMC","Academic","All","Chair","MD","2021-2022",431754,{"$f":"(((AAMC_Raw_Data_for_FY22[[#This Row],[Median]]-AAMC_Raw_Data_for_FY22[[#This Row],[25th]])/25)*5) + AAMC_Raw_Data_for_FY22[[#This Row],[25th]]","v":445473.2},{"$f":"(((AAMC_Raw_Data_for_FY22[[#This Row],[Median]]-AAMC_Raw_Data_for_FY22[[#This Row],[25th]])/25)*10) + AAMC_Raw_Data_for_FY22[[#This Row],[25th]]","v":459192.4},{"$f":"(((AAMC_Raw_Data_for_FY22[[#This Row],[Median]]-AAMC_Raw_Data_for_FY22[[#This Row],[25th]])/25)*15) + AAMC_Raw_Data_for_FY22[[#This Row],[25th]]","v":472911.6},{"$f":"(((AAMC_Raw_Data_for_FY22[[#This Row],[Median]]-AAMC_Raw_Data_for_FY22[[#This Row],[25th]])/25)*20) + AAMC_Raw_Data_for_FY22[[#This Row],[25th]]","v":486630.8},500350,{"$f":"(((AAMC_Raw_Data_for_FY22[[#This Row],[75th]]-AAMC_Raw_Data_for_FY22[[#This Row],[Median]])/25)*5) + AAMC_Raw_Data_for_FY22[[#This Row],[Median]]","v":520279.2},{"$f":"(((AAMC_Raw_Data_for_FY22[[#This Row],[75th]]-AAMC_Raw_Data_for_FY22[[#This Row],[Median]])/25)*10) + AAMC_Raw_Data_for_FY22[[#This Row],[Median]]","v":540208.4},{"$f":"(((AAMC_Raw_Data_for_FY22[[#This Row],[75th]]-AAMC_Raw_Data_for_FY22[[#This Row],[Median]])/25)*15) + AAMC_Raw_Data_for_FY22[[#This Row],[Median]]","v":560137.6},{"$f":"(((AAMC_Raw_Data_for_FY22[[#This Row],[75th]]-AAMC_Raw_Data_for_FY22[[#This Row],[Median]])/25)*20) + AAMC_Raw_Data_for_FY22[[#This Row],[Median]]","v":580066.80000000005},599996,{"$f":"(((AAMC_Raw_Data_for_FY22[[#This Row],[75th]]-AAMC_Raw_Data_for_FY22[[#This Row],[Median]])/25)*30) + AAMC_Raw_Data_for_FY22[[#This Row],[Median]]","v":619925.19999999995},{"$f":"(((AAMC_Raw_Data_for_FY22[[#This Row],[75th]]-AAMC_Raw_Data_for_FY22[[#This Row],[Median]])/25)*35) + AAMC_Raw_Data_for_FY22[[#This Row],[Median]]","v":639854.4},{"$f":"(((AAMC_Raw_Data_for_FY22[[#This Row],[75th]]-AAMC_Raw_Data_for_FY22[[#This Row],[Median]])/25)*40) + AAMC_Raw_Data_for_FY22[[#This Row],[Median]]","v":659783.6}]
[{"$f":"AAMC_Raw_Data_for_FY22[[#This Row],[Source]]&AAMC_Raw_Data_for_FY22[[#This Row],[Type]]&AAMC_Raw_Data_for_FY22[[#This Row],[School Subset]]&AAMC_Raw_Data_for_FY22[[#This Row],[Rank]]&AAMC_Raw_Data_for_FY22[[#This Row],[Degree]]&AAMC_Raw_Data_for_FY22[[#This Row],[Department / Specialty]]&\"L\"","v":"AAMCAcademicAllInstructorMDPreventive MedicineL"},"Preventive Medicine",5,"AAMC","Academic","All","Instructor","MD","2021-2022",null,{"$f":"(((AAMC_Raw_Data_for_FY22[[#This Row],[Median]]-AAMC_Raw_Data_for_FY22[[#This Row],[25th]])/25)*5) + AAMC_Raw_Data_for_FY22[[#This Row],[25th]]","v":0},{"$f":"(((AAMC_Raw_Data_for_FY22[[#This Row],[Median]]-AAMC_Raw_Data_for_FY22[[#This Row],[25th]])/25)*10) + AAMC_Raw_Data_for_FY22[[#This Row],[25th]]","v":0},{"$f":"(((AAMC_Raw_Data_for_FY22[[#This Row],[Median]]-AAMC_Raw_Data_for_FY22[[#This Row],[25th]])/25)*15) + AAMC_Raw_Data_for_FY22[[#This Row],[25th]]","v":0},{"$f":"(((AAMC_Raw_Data_for_FY22[[#This Row],[Median]]-AAMC_Raw_Data_for_FY22[[#This Row],[25th]])/25)*20) + AAMC_Raw_Data_for_FY22[[#This Row],[25th]]","v":0},null,{"$f":"(((AAMC_Raw_Data_for_FY22[[#This Row],[75th]]-AAMC_Raw_Data_for_FY22[[#This Row],[Median]])/25)*5) + AAMC_Raw_Data_for_FY22[[#This Row],[Median]]","v":0},{"$f":"(((AAMC_Raw_Data_for_FY22[[#This Row],[75th]]-AAMC_Raw_Data_for_FY22[[#This Row],[Median]])/25)*10) + AAMC_Raw_Data_for_FY22[[#This Row],[Median]]","v":0},{"$f":"(((AAMC_Raw_Data_for_FY22[[#This Row],[75th]]-AAMC_Raw_Data_for_FY22[[#This Row],[Median]])/25)*15) + AAMC_Raw_Data_for_FY22[[#This Row],[Median]]","v":0},{"$f":"(((AAMC_Raw_Data_for_FY22[[#This Row],[75th]]-AAMC_Raw_Data_for_FY22[[#This Row],[Median]])/25)*20) + AAMC_Raw_Data_for_FY22[[#This Row],[Median]]","v":0},null,{"$f":"(((AAMC_Raw_Data_for_FY22[[#This Row],[75th]]-AAMC_Raw_Data_for_FY22[[#This Row],[Median]])/25)*30) + AAMC_Raw_Data_for_FY22[[#This Row],[Median]]","v":0},{"$f":"(((AAMC_Raw_Data_for_FY22[[#This Row],[75th]]-AAMC_Raw_Data_for_FY22[[#This Row],[Median]])/25)*35) + AAMC_Raw_Data_for_FY22[[#This Row],[Median]]","v":0},{"$f":"(((AAMC_Raw_Data_for_FY22[[#This Row],[75th]]-AAMC_Raw_Data_for_FY22[[#This Row],[Median]])/25)*40) + AAMC_Raw_Data_for_FY22[[#This Row],[Median]]","v":0}]
[{"$f":"AAMC_Raw_Data_for_FY22[[#This Row],[Source]]&AAMC_Raw_Data_for_FY22[[#This Row],[Type]]&AAMC_Raw_Data_for_FY22[[#This Row],[School Subset]]&AAMC_Raw_Data_for_FY22[[#This Row],[Rank]]&AAMC_Raw_Data_for_FY22[[#This Row],[Degree]]&AAMC_Raw_Data_for_FY22[[#This Row],[Department / Specialty]]&\"L\"","v":"AAMCAcademicAllAssistantMDPreventive MedicineL"},"Preventive Medicine",4,"AAMC","Academic","All","Assistant","MD","2021-2022",187675,{"$f":"(((AAMC_Raw_Data_for_FY22[[#This Row],[Median]]-AAMC_Raw_Data_for_FY22[[#This Row],[25th]])/25)*5) + AAMC_Raw_Data_for_FY22[[#This Row],[25th]]","v":191524.6},{"$f":"(((AAMC_Raw_Data_for_FY22[[#This Row],[Median]]-AAMC_Raw_Data_for_FY22[[#This Row],[25th]])/25)*10) + AAMC_Raw_Data_for_FY22[[#This Row],[25th]]","v":195374.2},{"$f":"(((AAMC_Raw_Data_for_FY22[[#This Row],[Median]]-AAMC_Raw_Data_for_FY22[[#This Row],[25th]])/25)*15) + AAMC_Raw_Data_for_FY22[[#This Row],[25th]]","v":199223.8},{"$f":"(((AAMC_Raw_Data_for_FY22[[#This Row],[Median]]-AAMC_Raw_Data_for_FY22[[#This Row],[25th]])/25)*20) + AAMC_Raw_Data_for_FY22[[#This Row],[25th]]","v":203073.4},206923,{"$f":"(((AAMC_Raw_Data_for_FY22[[#This Row],[75th]]-AAMC_Raw_Data_for_FY22[[#This Row],[Median]])/25)*5) + AAMC_Raw_Data_for_FY22[[#This Row],[Median]]","v":213228.6},{"$f":"(((AAMC_Raw_Data_for_FY22[[#This Row],[75th]]-AAMC_Raw_Data_for_FY22[[#This Row],[Median]])/25)*10) + AAMC_Raw_Data_for_FY22[[#This Row],[Median]]","v":219534.2},{"$f":"(((AAMC_Raw_Data_for_FY22[[#This Row],[75th]]-AAMC_Raw_Data_for_FY22[[#This Row],[Median]])/25)*15) + AAMC_Raw_Data_for_FY22[[#This Row],[Median]]","v":225839.8},{"$f":"(((AAMC_Raw_Data_for_FY22[[#This Row],[75th]]-AAMC_Raw_Data_for_FY22[[#This Row],[Median]])/25)*20) + AAMC_Raw_Data_for_FY22[[#This Row],[Median]]","v":232145.4},238451,{"$f":"(((AAMC_Raw_Data_for_FY22[[#This Row],[75th]]-AAMC_Raw_Data_for_FY22[[#This Row],[Median]])/25)*30) + AAMC_Raw_Data_for_FY22[[#This Row],[Median]]","v":244756.6},{"$f":"(((AAMC_Raw_Data_for_FY22[[#This Row],[75th]]-AAMC_Raw_Data_for_FY22[[#This Row],[Median]])/25)*35) + AAMC_Raw_Data_for_FY22[[#This Row],[Median]]","v":251062.2},{"$f":"(((AAMC_Raw_Data_for_FY22[[#This Row],[75th]]-AAMC_Raw_Data_for_FY22[[#This Row],[Median]])/25)*40) + AAMC_Raw_Data_for_FY22[[#This Row],[Median]]","v":257367.8}]
[{"$f":"AAMC_Raw_Data_for_FY22[[#This Row],[Source]]&AAMC_Raw_Data_for_FY22[[#This Row],[Type]]&AAMC_Raw_Data_for_FY22[[#This Row],[School Subset]]&AAMC_Raw_Data_for_FY22[[#This Row],[Rank]]&AAMC_Raw_Data_for_FY22[[#This Row],[Degree]]&AAMC_Raw_Data_for_FY22[[#This Row],[Department / Specialty]]&\"L\"","v":"AAMCAcademicAllAssociateMDPreventive MedicineL"},"Preventive Medicine",3,"AAMC","Academic","All","Associate","MD","2021-2022",165910,{"$f":"(((AAMC_Raw_Data_for_FY22[[#This Row],[Median]]-AAMC_Raw_Data_for_FY22[[#This Row],[25th]])/25)*5) + AAMC_Raw_Data_for_FY22[[#This Row],[25th]]","v":178328},{"$f":"(((AAMC_Raw_Data_for_FY22[[#This Row],[Median]]-AAMC_Raw_Data_for_FY22[[#This Row],[25th]])/25)*10) + AAMC_Raw_Data_for_FY22[[#This Row],[25th]]","v":190746},{"$f":"(((AAMC_Raw_Data_for_FY22[[#This Row],[Median]]-AAMC_Raw_Data_for_FY22[[#This Row],[25th]])/25)*15) + AAMC_Raw_Data_for_FY22[[#This Row],[25th]]","v":203164},{"$f":"(((AAMC_Raw_Data_for_FY22[[#This Row],[Median]]-AAMC_Raw_Data_for_FY22[[#This Row],[25th]])/25)*20) + AAMC_Raw_Data_for_FY22[[#This Row],[25th]]","v":215582},228000,{"$f":"(((AAMC_Raw_Data_for_FY22[[#This Row],[75th]]-AAMC_Raw_Data_for_FY22[[#This Row],[Median]])/25)*5) + AAMC_Raw_Data_for_FY22[[#This Row],[Median]]","v":231330.2},{"$f":"(((AAMC_Raw_Data_for_FY22[[#This Row],[75th]]-AAMC_Raw_Data_for_FY22[[#This Row],[Median]])/25)*10) + AAMC_Raw_Data_for_FY22[[#This Row],[Median]]","v":234660.4},{"$f":"(((AAMC_Raw_Data_for_FY22[[#This Row],[75th]]-AAMC_Raw_Data_for_FY22[[#This Row],[Median]])/25)*15) + AAMC_Raw_Data_for_FY22[[#This Row],[Median]]","v":237990.6},{"$f":"(((AAMC_Raw_Data_for_FY22[[#This Row],[75th]]-AAMC_Raw_Data_for_FY22[[#This Row],[Median]])/25)*20) + AAMC_Raw_Data_for_FY22[[#This Row],[Median]]","v":241320.8},244651,{"$f":"(((AAMC_Raw_Data_for_FY22[[#This Row],[75th]]-AAMC_Raw_Data_for_FY22[[#This Row],[Median]])/25)*30) + AAMC_Raw_Data_for_FY22[[#This Row],[Median]]","v":247981.2},{"$f":"(((AAMC_Raw_Data_for_FY22[[#This Row],[75th]]-AAMC_Raw_Data_for_FY22[[#This Row],[Median]])/25)*35) + AAMC_Raw_Data_for_FY22[[#This Row],[Median]]","v":251311.4},{"$f":"(((AAMC_Raw_Data_for_FY22[[#This Row],[75th]]-AAMC_Raw_Data_for_FY22[[#This Row],[Median]])/25)*40) + AAMC_Raw_Data_for_FY22[[#This Row],[Median]]","v":254641.6}]
[{"$f":"AAMC_Raw_Data_for_FY22[[#This Row],[Source]]&AAMC_Raw_Data_for_FY22[[#This Row],[Type]]&AAMC_Raw_Data_for_FY22[[#This Row],[School Subset]]&AAMC_Raw_Data_for_FY22[[#This Row],[Rank]]&AAMC_Raw_Data_for_FY22[[#This Row],[Degree]]&AAMC_Raw_Data_for_FY22[[#This Row],[Department / Specialty]]&\"L\"","v":"AAMCAcademicAllProfessorMDPreventive MedicineL"},"Preventive Medicine",2,"AAMC","Academic","All","Professor","MD","2021-2022",250022,{"$f":"(((AAMC_Raw_Data_for_FY22[[#This Row],[Median]]-AAMC_Raw_Data_for_FY22[[#This Row],[25th]])/25)*5) + AAMC_Raw_Data_for_FY22[[#This Row],[25th]]","v":255283},{"$f":"(((AAMC_Raw_Data_for_FY22[[#This Row],[Median]]-AAMC_Raw_Data_for_FY22[[#This Row],[25th]])/25)*10) + AAMC_Raw_Data_for_FY22[[#This Row],[25th]]","v":260544},{"$f":"(((AAMC_Raw_Data_for_FY22[[#This Row],[Median]]-AAMC_Raw_Data_for_FY22[[#This Row],[25th]])/25)*15) + AAMC_Raw_Data_for_FY22[[#This Row],[25th]]","v":265805},{"$f":"(((AAMC_Raw_Data_for_FY22[[#This Row],[Median]]-AAMC_Raw_Data_for_FY22[[#This Row],[25th]])/25)*20) + AAMC_Raw_Data_for_FY22[[#This Row],[25th]]","v":271066},276327,{"$f":"(((AAMC_Raw_Data_for_FY22[[#This Row],[75th]]-AAMC_Raw_Data_for_FY22[[#This Row],[Median]])/25)*5) + AAMC_Raw_Data_for_FY22[[#This Row],[Median]]","v":287516.40000000002},{"$f":"(((AAMC_Raw_Data_for_FY22[[#This Row],[75th]]-AAMC_Raw_Data_for_FY22[[#This Row],[Median]])/25)*10) + AAMC_Raw_Data_for_FY22[[#This Row],[Median]]","v":298705.8},{"$f":"(((AAMC_Raw_Data_for_FY22[[#This Row],[75th]]-AAMC_Raw_Data_for_FY22[[#This Row],[Median]])/25)*15) + AAMC_Raw_Data_for_FY22[[#This Row],[Median]]","v":309895.2},{"$f":"(((AAMC_Raw_Data_for_FY22[[#This Row],[75th]]-AAMC_Raw_Data_for_FY22[[#This Row],[Median]])/25)*20) + AAMC_Raw_Data_for_FY22[[#This Row],[Median]]","v":321084.59999999998},332274,{"$f":"(((AAMC_Raw_Data_for_FY22[[#This Row],[75th]]-AAMC_Raw_Data_for_FY22[[#This Row],[Median]])/25)*30) + AAMC_Raw_Data_for_FY22[[#This Row],[Median]]","v":343463.4},{"$f":"(((AAMC_Raw_Data_for_FY22[[#This Row],[75th]]-AAMC_Raw_Data_for_FY22[[#This Row],[Median]])/25)*35) + AAMC_Raw_Data_for_FY22[[#This Row],[Median]]","v":354652.8},{"$f":"(((AAMC_Raw_Data_for_FY22[[#This Row],[75th]]-AAMC_Raw_Data_for_FY22[[#This Row],[Median]])/25)*40) + AAMC_Raw_Data_for_FY22[[#This Row],[Median]]","v":365842.2}]
[{"$f":"AAMC_Raw_Data_for_FY22[[#This Row],[Source]]&AAMC_Raw_Data_for_FY22[[#This Row],[Type]]&AAMC_Raw_Data_for_FY22[[#This Row],[School Subset]]&AAMC_Raw_Data_for_FY22[[#This Row],[Rank]]&AAMC_Raw_Data_for_FY22[[#This Row],[Degree]]&AAMC_Raw_Data_for_FY22[[#This Row],[Department / Specialty]]&\"L\"","v":"AAMCAcademicAllChiefMDPreventive MedicineL"},"Preventive Medicine",6,"AAMC","Academic","All","Chief","MD","2021-2022",275539,{"$f":"(((AAMC_Raw_Data_for_FY22[[#This Row],[Median]]-AAMC_Raw_Data_for_FY22[[#This Row],[25th]])/25)*5) + AAMC_Raw_Data_for_FY22[[#This Row],[25th]]","v":277450.2},{"$f":"(((AAMC_Raw_Data_for_FY22[[#This Row],[Median]]-AAMC_Raw_Data_for_FY22[[#This Row],[25th]])/25)*10) + AAMC_Raw_Data_for_FY22[[#This Row],[25th]]","v":279361.40000000002},{"$f":"(((AAMC_Raw_Data_for_FY22[[#This Row],[Median]]-AAMC_Raw_Data_for_FY22[[#This Row],[25th]])/25)*15) + AAMC_Raw_Data_for_FY22[[#This Row],[25th]]","v":281272.59999999998},{"$f":"(((AAMC_Raw_Data_for_FY22[[#This Row],[Median]]-AAMC_Raw_Data_for_FY22[[#This Row],[25th]])/25)*20) + AAMC_Raw_Data_for_FY22[[#This Row],[25th]]","v":283183.8},285095,{"$f":"(((AAMC_Raw_Data_for_FY22[[#This Row],[75th]]-AAMC_Raw_Data_for_FY22[[#This Row],[Median]])/25)*5) + AAMC_Raw_Data_for_FY22[[#This Row],[Median]]","v":298988.59999999998},{"$f":"(((AAMC_Raw_Data_for_FY22[[#This Row],[75th]]-AAMC_Raw_Data_for_FY22[[#This Row],[Median]])/25)*10) + AAMC_Raw_Data_for_FY22[[#This Row],[Median]]","v":312882.2},{"$f":"(((AAMC_Raw_Data_for_FY22[[#This Row],[75th]]-AAMC_Raw_Data_for_FY22[[#This Row],[Median]])/25)*15) + AAMC_Raw_Data_for_FY22[[#This Row],[Median]]","v":326775.8},{"$f":"(((AAMC_Raw_Data_for_FY22[[#This Row],[75th]]-AAMC_Raw_Data_for_FY22[[#This Row],[Median]])/25)*20) + AAMC_Raw_Data_for_FY22[[#This Row],[Median]]","v":340669.4},354563,{"$f":"(((AAMC_Raw_Data_for_FY22[[#This Row],[75th]]-AAMC_Raw_Data_for_FY22[[#This Row],[Median]])/25)*30) + AAMC_Raw_Data_for_FY22[[#This Row],[Median]]","v":368456.6},{"$f":"(((AAMC_Raw_Data_for_FY22[[#This Row],[75th]]-AAMC_Raw_Data_for_FY22[[#This Row],[Median]])/25)*35) + AAMC_Raw_Data_for_FY22[[#This Row],[Median]]","v":382350.2},{"$f":"(((AAMC_Raw_Data_for_FY22[[#This Row],[75th]]-AAMC_Raw_Data_for_FY22[[#This Row],[Median]])/25)*40) + AAMC_Raw_Data_for_FY22[[#This Row],[Median]]","v":396243.8}]
[{"$f":"AAMC_Raw_Data_for_FY22[[#This Row],[Source]]&AAMC_Raw_Data_for_FY22[[#This Row],[Type]]&AAMC_Raw_Data_for_FY22[[#This Row],[School Subset]]&AAMC_Raw_Data_for_FY22[[#This Row],[Rank]]&AAMC_Raw_Data_for_FY22[[#This Row],[Degree]]&AAMC_Raw_Data_for_FY22[[#This Row],[Department / Specialty]]&\"L\"","v":"AAMCAcademicAllChairMDPreventive MedicineL"},"Preventive Medicine",1,"AAMC","Academic","All","Chair","MD","2021-2022",null,{"$f":"(((AAMC_Raw_Data_for_FY22[[#This Row],[Median]]-AAMC_Raw_Data_for_FY22[[#This Row],[25th]])/25)*5) + AAMC_Raw_Data_for_FY22[[#This Row],[25th]]","v":0},{"$f":"(((AAMC_Raw_Data_for_FY22[[#This Row],[Median]]-AAMC_Raw_Data_for_FY22[[#This Row],[25th]])/25)*10) + AAMC_Raw_Data_for_FY22[[#This Row],[25th]]","v":0},{"$f":"(((AAMC_Raw_Data_for_FY22[[#This Row],[Median]]-AAMC_Raw_Data_for_FY22[[#This Row],[25th]])/25)*15) + AAMC_Raw_Data_for_FY22[[#This Row],[25th]]","v":0},{"$f":"(((AAMC_Raw_Data_for_FY22[[#This Row],[Median]]-AAMC_Raw_Data_for_FY22[[#This Row],[25th]])/25)*20) + AAMC_Raw_Data_for_FY22[[#This Row],[25th]]","v":0},null,{"$f":"(((AAMC_Raw_Data_for_FY22[[#This Row],[75th]]-AAMC_Raw_Data_for_FY22[[#This Row],[Median]])/25)*5) + AAMC_Raw_Data_for_FY22[[#This Row],[Median]]","v":0},{"$f":"(((AAMC_Raw_Data_for_FY22[[#This Row],[75th]]-AAMC_Raw_Data_for_FY22[[#This Row],[Median]])/25)*10) + AAMC_Raw_Data_for_FY22[[#This Row],[Median]]","v":0},{"$f":"(((AAMC_Raw_Data_for_FY22[[#This Row],[75th]]-AAMC_Raw_Data_for_FY22[[#This Row],[Median]])/25)*15) + AAMC_Raw_Data_for_FY22[[#This Row],[Median]]","v":0},{"$f":"(((AAMC_Raw_Data_for_FY22[[#This Row],[75th]]-AAMC_Raw_Data_for_FY22[[#This Row],[Median]])/25)*20) + AAMC_Raw_Data_for_FY22[[#This Row],[Median]]","v":0},null,{"$f":"(((AAMC_Raw_Data_for_FY22[[#This Row],[75th]]-AAMC_Raw_Data_for_FY22[[#This Row],[Median]])/25)*30) + AAMC_Raw_Data_for_FY22[[#This Row],[Median]]","v":0},{"$f":"(((AAMC_Raw_Data_for_FY22[[#This Row],[75th]]-AAMC_Raw_Data_for_FY22[[#This Row],[Median]])/25)*35) + AAMC_Raw_Data_for_FY22[[#This Row],[Median]]","v":0},{"$f":"(((AAMC_Raw_Data_for_FY22[[#This Row],[75th]]-AAMC_Raw_Data_for_FY22[[#This Row],[Median]])/25)*40) + AAMC_Raw_Data_for_FY22[[#This Row],[Median]]","v":0}]
[{"$f":"AAMC_Raw_Data_for_FY22[[#This Row],[Source]]&AAMC_Raw_Data_for_FY22[[#This Row],[Type]]&AAMC_Raw_Data_for_FY22[[#This Row],[School Subset]]&AAMC_Raw_Data_for_FY22[[#This Row],[Rank]]&AAMC_Raw_Data_for_FY22[[#This Row],[Degree]]&AAMC_Raw_Data_for_FY22[[#This Row],[Department / Specialty]]&\"L\"","v":"AAMCAcademicAllInstructorMDOther Clinical SciencesL"},"Other Clinical Sciences",5,"AAMC","Academic","All","Instructor","MD","2021-2022",117217,{"$f":"(((AAMC_Raw_Data_for_FY22[[#This Row],[Median]]-AAMC_Raw_Data_for_FY22[[#This Row],[25th]])/25)*5) + AAMC_Raw_Data_for_FY22[[#This Row],[25th]]","v":129605.2},{"$f":"(((AAMC_Raw_Data_for_FY22[[#This Row],[Median]]-AAMC_Raw_Data_for_FY22[[#This Row],[25th]])/25)*10) + AAMC_Raw_Data_for_FY22[[#This Row],[25th]]","v":141993.4},{"$f":"(((AAMC_Raw_Data_for_FY22[[#This Row],[Median]]-AAMC_Raw_Data_for_FY22[[#This Row],[25th]])/25)*15) + AAMC_Raw_Data_for_FY22[[#This Row],[25th]]","v":154381.6},{"$f":"(((AAMC_Raw_Data_for_FY22[[#This Row],[Median]]-AAMC_Raw_Data_for_FY22[[#This Row],[25th]])/25)*20) + AAMC_Raw_Data_for_FY22[[#This Row],[25th]]","v":166769.79999999999},179158,{"$f":"(((AAMC_Raw_Data_for_FY22[[#This Row],[75th]]-AAMC_Raw_Data_for_FY22[[#This Row],[Median]])/25)*5) + AAMC_Raw_Data_for_FY22[[#This Row],[Median]]","v":203720.2},{"$f":"(((AAMC_Raw_Data_for_FY22[[#This Row],[75th]]-AAMC_Raw_Data_for_FY22[[#This Row],[Median]])/25)*10) + AAMC_Raw_Data_for_FY22[[#This Row],[Median]]","v":228282.4},{"$f":"(((AAMC_Raw_Data_for_FY22[[#This Row],[75th]]-AAMC_Raw_Data_for_FY22[[#This Row],[Median]])/25)*15) + AAMC_Raw_Data_for_FY22[[#This Row],[Median]]","v":252844.59999999998},{"$f":"(((AAMC_Raw_Data_for_FY22[[#This Row],[75th]]-AAMC_Raw_Data_for_FY22[[#This Row],[Median]])/25)*20) + AAMC_Raw_Data_for_FY22[[#This Row],[Median]]","v":277406.8},301969,{"$f":"(((AAMC_Raw_Data_for_FY22[[#This Row],[75th]]-AAMC_Raw_Data_for_FY22[[#This Row],[Median]])/25)*30) + AAMC_Raw_Data_for_FY22[[#This Row],[Median]]","v":326531.19999999995},{"$f":"(((AAMC_Raw_Data_for_FY22[[#This Row],[75th]]-AAMC_Raw_Data_for_FY22[[#This Row],[Median]])/25)*35) + AAMC_Raw_Data_for_FY22[[#This Row],[Median]]","v":351093.4},{"$f":"(((AAMC_Raw_Data_for_FY22[[#This Row],[75th]]-AAMC_Raw_Data_for_FY22[[#This Row],[Median]])/25)*40) + AAMC_Raw_Data_for_FY22[[#This Row],[Median]]","v":375655.6}]
[{"$f":"AAMC_Raw_Data_for_FY22[[#This Row],[Source]]&AAMC_Raw_Data_for_FY22[[#This Row],[Type]]&AAMC_Raw_Data_for_FY22[[#This Row],[School Subset]]&AAMC_Raw_Data_for_FY22[[#This Row],[Rank]]&AAMC_Raw_Data_for_FY22[[#This Row],[Degree]]&AAMC_Raw_Data_for_FY22[[#This Row],[Department / Specialty]]&\"L\"","v":"AAMCAcademicAllAssistantMDOther Clinical SciencesL"},"Other Clinical Sciences",4,"AAMC","Academic","All","Assistant","MD","2021-2022",153705,{"$f":"(((AAMC_Raw_Data_for_FY22[[#This Row],[Median]]-AAMC_Raw_Data_for_FY22[[#This Row],[25th]])/25)*5) + AAMC_Raw_Data_for_FY22[[#This Row],[25th]]","v":164380},{"$f":"(((AAMC_Raw_Data_for_FY22[[#This Row],[Median]]-AAMC_Raw_Data_for_FY22[[#This Row],[25th]])/25)*10) + AAMC_Raw_Data_for_FY22[[#This Row],[25th]]","v":175055},{"$f":"(((AAMC_Raw_Data_for_FY22[[#This Row],[Median]]-AAMC_Raw_Data_for_FY22[[#This Row],[25th]])/25)*15) + AAMC_Raw_Data_for_FY22[[#This Row],[25th]]","v":185730},{"$f":"(((AAMC_Raw_Data_for_FY22[[#This Row],[Median]]-AAMC_Raw_Data_for_FY22[[#This Row],[25th]])/25)*20) + AAMC_Raw_Data_for_FY22[[#This Row],[25th]]","v":196405},207080,{"$f":"(((AAMC_Raw_Data_for_FY22[[#This Row],[75th]]-AAMC_Raw_Data_for_FY22[[#This Row],[Median]])/25)*5) + AAMC_Raw_Data_for_FY22[[#This Row],[Median]]","v":223402.6},{"$f":"(((AAMC_Raw_Data_for_FY22[[#This Row],[75th]]-AAMC_Raw_Data_for_FY22[[#This Row],[Median]])/25)*10) + AAMC_Raw_Data_for_FY22[[#This Row],[Median]]","v":239725.2},{"$f":"(((AAMC_Raw_Data_for_FY22[[#This Row],[75th]]-AAMC_Raw_Data_for_FY22[[#This Row],[Median]])/25)*15) + AAMC_Raw_Data_for_FY22[[#This Row],[Median]]","v":256047.8},{"$f":"(((AAMC_Raw_Data_for_FY22[[#This Row],[75th]]-AAMC_Raw_Data_for_FY22[[#This Row],[Median]])/25)*20) + AAMC_Raw_Data_for_FY22[[#This Row],[Median]]","v":272370.40000000002},288693,{"$f":"(((AAMC_Raw_Data_for_FY22[[#This Row],[75th]]-AAMC_Raw_Data_for_FY22[[#This Row],[Median]])/25)*30) + AAMC_Raw_Data_for_FY22[[#This Row],[Median]]","v":305015.59999999998},{"$f":"(((AAMC_Raw_Data_for_FY22[[#This Row],[75th]]-AAMC_Raw_Data_for_FY22[[#This Row],[Median]])/25)*35) + AAMC_Raw_Data_for_FY22[[#This Row],[Median]]","v":321338.2},{"$f":"(((AAMC_Raw_Data_for_FY22[[#This Row],[75th]]-AAMC_Raw_Data_for_FY22[[#This Row],[Median]])/25)*40) + AAMC_Raw_Data_for_FY22[[#This Row],[Median]]","v":337660.8}]
[{"$f":"AAMC_Raw_Data_for_FY22[[#This Row],[Source]]&AAMC_Raw_Data_for_FY22[[#This Row],[Type]]&AAMC_Raw_Data_for_FY22[[#This Row],[School Subset]]&AAMC_Raw_Data_for_FY22[[#This Row],[Rank]]&AAMC_Raw_Data_for_FY22[[#This Row],[Degree]]&AAMC_Raw_Data_for_FY22[[#This Row],[Department / Specialty]]&\"L\"","v":"AAMCAcademicAllAssociateMDOther Clinical SciencesL"},"Other Clinical Sciences",3,"AAMC","Academic","All","Associate","MD","2021-2022",199765,{"$f":"(((AAMC_Raw_Data_for_FY22[[#This Row],[Median]]-AAMC_Raw_Data_for_FY22[[#This Row],[25th]])/25)*5) + AAMC_Raw_Data_for_FY22[[#This Row],[25th]]","v":211069.4},{"$f":"(((AAMC_Raw_Data_for_FY22[[#This Row],[Median]]-AAMC_Raw_Data_for_FY22[[#This Row],[25th]])/25)*10) + AAMC_Raw_Data_for_FY22[[#This Row],[25th]]","v":222373.8},{"$f":"(((AAMC_Raw_Data_for_FY22[[#This Row],[Median]]-AAMC_Raw_Data_for_FY22[[#This Row],[25th]])/25)*15) + AAMC_Raw_Data_for_FY22[[#This Row],[25th]]","v":233678.2},{"$f":"(((AAMC_Raw_Data_for_FY22[[#This Row],[Median]]-AAMC_Raw_Data_for_FY22[[#This Row],[25th]])/25)*20) + AAMC_Raw_Data_for_FY22[[#This Row],[25th]]","v":244982.6},256287,{"$f":"(((AAMC_Raw_Data_for_FY22[[#This Row],[75th]]-AAMC_Raw_Data_for_FY22[[#This Row],[Median]])/25)*5) + AAMC_Raw_Data_for_FY22[[#This Row],[Median]]","v":289429.59999999998},{"$f":"(((AAMC_Raw_Data_for_FY22[[#This Row],[75th]]-AAMC_Raw_Data_for_FY22[[#This Row],[Median]])/25)*10) + AAMC_Raw_Data_for_FY22[[#This Row],[Median]]","v":322572.2},{"$f":"(((AAMC_Raw_Data_for_FY22[[#This Row],[75th]]-AAMC_Raw_Data_for_FY22[[#This Row],[Median]])/25)*15) + AAMC_Raw_Data_for_FY22[[#This Row],[Median]]","v":355714.8},{"$f":"(((AAMC_Raw_Data_for_FY22[[#This Row],[75th]]-AAMC_Raw_Data_for_FY22[[#This Row],[Median]])/25)*20) + AAMC_Raw_Data_for_FY22[[#This Row],[Median]]","v":388857.4},422000,{"$f":"(((AAMC_Raw_Data_for_FY22[[#This Row],[75th]]-AAMC_Raw_Data_for_FY22[[#This Row],[Median]])/25)*30) + AAMC_Raw_Data_for_FY22[[#This Row],[Median]]","v":455142.6},{"$f":"(((AAMC_Raw_Data_for_FY22[[#This Row],[75th]]-AAMC_Raw_Data_for_FY22[[#This Row],[Median]])/25)*35) + AAMC_Raw_Data_for_FY22[[#This Row],[Median]]","v":488285.2},{"$f":"(((AAMC_Raw_Data_for_FY22[[#This Row],[75th]]-AAMC_Raw_Data_for_FY22[[#This Row],[Median]])/25)*40) + AAMC_Raw_Data_for_FY22[[#This Row],[Median]]","v":521427.80000000005}]
[{"$f":"AAMC_Raw_Data_for_FY22[[#This Row],[Source]]&AAMC_Raw_Data_for_FY22[[#This Row],[Type]]&AAMC_Raw_Data_for_FY22[[#This Row],[School Subset]]&AAMC_Raw_Data_for_FY22[[#This Row],[Rank]]&AAMC_Raw_Data_for_FY22[[#This Row],[Degree]]&AAMC_Raw_Data_for_FY22[[#This Row],[Department / Specialty]]&\"L\"","v":"AAMCAcademicAllProfessorMDOther Clinical SciencesL"},"Other Clinical Sciences",2,"AAMC","Academic","All","Professor","MD","2021-2022",212967,{"$f":"(((AAMC_Raw_Data_for_FY22[[#This Row],[Median]]-AAMC_Raw_Data_for_FY22[[#This Row],[25th]])/25)*5) + AAMC_Raw_Data_for_FY22[[#This Row],[25th]]","v":227205.8},{"$f":"(((AAMC_Raw_Data_for_FY22[[#This Row],[Median]]-AAMC_Raw_Data_for_FY22[[#This Row],[25th]])/25)*10) + AAMC_Raw_Data_for_FY22[[#This Row],[25th]]","v":241444.6},{"$f":"(((AAMC_Raw_Data_for_FY22[[#This Row],[Median]]-AAMC_Raw_Data_for_FY22[[#This Row],[25th]])/25)*15) + AAMC_Raw_Data_for_FY22[[#This Row],[25th]]","v":255683.4},{"$f":"(((AAMC_Raw_Data_for_FY22[[#This Row],[Median]]-AAMC_Raw_Data_for_FY22[[#This Row],[25th]])/25)*20) + AAMC_Raw_Data_for_FY22[[#This Row],[25th]]","v":269922.2},284161,{"$f":"(((AAMC_Raw_Data_for_FY22[[#This Row],[75th]]-AAMC_Raw_Data_for_FY22[[#This Row],[Median]])/25)*5) + AAMC_Raw_Data_for_FY22[[#This Row],[Median]]","v":303474.59999999998},{"$f":"(((AAMC_Raw_Data_for_FY22[[#This Row],[75th]]-AAMC_Raw_Data_for_FY22[[#This Row],[Median]])/25)*10) + AAMC_Raw_Data_for_FY22[[#This Row],[Median]]","v":322788.2},{"$f":"(((AAMC_Raw_Data_for_FY22[[#This Row],[75th]]-AAMC_Raw_Data_for_FY22[[#This Row],[Median]])/25)*15) + AAMC_Raw_Data_for_FY22[[#This Row],[Median]]","v":342101.8},{"$f":"(((AAMC_Raw_Data_for_FY22[[#This Row],[75th]]-AAMC_Raw_Data_for_FY22[[#This Row],[Median]])/25)*20) + AAMC_Raw_Data_for_FY22[[#This Row],[Median]]","v":361415.4},380729,{"$f":"(((AAMC_Raw_Data_for_FY22[[#This Row],[75th]]-AAMC_Raw_Data_for_FY22[[#This Row],[Median]])/25)*30) + AAMC_Raw_Data_for_FY22[[#This Row],[Median]]","v":400042.6},{"$f":"(((AAMC_Raw_Data_for_FY22[[#This Row],[75th]]-AAMC_Raw_Data_for_FY22[[#This Row],[Median]])/25)*35) + AAMC_Raw_Data_for_FY22[[#This Row],[Median]]","v":419356.19999999995},{"$f":"(((AAMC_Raw_Data_for_FY22[[#This Row],[75th]]-AAMC_Raw_Data_for_FY22[[#This Row],[Median]])/25)*40) + AAMC_Raw_Data_for_FY22[[#This Row],[Median]]","v":438669.8}]
[{"$f":"AAMC_Raw_Data_for_FY22[[#This Row],[Source]]&AAMC_Raw_Data_for_FY22[[#This Row],[Type]]&AAMC_Raw_Data_for_FY22[[#This Row],[School Subset]]&AAMC_Raw_Data_for_FY22[[#This Row],[Rank]]&AAMC_Raw_Data_for_FY22[[#This Row],[Degree]]&AAMC_Raw_Data_for_FY22[[#This Row],[Department / Specialty]]&\"L\"","v":"AAMCAcademicAllChiefMDOther Clinical SciencesL"},"Other Clinical Sciences",6,"AAMC","Academic","All","Chief","MD","2021-2022",null,{"$f":"(((AAMC_Raw_Data_for_FY22[[#This Row],[Median]]-AAMC_Raw_Data_for_FY22[[#This Row],[25th]])/25)*5) + AAMC_Raw_Data_for_FY22[[#This Row],[25th]]","v":0},{"$f":"(((AAMC_Raw_Data_for_FY22[[#This Row],[Median]]-AAMC_Raw_Data_for_FY22[[#This Row],[25th]])/25)*10) + AAMC_Raw_Data_for_FY22[[#This Row],[25th]]","v":0},{"$f":"(((AAMC_Raw_Data_for_FY22[[#This Row],[Median]]-AAMC_Raw_Data_for_FY22[[#This Row],[25th]])/25)*15) + AAMC_Raw_Data_for_FY22[[#This Row],[25th]]","v":0},{"$f":"(((AAMC_Raw_Data_for_FY22[[#This Row],[Median]]-AAMC_Raw_Data_for_FY22[[#This Row],[25th]])/25)*20) + AAMC_Raw_Data_for_FY22[[#This Row],[25th]]","v":0},null,{"$f":"(((AAMC_Raw_Data_for_FY22[[#This Row],[75th]]-AAMC_Raw_Data_for_FY22[[#This Row],[Median]])/25)*5) + AAMC_Raw_Data_for_FY22[[#This Row],[Median]]","v":0},{"$f":"(((AAMC_Raw_Data_for_FY22[[#This Row],[75th]]-AAMC_Raw_Data_for_FY22[[#This Row],[Median]])/25)*10) + AAMC_Raw_Data_for_FY22[[#This Row],[Median]]","v":0},{"$f":"(((AAMC_Raw_Data_for_FY22[[#This Row],[75th]]-AAMC_Raw_Data_for_FY22[[#This Row],[Median]])/25)*15) + AAMC_Raw_Data_for_FY22[[#This Row],[Median]]","v":0},{"$f":"(((AAMC_Raw_Data_for_FY22[[#This Row],[75th]]-AAMC_Raw_Data_for_FY22[[#This Row],[Median]])/25)*20) + AAMC_Raw_Data_for_FY22[[#This Row],[Median]]","v":0},null,{"$f":"(((AAMC_Raw_Data_for_FY22[[#This Row],[75th]]-AAMC_Raw_Data_for_FY22[[#This Row],[Median]])/25)*30) + AAMC_Raw_Data_for_FY22[[#This Row],[Median]]","v":0},{"$f":"(((AAMC_Raw_Data_for_FY22[[#This Row],[75th]]-AAMC_Raw_Data_for_FY22[[#This Row],[Median]])/25)*35) + AAMC_Raw_Data_for_FY22[[#This Row],[Median]]","v":0},{"$f":"(((AAMC_Raw_Data_for_FY22[[#This Row],[75th]]-AAMC_Raw_Data_for_FY22[[#This Row],[Median]])/25)*40) + AAMC_Raw_Data_for_FY22[[#This Row],[Median]]","v":0}]
[{"$f":"AAMC_Raw_Data_for_FY22[[#This Row],[Source]]&AAMC_Raw_Data_for_FY22[[#This Row],[Type]]&AAMC_Raw_Data_for_FY22[[#This Row],[School Subset]]&AAMC_Raw_Data_for_FY22[[#This Row],[Rank]]&AAMC_Raw_Data_for_FY22[[#This Row],[Degree]]&AAMC_Raw_Data_for_FY22[[#This Row],[Department / Specialty]]&\"L\"","v":"AAMCAcademicAllChairMDOther Clinical SciencesL"},"Other Clinical Sciences",1,"AAMC","Academic","All","Chair","MD","2021-2022",302459,{"$f":"(((AAMC_Raw_Data_for_FY22[[#This Row],[Median]]-AAMC_Raw_Data_for_FY22[[#This Row],[25th]])/25)*5) + AAMC_Raw_Data_for_FY22[[#This Row],[25th]]","v":324271.8},{"$f":"(((AAMC_Raw_Data_for_FY22[[#This Row],[Median]]-AAMC_Raw_Data_for_FY22[[#This Row],[25th]])/25)*10) + AAMC_Raw_Data_for_FY22[[#This Row],[25th]]","v":346084.6},{"$f":"(((AAMC_Raw_Data_for_FY22[[#This Row],[Median]]-AAMC_Raw_Data_for_FY22[[#This Row],[25th]])/25)*15) + AAMC_Raw_Data_for_FY22[[#This Row],[25th]]","v":367897.4},{"$f":"(((AAMC_Raw_Data_for_FY22[[#This Row],[Median]]-AAMC_Raw_Data_for_FY22[[#This Row],[25th]])/25)*20) + AAMC_Raw_Data_for_FY22[[#This Row],[25th]]","v":389710.2},411523,{"$f":"(((AAMC_Raw_Data_for_FY22[[#This Row],[75th]]-AAMC_Raw_Data_for_FY22[[#This Row],[Median]])/25)*5) + AAMC_Raw_Data_for_FY22[[#This Row],[Median]]","v":431967.8},{"$f":"(((AAMC_Raw_Data_for_FY22[[#This Row],[75th]]-AAMC_Raw_Data_for_FY22[[#This Row],[Median]])/25)*10) + AAMC_Raw_Data_for_FY22[[#This Row],[Median]]","v":452412.6},{"$f":"(((AAMC_Raw_Data_for_FY22[[#This Row],[75th]]-AAMC_Raw_Data_for_FY22[[#This Row],[Median]])/25)*15) + AAMC_Raw_Data_for_FY22[[#This Row],[Median]]","v":472857.4},{"$f":"(((AAMC_Raw_Data_for_FY22[[#This Row],[75th]]-AAMC_Raw_Data_for_FY22[[#This Row],[Median]])/25)*20) + AAMC_Raw_Data_for_FY22[[#This Row],[Median]]","v":493302.2},513747,{"$f":"(((AAMC_Raw_Data_for_FY22[[#This Row],[75th]]-AAMC_Raw_Data_for_FY22[[#This Row],[Median]])/25)*30) + AAMC_Raw_Data_for_FY22[[#This Row],[Median]]","v":534191.80000000005},{"$f":"(((AAMC_Raw_Data_for_FY22[[#This Row],[75th]]-AAMC_Raw_Data_for_FY22[[#This Row],[Median]])/25)*35) + AAMC_Raw_Data_for_FY22[[#This Row],[Median]]","v":554636.6},{"$f":"(((AAMC_Raw_Data_for_FY22[[#This Row],[75th]]-AAMC_Raw_Data_for_FY22[[#This Row],[Median]])/25)*40) + AAMC_Raw_Data_for_FY22[[#This Row],[Median]]","v":575081.4}]
[{"$f":"AAMC_Raw_Data_for_FY22[[#This Row],[Source]]&AAMC_Raw_Data_for_FY22[[#This Row],[Type]]&AAMC_Raw_Data_for_FY22[[#This Row],[School Subset]]&AAMC_Raw_Data_for_FY22[[#This Row],[Rank]]&AAMC_Raw_Data_for_FY22[[#This Row],[Degree]]&AAMC_Raw_Data_for_FY22[[#This Row],[Department / Specialty]]&\"L\"","v":"AAMCAcademicPrivateInstructorMDClinical Sciences TotalL"},"Clinical Sciences Total",5,"AAMC","Academic","Private","Instructor","MD","2021-2022",172114,{"$f":"(((AAMC_Raw_Data_for_FY22[[#This Row],[Median]]-AAMC_Raw_Data_for_FY22[[#This Row],[25th]])/25)*5) + AAMC_Raw_Data_for_FY22[[#This Row],[25th]]","v":184383.6},{"$f":"(((AAMC_Raw_Data_for_FY22[[#This Row],[Median]]-AAMC_Raw_Data_for_FY22[[#This Row],[25th]])/25)*10) + AAMC_Raw_Data_for_FY22[[#This Row],[25th]]","v":196653.2},{"$f":"(((AAMC_Raw_Data_for_FY22[[#This Row],[Median]]-AAMC_Raw_Data_for_FY22[[#This Row],[25th]])/25)*15) + AAMC_Raw_Data_for_FY22[[#This Row],[25th]]","v":208922.8},{"$f":"(((AAMC_Raw_Data_for_FY22[[#This Row],[Median]]-AAMC_Raw_Data_for_FY22[[#This Row],[25th]])/25)*20) + AAMC_Raw_Data_for_FY22[[#This Row],[25th]]","v":221192.4},233462,{"$f":"(((AAMC_Raw_Data_for_FY22[[#This Row],[75th]]-AAMC_Raw_Data_for_FY22[[#This Row],[Median]])/25)*5) + AAMC_Raw_Data_for_FY22[[#This Row],[Median]]","v":250658},{"$f":"(((AAMC_Raw_Data_for_FY22[[#This Row],[75th]]-AAMC_Raw_Data_for_FY22[[#This Row],[Median]])/25)*10) + AAMC_Raw_Data_for_FY22[[#This Row],[Median]]","v":267854},{"$f":"(((AAMC_Raw_Data_for_FY22[[#This Row],[75th]]-AAMC_Raw_Data_for_FY22[[#This Row],[Median]])/25)*15) + AAMC_Raw_Data_for_FY22[[#This Row],[Median]]","v":285050},{"$f":"(((AAMC_Raw_Data_for_FY22[[#This Row],[75th]]-AAMC_Raw_Data_for_FY22[[#This Row],[Median]])/25)*20) + AAMC_Raw_Data_for_FY22[[#This Row],[Median]]","v":302246},319442,{"$f":"(((AAMC_Raw_Data_for_FY22[[#This Row],[75th]]-AAMC_Raw_Data_for_FY22[[#This Row],[Median]])/25)*30) + AAMC_Raw_Data_for_FY22[[#This Row],[Median]]","v":336638},{"$f":"(((AAMC_Raw_Data_for_FY22[[#This Row],[75th]]-AAMC_Raw_Data_for_FY22[[#This Row],[Median]])/25)*35) + AAMC_Raw_Data_for_FY22[[#This Row],[Median]]","v":353834},{"$f":"(((AAMC_Raw_Data_for_FY22[[#This Row],[75th]]-AAMC_Raw_Data_for_FY22[[#This Row],[Median]])/25)*40) + AAMC_Raw_Data_for_FY22[[#This Row],[Median]]","v":371030}]
[{"$f":"AAMC_Raw_Data_for_FY22[[#This Row],[Source]]&AAMC_Raw_Data_for_FY22[[#This Row],[Type]]&AAMC_Raw_Data_for_FY22[[#This Row],[School Subset]]&AAMC_Raw_Data_for_FY22[[#This Row],[Rank]]&AAMC_Raw_Data_for_FY22[[#This Row],[Degree]]&AAMC_Raw_Data_for_FY22[[#This Row],[Department / Specialty]]&\"L\"","v":"AAMCAcademicPrivateAssistantMDClinical Sciences TotalL"},"Clinical Sciences Total",4,"AAMC","Academic","Private","Assistant","MD","2021-2022",223999,{"$f":"(((AAMC_Raw_Data_for_FY22[[#This Row],[Median]]-AAMC_Raw_Data_for_FY22[[#This Row],[25th]])/25)*5) + AAMC_Raw_Data_for_FY22[[#This Row],[25th]]","v":236399.2},{"$f":"(((AAMC_Raw_Data_for_FY22[[#This Row],[Median]]-AAMC_Raw_Data_for_FY22[[#This Row],[25th]])/25)*10) + AAMC_Raw_Data_for_FY22[[#This Row],[25th]]","v":248799.4},{"$f":"(((AAMC_Raw_Data_for_FY22[[#This Row],[Median]]-AAMC_Raw_Data_for_FY22[[#This Row],[25th]])/25)*15) + AAMC_Raw_Data_for_FY22[[#This Row],[25th]]","v":261199.6},{"$f":"(((AAMC_Raw_Data_for_FY22[[#This Row],[Median]]-AAMC_Raw_Data_for_FY22[[#This Row],[25th]])/25)*20) + AAMC_Raw_Data_for_FY22[[#This Row],[25th]]","v":273599.8},286000,{"$f":"(((AAMC_Raw_Data_for_FY22[[#This Row],[75th]]-AAMC_Raw_Data_for_FY22[[#This Row],[Median]])/25)*5) + AAMC_Raw_Data_for_FY22[[#This Row],[Median]]","v":306672.2},{"$f":"(((AAMC_Raw_Data_for_FY22[[#This Row],[75th]]-AAMC_Raw_Data_for_FY22[[#This Row],[Median]])/25)*10) + AAMC_Raw_Data_for_FY22[[#This Row],[Median]]","v":327344.40000000002},{"$f":"(((AAMC_Raw_Data_for_FY22[[#This Row],[75th]]-AAMC_Raw_Data_for_FY22[[#This Row],[Median]])/25)*15) + AAMC_Raw_Data_for_FY22[[#This Row],[Median]]","v":348016.6},{"$f":"(((AAMC_Raw_Data_for_FY22[[#This Row],[75th]]-AAMC_Raw_Data_for_FY22[[#This Row],[Median]])/25)*20) + AAMC_Raw_Data_for_FY22[[#This Row],[Median]]","v":368688.8},389361,{"$f":"(((AAMC_Raw_Data_for_FY22[[#This Row],[75th]]-AAMC_Raw_Data_for_FY22[[#This Row],[Median]])/25)*30) + AAMC_Raw_Data_for_FY22[[#This Row],[Median]]","v":410033.19999999995},{"$f":"(((AAMC_Raw_Data_for_FY22[[#This Row],[75th]]-AAMC_Raw_Data_for_FY22[[#This Row],[Median]])/25)*35) + AAMC_Raw_Data_for_FY22[[#This Row],[Median]]","v":430705.4},{"$f":"(((AAMC_Raw_Data_for_FY22[[#This Row],[75th]]-AAMC_Raw_Data_for_FY22[[#This Row],[Median]])/25)*40) + AAMC_Raw_Data_for_FY22[[#This Row],[Median]]","v":451377.6}]
[{"$f":"AAMC_Raw_Data_for_FY22[[#This Row],[Source]]&AAMC_Raw_Data_for_FY22[[#This Row],[Type]]&AAMC_Raw_Data_for_FY22[[#This Row],[School Subset]]&AAMC_Raw_Data_for_FY22[[#This Row],[Rank]]&AAMC_Raw_Data_for_FY22[[#This Row],[Degree]]&AAMC_Raw_Data_for_FY22[[#This Row],[Department / Specialty]]&\"L\"","v":"AAMCAcademicPrivateAssociateMDClinical Sciences TotalL"},"Clinical Sciences Total",3,"AAMC","Academic","Private","Associate","MD","2021-2022",255010,{"$f":"(((AAMC_Raw_Data_for_FY22[[#This Row],[Median]]-AAMC_Raw_Data_for_FY22[[#This Row],[25th]])/25)*5) + AAMC_Raw_Data_for_FY22[[#This Row],[25th]]","v":270507},{"$f":"(((AAMC_Raw_Data_for_FY22[[#This Row],[Median]]-AAMC_Raw_Data_for_FY22[[#This Row],[25th]])/25)*10) + AAMC_Raw_Data_for_FY22[[#This Row],[25th]]","v":286004},{"$f":"(((AAMC_Raw_Data_for_FY22[[#This Row],[Median]]-AAMC_Raw_Data_for_FY22[[#This Row],[25th]])/25)*15) + AAMC_Raw_Data_for_FY22[[#This Row],[25th]]","v":301501},{"$f":"(((AAMC_Raw_Data_for_FY22[[#This Row],[Median]]-AAMC_Raw_Data_for_FY22[[#This Row],[25th]])/25)*20) + AAMC_Raw_Data_for_FY22[[#This Row],[25th]]","v":316998},332495,{"$f":"(((AAMC_Raw_Data_for_FY22[[#This Row],[75th]]-AAMC_Raw_Data_for_FY22[[#This Row],[Median]])/25)*5) + AAMC_Raw_Data_for_FY22[[#This Row],[Median]]","v":358394.6},{"$f":"(((AAMC_Raw_Data_for_FY22[[#This Row],[75th]]-AAMC_Raw_Data_for_FY22[[#This Row],[Median]])/25)*10) + AAMC_Raw_Data_for_FY22[[#This Row],[Median]]","v":384294.2},{"$f":"(((AAMC_Raw_Data_for_FY22[[#This Row],[75th]]-AAMC_Raw_Data_for_FY22[[#This Row],[Median]])/25)*15) + AAMC_Raw_Data_for_FY22[[#This Row],[Median]]","v":410193.8},{"$f":"(((AAMC_Raw_Data_for_FY22[[#This Row],[75th]]-AAMC_Raw_Data_for_FY22[[#This Row],[Median]])/25)*20) + AAMC_Raw_Data_for_FY22[[#This Row],[Median]]","v":436093.4},461993,{"$f":"(((AAMC_Raw_Data_for_FY22[[#This Row],[75th]]-AAMC_Raw_Data_for_FY22[[#This Row],[Median]])/25)*30) + AAMC_Raw_Data_for_FY22[[#This Row],[Median]]","v":487892.6},{"$f":"(((AAMC_Raw_Data_for_FY22[[#This Row],[75th]]-AAMC_Raw_Data_for_FY22[[#This Row],[Median]])/25)*35) + AAMC_Raw_Data_for_FY22[[#This Row],[Median]]","v":513792.2},{"$f":"(((AAMC_Raw_Data_for_FY22[[#This Row],[75th]]-AAMC_Raw_Data_for_FY22[[#This Row],[Median]])/25)*40) + AAMC_Raw_Data_for_FY22[[#This Row],[Median]]","v":539691.80000000005}]
[{"$f":"AAMC_Raw_Data_for_FY22[[#This Row],[Source]]&AAMC_Raw_Data_for_FY22[[#This Row],[Type]]&AAMC_Raw_Data_for_FY22[[#This Row],[School Subset]]&AAMC_Raw_Data_for_FY22[[#This Row],[Rank]]&AAMC_Raw_Data_for_FY22[[#This Row],[Degree]]&AAMC_Raw_Data_for_FY22[[#This Row],[Department / Specialty]]&\"L\"","v":"AAMCAcademicPrivateProfessorMDClinical Sciences TotalL"},"Clinical Sciences Total",2,"AAMC","Academic","Private","Professor","MD","2021-2022",290000,{"$f":"(((AAMC_Raw_Data_for_FY22[[#This Row],[Median]]-AAMC_Raw_Data_for_FY22[[#This Row],[25th]])/25)*5) + AAMC_Raw_Data_for_FY22[[#This Row],[25th]]","v":309158.40000000002},{"$f":"(((AAMC_Raw_Data_for_FY22[[#This Row],[Median]]-AAMC_Raw_Data_for_FY22[[#This Row],[25th]])/25)*10) + AAMC_Raw_Data_for_FY22[[#This Row],[25th]]","v":328316.79999999999},{"$f":"(((AAMC_Raw_Data_for_FY22[[#This Row],[Median]]-AAMC_Raw_Data_for_FY22[[#This Row],[25th]])/25)*15) + AAMC_Raw_Data_for_FY22[[#This Row],[25th]]","v":347475.20000000001},{"$f":"(((AAMC_Raw_Data_for_FY22[[#This Row],[Median]]-AAMC_Raw_Data_for_FY22[[#This Row],[25th]])/25)*20) + AAMC_Raw_Data_for_FY22[[#This Row],[25th]]","v":366633.6},385792,{"$f":"(((AAMC_Raw_Data_for_FY22[[#This Row],[75th]]-AAMC_Raw_Data_for_FY22[[#This Row],[Median]])/25)*5) + AAMC_Raw_Data_for_FY22[[#This Row],[Median]]","v":412698.6},{"$f":"(((AAMC_Raw_Data_for_FY22[[#This Row],[75th]]-AAMC_Raw_Data_for_FY22[[#This Row],[Median]])/25)*10) + AAMC_Raw_Data_for_FY22[[#This Row],[Median]]","v":439605.2},{"$f":"(((AAMC_Raw_Data_for_FY22[[#This Row],[75th]]-AAMC_Raw_Data_for_FY22[[#This Row],[Median]])/25)*15) + AAMC_Raw_Data_for_FY22[[#This Row],[Median]]","v":466511.8},{"$f":"(((AAMC_Raw_Data_for_FY22[[#This Row],[75th]]-AAMC_Raw_Data_for_FY22[[#This Row],[Median]])/25)*20) + AAMC_Raw_Data_for_FY22[[#This Row],[Median]]","v":493418.4},520325,{"$f":"(((AAMC_Raw_Data_for_FY22[[#This Row],[75th]]-AAMC_Raw_Data_for_FY22[[#This Row],[Median]])/25)*30) + AAMC_Raw_Data_for_FY22[[#This Row],[Median]]","v":547231.6},{"$f":"(((AAMC_Raw_Data_for_FY22[[#This Row],[75th]]-AAMC_Raw_Data_for_FY22[[#This Row],[Median]])/25)*35) + AAMC_Raw_Data_for_FY22[[#This Row],[Median]]","v":574138.19999999995},{"$f":"(((AAMC_Raw_Data_for_FY22[[#This Row],[75th]]-AAMC_Raw_Data_for_FY22[[#This Row],[Median]])/25)*40) + AAMC_Raw_Data_for_FY22[[#This Row],[Median]]","v":601044.80000000005}]
[{"$f":"AAMC_Raw_Data_for_FY22[[#This Row],[Source]]&AAMC_Raw_Data_for_FY22[[#This Row],[Type]]&AAMC_Raw_Data_for_FY22[[#This Row],[School Subset]]&AAMC_Raw_Data_for_FY22[[#This Row],[Rank]]&AAMC_Raw_Data_for_FY22[[#This Row],[Degree]]&AAMC_Raw_Data_for_FY22[[#This Row],[Department / Specialty]]&\"L\"","v":"AAMCAcademicPrivateChiefMDClinical Sciences TotalL"},"Clinical Sciences Total",6,"AAMC","Academic","Private","Chief","MD","2021-2022",350000,{"$f":"(((AAMC_Raw_Data_for_FY22[[#This Row],[Median]]-AAMC_Raw_Data_for_FY22[[#This Row],[25th]])/25)*5) + AAMC_Raw_Data_for_FY22[[#This Row],[25th]]","v":373088.6},{"$f":"(((AAMC_Raw_Data_for_FY22[[#This Row],[Median]]-AAMC_Raw_Data_for_FY22[[#This Row],[25th]])/25)*10) + AAMC_Raw_Data_for_FY22[[#This Row],[25th]]","v":396177.2},{"$f":"(((AAMC_Raw_Data_for_FY22[[#This Row],[Median]]-AAMC_Raw_Data_for_FY22[[#This Row],[25th]])/25)*15) + AAMC_Raw_Data_for_FY22[[#This Row],[25th]]","v":419265.8},{"$f":"(((AAMC_Raw_Data_for_FY22[[#This Row],[Median]]-AAMC_Raw_Data_for_FY22[[#This Row],[25th]])/25)*20) + AAMC_Raw_Data_for_FY22[[#This Row],[25th]]","v":442354.4},465443,{"$f":"(((AAMC_Raw_Data_for_FY22[[#This Row],[75th]]-AAMC_Raw_Data_for_FY22[[#This Row],[Median]])/25)*5) + AAMC_Raw_Data_for_FY22[[#This Row],[Median]]","v":497420.4},{"$f":"(((AAMC_Raw_Data_for_FY22[[#This Row],[75th]]-AAMC_Raw_Data_for_FY22[[#This Row],[Median]])/25)*10) + AAMC_Raw_Data_for_FY22[[#This Row],[Median]]","v":529397.80000000005},{"$f":"(((AAMC_Raw_Data_for_FY22[[#This Row],[75th]]-AAMC_Raw_Data_for_FY22[[#This Row],[Median]])/25)*15) + AAMC_Raw_Data_for_FY22[[#This Row],[Median]]","v":561375.19999999995},{"$f":"(((AAMC_Raw_Data_for_FY22[[#This Row],[75th]]-AAMC_Raw_Data_for_FY22[[#This Row],[Median]])/25)*20) + AAMC_Raw_Data_for_FY22[[#This Row],[Median]]","v":593352.6},625330,{"$f":"(((AAMC_Raw_Data_for_FY22[[#This Row],[75th]]-AAMC_Raw_Data_for_FY22[[#This Row],[Median]])/25)*30) + AAMC_Raw_Data_for_FY22[[#This Row],[Median]]","v":657307.4},{"$f":"(((AAMC_Raw_Data_for_FY22[[#This Row],[75th]]-AAMC_Raw_Data_for_FY22[[#This Row],[Median]])/25)*35) + AAMC_Raw_Data_for_FY22[[#This Row],[Median]]","v":689284.8},{"$f":"(((AAMC_Raw_Data_for_FY22[[#This Row],[75th]]-AAMC_Raw_Data_for_FY22[[#This Row],[Median]])/25)*40) + AAMC_Raw_Data_for_FY22[[#This Row],[Median]]","v":721262.2}]
[{"$f":"AAMC_Raw_Data_for_FY22[[#This Row],[Source]]&AAMC_Raw_Data_for_FY22[[#This Row],[Type]]&AAMC_Raw_Data_for_FY22[[#This Row],[School Subset]]&AAMC_Raw_Data_for_FY22[[#This Row],[Rank]]&AAMC_Raw_Data_for_FY22[[#This Row],[Degree]]&AAMC_Raw_Data_for_FY22[[#This Row],[Department / Specialty]]&\"L\"","v":"AAMCAcademicPrivateChairMDClinical Sciences TotalL"},"Clinical Sciences Total",1,"AAMC","Academic","Private","Chair","MD","2021-2022",580222,{"$f":"(((AAMC_Raw_Data_for_FY22[[#This Row],[Median]]-AAMC_Raw_Data_for_FY22[[#This Row],[25th]])/25)*5) + AAMC_Raw_Data_for_FY22[[#This Row],[25th]]","v":615393.19999999995},{"$f":"(((AAMC_Raw_Data_for_FY22[[#This Row],[Median]]-AAMC_Raw_Data_for_FY22[[#This Row],[25th]])/25)*10) + AAMC_Raw_Data_for_FY22[[#This Row],[25th]]","v":650564.4},{"$f":"(((AAMC_Raw_Data_for_FY22[[#This Row],[Median]]-AAMC_Raw_Data_for_FY22[[#This Row],[25th]])/25)*15) + AAMC_Raw_Data_for_FY22[[#This Row],[25th]]","v":685735.6},{"$f":"(((AAMC_Raw_Data_for_FY22[[#This Row],[Median]]-AAMC_Raw_Data_for_FY22[[#This Row],[25th]])/25)*20) + AAMC_Raw_Data_for_FY22[[#This Row],[25th]]","v":720906.8},756078,{"$f":"(((AAMC_Raw_Data_for_FY22[[#This Row],[75th]]-AAMC_Raw_Data_for_FY22[[#This Row],[Median]])/25)*5) + AAMC_Raw_Data_for_FY22[[#This Row],[Median]]","v":808563},{"$f":"(((AAMC_Raw_Data_for_FY22[[#This Row],[75th]]-AAMC_Raw_Data_for_FY22[[#This Row],[Median]])/25)*10) + AAMC_Raw_Data_for_FY22[[#This Row],[Median]]","v":861048},{"$f":"(((AAMC_Raw_Data_for_FY22[[#This Row],[75th]]-AAMC_Raw_Data_for_FY22[[#This Row],[Median]])/25)*15) + AAMC_Raw_Data_for_FY22[[#This Row],[Median]]","v":913533},{"$f":"(((AAMC_Raw_Data_for_FY22[[#This Row],[75th]]-AAMC_Raw_Data_for_FY22[[#This Row],[Median]])/25)*20) + AAMC_Raw_Data_for_FY22[[#This Row],[Median]]","v":966018},1018503,{"$f":"(((AAMC_Raw_Data_for_FY22[[#This Row],[75th]]-AAMC_Raw_Data_for_FY22[[#This Row],[Median]])/25)*30) + AAMC_Raw_Data_for_FY22[[#This Row],[Median]]","v":1070988},{"$f":"(((AAMC_Raw_Data_for_FY22[[#This Row],[75th]]-AAMC_Raw_Data_for_FY22[[#This Row],[Median]])/25)*35) + AAMC_Raw_Data_for_FY22[[#This Row],[Median]]","v":1123473},{"$f":"(((AAMC_Raw_Data_for_FY22[[#This Row],[75th]]-AAMC_Raw_Data_for_FY22[[#This Row],[Median]])/25)*40) + AAMC_Raw_Data_for_FY22[[#This Row],[Median]]","v":1175958}]
[{"$f":"AAMC_Raw_Data_for_FY22[[#This Row],[Source]]&AAMC_Raw_Data_for_FY22[[#This Row],[Type]]&AAMC_Raw_Data_for_FY22[[#This Row],[School Subset]]&AAMC_Raw_Data_for_FY22[[#This Row],[Rank]]&AAMC_Raw_Data_for_FY22[[#This Row],[Degree]]&AAMC_Raw_Data_for_FY22[[#This Row],[Department / Specialty]]&\"L\"","v":"AAMCAcademicPrivateInstructorMDAnesthesiology TotalL"},"Anesthesiology Total",5,"AAMC","Academic","Private","Instructor","MD","2021-2022",307057,{"$f":"(((AAMC_Raw_Data_for_FY22[[#This Row],[Median]]-AAMC_Raw_Data_for_FY22[[#This Row],[25th]])/25)*5) + AAMC_Raw_Data_for_FY22[[#This Row],[25th]]","v":319205.2},{"$f":"(((AAMC_Raw_Data_for_FY22[[#This Row],[Median]]-AAMC_Raw_Data_for_FY22[[#This Row],[25th]])/25)*10) + AAMC_Raw_Data_for_FY22[[#This Row],[25th]]","v":331353.40000000002},{"$f":"(((AAMC_Raw_Data_for_FY22[[#This Row],[Median]]-AAMC_Raw_Data_for_FY22[[#This Row],[25th]])/25)*15) + AAMC_Raw_Data_for_FY22[[#This Row],[25th]]","v":343501.6},{"$f":"(((AAMC_Raw_Data_for_FY22[[#This Row],[Median]]-AAMC_Raw_Data_for_FY22[[#This Row],[25th]])/25)*20) + AAMC_Raw_Data_for_FY22[[#This Row],[25th]]","v":355649.8},367798,{"$f":"(((AAMC_Raw_Data_for_FY22[[#This Row],[75th]]-AAMC_Raw_Data_for_FY22[[#This Row],[Median]])/25)*5) + AAMC_Raw_Data_for_FY22[[#This Row],[Median]]","v":381660},{"$f":"(((AAMC_Raw_Data_for_FY22[[#This Row],[75th]]-AAMC_Raw_Data_for_FY22[[#This Row],[Median]])/25)*10) + AAMC_Raw_Data_for_FY22[[#This Row],[Median]]","v":395522},{"$f":"(((AAMC_Raw_Data_for_FY22[[#This Row],[75th]]-AAMC_Raw_Data_for_FY22[[#This Row],[Median]])/25)*15) + AAMC_Raw_Data_for_FY22[[#This Row],[Median]]","v":409384},{"$f":"(((AAMC_Raw_Data_for_FY22[[#This Row],[75th]]-AAMC_Raw_Data_for_FY22[[#This Row],[Median]])/25)*20) + AAMC_Raw_Data_for_FY22[[#This Row],[Median]]","v":423246},437108,{"$f":"(((AAMC_Raw_Data_for_FY22[[#This Row],[75th]]-AAMC_Raw_Data_for_FY22[[#This Row],[Median]])/25)*30) + AAMC_Raw_Data_for_FY22[[#This Row],[Median]]","v":450970},{"$f":"(((AAMC_Raw_Data_for_FY22[[#This Row],[75th]]-AAMC_Raw_Data_for_FY22[[#This Row],[Median]])/25)*35) + AAMC_Raw_Data_for_FY22[[#This Row],[Median]]","v":464832},{"$f":"(((AAMC_Raw_Data_for_FY22[[#This Row],[75th]]-AAMC_Raw_Data_for_FY22[[#This Row],[Median]])/25)*40) + AAMC_Raw_Data_for_FY22[[#This Row],[Median]]","v":478694}]
[{"$f":"AAMC_Raw_Data_for_FY22[[#This Row],[Source]]&AAMC_Raw_Data_for_FY22[[#This Row],[Type]]&AAMC_Raw_Data_for_FY22[[#This Row],[School Subset]]&AAMC_Raw_Data_for_FY22[[#This Row],[Rank]]&AAMC_Raw_Data_for_FY22[[#This Row],[Degree]]&AAMC_Raw_Data_for_FY22[[#This Row],[Department / Specialty]]&\"L\"","v":"AAMCAcademicPrivateAssistantMDAnesthesiology TotalL"},"Anesthesiology Total",4,"AAMC","Academic","Private","Assistant","MD","2021-2022",369513,{"$f":"(((AAMC_Raw_Data_for_FY22[[#This Row],[Median]]-AAMC_Raw_Data_for_FY22[[#This Row],[25th]])/25)*5) + AAMC_Raw_Data_for_FY22[[#This Row],[25th]]","v":380682.2},{"$f":"(((AAMC_Raw_Data_for_FY22[[#This Row],[Median]]-AAMC_Raw_Data_for_FY22[[#This Row],[25th]])/25)*10) + AAMC_Raw_Data_for_FY22[[#This Row],[25th]]","v":391851.4},{"$f":"(((AAMC_Raw_Data_for_FY22[[#This Row],[Median]]-AAMC_Raw_Data_for_FY22[[#This Row],[25th]])/25)*15) + AAMC_Raw_Data_for_FY22[[#This Row],[25th]]","v":403020.6},{"$f":"(((AAMC_Raw_Data_for_FY22[[#This Row],[Median]]-AAMC_Raw_Data_for_FY22[[#This Row],[25th]])/25)*20) + AAMC_Raw_Data_for_FY22[[#This Row],[25th]]","v":414189.8},425359,{"$f":"(((AAMC_Raw_Data_for_FY22[[#This Row],[75th]]-AAMC_Raw_Data_for_FY22[[#This Row],[Median]])/25)*5) + AAMC_Raw_Data_for_FY22[[#This Row],[Median]]","v":436459.2},{"$f":"(((AAMC_Raw_Data_for_FY22[[#This Row],[75th]]-AAMC_Raw_Data_for_FY22[[#This Row],[Median]])/25)*10) + AAMC_Raw_Data_for_FY22[[#This Row],[Median]]","v":447559.4},{"$f":"(((AAMC_Raw_Data_for_FY22[[#This Row],[75th]]-AAMC_Raw_Data_for_FY22[[#This Row],[Median]])/25)*15) + AAMC_Raw_Data_for_FY22[[#This Row],[Median]]","v":458659.6},{"$f":"(((AAMC_Raw_Data_for_FY22[[#This Row],[75th]]-AAMC_Raw_Data_for_FY22[[#This Row],[Median]])/25)*20) + AAMC_Raw_Data_for_FY22[[#This Row],[Median]]","v":469759.8},480860,{"$f":"(((AAMC_Raw_Data_for_FY22[[#This Row],[75th]]-AAMC_Raw_Data_for_FY22[[#This Row],[Median]])/25)*30) + AAMC_Raw_Data_for_FY22[[#This Row],[Median]]","v":491960.2},{"$f":"(((AAMC_Raw_Data_for_FY22[[#This Row],[75th]]-AAMC_Raw_Data_for_FY22[[#This Row],[Median]])/25)*35) + AAMC_Raw_Data_for_FY22[[#This Row],[Median]]","v":503060.4},{"$f":"(((AAMC_Raw_Data_for_FY22[[#This Row],[75th]]-AAMC_Raw_Data_for_FY22[[#This Row],[Median]])/25)*40) + AAMC_Raw_Data_for_FY22[[#This Row],[Median]]","v":514160.6}]
[{"$f":"AAMC_Raw_Data_for_FY22[[#This Row],[Source]]&AAMC_Raw_Data_for_FY22[[#This Row],[Type]]&AAMC_Raw_Data_for_FY22[[#This Row],[School Subset]]&AAMC_Raw_Data_for_FY22[[#This Row],[Rank]]&AAMC_Raw_Data_for_FY22[[#This Row],[Degree]]&AAMC_Raw_Data_for_FY22[[#This Row],[Department / Specialty]]&\"L\"","v":"AAMCAcademicPrivateAssociateMDAnesthesiology TotalL"},"Anesthesiology Total",3,"AAMC","Academic","Private","Associate","MD","2021-2022",401115,{"$f":"(((AAMC_Raw_Data_for_FY22[[#This Row],[Median]]-AAMC_Raw_Data_for_FY22[[#This Row],[25th]])/25)*5) + AAMC_Raw_Data_for_FY22[[#This Row],[25th]]","v":412892},{"$f":"(((AAMC_Raw_Data_for_FY22[[#This Row],[Median]]-AAMC_Raw_Data_for_FY22[[#This Row],[25th]])/25)*10) + AAMC_Raw_Data_for_FY22[[#This Row],[25th]]","v":424669},{"$f":"(((AAMC_Raw_Data_for_FY22[[#This Row],[Median]]-AAMC_Raw_Data_for_FY22[[#This Row],[25th]])/25)*15) + AAMC_Raw_Data_for_FY22[[#This Row],[25th]]","v":436446},{"$f":"(((AAMC_Raw_Data_for_FY22[[#This Row],[Median]]-AAMC_Raw_Data_for_FY22[[#This Row],[25th]])/25)*20) + AAMC_Raw_Data_for_FY22[[#This Row],[25th]]","v":448223},460000,{"$f":"(((AAMC_Raw_Data_for_FY22[[#This Row],[75th]]-AAMC_Raw_Data_for_FY22[[#This Row],[Median]])/25)*5) + AAMC_Raw_Data_for_FY22[[#This Row],[Median]]","v":470798.2},{"$f":"(((AAMC_Raw_Data_for_FY22[[#This Row],[75th]]-AAMC_Raw_Data_for_FY22[[#This Row],[Median]])/25)*10) + AAMC_Raw_Data_for_FY22[[#This Row],[Median]]","v":481596.4},{"$f":"(((AAMC_Raw_Data_for_FY22[[#This Row],[75th]]-AAMC_Raw_Data_for_FY22[[#This Row],[Median]])/25)*15) + AAMC_Raw_Data_for_FY22[[#This Row],[Median]]","v":492394.6},{"$f":"(((AAMC_Raw_Data_for_FY22[[#This Row],[75th]]-AAMC_Raw_Data_for_FY22[[#This Row],[Median]])/25)*20) + AAMC_Raw_Data_for_FY22[[#This Row],[Median]]","v":503192.8},513991,{"$f":"(((AAMC_Raw_Data_for_FY22[[#This Row],[75th]]-AAMC_Raw_Data_for_FY22[[#This Row],[Median]])/25)*30) + AAMC_Raw_Data_for_FY22[[#This Row],[Median]]","v":524789.19999999995},{"$f":"(((AAMC_Raw_Data_for_FY22[[#This Row],[75th]]-AAMC_Raw_Data_for_FY22[[#This Row],[Median]])/25)*35) + AAMC_Raw_Data_for_FY22[[#This Row],[Median]]","v":535587.4},{"$f":"(((AAMC_Raw_Data_for_FY22[[#This Row],[75th]]-AAMC_Raw_Data_for_FY22[[#This Row],[Median]])/25)*40) + AAMC_Raw_Data_for_FY22[[#This Row],[Median]]","v":546385.6}]
[{"$f":"AAMC_Raw_Data_for_FY22[[#This Row],[Source]]&AAMC_Raw_Data_for_FY22[[#This Row],[Type]]&AAMC_Raw_Data_for_FY22[[#This Row],[School Subset]]&AAMC_Raw_Data_for_FY22[[#This Row],[Rank]]&AAMC_Raw_Data_for_FY22[[#This Row],[Degree]]&AAMC_Raw_Data_for_FY22[[#This Row],[Department / Specialty]]&\"L\"","v":"AAMCAcademicPrivateProfessorMDAnesthesiology TotalL"},"Anesthesiology Total",2,"AAMC","Academic","Private","Professor","MD","2021-2022",407056,{"$f":"(((AAMC_Raw_Data_for_FY22[[#This Row],[Median]]-AAMC_Raw_Data_for_FY22[[#This Row],[25th]])/25)*5) + AAMC_Raw_Data_for_FY22[[#This Row],[25th]]","v":421993.6},{"$f":"(((AAMC_Raw_Data_for_FY22[[#This Row],[Median]]-AAMC_Raw_Data_for_FY22[[#This Row],[25th]])/25)*10) + AAMC_Raw_Data_for_FY22[[#This Row],[25th]]","v":436931.2},{"$f":"(((AAMC_Raw_Data_for_FY22[[#This Row],[Median]]-AAMC_Raw_Data_for_FY22[[#This Row],[25th]])/25)*15) + AAMC_Raw_Data_for_FY22[[#This Row],[25th]]","v":451868.8},{"$f":"(((AAMC_Raw_Data_for_FY22[[#This Row],[Median]]-AAMC_Raw_Data_for_FY22[[#This Row],[25th]])/25)*20) + AAMC_Raw_Data_for_FY22[[#This Row],[25th]]","v":466806.4},481744,{"$f":"(((AAMC_Raw_Data_for_FY22[[#This Row],[75th]]-AAMC_Raw_Data_for_FY22[[#This Row],[Median]])/25)*5) + AAMC_Raw_Data_for_FY22[[#This Row],[Median]]","v":494266.6},{"$f":"(((AAMC_Raw_Data_for_FY22[[#This Row],[75th]]-AAMC_Raw_Data_for_FY22[[#This Row],[Median]])/25)*10) + AAMC_Raw_Data_for_FY22[[#This Row],[Median]]","v":506789.2},{"$f":"(((AAMC_Raw_Data_for_FY22[[#This Row],[75th]]-AAMC_Raw_Data_for_FY22[[#This Row],[Median]])/25)*15) + AAMC_Raw_Data_for_FY22[[#This Row],[Median]]","v":519311.8},{"$f":"(((AAMC_Raw_Data_for_FY22[[#This Row],[75th]]-AAMC_Raw_Data_for_FY22[[#This Row],[Median]])/25)*20) + AAMC_Raw_Data_for_FY22[[#This Row],[Median]]","v":531834.4},544357,{"$f":"(((AAMC_Raw_Data_for_FY22[[#This Row],[75th]]-AAMC_Raw_Data_for_FY22[[#This Row],[Median]])/25)*30) + AAMC_Raw_Data_for_FY22[[#This Row],[Median]]","v":556879.6},{"$f":"(((AAMC_Raw_Data_for_FY22[[#This Row],[75th]]-AAMC_Raw_Data_for_FY22[[#This Row],[Median]])/25)*35) + AAMC_Raw_Data_for_FY22[[#This Row],[Median]]","v":569402.19999999995},{"$f":"(((AAMC_Raw_Data_for_FY22[[#This Row],[75th]]-AAMC_Raw_Data_for_FY22[[#This Row],[Median]])/25)*40) + AAMC_Raw_Data_for_FY22[[#This Row],[Median]]","v":581924.80000000005}]
[{"$f":"AAMC_Raw_Data_for_FY22[[#This Row],[Source]]&AAMC_Raw_Data_for_FY22[[#This Row],[Type]]&AAMC_Raw_Data_for_FY22[[#This Row],[School Subset]]&AAMC_Raw_Data_for_FY22[[#This Row],[Rank]]&AAMC_Raw_Data_for_FY22[[#This Row],[Degree]]&AAMC_Raw_Data_for_FY22[[#This Row],[Department / Specialty]]&\"L\"","v":"AAMCAcademicPrivateChiefMDAnesthesiology TotalL"},"Anesthesiology Total",6,"AAMC","Academic","Private","Chief","MD","2021-2022",470905,{"$f":"(((AAMC_Raw_Data_for_FY22[[#This Row],[Median]]-AAMC_Raw_Data_for_FY22[[#This Row],[25th]])/25)*5) + AAMC_Raw_Data_for_FY22[[#This Row],[25th]]","v":480322},{"$f":"(((AAMC_Raw_Data_for_FY22[[#This Row],[Median]]-AAMC_Raw_Data_for_FY22[[#This Row],[25th]])/25)*10) + AAMC_Raw_Data_for_FY22[[#This Row],[25th]]","v":489739},{"$f":"(((AAMC_Raw_Data_for_FY22[[#This Row],[Median]]-AAMC_Raw_Data_for_FY22[[#This Row],[25th]])/25)*15) + AAMC_Raw_Data_for_FY22[[#This Row],[25th]]","v":499156},{"$f":"(((AAMC_Raw_Data_for_FY22[[#This Row],[Median]]-AAMC_Raw_Data_for_FY22[[#This Row],[25th]])/25)*20) + AAMC_Raw_Data_for_FY22[[#This Row],[25th]]","v":508573},517990,{"$f":"(((AAMC_Raw_Data_for_FY22[[#This Row],[75th]]-AAMC_Raw_Data_for_FY22[[#This Row],[Median]])/25)*5) + AAMC_Raw_Data_for_FY22[[#This Row],[Median]]","v":534142.6},{"$f":"(((AAMC_Raw_Data_for_FY22[[#This Row],[75th]]-AAMC_Raw_Data_for_FY22[[#This Row],[Median]])/25)*10) + AAMC_Raw_Data_for_FY22[[#This Row],[Median]]","v":550295.19999999995},{"$f":"(((AAMC_Raw_Data_for_FY22[[#This Row],[75th]]-AAMC_Raw_Data_for_FY22[[#This Row],[Median]])/25)*15) + AAMC_Raw_Data_for_FY22[[#This Row],[Median]]","v":566447.80000000005},{"$f":"(((AAMC_Raw_Data_for_FY22[[#This Row],[75th]]-AAMC_Raw_Data_for_FY22[[#This Row],[Median]])/25)*20) + AAMC_Raw_Data_for_FY22[[#This Row],[Median]]","v":582600.4},598753,{"$f":"(((AAMC_Raw_Data_for_FY22[[#This Row],[75th]]-AAMC_Raw_Data_for_FY22[[#This Row],[Median]])/25)*30) + AAMC_Raw_Data_for_FY22[[#This Row],[Median]]","v":614905.59999999998},{"$f":"(((AAMC_Raw_Data_for_FY22[[#This Row],[75th]]-AAMC_Raw_Data_for_FY22[[#This Row],[Median]])/25)*35) + AAMC_Raw_Data_for_FY22[[#This Row],[Median]]","v":631058.19999999995},{"$f":"(((AAMC_Raw_Data_for_FY22[[#This Row],[75th]]-AAMC_Raw_Data_for_FY22[[#This Row],[Median]])/25)*40) + AAMC_Raw_Data_for_FY22[[#This Row],[Median]]","v":647210.80000000005}]
[{"$f":"AAMC_Raw_Data_for_FY22[[#This Row],[Source]]&AAMC_Raw_Data_for_FY22[[#This Row],[Type]]&AAMC_Raw_Data_for_FY22[[#This Row],[School Subset]]&AAMC_Raw_Data_for_FY22[[#This Row],[Rank]]&AAMC_Raw_Data_for_FY22[[#This Row],[Degree]]&AAMC_Raw_Data_for_FY22[[#This Row],[Department / Specialty]]&\"L\"","v":"AAMCAcademicPrivateChairMDAnesthesiology TotalL"},"Anesthesiology Total",1,"AAMC","Academic","Private","Chair","MD","2021-2022",635897,{"$f":"(((AAMC_Raw_Data_for_FY22[[#This Row],[Median]]-AAMC_Raw_Data_for_FY22[[#This Row],[25th]])/25)*5) + AAMC_Raw_Data_for_FY22[[#This Row],[25th]]","v":651344.19999999995},{"$f":"(((AAMC_Raw_Data_for_FY22[[#This Row],[Median]]-AAMC_Raw_Data_for_FY22[[#This Row],[25th]])/25)*10) + AAMC_Raw_Data_for_FY22[[#This Row],[25th]]","v":666791.4},{"$f":"(((AAMC_Raw_Data_for_FY22[[#This Row],[Median]]-AAMC_Raw_Data_for_FY22[[#This Row],[25th]])/25)*15) + AAMC_Raw_Data_for_FY22[[#This Row],[25th]]","v":682238.6},{"$f":"(((AAMC_Raw_Data_for_FY22[[#This Row],[Median]]-AAMC_Raw_Data_for_FY22[[#This Row],[25th]])/25)*20) + AAMC_Raw_Data_for_FY22[[#This Row],[25th]]","v":697685.8},713133,{"$f":"(((AAMC_Raw_Data_for_FY22[[#This Row],[75th]]-AAMC_Raw_Data_for_FY22[[#This Row],[Median]])/25)*5) + AAMC_Raw_Data_for_FY22[[#This Row],[Median]]","v":748749.8},{"$f":"(((AAMC_Raw_Data_for_FY22[[#This Row],[75th]]-AAMC_Raw_Data_for_FY22[[#This Row],[Median]])/25)*10) + AAMC_Raw_Data_for_FY22[[#This Row],[Median]]","v":784366.6},{"$f":"(((AAMC_Raw_Data_for_FY22[[#This Row],[75th]]-AAMC_Raw_Data_for_FY22[[#This Row],[Median]])/25)*15) + AAMC_Raw_Data_for_FY22[[#This Row],[Median]]","v":819983.4},{"$f":"(((AAMC_Raw_Data_for_FY22[[#This Row],[75th]]-AAMC_Raw_Data_for_FY22[[#This Row],[Median]])/25)*20) + AAMC_Raw_Data_for_FY22[[#This Row],[Median]]","v":855600.2},891217,{"$f":"(((AAMC_Raw_Data_for_FY22[[#This Row],[75th]]-AAMC_Raw_Data_for_FY22[[#This Row],[Median]])/25)*30) + AAMC_Raw_Data_for_FY22[[#This Row],[Median]]","v":926833.8},{"$f":"(((AAMC_Raw_Data_for_FY22[[#This Row],[75th]]-AAMC_Raw_Data_for_FY22[[#This Row],[Median]])/25)*35) + AAMC_Raw_Data_for_FY22[[#This Row],[Median]]","v":962450.6},{"$f":"(((AAMC_Raw_Data_for_FY22[[#This Row],[75th]]-AAMC_Raw_Data_for_FY22[[#This Row],[Median]])/25)*40) + AAMC_Raw_Data_for_FY22[[#This Row],[Median]]","v":998067.39999999991}]
[{"$f":"AAMC_Raw_Data_for_FY22[[#This Row],[Source]]&AAMC_Raw_Data_for_FY22[[#This Row],[Type]]&AAMC_Raw_Data_for_FY22[[#This Row],[School Subset]]&AAMC_Raw_Data_for_FY22[[#This Row],[Rank]]&AAMC_Raw_Data_for_FY22[[#This Row],[Degree]]&AAMC_Raw_Data_for_FY22[[#This Row],[Department / Specialty]]&\"L\"","v":"AAMCAcademicPrivateInstructorMDAnesthesiology: GeneralL"},"Anesthesiology: General",5,"AAMC","Academic","Private","Instructor","MD","2021-2022",309000,{"$f":"(((AAMC_Raw_Data_for_FY22[[#This Row],[Median]]-AAMC_Raw_Data_for_FY22[[#This Row],[25th]])/25)*5) + AAMC_Raw_Data_for_FY22[[#This Row],[25th]]","v":322299.2},{"$f":"(((AAMC_Raw_Data_for_FY22[[#This Row],[Median]]-AAMC_Raw_Data_for_FY22[[#This Row],[25th]])/25)*10) + AAMC_Raw_Data_for_FY22[[#This Row],[25th]]","v":335598.4},{"$f":"(((AAMC_Raw_Data_for_FY22[[#This Row],[Median]]-AAMC_Raw_Data_for_FY22[[#This Row],[25th]])/25)*15) + AAMC_Raw_Data_for_FY22[[#This Row],[25th]]","v":348897.6},{"$f":"(((AAMC_Raw_Data_for_FY22[[#This Row],[Median]]-AAMC_Raw_Data_for_FY22[[#This Row],[25th]])/25)*20) + AAMC_Raw_Data_for_FY22[[#This Row],[25th]]","v":362196.8},375496,{"$f":"(((AAMC_Raw_Data_for_FY22[[#This Row],[75th]]-AAMC_Raw_Data_for_FY22[[#This Row],[Median]])/25)*5) + AAMC_Raw_Data_for_FY22[[#This Row],[Median]]","v":388186},{"$f":"(((AAMC_Raw_Data_for_FY22[[#This Row],[75th]]-AAMC_Raw_Data_for_FY22[[#This Row],[Median]])/25)*10) + AAMC_Raw_Data_for_FY22[[#This Row],[Median]]","v":400876},{"$f":"(((AAMC_Raw_Data_for_FY22[[#This Row],[75th]]-AAMC_Raw_Data_for_FY22[[#This Row],[Median]])/25)*15) + AAMC_Raw_Data_for_FY22[[#This Row],[Median]]","v":413566},{"$f":"(((AAMC_Raw_Data_for_FY22[[#This Row],[75th]]-AAMC_Raw_Data_for_FY22[[#This Row],[Median]])/25)*20) + AAMC_Raw_Data_for_FY22[[#This Row],[Median]]","v":426256},438946,{"$f":"(((AAMC_Raw_Data_for_FY22[[#This Row],[75th]]-AAMC_Raw_Data_for_FY22[[#This Row],[Median]])/25)*30) + AAMC_Raw_Data_for_FY22[[#This Row],[Median]]","v":451636},{"$f":"(((AAMC_Raw_Data_for_FY22[[#This Row],[75th]]-AAMC_Raw_Data_for_FY22[[#This Row],[Median]])/25)*35) + AAMC_Raw_Data_for_FY22[[#This Row],[Median]]","v":464326},{"$f":"(((AAMC_Raw_Data_for_FY22[[#This Row],[75th]]-AAMC_Raw_Data_for_FY22[[#This Row],[Median]])/25)*40) + AAMC_Raw_Data_for_FY22[[#This Row],[Median]]","v":477016}]
[{"$f":"AAMC_Raw_Data_for_FY22[[#This Row],[Source]]&AAMC_Raw_Data_for_FY22[[#This Row],[Type]]&AAMC_Raw_Data_for_FY22[[#This Row],[School Subset]]&AAMC_Raw_Data_for_FY22[[#This Row],[Rank]]&AAMC_Raw_Data_for_FY22[[#This Row],[Degree]]&AAMC_Raw_Data_for_FY22[[#This Row],[Department / Specialty]]&\"L\"","v":"AAMCAcademicPrivateAssistantMDAnesthesiology: GeneralL"},"Anesthesiology: General",4,"AAMC","Academic","Private","Assistant","MD","2021-2022",369513,{"$f":"(((AAMC_Raw_Data_for_FY22[[#This Row],[Median]]-AAMC_Raw_Data_for_FY22[[#This Row],[25th]])/25)*5) + AAMC_Raw_Data_for_FY22[[#This Row],[25th]]","v":380718.6},{"$f":"(((AAMC_Raw_Data_for_FY22[[#This Row],[Median]]-AAMC_Raw_Data_for_FY22[[#This Row],[25th]])/25)*10) + AAMC_Raw_Data_for_FY22[[#This Row],[25th]]","v":391924.2},{"$f":"(((AAMC_Raw_Data_for_FY22[[#This Row],[Median]]-AAMC_Raw_Data_for_FY22[[#This Row],[25th]])/25)*15) + AAMC_Raw_Data_for_FY22[[#This Row],[25th]]","v":403129.8},{"$f":"(((AAMC_Raw_Data_for_FY22[[#This Row],[Median]]-AAMC_Raw_Data_for_FY22[[#This Row],[25th]])/25)*20) + AAMC_Raw_Data_for_FY22[[#This Row],[25th]]","v":414335.4},425541,{"$f":"(((AAMC_Raw_Data_for_FY22[[#This Row],[75th]]-AAMC_Raw_Data_for_FY22[[#This Row],[Median]])/25)*5) + AAMC_Raw_Data_for_FY22[[#This Row],[Median]]","v":437228.4},{"$f":"(((AAMC_Raw_Data_for_FY22[[#This Row],[75th]]-AAMC_Raw_Data_for_FY22[[#This Row],[Median]])/25)*10) + AAMC_Raw_Data_for_FY22[[#This Row],[Median]]","v":448915.8},{"$f":"(((AAMC_Raw_Data_for_FY22[[#This Row],[75th]]-AAMC_Raw_Data_for_FY22[[#This Row],[Median]])/25)*15) + AAMC_Raw_Data_for_FY22[[#This Row],[Median]]","v":460603.2},{"$f":"(((AAMC_Raw_Data_for_FY22[[#This Row],[75th]]-AAMC_Raw_Data_for_FY22[[#This Row],[Median]])/25)*20) + AAMC_Raw_Data_for_FY22[[#This Row],[Median]]","v":472290.6},483978,{"$f":"(((AAMC_Raw_Data_for_FY22[[#This Row],[75th]]-AAMC_Raw_Data_for_FY22[[#This Row],[Median]])/25)*30) + AAMC_Raw_Data_for_FY22[[#This Row],[Median]]","v":495665.4},{"$f":"(((AAMC_Raw_Data_for_FY22[[#This Row],[75th]]-AAMC_Raw_Data_for_FY22[[#This Row],[Median]])/25)*35) + AAMC_Raw_Data_for_FY22[[#This Row],[Median]]","v":507352.8},{"$f":"(((AAMC_Raw_Data_for_FY22[[#This Row],[75th]]-AAMC_Raw_Data_for_FY22[[#This Row],[Median]])/25)*40) + AAMC_Raw_Data_for_FY22[[#This Row],[Median]]","v":519040.2}]
[{"$f":"AAMC_Raw_Data_for_FY22[[#This Row],[Source]]&AAMC_Raw_Data_for_FY22[[#This Row],[Type]]&AAMC_Raw_Data_for_FY22[[#This Row],[School Subset]]&AAMC_Raw_Data_for_FY22[[#This Row],[Rank]]&AAMC_Raw_Data_for_FY22[[#This Row],[Degree]]&AAMC_Raw_Data_for_FY22[[#This Row],[Department / Specialty]]&\"L\"","v":"AAMCAcademicPrivateAssociateMDAnesthesiology: GeneralL"},"Anesthesiology: General",3,"AAMC","Academic","Private","Associate","MD","2021-2022",399962,{"$f":"(((AAMC_Raw_Data_for_FY22[[#This Row],[Median]]-AAMC_Raw_Data_for_FY22[[#This Row],[25th]])/25)*5) + AAMC_Raw_Data_for_FY22[[#This Row],[25th]]","v":409826.4},{"$f":"(((AAMC_Raw_Data_for_FY22[[#This Row],[Median]]-AAMC_Raw_Data_for_FY22[[#This Row],[25th]])/25)*10) + AAMC_Raw_Data_for_FY22[[#This Row],[25th]]","v":419690.8},{"$f":"(((AAMC_Raw_Data_for_FY22[[#This Row],[Median]]-AAMC_Raw_Data_for_FY22[[#This Row],[25th]])/25)*15) + AAMC_Raw_Data_for_FY22[[#This Row],[25th]]","v":429555.20000000001},{"$f":"(((AAMC_Raw_Data_for_FY22[[#This Row],[Median]]-AAMC_Raw_Data_for_FY22[[#This Row],[25th]])/25)*20) + AAMC_Raw_Data_for_FY22[[#This Row],[25th]]","v":439419.6},449284,{"$f":"(((AAMC_Raw_Data_for_FY22[[#This Row],[75th]]-AAMC_Raw_Data_for_FY22[[#This Row],[Median]])/25)*5) + AAMC_Raw_Data_for_FY22[[#This Row],[Median]]","v":459825.4},{"$f":"(((AAMC_Raw_Data_for_FY22[[#This Row],[75th]]-AAMC_Raw_Data_for_FY22[[#This Row],[Median]])/25)*10) + AAMC_Raw_Data_for_FY22[[#This Row],[Median]]","v":470366.8},{"$f":"(((AAMC_Raw_Data_for_FY22[[#This Row],[75th]]-AAMC_Raw_Data_for_FY22[[#This Row],[Median]])/25)*15) + AAMC_Raw_Data_for_FY22[[#This Row],[Median]]","v":480908.2},{"$f":"(((AAMC_Raw_Data_for_FY22[[#This Row],[75th]]-AAMC_Raw_Data_for_FY22[[#This Row],[Median]])/25)*20) + AAMC_Raw_Data_for_FY22[[#This Row],[Median]]","v":491449.59999999998},501991,{"$f":"(((AAMC_Raw_Data_for_FY22[[#This Row],[75th]]-AAMC_Raw_Data_for_FY22[[#This Row],[Median]])/25)*30) + AAMC_Raw_Data_for_FY22[[#This Row],[Median]]","v":512532.4},{"$f":"(((AAMC_Raw_Data_for_FY22[[#This Row],[75th]]-AAMC_Raw_Data_for_FY22[[#This Row],[Median]])/25)*35) + AAMC_Raw_Data_for_FY22[[#This Row],[Median]]","v":523073.8},{"$f":"(((AAMC_Raw_Data_for_FY22[[#This Row],[75th]]-AAMC_Raw_Data_for_FY22[[#This Row],[Median]])/25)*40) + AAMC_Raw_Data_for_FY22[[#This Row],[Median]]","v":533615.19999999995}]
[{"$f":"AAMC_Raw_Data_for_FY22[[#This Row],[Source]]&AAMC_Raw_Data_for_FY22[[#This Row],[Type]]&AAMC_Raw_Data_for_FY22[[#This Row],[School Subset]]&AAMC_Raw_Data_for_FY22[[#This Row],[Rank]]&AAMC_Raw_Data_for_FY22[[#This Row],[Degree]]&AAMC_Raw_Data_for_FY22[[#This Row],[Department / Specialty]]&\"L\"","v":"AAMCAcademicPrivateProfessorMDAnesthesiology: GeneralL"},"Anesthesiology: General",2,"AAMC","Academic","Private","Professor","MD","2021-2022",403613,{"$f":"(((AAMC_Raw_Data_for_FY22[[#This Row],[Median]]-AAMC_Raw_Data_for_FY22[[#This Row],[25th]])/25)*5) + AAMC_Raw_Data_for_FY22[[#This Row],[25th]]","v":417398.4},{"$f":"(((AAMC_Raw_Data_for_FY22[[#This Row],[Median]]-AAMC_Raw_Data_for_FY22[[#This Row],[25th]])/25)*10) + AAMC_Raw_Data_for_FY22[[#This Row],[25th]]","v":431183.8},{"$f":"(((AAMC_Raw_Data_for_FY22[[#This Row],[Median]]-AAMC_Raw_Data_for_FY22[[#This Row],[25th]])/25)*15) + AAMC_Raw_Data_for_FY22[[#This Row],[25th]]","v":444969.2},{"$f":"(((AAMC_Raw_Data_for_FY22[[#This Row],[Median]]-AAMC_Raw_Data_for_FY22[[#This Row],[25th]])/25)*20) + AAMC_Raw_Data_for_FY22[[#This Row],[25th]]","v":458754.6},472540,{"$f":"(((AAMC_Raw_Data_for_FY22[[#This Row],[75th]]-AAMC_Raw_Data_for_FY22[[#This Row],[Median]])/25)*5) + AAMC_Raw_Data_for_FY22[[#This Row],[Median]]","v":485680},{"$f":"(((AAMC_Raw_Data_for_FY22[[#This Row],[75th]]-AAMC_Raw_Data_for_FY22[[#This Row],[Median]])/25)*10) + AAMC_Raw_Data_for_FY22[[#This Row],[Median]]","v":498820},{"$f":"(((AAMC_Raw_Data_for_FY22[[#This Row],[75th]]-AAMC_Raw_Data_for_FY22[[#This Row],[Median]])/25)*15) + AAMC_Raw_Data_for_FY22[[#This Row],[Median]]","v":511960},{"$f":"(((AAMC_Raw_Data_for_FY22[[#This Row],[75th]]-AAMC_Raw_Data_for_FY22[[#This Row],[Median]])/25)*20) + AAMC_Raw_Data_for_FY22[[#This Row],[Median]]","v":525100},538240,{"$f":"(((AAMC_Raw_Data_for_FY22[[#This Row],[75th]]-AAMC_Raw_Data_for_FY22[[#This Row],[Median]])/25)*30) + AAMC_Raw_Data_for_FY22[[#This Row],[Median]]","v":551380},{"$f":"(((AAMC_Raw_Data_for_FY22[[#This Row],[75th]]-AAMC_Raw_Data_for_FY22[[#This Row],[Median]])/25)*35) + AAMC_Raw_Data_for_FY22[[#This Row],[Median]]","v":564520},{"$f":"(((AAMC_Raw_Data_for_FY22[[#This Row],[75th]]-AAMC_Raw_Data_for_FY22[[#This Row],[Median]])/25)*40) + AAMC_Raw_Data_for_FY22[[#This Row],[Median]]","v":577660}]
[{"$f":"AAMC_Raw_Data_for_FY22[[#This Row],[Source]]&AAMC_Raw_Data_for_FY22[[#This Row],[Type]]&AAMC_Raw_Data_for_FY22[[#This Row],[School Subset]]&AAMC_Raw_Data_for_FY22[[#This Row],[Rank]]&AAMC_Raw_Data_for_FY22[[#This Row],[Degree]]&AAMC_Raw_Data_for_FY22[[#This Row],[Department / Specialty]]&\"L\"","v":"AAMCAcademicPrivateChiefMDAnesthesiology: GeneralL"},"Anesthesiology: General",6,"AAMC","Academic","Private","Chief","MD","2021-2022",462494,{"$f":"(((AAMC_Raw_Data_for_FY22[[#This Row],[Median]]-AAMC_Raw_Data_for_FY22[[#This Row],[25th]])/25)*5) + AAMC_Raw_Data_for_FY22[[#This Row],[25th]]","v":470035.20000000001},{"$f":"(((AAMC_Raw_Data_for_FY22[[#This Row],[Median]]-AAMC_Raw_Data_for_FY22[[#This Row],[25th]])/25)*10) + AAMC_Raw_Data_for_FY22[[#This Row],[25th]]","v":477576.4},{"$f":"(((AAMC_Raw_Data_for_FY22[[#This Row],[Median]]-AAMC_Raw_Data_for_FY22[[#This Row],[25th]])/25)*15) + AAMC_Raw_Data_for_FY22[[#This Row],[25th]]","v":485117.6},{"$f":"(((AAMC_Raw_Data_for_FY22[[#This Row],[Median]]-AAMC_Raw_Data_for_FY22[[#This Row],[25th]])/25)*20) + AAMC_Raw_Data_for_FY22[[#This Row],[25th]]","v":492658.8},500200,{"$f":"(((AAMC_Raw_Data_for_FY22[[#This Row],[75th]]-AAMC_Raw_Data_for_FY22[[#This Row],[Median]])/25)*5) + AAMC_Raw_Data_for_FY22[[#This Row],[Median]]","v":517582.8},{"$f":"(((AAMC_Raw_Data_for_FY22[[#This Row],[75th]]-AAMC_Raw_Data_for_FY22[[#This Row],[Median]])/25)*10) + AAMC_Raw_Data_for_FY22[[#This Row],[Median]]","v":534965.6},{"$f":"(((AAMC_Raw_Data_for_FY22[[#This Row],[75th]]-AAMC_Raw_Data_for_FY22[[#This Row],[Median]])/25)*15) + AAMC_Raw_Data_for_FY22[[#This Row],[Median]]","v":552348.4},{"$f":"(((AAMC_Raw_Data_for_FY22[[#This Row],[75th]]-AAMC_Raw_Data_for_FY22[[#This Row],[Median]])/25)*20) + AAMC_Raw_Data_for_FY22[[#This Row],[Median]]","v":569731.19999999995},587114,{"$f":"(((AAMC_Raw_Data_for_FY22[[#This Row],[75th]]-AAMC_Raw_Data_for_FY22[[#This Row],[Median]])/25)*30) + AAMC_Raw_Data_for_FY22[[#This Row],[Median]]","v":604496.80000000005},{"$f":"(((AAMC_Raw_Data_for_FY22[[#This Row],[75th]]-AAMC_Raw_Data_for_FY22[[#This Row],[Median]])/25)*35) + AAMC_Raw_Data_for_FY22[[#This Row],[Median]]","v":621879.6},{"$f":"(((AAMC_Raw_Data_for_FY22[[#This Row],[75th]]-AAMC_Raw_Data_for_FY22[[#This Row],[Median]])/25)*40) + AAMC_Raw_Data_for_FY22[[#This Row],[Median]]","v":639262.4}]
[{"$f":"AAMC_Raw_Data_for_FY22[[#This Row],[Source]]&AAMC_Raw_Data_for_FY22[[#This Row],[Type]]&AAMC_Raw_Data_for_FY22[[#This Row],[School Subset]]&AAMC_Raw_Data_for_FY22[[#This Row],[Rank]]&AAMC_Raw_Data_for_FY22[[#This Row],[Degree]]&AAMC_Raw_Data_for_FY22[[#This Row],[Department / Specialty]]&\"L\"","v":"AAMCAcademicPrivateChairMDAnesthesiology: GeneralL"},"Anesthesiology: General",1,"AAMC","Academic","Private","Chair","MD","2021-2022",647690,{"$f":"(((AAMC_Raw_Data_for_FY22[[#This Row],[Median]]-AAMC_Raw_Data_for_FY22[[#This Row],[25th]])/25)*5) + AAMC_Raw_Data_for_FY22[[#This Row],[25th]]","v":660778.6},{"$f":"(((AAMC_Raw_Data_for_FY22[[#This Row],[Median]]-AAMC_Raw_Data_for_FY22[[#This Row],[25th]])/25)*10) + AAMC_Raw_Data_for_FY22[[#This Row],[25th]]","v":673867.2},{"$f":"(((AAMC_Raw_Data_for_FY22[[#This Row],[Median]]-AAMC_Raw_Data_for_FY22[[#This Row],[25th]])/25)*15) + AAMC_Raw_Data_for_FY22[[#This Row],[25th]]","v":686955.8},{"$f":"(((AAMC_Raw_Data_for_FY22[[#This Row],[Median]]-AAMC_Raw_Data_for_FY22[[#This Row],[25th]])/25)*20) + AAMC_Raw_Data_for_FY22[[#This Row],[25th]]","v":700044.4},713133,{"$f":"(((AAMC_Raw_Data_for_FY22[[#This Row],[75th]]-AAMC_Raw_Data_for_FY22[[#This Row],[Median]])/25)*5) + AAMC_Raw_Data_for_FY22[[#This Row],[Median]]","v":745236.8},{"$f":"(((AAMC_Raw_Data_for_FY22[[#This Row],[75th]]-AAMC_Raw_Data_for_FY22[[#This Row],[Median]])/25)*10) + AAMC_Raw_Data_for_FY22[[#This Row],[Median]]","v":777340.6},{"$f":"(((AAMC_Raw_Data_for_FY22[[#This Row],[75th]]-AAMC_Raw_Data_for_FY22[[#This Row],[Median]])/25)*15) + AAMC_Raw_Data_for_FY22[[#This Row],[Median]]","v":809444.4},{"$f":"(((AAMC_Raw_Data_for_FY22[[#This Row],[75th]]-AAMC_Raw_Data_for_FY22[[#This Row],[Median]])/25)*20) + AAMC_Raw_Data_for_FY22[[#This Row],[Median]]","v":841548.2},873652,{"$f":"(((AAMC_Raw_Data_for_FY22[[#This Row],[75th]]-AAMC_Raw_Data_for_FY22[[#This Row],[Median]])/25)*30) + AAMC_Raw_Data_for_FY22[[#This Row],[Median]]","v":905755.8},{"$f":"(((AAMC_Raw_Data_for_FY22[[#This Row],[75th]]-AAMC_Raw_Data_for_FY22[[#This Row],[Median]])/25)*35) + AAMC_Raw_Data_for_FY22[[#This Row],[Median]]","v":937859.6},{"$f":"(((AAMC_Raw_Data_for_FY22[[#This Row],[75th]]-AAMC_Raw_Data_for_FY22[[#This Row],[Median]])/25)*40) + AAMC_Raw_Data_for_FY22[[#This Row],[Median]]","v":969963.4}]
[{"$f":"AAMC_Raw_Data_for_FY22[[#This Row],[Source]]&AAMC_Raw_Data_for_FY22[[#This Row],[Type]]&AAMC_Raw_Data_for_FY22[[#This Row],[School Subset]]&AAMC_Raw_Data_for_FY22[[#This Row],[Rank]]&AAMC_Raw_Data_for_FY22[[#This Row],[Degree]]&AAMC_Raw_Data_for_FY22[[#This Row],[Department / Specialty]]&\"L\"","v":"AAMCAcademicPrivateInstructorMDAnesthesiology: Pain ManagementL"},"Anesthesiology: Pain Management",5,"AAMC","Academic","Private","Instructor","MD","2021-2022",306000,{"$f":"(((AAMC_Raw_Data_for_FY22[[#This Row],[Median]]-AAMC_Raw_Data_for_FY22[[#This Row],[25th]])/25)*5) + AAMC_Raw_Data_for_FY22[[#This Row],[25th]]","v":308600},{"$f":"(((AAMC_Raw_Data_for_FY22[[#This Row],[Median]]-AAMC_Raw_Data_for_FY22[[#This Row],[25th]])/25)*10) + AAMC_Raw_Data_for_FY22[[#This Row],[25th]]","v":311200},{"$f":"(((AAMC_Raw_Data_for_FY22[[#This Row],[Median]]-AAMC_Raw_Data_for_FY22[[#This Row],[25th]])/25)*15) + AAMC_Raw_Data_for_FY22[[#This Row],[25th]]","v":313800},{"$f":"(((AAMC_Raw_Data_for_FY22[[#This Row],[Median]]-AAMC_Raw_Data_for_FY22[[#This Row],[25th]])/25)*20) + AAMC_Raw_Data_for_FY22[[#This Row],[25th]]","v":316400},319000,{"$f":"(((AAMC_Raw_Data_for_FY22[[#This Row],[75th]]-AAMC_Raw_Data_for_FY22[[#This Row],[Median]])/25)*5) + AAMC_Raw_Data_for_FY22[[#This Row],[Median]]","v":332035.20000000001},{"$f":"(((AAMC_Raw_Data_for_FY22[[#This Row],[75th]]-AAMC_Raw_Data_for_FY22[[#This Row],[Median]])/25)*10) + AAMC_Raw_Data_for_FY22[[#This Row],[Median]]","v":345070.4},{"$f":"(((AAMC_Raw_Data_for_FY22[[#This Row],[75th]]-AAMC_Raw_Data_for_FY22[[#This Row],[Median]])/25)*15) + AAMC_Raw_Data_for_FY22[[#This Row],[Median]]","v":358105.59999999998},{"$f":"(((AAMC_Raw_Data_for_FY22[[#This Row],[75th]]-AAMC_Raw_Data_for_FY22[[#This Row],[Median]])/25)*20) + AAMC_Raw_Data_for_FY22[[#This Row],[Median]]","v":371140.8},384176,{"$f":"(((AAMC_Raw_Data_for_FY22[[#This Row],[75th]]-AAMC_Raw_Data_for_FY22[[#This Row],[Median]])/25)*30) + AAMC_Raw_Data_for_FY22[[#This Row],[Median]]","v":397211.2},{"$f":"(((AAMC_Raw_Data_for_FY22[[#This Row],[75th]]-AAMC_Raw_Data_for_FY22[[#This Row],[Median]])/25)*35) + AAMC_Raw_Data_for_FY22[[#This Row],[Median]]","v":410246.40000000002},{"$f":"(((AAMC_Raw_Data_for_FY22[[#This Row],[75th]]-AAMC_Raw_Data_for_FY22[[#This Row],[Median]])/25)*40) + AAMC_Raw_Data_for_FY22[[#This Row],[Median]]","v":423281.6}]
[{"$f":"AAMC_Raw_Data_for_FY22[[#This Row],[Source]]&AAMC_Raw_Data_for_FY22[[#This Row],[Type]]&AAMC_Raw_Data_for_FY22[[#This Row],[School Subset]]&AAMC_Raw_Data_for_FY22[[#This Row],[Rank]]&AAMC_Raw_Data_for_FY22[[#This Row],[Degree]]&AAMC_Raw_Data_for_FY22[[#This Row],[Department / Specialty]]&\"L\"","v":"AAMCAcademicPrivateAssistantMDAnesthesiology: Pain ManagementL"},"Anesthesiology: Pain Management",4,"AAMC","Academic","Private","Assistant","MD","2021-2022",378497,{"$f":"(((AAMC_Raw_Data_for_FY22[[#This Row],[Median]]-AAMC_Raw_Data_for_FY22[[#This Row],[25th]])/25)*5) + AAMC_Raw_Data_for_FY22[[#This Row],[25th]]","v":387866.8},{"$f":"(((AAMC_Raw_Data_for_FY22[[#This Row],[Median]]-AAMC_Raw_Data_for_FY22[[#This Row],[25th]])/25)*10) + AAMC_Raw_Data_for_FY22[[#This Row],[25th]]","v":397236.6},{"$f":"(((AAMC_Raw_Data_for_FY22[[#This Row],[Median]]-AAMC_Raw_Data_for_FY22[[#This Row],[25th]])/25)*15) + AAMC_Raw_Data_for_FY22[[#This Row],[25th]]","v":406606.4},{"$f":"(((AAMC_Raw_Data_for_FY22[[#This Row],[Median]]-AAMC_Raw_Data_for_FY22[[#This Row],[25th]])/25)*20) + AAMC_Raw_Data_for_FY22[[#This Row],[25th]]","v":415976.2},425346,{"$f":"(((AAMC_Raw_Data_for_FY22[[#This Row],[75th]]-AAMC_Raw_Data_for_FY22[[#This Row],[Median]])/25)*5) + AAMC_Raw_Data_for_FY22[[#This Row],[Median]]","v":438211.8},{"$f":"(((AAMC_Raw_Data_for_FY22[[#This Row],[75th]]-AAMC_Raw_Data_for_FY22[[#This Row],[Median]])/25)*10) + AAMC_Raw_Data_for_FY22[[#This Row],[Median]]","v":451077.6},{"$f":"(((AAMC_Raw_Data_for_FY22[[#This Row],[75th]]-AAMC_Raw_Data_for_FY22[[#This Row],[Median]])/25)*15) + AAMC_Raw_Data_for_FY22[[#This Row],[Median]]","v":463943.4},{"$f":"(((AAMC_Raw_Data_for_FY22[[#This Row],[75th]]-AAMC_Raw_Data_for_FY22[[#This Row],[Median]])/25)*20) + AAMC_Raw_Data_for_FY22[[#This Row],[Median]]","v":476809.2},489675,{"$f":"(((AAMC_Raw_Data_for_FY22[[#This Row],[75th]]-AAMC_Raw_Data_for_FY22[[#This Row],[Median]])/25)*30) + AAMC_Raw_Data_for_FY22[[#This Row],[Median]]","v":502540.79999999999},{"$f":"(((AAMC_Raw_Data_for_FY22[[#This Row],[75th]]-AAMC_Raw_Data_for_FY22[[#This Row],[Median]])/25)*35) + AAMC_Raw_Data_for_FY22[[#This Row],[Median]]","v":515406.6},{"$f":"(((AAMC_Raw_Data_for_FY22[[#This Row],[75th]]-AAMC_Raw_Data_for_FY22[[#This Row],[Median]])/25)*40) + AAMC_Raw_Data_for_FY22[[#This Row],[Median]]","v":528272.4}]
[{"$f":"AAMC_Raw_Data_for_FY22[[#This Row],[Source]]&AAMC_Raw_Data_for_FY22[[#This Row],[Type]]&AAMC_Raw_Data_for_FY22[[#This Row],[School Subset]]&AAMC_Raw_Data_for_FY22[[#This Row],[Rank]]&AAMC_Raw_Data_for_FY22[[#This Row],[Degree]]&AAMC_Raw_Data_for_FY22[[#This Row],[Department / Specialty]]&\"L\"","v":"AAMCAcademicPrivateAssociateMDAnesthesiology: Pain ManagementL"},"Anesthesiology: Pain Management",3,"AAMC","Academic","Private","Associate","MD","2021-2022",407850,{"$f":"(((AAMC_Raw_Data_for_FY22[[#This Row],[Median]]-AAMC_Raw_Data_for_FY22[[#This Row],[25th]])/25)*5) + AAMC_Raw_Data_for_FY22[[#This Row],[25th]]","v":423146.4},{"$f":"(((AAMC_Raw_Data_for_FY22[[#This Row],[Median]]-AAMC_Raw_Data_for_FY22[[#This Row],[25th]])/25)*10) + AAMC_Raw_Data_for_FY22[[#This Row],[25th]]","v":438442.8},{"$f":"(((AAMC_Raw_Data_for_FY22[[#This Row],[Median]]-AAMC_Raw_Data_for_FY22[[#This Row],[25th]])/25)*15) + AAMC_Raw_Data_for_FY22[[#This Row],[25th]]","v":453739.2},{"$f":"(((AAMC_Raw_Data_for_FY22[[#This Row],[Median]]-AAMC_Raw_Data_for_FY22[[#This Row],[25th]])/25)*20) + AAMC_Raw_Data_for_FY22[[#This Row],[25th]]","v":469035.6},484332,{"$f":"(((AAMC_Raw_Data_for_FY22[[#This Row],[75th]]-AAMC_Raw_Data_for_FY22[[#This Row],[Median]])/25)*5) + AAMC_Raw_Data_for_FY22[[#This Row],[Median]]","v":497713.2},{"$f":"(((AAMC_Raw_Data_for_FY22[[#This Row],[75th]]-AAMC_Raw_Data_for_FY22[[#This Row],[Median]])/25)*10) + AAMC_Raw_Data_for_FY22[[#This Row],[Median]]","v":511094.4},{"$f":"(((AAMC_Raw_Data_for_FY22[[#This Row],[75th]]-AAMC_Raw_Data_for_FY22[[#This Row],[Median]])/25)*15) + AAMC_Raw_Data_for_FY22[[#This Row],[Median]]","v":524475.6},{"$f":"(((AAMC_Raw_Data_for_FY22[[#This Row],[75th]]-AAMC_Raw_Data_for_FY22[[#This Row],[Median]])/25)*20) + AAMC_Raw_Data_for_FY22[[#This Row],[Median]]","v":537856.80000000005},551238,{"$f":"(((AAMC_Raw_Data_for_FY22[[#This Row],[75th]]-AAMC_Raw_Data_for_FY22[[#This Row],[Median]])/25)*30) + AAMC_Raw_Data_for_FY22[[#This Row],[Median]]","v":564619.19999999995},{"$f":"(((AAMC_Raw_Data_for_FY22[[#This Row],[75th]]-AAMC_Raw_Data_for_FY22[[#This Row],[Median]])/25)*35) + AAMC_Raw_Data_for_FY22[[#This Row],[Median]]","v":578000.4},{"$f":"(((AAMC_Raw_Data_for_FY22[[#This Row],[75th]]-AAMC_Raw_Data_for_FY22[[#This Row],[Median]])/25)*40) + AAMC_Raw_Data_for_FY22[[#This Row],[Median]]","v":591381.6}]
[{"$f":"AAMC_Raw_Data_for_FY22[[#This Row],[Source]]&AAMC_Raw_Data_for_FY22[[#This Row],[Type]]&AAMC_Raw_Data_for_FY22[[#This Row],[School Subset]]&AAMC_Raw_Data_for_FY22[[#This Row],[Rank]]&AAMC_Raw_Data_for_FY22[[#This Row],[Degree]]&AAMC_Raw_Data_for_FY22[[#This Row],[Department / Specialty]]&\"L\"","v":"AAMCAcademicPrivateProfessorMDAnesthesiology: Pain ManagementL"},"Anesthesiology: Pain Management",2,"AAMC","Academic","Private","Professor","MD","2021-2022",388431,{"$f":"(((AAMC_Raw_Data_for_FY22[[#This Row],[Median]]-AAMC_Raw_Data_for_FY22[[#This Row],[25th]])/25)*5) + AAMC_Raw_Data_for_FY22[[#This Row],[25th]]","v":406492},{"$f":"(((AAMC_Raw_Data_for_FY22[[#This Row],[Median]]-AAMC_Raw_Data_for_FY22[[#This Row],[25th]])/25)*10) + AAMC_Raw_Data_for_FY22[[#This Row],[25th]]","v":424553},{"$f":"(((AAMC_Raw_Data_for_FY22[[#This Row],[Median]]-AAMC_Raw_Data_for_FY22[[#This Row],[25th]])/25)*15) + AAMC_Raw_Data_for_FY22[[#This Row],[25th]]","v":442614},{"$f":"(((AAMC_Raw_Data_for_FY22[[#This Row],[Median]]-AAMC_Raw_Data_for_FY22[[#This Row],[25th]])/25)*20) + AAMC_Raw_Data_for_FY22[[#This Row],[25th]]","v":460675},478736,{"$f":"(((AAMC_Raw_Data_for_FY22[[#This Row],[75th]]-AAMC_Raw_Data_for_FY22[[#This Row],[Median]])/25)*5) + AAMC_Raw_Data_for_FY22[[#This Row],[Median]]","v":488790.2},{"$f":"(((AAMC_Raw_Data_for_FY22[[#This Row],[75th]]-AAMC_Raw_Data_for_FY22[[#This Row],[Median]])/25)*10) + AAMC_Raw_Data_for_FY22[[#This Row],[Median]]","v":498844.4},{"$f":"(((AAMC_Raw_Data_for_FY22[[#This Row],[75th]]-AAMC_Raw_Data_for_FY22[[#This Row],[Median]])/25)*15) + AAMC_Raw_Data_for_FY22[[#This Row],[Median]]","v":508898.6},{"$f":"(((AAMC_Raw_Data_for_FY22[[#This Row],[75th]]-AAMC_Raw_Data_for_FY22[[#This Row],[Median]])/25)*20) + AAMC_Raw_Data_for_FY22[[#This Row],[Median]]","v":518952.8},529007,{"$f":"(((AAMC_Raw_Data_for_FY22[[#This Row],[75th]]-AAMC_Raw_Data_for_FY22[[#This Row],[Median]])/25)*30) + AAMC_Raw_Data_for_FY22[[#This Row],[Median]]","v":539061.19999999995},{"$f":"(((AAMC_Raw_Data_for_FY22[[#This Row],[75th]]-AAMC_Raw_Data_for_FY22[[#This Row],[Median]])/25)*35) + AAMC_Raw_Data_for_FY22[[#This Row],[Median]]","v":549115.4},{"$f":"(((AAMC_Raw_Data_for_FY22[[#This Row],[75th]]-AAMC_Raw_Data_for_FY22[[#This Row],[Median]])/25)*40) + AAMC_Raw_Data_for_FY22[[#This Row],[Median]]","v":559169.6}]
[{"$f":"AAMC_Raw_Data_for_FY22[[#This Row],[Source]]&AAMC_Raw_Data_for_FY22[[#This Row],[Type]]&AAMC_Raw_Data_for_FY22[[#This Row],[School Subset]]&AAMC_Raw_Data_for_FY22[[#This Row],[Rank]]&AAMC_Raw_Data_for_FY22[[#This Row],[Degree]]&AAMC_Raw_Data_for_FY22[[#This Row],[Department / Specialty]]&\"L\"","v":"AAMCAcademicPrivateChiefMDAnesthesiology: Pain ManagementL"},"Anesthesiology: Pain Management",6,"AAMC","Academic","Private","Chief","MD","2021-2022",null,{"$f":"(((AAMC_Raw_Data_for_FY22[[#This Row],[Median]]-AAMC_Raw_Data_for_FY22[[#This Row],[25th]])/25)*5) + AAMC_Raw_Data_for_FY22[[#This Row],[25th]]","v":0},{"$f":"(((AAMC_Raw_Data_for_FY22[[#This Row],[Median]]-AAMC_Raw_Data_for_FY22[[#This Row],[25th]])/25)*10) + AAMC_Raw_Data_for_FY22[[#This Row],[25th]]","v":0},{"$f":"(((AAMC_Raw_Data_for_FY22[[#This Row],[Median]]-AAMC_Raw_Data_for_FY22[[#This Row],[25th]])/25)*15) + AAMC_Raw_Data_for_FY22[[#This Row],[25th]]","v":0},{"$f":"(((AAMC_Raw_Data_for_FY22[[#This Row],[Median]]-AAMC_Raw_Data_for_FY22[[#This Row],[25th]])/25)*20) + AAMC_Raw_Data_for_FY22[[#This Row],[25th]]","v":0},null,{"$f":"(((AAMC_Raw_Data_for_FY22[[#This Row],[75th]]-AAMC_Raw_Data_for_FY22[[#This Row],[Median]])/25)*5) + AAMC_Raw_Data_for_FY22[[#This Row],[Median]]","v":0},{"$f":"(((AAMC_Raw_Data_for_FY22[[#This Row],[75th]]-AAMC_Raw_Data_for_FY22[[#This Row],[Median]])/25)*10) + AAMC_Raw_Data_for_FY22[[#This Row],[Median]]","v":0},{"$f":"(((AAMC_Raw_Data_for_FY22[[#This Row],[75th]]-AAMC_Raw_Data_for_FY22[[#This Row],[Median]])/25)*15) + AAMC_Raw_Data_for_FY22[[#This Row],[Median]]","v":0},{"$f":"(((AAMC_Raw_Data_for_FY22[[#This Row],[75th]]-AAMC_Raw_Data_for_FY22[[#This Row],[Median]])/25)*20) + AAMC_Raw_Data_for_FY22[[#This Row],[Median]]","v":0},null,{"$f":"(((AAMC_Raw_Data_for_FY22[[#This Row],[75th]]-AAMC_Raw_Data_for_FY22[[#This Row],[Median]])/25)*30) + AAMC_Raw_Data_for_FY22[[#This Row],[Median]]","v":0},{"$f":"(((AAMC_Raw_Data_for_FY22[[#This Row],[75th]]-AAMC_Raw_Data_for_FY22[[#This Row],[Median]])/25)*35) + AAMC_Raw_Data_for_FY22[[#This Row],[Median]]","v":0},{"$f":"(((AAMC_Raw_Data_for_FY22[[#This Row],[75th]]-AAMC_Raw_Data_for_FY22[[#This Row],[Median]])/25)*40) + AAMC_Raw_Data_for_FY22[[#This Row],[Median]]","v":0}]
[{"$f":"AAMC_Raw_Data_for_FY22[[#This Row],[Source]]&AAMC_Raw_Data_for_FY22[[#This Row],[Type]]&AAMC_Raw_Data_for_FY22[[#This Row],[School Subset]]&AAMC_Raw_Data_for_FY22[[#This Row],[Rank]]&AAMC_Raw_Data_for_FY22[[#This Row],[Degree]]&AAMC_Raw_Data_for_FY22[[#This Row],[Department / Specialty]]&\"L\"","v":"AAMCAcademicPrivateInstructorMDAnesthesiology: PediatricL"},"Anesthesiology: Pediatric",5,"AAMC","Academic","Private","Instructor","MD","2021-2022",280887,{"$f":"(((AAMC_Raw_Data_for_FY22[[#This Row],[Median]]-AAMC_Raw_Data_for_FY22[[#This Row],[25th]])/25)*5) + AAMC_Raw_Data_for_FY22[[#This Row],[25th]]","v":294524.40000000002},{"$f":"(((AAMC_Raw_Data_for_FY22[[#This Row],[Median]]-AAMC_Raw_Data_for_FY22[[#This Row],[25th]])/25)*10) + AAMC_Raw_Data_for_FY22[[#This Row],[25th]]","v":308161.8},{"$f":"(((AAMC_Raw_Data_for_FY22[[#This Row],[Median]]-AAMC_Raw_Data_for_FY22[[#This Row],[25th]])/25)*15) + AAMC_Raw_Data_for_FY22[[#This Row],[25th]]","v":321799.2},{"$f":"(((AAMC_Raw_Data_for_FY22[[#This Row],[Median]]-AAMC_Raw_Data_for_FY22[[#This Row],[25th]])/25)*20) + AAMC_Raw_Data_for_FY22[[#This Row],[25th]]","v":335436.59999999998},349074,{"$f":"(((AAMC_Raw_Data_for_FY22[[#This Row],[75th]]-AAMC_Raw_Data_for_FY22[[#This Row],[Median]])/25)*5) + AAMC_Raw_Data_for_FY22[[#This Row],[Median]]","v":353136.8},{"$f":"(((AAMC_Raw_Data_for_FY22[[#This Row],[75th]]-AAMC_Raw_Data_for_FY22[[#This Row],[Median]])/25)*10) + AAMC_Raw_Data_for_FY22[[#This Row],[Median]]","v":357199.6},{"$f":"(((AAMC_Raw_Data_for_FY22[[#This Row],[75th]]-AAMC_Raw_Data_for_FY22[[#This Row],[Median]])/25)*15) + AAMC_Raw_Data_for_FY22[[#This Row],[Median]]","v":361262.4},{"$f":"(((AAMC_Raw_Data_for_FY22[[#This Row],[75th]]-AAMC_Raw_Data_for_FY22[[#This Row],[Median]])/25)*20) + AAMC_Raw_Data_for_FY22[[#This Row],[Median]]","v":365325.2},369388,{"$f":"(((AAMC_Raw_Data_for_FY22[[#This Row],[75th]]-AAMC_Raw_Data_for_FY22[[#This Row],[Median]])/25)*30) + AAMC_Raw_Data_for_FY22[[#This Row],[Median]]","v":373450.8},{"$f":"(((AAMC_Raw_Data_for_FY22[[#This Row],[75th]]-AAMC_Raw_Data_for_FY22[[#This Row],[Median]])/25)*35) + AAMC_Raw_Data_for_FY22[[#This Row],[Median]]","v":377513.6},{"$f":"(((AAMC_Raw_Data_for_FY22[[#This Row],[75th]]-AAMC_Raw_Data_for_FY22[[#This Row],[Median]])/25)*40) + AAMC_Raw_Data_for_FY22[[#This Row],[Median]]","v":381576.4}]
[{"$f":"AAMC_Raw_Data_for_FY22[[#This Row],[Source]]&AAMC_Raw_Data_for_FY22[[#This Row],[Type]]&AAMC_Raw_Data_for_FY22[[#This Row],[School Subset]]&AAMC_Raw_Data_for_FY22[[#This Row],[Rank]]&AAMC_Raw_Data_for_FY22[[#This Row],[Degree]]&AAMC_Raw_Data_for_FY22[[#This Row],[Department / Specialty]]&\"L\"","v":"AAMCAcademicPrivateAssistantMDAnesthesiology: PediatricL"},"Anesthesiology: Pediatric",4,"AAMC","Academic","Private","Assistant","MD","2021-2022",366899,{"$f":"(((AAMC_Raw_Data_for_FY22[[#This Row],[Median]]-AAMC_Raw_Data_for_FY22[[#This Row],[25th]])/25)*5) + AAMC_Raw_Data_for_FY22[[#This Row],[25th]]","v":378138.8},{"$f":"(((AAMC_Raw_Data_for_FY22[[#This Row],[Median]]-AAMC_Raw_Data_for_FY22[[#This Row],[25th]])/25)*10) + AAMC_Raw_Data_for_FY22[[#This Row],[25th]]","v":389378.6},{"$f":"(((AAMC_Raw_Data_for_FY22[[#This Row],[Median]]-AAMC_Raw_Data_for_FY22[[#This Row],[25th]])/25)*15) + AAMC_Raw_Data_for_FY22[[#This Row],[25th]]","v":400618.4},{"$f":"(((AAMC_Raw_Data_for_FY22[[#This Row],[Median]]-AAMC_Raw_Data_for_FY22[[#This Row],[25th]])/25)*20) + AAMC_Raw_Data_for_FY22[[#This Row],[25th]]","v":411858.2},423098,{"$f":"(((AAMC_Raw_Data_for_FY22[[#This Row],[75th]]-AAMC_Raw_Data_for_FY22[[#This Row],[Median]])/25)*5) + AAMC_Raw_Data_for_FY22[[#This Row],[Median]]","v":431683},{"$f":"(((AAMC_Raw_Data_for_FY22[[#This Row],[75th]]-AAMC_Raw_Data_for_FY22[[#This Row],[Median]])/25)*10) + AAMC_Raw_Data_for_FY22[[#This Row],[Median]]","v":440268},{"$f":"(((AAMC_Raw_Data_for_FY22[[#This Row],[75th]]-AAMC_Raw_Data_for_FY22[[#This Row],[Median]])/25)*15) + AAMC_Raw_Data_for_FY22[[#This Row],[Median]]","v":448853},{"$f":"(((AAMC_Raw_Data_for_FY22[[#This Row],[75th]]-AAMC_Raw_Data_for_FY22[[#This Row],[Median]])/25)*20) + AAMC_Raw_Data_for_FY22[[#This Row],[Median]]","v":457438},466023,{"$f":"(((AAMC_Raw_Data_for_FY22[[#This Row],[75th]]-AAMC_Raw_Data_for_FY22[[#This Row],[Median]])/25)*30) + AAMC_Raw_Data_for_FY22[[#This Row],[Median]]","v":474608},{"$f":"(((AAMC_Raw_Data_for_FY22[[#This Row],[75th]]-AAMC_Raw_Data_for_FY22[[#This Row],[Median]])/25)*35) + AAMC_Raw_Data_for_FY22[[#This Row],[Median]]","v":483193},{"$f":"(((AAMC_Raw_Data_for_FY22[[#This Row],[75th]]-AAMC_Raw_Data_for_FY22[[#This Row],[Median]])/25)*40) + AAMC_Raw_Data_for_FY22[[#This Row],[Median]]","v":491778}]
[{"$f":"AAMC_Raw_Data_for_FY22[[#This Row],[Source]]&AAMC_Raw_Data_for_FY22[[#This Row],[Type]]&AAMC_Raw_Data_for_FY22[[#This Row],[School Subset]]&AAMC_Raw_Data_for_FY22[[#This Row],[Rank]]&AAMC_Raw_Data_for_FY22[[#This Row],[Degree]]&AAMC_Raw_Data_for_FY22[[#This Row],[Department / Specialty]]&\"L\"","v":"AAMCAcademicPrivateAssociateMDAnesthesiology: PediatricL"},"Anesthesiology: Pediatric",3,"AAMC","Academic","Private","Associate","MD","2021-2022",411650,{"$f":"(((AAMC_Raw_Data_for_FY22[[#This Row],[Median]]-AAMC_Raw_Data_for_FY22[[#This Row],[25th]])/25)*5) + AAMC_Raw_Data_for_FY22[[#This Row],[25th]]","v":426725.8},{"$f":"(((AAMC_Raw_Data_for_FY22[[#This Row],[Median]]-AAMC_Raw_Data_for_FY22[[#This Row],[25th]])/25)*10) + AAMC_Raw_Data_for_FY22[[#This Row],[25th]]","v":441801.6},{"$f":"(((AAMC_Raw_Data_for_FY22[[#This Row],[Median]]-AAMC_Raw_Data_for_FY22[[#This Row],[25th]])/25)*15) + AAMC_Raw_Data_for_FY22[[#This Row],[25th]]","v":456877.4},{"$f":"(((AAMC_Raw_Data_for_FY22[[#This Row],[Median]]-AAMC_Raw_Data_for_FY22[[#This Row],[25th]])/25)*20) + AAMC_Raw_Data_for_FY22[[#This Row],[25th]]","v":471953.2},487029,{"$f":"(((AAMC_Raw_Data_for_FY22[[#This Row],[75th]]-AAMC_Raw_Data_for_FY22[[#This Row],[Median]])/25)*5) + AAMC_Raw_Data_for_FY22[[#This Row],[Median]]","v":495060.8},{"$f":"(((AAMC_Raw_Data_for_FY22[[#This Row],[75th]]-AAMC_Raw_Data_for_FY22[[#This Row],[Median]])/25)*10) + AAMC_Raw_Data_for_FY22[[#This Row],[Median]]","v":503092.6},{"$f":"(((AAMC_Raw_Data_for_FY22[[#This Row],[75th]]-AAMC_Raw_Data_for_FY22[[#This Row],[Median]])/25)*15) + AAMC_Raw_Data_for_FY22[[#This Row],[Median]]","v":511124.4},{"$f":"(((AAMC_Raw_Data_for_FY22[[#This Row],[75th]]-AAMC_Raw_Data_for_FY22[[#This Row],[Median]])/25)*20) + AAMC_Raw_Data_for_FY22[[#This Row],[Median]]","v":519156.2},527188,{"$f":"(((AAMC_Raw_Data_for_FY22[[#This Row],[75th]]-AAMC_Raw_Data_for_FY22[[#This Row],[Median]])/25)*30) + AAMC_Raw_Data_for_FY22[[#This Row],[Median]]","v":535219.80000000005},{"$f":"(((AAMC_Raw_Data_for_FY22[[#This Row],[75th]]-AAMC_Raw_Data_for_FY22[[#This Row],[Median]])/25)*35) + AAMC_Raw_Data_for_FY22[[#This Row],[Median]]","v":543251.6},{"$f":"(((AAMC_Raw_Data_for_FY22[[#This Row],[75th]]-AAMC_Raw_Data_for_FY22[[#This Row],[Median]])/25)*40) + AAMC_Raw_Data_for_FY22[[#This Row],[Median]]","v":551283.4}]
[{"$f":"AAMC_Raw_Data_for_FY22[[#This Row],[Source]]&AAMC_Raw_Data_for_FY22[[#This Row],[Type]]&AAMC_Raw_Data_for_FY22[[#This Row],[School Subset]]&AAMC_Raw_Data_for_FY22[[#This Row],[Rank]]&AAMC_Raw_Data_for_FY22[[#This Row],[Degree]]&AAMC_Raw_Data_for_FY22[[#This Row],[Department / Specialty]]&\"L\"","v":"AAMCAcademicPrivateProfessorMDAnesthesiology: PediatricL"},"Anesthesiology: Pediatric",2,"AAMC","Academic","Private","Professor","MD","2021-2022",444569,{"$f":"(((AAMC_Raw_Data_for_FY22[[#This Row],[Median]]-AAMC_Raw_Data_for_FY22[[#This Row],[25th]])/25)*5) + AAMC_Raw_Data_for_FY22[[#This Row],[25th]]","v":460068.4},{"$f":"(((AAMC_Raw_Data_for_FY22[[#This Row],[Median]]-AAMC_Raw_Data_for_FY22[[#This Row],[25th]])/25)*10) + AAMC_Raw_Data_for_FY22[[#This Row],[25th]]","v":475567.8},{"$f":"(((AAMC_Raw_Data_for_FY22[[#This Row],[Median]]-AAMC_Raw_Data_for_FY22[[#This Row],[25th]])/25)*15) + AAMC_Raw_Data_for_FY22[[#This Row],[25th]]","v":491067.2},{"$f":"(((AAMC_Raw_Data_for_FY22[[#This Row],[Median]]-AAMC_Raw_Data_for_FY22[[#This Row],[25th]])/25)*20) + AAMC_Raw_Data_for_FY22[[#This Row],[25th]]","v":506566.6},522066,{"$f":"(((AAMC_Raw_Data_for_FY22[[#This Row],[75th]]-AAMC_Raw_Data_for_FY22[[#This Row],[Median]])/25)*5) + AAMC_Raw_Data_for_FY22[[#This Row],[Median]]","v":533172},{"$f":"(((AAMC_Raw_Data_for_FY22[[#This Row],[75th]]-AAMC_Raw_Data_for_FY22[[#This Row],[Median]])/25)*10) + AAMC_Raw_Data_for_FY22[[#This Row],[Median]]","v":544278},{"$f":"(((AAMC_Raw_Data_for_FY22[[#This Row],[75th]]-AAMC_Raw_Data_for_FY22[[#This Row],[Median]])/25)*15) + AAMC_Raw_Data_for_FY22[[#This Row],[Median]]","v":555384},{"$f":"(((AAMC_Raw_Data_for_FY22[[#This Row],[75th]]-AAMC_Raw_Data_for_FY22[[#This Row],[Median]])/25)*20) + AAMC_Raw_Data_for_FY22[[#This Row],[Median]]","v":566490},577596,{"$f":"(((AAMC_Raw_Data_for_FY22[[#This Row],[75th]]-AAMC_Raw_Data_for_FY22[[#This Row],[Median]])/25)*30) + AAMC_Raw_Data_for_FY22[[#This Row],[Median]]","v":588702},{"$f":"(((AAMC_Raw_Data_for_FY22[[#This Row],[75th]]-AAMC_Raw_Data_for_FY22[[#This Row],[Median]])/25)*35) + AAMC_Raw_Data_for_FY22[[#This Row],[Median]]","v":599808},{"$f":"(((AAMC_Raw_Data_for_FY22[[#This Row],[75th]]-AAMC_Raw_Data_for_FY22[[#This Row],[Median]])/25)*40) + AAMC_Raw_Data_for_FY22[[#This Row],[Median]]","v":610914}]
[{"$f":"AAMC_Raw_Data_for_FY22[[#This Row],[Source]]&AAMC_Raw_Data_for_FY22[[#This Row],[Type]]&AAMC_Raw_Data_for_FY22[[#This Row],[School Subset]]&AAMC_Raw_Data_for_FY22[[#This Row],[Rank]]&AAMC_Raw_Data_for_FY22[[#This Row],[Degree]]&AAMC_Raw_Data_for_FY22[[#This Row],[Department / Specialty]]&\"L\"","v":"AAMCAcademicPrivateChiefMDAnesthesiology: PediatricL"},"Anesthesiology: Pediatric",6,"AAMC","Academic","Private","Chief","MD","2021-2022",518276,{"$f":"(((AAMC_Raw_Data_for_FY22[[#This Row],[Median]]-AAMC_Raw_Data_for_FY22[[#This Row],[25th]])/25)*5) + AAMC_Raw_Data_for_FY22[[#This Row],[25th]]","v":534579.80000000005},{"$f":"(((AAMC_Raw_Data_for_FY22[[#This Row],[Median]]-AAMC_Raw_Data_for_FY22[[#This Row],[25th]])/25)*10) + AAMC_Raw_Data_for_FY22[[#This Row],[25th]]","v":550883.6},{"$f":"(((AAMC_Raw_Data_for_FY22[[#This Row],[Median]]-AAMC_Raw_Data_for_FY22[[#This Row],[25th]])/25)*15) + AAMC_Raw_Data_for_FY22[[#This Row],[25th]]","v":567187.4},{"$f":"(((AAMC_Raw_Data_for_FY22[[#This Row],[Median]]-AAMC_Raw_Data_for_FY22[[#This Row],[25th]])/25)*20) + AAMC_Raw_Data_for_FY22[[#This Row],[25th]]","v":583491.19999999995},599795,{"$f":"(((AAMC_Raw_Data_for_FY22[[#This Row],[75th]]-AAMC_Raw_Data_for_FY22[[#This Row],[Median]])/25)*5) + AAMC_Raw_Data_for_FY22[[#This Row],[Median]]","v":611949.6},{"$f":"(((AAMC_Raw_Data_for_FY22[[#This Row],[75th]]-AAMC_Raw_Data_for_FY22[[#This Row],[Median]])/25)*10) + AAMC_Raw_Data_for_FY22[[#This Row],[Median]]","v":624104.19999999995},{"$f":"(((AAMC_Raw_Data_for_FY22[[#This Row],[75th]]-AAMC_Raw_Data_for_FY22[[#This Row],[Median]])/25)*15) + AAMC_Raw_Data_for_FY22[[#This Row],[Median]]","v":636258.80000000005},{"$f":"(((AAMC_Raw_Data_for_FY22[[#This Row],[75th]]-AAMC_Raw_Data_for_FY22[[#This Row],[Median]])/25)*20) + AAMC_Raw_Data_for_FY22[[#This Row],[Median]]","v":648413.4},660568,{"$f":"(((AAMC_Raw_Data_for_FY22[[#This Row],[75th]]-AAMC_Raw_Data_for_FY22[[#This Row],[Median]])/25)*30) + AAMC_Raw_Data_for_FY22[[#This Row],[Median]]","v":672722.6},{"$f":"(((AAMC_Raw_Data_for_FY22[[#This Row],[75th]]-AAMC_Raw_Data_for_FY22[[#This Row],[Median]])/25)*35) + AAMC_Raw_Data_for_FY22[[#This Row],[Median]]","v":684877.2},{"$f":"(((AAMC_Raw_Data_for_FY22[[#This Row],[75th]]-AAMC_Raw_Data_for_FY22[[#This Row],[Median]])/25)*40) + AAMC_Raw_Data_for_FY22[[#This Row],[Median]]","v":697031.8}]
[{"$f":"AAMC_Raw_Data_for_FY22[[#This Row],[Source]]&AAMC_Raw_Data_for_FY22[[#This Row],[Type]]&AAMC_Raw_Data_for_FY22[[#This Row],[School Subset]]&AAMC_Raw_Data_for_FY22[[#This Row],[Rank]]&AAMC_Raw_Data_for_FY22[[#This Row],[Degree]]&AAMC_Raw_Data_for_FY22[[#This Row],[Department / Specialty]]&\"L\"","v":"AAMCAcademicPrivateChairMDAnesthesiology: PediatricL"},"Anesthesiology: Pediatric",1,"AAMC","Academic","Private","Chair","MD","2021-2022",null,{"$f":"(((AAMC_Raw_Data_for_FY22[[#This Row],[Median]]-AAMC_Raw_Data_for_FY22[[#This Row],[25th]])/25)*5) + AAMC_Raw_Data_for_FY22[[#This Row],[25th]]","v":0},{"$f":"(((AAMC_Raw_Data_for_FY22[[#This Row],[Median]]-AAMC_Raw_Data_for_FY22[[#This Row],[25th]])/25)*10) + AAMC_Raw_Data_for_FY22[[#This Row],[25th]]","v":0},{"$f":"(((AAMC_Raw_Data_for_FY22[[#This Row],[Median]]-AAMC_Raw_Data_for_FY22[[#This Row],[25th]])/25)*15) + AAMC_Raw_Data_for_FY22[[#This Row],[25th]]","v":0},{"$f":"(((AAMC_Raw_Data_for_FY22[[#This Row],[Median]]-AAMC_Raw_Data_for_FY22[[#This Row],[25th]])/25)*20) + AAMC_Raw_Data_for_FY22[[#This Row],[25th]]","v":0},null,{"$f":"(((AAMC_Raw_Data_for_FY22[[#This Row],[75th]]-AAMC_Raw_Data_for_FY22[[#This Row],[Median]])/25)*5) + AAMC_Raw_Data_for_FY22[[#This Row],[Median]]","v":0},{"$f":"(((AAMC_Raw_Data_for_FY22[[#This Row],[75th]]-AAMC_Raw_Data_for_FY22[[#This Row],[Median]])/25)*10) + AAMC_Raw_Data_for_FY22[[#This Row],[Median]]","v":0},{"$f":"(((AAMC_Raw_Data_for_FY22[[#This Row],[75th]]-AAMC_Raw_Data_for_FY22[[#This Row],[Median]])/25)*15) + AAMC_Raw_Data_for_FY22[[#This Row],[Median]]","v":0},{"$f":"(((AAMC_Raw_Data_for_FY22[[#This Row],[75th]]-AAMC_Raw_Data_for_FY22[[#This Row],[Median]])/25)*20) + AAMC_Raw_Data_for_FY22[[#This Row],[Median]]","v":0},null,{"$f":"(((AAMC_Raw_Data_for_FY22[[#This Row],[75th]]-AAMC_Raw_Data_for_FY22[[#This Row],[Median]])/25)*30) + AAMC_Raw_Data_for_FY22[[#This Row],[Median]]","v":0},{"$f":"(((AAMC_Raw_Data_for_FY22[[#This Row],[75th]]-AAMC_Raw_Data_for_FY22[[#This Row],[Median]])/25)*35) + AAMC_Raw_Data_for_FY22[[#This Row],[Median]]","v":0},{"$f":"(((AAMC_Raw_Data_for_FY22[[#This Row],[75th]]-AAMC_Raw_Data_for_FY22[[#This Row],[Median]])/25)*40) + AAMC_Raw_Data_for_FY22[[#This Row],[Median]]","v":0}]
[{"$f":"AAMC_Raw_Data_for_FY22[[#This Row],[Source]]&AAMC_Raw_Data_for_FY22[[#This Row],[Type]]&AAMC_Raw_Data_for_FY22[[#This Row],[School Subset]]&AAMC_Raw_Data_for_FY22[[#This Row],[Rank]]&AAMC_Raw_Data_for_FY22[[#This Row],[Degree]]&AAMC_Raw_Data_for_FY22[[#This Row],[Department / Specialty]]&\"L\"","v":"AAMCAcademicPrivateInstructorMDDermatology TotalL"},"Dermatology Total",5,"AAMC","Academic","Private","Instructor","MD","2021-2022",235822,{"$f":"(((AAMC_Raw_Data_for_FY22[[#This Row],[Median]]-AAMC_Raw_Data_for_FY22[[#This Row],[25th]])/25)*5) + AAMC_Raw_Data_for_FY22[[#This Row],[25th]]","v":247920.8},{"$f":"(((AAMC_Raw_Data_for_FY22[[#This Row],[Median]]-AAMC_Raw_Data_for_FY22[[#This Row],[25th]])/25)*10) + AAMC_Raw_Data_for_FY22[[#This Row],[25th]]","v":260019.6},{"$f":"(((AAMC_Raw_Data_for_FY22[[#This Row],[Median]]-AAMC_Raw_Data_for_FY22[[#This Row],[25th]])/25)*15) + AAMC_Raw_Data_for_FY22[[#This Row],[25th]]","v":272118.40000000002},{"$f":"(((AAMC_Raw_Data_for_FY22[[#This Row],[Median]]-AAMC_Raw_Data_for_FY22[[#This Row],[25th]])/25)*20) + AAMC_Raw_Data_for_FY22[[#This Row],[25th]]","v":284217.2},296316,{"$f":"(((AAMC_Raw_Data_for_FY22[[#This Row],[75th]]-AAMC_Raw_Data_for_FY22[[#This Row],[Median]])/25)*5) + AAMC_Raw_Data_for_FY22[[#This Row],[Median]]","v":305064.40000000002},{"$f":"(((AAMC_Raw_Data_for_FY22[[#This Row],[75th]]-AAMC_Raw_Data_for_FY22[[#This Row],[Median]])/25)*10) + AAMC_Raw_Data_for_FY22[[#This Row],[Median]]","v":313812.8},{"$f":"(((AAMC_Raw_Data_for_FY22[[#This Row],[75th]]-AAMC_Raw_Data_for_FY22[[#This Row],[Median]])/25)*15) + AAMC_Raw_Data_for_FY22[[#This Row],[Median]]","v":322561.2},{"$f":"(((AAMC_Raw_Data_for_FY22[[#This Row],[75th]]-AAMC_Raw_Data_for_FY22[[#This Row],[Median]])/25)*20) + AAMC_Raw_Data_for_FY22[[#This Row],[Median]]","v":331309.59999999998},340058,{"$f":"(((AAMC_Raw_Data_for_FY22[[#This Row],[75th]]-AAMC_Raw_Data_for_FY22[[#This Row],[Median]])/25)*30) + AAMC_Raw_Data_for_FY22[[#This Row],[Median]]","v":348806.40000000002},{"$f":"(((AAMC_Raw_Data_for_FY22[[#This Row],[75th]]-AAMC_Raw_Data_for_FY22[[#This Row],[Median]])/25)*35) + AAMC_Raw_Data_for_FY22[[#This Row],[Median]]","v":357554.8},{"$f":"(((AAMC_Raw_Data_for_FY22[[#This Row],[75th]]-AAMC_Raw_Data_for_FY22[[#This Row],[Median]])/25)*40) + AAMC_Raw_Data_for_FY22[[#This Row],[Median]]","v":366303.2}]
[{"$f":"AAMC_Raw_Data_for_FY22[[#This Row],[Source]]&AAMC_Raw_Data_for_FY22[[#This Row],[Type]]&AAMC_Raw_Data_for_FY22[[#This Row],[School Subset]]&AAMC_Raw_Data_for_FY22[[#This Row],[Rank]]&AAMC_Raw_Data_for_FY22[[#This Row],[Degree]]&AAMC_Raw_Data_for_FY22[[#This Row],[Department / Specialty]]&\"L\"","v":"AAMCAcademicPrivateAssistantMDDermatology TotalL"},"Dermatology Total",4,"AAMC","Academic","Private","Assistant","MD","2021-2022",258846,{"$f":"(((AAMC_Raw_Data_for_FY22[[#This Row],[Median]]-AAMC_Raw_Data_for_FY22[[#This Row],[25th]])/25)*5) + AAMC_Raw_Data_for_FY22[[#This Row],[25th]]","v":275074.2},{"$f":"(((AAMC_Raw_Data_for_FY22[[#This Row],[Median]]-AAMC_Raw_Data_for_FY22[[#This Row],[25th]])/25)*10) + AAMC_Raw_Data_for_FY22[[#This Row],[25th]]","v":291302.40000000002},{"$f":"(((AAMC_Raw_Data_for_FY22[[#This Row],[Median]]-AAMC_Raw_Data_for_FY22[[#This Row],[25th]])/25)*15) + AAMC_Raw_Data_for_FY22[[#This Row],[25th]]","v":307530.59999999998},{"$f":"(((AAMC_Raw_Data_for_FY22[[#This Row],[Median]]-AAMC_Raw_Data_for_FY22[[#This Row],[25th]])/25)*20) + AAMC_Raw_Data_for_FY22[[#This Row],[25th]]","v":323758.8},339987,{"$f":"(((AAMC_Raw_Data_for_FY22[[#This Row],[75th]]-AAMC_Raw_Data_for_FY22[[#This Row],[Median]])/25)*5) + AAMC_Raw_Data_for_FY22[[#This Row],[Median]]","v":360580},{"$f":"(((AAMC_Raw_Data_for_FY22[[#This Row],[75th]]-AAMC_Raw_Data_for_FY22[[#This Row],[Median]])/25)*10) + AAMC_Raw_Data_for_FY22[[#This Row],[Median]]","v":381173},{"$f":"(((AAMC_Raw_Data_for_FY22[[#This Row],[75th]]-AAMC_Raw_Data_for_FY22[[#This Row],[Median]])/25)*15) + AAMC_Raw_Data_for_FY22[[#This Row],[Median]]","v":401766},{"$f":"(((AAMC_Raw_Data_for_FY22[[#This Row],[75th]]-AAMC_Raw_Data_for_FY22[[#This Row],[Median]])/25)*20) + AAMC_Raw_Data_for_FY22[[#This Row],[Median]]","v":422359},442952,{"$f":"(((AAMC_Raw_Data_for_FY22[[#This Row],[75th]]-AAMC_Raw_Data_for_FY22[[#This Row],[Median]])/25)*30) + AAMC_Raw_Data_for_FY22[[#This Row],[Median]]","v":463545},{"$f":"(((AAMC_Raw_Data_for_FY22[[#This Row],[75th]]-AAMC_Raw_Data_for_FY22[[#This Row],[Median]])/25)*35) + AAMC_Raw_Data_for_FY22[[#This Row],[Median]]","v":484138},{"$f":"(((AAMC_Raw_Data_for_FY22[[#This Row],[75th]]-AAMC_Raw_Data_for_FY22[[#This Row],[Median]])/25)*40) + AAMC_Raw_Data_for_FY22[[#This Row],[Median]]","v":504731}]
[{"$f":"AAMC_Raw_Data_for_FY22[[#This Row],[Source]]&AAMC_Raw_Data_for_FY22[[#This Row],[Type]]&AAMC_Raw_Data_for_FY22[[#This Row],[School Subset]]&AAMC_Raw_Data_for_FY22[[#This Row],[Rank]]&AAMC_Raw_Data_for_FY22[[#This Row],[Degree]]&AAMC_Raw_Data_for_FY22[[#This Row],[Department / Specialty]]&\"L\"","v":"AAMCAcademicPrivateAssociateMDDermatology TotalL"},"Dermatology Total",3,"AAMC","Academic","Private","Associate","MD","2021-2022",310000,{"$f":"(((AAMC_Raw_Data_for_FY22[[#This Row],[Median]]-AAMC_Raw_Data_for_FY22[[#This Row],[25th]])/25)*5) + AAMC_Raw_Data_for_FY22[[#This Row],[25th]]","v":327177.59999999998},{"$f":"(((AAMC_Raw_Data_for_FY22[[#This Row],[Median]]-AAMC_Raw_Data_for_FY22[[#This Row],[25th]])/25)*10) + AAMC_Raw_Data_for_FY22[[#This Row],[25th]]","v":344355.2},{"$f":"(((AAMC_Raw_Data_for_FY22[[#This Row],[Median]]-AAMC_Raw_Data_for_FY22[[#This Row],[25th]])/25)*15) + AAMC_Raw_Data_for_FY22[[#This Row],[25th]]","v":361532.8},{"$f":"(((AAMC_Raw_Data_for_FY22[[#This Row],[Median]]-AAMC_Raw_Data_for_FY22[[#This Row],[25th]])/25)*20) + AAMC_Raw_Data_for_FY22[[#This Row],[25th]]","v":378710.4},395888,{"$f":"(((AAMC_Raw_Data_for_FY22[[#This Row],[75th]]-AAMC_Raw_Data_for_FY22[[#This Row],[Median]])/25)*5) + AAMC_Raw_Data_for_FY22[[#This Row],[Median]]","v":421623},{"$f":"(((AAMC_Raw_Data_for_FY22[[#This Row],[75th]]-AAMC_Raw_Data_for_FY22[[#This Row],[Median]])/25)*10) + AAMC_Raw_Data_for_FY22[[#This Row],[Median]]","v":447358},{"$f":"(((AAMC_Raw_Data_for_FY22[[#This Row],[75th]]-AAMC_Raw_Data_for_FY22[[#This Row],[Median]])/25)*15) + AAMC_Raw_Data_for_FY22[[#This Row],[Median]]","v":473093},{"$f":"(((AAMC_Raw_Data_for_FY22[[#This Row],[75th]]-AAMC_Raw_Data_for_FY22[[#This Row],[Median]])/25)*20) + AAMC_Raw_Data_for_FY22[[#This Row],[Median]]","v":498828},524563,{"$f":"(((AAMC_Raw_Data_for_FY22[[#This Row],[75th]]-AAMC_Raw_Data_for_FY22[[#This Row],[Median]])/25)*30) + AAMC_Raw_Data_for_FY22[[#This Row],[Median]]","v":550298},{"$f":"(((AAMC_Raw_Data_for_FY22[[#This Row],[75th]]-AAMC_Raw_Data_for_FY22[[#This Row],[Median]])/25)*35) + AAMC_Raw_Data_for_FY22[[#This Row],[Median]]","v":576033},{"$f":"(((AAMC_Raw_Data_for_FY22[[#This Row],[75th]]-AAMC_Raw_Data_for_FY22[[#This Row],[Median]])/25)*40) + AAMC_Raw_Data_for_FY22[[#This Row],[Median]]","v":601768}]
[{"$f":"AAMC_Raw_Data_for_FY22[[#This Row],[Source]]&AAMC_Raw_Data_for_FY22[[#This Row],[Type]]&AAMC_Raw_Data_for_FY22[[#This Row],[School Subset]]&AAMC_Raw_Data_for_FY22[[#This Row],[Rank]]&AAMC_Raw_Data_for_FY22[[#This Row],[Degree]]&AAMC_Raw_Data_for_FY22[[#This Row],[Department / Specialty]]&\"L\"","v":"AAMCAcademicPrivateProfessorMDDermatology TotalL"},"Dermatology Total",2,"AAMC","Academic","Private","Professor","MD","2021-2022",299102,{"$f":"(((AAMC_Raw_Data_for_FY22[[#This Row],[Median]]-AAMC_Raw_Data_for_FY22[[#This Row],[25th]])/25)*5) + AAMC_Raw_Data_for_FY22[[#This Row],[25th]]","v":319836.59999999998},{"$f":"(((AAMC_Raw_Data_for_FY22[[#This Row],[Median]]-AAMC_Raw_Data_for_FY22[[#This Row],[25th]])/25)*10) + AAMC_Raw_Data_for_FY22[[#This Row],[25th]]","v":340571.2},{"$f":"(((AAMC_Raw_Data_for_FY22[[#This Row],[Median]]-AAMC_Raw_Data_for_FY22[[#This Row],[25th]])/25)*15) + AAMC_Raw_Data_for_FY22[[#This Row],[25th]]","v":361305.8},{"$f":"(((AAMC_Raw_Data_for_FY22[[#This Row],[Median]]-AAMC_Raw_Data_for_FY22[[#This Row],[25th]])/25)*20) + AAMC_Raw_Data_for_FY22[[#This Row],[25th]]","v":382040.4},402775,{"$f":"(((AAMC_Raw_Data_for_FY22[[#This Row],[75th]]-AAMC_Raw_Data_for_FY22[[#This Row],[Median]])/25)*5) + AAMC_Raw_Data_for_FY22[[#This Row],[Median]]","v":435082},{"$f":"(((AAMC_Raw_Data_for_FY22[[#This Row],[75th]]-AAMC_Raw_Data_for_FY22[[#This Row],[Median]])/25)*10) + AAMC_Raw_Data_for_FY22[[#This Row],[Median]]","v":467389},{"$f":"(((AAMC_Raw_Data_for_FY22[[#This Row],[75th]]-AAMC_Raw_Data_for_FY22[[#This Row],[Median]])/25)*15) + AAMC_Raw_Data_for_FY22[[#This Row],[Median]]","v":499696},{"$f":"(((AAMC_Raw_Data_for_FY22[[#This Row],[75th]]-AAMC_Raw_Data_for_FY22[[#This Row],[Median]])/25)*20) + AAMC_Raw_Data_for_FY22[[#This Row],[Median]]","v":532003},564310,{"$f":"(((AAMC_Raw_Data_for_FY22[[#This Row],[75th]]-AAMC_Raw_Data_for_FY22[[#This Row],[Median]])/25)*30) + AAMC_Raw_Data_for_FY22[[#This Row],[Median]]","v":596617},{"$f":"(((AAMC_Raw_Data_for_FY22[[#This Row],[75th]]-AAMC_Raw_Data_for_FY22[[#This Row],[Median]])/25)*35) + AAMC_Raw_Data_for_FY22[[#This Row],[Median]]","v":628924},{"$f":"(((AAMC_Raw_Data_for_FY22[[#This Row],[75th]]-AAMC_Raw_Data_for_FY22[[#This Row],[Median]])/25)*40) + AAMC_Raw_Data_for_FY22[[#This Row],[Median]]","v":661231}]
[{"$f":"AAMC_Raw_Data_for_FY22[[#This Row],[Source]]&AAMC_Raw_Data_for_FY22[[#This Row],[Type]]&AAMC_Raw_Data_for_FY22[[#This Row],[School Subset]]&AAMC_Raw_Data_for_FY22[[#This Row],[Rank]]&AAMC_Raw_Data_for_FY22[[#This Row],[Degree]]&AAMC_Raw_Data_for_FY22[[#This Row],[Department / Specialty]]&\"L\"","v":"AAMCAcademicPrivateChiefMDDermatology TotalL"},"Dermatology Total",6,"AAMC","Academic","Private","Chief","MD","2021-2022",441667,{"$f":"(((AAMC_Raw_Data_for_FY22[[#This Row],[Median]]-AAMC_Raw_Data_for_FY22[[#This Row],[25th]])/25)*5) + AAMC_Raw_Data_for_FY22[[#This Row],[25th]]","v":452714.6},{"$f":"(((AAMC_Raw_Data_for_FY22[[#This Row],[Median]]-AAMC_Raw_Data_for_FY22[[#This Row],[25th]])/25)*10) + AAMC_Raw_Data_for_FY22[[#This Row],[25th]]","v":463762.2},{"$f":"(((AAMC_Raw_Data_for_FY22[[#This Row],[Median]]-AAMC_Raw_Data_for_FY22[[#This Row],[25th]])/25)*15) + AAMC_Raw_Data_for_FY22[[#This Row],[25th]]","v":474809.8},{"$f":"(((AAMC_Raw_Data_for_FY22[[#This Row],[Median]]-AAMC_Raw_Data_for_FY22[[#This Row],[25th]])/25)*20) + AAMC_Raw_Data_for_FY22[[#This Row],[25th]]","v":485857.4},496905,{"$f":"(((AAMC_Raw_Data_for_FY22[[#This Row],[75th]]-AAMC_Raw_Data_for_FY22[[#This Row],[Median]])/25)*5) + AAMC_Raw_Data_for_FY22[[#This Row],[Median]]","v":573710.4},{"$f":"(((AAMC_Raw_Data_for_FY22[[#This Row],[75th]]-AAMC_Raw_Data_for_FY22[[#This Row],[Median]])/25)*10) + AAMC_Raw_Data_for_FY22[[#This Row],[Median]]","v":650515.80000000005},{"$f":"(((AAMC_Raw_Data_for_FY22[[#This Row],[75th]]-AAMC_Raw_Data_for_FY22[[#This Row],[Median]])/25)*15) + AAMC_Raw_Data_for_FY22[[#This Row],[Median]]","v":727321.2},{"$f":"(((AAMC_Raw_Data_for_FY22[[#This Row],[75th]]-AAMC_Raw_Data_for_FY22[[#This Row],[Median]])/25)*20) + AAMC_Raw_Data_for_FY22[[#This Row],[Median]]","v":804126.6},880932,{"$f":"(((AAMC_Raw_Data_for_FY22[[#This Row],[75th]]-AAMC_Raw_Data_for_FY22[[#This Row],[Median]])/25)*30) + AAMC_Raw_Data_for_FY22[[#This Row],[Median]]","v":957737.4},{"$f":"(((AAMC_Raw_Data_for_FY22[[#This Row],[75th]]-AAMC_Raw_Data_for_FY22[[#This Row],[Median]])/25)*35) + AAMC_Raw_Data_for_FY22[[#This Row],[Median]]","v":1034542.8},{"$f":"(((AAMC_Raw_Data_for_FY22[[#This Row],[75th]]-AAMC_Raw_Data_for_FY22[[#This Row],[Median]])/25)*40) + AAMC_Raw_Data_for_FY22[[#This Row],[Median]]","v":1111348.2}]
[{"$f":"AAMC_Raw_Data_for_FY22[[#This Row],[Source]]&AAMC_Raw_Data_for_FY22[[#This Row],[Type]]&AAMC_Raw_Data_for_FY22[[#This Row],[School Subset]]&AAMC_Raw_Data_for_FY22[[#This Row],[Rank]]&AAMC_Raw_Data_for_FY22[[#This Row],[Degree]]&AAMC_Raw_Data_for_FY22[[#This Row],[Department / Specialty]]&\"L\"","v":"AAMCAcademicPrivateChairMDDermatology TotalL"},"Dermatology Total",1,"AAMC","Academic","Private","Chair","MD","2021-2022",640350,{"$f":"(((AAMC_Raw_Data_for_FY22[[#This Row],[Median]]-AAMC_Raw_Data_for_FY22[[#This Row],[25th]])/25)*5) + AAMC_Raw_Data_for_FY22[[#This Row],[25th]]","v":659680},{"$f":"(((AAMC_Raw_Data_for_FY22[[#This Row],[Median]]-AAMC_Raw_Data_for_FY22[[#This Row],[25th]])/25)*10) + AAMC_Raw_Data_for_FY22[[#This Row],[25th]]","v":679010},{"$f":"(((AAMC_Raw_Data_for_FY22[[#This Row],[Median]]-AAMC_Raw_Data_for_FY22[[#This Row],[25th]])/25)*15) + AAMC_Raw_Data_for_FY22[[#This Row],[25th]]","v":698340},{"$f":"(((AAMC_Raw_Data_for_FY22[[#This Row],[Median]]-AAMC_Raw_Data_for_FY22[[#This Row],[25th]])/25)*20) + AAMC_Raw_Data_for_FY22[[#This Row],[25th]]","v":717670},737000,{"$f":"(((AAMC_Raw_Data_for_FY22[[#This Row],[75th]]-AAMC_Raw_Data_for_FY22[[#This Row],[Median]])/25)*5) + AAMC_Raw_Data_for_FY22[[#This Row],[Median]]","v":749854.2},{"$f":"(((AAMC_Raw_Data_for_FY22[[#This Row],[75th]]-AAMC_Raw_Data_for_FY22[[#This Row],[Median]])/25)*10) + AAMC_Raw_Data_for_FY22[[#This Row],[Median]]","v":762708.4},{"$f":"(((AAMC_Raw_Data_for_FY22[[#This Row],[75th]]-AAMC_Raw_Data_for_FY22[[#This Row],[Median]])/25)*15) + AAMC_Raw_Data_for_FY22[[#This Row],[Median]]","v":775562.6},{"$f":"(((AAMC_Raw_Data_for_FY22[[#This Row],[75th]]-AAMC_Raw_Data_for_FY22[[#This Row],[Median]])/25)*20) + AAMC_Raw_Data_for_FY22[[#This Row],[Median]]","v":788416.8},801271,{"$f":"(((AAMC_Raw_Data_for_FY22[[#This Row],[75th]]-AAMC_Raw_Data_for_FY22[[#This Row],[Median]])/25)*30) + AAMC_Raw_Data_for_FY22[[#This Row],[Median]]","v":814125.2},{"$f":"(((AAMC_Raw_Data_for_FY22[[#This Row],[75th]]-AAMC_Raw_Data_for_FY22[[#This Row],[Median]])/25)*35) + AAMC_Raw_Data_for_FY22[[#This Row],[Median]]","v":826979.4},{"$f":"(((AAMC_Raw_Data_for_FY22[[#This Row],[75th]]-AAMC_Raw_Data_for_FY22[[#This Row],[Median]])/25)*40) + AAMC_Raw_Data_for_FY22[[#This Row],[Median]]","v":839833.59999999998}]
[{"$f":"AAMC_Raw_Data_for_FY22[[#This Row],[Source]]&AAMC_Raw_Data_for_FY22[[#This Row],[Type]]&AAMC_Raw_Data_for_FY22[[#This Row],[School Subset]]&AAMC_Raw_Data_for_FY22[[#This Row],[Rank]]&AAMC_Raw_Data_for_FY22[[#This Row],[Degree]]&AAMC_Raw_Data_for_FY22[[#This Row],[Department / Specialty]]&\"L\"","v":"AAMCAcademicPrivateInstructorMDDermatology (excluding Mohs Surgery)L"},"Dermatology (excluding Mohs Surgery)",5,"AAMC","Academic","Private","Instructor","MD","2021-2022",242448,{"$f":"(((AAMC_Raw_Data_for_FY22[[#This Row],[Median]]-AAMC_Raw_Data_for_FY22[[#This Row],[25th]])/25)*5) + AAMC_Raw_Data_for_FY22[[#This Row],[25th]]","v":253758.4},{"$f":"(((AAMC_Raw_Data_for_FY22[[#This Row],[Median]]-AAMC_Raw_Data_for_FY22[[#This Row],[25th]])/25)*10) + AAMC_Raw_Data_for_FY22[[#This Row],[25th]]","v":265068.79999999999},{"$f":"(((AAMC_Raw_Data_for_FY22[[#This Row],[Median]]-AAMC_Raw_Data_for_FY22[[#This Row],[25th]])/25)*15) + AAMC_Raw_Data_for_FY22[[#This Row],[25th]]","v":276379.2},{"$f":"(((AAMC_Raw_Data_for_FY22[[#This Row],[Median]]-AAMC_Raw_Data_for_FY22[[#This Row],[25th]])/25)*20) + AAMC_Raw_Data_for_FY22[[#This Row],[25th]]","v":287689.59999999998},299000,{"$f":"(((AAMC_Raw_Data_for_FY22[[#This Row],[75th]]-AAMC_Raw_Data_for_FY22[[#This Row],[Median]])/25)*5) + AAMC_Raw_Data_for_FY22[[#This Row],[Median]]","v":307393},{"$f":"(((AAMC_Raw_Data_for_FY22[[#This Row],[75th]]-AAMC_Raw_Data_for_FY22[[#This Row],[Median]])/25)*10) + AAMC_Raw_Data_for_FY22[[#This Row],[Median]]","v":315786},{"$f":"(((AAMC_Raw_Data_for_FY22[[#This Row],[75th]]-AAMC_Raw_Data_for_FY22[[#This Row],[Median]])/25)*15) + AAMC_Raw_Data_for_FY22[[#This Row],[Median]]","v":324179},{"$f":"(((AAMC_Raw_Data_for_FY22[[#This Row],[75th]]-AAMC_Raw_Data_for_FY22[[#This Row],[Median]])/25)*20) + AAMC_Raw_Data_for_FY22[[#This Row],[Median]]","v":332572},340965,{"$f":"(((AAMC_Raw_Data_for_FY22[[#This Row],[75th]]-AAMC_Raw_Data_for_FY22[[#This Row],[Median]])/25)*30) + AAMC_Raw_Data_for_FY22[[#This Row],[Median]]","v":349358},{"$f":"(((AAMC_Raw_Data_for_FY22[[#This Row],[75th]]-AAMC_Raw_Data_for_FY22[[#This Row],[Median]])/25)*35) + AAMC_Raw_Data_for_FY22[[#This Row],[Median]]","v":357751},{"$f":"(((AAMC_Raw_Data_for_FY22[[#This Row],[75th]]-AAMC_Raw_Data_for_FY22[[#This Row],[Median]])/25)*40) + AAMC_Raw_Data_for_FY22[[#This Row],[Median]]","v":366144}]
[{"$f":"AAMC_Raw_Data_for_FY22[[#This Row],[Source]]&AAMC_Raw_Data_for_FY22[[#This Row],[Type]]&AAMC_Raw_Data_for_FY22[[#This Row],[School Subset]]&AAMC_Raw_Data_for_FY22[[#This Row],[Rank]]&AAMC_Raw_Data_for_FY22[[#This Row],[Degree]]&AAMC_Raw_Data_for_FY22[[#This Row],[Department / Specialty]]&\"L\"","v":"AAMCAcademicPrivateAssistantMDDermatology (excluding Mohs Surgery)L"},"Dermatology (excluding Mohs Surgery)",4,"AAMC","Academic","Private","Assistant","MD","2021-2022",251552,{"$f":"(((AAMC_Raw_Data_for_FY22[[#This Row],[Median]]-AAMC_Raw_Data_for_FY22[[#This Row],[25th]])/25)*5) + AAMC_Raw_Data_for_FY22[[#This Row],[25th]]","v":266572},{"$f":"(((AAMC_Raw_Data_for_FY22[[#This Row],[Median]]-AAMC_Raw_Data_for_FY22[[#This Row],[25th]])/25)*10) + AAMC_Raw_Data_for_FY22[[#This Row],[25th]]","v":281592},{"$f":"(((AAMC_Raw_Data_for_FY22[[#This Row],[Median]]-AAMC_Raw_Data_for_FY22[[#This Row],[25th]])/25)*15) + AAMC_Raw_Data_for_FY22[[#This Row],[25th]]","v":296612},{"$f":"(((AAMC_Raw_Data_for_FY22[[#This Row],[Median]]-AAMC_Raw_Data_for_FY22[[#This Row],[25th]])/25)*20) + AAMC_Raw_Data_for_FY22[[#This Row],[25th]]","v":311632},326652,{"$f":"(((AAMC_Raw_Data_for_FY22[[#This Row],[75th]]-AAMC_Raw_Data_for_FY22[[#This Row],[Median]])/25)*5) + AAMC_Raw_Data_for_FY22[[#This Row],[Median]]","v":347445.2},{"$f":"(((AAMC_Raw_Data_for_FY22[[#This Row],[75th]]-AAMC_Raw_Data_for_FY22[[#This Row],[Median]])/25)*10) + AAMC_Raw_Data_for_FY22[[#This Row],[Median]]","v":368238.4},{"$f":"(((AAMC_Raw_Data_for_FY22[[#This Row],[75th]]-AAMC_Raw_Data_for_FY22[[#This Row],[Median]])/25)*15) + AAMC_Raw_Data_for_FY22[[#This Row],[Median]]","v":389031.6},{"$f":"(((AAMC_Raw_Data_for_FY22[[#This Row],[75th]]-AAMC_Raw_Data_for_FY22[[#This Row],[Median]])/25)*20) + AAMC_Raw_Data_for_FY22[[#This Row],[Median]]","v":409824.8},430618,{"$f":"(((AAMC_Raw_Data_for_FY22[[#This Row],[75th]]-AAMC_Raw_Data_for_FY22[[#This Row],[Median]])/25)*30) + AAMC_Raw_Data_for_FY22[[#This Row],[Median]]","v":451411.20000000001},{"$f":"(((AAMC_Raw_Data_for_FY22[[#This Row],[75th]]-AAMC_Raw_Data_for_FY22[[#This Row],[Median]])/25)*35) + AAMC_Raw_Data_for_FY22[[#This Row],[Median]]","v":472204.4},{"$f":"(((AAMC_Raw_Data_for_FY22[[#This Row],[75th]]-AAMC_Raw_Data_for_FY22[[#This Row],[Median]])/25)*40) + AAMC_Raw_Data_for_FY22[[#This Row],[Median]]","v":492997.6}]
[{"$f":"AAMC_Raw_Data_for_FY22[[#This Row],[Source]]&AAMC_Raw_Data_for_FY22[[#This Row],[Type]]&AAMC_Raw_Data_for_FY22[[#This Row],[School Subset]]&AAMC_Raw_Data_for_FY22[[#This Row],[Rank]]&AAMC_Raw_Data_for_FY22[[#This Row],[Degree]]&AAMC_Raw_Data_for_FY22[[#This Row],[Department / Specialty]]&\"L\"","v":"AAMCAcademicPrivateAssociateMDDermatology (excluding Mohs Surgery)L"},"Dermatology (excluding Mohs Surgery)",3,"AAMC","Academic","Private","Associate","MD","2021-2022",299839,{"$f":"(((AAMC_Raw_Data_for_FY22[[#This Row],[Median]]-AAMC_Raw_Data_for_FY22[[#This Row],[25th]])/25)*5) + AAMC_Raw_Data_for_FY22[[#This Row],[25th]]","v":316415},{"$f":"(((AAMC_Raw_Data_for_FY22[[#This Row],[Median]]-AAMC_Raw_Data_for_FY22[[#This Row],[25th]])/25)*10) + AAMC_Raw_Data_for_FY22[[#This Row],[25th]]","v":332991},{"$f":"(((AAMC_Raw_Data_for_FY22[[#This Row],[Median]]-AAMC_Raw_Data_for_FY22[[#This Row],[25th]])/25)*15) + AAMC_Raw_Data_for_FY22[[#This Row],[25th]]","v":349567},{"$f":"(((AAMC_Raw_Data_for_FY22[[#This Row],[Median]]-AAMC_Raw_Data_for_FY22[[#This Row],[25th]])/25)*20) + AAMC_Raw_Data_for_FY22[[#This Row],[25th]]","v":366143},382719,{"$f":"(((AAMC_Raw_Data_for_FY22[[#This Row],[75th]]-AAMC_Raw_Data_for_FY22[[#This Row],[Median]])/25)*5) + AAMC_Raw_Data_for_FY22[[#This Row],[Median]]","v":403149.2},{"$f":"(((AAMC_Raw_Data_for_FY22[[#This Row],[75th]]-AAMC_Raw_Data_for_FY22[[#This Row],[Median]])/25)*10) + AAMC_Raw_Data_for_FY22[[#This Row],[Median]]","v":423579.4},{"$f":"(((AAMC_Raw_Data_for_FY22[[#This Row],[75th]]-AAMC_Raw_Data_for_FY22[[#This Row],[Median]])/25)*15) + AAMC_Raw_Data_for_FY22[[#This Row],[Median]]","v":444009.6},{"$f":"(((AAMC_Raw_Data_for_FY22[[#This Row],[75th]]-AAMC_Raw_Data_for_FY22[[#This Row],[Median]])/25)*20) + AAMC_Raw_Data_for_FY22[[#This Row],[Median]]","v":464439.8},484870,{"$f":"(((AAMC_Raw_Data_for_FY22[[#This Row],[75th]]-AAMC_Raw_Data_for_FY22[[#This Row],[Median]])/25)*30) + AAMC_Raw_Data_for_FY22[[#This Row],[Median]]","v":505300.2},{"$f":"(((AAMC_Raw_Data_for_FY22[[#This Row],[75th]]-AAMC_Raw_Data_for_FY22[[#This Row],[Median]])/25)*35) + AAMC_Raw_Data_for_FY22[[#This Row],[Median]]","v":525730.4},{"$f":"(((AAMC_Raw_Data_for_FY22[[#This Row],[75th]]-AAMC_Raw_Data_for_FY22[[#This Row],[Median]])/25)*40) + AAMC_Raw_Data_for_FY22[[#This Row],[Median]]","v":546160.6}]
[{"$f":"AAMC_Raw_Data_for_FY22[[#This Row],[Source]]&AAMC_Raw_Data_for_FY22[[#This Row],[Type]]&AAMC_Raw_Data_for_FY22[[#This Row],[School Subset]]&AAMC_Raw_Data_for_FY22[[#This Row],[Rank]]&AAMC_Raw_Data_for_FY22[[#This Row],[Degree]]&AAMC_Raw_Data_for_FY22[[#This Row],[Department / Specialty]]&\"L\"","v":"AAMCAcademicPrivateProfessorMDDermatology (excluding Mohs Surgery)L"},"Dermatology (excluding Mohs Surgery)",2,"AAMC","Academic","Private","Professor","MD","2021-2022",290069,{"$f":"(((AAMC_Raw_Data_for_FY22[[#This Row],[Median]]-AAMC_Raw_Data_for_FY22[[#This Row],[25th]])/25)*5) + AAMC_Raw_Data_for_FY22[[#This Row],[25th]]","v":309934.59999999998},{"$f":"(((AAMC_Raw_Data_for_FY22[[#This Row],[Median]]-AAMC_Raw_Data_for_FY22[[#This Row],[25th]])/25)*10) + AAMC_Raw_Data_for_FY22[[#This Row],[25th]]","v":329800.2},{"$f":"(((AAMC_Raw_Data_for_FY22[[#This Row],[Median]]-AAMC_Raw_Data_for_FY22[[#This Row],[25th]])/25)*15) + AAMC_Raw_Data_for_FY22[[#This Row],[25th]]","v":349665.8},{"$f":"(((AAMC_Raw_Data_for_FY22[[#This Row],[Median]]-AAMC_Raw_Data_for_FY22[[#This Row],[25th]])/25)*20) + AAMC_Raw_Data_for_FY22[[#This Row],[25th]]","v":369531.4},389397,{"$f":"(((AAMC_Raw_Data_for_FY22[[#This Row],[75th]]-AAMC_Raw_Data_for_FY22[[#This Row],[Median]])/25)*5) + AAMC_Raw_Data_for_FY22[[#This Row],[Median]]","v":410934.8},{"$f":"(((AAMC_Raw_Data_for_FY22[[#This Row],[75th]]-AAMC_Raw_Data_for_FY22[[#This Row],[Median]])/25)*10) + AAMC_Raw_Data_for_FY22[[#This Row],[Median]]","v":432472.6},{"$f":"(((AAMC_Raw_Data_for_FY22[[#This Row],[75th]]-AAMC_Raw_Data_for_FY22[[#This Row],[Median]])/25)*15) + AAMC_Raw_Data_for_FY22[[#This Row],[Median]]","v":454010.4},{"$f":"(((AAMC_Raw_Data_for_FY22[[#This Row],[75th]]-AAMC_Raw_Data_for_FY22[[#This Row],[Median]])/25)*20) + AAMC_Raw_Data_for_FY22[[#This Row],[Median]]","v":475548.2},497086,{"$f":"(((AAMC_Raw_Data_for_FY22[[#This Row],[75th]]-AAMC_Raw_Data_for_FY22[[#This Row],[Median]])/25)*30) + AAMC_Raw_Data_for_FY22[[#This Row],[Median]]","v":518623.80000000005},{"$f":"(((AAMC_Raw_Data_for_FY22[[#This Row],[75th]]-AAMC_Raw_Data_for_FY22[[#This Row],[Median]])/25)*35) + AAMC_Raw_Data_for_FY22[[#This Row],[Median]]","v":540161.6},{"$f":"(((AAMC_Raw_Data_for_FY22[[#This Row],[75th]]-AAMC_Raw_Data_for_FY22[[#This Row],[Median]])/25)*40) + AAMC_Raw_Data_for_FY22[[#This Row],[Median]]","v":561699.4}]
[{"$f":"AAMC_Raw_Data_for_FY22[[#This Row],[Source]]&AAMC_Raw_Data_for_FY22[[#This Row],[Type]]&AAMC_Raw_Data_for_FY22[[#This Row],[School Subset]]&AAMC_Raw_Data_for_FY22[[#This Row],[Rank]]&AAMC_Raw_Data_for_FY22[[#This Row],[Degree]]&AAMC_Raw_Data_for_FY22[[#This Row],[Department / Specialty]]&\"L\"","v":"AAMCAcademicPrivateChiefMDDermatology (excluding Mohs Surgery)L"},"Dermatology (excluding Mohs Surgery)",6,"AAMC","Academic","Private","Chief","MD","2021-2022",null,{"$f":"(((AAMC_Raw_Data_for_FY22[[#This Row],[Median]]-AAMC_Raw_Data_for_FY22[[#This Row],[25th]])/25)*5) + AAMC_Raw_Data_for_FY22[[#This Row],[25th]]","v":0},{"$f":"(((AAMC_Raw_Data_for_FY22[[#This Row],[Median]]-AAMC_Raw_Data_for_FY22[[#This Row],[25th]])/25)*10) + AAMC_Raw_Data_for_FY22[[#This Row],[25th]]","v":0},{"$f":"(((AAMC_Raw_Data_for_FY22[[#This Row],[Median]]-AAMC_Raw_Data_for_FY22[[#This Row],[25th]])/25)*15) + AAMC_Raw_Data_for_FY22[[#This Row],[25th]]","v":0},{"$f":"(((AAMC_Raw_Data_for_FY22[[#This Row],[Median]]-AAMC_Raw_Data_for_FY22[[#This Row],[25th]])/25)*20) + AAMC_Raw_Data_for_FY22[[#This Row],[25th]]","v":0},null,{"$f":"(((AAMC_Raw_Data_for_FY22[[#This Row],[75th]]-AAMC_Raw_Data_for_FY22[[#This Row],[Median]])/25)*5) + AAMC_Raw_Data_for_FY22[[#This Row],[Median]]","v":0},{"$f":"(((AAMC_Raw_Data_for_FY22[[#This Row],[75th]]-AAMC_Raw_Data_for_FY22[[#This Row],[Median]])/25)*10) + AAMC_Raw_Data_for_FY22[[#This Row],[Median]]","v":0},{"$f":"(((AAMC_Raw_Data_for_FY22[[#This Row],[75th]]-AAMC_Raw_Data_for_FY22[[#This Row],[Median]])/25)*15) + AAMC_Raw_Data_for_FY22[[#This Row],[Median]]","v":0},{"$f":"(((AAMC_Raw_Data_for_FY22[[#This Row],[75th]]-AAMC_Raw_Data_for_FY22[[#This Row],[Median]])/25)*20) + AAMC_Raw_Data_for_FY22[[#This Row],[Median]]","v":0},null,{"$f":"(((AAMC_Raw_Data_for_FY22[[#This Row],[75th]]-AAMC_Raw_Data_for_FY22[[#This Row],[Median]])/25)*30) + AAMC_Raw_Data_for_FY22[[#This Row],[Median]]","v":0},{"$f":"(((AAMC_Raw_Data_for_FY22[[#This Row],[75th]]-AAMC_Raw_Data_for_FY22[[#This Row],[Median]])/25)*35) + AAMC_Raw_Data_for_FY22[[#This Row],[Median]]","v":0},{"$f":"(((AAMC_Raw_Data_for_FY22[[#This Row],[75th]]-AAMC_Raw_Data_for_FY22[[#This Row],[Median]])/25)*40) + AAMC_Raw_Data_for_FY22[[#This Row],[Median]]","v":0}]
[{"$f":"AAMC_Raw_Data_for_FY22[[#This Row],[Source]]&AAMC_Raw_Data_for_FY22[[#This Row],[Type]]&AAMC_Raw_Data_for_FY22[[#This Row],[School Subset]]&AAMC_Raw_Data_for_FY22[[#This Row],[Rank]]&AAMC_Raw_Data_for_FY22[[#This Row],[Degree]]&AAMC_Raw_Data_for_FY22[[#This Row],[Department / Specialty]]&\"L\"","v":"AAMCAcademicPrivateChairMDDermatology (excluding Mohs Surgery)L"},"Dermatology (excluding Mohs Surgery)",1,"AAMC","Academic","Private","Chair","MD","2021-2022",640350,{"$f":"(((AAMC_Raw_Data_for_FY22[[#This Row],[Median]]-AAMC_Raw_Data_for_FY22[[#This Row],[25th]])/25)*5) + AAMC_Raw_Data_for_FY22[[#This Row],[25th]]","v":659680},{"$f":"(((AAMC_Raw_Data_for_FY22[[#This Row],[Median]]-AAMC_Raw_Data_for_FY22[[#This Row],[25th]])/25)*10) + AAMC_Raw_Data_for_FY22[[#This Row],[25th]]","v":679010},{"$f":"(((AAMC_Raw_Data_for_FY22[[#This Row],[Median]]-AAMC_Raw_Data_for_FY22[[#This Row],[25th]])/25)*15) + AAMC_Raw_Data_for_FY22[[#This Row],[25th]]","v":698340},{"$f":"(((AAMC_Raw_Data_for_FY22[[#This Row],[Median]]-AAMC_Raw_Data_for_FY22[[#This Row],[25th]])/25)*20) + AAMC_Raw_Data_for_FY22[[#This Row],[25th]]","v":717670},737000,{"$f":"(((AAMC_Raw_Data_for_FY22[[#This Row],[75th]]-AAMC_Raw_Data_for_FY22[[#This Row],[Median]])/25)*5) + AAMC_Raw_Data_for_FY22[[#This Row],[Median]]","v":749854.2},{"$f":"(((AAMC_Raw_Data_for_FY22[[#This Row],[75th]]-AAMC_Raw_Data_for_FY22[[#This Row],[Median]])/25)*10) + AAMC_Raw_Data_for_FY22[[#This Row],[Median]]","v":762708.4},{"$f":"(((AAMC_Raw_Data_for_FY22[[#This Row],[75th]]-AAMC_Raw_Data_for_FY22[[#This Row],[Median]])/25)*15) + AAMC_Raw_Data_for_FY22[[#This Row],[Median]]","v":775562.6},{"$f":"(((AAMC_Raw_Data_for_FY22[[#This Row],[75th]]-AAMC_Raw_Data_for_FY22[[#This Row],[Median]])/25)*20) + AAMC_Raw_Data_for_FY22[[#This Row],[Median]]","v":788416.8},801271,{"$f":"(((AAMC_Raw_Data_for_FY22[[#This Row],[75th]]-AAMC_Raw_Data_for_FY22[[#This Row],[Median]])/25)*30) + AAMC_Raw_Data_for_FY22[[#This Row],[Median]]","v":814125.2},{"$f":"(((AAMC_Raw_Data_for_FY22[[#This Row],[75th]]-AAMC_Raw_Data_for_FY22[[#This Row],[Median]])/25)*35) + AAMC_Raw_Data_for_FY22[[#This Row],[Median]]","v":826979.4},{"$f":"(((AAMC_Raw_Data_for_FY22[[#This Row],[75th]]-AAMC_Raw_Data_for_FY22[[#This Row],[Median]])/25)*40) + AAMC_Raw_Data_for_FY22[[#This Row],[Median]]","v":839833.59999999998}]
[{"$f":"AAMC_Raw_Data_for_FY22[[#This Row],[Source]]&AAMC_Raw_Data_for_FY22[[#This Row],[Type]]&AAMC_Raw_Data_for_FY22[[#This Row],[School Subset]]&AAMC_Raw_Data_for_FY22[[#This Row],[Rank]]&AAMC_Raw_Data_for_FY22[[#This Row],[Degree]]&AAMC_Raw_Data_for_FY22[[#This Row],[Department / Specialty]]&\"L\"","v":"AAMCAcademicPrivateInstructorMDDermatology: Mohs SurgeryL"},"Dermatology: Mohs Surgery",5,"AAMC","Academic","Private","Instructor","MD","2021-2022",null,{"$f":"(((AAMC_Raw_Data_for_FY22[[#This Row],[Median]]-AAMC_Raw_Data_for_FY22[[#This Row],[25th]])/25)*5) + AAMC_Raw_Data_for_FY22[[#This Row],[25th]]","v":0},{"$f":"(((AAMC_Raw_Data_for_FY22[[#This Row],[Median]]-AAMC_Raw_Data_for_FY22[[#This Row],[25th]])/25)*10) + AAMC_Raw_Data_for_FY22[[#This Row],[25th]]","v":0},{"$f":"(((AAMC_Raw_Data_for_FY22[[#This Row],[Median]]-AAMC_Raw_Data_for_FY22[[#This Row],[25th]])/25)*15) + AAMC_Raw_Data_for_FY22[[#This Row],[25th]]","v":0},{"$f":"(((AAMC_Raw_Data_for_FY22[[#This Row],[Median]]-AAMC_Raw_Data_for_FY22[[#This Row],[25th]])/25)*20) + AAMC_Raw_Data_for_FY22[[#This Row],[25th]]","v":0},null,{"$f":"(((AAMC_Raw_Data_for_FY22[[#This Row],[75th]]-AAMC_Raw_Data_for_FY22[[#This Row],[Median]])/25)*5) + AAMC_Raw_Data_for_FY22[[#This Row],[Median]]","v":0},{"$f":"(((AAMC_Raw_Data_for_FY22[[#This Row],[75th]]-AAMC_Raw_Data_for_FY22[[#This Row],[Median]])/25)*10) + AAMC_Raw_Data_for_FY22[[#This Row],[Median]]","v":0},{"$f":"(((AAMC_Raw_Data_for_FY22[[#This Row],[75th]]-AAMC_Raw_Data_for_FY22[[#This Row],[Median]])/25)*15) + AAMC_Raw_Data_for_FY22[[#This Row],[Median]]","v":0},{"$f":"(((AAMC_Raw_Data_for_FY22[[#This Row],[75th]]-AAMC_Raw_Data_for_FY22[[#This Row],[Median]])/25)*20) + AAMC_Raw_Data_for_FY22[[#This Row],[Median]]","v":0},null,{"$f":"(((AAMC_Raw_Data_for_FY22[[#This Row],[75th]]-AAMC_Raw_Data_for_FY22[[#This Row],[Median]])/25)*30) + AAMC_Raw_Data_for_FY22[[#This Row],[Median]]","v":0},{"$f":"(((AAMC_Raw_Data_for_FY22[[#This Row],[75th]]-AAMC_Raw_Data_for_FY22[[#This Row],[Median]])/25)*35) + AAMC_Raw_Data_for_FY22[[#This Row],[Median]]","v":0},{"$f":"(((AAMC_Raw_Data_for_FY22[[#This Row],[75th]]-AAMC_Raw_Data_for_FY22[[#This Row],[Median]])/25)*40) + AAMC_Raw_Data_for_FY22[[#This Row],[Median]]","v":0}]
[{"$f":"AAMC_Raw_Data_for_FY22[[#This Row],[Source]]&AAMC_Raw_Data_for_FY22[[#This Row],[Type]]&AAMC_Raw_Data_for_FY22[[#This Row],[School Subset]]&AAMC_Raw_Data_for_FY22[[#This Row],[Rank]]&AAMC_Raw_Data_for_FY22[[#This Row],[Degree]]&AAMC_Raw_Data_for_FY22[[#This Row],[Department / Specialty]]&\"L\"","v":"AAMCAcademicPrivateAssistantMDDermatology: Mohs SurgeryL"},"Dermatology: Mohs Surgery",4,"AAMC","Academic","Private","Assistant","MD","2021-2022",397000,{"$f":"(((AAMC_Raw_Data_for_FY22[[#This Row],[Median]]-AAMC_Raw_Data_for_FY22[[#This Row],[25th]])/25)*5) + AAMC_Raw_Data_for_FY22[[#This Row],[25th]]","v":414455},{"$f":"(((AAMC_Raw_Data_for_FY22[[#This Row],[Median]]-AAMC_Raw_Data_for_FY22[[#This Row],[25th]])/25)*10) + AAMC_Raw_Data_for_FY22[[#This Row],[25th]]","v":431910},{"$f":"(((AAMC_Raw_Data_for_FY22[[#This Row],[Median]]-AAMC_Raw_Data_for_FY22[[#This Row],[25th]])/25)*15) + AAMC_Raw_Data_for_FY22[[#This Row],[25th]]","v":449365},{"$f":"(((AAMC_Raw_Data_for_FY22[[#This Row],[Median]]-AAMC_Raw_Data_for_FY22[[#This Row],[25th]])/25)*20) + AAMC_Raw_Data_for_FY22[[#This Row],[25th]]","v":466820},484275,{"$f":"(((AAMC_Raw_Data_for_FY22[[#This Row],[75th]]-AAMC_Raw_Data_for_FY22[[#This Row],[Median]])/25)*5) + AAMC_Raw_Data_for_FY22[[#This Row],[Median]]","v":510541.4},{"$f":"(((AAMC_Raw_Data_for_FY22[[#This Row],[75th]]-AAMC_Raw_Data_for_FY22[[#This Row],[Median]])/25)*10) + AAMC_Raw_Data_for_FY22[[#This Row],[Median]]","v":536807.80000000005},{"$f":"(((AAMC_Raw_Data_for_FY22[[#This Row],[75th]]-AAMC_Raw_Data_for_FY22[[#This Row],[Median]])/25)*15) + AAMC_Raw_Data_for_FY22[[#This Row],[Median]]","v":563074.19999999995},{"$f":"(((AAMC_Raw_Data_for_FY22[[#This Row],[75th]]-AAMC_Raw_Data_for_FY22[[#This Row],[Median]])/25)*20) + AAMC_Raw_Data_for_FY22[[#This Row],[Median]]","v":589340.6},615607,{"$f":"(((AAMC_Raw_Data_for_FY22[[#This Row],[75th]]-AAMC_Raw_Data_for_FY22[[#This Row],[Median]])/25)*30) + AAMC_Raw_Data_for_FY22[[#This Row],[Median]]","v":641873.4},{"$f":"(((AAMC_Raw_Data_for_FY22[[#This Row],[75th]]-AAMC_Raw_Data_for_FY22[[#This Row],[Median]])/25)*35) + AAMC_Raw_Data_for_FY22[[#This Row],[Median]]","v":668139.80000000005},{"$f":"(((AAMC_Raw_Data_for_FY22[[#This Row],[75th]]-AAMC_Raw_Data_for_FY22[[#This Row],[Median]])/25)*40) + AAMC_Raw_Data_for_FY22[[#This Row],[Median]]","v":694406.2}]
[{"$f":"AAMC_Raw_Data_for_FY22[[#This Row],[Source]]&AAMC_Raw_Data_for_FY22[[#This Row],[Type]]&AAMC_Raw_Data_for_FY22[[#This Row],[School Subset]]&AAMC_Raw_Data_for_FY22[[#This Row],[Rank]]&AAMC_Raw_Data_for_FY22[[#This Row],[Degree]]&AAMC_Raw_Data_for_FY22[[#This Row],[Department / Specialty]]&\"L\"","v":"AAMCAcademicPrivateAssociateMDDermatology: Mohs SurgeryL"},"Dermatology: Mohs Surgery",3,"AAMC","Academic","Private","Associate","MD","2021-2022",568045,{"$f":"(((AAMC_Raw_Data_for_FY22[[#This Row],[Median]]-AAMC_Raw_Data_for_FY22[[#This Row],[25th]])/25)*5) + AAMC_Raw_Data_for_FY22[[#This Row],[25th]]","v":577216.6},{"$f":"(((AAMC_Raw_Data_for_FY22[[#This Row],[Median]]-AAMC_Raw_Data_for_FY22[[#This Row],[25th]])/25)*10) + AAMC_Raw_Data_for_FY22[[#This Row],[25th]]","v":586388.19999999995},{"$f":"(((AAMC_Raw_Data_for_FY22[[#This Row],[Median]]-AAMC_Raw_Data_for_FY22[[#This Row],[25th]])/25)*15) + AAMC_Raw_Data_for_FY22[[#This Row],[25th]]","v":595559.80000000005},{"$f":"(((AAMC_Raw_Data_for_FY22[[#This Row],[Median]]-AAMC_Raw_Data_for_FY22[[#This Row],[25th]])/25)*20) + AAMC_Raw_Data_for_FY22[[#This Row],[25th]]","v":604731.4},613903,{"$f":"(((AAMC_Raw_Data_for_FY22[[#This Row],[75th]]-AAMC_Raw_Data_for_FY22[[#This Row],[Median]])/25)*5) + AAMC_Raw_Data_for_FY22[[#This Row],[Median]]","v":634466.80000000005},{"$f":"(((AAMC_Raw_Data_for_FY22[[#This Row],[75th]]-AAMC_Raw_Data_for_FY22[[#This Row],[Median]])/25)*10) + AAMC_Raw_Data_for_FY22[[#This Row],[Median]]","v":655030.6},{"$f":"(((AAMC_Raw_Data_for_FY22[[#This Row],[75th]]-AAMC_Raw_Data_for_FY22[[#This Row],[Median]])/25)*15) + AAMC_Raw_Data_for_FY22[[#This Row],[Median]]","v":675594.4},{"$f":"(((AAMC_Raw_Data_for_FY22[[#This Row],[75th]]-AAMC_Raw_Data_for_FY22[[#This Row],[Median]])/25)*20) + AAMC_Raw_Data_for_FY22[[#This Row],[Median]]","v":696158.2},716722,{"$f":"(((AAMC_Raw_Data_for_FY22[[#This Row],[75th]]-AAMC_Raw_Data_for_FY22[[#This Row],[Median]])/25)*30) + AAMC_Raw_Data_for_FY22[[#This Row],[Median]]","v":737285.8},{"$f":"(((AAMC_Raw_Data_for_FY22[[#This Row],[75th]]-AAMC_Raw_Data_for_FY22[[#This Row],[Median]])/25)*35) + AAMC_Raw_Data_for_FY22[[#This Row],[Median]]","v":757849.59999999998},{"$f":"(((AAMC_Raw_Data_for_FY22[[#This Row],[75th]]-AAMC_Raw_Data_for_FY22[[#This Row],[Median]])/25)*40) + AAMC_Raw_Data_for_FY22[[#This Row],[Median]]","v":778413.4}]
[{"$f":"AAMC_Raw_Data_for_FY22[[#This Row],[Source]]&AAMC_Raw_Data_for_FY22[[#This Row],[Type]]&AAMC_Raw_Data_for_FY22[[#This Row],[School Subset]]&AAMC_Raw_Data_for_FY22[[#This Row],[Rank]]&AAMC_Raw_Data_for_FY22[[#This Row],[Degree]]&AAMC_Raw_Data_for_FY22[[#This Row],[Department / Specialty]]&\"L\"","v":"AAMCAcademicPrivateProfessorMDDermatology: Mohs SurgeryL"},"Dermatology: Mohs Surgery",2,"AAMC","Academic","Private","Professor","MD","2021-2022",474734,{"$f":"(((AAMC_Raw_Data_for_FY22[[#This Row],[Median]]-AAMC_Raw_Data_for_FY22[[#This Row],[25th]])/25)*5) + AAMC_Raw_Data_for_FY22[[#This Row],[25th]]","v":523943.4},{"$f":"(((AAMC_Raw_Data_for_FY22[[#This Row],[Median]]-AAMC_Raw_Data_for_FY22[[#This Row],[25th]])/25)*10) + AAMC_Raw_Data_for_FY22[[#This Row],[25th]]","v":573152.80000000005},{"$f":"(((AAMC_Raw_Data_for_FY22[[#This Row],[Median]]-AAMC_Raw_Data_for_FY22[[#This Row],[25th]])/25)*15) + AAMC_Raw_Data_for_FY22[[#This Row],[25th]]","v":622362.19999999995},{"$f":"(((AAMC_Raw_Data_for_FY22[[#This Row],[Median]]-AAMC_Raw_Data_for_FY22[[#This Row],[25th]])/25)*20) + AAMC_Raw_Data_for_FY22[[#This Row],[25th]]","v":671571.6},720781,{"$f":"(((AAMC_Raw_Data_for_FY22[[#This Row],[75th]]-AAMC_Raw_Data_for_FY22[[#This Row],[Median]])/25)*5) + AAMC_Raw_Data_for_FY22[[#This Row],[Median]]","v":767844.8},{"$f":"(((AAMC_Raw_Data_for_FY22[[#This Row],[75th]]-AAMC_Raw_Data_for_FY22[[#This Row],[Median]])/25)*10) + AAMC_Raw_Data_for_FY22[[#This Row],[Median]]","v":814908.6},{"$f":"(((AAMC_Raw_Data_for_FY22[[#This Row],[75th]]-AAMC_Raw_Data_for_FY22[[#This Row],[Median]])/25)*15) + AAMC_Raw_Data_for_FY22[[#This Row],[Median]]","v":861972.4},{"$f":"(((AAMC_Raw_Data_for_FY22[[#This Row],[75th]]-AAMC_Raw_Data_for_FY22[[#This Row],[Median]])/25)*20) + AAMC_Raw_Data_for_FY22[[#This Row],[Median]]","v":909036.2},956100,{"$f":"(((AAMC_Raw_Data_for_FY22[[#This Row],[75th]]-AAMC_Raw_Data_for_FY22[[#This Row],[Median]])/25)*30) + AAMC_Raw_Data_for_FY22[[#This Row],[Median]]","v":1003163.8},{"$f":"(((AAMC_Raw_Data_for_FY22[[#This Row],[75th]]-AAMC_Raw_Data_for_FY22[[#This Row],[Median]])/25)*35) + AAMC_Raw_Data_for_FY22[[#This Row],[Median]]","v":1050227.6000000001},{"$f":"(((AAMC_Raw_Data_for_FY22[[#This Row],[75th]]-AAMC_Raw_Data_for_FY22[[#This Row],[Median]])/25)*40) + AAMC_Raw_Data_for_FY22[[#This Row],[Median]]","v":1097291.3999999999}]
[{"$f":"AAMC_Raw_Data_for_FY22[[#This Row],[Source]]&AAMC_Raw_Data_for_FY22[[#This Row],[Type]]&AAMC_Raw_Data_for_FY22[[#This Row],[School Subset]]&AAMC_Raw_Data_for_FY22[[#This Row],[Rank]]&AAMC_Raw_Data_for_FY22[[#This Row],[Degree]]&AAMC_Raw_Data_for_FY22[[#This Row],[Department / Specialty]]&\"L\"","v":"AAMCAcademicPrivateChiefMDDermatology: Mohs SurgeryL"},"Dermatology: Mohs Surgery",6,"AAMC","Academic","Private","Chief","MD","2021-2022",null,{"$f":"(((AAMC_Raw_Data_for_FY22[[#This Row],[Median]]-AAMC_Raw_Data_for_FY22[[#This Row],[25th]])/25)*5) + AAMC_Raw_Data_for_FY22[[#This Row],[25th]]","v":0},{"$f":"(((AAMC_Raw_Data_for_FY22[[#This Row],[Median]]-AAMC_Raw_Data_for_FY22[[#This Row],[25th]])/25)*10) + AAMC_Raw_Data_for_FY22[[#This Row],[25th]]","v":0},{"$f":"(((AAMC_Raw_Data_for_FY22[[#This Row],[Median]]-AAMC_Raw_Data_for_FY22[[#This Row],[25th]])/25)*15) + AAMC_Raw_Data_for_FY22[[#This Row],[25th]]","v":0},{"$f":"(((AAMC_Raw_Data_for_FY22[[#This Row],[Median]]-AAMC_Raw_Data_for_FY22[[#This Row],[25th]])/25)*20) + AAMC_Raw_Data_for_FY22[[#This Row],[25th]]","v":0},null,{"$f":"(((AAMC_Raw_Data_for_FY22[[#This Row],[75th]]-AAMC_Raw_Data_for_FY22[[#This Row],[Median]])/25)*5) + AAMC_Raw_Data_for_FY22[[#This Row],[Median]]","v":0},{"$f":"(((AAMC_Raw_Data_for_FY22[[#This Row],[75th]]-AAMC_Raw_Data_for_FY22[[#This Row],[Median]])/25)*10) + AAMC_Raw_Data_for_FY22[[#This Row],[Median]]","v":0},{"$f":"(((AAMC_Raw_Data_for_FY22[[#This Row],[75th]]-AAMC_Raw_Data_for_FY22[[#This Row],[Median]])/25)*15) + AAMC_Raw_Data_for_FY22[[#This Row],[Median]]","v":0},{"$f":"(((AAMC_Raw_Data_for_FY22[[#This Row],[75th]]-AAMC_Raw_Data_for_FY22[[#This Row],[Median]])/25)*20) + AAMC_Raw_Data_for_FY22[[#This Row],[Median]]","v":0},null,{"$f":"(((AAMC_Raw_Data_for_FY22[[#This Row],[75th]]-AAMC_Raw_Data_for_FY22[[#This Row],[Median]])/25)*30) + AAMC_Raw_Data_for_FY22[[#This Row],[Median]]","v":0},{"$f":"(((AAMC_Raw_Data_for_FY22[[#This Row],[75th]]-AAMC_Raw_Data_for_FY22[[#This Row],[Median]])/25)*35) + AAMC_Raw_Data_for_FY22[[#This Row],[Median]]","v":0},{"$f":"(((AAMC_Raw_Data_for_FY22[[#This Row],[75th]]-AAMC_Raw_Data_for_FY22[[#This Row],[Median]])/25)*40) + AAMC_Raw_Data_for_FY22[[#This Row],[Median]]","v":0}]
[{"$f":"AAMC_Raw_Data_for_FY22[[#This Row],[Source]]&AAMC_Raw_Data_for_FY22[[#This Row],[Type]]&AAMC_Raw_Data_for_FY22[[#This Row],[School Subset]]&AAMC_Raw_Data_for_FY22[[#This Row],[Rank]]&AAMC_Raw_Data_for_FY22[[#This Row],[Degree]]&AAMC_Raw_Data_for_FY22[[#This Row],[Department / Specialty]]&\"L\"","v":"AAMCAcademicPrivateInstructorMDFamily Medicine TotalL"},"Family Medicine Total",5,"AAMC","Academic","Private","Instructor","MD","2021-2022",206953,{"$f":"(((AAMC_Raw_Data_for_FY22[[#This Row],[Median]]-AAMC_Raw_Data_for_FY22[[#This Row],[25th]])/25)*5) + AAMC_Raw_Data_for_FY22[[#This Row],[25th]]","v":213481.60000000001},{"$f":"(((AAMC_Raw_Data_for_FY22[[#This Row],[Median]]-AAMC_Raw_Data_for_FY22[[#This Row],[25th]])/25)*10) + AAMC_Raw_Data_for_FY22[[#This Row],[25th]]","v":220010.2},{"$f":"(((AAMC_Raw_Data_for_FY22[[#This Row],[Median]]-AAMC_Raw_Data_for_FY22[[#This Row],[25th]])/25)*15) + AAMC_Raw_Data_for_FY22[[#This Row],[25th]]","v":226538.8},{"$f":"(((AAMC_Raw_Data_for_FY22[[#This Row],[Median]]-AAMC_Raw_Data_for_FY22[[#This Row],[25th]])/25)*20) + AAMC_Raw_Data_for_FY22[[#This Row],[25th]]","v":233067.4},239596,{"$f":"(((AAMC_Raw_Data_for_FY22[[#This Row],[75th]]-AAMC_Raw_Data_for_FY22[[#This Row],[Median]])/25)*5) + AAMC_Raw_Data_for_FY22[[#This Row],[Median]]","v":249055.6},{"$f":"(((AAMC_Raw_Data_for_FY22[[#This Row],[75th]]-AAMC_Raw_Data_for_FY22[[#This Row],[Median]])/25)*10) + AAMC_Raw_Data_for_FY22[[#This Row],[Median]]","v":258515.20000000001},{"$f":"(((AAMC_Raw_Data_for_FY22[[#This Row],[75th]]-AAMC_Raw_Data_for_FY22[[#This Row],[Median]])/25)*15) + AAMC_Raw_Data_for_FY22[[#This Row],[Median]]","v":267974.8},{"$f":"(((AAMC_Raw_Data_for_FY22[[#This Row],[75th]]-AAMC_Raw_Data_for_FY22[[#This Row],[Median]])/25)*20) + AAMC_Raw_Data_for_FY22[[#This Row],[Median]]","v":277434.40000000002},286894,{"$f":"(((AAMC_Raw_Data_for_FY22[[#This Row],[75th]]-AAMC_Raw_Data_for_FY22[[#This Row],[Median]])/25)*30) + AAMC_Raw_Data_for_FY22[[#This Row],[Median]]","v":296353.59999999998},{"$f":"(((AAMC_Raw_Data_for_FY22[[#This Row],[75th]]-AAMC_Raw_Data_for_FY22[[#This Row],[Median]])/25)*35) + AAMC_Raw_Data_for_FY22[[#This Row],[Median]]","v":305813.2},{"$f":"(((AAMC_Raw_Data_for_FY22[[#This Row],[75th]]-AAMC_Raw_Data_for_FY22[[#This Row],[Median]])/25)*40) + AAMC_Raw_Data_for_FY22[[#This Row],[Median]]","v":315272.8}]
[{"$f":"AAMC_Raw_Data_for_FY22[[#This Row],[Source]]&AAMC_Raw_Data_for_FY22[[#This Row],[Type]]&AAMC_Raw_Data_for_FY22[[#This Row],[School Subset]]&AAMC_Raw_Data_for_FY22[[#This Row],[Rank]]&AAMC_Raw_Data_for_FY22[[#This Row],[Degree]]&AAMC_Raw_Data_for_FY22[[#This Row],[Department / Specialty]]&\"L\"","v":"AAMCAcademicPrivateAssistantMDFamily Medicine TotalL"},"Family Medicine Total",4,"AAMC","Academic","Private","Assistant","MD","2021-2022",199588,{"$f":"(((AAMC_Raw_Data_for_FY22[[#This Row],[Median]]-AAMC_Raw_Data_for_FY22[[#This Row],[25th]])/25)*5) + AAMC_Raw_Data_for_FY22[[#This Row],[25th]]","v":205374},{"$f":"(((AAMC_Raw_Data_for_FY22[[#This Row],[Median]]-AAMC_Raw_Data_for_FY22[[#This Row],[25th]])/25)*10) + AAMC_Raw_Data_for_FY22[[#This Row],[25th]]","v":211160},{"$f":"(((AAMC_Raw_Data_for_FY22[[#This Row],[Median]]-AAMC_Raw_Data_for_FY22[[#This Row],[25th]])/25)*15) + AAMC_Raw_Data_for_FY22[[#This Row],[25th]]","v":216946},{"$f":"(((AAMC_Raw_Data_for_FY22[[#This Row],[Median]]-AAMC_Raw_Data_for_FY22[[#This Row],[25th]])/25)*20) + AAMC_Raw_Data_for_FY22[[#This Row],[25th]]","v":222732},228518,{"$f":"(((AAMC_Raw_Data_for_FY22[[#This Row],[75th]]-AAMC_Raw_Data_for_FY22[[#This Row],[Median]])/25)*5) + AAMC_Raw_Data_for_FY22[[#This Row],[Median]]","v":235850.8},{"$f":"(((AAMC_Raw_Data_for_FY22[[#This Row],[75th]]-AAMC_Raw_Data_for_FY22[[#This Row],[Median]])/25)*10) + AAMC_Raw_Data_for_FY22[[#This Row],[Median]]","v":243183.6},{"$f":"(((AAMC_Raw_Data_for_FY22[[#This Row],[75th]]-AAMC_Raw_Data_for_FY22[[#This Row],[Median]])/25)*15) + AAMC_Raw_Data_for_FY22[[#This Row],[Median]]","v":250516.4},{"$f":"(((AAMC_Raw_Data_for_FY22[[#This Row],[75th]]-AAMC_Raw_Data_for_FY22[[#This Row],[Median]])/25)*20) + AAMC_Raw_Data_for_FY22[[#This Row],[Median]]","v":257849.2},265182,{"$f":"(((AAMC_Raw_Data_for_FY22[[#This Row],[75th]]-AAMC_Raw_Data_for_FY22[[#This Row],[Median]])/25)*30) + AAMC_Raw_Data_for_FY22[[#This Row],[Median]]","v":272514.8},{"$f":"(((AAMC_Raw_Data_for_FY22[[#This Row],[75th]]-AAMC_Raw_Data_for_FY22[[#This Row],[Median]])/25)*35) + AAMC_Raw_Data_for_FY22[[#This Row],[Median]]","v":279847.59999999998},{"$f":"(((AAMC_Raw_Data_for_FY22[[#This Row],[75th]]-AAMC_Raw_Data_for_FY22[[#This Row],[Median]])/25)*40) + AAMC_Raw_Data_for_FY22[[#This Row],[Median]]","v":287180.40000000002}]
[{"$f":"AAMC_Raw_Data_for_FY22[[#This Row],[Source]]&AAMC_Raw_Data_for_FY22[[#This Row],[Type]]&AAMC_Raw_Data_for_FY22[[#This Row],[School Subset]]&AAMC_Raw_Data_for_FY22[[#This Row],[Rank]]&AAMC_Raw_Data_for_FY22[[#This Row],[Degree]]&AAMC_Raw_Data_for_FY22[[#This Row],[Department / Specialty]]&\"L\"","v":"AAMCAcademicPrivateAssociateMDFamily Medicine TotalL"},"Family Medicine Total",3,"AAMC","Academic","Private","Associate","MD","2021-2022",219490,{"$f":"(((AAMC_Raw_Data_for_FY22[[#This Row],[Median]]-AAMC_Raw_Data_for_FY22[[#This Row],[25th]])/25)*5) + AAMC_Raw_Data_for_FY22[[#This Row],[25th]]","v":224096.6},{"$f":"(((AAMC_Raw_Data_for_FY22[[#This Row],[Median]]-AAMC_Raw_Data_for_FY22[[#This Row],[25th]])/25)*10) + AAMC_Raw_Data_for_FY22[[#This Row],[25th]]","v":228703.2},{"$f":"(((AAMC_Raw_Data_for_FY22[[#This Row],[Median]]-AAMC_Raw_Data_for_FY22[[#This Row],[25th]])/25)*15) + AAMC_Raw_Data_for_FY22[[#This Row],[25th]]","v":233309.8},{"$f":"(((AAMC_Raw_Data_for_FY22[[#This Row],[Median]]-AAMC_Raw_Data_for_FY22[[#This Row],[25th]])/25)*20) + AAMC_Raw_Data_for_FY22[[#This Row],[25th]]","v":237916.4},242523,{"$f":"(((AAMC_Raw_Data_for_FY22[[#This Row],[75th]]-AAMC_Raw_Data_for_FY22[[#This Row],[Median]])/25)*5) + AAMC_Raw_Data_for_FY22[[#This Row],[Median]]","v":247356},{"$f":"(((AAMC_Raw_Data_for_FY22[[#This Row],[75th]]-AAMC_Raw_Data_for_FY22[[#This Row],[Median]])/25)*10) + AAMC_Raw_Data_for_FY22[[#This Row],[Median]]","v":252189},{"$f":"(((AAMC_Raw_Data_for_FY22[[#This Row],[75th]]-AAMC_Raw_Data_for_FY22[[#This Row],[Median]])/25)*15) + AAMC_Raw_Data_for_FY22[[#This Row],[Median]]","v":257022},{"$f":"(((AAMC_Raw_Data_for_FY22[[#This Row],[75th]]-AAMC_Raw_Data_for_FY22[[#This Row],[Median]])/25)*20) + AAMC_Raw_Data_for_FY22[[#This Row],[Median]]","v":261855},266688,{"$f":"(((AAMC_Raw_Data_for_FY22[[#This Row],[75th]]-AAMC_Raw_Data_for_FY22[[#This Row],[Median]])/25)*30) + AAMC_Raw_Data_for_FY22[[#This Row],[Median]]","v":271521},{"$f":"(((AAMC_Raw_Data_for_FY22[[#This Row],[75th]]-AAMC_Raw_Data_for_FY22[[#This Row],[Median]])/25)*35) + AAMC_Raw_Data_for_FY22[[#This Row],[Median]]","v":276354},{"$f":"(((AAMC_Raw_Data_for_FY22[[#This Row],[75th]]-AAMC_Raw_Data_for_FY22[[#This Row],[Median]])/25)*40) + AAMC_Raw_Data_for_FY22[[#This Row],[Median]]","v":281187}]
[{"$f":"AAMC_Raw_Data_for_FY22[[#This Row],[Source]]&AAMC_Raw_Data_for_FY22[[#This Row],[Type]]&AAMC_Raw_Data_for_FY22[[#This Row],[School Subset]]&AAMC_Raw_Data_for_FY22[[#This Row],[Rank]]&AAMC_Raw_Data_for_FY22[[#This Row],[Degree]]&AAMC_Raw_Data_for_FY22[[#This Row],[Department / Specialty]]&\"L\"","v":"AAMCAcademicPrivateProfessorMDFamily Medicine TotalL"},"Family Medicine Total",2,"AAMC","Academic","Private","Professor","MD","2021-2022",240792,{"$f":"(((AAMC_Raw_Data_for_FY22[[#This Row],[Median]]-AAMC_Raw_Data_for_FY22[[#This Row],[25th]])/25)*5) + AAMC_Raw_Data_for_FY22[[#This Row],[25th]]","v":247041.4},{"$f":"(((AAMC_Raw_Data_for_FY22[[#This Row],[Median]]-AAMC_Raw_Data_for_FY22[[#This Row],[25th]])/25)*10) + AAMC_Raw_Data_for_FY22[[#This Row],[25th]]","v":253290.8},{"$f":"(((AAMC_Raw_Data_for_FY22[[#This Row],[Median]]-AAMC_Raw_Data_for_FY22[[#This Row],[25th]])/25)*15) + AAMC_Raw_Data_for_FY22[[#This Row],[25th]]","v":259540.2},{"$f":"(((AAMC_Raw_Data_for_FY22[[#This Row],[Median]]-AAMC_Raw_Data_for_FY22[[#This Row],[25th]])/25)*20) + AAMC_Raw_Data_for_FY22[[#This Row],[25th]]","v":265789.59999999998},272039,{"$f":"(((AAMC_Raw_Data_for_FY22[[#This Row],[75th]]-AAMC_Raw_Data_for_FY22[[#This Row],[Median]])/25)*5) + AAMC_Raw_Data_for_FY22[[#This Row],[Median]]","v":279190.40000000002},{"$f":"(((AAMC_Raw_Data_for_FY22[[#This Row],[75th]]-AAMC_Raw_Data_for_FY22[[#This Row],[Median]])/25)*10) + AAMC_Raw_Data_for_FY22[[#This Row],[Median]]","v":286341.8},{"$f":"(((AAMC_Raw_Data_for_FY22[[#This Row],[75th]]-AAMC_Raw_Data_for_FY22[[#This Row],[Median]])/25)*15) + AAMC_Raw_Data_for_FY22[[#This Row],[Median]]","v":293493.2},{"$f":"(((AAMC_Raw_Data_for_FY22[[#This Row],[75th]]-AAMC_Raw_Data_for_FY22[[#This Row],[Median]])/25)*20) + AAMC_Raw_Data_for_FY22[[#This Row],[Median]]","v":300644.59999999998},307796,{"$f":"(((AAMC_Raw_Data_for_FY22[[#This Row],[75th]]-AAMC_Raw_Data_for_FY22[[#This Row],[Median]])/25)*30) + AAMC_Raw_Data_for_FY22[[#This Row],[Median]]","v":314947.40000000002},{"$f":"(((AAMC_Raw_Data_for_FY22[[#This Row],[75th]]-AAMC_Raw_Data_for_FY22[[#This Row],[Median]])/25)*35) + AAMC_Raw_Data_for_FY22[[#This Row],[Median]]","v":322098.8},{"$f":"(((AAMC_Raw_Data_for_FY22[[#This Row],[75th]]-AAMC_Raw_Data_for_FY22[[#This Row],[Median]])/25)*40) + AAMC_Raw_Data_for_FY22[[#This Row],[Median]]","v":329250.2}]
[{"$f":"AAMC_Raw_Data_for_FY22[[#This Row],[Source]]&AAMC_Raw_Data_for_FY22[[#This Row],[Type]]&AAMC_Raw_Data_for_FY22[[#This Row],[School Subset]]&AAMC_Raw_Data_for_FY22[[#This Row],[Rank]]&AAMC_Raw_Data_for_FY22[[#This Row],[Degree]]&AAMC_Raw_Data_for_FY22[[#This Row],[Department / Specialty]]&\"L\"","v":"AAMCAcademicPrivateChiefMDFamily Medicine TotalL"},"Family Medicine Total",6,"AAMC","Academic","Private","Chief","MD","2021-2022",null,{"$f":"(((AAMC_Raw_Data_for_FY22[[#This Row],[Median]]-AAMC_Raw_Data_for_FY22[[#This Row],[25th]])/25)*5) + AAMC_Raw_Data_for_FY22[[#This Row],[25th]]","v":0},{"$f":"(((AAMC_Raw_Data_for_FY22[[#This Row],[Median]]-AAMC_Raw_Data_for_FY22[[#This Row],[25th]])/25)*10) + AAMC_Raw_Data_for_FY22[[#This Row],[25th]]","v":0},{"$f":"(((AAMC_Raw_Data_for_FY22[[#This Row],[Median]]-AAMC_Raw_Data_for_FY22[[#This Row],[25th]])/25)*15) + AAMC_Raw_Data_for_FY22[[#This Row],[25th]]","v":0},{"$f":"(((AAMC_Raw_Data_for_FY22[[#This Row],[Median]]-AAMC_Raw_Data_for_FY22[[#This Row],[25th]])/25)*20) + AAMC_Raw_Data_for_FY22[[#This Row],[25th]]","v":0},null,{"$f":"(((AAMC_Raw_Data_for_FY22[[#This Row],[75th]]-AAMC_Raw_Data_for_FY22[[#This Row],[Median]])/25)*5) + AAMC_Raw_Data_for_FY22[[#This Row],[Median]]","v":0},{"$f":"(((AAMC_Raw_Data_for_FY22[[#This Row],[75th]]-AAMC_Raw_Data_for_FY22[[#This Row],[Median]])/25)*10) + AAMC_Raw_Data_for_FY22[[#This Row],[Median]]","v":0},{"$f":"(((AAMC_Raw_Data_for_FY22[[#This Row],[75th]]-AAMC_Raw_Data_for_FY22[[#This Row],[Median]])/25)*15) + AAMC_Raw_Data_for_FY22[[#This Row],[Median]]","v":0},{"$f":"(((AAMC_Raw_Data_for_FY22[[#This Row],[75th]]-AAMC_Raw_Data_for_FY22[[#This Row],[Median]])/25)*20) + AAMC_Raw_Data_for_FY22[[#This Row],[Median]]","v":0},null,{"$f":"(((AAMC_Raw_Data_for_FY22[[#This Row],[75th]]-AAMC_Raw_Data_for_FY22[[#This Row],[Median]])/25)*30) + AAMC_Raw_Data_for_FY22[[#This Row],[Median]]","v":0},{"$f":"(((AAMC_Raw_Data_for_FY22[[#This Row],[75th]]-AAMC_Raw_Data_for_FY22[[#This Row],[Median]])/25)*35) + AAMC_Raw_Data_for_FY22[[#This Row],[Median]]","v":0},{"$f":"(((AAMC_Raw_Data_for_FY22[[#This Row],[75th]]-AAMC_Raw_Data_for_FY22[[#This Row],[Median]])/25)*40) + AAMC_Raw_Data_for_FY22[[#This Row],[Median]]","v":0}]
[{"$f":"AAMC_Raw_Data_for_FY22[[#This Row],[Source]]&AAMC_Raw_Data_for_FY22[[#This Row],[Type]]&AAMC_Raw_Data_for_FY22[[#This Row],[School Subset]]&AAMC_Raw_Data_for_FY22[[#This Row],[Rank]]&AAMC_Raw_Data_for_FY22[[#This Row],[Degree]]&AAMC_Raw_Data_for_FY22[[#This Row],[Department / Specialty]]&\"L\"","v":"AAMCAcademicPrivateChairMDFamily Medicine TotalL"},"Family Medicine Total",1,"AAMC","Academic","Private","Chair","MD","2021-2022",305223,{"$f":"(((AAMC_Raw_Data_for_FY22[[#This Row],[Median]]-AAMC_Raw_Data_for_FY22[[#This Row],[25th]])/25)*5) + AAMC_Raw_Data_for_FY22[[#This Row],[25th]]","v":325860.59999999998},{"$f":"(((AAMC_Raw_Data_for_FY22[[#This Row],[Median]]-AAMC_Raw_Data_for_FY22[[#This Row],[25th]])/25)*10) + AAMC_Raw_Data_for_FY22[[#This Row],[25th]]","v":346498.2},{"$f":"(((AAMC_Raw_Data_for_FY22[[#This Row],[Median]]-AAMC_Raw_Data_for_FY22[[#This Row],[25th]])/25)*15) + AAMC_Raw_Data_for_FY22[[#This Row],[25th]]","v":367135.8},{"$f":"(((AAMC_Raw_Data_for_FY22[[#This Row],[Median]]-AAMC_Raw_Data_for_FY22[[#This Row],[25th]])/25)*20) + AAMC_Raw_Data_for_FY22[[#This Row],[25th]]","v":387773.4},408411,{"$f":"(((AAMC_Raw_Data_for_FY22[[#This Row],[75th]]-AAMC_Raw_Data_for_FY22[[#This Row],[Median]])/25)*5) + AAMC_Raw_Data_for_FY22[[#This Row],[Median]]","v":416181.2},{"$f":"(((AAMC_Raw_Data_for_FY22[[#This Row],[75th]]-AAMC_Raw_Data_for_FY22[[#This Row],[Median]])/25)*10) + AAMC_Raw_Data_for_FY22[[#This Row],[Median]]","v":423951.4},{"$f":"(((AAMC_Raw_Data_for_FY22[[#This Row],[75th]]-AAMC_Raw_Data_for_FY22[[#This Row],[Median]])/25)*15) + AAMC_Raw_Data_for_FY22[[#This Row],[Median]]","v":431721.6},{"$f":"(((AAMC_Raw_Data_for_FY22[[#This Row],[75th]]-AAMC_Raw_Data_for_FY22[[#This Row],[Median]])/25)*20) + AAMC_Raw_Data_for_FY22[[#This Row],[Median]]","v":439491.8},447262,{"$f":"(((AAMC_Raw_Data_for_FY22[[#This Row],[75th]]-AAMC_Raw_Data_for_FY22[[#This Row],[Median]])/25)*30) + AAMC_Raw_Data_for_FY22[[#This Row],[Median]]","v":455032.2},{"$f":"(((AAMC_Raw_Data_for_FY22[[#This Row],[75th]]-AAMC_Raw_Data_for_FY22[[#This Row],[Median]])/25)*35) + AAMC_Raw_Data_for_FY22[[#This Row],[Median]]","v":462802.4},{"$f":"(((AAMC_Raw_Data_for_FY22[[#This Row],[75th]]-AAMC_Raw_Data_for_FY22[[#This Row],[Median]])/25)*40) + AAMC_Raw_Data_for_FY22[[#This Row],[Median]]","v":470572.6}]
[{"$f":"AAMC_Raw_Data_for_FY22[[#This Row],[Source]]&AAMC_Raw_Data_for_FY22[[#This Row],[Type]]&AAMC_Raw_Data_for_FY22[[#This Row],[School Subset]]&AAMC_Raw_Data_for_FY22[[#This Row],[Rank]]&AAMC_Raw_Data_for_FY22[[#This Row],[Degree]]&AAMC_Raw_Data_for_FY22[[#This Row],[Department / Specialty]]&\"L\"","v":"AAMCAcademicPrivateInstructorMDFamily Medicine: GeneralL"},"Family Medicine: General",5,"AAMC","Academic","Private","Instructor","MD","2021-2022",207025,{"$f":"(((AAMC_Raw_Data_for_FY22[[#This Row],[Median]]-AAMC_Raw_Data_for_FY22[[#This Row],[25th]])/25)*5) + AAMC_Raw_Data_for_FY22[[#This Row],[25th]]","v":213987.20000000001},{"$f":"(((AAMC_Raw_Data_for_FY22[[#This Row],[Median]]-AAMC_Raw_Data_for_FY22[[#This Row],[25th]])/25)*10) + AAMC_Raw_Data_for_FY22[[#This Row],[25th]]","v":220949.4},{"$f":"(((AAMC_Raw_Data_for_FY22[[#This Row],[Median]]-AAMC_Raw_Data_for_FY22[[#This Row],[25th]])/25)*15) + AAMC_Raw_Data_for_FY22[[#This Row],[25th]]","v":227911.6},{"$f":"(((AAMC_Raw_Data_for_FY22[[#This Row],[Median]]-AAMC_Raw_Data_for_FY22[[#This Row],[25th]])/25)*20) + AAMC_Raw_Data_for_FY22[[#This Row],[25th]]","v":234873.8},241836,{"$f":"(((AAMC_Raw_Data_for_FY22[[#This Row],[75th]]-AAMC_Raw_Data_for_FY22[[#This Row],[Median]])/25)*5) + AAMC_Raw_Data_for_FY22[[#This Row],[Median]]","v":250847.6},{"$f":"(((AAMC_Raw_Data_for_FY22[[#This Row],[75th]]-AAMC_Raw_Data_for_FY22[[#This Row],[Median]])/25)*10) + AAMC_Raw_Data_for_FY22[[#This Row],[Median]]","v":259859.20000000001},{"$f":"(((AAMC_Raw_Data_for_FY22[[#This Row],[75th]]-AAMC_Raw_Data_for_FY22[[#This Row],[Median]])/25)*15) + AAMC_Raw_Data_for_FY22[[#This Row],[Median]]","v":268870.8},{"$f":"(((AAMC_Raw_Data_for_FY22[[#This Row],[75th]]-AAMC_Raw_Data_for_FY22[[#This Row],[Median]])/25)*20) + AAMC_Raw_Data_for_FY22[[#This Row],[Median]]","v":277882.40000000002},286894,{"$f":"(((AAMC_Raw_Data_for_FY22[[#This Row],[75th]]-AAMC_Raw_Data_for_FY22[[#This Row],[Median]])/25)*30) + AAMC_Raw_Data_for_FY22[[#This Row],[Median]]","v":295905.59999999998},{"$f":"(((AAMC_Raw_Data_for_FY22[[#This Row],[75th]]-AAMC_Raw_Data_for_FY22[[#This Row],[Median]])/25)*35) + AAMC_Raw_Data_for_FY22[[#This Row],[Median]]","v":304917.2},{"$f":"(((AAMC_Raw_Data_for_FY22[[#This Row],[75th]]-AAMC_Raw_Data_for_FY22[[#This Row],[Median]])/25)*40) + AAMC_Raw_Data_for_FY22[[#This Row],[Median]]","v":313928.8}]
[{"$f":"AAMC_Raw_Data_for_FY22[[#This Row],[Source]]&AAMC_Raw_Data_for_FY22[[#This Row],[Type]]&AAMC_Raw_Data_for_FY22[[#This Row],[School Subset]]&AAMC_Raw_Data_for_FY22[[#This Row],[Rank]]&AAMC_Raw_Data_for_FY22[[#This Row],[Degree]]&AAMC_Raw_Data_for_FY22[[#This Row],[Department / Specialty]]&\"L\"","v":"AAMCAcademicPrivateAssistantMDFamily Medicine: GeneralL"},"Family Medicine: General",4,"AAMC","Academic","Private","Assistant","MD","2021-2022",200042,{"$f":"(((AAMC_Raw_Data_for_FY22[[#This Row],[Median]]-AAMC_Raw_Data_for_FY22[[#This Row],[25th]])/25)*5) + AAMC_Raw_Data_for_FY22[[#This Row],[25th]]","v":205644.4},{"$f":"(((AAMC_Raw_Data_for_FY22[[#This Row],[Median]]-AAMC_Raw_Data_for_FY22[[#This Row],[25th]])/25)*10) + AAMC_Raw_Data_for_FY22[[#This Row],[25th]]","v":211246.8},{"$f":"(((AAMC_Raw_Data_for_FY22[[#This Row],[Median]]-AAMC_Raw_Data_for_FY22[[#This Row],[25th]])/25)*15) + AAMC_Raw_Data_for_FY22[[#This Row],[25th]]","v":216849.2},{"$f":"(((AAMC_Raw_Data_for_FY22[[#This Row],[Median]]-AAMC_Raw_Data_for_FY22[[#This Row],[25th]])/25)*20) + AAMC_Raw_Data_for_FY22[[#This Row],[25th]]","v":222451.6},228054,{"$f":"(((AAMC_Raw_Data_for_FY22[[#This Row],[75th]]-AAMC_Raw_Data_for_FY22[[#This Row],[Median]])/25)*5) + AAMC_Raw_Data_for_FY22[[#This Row],[Median]]","v":235479.6},{"$f":"(((AAMC_Raw_Data_for_FY22[[#This Row],[75th]]-AAMC_Raw_Data_for_FY22[[#This Row],[Median]])/25)*10) + AAMC_Raw_Data_for_FY22[[#This Row],[Median]]","v":242905.2},{"$f":"(((AAMC_Raw_Data_for_FY22[[#This Row],[75th]]-AAMC_Raw_Data_for_FY22[[#This Row],[Median]])/25)*15) + AAMC_Raw_Data_for_FY22[[#This Row],[Median]]","v":250330.8},{"$f":"(((AAMC_Raw_Data_for_FY22[[#This Row],[75th]]-AAMC_Raw_Data_for_FY22[[#This Row],[Median]])/25)*20) + AAMC_Raw_Data_for_FY22[[#This Row],[Median]]","v":257756.4},265182,{"$f":"(((AAMC_Raw_Data_for_FY22[[#This Row],[75th]]-AAMC_Raw_Data_for_FY22[[#This Row],[Median]])/25)*30) + AAMC_Raw_Data_for_FY22[[#This Row],[Median]]","v":272607.59999999998},{"$f":"(((AAMC_Raw_Data_for_FY22[[#This Row],[75th]]-AAMC_Raw_Data_for_FY22[[#This Row],[Median]])/25)*35) + AAMC_Raw_Data_for_FY22[[#This Row],[Median]]","v":280033.2},{"$f":"(((AAMC_Raw_Data_for_FY22[[#This Row],[75th]]-AAMC_Raw_Data_for_FY22[[#This Row],[Median]])/25)*40) + AAMC_Raw_Data_for_FY22[[#This Row],[Median]]","v":287458.8}]
[{"$f":"AAMC_Raw_Data_for_FY22[[#This Row],[Source]]&AAMC_Raw_Data_for_FY22[[#This Row],[Type]]&AAMC_Raw_Data_for_FY22[[#This Row],[School Subset]]&AAMC_Raw_Data_for_FY22[[#This Row],[Rank]]&AAMC_Raw_Data_for_FY22[[#This Row],[Degree]]&AAMC_Raw_Data_for_FY22[[#This Row],[Department / Specialty]]&\"L\"","v":"AAMCAcademicPrivateAssociateMDFamily Medicine: GeneralL"},"Family Medicine: General",3,"AAMC","Academic","Private","Associate","MD","2021-2022",219271,{"$f":"(((AAMC_Raw_Data_for_FY22[[#This Row],[Median]]-AAMC_Raw_Data_for_FY22[[#This Row],[25th]])/25)*5) + AAMC_Raw_Data_for_FY22[[#This Row],[25th]]","v":223409.4},{"$f":"(((AAMC_Raw_Data_for_FY22[[#This Row],[Median]]-AAMC_Raw_Data_for_FY22[[#This Row],[25th]])/25)*10) + AAMC_Raw_Data_for_FY22[[#This Row],[25th]]","v":227547.8},{"$f":"(((AAMC_Raw_Data_for_FY22[[#This Row],[Median]]-AAMC_Raw_Data_for_FY22[[#This Row],[25th]])/25)*15) + AAMC_Raw_Data_for_FY22[[#This Row],[25th]]","v":231686.2},{"$f":"(((AAMC_Raw_Data_for_FY22[[#This Row],[Median]]-AAMC_Raw_Data_for_FY22[[#This Row],[25th]])/25)*20) + AAMC_Raw_Data_for_FY22[[#This Row],[25th]]","v":235824.6},239963,{"$f":"(((AAMC_Raw_Data_for_FY22[[#This Row],[75th]]-AAMC_Raw_Data_for_FY22[[#This Row],[Median]])/25)*5) + AAMC_Raw_Data_for_FY22[[#This Row],[Median]]","v":244170.2},{"$f":"(((AAMC_Raw_Data_for_FY22[[#This Row],[75th]]-AAMC_Raw_Data_for_FY22[[#This Row],[Median]])/25)*10) + AAMC_Raw_Data_for_FY22[[#This Row],[Median]]","v":248377.4},{"$f":"(((AAMC_Raw_Data_for_FY22[[#This Row],[75th]]-AAMC_Raw_Data_for_FY22[[#This Row],[Median]])/25)*15) + AAMC_Raw_Data_for_FY22[[#This Row],[Median]]","v":252584.6},{"$f":"(((AAMC_Raw_Data_for_FY22[[#This Row],[75th]]-AAMC_Raw_Data_for_FY22[[#This Row],[Median]])/25)*20) + AAMC_Raw_Data_for_FY22[[#This Row],[Median]]","v":256791.8},260999,{"$f":"(((AAMC_Raw_Data_for_FY22[[#This Row],[75th]]-AAMC_Raw_Data_for_FY22[[#This Row],[Median]])/25)*30) + AAMC_Raw_Data_for_FY22[[#This Row],[Median]]","v":265206.2},{"$f":"(((AAMC_Raw_Data_for_FY22[[#This Row],[75th]]-AAMC_Raw_Data_for_FY22[[#This Row],[Median]])/25)*35) + AAMC_Raw_Data_for_FY22[[#This Row],[Median]]","v":269413.40000000002},{"$f":"(((AAMC_Raw_Data_for_FY22[[#This Row],[75th]]-AAMC_Raw_Data_for_FY22[[#This Row],[Median]])/25)*40) + AAMC_Raw_Data_for_FY22[[#This Row],[Median]]","v":273620.59999999998}]
[{"$f":"AAMC_Raw_Data_for_FY22[[#This Row],[Source]]&AAMC_Raw_Data_for_FY22[[#This Row],[Type]]&AAMC_Raw_Data_for_FY22[[#This Row],[School Subset]]&AAMC_Raw_Data_for_FY22[[#This Row],[Rank]]&AAMC_Raw_Data_for_FY22[[#This Row],[Degree]]&AAMC_Raw_Data_for_FY22[[#This Row],[Department / Specialty]]&\"L\"","v":"AAMCAcademicPrivateProfessorMDFamily Medicine: GeneralL"},"Family Medicine: General",2,"AAMC","Academic","Private","Professor","MD","2021-2022",240792,{"$f":"(((AAMC_Raw_Data_for_FY22[[#This Row],[Median]]-AAMC_Raw_Data_for_FY22[[#This Row],[25th]])/25)*5) + AAMC_Raw_Data_for_FY22[[#This Row],[25th]]","v":246784.4},{"$f":"(((AAMC_Raw_Data_for_FY22[[#This Row],[Median]]-AAMC_Raw_Data_for_FY22[[#This Row],[25th]])/25)*10) + AAMC_Raw_Data_for_FY22[[#This Row],[25th]]","v":252776.8},{"$f":"(((AAMC_Raw_Data_for_FY22[[#This Row],[Median]]-AAMC_Raw_Data_for_FY22[[#This Row],[25th]])/25)*15) + AAMC_Raw_Data_for_FY22[[#This Row],[25th]]","v":258769.2},{"$f":"(((AAMC_Raw_Data_for_FY22[[#This Row],[Median]]-AAMC_Raw_Data_for_FY22[[#This Row],[25th]])/25)*20) + AAMC_Raw_Data_for_FY22[[#This Row],[25th]]","v":264761.59999999998},270754,{"$f":"(((AAMC_Raw_Data_for_FY22[[#This Row],[75th]]-AAMC_Raw_Data_for_FY22[[#This Row],[Median]])/25)*5) + AAMC_Raw_Data_for_FY22[[#This Row],[Median]]","v":275274.40000000002},{"$f":"(((AAMC_Raw_Data_for_FY22[[#This Row],[75th]]-AAMC_Raw_Data_for_FY22[[#This Row],[Median]])/25)*10) + AAMC_Raw_Data_for_FY22[[#This Row],[Median]]","v":279794.8},{"$f":"(((AAMC_Raw_Data_for_FY22[[#This Row],[75th]]-AAMC_Raw_Data_for_FY22[[#This Row],[Median]])/25)*15) + AAMC_Raw_Data_for_FY22[[#This Row],[Median]]","v":284315.2},{"$f":"(((AAMC_Raw_Data_for_FY22[[#This Row],[75th]]-AAMC_Raw_Data_for_FY22[[#This Row],[Median]])/25)*20) + AAMC_Raw_Data_for_FY22[[#This Row],[Median]]","v":288835.59999999998},293356,{"$f":"(((AAMC_Raw_Data_for_FY22[[#This Row],[75th]]-AAMC_Raw_Data_for_FY22[[#This Row],[Median]])/25)*30) + AAMC_Raw_Data_for_FY22[[#This Row],[Median]]","v":297876.40000000002},{"$f":"(((AAMC_Raw_Data_for_FY22[[#This Row],[75th]]-AAMC_Raw_Data_for_FY22[[#This Row],[Median]])/25)*35) + AAMC_Raw_Data_for_FY22[[#This Row],[Median]]","v":302396.79999999999},{"$f":"(((AAMC_Raw_Data_for_FY22[[#This Row],[75th]]-AAMC_Raw_Data_for_FY22[[#This Row],[Median]])/25)*40) + AAMC_Raw_Data_for_FY22[[#This Row],[Median]]","v":306917.2}]
[{"$f":"AAMC_Raw_Data_for_FY22[[#This Row],[Source]]&AAMC_Raw_Data_for_FY22[[#This Row],[Type]]&AAMC_Raw_Data_for_FY22[[#This Row],[School Subset]]&AAMC_Raw_Data_for_FY22[[#This Row],[Rank]]&AAMC_Raw_Data_for_FY22[[#This Row],[Degree]]&AAMC_Raw_Data_for_FY22[[#This Row],[Department / Specialty]]&\"L\"","v":"AAMCAcademicPrivateChiefMDFamily Medicine: GeneralL"},"Family Medicine: General",6,"AAMC","Academic","Private","Chief","MD","2021-2022",null,{"$f":"(((AAMC_Raw_Data_for_FY22[[#This Row],[Median]]-AAMC_Raw_Data_for_FY22[[#This Row],[25th]])/25)*5) + AAMC_Raw_Data_for_FY22[[#This Row],[25th]]","v":0},{"$f":"(((AAMC_Raw_Data_for_FY22[[#This Row],[Median]]-AAMC_Raw_Data_for_FY22[[#This Row],[25th]])/25)*10) + AAMC_Raw_Data_for_FY22[[#This Row],[25th]]","v":0},{"$f":"(((AAMC_Raw_Data_for_FY22[[#This Row],[Median]]-AAMC_Raw_Data_for_FY22[[#This Row],[25th]])/25)*15) + AAMC_Raw_Data_for_FY22[[#This Row],[25th]]","v":0},{"$f":"(((AAMC_Raw_Data_for_FY22[[#This Row],[Median]]-AAMC_Raw_Data_for_FY22[[#This Row],[25th]])/25)*20) + AAMC_Raw_Data_for_FY22[[#This Row],[25th]]","v":0},null,{"$f":"(((AAMC_Raw_Data_for_FY22[[#This Row],[75th]]-AAMC_Raw_Data_for_FY22[[#This Row],[Median]])/25)*5) + AAMC_Raw_Data_for_FY22[[#This Row],[Median]]","v":0},{"$f":"(((AAMC_Raw_Data_for_FY22[[#This Row],[75th]]-AAMC_Raw_Data_for_FY22[[#This Row],[Median]])/25)*10) + AAMC_Raw_Data_for_FY22[[#This Row],[Median]]","v":0},{"$f":"(((AAMC_Raw_Data_for_FY22[[#This Row],[75th]]-AAMC_Raw_Data_for_FY22[[#This Row],[Median]])/25)*15) + AAMC_Raw_Data_for_FY22[[#This Row],[Median]]","v":0},{"$f":"(((AAMC_Raw_Data_for_FY22[[#This Row],[75th]]-AAMC_Raw_Data_for_FY22[[#This Row],[Median]])/25)*20) + AAMC_Raw_Data_for_FY22[[#This Row],[Median]]","v":0},null,{"$f":"(((AAMC_Raw_Data_for_FY22[[#This Row],[75th]]-AAMC_Raw_Data_for_FY22[[#This Row],[Median]])/25)*30) + AAMC_Raw_Data_for_FY22[[#This Row],[Median]]","v":0},{"$f":"(((AAMC_Raw_Data_for_FY22[[#This Row],[75th]]-AAMC_Raw_Data_for_FY22[[#This Row],[Median]])/25)*35) + AAMC_Raw_Data_for_FY22[[#This Row],[Median]]","v":0},{"$f":"(((AAMC_Raw_Data_for_FY22[[#This Row],[75th]]-AAMC_Raw_Data_for_FY22[[#This Row],[Median]])/25)*40) + AAMC_Raw_Data_for_FY22[[#This Row],[Median]]","v":0}]
[{"$f":"AAMC_Raw_Data_for_FY22[[#This Row],[Source]]&AAMC_Raw_Data_for_FY22[[#This Row],[Type]]&AAMC_Raw_Data_for_FY22[[#This Row],[School Subset]]&AAMC_Raw_Data_for_FY22[[#This Row],[Rank]]&AAMC_Raw_Data_for_FY22[[#This Row],[Degree]]&AAMC_Raw_Data_for_FY22[[#This Row],[Department / Specialty]]&\"L\"","v":"AAMCAcademicPrivateChairMDFamily Medicine: GeneralL"},"Family Medicine: General",1,"AAMC","Academic","Private","Chair","MD","2021-2022",305223,{"$f":"(((AAMC_Raw_Data_for_FY22[[#This Row],[Median]]-AAMC_Raw_Data_for_FY22[[#This Row],[25th]])/25)*5) + AAMC_Raw_Data_for_FY22[[#This Row],[25th]]","v":325860.59999999998},{"$f":"(((AAMC_Raw_Data_for_FY22[[#This Row],[Median]]-AAMC_Raw_Data_for_FY22[[#This Row],[25th]])/25)*10) + AAMC_Raw_Data_for_FY22[[#This Row],[25th]]","v":346498.2},{"$f":"(((AAMC_Raw_Data_for_FY22[[#This Row],[Median]]-AAMC_Raw_Data_for_FY22[[#This Row],[25th]])/25)*15) + AAMC_Raw_Data_for_FY22[[#This Row],[25th]]","v":367135.8},{"$f":"(((AAMC_Raw_Data_for_FY22[[#This Row],[Median]]-AAMC_Raw_Data_for_FY22[[#This Row],[25th]])/25)*20) + AAMC_Raw_Data_for_FY22[[#This Row],[25th]]","v":387773.4},408411,{"$f":"(((AAMC_Raw_Data_for_FY22[[#This Row],[75th]]-AAMC_Raw_Data_for_FY22[[#This Row],[Median]])/25)*5) + AAMC_Raw_Data_for_FY22[[#This Row],[Median]]","v":416181.2},{"$f":"(((AAMC_Raw_Data_for_FY22[[#This Row],[75th]]-AAMC_Raw_Data_for_FY22[[#This Row],[Median]])/25)*10) + AAMC_Raw_Data_for_FY22[[#This Row],[Median]]","v":423951.4},{"$f":"(((AAMC_Raw_Data_for_FY22[[#This Row],[75th]]-AAMC_Raw_Data_for_FY22[[#This Row],[Median]])/25)*15) + AAMC_Raw_Data_for_FY22[[#This Row],[Median]]","v":431721.6},{"$f":"(((AAMC_Raw_Data_for_FY22[[#This Row],[75th]]-AAMC_Raw_Data_for_FY22[[#This Row],[Median]])/25)*20) + AAMC_Raw_Data_for_FY22[[#This Row],[Median]]","v":439491.8},447262,{"$f":"(((AAMC_Raw_Data_for_FY22[[#This Row],[75th]]-AAMC_Raw_Data_for_FY22[[#This Row],[Median]])/25)*30) + AAMC_Raw_Data_for_FY22[[#This Row],[Median]]","v":455032.2},{"$f":"(((AAMC_Raw_Data_for_FY22[[#This Row],[75th]]-AAMC_Raw_Data_for_FY22[[#This Row],[Median]])/25)*35) + AAMC_Raw_Data_for_FY22[[#This Row],[Median]]","v":462802.4},{"$f":"(((AAMC_Raw_Data_for_FY22[[#This Row],[75th]]-AAMC_Raw_Data_for_FY22[[#This Row],[Median]])/25)*40) + AAMC_Raw_Data_for_FY22[[#This Row],[Median]]","v":470572.6}]
[{"$f":"AAMC_Raw_Data_for_FY22[[#This Row],[Source]]&AAMC_Raw_Data_for_FY22[[#This Row],[Type]]&AAMC_Raw_Data_for_FY22[[#This Row],[School Subset]]&AAMC_Raw_Data_for_FY22[[#This Row],[Rank]]&AAMC_Raw_Data_for_FY22[[#This Row],[Degree]]&AAMC_Raw_Data_for_FY22[[#This Row],[Department / Specialty]]&\"L\"","v":"AAMCAcademicPrivateAssistantMDFamily Medicine: Sports MedicineL"},"Family Medicine: Sports Medicine",4,"AAMC","Academic","Private","Assistant","MD","2021-2022",185000,{"$f":"(((AAMC_Raw_Data_for_FY22[[#This Row],[Median]]-AAMC_Raw_Data_for_FY22[[#This Row],[25th]])/25)*5) + AAMC_Raw_Data_for_FY22[[#This Row],[25th]]","v":190029.8},{"$f":"(((AAMC_Raw_Data_for_FY22[[#This Row],[Median]]-AAMC_Raw_Data_for_FY22[[#This Row],[25th]])/25)*10) + AAMC_Raw_Data_for_FY22[[#This Row],[25th]]","v":195059.6},{"$f":"(((AAMC_Raw_Data_for_FY22[[#This Row],[Median]]-AAMC_Raw_Data_for_FY22[[#This Row],[25th]])/25)*15) + AAMC_Raw_Data_for_FY22[[#This Row],[25th]]","v":200089.4},{"$f":"(((AAMC_Raw_Data_for_FY22[[#This Row],[Median]]-AAMC_Raw_Data_for_FY22[[#This Row],[25th]])/25)*20) + AAMC_Raw_Data_for_FY22[[#This Row],[25th]]","v":205119.2},210149,{"$f":"(((AAMC_Raw_Data_for_FY22[[#This Row],[75th]]-AAMC_Raw_Data_for_FY22[[#This Row],[Median]])/25)*5) + AAMC_Raw_Data_for_FY22[[#This Row],[Median]]","v":220518.39999999999},{"$f":"(((AAMC_Raw_Data_for_FY22[[#This Row],[75th]]-AAMC_Raw_Data_for_FY22[[#This Row],[Median]])/25)*10) + AAMC_Raw_Data_for_FY22[[#This Row],[Median]]","v":230887.8},{"$f":"(((AAMC_Raw_Data_for_FY22[[#This Row],[75th]]-AAMC_Raw_Data_for_FY22[[#This Row],[Median]])/25)*15) + AAMC_Raw_Data_for_FY22[[#This Row],[Median]]","v":241257.2},{"$f":"(((AAMC_Raw_Data_for_FY22[[#This Row],[75th]]-AAMC_Raw_Data_for_FY22[[#This Row],[Median]])/25)*20) + AAMC_Raw_Data_for_FY22[[#This Row],[Median]]","v":251626.6},261996,{"$f":"(((AAMC_Raw_Data_for_FY22[[#This Row],[75th]]-AAMC_Raw_Data_for_FY22[[#This Row],[Median]])/25)*30) + AAMC_Raw_Data_for_FY22[[#This Row],[Median]]","v":272365.40000000002},{"$f":"(((AAMC_Raw_Data_for_FY22[[#This Row],[75th]]-AAMC_Raw_Data_for_FY22[[#This Row],[Median]])/25)*35) + AAMC_Raw_Data_for_FY22[[#This Row],[Median]]","v":282734.8},{"$f":"(((AAMC_Raw_Data_for_FY22[[#This Row],[75th]]-AAMC_Raw_Data_for_FY22[[#This Row],[Median]])/25)*40) + AAMC_Raw_Data_for_FY22[[#This Row],[Median]]","v":293104.2}]
[{"$f":"AAMC_Raw_Data_for_FY22[[#This Row],[Source]]&AAMC_Raw_Data_for_FY22[[#This Row],[Type]]&AAMC_Raw_Data_for_FY22[[#This Row],[School Subset]]&AAMC_Raw_Data_for_FY22[[#This Row],[Rank]]&AAMC_Raw_Data_for_FY22[[#This Row],[Degree]]&AAMC_Raw_Data_for_FY22[[#This Row],[Department / Specialty]]&\"L\"","v":"AAMCAcademicPrivateAssociateMDFamily Medicine: Sports MedicineL"},"Family Medicine: Sports Medicine",3,"AAMC","Academic","Private","Associate","MD","2021-2022",null,{"$f":"(((AAMC_Raw_Data_for_FY22[[#This Row],[Median]]-AAMC_Raw_Data_for_FY22[[#This Row],[25th]])/25)*5) + AAMC_Raw_Data_for_FY22[[#This Row],[25th]]","v":0},{"$f":"(((AAMC_Raw_Data_for_FY22[[#This Row],[Median]]-AAMC_Raw_Data_for_FY22[[#This Row],[25th]])/25)*10) + AAMC_Raw_Data_for_FY22[[#This Row],[25th]]","v":0},{"$f":"(((AAMC_Raw_Data_for_FY22[[#This Row],[Median]]-AAMC_Raw_Data_for_FY22[[#This Row],[25th]])/25)*15) + AAMC_Raw_Data_for_FY22[[#This Row],[25th]]","v":0},{"$f":"(((AAMC_Raw_Data_for_FY22[[#This Row],[Median]]-AAMC_Raw_Data_for_FY22[[#This Row],[25th]])/25)*20) + AAMC_Raw_Data_for_FY22[[#This Row],[25th]]","v":0},null,{"$f":"(((AAMC_Raw_Data_for_FY22[[#This Row],[75th]]-AAMC_Raw_Data_for_FY22[[#This Row],[Median]])/25)*5) + AAMC_Raw_Data_for_FY22[[#This Row],[Median]]","v":0},{"$f":"(((AAMC_Raw_Data_for_FY22[[#This Row],[75th]]-AAMC_Raw_Data_for_FY22[[#This Row],[Median]])/25)*10) + AAMC_Raw_Data_for_FY22[[#This Row],[Median]]","v":0},{"$f":"(((AAMC_Raw_Data_for_FY22[[#This Row],[75th]]-AAMC_Raw_Data_for_FY22[[#This Row],[Median]])/25)*15) + AAMC_Raw_Data_for_FY22[[#This Row],[Median]]","v":0},{"$f":"(((AAMC_Raw_Data_for_FY22[[#This Row],[75th]]-AAMC_Raw_Data_for_FY22[[#This Row],[Median]])/25)*20) + AAMC_Raw_Data_for_FY22[[#This Row],[Median]]","v":0},null,{"$f":"(((AAMC_Raw_Data_for_FY22[[#This Row],[75th]]-AAMC_Raw_Data_for_FY22[[#This Row],[Median]])/25)*30) + AAMC_Raw_Data_for_FY22[[#This Row],[Median]]","v":0},{"$f":"(((AAMC_Raw_Data_for_FY22[[#This Row],[75th]]-AAMC_Raw_Data_for_FY22[[#This Row],[Median]])/25)*35) + AAMC_Raw_Data_for_FY22[[#This Row],[Median]]","v":0},{"$f":"(((AAMC_Raw_Data_for_FY22[[#This Row],[75th]]-AAMC_Raw_Data_for_FY22[[#This Row],[Median]])/25)*40) + AAMC_Raw_Data_for_FY22[[#This Row],[Median]]","v":0}]
[{"$f":"AAMC_Raw_Data_for_FY22[[#This Row],[Source]]&AAMC_Raw_Data_for_FY22[[#This Row],[Type]]&AAMC_Raw_Data_for_FY22[[#This Row],[School Subset]]&AAMC_Raw_Data_for_FY22[[#This Row],[Rank]]&AAMC_Raw_Data_for_FY22[[#This Row],[Degree]]&AAMC_Raw_Data_for_FY22[[#This Row],[Department / Specialty]]&\"L\"","v":"AAMCAcademicPrivateProfessorMDFamily Medicine: Sports MedicineL"},"Family Medicine: Sports Medicine",2,"AAMC","Academic","Private","Professor","MD","2021-2022",null,{"$f":"(((AAMC_Raw_Data_for_FY22[[#This Row],[Median]]-AAMC_Raw_Data_for_FY22[[#This Row],[25th]])/25)*5) + AAMC_Raw_Data_for_FY22[[#This Row],[25th]]","v":0},{"$f":"(((AAMC_Raw_Data_for_FY22[[#This Row],[Median]]-AAMC_Raw_Data_for_FY22[[#This Row],[25th]])/25)*10) + AAMC_Raw_Data_for_FY22[[#This Row],[25th]]","v":0},{"$f":"(((AAMC_Raw_Data_for_FY22[[#This Row],[Median]]-AAMC_Raw_Data_for_FY22[[#This Row],[25th]])/25)*15) + AAMC_Raw_Data_for_FY22[[#This Row],[25th]]","v":0},{"$f":"(((AAMC_Raw_Data_for_FY22[[#This Row],[Median]]-AAMC_Raw_Data_for_FY22[[#This Row],[25th]])/25)*20) + AAMC_Raw_Data_for_FY22[[#This Row],[25th]]","v":0},null,{"$f":"(((AAMC_Raw_Data_for_FY22[[#This Row],[75th]]-AAMC_Raw_Data_for_FY22[[#This Row],[Median]])/25)*5) + AAMC_Raw_Data_for_FY22[[#This Row],[Median]]","v":0},{"$f":"(((AAMC_Raw_Data_for_FY22[[#This Row],[75th]]-AAMC_Raw_Data_for_FY22[[#This Row],[Median]])/25)*10) + AAMC_Raw_Data_for_FY22[[#This Row],[Median]]","v":0},{"$f":"(((AAMC_Raw_Data_for_FY22[[#This Row],[75th]]-AAMC_Raw_Data_for_FY22[[#This Row],[Median]])/25)*15) + AAMC_Raw_Data_for_FY22[[#This Row],[Median]]","v":0},{"$f":"(((AAMC_Raw_Data_for_FY22[[#This Row],[75th]]-AAMC_Raw_Data_for_FY22[[#This Row],[Median]])/25)*20) + AAMC_Raw_Data_for_FY22[[#This Row],[Median]]","v":0},null,{"$f":"(((AAMC_Raw_Data_for_FY22[[#This Row],[75th]]-AAMC_Raw_Data_for_FY22[[#This Row],[Median]])/25)*30) + AAMC_Raw_Data_for_FY22[[#This Row],[Median]]","v":0},{"$f":"(((AAMC_Raw_Data_for_FY22[[#This Row],[75th]]-AAMC_Raw_Data_for_FY22[[#This Row],[Median]])/25)*35) + AAMC_Raw_Data_for_FY22[[#This Row],[Median]]","v":0},{"$f":"(((AAMC_Raw_Data_for_FY22[[#This Row],[75th]]-AAMC_Raw_Data_for_FY22[[#This Row],[Median]])/25)*40) + AAMC_Raw_Data_for_FY22[[#This Row],[Median]]","v":0}]
[{"$f":"AAMC_Raw_Data_for_FY22[[#This Row],[Source]]&AAMC_Raw_Data_for_FY22[[#This Row],[Type]]&AAMC_Raw_Data_for_FY22[[#This Row],[School Subset]]&AAMC_Raw_Data_for_FY22[[#This Row],[Rank]]&AAMC_Raw_Data_for_FY22[[#This Row],[Degree]]&AAMC_Raw_Data_for_FY22[[#This Row],[Department / Specialty]]&\"L\"","v":"AAMCAcademicPrivateInstructorMDFamily Medicine: OtherL"},"Family Medicine: Other",5,"AAMC","Academic","Private","Instructor","MD","2021-2022",null,{"$f":"(((AAMC_Raw_Data_for_FY22[[#This Row],[Median]]-AAMC_Raw_Data_for_FY22[[#This Row],[25th]])/25)*5) + AAMC_Raw_Data_for_FY22[[#This Row],[25th]]","v":0},{"$f":"(((AAMC_Raw_Data_for_FY22[[#This Row],[Median]]-AAMC_Raw_Data_for_FY22[[#This Row],[25th]])/25)*10) + AAMC_Raw_Data_for_FY22[[#This Row],[25th]]","v":0},{"$f":"(((AAMC_Raw_Data_for_FY22[[#This Row],[Median]]-AAMC_Raw_Data_for_FY22[[#This Row],[25th]])/25)*15) + AAMC_Raw_Data_for_FY22[[#This Row],[25th]]","v":0},{"$f":"(((AAMC_Raw_Data_for_FY22[[#This Row],[Median]]-AAMC_Raw_Data_for_FY22[[#This Row],[25th]])/25)*20) + AAMC_Raw_Data_for_FY22[[#This Row],[25th]]","v":0},null,{"$f":"(((AAMC_Raw_Data_for_FY22[[#This Row],[75th]]-AAMC_Raw_Data_for_FY22[[#This Row],[Median]])/25)*5) + AAMC_Raw_Data_for_FY22[[#This Row],[Median]]","v":0},{"$f":"(((AAMC_Raw_Data_for_FY22[[#This Row],[75th]]-AAMC_Raw_Data_for_FY22[[#This Row],[Median]])/25)*10) + AAMC_Raw_Data_for_FY22[[#This Row],[Median]]","v":0},{"$f":"(((AAMC_Raw_Data_for_FY22[[#This Row],[75th]]-AAMC_Raw_Data_for_FY22[[#This Row],[Median]])/25)*15) + AAMC_Raw_Data_for_FY22[[#This Row],[Median]]","v":0},{"$f":"(((AAMC_Raw_Data_for_FY22[[#This Row],[75th]]-AAMC_Raw_Data_for_FY22[[#This Row],[Median]])/25)*20) + AAMC_Raw_Data_for_FY22[[#This Row],[Median]]","v":0},null,{"$f":"(((AAMC_Raw_Data_for_FY22[[#This Row],[75th]]-AAMC_Raw_Data_for_FY22[[#This Row],[Median]])/25)*30) + AAMC_Raw_Data_for_FY22[[#This Row],[Median]]","v":0},{"$f":"(((AAMC_Raw_Data_for_FY22[[#This Row],[75th]]-AAMC_Raw_Data_for_FY22[[#This Row],[Median]])/25)*35) + AAMC_Raw_Data_for_FY22[[#This Row],[Median]]","v":0},{"$f":"(((AAMC_Raw_Data_for_FY22[[#This Row],[75th]]-AAMC_Raw_Data_for_FY22[[#This Row],[Median]])/25)*40) + AAMC_Raw_Data_for_FY22[[#This Row],[Median]]","v":0}]
[{"$f":"AAMC_Raw_Data_for_FY22[[#This Row],[Source]]&AAMC_Raw_Data_for_FY22[[#This Row],[Type]]&AAMC_Raw_Data_for_FY22[[#This Row],[School Subset]]&AAMC_Raw_Data_for_FY22[[#This Row],[Rank]]&AAMC_Raw_Data_for_FY22[[#This Row],[Degree]]&AAMC_Raw_Data_for_FY22[[#This Row],[Department / Specialty]]&\"L\"","v":"AAMCAcademicPrivateAssistantMDFamily Medicine: OtherL"},"Family Medicine: Other",4,"AAMC","Academic","Private","Assistant","MD","2021-2022",166296,{"$f":"(((AAMC_Raw_Data_for_FY22[[#This Row],[Median]]-AAMC_Raw_Data_for_FY22[[#This Row],[25th]])/25)*5) + AAMC_Raw_Data_for_FY22[[#This Row],[25th]]","v":180802},{"$f":"(((AAMC_Raw_Data_for_FY22[[#This Row],[Median]]-AAMC_Raw_Data_for_FY22[[#This Row],[25th]])/25)*10) + AAMC_Raw_Data_for_FY22[[#This Row],[25th]]","v":195308},{"$f":"(((AAMC_Raw_Data_for_FY22[[#This Row],[Median]]-AAMC_Raw_Data_for_FY22[[#This Row],[25th]])/25)*15) + AAMC_Raw_Data_for_FY22[[#This Row],[25th]]","v":209814},{"$f":"(((AAMC_Raw_Data_for_FY22[[#This Row],[Median]]-AAMC_Raw_Data_for_FY22[[#This Row],[25th]])/25)*20) + AAMC_Raw_Data_for_FY22[[#This Row],[25th]]","v":224320},238826,{"$f":"(((AAMC_Raw_Data_for_FY22[[#This Row],[75th]]-AAMC_Raw_Data_for_FY22[[#This Row],[Median]])/25)*5) + AAMC_Raw_Data_for_FY22[[#This Row],[Median]]","v":245202.2},{"$f":"(((AAMC_Raw_Data_for_FY22[[#This Row],[75th]]-AAMC_Raw_Data_for_FY22[[#This Row],[Median]])/25)*10) + AAMC_Raw_Data_for_FY22[[#This Row],[Median]]","v":251578.4},{"$f":"(((AAMC_Raw_Data_for_FY22[[#This Row],[75th]]-AAMC_Raw_Data_for_FY22[[#This Row],[Median]])/25)*15) + AAMC_Raw_Data_for_FY22[[#This Row],[Median]]","v":257954.6},{"$f":"(((AAMC_Raw_Data_for_FY22[[#This Row],[75th]]-AAMC_Raw_Data_for_FY22[[#This Row],[Median]])/25)*20) + AAMC_Raw_Data_for_FY22[[#This Row],[Median]]","v":264330.8},270707,{"$f":"(((AAMC_Raw_Data_for_FY22[[#This Row],[75th]]-AAMC_Raw_Data_for_FY22[[#This Row],[Median]])/25)*30) + AAMC_Raw_Data_for_FY22[[#This Row],[Median]]","v":277083.2},{"$f":"(((AAMC_Raw_Data_for_FY22[[#This Row],[75th]]-AAMC_Raw_Data_for_FY22[[#This Row],[Median]])/25)*35) + AAMC_Raw_Data_for_FY22[[#This Row],[Median]]","v":283459.40000000002},{"$f":"(((AAMC_Raw_Data_for_FY22[[#This Row],[75th]]-AAMC_Raw_Data_for_FY22[[#This Row],[Median]])/25)*40) + AAMC_Raw_Data_for_FY22[[#This Row],[Median]]","v":289835.59999999998}]
[{"$f":"AAMC_Raw_Data_for_FY22[[#This Row],[Source]]&AAMC_Raw_Data_for_FY22[[#This Row],[Type]]&AAMC_Raw_Data_for_FY22[[#This Row],[School Subset]]&AAMC_Raw_Data_for_FY22[[#This Row],[Rank]]&AAMC_Raw_Data_for_FY22[[#This Row],[Degree]]&AAMC_Raw_Data_for_FY22[[#This Row],[Department / Specialty]]&\"L\"","v":"AAMCAcademicPrivateAssociateMDFamily Medicine: OtherL"},"Family Medicine: Other",3,"AAMC","Academic","Private","Associate","MD","2021-2022",null,{"$f":"(((AAMC_Raw_Data_for_FY22[[#This Row],[Median]]-AAMC_Raw_Data_for_FY22[[#This Row],[25th]])/25)*5) + AAMC_Raw_Data_for_FY22[[#This Row],[25th]]","v":0},{"$f":"(((AAMC_Raw_Data_for_FY22[[#This Row],[Median]]-AAMC_Raw_Data_for_FY22[[#This Row],[25th]])/25)*10) + AAMC_Raw_Data_for_FY22[[#This Row],[25th]]","v":0},{"$f":"(((AAMC_Raw_Data_for_FY22[[#This Row],[Median]]-AAMC_Raw_Data_for_FY22[[#This Row],[25th]])/25)*15) + AAMC_Raw_Data_for_FY22[[#This Row],[25th]]","v":0},{"$f":"(((AAMC_Raw_Data_for_FY22[[#This Row],[Median]]-AAMC_Raw_Data_for_FY22[[#This Row],[25th]])/25)*20) + AAMC_Raw_Data_for_FY22[[#This Row],[25th]]","v":0},null,{"$f":"(((AAMC_Raw_Data_for_FY22[[#This Row],[75th]]-AAMC_Raw_Data_for_FY22[[#This Row],[Median]])/25)*5) + AAMC_Raw_Data_for_FY22[[#This Row],[Median]]","v":0},{"$f":"(((AAMC_Raw_Data_for_FY22[[#This Row],[75th]]-AAMC_Raw_Data_for_FY22[[#This Row],[Median]])/25)*10) + AAMC_Raw_Data_for_FY22[[#This Row],[Median]]","v":0},{"$f":"(((AAMC_Raw_Data_for_FY22[[#This Row],[75th]]-AAMC_Raw_Data_for_FY22[[#This Row],[Median]])/25)*15) + AAMC_Raw_Data_for_FY22[[#This Row],[Median]]","v":0},{"$f":"(((AAMC_Raw_Data_for_FY22[[#This Row],[75th]]-AAMC_Raw_Data_for_FY22[[#This Row],[Median]])/25)*20) + AAMC_Raw_Data_for_FY22[[#This Row],[Median]]","v":0},null,{"$f":"(((AAMC_Raw_Data_for_FY22[[#This Row],[75th]]-AAMC_Raw_Data_for_FY22[[#This Row],[Median]])/25)*30) + AAMC_Raw_Data_for_FY22[[#This Row],[Median]]","v":0},{"$f":"(((AAMC_Raw_Data_for_FY22[[#This Row],[75th]]-AAMC_Raw_Data_for_FY22[[#This Row],[Median]])/25)*35) + AAMC_Raw_Data_for_FY22[[#This Row],[Median]]","v":0},{"$f":"(((AAMC_Raw_Data_for_FY22[[#This Row],[75th]]-AAMC_Raw_Data_for_FY22[[#This Row],[Median]])/25)*40) + AAMC_Raw_Data_for_FY22[[#This Row],[Median]]","v":0}]
[{"$f":"AAMC_Raw_Data_for_FY22[[#This Row],[Source]]&AAMC_Raw_Data_for_FY22[[#This Row],[Type]]&AAMC_Raw_Data_for_FY22[[#This Row],[School Subset]]&AAMC_Raw_Data_for_FY22[[#This Row],[Rank]]&AAMC_Raw_Data_for_FY22[[#This Row],[Degree]]&AAMC_Raw_Data_for_FY22[[#This Row],[Department / Specialty]]&\"L\"","v":"AAMCAcademicPrivateProfessorMDFamily Medicine: OtherL"},"Family Medicine: Other",2,"AAMC","Academic","Private","Professor","MD","2021-2022",null,{"$f":"(((AAMC_Raw_Data_for_FY22[[#This Row],[Median]]-AAMC_Raw_Data_for_FY22[[#This Row],[25th]])/25)*5) + AAMC_Raw_Data_for_FY22[[#This Row],[25th]]","v":0},{"$f":"(((AAMC_Raw_Data_for_FY22[[#This Row],[Median]]-AAMC_Raw_Data_for_FY22[[#This Row],[25th]])/25)*10) + AAMC_Raw_Data_for_FY22[[#This Row],[25th]]","v":0},{"$f":"(((AAMC_Raw_Data_for_FY22[[#This Row],[Median]]-AAMC_Raw_Data_for_FY22[[#This Row],[25th]])/25)*15) + AAMC_Raw_Data_for_FY22[[#This Row],[25th]]","v":0},{"$f":"(((AAMC_Raw_Data_for_FY22[[#This Row],[Median]]-AAMC_Raw_Data_for_FY22[[#This Row],[25th]])/25)*20) + AAMC_Raw_Data_for_FY22[[#This Row],[25th]]","v":0},null,{"$f":"(((AAMC_Raw_Data_for_FY22[[#This Row],[75th]]-AAMC_Raw_Data_for_FY22[[#This Row],[Median]])/25)*5) + AAMC_Raw_Data_for_FY22[[#This Row],[Median]]","v":0},{"$f":"(((AAMC_Raw_Data_for_FY22[[#This Row],[75th]]-AAMC_Raw_Data_for_FY22[[#This Row],[Median]])/25)*10) + AAMC_Raw_Data_for_FY22[[#This Row],[Median]]","v":0},{"$f":"(((AAMC_Raw_Data_for_FY22[[#This Row],[75th]]-AAMC_Raw_Data_for_FY22[[#This Row],[Median]])/25)*15) + AAMC_Raw_Data_for_FY22[[#This Row],[Median]]","v":0},{"$f":"(((AAMC_Raw_Data_for_FY22[[#This Row],[75th]]-AAMC_Raw_Data_for_FY22[[#This Row],[Median]])/25)*20) + AAMC_Raw_Data_for_FY22[[#This Row],[Median]]","v":0},null,{"$f":"(((AAMC_Raw_Data_for_FY22[[#This Row],[75th]]-AAMC_Raw_Data_for_FY22[[#This Row],[Median]])/25)*30) + AAMC_Raw_Data_for_FY22[[#This Row],[Median]]","v":0},{"$f":"(((AAMC_Raw_Data_for_FY22[[#This Row],[75th]]-AAMC_Raw_Data_for_FY22[[#This Row],[Median]])/25)*35) + AAMC_Raw_Data_for_FY22[[#This Row],[Median]]","v":0},{"$f":"(((AAMC_Raw_Data_for_FY22[[#This Row],[75th]]-AAMC_Raw_Data_for_FY22[[#This Row],[Median]])/25)*40) + AAMC_Raw_Data_for_FY22[[#This Row],[Median]]","v":0}]
[{"$f":"AAMC_Raw_Data_for_FY22[[#This Row],[Source]]&AAMC_Raw_Data_for_FY22[[#This Row],[Type]]&AAMC_Raw_Data_for_FY22[[#This Row],[School Subset]]&AAMC_Raw_Data_for_FY22[[#This Row],[Rank]]&AAMC_Raw_Data_for_FY22[[#This Row],[Degree]]&AAMC_Raw_Data_for_FY22[[#This Row],[Department / Specialty]]&\"L\"","v":"AAMCAcademicPrivateChiefMDFamily Medicine: OtherL"},"Family Medicine: Other",6,"AAMC","Academic","Private","Chief","MD","2021-2022",null,{"$f":"(((AAMC_Raw_Data_for_FY22[[#This Row],[Median]]-AAMC_Raw_Data_for_FY22[[#This Row],[25th]])/25)*5) + AAMC_Raw_Data_for_FY22[[#This Row],[25th]]","v":0},{"$f":"(((AAMC_Raw_Data_for_FY22[[#This Row],[Median]]-AAMC_Raw_Data_for_FY22[[#This Row],[25th]])/25)*10) + AAMC_Raw_Data_for_FY22[[#This Row],[25th]]","v":0},{"$f":"(((AAMC_Raw_Data_for_FY22[[#This Row],[Median]]-AAMC_Raw_Data_for_FY22[[#This Row],[25th]])/25)*15) + AAMC_Raw_Data_for_FY22[[#This Row],[25th]]","v":0},{"$f":"(((AAMC_Raw_Data_for_FY22[[#This Row],[Median]]-AAMC_Raw_Data_for_FY22[[#This Row],[25th]])/25)*20) + AAMC_Raw_Data_for_FY22[[#This Row],[25th]]","v":0},null,{"$f":"(((AAMC_Raw_Data_for_FY22[[#This Row],[75th]]-AAMC_Raw_Data_for_FY22[[#This Row],[Median]])/25)*5) + AAMC_Raw_Data_for_FY22[[#This Row],[Median]]","v":0},{"$f":"(((AAMC_Raw_Data_for_FY22[[#This Row],[75th]]-AAMC_Raw_Data_for_FY22[[#This Row],[Median]])/25)*10) + AAMC_Raw_Data_for_FY22[[#This Row],[Median]]","v":0},{"$f":"(((AAMC_Raw_Data_for_FY22[[#This Row],[75th]]-AAMC_Raw_Data_for_FY22[[#This Row],[Median]])/25)*15) + AAMC_Raw_Data_for_FY22[[#This Row],[Median]]","v":0},{"$f":"(((AAMC_Raw_Data_for_FY22[[#This Row],[75th]]-AAMC_Raw_Data_for_FY22[[#This Row],[Median]])/25)*20) + AAMC_Raw_Data_for_FY22[[#This Row],[Median]]","v":0},null,{"$f":"(((AAMC_Raw_Data_for_FY22[[#This Row],[75th]]-AAMC_Raw_Data_for_FY22[[#This Row],[Median]])/25)*30) + AAMC_Raw_Data_for_FY22[[#This Row],[Median]]","v":0},{"$f":"(((AAMC_Raw_Data_for_FY22[[#This Row],[75th]]-AAMC_Raw_Data_for_FY22[[#This Row],[Median]])/25)*35) + AAMC_Raw_Data_for_FY22[[#This Row],[Median]]","v":0},{"$f":"(((AAMC_Raw_Data_for_FY22[[#This Row],[75th]]-AAMC_Raw_Data_for_FY22[[#This Row],[Median]])/25)*40) + AAMC_Raw_Data_for_FY22[[#This Row],[Median]]","v":0}]
[{"$f":"AAMC_Raw_Data_for_FY22[[#This Row],[Source]]&AAMC_Raw_Data_for_FY22[[#This Row],[Type]]&AAMC_Raw_Data_for_FY22[[#This Row],[School Subset]]&AAMC_Raw_Data_for_FY22[[#This Row],[Rank]]&AAMC_Raw_Data_for_FY22[[#This Row],[Degree]]&AAMC_Raw_Data_for_FY22[[#This Row],[Department / Specialty]]&\"L\"","v":"AAMCAcademicPrivateInstructorMDMedicine TotalL"},"Medicine Total",5,"AAMC","Academic","Private","Instructor","MD","2021-2022",173400,{"$f":"(((AAMC_Raw_Data_for_FY22[[#This Row],[Median]]-AAMC_Raw_Data_for_FY22[[#This Row],[25th]])/25)*5) + AAMC_Raw_Data_for_FY22[[#This Row],[25th]]","v":182290.2},{"$f":"(((AAMC_Raw_Data_for_FY22[[#This Row],[Median]]-AAMC_Raw_Data_for_FY22[[#This Row],[25th]])/25)*10) + AAMC_Raw_Data_for_FY22[[#This Row],[25th]]","v":191180.4},{"$f":"(((AAMC_Raw_Data_for_FY22[[#This Row],[Median]]-AAMC_Raw_Data_for_FY22[[#This Row],[25th]])/25)*15) + AAMC_Raw_Data_for_FY22[[#This Row],[25th]]","v":200070.6},{"$f":"(((AAMC_Raw_Data_for_FY22[[#This Row],[Median]]-AAMC_Raw_Data_for_FY22[[#This Row],[25th]])/25)*20) + AAMC_Raw_Data_for_FY22[[#This Row],[25th]]","v":208960.8},217851,{"$f":"(((AAMC_Raw_Data_for_FY22[[#This Row],[75th]]-AAMC_Raw_Data_for_FY22[[#This Row],[Median]])/25)*5) + AAMC_Raw_Data_for_FY22[[#This Row],[Median]]","v":228741},{"$f":"(((AAMC_Raw_Data_for_FY22[[#This Row],[75th]]-AAMC_Raw_Data_for_FY22[[#This Row],[Median]])/25)*10) + AAMC_Raw_Data_for_FY22[[#This Row],[Median]]","v":239631},{"$f":"(((AAMC_Raw_Data_for_FY22[[#This Row],[75th]]-AAMC_Raw_Data_for_FY22[[#This Row],[Median]])/25)*15) + AAMC_Raw_Data_for_FY22[[#This Row],[Median]]","v":250521},{"$f":"(((AAMC_Raw_Data_for_FY22[[#This Row],[75th]]-AAMC_Raw_Data_for_FY22[[#This Row],[Median]])/25)*20) + AAMC_Raw_Data_for_FY22[[#This Row],[Median]]","v":261411},272301,{"$f":"(((AAMC_Raw_Data_for_FY22[[#This Row],[75th]]-AAMC_Raw_Data_for_FY22[[#This Row],[Median]])/25)*30) + AAMC_Raw_Data_for_FY22[[#This Row],[Median]]","v":283191},{"$f":"(((AAMC_Raw_Data_for_FY22[[#This Row],[75th]]-AAMC_Raw_Data_for_FY22[[#This Row],[Median]])/25)*35) + AAMC_Raw_Data_for_FY22[[#This Row],[Median]]","v":294081},{"$f":"(((AAMC_Raw_Data_for_FY22[[#This Row],[75th]]-AAMC_Raw_Data_for_FY22[[#This Row],[Median]])/25)*40) + AAMC_Raw_Data_for_FY22[[#This Row],[Median]]","v":304971}]
[{"$f":"AAMC_Raw_Data_for_FY22[[#This Row],[Source]]&AAMC_Raw_Data_for_FY22[[#This Row],[Type]]&AAMC_Raw_Data_for_FY22[[#This Row],[School Subset]]&AAMC_Raw_Data_for_FY22[[#This Row],[Rank]]&AAMC_Raw_Data_for_FY22[[#This Row],[Degree]]&AAMC_Raw_Data_for_FY22[[#This Row],[Department / Specialty]]&\"L\"","v":"AAMCAcademicPrivateAssistantMDMedicine TotalL"},"Medicine Total",4,"AAMC","Academic","Private","Assistant","MD","2021-2022",214179,{"$f":"(((AAMC_Raw_Data_for_FY22[[#This Row],[Median]]-AAMC_Raw_Data_for_FY22[[#This Row],[25th]])/25)*5) + AAMC_Raw_Data_for_FY22[[#This Row],[25th]]","v":222843.2},{"$f":"(((AAMC_Raw_Data_for_FY22[[#This Row],[Median]]-AAMC_Raw_Data_for_FY22[[#This Row],[25th]])/25)*10) + AAMC_Raw_Data_for_FY22[[#This Row],[25th]]","v":231507.4},{"$f":"(((AAMC_Raw_Data_for_FY22[[#This Row],[Median]]-AAMC_Raw_Data_for_FY22[[#This Row],[25th]])/25)*15) + AAMC_Raw_Data_for_FY22[[#This Row],[25th]]","v":240171.6},{"$f":"(((AAMC_Raw_Data_for_FY22[[#This Row],[Median]]-AAMC_Raw_Data_for_FY22[[#This Row],[25th]])/25)*20) + AAMC_Raw_Data_for_FY22[[#This Row],[25th]]","v":248835.8},257500,{"$f":"(((AAMC_Raw_Data_for_FY22[[#This Row],[75th]]-AAMC_Raw_Data_for_FY22[[#This Row],[Median]])/25)*5) + AAMC_Raw_Data_for_FY22[[#This Row],[Median]]","v":272801},{"$f":"(((AAMC_Raw_Data_for_FY22[[#This Row],[75th]]-AAMC_Raw_Data_for_FY22[[#This Row],[Median]])/25)*10) + AAMC_Raw_Data_for_FY22[[#This Row],[Median]]","v":288102},{"$f":"(((AAMC_Raw_Data_for_FY22[[#This Row],[75th]]-AAMC_Raw_Data_for_FY22[[#This Row],[Median]])/25)*15) + AAMC_Raw_Data_for_FY22[[#This Row],[Median]]","v":303403},{"$f":"(((AAMC_Raw_Data_for_FY22[[#This Row],[75th]]-AAMC_Raw_Data_for_FY22[[#This Row],[Median]])/25)*20) + AAMC_Raw_Data_for_FY22[[#This Row],[Median]]","v":318704},334005,{"$f":"(((AAMC_Raw_Data_for_FY22[[#This Row],[75th]]-AAMC_Raw_Data_for_FY22[[#This Row],[Median]])/25)*30) + AAMC_Raw_Data_for_FY22[[#This Row],[Median]]","v":349306},{"$f":"(((AAMC_Raw_Data_for_FY22[[#This Row],[75th]]-AAMC_Raw_Data_for_FY22[[#This Row],[Median]])/25)*35) + AAMC_Raw_Data_for_FY22[[#This Row],[Median]]","v":364607},{"$f":"(((AAMC_Raw_Data_for_FY22[[#This Row],[75th]]-AAMC_Raw_Data_for_FY22[[#This Row],[Median]])/25)*40) + AAMC_Raw_Data_for_FY22[[#This Row],[Median]]","v":379908}]
[{"$f":"AAMC_Raw_Data_for_FY22[[#This Row],[Source]]&AAMC_Raw_Data_for_FY22[[#This Row],[Type]]&AAMC_Raw_Data_for_FY22[[#This Row],[School Subset]]&AAMC_Raw_Data_for_FY22[[#This Row],[Rank]]&AAMC_Raw_Data_for_FY22[[#This Row],[Degree]]&AAMC_Raw_Data_for_FY22[[#This Row],[Department / Specialty]]&\"L\"","v":"AAMCAcademicPrivateAssociateMDMedicine TotalL"},"Medicine Total",3,"AAMC","Academic","Private","Associate","MD","2021-2022",237318,{"$f":"(((AAMC_Raw_Data_for_FY22[[#This Row],[Median]]-AAMC_Raw_Data_for_FY22[[#This Row],[25th]])/25)*5) + AAMC_Raw_Data_for_FY22[[#This Row],[25th]]","v":249040.8},{"$f":"(((AAMC_Raw_Data_for_FY22[[#This Row],[Median]]-AAMC_Raw_Data_for_FY22[[#This Row],[25th]])/25)*10) + AAMC_Raw_Data_for_FY22[[#This Row],[25th]]","v":260763.6},{"$f":"(((AAMC_Raw_Data_for_FY22[[#This Row],[Median]]-AAMC_Raw_Data_for_FY22[[#This Row],[25th]])/25)*15) + AAMC_Raw_Data_for_FY22[[#This Row],[25th]]","v":272486.40000000002},{"$f":"(((AAMC_Raw_Data_for_FY22[[#This Row],[Median]]-AAMC_Raw_Data_for_FY22[[#This Row],[25th]])/25)*20) + AAMC_Raw_Data_for_FY22[[#This Row],[25th]]","v":284209.2},295932,{"$f":"(((AAMC_Raw_Data_for_FY22[[#This Row],[75th]]-AAMC_Raw_Data_for_FY22[[#This Row],[Median]])/25)*5) + AAMC_Raw_Data_for_FY22[[#This Row],[Median]]","v":315141.8},{"$f":"(((AAMC_Raw_Data_for_FY22[[#This Row],[75th]]-AAMC_Raw_Data_for_FY22[[#This Row],[Median]])/25)*10) + AAMC_Raw_Data_for_FY22[[#This Row],[Median]]","v":334351.59999999998},{"$f":"(((AAMC_Raw_Data_for_FY22[[#This Row],[75th]]-AAMC_Raw_Data_for_FY22[[#This Row],[Median]])/25)*15) + AAMC_Raw_Data_for_FY22[[#This Row],[Median]]","v":353561.4},{"$f":"(((AAMC_Raw_Data_for_FY22[[#This Row],[75th]]-AAMC_Raw_Data_for_FY22[[#This Row],[Median]])/25)*20) + AAMC_Raw_Data_for_FY22[[#This Row],[Median]]","v":372771.2},391981,{"$f":"(((AAMC_Raw_Data_for_FY22[[#This Row],[75th]]-AAMC_Raw_Data_for_FY22[[#This Row],[Median]])/25)*30) + AAMC_Raw_Data_for_FY22[[#This Row],[Median]]","v":411190.8},{"$f":"(((AAMC_Raw_Data_for_FY22[[#This Row],[75th]]-AAMC_Raw_Data_for_FY22[[#This Row],[Median]])/25)*35) + AAMC_Raw_Data_for_FY22[[#This Row],[Median]]","v":430400.6},{"$f":"(((AAMC_Raw_Data_for_FY22[[#This Row],[75th]]-AAMC_Raw_Data_for_FY22[[#This Row],[Median]])/25)*40) + AAMC_Raw_Data_for_FY22[[#This Row],[Median]]","v":449610.4}]
[{"$f":"AAMC_Raw_Data_for_FY22[[#This Row],[Source]]&AAMC_Raw_Data_for_FY22[[#This Row],[Type]]&AAMC_Raw_Data_for_FY22[[#This Row],[School Subset]]&AAMC_Raw_Data_for_FY22[[#This Row],[Rank]]&AAMC_Raw_Data_for_FY22[[#This Row],[Degree]]&AAMC_Raw_Data_for_FY22[[#This Row],[Department / Specialty]]&\"L\"","v":"AAMCAcademicPrivateProfessorMDMedicine TotalL"},"Medicine Total",2,"AAMC","Academic","Private","Professor","MD","2021-2022",274970,{"$f":"(((AAMC_Raw_Data_for_FY22[[#This Row],[Median]]-AAMC_Raw_Data_for_FY22[[#This Row],[25th]])/25)*5) + AAMC_Raw_Data_for_FY22[[#This Row],[25th]]","v":289536},{"$f":"(((AAMC_Raw_Data_for_FY22[[#This Row],[Median]]-AAMC_Raw_Data_for_FY22[[#This Row],[25th]])/25)*10) + AAMC_Raw_Data_for_FY22[[#This Row],[25th]]","v":304102},{"$f":"(((AAMC_Raw_Data_for_FY22[[#This Row],[Median]]-AAMC_Raw_Data_for_FY22[[#This Row],[25th]])/25)*15) + AAMC_Raw_Data_for_FY22[[#This Row],[25th]]","v":318668},{"$f":"(((AAMC_Raw_Data_for_FY22[[#This Row],[Median]]-AAMC_Raw_Data_for_FY22[[#This Row],[25th]])/25)*20) + AAMC_Raw_Data_for_FY22[[#This Row],[25th]]","v":333234},347800,{"$f":"(((AAMC_Raw_Data_for_FY22[[#This Row],[75th]]-AAMC_Raw_Data_for_FY22[[#This Row],[Median]])/25)*5) + AAMC_Raw_Data_for_FY22[[#This Row],[Median]]","v":370222.4},{"$f":"(((AAMC_Raw_Data_for_FY22[[#This Row],[75th]]-AAMC_Raw_Data_for_FY22[[#This Row],[Median]])/25)*10) + AAMC_Raw_Data_for_FY22[[#This Row],[Median]]","v":392644.8},{"$f":"(((AAMC_Raw_Data_for_FY22[[#This Row],[75th]]-AAMC_Raw_Data_for_FY22[[#This Row],[Median]])/25)*15) + AAMC_Raw_Data_for_FY22[[#This Row],[Median]]","v":415067.2},{"$f":"(((AAMC_Raw_Data_for_FY22[[#This Row],[75th]]-AAMC_Raw_Data_for_FY22[[#This Row],[Median]])/25)*20) + AAMC_Raw_Data_for_FY22[[#This Row],[Median]]","v":437489.6},459912,{"$f":"(((AAMC_Raw_Data_for_FY22[[#This Row],[75th]]-AAMC_Raw_Data_for_FY22[[#This Row],[Median]])/25)*30) + AAMC_Raw_Data_for_FY22[[#This Row],[Median]]","v":482334.4},{"$f":"(((AAMC_Raw_Data_for_FY22[[#This Row],[75th]]-AAMC_Raw_Data_for_FY22[[#This Row],[Median]])/25)*35) + AAMC_Raw_Data_for_FY22[[#This Row],[Median]]","v":504756.8},{"$f":"(((AAMC_Raw_Data_for_FY22[[#This Row],[75th]]-AAMC_Raw_Data_for_FY22[[#This Row],[Median]])/25)*40) + AAMC_Raw_Data_for_FY22[[#This Row],[Median]]","v":527179.19999999995}]
[{"$f":"AAMC_Raw_Data_for_FY22[[#This Row],[Source]]&AAMC_Raw_Data_for_FY22[[#This Row],[Type]]&AAMC_Raw_Data_for_FY22[[#This Row],[School Subset]]&AAMC_Raw_Data_for_FY22[[#This Row],[Rank]]&AAMC_Raw_Data_for_FY22[[#This Row],[Degree]]&AAMC_Raw_Data_for_FY22[[#This Row],[Department / Specialty]]&\"L\"","v":"AAMCAcademicPrivateChiefMDMedicine TotalL"},"Medicine Total",6,"AAMC","Academic","Private","Chief","MD","2021-2022",339039,{"$f":"(((AAMC_Raw_Data_for_FY22[[#This Row],[Median]]-AAMC_Raw_Data_for_FY22[[#This Row],[25th]])/25)*5) + AAMC_Raw_Data_for_FY22[[#This Row],[25th]]","v":354984.2},{"$f":"(((AAMC_Raw_Data_for_FY22[[#This Row],[Median]]-AAMC_Raw_Data_for_FY22[[#This Row],[25th]])/25)*10) + AAMC_Raw_Data_for_FY22[[#This Row],[25th]]","v":370929.4},{"$f":"(((AAMC_Raw_Data_for_FY22[[#This Row],[Median]]-AAMC_Raw_Data_for_FY22[[#This Row],[25th]])/25)*15) + AAMC_Raw_Data_for_FY22[[#This Row],[25th]]","v":386874.6},{"$f":"(((AAMC_Raw_Data_for_FY22[[#This Row],[Median]]-AAMC_Raw_Data_for_FY22[[#This Row],[25th]])/25)*20) + AAMC_Raw_Data_for_FY22[[#This Row],[25th]]","v":402819.8},418765,{"$f":"(((AAMC_Raw_Data_for_FY22[[#This Row],[75th]]-AAMC_Raw_Data_for_FY22[[#This Row],[Median]])/25)*5) + AAMC_Raw_Data_for_FY22[[#This Row],[Median]]","v":441807.4},{"$f":"(((AAMC_Raw_Data_for_FY22[[#This Row],[75th]]-AAMC_Raw_Data_for_FY22[[#This Row],[Median]])/25)*10) + AAMC_Raw_Data_for_FY22[[#This Row],[Median]]","v":464849.8},{"$f":"(((AAMC_Raw_Data_for_FY22[[#This Row],[75th]]-AAMC_Raw_Data_for_FY22[[#This Row],[Median]])/25)*15) + AAMC_Raw_Data_for_FY22[[#This Row],[Median]]","v":487892.2},{"$f":"(((AAMC_Raw_Data_for_FY22[[#This Row],[75th]]-AAMC_Raw_Data_for_FY22[[#This Row],[Median]])/25)*20) + AAMC_Raw_Data_for_FY22[[#This Row],[Median]]","v":510934.6},533977,{"$f":"(((AAMC_Raw_Data_for_FY22[[#This Row],[75th]]-AAMC_Raw_Data_for_FY22[[#This Row],[Median]])/25)*30) + AAMC_Raw_Data_for_FY22[[#This Row],[Median]]","v":557019.4},{"$f":"(((AAMC_Raw_Data_for_FY22[[#This Row],[75th]]-AAMC_Raw_Data_for_FY22[[#This Row],[Median]])/25)*35) + AAMC_Raw_Data_for_FY22[[#This Row],[Median]]","v":580061.80000000005},{"$f":"(((AAMC_Raw_Data_for_FY22[[#This Row],[75th]]-AAMC_Raw_Data_for_FY22[[#This Row],[Median]])/25)*40) + AAMC_Raw_Data_for_FY22[[#This Row],[Median]]","v":603104.19999999995}]
[{"$f":"AAMC_Raw_Data_for_FY22[[#This Row],[Source]]&AAMC_Raw_Data_for_FY22[[#This Row],[Type]]&AAMC_Raw_Data_for_FY22[[#This Row],[School Subset]]&AAMC_Raw_Data_for_FY22[[#This Row],[Rank]]&AAMC_Raw_Data_for_FY22[[#This Row],[Degree]]&AAMC_Raw_Data_for_FY22[[#This Row],[Department / Specialty]]&\"L\"","v":"AAMCAcademicPrivateChairMDMedicine TotalL"},"Medicine Total",1,"AAMC","Academic","Private","Chair","MD","2021-2022",488869,{"$f":"(((AAMC_Raw_Data_for_FY22[[#This Row],[Median]]-AAMC_Raw_Data_for_FY22[[#This Row],[25th]])/25)*5) + AAMC_Raw_Data_for_FY22[[#This Row],[25th]]","v":532313.59999999998},{"$f":"(((AAMC_Raw_Data_for_FY22[[#This Row],[Median]]-AAMC_Raw_Data_for_FY22[[#This Row],[25th]])/25)*10) + AAMC_Raw_Data_for_FY22[[#This Row],[25th]]","v":575758.19999999995},{"$f":"(((AAMC_Raw_Data_for_FY22[[#This Row],[Median]]-AAMC_Raw_Data_for_FY22[[#This Row],[25th]])/25)*15) + AAMC_Raw_Data_for_FY22[[#This Row],[25th]]","v":619202.80000000005},{"$f":"(((AAMC_Raw_Data_for_FY22[[#This Row],[Median]]-AAMC_Raw_Data_for_FY22[[#This Row],[25th]])/25)*20) + AAMC_Raw_Data_for_FY22[[#This Row],[25th]]","v":662647.4},706092,{"$f":"(((AAMC_Raw_Data_for_FY22[[#This Row],[75th]]-AAMC_Raw_Data_for_FY22[[#This Row],[Median]])/25)*5) + AAMC_Raw_Data_for_FY22[[#This Row],[Median]]","v":747278.8},{"$f":"(((AAMC_Raw_Data_for_FY22[[#This Row],[75th]]-AAMC_Raw_Data_for_FY22[[#This Row],[Median]])/25)*10) + AAMC_Raw_Data_for_FY22[[#This Row],[Median]]","v":788465.6},{"$f":"(((AAMC_Raw_Data_for_FY22[[#This Row],[75th]]-AAMC_Raw_Data_for_FY22[[#This Row],[Median]])/25)*15) + AAMC_Raw_Data_for_FY22[[#This Row],[Median]]","v":829652.4},{"$f":"(((AAMC_Raw_Data_for_FY22[[#This Row],[75th]]-AAMC_Raw_Data_for_FY22[[#This Row],[Median]])/25)*20) + AAMC_Raw_Data_for_FY22[[#This Row],[Median]]","v":870839.2},912026,{"$f":"(((AAMC_Raw_Data_for_FY22[[#This Row],[75th]]-AAMC_Raw_Data_for_FY22[[#This Row],[Median]])/25)*30) + AAMC_Raw_Data_for_FY22[[#This Row],[Median]]","v":953212.8},{"$f":"(((AAMC_Raw_Data_for_FY22[[#This Row],[75th]]-AAMC_Raw_Data_for_FY22[[#This Row],[Median]])/25)*35) + AAMC_Raw_Data_for_FY22[[#This Row],[Median]]","v":994399.60000000009},{"$f":"(((AAMC_Raw_Data_for_FY22[[#This Row],[75th]]-AAMC_Raw_Data_for_FY22[[#This Row],[Median]])/25)*40) + AAMC_Raw_Data_for_FY22[[#This Row],[Median]]","v":1035586.4}]
[{"$f":"AAMC_Raw_Data_for_FY22[[#This Row],[Source]]&AAMC_Raw_Data_for_FY22[[#This Row],[Type]]&AAMC_Raw_Data_for_FY22[[#This Row],[School Subset]]&AAMC_Raw_Data_for_FY22[[#This Row],[Rank]]&AAMC_Raw_Data_for_FY22[[#This Row],[Degree]]&AAMC_Raw_Data_for_FY22[[#This Row],[Department / Specialty]]&\"L\"","v":"AAMCAcademicPrivateInstructorMDAllergy/Immunology-Med.L"},"Allergy/Immunology-Med.",5,"AAMC","Academic","Private","Instructor","MD","2021-2022",132229,{"$f":"(((AAMC_Raw_Data_for_FY22[[#This Row],[Median]]-AAMC_Raw_Data_for_FY22[[#This Row],[25th]])/25)*5) + AAMC_Raw_Data_for_FY22[[#This Row],[25th]]","v":138309.6},{"$f":"(((AAMC_Raw_Data_for_FY22[[#This Row],[Median]]-AAMC_Raw_Data_for_FY22[[#This Row],[25th]])/25)*10) + AAMC_Raw_Data_for_FY22[[#This Row],[25th]]","v":144390.20000000001},{"$f":"(((AAMC_Raw_Data_for_FY22[[#This Row],[Median]]-AAMC_Raw_Data_for_FY22[[#This Row],[25th]])/25)*15) + AAMC_Raw_Data_for_FY22[[#This Row],[25th]]","v":150470.79999999999},{"$f":"(((AAMC_Raw_Data_for_FY22[[#This Row],[Median]]-AAMC_Raw_Data_for_FY22[[#This Row],[25th]])/25)*20) + AAMC_Raw_Data_for_FY22[[#This Row],[25th]]","v":156551.4},162632,{"$f":"(((AAMC_Raw_Data_for_FY22[[#This Row],[75th]]-AAMC_Raw_Data_for_FY22[[#This Row],[Median]])/25)*5) + AAMC_Raw_Data_for_FY22[[#This Row],[Median]]","v":169110.39999999999},{"$f":"(((AAMC_Raw_Data_for_FY22[[#This Row],[75th]]-AAMC_Raw_Data_for_FY22[[#This Row],[Median]])/25)*10) + AAMC_Raw_Data_for_FY22[[#This Row],[Median]]","v":175588.8},{"$f":"(((AAMC_Raw_Data_for_FY22[[#This Row],[75th]]-AAMC_Raw_Data_for_FY22[[#This Row],[Median]])/25)*15) + AAMC_Raw_Data_for_FY22[[#This Row],[Median]]","v":182067.20000000001},{"$f":"(((AAMC_Raw_Data_for_FY22[[#This Row],[75th]]-AAMC_Raw_Data_for_FY22[[#This Row],[Median]])/25)*20) + AAMC_Raw_Data_for_FY22[[#This Row],[Median]]","v":188545.6},195024,{"$f":"(((AAMC_Raw_Data_for_FY22[[#This Row],[75th]]-AAMC_Raw_Data_for_FY22[[#This Row],[Median]])/25)*30) + AAMC_Raw_Data_for_FY22[[#This Row],[Median]]","v":201502.4},{"$f":"(((AAMC_Raw_Data_for_FY22[[#This Row],[75th]]-AAMC_Raw_Data_for_FY22[[#This Row],[Median]])/25)*35) + AAMC_Raw_Data_for_FY22[[#This Row],[Median]]","v":207980.79999999999},{"$f":"(((AAMC_Raw_Data_for_FY22[[#This Row],[75th]]-AAMC_Raw_Data_for_FY22[[#This Row],[Median]])/25)*40) + AAMC_Raw_Data_for_FY22[[#This Row],[Median]]","v":214459.2}]
[{"$f":"AAMC_Raw_Data_for_FY22[[#This Row],[Source]]&AAMC_Raw_Data_for_FY22[[#This Row],[Type]]&AAMC_Raw_Data_for_FY22[[#This Row],[School Subset]]&AAMC_Raw_Data_for_FY22[[#This Row],[Rank]]&AAMC_Raw_Data_for_FY22[[#This Row],[Degree]]&AAMC_Raw_Data_for_FY22[[#This Row],[Department / Specialty]]&\"L\"","v":"AAMCAcademicPrivateAssistantMDAllergy/Immunology-Med.L"},"Allergy/Immunology-Med.",4,"AAMC","Academic","Private","Assistant","MD","2021-2022",182344,{"$f":"(((AAMC_Raw_Data_for_FY22[[#This Row],[Median]]-AAMC_Raw_Data_for_FY22[[#This Row],[25th]])/25)*5) + AAMC_Raw_Data_for_FY22[[#This Row],[25th]]","v":188288.4},{"$f":"(((AAMC_Raw_Data_for_FY22[[#This Row],[Median]]-AAMC_Raw_Data_for_FY22[[#This Row],[25th]])/25)*10) + AAMC_Raw_Data_for_FY22[[#This Row],[25th]]","v":194232.8},{"$f":"(((AAMC_Raw_Data_for_FY22[[#This Row],[Median]]-AAMC_Raw_Data_for_FY22[[#This Row],[25th]])/25)*15) + AAMC_Raw_Data_for_FY22[[#This Row],[25th]]","v":200177.2},{"$f":"(((AAMC_Raw_Data_for_FY22[[#This Row],[Median]]-AAMC_Raw_Data_for_FY22[[#This Row],[25th]])/25)*20) + AAMC_Raw_Data_for_FY22[[#This Row],[25th]]","v":206121.60000000001},212066,{"$f":"(((AAMC_Raw_Data_for_FY22[[#This Row],[75th]]-AAMC_Raw_Data_for_FY22[[#This Row],[Median]])/25)*5) + AAMC_Raw_Data_for_FY22[[#This Row],[Median]]","v":218055.4},{"$f":"(((AAMC_Raw_Data_for_FY22[[#This Row],[75th]]-AAMC_Raw_Data_for_FY22[[#This Row],[Median]])/25)*10) + AAMC_Raw_Data_for_FY22[[#This Row],[Median]]","v":224044.79999999999},{"$f":"(((AAMC_Raw_Data_for_FY22[[#This Row],[75th]]-AAMC_Raw_Data_for_FY22[[#This Row],[Median]])/25)*15) + AAMC_Raw_Data_for_FY22[[#This Row],[Median]]","v":230034.2},{"$f":"(((AAMC_Raw_Data_for_FY22[[#This Row],[75th]]-AAMC_Raw_Data_for_FY22[[#This Row],[Median]])/25)*20) + AAMC_Raw_Data_for_FY22[[#This Row],[Median]]","v":236023.6},242013,{"$f":"(((AAMC_Raw_Data_for_FY22[[#This Row],[75th]]-AAMC_Raw_Data_for_FY22[[#This Row],[Median]])/25)*30) + AAMC_Raw_Data_for_FY22[[#This Row],[Median]]","v":248002.4},{"$f":"(((AAMC_Raw_Data_for_FY22[[#This Row],[75th]]-AAMC_Raw_Data_for_FY22[[#This Row],[Median]])/25)*35) + AAMC_Raw_Data_for_FY22[[#This Row],[Median]]","v":253991.8},{"$f":"(((AAMC_Raw_Data_for_FY22[[#This Row],[75th]]-AAMC_Raw_Data_for_FY22[[#This Row],[Median]])/25)*40) + AAMC_Raw_Data_for_FY22[[#This Row],[Median]]","v":259981.2}]
[{"$f":"AAMC_Raw_Data_for_FY22[[#This Row],[Source]]&AAMC_Raw_Data_for_FY22[[#This Row],[Type]]&AAMC_Raw_Data_for_FY22[[#This Row],[School Subset]]&AAMC_Raw_Data_for_FY22[[#This Row],[Rank]]&AAMC_Raw_Data_for_FY22[[#This Row],[Degree]]&AAMC_Raw_Data_for_FY22[[#This Row],[Department / Specialty]]&\"L\"","v":"AAMCAcademicPrivateAssociateMDAllergy/Immunology-Med.L"},"Allergy/Immunology-Med.",3,"AAMC","Academic","Private","Associate","MD","2021-2022",213827,{"$f":"(((AAMC_Raw_Data_for_FY22[[#This Row],[Median]]-AAMC_Raw_Data_for_FY22[[#This Row],[25th]])/25)*5) + AAMC_Raw_Data_for_FY22[[#This Row],[25th]]","v":221235.8},{"$f":"(((AAMC_Raw_Data_for_FY22[[#This Row],[Median]]-AAMC_Raw_Data_for_FY22[[#This Row],[25th]])/25)*10) + AAMC_Raw_Data_for_FY22[[#This Row],[25th]]","v":228644.6},{"$f":"(((AAMC_Raw_Data_for_FY22[[#This Row],[Median]]-AAMC_Raw_Data_for_FY22[[#This Row],[25th]])/25)*15) + AAMC_Raw_Data_for_FY22[[#This Row],[25th]]","v":236053.4},{"$f":"(((AAMC_Raw_Data_for_FY22[[#This Row],[Median]]-AAMC_Raw_Data_for_FY22[[#This Row],[25th]])/25)*20) + AAMC_Raw_Data_for_FY22[[#This Row],[25th]]","v":243462.2},250871,{"$f":"(((AAMC_Raw_Data_for_FY22[[#This Row],[75th]]-AAMC_Raw_Data_for_FY22[[#This Row],[Median]])/25)*5) + AAMC_Raw_Data_for_FY22[[#This Row],[Median]]","v":259365},{"$f":"(((AAMC_Raw_Data_for_FY22[[#This Row],[75th]]-AAMC_Raw_Data_for_FY22[[#This Row],[Median]])/25)*10) + AAMC_Raw_Data_for_FY22[[#This Row],[Median]]","v":267859},{"$f":"(((AAMC_Raw_Data_for_FY22[[#This Row],[75th]]-AAMC_Raw_Data_for_FY22[[#This Row],[Median]])/25)*15) + AAMC_Raw_Data_for_FY22[[#This Row],[Median]]","v":276353},{"$f":"(((AAMC_Raw_Data_for_FY22[[#This Row],[75th]]-AAMC_Raw_Data_for_FY22[[#This Row],[Median]])/25)*20) + AAMC_Raw_Data_for_FY22[[#This Row],[Median]]","v":284847},293341,{"$f":"(((AAMC_Raw_Data_for_FY22[[#This Row],[75th]]-AAMC_Raw_Data_for_FY22[[#This Row],[Median]])/25)*30) + AAMC_Raw_Data_for_FY22[[#This Row],[Median]]","v":301835},{"$f":"(((AAMC_Raw_Data_for_FY22[[#This Row],[75th]]-AAMC_Raw_Data_for_FY22[[#This Row],[Median]])/25)*35) + AAMC_Raw_Data_for_FY22[[#This Row],[Median]]","v":310329},{"$f":"(((AAMC_Raw_Data_for_FY22[[#This Row],[75th]]-AAMC_Raw_Data_for_FY22[[#This Row],[Median]])/25)*40) + AAMC_Raw_Data_for_FY22[[#This Row],[Median]]","v":318823}]
[{"$f":"AAMC_Raw_Data_for_FY22[[#This Row],[Source]]&AAMC_Raw_Data_for_FY22[[#This Row],[Type]]&AAMC_Raw_Data_for_FY22[[#This Row],[School Subset]]&AAMC_Raw_Data_for_FY22[[#This Row],[Rank]]&AAMC_Raw_Data_for_FY22[[#This Row],[Degree]]&AAMC_Raw_Data_for_FY22[[#This Row],[Department / Specialty]]&\"L\"","v":"AAMCAcademicPrivateProfessorMDAllergy/Immunology-Med.L"},"Allergy/Immunology-Med.",2,"AAMC","Academic","Private","Professor","MD","2021-2022",239859,{"$f":"(((AAMC_Raw_Data_for_FY22[[#This Row],[Median]]-AAMC_Raw_Data_for_FY22[[#This Row],[25th]])/25)*5) + AAMC_Raw_Data_for_FY22[[#This Row],[25th]]","v":251151.8},{"$f":"(((AAMC_Raw_Data_for_FY22[[#This Row],[Median]]-AAMC_Raw_Data_for_FY22[[#This Row],[25th]])/25)*10) + AAMC_Raw_Data_for_FY22[[#This Row],[25th]]","v":262444.59999999998},{"$f":"(((AAMC_Raw_Data_for_FY22[[#This Row],[Median]]-AAMC_Raw_Data_for_FY22[[#This Row],[25th]])/25)*15) + AAMC_Raw_Data_for_FY22[[#This Row],[25th]]","v":273737.40000000002},{"$f":"(((AAMC_Raw_Data_for_FY22[[#This Row],[Median]]-AAMC_Raw_Data_for_FY22[[#This Row],[25th]])/25)*20) + AAMC_Raw_Data_for_FY22[[#This Row],[25th]]","v":285030.2},296323,{"$f":"(((AAMC_Raw_Data_for_FY22[[#This Row],[75th]]-AAMC_Raw_Data_for_FY22[[#This Row],[Median]])/25)*5) + AAMC_Raw_Data_for_FY22[[#This Row],[Median]]","v":310451.40000000002},{"$f":"(((AAMC_Raw_Data_for_FY22[[#This Row],[75th]]-AAMC_Raw_Data_for_FY22[[#This Row],[Median]])/25)*10) + AAMC_Raw_Data_for_FY22[[#This Row],[Median]]","v":324579.8},{"$f":"(((AAMC_Raw_Data_for_FY22[[#This Row],[75th]]-AAMC_Raw_Data_for_FY22[[#This Row],[Median]])/25)*15) + AAMC_Raw_Data_for_FY22[[#This Row],[Median]]","v":338708.2},{"$f":"(((AAMC_Raw_Data_for_FY22[[#This Row],[75th]]-AAMC_Raw_Data_for_FY22[[#This Row],[Median]])/25)*20) + AAMC_Raw_Data_for_FY22[[#This Row],[Median]]","v":352836.6},366965,{"$f":"(((AAMC_Raw_Data_for_FY22[[#This Row],[75th]]-AAMC_Raw_Data_for_FY22[[#This Row],[Median]])/25)*30) + AAMC_Raw_Data_for_FY22[[#This Row],[Median]]","v":381093.4},{"$f":"(((AAMC_Raw_Data_for_FY22[[#This Row],[75th]]-AAMC_Raw_Data_for_FY22[[#This Row],[Median]])/25)*35) + AAMC_Raw_Data_for_FY22[[#This Row],[Median]]","v":395221.8},{"$f":"(((AAMC_Raw_Data_for_FY22[[#This Row],[75th]]-AAMC_Raw_Data_for_FY22[[#This Row],[Median]])/25)*40) + AAMC_Raw_Data_for_FY22[[#This Row],[Median]]","v":409350.2}]
[{"$f":"AAMC_Raw_Data_for_FY22[[#This Row],[Source]]&AAMC_Raw_Data_for_FY22[[#This Row],[Type]]&AAMC_Raw_Data_for_FY22[[#This Row],[School Subset]]&AAMC_Raw_Data_for_FY22[[#This Row],[Rank]]&AAMC_Raw_Data_for_FY22[[#This Row],[Degree]]&AAMC_Raw_Data_for_FY22[[#This Row],[Department / Specialty]]&\"L\"","v":"AAMCAcademicPrivateChiefMDAllergy/Immunology-Med.L"},"Allergy/Immunology-Med.",6,"AAMC","Academic","Private","Chief","MD","2021-2022",280392,{"$f":"(((AAMC_Raw_Data_for_FY22[[#This Row],[Median]]-AAMC_Raw_Data_for_FY22[[#This Row],[25th]])/25)*5) + AAMC_Raw_Data_for_FY22[[#This Row],[25th]]","v":290361},{"$f":"(((AAMC_Raw_Data_for_FY22[[#This Row],[Median]]-AAMC_Raw_Data_for_FY22[[#This Row],[25th]])/25)*10) + AAMC_Raw_Data_for_FY22[[#This Row],[25th]]","v":300330},{"$f":"(((AAMC_Raw_Data_for_FY22[[#This Row],[Median]]-AAMC_Raw_Data_for_FY22[[#This Row],[25th]])/25)*15) + AAMC_Raw_Data_for_FY22[[#This Row],[25th]]","v":310299},{"$f":"(((AAMC_Raw_Data_for_FY22[[#This Row],[Median]]-AAMC_Raw_Data_for_FY22[[#This Row],[25th]])/25)*20) + AAMC_Raw_Data_for_FY22[[#This Row],[25th]]","v":320268},330237,{"$f":"(((AAMC_Raw_Data_for_FY22[[#This Row],[75th]]-AAMC_Raw_Data_for_FY22[[#This Row],[Median]])/25)*5) + AAMC_Raw_Data_for_FY22[[#This Row],[Median]]","v":340048.2},{"$f":"(((AAMC_Raw_Data_for_FY22[[#This Row],[75th]]-AAMC_Raw_Data_for_FY22[[#This Row],[Median]])/25)*10) + AAMC_Raw_Data_for_FY22[[#This Row],[Median]]","v":349859.4},{"$f":"(((AAMC_Raw_Data_for_FY22[[#This Row],[75th]]-AAMC_Raw_Data_for_FY22[[#This Row],[Median]])/25)*15) + AAMC_Raw_Data_for_FY22[[#This Row],[Median]]","v":359670.6},{"$f":"(((AAMC_Raw_Data_for_FY22[[#This Row],[75th]]-AAMC_Raw_Data_for_FY22[[#This Row],[Median]])/25)*20) + AAMC_Raw_Data_for_FY22[[#This Row],[Median]]","v":369481.8},379293,{"$f":"(((AAMC_Raw_Data_for_FY22[[#This Row],[75th]]-AAMC_Raw_Data_for_FY22[[#This Row],[Median]])/25)*30) + AAMC_Raw_Data_for_FY22[[#This Row],[Median]]","v":389104.2},{"$f":"(((AAMC_Raw_Data_for_FY22[[#This Row],[75th]]-AAMC_Raw_Data_for_FY22[[#This Row],[Median]])/25)*35) + AAMC_Raw_Data_for_FY22[[#This Row],[Median]]","v":398915.4},{"$f":"(((AAMC_Raw_Data_for_FY22[[#This Row],[75th]]-AAMC_Raw_Data_for_FY22[[#This Row],[Median]])/25)*40) + AAMC_Raw_Data_for_FY22[[#This Row],[Median]]","v":408726.6}]
[{"$f":"AAMC_Raw_Data_for_FY22[[#This Row],[Source]]&AAMC_Raw_Data_for_FY22[[#This Row],[Type]]&AAMC_Raw_Data_for_FY22[[#This Row],[School Subset]]&AAMC_Raw_Data_for_FY22[[#This Row],[Rank]]&AAMC_Raw_Data_for_FY22[[#This Row],[Degree]]&AAMC_Raw_Data_for_FY22[[#This Row],[Department / Specialty]]&\"L\"","v":"AAMCAcademicPrivateInstructorMDCardiology TotalL"},"Cardiology Total",5,"AAMC","Academic","Private","Instructor","MD","2021-2022",164477,{"$f":"(((AAMC_Raw_Data_for_FY22[[#This Row],[Median]]-AAMC_Raw_Data_for_FY22[[#This Row],[25th]])/25)*5) + AAMC_Raw_Data_for_FY22[[#This Row],[25th]]","v":178393.4},{"$f":"(((AAMC_Raw_Data_for_FY22[[#This Row],[Median]]-AAMC_Raw_Data_for_FY22[[#This Row],[25th]])/25)*10) + AAMC_Raw_Data_for_FY22[[#This Row],[25th]]","v":192309.8},{"$f":"(((AAMC_Raw_Data_for_FY22[[#This Row],[Median]]-AAMC_Raw_Data_for_FY22[[#This Row],[25th]])/25)*15) + AAMC_Raw_Data_for_FY22[[#This Row],[25th]]","v":206226.2},{"$f":"(((AAMC_Raw_Data_for_FY22[[#This Row],[Median]]-AAMC_Raw_Data_for_FY22[[#This Row],[25th]])/25)*20) + AAMC_Raw_Data_for_FY22[[#This Row],[25th]]","v":220142.6},234059,{"$f":"(((AAMC_Raw_Data_for_FY22[[#This Row],[75th]]-AAMC_Raw_Data_for_FY22[[#This Row],[Median]])/25)*5) + AAMC_Raw_Data_for_FY22[[#This Row],[Median]]","v":256247.2},{"$f":"(((AAMC_Raw_Data_for_FY22[[#This Row],[75th]]-AAMC_Raw_Data_for_FY22[[#This Row],[Median]])/25)*10) + AAMC_Raw_Data_for_FY22[[#This Row],[Median]]","v":278435.40000000002},{"$f":"(((AAMC_Raw_Data_for_FY22[[#This Row],[75th]]-AAMC_Raw_Data_for_FY22[[#This Row],[Median]])/25)*15) + AAMC_Raw_Data_for_FY22[[#This Row],[Median]]","v":300623.59999999998},{"$f":"(((AAMC_Raw_Data_for_FY22[[#This Row],[75th]]-AAMC_Raw_Data_for_FY22[[#This Row],[Median]])/25)*20) + AAMC_Raw_Data_for_FY22[[#This Row],[Median]]","v":322811.8},345000,{"$f":"(((AAMC_Raw_Data_for_FY22[[#This Row],[75th]]-AAMC_Raw_Data_for_FY22[[#This Row],[Median]])/25)*30) + AAMC_Raw_Data_for_FY22[[#This Row],[Median]]","v":367188.2},{"$f":"(((AAMC_Raw_Data_for_FY22[[#This Row],[75th]]-AAMC_Raw_Data_for_FY22[[#This Row],[Median]])/25)*35) + AAMC_Raw_Data_for_FY22[[#This Row],[Median]]","v":389376.4},{"$f":"(((AAMC_Raw_Data_for_FY22[[#This Row],[75th]]-AAMC_Raw_Data_for_FY22[[#This Row],[Median]])/25)*40) + AAMC_Raw_Data_for_FY22[[#This Row],[Median]]","v":411564.6}]
[{"$f":"AAMC_Raw_Data_for_FY22[[#This Row],[Source]]&AAMC_Raw_Data_for_FY22[[#This Row],[Type]]&AAMC_Raw_Data_for_FY22[[#This Row],[School Subset]]&AAMC_Raw_Data_for_FY22[[#This Row],[Rank]]&AAMC_Raw_Data_for_FY22[[#This Row],[Degree]]&AAMC_Raw_Data_for_FY22[[#This Row],[Department / Specialty]]&\"L\"","v":"AAMCAcademicPrivateAssistantMDCardiology TotalL"},"Cardiology Total",4,"AAMC","Academic","Private","Assistant","MD","2021-2022",301432,{"$f":"(((AAMC_Raw_Data_for_FY22[[#This Row],[Median]]-AAMC_Raw_Data_for_FY22[[#This Row],[25th]])/25)*5) + AAMC_Raw_Data_for_FY22[[#This Row],[25th]]","v":316478},{"$f":"(((AAMC_Raw_Data_for_FY22[[#This Row],[Median]]-AAMC_Raw_Data_for_FY22[[#This Row],[25th]])/25)*10) + AAMC_Raw_Data_for_FY22[[#This Row],[25th]]","v":331524},{"$f":"(((AAMC_Raw_Data_for_FY22[[#This Row],[Median]]-AAMC_Raw_Data_for_FY22[[#This Row],[25th]])/25)*15) + AAMC_Raw_Data_for_FY22[[#This Row],[25th]]","v":346570},{"$f":"(((AAMC_Raw_Data_for_FY22[[#This Row],[Median]]-AAMC_Raw_Data_for_FY22[[#This Row],[25th]])/25)*20) + AAMC_Raw_Data_for_FY22[[#This Row],[25th]]","v":361616},376662,{"$f":"(((AAMC_Raw_Data_for_FY22[[#This Row],[75th]]-AAMC_Raw_Data_for_FY22[[#This Row],[Median]])/25)*5) + AAMC_Raw_Data_for_FY22[[#This Row],[Median]]","v":401329.6},{"$f":"(((AAMC_Raw_Data_for_FY22[[#This Row],[75th]]-AAMC_Raw_Data_for_FY22[[#This Row],[Median]])/25)*10) + AAMC_Raw_Data_for_FY22[[#This Row],[Median]]","v":425997.2},{"$f":"(((AAMC_Raw_Data_for_FY22[[#This Row],[75th]]-AAMC_Raw_Data_for_FY22[[#This Row],[Median]])/25)*15) + AAMC_Raw_Data_for_FY22[[#This Row],[Median]]","v":450664.8},{"$f":"(((AAMC_Raw_Data_for_FY22[[#This Row],[75th]]-AAMC_Raw_Data_for_FY22[[#This Row],[Median]])/25)*20) + AAMC_Raw_Data_for_FY22[[#This Row],[Median]]","v":475332.4},500000,{"$f":"(((AAMC_Raw_Data_for_FY22[[#This Row],[75th]]-AAMC_Raw_Data_for_FY22[[#This Row],[Median]])/25)*30) + AAMC_Raw_Data_for_FY22[[#This Row],[Median]]","v":524667.6},{"$f":"(((AAMC_Raw_Data_for_FY22[[#This Row],[75th]]-AAMC_Raw_Data_for_FY22[[#This Row],[Median]])/25)*35) + AAMC_Raw_Data_for_FY22[[#This Row],[Median]]","v":549335.19999999995},{"$f":"(((AAMC_Raw_Data_for_FY22[[#This Row],[75th]]-AAMC_Raw_Data_for_FY22[[#This Row],[Median]])/25)*40) + AAMC_Raw_Data_for_FY22[[#This Row],[Median]]","v":574002.80000000005}]
[{"$f":"AAMC_Raw_Data_for_FY22[[#This Row],[Source]]&AAMC_Raw_Data_for_FY22[[#This Row],[Type]]&AAMC_Raw_Data_for_FY22[[#This Row],[School Subset]]&AAMC_Raw_Data_for_FY22[[#This Row],[Rank]]&AAMC_Raw_Data_for_FY22[[#This Row],[Degree]]&AAMC_Raw_Data_for_FY22[[#This Row],[Department / Specialty]]&\"L\"","v":"AAMCAcademicPrivateAssociateMDCardiology TotalL"},"Cardiology Total",3,"AAMC","Academic","Private","Associate","MD","2021-2022",339955,{"$f":"(((AAMC_Raw_Data_for_FY22[[#This Row],[Median]]-AAMC_Raw_Data_for_FY22[[#This Row],[25th]])/25)*5) + AAMC_Raw_Data_for_FY22[[#This Row],[25th]]","v":360490},{"$f":"(((AAMC_Raw_Data_for_FY22[[#This Row],[Median]]-AAMC_Raw_Data_for_FY22[[#This Row],[25th]])/25)*10) + AAMC_Raw_Data_for_FY22[[#This Row],[25th]]","v":381025},{"$f":"(((AAMC_Raw_Data_for_FY22[[#This Row],[Median]]-AAMC_Raw_Data_for_FY22[[#This Row],[25th]])/25)*15) + AAMC_Raw_Data_for_FY22[[#This Row],[25th]]","v":401560},{"$f":"(((AAMC_Raw_Data_for_FY22[[#This Row],[Median]]-AAMC_Raw_Data_for_FY22[[#This Row],[25th]])/25)*20) + AAMC_Raw_Data_for_FY22[[#This Row],[25th]]","v":422095},442630,{"$f":"(((AAMC_Raw_Data_for_FY22[[#This Row],[75th]]-AAMC_Raw_Data_for_FY22[[#This Row],[Median]])/25)*5) + AAMC_Raw_Data_for_FY22[[#This Row],[Median]]","v":468258.4},{"$f":"(((AAMC_Raw_Data_for_FY22[[#This Row],[75th]]-AAMC_Raw_Data_for_FY22[[#This Row],[Median]])/25)*10) + AAMC_Raw_Data_for_FY22[[#This Row],[Median]]","v":493886.8},{"$f":"(((AAMC_Raw_Data_for_FY22[[#This Row],[75th]]-AAMC_Raw_Data_for_FY22[[#This Row],[Median]])/25)*15) + AAMC_Raw_Data_for_FY22[[#This Row],[Median]]","v":519515.2},{"$f":"(((AAMC_Raw_Data_for_FY22[[#This Row],[75th]]-AAMC_Raw_Data_for_FY22[[#This Row],[Median]])/25)*20) + AAMC_Raw_Data_for_FY22[[#This Row],[Median]]","v":545143.6},570772,{"$f":"(((AAMC_Raw_Data_for_FY22[[#This Row],[75th]]-AAMC_Raw_Data_for_FY22[[#This Row],[Median]])/25)*30) + AAMC_Raw_Data_for_FY22[[#This Row],[Median]]","v":596400.4},{"$f":"(((AAMC_Raw_Data_for_FY22[[#This Row],[75th]]-AAMC_Raw_Data_for_FY22[[#This Row],[Median]])/25)*35) + AAMC_Raw_Data_for_FY22[[#This Row],[Median]]","v":622028.80000000005},{"$f":"(((AAMC_Raw_Data_for_FY22[[#This Row],[75th]]-AAMC_Raw_Data_for_FY22[[#This Row],[Median]])/25)*40) + AAMC_Raw_Data_for_FY22[[#This Row],[Median]]","v":647657.19999999995}]
[{"$f":"AAMC_Raw_Data_for_FY22[[#This Row],[Source]]&AAMC_Raw_Data_for_FY22[[#This Row],[Type]]&AAMC_Raw_Data_for_FY22[[#This Row],[School Subset]]&AAMC_Raw_Data_for_FY22[[#This Row],[Rank]]&AAMC_Raw_Data_for_FY22[[#This Row],[Degree]]&AAMC_Raw_Data_for_FY22[[#This Row],[Department / Specialty]]&\"L\"","v":"AAMCAcademicPrivateProfessorMDCardiology TotalL"},"Cardiology Total",2,"AAMC","Academic","Private","Professor","MD","2021-2022",348332,{"$f":"(((AAMC_Raw_Data_for_FY22[[#This Row],[Median]]-AAMC_Raw_Data_for_FY22[[#This Row],[25th]])/25)*5) + AAMC_Raw_Data_for_FY22[[#This Row],[25th]]","v":368665.59999999998},{"$f":"(((AAMC_Raw_Data_for_FY22[[#This Row],[Median]]-AAMC_Raw_Data_for_FY22[[#This Row],[25th]])/25)*10) + AAMC_Raw_Data_for_FY22[[#This Row],[25th]]","v":388999.2},{"$f":"(((AAMC_Raw_Data_for_FY22[[#This Row],[Median]]-AAMC_Raw_Data_for_FY22[[#This Row],[25th]])/25)*15) + AAMC_Raw_Data_for_FY22[[#This Row],[25th]]","v":409332.8},{"$f":"(((AAMC_Raw_Data_for_FY22[[#This Row],[Median]]-AAMC_Raw_Data_for_FY22[[#This Row],[25th]])/25)*20) + AAMC_Raw_Data_for_FY22[[#This Row],[25th]]","v":429666.4},450000,{"$f":"(((AAMC_Raw_Data_for_FY22[[#This Row],[75th]]-AAMC_Raw_Data_for_FY22[[#This Row],[Median]])/25)*5) + AAMC_Raw_Data_for_FY22[[#This Row],[Median]]","v":473218},{"$f":"(((AAMC_Raw_Data_for_FY22[[#This Row],[75th]]-AAMC_Raw_Data_for_FY22[[#This Row],[Median]])/25)*10) + AAMC_Raw_Data_for_FY22[[#This Row],[Median]]","v":496436},{"$f":"(((AAMC_Raw_Data_for_FY22[[#This Row],[75th]]-AAMC_Raw_Data_for_FY22[[#This Row],[Median]])/25)*15) + AAMC_Raw_Data_for_FY22[[#This Row],[Median]]","v":519654},{"$f":"(((AAMC_Raw_Data_for_FY22[[#This Row],[75th]]-AAMC_Raw_Data_for_FY22[[#This Row],[Median]])/25)*20) + AAMC_Raw_Data_for_FY22[[#This Row],[Median]]","v":542872},566090,{"$f":"(((AAMC_Raw_Data_for_FY22[[#This Row],[75th]]-AAMC_Raw_Data_for_FY22[[#This Row],[Median]])/25)*30) + AAMC_Raw_Data_for_FY22[[#This Row],[Median]]","v":589308},{"$f":"(((AAMC_Raw_Data_for_FY22[[#This Row],[75th]]-AAMC_Raw_Data_for_FY22[[#This Row],[Median]])/25)*35) + AAMC_Raw_Data_for_FY22[[#This Row],[Median]]","v":612526},{"$f":"(((AAMC_Raw_Data_for_FY22[[#This Row],[75th]]-AAMC_Raw_Data_for_FY22[[#This Row],[Median]])/25)*40) + AAMC_Raw_Data_for_FY22[[#This Row],[Median]]","v":635744}]
[{"$f":"AAMC_Raw_Data_for_FY22[[#This Row],[Source]]&AAMC_Raw_Data_for_FY22[[#This Row],[Type]]&AAMC_Raw_Data_for_FY22[[#This Row],[School Subset]]&AAMC_Raw_Data_for_FY22[[#This Row],[Rank]]&AAMC_Raw_Data_for_FY22[[#This Row],[Degree]]&AAMC_Raw_Data_for_FY22[[#This Row],[Department / Specialty]]&\"L\"","v":"AAMCAcademicPrivateChiefMDCardiology TotalL"},"Cardiology Total",6,"AAMC","Academic","Private","Chief","MD","2021-2022",530245,{"$f":"(((AAMC_Raw_Data_for_FY22[[#This Row],[Median]]-AAMC_Raw_Data_for_FY22[[#This Row],[25th]])/25)*5) + AAMC_Raw_Data_for_FY22[[#This Row],[25th]]","v":549247.4},{"$f":"(((AAMC_Raw_Data_for_FY22[[#This Row],[Median]]-AAMC_Raw_Data_for_FY22[[#This Row],[25th]])/25)*10) + AAMC_Raw_Data_for_FY22[[#This Row],[25th]]","v":568249.80000000005},{"$f":"(((AAMC_Raw_Data_for_FY22[[#This Row],[Median]]-AAMC_Raw_Data_for_FY22[[#This Row],[25th]])/25)*15) + AAMC_Raw_Data_for_FY22[[#This Row],[25th]]","v":587252.19999999995},{"$f":"(((AAMC_Raw_Data_for_FY22[[#This Row],[Median]]-AAMC_Raw_Data_for_FY22[[#This Row],[25th]])/25)*20) + AAMC_Raw_Data_for_FY22[[#This Row],[25th]]","v":606254.6},625257,{"$f":"(((AAMC_Raw_Data_for_FY22[[#This Row],[75th]]-AAMC_Raw_Data_for_FY22[[#This Row],[Median]])/25)*5) + AAMC_Raw_Data_for_FY22[[#This Row],[Median]]","v":670218.80000000005},{"$f":"(((AAMC_Raw_Data_for_FY22[[#This Row],[75th]]-AAMC_Raw_Data_for_FY22[[#This Row],[Median]])/25)*10) + AAMC_Raw_Data_for_FY22[[#This Row],[Median]]","v":715180.6},{"$f":"(((AAMC_Raw_Data_for_FY22[[#This Row],[75th]]-AAMC_Raw_Data_for_FY22[[#This Row],[Median]])/25)*15) + AAMC_Raw_Data_for_FY22[[#This Row],[Median]]","v":760142.4},{"$f":"(((AAMC_Raw_Data_for_FY22[[#This Row],[75th]]-AAMC_Raw_Data_for_FY22[[#This Row],[Median]])/25)*20) + AAMC_Raw_Data_for_FY22[[#This Row],[Median]]","v":805104.2},850066,{"$f":"(((AAMC_Raw_Data_for_FY22[[#This Row],[75th]]-AAMC_Raw_Data_for_FY22[[#This Row],[Median]])/25)*30) + AAMC_Raw_Data_for_FY22[[#This Row],[Median]]","v":895027.8},{"$f":"(((AAMC_Raw_Data_for_FY22[[#This Row],[75th]]-AAMC_Raw_Data_for_FY22[[#This Row],[Median]])/25)*35) + AAMC_Raw_Data_for_FY22[[#This Row],[Median]]","v":939989.60000000009},{"$f":"(((AAMC_Raw_Data_for_FY22[[#This Row],[75th]]-AAMC_Raw_Data_for_FY22[[#This Row],[Median]])/25)*40) + AAMC_Raw_Data_for_FY22[[#This Row],[Median]]","v":984951.4}]
[{"$f":"AAMC_Raw_Data_for_FY22[[#This Row],[Source]]&AAMC_Raw_Data_for_FY22[[#This Row],[Type]]&AAMC_Raw_Data_for_FY22[[#This Row],[School Subset]]&AAMC_Raw_Data_for_FY22[[#This Row],[Rank]]&AAMC_Raw_Data_for_FY22[[#This Row],[Degree]]&AAMC_Raw_Data_for_FY22[[#This Row],[Department / Specialty]]&\"L\"","v":"AAMCAcademicPrivateChairMDCardiology TotalL"},"Cardiology Total",1,"AAMC","Academic","Private","Chair","MD","2021-2022",650531,{"$f":"(((AAMC_Raw_Data_for_FY22[[#This Row],[Median]]-AAMC_Raw_Data_for_FY22[[#This Row],[25th]])/25)*5) + AAMC_Raw_Data_for_FY22[[#This Row],[25th]]","v":716495.8},{"$f":"(((AAMC_Raw_Data_for_FY22[[#This Row],[Median]]-AAMC_Raw_Data_for_FY22[[#This Row],[25th]])/25)*10) + AAMC_Raw_Data_for_FY22[[#This Row],[25th]]","v":782460.6},{"$f":"(((AAMC_Raw_Data_for_FY22[[#This Row],[Median]]-AAMC_Raw_Data_for_FY22[[#This Row],[25th]])/25)*15) + AAMC_Raw_Data_for_FY22[[#This Row],[25th]]","v":848425.4},{"$f":"(((AAMC_Raw_Data_for_FY22[[#This Row],[Median]]-AAMC_Raw_Data_for_FY22[[#This Row],[25th]])/25)*20) + AAMC_Raw_Data_for_FY22[[#This Row],[25th]]","v":914390.2},980355,{"$f":"(((AAMC_Raw_Data_for_FY22[[#This Row],[75th]]-AAMC_Raw_Data_for_FY22[[#This Row],[Median]])/25)*5) + AAMC_Raw_Data_for_FY22[[#This Row],[Median]]","v":1008842.2},{"$f":"(((AAMC_Raw_Data_for_FY22[[#This Row],[75th]]-AAMC_Raw_Data_for_FY22[[#This Row],[Median]])/25)*10) + AAMC_Raw_Data_for_FY22[[#This Row],[Median]]","v":1037329.4},{"$f":"(((AAMC_Raw_Data_for_FY22[[#This Row],[75th]]-AAMC_Raw_Data_for_FY22[[#This Row],[Median]])/25)*15) + AAMC_Raw_Data_for_FY22[[#This Row],[Median]]","v":1065816.6000000001},{"$f":"(((AAMC_Raw_Data_for_FY22[[#This Row],[75th]]-AAMC_Raw_Data_for_FY22[[#This Row],[Median]])/25)*20) + AAMC_Raw_Data_for_FY22[[#This Row],[Median]]","v":1094303.8},1122791,{"$f":"(((AAMC_Raw_Data_for_FY22[[#This Row],[75th]]-AAMC_Raw_Data_for_FY22[[#This Row],[Median]])/25)*30) + AAMC_Raw_Data_for_FY22[[#This Row],[Median]]","v":1151278.2},{"$f":"(((AAMC_Raw_Data_for_FY22[[#This Row],[75th]]-AAMC_Raw_Data_for_FY22[[#This Row],[Median]])/25)*35) + AAMC_Raw_Data_for_FY22[[#This Row],[Median]]","v":1179765.3999999999},{"$f":"(((AAMC_Raw_Data_for_FY22[[#This Row],[75th]]-AAMC_Raw_Data_for_FY22[[#This Row],[Median]])/25)*40) + AAMC_Raw_Data_for_FY22[[#This Row],[Median]]","v":1208252.6000000001}]
[{"$f":"AAMC_Raw_Data_for_FY22[[#This Row],[Source]]&AAMC_Raw_Data_for_FY22[[#This Row],[Type]]&AAMC_Raw_Data_for_FY22[[#This Row],[School Subset]]&AAMC_Raw_Data_for_FY22[[#This Row],[Rank]]&AAMC_Raw_Data_for_FY22[[#This Row],[Degree]]&AAMC_Raw_Data_for_FY22[[#This Row],[Department / Specialty]]&\"L\"","v":"AAMCAcademicPrivateInstructorMDCardiology: Invasive Interventional-Med.L"},"Cardiology: Invasive Interventional-Med.",5,"AAMC","Academic","Private","Instructor","MD","2021-2022",297274,{"$f":"(((AAMC_Raw_Data_for_FY22[[#This Row],[Median]]-AAMC_Raw_Data_for_FY22[[#This Row],[25th]])/25)*5) + AAMC_Raw_Data_for_FY22[[#This Row],[25th]]","v":316273},{"$f":"(((AAMC_Raw_Data_for_FY22[[#This Row],[Median]]-AAMC_Raw_Data_for_FY22[[#This Row],[25th]])/25)*10) + AAMC_Raw_Data_for_FY22[[#This Row],[25th]]","v":335272},{"$f":"(((AAMC_Raw_Data_for_FY22[[#This Row],[Median]]-AAMC_Raw_Data_for_FY22[[#This Row],[25th]])/25)*15) + AAMC_Raw_Data_for_FY22[[#This Row],[25th]]","v":354271},{"$f":"(((AAMC_Raw_Data_for_FY22[[#This Row],[Median]]-AAMC_Raw_Data_for_FY22[[#This Row],[25th]])/25)*20) + AAMC_Raw_Data_for_FY22[[#This Row],[25th]]","v":373270},392269,{"$f":"(((AAMC_Raw_Data_for_FY22[[#This Row],[75th]]-AAMC_Raw_Data_for_FY22[[#This Row],[Median]])/25)*5) + AAMC_Raw_Data_for_FY22[[#This Row],[Median]]","v":413193.4},{"$f":"(((AAMC_Raw_Data_for_FY22[[#This Row],[75th]]-AAMC_Raw_Data_for_FY22[[#This Row],[Median]])/25)*10) + AAMC_Raw_Data_for_FY22[[#This Row],[Median]]","v":434117.8},{"$f":"(((AAMC_Raw_Data_for_FY22[[#This Row],[75th]]-AAMC_Raw_Data_for_FY22[[#This Row],[Median]])/25)*15) + AAMC_Raw_Data_for_FY22[[#This Row],[Median]]","v":455042.2},{"$f":"(((AAMC_Raw_Data_for_FY22[[#This Row],[75th]]-AAMC_Raw_Data_for_FY22[[#This Row],[Median]])/25)*20) + AAMC_Raw_Data_for_FY22[[#This Row],[Median]]","v":475966.6},496891,{"$f":"(((AAMC_Raw_Data_for_FY22[[#This Row],[75th]]-AAMC_Raw_Data_for_FY22[[#This Row],[Median]])/25)*30) + AAMC_Raw_Data_for_FY22[[#This Row],[Median]]","v":517815.4},{"$f":"(((AAMC_Raw_Data_for_FY22[[#This Row],[75th]]-AAMC_Raw_Data_for_FY22[[#This Row],[Median]])/25)*35) + AAMC_Raw_Data_for_FY22[[#This Row],[Median]]","v":538739.80000000005},{"$f":"(((AAMC_Raw_Data_for_FY22[[#This Row],[75th]]-AAMC_Raw_Data_for_FY22[[#This Row],[Median]])/25)*40) + AAMC_Raw_Data_for_FY22[[#This Row],[Median]]","v":559664.19999999995}]
[{"$f":"AAMC_Raw_Data_for_FY22[[#This Row],[Source]]&AAMC_Raw_Data_for_FY22[[#This Row],[Type]]&AAMC_Raw_Data_for_FY22[[#This Row],[School Subset]]&AAMC_Raw_Data_for_FY22[[#This Row],[Rank]]&AAMC_Raw_Data_for_FY22[[#This Row],[Degree]]&AAMC_Raw_Data_for_FY22[[#This Row],[Department / Specialty]]&\"L\"","v":"AAMCAcademicPrivateAssistantMDCardiology: Invasive Interventional-Med.L"},"Cardiology: Invasive Interventional-Med.",4,"AAMC","Academic","Private","Assistant","MD","2021-2022",331368,{"$f":"(((AAMC_Raw_Data_for_FY22[[#This Row],[Median]]-AAMC_Raw_Data_for_FY22[[#This Row],[25th]])/25)*5) + AAMC_Raw_Data_for_FY22[[#This Row],[25th]]","v":348119.4},{"$f":"(((AAMC_Raw_Data_for_FY22[[#This Row],[Median]]-AAMC_Raw_Data_for_FY22[[#This Row],[25th]])/25)*10) + AAMC_Raw_Data_for_FY22[[#This Row],[25th]]","v":364870.8},{"$f":"(((AAMC_Raw_Data_for_FY22[[#This Row],[Median]]-AAMC_Raw_Data_for_FY22[[#This Row],[25th]])/25)*15) + AAMC_Raw_Data_for_FY22[[#This Row],[25th]]","v":381622.2},{"$f":"(((AAMC_Raw_Data_for_FY22[[#This Row],[Median]]-AAMC_Raw_Data_for_FY22[[#This Row],[25th]])/25)*20) + AAMC_Raw_Data_for_FY22[[#This Row],[25th]]","v":398373.6},415125,{"$f":"(((AAMC_Raw_Data_for_FY22[[#This Row],[75th]]-AAMC_Raw_Data_for_FY22[[#This Row],[Median]])/25)*5) + AAMC_Raw_Data_for_FY22[[#This Row],[Median]]","v":440793.59999999998},{"$f":"(((AAMC_Raw_Data_for_FY22[[#This Row],[75th]]-AAMC_Raw_Data_for_FY22[[#This Row],[Median]])/25)*10) + AAMC_Raw_Data_for_FY22[[#This Row],[Median]]","v":466462.2},{"$f":"(((AAMC_Raw_Data_for_FY22[[#This Row],[75th]]-AAMC_Raw_Data_for_FY22[[#This Row],[Median]])/25)*15) + AAMC_Raw_Data_for_FY22[[#This Row],[Median]]","v":492130.8},{"$f":"(((AAMC_Raw_Data_for_FY22[[#This Row],[75th]]-AAMC_Raw_Data_for_FY22[[#This Row],[Median]])/25)*20) + AAMC_Raw_Data_for_FY22[[#This Row],[Median]]","v":517799.4},543468,{"$f":"(((AAMC_Raw_Data_for_FY22[[#This Row],[75th]]-AAMC_Raw_Data_for_FY22[[#This Row],[Median]])/25)*30) + AAMC_Raw_Data_for_FY22[[#This Row],[Median]]","v":569136.6},{"$f":"(((AAMC_Raw_Data_for_FY22[[#This Row],[75th]]-AAMC_Raw_Data_for_FY22[[#This Row],[Median]])/25)*35) + AAMC_Raw_Data_for_FY22[[#This Row],[Median]]","v":594805.19999999995},{"$f":"(((AAMC_Raw_Data_for_FY22[[#This Row],[75th]]-AAMC_Raw_Data_for_FY22[[#This Row],[Median]])/25)*40) + AAMC_Raw_Data_for_FY22[[#This Row],[Median]]","v":620473.80000000005}]
[{"$f":"AAMC_Raw_Data_for_FY22[[#This Row],[Source]]&AAMC_Raw_Data_for_FY22[[#This Row],[Type]]&AAMC_Raw_Data_for_FY22[[#This Row],[School Subset]]&AAMC_Raw_Data_for_FY22[[#This Row],[Rank]]&AAMC_Raw_Data_for_FY22[[#This Row],[Degree]]&AAMC_Raw_Data_for_FY22[[#This Row],[Department / Specialty]]&\"L\"","v":"AAMCAcademicPrivateAssociateMDCardiology: Invasive Interventional-Med.L"},"Cardiology: Invasive Interventional-Med.",3,"AAMC","Academic","Private","Associate","MD","2021-2022",429195,{"$f":"(((AAMC_Raw_Data_for_FY22[[#This Row],[Median]]-AAMC_Raw_Data_for_FY22[[#This Row],[25th]])/25)*5) + AAMC_Raw_Data_for_FY22[[#This Row],[25th]]","v":442979.6},{"$f":"(((AAMC_Raw_Data_for_FY22[[#This Row],[Median]]-AAMC_Raw_Data_for_FY22[[#This Row],[25th]])/25)*10) + AAMC_Raw_Data_for_FY22[[#This Row],[25th]]","v":456764.2},{"$f":"(((AAMC_Raw_Data_for_FY22[[#This Row],[Median]]-AAMC_Raw_Data_for_FY22[[#This Row],[25th]])/25)*15) + AAMC_Raw_Data_for_FY22[[#This Row],[25th]]","v":470548.8},{"$f":"(((AAMC_Raw_Data_for_FY22[[#This Row],[Median]]-AAMC_Raw_Data_for_FY22[[#This Row],[25th]])/25)*20) + AAMC_Raw_Data_for_FY22[[#This Row],[25th]]","v":484333.4},498118,{"$f":"(((AAMC_Raw_Data_for_FY22[[#This Row],[75th]]-AAMC_Raw_Data_for_FY22[[#This Row],[Median]])/25)*5) + AAMC_Raw_Data_for_FY22[[#This Row],[Median]]","v":521632.8},{"$f":"(((AAMC_Raw_Data_for_FY22[[#This Row],[75th]]-AAMC_Raw_Data_for_FY22[[#This Row],[Median]])/25)*10) + AAMC_Raw_Data_for_FY22[[#This Row],[Median]]","v":545147.6},{"$f":"(((AAMC_Raw_Data_for_FY22[[#This Row],[75th]]-AAMC_Raw_Data_for_FY22[[#This Row],[Median]])/25)*15) + AAMC_Raw_Data_for_FY22[[#This Row],[Median]]","v":568662.4},{"$f":"(((AAMC_Raw_Data_for_FY22[[#This Row],[75th]]-AAMC_Raw_Data_for_FY22[[#This Row],[Median]])/25)*20) + AAMC_Raw_Data_for_FY22[[#This Row],[Median]]","v":592177.19999999995},615692,{"$f":"(((AAMC_Raw_Data_for_FY22[[#This Row],[75th]]-AAMC_Raw_Data_for_FY22[[#This Row],[Median]])/25)*30) + AAMC_Raw_Data_for_FY22[[#This Row],[Median]]","v":639206.80000000005},{"$f":"(((AAMC_Raw_Data_for_FY22[[#This Row],[75th]]-AAMC_Raw_Data_for_FY22[[#This Row],[Median]])/25)*35) + AAMC_Raw_Data_for_FY22[[#This Row],[Median]]","v":662721.6},{"$f":"(((AAMC_Raw_Data_for_FY22[[#This Row],[75th]]-AAMC_Raw_Data_for_FY22[[#This Row],[Median]])/25)*40) + AAMC_Raw_Data_for_FY22[[#This Row],[Median]]","v":686236.4}]
[{"$f":"AAMC_Raw_Data_for_FY22[[#This Row],[Source]]&AAMC_Raw_Data_for_FY22[[#This Row],[Type]]&AAMC_Raw_Data_for_FY22[[#This Row],[School Subset]]&AAMC_Raw_Data_for_FY22[[#This Row],[Rank]]&AAMC_Raw_Data_for_FY22[[#This Row],[Degree]]&AAMC_Raw_Data_for_FY22[[#This Row],[Department / Specialty]]&\"L\"","v":"AAMCAcademicPrivateProfessorMDCardiology: Invasive Interventional-Med.L"},"Cardiology: Invasive Interventional-Med.",2,"AAMC","Academic","Private","Professor","MD","2021-2022",422986,{"$f":"(((AAMC_Raw_Data_for_FY22[[#This Row],[Median]]-AAMC_Raw_Data_for_FY22[[#This Row],[25th]])/25)*5) + AAMC_Raw_Data_for_FY22[[#This Row],[25th]]","v":439732.8},{"$f":"(((AAMC_Raw_Data_for_FY22[[#This Row],[Median]]-AAMC_Raw_Data_for_FY22[[#This Row],[25th]])/25)*10) + AAMC_Raw_Data_for_FY22[[#This Row],[25th]]","v":456479.6},{"$f":"(((AAMC_Raw_Data_for_FY22[[#This Row],[Median]]-AAMC_Raw_Data_for_FY22[[#This Row],[25th]])/25)*15) + AAMC_Raw_Data_for_FY22[[#This Row],[25th]]","v":473226.4},{"$f":"(((AAMC_Raw_Data_for_FY22[[#This Row],[Median]]-AAMC_Raw_Data_for_FY22[[#This Row],[25th]])/25)*20) + AAMC_Raw_Data_for_FY22[[#This Row],[25th]]","v":489973.2},506720,{"$f":"(((AAMC_Raw_Data_for_FY22[[#This Row],[75th]]-AAMC_Raw_Data_for_FY22[[#This Row],[Median]])/25)*5) + AAMC_Raw_Data_for_FY22[[#This Row],[Median]]","v":535146},{"$f":"(((AAMC_Raw_Data_for_FY22[[#This Row],[75th]]-AAMC_Raw_Data_for_FY22[[#This Row],[Median]])/25)*10) + AAMC_Raw_Data_for_FY22[[#This Row],[Median]]","v":563572},{"$f":"(((AAMC_Raw_Data_for_FY22[[#This Row],[75th]]-AAMC_Raw_Data_for_FY22[[#This Row],[Median]])/25)*15) + AAMC_Raw_Data_for_FY22[[#This Row],[Median]]","v":591998},{"$f":"(((AAMC_Raw_Data_for_FY22[[#This Row],[75th]]-AAMC_Raw_Data_for_FY22[[#This Row],[Median]])/25)*20) + AAMC_Raw_Data_for_FY22[[#This Row],[Median]]","v":620424},648850,{"$f":"(((AAMC_Raw_Data_for_FY22[[#This Row],[75th]]-AAMC_Raw_Data_for_FY22[[#This Row],[Median]])/25)*30) + AAMC_Raw_Data_for_FY22[[#This Row],[Median]]","v":677276},{"$f":"(((AAMC_Raw_Data_for_FY22[[#This Row],[75th]]-AAMC_Raw_Data_for_FY22[[#This Row],[Median]])/25)*35) + AAMC_Raw_Data_for_FY22[[#This Row],[Median]]","v":705702},{"$f":"(((AAMC_Raw_Data_for_FY22[[#This Row],[75th]]-AAMC_Raw_Data_for_FY22[[#This Row],[Median]])/25)*40) + AAMC_Raw_Data_for_FY22[[#This Row],[Median]]","v":734128}]
[{"$f":"AAMC_Raw_Data_for_FY22[[#This Row],[Source]]&AAMC_Raw_Data_for_FY22[[#This Row],[Type]]&AAMC_Raw_Data_for_FY22[[#This Row],[School Subset]]&AAMC_Raw_Data_for_FY22[[#This Row],[Rank]]&AAMC_Raw_Data_for_FY22[[#This Row],[Degree]]&AAMC_Raw_Data_for_FY22[[#This Row],[Department / Specialty]]&\"L\"","v":"AAMCAcademicPrivateChiefMDCardiology: Invasive Interventional-Med.L"},"Cardiology: Invasive Interventional-Med.",6,"AAMC","Academic","Private","Chief","MD","2021-2022",582694,{"$f":"(((AAMC_Raw_Data_for_FY22[[#This Row],[Median]]-AAMC_Raw_Data_for_FY22[[#This Row],[25th]])/25)*5) + AAMC_Raw_Data_for_FY22[[#This Row],[25th]]","v":609768.80000000005},{"$f":"(((AAMC_Raw_Data_for_FY22[[#This Row],[Median]]-AAMC_Raw_Data_for_FY22[[#This Row],[25th]])/25)*10) + AAMC_Raw_Data_for_FY22[[#This Row],[25th]]","v":636843.6},{"$f":"(((AAMC_Raw_Data_for_FY22[[#This Row],[Median]]-AAMC_Raw_Data_for_FY22[[#This Row],[25th]])/25)*15) + AAMC_Raw_Data_for_FY22[[#This Row],[25th]]","v":663918.4},{"$f":"(((AAMC_Raw_Data_for_FY22[[#This Row],[Median]]-AAMC_Raw_Data_for_FY22[[#This Row],[25th]])/25)*20) + AAMC_Raw_Data_for_FY22[[#This Row],[25th]]","v":690993.2},718068,{"$f":"(((AAMC_Raw_Data_for_FY22[[#This Row],[75th]]-AAMC_Raw_Data_for_FY22[[#This Row],[Median]])/25)*5) + AAMC_Raw_Data_for_FY22[[#This Row],[Median]]","v":741789.8},{"$f":"(((AAMC_Raw_Data_for_FY22[[#This Row],[75th]]-AAMC_Raw_Data_for_FY22[[#This Row],[Median]])/25)*10) + AAMC_Raw_Data_for_FY22[[#This Row],[Median]]","v":765511.6},{"$f":"(((AAMC_Raw_Data_for_FY22[[#This Row],[75th]]-AAMC_Raw_Data_for_FY22[[#This Row],[Median]])/25)*15) + AAMC_Raw_Data_for_FY22[[#This Row],[Median]]","v":789233.4},{"$f":"(((AAMC_Raw_Data_for_FY22[[#This Row],[75th]]-AAMC_Raw_Data_for_FY22[[#This Row],[Median]])/25)*20) + AAMC_Raw_Data_for_FY22[[#This Row],[Median]]","v":812955.2},836677,{"$f":"(((AAMC_Raw_Data_for_FY22[[#This Row],[75th]]-AAMC_Raw_Data_for_FY22[[#This Row],[Median]])/25)*30) + AAMC_Raw_Data_for_FY22[[#This Row],[Median]]","v":860398.8},{"$f":"(((AAMC_Raw_Data_for_FY22[[#This Row],[75th]]-AAMC_Raw_Data_for_FY22[[#This Row],[Median]])/25)*35) + AAMC_Raw_Data_for_FY22[[#This Row],[Median]]","v":884120.6},{"$f":"(((AAMC_Raw_Data_for_FY22[[#This Row],[75th]]-AAMC_Raw_Data_for_FY22[[#This Row],[Median]])/25)*40) + AAMC_Raw_Data_for_FY22[[#This Row],[Median]]","v":907842.4}]
[{"$f":"AAMC_Raw_Data_for_FY22[[#This Row],[Source]]&AAMC_Raw_Data_for_FY22[[#This Row],[Type]]&AAMC_Raw_Data_for_FY22[[#This Row],[School Subset]]&AAMC_Raw_Data_for_FY22[[#This Row],[Rank]]&AAMC_Raw_Data_for_FY22[[#This Row],[Degree]]&AAMC_Raw_Data_for_FY22[[#This Row],[Department / Specialty]]&\"L\"","v":"AAMCAcademicPrivateChairMDCardiology: Invasive Interventional-Med.L"},"Cardiology: Invasive Interventional-Med.",1,"AAMC","Academic","Private","Chair","MD","2021-2022",null,{"$f":"(((AAMC_Raw_Data_for_FY22[[#This Row],[Median]]-AAMC_Raw_Data_for_FY22[[#This Row],[25th]])/25)*5) + AAMC_Raw_Data_for_FY22[[#This Row],[25th]]","v":0},{"$f":"(((AAMC_Raw_Data_for_FY22[[#This Row],[Median]]-AAMC_Raw_Data_for_FY22[[#This Row],[25th]])/25)*10) + AAMC_Raw_Data_for_FY22[[#This Row],[25th]]","v":0},{"$f":"(((AAMC_Raw_Data_for_FY22[[#This Row],[Median]]-AAMC_Raw_Data_for_FY22[[#This Row],[25th]])/25)*15) + AAMC_Raw_Data_for_FY22[[#This Row],[25th]]","v":0},{"$f":"(((AAMC_Raw_Data_for_FY22[[#This Row],[Median]]-AAMC_Raw_Data_for_FY22[[#This Row],[25th]])/25)*20) + AAMC_Raw_Data_for_FY22[[#This Row],[25th]]","v":0},null,{"$f":"(((AAMC_Raw_Data_for_FY22[[#This Row],[75th]]-AAMC_Raw_Data_for_FY22[[#This Row],[Median]])/25)*5) + AAMC_Raw_Data_for_FY22[[#This Row],[Median]]","v":0},{"$f":"(((AAMC_Raw_Data_for_FY22[[#This Row],[75th]]-AAMC_Raw_Data_for_FY22[[#This Row],[Median]])/25)*10) + AAMC_Raw_Data_for_FY22[[#This Row],[Median]]","v":0},{"$f":"(((AAMC_Raw_Data_for_FY22[[#This Row],[75th]]-AAMC_Raw_Data_for_FY22[[#This Row],[Median]])/25)*15) + AAMC_Raw_Data_for_FY22[[#This Row],[Median]]","v":0},{"$f":"(((AAMC_Raw_Data_for_FY22[[#This Row],[75th]]-AAMC_Raw_Data_for_FY22[[#This Row],[Median]])/25)*20) + AAMC_Raw_Data_for_FY22[[#This Row],[Median]]","v":0},null,{"$f":"(((AAMC_Raw_Data_for_FY22[[#This Row],[75th]]-AAMC_Raw_Data_for_FY22[[#This Row],[Median]])/25)*30) + AAMC_Raw_Data_for_FY22[[#This Row],[Median]]","v":0},{"$f":"(((AAMC_Raw_Data_for_FY22[[#This Row],[75th]]-AAMC_Raw_Data_for_FY22[[#This Row],[Median]])/25)*35) + AAMC_Raw_Data_for_FY22[[#This Row],[Median]]","v":0},{"$f":"(((AAMC_Raw_Data_for_FY22[[#This Row],[75th]]-AAMC_Raw_Data_for_FY22[[#This Row],[Median]])/25)*40) + AAMC_Raw_Data_for_FY22[[#This Row],[Median]]","v":0}]
[{"$f":"AAMC_Raw_Data_for_FY22[[#This Row],[Source]]&AAMC_Raw_Data_for_FY22[[#This Row],[Type]]&AAMC_Raw_Data_for_FY22[[#This Row],[School Subset]]&AAMC_Raw_Data_for_FY22[[#This Row],[Rank]]&AAMC_Raw_Data_for_FY22[[#This Row],[Degree]]&AAMC_Raw_Data_for_FY22[[#This Row],[Department / Specialty]]&\"L\"","v":"AAMCAcademicPrivateInstructorMDCardiology: Invasive Non-interventional-Med.L"},"Cardiology: Invasive Non-interventional-Med.",5,"AAMC","Academic","Private","Instructor","MD","2021-2022",null,{"$f":"(((AAMC_Raw_Data_for_FY22[[#This Row],[Median]]-AAMC_Raw_Data_for_FY22[[#This Row],[25th]])/25)*5) + AAMC_Raw_Data_for_FY22[[#This Row],[25th]]","v":0},{"$f":"(((AAMC_Raw_Data_for_FY22[[#This Row],[Median]]-AAMC_Raw_Data_for_FY22[[#This Row],[25th]])/25)*10) + AAMC_Raw_Data_for_FY22[[#This Row],[25th]]","v":0},{"$f":"(((AAMC_Raw_Data_for_FY22[[#This Row],[Median]]-AAMC_Raw_Data_for_FY22[[#This Row],[25th]])/25)*15) + AAMC_Raw_Data_for_FY22[[#This Row],[25th]]","v":0},{"$f":"(((AAMC_Raw_Data_for_FY22[[#This Row],[Median]]-AAMC_Raw_Data_for_FY22[[#This Row],[25th]])/25)*20) + AAMC_Raw_Data_for_FY22[[#This Row],[25th]]","v":0},null,{"$f":"(((AAMC_Raw_Data_for_FY22[[#This Row],[75th]]-AAMC_Raw_Data_for_FY22[[#This Row],[Median]])/25)*5) + AAMC_Raw_Data_for_FY22[[#This Row],[Median]]","v":0},{"$f":"(((AAMC_Raw_Data_for_FY22[[#This Row],[75th]]-AAMC_Raw_Data_for_FY22[[#This Row],[Median]])/25)*10) + AAMC_Raw_Data_for_FY22[[#This Row],[Median]]","v":0},{"$f":"(((AAMC_Raw_Data_for_FY22[[#This Row],[75th]]-AAMC_Raw_Data_for_FY22[[#This Row],[Median]])/25)*15) + AAMC_Raw_Data_for_FY22[[#This Row],[Median]]","v":0},{"$f":"(((AAMC_Raw_Data_for_FY22[[#This Row],[75th]]-AAMC_Raw_Data_for_FY22[[#This Row],[Median]])/25)*20) + AAMC_Raw_Data_for_FY22[[#This Row],[Median]]","v":0},null,{"$f":"(((AAMC_Raw_Data_for_FY22[[#This Row],[75th]]-AAMC_Raw_Data_for_FY22[[#This Row],[Median]])/25)*30) + AAMC_Raw_Data_for_FY22[[#This Row],[Median]]","v":0},{"$f":"(((AAMC_Raw_Data_for_FY22[[#This Row],[75th]]-AAMC_Raw_Data_for_FY22[[#This Row],[Median]])/25)*35) + AAMC_Raw_Data_for_FY22[[#This Row],[Median]]","v":0},{"$f":"(((AAMC_Raw_Data_for_FY22[[#This Row],[75th]]-AAMC_Raw_Data_for_FY22[[#This Row],[Median]])/25)*40) + AAMC_Raw_Data_for_FY22[[#This Row],[Median]]","v":0}]
[{"$f":"AAMC_Raw_Data_for_FY22[[#This Row],[Source]]&AAMC_Raw_Data_for_FY22[[#This Row],[Type]]&AAMC_Raw_Data_for_FY22[[#This Row],[School Subset]]&AAMC_Raw_Data_for_FY22[[#This Row],[Rank]]&AAMC_Raw_Data_for_FY22[[#This Row],[Degree]]&AAMC_Raw_Data_for_FY22[[#This Row],[Department / Specialty]]&\"L\"","v":"AAMCAcademicPrivateAssistantMDCardiology: Invasive Non-interventional-Med.L"},"Cardiology: Invasive Non-interventional-Med.",4,"AAMC","Academic","Private","Assistant","MD","2021-2022",330200,{"$f":"(((AAMC_Raw_Data_for_FY22[[#This Row],[Median]]-AAMC_Raw_Data_for_FY22[[#This Row],[25th]])/25)*5) + AAMC_Raw_Data_for_FY22[[#This Row],[25th]]","v":344160},{"$f":"(((AAMC_Raw_Data_for_FY22[[#This Row],[Median]]-AAMC_Raw_Data_for_FY22[[#This Row],[25th]])/25)*10) + AAMC_Raw_Data_for_FY22[[#This Row],[25th]]","v":358120},{"$f":"(((AAMC_Raw_Data_for_FY22[[#This Row],[Median]]-AAMC_Raw_Data_for_FY22[[#This Row],[25th]])/25)*15) + AAMC_Raw_Data_for_FY22[[#This Row],[25th]]","v":372080},{"$f":"(((AAMC_Raw_Data_for_FY22[[#This Row],[Median]]-AAMC_Raw_Data_for_FY22[[#This Row],[25th]])/25)*20) + AAMC_Raw_Data_for_FY22[[#This Row],[25th]]","v":386040},400000,{"$f":"(((AAMC_Raw_Data_for_FY22[[#This Row],[75th]]-AAMC_Raw_Data_for_FY22[[#This Row],[Median]])/25)*5) + AAMC_Raw_Data_for_FY22[[#This Row],[Median]]","v":427329.4},{"$f":"(((AAMC_Raw_Data_for_FY22[[#This Row],[75th]]-AAMC_Raw_Data_for_FY22[[#This Row],[Median]])/25)*10) + AAMC_Raw_Data_for_FY22[[#This Row],[Median]]","v":454658.8},{"$f":"(((AAMC_Raw_Data_for_FY22[[#This Row],[75th]]-AAMC_Raw_Data_for_FY22[[#This Row],[Median]])/25)*15) + AAMC_Raw_Data_for_FY22[[#This Row],[Median]]","v":481988.2},{"$f":"(((AAMC_Raw_Data_for_FY22[[#This Row],[75th]]-AAMC_Raw_Data_for_FY22[[#This Row],[Median]])/25)*20) + AAMC_Raw_Data_for_FY22[[#This Row],[Median]]","v":509317.6},536647,{"$f":"(((AAMC_Raw_Data_for_FY22[[#This Row],[75th]]-AAMC_Raw_Data_for_FY22[[#This Row],[Median]])/25)*30) + AAMC_Raw_Data_for_FY22[[#This Row],[Median]]","v":563976.4},{"$f":"(((AAMC_Raw_Data_for_FY22[[#This Row],[75th]]-AAMC_Raw_Data_for_FY22[[#This Row],[Median]])/25)*35) + AAMC_Raw_Data_for_FY22[[#This Row],[Median]]","v":591305.80000000005},{"$f":"(((AAMC_Raw_Data_for_FY22[[#This Row],[75th]]-AAMC_Raw_Data_for_FY22[[#This Row],[Median]])/25)*40) + AAMC_Raw_Data_for_FY22[[#This Row],[Median]]","v":618635.19999999995}]
[{"$f":"AAMC_Raw_Data_for_FY22[[#This Row],[Source]]&AAMC_Raw_Data_for_FY22[[#This Row],[Type]]&AAMC_Raw_Data_for_FY22[[#This Row],[School Subset]]&AAMC_Raw_Data_for_FY22[[#This Row],[Rank]]&AAMC_Raw_Data_for_FY22[[#This Row],[Degree]]&AAMC_Raw_Data_for_FY22[[#This Row],[Department / Specialty]]&\"L\"","v":"AAMCAcademicPrivateAssociateMDCardiology: Invasive Non-interventional-Med.L"},"Cardiology: Invasive Non-interventional-Med.",3,"AAMC","Academic","Private","Associate","MD","2021-2022",350000,{"$f":"(((AAMC_Raw_Data_for_FY22[[#This Row],[Median]]-AAMC_Raw_Data_for_FY22[[#This Row],[25th]])/25)*5) + AAMC_Raw_Data_for_FY22[[#This Row],[25th]]","v":366882.6},{"$f":"(((AAMC_Raw_Data_for_FY22[[#This Row],[Median]]-AAMC_Raw_Data_for_FY22[[#This Row],[25th]])/25)*10) + AAMC_Raw_Data_for_FY22[[#This Row],[25th]]","v":383765.2},{"$f":"(((AAMC_Raw_Data_for_FY22[[#This Row],[Median]]-AAMC_Raw_Data_for_FY22[[#This Row],[25th]])/25)*15) + AAMC_Raw_Data_for_FY22[[#This Row],[25th]]","v":400647.8},{"$f":"(((AAMC_Raw_Data_for_FY22[[#This Row],[Median]]-AAMC_Raw_Data_for_FY22[[#This Row],[25th]])/25)*20) + AAMC_Raw_Data_for_FY22[[#This Row],[25th]]","v":417530.4},434413,{"$f":"(((AAMC_Raw_Data_for_FY22[[#This Row],[75th]]-AAMC_Raw_Data_for_FY22[[#This Row],[Median]])/25)*5) + AAMC_Raw_Data_for_FY22[[#This Row],[Median]]","v":460691.4},{"$f":"(((AAMC_Raw_Data_for_FY22[[#This Row],[75th]]-AAMC_Raw_Data_for_FY22[[#This Row],[Median]])/25)*10) + AAMC_Raw_Data_for_FY22[[#This Row],[Median]]","v":486969.8},{"$f":"(((AAMC_Raw_Data_for_FY22[[#This Row],[75th]]-AAMC_Raw_Data_for_FY22[[#This Row],[Median]])/25)*15) + AAMC_Raw_Data_for_FY22[[#This Row],[Median]]","v":513248.2},{"$f":"(((AAMC_Raw_Data_for_FY22[[#This Row],[75th]]-AAMC_Raw_Data_for_FY22[[#This Row],[Median]])/25)*20) + AAMC_Raw_Data_for_FY22[[#This Row],[Median]]","v":539526.6},565805,{"$f":"(((AAMC_Raw_Data_for_FY22[[#This Row],[75th]]-AAMC_Raw_Data_for_FY22[[#This Row],[Median]])/25)*30) + AAMC_Raw_Data_for_FY22[[#This Row],[Median]]","v":592083.4},{"$f":"(((AAMC_Raw_Data_for_FY22[[#This Row],[75th]]-AAMC_Raw_Data_for_FY22[[#This Row],[Median]])/25)*35) + AAMC_Raw_Data_for_FY22[[#This Row],[Median]]","v":618361.80000000005},{"$f":"(((AAMC_Raw_Data_for_FY22[[#This Row],[75th]]-AAMC_Raw_Data_for_FY22[[#This Row],[Median]])/25)*40) + AAMC_Raw_Data_for_FY22[[#This Row],[Median]]","v":644640.19999999995}]
[{"$f":"AAMC_Raw_Data_for_FY22[[#This Row],[Source]]&AAMC_Raw_Data_for_FY22[[#This Row],[Type]]&AAMC_Raw_Data_for_FY22[[#This Row],[School Subset]]&AAMC_Raw_Data_for_FY22[[#This Row],[Rank]]&AAMC_Raw_Data_for_FY22[[#This Row],[Degree]]&AAMC_Raw_Data_for_FY22[[#This Row],[Department / Specialty]]&\"L\"","v":"AAMCAcademicPrivateProfessorMDCardiology: Invasive Non-interventional-Med.L"},"Cardiology: Invasive Non-interventional-Med.",2,"AAMC","Academic","Private","Professor","MD","2021-2022",351316,{"$f":"(((AAMC_Raw_Data_for_FY22[[#This Row],[Median]]-AAMC_Raw_Data_for_FY22[[#This Row],[25th]])/25)*5) + AAMC_Raw_Data_for_FY22[[#This Row],[25th]]","v":372829},{"$f":"(((AAMC_Raw_Data_for_FY22[[#This Row],[Median]]-AAMC_Raw_Data_for_FY22[[#This Row],[25th]])/25)*10) + AAMC_Raw_Data_for_FY22[[#This Row],[25th]]","v":394342},{"$f":"(((AAMC_Raw_Data_for_FY22[[#This Row],[Median]]-AAMC_Raw_Data_for_FY22[[#This Row],[25th]])/25)*15) + AAMC_Raw_Data_for_FY22[[#This Row],[25th]]","v":415855},{"$f":"(((AAMC_Raw_Data_for_FY22[[#This Row],[Median]]-AAMC_Raw_Data_for_FY22[[#This Row],[25th]])/25)*20) + AAMC_Raw_Data_for_FY22[[#This Row],[25th]]","v":437368},458881,{"$f":"(((AAMC_Raw_Data_for_FY22[[#This Row],[75th]]-AAMC_Raw_Data_for_FY22[[#This Row],[Median]])/25)*5) + AAMC_Raw_Data_for_FY22[[#This Row],[Median]]","v":477376.8},{"$f":"(((AAMC_Raw_Data_for_FY22[[#This Row],[75th]]-AAMC_Raw_Data_for_FY22[[#This Row],[Median]])/25)*10) + AAMC_Raw_Data_for_FY22[[#This Row],[Median]]","v":495872.6},{"$f":"(((AAMC_Raw_Data_for_FY22[[#This Row],[75th]]-AAMC_Raw_Data_for_FY22[[#This Row],[Median]])/25)*15) + AAMC_Raw_Data_for_FY22[[#This Row],[Median]]","v":514368.4},{"$f":"(((AAMC_Raw_Data_for_FY22[[#This Row],[75th]]-AAMC_Raw_Data_for_FY22[[#This Row],[Median]])/25)*20) + AAMC_Raw_Data_for_FY22[[#This Row],[Median]]","v":532864.19999999995},551360,{"$f":"(((AAMC_Raw_Data_for_FY22[[#This Row],[75th]]-AAMC_Raw_Data_for_FY22[[#This Row],[Median]])/25)*30) + AAMC_Raw_Data_for_FY22[[#This Row],[Median]]","v":569855.80000000005},{"$f":"(((AAMC_Raw_Data_for_FY22[[#This Row],[75th]]-AAMC_Raw_Data_for_FY22[[#This Row],[Median]])/25)*35) + AAMC_Raw_Data_for_FY22[[#This Row],[Median]]","v":588351.6},{"$f":"(((AAMC_Raw_Data_for_FY22[[#This Row],[75th]]-AAMC_Raw_Data_for_FY22[[#This Row],[Median]])/25)*40) + AAMC_Raw_Data_for_FY22[[#This Row],[Median]]","v":606847.4}]
[{"$f":"AAMC_Raw_Data_for_FY22[[#This Row],[Source]]&AAMC_Raw_Data_for_FY22[[#This Row],[Type]]&AAMC_Raw_Data_for_FY22[[#This Row],[School Subset]]&AAMC_Raw_Data_for_FY22[[#This Row],[Rank]]&AAMC_Raw_Data_for_FY22[[#This Row],[Degree]]&AAMC_Raw_Data_for_FY22[[#This Row],[Department / Specialty]]&\"L\"","v":"AAMCAcademicPrivateChiefMDCardiology: Invasive Non-interventional-Med.L"},"Cardiology: Invasive Non-interventional-Med.",6,"AAMC","Academic","Private","Chief","MD","2021-2022",null,{"$f":"(((AAMC_Raw_Data_for_FY22[[#This Row],[Median]]-AAMC_Raw_Data_for_FY22[[#This Row],[25th]])/25)*5) + AAMC_Raw_Data_for_FY22[[#This Row],[25th]]","v":0},{"$f":"(((AAMC_Raw_Data_for_FY22[[#This Row],[Median]]-AAMC_Raw_Data_for_FY22[[#This Row],[25th]])/25)*10) + AAMC_Raw_Data_for_FY22[[#This Row],[25th]]","v":0},{"$f":"(((AAMC_Raw_Data_for_FY22[[#This Row],[Median]]-AAMC_Raw_Data_for_FY22[[#This Row],[25th]])/25)*15) + AAMC_Raw_Data_for_FY22[[#This Row],[25th]]","v":0},{"$f":"(((AAMC_Raw_Data_for_FY22[[#This Row],[Median]]-AAMC_Raw_Data_for_FY22[[#This Row],[25th]])/25)*20) + AAMC_Raw_Data_for_FY22[[#This Row],[25th]]","v":0},null,{"$f":"(((AAMC_Raw_Data_for_FY22[[#This Row],[75th]]-AAMC_Raw_Data_for_FY22[[#This Row],[Median]])/25)*5) + AAMC_Raw_Data_for_FY22[[#This Row],[Median]]","v":0},{"$f":"(((AAMC_Raw_Data_for_FY22[[#This Row],[75th]]-AAMC_Raw_Data_for_FY22[[#This Row],[Median]])/25)*10) + AAMC_Raw_Data_for_FY22[[#This Row],[Median]]","v":0},{"$f":"(((AAMC_Raw_Data_for_FY22[[#This Row],[75th]]-AAMC_Raw_Data_for_FY22[[#This Row],[Median]])/25)*15) + AAMC_Raw_Data_for_FY22[[#This Row],[Median]]","v":0},{"$f":"(((AAMC_Raw_Data_for_FY22[[#This Row],[75th]]-AAMC_Raw_Data_for_FY22[[#This Row],[Median]])/25)*20) + AAMC_Raw_Data_for_FY22[[#This Row],[Median]]","v":0},null,{"$f":"(((AAMC_Raw_Data_for_FY22[[#This Row],[75th]]-AAMC_Raw_Data_for_FY22[[#This Row],[Median]])/25)*30) + AAMC_Raw_Data_for_FY22[[#This Row],[Median]]","v":0},{"$f":"(((AAMC_Raw_Data_for_FY22[[#This Row],[75th]]-AAMC_Raw_Data_for_FY22[[#This Row],[Median]])/25)*35) + AAMC_Raw_Data_for_FY22[[#This Row],[Median]]","v":0},{"$f":"(((AAMC_Raw_Data_for_FY22[[#This Row],[75th]]-AAMC_Raw_Data_for_FY22[[#This Row],[Median]])/25)*40) + AAMC_Raw_Data_for_FY22[[#This Row],[Median]]","v":0}]
[{"$f":"AAMC_Raw_Data_for_FY22[[#This Row],[Source]]&AAMC_Raw_Data_for_FY22[[#This Row],[Type]]&AAMC_Raw_Data_for_FY22[[#This Row],[School Subset]]&AAMC_Raw_Data_for_FY22[[#This Row],[Rank]]&AAMC_Raw_Data_for_FY22[[#This Row],[Degree]]&AAMC_Raw_Data_for_FY22[[#This Row],[Department / Specialty]]&\"L\"","v":"AAMCAcademicPrivateInstructorMDCardiology: Non-invasive-Med.L"},"Cardiology: Non-invasive-Med.",5,"AAMC","Academic","Private","Instructor","MD","2021-2022",151000,{"$f":"(((AAMC_Raw_Data_for_FY22[[#This Row],[Median]]-AAMC_Raw_Data_for_FY22[[#This Row],[25th]])/25)*5) + AAMC_Raw_Data_for_FY22[[#This Row],[25th]]","v":162030.79999999999},{"$f":"(((AAMC_Raw_Data_for_FY22[[#This Row],[Median]]-AAMC_Raw_Data_for_FY22[[#This Row],[25th]])/25)*10) + AAMC_Raw_Data_for_FY22[[#This Row],[25th]]","v":173061.6},{"$f":"(((AAMC_Raw_Data_for_FY22[[#This Row],[Median]]-AAMC_Raw_Data_for_FY22[[#This Row],[25th]])/25)*15) + AAMC_Raw_Data_for_FY22[[#This Row],[25th]]","v":184092.4},{"$f":"(((AAMC_Raw_Data_for_FY22[[#This Row],[Median]]-AAMC_Raw_Data_for_FY22[[#This Row],[25th]])/25)*20) + AAMC_Raw_Data_for_FY22[[#This Row],[25th]]","v":195123.20000000001},206154,{"$f":"(((AAMC_Raw_Data_for_FY22[[#This Row],[75th]]-AAMC_Raw_Data_for_FY22[[#This Row],[Median]])/25)*5) + AAMC_Raw_Data_for_FY22[[#This Row],[Median]]","v":223323.2},{"$f":"(((AAMC_Raw_Data_for_FY22[[#This Row],[75th]]-AAMC_Raw_Data_for_FY22[[#This Row],[Median]])/25)*10) + AAMC_Raw_Data_for_FY22[[#This Row],[Median]]","v":240492.4},{"$f":"(((AAMC_Raw_Data_for_FY22[[#This Row],[75th]]-AAMC_Raw_Data_for_FY22[[#This Row],[Median]])/25)*15) + AAMC_Raw_Data_for_FY22[[#This Row],[Median]]","v":257661.6},{"$f":"(((AAMC_Raw_Data_for_FY22[[#This Row],[75th]]-AAMC_Raw_Data_for_FY22[[#This Row],[Median]])/25)*20) + AAMC_Raw_Data_for_FY22[[#This Row],[Median]]","v":274830.8},292000,{"$f":"(((AAMC_Raw_Data_for_FY22[[#This Row],[75th]]-AAMC_Raw_Data_for_FY22[[#This Row],[Median]])/25)*30) + AAMC_Raw_Data_for_FY22[[#This Row],[Median]]","v":309169.2},{"$f":"(((AAMC_Raw_Data_for_FY22[[#This Row],[75th]]-AAMC_Raw_Data_for_FY22[[#This Row],[Median]])/25)*35) + AAMC_Raw_Data_for_FY22[[#This Row],[Median]]","v":326338.40000000002},{"$f":"(((AAMC_Raw_Data_for_FY22[[#This Row],[75th]]-AAMC_Raw_Data_for_FY22[[#This Row],[Median]])/25)*40) + AAMC_Raw_Data_for_FY22[[#This Row],[Median]]","v":343507.6}]
[{"$f":"AAMC_Raw_Data_for_FY22[[#This Row],[Source]]&AAMC_Raw_Data_for_FY22[[#This Row],[Type]]&AAMC_Raw_Data_for_FY22[[#This Row],[School Subset]]&AAMC_Raw_Data_for_FY22[[#This Row],[Rank]]&AAMC_Raw_Data_for_FY22[[#This Row],[Degree]]&AAMC_Raw_Data_for_FY22[[#This Row],[Department / Specialty]]&\"L\"","v":"AAMCAcademicPrivateAssistantMDCardiology: Non-invasive-Med.L"},"Cardiology: Non-invasive-Med.",4,"AAMC","Academic","Private","Assistant","MD","2021-2022",284885,{"$f":"(((AAMC_Raw_Data_for_FY22[[#This Row],[Median]]-AAMC_Raw_Data_for_FY22[[#This Row],[25th]])/25)*5) + AAMC_Raw_Data_for_FY22[[#This Row],[25th]]","v":299678.8},{"$f":"(((AAMC_Raw_Data_for_FY22[[#This Row],[Median]]-AAMC_Raw_Data_for_FY22[[#This Row],[25th]])/25)*10) + AAMC_Raw_Data_for_FY22[[#This Row],[25th]]","v":314472.59999999998},{"$f":"(((AAMC_Raw_Data_for_FY22[[#This Row],[Median]]-AAMC_Raw_Data_for_FY22[[#This Row],[25th]])/25)*15) + AAMC_Raw_Data_for_FY22[[#This Row],[25th]]","v":329266.40000000002},{"$f":"(((AAMC_Raw_Data_for_FY22[[#This Row],[Median]]-AAMC_Raw_Data_for_FY22[[#This Row],[25th]])/25)*20) + AAMC_Raw_Data_for_FY22[[#This Row],[25th]]","v":344060.2},358854,{"$f":"(((AAMC_Raw_Data_for_FY22[[#This Row],[75th]]-AAMC_Raw_Data_for_FY22[[#This Row],[Median]])/25)*5) + AAMC_Raw_Data_for_FY22[[#This Row],[Median]]","v":381607},{"$f":"(((AAMC_Raw_Data_for_FY22[[#This Row],[75th]]-AAMC_Raw_Data_for_FY22[[#This Row],[Median]])/25)*10) + AAMC_Raw_Data_for_FY22[[#This Row],[Median]]","v":404360},{"$f":"(((AAMC_Raw_Data_for_FY22[[#This Row],[75th]]-AAMC_Raw_Data_for_FY22[[#This Row],[Median]])/25)*15) + AAMC_Raw_Data_for_FY22[[#This Row],[Median]]","v":427113},{"$f":"(((AAMC_Raw_Data_for_FY22[[#This Row],[75th]]-AAMC_Raw_Data_for_FY22[[#This Row],[Median]])/25)*20) + AAMC_Raw_Data_for_FY22[[#This Row],[Median]]","v":449866},472619,{"$f":"(((AAMC_Raw_Data_for_FY22[[#This Row],[75th]]-AAMC_Raw_Data_for_FY22[[#This Row],[Median]])/25)*30) + AAMC_Raw_Data_for_FY22[[#This Row],[Median]]","v":495372},{"$f":"(((AAMC_Raw_Data_for_FY22[[#This Row],[75th]]-AAMC_Raw_Data_for_FY22[[#This Row],[Median]])/25)*35) + AAMC_Raw_Data_for_FY22[[#This Row],[Median]]","v":518125},{"$f":"(((AAMC_Raw_Data_for_FY22[[#This Row],[75th]]-AAMC_Raw_Data_for_FY22[[#This Row],[Median]])/25)*40) + AAMC_Raw_Data_for_FY22[[#This Row],[Median]]","v":540878}]
[{"$f":"AAMC_Raw_Data_for_FY22[[#This Row],[Source]]&AAMC_Raw_Data_for_FY22[[#This Row],[Type]]&AAMC_Raw_Data_for_FY22[[#This Row],[School Subset]]&AAMC_Raw_Data_for_FY22[[#This Row],[Rank]]&AAMC_Raw_Data_for_FY22[[#This Row],[Degree]]&AAMC_Raw_Data_for_FY22[[#This Row],[Department / Specialty]]&\"L\"","v":"AAMCAcademicPrivateAssociateMDCardiology: Non-invasive-Med.L"},"Cardiology: Non-invasive-Med.",3,"AAMC","Academic","Private","Associate","MD","2021-2022",309955,{"$f":"(((AAMC_Raw_Data_for_FY22[[#This Row],[Median]]-AAMC_Raw_Data_for_FY22[[#This Row],[25th]])/25)*5) + AAMC_Raw_Data_for_FY22[[#This Row],[25th]]","v":326667.2},{"$f":"(((AAMC_Raw_Data_for_FY22[[#This Row],[Median]]-AAMC_Raw_Data_for_FY22[[#This Row],[25th]])/25)*10) + AAMC_Raw_Data_for_FY22[[#This Row],[25th]]","v":343379.4},{"$f":"(((AAMC_Raw_Data_for_FY22[[#This Row],[Median]]-AAMC_Raw_Data_for_FY22[[#This Row],[25th]])/25)*15) + AAMC_Raw_Data_for_FY22[[#This Row],[25th]]","v":360091.6},{"$f":"(((AAMC_Raw_Data_for_FY22[[#This Row],[Median]]-AAMC_Raw_Data_for_FY22[[#This Row],[25th]])/25)*20) + AAMC_Raw_Data_for_FY22[[#This Row],[25th]]","v":376803.8},393516,{"$f":"(((AAMC_Raw_Data_for_FY22[[#This Row],[75th]]-AAMC_Raw_Data_for_FY22[[#This Row],[Median]])/25)*5) + AAMC_Raw_Data_for_FY22[[#This Row],[Median]]","v":420855.6},{"$f":"(((AAMC_Raw_Data_for_FY22[[#This Row],[75th]]-AAMC_Raw_Data_for_FY22[[#This Row],[Median]])/25)*10) + AAMC_Raw_Data_for_FY22[[#This Row],[Median]]","v":448195.2},{"$f":"(((AAMC_Raw_Data_for_FY22[[#This Row],[75th]]-AAMC_Raw_Data_for_FY22[[#This Row],[Median]])/25)*15) + AAMC_Raw_Data_for_FY22[[#This Row],[Median]]","v":475534.8},{"$f":"(((AAMC_Raw_Data_for_FY22[[#This Row],[75th]]-AAMC_Raw_Data_for_FY22[[#This Row],[Median]])/25)*20) + AAMC_Raw_Data_for_FY22[[#This Row],[Median]]","v":502874.4},530214,{"$f":"(((AAMC_Raw_Data_for_FY22[[#This Row],[75th]]-AAMC_Raw_Data_for_FY22[[#This Row],[Median]])/25)*30) + AAMC_Raw_Data_for_FY22[[#This Row],[Median]]","v":557553.6},{"$f":"(((AAMC_Raw_Data_for_FY22[[#This Row],[75th]]-AAMC_Raw_Data_for_FY22[[#This Row],[Median]])/25)*35) + AAMC_Raw_Data_for_FY22[[#This Row],[Median]]","v":584893.19999999995},{"$f":"(((AAMC_Raw_Data_for_FY22[[#This Row],[75th]]-AAMC_Raw_Data_for_FY22[[#This Row],[Median]])/25)*40) + AAMC_Raw_Data_for_FY22[[#This Row],[Median]]","v":612232.80000000005}]
[{"$f":"AAMC_Raw_Data_for_FY22[[#This Row],[Source]]&AAMC_Raw_Data_for_FY22[[#This Row],[Type]]&AAMC_Raw_Data_for_FY22[[#This Row],[School Subset]]&AAMC_Raw_Data_for_FY22[[#This Row],[Rank]]&AAMC_Raw_Data_for_FY22[[#This Row],[Degree]]&AAMC_Raw_Data_for_FY22[[#This Row],[Department / Specialty]]&\"L\"","v":"AAMCAcademicPrivateProfessorMDCardiology: Non-invasive-Med.L"},"Cardiology: Non-invasive-Med.",2,"AAMC","Academic","Private","Professor","MD","2021-2022",319946,{"$f":"(((AAMC_Raw_Data_for_FY22[[#This Row],[Median]]-AAMC_Raw_Data_for_FY22[[#This Row],[25th]])/25)*5) + AAMC_Raw_Data_for_FY22[[#This Row],[25th]]","v":341056.2},{"$f":"(((AAMC_Raw_Data_for_FY22[[#This Row],[Median]]-AAMC_Raw_Data_for_FY22[[#This Row],[25th]])/25)*10) + AAMC_Raw_Data_for_FY22[[#This Row],[25th]]","v":362166.4},{"$f":"(((AAMC_Raw_Data_for_FY22[[#This Row],[Median]]-AAMC_Raw_Data_for_FY22[[#This Row],[25th]])/25)*15) + AAMC_Raw_Data_for_FY22[[#This Row],[25th]]","v":383276.6},{"$f":"(((AAMC_Raw_Data_for_FY22[[#This Row],[Median]]-AAMC_Raw_Data_for_FY22[[#This Row],[25th]])/25)*20) + AAMC_Raw_Data_for_FY22[[#This Row],[25th]]","v":404386.8},425497,{"$f":"(((AAMC_Raw_Data_for_FY22[[#This Row],[75th]]-AAMC_Raw_Data_for_FY22[[#This Row],[Median]])/25)*5) + AAMC_Raw_Data_for_FY22[[#This Row],[Median]]","v":448487.6},{"$f":"(((AAMC_Raw_Data_for_FY22[[#This Row],[75th]]-AAMC_Raw_Data_for_FY22[[#This Row],[Median]])/25)*10) + AAMC_Raw_Data_for_FY22[[#This Row],[Median]]","v":471478.2},{"$f":"(((AAMC_Raw_Data_for_FY22[[#This Row],[75th]]-AAMC_Raw_Data_for_FY22[[#This Row],[Median]])/25)*15) + AAMC_Raw_Data_for_FY22[[#This Row],[Median]]","v":494468.8},{"$f":"(((AAMC_Raw_Data_for_FY22[[#This Row],[75th]]-AAMC_Raw_Data_for_FY22[[#This Row],[Median]])/25)*20) + AAMC_Raw_Data_for_FY22[[#This Row],[Median]]","v":517459.4},540450,{"$f":"(((AAMC_Raw_Data_for_FY22[[#This Row],[75th]]-AAMC_Raw_Data_for_FY22[[#This Row],[Median]])/25)*30) + AAMC_Raw_Data_for_FY22[[#This Row],[Median]]","v":563440.6},{"$f":"(((AAMC_Raw_Data_for_FY22[[#This Row],[75th]]-AAMC_Raw_Data_for_FY22[[#This Row],[Median]])/25)*35) + AAMC_Raw_Data_for_FY22[[#This Row],[Median]]","v":586431.19999999995},{"$f":"(((AAMC_Raw_Data_for_FY22[[#This Row],[75th]]-AAMC_Raw_Data_for_FY22[[#This Row],[Median]])/25)*40) + AAMC_Raw_Data_for_FY22[[#This Row],[Median]]","v":609421.80000000005}]
[{"$f":"AAMC_Raw_Data_for_FY22[[#This Row],[Source]]&AAMC_Raw_Data_for_FY22[[#This Row],[Type]]&AAMC_Raw_Data_for_FY22[[#This Row],[School Subset]]&AAMC_Raw_Data_for_FY22[[#This Row],[Rank]]&AAMC_Raw_Data_for_FY22[[#This Row],[Degree]]&AAMC_Raw_Data_for_FY22[[#This Row],[Department / Specialty]]&\"L\"","v":"AAMCAcademicPrivateChiefMDCardiology: Non-invasive-Med.L"},"Cardiology: Non-invasive-Med.",6,"AAMC","Academic","Private","Chief","MD","2021-2022",497561,{"$f":"(((AAMC_Raw_Data_for_FY22[[#This Row],[Median]]-AAMC_Raw_Data_for_FY22[[#This Row],[25th]])/25)*5) + AAMC_Raw_Data_for_FY22[[#This Row],[25th]]","v":523100.2},{"$f":"(((AAMC_Raw_Data_for_FY22[[#This Row],[Median]]-AAMC_Raw_Data_for_FY22[[#This Row],[25th]])/25)*10) + AAMC_Raw_Data_for_FY22[[#This Row],[25th]]","v":548639.4},{"$f":"(((AAMC_Raw_Data_for_FY22[[#This Row],[Median]]-AAMC_Raw_Data_for_FY22[[#This Row],[25th]])/25)*15) + AAMC_Raw_Data_for_FY22[[#This Row],[25th]]","v":574178.6},{"$f":"(((AAMC_Raw_Data_for_FY22[[#This Row],[Median]]-AAMC_Raw_Data_for_FY22[[#This Row],[25th]])/25)*20) + AAMC_Raw_Data_for_FY22[[#This Row],[25th]]","v":599717.80000000005},625257,{"$f":"(((AAMC_Raw_Data_for_FY22[[#This Row],[75th]]-AAMC_Raw_Data_for_FY22[[#This Row],[Median]])/25)*5) + AAMC_Raw_Data_for_FY22[[#This Row],[Median]]","v":676133.6},{"$f":"(((AAMC_Raw_Data_for_FY22[[#This Row],[75th]]-AAMC_Raw_Data_for_FY22[[#This Row],[Median]])/25)*10) + AAMC_Raw_Data_for_FY22[[#This Row],[Median]]","v":727010.2},{"$f":"(((AAMC_Raw_Data_for_FY22[[#This Row],[75th]]-AAMC_Raw_Data_for_FY22[[#This Row],[Median]])/25)*15) + AAMC_Raw_Data_for_FY22[[#This Row],[Median]]","v":777886.8},{"$f":"(((AAMC_Raw_Data_for_FY22[[#This Row],[75th]]-AAMC_Raw_Data_for_FY22[[#This Row],[Median]])/25)*20) + AAMC_Raw_Data_for_FY22[[#This Row],[Median]]","v":828763.4},879640,{"$f":"(((AAMC_Raw_Data_for_FY22[[#This Row],[75th]]-AAMC_Raw_Data_for_FY22[[#This Row],[Median]])/25)*30) + AAMC_Raw_Data_for_FY22[[#This Row],[Median]]","v":930516.6},{"$f":"(((AAMC_Raw_Data_for_FY22[[#This Row],[75th]]-AAMC_Raw_Data_for_FY22[[#This Row],[Median]])/25)*35) + AAMC_Raw_Data_for_FY22[[#This Row],[Median]]","v":981393.2},{"$f":"(((AAMC_Raw_Data_for_FY22[[#This Row],[75th]]-AAMC_Raw_Data_for_FY22[[#This Row],[Median]])/25)*40) + AAMC_Raw_Data_for_FY22[[#This Row],[Median]]","v":1032269.8}]
[{"$f":"AAMC_Raw_Data_for_FY22[[#This Row],[Source]]&AAMC_Raw_Data_for_FY22[[#This Row],[Type]]&AAMC_Raw_Data_for_FY22[[#This Row],[School Subset]]&AAMC_Raw_Data_for_FY22[[#This Row],[Rank]]&AAMC_Raw_Data_for_FY22[[#This Row],[Degree]]&AAMC_Raw_Data_for_FY22[[#This Row],[Department / Specialty]]&\"L\"","v":"AAMCAcademicPrivateChairMDCardiology: Non-invasive-Med.L"},"Cardiology: Non-invasive-Med.",1,"AAMC","Academic","Private","Chair","MD","2021-2022",620846,{"$f":"(((AAMC_Raw_Data_for_FY22[[#This Row],[Median]]-AAMC_Raw_Data_for_FY22[[#This Row],[25th]])/25)*5) + AAMC_Raw_Data_for_FY22[[#This Row],[25th]]","v":674009},{"$f":"(((AAMC_Raw_Data_for_FY22[[#This Row],[Median]]-AAMC_Raw_Data_for_FY22[[#This Row],[25th]])/25)*10) + AAMC_Raw_Data_for_FY22[[#This Row],[25th]]","v":727172},{"$f":"(((AAMC_Raw_Data_for_FY22[[#This Row],[Median]]-AAMC_Raw_Data_for_FY22[[#This Row],[25th]])/25)*15) + AAMC_Raw_Data_for_FY22[[#This Row],[25th]]","v":780335},{"$f":"(((AAMC_Raw_Data_for_FY22[[#This Row],[Median]]-AAMC_Raw_Data_for_FY22[[#This Row],[25th]])/25)*20) + AAMC_Raw_Data_for_FY22[[#This Row],[25th]]","v":833498},886661,{"$f":"(((AAMC_Raw_Data_for_FY22[[#This Row],[75th]]-AAMC_Raw_Data_for_FY22[[#This Row],[Median]])/25)*5) + AAMC_Raw_Data_for_FY22[[#This Row],[Median]]","v":949468.4},{"$f":"(((AAMC_Raw_Data_for_FY22[[#This Row],[75th]]-AAMC_Raw_Data_for_FY22[[#This Row],[Median]])/25)*10) + AAMC_Raw_Data_for_FY22[[#This Row],[Median]]","v":1012275.8},{"$f":"(((AAMC_Raw_Data_for_FY22[[#This Row],[75th]]-AAMC_Raw_Data_for_FY22[[#This Row],[Median]])/25)*15) + AAMC_Raw_Data_for_FY22[[#This Row],[Median]]","v":1075083.2},{"$f":"(((AAMC_Raw_Data_for_FY22[[#This Row],[75th]]-AAMC_Raw_Data_for_FY22[[#This Row],[Median]])/25)*20) + AAMC_Raw_Data_for_FY22[[#This Row],[Median]]","v":1137890.6000000001},1200698,{"$f":"(((AAMC_Raw_Data_for_FY22[[#This Row],[75th]]-AAMC_Raw_Data_for_FY22[[#This Row],[Median]])/25)*30) + AAMC_Raw_Data_for_FY22[[#This Row],[Median]]","v":1263505.3999999999},{"$f":"(((AAMC_Raw_Data_for_FY22[[#This Row],[75th]]-AAMC_Raw_Data_for_FY22[[#This Row],[Median]])/25)*35) + AAMC_Raw_Data_for_FY22[[#This Row],[Median]]","v":1326312.8},{"$f":"(((AAMC_Raw_Data_for_FY22[[#This Row],[75th]]-AAMC_Raw_Data_for_FY22[[#This Row],[Median]])/25)*40) + AAMC_Raw_Data_for_FY22[[#This Row],[Median]]","v":1389120.2}]
[{"$f":"AAMC_Raw_Data_for_FY22[[#This Row],[Source]]&AAMC_Raw_Data_for_FY22[[#This Row],[Type]]&AAMC_Raw_Data_for_FY22[[#This Row],[School Subset]]&AAMC_Raw_Data_for_FY22[[#This Row],[Rank]]&AAMC_Raw_Data_for_FY22[[#This Row],[Degree]]&AAMC_Raw_Data_for_FY22[[#This Row],[Department / Specialty]]&\"L\"","v":"AAMCAcademicPrivateInstructorMDCritical/Intensive Care-Med.L"},"Critical/Intensive Care-Med.",5,"AAMC","Academic","Private","Instructor","MD","2021-2022",177570,{"$f":"(((AAMC_Raw_Data_for_FY22[[#This Row],[Median]]-AAMC_Raw_Data_for_FY22[[#This Row],[25th]])/25)*5) + AAMC_Raw_Data_for_FY22[[#This Row],[25th]]","v":218514.4},{"$f":"(((AAMC_Raw_Data_for_FY22[[#This Row],[Median]]-AAMC_Raw_Data_for_FY22[[#This Row],[25th]])/25)*10) + AAMC_Raw_Data_for_FY22[[#This Row],[25th]]","v":259458.8},{"$f":"(((AAMC_Raw_Data_for_FY22[[#This Row],[Median]]-AAMC_Raw_Data_for_FY22[[#This Row],[25th]])/25)*15) + AAMC_Raw_Data_for_FY22[[#This Row],[25th]]","v":300403.20000000001},{"$f":"(((AAMC_Raw_Data_for_FY22[[#This Row],[Median]]-AAMC_Raw_Data_for_FY22[[#This Row],[25th]])/25)*20) + AAMC_Raw_Data_for_FY22[[#This Row],[25th]]","v":341347.6},382292,{"$f":"(((AAMC_Raw_Data_for_FY22[[#This Row],[75th]]-AAMC_Raw_Data_for_FY22[[#This Row],[Median]])/25)*5) + AAMC_Raw_Data_for_FY22[[#This Row],[Median]]","v":386908.2},{"$f":"(((AAMC_Raw_Data_for_FY22[[#This Row],[75th]]-AAMC_Raw_Data_for_FY22[[#This Row],[Median]])/25)*10) + AAMC_Raw_Data_for_FY22[[#This Row],[Median]]","v":391524.4},{"$f":"(((AAMC_Raw_Data_for_FY22[[#This Row],[75th]]-AAMC_Raw_Data_for_FY22[[#This Row],[Median]])/25)*15) + AAMC_Raw_Data_for_FY22[[#This Row],[Median]]","v":396140.6},{"$f":"(((AAMC_Raw_Data_for_FY22[[#This Row],[75th]]-AAMC_Raw_Data_for_FY22[[#This Row],[Median]])/25)*20) + AAMC_Raw_Data_for_FY22[[#This Row],[Median]]","v":400756.8},405373,{"$f":"(((AAMC_Raw_Data_for_FY22[[#This Row],[75th]]-AAMC_Raw_Data_for_FY22[[#This Row],[Median]])/25)*30) + AAMC_Raw_Data_for_FY22[[#This Row],[Median]]","v":409989.2},{"$f":"(((AAMC_Raw_Data_for_FY22[[#This Row],[75th]]-AAMC_Raw_Data_for_FY22[[#This Row],[Median]])/25)*35) + AAMC_Raw_Data_for_FY22[[#This Row],[Median]]","v":414605.4},{"$f":"(((AAMC_Raw_Data_for_FY22[[#This Row],[75th]]-AAMC_Raw_Data_for_FY22[[#This Row],[Median]])/25)*40) + AAMC_Raw_Data_for_FY22[[#This Row],[Median]]","v":419221.6}]
[{"$f":"AAMC_Raw_Data_for_FY22[[#This Row],[Source]]&AAMC_Raw_Data_for_FY22[[#This Row],[Type]]&AAMC_Raw_Data_for_FY22[[#This Row],[School Subset]]&AAMC_Raw_Data_for_FY22[[#This Row],[Rank]]&AAMC_Raw_Data_for_FY22[[#This Row],[Degree]]&AAMC_Raw_Data_for_FY22[[#This Row],[Department / Specialty]]&\"L\"","v":"AAMCAcademicPrivateAssistantMDCritical/Intensive Care-Med.L"},"Critical/Intensive Care-Med.",4,"AAMC","Academic","Private","Assistant","MD","2021-2022",266282,{"$f":"(((AAMC_Raw_Data_for_FY22[[#This Row],[Median]]-AAMC_Raw_Data_for_FY22[[#This Row],[25th]])/25)*5) + AAMC_Raw_Data_for_FY22[[#This Row],[25th]]","v":280934},{"$f":"(((AAMC_Raw_Data_for_FY22[[#This Row],[Median]]-AAMC_Raw_Data_for_FY22[[#This Row],[25th]])/25)*10) + AAMC_Raw_Data_for_FY22[[#This Row],[25th]]","v":295586},{"$f":"(((AAMC_Raw_Data_for_FY22[[#This Row],[Median]]-AAMC_Raw_Data_for_FY22[[#This Row],[25th]])/25)*15) + AAMC_Raw_Data_for_FY22[[#This Row],[25th]]","v":310238},{"$f":"(((AAMC_Raw_Data_for_FY22[[#This Row],[Median]]-AAMC_Raw_Data_for_FY22[[#This Row],[25th]])/25)*20) + AAMC_Raw_Data_for_FY22[[#This Row],[25th]]","v":324890},339542,{"$f":"(((AAMC_Raw_Data_for_FY22[[#This Row],[75th]]-AAMC_Raw_Data_for_FY22[[#This Row],[Median]])/25)*5) + AAMC_Raw_Data_for_FY22[[#This Row],[Median]]","v":356641.2},{"$f":"(((AAMC_Raw_Data_for_FY22[[#This Row],[75th]]-AAMC_Raw_Data_for_FY22[[#This Row],[Median]])/25)*10) + AAMC_Raw_Data_for_FY22[[#This Row],[Median]]","v":373740.4},{"$f":"(((AAMC_Raw_Data_for_FY22[[#This Row],[75th]]-AAMC_Raw_Data_for_FY22[[#This Row],[Median]])/25)*15) + AAMC_Raw_Data_for_FY22[[#This Row],[Median]]","v":390839.6},{"$f":"(((AAMC_Raw_Data_for_FY22[[#This Row],[75th]]-AAMC_Raw_Data_for_FY22[[#This Row],[Median]])/25)*20) + AAMC_Raw_Data_for_FY22[[#This Row],[Median]]","v":407938.8},425038,{"$f":"(((AAMC_Raw_Data_for_FY22[[#This Row],[75th]]-AAMC_Raw_Data_for_FY22[[#This Row],[Median]])/25)*30) + AAMC_Raw_Data_for_FY22[[#This Row],[Median]]","v":442137.2},{"$f":"(((AAMC_Raw_Data_for_FY22[[#This Row],[75th]]-AAMC_Raw_Data_for_FY22[[#This Row],[Median]])/25)*35) + AAMC_Raw_Data_for_FY22[[#This Row],[Median]]","v":459236.4},{"$f":"(((AAMC_Raw_Data_for_FY22[[#This Row],[75th]]-AAMC_Raw_Data_for_FY22[[#This Row],[Median]])/25)*40) + AAMC_Raw_Data_for_FY22[[#This Row],[Median]]","v":476335.6}]
[{"$f":"AAMC_Raw_Data_for_FY22[[#This Row],[Source]]&AAMC_Raw_Data_for_FY22[[#This Row],[Type]]&AAMC_Raw_Data_for_FY22[[#This Row],[School Subset]]&AAMC_Raw_Data_for_FY22[[#This Row],[Rank]]&AAMC_Raw_Data_for_FY22[[#This Row],[Degree]]&AAMC_Raw_Data_for_FY22[[#This Row],[Department / Specialty]]&\"L\"","v":"AAMCAcademicPrivateAssociateMDCritical/Intensive Care-Med.L"},"Critical/Intensive Care-Med.",3,"AAMC","Academic","Private","Associate","MD","2021-2022",300466,{"$f":"(((AAMC_Raw_Data_for_FY22[[#This Row],[Median]]-AAMC_Raw_Data_for_FY22[[#This Row],[25th]])/25)*5) + AAMC_Raw_Data_for_FY22[[#This Row],[25th]]","v":317764.40000000002},{"$f":"(((AAMC_Raw_Data_for_FY22[[#This Row],[Median]]-AAMC_Raw_Data_for_FY22[[#This Row],[25th]])/25)*10) + AAMC_Raw_Data_for_FY22[[#This Row],[25th]]","v":335062.8},{"$f":"(((AAMC_Raw_Data_for_FY22[[#This Row],[Median]]-AAMC_Raw_Data_for_FY22[[#This Row],[25th]])/25)*15) + AAMC_Raw_Data_for_FY22[[#This Row],[25th]]","v":352361.2},{"$f":"(((AAMC_Raw_Data_for_FY22[[#This Row],[Median]]-AAMC_Raw_Data_for_FY22[[#This Row],[25th]])/25)*20) + AAMC_Raw_Data_for_FY22[[#This Row],[25th]]","v":369659.6},386958,{"$f":"(((AAMC_Raw_Data_for_FY22[[#This Row],[75th]]-AAMC_Raw_Data_for_FY22[[#This Row],[Median]])/25)*5) + AAMC_Raw_Data_for_FY22[[#This Row],[Median]]","v":405019.2},{"$f":"(((AAMC_Raw_Data_for_FY22[[#This Row],[75th]]-AAMC_Raw_Data_for_FY22[[#This Row],[Median]])/25)*10) + AAMC_Raw_Data_for_FY22[[#This Row],[Median]]","v":423080.4},{"$f":"(((AAMC_Raw_Data_for_FY22[[#This Row],[75th]]-AAMC_Raw_Data_for_FY22[[#This Row],[Median]])/25)*15) + AAMC_Raw_Data_for_FY22[[#This Row],[Median]]","v":441141.6},{"$f":"(((AAMC_Raw_Data_for_FY22[[#This Row],[75th]]-AAMC_Raw_Data_for_FY22[[#This Row],[Median]])/25)*20) + AAMC_Raw_Data_for_FY22[[#This Row],[Median]]","v":459202.8},477264,{"$f":"(((AAMC_Raw_Data_for_FY22[[#This Row],[75th]]-AAMC_Raw_Data_for_FY22[[#This Row],[Median]])/25)*30) + AAMC_Raw_Data_for_FY22[[#This Row],[Median]]","v":495325.2},{"$f":"(((AAMC_Raw_Data_for_FY22[[#This Row],[75th]]-AAMC_Raw_Data_for_FY22[[#This Row],[Median]])/25)*35) + AAMC_Raw_Data_for_FY22[[#This Row],[Median]]","v":513386.4},{"$f":"(((AAMC_Raw_Data_for_FY22[[#This Row],[75th]]-AAMC_Raw_Data_for_FY22[[#This Row],[Median]])/25)*40) + AAMC_Raw_Data_for_FY22[[#This Row],[Median]]","v":531447.6}]
[{"$f":"AAMC_Raw_Data_for_FY22[[#This Row],[Source]]&AAMC_Raw_Data_for_FY22[[#This Row],[Type]]&AAMC_Raw_Data_for_FY22[[#This Row],[School Subset]]&AAMC_Raw_Data_for_FY22[[#This Row],[Rank]]&AAMC_Raw_Data_for_FY22[[#This Row],[Degree]]&AAMC_Raw_Data_for_FY22[[#This Row],[Department / Specialty]]&\"L\"","v":"AAMCAcademicPrivateProfessorMDCritical/Intensive Care-Med.L"},"Critical/Intensive Care-Med.",2,"AAMC","Academic","Private","Professor","MD","2021-2022",331248,{"$f":"(((AAMC_Raw_Data_for_FY22[[#This Row],[Median]]-AAMC_Raw_Data_for_FY22[[#This Row],[25th]])/25)*5) + AAMC_Raw_Data_for_FY22[[#This Row],[25th]]","v":344292.2},{"$f":"(((AAMC_Raw_Data_for_FY22[[#This Row],[Median]]-AAMC_Raw_Data_for_FY22[[#This Row],[25th]])/25)*10) + AAMC_Raw_Data_for_FY22[[#This Row],[25th]]","v":357336.4},{"$f":"(((AAMC_Raw_Data_for_FY22[[#This Row],[Median]]-AAMC_Raw_Data_for_FY22[[#This Row],[25th]])/25)*15) + AAMC_Raw_Data_for_FY22[[#This Row],[25th]]","v":370380.6},{"$f":"(((AAMC_Raw_Data_for_FY22[[#This Row],[Median]]-AAMC_Raw_Data_for_FY22[[#This Row],[25th]])/25)*20) + AAMC_Raw_Data_for_FY22[[#This Row],[25th]]","v":383424.8},396469,{"$f":"(((AAMC_Raw_Data_for_FY22[[#This Row],[75th]]-AAMC_Raw_Data_for_FY22[[#This Row],[Median]])/25)*5) + AAMC_Raw_Data_for_FY22[[#This Row],[Median]]","v":413793.6},{"$f":"(((AAMC_Raw_Data_for_FY22[[#This Row],[75th]]-AAMC_Raw_Data_for_FY22[[#This Row],[Median]])/25)*10) + AAMC_Raw_Data_for_FY22[[#This Row],[Median]]","v":431118.2},{"$f":"(((AAMC_Raw_Data_for_FY22[[#This Row],[75th]]-AAMC_Raw_Data_for_FY22[[#This Row],[Median]])/25)*15) + AAMC_Raw_Data_for_FY22[[#This Row],[Median]]","v":448442.8},{"$f":"(((AAMC_Raw_Data_for_FY22[[#This Row],[75th]]-AAMC_Raw_Data_for_FY22[[#This Row],[Median]])/25)*20) + AAMC_Raw_Data_for_FY22[[#This Row],[Median]]","v":465767.4},483092,{"$f":"(((AAMC_Raw_Data_for_FY22[[#This Row],[75th]]-AAMC_Raw_Data_for_FY22[[#This Row],[Median]])/25)*30) + AAMC_Raw_Data_for_FY22[[#This Row],[Median]]","v":500416.6},{"$f":"(((AAMC_Raw_Data_for_FY22[[#This Row],[75th]]-AAMC_Raw_Data_for_FY22[[#This Row],[Median]])/25)*35) + AAMC_Raw_Data_for_FY22[[#This Row],[Median]]","v":517741.2},{"$f":"(((AAMC_Raw_Data_for_FY22[[#This Row],[75th]]-AAMC_Raw_Data_for_FY22[[#This Row],[Median]])/25)*40) + AAMC_Raw_Data_for_FY22[[#This Row],[Median]]","v":535065.80000000005}]
[{"$f":"AAMC_Raw_Data_for_FY22[[#This Row],[Source]]&AAMC_Raw_Data_for_FY22[[#This Row],[Type]]&AAMC_Raw_Data_for_FY22[[#This Row],[School Subset]]&AAMC_Raw_Data_for_FY22[[#This Row],[Rank]]&AAMC_Raw_Data_for_FY22[[#This Row],[Degree]]&AAMC_Raw_Data_for_FY22[[#This Row],[Department / Specialty]]&\"L\"","v":"AAMCAcademicPrivateChiefMDCritical/Intensive Care-Med.L"},"Critical/Intensive Care-Med.",6,"AAMC","Academic","Private","Chief","MD","2021-2022",481514,{"$f":"(((AAMC_Raw_Data_for_FY22[[#This Row],[Median]]-AAMC_Raw_Data_for_FY22[[#This Row],[25th]])/25)*5) + AAMC_Raw_Data_for_FY22[[#This Row],[25th]]","v":488874.8},{"$f":"(((AAMC_Raw_Data_for_FY22[[#This Row],[Median]]-AAMC_Raw_Data_for_FY22[[#This Row],[25th]])/25)*10) + AAMC_Raw_Data_for_FY22[[#This Row],[25th]]","v":496235.6},{"$f":"(((AAMC_Raw_Data_for_FY22[[#This Row],[Median]]-AAMC_Raw_Data_for_FY22[[#This Row],[25th]])/25)*15) + AAMC_Raw_Data_for_FY22[[#This Row],[25th]]","v":503596.4},{"$f":"(((AAMC_Raw_Data_for_FY22[[#This Row],[Median]]-AAMC_Raw_Data_for_FY22[[#This Row],[25th]])/25)*20) + AAMC_Raw_Data_for_FY22[[#This Row],[25th]]","v":510957.2},518318,{"$f":"(((AAMC_Raw_Data_for_FY22[[#This Row],[75th]]-AAMC_Raw_Data_for_FY22[[#This Row],[Median]])/25)*5) + AAMC_Raw_Data_for_FY22[[#This Row],[Median]]","v":526234.19999999995},{"$f":"(((AAMC_Raw_Data_for_FY22[[#This Row],[75th]]-AAMC_Raw_Data_for_FY22[[#This Row],[Median]])/25)*10) + AAMC_Raw_Data_for_FY22[[#This Row],[Median]]","v":534150.40000000002},{"$f":"(((AAMC_Raw_Data_for_FY22[[#This Row],[75th]]-AAMC_Raw_Data_for_FY22[[#This Row],[Median]])/25)*15) + AAMC_Raw_Data_for_FY22[[#This Row],[Median]]","v":542066.6},{"$f":"(((AAMC_Raw_Data_for_FY22[[#This Row],[75th]]-AAMC_Raw_Data_for_FY22[[#This Row],[Median]])/25)*20) + AAMC_Raw_Data_for_FY22[[#This Row],[Median]]","v":549982.80000000005},557899,{"$f":"(((AAMC_Raw_Data_for_FY22[[#This Row],[75th]]-AAMC_Raw_Data_for_FY22[[#This Row],[Median]])/25)*30) + AAMC_Raw_Data_for_FY22[[#This Row],[Median]]","v":565815.19999999995},{"$f":"(((AAMC_Raw_Data_for_FY22[[#This Row],[75th]]-AAMC_Raw_Data_for_FY22[[#This Row],[Median]])/25)*35) + AAMC_Raw_Data_for_FY22[[#This Row],[Median]]","v":573731.4},{"$f":"(((AAMC_Raw_Data_for_FY22[[#This Row],[75th]]-AAMC_Raw_Data_for_FY22[[#This Row],[Median]])/25)*40) + AAMC_Raw_Data_for_FY22[[#This Row],[Median]]","v":581647.6}]
[{"$f":"AAMC_Raw_Data_for_FY22[[#This Row],[Source]]&AAMC_Raw_Data_for_FY22[[#This Row],[Type]]&AAMC_Raw_Data_for_FY22[[#This Row],[School Subset]]&AAMC_Raw_Data_for_FY22[[#This Row],[Rank]]&AAMC_Raw_Data_for_FY22[[#This Row],[Degree]]&AAMC_Raw_Data_for_FY22[[#This Row],[Department / Specialty]]&\"L\"","v":"AAMCAcademicPrivateChairMDCritical/Intensive Care-Med.L"},"Critical/Intensive Care-Med.",1,"AAMC","Academic","Private","Chair","MD","2021-2022",null,{"$f":"(((AAMC_Raw_Data_for_FY22[[#This Row],[Median]]-AAMC_Raw_Data_for_FY22[[#This Row],[25th]])/25)*5) + AAMC_Raw_Data_for_FY22[[#This Row],[25th]]","v":0},{"$f":"(((AAMC_Raw_Data_for_FY22[[#This Row],[Median]]-AAMC_Raw_Data_for_FY22[[#This Row],[25th]])/25)*10) + AAMC_Raw_Data_for_FY22[[#This Row],[25th]]","v":0},{"$f":"(((AAMC_Raw_Data_for_FY22[[#This Row],[Median]]-AAMC_Raw_Data_for_FY22[[#This Row],[25th]])/25)*15) + AAMC_Raw_Data_for_FY22[[#This Row],[25th]]","v":0},{"$f":"(((AAMC_Raw_Data_for_FY22[[#This Row],[Median]]-AAMC_Raw_Data_for_FY22[[#This Row],[25th]])/25)*20) + AAMC_Raw_Data_for_FY22[[#This Row],[25th]]","v":0},null,{"$f":"(((AAMC_Raw_Data_for_FY22[[#This Row],[75th]]-AAMC_Raw_Data_for_FY22[[#This Row],[Median]])/25)*5) + AAMC_Raw_Data_for_FY22[[#This Row],[Median]]","v":0},{"$f":"(((AAMC_Raw_Data_for_FY22[[#This Row],[75th]]-AAMC_Raw_Data_for_FY22[[#This Row],[Median]])/25)*10) + AAMC_Raw_Data_for_FY22[[#This Row],[Median]]","v":0},{"$f":"(((AAMC_Raw_Data_for_FY22[[#This Row],[75th]]-AAMC_Raw_Data_for_FY22[[#This Row],[Median]])/25)*15) + AAMC_Raw_Data_for_FY22[[#This Row],[Median]]","v":0},{"$f":"(((AAMC_Raw_Data_for_FY22[[#This Row],[75th]]-AAMC_Raw_Data_for_FY22[[#This Row],[Median]])/25)*20) + AAMC_Raw_Data_for_FY22[[#This Row],[Median]]","v":0},null,{"$f":"(((AAMC_Raw_Data_for_FY22[[#This Row],[75th]]-AAMC_Raw_Data_for_FY22[[#This Row],[Median]])/25)*30) + AAMC_Raw_Data_for_FY22[[#This Row],[Median]]","v":0},{"$f":"(((AAMC_Raw_Data_for_FY22[[#This Row],[75th]]-AAMC_Raw_Data_for_FY22[[#This Row],[Median]])/25)*35) + AAMC_Raw_Data_for_FY22[[#This Row],[Median]]","v":0},{"$f":"(((AAMC_Raw_Data_for_FY22[[#This Row],[75th]]-AAMC_Raw_Data_for_FY22[[#This Row],[Median]])/25)*40) + AAMC_Raw_Data_for_FY22[[#This Row],[Median]]","v":0}]
[{"$f":"AAMC_Raw_Data_for_FY22[[#This Row],[Source]]&AAMC_Raw_Data_for_FY22[[#This Row],[Type]]&AAMC_Raw_Data_for_FY22[[#This Row],[School Subset]]&AAMC_Raw_Data_for_FY22[[#This Row],[Rank]]&AAMC_Raw_Data_for_FY22[[#This Row],[Degree]]&AAMC_Raw_Data_for_FY22[[#This Row],[Department / Specialty]]&\"L\"","v":"AAMCAcademicPrivateInstructorMDEndocrinology-Med.L"},"Endocrinology-Med.",5,"AAMC","Academic","Private","Instructor","MD","2021-2022",103349,{"$f":"(((AAMC_Raw_Data_for_FY22[[#This Row],[Median]]-AAMC_Raw_Data_for_FY22[[#This Row],[25th]])/25)*5) + AAMC_Raw_Data_for_FY22[[#This Row],[25th]]","v":114479.2},{"$f":"(((AAMC_Raw_Data_for_FY22[[#This Row],[Median]]-AAMC_Raw_Data_for_FY22[[#This Row],[25th]])/25)*10) + AAMC_Raw_Data_for_FY22[[#This Row],[25th]]","v":125609.4},{"$f":"(((AAMC_Raw_Data_for_FY22[[#This Row],[Median]]-AAMC_Raw_Data_for_FY22[[#This Row],[25th]])/25)*15) + AAMC_Raw_Data_for_FY22[[#This Row],[25th]]","v":136739.6},{"$f":"(((AAMC_Raw_Data_for_FY22[[#This Row],[Median]]-AAMC_Raw_Data_for_FY22[[#This Row],[25th]])/25)*20) + AAMC_Raw_Data_for_FY22[[#This Row],[25th]]","v":147869.79999999999},159000,{"$f":"(((AAMC_Raw_Data_for_FY22[[#This Row],[75th]]-AAMC_Raw_Data_for_FY22[[#This Row],[Median]])/25)*5) + AAMC_Raw_Data_for_FY22[[#This Row],[Median]]","v":166732.4},{"$f":"(((AAMC_Raw_Data_for_FY22[[#This Row],[75th]]-AAMC_Raw_Data_for_FY22[[#This Row],[Median]])/25)*10) + AAMC_Raw_Data_for_FY22[[#This Row],[Median]]","v":174464.8},{"$f":"(((AAMC_Raw_Data_for_FY22[[#This Row],[75th]]-AAMC_Raw_Data_for_FY22[[#This Row],[Median]])/25)*15) + AAMC_Raw_Data_for_FY22[[#This Row],[Median]]","v":182197.2},{"$f":"(((AAMC_Raw_Data_for_FY22[[#This Row],[75th]]-AAMC_Raw_Data_for_FY22[[#This Row],[Median]])/25)*20) + AAMC_Raw_Data_for_FY22[[#This Row],[Median]]","v":189929.60000000001},197662,{"$f":"(((AAMC_Raw_Data_for_FY22[[#This Row],[75th]]-AAMC_Raw_Data_for_FY22[[#This Row],[Median]])/25)*30) + AAMC_Raw_Data_for_FY22[[#This Row],[Median]]","v":205394.4},{"$f":"(((AAMC_Raw_Data_for_FY22[[#This Row],[75th]]-AAMC_Raw_Data_for_FY22[[#This Row],[Median]])/25)*35) + AAMC_Raw_Data_for_FY22[[#This Row],[Median]]","v":213126.8},{"$f":"(((AAMC_Raw_Data_for_FY22[[#This Row],[75th]]-AAMC_Raw_Data_for_FY22[[#This Row],[Median]])/25)*40) + AAMC_Raw_Data_for_FY22[[#This Row],[Median]]","v":220859.2}]
[{"$f":"AAMC_Raw_Data_for_FY22[[#This Row],[Source]]&AAMC_Raw_Data_for_FY22[[#This Row],[Type]]&AAMC_Raw_Data_for_FY22[[#This Row],[School Subset]]&AAMC_Raw_Data_for_FY22[[#This Row],[Rank]]&AAMC_Raw_Data_for_FY22[[#This Row],[Degree]]&AAMC_Raw_Data_for_FY22[[#This Row],[Department / Specialty]]&\"L\"","v":"AAMCAcademicPrivateAssistantMDEndocrinology-Med.L"},"Endocrinology-Med.",4,"AAMC","Academic","Private","Assistant","MD","2021-2022",178478,{"$f":"(((AAMC_Raw_Data_for_FY22[[#This Row],[Median]]-AAMC_Raw_Data_for_FY22[[#This Row],[25th]])/25)*5) + AAMC_Raw_Data_for_FY22[[#This Row],[25th]]","v":183198.6},{"$f":"(((AAMC_Raw_Data_for_FY22[[#This Row],[Median]]-AAMC_Raw_Data_for_FY22[[#This Row],[25th]])/25)*10) + AAMC_Raw_Data_for_FY22[[#This Row],[25th]]","v":187919.2},{"$f":"(((AAMC_Raw_Data_for_FY22[[#This Row],[Median]]-AAMC_Raw_Data_for_FY22[[#This Row],[25th]])/25)*15) + AAMC_Raw_Data_for_FY22[[#This Row],[25th]]","v":192639.8},{"$f":"(((AAMC_Raw_Data_for_FY22[[#This Row],[Median]]-AAMC_Raw_Data_for_FY22[[#This Row],[25th]])/25)*20) + AAMC_Raw_Data_for_FY22[[#This Row],[25th]]","v":197360.4},202081,{"$f":"(((AAMC_Raw_Data_for_FY22[[#This Row],[75th]]-AAMC_Raw_Data_for_FY22[[#This Row],[Median]])/25)*5) + AAMC_Raw_Data_for_FY22[[#This Row],[Median]]","v":210809},{"$f":"(((AAMC_Raw_Data_for_FY22[[#This Row],[75th]]-AAMC_Raw_Data_for_FY22[[#This Row],[Median]])/25)*10) + AAMC_Raw_Data_for_FY22[[#This Row],[Median]]","v":219537},{"$f":"(((AAMC_Raw_Data_for_FY22[[#This Row],[75th]]-AAMC_Raw_Data_for_FY22[[#This Row],[Median]])/25)*15) + AAMC_Raw_Data_for_FY22[[#This Row],[Median]]","v":228265},{"$f":"(((AAMC_Raw_Data_for_FY22[[#This Row],[75th]]-AAMC_Raw_Data_for_FY22[[#This Row],[Median]])/25)*20) + AAMC_Raw_Data_for_FY22[[#This Row],[Median]]","v":236993},245721,{"$f":"(((AAMC_Raw_Data_for_FY22[[#This Row],[75th]]-AAMC_Raw_Data_for_FY22[[#This Row],[Median]])/25)*30) + AAMC_Raw_Data_for_FY22[[#This Row],[Median]]","v":254449},{"$f":"(((AAMC_Raw_Data_for_FY22[[#This Row],[75th]]-AAMC_Raw_Data_for_FY22[[#This Row],[Median]])/25)*35) + AAMC_Raw_Data_for_FY22[[#This Row],[Median]]","v":263177},{"$f":"(((AAMC_Raw_Data_for_FY22[[#This Row],[75th]]-AAMC_Raw_Data_for_FY22[[#This Row],[Median]])/25)*40) + AAMC_Raw_Data_for_FY22[[#This Row],[Median]]","v":271905}]
[{"$f":"AAMC_Raw_Data_for_FY22[[#This Row],[Source]]&AAMC_Raw_Data_for_FY22[[#This Row],[Type]]&AAMC_Raw_Data_for_FY22[[#This Row],[School Subset]]&AAMC_Raw_Data_for_FY22[[#This Row],[Rank]]&AAMC_Raw_Data_for_FY22[[#This Row],[Degree]]&AAMC_Raw_Data_for_FY22[[#This Row],[Department / Specialty]]&\"L\"","v":"AAMCAcademicPrivateAssociateMDEndocrinology-Med.L"},"Endocrinology-Med.",3,"AAMC","Academic","Private","Associate","MD","2021-2022",199095,{"$f":"(((AAMC_Raw_Data_for_FY22[[#This Row],[Median]]-AAMC_Raw_Data_for_FY22[[#This Row],[25th]])/25)*5) + AAMC_Raw_Data_for_FY22[[#This Row],[25th]]","v":203336},{"$f":"(((AAMC_Raw_Data_for_FY22[[#This Row],[Median]]-AAMC_Raw_Data_for_FY22[[#This Row],[25th]])/25)*10) + AAMC_Raw_Data_for_FY22[[#This Row],[25th]]","v":207577},{"$f":"(((AAMC_Raw_Data_for_FY22[[#This Row],[Median]]-AAMC_Raw_Data_for_FY22[[#This Row],[25th]])/25)*15) + AAMC_Raw_Data_for_FY22[[#This Row],[25th]]","v":211818},{"$f":"(((AAMC_Raw_Data_for_FY22[[#This Row],[Median]]-AAMC_Raw_Data_for_FY22[[#This Row],[25th]])/25)*20) + AAMC_Raw_Data_for_FY22[[#This Row],[25th]]","v":216059},220300,{"$f":"(((AAMC_Raw_Data_for_FY22[[#This Row],[75th]]-AAMC_Raw_Data_for_FY22[[#This Row],[Median]])/25)*5) + AAMC_Raw_Data_for_FY22[[#This Row],[Median]]","v":228240.2},{"$f":"(((AAMC_Raw_Data_for_FY22[[#This Row],[75th]]-AAMC_Raw_Data_for_FY22[[#This Row],[Median]])/25)*10) + AAMC_Raw_Data_for_FY22[[#This Row],[Median]]","v":236180.4},{"$f":"(((AAMC_Raw_Data_for_FY22[[#This Row],[75th]]-AAMC_Raw_Data_for_FY22[[#This Row],[Median]])/25)*15) + AAMC_Raw_Data_for_FY22[[#This Row],[Median]]","v":244120.6},{"$f":"(((AAMC_Raw_Data_for_FY22[[#This Row],[75th]]-AAMC_Raw_Data_for_FY22[[#This Row],[Median]])/25)*20) + AAMC_Raw_Data_for_FY22[[#This Row],[Median]]","v":252060.79999999999},260001,{"$f":"(((AAMC_Raw_Data_for_FY22[[#This Row],[75th]]-AAMC_Raw_Data_for_FY22[[#This Row],[Median]])/25)*30) + AAMC_Raw_Data_for_FY22[[#This Row],[Median]]","v":267941.2},{"$f":"(((AAMC_Raw_Data_for_FY22[[#This Row],[75th]]-AAMC_Raw_Data_for_FY22[[#This Row],[Median]])/25)*35) + AAMC_Raw_Data_for_FY22[[#This Row],[Median]]","v":275881.40000000002},{"$f":"(((AAMC_Raw_Data_for_FY22[[#This Row],[75th]]-AAMC_Raw_Data_for_FY22[[#This Row],[Median]])/25)*40) + AAMC_Raw_Data_for_FY22[[#This Row],[Median]]","v":283821.59999999998}]
[{"$f":"AAMC_Raw_Data_for_FY22[[#This Row],[Source]]&AAMC_Raw_Data_for_FY22[[#This Row],[Type]]&AAMC_Raw_Data_for_FY22[[#This Row],[School Subset]]&AAMC_Raw_Data_for_FY22[[#This Row],[Rank]]&AAMC_Raw_Data_for_FY22[[#This Row],[Degree]]&AAMC_Raw_Data_for_FY22[[#This Row],[Department / Specialty]]&\"L\"","v":"AAMCAcademicPrivateProfessorMDEndocrinology-Med.L"},"Endocrinology-Med.",2,"AAMC","Academic","Private","Professor","MD","2021-2022",213756,{"$f":"(((AAMC_Raw_Data_for_FY22[[#This Row],[Median]]-AAMC_Raw_Data_for_FY22[[#This Row],[25th]])/25)*5) + AAMC_Raw_Data_for_FY22[[#This Row],[25th]]","v":223730.6},{"$f":"(((AAMC_Raw_Data_for_FY22[[#This Row],[Median]]-AAMC_Raw_Data_for_FY22[[#This Row],[25th]])/25)*10) + AAMC_Raw_Data_for_FY22[[#This Row],[25th]]","v":233705.2},{"$f":"(((AAMC_Raw_Data_for_FY22[[#This Row],[Median]]-AAMC_Raw_Data_for_FY22[[#This Row],[25th]])/25)*15) + AAMC_Raw_Data_for_FY22[[#This Row],[25th]]","v":243679.8},{"$f":"(((AAMC_Raw_Data_for_FY22[[#This Row],[Median]]-AAMC_Raw_Data_for_FY22[[#This Row],[25th]])/25)*20) + AAMC_Raw_Data_for_FY22[[#This Row],[25th]]","v":253654.39999999999},263629,{"$f":"(((AAMC_Raw_Data_for_FY22[[#This Row],[75th]]-AAMC_Raw_Data_for_FY22[[#This Row],[Median]])/25)*5) + AAMC_Raw_Data_for_FY22[[#This Row],[Median]]","v":274722.2},{"$f":"(((AAMC_Raw_Data_for_FY22[[#This Row],[75th]]-AAMC_Raw_Data_for_FY22[[#This Row],[Median]])/25)*10) + AAMC_Raw_Data_for_FY22[[#This Row],[Median]]","v":285815.40000000002},{"$f":"(((AAMC_Raw_Data_for_FY22[[#This Row],[75th]]-AAMC_Raw_Data_for_FY22[[#This Row],[Median]])/25)*15) + AAMC_Raw_Data_for_FY22[[#This Row],[Median]]","v":296908.59999999998},{"$f":"(((AAMC_Raw_Data_for_FY22[[#This Row],[75th]]-AAMC_Raw_Data_for_FY22[[#This Row],[Median]])/25)*20) + AAMC_Raw_Data_for_FY22[[#This Row],[Median]]","v":308001.8},319095,{"$f":"(((AAMC_Raw_Data_for_FY22[[#This Row],[75th]]-AAMC_Raw_Data_for_FY22[[#This Row],[Median]])/25)*30) + AAMC_Raw_Data_for_FY22[[#This Row],[Median]]","v":330188.2},{"$f":"(((AAMC_Raw_Data_for_FY22[[#This Row],[75th]]-AAMC_Raw_Data_for_FY22[[#This Row],[Median]])/25)*35) + AAMC_Raw_Data_for_FY22[[#This Row],[Median]]","v":341281.4},{"$f":"(((AAMC_Raw_Data_for_FY22[[#This Row],[75th]]-AAMC_Raw_Data_for_FY22[[#This Row],[Median]])/25)*40) + AAMC_Raw_Data_for_FY22[[#This Row],[Median]]","v":352374.6}]
[{"$f":"AAMC_Raw_Data_for_FY22[[#This Row],[Source]]&AAMC_Raw_Data_for_FY22[[#This Row],[Type]]&AAMC_Raw_Data_for_FY22[[#This Row],[School Subset]]&AAMC_Raw_Data_for_FY22[[#This Row],[Rank]]&AAMC_Raw_Data_for_FY22[[#This Row],[Degree]]&AAMC_Raw_Data_for_FY22[[#This Row],[Department / Specialty]]&\"L\"","v":"AAMCAcademicPrivateChiefMDEndocrinology-Med.L"},"Endocrinology-Med.",6,"AAMC","Academic","Private","Chief","MD","2021-2022",298795,{"$f":"(((AAMC_Raw_Data_for_FY22[[#This Row],[Median]]-AAMC_Raw_Data_for_FY22[[#This Row],[25th]])/25)*5) + AAMC_Raw_Data_for_FY22[[#This Row],[25th]]","v":306406.59999999998},{"$f":"(((AAMC_Raw_Data_for_FY22[[#This Row],[Median]]-AAMC_Raw_Data_for_FY22[[#This Row],[25th]])/25)*10) + AAMC_Raw_Data_for_FY22[[#This Row],[25th]]","v":314018.2},{"$f":"(((AAMC_Raw_Data_for_FY22[[#This Row],[Median]]-AAMC_Raw_Data_for_FY22[[#This Row],[25th]])/25)*15) + AAMC_Raw_Data_for_FY22[[#This Row],[25th]]","v":321629.8},{"$f":"(((AAMC_Raw_Data_for_FY22[[#This Row],[Median]]-AAMC_Raw_Data_for_FY22[[#This Row],[25th]])/25)*20) + AAMC_Raw_Data_for_FY22[[#This Row],[25th]]","v":329241.40000000002},336853,{"$f":"(((AAMC_Raw_Data_for_FY22[[#This Row],[75th]]-AAMC_Raw_Data_for_FY22[[#This Row],[Median]])/25)*5) + AAMC_Raw_Data_for_FY22[[#This Row],[Median]]","v":349646.8},{"$f":"(((AAMC_Raw_Data_for_FY22[[#This Row],[75th]]-AAMC_Raw_Data_for_FY22[[#This Row],[Median]])/25)*10) + AAMC_Raw_Data_for_FY22[[#This Row],[Median]]","v":362440.6},{"$f":"(((AAMC_Raw_Data_for_FY22[[#This Row],[75th]]-AAMC_Raw_Data_for_FY22[[#This Row],[Median]])/25)*15) + AAMC_Raw_Data_for_FY22[[#This Row],[Median]]","v":375234.4},{"$f":"(((AAMC_Raw_Data_for_FY22[[#This Row],[75th]]-AAMC_Raw_Data_for_FY22[[#This Row],[Median]])/25)*20) + AAMC_Raw_Data_for_FY22[[#This Row],[Median]]","v":388028.2},400822,{"$f":"(((AAMC_Raw_Data_for_FY22[[#This Row],[75th]]-AAMC_Raw_Data_for_FY22[[#This Row],[Median]])/25)*30) + AAMC_Raw_Data_for_FY22[[#This Row],[Median]]","v":413615.8},{"$f":"(((AAMC_Raw_Data_for_FY22[[#This Row],[75th]]-AAMC_Raw_Data_for_FY22[[#This Row],[Median]])/25)*35) + AAMC_Raw_Data_for_FY22[[#This Row],[Median]]","v":426409.6},{"$f":"(((AAMC_Raw_Data_for_FY22[[#This Row],[75th]]-AAMC_Raw_Data_for_FY22[[#This Row],[Median]])/25)*40) + AAMC_Raw_Data_for_FY22[[#This Row],[Median]]","v":439203.4}]
[{"$f":"AAMC_Raw_Data_for_FY22[[#This Row],[Source]]&AAMC_Raw_Data_for_FY22[[#This Row],[Type]]&AAMC_Raw_Data_for_FY22[[#This Row],[School Subset]]&AAMC_Raw_Data_for_FY22[[#This Row],[Rank]]&AAMC_Raw_Data_for_FY22[[#This Row],[Degree]]&AAMC_Raw_Data_for_FY22[[#This Row],[Department / Specialty]]&\"L\"","v":"AAMCAcademicPrivateChairMDEndocrinology-Med.L"},"Endocrinology-Med.",1,"AAMC","Academic","Private","Chair","MD","2021-2022",null,{"$f":"(((AAMC_Raw_Data_for_FY22[[#This Row],[Median]]-AAMC_Raw_Data_for_FY22[[#This Row],[25th]])/25)*5) + AAMC_Raw_Data_for_FY22[[#This Row],[25th]]","v":0},{"$f":"(((AAMC_Raw_Data_for_FY22[[#This Row],[Median]]-AAMC_Raw_Data_for_FY22[[#This Row],[25th]])/25)*10) + AAMC_Raw_Data_for_FY22[[#This Row],[25th]]","v":0},{"$f":"(((AAMC_Raw_Data_for_FY22[[#This Row],[Median]]-AAMC_Raw_Data_for_FY22[[#This Row],[25th]])/25)*15) + AAMC_Raw_Data_for_FY22[[#This Row],[25th]]","v":0},{"$f":"(((AAMC_Raw_Data_for_FY22[[#This Row],[Median]]-AAMC_Raw_Data_for_FY22[[#This Row],[25th]])/25)*20) + AAMC_Raw_Data_for_FY22[[#This Row],[25th]]","v":0},null,{"$f":"(((AAMC_Raw_Data_for_FY22[[#This Row],[75th]]-AAMC_Raw_Data_for_FY22[[#This Row],[Median]])/25)*5) + AAMC_Raw_Data_for_FY22[[#This Row],[Median]]","v":0},{"$f":"(((AAMC_Raw_Data_for_FY22[[#This Row],[75th]]-AAMC_Raw_Data_for_FY22[[#This Row],[Median]])/25)*10) + AAMC_Raw_Data_for_FY22[[#This Row],[Median]]","v":0},{"$f":"(((AAMC_Raw_Data_for_FY22[[#This Row],[75th]]-AAMC_Raw_Data_for_FY22[[#This Row],[Median]])/25)*15) + AAMC_Raw_Data_for_FY22[[#This Row],[Median]]","v":0},{"$f":"(((AAMC_Raw_Data_for_FY22[[#This Row],[75th]]-AAMC_Raw_Data_for_FY22[[#This Row],[Median]])/25)*20) + AAMC_Raw_Data_for_FY22[[#This Row],[Median]]","v":0},null,{"$f":"(((AAMC_Raw_Data_for_FY22[[#This Row],[75th]]-AAMC_Raw_Data_for_FY22[[#This Row],[Median]])/25)*30) + AAMC_Raw_Data_for_FY22[[#This Row],[Median]]","v":0},{"$f":"(((AAMC_Raw_Data_for_FY22[[#This Row],[75th]]-AAMC_Raw_Data_for_FY22[[#This Row],[Median]])/25)*35) + AAMC_Raw_Data_for_FY22[[#This Row],[Median]]","v":0},{"$f":"(((AAMC_Raw_Data_for_FY22[[#This Row],[75th]]-AAMC_Raw_Data_for_FY22[[#This Row],[Median]])/25)*40) + AAMC_Raw_Data_for_FY22[[#This Row],[Median]]","v":0}]
[{"$f":"AAMC_Raw_Data_for_FY22[[#This Row],[Source]]&AAMC_Raw_Data_for_FY22[[#This Row],[Type]]&AAMC_Raw_Data_for_FY22[[#This Row],[School Subset]]&AAMC_Raw_Data_for_FY22[[#This Row],[Rank]]&AAMC_Raw_Data_for_FY22[[#This Row],[Degree]]&AAMC_Raw_Data_for_FY22[[#This Row],[Department / Specialty]]&\"L\"","v":"AAMCAcademicPrivateInstructorMDGastroenterology-Med.L"},"Gastroenterology-Med.",5,"AAMC","Academic","Private","Instructor","MD","2021-2022",115500,{"$f":"(((AAMC_Raw_Data_for_FY22[[#This Row],[Median]]-AAMC_Raw_Data_for_FY22[[#This Row],[25th]])/25)*5) + AAMC_Raw_Data_for_FY22[[#This Row],[25th]]","v":140028.4},{"$f":"(((AAMC_Raw_Data_for_FY22[[#This Row],[Median]]-AAMC_Raw_Data_for_FY22[[#This Row],[25th]])/25)*10) + AAMC_Raw_Data_for_FY22[[#This Row],[25th]]","v":164556.79999999999},{"$f":"(((AAMC_Raw_Data_for_FY22[[#This Row],[Median]]-AAMC_Raw_Data_for_FY22[[#This Row],[25th]])/25)*15) + AAMC_Raw_Data_for_FY22[[#This Row],[25th]]","v":189085.2},{"$f":"(((AAMC_Raw_Data_for_FY22[[#This Row],[Median]]-AAMC_Raw_Data_for_FY22[[#This Row],[25th]])/25)*20) + AAMC_Raw_Data_for_FY22[[#This Row],[25th]]","v":213613.6},238142,{"$f":"(((AAMC_Raw_Data_for_FY22[[#This Row],[75th]]-AAMC_Raw_Data_for_FY22[[#This Row],[Median]])/25)*5) + AAMC_Raw_Data_for_FY22[[#This Row],[Median]]","v":254402},{"$f":"(((AAMC_Raw_Data_for_FY22[[#This Row],[75th]]-AAMC_Raw_Data_for_FY22[[#This Row],[Median]])/25)*10) + AAMC_Raw_Data_for_FY22[[#This Row],[Median]]","v":270662},{"$f":"(((AAMC_Raw_Data_for_FY22[[#This Row],[75th]]-AAMC_Raw_Data_for_FY22[[#This Row],[Median]])/25)*15) + AAMC_Raw_Data_for_FY22[[#This Row],[Median]]","v":286922},{"$f":"(((AAMC_Raw_Data_for_FY22[[#This Row],[75th]]-AAMC_Raw_Data_for_FY22[[#This Row],[Median]])/25)*20) + AAMC_Raw_Data_for_FY22[[#This Row],[Median]]","v":303182},319442,{"$f":"(((AAMC_Raw_Data_for_FY22[[#This Row],[75th]]-AAMC_Raw_Data_for_FY22[[#This Row],[Median]])/25)*30) + AAMC_Raw_Data_for_FY22[[#This Row],[Median]]","v":335702},{"$f":"(((AAMC_Raw_Data_for_FY22[[#This Row],[75th]]-AAMC_Raw_Data_for_FY22[[#This Row],[Median]])/25)*35) + AAMC_Raw_Data_for_FY22[[#This Row],[Median]]","v":351962},{"$f":"(((AAMC_Raw_Data_for_FY22[[#This Row],[75th]]-AAMC_Raw_Data_for_FY22[[#This Row],[Median]])/25)*40) + AAMC_Raw_Data_for_FY22[[#This Row],[Median]]","v":368222}]
[{"$f":"AAMC_Raw_Data_for_FY22[[#This Row],[Source]]&AAMC_Raw_Data_for_FY22[[#This Row],[Type]]&AAMC_Raw_Data_for_FY22[[#This Row],[School Subset]]&AAMC_Raw_Data_for_FY22[[#This Row],[Rank]]&AAMC_Raw_Data_for_FY22[[#This Row],[Degree]]&AAMC_Raw_Data_for_FY22[[#This Row],[Department / Specialty]]&\"L\"","v":"AAMCAcademicPrivateAssistantMDGastroenterology-Med.L"},"Gastroenterology-Med.",4,"AAMC","Academic","Private","Assistant","MD","2021-2022",279010,{"$f":"(((AAMC_Raw_Data_for_FY22[[#This Row],[Median]]-AAMC_Raw_Data_for_FY22[[#This Row],[25th]])/25)*5) + AAMC_Raw_Data_for_FY22[[#This Row],[25th]]","v":290976.40000000002},{"$f":"(((AAMC_Raw_Data_for_FY22[[#This Row],[Median]]-AAMC_Raw_Data_for_FY22[[#This Row],[25th]])/25)*10) + AAMC_Raw_Data_for_FY22[[#This Row],[25th]]","v":302942.8},{"$f":"(((AAMC_Raw_Data_for_FY22[[#This Row],[Median]]-AAMC_Raw_Data_for_FY22[[#This Row],[25th]])/25)*15) + AAMC_Raw_Data_for_FY22[[#This Row],[25th]]","v":314909.2},{"$f":"(((AAMC_Raw_Data_for_FY22[[#This Row],[Median]]-AAMC_Raw_Data_for_FY22[[#This Row],[25th]])/25)*20) + AAMC_Raw_Data_for_FY22[[#This Row],[25th]]","v":326875.59999999998},338842,{"$f":"(((AAMC_Raw_Data_for_FY22[[#This Row],[75th]]-AAMC_Raw_Data_for_FY22[[#This Row],[Median]])/25)*5) + AAMC_Raw_Data_for_FY22[[#This Row],[Median]]","v":352465.4},{"$f":"(((AAMC_Raw_Data_for_FY22[[#This Row],[75th]]-AAMC_Raw_Data_for_FY22[[#This Row],[Median]])/25)*10) + AAMC_Raw_Data_for_FY22[[#This Row],[Median]]","v":366088.8},{"$f":"(((AAMC_Raw_Data_for_FY22[[#This Row],[75th]]-AAMC_Raw_Data_for_FY22[[#This Row],[Median]])/25)*15) + AAMC_Raw_Data_for_FY22[[#This Row],[Median]]","v":379712.2},{"$f":"(((AAMC_Raw_Data_for_FY22[[#This Row],[75th]]-AAMC_Raw_Data_for_FY22[[#This Row],[Median]])/25)*20) + AAMC_Raw_Data_for_FY22[[#This Row],[Median]]","v":393335.6},406959,{"$f":"(((AAMC_Raw_Data_for_FY22[[#This Row],[75th]]-AAMC_Raw_Data_for_FY22[[#This Row],[Median]])/25)*30) + AAMC_Raw_Data_for_FY22[[#This Row],[Median]]","v":420582.40000000002},{"$f":"(((AAMC_Raw_Data_for_FY22[[#This Row],[75th]]-AAMC_Raw_Data_for_FY22[[#This Row],[Median]])/25)*35) + AAMC_Raw_Data_for_FY22[[#This Row],[Median]]","v":434205.8},{"$f":"(((AAMC_Raw_Data_for_FY22[[#This Row],[75th]]-AAMC_Raw_Data_for_FY22[[#This Row],[Median]])/25)*40) + AAMC_Raw_Data_for_FY22[[#This Row],[Median]]","v":447829.2}]
[{"$f":"AAMC_Raw_Data_for_FY22[[#This Row],[Source]]&AAMC_Raw_Data_for_FY22[[#This Row],[Type]]&AAMC_Raw_Data_for_FY22[[#This Row],[School Subset]]&AAMC_Raw_Data_for_FY22[[#This Row],[Rank]]&AAMC_Raw_Data_for_FY22[[#This Row],[Degree]]&AAMC_Raw_Data_for_FY22[[#This Row],[Department / Specialty]]&\"L\"","v":"AAMCAcademicPrivateAssociateMDGastroenterology-Med.L"},"Gastroenterology-Med.",3,"AAMC","Academic","Private","Associate","MD","2021-2022",323186,{"$f":"(((AAMC_Raw_Data_for_FY22[[#This Row],[Median]]-AAMC_Raw_Data_for_FY22[[#This Row],[25th]])/25)*5) + AAMC_Raw_Data_for_FY22[[#This Row],[25th]]","v":338484.8},{"$f":"(((AAMC_Raw_Data_for_FY22[[#This Row],[Median]]-AAMC_Raw_Data_for_FY22[[#This Row],[25th]])/25)*10) + AAMC_Raw_Data_for_FY22[[#This Row],[25th]]","v":353783.6},{"$f":"(((AAMC_Raw_Data_for_FY22[[#This Row],[Median]]-AAMC_Raw_Data_for_FY22[[#This Row],[25th]])/25)*15) + AAMC_Raw_Data_for_FY22[[#This Row],[25th]]","v":369082.4},{"$f":"(((AAMC_Raw_Data_for_FY22[[#This Row],[Median]]-AAMC_Raw_Data_for_FY22[[#This Row],[25th]])/25)*20) + AAMC_Raw_Data_for_FY22[[#This Row],[25th]]","v":384381.2},399680,{"$f":"(((AAMC_Raw_Data_for_FY22[[#This Row],[75th]]-AAMC_Raw_Data_for_FY22[[#This Row],[Median]])/25)*5) + AAMC_Raw_Data_for_FY22[[#This Row],[Median]]","v":416456.6},{"$f":"(((AAMC_Raw_Data_for_FY22[[#This Row],[75th]]-AAMC_Raw_Data_for_FY22[[#This Row],[Median]])/25)*10) + AAMC_Raw_Data_for_FY22[[#This Row],[Median]]","v":433233.2},{"$f":"(((AAMC_Raw_Data_for_FY22[[#This Row],[75th]]-AAMC_Raw_Data_for_FY22[[#This Row],[Median]])/25)*15) + AAMC_Raw_Data_for_FY22[[#This Row],[Median]]","v":450009.8},{"$f":"(((AAMC_Raw_Data_for_FY22[[#This Row],[75th]]-AAMC_Raw_Data_for_FY22[[#This Row],[Median]])/25)*20) + AAMC_Raw_Data_for_FY22[[#This Row],[Median]]","v":466786.4},483563,{"$f":"(((AAMC_Raw_Data_for_FY22[[#This Row],[75th]]-AAMC_Raw_Data_for_FY22[[#This Row],[Median]])/25)*30) + AAMC_Raw_Data_for_FY22[[#This Row],[Median]]","v":500339.6},{"$f":"(((AAMC_Raw_Data_for_FY22[[#This Row],[75th]]-AAMC_Raw_Data_for_FY22[[#This Row],[Median]])/25)*35) + AAMC_Raw_Data_for_FY22[[#This Row],[Median]]","v":517116.2},{"$f":"(((AAMC_Raw_Data_for_FY22[[#This Row],[75th]]-AAMC_Raw_Data_for_FY22[[#This Row],[Median]])/25)*40) + AAMC_Raw_Data_for_FY22[[#This Row],[Median]]","v":533892.80000000005}]
[{"$f":"AAMC_Raw_Data_for_FY22[[#This Row],[Source]]&AAMC_Raw_Data_for_FY22[[#This Row],[Type]]&AAMC_Raw_Data_for_FY22[[#This Row],[School Subset]]&AAMC_Raw_Data_for_FY22[[#This Row],[Rank]]&AAMC_Raw_Data_for_FY22[[#This Row],[Degree]]&AAMC_Raw_Data_for_FY22[[#This Row],[Department / Specialty]]&\"L\"","v":"AAMCAcademicPrivateProfessorMDGastroenterology-Med.L"},"Gastroenterology-Med.",2,"AAMC","Academic","Private","Professor","MD","2021-2022",350662,{"$f":"(((AAMC_Raw_Data_for_FY22[[#This Row],[Median]]-AAMC_Raw_Data_for_FY22[[#This Row],[25th]])/25)*5) + AAMC_Raw_Data_for_FY22[[#This Row],[25th]]","v":366971.8},{"$f":"(((AAMC_Raw_Data_for_FY22[[#This Row],[Median]]-AAMC_Raw_Data_for_FY22[[#This Row],[25th]])/25)*10) + AAMC_Raw_Data_for_FY22[[#This Row],[25th]]","v":383281.6},{"$f":"(((AAMC_Raw_Data_for_FY22[[#This Row],[Median]]-AAMC_Raw_Data_for_FY22[[#This Row],[25th]])/25)*15) + AAMC_Raw_Data_for_FY22[[#This Row],[25th]]","v":399591.4},{"$f":"(((AAMC_Raw_Data_for_FY22[[#This Row],[Median]]-AAMC_Raw_Data_for_FY22[[#This Row],[25th]])/25)*20) + AAMC_Raw_Data_for_FY22[[#This Row],[25th]]","v":415901.2},432211,{"$f":"(((AAMC_Raw_Data_for_FY22[[#This Row],[75th]]-AAMC_Raw_Data_for_FY22[[#This Row],[Median]])/25)*5) + AAMC_Raw_Data_for_FY22[[#This Row],[Median]]","v":456355.6},{"$f":"(((AAMC_Raw_Data_for_FY22[[#This Row],[75th]]-AAMC_Raw_Data_for_FY22[[#This Row],[Median]])/25)*10) + AAMC_Raw_Data_for_FY22[[#This Row],[Median]]","v":480500.2},{"$f":"(((AAMC_Raw_Data_for_FY22[[#This Row],[75th]]-AAMC_Raw_Data_for_FY22[[#This Row],[Median]])/25)*15) + AAMC_Raw_Data_for_FY22[[#This Row],[Median]]","v":504644.8},{"$f":"(((AAMC_Raw_Data_for_FY22[[#This Row],[75th]]-AAMC_Raw_Data_for_FY22[[#This Row],[Median]])/25)*20) + AAMC_Raw_Data_for_FY22[[#This Row],[Median]]","v":528789.4},552934,{"$f":"(((AAMC_Raw_Data_for_FY22[[#This Row],[75th]]-AAMC_Raw_Data_for_FY22[[#This Row],[Median]])/25)*30) + AAMC_Raw_Data_for_FY22[[#This Row],[Median]]","v":577078.6},{"$f":"(((AAMC_Raw_Data_for_FY22[[#This Row],[75th]]-AAMC_Raw_Data_for_FY22[[#This Row],[Median]])/25)*35) + AAMC_Raw_Data_for_FY22[[#This Row],[Median]]","v":601223.19999999995},{"$f":"(((AAMC_Raw_Data_for_FY22[[#This Row],[75th]]-AAMC_Raw_Data_for_FY22[[#This Row],[Median]])/25)*40) + AAMC_Raw_Data_for_FY22[[#This Row],[Median]]","v":625367.80000000005}]
[{"$f":"AAMC_Raw_Data_for_FY22[[#This Row],[Source]]&AAMC_Raw_Data_for_FY22[[#This Row],[Type]]&AAMC_Raw_Data_for_FY22[[#This Row],[School Subset]]&AAMC_Raw_Data_for_FY22[[#This Row],[Rank]]&AAMC_Raw_Data_for_FY22[[#This Row],[Degree]]&AAMC_Raw_Data_for_FY22[[#This Row],[Department / Specialty]]&\"L\"","v":"AAMCAcademicPrivateChiefMDGastroenterology-Med.L"},"Gastroenterology-Med.",6,"AAMC","Academic","Private","Chief","MD","2021-2022",504614,{"$f":"(((AAMC_Raw_Data_for_FY22[[#This Row],[Median]]-AAMC_Raw_Data_for_FY22[[#This Row],[25th]])/25)*5) + AAMC_Raw_Data_for_FY22[[#This Row],[25th]]","v":517861.8},{"$f":"(((AAMC_Raw_Data_for_FY22[[#This Row],[Median]]-AAMC_Raw_Data_for_FY22[[#This Row],[25th]])/25)*10) + AAMC_Raw_Data_for_FY22[[#This Row],[25th]]","v":531109.6},{"$f":"(((AAMC_Raw_Data_for_FY22[[#This Row],[Median]]-AAMC_Raw_Data_for_FY22[[#This Row],[25th]])/25)*15) + AAMC_Raw_Data_for_FY22[[#This Row],[25th]]","v":544357.4},{"$f":"(((AAMC_Raw_Data_for_FY22[[#This Row],[Median]]-AAMC_Raw_Data_for_FY22[[#This Row],[25th]])/25)*20) + AAMC_Raw_Data_for_FY22[[#This Row],[25th]]","v":557605.19999999995},570853,{"$f":"(((AAMC_Raw_Data_for_FY22[[#This Row],[75th]]-AAMC_Raw_Data_for_FY22[[#This Row],[Median]])/25)*5) + AAMC_Raw_Data_for_FY22[[#This Row],[Median]]","v":584609.80000000005},{"$f":"(((AAMC_Raw_Data_for_FY22[[#This Row],[75th]]-AAMC_Raw_Data_for_FY22[[#This Row],[Median]])/25)*10) + AAMC_Raw_Data_for_FY22[[#This Row],[Median]]","v":598366.6},{"$f":"(((AAMC_Raw_Data_for_FY22[[#This Row],[75th]]-AAMC_Raw_Data_for_FY22[[#This Row],[Median]])/25)*15) + AAMC_Raw_Data_for_FY22[[#This Row],[Median]]","v":612123.4},{"$f":"(((AAMC_Raw_Data_for_FY22[[#This Row],[75th]]-AAMC_Raw_Data_for_FY22[[#This Row],[Median]])/25)*20) + AAMC_Raw_Data_for_FY22[[#This Row],[Median]]","v":625880.19999999995},639637,{"$f":"(((AAMC_Raw_Data_for_FY22[[#This Row],[75th]]-AAMC_Raw_Data_for_FY22[[#This Row],[Median]])/25)*30) + AAMC_Raw_Data_for_FY22[[#This Row],[Median]]","v":653393.80000000005},{"$f":"(((AAMC_Raw_Data_for_FY22[[#This Row],[75th]]-AAMC_Raw_Data_for_FY22[[#This Row],[Median]])/25)*35) + AAMC_Raw_Data_for_FY22[[#This Row],[Median]]","v":667150.6},{"$f":"(((AAMC_Raw_Data_for_FY22[[#This Row],[75th]]-AAMC_Raw_Data_for_FY22[[#This Row],[Median]])/25)*40) + AAMC_Raw_Data_for_FY22[[#This Row],[Median]]","v":680907.4}]
[{"$f":"AAMC_Raw_Data_for_FY22[[#This Row],[Source]]&AAMC_Raw_Data_for_FY22[[#This Row],[Type]]&AAMC_Raw_Data_for_FY22[[#This Row],[School Subset]]&AAMC_Raw_Data_for_FY22[[#This Row],[Rank]]&AAMC_Raw_Data_for_FY22[[#This Row],[Degree]]&AAMC_Raw_Data_for_FY22[[#This Row],[Department / Specialty]]&\"L\"","v":"AAMCAcademicPrivateChairMDGastroenterology-Med.L"},"Gastroenterology-Med.",1,"AAMC","Academic","Private","Chair","MD","2021-2022",null,{"$f":"(((AAMC_Raw_Data_for_FY22[[#This Row],[Median]]-AAMC_Raw_Data_for_FY22[[#This Row],[25th]])/25)*5) + AAMC_Raw_Data_for_FY22[[#This Row],[25th]]","v":0},{"$f":"(((AAMC_Raw_Data_for_FY22[[#This Row],[Median]]-AAMC_Raw_Data_for_FY22[[#This Row],[25th]])/25)*10) + AAMC_Raw_Data_for_FY22[[#This Row],[25th]]","v":0},{"$f":"(((AAMC_Raw_Data_for_FY22[[#This Row],[Median]]-AAMC_Raw_Data_for_FY22[[#This Row],[25th]])/25)*15) + AAMC_Raw_Data_for_FY22[[#This Row],[25th]]","v":0},{"$f":"(((AAMC_Raw_Data_for_FY22[[#This Row],[Median]]-AAMC_Raw_Data_for_FY22[[#This Row],[25th]])/25)*20) + AAMC_Raw_Data_for_FY22[[#This Row],[25th]]","v":0},null,{"$f":"(((AAMC_Raw_Data_for_FY22[[#This Row],[75th]]-AAMC_Raw_Data_for_FY22[[#This Row],[Median]])/25)*5) + AAMC_Raw_Data_for_FY22[[#This Row],[Median]]","v":0},{"$f":"(((AAMC_Raw_Data_for_FY22[[#This Row],[75th]]-AAMC_Raw_Data_for_FY22[[#This Row],[Median]])/25)*10) + AAMC_Raw_Data_for_FY22[[#This Row],[Median]]","v":0},{"$f":"(((AAMC_Raw_Data_for_FY22[[#This Row],[75th]]-AAMC_Raw_Data_for_FY22[[#This Row],[Median]])/25)*15) + AAMC_Raw_Data_for_FY22[[#This Row],[Median]]","v":0},{"$f":"(((AAMC_Raw_Data_for_FY22[[#This Row],[75th]]-AAMC_Raw_Data_for_FY22[[#This Row],[Median]])/25)*20) + AAMC_Raw_Data_for_FY22[[#This Row],[Median]]","v":0},null,{"$f":"(((AAMC_Raw_Data_for_FY22[[#This Row],[75th]]-AAMC_Raw_Data_for_FY22[[#This Row],[Median]])/25)*30) + AAMC_Raw_Data_for_FY22[[#This Row],[Median]]","v":0},{"$f":"(((AAMC_Raw_Data_for_FY22[[#This Row],[75th]]-AAMC_Raw_Data_for_FY22[[#This Row],[Median]])/25)*35) + AAMC_Raw_Data_for_FY22[[#This Row],[Median]]","v":0},{"$f":"(((AAMC_Raw_Data_for_FY22[[#This Row],[75th]]-AAMC_Raw_Data_for_FY22[[#This Row],[Median]])/25)*40) + AAMC_Raw_Data_for_FY22[[#This Row],[Median]]","v":0}]
[{"$f":"AAMC_Raw_Data_for_FY22[[#This Row],[Source]]&AAMC_Raw_Data_for_FY22[[#This Row],[Type]]&AAMC_Raw_Data_for_FY22[[#This Row],[School Subset]]&AAMC_Raw_Data_for_FY22[[#This Row],[Rank]]&AAMC_Raw_Data_for_FY22[[#This Row],[Degree]]&AAMC_Raw_Data_for_FY22[[#This Row],[Department / Specialty]]&\"L\"","v":"AAMCAcademicPrivateInstructorMDGeneral Internal MedicineL"},"General Internal Medicine",5,"AAMC","Academic","Private","Instructor","MD","2021-2022",160786,{"$f":"(((AAMC_Raw_Data_for_FY22[[#This Row],[Median]]-AAMC_Raw_Data_for_FY22[[#This Row],[25th]])/25)*5) + AAMC_Raw_Data_for_FY22[[#This Row],[25th]]","v":170828.6},{"$f":"(((AAMC_Raw_Data_for_FY22[[#This Row],[Median]]-AAMC_Raw_Data_for_FY22[[#This Row],[25th]])/25)*10) + AAMC_Raw_Data_for_FY22[[#This Row],[25th]]","v":180871.2},{"$f":"(((AAMC_Raw_Data_for_FY22[[#This Row],[Median]]-AAMC_Raw_Data_for_FY22[[#This Row],[25th]])/25)*15) + AAMC_Raw_Data_for_FY22[[#This Row],[25th]]","v":190913.8},{"$f":"(((AAMC_Raw_Data_for_FY22[[#This Row],[Median]]-AAMC_Raw_Data_for_FY22[[#This Row],[25th]])/25)*20) + AAMC_Raw_Data_for_FY22[[#This Row],[25th]]","v":200956.4},210999,{"$f":"(((AAMC_Raw_Data_for_FY22[[#This Row],[75th]]-AAMC_Raw_Data_for_FY22[[#This Row],[Median]])/25)*5) + AAMC_Raw_Data_for_FY22[[#This Row],[Median]]","v":222011.8},{"$f":"(((AAMC_Raw_Data_for_FY22[[#This Row],[75th]]-AAMC_Raw_Data_for_FY22[[#This Row],[Median]])/25)*10) + AAMC_Raw_Data_for_FY22[[#This Row],[Median]]","v":233024.6},{"$f":"(((AAMC_Raw_Data_for_FY22[[#This Row],[75th]]-AAMC_Raw_Data_for_FY22[[#This Row],[Median]])/25)*15) + AAMC_Raw_Data_for_FY22[[#This Row],[Median]]","v":244037.4},{"$f":"(((AAMC_Raw_Data_for_FY22[[#This Row],[75th]]-AAMC_Raw_Data_for_FY22[[#This Row],[Median]])/25)*20) + AAMC_Raw_Data_for_FY22[[#This Row],[Median]]","v":255050.2},266063,{"$f":"(((AAMC_Raw_Data_for_FY22[[#This Row],[75th]]-AAMC_Raw_Data_for_FY22[[#This Row],[Median]])/25)*30) + AAMC_Raw_Data_for_FY22[[#This Row],[Median]]","v":277075.8},{"$f":"(((AAMC_Raw_Data_for_FY22[[#This Row],[75th]]-AAMC_Raw_Data_for_FY22[[#This Row],[Median]])/25)*35) + AAMC_Raw_Data_for_FY22[[#This Row],[Median]]","v":288088.59999999998},{"$f":"(((AAMC_Raw_Data_for_FY22[[#This Row],[75th]]-AAMC_Raw_Data_for_FY22[[#This Row],[Median]])/25)*40) + AAMC_Raw_Data_for_FY22[[#This Row],[Median]]","v":299101.40000000002}]
[{"$f":"AAMC_Raw_Data_for_FY22[[#This Row],[Source]]&AAMC_Raw_Data_for_FY22[[#This Row],[Type]]&AAMC_Raw_Data_for_FY22[[#This Row],[School Subset]]&AAMC_Raw_Data_for_FY22[[#This Row],[Rank]]&AAMC_Raw_Data_for_FY22[[#This Row],[Degree]]&AAMC_Raw_Data_for_FY22[[#This Row],[Department / Specialty]]&\"L\"","v":"AAMCAcademicPrivateAssistantMDGeneral Internal MedicineL"},"General Internal Medicine",4,"AAMC","Academic","Private","Assistant","MD","2021-2022",205000,{"$f":"(((AAMC_Raw_Data_for_FY22[[#This Row],[Median]]-AAMC_Raw_Data_for_FY22[[#This Row],[25th]])/25)*5) + AAMC_Raw_Data_for_FY22[[#This Row],[25th]]","v":211361},{"$f":"(((AAMC_Raw_Data_for_FY22[[#This Row],[Median]]-AAMC_Raw_Data_for_FY22[[#This Row],[25th]])/25)*10) + AAMC_Raw_Data_for_FY22[[#This Row],[25th]]","v":217722},{"$f":"(((AAMC_Raw_Data_for_FY22[[#This Row],[Median]]-AAMC_Raw_Data_for_FY22[[#This Row],[25th]])/25)*15) + AAMC_Raw_Data_for_FY22[[#This Row],[25th]]","v":224083},{"$f":"(((AAMC_Raw_Data_for_FY22[[#This Row],[Median]]-AAMC_Raw_Data_for_FY22[[#This Row],[25th]])/25)*20) + AAMC_Raw_Data_for_FY22[[#This Row],[25th]]","v":230444},236805,{"$f":"(((AAMC_Raw_Data_for_FY22[[#This Row],[75th]]-AAMC_Raw_Data_for_FY22[[#This Row],[Median]])/25)*5) + AAMC_Raw_Data_for_FY22[[#This Row],[Median]]","v":246018.2},{"$f":"(((AAMC_Raw_Data_for_FY22[[#This Row],[75th]]-AAMC_Raw_Data_for_FY22[[#This Row],[Median]])/25)*10) + AAMC_Raw_Data_for_FY22[[#This Row],[Median]]","v":255231.4},{"$f":"(((AAMC_Raw_Data_for_FY22[[#This Row],[75th]]-AAMC_Raw_Data_for_FY22[[#This Row],[Median]])/25)*15) + AAMC_Raw_Data_for_FY22[[#This Row],[Median]]","v":264444.59999999998},{"$f":"(((AAMC_Raw_Data_for_FY22[[#This Row],[75th]]-AAMC_Raw_Data_for_FY22[[#This Row],[Median]])/25)*20) + AAMC_Raw_Data_for_FY22[[#This Row],[Median]]","v":273657.8},282871,{"$f":"(((AAMC_Raw_Data_for_FY22[[#This Row],[75th]]-AAMC_Raw_Data_for_FY22[[#This Row],[Median]])/25)*30) + AAMC_Raw_Data_for_FY22[[#This Row],[Median]]","v":292084.2},{"$f":"(((AAMC_Raw_Data_for_FY22[[#This Row],[75th]]-AAMC_Raw_Data_for_FY22[[#This Row],[Median]])/25)*35) + AAMC_Raw_Data_for_FY22[[#This Row],[Median]]","v":301297.40000000002},{"$f":"(((AAMC_Raw_Data_for_FY22[[#This Row],[75th]]-AAMC_Raw_Data_for_FY22[[#This Row],[Median]])/25)*40) + AAMC_Raw_Data_for_FY22[[#This Row],[Median]]","v":310510.59999999998}]
[{"$f":"AAMC_Raw_Data_for_FY22[[#This Row],[Source]]&AAMC_Raw_Data_for_FY22[[#This Row],[Type]]&AAMC_Raw_Data_for_FY22[[#This Row],[School Subset]]&AAMC_Raw_Data_for_FY22[[#This Row],[Rank]]&AAMC_Raw_Data_for_FY22[[#This Row],[Degree]]&AAMC_Raw_Data_for_FY22[[#This Row],[Department / Specialty]]&\"L\"","v":"AAMCAcademicPrivateAssociateMDGeneral Internal MedicineL"},"General Internal Medicine",3,"AAMC","Academic","Private","Associate","MD","2021-2022",224915,{"$f":"(((AAMC_Raw_Data_for_FY22[[#This Row],[Median]]-AAMC_Raw_Data_for_FY22[[#This Row],[25th]])/25)*5) + AAMC_Raw_Data_for_FY22[[#This Row],[25th]]","v":230081.2},{"$f":"(((AAMC_Raw_Data_for_FY22[[#This Row],[Median]]-AAMC_Raw_Data_for_FY22[[#This Row],[25th]])/25)*10) + AAMC_Raw_Data_for_FY22[[#This Row],[25th]]","v":235247.4},{"$f":"(((AAMC_Raw_Data_for_FY22[[#This Row],[Median]]-AAMC_Raw_Data_for_FY22[[#This Row],[25th]])/25)*15) + AAMC_Raw_Data_for_FY22[[#This Row],[25th]]","v":240413.6},{"$f":"(((AAMC_Raw_Data_for_FY22[[#This Row],[Median]]-AAMC_Raw_Data_for_FY22[[#This Row],[25th]])/25)*20) + AAMC_Raw_Data_for_FY22[[#This Row],[25th]]","v":245579.8},250746,{"$f":"(((AAMC_Raw_Data_for_FY22[[#This Row],[75th]]-AAMC_Raw_Data_for_FY22[[#This Row],[Median]])/25)*5) + AAMC_Raw_Data_for_FY22[[#This Row],[Median]]","v":259878},{"$f":"(((AAMC_Raw_Data_for_FY22[[#This Row],[75th]]-AAMC_Raw_Data_for_FY22[[#This Row],[Median]])/25)*10) + AAMC_Raw_Data_for_FY22[[#This Row],[Median]]","v":269010},{"$f":"(((AAMC_Raw_Data_for_FY22[[#This Row],[75th]]-AAMC_Raw_Data_for_FY22[[#This Row],[Median]])/25)*15) + AAMC_Raw_Data_for_FY22[[#This Row],[Median]]","v":278142},{"$f":"(((AAMC_Raw_Data_for_FY22[[#This Row],[75th]]-AAMC_Raw_Data_for_FY22[[#This Row],[Median]])/25)*20) + AAMC_Raw_Data_for_FY22[[#This Row],[Median]]","v":287274},296406,{"$f":"(((AAMC_Raw_Data_for_FY22[[#This Row],[75th]]-AAMC_Raw_Data_for_FY22[[#This Row],[Median]])/25)*30) + AAMC_Raw_Data_for_FY22[[#This Row],[Median]]","v":305538},{"$f":"(((AAMC_Raw_Data_for_FY22[[#This Row],[75th]]-AAMC_Raw_Data_for_FY22[[#This Row],[Median]])/25)*35) + AAMC_Raw_Data_for_FY22[[#This Row],[Median]]","v":314670},{"$f":"(((AAMC_Raw_Data_for_FY22[[#This Row],[75th]]-AAMC_Raw_Data_for_FY22[[#This Row],[Median]])/25)*40) + AAMC_Raw_Data_for_FY22[[#This Row],[Median]]","v":323802}]
[{"$f":"AAMC_Raw_Data_for_FY22[[#This Row],[Source]]&AAMC_Raw_Data_for_FY22[[#This Row],[Type]]&AAMC_Raw_Data_for_FY22[[#This Row],[School Subset]]&AAMC_Raw_Data_for_FY22[[#This Row],[Rank]]&AAMC_Raw_Data_for_FY22[[#This Row],[Degree]]&AAMC_Raw_Data_for_FY22[[#This Row],[Department / Specialty]]&\"L\"","v":"AAMCAcademicPrivateProfessorMDGeneral Internal MedicineL"},"General Internal Medicine",2,"AAMC","Academic","Private","Professor","MD","2021-2022",254967,{"$f":"(((AAMC_Raw_Data_for_FY22[[#This Row],[Median]]-AAMC_Raw_Data_for_FY22[[#This Row],[25th]])/25)*5) + AAMC_Raw_Data_for_FY22[[#This Row],[25th]]","v":260940.4},{"$f":"(((AAMC_Raw_Data_for_FY22[[#This Row],[Median]]-AAMC_Raw_Data_for_FY22[[#This Row],[25th]])/25)*10) + AAMC_Raw_Data_for_FY22[[#This Row],[25th]]","v":266913.8},{"$f":"(((AAMC_Raw_Data_for_FY22[[#This Row],[Median]]-AAMC_Raw_Data_for_FY22[[#This Row],[25th]])/25)*15) + AAMC_Raw_Data_for_FY22[[#This Row],[25th]]","v":272887.2},{"$f":"(((AAMC_Raw_Data_for_FY22[[#This Row],[Median]]-AAMC_Raw_Data_for_FY22[[#This Row],[25th]])/25)*20) + AAMC_Raw_Data_for_FY22[[#This Row],[25th]]","v":278860.59999999998},284834,{"$f":"(((AAMC_Raw_Data_for_FY22[[#This Row],[75th]]-AAMC_Raw_Data_for_FY22[[#This Row],[Median]])/25)*5) + AAMC_Raw_Data_for_FY22[[#This Row],[Median]]","v":295612.40000000002},{"$f":"(((AAMC_Raw_Data_for_FY22[[#This Row],[75th]]-AAMC_Raw_Data_for_FY22[[#This Row],[Median]])/25)*10) + AAMC_Raw_Data_for_FY22[[#This Row],[Median]]","v":306390.8},{"$f":"(((AAMC_Raw_Data_for_FY22[[#This Row],[75th]]-AAMC_Raw_Data_for_FY22[[#This Row],[Median]])/25)*15) + AAMC_Raw_Data_for_FY22[[#This Row],[Median]]","v":317169.2},{"$f":"(((AAMC_Raw_Data_for_FY22[[#This Row],[75th]]-AAMC_Raw_Data_for_FY22[[#This Row],[Median]])/25)*20) + AAMC_Raw_Data_for_FY22[[#This Row],[Median]]","v":327947.59999999998},338726,{"$f":"(((AAMC_Raw_Data_for_FY22[[#This Row],[75th]]-AAMC_Raw_Data_for_FY22[[#This Row],[Median]])/25)*30) + AAMC_Raw_Data_for_FY22[[#This Row],[Median]]","v":349504.4},{"$f":"(((AAMC_Raw_Data_for_FY22[[#This Row],[75th]]-AAMC_Raw_Data_for_FY22[[#This Row],[Median]])/25)*35) + AAMC_Raw_Data_for_FY22[[#This Row],[Median]]","v":360282.8},{"$f":"(((AAMC_Raw_Data_for_FY22[[#This Row],[75th]]-AAMC_Raw_Data_for_FY22[[#This Row],[Median]])/25)*40) + AAMC_Raw_Data_for_FY22[[#This Row],[Median]]","v":371061.2}]
[{"$f":"AAMC_Raw_Data_for_FY22[[#This Row],[Source]]&AAMC_Raw_Data_for_FY22[[#This Row],[Type]]&AAMC_Raw_Data_for_FY22[[#This Row],[School Subset]]&AAMC_Raw_Data_for_FY22[[#This Row],[Rank]]&AAMC_Raw_Data_for_FY22[[#This Row],[Degree]]&AAMC_Raw_Data_for_FY22[[#This Row],[Department / Specialty]]&\"L\"","v":"AAMCAcademicPrivateChiefMDGeneral Internal MedicineL"},"General Internal Medicine",6,"AAMC","Academic","Private","Chief","MD","2021-2022",302979,{"$f":"(((AAMC_Raw_Data_for_FY22[[#This Row],[Median]]-AAMC_Raw_Data_for_FY22[[#This Row],[25th]])/25)*5) + AAMC_Raw_Data_for_FY22[[#This Row],[25th]]","v":312893.40000000002},{"$f":"(((AAMC_Raw_Data_for_FY22[[#This Row],[Median]]-AAMC_Raw_Data_for_FY22[[#This Row],[25th]])/25)*10) + AAMC_Raw_Data_for_FY22[[#This Row],[25th]]","v":322807.8},{"$f":"(((AAMC_Raw_Data_for_FY22[[#This Row],[Median]]-AAMC_Raw_Data_for_FY22[[#This Row],[25th]])/25)*15) + AAMC_Raw_Data_for_FY22[[#This Row],[25th]]","v":332722.2},{"$f":"(((AAMC_Raw_Data_for_FY22[[#This Row],[Median]]-AAMC_Raw_Data_for_FY22[[#This Row],[25th]])/25)*20) + AAMC_Raw_Data_for_FY22[[#This Row],[25th]]","v":342636.6},352551,{"$f":"(((AAMC_Raw_Data_for_FY22[[#This Row],[75th]]-AAMC_Raw_Data_for_FY22[[#This Row],[Median]])/25)*5) + AAMC_Raw_Data_for_FY22[[#This Row],[Median]]","v":370611.4},{"$f":"(((AAMC_Raw_Data_for_FY22[[#This Row],[75th]]-AAMC_Raw_Data_for_FY22[[#This Row],[Median]])/25)*10) + AAMC_Raw_Data_for_FY22[[#This Row],[Median]]","v":388671.8},{"$f":"(((AAMC_Raw_Data_for_FY22[[#This Row],[75th]]-AAMC_Raw_Data_for_FY22[[#This Row],[Median]])/25)*15) + AAMC_Raw_Data_for_FY22[[#This Row],[Median]]","v":406732.2},{"$f":"(((AAMC_Raw_Data_for_FY22[[#This Row],[75th]]-AAMC_Raw_Data_for_FY22[[#This Row],[Median]])/25)*20) + AAMC_Raw_Data_for_FY22[[#This Row],[Median]]","v":424792.6},442853,{"$f":"(((AAMC_Raw_Data_for_FY22[[#This Row],[75th]]-AAMC_Raw_Data_for_FY22[[#This Row],[Median]])/25)*30) + AAMC_Raw_Data_for_FY22[[#This Row],[Median]]","v":460913.4},{"$f":"(((AAMC_Raw_Data_for_FY22[[#This Row],[75th]]-AAMC_Raw_Data_for_FY22[[#This Row],[Median]])/25)*35) + AAMC_Raw_Data_for_FY22[[#This Row],[Median]]","v":478973.8},{"$f":"(((AAMC_Raw_Data_for_FY22[[#This Row],[75th]]-AAMC_Raw_Data_for_FY22[[#This Row],[Median]])/25)*40) + AAMC_Raw_Data_for_FY22[[#This Row],[Median]]","v":497034.2}]
[{"$f":"AAMC_Raw_Data_for_FY22[[#This Row],[Source]]&AAMC_Raw_Data_for_FY22[[#This Row],[Type]]&AAMC_Raw_Data_for_FY22[[#This Row],[School Subset]]&AAMC_Raw_Data_for_FY22[[#This Row],[Rank]]&AAMC_Raw_Data_for_FY22[[#This Row],[Degree]]&AAMC_Raw_Data_for_FY22[[#This Row],[Department / Specialty]]&\"L\"","v":"AAMCAcademicPrivateChairMDGeneral Internal MedicineL"},"General Internal Medicine",1,"AAMC","Academic","Private","Chair","MD","2021-2022",414000,{"$f":"(((AAMC_Raw_Data_for_FY22[[#This Row],[Median]]-AAMC_Raw_Data_for_FY22[[#This Row],[25th]])/25)*5) + AAMC_Raw_Data_for_FY22[[#This Row],[25th]]","v":452200.2},{"$f":"(((AAMC_Raw_Data_for_FY22[[#This Row],[Median]]-AAMC_Raw_Data_for_FY22[[#This Row],[25th]])/25)*10) + AAMC_Raw_Data_for_FY22[[#This Row],[25th]]","v":490400.4},{"$f":"(((AAMC_Raw_Data_for_FY22[[#This Row],[Median]]-AAMC_Raw_Data_for_FY22[[#This Row],[25th]])/25)*15) + AAMC_Raw_Data_for_FY22[[#This Row],[25th]]","v":528600.6},{"$f":"(((AAMC_Raw_Data_for_FY22[[#This Row],[Median]]-AAMC_Raw_Data_for_FY22[[#This Row],[25th]])/25)*20) + AAMC_Raw_Data_for_FY22[[#This Row],[25th]]","v":566800.80000000005},605001,{"$f":"(((AAMC_Raw_Data_for_FY22[[#This Row],[75th]]-AAMC_Raw_Data_for_FY22[[#This Row],[Median]])/25)*5) + AAMC_Raw_Data_for_FY22[[#This Row],[Median]]","v":653783.4},{"$f":"(((AAMC_Raw_Data_for_FY22[[#This Row],[75th]]-AAMC_Raw_Data_for_FY22[[#This Row],[Median]])/25)*10) + AAMC_Raw_Data_for_FY22[[#This Row],[Median]]","v":702565.8},{"$f":"(((AAMC_Raw_Data_for_FY22[[#This Row],[75th]]-AAMC_Raw_Data_for_FY22[[#This Row],[Median]])/25)*15) + AAMC_Raw_Data_for_FY22[[#This Row],[Median]]","v":751348.2},{"$f":"(((AAMC_Raw_Data_for_FY22[[#This Row],[75th]]-AAMC_Raw_Data_for_FY22[[#This Row],[Median]])/25)*20) + AAMC_Raw_Data_for_FY22[[#This Row],[Median]]","v":800130.6},848913,{"$f":"(((AAMC_Raw_Data_for_FY22[[#This Row],[75th]]-AAMC_Raw_Data_for_FY22[[#This Row],[Median]])/25)*30) + AAMC_Raw_Data_for_FY22[[#This Row],[Median]]","v":897695.39999999991},{"$f":"(((AAMC_Raw_Data_for_FY22[[#This Row],[75th]]-AAMC_Raw_Data_for_FY22[[#This Row],[Median]])/25)*35) + AAMC_Raw_Data_for_FY22[[#This Row],[Median]]","v":946477.8},{"$f":"(((AAMC_Raw_Data_for_FY22[[#This Row],[75th]]-AAMC_Raw_Data_for_FY22[[#This Row],[Median]])/25)*40) + AAMC_Raw_Data_for_FY22[[#This Row],[Median]]","v":995260.2}]
[{"$f":"AAMC_Raw_Data_for_FY22[[#This Row],[Source]]&AAMC_Raw_Data_for_FY22[[#This Row],[Type]]&AAMC_Raw_Data_for_FY22[[#This Row],[School Subset]]&AAMC_Raw_Data_for_FY22[[#This Row],[Rank]]&AAMC_Raw_Data_for_FY22[[#This Row],[Degree]]&AAMC_Raw_Data_for_FY22[[#This Row],[Department / Specialty]]&\"L\"","v":"AAMCAcademicPrivateInstructorMDGeriatrics-Med.L"},"Geriatrics-Med.",5,"AAMC","Academic","Private","Instructor","MD","2021-2022",174425,{"$f":"(((AAMC_Raw_Data_for_FY22[[#This Row],[Median]]-AAMC_Raw_Data_for_FY22[[#This Row],[25th]])/25)*5) + AAMC_Raw_Data_for_FY22[[#This Row],[25th]]","v":179661.8},{"$f":"(((AAMC_Raw_Data_for_FY22[[#This Row],[Median]]-AAMC_Raw_Data_for_FY22[[#This Row],[25th]])/25)*10) + AAMC_Raw_Data_for_FY22[[#This Row],[25th]]","v":184898.6},{"$f":"(((AAMC_Raw_Data_for_FY22[[#This Row],[Median]]-AAMC_Raw_Data_for_FY22[[#This Row],[25th]])/25)*15) + AAMC_Raw_Data_for_FY22[[#This Row],[25th]]","v":190135.4},{"$f":"(((AAMC_Raw_Data_for_FY22[[#This Row],[Median]]-AAMC_Raw_Data_for_FY22[[#This Row],[25th]])/25)*20) + AAMC_Raw_Data_for_FY22[[#This Row],[25th]]","v":195372.2},200609,{"$f":"(((AAMC_Raw_Data_for_FY22[[#This Row],[75th]]-AAMC_Raw_Data_for_FY22[[#This Row],[Median]])/25)*5) + AAMC_Raw_Data_for_FY22[[#This Row],[Median]]","v":204781.6},{"$f":"(((AAMC_Raw_Data_for_FY22[[#This Row],[75th]]-AAMC_Raw_Data_for_FY22[[#This Row],[Median]])/25)*10) + AAMC_Raw_Data_for_FY22[[#This Row],[Median]]","v":208954.2},{"$f":"(((AAMC_Raw_Data_for_FY22[[#This Row],[75th]]-AAMC_Raw_Data_for_FY22[[#This Row],[Median]])/25)*15) + AAMC_Raw_Data_for_FY22[[#This Row],[Median]]","v":213126.8},{"$f":"(((AAMC_Raw_Data_for_FY22[[#This Row],[75th]]-AAMC_Raw_Data_for_FY22[[#This Row],[Median]])/25)*20) + AAMC_Raw_Data_for_FY22[[#This Row],[Median]]","v":217299.4},221472,{"$f":"(((AAMC_Raw_Data_for_FY22[[#This Row],[75th]]-AAMC_Raw_Data_for_FY22[[#This Row],[Median]])/25)*30) + AAMC_Raw_Data_for_FY22[[#This Row],[Median]]","v":225644.6},{"$f":"(((AAMC_Raw_Data_for_FY22[[#This Row],[75th]]-AAMC_Raw_Data_for_FY22[[#This Row],[Median]])/25)*35) + AAMC_Raw_Data_for_FY22[[#This Row],[Median]]","v":229817.2},{"$f":"(((AAMC_Raw_Data_for_FY22[[#This Row],[75th]]-AAMC_Raw_Data_for_FY22[[#This Row],[Median]])/25)*40) + AAMC_Raw_Data_for_FY22[[#This Row],[Median]]","v":233989.8}]
[{"$f":"AAMC_Raw_Data_for_FY22[[#This Row],[Source]]&AAMC_Raw_Data_for_FY22[[#This Row],[Type]]&AAMC_Raw_Data_for_FY22[[#This Row],[School Subset]]&AAMC_Raw_Data_for_FY22[[#This Row],[Rank]]&AAMC_Raw_Data_for_FY22[[#This Row],[Degree]]&AAMC_Raw_Data_for_FY22[[#This Row],[Department / Specialty]]&\"L\"","v":"AAMCAcademicPrivateAssistantMDGeriatrics-Med.L"},"Geriatrics-Med.",4,"AAMC","Academic","Private","Assistant","MD","2021-2022",195930,{"$f":"(((AAMC_Raw_Data_for_FY22[[#This Row],[Median]]-AAMC_Raw_Data_for_FY22[[#This Row],[25th]])/25)*5) + AAMC_Raw_Data_for_FY22[[#This Row],[25th]]","v":198998.2},{"$f":"(((AAMC_Raw_Data_for_FY22[[#This Row],[Median]]-AAMC_Raw_Data_for_FY22[[#This Row],[25th]])/25)*10) + AAMC_Raw_Data_for_FY22[[#This Row],[25th]]","v":202066.4},{"$f":"(((AAMC_Raw_Data_for_FY22[[#This Row],[Median]]-AAMC_Raw_Data_for_FY22[[#This Row],[25th]])/25)*15) + AAMC_Raw_Data_for_FY22[[#This Row],[25th]]","v":205134.6},{"$f":"(((AAMC_Raw_Data_for_FY22[[#This Row],[Median]]-AAMC_Raw_Data_for_FY22[[#This Row],[25th]])/25)*20) + AAMC_Raw_Data_for_FY22[[#This Row],[25th]]","v":208202.8},211271,{"$f":"(((AAMC_Raw_Data_for_FY22[[#This Row],[75th]]-AAMC_Raw_Data_for_FY22[[#This Row],[Median]])/25)*5) + AAMC_Raw_Data_for_FY22[[#This Row],[Median]]","v":214341.4},{"$f":"(((AAMC_Raw_Data_for_FY22[[#This Row],[75th]]-AAMC_Raw_Data_for_FY22[[#This Row],[Median]])/25)*10) + AAMC_Raw_Data_for_FY22[[#This Row],[Median]]","v":217411.8},{"$f":"(((AAMC_Raw_Data_for_FY22[[#This Row],[75th]]-AAMC_Raw_Data_for_FY22[[#This Row],[Median]])/25)*15) + AAMC_Raw_Data_for_FY22[[#This Row],[Median]]","v":220482.2},{"$f":"(((AAMC_Raw_Data_for_FY22[[#This Row],[75th]]-AAMC_Raw_Data_for_FY22[[#This Row],[Median]])/25)*20) + AAMC_Raw_Data_for_FY22[[#This Row],[Median]]","v":223552.6},226623,{"$f":"(((AAMC_Raw_Data_for_FY22[[#This Row],[75th]]-AAMC_Raw_Data_for_FY22[[#This Row],[Median]])/25)*30) + AAMC_Raw_Data_for_FY22[[#This Row],[Median]]","v":229693.4},{"$f":"(((AAMC_Raw_Data_for_FY22[[#This Row],[75th]]-AAMC_Raw_Data_for_FY22[[#This Row],[Median]])/25)*35) + AAMC_Raw_Data_for_FY22[[#This Row],[Median]]","v":232763.8},{"$f":"(((AAMC_Raw_Data_for_FY22[[#This Row],[75th]]-AAMC_Raw_Data_for_FY22[[#This Row],[Median]])/25)*40) + AAMC_Raw_Data_for_FY22[[#This Row],[Median]]","v":235834.2}]
[{"$f":"AAMC_Raw_Data_for_FY22[[#This Row],[Source]]&AAMC_Raw_Data_for_FY22[[#This Row],[Type]]&AAMC_Raw_Data_for_FY22[[#This Row],[School Subset]]&AAMC_Raw_Data_for_FY22[[#This Row],[Rank]]&AAMC_Raw_Data_for_FY22[[#This Row],[Degree]]&AAMC_Raw_Data_for_FY22[[#This Row],[Department / Specialty]]&\"L\"","v":"AAMCAcademicPrivateAssociateMDGeriatrics-Med.L"},"Geriatrics-Med.",3,"AAMC","Academic","Private","Associate","MD","2021-2022",210342,{"$f":"(((AAMC_Raw_Data_for_FY22[[#This Row],[Median]]-AAMC_Raw_Data_for_FY22[[#This Row],[25th]])/25)*5) + AAMC_Raw_Data_for_FY22[[#This Row],[25th]]","v":213603.6},{"$f":"(((AAMC_Raw_Data_for_FY22[[#This Row],[Median]]-AAMC_Raw_Data_for_FY22[[#This Row],[25th]])/25)*10) + AAMC_Raw_Data_for_FY22[[#This Row],[25th]]","v":216865.2},{"$f":"(((AAMC_Raw_Data_for_FY22[[#This Row],[Median]]-AAMC_Raw_Data_for_FY22[[#This Row],[25th]])/25)*15) + AAMC_Raw_Data_for_FY22[[#This Row],[25th]]","v":220126.8},{"$f":"(((AAMC_Raw_Data_for_FY22[[#This Row],[Median]]-AAMC_Raw_Data_for_FY22[[#This Row],[25th]])/25)*20) + AAMC_Raw_Data_for_FY22[[#This Row],[25th]]","v":223388.4},226650,{"$f":"(((AAMC_Raw_Data_for_FY22[[#This Row],[75th]]-AAMC_Raw_Data_for_FY22[[#This Row],[Median]])/25)*5) + AAMC_Raw_Data_for_FY22[[#This Row],[Median]]","v":230107.4},{"$f":"(((AAMC_Raw_Data_for_FY22[[#This Row],[75th]]-AAMC_Raw_Data_for_FY22[[#This Row],[Median]])/25)*10) + AAMC_Raw_Data_for_FY22[[#This Row],[Median]]","v":233564.79999999999},{"$f":"(((AAMC_Raw_Data_for_FY22[[#This Row],[75th]]-AAMC_Raw_Data_for_FY22[[#This Row],[Median]])/25)*15) + AAMC_Raw_Data_for_FY22[[#This Row],[Median]]","v":237022.2},{"$f":"(((AAMC_Raw_Data_for_FY22[[#This Row],[75th]]-AAMC_Raw_Data_for_FY22[[#This Row],[Median]])/25)*20) + AAMC_Raw_Data_for_FY22[[#This Row],[Median]]","v":240479.6},243937,{"$f":"(((AAMC_Raw_Data_for_FY22[[#This Row],[75th]]-AAMC_Raw_Data_for_FY22[[#This Row],[Median]])/25)*30) + AAMC_Raw_Data_for_FY22[[#This Row],[Median]]","v":247394.4},{"$f":"(((AAMC_Raw_Data_for_FY22[[#This Row],[75th]]-AAMC_Raw_Data_for_FY22[[#This Row],[Median]])/25)*35) + AAMC_Raw_Data_for_FY22[[#This Row],[Median]]","v":250851.8},{"$f":"(((AAMC_Raw_Data_for_FY22[[#This Row],[75th]]-AAMC_Raw_Data_for_FY22[[#This Row],[Median]])/25)*40) + AAMC_Raw_Data_for_FY22[[#This Row],[Median]]","v":254309.2}]
[{"$f":"AAMC_Raw_Data_for_FY22[[#This Row],[Source]]&AAMC_Raw_Data_for_FY22[[#This Row],[Type]]&AAMC_Raw_Data_for_FY22[[#This Row],[School Subset]]&AAMC_Raw_Data_for_FY22[[#This Row],[Rank]]&AAMC_Raw_Data_for_FY22[[#This Row],[Degree]]&AAMC_Raw_Data_for_FY22[[#This Row],[Department / Specialty]]&\"L\"","v":"AAMCAcademicPrivateProfessorMDGeriatrics-Med.L"},"Geriatrics-Med.",2,"AAMC","Academic","Private","Professor","MD","2021-2022",234602,{"$f":"(((AAMC_Raw_Data_for_FY22[[#This Row],[Median]]-AAMC_Raw_Data_for_FY22[[#This Row],[25th]])/25)*5) + AAMC_Raw_Data_for_FY22[[#This Row],[25th]]","v":242430.8},{"$f":"(((AAMC_Raw_Data_for_FY22[[#This Row],[Median]]-AAMC_Raw_Data_for_FY22[[#This Row],[25th]])/25)*10) + AAMC_Raw_Data_for_FY22[[#This Row],[25th]]","v":250259.6},{"$f":"(((AAMC_Raw_Data_for_FY22[[#This Row],[Median]]-AAMC_Raw_Data_for_FY22[[#This Row],[25th]])/25)*15) + AAMC_Raw_Data_for_FY22[[#This Row],[25th]]","v":258088.4},{"$f":"(((AAMC_Raw_Data_for_FY22[[#This Row],[Median]]-AAMC_Raw_Data_for_FY22[[#This Row],[25th]])/25)*20) + AAMC_Raw_Data_for_FY22[[#This Row],[25th]]","v":265917.2},273746,{"$f":"(((AAMC_Raw_Data_for_FY22[[#This Row],[75th]]-AAMC_Raw_Data_for_FY22[[#This Row],[Median]])/25)*5) + AAMC_Raw_Data_for_FY22[[#This Row],[Median]]","v":284163.40000000002},{"$f":"(((AAMC_Raw_Data_for_FY22[[#This Row],[75th]]-AAMC_Raw_Data_for_FY22[[#This Row],[Median]])/25)*10) + AAMC_Raw_Data_for_FY22[[#This Row],[Median]]","v":294580.8},{"$f":"(((AAMC_Raw_Data_for_FY22[[#This Row],[75th]]-AAMC_Raw_Data_for_FY22[[#This Row],[Median]])/25)*15) + AAMC_Raw_Data_for_FY22[[#This Row],[Median]]","v":304998.2},{"$f":"(((AAMC_Raw_Data_for_FY22[[#This Row],[75th]]-AAMC_Raw_Data_for_FY22[[#This Row],[Median]])/25)*20) + AAMC_Raw_Data_for_FY22[[#This Row],[Median]]","v":315415.59999999998},325833,{"$f":"(((AAMC_Raw_Data_for_FY22[[#This Row],[75th]]-AAMC_Raw_Data_for_FY22[[#This Row],[Median]])/25)*30) + AAMC_Raw_Data_for_FY22[[#This Row],[Median]]","v":336250.4},{"$f":"(((AAMC_Raw_Data_for_FY22[[#This Row],[75th]]-AAMC_Raw_Data_for_FY22[[#This Row],[Median]])/25)*35) + AAMC_Raw_Data_for_FY22[[#This Row],[Median]]","v":346667.8},{"$f":"(((AAMC_Raw_Data_for_FY22[[#This Row],[75th]]-AAMC_Raw_Data_for_FY22[[#This Row],[Median]])/25)*40) + AAMC_Raw_Data_for_FY22[[#This Row],[Median]]","v":357085.2}]
[{"$f":"AAMC_Raw_Data_for_FY22[[#This Row],[Source]]&AAMC_Raw_Data_for_FY22[[#This Row],[Type]]&AAMC_Raw_Data_for_FY22[[#This Row],[School Subset]]&AAMC_Raw_Data_for_FY22[[#This Row],[Rank]]&AAMC_Raw_Data_for_FY22[[#This Row],[Degree]]&AAMC_Raw_Data_for_FY22[[#This Row],[Department / Specialty]]&\"L\"","v":"AAMCAcademicPrivateChiefMDGeriatrics-Med.L"},"Geriatrics-Med.",6,"AAMC","Academic","Private","Chief","MD","2021-2022",310283,{"$f":"(((AAMC_Raw_Data_for_FY22[[#This Row],[Median]]-AAMC_Raw_Data_for_FY22[[#This Row],[25th]])/25)*5) + AAMC_Raw_Data_for_FY22[[#This Row],[25th]]","v":316708.8},{"$f":"(((AAMC_Raw_Data_for_FY22[[#This Row],[Median]]-AAMC_Raw_Data_for_FY22[[#This Row],[25th]])/25)*10) + AAMC_Raw_Data_for_FY22[[#This Row],[25th]]","v":323134.59999999998},{"$f":"(((AAMC_Raw_Data_for_FY22[[#This Row],[Median]]-AAMC_Raw_Data_for_FY22[[#This Row],[25th]])/25)*15) + AAMC_Raw_Data_for_FY22[[#This Row],[25th]]","v":329560.40000000002},{"$f":"(((AAMC_Raw_Data_for_FY22[[#This Row],[Median]]-AAMC_Raw_Data_for_FY22[[#This Row],[25th]])/25)*20) + AAMC_Raw_Data_for_FY22[[#This Row],[25th]]","v":335986.2},342412,{"$f":"(((AAMC_Raw_Data_for_FY22[[#This Row],[75th]]-AAMC_Raw_Data_for_FY22[[#This Row],[Median]])/25)*5) + AAMC_Raw_Data_for_FY22[[#This Row],[Median]]","v":359899.2},{"$f":"(((AAMC_Raw_Data_for_FY22[[#This Row],[75th]]-AAMC_Raw_Data_for_FY22[[#This Row],[Median]])/25)*10) + AAMC_Raw_Data_for_FY22[[#This Row],[Median]]","v":377386.4},{"$f":"(((AAMC_Raw_Data_for_FY22[[#This Row],[75th]]-AAMC_Raw_Data_for_FY22[[#This Row],[Median]])/25)*15) + AAMC_Raw_Data_for_FY22[[#This Row],[Median]]","v":394873.59999999998},{"$f":"(((AAMC_Raw_Data_for_FY22[[#This Row],[75th]]-AAMC_Raw_Data_for_FY22[[#This Row],[Median]])/25)*20) + AAMC_Raw_Data_for_FY22[[#This Row],[Median]]","v":412360.8},429848,{"$f":"(((AAMC_Raw_Data_for_FY22[[#This Row],[75th]]-AAMC_Raw_Data_for_FY22[[#This Row],[Median]])/25)*30) + AAMC_Raw_Data_for_FY22[[#This Row],[Median]]","v":447335.2},{"$f":"(((AAMC_Raw_Data_for_FY22[[#This Row],[75th]]-AAMC_Raw_Data_for_FY22[[#This Row],[Median]])/25)*35) + AAMC_Raw_Data_for_FY22[[#This Row],[Median]]","v":464822.4},{"$f":"(((AAMC_Raw_Data_for_FY22[[#This Row],[75th]]-AAMC_Raw_Data_for_FY22[[#This Row],[Median]])/25)*40) + AAMC_Raw_Data_for_FY22[[#This Row],[Median]]","v":482309.6}]
[{"$f":"AAMC_Raw_Data_for_FY22[[#This Row],[Source]]&AAMC_Raw_Data_for_FY22[[#This Row],[Type]]&AAMC_Raw_Data_for_FY22[[#This Row],[School Subset]]&AAMC_Raw_Data_for_FY22[[#This Row],[Rank]]&AAMC_Raw_Data_for_FY22[[#This Row],[Degree]]&AAMC_Raw_Data_for_FY22[[#This Row],[Department / Specialty]]&\"L\"","v":"AAMCAcademicPrivateChairMDGeriatrics-Med.L"},"Geriatrics-Med.",1,"AAMC","Academic","Private","Chair","MD","2021-2022",null,{"$f":"(((AAMC_Raw_Data_for_FY22[[#This Row],[Median]]-AAMC_Raw_Data_for_FY22[[#This Row],[25th]])/25)*5) + AAMC_Raw_Data_for_FY22[[#This Row],[25th]]","v":0},{"$f":"(((AAMC_Raw_Data_for_FY22[[#This Row],[Median]]-AAMC_Raw_Data_for_FY22[[#This Row],[25th]])/25)*10) + AAMC_Raw_Data_for_FY22[[#This Row],[25th]]","v":0},{"$f":"(((AAMC_Raw_Data_for_FY22[[#This Row],[Median]]-AAMC_Raw_Data_for_FY22[[#This Row],[25th]])/25)*15) + AAMC_Raw_Data_for_FY22[[#This Row],[25th]]","v":0},{"$f":"(((AAMC_Raw_Data_for_FY22[[#This Row],[Median]]-AAMC_Raw_Data_for_FY22[[#This Row],[25th]])/25)*20) + AAMC_Raw_Data_for_FY22[[#This Row],[25th]]","v":0},null,{"$f":"(((AAMC_Raw_Data_for_FY22[[#This Row],[75th]]-AAMC_Raw_Data_for_FY22[[#This Row],[Median]])/25)*5) + AAMC_Raw_Data_for_FY22[[#This Row],[Median]]","v":0},{"$f":"(((AAMC_Raw_Data_for_FY22[[#This Row],[75th]]-AAMC_Raw_Data_for_FY22[[#This Row],[Median]])/25)*10) + AAMC_Raw_Data_for_FY22[[#This Row],[Median]]","v":0},{"$f":"(((AAMC_Raw_Data_for_FY22[[#This Row],[75th]]-AAMC_Raw_Data_for_FY22[[#This Row],[Median]])/25)*15) + AAMC_Raw_Data_for_FY22[[#This Row],[Median]]","v":0},{"$f":"(((AAMC_Raw_Data_for_FY22[[#This Row],[75th]]-AAMC_Raw_Data_for_FY22[[#This Row],[Median]])/25)*20) + AAMC_Raw_Data_for_FY22[[#This Row],[Median]]","v":0},null,{"$f":"(((AAMC_Raw_Data_for_FY22[[#This Row],[75th]]-AAMC_Raw_Data_for_FY22[[#This Row],[Median]])/25)*30) + AAMC_Raw_Data_for_FY22[[#This Row],[Median]]","v":0},{"$f":"(((AAMC_Raw_Data_for_FY22[[#This Row],[75th]]-AAMC_Raw_Data_for_FY22[[#This Row],[Median]])/25)*35) + AAMC_Raw_Data_for_FY22[[#This Row],[Median]]","v":0},{"$f":"(((AAMC_Raw_Data_for_FY22[[#This Row],[75th]]-AAMC_Raw_Data_for_FY22[[#This Row],[Median]])/25)*40) + AAMC_Raw_Data_for_FY22[[#This Row],[Median]]","v":0}]
[{"$f":"AAMC_Raw_Data_for_FY22[[#This Row],[Source]]&AAMC_Raw_Data_for_FY22[[#This Row],[Type]]&AAMC_Raw_Data_for_FY22[[#This Row],[School Subset]]&AAMC_Raw_Data_for_FY22[[#This Row],[Rank]]&AAMC_Raw_Data_for_FY22[[#This Row],[Degree]]&AAMC_Raw_Data_for_FY22[[#This Row],[Department / Specialty]]&\"L\"","v":"AAMCAcademicPrivateInstructorMDHematology/Oncology-Med.L"},"Hematology/Oncology-Med.",5,"AAMC","Academic","Private","Instructor","MD","2021-2022",148266,{"$f":"(((AAMC_Raw_Data_for_FY22[[#This Row],[Median]]-AAMC_Raw_Data_for_FY22[[#This Row],[25th]])/25)*5) + AAMC_Raw_Data_for_FY22[[#This Row],[25th]]","v":160812.79999999999},{"$f":"(((AAMC_Raw_Data_for_FY22[[#This Row],[Median]]-AAMC_Raw_Data_for_FY22[[#This Row],[25th]])/25)*10) + AAMC_Raw_Data_for_FY22[[#This Row],[25th]]","v":173359.6},{"$f":"(((AAMC_Raw_Data_for_FY22[[#This Row],[Median]]-AAMC_Raw_Data_for_FY22[[#This Row],[25th]])/25)*15) + AAMC_Raw_Data_for_FY22[[#This Row],[25th]]","v":185906.4},{"$f":"(((AAMC_Raw_Data_for_FY22[[#This Row],[Median]]-AAMC_Raw_Data_for_FY22[[#This Row],[25th]])/25)*20) + AAMC_Raw_Data_for_FY22[[#This Row],[25th]]","v":198453.2},211000,{"$f":"(((AAMC_Raw_Data_for_FY22[[#This Row],[75th]]-AAMC_Raw_Data_for_FY22[[#This Row],[Median]])/25)*5) + AAMC_Raw_Data_for_FY22[[#This Row],[Median]]","v":220909},{"$f":"(((AAMC_Raw_Data_for_FY22[[#This Row],[75th]]-AAMC_Raw_Data_for_FY22[[#This Row],[Median]])/25)*10) + AAMC_Raw_Data_for_FY22[[#This Row],[Median]]","v":230818},{"$f":"(((AAMC_Raw_Data_for_FY22[[#This Row],[75th]]-AAMC_Raw_Data_for_FY22[[#This Row],[Median]])/25)*15) + AAMC_Raw_Data_for_FY22[[#This Row],[Median]]","v":240727},{"$f":"(((AAMC_Raw_Data_for_FY22[[#This Row],[75th]]-AAMC_Raw_Data_for_FY22[[#This Row],[Median]])/25)*20) + AAMC_Raw_Data_for_FY22[[#This Row],[Median]]","v":250636},260545,{"$f":"(((AAMC_Raw_Data_for_FY22[[#This Row],[75th]]-AAMC_Raw_Data_for_FY22[[#This Row],[Median]])/25)*30) + AAMC_Raw_Data_for_FY22[[#This Row],[Median]]","v":270454},{"$f":"(((AAMC_Raw_Data_for_FY22[[#This Row],[75th]]-AAMC_Raw_Data_for_FY22[[#This Row],[Median]])/25)*35) + AAMC_Raw_Data_for_FY22[[#This Row],[Median]]","v":280363},{"$f":"(((AAMC_Raw_Data_for_FY22[[#This Row],[75th]]-AAMC_Raw_Data_for_FY22[[#This Row],[Median]])/25)*40) + AAMC_Raw_Data_for_FY22[[#This Row],[Median]]","v":290272}]
[{"$f":"AAMC_Raw_Data_for_FY22[[#This Row],[Source]]&AAMC_Raw_Data_for_FY22[[#This Row],[Type]]&AAMC_Raw_Data_for_FY22[[#This Row],[School Subset]]&AAMC_Raw_Data_for_FY22[[#This Row],[Rank]]&AAMC_Raw_Data_for_FY22[[#This Row],[Degree]]&AAMC_Raw_Data_for_FY22[[#This Row],[Department / Specialty]]&\"L\"","v":"AAMCAcademicPrivateAssistantMDHematology/Oncology-Med.L"},"Hematology/Oncology-Med.",4,"AAMC","Academic","Private","Assistant","MD","2021-2022",232981,{"$f":"(((AAMC_Raw_Data_for_FY22[[#This Row],[Median]]-AAMC_Raw_Data_for_FY22[[#This Row],[25th]])/25)*5) + AAMC_Raw_Data_for_FY22[[#This Row],[25th]]","v":240752.6},{"$f":"(((AAMC_Raw_Data_for_FY22[[#This Row],[Median]]-AAMC_Raw_Data_for_FY22[[#This Row],[25th]])/25)*10) + AAMC_Raw_Data_for_FY22[[#This Row],[25th]]","v":248524.2},{"$f":"(((AAMC_Raw_Data_for_FY22[[#This Row],[Median]]-AAMC_Raw_Data_for_FY22[[#This Row],[25th]])/25)*15) + AAMC_Raw_Data_for_FY22[[#This Row],[25th]]","v":256295.8},{"$f":"(((AAMC_Raw_Data_for_FY22[[#This Row],[Median]]-AAMC_Raw_Data_for_FY22[[#This Row],[25th]])/25)*20) + AAMC_Raw_Data_for_FY22[[#This Row],[25th]]","v":264067.40000000002},271839,{"$f":"(((AAMC_Raw_Data_for_FY22[[#This Row],[75th]]-AAMC_Raw_Data_for_FY22[[#This Row],[Median]])/25)*5) + AAMC_Raw_Data_for_FY22[[#This Row],[Median]]","v":287910.2},{"$f":"(((AAMC_Raw_Data_for_FY22[[#This Row],[75th]]-AAMC_Raw_Data_for_FY22[[#This Row],[Median]])/25)*10) + AAMC_Raw_Data_for_FY22[[#This Row],[Median]]","v":303981.40000000002},{"$f":"(((AAMC_Raw_Data_for_FY22[[#This Row],[75th]]-AAMC_Raw_Data_for_FY22[[#This Row],[Median]])/25)*15) + AAMC_Raw_Data_for_FY22[[#This Row],[Median]]","v":320052.59999999998},{"$f":"(((AAMC_Raw_Data_for_FY22[[#This Row],[75th]]-AAMC_Raw_Data_for_FY22[[#This Row],[Median]])/25)*20) + AAMC_Raw_Data_for_FY22[[#This Row],[Median]]","v":336123.8},352195,{"$f":"(((AAMC_Raw_Data_for_FY22[[#This Row],[75th]]-AAMC_Raw_Data_for_FY22[[#This Row],[Median]])/25)*30) + AAMC_Raw_Data_for_FY22[[#This Row],[Median]]","v":368266.2},{"$f":"(((AAMC_Raw_Data_for_FY22[[#This Row],[75th]]-AAMC_Raw_Data_for_FY22[[#This Row],[Median]])/25)*35) + AAMC_Raw_Data_for_FY22[[#This Row],[Median]]","v":384337.4},{"$f":"(((AAMC_Raw_Data_for_FY22[[#This Row],[75th]]-AAMC_Raw_Data_for_FY22[[#This Row],[Median]])/25)*40) + AAMC_Raw_Data_for_FY22[[#This Row],[Median]]","v":400408.6}]
[{"$f":"AAMC_Raw_Data_for_FY22[[#This Row],[Source]]&AAMC_Raw_Data_for_FY22[[#This Row],[Type]]&AAMC_Raw_Data_for_FY22[[#This Row],[School Subset]]&AAMC_Raw_Data_for_FY22[[#This Row],[Rank]]&AAMC_Raw_Data_for_FY22[[#This Row],[Degree]]&AAMC_Raw_Data_for_FY22[[#This Row],[Department / Specialty]]&\"L\"","v":"AAMCAcademicPrivateAssociateMDHematology/Oncology-Med.L"},"Hematology/Oncology-Med.",3,"AAMC","Academic","Private","Associate","MD","2021-2022",278825,{"$f":"(((AAMC_Raw_Data_for_FY22[[#This Row],[Median]]-AAMC_Raw_Data_for_FY22[[#This Row],[25th]])/25)*5) + AAMC_Raw_Data_for_FY22[[#This Row],[25th]]","v":288341.8},{"$f":"(((AAMC_Raw_Data_for_FY22[[#This Row],[Median]]-AAMC_Raw_Data_for_FY22[[#This Row],[25th]])/25)*10) + AAMC_Raw_Data_for_FY22[[#This Row],[25th]]","v":297858.59999999998},{"$f":"(((AAMC_Raw_Data_for_FY22[[#This Row],[Median]]-AAMC_Raw_Data_for_FY22[[#This Row],[25th]])/25)*15) + AAMC_Raw_Data_for_FY22[[#This Row],[25th]]","v":307375.40000000002},{"$f":"(((AAMC_Raw_Data_for_FY22[[#This Row],[Median]]-AAMC_Raw_Data_for_FY22[[#This Row],[25th]])/25)*20) + AAMC_Raw_Data_for_FY22[[#This Row],[25th]]","v":316892.2},326409,{"$f":"(((AAMC_Raw_Data_for_FY22[[#This Row],[75th]]-AAMC_Raw_Data_for_FY22[[#This Row],[Median]])/25)*5) + AAMC_Raw_Data_for_FY22[[#This Row],[Median]]","v":344023.4},{"$f":"(((AAMC_Raw_Data_for_FY22[[#This Row],[75th]]-AAMC_Raw_Data_for_FY22[[#This Row],[Median]])/25)*10) + AAMC_Raw_Data_for_FY22[[#This Row],[Median]]","v":361637.8},{"$f":"(((AAMC_Raw_Data_for_FY22[[#This Row],[75th]]-AAMC_Raw_Data_for_FY22[[#This Row],[Median]])/25)*15) + AAMC_Raw_Data_for_FY22[[#This Row],[Median]]","v":379252.2},{"$f":"(((AAMC_Raw_Data_for_FY22[[#This Row],[75th]]-AAMC_Raw_Data_for_FY22[[#This Row],[Median]])/25)*20) + AAMC_Raw_Data_for_FY22[[#This Row],[Median]]","v":396866.6},414481,{"$f":"(((AAMC_Raw_Data_for_FY22[[#This Row],[75th]]-AAMC_Raw_Data_for_FY22[[#This Row],[Median]])/25)*30) + AAMC_Raw_Data_for_FY22[[#This Row],[Median]]","v":432095.4},{"$f":"(((AAMC_Raw_Data_for_FY22[[#This Row],[75th]]-AAMC_Raw_Data_for_FY22[[#This Row],[Median]])/25)*35) + AAMC_Raw_Data_for_FY22[[#This Row],[Median]]","v":449709.8},{"$f":"(((AAMC_Raw_Data_for_FY22[[#This Row],[75th]]-AAMC_Raw_Data_for_FY22[[#This Row],[Median]])/25)*40) + AAMC_Raw_Data_for_FY22[[#This Row],[Median]]","v":467324.2}]
[{"$f":"AAMC_Raw_Data_for_FY22[[#This Row],[Source]]&AAMC_Raw_Data_for_FY22[[#This Row],[Type]]&AAMC_Raw_Data_for_FY22[[#This Row],[School Subset]]&AAMC_Raw_Data_for_FY22[[#This Row],[Rank]]&AAMC_Raw_Data_for_FY22[[#This Row],[Degree]]&AAMC_Raw_Data_for_FY22[[#This Row],[Department / Specialty]]&\"L\"","v":"AAMCAcademicPrivateProfessorMDHematology/Oncology-Med.L"},"Hematology/Oncology-Med.",2,"AAMC","Academic","Private","Professor","MD","2021-2022",327216,{"$f":"(((AAMC_Raw_Data_for_FY22[[#This Row],[Median]]-AAMC_Raw_Data_for_FY22[[#This Row],[25th]])/25)*5) + AAMC_Raw_Data_for_FY22[[#This Row],[25th]]","v":342744.8},{"$f":"(((AAMC_Raw_Data_for_FY22[[#This Row],[Median]]-AAMC_Raw_Data_for_FY22[[#This Row],[25th]])/25)*10) + AAMC_Raw_Data_for_FY22[[#This Row],[25th]]","v":358273.6},{"$f":"(((AAMC_Raw_Data_for_FY22[[#This Row],[Median]]-AAMC_Raw_Data_for_FY22[[#This Row],[25th]])/25)*15) + AAMC_Raw_Data_for_FY22[[#This Row],[25th]]","v":373802.4},{"$f":"(((AAMC_Raw_Data_for_FY22[[#This Row],[Median]]-AAMC_Raw_Data_for_FY22[[#This Row],[25th]])/25)*20) + AAMC_Raw_Data_for_FY22[[#This Row],[25th]]","v":389331.20000000001},404860,{"$f":"(((AAMC_Raw_Data_for_FY22[[#This Row],[75th]]-AAMC_Raw_Data_for_FY22[[#This Row],[Median]])/25)*5) + AAMC_Raw_Data_for_FY22[[#This Row],[Median]]","v":423869.2},{"$f":"(((AAMC_Raw_Data_for_FY22[[#This Row],[75th]]-AAMC_Raw_Data_for_FY22[[#This Row],[Median]])/25)*10) + AAMC_Raw_Data_for_FY22[[#This Row],[Median]]","v":442878.4},{"$f":"(((AAMC_Raw_Data_for_FY22[[#This Row],[75th]]-AAMC_Raw_Data_for_FY22[[#This Row],[Median]])/25)*15) + AAMC_Raw_Data_for_FY22[[#This Row],[Median]]","v":461887.6},{"$f":"(((AAMC_Raw_Data_for_FY22[[#This Row],[75th]]-AAMC_Raw_Data_for_FY22[[#This Row],[Median]])/25)*20) + AAMC_Raw_Data_for_FY22[[#This Row],[Median]]","v":480896.8},499906,{"$f":"(((AAMC_Raw_Data_for_FY22[[#This Row],[75th]]-AAMC_Raw_Data_for_FY22[[#This Row],[Median]])/25)*30) + AAMC_Raw_Data_for_FY22[[#This Row],[Median]]","v":518915.2},{"$f":"(((AAMC_Raw_Data_for_FY22[[#This Row],[75th]]-AAMC_Raw_Data_for_FY22[[#This Row],[Median]])/25)*35) + AAMC_Raw_Data_for_FY22[[#This Row],[Median]]","v":537924.4},{"$f":"(((AAMC_Raw_Data_for_FY22[[#This Row],[75th]]-AAMC_Raw_Data_for_FY22[[#This Row],[Median]])/25)*40) + AAMC_Raw_Data_for_FY22[[#This Row],[Median]]","v":556933.6}]
[{"$f":"AAMC_Raw_Data_for_FY22[[#This Row],[Source]]&AAMC_Raw_Data_for_FY22[[#This Row],[Type]]&AAMC_Raw_Data_for_FY22[[#This Row],[School Subset]]&AAMC_Raw_Data_for_FY22[[#This Row],[Rank]]&AAMC_Raw_Data_for_FY22[[#This Row],[Degree]]&AAMC_Raw_Data_for_FY22[[#This Row],[Department / Specialty]]&\"L\"","v":"AAMCAcademicPrivateChiefMDHematology/Oncology-Med.L"},"Hematology/Oncology-Med.",6,"AAMC","Academic","Private","Chief","MD","2021-2022",427157,{"$f":"(((AAMC_Raw_Data_for_FY22[[#This Row],[Median]]-AAMC_Raw_Data_for_FY22[[#This Row],[25th]])/25)*5) + AAMC_Raw_Data_for_FY22[[#This Row],[25th]]","v":444453.8},{"$f":"(((AAMC_Raw_Data_for_FY22[[#This Row],[Median]]-AAMC_Raw_Data_for_FY22[[#This Row],[25th]])/25)*10) + AAMC_Raw_Data_for_FY22[[#This Row],[25th]]","v":461750.6},{"$f":"(((AAMC_Raw_Data_for_FY22[[#This Row],[Median]]-AAMC_Raw_Data_for_FY22[[#This Row],[25th]])/25)*15) + AAMC_Raw_Data_for_FY22[[#This Row],[25th]]","v":479047.4},{"$f":"(((AAMC_Raw_Data_for_FY22[[#This Row],[Median]]-AAMC_Raw_Data_for_FY22[[#This Row],[25th]])/25)*20) + AAMC_Raw_Data_for_FY22[[#This Row],[25th]]","v":496344.2},513641,{"$f":"(((AAMC_Raw_Data_for_FY22[[#This Row],[75th]]-AAMC_Raw_Data_for_FY22[[#This Row],[Median]])/25)*5) + AAMC_Raw_Data_for_FY22[[#This Row],[Median]]","v":549489},{"$f":"(((AAMC_Raw_Data_for_FY22[[#This Row],[75th]]-AAMC_Raw_Data_for_FY22[[#This Row],[Median]])/25)*10) + AAMC_Raw_Data_for_FY22[[#This Row],[Median]]","v":585337},{"$f":"(((AAMC_Raw_Data_for_FY22[[#This Row],[75th]]-AAMC_Raw_Data_for_FY22[[#This Row],[Median]])/25)*15) + AAMC_Raw_Data_for_FY22[[#This Row],[Median]]","v":621185},{"$f":"(((AAMC_Raw_Data_for_FY22[[#This Row],[75th]]-AAMC_Raw_Data_for_FY22[[#This Row],[Median]])/25)*20) + AAMC_Raw_Data_for_FY22[[#This Row],[Median]]","v":657033},692881,{"$f":"(((AAMC_Raw_Data_for_FY22[[#This Row],[75th]]-AAMC_Raw_Data_for_FY22[[#This Row],[Median]])/25)*30) + AAMC_Raw_Data_for_FY22[[#This Row],[Median]]","v":728729},{"$f":"(((AAMC_Raw_Data_for_FY22[[#This Row],[75th]]-AAMC_Raw_Data_for_FY22[[#This Row],[Median]])/25)*35) + AAMC_Raw_Data_for_FY22[[#This Row],[Median]]","v":764577},{"$f":"(((AAMC_Raw_Data_for_FY22[[#This Row],[75th]]-AAMC_Raw_Data_for_FY22[[#This Row],[Median]])/25)*40) + AAMC_Raw_Data_for_FY22[[#This Row],[Median]]","v":800425}]
[{"$f":"AAMC_Raw_Data_for_FY22[[#This Row],[Source]]&AAMC_Raw_Data_for_FY22[[#This Row],[Type]]&AAMC_Raw_Data_for_FY22[[#This Row],[School Subset]]&AAMC_Raw_Data_for_FY22[[#This Row],[Rank]]&AAMC_Raw_Data_for_FY22[[#This Row],[Degree]]&AAMC_Raw_Data_for_FY22[[#This Row],[Department / Specialty]]&\"L\"","v":"AAMCAcademicPrivateChairMDHematology/Oncology-Med.L"},"Hematology/Oncology-Med.",1,"AAMC","Academic","Private","Chair","MD","2021-2022",763262,{"$f":"(((AAMC_Raw_Data_for_FY22[[#This Row],[Median]]-AAMC_Raw_Data_for_FY22[[#This Row],[25th]])/25)*5) + AAMC_Raw_Data_for_FY22[[#This Row],[25th]]","v":770726.2},{"$f":"(((AAMC_Raw_Data_for_FY22[[#This Row],[Median]]-AAMC_Raw_Data_for_FY22[[#This Row],[25th]])/25)*10) + AAMC_Raw_Data_for_FY22[[#This Row],[25th]]","v":778190.4},{"$f":"(((AAMC_Raw_Data_for_FY22[[#This Row],[Median]]-AAMC_Raw_Data_for_FY22[[#This Row],[25th]])/25)*15) + AAMC_Raw_Data_for_FY22[[#This Row],[25th]]","v":785654.6},{"$f":"(((AAMC_Raw_Data_for_FY22[[#This Row],[Median]]-AAMC_Raw_Data_for_FY22[[#This Row],[25th]])/25)*20) + AAMC_Raw_Data_for_FY22[[#This Row],[25th]]","v":793118.8},800583,{"$f":"(((AAMC_Raw_Data_for_FY22[[#This Row],[75th]]-AAMC_Raw_Data_for_FY22[[#This Row],[Median]])/25)*5) + AAMC_Raw_Data_for_FY22[[#This Row],[Median]]","v":813558.2},{"$f":"(((AAMC_Raw_Data_for_FY22[[#This Row],[75th]]-AAMC_Raw_Data_for_FY22[[#This Row],[Median]])/25)*10) + AAMC_Raw_Data_for_FY22[[#This Row],[Median]]","v":826533.4},{"$f":"(((AAMC_Raw_Data_for_FY22[[#This Row],[75th]]-AAMC_Raw_Data_for_FY22[[#This Row],[Median]])/25)*15) + AAMC_Raw_Data_for_FY22[[#This Row],[Median]]","v":839508.6},{"$f":"(((AAMC_Raw_Data_for_FY22[[#This Row],[75th]]-AAMC_Raw_Data_for_FY22[[#This Row],[Median]])/25)*20) + AAMC_Raw_Data_for_FY22[[#This Row],[Median]]","v":852483.8},865459,{"$f":"(((AAMC_Raw_Data_for_FY22[[#This Row],[75th]]-AAMC_Raw_Data_for_FY22[[#This Row],[Median]])/25)*30) + AAMC_Raw_Data_for_FY22[[#This Row],[Median]]","v":878434.2},{"$f":"(((AAMC_Raw_Data_for_FY22[[#This Row],[75th]]-AAMC_Raw_Data_for_FY22[[#This Row],[Median]])/25)*35) + AAMC_Raw_Data_for_FY22[[#This Row],[Median]]","v":891409.4},{"$f":"(((AAMC_Raw_Data_for_FY22[[#This Row],[75th]]-AAMC_Raw_Data_for_FY22[[#This Row],[Median]])/25)*40) + AAMC_Raw_Data_for_FY22[[#This Row],[Median]]","v":904384.6}]
[{"$f":"AAMC_Raw_Data_for_FY22[[#This Row],[Source]]&AAMC_Raw_Data_for_FY22[[#This Row],[Type]]&AAMC_Raw_Data_for_FY22[[#This Row],[School Subset]]&AAMC_Raw_Data_for_FY22[[#This Row],[Rank]]&AAMC_Raw_Data_for_FY22[[#This Row],[Degree]]&AAMC_Raw_Data_for_FY22[[#This Row],[Department / Specialty]]&\"L\"","v":"AAMCAcademicPrivateInstructorMDHospital MedicineL"},"Hospital Medicine",5,"AAMC","Academic","Private","Instructor","MD","2021-2022",206000,{"$f":"(((AAMC_Raw_Data_for_FY22[[#This Row],[Median]]-AAMC_Raw_Data_for_FY22[[#This Row],[25th]])/25)*5) + AAMC_Raw_Data_for_FY22[[#This Row],[25th]]","v":211754.6},{"$f":"(((AAMC_Raw_Data_for_FY22[[#This Row],[Median]]-AAMC_Raw_Data_for_FY22[[#This Row],[25th]])/25)*10) + AAMC_Raw_Data_for_FY22[[#This Row],[25th]]","v":217509.2},{"$f":"(((AAMC_Raw_Data_for_FY22[[#This Row],[Median]]-AAMC_Raw_Data_for_FY22[[#This Row],[25th]])/25)*15) + AAMC_Raw_Data_for_FY22[[#This Row],[25th]]","v":223263.8},{"$f":"(((AAMC_Raw_Data_for_FY22[[#This Row],[Median]]-AAMC_Raw_Data_for_FY22[[#This Row],[25th]])/25)*20) + AAMC_Raw_Data_for_FY22[[#This Row],[25th]]","v":229018.4},234773,{"$f":"(((AAMC_Raw_Data_for_FY22[[#This Row],[75th]]-AAMC_Raw_Data_for_FY22[[#This Row],[Median]])/25)*5) + AAMC_Raw_Data_for_FY22[[#This Row],[Median]]","v":243543.4},{"$f":"(((AAMC_Raw_Data_for_FY22[[#This Row],[75th]]-AAMC_Raw_Data_for_FY22[[#This Row],[Median]])/25)*10) + AAMC_Raw_Data_for_FY22[[#This Row],[Median]]","v":252313.8},{"$f":"(((AAMC_Raw_Data_for_FY22[[#This Row],[75th]]-AAMC_Raw_Data_for_FY22[[#This Row],[Median]])/25)*15) + AAMC_Raw_Data_for_FY22[[#This Row],[Median]]","v":261084.2},{"$f":"(((AAMC_Raw_Data_for_FY22[[#This Row],[75th]]-AAMC_Raw_Data_for_FY22[[#This Row],[Median]])/25)*20) + AAMC_Raw_Data_for_FY22[[#This Row],[Median]]","v":269854.59999999998},278625,{"$f":"(((AAMC_Raw_Data_for_FY22[[#This Row],[75th]]-AAMC_Raw_Data_for_FY22[[#This Row],[Median]])/25)*30) + AAMC_Raw_Data_for_FY22[[#This Row],[Median]]","v":287395.40000000002},{"$f":"(((AAMC_Raw_Data_for_FY22[[#This Row],[75th]]-AAMC_Raw_Data_for_FY22[[#This Row],[Median]])/25)*35) + AAMC_Raw_Data_for_FY22[[#This Row],[Median]]","v":296165.8},{"$f":"(((AAMC_Raw_Data_for_FY22[[#This Row],[75th]]-AAMC_Raw_Data_for_FY22[[#This Row],[Median]])/25)*40) + AAMC_Raw_Data_for_FY22[[#This Row],[Median]]","v":304936.2}]
[{"$f":"AAMC_Raw_Data_for_FY22[[#This Row],[Source]]&AAMC_Raw_Data_for_FY22[[#This Row],[Type]]&AAMC_Raw_Data_for_FY22[[#This Row],[School Subset]]&AAMC_Raw_Data_for_FY22[[#This Row],[Rank]]&AAMC_Raw_Data_for_FY22[[#This Row],[Degree]]&AAMC_Raw_Data_for_FY22[[#This Row],[Department / Specialty]]&\"L\"","v":"AAMCAcademicPrivateAssistantMDHospital MedicineL"},"Hospital Medicine",4,"AAMC","Academic","Private","Assistant","MD","2021-2022",230696,{"$f":"(((AAMC_Raw_Data_for_FY22[[#This Row],[Median]]-AAMC_Raw_Data_for_FY22[[#This Row],[25th]])/25)*5) + AAMC_Raw_Data_for_FY22[[#This Row],[25th]]","v":235397.4},{"$f":"(((AAMC_Raw_Data_for_FY22[[#This Row],[Median]]-AAMC_Raw_Data_for_FY22[[#This Row],[25th]])/25)*10) + AAMC_Raw_Data_for_FY22[[#This Row],[25th]]","v":240098.8},{"$f":"(((AAMC_Raw_Data_for_FY22[[#This Row],[Median]]-AAMC_Raw_Data_for_FY22[[#This Row],[25th]])/25)*15) + AAMC_Raw_Data_for_FY22[[#This Row],[25th]]","v":244800.2},{"$f":"(((AAMC_Raw_Data_for_FY22[[#This Row],[Median]]-AAMC_Raw_Data_for_FY22[[#This Row],[25th]])/25)*20) + AAMC_Raw_Data_for_FY22[[#This Row],[25th]]","v":249501.6},254203,{"$f":"(((AAMC_Raw_Data_for_FY22[[#This Row],[75th]]-AAMC_Raw_Data_for_FY22[[#This Row],[Median]])/25)*5) + AAMC_Raw_Data_for_FY22[[#This Row],[Median]]","v":261388.6},{"$f":"(((AAMC_Raw_Data_for_FY22[[#This Row],[75th]]-AAMC_Raw_Data_for_FY22[[#This Row],[Median]])/25)*10) + AAMC_Raw_Data_for_FY22[[#This Row],[Median]]","v":268574.2},{"$f":"(((AAMC_Raw_Data_for_FY22[[#This Row],[75th]]-AAMC_Raw_Data_for_FY22[[#This Row],[Median]])/25)*15) + AAMC_Raw_Data_for_FY22[[#This Row],[Median]]","v":275759.8},{"$f":"(((AAMC_Raw_Data_for_FY22[[#This Row],[75th]]-AAMC_Raw_Data_for_FY22[[#This Row],[Median]])/25)*20) + AAMC_Raw_Data_for_FY22[[#This Row],[Median]]","v":282945.40000000002},290131,{"$f":"(((AAMC_Raw_Data_for_FY22[[#This Row],[75th]]-AAMC_Raw_Data_for_FY22[[#This Row],[Median]])/25)*30) + AAMC_Raw_Data_for_FY22[[#This Row],[Median]]","v":297316.59999999998},{"$f":"(((AAMC_Raw_Data_for_FY22[[#This Row],[75th]]-AAMC_Raw_Data_for_FY22[[#This Row],[Median]])/25)*35) + AAMC_Raw_Data_for_FY22[[#This Row],[Median]]","v":304502.2},{"$f":"(((AAMC_Raw_Data_for_FY22[[#This Row],[75th]]-AAMC_Raw_Data_for_FY22[[#This Row],[Median]])/25)*40) + AAMC_Raw_Data_for_FY22[[#This Row],[Median]]","v":311687.8}]
[{"$f":"AAMC_Raw_Data_for_FY22[[#This Row],[Source]]&AAMC_Raw_Data_for_FY22[[#This Row],[Type]]&AAMC_Raw_Data_for_FY22[[#This Row],[School Subset]]&AAMC_Raw_Data_for_FY22[[#This Row],[Rank]]&AAMC_Raw_Data_for_FY22[[#This Row],[Degree]]&AAMC_Raw_Data_for_FY22[[#This Row],[Department / Specialty]]&\"L\"","v":"AAMCAcademicPrivateAssociateMDHospital MedicineL"},"Hospital Medicine",3,"AAMC","Academic","Private","Associate","MD","2021-2022",249216,{"$f":"(((AAMC_Raw_Data_for_FY22[[#This Row],[Median]]-AAMC_Raw_Data_for_FY22[[#This Row],[25th]])/25)*5) + AAMC_Raw_Data_for_FY22[[#This Row],[25th]]","v":255593.60000000001},{"$f":"(((AAMC_Raw_Data_for_FY22[[#This Row],[Median]]-AAMC_Raw_Data_for_FY22[[#This Row],[25th]])/25)*10) + AAMC_Raw_Data_for_FY22[[#This Row],[25th]]","v":261971.20000000001},{"$f":"(((AAMC_Raw_Data_for_FY22[[#This Row],[Median]]-AAMC_Raw_Data_for_FY22[[#This Row],[25th]])/25)*15) + AAMC_Raw_Data_for_FY22[[#This Row],[25th]]","v":268348.79999999999},{"$f":"(((AAMC_Raw_Data_for_FY22[[#This Row],[Median]]-AAMC_Raw_Data_for_FY22[[#This Row],[25th]])/25)*20) + AAMC_Raw_Data_for_FY22[[#This Row],[25th]]","v":274726.40000000002},281104,{"$f":"(((AAMC_Raw_Data_for_FY22[[#This Row],[75th]]-AAMC_Raw_Data_for_FY22[[#This Row],[Median]])/25)*5) + AAMC_Raw_Data_for_FY22[[#This Row],[Median]]","v":291883.2},{"$f":"(((AAMC_Raw_Data_for_FY22[[#This Row],[75th]]-AAMC_Raw_Data_for_FY22[[#This Row],[Median]])/25)*10) + AAMC_Raw_Data_for_FY22[[#This Row],[Median]]","v":302662.40000000002},{"$f":"(((AAMC_Raw_Data_for_FY22[[#This Row],[75th]]-AAMC_Raw_Data_for_FY22[[#This Row],[Median]])/25)*15) + AAMC_Raw_Data_for_FY22[[#This Row],[Median]]","v":313441.59999999998},{"$f":"(((AAMC_Raw_Data_for_FY22[[#This Row],[75th]]-AAMC_Raw_Data_for_FY22[[#This Row],[Median]])/25)*20) + AAMC_Raw_Data_for_FY22[[#This Row],[Median]]","v":324220.79999999999},335000,{"$f":"(((AAMC_Raw_Data_for_FY22[[#This Row],[75th]]-AAMC_Raw_Data_for_FY22[[#This Row],[Median]])/25)*30) + AAMC_Raw_Data_for_FY22[[#This Row],[Median]]","v":345779.20000000001},{"$f":"(((AAMC_Raw_Data_for_FY22[[#This Row],[75th]]-AAMC_Raw_Data_for_FY22[[#This Row],[Median]])/25)*35) + AAMC_Raw_Data_for_FY22[[#This Row],[Median]]","v":356558.4},{"$f":"(((AAMC_Raw_Data_for_FY22[[#This Row],[75th]]-AAMC_Raw_Data_for_FY22[[#This Row],[Median]])/25)*40) + AAMC_Raw_Data_for_FY22[[#This Row],[Median]]","v":367337.6}]
[{"$f":"AAMC_Raw_Data_for_FY22[[#This Row],[Source]]&AAMC_Raw_Data_for_FY22[[#This Row],[Type]]&AAMC_Raw_Data_for_FY22[[#This Row],[School Subset]]&AAMC_Raw_Data_for_FY22[[#This Row],[Rank]]&AAMC_Raw_Data_for_FY22[[#This Row],[Degree]]&AAMC_Raw_Data_for_FY22[[#This Row],[Department / Specialty]]&\"L\"","v":"AAMCAcademicPrivateProfessorMDHospital MedicineL"},"Hospital Medicine",2,"AAMC","Academic","Private","Professor","MD","2021-2022",282391,{"$f":"(((AAMC_Raw_Data_for_FY22[[#This Row],[Median]]-AAMC_Raw_Data_for_FY22[[#This Row],[25th]])/25)*5) + AAMC_Raw_Data_for_FY22[[#This Row],[25th]]","v":288856.8},{"$f":"(((AAMC_Raw_Data_for_FY22[[#This Row],[Median]]-AAMC_Raw_Data_for_FY22[[#This Row],[25th]])/25)*10) + AAMC_Raw_Data_for_FY22[[#This Row],[25th]]","v":295322.59999999998},{"$f":"(((AAMC_Raw_Data_for_FY22[[#This Row],[Median]]-AAMC_Raw_Data_for_FY22[[#This Row],[25th]])/25)*15) + AAMC_Raw_Data_for_FY22[[#This Row],[25th]]","v":301788.40000000002},{"$f":"(((AAMC_Raw_Data_for_FY22[[#This Row],[Median]]-AAMC_Raw_Data_for_FY22[[#This Row],[25th]])/25)*20) + AAMC_Raw_Data_for_FY22[[#This Row],[25th]]","v":308254.2},314720,{"$f":"(((AAMC_Raw_Data_for_FY22[[#This Row],[75th]]-AAMC_Raw_Data_for_FY22[[#This Row],[Median]])/25)*5) + AAMC_Raw_Data_for_FY22[[#This Row],[Median]]","v":323985.40000000002},{"$f":"(((AAMC_Raw_Data_for_FY22[[#This Row],[75th]]-AAMC_Raw_Data_for_FY22[[#This Row],[Median]])/25)*10) + AAMC_Raw_Data_for_FY22[[#This Row],[Median]]","v":333250.8},{"$f":"(((AAMC_Raw_Data_for_FY22[[#This Row],[75th]]-AAMC_Raw_Data_for_FY22[[#This Row],[Median]])/25)*15) + AAMC_Raw_Data_for_FY22[[#This Row],[Median]]","v":342516.2},{"$f":"(((AAMC_Raw_Data_for_FY22[[#This Row],[75th]]-AAMC_Raw_Data_for_FY22[[#This Row],[Median]])/25)*20) + AAMC_Raw_Data_for_FY22[[#This Row],[Median]]","v":351781.6},361047,{"$f":"(((AAMC_Raw_Data_for_FY22[[#This Row],[75th]]-AAMC_Raw_Data_for_FY22[[#This Row],[Median]])/25)*30) + AAMC_Raw_Data_for_FY22[[#This Row],[Median]]","v":370312.4},{"$f":"(((AAMC_Raw_Data_for_FY22[[#This Row],[75th]]-AAMC_Raw_Data_for_FY22[[#This Row],[Median]])/25)*35) + AAMC_Raw_Data_for_FY22[[#This Row],[Median]]","v":379577.8},{"$f":"(((AAMC_Raw_Data_for_FY22[[#This Row],[75th]]-AAMC_Raw_Data_for_FY22[[#This Row],[Median]])/25)*40) + AAMC_Raw_Data_for_FY22[[#This Row],[Median]]","v":388843.2}]
[{"$f":"AAMC_Raw_Data_for_FY22[[#This Row],[Source]]&AAMC_Raw_Data_for_FY22[[#This Row],[Type]]&AAMC_Raw_Data_for_FY22[[#This Row],[School Subset]]&AAMC_Raw_Data_for_FY22[[#This Row],[Rank]]&AAMC_Raw_Data_for_FY22[[#This Row],[Degree]]&AAMC_Raw_Data_for_FY22[[#This Row],[Department / Specialty]]&\"L\"","v":"AAMCAcademicPrivateChiefMDHospital MedicineL"},"Hospital Medicine",6,"AAMC","Academic","Private","Chief","MD","2021-2022",319334,{"$f":"(((AAMC_Raw_Data_for_FY22[[#This Row],[Median]]-AAMC_Raw_Data_for_FY22[[#This Row],[25th]])/25)*5) + AAMC_Raw_Data_for_FY22[[#This Row],[25th]]","v":331590.59999999998},{"$f":"(((AAMC_Raw_Data_for_FY22[[#This Row],[Median]]-AAMC_Raw_Data_for_FY22[[#This Row],[25th]])/25)*10) + AAMC_Raw_Data_for_FY22[[#This Row],[25th]]","v":343847.2},{"$f":"(((AAMC_Raw_Data_for_FY22[[#This Row],[Median]]-AAMC_Raw_Data_for_FY22[[#This Row],[25th]])/25)*15) + AAMC_Raw_Data_for_FY22[[#This Row],[25th]]","v":356103.8},{"$f":"(((AAMC_Raw_Data_for_FY22[[#This Row],[Median]]-AAMC_Raw_Data_for_FY22[[#This Row],[25th]])/25)*20) + AAMC_Raw_Data_for_FY22[[#This Row],[25th]]","v":368360.4},380617,{"$f":"(((AAMC_Raw_Data_for_FY22[[#This Row],[75th]]-AAMC_Raw_Data_for_FY22[[#This Row],[Median]])/25)*5) + AAMC_Raw_Data_for_FY22[[#This Row],[Median]]","v":393338.6},{"$f":"(((AAMC_Raw_Data_for_FY22[[#This Row],[75th]]-AAMC_Raw_Data_for_FY22[[#This Row],[Median]])/25)*10) + AAMC_Raw_Data_for_FY22[[#This Row],[Median]]","v":406060.2},{"$f":"(((AAMC_Raw_Data_for_FY22[[#This Row],[75th]]-AAMC_Raw_Data_for_FY22[[#This Row],[Median]])/25)*15) + AAMC_Raw_Data_for_FY22[[#This Row],[Median]]","v":418781.8},{"$f":"(((AAMC_Raw_Data_for_FY22[[#This Row],[75th]]-AAMC_Raw_Data_for_FY22[[#This Row],[Median]])/25)*20) + AAMC_Raw_Data_for_FY22[[#This Row],[Median]]","v":431503.4},444225,{"$f":"(((AAMC_Raw_Data_for_FY22[[#This Row],[75th]]-AAMC_Raw_Data_for_FY22[[#This Row],[Median]])/25)*30) + AAMC_Raw_Data_for_FY22[[#This Row],[Median]]","v":456946.6},{"$f":"(((AAMC_Raw_Data_for_FY22[[#This Row],[75th]]-AAMC_Raw_Data_for_FY22[[#This Row],[Median]])/25)*35) + AAMC_Raw_Data_for_FY22[[#This Row],[Median]]","v":469668.2},{"$f":"(((AAMC_Raw_Data_for_FY22[[#This Row],[75th]]-AAMC_Raw_Data_for_FY22[[#This Row],[Median]])/25)*40) + AAMC_Raw_Data_for_FY22[[#This Row],[Median]]","v":482389.8}]
[{"$f":"AAMC_Raw_Data_for_FY22[[#This Row],[Source]]&AAMC_Raw_Data_for_FY22[[#This Row],[Type]]&AAMC_Raw_Data_for_FY22[[#This Row],[School Subset]]&AAMC_Raw_Data_for_FY22[[#This Row],[Rank]]&AAMC_Raw_Data_for_FY22[[#This Row],[Degree]]&AAMC_Raw_Data_for_FY22[[#This Row],[Department / Specialty]]&\"L\"","v":"AAMCAcademicPrivateChairMDHospital MedicineL"},"Hospital Medicine",1,"AAMC","Academic","Private","Chair","MD","2021-2022",null,{"$f":"(((AAMC_Raw_Data_for_FY22[[#This Row],[Median]]-AAMC_Raw_Data_for_FY22[[#This Row],[25th]])/25)*5) + AAMC_Raw_Data_for_FY22[[#This Row],[25th]]","v":0},{"$f":"(((AAMC_Raw_Data_for_FY22[[#This Row],[Median]]-AAMC_Raw_Data_for_FY22[[#This Row],[25th]])/25)*10) + AAMC_Raw_Data_for_FY22[[#This Row],[25th]]","v":0},{"$f":"(((AAMC_Raw_Data_for_FY22[[#This Row],[Median]]-AAMC_Raw_Data_for_FY22[[#This Row],[25th]])/25)*15) + AAMC_Raw_Data_for_FY22[[#This Row],[25th]]","v":0},{"$f":"(((AAMC_Raw_Data_for_FY22[[#This Row],[Median]]-AAMC_Raw_Data_for_FY22[[#This Row],[25th]])/25)*20) + AAMC_Raw_Data_for_FY22[[#This Row],[25th]]","v":0},null,{"$f":"(((AAMC_Raw_Data_for_FY22[[#This Row],[75th]]-AAMC_Raw_Data_for_FY22[[#This Row],[Median]])/25)*5) + AAMC_Raw_Data_for_FY22[[#This Row],[Median]]","v":0},{"$f":"(((AAMC_Raw_Data_for_FY22[[#This Row],[75th]]-AAMC_Raw_Data_for_FY22[[#This Row],[Median]])/25)*10) + AAMC_Raw_Data_for_FY22[[#This Row],[Median]]","v":0},{"$f":"(((AAMC_Raw_Data_for_FY22[[#This Row],[75th]]-AAMC_Raw_Data_for_FY22[[#This Row],[Median]])/25)*15) + AAMC_Raw_Data_for_FY22[[#This Row],[Median]]","v":0},{"$f":"(((AAMC_Raw_Data_for_FY22[[#This Row],[75th]]-AAMC_Raw_Data_for_FY22[[#This Row],[Median]])/25)*20) + AAMC_Raw_Data_for_FY22[[#This Row],[Median]]","v":0},null,{"$f":"(((AAMC_Raw_Data_for_FY22[[#This Row],[75th]]-AAMC_Raw_Data_for_FY22[[#This Row],[Median]])/25)*30) + AAMC_Raw_Data_for_FY22[[#This Row],[Median]]","v":0},{"$f":"(((AAMC_Raw_Data_for_FY22[[#This Row],[75th]]-AAMC_Raw_Data_for_FY22[[#This Row],[Median]])/25)*35) + AAMC_Raw_Data_for_FY22[[#This Row],[Median]]","v":0},{"$f":"(((AAMC_Raw_Data_for_FY22[[#This Row],[75th]]-AAMC_Raw_Data_for_FY22[[#This Row],[Median]])/25)*40) + AAMC_Raw_Data_for_FY22[[#This Row],[Median]]","v":0}]
[{"$f":"AAMC_Raw_Data_for_FY22[[#This Row],[Source]]&AAMC_Raw_Data_for_FY22[[#This Row],[Type]]&AAMC_Raw_Data_for_FY22[[#This Row],[School Subset]]&AAMC_Raw_Data_for_FY22[[#This Row],[Rank]]&AAMC_Raw_Data_for_FY22[[#This Row],[Degree]]&AAMC_Raw_Data_for_FY22[[#This Row],[Department / Specialty]]&\"L\"","v":"AAMCAcademicPrivateInstructorMDInfectious Disease-Med.L"},"Infectious Disease-Med.",5,"AAMC","Academic","Private","Instructor","MD","2021-2022",129744,{"$f":"(((AAMC_Raw_Data_for_FY22[[#This Row],[Median]]-AAMC_Raw_Data_for_FY22[[#This Row],[25th]])/25)*5) + AAMC_Raw_Data_for_FY22[[#This Row],[25th]]","v":138835.20000000001},{"$f":"(((AAMC_Raw_Data_for_FY22[[#This Row],[Median]]-AAMC_Raw_Data_for_FY22[[#This Row],[25th]])/25)*10) + AAMC_Raw_Data_for_FY22[[#This Row],[25th]]","v":147926.39999999999},{"$f":"(((AAMC_Raw_Data_for_FY22[[#This Row],[Median]]-AAMC_Raw_Data_for_FY22[[#This Row],[25th]])/25)*15) + AAMC_Raw_Data_for_FY22[[#This Row],[25th]]","v":157017.60000000001},{"$f":"(((AAMC_Raw_Data_for_FY22[[#This Row],[Median]]-AAMC_Raw_Data_for_FY22[[#This Row],[25th]])/25)*20) + AAMC_Raw_Data_for_FY22[[#This Row],[25th]]","v":166108.79999999999},175200,{"$f":"(((AAMC_Raw_Data_for_FY22[[#This Row],[75th]]-AAMC_Raw_Data_for_FY22[[#This Row],[Median]])/25)*5) + AAMC_Raw_Data_for_FY22[[#This Row],[Median]]","v":180648},{"$f":"(((AAMC_Raw_Data_for_FY22[[#This Row],[75th]]-AAMC_Raw_Data_for_FY22[[#This Row],[Median]])/25)*10) + AAMC_Raw_Data_for_FY22[[#This Row],[Median]]","v":186096},{"$f":"(((AAMC_Raw_Data_for_FY22[[#This Row],[75th]]-AAMC_Raw_Data_for_FY22[[#This Row],[Median]])/25)*15) + AAMC_Raw_Data_for_FY22[[#This Row],[Median]]","v":191544},{"$f":"(((AAMC_Raw_Data_for_FY22[[#This Row],[75th]]-AAMC_Raw_Data_for_FY22[[#This Row],[Median]])/25)*20) + AAMC_Raw_Data_for_FY22[[#This Row],[Median]]","v":196992},202440,{"$f":"(((AAMC_Raw_Data_for_FY22[[#This Row],[75th]]-AAMC_Raw_Data_for_FY22[[#This Row],[Median]])/25)*30) + AAMC_Raw_Data_for_FY22[[#This Row],[Median]]","v":207888},{"$f":"(((AAMC_Raw_Data_for_FY22[[#This Row],[75th]]-AAMC_Raw_Data_for_FY22[[#This Row],[Median]])/25)*35) + AAMC_Raw_Data_for_FY22[[#This Row],[Median]]","v":213336},{"$f":"(((AAMC_Raw_Data_for_FY22[[#This Row],[75th]]-AAMC_Raw_Data_for_FY22[[#This Row],[Median]])/25)*40) + AAMC_Raw_Data_for_FY22[[#This Row],[Median]]","v":218784}]
[{"$f":"AAMC_Raw_Data_for_FY22[[#This Row],[Source]]&AAMC_Raw_Data_for_FY22[[#This Row],[Type]]&AAMC_Raw_Data_for_FY22[[#This Row],[School Subset]]&AAMC_Raw_Data_for_FY22[[#This Row],[Rank]]&AAMC_Raw_Data_for_FY22[[#This Row],[Degree]]&AAMC_Raw_Data_for_FY22[[#This Row],[Department / Specialty]]&\"L\"","v":"AAMCAcademicPrivateAssistantMDInfectious Disease-Med.L"},"Infectious Disease-Med.",4,"AAMC","Academic","Private","Assistant","MD","2021-2022",170043,{"$f":"(((AAMC_Raw_Data_for_FY22[[#This Row],[Median]]-AAMC_Raw_Data_for_FY22[[#This Row],[25th]])/25)*5) + AAMC_Raw_Data_for_FY22[[#This Row],[25th]]","v":175234.8},{"$f":"(((AAMC_Raw_Data_for_FY22[[#This Row],[Median]]-AAMC_Raw_Data_for_FY22[[#This Row],[25th]])/25)*10) + AAMC_Raw_Data_for_FY22[[#This Row],[25th]]","v":180426.6},{"$f":"(((AAMC_Raw_Data_for_FY22[[#This Row],[Median]]-AAMC_Raw_Data_for_FY22[[#This Row],[25th]])/25)*15) + AAMC_Raw_Data_for_FY22[[#This Row],[25th]]","v":185618.4},{"$f":"(((AAMC_Raw_Data_for_FY22[[#This Row],[Median]]-AAMC_Raw_Data_for_FY22[[#This Row],[25th]])/25)*20) + AAMC_Raw_Data_for_FY22[[#This Row],[25th]]","v":190810.2},196002,{"$f":"(((AAMC_Raw_Data_for_FY22[[#This Row],[75th]]-AAMC_Raw_Data_for_FY22[[#This Row],[Median]])/25)*5) + AAMC_Raw_Data_for_FY22[[#This Row],[Median]]","v":202104.8},{"$f":"(((AAMC_Raw_Data_for_FY22[[#This Row],[75th]]-AAMC_Raw_Data_for_FY22[[#This Row],[Median]])/25)*10) + AAMC_Raw_Data_for_FY22[[#This Row],[Median]]","v":208207.6},{"$f":"(((AAMC_Raw_Data_for_FY22[[#This Row],[75th]]-AAMC_Raw_Data_for_FY22[[#This Row],[Median]])/25)*15) + AAMC_Raw_Data_for_FY22[[#This Row],[Median]]","v":214310.39999999999},{"$f":"(((AAMC_Raw_Data_for_FY22[[#This Row],[75th]]-AAMC_Raw_Data_for_FY22[[#This Row],[Median]])/25)*20) + AAMC_Raw_Data_for_FY22[[#This Row],[Median]]","v":220413.2},226516,{"$f":"(((AAMC_Raw_Data_for_FY22[[#This Row],[75th]]-AAMC_Raw_Data_for_FY22[[#This Row],[Median]])/25)*30) + AAMC_Raw_Data_for_FY22[[#This Row],[Median]]","v":232618.8},{"$f":"(((AAMC_Raw_Data_for_FY22[[#This Row],[75th]]-AAMC_Raw_Data_for_FY22[[#This Row],[Median]])/25)*35) + AAMC_Raw_Data_for_FY22[[#This Row],[Median]]","v":238721.6},{"$f":"(((AAMC_Raw_Data_for_FY22[[#This Row],[75th]]-AAMC_Raw_Data_for_FY22[[#This Row],[Median]])/25)*40) + AAMC_Raw_Data_for_FY22[[#This Row],[Median]]","v":244824.4}]
[{"$f":"AAMC_Raw_Data_for_FY22[[#This Row],[Source]]&AAMC_Raw_Data_for_FY22[[#This Row],[Type]]&AAMC_Raw_Data_for_FY22[[#This Row],[School Subset]]&AAMC_Raw_Data_for_FY22[[#This Row],[Rank]]&AAMC_Raw_Data_for_FY22[[#This Row],[Degree]]&AAMC_Raw_Data_for_FY22[[#This Row],[Department / Specialty]]&\"L\"","v":"AAMCAcademicPrivateAssociateMDInfectious Disease-Med.L"},"Infectious Disease-Med.",3,"AAMC","Academic","Private","Associate","MD","2021-2022",199460,{"$f":"(((AAMC_Raw_Data_for_FY22[[#This Row],[Median]]-AAMC_Raw_Data_for_FY22[[#This Row],[25th]])/25)*5) + AAMC_Raw_Data_for_FY22[[#This Row],[25th]]","v":204667},{"$f":"(((AAMC_Raw_Data_for_FY22[[#This Row],[Median]]-AAMC_Raw_Data_for_FY22[[#This Row],[25th]])/25)*10) + AAMC_Raw_Data_for_FY22[[#This Row],[25th]]","v":209874},{"$f":"(((AAMC_Raw_Data_for_FY22[[#This Row],[Median]]-AAMC_Raw_Data_for_FY22[[#This Row],[25th]])/25)*15) + AAMC_Raw_Data_for_FY22[[#This Row],[25th]]","v":215081},{"$f":"(((AAMC_Raw_Data_for_FY22[[#This Row],[Median]]-AAMC_Raw_Data_for_FY22[[#This Row],[25th]])/25)*20) + AAMC_Raw_Data_for_FY22[[#This Row],[25th]]","v":220288},225495,{"$f":"(((AAMC_Raw_Data_for_FY22[[#This Row],[75th]]-AAMC_Raw_Data_for_FY22[[#This Row],[Median]])/25)*5) + AAMC_Raw_Data_for_FY22[[#This Row],[Median]]","v":232516.4},{"$f":"(((AAMC_Raw_Data_for_FY22[[#This Row],[75th]]-AAMC_Raw_Data_for_FY22[[#This Row],[Median]])/25)*10) + AAMC_Raw_Data_for_FY22[[#This Row],[Median]]","v":239537.8},{"$f":"(((AAMC_Raw_Data_for_FY22[[#This Row],[75th]]-AAMC_Raw_Data_for_FY22[[#This Row],[Median]])/25)*15) + AAMC_Raw_Data_for_FY22[[#This Row],[Median]]","v":246559.2},{"$f":"(((AAMC_Raw_Data_for_FY22[[#This Row],[75th]]-AAMC_Raw_Data_for_FY22[[#This Row],[Median]])/25)*20) + AAMC_Raw_Data_for_FY22[[#This Row],[Median]]","v":253580.6},260602,{"$f":"(((AAMC_Raw_Data_for_FY22[[#This Row],[75th]]-AAMC_Raw_Data_for_FY22[[#This Row],[Median]])/25)*30) + AAMC_Raw_Data_for_FY22[[#This Row],[Median]]","v":267623.40000000002},{"$f":"(((AAMC_Raw_Data_for_FY22[[#This Row],[75th]]-AAMC_Raw_Data_for_FY22[[#This Row],[Median]])/25)*35) + AAMC_Raw_Data_for_FY22[[#This Row],[Median]]","v":274644.8},{"$f":"(((AAMC_Raw_Data_for_FY22[[#This Row],[75th]]-AAMC_Raw_Data_for_FY22[[#This Row],[Median]])/25)*40) + AAMC_Raw_Data_for_FY22[[#This Row],[Median]]","v":281666.2}]
[{"$f":"AAMC_Raw_Data_for_FY22[[#This Row],[Source]]&AAMC_Raw_Data_for_FY22[[#This Row],[Type]]&AAMC_Raw_Data_for_FY22[[#This Row],[School Subset]]&AAMC_Raw_Data_for_FY22[[#This Row],[Rank]]&AAMC_Raw_Data_for_FY22[[#This Row],[Degree]]&AAMC_Raw_Data_for_FY22[[#This Row],[Department / Specialty]]&\"L\"","v":"AAMCAcademicPrivateProfessorMDInfectious Disease-Med.L"},"Infectious Disease-Med.",2,"AAMC","Academic","Private","Professor","MD","2021-2022",232646,{"$f":"(((AAMC_Raw_Data_for_FY22[[#This Row],[Median]]-AAMC_Raw_Data_for_FY22[[#This Row],[25th]])/25)*5) + AAMC_Raw_Data_for_FY22[[#This Row],[25th]]","v":241113.4},{"$f":"(((AAMC_Raw_Data_for_FY22[[#This Row],[Median]]-AAMC_Raw_Data_for_FY22[[#This Row],[25th]])/25)*10) + AAMC_Raw_Data_for_FY22[[#This Row],[25th]]","v":249580.79999999999},{"$f":"(((AAMC_Raw_Data_for_FY22[[#This Row],[Median]]-AAMC_Raw_Data_for_FY22[[#This Row],[25th]])/25)*15) + AAMC_Raw_Data_for_FY22[[#This Row],[25th]]","v":258048.2},{"$f":"(((AAMC_Raw_Data_for_FY22[[#This Row],[Median]]-AAMC_Raw_Data_for_FY22[[#This Row],[25th]])/25)*20) + AAMC_Raw_Data_for_FY22[[#This Row],[25th]]","v":266515.59999999998},274983,{"$f":"(((AAMC_Raw_Data_for_FY22[[#This Row],[75th]]-AAMC_Raw_Data_for_FY22[[#This Row],[Median]])/25)*5) + AAMC_Raw_Data_for_FY22[[#This Row],[Median]]","v":285192.59999999998},{"$f":"(((AAMC_Raw_Data_for_FY22[[#This Row],[75th]]-AAMC_Raw_Data_for_FY22[[#This Row],[Median]])/25)*10) + AAMC_Raw_Data_for_FY22[[#This Row],[Median]]","v":295402.2},{"$f":"(((AAMC_Raw_Data_for_FY22[[#This Row],[75th]]-AAMC_Raw_Data_for_FY22[[#This Row],[Median]])/25)*15) + AAMC_Raw_Data_for_FY22[[#This Row],[Median]]","v":305611.8},{"$f":"(((AAMC_Raw_Data_for_FY22[[#This Row],[75th]]-AAMC_Raw_Data_for_FY22[[#This Row],[Median]])/25)*20) + AAMC_Raw_Data_for_FY22[[#This Row],[Median]]","v":315821.40000000002},326031,{"$f":"(((AAMC_Raw_Data_for_FY22[[#This Row],[75th]]-AAMC_Raw_Data_for_FY22[[#This Row],[Median]])/25)*30) + AAMC_Raw_Data_for_FY22[[#This Row],[Median]]","v":336240.6},{"$f":"(((AAMC_Raw_Data_for_FY22[[#This Row],[75th]]-AAMC_Raw_Data_for_FY22[[#This Row],[Median]])/25)*35) + AAMC_Raw_Data_for_FY22[[#This Row],[Median]]","v":346450.2},{"$f":"(((AAMC_Raw_Data_for_FY22[[#This Row],[75th]]-AAMC_Raw_Data_for_FY22[[#This Row],[Median]])/25)*40) + AAMC_Raw_Data_for_FY22[[#This Row],[Median]]","v":356659.8}]
[{"$f":"AAMC_Raw_Data_for_FY22[[#This Row],[Source]]&AAMC_Raw_Data_for_FY22[[#This Row],[Type]]&AAMC_Raw_Data_for_FY22[[#This Row],[School Subset]]&AAMC_Raw_Data_for_FY22[[#This Row],[Rank]]&AAMC_Raw_Data_for_FY22[[#This Row],[Degree]]&AAMC_Raw_Data_for_FY22[[#This Row],[Department / Specialty]]&\"L\"","v":"AAMCAcademicPrivateChiefMDInfectious Disease-Med.L"},"Infectious Disease-Med.",6,"AAMC","Academic","Private","Chief","MD","2021-2022",308627,{"$f":"(((AAMC_Raw_Data_for_FY22[[#This Row],[Median]]-AAMC_Raw_Data_for_FY22[[#This Row],[25th]])/25)*5) + AAMC_Raw_Data_for_FY22[[#This Row],[25th]]","v":315887.40000000002},{"$f":"(((AAMC_Raw_Data_for_FY22[[#This Row],[Median]]-AAMC_Raw_Data_for_FY22[[#This Row],[25th]])/25)*10) + AAMC_Raw_Data_for_FY22[[#This Row],[25th]]","v":323147.8},{"$f":"(((AAMC_Raw_Data_for_FY22[[#This Row],[Median]]-AAMC_Raw_Data_for_FY22[[#This Row],[25th]])/25)*15) + AAMC_Raw_Data_for_FY22[[#This Row],[25th]]","v":330408.2},{"$f":"(((AAMC_Raw_Data_for_FY22[[#This Row],[Median]]-AAMC_Raw_Data_for_FY22[[#This Row],[25th]])/25)*20) + AAMC_Raw_Data_for_FY22[[#This Row],[25th]]","v":337668.6},344929,{"$f":"(((AAMC_Raw_Data_for_FY22[[#This Row],[75th]]-AAMC_Raw_Data_for_FY22[[#This Row],[Median]])/25)*5) + AAMC_Raw_Data_for_FY22[[#This Row],[Median]]","v":355304.8},{"$f":"(((AAMC_Raw_Data_for_FY22[[#This Row],[75th]]-AAMC_Raw_Data_for_FY22[[#This Row],[Median]])/25)*10) + AAMC_Raw_Data_for_FY22[[#This Row],[Median]]","v":365680.6},{"$f":"(((AAMC_Raw_Data_for_FY22[[#This Row],[75th]]-AAMC_Raw_Data_for_FY22[[#This Row],[Median]])/25)*15) + AAMC_Raw_Data_for_FY22[[#This Row],[Median]]","v":376056.4},{"$f":"(((AAMC_Raw_Data_for_FY22[[#This Row],[75th]]-AAMC_Raw_Data_for_FY22[[#This Row],[Median]])/25)*20) + AAMC_Raw_Data_for_FY22[[#This Row],[Median]]","v":386432.2},396808,{"$f":"(((AAMC_Raw_Data_for_FY22[[#This Row],[75th]]-AAMC_Raw_Data_for_FY22[[#This Row],[Median]])/25)*30) + AAMC_Raw_Data_for_FY22[[#This Row],[Median]]","v":407183.8},{"$f":"(((AAMC_Raw_Data_for_FY22[[#This Row],[75th]]-AAMC_Raw_Data_for_FY22[[#This Row],[Median]])/25)*35) + AAMC_Raw_Data_for_FY22[[#This Row],[Median]]","v":417559.6},{"$f":"(((AAMC_Raw_Data_for_FY22[[#This Row],[75th]]-AAMC_Raw_Data_for_FY22[[#This Row],[Median]])/25)*40) + AAMC_Raw_Data_for_FY22[[#This Row],[Median]]","v":427935.4}]
[{"$f":"AAMC_Raw_Data_for_FY22[[#This Row],[Source]]&AAMC_Raw_Data_for_FY22[[#This Row],[Type]]&AAMC_Raw_Data_for_FY22[[#This Row],[School Subset]]&AAMC_Raw_Data_for_FY22[[#This Row],[Rank]]&AAMC_Raw_Data_for_FY22[[#This Row],[Degree]]&AAMC_Raw_Data_for_FY22[[#This Row],[Department / Specialty]]&\"L\"","v":"AAMCAcademicPrivateChairMDInfectious Disease-Med.L"},"Infectious Disease-Med.",1,"AAMC","Academic","Private","Chair","MD","2021-2022",690949,{"$f":"(((AAMC_Raw_Data_for_FY22[[#This Row],[Median]]-AAMC_Raw_Data_for_FY22[[#This Row],[25th]])/25)*5) + AAMC_Raw_Data_for_FY22[[#This Row],[25th]]","v":694138.6},{"$f":"(((AAMC_Raw_Data_for_FY22[[#This Row],[Median]]-AAMC_Raw_Data_for_FY22[[#This Row],[25th]])/25)*10) + AAMC_Raw_Data_for_FY22[[#This Row],[25th]]","v":697328.2},{"$f":"(((AAMC_Raw_Data_for_FY22[[#This Row],[Median]]-AAMC_Raw_Data_for_FY22[[#This Row],[25th]])/25)*15) + AAMC_Raw_Data_for_FY22[[#This Row],[25th]]","v":700517.8},{"$f":"(((AAMC_Raw_Data_for_FY22[[#This Row],[Median]]-AAMC_Raw_Data_for_FY22[[#This Row],[25th]])/25)*20) + AAMC_Raw_Data_for_FY22[[#This Row],[25th]]","v":703707.4},706897,{"$f":"(((AAMC_Raw_Data_for_FY22[[#This Row],[75th]]-AAMC_Raw_Data_for_FY22[[#This Row],[Median]])/25)*5) + AAMC_Raw_Data_for_FY22[[#This Row],[Median]]","v":724317.6},{"$f":"(((AAMC_Raw_Data_for_FY22[[#This Row],[75th]]-AAMC_Raw_Data_for_FY22[[#This Row],[Median]])/25)*10) + AAMC_Raw_Data_for_FY22[[#This Row],[Median]]","v":741738.2},{"$f":"(((AAMC_Raw_Data_for_FY22[[#This Row],[75th]]-AAMC_Raw_Data_for_FY22[[#This Row],[Median]])/25)*15) + AAMC_Raw_Data_for_FY22[[#This Row],[Median]]","v":759158.8},{"$f":"(((AAMC_Raw_Data_for_FY22[[#This Row],[75th]]-AAMC_Raw_Data_for_FY22[[#This Row],[Median]])/25)*20) + AAMC_Raw_Data_for_FY22[[#This Row],[Median]]","v":776579.4},794000,{"$f":"(((AAMC_Raw_Data_for_FY22[[#This Row],[75th]]-AAMC_Raw_Data_for_FY22[[#This Row],[Median]])/25)*30) + AAMC_Raw_Data_for_FY22[[#This Row],[Median]]","v":811420.6},{"$f":"(((AAMC_Raw_Data_for_FY22[[#This Row],[75th]]-AAMC_Raw_Data_for_FY22[[#This Row],[Median]])/25)*35) + AAMC_Raw_Data_for_FY22[[#This Row],[Median]]","v":828841.2},{"$f":"(((AAMC_Raw_Data_for_FY22[[#This Row],[75th]]-AAMC_Raw_Data_for_FY22[[#This Row],[Median]])/25)*40) + AAMC_Raw_Data_for_FY22[[#This Row],[Median]]","v":846261.8}]
[{"$f":"AAMC_Raw_Data_for_FY22[[#This Row],[Source]]&AAMC_Raw_Data_for_FY22[[#This Row],[Type]]&AAMC_Raw_Data_for_FY22[[#This Row],[School Subset]]&AAMC_Raw_Data_for_FY22[[#This Row],[Rank]]&AAMC_Raw_Data_for_FY22[[#This Row],[Degree]]&AAMC_Raw_Data_for_FY22[[#This Row],[Department / Specialty]]&\"L\"","v":"AAMCAcademicPrivateInstructorMDNephrology-Med.L"},"Nephrology-Med.",5,"AAMC","Academic","Private","Instructor","MD","2021-2022",154500,{"$f":"(((AAMC_Raw_Data_for_FY22[[#This Row],[Median]]-AAMC_Raw_Data_for_FY22[[#This Row],[25th]])/25)*5) + AAMC_Raw_Data_for_FY22[[#This Row],[25th]]","v":160465},{"$f":"(((AAMC_Raw_Data_for_FY22[[#This Row],[Median]]-AAMC_Raw_Data_for_FY22[[#This Row],[25th]])/25)*10) + AAMC_Raw_Data_for_FY22[[#This Row],[25th]]","v":166430},{"$f":"(((AAMC_Raw_Data_for_FY22[[#This Row],[Median]]-AAMC_Raw_Data_for_FY22[[#This Row],[25th]])/25)*15) + AAMC_Raw_Data_for_FY22[[#This Row],[25th]]","v":172395},{"$f":"(((AAMC_Raw_Data_for_FY22[[#This Row],[Median]]-AAMC_Raw_Data_for_FY22[[#This Row],[25th]])/25)*20) + AAMC_Raw_Data_for_FY22[[#This Row],[25th]]","v":178360},184325,{"$f":"(((AAMC_Raw_Data_for_FY22[[#This Row],[75th]]-AAMC_Raw_Data_for_FY22[[#This Row],[Median]])/25)*5) + AAMC_Raw_Data_for_FY22[[#This Row],[Median]]","v":188990.4},{"$f":"(((AAMC_Raw_Data_for_FY22[[#This Row],[75th]]-AAMC_Raw_Data_for_FY22[[#This Row],[Median]])/25)*10) + AAMC_Raw_Data_for_FY22[[#This Row],[Median]]","v":193655.8},{"$f":"(((AAMC_Raw_Data_for_FY22[[#This Row],[75th]]-AAMC_Raw_Data_for_FY22[[#This Row],[Median]])/25)*15) + AAMC_Raw_Data_for_FY22[[#This Row],[Median]]","v":198321.2},{"$f":"(((AAMC_Raw_Data_for_FY22[[#This Row],[75th]]-AAMC_Raw_Data_for_FY22[[#This Row],[Median]])/25)*20) + AAMC_Raw_Data_for_FY22[[#This Row],[Median]]","v":202986.6},207652,{"$f":"(((AAMC_Raw_Data_for_FY22[[#This Row],[75th]]-AAMC_Raw_Data_for_FY22[[#This Row],[Median]])/25)*30) + AAMC_Raw_Data_for_FY22[[#This Row],[Median]]","v":212317.4},{"$f":"(((AAMC_Raw_Data_for_FY22[[#This Row],[75th]]-AAMC_Raw_Data_for_FY22[[#This Row],[Median]])/25)*35) + AAMC_Raw_Data_for_FY22[[#This Row],[Median]]","v":216982.8},{"$f":"(((AAMC_Raw_Data_for_FY22[[#This Row],[75th]]-AAMC_Raw_Data_for_FY22[[#This Row],[Median]])/25)*40) + AAMC_Raw_Data_for_FY22[[#This Row],[Median]]","v":221648.2}]
[{"$f":"AAMC_Raw_Data_for_FY22[[#This Row],[Source]]&AAMC_Raw_Data_for_FY22[[#This Row],[Type]]&AAMC_Raw_Data_for_FY22[[#This Row],[School Subset]]&AAMC_Raw_Data_for_FY22[[#This Row],[Rank]]&AAMC_Raw_Data_for_FY22[[#This Row],[Degree]]&AAMC_Raw_Data_for_FY22[[#This Row],[Department / Specialty]]&\"L\"","v":"AAMCAcademicPrivateAssistantMDNephrology-Med.L"},"Nephrology-Med.",4,"AAMC","Academic","Private","Assistant","MD","2021-2022",190177,{"$f":"(((AAMC_Raw_Data_for_FY22[[#This Row],[Median]]-AAMC_Raw_Data_for_FY22[[#This Row],[25th]])/25)*5) + AAMC_Raw_Data_for_FY22[[#This Row],[25th]]","v":197505.6},{"$f":"(((AAMC_Raw_Data_for_FY22[[#This Row],[Median]]-AAMC_Raw_Data_for_FY22[[#This Row],[25th]])/25)*10) + AAMC_Raw_Data_for_FY22[[#This Row],[25th]]","v":204834.2},{"$f":"(((AAMC_Raw_Data_for_FY22[[#This Row],[Median]]-AAMC_Raw_Data_for_FY22[[#This Row],[25th]])/25)*15) + AAMC_Raw_Data_for_FY22[[#This Row],[25th]]","v":212162.8},{"$f":"(((AAMC_Raw_Data_for_FY22[[#This Row],[Median]]-AAMC_Raw_Data_for_FY22[[#This Row],[25th]])/25)*20) + AAMC_Raw_Data_for_FY22[[#This Row],[25th]]","v":219491.4},226820,{"$f":"(((AAMC_Raw_Data_for_FY22[[#This Row],[75th]]-AAMC_Raw_Data_for_FY22[[#This Row],[Median]])/25)*5) + AAMC_Raw_Data_for_FY22[[#This Row],[Median]]","v":238082.8},{"$f":"(((AAMC_Raw_Data_for_FY22[[#This Row],[75th]]-AAMC_Raw_Data_for_FY22[[#This Row],[Median]])/25)*10) + AAMC_Raw_Data_for_FY22[[#This Row],[Median]]","v":249345.6},{"$f":"(((AAMC_Raw_Data_for_FY22[[#This Row],[75th]]-AAMC_Raw_Data_for_FY22[[#This Row],[Median]])/25)*15) + AAMC_Raw_Data_for_FY22[[#This Row],[Median]]","v":260608.4},{"$f":"(((AAMC_Raw_Data_for_FY22[[#This Row],[75th]]-AAMC_Raw_Data_for_FY22[[#This Row],[Median]])/25)*20) + AAMC_Raw_Data_for_FY22[[#This Row],[Median]]","v":271871.2},283134,{"$f":"(((AAMC_Raw_Data_for_FY22[[#This Row],[75th]]-AAMC_Raw_Data_for_FY22[[#This Row],[Median]])/25)*30) + AAMC_Raw_Data_for_FY22[[#This Row],[Median]]","v":294396.79999999999},{"$f":"(((AAMC_Raw_Data_for_FY22[[#This Row],[75th]]-AAMC_Raw_Data_for_FY22[[#This Row],[Median]])/25)*35) + AAMC_Raw_Data_for_FY22[[#This Row],[Median]]","v":305659.59999999998},{"$f":"(((AAMC_Raw_Data_for_FY22[[#This Row],[75th]]-AAMC_Raw_Data_for_FY22[[#This Row],[Median]])/25)*40) + AAMC_Raw_Data_for_FY22[[#This Row],[Median]]","v":316922.40000000002}]
[{"$f":"AAMC_Raw_Data_for_FY22[[#This Row],[Source]]&AAMC_Raw_Data_for_FY22[[#This Row],[Type]]&AAMC_Raw_Data_for_FY22[[#This Row],[School Subset]]&AAMC_Raw_Data_for_FY22[[#This Row],[Rank]]&AAMC_Raw_Data_for_FY22[[#This Row],[Degree]]&AAMC_Raw_Data_for_FY22[[#This Row],[Department / Specialty]]&\"L\"","v":"AAMCAcademicPrivateAssociateMDNephrology-Med.L"},"Nephrology-Med.",3,"AAMC","Academic","Private","Associate","MD","2021-2022",231672,{"$f":"(((AAMC_Raw_Data_for_FY22[[#This Row],[Median]]-AAMC_Raw_Data_for_FY22[[#This Row],[25th]])/25)*5) + AAMC_Raw_Data_for_FY22[[#This Row],[25th]]","v":239512.2},{"$f":"(((AAMC_Raw_Data_for_FY22[[#This Row],[Median]]-AAMC_Raw_Data_for_FY22[[#This Row],[25th]])/25)*10) + AAMC_Raw_Data_for_FY22[[#This Row],[25th]]","v":247352.4},{"$f":"(((AAMC_Raw_Data_for_FY22[[#This Row],[Median]]-AAMC_Raw_Data_for_FY22[[#This Row],[25th]])/25)*15) + AAMC_Raw_Data_for_FY22[[#This Row],[25th]]","v":255192.6},{"$f":"(((AAMC_Raw_Data_for_FY22[[#This Row],[Median]]-AAMC_Raw_Data_for_FY22[[#This Row],[25th]])/25)*20) + AAMC_Raw_Data_for_FY22[[#This Row],[25th]]","v":263032.8},270873,{"$f":"(((AAMC_Raw_Data_for_FY22[[#This Row],[75th]]-AAMC_Raw_Data_for_FY22[[#This Row],[Median]])/25)*5) + AAMC_Raw_Data_for_FY22[[#This Row],[Median]]","v":281908.8},{"$f":"(((AAMC_Raw_Data_for_FY22[[#This Row],[75th]]-AAMC_Raw_Data_for_FY22[[#This Row],[Median]])/25)*10) + AAMC_Raw_Data_for_FY22[[#This Row],[Median]]","v":292944.59999999998},{"$f":"(((AAMC_Raw_Data_for_FY22[[#This Row],[75th]]-AAMC_Raw_Data_for_FY22[[#This Row],[Median]])/25)*15) + AAMC_Raw_Data_for_FY22[[#This Row],[Median]]","v":303980.40000000002},{"$f":"(((AAMC_Raw_Data_for_FY22[[#This Row],[75th]]-AAMC_Raw_Data_for_FY22[[#This Row],[Median]])/25)*20) + AAMC_Raw_Data_for_FY22[[#This Row],[Median]]","v":315016.2},326052,{"$f":"(((AAMC_Raw_Data_for_FY22[[#This Row],[75th]]-AAMC_Raw_Data_for_FY22[[#This Row],[Median]])/25)*30) + AAMC_Raw_Data_for_FY22[[#This Row],[Median]]","v":337087.8},{"$f":"(((AAMC_Raw_Data_for_FY22[[#This Row],[75th]]-AAMC_Raw_Data_for_FY22[[#This Row],[Median]])/25)*35) + AAMC_Raw_Data_for_FY22[[#This Row],[Median]]","v":348123.6},{"$f":"(((AAMC_Raw_Data_for_FY22[[#This Row],[75th]]-AAMC_Raw_Data_for_FY22[[#This Row],[Median]])/25)*40) + AAMC_Raw_Data_for_FY22[[#This Row],[Median]]","v":359159.4}]
[{"$f":"AAMC_Raw_Data_for_FY22[[#This Row],[Source]]&AAMC_Raw_Data_for_FY22[[#This Row],[Type]]&AAMC_Raw_Data_for_FY22[[#This Row],[School Subset]]&AAMC_Raw_Data_for_FY22[[#This Row],[Rank]]&AAMC_Raw_Data_for_FY22[[#This Row],[Degree]]&AAMC_Raw_Data_for_FY22[[#This Row],[Department / Specialty]]&\"L\"","v":"AAMCAcademicPrivateProfessorMDNephrology-Med.L"},"Nephrology-Med.",2,"AAMC","Academic","Private","Professor","MD","2021-2022",272202,{"$f":"(((AAMC_Raw_Data_for_FY22[[#This Row],[Median]]-AAMC_Raw_Data_for_FY22[[#This Row],[25th]])/25)*5) + AAMC_Raw_Data_for_FY22[[#This Row],[25th]]","v":283365.40000000002},{"$f":"(((AAMC_Raw_Data_for_FY22[[#This Row],[Median]]-AAMC_Raw_Data_for_FY22[[#This Row],[25th]])/25)*10) + AAMC_Raw_Data_for_FY22[[#This Row],[25th]]","v":294528.8},{"$f":"(((AAMC_Raw_Data_for_FY22[[#This Row],[Median]]-AAMC_Raw_Data_for_FY22[[#This Row],[25th]])/25)*15) + AAMC_Raw_Data_for_FY22[[#This Row],[25th]]","v":305692.2},{"$f":"(((AAMC_Raw_Data_for_FY22[[#This Row],[Median]]-AAMC_Raw_Data_for_FY22[[#This Row],[25th]])/25)*20) + AAMC_Raw_Data_for_FY22[[#This Row],[25th]]","v":316855.59999999998},328019,{"$f":"(((AAMC_Raw_Data_for_FY22[[#This Row],[75th]]-AAMC_Raw_Data_for_FY22[[#This Row],[Median]])/25)*5) + AAMC_Raw_Data_for_FY22[[#This Row],[Median]]","v":341240.2},{"$f":"(((AAMC_Raw_Data_for_FY22[[#This Row],[75th]]-AAMC_Raw_Data_for_FY22[[#This Row],[Median]])/25)*10) + AAMC_Raw_Data_for_FY22[[#This Row],[Median]]","v":354461.4},{"$f":"(((AAMC_Raw_Data_for_FY22[[#This Row],[75th]]-AAMC_Raw_Data_for_FY22[[#This Row],[Median]])/25)*15) + AAMC_Raw_Data_for_FY22[[#This Row],[Median]]","v":367682.6},{"$f":"(((AAMC_Raw_Data_for_FY22[[#This Row],[75th]]-AAMC_Raw_Data_for_FY22[[#This Row],[Median]])/25)*20) + AAMC_Raw_Data_for_FY22[[#This Row],[Median]]","v":380903.8},394125,{"$f":"(((AAMC_Raw_Data_for_FY22[[#This Row],[75th]]-AAMC_Raw_Data_for_FY22[[#This Row],[Median]])/25)*30) + AAMC_Raw_Data_for_FY22[[#This Row],[Median]]","v":407346.2},{"$f":"(((AAMC_Raw_Data_for_FY22[[#This Row],[75th]]-AAMC_Raw_Data_for_FY22[[#This Row],[Median]])/25)*35) + AAMC_Raw_Data_for_FY22[[#This Row],[Median]]","v":420567.4},{"$f":"(((AAMC_Raw_Data_for_FY22[[#This Row],[75th]]-AAMC_Raw_Data_for_FY22[[#This Row],[Median]])/25)*40) + AAMC_Raw_Data_for_FY22[[#This Row],[Median]]","v":433788.6}]
[{"$f":"AAMC_Raw_Data_for_FY22[[#This Row],[Source]]&AAMC_Raw_Data_for_FY22[[#This Row],[Type]]&AAMC_Raw_Data_for_FY22[[#This Row],[School Subset]]&AAMC_Raw_Data_for_FY22[[#This Row],[Rank]]&AAMC_Raw_Data_for_FY22[[#This Row],[Degree]]&AAMC_Raw_Data_for_FY22[[#This Row],[Department / Specialty]]&\"L\"","v":"AAMCAcademicPrivateChiefMDNephrology-Med.L"},"Nephrology-Med.",6,"AAMC","Academic","Private","Chief","MD","2021-2022",389429,{"$f":"(((AAMC_Raw_Data_for_FY22[[#This Row],[Median]]-AAMC_Raw_Data_for_FY22[[#This Row],[25th]])/25)*5) + AAMC_Raw_Data_for_FY22[[#This Row],[25th]]","v":397877.4},{"$f":"(((AAMC_Raw_Data_for_FY22[[#This Row],[Median]]-AAMC_Raw_Data_for_FY22[[#This Row],[25th]])/25)*10) + AAMC_Raw_Data_for_FY22[[#This Row],[25th]]","v":406325.8},{"$f":"(((AAMC_Raw_Data_for_FY22[[#This Row],[Median]]-AAMC_Raw_Data_for_FY22[[#This Row],[25th]])/25)*15) + AAMC_Raw_Data_for_FY22[[#This Row],[25th]]","v":414774.2},{"$f":"(((AAMC_Raw_Data_for_FY22[[#This Row],[Median]]-AAMC_Raw_Data_for_FY22[[#This Row],[25th]])/25)*20) + AAMC_Raw_Data_for_FY22[[#This Row],[25th]]","v":423222.6},431671,{"$f":"(((AAMC_Raw_Data_for_FY22[[#This Row],[75th]]-AAMC_Raw_Data_for_FY22[[#This Row],[Median]])/25)*5) + AAMC_Raw_Data_for_FY22[[#This Row],[Median]]","v":438154.2},{"$f":"(((AAMC_Raw_Data_for_FY22[[#This Row],[75th]]-AAMC_Raw_Data_for_FY22[[#This Row],[Median]])/25)*10) + AAMC_Raw_Data_for_FY22[[#This Row],[Median]]","v":444637.4},{"$f":"(((AAMC_Raw_Data_for_FY22[[#This Row],[75th]]-AAMC_Raw_Data_for_FY22[[#This Row],[Median]])/25)*15) + AAMC_Raw_Data_for_FY22[[#This Row],[Median]]","v":451120.6},{"$f":"(((AAMC_Raw_Data_for_FY22[[#This Row],[75th]]-AAMC_Raw_Data_for_FY22[[#This Row],[Median]])/25)*20) + AAMC_Raw_Data_for_FY22[[#This Row],[Median]]","v":457603.8},464087,{"$f":"(((AAMC_Raw_Data_for_FY22[[#This Row],[75th]]-AAMC_Raw_Data_for_FY22[[#This Row],[Median]])/25)*30) + AAMC_Raw_Data_for_FY22[[#This Row],[Median]]","v":470570.2},{"$f":"(((AAMC_Raw_Data_for_FY22[[#This Row],[75th]]-AAMC_Raw_Data_for_FY22[[#This Row],[Median]])/25)*35) + AAMC_Raw_Data_for_FY22[[#This Row],[Median]]","v":477053.4},{"$f":"(((AAMC_Raw_Data_for_FY22[[#This Row],[75th]]-AAMC_Raw_Data_for_FY22[[#This Row],[Median]])/25)*40) + AAMC_Raw_Data_for_FY22[[#This Row],[Median]]","v":483536.6}]
[{"$f":"AAMC_Raw_Data_for_FY22[[#This Row],[Source]]&AAMC_Raw_Data_for_FY22[[#This Row],[Type]]&AAMC_Raw_Data_for_FY22[[#This Row],[School Subset]]&AAMC_Raw_Data_for_FY22[[#This Row],[Rank]]&AAMC_Raw_Data_for_FY22[[#This Row],[Degree]]&AAMC_Raw_Data_for_FY22[[#This Row],[Department / Specialty]]&\"L\"","v":"AAMCAcademicPrivateChairMDNephrology-Med.L"},"Nephrology-Med.",1,"AAMC","Academic","Private","Chair","MD","2021-2022",null,{"$f":"(((AAMC_Raw_Data_for_FY22[[#This Row],[Median]]-AAMC_Raw_Data_for_FY22[[#This Row],[25th]])/25)*5) + AAMC_Raw_Data_for_FY22[[#This Row],[25th]]","v":0},{"$f":"(((AAMC_Raw_Data_for_FY22[[#This Row],[Median]]-AAMC_Raw_Data_for_FY22[[#This Row],[25th]])/25)*10) + AAMC_Raw_Data_for_FY22[[#This Row],[25th]]","v":0},{"$f":"(((AAMC_Raw_Data_for_FY22[[#This Row],[Median]]-AAMC_Raw_Data_for_FY22[[#This Row],[25th]])/25)*15) + AAMC_Raw_Data_for_FY22[[#This Row],[25th]]","v":0},{"$f":"(((AAMC_Raw_Data_for_FY22[[#This Row],[Median]]-AAMC_Raw_Data_for_FY22[[#This Row],[25th]])/25)*20) + AAMC_Raw_Data_for_FY22[[#This Row],[25th]]","v":0},null,{"$f":"(((AAMC_Raw_Data_for_FY22[[#This Row],[75th]]-AAMC_Raw_Data_for_FY22[[#This Row],[Median]])/25)*5) + AAMC_Raw_Data_for_FY22[[#This Row],[Median]]","v":0},{"$f":"(((AAMC_Raw_Data_for_FY22[[#This Row],[75th]]-AAMC_Raw_Data_for_FY22[[#This Row],[Median]])/25)*10) + AAMC_Raw_Data_for_FY22[[#This Row],[Median]]","v":0},{"$f":"(((AAMC_Raw_Data_for_FY22[[#This Row],[75th]]-AAMC_Raw_Data_for_FY22[[#This Row],[Median]])/25)*15) + AAMC_Raw_Data_for_FY22[[#This Row],[Median]]","v":0},{"$f":"(((AAMC_Raw_Data_for_FY22[[#This Row],[75th]]-AAMC_Raw_Data_for_FY22[[#This Row],[Median]])/25)*20) + AAMC_Raw_Data_for_FY22[[#This Row],[Median]]","v":0},null,{"$f":"(((AAMC_Raw_Data_for_FY22[[#This Row],[75th]]-AAMC_Raw_Data_for_FY22[[#This Row],[Median]])/25)*30) + AAMC_Raw_Data_for_FY22[[#This Row],[Median]]","v":0},{"$f":"(((AAMC_Raw_Data_for_FY22[[#This Row],[75th]]-AAMC_Raw_Data_for_FY22[[#This Row],[Median]])/25)*35) + AAMC_Raw_Data_for_FY22[[#This Row],[Median]]","v":0},{"$f":"(((AAMC_Raw_Data_for_FY22[[#This Row],[75th]]-AAMC_Raw_Data_for_FY22[[#This Row],[Median]])/25)*40) + AAMC_Raw_Data_for_FY22[[#This Row],[Median]]","v":0}]
[{"$f":"AAMC_Raw_Data_for_FY22[[#This Row],[Source]]&AAMC_Raw_Data_for_FY22[[#This Row],[Type]]&AAMC_Raw_Data_for_FY22[[#This Row],[School Subset]]&AAMC_Raw_Data_for_FY22[[#This Row],[Rank]]&AAMC_Raw_Data_for_FY22[[#This Row],[Degree]]&AAMC_Raw_Data_for_FY22[[#This Row],[Department / Specialty]]&\"L\"","v":"AAMCAcademicPrivateInstructorMDPalliative Care-Med.L"},"Palliative Care-Med.",5,"AAMC","Academic","Private","Instructor","MD","2021-2022",null,{"$f":"(((AAMC_Raw_Data_for_FY22[[#This Row],[Median]]-AAMC_Raw_Data_for_FY22[[#This Row],[25th]])/25)*5) + AAMC_Raw_Data_for_FY22[[#This Row],[25th]]","v":0},{"$f":"(((AAMC_Raw_Data_for_FY22[[#This Row],[Median]]-AAMC_Raw_Data_for_FY22[[#This Row],[25th]])/25)*10) + AAMC_Raw_Data_for_FY22[[#This Row],[25th]]","v":0},{"$f":"(((AAMC_Raw_Data_for_FY22[[#This Row],[Median]]-AAMC_Raw_Data_for_FY22[[#This Row],[25th]])/25)*15) + AAMC_Raw_Data_for_FY22[[#This Row],[25th]]","v":0},{"$f":"(((AAMC_Raw_Data_for_FY22[[#This Row],[Median]]-AAMC_Raw_Data_for_FY22[[#This Row],[25th]])/25)*20) + AAMC_Raw_Data_for_FY22[[#This Row],[25th]]","v":0},null,{"$f":"(((AAMC_Raw_Data_for_FY22[[#This Row],[75th]]-AAMC_Raw_Data_for_FY22[[#This Row],[Median]])/25)*5) + AAMC_Raw_Data_for_FY22[[#This Row],[Median]]","v":0},{"$f":"(((AAMC_Raw_Data_for_FY22[[#This Row],[75th]]-AAMC_Raw_Data_for_FY22[[#This Row],[Median]])/25)*10) + AAMC_Raw_Data_for_FY22[[#This Row],[Median]]","v":0},{"$f":"(((AAMC_Raw_Data_for_FY22[[#This Row],[75th]]-AAMC_Raw_Data_for_FY22[[#This Row],[Median]])/25)*15) + AAMC_Raw_Data_for_FY22[[#This Row],[Median]]","v":0},{"$f":"(((AAMC_Raw_Data_for_FY22[[#This Row],[75th]]-AAMC_Raw_Data_for_FY22[[#This Row],[Median]])/25)*20) + AAMC_Raw_Data_for_FY22[[#This Row],[Median]]","v":0},null,{"$f":"(((AAMC_Raw_Data_for_FY22[[#This Row],[75th]]-AAMC_Raw_Data_for_FY22[[#This Row],[Median]])/25)*30) + AAMC_Raw_Data_for_FY22[[#This Row],[Median]]","v":0},{"$f":"(((AAMC_Raw_Data_for_FY22[[#This Row],[75th]]-AAMC_Raw_Data_for_FY22[[#This Row],[Median]])/25)*35) + AAMC_Raw_Data_for_FY22[[#This Row],[Median]]","v":0},{"$f":"(((AAMC_Raw_Data_for_FY22[[#This Row],[75th]]-AAMC_Raw_Data_for_FY22[[#This Row],[Median]])/25)*40) + AAMC_Raw_Data_for_FY22[[#This Row],[Median]]","v":0}]
[{"$f":"AAMC_Raw_Data_for_FY22[[#This Row],[Source]]&AAMC_Raw_Data_for_FY22[[#This Row],[Type]]&AAMC_Raw_Data_for_FY22[[#This Row],[School Subset]]&AAMC_Raw_Data_for_FY22[[#This Row],[Rank]]&AAMC_Raw_Data_for_FY22[[#This Row],[Degree]]&AAMC_Raw_Data_for_FY22[[#This Row],[Department / Specialty]]&\"L\"","v":"AAMCAcademicPrivateAssistantMDPalliative Care-Med.L"},"Palliative Care-Med.",4,"AAMC","Academic","Private","Assistant","MD","2021-2022",210126,{"$f":"(((AAMC_Raw_Data_for_FY22[[#This Row],[Median]]-AAMC_Raw_Data_for_FY22[[#This Row],[25th]])/25)*5) + AAMC_Raw_Data_for_FY22[[#This Row],[25th]]","v":213490.8},{"$f":"(((AAMC_Raw_Data_for_FY22[[#This Row],[Median]]-AAMC_Raw_Data_for_FY22[[#This Row],[25th]])/25)*10) + AAMC_Raw_Data_for_FY22[[#This Row],[25th]]","v":216855.6},{"$f":"(((AAMC_Raw_Data_for_FY22[[#This Row],[Median]]-AAMC_Raw_Data_for_FY22[[#This Row],[25th]])/25)*15) + AAMC_Raw_Data_for_FY22[[#This Row],[25th]]","v":220220.4},{"$f":"(((AAMC_Raw_Data_for_FY22[[#This Row],[Median]]-AAMC_Raw_Data_for_FY22[[#This Row],[25th]])/25)*20) + AAMC_Raw_Data_for_FY22[[#This Row],[25th]]","v":223585.2},226950,{"$f":"(((AAMC_Raw_Data_for_FY22[[#This Row],[75th]]-AAMC_Raw_Data_for_FY22[[#This Row],[Median]])/25)*5) + AAMC_Raw_Data_for_FY22[[#This Row],[Median]]","v":231237.6},{"$f":"(((AAMC_Raw_Data_for_FY22[[#This Row],[75th]]-AAMC_Raw_Data_for_FY22[[#This Row],[Median]])/25)*10) + AAMC_Raw_Data_for_FY22[[#This Row],[Median]]","v":235525.2},{"$f":"(((AAMC_Raw_Data_for_FY22[[#This Row],[75th]]-AAMC_Raw_Data_for_FY22[[#This Row],[Median]])/25)*15) + AAMC_Raw_Data_for_FY22[[#This Row],[Median]]","v":239812.8},{"$f":"(((AAMC_Raw_Data_for_FY22[[#This Row],[75th]]-AAMC_Raw_Data_for_FY22[[#This Row],[Median]])/25)*20) + AAMC_Raw_Data_for_FY22[[#This Row],[Median]]","v":244100.4},248388,{"$f":"(((AAMC_Raw_Data_for_FY22[[#This Row],[75th]]-AAMC_Raw_Data_for_FY22[[#This Row],[Median]])/25)*30) + AAMC_Raw_Data_for_FY22[[#This Row],[Median]]","v":252675.6},{"$f":"(((AAMC_Raw_Data_for_FY22[[#This Row],[75th]]-AAMC_Raw_Data_for_FY22[[#This Row],[Median]])/25)*35) + AAMC_Raw_Data_for_FY22[[#This Row],[Median]]","v":256963.20000000001},{"$f":"(((AAMC_Raw_Data_for_FY22[[#This Row],[75th]]-AAMC_Raw_Data_for_FY22[[#This Row],[Median]])/25)*40) + AAMC_Raw_Data_for_FY22[[#This Row],[Median]]","v":261250.8}]
[{"$f":"AAMC_Raw_Data_for_FY22[[#This Row],[Source]]&AAMC_Raw_Data_for_FY22[[#This Row],[Type]]&AAMC_Raw_Data_for_FY22[[#This Row],[School Subset]]&AAMC_Raw_Data_for_FY22[[#This Row],[Rank]]&AAMC_Raw_Data_for_FY22[[#This Row],[Degree]]&AAMC_Raw_Data_for_FY22[[#This Row],[Department / Specialty]]&\"L\"","v":"AAMCAcademicPrivateAssociateMDPalliative Care-Med.L"},"Palliative Care-Med.",3,"AAMC","Academic","Private","Associate","MD","2021-2022",244775,{"$f":"(((AAMC_Raw_Data_for_FY22[[#This Row],[Median]]-AAMC_Raw_Data_for_FY22[[#This Row],[25th]])/25)*5) + AAMC_Raw_Data_for_FY22[[#This Row],[25th]]","v":247909.4},{"$f":"(((AAMC_Raw_Data_for_FY22[[#This Row],[Median]]-AAMC_Raw_Data_for_FY22[[#This Row],[25th]])/25)*10) + AAMC_Raw_Data_for_FY22[[#This Row],[25th]]","v":251043.8},{"$f":"(((AAMC_Raw_Data_for_FY22[[#This Row],[Median]]-AAMC_Raw_Data_for_FY22[[#This Row],[25th]])/25)*15) + AAMC_Raw_Data_for_FY22[[#This Row],[25th]]","v":254178.2},{"$f":"(((AAMC_Raw_Data_for_FY22[[#This Row],[Median]]-AAMC_Raw_Data_for_FY22[[#This Row],[25th]])/25)*20) + AAMC_Raw_Data_for_FY22[[#This Row],[25th]]","v":257312.6},260447,{"$f":"(((AAMC_Raw_Data_for_FY22[[#This Row],[75th]]-AAMC_Raw_Data_for_FY22[[#This Row],[Median]])/25)*5) + AAMC_Raw_Data_for_FY22[[#This Row],[Median]]","v":271249},{"$f":"(((AAMC_Raw_Data_for_FY22[[#This Row],[75th]]-AAMC_Raw_Data_for_FY22[[#This Row],[Median]])/25)*10) + AAMC_Raw_Data_for_FY22[[#This Row],[Median]]","v":282051},{"$f":"(((AAMC_Raw_Data_for_FY22[[#This Row],[75th]]-AAMC_Raw_Data_for_FY22[[#This Row],[Median]])/25)*15) + AAMC_Raw_Data_for_FY22[[#This Row],[Median]]","v":292853},{"$f":"(((AAMC_Raw_Data_for_FY22[[#This Row],[75th]]-AAMC_Raw_Data_for_FY22[[#This Row],[Median]])/25)*20) + AAMC_Raw_Data_for_FY22[[#This Row],[Median]]","v":303655},314457,{"$f":"(((AAMC_Raw_Data_for_FY22[[#This Row],[75th]]-AAMC_Raw_Data_for_FY22[[#This Row],[Median]])/25)*30) + AAMC_Raw_Data_for_FY22[[#This Row],[Median]]","v":325259},{"$f":"(((AAMC_Raw_Data_for_FY22[[#This Row],[75th]]-AAMC_Raw_Data_for_FY22[[#This Row],[Median]])/25)*35) + AAMC_Raw_Data_for_FY22[[#This Row],[Median]]","v":336061},{"$f":"(((AAMC_Raw_Data_for_FY22[[#This Row],[75th]]-AAMC_Raw_Data_for_FY22[[#This Row],[Median]])/25)*40) + AAMC_Raw_Data_for_FY22[[#This Row],[Median]]","v":346863}]
[{"$f":"AAMC_Raw_Data_for_FY22[[#This Row],[Source]]&AAMC_Raw_Data_for_FY22[[#This Row],[Type]]&AAMC_Raw_Data_for_FY22[[#This Row],[School Subset]]&AAMC_Raw_Data_for_FY22[[#This Row],[Rank]]&AAMC_Raw_Data_for_FY22[[#This Row],[Degree]]&AAMC_Raw_Data_for_FY22[[#This Row],[Department / Specialty]]&\"L\"","v":"AAMCAcademicPrivateProfessorMDPalliative Care-Med.L"},"Palliative Care-Med.",2,"AAMC","Academic","Private","Professor","MD","2021-2022",null,{"$f":"(((AAMC_Raw_Data_for_FY22[[#This Row],[Median]]-AAMC_Raw_Data_for_FY22[[#This Row],[25th]])/25)*5) + AAMC_Raw_Data_for_FY22[[#This Row],[25th]]","v":0},{"$f":"(((AAMC_Raw_Data_for_FY22[[#This Row],[Median]]-AAMC_Raw_Data_for_FY22[[#This Row],[25th]])/25)*10) + AAMC_Raw_Data_for_FY22[[#This Row],[25th]]","v":0},{"$f":"(((AAMC_Raw_Data_for_FY22[[#This Row],[Median]]-AAMC_Raw_Data_for_FY22[[#This Row],[25th]])/25)*15) + AAMC_Raw_Data_for_FY22[[#This Row],[25th]]","v":0},{"$f":"(((AAMC_Raw_Data_for_FY22[[#This Row],[Median]]-AAMC_Raw_Data_for_FY22[[#This Row],[25th]])/25)*20) + AAMC_Raw_Data_for_FY22[[#This Row],[25th]]","v":0},null,{"$f":"(((AAMC_Raw_Data_for_FY22[[#This Row],[75th]]-AAMC_Raw_Data_for_FY22[[#This Row],[Median]])/25)*5) + AAMC_Raw_Data_for_FY22[[#This Row],[Median]]","v":0},{"$f":"(((AAMC_Raw_Data_for_FY22[[#This Row],[75th]]-AAMC_Raw_Data_for_FY22[[#This Row],[Median]])/25)*10) + AAMC_Raw_Data_for_FY22[[#This Row],[Median]]","v":0},{"$f":"(((AAMC_Raw_Data_for_FY22[[#This Row],[75th]]-AAMC_Raw_Data_for_FY22[[#This Row],[Median]])/25)*15) + AAMC_Raw_Data_for_FY22[[#This Row],[Median]]","v":0},{"$f":"(((AAMC_Raw_Data_for_FY22[[#This Row],[75th]]-AAMC_Raw_Data_for_FY22[[#This Row],[Median]])/25)*20) + AAMC_Raw_Data_for_FY22[[#This Row],[Median]]","v":0},null,{"$f":"(((AAMC_Raw_Data_for_FY22[[#This Row],[75th]]-AAMC_Raw_Data_for_FY22[[#This Row],[Median]])/25)*30) + AAMC_Raw_Data_for_FY22[[#This Row],[Median]]","v":0},{"$f":"(((AAMC_Raw_Data_for_FY22[[#This Row],[75th]]-AAMC_Raw_Data_for_FY22[[#This Row],[Median]])/25)*35) + AAMC_Raw_Data_for_FY22[[#This Row],[Median]]","v":0},{"$f":"(((AAMC_Raw_Data_for_FY22[[#This Row],[75th]]-AAMC_Raw_Data_for_FY22[[#This Row],[Median]])/25)*40) + AAMC_Raw_Data_for_FY22[[#This Row],[Median]]","v":0}]
[{"$f":"AAMC_Raw_Data_for_FY22[[#This Row],[Source]]&AAMC_Raw_Data_for_FY22[[#This Row],[Type]]&AAMC_Raw_Data_for_FY22[[#This Row],[School Subset]]&AAMC_Raw_Data_for_FY22[[#This Row],[Rank]]&AAMC_Raw_Data_for_FY22[[#This Row],[Degree]]&AAMC_Raw_Data_for_FY22[[#This Row],[Department / Specialty]]&\"L\"","v":"AAMCAcademicPrivateChiefMDPalliative Care-Med.L"},"Palliative Care-Med.",6,"AAMC","Academic","Private","Chief","MD","2021-2022",309727,{"$f":"(((AAMC_Raw_Data_for_FY22[[#This Row],[Median]]-AAMC_Raw_Data_for_FY22[[#This Row],[25th]])/25)*5) + AAMC_Raw_Data_for_FY22[[#This Row],[25th]]","v":315622.8},{"$f":"(((AAMC_Raw_Data_for_FY22[[#This Row],[Median]]-AAMC_Raw_Data_for_FY22[[#This Row],[25th]])/25)*10) + AAMC_Raw_Data_for_FY22[[#This Row],[25th]]","v":321518.59999999998},{"$f":"(((AAMC_Raw_Data_for_FY22[[#This Row],[Median]]-AAMC_Raw_Data_for_FY22[[#This Row],[25th]])/25)*15) + AAMC_Raw_Data_for_FY22[[#This Row],[25th]]","v":327414.40000000002},{"$f":"(((AAMC_Raw_Data_for_FY22[[#This Row],[Median]]-AAMC_Raw_Data_for_FY22[[#This Row],[25th]])/25)*20) + AAMC_Raw_Data_for_FY22[[#This Row],[25th]]","v":333310.2},339206,{"$f":"(((AAMC_Raw_Data_for_FY22[[#This Row],[75th]]-AAMC_Raw_Data_for_FY22[[#This Row],[Median]])/25)*5) + AAMC_Raw_Data_for_FY22[[#This Row],[Median]]","v":347439.6},{"$f":"(((AAMC_Raw_Data_for_FY22[[#This Row],[75th]]-AAMC_Raw_Data_for_FY22[[#This Row],[Median]])/25)*10) + AAMC_Raw_Data_for_FY22[[#This Row],[Median]]","v":355673.2},{"$f":"(((AAMC_Raw_Data_for_FY22[[#This Row],[75th]]-AAMC_Raw_Data_for_FY22[[#This Row],[Median]])/25)*15) + AAMC_Raw_Data_for_FY22[[#This Row],[Median]]","v":363906.8},{"$f":"(((AAMC_Raw_Data_for_FY22[[#This Row],[75th]]-AAMC_Raw_Data_for_FY22[[#This Row],[Median]])/25)*20) + AAMC_Raw_Data_for_FY22[[#This Row],[Median]]","v":372140.4},380374,{"$f":"(((AAMC_Raw_Data_for_FY22[[#This Row],[75th]]-AAMC_Raw_Data_for_FY22[[#This Row],[Median]])/25)*30) + AAMC_Raw_Data_for_FY22[[#This Row],[Median]]","v":388607.6},{"$f":"(((AAMC_Raw_Data_for_FY22[[#This Row],[75th]]-AAMC_Raw_Data_for_FY22[[#This Row],[Median]])/25)*35) + AAMC_Raw_Data_for_FY22[[#This Row],[Median]]","v":396841.2},{"$f":"(((AAMC_Raw_Data_for_FY22[[#This Row],[75th]]-AAMC_Raw_Data_for_FY22[[#This Row],[Median]])/25)*40) + AAMC_Raw_Data_for_FY22[[#This Row],[Median]]","v":405074.8}]
[{"$f":"AAMC_Raw_Data_for_FY22[[#This Row],[Source]]&AAMC_Raw_Data_for_FY22[[#This Row],[Type]]&AAMC_Raw_Data_for_FY22[[#This Row],[School Subset]]&AAMC_Raw_Data_for_FY22[[#This Row],[Rank]]&AAMC_Raw_Data_for_FY22[[#This Row],[Degree]]&AAMC_Raw_Data_for_FY22[[#This Row],[Department / Specialty]]&\"L\"","v":"AAMCAcademicPrivateInstructorMDPulmonary-Med.L"},"Pulmonary-Med.",5,"AAMC","Academic","Private","Instructor","MD","2021-2022",167523,{"$f":"(((AAMC_Raw_Data_for_FY22[[#This Row],[Median]]-AAMC_Raw_Data_for_FY22[[#This Row],[25th]])/25)*5) + AAMC_Raw_Data_for_FY22[[#This Row],[25th]]","v":176784.4},{"$f":"(((AAMC_Raw_Data_for_FY22[[#This Row],[Median]]-AAMC_Raw_Data_for_FY22[[#This Row],[25th]])/25)*10) + AAMC_Raw_Data_for_FY22[[#This Row],[25th]]","v":186045.8},{"$f":"(((AAMC_Raw_Data_for_FY22[[#This Row],[Median]]-AAMC_Raw_Data_for_FY22[[#This Row],[25th]])/25)*15) + AAMC_Raw_Data_for_FY22[[#This Row],[25th]]","v":195307.2},{"$f":"(((AAMC_Raw_Data_for_FY22[[#This Row],[Median]]-AAMC_Raw_Data_for_FY22[[#This Row],[25th]])/25)*20) + AAMC_Raw_Data_for_FY22[[#This Row],[25th]]","v":204568.6},213830,{"$f":"(((AAMC_Raw_Data_for_FY22[[#This Row],[75th]]-AAMC_Raw_Data_for_FY22[[#This Row],[Median]])/25)*5) + AAMC_Raw_Data_for_FY22[[#This Row],[Median]]","v":223687.6},{"$f":"(((AAMC_Raw_Data_for_FY22[[#This Row],[75th]]-AAMC_Raw_Data_for_FY22[[#This Row],[Median]])/25)*10) + AAMC_Raw_Data_for_FY22[[#This Row],[Median]]","v":233545.2},{"$f":"(((AAMC_Raw_Data_for_FY22[[#This Row],[75th]]-AAMC_Raw_Data_for_FY22[[#This Row],[Median]])/25)*15) + AAMC_Raw_Data_for_FY22[[#This Row],[Median]]","v":243402.8},{"$f":"(((AAMC_Raw_Data_for_FY22[[#This Row],[75th]]-AAMC_Raw_Data_for_FY22[[#This Row],[Median]])/25)*20) + AAMC_Raw_Data_for_FY22[[#This Row],[Median]]","v":253260.4},263118,{"$f":"(((AAMC_Raw_Data_for_FY22[[#This Row],[75th]]-AAMC_Raw_Data_for_FY22[[#This Row],[Median]])/25)*30) + AAMC_Raw_Data_for_FY22[[#This Row],[Median]]","v":272975.59999999998},{"$f":"(((AAMC_Raw_Data_for_FY22[[#This Row],[75th]]-AAMC_Raw_Data_for_FY22[[#This Row],[Median]])/25)*35) + AAMC_Raw_Data_for_FY22[[#This Row],[Median]]","v":282833.2},{"$f":"(((AAMC_Raw_Data_for_FY22[[#This Row],[75th]]-AAMC_Raw_Data_for_FY22[[#This Row],[Median]])/25)*40) + AAMC_Raw_Data_for_FY22[[#This Row],[Median]]","v":292690.8}]
[{"$f":"AAMC_Raw_Data_for_FY22[[#This Row],[Source]]&AAMC_Raw_Data_for_FY22[[#This Row],[Type]]&AAMC_Raw_Data_for_FY22[[#This Row],[School Subset]]&AAMC_Raw_Data_for_FY22[[#This Row],[Rank]]&AAMC_Raw_Data_for_FY22[[#This Row],[Degree]]&AAMC_Raw_Data_for_FY22[[#This Row],[Department / Specialty]]&\"L\"","v":"AAMCAcademicPrivateAssistantMDPulmonary-Med.L"},"Pulmonary-Med.",4,"AAMC","Academic","Private","Assistant","MD","2021-2022",220000,{"$f":"(((AAMC_Raw_Data_for_FY22[[#This Row],[Median]]-AAMC_Raw_Data_for_FY22[[#This Row],[25th]])/25)*5) + AAMC_Raw_Data_for_FY22[[#This Row],[25th]]","v":229980},{"$f":"(((AAMC_Raw_Data_for_FY22[[#This Row],[Median]]-AAMC_Raw_Data_for_FY22[[#This Row],[25th]])/25)*10) + AAMC_Raw_Data_for_FY22[[#This Row],[25th]]","v":239960},{"$f":"(((AAMC_Raw_Data_for_FY22[[#This Row],[Median]]-AAMC_Raw_Data_for_FY22[[#This Row],[25th]])/25)*15) + AAMC_Raw_Data_for_FY22[[#This Row],[25th]]","v":249940},{"$f":"(((AAMC_Raw_Data_for_FY22[[#This Row],[Median]]-AAMC_Raw_Data_for_FY22[[#This Row],[25th]])/25)*20) + AAMC_Raw_Data_for_FY22[[#This Row],[25th]]","v":259920},269900,{"$f":"(((AAMC_Raw_Data_for_FY22[[#This Row],[75th]]-AAMC_Raw_Data_for_FY22[[#This Row],[Median]])/25)*5) + AAMC_Raw_Data_for_FY22[[#This Row],[Median]]","v":281845},{"$f":"(((AAMC_Raw_Data_for_FY22[[#This Row],[75th]]-AAMC_Raw_Data_for_FY22[[#This Row],[Median]])/25)*10) + AAMC_Raw_Data_for_FY22[[#This Row],[Median]]","v":293790},{"$f":"(((AAMC_Raw_Data_for_FY22[[#This Row],[75th]]-AAMC_Raw_Data_for_FY22[[#This Row],[Median]])/25)*15) + AAMC_Raw_Data_for_FY22[[#This Row],[Median]]","v":305735},{"$f":"(((AAMC_Raw_Data_for_FY22[[#This Row],[75th]]-AAMC_Raw_Data_for_FY22[[#This Row],[Median]])/25)*20) + AAMC_Raw_Data_for_FY22[[#This Row],[Median]]","v":317680},329625,{"$f":"(((AAMC_Raw_Data_for_FY22[[#This Row],[75th]]-AAMC_Raw_Data_for_FY22[[#This Row],[Median]])/25)*30) + AAMC_Raw_Data_for_FY22[[#This Row],[Median]]","v":341570},{"$f":"(((AAMC_Raw_Data_for_FY22[[#This Row],[75th]]-AAMC_Raw_Data_for_FY22[[#This Row],[Median]])/25)*35) + AAMC_Raw_Data_for_FY22[[#This Row],[Median]]","v":353515},{"$f":"(((AAMC_Raw_Data_for_FY22[[#This Row],[75th]]-AAMC_Raw_Data_for_FY22[[#This Row],[Median]])/25)*40) + AAMC_Raw_Data_for_FY22[[#This Row],[Median]]","v":365460}]
[{"$f":"AAMC_Raw_Data_for_FY22[[#This Row],[Source]]&AAMC_Raw_Data_for_FY22[[#This Row],[Type]]&AAMC_Raw_Data_for_FY22[[#This Row],[School Subset]]&AAMC_Raw_Data_for_FY22[[#This Row],[Rank]]&AAMC_Raw_Data_for_FY22[[#This Row],[Degree]]&AAMC_Raw_Data_for_FY22[[#This Row],[Department / Specialty]]&\"L\"","v":"AAMCAcademicPrivateAssociateMDPulmonary-Med.L"},"Pulmonary-Med.",3,"AAMC","Academic","Private","Associate","MD","2021-2022",249022,{"$f":"(((AAMC_Raw_Data_for_FY22[[#This Row],[Median]]-AAMC_Raw_Data_for_FY22[[#This Row],[25th]])/25)*5) + AAMC_Raw_Data_for_FY22[[#This Row],[25th]]","v":259114.8},{"$f":"(((AAMC_Raw_Data_for_FY22[[#This Row],[Median]]-AAMC_Raw_Data_for_FY22[[#This Row],[25th]])/25)*10) + AAMC_Raw_Data_for_FY22[[#This Row],[25th]]","v":269207.59999999998},{"$f":"(((AAMC_Raw_Data_for_FY22[[#This Row],[Median]]-AAMC_Raw_Data_for_FY22[[#This Row],[25th]])/25)*15) + AAMC_Raw_Data_for_FY22[[#This Row],[25th]]","v":279300.40000000002},{"$f":"(((AAMC_Raw_Data_for_FY22[[#This Row],[Median]]-AAMC_Raw_Data_for_FY22[[#This Row],[25th]])/25)*20) + AAMC_Raw_Data_for_FY22[[#This Row],[25th]]","v":289393.2},299486,{"$f":"(((AAMC_Raw_Data_for_FY22[[#This Row],[75th]]-AAMC_Raw_Data_for_FY22[[#This Row],[Median]])/25)*5) + AAMC_Raw_Data_for_FY22[[#This Row],[Median]]","v":313053.2},{"$f":"(((AAMC_Raw_Data_for_FY22[[#This Row],[75th]]-AAMC_Raw_Data_for_FY22[[#This Row],[Median]])/25)*10) + AAMC_Raw_Data_for_FY22[[#This Row],[Median]]","v":326620.40000000002},{"$f":"(((AAMC_Raw_Data_for_FY22[[#This Row],[75th]]-AAMC_Raw_Data_for_FY22[[#This Row],[Median]])/25)*15) + AAMC_Raw_Data_for_FY22[[#This Row],[Median]]","v":340187.6},{"$f":"(((AAMC_Raw_Data_for_FY22[[#This Row],[75th]]-AAMC_Raw_Data_for_FY22[[#This Row],[Median]])/25)*20) + AAMC_Raw_Data_for_FY22[[#This Row],[Median]]","v":353754.8},367322,{"$f":"(((AAMC_Raw_Data_for_FY22[[#This Row],[75th]]-AAMC_Raw_Data_for_FY22[[#This Row],[Median]])/25)*30) + AAMC_Raw_Data_for_FY22[[#This Row],[Median]]","v":380889.2},{"$f":"(((AAMC_Raw_Data_for_FY22[[#This Row],[75th]]-AAMC_Raw_Data_for_FY22[[#This Row],[Median]])/25)*35) + AAMC_Raw_Data_for_FY22[[#This Row],[Median]]","v":394456.4},{"$f":"(((AAMC_Raw_Data_for_FY22[[#This Row],[75th]]-AAMC_Raw_Data_for_FY22[[#This Row],[Median]])/25)*40) + AAMC_Raw_Data_for_FY22[[#This Row],[Median]]","v":408023.6}]
[{"$f":"AAMC_Raw_Data_for_FY22[[#This Row],[Source]]&AAMC_Raw_Data_for_FY22[[#This Row],[Type]]&AAMC_Raw_Data_for_FY22[[#This Row],[School Subset]]&AAMC_Raw_Data_for_FY22[[#This Row],[Rank]]&AAMC_Raw_Data_for_FY22[[#This Row],[Degree]]&AAMC_Raw_Data_for_FY22[[#This Row],[Department / Specialty]]&\"L\"","v":"AAMCAcademicPrivateProfessorMDPulmonary-Med.L"},"Pulmonary-Med.",2,"AAMC","Academic","Private","Professor","MD","2021-2022",280391,{"$f":"(((AAMC_Raw_Data_for_FY22[[#This Row],[Median]]-AAMC_Raw_Data_for_FY22[[#This Row],[25th]])/25)*5) + AAMC_Raw_Data_for_FY22[[#This Row],[25th]]","v":290670.2},{"$f":"(((AAMC_Raw_Data_for_FY22[[#This Row],[Median]]-AAMC_Raw_Data_for_FY22[[#This Row],[25th]])/25)*10) + AAMC_Raw_Data_for_FY22[[#This Row],[25th]]","v":300949.40000000002},{"$f":"(((AAMC_Raw_Data_for_FY22[[#This Row],[Median]]-AAMC_Raw_Data_for_FY22[[#This Row],[25th]])/25)*15) + AAMC_Raw_Data_for_FY22[[#This Row],[25th]]","v":311228.59999999998},{"$f":"(((AAMC_Raw_Data_for_FY22[[#This Row],[Median]]-AAMC_Raw_Data_for_FY22[[#This Row],[25th]])/25)*20) + AAMC_Raw_Data_for_FY22[[#This Row],[25th]]","v":321507.8},331787,{"$f":"(((AAMC_Raw_Data_for_FY22[[#This Row],[75th]]-AAMC_Raw_Data_for_FY22[[#This Row],[Median]])/25)*5) + AAMC_Raw_Data_for_FY22[[#This Row],[Median]]","v":346392.4},{"$f":"(((AAMC_Raw_Data_for_FY22[[#This Row],[75th]]-AAMC_Raw_Data_for_FY22[[#This Row],[Median]])/25)*10) + AAMC_Raw_Data_for_FY22[[#This Row],[Median]]","v":360997.8},{"$f":"(((AAMC_Raw_Data_for_FY22[[#This Row],[75th]]-AAMC_Raw_Data_for_FY22[[#This Row],[Median]])/25)*15) + AAMC_Raw_Data_for_FY22[[#This Row],[Median]]","v":375603.20000000001},{"$f":"(((AAMC_Raw_Data_for_FY22[[#This Row],[75th]]-AAMC_Raw_Data_for_FY22[[#This Row],[Median]])/25)*20) + AAMC_Raw_Data_for_FY22[[#This Row],[Median]]","v":390208.6},404814,{"$f":"(((AAMC_Raw_Data_for_FY22[[#This Row],[75th]]-AAMC_Raw_Data_for_FY22[[#This Row],[Median]])/25)*30) + AAMC_Raw_Data_for_FY22[[#This Row],[Median]]","v":419419.4},{"$f":"(((AAMC_Raw_Data_for_FY22[[#This Row],[75th]]-AAMC_Raw_Data_for_FY22[[#This Row],[Median]])/25)*35) + AAMC_Raw_Data_for_FY22[[#This Row],[Median]]","v":434024.8},{"$f":"(((AAMC_Raw_Data_for_FY22[[#This Row],[75th]]-AAMC_Raw_Data_for_FY22[[#This Row],[Median]])/25)*40) + AAMC_Raw_Data_for_FY22[[#This Row],[Median]]","v":448630.2}]
[{"$f":"AAMC_Raw_Data_for_FY22[[#This Row],[Source]]&AAMC_Raw_Data_for_FY22[[#This Row],[Type]]&AAMC_Raw_Data_for_FY22[[#This Row],[School Subset]]&AAMC_Raw_Data_for_FY22[[#This Row],[Rank]]&AAMC_Raw_Data_for_FY22[[#This Row],[Degree]]&AAMC_Raw_Data_for_FY22[[#This Row],[Department / Specialty]]&\"L\"","v":"AAMCAcademicPrivateChiefMDPulmonary-Med.L"},"Pulmonary-Med.",6,"AAMC","Academic","Private","Chief","MD","2021-2022",387463,{"$f":"(((AAMC_Raw_Data_for_FY22[[#This Row],[Median]]-AAMC_Raw_Data_for_FY22[[#This Row],[25th]])/25)*5) + AAMC_Raw_Data_for_FY22[[#This Row],[25th]]","v":406715.6},{"$f":"(((AAMC_Raw_Data_for_FY22[[#This Row],[Median]]-AAMC_Raw_Data_for_FY22[[#This Row],[25th]])/25)*10) + AAMC_Raw_Data_for_FY22[[#This Row],[25th]]","v":425968.2},{"$f":"(((AAMC_Raw_Data_for_FY22[[#This Row],[Median]]-AAMC_Raw_Data_for_FY22[[#This Row],[25th]])/25)*15) + AAMC_Raw_Data_for_FY22[[#This Row],[25th]]","v":445220.8},{"$f":"(((AAMC_Raw_Data_for_FY22[[#This Row],[Median]]-AAMC_Raw_Data_for_FY22[[#This Row],[25th]])/25)*20) + AAMC_Raw_Data_for_FY22[[#This Row],[25th]]","v":464473.4},483726,{"$f":"(((AAMC_Raw_Data_for_FY22[[#This Row],[75th]]-AAMC_Raw_Data_for_FY22[[#This Row],[Median]])/25)*5) + AAMC_Raw_Data_for_FY22[[#This Row],[Median]]","v":490962.6},{"$f":"(((AAMC_Raw_Data_for_FY22[[#This Row],[75th]]-AAMC_Raw_Data_for_FY22[[#This Row],[Median]])/25)*10) + AAMC_Raw_Data_for_FY22[[#This Row],[Median]]","v":498199.2},{"$f":"(((AAMC_Raw_Data_for_FY22[[#This Row],[75th]]-AAMC_Raw_Data_for_FY22[[#This Row],[Median]])/25)*15) + AAMC_Raw_Data_for_FY22[[#This Row],[Median]]","v":505435.8},{"$f":"(((AAMC_Raw_Data_for_FY22[[#This Row],[75th]]-AAMC_Raw_Data_for_FY22[[#This Row],[Median]])/25)*20) + AAMC_Raw_Data_for_FY22[[#This Row],[Median]]","v":512672.4},519909,{"$f":"(((AAMC_Raw_Data_for_FY22[[#This Row],[75th]]-AAMC_Raw_Data_for_FY22[[#This Row],[Median]])/25)*30) + AAMC_Raw_Data_for_FY22[[#This Row],[Median]]","v":527145.6},{"$f":"(((AAMC_Raw_Data_for_FY22[[#This Row],[75th]]-AAMC_Raw_Data_for_FY22[[#This Row],[Median]])/25)*35) + AAMC_Raw_Data_for_FY22[[#This Row],[Median]]","v":534382.19999999995},{"$f":"(((AAMC_Raw_Data_for_FY22[[#This Row],[75th]]-AAMC_Raw_Data_for_FY22[[#This Row],[Median]])/25)*40) + AAMC_Raw_Data_for_FY22[[#This Row],[Median]]","v":541618.80000000005}]
[{"$f":"AAMC_Raw_Data_for_FY22[[#This Row],[Source]]&AAMC_Raw_Data_for_FY22[[#This Row],[Type]]&AAMC_Raw_Data_for_FY22[[#This Row],[School Subset]]&AAMC_Raw_Data_for_FY22[[#This Row],[Rank]]&AAMC_Raw_Data_for_FY22[[#This Row],[Degree]]&AAMC_Raw_Data_for_FY22[[#This Row],[Department / Specialty]]&\"L\"","v":"AAMCAcademicPrivateChairMDPulmonary-Med.L"},"Pulmonary-Med.",1,"AAMC","Academic","Private","Chair","MD","2021-2022",null,{"$f":"(((AAMC_Raw_Data_for_FY22[[#This Row],[Median]]-AAMC_Raw_Data_for_FY22[[#This Row],[25th]])/25)*5) + AAMC_Raw_Data_for_FY22[[#This Row],[25th]]","v":0},{"$f":"(((AAMC_Raw_Data_for_FY22[[#This Row],[Median]]-AAMC_Raw_Data_for_FY22[[#This Row],[25th]])/25)*10) + AAMC_Raw_Data_for_FY22[[#This Row],[25th]]","v":0},{"$f":"(((AAMC_Raw_Data_for_FY22[[#This Row],[Median]]-AAMC_Raw_Data_for_FY22[[#This Row],[25th]])/25)*15) + AAMC_Raw_Data_for_FY22[[#This Row],[25th]]","v":0},{"$f":"(((AAMC_Raw_Data_for_FY22[[#This Row],[Median]]-AAMC_Raw_Data_for_FY22[[#This Row],[25th]])/25)*20) + AAMC_Raw_Data_for_FY22[[#This Row],[25th]]","v":0},null,{"$f":"(((AAMC_Raw_Data_for_FY22[[#This Row],[75th]]-AAMC_Raw_Data_for_FY22[[#This Row],[Median]])/25)*5) + AAMC_Raw_Data_for_FY22[[#This Row],[Median]]","v":0},{"$f":"(((AAMC_Raw_Data_for_FY22[[#This Row],[75th]]-AAMC_Raw_Data_for_FY22[[#This Row],[Median]])/25)*10) + AAMC_Raw_Data_for_FY22[[#This Row],[Median]]","v":0},{"$f":"(((AAMC_Raw_Data_for_FY22[[#This Row],[75th]]-AAMC_Raw_Data_for_FY22[[#This Row],[Median]])/25)*15) + AAMC_Raw_Data_for_FY22[[#This Row],[Median]]","v":0},{"$f":"(((AAMC_Raw_Data_for_FY22[[#This Row],[75th]]-AAMC_Raw_Data_for_FY22[[#This Row],[Median]])/25)*20) + AAMC_Raw_Data_for_FY22[[#This Row],[Median]]","v":0},null,{"$f":"(((AAMC_Raw_Data_for_FY22[[#This Row],[75th]]-AAMC_Raw_Data_for_FY22[[#This Row],[Median]])/25)*30) + AAMC_Raw_Data_for_FY22[[#This Row],[Median]]","v":0},{"$f":"(((AAMC_Raw_Data_for_FY22[[#This Row],[75th]]-AAMC_Raw_Data_for_FY22[[#This Row],[Median]])/25)*35) + AAMC_Raw_Data_for_FY22[[#This Row],[Median]]","v":0},{"$f":"(((AAMC_Raw_Data_for_FY22[[#This Row],[75th]]-AAMC_Raw_Data_for_FY22[[#This Row],[Median]])/25)*40) + AAMC_Raw_Data_for_FY22[[#This Row],[Median]]","v":0}]
[{"$f":"AAMC_Raw_Data_for_FY22[[#This Row],[Source]]&AAMC_Raw_Data_for_FY22[[#This Row],[Type]]&AAMC_Raw_Data_for_FY22[[#This Row],[School Subset]]&AAMC_Raw_Data_for_FY22[[#This Row],[Rank]]&AAMC_Raw_Data_for_FY22[[#This Row],[Degree]]&AAMC_Raw_Data_for_FY22[[#This Row],[Department / Specialty]]&\"L\"","v":"AAMCAcademicPrivateInstructorMDRheumatology-Med.L"},"Rheumatology-Med.",5,"AAMC","Academic","Private","Instructor","MD","2021-2022",141540,{"$f":"(((AAMC_Raw_Data_for_FY22[[#This Row],[Median]]-AAMC_Raw_Data_for_FY22[[#This Row],[25th]])/25)*5) + AAMC_Raw_Data_for_FY22[[#This Row],[25th]]","v":149256.6},{"$f":"(((AAMC_Raw_Data_for_FY22[[#This Row],[Median]]-AAMC_Raw_Data_for_FY22[[#This Row],[25th]])/25)*10) + AAMC_Raw_Data_for_FY22[[#This Row],[25th]]","v":156973.20000000001},{"$f":"(((AAMC_Raw_Data_for_FY22[[#This Row],[Median]]-AAMC_Raw_Data_for_FY22[[#This Row],[25th]])/25)*15) + AAMC_Raw_Data_for_FY22[[#This Row],[25th]]","v":164689.79999999999},{"$f":"(((AAMC_Raw_Data_for_FY22[[#This Row],[Median]]-AAMC_Raw_Data_for_FY22[[#This Row],[25th]])/25)*20) + AAMC_Raw_Data_for_FY22[[#This Row],[25th]]","v":172406.39999999999},180123,{"$f":"(((AAMC_Raw_Data_for_FY22[[#This Row],[75th]]-AAMC_Raw_Data_for_FY22[[#This Row],[Median]])/25)*5) + AAMC_Raw_Data_for_FY22[[#This Row],[Median]]","v":186434.8},{"$f":"(((AAMC_Raw_Data_for_FY22[[#This Row],[75th]]-AAMC_Raw_Data_for_FY22[[#This Row],[Median]])/25)*10) + AAMC_Raw_Data_for_FY22[[#This Row],[Median]]","v":192746.6},{"$f":"(((AAMC_Raw_Data_for_FY22[[#This Row],[75th]]-AAMC_Raw_Data_for_FY22[[#This Row],[Median]])/25)*15) + AAMC_Raw_Data_for_FY22[[#This Row],[Median]]","v":199058.4},{"$f":"(((AAMC_Raw_Data_for_FY22[[#This Row],[75th]]-AAMC_Raw_Data_for_FY22[[#This Row],[Median]])/25)*20) + AAMC_Raw_Data_for_FY22[[#This Row],[Median]]","v":205370.2},211682,{"$f":"(((AAMC_Raw_Data_for_FY22[[#This Row],[75th]]-AAMC_Raw_Data_for_FY22[[#This Row],[Median]])/25)*30) + AAMC_Raw_Data_for_FY22[[#This Row],[Median]]","v":217993.8},{"$f":"(((AAMC_Raw_Data_for_FY22[[#This Row],[75th]]-AAMC_Raw_Data_for_FY22[[#This Row],[Median]])/25)*35) + AAMC_Raw_Data_for_FY22[[#This Row],[Median]]","v":224305.6},{"$f":"(((AAMC_Raw_Data_for_FY22[[#This Row],[75th]]-AAMC_Raw_Data_for_FY22[[#This Row],[Median]])/25)*40) + AAMC_Raw_Data_for_FY22[[#This Row],[Median]]","v":230617.4}]
[{"$f":"AAMC_Raw_Data_for_FY22[[#This Row],[Source]]&AAMC_Raw_Data_for_FY22[[#This Row],[Type]]&AAMC_Raw_Data_for_FY22[[#This Row],[School Subset]]&AAMC_Raw_Data_for_FY22[[#This Row],[Rank]]&AAMC_Raw_Data_for_FY22[[#This Row],[Degree]]&AAMC_Raw_Data_for_FY22[[#This Row],[Department / Specialty]]&\"L\"","v":"AAMCAcademicPrivateAssistantMDRheumatology-Med.L"},"Rheumatology-Med.",4,"AAMC","Academic","Private","Assistant","MD","2021-2022",178225,{"$f":"(((AAMC_Raw_Data_for_FY22[[#This Row],[Median]]-AAMC_Raw_Data_for_FY22[[#This Row],[25th]])/25)*5) + AAMC_Raw_Data_for_FY22[[#This Row],[25th]]","v":183492.4},{"$f":"(((AAMC_Raw_Data_for_FY22[[#This Row],[Median]]-AAMC_Raw_Data_for_FY22[[#This Row],[25th]])/25)*10) + AAMC_Raw_Data_for_FY22[[#This Row],[25th]]","v":188759.8},{"$f":"(((AAMC_Raw_Data_for_FY22[[#This Row],[Median]]-AAMC_Raw_Data_for_FY22[[#This Row],[25th]])/25)*15) + AAMC_Raw_Data_for_FY22[[#This Row],[25th]]","v":194027.2},{"$f":"(((AAMC_Raw_Data_for_FY22[[#This Row],[Median]]-AAMC_Raw_Data_for_FY22[[#This Row],[25th]])/25)*20) + AAMC_Raw_Data_for_FY22[[#This Row],[25th]]","v":199294.6},204562,{"$f":"(((AAMC_Raw_Data_for_FY22[[#This Row],[75th]]-AAMC_Raw_Data_for_FY22[[#This Row],[Median]])/25)*5) + AAMC_Raw_Data_for_FY22[[#This Row],[Median]]","v":213194.4},{"$f":"(((AAMC_Raw_Data_for_FY22[[#This Row],[75th]]-AAMC_Raw_Data_for_FY22[[#This Row],[Median]])/25)*10) + AAMC_Raw_Data_for_FY22[[#This Row],[Median]]","v":221826.8},{"$f":"(((AAMC_Raw_Data_for_FY22[[#This Row],[75th]]-AAMC_Raw_Data_for_FY22[[#This Row],[Median]])/25)*15) + AAMC_Raw_Data_for_FY22[[#This Row],[Median]]","v":230459.2},{"$f":"(((AAMC_Raw_Data_for_FY22[[#This Row],[75th]]-AAMC_Raw_Data_for_FY22[[#This Row],[Median]])/25)*20) + AAMC_Raw_Data_for_FY22[[#This Row],[Median]]","v":239091.6},247724,{"$f":"(((AAMC_Raw_Data_for_FY22[[#This Row],[75th]]-AAMC_Raw_Data_for_FY22[[#This Row],[Median]])/25)*30) + AAMC_Raw_Data_for_FY22[[#This Row],[Median]]","v":256356.4},{"$f":"(((AAMC_Raw_Data_for_FY22[[#This Row],[75th]]-AAMC_Raw_Data_for_FY22[[#This Row],[Median]])/25)*35) + AAMC_Raw_Data_for_FY22[[#This Row],[Median]]","v":264988.79999999999},{"$f":"(((AAMC_Raw_Data_for_FY22[[#This Row],[75th]]-AAMC_Raw_Data_for_FY22[[#This Row],[Median]])/25)*40) + AAMC_Raw_Data_for_FY22[[#This Row],[Median]]","v":273621.2}]
[{"$f":"AAMC_Raw_Data_for_FY22[[#This Row],[Source]]&AAMC_Raw_Data_for_FY22[[#This Row],[Type]]&AAMC_Raw_Data_for_FY22[[#This Row],[School Subset]]&AAMC_Raw_Data_for_FY22[[#This Row],[Rank]]&AAMC_Raw_Data_for_FY22[[#This Row],[Degree]]&AAMC_Raw_Data_for_FY22[[#This Row],[Department / Specialty]]&\"L\"","v":"AAMCAcademicPrivateAssociateMDRheumatology-Med.L"},"Rheumatology-Med.",3,"AAMC","Academic","Private","Associate","MD","2021-2022",205620,{"$f":"(((AAMC_Raw_Data_for_FY22[[#This Row],[Median]]-AAMC_Raw_Data_for_FY22[[#This Row],[25th]])/25)*5) + AAMC_Raw_Data_for_FY22[[#This Row],[25th]]","v":213056.8},{"$f":"(((AAMC_Raw_Data_for_FY22[[#This Row],[Median]]-AAMC_Raw_Data_for_FY22[[#This Row],[25th]])/25)*10) + AAMC_Raw_Data_for_FY22[[#This Row],[25th]]","v":220493.6},{"$f":"(((AAMC_Raw_Data_for_FY22[[#This Row],[Median]]-AAMC_Raw_Data_for_FY22[[#This Row],[25th]])/25)*15) + AAMC_Raw_Data_for_FY22[[#This Row],[25th]]","v":227930.4},{"$f":"(((AAMC_Raw_Data_for_FY22[[#This Row],[Median]]-AAMC_Raw_Data_for_FY22[[#This Row],[25th]])/25)*20) + AAMC_Raw_Data_for_FY22[[#This Row],[25th]]","v":235367.2},242804,{"$f":"(((AAMC_Raw_Data_for_FY22[[#This Row],[75th]]-AAMC_Raw_Data_for_FY22[[#This Row],[Median]])/25)*5) + AAMC_Raw_Data_for_FY22[[#This Row],[Median]]","v":248828},{"$f":"(((AAMC_Raw_Data_for_FY22[[#This Row],[75th]]-AAMC_Raw_Data_for_FY22[[#This Row],[Median]])/25)*10) + AAMC_Raw_Data_for_FY22[[#This Row],[Median]]","v":254852},{"$f":"(((AAMC_Raw_Data_for_FY22[[#This Row],[75th]]-AAMC_Raw_Data_for_FY22[[#This Row],[Median]])/25)*15) + AAMC_Raw_Data_for_FY22[[#This Row],[Median]]","v":260876},{"$f":"(((AAMC_Raw_Data_for_FY22[[#This Row],[75th]]-AAMC_Raw_Data_for_FY22[[#This Row],[Median]])/25)*20) + AAMC_Raw_Data_for_FY22[[#This Row],[Median]]","v":266900},272924,{"$f":"(((AAMC_Raw_Data_for_FY22[[#This Row],[75th]]-AAMC_Raw_Data_for_FY22[[#This Row],[Median]])/25)*30) + AAMC_Raw_Data_for_FY22[[#This Row],[Median]]","v":278948},{"$f":"(((AAMC_Raw_Data_for_FY22[[#This Row],[75th]]-AAMC_Raw_Data_for_FY22[[#This Row],[Median]])/25)*35) + AAMC_Raw_Data_for_FY22[[#This Row],[Median]]","v":284972},{"$f":"(((AAMC_Raw_Data_for_FY22[[#This Row],[75th]]-AAMC_Raw_Data_for_FY22[[#This Row],[Median]])/25)*40) + AAMC_Raw_Data_for_FY22[[#This Row],[Median]]","v":290996}]
[{"$f":"AAMC_Raw_Data_for_FY22[[#This Row],[Source]]&AAMC_Raw_Data_for_FY22[[#This Row],[Type]]&AAMC_Raw_Data_for_FY22[[#This Row],[School Subset]]&AAMC_Raw_Data_for_FY22[[#This Row],[Rank]]&AAMC_Raw_Data_for_FY22[[#This Row],[Degree]]&AAMC_Raw_Data_for_FY22[[#This Row],[Department / Specialty]]&\"L\"","v":"AAMCAcademicPrivateProfessorMDRheumatology-Med.L"},"Rheumatology-Med.",2,"AAMC","Academic","Private","Professor","MD","2021-2022",234651,{"$f":"(((AAMC_Raw_Data_for_FY22[[#This Row],[Median]]-AAMC_Raw_Data_for_FY22[[#This Row],[25th]])/25)*5) + AAMC_Raw_Data_for_FY22[[#This Row],[25th]]","v":242915.8},{"$f":"(((AAMC_Raw_Data_for_FY22[[#This Row],[Median]]-AAMC_Raw_Data_for_FY22[[#This Row],[25th]])/25)*10) + AAMC_Raw_Data_for_FY22[[#This Row],[25th]]","v":251180.6},{"$f":"(((AAMC_Raw_Data_for_FY22[[#This Row],[Median]]-AAMC_Raw_Data_for_FY22[[#This Row],[25th]])/25)*15) + AAMC_Raw_Data_for_FY22[[#This Row],[25th]]","v":259445.4},{"$f":"(((AAMC_Raw_Data_for_FY22[[#This Row],[Median]]-AAMC_Raw_Data_for_FY22[[#This Row],[25th]])/25)*20) + AAMC_Raw_Data_for_FY22[[#This Row],[25th]]","v":267710.2},275975,{"$f":"(((AAMC_Raw_Data_for_FY22[[#This Row],[75th]]-AAMC_Raw_Data_for_FY22[[#This Row],[Median]])/25)*5) + AAMC_Raw_Data_for_FY22[[#This Row],[Median]]","v":289909.40000000002},{"$f":"(((AAMC_Raw_Data_for_FY22[[#This Row],[75th]]-AAMC_Raw_Data_for_FY22[[#This Row],[Median]])/25)*10) + AAMC_Raw_Data_for_FY22[[#This Row],[Median]]","v":303843.8},{"$f":"(((AAMC_Raw_Data_for_FY22[[#This Row],[75th]]-AAMC_Raw_Data_for_FY22[[#This Row],[Median]])/25)*15) + AAMC_Raw_Data_for_FY22[[#This Row],[Median]]","v":317778.2},{"$f":"(((AAMC_Raw_Data_for_FY22[[#This Row],[75th]]-AAMC_Raw_Data_for_FY22[[#This Row],[Median]])/25)*20) + AAMC_Raw_Data_for_FY22[[#This Row],[Median]]","v":331712.59999999998},345647,{"$f":"(((AAMC_Raw_Data_for_FY22[[#This Row],[75th]]-AAMC_Raw_Data_for_FY22[[#This Row],[Median]])/25)*30) + AAMC_Raw_Data_for_FY22[[#This Row],[Median]]","v":359581.4},{"$f":"(((AAMC_Raw_Data_for_FY22[[#This Row],[75th]]-AAMC_Raw_Data_for_FY22[[#This Row],[Median]])/25)*35) + AAMC_Raw_Data_for_FY22[[#This Row],[Median]]","v":373515.8},{"$f":"(((AAMC_Raw_Data_for_FY22[[#This Row],[75th]]-AAMC_Raw_Data_for_FY22[[#This Row],[Median]])/25)*40) + AAMC_Raw_Data_for_FY22[[#This Row],[Median]]","v":387450.2}]
[{"$f":"AAMC_Raw_Data_for_FY22[[#This Row],[Source]]&AAMC_Raw_Data_for_FY22[[#This Row],[Type]]&AAMC_Raw_Data_for_FY22[[#This Row],[School Subset]]&AAMC_Raw_Data_for_FY22[[#This Row],[Rank]]&AAMC_Raw_Data_for_FY22[[#This Row],[Degree]]&AAMC_Raw_Data_for_FY22[[#This Row],[Department / Specialty]]&\"L\"","v":"AAMCAcademicPrivateChiefMDRheumatology-Med.L"},"Rheumatology-Med.",6,"AAMC","Academic","Private","Chief","MD","2021-2022",296334,{"$f":"(((AAMC_Raw_Data_for_FY22[[#This Row],[Median]]-AAMC_Raw_Data_for_FY22[[#This Row],[25th]])/25)*5) + AAMC_Raw_Data_for_FY22[[#This Row],[25th]]","v":303598.40000000002},{"$f":"(((AAMC_Raw_Data_for_FY22[[#This Row],[Median]]-AAMC_Raw_Data_for_FY22[[#This Row],[25th]])/25)*10) + AAMC_Raw_Data_for_FY22[[#This Row],[25th]]","v":310862.8},{"$f":"(((AAMC_Raw_Data_for_FY22[[#This Row],[Median]]-AAMC_Raw_Data_for_FY22[[#This Row],[25th]])/25)*15) + AAMC_Raw_Data_for_FY22[[#This Row],[25th]]","v":318127.2},{"$f":"(((AAMC_Raw_Data_for_FY22[[#This Row],[Median]]-AAMC_Raw_Data_for_FY22[[#This Row],[25th]])/25)*20) + AAMC_Raw_Data_for_FY22[[#This Row],[25th]]","v":325391.59999999998},332656,{"$f":"(((AAMC_Raw_Data_for_FY22[[#This Row],[75th]]-AAMC_Raw_Data_for_FY22[[#This Row],[Median]])/25)*5) + AAMC_Raw_Data_for_FY22[[#This Row],[Median]]","v":338114.4},{"$f":"(((AAMC_Raw_Data_for_FY22[[#This Row],[75th]]-AAMC_Raw_Data_for_FY22[[#This Row],[Median]])/25)*10) + AAMC_Raw_Data_for_FY22[[#This Row],[Median]]","v":343572.8},{"$f":"(((AAMC_Raw_Data_for_FY22[[#This Row],[75th]]-AAMC_Raw_Data_for_FY22[[#This Row],[Median]])/25)*15) + AAMC_Raw_Data_for_FY22[[#This Row],[Median]]","v":349031.2},{"$f":"(((AAMC_Raw_Data_for_FY22[[#This Row],[75th]]-AAMC_Raw_Data_for_FY22[[#This Row],[Median]])/25)*20) + AAMC_Raw_Data_for_FY22[[#This Row],[Median]]","v":354489.59999999998},359948,{"$f":"(((AAMC_Raw_Data_for_FY22[[#This Row],[75th]]-AAMC_Raw_Data_for_FY22[[#This Row],[Median]])/25)*30) + AAMC_Raw_Data_for_FY22[[#This Row],[Median]]","v":365406.4},{"$f":"(((AAMC_Raw_Data_for_FY22[[#This Row],[75th]]-AAMC_Raw_Data_for_FY22[[#This Row],[Median]])/25)*35) + AAMC_Raw_Data_for_FY22[[#This Row],[Median]]","v":370864.8},{"$f":"(((AAMC_Raw_Data_for_FY22[[#This Row],[75th]]-AAMC_Raw_Data_for_FY22[[#This Row],[Median]])/25)*40) + AAMC_Raw_Data_for_FY22[[#This Row],[Median]]","v":376323.2}]
[{"$f":"AAMC_Raw_Data_for_FY22[[#This Row],[Source]]&AAMC_Raw_Data_for_FY22[[#This Row],[Type]]&AAMC_Raw_Data_for_FY22[[#This Row],[School Subset]]&AAMC_Raw_Data_for_FY22[[#This Row],[Rank]]&AAMC_Raw_Data_for_FY22[[#This Row],[Degree]]&AAMC_Raw_Data_for_FY22[[#This Row],[Department / Specialty]]&\"L\"","v":"AAMCAcademicPrivateInstructorMDOther MedicineL"},"Other Medicine",5,"AAMC","Academic","Private","Instructor","MD","2021-2022",195000,{"$f":"(((AAMC_Raw_Data_for_FY22[[#This Row],[Median]]-AAMC_Raw_Data_for_FY22[[#This Row],[25th]])/25)*5) + AAMC_Raw_Data_for_FY22[[#This Row],[25th]]","v":205000},{"$f":"(((AAMC_Raw_Data_for_FY22[[#This Row],[Median]]-AAMC_Raw_Data_for_FY22[[#This Row],[25th]])/25)*10) + AAMC_Raw_Data_for_FY22[[#This Row],[25th]]","v":215000},{"$f":"(((AAMC_Raw_Data_for_FY22[[#This Row],[Median]]-AAMC_Raw_Data_for_FY22[[#This Row],[25th]])/25)*15) + AAMC_Raw_Data_for_FY22[[#This Row],[25th]]","v":225000},{"$f":"(((AAMC_Raw_Data_for_FY22[[#This Row],[Median]]-AAMC_Raw_Data_for_FY22[[#This Row],[25th]])/25)*20) + AAMC_Raw_Data_for_FY22[[#This Row],[25th]]","v":235000},245000,{"$f":"(((AAMC_Raw_Data_for_FY22[[#This Row],[75th]]-AAMC_Raw_Data_for_FY22[[#This Row],[Median]])/25)*5) + AAMC_Raw_Data_for_FY22[[#This Row],[Median]]","v":257119.8},{"$f":"(((AAMC_Raw_Data_for_FY22[[#This Row],[75th]]-AAMC_Raw_Data_for_FY22[[#This Row],[Median]])/25)*10) + AAMC_Raw_Data_for_FY22[[#This Row],[Median]]","v":269239.59999999998},{"$f":"(((AAMC_Raw_Data_for_FY22[[#This Row],[75th]]-AAMC_Raw_Data_for_FY22[[#This Row],[Median]])/25)*15) + AAMC_Raw_Data_for_FY22[[#This Row],[Median]]","v":281359.40000000002},{"$f":"(((AAMC_Raw_Data_for_FY22[[#This Row],[75th]]-AAMC_Raw_Data_for_FY22[[#This Row],[Median]])/25)*20) + AAMC_Raw_Data_for_FY22[[#This Row],[Median]]","v":293479.2},305599,{"$f":"(((AAMC_Raw_Data_for_FY22[[#This Row],[75th]]-AAMC_Raw_Data_for_FY22[[#This Row],[Median]])/25)*30) + AAMC_Raw_Data_for_FY22[[#This Row],[Median]]","v":317718.8},{"$f":"(((AAMC_Raw_Data_for_FY22[[#This Row],[75th]]-AAMC_Raw_Data_for_FY22[[#This Row],[Median]])/25)*35) + AAMC_Raw_Data_for_FY22[[#This Row],[Median]]","v":329838.59999999998},{"$f":"(((AAMC_Raw_Data_for_FY22[[#This Row],[75th]]-AAMC_Raw_Data_for_FY22[[#This Row],[Median]])/25)*40) + AAMC_Raw_Data_for_FY22[[#This Row],[Median]]","v":341958.40000000002}]
[{"$f":"AAMC_Raw_Data_for_FY22[[#This Row],[Source]]&AAMC_Raw_Data_for_FY22[[#This Row],[Type]]&AAMC_Raw_Data_for_FY22[[#This Row],[School Subset]]&AAMC_Raw_Data_for_FY22[[#This Row],[Rank]]&AAMC_Raw_Data_for_FY22[[#This Row],[Degree]]&AAMC_Raw_Data_for_FY22[[#This Row],[Department / Specialty]]&\"L\"","v":"AAMCAcademicPrivateAssistantMDOther MedicineL"},"Other Medicine",4,"AAMC","Academic","Private","Assistant","MD","2021-2022",220000,{"$f":"(((AAMC_Raw_Data_for_FY22[[#This Row],[Median]]-AAMC_Raw_Data_for_FY22[[#This Row],[25th]])/25)*5) + AAMC_Raw_Data_for_FY22[[#This Row],[25th]]","v":230208.4},{"$f":"(((AAMC_Raw_Data_for_FY22[[#This Row],[Median]]-AAMC_Raw_Data_for_FY22[[#This Row],[25th]])/25)*10) + AAMC_Raw_Data_for_FY22[[#This Row],[25th]]","v":240416.8},{"$f":"(((AAMC_Raw_Data_for_FY22[[#This Row],[Median]]-AAMC_Raw_Data_for_FY22[[#This Row],[25th]])/25)*15) + AAMC_Raw_Data_for_FY22[[#This Row],[25th]]","v":250625.2},{"$f":"(((AAMC_Raw_Data_for_FY22[[#This Row],[Median]]-AAMC_Raw_Data_for_FY22[[#This Row],[25th]])/25)*20) + AAMC_Raw_Data_for_FY22[[#This Row],[25th]]","v":260833.6},271042,{"$f":"(((AAMC_Raw_Data_for_FY22[[#This Row],[75th]]-AAMC_Raw_Data_for_FY22[[#This Row],[Median]])/25)*5) + AAMC_Raw_Data_for_FY22[[#This Row],[Median]]","v":282567.8},{"$f":"(((AAMC_Raw_Data_for_FY22[[#This Row],[75th]]-AAMC_Raw_Data_for_FY22[[#This Row],[Median]])/25)*10) + AAMC_Raw_Data_for_FY22[[#This Row],[Median]]","v":294093.59999999998},{"$f":"(((AAMC_Raw_Data_for_FY22[[#This Row],[75th]]-AAMC_Raw_Data_for_FY22[[#This Row],[Median]])/25)*15) + AAMC_Raw_Data_for_FY22[[#This Row],[Median]]","v":305619.40000000002},{"$f":"(((AAMC_Raw_Data_for_FY22[[#This Row],[75th]]-AAMC_Raw_Data_for_FY22[[#This Row],[Median]])/25)*20) + AAMC_Raw_Data_for_FY22[[#This Row],[Median]]","v":317145.2},328671,{"$f":"(((AAMC_Raw_Data_for_FY22[[#This Row],[75th]]-AAMC_Raw_Data_for_FY22[[#This Row],[Median]])/25)*30) + AAMC_Raw_Data_for_FY22[[#This Row],[Median]]","v":340196.8},{"$f":"(((AAMC_Raw_Data_for_FY22[[#This Row],[75th]]-AAMC_Raw_Data_for_FY22[[#This Row],[Median]])/25)*35) + AAMC_Raw_Data_for_FY22[[#This Row],[Median]]","v":351722.6},{"$f":"(((AAMC_Raw_Data_for_FY22[[#This Row],[75th]]-AAMC_Raw_Data_for_FY22[[#This Row],[Median]])/25)*40) + AAMC_Raw_Data_for_FY22[[#This Row],[Median]]","v":363248.4}]
[{"$f":"AAMC_Raw_Data_for_FY22[[#This Row],[Source]]&AAMC_Raw_Data_for_FY22[[#This Row],[Type]]&AAMC_Raw_Data_for_FY22[[#This Row],[School Subset]]&AAMC_Raw_Data_for_FY22[[#This Row],[Rank]]&AAMC_Raw_Data_for_FY22[[#This Row],[Degree]]&AAMC_Raw_Data_for_FY22[[#This Row],[Department / Specialty]]&\"L\"","v":"AAMCAcademicPrivateAssociateMDOther MedicineL"},"Other Medicine",3,"AAMC","Academic","Private","Associate","MD","2021-2022",234526,{"$f":"(((AAMC_Raw_Data_for_FY22[[#This Row],[Median]]-AAMC_Raw_Data_for_FY22[[#This Row],[25th]])/25)*5) + AAMC_Raw_Data_for_FY22[[#This Row],[25th]]","v":244797},{"$f":"(((AAMC_Raw_Data_for_FY22[[#This Row],[Median]]-AAMC_Raw_Data_for_FY22[[#This Row],[25th]])/25)*10) + AAMC_Raw_Data_for_FY22[[#This Row],[25th]]","v":255068},{"$f":"(((AAMC_Raw_Data_for_FY22[[#This Row],[Median]]-AAMC_Raw_Data_for_FY22[[#This Row],[25th]])/25)*15) + AAMC_Raw_Data_for_FY22[[#This Row],[25th]]","v":265339},{"$f":"(((AAMC_Raw_Data_for_FY22[[#This Row],[Median]]-AAMC_Raw_Data_for_FY22[[#This Row],[25th]])/25)*20) + AAMC_Raw_Data_for_FY22[[#This Row],[25th]]","v":275610},285881,{"$f":"(((AAMC_Raw_Data_for_FY22[[#This Row],[75th]]-AAMC_Raw_Data_for_FY22[[#This Row],[Median]])/25)*5) + AAMC_Raw_Data_for_FY22[[#This Row],[Median]]","v":301246.8},{"$f":"(((AAMC_Raw_Data_for_FY22[[#This Row],[75th]]-AAMC_Raw_Data_for_FY22[[#This Row],[Median]])/25)*10) + AAMC_Raw_Data_for_FY22[[#This Row],[Median]]","v":316612.59999999998},{"$f":"(((AAMC_Raw_Data_for_FY22[[#This Row],[75th]]-AAMC_Raw_Data_for_FY22[[#This Row],[Median]])/25)*15) + AAMC_Raw_Data_for_FY22[[#This Row],[Median]]","v":331978.40000000002},{"$f":"(((AAMC_Raw_Data_for_FY22[[#This Row],[75th]]-AAMC_Raw_Data_for_FY22[[#This Row],[Median]])/25)*20) + AAMC_Raw_Data_for_FY22[[#This Row],[Median]]","v":347344.2},362710,{"$f":"(((AAMC_Raw_Data_for_FY22[[#This Row],[75th]]-AAMC_Raw_Data_for_FY22[[#This Row],[Median]])/25)*30) + AAMC_Raw_Data_for_FY22[[#This Row],[Median]]","v":378075.8},{"$f":"(((AAMC_Raw_Data_for_FY22[[#This Row],[75th]]-AAMC_Raw_Data_for_FY22[[#This Row],[Median]])/25)*35) + AAMC_Raw_Data_for_FY22[[#This Row],[Median]]","v":393441.6},{"$f":"(((AAMC_Raw_Data_for_FY22[[#This Row],[75th]]-AAMC_Raw_Data_for_FY22[[#This Row],[Median]])/25)*40) + AAMC_Raw_Data_for_FY22[[#This Row],[Median]]","v":408807.4}]
[{"$f":"AAMC_Raw_Data_for_FY22[[#This Row],[Source]]&AAMC_Raw_Data_for_FY22[[#This Row],[Type]]&AAMC_Raw_Data_for_FY22[[#This Row],[School Subset]]&AAMC_Raw_Data_for_FY22[[#This Row],[Rank]]&AAMC_Raw_Data_for_FY22[[#This Row],[Degree]]&AAMC_Raw_Data_for_FY22[[#This Row],[Department / Specialty]]&\"L\"","v":"AAMCAcademicPrivateProfessorMDOther MedicineL"},"Other Medicine",2,"AAMC","Academic","Private","Professor","MD","2021-2022",262294,{"$f":"(((AAMC_Raw_Data_for_FY22[[#This Row],[Median]]-AAMC_Raw_Data_for_FY22[[#This Row],[25th]])/25)*5) + AAMC_Raw_Data_for_FY22[[#This Row],[25th]]","v":273635.20000000001},{"$f":"(((AAMC_Raw_Data_for_FY22[[#This Row],[Median]]-AAMC_Raw_Data_for_FY22[[#This Row],[25th]])/25)*10) + AAMC_Raw_Data_for_FY22[[#This Row],[25th]]","v":284976.40000000002},{"$f":"(((AAMC_Raw_Data_for_FY22[[#This Row],[Median]]-AAMC_Raw_Data_for_FY22[[#This Row],[25th]])/25)*15) + AAMC_Raw_Data_for_FY22[[#This Row],[25th]]","v":296317.59999999998},{"$f":"(((AAMC_Raw_Data_for_FY22[[#This Row],[Median]]-AAMC_Raw_Data_for_FY22[[#This Row],[25th]])/25)*20) + AAMC_Raw_Data_for_FY22[[#This Row],[25th]]","v":307658.8},319000,{"$f":"(((AAMC_Raw_Data_for_FY22[[#This Row],[75th]]-AAMC_Raw_Data_for_FY22[[#This Row],[Median]])/25)*5) + AAMC_Raw_Data_for_FY22[[#This Row],[Median]]","v":346493.4},{"$f":"(((AAMC_Raw_Data_for_FY22[[#This Row],[75th]]-AAMC_Raw_Data_for_FY22[[#This Row],[Median]])/25)*10) + AAMC_Raw_Data_for_FY22[[#This Row],[Median]]","v":373986.8},{"$f":"(((AAMC_Raw_Data_for_FY22[[#This Row],[75th]]-AAMC_Raw_Data_for_FY22[[#This Row],[Median]])/25)*15) + AAMC_Raw_Data_for_FY22[[#This Row],[Median]]","v":401480.2},{"$f":"(((AAMC_Raw_Data_for_FY22[[#This Row],[75th]]-AAMC_Raw_Data_for_FY22[[#This Row],[Median]])/25)*20) + AAMC_Raw_Data_for_FY22[[#This Row],[Median]]","v":428973.6},456467,{"$f":"(((AAMC_Raw_Data_for_FY22[[#This Row],[75th]]-AAMC_Raw_Data_for_FY22[[#This Row],[Median]])/25)*30) + AAMC_Raw_Data_for_FY22[[#This Row],[Median]]","v":483960.4},{"$f":"(((AAMC_Raw_Data_for_FY22[[#This Row],[75th]]-AAMC_Raw_Data_for_FY22[[#This Row],[Median]])/25)*35) + AAMC_Raw_Data_for_FY22[[#This Row],[Median]]","v":511453.80000000005},{"$f":"(((AAMC_Raw_Data_for_FY22[[#This Row],[75th]]-AAMC_Raw_Data_for_FY22[[#This Row],[Median]])/25)*40) + AAMC_Raw_Data_for_FY22[[#This Row],[Median]]","v":538947.19999999995}]
[{"$f":"AAMC_Raw_Data_for_FY22[[#This Row],[Source]]&AAMC_Raw_Data_for_FY22[[#This Row],[Type]]&AAMC_Raw_Data_for_FY22[[#This Row],[School Subset]]&AAMC_Raw_Data_for_FY22[[#This Row],[Rank]]&AAMC_Raw_Data_for_FY22[[#This Row],[Degree]]&AAMC_Raw_Data_for_FY22[[#This Row],[Department / Specialty]]&\"L\"","v":"AAMCAcademicPrivateChiefMDOther MedicineL"},"Other Medicine",6,"AAMC","Academic","Private","Chief","MD","2021-2022",371700,{"$f":"(((AAMC_Raw_Data_for_FY22[[#This Row],[Median]]-AAMC_Raw_Data_for_FY22[[#This Row],[25th]])/25)*5) + AAMC_Raw_Data_for_FY22[[#This Row],[25th]]","v":387494.2},{"$f":"(((AAMC_Raw_Data_for_FY22[[#This Row],[Median]]-AAMC_Raw_Data_for_FY22[[#This Row],[25th]])/25)*10) + AAMC_Raw_Data_for_FY22[[#This Row],[25th]]","v":403288.4},{"$f":"(((AAMC_Raw_Data_for_FY22[[#This Row],[Median]]-AAMC_Raw_Data_for_FY22[[#This Row],[25th]])/25)*15) + AAMC_Raw_Data_for_FY22[[#This Row],[25th]]","v":419082.6},{"$f":"(((AAMC_Raw_Data_for_FY22[[#This Row],[Median]]-AAMC_Raw_Data_for_FY22[[#This Row],[25th]])/25)*20) + AAMC_Raw_Data_for_FY22[[#This Row],[25th]]","v":434876.8},450671,{"$f":"(((AAMC_Raw_Data_for_FY22[[#This Row],[75th]]-AAMC_Raw_Data_for_FY22[[#This Row],[Median]])/25)*5) + AAMC_Raw_Data_for_FY22[[#This Row],[Median]]","v":460876.6},{"$f":"(((AAMC_Raw_Data_for_FY22[[#This Row],[75th]]-AAMC_Raw_Data_for_FY22[[#This Row],[Median]])/25)*10) + AAMC_Raw_Data_for_FY22[[#This Row],[Median]]","v":471082.2},{"$f":"(((AAMC_Raw_Data_for_FY22[[#This Row],[75th]]-AAMC_Raw_Data_for_FY22[[#This Row],[Median]])/25)*15) + AAMC_Raw_Data_for_FY22[[#This Row],[Median]]","v":481287.8},{"$f":"(((AAMC_Raw_Data_for_FY22[[#This Row],[75th]]-AAMC_Raw_Data_for_FY22[[#This Row],[Median]])/25)*20) + AAMC_Raw_Data_for_FY22[[#This Row],[Median]]","v":491493.4},501699,{"$f":"(((AAMC_Raw_Data_for_FY22[[#This Row],[75th]]-AAMC_Raw_Data_for_FY22[[#This Row],[Median]])/25)*30) + AAMC_Raw_Data_for_FY22[[#This Row],[Median]]","v":511904.6},{"$f":"(((AAMC_Raw_Data_for_FY22[[#This Row],[75th]]-AAMC_Raw_Data_for_FY22[[#This Row],[Median]])/25)*35) + AAMC_Raw_Data_for_FY22[[#This Row],[Median]]","v":522110.2},{"$f":"(((AAMC_Raw_Data_for_FY22[[#This Row],[75th]]-AAMC_Raw_Data_for_FY22[[#This Row],[Median]])/25)*40) + AAMC_Raw_Data_for_FY22[[#This Row],[Median]]","v":532315.80000000005}]
[{"$f":"AAMC_Raw_Data_for_FY22[[#This Row],[Source]]&AAMC_Raw_Data_for_FY22[[#This Row],[Type]]&AAMC_Raw_Data_for_FY22[[#This Row],[School Subset]]&AAMC_Raw_Data_for_FY22[[#This Row],[Rank]]&AAMC_Raw_Data_for_FY22[[#This Row],[Degree]]&AAMC_Raw_Data_for_FY22[[#This Row],[Department / Specialty]]&\"L\"","v":"AAMCAcademicPrivateChairMDOther MedicineL"},"Other Medicine",1,"AAMC","Academic","Private","Chair","MD","2021-2022",null,{"$f":"(((AAMC_Raw_Data_for_FY22[[#This Row],[Median]]-AAMC_Raw_Data_for_FY22[[#This Row],[25th]])/25)*5) + AAMC_Raw_Data_for_FY22[[#This Row],[25th]]","v":0},{"$f":"(((AAMC_Raw_Data_for_FY22[[#This Row],[Median]]-AAMC_Raw_Data_for_FY22[[#This Row],[25th]])/25)*10) + AAMC_Raw_Data_for_FY22[[#This Row],[25th]]","v":0},{"$f":"(((AAMC_Raw_Data_for_FY22[[#This Row],[Median]]-AAMC_Raw_Data_for_FY22[[#This Row],[25th]])/25)*15) + AAMC_Raw_Data_for_FY22[[#This Row],[25th]]","v":0},{"$f":"(((AAMC_Raw_Data_for_FY22[[#This Row],[Median]]-AAMC_Raw_Data_for_FY22[[#This Row],[25th]])/25)*20) + AAMC_Raw_Data_for_FY22[[#This Row],[25th]]","v":0},null,{"$f":"(((AAMC_Raw_Data_for_FY22[[#This Row],[75th]]-AAMC_Raw_Data_for_FY22[[#This Row],[Median]])/25)*5) + AAMC_Raw_Data_for_FY22[[#This Row],[Median]]","v":0},{"$f":"(((AAMC_Raw_Data_for_FY22[[#This Row],[75th]]-AAMC_Raw_Data_for_FY22[[#This Row],[Median]])/25)*10) + AAMC_Raw_Data_for_FY22[[#This Row],[Median]]","v":0},{"$f":"(((AAMC_Raw_Data_for_FY22[[#This Row],[75th]]-AAMC_Raw_Data_for_FY22[[#This Row],[Median]])/25)*15) + AAMC_Raw_Data_for_FY22[[#This Row],[Median]]","v":0},{"$f":"(((AAMC_Raw_Data_for_FY22[[#This Row],[75th]]-AAMC_Raw_Data_for_FY22[[#This Row],[Median]])/25)*20) + AAMC_Raw_Data_for_FY22[[#This Row],[Median]]","v":0},null,{"$f":"(((AAMC_Raw_Data_for_FY22[[#This Row],[75th]]-AAMC_Raw_Data_for_FY22[[#This Row],[Median]])/25)*30) + AAMC_Raw_Data_for_FY22[[#This Row],[Median]]","v":0},{"$f":"(((AAMC_Raw_Data_for_FY22[[#This Row],[75th]]-AAMC_Raw_Data_for_FY22[[#This Row],[Median]])/25)*35) + AAMC_Raw_Data_for_FY22[[#This Row],[Median]]","v":0},{"$f":"(((AAMC_Raw_Data_for_FY22[[#This Row],[75th]]-AAMC_Raw_Data_for_FY22[[#This Row],[Median]])/25)*40) + AAMC_Raw_Data_for_FY22[[#This Row],[Median]]","v":0}]
[{"$f":"AAMC_Raw_Data_for_FY22[[#This Row],[Source]]&AAMC_Raw_Data_for_FY22[[#This Row],[Type]]&AAMC_Raw_Data_for_FY22[[#This Row],[School Subset]]&AAMC_Raw_Data_for_FY22[[#This Row],[Rank]]&AAMC_Raw_Data_for_FY22[[#This Row],[Degree]]&AAMC_Raw_Data_for_FY22[[#This Row],[Department / Specialty]]&\"L\"","v":"AAMCAcademicPrivateInstructorMDOB/GYN TotalL"},"OB/GYN Total",5,"AAMC","Academic","Private","Instructor","MD","2021-2022",207282,{"$f":"(((AAMC_Raw_Data_for_FY22[[#This Row],[Median]]-AAMC_Raw_Data_for_FY22[[#This Row],[25th]])/25)*5) + AAMC_Raw_Data_for_FY22[[#This Row],[25th]]","v":222934.2},{"$f":"(((AAMC_Raw_Data_for_FY22[[#This Row],[Median]]-AAMC_Raw_Data_for_FY22[[#This Row],[25th]])/25)*10) + AAMC_Raw_Data_for_FY22[[#This Row],[25th]]","v":238586.4},{"$f":"(((AAMC_Raw_Data_for_FY22[[#This Row],[Median]]-AAMC_Raw_Data_for_FY22[[#This Row],[25th]])/25)*15) + AAMC_Raw_Data_for_FY22[[#This Row],[25th]]","v":254238.6},{"$f":"(((AAMC_Raw_Data_for_FY22[[#This Row],[Median]]-AAMC_Raw_Data_for_FY22[[#This Row],[25th]])/25)*20) + AAMC_Raw_Data_for_FY22[[#This Row],[25th]]","v":269890.8},285543,{"$f":"(((AAMC_Raw_Data_for_FY22[[#This Row],[75th]]-AAMC_Raw_Data_for_FY22[[#This Row],[Median]])/25)*5) + AAMC_Raw_Data_for_FY22[[#This Row],[Median]]","v":298528.2},{"$f":"(((AAMC_Raw_Data_for_FY22[[#This Row],[75th]]-AAMC_Raw_Data_for_FY22[[#This Row],[Median]])/25)*10) + AAMC_Raw_Data_for_FY22[[#This Row],[Median]]","v":311513.40000000002},{"$f":"(((AAMC_Raw_Data_for_FY22[[#This Row],[75th]]-AAMC_Raw_Data_for_FY22[[#This Row],[Median]])/25)*15) + AAMC_Raw_Data_for_FY22[[#This Row],[Median]]","v":324498.59999999998},{"$f":"(((AAMC_Raw_Data_for_FY22[[#This Row],[75th]]-AAMC_Raw_Data_for_FY22[[#This Row],[Median]])/25)*20) + AAMC_Raw_Data_for_FY22[[#This Row],[Median]]","v":337483.8},350469,{"$f":"(((AAMC_Raw_Data_for_FY22[[#This Row],[75th]]-AAMC_Raw_Data_for_FY22[[#This Row],[Median]])/25)*30) + AAMC_Raw_Data_for_FY22[[#This Row],[Median]]","v":363454.2},{"$f":"(((AAMC_Raw_Data_for_FY22[[#This Row],[75th]]-AAMC_Raw_Data_for_FY22[[#This Row],[Median]])/25)*35) + AAMC_Raw_Data_for_FY22[[#This Row],[Median]]","v":376439.4},{"$f":"(((AAMC_Raw_Data_for_FY22[[#This Row],[75th]]-AAMC_Raw_Data_for_FY22[[#This Row],[Median]])/25)*40) + AAMC_Raw_Data_for_FY22[[#This Row],[Median]]","v":389424.6}]
[{"$f":"AAMC_Raw_Data_for_FY22[[#This Row],[Source]]&AAMC_Raw_Data_for_FY22[[#This Row],[Type]]&AAMC_Raw_Data_for_FY22[[#This Row],[School Subset]]&AAMC_Raw_Data_for_FY22[[#This Row],[Rank]]&AAMC_Raw_Data_for_FY22[[#This Row],[Degree]]&AAMC_Raw_Data_for_FY22[[#This Row],[Department / Specialty]]&\"L\"","v":"AAMCAcademicPrivateAssistantMDOB/GYN TotalL"},"OB/GYN Total",4,"AAMC","Academic","Private","Assistant","MD","2021-2022",265695,{"$f":"(((AAMC_Raw_Data_for_FY22[[#This Row],[Median]]-AAMC_Raw_Data_for_FY22[[#This Row],[25th]])/25)*5) + AAMC_Raw_Data_for_FY22[[#This Row],[25th]]","v":276852.2},{"$f":"(((AAMC_Raw_Data_for_FY22[[#This Row],[Median]]-AAMC_Raw_Data_for_FY22[[#This Row],[25th]])/25)*10) + AAMC_Raw_Data_for_FY22[[#This Row],[25th]]","v":288009.40000000002},{"$f":"(((AAMC_Raw_Data_for_FY22[[#This Row],[Median]]-AAMC_Raw_Data_for_FY22[[#This Row],[25th]])/25)*15) + AAMC_Raw_Data_for_FY22[[#This Row],[25th]]","v":299166.59999999998},{"$f":"(((AAMC_Raw_Data_for_FY22[[#This Row],[Median]]-AAMC_Raw_Data_for_FY22[[#This Row],[25th]])/25)*20) + AAMC_Raw_Data_for_FY22[[#This Row],[25th]]","v":310323.8},321481,{"$f":"(((AAMC_Raw_Data_for_FY22[[#This Row],[75th]]-AAMC_Raw_Data_for_FY22[[#This Row],[Median]])/25)*5) + AAMC_Raw_Data_for_FY22[[#This Row],[Median]]","v":338305.2},{"$f":"(((AAMC_Raw_Data_for_FY22[[#This Row],[75th]]-AAMC_Raw_Data_for_FY22[[#This Row],[Median]])/25)*10) + AAMC_Raw_Data_for_FY22[[#This Row],[Median]]","v":355129.4},{"$f":"(((AAMC_Raw_Data_for_FY22[[#This Row],[75th]]-AAMC_Raw_Data_for_FY22[[#This Row],[Median]])/25)*15) + AAMC_Raw_Data_for_FY22[[#This Row],[Median]]","v":371953.6},{"$f":"(((AAMC_Raw_Data_for_FY22[[#This Row],[75th]]-AAMC_Raw_Data_for_FY22[[#This Row],[Median]])/25)*20) + AAMC_Raw_Data_for_FY22[[#This Row],[Median]]","v":388777.8},405602,{"$f":"(((AAMC_Raw_Data_for_FY22[[#This Row],[75th]]-AAMC_Raw_Data_for_FY22[[#This Row],[Median]])/25)*30) + AAMC_Raw_Data_for_FY22[[#This Row],[Median]]","v":422426.2},{"$f":"(((AAMC_Raw_Data_for_FY22[[#This Row],[75th]]-AAMC_Raw_Data_for_FY22[[#This Row],[Median]])/25)*35) + AAMC_Raw_Data_for_FY22[[#This Row],[Median]]","v":439250.4},{"$f":"(((AAMC_Raw_Data_for_FY22[[#This Row],[75th]]-AAMC_Raw_Data_for_FY22[[#This Row],[Median]])/25)*40) + AAMC_Raw_Data_for_FY22[[#This Row],[Median]]","v":456074.6}]
[{"$f":"AAMC_Raw_Data_for_FY22[[#This Row],[Source]]&AAMC_Raw_Data_for_FY22[[#This Row],[Type]]&AAMC_Raw_Data_for_FY22[[#This Row],[School Subset]]&AAMC_Raw_Data_for_FY22[[#This Row],[Rank]]&AAMC_Raw_Data_for_FY22[[#This Row],[Degree]]&AAMC_Raw_Data_for_FY22[[#This Row],[Department / Specialty]]&\"L\"","v":"AAMCAcademicPrivateAssociateMDOB/GYN TotalL"},"OB/GYN Total",3,"AAMC","Academic","Private","Associate","MD","2021-2022",310585,{"$f":"(((AAMC_Raw_Data_for_FY22[[#This Row],[Median]]-AAMC_Raw_Data_for_FY22[[#This Row],[25th]])/25)*5) + AAMC_Raw_Data_for_FY22[[#This Row],[25th]]","v":326788.59999999998},{"$f":"(((AAMC_Raw_Data_for_FY22[[#This Row],[Median]]-AAMC_Raw_Data_for_FY22[[#This Row],[25th]])/25)*10) + AAMC_Raw_Data_for_FY22[[#This Row],[25th]]","v":342992.2},{"$f":"(((AAMC_Raw_Data_for_FY22[[#This Row],[Median]]-AAMC_Raw_Data_for_FY22[[#This Row],[25th]])/25)*15) + AAMC_Raw_Data_for_FY22[[#This Row],[25th]]","v":359195.8},{"$f":"(((AAMC_Raw_Data_for_FY22[[#This Row],[Median]]-AAMC_Raw_Data_for_FY22[[#This Row],[25th]])/25)*20) + AAMC_Raw_Data_for_FY22[[#This Row],[25th]]","v":375399.4},391603,{"$f":"(((AAMC_Raw_Data_for_FY22[[#This Row],[75th]]-AAMC_Raw_Data_for_FY22[[#This Row],[Median]])/25)*5) + AAMC_Raw_Data_for_FY22[[#This Row],[Median]]","v":412210.6},{"$f":"(((AAMC_Raw_Data_for_FY22[[#This Row],[75th]]-AAMC_Raw_Data_for_FY22[[#This Row],[Median]])/25)*10) + AAMC_Raw_Data_for_FY22[[#This Row],[Median]]","v":432818.2},{"$f":"(((AAMC_Raw_Data_for_FY22[[#This Row],[75th]]-AAMC_Raw_Data_for_FY22[[#This Row],[Median]])/25)*15) + AAMC_Raw_Data_for_FY22[[#This Row],[Median]]","v":453425.8},{"$f":"(((AAMC_Raw_Data_for_FY22[[#This Row],[75th]]-AAMC_Raw_Data_for_FY22[[#This Row],[Median]])/25)*20) + AAMC_Raw_Data_for_FY22[[#This Row],[Median]]","v":474033.4},494641,{"$f":"(((AAMC_Raw_Data_for_FY22[[#This Row],[75th]]-AAMC_Raw_Data_for_FY22[[#This Row],[Median]])/25)*30) + AAMC_Raw_Data_for_FY22[[#This Row],[Median]]","v":515248.6},{"$f":"(((AAMC_Raw_Data_for_FY22[[#This Row],[75th]]-AAMC_Raw_Data_for_FY22[[#This Row],[Median]])/25)*35) + AAMC_Raw_Data_for_FY22[[#This Row],[Median]]","v":535856.19999999995},{"$f":"(((AAMC_Raw_Data_for_FY22[[#This Row],[75th]]-AAMC_Raw_Data_for_FY22[[#This Row],[Median]])/25)*40) + AAMC_Raw_Data_for_FY22[[#This Row],[Median]]","v":556463.80000000005}]
[{"$f":"AAMC_Raw_Data_for_FY22[[#This Row],[Source]]&AAMC_Raw_Data_for_FY22[[#This Row],[Type]]&AAMC_Raw_Data_for_FY22[[#This Row],[School Subset]]&AAMC_Raw_Data_for_FY22[[#This Row],[Rank]]&AAMC_Raw_Data_for_FY22[[#This Row],[Degree]]&AAMC_Raw_Data_for_FY22[[#This Row],[Department / Specialty]]&\"L\"","v":"AAMCAcademicPrivateProfessorMDOB/GYN TotalL"},"OB/GYN Total",2,"AAMC","Academic","Private","Professor","MD","2021-2022",348677,{"$f":"(((AAMC_Raw_Data_for_FY22[[#This Row],[Median]]-AAMC_Raw_Data_for_FY22[[#This Row],[25th]])/25)*5) + AAMC_Raw_Data_for_FY22[[#This Row],[25th]]","v":362441.6},{"$f":"(((AAMC_Raw_Data_for_FY22[[#This Row],[Median]]-AAMC_Raw_Data_for_FY22[[#This Row],[25th]])/25)*10) + AAMC_Raw_Data_for_FY22[[#This Row],[25th]]","v":376206.2},{"$f":"(((AAMC_Raw_Data_for_FY22[[#This Row],[Median]]-AAMC_Raw_Data_for_FY22[[#This Row],[25th]])/25)*15) + AAMC_Raw_Data_for_FY22[[#This Row],[25th]]","v":389970.8},{"$f":"(((AAMC_Raw_Data_for_FY22[[#This Row],[Median]]-AAMC_Raw_Data_for_FY22[[#This Row],[25th]])/25)*20) + AAMC_Raw_Data_for_FY22[[#This Row],[25th]]","v":403735.4},417500,{"$f":"(((AAMC_Raw_Data_for_FY22[[#This Row],[75th]]-AAMC_Raw_Data_for_FY22[[#This Row],[Median]])/25)*5) + AAMC_Raw_Data_for_FY22[[#This Row],[Median]]","v":437777.4},{"$f":"(((AAMC_Raw_Data_for_FY22[[#This Row],[75th]]-AAMC_Raw_Data_for_FY22[[#This Row],[Median]])/25)*10) + AAMC_Raw_Data_for_FY22[[#This Row],[Median]]","v":458054.8},{"$f":"(((AAMC_Raw_Data_for_FY22[[#This Row],[75th]]-AAMC_Raw_Data_for_FY22[[#This Row],[Median]])/25)*15) + AAMC_Raw_Data_for_FY22[[#This Row],[Median]]","v":478332.2},{"$f":"(((AAMC_Raw_Data_for_FY22[[#This Row],[75th]]-AAMC_Raw_Data_for_FY22[[#This Row],[Median]])/25)*20) + AAMC_Raw_Data_for_FY22[[#This Row],[Median]]","v":498609.6},518887,{"$f":"(((AAMC_Raw_Data_for_FY22[[#This Row],[75th]]-AAMC_Raw_Data_for_FY22[[#This Row],[Median]])/25)*30) + AAMC_Raw_Data_for_FY22[[#This Row],[Median]]","v":539164.4},{"$f":"(((AAMC_Raw_Data_for_FY22[[#This Row],[75th]]-AAMC_Raw_Data_for_FY22[[#This Row],[Median]])/25)*35) + AAMC_Raw_Data_for_FY22[[#This Row],[Median]]","v":559441.80000000005},{"$f":"(((AAMC_Raw_Data_for_FY22[[#This Row],[75th]]-AAMC_Raw_Data_for_FY22[[#This Row],[Median]])/25)*40) + AAMC_Raw_Data_for_FY22[[#This Row],[Median]]","v":579719.19999999995}]
[{"$f":"AAMC_Raw_Data_for_FY22[[#This Row],[Source]]&AAMC_Raw_Data_for_FY22[[#This Row],[Type]]&AAMC_Raw_Data_for_FY22[[#This Row],[School Subset]]&AAMC_Raw_Data_for_FY22[[#This Row],[Rank]]&AAMC_Raw_Data_for_FY22[[#This Row],[Degree]]&AAMC_Raw_Data_for_FY22[[#This Row],[Department / Specialty]]&\"L\"","v":"AAMCAcademicPrivateChiefMDOB/GYN TotalL"},"OB/GYN Total",6,"AAMC","Academic","Private","Chief","MD","2021-2022",390923,{"$f":"(((AAMC_Raw_Data_for_FY22[[#This Row],[Median]]-AAMC_Raw_Data_for_FY22[[#This Row],[25th]])/25)*5) + AAMC_Raw_Data_for_FY22[[#This Row],[25th]]","v":406261.8},{"$f":"(((AAMC_Raw_Data_for_FY22[[#This Row],[Median]]-AAMC_Raw_Data_for_FY22[[#This Row],[25th]])/25)*10) + AAMC_Raw_Data_for_FY22[[#This Row],[25th]]","v":421600.6},{"$f":"(((AAMC_Raw_Data_for_FY22[[#This Row],[Median]]-AAMC_Raw_Data_for_FY22[[#This Row],[25th]])/25)*15) + AAMC_Raw_Data_for_FY22[[#This Row],[25th]]","v":436939.4},{"$f":"(((AAMC_Raw_Data_for_FY22[[#This Row],[Median]]-AAMC_Raw_Data_for_FY22[[#This Row],[25th]])/25)*20) + AAMC_Raw_Data_for_FY22[[#This Row],[25th]]","v":452278.2},467617,{"$f":"(((AAMC_Raw_Data_for_FY22[[#This Row],[75th]]-AAMC_Raw_Data_for_FY22[[#This Row],[Median]])/25)*5) + AAMC_Raw_Data_for_FY22[[#This Row],[Median]]","v":485284.4},{"$f":"(((AAMC_Raw_Data_for_FY22[[#This Row],[75th]]-AAMC_Raw_Data_for_FY22[[#This Row],[Median]])/25)*10) + AAMC_Raw_Data_for_FY22[[#This Row],[Median]]","v":502951.8},{"$f":"(((AAMC_Raw_Data_for_FY22[[#This Row],[75th]]-AAMC_Raw_Data_for_FY22[[#This Row],[Median]])/25)*15) + AAMC_Raw_Data_for_FY22[[#This Row],[Median]]","v":520619.2},{"$f":"(((AAMC_Raw_Data_for_FY22[[#This Row],[75th]]-AAMC_Raw_Data_for_FY22[[#This Row],[Median]])/25)*20) + AAMC_Raw_Data_for_FY22[[#This Row],[Median]]","v":538286.6},555954,{"$f":"(((AAMC_Raw_Data_for_FY22[[#This Row],[75th]]-AAMC_Raw_Data_for_FY22[[#This Row],[Median]])/25)*30) + AAMC_Raw_Data_for_FY22[[#This Row],[Median]]","v":573621.4},{"$f":"(((AAMC_Raw_Data_for_FY22[[#This Row],[75th]]-AAMC_Raw_Data_for_FY22[[#This Row],[Median]])/25)*35) + AAMC_Raw_Data_for_FY22[[#This Row],[Median]]","v":591288.80000000005},{"$f":"(((AAMC_Raw_Data_for_FY22[[#This Row],[75th]]-AAMC_Raw_Data_for_FY22[[#This Row],[Median]])/25)*40) + AAMC_Raw_Data_for_FY22[[#This Row],[Median]]","v":608956.19999999995}]
[{"$f":"AAMC_Raw_Data_for_FY22[[#This Row],[Source]]&AAMC_Raw_Data_for_FY22[[#This Row],[Type]]&AAMC_Raw_Data_for_FY22[[#This Row],[School Subset]]&AAMC_Raw_Data_for_FY22[[#This Row],[Rank]]&AAMC_Raw_Data_for_FY22[[#This Row],[Degree]]&AAMC_Raw_Data_for_FY22[[#This Row],[Department / Specialty]]&\"L\"","v":"AAMCAcademicPrivateChairMDOB/GYN TotalL"},"OB/GYN Total",1,"AAMC","Academic","Private","Chair","MD","2021-2022",647058,{"$f":"(((AAMC_Raw_Data_for_FY22[[#This Row],[Median]]-AAMC_Raw_Data_for_FY22[[#This Row],[25th]])/25)*5) + AAMC_Raw_Data_for_FY22[[#This Row],[25th]]","v":658774},{"$f":"(((AAMC_Raw_Data_for_FY22[[#This Row],[Median]]-AAMC_Raw_Data_for_FY22[[#This Row],[25th]])/25)*10) + AAMC_Raw_Data_for_FY22[[#This Row],[25th]]","v":670490},{"$f":"(((AAMC_Raw_Data_for_FY22[[#This Row],[Median]]-AAMC_Raw_Data_for_FY22[[#This Row],[25th]])/25)*15) + AAMC_Raw_Data_for_FY22[[#This Row],[25th]]","v":682206},{"$f":"(((AAMC_Raw_Data_for_FY22[[#This Row],[Median]]-AAMC_Raw_Data_for_FY22[[#This Row],[25th]])/25)*20) + AAMC_Raw_Data_for_FY22[[#This Row],[25th]]","v":693922},705638,{"$f":"(((AAMC_Raw_Data_for_FY22[[#This Row],[75th]]-AAMC_Raw_Data_for_FY22[[#This Row],[Median]])/25)*5) + AAMC_Raw_Data_for_FY22[[#This Row],[Median]]","v":744315.8},{"$f":"(((AAMC_Raw_Data_for_FY22[[#This Row],[75th]]-AAMC_Raw_Data_for_FY22[[#This Row],[Median]])/25)*10) + AAMC_Raw_Data_for_FY22[[#This Row],[Median]]","v":782993.6},{"$f":"(((AAMC_Raw_Data_for_FY22[[#This Row],[75th]]-AAMC_Raw_Data_for_FY22[[#This Row],[Median]])/25)*15) + AAMC_Raw_Data_for_FY22[[#This Row],[Median]]","v":821671.4},{"$f":"(((AAMC_Raw_Data_for_FY22[[#This Row],[75th]]-AAMC_Raw_Data_for_FY22[[#This Row],[Median]])/25)*20) + AAMC_Raw_Data_for_FY22[[#This Row],[Median]]","v":860349.2},899027,{"$f":"(((AAMC_Raw_Data_for_FY22[[#This Row],[75th]]-AAMC_Raw_Data_for_FY22[[#This Row],[Median]])/25)*30) + AAMC_Raw_Data_for_FY22[[#This Row],[Median]]","v":937704.8},{"$f":"(((AAMC_Raw_Data_for_FY22[[#This Row],[75th]]-AAMC_Raw_Data_for_FY22[[#This Row],[Median]])/25)*35) + AAMC_Raw_Data_for_FY22[[#This Row],[Median]]","v":976382.60000000009},{"$f":"(((AAMC_Raw_Data_for_FY22[[#This Row],[75th]]-AAMC_Raw_Data_for_FY22[[#This Row],[Median]])/25)*40) + AAMC_Raw_Data_for_FY22[[#This Row],[Median]]","v":1015060.4}]
[{"$f":"AAMC_Raw_Data_for_FY22[[#This Row],[Source]]&AAMC_Raw_Data_for_FY22[[#This Row],[Type]]&AAMC_Raw_Data_for_FY22[[#This Row],[School Subset]]&AAMC_Raw_Data_for_FY22[[#This Row],[Rank]]&AAMC_Raw_Data_for_FY22[[#This Row],[Degree]]&AAMC_Raw_Data_for_FY22[[#This Row],[Department / Specialty]]&\"L\"","v":"AAMCAcademicPrivateInstructorMDOB/GYN: GeneralL"},"OB/GYN: General",5,"AAMC","Academic","Private","Instructor","MD","2021-2022",241465,{"$f":"(((AAMC_Raw_Data_for_FY22[[#This Row],[Median]]-AAMC_Raw_Data_for_FY22[[#This Row],[25th]])/25)*5) + AAMC_Raw_Data_for_FY22[[#This Row],[25th]]","v":252365.4},{"$f":"(((AAMC_Raw_Data_for_FY22[[#This Row],[Median]]-AAMC_Raw_Data_for_FY22[[#This Row],[25th]])/25)*10) + AAMC_Raw_Data_for_FY22[[#This Row],[25th]]","v":263265.8},{"$f":"(((AAMC_Raw_Data_for_FY22[[#This Row],[Median]]-AAMC_Raw_Data_for_FY22[[#This Row],[25th]])/25)*15) + AAMC_Raw_Data_for_FY22[[#This Row],[25th]]","v":274166.2},{"$f":"(((AAMC_Raw_Data_for_FY22[[#This Row],[Median]]-AAMC_Raw_Data_for_FY22[[#This Row],[25th]])/25)*20) + AAMC_Raw_Data_for_FY22[[#This Row],[25th]]","v":285066.59999999998},295967,{"$f":"(((AAMC_Raw_Data_for_FY22[[#This Row],[75th]]-AAMC_Raw_Data_for_FY22[[#This Row],[Median]])/25)*5) + AAMC_Raw_Data_for_FY22[[#This Row],[Median]]","v":304071.59999999998},{"$f":"(((AAMC_Raw_Data_for_FY22[[#This Row],[75th]]-AAMC_Raw_Data_for_FY22[[#This Row],[Median]])/25)*10) + AAMC_Raw_Data_for_FY22[[#This Row],[Median]]","v":312176.2},{"$f":"(((AAMC_Raw_Data_for_FY22[[#This Row],[75th]]-AAMC_Raw_Data_for_FY22[[#This Row],[Median]])/25)*15) + AAMC_Raw_Data_for_FY22[[#This Row],[Median]]","v":320280.8},{"$f":"(((AAMC_Raw_Data_for_FY22[[#This Row],[75th]]-AAMC_Raw_Data_for_FY22[[#This Row],[Median]])/25)*20) + AAMC_Raw_Data_for_FY22[[#This Row],[Median]]","v":328385.40000000002},336490,{"$f":"(((AAMC_Raw_Data_for_FY22[[#This Row],[75th]]-AAMC_Raw_Data_for_FY22[[#This Row],[Median]])/25)*30) + AAMC_Raw_Data_for_FY22[[#This Row],[Median]]","v":344594.6},{"$f":"(((AAMC_Raw_Data_for_FY22[[#This Row],[75th]]-AAMC_Raw_Data_for_FY22[[#This Row],[Median]])/25)*35) + AAMC_Raw_Data_for_FY22[[#This Row],[Median]]","v":352699.2},{"$f":"(((AAMC_Raw_Data_for_FY22[[#This Row],[75th]]-AAMC_Raw_Data_for_FY22[[#This Row],[Median]])/25)*40) + AAMC_Raw_Data_for_FY22[[#This Row],[Median]]","v":360803.8}]
[{"$f":"AAMC_Raw_Data_for_FY22[[#This Row],[Source]]&AAMC_Raw_Data_for_FY22[[#This Row],[Type]]&AAMC_Raw_Data_for_FY22[[#This Row],[School Subset]]&AAMC_Raw_Data_for_FY22[[#This Row],[Rank]]&AAMC_Raw_Data_for_FY22[[#This Row],[Degree]]&AAMC_Raw_Data_for_FY22[[#This Row],[Department / Specialty]]&\"L\"","v":"AAMCAcademicPrivateAssistantMDOB/GYN: GeneralL"},"OB/GYN: General",4,"AAMC","Academic","Private","Assistant","MD","2021-2022",256766,{"$f":"(((AAMC_Raw_Data_for_FY22[[#This Row],[Median]]-AAMC_Raw_Data_for_FY22[[#This Row],[25th]])/25)*5) + AAMC_Raw_Data_for_FY22[[#This Row],[25th]]","v":265157.2},{"$f":"(((AAMC_Raw_Data_for_FY22[[#This Row],[Median]]-AAMC_Raw_Data_for_FY22[[#This Row],[25th]])/25)*10) + AAMC_Raw_Data_for_FY22[[#This Row],[25th]]","v":273548.40000000002},{"$f":"(((AAMC_Raw_Data_for_FY22[[#This Row],[Median]]-AAMC_Raw_Data_for_FY22[[#This Row],[25th]])/25)*15) + AAMC_Raw_Data_for_FY22[[#This Row],[25th]]","v":281939.59999999998},{"$f":"(((AAMC_Raw_Data_for_FY22[[#This Row],[Median]]-AAMC_Raw_Data_for_FY22[[#This Row],[25th]])/25)*20) + AAMC_Raw_Data_for_FY22[[#This Row],[25th]]","v":290330.8},298722,{"$f":"(((AAMC_Raw_Data_for_FY22[[#This Row],[75th]]-AAMC_Raw_Data_for_FY22[[#This Row],[Median]])/25)*5) + AAMC_Raw_Data_for_FY22[[#This Row],[Median]]","v":315532},{"$f":"(((AAMC_Raw_Data_for_FY22[[#This Row],[75th]]-AAMC_Raw_Data_for_FY22[[#This Row],[Median]])/25)*10) + AAMC_Raw_Data_for_FY22[[#This Row],[Median]]","v":332342},{"$f":"(((AAMC_Raw_Data_for_FY22[[#This Row],[75th]]-AAMC_Raw_Data_for_FY22[[#This Row],[Median]])/25)*15) + AAMC_Raw_Data_for_FY22[[#This Row],[Median]]","v":349152},{"$f":"(((AAMC_Raw_Data_for_FY22[[#This Row],[75th]]-AAMC_Raw_Data_for_FY22[[#This Row],[Median]])/25)*20) + AAMC_Raw_Data_for_FY22[[#This Row],[Median]]","v":365962},382772,{"$f":"(((AAMC_Raw_Data_for_FY22[[#This Row],[75th]]-AAMC_Raw_Data_for_FY22[[#This Row],[Median]])/25)*30) + AAMC_Raw_Data_for_FY22[[#This Row],[Median]]","v":399582},{"$f":"(((AAMC_Raw_Data_for_FY22[[#This Row],[75th]]-AAMC_Raw_Data_for_FY22[[#This Row],[Median]])/25)*35) + AAMC_Raw_Data_for_FY22[[#This Row],[Median]]","v":416392},{"$f":"(((AAMC_Raw_Data_for_FY22[[#This Row],[75th]]-AAMC_Raw_Data_for_FY22[[#This Row],[Median]])/25)*40) + AAMC_Raw_Data_for_FY22[[#This Row],[Median]]","v":433202}]
[{"$f":"AAMC_Raw_Data_for_FY22[[#This Row],[Source]]&AAMC_Raw_Data_for_FY22[[#This Row],[Type]]&AAMC_Raw_Data_for_FY22[[#This Row],[School Subset]]&AAMC_Raw_Data_for_FY22[[#This Row],[Rank]]&AAMC_Raw_Data_for_FY22[[#This Row],[Degree]]&AAMC_Raw_Data_for_FY22[[#This Row],[Department / Specialty]]&\"L\"","v":"AAMCAcademicPrivateAssociateMDOB/GYN: GeneralL"},"OB/GYN: General",3,"AAMC","Academic","Private","Associate","MD","2021-2022",288044,{"$f":"(((AAMC_Raw_Data_for_FY22[[#This Row],[Median]]-AAMC_Raw_Data_for_FY22[[#This Row],[25th]])/25)*5) + AAMC_Raw_Data_for_FY22[[#This Row],[25th]]","v":295007.8},{"$f":"(((AAMC_Raw_Data_for_FY22[[#This Row],[Median]]-AAMC_Raw_Data_for_FY22[[#This Row],[25th]])/25)*10) + AAMC_Raw_Data_for_FY22[[#This Row],[25th]]","v":301971.59999999998},{"$f":"(((AAMC_Raw_Data_for_FY22[[#This Row],[Median]]-AAMC_Raw_Data_for_FY22[[#This Row],[25th]])/25)*15) + AAMC_Raw_Data_for_FY22[[#This Row],[25th]]","v":308935.40000000002},{"$f":"(((AAMC_Raw_Data_for_FY22[[#This Row],[Median]]-AAMC_Raw_Data_for_FY22[[#This Row],[25th]])/25)*20) + AAMC_Raw_Data_for_FY22[[#This Row],[25th]]","v":315899.2},322863,{"$f":"(((AAMC_Raw_Data_for_FY22[[#This Row],[75th]]-AAMC_Raw_Data_for_FY22[[#This Row],[Median]])/25)*5) + AAMC_Raw_Data_for_FY22[[#This Row],[Median]]","v":339341.2},{"$f":"(((AAMC_Raw_Data_for_FY22[[#This Row],[75th]]-AAMC_Raw_Data_for_FY22[[#This Row],[Median]])/25)*10) + AAMC_Raw_Data_for_FY22[[#This Row],[Median]]","v":355819.4},{"$f":"(((AAMC_Raw_Data_for_FY22[[#This Row],[75th]]-AAMC_Raw_Data_for_FY22[[#This Row],[Median]])/25)*15) + AAMC_Raw_Data_for_FY22[[#This Row],[Median]]","v":372297.6},{"$f":"(((AAMC_Raw_Data_for_FY22[[#This Row],[75th]]-AAMC_Raw_Data_for_FY22[[#This Row],[Median]])/25)*20) + AAMC_Raw_Data_for_FY22[[#This Row],[Median]]","v":388775.8},405254,{"$f":"(((AAMC_Raw_Data_for_FY22[[#This Row],[75th]]-AAMC_Raw_Data_for_FY22[[#This Row],[Median]])/25)*30) + AAMC_Raw_Data_for_FY22[[#This Row],[Median]]","v":421732.2},{"$f":"(((AAMC_Raw_Data_for_FY22[[#This Row],[75th]]-AAMC_Raw_Data_for_FY22[[#This Row],[Median]])/25)*35) + AAMC_Raw_Data_for_FY22[[#This Row],[Median]]","v":438210.4},{"$f":"(((AAMC_Raw_Data_for_FY22[[#This Row],[75th]]-AAMC_Raw_Data_for_FY22[[#This Row],[Median]])/25)*40) + AAMC_Raw_Data_for_FY22[[#This Row],[Median]]","v":454688.6}]
[{"$f":"AAMC_Raw_Data_for_FY22[[#This Row],[Source]]&AAMC_Raw_Data_for_FY22[[#This Row],[Type]]&AAMC_Raw_Data_for_FY22[[#This Row],[School Subset]]&AAMC_Raw_Data_for_FY22[[#This Row],[Rank]]&AAMC_Raw_Data_for_FY22[[#This Row],[Degree]]&AAMC_Raw_Data_for_FY22[[#This Row],[Department / Specialty]]&\"L\"","v":"AAMCAcademicPrivateProfessorMDOB/GYN: GeneralL"},"OB/GYN: General",2,"AAMC","Academic","Private","Professor","MD","2021-2022",328132,{"$f":"(((AAMC_Raw_Data_for_FY22[[#This Row],[Median]]-AAMC_Raw_Data_for_FY22[[#This Row],[25th]])/25)*5) + AAMC_Raw_Data_for_FY22[[#This Row],[25th]]","v":344551.6},{"$f":"(((AAMC_Raw_Data_for_FY22[[#This Row],[Median]]-AAMC_Raw_Data_for_FY22[[#This Row],[25th]])/25)*10) + AAMC_Raw_Data_for_FY22[[#This Row],[25th]]","v":360971.2},{"$f":"(((AAMC_Raw_Data_for_FY22[[#This Row],[Median]]-AAMC_Raw_Data_for_FY22[[#This Row],[25th]])/25)*15) + AAMC_Raw_Data_for_FY22[[#This Row],[25th]]","v":377390.8},{"$f":"(((AAMC_Raw_Data_for_FY22[[#This Row],[Median]]-AAMC_Raw_Data_for_FY22[[#This Row],[25th]])/25)*20) + AAMC_Raw_Data_for_FY22[[#This Row],[25th]]","v":393810.4},410230,{"$f":"(((AAMC_Raw_Data_for_FY22[[#This Row],[75th]]-AAMC_Raw_Data_for_FY22[[#This Row],[Median]])/25)*5) + AAMC_Raw_Data_for_FY22[[#This Row],[Median]]","v":429592.2},{"$f":"(((AAMC_Raw_Data_for_FY22[[#This Row],[75th]]-AAMC_Raw_Data_for_FY22[[#This Row],[Median]])/25)*10) + AAMC_Raw_Data_for_FY22[[#This Row],[Median]]","v":448954.4},{"$f":"(((AAMC_Raw_Data_for_FY22[[#This Row],[75th]]-AAMC_Raw_Data_for_FY22[[#This Row],[Median]])/25)*15) + AAMC_Raw_Data_for_FY22[[#This Row],[Median]]","v":468316.6},{"$f":"(((AAMC_Raw_Data_for_FY22[[#This Row],[75th]]-AAMC_Raw_Data_for_FY22[[#This Row],[Median]])/25)*20) + AAMC_Raw_Data_for_FY22[[#This Row],[Median]]","v":487678.8},507041,{"$f":"(((AAMC_Raw_Data_for_FY22[[#This Row],[75th]]-AAMC_Raw_Data_for_FY22[[#This Row],[Median]])/25)*30) + AAMC_Raw_Data_for_FY22[[#This Row],[Median]]","v":526403.19999999995},{"$f":"(((AAMC_Raw_Data_for_FY22[[#This Row],[75th]]-AAMC_Raw_Data_for_FY22[[#This Row],[Median]])/25)*35) + AAMC_Raw_Data_for_FY22[[#This Row],[Median]]","v":545765.4},{"$f":"(((AAMC_Raw_Data_for_FY22[[#This Row],[75th]]-AAMC_Raw_Data_for_FY22[[#This Row],[Median]])/25)*40) + AAMC_Raw_Data_for_FY22[[#This Row],[Median]]","v":565127.6}]
[{"$f":"AAMC_Raw_Data_for_FY22[[#This Row],[Source]]&AAMC_Raw_Data_for_FY22[[#This Row],[Type]]&AAMC_Raw_Data_for_FY22[[#This Row],[School Subset]]&AAMC_Raw_Data_for_FY22[[#This Row],[Rank]]&AAMC_Raw_Data_for_FY22[[#This Row],[Degree]]&AAMC_Raw_Data_for_FY22[[#This Row],[Department / Specialty]]&\"L\"","v":"AAMCAcademicPrivateChiefMDOB/GYN: GeneralL"},"OB/GYN: General",6,"AAMC","Academic","Private","Chief","MD","2021-2022",343186,{"$f":"(((AAMC_Raw_Data_for_FY22[[#This Row],[Median]]-AAMC_Raw_Data_for_FY22[[#This Row],[25th]])/25)*5) + AAMC_Raw_Data_for_FY22[[#This Row],[25th]]","v":358214},{"$f":"(((AAMC_Raw_Data_for_FY22[[#This Row],[Median]]-AAMC_Raw_Data_for_FY22[[#This Row],[25th]])/25)*10) + AAMC_Raw_Data_for_FY22[[#This Row],[25th]]","v":373242},{"$f":"(((AAMC_Raw_Data_for_FY22[[#This Row],[Median]]-AAMC_Raw_Data_for_FY22[[#This Row],[25th]])/25)*15) + AAMC_Raw_Data_for_FY22[[#This Row],[25th]]","v":388270},{"$f":"(((AAMC_Raw_Data_for_FY22[[#This Row],[Median]]-AAMC_Raw_Data_for_FY22[[#This Row],[25th]])/25)*20) + AAMC_Raw_Data_for_FY22[[#This Row],[25th]]","v":403298},418326,{"$f":"(((AAMC_Raw_Data_for_FY22[[#This Row],[75th]]-AAMC_Raw_Data_for_FY22[[#This Row],[Median]])/25)*5) + AAMC_Raw_Data_for_FY22[[#This Row],[Median]]","v":429697.2},{"$f":"(((AAMC_Raw_Data_for_FY22[[#This Row],[75th]]-AAMC_Raw_Data_for_FY22[[#This Row],[Median]])/25)*10) + AAMC_Raw_Data_for_FY22[[#This Row],[Median]]","v":441068.4},{"$f":"(((AAMC_Raw_Data_for_FY22[[#This Row],[75th]]-AAMC_Raw_Data_for_FY22[[#This Row],[Median]])/25)*15) + AAMC_Raw_Data_for_FY22[[#This Row],[Median]]","v":452439.6},{"$f":"(((AAMC_Raw_Data_for_FY22[[#This Row],[75th]]-AAMC_Raw_Data_for_FY22[[#This Row],[Median]])/25)*20) + AAMC_Raw_Data_for_FY22[[#This Row],[Median]]","v":463810.8},475182,{"$f":"(((AAMC_Raw_Data_for_FY22[[#This Row],[75th]]-AAMC_Raw_Data_for_FY22[[#This Row],[Median]])/25)*30) + AAMC_Raw_Data_for_FY22[[#This Row],[Median]]","v":486553.2},{"$f":"(((AAMC_Raw_Data_for_FY22[[#This Row],[75th]]-AAMC_Raw_Data_for_FY22[[#This Row],[Median]])/25)*35) + AAMC_Raw_Data_for_FY22[[#This Row],[Median]]","v":497924.4},{"$f":"(((AAMC_Raw_Data_for_FY22[[#This Row],[75th]]-AAMC_Raw_Data_for_FY22[[#This Row],[Median]])/25)*40) + AAMC_Raw_Data_for_FY22[[#This Row],[Median]]","v":509295.6}]
[{"$f":"AAMC_Raw_Data_for_FY22[[#This Row],[Source]]&AAMC_Raw_Data_for_FY22[[#This Row],[Type]]&AAMC_Raw_Data_for_FY22[[#This Row],[School Subset]]&AAMC_Raw_Data_for_FY22[[#This Row],[Rank]]&AAMC_Raw_Data_for_FY22[[#This Row],[Degree]]&AAMC_Raw_Data_for_FY22[[#This Row],[Department / Specialty]]&\"L\"","v":"AAMCAcademicPrivateChairMDOB/GYN: GeneralL"},"OB/GYN: General",1,"AAMC","Academic","Private","Chair","MD","2021-2022",702016,{"$f":"(((AAMC_Raw_Data_for_FY22[[#This Row],[Median]]-AAMC_Raw_Data_for_FY22[[#This Row],[25th]])/25)*5) + AAMC_Raw_Data_for_FY22[[#This Row],[25th]]","v":732236.4},{"$f":"(((AAMC_Raw_Data_for_FY22[[#This Row],[Median]]-AAMC_Raw_Data_for_FY22[[#This Row],[25th]])/25)*10) + AAMC_Raw_Data_for_FY22[[#This Row],[25th]]","v":762456.8},{"$f":"(((AAMC_Raw_Data_for_FY22[[#This Row],[Median]]-AAMC_Raw_Data_for_FY22[[#This Row],[25th]])/25)*15) + AAMC_Raw_Data_for_FY22[[#This Row],[25th]]","v":792677.2},{"$f":"(((AAMC_Raw_Data_for_FY22[[#This Row],[Median]]-AAMC_Raw_Data_for_FY22[[#This Row],[25th]])/25)*20) + AAMC_Raw_Data_for_FY22[[#This Row],[25th]]","v":822897.6},853118,{"$f":"(((AAMC_Raw_Data_for_FY22[[#This Row],[75th]]-AAMC_Raw_Data_for_FY22[[#This Row],[Median]])/25)*5) + AAMC_Raw_Data_for_FY22[[#This Row],[Median]]","v":900129.8},{"$f":"(((AAMC_Raw_Data_for_FY22[[#This Row],[75th]]-AAMC_Raw_Data_for_FY22[[#This Row],[Median]])/25)*10) + AAMC_Raw_Data_for_FY22[[#This Row],[Median]]","v":947141.6},{"$f":"(((AAMC_Raw_Data_for_FY22[[#This Row],[75th]]-AAMC_Raw_Data_for_FY22[[#This Row],[Median]])/25)*15) + AAMC_Raw_Data_for_FY22[[#This Row],[Median]]","v":994153.4},{"$f":"(((AAMC_Raw_Data_for_FY22[[#This Row],[75th]]-AAMC_Raw_Data_for_FY22[[#This Row],[Median]])/25)*20) + AAMC_Raw_Data_for_FY22[[#This Row],[Median]]","v":1041165.2},1088177,{"$f":"(((AAMC_Raw_Data_for_FY22[[#This Row],[75th]]-AAMC_Raw_Data_for_FY22[[#This Row],[Median]])/25)*30) + AAMC_Raw_Data_for_FY22[[#This Row],[Median]]","v":1135188.8},{"$f":"(((AAMC_Raw_Data_for_FY22[[#This Row],[75th]]-AAMC_Raw_Data_for_FY22[[#This Row],[Median]])/25)*35) + AAMC_Raw_Data_for_FY22[[#This Row],[Median]]","v":1182200.6000000001},{"$f":"(((AAMC_Raw_Data_for_FY22[[#This Row],[75th]]-AAMC_Raw_Data_for_FY22[[#This Row],[Median]])/25)*40) + AAMC_Raw_Data_for_FY22[[#This Row],[Median]]","v":1229212.3999999999}]
[{"$f":"AAMC_Raw_Data_for_FY22[[#This Row],[Source]]&AAMC_Raw_Data_for_FY22[[#This Row],[Type]]&AAMC_Raw_Data_for_FY22[[#This Row],[School Subset]]&AAMC_Raw_Data_for_FY22[[#This Row],[Rank]]&AAMC_Raw_Data_for_FY22[[#This Row],[Degree]]&AAMC_Raw_Data_for_FY22[[#This Row],[Department / Specialty]]&\"L\"","v":"AAMCAcademicPrivateInstructorMDOB/GYN: Gynecologic OncologyL"},"OB/GYN: Gynecologic Oncology",5,"AAMC","Academic","Private","Instructor","MD","2021-2022",148251,{"$f":"(((AAMC_Raw_Data_for_FY22[[#This Row],[Median]]-AAMC_Raw_Data_for_FY22[[#This Row],[25th]])/25)*5) + AAMC_Raw_Data_for_FY22[[#This Row],[25th]]","v":181082},{"$f":"(((AAMC_Raw_Data_for_FY22[[#This Row],[Median]]-AAMC_Raw_Data_for_FY22[[#This Row],[25th]])/25)*10) + AAMC_Raw_Data_for_FY22[[#This Row],[25th]]","v":213913},{"$f":"(((AAMC_Raw_Data_for_FY22[[#This Row],[Median]]-AAMC_Raw_Data_for_FY22[[#This Row],[25th]])/25)*15) + AAMC_Raw_Data_for_FY22[[#This Row],[25th]]","v":246744},{"$f":"(((AAMC_Raw_Data_for_FY22[[#This Row],[Median]]-AAMC_Raw_Data_for_FY22[[#This Row],[25th]])/25)*20) + AAMC_Raw_Data_for_FY22[[#This Row],[25th]]","v":279575},312406,{"$f":"(((AAMC_Raw_Data_for_FY22[[#This Row],[75th]]-AAMC_Raw_Data_for_FY22[[#This Row],[Median]])/25)*5) + AAMC_Raw_Data_for_FY22[[#This Row],[Median]]","v":327827.20000000001},{"$f":"(((AAMC_Raw_Data_for_FY22[[#This Row],[75th]]-AAMC_Raw_Data_for_FY22[[#This Row],[Median]])/25)*10) + AAMC_Raw_Data_for_FY22[[#This Row],[Median]]","v":343248.4},{"$f":"(((AAMC_Raw_Data_for_FY22[[#This Row],[75th]]-AAMC_Raw_Data_for_FY22[[#This Row],[Median]])/25)*15) + AAMC_Raw_Data_for_FY22[[#This Row],[Median]]","v":358669.6},{"$f":"(((AAMC_Raw_Data_for_FY22[[#This Row],[75th]]-AAMC_Raw_Data_for_FY22[[#This Row],[Median]])/25)*20) + AAMC_Raw_Data_for_FY22[[#This Row],[Median]]","v":374090.8},389512,{"$f":"(((AAMC_Raw_Data_for_FY22[[#This Row],[75th]]-AAMC_Raw_Data_for_FY22[[#This Row],[Median]])/25)*30) + AAMC_Raw_Data_for_FY22[[#This Row],[Median]]","v":404933.2},{"$f":"(((AAMC_Raw_Data_for_FY22[[#This Row],[75th]]-AAMC_Raw_Data_for_FY22[[#This Row],[Median]])/25)*35) + AAMC_Raw_Data_for_FY22[[#This Row],[Median]]","v":420354.4},{"$f":"(((AAMC_Raw_Data_for_FY22[[#This Row],[75th]]-AAMC_Raw_Data_for_FY22[[#This Row],[Median]])/25)*40) + AAMC_Raw_Data_for_FY22[[#This Row],[Median]]","v":435775.6}]
[{"$f":"AAMC_Raw_Data_for_FY22[[#This Row],[Source]]&AAMC_Raw_Data_for_FY22[[#This Row],[Type]]&AAMC_Raw_Data_for_FY22[[#This Row],[School Subset]]&AAMC_Raw_Data_for_FY22[[#This Row],[Rank]]&AAMC_Raw_Data_for_FY22[[#This Row],[Degree]]&AAMC_Raw_Data_for_FY22[[#This Row],[Department / Specialty]]&\"L\"","v":"AAMCAcademicPrivateAssistantMDOB/GYN: Gynecologic OncologyL"},"OB/GYN: Gynecologic Oncology",4,"AAMC","Academic","Private","Assistant","MD","2021-2022",314312,{"$f":"(((AAMC_Raw_Data_for_FY22[[#This Row],[Median]]-AAMC_Raw_Data_for_FY22[[#This Row],[25th]])/25)*5) + AAMC_Raw_Data_for_FY22[[#This Row],[25th]]","v":324766.8},{"$f":"(((AAMC_Raw_Data_for_FY22[[#This Row],[Median]]-AAMC_Raw_Data_for_FY22[[#This Row],[25th]])/25)*10) + AAMC_Raw_Data_for_FY22[[#This Row],[25th]]","v":335221.59999999998},{"$f":"(((AAMC_Raw_Data_for_FY22[[#This Row],[Median]]-AAMC_Raw_Data_for_FY22[[#This Row],[25th]])/25)*15) + AAMC_Raw_Data_for_FY22[[#This Row],[25th]]","v":345676.4},{"$f":"(((AAMC_Raw_Data_for_FY22[[#This Row],[Median]]-AAMC_Raw_Data_for_FY22[[#This Row],[25th]])/25)*20) + AAMC_Raw_Data_for_FY22[[#This Row],[25th]]","v":356131.2},366586,{"$f":"(((AAMC_Raw_Data_for_FY22[[#This Row],[75th]]-AAMC_Raw_Data_for_FY22[[#This Row],[Median]])/25)*5) + AAMC_Raw_Data_for_FY22[[#This Row],[Median]]","v":383675},{"$f":"(((AAMC_Raw_Data_for_FY22[[#This Row],[75th]]-AAMC_Raw_Data_for_FY22[[#This Row],[Median]])/25)*10) + AAMC_Raw_Data_for_FY22[[#This Row],[Median]]","v":400764},{"$f":"(((AAMC_Raw_Data_for_FY22[[#This Row],[75th]]-AAMC_Raw_Data_for_FY22[[#This Row],[Median]])/25)*15) + AAMC_Raw_Data_for_FY22[[#This Row],[Median]]","v":417853},{"$f":"(((AAMC_Raw_Data_for_FY22[[#This Row],[75th]]-AAMC_Raw_Data_for_FY22[[#This Row],[Median]])/25)*20) + AAMC_Raw_Data_for_FY22[[#This Row],[Median]]","v":434942},452031,{"$f":"(((AAMC_Raw_Data_for_FY22[[#This Row],[75th]]-AAMC_Raw_Data_for_FY22[[#This Row],[Median]])/25)*30) + AAMC_Raw_Data_for_FY22[[#This Row],[Median]]","v":469120},{"$f":"(((AAMC_Raw_Data_for_FY22[[#This Row],[75th]]-AAMC_Raw_Data_for_FY22[[#This Row],[Median]])/25)*35) + AAMC_Raw_Data_for_FY22[[#This Row],[Median]]","v":486209},{"$f":"(((AAMC_Raw_Data_for_FY22[[#This Row],[75th]]-AAMC_Raw_Data_for_FY22[[#This Row],[Median]])/25)*40) + AAMC_Raw_Data_for_FY22[[#This Row],[Median]]","v":503298}]
[{"$f":"AAMC_Raw_Data_for_FY22[[#This Row],[Source]]&AAMC_Raw_Data_for_FY22[[#This Row],[Type]]&AAMC_Raw_Data_for_FY22[[#This Row],[School Subset]]&AAMC_Raw_Data_for_FY22[[#This Row],[Rank]]&AAMC_Raw_Data_for_FY22[[#This Row],[Degree]]&AAMC_Raw_Data_for_FY22[[#This Row],[Department / Specialty]]&\"L\"","v":"AAMCAcademicPrivateAssociateMDOB/GYN: Gynecologic OncologyL"},"OB/GYN: Gynecologic Oncology",3,"AAMC","Academic","Private","Associate","MD","2021-2022",377012,{"$f":"(((AAMC_Raw_Data_for_FY22[[#This Row],[Median]]-AAMC_Raw_Data_for_FY22[[#This Row],[25th]])/25)*5) + AAMC_Raw_Data_for_FY22[[#This Row],[25th]]","v":391609.59999999998},{"$f":"(((AAMC_Raw_Data_for_FY22[[#This Row],[Median]]-AAMC_Raw_Data_for_FY22[[#This Row],[25th]])/25)*10) + AAMC_Raw_Data_for_FY22[[#This Row],[25th]]","v":406207.2},{"$f":"(((AAMC_Raw_Data_for_FY22[[#This Row],[Median]]-AAMC_Raw_Data_for_FY22[[#This Row],[25th]])/25)*15) + AAMC_Raw_Data_for_FY22[[#This Row],[25th]]","v":420804.8},{"$f":"(((AAMC_Raw_Data_for_FY22[[#This Row],[Median]]-AAMC_Raw_Data_for_FY22[[#This Row],[25th]])/25)*20) + AAMC_Raw_Data_for_FY22[[#This Row],[25th]]","v":435402.4},450000,{"$f":"(((AAMC_Raw_Data_for_FY22[[#This Row],[75th]]-AAMC_Raw_Data_for_FY22[[#This Row],[Median]])/25)*5) + AAMC_Raw_Data_for_FY22[[#This Row],[Median]]","v":475274.2},{"$f":"(((AAMC_Raw_Data_for_FY22[[#This Row],[75th]]-AAMC_Raw_Data_for_FY22[[#This Row],[Median]])/25)*10) + AAMC_Raw_Data_for_FY22[[#This Row],[Median]]","v":500548.4},{"$f":"(((AAMC_Raw_Data_for_FY22[[#This Row],[75th]]-AAMC_Raw_Data_for_FY22[[#This Row],[Median]])/25)*15) + AAMC_Raw_Data_for_FY22[[#This Row],[Median]]","v":525822.6},{"$f":"(((AAMC_Raw_Data_for_FY22[[#This Row],[75th]]-AAMC_Raw_Data_for_FY22[[#This Row],[Median]])/25)*20) + AAMC_Raw_Data_for_FY22[[#This Row],[Median]]","v":551096.80000000005},576371,{"$f":"(((AAMC_Raw_Data_for_FY22[[#This Row],[75th]]-AAMC_Raw_Data_for_FY22[[#This Row],[Median]])/25)*30) + AAMC_Raw_Data_for_FY22[[#This Row],[Median]]","v":601645.19999999995},{"$f":"(((AAMC_Raw_Data_for_FY22[[#This Row],[75th]]-AAMC_Raw_Data_for_FY22[[#This Row],[Median]])/25)*35) + AAMC_Raw_Data_for_FY22[[#This Row],[Median]]","v":626919.4},{"$f":"(((AAMC_Raw_Data_for_FY22[[#This Row],[75th]]-AAMC_Raw_Data_for_FY22[[#This Row],[Median]])/25)*40) + AAMC_Raw_Data_for_FY22[[#This Row],[Median]]","v":652193.6}]
[{"$f":"AAMC_Raw_Data_for_FY22[[#This Row],[Source]]&AAMC_Raw_Data_for_FY22[[#This Row],[Type]]&AAMC_Raw_Data_for_FY22[[#This Row],[School Subset]]&AAMC_Raw_Data_for_FY22[[#This Row],[Rank]]&AAMC_Raw_Data_for_FY22[[#This Row],[Degree]]&AAMC_Raw_Data_for_FY22[[#This Row],[Department / Specialty]]&\"L\"","v":"AAMCAcademicPrivateProfessorMDOB/GYN: Gynecologic OncologyL"},"OB/GYN: Gynecologic Oncology",2,"AAMC","Academic","Private","Professor","MD","2021-2022",421099,{"$f":"(((AAMC_Raw_Data_for_FY22[[#This Row],[Median]]-AAMC_Raw_Data_for_FY22[[#This Row],[25th]])/25)*5) + AAMC_Raw_Data_for_FY22[[#This Row],[25th]]","v":433481.2},{"$f":"(((AAMC_Raw_Data_for_FY22[[#This Row],[Median]]-AAMC_Raw_Data_for_FY22[[#This Row],[25th]])/25)*10) + AAMC_Raw_Data_for_FY22[[#This Row],[25th]]","v":445863.4},{"$f":"(((AAMC_Raw_Data_for_FY22[[#This Row],[Median]]-AAMC_Raw_Data_for_FY22[[#This Row],[25th]])/25)*15) + AAMC_Raw_Data_for_FY22[[#This Row],[25th]]","v":458245.6},{"$f":"(((AAMC_Raw_Data_for_FY22[[#This Row],[Median]]-AAMC_Raw_Data_for_FY22[[#This Row],[25th]])/25)*20) + AAMC_Raw_Data_for_FY22[[#This Row],[25th]]","v":470627.8},483010,{"$f":"(((AAMC_Raw_Data_for_FY22[[#This Row],[75th]]-AAMC_Raw_Data_for_FY22[[#This Row],[Median]])/25)*5) + AAMC_Raw_Data_for_FY22[[#This Row],[Median]]","v":513880},{"$f":"(((AAMC_Raw_Data_for_FY22[[#This Row],[75th]]-AAMC_Raw_Data_for_FY22[[#This Row],[Median]])/25)*10) + AAMC_Raw_Data_for_FY22[[#This Row],[Median]]","v":544750},{"$f":"(((AAMC_Raw_Data_for_FY22[[#This Row],[75th]]-AAMC_Raw_Data_for_FY22[[#This Row],[Median]])/25)*15) + AAMC_Raw_Data_for_FY22[[#This Row],[Median]]","v":575620},{"$f":"(((AAMC_Raw_Data_for_FY22[[#This Row],[75th]]-AAMC_Raw_Data_for_FY22[[#This Row],[Median]])/25)*20) + AAMC_Raw_Data_for_FY22[[#This Row],[Median]]","v":606490},637360,{"$f":"(((AAMC_Raw_Data_for_FY22[[#This Row],[75th]]-AAMC_Raw_Data_for_FY22[[#This Row],[Median]])/25)*30) + AAMC_Raw_Data_for_FY22[[#This Row],[Median]]","v":668230},{"$f":"(((AAMC_Raw_Data_for_FY22[[#This Row],[75th]]-AAMC_Raw_Data_for_FY22[[#This Row],[Median]])/25)*35) + AAMC_Raw_Data_for_FY22[[#This Row],[Median]]","v":699100},{"$f":"(((AAMC_Raw_Data_for_FY22[[#This Row],[75th]]-AAMC_Raw_Data_for_FY22[[#This Row],[Median]])/25)*40) + AAMC_Raw_Data_for_FY22[[#This Row],[Median]]","v":729970}]
[{"$f":"AAMC_Raw_Data_for_FY22[[#This Row],[Source]]&AAMC_Raw_Data_for_FY22[[#This Row],[Type]]&AAMC_Raw_Data_for_FY22[[#This Row],[School Subset]]&AAMC_Raw_Data_for_FY22[[#This Row],[Rank]]&AAMC_Raw_Data_for_FY22[[#This Row],[Degree]]&AAMC_Raw_Data_for_FY22[[#This Row],[Department / Specialty]]&\"L\"","v":"AAMCAcademicPrivateChiefMDOB/GYN: Gynecologic OncologyL"},"OB/GYN: Gynecologic Oncology",6,"AAMC","Academic","Private","Chief","MD","2021-2022",532202,{"$f":"(((AAMC_Raw_Data_for_FY22[[#This Row],[Median]]-AAMC_Raw_Data_for_FY22[[#This Row],[25th]])/25)*5) + AAMC_Raw_Data_for_FY22[[#This Row],[25th]]","v":539761.6},{"$f":"(((AAMC_Raw_Data_for_FY22[[#This Row],[Median]]-AAMC_Raw_Data_for_FY22[[#This Row],[25th]])/25)*10) + AAMC_Raw_Data_for_FY22[[#This Row],[25th]]","v":547321.19999999995},{"$f":"(((AAMC_Raw_Data_for_FY22[[#This Row],[Median]]-AAMC_Raw_Data_for_FY22[[#This Row],[25th]])/25)*15) + AAMC_Raw_Data_for_FY22[[#This Row],[25th]]","v":554880.80000000005},{"$f":"(((AAMC_Raw_Data_for_FY22[[#This Row],[Median]]-AAMC_Raw_Data_for_FY22[[#This Row],[25th]])/25)*20) + AAMC_Raw_Data_for_FY22[[#This Row],[25th]]","v":562440.4},570000,{"$f":"(((AAMC_Raw_Data_for_FY22[[#This Row],[75th]]-AAMC_Raw_Data_for_FY22[[#This Row],[Median]])/25)*5) + AAMC_Raw_Data_for_FY22[[#This Row],[Median]]","v":585947.19999999995},{"$f":"(((AAMC_Raw_Data_for_FY22[[#This Row],[75th]]-AAMC_Raw_Data_for_FY22[[#This Row],[Median]])/25)*10) + AAMC_Raw_Data_for_FY22[[#This Row],[Median]]","v":601894.40000000002},{"$f":"(((AAMC_Raw_Data_for_FY22[[#This Row],[75th]]-AAMC_Raw_Data_for_FY22[[#This Row],[Median]])/25)*15) + AAMC_Raw_Data_for_FY22[[#This Row],[Median]]","v":617841.6},{"$f":"(((AAMC_Raw_Data_for_FY22[[#This Row],[75th]]-AAMC_Raw_Data_for_FY22[[#This Row],[Median]])/25)*20) + AAMC_Raw_Data_for_FY22[[#This Row],[Median]]","v":633788.80000000005},649736,{"$f":"(((AAMC_Raw_Data_for_FY22[[#This Row],[75th]]-AAMC_Raw_Data_for_FY22[[#This Row],[Median]])/25)*30) + AAMC_Raw_Data_for_FY22[[#This Row],[Median]]","v":665683.19999999995},{"$f":"(((AAMC_Raw_Data_for_FY22[[#This Row],[75th]]-AAMC_Raw_Data_for_FY22[[#This Row],[Median]])/25)*35) + AAMC_Raw_Data_for_FY22[[#This Row],[Median]]","v":681630.4},{"$f":"(((AAMC_Raw_Data_for_FY22[[#This Row],[75th]]-AAMC_Raw_Data_for_FY22[[#This Row],[Median]])/25)*40) + AAMC_Raw_Data_for_FY22[[#This Row],[Median]]","v":697577.6}]
[{"$f":"AAMC_Raw_Data_for_FY22[[#This Row],[Source]]&AAMC_Raw_Data_for_FY22[[#This Row],[Type]]&AAMC_Raw_Data_for_FY22[[#This Row],[School Subset]]&AAMC_Raw_Data_for_FY22[[#This Row],[Rank]]&AAMC_Raw_Data_for_FY22[[#This Row],[Degree]]&AAMC_Raw_Data_for_FY22[[#This Row],[Department / Specialty]]&\"L\"","v":"AAMCAcademicPrivateChairMDOB/GYN: Gynecologic OncologyL"},"OB/GYN: Gynecologic Oncology",1,"AAMC","Academic","Private","Chair","MD","2021-2022",664582,{"$f":"(((AAMC_Raw_Data_for_FY22[[#This Row],[Median]]-AAMC_Raw_Data_for_FY22[[#This Row],[25th]])/25)*5) + AAMC_Raw_Data_for_FY22[[#This Row],[25th]]","v":669912.4},{"$f":"(((AAMC_Raw_Data_for_FY22[[#This Row],[Median]]-AAMC_Raw_Data_for_FY22[[#This Row],[25th]])/25)*10) + AAMC_Raw_Data_for_FY22[[#This Row],[25th]]","v":675242.8},{"$f":"(((AAMC_Raw_Data_for_FY22[[#This Row],[Median]]-AAMC_Raw_Data_for_FY22[[#This Row],[25th]])/25)*15) + AAMC_Raw_Data_for_FY22[[#This Row],[25th]]","v":680573.2},{"$f":"(((AAMC_Raw_Data_for_FY22[[#This Row],[Median]]-AAMC_Raw_Data_for_FY22[[#This Row],[25th]])/25)*20) + AAMC_Raw_Data_for_FY22[[#This Row],[25th]]","v":685903.6},691234,{"$f":"(((AAMC_Raw_Data_for_FY22[[#This Row],[75th]]-AAMC_Raw_Data_for_FY22[[#This Row],[Median]])/25)*5) + AAMC_Raw_Data_for_FY22[[#This Row],[Median]]","v":720722.4},{"$f":"(((AAMC_Raw_Data_for_FY22[[#This Row],[75th]]-AAMC_Raw_Data_for_FY22[[#This Row],[Median]])/25)*10) + AAMC_Raw_Data_for_FY22[[#This Row],[Median]]","v":750210.8},{"$f":"(((AAMC_Raw_Data_for_FY22[[#This Row],[75th]]-AAMC_Raw_Data_for_FY22[[#This Row],[Median]])/25)*15) + AAMC_Raw_Data_for_FY22[[#This Row],[Median]]","v":779699.19999999995},{"$f":"(((AAMC_Raw_Data_for_FY22[[#This Row],[75th]]-AAMC_Raw_Data_for_FY22[[#This Row],[Median]])/25)*20) + AAMC_Raw_Data_for_FY22[[#This Row],[Median]]","v":809187.6},838676,{"$f":"(((AAMC_Raw_Data_for_FY22[[#This Row],[75th]]-AAMC_Raw_Data_for_FY22[[#This Row],[Median]])/25)*30) + AAMC_Raw_Data_for_FY22[[#This Row],[Median]]","v":868164.4},{"$f":"(((AAMC_Raw_Data_for_FY22[[#This Row],[75th]]-AAMC_Raw_Data_for_FY22[[#This Row],[Median]])/25)*35) + AAMC_Raw_Data_for_FY22[[#This Row],[Median]]","v":897652.8},{"$f":"(((AAMC_Raw_Data_for_FY22[[#This Row],[75th]]-AAMC_Raw_Data_for_FY22[[#This Row],[Median]])/25)*40) + AAMC_Raw_Data_for_FY22[[#This Row],[Median]]","v":927141.2}]
[{"$f":"AAMC_Raw_Data_for_FY22[[#This Row],[Source]]&AAMC_Raw_Data_for_FY22[[#This Row],[Type]]&AAMC_Raw_Data_for_FY22[[#This Row],[School Subset]]&AAMC_Raw_Data_for_FY22[[#This Row],[Rank]]&AAMC_Raw_Data_for_FY22[[#This Row],[Degree]]&AAMC_Raw_Data_for_FY22[[#This Row],[Department / Specialty]]&\"L\"","v":"AAMCAcademicPrivateInstructorMDOB/GYN: Maternal & FetalL"},"OB/GYN: Maternal & Fetal",5,"AAMC","Academic","Private","Instructor","MD","2021-2022",97988,{"$f":"(((AAMC_Raw_Data_for_FY22[[#This Row],[Median]]-AAMC_Raw_Data_for_FY22[[#This Row],[25th]])/25)*5) + AAMC_Raw_Data_for_FY22[[#This Row],[25th]]","v":133634.6},{"$f":"(((AAMC_Raw_Data_for_FY22[[#This Row],[Median]]-AAMC_Raw_Data_for_FY22[[#This Row],[25th]])/25)*10) + AAMC_Raw_Data_for_FY22[[#This Row],[25th]]","v":169281.2},{"$f":"(((AAMC_Raw_Data_for_FY22[[#This Row],[Median]]-AAMC_Raw_Data_for_FY22[[#This Row],[25th]])/25)*15) + AAMC_Raw_Data_for_FY22[[#This Row],[25th]]","v":204927.8},{"$f":"(((AAMC_Raw_Data_for_FY22[[#This Row],[Median]]-AAMC_Raw_Data_for_FY22[[#This Row],[25th]])/25)*20) + AAMC_Raw_Data_for_FY22[[#This Row],[25th]]","v":240574.4},276221,{"$f":"(((AAMC_Raw_Data_for_FY22[[#This Row],[75th]]-AAMC_Raw_Data_for_FY22[[#This Row],[Median]])/25)*5) + AAMC_Raw_Data_for_FY22[[#This Row],[Median]]","v":297076.8},{"$f":"(((AAMC_Raw_Data_for_FY22[[#This Row],[75th]]-AAMC_Raw_Data_for_FY22[[#This Row],[Median]])/25)*10) + AAMC_Raw_Data_for_FY22[[#This Row],[Median]]","v":317932.59999999998},{"$f":"(((AAMC_Raw_Data_for_FY22[[#This Row],[75th]]-AAMC_Raw_Data_for_FY22[[#This Row],[Median]])/25)*15) + AAMC_Raw_Data_for_FY22[[#This Row],[Median]]","v":338788.4},{"$f":"(((AAMC_Raw_Data_for_FY22[[#This Row],[75th]]-AAMC_Raw_Data_for_FY22[[#This Row],[Median]])/25)*20) + AAMC_Raw_Data_for_FY22[[#This Row],[Median]]","v":359644.2},380500,{"$f":"(((AAMC_Raw_Data_for_FY22[[#This Row],[75th]]-AAMC_Raw_Data_for_FY22[[#This Row],[Median]])/25)*30) + AAMC_Raw_Data_for_FY22[[#This Row],[Median]]","v":401355.8},{"$f":"(((AAMC_Raw_Data_for_FY22[[#This Row],[75th]]-AAMC_Raw_Data_for_FY22[[#This Row],[Median]])/25)*35) + AAMC_Raw_Data_for_FY22[[#This Row],[Median]]","v":422211.6},{"$f":"(((AAMC_Raw_Data_for_FY22[[#This Row],[75th]]-AAMC_Raw_Data_for_FY22[[#This Row],[Median]])/25)*40) + AAMC_Raw_Data_for_FY22[[#This Row],[Median]]","v":443067.4}]
[{"$f":"AAMC_Raw_Data_for_FY22[[#This Row],[Source]]&AAMC_Raw_Data_for_FY22[[#This Row],[Type]]&AAMC_Raw_Data_for_FY22[[#This Row],[School Subset]]&AAMC_Raw_Data_for_FY22[[#This Row],[Rank]]&AAMC_Raw_Data_for_FY22[[#This Row],[Degree]]&AAMC_Raw_Data_for_FY22[[#This Row],[Department / Specialty]]&\"L\"","v":"AAMCAcademicPrivateAssistantMDOB/GYN: Maternal & FetalL"},"OB/GYN: Maternal & Fetal",4,"AAMC","Academic","Private","Assistant","MD","2021-2022",347160,{"$f":"(((AAMC_Raw_Data_for_FY22[[#This Row],[Median]]-AAMC_Raw_Data_for_FY22[[#This Row],[25th]])/25)*5) + AAMC_Raw_Data_for_FY22[[#This Row],[25th]]","v":355693},{"$f":"(((AAMC_Raw_Data_for_FY22[[#This Row],[Median]]-AAMC_Raw_Data_for_FY22[[#This Row],[25th]])/25)*10) + AAMC_Raw_Data_for_FY22[[#This Row],[25th]]","v":364226},{"$f":"(((AAMC_Raw_Data_for_FY22[[#This Row],[Median]]-AAMC_Raw_Data_for_FY22[[#This Row],[25th]])/25)*15) + AAMC_Raw_Data_for_FY22[[#This Row],[25th]]","v":372759},{"$f":"(((AAMC_Raw_Data_for_FY22[[#This Row],[Median]]-AAMC_Raw_Data_for_FY22[[#This Row],[25th]])/25)*20) + AAMC_Raw_Data_for_FY22[[#This Row],[25th]]","v":381292},389825,{"$f":"(((AAMC_Raw_Data_for_FY22[[#This Row],[75th]]-AAMC_Raw_Data_for_FY22[[#This Row],[Median]])/25)*5) + AAMC_Raw_Data_for_FY22[[#This Row],[Median]]","v":400477.6},{"$f":"(((AAMC_Raw_Data_for_FY22[[#This Row],[75th]]-AAMC_Raw_Data_for_FY22[[#This Row],[Median]])/25)*10) + AAMC_Raw_Data_for_FY22[[#This Row],[Median]]","v":411130.2},{"$f":"(((AAMC_Raw_Data_for_FY22[[#This Row],[75th]]-AAMC_Raw_Data_for_FY22[[#This Row],[Median]])/25)*15) + AAMC_Raw_Data_for_FY22[[#This Row],[Median]]","v":421782.8},{"$f":"(((AAMC_Raw_Data_for_FY22[[#This Row],[75th]]-AAMC_Raw_Data_for_FY22[[#This Row],[Median]])/25)*20) + AAMC_Raw_Data_for_FY22[[#This Row],[Median]]","v":432435.4},443088,{"$f":"(((AAMC_Raw_Data_for_FY22[[#This Row],[75th]]-AAMC_Raw_Data_for_FY22[[#This Row],[Median]])/25)*30) + AAMC_Raw_Data_for_FY22[[#This Row],[Median]]","v":453740.6},{"$f":"(((AAMC_Raw_Data_for_FY22[[#This Row],[75th]]-AAMC_Raw_Data_for_FY22[[#This Row],[Median]])/25)*35) + AAMC_Raw_Data_for_FY22[[#This Row],[Median]]","v":464393.2},{"$f":"(((AAMC_Raw_Data_for_FY22[[#This Row],[75th]]-AAMC_Raw_Data_for_FY22[[#This Row],[Median]])/25)*40) + AAMC_Raw_Data_for_FY22[[#This Row],[Median]]","v":475045.8}]
[{"$f":"AAMC_Raw_Data_for_FY22[[#This Row],[Source]]&AAMC_Raw_Data_for_FY22[[#This Row],[Type]]&AAMC_Raw_Data_for_FY22[[#This Row],[School Subset]]&AAMC_Raw_Data_for_FY22[[#This Row],[Rank]]&AAMC_Raw_Data_for_FY22[[#This Row],[Degree]]&AAMC_Raw_Data_for_FY22[[#This Row],[Department / Specialty]]&\"L\"","v":"AAMCAcademicPrivateAssociateMDOB/GYN: Maternal & FetalL"},"OB/GYN: Maternal & Fetal",3,"AAMC","Academic","Private","Associate","MD","2021-2022",384520,{"$f":"(((AAMC_Raw_Data_for_FY22[[#This Row],[Median]]-AAMC_Raw_Data_for_FY22[[#This Row],[25th]])/25)*5) + AAMC_Raw_Data_for_FY22[[#This Row],[25th]]","v":394406},{"$f":"(((AAMC_Raw_Data_for_FY22[[#This Row],[Median]]-AAMC_Raw_Data_for_FY22[[#This Row],[25th]])/25)*10) + AAMC_Raw_Data_for_FY22[[#This Row],[25th]]","v":404292},{"$f":"(((AAMC_Raw_Data_for_FY22[[#This Row],[Median]]-AAMC_Raw_Data_for_FY22[[#This Row],[25th]])/25)*15) + AAMC_Raw_Data_for_FY22[[#This Row],[25th]]","v":414178},{"$f":"(((AAMC_Raw_Data_for_FY22[[#This Row],[Median]]-AAMC_Raw_Data_for_FY22[[#This Row],[25th]])/25)*20) + AAMC_Raw_Data_for_FY22[[#This Row],[25th]]","v":424064},433950,{"$f":"(((AAMC_Raw_Data_for_FY22[[#This Row],[75th]]-AAMC_Raw_Data_for_FY22[[#This Row],[Median]])/25)*5) + AAMC_Raw_Data_for_FY22[[#This Row],[Median]]","v":449060},{"$f":"(((AAMC_Raw_Data_for_FY22[[#This Row],[75th]]-AAMC_Raw_Data_for_FY22[[#This Row],[Median]])/25)*10) + AAMC_Raw_Data_for_FY22[[#This Row],[Median]]","v":464170},{"$f":"(((AAMC_Raw_Data_for_FY22[[#This Row],[75th]]-AAMC_Raw_Data_for_FY22[[#This Row],[Median]])/25)*15) + AAMC_Raw_Data_for_FY22[[#This Row],[Median]]","v":479280},{"$f":"(((AAMC_Raw_Data_for_FY22[[#This Row],[75th]]-AAMC_Raw_Data_for_FY22[[#This Row],[Median]])/25)*20) + AAMC_Raw_Data_for_FY22[[#This Row],[Median]]","v":494390},509500,{"$f":"(((AAMC_Raw_Data_for_FY22[[#This Row],[75th]]-AAMC_Raw_Data_for_FY22[[#This Row],[Median]])/25)*30) + AAMC_Raw_Data_for_FY22[[#This Row],[Median]]","v":524610},{"$f":"(((AAMC_Raw_Data_for_FY22[[#This Row],[75th]]-AAMC_Raw_Data_for_FY22[[#This Row],[Median]])/25)*35) + AAMC_Raw_Data_for_FY22[[#This Row],[Median]]","v":539720},{"$f":"(((AAMC_Raw_Data_for_FY22[[#This Row],[75th]]-AAMC_Raw_Data_for_FY22[[#This Row],[Median]])/25)*40) + AAMC_Raw_Data_for_FY22[[#This Row],[Median]]","v":554830}]
[{"$f":"AAMC_Raw_Data_for_FY22[[#This Row],[Source]]&AAMC_Raw_Data_for_FY22[[#This Row],[Type]]&AAMC_Raw_Data_for_FY22[[#This Row],[School Subset]]&AAMC_Raw_Data_for_FY22[[#This Row],[Rank]]&AAMC_Raw_Data_for_FY22[[#This Row],[Degree]]&AAMC_Raw_Data_for_FY22[[#This Row],[Department / Specialty]]&\"L\"","v":"AAMCAcademicPrivateProfessorMDOB/GYN: Maternal & FetalL"},"OB/GYN: Maternal & Fetal",2,"AAMC","Academic","Private","Professor","MD","2021-2022",404606,{"$f":"(((AAMC_Raw_Data_for_FY22[[#This Row],[Median]]-AAMC_Raw_Data_for_FY22[[#This Row],[25th]])/25)*5) + AAMC_Raw_Data_for_FY22[[#This Row],[25th]]","v":415699.4},{"$f":"(((AAMC_Raw_Data_for_FY22[[#This Row],[Median]]-AAMC_Raw_Data_for_FY22[[#This Row],[25th]])/25)*10) + AAMC_Raw_Data_for_FY22[[#This Row],[25th]]","v":426792.8},{"$f":"(((AAMC_Raw_Data_for_FY22[[#This Row],[Median]]-AAMC_Raw_Data_for_FY22[[#This Row],[25th]])/25)*15) + AAMC_Raw_Data_for_FY22[[#This Row],[25th]]","v":437886.2},{"$f":"(((AAMC_Raw_Data_for_FY22[[#This Row],[Median]]-AAMC_Raw_Data_for_FY22[[#This Row],[25th]])/25)*20) + AAMC_Raw_Data_for_FY22[[#This Row],[25th]]","v":448979.6},460073,{"$f":"(((AAMC_Raw_Data_for_FY22[[#This Row],[75th]]-AAMC_Raw_Data_for_FY22[[#This Row],[Median]])/25)*5) + AAMC_Raw_Data_for_FY22[[#This Row],[Median]]","v":480952.4},{"$f":"(((AAMC_Raw_Data_for_FY22[[#This Row],[75th]]-AAMC_Raw_Data_for_FY22[[#This Row],[Median]])/25)*10) + AAMC_Raw_Data_for_FY22[[#This Row],[Median]]","v":501831.8},{"$f":"(((AAMC_Raw_Data_for_FY22[[#This Row],[75th]]-AAMC_Raw_Data_for_FY22[[#This Row],[Median]])/25)*15) + AAMC_Raw_Data_for_FY22[[#This Row],[Median]]","v":522711.2},{"$f":"(((AAMC_Raw_Data_for_FY22[[#This Row],[75th]]-AAMC_Raw_Data_for_FY22[[#This Row],[Median]])/25)*20) + AAMC_Raw_Data_for_FY22[[#This Row],[Median]]","v":543590.6},564470,{"$f":"(((AAMC_Raw_Data_for_FY22[[#This Row],[75th]]-AAMC_Raw_Data_for_FY22[[#This Row],[Median]])/25)*30) + AAMC_Raw_Data_for_FY22[[#This Row],[Median]]","v":585349.4},{"$f":"(((AAMC_Raw_Data_for_FY22[[#This Row],[75th]]-AAMC_Raw_Data_for_FY22[[#This Row],[Median]])/25)*35) + AAMC_Raw_Data_for_FY22[[#This Row],[Median]]","v":606228.80000000005},{"$f":"(((AAMC_Raw_Data_for_FY22[[#This Row],[75th]]-AAMC_Raw_Data_for_FY22[[#This Row],[Median]])/25)*40) + AAMC_Raw_Data_for_FY22[[#This Row],[Median]]","v":627108.19999999995}]
[{"$f":"AAMC_Raw_Data_for_FY22[[#This Row],[Source]]&AAMC_Raw_Data_for_FY22[[#This Row],[Type]]&AAMC_Raw_Data_for_FY22[[#This Row],[School Subset]]&AAMC_Raw_Data_for_FY22[[#This Row],[Rank]]&AAMC_Raw_Data_for_FY22[[#This Row],[Degree]]&AAMC_Raw_Data_for_FY22[[#This Row],[Department / Specialty]]&\"L\"","v":"AAMCAcademicPrivateChiefMDOB/GYN: Maternal & FetalL"},"OB/GYN: Maternal & Fetal",6,"AAMC","Academic","Private","Chief","MD","2021-2022",422256,{"$f":"(((AAMC_Raw_Data_for_FY22[[#This Row],[Median]]-AAMC_Raw_Data_for_FY22[[#This Row],[25th]])/25)*5) + AAMC_Raw_Data_for_FY22[[#This Row],[25th]]","v":433552.4},{"$f":"(((AAMC_Raw_Data_for_FY22[[#This Row],[Median]]-AAMC_Raw_Data_for_FY22[[#This Row],[25th]])/25)*10) + AAMC_Raw_Data_for_FY22[[#This Row],[25th]]","v":444848.8},{"$f":"(((AAMC_Raw_Data_for_FY22[[#This Row],[Median]]-AAMC_Raw_Data_for_FY22[[#This Row],[25th]])/25)*15) + AAMC_Raw_Data_for_FY22[[#This Row],[25th]]","v":456145.2},{"$f":"(((AAMC_Raw_Data_for_FY22[[#This Row],[Median]]-AAMC_Raw_Data_for_FY22[[#This Row],[25th]])/25)*20) + AAMC_Raw_Data_for_FY22[[#This Row],[25th]]","v":467441.6},478738,{"$f":"(((AAMC_Raw_Data_for_FY22[[#This Row],[75th]]-AAMC_Raw_Data_for_FY22[[#This Row],[Median]])/25)*5) + AAMC_Raw_Data_for_FY22[[#This Row],[Median]]","v":489603.6},{"$f":"(((AAMC_Raw_Data_for_FY22[[#This Row],[75th]]-AAMC_Raw_Data_for_FY22[[#This Row],[Median]])/25)*10) + AAMC_Raw_Data_for_FY22[[#This Row],[Median]]","v":500469.2},{"$f":"(((AAMC_Raw_Data_for_FY22[[#This Row],[75th]]-AAMC_Raw_Data_for_FY22[[#This Row],[Median]])/25)*15) + AAMC_Raw_Data_for_FY22[[#This Row],[Median]]","v":511334.8},{"$f":"(((AAMC_Raw_Data_for_FY22[[#This Row],[75th]]-AAMC_Raw_Data_for_FY22[[#This Row],[Median]])/25)*20) + AAMC_Raw_Data_for_FY22[[#This Row],[Median]]","v":522200.4},533066,{"$f":"(((AAMC_Raw_Data_for_FY22[[#This Row],[75th]]-AAMC_Raw_Data_for_FY22[[#This Row],[Median]])/25)*30) + AAMC_Raw_Data_for_FY22[[#This Row],[Median]]","v":543931.6},{"$f":"(((AAMC_Raw_Data_for_FY22[[#This Row],[75th]]-AAMC_Raw_Data_for_FY22[[#This Row],[Median]])/25)*35) + AAMC_Raw_Data_for_FY22[[#This Row],[Median]]","v":554797.19999999995},{"$f":"(((AAMC_Raw_Data_for_FY22[[#This Row],[75th]]-AAMC_Raw_Data_for_FY22[[#This Row],[Median]])/25)*40) + AAMC_Raw_Data_for_FY22[[#This Row],[Median]]","v":565662.80000000005}]
[{"$f":"AAMC_Raw_Data_for_FY22[[#This Row],[Source]]&AAMC_Raw_Data_for_FY22[[#This Row],[Type]]&AAMC_Raw_Data_for_FY22[[#This Row],[School Subset]]&AAMC_Raw_Data_for_FY22[[#This Row],[Rank]]&AAMC_Raw_Data_for_FY22[[#This Row],[Degree]]&AAMC_Raw_Data_for_FY22[[#This Row],[Department / Specialty]]&\"L\"","v":"AAMCAcademicPrivateChairMDOB/GYN: Maternal & FetalL"},"OB/GYN: Maternal & Fetal",1,"AAMC","Academic","Private","Chair","MD","2021-2022",564646,{"$f":"(((AAMC_Raw_Data_for_FY22[[#This Row],[Median]]-AAMC_Raw_Data_for_FY22[[#This Row],[25th]])/25)*5) + AAMC_Raw_Data_for_FY22[[#This Row],[25th]]","v":580354.4},{"$f":"(((AAMC_Raw_Data_for_FY22[[#This Row],[Median]]-AAMC_Raw_Data_for_FY22[[#This Row],[25th]])/25)*10) + AAMC_Raw_Data_for_FY22[[#This Row],[25th]]","v":596062.80000000005},{"$f":"(((AAMC_Raw_Data_for_FY22[[#This Row],[Median]]-AAMC_Raw_Data_for_FY22[[#This Row],[25th]])/25)*15) + AAMC_Raw_Data_for_FY22[[#This Row],[25th]]","v":611771.19999999995},{"$f":"(((AAMC_Raw_Data_for_FY22[[#This Row],[Median]]-AAMC_Raw_Data_for_FY22[[#This Row],[25th]])/25)*20) + AAMC_Raw_Data_for_FY22[[#This Row],[25th]]","v":627479.6},643188,{"$f":"(((AAMC_Raw_Data_for_FY22[[#This Row],[75th]]-AAMC_Raw_Data_for_FY22[[#This Row],[Median]])/25)*5) + AAMC_Raw_Data_for_FY22[[#This Row],[Median]]","v":666696.80000000005},{"$f":"(((AAMC_Raw_Data_for_FY22[[#This Row],[75th]]-AAMC_Raw_Data_for_FY22[[#This Row],[Median]])/25)*10) + AAMC_Raw_Data_for_FY22[[#This Row],[Median]]","v":690205.6},{"$f":"(((AAMC_Raw_Data_for_FY22[[#This Row],[75th]]-AAMC_Raw_Data_for_FY22[[#This Row],[Median]])/25)*15) + AAMC_Raw_Data_for_FY22[[#This Row],[Median]]","v":713714.4},{"$f":"(((AAMC_Raw_Data_for_FY22[[#This Row],[75th]]-AAMC_Raw_Data_for_FY22[[#This Row],[Median]])/25)*20) + AAMC_Raw_Data_for_FY22[[#This Row],[Median]]","v":737223.2},760732,{"$f":"(((AAMC_Raw_Data_for_FY22[[#This Row],[75th]]-AAMC_Raw_Data_for_FY22[[#This Row],[Median]])/25)*30) + AAMC_Raw_Data_for_FY22[[#This Row],[Median]]","v":784240.8},{"$f":"(((AAMC_Raw_Data_for_FY22[[#This Row],[75th]]-AAMC_Raw_Data_for_FY22[[#This Row],[Median]])/25)*35) + AAMC_Raw_Data_for_FY22[[#This Row],[Median]]","v":807749.6},{"$f":"(((AAMC_Raw_Data_for_FY22[[#This Row],[75th]]-AAMC_Raw_Data_for_FY22[[#This Row],[Median]])/25)*40) + AAMC_Raw_Data_for_FY22[[#This Row],[Median]]","v":831258.4}]
[{"$f":"AAMC_Raw_Data_for_FY22[[#This Row],[Source]]&AAMC_Raw_Data_for_FY22[[#This Row],[Type]]&AAMC_Raw_Data_for_FY22[[#This Row],[School Subset]]&AAMC_Raw_Data_for_FY22[[#This Row],[Rank]]&AAMC_Raw_Data_for_FY22[[#This Row],[Degree]]&AAMC_Raw_Data_for_FY22[[#This Row],[Department / Specialty]]&\"L\"","v":"AAMCAcademicPrivateInstructorMDOB/GYN: Reproductive EndocrinologyL"},"OB/GYN: Reproductive Endocrinology",5,"AAMC","Academic","Private","Instructor","MD","2021-2022",null,{"$f":"(((AAMC_Raw_Data_for_FY22[[#This Row],[Median]]-AAMC_Raw_Data_for_FY22[[#This Row],[25th]])/25)*5) + AAMC_Raw_Data_for_FY22[[#This Row],[25th]]","v":0},{"$f":"(((AAMC_Raw_Data_for_FY22[[#This Row],[Median]]-AAMC_Raw_Data_for_FY22[[#This Row],[25th]])/25)*10) + AAMC_Raw_Data_for_FY22[[#This Row],[25th]]","v":0},{"$f":"(((AAMC_Raw_Data_for_FY22[[#This Row],[Median]]-AAMC_Raw_Data_for_FY22[[#This Row],[25th]])/25)*15) + AAMC_Raw_Data_for_FY22[[#This Row],[25th]]","v":0},{"$f":"(((AAMC_Raw_Data_for_FY22[[#This Row],[Median]]-AAMC_Raw_Data_for_FY22[[#This Row],[25th]])/25)*20) + AAMC_Raw_Data_for_FY22[[#This Row],[25th]]","v":0},null,{"$f":"(((AAMC_Raw_Data_for_FY22[[#This Row],[75th]]-AAMC_Raw_Data_for_FY22[[#This Row],[Median]])/25)*5) + AAMC_Raw_Data_for_FY22[[#This Row],[Median]]","v":0},{"$f":"(((AAMC_Raw_Data_for_FY22[[#This Row],[75th]]-AAMC_Raw_Data_for_FY22[[#This Row],[Median]])/25)*10) + AAMC_Raw_Data_for_FY22[[#This Row],[Median]]","v":0},{"$f":"(((AAMC_Raw_Data_for_FY22[[#This Row],[75th]]-AAMC_Raw_Data_for_FY22[[#This Row],[Median]])/25)*15) + AAMC_Raw_Data_for_FY22[[#This Row],[Median]]","v":0},{"$f":"(((AAMC_Raw_Data_for_FY22[[#This Row],[75th]]-AAMC_Raw_Data_for_FY22[[#This Row],[Median]])/25)*20) + AAMC_Raw_Data_for_FY22[[#This Row],[Median]]","v":0},null,{"$f":"(((AAMC_Raw_Data_for_FY22[[#This Row],[75th]]-AAMC_Raw_Data_for_FY22[[#This Row],[Median]])/25)*30) + AAMC_Raw_Data_for_FY22[[#This Row],[Median]]","v":0},{"$f":"(((AAMC_Raw_Data_for_FY22[[#This Row],[75th]]-AAMC_Raw_Data_for_FY22[[#This Row],[Median]])/25)*35) + AAMC_Raw_Data_for_FY22[[#This Row],[Median]]","v":0},{"$f":"(((AAMC_Raw_Data_for_FY22[[#This Row],[75th]]-AAMC_Raw_Data_for_FY22[[#This Row],[Median]])/25)*40) + AAMC_Raw_Data_for_FY22[[#This Row],[Median]]","v":0}]
[{"$f":"AAMC_Raw_Data_for_FY22[[#This Row],[Source]]&AAMC_Raw_Data_for_FY22[[#This Row],[Type]]&AAMC_Raw_Data_for_FY22[[#This Row],[School Subset]]&AAMC_Raw_Data_for_FY22[[#This Row],[Rank]]&AAMC_Raw_Data_for_FY22[[#This Row],[Degree]]&AAMC_Raw_Data_for_FY22[[#This Row],[Department / Specialty]]&\"L\"","v":"AAMCAcademicPrivateAssistantMDOB/GYN: Reproductive EndocrinologyL"},"OB/GYN: Reproductive Endocrinology",4,"AAMC","Academic","Private","Assistant","MD","2021-2022",279500,{"$f":"(((AAMC_Raw_Data_for_FY22[[#This Row],[Median]]-AAMC_Raw_Data_for_FY22[[#This Row],[25th]])/25)*5) + AAMC_Raw_Data_for_FY22[[#This Row],[25th]]","v":289471.8},{"$f":"(((AAMC_Raw_Data_for_FY22[[#This Row],[Median]]-AAMC_Raw_Data_for_FY22[[#This Row],[25th]])/25)*10) + AAMC_Raw_Data_for_FY22[[#This Row],[25th]]","v":299443.59999999998},{"$f":"(((AAMC_Raw_Data_for_FY22[[#This Row],[Median]]-AAMC_Raw_Data_for_FY22[[#This Row],[25th]])/25)*15) + AAMC_Raw_Data_for_FY22[[#This Row],[25th]]","v":309415.40000000002},{"$f":"(((AAMC_Raw_Data_for_FY22[[#This Row],[Median]]-AAMC_Raw_Data_for_FY22[[#This Row],[25th]])/25)*20) + AAMC_Raw_Data_for_FY22[[#This Row],[25th]]","v":319387.2},329359,{"$f":"(((AAMC_Raw_Data_for_FY22[[#This Row],[75th]]-AAMC_Raw_Data_for_FY22[[#This Row],[Median]])/25)*5) + AAMC_Raw_Data_for_FY22[[#This Row],[Median]]","v":367239.8},{"$f":"(((AAMC_Raw_Data_for_FY22[[#This Row],[75th]]-AAMC_Raw_Data_for_FY22[[#This Row],[Median]])/25)*10) + AAMC_Raw_Data_for_FY22[[#This Row],[Median]]","v":405120.6},{"$f":"(((AAMC_Raw_Data_for_FY22[[#This Row],[75th]]-AAMC_Raw_Data_for_FY22[[#This Row],[Median]])/25)*15) + AAMC_Raw_Data_for_FY22[[#This Row],[Median]]","v":443001.4},{"$f":"(((AAMC_Raw_Data_for_FY22[[#This Row],[75th]]-AAMC_Raw_Data_for_FY22[[#This Row],[Median]])/25)*20) + AAMC_Raw_Data_for_FY22[[#This Row],[Median]]","v":480882.2},518763,{"$f":"(((AAMC_Raw_Data_for_FY22[[#This Row],[75th]]-AAMC_Raw_Data_for_FY22[[#This Row],[Median]])/25)*30) + AAMC_Raw_Data_for_FY22[[#This Row],[Median]]","v":556643.80000000005},{"$f":"(((AAMC_Raw_Data_for_FY22[[#This Row],[75th]]-AAMC_Raw_Data_for_FY22[[#This Row],[Median]])/25)*35) + AAMC_Raw_Data_for_FY22[[#This Row],[Median]]","v":594524.6},{"$f":"(((AAMC_Raw_Data_for_FY22[[#This Row],[75th]]-AAMC_Raw_Data_for_FY22[[#This Row],[Median]])/25)*40) + AAMC_Raw_Data_for_FY22[[#This Row],[Median]]","v":632405.4}]
[{"$f":"AAMC_Raw_Data_for_FY22[[#This Row],[Source]]&AAMC_Raw_Data_for_FY22[[#This Row],[Type]]&AAMC_Raw_Data_for_FY22[[#This Row],[School Subset]]&AAMC_Raw_Data_for_FY22[[#This Row],[Rank]]&AAMC_Raw_Data_for_FY22[[#This Row],[Degree]]&AAMC_Raw_Data_for_FY22[[#This Row],[Department / Specialty]]&\"L\"","v":"AAMCAcademicPrivateAssociateMDOB/GYN: Reproductive EndocrinologyL"},"OB/GYN: Reproductive Endocrinology",3,"AAMC","Academic","Private","Associate","MD","2021-2022",382901,{"$f":"(((AAMC_Raw_Data_for_FY22[[#This Row],[Median]]-AAMC_Raw_Data_for_FY22[[#This Row],[25th]])/25)*5) + AAMC_Raw_Data_for_FY22[[#This Row],[25th]]","v":420615.8},{"$f":"(((AAMC_Raw_Data_for_FY22[[#This Row],[Median]]-AAMC_Raw_Data_for_FY22[[#This Row],[25th]])/25)*10) + AAMC_Raw_Data_for_FY22[[#This Row],[25th]]","v":458330.6},{"$f":"(((AAMC_Raw_Data_for_FY22[[#This Row],[Median]]-AAMC_Raw_Data_for_FY22[[#This Row],[25th]])/25)*15) + AAMC_Raw_Data_for_FY22[[#This Row],[25th]]","v":496045.4},{"$f":"(((AAMC_Raw_Data_for_FY22[[#This Row],[Median]]-AAMC_Raw_Data_for_FY22[[#This Row],[25th]])/25)*20) + AAMC_Raw_Data_for_FY22[[#This Row],[25th]]","v":533760.19999999995},571475,{"$f":"(((AAMC_Raw_Data_for_FY22[[#This Row],[75th]]-AAMC_Raw_Data_for_FY22[[#This Row],[Median]])/25)*5) + AAMC_Raw_Data_for_FY22[[#This Row],[Median]]","v":669476.80000000005},{"$f":"(((AAMC_Raw_Data_for_FY22[[#This Row],[75th]]-AAMC_Raw_Data_for_FY22[[#This Row],[Median]])/25)*10) + AAMC_Raw_Data_for_FY22[[#This Row],[Median]]","v":767478.6},{"$f":"(((AAMC_Raw_Data_for_FY22[[#This Row],[75th]]-AAMC_Raw_Data_for_FY22[[#This Row],[Median]])/25)*15) + AAMC_Raw_Data_for_FY22[[#This Row],[Median]]","v":865480.4},{"$f":"(((AAMC_Raw_Data_for_FY22[[#This Row],[75th]]-AAMC_Raw_Data_for_FY22[[#This Row],[Median]])/25)*20) + AAMC_Raw_Data_for_FY22[[#This Row],[Median]]","v":963482.2},1061484,{"$f":"(((AAMC_Raw_Data_for_FY22[[#This Row],[75th]]-AAMC_Raw_Data_for_FY22[[#This Row],[Median]])/25)*30) + AAMC_Raw_Data_for_FY22[[#This Row],[Median]]","v":1159485.8},{"$f":"(((AAMC_Raw_Data_for_FY22[[#This Row],[75th]]-AAMC_Raw_Data_for_FY22[[#This Row],[Median]])/25)*35) + AAMC_Raw_Data_for_FY22[[#This Row],[Median]]","v":1257487.6000000001},{"$f":"(((AAMC_Raw_Data_for_FY22[[#This Row],[75th]]-AAMC_Raw_Data_for_FY22[[#This Row],[Median]])/25)*40) + AAMC_Raw_Data_for_FY22[[#This Row],[Median]]","v":1355489.4}]
[{"$f":"AAMC_Raw_Data_for_FY22[[#This Row],[Source]]&AAMC_Raw_Data_for_FY22[[#This Row],[Type]]&AAMC_Raw_Data_for_FY22[[#This Row],[School Subset]]&AAMC_Raw_Data_for_FY22[[#This Row],[Rank]]&AAMC_Raw_Data_for_FY22[[#This Row],[Degree]]&AAMC_Raw_Data_for_FY22[[#This Row],[Department / Specialty]]&\"L\"","v":"AAMCAcademicPrivateProfessorMDOB/GYN: Reproductive EndocrinologyL"},"OB/GYN: Reproductive Endocrinology",2,"AAMC","Academic","Private","Professor","MD","2021-2022",372575,{"$f":"(((AAMC_Raw_Data_for_FY22[[#This Row],[Median]]-AAMC_Raw_Data_for_FY22[[#This Row],[25th]])/25)*5) + AAMC_Raw_Data_for_FY22[[#This Row],[25th]]","v":381659.4},{"$f":"(((AAMC_Raw_Data_for_FY22[[#This Row],[Median]]-AAMC_Raw_Data_for_FY22[[#This Row],[25th]])/25)*10) + AAMC_Raw_Data_for_FY22[[#This Row],[25th]]","v":390743.8},{"$f":"(((AAMC_Raw_Data_for_FY22[[#This Row],[Median]]-AAMC_Raw_Data_for_FY22[[#This Row],[25th]])/25)*15) + AAMC_Raw_Data_for_FY22[[#This Row],[25th]]","v":399828.2},{"$f":"(((AAMC_Raw_Data_for_FY22[[#This Row],[Median]]-AAMC_Raw_Data_for_FY22[[#This Row],[25th]])/25)*20) + AAMC_Raw_Data_for_FY22[[#This Row],[25th]]","v":408912.6},417997,{"$f":"(((AAMC_Raw_Data_for_FY22[[#This Row],[75th]]-AAMC_Raw_Data_for_FY22[[#This Row],[Median]])/25)*5) + AAMC_Raw_Data_for_FY22[[#This Row],[Median]]","v":432708},{"$f":"(((AAMC_Raw_Data_for_FY22[[#This Row],[75th]]-AAMC_Raw_Data_for_FY22[[#This Row],[Median]])/25)*10) + AAMC_Raw_Data_for_FY22[[#This Row],[Median]]","v":447419},{"$f":"(((AAMC_Raw_Data_for_FY22[[#This Row],[75th]]-AAMC_Raw_Data_for_FY22[[#This Row],[Median]])/25)*15) + AAMC_Raw_Data_for_FY22[[#This Row],[Median]]","v":462130},{"$f":"(((AAMC_Raw_Data_for_FY22[[#This Row],[75th]]-AAMC_Raw_Data_for_FY22[[#This Row],[Median]])/25)*20) + AAMC_Raw_Data_for_FY22[[#This Row],[Median]]","v":476841},491552,{"$f":"(((AAMC_Raw_Data_for_FY22[[#This Row],[75th]]-AAMC_Raw_Data_for_FY22[[#This Row],[Median]])/25)*30) + AAMC_Raw_Data_for_FY22[[#This Row],[Median]]","v":506263},{"$f":"(((AAMC_Raw_Data_for_FY22[[#This Row],[75th]]-AAMC_Raw_Data_for_FY22[[#This Row],[Median]])/25)*35) + AAMC_Raw_Data_for_FY22[[#This Row],[Median]]","v":520974},{"$f":"(((AAMC_Raw_Data_for_FY22[[#This Row],[75th]]-AAMC_Raw_Data_for_FY22[[#This Row],[Median]])/25)*40) + AAMC_Raw_Data_for_FY22[[#This Row],[Median]]","v":535685}]
[{"$f":"AAMC_Raw_Data_for_FY22[[#This Row],[Source]]&AAMC_Raw_Data_for_FY22[[#This Row],[Type]]&AAMC_Raw_Data_for_FY22[[#This Row],[School Subset]]&AAMC_Raw_Data_for_FY22[[#This Row],[Rank]]&AAMC_Raw_Data_for_FY22[[#This Row],[Degree]]&AAMC_Raw_Data_for_FY22[[#This Row],[Department / Specialty]]&\"L\"","v":"AAMCAcademicPrivateChiefMDOB/GYN: Reproductive EndocrinologyL"},"OB/GYN: Reproductive Endocrinology",6,"AAMC","Academic","Private","Chief","MD","2021-2022",398408,{"$f":"(((AAMC_Raw_Data_for_FY22[[#This Row],[Median]]-AAMC_Raw_Data_for_FY22[[#This Row],[25th]])/25)*5) + AAMC_Raw_Data_for_FY22[[#This Row],[25th]]","v":413403.4},{"$f":"(((AAMC_Raw_Data_for_FY22[[#This Row],[Median]]-AAMC_Raw_Data_for_FY22[[#This Row],[25th]])/25)*10) + AAMC_Raw_Data_for_FY22[[#This Row],[25th]]","v":428398.8},{"$f":"(((AAMC_Raw_Data_for_FY22[[#This Row],[Median]]-AAMC_Raw_Data_for_FY22[[#This Row],[25th]])/25)*15) + AAMC_Raw_Data_for_FY22[[#This Row],[25th]]","v":443394.2},{"$f":"(((AAMC_Raw_Data_for_FY22[[#This Row],[Median]]-AAMC_Raw_Data_for_FY22[[#This Row],[25th]])/25)*20) + AAMC_Raw_Data_for_FY22[[#This Row],[25th]]","v":458389.6},473385,{"$f":"(((AAMC_Raw_Data_for_FY22[[#This Row],[75th]]-AAMC_Raw_Data_for_FY22[[#This Row],[Median]])/25)*5) + AAMC_Raw_Data_for_FY22[[#This Row],[Median]]","v":486941.8},{"$f":"(((AAMC_Raw_Data_for_FY22[[#This Row],[75th]]-AAMC_Raw_Data_for_FY22[[#This Row],[Median]])/25)*10) + AAMC_Raw_Data_for_FY22[[#This Row],[Median]]","v":500498.6},{"$f":"(((AAMC_Raw_Data_for_FY22[[#This Row],[75th]]-AAMC_Raw_Data_for_FY22[[#This Row],[Median]])/25)*15) + AAMC_Raw_Data_for_FY22[[#This Row],[Median]]","v":514055.4},{"$f":"(((AAMC_Raw_Data_for_FY22[[#This Row],[75th]]-AAMC_Raw_Data_for_FY22[[#This Row],[Median]])/25)*20) + AAMC_Raw_Data_for_FY22[[#This Row],[Median]]","v":527612.19999999995},541169,{"$f":"(((AAMC_Raw_Data_for_FY22[[#This Row],[75th]]-AAMC_Raw_Data_for_FY22[[#This Row],[Median]])/25)*30) + AAMC_Raw_Data_for_FY22[[#This Row],[Median]]","v":554725.80000000005},{"$f":"(((AAMC_Raw_Data_for_FY22[[#This Row],[75th]]-AAMC_Raw_Data_for_FY22[[#This Row],[Median]])/25)*35) + AAMC_Raw_Data_for_FY22[[#This Row],[Median]]","v":568282.6},{"$f":"(((AAMC_Raw_Data_for_FY22[[#This Row],[75th]]-AAMC_Raw_Data_for_FY22[[#This Row],[Median]])/25)*40) + AAMC_Raw_Data_for_FY22[[#This Row],[Median]]","v":581839.4}]
[{"$f":"AAMC_Raw_Data_for_FY22[[#This Row],[Source]]&AAMC_Raw_Data_for_FY22[[#This Row],[Type]]&AAMC_Raw_Data_for_FY22[[#This Row],[School Subset]]&AAMC_Raw_Data_for_FY22[[#This Row],[Rank]]&AAMC_Raw_Data_for_FY22[[#This Row],[Degree]]&AAMC_Raw_Data_for_FY22[[#This Row],[Department / Specialty]]&\"L\"","v":"AAMCAcademicPrivateChairMDOB/GYN: Reproductive EndocrinologyL"},"OB/GYN: Reproductive Endocrinology",1,"AAMC","Academic","Private","Chair","MD","2021-2022",null,{"$f":"(((AAMC_Raw_Data_for_FY22[[#This Row],[Median]]-AAMC_Raw_Data_for_FY22[[#This Row],[25th]])/25)*5) + AAMC_Raw_Data_for_FY22[[#This Row],[25th]]","v":0},{"$f":"(((AAMC_Raw_Data_for_FY22[[#This Row],[Median]]-AAMC_Raw_Data_for_FY22[[#This Row],[25th]])/25)*10) + AAMC_Raw_Data_for_FY22[[#This Row],[25th]]","v":0},{"$f":"(((AAMC_Raw_Data_for_FY22[[#This Row],[Median]]-AAMC_Raw_Data_for_FY22[[#This Row],[25th]])/25)*15) + AAMC_Raw_Data_for_FY22[[#This Row],[25th]]","v":0},{"$f":"(((AAMC_Raw_Data_for_FY22[[#This Row],[Median]]-AAMC_Raw_Data_for_FY22[[#This Row],[25th]])/25)*20) + AAMC_Raw_Data_for_FY22[[#This Row],[25th]]","v":0},null,{"$f":"(((AAMC_Raw_Data_for_FY22[[#This Row],[75th]]-AAMC_Raw_Data_for_FY22[[#This Row],[Median]])/25)*5) + AAMC_Raw_Data_for_FY22[[#This Row],[Median]]","v":0},{"$f":"(((AAMC_Raw_Data_for_FY22[[#This Row],[75th]]-AAMC_Raw_Data_for_FY22[[#This Row],[Median]])/25)*10) + AAMC_Raw_Data_for_FY22[[#This Row],[Median]]","v":0},{"$f":"(((AAMC_Raw_Data_for_FY22[[#This Row],[75th]]-AAMC_Raw_Data_for_FY22[[#This Row],[Median]])/25)*15) + AAMC_Raw_Data_for_FY22[[#This Row],[Median]]","v":0},{"$f":"(((AAMC_Raw_Data_for_FY22[[#This Row],[75th]]-AAMC_Raw_Data_for_FY22[[#This Row],[Median]])/25)*20) + AAMC_Raw_Data_for_FY22[[#This Row],[Median]]","v":0},null,{"$f":"(((AAMC_Raw_Data_for_FY22[[#This Row],[75th]]-AAMC_Raw_Data_for_FY22[[#This Row],[Median]])/25)*30) + AAMC_Raw_Data_for_FY22[[#This Row],[Median]]","v":0},{"$f":"(((AAMC_Raw_Data_for_FY22[[#This Row],[75th]]-AAMC_Raw_Data_for_FY22[[#This Row],[Median]])/25)*35) + AAMC_Raw_Data_for_FY22[[#This Row],[Median]]","v":0},{"$f":"(((AAMC_Raw_Data_for_FY22[[#This Row],[75th]]-AAMC_Raw_Data_for_FY22[[#This Row],[Median]])/25)*40) + AAMC_Raw_Data_for_FY22[[#This Row],[Median]]","v":0}]
[{"$f":"AAMC_Raw_Data_for_FY22[[#This Row],[Source]]&AAMC_Raw_Data_for_FY22[[#This Row],[Type]]&AAMC_Raw_Data_for_FY22[[#This Row],[School Subset]]&AAMC_Raw_Data_for_FY22[[#This Row],[Rank]]&AAMC_Raw_Data_for_FY22[[#This Row],[Degree]]&AAMC_Raw_Data_for_FY22[[#This Row],[Department / Specialty]]&\"L\"","v":"AAMCAcademicPrivateInstructorMDOB/GYN: Other OB/GYNL"},"OB/GYN: Other OB/GYN",5,"AAMC","Academic","Private","Instructor","MD","2021-2022",null,{"$f":"(((AAMC_Raw_Data_for_FY22[[#This Row],[Median]]-AAMC_Raw_Data_for_FY22[[#This Row],[25th]])/25)*5) + AAMC_Raw_Data_for_FY22[[#This Row],[25th]]","v":0},{"$f":"(((AAMC_Raw_Data_for_FY22[[#This Row],[Median]]-AAMC_Raw_Data_for_FY22[[#This Row],[25th]])/25)*10) + AAMC_Raw_Data_for_FY22[[#This Row],[25th]]","v":0},{"$f":"(((AAMC_Raw_Data_for_FY22[[#This Row],[Median]]-AAMC_Raw_Data_for_FY22[[#This Row],[25th]])/25)*15) + AAMC_Raw_Data_for_FY22[[#This Row],[25th]]","v":0},{"$f":"(((AAMC_Raw_Data_for_FY22[[#This Row],[Median]]-AAMC_Raw_Data_for_FY22[[#This Row],[25th]])/25)*20) + AAMC_Raw_Data_for_FY22[[#This Row],[25th]]","v":0},null,{"$f":"(((AAMC_Raw_Data_for_FY22[[#This Row],[75th]]-AAMC_Raw_Data_for_FY22[[#This Row],[Median]])/25)*5) + AAMC_Raw_Data_for_FY22[[#This Row],[Median]]","v":0},{"$f":"(((AAMC_Raw_Data_for_FY22[[#This Row],[75th]]-AAMC_Raw_Data_for_FY22[[#This Row],[Median]])/25)*10) + AAMC_Raw_Data_for_FY22[[#This Row],[Median]]","v":0},{"$f":"(((AAMC_Raw_Data_for_FY22[[#This Row],[75th]]-AAMC_Raw_Data_for_FY22[[#This Row],[Median]])/25)*15) + AAMC_Raw_Data_for_FY22[[#This Row],[Median]]","v":0},{"$f":"(((AAMC_Raw_Data_for_FY22[[#This Row],[75th]]-AAMC_Raw_Data_for_FY22[[#This Row],[Median]])/25)*20) + AAMC_Raw_Data_for_FY22[[#This Row],[Median]]","v":0},null,{"$f":"(((AAMC_Raw_Data_for_FY22[[#This Row],[75th]]-AAMC_Raw_Data_for_FY22[[#This Row],[Median]])/25)*30) + AAMC_Raw_Data_for_FY22[[#This Row],[Median]]","v":0},{"$f":"(((AAMC_Raw_Data_for_FY22[[#This Row],[75th]]-AAMC_Raw_Data_for_FY22[[#This Row],[Median]])/25)*35) + AAMC_Raw_Data_for_FY22[[#This Row],[Median]]","v":0},{"$f":"(((AAMC_Raw_Data_for_FY22[[#This Row],[75th]]-AAMC_Raw_Data_for_FY22[[#This Row],[Median]])/25)*40) + AAMC_Raw_Data_for_FY22[[#This Row],[Median]]","v":0}]
[{"$f":"AAMC_Raw_Data_for_FY22[[#This Row],[Source]]&AAMC_Raw_Data_for_FY22[[#This Row],[Type]]&AAMC_Raw_Data_for_FY22[[#This Row],[School Subset]]&AAMC_Raw_Data_for_FY22[[#This Row],[Rank]]&AAMC_Raw_Data_for_FY22[[#This Row],[Degree]]&AAMC_Raw_Data_for_FY22[[#This Row],[Department / Specialty]]&\"L\"","v":"AAMCAcademicPrivateAssistantMDOB/GYN: Other OB/GYNL"},"OB/GYN: Other OB/GYN",4,"AAMC","Academic","Private","Assistant","MD","2021-2022",255229,{"$f":"(((AAMC_Raw_Data_for_FY22[[#This Row],[Median]]-AAMC_Raw_Data_for_FY22[[#This Row],[25th]])/25)*5) + AAMC_Raw_Data_for_FY22[[#This Row],[25th]]","v":264183.2},{"$f":"(((AAMC_Raw_Data_for_FY22[[#This Row],[Median]]-AAMC_Raw_Data_for_FY22[[#This Row],[25th]])/25)*10) + AAMC_Raw_Data_for_FY22[[#This Row],[25th]]","v":273137.40000000002},{"$f":"(((AAMC_Raw_Data_for_FY22[[#This Row],[Median]]-AAMC_Raw_Data_for_FY22[[#This Row],[25th]])/25)*15) + AAMC_Raw_Data_for_FY22[[#This Row],[25th]]","v":282091.59999999998},{"$f":"(((AAMC_Raw_Data_for_FY22[[#This Row],[Median]]-AAMC_Raw_Data_for_FY22[[#This Row],[25th]])/25)*20) + AAMC_Raw_Data_for_FY22[[#This Row],[25th]]","v":291045.8},300000,{"$f":"(((AAMC_Raw_Data_for_FY22[[#This Row],[75th]]-AAMC_Raw_Data_for_FY22[[#This Row],[Median]])/25)*5) + AAMC_Raw_Data_for_FY22[[#This Row],[Median]]","v":307500},{"$f":"(((AAMC_Raw_Data_for_FY22[[#This Row],[75th]]-AAMC_Raw_Data_for_FY22[[#This Row],[Median]])/25)*10) + AAMC_Raw_Data_for_FY22[[#This Row],[Median]]","v":315000},{"$f":"(((AAMC_Raw_Data_for_FY22[[#This Row],[75th]]-AAMC_Raw_Data_for_FY22[[#This Row],[Median]])/25)*15) + AAMC_Raw_Data_for_FY22[[#This Row],[Median]]","v":322500},{"$f":"(((AAMC_Raw_Data_for_FY22[[#This Row],[75th]]-AAMC_Raw_Data_for_FY22[[#This Row],[Median]])/25)*20) + AAMC_Raw_Data_for_FY22[[#This Row],[Median]]","v":330000},337500,{"$f":"(((AAMC_Raw_Data_for_FY22[[#This Row],[75th]]-AAMC_Raw_Data_for_FY22[[#This Row],[Median]])/25)*30) + AAMC_Raw_Data_for_FY22[[#This Row],[Median]]","v":345000},{"$f":"(((AAMC_Raw_Data_for_FY22[[#This Row],[75th]]-AAMC_Raw_Data_for_FY22[[#This Row],[Median]])/25)*35) + AAMC_Raw_Data_for_FY22[[#This Row],[Median]]","v":352500},{"$f":"(((AAMC_Raw_Data_for_FY22[[#This Row],[75th]]-AAMC_Raw_Data_for_FY22[[#This Row],[Median]])/25)*40) + AAMC_Raw_Data_for_FY22[[#This Row],[Median]]","v":360000}]
[{"$f":"AAMC_Raw_Data_for_FY22[[#This Row],[Source]]&AAMC_Raw_Data_for_FY22[[#This Row],[Type]]&AAMC_Raw_Data_for_FY22[[#This Row],[School Subset]]&AAMC_Raw_Data_for_FY22[[#This Row],[Rank]]&AAMC_Raw_Data_for_FY22[[#This Row],[Degree]]&AAMC_Raw_Data_for_FY22[[#This Row],[Department / Specialty]]&\"L\"","v":"AAMCAcademicPrivateAssociateMDOB/GYN: Other OB/GYNL"},"OB/GYN: Other OB/GYN",3,"AAMC","Academic","Private","Associate","MD","2021-2022",315173,{"$f":"(((AAMC_Raw_Data_for_FY22[[#This Row],[Median]]-AAMC_Raw_Data_for_FY22[[#This Row],[25th]])/25)*5) + AAMC_Raw_Data_for_FY22[[#This Row],[25th]]","v":324429.40000000002},{"$f":"(((AAMC_Raw_Data_for_FY22[[#This Row],[Median]]-AAMC_Raw_Data_for_FY22[[#This Row],[25th]])/25)*10) + AAMC_Raw_Data_for_FY22[[#This Row],[25th]]","v":333685.8},{"$f":"(((AAMC_Raw_Data_for_FY22[[#This Row],[Median]]-AAMC_Raw_Data_for_FY22[[#This Row],[25th]])/25)*15) + AAMC_Raw_Data_for_FY22[[#This Row],[25th]]","v":342942.2},{"$f":"(((AAMC_Raw_Data_for_FY22[[#This Row],[Median]]-AAMC_Raw_Data_for_FY22[[#This Row],[25th]])/25)*20) + AAMC_Raw_Data_for_FY22[[#This Row],[25th]]","v":352198.6},361455,{"$f":"(((AAMC_Raw_Data_for_FY22[[#This Row],[75th]]-AAMC_Raw_Data_for_FY22[[#This Row],[Median]])/25)*5) + AAMC_Raw_Data_for_FY22[[#This Row],[Median]]","v":376222.2},{"$f":"(((AAMC_Raw_Data_for_FY22[[#This Row],[75th]]-AAMC_Raw_Data_for_FY22[[#This Row],[Median]])/25)*10) + AAMC_Raw_Data_for_FY22[[#This Row],[Median]]","v":390989.4},{"$f":"(((AAMC_Raw_Data_for_FY22[[#This Row],[75th]]-AAMC_Raw_Data_for_FY22[[#This Row],[Median]])/25)*15) + AAMC_Raw_Data_for_FY22[[#This Row],[Median]]","v":405756.6},{"$f":"(((AAMC_Raw_Data_for_FY22[[#This Row],[75th]]-AAMC_Raw_Data_for_FY22[[#This Row],[Median]])/25)*20) + AAMC_Raw_Data_for_FY22[[#This Row],[Median]]","v":420523.8},435291,{"$f":"(((AAMC_Raw_Data_for_FY22[[#This Row],[75th]]-AAMC_Raw_Data_for_FY22[[#This Row],[Median]])/25)*30) + AAMC_Raw_Data_for_FY22[[#This Row],[Median]]","v":450058.2},{"$f":"(((AAMC_Raw_Data_for_FY22[[#This Row],[75th]]-AAMC_Raw_Data_for_FY22[[#This Row],[Median]])/25)*35) + AAMC_Raw_Data_for_FY22[[#This Row],[Median]]","v":464825.4},{"$f":"(((AAMC_Raw_Data_for_FY22[[#This Row],[75th]]-AAMC_Raw_Data_for_FY22[[#This Row],[Median]])/25)*40) + AAMC_Raw_Data_for_FY22[[#This Row],[Median]]","v":479592.6}]
[{"$f":"AAMC_Raw_Data_for_FY22[[#This Row],[Source]]&AAMC_Raw_Data_for_FY22[[#This Row],[Type]]&AAMC_Raw_Data_for_FY22[[#This Row],[School Subset]]&AAMC_Raw_Data_for_FY22[[#This Row],[Rank]]&AAMC_Raw_Data_for_FY22[[#This Row],[Degree]]&AAMC_Raw_Data_for_FY22[[#This Row],[Department / Specialty]]&\"L\"","v":"AAMCAcademicPrivateProfessorMDOB/GYN: Other OB/GYNL"},"OB/GYN: Other OB/GYN",2,"AAMC","Academic","Private","Professor","MD","2021-2022",268103,{"$f":"(((AAMC_Raw_Data_for_FY22[[#This Row],[Median]]-AAMC_Raw_Data_for_FY22[[#This Row],[25th]])/25)*5) + AAMC_Raw_Data_for_FY22[[#This Row],[25th]]","v":282675.40000000002},{"$f":"(((AAMC_Raw_Data_for_FY22[[#This Row],[Median]]-AAMC_Raw_Data_for_FY22[[#This Row],[25th]])/25)*10) + AAMC_Raw_Data_for_FY22[[#This Row],[25th]]","v":297247.8},{"$f":"(((AAMC_Raw_Data_for_FY22[[#This Row],[Median]]-AAMC_Raw_Data_for_FY22[[#This Row],[25th]])/25)*15) + AAMC_Raw_Data_for_FY22[[#This Row],[25th]]","v":311820.2},{"$f":"(((AAMC_Raw_Data_for_FY22[[#This Row],[Median]]-AAMC_Raw_Data_for_FY22[[#This Row],[25th]])/25)*20) + AAMC_Raw_Data_for_FY22[[#This Row],[25th]]","v":326392.59999999998},340965,{"$f":"(((AAMC_Raw_Data_for_FY22[[#This Row],[75th]]-AAMC_Raw_Data_for_FY22[[#This Row],[Median]])/25)*5) + AAMC_Raw_Data_for_FY22[[#This Row],[Median]]","v":350849.2},{"$f":"(((AAMC_Raw_Data_for_FY22[[#This Row],[75th]]-AAMC_Raw_Data_for_FY22[[#This Row],[Median]])/25)*10) + AAMC_Raw_Data_for_FY22[[#This Row],[Median]]","v":360733.4},{"$f":"(((AAMC_Raw_Data_for_FY22[[#This Row],[75th]]-AAMC_Raw_Data_for_FY22[[#This Row],[Median]])/25)*15) + AAMC_Raw_Data_for_FY22[[#This Row],[Median]]","v":370617.59999999998},{"$f":"(((AAMC_Raw_Data_for_FY22[[#This Row],[75th]]-AAMC_Raw_Data_for_FY22[[#This Row],[Median]])/25)*20) + AAMC_Raw_Data_for_FY22[[#This Row],[Median]]","v":380501.8},390386,{"$f":"(((AAMC_Raw_Data_for_FY22[[#This Row],[75th]]-AAMC_Raw_Data_for_FY22[[#This Row],[Median]])/25)*30) + AAMC_Raw_Data_for_FY22[[#This Row],[Median]]","v":400270.2},{"$f":"(((AAMC_Raw_Data_for_FY22[[#This Row],[75th]]-AAMC_Raw_Data_for_FY22[[#This Row],[Median]])/25)*35) + AAMC_Raw_Data_for_FY22[[#This Row],[Median]]","v":410154.4},{"$f":"(((AAMC_Raw_Data_for_FY22[[#This Row],[75th]]-AAMC_Raw_Data_for_FY22[[#This Row],[Median]])/25)*40) + AAMC_Raw_Data_for_FY22[[#This Row],[Median]]","v":420038.6}]
[{"$f":"AAMC_Raw_Data_for_FY22[[#This Row],[Source]]&AAMC_Raw_Data_for_FY22[[#This Row],[Type]]&AAMC_Raw_Data_for_FY22[[#This Row],[School Subset]]&AAMC_Raw_Data_for_FY22[[#This Row],[Rank]]&AAMC_Raw_Data_for_FY22[[#This Row],[Degree]]&AAMC_Raw_Data_for_FY22[[#This Row],[Department / Specialty]]&\"L\"","v":"AAMCAcademicPrivateChiefMDOB/GYN: Other OB/GYNL"},"OB/GYN: Other OB/GYN",6,"AAMC","Academic","Private","Chief","MD","2021-2022",396122,{"$f":"(((AAMC_Raw_Data_for_FY22[[#This Row],[Median]]-AAMC_Raw_Data_for_FY22[[#This Row],[25th]])/25)*5) + AAMC_Raw_Data_for_FY22[[#This Row],[25th]]","v":409915.8},{"$f":"(((AAMC_Raw_Data_for_FY22[[#This Row],[Median]]-AAMC_Raw_Data_for_FY22[[#This Row],[25th]])/25)*10) + AAMC_Raw_Data_for_FY22[[#This Row],[25th]]","v":423709.6},{"$f":"(((AAMC_Raw_Data_for_FY22[[#This Row],[Median]]-AAMC_Raw_Data_for_FY22[[#This Row],[25th]])/25)*15) + AAMC_Raw_Data_for_FY22[[#This Row],[25th]]","v":437503.4},{"$f":"(((AAMC_Raw_Data_for_FY22[[#This Row],[Median]]-AAMC_Raw_Data_for_FY22[[#This Row],[25th]])/25)*20) + AAMC_Raw_Data_for_FY22[[#This Row],[25th]]","v":451297.2},465091,{"$f":"(((AAMC_Raw_Data_for_FY22[[#This Row],[75th]]-AAMC_Raw_Data_for_FY22[[#This Row],[Median]])/25)*5) + AAMC_Raw_Data_for_FY22[[#This Row],[Median]]","v":481143.6},{"$f":"(((AAMC_Raw_Data_for_FY22[[#This Row],[75th]]-AAMC_Raw_Data_for_FY22[[#This Row],[Median]])/25)*10) + AAMC_Raw_Data_for_FY22[[#This Row],[Median]]","v":497196.2},{"$f":"(((AAMC_Raw_Data_for_FY22[[#This Row],[75th]]-AAMC_Raw_Data_for_FY22[[#This Row],[Median]])/25)*15) + AAMC_Raw_Data_for_FY22[[#This Row],[Median]]","v":513248.8},{"$f":"(((AAMC_Raw_Data_for_FY22[[#This Row],[75th]]-AAMC_Raw_Data_for_FY22[[#This Row],[Median]])/25)*20) + AAMC_Raw_Data_for_FY22[[#This Row],[Median]]","v":529301.4},545354,{"$f":"(((AAMC_Raw_Data_for_FY22[[#This Row],[75th]]-AAMC_Raw_Data_for_FY22[[#This Row],[Median]])/25)*30) + AAMC_Raw_Data_for_FY22[[#This Row],[Median]]","v":561406.6},{"$f":"(((AAMC_Raw_Data_for_FY22[[#This Row],[75th]]-AAMC_Raw_Data_for_FY22[[#This Row],[Median]])/25)*35) + AAMC_Raw_Data_for_FY22[[#This Row],[Median]]","v":577459.19999999995},{"$f":"(((AAMC_Raw_Data_for_FY22[[#This Row],[75th]]-AAMC_Raw_Data_for_FY22[[#This Row],[Median]])/25)*40) + AAMC_Raw_Data_for_FY22[[#This Row],[Median]]","v":593511.80000000005}]
[{"$f":"AAMC_Raw_Data_for_FY22[[#This Row],[Source]]&AAMC_Raw_Data_for_FY22[[#This Row],[Type]]&AAMC_Raw_Data_for_FY22[[#This Row],[School Subset]]&AAMC_Raw_Data_for_FY22[[#This Row],[Rank]]&AAMC_Raw_Data_for_FY22[[#This Row],[Degree]]&AAMC_Raw_Data_for_FY22[[#This Row],[Department / Specialty]]&\"L\"","v":"AAMCAcademicPrivateChairMDOB/GYN: Other OB/GYNL"},"OB/GYN: Other OB/GYN",1,"AAMC","Academic","Private","Chair","MD","2021-2022",510000,{"$f":"(((AAMC_Raw_Data_for_FY22[[#This Row],[Median]]-AAMC_Raw_Data_for_FY22[[#This Row],[25th]])/25)*5) + AAMC_Raw_Data_for_FY22[[#This Row],[25th]]","v":542000},{"$f":"(((AAMC_Raw_Data_for_FY22[[#This Row],[Median]]-AAMC_Raw_Data_for_FY22[[#This Row],[25th]])/25)*10) + AAMC_Raw_Data_for_FY22[[#This Row],[25th]]","v":574000},{"$f":"(((AAMC_Raw_Data_for_FY22[[#This Row],[Median]]-AAMC_Raw_Data_for_FY22[[#This Row],[25th]])/25)*15) + AAMC_Raw_Data_for_FY22[[#This Row],[25th]]","v":606000},{"$f":"(((AAMC_Raw_Data_for_FY22[[#This Row],[Median]]-AAMC_Raw_Data_for_FY22[[#This Row],[25th]])/25)*20) + AAMC_Raw_Data_for_FY22[[#This Row],[25th]]","v":638000},670000,{"$f":"(((AAMC_Raw_Data_for_FY22[[#This Row],[75th]]-AAMC_Raw_Data_for_FY22[[#This Row],[Median]])/25)*5) + AAMC_Raw_Data_for_FY22[[#This Row],[Median]]","v":707251.6},{"$f":"(((AAMC_Raw_Data_for_FY22[[#This Row],[75th]]-AAMC_Raw_Data_for_FY22[[#This Row],[Median]])/25)*10) + AAMC_Raw_Data_for_FY22[[#This Row],[Median]]","v":744503.2},{"$f":"(((AAMC_Raw_Data_for_FY22[[#This Row],[75th]]-AAMC_Raw_Data_for_FY22[[#This Row],[Median]])/25)*15) + AAMC_Raw_Data_for_FY22[[#This Row],[Median]]","v":781754.8},{"$f":"(((AAMC_Raw_Data_for_FY22[[#This Row],[75th]]-AAMC_Raw_Data_for_FY22[[#This Row],[Median]])/25)*20) + AAMC_Raw_Data_for_FY22[[#This Row],[Median]]","v":819006.4},856258,{"$f":"(((AAMC_Raw_Data_for_FY22[[#This Row],[75th]]-AAMC_Raw_Data_for_FY22[[#This Row],[Median]])/25)*30) + AAMC_Raw_Data_for_FY22[[#This Row],[Median]]","v":893509.6},{"$f":"(((AAMC_Raw_Data_for_FY22[[#This Row],[75th]]-AAMC_Raw_Data_for_FY22[[#This Row],[Median]])/25)*35) + AAMC_Raw_Data_for_FY22[[#This Row],[Median]]","v":930761.2},{"$f":"(((AAMC_Raw_Data_for_FY22[[#This Row],[75th]]-AAMC_Raw_Data_for_FY22[[#This Row],[Median]])/25)*40) + AAMC_Raw_Data_for_FY22[[#This Row],[Median]]","v":968012.80000000005}]
[{"$f":"AAMC_Raw_Data_for_FY22[[#This Row],[Source]]&AAMC_Raw_Data_for_FY22[[#This Row],[Type]]&AAMC_Raw_Data_for_FY22[[#This Row],[School Subset]]&AAMC_Raw_Data_for_FY22[[#This Row],[Rank]]&AAMC_Raw_Data_for_FY22[[#This Row],[Degree]]&AAMC_Raw_Data_for_FY22[[#This Row],[Department / Specialty]]&\"L\"","v":"AAMCAcademicPrivateInstructorMDPathology TotalL"},"Pathology Total",5,"AAMC","Academic","Private","Instructor","MD","2021-2022",121000,{"$f":"(((AAMC_Raw_Data_for_FY22[[#This Row],[Median]]-AAMC_Raw_Data_for_FY22[[#This Row],[25th]])/25)*5) + AAMC_Raw_Data_for_FY22[[#This Row],[25th]]","v":139600},{"$f":"(((AAMC_Raw_Data_for_FY22[[#This Row],[Median]]-AAMC_Raw_Data_for_FY22[[#This Row],[25th]])/25)*10) + AAMC_Raw_Data_for_FY22[[#This Row],[25th]]","v":158200},{"$f":"(((AAMC_Raw_Data_for_FY22[[#This Row],[Median]]-AAMC_Raw_Data_for_FY22[[#This Row],[25th]])/25)*15) + AAMC_Raw_Data_for_FY22[[#This Row],[25th]]","v":176800},{"$f":"(((AAMC_Raw_Data_for_FY22[[#This Row],[Median]]-AAMC_Raw_Data_for_FY22[[#This Row],[25th]])/25)*20) + AAMC_Raw_Data_for_FY22[[#This Row],[25th]]","v":195400},214000,{"$f":"(((AAMC_Raw_Data_for_FY22[[#This Row],[75th]]-AAMC_Raw_Data_for_FY22[[#This Row],[Median]])/25)*5) + AAMC_Raw_Data_for_FY22[[#This Row],[Median]]","v":221600},{"$f":"(((AAMC_Raw_Data_for_FY22[[#This Row],[75th]]-AAMC_Raw_Data_for_FY22[[#This Row],[Median]])/25)*10) + AAMC_Raw_Data_for_FY22[[#This Row],[Median]]","v":229200},{"$f":"(((AAMC_Raw_Data_for_FY22[[#This Row],[75th]]-AAMC_Raw_Data_for_FY22[[#This Row],[Median]])/25)*15) + AAMC_Raw_Data_for_FY22[[#This Row],[Median]]","v":236800},{"$f":"(((AAMC_Raw_Data_for_FY22[[#This Row],[75th]]-AAMC_Raw_Data_for_FY22[[#This Row],[Median]])/25)*20) + AAMC_Raw_Data_for_FY22[[#This Row],[Median]]","v":244400},252000,{"$f":"(((AAMC_Raw_Data_for_FY22[[#This Row],[75th]]-AAMC_Raw_Data_for_FY22[[#This Row],[Median]])/25)*30) + AAMC_Raw_Data_for_FY22[[#This Row],[Median]]","v":259600},{"$f":"(((AAMC_Raw_Data_for_FY22[[#This Row],[75th]]-AAMC_Raw_Data_for_FY22[[#This Row],[Median]])/25)*35) + AAMC_Raw_Data_for_FY22[[#This Row],[Median]]","v":267200},{"$f":"(((AAMC_Raw_Data_for_FY22[[#This Row],[75th]]-AAMC_Raw_Data_for_FY22[[#This Row],[Median]])/25)*40) + AAMC_Raw_Data_for_FY22[[#This Row],[Median]]","v":274800}]
[{"$f":"AAMC_Raw_Data_for_FY22[[#This Row],[Source]]&AAMC_Raw_Data_for_FY22[[#This Row],[Type]]&AAMC_Raw_Data_for_FY22[[#This Row],[School Subset]]&AAMC_Raw_Data_for_FY22[[#This Row],[Rank]]&AAMC_Raw_Data_for_FY22[[#This Row],[Degree]]&AAMC_Raw_Data_for_FY22[[#This Row],[Department / Specialty]]&\"L\"","v":"AAMCAcademicPrivateAssistantMDPathology TotalL"},"Pathology Total",4,"AAMC","Academic","Private","Assistant","MD","2021-2022",219715,{"$f":"(((AAMC_Raw_Data_for_FY22[[#This Row],[Median]]-AAMC_Raw_Data_for_FY22[[#This Row],[25th]])/25)*5) + AAMC_Raw_Data_for_FY22[[#This Row],[25th]]","v":225147},{"$f":"(((AAMC_Raw_Data_for_FY22[[#This Row],[Median]]-AAMC_Raw_Data_for_FY22[[#This Row],[25th]])/25)*10) + AAMC_Raw_Data_for_FY22[[#This Row],[25th]]","v":230579},{"$f":"(((AAMC_Raw_Data_for_FY22[[#This Row],[Median]]-AAMC_Raw_Data_for_FY22[[#This Row],[25th]])/25)*15) + AAMC_Raw_Data_for_FY22[[#This Row],[25th]]","v":236011},{"$f":"(((AAMC_Raw_Data_for_FY22[[#This Row],[Median]]-AAMC_Raw_Data_for_FY22[[#This Row],[25th]])/25)*20) + AAMC_Raw_Data_for_FY22[[#This Row],[25th]]","v":241443},246875,{"$f":"(((AAMC_Raw_Data_for_FY22[[#This Row],[75th]]-AAMC_Raw_Data_for_FY22[[#This Row],[Median]])/25)*5) + AAMC_Raw_Data_for_FY22[[#This Row],[Median]]","v":253613.4},{"$f":"(((AAMC_Raw_Data_for_FY22[[#This Row],[75th]]-AAMC_Raw_Data_for_FY22[[#This Row],[Median]])/25)*10) + AAMC_Raw_Data_for_FY22[[#This Row],[Median]]","v":260351.8},{"$f":"(((AAMC_Raw_Data_for_FY22[[#This Row],[75th]]-AAMC_Raw_Data_for_FY22[[#This Row],[Median]])/25)*15) + AAMC_Raw_Data_for_FY22[[#This Row],[Median]]","v":267090.2},{"$f":"(((AAMC_Raw_Data_for_FY22[[#This Row],[75th]]-AAMC_Raw_Data_for_FY22[[#This Row],[Median]])/25)*20) + AAMC_Raw_Data_for_FY22[[#This Row],[Median]]","v":273828.59999999998},280567,{"$f":"(((AAMC_Raw_Data_for_FY22[[#This Row],[75th]]-AAMC_Raw_Data_for_FY22[[#This Row],[Median]])/25)*30) + AAMC_Raw_Data_for_FY22[[#This Row],[Median]]","v":287305.40000000002},{"$f":"(((AAMC_Raw_Data_for_FY22[[#This Row],[75th]]-AAMC_Raw_Data_for_FY22[[#This Row],[Median]])/25)*35) + AAMC_Raw_Data_for_FY22[[#This Row],[Median]]","v":294043.8},{"$f":"(((AAMC_Raw_Data_for_FY22[[#This Row],[75th]]-AAMC_Raw_Data_for_FY22[[#This Row],[Median]])/25)*40) + AAMC_Raw_Data_for_FY22[[#This Row],[Median]]","v":300782.2}]
[{"$f":"AAMC_Raw_Data_for_FY22[[#This Row],[Source]]&AAMC_Raw_Data_for_FY22[[#This Row],[Type]]&AAMC_Raw_Data_for_FY22[[#This Row],[School Subset]]&AAMC_Raw_Data_for_FY22[[#This Row],[Rank]]&AAMC_Raw_Data_for_FY22[[#This Row],[Degree]]&AAMC_Raw_Data_for_FY22[[#This Row],[Department / Specialty]]&\"L\"","v":"AAMCAcademicPrivateAssociateMDPathology TotalL"},"Pathology Total",3,"AAMC","Academic","Private","Associate","MD","2021-2022",263304,{"$f":"(((AAMC_Raw_Data_for_FY22[[#This Row],[Median]]-AAMC_Raw_Data_for_FY22[[#This Row],[25th]])/25)*5) + AAMC_Raw_Data_for_FY22[[#This Row],[25th]]","v":270170},{"$f":"(((AAMC_Raw_Data_for_FY22[[#This Row],[Median]]-AAMC_Raw_Data_for_FY22[[#This Row],[25th]])/25)*10) + AAMC_Raw_Data_for_FY22[[#This Row],[25th]]","v":277036},{"$f":"(((AAMC_Raw_Data_for_FY22[[#This Row],[Median]]-AAMC_Raw_Data_for_FY22[[#This Row],[25th]])/25)*15) + AAMC_Raw_Data_for_FY22[[#This Row],[25th]]","v":283902},{"$f":"(((AAMC_Raw_Data_for_FY22[[#This Row],[Median]]-AAMC_Raw_Data_for_FY22[[#This Row],[25th]])/25)*20) + AAMC_Raw_Data_for_FY22[[#This Row],[25th]]","v":290768},297634,{"$f":"(((AAMC_Raw_Data_for_FY22[[#This Row],[75th]]-AAMC_Raw_Data_for_FY22[[#This Row],[Median]])/25)*5) + AAMC_Raw_Data_for_FY22[[#This Row],[Median]]","v":303681.2},{"$f":"(((AAMC_Raw_Data_for_FY22[[#This Row],[75th]]-AAMC_Raw_Data_for_FY22[[#This Row],[Median]])/25)*10) + AAMC_Raw_Data_for_FY22[[#This Row],[Median]]","v":309728.40000000002},{"$f":"(((AAMC_Raw_Data_for_FY22[[#This Row],[75th]]-AAMC_Raw_Data_for_FY22[[#This Row],[Median]])/25)*15) + AAMC_Raw_Data_for_FY22[[#This Row],[Median]]","v":315775.59999999998},{"$f":"(((AAMC_Raw_Data_for_FY22[[#This Row],[75th]]-AAMC_Raw_Data_for_FY22[[#This Row],[Median]])/25)*20) + AAMC_Raw_Data_for_FY22[[#This Row],[Median]]","v":321822.8},327870,{"$f":"(((AAMC_Raw_Data_for_FY22[[#This Row],[75th]]-AAMC_Raw_Data_for_FY22[[#This Row],[Median]])/25)*30) + AAMC_Raw_Data_for_FY22[[#This Row],[Median]]","v":333917.2},{"$f":"(((AAMC_Raw_Data_for_FY22[[#This Row],[75th]]-AAMC_Raw_Data_for_FY22[[#This Row],[Median]])/25)*35) + AAMC_Raw_Data_for_FY22[[#This Row],[Median]]","v":339964.4},{"$f":"(((AAMC_Raw_Data_for_FY22[[#This Row],[75th]]-AAMC_Raw_Data_for_FY22[[#This Row],[Median]])/25)*40) + AAMC_Raw_Data_for_FY22[[#This Row],[Median]]","v":346011.6}]
[{"$f":"AAMC_Raw_Data_for_FY22[[#This Row],[Source]]&AAMC_Raw_Data_for_FY22[[#This Row],[Type]]&AAMC_Raw_Data_for_FY22[[#This Row],[School Subset]]&AAMC_Raw_Data_for_FY22[[#This Row],[Rank]]&AAMC_Raw_Data_for_FY22[[#This Row],[Degree]]&AAMC_Raw_Data_for_FY22[[#This Row],[Department / Specialty]]&\"L\"","v":"AAMCAcademicPrivateProfessorMDPathology TotalL"},"Pathology Total",2,"AAMC","Academic","Private","Professor","MD","2021-2022",291769,{"$f":"(((AAMC_Raw_Data_for_FY22[[#This Row],[Median]]-AAMC_Raw_Data_for_FY22[[#This Row],[25th]])/25)*5) + AAMC_Raw_Data_for_FY22[[#This Row],[25th]]","v":303871.2},{"$f":"(((AAMC_Raw_Data_for_FY22[[#This Row],[Median]]-AAMC_Raw_Data_for_FY22[[#This Row],[25th]])/25)*10) + AAMC_Raw_Data_for_FY22[[#This Row],[25th]]","v":315973.40000000002},{"$f":"(((AAMC_Raw_Data_for_FY22[[#This Row],[Median]]-AAMC_Raw_Data_for_FY22[[#This Row],[25th]])/25)*15) + AAMC_Raw_Data_for_FY22[[#This Row],[25th]]","v":328075.59999999998},{"$f":"(((AAMC_Raw_Data_for_FY22[[#This Row],[Median]]-AAMC_Raw_Data_for_FY22[[#This Row],[25th]])/25)*20) + AAMC_Raw_Data_for_FY22[[#This Row],[25th]]","v":340177.8},352280,{"$f":"(((AAMC_Raw_Data_for_FY22[[#This Row],[75th]]-AAMC_Raw_Data_for_FY22[[#This Row],[Median]])/25)*5) + AAMC_Raw_Data_for_FY22[[#This Row],[Median]]","v":363523},{"$f":"(((AAMC_Raw_Data_for_FY22[[#This Row],[75th]]-AAMC_Raw_Data_for_FY22[[#This Row],[Median]])/25)*10) + AAMC_Raw_Data_for_FY22[[#This Row],[Median]]","v":374766},{"$f":"(((AAMC_Raw_Data_for_FY22[[#This Row],[75th]]-AAMC_Raw_Data_for_FY22[[#This Row],[Median]])/25)*15) + AAMC_Raw_Data_for_FY22[[#This Row],[Median]]","v":386009},{"$f":"(((AAMC_Raw_Data_for_FY22[[#This Row],[75th]]-AAMC_Raw_Data_for_FY22[[#This Row],[Median]])/25)*20) + AAMC_Raw_Data_for_FY22[[#This Row],[Median]]","v":397252},408495,{"$f":"(((AAMC_Raw_Data_for_FY22[[#This Row],[75th]]-AAMC_Raw_Data_for_FY22[[#This Row],[Median]])/25)*30) + AAMC_Raw_Data_for_FY22[[#This Row],[Median]]","v":419738},{"$f":"(((AAMC_Raw_Data_for_FY22[[#This Row],[75th]]-AAMC_Raw_Data_for_FY22[[#This Row],[Median]])/25)*35) + AAMC_Raw_Data_for_FY22[[#This Row],[Median]]","v":430981},{"$f":"(((AAMC_Raw_Data_for_FY22[[#This Row],[75th]]-AAMC_Raw_Data_for_FY22[[#This Row],[Median]])/25)*40) + AAMC_Raw_Data_for_FY22[[#This Row],[Median]]","v":442224}]
[{"$f":"AAMC_Raw_Data_for_FY22[[#This Row],[Source]]&AAMC_Raw_Data_for_FY22[[#This Row],[Type]]&AAMC_Raw_Data_for_FY22[[#This Row],[School Subset]]&AAMC_Raw_Data_for_FY22[[#This Row],[Rank]]&AAMC_Raw_Data_for_FY22[[#This Row],[Degree]]&AAMC_Raw_Data_for_FY22[[#This Row],[Department / Specialty]]&\"L\"","v":"AAMCAcademicPrivateChiefMDPathology TotalL"},"Pathology Total",6,"AAMC","Academic","Private","Chief","MD","2021-2022",359784,{"$f":"(((AAMC_Raw_Data_for_FY22[[#This Row],[Median]]-AAMC_Raw_Data_for_FY22[[#This Row],[25th]])/25)*5) + AAMC_Raw_Data_for_FY22[[#This Row],[25th]]","v":367828},{"$f":"(((AAMC_Raw_Data_for_FY22[[#This Row],[Median]]-AAMC_Raw_Data_for_FY22[[#This Row],[25th]])/25)*10) + AAMC_Raw_Data_for_FY22[[#This Row],[25th]]","v":375872},{"$f":"(((AAMC_Raw_Data_for_FY22[[#This Row],[Median]]-AAMC_Raw_Data_for_FY22[[#This Row],[25th]])/25)*15) + AAMC_Raw_Data_for_FY22[[#This Row],[25th]]","v":383916},{"$f":"(((AAMC_Raw_Data_for_FY22[[#This Row],[Median]]-AAMC_Raw_Data_for_FY22[[#This Row],[25th]])/25)*20) + AAMC_Raw_Data_for_FY22[[#This Row],[25th]]","v":391960},400004,{"$f":"(((AAMC_Raw_Data_for_FY22[[#This Row],[75th]]-AAMC_Raw_Data_for_FY22[[#This Row],[Median]])/25)*5) + AAMC_Raw_Data_for_FY22[[#This Row],[Median]]","v":412902},{"$f":"(((AAMC_Raw_Data_for_FY22[[#This Row],[75th]]-AAMC_Raw_Data_for_FY22[[#This Row],[Median]])/25)*10) + AAMC_Raw_Data_for_FY22[[#This Row],[Median]]","v":425800},{"$f":"(((AAMC_Raw_Data_for_FY22[[#This Row],[75th]]-AAMC_Raw_Data_for_FY22[[#This Row],[Median]])/25)*15) + AAMC_Raw_Data_for_FY22[[#This Row],[Median]]","v":438698},{"$f":"(((AAMC_Raw_Data_for_FY22[[#This Row],[75th]]-AAMC_Raw_Data_for_FY22[[#This Row],[Median]])/25)*20) + AAMC_Raw_Data_for_FY22[[#This Row],[Median]]","v":451596},464494,{"$f":"(((AAMC_Raw_Data_for_FY22[[#This Row],[75th]]-AAMC_Raw_Data_for_FY22[[#This Row],[Median]])/25)*30) + AAMC_Raw_Data_for_FY22[[#This Row],[Median]]","v":477392},{"$f":"(((AAMC_Raw_Data_for_FY22[[#This Row],[75th]]-AAMC_Raw_Data_for_FY22[[#This Row],[Median]])/25)*35) + AAMC_Raw_Data_for_FY22[[#This Row],[Median]]","v":490290},{"$f":"(((AAMC_Raw_Data_for_FY22[[#This Row],[75th]]-AAMC_Raw_Data_for_FY22[[#This Row],[Median]])/25)*40) + AAMC_Raw_Data_for_FY22[[#This Row],[Median]]","v":503188}]
[{"$f":"AAMC_Raw_Data_for_FY22[[#This Row],[Source]]&AAMC_Raw_Data_for_FY22[[#This Row],[Type]]&AAMC_Raw_Data_for_FY22[[#This Row],[School Subset]]&AAMC_Raw_Data_for_FY22[[#This Row],[Rank]]&AAMC_Raw_Data_for_FY22[[#This Row],[Degree]]&AAMC_Raw_Data_for_FY22[[#This Row],[Department / Specialty]]&\"L\"","v":"AAMCAcademicPrivateChairMDPathology TotalL"},"Pathology Total",1,"AAMC","Academic","Private","Chair","MD","2021-2022",521387,{"$f":"(((AAMC_Raw_Data_for_FY22[[#This Row],[Median]]-AAMC_Raw_Data_for_FY22[[#This Row],[25th]])/25)*5) + AAMC_Raw_Data_for_FY22[[#This Row],[25th]]","v":543670.6},{"$f":"(((AAMC_Raw_Data_for_FY22[[#This Row],[Median]]-AAMC_Raw_Data_for_FY22[[#This Row],[25th]])/25)*10) + AAMC_Raw_Data_for_FY22[[#This Row],[25th]]","v":565954.19999999995},{"$f":"(((AAMC_Raw_Data_for_FY22[[#This Row],[Median]]-AAMC_Raw_Data_for_FY22[[#This Row],[25th]])/25)*15) + AAMC_Raw_Data_for_FY22[[#This Row],[25th]]","v":588237.80000000005},{"$f":"(((AAMC_Raw_Data_for_FY22[[#This Row],[Median]]-AAMC_Raw_Data_for_FY22[[#This Row],[25th]])/25)*20) + AAMC_Raw_Data_for_FY22[[#This Row],[25th]]","v":610521.4},632805,{"$f":"(((AAMC_Raw_Data_for_FY22[[#This Row],[75th]]-AAMC_Raw_Data_for_FY22[[#This Row],[Median]])/25)*5) + AAMC_Raw_Data_for_FY22[[#This Row],[Median]]","v":649589},{"$f":"(((AAMC_Raw_Data_for_FY22[[#This Row],[75th]]-AAMC_Raw_Data_for_FY22[[#This Row],[Median]])/25)*10) + AAMC_Raw_Data_for_FY22[[#This Row],[Median]]","v":666373},{"$f":"(((AAMC_Raw_Data_for_FY22[[#This Row],[75th]]-AAMC_Raw_Data_for_FY22[[#This Row],[Median]])/25)*15) + AAMC_Raw_Data_for_FY22[[#This Row],[Median]]","v":683157},{"$f":"(((AAMC_Raw_Data_for_FY22[[#This Row],[75th]]-AAMC_Raw_Data_for_FY22[[#This Row],[Median]])/25)*20) + AAMC_Raw_Data_for_FY22[[#This Row],[Median]]","v":699941},716725,{"$f":"(((AAMC_Raw_Data_for_FY22[[#This Row],[75th]]-AAMC_Raw_Data_for_FY22[[#This Row],[Median]])/25)*30) + AAMC_Raw_Data_for_FY22[[#This Row],[Median]]","v":733509},{"$f":"(((AAMC_Raw_Data_for_FY22[[#This Row],[75th]]-AAMC_Raw_Data_for_FY22[[#This Row],[Median]])/25)*35) + AAMC_Raw_Data_for_FY22[[#This Row],[Median]]","v":750293},{"$f":"(((AAMC_Raw_Data_for_FY22[[#This Row],[75th]]-AAMC_Raw_Data_for_FY22[[#This Row],[Median]])/25)*40) + AAMC_Raw_Data_for_FY22[[#This Row],[Median]]","v":767077}]
[{"$f":"AAMC_Raw_Data_for_FY22[[#This Row],[Source]]&AAMC_Raw_Data_for_FY22[[#This Row],[Type]]&AAMC_Raw_Data_for_FY22[[#This Row],[School Subset]]&AAMC_Raw_Data_for_FY22[[#This Row],[Rank]]&AAMC_Raw_Data_for_FY22[[#This Row],[Degree]]&AAMC_Raw_Data_for_FY22[[#This Row],[Department / Specialty]]&\"L\"","v":"AAMCAcademicPrivateInstructorMDPathology: AnatomicL"},"Pathology: Anatomic",5,"AAMC","Academic","Private","Instructor","MD","2021-2022",212460,{"$f":"(((AAMC_Raw_Data_for_FY22[[#This Row],[Median]]-AAMC_Raw_Data_for_FY22[[#This Row],[25th]])/25)*5) + AAMC_Raw_Data_for_FY22[[#This Row],[25th]]","v":216015},{"$f":"(((AAMC_Raw_Data_for_FY22[[#This Row],[Median]]-AAMC_Raw_Data_for_FY22[[#This Row],[25th]])/25)*10) + AAMC_Raw_Data_for_FY22[[#This Row],[25th]]","v":219570},{"$f":"(((AAMC_Raw_Data_for_FY22[[#This Row],[Median]]-AAMC_Raw_Data_for_FY22[[#This Row],[25th]])/25)*15) + AAMC_Raw_Data_for_FY22[[#This Row],[25th]]","v":223125},{"$f":"(((AAMC_Raw_Data_for_FY22[[#This Row],[Median]]-AAMC_Raw_Data_for_FY22[[#This Row],[25th]])/25)*20) + AAMC_Raw_Data_for_FY22[[#This Row],[25th]]","v":226680},230235,{"$f":"(((AAMC_Raw_Data_for_FY22[[#This Row],[75th]]-AAMC_Raw_Data_for_FY22[[#This Row],[Median]])/25)*5) + AAMC_Raw_Data_for_FY22[[#This Row],[Median]]","v":240763},{"$f":"(((AAMC_Raw_Data_for_FY22[[#This Row],[75th]]-AAMC_Raw_Data_for_FY22[[#This Row],[Median]])/25)*10) + AAMC_Raw_Data_for_FY22[[#This Row],[Median]]","v":251291},{"$f":"(((AAMC_Raw_Data_for_FY22[[#This Row],[75th]]-AAMC_Raw_Data_for_FY22[[#This Row],[Median]])/25)*15) + AAMC_Raw_Data_for_FY22[[#This Row],[Median]]","v":261819},{"$f":"(((AAMC_Raw_Data_for_FY22[[#This Row],[75th]]-AAMC_Raw_Data_for_FY22[[#This Row],[Median]])/25)*20) + AAMC_Raw_Data_for_FY22[[#This Row],[Median]]","v":272347},282875,{"$f":"(((AAMC_Raw_Data_for_FY22[[#This Row],[75th]]-AAMC_Raw_Data_for_FY22[[#This Row],[Median]])/25)*30) + AAMC_Raw_Data_for_FY22[[#This Row],[Median]]","v":293403},{"$f":"(((AAMC_Raw_Data_for_FY22[[#This Row],[75th]]-AAMC_Raw_Data_for_FY22[[#This Row],[Median]])/25)*35) + AAMC_Raw_Data_for_FY22[[#This Row],[Median]]","v":303931},{"$f":"(((AAMC_Raw_Data_for_FY22[[#This Row],[75th]]-AAMC_Raw_Data_for_FY22[[#This Row],[Median]])/25)*40) + AAMC_Raw_Data_for_FY22[[#This Row],[Median]]","v":314459}]
[{"$f":"AAMC_Raw_Data_for_FY22[[#This Row],[Source]]&AAMC_Raw_Data_for_FY22[[#This Row],[Type]]&AAMC_Raw_Data_for_FY22[[#This Row],[School Subset]]&AAMC_Raw_Data_for_FY22[[#This Row],[Rank]]&AAMC_Raw_Data_for_FY22[[#This Row],[Degree]]&AAMC_Raw_Data_for_FY22[[#This Row],[Department / Specialty]]&\"L\"","v":"AAMCAcademicPrivateAssistantMDPathology: AnatomicL"},"Pathology: Anatomic",4,"AAMC","Academic","Private","Assistant","MD","2021-2022",232555,{"$f":"(((AAMC_Raw_Data_for_FY22[[#This Row],[Median]]-AAMC_Raw_Data_for_FY22[[#This Row],[25th]])/25)*5) + AAMC_Raw_Data_for_FY22[[#This Row],[25th]]","v":238323.20000000001},{"$f":"(((AAMC_Raw_Data_for_FY22[[#This Row],[Median]]-AAMC_Raw_Data_for_FY22[[#This Row],[25th]])/25)*10) + AAMC_Raw_Data_for_FY22[[#This Row],[25th]]","v":244091.4},{"$f":"(((AAMC_Raw_Data_for_FY22[[#This Row],[Median]]-AAMC_Raw_Data_for_FY22[[#This Row],[25th]])/25)*15) + AAMC_Raw_Data_for_FY22[[#This Row],[25th]]","v":249859.6},{"$f":"(((AAMC_Raw_Data_for_FY22[[#This Row],[Median]]-AAMC_Raw_Data_for_FY22[[#This Row],[25th]])/25)*20) + AAMC_Raw_Data_for_FY22[[#This Row],[25th]]","v":255627.8},261396,{"$f":"(((AAMC_Raw_Data_for_FY22[[#This Row],[75th]]-AAMC_Raw_Data_for_FY22[[#This Row],[Median]])/25)*5) + AAMC_Raw_Data_for_FY22[[#This Row],[Median]]","v":268813},{"$f":"(((AAMC_Raw_Data_for_FY22[[#This Row],[75th]]-AAMC_Raw_Data_for_FY22[[#This Row],[Median]])/25)*10) + AAMC_Raw_Data_for_FY22[[#This Row],[Median]]","v":276230},{"$f":"(((AAMC_Raw_Data_for_FY22[[#This Row],[75th]]-AAMC_Raw_Data_for_FY22[[#This Row],[Median]])/25)*15) + AAMC_Raw_Data_for_FY22[[#This Row],[Median]]","v":283647},{"$f":"(((AAMC_Raw_Data_for_FY22[[#This Row],[75th]]-AAMC_Raw_Data_for_FY22[[#This Row],[Median]])/25)*20) + AAMC_Raw_Data_for_FY22[[#This Row],[Median]]","v":291064},298481,{"$f":"(((AAMC_Raw_Data_for_FY22[[#This Row],[75th]]-AAMC_Raw_Data_for_FY22[[#This Row],[Median]])/25)*30) + AAMC_Raw_Data_for_FY22[[#This Row],[Median]]","v":305898},{"$f":"(((AAMC_Raw_Data_for_FY22[[#This Row],[75th]]-AAMC_Raw_Data_for_FY22[[#This Row],[Median]])/25)*35) + AAMC_Raw_Data_for_FY22[[#This Row],[Median]]","v":313315},{"$f":"(((AAMC_Raw_Data_for_FY22[[#This Row],[75th]]-AAMC_Raw_Data_for_FY22[[#This Row],[Median]])/25)*40) + AAMC_Raw_Data_for_FY22[[#This Row],[Median]]","v":320732}]
[{"$f":"AAMC_Raw_Data_for_FY22[[#This Row],[Source]]&AAMC_Raw_Data_for_FY22[[#This Row],[Type]]&AAMC_Raw_Data_for_FY22[[#This Row],[School Subset]]&AAMC_Raw_Data_for_FY22[[#This Row],[Rank]]&AAMC_Raw_Data_for_FY22[[#This Row],[Degree]]&AAMC_Raw_Data_for_FY22[[#This Row],[Department / Specialty]]&\"L\"","v":"AAMCAcademicPrivateAssociateMDPathology: AnatomicL"},"Pathology: Anatomic",3,"AAMC","Academic","Private","Associate","MD","2021-2022",274538,{"$f":"(((AAMC_Raw_Data_for_FY22[[#This Row],[Median]]-AAMC_Raw_Data_for_FY22[[#This Row],[25th]])/25)*5) + AAMC_Raw_Data_for_FY22[[#This Row],[25th]]","v":280095.40000000002},{"$f":"(((AAMC_Raw_Data_for_FY22[[#This Row],[Median]]-AAMC_Raw_Data_for_FY22[[#This Row],[25th]])/25)*10) + AAMC_Raw_Data_for_FY22[[#This Row],[25th]]","v":285652.8},{"$f":"(((AAMC_Raw_Data_for_FY22[[#This Row],[Median]]-AAMC_Raw_Data_for_FY22[[#This Row],[25th]])/25)*15) + AAMC_Raw_Data_for_FY22[[#This Row],[25th]]","v":291210.2},{"$f":"(((AAMC_Raw_Data_for_FY22[[#This Row],[Median]]-AAMC_Raw_Data_for_FY22[[#This Row],[25th]])/25)*20) + AAMC_Raw_Data_for_FY22[[#This Row],[25th]]","v":296767.59999999998},302325,{"$f":"(((AAMC_Raw_Data_for_FY22[[#This Row],[75th]]-AAMC_Raw_Data_for_FY22[[#This Row],[Median]])/25)*5) + AAMC_Raw_Data_for_FY22[[#This Row],[Median]]","v":309341.40000000002},{"$f":"(((AAMC_Raw_Data_for_FY22[[#This Row],[75th]]-AAMC_Raw_Data_for_FY22[[#This Row],[Median]])/25)*10) + AAMC_Raw_Data_for_FY22[[#This Row],[Median]]","v":316357.8},{"$f":"(((AAMC_Raw_Data_for_FY22[[#This Row],[75th]]-AAMC_Raw_Data_for_FY22[[#This Row],[Median]])/25)*15) + AAMC_Raw_Data_for_FY22[[#This Row],[Median]]","v":323374.2},{"$f":"(((AAMC_Raw_Data_for_FY22[[#This Row],[75th]]-AAMC_Raw_Data_for_FY22[[#This Row],[Median]])/25)*20) + AAMC_Raw_Data_for_FY22[[#This Row],[Median]]","v":330390.59999999998},337407,{"$f":"(((AAMC_Raw_Data_for_FY22[[#This Row],[75th]]-AAMC_Raw_Data_for_FY22[[#This Row],[Median]])/25)*30) + AAMC_Raw_Data_for_FY22[[#This Row],[Median]]","v":344423.4},{"$f":"(((AAMC_Raw_Data_for_FY22[[#This Row],[75th]]-AAMC_Raw_Data_for_FY22[[#This Row],[Median]])/25)*35) + AAMC_Raw_Data_for_FY22[[#This Row],[Median]]","v":351439.8},{"$f":"(((AAMC_Raw_Data_for_FY22[[#This Row],[75th]]-AAMC_Raw_Data_for_FY22[[#This Row],[Median]])/25)*40) + AAMC_Raw_Data_for_FY22[[#This Row],[Median]]","v":358456.2}]
[{"$f":"AAMC_Raw_Data_for_FY22[[#This Row],[Source]]&AAMC_Raw_Data_for_FY22[[#This Row],[Type]]&AAMC_Raw_Data_for_FY22[[#This Row],[School Subset]]&AAMC_Raw_Data_for_FY22[[#This Row],[Rank]]&AAMC_Raw_Data_for_FY22[[#This Row],[Degree]]&AAMC_Raw_Data_for_FY22[[#This Row],[Department / Specialty]]&\"L\"","v":"AAMCAcademicPrivateProfessorMDPathology: AnatomicL"},"Pathology: Anatomic",2,"AAMC","Academic","Private","Professor","MD","2021-2022",315234,{"$f":"(((AAMC_Raw_Data_for_FY22[[#This Row],[Median]]-AAMC_Raw_Data_for_FY22[[#This Row],[25th]])/25)*5) + AAMC_Raw_Data_for_FY22[[#This Row],[25th]]","v":325419.59999999998},{"$f":"(((AAMC_Raw_Data_for_FY22[[#This Row],[Median]]-AAMC_Raw_Data_for_FY22[[#This Row],[25th]])/25)*10) + AAMC_Raw_Data_for_FY22[[#This Row],[25th]]","v":335605.2},{"$f":"(((AAMC_Raw_Data_for_FY22[[#This Row],[Median]]-AAMC_Raw_Data_for_FY22[[#This Row],[25th]])/25)*15) + AAMC_Raw_Data_for_FY22[[#This Row],[25th]]","v":345790.8},{"$f":"(((AAMC_Raw_Data_for_FY22[[#This Row],[Median]]-AAMC_Raw_Data_for_FY22[[#This Row],[25th]])/25)*20) + AAMC_Raw_Data_for_FY22[[#This Row],[25th]]","v":355976.4},366162,{"$f":"(((AAMC_Raw_Data_for_FY22[[#This Row],[75th]]-AAMC_Raw_Data_for_FY22[[#This Row],[Median]])/25)*5) + AAMC_Raw_Data_for_FY22[[#This Row],[Median]]","v":377124.2},{"$f":"(((AAMC_Raw_Data_for_FY22[[#This Row],[75th]]-AAMC_Raw_Data_for_FY22[[#This Row],[Median]])/25)*10) + AAMC_Raw_Data_for_FY22[[#This Row],[Median]]","v":388086.4},{"$f":"(((AAMC_Raw_Data_for_FY22[[#This Row],[75th]]-AAMC_Raw_Data_for_FY22[[#This Row],[Median]])/25)*15) + AAMC_Raw_Data_for_FY22[[#This Row],[Median]]","v":399048.6},{"$f":"(((AAMC_Raw_Data_for_FY22[[#This Row],[75th]]-AAMC_Raw_Data_for_FY22[[#This Row],[Median]])/25)*20) + AAMC_Raw_Data_for_FY22[[#This Row],[Median]]","v":410010.8},420973,{"$f":"(((AAMC_Raw_Data_for_FY22[[#This Row],[75th]]-AAMC_Raw_Data_for_FY22[[#This Row],[Median]])/25)*30) + AAMC_Raw_Data_for_FY22[[#This Row],[Median]]","v":431935.2},{"$f":"(((AAMC_Raw_Data_for_FY22[[#This Row],[75th]]-AAMC_Raw_Data_for_FY22[[#This Row],[Median]])/25)*35) + AAMC_Raw_Data_for_FY22[[#This Row],[Median]]","v":442897.4},{"$f":"(((AAMC_Raw_Data_for_FY22[[#This Row],[75th]]-AAMC_Raw_Data_for_FY22[[#This Row],[Median]])/25)*40) + AAMC_Raw_Data_for_FY22[[#This Row],[Median]]","v":453859.6}]
[{"$f":"AAMC_Raw_Data_for_FY22[[#This Row],[Source]]&AAMC_Raw_Data_for_FY22[[#This Row],[Type]]&AAMC_Raw_Data_for_FY22[[#This Row],[School Subset]]&AAMC_Raw_Data_for_FY22[[#This Row],[Rank]]&AAMC_Raw_Data_for_FY22[[#This Row],[Degree]]&AAMC_Raw_Data_for_FY22[[#This Row],[Department / Specialty]]&\"L\"","v":"AAMCAcademicPrivateChiefMDPathology: AnatomicL"},"Pathology: Anatomic",6,"AAMC","Academic","Private","Chief","MD","2021-2022",364512,{"$f":"(((AAMC_Raw_Data_for_FY22[[#This Row],[Median]]-AAMC_Raw_Data_for_FY22[[#This Row],[25th]])/25)*5) + AAMC_Raw_Data_for_FY22[[#This Row],[25th]]","v":373094.2},{"$f":"(((AAMC_Raw_Data_for_FY22[[#This Row],[Median]]-AAMC_Raw_Data_for_FY22[[#This Row],[25th]])/25)*10) + AAMC_Raw_Data_for_FY22[[#This Row],[25th]]","v":381676.4},{"$f":"(((AAMC_Raw_Data_for_FY22[[#This Row],[Median]]-AAMC_Raw_Data_for_FY22[[#This Row],[25th]])/25)*15) + AAMC_Raw_Data_for_FY22[[#This Row],[25th]]","v":390258.6},{"$f":"(((AAMC_Raw_Data_for_FY22[[#This Row],[Median]]-AAMC_Raw_Data_for_FY22[[#This Row],[25th]])/25)*20) + AAMC_Raw_Data_for_FY22[[#This Row],[25th]]","v":398840.8},407423,{"$f":"(((AAMC_Raw_Data_for_FY22[[#This Row],[75th]]-AAMC_Raw_Data_for_FY22[[#This Row],[Median]])/25)*5) + AAMC_Raw_Data_for_FY22[[#This Row],[Median]]","v":420242.2},{"$f":"(((AAMC_Raw_Data_for_FY22[[#This Row],[75th]]-AAMC_Raw_Data_for_FY22[[#This Row],[Median]])/25)*10) + AAMC_Raw_Data_for_FY22[[#This Row],[Median]]","v":433061.4},{"$f":"(((AAMC_Raw_Data_for_FY22[[#This Row],[75th]]-AAMC_Raw_Data_for_FY22[[#This Row],[Median]])/25)*15) + AAMC_Raw_Data_for_FY22[[#This Row],[Median]]","v":445880.6},{"$f":"(((AAMC_Raw_Data_for_FY22[[#This Row],[75th]]-AAMC_Raw_Data_for_FY22[[#This Row],[Median]])/25)*20) + AAMC_Raw_Data_for_FY22[[#This Row],[Median]]","v":458699.8},471519,{"$f":"(((AAMC_Raw_Data_for_FY22[[#This Row],[75th]]-AAMC_Raw_Data_for_FY22[[#This Row],[Median]])/25)*30) + AAMC_Raw_Data_for_FY22[[#This Row],[Median]]","v":484338.2},{"$f":"(((AAMC_Raw_Data_for_FY22[[#This Row],[75th]]-AAMC_Raw_Data_for_FY22[[#This Row],[Median]])/25)*35) + AAMC_Raw_Data_for_FY22[[#This Row],[Median]]","v":497157.4},{"$f":"(((AAMC_Raw_Data_for_FY22[[#This Row],[75th]]-AAMC_Raw_Data_for_FY22[[#This Row],[Median]])/25)*40) + AAMC_Raw_Data_for_FY22[[#This Row],[Median]]","v":509976.6}]
[{"$f":"AAMC_Raw_Data_for_FY22[[#This Row],[Source]]&AAMC_Raw_Data_for_FY22[[#This Row],[Type]]&AAMC_Raw_Data_for_FY22[[#This Row],[School Subset]]&AAMC_Raw_Data_for_FY22[[#This Row],[Rank]]&AAMC_Raw_Data_for_FY22[[#This Row],[Degree]]&AAMC_Raw_Data_for_FY22[[#This Row],[Department / Specialty]]&\"L\"","v":"AAMCAcademicPrivateChairMDPathology: AnatomicL"},"Pathology: Anatomic",1,"AAMC","Academic","Private","Chair","MD","2021-2022",611938,{"$f":"(((AAMC_Raw_Data_for_FY22[[#This Row],[Median]]-AAMC_Raw_Data_for_FY22[[#This Row],[25th]])/25)*5) + AAMC_Raw_Data_for_FY22[[#This Row],[25th]]","v":622179.80000000005},{"$f":"(((AAMC_Raw_Data_for_FY22[[#This Row],[Median]]-AAMC_Raw_Data_for_FY22[[#This Row],[25th]])/25)*10) + AAMC_Raw_Data_for_FY22[[#This Row],[25th]]","v":632421.6},{"$f":"(((AAMC_Raw_Data_for_FY22[[#This Row],[Median]]-AAMC_Raw_Data_for_FY22[[#This Row],[25th]])/25)*15) + AAMC_Raw_Data_for_FY22[[#This Row],[25th]]","v":642663.4},{"$f":"(((AAMC_Raw_Data_for_FY22[[#This Row],[Median]]-AAMC_Raw_Data_for_FY22[[#This Row],[25th]])/25)*20) + AAMC_Raw_Data_for_FY22[[#This Row],[25th]]","v":652905.19999999995},663147,{"$f":"(((AAMC_Raw_Data_for_FY22[[#This Row],[75th]]-AAMC_Raw_Data_for_FY22[[#This Row],[Median]])/25)*5) + AAMC_Raw_Data_for_FY22[[#This Row],[Median]]","v":715097.59999999998},{"$f":"(((AAMC_Raw_Data_for_FY22[[#This Row],[75th]]-AAMC_Raw_Data_for_FY22[[#This Row],[Median]])/25)*10) + AAMC_Raw_Data_for_FY22[[#This Row],[Median]]","v":767048.2},{"$f":"(((AAMC_Raw_Data_for_FY22[[#This Row],[75th]]-AAMC_Raw_Data_for_FY22[[#This Row],[Median]])/25)*15) + AAMC_Raw_Data_for_FY22[[#This Row],[Median]]","v":818998.8},{"$f":"(((AAMC_Raw_Data_for_FY22[[#This Row],[75th]]-AAMC_Raw_Data_for_FY22[[#This Row],[Median]])/25)*20) + AAMC_Raw_Data_for_FY22[[#This Row],[Median]]","v":870949.4},922900,{"$f":"(((AAMC_Raw_Data_for_FY22[[#This Row],[75th]]-AAMC_Raw_Data_for_FY22[[#This Row],[Median]])/25)*30) + AAMC_Raw_Data_for_FY22[[#This Row],[Median]]","v":974850.60000000009},{"$f":"(((AAMC_Raw_Data_for_FY22[[#This Row],[75th]]-AAMC_Raw_Data_for_FY22[[#This Row],[Median]])/25)*35) + AAMC_Raw_Data_for_FY22[[#This Row],[Median]]","v":1026801.2},{"$f":"(((AAMC_Raw_Data_for_FY22[[#This Row],[75th]]-AAMC_Raw_Data_for_FY22[[#This Row],[Median]])/25)*40) + AAMC_Raw_Data_for_FY22[[#This Row],[Median]]","v":1078751.8}]
[{"$f":"AAMC_Raw_Data_for_FY22[[#This Row],[Source]]&AAMC_Raw_Data_for_FY22[[#This Row],[Type]]&AAMC_Raw_Data_for_FY22[[#This Row],[School Subset]]&AAMC_Raw_Data_for_FY22[[#This Row],[Rank]]&AAMC_Raw_Data_for_FY22[[#This Row],[Degree]]&AAMC_Raw_Data_for_FY22[[#This Row],[Department / Specialty]]&\"L\"","v":"AAMCAcademicPrivateInstructorMDPathology: ClinicalL"},"Pathology: Clinical",5,"AAMC","Academic","Private","Instructor","MD","2021-2022",163035,{"$f":"(((AAMC_Raw_Data_for_FY22[[#This Row],[Median]]-AAMC_Raw_Data_for_FY22[[#This Row],[25th]])/25)*5) + AAMC_Raw_Data_for_FY22[[#This Row],[25th]]","v":172228},{"$f":"(((AAMC_Raw_Data_for_FY22[[#This Row],[Median]]-AAMC_Raw_Data_for_FY22[[#This Row],[25th]])/25)*10) + AAMC_Raw_Data_for_FY22[[#This Row],[25th]]","v":181421},{"$f":"(((AAMC_Raw_Data_for_FY22[[#This Row],[Median]]-AAMC_Raw_Data_for_FY22[[#This Row],[25th]])/25)*15) + AAMC_Raw_Data_for_FY22[[#This Row],[25th]]","v":190614},{"$f":"(((AAMC_Raw_Data_for_FY22[[#This Row],[Median]]-AAMC_Raw_Data_for_FY22[[#This Row],[25th]])/25)*20) + AAMC_Raw_Data_for_FY22[[#This Row],[25th]]","v":199807},209000,{"$f":"(((AAMC_Raw_Data_for_FY22[[#This Row],[75th]]-AAMC_Raw_Data_for_FY22[[#This Row],[Median]])/25)*5) + AAMC_Raw_Data_for_FY22[[#This Row],[Median]]","v":210688.6},{"$f":"(((AAMC_Raw_Data_for_FY22[[#This Row],[75th]]-AAMC_Raw_Data_for_FY22[[#This Row],[Median]])/25)*10) + AAMC_Raw_Data_for_FY22[[#This Row],[Median]]","v":212377.2},{"$f":"(((AAMC_Raw_Data_for_FY22[[#This Row],[75th]]-AAMC_Raw_Data_for_FY22[[#This Row],[Median]])/25)*15) + AAMC_Raw_Data_for_FY22[[#This Row],[Median]]","v":214065.8},{"$f":"(((AAMC_Raw_Data_for_FY22[[#This Row],[75th]]-AAMC_Raw_Data_for_FY22[[#This Row],[Median]])/25)*20) + AAMC_Raw_Data_for_FY22[[#This Row],[Median]]","v":215754.4},217443,{"$f":"(((AAMC_Raw_Data_for_FY22[[#This Row],[75th]]-AAMC_Raw_Data_for_FY22[[#This Row],[Median]])/25)*30) + AAMC_Raw_Data_for_FY22[[#This Row],[Median]]","v":219131.6},{"$f":"(((AAMC_Raw_Data_for_FY22[[#This Row],[75th]]-AAMC_Raw_Data_for_FY22[[#This Row],[Median]])/25)*35) + AAMC_Raw_Data_for_FY22[[#This Row],[Median]]","v":220820.2},{"$f":"(((AAMC_Raw_Data_for_FY22[[#This Row],[75th]]-AAMC_Raw_Data_for_FY22[[#This Row],[Median]])/25)*40) + AAMC_Raw_Data_for_FY22[[#This Row],[Median]]","v":222508.79999999999}]
[{"$f":"AAMC_Raw_Data_for_FY22[[#This Row],[Source]]&AAMC_Raw_Data_for_FY22[[#This Row],[Type]]&AAMC_Raw_Data_for_FY22[[#This Row],[School Subset]]&AAMC_Raw_Data_for_FY22[[#This Row],[Rank]]&AAMC_Raw_Data_for_FY22[[#This Row],[Degree]]&AAMC_Raw_Data_for_FY22[[#This Row],[Department / Specialty]]&\"L\"","v":"AAMCAcademicPrivateAssistantMDPathology: ClinicalL"},"Pathology: Clinical",4,"AAMC","Academic","Private","Assistant","MD","2021-2022",212412,{"$f":"(((AAMC_Raw_Data_for_FY22[[#This Row],[Median]]-AAMC_Raw_Data_for_FY22[[#This Row],[25th]])/25)*5) + AAMC_Raw_Data_for_FY22[[#This Row],[25th]]","v":216874.8},{"$f":"(((AAMC_Raw_Data_for_FY22[[#This Row],[Median]]-AAMC_Raw_Data_for_FY22[[#This Row],[25th]])/25)*10) + AAMC_Raw_Data_for_FY22[[#This Row],[25th]]","v":221337.60000000001},{"$f":"(((AAMC_Raw_Data_for_FY22[[#This Row],[Median]]-AAMC_Raw_Data_for_FY22[[#This Row],[25th]])/25)*15) + AAMC_Raw_Data_for_FY22[[#This Row],[25th]]","v":225800.4},{"$f":"(((AAMC_Raw_Data_for_FY22[[#This Row],[Median]]-AAMC_Raw_Data_for_FY22[[#This Row],[25th]])/25)*20) + AAMC_Raw_Data_for_FY22[[#This Row],[25th]]","v":230263.2},234726,{"$f":"(((AAMC_Raw_Data_for_FY22[[#This Row],[75th]]-AAMC_Raw_Data_for_FY22[[#This Row],[Median]])/25)*5) + AAMC_Raw_Data_for_FY22[[#This Row],[Median]]","v":240511},{"$f":"(((AAMC_Raw_Data_for_FY22[[#This Row],[75th]]-AAMC_Raw_Data_for_FY22[[#This Row],[Median]])/25)*10) + AAMC_Raw_Data_for_FY22[[#This Row],[Median]]","v":246296},{"$f":"(((AAMC_Raw_Data_for_FY22[[#This Row],[75th]]-AAMC_Raw_Data_for_FY22[[#This Row],[Median]])/25)*15) + AAMC_Raw_Data_for_FY22[[#This Row],[Median]]","v":252081},{"$f":"(((AAMC_Raw_Data_for_FY22[[#This Row],[75th]]-AAMC_Raw_Data_for_FY22[[#This Row],[Median]])/25)*20) + AAMC_Raw_Data_for_FY22[[#This Row],[Median]]","v":257866},263651,{"$f":"(((AAMC_Raw_Data_for_FY22[[#This Row],[75th]]-AAMC_Raw_Data_for_FY22[[#This Row],[Median]])/25)*30) + AAMC_Raw_Data_for_FY22[[#This Row],[Median]]","v":269436},{"$f":"(((AAMC_Raw_Data_for_FY22[[#This Row],[75th]]-AAMC_Raw_Data_for_FY22[[#This Row],[Median]])/25)*35) + AAMC_Raw_Data_for_FY22[[#This Row],[Median]]","v":275221},{"$f":"(((AAMC_Raw_Data_for_FY22[[#This Row],[75th]]-AAMC_Raw_Data_for_FY22[[#This Row],[Median]])/25)*40) + AAMC_Raw_Data_for_FY22[[#This Row],[Median]]","v":281006}]
[{"$f":"AAMC_Raw_Data_for_FY22[[#This Row],[Source]]&AAMC_Raw_Data_for_FY22[[#This Row],[Type]]&AAMC_Raw_Data_for_FY22[[#This Row],[School Subset]]&AAMC_Raw_Data_for_FY22[[#This Row],[Rank]]&AAMC_Raw_Data_for_FY22[[#This Row],[Degree]]&AAMC_Raw_Data_for_FY22[[#This Row],[Department / Specialty]]&\"L\"","v":"AAMCAcademicPrivateAssociateMDPathology: ClinicalL"},"Pathology: Clinical",3,"AAMC","Academic","Private","Associate","MD","2021-2022",265456,{"$f":"(((AAMC_Raw_Data_for_FY22[[#This Row],[Median]]-AAMC_Raw_Data_for_FY22[[#This Row],[25th]])/25)*5) + AAMC_Raw_Data_for_FY22[[#This Row],[25th]]","v":271604.40000000002},{"$f":"(((AAMC_Raw_Data_for_FY22[[#This Row],[Median]]-AAMC_Raw_Data_for_FY22[[#This Row],[25th]])/25)*10) + AAMC_Raw_Data_for_FY22[[#This Row],[25th]]","v":277752.8},{"$f":"(((AAMC_Raw_Data_for_FY22[[#This Row],[Median]]-AAMC_Raw_Data_for_FY22[[#This Row],[25th]])/25)*15) + AAMC_Raw_Data_for_FY22[[#This Row],[25th]]","v":283901.2},{"$f":"(((AAMC_Raw_Data_for_FY22[[#This Row],[Median]]-AAMC_Raw_Data_for_FY22[[#This Row],[25th]])/25)*20) + AAMC_Raw_Data_for_FY22[[#This Row],[25th]]","v":290049.59999999998},296198,{"$f":"(((AAMC_Raw_Data_for_FY22[[#This Row],[75th]]-AAMC_Raw_Data_for_FY22[[#This Row],[Median]])/25)*5) + AAMC_Raw_Data_for_FY22[[#This Row],[Median]]","v":300777.8},{"$f":"(((AAMC_Raw_Data_for_FY22[[#This Row],[75th]]-AAMC_Raw_Data_for_FY22[[#This Row],[Median]])/25)*10) + AAMC_Raw_Data_for_FY22[[#This Row],[Median]]","v":305357.59999999998},{"$f":"(((AAMC_Raw_Data_for_FY22[[#This Row],[75th]]-AAMC_Raw_Data_for_FY22[[#This Row],[Median]])/25)*15) + AAMC_Raw_Data_for_FY22[[#This Row],[Median]]","v":309937.40000000002},{"$f":"(((AAMC_Raw_Data_for_FY22[[#This Row],[75th]]-AAMC_Raw_Data_for_FY22[[#This Row],[Median]])/25)*20) + AAMC_Raw_Data_for_FY22[[#This Row],[Median]]","v":314517.2},319097,{"$f":"(((AAMC_Raw_Data_for_FY22[[#This Row],[75th]]-AAMC_Raw_Data_for_FY22[[#This Row],[Median]])/25)*30) + AAMC_Raw_Data_for_FY22[[#This Row],[Median]]","v":323676.79999999999},{"$f":"(((AAMC_Raw_Data_for_FY22[[#This Row],[75th]]-AAMC_Raw_Data_for_FY22[[#This Row],[Median]])/25)*35) + AAMC_Raw_Data_for_FY22[[#This Row],[Median]]","v":328256.59999999998},{"$f":"(((AAMC_Raw_Data_for_FY22[[#This Row],[75th]]-AAMC_Raw_Data_for_FY22[[#This Row],[Median]])/25)*40) + AAMC_Raw_Data_for_FY22[[#This Row],[Median]]","v":332836.40000000002}]
[{"$f":"AAMC_Raw_Data_for_FY22[[#This Row],[Source]]&AAMC_Raw_Data_for_FY22[[#This Row],[Type]]&AAMC_Raw_Data_for_FY22[[#This Row],[School Subset]]&AAMC_Raw_Data_for_FY22[[#This Row],[Rank]]&AAMC_Raw_Data_for_FY22[[#This Row],[Degree]]&AAMC_Raw_Data_for_FY22[[#This Row],[Department / Specialty]]&\"L\"","v":"AAMCAcademicPrivateProfessorMDPathology: ClinicalL"},"Pathology: Clinical",2,"AAMC","Academic","Private","Professor","MD","2021-2022",309944,{"$f":"(((AAMC_Raw_Data_for_FY22[[#This Row],[Median]]-AAMC_Raw_Data_for_FY22[[#This Row],[25th]])/25)*5) + AAMC_Raw_Data_for_FY22[[#This Row],[25th]]","v":317790.2},{"$f":"(((AAMC_Raw_Data_for_FY22[[#This Row],[Median]]-AAMC_Raw_Data_for_FY22[[#This Row],[25th]])/25)*10) + AAMC_Raw_Data_for_FY22[[#This Row],[25th]]","v":325636.40000000002},{"$f":"(((AAMC_Raw_Data_for_FY22[[#This Row],[Median]]-AAMC_Raw_Data_for_FY22[[#This Row],[25th]])/25)*15) + AAMC_Raw_Data_for_FY22[[#This Row],[25th]]","v":333482.59999999998},{"$f":"(((AAMC_Raw_Data_for_FY22[[#This Row],[Median]]-AAMC_Raw_Data_for_FY22[[#This Row],[25th]])/25)*20) + AAMC_Raw_Data_for_FY22[[#This Row],[25th]]","v":341328.8},349175,{"$f":"(((AAMC_Raw_Data_for_FY22[[#This Row],[75th]]-AAMC_Raw_Data_for_FY22[[#This Row],[Median]])/25)*5) + AAMC_Raw_Data_for_FY22[[#This Row],[Median]]","v":359785.6},{"$f":"(((AAMC_Raw_Data_for_FY22[[#This Row],[75th]]-AAMC_Raw_Data_for_FY22[[#This Row],[Median]])/25)*10) + AAMC_Raw_Data_for_FY22[[#This Row],[Median]]","v":370396.2},{"$f":"(((AAMC_Raw_Data_for_FY22[[#This Row],[75th]]-AAMC_Raw_Data_for_FY22[[#This Row],[Median]])/25)*15) + AAMC_Raw_Data_for_FY22[[#This Row],[Median]]","v":381006.8},{"$f":"(((AAMC_Raw_Data_for_FY22[[#This Row],[75th]]-AAMC_Raw_Data_for_FY22[[#This Row],[Median]])/25)*20) + AAMC_Raw_Data_for_FY22[[#This Row],[Median]]","v":391617.4},402228,{"$f":"(((AAMC_Raw_Data_for_FY22[[#This Row],[75th]]-AAMC_Raw_Data_for_FY22[[#This Row],[Median]])/25)*30) + AAMC_Raw_Data_for_FY22[[#This Row],[Median]]","v":412838.6},{"$f":"(((AAMC_Raw_Data_for_FY22[[#This Row],[75th]]-AAMC_Raw_Data_for_FY22[[#This Row],[Median]])/25)*35) + AAMC_Raw_Data_for_FY22[[#This Row],[Median]]","v":423449.2},{"$f":"(((AAMC_Raw_Data_for_FY22[[#This Row],[75th]]-AAMC_Raw_Data_for_FY22[[#This Row],[Median]])/25)*40) + AAMC_Raw_Data_for_FY22[[#This Row],[Median]]","v":434059.8}]
[{"$f":"AAMC_Raw_Data_for_FY22[[#This Row],[Source]]&AAMC_Raw_Data_for_FY22[[#This Row],[Type]]&AAMC_Raw_Data_for_FY22[[#This Row],[School Subset]]&AAMC_Raw_Data_for_FY22[[#This Row],[Rank]]&AAMC_Raw_Data_for_FY22[[#This Row],[Degree]]&AAMC_Raw_Data_for_FY22[[#This Row],[Department / Specialty]]&\"L\"","v":"AAMCAcademicPrivateChiefMDPathology: ClinicalL"},"Pathology: Clinical",6,"AAMC","Academic","Private","Chief","MD","2021-2022",323470,{"$f":"(((AAMC_Raw_Data_for_FY22[[#This Row],[Median]]-AAMC_Raw_Data_for_FY22[[#This Row],[25th]])/25)*5) + AAMC_Raw_Data_for_FY22[[#This Row],[25th]]","v":336723.8},{"$f":"(((AAMC_Raw_Data_for_FY22[[#This Row],[Median]]-AAMC_Raw_Data_for_FY22[[#This Row],[25th]])/25)*10) + AAMC_Raw_Data_for_FY22[[#This Row],[25th]]","v":349977.59999999998},{"$f":"(((AAMC_Raw_Data_for_FY22[[#This Row],[Median]]-AAMC_Raw_Data_for_FY22[[#This Row],[25th]])/25)*15) + AAMC_Raw_Data_for_FY22[[#This Row],[25th]]","v":363231.4},{"$f":"(((AAMC_Raw_Data_for_FY22[[#This Row],[Median]]-AAMC_Raw_Data_for_FY22[[#This Row],[25th]])/25)*20) + AAMC_Raw_Data_for_FY22[[#This Row],[25th]]","v":376485.2},389739,{"$f":"(((AAMC_Raw_Data_for_FY22[[#This Row],[75th]]-AAMC_Raw_Data_for_FY22[[#This Row],[Median]])/25)*5) + AAMC_Raw_Data_for_FY22[[#This Row],[Median]]","v":397287.2},{"$f":"(((AAMC_Raw_Data_for_FY22[[#This Row],[75th]]-AAMC_Raw_Data_for_FY22[[#This Row],[Median]])/25)*10) + AAMC_Raw_Data_for_FY22[[#This Row],[Median]]","v":404835.4},{"$f":"(((AAMC_Raw_Data_for_FY22[[#This Row],[75th]]-AAMC_Raw_Data_for_FY22[[#This Row],[Median]])/25)*15) + AAMC_Raw_Data_for_FY22[[#This Row],[Median]]","v":412383.6},{"$f":"(((AAMC_Raw_Data_for_FY22[[#This Row],[75th]]-AAMC_Raw_Data_for_FY22[[#This Row],[Median]])/25)*20) + AAMC_Raw_Data_for_FY22[[#This Row],[Median]]","v":419931.8},427480,{"$f":"(((AAMC_Raw_Data_for_FY22[[#This Row],[75th]]-AAMC_Raw_Data_for_FY22[[#This Row],[Median]])/25)*30) + AAMC_Raw_Data_for_FY22[[#This Row],[Median]]","v":435028.2},{"$f":"(((AAMC_Raw_Data_for_FY22[[#This Row],[75th]]-AAMC_Raw_Data_for_FY22[[#This Row],[Median]])/25)*35) + AAMC_Raw_Data_for_FY22[[#This Row],[Median]]","v":442576.4},{"$f":"(((AAMC_Raw_Data_for_FY22[[#This Row],[75th]]-AAMC_Raw_Data_for_FY22[[#This Row],[Median]])/25)*40) + AAMC_Raw_Data_for_FY22[[#This Row],[Median]]","v":450124.6}]
[{"$f":"AAMC_Raw_Data_for_FY22[[#This Row],[Source]]&AAMC_Raw_Data_for_FY22[[#This Row],[Type]]&AAMC_Raw_Data_for_FY22[[#This Row],[School Subset]]&AAMC_Raw_Data_for_FY22[[#This Row],[Rank]]&AAMC_Raw_Data_for_FY22[[#This Row],[Degree]]&AAMC_Raw_Data_for_FY22[[#This Row],[Department / Specialty]]&\"L\"","v":"AAMCAcademicPrivateChairMDPathology: ClinicalL"},"Pathology: Clinical",1,"AAMC","Academic","Private","Chair","MD","2021-2022",362088,{"$f":"(((AAMC_Raw_Data_for_FY22[[#This Row],[Median]]-AAMC_Raw_Data_for_FY22[[#This Row],[25th]])/25)*5) + AAMC_Raw_Data_for_FY22[[#This Row],[25th]]","v":402380.2},{"$f":"(((AAMC_Raw_Data_for_FY22[[#This Row],[Median]]-AAMC_Raw_Data_for_FY22[[#This Row],[25th]])/25)*10) + AAMC_Raw_Data_for_FY22[[#This Row],[25th]]","v":442672.4},{"$f":"(((AAMC_Raw_Data_for_FY22[[#This Row],[Median]]-AAMC_Raw_Data_for_FY22[[#This Row],[25th]])/25)*15) + AAMC_Raw_Data_for_FY22[[#This Row],[25th]]","v":482964.6},{"$f":"(((AAMC_Raw_Data_for_FY22[[#This Row],[Median]]-AAMC_Raw_Data_for_FY22[[#This Row],[25th]])/25)*20) + AAMC_Raw_Data_for_FY22[[#This Row],[25th]]","v":523256.8},563549,{"$f":"(((AAMC_Raw_Data_for_FY22[[#This Row],[75th]]-AAMC_Raw_Data_for_FY22[[#This Row],[Median]])/25)*5) + AAMC_Raw_Data_for_FY22[[#This Row],[Median]]","v":596988},{"$f":"(((AAMC_Raw_Data_for_FY22[[#This Row],[75th]]-AAMC_Raw_Data_for_FY22[[#This Row],[Median]])/25)*10) + AAMC_Raw_Data_for_FY22[[#This Row],[Median]]","v":630427},{"$f":"(((AAMC_Raw_Data_for_FY22[[#This Row],[75th]]-AAMC_Raw_Data_for_FY22[[#This Row],[Median]])/25)*15) + AAMC_Raw_Data_for_FY22[[#This Row],[Median]]","v":663866},{"$f":"(((AAMC_Raw_Data_for_FY22[[#This Row],[75th]]-AAMC_Raw_Data_for_FY22[[#This Row],[Median]])/25)*20) + AAMC_Raw_Data_for_FY22[[#This Row],[Median]]","v":697305},730744,{"$f":"(((AAMC_Raw_Data_for_FY22[[#This Row],[75th]]-AAMC_Raw_Data_for_FY22[[#This Row],[Median]])/25)*30) + AAMC_Raw_Data_for_FY22[[#This Row],[Median]]","v":764183},{"$f":"(((AAMC_Raw_Data_for_FY22[[#This Row],[75th]]-AAMC_Raw_Data_for_FY22[[#This Row],[Median]])/25)*35) + AAMC_Raw_Data_for_FY22[[#This Row],[Median]]","v":797622},{"$f":"(((AAMC_Raw_Data_for_FY22[[#This Row],[75th]]-AAMC_Raw_Data_for_FY22[[#This Row],[Median]])/25)*40) + AAMC_Raw_Data_for_FY22[[#This Row],[Median]]","v":831061}]
[{"$f":"AAMC_Raw_Data_for_FY22[[#This Row],[Source]]&AAMC_Raw_Data_for_FY22[[#This Row],[Type]]&AAMC_Raw_Data_for_FY22[[#This Row],[School Subset]]&AAMC_Raw_Data_for_FY22[[#This Row],[Rank]]&AAMC_Raw_Data_for_FY22[[#This Row],[Degree]]&AAMC_Raw_Data_for_FY22[[#This Row],[Department / Specialty]]&\"L\"","v":"AAMCAcademicPrivateInstructorMDPathology: Other PathologyL"},"Pathology: Other Pathology",5,"AAMC","Academic","Private","Instructor","MD","2021-2022",66849,{"$f":"(((AAMC_Raw_Data_for_FY22[[#This Row],[Median]]-AAMC_Raw_Data_for_FY22[[#This Row],[25th]])/25)*5) + AAMC_Raw_Data_for_FY22[[#This Row],[25th]]","v":68166.2},{"$f":"(((AAMC_Raw_Data_for_FY22[[#This Row],[Median]]-AAMC_Raw_Data_for_FY22[[#This Row],[25th]])/25)*10) + AAMC_Raw_Data_for_FY22[[#This Row],[25th]]","v":69483.399999999994},{"$f":"(((AAMC_Raw_Data_for_FY22[[#This Row],[Median]]-AAMC_Raw_Data_for_FY22[[#This Row],[25th]])/25)*15) + AAMC_Raw_Data_for_FY22[[#This Row],[25th]]","v":70800.600000000006},{"$f":"(((AAMC_Raw_Data_for_FY22[[#This Row],[Median]]-AAMC_Raw_Data_for_FY22[[#This Row],[25th]])/25)*20) + AAMC_Raw_Data_for_FY22[[#This Row],[25th]]","v":72117.8},73435,{"$f":"(((AAMC_Raw_Data_for_FY22[[#This Row],[75th]]-AAMC_Raw_Data_for_FY22[[#This Row],[Median]])/25)*5) + AAMC_Raw_Data_for_FY22[[#This Row],[Median]]","v":75997.600000000006},{"$f":"(((AAMC_Raw_Data_for_FY22[[#This Row],[75th]]-AAMC_Raw_Data_for_FY22[[#This Row],[Median]])/25)*10) + AAMC_Raw_Data_for_FY22[[#This Row],[Median]]","v":78560.2},{"$f":"(((AAMC_Raw_Data_for_FY22[[#This Row],[75th]]-AAMC_Raw_Data_for_FY22[[#This Row],[Median]])/25)*15) + AAMC_Raw_Data_for_FY22[[#This Row],[Median]]","v":81122.8},{"$f":"(((AAMC_Raw_Data_for_FY22[[#This Row],[75th]]-AAMC_Raw_Data_for_FY22[[#This Row],[Median]])/25)*20) + AAMC_Raw_Data_for_FY22[[#This Row],[Median]]","v":83685.399999999994},86248,{"$f":"(((AAMC_Raw_Data_for_FY22[[#This Row],[75th]]-AAMC_Raw_Data_for_FY22[[#This Row],[Median]])/25)*30) + AAMC_Raw_Data_for_FY22[[#This Row],[Median]]","v":88810.6},{"$f":"(((AAMC_Raw_Data_for_FY22[[#This Row],[75th]]-AAMC_Raw_Data_for_FY22[[#This Row],[Median]])/25)*35) + AAMC_Raw_Data_for_FY22[[#This Row],[Median]]","v":91373.2},{"$f":"(((AAMC_Raw_Data_for_FY22[[#This Row],[75th]]-AAMC_Raw_Data_for_FY22[[#This Row],[Median]])/25)*40) + AAMC_Raw_Data_for_FY22[[#This Row],[Median]]","v":93935.8}]
[{"$f":"AAMC_Raw_Data_for_FY22[[#This Row],[Source]]&AAMC_Raw_Data_for_FY22[[#This Row],[Type]]&AAMC_Raw_Data_for_FY22[[#This Row],[School Subset]]&AAMC_Raw_Data_for_FY22[[#This Row],[Rank]]&AAMC_Raw_Data_for_FY22[[#This Row],[Degree]]&AAMC_Raw_Data_for_FY22[[#This Row],[Department / Specialty]]&\"L\"","v":"AAMCAcademicPrivateAssistantMDPathology: Other PathologyL"},"Pathology: Other Pathology",4,"AAMC","Academic","Private","Assistant","MD","2021-2022",201259,{"$f":"(((AAMC_Raw_Data_for_FY22[[#This Row],[Median]]-AAMC_Raw_Data_for_FY22[[#This Row],[25th]])/25)*5) + AAMC_Raw_Data_for_FY22[[#This Row],[25th]]","v":209106},{"$f":"(((AAMC_Raw_Data_for_FY22[[#This Row],[Median]]-AAMC_Raw_Data_for_FY22[[#This Row],[25th]])/25)*10) + AAMC_Raw_Data_for_FY22[[#This Row],[25th]]","v":216953},{"$f":"(((AAMC_Raw_Data_for_FY22[[#This Row],[Median]]-AAMC_Raw_Data_for_FY22[[#This Row],[25th]])/25)*15) + AAMC_Raw_Data_for_FY22[[#This Row],[25th]]","v":224800},{"$f":"(((AAMC_Raw_Data_for_FY22[[#This Row],[Median]]-AAMC_Raw_Data_for_FY22[[#This Row],[25th]])/25)*20) + AAMC_Raw_Data_for_FY22[[#This Row],[25th]]","v":232647},240494,{"$f":"(((AAMC_Raw_Data_for_FY22[[#This Row],[75th]]-AAMC_Raw_Data_for_FY22[[#This Row],[Median]])/25)*5) + AAMC_Raw_Data_for_FY22[[#This Row],[Median]]","v":247695.2},{"$f":"(((AAMC_Raw_Data_for_FY22[[#This Row],[75th]]-AAMC_Raw_Data_for_FY22[[#This Row],[Median]])/25)*10) + AAMC_Raw_Data_for_FY22[[#This Row],[Median]]","v":254896.4},{"$f":"(((AAMC_Raw_Data_for_FY22[[#This Row],[75th]]-AAMC_Raw_Data_for_FY22[[#This Row],[Median]])/25)*15) + AAMC_Raw_Data_for_FY22[[#This Row],[Median]]","v":262097.6},{"$f":"(((AAMC_Raw_Data_for_FY22[[#This Row],[75th]]-AAMC_Raw_Data_for_FY22[[#This Row],[Median]])/25)*20) + AAMC_Raw_Data_for_FY22[[#This Row],[Median]]","v":269298.8},276500,{"$f":"(((AAMC_Raw_Data_for_FY22[[#This Row],[75th]]-AAMC_Raw_Data_for_FY22[[#This Row],[Median]])/25)*30) + AAMC_Raw_Data_for_FY22[[#This Row],[Median]]","v":283701.2},{"$f":"(((AAMC_Raw_Data_for_FY22[[#This Row],[75th]]-AAMC_Raw_Data_for_FY22[[#This Row],[Median]])/25)*35) + AAMC_Raw_Data_for_FY22[[#This Row],[Median]]","v":290902.40000000002},{"$f":"(((AAMC_Raw_Data_for_FY22[[#This Row],[75th]]-AAMC_Raw_Data_for_FY22[[#This Row],[Median]])/25)*40) + AAMC_Raw_Data_for_FY22[[#This Row],[Median]]","v":298103.59999999998}]
[{"$f":"AAMC_Raw_Data_for_FY22[[#This Row],[Source]]&AAMC_Raw_Data_for_FY22[[#This Row],[Type]]&AAMC_Raw_Data_for_FY22[[#This Row],[School Subset]]&AAMC_Raw_Data_for_FY22[[#This Row],[Rank]]&AAMC_Raw_Data_for_FY22[[#This Row],[Degree]]&AAMC_Raw_Data_for_FY22[[#This Row],[Department / Specialty]]&\"L\"","v":"AAMCAcademicPrivateAssociateMDPathology: Other PathologyL"},"Pathology: Other Pathology",3,"AAMC","Academic","Private","Associate","MD","2021-2022",209300,{"$f":"(((AAMC_Raw_Data_for_FY22[[#This Row],[Median]]-AAMC_Raw_Data_for_FY22[[#This Row],[25th]])/25)*5) + AAMC_Raw_Data_for_FY22[[#This Row],[25th]]","v":224411.6},{"$f":"(((AAMC_Raw_Data_for_FY22[[#This Row],[Median]]-AAMC_Raw_Data_for_FY22[[#This Row],[25th]])/25)*10) + AAMC_Raw_Data_for_FY22[[#This Row],[25th]]","v":239523.20000000001},{"$f":"(((AAMC_Raw_Data_for_FY22[[#This Row],[Median]]-AAMC_Raw_Data_for_FY22[[#This Row],[25th]])/25)*15) + AAMC_Raw_Data_for_FY22[[#This Row],[25th]]","v":254634.8},{"$f":"(((AAMC_Raw_Data_for_FY22[[#This Row],[Median]]-AAMC_Raw_Data_for_FY22[[#This Row],[25th]])/25)*20) + AAMC_Raw_Data_for_FY22[[#This Row],[25th]]","v":269746.40000000002},284858,{"$f":"(((AAMC_Raw_Data_for_FY22[[#This Row],[75th]]-AAMC_Raw_Data_for_FY22[[#This Row],[Median]])/25)*5) + AAMC_Raw_Data_for_FY22[[#This Row],[Median]]","v":290703.40000000002},{"$f":"(((AAMC_Raw_Data_for_FY22[[#This Row],[75th]]-AAMC_Raw_Data_for_FY22[[#This Row],[Median]])/25)*10) + AAMC_Raw_Data_for_FY22[[#This Row],[Median]]","v":296548.8},{"$f":"(((AAMC_Raw_Data_for_FY22[[#This Row],[75th]]-AAMC_Raw_Data_for_FY22[[#This Row],[Median]])/25)*15) + AAMC_Raw_Data_for_FY22[[#This Row],[Median]]","v":302394.2},{"$f":"(((AAMC_Raw_Data_for_FY22[[#This Row],[75th]]-AAMC_Raw_Data_for_FY22[[#This Row],[Median]])/25)*20) + AAMC_Raw_Data_for_FY22[[#This Row],[Median]]","v":308239.59999999998},314085,{"$f":"(((AAMC_Raw_Data_for_FY22[[#This Row],[75th]]-AAMC_Raw_Data_for_FY22[[#This Row],[Median]])/25)*30) + AAMC_Raw_Data_for_FY22[[#This Row],[Median]]","v":319930.40000000002},{"$f":"(((AAMC_Raw_Data_for_FY22[[#This Row],[75th]]-AAMC_Raw_Data_for_FY22[[#This Row],[Median]])/25)*35) + AAMC_Raw_Data_for_FY22[[#This Row],[Median]]","v":325775.8},{"$f":"(((AAMC_Raw_Data_for_FY22[[#This Row],[75th]]-AAMC_Raw_Data_for_FY22[[#This Row],[Median]])/25)*40) + AAMC_Raw_Data_for_FY22[[#This Row],[Median]]","v":331621.2}]
[{"$f":"AAMC_Raw_Data_for_FY22[[#This Row],[Source]]&AAMC_Raw_Data_for_FY22[[#This Row],[Type]]&AAMC_Raw_Data_for_FY22[[#This Row],[School Subset]]&AAMC_Raw_Data_for_FY22[[#This Row],[Rank]]&AAMC_Raw_Data_for_FY22[[#This Row],[Degree]]&AAMC_Raw_Data_for_FY22[[#This Row],[Department / Specialty]]&\"L\"","v":"AAMCAcademicPrivateProfessorMDPathology: Other PathologyL"},"Pathology: Other Pathology",2,"AAMC","Academic","Private","Professor","MD","2021-2022",226249,{"$f":"(((AAMC_Raw_Data_for_FY22[[#This Row],[Median]]-AAMC_Raw_Data_for_FY22[[#This Row],[25th]])/25)*5) + AAMC_Raw_Data_for_FY22[[#This Row],[25th]]","v":241376},{"$f":"(((AAMC_Raw_Data_for_FY22[[#This Row],[Median]]-AAMC_Raw_Data_for_FY22[[#This Row],[25th]])/25)*10) + AAMC_Raw_Data_for_FY22[[#This Row],[25th]]","v":256503},{"$f":"(((AAMC_Raw_Data_for_FY22[[#This Row],[Median]]-AAMC_Raw_Data_for_FY22[[#This Row],[25th]])/25)*15) + AAMC_Raw_Data_for_FY22[[#This Row],[25th]]","v":271630},{"$f":"(((AAMC_Raw_Data_for_FY22[[#This Row],[Median]]-AAMC_Raw_Data_for_FY22[[#This Row],[25th]])/25)*20) + AAMC_Raw_Data_for_FY22[[#This Row],[25th]]","v":286757},301884,{"$f":"(((AAMC_Raw_Data_for_FY22[[#This Row],[75th]]-AAMC_Raw_Data_for_FY22[[#This Row],[Median]])/25)*5) + AAMC_Raw_Data_for_FY22[[#This Row],[Median]]","v":314231.8},{"$f":"(((AAMC_Raw_Data_for_FY22[[#This Row],[75th]]-AAMC_Raw_Data_for_FY22[[#This Row],[Median]])/25)*10) + AAMC_Raw_Data_for_FY22[[#This Row],[Median]]","v":326579.59999999998},{"$f":"(((AAMC_Raw_Data_for_FY22[[#This Row],[75th]]-AAMC_Raw_Data_for_FY22[[#This Row],[Median]])/25)*15) + AAMC_Raw_Data_for_FY22[[#This Row],[Median]]","v":338927.4},{"$f":"(((AAMC_Raw_Data_for_FY22[[#This Row],[75th]]-AAMC_Raw_Data_for_FY22[[#This Row],[Median]])/25)*20) + AAMC_Raw_Data_for_FY22[[#This Row],[Median]]","v":351275.2},363623,{"$f":"(((AAMC_Raw_Data_for_FY22[[#This Row],[75th]]-AAMC_Raw_Data_for_FY22[[#This Row],[Median]])/25)*30) + AAMC_Raw_Data_for_FY22[[#This Row],[Median]]","v":375970.8},{"$f":"(((AAMC_Raw_Data_for_FY22[[#This Row],[75th]]-AAMC_Raw_Data_for_FY22[[#This Row],[Median]])/25)*35) + AAMC_Raw_Data_for_FY22[[#This Row],[Median]]","v":388318.6},{"$f":"(((AAMC_Raw_Data_for_FY22[[#This Row],[75th]]-AAMC_Raw_Data_for_FY22[[#This Row],[Median]])/25)*40) + AAMC_Raw_Data_for_FY22[[#This Row],[Median]]","v":400666.4}]
[{"$f":"AAMC_Raw_Data_for_FY22[[#This Row],[Source]]&AAMC_Raw_Data_for_FY22[[#This Row],[Type]]&AAMC_Raw_Data_for_FY22[[#This Row],[School Subset]]&AAMC_Raw_Data_for_FY22[[#This Row],[Rank]]&AAMC_Raw_Data_for_FY22[[#This Row],[Degree]]&AAMC_Raw_Data_for_FY22[[#This Row],[Department / Specialty]]&\"L\"","v":"AAMCAcademicPrivateChiefMDPathology: Other PathologyL"},"Pathology: Other Pathology",6,"AAMC","Academic","Private","Chief","MD","2021-2022",377570,{"$f":"(((AAMC_Raw_Data_for_FY22[[#This Row],[Median]]-AAMC_Raw_Data_for_FY22[[#This Row],[25th]])/25)*5) + AAMC_Raw_Data_for_FY22[[#This Row],[25th]]","v":388003.6},{"$f":"(((AAMC_Raw_Data_for_FY22[[#This Row],[Median]]-AAMC_Raw_Data_for_FY22[[#This Row],[25th]])/25)*10) + AAMC_Raw_Data_for_FY22[[#This Row],[25th]]","v":398437.2},{"$f":"(((AAMC_Raw_Data_for_FY22[[#This Row],[Median]]-AAMC_Raw_Data_for_FY22[[#This Row],[25th]])/25)*15) + AAMC_Raw_Data_for_FY22[[#This Row],[25th]]","v":408870.8},{"$f":"(((AAMC_Raw_Data_for_FY22[[#This Row],[Median]]-AAMC_Raw_Data_for_FY22[[#This Row],[25th]])/25)*20) + AAMC_Raw_Data_for_FY22[[#This Row],[25th]]","v":419304.4},429738,{"$f":"(((AAMC_Raw_Data_for_FY22[[#This Row],[75th]]-AAMC_Raw_Data_for_FY22[[#This Row],[Median]])/25)*5) + AAMC_Raw_Data_for_FY22[[#This Row],[Median]]","v":438689.8},{"$f":"(((AAMC_Raw_Data_for_FY22[[#This Row],[75th]]-AAMC_Raw_Data_for_FY22[[#This Row],[Median]])/25)*10) + AAMC_Raw_Data_for_FY22[[#This Row],[Median]]","v":447641.59999999998},{"$f":"(((AAMC_Raw_Data_for_FY22[[#This Row],[75th]]-AAMC_Raw_Data_for_FY22[[#This Row],[Median]])/25)*15) + AAMC_Raw_Data_for_FY22[[#This Row],[Median]]","v":456593.4},{"$f":"(((AAMC_Raw_Data_for_FY22[[#This Row],[75th]]-AAMC_Raw_Data_for_FY22[[#This Row],[Median]])/25)*20) + AAMC_Raw_Data_for_FY22[[#This Row],[Median]]","v":465545.2},474497,{"$f":"(((AAMC_Raw_Data_for_FY22[[#This Row],[75th]]-AAMC_Raw_Data_for_FY22[[#This Row],[Median]])/25)*30) + AAMC_Raw_Data_for_FY22[[#This Row],[Median]]","v":483448.8},{"$f":"(((AAMC_Raw_Data_for_FY22[[#This Row],[75th]]-AAMC_Raw_Data_for_FY22[[#This Row],[Median]])/25)*35) + AAMC_Raw_Data_for_FY22[[#This Row],[Median]]","v":492400.6},{"$f":"(((AAMC_Raw_Data_for_FY22[[#This Row],[75th]]-AAMC_Raw_Data_for_FY22[[#This Row],[Median]])/25)*40) + AAMC_Raw_Data_for_FY22[[#This Row],[Median]]","v":501352.4}]
[{"$f":"AAMC_Raw_Data_for_FY22[[#This Row],[Source]]&AAMC_Raw_Data_for_FY22[[#This Row],[Type]]&AAMC_Raw_Data_for_FY22[[#This Row],[School Subset]]&AAMC_Raw_Data_for_FY22[[#This Row],[Rank]]&AAMC_Raw_Data_for_FY22[[#This Row],[Degree]]&AAMC_Raw_Data_for_FY22[[#This Row],[Department / Specialty]]&\"L\"","v":"AAMCAcademicPrivateChairMDPathology: Other PathologyL"},"Pathology: Other Pathology",1,"AAMC","Academic","Private","Chair","MD","2021-2022",521387,{"$f":"(((AAMC_Raw_Data_for_FY22[[#This Row],[Median]]-AAMC_Raw_Data_for_FY22[[#This Row],[25th]])/25)*5) + AAMC_Raw_Data_for_FY22[[#This Row],[25th]]","v":523359.6},{"$f":"(((AAMC_Raw_Data_for_FY22[[#This Row],[Median]]-AAMC_Raw_Data_for_FY22[[#This Row],[25th]])/25)*10) + AAMC_Raw_Data_for_FY22[[#This Row],[25th]]","v":525332.19999999995},{"$f":"(((AAMC_Raw_Data_for_FY22[[#This Row],[Median]]-AAMC_Raw_Data_for_FY22[[#This Row],[25th]])/25)*15) + AAMC_Raw_Data_for_FY22[[#This Row],[25th]]","v":527304.80000000005},{"$f":"(((AAMC_Raw_Data_for_FY22[[#This Row],[Median]]-AAMC_Raw_Data_for_FY22[[#This Row],[25th]])/25)*20) + AAMC_Raw_Data_for_FY22[[#This Row],[25th]]","v":529277.4},531250,{"$f":"(((AAMC_Raw_Data_for_FY22[[#This Row],[75th]]-AAMC_Raw_Data_for_FY22[[#This Row],[Median]])/25)*5) + AAMC_Raw_Data_for_FY22[[#This Row],[Median]]","v":563849.80000000005},{"$f":"(((AAMC_Raw_Data_for_FY22[[#This Row],[75th]]-AAMC_Raw_Data_for_FY22[[#This Row],[Median]])/25)*10) + AAMC_Raw_Data_for_FY22[[#This Row],[Median]]","v":596449.6},{"$f":"(((AAMC_Raw_Data_for_FY22[[#This Row],[75th]]-AAMC_Raw_Data_for_FY22[[#This Row],[Median]])/25)*15) + AAMC_Raw_Data_for_FY22[[#This Row],[Median]]","v":629049.4},{"$f":"(((AAMC_Raw_Data_for_FY22[[#This Row],[75th]]-AAMC_Raw_Data_for_FY22[[#This Row],[Median]])/25)*20) + AAMC_Raw_Data_for_FY22[[#This Row],[Median]]","v":661649.19999999995},694249,{"$f":"(((AAMC_Raw_Data_for_FY22[[#This Row],[75th]]-AAMC_Raw_Data_for_FY22[[#This Row],[Median]])/25)*30) + AAMC_Raw_Data_for_FY22[[#This Row],[Median]]","v":726848.8},{"$f":"(((AAMC_Raw_Data_for_FY22[[#This Row],[75th]]-AAMC_Raw_Data_for_FY22[[#This Row],[Median]])/25)*35) + AAMC_Raw_Data_for_FY22[[#This Row],[Median]]","v":759448.6},{"$f":"(((AAMC_Raw_Data_for_FY22[[#This Row],[75th]]-AAMC_Raw_Data_for_FY22[[#This Row],[Median]])/25)*40) + AAMC_Raw_Data_for_FY22[[#This Row],[Median]]","v":792048.4}]
[{"$f":"AAMC_Raw_Data_for_FY22[[#This Row],[Source]]&AAMC_Raw_Data_for_FY22[[#This Row],[Type]]&AAMC_Raw_Data_for_FY22[[#This Row],[School Subset]]&AAMC_Raw_Data_for_FY22[[#This Row],[Rank]]&AAMC_Raw_Data_for_FY22[[#This Row],[Degree]]&AAMC_Raw_Data_for_FY22[[#This Row],[Department / Specialty]]&\"L\"","v":"AAMCAcademicPrivateInstructorMDPediatrics TotalL"},"Pediatrics Total",5,"AAMC","Academic","Private","Instructor","MD","2021-2022",150258,{"$f":"(((AAMC_Raw_Data_for_FY22[[#This Row],[Median]]-AAMC_Raw_Data_for_FY22[[#This Row],[25th]])/25)*5) + AAMC_Raw_Data_for_FY22[[#This Row],[25th]]","v":158277.20000000001},{"$f":"(((AAMC_Raw_Data_for_FY22[[#This Row],[Median]]-AAMC_Raw_Data_for_FY22[[#This Row],[25th]])/25)*10) + AAMC_Raw_Data_for_FY22[[#This Row],[25th]]","v":166296.4},{"$f":"(((AAMC_Raw_Data_for_FY22[[#This Row],[Median]]-AAMC_Raw_Data_for_FY22[[#This Row],[25th]])/25)*15) + AAMC_Raw_Data_for_FY22[[#This Row],[25th]]","v":174315.6},{"$f":"(((AAMC_Raw_Data_for_FY22[[#This Row],[Median]]-AAMC_Raw_Data_for_FY22[[#This Row],[25th]])/25)*20) + AAMC_Raw_Data_for_FY22[[#This Row],[25th]]","v":182334.8},190354,{"$f":"(((AAMC_Raw_Data_for_FY22[[#This Row],[75th]]-AAMC_Raw_Data_for_FY22[[#This Row],[Median]])/25)*5) + AAMC_Raw_Data_for_FY22[[#This Row],[Median]]","v":198092},{"$f":"(((AAMC_Raw_Data_for_FY22[[#This Row],[75th]]-AAMC_Raw_Data_for_FY22[[#This Row],[Median]])/25)*10) + AAMC_Raw_Data_for_FY22[[#This Row],[Median]]","v":205830},{"$f":"(((AAMC_Raw_Data_for_FY22[[#This Row],[75th]]-AAMC_Raw_Data_for_FY22[[#This Row],[Median]])/25)*15) + AAMC_Raw_Data_for_FY22[[#This Row],[Median]]","v":213568},{"$f":"(((AAMC_Raw_Data_for_FY22[[#This Row],[75th]]-AAMC_Raw_Data_for_FY22[[#This Row],[Median]])/25)*20) + AAMC_Raw_Data_for_FY22[[#This Row],[Median]]","v":221306},229044,{"$f":"(((AAMC_Raw_Data_for_FY22[[#This Row],[75th]]-AAMC_Raw_Data_for_FY22[[#This Row],[Median]])/25)*30) + AAMC_Raw_Data_for_FY22[[#This Row],[Median]]","v":236782},{"$f":"(((AAMC_Raw_Data_for_FY22[[#This Row],[75th]]-AAMC_Raw_Data_for_FY22[[#This Row],[Median]])/25)*35) + AAMC_Raw_Data_for_FY22[[#This Row],[Median]]","v":244520},{"$f":"(((AAMC_Raw_Data_for_FY22[[#This Row],[75th]]-AAMC_Raw_Data_for_FY22[[#This Row],[Median]])/25)*40) + AAMC_Raw_Data_for_FY22[[#This Row],[Median]]","v":252258}]
[{"$f":"AAMC_Raw_Data_for_FY22[[#This Row],[Source]]&AAMC_Raw_Data_for_FY22[[#This Row],[Type]]&AAMC_Raw_Data_for_FY22[[#This Row],[School Subset]]&AAMC_Raw_Data_for_FY22[[#This Row],[Rank]]&AAMC_Raw_Data_for_FY22[[#This Row],[Degree]]&AAMC_Raw_Data_for_FY22[[#This Row],[Department / Specialty]]&\"L\"","v":"AAMCAcademicPrivateAssistantMDPediatrics TotalL"},"Pediatrics Total",4,"AAMC","Academic","Private","Assistant","MD","2021-2022",184939,{"$f":"(((AAMC_Raw_Data_for_FY22[[#This Row],[Median]]-AAMC_Raw_Data_for_FY22[[#This Row],[25th]])/25)*5) + AAMC_Raw_Data_for_FY22[[#This Row],[25th]]","v":191671.2},{"$f":"(((AAMC_Raw_Data_for_FY22[[#This Row],[Median]]-AAMC_Raw_Data_for_FY22[[#This Row],[25th]])/25)*10) + AAMC_Raw_Data_for_FY22[[#This Row],[25th]]","v":198403.4},{"$f":"(((AAMC_Raw_Data_for_FY22[[#This Row],[Median]]-AAMC_Raw_Data_for_FY22[[#This Row],[25th]])/25)*15) + AAMC_Raw_Data_for_FY22[[#This Row],[25th]]","v":205135.6},{"$f":"(((AAMC_Raw_Data_for_FY22[[#This Row],[Median]]-AAMC_Raw_Data_for_FY22[[#This Row],[25th]])/25)*20) + AAMC_Raw_Data_for_FY22[[#This Row],[25th]]","v":211867.8},218600,{"$f":"(((AAMC_Raw_Data_for_FY22[[#This Row],[75th]]-AAMC_Raw_Data_for_FY22[[#This Row],[Median]])/25)*5) + AAMC_Raw_Data_for_FY22[[#This Row],[Median]]","v":226649.2},{"$f":"(((AAMC_Raw_Data_for_FY22[[#This Row],[75th]]-AAMC_Raw_Data_for_FY22[[#This Row],[Median]])/25)*10) + AAMC_Raw_Data_for_FY22[[#This Row],[Median]]","v":234698.4},{"$f":"(((AAMC_Raw_Data_for_FY22[[#This Row],[75th]]-AAMC_Raw_Data_for_FY22[[#This Row],[Median]])/25)*15) + AAMC_Raw_Data_for_FY22[[#This Row],[Median]]","v":242747.6},{"$f":"(((AAMC_Raw_Data_for_FY22[[#This Row],[75th]]-AAMC_Raw_Data_for_FY22[[#This Row],[Median]])/25)*20) + AAMC_Raw_Data_for_FY22[[#This Row],[Median]]","v":250796.79999999999},258846,{"$f":"(((AAMC_Raw_Data_for_FY22[[#This Row],[75th]]-AAMC_Raw_Data_for_FY22[[#This Row],[Median]])/25)*30) + AAMC_Raw_Data_for_FY22[[#This Row],[Median]]","v":266895.2},{"$f":"(((AAMC_Raw_Data_for_FY22[[#This Row],[75th]]-AAMC_Raw_Data_for_FY22[[#This Row],[Median]])/25)*35) + AAMC_Raw_Data_for_FY22[[#This Row],[Median]]","v":274944.40000000002},{"$f":"(((AAMC_Raw_Data_for_FY22[[#This Row],[75th]]-AAMC_Raw_Data_for_FY22[[#This Row],[Median]])/25)*40) + AAMC_Raw_Data_for_FY22[[#This Row],[Median]]","v":282993.59999999998}]
[{"$f":"AAMC_Raw_Data_for_FY22[[#This Row],[Source]]&AAMC_Raw_Data_for_FY22[[#This Row],[Type]]&AAMC_Raw_Data_for_FY22[[#This Row],[School Subset]]&AAMC_Raw_Data_for_FY22[[#This Row],[Rank]]&AAMC_Raw_Data_for_FY22[[#This Row],[Degree]]&AAMC_Raw_Data_for_FY22[[#This Row],[Department / Specialty]]&\"L\"","v":"AAMCAcademicPrivateAssociateMDPediatrics TotalL"},"Pediatrics Total",3,"AAMC","Academic","Private","Associate","MD","2021-2022",221386,{"$f":"(((AAMC_Raw_Data_for_FY22[[#This Row],[Median]]-AAMC_Raw_Data_for_FY22[[#This Row],[25th]])/25)*5) + AAMC_Raw_Data_for_FY22[[#This Row],[25th]]","v":229317.8},{"$f":"(((AAMC_Raw_Data_for_FY22[[#This Row],[Median]]-AAMC_Raw_Data_for_FY22[[#This Row],[25th]])/25)*10) + AAMC_Raw_Data_for_FY22[[#This Row],[25th]]","v":237249.6},{"$f":"(((AAMC_Raw_Data_for_FY22[[#This Row],[Median]]-AAMC_Raw_Data_for_FY22[[#This Row],[25th]])/25)*15) + AAMC_Raw_Data_for_FY22[[#This Row],[25th]]","v":245181.4},{"$f":"(((AAMC_Raw_Data_for_FY22[[#This Row],[Median]]-AAMC_Raw_Data_for_FY22[[#This Row],[25th]])/25)*20) + AAMC_Raw_Data_for_FY22[[#This Row],[25th]]","v":253113.2},261045,{"$f":"(((AAMC_Raw_Data_for_FY22[[#This Row],[75th]]-AAMC_Raw_Data_for_FY22[[#This Row],[Median]])/25)*5) + AAMC_Raw_Data_for_FY22[[#This Row],[Median]]","v":270806.8},{"$f":"(((AAMC_Raw_Data_for_FY22[[#This Row],[75th]]-AAMC_Raw_Data_for_FY22[[#This Row],[Median]])/25)*10) + AAMC_Raw_Data_for_FY22[[#This Row],[Median]]","v":280568.59999999998},{"$f":"(((AAMC_Raw_Data_for_FY22[[#This Row],[75th]]-AAMC_Raw_Data_for_FY22[[#This Row],[Median]])/25)*15) + AAMC_Raw_Data_for_FY22[[#This Row],[Median]]","v":290330.40000000002},{"$f":"(((AAMC_Raw_Data_for_FY22[[#This Row],[75th]]-AAMC_Raw_Data_for_FY22[[#This Row],[Median]])/25)*20) + AAMC_Raw_Data_for_FY22[[#This Row],[Median]]","v":300092.2},309854,{"$f":"(((AAMC_Raw_Data_for_FY22[[#This Row],[75th]]-AAMC_Raw_Data_for_FY22[[#This Row],[Median]])/25)*30) + AAMC_Raw_Data_for_FY22[[#This Row],[Median]]","v":319615.8},{"$f":"(((AAMC_Raw_Data_for_FY22[[#This Row],[75th]]-AAMC_Raw_Data_for_FY22[[#This Row],[Median]])/25)*35) + AAMC_Raw_Data_for_FY22[[#This Row],[Median]]","v":329377.59999999998},{"$f":"(((AAMC_Raw_Data_for_FY22[[#This Row],[75th]]-AAMC_Raw_Data_for_FY22[[#This Row],[Median]])/25)*40) + AAMC_Raw_Data_for_FY22[[#This Row],[Median]]","v":339139.4}]
[{"$f":"AAMC_Raw_Data_for_FY22[[#This Row],[Source]]&AAMC_Raw_Data_for_FY22[[#This Row],[Type]]&AAMC_Raw_Data_for_FY22[[#This Row],[School Subset]]&AAMC_Raw_Data_for_FY22[[#This Row],[Rank]]&AAMC_Raw_Data_for_FY22[[#This Row],[Degree]]&AAMC_Raw_Data_for_FY22[[#This Row],[Department / Specialty]]&\"L\"","v":"AAMCAcademicPrivateProfessorMDPediatrics TotalL"},"Pediatrics Total",2,"AAMC","Academic","Private","Professor","MD","2021-2022",267238,{"$f":"(((AAMC_Raw_Data_for_FY22[[#This Row],[Median]]-AAMC_Raw_Data_for_FY22[[#This Row],[25th]])/25)*5) + AAMC_Raw_Data_for_FY22[[#This Row],[25th]]","v":277277.59999999998},{"$f":"(((AAMC_Raw_Data_for_FY22[[#This Row],[Median]]-AAMC_Raw_Data_for_FY22[[#This Row],[25th]])/25)*10) + AAMC_Raw_Data_for_FY22[[#This Row],[25th]]","v":287317.2},{"$f":"(((AAMC_Raw_Data_for_FY22[[#This Row],[Median]]-AAMC_Raw_Data_for_FY22[[#This Row],[25th]])/25)*15) + AAMC_Raw_Data_for_FY22[[#This Row],[25th]]","v":297356.79999999999},{"$f":"(((AAMC_Raw_Data_for_FY22[[#This Row],[Median]]-AAMC_Raw_Data_for_FY22[[#This Row],[25th]])/25)*20) + AAMC_Raw_Data_for_FY22[[#This Row],[25th]]","v":307396.40000000002},317436,{"$f":"(((AAMC_Raw_Data_for_FY22[[#This Row],[75th]]-AAMC_Raw_Data_for_FY22[[#This Row],[Median]])/25)*5) + AAMC_Raw_Data_for_FY22[[#This Row],[Median]]","v":331979.59999999998},{"$f":"(((AAMC_Raw_Data_for_FY22[[#This Row],[75th]]-AAMC_Raw_Data_for_FY22[[#This Row],[Median]])/25)*10) + AAMC_Raw_Data_for_FY22[[#This Row],[Median]]","v":346523.2},{"$f":"(((AAMC_Raw_Data_for_FY22[[#This Row],[75th]]-AAMC_Raw_Data_for_FY22[[#This Row],[Median]])/25)*15) + AAMC_Raw_Data_for_FY22[[#This Row],[Median]]","v":361066.8},{"$f":"(((AAMC_Raw_Data_for_FY22[[#This Row],[75th]]-AAMC_Raw_Data_for_FY22[[#This Row],[Median]])/25)*20) + AAMC_Raw_Data_for_FY22[[#This Row],[Median]]","v":375610.4},390154,{"$f":"(((AAMC_Raw_Data_for_FY22[[#This Row],[75th]]-AAMC_Raw_Data_for_FY22[[#This Row],[Median]])/25)*30) + AAMC_Raw_Data_for_FY22[[#This Row],[Median]]","v":404697.59999999998},{"$f":"(((AAMC_Raw_Data_for_FY22[[#This Row],[75th]]-AAMC_Raw_Data_for_FY22[[#This Row],[Median]])/25)*35) + AAMC_Raw_Data_for_FY22[[#This Row],[Median]]","v":419241.2},{"$f":"(((AAMC_Raw_Data_for_FY22[[#This Row],[75th]]-AAMC_Raw_Data_for_FY22[[#This Row],[Median]])/25)*40) + AAMC_Raw_Data_for_FY22[[#This Row],[Median]]","v":433784.8}]
[{"$f":"AAMC_Raw_Data_for_FY22[[#This Row],[Source]]&AAMC_Raw_Data_for_FY22[[#This Row],[Type]]&AAMC_Raw_Data_for_FY22[[#This Row],[School Subset]]&AAMC_Raw_Data_for_FY22[[#This Row],[Rank]]&AAMC_Raw_Data_for_FY22[[#This Row],[Degree]]&AAMC_Raw_Data_for_FY22[[#This Row],[Department / Specialty]]&\"L\"","v":"AAMCAcademicPrivateChiefMDPediatrics TotalL"},"Pediatrics Total",6,"AAMC","Academic","Private","Chief","MD","2021-2022",289062,{"$f":"(((AAMC_Raw_Data_for_FY22[[#This Row],[Median]]-AAMC_Raw_Data_for_FY22[[#This Row],[25th]])/25)*5) + AAMC_Raw_Data_for_FY22[[#This Row],[25th]]","v":300284.79999999999},{"$f":"(((AAMC_Raw_Data_for_FY22[[#This Row],[Median]]-AAMC_Raw_Data_for_FY22[[#This Row],[25th]])/25)*10) + AAMC_Raw_Data_for_FY22[[#This Row],[25th]]","v":311507.59999999998},{"$f":"(((AAMC_Raw_Data_for_FY22[[#This Row],[Median]]-AAMC_Raw_Data_for_FY22[[#This Row],[25th]])/25)*15) + AAMC_Raw_Data_for_FY22[[#This Row],[25th]]","v":322730.40000000002},{"$f":"(((AAMC_Raw_Data_for_FY22[[#This Row],[Median]]-AAMC_Raw_Data_for_FY22[[#This Row],[25th]])/25)*20) + AAMC_Raw_Data_for_FY22[[#This Row],[25th]]","v":333953.2},345176,{"$f":"(((AAMC_Raw_Data_for_FY22[[#This Row],[75th]]-AAMC_Raw_Data_for_FY22[[#This Row],[Median]])/25)*5) + AAMC_Raw_Data_for_FY22[[#This Row],[Median]]","v":359140.8},{"$f":"(((AAMC_Raw_Data_for_FY22[[#This Row],[75th]]-AAMC_Raw_Data_for_FY22[[#This Row],[Median]])/25)*10) + AAMC_Raw_Data_for_FY22[[#This Row],[Median]]","v":373105.6},{"$f":"(((AAMC_Raw_Data_for_FY22[[#This Row],[75th]]-AAMC_Raw_Data_for_FY22[[#This Row],[Median]])/25)*15) + AAMC_Raw_Data_for_FY22[[#This Row],[Median]]","v":387070.4},{"$f":"(((AAMC_Raw_Data_for_FY22[[#This Row],[75th]]-AAMC_Raw_Data_for_FY22[[#This Row],[Median]])/25)*20) + AAMC_Raw_Data_for_FY22[[#This Row],[Median]]","v":401035.2},415000,{"$f":"(((AAMC_Raw_Data_for_FY22[[#This Row],[75th]]-AAMC_Raw_Data_for_FY22[[#This Row],[Median]])/25)*30) + AAMC_Raw_Data_for_FY22[[#This Row],[Median]]","v":428964.8},{"$f":"(((AAMC_Raw_Data_for_FY22[[#This Row],[75th]]-AAMC_Raw_Data_for_FY22[[#This Row],[Median]])/25)*35) + AAMC_Raw_Data_for_FY22[[#This Row],[Median]]","v":442929.6},{"$f":"(((AAMC_Raw_Data_for_FY22[[#This Row],[75th]]-AAMC_Raw_Data_for_FY22[[#This Row],[Median]])/25)*40) + AAMC_Raw_Data_for_FY22[[#This Row],[Median]]","v":456894.4}]
[{"$f":"AAMC_Raw_Data_for_FY22[[#This Row],[Source]]&AAMC_Raw_Data_for_FY22[[#This Row],[Type]]&AAMC_Raw_Data_for_FY22[[#This Row],[School Subset]]&AAMC_Raw_Data_for_FY22[[#This Row],[Rank]]&AAMC_Raw_Data_for_FY22[[#This Row],[Degree]]&AAMC_Raw_Data_for_FY22[[#This Row],[Department / Specialty]]&\"L\"","v":"AAMCAcademicPrivateChairMDPediatrics TotalL"},"Pediatrics Total",1,"AAMC","Academic","Private","Chair","MD","2021-2022",525000,{"$f":"(((AAMC_Raw_Data_for_FY22[[#This Row],[Median]]-AAMC_Raw_Data_for_FY22[[#This Row],[25th]])/25)*5) + AAMC_Raw_Data_for_FY22[[#This Row],[25th]]","v":545172.6},{"$f":"(((AAMC_Raw_Data_for_FY22[[#This Row],[Median]]-AAMC_Raw_Data_for_FY22[[#This Row],[25th]])/25)*10) + AAMC_Raw_Data_for_FY22[[#This Row],[25th]]","v":565345.19999999995},{"$f":"(((AAMC_Raw_Data_for_FY22[[#This Row],[Median]]-AAMC_Raw_Data_for_FY22[[#This Row],[25th]])/25)*15) + AAMC_Raw_Data_for_FY22[[#This Row],[25th]]","v":585517.80000000005},{"$f":"(((AAMC_Raw_Data_for_FY22[[#This Row],[Median]]-AAMC_Raw_Data_for_FY22[[#This Row],[25th]])/25)*20) + AAMC_Raw_Data_for_FY22[[#This Row],[25th]]","v":605690.4},625863,{"$f":"(((AAMC_Raw_Data_for_FY22[[#This Row],[75th]]-AAMC_Raw_Data_for_FY22[[#This Row],[Median]])/25)*5) + AAMC_Raw_Data_for_FY22[[#This Row],[Median]]","v":667212.4},{"$f":"(((AAMC_Raw_Data_for_FY22[[#This Row],[75th]]-AAMC_Raw_Data_for_FY22[[#This Row],[Median]])/25)*10) + AAMC_Raw_Data_for_FY22[[#This Row],[Median]]","v":708561.8},{"$f":"(((AAMC_Raw_Data_for_FY22[[#This Row],[75th]]-AAMC_Raw_Data_for_FY22[[#This Row],[Median]])/25)*15) + AAMC_Raw_Data_for_FY22[[#This Row],[Median]]","v":749911.2},{"$f":"(((AAMC_Raw_Data_for_FY22[[#This Row],[75th]]-AAMC_Raw_Data_for_FY22[[#This Row],[Median]])/25)*20) + AAMC_Raw_Data_for_FY22[[#This Row],[Median]]","v":791260.6},832610,{"$f":"(((AAMC_Raw_Data_for_FY22[[#This Row],[75th]]-AAMC_Raw_Data_for_FY22[[#This Row],[Median]])/25)*30) + AAMC_Raw_Data_for_FY22[[#This Row],[Median]]","v":873959.39999999991},{"$f":"(((AAMC_Raw_Data_for_FY22[[#This Row],[75th]]-AAMC_Raw_Data_for_FY22[[#This Row],[Median]])/25)*35) + AAMC_Raw_Data_for_FY22[[#This Row],[Median]]","v":915308.8},{"$f":"(((AAMC_Raw_Data_for_FY22[[#This Row],[75th]]-AAMC_Raw_Data_for_FY22[[#This Row],[Median]])/25)*40) + AAMC_Raw_Data_for_FY22[[#This Row],[Median]]","v":956658.2}]
[{"$f":"AAMC_Raw_Data_for_FY22[[#This Row],[Source]]&AAMC_Raw_Data_for_FY22[[#This Row],[Type]]&AAMC_Raw_Data_for_FY22[[#This Row],[School Subset]]&AAMC_Raw_Data_for_FY22[[#This Row],[Rank]]&AAMC_Raw_Data_for_FY22[[#This Row],[Degree]]&AAMC_Raw_Data_for_FY22[[#This Row],[Department / Specialty]]&\"L\"","v":"AAMCAcademicPrivateInstructorMDAdolescent MedicineL"},"Adolescent Medicine",5,"AAMC","Academic","Private","Instructor","MD","2021-2022",null,{"$f":"(((AAMC_Raw_Data_for_FY22[[#This Row],[Median]]-AAMC_Raw_Data_for_FY22[[#This Row],[25th]])/25)*5) + AAMC_Raw_Data_for_FY22[[#This Row],[25th]]","v":0},{"$f":"(((AAMC_Raw_Data_for_FY22[[#This Row],[Median]]-AAMC_Raw_Data_for_FY22[[#This Row],[25th]])/25)*10) + AAMC_Raw_Data_for_FY22[[#This Row],[25th]]","v":0},{"$f":"(((AAMC_Raw_Data_for_FY22[[#This Row],[Median]]-AAMC_Raw_Data_for_FY22[[#This Row],[25th]])/25)*15) + AAMC_Raw_Data_for_FY22[[#This Row],[25th]]","v":0},{"$f":"(((AAMC_Raw_Data_for_FY22[[#This Row],[Median]]-AAMC_Raw_Data_for_FY22[[#This Row],[25th]])/25)*20) + AAMC_Raw_Data_for_FY22[[#This Row],[25th]]","v":0},null,{"$f":"(((AAMC_Raw_Data_for_FY22[[#This Row],[75th]]-AAMC_Raw_Data_for_FY22[[#This Row],[Median]])/25)*5) + AAMC_Raw_Data_for_FY22[[#This Row],[Median]]","v":0},{"$f":"(((AAMC_Raw_Data_for_FY22[[#This Row],[75th]]-AAMC_Raw_Data_for_FY22[[#This Row],[Median]])/25)*10) + AAMC_Raw_Data_for_FY22[[#This Row],[Median]]","v":0},{"$f":"(((AAMC_Raw_Data_for_FY22[[#This Row],[75th]]-AAMC_Raw_Data_for_FY22[[#This Row],[Median]])/25)*15) + AAMC_Raw_Data_for_FY22[[#This Row],[Median]]","v":0},{"$f":"(((AAMC_Raw_Data_for_FY22[[#This Row],[75th]]-AAMC_Raw_Data_for_FY22[[#This Row],[Median]])/25)*20) + AAMC_Raw_Data_for_FY22[[#This Row],[Median]]","v":0},null,{"$f":"(((AAMC_Raw_Data_for_FY22[[#This Row],[75th]]-AAMC_Raw_Data_for_FY22[[#This Row],[Median]])/25)*30) + AAMC_Raw_Data_for_FY22[[#This Row],[Median]]","v":0},{"$f":"(((AAMC_Raw_Data_for_FY22[[#This Row],[75th]]-AAMC_Raw_Data_for_FY22[[#This Row],[Median]])/25)*35) + AAMC_Raw_Data_for_FY22[[#This Row],[Median]]","v":0},{"$f":"(((AAMC_Raw_Data_for_FY22[[#This Row],[75th]]-AAMC_Raw_Data_for_FY22[[#This Row],[Median]])/25)*40) + AAMC_Raw_Data_for_FY22[[#This Row],[Median]]","v":0}]
[{"$f":"AAMC_Raw_Data_for_FY22[[#This Row],[Source]]&AAMC_Raw_Data_for_FY22[[#This Row],[Type]]&AAMC_Raw_Data_for_FY22[[#This Row],[School Subset]]&AAMC_Raw_Data_for_FY22[[#This Row],[Rank]]&AAMC_Raw_Data_for_FY22[[#This Row],[Degree]]&AAMC_Raw_Data_for_FY22[[#This Row],[Department / Specialty]]&\"L\"","v":"AAMCAcademicPrivateAssistantMDAdolescent MedicineL"},"Adolescent Medicine",4,"AAMC","Academic","Private","Assistant","MD","2021-2022",157019,{"$f":"(((AAMC_Raw_Data_for_FY22[[#This Row],[Median]]-AAMC_Raw_Data_for_FY22[[#This Row],[25th]])/25)*5) + AAMC_Raw_Data_for_FY22[[#This Row],[25th]]","v":159876.20000000001},{"$f":"(((AAMC_Raw_Data_for_FY22[[#This Row],[Median]]-AAMC_Raw_Data_for_FY22[[#This Row],[25th]])/25)*10) + AAMC_Raw_Data_for_FY22[[#This Row],[25th]]","v":162733.4},{"$f":"(((AAMC_Raw_Data_for_FY22[[#This Row],[Median]]-AAMC_Raw_Data_for_FY22[[#This Row],[25th]])/25)*15) + AAMC_Raw_Data_for_FY22[[#This Row],[25th]]","v":165590.6},{"$f":"(((AAMC_Raw_Data_for_FY22[[#This Row],[Median]]-AAMC_Raw_Data_for_FY22[[#This Row],[25th]])/25)*20) + AAMC_Raw_Data_for_FY22[[#This Row],[25th]]","v":168447.8},171305,{"$f":"(((AAMC_Raw_Data_for_FY22[[#This Row],[75th]]-AAMC_Raw_Data_for_FY22[[#This Row],[Median]])/25)*5) + AAMC_Raw_Data_for_FY22[[#This Row],[Median]]","v":176822.39999999999},{"$f":"(((AAMC_Raw_Data_for_FY22[[#This Row],[75th]]-AAMC_Raw_Data_for_FY22[[#This Row],[Median]])/25)*10) + AAMC_Raw_Data_for_FY22[[#This Row],[Median]]","v":182339.8},{"$f":"(((AAMC_Raw_Data_for_FY22[[#This Row],[75th]]-AAMC_Raw_Data_for_FY22[[#This Row],[Median]])/25)*15) + AAMC_Raw_Data_for_FY22[[#This Row],[Median]]","v":187857.2},{"$f":"(((AAMC_Raw_Data_for_FY22[[#This Row],[75th]]-AAMC_Raw_Data_for_FY22[[#This Row],[Median]])/25)*20) + AAMC_Raw_Data_for_FY22[[#This Row],[Median]]","v":193374.6},198892,{"$f":"(((AAMC_Raw_Data_for_FY22[[#This Row],[75th]]-AAMC_Raw_Data_for_FY22[[#This Row],[Median]])/25)*30) + AAMC_Raw_Data_for_FY22[[#This Row],[Median]]","v":204409.4},{"$f":"(((AAMC_Raw_Data_for_FY22[[#This Row],[75th]]-AAMC_Raw_Data_for_FY22[[#This Row],[Median]])/25)*35) + AAMC_Raw_Data_for_FY22[[#This Row],[Median]]","v":209926.8},{"$f":"(((AAMC_Raw_Data_for_FY22[[#This Row],[75th]]-AAMC_Raw_Data_for_FY22[[#This Row],[Median]])/25)*40) + AAMC_Raw_Data_for_FY22[[#This Row],[Median]]","v":215444.2}]
[{"$f":"AAMC_Raw_Data_for_FY22[[#This Row],[Source]]&AAMC_Raw_Data_for_FY22[[#This Row],[Type]]&AAMC_Raw_Data_for_FY22[[#This Row],[School Subset]]&AAMC_Raw_Data_for_FY22[[#This Row],[Rank]]&AAMC_Raw_Data_for_FY22[[#This Row],[Degree]]&AAMC_Raw_Data_for_FY22[[#This Row],[Department / Specialty]]&\"L\"","v":"AAMCAcademicPrivateAssociateMDAdolescent MedicineL"},"Adolescent Medicine",3,"AAMC","Academic","Private","Associate","MD","2021-2022",183727,{"$f":"(((AAMC_Raw_Data_for_FY22[[#This Row],[Median]]-AAMC_Raw_Data_for_FY22[[#This Row],[25th]])/25)*5) + AAMC_Raw_Data_for_FY22[[#This Row],[25th]]","v":187372.4},{"$f":"(((AAMC_Raw_Data_for_FY22[[#This Row],[Median]]-AAMC_Raw_Data_for_FY22[[#This Row],[25th]])/25)*10) + AAMC_Raw_Data_for_FY22[[#This Row],[25th]]","v":191017.8},{"$f":"(((AAMC_Raw_Data_for_FY22[[#This Row],[Median]]-AAMC_Raw_Data_for_FY22[[#This Row],[25th]])/25)*15) + AAMC_Raw_Data_for_FY22[[#This Row],[25th]]","v":194663.2},{"$f":"(((AAMC_Raw_Data_for_FY22[[#This Row],[Median]]-AAMC_Raw_Data_for_FY22[[#This Row],[25th]])/25)*20) + AAMC_Raw_Data_for_FY22[[#This Row],[25th]]","v":198308.6},201954,{"$f":"(((AAMC_Raw_Data_for_FY22[[#This Row],[75th]]-AAMC_Raw_Data_for_FY22[[#This Row],[Median]])/25)*5) + AAMC_Raw_Data_for_FY22[[#This Row],[Median]]","v":205329.6},{"$f":"(((AAMC_Raw_Data_for_FY22[[#This Row],[75th]]-AAMC_Raw_Data_for_FY22[[#This Row],[Median]])/25)*10) + AAMC_Raw_Data_for_FY22[[#This Row],[Median]]","v":208705.2},{"$f":"(((AAMC_Raw_Data_for_FY22[[#This Row],[75th]]-AAMC_Raw_Data_for_FY22[[#This Row],[Median]])/25)*15) + AAMC_Raw_Data_for_FY22[[#This Row],[Median]]","v":212080.8},{"$f":"(((AAMC_Raw_Data_for_FY22[[#This Row],[75th]]-AAMC_Raw_Data_for_FY22[[#This Row],[Median]])/25)*20) + AAMC_Raw_Data_for_FY22[[#This Row],[Median]]","v":215456.4},218832,{"$f":"(((AAMC_Raw_Data_for_FY22[[#This Row],[75th]]-AAMC_Raw_Data_for_FY22[[#This Row],[Median]])/25)*30) + AAMC_Raw_Data_for_FY22[[#This Row],[Median]]","v":222207.6},{"$f":"(((AAMC_Raw_Data_for_FY22[[#This Row],[75th]]-AAMC_Raw_Data_for_FY22[[#This Row],[Median]])/25)*35) + AAMC_Raw_Data_for_FY22[[#This Row],[Median]]","v":225583.2},{"$f":"(((AAMC_Raw_Data_for_FY22[[#This Row],[75th]]-AAMC_Raw_Data_for_FY22[[#This Row],[Median]])/25)*40) + AAMC_Raw_Data_for_FY22[[#This Row],[Median]]","v":228958.8}]
[{"$f":"AAMC_Raw_Data_for_FY22[[#This Row],[Source]]&AAMC_Raw_Data_for_FY22[[#This Row],[Type]]&AAMC_Raw_Data_for_FY22[[#This Row],[School Subset]]&AAMC_Raw_Data_for_FY22[[#This Row],[Rank]]&AAMC_Raw_Data_for_FY22[[#This Row],[Degree]]&AAMC_Raw_Data_for_FY22[[#This Row],[Department / Specialty]]&\"L\"","v":"AAMCAcademicPrivateProfessorMDAdolescent MedicineL"},"Adolescent Medicine",2,"AAMC","Academic","Private","Professor","MD","2021-2022",212798,{"$f":"(((AAMC_Raw_Data_for_FY22[[#This Row],[Median]]-AAMC_Raw_Data_for_FY22[[#This Row],[25th]])/25)*5) + AAMC_Raw_Data_for_FY22[[#This Row],[25th]]","v":215682.6},{"$f":"(((AAMC_Raw_Data_for_FY22[[#This Row],[Median]]-AAMC_Raw_Data_for_FY22[[#This Row],[25th]])/25)*10) + AAMC_Raw_Data_for_FY22[[#This Row],[25th]]","v":218567.2},{"$f":"(((AAMC_Raw_Data_for_FY22[[#This Row],[Median]]-AAMC_Raw_Data_for_FY22[[#This Row],[25th]])/25)*15) + AAMC_Raw_Data_for_FY22[[#This Row],[25th]]","v":221451.8},{"$f":"(((AAMC_Raw_Data_for_FY22[[#This Row],[Median]]-AAMC_Raw_Data_for_FY22[[#This Row],[25th]])/25)*20) + AAMC_Raw_Data_for_FY22[[#This Row],[25th]]","v":224336.4},227221,{"$f":"(((AAMC_Raw_Data_for_FY22[[#This Row],[75th]]-AAMC_Raw_Data_for_FY22[[#This Row],[Median]])/25)*5) + AAMC_Raw_Data_for_FY22[[#This Row],[Median]]","v":236315.2},{"$f":"(((AAMC_Raw_Data_for_FY22[[#This Row],[75th]]-AAMC_Raw_Data_for_FY22[[#This Row],[Median]])/25)*10) + AAMC_Raw_Data_for_FY22[[#This Row],[Median]]","v":245409.4},{"$f":"(((AAMC_Raw_Data_for_FY22[[#This Row],[75th]]-AAMC_Raw_Data_for_FY22[[#This Row],[Median]])/25)*15) + AAMC_Raw_Data_for_FY22[[#This Row],[Median]]","v":254503.6},{"$f":"(((AAMC_Raw_Data_for_FY22[[#This Row],[75th]]-AAMC_Raw_Data_for_FY22[[#This Row],[Median]])/25)*20) + AAMC_Raw_Data_for_FY22[[#This Row],[Median]]","v":263597.8},272692,{"$f":"(((AAMC_Raw_Data_for_FY22[[#This Row],[75th]]-AAMC_Raw_Data_for_FY22[[#This Row],[Median]])/25)*30) + AAMC_Raw_Data_for_FY22[[#This Row],[Median]]","v":281786.2},{"$f":"(((AAMC_Raw_Data_for_FY22[[#This Row],[75th]]-AAMC_Raw_Data_for_FY22[[#This Row],[Median]])/25)*35) + AAMC_Raw_Data_for_FY22[[#This Row],[Median]]","v":290880.40000000002},{"$f":"(((AAMC_Raw_Data_for_FY22[[#This Row],[75th]]-AAMC_Raw_Data_for_FY22[[#This Row],[Median]])/25)*40) + AAMC_Raw_Data_for_FY22[[#This Row],[Median]]","v":299974.59999999998}]
[{"$f":"AAMC_Raw_Data_for_FY22[[#This Row],[Source]]&AAMC_Raw_Data_for_FY22[[#This Row],[Type]]&AAMC_Raw_Data_for_FY22[[#This Row],[School Subset]]&AAMC_Raw_Data_for_FY22[[#This Row],[Rank]]&AAMC_Raw_Data_for_FY22[[#This Row],[Degree]]&AAMC_Raw_Data_for_FY22[[#This Row],[Department / Specialty]]&\"L\"","v":"AAMCAcademicPrivateChiefMDAdolescent MedicineL"},"Adolescent Medicine",6,"AAMC","Academic","Private","Chief","MD","2021-2022",235972,{"$f":"(((AAMC_Raw_Data_for_FY22[[#This Row],[Median]]-AAMC_Raw_Data_for_FY22[[#This Row],[25th]])/25)*5) + AAMC_Raw_Data_for_FY22[[#This Row],[25th]]","v":246726.39999999999},{"$f":"(((AAMC_Raw_Data_for_FY22[[#This Row],[Median]]-AAMC_Raw_Data_for_FY22[[#This Row],[25th]])/25)*10) + AAMC_Raw_Data_for_FY22[[#This Row],[25th]]","v":257480.8},{"$f":"(((AAMC_Raw_Data_for_FY22[[#This Row],[Median]]-AAMC_Raw_Data_for_FY22[[#This Row],[25th]])/25)*15) + AAMC_Raw_Data_for_FY22[[#This Row],[25th]]","v":268235.2},{"$f":"(((AAMC_Raw_Data_for_FY22[[#This Row],[Median]]-AAMC_Raw_Data_for_FY22[[#This Row],[25th]])/25)*20) + AAMC_Raw_Data_for_FY22[[#This Row],[25th]]","v":278989.59999999998},289744,{"$f":"(((AAMC_Raw_Data_for_FY22[[#This Row],[75th]]-AAMC_Raw_Data_for_FY22[[#This Row],[Median]])/25)*5) + AAMC_Raw_Data_for_FY22[[#This Row],[Median]]","v":301017.59999999998},{"$f":"(((AAMC_Raw_Data_for_FY22[[#This Row],[75th]]-AAMC_Raw_Data_for_FY22[[#This Row],[Median]])/25)*10) + AAMC_Raw_Data_for_FY22[[#This Row],[Median]]","v":312291.20000000001},{"$f":"(((AAMC_Raw_Data_for_FY22[[#This Row],[75th]]-AAMC_Raw_Data_for_FY22[[#This Row],[Median]])/25)*15) + AAMC_Raw_Data_for_FY22[[#This Row],[Median]]","v":323564.79999999999},{"$f":"(((AAMC_Raw_Data_for_FY22[[#This Row],[75th]]-AAMC_Raw_Data_for_FY22[[#This Row],[Median]])/25)*20) + AAMC_Raw_Data_for_FY22[[#This Row],[Median]]","v":334838.40000000002},346112,{"$f":"(((AAMC_Raw_Data_for_FY22[[#This Row],[75th]]-AAMC_Raw_Data_for_FY22[[#This Row],[Median]])/25)*30) + AAMC_Raw_Data_for_FY22[[#This Row],[Median]]","v":357385.6},{"$f":"(((AAMC_Raw_Data_for_FY22[[#This Row],[75th]]-AAMC_Raw_Data_for_FY22[[#This Row],[Median]])/25)*35) + AAMC_Raw_Data_for_FY22[[#This Row],[Median]]","v":368659.20000000001},{"$f":"(((AAMC_Raw_Data_for_FY22[[#This Row],[75th]]-AAMC_Raw_Data_for_FY22[[#This Row],[Median]])/25)*40) + AAMC_Raw_Data_for_FY22[[#This Row],[Median]]","v":379932.8}]
[{"$f":"AAMC_Raw_Data_for_FY22[[#This Row],[Source]]&AAMC_Raw_Data_for_FY22[[#This Row],[Type]]&AAMC_Raw_Data_for_FY22[[#This Row],[School Subset]]&AAMC_Raw_Data_for_FY22[[#This Row],[Rank]]&AAMC_Raw_Data_for_FY22[[#This Row],[Degree]]&AAMC_Raw_Data_for_FY22[[#This Row],[Department / Specialty]]&\"L\"","v":"AAMCAcademicPrivateChairMDAdolescent MedicineL"},"Adolescent Medicine",1,"AAMC","Academic","Private","Chair","MD","2021-2022",null,{"$f":"(((AAMC_Raw_Data_for_FY22[[#This Row],[Median]]-AAMC_Raw_Data_for_FY22[[#This Row],[25th]])/25)*5) + AAMC_Raw_Data_for_FY22[[#This Row],[25th]]","v":0},{"$f":"(((AAMC_Raw_Data_for_FY22[[#This Row],[Median]]-AAMC_Raw_Data_for_FY22[[#This Row],[25th]])/25)*10) + AAMC_Raw_Data_for_FY22[[#This Row],[25th]]","v":0},{"$f":"(((AAMC_Raw_Data_for_FY22[[#This Row],[Median]]-AAMC_Raw_Data_for_FY22[[#This Row],[25th]])/25)*15) + AAMC_Raw_Data_for_FY22[[#This Row],[25th]]","v":0},{"$f":"(((AAMC_Raw_Data_for_FY22[[#This Row],[Median]]-AAMC_Raw_Data_for_FY22[[#This Row],[25th]])/25)*20) + AAMC_Raw_Data_for_FY22[[#This Row],[25th]]","v":0},null,{"$f":"(((AAMC_Raw_Data_for_FY22[[#This Row],[75th]]-AAMC_Raw_Data_for_FY22[[#This Row],[Median]])/25)*5) + AAMC_Raw_Data_for_FY22[[#This Row],[Median]]","v":0},{"$f":"(((AAMC_Raw_Data_for_FY22[[#This Row],[75th]]-AAMC_Raw_Data_for_FY22[[#This Row],[Median]])/25)*10) + AAMC_Raw_Data_for_FY22[[#This Row],[Median]]","v":0},{"$f":"(((AAMC_Raw_Data_for_FY22[[#This Row],[75th]]-AAMC_Raw_Data_for_FY22[[#This Row],[Median]])/25)*15) + AAMC_Raw_Data_for_FY22[[#This Row],[Median]]","v":0},{"$f":"(((AAMC_Raw_Data_for_FY22[[#This Row],[75th]]-AAMC_Raw_Data_for_FY22[[#This Row],[Median]])/25)*20) + AAMC_Raw_Data_for_FY22[[#This Row],[Median]]","v":0},null,{"$f":"(((AAMC_Raw_Data_for_FY22[[#This Row],[75th]]-AAMC_Raw_Data_for_FY22[[#This Row],[Median]])/25)*30) + AAMC_Raw_Data_for_FY22[[#This Row],[Median]]","v":0},{"$f":"(((AAMC_Raw_Data_for_FY22[[#This Row],[75th]]-AAMC_Raw_Data_for_FY22[[#This Row],[Median]])/25)*35) + AAMC_Raw_Data_for_FY22[[#This Row],[Median]]","v":0},{"$f":"(((AAMC_Raw_Data_for_FY22[[#This Row],[75th]]-AAMC_Raw_Data_for_FY22[[#This Row],[Median]])/25)*40) + AAMC_Raw_Data_for_FY22[[#This Row],[Median]]","v":0}]
[{"$f":"AAMC_Raw_Data_for_FY22[[#This Row],[Source]]&AAMC_Raw_Data_for_FY22[[#This Row],[Type]]&AAMC_Raw_Data_for_FY22[[#This Row],[School Subset]]&AAMC_Raw_Data_for_FY22[[#This Row],[Rank]]&AAMC_Raw_Data_for_FY22[[#This Row],[Degree]]&AAMC_Raw_Data_for_FY22[[#This Row],[Department / Specialty]]&\"L\"","v":"AAMCAcademicPrivateInstructorMDAllergy/Immunology-Peds.L"},"Allergy/Immunology-Peds.",5,"AAMC","Academic","Private","Instructor","MD","2021-2022",105466,{"$f":"(((AAMC_Raw_Data_for_FY22[[#This Row],[Median]]-AAMC_Raw_Data_for_FY22[[#This Row],[25th]])/25)*5) + AAMC_Raw_Data_for_FY22[[#This Row],[25th]]","v":120551.2},{"$f":"(((AAMC_Raw_Data_for_FY22[[#This Row],[Median]]-AAMC_Raw_Data_for_FY22[[#This Row],[25th]])/25)*10) + AAMC_Raw_Data_for_FY22[[#This Row],[25th]]","v":135636.4},{"$f":"(((AAMC_Raw_Data_for_FY22[[#This Row],[Median]]-AAMC_Raw_Data_for_FY22[[#This Row],[25th]])/25)*15) + AAMC_Raw_Data_for_FY22[[#This Row],[25th]]","v":150721.60000000001},{"$f":"(((AAMC_Raw_Data_for_FY22[[#This Row],[Median]]-AAMC_Raw_Data_for_FY22[[#This Row],[25th]])/25)*20) + AAMC_Raw_Data_for_FY22[[#This Row],[25th]]","v":165806.79999999999},180892,{"$f":"(((AAMC_Raw_Data_for_FY22[[#This Row],[75th]]-AAMC_Raw_Data_for_FY22[[#This Row],[Median]])/25)*5) + AAMC_Raw_Data_for_FY22[[#This Row],[Median]]","v":191774.2},{"$f":"(((AAMC_Raw_Data_for_FY22[[#This Row],[75th]]-AAMC_Raw_Data_for_FY22[[#This Row],[Median]])/25)*10) + AAMC_Raw_Data_for_FY22[[#This Row],[Median]]","v":202656.4},{"$f":"(((AAMC_Raw_Data_for_FY22[[#This Row],[75th]]-AAMC_Raw_Data_for_FY22[[#This Row],[Median]])/25)*15) + AAMC_Raw_Data_for_FY22[[#This Row],[Median]]","v":213538.6},{"$f":"(((AAMC_Raw_Data_for_FY22[[#This Row],[75th]]-AAMC_Raw_Data_for_FY22[[#This Row],[Median]])/25)*20) + AAMC_Raw_Data_for_FY22[[#This Row],[Median]]","v":224420.8},235303,{"$f":"(((AAMC_Raw_Data_for_FY22[[#This Row],[75th]]-AAMC_Raw_Data_for_FY22[[#This Row],[Median]])/25)*30) + AAMC_Raw_Data_for_FY22[[#This Row],[Median]]","v":246185.2},{"$f":"(((AAMC_Raw_Data_for_FY22[[#This Row],[75th]]-AAMC_Raw_Data_for_FY22[[#This Row],[Median]])/25)*35) + AAMC_Raw_Data_for_FY22[[#This Row],[Median]]","v":257067.40000000002},{"$f":"(((AAMC_Raw_Data_for_FY22[[#This Row],[75th]]-AAMC_Raw_Data_for_FY22[[#This Row],[Median]])/25)*40) + AAMC_Raw_Data_for_FY22[[#This Row],[Median]]","v":267949.59999999998}]
[{"$f":"AAMC_Raw_Data_for_FY22[[#This Row],[Source]]&AAMC_Raw_Data_for_FY22[[#This Row],[Type]]&AAMC_Raw_Data_for_FY22[[#This Row],[School Subset]]&AAMC_Raw_Data_for_FY22[[#This Row],[Rank]]&AAMC_Raw_Data_for_FY22[[#This Row],[Degree]]&AAMC_Raw_Data_for_FY22[[#This Row],[Department / Specialty]]&\"L\"","v":"AAMCAcademicPrivateAssistantMDAllergy/Immunology-Peds.L"},"Allergy/Immunology-Peds.",4,"AAMC","Academic","Private","Assistant","MD","2021-2022",179900,{"$f":"(((AAMC_Raw_Data_for_FY22[[#This Row],[Median]]-AAMC_Raw_Data_for_FY22[[#This Row],[25th]])/25)*5) + AAMC_Raw_Data_for_FY22[[#This Row],[25th]]","v":182750.6},{"$f":"(((AAMC_Raw_Data_for_FY22[[#This Row],[Median]]-AAMC_Raw_Data_for_FY22[[#This Row],[25th]])/25)*10) + AAMC_Raw_Data_for_FY22[[#This Row],[25th]]","v":185601.2},{"$f":"(((AAMC_Raw_Data_for_FY22[[#This Row],[Median]]-AAMC_Raw_Data_for_FY22[[#This Row],[25th]])/25)*15) + AAMC_Raw_Data_for_FY22[[#This Row],[25th]]","v":188451.8},{"$f":"(((AAMC_Raw_Data_for_FY22[[#This Row],[Median]]-AAMC_Raw_Data_for_FY22[[#This Row],[25th]])/25)*20) + AAMC_Raw_Data_for_FY22[[#This Row],[25th]]","v":191302.39999999999},194153,{"$f":"(((AAMC_Raw_Data_for_FY22[[#This Row],[75th]]-AAMC_Raw_Data_for_FY22[[#This Row],[Median]])/25)*5) + AAMC_Raw_Data_for_FY22[[#This Row],[Median]]","v":197584.6},{"$f":"(((AAMC_Raw_Data_for_FY22[[#This Row],[75th]]-AAMC_Raw_Data_for_FY22[[#This Row],[Median]])/25)*10) + AAMC_Raw_Data_for_FY22[[#This Row],[Median]]","v":201016.2},{"$f":"(((AAMC_Raw_Data_for_FY22[[#This Row],[75th]]-AAMC_Raw_Data_for_FY22[[#This Row],[Median]])/25)*15) + AAMC_Raw_Data_for_FY22[[#This Row],[Median]]","v":204447.8},{"$f":"(((AAMC_Raw_Data_for_FY22[[#This Row],[75th]]-AAMC_Raw_Data_for_FY22[[#This Row],[Median]])/25)*20) + AAMC_Raw_Data_for_FY22[[#This Row],[Median]]","v":207879.4},211311,{"$f":"(((AAMC_Raw_Data_for_FY22[[#This Row],[75th]]-AAMC_Raw_Data_for_FY22[[#This Row],[Median]])/25)*30) + AAMC_Raw_Data_for_FY22[[#This Row],[Median]]","v":214742.6},{"$f":"(((AAMC_Raw_Data_for_FY22[[#This Row],[75th]]-AAMC_Raw_Data_for_FY22[[#This Row],[Median]])/25)*35) + AAMC_Raw_Data_for_FY22[[#This Row],[Median]]","v":218174.2},{"$f":"(((AAMC_Raw_Data_for_FY22[[#This Row],[75th]]-AAMC_Raw_Data_for_FY22[[#This Row],[Median]])/25)*40) + AAMC_Raw_Data_for_FY22[[#This Row],[Median]]","v":221605.8}]
[{"$f":"AAMC_Raw_Data_for_FY22[[#This Row],[Source]]&AAMC_Raw_Data_for_FY22[[#This Row],[Type]]&AAMC_Raw_Data_for_FY22[[#This Row],[School Subset]]&AAMC_Raw_Data_for_FY22[[#This Row],[Rank]]&AAMC_Raw_Data_for_FY22[[#This Row],[Degree]]&AAMC_Raw_Data_for_FY22[[#This Row],[Department / Specialty]]&\"L\"","v":"AAMCAcademicPrivateAssociateMDAllergy/Immunology-Peds.L"},"Allergy/Immunology-Peds.",3,"AAMC","Academic","Private","Associate","MD","2021-2022",201347,{"$f":"(((AAMC_Raw_Data_for_FY22[[#This Row],[Median]]-AAMC_Raw_Data_for_FY22[[#This Row],[25th]])/25)*5) + AAMC_Raw_Data_for_FY22[[#This Row],[25th]]","v":206176.2},{"$f":"(((AAMC_Raw_Data_for_FY22[[#This Row],[Median]]-AAMC_Raw_Data_for_FY22[[#This Row],[25th]])/25)*10) + AAMC_Raw_Data_for_FY22[[#This Row],[25th]]","v":211005.4},{"$f":"(((AAMC_Raw_Data_for_FY22[[#This Row],[Median]]-AAMC_Raw_Data_for_FY22[[#This Row],[25th]])/25)*15) + AAMC_Raw_Data_for_FY22[[#This Row],[25th]]","v":215834.6},{"$f":"(((AAMC_Raw_Data_for_FY22[[#This Row],[Median]]-AAMC_Raw_Data_for_FY22[[#This Row],[25th]])/25)*20) + AAMC_Raw_Data_for_FY22[[#This Row],[25th]]","v":220663.8},225493,{"$f":"(((AAMC_Raw_Data_for_FY22[[#This Row],[75th]]-AAMC_Raw_Data_for_FY22[[#This Row],[Median]])/25)*5) + AAMC_Raw_Data_for_FY22[[#This Row],[Median]]","v":227015.4},{"$f":"(((AAMC_Raw_Data_for_FY22[[#This Row],[75th]]-AAMC_Raw_Data_for_FY22[[#This Row],[Median]])/25)*10) + AAMC_Raw_Data_for_FY22[[#This Row],[Median]]","v":228537.8},{"$f":"(((AAMC_Raw_Data_for_FY22[[#This Row],[75th]]-AAMC_Raw_Data_for_FY22[[#This Row],[Median]])/25)*15) + AAMC_Raw_Data_for_FY22[[#This Row],[Median]]","v":230060.2},{"$f":"(((AAMC_Raw_Data_for_FY22[[#This Row],[75th]]-AAMC_Raw_Data_for_FY22[[#This Row],[Median]])/25)*20) + AAMC_Raw_Data_for_FY22[[#This Row],[Median]]","v":231582.6},233105,{"$f":"(((AAMC_Raw_Data_for_FY22[[#This Row],[75th]]-AAMC_Raw_Data_for_FY22[[#This Row],[Median]])/25)*30) + AAMC_Raw_Data_for_FY22[[#This Row],[Median]]","v":234627.4},{"$f":"(((AAMC_Raw_Data_for_FY22[[#This Row],[75th]]-AAMC_Raw_Data_for_FY22[[#This Row],[Median]])/25)*35) + AAMC_Raw_Data_for_FY22[[#This Row],[Median]]","v":236149.8},{"$f":"(((AAMC_Raw_Data_for_FY22[[#This Row],[75th]]-AAMC_Raw_Data_for_FY22[[#This Row],[Median]])/25)*40) + AAMC_Raw_Data_for_FY22[[#This Row],[Median]]","v":237672.2}]
[{"$f":"AAMC_Raw_Data_for_FY22[[#This Row],[Source]]&AAMC_Raw_Data_for_FY22[[#This Row],[Type]]&AAMC_Raw_Data_for_FY22[[#This Row],[School Subset]]&AAMC_Raw_Data_for_FY22[[#This Row],[Rank]]&AAMC_Raw_Data_for_FY22[[#This Row],[Degree]]&AAMC_Raw_Data_for_FY22[[#This Row],[Department / Specialty]]&\"L\"","v":"AAMCAcademicPrivateProfessorMDAllergy/Immunology-Peds.L"},"Allergy/Immunology-Peds.",2,"AAMC","Academic","Private","Professor","MD","2021-2022",249969,{"$f":"(((AAMC_Raw_Data_for_FY22[[#This Row],[Median]]-AAMC_Raw_Data_for_FY22[[#This Row],[25th]])/25)*5) + AAMC_Raw_Data_for_FY22[[#This Row],[25th]]","v":259463.8},{"$f":"(((AAMC_Raw_Data_for_FY22[[#This Row],[Median]]-AAMC_Raw_Data_for_FY22[[#This Row],[25th]])/25)*10) + AAMC_Raw_Data_for_FY22[[#This Row],[25th]]","v":268958.59999999998},{"$f":"(((AAMC_Raw_Data_for_FY22[[#This Row],[Median]]-AAMC_Raw_Data_for_FY22[[#This Row],[25th]])/25)*15) + AAMC_Raw_Data_for_FY22[[#This Row],[25th]]","v":278453.40000000002},{"$f":"(((AAMC_Raw_Data_for_FY22[[#This Row],[Median]]-AAMC_Raw_Data_for_FY22[[#This Row],[25th]])/25)*20) + AAMC_Raw_Data_for_FY22[[#This Row],[25th]]","v":287948.2},297443,{"$f":"(((AAMC_Raw_Data_for_FY22[[#This Row],[75th]]-AAMC_Raw_Data_for_FY22[[#This Row],[Median]])/25)*5) + AAMC_Raw_Data_for_FY22[[#This Row],[Median]]","v":301009.59999999998},{"$f":"(((AAMC_Raw_Data_for_FY22[[#This Row],[75th]]-AAMC_Raw_Data_for_FY22[[#This Row],[Median]])/25)*10) + AAMC_Raw_Data_for_FY22[[#This Row],[Median]]","v":304576.2},{"$f":"(((AAMC_Raw_Data_for_FY22[[#This Row],[75th]]-AAMC_Raw_Data_for_FY22[[#This Row],[Median]])/25)*15) + AAMC_Raw_Data_for_FY22[[#This Row],[Median]]","v":308142.8},{"$f":"(((AAMC_Raw_Data_for_FY22[[#This Row],[75th]]-AAMC_Raw_Data_for_FY22[[#This Row],[Median]])/25)*20) + AAMC_Raw_Data_for_FY22[[#This Row],[Median]]","v":311709.40000000002},315276,{"$f":"(((AAMC_Raw_Data_for_FY22[[#This Row],[75th]]-AAMC_Raw_Data_for_FY22[[#This Row],[Median]])/25)*30) + AAMC_Raw_Data_for_FY22[[#This Row],[Median]]","v":318842.59999999998},{"$f":"(((AAMC_Raw_Data_for_FY22[[#This Row],[75th]]-AAMC_Raw_Data_for_FY22[[#This Row],[Median]])/25)*35) + AAMC_Raw_Data_for_FY22[[#This Row],[Median]]","v":322409.2},{"$f":"(((AAMC_Raw_Data_for_FY22[[#This Row],[75th]]-AAMC_Raw_Data_for_FY22[[#This Row],[Median]])/25)*40) + AAMC_Raw_Data_for_FY22[[#This Row],[Median]]","v":325975.8}]
[{"$f":"AAMC_Raw_Data_for_FY22[[#This Row],[Source]]&AAMC_Raw_Data_for_FY22[[#This Row],[Type]]&AAMC_Raw_Data_for_FY22[[#This Row],[School Subset]]&AAMC_Raw_Data_for_FY22[[#This Row],[Rank]]&AAMC_Raw_Data_for_FY22[[#This Row],[Degree]]&AAMC_Raw_Data_for_FY22[[#This Row],[Department / Specialty]]&\"L\"","v":"AAMCAcademicPrivateChiefMDAllergy/Immunology-Peds.L"},"Allergy/Immunology-Peds.",6,"AAMC","Academic","Private","Chief","MD","2021-2022",298410,{"$f":"(((AAMC_Raw_Data_for_FY22[[#This Row],[Median]]-AAMC_Raw_Data_for_FY22[[#This Row],[25th]])/25)*5) + AAMC_Raw_Data_for_FY22[[#This Row],[25th]]","v":303014.2},{"$f":"(((AAMC_Raw_Data_for_FY22[[#This Row],[Median]]-AAMC_Raw_Data_for_FY22[[#This Row],[25th]])/25)*10) + AAMC_Raw_Data_for_FY22[[#This Row],[25th]]","v":307618.40000000002},{"$f":"(((AAMC_Raw_Data_for_FY22[[#This Row],[Median]]-AAMC_Raw_Data_for_FY22[[#This Row],[25th]])/25)*15) + AAMC_Raw_Data_for_FY22[[#This Row],[25th]]","v":312222.59999999998},{"$f":"(((AAMC_Raw_Data_for_FY22[[#This Row],[Median]]-AAMC_Raw_Data_for_FY22[[#This Row],[25th]])/25)*20) + AAMC_Raw_Data_for_FY22[[#This Row],[25th]]","v":316826.8},321431,{"$f":"(((AAMC_Raw_Data_for_FY22[[#This Row],[75th]]-AAMC_Raw_Data_for_FY22[[#This Row],[Median]])/25)*5) + AAMC_Raw_Data_for_FY22[[#This Row],[Median]]","v":334907.8},{"$f":"(((AAMC_Raw_Data_for_FY22[[#This Row],[75th]]-AAMC_Raw_Data_for_FY22[[#This Row],[Median]])/25)*10) + AAMC_Raw_Data_for_FY22[[#This Row],[Median]]","v":348384.6},{"$f":"(((AAMC_Raw_Data_for_FY22[[#This Row],[75th]]-AAMC_Raw_Data_for_FY22[[#This Row],[Median]])/25)*15) + AAMC_Raw_Data_for_FY22[[#This Row],[Median]]","v":361861.4},{"$f":"(((AAMC_Raw_Data_for_FY22[[#This Row],[75th]]-AAMC_Raw_Data_for_FY22[[#This Row],[Median]])/25)*20) + AAMC_Raw_Data_for_FY22[[#This Row],[Median]]","v":375338.2},388815,{"$f":"(((AAMC_Raw_Data_for_FY22[[#This Row],[75th]]-AAMC_Raw_Data_for_FY22[[#This Row],[Median]])/25)*30) + AAMC_Raw_Data_for_FY22[[#This Row],[Median]]","v":402291.8},{"$f":"(((AAMC_Raw_Data_for_FY22[[#This Row],[75th]]-AAMC_Raw_Data_for_FY22[[#This Row],[Median]])/25)*35) + AAMC_Raw_Data_for_FY22[[#This Row],[Median]]","v":415768.6},{"$f":"(((AAMC_Raw_Data_for_FY22[[#This Row],[75th]]-AAMC_Raw_Data_for_FY22[[#This Row],[Median]])/25)*40) + AAMC_Raw_Data_for_FY22[[#This Row],[Median]]","v":429245.4}]
[{"$f":"AAMC_Raw_Data_for_FY22[[#This Row],[Source]]&AAMC_Raw_Data_for_FY22[[#This Row],[Type]]&AAMC_Raw_Data_for_FY22[[#This Row],[School Subset]]&AAMC_Raw_Data_for_FY22[[#This Row],[Rank]]&AAMC_Raw_Data_for_FY22[[#This Row],[Degree]]&AAMC_Raw_Data_for_FY22[[#This Row],[Department / Specialty]]&\"L\"","v":"AAMCAcademicPrivateInstructorMDCritical/Intensive Care-Peds.L"},"Critical/Intensive Care-Peds.",5,"AAMC","Academic","Private","Instructor","MD","2021-2022",165103,{"$f":"(((AAMC_Raw_Data_for_FY22[[#This Row],[Median]]-AAMC_Raw_Data_for_FY22[[#This Row],[25th]])/25)*5) + AAMC_Raw_Data_for_FY22[[#This Row],[25th]]","v":174316.2},{"$f":"(((AAMC_Raw_Data_for_FY22[[#This Row],[Median]]-AAMC_Raw_Data_for_FY22[[#This Row],[25th]])/25)*10) + AAMC_Raw_Data_for_FY22[[#This Row],[25th]]","v":183529.4},{"$f":"(((AAMC_Raw_Data_for_FY22[[#This Row],[Median]]-AAMC_Raw_Data_for_FY22[[#This Row],[25th]])/25)*15) + AAMC_Raw_Data_for_FY22[[#This Row],[25th]]","v":192742.6},{"$f":"(((AAMC_Raw_Data_for_FY22[[#This Row],[Median]]-AAMC_Raw_Data_for_FY22[[#This Row],[25th]])/25)*20) + AAMC_Raw_Data_for_FY22[[#This Row],[25th]]","v":201955.8},211169,{"$f":"(((AAMC_Raw_Data_for_FY22[[#This Row],[75th]]-AAMC_Raw_Data_for_FY22[[#This Row],[Median]])/25)*5) + AAMC_Raw_Data_for_FY22[[#This Row],[Median]]","v":225327.8},{"$f":"(((AAMC_Raw_Data_for_FY22[[#This Row],[75th]]-AAMC_Raw_Data_for_FY22[[#This Row],[Median]])/25)*10) + AAMC_Raw_Data_for_FY22[[#This Row],[Median]]","v":239486.6},{"$f":"(((AAMC_Raw_Data_for_FY22[[#This Row],[75th]]-AAMC_Raw_Data_for_FY22[[#This Row],[Median]])/25)*15) + AAMC_Raw_Data_for_FY22[[#This Row],[Median]]","v":253645.4},{"$f":"(((AAMC_Raw_Data_for_FY22[[#This Row],[75th]]-AAMC_Raw_Data_for_FY22[[#This Row],[Median]])/25)*20) + AAMC_Raw_Data_for_FY22[[#This Row],[Median]]","v":267804.2},281963,{"$f":"(((AAMC_Raw_Data_for_FY22[[#This Row],[75th]]-AAMC_Raw_Data_for_FY22[[#This Row],[Median]])/25)*30) + AAMC_Raw_Data_for_FY22[[#This Row],[Median]]","v":296121.8},{"$f":"(((AAMC_Raw_Data_for_FY22[[#This Row],[75th]]-AAMC_Raw_Data_for_FY22[[#This Row],[Median]])/25)*35) + AAMC_Raw_Data_for_FY22[[#This Row],[Median]]","v":310280.59999999998},{"$f":"(((AAMC_Raw_Data_for_FY22[[#This Row],[75th]]-AAMC_Raw_Data_for_FY22[[#This Row],[Median]])/25)*40) + AAMC_Raw_Data_for_FY22[[#This Row],[Median]]","v":324439.40000000002}]
[{"$f":"AAMC_Raw_Data_for_FY22[[#This Row],[Source]]&AAMC_Raw_Data_for_FY22[[#This Row],[Type]]&AAMC_Raw_Data_for_FY22[[#This Row],[School Subset]]&AAMC_Raw_Data_for_FY22[[#This Row],[Rank]]&AAMC_Raw_Data_for_FY22[[#This Row],[Degree]]&AAMC_Raw_Data_for_FY22[[#This Row],[Department / Specialty]]&\"L\"","v":"AAMCAcademicPrivateAssistantMDCritical/Intensive Care-Peds.L"},"Critical/Intensive Care-Peds.",4,"AAMC","Academic","Private","Assistant","MD","2021-2022",241495,{"$f":"(((AAMC_Raw_Data_for_FY22[[#This Row],[Median]]-AAMC_Raw_Data_for_FY22[[#This Row],[25th]])/25)*5) + AAMC_Raw_Data_for_FY22[[#This Row],[25th]]","v":249492.6},{"$f":"(((AAMC_Raw_Data_for_FY22[[#This Row],[Median]]-AAMC_Raw_Data_for_FY22[[#This Row],[25th]])/25)*10) + AAMC_Raw_Data_for_FY22[[#This Row],[25th]]","v":257490.2},{"$f":"(((AAMC_Raw_Data_for_FY22[[#This Row],[Median]]-AAMC_Raw_Data_for_FY22[[#This Row],[25th]])/25)*15) + AAMC_Raw_Data_for_FY22[[#This Row],[25th]]","v":265487.8},{"$f":"(((AAMC_Raw_Data_for_FY22[[#This Row],[Median]]-AAMC_Raw_Data_for_FY22[[#This Row],[25th]])/25)*20) + AAMC_Raw_Data_for_FY22[[#This Row],[25th]]","v":273485.40000000002},281483,{"$f":"(((AAMC_Raw_Data_for_FY22[[#This Row],[75th]]-AAMC_Raw_Data_for_FY22[[#This Row],[Median]])/25)*5) + AAMC_Raw_Data_for_FY22[[#This Row],[Median]]","v":290713.2},{"$f":"(((AAMC_Raw_Data_for_FY22[[#This Row],[75th]]-AAMC_Raw_Data_for_FY22[[#This Row],[Median]])/25)*10) + AAMC_Raw_Data_for_FY22[[#This Row],[Median]]","v":299943.40000000002},{"$f":"(((AAMC_Raw_Data_for_FY22[[#This Row],[75th]]-AAMC_Raw_Data_for_FY22[[#This Row],[Median]])/25)*15) + AAMC_Raw_Data_for_FY22[[#This Row],[Median]]","v":309173.59999999998},{"$f":"(((AAMC_Raw_Data_for_FY22[[#This Row],[75th]]-AAMC_Raw_Data_for_FY22[[#This Row],[Median]])/25)*20) + AAMC_Raw_Data_for_FY22[[#This Row],[Median]]","v":318403.8},327634,{"$f":"(((AAMC_Raw_Data_for_FY22[[#This Row],[75th]]-AAMC_Raw_Data_for_FY22[[#This Row],[Median]])/25)*30) + AAMC_Raw_Data_for_FY22[[#This Row],[Median]]","v":336864.2},{"$f":"(((AAMC_Raw_Data_for_FY22[[#This Row],[75th]]-AAMC_Raw_Data_for_FY22[[#This Row],[Median]])/25)*35) + AAMC_Raw_Data_for_FY22[[#This Row],[Median]]","v":346094.4},{"$f":"(((AAMC_Raw_Data_for_FY22[[#This Row],[75th]]-AAMC_Raw_Data_for_FY22[[#This Row],[Median]])/25)*40) + AAMC_Raw_Data_for_FY22[[#This Row],[Median]]","v":355324.6}]
[{"$f":"AAMC_Raw_Data_for_FY22[[#This Row],[Source]]&AAMC_Raw_Data_for_FY22[[#This Row],[Type]]&AAMC_Raw_Data_for_FY22[[#This Row],[School Subset]]&AAMC_Raw_Data_for_FY22[[#This Row],[Rank]]&AAMC_Raw_Data_for_FY22[[#This Row],[Degree]]&AAMC_Raw_Data_for_FY22[[#This Row],[Department / Specialty]]&\"L\"","v":"AAMCAcademicPrivateAssociateMDCritical/Intensive Care-Peds.L"},"Critical/Intensive Care-Peds.",3,"AAMC","Academic","Private","Associate","MD","2021-2022",284475,{"$f":"(((AAMC_Raw_Data_for_FY22[[#This Row],[Median]]-AAMC_Raw_Data_for_FY22[[#This Row],[25th]])/25)*5) + AAMC_Raw_Data_for_FY22[[#This Row],[25th]]","v":294224.8},{"$f":"(((AAMC_Raw_Data_for_FY22[[#This Row],[Median]]-AAMC_Raw_Data_for_FY22[[#This Row],[25th]])/25)*10) + AAMC_Raw_Data_for_FY22[[#This Row],[25th]]","v":303974.59999999998},{"$f":"(((AAMC_Raw_Data_for_FY22[[#This Row],[Median]]-AAMC_Raw_Data_for_FY22[[#This Row],[25th]])/25)*15) + AAMC_Raw_Data_for_FY22[[#This Row],[25th]]","v":313724.40000000002},{"$f":"(((AAMC_Raw_Data_for_FY22[[#This Row],[Median]]-AAMC_Raw_Data_for_FY22[[#This Row],[25th]])/25)*20) + AAMC_Raw_Data_for_FY22[[#This Row],[25th]]","v":323474.2},333224,{"$f":"(((AAMC_Raw_Data_for_FY22[[#This Row],[75th]]-AAMC_Raw_Data_for_FY22[[#This Row],[Median]])/25)*5) + AAMC_Raw_Data_for_FY22[[#This Row],[Median]]","v":342043},{"$f":"(((AAMC_Raw_Data_for_FY22[[#This Row],[75th]]-AAMC_Raw_Data_for_FY22[[#This Row],[Median]])/25)*10) + AAMC_Raw_Data_for_FY22[[#This Row],[Median]]","v":350862},{"$f":"(((AAMC_Raw_Data_for_FY22[[#This Row],[75th]]-AAMC_Raw_Data_for_FY22[[#This Row],[Median]])/25)*15) + AAMC_Raw_Data_for_FY22[[#This Row],[Median]]","v":359681},{"$f":"(((AAMC_Raw_Data_for_FY22[[#This Row],[75th]]-AAMC_Raw_Data_for_FY22[[#This Row],[Median]])/25)*20) + AAMC_Raw_Data_for_FY22[[#This Row],[Median]]","v":368500},377319,{"$f":"(((AAMC_Raw_Data_for_FY22[[#This Row],[75th]]-AAMC_Raw_Data_for_FY22[[#This Row],[Median]])/25)*30) + AAMC_Raw_Data_for_FY22[[#This Row],[Median]]","v":386138},{"$f":"(((AAMC_Raw_Data_for_FY22[[#This Row],[75th]]-AAMC_Raw_Data_for_FY22[[#This Row],[Median]])/25)*35) + AAMC_Raw_Data_for_FY22[[#This Row],[Median]]","v":394957},{"$f":"(((AAMC_Raw_Data_for_FY22[[#This Row],[75th]]-AAMC_Raw_Data_for_FY22[[#This Row],[Median]])/25)*40) + AAMC_Raw_Data_for_FY22[[#This Row],[Median]]","v":403776}]
[{"$f":"AAMC_Raw_Data_for_FY22[[#This Row],[Source]]&AAMC_Raw_Data_for_FY22[[#This Row],[Type]]&AAMC_Raw_Data_for_FY22[[#This Row],[School Subset]]&AAMC_Raw_Data_for_FY22[[#This Row],[Rank]]&AAMC_Raw_Data_for_FY22[[#This Row],[Degree]]&AAMC_Raw_Data_for_FY22[[#This Row],[Department / Specialty]]&\"L\"","v":"AAMCAcademicPrivateProfessorMDCritical/Intensive Care-Peds.L"},"Critical/Intensive Care-Peds.",2,"AAMC","Academic","Private","Professor","MD","2021-2022",341838,{"$f":"(((AAMC_Raw_Data_for_FY22[[#This Row],[Median]]-AAMC_Raw_Data_for_FY22[[#This Row],[25th]])/25)*5) + AAMC_Raw_Data_for_FY22[[#This Row],[25th]]","v":354852.8},{"$f":"(((AAMC_Raw_Data_for_FY22[[#This Row],[Median]]-AAMC_Raw_Data_for_FY22[[#This Row],[25th]])/25)*10) + AAMC_Raw_Data_for_FY22[[#This Row],[25th]]","v":367867.6},{"$f":"(((AAMC_Raw_Data_for_FY22[[#This Row],[Median]]-AAMC_Raw_Data_for_FY22[[#This Row],[25th]])/25)*15) + AAMC_Raw_Data_for_FY22[[#This Row],[25th]]","v":380882.4},{"$f":"(((AAMC_Raw_Data_for_FY22[[#This Row],[Median]]-AAMC_Raw_Data_for_FY22[[#This Row],[25th]])/25)*20) + AAMC_Raw_Data_for_FY22[[#This Row],[25th]]","v":393897.2},406912,{"$f":"(((AAMC_Raw_Data_for_FY22[[#This Row],[75th]]-AAMC_Raw_Data_for_FY22[[#This Row],[Median]])/25)*5) + AAMC_Raw_Data_for_FY22[[#This Row],[Median]]","v":414896.4},{"$f":"(((AAMC_Raw_Data_for_FY22[[#This Row],[75th]]-AAMC_Raw_Data_for_FY22[[#This Row],[Median]])/25)*10) + AAMC_Raw_Data_for_FY22[[#This Row],[Median]]","v":422880.8},{"$f":"(((AAMC_Raw_Data_for_FY22[[#This Row],[75th]]-AAMC_Raw_Data_for_FY22[[#This Row],[Median]])/25)*15) + AAMC_Raw_Data_for_FY22[[#This Row],[Median]]","v":430865.2},{"$f":"(((AAMC_Raw_Data_for_FY22[[#This Row],[75th]]-AAMC_Raw_Data_for_FY22[[#This Row],[Median]])/25)*20) + AAMC_Raw_Data_for_FY22[[#This Row],[Median]]","v":438849.6},446834,{"$f":"(((AAMC_Raw_Data_for_FY22[[#This Row],[75th]]-AAMC_Raw_Data_for_FY22[[#This Row],[Median]])/25)*30) + AAMC_Raw_Data_for_FY22[[#This Row],[Median]]","v":454818.4},{"$f":"(((AAMC_Raw_Data_for_FY22[[#This Row],[75th]]-AAMC_Raw_Data_for_FY22[[#This Row],[Median]])/25)*35) + AAMC_Raw_Data_for_FY22[[#This Row],[Median]]","v":462802.8},{"$f":"(((AAMC_Raw_Data_for_FY22[[#This Row],[75th]]-AAMC_Raw_Data_for_FY22[[#This Row],[Median]])/25)*40) + AAMC_Raw_Data_for_FY22[[#This Row],[Median]]","v":470787.2}]
[{"$f":"AAMC_Raw_Data_for_FY22[[#This Row],[Source]]&AAMC_Raw_Data_for_FY22[[#This Row],[Type]]&AAMC_Raw_Data_for_FY22[[#This Row],[School Subset]]&AAMC_Raw_Data_for_FY22[[#This Row],[Rank]]&AAMC_Raw_Data_for_FY22[[#This Row],[Degree]]&AAMC_Raw_Data_for_FY22[[#This Row],[Department / Specialty]]&\"L\"","v":"AAMCAcademicPrivateChiefMDCritical/Intensive Care-Peds.L"},"Critical/Intensive Care-Peds.",6,"AAMC","Academic","Private","Chief","MD","2021-2022",355590,{"$f":"(((AAMC_Raw_Data_for_FY22[[#This Row],[Median]]-AAMC_Raw_Data_for_FY22[[#This Row],[25th]])/25)*5) + AAMC_Raw_Data_for_FY22[[#This Row],[25th]]","v":363233.2},{"$f":"(((AAMC_Raw_Data_for_FY22[[#This Row],[Median]]-AAMC_Raw_Data_for_FY22[[#This Row],[25th]])/25)*10) + AAMC_Raw_Data_for_FY22[[#This Row],[25th]]","v":370876.4},{"$f":"(((AAMC_Raw_Data_for_FY22[[#This Row],[Median]]-AAMC_Raw_Data_for_FY22[[#This Row],[25th]])/25)*15) + AAMC_Raw_Data_for_FY22[[#This Row],[25th]]","v":378519.6},{"$f":"(((AAMC_Raw_Data_for_FY22[[#This Row],[Median]]-AAMC_Raw_Data_for_FY22[[#This Row],[25th]])/25)*20) + AAMC_Raw_Data_for_FY22[[#This Row],[25th]]","v":386162.8},393806,{"$f":"(((AAMC_Raw_Data_for_FY22[[#This Row],[75th]]-AAMC_Raw_Data_for_FY22[[#This Row],[Median]])/25)*5) + AAMC_Raw_Data_for_FY22[[#This Row],[Median]]","v":411019.2},{"$f":"(((AAMC_Raw_Data_for_FY22[[#This Row],[75th]]-AAMC_Raw_Data_for_FY22[[#This Row],[Median]])/25)*10) + AAMC_Raw_Data_for_FY22[[#This Row],[Median]]","v":428232.4},{"$f":"(((AAMC_Raw_Data_for_FY22[[#This Row],[75th]]-AAMC_Raw_Data_for_FY22[[#This Row],[Median]])/25)*15) + AAMC_Raw_Data_for_FY22[[#This Row],[Median]]","v":445445.6},{"$f":"(((AAMC_Raw_Data_for_FY22[[#This Row],[75th]]-AAMC_Raw_Data_for_FY22[[#This Row],[Median]])/25)*20) + AAMC_Raw_Data_for_FY22[[#This Row],[Median]]","v":462658.8},479872,{"$f":"(((AAMC_Raw_Data_for_FY22[[#This Row],[75th]]-AAMC_Raw_Data_for_FY22[[#This Row],[Median]])/25)*30) + AAMC_Raw_Data_for_FY22[[#This Row],[Median]]","v":497085.2},{"$f":"(((AAMC_Raw_Data_for_FY22[[#This Row],[75th]]-AAMC_Raw_Data_for_FY22[[#This Row],[Median]])/25)*35) + AAMC_Raw_Data_for_FY22[[#This Row],[Median]]","v":514298.4},{"$f":"(((AAMC_Raw_Data_for_FY22[[#This Row],[75th]]-AAMC_Raw_Data_for_FY22[[#This Row],[Median]])/25)*40) + AAMC_Raw_Data_for_FY22[[#This Row],[Median]]","v":531511.6}]
[{"$f":"AAMC_Raw_Data_for_FY22[[#This Row],[Source]]&AAMC_Raw_Data_for_FY22[[#This Row],[Type]]&AAMC_Raw_Data_for_FY22[[#This Row],[School Subset]]&AAMC_Raw_Data_for_FY22[[#This Row],[Rank]]&AAMC_Raw_Data_for_FY22[[#This Row],[Degree]]&AAMC_Raw_Data_for_FY22[[#This Row],[Department / Specialty]]&\"L\"","v":"AAMCAcademicPrivateInstructorMDDevelopmental-Behavioral PediatricsL"},"Developmental-Behavioral Pediatrics",5,"AAMC","Academic","Private","Instructor","MD","2021-2022",null,{"$f":"(((AAMC_Raw_Data_for_FY22[[#This Row],[Median]]-AAMC_Raw_Data_for_FY22[[#This Row],[25th]])/25)*5) + AAMC_Raw_Data_for_FY22[[#This Row],[25th]]","v":0},{"$f":"(((AAMC_Raw_Data_for_FY22[[#This Row],[Median]]-AAMC_Raw_Data_for_FY22[[#This Row],[25th]])/25)*10) + AAMC_Raw_Data_for_FY22[[#This Row],[25th]]","v":0},{"$f":"(((AAMC_Raw_Data_for_FY22[[#This Row],[Median]]-AAMC_Raw_Data_for_FY22[[#This Row],[25th]])/25)*15) + AAMC_Raw_Data_for_FY22[[#This Row],[25th]]","v":0},{"$f":"(((AAMC_Raw_Data_for_FY22[[#This Row],[Median]]-AAMC_Raw_Data_for_FY22[[#This Row],[25th]])/25)*20) + AAMC_Raw_Data_for_FY22[[#This Row],[25th]]","v":0},null,{"$f":"(((AAMC_Raw_Data_for_FY22[[#This Row],[75th]]-AAMC_Raw_Data_for_FY22[[#This Row],[Median]])/25)*5) + AAMC_Raw_Data_for_FY22[[#This Row],[Median]]","v":0},{"$f":"(((AAMC_Raw_Data_for_FY22[[#This Row],[75th]]-AAMC_Raw_Data_for_FY22[[#This Row],[Median]])/25)*10) + AAMC_Raw_Data_for_FY22[[#This Row],[Median]]","v":0},{"$f":"(((AAMC_Raw_Data_for_FY22[[#This Row],[75th]]-AAMC_Raw_Data_for_FY22[[#This Row],[Median]])/25)*15) + AAMC_Raw_Data_for_FY22[[#This Row],[Median]]","v":0},{"$f":"(((AAMC_Raw_Data_for_FY22[[#This Row],[75th]]-AAMC_Raw_Data_for_FY22[[#This Row],[Median]])/25)*20) + AAMC_Raw_Data_for_FY22[[#This Row],[Median]]","v":0},null,{"$f":"(((AAMC_Raw_Data_for_FY22[[#This Row],[75th]]-AAMC_Raw_Data_for_FY22[[#This Row],[Median]])/25)*30) + AAMC_Raw_Data_for_FY22[[#This Row],[Median]]","v":0},{"$f":"(((AAMC_Raw_Data_for_FY22[[#This Row],[75th]]-AAMC_Raw_Data_for_FY22[[#This Row],[Median]])/25)*35) + AAMC_Raw_Data_for_FY22[[#This Row],[Median]]","v":0},{"$f":"(((AAMC_Raw_Data_for_FY22[[#This Row],[75th]]-AAMC_Raw_Data_for_FY22[[#This Row],[Median]])/25)*40) + AAMC_Raw_Data_for_FY22[[#This Row],[Median]]","v":0}]
[{"$f":"AAMC_Raw_Data_for_FY22[[#This Row],[Source]]&AAMC_Raw_Data_for_FY22[[#This Row],[Type]]&AAMC_Raw_Data_for_FY22[[#This Row],[School Subset]]&AAMC_Raw_Data_for_FY22[[#This Row],[Rank]]&AAMC_Raw_Data_for_FY22[[#This Row],[Degree]]&AAMC_Raw_Data_for_FY22[[#This Row],[Department / Specialty]]&\"L\"","v":"AAMCAcademicPrivateAssistantMDDevelopmental-Behavioral PediatricsL"},"Developmental-Behavioral Pediatrics",4,"AAMC","Academic","Private","Assistant","MD","2021-2022",176597,{"$f":"(((AAMC_Raw_Data_for_FY22[[#This Row],[Median]]-AAMC_Raw_Data_for_FY22[[#This Row],[25th]])/25)*5) + AAMC_Raw_Data_for_FY22[[#This Row],[25th]]","v":177914.6},{"$f":"(((AAMC_Raw_Data_for_FY22[[#This Row],[Median]]-AAMC_Raw_Data_for_FY22[[#This Row],[25th]])/25)*10) + AAMC_Raw_Data_for_FY22[[#This Row],[25th]]","v":179232.2},{"$f":"(((AAMC_Raw_Data_for_FY22[[#This Row],[Median]]-AAMC_Raw_Data_for_FY22[[#This Row],[25th]])/25)*15) + AAMC_Raw_Data_for_FY22[[#This Row],[25th]]","v":180549.8},{"$f":"(((AAMC_Raw_Data_for_FY22[[#This Row],[Median]]-AAMC_Raw_Data_for_FY22[[#This Row],[25th]])/25)*20) + AAMC_Raw_Data_for_FY22[[#This Row],[25th]]","v":181867.4},183185,{"$f":"(((AAMC_Raw_Data_for_FY22[[#This Row],[75th]]-AAMC_Raw_Data_for_FY22[[#This Row],[Median]])/25)*5) + AAMC_Raw_Data_for_FY22[[#This Row],[Median]]","v":189760.6},{"$f":"(((AAMC_Raw_Data_for_FY22[[#This Row],[75th]]-AAMC_Raw_Data_for_FY22[[#This Row],[Median]])/25)*10) + AAMC_Raw_Data_for_FY22[[#This Row],[Median]]","v":196336.2},{"$f":"(((AAMC_Raw_Data_for_FY22[[#This Row],[75th]]-AAMC_Raw_Data_for_FY22[[#This Row],[Median]])/25)*15) + AAMC_Raw_Data_for_FY22[[#This Row],[Median]]","v":202911.8},{"$f":"(((AAMC_Raw_Data_for_FY22[[#This Row],[75th]]-AAMC_Raw_Data_for_FY22[[#This Row],[Median]])/25)*20) + AAMC_Raw_Data_for_FY22[[#This Row],[Median]]","v":209487.4},216063,{"$f":"(((AAMC_Raw_Data_for_FY22[[#This Row],[75th]]-AAMC_Raw_Data_for_FY22[[#This Row],[Median]])/25)*30) + AAMC_Raw_Data_for_FY22[[#This Row],[Median]]","v":222638.6},{"$f":"(((AAMC_Raw_Data_for_FY22[[#This Row],[75th]]-AAMC_Raw_Data_for_FY22[[#This Row],[Median]])/25)*35) + AAMC_Raw_Data_for_FY22[[#This Row],[Median]]","v":229214.2},{"$f":"(((AAMC_Raw_Data_for_FY22[[#This Row],[75th]]-AAMC_Raw_Data_for_FY22[[#This Row],[Median]])/25)*40) + AAMC_Raw_Data_for_FY22[[#This Row],[Median]]","v":235789.8}]
[{"$f":"AAMC_Raw_Data_for_FY22[[#This Row],[Source]]&AAMC_Raw_Data_for_FY22[[#This Row],[Type]]&AAMC_Raw_Data_for_FY22[[#This Row],[School Subset]]&AAMC_Raw_Data_for_FY22[[#This Row],[Rank]]&AAMC_Raw_Data_for_FY22[[#This Row],[Degree]]&AAMC_Raw_Data_for_FY22[[#This Row],[Department / Specialty]]&\"L\"","v":"AAMCAcademicPrivateAssociateMDDevelopmental-Behavioral PediatricsL"},"Developmental-Behavioral Pediatrics",3,"AAMC","Academic","Private","Associate","MD","2021-2022",200901,{"$f":"(((AAMC_Raw_Data_for_FY22[[#This Row],[Median]]-AAMC_Raw_Data_for_FY22[[#This Row],[25th]])/25)*5) + AAMC_Raw_Data_for_FY22[[#This Row],[25th]]","v":205041},{"$f":"(((AAMC_Raw_Data_for_FY22[[#This Row],[Median]]-AAMC_Raw_Data_for_FY22[[#This Row],[25th]])/25)*10) + AAMC_Raw_Data_for_FY22[[#This Row],[25th]]","v":209181},{"$f":"(((AAMC_Raw_Data_for_FY22[[#This Row],[Median]]-AAMC_Raw_Data_for_FY22[[#This Row],[25th]])/25)*15) + AAMC_Raw_Data_for_FY22[[#This Row],[25th]]","v":213321},{"$f":"(((AAMC_Raw_Data_for_FY22[[#This Row],[Median]]-AAMC_Raw_Data_for_FY22[[#This Row],[25th]])/25)*20) + AAMC_Raw_Data_for_FY22[[#This Row],[25th]]","v":217461},221601,{"$f":"(((AAMC_Raw_Data_for_FY22[[#This Row],[75th]]-AAMC_Raw_Data_for_FY22[[#This Row],[Median]])/25)*5) + AAMC_Raw_Data_for_FY22[[#This Row],[Median]]","v":231599.4},{"$f":"(((AAMC_Raw_Data_for_FY22[[#This Row],[75th]]-AAMC_Raw_Data_for_FY22[[#This Row],[Median]])/25)*10) + AAMC_Raw_Data_for_FY22[[#This Row],[Median]]","v":241597.8},{"$f":"(((AAMC_Raw_Data_for_FY22[[#This Row],[75th]]-AAMC_Raw_Data_for_FY22[[#This Row],[Median]])/25)*15) + AAMC_Raw_Data_for_FY22[[#This Row],[Median]]","v":251596.2},{"$f":"(((AAMC_Raw_Data_for_FY22[[#This Row],[75th]]-AAMC_Raw_Data_for_FY22[[#This Row],[Median]])/25)*20) + AAMC_Raw_Data_for_FY22[[#This Row],[Median]]","v":261594.6},271593,{"$f":"(((AAMC_Raw_Data_for_FY22[[#This Row],[75th]]-AAMC_Raw_Data_for_FY22[[#This Row],[Median]])/25)*30) + AAMC_Raw_Data_for_FY22[[#This Row],[Median]]","v":281591.40000000002},{"$f":"(((AAMC_Raw_Data_for_FY22[[#This Row],[75th]]-AAMC_Raw_Data_for_FY22[[#This Row],[Median]])/25)*35) + AAMC_Raw_Data_for_FY22[[#This Row],[Median]]","v":291589.8},{"$f":"(((AAMC_Raw_Data_for_FY22[[#This Row],[75th]]-AAMC_Raw_Data_for_FY22[[#This Row],[Median]])/25)*40) + AAMC_Raw_Data_for_FY22[[#This Row],[Median]]","v":301588.2}]
[{"$f":"AAMC_Raw_Data_for_FY22[[#This Row],[Source]]&AAMC_Raw_Data_for_FY22[[#This Row],[Type]]&AAMC_Raw_Data_for_FY22[[#This Row],[School Subset]]&AAMC_Raw_Data_for_FY22[[#This Row],[Rank]]&AAMC_Raw_Data_for_FY22[[#This Row],[Degree]]&AAMC_Raw_Data_for_FY22[[#This Row],[Department / Specialty]]&\"L\"","v":"AAMCAcademicPrivateProfessorMDDevelopmental-Behavioral PediatricsL"},"Developmental-Behavioral Pediatrics",2,"AAMC","Academic","Private","Professor","MD","2021-2022",242418,{"$f":"(((AAMC_Raw_Data_for_FY22[[#This Row],[Median]]-AAMC_Raw_Data_for_FY22[[#This Row],[25th]])/25)*5) + AAMC_Raw_Data_for_FY22[[#This Row],[25th]]","v":247606},{"$f":"(((AAMC_Raw_Data_for_FY22[[#This Row],[Median]]-AAMC_Raw_Data_for_FY22[[#This Row],[25th]])/25)*10) + AAMC_Raw_Data_for_FY22[[#This Row],[25th]]","v":252794},{"$f":"(((AAMC_Raw_Data_for_FY22[[#This Row],[Median]]-AAMC_Raw_Data_for_FY22[[#This Row],[25th]])/25)*15) + AAMC_Raw_Data_for_FY22[[#This Row],[25th]]","v":257982},{"$f":"(((AAMC_Raw_Data_for_FY22[[#This Row],[Median]]-AAMC_Raw_Data_for_FY22[[#This Row],[25th]])/25)*20) + AAMC_Raw_Data_for_FY22[[#This Row],[25th]]","v":263170},268358,{"$f":"(((AAMC_Raw_Data_for_FY22[[#This Row],[75th]]-AAMC_Raw_Data_for_FY22[[#This Row],[Median]])/25)*5) + AAMC_Raw_Data_for_FY22[[#This Row],[Median]]","v":278042.59999999998},{"$f":"(((AAMC_Raw_Data_for_FY22[[#This Row],[75th]]-AAMC_Raw_Data_for_FY22[[#This Row],[Median]])/25)*10) + AAMC_Raw_Data_for_FY22[[#This Row],[Median]]","v":287727.2},{"$f":"(((AAMC_Raw_Data_for_FY22[[#This Row],[75th]]-AAMC_Raw_Data_for_FY22[[#This Row],[Median]])/25)*15) + AAMC_Raw_Data_for_FY22[[#This Row],[Median]]","v":297411.8},{"$f":"(((AAMC_Raw_Data_for_FY22[[#This Row],[75th]]-AAMC_Raw_Data_for_FY22[[#This Row],[Median]])/25)*20) + AAMC_Raw_Data_for_FY22[[#This Row],[Median]]","v":307096.40000000002},316781,{"$f":"(((AAMC_Raw_Data_for_FY22[[#This Row],[75th]]-AAMC_Raw_Data_for_FY22[[#This Row],[Median]])/25)*30) + AAMC_Raw_Data_for_FY22[[#This Row],[Median]]","v":326465.59999999998},{"$f":"(((AAMC_Raw_Data_for_FY22[[#This Row],[75th]]-AAMC_Raw_Data_for_FY22[[#This Row],[Median]])/25)*35) + AAMC_Raw_Data_for_FY22[[#This Row],[Median]]","v":336150.2},{"$f":"(((AAMC_Raw_Data_for_FY22[[#This Row],[75th]]-AAMC_Raw_Data_for_FY22[[#This Row],[Median]])/25)*40) + AAMC_Raw_Data_for_FY22[[#This Row],[Median]]","v":345834.8}]
[{"$f":"AAMC_Raw_Data_for_FY22[[#This Row],[Source]]&AAMC_Raw_Data_for_FY22[[#This Row],[Type]]&AAMC_Raw_Data_for_FY22[[#This Row],[School Subset]]&AAMC_Raw_Data_for_FY22[[#This Row],[Rank]]&AAMC_Raw_Data_for_FY22[[#This Row],[Degree]]&AAMC_Raw_Data_for_FY22[[#This Row],[Department / Specialty]]&\"L\"","v":"AAMCAcademicPrivateChiefMDDevelopmental-Behavioral PediatricsL"},"Developmental-Behavioral Pediatrics",6,"AAMC","Academic","Private","Chief","MD","2021-2022",277414,{"$f":"(((AAMC_Raw_Data_for_FY22[[#This Row],[Median]]-AAMC_Raw_Data_for_FY22[[#This Row],[25th]])/25)*5) + AAMC_Raw_Data_for_FY22[[#This Row],[25th]]","v":278617.40000000002},{"$f":"(((AAMC_Raw_Data_for_FY22[[#This Row],[Median]]-AAMC_Raw_Data_for_FY22[[#This Row],[25th]])/25)*10) + AAMC_Raw_Data_for_FY22[[#This Row],[25th]]","v":279820.79999999999},{"$f":"(((AAMC_Raw_Data_for_FY22[[#This Row],[Median]]-AAMC_Raw_Data_for_FY22[[#This Row],[25th]])/25)*15) + AAMC_Raw_Data_for_FY22[[#This Row],[25th]]","v":281024.2},{"$f":"(((AAMC_Raw_Data_for_FY22[[#This Row],[Median]]-AAMC_Raw_Data_for_FY22[[#This Row],[25th]])/25)*20) + AAMC_Raw_Data_for_FY22[[#This Row],[25th]]","v":282227.59999999998},283431,{"$f":"(((AAMC_Raw_Data_for_FY22[[#This Row],[75th]]-AAMC_Raw_Data_for_FY22[[#This Row],[Median]])/25)*5) + AAMC_Raw_Data_for_FY22[[#This Row],[Median]]","v":296307.40000000002},{"$f":"(((AAMC_Raw_Data_for_FY22[[#This Row],[75th]]-AAMC_Raw_Data_for_FY22[[#This Row],[Median]])/25)*10) + AAMC_Raw_Data_for_FY22[[#This Row],[Median]]","v":309183.8},{"$f":"(((AAMC_Raw_Data_for_FY22[[#This Row],[75th]]-AAMC_Raw_Data_for_FY22[[#This Row],[Median]])/25)*15) + AAMC_Raw_Data_for_FY22[[#This Row],[Median]]","v":322060.2},{"$f":"(((AAMC_Raw_Data_for_FY22[[#This Row],[75th]]-AAMC_Raw_Data_for_FY22[[#This Row],[Median]])/25)*20) + AAMC_Raw_Data_for_FY22[[#This Row],[Median]]","v":334936.59999999998},347813,{"$f":"(((AAMC_Raw_Data_for_FY22[[#This Row],[75th]]-AAMC_Raw_Data_for_FY22[[#This Row],[Median]])/25)*30) + AAMC_Raw_Data_for_FY22[[#This Row],[Median]]","v":360689.4},{"$f":"(((AAMC_Raw_Data_for_FY22[[#This Row],[75th]]-AAMC_Raw_Data_for_FY22[[#This Row],[Median]])/25)*35) + AAMC_Raw_Data_for_FY22[[#This Row],[Median]]","v":373565.8},{"$f":"(((AAMC_Raw_Data_for_FY22[[#This Row],[75th]]-AAMC_Raw_Data_for_FY22[[#This Row],[Median]])/25)*40) + AAMC_Raw_Data_for_FY22[[#This Row],[Median]]","v":386442.2}]
[{"$f":"AAMC_Raw_Data_for_FY22[[#This Row],[Source]]&AAMC_Raw_Data_for_FY22[[#This Row],[Type]]&AAMC_Raw_Data_for_FY22[[#This Row],[School Subset]]&AAMC_Raw_Data_for_FY22[[#This Row],[Rank]]&AAMC_Raw_Data_for_FY22[[#This Row],[Degree]]&AAMC_Raw_Data_for_FY22[[#This Row],[Department / Specialty]]&\"L\"","v":"AAMCAcademicPrivateInstructorMDEmergency Medicine-Peds.L"},"Emergency Medicine-Peds.",5,"AAMC","Academic","Private","Instructor","MD","2021-2022",152756,{"$f":"(((AAMC_Raw_Data_for_FY22[[#This Row],[Median]]-AAMC_Raw_Data_for_FY22[[#This Row],[25th]])/25)*5) + AAMC_Raw_Data_for_FY22[[#This Row],[25th]]","v":166590},{"$f":"(((AAMC_Raw_Data_for_FY22[[#This Row],[Median]]-AAMC_Raw_Data_for_FY22[[#This Row],[25th]])/25)*10) + AAMC_Raw_Data_for_FY22[[#This Row],[25th]]","v":180424},{"$f":"(((AAMC_Raw_Data_for_FY22[[#This Row],[Median]]-AAMC_Raw_Data_for_FY22[[#This Row],[25th]])/25)*15) + AAMC_Raw_Data_for_FY22[[#This Row],[25th]]","v":194258},{"$f":"(((AAMC_Raw_Data_for_FY22[[#This Row],[Median]]-AAMC_Raw_Data_for_FY22[[#This Row],[25th]])/25)*20) + AAMC_Raw_Data_for_FY22[[#This Row],[25th]]","v":208092},221926,{"$f":"(((AAMC_Raw_Data_for_FY22[[#This Row],[75th]]-AAMC_Raw_Data_for_FY22[[#This Row],[Median]])/25)*5) + AAMC_Raw_Data_for_FY22[[#This Row],[Median]]","v":224428.79999999999},{"$f":"(((AAMC_Raw_Data_for_FY22[[#This Row],[75th]]-AAMC_Raw_Data_for_FY22[[#This Row],[Median]])/25)*10) + AAMC_Raw_Data_for_FY22[[#This Row],[Median]]","v":226931.6},{"$f":"(((AAMC_Raw_Data_for_FY22[[#This Row],[75th]]-AAMC_Raw_Data_for_FY22[[#This Row],[Median]])/25)*15) + AAMC_Raw_Data_for_FY22[[#This Row],[Median]]","v":229434.4},{"$f":"(((AAMC_Raw_Data_for_FY22[[#This Row],[75th]]-AAMC_Raw_Data_for_FY22[[#This Row],[Median]])/25)*20) + AAMC_Raw_Data_for_FY22[[#This Row],[Median]]","v":231937.2},234440,{"$f":"(((AAMC_Raw_Data_for_FY22[[#This Row],[75th]]-AAMC_Raw_Data_for_FY22[[#This Row],[Median]])/25)*30) + AAMC_Raw_Data_for_FY22[[#This Row],[Median]]","v":236942.8},{"$f":"(((AAMC_Raw_Data_for_FY22[[#This Row],[75th]]-AAMC_Raw_Data_for_FY22[[#This Row],[Median]])/25)*35) + AAMC_Raw_Data_for_FY22[[#This Row],[Median]]","v":239445.6},{"$f":"(((AAMC_Raw_Data_for_FY22[[#This Row],[75th]]-AAMC_Raw_Data_for_FY22[[#This Row],[Median]])/25)*40) + AAMC_Raw_Data_for_FY22[[#This Row],[Median]]","v":241948.4}]
[{"$f":"AAMC_Raw_Data_for_FY22[[#This Row],[Source]]&AAMC_Raw_Data_for_FY22[[#This Row],[Type]]&AAMC_Raw_Data_for_FY22[[#This Row],[School Subset]]&AAMC_Raw_Data_for_FY22[[#This Row],[Rank]]&AAMC_Raw_Data_for_FY22[[#This Row],[Degree]]&AAMC_Raw_Data_for_FY22[[#This Row],[Department / Specialty]]&\"L\"","v":"AAMCAcademicPrivateAssistantMDEmergency Medicine-Peds.L"},"Emergency Medicine-Peds.",4,"AAMC","Academic","Private","Assistant","MD","2021-2022",228107,{"$f":"(((AAMC_Raw_Data_for_FY22[[#This Row],[Median]]-AAMC_Raw_Data_for_FY22[[#This Row],[25th]])/25)*5) + AAMC_Raw_Data_for_FY22[[#This Row],[25th]]","v":231938.2},{"$f":"(((AAMC_Raw_Data_for_FY22[[#This Row],[Median]]-AAMC_Raw_Data_for_FY22[[#This Row],[25th]])/25)*10) + AAMC_Raw_Data_for_FY22[[#This Row],[25th]]","v":235769.4},{"$f":"(((AAMC_Raw_Data_for_FY22[[#This Row],[Median]]-AAMC_Raw_Data_for_FY22[[#This Row],[25th]])/25)*15) + AAMC_Raw_Data_for_FY22[[#This Row],[25th]]","v":239600.6},{"$f":"(((AAMC_Raw_Data_for_FY22[[#This Row],[Median]]-AAMC_Raw_Data_for_FY22[[#This Row],[25th]])/25)*20) + AAMC_Raw_Data_for_FY22[[#This Row],[25th]]","v":243431.8},247263,{"$f":"(((AAMC_Raw_Data_for_FY22[[#This Row],[75th]]-AAMC_Raw_Data_for_FY22[[#This Row],[Median]])/25)*5) + AAMC_Raw_Data_for_FY22[[#This Row],[Median]]","v":252981.8},{"$f":"(((AAMC_Raw_Data_for_FY22[[#This Row],[75th]]-AAMC_Raw_Data_for_FY22[[#This Row],[Median]])/25)*10) + AAMC_Raw_Data_for_FY22[[#This Row],[Median]]","v":258700.6},{"$f":"(((AAMC_Raw_Data_for_FY22[[#This Row],[75th]]-AAMC_Raw_Data_for_FY22[[#This Row],[Median]])/25)*15) + AAMC_Raw_Data_for_FY22[[#This Row],[Median]]","v":264419.40000000002},{"$f":"(((AAMC_Raw_Data_for_FY22[[#This Row],[75th]]-AAMC_Raw_Data_for_FY22[[#This Row],[Median]])/25)*20) + AAMC_Raw_Data_for_FY22[[#This Row],[Median]]","v":270138.2},275857,{"$f":"(((AAMC_Raw_Data_for_FY22[[#This Row],[75th]]-AAMC_Raw_Data_for_FY22[[#This Row],[Median]])/25)*30) + AAMC_Raw_Data_for_FY22[[#This Row],[Median]]","v":281575.8},{"$f":"(((AAMC_Raw_Data_for_FY22[[#This Row],[75th]]-AAMC_Raw_Data_for_FY22[[#This Row],[Median]])/25)*35) + AAMC_Raw_Data_for_FY22[[#This Row],[Median]]","v":287294.59999999998},{"$f":"(((AAMC_Raw_Data_for_FY22[[#This Row],[75th]]-AAMC_Raw_Data_for_FY22[[#This Row],[Median]])/25)*40) + AAMC_Raw_Data_for_FY22[[#This Row],[Median]]","v":293013.40000000002}]
[{"$f":"AAMC_Raw_Data_for_FY22[[#This Row],[Source]]&AAMC_Raw_Data_for_FY22[[#This Row],[Type]]&AAMC_Raw_Data_for_FY22[[#This Row],[School Subset]]&AAMC_Raw_Data_for_FY22[[#This Row],[Rank]]&AAMC_Raw_Data_for_FY22[[#This Row],[Degree]]&AAMC_Raw_Data_for_FY22[[#This Row],[Department / Specialty]]&\"L\"","v":"AAMCAcademicPrivateAssociateMDEmergency Medicine-Peds.L"},"Emergency Medicine-Peds.",3,"AAMC","Academic","Private","Associate","MD","2021-2022",274200,{"$f":"(((AAMC_Raw_Data_for_FY22[[#This Row],[Median]]-AAMC_Raw_Data_for_FY22[[#This Row],[25th]])/25)*5) + AAMC_Raw_Data_for_FY22[[#This Row],[25th]]","v":276452},{"$f":"(((AAMC_Raw_Data_for_FY22[[#This Row],[Median]]-AAMC_Raw_Data_for_FY22[[#This Row],[25th]])/25)*10) + AAMC_Raw_Data_for_FY22[[#This Row],[25th]]","v":278704},{"$f":"(((AAMC_Raw_Data_for_FY22[[#This Row],[Median]]-AAMC_Raw_Data_for_FY22[[#This Row],[25th]])/25)*15) + AAMC_Raw_Data_for_FY22[[#This Row],[25th]]","v":280956},{"$f":"(((AAMC_Raw_Data_for_FY22[[#This Row],[Median]]-AAMC_Raw_Data_for_FY22[[#This Row],[25th]])/25)*20) + AAMC_Raw_Data_for_FY22[[#This Row],[25th]]","v":283208},285460,{"$f":"(((AAMC_Raw_Data_for_FY22[[#This Row],[75th]]-AAMC_Raw_Data_for_FY22[[#This Row],[Median]])/25)*5) + AAMC_Raw_Data_for_FY22[[#This Row],[Median]]","v":292950},{"$f":"(((AAMC_Raw_Data_for_FY22[[#This Row],[75th]]-AAMC_Raw_Data_for_FY22[[#This Row],[Median]])/25)*10) + AAMC_Raw_Data_for_FY22[[#This Row],[Median]]","v":300440},{"$f":"(((AAMC_Raw_Data_for_FY22[[#This Row],[75th]]-AAMC_Raw_Data_for_FY22[[#This Row],[Median]])/25)*15) + AAMC_Raw_Data_for_FY22[[#This Row],[Median]]","v":307930},{"$f":"(((AAMC_Raw_Data_for_FY22[[#This Row],[75th]]-AAMC_Raw_Data_for_FY22[[#This Row],[Median]])/25)*20) + AAMC_Raw_Data_for_FY22[[#This Row],[Median]]","v":315420},322910,{"$f":"(((AAMC_Raw_Data_for_FY22[[#This Row],[75th]]-AAMC_Raw_Data_for_FY22[[#This Row],[Median]])/25)*30) + AAMC_Raw_Data_for_FY22[[#This Row],[Median]]","v":330400},{"$f":"(((AAMC_Raw_Data_for_FY22[[#This Row],[75th]]-AAMC_Raw_Data_for_FY22[[#This Row],[Median]])/25)*35) + AAMC_Raw_Data_for_FY22[[#This Row],[Median]]","v":337890},{"$f":"(((AAMC_Raw_Data_for_FY22[[#This Row],[75th]]-AAMC_Raw_Data_for_FY22[[#This Row],[Median]])/25)*40) + AAMC_Raw_Data_for_FY22[[#This Row],[Median]]","v":345380}]
[{"$f":"AAMC_Raw_Data_for_FY22[[#This Row],[Source]]&AAMC_Raw_Data_for_FY22[[#This Row],[Type]]&AAMC_Raw_Data_for_FY22[[#This Row],[School Subset]]&AAMC_Raw_Data_for_FY22[[#This Row],[Rank]]&AAMC_Raw_Data_for_FY22[[#This Row],[Degree]]&AAMC_Raw_Data_for_FY22[[#This Row],[Department / Specialty]]&\"L\"","v":"AAMCAcademicPrivateProfessorMDEmergency Medicine-Peds.L"},"Emergency Medicine-Peds.",2,"AAMC","Academic","Private","Professor","MD","2021-2022",319512,{"$f":"(((AAMC_Raw_Data_for_FY22[[#This Row],[Median]]-AAMC_Raw_Data_for_FY22[[#This Row],[25th]])/25)*5) + AAMC_Raw_Data_for_FY22[[#This Row],[25th]]","v":324235.8},{"$f":"(((AAMC_Raw_Data_for_FY22[[#This Row],[Median]]-AAMC_Raw_Data_for_FY22[[#This Row],[25th]])/25)*10) + AAMC_Raw_Data_for_FY22[[#This Row],[25th]]","v":328959.59999999998},{"$f":"(((AAMC_Raw_Data_for_FY22[[#This Row],[Median]]-AAMC_Raw_Data_for_FY22[[#This Row],[25th]])/25)*15) + AAMC_Raw_Data_for_FY22[[#This Row],[25th]]","v":333683.40000000002},{"$f":"(((AAMC_Raw_Data_for_FY22[[#This Row],[Median]]-AAMC_Raw_Data_for_FY22[[#This Row],[25th]])/25)*20) + AAMC_Raw_Data_for_FY22[[#This Row],[25th]]","v":338407.2},343131,{"$f":"(((AAMC_Raw_Data_for_FY22[[#This Row],[75th]]-AAMC_Raw_Data_for_FY22[[#This Row],[Median]])/25)*5) + AAMC_Raw_Data_for_FY22[[#This Row],[Median]]","v":352237.4},{"$f":"(((AAMC_Raw_Data_for_FY22[[#This Row],[75th]]-AAMC_Raw_Data_for_FY22[[#This Row],[Median]])/25)*10) + AAMC_Raw_Data_for_FY22[[#This Row],[Median]]","v":361343.8},{"$f":"(((AAMC_Raw_Data_for_FY22[[#This Row],[75th]]-AAMC_Raw_Data_for_FY22[[#This Row],[Median]])/25)*15) + AAMC_Raw_Data_for_FY22[[#This Row],[Median]]","v":370450.2},{"$f":"(((AAMC_Raw_Data_for_FY22[[#This Row],[75th]]-AAMC_Raw_Data_for_FY22[[#This Row],[Median]])/25)*20) + AAMC_Raw_Data_for_FY22[[#This Row],[Median]]","v":379556.6},388663,{"$f":"(((AAMC_Raw_Data_for_FY22[[#This Row],[75th]]-AAMC_Raw_Data_for_FY22[[#This Row],[Median]])/25)*30) + AAMC_Raw_Data_for_FY22[[#This Row],[Median]]","v":397769.4},{"$f":"(((AAMC_Raw_Data_for_FY22[[#This Row],[75th]]-AAMC_Raw_Data_for_FY22[[#This Row],[Median]])/25)*35) + AAMC_Raw_Data_for_FY22[[#This Row],[Median]]","v":406875.8},{"$f":"(((AAMC_Raw_Data_for_FY22[[#This Row],[75th]]-AAMC_Raw_Data_for_FY22[[#This Row],[Median]])/25)*40) + AAMC_Raw_Data_for_FY22[[#This Row],[Median]]","v":415982.2}]
[{"$f":"AAMC_Raw_Data_for_FY22[[#This Row],[Source]]&AAMC_Raw_Data_for_FY22[[#This Row],[Type]]&AAMC_Raw_Data_for_FY22[[#This Row],[School Subset]]&AAMC_Raw_Data_for_FY22[[#This Row],[Rank]]&AAMC_Raw_Data_for_FY22[[#This Row],[Degree]]&AAMC_Raw_Data_for_FY22[[#This Row],[Department / Specialty]]&\"L\"","v":"AAMCAcademicPrivateChiefMDEmergency Medicine-Peds.L"},"Emergency Medicine-Peds.",6,"AAMC","Academic","Private","Chief","MD","2021-2022",381222,{"$f":"(((AAMC_Raw_Data_for_FY22[[#This Row],[Median]]-AAMC_Raw_Data_for_FY22[[#This Row],[25th]])/25)*5) + AAMC_Raw_Data_for_FY22[[#This Row],[25th]]","v":385708.4},{"$f":"(((AAMC_Raw_Data_for_FY22[[#This Row],[Median]]-AAMC_Raw_Data_for_FY22[[#This Row],[25th]])/25)*10) + AAMC_Raw_Data_for_FY22[[#This Row],[25th]]","v":390194.8},{"$f":"(((AAMC_Raw_Data_for_FY22[[#This Row],[Median]]-AAMC_Raw_Data_for_FY22[[#This Row],[25th]])/25)*15) + AAMC_Raw_Data_for_FY22[[#This Row],[25th]]","v":394681.2},{"$f":"(((AAMC_Raw_Data_for_FY22[[#This Row],[Median]]-AAMC_Raw_Data_for_FY22[[#This Row],[25th]])/25)*20) + AAMC_Raw_Data_for_FY22[[#This Row],[25th]]","v":399167.6},403654,{"$f":"(((AAMC_Raw_Data_for_FY22[[#This Row],[75th]]-AAMC_Raw_Data_for_FY22[[#This Row],[Median]])/25)*5) + AAMC_Raw_Data_for_FY22[[#This Row],[Median]]","v":415741},{"$f":"(((AAMC_Raw_Data_for_FY22[[#This Row],[75th]]-AAMC_Raw_Data_for_FY22[[#This Row],[Median]])/25)*10) + AAMC_Raw_Data_for_FY22[[#This Row],[Median]]","v":427828},{"$f":"(((AAMC_Raw_Data_for_FY22[[#This Row],[75th]]-AAMC_Raw_Data_for_FY22[[#This Row],[Median]])/25)*15) + AAMC_Raw_Data_for_FY22[[#This Row],[Median]]","v":439915},{"$f":"(((AAMC_Raw_Data_for_FY22[[#This Row],[75th]]-AAMC_Raw_Data_for_FY22[[#This Row],[Median]])/25)*20) + AAMC_Raw_Data_for_FY22[[#This Row],[Median]]","v":452002},464089,{"$f":"(((AAMC_Raw_Data_for_FY22[[#This Row],[75th]]-AAMC_Raw_Data_for_FY22[[#This Row],[Median]])/25)*30) + AAMC_Raw_Data_for_FY22[[#This Row],[Median]]","v":476176},{"$f":"(((AAMC_Raw_Data_for_FY22[[#This Row],[75th]]-AAMC_Raw_Data_for_FY22[[#This Row],[Median]])/25)*35) + AAMC_Raw_Data_for_FY22[[#This Row],[Median]]","v":488263},{"$f":"(((AAMC_Raw_Data_for_FY22[[#This Row],[75th]]-AAMC_Raw_Data_for_FY22[[#This Row],[Median]])/25)*40) + AAMC_Raw_Data_for_FY22[[#This Row],[Median]]","v":500350}]
[{"$f":"AAMC_Raw_Data_for_FY22[[#This Row],[Source]]&AAMC_Raw_Data_for_FY22[[#This Row],[Type]]&AAMC_Raw_Data_for_FY22[[#This Row],[School Subset]]&AAMC_Raw_Data_for_FY22[[#This Row],[Rank]]&AAMC_Raw_Data_for_FY22[[#This Row],[Degree]]&AAMC_Raw_Data_for_FY22[[#This Row],[Department / Specialty]]&\"L\"","v":"AAMCAcademicPrivateChairMDEmergency Medicine-Peds.L"},"Emergency Medicine-Peds.",1,"AAMC","Academic","Private","Chair","MD","2021-2022",null,{"$f":"(((AAMC_Raw_Data_for_FY22[[#This Row],[Median]]-AAMC_Raw_Data_for_FY22[[#This Row],[25th]])/25)*5) + AAMC_Raw_Data_for_FY22[[#This Row],[25th]]","v":0},{"$f":"(((AAMC_Raw_Data_for_FY22[[#This Row],[Median]]-AAMC_Raw_Data_for_FY22[[#This Row],[25th]])/25)*10) + AAMC_Raw_Data_for_FY22[[#This Row],[25th]]","v":0},{"$f":"(((AAMC_Raw_Data_for_FY22[[#This Row],[Median]]-AAMC_Raw_Data_for_FY22[[#This Row],[25th]])/25)*15) + AAMC_Raw_Data_for_FY22[[#This Row],[25th]]","v":0},{"$f":"(((AAMC_Raw_Data_for_FY22[[#This Row],[Median]]-AAMC_Raw_Data_for_FY22[[#This Row],[25th]])/25)*20) + AAMC_Raw_Data_for_FY22[[#This Row],[25th]]","v":0},null,{"$f":"(((AAMC_Raw_Data_for_FY22[[#This Row],[75th]]-AAMC_Raw_Data_for_FY22[[#This Row],[Median]])/25)*5) + AAMC_Raw_Data_for_FY22[[#This Row],[Median]]","v":0},{"$f":"(((AAMC_Raw_Data_for_FY22[[#This Row],[75th]]-AAMC_Raw_Data_for_FY22[[#This Row],[Median]])/25)*10) + AAMC_Raw_Data_for_FY22[[#This Row],[Median]]","v":0},{"$f":"(((AAMC_Raw_Data_for_FY22[[#This Row],[75th]]-AAMC_Raw_Data_for_FY22[[#This Row],[Median]])/25)*15) + AAMC_Raw_Data_for_FY22[[#This Row],[Median]]","v":0},{"$f":"(((AAMC_Raw_Data_for_FY22[[#This Row],[75th]]-AAMC_Raw_Data_for_FY22[[#This Row],[Median]])/25)*20) + AAMC_Raw_Data_for_FY22[[#This Row],[Median]]","v":0},null,{"$f":"(((AAMC_Raw_Data_for_FY22[[#This Row],[75th]]-AAMC_Raw_Data_for_FY22[[#This Row],[Median]])/25)*30) + AAMC_Raw_Data_for_FY22[[#This Row],[Median]]","v":0},{"$f":"(((AAMC_Raw_Data_for_FY22[[#This Row],[75th]]-AAMC_Raw_Data_for_FY22[[#This Row],[Median]])/25)*35) + AAMC_Raw_Data_for_FY22[[#This Row],[Median]]","v":0},{"$f":"(((AAMC_Raw_Data_for_FY22[[#This Row],[75th]]-AAMC_Raw_Data_for_FY22[[#This Row],[Median]])/25)*40) + AAMC_Raw_Data_for_FY22[[#This Row],[Median]]","v":0}]
[{"$f":"AAMC_Raw_Data_for_FY22[[#This Row],[Source]]&AAMC_Raw_Data_for_FY22[[#This Row],[Type]]&AAMC_Raw_Data_for_FY22[[#This Row],[School Subset]]&AAMC_Raw_Data_for_FY22[[#This Row],[Rank]]&AAMC_Raw_Data_for_FY22[[#This Row],[Degree]]&AAMC_Raw_Data_for_FY22[[#This Row],[Department / Specialty]]&\"L\"","v":"AAMCAcademicPrivateInstructorMDEndocrinology-Peds.L"},"Endocrinology-Peds.",5,"AAMC","Academic","Private","Instructor","MD","2021-2022",129739,{"$f":"(((AAMC_Raw_Data_for_FY22[[#This Row],[Median]]-AAMC_Raw_Data_for_FY22[[#This Row],[25th]])/25)*5) + AAMC_Raw_Data_for_FY22[[#This Row],[25th]]","v":131579.79999999999},{"$f":"(((AAMC_Raw_Data_for_FY22[[#This Row],[Median]]-AAMC_Raw_Data_for_FY22[[#This Row],[25th]])/25)*10) + AAMC_Raw_Data_for_FY22[[#This Row],[25th]]","v":133420.6},{"$f":"(((AAMC_Raw_Data_for_FY22[[#This Row],[Median]]-AAMC_Raw_Data_for_FY22[[#This Row],[25th]])/25)*15) + AAMC_Raw_Data_for_FY22[[#This Row],[25th]]","v":135261.4},{"$f":"(((AAMC_Raw_Data_for_FY22[[#This Row],[Median]]-AAMC_Raw_Data_for_FY22[[#This Row],[25th]])/25)*20) + AAMC_Raw_Data_for_FY22[[#This Row],[25th]]","v":137102.20000000001},138943,{"$f":"(((AAMC_Raw_Data_for_FY22[[#This Row],[75th]]-AAMC_Raw_Data_for_FY22[[#This Row],[Median]])/25)*5) + AAMC_Raw_Data_for_FY22[[#This Row],[Median]]","v":141544.6},{"$f":"(((AAMC_Raw_Data_for_FY22[[#This Row],[75th]]-AAMC_Raw_Data_for_FY22[[#This Row],[Median]])/25)*10) + AAMC_Raw_Data_for_FY22[[#This Row],[Median]]","v":144146.20000000001},{"$f":"(((AAMC_Raw_Data_for_FY22[[#This Row],[75th]]-AAMC_Raw_Data_for_FY22[[#This Row],[Median]])/25)*15) + AAMC_Raw_Data_for_FY22[[#This Row],[Median]]","v":146747.79999999999},{"$f":"(((AAMC_Raw_Data_for_FY22[[#This Row],[75th]]-AAMC_Raw_Data_for_FY22[[#This Row],[Median]])/25)*20) + AAMC_Raw_Data_for_FY22[[#This Row],[Median]]","v":149349.4},151951,{"$f":"(((AAMC_Raw_Data_for_FY22[[#This Row],[75th]]-AAMC_Raw_Data_for_FY22[[#This Row],[Median]])/25)*30) + AAMC_Raw_Data_for_FY22[[#This Row],[Median]]","v":154552.6},{"$f":"(((AAMC_Raw_Data_for_FY22[[#This Row],[75th]]-AAMC_Raw_Data_for_FY22[[#This Row],[Median]])/25)*35) + AAMC_Raw_Data_for_FY22[[#This Row],[Median]]","v":157154.20000000001},{"$f":"(((AAMC_Raw_Data_for_FY22[[#This Row],[75th]]-AAMC_Raw_Data_for_FY22[[#This Row],[Median]])/25)*40) + AAMC_Raw_Data_for_FY22[[#This Row],[Median]]","v":159755.79999999999}]
[{"$f":"AAMC_Raw_Data_for_FY22[[#This Row],[Source]]&AAMC_Raw_Data_for_FY22[[#This Row],[Type]]&AAMC_Raw_Data_for_FY22[[#This Row],[School Subset]]&AAMC_Raw_Data_for_FY22[[#This Row],[Rank]]&AAMC_Raw_Data_for_FY22[[#This Row],[Degree]]&AAMC_Raw_Data_for_FY22[[#This Row],[Department / Specialty]]&\"L\"","v":"AAMCAcademicPrivateAssistantMDEndocrinology-Peds.L"},"Endocrinology-Peds.",4,"AAMC","Academic","Private","Assistant","MD","2021-2022",166475,{"$f":"(((AAMC_Raw_Data_for_FY22[[#This Row],[Median]]-AAMC_Raw_Data_for_FY22[[#This Row],[25th]])/25)*5) + AAMC_Raw_Data_for_FY22[[#This Row],[25th]]","v":169717.2},{"$f":"(((AAMC_Raw_Data_for_FY22[[#This Row],[Median]]-AAMC_Raw_Data_for_FY22[[#This Row],[25th]])/25)*10) + AAMC_Raw_Data_for_FY22[[#This Row],[25th]]","v":172959.4},{"$f":"(((AAMC_Raw_Data_for_FY22[[#This Row],[Median]]-AAMC_Raw_Data_for_FY22[[#This Row],[25th]])/25)*15) + AAMC_Raw_Data_for_FY22[[#This Row],[25th]]","v":176201.60000000001},{"$f":"(((AAMC_Raw_Data_for_FY22[[#This Row],[Median]]-AAMC_Raw_Data_for_FY22[[#This Row],[25th]])/25)*20) + AAMC_Raw_Data_for_FY22[[#This Row],[25th]]","v":179443.8},182686,{"$f":"(((AAMC_Raw_Data_for_FY22[[#This Row],[75th]]-AAMC_Raw_Data_for_FY22[[#This Row],[Median]])/25)*5) + AAMC_Raw_Data_for_FY22[[#This Row],[Median]]","v":186148.8},{"$f":"(((AAMC_Raw_Data_for_FY22[[#This Row],[75th]]-AAMC_Raw_Data_for_FY22[[#This Row],[Median]])/25)*10) + AAMC_Raw_Data_for_FY22[[#This Row],[Median]]","v":189611.6},{"$f":"(((AAMC_Raw_Data_for_FY22[[#This Row],[75th]]-AAMC_Raw_Data_for_FY22[[#This Row],[Median]])/25)*15) + AAMC_Raw_Data_for_FY22[[#This Row],[Median]]","v":193074.4},{"$f":"(((AAMC_Raw_Data_for_FY22[[#This Row],[75th]]-AAMC_Raw_Data_for_FY22[[#This Row],[Median]])/25)*20) + AAMC_Raw_Data_for_FY22[[#This Row],[Median]]","v":196537.2},200000,{"$f":"(((AAMC_Raw_Data_for_FY22[[#This Row],[75th]]-AAMC_Raw_Data_for_FY22[[#This Row],[Median]])/25)*30) + AAMC_Raw_Data_for_FY22[[#This Row],[Median]]","v":203462.8},{"$f":"(((AAMC_Raw_Data_for_FY22[[#This Row],[75th]]-AAMC_Raw_Data_for_FY22[[#This Row],[Median]])/25)*35) + AAMC_Raw_Data_for_FY22[[#This Row],[Median]]","v":206925.6},{"$f":"(((AAMC_Raw_Data_for_FY22[[#This Row],[75th]]-AAMC_Raw_Data_for_FY22[[#This Row],[Median]])/25)*40) + AAMC_Raw_Data_for_FY22[[#This Row],[Median]]","v":210388.4}]
[{"$f":"AAMC_Raw_Data_for_FY22[[#This Row],[Source]]&AAMC_Raw_Data_for_FY22[[#This Row],[Type]]&AAMC_Raw_Data_for_FY22[[#This Row],[School Subset]]&AAMC_Raw_Data_for_FY22[[#This Row],[Rank]]&AAMC_Raw_Data_for_FY22[[#This Row],[Degree]]&AAMC_Raw_Data_for_FY22[[#This Row],[Department / Specialty]]&\"L\"","v":"AAMCAcademicPrivateAssociateMDEndocrinology-Peds.L"},"Endocrinology-Peds.",3,"AAMC","Academic","Private","Associate","MD","2021-2022",195512,{"$f":"(((AAMC_Raw_Data_for_FY22[[#This Row],[Median]]-AAMC_Raw_Data_for_FY22[[#This Row],[25th]])/25)*5) + AAMC_Raw_Data_for_FY22[[#This Row],[25th]]","v":199300.6},{"$f":"(((AAMC_Raw_Data_for_FY22[[#This Row],[Median]]-AAMC_Raw_Data_for_FY22[[#This Row],[25th]])/25)*10) + AAMC_Raw_Data_for_FY22[[#This Row],[25th]]","v":203089.2},{"$f":"(((AAMC_Raw_Data_for_FY22[[#This Row],[Median]]-AAMC_Raw_Data_for_FY22[[#This Row],[25th]])/25)*15) + AAMC_Raw_Data_for_FY22[[#This Row],[25th]]","v":206877.8},{"$f":"(((AAMC_Raw_Data_for_FY22[[#This Row],[Median]]-AAMC_Raw_Data_for_FY22[[#This Row],[25th]])/25)*20) + AAMC_Raw_Data_for_FY22[[#This Row],[25th]]","v":210666.4},214455,{"$f":"(((AAMC_Raw_Data_for_FY22[[#This Row],[75th]]-AAMC_Raw_Data_for_FY22[[#This Row],[Median]])/25)*5) + AAMC_Raw_Data_for_FY22[[#This Row],[Median]]","v":218629.2},{"$f":"(((AAMC_Raw_Data_for_FY22[[#This Row],[75th]]-AAMC_Raw_Data_for_FY22[[#This Row],[Median]])/25)*10) + AAMC_Raw_Data_for_FY22[[#This Row],[Median]]","v":222803.4},{"$f":"(((AAMC_Raw_Data_for_FY22[[#This Row],[75th]]-AAMC_Raw_Data_for_FY22[[#This Row],[Median]])/25)*15) + AAMC_Raw_Data_for_FY22[[#This Row],[Median]]","v":226977.6},{"$f":"(((AAMC_Raw_Data_for_FY22[[#This Row],[75th]]-AAMC_Raw_Data_for_FY22[[#This Row],[Median]])/25)*20) + AAMC_Raw_Data_for_FY22[[#This Row],[Median]]","v":231151.8},235326,{"$f":"(((AAMC_Raw_Data_for_FY22[[#This Row],[75th]]-AAMC_Raw_Data_for_FY22[[#This Row],[Median]])/25)*30) + AAMC_Raw_Data_for_FY22[[#This Row],[Median]]","v":239500.2},{"$f":"(((AAMC_Raw_Data_for_FY22[[#This Row],[75th]]-AAMC_Raw_Data_for_FY22[[#This Row],[Median]])/25)*35) + AAMC_Raw_Data_for_FY22[[#This Row],[Median]]","v":243674.4},{"$f":"(((AAMC_Raw_Data_for_FY22[[#This Row],[75th]]-AAMC_Raw_Data_for_FY22[[#This Row],[Median]])/25)*40) + AAMC_Raw_Data_for_FY22[[#This Row],[Median]]","v":247848.6}]
[{"$f":"AAMC_Raw_Data_for_FY22[[#This Row],[Source]]&AAMC_Raw_Data_for_FY22[[#This Row],[Type]]&AAMC_Raw_Data_for_FY22[[#This Row],[School Subset]]&AAMC_Raw_Data_for_FY22[[#This Row],[Rank]]&AAMC_Raw_Data_for_FY22[[#This Row],[Degree]]&AAMC_Raw_Data_for_FY22[[#This Row],[Department / Specialty]]&\"L\"","v":"AAMCAcademicPrivateProfessorMDEndocrinology-Peds.L"},"Endocrinology-Peds.",2,"AAMC","Academic","Private","Professor","MD","2021-2022",243983,{"$f":"(((AAMC_Raw_Data_for_FY22[[#This Row],[Median]]-AAMC_Raw_Data_for_FY22[[#This Row],[25th]])/25)*5) + AAMC_Raw_Data_for_FY22[[#This Row],[25th]]","v":247832},{"$f":"(((AAMC_Raw_Data_for_FY22[[#This Row],[Median]]-AAMC_Raw_Data_for_FY22[[#This Row],[25th]])/25)*10) + AAMC_Raw_Data_for_FY22[[#This Row],[25th]]","v":251681},{"$f":"(((AAMC_Raw_Data_for_FY22[[#This Row],[Median]]-AAMC_Raw_Data_for_FY22[[#This Row],[25th]])/25)*15) + AAMC_Raw_Data_for_FY22[[#This Row],[25th]]","v":255530},{"$f":"(((AAMC_Raw_Data_for_FY22[[#This Row],[Median]]-AAMC_Raw_Data_for_FY22[[#This Row],[25th]])/25)*20) + AAMC_Raw_Data_for_FY22[[#This Row],[25th]]","v":259379},263228,{"$f":"(((AAMC_Raw_Data_for_FY22[[#This Row],[75th]]-AAMC_Raw_Data_for_FY22[[#This Row],[Median]])/25)*5) + AAMC_Raw_Data_for_FY22[[#This Row],[Median]]","v":268670.8},{"$f":"(((AAMC_Raw_Data_for_FY22[[#This Row],[75th]]-AAMC_Raw_Data_for_FY22[[#This Row],[Median]])/25)*10) + AAMC_Raw_Data_for_FY22[[#This Row],[Median]]","v":274113.59999999998},{"$f":"(((AAMC_Raw_Data_for_FY22[[#This Row],[75th]]-AAMC_Raw_Data_for_FY22[[#This Row],[Median]])/25)*15) + AAMC_Raw_Data_for_FY22[[#This Row],[Median]]","v":279556.40000000002},{"$f":"(((AAMC_Raw_Data_for_FY22[[#This Row],[75th]]-AAMC_Raw_Data_for_FY22[[#This Row],[Median]])/25)*20) + AAMC_Raw_Data_for_FY22[[#This Row],[Median]]","v":284999.2},290442,{"$f":"(((AAMC_Raw_Data_for_FY22[[#This Row],[75th]]-AAMC_Raw_Data_for_FY22[[#This Row],[Median]])/25)*30) + AAMC_Raw_Data_for_FY22[[#This Row],[Median]]","v":295884.79999999999},{"$f":"(((AAMC_Raw_Data_for_FY22[[#This Row],[75th]]-AAMC_Raw_Data_for_FY22[[#This Row],[Median]])/25)*35) + AAMC_Raw_Data_for_FY22[[#This Row],[Median]]","v":301327.59999999998},{"$f":"(((AAMC_Raw_Data_for_FY22[[#This Row],[75th]]-AAMC_Raw_Data_for_FY22[[#This Row],[Median]])/25)*40) + AAMC_Raw_Data_for_FY22[[#This Row],[Median]]","v":306770.40000000002}]
[{"$f":"AAMC_Raw_Data_for_FY22[[#This Row],[Source]]&AAMC_Raw_Data_for_FY22[[#This Row],[Type]]&AAMC_Raw_Data_for_FY22[[#This Row],[School Subset]]&AAMC_Raw_Data_for_FY22[[#This Row],[Rank]]&AAMC_Raw_Data_for_FY22[[#This Row],[Degree]]&AAMC_Raw_Data_for_FY22[[#This Row],[Department / Specialty]]&\"L\"","v":"AAMCAcademicPrivateChiefMDEndocrinology-Peds.L"},"Endocrinology-Peds.",6,"AAMC","Academic","Private","Chief","MD","2021-2022",271272,{"$f":"(((AAMC_Raw_Data_for_FY22[[#This Row],[Median]]-AAMC_Raw_Data_for_FY22[[#This Row],[25th]])/25)*5) + AAMC_Raw_Data_for_FY22[[#This Row],[25th]]","v":279552.2},{"$f":"(((AAMC_Raw_Data_for_FY22[[#This Row],[Median]]-AAMC_Raw_Data_for_FY22[[#This Row],[25th]])/25)*10) + AAMC_Raw_Data_for_FY22[[#This Row],[25th]]","v":287832.40000000002},{"$f":"(((AAMC_Raw_Data_for_FY22[[#This Row],[Median]]-AAMC_Raw_Data_for_FY22[[#This Row],[25th]])/25)*15) + AAMC_Raw_Data_for_FY22[[#This Row],[25th]]","v":296112.59999999998},{"$f":"(((AAMC_Raw_Data_for_FY22[[#This Row],[Median]]-AAMC_Raw_Data_for_FY22[[#This Row],[25th]])/25)*20) + AAMC_Raw_Data_for_FY22[[#This Row],[25th]]","v":304392.8},312673,{"$f":"(((AAMC_Raw_Data_for_FY22[[#This Row],[75th]]-AAMC_Raw_Data_for_FY22[[#This Row],[Median]])/25)*5) + AAMC_Raw_Data_for_FY22[[#This Row],[Median]]","v":316845},{"$f":"(((AAMC_Raw_Data_for_FY22[[#This Row],[75th]]-AAMC_Raw_Data_for_FY22[[#This Row],[Median]])/25)*10) + AAMC_Raw_Data_for_FY22[[#This Row],[Median]]","v":321017},{"$f":"(((AAMC_Raw_Data_for_FY22[[#This Row],[75th]]-AAMC_Raw_Data_for_FY22[[#This Row],[Median]])/25)*15) + AAMC_Raw_Data_for_FY22[[#This Row],[Median]]","v":325189},{"$f":"(((AAMC_Raw_Data_for_FY22[[#This Row],[75th]]-AAMC_Raw_Data_for_FY22[[#This Row],[Median]])/25)*20) + AAMC_Raw_Data_for_FY22[[#This Row],[Median]]","v":329361},333533,{"$f":"(((AAMC_Raw_Data_for_FY22[[#This Row],[75th]]-AAMC_Raw_Data_for_FY22[[#This Row],[Median]])/25)*30) + AAMC_Raw_Data_for_FY22[[#This Row],[Median]]","v":337705},{"$f":"(((AAMC_Raw_Data_for_FY22[[#This Row],[75th]]-AAMC_Raw_Data_for_FY22[[#This Row],[Median]])/25)*35) + AAMC_Raw_Data_for_FY22[[#This Row],[Median]]","v":341877},{"$f":"(((AAMC_Raw_Data_for_FY22[[#This Row],[75th]]-AAMC_Raw_Data_for_FY22[[#This Row],[Median]])/25)*40) + AAMC_Raw_Data_for_FY22[[#This Row],[Median]]","v":346049}]
[{"$f":"AAMC_Raw_Data_for_FY22[[#This Row],[Source]]&AAMC_Raw_Data_for_FY22[[#This Row],[Type]]&AAMC_Raw_Data_for_FY22[[#This Row],[School Subset]]&AAMC_Raw_Data_for_FY22[[#This Row],[Rank]]&AAMC_Raw_Data_for_FY22[[#This Row],[Degree]]&AAMC_Raw_Data_for_FY22[[#This Row],[Department / Specialty]]&\"L\"","v":"AAMCAcademicPrivateInstructorMDGastroenterology-Peds.L"},"Gastroenterology-Peds.",5,"AAMC","Academic","Private","Instructor","MD","2021-2022",null,{"$f":"(((AAMC_Raw_Data_for_FY22[[#This Row],[Median]]-AAMC_Raw_Data_for_FY22[[#This Row],[25th]])/25)*5) + AAMC_Raw_Data_for_FY22[[#This Row],[25th]]","v":0},{"$f":"(((AAMC_Raw_Data_for_FY22[[#This Row],[Median]]-AAMC_Raw_Data_for_FY22[[#This Row],[25th]])/25)*10) + AAMC_Raw_Data_for_FY22[[#This Row],[25th]]","v":0},{"$f":"(((AAMC_Raw_Data_for_FY22[[#This Row],[Median]]-AAMC_Raw_Data_for_FY22[[#This Row],[25th]])/25)*15) + AAMC_Raw_Data_for_FY22[[#This Row],[25th]]","v":0},{"$f":"(((AAMC_Raw_Data_for_FY22[[#This Row],[Median]]-AAMC_Raw_Data_for_FY22[[#This Row],[25th]])/25)*20) + AAMC_Raw_Data_for_FY22[[#This Row],[25th]]","v":0},null,{"$f":"(((AAMC_Raw_Data_for_FY22[[#This Row],[75th]]-AAMC_Raw_Data_for_FY22[[#This Row],[Median]])/25)*5) + AAMC_Raw_Data_for_FY22[[#This Row],[Median]]","v":0},{"$f":"(((AAMC_Raw_Data_for_FY22[[#This Row],[75th]]-AAMC_Raw_Data_for_FY22[[#This Row],[Median]])/25)*10) + AAMC_Raw_Data_for_FY22[[#This Row],[Median]]","v":0},{"$f":"(((AAMC_Raw_Data_for_FY22[[#This Row],[75th]]-AAMC_Raw_Data_for_FY22[[#This Row],[Median]])/25)*15) + AAMC_Raw_Data_for_FY22[[#This Row],[Median]]","v":0},{"$f":"(((AAMC_Raw_Data_for_FY22[[#This Row],[75th]]-AAMC_Raw_Data_for_FY22[[#This Row],[Median]])/25)*20) + AAMC_Raw_Data_for_FY22[[#This Row],[Median]]","v":0},null,{"$f":"(((AAMC_Raw_Data_for_FY22[[#This Row],[75th]]-AAMC_Raw_Data_for_FY22[[#This Row],[Median]])/25)*30) + AAMC_Raw_Data_for_FY22[[#This Row],[Median]]","v":0},{"$f":"(((AAMC_Raw_Data_for_FY22[[#This Row],[75th]]-AAMC_Raw_Data_for_FY22[[#This Row],[Median]])/25)*35) + AAMC_Raw_Data_for_FY22[[#This Row],[Median]]","v":0},{"$f":"(((AAMC_Raw_Data_for_FY22[[#This Row],[75th]]-AAMC_Raw_Data_for_FY22[[#This Row],[Median]])/25)*40) + AAMC_Raw_Data_for_FY22[[#This Row],[Median]]","v":0}]
[{"$f":"AAMC_Raw_Data_for_FY22[[#This Row],[Source]]&AAMC_Raw_Data_for_FY22[[#This Row],[Type]]&AAMC_Raw_Data_for_FY22[[#This Row],[School Subset]]&AAMC_Raw_Data_for_FY22[[#This Row],[Rank]]&AAMC_Raw_Data_for_FY22[[#This Row],[Degree]]&AAMC_Raw_Data_for_FY22[[#This Row],[Department / Specialty]]&\"L\"","v":"AAMCAcademicPrivateAssistantMDGastroenterology-Peds.L"},"Gastroenterology-Peds.",4,"AAMC","Academic","Private","Assistant","MD","2021-2022",207960,{"$f":"(((AAMC_Raw_Data_for_FY22[[#This Row],[Median]]-AAMC_Raw_Data_for_FY22[[#This Row],[25th]])/25)*5) + AAMC_Raw_Data_for_FY22[[#This Row],[25th]]","v":211812.2},{"$f":"(((AAMC_Raw_Data_for_FY22[[#This Row],[Median]]-AAMC_Raw_Data_for_FY22[[#This Row],[25th]])/25)*10) + AAMC_Raw_Data_for_FY22[[#This Row],[25th]]","v":215664.4},{"$f":"(((AAMC_Raw_Data_for_FY22[[#This Row],[Median]]-AAMC_Raw_Data_for_FY22[[#This Row],[25th]])/25)*15) + AAMC_Raw_Data_for_FY22[[#This Row],[25th]]","v":219516.6},{"$f":"(((AAMC_Raw_Data_for_FY22[[#This Row],[Median]]-AAMC_Raw_Data_for_FY22[[#This Row],[25th]])/25)*20) + AAMC_Raw_Data_for_FY22[[#This Row],[25th]]","v":223368.8},227221,{"$f":"(((AAMC_Raw_Data_for_FY22[[#This Row],[75th]]-AAMC_Raw_Data_for_FY22[[#This Row],[Median]])/25)*5) + AAMC_Raw_Data_for_FY22[[#This Row],[Median]]","v":231588.8},{"$f":"(((AAMC_Raw_Data_for_FY22[[#This Row],[75th]]-AAMC_Raw_Data_for_FY22[[#This Row],[Median]])/25)*10) + AAMC_Raw_Data_for_FY22[[#This Row],[Median]]","v":235956.6},{"$f":"(((AAMC_Raw_Data_for_FY22[[#This Row],[75th]]-AAMC_Raw_Data_for_FY22[[#This Row],[Median]])/25)*15) + AAMC_Raw_Data_for_FY22[[#This Row],[Median]]","v":240324.4},{"$f":"(((AAMC_Raw_Data_for_FY22[[#This Row],[75th]]-AAMC_Raw_Data_for_FY22[[#This Row],[Median]])/25)*20) + AAMC_Raw_Data_for_FY22[[#This Row],[Median]]","v":244692.2},249060,{"$f":"(((AAMC_Raw_Data_for_FY22[[#This Row],[75th]]-AAMC_Raw_Data_for_FY22[[#This Row],[Median]])/25)*30) + AAMC_Raw_Data_for_FY22[[#This Row],[Median]]","v":253427.8},{"$f":"(((AAMC_Raw_Data_for_FY22[[#This Row],[75th]]-AAMC_Raw_Data_for_FY22[[#This Row],[Median]])/25)*35) + AAMC_Raw_Data_for_FY22[[#This Row],[Median]]","v":257795.6},{"$f":"(((AAMC_Raw_Data_for_FY22[[#This Row],[75th]]-AAMC_Raw_Data_for_FY22[[#This Row],[Median]])/25)*40) + AAMC_Raw_Data_for_FY22[[#This Row],[Median]]","v":262163.40000000002}]
[{"$f":"AAMC_Raw_Data_for_FY22[[#This Row],[Source]]&AAMC_Raw_Data_for_FY22[[#This Row],[Type]]&AAMC_Raw_Data_for_FY22[[#This Row],[School Subset]]&AAMC_Raw_Data_for_FY22[[#This Row],[Rank]]&AAMC_Raw_Data_for_FY22[[#This Row],[Degree]]&AAMC_Raw_Data_for_FY22[[#This Row],[Department / Specialty]]&\"L\"","v":"AAMCAcademicPrivateAssociateMDGastroenterology-Peds.L"},"Gastroenterology-Peds.",3,"AAMC","Academic","Private","Associate","MD","2021-2022",241926,{"$f":"(((AAMC_Raw_Data_for_FY22[[#This Row],[Median]]-AAMC_Raw_Data_for_FY22[[#This Row],[25th]])/25)*5) + AAMC_Raw_Data_for_FY22[[#This Row],[25th]]","v":247108.4},{"$f":"(((AAMC_Raw_Data_for_FY22[[#This Row],[Median]]-AAMC_Raw_Data_for_FY22[[#This Row],[25th]])/25)*10) + AAMC_Raw_Data_for_FY22[[#This Row],[25th]]","v":252290.8},{"$f":"(((AAMC_Raw_Data_for_FY22[[#This Row],[Median]]-AAMC_Raw_Data_for_FY22[[#This Row],[25th]])/25)*15) + AAMC_Raw_Data_for_FY22[[#This Row],[25th]]","v":257473.2},{"$f":"(((AAMC_Raw_Data_for_FY22[[#This Row],[Median]]-AAMC_Raw_Data_for_FY22[[#This Row],[25th]])/25)*20) + AAMC_Raw_Data_for_FY22[[#This Row],[25th]]","v":262655.59999999998},267838,{"$f":"(((AAMC_Raw_Data_for_FY22[[#This Row],[75th]]-AAMC_Raw_Data_for_FY22[[#This Row],[Median]])/25)*5) + AAMC_Raw_Data_for_FY22[[#This Row],[Median]]","v":274535},{"$f":"(((AAMC_Raw_Data_for_FY22[[#This Row],[75th]]-AAMC_Raw_Data_for_FY22[[#This Row],[Median]])/25)*10) + AAMC_Raw_Data_for_FY22[[#This Row],[Median]]","v":281232},{"$f":"(((AAMC_Raw_Data_for_FY22[[#This Row],[75th]]-AAMC_Raw_Data_for_FY22[[#This Row],[Median]])/25)*15) + AAMC_Raw_Data_for_FY22[[#This Row],[Median]]","v":287929},{"$f":"(((AAMC_Raw_Data_for_FY22[[#This Row],[75th]]-AAMC_Raw_Data_for_FY22[[#This Row],[Median]])/25)*20) + AAMC_Raw_Data_for_FY22[[#This Row],[Median]]","v":294626},301323,{"$f":"(((AAMC_Raw_Data_for_FY22[[#This Row],[75th]]-AAMC_Raw_Data_for_FY22[[#This Row],[Median]])/25)*30) + AAMC_Raw_Data_for_FY22[[#This Row],[Median]]","v":308020},{"$f":"(((AAMC_Raw_Data_for_FY22[[#This Row],[75th]]-AAMC_Raw_Data_for_FY22[[#This Row],[Median]])/25)*35) + AAMC_Raw_Data_for_FY22[[#This Row],[Median]]","v":314717},{"$f":"(((AAMC_Raw_Data_for_FY22[[#This Row],[75th]]-AAMC_Raw_Data_for_FY22[[#This Row],[Median]])/25)*40) + AAMC_Raw_Data_for_FY22[[#This Row],[Median]]","v":321414}]
[{"$f":"AAMC_Raw_Data_for_FY22[[#This Row],[Source]]&AAMC_Raw_Data_for_FY22[[#This Row],[Type]]&AAMC_Raw_Data_for_FY22[[#This Row],[School Subset]]&AAMC_Raw_Data_for_FY22[[#This Row],[Rank]]&AAMC_Raw_Data_for_FY22[[#This Row],[Degree]]&AAMC_Raw_Data_for_FY22[[#This Row],[Department / Specialty]]&\"L\"","v":"AAMCAcademicPrivateProfessorMDGastroenterology-Peds.L"},"Gastroenterology-Peds.",2,"AAMC","Academic","Private","Professor","MD","2021-2022",306265,{"$f":"(((AAMC_Raw_Data_for_FY22[[#This Row],[Median]]-AAMC_Raw_Data_for_FY22[[#This Row],[25th]])/25)*5) + AAMC_Raw_Data_for_FY22[[#This Row],[25th]]","v":313981.8},{"$f":"(((AAMC_Raw_Data_for_FY22[[#This Row],[Median]]-AAMC_Raw_Data_for_FY22[[#This Row],[25th]])/25)*10) + AAMC_Raw_Data_for_FY22[[#This Row],[25th]]","v":321698.59999999998},{"$f":"(((AAMC_Raw_Data_for_FY22[[#This Row],[Median]]-AAMC_Raw_Data_for_FY22[[#This Row],[25th]])/25)*15) + AAMC_Raw_Data_for_FY22[[#This Row],[25th]]","v":329415.40000000002},{"$f":"(((AAMC_Raw_Data_for_FY22[[#This Row],[Median]]-AAMC_Raw_Data_for_FY22[[#This Row],[25th]])/25)*20) + AAMC_Raw_Data_for_FY22[[#This Row],[25th]]","v":337132.2},344849,{"$f":"(((AAMC_Raw_Data_for_FY22[[#This Row],[75th]]-AAMC_Raw_Data_for_FY22[[#This Row],[Median]])/25)*5) + AAMC_Raw_Data_for_FY22[[#This Row],[Median]]","v":358022.40000000002},{"$f":"(((AAMC_Raw_Data_for_FY22[[#This Row],[75th]]-AAMC_Raw_Data_for_FY22[[#This Row],[Median]])/25)*10) + AAMC_Raw_Data_for_FY22[[#This Row],[Median]]","v":371195.8},{"$f":"(((AAMC_Raw_Data_for_FY22[[#This Row],[75th]]-AAMC_Raw_Data_for_FY22[[#This Row],[Median]])/25)*15) + AAMC_Raw_Data_for_FY22[[#This Row],[Median]]","v":384369.2},{"$f":"(((AAMC_Raw_Data_for_FY22[[#This Row],[75th]]-AAMC_Raw_Data_for_FY22[[#This Row],[Median]])/25)*20) + AAMC_Raw_Data_for_FY22[[#This Row],[Median]]","v":397542.6},410716,{"$f":"(((AAMC_Raw_Data_for_FY22[[#This Row],[75th]]-AAMC_Raw_Data_for_FY22[[#This Row],[Median]])/25)*30) + AAMC_Raw_Data_for_FY22[[#This Row],[Median]]","v":423889.4},{"$f":"(((AAMC_Raw_Data_for_FY22[[#This Row],[75th]]-AAMC_Raw_Data_for_FY22[[#This Row],[Median]])/25)*35) + AAMC_Raw_Data_for_FY22[[#This Row],[Median]]","v":437062.8},{"$f":"(((AAMC_Raw_Data_for_FY22[[#This Row],[75th]]-AAMC_Raw_Data_for_FY22[[#This Row],[Median]])/25)*40) + AAMC_Raw_Data_for_FY22[[#This Row],[Median]]","v":450236.2}]
[{"$f":"AAMC_Raw_Data_for_FY22[[#This Row],[Source]]&AAMC_Raw_Data_for_FY22[[#This Row],[Type]]&AAMC_Raw_Data_for_FY22[[#This Row],[School Subset]]&AAMC_Raw_Data_for_FY22[[#This Row],[Rank]]&AAMC_Raw_Data_for_FY22[[#This Row],[Degree]]&AAMC_Raw_Data_for_FY22[[#This Row],[Department / Specialty]]&\"L\"","v":"AAMCAcademicPrivateChiefMDGastroenterology-Peds.L"},"Gastroenterology-Peds.",6,"AAMC","Academic","Private","Chief","MD","2021-2022",330000,{"$f":"(((AAMC_Raw_Data_for_FY22[[#This Row],[Median]]-AAMC_Raw_Data_for_FY22[[#This Row],[25th]])/25)*5) + AAMC_Raw_Data_for_FY22[[#This Row],[25th]]","v":337500},{"$f":"(((AAMC_Raw_Data_for_FY22[[#This Row],[Median]]-AAMC_Raw_Data_for_FY22[[#This Row],[25th]])/25)*10) + AAMC_Raw_Data_for_FY22[[#This Row],[25th]]","v":345000},{"$f":"(((AAMC_Raw_Data_for_FY22[[#This Row],[Median]]-AAMC_Raw_Data_for_FY22[[#This Row],[25th]])/25)*15) + AAMC_Raw_Data_for_FY22[[#This Row],[25th]]","v":352500},{"$f":"(((AAMC_Raw_Data_for_FY22[[#This Row],[Median]]-AAMC_Raw_Data_for_FY22[[#This Row],[25th]])/25)*20) + AAMC_Raw_Data_for_FY22[[#This Row],[25th]]","v":360000},367500,{"$f":"(((AAMC_Raw_Data_for_FY22[[#This Row],[75th]]-AAMC_Raw_Data_for_FY22[[#This Row],[Median]])/25)*5) + AAMC_Raw_Data_for_FY22[[#This Row],[Median]]","v":377335},{"$f":"(((AAMC_Raw_Data_for_FY22[[#This Row],[75th]]-AAMC_Raw_Data_for_FY22[[#This Row],[Median]])/25)*10) + AAMC_Raw_Data_for_FY22[[#This Row],[Median]]","v":387170},{"$f":"(((AAMC_Raw_Data_for_FY22[[#This Row],[75th]]-AAMC_Raw_Data_for_FY22[[#This Row],[Median]])/25)*15) + AAMC_Raw_Data_for_FY22[[#This Row],[Median]]","v":397005},{"$f":"(((AAMC_Raw_Data_for_FY22[[#This Row],[75th]]-AAMC_Raw_Data_for_FY22[[#This Row],[Median]])/25)*20) + AAMC_Raw_Data_for_FY22[[#This Row],[Median]]","v":406840},416675,{"$f":"(((AAMC_Raw_Data_for_FY22[[#This Row],[75th]]-AAMC_Raw_Data_for_FY22[[#This Row],[Median]])/25)*30) + AAMC_Raw_Data_for_FY22[[#This Row],[Median]]","v":426510},{"$f":"(((AAMC_Raw_Data_for_FY22[[#This Row],[75th]]-AAMC_Raw_Data_for_FY22[[#This Row],[Median]])/25)*35) + AAMC_Raw_Data_for_FY22[[#This Row],[Median]]","v":436345},{"$f":"(((AAMC_Raw_Data_for_FY22[[#This Row],[75th]]-AAMC_Raw_Data_for_FY22[[#This Row],[Median]])/25)*40) + AAMC_Raw_Data_for_FY22[[#This Row],[Median]]","v":446180}]
[{"$f":"AAMC_Raw_Data_for_FY22[[#This Row],[Source]]&AAMC_Raw_Data_for_FY22[[#This Row],[Type]]&AAMC_Raw_Data_for_FY22[[#This Row],[School Subset]]&AAMC_Raw_Data_for_FY22[[#This Row],[Rank]]&AAMC_Raw_Data_for_FY22[[#This Row],[Degree]]&AAMC_Raw_Data_for_FY22[[#This Row],[Department / Specialty]]&\"L\"","v":"AAMCAcademicPrivateInstructorMDGeneral PediatricsL"},"General Pediatrics",5,"AAMC","Academic","Private","Instructor","MD","2021-2022",175410,{"$f":"(((AAMC_Raw_Data_for_FY22[[#This Row],[Median]]-AAMC_Raw_Data_for_FY22[[#This Row],[25th]])/25)*5) + AAMC_Raw_Data_for_FY22[[#This Row],[25th]]","v":180493.4},{"$f":"(((AAMC_Raw_Data_for_FY22[[#This Row],[Median]]-AAMC_Raw_Data_for_FY22[[#This Row],[25th]])/25)*10) + AAMC_Raw_Data_for_FY22[[#This Row],[25th]]","v":185576.8},{"$f":"(((AAMC_Raw_Data_for_FY22[[#This Row],[Median]]-AAMC_Raw_Data_for_FY22[[#This Row],[25th]])/25)*15) + AAMC_Raw_Data_for_FY22[[#This Row],[25th]]","v":190660.2},{"$f":"(((AAMC_Raw_Data_for_FY22[[#This Row],[Median]]-AAMC_Raw_Data_for_FY22[[#This Row],[25th]])/25)*20) + AAMC_Raw_Data_for_FY22[[#This Row],[25th]]","v":195743.6},200827,{"$f":"(((AAMC_Raw_Data_for_FY22[[#This Row],[75th]]-AAMC_Raw_Data_for_FY22[[#This Row],[Median]])/25)*5) + AAMC_Raw_Data_for_FY22[[#This Row],[Median]]","v":208427.2},{"$f":"(((AAMC_Raw_Data_for_FY22[[#This Row],[75th]]-AAMC_Raw_Data_for_FY22[[#This Row],[Median]])/25)*10) + AAMC_Raw_Data_for_FY22[[#This Row],[Median]]","v":216027.4},{"$f":"(((AAMC_Raw_Data_for_FY22[[#This Row],[75th]]-AAMC_Raw_Data_for_FY22[[#This Row],[Median]])/25)*15) + AAMC_Raw_Data_for_FY22[[#This Row],[Median]]","v":223627.6},{"$f":"(((AAMC_Raw_Data_for_FY22[[#This Row],[75th]]-AAMC_Raw_Data_for_FY22[[#This Row],[Median]])/25)*20) + AAMC_Raw_Data_for_FY22[[#This Row],[Median]]","v":231227.8},238828,{"$f":"(((AAMC_Raw_Data_for_FY22[[#This Row],[75th]]-AAMC_Raw_Data_for_FY22[[#This Row],[Median]])/25)*30) + AAMC_Raw_Data_for_FY22[[#This Row],[Median]]","v":246428.2},{"$f":"(((AAMC_Raw_Data_for_FY22[[#This Row],[75th]]-AAMC_Raw_Data_for_FY22[[#This Row],[Median]])/25)*35) + AAMC_Raw_Data_for_FY22[[#This Row],[Median]]","v":254028.4},{"$f":"(((AAMC_Raw_Data_for_FY22[[#This Row],[75th]]-AAMC_Raw_Data_for_FY22[[#This Row],[Median]])/25)*40) + AAMC_Raw_Data_for_FY22[[#This Row],[Median]]","v":261628.6}]
[{"$f":"AAMC_Raw_Data_for_FY22[[#This Row],[Source]]&AAMC_Raw_Data_for_FY22[[#This Row],[Type]]&AAMC_Raw_Data_for_FY22[[#This Row],[School Subset]]&AAMC_Raw_Data_for_FY22[[#This Row],[Rank]]&AAMC_Raw_Data_for_FY22[[#This Row],[Degree]]&AAMC_Raw_Data_for_FY22[[#This Row],[Department / Specialty]]&\"L\"","v":"AAMCAcademicPrivateAssistantMDGeneral PediatricsL"},"General Pediatrics",4,"AAMC","Academic","Private","Assistant","MD","2021-2022",170493,{"$f":"(((AAMC_Raw_Data_for_FY22[[#This Row],[Median]]-AAMC_Raw_Data_for_FY22[[#This Row],[25th]])/25)*5) + AAMC_Raw_Data_for_FY22[[#This Row],[25th]]","v":173802.8},{"$f":"(((AAMC_Raw_Data_for_FY22[[#This Row],[Median]]-AAMC_Raw_Data_for_FY22[[#This Row],[25th]])/25)*10) + AAMC_Raw_Data_for_FY22[[#This Row],[25th]]","v":177112.6},{"$f":"(((AAMC_Raw_Data_for_FY22[[#This Row],[Median]]-AAMC_Raw_Data_for_FY22[[#This Row],[25th]])/25)*15) + AAMC_Raw_Data_for_FY22[[#This Row],[25th]]","v":180422.39999999999},{"$f":"(((AAMC_Raw_Data_for_FY22[[#This Row],[Median]]-AAMC_Raw_Data_for_FY22[[#This Row],[25th]])/25)*20) + AAMC_Raw_Data_for_FY22[[#This Row],[25th]]","v":183732.2},187042,{"$f":"(((AAMC_Raw_Data_for_FY22[[#This Row],[75th]]-AAMC_Raw_Data_for_FY22[[#This Row],[Median]])/25)*5) + AAMC_Raw_Data_for_FY22[[#This Row],[Median]]","v":194280.2},{"$f":"(((AAMC_Raw_Data_for_FY22[[#This Row],[75th]]-AAMC_Raw_Data_for_FY22[[#This Row],[Median]])/25)*10) + AAMC_Raw_Data_for_FY22[[#This Row],[Median]]","v":201518.4},{"$f":"(((AAMC_Raw_Data_for_FY22[[#This Row],[75th]]-AAMC_Raw_Data_for_FY22[[#This Row],[Median]])/25)*15) + AAMC_Raw_Data_for_FY22[[#This Row],[Median]]","v":208756.6},{"$f":"(((AAMC_Raw_Data_for_FY22[[#This Row],[75th]]-AAMC_Raw_Data_for_FY22[[#This Row],[Median]])/25)*20) + AAMC_Raw_Data_for_FY22[[#This Row],[Median]]","v":215994.8},223233,{"$f":"(((AAMC_Raw_Data_for_FY22[[#This Row],[75th]]-AAMC_Raw_Data_for_FY22[[#This Row],[Median]])/25)*30) + AAMC_Raw_Data_for_FY22[[#This Row],[Median]]","v":230471.2},{"$f":"(((AAMC_Raw_Data_for_FY22[[#This Row],[75th]]-AAMC_Raw_Data_for_FY22[[#This Row],[Median]])/25)*35) + AAMC_Raw_Data_for_FY22[[#This Row],[Median]]","v":237709.4},{"$f":"(((AAMC_Raw_Data_for_FY22[[#This Row],[75th]]-AAMC_Raw_Data_for_FY22[[#This Row],[Median]])/25)*40) + AAMC_Raw_Data_for_FY22[[#This Row],[Median]]","v":244947.6}]
[{"$f":"AAMC_Raw_Data_for_FY22[[#This Row],[Source]]&AAMC_Raw_Data_for_FY22[[#This Row],[Type]]&AAMC_Raw_Data_for_FY22[[#This Row],[School Subset]]&AAMC_Raw_Data_for_FY22[[#This Row],[Rank]]&AAMC_Raw_Data_for_FY22[[#This Row],[Degree]]&AAMC_Raw_Data_for_FY22[[#This Row],[Department / Specialty]]&\"L\"","v":"AAMCAcademicPrivateAssociateMDGeneral PediatricsL"},"General Pediatrics",3,"AAMC","Academic","Private","Associate","MD","2021-2022",199400,{"$f":"(((AAMC_Raw_Data_for_FY22[[#This Row],[Median]]-AAMC_Raw_Data_for_FY22[[#This Row],[25th]])/25)*5) + AAMC_Raw_Data_for_FY22[[#This Row],[25th]]","v":203871},{"$f":"(((AAMC_Raw_Data_for_FY22[[#This Row],[Median]]-AAMC_Raw_Data_for_FY22[[#This Row],[25th]])/25)*10) + AAMC_Raw_Data_for_FY22[[#This Row],[25th]]","v":208342},{"$f":"(((AAMC_Raw_Data_for_FY22[[#This Row],[Median]]-AAMC_Raw_Data_for_FY22[[#This Row],[25th]])/25)*15) + AAMC_Raw_Data_for_FY22[[#This Row],[25th]]","v":212813},{"$f":"(((AAMC_Raw_Data_for_FY22[[#This Row],[Median]]-AAMC_Raw_Data_for_FY22[[#This Row],[25th]])/25)*20) + AAMC_Raw_Data_for_FY22[[#This Row],[25th]]","v":217284},221755,{"$f":"(((AAMC_Raw_Data_for_FY22[[#This Row],[75th]]-AAMC_Raw_Data_for_FY22[[#This Row],[Median]])/25)*5) + AAMC_Raw_Data_for_FY22[[#This Row],[Median]]","v":227063.4},{"$f":"(((AAMC_Raw_Data_for_FY22[[#This Row],[75th]]-AAMC_Raw_Data_for_FY22[[#This Row],[Median]])/25)*10) + AAMC_Raw_Data_for_FY22[[#This Row],[Median]]","v":232371.8},{"$f":"(((AAMC_Raw_Data_for_FY22[[#This Row],[75th]]-AAMC_Raw_Data_for_FY22[[#This Row],[Median]])/25)*15) + AAMC_Raw_Data_for_FY22[[#This Row],[Median]]","v":237680.2},{"$f":"(((AAMC_Raw_Data_for_FY22[[#This Row],[75th]]-AAMC_Raw_Data_for_FY22[[#This Row],[Median]])/25)*20) + AAMC_Raw_Data_for_FY22[[#This Row],[Median]]","v":242988.6},248297,{"$f":"(((AAMC_Raw_Data_for_FY22[[#This Row],[75th]]-AAMC_Raw_Data_for_FY22[[#This Row],[Median]])/25)*30) + AAMC_Raw_Data_for_FY22[[#This Row],[Median]]","v":253605.4},{"$f":"(((AAMC_Raw_Data_for_FY22[[#This Row],[75th]]-AAMC_Raw_Data_for_FY22[[#This Row],[Median]])/25)*35) + AAMC_Raw_Data_for_FY22[[#This Row],[Median]]","v":258913.8},{"$f":"(((AAMC_Raw_Data_for_FY22[[#This Row],[75th]]-AAMC_Raw_Data_for_FY22[[#This Row],[Median]])/25)*40) + AAMC_Raw_Data_for_FY22[[#This Row],[Median]]","v":264222.2}]
[{"$f":"AAMC_Raw_Data_for_FY22[[#This Row],[Source]]&AAMC_Raw_Data_for_FY22[[#This Row],[Type]]&AAMC_Raw_Data_for_FY22[[#This Row],[School Subset]]&AAMC_Raw_Data_for_FY22[[#This Row],[Rank]]&AAMC_Raw_Data_for_FY22[[#This Row],[Degree]]&AAMC_Raw_Data_for_FY22[[#This Row],[Department / Specialty]]&\"L\"","v":"AAMCAcademicPrivateProfessorMDGeneral PediatricsL"},"General Pediatrics",2,"AAMC","Academic","Private","Professor","MD","2021-2022",234520,{"$f":"(((AAMC_Raw_Data_for_FY22[[#This Row],[Median]]-AAMC_Raw_Data_for_FY22[[#This Row],[25th]])/25)*5) + AAMC_Raw_Data_for_FY22[[#This Row],[25th]]","v":241763.20000000001},{"$f":"(((AAMC_Raw_Data_for_FY22[[#This Row],[Median]]-AAMC_Raw_Data_for_FY22[[#This Row],[25th]])/25)*10) + AAMC_Raw_Data_for_FY22[[#This Row],[25th]]","v":249006.4},{"$f":"(((AAMC_Raw_Data_for_FY22[[#This Row],[Median]]-AAMC_Raw_Data_for_FY22[[#This Row],[25th]])/25)*15) + AAMC_Raw_Data_for_FY22[[#This Row],[25th]]","v":256249.60000000001},{"$f":"(((AAMC_Raw_Data_for_FY22[[#This Row],[Median]]-AAMC_Raw_Data_for_FY22[[#This Row],[25th]])/25)*20) + AAMC_Raw_Data_for_FY22[[#This Row],[25th]]","v":263492.8},270736,{"$f":"(((AAMC_Raw_Data_for_FY22[[#This Row],[75th]]-AAMC_Raw_Data_for_FY22[[#This Row],[Median]])/25)*5) + AAMC_Raw_Data_for_FY22[[#This Row],[Median]]","v":279316},{"$f":"(((AAMC_Raw_Data_for_FY22[[#This Row],[75th]]-AAMC_Raw_Data_for_FY22[[#This Row],[Median]])/25)*10) + AAMC_Raw_Data_for_FY22[[#This Row],[Median]]","v":287896},{"$f":"(((AAMC_Raw_Data_for_FY22[[#This Row],[75th]]-AAMC_Raw_Data_for_FY22[[#This Row],[Median]])/25)*15) + AAMC_Raw_Data_for_FY22[[#This Row],[Median]]","v":296476},{"$f":"(((AAMC_Raw_Data_for_FY22[[#This Row],[75th]]-AAMC_Raw_Data_for_FY22[[#This Row],[Median]])/25)*20) + AAMC_Raw_Data_for_FY22[[#This Row],[Median]]","v":305056},313636,{"$f":"(((AAMC_Raw_Data_for_FY22[[#This Row],[75th]]-AAMC_Raw_Data_for_FY22[[#This Row],[Median]])/25)*30) + AAMC_Raw_Data_for_FY22[[#This Row],[Median]]","v":322216},{"$f":"(((AAMC_Raw_Data_for_FY22[[#This Row],[75th]]-AAMC_Raw_Data_for_FY22[[#This Row],[Median]])/25)*35) + AAMC_Raw_Data_for_FY22[[#This Row],[Median]]","v":330796},{"$f":"(((AAMC_Raw_Data_for_FY22[[#This Row],[75th]]-AAMC_Raw_Data_for_FY22[[#This Row],[Median]])/25)*40) + AAMC_Raw_Data_for_FY22[[#This Row],[Median]]","v":339376}]
[{"$f":"AAMC_Raw_Data_for_FY22[[#This Row],[Source]]&AAMC_Raw_Data_for_FY22[[#This Row],[Type]]&AAMC_Raw_Data_for_FY22[[#This Row],[School Subset]]&AAMC_Raw_Data_for_FY22[[#This Row],[Rank]]&AAMC_Raw_Data_for_FY22[[#This Row],[Degree]]&AAMC_Raw_Data_for_FY22[[#This Row],[Department / Specialty]]&\"L\"","v":"AAMCAcademicPrivateChiefMDGeneral PediatricsL"},"General Pediatrics",6,"AAMC","Academic","Private","Chief","MD","2021-2022",225641,{"$f":"(((AAMC_Raw_Data_for_FY22[[#This Row],[Median]]-AAMC_Raw_Data_for_FY22[[#This Row],[25th]])/25)*5) + AAMC_Raw_Data_for_FY22[[#This Row],[25th]]","v":231273.60000000001},{"$f":"(((AAMC_Raw_Data_for_FY22[[#This Row],[Median]]-AAMC_Raw_Data_for_FY22[[#This Row],[25th]])/25)*10) + AAMC_Raw_Data_for_FY22[[#This Row],[25th]]","v":236906.2},{"$f":"(((AAMC_Raw_Data_for_FY22[[#This Row],[Median]]-AAMC_Raw_Data_for_FY22[[#This Row],[25th]])/25)*15) + AAMC_Raw_Data_for_FY22[[#This Row],[25th]]","v":242538.8},{"$f":"(((AAMC_Raw_Data_for_FY22[[#This Row],[Median]]-AAMC_Raw_Data_for_FY22[[#This Row],[25th]])/25)*20) + AAMC_Raw_Data_for_FY22[[#This Row],[25th]]","v":248171.4},253804,{"$f":"(((AAMC_Raw_Data_for_FY22[[#This Row],[75th]]-AAMC_Raw_Data_for_FY22[[#This Row],[Median]])/25)*5) + AAMC_Raw_Data_for_FY22[[#This Row],[Median]]","v":270516},{"$f":"(((AAMC_Raw_Data_for_FY22[[#This Row],[75th]]-AAMC_Raw_Data_for_FY22[[#This Row],[Median]])/25)*10) + AAMC_Raw_Data_for_FY22[[#This Row],[Median]]","v":287228},{"$f":"(((AAMC_Raw_Data_for_FY22[[#This Row],[75th]]-AAMC_Raw_Data_for_FY22[[#This Row],[Median]])/25)*15) + AAMC_Raw_Data_for_FY22[[#This Row],[Median]]","v":303940},{"$f":"(((AAMC_Raw_Data_for_FY22[[#This Row],[75th]]-AAMC_Raw_Data_for_FY22[[#This Row],[Median]])/25)*20) + AAMC_Raw_Data_for_FY22[[#This Row],[Median]]","v":320652},337364,{"$f":"(((AAMC_Raw_Data_for_FY22[[#This Row],[75th]]-AAMC_Raw_Data_for_FY22[[#This Row],[Median]])/25)*30) + AAMC_Raw_Data_for_FY22[[#This Row],[Median]]","v":354076},{"$f":"(((AAMC_Raw_Data_for_FY22[[#This Row],[75th]]-AAMC_Raw_Data_for_FY22[[#This Row],[Median]])/25)*35) + AAMC_Raw_Data_for_FY22[[#This Row],[Median]]","v":370788},{"$f":"(((AAMC_Raw_Data_for_FY22[[#This Row],[75th]]-AAMC_Raw_Data_for_FY22[[#This Row],[Median]])/25)*40) + AAMC_Raw_Data_for_FY22[[#This Row],[Median]]","v":387500}]
[{"$f":"AAMC_Raw_Data_for_FY22[[#This Row],[Source]]&AAMC_Raw_Data_for_FY22[[#This Row],[Type]]&AAMC_Raw_Data_for_FY22[[#This Row],[School Subset]]&AAMC_Raw_Data_for_FY22[[#This Row],[Rank]]&AAMC_Raw_Data_for_FY22[[#This Row],[Degree]]&AAMC_Raw_Data_for_FY22[[#This Row],[Department / Specialty]]&\"L\"","v":"AAMCAcademicPrivateChairMDGeneral PediatricsL"},"General Pediatrics",1,"AAMC","Academic","Private","Chair","MD","2021-2022",492282,{"$f":"(((AAMC_Raw_Data_for_FY22[[#This Row],[Median]]-AAMC_Raw_Data_for_FY22[[#This Row],[25th]])/25)*5) + AAMC_Raw_Data_for_FY22[[#This Row],[25th]]","v":515279.2},{"$f":"(((AAMC_Raw_Data_for_FY22[[#This Row],[Median]]-AAMC_Raw_Data_for_FY22[[#This Row],[25th]])/25)*10) + AAMC_Raw_Data_for_FY22[[#This Row],[25th]]","v":538276.4},{"$f":"(((AAMC_Raw_Data_for_FY22[[#This Row],[Median]]-AAMC_Raw_Data_for_FY22[[#This Row],[25th]])/25)*15) + AAMC_Raw_Data_for_FY22[[#This Row],[25th]]","v":561273.59999999998},{"$f":"(((AAMC_Raw_Data_for_FY22[[#This Row],[Median]]-AAMC_Raw_Data_for_FY22[[#This Row],[25th]])/25)*20) + AAMC_Raw_Data_for_FY22[[#This Row],[25th]]","v":584270.80000000005},607268,{"$f":"(((AAMC_Raw_Data_for_FY22[[#This Row],[75th]]-AAMC_Raw_Data_for_FY22[[#This Row],[Median]])/25)*5) + AAMC_Raw_Data_for_FY22[[#This Row],[Median]]","v":612387},{"$f":"(((AAMC_Raw_Data_for_FY22[[#This Row],[75th]]-AAMC_Raw_Data_for_FY22[[#This Row],[Median]])/25)*10) + AAMC_Raw_Data_for_FY22[[#This Row],[Median]]","v":617506},{"$f":"(((AAMC_Raw_Data_for_FY22[[#This Row],[75th]]-AAMC_Raw_Data_for_FY22[[#This Row],[Median]])/25)*15) + AAMC_Raw_Data_for_FY22[[#This Row],[Median]]","v":622625},{"$f":"(((AAMC_Raw_Data_for_FY22[[#This Row],[75th]]-AAMC_Raw_Data_for_FY22[[#This Row],[Median]])/25)*20) + AAMC_Raw_Data_for_FY22[[#This Row],[Median]]","v":627744},632863,{"$f":"(((AAMC_Raw_Data_for_FY22[[#This Row],[75th]]-AAMC_Raw_Data_for_FY22[[#This Row],[Median]])/25)*30) + AAMC_Raw_Data_for_FY22[[#This Row],[Median]]","v":637982},{"$f":"(((AAMC_Raw_Data_for_FY22[[#This Row],[75th]]-AAMC_Raw_Data_for_FY22[[#This Row],[Median]])/25)*35) + AAMC_Raw_Data_for_FY22[[#This Row],[Median]]","v":643101},{"$f":"(((AAMC_Raw_Data_for_FY22[[#This Row],[75th]]-AAMC_Raw_Data_for_FY22[[#This Row],[Median]])/25)*40) + AAMC_Raw_Data_for_FY22[[#This Row],[Median]]","v":648220}]
[{"$f":"AAMC_Raw_Data_for_FY22[[#This Row],[Source]]&AAMC_Raw_Data_for_FY22[[#This Row],[Type]]&AAMC_Raw_Data_for_FY22[[#This Row],[School Subset]]&AAMC_Raw_Data_for_FY22[[#This Row],[Rank]]&AAMC_Raw_Data_for_FY22[[#This Row],[Degree]]&AAMC_Raw_Data_for_FY22[[#This Row],[Department / Specialty]]&\"L\"","v":"AAMCAcademicPrivateInstructorMDGenetics-Peds.L"},"Genetics-Peds.",5,"AAMC","Academic","Private","Instructor","MD","2021-2022",null,{"$f":"(((AAMC_Raw_Data_for_FY22[[#This Row],[Median]]-AAMC_Raw_Data_for_FY22[[#This Row],[25th]])/25)*5) + AAMC_Raw_Data_for_FY22[[#This Row],[25th]]","v":0},{"$f":"(((AAMC_Raw_Data_for_FY22[[#This Row],[Median]]-AAMC_Raw_Data_for_FY22[[#This Row],[25th]])/25)*10) + AAMC_Raw_Data_for_FY22[[#This Row],[25th]]","v":0},{"$f":"(((AAMC_Raw_Data_for_FY22[[#This Row],[Median]]-AAMC_Raw_Data_for_FY22[[#This Row],[25th]])/25)*15) + AAMC_Raw_Data_for_FY22[[#This Row],[25th]]","v":0},{"$f":"(((AAMC_Raw_Data_for_FY22[[#This Row],[Median]]-AAMC_Raw_Data_for_FY22[[#This Row],[25th]])/25)*20) + AAMC_Raw_Data_for_FY22[[#This Row],[25th]]","v":0},null,{"$f":"(((AAMC_Raw_Data_for_FY22[[#This Row],[75th]]-AAMC_Raw_Data_for_FY22[[#This Row],[Median]])/25)*5) + AAMC_Raw_Data_for_FY22[[#This Row],[Median]]","v":0},{"$f":"(((AAMC_Raw_Data_for_FY22[[#This Row],[75th]]-AAMC_Raw_Data_for_FY22[[#This Row],[Median]])/25)*10) + AAMC_Raw_Data_for_FY22[[#This Row],[Median]]","v":0},{"$f":"(((AAMC_Raw_Data_for_FY22[[#This Row],[75th]]-AAMC_Raw_Data_for_FY22[[#This Row],[Median]])/25)*15) + AAMC_Raw_Data_for_FY22[[#This Row],[Median]]","v":0},{"$f":"(((AAMC_Raw_Data_for_FY22[[#This Row],[75th]]-AAMC_Raw_Data_for_FY22[[#This Row],[Median]])/25)*20) + AAMC_Raw_Data_for_FY22[[#This Row],[Median]]","v":0},null,{"$f":"(((AAMC_Raw_Data_for_FY22[[#This Row],[75th]]-AAMC_Raw_Data_for_FY22[[#This Row],[Median]])/25)*30) + AAMC_Raw_Data_for_FY22[[#This Row],[Median]]","v":0},{"$f":"(((AAMC_Raw_Data_for_FY22[[#This Row],[75th]]-AAMC_Raw_Data_for_FY22[[#This Row],[Median]])/25)*35) + AAMC_Raw_Data_for_FY22[[#This Row],[Median]]","v":0},{"$f":"(((AAMC_Raw_Data_for_FY22[[#This Row],[75th]]-AAMC_Raw_Data_for_FY22[[#This Row],[Median]])/25)*40) + AAMC_Raw_Data_for_FY22[[#This Row],[Median]]","v":0}]
[{"$f":"AAMC_Raw_Data_for_FY22[[#This Row],[Source]]&AAMC_Raw_Data_for_FY22[[#This Row],[Type]]&AAMC_Raw_Data_for_FY22[[#This Row],[School Subset]]&AAMC_Raw_Data_for_FY22[[#This Row],[Rank]]&AAMC_Raw_Data_for_FY22[[#This Row],[Degree]]&AAMC_Raw_Data_for_FY22[[#This Row],[Department / Specialty]]&\"L\"","v":"AAMCAcademicPrivateAssistantMDGenetics-Peds.L"},"Genetics-Peds.",4,"AAMC","Academic","Private","Assistant","MD","2021-2022",167175,{"$f":"(((AAMC_Raw_Data_for_FY22[[#This Row],[Median]]-AAMC_Raw_Data_for_FY22[[#This Row],[25th]])/25)*5) + AAMC_Raw_Data_for_FY22[[#This Row],[25th]]","v":170028.79999999999},{"$f":"(((AAMC_Raw_Data_for_FY22[[#This Row],[Median]]-AAMC_Raw_Data_for_FY22[[#This Row],[25th]])/25)*10) + AAMC_Raw_Data_for_FY22[[#This Row],[25th]]","v":172882.6},{"$f":"(((AAMC_Raw_Data_for_FY22[[#This Row],[Median]]-AAMC_Raw_Data_for_FY22[[#This Row],[25th]])/25)*15) + AAMC_Raw_Data_for_FY22[[#This Row],[25th]]","v":175736.4},{"$f":"(((AAMC_Raw_Data_for_FY22[[#This Row],[Median]]-AAMC_Raw_Data_for_FY22[[#This Row],[25th]])/25)*20) + AAMC_Raw_Data_for_FY22[[#This Row],[25th]]","v":178590.2},181444,{"$f":"(((AAMC_Raw_Data_for_FY22[[#This Row],[75th]]-AAMC_Raw_Data_for_FY22[[#This Row],[Median]])/25)*5) + AAMC_Raw_Data_for_FY22[[#This Row],[Median]]","v":183917.8},{"$f":"(((AAMC_Raw_Data_for_FY22[[#This Row],[75th]]-AAMC_Raw_Data_for_FY22[[#This Row],[Median]])/25)*10) + AAMC_Raw_Data_for_FY22[[#This Row],[Median]]","v":186391.6},{"$f":"(((AAMC_Raw_Data_for_FY22[[#This Row],[75th]]-AAMC_Raw_Data_for_FY22[[#This Row],[Median]])/25)*15) + AAMC_Raw_Data_for_FY22[[#This Row],[Median]]","v":188865.4},{"$f":"(((AAMC_Raw_Data_for_FY22[[#This Row],[75th]]-AAMC_Raw_Data_for_FY22[[#This Row],[Median]])/25)*20) + AAMC_Raw_Data_for_FY22[[#This Row],[Median]]","v":191339.2},193813,{"$f":"(((AAMC_Raw_Data_for_FY22[[#This Row],[75th]]-AAMC_Raw_Data_for_FY22[[#This Row],[Median]])/25)*30) + AAMC_Raw_Data_for_FY22[[#This Row],[Median]]","v":196286.8},{"$f":"(((AAMC_Raw_Data_for_FY22[[#This Row],[75th]]-AAMC_Raw_Data_for_FY22[[#This Row],[Median]])/25)*35) + AAMC_Raw_Data_for_FY22[[#This Row],[Median]]","v":198760.6},{"$f":"(((AAMC_Raw_Data_for_FY22[[#This Row],[75th]]-AAMC_Raw_Data_for_FY22[[#This Row],[Median]])/25)*40) + AAMC_Raw_Data_for_FY22[[#This Row],[Median]]","v":201234.4}]
[{"$f":"AAMC_Raw_Data_for_FY22[[#This Row],[Source]]&AAMC_Raw_Data_for_FY22[[#This Row],[Type]]&AAMC_Raw_Data_for_FY22[[#This Row],[School Subset]]&AAMC_Raw_Data_for_FY22[[#This Row],[Rank]]&AAMC_Raw_Data_for_FY22[[#This Row],[Degree]]&AAMC_Raw_Data_for_FY22[[#This Row],[Department / Specialty]]&\"L\"","v":"AAMCAcademicPrivateAssociateMDGenetics-Peds.L"},"Genetics-Peds.",3,"AAMC","Academic","Private","Associate","MD","2021-2022",189100,{"$f":"(((AAMC_Raw_Data_for_FY22[[#This Row],[Median]]-AAMC_Raw_Data_for_FY22[[#This Row],[25th]])/25)*5) + AAMC_Raw_Data_for_FY22[[#This Row],[25th]]","v":193772},{"$f":"(((AAMC_Raw_Data_for_FY22[[#This Row],[Median]]-AAMC_Raw_Data_for_FY22[[#This Row],[25th]])/25)*10) + AAMC_Raw_Data_for_FY22[[#This Row],[25th]]","v":198444},{"$f":"(((AAMC_Raw_Data_for_FY22[[#This Row],[Median]]-AAMC_Raw_Data_for_FY22[[#This Row],[25th]])/25)*15) + AAMC_Raw_Data_for_FY22[[#This Row],[25th]]","v":203116},{"$f":"(((AAMC_Raw_Data_for_FY22[[#This Row],[Median]]-AAMC_Raw_Data_for_FY22[[#This Row],[25th]])/25)*20) + AAMC_Raw_Data_for_FY22[[#This Row],[25th]]","v":207788},212460,{"$f":"(((AAMC_Raw_Data_for_FY22[[#This Row],[75th]]-AAMC_Raw_Data_for_FY22[[#This Row],[Median]])/25)*5) + AAMC_Raw_Data_for_FY22[[#This Row],[Median]]","v":214554.4},{"$f":"(((AAMC_Raw_Data_for_FY22[[#This Row],[75th]]-AAMC_Raw_Data_for_FY22[[#This Row],[Median]])/25)*10) + AAMC_Raw_Data_for_FY22[[#This Row],[Median]]","v":216648.8},{"$f":"(((AAMC_Raw_Data_for_FY22[[#This Row],[75th]]-AAMC_Raw_Data_for_FY22[[#This Row],[Median]])/25)*15) + AAMC_Raw_Data_for_FY22[[#This Row],[Median]]","v":218743.2},{"$f":"(((AAMC_Raw_Data_for_FY22[[#This Row],[75th]]-AAMC_Raw_Data_for_FY22[[#This Row],[Median]])/25)*20) + AAMC_Raw_Data_for_FY22[[#This Row],[Median]]","v":220837.6},222932,{"$f":"(((AAMC_Raw_Data_for_FY22[[#This Row],[75th]]-AAMC_Raw_Data_for_FY22[[#This Row],[Median]])/25)*30) + AAMC_Raw_Data_for_FY22[[#This Row],[Median]]","v":225026.4},{"$f":"(((AAMC_Raw_Data_for_FY22[[#This Row],[75th]]-AAMC_Raw_Data_for_FY22[[#This Row],[Median]])/25)*35) + AAMC_Raw_Data_for_FY22[[#This Row],[Median]]","v":227120.8},{"$f":"(((AAMC_Raw_Data_for_FY22[[#This Row],[75th]]-AAMC_Raw_Data_for_FY22[[#This Row],[Median]])/25)*40) + AAMC_Raw_Data_for_FY22[[#This Row],[Median]]","v":229215.2}]
[{"$f":"AAMC_Raw_Data_for_FY22[[#This Row],[Source]]&AAMC_Raw_Data_for_FY22[[#This Row],[Type]]&AAMC_Raw_Data_for_FY22[[#This Row],[School Subset]]&AAMC_Raw_Data_for_FY22[[#This Row],[Rank]]&AAMC_Raw_Data_for_FY22[[#This Row],[Degree]]&AAMC_Raw_Data_for_FY22[[#This Row],[Department / Specialty]]&\"L\"","v":"AAMCAcademicPrivateProfessorMDGenetics-Peds.L"},"Genetics-Peds.",2,"AAMC","Academic","Private","Professor","MD","2021-2022",224708,{"$f":"(((AAMC_Raw_Data_for_FY22[[#This Row],[Median]]-AAMC_Raw_Data_for_FY22[[#This Row],[25th]])/25)*5) + AAMC_Raw_Data_for_FY22[[#This Row],[25th]]","v":233817.60000000001},{"$f":"(((AAMC_Raw_Data_for_FY22[[#This Row],[Median]]-AAMC_Raw_Data_for_FY22[[#This Row],[25th]])/25)*10) + AAMC_Raw_Data_for_FY22[[#This Row],[25th]]","v":242927.2},{"$f":"(((AAMC_Raw_Data_for_FY22[[#This Row],[Median]]-AAMC_Raw_Data_for_FY22[[#This Row],[25th]])/25)*15) + AAMC_Raw_Data_for_FY22[[#This Row],[25th]]","v":252036.8},{"$f":"(((AAMC_Raw_Data_for_FY22[[#This Row],[Median]]-AAMC_Raw_Data_for_FY22[[#This Row],[25th]])/25)*20) + AAMC_Raw_Data_for_FY22[[#This Row],[25th]]","v":261146.4},270256,{"$f":"(((AAMC_Raw_Data_for_FY22[[#This Row],[75th]]-AAMC_Raw_Data_for_FY22[[#This Row],[Median]])/25)*5) + AAMC_Raw_Data_for_FY22[[#This Row],[Median]]","v":274570.8},{"$f":"(((AAMC_Raw_Data_for_FY22[[#This Row],[75th]]-AAMC_Raw_Data_for_FY22[[#This Row],[Median]])/25)*10) + AAMC_Raw_Data_for_FY22[[#This Row],[Median]]","v":278885.59999999998},{"$f":"(((AAMC_Raw_Data_for_FY22[[#This Row],[75th]]-AAMC_Raw_Data_for_FY22[[#This Row],[Median]])/25)*15) + AAMC_Raw_Data_for_FY22[[#This Row],[Median]]","v":283200.40000000002},{"$f":"(((AAMC_Raw_Data_for_FY22[[#This Row],[75th]]-AAMC_Raw_Data_for_FY22[[#This Row],[Median]])/25)*20) + AAMC_Raw_Data_for_FY22[[#This Row],[Median]]","v":287515.2},291830,{"$f":"(((AAMC_Raw_Data_for_FY22[[#This Row],[75th]]-AAMC_Raw_Data_for_FY22[[#This Row],[Median]])/25)*30) + AAMC_Raw_Data_for_FY22[[#This Row],[Median]]","v":296144.8},{"$f":"(((AAMC_Raw_Data_for_FY22[[#This Row],[75th]]-AAMC_Raw_Data_for_FY22[[#This Row],[Median]])/25)*35) + AAMC_Raw_Data_for_FY22[[#This Row],[Median]]","v":300459.59999999998},{"$f":"(((AAMC_Raw_Data_for_FY22[[#This Row],[75th]]-AAMC_Raw_Data_for_FY22[[#This Row],[Median]])/25)*40) + AAMC_Raw_Data_for_FY22[[#This Row],[Median]]","v":304774.40000000002}]
[{"$f":"AAMC_Raw_Data_for_FY22[[#This Row],[Source]]&AAMC_Raw_Data_for_FY22[[#This Row],[Type]]&AAMC_Raw_Data_for_FY22[[#This Row],[School Subset]]&AAMC_Raw_Data_for_FY22[[#This Row],[Rank]]&AAMC_Raw_Data_for_FY22[[#This Row],[Degree]]&AAMC_Raw_Data_for_FY22[[#This Row],[Department / Specialty]]&\"L\"","v":"AAMCAcademicPrivateChiefMDGenetics-Peds.L"},"Genetics-Peds.",6,"AAMC","Academic","Private","Chief","MD","2021-2022",289376,{"$f":"(((AAMC_Raw_Data_for_FY22[[#This Row],[Median]]-AAMC_Raw_Data_for_FY22[[#This Row],[25th]])/25)*5) + AAMC_Raw_Data_for_FY22[[#This Row],[25th]]","v":300248.8},{"$f":"(((AAMC_Raw_Data_for_FY22[[#This Row],[Median]]-AAMC_Raw_Data_for_FY22[[#This Row],[25th]])/25)*10) + AAMC_Raw_Data_for_FY22[[#This Row],[25th]]","v":311121.59999999998},{"$f":"(((AAMC_Raw_Data_for_FY22[[#This Row],[Median]]-AAMC_Raw_Data_for_FY22[[#This Row],[25th]])/25)*15) + AAMC_Raw_Data_for_FY22[[#This Row],[25th]]","v":321994.40000000002},{"$f":"(((AAMC_Raw_Data_for_FY22[[#This Row],[Median]]-AAMC_Raw_Data_for_FY22[[#This Row],[25th]])/25)*20) + AAMC_Raw_Data_for_FY22[[#This Row],[25th]]","v":332867.20000000001},343740,{"$f":"(((AAMC_Raw_Data_for_FY22[[#This Row],[75th]]-AAMC_Raw_Data_for_FY22[[#This Row],[Median]])/25)*5) + AAMC_Raw_Data_for_FY22[[#This Row],[Median]]","v":347631.4},{"$f":"(((AAMC_Raw_Data_for_FY22[[#This Row],[75th]]-AAMC_Raw_Data_for_FY22[[#This Row],[Median]])/25)*10) + AAMC_Raw_Data_for_FY22[[#This Row],[Median]]","v":351522.8},{"$f":"(((AAMC_Raw_Data_for_FY22[[#This Row],[75th]]-AAMC_Raw_Data_for_FY22[[#This Row],[Median]])/25)*15) + AAMC_Raw_Data_for_FY22[[#This Row],[Median]]","v":355414.2},{"$f":"(((AAMC_Raw_Data_for_FY22[[#This Row],[75th]]-AAMC_Raw_Data_for_FY22[[#This Row],[Median]])/25)*20) + AAMC_Raw_Data_for_FY22[[#This Row],[Median]]","v":359305.6},363197,{"$f":"(((AAMC_Raw_Data_for_FY22[[#This Row],[75th]]-AAMC_Raw_Data_for_FY22[[#This Row],[Median]])/25)*30) + AAMC_Raw_Data_for_FY22[[#This Row],[Median]]","v":367088.4},{"$f":"(((AAMC_Raw_Data_for_FY22[[#This Row],[75th]]-AAMC_Raw_Data_for_FY22[[#This Row],[Median]])/25)*35) + AAMC_Raw_Data_for_FY22[[#This Row],[Median]]","v":370979.8},{"$f":"(((AAMC_Raw_Data_for_FY22[[#This Row],[75th]]-AAMC_Raw_Data_for_FY22[[#This Row],[Median]])/25)*40) + AAMC_Raw_Data_for_FY22[[#This Row],[Median]]","v":374871.2}]
[{"$f":"AAMC_Raw_Data_for_FY22[[#This Row],[Source]]&AAMC_Raw_Data_for_FY22[[#This Row],[Type]]&AAMC_Raw_Data_for_FY22[[#This Row],[School Subset]]&AAMC_Raw_Data_for_FY22[[#This Row],[Rank]]&AAMC_Raw_Data_for_FY22[[#This Row],[Degree]]&AAMC_Raw_Data_for_FY22[[#This Row],[Department / Specialty]]&\"L\"","v":"AAMCAcademicPrivateInstructorMDHematology/Oncology-Peds.L"},"Hematology/Oncology-Peds.",5,"AAMC","Academic","Private","Instructor","MD","2021-2022",127620,{"$f":"(((AAMC_Raw_Data_for_FY22[[#This Row],[Median]]-AAMC_Raw_Data_for_FY22[[#This Row],[25th]])/25)*5) + AAMC_Raw_Data_for_FY22[[#This Row],[25th]]","v":132195.20000000001},{"$f":"(((AAMC_Raw_Data_for_FY22[[#This Row],[Median]]-AAMC_Raw_Data_for_FY22[[#This Row],[25th]])/25)*10) + AAMC_Raw_Data_for_FY22[[#This Row],[25th]]","v":136770.4},{"$f":"(((AAMC_Raw_Data_for_FY22[[#This Row],[Median]]-AAMC_Raw_Data_for_FY22[[#This Row],[25th]])/25)*15) + AAMC_Raw_Data_for_FY22[[#This Row],[25th]]","v":141345.60000000001},{"$f":"(((AAMC_Raw_Data_for_FY22[[#This Row],[Median]]-AAMC_Raw_Data_for_FY22[[#This Row],[25th]])/25)*20) + AAMC_Raw_Data_for_FY22[[#This Row],[25th]]","v":145920.79999999999},150496,{"$f":"(((AAMC_Raw_Data_for_FY22[[#This Row],[75th]]-AAMC_Raw_Data_for_FY22[[#This Row],[Median]])/25)*5) + AAMC_Raw_Data_for_FY22[[#This Row],[Median]]","v":156084.79999999999},{"$f":"(((AAMC_Raw_Data_for_FY22[[#This Row],[75th]]-AAMC_Raw_Data_for_FY22[[#This Row],[Median]])/25)*10) + AAMC_Raw_Data_for_FY22[[#This Row],[Median]]","v":161673.60000000001},{"$f":"(((AAMC_Raw_Data_for_FY22[[#This Row],[75th]]-AAMC_Raw_Data_for_FY22[[#This Row],[Median]])/25)*15) + AAMC_Raw_Data_for_FY22[[#This Row],[Median]]","v":167262.39999999999},{"$f":"(((AAMC_Raw_Data_for_FY22[[#This Row],[75th]]-AAMC_Raw_Data_for_FY22[[#This Row],[Median]])/25)*20) + AAMC_Raw_Data_for_FY22[[#This Row],[Median]]","v":172851.20000000001},178440,{"$f":"(((AAMC_Raw_Data_for_FY22[[#This Row],[75th]]-AAMC_Raw_Data_for_FY22[[#This Row],[Median]])/25)*30) + AAMC_Raw_Data_for_FY22[[#This Row],[Median]]","v":184028.79999999999},{"$f":"(((AAMC_Raw_Data_for_FY22[[#This Row],[75th]]-AAMC_Raw_Data_for_FY22[[#This Row],[Median]])/25)*35) + AAMC_Raw_Data_for_FY22[[#This Row],[Median]]","v":189617.6},{"$f":"(((AAMC_Raw_Data_for_FY22[[#This Row],[75th]]-AAMC_Raw_Data_for_FY22[[#This Row],[Median]])/25)*40) + AAMC_Raw_Data_for_FY22[[#This Row],[Median]]","v":195206.39999999999}]
[{"$f":"AAMC_Raw_Data_for_FY22[[#This Row],[Source]]&AAMC_Raw_Data_for_FY22[[#This Row],[Type]]&AAMC_Raw_Data_for_FY22[[#This Row],[School Subset]]&AAMC_Raw_Data_for_FY22[[#This Row],[Rank]]&AAMC_Raw_Data_for_FY22[[#This Row],[Degree]]&AAMC_Raw_Data_for_FY22[[#This Row],[Department / Specialty]]&\"L\"","v":"AAMCAcademicPrivateAssistantMDHematology/Oncology-Peds.L"},"Hematology/Oncology-Peds.",4,"AAMC","Academic","Private","Assistant","MD","2021-2022",178750,{"$f":"(((AAMC_Raw_Data_for_FY22[[#This Row],[Median]]-AAMC_Raw_Data_for_FY22[[#This Row],[25th]])/25)*5) + AAMC_Raw_Data_for_FY22[[#This Row],[25th]]","v":181864.4},{"$f":"(((AAMC_Raw_Data_for_FY22[[#This Row],[Median]]-AAMC_Raw_Data_for_FY22[[#This Row],[25th]])/25)*10) + AAMC_Raw_Data_for_FY22[[#This Row],[25th]]","v":184978.8},{"$f":"(((AAMC_Raw_Data_for_FY22[[#This Row],[Median]]-AAMC_Raw_Data_for_FY22[[#This Row],[25th]])/25)*15) + AAMC_Raw_Data_for_FY22[[#This Row],[25th]]","v":188093.2},{"$f":"(((AAMC_Raw_Data_for_FY22[[#This Row],[Median]]-AAMC_Raw_Data_for_FY22[[#This Row],[25th]])/25)*20) + AAMC_Raw_Data_for_FY22[[#This Row],[25th]]","v":191207.6},194322,{"$f":"(((AAMC_Raw_Data_for_FY22[[#This Row],[75th]]-AAMC_Raw_Data_for_FY22[[#This Row],[Median]])/25)*5) + AAMC_Raw_Data_for_FY22[[#This Row],[Median]]","v":197855.4},{"$f":"(((AAMC_Raw_Data_for_FY22[[#This Row],[75th]]-AAMC_Raw_Data_for_FY22[[#This Row],[Median]])/25)*10) + AAMC_Raw_Data_for_FY22[[#This Row],[Median]]","v":201388.79999999999},{"$f":"(((AAMC_Raw_Data_for_FY22[[#This Row],[75th]]-AAMC_Raw_Data_for_FY22[[#This Row],[Median]])/25)*15) + AAMC_Raw_Data_for_FY22[[#This Row],[Median]]","v":204922.2},{"$f":"(((AAMC_Raw_Data_for_FY22[[#This Row],[75th]]-AAMC_Raw_Data_for_FY22[[#This Row],[Median]])/25)*20) + AAMC_Raw_Data_for_FY22[[#This Row],[Median]]","v":208455.6},211989,{"$f":"(((AAMC_Raw_Data_for_FY22[[#This Row],[75th]]-AAMC_Raw_Data_for_FY22[[#This Row],[Median]])/25)*30) + AAMC_Raw_Data_for_FY22[[#This Row],[Median]]","v":215522.4},{"$f":"(((AAMC_Raw_Data_for_FY22[[#This Row],[75th]]-AAMC_Raw_Data_for_FY22[[#This Row],[Median]])/25)*35) + AAMC_Raw_Data_for_FY22[[#This Row],[Median]]","v":219055.8},{"$f":"(((AAMC_Raw_Data_for_FY22[[#This Row],[75th]]-AAMC_Raw_Data_for_FY22[[#This Row],[Median]])/25)*40) + AAMC_Raw_Data_for_FY22[[#This Row],[Median]]","v":222589.2}]
[{"$f":"AAMC_Raw_Data_for_FY22[[#This Row],[Source]]&AAMC_Raw_Data_for_FY22[[#This Row],[Type]]&AAMC_Raw_Data_for_FY22[[#This Row],[School Subset]]&AAMC_Raw_Data_for_FY22[[#This Row],[Rank]]&AAMC_Raw_Data_for_FY22[[#This Row],[Degree]]&AAMC_Raw_Data_for_FY22[[#This Row],[Department / Specialty]]&\"L\"","v":"AAMCAcademicPrivateAssociateMDHematology/Oncology-Peds.L"},"Hematology/Oncology-Peds.",3,"AAMC","Academic","Private","Associate","MD","2021-2022",224990,{"$f":"(((AAMC_Raw_Data_for_FY22[[#This Row],[Median]]-AAMC_Raw_Data_for_FY22[[#This Row],[25th]])/25)*5) + AAMC_Raw_Data_for_FY22[[#This Row],[25th]]","v":229407.6},{"$f":"(((AAMC_Raw_Data_for_FY22[[#This Row],[Median]]-AAMC_Raw_Data_for_FY22[[#This Row],[25th]])/25)*10) + AAMC_Raw_Data_for_FY22[[#This Row],[25th]]","v":233825.2},{"$f":"(((AAMC_Raw_Data_for_FY22[[#This Row],[Median]]-AAMC_Raw_Data_for_FY22[[#This Row],[25th]])/25)*15) + AAMC_Raw_Data_for_FY22[[#This Row],[25th]]","v":238242.8},{"$f":"(((AAMC_Raw_Data_for_FY22[[#This Row],[Median]]-AAMC_Raw_Data_for_FY22[[#This Row],[25th]])/25)*20) + AAMC_Raw_Data_for_FY22[[#This Row],[25th]]","v":242660.4},247078,{"$f":"(((AAMC_Raw_Data_for_FY22[[#This Row],[75th]]-AAMC_Raw_Data_for_FY22[[#This Row],[Median]])/25)*5) + AAMC_Raw_Data_for_FY22[[#This Row],[Median]]","v":250111.2},{"$f":"(((AAMC_Raw_Data_for_FY22[[#This Row],[75th]]-AAMC_Raw_Data_for_FY22[[#This Row],[Median]])/25)*10) + AAMC_Raw_Data_for_FY22[[#This Row],[Median]]","v":253144.4},{"$f":"(((AAMC_Raw_Data_for_FY22[[#This Row],[75th]]-AAMC_Raw_Data_for_FY22[[#This Row],[Median]])/25)*15) + AAMC_Raw_Data_for_FY22[[#This Row],[Median]]","v":256177.6},{"$f":"(((AAMC_Raw_Data_for_FY22[[#This Row],[75th]]-AAMC_Raw_Data_for_FY22[[#This Row],[Median]])/25)*20) + AAMC_Raw_Data_for_FY22[[#This Row],[Median]]","v":259210.8},262244,{"$f":"(((AAMC_Raw_Data_for_FY22[[#This Row],[75th]]-AAMC_Raw_Data_for_FY22[[#This Row],[Median]])/25)*30) + AAMC_Raw_Data_for_FY22[[#This Row],[Median]]","v":265277.2},{"$f":"(((AAMC_Raw_Data_for_FY22[[#This Row],[75th]]-AAMC_Raw_Data_for_FY22[[#This Row],[Median]])/25)*35) + AAMC_Raw_Data_for_FY22[[#This Row],[Median]]","v":268310.40000000002},{"$f":"(((AAMC_Raw_Data_for_FY22[[#This Row],[75th]]-AAMC_Raw_Data_for_FY22[[#This Row],[Median]])/25)*40) + AAMC_Raw_Data_for_FY22[[#This Row],[Median]]","v":271343.59999999998}]
[{"$f":"AAMC_Raw_Data_for_FY22[[#This Row],[Source]]&AAMC_Raw_Data_for_FY22[[#This Row],[Type]]&AAMC_Raw_Data_for_FY22[[#This Row],[School Subset]]&AAMC_Raw_Data_for_FY22[[#This Row],[Rank]]&AAMC_Raw_Data_for_FY22[[#This Row],[Degree]]&AAMC_Raw_Data_for_FY22[[#This Row],[Department / Specialty]]&\"L\"","v":"AAMCAcademicPrivateProfessorMDHematology/Oncology-Peds.L"},"Hematology/Oncology-Peds.",2,"AAMC","Academic","Private","Professor","MD","2021-2022",281519,{"$f":"(((AAMC_Raw_Data_for_FY22[[#This Row],[Median]]-AAMC_Raw_Data_for_FY22[[#This Row],[25th]])/25)*5) + AAMC_Raw_Data_for_FY22[[#This Row],[25th]]","v":287031.8},{"$f":"(((AAMC_Raw_Data_for_FY22[[#This Row],[Median]]-AAMC_Raw_Data_for_FY22[[#This Row],[25th]])/25)*10) + AAMC_Raw_Data_for_FY22[[#This Row],[25th]]","v":292544.59999999998},{"$f":"(((AAMC_Raw_Data_for_FY22[[#This Row],[Median]]-AAMC_Raw_Data_for_FY22[[#This Row],[25th]])/25)*15) + AAMC_Raw_Data_for_FY22[[#This Row],[25th]]","v":298057.40000000002},{"$f":"(((AAMC_Raw_Data_for_FY22[[#This Row],[Median]]-AAMC_Raw_Data_for_FY22[[#This Row],[25th]])/25)*20) + AAMC_Raw_Data_for_FY22[[#This Row],[25th]]","v":303570.2},309083,{"$f":"(((AAMC_Raw_Data_for_FY22[[#This Row],[75th]]-AAMC_Raw_Data_for_FY22[[#This Row],[Median]])/25)*5) + AAMC_Raw_Data_for_FY22[[#This Row],[Median]]","v":320805.59999999998},{"$f":"(((AAMC_Raw_Data_for_FY22[[#This Row],[75th]]-AAMC_Raw_Data_for_FY22[[#This Row],[Median]])/25)*10) + AAMC_Raw_Data_for_FY22[[#This Row],[Median]]","v":332528.2},{"$f":"(((AAMC_Raw_Data_for_FY22[[#This Row],[75th]]-AAMC_Raw_Data_for_FY22[[#This Row],[Median]])/25)*15) + AAMC_Raw_Data_for_FY22[[#This Row],[Median]]","v":344250.8},{"$f":"(((AAMC_Raw_Data_for_FY22[[#This Row],[75th]]-AAMC_Raw_Data_for_FY22[[#This Row],[Median]])/25)*20) + AAMC_Raw_Data_for_FY22[[#This Row],[Median]]","v":355973.4},367696,{"$f":"(((AAMC_Raw_Data_for_FY22[[#This Row],[75th]]-AAMC_Raw_Data_for_FY22[[#This Row],[Median]])/25)*30) + AAMC_Raw_Data_for_FY22[[#This Row],[Median]]","v":379418.6},{"$f":"(((AAMC_Raw_Data_for_FY22[[#This Row],[75th]]-AAMC_Raw_Data_for_FY22[[#This Row],[Median]])/25)*35) + AAMC_Raw_Data_for_FY22[[#This Row],[Median]]","v":391141.2},{"$f":"(((AAMC_Raw_Data_for_FY22[[#This Row],[75th]]-AAMC_Raw_Data_for_FY22[[#This Row],[Median]])/25)*40) + AAMC_Raw_Data_for_FY22[[#This Row],[Median]]","v":402863.8}]
[{"$f":"AAMC_Raw_Data_for_FY22[[#This Row],[Source]]&AAMC_Raw_Data_for_FY22[[#This Row],[Type]]&AAMC_Raw_Data_for_FY22[[#This Row],[School Subset]]&AAMC_Raw_Data_for_FY22[[#This Row],[Rank]]&AAMC_Raw_Data_for_FY22[[#This Row],[Degree]]&AAMC_Raw_Data_for_FY22[[#This Row],[Department / Specialty]]&\"L\"","v":"AAMCAcademicPrivateChiefMDHematology/Oncology-Peds.L"},"Hematology/Oncology-Peds.",6,"AAMC","Academic","Private","Chief","MD","2021-2022",334699,{"$f":"(((AAMC_Raw_Data_for_FY22[[#This Row],[Median]]-AAMC_Raw_Data_for_FY22[[#This Row],[25th]])/25)*5) + AAMC_Raw_Data_for_FY22[[#This Row],[25th]]","v":345387},{"$f":"(((AAMC_Raw_Data_for_FY22[[#This Row],[Median]]-AAMC_Raw_Data_for_FY22[[#This Row],[25th]])/25)*10) + AAMC_Raw_Data_for_FY22[[#This Row],[25th]]","v":356075},{"$f":"(((AAMC_Raw_Data_for_FY22[[#This Row],[Median]]-AAMC_Raw_Data_for_FY22[[#This Row],[25th]])/25)*15) + AAMC_Raw_Data_for_FY22[[#This Row],[25th]]","v":366763},{"$f":"(((AAMC_Raw_Data_for_FY22[[#This Row],[Median]]-AAMC_Raw_Data_for_FY22[[#This Row],[25th]])/25)*20) + AAMC_Raw_Data_for_FY22[[#This Row],[25th]]","v":377451},388139,{"$f":"(((AAMC_Raw_Data_for_FY22[[#This Row],[75th]]-AAMC_Raw_Data_for_FY22[[#This Row],[Median]])/25)*5) + AAMC_Raw_Data_for_FY22[[#This Row],[Median]]","v":401873.4},{"$f":"(((AAMC_Raw_Data_for_FY22[[#This Row],[75th]]-AAMC_Raw_Data_for_FY22[[#This Row],[Median]])/25)*10) + AAMC_Raw_Data_for_FY22[[#This Row],[Median]]","v":415607.8},{"$f":"(((AAMC_Raw_Data_for_FY22[[#This Row],[75th]]-AAMC_Raw_Data_for_FY22[[#This Row],[Median]])/25)*15) + AAMC_Raw_Data_for_FY22[[#This Row],[Median]]","v":429342.2},{"$f":"(((AAMC_Raw_Data_for_FY22[[#This Row],[75th]]-AAMC_Raw_Data_for_FY22[[#This Row],[Median]])/25)*20) + AAMC_Raw_Data_for_FY22[[#This Row],[Median]]","v":443076.6},456811,{"$f":"(((AAMC_Raw_Data_for_FY22[[#This Row],[75th]]-AAMC_Raw_Data_for_FY22[[#This Row],[Median]])/25)*30) + AAMC_Raw_Data_for_FY22[[#This Row],[Median]]","v":470545.4},{"$f":"(((AAMC_Raw_Data_for_FY22[[#This Row],[75th]]-AAMC_Raw_Data_for_FY22[[#This Row],[Median]])/25)*35) + AAMC_Raw_Data_for_FY22[[#This Row],[Median]]","v":484279.8},{"$f":"(((AAMC_Raw_Data_for_FY22[[#This Row],[75th]]-AAMC_Raw_Data_for_FY22[[#This Row],[Median]])/25)*40) + AAMC_Raw_Data_for_FY22[[#This Row],[Median]]","v":498014.2}]
[{"$f":"AAMC_Raw_Data_for_FY22[[#This Row],[Source]]&AAMC_Raw_Data_for_FY22[[#This Row],[Type]]&AAMC_Raw_Data_for_FY22[[#This Row],[School Subset]]&AAMC_Raw_Data_for_FY22[[#This Row],[Rank]]&AAMC_Raw_Data_for_FY22[[#This Row],[Degree]]&AAMC_Raw_Data_for_FY22[[#This Row],[Department / Specialty]]&\"L\"","v":"AAMCAcademicPrivateChairMDHematology/Oncology-Peds.L"},"Hematology/Oncology-Peds.",1,"AAMC","Academic","Private","Chair","MD","2021-2022",null,{"$f":"(((AAMC_Raw_Data_for_FY22[[#This Row],[Median]]-AAMC_Raw_Data_for_FY22[[#This Row],[25th]])/25)*5) + AAMC_Raw_Data_for_FY22[[#This Row],[25th]]","v":0},{"$f":"(((AAMC_Raw_Data_for_FY22[[#This Row],[Median]]-AAMC_Raw_Data_for_FY22[[#This Row],[25th]])/25)*10) + AAMC_Raw_Data_for_FY22[[#This Row],[25th]]","v":0},{"$f":"(((AAMC_Raw_Data_for_FY22[[#This Row],[Median]]-AAMC_Raw_Data_for_FY22[[#This Row],[25th]])/25)*15) + AAMC_Raw_Data_for_FY22[[#This Row],[25th]]","v":0},{"$f":"(((AAMC_Raw_Data_for_FY22[[#This Row],[Median]]-AAMC_Raw_Data_for_FY22[[#This Row],[25th]])/25)*20) + AAMC_Raw_Data_for_FY22[[#This Row],[25th]]","v":0},null,{"$f":"(((AAMC_Raw_Data_for_FY22[[#This Row],[75th]]-AAMC_Raw_Data_for_FY22[[#This Row],[Median]])/25)*5) + AAMC_Raw_Data_for_FY22[[#This Row],[Median]]","v":0},{"$f":"(((AAMC_Raw_Data_for_FY22[[#This Row],[75th]]-AAMC_Raw_Data_for_FY22[[#This Row],[Median]])/25)*10) + AAMC_Raw_Data_for_FY22[[#This Row],[Median]]","v":0},{"$f":"(((AAMC_Raw_Data_for_FY22[[#This Row],[75th]]-AAMC_Raw_Data_for_FY22[[#This Row],[Median]])/25)*15) + AAMC_Raw_Data_for_FY22[[#This Row],[Median]]","v":0},{"$f":"(((AAMC_Raw_Data_for_FY22[[#This Row],[75th]]-AAMC_Raw_Data_for_FY22[[#This Row],[Median]])/25)*20) + AAMC_Raw_Data_for_FY22[[#This Row],[Median]]","v":0},null,{"$f":"(((AAMC_Raw_Data_for_FY22[[#This Row],[75th]]-AAMC_Raw_Data_for_FY22[[#This Row],[Median]])/25)*30) + AAMC_Raw_Data_for_FY22[[#This Row],[Median]]","v":0},{"$f":"(((AAMC_Raw_Data_for_FY22[[#This Row],[75th]]-AAMC_Raw_Data_for_FY22[[#This Row],[Median]])/25)*35) + AAMC_Raw_Data_for_FY22[[#This Row],[Median]]","v":0},{"$f":"(((AAMC_Raw_Data_for_FY22[[#This Row],[75th]]-AAMC_Raw_Data_for_FY22[[#This Row],[Median]])/25)*40) + AAMC_Raw_Data_for_FY22[[#This Row],[Median]]","v":0}]
[{"$f":"AAMC_Raw_Data_for_FY22[[#This Row],[Source]]&AAMC_Raw_Data_for_FY22[[#This Row],[Type]]&AAMC_Raw_Data_for_FY22[[#This Row],[School Subset]]&AAMC_Raw_Data_for_FY22[[#This Row],[Rank]]&AAMC_Raw_Data_for_FY22[[#This Row],[Degree]]&AAMC_Raw_Data_for_FY22[[#This Row],[Department / Specialty]]&\"L\"","v":"AAMCAcademicPrivateInstructorMDHospital Medicine-Peds.L"},"Hospital Medicine-Peds.",5,"AAMC","Academic","Private","Instructor","MD","2021-2022",163410,{"$f":"(((AAMC_Raw_Data_for_FY22[[#This Row],[Median]]-AAMC_Raw_Data_for_FY22[[#This Row],[25th]])/25)*5) + AAMC_Raw_Data_for_FY22[[#This Row],[25th]]","v":169129},{"$f":"(((AAMC_Raw_Data_for_FY22[[#This Row],[Median]]-AAMC_Raw_Data_for_FY22[[#This Row],[25th]])/25)*10) + AAMC_Raw_Data_for_FY22[[#This Row],[25th]]","v":174848},{"$f":"(((AAMC_Raw_Data_for_FY22[[#This Row],[Median]]-AAMC_Raw_Data_for_FY22[[#This Row],[25th]])/25)*15) + AAMC_Raw_Data_for_FY22[[#This Row],[25th]]","v":180567},{"$f":"(((AAMC_Raw_Data_for_FY22[[#This Row],[Median]]-AAMC_Raw_Data_for_FY22[[#This Row],[25th]])/25)*20) + AAMC_Raw_Data_for_FY22[[#This Row],[25th]]","v":186286},192005,{"$f":"(((AAMC_Raw_Data_for_FY22[[#This Row],[75th]]-AAMC_Raw_Data_for_FY22[[#This Row],[Median]])/25)*5) + AAMC_Raw_Data_for_FY22[[#This Row],[Median]]","v":198916.4},{"$f":"(((AAMC_Raw_Data_for_FY22[[#This Row],[75th]]-AAMC_Raw_Data_for_FY22[[#This Row],[Median]])/25)*10) + AAMC_Raw_Data_for_FY22[[#This Row],[Median]]","v":205827.8},{"$f":"(((AAMC_Raw_Data_for_FY22[[#This Row],[75th]]-AAMC_Raw_Data_for_FY22[[#This Row],[Median]])/25)*15) + AAMC_Raw_Data_for_FY22[[#This Row],[Median]]","v":212739.20000000001},{"$f":"(((AAMC_Raw_Data_for_FY22[[#This Row],[75th]]-AAMC_Raw_Data_for_FY22[[#This Row],[Median]])/25)*20) + AAMC_Raw_Data_for_FY22[[#This Row],[Median]]","v":219650.6},226562,{"$f":"(((AAMC_Raw_Data_for_FY22[[#This Row],[75th]]-AAMC_Raw_Data_for_FY22[[#This Row],[Median]])/25)*30) + AAMC_Raw_Data_for_FY22[[#This Row],[Median]]","v":233473.4},{"$f":"(((AAMC_Raw_Data_for_FY22[[#This Row],[75th]]-AAMC_Raw_Data_for_FY22[[#This Row],[Median]])/25)*35) + AAMC_Raw_Data_for_FY22[[#This Row],[Median]]","v":240384.8},{"$f":"(((AAMC_Raw_Data_for_FY22[[#This Row],[75th]]-AAMC_Raw_Data_for_FY22[[#This Row],[Median]])/25)*40) + AAMC_Raw_Data_for_FY22[[#This Row],[Median]]","v":247296.2}]
[{"$f":"AAMC_Raw_Data_for_FY22[[#This Row],[Source]]&AAMC_Raw_Data_for_FY22[[#This Row],[Type]]&AAMC_Raw_Data_for_FY22[[#This Row],[School Subset]]&AAMC_Raw_Data_for_FY22[[#This Row],[Rank]]&AAMC_Raw_Data_for_FY22[[#This Row],[Degree]]&AAMC_Raw_Data_for_FY22[[#This Row],[Department / Specialty]]&\"L\"","v":"AAMCAcademicPrivateAssistantMDHospital Medicine-Peds.L"},"Hospital Medicine-Peds.",4,"AAMC","Academic","Private","Assistant","MD","2021-2022",180655,{"$f":"(((AAMC_Raw_Data_for_FY22[[#This Row],[Median]]-AAMC_Raw_Data_for_FY22[[#This Row],[25th]])/25)*5) + AAMC_Raw_Data_for_FY22[[#This Row],[25th]]","v":184726.2},{"$f":"(((AAMC_Raw_Data_for_FY22[[#This Row],[Median]]-AAMC_Raw_Data_for_FY22[[#This Row],[25th]])/25)*10) + AAMC_Raw_Data_for_FY22[[#This Row],[25th]]","v":188797.4},{"$f":"(((AAMC_Raw_Data_for_FY22[[#This Row],[Median]]-AAMC_Raw_Data_for_FY22[[#This Row],[25th]])/25)*15) + AAMC_Raw_Data_for_FY22[[#This Row],[25th]]","v":192868.6},{"$f":"(((AAMC_Raw_Data_for_FY22[[#This Row],[Median]]-AAMC_Raw_Data_for_FY22[[#This Row],[25th]])/25)*20) + AAMC_Raw_Data_for_FY22[[#This Row],[25th]]","v":196939.8},201011,{"$f":"(((AAMC_Raw_Data_for_FY22[[#This Row],[75th]]-AAMC_Raw_Data_for_FY22[[#This Row],[Median]])/25)*5) + AAMC_Raw_Data_for_FY22[[#This Row],[Median]]","v":207240.4},{"$f":"(((AAMC_Raw_Data_for_FY22[[#This Row],[75th]]-AAMC_Raw_Data_for_FY22[[#This Row],[Median]])/25)*10) + AAMC_Raw_Data_for_FY22[[#This Row],[Median]]","v":213469.8},{"$f":"(((AAMC_Raw_Data_for_FY22[[#This Row],[75th]]-AAMC_Raw_Data_for_FY22[[#This Row],[Median]])/25)*15) + AAMC_Raw_Data_for_FY22[[#This Row],[Median]]","v":219699.20000000001},{"$f":"(((AAMC_Raw_Data_for_FY22[[#This Row],[75th]]-AAMC_Raw_Data_for_FY22[[#This Row],[Median]])/25)*20) + AAMC_Raw_Data_for_FY22[[#This Row],[Median]]","v":225928.6},232158,{"$f":"(((AAMC_Raw_Data_for_FY22[[#This Row],[75th]]-AAMC_Raw_Data_for_FY22[[#This Row],[Median]])/25)*30) + AAMC_Raw_Data_for_FY22[[#This Row],[Median]]","v":238387.4},{"$f":"(((AAMC_Raw_Data_for_FY22[[#This Row],[75th]]-AAMC_Raw_Data_for_FY22[[#This Row],[Median]])/25)*35) + AAMC_Raw_Data_for_FY22[[#This Row],[Median]]","v":244616.8},{"$f":"(((AAMC_Raw_Data_for_FY22[[#This Row],[75th]]-AAMC_Raw_Data_for_FY22[[#This Row],[Median]])/25)*40) + AAMC_Raw_Data_for_FY22[[#This Row],[Median]]","v":250846.2}]
[{"$f":"AAMC_Raw_Data_for_FY22[[#This Row],[Source]]&AAMC_Raw_Data_for_FY22[[#This Row],[Type]]&AAMC_Raw_Data_for_FY22[[#This Row],[School Subset]]&AAMC_Raw_Data_for_FY22[[#This Row],[Rank]]&AAMC_Raw_Data_for_FY22[[#This Row],[Degree]]&AAMC_Raw_Data_for_FY22[[#This Row],[Department / Specialty]]&\"L\"","v":"AAMCAcademicPrivateAssociateMDHospital Medicine-Peds.L"},"Hospital Medicine-Peds.",3,"AAMC","Academic","Private","Associate","MD","2021-2022",213575,{"$f":"(((AAMC_Raw_Data_for_FY22[[#This Row],[Median]]-AAMC_Raw_Data_for_FY22[[#This Row],[25th]])/25)*5) + AAMC_Raw_Data_for_FY22[[#This Row],[25th]]","v":217944},{"$f":"(((AAMC_Raw_Data_for_FY22[[#This Row],[Median]]-AAMC_Raw_Data_for_FY22[[#This Row],[25th]])/25)*10) + AAMC_Raw_Data_for_FY22[[#This Row],[25th]]","v":222313},{"$f":"(((AAMC_Raw_Data_for_FY22[[#This Row],[Median]]-AAMC_Raw_Data_for_FY22[[#This Row],[25th]])/25)*15) + AAMC_Raw_Data_for_FY22[[#This Row],[25th]]","v":226682},{"$f":"(((AAMC_Raw_Data_for_FY22[[#This Row],[Median]]-AAMC_Raw_Data_for_FY22[[#This Row],[25th]])/25)*20) + AAMC_Raw_Data_for_FY22[[#This Row],[25th]]","v":231051},235420,{"$f":"(((AAMC_Raw_Data_for_FY22[[#This Row],[75th]]-AAMC_Raw_Data_for_FY22[[#This Row],[Median]])/25)*5) + AAMC_Raw_Data_for_FY22[[#This Row],[Median]]","v":246503.8},{"$f":"(((AAMC_Raw_Data_for_FY22[[#This Row],[75th]]-AAMC_Raw_Data_for_FY22[[#This Row],[Median]])/25)*10) + AAMC_Raw_Data_for_FY22[[#This Row],[Median]]","v":257587.6},{"$f":"(((AAMC_Raw_Data_for_FY22[[#This Row],[75th]]-AAMC_Raw_Data_for_FY22[[#This Row],[Median]])/25)*15) + AAMC_Raw_Data_for_FY22[[#This Row],[Median]]","v":268671.40000000002},{"$f":"(((AAMC_Raw_Data_for_FY22[[#This Row],[75th]]-AAMC_Raw_Data_for_FY22[[#This Row],[Median]])/25)*20) + AAMC_Raw_Data_for_FY22[[#This Row],[Median]]","v":279755.2},290839,{"$f":"(((AAMC_Raw_Data_for_FY22[[#This Row],[75th]]-AAMC_Raw_Data_for_FY22[[#This Row],[Median]])/25)*30) + AAMC_Raw_Data_for_FY22[[#This Row],[Median]]","v":301922.8},{"$f":"(((AAMC_Raw_Data_for_FY22[[#This Row],[75th]]-AAMC_Raw_Data_for_FY22[[#This Row],[Median]])/25)*35) + AAMC_Raw_Data_for_FY22[[#This Row],[Median]]","v":313006.59999999998},{"$f":"(((AAMC_Raw_Data_for_FY22[[#This Row],[75th]]-AAMC_Raw_Data_for_FY22[[#This Row],[Median]])/25)*40) + AAMC_Raw_Data_for_FY22[[#This Row],[Median]]","v":324090.40000000002}]
[{"$f":"AAMC_Raw_Data_for_FY22[[#This Row],[Source]]&AAMC_Raw_Data_for_FY22[[#This Row],[Type]]&AAMC_Raw_Data_for_FY22[[#This Row],[School Subset]]&AAMC_Raw_Data_for_FY22[[#This Row],[Rank]]&AAMC_Raw_Data_for_FY22[[#This Row],[Degree]]&AAMC_Raw_Data_for_FY22[[#This Row],[Department / Specialty]]&\"L\"","v":"AAMCAcademicPrivateProfessorMDHospital Medicine-Peds.L"},"Hospital Medicine-Peds.",2,"AAMC","Academic","Private","Professor","MD","2021-2022",279132,{"$f":"(((AAMC_Raw_Data_for_FY22[[#This Row],[Median]]-AAMC_Raw_Data_for_FY22[[#This Row],[25th]])/25)*5) + AAMC_Raw_Data_for_FY22[[#This Row],[25th]]","v":288969.59999999998},{"$f":"(((AAMC_Raw_Data_for_FY22[[#This Row],[Median]]-AAMC_Raw_Data_for_FY22[[#This Row],[25th]])/25)*10) + AAMC_Raw_Data_for_FY22[[#This Row],[25th]]","v":298807.2},{"$f":"(((AAMC_Raw_Data_for_FY22[[#This Row],[Median]]-AAMC_Raw_Data_for_FY22[[#This Row],[25th]])/25)*15) + AAMC_Raw_Data_for_FY22[[#This Row],[25th]]","v":308644.8},{"$f":"(((AAMC_Raw_Data_for_FY22[[#This Row],[Median]]-AAMC_Raw_Data_for_FY22[[#This Row],[25th]])/25)*20) + AAMC_Raw_Data_for_FY22[[#This Row],[25th]]","v":318482.40000000002},328320,{"$f":"(((AAMC_Raw_Data_for_FY22[[#This Row],[75th]]-AAMC_Raw_Data_for_FY22[[#This Row],[Median]])/25)*5) + AAMC_Raw_Data_for_FY22[[#This Row],[Median]]","v":344711.8},{"$f":"(((AAMC_Raw_Data_for_FY22[[#This Row],[75th]]-AAMC_Raw_Data_for_FY22[[#This Row],[Median]])/25)*10) + AAMC_Raw_Data_for_FY22[[#This Row],[Median]]","v":361103.6},{"$f":"(((AAMC_Raw_Data_for_FY22[[#This Row],[75th]]-AAMC_Raw_Data_for_FY22[[#This Row],[Median]])/25)*15) + AAMC_Raw_Data_for_FY22[[#This Row],[Median]]","v":377495.4},{"$f":"(((AAMC_Raw_Data_for_FY22[[#This Row],[75th]]-AAMC_Raw_Data_for_FY22[[#This Row],[Median]])/25)*20) + AAMC_Raw_Data_for_FY22[[#This Row],[Median]]","v":393887.2},410279,{"$f":"(((AAMC_Raw_Data_for_FY22[[#This Row],[75th]]-AAMC_Raw_Data_for_FY22[[#This Row],[Median]])/25)*30) + AAMC_Raw_Data_for_FY22[[#This Row],[Median]]","v":426670.8},{"$f":"(((AAMC_Raw_Data_for_FY22[[#This Row],[75th]]-AAMC_Raw_Data_for_FY22[[#This Row],[Median]])/25)*35) + AAMC_Raw_Data_for_FY22[[#This Row],[Median]]","v":443062.6},{"$f":"(((AAMC_Raw_Data_for_FY22[[#This Row],[75th]]-AAMC_Raw_Data_for_FY22[[#This Row],[Median]])/25)*40) + AAMC_Raw_Data_for_FY22[[#This Row],[Median]]","v":459454.4}]
[{"$f":"AAMC_Raw_Data_for_FY22[[#This Row],[Source]]&AAMC_Raw_Data_for_FY22[[#This Row],[Type]]&AAMC_Raw_Data_for_FY22[[#This Row],[School Subset]]&AAMC_Raw_Data_for_FY22[[#This Row],[Rank]]&AAMC_Raw_Data_for_FY22[[#This Row],[Degree]]&AAMC_Raw_Data_for_FY22[[#This Row],[Department / Specialty]]&\"L\"","v":"AAMCAcademicPrivateChiefMDHospital Medicine-Peds.L"},"Hospital Medicine-Peds.",6,"AAMC","Academic","Private","Chief","MD","2021-2022",241216,{"$f":"(((AAMC_Raw_Data_for_FY22[[#This Row],[Median]]-AAMC_Raw_Data_for_FY22[[#This Row],[25th]])/25)*5) + AAMC_Raw_Data_for_FY22[[#This Row],[25th]]","v":245512.6},{"$f":"(((AAMC_Raw_Data_for_FY22[[#This Row],[Median]]-AAMC_Raw_Data_for_FY22[[#This Row],[25th]])/25)*10) + AAMC_Raw_Data_for_FY22[[#This Row],[25th]]","v":249809.2},{"$f":"(((AAMC_Raw_Data_for_FY22[[#This Row],[Median]]-AAMC_Raw_Data_for_FY22[[#This Row],[25th]])/25)*15) + AAMC_Raw_Data_for_FY22[[#This Row],[25th]]","v":254105.8},{"$f":"(((AAMC_Raw_Data_for_FY22[[#This Row],[Median]]-AAMC_Raw_Data_for_FY22[[#This Row],[25th]])/25)*20) + AAMC_Raw_Data_for_FY22[[#This Row],[25th]]","v":258402.4},262699,{"$f":"(((AAMC_Raw_Data_for_FY22[[#This Row],[75th]]-AAMC_Raw_Data_for_FY22[[#This Row],[Median]])/25)*5) + AAMC_Raw_Data_for_FY22[[#This Row],[Median]]","v":282054.2},{"$f":"(((AAMC_Raw_Data_for_FY22[[#This Row],[75th]]-AAMC_Raw_Data_for_FY22[[#This Row],[Median]])/25)*10) + AAMC_Raw_Data_for_FY22[[#This Row],[Median]]","v":301409.40000000002},{"$f":"(((AAMC_Raw_Data_for_FY22[[#This Row],[75th]]-AAMC_Raw_Data_for_FY22[[#This Row],[Median]])/25)*15) + AAMC_Raw_Data_for_FY22[[#This Row],[Median]]","v":320764.59999999998},{"$f":"(((AAMC_Raw_Data_for_FY22[[#This Row],[75th]]-AAMC_Raw_Data_for_FY22[[#This Row],[Median]])/25)*20) + AAMC_Raw_Data_for_FY22[[#This Row],[Median]]","v":340119.8},359475,{"$f":"(((AAMC_Raw_Data_for_FY22[[#This Row],[75th]]-AAMC_Raw_Data_for_FY22[[#This Row],[Median]])/25)*30) + AAMC_Raw_Data_for_FY22[[#This Row],[Median]]","v":378830.2},{"$f":"(((AAMC_Raw_Data_for_FY22[[#This Row],[75th]]-AAMC_Raw_Data_for_FY22[[#This Row],[Median]])/25)*35) + AAMC_Raw_Data_for_FY22[[#This Row],[Median]]","v":398185.4},{"$f":"(((AAMC_Raw_Data_for_FY22[[#This Row],[75th]]-AAMC_Raw_Data_for_FY22[[#This Row],[Median]])/25)*40) + AAMC_Raw_Data_for_FY22[[#This Row],[Median]]","v":417540.6}]
[{"$f":"AAMC_Raw_Data_for_FY22[[#This Row],[Source]]&AAMC_Raw_Data_for_FY22[[#This Row],[Type]]&AAMC_Raw_Data_for_FY22[[#This Row],[School Subset]]&AAMC_Raw_Data_for_FY22[[#This Row],[Rank]]&AAMC_Raw_Data_for_FY22[[#This Row],[Degree]]&AAMC_Raw_Data_for_FY22[[#This Row],[Department / Specialty]]&\"L\"","v":"AAMCAcademicPrivateInstructorMDInfectious Disease-Peds.L"},"Infectious Disease-Peds.",5,"AAMC","Academic","Private","Instructor","MD","2021-2022",null,{"$f":"(((AAMC_Raw_Data_for_FY22[[#This Row],[Median]]-AAMC_Raw_Data_for_FY22[[#This Row],[25th]])/25)*5) + AAMC_Raw_Data_for_FY22[[#This Row],[25th]]","v":0},{"$f":"(((AAMC_Raw_Data_for_FY22[[#This Row],[Median]]-AAMC_Raw_Data_for_FY22[[#This Row],[25th]])/25)*10) + AAMC_Raw_Data_for_FY22[[#This Row],[25th]]","v":0},{"$f":"(((AAMC_Raw_Data_for_FY22[[#This Row],[Median]]-AAMC_Raw_Data_for_FY22[[#This Row],[25th]])/25)*15) + AAMC_Raw_Data_for_FY22[[#This Row],[25th]]","v":0},{"$f":"(((AAMC_Raw_Data_for_FY22[[#This Row],[Median]]-AAMC_Raw_Data_for_FY22[[#This Row],[25th]])/25)*20) + AAMC_Raw_Data_for_FY22[[#This Row],[25th]]","v":0},null,{"$f":"(((AAMC_Raw_Data_for_FY22[[#This Row],[75th]]-AAMC_Raw_Data_for_FY22[[#This Row],[Median]])/25)*5) + AAMC_Raw_Data_for_FY22[[#This Row],[Median]]","v":0},{"$f":"(((AAMC_Raw_Data_for_FY22[[#This Row],[75th]]-AAMC_Raw_Data_for_FY22[[#This Row],[Median]])/25)*10) + AAMC_Raw_Data_for_FY22[[#This Row],[Median]]","v":0},{"$f":"(((AAMC_Raw_Data_for_FY22[[#This Row],[75th]]-AAMC_Raw_Data_for_FY22[[#This Row],[Median]])/25)*15) + AAMC_Raw_Data_for_FY22[[#This Row],[Median]]","v":0},{"$f":"(((AAMC_Raw_Data_for_FY22[[#This Row],[75th]]-AAMC_Raw_Data_for_FY22[[#This Row],[Median]])/25)*20) + AAMC_Raw_Data_for_FY22[[#This Row],[Median]]","v":0},null,{"$f":"(((AAMC_Raw_Data_for_FY22[[#This Row],[75th]]-AAMC_Raw_Data_for_FY22[[#This Row],[Median]])/25)*30) + AAMC_Raw_Data_for_FY22[[#This Row],[Median]]","v":0},{"$f":"(((AAMC_Raw_Data_for_FY22[[#This Row],[75th]]-AAMC_Raw_Data_for_FY22[[#This Row],[Median]])/25)*35) + AAMC_Raw_Data_for_FY22[[#This Row],[Median]]","v":0},{"$f":"(((AAMC_Raw_Data_for_FY22[[#This Row],[75th]]-AAMC_Raw_Data_for_FY22[[#This Row],[Median]])/25)*40) + AAMC_Raw_Data_for_FY22[[#This Row],[Median]]","v":0}]
[{"$f":"AAMC_Raw_Data_for_FY22[[#This Row],[Source]]&AAMC_Raw_Data_for_FY22[[#This Row],[Type]]&AAMC_Raw_Data_for_FY22[[#This Row],[School Subset]]&AAMC_Raw_Data_for_FY22[[#This Row],[Rank]]&AAMC_Raw_Data_for_FY22[[#This Row],[Degree]]&AAMC_Raw_Data_for_FY22[[#This Row],[Department / Specialty]]&\"L\"","v":"AAMCAcademicPrivateAssistantMDInfectious Disease-Peds.L"},"Infectious Disease-Peds.",4,"AAMC","Academic","Private","Assistant","MD","2021-2022",156094,{"$f":"(((AAMC_Raw_Data_for_FY22[[#This Row],[Median]]-AAMC_Raw_Data_for_FY22[[#This Row],[25th]])/25)*5) + AAMC_Raw_Data_for_FY22[[#This Row],[25th]]","v":158788.20000000001},{"$f":"(((AAMC_Raw_Data_for_FY22[[#This Row],[Median]]-AAMC_Raw_Data_for_FY22[[#This Row],[25th]])/25)*10) + AAMC_Raw_Data_for_FY22[[#This Row],[25th]]","v":161482.4},{"$f":"(((AAMC_Raw_Data_for_FY22[[#This Row],[Median]]-AAMC_Raw_Data_for_FY22[[#This Row],[25th]])/25)*15) + AAMC_Raw_Data_for_FY22[[#This Row],[25th]]","v":164176.6},{"$f":"(((AAMC_Raw_Data_for_FY22[[#This Row],[Median]]-AAMC_Raw_Data_for_FY22[[#This Row],[25th]])/25)*20) + AAMC_Raw_Data_for_FY22[[#This Row],[25th]]","v":166870.79999999999},169565,{"$f":"(((AAMC_Raw_Data_for_FY22[[#This Row],[75th]]-AAMC_Raw_Data_for_FY22[[#This Row],[Median]])/25)*5) + AAMC_Raw_Data_for_FY22[[#This Row],[Median]]","v":173026.2},{"$f":"(((AAMC_Raw_Data_for_FY22[[#This Row],[75th]]-AAMC_Raw_Data_for_FY22[[#This Row],[Median]])/25)*10) + AAMC_Raw_Data_for_FY22[[#This Row],[Median]]","v":176487.4},{"$f":"(((AAMC_Raw_Data_for_FY22[[#This Row],[75th]]-AAMC_Raw_Data_for_FY22[[#This Row],[Median]])/25)*15) + AAMC_Raw_Data_for_FY22[[#This Row],[Median]]","v":179948.6},{"$f":"(((AAMC_Raw_Data_for_FY22[[#This Row],[75th]]-AAMC_Raw_Data_for_FY22[[#This Row],[Median]])/25)*20) + AAMC_Raw_Data_for_FY22[[#This Row],[Median]]","v":183409.8},186871,{"$f":"(((AAMC_Raw_Data_for_FY22[[#This Row],[75th]]-AAMC_Raw_Data_for_FY22[[#This Row],[Median]])/25)*30) + AAMC_Raw_Data_for_FY22[[#This Row],[Median]]","v":190332.2},{"$f":"(((AAMC_Raw_Data_for_FY22[[#This Row],[75th]]-AAMC_Raw_Data_for_FY22[[#This Row],[Median]])/25)*35) + AAMC_Raw_Data_for_FY22[[#This Row],[Median]]","v":193793.4},{"$f":"(((AAMC_Raw_Data_for_FY22[[#This Row],[75th]]-AAMC_Raw_Data_for_FY22[[#This Row],[Median]])/25)*40) + AAMC_Raw_Data_for_FY22[[#This Row],[Median]]","v":197254.6}]
[{"$f":"AAMC_Raw_Data_for_FY22[[#This Row],[Source]]&AAMC_Raw_Data_for_FY22[[#This Row],[Type]]&AAMC_Raw_Data_for_FY22[[#This Row],[School Subset]]&AAMC_Raw_Data_for_FY22[[#This Row],[Rank]]&AAMC_Raw_Data_for_FY22[[#This Row],[Degree]]&AAMC_Raw_Data_for_FY22[[#This Row],[Department / Specialty]]&\"L\"","v":"AAMCAcademicPrivateAssociateMDInfectious Disease-Peds.L"},"Infectious Disease-Peds.",3,"AAMC","Academic","Private","Associate","MD","2021-2022",192921,{"$f":"(((AAMC_Raw_Data_for_FY22[[#This Row],[Median]]-AAMC_Raw_Data_for_FY22[[#This Row],[25th]])/25)*5) + AAMC_Raw_Data_for_FY22[[#This Row],[25th]]","v":196509.2},{"$f":"(((AAMC_Raw_Data_for_FY22[[#This Row],[Median]]-AAMC_Raw_Data_for_FY22[[#This Row],[25th]])/25)*10) + AAMC_Raw_Data_for_FY22[[#This Row],[25th]]","v":200097.4},{"$f":"(((AAMC_Raw_Data_for_FY22[[#This Row],[Median]]-AAMC_Raw_Data_for_FY22[[#This Row],[25th]])/25)*15) + AAMC_Raw_Data_for_FY22[[#This Row],[25th]]","v":203685.6},{"$f":"(((AAMC_Raw_Data_for_FY22[[#This Row],[Median]]-AAMC_Raw_Data_for_FY22[[#This Row],[25th]])/25)*20) + AAMC_Raw_Data_for_FY22[[#This Row],[25th]]","v":207273.8},210862,{"$f":"(((AAMC_Raw_Data_for_FY22[[#This Row],[75th]]-AAMC_Raw_Data_for_FY22[[#This Row],[Median]])/25)*5) + AAMC_Raw_Data_for_FY22[[#This Row],[Median]]","v":217366.8},{"$f":"(((AAMC_Raw_Data_for_FY22[[#This Row],[75th]]-AAMC_Raw_Data_for_FY22[[#This Row],[Median]])/25)*10) + AAMC_Raw_Data_for_FY22[[#This Row],[Median]]","v":223871.6},{"$f":"(((AAMC_Raw_Data_for_FY22[[#This Row],[75th]]-AAMC_Raw_Data_for_FY22[[#This Row],[Median]])/25)*15) + AAMC_Raw_Data_for_FY22[[#This Row],[Median]]","v":230376.4},{"$f":"(((AAMC_Raw_Data_for_FY22[[#This Row],[75th]]-AAMC_Raw_Data_for_FY22[[#This Row],[Median]])/25)*20) + AAMC_Raw_Data_for_FY22[[#This Row],[Median]]","v":236881.2},243386,{"$f":"(((AAMC_Raw_Data_for_FY22[[#This Row],[75th]]-AAMC_Raw_Data_for_FY22[[#This Row],[Median]])/25)*30) + AAMC_Raw_Data_for_FY22[[#This Row],[Median]]","v":249890.8},{"$f":"(((AAMC_Raw_Data_for_FY22[[#This Row],[75th]]-AAMC_Raw_Data_for_FY22[[#This Row],[Median]])/25)*35) + AAMC_Raw_Data_for_FY22[[#This Row],[Median]]","v":256395.6},{"$f":"(((AAMC_Raw_Data_for_FY22[[#This Row],[75th]]-AAMC_Raw_Data_for_FY22[[#This Row],[Median]])/25)*40) + AAMC_Raw_Data_for_FY22[[#This Row],[Median]]","v":262900.40000000002}]
[{"$f":"AAMC_Raw_Data_for_FY22[[#This Row],[Source]]&AAMC_Raw_Data_for_FY22[[#This Row],[Type]]&AAMC_Raw_Data_for_FY22[[#This Row],[School Subset]]&AAMC_Raw_Data_for_FY22[[#This Row],[Rank]]&AAMC_Raw_Data_for_FY22[[#This Row],[Degree]]&AAMC_Raw_Data_for_FY22[[#This Row],[Department / Specialty]]&\"L\"","v":"AAMCAcademicPrivateProfessorMDInfectious Disease-Peds.L"},"Infectious Disease-Peds.",2,"AAMC","Academic","Private","Professor","MD","2021-2022",241730,{"$f":"(((AAMC_Raw_Data_for_FY22[[#This Row],[Median]]-AAMC_Raw_Data_for_FY22[[#This Row],[25th]])/25)*5) + AAMC_Raw_Data_for_FY22[[#This Row],[25th]]","v":248213.4},{"$f":"(((AAMC_Raw_Data_for_FY22[[#This Row],[Median]]-AAMC_Raw_Data_for_FY22[[#This Row],[25th]])/25)*10) + AAMC_Raw_Data_for_FY22[[#This Row],[25th]]","v":254696.8},{"$f":"(((AAMC_Raw_Data_for_FY22[[#This Row],[Median]]-AAMC_Raw_Data_for_FY22[[#This Row],[25th]])/25)*15) + AAMC_Raw_Data_for_FY22[[#This Row],[25th]]","v":261180.2},{"$f":"(((AAMC_Raw_Data_for_FY22[[#This Row],[Median]]-AAMC_Raw_Data_for_FY22[[#This Row],[25th]])/25)*20) + AAMC_Raw_Data_for_FY22[[#This Row],[25th]]","v":267663.59999999998},274147,{"$f":"(((AAMC_Raw_Data_for_FY22[[#This Row],[75th]]-AAMC_Raw_Data_for_FY22[[#This Row],[Median]])/25)*5) + AAMC_Raw_Data_for_FY22[[#This Row],[Median]]","v":281042.40000000002},{"$f":"(((AAMC_Raw_Data_for_FY22[[#This Row],[75th]]-AAMC_Raw_Data_for_FY22[[#This Row],[Median]])/25)*10) + AAMC_Raw_Data_for_FY22[[#This Row],[Median]]","v":287937.8},{"$f":"(((AAMC_Raw_Data_for_FY22[[#This Row],[75th]]-AAMC_Raw_Data_for_FY22[[#This Row],[Median]])/25)*15) + AAMC_Raw_Data_for_FY22[[#This Row],[Median]]","v":294833.2},{"$f":"(((AAMC_Raw_Data_for_FY22[[#This Row],[75th]]-AAMC_Raw_Data_for_FY22[[#This Row],[Median]])/25)*20) + AAMC_Raw_Data_for_FY22[[#This Row],[Median]]","v":301728.59999999998},308624,{"$f":"(((AAMC_Raw_Data_for_FY22[[#This Row],[75th]]-AAMC_Raw_Data_for_FY22[[#This Row],[Median]])/25)*30) + AAMC_Raw_Data_for_FY22[[#This Row],[Median]]","v":315519.40000000002},{"$f":"(((AAMC_Raw_Data_for_FY22[[#This Row],[75th]]-AAMC_Raw_Data_for_FY22[[#This Row],[Median]])/25)*35) + AAMC_Raw_Data_for_FY22[[#This Row],[Median]]","v":322414.8},{"$f":"(((AAMC_Raw_Data_for_FY22[[#This Row],[75th]]-AAMC_Raw_Data_for_FY22[[#This Row],[Median]])/25)*40) + AAMC_Raw_Data_for_FY22[[#This Row],[Median]]","v":329310.2}]
[{"$f":"AAMC_Raw_Data_for_FY22[[#This Row],[Source]]&AAMC_Raw_Data_for_FY22[[#This Row],[Type]]&AAMC_Raw_Data_for_FY22[[#This Row],[School Subset]]&AAMC_Raw_Data_for_FY22[[#This Row],[Rank]]&AAMC_Raw_Data_for_FY22[[#This Row],[Degree]]&AAMC_Raw_Data_for_FY22[[#This Row],[Department / Specialty]]&\"L\"","v":"AAMCAcademicPrivateChiefMDInfectious Disease-Peds.L"},"Infectious Disease-Peds.",6,"AAMC","Academic","Private","Chief","MD","2021-2022",253980,{"$f":"(((AAMC_Raw_Data_for_FY22[[#This Row],[Median]]-AAMC_Raw_Data_for_FY22[[#This Row],[25th]])/25)*5) + AAMC_Raw_Data_for_FY22[[#This Row],[25th]]","v":258199.4},{"$f":"(((AAMC_Raw_Data_for_FY22[[#This Row],[Median]]-AAMC_Raw_Data_for_FY22[[#This Row],[25th]])/25)*10) + AAMC_Raw_Data_for_FY22[[#This Row],[25th]]","v":262418.8},{"$f":"(((AAMC_Raw_Data_for_FY22[[#This Row],[Median]]-AAMC_Raw_Data_for_FY22[[#This Row],[25th]])/25)*15) + AAMC_Raw_Data_for_FY22[[#This Row],[25th]]","v":266638.2},{"$f":"(((AAMC_Raw_Data_for_FY22[[#This Row],[Median]]-AAMC_Raw_Data_for_FY22[[#This Row],[25th]])/25)*20) + AAMC_Raw_Data_for_FY22[[#This Row],[25th]]","v":270857.59999999998},275077,{"$f":"(((AAMC_Raw_Data_for_FY22[[#This Row],[75th]]-AAMC_Raw_Data_for_FY22[[#This Row],[Median]])/25)*5) + AAMC_Raw_Data_for_FY22[[#This Row],[Median]]","v":287575.40000000002},{"$f":"(((AAMC_Raw_Data_for_FY22[[#This Row],[75th]]-AAMC_Raw_Data_for_FY22[[#This Row],[Median]])/25)*10) + AAMC_Raw_Data_for_FY22[[#This Row],[Median]]","v":300073.8},{"$f":"(((AAMC_Raw_Data_for_FY22[[#This Row],[75th]]-AAMC_Raw_Data_for_FY22[[#This Row],[Median]])/25)*15) + AAMC_Raw_Data_for_FY22[[#This Row],[Median]]","v":312572.2},{"$f":"(((AAMC_Raw_Data_for_FY22[[#This Row],[75th]]-AAMC_Raw_Data_for_FY22[[#This Row],[Median]])/25)*20) + AAMC_Raw_Data_for_FY22[[#This Row],[Median]]","v":325070.59999999998},337569,{"$f":"(((AAMC_Raw_Data_for_FY22[[#This Row],[75th]]-AAMC_Raw_Data_for_FY22[[#This Row],[Median]])/25)*30) + AAMC_Raw_Data_for_FY22[[#This Row],[Median]]","v":350067.4},{"$f":"(((AAMC_Raw_Data_for_FY22[[#This Row],[75th]]-AAMC_Raw_Data_for_FY22[[#This Row],[Median]])/25)*35) + AAMC_Raw_Data_for_FY22[[#This Row],[Median]]","v":362565.8},{"$f":"(((AAMC_Raw_Data_for_FY22[[#This Row],[75th]]-AAMC_Raw_Data_for_FY22[[#This Row],[Median]])/25)*40) + AAMC_Raw_Data_for_FY22[[#This Row],[Median]]","v":375064.2}]
[{"$f":"AAMC_Raw_Data_for_FY22[[#This Row],[Source]]&AAMC_Raw_Data_for_FY22[[#This Row],[Type]]&AAMC_Raw_Data_for_FY22[[#This Row],[School Subset]]&AAMC_Raw_Data_for_FY22[[#This Row],[Rank]]&AAMC_Raw_Data_for_FY22[[#This Row],[Degree]]&AAMC_Raw_Data_for_FY22[[#This Row],[Department / Specialty]]&\"L\"","v":"AAMCAcademicPrivateChairMDInfectious Disease-Peds.L"},"Infectious Disease-Peds.",1,"AAMC","Academic","Private","Chair","MD","2021-2022",null,{"$f":"(((AAMC_Raw_Data_for_FY22[[#This Row],[Median]]-AAMC_Raw_Data_for_FY22[[#This Row],[25th]])/25)*5) + AAMC_Raw_Data_for_FY22[[#This Row],[25th]]","v":0},{"$f":"(((AAMC_Raw_Data_for_FY22[[#This Row],[Median]]-AAMC_Raw_Data_for_FY22[[#This Row],[25th]])/25)*10) + AAMC_Raw_Data_for_FY22[[#This Row],[25th]]","v":0},{"$f":"(((AAMC_Raw_Data_for_FY22[[#This Row],[Median]]-AAMC_Raw_Data_for_FY22[[#This Row],[25th]])/25)*15) + AAMC_Raw_Data_for_FY22[[#This Row],[25th]]","v":0},{"$f":"(((AAMC_Raw_Data_for_FY22[[#This Row],[Median]]-AAMC_Raw_Data_for_FY22[[#This Row],[25th]])/25)*20) + AAMC_Raw_Data_for_FY22[[#This Row],[25th]]","v":0},null,{"$f":"(((AAMC_Raw_Data_for_FY22[[#This Row],[75th]]-AAMC_Raw_Data_for_FY22[[#This Row],[Median]])/25)*5) + AAMC_Raw_Data_for_FY22[[#This Row],[Median]]","v":0},{"$f":"(((AAMC_Raw_Data_for_FY22[[#This Row],[75th]]-AAMC_Raw_Data_for_FY22[[#This Row],[Median]])/25)*10) + AAMC_Raw_Data_for_FY22[[#This Row],[Median]]","v":0},{"$f":"(((AAMC_Raw_Data_for_FY22[[#This Row],[75th]]-AAMC_Raw_Data_for_FY22[[#This Row],[Median]])/25)*15) + AAMC_Raw_Data_for_FY22[[#This Row],[Median]]","v":0},{"$f":"(((AAMC_Raw_Data_for_FY22[[#This Row],[75th]]-AAMC_Raw_Data_for_FY22[[#This Row],[Median]])/25)*20) + AAMC_Raw_Data_for_FY22[[#This Row],[Median]]","v":0},null,{"$f":"(((AAMC_Raw_Data_for_FY22[[#This Row],[75th]]-AAMC_Raw_Data_for_FY22[[#This Row],[Median]])/25)*30) + AAMC_Raw_Data_for_FY22[[#This Row],[Median]]","v":0},{"$f":"(((AAMC_Raw_Data_for_FY22[[#This Row],[75th]]-AAMC_Raw_Data_for_FY22[[#This Row],[Median]])/25)*35) + AAMC_Raw_Data_for_FY22[[#This Row],[Median]]","v":0},{"$f":"(((AAMC_Raw_Data_for_FY22[[#This Row],[75th]]-AAMC_Raw_Data_for_FY22[[#This Row],[Median]])/25)*40) + AAMC_Raw_Data_for_FY22[[#This Row],[Median]]","v":0}]
[{"$f":"AAMC_Raw_Data_for_FY22[[#This Row],[Source]]&AAMC_Raw_Data_for_FY22[[#This Row],[Type]]&AAMC_Raw_Data_for_FY22[[#This Row],[School Subset]]&AAMC_Raw_Data_for_FY22[[#This Row],[Rank]]&AAMC_Raw_Data_for_FY22[[#This Row],[Degree]]&AAMC_Raw_Data_for_FY22[[#This Row],[Department / Specialty]]&\"L\"","v":"AAMCAcademicPrivateInstructorMDNeonatologyL"},"Neonatology",5,"AAMC","Academic","Private","Instructor","MD","2021-2022",179554,{"$f":"(((AAMC_Raw_Data_for_FY22[[#This Row],[Median]]-AAMC_Raw_Data_for_FY22[[#This Row],[25th]])/25)*5) + AAMC_Raw_Data_for_FY22[[#This Row],[25th]]","v":186074.8},{"$f":"(((AAMC_Raw_Data_for_FY22[[#This Row],[Median]]-AAMC_Raw_Data_for_FY22[[#This Row],[25th]])/25)*10) + AAMC_Raw_Data_for_FY22[[#This Row],[25th]]","v":192595.6},{"$f":"(((AAMC_Raw_Data_for_FY22[[#This Row],[Median]]-AAMC_Raw_Data_for_FY22[[#This Row],[25th]])/25)*15) + AAMC_Raw_Data_for_FY22[[#This Row],[25th]]","v":199116.4},{"$f":"(((AAMC_Raw_Data_for_FY22[[#This Row],[Median]]-AAMC_Raw_Data_for_FY22[[#This Row],[25th]])/25)*20) + AAMC_Raw_Data_for_FY22[[#This Row],[25th]]","v":205637.2},212158,{"$f":"(((AAMC_Raw_Data_for_FY22[[#This Row],[75th]]-AAMC_Raw_Data_for_FY22[[#This Row],[Median]])/25)*5) + AAMC_Raw_Data_for_FY22[[#This Row],[Median]]","v":221461.4},{"$f":"(((AAMC_Raw_Data_for_FY22[[#This Row],[75th]]-AAMC_Raw_Data_for_FY22[[#This Row],[Median]])/25)*10) + AAMC_Raw_Data_for_FY22[[#This Row],[Median]]","v":230764.79999999999},{"$f":"(((AAMC_Raw_Data_for_FY22[[#This Row],[75th]]-AAMC_Raw_Data_for_FY22[[#This Row],[Median]])/25)*15) + AAMC_Raw_Data_for_FY22[[#This Row],[Median]]","v":240068.2},{"$f":"(((AAMC_Raw_Data_for_FY22[[#This Row],[75th]]-AAMC_Raw_Data_for_FY22[[#This Row],[Median]])/25)*20) + AAMC_Raw_Data_for_FY22[[#This Row],[Median]]","v":249371.6},258675,{"$f":"(((AAMC_Raw_Data_for_FY22[[#This Row],[75th]]-AAMC_Raw_Data_for_FY22[[#This Row],[Median]])/25)*30) + AAMC_Raw_Data_for_FY22[[#This Row],[Median]]","v":267978.40000000002},{"$f":"(((AAMC_Raw_Data_for_FY22[[#This Row],[75th]]-AAMC_Raw_Data_for_FY22[[#This Row],[Median]])/25)*35) + AAMC_Raw_Data_for_FY22[[#This Row],[Median]]","v":277281.8},{"$f":"(((AAMC_Raw_Data_for_FY22[[#This Row],[75th]]-AAMC_Raw_Data_for_FY22[[#This Row],[Median]])/25)*40) + AAMC_Raw_Data_for_FY22[[#This Row],[Median]]","v":286585.2}]
[{"$f":"AAMC_Raw_Data_for_FY22[[#This Row],[Source]]&AAMC_Raw_Data_for_FY22[[#This Row],[Type]]&AAMC_Raw_Data_for_FY22[[#This Row],[School Subset]]&AAMC_Raw_Data_for_FY22[[#This Row],[Rank]]&AAMC_Raw_Data_for_FY22[[#This Row],[Degree]]&AAMC_Raw_Data_for_FY22[[#This Row],[Department / Specialty]]&\"L\"","v":"AAMCAcademicPrivateAssistantMDNeonatologyL"},"Neonatology",4,"AAMC","Academic","Private","Assistant","MD","2021-2022",231657,{"$f":"(((AAMC_Raw_Data_for_FY22[[#This Row],[Median]]-AAMC_Raw_Data_for_FY22[[#This Row],[25th]])/25)*5) + AAMC_Raw_Data_for_FY22[[#This Row],[25th]]","v":237577.4},{"$f":"(((AAMC_Raw_Data_for_FY22[[#This Row],[Median]]-AAMC_Raw_Data_for_FY22[[#This Row],[25th]])/25)*10) + AAMC_Raw_Data_for_FY22[[#This Row],[25th]]","v":243497.8},{"$f":"(((AAMC_Raw_Data_for_FY22[[#This Row],[Median]]-AAMC_Raw_Data_for_FY22[[#This Row],[25th]])/25)*15) + AAMC_Raw_Data_for_FY22[[#This Row],[25th]]","v":249418.2},{"$f":"(((AAMC_Raw_Data_for_FY22[[#This Row],[Median]]-AAMC_Raw_Data_for_FY22[[#This Row],[25th]])/25)*20) + AAMC_Raw_Data_for_FY22[[#This Row],[25th]]","v":255338.6},261259,{"$f":"(((AAMC_Raw_Data_for_FY22[[#This Row],[75th]]-AAMC_Raw_Data_for_FY22[[#This Row],[Median]])/25)*5) + AAMC_Raw_Data_for_FY22[[#This Row],[Median]]","v":270608.8},{"$f":"(((AAMC_Raw_Data_for_FY22[[#This Row],[75th]]-AAMC_Raw_Data_for_FY22[[#This Row],[Median]])/25)*10) + AAMC_Raw_Data_for_FY22[[#This Row],[Median]]","v":279958.59999999998},{"$f":"(((AAMC_Raw_Data_for_FY22[[#This Row],[75th]]-AAMC_Raw_Data_for_FY22[[#This Row],[Median]])/25)*15) + AAMC_Raw_Data_for_FY22[[#This Row],[Median]]","v":289308.40000000002},{"$f":"(((AAMC_Raw_Data_for_FY22[[#This Row],[75th]]-AAMC_Raw_Data_for_FY22[[#This Row],[Median]])/25)*20) + AAMC_Raw_Data_for_FY22[[#This Row],[Median]]","v":298658.2},308008,{"$f":"(((AAMC_Raw_Data_for_FY22[[#This Row],[75th]]-AAMC_Raw_Data_for_FY22[[#This Row],[Median]])/25)*30) + AAMC_Raw_Data_for_FY22[[#This Row],[Median]]","v":317357.8},{"$f":"(((AAMC_Raw_Data_for_FY22[[#This Row],[75th]]-AAMC_Raw_Data_for_FY22[[#This Row],[Median]])/25)*35) + AAMC_Raw_Data_for_FY22[[#This Row],[Median]]","v":326707.59999999998},{"$f":"(((AAMC_Raw_Data_for_FY22[[#This Row],[75th]]-AAMC_Raw_Data_for_FY22[[#This Row],[Median]])/25)*40) + AAMC_Raw_Data_for_FY22[[#This Row],[Median]]","v":336057.4}]
[{"$f":"AAMC_Raw_Data_for_FY22[[#This Row],[Source]]&AAMC_Raw_Data_for_FY22[[#This Row],[Type]]&AAMC_Raw_Data_for_FY22[[#This Row],[School Subset]]&AAMC_Raw_Data_for_FY22[[#This Row],[Rank]]&AAMC_Raw_Data_for_FY22[[#This Row],[Degree]]&AAMC_Raw_Data_for_FY22[[#This Row],[Department / Specialty]]&\"L\"","v":"AAMCAcademicPrivateAssociateMDNeonatologyL"},"Neonatology",3,"AAMC","Academic","Private","Associate","MD","2021-2022",272208,{"$f":"(((AAMC_Raw_Data_for_FY22[[#This Row],[Median]]-AAMC_Raw_Data_for_FY22[[#This Row],[25th]])/25)*5) + AAMC_Raw_Data_for_FY22[[#This Row],[25th]]","v":278675.59999999998},{"$f":"(((AAMC_Raw_Data_for_FY22[[#This Row],[Median]]-AAMC_Raw_Data_for_FY22[[#This Row],[25th]])/25)*10) + AAMC_Raw_Data_for_FY22[[#This Row],[25th]]","v":285143.2},{"$f":"(((AAMC_Raw_Data_for_FY22[[#This Row],[Median]]-AAMC_Raw_Data_for_FY22[[#This Row],[25th]])/25)*15) + AAMC_Raw_Data_for_FY22[[#This Row],[25th]]","v":291610.8},{"$f":"(((AAMC_Raw_Data_for_FY22[[#This Row],[Median]]-AAMC_Raw_Data_for_FY22[[#This Row],[25th]])/25)*20) + AAMC_Raw_Data_for_FY22[[#This Row],[25th]]","v":298078.40000000002},304546,{"$f":"(((AAMC_Raw_Data_for_FY22[[#This Row],[75th]]-AAMC_Raw_Data_for_FY22[[#This Row],[Median]])/25)*5) + AAMC_Raw_Data_for_FY22[[#This Row],[Median]]","v":313270.40000000002},{"$f":"(((AAMC_Raw_Data_for_FY22[[#This Row],[75th]]-AAMC_Raw_Data_for_FY22[[#This Row],[Median]])/25)*10) + AAMC_Raw_Data_for_FY22[[#This Row],[Median]]","v":321994.8},{"$f":"(((AAMC_Raw_Data_for_FY22[[#This Row],[75th]]-AAMC_Raw_Data_for_FY22[[#This Row],[Median]])/25)*15) + AAMC_Raw_Data_for_FY22[[#This Row],[Median]]","v":330719.2},{"$f":"(((AAMC_Raw_Data_for_FY22[[#This Row],[75th]]-AAMC_Raw_Data_for_FY22[[#This Row],[Median]])/25)*20) + AAMC_Raw_Data_for_FY22[[#This Row],[Median]]","v":339443.6},348168,{"$f":"(((AAMC_Raw_Data_for_FY22[[#This Row],[75th]]-AAMC_Raw_Data_for_FY22[[#This Row],[Median]])/25)*30) + AAMC_Raw_Data_for_FY22[[#This Row],[Median]]","v":356892.4},{"$f":"(((AAMC_Raw_Data_for_FY22[[#This Row],[75th]]-AAMC_Raw_Data_for_FY22[[#This Row],[Median]])/25)*35) + AAMC_Raw_Data_for_FY22[[#This Row],[Median]]","v":365616.8},{"$f":"(((AAMC_Raw_Data_for_FY22[[#This Row],[75th]]-AAMC_Raw_Data_for_FY22[[#This Row],[Median]])/25)*40) + AAMC_Raw_Data_for_FY22[[#This Row],[Median]]","v":374341.2}]
[{"$f":"AAMC_Raw_Data_for_FY22[[#This Row],[Source]]&AAMC_Raw_Data_for_FY22[[#This Row],[Type]]&AAMC_Raw_Data_for_FY22[[#This Row],[School Subset]]&AAMC_Raw_Data_for_FY22[[#This Row],[Rank]]&AAMC_Raw_Data_for_FY22[[#This Row],[Degree]]&AAMC_Raw_Data_for_FY22[[#This Row],[Department / Specialty]]&\"L\"","v":"AAMCAcademicPrivateProfessorMDNeonatologyL"},"Neonatology",2,"AAMC","Academic","Private","Professor","MD","2021-2022",312005,{"$f":"(((AAMC_Raw_Data_for_FY22[[#This Row],[Median]]-AAMC_Raw_Data_for_FY22[[#This Row],[25th]])/25)*5) + AAMC_Raw_Data_for_FY22[[#This Row],[25th]]","v":320242},{"$f":"(((AAMC_Raw_Data_for_FY22[[#This Row],[Median]]-AAMC_Raw_Data_for_FY22[[#This Row],[25th]])/25)*10) + AAMC_Raw_Data_for_FY22[[#This Row],[25th]]","v":328479},{"$f":"(((AAMC_Raw_Data_for_FY22[[#This Row],[Median]]-AAMC_Raw_Data_for_FY22[[#This Row],[25th]])/25)*15) + AAMC_Raw_Data_for_FY22[[#This Row],[25th]]","v":336716},{"$f":"(((AAMC_Raw_Data_for_FY22[[#This Row],[Median]]-AAMC_Raw_Data_for_FY22[[#This Row],[25th]])/25)*20) + AAMC_Raw_Data_for_FY22[[#This Row],[25th]]","v":344953},353190,{"$f":"(((AAMC_Raw_Data_for_FY22[[#This Row],[75th]]-AAMC_Raw_Data_for_FY22[[#This Row],[Median]])/25)*5) + AAMC_Raw_Data_for_FY22[[#This Row],[Median]]","v":362612.2},{"$f":"(((AAMC_Raw_Data_for_FY22[[#This Row],[75th]]-AAMC_Raw_Data_for_FY22[[#This Row],[Median]])/25)*10) + AAMC_Raw_Data_for_FY22[[#This Row],[Median]]","v":372034.4},{"$f":"(((AAMC_Raw_Data_for_FY22[[#This Row],[75th]]-AAMC_Raw_Data_for_FY22[[#This Row],[Median]])/25)*15) + AAMC_Raw_Data_for_FY22[[#This Row],[Median]]","v":381456.6},{"$f":"(((AAMC_Raw_Data_for_FY22[[#This Row],[75th]]-AAMC_Raw_Data_for_FY22[[#This Row],[Median]])/25)*20) + AAMC_Raw_Data_for_FY22[[#This Row],[Median]]","v":390878.8},400301,{"$f":"(((AAMC_Raw_Data_for_FY22[[#This Row],[75th]]-AAMC_Raw_Data_for_FY22[[#This Row],[Median]])/25)*30) + AAMC_Raw_Data_for_FY22[[#This Row],[Median]]","v":409723.2},{"$f":"(((AAMC_Raw_Data_for_FY22[[#This Row],[75th]]-AAMC_Raw_Data_for_FY22[[#This Row],[Median]])/25)*35) + AAMC_Raw_Data_for_FY22[[#This Row],[Median]]","v":419145.4},{"$f":"(((AAMC_Raw_Data_for_FY22[[#This Row],[75th]]-AAMC_Raw_Data_for_FY22[[#This Row],[Median]])/25)*40) + AAMC_Raw_Data_for_FY22[[#This Row],[Median]]","v":428567.6}]
[{"$f":"AAMC_Raw_Data_for_FY22[[#This Row],[Source]]&AAMC_Raw_Data_for_FY22[[#This Row],[Type]]&AAMC_Raw_Data_for_FY22[[#This Row],[School Subset]]&AAMC_Raw_Data_for_FY22[[#This Row],[Rank]]&AAMC_Raw_Data_for_FY22[[#This Row],[Degree]]&AAMC_Raw_Data_for_FY22[[#This Row],[Department / Specialty]]&\"L\"","v":"AAMCAcademicPrivateChiefMDNeonatologyL"},"Neonatology",6,"AAMC","Academic","Private","Chief","MD","2021-2022",393021,{"$f":"(((AAMC_Raw_Data_for_FY22[[#This Row],[Median]]-AAMC_Raw_Data_for_FY22[[#This Row],[25th]])/25)*5) + AAMC_Raw_Data_for_FY22[[#This Row],[25th]]","v":402266.8},{"$f":"(((AAMC_Raw_Data_for_FY22[[#This Row],[Median]]-AAMC_Raw_Data_for_FY22[[#This Row],[25th]])/25)*10) + AAMC_Raw_Data_for_FY22[[#This Row],[25th]]","v":411512.6},{"$f":"(((AAMC_Raw_Data_for_FY22[[#This Row],[Median]]-AAMC_Raw_Data_for_FY22[[#This Row],[25th]])/25)*15) + AAMC_Raw_Data_for_FY22[[#This Row],[25th]]","v":420758.4},{"$f":"(((AAMC_Raw_Data_for_FY22[[#This Row],[Median]]-AAMC_Raw_Data_for_FY22[[#This Row],[25th]])/25)*20) + AAMC_Raw_Data_for_FY22[[#This Row],[25th]]","v":430004.2},439250,{"$f":"(((AAMC_Raw_Data_for_FY22[[#This Row],[75th]]-AAMC_Raw_Data_for_FY22[[#This Row],[Median]])/25)*5) + AAMC_Raw_Data_for_FY22[[#This Row],[Median]]","v":446828},{"$f":"(((AAMC_Raw_Data_for_FY22[[#This Row],[75th]]-AAMC_Raw_Data_for_FY22[[#This Row],[Median]])/25)*10) + AAMC_Raw_Data_for_FY22[[#This Row],[Median]]","v":454406},{"$f":"(((AAMC_Raw_Data_for_FY22[[#This Row],[75th]]-AAMC_Raw_Data_for_FY22[[#This Row],[Median]])/25)*15) + AAMC_Raw_Data_for_FY22[[#This Row],[Median]]","v":461984},{"$f":"(((AAMC_Raw_Data_for_FY22[[#This Row],[75th]]-AAMC_Raw_Data_for_FY22[[#This Row],[Median]])/25)*20) + AAMC_Raw_Data_for_FY22[[#This Row],[Median]]","v":469562},477140,{"$f":"(((AAMC_Raw_Data_for_FY22[[#This Row],[75th]]-AAMC_Raw_Data_for_FY22[[#This Row],[Median]])/25)*30) + AAMC_Raw_Data_for_FY22[[#This Row],[Median]]","v":484718},{"$f":"(((AAMC_Raw_Data_for_FY22[[#This Row],[75th]]-AAMC_Raw_Data_for_FY22[[#This Row],[Median]])/25)*35) + AAMC_Raw_Data_for_FY22[[#This Row],[Median]]","v":492296},{"$f":"(((AAMC_Raw_Data_for_FY22[[#This Row],[75th]]-AAMC_Raw_Data_for_FY22[[#This Row],[Median]])/25)*40) + AAMC_Raw_Data_for_FY22[[#This Row],[Median]]","v":499874}]
[{"$f":"AAMC_Raw_Data_for_FY22[[#This Row],[Source]]&AAMC_Raw_Data_for_FY22[[#This Row],[Type]]&AAMC_Raw_Data_for_FY22[[#This Row],[School Subset]]&AAMC_Raw_Data_for_FY22[[#This Row],[Rank]]&AAMC_Raw_Data_for_FY22[[#This Row],[Degree]]&AAMC_Raw_Data_for_FY22[[#This Row],[Department / Specialty]]&\"L\"","v":"AAMCAcademicPrivateChairMDNeonatologyL"},"Neonatology",1,"AAMC","Academic","Private","Chair","MD","2021-2022",449578,{"$f":"(((AAMC_Raw_Data_for_FY22[[#This Row],[Median]]-AAMC_Raw_Data_for_FY22[[#This Row],[25th]])/25)*5) + AAMC_Raw_Data_for_FY22[[#This Row],[25th]]","v":488340},{"$f":"(((AAMC_Raw_Data_for_FY22[[#This Row],[Median]]-AAMC_Raw_Data_for_FY22[[#This Row],[25th]])/25)*10) + AAMC_Raw_Data_for_FY22[[#This Row],[25th]]","v":527102},{"$f":"(((AAMC_Raw_Data_for_FY22[[#This Row],[Median]]-AAMC_Raw_Data_for_FY22[[#This Row],[25th]])/25)*15) + AAMC_Raw_Data_for_FY22[[#This Row],[25th]]","v":565864},{"$f":"(((AAMC_Raw_Data_for_FY22[[#This Row],[Median]]-AAMC_Raw_Data_for_FY22[[#This Row],[25th]])/25)*20) + AAMC_Raw_Data_for_FY22[[#This Row],[25th]]","v":604626},643388,{"$f":"(((AAMC_Raw_Data_for_FY22[[#This Row],[75th]]-AAMC_Raw_Data_for_FY22[[#This Row],[Median]])/25)*5) + AAMC_Raw_Data_for_FY22[[#This Row],[Median]]","v":658723},{"$f":"(((AAMC_Raw_Data_for_FY22[[#This Row],[75th]]-AAMC_Raw_Data_for_FY22[[#This Row],[Median]])/25)*10) + AAMC_Raw_Data_for_FY22[[#This Row],[Median]]","v":674058},{"$f":"(((AAMC_Raw_Data_for_FY22[[#This Row],[75th]]-AAMC_Raw_Data_for_FY22[[#This Row],[Median]])/25)*15) + AAMC_Raw_Data_for_FY22[[#This Row],[Median]]","v":689393},{"$f":"(((AAMC_Raw_Data_for_FY22[[#This Row],[75th]]-AAMC_Raw_Data_for_FY22[[#This Row],[Median]])/25)*20) + AAMC_Raw_Data_for_FY22[[#This Row],[Median]]","v":704728},720063,{"$f":"(((AAMC_Raw_Data_for_FY22[[#This Row],[75th]]-AAMC_Raw_Data_for_FY22[[#This Row],[Median]])/25)*30) + AAMC_Raw_Data_for_FY22[[#This Row],[Median]]","v":735398},{"$f":"(((AAMC_Raw_Data_for_FY22[[#This Row],[75th]]-AAMC_Raw_Data_for_FY22[[#This Row],[Median]])/25)*35) + AAMC_Raw_Data_for_FY22[[#This Row],[Median]]","v":750733},{"$f":"(((AAMC_Raw_Data_for_FY22[[#This Row],[75th]]-AAMC_Raw_Data_for_FY22[[#This Row],[Median]])/25)*40) + AAMC_Raw_Data_for_FY22[[#This Row],[Median]]","v":766068}]
[{"$f":"AAMC_Raw_Data_for_FY22[[#This Row],[Source]]&AAMC_Raw_Data_for_FY22[[#This Row],[Type]]&AAMC_Raw_Data_for_FY22[[#This Row],[School Subset]]&AAMC_Raw_Data_for_FY22[[#This Row],[Rank]]&AAMC_Raw_Data_for_FY22[[#This Row],[Degree]]&AAMC_Raw_Data_for_FY22[[#This Row],[Department / Specialty]]&\"L\"","v":"AAMCAcademicPrivateInstructorMDNephrology-Peds.L"},"Nephrology-Peds.",5,"AAMC","Academic","Private","Instructor","MD","2021-2022",null,{"$f":"(((AAMC_Raw_Data_for_FY22[[#This Row],[Median]]-AAMC_Raw_Data_for_FY22[[#This Row],[25th]])/25)*5) + AAMC_Raw_Data_for_FY22[[#This Row],[25th]]","v":0},{"$f":"(((AAMC_Raw_Data_for_FY22[[#This Row],[Median]]-AAMC_Raw_Data_for_FY22[[#This Row],[25th]])/25)*10) + AAMC_Raw_Data_for_FY22[[#This Row],[25th]]","v":0},{"$f":"(((AAMC_Raw_Data_for_FY22[[#This Row],[Median]]-AAMC_Raw_Data_for_FY22[[#This Row],[25th]])/25)*15) + AAMC_Raw_Data_for_FY22[[#This Row],[25th]]","v":0},{"$f":"(((AAMC_Raw_Data_for_FY22[[#This Row],[Median]]-AAMC_Raw_Data_for_FY22[[#This Row],[25th]])/25)*20) + AAMC_Raw_Data_for_FY22[[#This Row],[25th]]","v":0},null,{"$f":"(((AAMC_Raw_Data_for_FY22[[#This Row],[75th]]-AAMC_Raw_Data_for_FY22[[#This Row],[Median]])/25)*5) + AAMC_Raw_Data_for_FY22[[#This Row],[Median]]","v":0},{"$f":"(((AAMC_Raw_Data_for_FY22[[#This Row],[75th]]-AAMC_Raw_Data_for_FY22[[#This Row],[Median]])/25)*10) + AAMC_Raw_Data_for_FY22[[#This Row],[Median]]","v":0},{"$f":"(((AAMC_Raw_Data_for_FY22[[#This Row],[75th]]-AAMC_Raw_Data_for_FY22[[#This Row],[Median]])/25)*15) + AAMC_Raw_Data_for_FY22[[#This Row],[Median]]","v":0},{"$f":"(((AAMC_Raw_Data_for_FY22[[#This Row],[75th]]-AAMC_Raw_Data_for_FY22[[#This Row],[Median]])/25)*20) + AAMC_Raw_Data_for_FY22[[#This Row],[Median]]","v":0},null,{"$f":"(((AAMC_Raw_Data_for_FY22[[#This Row],[75th]]-AAMC_Raw_Data_for_FY22[[#This Row],[Median]])/25)*30) + AAMC_Raw_Data_for_FY22[[#This Row],[Median]]","v":0},{"$f":"(((AAMC_Raw_Data_for_FY22[[#This Row],[75th]]-AAMC_Raw_Data_for_FY22[[#This Row],[Median]])/25)*35) + AAMC_Raw_Data_for_FY22[[#This Row],[Median]]","v":0},{"$f":"(((AAMC_Raw_Data_for_FY22[[#This Row],[75th]]-AAMC_Raw_Data_for_FY22[[#This Row],[Median]])/25)*40) + AAMC_Raw_Data_for_FY22[[#This Row],[Median]]","v":0}]
[{"$f":"AAMC_Raw_Data_for_FY22[[#This Row],[Source]]&AAMC_Raw_Data_for_FY22[[#This Row],[Type]]&AAMC_Raw_Data_for_FY22[[#This Row],[School Subset]]&AAMC_Raw_Data_for_FY22[[#This Row],[Rank]]&AAMC_Raw_Data_for_FY22[[#This Row],[Degree]]&AAMC_Raw_Data_for_FY22[[#This Row],[Department / Specialty]]&\"L\"","v":"AAMCAcademicPrivateAssistantMDNephrology-Peds.L"},"Nephrology-Peds.",4,"AAMC","Academic","Private","Assistant","MD","2021-2022",171379,{"$f":"(((AAMC_Raw_Data_for_FY22[[#This Row],[Median]]-AAMC_Raw_Data_for_FY22[[#This Row],[25th]])/25)*5) + AAMC_Raw_Data_for_FY22[[#This Row],[25th]]","v":173187.6},{"$f":"(((AAMC_Raw_Data_for_FY22[[#This Row],[Median]]-AAMC_Raw_Data_for_FY22[[#This Row],[25th]])/25)*10) + AAMC_Raw_Data_for_FY22[[#This Row],[25th]]","v":174996.2},{"$f":"(((AAMC_Raw_Data_for_FY22[[#This Row],[Median]]-AAMC_Raw_Data_for_FY22[[#This Row],[25th]])/25)*15) + AAMC_Raw_Data_for_FY22[[#This Row],[25th]]","v":176804.8},{"$f":"(((AAMC_Raw_Data_for_FY22[[#This Row],[Median]]-AAMC_Raw_Data_for_FY22[[#This Row],[25th]])/25)*20) + AAMC_Raw_Data_for_FY22[[#This Row],[25th]]","v":178613.4},180422,{"$f":"(((AAMC_Raw_Data_for_FY22[[#This Row],[75th]]-AAMC_Raw_Data_for_FY22[[#This Row],[Median]])/25)*5) + AAMC_Raw_Data_for_FY22[[#This Row],[Median]]","v":183491.8},{"$f":"(((AAMC_Raw_Data_for_FY22[[#This Row],[75th]]-AAMC_Raw_Data_for_FY22[[#This Row],[Median]])/25)*10) + AAMC_Raw_Data_for_FY22[[#This Row],[Median]]","v":186561.6},{"$f":"(((AAMC_Raw_Data_for_FY22[[#This Row],[75th]]-AAMC_Raw_Data_for_FY22[[#This Row],[Median]])/25)*15) + AAMC_Raw_Data_for_FY22[[#This Row],[Median]]","v":189631.4},{"$f":"(((AAMC_Raw_Data_for_FY22[[#This Row],[75th]]-AAMC_Raw_Data_for_FY22[[#This Row],[Median]])/25)*20) + AAMC_Raw_Data_for_FY22[[#This Row],[Median]]","v":192701.2},195771,{"$f":"(((AAMC_Raw_Data_for_FY22[[#This Row],[75th]]-AAMC_Raw_Data_for_FY22[[#This Row],[Median]])/25)*30) + AAMC_Raw_Data_for_FY22[[#This Row],[Median]]","v":198840.8},{"$f":"(((AAMC_Raw_Data_for_FY22[[#This Row],[75th]]-AAMC_Raw_Data_for_FY22[[#This Row],[Median]])/25)*35) + AAMC_Raw_Data_for_FY22[[#This Row],[Median]]","v":201910.6},{"$f":"(((AAMC_Raw_Data_for_FY22[[#This Row],[75th]]-AAMC_Raw_Data_for_FY22[[#This Row],[Median]])/25)*40) + AAMC_Raw_Data_for_FY22[[#This Row],[Median]]","v":204980.4}]
[{"$f":"AAMC_Raw_Data_for_FY22[[#This Row],[Source]]&AAMC_Raw_Data_for_FY22[[#This Row],[Type]]&AAMC_Raw_Data_for_FY22[[#This Row],[School Subset]]&AAMC_Raw_Data_for_FY22[[#This Row],[Rank]]&AAMC_Raw_Data_for_FY22[[#This Row],[Degree]]&AAMC_Raw_Data_for_FY22[[#This Row],[Department / Specialty]]&\"L\"","v":"AAMCAcademicPrivateAssociateMDNephrology-Peds.L"},"Nephrology-Peds.",3,"AAMC","Academic","Private","Associate","MD","2021-2022",203987,{"$f":"(((AAMC_Raw_Data_for_FY22[[#This Row],[Median]]-AAMC_Raw_Data_for_FY22[[#This Row],[25th]])/25)*5) + AAMC_Raw_Data_for_FY22[[#This Row],[25th]]","v":207387.8},{"$f":"(((AAMC_Raw_Data_for_FY22[[#This Row],[Median]]-AAMC_Raw_Data_for_FY22[[#This Row],[25th]])/25)*10) + AAMC_Raw_Data_for_FY22[[#This Row],[25th]]","v":210788.6},{"$f":"(((AAMC_Raw_Data_for_FY22[[#This Row],[Median]]-AAMC_Raw_Data_for_FY22[[#This Row],[25th]])/25)*15) + AAMC_Raw_Data_for_FY22[[#This Row],[25th]]","v":214189.4},{"$f":"(((AAMC_Raw_Data_for_FY22[[#This Row],[Median]]-AAMC_Raw_Data_for_FY22[[#This Row],[25th]])/25)*20) + AAMC_Raw_Data_for_FY22[[#This Row],[25th]]","v":217590.2},220991,{"$f":"(((AAMC_Raw_Data_for_FY22[[#This Row],[75th]]-AAMC_Raw_Data_for_FY22[[#This Row],[Median]])/25)*5) + AAMC_Raw_Data_for_FY22[[#This Row],[Median]]","v":226624.8},{"$f":"(((AAMC_Raw_Data_for_FY22[[#This Row],[75th]]-AAMC_Raw_Data_for_FY22[[#This Row],[Median]])/25)*10) + AAMC_Raw_Data_for_FY22[[#This Row],[Median]]","v":232258.6},{"$f":"(((AAMC_Raw_Data_for_FY22[[#This Row],[75th]]-AAMC_Raw_Data_for_FY22[[#This Row],[Median]])/25)*15) + AAMC_Raw_Data_for_FY22[[#This Row],[Median]]","v":237892.4},{"$f":"(((AAMC_Raw_Data_for_FY22[[#This Row],[75th]]-AAMC_Raw_Data_for_FY22[[#This Row],[Median]])/25)*20) + AAMC_Raw_Data_for_FY22[[#This Row],[Median]]","v":243526.2},249160,{"$f":"(((AAMC_Raw_Data_for_FY22[[#This Row],[75th]]-AAMC_Raw_Data_for_FY22[[#This Row],[Median]])/25)*30) + AAMC_Raw_Data_for_FY22[[#This Row],[Median]]","v":254793.8},{"$f":"(((AAMC_Raw_Data_for_FY22[[#This Row],[75th]]-AAMC_Raw_Data_for_FY22[[#This Row],[Median]])/25)*35) + AAMC_Raw_Data_for_FY22[[#This Row],[Median]]","v":260427.6},{"$f":"(((AAMC_Raw_Data_for_FY22[[#This Row],[75th]]-AAMC_Raw_Data_for_FY22[[#This Row],[Median]])/25)*40) + AAMC_Raw_Data_for_FY22[[#This Row],[Median]]","v":266061.40000000002}]
[{"$f":"AAMC_Raw_Data_for_FY22[[#This Row],[Source]]&AAMC_Raw_Data_for_FY22[[#This Row],[Type]]&AAMC_Raw_Data_for_FY22[[#This Row],[School Subset]]&AAMC_Raw_Data_for_FY22[[#This Row],[Rank]]&AAMC_Raw_Data_for_FY22[[#This Row],[Degree]]&AAMC_Raw_Data_for_FY22[[#This Row],[Department / Specialty]]&\"L\"","v":"AAMCAcademicPrivateProfessorMDNephrology-Peds.L"},"Nephrology-Peds.",2,"AAMC","Academic","Private","Professor","MD","2021-2022",239954,{"$f":"(((AAMC_Raw_Data_for_FY22[[#This Row],[Median]]-AAMC_Raw_Data_for_FY22[[#This Row],[25th]])/25)*5) + AAMC_Raw_Data_for_FY22[[#This Row],[25th]]","v":246030.4},{"$f":"(((AAMC_Raw_Data_for_FY22[[#This Row],[Median]]-AAMC_Raw_Data_for_FY22[[#This Row],[25th]])/25)*10) + AAMC_Raw_Data_for_FY22[[#This Row],[25th]]","v":252106.8},{"$f":"(((AAMC_Raw_Data_for_FY22[[#This Row],[Median]]-AAMC_Raw_Data_for_FY22[[#This Row],[25th]])/25)*15) + AAMC_Raw_Data_for_FY22[[#This Row],[25th]]","v":258183.2},{"$f":"(((AAMC_Raw_Data_for_FY22[[#This Row],[Median]]-AAMC_Raw_Data_for_FY22[[#This Row],[25th]])/25)*20) + AAMC_Raw_Data_for_FY22[[#This Row],[25th]]","v":264259.59999999998},270336,{"$f":"(((AAMC_Raw_Data_for_FY22[[#This Row],[75th]]-AAMC_Raw_Data_for_FY22[[#This Row],[Median]])/25)*5) + AAMC_Raw_Data_for_FY22[[#This Row],[Median]]","v":281946.2},{"$f":"(((AAMC_Raw_Data_for_FY22[[#This Row],[75th]]-AAMC_Raw_Data_for_FY22[[#This Row],[Median]])/25)*10) + AAMC_Raw_Data_for_FY22[[#This Row],[Median]]","v":293556.40000000002},{"$f":"(((AAMC_Raw_Data_for_FY22[[#This Row],[75th]]-AAMC_Raw_Data_for_FY22[[#This Row],[Median]])/25)*15) + AAMC_Raw_Data_for_FY22[[#This Row],[Median]]","v":305166.59999999998},{"$f":"(((AAMC_Raw_Data_for_FY22[[#This Row],[75th]]-AAMC_Raw_Data_for_FY22[[#This Row],[Median]])/25)*20) + AAMC_Raw_Data_for_FY22[[#This Row],[Median]]","v":316776.8},328387,{"$f":"(((AAMC_Raw_Data_for_FY22[[#This Row],[75th]]-AAMC_Raw_Data_for_FY22[[#This Row],[Median]])/25)*30) + AAMC_Raw_Data_for_FY22[[#This Row],[Median]]","v":339997.2},{"$f":"(((AAMC_Raw_Data_for_FY22[[#This Row],[75th]]-AAMC_Raw_Data_for_FY22[[#This Row],[Median]])/25)*35) + AAMC_Raw_Data_for_FY22[[#This Row],[Median]]","v":351607.4},{"$f":"(((AAMC_Raw_Data_for_FY22[[#This Row],[75th]]-AAMC_Raw_Data_for_FY22[[#This Row],[Median]])/25)*40) + AAMC_Raw_Data_for_FY22[[#This Row],[Median]]","v":363217.6}]
[{"$f":"AAMC_Raw_Data_for_FY22[[#This Row],[Source]]&AAMC_Raw_Data_for_FY22[[#This Row],[Type]]&AAMC_Raw_Data_for_FY22[[#This Row],[School Subset]]&AAMC_Raw_Data_for_FY22[[#This Row],[Rank]]&AAMC_Raw_Data_for_FY22[[#This Row],[Degree]]&AAMC_Raw_Data_for_FY22[[#This Row],[Department / Specialty]]&\"L\"","v":"AAMCAcademicPrivateChiefMDNephrology-Peds.L"},"Nephrology-Peds.",6,"AAMC","Academic","Private","Chief","MD","2021-2022",262561,{"$f":"(((AAMC_Raw_Data_for_FY22[[#This Row],[Median]]-AAMC_Raw_Data_for_FY22[[#This Row],[25th]])/25)*5) + AAMC_Raw_Data_for_FY22[[#This Row],[25th]]","v":269386.59999999998},{"$f":"(((AAMC_Raw_Data_for_FY22[[#This Row],[Median]]-AAMC_Raw_Data_for_FY22[[#This Row],[25th]])/25)*10) + AAMC_Raw_Data_for_FY22[[#This Row],[25th]]","v":276212.2},{"$f":"(((AAMC_Raw_Data_for_FY22[[#This Row],[Median]]-AAMC_Raw_Data_for_FY22[[#This Row],[25th]])/25)*15) + AAMC_Raw_Data_for_FY22[[#This Row],[25th]]","v":283037.8},{"$f":"(((AAMC_Raw_Data_for_FY22[[#This Row],[Median]]-AAMC_Raw_Data_for_FY22[[#This Row],[25th]])/25)*20) + AAMC_Raw_Data_for_FY22[[#This Row],[25th]]","v":289863.40000000002},296689,{"$f":"(((AAMC_Raw_Data_for_FY22[[#This Row],[75th]]-AAMC_Raw_Data_for_FY22[[#This Row],[Median]])/25)*5) + AAMC_Raw_Data_for_FY22[[#This Row],[Median]]","v":306489.59999999998},{"$f":"(((AAMC_Raw_Data_for_FY22[[#This Row],[75th]]-AAMC_Raw_Data_for_FY22[[#This Row],[Median]])/25)*10) + AAMC_Raw_Data_for_FY22[[#This Row],[Median]]","v":316290.2},{"$f":"(((AAMC_Raw_Data_for_FY22[[#This Row],[75th]]-AAMC_Raw_Data_for_FY22[[#This Row],[Median]])/25)*15) + AAMC_Raw_Data_for_FY22[[#This Row],[Median]]","v":326090.8},{"$f":"(((AAMC_Raw_Data_for_FY22[[#This Row],[75th]]-AAMC_Raw_Data_for_FY22[[#This Row],[Median]])/25)*20) + AAMC_Raw_Data_for_FY22[[#This Row],[Median]]","v":335891.4},345692,{"$f":"(((AAMC_Raw_Data_for_FY22[[#This Row],[75th]]-AAMC_Raw_Data_for_FY22[[#This Row],[Median]])/25)*30) + AAMC_Raw_Data_for_FY22[[#This Row],[Median]]","v":355492.6},{"$f":"(((AAMC_Raw_Data_for_FY22[[#This Row],[75th]]-AAMC_Raw_Data_for_FY22[[#This Row],[Median]])/25)*35) + AAMC_Raw_Data_for_FY22[[#This Row],[Median]]","v":365293.2},{"$f":"(((AAMC_Raw_Data_for_FY22[[#This Row],[75th]]-AAMC_Raw_Data_for_FY22[[#This Row],[Median]])/25)*40) + AAMC_Raw_Data_for_FY22[[#This Row],[Median]]","v":375093.8}]
[{"$f":"AAMC_Raw_Data_for_FY22[[#This Row],[Source]]&AAMC_Raw_Data_for_FY22[[#This Row],[Type]]&AAMC_Raw_Data_for_FY22[[#This Row],[School Subset]]&AAMC_Raw_Data_for_FY22[[#This Row],[Rank]]&AAMC_Raw_Data_for_FY22[[#This Row],[Degree]]&AAMC_Raw_Data_for_FY22[[#This Row],[Department / Specialty]]&\"L\"","v":"AAMCAcademicPrivateChairMDNephrology-Peds.L"},"Nephrology-Peds.",1,"AAMC","Academic","Private","Chair","MD","2021-2022",null,{"$f":"(((AAMC_Raw_Data_for_FY22[[#This Row],[Median]]-AAMC_Raw_Data_for_FY22[[#This Row],[25th]])/25)*5) + AAMC_Raw_Data_for_FY22[[#This Row],[25th]]","v":0},{"$f":"(((AAMC_Raw_Data_for_FY22[[#This Row],[Median]]-AAMC_Raw_Data_for_FY22[[#This Row],[25th]])/25)*10) + AAMC_Raw_Data_for_FY22[[#This Row],[25th]]","v":0},{"$f":"(((AAMC_Raw_Data_for_FY22[[#This Row],[Median]]-AAMC_Raw_Data_for_FY22[[#This Row],[25th]])/25)*15) + AAMC_Raw_Data_for_FY22[[#This Row],[25th]]","v":0},{"$f":"(((AAMC_Raw_Data_for_FY22[[#This Row],[Median]]-AAMC_Raw_Data_for_FY22[[#This Row],[25th]])/25)*20) + AAMC_Raw_Data_for_FY22[[#This Row],[25th]]","v":0},null,{"$f":"(((AAMC_Raw_Data_for_FY22[[#This Row],[75th]]-AAMC_Raw_Data_for_FY22[[#This Row],[Median]])/25)*5) + AAMC_Raw_Data_for_FY22[[#This Row],[Median]]","v":0},{"$f":"(((AAMC_Raw_Data_for_FY22[[#This Row],[75th]]-AAMC_Raw_Data_for_FY22[[#This Row],[Median]])/25)*10) + AAMC_Raw_Data_for_FY22[[#This Row],[Median]]","v":0},{"$f":"(((AAMC_Raw_Data_for_FY22[[#This Row],[75th]]-AAMC_Raw_Data_for_FY22[[#This Row],[Median]])/25)*15) + AAMC_Raw_Data_for_FY22[[#This Row],[Median]]","v":0},{"$f":"(((AAMC_Raw_Data_for_FY22[[#This Row],[75th]]-AAMC_Raw_Data_for_FY22[[#This Row],[Median]])/25)*20) + AAMC_Raw_Data_for_FY22[[#This Row],[Median]]","v":0},null,{"$f":"(((AAMC_Raw_Data_for_FY22[[#This Row],[75th]]-AAMC_Raw_Data_for_FY22[[#This Row],[Median]])/25)*30) + AAMC_Raw_Data_for_FY22[[#This Row],[Median]]","v":0},{"$f":"(((AAMC_Raw_Data_for_FY22[[#This Row],[75th]]-AAMC_Raw_Data_for_FY22[[#This Row],[Median]])/25)*35) + AAMC_Raw_Data_for_FY22[[#This Row],[Median]]","v":0},{"$f":"(((AAMC_Raw_Data_for_FY22[[#This Row],[75th]]-AAMC_Raw_Data_for_FY22[[#This Row],[Median]])/25)*40) + AAMC_Raw_Data_for_FY22[[#This Row],[Median]]","v":0}]
[{"$f":"AAMC_Raw_Data_for_FY22[[#This Row],[Source]]&AAMC_Raw_Data_for_FY22[[#This Row],[Type]]&AAMC_Raw_Data_for_FY22[[#This Row],[School Subset]]&AAMC_Raw_Data_for_FY22[[#This Row],[Rank]]&AAMC_Raw_Data_for_FY22[[#This Row],[Degree]]&AAMC_Raw_Data_for_FY22[[#This Row],[Department / Specialty]]&\"L\"","v":"AAMCAcademicPrivateInstructorMDNeurology-Peds.L"},"Neurology-Peds.",5,"AAMC","Academic","Private","Instructor","MD","2021-2022",125823,{"$f":"(((AAMC_Raw_Data_for_FY22[[#This Row],[Median]]-AAMC_Raw_Data_for_FY22[[#This Row],[25th]])/25)*5) + AAMC_Raw_Data_for_FY22[[#This Row],[25th]]","v":134866.79999999999},{"$f":"(((AAMC_Raw_Data_for_FY22[[#This Row],[Median]]-AAMC_Raw_Data_for_FY22[[#This Row],[25th]])/25)*10) + AAMC_Raw_Data_for_FY22[[#This Row],[25th]]","v":143910.6},{"$f":"(((AAMC_Raw_Data_for_FY22[[#This Row],[Median]]-AAMC_Raw_Data_for_FY22[[#This Row],[25th]])/25)*15) + AAMC_Raw_Data_for_FY22[[#This Row],[25th]]","v":152954.4},{"$f":"(((AAMC_Raw_Data_for_FY22[[#This Row],[Median]]-AAMC_Raw_Data_for_FY22[[#This Row],[25th]])/25)*20) + AAMC_Raw_Data_for_FY22[[#This Row],[25th]]","v":161998.20000000001},171042,{"$f":"(((AAMC_Raw_Data_for_FY22[[#This Row],[75th]]-AAMC_Raw_Data_for_FY22[[#This Row],[Median]])/25)*5) + AAMC_Raw_Data_for_FY22[[#This Row],[Median]]","v":181487.6},{"$f":"(((AAMC_Raw_Data_for_FY22[[#This Row],[75th]]-AAMC_Raw_Data_for_FY22[[#This Row],[Median]])/25)*10) + AAMC_Raw_Data_for_FY22[[#This Row],[Median]]","v":191933.2},{"$f":"(((AAMC_Raw_Data_for_FY22[[#This Row],[75th]]-AAMC_Raw_Data_for_FY22[[#This Row],[Median]])/25)*15) + AAMC_Raw_Data_for_FY22[[#This Row],[Median]]","v":202378.8},{"$f":"(((AAMC_Raw_Data_for_FY22[[#This Row],[75th]]-AAMC_Raw_Data_for_FY22[[#This Row],[Median]])/25)*20) + AAMC_Raw_Data_for_FY22[[#This Row],[Median]]","v":212824.4},223270,{"$f":"(((AAMC_Raw_Data_for_FY22[[#This Row],[75th]]-AAMC_Raw_Data_for_FY22[[#This Row],[Median]])/25)*30) + AAMC_Raw_Data_for_FY22[[#This Row],[Median]]","v":233715.6},{"$f":"(((AAMC_Raw_Data_for_FY22[[#This Row],[75th]]-AAMC_Raw_Data_for_FY22[[#This Row],[Median]])/25)*35) + AAMC_Raw_Data_for_FY22[[#This Row],[Median]]","v":244161.2},{"$f":"(((AAMC_Raw_Data_for_FY22[[#This Row],[75th]]-AAMC_Raw_Data_for_FY22[[#This Row],[Median]])/25)*40) + AAMC_Raw_Data_for_FY22[[#This Row],[Median]]","v":254606.8}]
[{"$f":"AAMC_Raw_Data_for_FY22[[#This Row],[Source]]&AAMC_Raw_Data_for_FY22[[#This Row],[Type]]&AAMC_Raw_Data_for_FY22[[#This Row],[School Subset]]&AAMC_Raw_Data_for_FY22[[#This Row],[Rank]]&AAMC_Raw_Data_for_FY22[[#This Row],[Degree]]&AAMC_Raw_Data_for_FY22[[#This Row],[Department / Specialty]]&\"L\"","v":"AAMCAcademicPrivateAssistantMDNeurology-Peds.L"},"Neurology-Peds.",4,"AAMC","Academic","Private","Assistant","MD","2021-2022",204069,{"$f":"(((AAMC_Raw_Data_for_FY22[[#This Row],[Median]]-AAMC_Raw_Data_for_FY22[[#This Row],[25th]])/25)*5) + AAMC_Raw_Data_for_FY22[[#This Row],[25th]]","v":209346.2},{"$f":"(((AAMC_Raw_Data_for_FY22[[#This Row],[Median]]-AAMC_Raw_Data_for_FY22[[#This Row],[25th]])/25)*10) + AAMC_Raw_Data_for_FY22[[#This Row],[25th]]","v":214623.4},{"$f":"(((AAMC_Raw_Data_for_FY22[[#This Row],[Median]]-AAMC_Raw_Data_for_FY22[[#This Row],[25th]])/25)*15) + AAMC_Raw_Data_for_FY22[[#This Row],[25th]]","v":219900.6},{"$f":"(((AAMC_Raw_Data_for_FY22[[#This Row],[Median]]-AAMC_Raw_Data_for_FY22[[#This Row],[25th]])/25)*20) + AAMC_Raw_Data_for_FY22[[#This Row],[25th]]","v":225177.8},230455,{"$f":"(((AAMC_Raw_Data_for_FY22[[#This Row],[75th]]-AAMC_Raw_Data_for_FY22[[#This Row],[Median]])/25)*5) + AAMC_Raw_Data_for_FY22[[#This Row],[Median]]","v":234088.8},{"$f":"(((AAMC_Raw_Data_for_FY22[[#This Row],[75th]]-AAMC_Raw_Data_for_FY22[[#This Row],[Median]])/25)*10) + AAMC_Raw_Data_for_FY22[[#This Row],[Median]]","v":237722.6},{"$f":"(((AAMC_Raw_Data_for_FY22[[#This Row],[75th]]-AAMC_Raw_Data_for_FY22[[#This Row],[Median]])/25)*15) + AAMC_Raw_Data_for_FY22[[#This Row],[Median]]","v":241356.4},{"$f":"(((AAMC_Raw_Data_for_FY22[[#This Row],[75th]]-AAMC_Raw_Data_for_FY22[[#This Row],[Median]])/25)*20) + AAMC_Raw_Data_for_FY22[[#This Row],[Median]]","v":244990.2},248624,{"$f":"(((AAMC_Raw_Data_for_FY22[[#This Row],[75th]]-AAMC_Raw_Data_for_FY22[[#This Row],[Median]])/25)*30) + AAMC_Raw_Data_for_FY22[[#This Row],[Median]]","v":252257.8},{"$f":"(((AAMC_Raw_Data_for_FY22[[#This Row],[75th]]-AAMC_Raw_Data_for_FY22[[#This Row],[Median]])/25)*35) + AAMC_Raw_Data_for_FY22[[#This Row],[Median]]","v":255891.6},{"$f":"(((AAMC_Raw_Data_for_FY22[[#This Row],[75th]]-AAMC_Raw_Data_for_FY22[[#This Row],[Median]])/25)*40) + AAMC_Raw_Data_for_FY22[[#This Row],[Median]]","v":259525.4}]
[{"$f":"AAMC_Raw_Data_for_FY22[[#This Row],[Source]]&AAMC_Raw_Data_for_FY22[[#This Row],[Type]]&AAMC_Raw_Data_for_FY22[[#This Row],[School Subset]]&AAMC_Raw_Data_for_FY22[[#This Row],[Rank]]&AAMC_Raw_Data_for_FY22[[#This Row],[Degree]]&AAMC_Raw_Data_for_FY22[[#This Row],[Department / Specialty]]&\"L\"","v":"AAMCAcademicPrivateAssociateMDNeurology-Peds.L"},"Neurology-Peds.",3,"AAMC","Academic","Private","Associate","MD","2021-2022",230000,{"$f":"(((AAMC_Raw_Data_for_FY22[[#This Row],[Median]]-AAMC_Raw_Data_for_FY22[[#This Row],[25th]])/25)*5) + AAMC_Raw_Data_for_FY22[[#This Row],[25th]]","v":234615.4},{"$f":"(((AAMC_Raw_Data_for_FY22[[#This Row],[Median]]-AAMC_Raw_Data_for_FY22[[#This Row],[25th]])/25)*10) + AAMC_Raw_Data_for_FY22[[#This Row],[25th]]","v":239230.8},{"$f":"(((AAMC_Raw_Data_for_FY22[[#This Row],[Median]]-AAMC_Raw_Data_for_FY22[[#This Row],[25th]])/25)*15) + AAMC_Raw_Data_for_FY22[[#This Row],[25th]]","v":243846.2},{"$f":"(((AAMC_Raw_Data_for_FY22[[#This Row],[Median]]-AAMC_Raw_Data_for_FY22[[#This Row],[25th]])/25)*20) + AAMC_Raw_Data_for_FY22[[#This Row],[25th]]","v":248461.6},253077,{"$f":"(((AAMC_Raw_Data_for_FY22[[#This Row],[75th]]-AAMC_Raw_Data_for_FY22[[#This Row],[Median]])/25)*5) + AAMC_Raw_Data_for_FY22[[#This Row],[Median]]","v":261590.39999999999},{"$f":"(((AAMC_Raw_Data_for_FY22[[#This Row],[75th]]-AAMC_Raw_Data_for_FY22[[#This Row],[Median]])/25)*10) + AAMC_Raw_Data_for_FY22[[#This Row],[Median]]","v":270103.8},{"$f":"(((AAMC_Raw_Data_for_FY22[[#This Row],[75th]]-AAMC_Raw_Data_for_FY22[[#This Row],[Median]])/25)*15) + AAMC_Raw_Data_for_FY22[[#This Row],[Median]]","v":278617.2},{"$f":"(((AAMC_Raw_Data_for_FY22[[#This Row],[75th]]-AAMC_Raw_Data_for_FY22[[#This Row],[Median]])/25)*20) + AAMC_Raw_Data_for_FY22[[#This Row],[Median]]","v":287130.59999999998},295644,{"$f":"(((AAMC_Raw_Data_for_FY22[[#This Row],[75th]]-AAMC_Raw_Data_for_FY22[[#This Row],[Median]])/25)*30) + AAMC_Raw_Data_for_FY22[[#This Row],[Median]]","v":304157.40000000002},{"$f":"(((AAMC_Raw_Data_for_FY22[[#This Row],[75th]]-AAMC_Raw_Data_for_FY22[[#This Row],[Median]])/25)*35) + AAMC_Raw_Data_for_FY22[[#This Row],[Median]]","v":312670.8},{"$f":"(((AAMC_Raw_Data_for_FY22[[#This Row],[75th]]-AAMC_Raw_Data_for_FY22[[#This Row],[Median]])/25)*40) + AAMC_Raw_Data_for_FY22[[#This Row],[Median]]","v":321184.2}]
[{"$f":"AAMC_Raw_Data_for_FY22[[#This Row],[Source]]&AAMC_Raw_Data_for_FY22[[#This Row],[Type]]&AAMC_Raw_Data_for_FY22[[#This Row],[School Subset]]&AAMC_Raw_Data_for_FY22[[#This Row],[Rank]]&AAMC_Raw_Data_for_FY22[[#This Row],[Degree]]&AAMC_Raw_Data_for_FY22[[#This Row],[Department / Specialty]]&\"L\"","v":"AAMCAcademicPrivateProfessorMDNeurology-Peds.L"},"Neurology-Peds.",2,"AAMC","Academic","Private","Professor","MD","2021-2022",252406,{"$f":"(((AAMC_Raw_Data_for_FY22[[#This Row],[Median]]-AAMC_Raw_Data_for_FY22[[#This Row],[25th]])/25)*5) + AAMC_Raw_Data_for_FY22[[#This Row],[25th]]","v":255989.8},{"$f":"(((AAMC_Raw_Data_for_FY22[[#This Row],[Median]]-AAMC_Raw_Data_for_FY22[[#This Row],[25th]])/25)*10) + AAMC_Raw_Data_for_FY22[[#This Row],[25th]]","v":259573.6},{"$f":"(((AAMC_Raw_Data_for_FY22[[#This Row],[Median]]-AAMC_Raw_Data_for_FY22[[#This Row],[25th]])/25)*15) + AAMC_Raw_Data_for_FY22[[#This Row],[25th]]","v":263157.40000000002},{"$f":"(((AAMC_Raw_Data_for_FY22[[#This Row],[Median]]-AAMC_Raw_Data_for_FY22[[#This Row],[25th]])/25)*20) + AAMC_Raw_Data_for_FY22[[#This Row],[25th]]","v":266741.2},270325,{"$f":"(((AAMC_Raw_Data_for_FY22[[#This Row],[75th]]-AAMC_Raw_Data_for_FY22[[#This Row],[Median]])/25)*5) + AAMC_Raw_Data_for_FY22[[#This Row],[Median]]","v":281619.20000000001},{"$f":"(((AAMC_Raw_Data_for_FY22[[#This Row],[75th]]-AAMC_Raw_Data_for_FY22[[#This Row],[Median]])/25)*10) + AAMC_Raw_Data_for_FY22[[#This Row],[Median]]","v":292913.40000000002},{"$f":"(((AAMC_Raw_Data_for_FY22[[#This Row],[75th]]-AAMC_Raw_Data_for_FY22[[#This Row],[Median]])/25)*15) + AAMC_Raw_Data_for_FY22[[#This Row],[Median]]","v":304207.59999999998},{"$f":"(((AAMC_Raw_Data_for_FY22[[#This Row],[75th]]-AAMC_Raw_Data_for_FY22[[#This Row],[Median]])/25)*20) + AAMC_Raw_Data_for_FY22[[#This Row],[Median]]","v":315501.8},326796,{"$f":"(((AAMC_Raw_Data_for_FY22[[#This Row],[75th]]-AAMC_Raw_Data_for_FY22[[#This Row],[Median]])/25)*30) + AAMC_Raw_Data_for_FY22[[#This Row],[Median]]","v":338090.2},{"$f":"(((AAMC_Raw_Data_for_FY22[[#This Row],[75th]]-AAMC_Raw_Data_for_FY22[[#This Row],[Median]])/25)*35) + AAMC_Raw_Data_for_FY22[[#This Row],[Median]]","v":349384.4},{"$f":"(((AAMC_Raw_Data_for_FY22[[#This Row],[75th]]-AAMC_Raw_Data_for_FY22[[#This Row],[Median]])/25)*40) + AAMC_Raw_Data_for_FY22[[#This Row],[Median]]","v":360678.6}]
[{"$f":"AAMC_Raw_Data_for_FY22[[#This Row],[Source]]&AAMC_Raw_Data_for_FY22[[#This Row],[Type]]&AAMC_Raw_Data_for_FY22[[#This Row],[School Subset]]&AAMC_Raw_Data_for_FY22[[#This Row],[Rank]]&AAMC_Raw_Data_for_FY22[[#This Row],[Degree]]&AAMC_Raw_Data_for_FY22[[#This Row],[Department / Specialty]]&\"L\"","v":"AAMCAcademicPrivateChiefMDNeurology-Peds.L"},"Neurology-Peds.",6,"AAMC","Academic","Private","Chief","MD","2021-2022",295780,{"$f":"(((AAMC_Raw_Data_for_FY22[[#This Row],[Median]]-AAMC_Raw_Data_for_FY22[[#This Row],[25th]])/25)*5) + AAMC_Raw_Data_for_FY22[[#This Row],[25th]]","v":303427.20000000001},{"$f":"(((AAMC_Raw_Data_for_FY22[[#This Row],[Median]]-AAMC_Raw_Data_for_FY22[[#This Row],[25th]])/25)*10) + AAMC_Raw_Data_for_FY22[[#This Row],[25th]]","v":311074.40000000002},{"$f":"(((AAMC_Raw_Data_for_FY22[[#This Row],[Median]]-AAMC_Raw_Data_for_FY22[[#This Row],[25th]])/25)*15) + AAMC_Raw_Data_for_FY22[[#This Row],[25th]]","v":318721.59999999998},{"$f":"(((AAMC_Raw_Data_for_FY22[[#This Row],[Median]]-AAMC_Raw_Data_for_FY22[[#This Row],[25th]])/25)*20) + AAMC_Raw_Data_for_FY22[[#This Row],[25th]]","v":326368.8},334016,{"$f":"(((AAMC_Raw_Data_for_FY22[[#This Row],[75th]]-AAMC_Raw_Data_for_FY22[[#This Row],[Median]])/25)*5) + AAMC_Raw_Data_for_FY22[[#This Row],[Median]]","v":350612.8},{"$f":"(((AAMC_Raw_Data_for_FY22[[#This Row],[75th]]-AAMC_Raw_Data_for_FY22[[#This Row],[Median]])/25)*10) + AAMC_Raw_Data_for_FY22[[#This Row],[Median]]","v":367209.6},{"$f":"(((AAMC_Raw_Data_for_FY22[[#This Row],[75th]]-AAMC_Raw_Data_for_FY22[[#This Row],[Median]])/25)*15) + AAMC_Raw_Data_for_FY22[[#This Row],[Median]]","v":383806.4},{"$f":"(((AAMC_Raw_Data_for_FY22[[#This Row],[75th]]-AAMC_Raw_Data_for_FY22[[#This Row],[Median]])/25)*20) + AAMC_Raw_Data_for_FY22[[#This Row],[Median]]","v":400403.20000000001},417000,{"$f":"(((AAMC_Raw_Data_for_FY22[[#This Row],[75th]]-AAMC_Raw_Data_for_FY22[[#This Row],[Median]])/25)*30) + AAMC_Raw_Data_for_FY22[[#This Row],[Median]]","v":433596.8},{"$f":"(((AAMC_Raw_Data_for_FY22[[#This Row],[75th]]-AAMC_Raw_Data_for_FY22[[#This Row],[Median]])/25)*35) + AAMC_Raw_Data_for_FY22[[#This Row],[Median]]","v":450193.6},{"$f":"(((AAMC_Raw_Data_for_FY22[[#This Row],[75th]]-AAMC_Raw_Data_for_FY22[[#This Row],[Median]])/25)*40) + AAMC_Raw_Data_for_FY22[[#This Row],[Median]]","v":466790.40000000002}]
[{"$f":"AAMC_Raw_Data_for_FY22[[#This Row],[Source]]&AAMC_Raw_Data_for_FY22[[#This Row],[Type]]&AAMC_Raw_Data_for_FY22[[#This Row],[School Subset]]&AAMC_Raw_Data_for_FY22[[#This Row],[Rank]]&AAMC_Raw_Data_for_FY22[[#This Row],[Degree]]&AAMC_Raw_Data_for_FY22[[#This Row],[Department / Specialty]]&\"L\"","v":"AAMCAcademicPrivateInstructorMDPediatric CardiologyL"},"Pediatric Cardiology",5,"AAMC","Academic","Private","Instructor","MD","2021-2022",152718,{"$f":"(((AAMC_Raw_Data_for_FY22[[#This Row],[Median]]-AAMC_Raw_Data_for_FY22[[#This Row],[25th]])/25)*5) + AAMC_Raw_Data_for_FY22[[#This Row],[25th]]","v":164308.4},{"$f":"(((AAMC_Raw_Data_for_FY22[[#This Row],[Median]]-AAMC_Raw_Data_for_FY22[[#This Row],[25th]])/25)*10) + AAMC_Raw_Data_for_FY22[[#This Row],[25th]]","v":175898.8},{"$f":"(((AAMC_Raw_Data_for_FY22[[#This Row],[Median]]-AAMC_Raw_Data_for_FY22[[#This Row],[25th]])/25)*15) + AAMC_Raw_Data_for_FY22[[#This Row],[25th]]","v":187489.2},{"$f":"(((AAMC_Raw_Data_for_FY22[[#This Row],[Median]]-AAMC_Raw_Data_for_FY22[[#This Row],[25th]])/25)*20) + AAMC_Raw_Data_for_FY22[[#This Row],[25th]]","v":199079.6},210670,{"$f":"(((AAMC_Raw_Data_for_FY22[[#This Row],[75th]]-AAMC_Raw_Data_for_FY22[[#This Row],[Median]])/25)*5) + AAMC_Raw_Data_for_FY22[[#This Row],[Median]]","v":220993},{"$f":"(((AAMC_Raw_Data_for_FY22[[#This Row],[75th]]-AAMC_Raw_Data_for_FY22[[#This Row],[Median]])/25)*10) + AAMC_Raw_Data_for_FY22[[#This Row],[Median]]","v":231316},{"$f":"(((AAMC_Raw_Data_for_FY22[[#This Row],[75th]]-AAMC_Raw_Data_for_FY22[[#This Row],[Median]])/25)*15) + AAMC_Raw_Data_for_FY22[[#This Row],[Median]]","v":241639},{"$f":"(((AAMC_Raw_Data_for_FY22[[#This Row],[75th]]-AAMC_Raw_Data_for_FY22[[#This Row],[Median]])/25)*20) + AAMC_Raw_Data_for_FY22[[#This Row],[Median]]","v":251962},262285,{"$f":"(((AAMC_Raw_Data_for_FY22[[#This Row],[75th]]-AAMC_Raw_Data_for_FY22[[#This Row],[Median]])/25)*30) + AAMC_Raw_Data_for_FY22[[#This Row],[Median]]","v":272608},{"$f":"(((AAMC_Raw_Data_for_FY22[[#This Row],[75th]]-AAMC_Raw_Data_for_FY22[[#This Row],[Median]])/25)*35) + AAMC_Raw_Data_for_FY22[[#This Row],[Median]]","v":282931},{"$f":"(((AAMC_Raw_Data_for_FY22[[#This Row],[75th]]-AAMC_Raw_Data_for_FY22[[#This Row],[Median]])/25)*40) + AAMC_Raw_Data_for_FY22[[#This Row],[Median]]","v":293254}]
[{"$f":"AAMC_Raw_Data_for_FY22[[#This Row],[Source]]&AAMC_Raw_Data_for_FY22[[#This Row],[Type]]&AAMC_Raw_Data_for_FY22[[#This Row],[School Subset]]&AAMC_Raw_Data_for_FY22[[#This Row],[Rank]]&AAMC_Raw_Data_for_FY22[[#This Row],[Degree]]&AAMC_Raw_Data_for_FY22[[#This Row],[Department / Specialty]]&\"L\"","v":"AAMCAcademicPrivateAssistantMDPediatric CardiologyL"},"Pediatric Cardiology",4,"AAMC","Academic","Private","Assistant","MD","2021-2022",238350,{"$f":"(((AAMC_Raw_Data_for_FY22[[#This Row],[Median]]-AAMC_Raw_Data_for_FY22[[#This Row],[25th]])/25)*5) + AAMC_Raw_Data_for_FY22[[#This Row],[25th]]","v":243042.4},{"$f":"(((AAMC_Raw_Data_for_FY22[[#This Row],[Median]]-AAMC_Raw_Data_for_FY22[[#This Row],[25th]])/25)*10) + AAMC_Raw_Data_for_FY22[[#This Row],[25th]]","v":247734.8},{"$f":"(((AAMC_Raw_Data_for_FY22[[#This Row],[Median]]-AAMC_Raw_Data_for_FY22[[#This Row],[25th]])/25)*15) + AAMC_Raw_Data_for_FY22[[#This Row],[25th]]","v":252427.2},{"$f":"(((AAMC_Raw_Data_for_FY22[[#This Row],[Median]]-AAMC_Raw_Data_for_FY22[[#This Row],[25th]])/25)*20) + AAMC_Raw_Data_for_FY22[[#This Row],[25th]]","v":257119.6},261812,{"$f":"(((AAMC_Raw_Data_for_FY22[[#This Row],[75th]]-AAMC_Raw_Data_for_FY22[[#This Row],[Median]])/25)*5) + AAMC_Raw_Data_for_FY22[[#This Row],[Median]]","v":269449.59999999998},{"$f":"(((AAMC_Raw_Data_for_FY22[[#This Row],[75th]]-AAMC_Raw_Data_for_FY22[[#This Row],[Median]])/25)*10) + AAMC_Raw_Data_for_FY22[[#This Row],[Median]]","v":277087.2},{"$f":"(((AAMC_Raw_Data_for_FY22[[#This Row],[75th]]-AAMC_Raw_Data_for_FY22[[#This Row],[Median]])/25)*15) + AAMC_Raw_Data_for_FY22[[#This Row],[Median]]","v":284724.8},{"$f":"(((AAMC_Raw_Data_for_FY22[[#This Row],[75th]]-AAMC_Raw_Data_for_FY22[[#This Row],[Median]])/25)*20) + AAMC_Raw_Data_for_FY22[[#This Row],[Median]]","v":292362.40000000002},300000,{"$f":"(((AAMC_Raw_Data_for_FY22[[#This Row],[75th]]-AAMC_Raw_Data_for_FY22[[#This Row],[Median]])/25)*30) + AAMC_Raw_Data_for_FY22[[#This Row],[Median]]","v":307637.59999999998},{"$f":"(((AAMC_Raw_Data_for_FY22[[#This Row],[75th]]-AAMC_Raw_Data_for_FY22[[#This Row],[Median]])/25)*35) + AAMC_Raw_Data_for_FY22[[#This Row],[Median]]","v":315275.2},{"$f":"(((AAMC_Raw_Data_for_FY22[[#This Row],[75th]]-AAMC_Raw_Data_for_FY22[[#This Row],[Median]])/25)*40) + AAMC_Raw_Data_for_FY22[[#This Row],[Median]]","v":322912.8}]
[{"$f":"AAMC_Raw_Data_for_FY22[[#This Row],[Source]]&AAMC_Raw_Data_for_FY22[[#This Row],[Type]]&AAMC_Raw_Data_for_FY22[[#This Row],[School Subset]]&AAMC_Raw_Data_for_FY22[[#This Row],[Rank]]&AAMC_Raw_Data_for_FY22[[#This Row],[Degree]]&AAMC_Raw_Data_for_FY22[[#This Row],[Department / Specialty]]&\"L\"","v":"AAMCAcademicPrivateAssociateMDPediatric CardiologyL"},"Pediatric Cardiology",3,"AAMC","Academic","Private","Associate","MD","2021-2022",291975,{"$f":"(((AAMC_Raw_Data_for_FY22[[#This Row],[Median]]-AAMC_Raw_Data_for_FY22[[#This Row],[25th]])/25)*5) + AAMC_Raw_Data_for_FY22[[#This Row],[25th]]","v":298320},{"$f":"(((AAMC_Raw_Data_for_FY22[[#This Row],[Median]]-AAMC_Raw_Data_for_FY22[[#This Row],[25th]])/25)*10) + AAMC_Raw_Data_for_FY22[[#This Row],[25th]]","v":304665},{"$f":"(((AAMC_Raw_Data_for_FY22[[#This Row],[Median]]-AAMC_Raw_Data_for_FY22[[#This Row],[25th]])/25)*15) + AAMC_Raw_Data_for_FY22[[#This Row],[25th]]","v":311010},{"$f":"(((AAMC_Raw_Data_for_FY22[[#This Row],[Median]]-AAMC_Raw_Data_for_FY22[[#This Row],[25th]])/25)*20) + AAMC_Raw_Data_for_FY22[[#This Row],[25th]]","v":317355},323700,{"$f":"(((AAMC_Raw_Data_for_FY22[[#This Row],[75th]]-AAMC_Raw_Data_for_FY22[[#This Row],[Median]])/25)*5) + AAMC_Raw_Data_for_FY22[[#This Row],[Median]]","v":330960},{"$f":"(((AAMC_Raw_Data_for_FY22[[#This Row],[75th]]-AAMC_Raw_Data_for_FY22[[#This Row],[Median]])/25)*10) + AAMC_Raw_Data_for_FY22[[#This Row],[Median]]","v":338220},{"$f":"(((AAMC_Raw_Data_for_FY22[[#This Row],[75th]]-AAMC_Raw_Data_for_FY22[[#This Row],[Median]])/25)*15) + AAMC_Raw_Data_for_FY22[[#This Row],[Median]]","v":345480},{"$f":"(((AAMC_Raw_Data_for_FY22[[#This Row],[75th]]-AAMC_Raw_Data_for_FY22[[#This Row],[Median]])/25)*20) + AAMC_Raw_Data_for_FY22[[#This Row],[Median]]","v":352740},360000,{"$f":"(((AAMC_Raw_Data_for_FY22[[#This Row],[75th]]-AAMC_Raw_Data_for_FY22[[#This Row],[Median]])/25)*30) + AAMC_Raw_Data_for_FY22[[#This Row],[Median]]","v":367260},{"$f":"(((AAMC_Raw_Data_for_FY22[[#This Row],[75th]]-AAMC_Raw_Data_for_FY22[[#This Row],[Median]])/25)*35) + AAMC_Raw_Data_for_FY22[[#This Row],[Median]]","v":374520},{"$f":"(((AAMC_Raw_Data_for_FY22[[#This Row],[75th]]-AAMC_Raw_Data_for_FY22[[#This Row],[Median]])/25)*40) + AAMC_Raw_Data_for_FY22[[#This Row],[Median]]","v":381780}]
[{"$f":"AAMC_Raw_Data_for_FY22[[#This Row],[Source]]&AAMC_Raw_Data_for_FY22[[#This Row],[Type]]&AAMC_Raw_Data_for_FY22[[#This Row],[School Subset]]&AAMC_Raw_Data_for_FY22[[#This Row],[Rank]]&AAMC_Raw_Data_for_FY22[[#This Row],[Degree]]&AAMC_Raw_Data_for_FY22[[#This Row],[Department / Specialty]]&\"L\"","v":"AAMCAcademicPrivateProfessorMDPediatric CardiologyL"},"Pediatric Cardiology",2,"AAMC","Academic","Private","Professor","MD","2021-2022",344965,{"$f":"(((AAMC_Raw_Data_for_FY22[[#This Row],[Median]]-AAMC_Raw_Data_for_FY22[[#This Row],[25th]])/25)*5) + AAMC_Raw_Data_for_FY22[[#This Row],[25th]]","v":355999.4},{"$f":"(((AAMC_Raw_Data_for_FY22[[#This Row],[Median]]-AAMC_Raw_Data_for_FY22[[#This Row],[25th]])/25)*10) + AAMC_Raw_Data_for_FY22[[#This Row],[25th]]","v":367033.8},{"$f":"(((AAMC_Raw_Data_for_FY22[[#This Row],[Median]]-AAMC_Raw_Data_for_FY22[[#This Row],[25th]])/25)*15) + AAMC_Raw_Data_for_FY22[[#This Row],[25th]]","v":378068.2},{"$f":"(((AAMC_Raw_Data_for_FY22[[#This Row],[Median]]-AAMC_Raw_Data_for_FY22[[#This Row],[25th]])/25)*20) + AAMC_Raw_Data_for_FY22[[#This Row],[25th]]","v":389102.6},400137,{"$f":"(((AAMC_Raw_Data_for_FY22[[#This Row],[75th]]-AAMC_Raw_Data_for_FY22[[#This Row],[Median]])/25)*5) + AAMC_Raw_Data_for_FY22[[#This Row],[Median]]","v":415823.6},{"$f":"(((AAMC_Raw_Data_for_FY22[[#This Row],[75th]]-AAMC_Raw_Data_for_FY22[[#This Row],[Median]])/25)*10) + AAMC_Raw_Data_for_FY22[[#This Row],[Median]]","v":431510.2},{"$f":"(((AAMC_Raw_Data_for_FY22[[#This Row],[75th]]-AAMC_Raw_Data_for_FY22[[#This Row],[Median]])/25)*15) + AAMC_Raw_Data_for_FY22[[#This Row],[Median]]","v":447196.8},{"$f":"(((AAMC_Raw_Data_for_FY22[[#This Row],[75th]]-AAMC_Raw_Data_for_FY22[[#This Row],[Median]])/25)*20) + AAMC_Raw_Data_for_FY22[[#This Row],[Median]]","v":462883.4},478570,{"$f":"(((AAMC_Raw_Data_for_FY22[[#This Row],[75th]]-AAMC_Raw_Data_for_FY22[[#This Row],[Median]])/25)*30) + AAMC_Raw_Data_for_FY22[[#This Row],[Median]]","v":494256.6},{"$f":"(((AAMC_Raw_Data_for_FY22[[#This Row],[75th]]-AAMC_Raw_Data_for_FY22[[#This Row],[Median]])/25)*35) + AAMC_Raw_Data_for_FY22[[#This Row],[Median]]","v":509943.2},{"$f":"(((AAMC_Raw_Data_for_FY22[[#This Row],[75th]]-AAMC_Raw_Data_for_FY22[[#This Row],[Median]])/25)*40) + AAMC_Raw_Data_for_FY22[[#This Row],[Median]]","v":525629.80000000005}]
[{"$f":"AAMC_Raw_Data_for_FY22[[#This Row],[Source]]&AAMC_Raw_Data_for_FY22[[#This Row],[Type]]&AAMC_Raw_Data_for_FY22[[#This Row],[School Subset]]&AAMC_Raw_Data_for_FY22[[#This Row],[Rank]]&AAMC_Raw_Data_for_FY22[[#This Row],[Degree]]&AAMC_Raw_Data_for_FY22[[#This Row],[Department / Specialty]]&\"L\"","v":"AAMCAcademicPrivateChiefMDPediatric CardiologyL"},"Pediatric Cardiology",6,"AAMC","Academic","Private","Chief","MD","2021-2022",389627,{"$f":"(((AAMC_Raw_Data_for_FY22[[#This Row],[Median]]-AAMC_Raw_Data_for_FY22[[#This Row],[25th]])/25)*5) + AAMC_Raw_Data_for_FY22[[#This Row],[25th]]","v":409633.8},{"$f":"(((AAMC_Raw_Data_for_FY22[[#This Row],[Median]]-AAMC_Raw_Data_for_FY22[[#This Row],[25th]])/25)*10) + AAMC_Raw_Data_for_FY22[[#This Row],[25th]]","v":429640.6},{"$f":"(((AAMC_Raw_Data_for_FY22[[#This Row],[Median]]-AAMC_Raw_Data_for_FY22[[#This Row],[25th]])/25)*15) + AAMC_Raw_Data_for_FY22[[#This Row],[25th]]","v":449647.4},{"$f":"(((AAMC_Raw_Data_for_FY22[[#This Row],[Median]]-AAMC_Raw_Data_for_FY22[[#This Row],[25th]])/25)*20) + AAMC_Raw_Data_for_FY22[[#This Row],[25th]]","v":469654.2},489661,{"$f":"(((AAMC_Raw_Data_for_FY22[[#This Row],[75th]]-AAMC_Raw_Data_for_FY22[[#This Row],[Median]])/25)*5) + AAMC_Raw_Data_for_FY22[[#This Row],[Median]]","v":509387.4},{"$f":"(((AAMC_Raw_Data_for_FY22[[#This Row],[75th]]-AAMC_Raw_Data_for_FY22[[#This Row],[Median]])/25)*10) + AAMC_Raw_Data_for_FY22[[#This Row],[Median]]","v":529113.80000000005},{"$f":"(((AAMC_Raw_Data_for_FY22[[#This Row],[75th]]-AAMC_Raw_Data_for_FY22[[#This Row],[Median]])/25)*15) + AAMC_Raw_Data_for_FY22[[#This Row],[Median]]","v":548840.19999999995},{"$f":"(((AAMC_Raw_Data_for_FY22[[#This Row],[75th]]-AAMC_Raw_Data_for_FY22[[#This Row],[Median]])/25)*20) + AAMC_Raw_Data_for_FY22[[#This Row],[Median]]","v":568566.6},588293,{"$f":"(((AAMC_Raw_Data_for_FY22[[#This Row],[75th]]-AAMC_Raw_Data_for_FY22[[#This Row],[Median]])/25)*30) + AAMC_Raw_Data_for_FY22[[#This Row],[Median]]","v":608019.4},{"$f":"(((AAMC_Raw_Data_for_FY22[[#This Row],[75th]]-AAMC_Raw_Data_for_FY22[[#This Row],[Median]])/25)*35) + AAMC_Raw_Data_for_FY22[[#This Row],[Median]]","v":627745.80000000005},{"$f":"(((AAMC_Raw_Data_for_FY22[[#This Row],[75th]]-AAMC_Raw_Data_for_FY22[[#This Row],[Median]])/25)*40) + AAMC_Raw_Data_for_FY22[[#This Row],[Median]]","v":647472.19999999995}]
[{"$f":"AAMC_Raw_Data_for_FY22[[#This Row],[Source]]&AAMC_Raw_Data_for_FY22[[#This Row],[Type]]&AAMC_Raw_Data_for_FY22[[#This Row],[School Subset]]&AAMC_Raw_Data_for_FY22[[#This Row],[Rank]]&AAMC_Raw_Data_for_FY22[[#This Row],[Degree]]&AAMC_Raw_Data_for_FY22[[#This Row],[Department / Specialty]]&\"L\"","v":"AAMCAcademicPrivateChairMDPediatric CardiologyL"},"Pediatric Cardiology",1,"AAMC","Academic","Private","Chair","MD","2021-2022",null,{"$f":"(((AAMC_Raw_Data_for_FY22[[#This Row],[Median]]-AAMC_Raw_Data_for_FY22[[#This Row],[25th]])/25)*5) + AAMC_Raw_Data_for_FY22[[#This Row],[25th]]","v":0},{"$f":"(((AAMC_Raw_Data_for_FY22[[#This Row],[Median]]-AAMC_Raw_Data_for_FY22[[#This Row],[25th]])/25)*10) + AAMC_Raw_Data_for_FY22[[#This Row],[25th]]","v":0},{"$f":"(((AAMC_Raw_Data_for_FY22[[#This Row],[Median]]-AAMC_Raw_Data_for_FY22[[#This Row],[25th]])/25)*15) + AAMC_Raw_Data_for_FY22[[#This Row],[25th]]","v":0},{"$f":"(((AAMC_Raw_Data_for_FY22[[#This Row],[Median]]-AAMC_Raw_Data_for_FY22[[#This Row],[25th]])/25)*20) + AAMC_Raw_Data_for_FY22[[#This Row],[25th]]","v":0},null,{"$f":"(((AAMC_Raw_Data_for_FY22[[#This Row],[75th]]-AAMC_Raw_Data_for_FY22[[#This Row],[Median]])/25)*5) + AAMC_Raw_Data_for_FY22[[#This Row],[Median]]","v":0},{"$f":"(((AAMC_Raw_Data_for_FY22[[#This Row],[75th]]-AAMC_Raw_Data_for_FY22[[#This Row],[Median]])/25)*10) + AAMC_Raw_Data_for_FY22[[#This Row],[Median]]","v":0},{"$f":"(((AAMC_Raw_Data_for_FY22[[#This Row],[75th]]-AAMC_Raw_Data_for_FY22[[#This Row],[Median]])/25)*15) + AAMC_Raw_Data_for_FY22[[#This Row],[Median]]","v":0},{"$f":"(((AAMC_Raw_Data_for_FY22[[#This Row],[75th]]-AAMC_Raw_Data_for_FY22[[#This Row],[Median]])/25)*20) + AAMC_Raw_Data_for_FY22[[#This Row],[Median]]","v":0},null,{"$f":"(((AAMC_Raw_Data_for_FY22[[#This Row],[75th]]-AAMC_Raw_Data_for_FY22[[#This Row],[Median]])/25)*30) + AAMC_Raw_Data_for_FY22[[#This Row],[Median]]","v":0},{"$f":"(((AAMC_Raw_Data_for_FY22[[#This Row],[75th]]-AAMC_Raw_Data_for_FY22[[#This Row],[Median]])/25)*35) + AAMC_Raw_Data_for_FY22[[#This Row],[Median]]","v":0},{"$f":"(((AAMC_Raw_Data_for_FY22[[#This Row],[75th]]-AAMC_Raw_Data_for_FY22[[#This Row],[Median]])/25)*40) + AAMC_Raw_Data_for_FY22[[#This Row],[Median]]","v":0}]
[{"$f":"AAMC_Raw_Data_for_FY22[[#This Row],[Source]]&AAMC_Raw_Data_for_FY22[[#This Row],[Type]]&AAMC_Raw_Data_for_FY22[[#This Row],[School Subset]]&AAMC_Raw_Data_for_FY22[[#This Row],[Rank]]&AAMC_Raw_Data_for_FY22[[#This Row],[Degree]]&AAMC_Raw_Data_for_FY22[[#This Row],[Department / Specialty]]&\"L\"","v":"AAMCAcademicPrivateInstructorMDPsychology-Peds.L"},"Psychology-Peds.",5,"AAMC","Academic","Private","Instructor","MD","2021-2022",null,{"$f":"(((AAMC_Raw_Data_for_FY22[[#This Row],[Median]]-AAMC_Raw_Data_for_FY22[[#This Row],[25th]])/25)*5) + AAMC_Raw_Data_for_FY22[[#This Row],[25th]]","v":0},{"$f":"(((AAMC_Raw_Data_for_FY22[[#This Row],[Median]]-AAMC_Raw_Data_for_FY22[[#This Row],[25th]])/25)*10) + AAMC_Raw_Data_for_FY22[[#This Row],[25th]]","v":0},{"$f":"(((AAMC_Raw_Data_for_FY22[[#This Row],[Median]]-AAMC_Raw_Data_for_FY22[[#This Row],[25th]])/25)*15) + AAMC_Raw_Data_for_FY22[[#This Row],[25th]]","v":0},{"$f":"(((AAMC_Raw_Data_for_FY22[[#This Row],[Median]]-AAMC_Raw_Data_for_FY22[[#This Row],[25th]])/25)*20) + AAMC_Raw_Data_for_FY22[[#This Row],[25th]]","v":0},null,{"$f":"(((AAMC_Raw_Data_for_FY22[[#This Row],[75th]]-AAMC_Raw_Data_for_FY22[[#This Row],[Median]])/25)*5) + AAMC_Raw_Data_for_FY22[[#This Row],[Median]]","v":0},{"$f":"(((AAMC_Raw_Data_for_FY22[[#This Row],[75th]]-AAMC_Raw_Data_for_FY22[[#This Row],[Median]])/25)*10) + AAMC_Raw_Data_for_FY22[[#This Row],[Median]]","v":0},{"$f":"(((AAMC_Raw_Data_for_FY22[[#This Row],[75th]]-AAMC_Raw_Data_for_FY22[[#This Row],[Median]])/25)*15) + AAMC_Raw_Data_for_FY22[[#This Row],[Median]]","v":0},{"$f":"(((AAMC_Raw_Data_for_FY22[[#This Row],[75th]]-AAMC_Raw_Data_for_FY22[[#This Row],[Median]])/25)*20) + AAMC_Raw_Data_for_FY22[[#This Row],[Median]]","v":0},null,{"$f":"(((AAMC_Raw_Data_for_FY22[[#This Row],[75th]]-AAMC_Raw_Data_for_FY22[[#This Row],[Median]])/25)*30) + AAMC_Raw_Data_for_FY22[[#This Row],[Median]]","v":0},{"$f":"(((AAMC_Raw_Data_for_FY22[[#This Row],[75th]]-AAMC_Raw_Data_for_FY22[[#This Row],[Median]])/25)*35) + AAMC_Raw_Data_for_FY22[[#This Row],[Median]]","v":0},{"$f":"(((AAMC_Raw_Data_for_FY22[[#This Row],[75th]]-AAMC_Raw_Data_for_FY22[[#This Row],[Median]])/25)*40) + AAMC_Raw_Data_for_FY22[[#This Row],[Median]]","v":0}]
[{"$f":"AAMC_Raw_Data_for_FY22[[#This Row],[Source]]&AAMC_Raw_Data_for_FY22[[#This Row],[Type]]&AAMC_Raw_Data_for_FY22[[#This Row],[School Subset]]&AAMC_Raw_Data_for_FY22[[#This Row],[Rank]]&AAMC_Raw_Data_for_FY22[[#This Row],[Degree]]&AAMC_Raw_Data_for_FY22[[#This Row],[Department / Specialty]]&\"L\"","v":"AAMCAcademicPrivateAssistantMDPsychology-Peds.L"},"Psychology-Peds.",4,"AAMC","Academic","Private","Assistant","MD","2021-2022",null,{"$f":"(((AAMC_Raw_Data_for_FY22[[#This Row],[Median]]-AAMC_Raw_Data_for_FY22[[#This Row],[25th]])/25)*5) + AAMC_Raw_Data_for_FY22[[#This Row],[25th]]","v":0},{"$f":"(((AAMC_Raw_Data_for_FY22[[#This Row],[Median]]-AAMC_Raw_Data_for_FY22[[#This Row],[25th]])/25)*10) + AAMC_Raw_Data_for_FY22[[#This Row],[25th]]","v":0},{"$f":"(((AAMC_Raw_Data_for_FY22[[#This Row],[Median]]-AAMC_Raw_Data_for_FY22[[#This Row],[25th]])/25)*15) + AAMC_Raw_Data_for_FY22[[#This Row],[25th]]","v":0},{"$f":"(((AAMC_Raw_Data_for_FY22[[#This Row],[Median]]-AAMC_Raw_Data_for_FY22[[#This Row],[25th]])/25)*20) + AAMC_Raw_Data_for_FY22[[#This Row],[25th]]","v":0},null,{"$f":"(((AAMC_Raw_Data_for_FY22[[#This Row],[75th]]-AAMC_Raw_Data_for_FY22[[#This Row],[Median]])/25)*5) + AAMC_Raw_Data_for_FY22[[#This Row],[Median]]","v":0},{"$f":"(((AAMC_Raw_Data_for_FY22[[#This Row],[75th]]-AAMC_Raw_Data_for_FY22[[#This Row],[Median]])/25)*10) + AAMC_Raw_Data_for_FY22[[#This Row],[Median]]","v":0},{"$f":"(((AAMC_Raw_Data_for_FY22[[#This Row],[75th]]-AAMC_Raw_Data_for_FY22[[#This Row],[Median]])/25)*15) + AAMC_Raw_Data_for_FY22[[#This Row],[Median]]","v":0},{"$f":"(((AAMC_Raw_Data_for_FY22[[#This Row],[75th]]-AAMC_Raw_Data_for_FY22[[#This Row],[Median]])/25)*20) + AAMC_Raw_Data_for_FY22[[#This Row],[Median]]","v":0},null,{"$f":"(((AAMC_Raw_Data_for_FY22[[#This Row],[75th]]-AAMC_Raw_Data_for_FY22[[#This Row],[Median]])/25)*30) + AAMC_Raw_Data_for_FY22[[#This Row],[Median]]","v":0},{"$f":"(((AAMC_Raw_Data_for_FY22[[#This Row],[75th]]-AAMC_Raw_Data_for_FY22[[#This Row],[Median]])/25)*35) + AAMC_Raw_Data_for_FY22[[#This Row],[Median]]","v":0},{"$f":"(((AAMC_Raw_Data_for_FY22[[#This Row],[75th]]-AAMC_Raw_Data_for_FY22[[#This Row],[Median]])/25)*40) + AAMC_Raw_Data_for_FY22[[#This Row],[Median]]","v":0}]
[{"$f":"AAMC_Raw_Data_for_FY22[[#This Row],[Source]]&AAMC_Raw_Data_for_FY22[[#This Row],[Type]]&AAMC_Raw_Data_for_FY22[[#This Row],[School Subset]]&AAMC_Raw_Data_for_FY22[[#This Row],[Rank]]&AAMC_Raw_Data_for_FY22[[#This Row],[Degree]]&AAMC_Raw_Data_for_FY22[[#This Row],[Department / Specialty]]&\"L\"","v":"AAMCAcademicPrivateAssociateMDPsychology-Peds.L"},"Psychology-Peds.",3,"AAMC","Academic","Private","Associate","MD","2021-2022",null,{"$f":"(((AAMC_Raw_Data_for_FY22[[#This Row],[Median]]-AAMC_Raw_Data_for_FY22[[#This Row],[25th]])/25)*5) + AAMC_Raw_Data_for_FY22[[#This Row],[25th]]","v":0},{"$f":"(((AAMC_Raw_Data_for_FY22[[#This Row],[Median]]-AAMC_Raw_Data_for_FY22[[#This Row],[25th]])/25)*10) + AAMC_Raw_Data_for_FY22[[#This Row],[25th]]","v":0},{"$f":"(((AAMC_Raw_Data_for_FY22[[#This Row],[Median]]-AAMC_Raw_Data_for_FY22[[#This Row],[25th]])/25)*15) + AAMC_Raw_Data_for_FY22[[#This Row],[25th]]","v":0},{"$f":"(((AAMC_Raw_Data_for_FY22[[#This Row],[Median]]-AAMC_Raw_Data_for_FY22[[#This Row],[25th]])/25)*20) + AAMC_Raw_Data_for_FY22[[#This Row],[25th]]","v":0},null,{"$f":"(((AAMC_Raw_Data_for_FY22[[#This Row],[75th]]-AAMC_Raw_Data_for_FY22[[#This Row],[Median]])/25)*5) + AAMC_Raw_Data_for_FY22[[#This Row],[Median]]","v":0},{"$f":"(((AAMC_Raw_Data_for_FY22[[#This Row],[75th]]-AAMC_Raw_Data_for_FY22[[#This Row],[Median]])/25)*10) + AAMC_Raw_Data_for_FY22[[#This Row],[Median]]","v":0},{"$f":"(((AAMC_Raw_Data_for_FY22[[#This Row],[75th]]-AAMC_Raw_Data_for_FY22[[#This Row],[Median]])/25)*15) + AAMC_Raw_Data_for_FY22[[#This Row],[Median]]","v":0},{"$f":"(((AAMC_Raw_Data_for_FY22[[#This Row],[75th]]-AAMC_Raw_Data_for_FY22[[#This Row],[Median]])/25)*20) + AAMC_Raw_Data_for_FY22[[#This Row],[Median]]","v":0},null,{"$f":"(((AAMC_Raw_Data_for_FY22[[#This Row],[75th]]-AAMC_Raw_Data_for_FY22[[#This Row],[Median]])/25)*30) + AAMC_Raw_Data_for_FY22[[#This Row],[Median]]","v":0},{"$f":"(((AAMC_Raw_Data_for_FY22[[#This Row],[75th]]-AAMC_Raw_Data_for_FY22[[#This Row],[Median]])/25)*35) + AAMC_Raw_Data_for_FY22[[#This Row],[Median]]","v":0},{"$f":"(((AAMC_Raw_Data_for_FY22[[#This Row],[75th]]-AAMC_Raw_Data_for_FY22[[#This Row],[Median]])/25)*40) + AAMC_Raw_Data_for_FY22[[#This Row],[Median]]","v":0}]
[{"$f":"AAMC_Raw_Data_for_FY22[[#This Row],[Source]]&AAMC_Raw_Data_for_FY22[[#This Row],[Type]]&AAMC_Raw_Data_for_FY22[[#This Row],[School Subset]]&AAMC_Raw_Data_for_FY22[[#This Row],[Rank]]&AAMC_Raw_Data_for_FY22[[#This Row],[Degree]]&AAMC_Raw_Data_for_FY22[[#This Row],[Department / Specialty]]&\"L\"","v":"AAMCAcademicPrivateProfessorMDPsychology-Peds.L"},"Psychology-Peds.",2,"AAMC","Academic","Private","Professor","MD","2021-2022",null,{"$f":"(((AAMC_Raw_Data_for_FY22[[#This Row],[Median]]-AAMC_Raw_Data_for_FY22[[#This Row],[25th]])/25)*5) + AAMC_Raw_Data_for_FY22[[#This Row],[25th]]","v":0},{"$f":"(((AAMC_Raw_Data_for_FY22[[#This Row],[Median]]-AAMC_Raw_Data_for_FY22[[#This Row],[25th]])/25)*10) + AAMC_Raw_Data_for_FY22[[#This Row],[25th]]","v":0},{"$f":"(((AAMC_Raw_Data_for_FY22[[#This Row],[Median]]-AAMC_Raw_Data_for_FY22[[#This Row],[25th]])/25)*15) + AAMC_Raw_Data_for_FY22[[#This Row],[25th]]","v":0},{"$f":"(((AAMC_Raw_Data_for_FY22[[#This Row],[Median]]-AAMC_Raw_Data_for_FY22[[#This Row],[25th]])/25)*20) + AAMC_Raw_Data_for_FY22[[#This Row],[25th]]","v":0},null,{"$f":"(((AAMC_Raw_Data_for_FY22[[#This Row],[75th]]-AAMC_Raw_Data_for_FY22[[#This Row],[Median]])/25)*5) + AAMC_Raw_Data_for_FY22[[#This Row],[Median]]","v":0},{"$f":"(((AAMC_Raw_Data_for_FY22[[#This Row],[75th]]-AAMC_Raw_Data_for_FY22[[#This Row],[Median]])/25)*10) + AAMC_Raw_Data_for_FY22[[#This Row],[Median]]","v":0},{"$f":"(((AAMC_Raw_Data_for_FY22[[#This Row],[75th]]-AAMC_Raw_Data_for_FY22[[#This Row],[Median]])/25)*15) + AAMC_Raw_Data_for_FY22[[#This Row],[Median]]","v":0},{"$f":"(((AAMC_Raw_Data_for_FY22[[#This Row],[75th]]-AAMC_Raw_Data_for_FY22[[#This Row],[Median]])/25)*20) + AAMC_Raw_Data_for_FY22[[#This Row],[Median]]","v":0},null,{"$f":"(((AAMC_Raw_Data_for_FY22[[#This Row],[75th]]-AAMC_Raw_Data_for_FY22[[#This Row],[Median]])/25)*30) + AAMC_Raw_Data_for_FY22[[#This Row],[Median]]","v":0},{"$f":"(((AAMC_Raw_Data_for_FY22[[#This Row],[75th]]-AAMC_Raw_Data_for_FY22[[#This Row],[Median]])/25)*35) + AAMC_Raw_Data_for_FY22[[#This Row],[Median]]","v":0},{"$f":"(((AAMC_Raw_Data_for_FY22[[#This Row],[75th]]-AAMC_Raw_Data_for_FY22[[#This Row],[Median]])/25)*40) + AAMC_Raw_Data_for_FY22[[#This Row],[Median]]","v":0}]
[{"$f":"AAMC_Raw_Data_for_FY22[[#This Row],[Source]]&AAMC_Raw_Data_for_FY22[[#This Row],[Type]]&AAMC_Raw_Data_for_FY22[[#This Row],[School Subset]]&AAMC_Raw_Data_for_FY22[[#This Row],[Rank]]&AAMC_Raw_Data_for_FY22[[#This Row],[Degree]]&AAMC_Raw_Data_for_FY22[[#This Row],[Department / Specialty]]&\"L\"","v":"AAMCAcademicPrivateChiefMDPsychology-Peds.L"},"Psychology-Peds.",6,"AAMC","Academic","Private","Chief","MD","2021-2022",null,{"$f":"(((AAMC_Raw_Data_for_FY22[[#This Row],[Median]]-AAMC_Raw_Data_for_FY22[[#This Row],[25th]])/25)*5) + AAMC_Raw_Data_for_FY22[[#This Row],[25th]]","v":0},{"$f":"(((AAMC_Raw_Data_for_FY22[[#This Row],[Median]]-AAMC_Raw_Data_for_FY22[[#This Row],[25th]])/25)*10) + AAMC_Raw_Data_for_FY22[[#This Row],[25th]]","v":0},{"$f":"(((AAMC_Raw_Data_for_FY22[[#This Row],[Median]]-AAMC_Raw_Data_for_FY22[[#This Row],[25th]])/25)*15) + AAMC_Raw_Data_for_FY22[[#This Row],[25th]]","v":0},{"$f":"(((AAMC_Raw_Data_for_FY22[[#This Row],[Median]]-AAMC_Raw_Data_for_FY22[[#This Row],[25th]])/25)*20) + AAMC_Raw_Data_for_FY22[[#This Row],[25th]]","v":0},null,{"$f":"(((AAMC_Raw_Data_for_FY22[[#This Row],[75th]]-AAMC_Raw_Data_for_FY22[[#This Row],[Median]])/25)*5) + AAMC_Raw_Data_for_FY22[[#This Row],[Median]]","v":0},{"$f":"(((AAMC_Raw_Data_for_FY22[[#This Row],[75th]]-AAMC_Raw_Data_for_FY22[[#This Row],[Median]])/25)*10) + AAMC_Raw_Data_for_FY22[[#This Row],[Median]]","v":0},{"$f":"(((AAMC_Raw_Data_for_FY22[[#This Row],[75th]]-AAMC_Raw_Data_for_FY22[[#This Row],[Median]])/25)*15) + AAMC_Raw_Data_for_FY22[[#This Row],[Median]]","v":0},{"$f":"(((AAMC_Raw_Data_for_FY22[[#This Row],[75th]]-AAMC_Raw_Data_for_FY22[[#This Row],[Median]])/25)*20) + AAMC_Raw_Data_for_FY22[[#This Row],[Median]]","v":0},null,{"$f":"(((AAMC_Raw_Data_for_FY22[[#This Row],[75th]]-AAMC_Raw_Data_for_FY22[[#This Row],[Median]])/25)*30) + AAMC_Raw_Data_for_FY22[[#This Row],[Median]]","v":0},{"$f":"(((AAMC_Raw_Data_for_FY22[[#This Row],[75th]]-AAMC_Raw_Data_for_FY22[[#This Row],[Median]])/25)*35) + AAMC_Raw_Data_for_FY22[[#This Row],[Median]]","v":0},{"$f":"(((AAMC_Raw_Data_for_FY22[[#This Row],[75th]]-AAMC_Raw_Data_for_FY22[[#This Row],[Median]])/25)*40) + AAMC_Raw_Data_for_FY22[[#This Row],[Median]]","v":0}]
[{"$f":"AAMC_Raw_Data_for_FY22[[#This Row],[Source]]&AAMC_Raw_Data_for_FY22[[#This Row],[Type]]&AAMC_Raw_Data_for_FY22[[#This Row],[School Subset]]&AAMC_Raw_Data_for_FY22[[#This Row],[Rank]]&AAMC_Raw_Data_for_FY22[[#This Row],[Degree]]&AAMC_Raw_Data_for_FY22[[#This Row],[Department / Specialty]]&\"L\"","v":"AAMCAcademicPrivateInstructorMDPulmonary-Peds.L"},"Pulmonary-Peds.",5,"AAMC","Academic","Private","Instructor","MD","2021-2022",null,{"$f":"(((AAMC_Raw_Data_for_FY22[[#This Row],[Median]]-AAMC_Raw_Data_for_FY22[[#This Row],[25th]])/25)*5) + AAMC_Raw_Data_for_FY22[[#This Row],[25th]]","v":0},{"$f":"(((AAMC_Raw_Data_for_FY22[[#This Row],[Median]]-AAMC_Raw_Data_for_FY22[[#This Row],[25th]])/25)*10) + AAMC_Raw_Data_for_FY22[[#This Row],[25th]]","v":0},{"$f":"(((AAMC_Raw_Data_for_FY22[[#This Row],[Median]]-AAMC_Raw_Data_for_FY22[[#This Row],[25th]])/25)*15) + AAMC_Raw_Data_for_FY22[[#This Row],[25th]]","v":0},{"$f":"(((AAMC_Raw_Data_for_FY22[[#This Row],[Median]]-AAMC_Raw_Data_for_FY22[[#This Row],[25th]])/25)*20) + AAMC_Raw_Data_for_FY22[[#This Row],[25th]]","v":0},null,{"$f":"(((AAMC_Raw_Data_for_FY22[[#This Row],[75th]]-AAMC_Raw_Data_for_FY22[[#This Row],[Median]])/25)*5) + AAMC_Raw_Data_for_FY22[[#This Row],[Median]]","v":0},{"$f":"(((AAMC_Raw_Data_for_FY22[[#This Row],[75th]]-AAMC_Raw_Data_for_FY22[[#This Row],[Median]])/25)*10) + AAMC_Raw_Data_for_FY22[[#This Row],[Median]]","v":0},{"$f":"(((AAMC_Raw_Data_for_FY22[[#This Row],[75th]]-AAMC_Raw_Data_for_FY22[[#This Row],[Median]])/25)*15) + AAMC_Raw_Data_for_FY22[[#This Row],[Median]]","v":0},{"$f":"(((AAMC_Raw_Data_for_FY22[[#This Row],[75th]]-AAMC_Raw_Data_for_FY22[[#This Row],[Median]])/25)*20) + AAMC_Raw_Data_for_FY22[[#This Row],[Median]]","v":0},null,{"$f":"(((AAMC_Raw_Data_for_FY22[[#This Row],[75th]]-AAMC_Raw_Data_for_FY22[[#This Row],[Median]])/25)*30) + AAMC_Raw_Data_for_FY22[[#This Row],[Median]]","v":0},{"$f":"(((AAMC_Raw_Data_for_FY22[[#This Row],[75th]]-AAMC_Raw_Data_for_FY22[[#This Row],[Median]])/25)*35) + AAMC_Raw_Data_for_FY22[[#This Row],[Median]]","v":0},{"$f":"(((AAMC_Raw_Data_for_FY22[[#This Row],[75th]]-AAMC_Raw_Data_for_FY22[[#This Row],[Median]])/25)*40) + AAMC_Raw_Data_for_FY22[[#This Row],[Median]]","v":0}]
[{"$f":"AAMC_Raw_Data_for_FY22[[#This Row],[Source]]&AAMC_Raw_Data_for_FY22[[#This Row],[Type]]&AAMC_Raw_Data_for_FY22[[#This Row],[School Subset]]&AAMC_Raw_Data_for_FY22[[#This Row],[Rank]]&AAMC_Raw_Data_for_FY22[[#This Row],[Degree]]&AAMC_Raw_Data_for_FY22[[#This Row],[Department / Specialty]]&\"L\"","v":"AAMCAcademicPrivateAssistantMDPulmonary-Peds.L"},"Pulmonary-Peds.",4,"AAMC","Academic","Private","Assistant","MD","2021-2022",189612,{"$f":"(((AAMC_Raw_Data_for_FY22[[#This Row],[Median]]-AAMC_Raw_Data_for_FY22[[#This Row],[25th]])/25)*5) + AAMC_Raw_Data_for_FY22[[#This Row],[25th]]","v":193345.6},{"$f":"(((AAMC_Raw_Data_for_FY22[[#This Row],[Median]]-AAMC_Raw_Data_for_FY22[[#This Row],[25th]])/25)*10) + AAMC_Raw_Data_for_FY22[[#This Row],[25th]]","v":197079.2},{"$f":"(((AAMC_Raw_Data_for_FY22[[#This Row],[Median]]-AAMC_Raw_Data_for_FY22[[#This Row],[25th]])/25)*15) + AAMC_Raw_Data_for_FY22[[#This Row],[25th]]","v":200812.79999999999},{"$f":"(((AAMC_Raw_Data_for_FY22[[#This Row],[Median]]-AAMC_Raw_Data_for_FY22[[#This Row],[25th]])/25)*20) + AAMC_Raw_Data_for_FY22[[#This Row],[25th]]","v":204546.4},208280,{"$f":"(((AAMC_Raw_Data_for_FY22[[#This Row],[75th]]-AAMC_Raw_Data_for_FY22[[#This Row],[Median]])/25)*5) + AAMC_Raw_Data_for_FY22[[#This Row],[Median]]","v":212896.2},{"$f":"(((AAMC_Raw_Data_for_FY22[[#This Row],[75th]]-AAMC_Raw_Data_for_FY22[[#This Row],[Median]])/25)*10) + AAMC_Raw_Data_for_FY22[[#This Row],[Median]]","v":217512.4},{"$f":"(((AAMC_Raw_Data_for_FY22[[#This Row],[75th]]-AAMC_Raw_Data_for_FY22[[#This Row],[Median]])/25)*15) + AAMC_Raw_Data_for_FY22[[#This Row],[Median]]","v":222128.6},{"$f":"(((AAMC_Raw_Data_for_FY22[[#This Row],[75th]]-AAMC_Raw_Data_for_FY22[[#This Row],[Median]])/25)*20) + AAMC_Raw_Data_for_FY22[[#This Row],[Median]]","v":226744.8},231361,{"$f":"(((AAMC_Raw_Data_for_FY22[[#This Row],[75th]]-AAMC_Raw_Data_for_FY22[[#This Row],[Median]])/25)*30) + AAMC_Raw_Data_for_FY22[[#This Row],[Median]]","v":235977.2},{"$f":"(((AAMC_Raw_Data_for_FY22[[#This Row],[75th]]-AAMC_Raw_Data_for_FY22[[#This Row],[Median]])/25)*35) + AAMC_Raw_Data_for_FY22[[#This Row],[Median]]","v":240593.4},{"$f":"(((AAMC_Raw_Data_for_FY22[[#This Row],[75th]]-AAMC_Raw_Data_for_FY22[[#This Row],[Median]])/25)*40) + AAMC_Raw_Data_for_FY22[[#This Row],[Median]]","v":245209.60000000001}]
[{"$f":"AAMC_Raw_Data_for_FY22[[#This Row],[Source]]&AAMC_Raw_Data_for_FY22[[#This Row],[Type]]&AAMC_Raw_Data_for_FY22[[#This Row],[School Subset]]&AAMC_Raw_Data_for_FY22[[#This Row],[Rank]]&AAMC_Raw_Data_for_FY22[[#This Row],[Degree]]&AAMC_Raw_Data_for_FY22[[#This Row],[Department / Specialty]]&\"L\"","v":"AAMCAcademicPrivateAssociateMDPulmonary-Peds.L"},"Pulmonary-Peds.",3,"AAMC","Academic","Private","Associate","MD","2021-2022",230178,{"$f":"(((AAMC_Raw_Data_for_FY22[[#This Row],[Median]]-AAMC_Raw_Data_for_FY22[[#This Row],[25th]])/25)*5) + AAMC_Raw_Data_for_FY22[[#This Row],[25th]]","v":234094.4},{"$f":"(((AAMC_Raw_Data_for_FY22[[#This Row],[Median]]-AAMC_Raw_Data_for_FY22[[#This Row],[25th]])/25)*10) + AAMC_Raw_Data_for_FY22[[#This Row],[25th]]","v":238010.8},{"$f":"(((AAMC_Raw_Data_for_FY22[[#This Row],[Median]]-AAMC_Raw_Data_for_FY22[[#This Row],[25th]])/25)*15) + AAMC_Raw_Data_for_FY22[[#This Row],[25th]]","v":241927.2},{"$f":"(((AAMC_Raw_Data_for_FY22[[#This Row],[Median]]-AAMC_Raw_Data_for_FY22[[#This Row],[25th]])/25)*20) + AAMC_Raw_Data_for_FY22[[#This Row],[25th]]","v":245843.6},249760,{"$f":"(((AAMC_Raw_Data_for_FY22[[#This Row],[75th]]-AAMC_Raw_Data_for_FY22[[#This Row],[Median]])/25)*5) + AAMC_Raw_Data_for_FY22[[#This Row],[Median]]","v":255062.2},{"$f":"(((AAMC_Raw_Data_for_FY22[[#This Row],[75th]]-AAMC_Raw_Data_for_FY22[[#This Row],[Median]])/25)*10) + AAMC_Raw_Data_for_FY22[[#This Row],[Median]]","v":260364.4},{"$f":"(((AAMC_Raw_Data_for_FY22[[#This Row],[75th]]-AAMC_Raw_Data_for_FY22[[#This Row],[Median]])/25)*15) + AAMC_Raw_Data_for_FY22[[#This Row],[Median]]","v":265666.59999999998},{"$f":"(((AAMC_Raw_Data_for_FY22[[#This Row],[75th]]-AAMC_Raw_Data_for_FY22[[#This Row],[Median]])/25)*20) + AAMC_Raw_Data_for_FY22[[#This Row],[Median]]","v":270968.8},276271,{"$f":"(((AAMC_Raw_Data_for_FY22[[#This Row],[75th]]-AAMC_Raw_Data_for_FY22[[#This Row],[Median]])/25)*30) + AAMC_Raw_Data_for_FY22[[#This Row],[Median]]","v":281573.2},{"$f":"(((AAMC_Raw_Data_for_FY22[[#This Row],[75th]]-AAMC_Raw_Data_for_FY22[[#This Row],[Median]])/25)*35) + AAMC_Raw_Data_for_FY22[[#This Row],[Median]]","v":286875.40000000002},{"$f":"(((AAMC_Raw_Data_for_FY22[[#This Row],[75th]]-AAMC_Raw_Data_for_FY22[[#This Row],[Median]])/25)*40) + AAMC_Raw_Data_for_FY22[[#This Row],[Median]]","v":292177.59999999998}]
[{"$f":"AAMC_Raw_Data_for_FY22[[#This Row],[Source]]&AAMC_Raw_Data_for_FY22[[#This Row],[Type]]&AAMC_Raw_Data_for_FY22[[#This Row],[School Subset]]&AAMC_Raw_Data_for_FY22[[#This Row],[Rank]]&AAMC_Raw_Data_for_FY22[[#This Row],[Degree]]&AAMC_Raw_Data_for_FY22[[#This Row],[Department / Specialty]]&\"L\"","v":"AAMCAcademicPrivateProfessorMDPulmonary-Peds.L"},"Pulmonary-Peds.",2,"AAMC","Academic","Private","Professor","MD","2021-2022",267391,{"$f":"(((AAMC_Raw_Data_for_FY22[[#This Row],[Median]]-AAMC_Raw_Data_for_FY22[[#This Row],[25th]])/25)*5) + AAMC_Raw_Data_for_FY22[[#This Row],[25th]]","v":274833.2},{"$f":"(((AAMC_Raw_Data_for_FY22[[#This Row],[Median]]-AAMC_Raw_Data_for_FY22[[#This Row],[25th]])/25)*10) + AAMC_Raw_Data_for_FY22[[#This Row],[25th]]","v":282275.40000000002},{"$f":"(((AAMC_Raw_Data_for_FY22[[#This Row],[Median]]-AAMC_Raw_Data_for_FY22[[#This Row],[25th]])/25)*15) + AAMC_Raw_Data_for_FY22[[#This Row],[25th]]","v":289717.59999999998},{"$f":"(((AAMC_Raw_Data_for_FY22[[#This Row],[Median]]-AAMC_Raw_Data_for_FY22[[#This Row],[25th]])/25)*20) + AAMC_Raw_Data_for_FY22[[#This Row],[25th]]","v":297159.8},304602,{"$f":"(((AAMC_Raw_Data_for_FY22[[#This Row],[75th]]-AAMC_Raw_Data_for_FY22[[#This Row],[Median]])/25)*5) + AAMC_Raw_Data_for_FY22[[#This Row],[Median]]","v":311026.8},{"$f":"(((AAMC_Raw_Data_for_FY22[[#This Row],[75th]]-AAMC_Raw_Data_for_FY22[[#This Row],[Median]])/25)*10) + AAMC_Raw_Data_for_FY22[[#This Row],[Median]]","v":317451.59999999998},{"$f":"(((AAMC_Raw_Data_for_FY22[[#This Row],[75th]]-AAMC_Raw_Data_for_FY22[[#This Row],[Median]])/25)*15) + AAMC_Raw_Data_for_FY22[[#This Row],[Median]]","v":323876.40000000002},{"$f":"(((AAMC_Raw_Data_for_FY22[[#This Row],[75th]]-AAMC_Raw_Data_for_FY22[[#This Row],[Median]])/25)*20) + AAMC_Raw_Data_for_FY22[[#This Row],[Median]]","v":330301.2},336726,{"$f":"(((AAMC_Raw_Data_for_FY22[[#This Row],[75th]]-AAMC_Raw_Data_for_FY22[[#This Row],[Median]])/25)*30) + AAMC_Raw_Data_for_FY22[[#This Row],[Median]]","v":343150.8},{"$f":"(((AAMC_Raw_Data_for_FY22[[#This Row],[75th]]-AAMC_Raw_Data_for_FY22[[#This Row],[Median]])/25)*35) + AAMC_Raw_Data_for_FY22[[#This Row],[Median]]","v":349575.6},{"$f":"(((AAMC_Raw_Data_for_FY22[[#This Row],[75th]]-AAMC_Raw_Data_for_FY22[[#This Row],[Median]])/25)*40) + AAMC_Raw_Data_for_FY22[[#This Row],[Median]]","v":356000.4}]
[{"$f":"AAMC_Raw_Data_for_FY22[[#This Row],[Source]]&AAMC_Raw_Data_for_FY22[[#This Row],[Type]]&AAMC_Raw_Data_for_FY22[[#This Row],[School Subset]]&AAMC_Raw_Data_for_FY22[[#This Row],[Rank]]&AAMC_Raw_Data_for_FY22[[#This Row],[Degree]]&AAMC_Raw_Data_for_FY22[[#This Row],[Department / Specialty]]&\"L\"","v":"AAMCAcademicPrivateChiefMDPulmonary-Peds.L"},"Pulmonary-Peds.",6,"AAMC","Academic","Private","Chief","MD","2021-2022",299457,{"$f":"(((AAMC_Raw_Data_for_FY22[[#This Row],[Median]]-AAMC_Raw_Data_for_FY22[[#This Row],[25th]])/25)*5) + AAMC_Raw_Data_for_FY22[[#This Row],[25th]]","v":301927.59999999998},{"$f":"(((AAMC_Raw_Data_for_FY22[[#This Row],[Median]]-AAMC_Raw_Data_for_FY22[[#This Row],[25th]])/25)*10) + AAMC_Raw_Data_for_FY22[[#This Row],[25th]]","v":304398.2},{"$f":"(((AAMC_Raw_Data_for_FY22[[#This Row],[Median]]-AAMC_Raw_Data_for_FY22[[#This Row],[25th]])/25)*15) + AAMC_Raw_Data_for_FY22[[#This Row],[25th]]","v":306868.8},{"$f":"(((AAMC_Raw_Data_for_FY22[[#This Row],[Median]]-AAMC_Raw_Data_for_FY22[[#This Row],[25th]])/25)*20) + AAMC_Raw_Data_for_FY22[[#This Row],[25th]]","v":309339.40000000002},311810,{"$f":"(((AAMC_Raw_Data_for_FY22[[#This Row],[75th]]-AAMC_Raw_Data_for_FY22[[#This Row],[Median]])/25)*5) + AAMC_Raw_Data_for_FY22[[#This Row],[Median]]","v":327804.59999999998},{"$f":"(((AAMC_Raw_Data_for_FY22[[#This Row],[75th]]-AAMC_Raw_Data_for_FY22[[#This Row],[Median]])/25)*10) + AAMC_Raw_Data_for_FY22[[#This Row],[Median]]","v":343799.2},{"$f":"(((AAMC_Raw_Data_for_FY22[[#This Row],[75th]]-AAMC_Raw_Data_for_FY22[[#This Row],[Median]])/25)*15) + AAMC_Raw_Data_for_FY22[[#This Row],[Median]]","v":359793.8},{"$f":"(((AAMC_Raw_Data_for_FY22[[#This Row],[75th]]-AAMC_Raw_Data_for_FY22[[#This Row],[Median]])/25)*20) + AAMC_Raw_Data_for_FY22[[#This Row],[Median]]","v":375788.4},391783,{"$f":"(((AAMC_Raw_Data_for_FY22[[#This Row],[75th]]-AAMC_Raw_Data_for_FY22[[#This Row],[Median]])/25)*30) + AAMC_Raw_Data_for_FY22[[#This Row],[Median]]","v":407777.6},{"$f":"(((AAMC_Raw_Data_for_FY22[[#This Row],[75th]]-AAMC_Raw_Data_for_FY22[[#This Row],[Median]])/25)*35) + AAMC_Raw_Data_for_FY22[[#This Row],[Median]]","v":423772.2},{"$f":"(((AAMC_Raw_Data_for_FY22[[#This Row],[75th]]-AAMC_Raw_Data_for_FY22[[#This Row],[Median]])/25)*40) + AAMC_Raw_Data_for_FY22[[#This Row],[Median]]","v":439766.8}]
[{"$f":"AAMC_Raw_Data_for_FY22[[#This Row],[Source]]&AAMC_Raw_Data_for_FY22[[#This Row],[Type]]&AAMC_Raw_Data_for_FY22[[#This Row],[School Subset]]&AAMC_Raw_Data_for_FY22[[#This Row],[Rank]]&AAMC_Raw_Data_for_FY22[[#This Row],[Degree]]&AAMC_Raw_Data_for_FY22[[#This Row],[Department / Specialty]]&\"L\"","v":"AAMCAcademicPrivateInstructorMDRheumatology-Peds.L"},"Rheumatology-Peds.",5,"AAMC","Academic","Private","Instructor","MD","2021-2022",null,{"$f":"(((AAMC_Raw_Data_for_FY22[[#This Row],[Median]]-AAMC_Raw_Data_for_FY22[[#This Row],[25th]])/25)*5) + AAMC_Raw_Data_for_FY22[[#This Row],[25th]]","v":0},{"$f":"(((AAMC_Raw_Data_for_FY22[[#This Row],[Median]]-AAMC_Raw_Data_for_FY22[[#This Row],[25th]])/25)*10) + AAMC_Raw_Data_for_FY22[[#This Row],[25th]]","v":0},{"$f":"(((AAMC_Raw_Data_for_FY22[[#This Row],[Median]]-AAMC_Raw_Data_for_FY22[[#This Row],[25th]])/25)*15) + AAMC_Raw_Data_for_FY22[[#This Row],[25th]]","v":0},{"$f":"(((AAMC_Raw_Data_for_FY22[[#This Row],[Median]]-AAMC_Raw_Data_for_FY22[[#This Row],[25th]])/25)*20) + AAMC_Raw_Data_for_FY22[[#This Row],[25th]]","v":0},null,{"$f":"(((AAMC_Raw_Data_for_FY22[[#This Row],[75th]]-AAMC_Raw_Data_for_FY22[[#This Row],[Median]])/25)*5) + AAMC_Raw_Data_for_FY22[[#This Row],[Median]]","v":0},{"$f":"(((AAMC_Raw_Data_for_FY22[[#This Row],[75th]]-AAMC_Raw_Data_for_FY22[[#This Row],[Median]])/25)*10) + AAMC_Raw_Data_for_FY22[[#This Row],[Median]]","v":0},{"$f":"(((AAMC_Raw_Data_for_FY22[[#This Row],[75th]]-AAMC_Raw_Data_for_FY22[[#This Row],[Median]])/25)*15) + AAMC_Raw_Data_for_FY22[[#This Row],[Median]]","v":0},{"$f":"(((AAMC_Raw_Data_for_FY22[[#This Row],[75th]]-AAMC_Raw_Data_for_FY22[[#This Row],[Median]])/25)*20) + AAMC_Raw_Data_for_FY22[[#This Row],[Median]]","v":0},null,{"$f":"(((AAMC_Raw_Data_for_FY22[[#This Row],[75th]]-AAMC_Raw_Data_for_FY22[[#This Row],[Median]])/25)*30) + AAMC_Raw_Data_for_FY22[[#This Row],[Median]]","v":0},{"$f":"(((AAMC_Raw_Data_for_FY22[[#This Row],[75th]]-AAMC_Raw_Data_for_FY22[[#This Row],[Median]])/25)*35) + AAMC_Raw_Data_for_FY22[[#This Row],[Median]]","v":0},{"$f":"(((AAMC_Raw_Data_for_FY22[[#This Row],[75th]]-AAMC_Raw_Data_for_FY22[[#This Row],[Median]])/25)*40) + AAMC_Raw_Data_for_FY22[[#This Row],[Median]]","v":0}]
[{"$f":"AAMC_Raw_Data_for_FY22[[#This Row],[Source]]&AAMC_Raw_Data_for_FY22[[#This Row],[Type]]&AAMC_Raw_Data_for_FY22[[#This Row],[School Subset]]&AAMC_Raw_Data_for_FY22[[#This Row],[Rank]]&AAMC_Raw_Data_for_FY22[[#This Row],[Degree]]&AAMC_Raw_Data_for_FY22[[#This Row],[Department / Specialty]]&\"L\"","v":"AAMCAcademicPrivateAssistantMDRheumatology-Peds.L"},"Rheumatology-Peds.",4,"AAMC","Academic","Private","Assistant","MD","2021-2022",169060,{"$f":"(((AAMC_Raw_Data_for_FY22[[#This Row],[Median]]-AAMC_Raw_Data_for_FY22[[#This Row],[25th]])/25)*5) + AAMC_Raw_Data_for_FY22[[#This Row],[25th]]","v":171361.8},{"$f":"(((AAMC_Raw_Data_for_FY22[[#This Row],[Median]]-AAMC_Raw_Data_for_FY22[[#This Row],[25th]])/25)*10) + AAMC_Raw_Data_for_FY22[[#This Row],[25th]]","v":173663.6},{"$f":"(((AAMC_Raw_Data_for_FY22[[#This Row],[Median]]-AAMC_Raw_Data_for_FY22[[#This Row],[25th]])/25)*15) + AAMC_Raw_Data_for_FY22[[#This Row],[25th]]","v":175965.4},{"$f":"(((AAMC_Raw_Data_for_FY22[[#This Row],[Median]]-AAMC_Raw_Data_for_FY22[[#This Row],[25th]])/25)*20) + AAMC_Raw_Data_for_FY22[[#This Row],[25th]]","v":178267.2},180569,{"$f":"(((AAMC_Raw_Data_for_FY22[[#This Row],[75th]]-AAMC_Raw_Data_for_FY22[[#This Row],[Median]])/25)*5) + AAMC_Raw_Data_for_FY22[[#This Row],[Median]]","v":183759.8},{"$f":"(((AAMC_Raw_Data_for_FY22[[#This Row],[75th]]-AAMC_Raw_Data_for_FY22[[#This Row],[Median]])/25)*10) + AAMC_Raw_Data_for_FY22[[#This Row],[Median]]","v":186950.6},{"$f":"(((AAMC_Raw_Data_for_FY22[[#This Row],[75th]]-AAMC_Raw_Data_for_FY22[[#This Row],[Median]])/25)*15) + AAMC_Raw_Data_for_FY22[[#This Row],[Median]]","v":190141.4},{"$f":"(((AAMC_Raw_Data_for_FY22[[#This Row],[75th]]-AAMC_Raw_Data_for_FY22[[#This Row],[Median]])/25)*20) + AAMC_Raw_Data_for_FY22[[#This Row],[Median]]","v":193332.2},196523,{"$f":"(((AAMC_Raw_Data_for_FY22[[#This Row],[75th]]-AAMC_Raw_Data_for_FY22[[#This Row],[Median]])/25)*30) + AAMC_Raw_Data_for_FY22[[#This Row],[Median]]","v":199713.8},{"$f":"(((AAMC_Raw_Data_for_FY22[[#This Row],[75th]]-AAMC_Raw_Data_for_FY22[[#This Row],[Median]])/25)*35) + AAMC_Raw_Data_for_FY22[[#This Row],[Median]]","v":202904.6},{"$f":"(((AAMC_Raw_Data_for_FY22[[#This Row],[75th]]-AAMC_Raw_Data_for_FY22[[#This Row],[Median]])/25)*40) + AAMC_Raw_Data_for_FY22[[#This Row],[Median]]","v":206095.4}]
[{"$f":"AAMC_Raw_Data_for_FY22[[#This Row],[Source]]&AAMC_Raw_Data_for_FY22[[#This Row],[Type]]&AAMC_Raw_Data_for_FY22[[#This Row],[School Subset]]&AAMC_Raw_Data_for_FY22[[#This Row],[Rank]]&AAMC_Raw_Data_for_FY22[[#This Row],[Degree]]&AAMC_Raw_Data_for_FY22[[#This Row],[Department / Specialty]]&\"L\"","v":"AAMCAcademicPrivateAssociateMDRheumatology-Peds.L"},"Rheumatology-Peds.",3,"AAMC","Academic","Private","Associate","MD","2021-2022",211898,{"$f":"(((AAMC_Raw_Data_for_FY22[[#This Row],[Median]]-AAMC_Raw_Data_for_FY22[[#This Row],[25th]])/25)*5) + AAMC_Raw_Data_for_FY22[[#This Row],[25th]]","v":216471.2},{"$f":"(((AAMC_Raw_Data_for_FY22[[#This Row],[Median]]-AAMC_Raw_Data_for_FY22[[#This Row],[25th]])/25)*10) + AAMC_Raw_Data_for_FY22[[#This Row],[25th]]","v":221044.4},{"$f":"(((AAMC_Raw_Data_for_FY22[[#This Row],[Median]]-AAMC_Raw_Data_for_FY22[[#This Row],[25th]])/25)*15) + AAMC_Raw_Data_for_FY22[[#This Row],[25th]]","v":225617.6},{"$f":"(((AAMC_Raw_Data_for_FY22[[#This Row],[Median]]-AAMC_Raw_Data_for_FY22[[#This Row],[25th]])/25)*20) + AAMC_Raw_Data_for_FY22[[#This Row],[25th]]","v":230190.8},234764,{"$f":"(((AAMC_Raw_Data_for_FY22[[#This Row],[75th]]-AAMC_Raw_Data_for_FY22[[#This Row],[Median]])/25)*5) + AAMC_Raw_Data_for_FY22[[#This Row],[Median]]","v":237811.6},{"$f":"(((AAMC_Raw_Data_for_FY22[[#This Row],[75th]]-AAMC_Raw_Data_for_FY22[[#This Row],[Median]])/25)*10) + AAMC_Raw_Data_for_FY22[[#This Row],[Median]]","v":240859.2},{"$f":"(((AAMC_Raw_Data_for_FY22[[#This Row],[75th]]-AAMC_Raw_Data_for_FY22[[#This Row],[Median]])/25)*15) + AAMC_Raw_Data_for_FY22[[#This Row],[Median]]","v":243906.8},{"$f":"(((AAMC_Raw_Data_for_FY22[[#This Row],[75th]]-AAMC_Raw_Data_for_FY22[[#This Row],[Median]])/25)*20) + AAMC_Raw_Data_for_FY22[[#This Row],[Median]]","v":246954.4},250002,{"$f":"(((AAMC_Raw_Data_for_FY22[[#This Row],[75th]]-AAMC_Raw_Data_for_FY22[[#This Row],[Median]])/25)*30) + AAMC_Raw_Data_for_FY22[[#This Row],[Median]]","v":253049.60000000001},{"$f":"(((AAMC_Raw_Data_for_FY22[[#This Row],[75th]]-AAMC_Raw_Data_for_FY22[[#This Row],[Median]])/25)*35) + AAMC_Raw_Data_for_FY22[[#This Row],[Median]]","v":256097.2},{"$f":"(((AAMC_Raw_Data_for_FY22[[#This Row],[75th]]-AAMC_Raw_Data_for_FY22[[#This Row],[Median]])/25)*40) + AAMC_Raw_Data_for_FY22[[#This Row],[Median]]","v":259144.8}]
[{"$f":"AAMC_Raw_Data_for_FY22[[#This Row],[Source]]&AAMC_Raw_Data_for_FY22[[#This Row],[Type]]&AAMC_Raw_Data_for_FY22[[#This Row],[School Subset]]&AAMC_Raw_Data_for_FY22[[#This Row],[Rank]]&AAMC_Raw_Data_for_FY22[[#This Row],[Degree]]&AAMC_Raw_Data_for_FY22[[#This Row],[Department / Specialty]]&\"L\"","v":"AAMCAcademicPrivateProfessorMDRheumatology-Peds.L"},"Rheumatology-Peds.",2,"AAMC","Academic","Private","Professor","MD","2021-2022",244710,{"$f":"(((AAMC_Raw_Data_for_FY22[[#This Row],[Median]]-AAMC_Raw_Data_for_FY22[[#This Row],[25th]])/25)*5) + AAMC_Raw_Data_for_FY22[[#This Row],[25th]]","v":247493.4},{"$f":"(((AAMC_Raw_Data_for_FY22[[#This Row],[Median]]-AAMC_Raw_Data_for_FY22[[#This Row],[25th]])/25)*10) + AAMC_Raw_Data_for_FY22[[#This Row],[25th]]","v":250276.8},{"$f":"(((AAMC_Raw_Data_for_FY22[[#This Row],[Median]]-AAMC_Raw_Data_for_FY22[[#This Row],[25th]])/25)*15) + AAMC_Raw_Data_for_FY22[[#This Row],[25th]]","v":253060.2},{"$f":"(((AAMC_Raw_Data_for_FY22[[#This Row],[Median]]-AAMC_Raw_Data_for_FY22[[#This Row],[25th]])/25)*20) + AAMC_Raw_Data_for_FY22[[#This Row],[25th]]","v":255843.6},258627,{"$f":"(((AAMC_Raw_Data_for_FY22[[#This Row],[75th]]-AAMC_Raw_Data_for_FY22[[#This Row],[Median]])/25)*5) + AAMC_Raw_Data_for_FY22[[#This Row],[Median]]","v":267754.8},{"$f":"(((AAMC_Raw_Data_for_FY22[[#This Row],[75th]]-AAMC_Raw_Data_for_FY22[[#This Row],[Median]])/25)*10) + AAMC_Raw_Data_for_FY22[[#This Row],[Median]]","v":276882.59999999998},{"$f":"(((AAMC_Raw_Data_for_FY22[[#This Row],[75th]]-AAMC_Raw_Data_for_FY22[[#This Row],[Median]])/25)*15) + AAMC_Raw_Data_for_FY22[[#This Row],[Median]]","v":286010.40000000002},{"$f":"(((AAMC_Raw_Data_for_FY22[[#This Row],[75th]]-AAMC_Raw_Data_for_FY22[[#This Row],[Median]])/25)*20) + AAMC_Raw_Data_for_FY22[[#This Row],[Median]]","v":295138.2},304266,{"$f":"(((AAMC_Raw_Data_for_FY22[[#This Row],[75th]]-AAMC_Raw_Data_for_FY22[[#This Row],[Median]])/25)*30) + AAMC_Raw_Data_for_FY22[[#This Row],[Median]]","v":313393.8},{"$f":"(((AAMC_Raw_Data_for_FY22[[#This Row],[75th]]-AAMC_Raw_Data_for_FY22[[#This Row],[Median]])/25)*35) + AAMC_Raw_Data_for_FY22[[#This Row],[Median]]","v":322521.59999999998},{"$f":"(((AAMC_Raw_Data_for_FY22[[#This Row],[75th]]-AAMC_Raw_Data_for_FY22[[#This Row],[Median]])/25)*40) + AAMC_Raw_Data_for_FY22[[#This Row],[Median]]","v":331649.40000000002}]
[{"$f":"AAMC_Raw_Data_for_FY22[[#This Row],[Source]]&AAMC_Raw_Data_for_FY22[[#This Row],[Type]]&AAMC_Raw_Data_for_FY22[[#This Row],[School Subset]]&AAMC_Raw_Data_for_FY22[[#This Row],[Rank]]&AAMC_Raw_Data_for_FY22[[#This Row],[Degree]]&AAMC_Raw_Data_for_FY22[[#This Row],[Department / Specialty]]&\"L\"","v":"AAMCAcademicPrivateChiefMDRheumatology-Peds.L"},"Rheumatology-Peds.",6,"AAMC","Academic","Private","Chief","MD","2021-2022",291797,{"$f":"(((AAMC_Raw_Data_for_FY22[[#This Row],[Median]]-AAMC_Raw_Data_for_FY22[[#This Row],[25th]])/25)*5) + AAMC_Raw_Data_for_FY22[[#This Row],[25th]]","v":295552.40000000002},{"$f":"(((AAMC_Raw_Data_for_FY22[[#This Row],[Median]]-AAMC_Raw_Data_for_FY22[[#This Row],[25th]])/25)*10) + AAMC_Raw_Data_for_FY22[[#This Row],[25th]]","v":299307.8},{"$f":"(((AAMC_Raw_Data_for_FY22[[#This Row],[Median]]-AAMC_Raw_Data_for_FY22[[#This Row],[25th]])/25)*15) + AAMC_Raw_Data_for_FY22[[#This Row],[25th]]","v":303063.2},{"$f":"(((AAMC_Raw_Data_for_FY22[[#This Row],[Median]]-AAMC_Raw_Data_for_FY22[[#This Row],[25th]])/25)*20) + AAMC_Raw_Data_for_FY22[[#This Row],[25th]]","v":306818.59999999998},310574,{"$f":"(((AAMC_Raw_Data_for_FY22[[#This Row],[75th]]-AAMC_Raw_Data_for_FY22[[#This Row],[Median]])/25)*5) + AAMC_Raw_Data_for_FY22[[#This Row],[Median]]","v":313091.20000000001},{"$f":"(((AAMC_Raw_Data_for_FY22[[#This Row],[75th]]-AAMC_Raw_Data_for_FY22[[#This Row],[Median]])/25)*10) + AAMC_Raw_Data_for_FY22[[#This Row],[Median]]","v":315608.40000000002},{"$f":"(((AAMC_Raw_Data_for_FY22[[#This Row],[75th]]-AAMC_Raw_Data_for_FY22[[#This Row],[Median]])/25)*15) + AAMC_Raw_Data_for_FY22[[#This Row],[Median]]","v":318125.59999999998},{"$f":"(((AAMC_Raw_Data_for_FY22[[#This Row],[75th]]-AAMC_Raw_Data_for_FY22[[#This Row],[Median]])/25)*20) + AAMC_Raw_Data_for_FY22[[#This Row],[Median]]","v":320642.8},323160,{"$f":"(((AAMC_Raw_Data_for_FY22[[#This Row],[75th]]-AAMC_Raw_Data_for_FY22[[#This Row],[Median]])/25)*30) + AAMC_Raw_Data_for_FY22[[#This Row],[Median]]","v":325677.2},{"$f":"(((AAMC_Raw_Data_for_FY22[[#This Row],[75th]]-AAMC_Raw_Data_for_FY22[[#This Row],[Median]])/25)*35) + AAMC_Raw_Data_for_FY22[[#This Row],[Median]]","v":328194.40000000002},{"$f":"(((AAMC_Raw_Data_for_FY22[[#This Row],[75th]]-AAMC_Raw_Data_for_FY22[[#This Row],[Median]])/25)*40) + AAMC_Raw_Data_for_FY22[[#This Row],[Median]]","v":330711.59999999998}]
[{"$f":"AAMC_Raw_Data_for_FY22[[#This Row],[Source]]&AAMC_Raw_Data_for_FY22[[#This Row],[Type]]&AAMC_Raw_Data_for_FY22[[#This Row],[School Subset]]&AAMC_Raw_Data_for_FY22[[#This Row],[Rank]]&AAMC_Raw_Data_for_FY22[[#This Row],[Degree]]&AAMC_Raw_Data_for_FY22[[#This Row],[Department / Specialty]]&\"L\"","v":"AAMCAcademicPrivateChairMDRheumatology-Peds.L"},"Rheumatology-Peds.",1,"AAMC","Academic","Private","Chair","MD","2021-2022",null,{"$f":"(((AAMC_Raw_Data_for_FY22[[#This Row],[Median]]-AAMC_Raw_Data_for_FY22[[#This Row],[25th]])/25)*5) + AAMC_Raw_Data_for_FY22[[#This Row],[25th]]","v":0},{"$f":"(((AAMC_Raw_Data_for_FY22[[#This Row],[Median]]-AAMC_Raw_Data_for_FY22[[#This Row],[25th]])/25)*10) + AAMC_Raw_Data_for_FY22[[#This Row],[25th]]","v":0},{"$f":"(((AAMC_Raw_Data_for_FY22[[#This Row],[Median]]-AAMC_Raw_Data_for_FY22[[#This Row],[25th]])/25)*15) + AAMC_Raw_Data_for_FY22[[#This Row],[25th]]","v":0},{"$f":"(((AAMC_Raw_Data_for_FY22[[#This Row],[Median]]-AAMC_Raw_Data_for_FY22[[#This Row],[25th]])/25)*20) + AAMC_Raw_Data_for_FY22[[#This Row],[25th]]","v":0},null,{"$f":"(((AAMC_Raw_Data_for_FY22[[#This Row],[75th]]-AAMC_Raw_Data_for_FY22[[#This Row],[Median]])/25)*5) + AAMC_Raw_Data_for_FY22[[#This Row],[Median]]","v":0},{"$f":"(((AAMC_Raw_Data_for_FY22[[#This Row],[75th]]-AAMC_Raw_Data_for_FY22[[#This Row],[Median]])/25)*10) + AAMC_Raw_Data_for_FY22[[#This Row],[Median]]","v":0},{"$f":"(((AAMC_Raw_Data_for_FY22[[#This Row],[75th]]-AAMC_Raw_Data_for_FY22[[#This Row],[Median]])/25)*15) + AAMC_Raw_Data_for_FY22[[#This Row],[Median]]","v":0},{"$f":"(((AAMC_Raw_Data_for_FY22[[#This Row],[75th]]-AAMC_Raw_Data_for_FY22[[#This Row],[Median]])/25)*20) + AAMC_Raw_Data_for_FY22[[#This Row],[Median]]","v":0},null,{"$f":"(((AAMC_Raw_Data_for_FY22[[#This Row],[75th]]-AAMC_Raw_Data_for_FY22[[#This Row],[Median]])/25)*30) + AAMC_Raw_Data_for_FY22[[#This Row],[Median]]","v":0},{"$f":"(((AAMC_Raw_Data_for_FY22[[#This Row],[75th]]-AAMC_Raw_Data_for_FY22[[#This Row],[Median]])/25)*35) + AAMC_Raw_Data_for_FY22[[#This Row],[Median]]","v":0},{"$f":"(((AAMC_Raw_Data_for_FY22[[#This Row],[75th]]-AAMC_Raw_Data_for_FY22[[#This Row],[Median]])/25)*40) + AAMC_Raw_Data_for_FY22[[#This Row],[Median]]","v":0}]
[{"$f":"AAMC_Raw_Data_for_FY22[[#This Row],[Source]]&AAMC_Raw_Data_for_FY22[[#This Row],[Type]]&AAMC_Raw_Data_for_FY22[[#This Row],[School Subset]]&AAMC_Raw_Data_for_FY22[[#This Row],[Rank]]&AAMC_Raw_Data_for_FY22[[#This Row],[Degree]]&AAMC_Raw_Data_for_FY22[[#This Row],[Department / Specialty]]&\"L\"","v":"AAMCAcademicPrivateInstructorMDOther PediatricsL"},"Other Pediatrics",5,"AAMC","Academic","Private","Instructor","MD","2021-2022",137038,{"$f":"(((AAMC_Raw_Data_for_FY22[[#This Row],[Median]]-AAMC_Raw_Data_for_FY22[[#This Row],[25th]])/25)*5) + AAMC_Raw_Data_for_FY22[[#This Row],[25th]]","v":147708},{"$f":"(((AAMC_Raw_Data_for_FY22[[#This Row],[Median]]-AAMC_Raw_Data_for_FY22[[#This Row],[25th]])/25)*10) + AAMC_Raw_Data_for_FY22[[#This Row],[25th]]","v":158378},{"$f":"(((AAMC_Raw_Data_for_FY22[[#This Row],[Median]]-AAMC_Raw_Data_for_FY22[[#This Row],[25th]])/25)*15) + AAMC_Raw_Data_for_FY22[[#This Row],[25th]]","v":169048},{"$f":"(((AAMC_Raw_Data_for_FY22[[#This Row],[Median]]-AAMC_Raw_Data_for_FY22[[#This Row],[25th]])/25)*20) + AAMC_Raw_Data_for_FY22[[#This Row],[25th]]","v":179718},190388,{"$f":"(((AAMC_Raw_Data_for_FY22[[#This Row],[75th]]-AAMC_Raw_Data_for_FY22[[#This Row],[Median]])/25)*5) + AAMC_Raw_Data_for_FY22[[#This Row],[Median]]","v":223249.2},{"$f":"(((AAMC_Raw_Data_for_FY22[[#This Row],[75th]]-AAMC_Raw_Data_for_FY22[[#This Row],[Median]])/25)*10) + AAMC_Raw_Data_for_FY22[[#This Row],[Median]]","v":256110.4},{"$f":"(((AAMC_Raw_Data_for_FY22[[#This Row],[75th]]-AAMC_Raw_Data_for_FY22[[#This Row],[Median]])/25)*15) + AAMC_Raw_Data_for_FY22[[#This Row],[Median]]","v":288971.59999999998},{"$f":"(((AAMC_Raw_Data_for_FY22[[#This Row],[75th]]-AAMC_Raw_Data_for_FY22[[#This Row],[Median]])/25)*20) + AAMC_Raw_Data_for_FY22[[#This Row],[Median]]","v":321832.8},354694,{"$f":"(((AAMC_Raw_Data_for_FY22[[#This Row],[75th]]-AAMC_Raw_Data_for_FY22[[#This Row],[Median]])/25)*30) + AAMC_Raw_Data_for_FY22[[#This Row],[Median]]","v":387555.19999999995},{"$f":"(((AAMC_Raw_Data_for_FY22[[#This Row],[75th]]-AAMC_Raw_Data_for_FY22[[#This Row],[Median]])/25)*35) + AAMC_Raw_Data_for_FY22[[#This Row],[Median]]","v":420416.4},{"$f":"(((AAMC_Raw_Data_for_FY22[[#This Row],[75th]]-AAMC_Raw_Data_for_FY22[[#This Row],[Median]])/25)*40) + AAMC_Raw_Data_for_FY22[[#This Row],[Median]]","v":453277.6}]
[{"$f":"AAMC_Raw_Data_for_FY22[[#This Row],[Source]]&AAMC_Raw_Data_for_FY22[[#This Row],[Type]]&AAMC_Raw_Data_for_FY22[[#This Row],[School Subset]]&AAMC_Raw_Data_for_FY22[[#This Row],[Rank]]&AAMC_Raw_Data_for_FY22[[#This Row],[Degree]]&AAMC_Raw_Data_for_FY22[[#This Row],[Department / Specialty]]&\"L\"","v":"AAMCAcademicPrivateAssistantMDOther PediatricsL"},"Other Pediatrics",4,"AAMC","Academic","Private","Assistant","MD","2021-2022",183465,{"$f":"(((AAMC_Raw_Data_for_FY22[[#This Row],[Median]]-AAMC_Raw_Data_for_FY22[[#This Row],[25th]])/25)*5) + AAMC_Raw_Data_for_FY22[[#This Row],[25th]]","v":189321.8},{"$f":"(((AAMC_Raw_Data_for_FY22[[#This Row],[Median]]-AAMC_Raw_Data_for_FY22[[#This Row],[25th]])/25)*10) + AAMC_Raw_Data_for_FY22[[#This Row],[25th]]","v":195178.6},{"$f":"(((AAMC_Raw_Data_for_FY22[[#This Row],[Median]]-AAMC_Raw_Data_for_FY22[[#This Row],[25th]])/25)*15) + AAMC_Raw_Data_for_FY22[[#This Row],[25th]]","v":201035.4},{"$f":"(((AAMC_Raw_Data_for_FY22[[#This Row],[Median]]-AAMC_Raw_Data_for_FY22[[#This Row],[25th]])/25)*20) + AAMC_Raw_Data_for_FY22[[#This Row],[25th]]","v":206892.2},212749,{"$f":"(((AAMC_Raw_Data_for_FY22[[#This Row],[75th]]-AAMC_Raw_Data_for_FY22[[#This Row],[Median]])/25)*5) + AAMC_Raw_Data_for_FY22[[#This Row],[Median]]","v":238499.20000000001},{"$f":"(((AAMC_Raw_Data_for_FY22[[#This Row],[75th]]-AAMC_Raw_Data_for_FY22[[#This Row],[Median]])/25)*10) + AAMC_Raw_Data_for_FY22[[#This Row],[Median]]","v":264249.40000000002},{"$f":"(((AAMC_Raw_Data_for_FY22[[#This Row],[75th]]-AAMC_Raw_Data_for_FY22[[#This Row],[Median]])/25)*15) + AAMC_Raw_Data_for_FY22[[#This Row],[Median]]","v":289999.59999999998},{"$f":"(((AAMC_Raw_Data_for_FY22[[#This Row],[75th]]-AAMC_Raw_Data_for_FY22[[#This Row],[Median]])/25)*20) + AAMC_Raw_Data_for_FY22[[#This Row],[Median]]","v":315749.8},341500,{"$f":"(((AAMC_Raw_Data_for_FY22[[#This Row],[75th]]-AAMC_Raw_Data_for_FY22[[#This Row],[Median]])/25)*30) + AAMC_Raw_Data_for_FY22[[#This Row],[Median]]","v":367250.2},{"$f":"(((AAMC_Raw_Data_for_FY22[[#This Row],[75th]]-AAMC_Raw_Data_for_FY22[[#This Row],[Median]])/25)*35) + AAMC_Raw_Data_for_FY22[[#This Row],[Median]]","v":393000.4},{"$f":"(((AAMC_Raw_Data_for_FY22[[#This Row],[75th]]-AAMC_Raw_Data_for_FY22[[#This Row],[Median]])/25)*40) + AAMC_Raw_Data_for_FY22[[#This Row],[Median]]","v":418750.6}]
[{"$f":"AAMC_Raw_Data_for_FY22[[#This Row],[Source]]&AAMC_Raw_Data_for_FY22[[#This Row],[Type]]&AAMC_Raw_Data_for_FY22[[#This Row],[School Subset]]&AAMC_Raw_Data_for_FY22[[#This Row],[Rank]]&AAMC_Raw_Data_for_FY22[[#This Row],[Degree]]&AAMC_Raw_Data_for_FY22[[#This Row],[Department / Specialty]]&\"L\"","v":"AAMCAcademicPrivateAssociateMDOther PediatricsL"},"Other Pediatrics",3,"AAMC","Academic","Private","Associate","MD","2021-2022",213989,{"$f":"(((AAMC_Raw_Data_for_FY22[[#This Row],[Median]]-AAMC_Raw_Data_for_FY22[[#This Row],[25th]])/25)*5) + AAMC_Raw_Data_for_FY22[[#This Row],[25th]]","v":219604.8},{"$f":"(((AAMC_Raw_Data_for_FY22[[#This Row],[Median]]-AAMC_Raw_Data_for_FY22[[#This Row],[25th]])/25)*10) + AAMC_Raw_Data_for_FY22[[#This Row],[25th]]","v":225220.6},{"$f":"(((AAMC_Raw_Data_for_FY22[[#This Row],[Median]]-AAMC_Raw_Data_for_FY22[[#This Row],[25th]])/25)*15) + AAMC_Raw_Data_for_FY22[[#This Row],[25th]]","v":230836.4},{"$f":"(((AAMC_Raw_Data_for_FY22[[#This Row],[Median]]-AAMC_Raw_Data_for_FY22[[#This Row],[25th]])/25)*20) + AAMC_Raw_Data_for_FY22[[#This Row],[25th]]","v":236452.2},242068,{"$f":"(((AAMC_Raw_Data_for_FY22[[#This Row],[75th]]-AAMC_Raw_Data_for_FY22[[#This Row],[Median]])/25)*5) + AAMC_Raw_Data_for_FY22[[#This Row],[Median]]","v":250649.8},{"$f":"(((AAMC_Raw_Data_for_FY22[[#This Row],[75th]]-AAMC_Raw_Data_for_FY22[[#This Row],[Median]])/25)*10) + AAMC_Raw_Data_for_FY22[[#This Row],[Median]]","v":259231.6},{"$f":"(((AAMC_Raw_Data_for_FY22[[#This Row],[75th]]-AAMC_Raw_Data_for_FY22[[#This Row],[Median]])/25)*15) + AAMC_Raw_Data_for_FY22[[#This Row],[Median]]","v":267813.40000000002},{"$f":"(((AAMC_Raw_Data_for_FY22[[#This Row],[75th]]-AAMC_Raw_Data_for_FY22[[#This Row],[Median]])/25)*20) + AAMC_Raw_Data_for_FY22[[#This Row],[Median]]","v":276395.2},284977,{"$f":"(((AAMC_Raw_Data_for_FY22[[#This Row],[75th]]-AAMC_Raw_Data_for_FY22[[#This Row],[Median]])/25)*30) + AAMC_Raw_Data_for_FY22[[#This Row],[Median]]","v":293558.8},{"$f":"(((AAMC_Raw_Data_for_FY22[[#This Row],[75th]]-AAMC_Raw_Data_for_FY22[[#This Row],[Median]])/25)*35) + AAMC_Raw_Data_for_FY22[[#This Row],[Median]]","v":302140.59999999998},{"$f":"(((AAMC_Raw_Data_for_FY22[[#This Row],[75th]]-AAMC_Raw_Data_for_FY22[[#This Row],[Median]])/25)*40) + AAMC_Raw_Data_for_FY22[[#This Row],[Median]]","v":310722.40000000002}]
[{"$f":"AAMC_Raw_Data_for_FY22[[#This Row],[Source]]&AAMC_Raw_Data_for_FY22[[#This Row],[Type]]&AAMC_Raw_Data_for_FY22[[#This Row],[School Subset]]&AAMC_Raw_Data_for_FY22[[#This Row],[Rank]]&AAMC_Raw_Data_for_FY22[[#This Row],[Degree]]&AAMC_Raw_Data_for_FY22[[#This Row],[Department / Specialty]]&\"L\"","v":"AAMCAcademicPrivateProfessorMDOther PediatricsL"},"Other Pediatrics",2,"AAMC","Academic","Private","Professor","MD","2021-2022",282305,{"$f":"(((AAMC_Raw_Data_for_FY22[[#This Row],[Median]]-AAMC_Raw_Data_for_FY22[[#This Row],[25th]])/25)*5) + AAMC_Raw_Data_for_FY22[[#This Row],[25th]]","v":296797.59999999998},{"$f":"(((AAMC_Raw_Data_for_FY22[[#This Row],[Median]]-AAMC_Raw_Data_for_FY22[[#This Row],[25th]])/25)*10) + AAMC_Raw_Data_for_FY22[[#This Row],[25th]]","v":311290.2},{"$f":"(((AAMC_Raw_Data_for_FY22[[#This Row],[Median]]-AAMC_Raw_Data_for_FY22[[#This Row],[25th]])/25)*15) + AAMC_Raw_Data_for_FY22[[#This Row],[25th]]","v":325782.8},{"$f":"(((AAMC_Raw_Data_for_FY22[[#This Row],[Median]]-AAMC_Raw_Data_for_FY22[[#This Row],[25th]])/25)*20) + AAMC_Raw_Data_for_FY22[[#This Row],[25th]]","v":340275.4},354768,{"$f":"(((AAMC_Raw_Data_for_FY22[[#This Row],[75th]]-AAMC_Raw_Data_for_FY22[[#This Row],[Median]])/25)*5) + AAMC_Raw_Data_for_FY22[[#This Row],[Median]]","v":371513},{"$f":"(((AAMC_Raw_Data_for_FY22[[#This Row],[75th]]-AAMC_Raw_Data_for_FY22[[#This Row],[Median]])/25)*10) + AAMC_Raw_Data_for_FY22[[#This Row],[Median]]","v":388258},{"$f":"(((AAMC_Raw_Data_for_FY22[[#This Row],[75th]]-AAMC_Raw_Data_for_FY22[[#This Row],[Median]])/25)*15) + AAMC_Raw_Data_for_FY22[[#This Row],[Median]]","v":405003},{"$f":"(((AAMC_Raw_Data_for_FY22[[#This Row],[75th]]-AAMC_Raw_Data_for_FY22[[#This Row],[Median]])/25)*20) + AAMC_Raw_Data_for_FY22[[#This Row],[Median]]","v":421748},438493,{"$f":"(((AAMC_Raw_Data_for_FY22[[#This Row],[75th]]-AAMC_Raw_Data_for_FY22[[#This Row],[Median]])/25)*30) + AAMC_Raw_Data_for_FY22[[#This Row],[Median]]","v":455238},{"$f":"(((AAMC_Raw_Data_for_FY22[[#This Row],[75th]]-AAMC_Raw_Data_for_FY22[[#This Row],[Median]])/25)*35) + AAMC_Raw_Data_for_FY22[[#This Row],[Median]]","v":471983},{"$f":"(((AAMC_Raw_Data_for_FY22[[#This Row],[75th]]-AAMC_Raw_Data_for_FY22[[#This Row],[Median]])/25)*40) + AAMC_Raw_Data_for_FY22[[#This Row],[Median]]","v":488728}]
[{"$f":"AAMC_Raw_Data_for_FY22[[#This Row],[Source]]&AAMC_Raw_Data_for_FY22[[#This Row],[Type]]&AAMC_Raw_Data_for_FY22[[#This Row],[School Subset]]&AAMC_Raw_Data_for_FY22[[#This Row],[Rank]]&AAMC_Raw_Data_for_FY22[[#This Row],[Degree]]&AAMC_Raw_Data_for_FY22[[#This Row],[Department / Specialty]]&\"L\"","v":"AAMCAcademicPrivateChiefMDOther PediatricsL"},"Other Pediatrics",6,"AAMC","Academic","Private","Chief","MD","2021-2022",301166,{"$f":"(((AAMC_Raw_Data_for_FY22[[#This Row],[Median]]-AAMC_Raw_Data_for_FY22[[#This Row],[25th]])/25)*5) + AAMC_Raw_Data_for_FY22[[#This Row],[25th]]","v":314821},{"$f":"(((AAMC_Raw_Data_for_FY22[[#This Row],[Median]]-AAMC_Raw_Data_for_FY22[[#This Row],[25th]])/25)*10) + AAMC_Raw_Data_for_FY22[[#This Row],[25th]]","v":328476},{"$f":"(((AAMC_Raw_Data_for_FY22[[#This Row],[Median]]-AAMC_Raw_Data_for_FY22[[#This Row],[25th]])/25)*15) + AAMC_Raw_Data_for_FY22[[#This Row],[25th]]","v":342131},{"$f":"(((AAMC_Raw_Data_for_FY22[[#This Row],[Median]]-AAMC_Raw_Data_for_FY22[[#This Row],[25th]])/25)*20) + AAMC_Raw_Data_for_FY22[[#This Row],[25th]]","v":355786},369441,{"$f":"(((AAMC_Raw_Data_for_FY22[[#This Row],[75th]]-AAMC_Raw_Data_for_FY22[[#This Row],[Median]])/25)*5) + AAMC_Raw_Data_for_FY22[[#This Row],[Median]]","v":392488.2},{"$f":"(((AAMC_Raw_Data_for_FY22[[#This Row],[75th]]-AAMC_Raw_Data_for_FY22[[#This Row],[Median]])/25)*10) + AAMC_Raw_Data_for_FY22[[#This Row],[Median]]","v":415535.4},{"$f":"(((AAMC_Raw_Data_for_FY22[[#This Row],[75th]]-AAMC_Raw_Data_for_FY22[[#This Row],[Median]])/25)*15) + AAMC_Raw_Data_for_FY22[[#This Row],[Median]]","v":438582.6},{"$f":"(((AAMC_Raw_Data_for_FY22[[#This Row],[75th]]-AAMC_Raw_Data_for_FY22[[#This Row],[Median]])/25)*20) + AAMC_Raw_Data_for_FY22[[#This Row],[Median]]","v":461629.8},484677,{"$f":"(((AAMC_Raw_Data_for_FY22[[#This Row],[75th]]-AAMC_Raw_Data_for_FY22[[#This Row],[Median]])/25)*30) + AAMC_Raw_Data_for_FY22[[#This Row],[Median]]","v":507724.19999999995},{"$f":"(((AAMC_Raw_Data_for_FY22[[#This Row],[75th]]-AAMC_Raw_Data_for_FY22[[#This Row],[Median]])/25)*35) + AAMC_Raw_Data_for_FY22[[#This Row],[Median]]","v":530771.4},{"$f":"(((AAMC_Raw_Data_for_FY22[[#This Row],[75th]]-AAMC_Raw_Data_for_FY22[[#This Row],[Median]])/25)*40) + AAMC_Raw_Data_for_FY22[[#This Row],[Median]]","v":553818.6}]
[{"$f":"AAMC_Raw_Data_for_FY22[[#This Row],[Source]]&AAMC_Raw_Data_for_FY22[[#This Row],[Type]]&AAMC_Raw_Data_for_FY22[[#This Row],[School Subset]]&AAMC_Raw_Data_for_FY22[[#This Row],[Rank]]&AAMC_Raw_Data_for_FY22[[#This Row],[Degree]]&AAMC_Raw_Data_for_FY22[[#This Row],[Department / Specialty]]&\"L\"","v":"AAMCAcademicPrivateChairMDOther PediatricsL"},"Other Pediatrics",1,"AAMC","Academic","Private","Chair","MD","2021-2022",583527,{"$f":"(((AAMC_Raw_Data_for_FY22[[#This Row],[Median]]-AAMC_Raw_Data_for_FY22[[#This Row],[25th]])/25)*5) + AAMC_Raw_Data_for_FY22[[#This Row],[25th]]","v":626221.6},{"$f":"(((AAMC_Raw_Data_for_FY22[[#This Row],[Median]]-AAMC_Raw_Data_for_FY22[[#This Row],[25th]])/25)*10) + AAMC_Raw_Data_for_FY22[[#This Row],[25th]]","v":668916.19999999995},{"$f":"(((AAMC_Raw_Data_for_FY22[[#This Row],[Median]]-AAMC_Raw_Data_for_FY22[[#This Row],[25th]])/25)*15) + AAMC_Raw_Data_for_FY22[[#This Row],[25th]]","v":711610.8},{"$f":"(((AAMC_Raw_Data_for_FY22[[#This Row],[Median]]-AAMC_Raw_Data_for_FY22[[#This Row],[25th]])/25)*20) + AAMC_Raw_Data_for_FY22[[#This Row],[25th]]","v":754305.4},797000,{"$f":"(((AAMC_Raw_Data_for_FY22[[#This Row],[75th]]-AAMC_Raw_Data_for_FY22[[#This Row],[Median]])/25)*5) + AAMC_Raw_Data_for_FY22[[#This Row],[Median]]","v":871400.4},{"$f":"(((AAMC_Raw_Data_for_FY22[[#This Row],[75th]]-AAMC_Raw_Data_for_FY22[[#This Row],[Median]])/25)*10) + AAMC_Raw_Data_for_FY22[[#This Row],[Median]]","v":945800.8},{"$f":"(((AAMC_Raw_Data_for_FY22[[#This Row],[75th]]-AAMC_Raw_Data_for_FY22[[#This Row],[Median]])/25)*15) + AAMC_Raw_Data_for_FY22[[#This Row],[Median]]","v":1020201.2},{"$f":"(((AAMC_Raw_Data_for_FY22[[#This Row],[75th]]-AAMC_Raw_Data_for_FY22[[#This Row],[Median]])/25)*20) + AAMC_Raw_Data_for_FY22[[#This Row],[Median]]","v":1094601.6000000001},1169002,{"$f":"(((AAMC_Raw_Data_for_FY22[[#This Row],[75th]]-AAMC_Raw_Data_for_FY22[[#This Row],[Median]])/25)*30) + AAMC_Raw_Data_for_FY22[[#This Row],[Median]]","v":1243402.3999999999},{"$f":"(((AAMC_Raw_Data_for_FY22[[#This Row],[75th]]-AAMC_Raw_Data_for_FY22[[#This Row],[Median]])/25)*35) + AAMC_Raw_Data_for_FY22[[#This Row],[Median]]","v":1317802.8},{"$f":"(((AAMC_Raw_Data_for_FY22[[#This Row],[75th]]-AAMC_Raw_Data_for_FY22[[#This Row],[Median]])/25)*40) + AAMC_Raw_Data_for_FY22[[#This Row],[Median]]","v":1392203.2}]
[{"$f":"AAMC_Raw_Data_for_FY22[[#This Row],[Source]]&AAMC_Raw_Data_for_FY22[[#This Row],[Type]]&AAMC_Raw_Data_for_FY22[[#This Row],[School Subset]]&AAMC_Raw_Data_for_FY22[[#This Row],[Rank]]&AAMC_Raw_Data_for_FY22[[#This Row],[Degree]]&AAMC_Raw_Data_for_FY22[[#This Row],[Department / Specialty]]&\"L\"","v":"AAMCAcademicPrivateInstructorMDPsychiatry TotalL"},"Psychiatry Total",5,"AAMC","Academic","Private","Instructor","MD","2021-2022",207000,{"$f":"(((AAMC_Raw_Data_for_FY22[[#This Row],[Median]]-AAMC_Raw_Data_for_FY22[[#This Row],[25th]])/25)*5) + AAMC_Raw_Data_for_FY22[[#This Row],[25th]]","v":211006.2},{"$f":"(((AAMC_Raw_Data_for_FY22[[#This Row],[Median]]-AAMC_Raw_Data_for_FY22[[#This Row],[25th]])/25)*10) + AAMC_Raw_Data_for_FY22[[#This Row],[25th]]","v":215012.4},{"$f":"(((AAMC_Raw_Data_for_FY22[[#This Row],[Median]]-AAMC_Raw_Data_for_FY22[[#This Row],[25th]])/25)*15) + AAMC_Raw_Data_for_FY22[[#This Row],[25th]]","v":219018.6},{"$f":"(((AAMC_Raw_Data_for_FY22[[#This Row],[Median]]-AAMC_Raw_Data_for_FY22[[#This Row],[25th]])/25)*20) + AAMC_Raw_Data_for_FY22[[#This Row],[25th]]","v":223024.8},227031,{"$f":"(((AAMC_Raw_Data_for_FY22[[#This Row],[75th]]-AAMC_Raw_Data_for_FY22[[#This Row],[Median]])/25)*5) + AAMC_Raw_Data_for_FY22[[#This Row],[Median]]","v":231064.8},{"$f":"(((AAMC_Raw_Data_for_FY22[[#This Row],[75th]]-AAMC_Raw_Data_for_FY22[[#This Row],[Median]])/25)*10) + AAMC_Raw_Data_for_FY22[[#This Row],[Median]]","v":235098.6},{"$f":"(((AAMC_Raw_Data_for_FY22[[#This Row],[75th]]-AAMC_Raw_Data_for_FY22[[#This Row],[Median]])/25)*15) + AAMC_Raw_Data_for_FY22[[#This Row],[Median]]","v":239132.4},{"$f":"(((AAMC_Raw_Data_for_FY22[[#This Row],[75th]]-AAMC_Raw_Data_for_FY22[[#This Row],[Median]])/25)*20) + AAMC_Raw_Data_for_FY22[[#This Row],[Median]]","v":243166.2},247200,{"$f":"(((AAMC_Raw_Data_for_FY22[[#This Row],[75th]]-AAMC_Raw_Data_for_FY22[[#This Row],[Median]])/25)*30) + AAMC_Raw_Data_for_FY22[[#This Row],[Median]]","v":251233.8},{"$f":"(((AAMC_Raw_Data_for_FY22[[#This Row],[75th]]-AAMC_Raw_Data_for_FY22[[#This Row],[Median]])/25)*35) + AAMC_Raw_Data_for_FY22[[#This Row],[Median]]","v":255267.6},{"$f":"(((AAMC_Raw_Data_for_FY22[[#This Row],[75th]]-AAMC_Raw_Data_for_FY22[[#This Row],[Median]])/25)*40) + AAMC_Raw_Data_for_FY22[[#This Row],[Median]]","v":259301.4}]
[{"$f":"AAMC_Raw_Data_for_FY22[[#This Row],[Source]]&AAMC_Raw_Data_for_FY22[[#This Row],[Type]]&AAMC_Raw_Data_for_FY22[[#This Row],[School Subset]]&AAMC_Raw_Data_for_FY22[[#This Row],[Rank]]&AAMC_Raw_Data_for_FY22[[#This Row],[Degree]]&AAMC_Raw_Data_for_FY22[[#This Row],[Department / Specialty]]&\"L\"","v":"AAMCAcademicPrivateAssistantMDPsychiatry TotalL"},"Psychiatry Total",4,"AAMC","Academic","Private","Assistant","MD","2021-2022",216347,{"$f":"(((AAMC_Raw_Data_for_FY22[[#This Row],[Median]]-AAMC_Raw_Data_for_FY22[[#This Row],[25th]])/25)*5) + AAMC_Raw_Data_for_FY22[[#This Row],[25th]]","v":222001},{"$f":"(((AAMC_Raw_Data_for_FY22[[#This Row],[Median]]-AAMC_Raw_Data_for_FY22[[#This Row],[25th]])/25)*10) + AAMC_Raw_Data_for_FY22[[#This Row],[25th]]","v":227655},{"$f":"(((AAMC_Raw_Data_for_FY22[[#This Row],[Median]]-AAMC_Raw_Data_for_FY22[[#This Row],[25th]])/25)*15) + AAMC_Raw_Data_for_FY22[[#This Row],[25th]]","v":233309},{"$f":"(((AAMC_Raw_Data_for_FY22[[#This Row],[Median]]-AAMC_Raw_Data_for_FY22[[#This Row],[25th]])/25)*20) + AAMC_Raw_Data_for_FY22[[#This Row],[25th]]","v":238963},244617,{"$f":"(((AAMC_Raw_Data_for_FY22[[#This Row],[75th]]-AAMC_Raw_Data_for_FY22[[#This Row],[Median]])/25)*5) + AAMC_Raw_Data_for_FY22[[#This Row],[Median]]","v":249259.8},{"$f":"(((AAMC_Raw_Data_for_FY22[[#This Row],[75th]]-AAMC_Raw_Data_for_FY22[[#This Row],[Median]])/25)*10) + AAMC_Raw_Data_for_FY22[[#This Row],[Median]]","v":253902.6},{"$f":"(((AAMC_Raw_Data_for_FY22[[#This Row],[75th]]-AAMC_Raw_Data_for_FY22[[#This Row],[Median]])/25)*15) + AAMC_Raw_Data_for_FY22[[#This Row],[Median]]","v":258545.4},{"$f":"(((AAMC_Raw_Data_for_FY22[[#This Row],[75th]]-AAMC_Raw_Data_for_FY22[[#This Row],[Median]])/25)*20) + AAMC_Raw_Data_for_FY22[[#This Row],[Median]]","v":263188.2},267831,{"$f":"(((AAMC_Raw_Data_for_FY22[[#This Row],[75th]]-AAMC_Raw_Data_for_FY22[[#This Row],[Median]])/25)*30) + AAMC_Raw_Data_for_FY22[[#This Row],[Median]]","v":272473.8},{"$f":"(((AAMC_Raw_Data_for_FY22[[#This Row],[75th]]-AAMC_Raw_Data_for_FY22[[#This Row],[Median]])/25)*35) + AAMC_Raw_Data_for_FY22[[#This Row],[Median]]","v":277116.59999999998},{"$f":"(((AAMC_Raw_Data_for_FY22[[#This Row],[75th]]-AAMC_Raw_Data_for_FY22[[#This Row],[Median]])/25)*40) + AAMC_Raw_Data_for_FY22[[#This Row],[Median]]","v":281759.40000000002}]
[{"$f":"AAMC_Raw_Data_for_FY22[[#This Row],[Source]]&AAMC_Raw_Data_for_FY22[[#This Row],[Type]]&AAMC_Raw_Data_for_FY22[[#This Row],[School Subset]]&AAMC_Raw_Data_for_FY22[[#This Row],[Rank]]&AAMC_Raw_Data_for_FY22[[#This Row],[Degree]]&AAMC_Raw_Data_for_FY22[[#This Row],[Department / Specialty]]&\"L\"","v":"AAMCAcademicPrivateAssociateMDPsychiatry TotalL"},"Psychiatry Total",3,"AAMC","Academic","Private","Associate","MD","2021-2022",231360,{"$f":"(((AAMC_Raw_Data_for_FY22[[#This Row],[Median]]-AAMC_Raw_Data_for_FY22[[#This Row],[25th]])/25)*5) + AAMC_Raw_Data_for_FY22[[#This Row],[25th]]","v":237730.6},{"$f":"(((AAMC_Raw_Data_for_FY22[[#This Row],[Median]]-AAMC_Raw_Data_for_FY22[[#This Row],[25th]])/25)*10) + AAMC_Raw_Data_for_FY22[[#This Row],[25th]]","v":244101.2},{"$f":"(((AAMC_Raw_Data_for_FY22[[#This Row],[Median]]-AAMC_Raw_Data_for_FY22[[#This Row],[25th]])/25)*15) + AAMC_Raw_Data_for_FY22[[#This Row],[25th]]","v":250471.8},{"$f":"(((AAMC_Raw_Data_for_FY22[[#This Row],[Median]]-AAMC_Raw_Data_for_FY22[[#This Row],[25th]])/25)*20) + AAMC_Raw_Data_for_FY22[[#This Row],[25th]]","v":256842.4},263213,{"$f":"(((AAMC_Raw_Data_for_FY22[[#This Row],[75th]]-AAMC_Raw_Data_for_FY22[[#This Row],[Median]])/25)*5) + AAMC_Raw_Data_for_FY22[[#This Row],[Median]]","v":270361.2},{"$f":"(((AAMC_Raw_Data_for_FY22[[#This Row],[75th]]-AAMC_Raw_Data_for_FY22[[#This Row],[Median]])/25)*10) + AAMC_Raw_Data_for_FY22[[#This Row],[Median]]","v":277509.40000000002},{"$f":"(((AAMC_Raw_Data_for_FY22[[#This Row],[75th]]-AAMC_Raw_Data_for_FY22[[#This Row],[Median]])/25)*15) + AAMC_Raw_Data_for_FY22[[#This Row],[Median]]","v":284657.59999999998},{"$f":"(((AAMC_Raw_Data_for_FY22[[#This Row],[75th]]-AAMC_Raw_Data_for_FY22[[#This Row],[Median]])/25)*20) + AAMC_Raw_Data_for_FY22[[#This Row],[Median]]","v":291805.8},298954,{"$f":"(((AAMC_Raw_Data_for_FY22[[#This Row],[75th]]-AAMC_Raw_Data_for_FY22[[#This Row],[Median]])/25)*30) + AAMC_Raw_Data_for_FY22[[#This Row],[Median]]","v":306102.2},{"$f":"(((AAMC_Raw_Data_for_FY22[[#This Row],[75th]]-AAMC_Raw_Data_for_FY22[[#This Row],[Median]])/25)*35) + AAMC_Raw_Data_for_FY22[[#This Row],[Median]]","v":313250.40000000002},{"$f":"(((AAMC_Raw_Data_for_FY22[[#This Row],[75th]]-AAMC_Raw_Data_for_FY22[[#This Row],[Median]])/25)*40) + AAMC_Raw_Data_for_FY22[[#This Row],[Median]]","v":320398.59999999998}]
[{"$f":"AAMC_Raw_Data_for_FY22[[#This Row],[Source]]&AAMC_Raw_Data_for_FY22[[#This Row],[Type]]&AAMC_Raw_Data_for_FY22[[#This Row],[School Subset]]&AAMC_Raw_Data_for_FY22[[#This Row],[Rank]]&AAMC_Raw_Data_for_FY22[[#This Row],[Degree]]&AAMC_Raw_Data_for_FY22[[#This Row],[Department / Specialty]]&\"L\"","v":"AAMCAcademicPrivateProfessorMDPsychiatry TotalL"},"Psychiatry Total",2,"AAMC","Academic","Private","Professor","MD","2021-2022",246928,{"$f":"(((AAMC_Raw_Data_for_FY22[[#This Row],[Median]]-AAMC_Raw_Data_for_FY22[[#This Row],[25th]])/25)*5) + AAMC_Raw_Data_for_FY22[[#This Row],[25th]]","v":256198.39999999999},{"$f":"(((AAMC_Raw_Data_for_FY22[[#This Row],[Median]]-AAMC_Raw_Data_for_FY22[[#This Row],[25th]])/25)*10) + AAMC_Raw_Data_for_FY22[[#This Row],[25th]]","v":265468.79999999999},{"$f":"(((AAMC_Raw_Data_for_FY22[[#This Row],[Median]]-AAMC_Raw_Data_for_FY22[[#This Row],[25th]])/25)*15) + AAMC_Raw_Data_for_FY22[[#This Row],[25th]]","v":274739.20000000001},{"$f":"(((AAMC_Raw_Data_for_FY22[[#This Row],[Median]]-AAMC_Raw_Data_for_FY22[[#This Row],[25th]])/25)*20) + AAMC_Raw_Data_for_FY22[[#This Row],[25th]]","v":284009.59999999998},293280,{"$f":"(((AAMC_Raw_Data_for_FY22[[#This Row],[75th]]-AAMC_Raw_Data_for_FY22[[#This Row],[Median]])/25)*5) + AAMC_Raw_Data_for_FY22[[#This Row],[Median]]","v":305653.59999999998},{"$f":"(((AAMC_Raw_Data_for_FY22[[#This Row],[75th]]-AAMC_Raw_Data_for_FY22[[#This Row],[Median]])/25)*10) + AAMC_Raw_Data_for_FY22[[#This Row],[Median]]","v":318027.2},{"$f":"(((AAMC_Raw_Data_for_FY22[[#This Row],[75th]]-AAMC_Raw_Data_for_FY22[[#This Row],[Median]])/25)*15) + AAMC_Raw_Data_for_FY22[[#This Row],[Median]]","v":330400.8},{"$f":"(((AAMC_Raw_Data_for_FY22[[#This Row],[75th]]-AAMC_Raw_Data_for_FY22[[#This Row],[Median]])/25)*20) + AAMC_Raw_Data_for_FY22[[#This Row],[Median]]","v":342774.4},355148,{"$f":"(((AAMC_Raw_Data_for_FY22[[#This Row],[75th]]-AAMC_Raw_Data_for_FY22[[#This Row],[Median]])/25)*30) + AAMC_Raw_Data_for_FY22[[#This Row],[Median]]","v":367521.6},{"$f":"(((AAMC_Raw_Data_for_FY22[[#This Row],[75th]]-AAMC_Raw_Data_for_FY22[[#This Row],[Median]])/25)*35) + AAMC_Raw_Data_for_FY22[[#This Row],[Median]]","v":379895.2},{"$f":"(((AAMC_Raw_Data_for_FY22[[#This Row],[75th]]-AAMC_Raw_Data_for_FY22[[#This Row],[Median]])/25)*40) + AAMC_Raw_Data_for_FY22[[#This Row],[Median]]","v":392268.79999999999}]
[{"$f":"AAMC_Raw_Data_for_FY22[[#This Row],[Source]]&AAMC_Raw_Data_for_FY22[[#This Row],[Type]]&AAMC_Raw_Data_for_FY22[[#This Row],[School Subset]]&AAMC_Raw_Data_for_FY22[[#This Row],[Rank]]&AAMC_Raw_Data_for_FY22[[#This Row],[Degree]]&AAMC_Raw_Data_for_FY22[[#This Row],[Department / Specialty]]&\"L\"","v":"AAMCAcademicPrivateChiefMDPsychiatry TotalL"},"Psychiatry Total",6,"AAMC","Academic","Private","Chief","MD","2021-2022",287223,{"$f":"(((AAMC_Raw_Data_for_FY22[[#This Row],[Median]]-AAMC_Raw_Data_for_FY22[[#This Row],[25th]])/25)*5) + AAMC_Raw_Data_for_FY22[[#This Row],[25th]]","v":299140},{"$f":"(((AAMC_Raw_Data_for_FY22[[#This Row],[Median]]-AAMC_Raw_Data_for_FY22[[#This Row],[25th]])/25)*10) + AAMC_Raw_Data_for_FY22[[#This Row],[25th]]","v":311057},{"$f":"(((AAMC_Raw_Data_for_FY22[[#This Row],[Median]]-AAMC_Raw_Data_for_FY22[[#This Row],[25th]])/25)*15) + AAMC_Raw_Data_for_FY22[[#This Row],[25th]]","v":322974},{"$f":"(((AAMC_Raw_Data_for_FY22[[#This Row],[Median]]-AAMC_Raw_Data_for_FY22[[#This Row],[25th]])/25)*20) + AAMC_Raw_Data_for_FY22[[#This Row],[25th]]","v":334891},346808,{"$f":"(((AAMC_Raw_Data_for_FY22[[#This Row],[75th]]-AAMC_Raw_Data_for_FY22[[#This Row],[Median]])/25)*5) + AAMC_Raw_Data_for_FY22[[#This Row],[Median]]","v":355031},{"$f":"(((AAMC_Raw_Data_for_FY22[[#This Row],[75th]]-AAMC_Raw_Data_for_FY22[[#This Row],[Median]])/25)*10) + AAMC_Raw_Data_for_FY22[[#This Row],[Median]]","v":363254},{"$f":"(((AAMC_Raw_Data_for_FY22[[#This Row],[75th]]-AAMC_Raw_Data_for_FY22[[#This Row],[Median]])/25)*15) + AAMC_Raw_Data_for_FY22[[#This Row],[Median]]","v":371477},{"$f":"(((AAMC_Raw_Data_for_FY22[[#This Row],[75th]]-AAMC_Raw_Data_for_FY22[[#This Row],[Median]])/25)*20) + AAMC_Raw_Data_for_FY22[[#This Row],[Median]]","v":379700},387923,{"$f":"(((AAMC_Raw_Data_for_FY22[[#This Row],[75th]]-AAMC_Raw_Data_for_FY22[[#This Row],[Median]])/25)*30) + AAMC_Raw_Data_for_FY22[[#This Row],[Median]]","v":396146},{"$f":"(((AAMC_Raw_Data_for_FY22[[#This Row],[75th]]-AAMC_Raw_Data_for_FY22[[#This Row],[Median]])/25)*35) + AAMC_Raw_Data_for_FY22[[#This Row],[Median]]","v":404369},{"$f":"(((AAMC_Raw_Data_for_FY22[[#This Row],[75th]]-AAMC_Raw_Data_for_FY22[[#This Row],[Median]])/25)*40) + AAMC_Raw_Data_for_FY22[[#This Row],[Median]]","v":412592}]
[{"$f":"AAMC_Raw_Data_for_FY22[[#This Row],[Source]]&AAMC_Raw_Data_for_FY22[[#This Row],[Type]]&AAMC_Raw_Data_for_FY22[[#This Row],[School Subset]]&AAMC_Raw_Data_for_FY22[[#This Row],[Rank]]&AAMC_Raw_Data_for_FY22[[#This Row],[Degree]]&AAMC_Raw_Data_for_FY22[[#This Row],[Department / Specialty]]&\"L\"","v":"AAMCAcademicPrivateChairMDPsychiatry TotalL"},"Psychiatry Total",1,"AAMC","Academic","Private","Chair","MD","2021-2022",424335,{"$f":"(((AAMC_Raw_Data_for_FY22[[#This Row],[Median]]-AAMC_Raw_Data_for_FY22[[#This Row],[25th]])/25)*5) + AAMC_Raw_Data_for_FY22[[#This Row],[25th]]","v":454378},{"$f":"(((AAMC_Raw_Data_for_FY22[[#This Row],[Median]]-AAMC_Raw_Data_for_FY22[[#This Row],[25th]])/25)*10) + AAMC_Raw_Data_for_FY22[[#This Row],[25th]]","v":484421},{"$f":"(((AAMC_Raw_Data_for_FY22[[#This Row],[Median]]-AAMC_Raw_Data_for_FY22[[#This Row],[25th]])/25)*15) + AAMC_Raw_Data_for_FY22[[#This Row],[25th]]","v":514464},{"$f":"(((AAMC_Raw_Data_for_FY22[[#This Row],[Median]]-AAMC_Raw_Data_for_FY22[[#This Row],[25th]])/25)*20) + AAMC_Raw_Data_for_FY22[[#This Row],[25th]]","v":544507},574550,{"$f":"(((AAMC_Raw_Data_for_FY22[[#This Row],[75th]]-AAMC_Raw_Data_for_FY22[[#This Row],[Median]])/25)*5) + AAMC_Raw_Data_for_FY22[[#This Row],[Median]]","v":594965.80000000005},{"$f":"(((AAMC_Raw_Data_for_FY22[[#This Row],[75th]]-AAMC_Raw_Data_for_FY22[[#This Row],[Median]])/25)*10) + AAMC_Raw_Data_for_FY22[[#This Row],[Median]]","v":615381.6},{"$f":"(((AAMC_Raw_Data_for_FY22[[#This Row],[75th]]-AAMC_Raw_Data_for_FY22[[#This Row],[Median]])/25)*15) + AAMC_Raw_Data_for_FY22[[#This Row],[Median]]","v":635797.4},{"$f":"(((AAMC_Raw_Data_for_FY22[[#This Row],[75th]]-AAMC_Raw_Data_for_FY22[[#This Row],[Median]])/25)*20) + AAMC_Raw_Data_for_FY22[[#This Row],[Median]]","v":656213.19999999995},676629,{"$f":"(((AAMC_Raw_Data_for_FY22[[#This Row],[75th]]-AAMC_Raw_Data_for_FY22[[#This Row],[Median]])/25)*30) + AAMC_Raw_Data_for_FY22[[#This Row],[Median]]","v":697044.8},{"$f":"(((AAMC_Raw_Data_for_FY22[[#This Row],[75th]]-AAMC_Raw_Data_for_FY22[[#This Row],[Median]])/25)*35) + AAMC_Raw_Data_for_FY22[[#This Row],[Median]]","v":717460.6},{"$f":"(((AAMC_Raw_Data_for_FY22[[#This Row],[75th]]-AAMC_Raw_Data_for_FY22[[#This Row],[Median]])/25)*40) + AAMC_Raw_Data_for_FY22[[#This Row],[Median]]","v":737876.4}]
[{"$f":"AAMC_Raw_Data_for_FY22[[#This Row],[Source]]&AAMC_Raw_Data_for_FY22[[#This Row],[Type]]&AAMC_Raw_Data_for_FY22[[#This Row],[School Subset]]&AAMC_Raw_Data_for_FY22[[#This Row],[Rank]]&AAMC_Raw_Data_for_FY22[[#This Row],[Degree]]&AAMC_Raw_Data_for_FY22[[#This Row],[Department / Specialty]]&\"L\"","v":"AAMCAcademicPrivateInstructorMDPsychiatry: Child & AdolescentL"},"Psychiatry: Child & Adolescent",5,"AAMC","Academic","Private","Instructor","MD","2021-2022",231657,{"$f":"(((AAMC_Raw_Data_for_FY22[[#This Row],[Median]]-AAMC_Raw_Data_for_FY22[[#This Row],[25th]])/25)*5) + AAMC_Raw_Data_for_FY22[[#This Row],[25th]]","v":233051.8},{"$f":"(((AAMC_Raw_Data_for_FY22[[#This Row],[Median]]-AAMC_Raw_Data_for_FY22[[#This Row],[25th]])/25)*10) + AAMC_Raw_Data_for_FY22[[#This Row],[25th]]","v":234446.6},{"$f":"(((AAMC_Raw_Data_for_FY22[[#This Row],[Median]]-AAMC_Raw_Data_for_FY22[[#This Row],[25th]])/25)*15) + AAMC_Raw_Data_for_FY22[[#This Row],[25th]]","v":235841.4},{"$f":"(((AAMC_Raw_Data_for_FY22[[#This Row],[Median]]-AAMC_Raw_Data_for_FY22[[#This Row],[25th]])/25)*20) + AAMC_Raw_Data_for_FY22[[#This Row],[25th]]","v":237236.2},238631,{"$f":"(((AAMC_Raw_Data_for_FY22[[#This Row],[75th]]-AAMC_Raw_Data_for_FY22[[#This Row],[Median]])/25)*5) + AAMC_Raw_Data_for_FY22[[#This Row],[Median]]","v":244490.6},{"$f":"(((AAMC_Raw_Data_for_FY22[[#This Row],[75th]]-AAMC_Raw_Data_for_FY22[[#This Row],[Median]])/25)*10) + AAMC_Raw_Data_for_FY22[[#This Row],[Median]]","v":250350.2},{"$f":"(((AAMC_Raw_Data_for_FY22[[#This Row],[75th]]-AAMC_Raw_Data_for_FY22[[#This Row],[Median]])/25)*15) + AAMC_Raw_Data_for_FY22[[#This Row],[Median]]","v":256209.8},{"$f":"(((AAMC_Raw_Data_for_FY22[[#This Row],[75th]]-AAMC_Raw_Data_for_FY22[[#This Row],[Median]])/25)*20) + AAMC_Raw_Data_for_FY22[[#This Row],[Median]]","v":262069.4},267929,{"$f":"(((AAMC_Raw_Data_for_FY22[[#This Row],[75th]]-AAMC_Raw_Data_for_FY22[[#This Row],[Median]])/25)*30) + AAMC_Raw_Data_for_FY22[[#This Row],[Median]]","v":273788.59999999998},{"$f":"(((AAMC_Raw_Data_for_FY22[[#This Row],[75th]]-AAMC_Raw_Data_for_FY22[[#This Row],[Median]])/25)*35) + AAMC_Raw_Data_for_FY22[[#This Row],[Median]]","v":279648.2},{"$f":"(((AAMC_Raw_Data_for_FY22[[#This Row],[75th]]-AAMC_Raw_Data_for_FY22[[#This Row],[Median]])/25)*40) + AAMC_Raw_Data_for_FY22[[#This Row],[Median]]","v":285507.8}]
[{"$f":"AAMC_Raw_Data_for_FY22[[#This Row],[Source]]&AAMC_Raw_Data_for_FY22[[#This Row],[Type]]&AAMC_Raw_Data_for_FY22[[#This Row],[School Subset]]&AAMC_Raw_Data_for_FY22[[#This Row],[Rank]]&AAMC_Raw_Data_for_FY22[[#This Row],[Degree]]&AAMC_Raw_Data_for_FY22[[#This Row],[Department / Specialty]]&\"L\"","v":"AAMCAcademicPrivateAssistantMDPsychiatry: Child & AdolescentL"},"Psychiatry: Child & Adolescent",4,"AAMC","Academic","Private","Assistant","MD","2021-2022",214239,{"$f":"(((AAMC_Raw_Data_for_FY22[[#This Row],[Median]]-AAMC_Raw_Data_for_FY22[[#This Row],[25th]])/25)*5) + AAMC_Raw_Data_for_FY22[[#This Row],[25th]]","v":219046.8},{"$f":"(((AAMC_Raw_Data_for_FY22[[#This Row],[Median]]-AAMC_Raw_Data_for_FY22[[#This Row],[25th]])/25)*10) + AAMC_Raw_Data_for_FY22[[#This Row],[25th]]","v":223854.6},{"$f":"(((AAMC_Raw_Data_for_FY22[[#This Row],[Median]]-AAMC_Raw_Data_for_FY22[[#This Row],[25th]])/25)*15) + AAMC_Raw_Data_for_FY22[[#This Row],[25th]]","v":228662.39999999999},{"$f":"(((AAMC_Raw_Data_for_FY22[[#This Row],[Median]]-AAMC_Raw_Data_for_FY22[[#This Row],[25th]])/25)*20) + AAMC_Raw_Data_for_FY22[[#This Row],[25th]]","v":233470.2},238278,{"$f":"(((AAMC_Raw_Data_for_FY22[[#This Row],[75th]]-AAMC_Raw_Data_for_FY22[[#This Row],[Median]])/25)*5) + AAMC_Raw_Data_for_FY22[[#This Row],[Median]]","v":242461.6},{"$f":"(((AAMC_Raw_Data_for_FY22[[#This Row],[75th]]-AAMC_Raw_Data_for_FY22[[#This Row],[Median]])/25)*10) + AAMC_Raw_Data_for_FY22[[#This Row],[Median]]","v":246645.2},{"$f":"(((AAMC_Raw_Data_for_FY22[[#This Row],[75th]]-AAMC_Raw_Data_for_FY22[[#This Row],[Median]])/25)*15) + AAMC_Raw_Data_for_FY22[[#This Row],[Median]]","v":250828.79999999999},{"$f":"(((AAMC_Raw_Data_for_FY22[[#This Row],[75th]]-AAMC_Raw_Data_for_FY22[[#This Row],[Median]])/25)*20) + AAMC_Raw_Data_for_FY22[[#This Row],[Median]]","v":255012.4},259196,{"$f":"(((AAMC_Raw_Data_for_FY22[[#This Row],[75th]]-AAMC_Raw_Data_for_FY22[[#This Row],[Median]])/25)*30) + AAMC_Raw_Data_for_FY22[[#This Row],[Median]]","v":263379.59999999998},{"$f":"(((AAMC_Raw_Data_for_FY22[[#This Row],[75th]]-AAMC_Raw_Data_for_FY22[[#This Row],[Median]])/25)*35) + AAMC_Raw_Data_for_FY22[[#This Row],[Median]]","v":267563.2},{"$f":"(((AAMC_Raw_Data_for_FY22[[#This Row],[75th]]-AAMC_Raw_Data_for_FY22[[#This Row],[Median]])/25)*40) + AAMC_Raw_Data_for_FY22[[#This Row],[Median]]","v":271746.8}]
[{"$f":"AAMC_Raw_Data_for_FY22[[#This Row],[Source]]&AAMC_Raw_Data_for_FY22[[#This Row],[Type]]&AAMC_Raw_Data_for_FY22[[#This Row],[School Subset]]&AAMC_Raw_Data_for_FY22[[#This Row],[Rank]]&AAMC_Raw_Data_for_FY22[[#This Row],[Degree]]&AAMC_Raw_Data_for_FY22[[#This Row],[Department / Specialty]]&\"L\"","v":"AAMCAcademicPrivateAssociateMDPsychiatry: Child & AdolescentL"},"Psychiatry: Child & Adolescent",3,"AAMC","Academic","Private","Associate","MD","2021-2022",246039,{"$f":"(((AAMC_Raw_Data_for_FY22[[#This Row],[Median]]-AAMC_Raw_Data_for_FY22[[#This Row],[25th]])/25)*5) + AAMC_Raw_Data_for_FY22[[#This Row],[25th]]","v":252760},{"$f":"(((AAMC_Raw_Data_for_FY22[[#This Row],[Median]]-AAMC_Raw_Data_for_FY22[[#This Row],[25th]])/25)*10) + AAMC_Raw_Data_for_FY22[[#This Row],[25th]]","v":259481},{"$f":"(((AAMC_Raw_Data_for_FY22[[#This Row],[Median]]-AAMC_Raw_Data_for_FY22[[#This Row],[25th]])/25)*15) + AAMC_Raw_Data_for_FY22[[#This Row],[25th]]","v":266202},{"$f":"(((AAMC_Raw_Data_for_FY22[[#This Row],[Median]]-AAMC_Raw_Data_for_FY22[[#This Row],[25th]])/25)*20) + AAMC_Raw_Data_for_FY22[[#This Row],[25th]]","v":272923},279644,{"$f":"(((AAMC_Raw_Data_for_FY22[[#This Row],[75th]]-AAMC_Raw_Data_for_FY22[[#This Row],[Median]])/25)*5) + AAMC_Raw_Data_for_FY22[[#This Row],[Median]]","v":283606.59999999998},{"$f":"(((AAMC_Raw_Data_for_FY22[[#This Row],[75th]]-AAMC_Raw_Data_for_FY22[[#This Row],[Median]])/25)*10) + AAMC_Raw_Data_for_FY22[[#This Row],[Median]]","v":287569.2},{"$f":"(((AAMC_Raw_Data_for_FY22[[#This Row],[75th]]-AAMC_Raw_Data_for_FY22[[#This Row],[Median]])/25)*15) + AAMC_Raw_Data_for_FY22[[#This Row],[Median]]","v":291531.8},{"$f":"(((AAMC_Raw_Data_for_FY22[[#This Row],[75th]]-AAMC_Raw_Data_for_FY22[[#This Row],[Median]])/25)*20) + AAMC_Raw_Data_for_FY22[[#This Row],[Median]]","v":295494.40000000002},299457,{"$f":"(((AAMC_Raw_Data_for_FY22[[#This Row],[75th]]-AAMC_Raw_Data_for_FY22[[#This Row],[Median]])/25)*30) + AAMC_Raw_Data_for_FY22[[#This Row],[Median]]","v":303419.59999999998},{"$f":"(((AAMC_Raw_Data_for_FY22[[#This Row],[75th]]-AAMC_Raw_Data_for_FY22[[#This Row],[Median]])/25)*35) + AAMC_Raw_Data_for_FY22[[#This Row],[Median]]","v":307382.2},{"$f":"(((AAMC_Raw_Data_for_FY22[[#This Row],[75th]]-AAMC_Raw_Data_for_FY22[[#This Row],[Median]])/25)*40) + AAMC_Raw_Data_for_FY22[[#This Row],[Median]]","v":311344.8}]
[{"$f":"AAMC_Raw_Data_for_FY22[[#This Row],[Source]]&AAMC_Raw_Data_for_FY22[[#This Row],[Type]]&AAMC_Raw_Data_for_FY22[[#This Row],[School Subset]]&AAMC_Raw_Data_for_FY22[[#This Row],[Rank]]&AAMC_Raw_Data_for_FY22[[#This Row],[Degree]]&AAMC_Raw_Data_for_FY22[[#This Row],[Department / Specialty]]&\"L\"","v":"AAMCAcademicPrivateProfessorMDPsychiatry: Child & AdolescentL"},"Psychiatry: Child & Adolescent",2,"AAMC","Academic","Private","Professor","MD","2021-2022",275137,{"$f":"(((AAMC_Raw_Data_for_FY22[[#This Row],[Median]]-AAMC_Raw_Data_for_FY22[[#This Row],[25th]])/25)*5) + AAMC_Raw_Data_for_FY22[[#This Row],[25th]]","v":285594.59999999998},{"$f":"(((AAMC_Raw_Data_for_FY22[[#This Row],[Median]]-AAMC_Raw_Data_for_FY22[[#This Row],[25th]])/25)*10) + AAMC_Raw_Data_for_FY22[[#This Row],[25th]]","v":296052.2},{"$f":"(((AAMC_Raw_Data_for_FY22[[#This Row],[Median]]-AAMC_Raw_Data_for_FY22[[#This Row],[25th]])/25)*15) + AAMC_Raw_Data_for_FY22[[#This Row],[25th]]","v":306509.8},{"$f":"(((AAMC_Raw_Data_for_FY22[[#This Row],[Median]]-AAMC_Raw_Data_for_FY22[[#This Row],[25th]])/25)*20) + AAMC_Raw_Data_for_FY22[[#This Row],[25th]]","v":316967.40000000002},327425,{"$f":"(((AAMC_Raw_Data_for_FY22[[#This Row],[75th]]-AAMC_Raw_Data_for_FY22[[#This Row],[Median]])/25)*5) + AAMC_Raw_Data_for_FY22[[#This Row],[Median]]","v":351407.6},{"$f":"(((AAMC_Raw_Data_for_FY22[[#This Row],[75th]]-AAMC_Raw_Data_for_FY22[[#This Row],[Median]])/25)*10) + AAMC_Raw_Data_for_FY22[[#This Row],[Median]]","v":375390.2},{"$f":"(((AAMC_Raw_Data_for_FY22[[#This Row],[75th]]-AAMC_Raw_Data_for_FY22[[#This Row],[Median]])/25)*15) + AAMC_Raw_Data_for_FY22[[#This Row],[Median]]","v":399372.79999999999},{"$f":"(((AAMC_Raw_Data_for_FY22[[#This Row],[75th]]-AAMC_Raw_Data_for_FY22[[#This Row],[Median]])/25)*20) + AAMC_Raw_Data_for_FY22[[#This Row],[Median]]","v":423355.4},447338,{"$f":"(((AAMC_Raw_Data_for_FY22[[#This Row],[75th]]-AAMC_Raw_Data_for_FY22[[#This Row],[Median]])/25)*30) + AAMC_Raw_Data_for_FY22[[#This Row],[Median]]","v":471320.6},{"$f":"(((AAMC_Raw_Data_for_FY22[[#This Row],[75th]]-AAMC_Raw_Data_for_FY22[[#This Row],[Median]])/25)*35) + AAMC_Raw_Data_for_FY22[[#This Row],[Median]]","v":495303.2},{"$f":"(((AAMC_Raw_Data_for_FY22[[#This Row],[75th]]-AAMC_Raw_Data_for_FY22[[#This Row],[Median]])/25)*40) + AAMC_Raw_Data_for_FY22[[#This Row],[Median]]","v":519285.80000000005}]
[{"$f":"AAMC_Raw_Data_for_FY22[[#This Row],[Source]]&AAMC_Raw_Data_for_FY22[[#This Row],[Type]]&AAMC_Raw_Data_for_FY22[[#This Row],[School Subset]]&AAMC_Raw_Data_for_FY22[[#This Row],[Rank]]&AAMC_Raw_Data_for_FY22[[#This Row],[Degree]]&AAMC_Raw_Data_for_FY22[[#This Row],[Department / Specialty]]&\"L\"","v":"AAMCAcademicPrivateChiefMDPsychiatry: Child & AdolescentL"},"Psychiatry: Child & Adolescent",6,"AAMC","Academic","Private","Chief","MD","2021-2022",293246,{"$f":"(((AAMC_Raw_Data_for_FY22[[#This Row],[Median]]-AAMC_Raw_Data_for_FY22[[#This Row],[25th]])/25)*5) + AAMC_Raw_Data_for_FY22[[#This Row],[25th]]","v":304048.8},{"$f":"(((AAMC_Raw_Data_for_FY22[[#This Row],[Median]]-AAMC_Raw_Data_for_FY22[[#This Row],[25th]])/25)*10) + AAMC_Raw_Data_for_FY22[[#This Row],[25th]]","v":314851.59999999998},{"$f":"(((AAMC_Raw_Data_for_FY22[[#This Row],[Median]]-AAMC_Raw_Data_for_FY22[[#This Row],[25th]])/25)*15) + AAMC_Raw_Data_for_FY22[[#This Row],[25th]]","v":325654.40000000002},{"$f":"(((AAMC_Raw_Data_for_FY22[[#This Row],[Median]]-AAMC_Raw_Data_for_FY22[[#This Row],[25th]])/25)*20) + AAMC_Raw_Data_for_FY22[[#This Row],[25th]]","v":336457.2},347260,{"$f":"(((AAMC_Raw_Data_for_FY22[[#This Row],[75th]]-AAMC_Raw_Data_for_FY22[[#This Row],[Median]])/25)*5) + AAMC_Raw_Data_for_FY22[[#This Row],[Median]]","v":362331.8},{"$f":"(((AAMC_Raw_Data_for_FY22[[#This Row],[75th]]-AAMC_Raw_Data_for_FY22[[#This Row],[Median]])/25)*10) + AAMC_Raw_Data_for_FY22[[#This Row],[Median]]","v":377403.6},{"$f":"(((AAMC_Raw_Data_for_FY22[[#This Row],[75th]]-AAMC_Raw_Data_for_FY22[[#This Row],[Median]])/25)*15) + AAMC_Raw_Data_for_FY22[[#This Row],[Median]]","v":392475.4},{"$f":"(((AAMC_Raw_Data_for_FY22[[#This Row],[75th]]-AAMC_Raw_Data_for_FY22[[#This Row],[Median]])/25)*20) + AAMC_Raw_Data_for_FY22[[#This Row],[Median]]","v":407547.2},422619,{"$f":"(((AAMC_Raw_Data_for_FY22[[#This Row],[75th]]-AAMC_Raw_Data_for_FY22[[#This Row],[Median]])/25)*30) + AAMC_Raw_Data_for_FY22[[#This Row],[Median]]","v":437690.8},{"$f":"(((AAMC_Raw_Data_for_FY22[[#This Row],[75th]]-AAMC_Raw_Data_for_FY22[[#This Row],[Median]])/25)*35) + AAMC_Raw_Data_for_FY22[[#This Row],[Median]]","v":452762.6},{"$f":"(((AAMC_Raw_Data_for_FY22[[#This Row],[75th]]-AAMC_Raw_Data_for_FY22[[#This Row],[Median]])/25)*40) + AAMC_Raw_Data_for_FY22[[#This Row],[Median]]","v":467834.4}]
[{"$f":"AAMC_Raw_Data_for_FY22[[#This Row],[Source]]&AAMC_Raw_Data_for_FY22[[#This Row],[Type]]&AAMC_Raw_Data_for_FY22[[#This Row],[School Subset]]&AAMC_Raw_Data_for_FY22[[#This Row],[Rank]]&AAMC_Raw_Data_for_FY22[[#This Row],[Degree]]&AAMC_Raw_Data_for_FY22[[#This Row],[Department / Specialty]]&\"L\"","v":"AAMCAcademicPrivateChairMDPsychiatry: Child & AdolescentL"},"Psychiatry: Child & Adolescent",1,"AAMC","Academic","Private","Chair","MD","2021-2022",null,{"$f":"(((AAMC_Raw_Data_for_FY22[[#This Row],[Median]]-AAMC_Raw_Data_for_FY22[[#This Row],[25th]])/25)*5) + AAMC_Raw_Data_for_FY22[[#This Row],[25th]]","v":0},{"$f":"(((AAMC_Raw_Data_for_FY22[[#This Row],[Median]]-AAMC_Raw_Data_for_FY22[[#This Row],[25th]])/25)*10) + AAMC_Raw_Data_for_FY22[[#This Row],[25th]]","v":0},{"$f":"(((AAMC_Raw_Data_for_FY22[[#This Row],[Median]]-AAMC_Raw_Data_for_FY22[[#This Row],[25th]])/25)*15) + AAMC_Raw_Data_for_FY22[[#This Row],[25th]]","v":0},{"$f":"(((AAMC_Raw_Data_for_FY22[[#This Row],[Median]]-AAMC_Raw_Data_for_FY22[[#This Row],[25th]])/25)*20) + AAMC_Raw_Data_for_FY22[[#This Row],[25th]]","v":0},null,{"$f":"(((AAMC_Raw_Data_for_FY22[[#This Row],[75th]]-AAMC_Raw_Data_for_FY22[[#This Row],[Median]])/25)*5) + AAMC_Raw_Data_for_FY22[[#This Row],[Median]]","v":0},{"$f":"(((AAMC_Raw_Data_for_FY22[[#This Row],[75th]]-AAMC_Raw_Data_for_FY22[[#This Row],[Median]])/25)*10) + AAMC_Raw_Data_for_FY22[[#This Row],[Median]]","v":0},{"$f":"(((AAMC_Raw_Data_for_FY22[[#This Row],[75th]]-AAMC_Raw_Data_for_FY22[[#This Row],[Median]])/25)*15) + AAMC_Raw_Data_for_FY22[[#This Row],[Median]]","v":0},{"$f":"(((AAMC_Raw_Data_for_FY22[[#This Row],[75th]]-AAMC_Raw_Data_for_FY22[[#This Row],[Median]])/25)*20) + AAMC_Raw_Data_for_FY22[[#This Row],[Median]]","v":0},null,{"$f":"(((AAMC_Raw_Data_for_FY22[[#This Row],[75th]]-AAMC_Raw_Data_for_FY22[[#This Row],[Median]])/25)*30) + AAMC_Raw_Data_for_FY22[[#This Row],[Median]]","v":0},{"$f":"(((AAMC_Raw_Data_for_FY22[[#This Row],[75th]]-AAMC_Raw_Data_for_FY22[[#This Row],[Median]])/25)*35) + AAMC_Raw_Data_for_FY22[[#This Row],[Median]]","v":0},{"$f":"(((AAMC_Raw_Data_for_FY22[[#This Row],[75th]]-AAMC_Raw_Data_for_FY22[[#This Row],[Median]])/25)*40) + AAMC_Raw_Data_for_FY22[[#This Row],[Median]]","v":0}]
[{"$f":"AAMC_Raw_Data_for_FY22[[#This Row],[Source]]&AAMC_Raw_Data_for_FY22[[#This Row],[Type]]&AAMC_Raw_Data_for_FY22[[#This Row],[School Subset]]&AAMC_Raw_Data_for_FY22[[#This Row],[Rank]]&AAMC_Raw_Data_for_FY22[[#This Row],[Degree]]&AAMC_Raw_Data_for_FY22[[#This Row],[Department / Specialty]]&\"L\"","v":"AAMCAcademicPrivateInstructorMDPsychiatry: GeneralL"},"Psychiatry: General",5,"AAMC","Academic","Private","Instructor","MD","2021-2022",208233,{"$f":"(((AAMC_Raw_Data_for_FY22[[#This Row],[Median]]-AAMC_Raw_Data_for_FY22[[#This Row],[25th]])/25)*5) + AAMC_Raw_Data_for_FY22[[#This Row],[25th]]","v":212307.6},{"$f":"(((AAMC_Raw_Data_for_FY22[[#This Row],[Median]]-AAMC_Raw_Data_for_FY22[[#This Row],[25th]])/25)*10) + AAMC_Raw_Data_for_FY22[[#This Row],[25th]]","v":216382.2},{"$f":"(((AAMC_Raw_Data_for_FY22[[#This Row],[Median]]-AAMC_Raw_Data_for_FY22[[#This Row],[25th]])/25)*15) + AAMC_Raw_Data_for_FY22[[#This Row],[25th]]","v":220456.8},{"$f":"(((AAMC_Raw_Data_for_FY22[[#This Row],[Median]]-AAMC_Raw_Data_for_FY22[[#This Row],[25th]])/25)*20) + AAMC_Raw_Data_for_FY22[[#This Row],[25th]]","v":224531.4},228606,{"$f":"(((AAMC_Raw_Data_for_FY22[[#This Row],[75th]]-AAMC_Raw_Data_for_FY22[[#This Row],[Median]])/25)*5) + AAMC_Raw_Data_for_FY22[[#This Row],[Median]]","v":232325},{"$f":"(((AAMC_Raw_Data_for_FY22[[#This Row],[75th]]-AAMC_Raw_Data_for_FY22[[#This Row],[Median]])/25)*10) + AAMC_Raw_Data_for_FY22[[#This Row],[Median]]","v":236044},{"$f":"(((AAMC_Raw_Data_for_FY22[[#This Row],[75th]]-AAMC_Raw_Data_for_FY22[[#This Row],[Median]])/25)*15) + AAMC_Raw_Data_for_FY22[[#This Row],[Median]]","v":239763},{"$f":"(((AAMC_Raw_Data_for_FY22[[#This Row],[75th]]-AAMC_Raw_Data_for_FY22[[#This Row],[Median]])/25)*20) + AAMC_Raw_Data_for_FY22[[#This Row],[Median]]","v":243482},247201,{"$f":"(((AAMC_Raw_Data_for_FY22[[#This Row],[75th]]-AAMC_Raw_Data_for_FY22[[#This Row],[Median]])/25)*30) + AAMC_Raw_Data_for_FY22[[#This Row],[Median]]","v":250920},{"$f":"(((AAMC_Raw_Data_for_FY22[[#This Row],[75th]]-AAMC_Raw_Data_for_FY22[[#This Row],[Median]])/25)*35) + AAMC_Raw_Data_for_FY22[[#This Row],[Median]]","v":254639},{"$f":"(((AAMC_Raw_Data_for_FY22[[#This Row],[75th]]-AAMC_Raw_Data_for_FY22[[#This Row],[Median]])/25)*40) + AAMC_Raw_Data_for_FY22[[#This Row],[Median]]","v":258358}]
[{"$f":"AAMC_Raw_Data_for_FY22[[#This Row],[Source]]&AAMC_Raw_Data_for_FY22[[#This Row],[Type]]&AAMC_Raw_Data_for_FY22[[#This Row],[School Subset]]&AAMC_Raw_Data_for_FY22[[#This Row],[Rank]]&AAMC_Raw_Data_for_FY22[[#This Row],[Degree]]&AAMC_Raw_Data_for_FY22[[#This Row],[Department / Specialty]]&\"L\"","v":"AAMCAcademicPrivateAssistantMDPsychiatry: GeneralL"},"Psychiatry: General",4,"AAMC","Academic","Private","Assistant","MD","2021-2022",219358,{"$f":"(((AAMC_Raw_Data_for_FY22[[#This Row],[Median]]-AAMC_Raw_Data_for_FY22[[#This Row],[25th]])/25)*5) + AAMC_Raw_Data_for_FY22[[#This Row],[25th]]","v":224486.39999999999},{"$f":"(((AAMC_Raw_Data_for_FY22[[#This Row],[Median]]-AAMC_Raw_Data_for_FY22[[#This Row],[25th]])/25)*10) + AAMC_Raw_Data_for_FY22[[#This Row],[25th]]","v":229614.8},{"$f":"(((AAMC_Raw_Data_for_FY22[[#This Row],[Median]]-AAMC_Raw_Data_for_FY22[[#This Row],[25th]])/25)*15) + AAMC_Raw_Data_for_FY22[[#This Row],[25th]]","v":234743.2},{"$f":"(((AAMC_Raw_Data_for_FY22[[#This Row],[Median]]-AAMC_Raw_Data_for_FY22[[#This Row],[25th]])/25)*20) + AAMC_Raw_Data_for_FY22[[#This Row],[25th]]","v":239871.6},245000,{"$f":"(((AAMC_Raw_Data_for_FY22[[#This Row],[75th]]-AAMC_Raw_Data_for_FY22[[#This Row],[Median]])/25)*5) + AAMC_Raw_Data_for_FY22[[#This Row],[Median]]","v":249713.8},{"$f":"(((AAMC_Raw_Data_for_FY22[[#This Row],[75th]]-AAMC_Raw_Data_for_FY22[[#This Row],[Median]])/25)*10) + AAMC_Raw_Data_for_FY22[[#This Row],[Median]]","v":254427.6},{"$f":"(((AAMC_Raw_Data_for_FY22[[#This Row],[75th]]-AAMC_Raw_Data_for_FY22[[#This Row],[Median]])/25)*15) + AAMC_Raw_Data_for_FY22[[#This Row],[Median]]","v":259141.4},{"$f":"(((AAMC_Raw_Data_for_FY22[[#This Row],[75th]]-AAMC_Raw_Data_for_FY22[[#This Row],[Median]])/25)*20) + AAMC_Raw_Data_for_FY22[[#This Row],[Median]]","v":263855.2},268569,{"$f":"(((AAMC_Raw_Data_for_FY22[[#This Row],[75th]]-AAMC_Raw_Data_for_FY22[[#This Row],[Median]])/25)*30) + AAMC_Raw_Data_for_FY22[[#This Row],[Median]]","v":273282.8},{"$f":"(((AAMC_Raw_Data_for_FY22[[#This Row],[75th]]-AAMC_Raw_Data_for_FY22[[#This Row],[Median]])/25)*35) + AAMC_Raw_Data_for_FY22[[#This Row],[Median]]","v":277996.59999999998},{"$f":"(((AAMC_Raw_Data_for_FY22[[#This Row],[75th]]-AAMC_Raw_Data_for_FY22[[#This Row],[Median]])/25)*40) + AAMC_Raw_Data_for_FY22[[#This Row],[Median]]","v":282710.40000000002}]
[{"$f":"AAMC_Raw_Data_for_FY22[[#This Row],[Source]]&AAMC_Raw_Data_for_FY22[[#This Row],[Type]]&AAMC_Raw_Data_for_FY22[[#This Row],[School Subset]]&AAMC_Raw_Data_for_FY22[[#This Row],[Rank]]&AAMC_Raw_Data_for_FY22[[#This Row],[Degree]]&AAMC_Raw_Data_for_FY22[[#This Row],[Department / Specialty]]&\"L\"","v":"AAMCAcademicPrivateAssociateMDPsychiatry: GeneralL"},"Psychiatry: General",3,"AAMC","Academic","Private","Associate","MD","2021-2022",232622,{"$f":"(((AAMC_Raw_Data_for_FY22[[#This Row],[Median]]-AAMC_Raw_Data_for_FY22[[#This Row],[25th]])/25)*5) + AAMC_Raw_Data_for_FY22[[#This Row],[25th]]","v":237802},{"$f":"(((AAMC_Raw_Data_for_FY22[[#This Row],[Median]]-AAMC_Raw_Data_for_FY22[[#This Row],[25th]])/25)*10) + AAMC_Raw_Data_for_FY22[[#This Row],[25th]]","v":242982},{"$f":"(((AAMC_Raw_Data_for_FY22[[#This Row],[Median]]-AAMC_Raw_Data_for_FY22[[#This Row],[25th]])/25)*15) + AAMC_Raw_Data_for_FY22[[#This Row],[25th]]","v":248162},{"$f":"(((AAMC_Raw_Data_for_FY22[[#This Row],[Median]]-AAMC_Raw_Data_for_FY22[[#This Row],[25th]])/25)*20) + AAMC_Raw_Data_for_FY22[[#This Row],[25th]]","v":253342},258522,{"$f":"(((AAMC_Raw_Data_for_FY22[[#This Row],[75th]]-AAMC_Raw_Data_for_FY22[[#This Row],[Median]])/25)*5) + AAMC_Raw_Data_for_FY22[[#This Row],[Median]]","v":265817.59999999998},{"$f":"(((AAMC_Raw_Data_for_FY22[[#This Row],[75th]]-AAMC_Raw_Data_for_FY22[[#This Row],[Median]])/25)*10) + AAMC_Raw_Data_for_FY22[[#This Row],[Median]]","v":273113.2},{"$f":"(((AAMC_Raw_Data_for_FY22[[#This Row],[75th]]-AAMC_Raw_Data_for_FY22[[#This Row],[Median]])/25)*15) + AAMC_Raw_Data_for_FY22[[#This Row],[Median]]","v":280408.8},{"$f":"(((AAMC_Raw_Data_for_FY22[[#This Row],[75th]]-AAMC_Raw_Data_for_FY22[[#This Row],[Median]])/25)*20) + AAMC_Raw_Data_for_FY22[[#This Row],[Median]]","v":287704.40000000002},295000,{"$f":"(((AAMC_Raw_Data_for_FY22[[#This Row],[75th]]-AAMC_Raw_Data_for_FY22[[#This Row],[Median]])/25)*30) + AAMC_Raw_Data_for_FY22[[#This Row],[Median]]","v":302295.59999999998},{"$f":"(((AAMC_Raw_Data_for_FY22[[#This Row],[75th]]-AAMC_Raw_Data_for_FY22[[#This Row],[Median]])/25)*35) + AAMC_Raw_Data_for_FY22[[#This Row],[Median]]","v":309591.2},{"$f":"(((AAMC_Raw_Data_for_FY22[[#This Row],[75th]]-AAMC_Raw_Data_for_FY22[[#This Row],[Median]])/25)*40) + AAMC_Raw_Data_for_FY22[[#This Row],[Median]]","v":316886.8}]
[{"$f":"AAMC_Raw_Data_for_FY22[[#This Row],[Source]]&AAMC_Raw_Data_for_FY22[[#This Row],[Type]]&AAMC_Raw_Data_for_FY22[[#This Row],[School Subset]]&AAMC_Raw_Data_for_FY22[[#This Row],[Rank]]&AAMC_Raw_Data_for_FY22[[#This Row],[Degree]]&AAMC_Raw_Data_for_FY22[[#This Row],[Department / Specialty]]&\"L\"","v":"AAMCAcademicPrivateProfessorMDPsychiatry: GeneralL"},"Psychiatry: General",2,"AAMC","Academic","Private","Professor","MD","2021-2022",255800,{"$f":"(((AAMC_Raw_Data_for_FY22[[#This Row],[Median]]-AAMC_Raw_Data_for_FY22[[#This Row],[25th]])/25)*5) + AAMC_Raw_Data_for_FY22[[#This Row],[25th]]","v":264865.59999999998},{"$f":"(((AAMC_Raw_Data_for_FY22[[#This Row],[Median]]-AAMC_Raw_Data_for_FY22[[#This Row],[25th]])/25)*10) + AAMC_Raw_Data_for_FY22[[#This Row],[25th]]","v":273931.2},{"$f":"(((AAMC_Raw_Data_for_FY22[[#This Row],[Median]]-AAMC_Raw_Data_for_FY22[[#This Row],[25th]])/25)*15) + AAMC_Raw_Data_for_FY22[[#This Row],[25th]]","v":282996.8},{"$f":"(((AAMC_Raw_Data_for_FY22[[#This Row],[Median]]-AAMC_Raw_Data_for_FY22[[#This Row],[25th]])/25)*20) + AAMC_Raw_Data_for_FY22[[#This Row],[25th]]","v":292062.40000000002},301128,{"$f":"(((AAMC_Raw_Data_for_FY22[[#This Row],[75th]]-AAMC_Raw_Data_for_FY22[[#This Row],[Median]])/25)*5) + AAMC_Raw_Data_for_FY22[[#This Row],[Median]]","v":313166.2},{"$f":"(((AAMC_Raw_Data_for_FY22[[#This Row],[75th]]-AAMC_Raw_Data_for_FY22[[#This Row],[Median]])/25)*10) + AAMC_Raw_Data_for_FY22[[#This Row],[Median]]","v":325204.40000000002},{"$f":"(((AAMC_Raw_Data_for_FY22[[#This Row],[75th]]-AAMC_Raw_Data_for_FY22[[#This Row],[Median]])/25)*15) + AAMC_Raw_Data_for_FY22[[#This Row],[Median]]","v":337242.6},{"$f":"(((AAMC_Raw_Data_for_FY22[[#This Row],[75th]]-AAMC_Raw_Data_for_FY22[[#This Row],[Median]])/25)*20) + AAMC_Raw_Data_for_FY22[[#This Row],[Median]]","v":349280.8},361319,{"$f":"(((AAMC_Raw_Data_for_FY22[[#This Row],[75th]]-AAMC_Raw_Data_for_FY22[[#This Row],[Median]])/25)*30) + AAMC_Raw_Data_for_FY22[[#This Row],[Median]]","v":373357.2},{"$f":"(((AAMC_Raw_Data_for_FY22[[#This Row],[75th]]-AAMC_Raw_Data_for_FY22[[#This Row],[Median]])/25)*35) + AAMC_Raw_Data_for_FY22[[#This Row],[Median]]","v":385395.4},{"$f":"(((AAMC_Raw_Data_for_FY22[[#This Row],[75th]]-AAMC_Raw_Data_for_FY22[[#This Row],[Median]])/25)*40) + AAMC_Raw_Data_for_FY22[[#This Row],[Median]]","v":397433.59999999998}]
[{"$f":"AAMC_Raw_Data_for_FY22[[#This Row],[Source]]&AAMC_Raw_Data_for_FY22[[#This Row],[Type]]&AAMC_Raw_Data_for_FY22[[#This Row],[School Subset]]&AAMC_Raw_Data_for_FY22[[#This Row],[Rank]]&AAMC_Raw_Data_for_FY22[[#This Row],[Degree]]&AAMC_Raw_Data_for_FY22[[#This Row],[Department / Specialty]]&\"L\"","v":"AAMCAcademicPrivateChiefMDPsychiatry: GeneralL"},"Psychiatry: General",6,"AAMC","Academic","Private","Chief","MD","2021-2022",290060,{"$f":"(((AAMC_Raw_Data_for_FY22[[#This Row],[Median]]-AAMC_Raw_Data_for_FY22[[#This Row],[25th]])/25)*5) + AAMC_Raw_Data_for_FY22[[#This Row],[25th]]","v":300743.2},{"$f":"(((AAMC_Raw_Data_for_FY22[[#This Row],[Median]]-AAMC_Raw_Data_for_FY22[[#This Row],[25th]])/25)*10) + AAMC_Raw_Data_for_FY22[[#This Row],[25th]]","v":311426.40000000002},{"$f":"(((AAMC_Raw_Data_for_FY22[[#This Row],[Median]]-AAMC_Raw_Data_for_FY22[[#This Row],[25th]])/25)*15) + AAMC_Raw_Data_for_FY22[[#This Row],[25th]]","v":322109.59999999998},{"$f":"(((AAMC_Raw_Data_for_FY22[[#This Row],[Median]]-AAMC_Raw_Data_for_FY22[[#This Row],[25th]])/25)*20) + AAMC_Raw_Data_for_FY22[[#This Row],[25th]]","v":332792.8},343476,{"$f":"(((AAMC_Raw_Data_for_FY22[[#This Row],[75th]]-AAMC_Raw_Data_for_FY22[[#This Row],[Median]])/25)*5) + AAMC_Raw_Data_for_FY22[[#This Row],[Median]]","v":348827},{"$f":"(((AAMC_Raw_Data_for_FY22[[#This Row],[75th]]-AAMC_Raw_Data_for_FY22[[#This Row],[Median]])/25)*10) + AAMC_Raw_Data_for_FY22[[#This Row],[Median]]","v":354178},{"$f":"(((AAMC_Raw_Data_for_FY22[[#This Row],[75th]]-AAMC_Raw_Data_for_FY22[[#This Row],[Median]])/25)*15) + AAMC_Raw_Data_for_FY22[[#This Row],[Median]]","v":359529},{"$f":"(((AAMC_Raw_Data_for_FY22[[#This Row],[75th]]-AAMC_Raw_Data_for_FY22[[#This Row],[Median]])/25)*20) + AAMC_Raw_Data_for_FY22[[#This Row],[Median]]","v":364880},370231,{"$f":"(((AAMC_Raw_Data_for_FY22[[#This Row],[75th]]-AAMC_Raw_Data_for_FY22[[#This Row],[Median]])/25)*30) + AAMC_Raw_Data_for_FY22[[#This Row],[Median]]","v":375582},{"$f":"(((AAMC_Raw_Data_for_FY22[[#This Row],[75th]]-AAMC_Raw_Data_for_FY22[[#This Row],[Median]])/25)*35) + AAMC_Raw_Data_for_FY22[[#This Row],[Median]]","v":380933},{"$f":"(((AAMC_Raw_Data_for_FY22[[#This Row],[75th]]-AAMC_Raw_Data_for_FY22[[#This Row],[Median]])/25)*40) + AAMC_Raw_Data_for_FY22[[#This Row],[Median]]","v":386284}]
[{"$f":"AAMC_Raw_Data_for_FY22[[#This Row],[Source]]&AAMC_Raw_Data_for_FY22[[#This Row],[Type]]&AAMC_Raw_Data_for_FY22[[#This Row],[School Subset]]&AAMC_Raw_Data_for_FY22[[#This Row],[Rank]]&AAMC_Raw_Data_for_FY22[[#This Row],[Degree]]&AAMC_Raw_Data_for_FY22[[#This Row],[Department / Specialty]]&\"L\"","v":"AAMCAcademicPrivateChairMDPsychiatry: GeneralL"},"Psychiatry: General",1,"AAMC","Academic","Private","Chair","MD","2021-2022",425000,{"$f":"(((AAMC_Raw_Data_for_FY22[[#This Row],[Median]]-AAMC_Raw_Data_for_FY22[[#This Row],[25th]])/25)*5) + AAMC_Raw_Data_for_FY22[[#This Row],[25th]]","v":453800},{"$f":"(((AAMC_Raw_Data_for_FY22[[#This Row],[Median]]-AAMC_Raw_Data_for_FY22[[#This Row],[25th]])/25)*10) + AAMC_Raw_Data_for_FY22[[#This Row],[25th]]","v":482600},{"$f":"(((AAMC_Raw_Data_for_FY22[[#This Row],[Median]]-AAMC_Raw_Data_for_FY22[[#This Row],[25th]])/25)*15) + AAMC_Raw_Data_for_FY22[[#This Row],[25th]]","v":511400},{"$f":"(((AAMC_Raw_Data_for_FY22[[#This Row],[Median]]-AAMC_Raw_Data_for_FY22[[#This Row],[25th]])/25)*20) + AAMC_Raw_Data_for_FY22[[#This Row],[25th]]","v":540200},569000,{"$f":"(((AAMC_Raw_Data_for_FY22[[#This Row],[75th]]-AAMC_Raw_Data_for_FY22[[#This Row],[Median]])/25)*5) + AAMC_Raw_Data_for_FY22[[#This Row],[Median]]","v":587686.80000000005},{"$f":"(((AAMC_Raw_Data_for_FY22[[#This Row],[75th]]-AAMC_Raw_Data_for_FY22[[#This Row],[Median]])/25)*10) + AAMC_Raw_Data_for_FY22[[#This Row],[Median]]","v":606373.6},{"$f":"(((AAMC_Raw_Data_for_FY22[[#This Row],[75th]]-AAMC_Raw_Data_for_FY22[[#This Row],[Median]])/25)*15) + AAMC_Raw_Data_for_FY22[[#This Row],[Median]]","v":625060.4},{"$f":"(((AAMC_Raw_Data_for_FY22[[#This Row],[75th]]-AAMC_Raw_Data_for_FY22[[#This Row],[Median]])/25)*20) + AAMC_Raw_Data_for_FY22[[#This Row],[Median]]","v":643747.19999999995},662434,{"$f":"(((AAMC_Raw_Data_for_FY22[[#This Row],[75th]]-AAMC_Raw_Data_for_FY22[[#This Row],[Median]])/25)*30) + AAMC_Raw_Data_for_FY22[[#This Row],[Median]]","v":681120.8},{"$f":"(((AAMC_Raw_Data_for_FY22[[#This Row],[75th]]-AAMC_Raw_Data_for_FY22[[#This Row],[Median]])/25)*35) + AAMC_Raw_Data_for_FY22[[#This Row],[Median]]","v":699807.6},{"$f":"(((AAMC_Raw_Data_for_FY22[[#This Row],[75th]]-AAMC_Raw_Data_for_FY22[[#This Row],[Median]])/25)*40) + AAMC_Raw_Data_for_FY22[[#This Row],[Median]]","v":718494.4}]
[{"$f":"AAMC_Raw_Data_for_FY22[[#This Row],[Source]]&AAMC_Raw_Data_for_FY22[[#This Row],[Type]]&AAMC_Raw_Data_for_FY22[[#This Row],[School Subset]]&AAMC_Raw_Data_for_FY22[[#This Row],[Rank]]&AAMC_Raw_Data_for_FY22[[#This Row],[Degree]]&AAMC_Raw_Data_for_FY22[[#This Row],[Department / Specialty]]&\"L\"","v":"AAMCAcademicPrivateInstructorMDPsychiatry: PsychologyL"},"Psychiatry: Psychology",5,"AAMC","Academic","Private","Instructor","MD","2021-2022",null,{"$f":"(((AAMC_Raw_Data_for_FY22[[#This Row],[Median]]-AAMC_Raw_Data_for_FY22[[#This Row],[25th]])/25)*5) + AAMC_Raw_Data_for_FY22[[#This Row],[25th]]","v":0},{"$f":"(((AAMC_Raw_Data_for_FY22[[#This Row],[Median]]-AAMC_Raw_Data_for_FY22[[#This Row],[25th]])/25)*10) + AAMC_Raw_Data_for_FY22[[#This Row],[25th]]","v":0},{"$f":"(((AAMC_Raw_Data_for_FY22[[#This Row],[Median]]-AAMC_Raw_Data_for_FY22[[#This Row],[25th]])/25)*15) + AAMC_Raw_Data_for_FY22[[#This Row],[25th]]","v":0},{"$f":"(((AAMC_Raw_Data_for_FY22[[#This Row],[Median]]-AAMC_Raw_Data_for_FY22[[#This Row],[25th]])/25)*20) + AAMC_Raw_Data_for_FY22[[#This Row],[25th]]","v":0},null,{"$f":"(((AAMC_Raw_Data_for_FY22[[#This Row],[75th]]-AAMC_Raw_Data_for_FY22[[#This Row],[Median]])/25)*5) + AAMC_Raw_Data_for_FY22[[#This Row],[Median]]","v":0},{"$f":"(((AAMC_Raw_Data_for_FY22[[#This Row],[75th]]-AAMC_Raw_Data_for_FY22[[#This Row],[Median]])/25)*10) + AAMC_Raw_Data_for_FY22[[#This Row],[Median]]","v":0},{"$f":"(((AAMC_Raw_Data_for_FY22[[#This Row],[75th]]-AAMC_Raw_Data_for_FY22[[#This Row],[Median]])/25)*15) + AAMC_Raw_Data_for_FY22[[#This Row],[Median]]","v":0},{"$f":"(((AAMC_Raw_Data_for_FY22[[#This Row],[75th]]-AAMC_Raw_Data_for_FY22[[#This Row],[Median]])/25)*20) + AAMC_Raw_Data_for_FY22[[#This Row],[Median]]","v":0},null,{"$f":"(((AAMC_Raw_Data_for_FY22[[#This Row],[75th]]-AAMC_Raw_Data_for_FY22[[#This Row],[Median]])/25)*30) + AAMC_Raw_Data_for_FY22[[#This Row],[Median]]","v":0},{"$f":"(((AAMC_Raw_Data_for_FY22[[#This Row],[75th]]-AAMC_Raw_Data_for_FY22[[#This Row],[Median]])/25)*35) + AAMC_Raw_Data_for_FY22[[#This Row],[Median]]","v":0},{"$f":"(((AAMC_Raw_Data_for_FY22[[#This Row],[75th]]-AAMC_Raw_Data_for_FY22[[#This Row],[Median]])/25)*40) + AAMC_Raw_Data_for_FY22[[#This Row],[Median]]","v":0}]
[{"$f":"AAMC_Raw_Data_for_FY22[[#This Row],[Source]]&AAMC_Raw_Data_for_FY22[[#This Row],[Type]]&AAMC_Raw_Data_for_FY22[[#This Row],[School Subset]]&AAMC_Raw_Data_for_FY22[[#This Row],[Rank]]&AAMC_Raw_Data_for_FY22[[#This Row],[Degree]]&AAMC_Raw_Data_for_FY22[[#This Row],[Department / Specialty]]&\"L\"","v":"AAMCAcademicPrivateAssistantMDPsychiatry: PsychologyL"},"Psychiatry: Psychology",4,"AAMC","Academic","Private","Assistant","MD","2021-2022",206168,{"$f":"(((AAMC_Raw_Data_for_FY22[[#This Row],[Median]]-AAMC_Raw_Data_for_FY22[[#This Row],[25th]])/25)*5) + AAMC_Raw_Data_for_FY22[[#This Row],[25th]]","v":213196.2},{"$f":"(((AAMC_Raw_Data_for_FY22[[#This Row],[Median]]-AAMC_Raw_Data_for_FY22[[#This Row],[25th]])/25)*10) + AAMC_Raw_Data_for_FY22[[#This Row],[25th]]","v":220224.4},{"$f":"(((AAMC_Raw_Data_for_FY22[[#This Row],[Median]]-AAMC_Raw_Data_for_FY22[[#This Row],[25th]])/25)*15) + AAMC_Raw_Data_for_FY22[[#This Row],[25th]]","v":227252.6},{"$f":"(((AAMC_Raw_Data_for_FY22[[#This Row],[Median]]-AAMC_Raw_Data_for_FY22[[#This Row],[25th]])/25)*20) + AAMC_Raw_Data_for_FY22[[#This Row],[25th]]","v":234280.8},241309,{"$f":"(((AAMC_Raw_Data_for_FY22[[#This Row],[75th]]-AAMC_Raw_Data_for_FY22[[#This Row],[Median]])/25)*5) + AAMC_Raw_Data_for_FY22[[#This Row],[Median]]","v":246649.8},{"$f":"(((AAMC_Raw_Data_for_FY22[[#This Row],[75th]]-AAMC_Raw_Data_for_FY22[[#This Row],[Median]])/25)*10) + AAMC_Raw_Data_for_FY22[[#This Row],[Median]]","v":251990.6},{"$f":"(((AAMC_Raw_Data_for_FY22[[#This Row],[75th]]-AAMC_Raw_Data_for_FY22[[#This Row],[Median]])/25)*15) + AAMC_Raw_Data_for_FY22[[#This Row],[Median]]","v":257331.4},{"$f":"(((AAMC_Raw_Data_for_FY22[[#This Row],[75th]]-AAMC_Raw_Data_for_FY22[[#This Row],[Median]])/25)*20) + AAMC_Raw_Data_for_FY22[[#This Row],[Median]]","v":262672.2},268013,{"$f":"(((AAMC_Raw_Data_for_FY22[[#This Row],[75th]]-AAMC_Raw_Data_for_FY22[[#This Row],[Median]])/25)*30) + AAMC_Raw_Data_for_FY22[[#This Row],[Median]]","v":273353.8},{"$f":"(((AAMC_Raw_Data_for_FY22[[#This Row],[75th]]-AAMC_Raw_Data_for_FY22[[#This Row],[Median]])/25)*35) + AAMC_Raw_Data_for_FY22[[#This Row],[Median]]","v":278694.59999999998},{"$f":"(((AAMC_Raw_Data_for_FY22[[#This Row],[75th]]-AAMC_Raw_Data_for_FY22[[#This Row],[Median]])/25)*40) + AAMC_Raw_Data_for_FY22[[#This Row],[Median]]","v":284035.40000000002}]
[{"$f":"AAMC_Raw_Data_for_FY22[[#This Row],[Source]]&AAMC_Raw_Data_for_FY22[[#This Row],[Type]]&AAMC_Raw_Data_for_FY22[[#This Row],[School Subset]]&AAMC_Raw_Data_for_FY22[[#This Row],[Rank]]&AAMC_Raw_Data_for_FY22[[#This Row],[Degree]]&AAMC_Raw_Data_for_FY22[[#This Row],[Department / Specialty]]&\"L\"","v":"AAMCAcademicPrivateAssociateMDPsychiatry: PsychologyL"},"Psychiatry: Psychology",3,"AAMC","Academic","Private","Associate","MD","2021-2022",null,{"$f":"(((AAMC_Raw_Data_for_FY22[[#This Row],[Median]]-AAMC_Raw_Data_for_FY22[[#This Row],[25th]])/25)*5) + AAMC_Raw_Data_for_FY22[[#This Row],[25th]]","v":0},{"$f":"(((AAMC_Raw_Data_for_FY22[[#This Row],[Median]]-AAMC_Raw_Data_for_FY22[[#This Row],[25th]])/25)*10) + AAMC_Raw_Data_for_FY22[[#This Row],[25th]]","v":0},{"$f":"(((AAMC_Raw_Data_for_FY22[[#This Row],[Median]]-AAMC_Raw_Data_for_FY22[[#This Row],[25th]])/25)*15) + AAMC_Raw_Data_for_FY22[[#This Row],[25th]]","v":0},{"$f":"(((AAMC_Raw_Data_for_FY22[[#This Row],[Median]]-AAMC_Raw_Data_for_FY22[[#This Row],[25th]])/25)*20) + AAMC_Raw_Data_for_FY22[[#This Row],[25th]]","v":0},null,{"$f":"(((AAMC_Raw_Data_for_FY22[[#This Row],[75th]]-AAMC_Raw_Data_for_FY22[[#This Row],[Median]])/25)*5) + AAMC_Raw_Data_for_FY22[[#This Row],[Median]]","v":0},{"$f":"(((AAMC_Raw_Data_for_FY22[[#This Row],[75th]]-AAMC_Raw_Data_for_FY22[[#This Row],[Median]])/25)*10) + AAMC_Raw_Data_for_FY22[[#This Row],[Median]]","v":0},{"$f":"(((AAMC_Raw_Data_for_FY22[[#This Row],[75th]]-AAMC_Raw_Data_for_FY22[[#This Row],[Median]])/25)*15) + AAMC_Raw_Data_for_FY22[[#This Row],[Median]]","v":0},{"$f":"(((AAMC_Raw_Data_for_FY22[[#This Row],[75th]]-AAMC_Raw_Data_for_FY22[[#This Row],[Median]])/25)*20) + AAMC_Raw_Data_for_FY22[[#This Row],[Median]]","v":0},null,{"$f":"(((AAMC_Raw_Data_for_FY22[[#This Row],[75th]]-AAMC_Raw_Data_for_FY22[[#This Row],[Median]])/25)*30) + AAMC_Raw_Data_for_FY22[[#This Row],[Median]]","v":0},{"$f":"(((AAMC_Raw_Data_for_FY22[[#This Row],[75th]]-AAMC_Raw_Data_for_FY22[[#This Row],[Median]])/25)*35) + AAMC_Raw_Data_for_FY22[[#This Row],[Median]]","v":0},{"$f":"(((AAMC_Raw_Data_for_FY22[[#This Row],[75th]]-AAMC_Raw_Data_for_FY22[[#This Row],[Median]])/25)*40) + AAMC_Raw_Data_for_FY22[[#This Row],[Median]]","v":0}]
[{"$f":"AAMC_Raw_Data_for_FY22[[#This Row],[Source]]&AAMC_Raw_Data_for_FY22[[#This Row],[Type]]&AAMC_Raw_Data_for_FY22[[#This Row],[School Subset]]&AAMC_Raw_Data_for_FY22[[#This Row],[Rank]]&AAMC_Raw_Data_for_FY22[[#This Row],[Degree]]&AAMC_Raw_Data_for_FY22[[#This Row],[Department / Specialty]]&\"L\"","v":"AAMCAcademicPrivateProfessorMDPsychiatry: PsychologyL"},"Psychiatry: Psychology",2,"AAMC","Academic","Private","Professor","MD","2021-2022",null,{"$f":"(((AAMC_Raw_Data_for_FY22[[#This Row],[Median]]-AAMC_Raw_Data_for_FY22[[#This Row],[25th]])/25)*5) + AAMC_Raw_Data_for_FY22[[#This Row],[25th]]","v":0},{"$f":"(((AAMC_Raw_Data_for_FY22[[#This Row],[Median]]-AAMC_Raw_Data_for_FY22[[#This Row],[25th]])/25)*10) + AAMC_Raw_Data_for_FY22[[#This Row],[25th]]","v":0},{"$f":"(((AAMC_Raw_Data_for_FY22[[#This Row],[Median]]-AAMC_Raw_Data_for_FY22[[#This Row],[25th]])/25)*15) + AAMC_Raw_Data_for_FY22[[#This Row],[25th]]","v":0},{"$f":"(((AAMC_Raw_Data_for_FY22[[#This Row],[Median]]-AAMC_Raw_Data_for_FY22[[#This Row],[25th]])/25)*20) + AAMC_Raw_Data_for_FY22[[#This Row],[25th]]","v":0},null,{"$f":"(((AAMC_Raw_Data_for_FY22[[#This Row],[75th]]-AAMC_Raw_Data_for_FY22[[#This Row],[Median]])/25)*5) + AAMC_Raw_Data_for_FY22[[#This Row],[Median]]","v":0},{"$f":"(((AAMC_Raw_Data_for_FY22[[#This Row],[75th]]-AAMC_Raw_Data_for_FY22[[#This Row],[Median]])/25)*10) + AAMC_Raw_Data_for_FY22[[#This Row],[Median]]","v":0},{"$f":"(((AAMC_Raw_Data_for_FY22[[#This Row],[75th]]-AAMC_Raw_Data_for_FY22[[#This Row],[Median]])/25)*15) + AAMC_Raw_Data_for_FY22[[#This Row],[Median]]","v":0},{"$f":"(((AAMC_Raw_Data_for_FY22[[#This Row],[75th]]-AAMC_Raw_Data_for_FY22[[#This Row],[Median]])/25)*20) + AAMC_Raw_Data_for_FY22[[#This Row],[Median]]","v":0},null,{"$f":"(((AAMC_Raw_Data_for_FY22[[#This Row],[75th]]-AAMC_Raw_Data_for_FY22[[#This Row],[Median]])/25)*30) + AAMC_Raw_Data_for_FY22[[#This Row],[Median]]","v":0},{"$f":"(((AAMC_Raw_Data_for_FY22[[#This Row],[75th]]-AAMC_Raw_Data_for_FY22[[#This Row],[Median]])/25)*35) + AAMC_Raw_Data_for_FY22[[#This Row],[Median]]","v":0},{"$f":"(((AAMC_Raw_Data_for_FY22[[#This Row],[75th]]-AAMC_Raw_Data_for_FY22[[#This Row],[Median]])/25)*40) + AAMC_Raw_Data_for_FY22[[#This Row],[Median]]","v":0}]
[{"$f":"AAMC_Raw_Data_for_FY22[[#This Row],[Source]]&AAMC_Raw_Data_for_FY22[[#This Row],[Type]]&AAMC_Raw_Data_for_FY22[[#This Row],[School Subset]]&AAMC_Raw_Data_for_FY22[[#This Row],[Rank]]&AAMC_Raw_Data_for_FY22[[#This Row],[Degree]]&AAMC_Raw_Data_for_FY22[[#This Row],[Department / Specialty]]&\"L\"","v":"AAMCAcademicPrivateInstructorMDPsychiatry: OtherL"},"Psychiatry: Other",5,"AAMC","Academic","Private","Instructor","MD","2021-2022",196976,{"$f":"(((AAMC_Raw_Data_for_FY22[[#This Row],[Median]]-AAMC_Raw_Data_for_FY22[[#This Row],[25th]])/25)*5) + AAMC_Raw_Data_for_FY22[[#This Row],[25th]]","v":200828.79999999999},{"$f":"(((AAMC_Raw_Data_for_FY22[[#This Row],[Median]]-AAMC_Raw_Data_for_FY22[[#This Row],[25th]])/25)*10) + AAMC_Raw_Data_for_FY22[[#This Row],[25th]]","v":204681.60000000001},{"$f":"(((AAMC_Raw_Data_for_FY22[[#This Row],[Median]]-AAMC_Raw_Data_for_FY22[[#This Row],[25th]])/25)*15) + AAMC_Raw_Data_for_FY22[[#This Row],[25th]]","v":208534.39999999999},{"$f":"(((AAMC_Raw_Data_for_FY22[[#This Row],[Median]]-AAMC_Raw_Data_for_FY22[[#This Row],[25th]])/25)*20) + AAMC_Raw_Data_for_FY22[[#This Row],[25th]]","v":212387.20000000001},216240,{"$f":"(((AAMC_Raw_Data_for_FY22[[#This Row],[75th]]-AAMC_Raw_Data_for_FY22[[#This Row],[Median]])/25)*5) + AAMC_Raw_Data_for_FY22[[#This Row],[Median]]","v":218137.8},{"$f":"(((AAMC_Raw_Data_for_FY22[[#This Row],[75th]]-AAMC_Raw_Data_for_FY22[[#This Row],[Median]])/25)*10) + AAMC_Raw_Data_for_FY22[[#This Row],[Median]]","v":220035.6},{"$f":"(((AAMC_Raw_Data_for_FY22[[#This Row],[75th]]-AAMC_Raw_Data_for_FY22[[#This Row],[Median]])/25)*15) + AAMC_Raw_Data_for_FY22[[#This Row],[Median]]","v":221933.4},{"$f":"(((AAMC_Raw_Data_for_FY22[[#This Row],[75th]]-AAMC_Raw_Data_for_FY22[[#This Row],[Median]])/25)*20) + AAMC_Raw_Data_for_FY22[[#This Row],[Median]]","v":223831.2},225729,{"$f":"(((AAMC_Raw_Data_for_FY22[[#This Row],[75th]]-AAMC_Raw_Data_for_FY22[[#This Row],[Median]])/25)*30) + AAMC_Raw_Data_for_FY22[[#This Row],[Median]]","v":227626.8},{"$f":"(((AAMC_Raw_Data_for_FY22[[#This Row],[75th]]-AAMC_Raw_Data_for_FY22[[#This Row],[Median]])/25)*35) + AAMC_Raw_Data_for_FY22[[#This Row],[Median]]","v":229524.6},{"$f":"(((AAMC_Raw_Data_for_FY22[[#This Row],[75th]]-AAMC_Raw_Data_for_FY22[[#This Row],[Median]])/25)*40) + AAMC_Raw_Data_for_FY22[[#This Row],[Median]]","v":231422.4}]
[{"$f":"AAMC_Raw_Data_for_FY22[[#This Row],[Source]]&AAMC_Raw_Data_for_FY22[[#This Row],[Type]]&AAMC_Raw_Data_for_FY22[[#This Row],[School Subset]]&AAMC_Raw_Data_for_FY22[[#This Row],[Rank]]&AAMC_Raw_Data_for_FY22[[#This Row],[Degree]]&AAMC_Raw_Data_for_FY22[[#This Row],[Department / Specialty]]&\"L\"","v":"AAMCAcademicPrivateAssistantMDPsychiatry: OtherL"},"Psychiatry: Other",4,"AAMC","Academic","Private","Assistant","MD","2021-2022",200290,{"$f":"(((AAMC_Raw_Data_for_FY22[[#This Row],[Median]]-AAMC_Raw_Data_for_FY22[[#This Row],[25th]])/25)*5) + AAMC_Raw_Data_for_FY22[[#This Row],[25th]]","v":209046.39999999999},{"$f":"(((AAMC_Raw_Data_for_FY22[[#This Row],[Median]]-AAMC_Raw_Data_for_FY22[[#This Row],[25th]])/25)*10) + AAMC_Raw_Data_for_FY22[[#This Row],[25th]]","v":217802.8},{"$f":"(((AAMC_Raw_Data_for_FY22[[#This Row],[Median]]-AAMC_Raw_Data_for_FY22[[#This Row],[25th]])/25)*15) + AAMC_Raw_Data_for_FY22[[#This Row],[25th]]","v":226559.2},{"$f":"(((AAMC_Raw_Data_for_FY22[[#This Row],[Median]]-AAMC_Raw_Data_for_FY22[[#This Row],[25th]])/25)*20) + AAMC_Raw_Data_for_FY22[[#This Row],[25th]]","v":235315.6},244072,{"$f":"(((AAMC_Raw_Data_for_FY22[[#This Row],[75th]]-AAMC_Raw_Data_for_FY22[[#This Row],[Median]])/25)*5) + AAMC_Raw_Data_for_FY22[[#This Row],[Median]]","v":250020.8},{"$f":"(((AAMC_Raw_Data_for_FY22[[#This Row],[75th]]-AAMC_Raw_Data_for_FY22[[#This Row],[Median]])/25)*10) + AAMC_Raw_Data_for_FY22[[#This Row],[Median]]","v":255969.6},{"$f":"(((AAMC_Raw_Data_for_FY22[[#This Row],[75th]]-AAMC_Raw_Data_for_FY22[[#This Row],[Median]])/25)*15) + AAMC_Raw_Data_for_FY22[[#This Row],[Median]]","v":261918.4},{"$f":"(((AAMC_Raw_Data_for_FY22[[#This Row],[75th]]-AAMC_Raw_Data_for_FY22[[#This Row],[Median]])/25)*20) + AAMC_Raw_Data_for_FY22[[#This Row],[Median]]","v":267867.2},273816,{"$f":"(((AAMC_Raw_Data_for_FY22[[#This Row],[75th]]-AAMC_Raw_Data_for_FY22[[#This Row],[Median]])/25)*30) + AAMC_Raw_Data_for_FY22[[#This Row],[Median]]","v":279764.8},{"$f":"(((AAMC_Raw_Data_for_FY22[[#This Row],[75th]]-AAMC_Raw_Data_for_FY22[[#This Row],[Median]])/25)*35) + AAMC_Raw_Data_for_FY22[[#This Row],[Median]]","v":285713.59999999998},{"$f":"(((AAMC_Raw_Data_for_FY22[[#This Row],[75th]]-AAMC_Raw_Data_for_FY22[[#This Row],[Median]])/25)*40) + AAMC_Raw_Data_for_FY22[[#This Row],[Median]]","v":291662.40000000002}]
[{"$f":"AAMC_Raw_Data_for_FY22[[#This Row],[Source]]&AAMC_Raw_Data_for_FY22[[#This Row],[Type]]&AAMC_Raw_Data_for_FY22[[#This Row],[School Subset]]&AAMC_Raw_Data_for_FY22[[#This Row],[Rank]]&AAMC_Raw_Data_for_FY22[[#This Row],[Degree]]&AAMC_Raw_Data_for_FY22[[#This Row],[Department / Specialty]]&\"L\"","v":"AAMCAcademicPrivateAssociateMDPsychiatry: OtherL"},"Psychiatry: Other",3,"AAMC","Academic","Private","Associate","MD","2021-2022",199965,{"$f":"(((AAMC_Raw_Data_for_FY22[[#This Row],[Median]]-AAMC_Raw_Data_for_FY22[[#This Row],[25th]])/25)*5) + AAMC_Raw_Data_for_FY22[[#This Row],[25th]]","v":212614.6},{"$f":"(((AAMC_Raw_Data_for_FY22[[#This Row],[Median]]-AAMC_Raw_Data_for_FY22[[#This Row],[25th]])/25)*10) + AAMC_Raw_Data_for_FY22[[#This Row],[25th]]","v":225264.2},{"$f":"(((AAMC_Raw_Data_for_FY22[[#This Row],[Median]]-AAMC_Raw_Data_for_FY22[[#This Row],[25th]])/25)*15) + AAMC_Raw_Data_for_FY22[[#This Row],[25th]]","v":237913.8},{"$f":"(((AAMC_Raw_Data_for_FY22[[#This Row],[Median]]-AAMC_Raw_Data_for_FY22[[#This Row],[25th]])/25)*20) + AAMC_Raw_Data_for_FY22[[#This Row],[25th]]","v":250563.4},263213,{"$f":"(((AAMC_Raw_Data_for_FY22[[#This Row],[75th]]-AAMC_Raw_Data_for_FY22[[#This Row],[Median]])/25)*5) + AAMC_Raw_Data_for_FY22[[#This Row],[Median]]","v":276344.40000000002},{"$f":"(((AAMC_Raw_Data_for_FY22[[#This Row],[75th]]-AAMC_Raw_Data_for_FY22[[#This Row],[Median]])/25)*10) + AAMC_Raw_Data_for_FY22[[#This Row],[Median]]","v":289475.8},{"$f":"(((AAMC_Raw_Data_for_FY22[[#This Row],[75th]]-AAMC_Raw_Data_for_FY22[[#This Row],[Median]])/25)*15) + AAMC_Raw_Data_for_FY22[[#This Row],[Median]]","v":302607.2},{"$f":"(((AAMC_Raw_Data_for_FY22[[#This Row],[75th]]-AAMC_Raw_Data_for_FY22[[#This Row],[Median]])/25)*20) + AAMC_Raw_Data_for_FY22[[#This Row],[Median]]","v":315738.59999999998},328870,{"$f":"(((AAMC_Raw_Data_for_FY22[[#This Row],[75th]]-AAMC_Raw_Data_for_FY22[[#This Row],[Median]])/25)*30) + AAMC_Raw_Data_for_FY22[[#This Row],[Median]]","v":342001.4},{"$f":"(((AAMC_Raw_Data_for_FY22[[#This Row],[75th]]-AAMC_Raw_Data_for_FY22[[#This Row],[Median]])/25)*35) + AAMC_Raw_Data_for_FY22[[#This Row],[Median]]","v":355132.8},{"$f":"(((AAMC_Raw_Data_for_FY22[[#This Row],[75th]]-AAMC_Raw_Data_for_FY22[[#This Row],[Median]])/25)*40) + AAMC_Raw_Data_for_FY22[[#This Row],[Median]]","v":368264.2}]
[{"$f":"AAMC_Raw_Data_for_FY22[[#This Row],[Source]]&AAMC_Raw_Data_for_FY22[[#This Row],[Type]]&AAMC_Raw_Data_for_FY22[[#This Row],[School Subset]]&AAMC_Raw_Data_for_FY22[[#This Row],[Rank]]&AAMC_Raw_Data_for_FY22[[#This Row],[Degree]]&AAMC_Raw_Data_for_FY22[[#This Row],[Department / Specialty]]&\"L\"","v":"AAMCAcademicPrivateProfessorMDPsychiatry: OtherL"},"Psychiatry: Other",2,"AAMC","Academic","Private","Professor","MD","2021-2022",165373,{"$f":"(((AAMC_Raw_Data_for_FY22[[#This Row],[Median]]-AAMC_Raw_Data_for_FY22[[#This Row],[25th]])/25)*5) + AAMC_Raw_Data_for_FY22[[#This Row],[25th]]","v":176713.4},{"$f":"(((AAMC_Raw_Data_for_FY22[[#This Row],[Median]]-AAMC_Raw_Data_for_FY22[[#This Row],[25th]])/25)*10) + AAMC_Raw_Data_for_FY22[[#This Row],[25th]]","v":188053.8},{"$f":"(((AAMC_Raw_Data_for_FY22[[#This Row],[Median]]-AAMC_Raw_Data_for_FY22[[#This Row],[25th]])/25)*15) + AAMC_Raw_Data_for_FY22[[#This Row],[25th]]","v":199394.2},{"$f":"(((AAMC_Raw_Data_for_FY22[[#This Row],[Median]]-AAMC_Raw_Data_for_FY22[[#This Row],[25th]])/25)*20) + AAMC_Raw_Data_for_FY22[[#This Row],[25th]]","v":210734.6},222075,{"$f":"(((AAMC_Raw_Data_for_FY22[[#This Row],[75th]]-AAMC_Raw_Data_for_FY22[[#This Row],[Median]])/25)*5) + AAMC_Raw_Data_for_FY22[[#This Row],[Median]]","v":233146.6},{"$f":"(((AAMC_Raw_Data_for_FY22[[#This Row],[75th]]-AAMC_Raw_Data_for_FY22[[#This Row],[Median]])/25)*10) + AAMC_Raw_Data_for_FY22[[#This Row],[Median]]","v":244218.2},{"$f":"(((AAMC_Raw_Data_for_FY22[[#This Row],[75th]]-AAMC_Raw_Data_for_FY22[[#This Row],[Median]])/25)*15) + AAMC_Raw_Data_for_FY22[[#This Row],[Median]]","v":255289.8},{"$f":"(((AAMC_Raw_Data_for_FY22[[#This Row],[75th]]-AAMC_Raw_Data_for_FY22[[#This Row],[Median]])/25)*20) + AAMC_Raw_Data_for_FY22[[#This Row],[Median]]","v":266361.40000000002},277433,{"$f":"(((AAMC_Raw_Data_for_FY22[[#This Row],[75th]]-AAMC_Raw_Data_for_FY22[[#This Row],[Median]])/25)*30) + AAMC_Raw_Data_for_FY22[[#This Row],[Median]]","v":288504.59999999998},{"$f":"(((AAMC_Raw_Data_for_FY22[[#This Row],[75th]]-AAMC_Raw_Data_for_FY22[[#This Row],[Median]])/25)*35) + AAMC_Raw_Data_for_FY22[[#This Row],[Median]]","v":299576.2},{"$f":"(((AAMC_Raw_Data_for_FY22[[#This Row],[75th]]-AAMC_Raw_Data_for_FY22[[#This Row],[Median]])/25)*40) + AAMC_Raw_Data_for_FY22[[#This Row],[Median]]","v":310647.8}]
[{"$f":"AAMC_Raw_Data_for_FY22[[#This Row],[Source]]&AAMC_Raw_Data_for_FY22[[#This Row],[Type]]&AAMC_Raw_Data_for_FY22[[#This Row],[School Subset]]&AAMC_Raw_Data_for_FY22[[#This Row],[Rank]]&AAMC_Raw_Data_for_FY22[[#This Row],[Degree]]&AAMC_Raw_Data_for_FY22[[#This Row],[Department / Specialty]]&\"L\"","v":"AAMCAcademicPrivateChiefMDPsychiatry: OtherL"},"Psychiatry: Other",6,"AAMC","Academic","Private","Chief","MD","2021-2022",null,{"$f":"(((AAMC_Raw_Data_for_FY22[[#This Row],[Median]]-AAMC_Raw_Data_for_FY22[[#This Row],[25th]])/25)*5) + AAMC_Raw_Data_for_FY22[[#This Row],[25th]]","v":0},{"$f":"(((AAMC_Raw_Data_for_FY22[[#This Row],[Median]]-AAMC_Raw_Data_for_FY22[[#This Row],[25th]])/25)*10) + AAMC_Raw_Data_for_FY22[[#This Row],[25th]]","v":0},{"$f":"(((AAMC_Raw_Data_for_FY22[[#This Row],[Median]]-AAMC_Raw_Data_for_FY22[[#This Row],[25th]])/25)*15) + AAMC_Raw_Data_for_FY22[[#This Row],[25th]]","v":0},{"$f":"(((AAMC_Raw_Data_for_FY22[[#This Row],[Median]]-AAMC_Raw_Data_for_FY22[[#This Row],[25th]])/25)*20) + AAMC_Raw_Data_for_FY22[[#This Row],[25th]]","v":0},null,{"$f":"(((AAMC_Raw_Data_for_FY22[[#This Row],[75th]]-AAMC_Raw_Data_for_FY22[[#This Row],[Median]])/25)*5) + AAMC_Raw_Data_for_FY22[[#This Row],[Median]]","v":0},{"$f":"(((AAMC_Raw_Data_for_FY22[[#This Row],[75th]]-AAMC_Raw_Data_for_FY22[[#This Row],[Median]])/25)*10) + AAMC_Raw_Data_for_FY22[[#This Row],[Median]]","v":0},{"$f":"(((AAMC_Raw_Data_for_FY22[[#This Row],[75th]]-AAMC_Raw_Data_for_FY22[[#This Row],[Median]])/25)*15) + AAMC_Raw_Data_for_FY22[[#This Row],[Median]]","v":0},{"$f":"(((AAMC_Raw_Data_for_FY22[[#This Row],[75th]]-AAMC_Raw_Data_for_FY22[[#This Row],[Median]])/25)*20) + AAMC_Raw_Data_for_FY22[[#This Row],[Median]]","v":0},null,{"$f":"(((AAMC_Raw_Data_for_FY22[[#This Row],[75th]]-AAMC_Raw_Data_for_FY22[[#This Row],[Median]])/25)*30) + AAMC_Raw_Data_for_FY22[[#This Row],[Median]]","v":0},{"$f":"(((AAMC_Raw_Data_for_FY22[[#This Row],[75th]]-AAMC_Raw_Data_for_FY22[[#This Row],[Median]])/25)*35) + AAMC_Raw_Data_for_FY22[[#This Row],[Median]]","v":0},{"$f":"(((AAMC_Raw_Data_for_FY22[[#This Row],[75th]]-AAMC_Raw_Data_for_FY22[[#This Row],[Median]])/25)*40) + AAMC_Raw_Data_for_FY22[[#This Row],[Median]]","v":0}]
[{"$f":"AAMC_Raw_Data_for_FY22[[#This Row],[Source]]&AAMC_Raw_Data_for_FY22[[#This Row],[Type]]&AAMC_Raw_Data_for_FY22[[#This Row],[School Subset]]&AAMC_Raw_Data_for_FY22[[#This Row],[Rank]]&AAMC_Raw_Data_for_FY22[[#This Row],[Degree]]&AAMC_Raw_Data_for_FY22[[#This Row],[Department / Specialty]]&\"L\"","v":"AAMCAcademicPrivateChairMDPsychiatry: OtherL"},"Psychiatry: Other",1,"AAMC","Academic","Private","Chair","MD","2021-2022",null,{"$f":"(((AAMC_Raw_Data_for_FY22[[#This Row],[Median]]-AAMC_Raw_Data_for_FY22[[#This Row],[25th]])/25)*5) + AAMC_Raw_Data_for_FY22[[#This Row],[25th]]","v":0},{"$f":"(((AAMC_Raw_Data_for_FY22[[#This Row],[Median]]-AAMC_Raw_Data_for_FY22[[#This Row],[25th]])/25)*10) + AAMC_Raw_Data_for_FY22[[#This Row],[25th]]","v":0},{"$f":"(((AAMC_Raw_Data_for_FY22[[#This Row],[Median]]-AAMC_Raw_Data_for_FY22[[#This Row],[25th]])/25)*15) + AAMC_Raw_Data_for_FY22[[#This Row],[25th]]","v":0},{"$f":"(((AAMC_Raw_Data_for_FY22[[#This Row],[Median]]-AAMC_Raw_Data_for_FY22[[#This Row],[25th]])/25)*20) + AAMC_Raw_Data_for_FY22[[#This Row],[25th]]","v":0},null,{"$f":"(((AAMC_Raw_Data_for_FY22[[#This Row],[75th]]-AAMC_Raw_Data_for_FY22[[#This Row],[Median]])/25)*5) + AAMC_Raw_Data_for_FY22[[#This Row],[Median]]","v":0},{"$f":"(((AAMC_Raw_Data_for_FY22[[#This Row],[75th]]-AAMC_Raw_Data_for_FY22[[#This Row],[Median]])/25)*10) + AAMC_Raw_Data_for_FY22[[#This Row],[Median]]","v":0},{"$f":"(((AAMC_Raw_Data_for_FY22[[#This Row],[75th]]-AAMC_Raw_Data_for_FY22[[#This Row],[Median]])/25)*15) + AAMC_Raw_Data_for_FY22[[#This Row],[Median]]","v":0},{"$f":"(((AAMC_Raw_Data_for_FY22[[#This Row],[75th]]-AAMC_Raw_Data_for_FY22[[#This Row],[Median]])/25)*20) + AAMC_Raw_Data_for_FY22[[#This Row],[Median]]","v":0},null,{"$f":"(((AAMC_Raw_Data_for_FY22[[#This Row],[75th]]-AAMC_Raw_Data_for_FY22[[#This Row],[Median]])/25)*30) + AAMC_Raw_Data_for_FY22[[#This Row],[Median]]","v":0},{"$f":"(((AAMC_Raw_Data_for_FY22[[#This Row],[75th]]-AAMC_Raw_Data_for_FY22[[#This Row],[Median]])/25)*35) + AAMC_Raw_Data_for_FY22[[#This Row],[Median]]","v":0},{"$f":"(((AAMC_Raw_Data_for_FY22[[#This Row],[75th]]-AAMC_Raw_Data_for_FY22[[#This Row],[Median]])/25)*40) + AAMC_Raw_Data_for_FY22[[#This Row],[Median]]","v":0}]
[{"$f":"AAMC_Raw_Data_for_FY22[[#This Row],[Source]]&AAMC_Raw_Data_for_FY22[[#This Row],[Type]]&AAMC_Raw_Data_for_FY22[[#This Row],[School Subset]]&AAMC_Raw_Data_for_FY22[[#This Row],[Rank]]&AAMC_Raw_Data_for_FY22[[#This Row],[Degree]]&AAMC_Raw_Data_for_FY22[[#This Row],[Department / Specialty]]&\"L\"","v":"AAMCAcademicPrivateInstructorMDRadiology TotalL"},"Radiology Total",5,"AAMC","Academic","Private","Instructor","MD","2021-2022",313903,{"$f":"(((AAMC_Raw_Data_for_FY22[[#This Row],[Median]]-AAMC_Raw_Data_for_FY22[[#This Row],[25th]])/25)*5) + AAMC_Raw_Data_for_FY22[[#This Row],[25th]]","v":328590.59999999998},{"$f":"(((AAMC_Raw_Data_for_FY22[[#This Row],[Median]]-AAMC_Raw_Data_for_FY22[[#This Row],[25th]])/25)*10) + AAMC_Raw_Data_for_FY22[[#This Row],[25th]]","v":343278.2},{"$f":"(((AAMC_Raw_Data_for_FY22[[#This Row],[Median]]-AAMC_Raw_Data_for_FY22[[#This Row],[25th]])/25)*15) + AAMC_Raw_Data_for_FY22[[#This Row],[25th]]","v":357965.8},{"$f":"(((AAMC_Raw_Data_for_FY22[[#This Row],[Median]]-AAMC_Raw_Data_for_FY22[[#This Row],[25th]])/25)*20) + AAMC_Raw_Data_for_FY22[[#This Row],[25th]]","v":372653.4},387341,{"$f":"(((AAMC_Raw_Data_for_FY22[[#This Row],[75th]]-AAMC_Raw_Data_for_FY22[[#This Row],[Median]])/25)*5) + AAMC_Raw_Data_for_FY22[[#This Row],[Median]]","v":413127.2},{"$f":"(((AAMC_Raw_Data_for_FY22[[#This Row],[75th]]-AAMC_Raw_Data_for_FY22[[#This Row],[Median]])/25)*10) + AAMC_Raw_Data_for_FY22[[#This Row],[Median]]","v":438913.4},{"$f":"(((AAMC_Raw_Data_for_FY22[[#This Row],[75th]]-AAMC_Raw_Data_for_FY22[[#This Row],[Median]])/25)*15) + AAMC_Raw_Data_for_FY22[[#This Row],[Median]]","v":464699.6},{"$f":"(((AAMC_Raw_Data_for_FY22[[#This Row],[75th]]-AAMC_Raw_Data_for_FY22[[#This Row],[Median]])/25)*20) + AAMC_Raw_Data_for_FY22[[#This Row],[Median]]","v":490485.8},516272,{"$f":"(((AAMC_Raw_Data_for_FY22[[#This Row],[75th]]-AAMC_Raw_Data_for_FY22[[#This Row],[Median]])/25)*30) + AAMC_Raw_Data_for_FY22[[#This Row],[Median]]","v":542058.19999999995},{"$f":"(((AAMC_Raw_Data_for_FY22[[#This Row],[75th]]-AAMC_Raw_Data_for_FY22[[#This Row],[Median]])/25)*35) + AAMC_Raw_Data_for_FY22[[#This Row],[Median]]","v":567844.4},{"$f":"(((AAMC_Raw_Data_for_FY22[[#This Row],[75th]]-AAMC_Raw_Data_for_FY22[[#This Row],[Median]])/25)*40) + AAMC_Raw_Data_for_FY22[[#This Row],[Median]]","v":593630.6}]
[{"$f":"AAMC_Raw_Data_for_FY22[[#This Row],[Source]]&AAMC_Raw_Data_for_FY22[[#This Row],[Type]]&AAMC_Raw_Data_for_FY22[[#This Row],[School Subset]]&AAMC_Raw_Data_for_FY22[[#This Row],[Rank]]&AAMC_Raw_Data_for_FY22[[#This Row],[Degree]]&AAMC_Raw_Data_for_FY22[[#This Row],[Department / Specialty]]&\"L\"","v":"AAMCAcademicPrivateAssistantMDRadiology TotalL"},"Radiology Total",4,"AAMC","Academic","Private","Assistant","MD","2021-2022",370000,{"$f":"(((AAMC_Raw_Data_for_FY22[[#This Row],[Median]]-AAMC_Raw_Data_for_FY22[[#This Row],[25th]])/25)*5) + AAMC_Raw_Data_for_FY22[[#This Row],[25th]]","v":378500},{"$f":"(((AAMC_Raw_Data_for_FY22[[#This Row],[Median]]-AAMC_Raw_Data_for_FY22[[#This Row],[25th]])/25)*10) + AAMC_Raw_Data_for_FY22[[#This Row],[25th]]","v":387000},{"$f":"(((AAMC_Raw_Data_for_FY22[[#This Row],[Median]]-AAMC_Raw_Data_for_FY22[[#This Row],[25th]])/25)*15) + AAMC_Raw_Data_for_FY22[[#This Row],[25th]]","v":395500},{"$f":"(((AAMC_Raw_Data_for_FY22[[#This Row],[Median]]-AAMC_Raw_Data_for_FY22[[#This Row],[25th]])/25)*20) + AAMC_Raw_Data_for_FY22[[#This Row],[25th]]","v":404000},412500,{"$f":"(((AAMC_Raw_Data_for_FY22[[#This Row],[75th]]-AAMC_Raw_Data_for_FY22[[#This Row],[Median]])/25)*5) + AAMC_Raw_Data_for_FY22[[#This Row],[Median]]","v":424599.4},{"$f":"(((AAMC_Raw_Data_for_FY22[[#This Row],[75th]]-AAMC_Raw_Data_for_FY22[[#This Row],[Median]])/25)*10) + AAMC_Raw_Data_for_FY22[[#This Row],[Median]]","v":436698.8},{"$f":"(((AAMC_Raw_Data_for_FY22[[#This Row],[75th]]-AAMC_Raw_Data_for_FY22[[#This Row],[Median]])/25)*15) + AAMC_Raw_Data_for_FY22[[#This Row],[Median]]","v":448798.2},{"$f":"(((AAMC_Raw_Data_for_FY22[[#This Row],[75th]]-AAMC_Raw_Data_for_FY22[[#This Row],[Median]])/25)*20) + AAMC_Raw_Data_for_FY22[[#This Row],[Median]]","v":460897.6},472997,{"$f":"(((AAMC_Raw_Data_for_FY22[[#This Row],[75th]]-AAMC_Raw_Data_for_FY22[[#This Row],[Median]])/25)*30) + AAMC_Raw_Data_for_FY22[[#This Row],[Median]]","v":485096.4},{"$f":"(((AAMC_Raw_Data_for_FY22[[#This Row],[75th]]-AAMC_Raw_Data_for_FY22[[#This Row],[Median]])/25)*35) + AAMC_Raw_Data_for_FY22[[#This Row],[Median]]","v":497195.8},{"$f":"(((AAMC_Raw_Data_for_FY22[[#This Row],[75th]]-AAMC_Raw_Data_for_FY22[[#This Row],[Median]])/25)*40) + AAMC_Raw_Data_for_FY22[[#This Row],[Median]]","v":509295.2}]
[{"$f":"AAMC_Raw_Data_for_FY22[[#This Row],[Source]]&AAMC_Raw_Data_for_FY22[[#This Row],[Type]]&AAMC_Raw_Data_for_FY22[[#This Row],[School Subset]]&AAMC_Raw_Data_for_FY22[[#This Row],[Rank]]&AAMC_Raw_Data_for_FY22[[#This Row],[Degree]]&AAMC_Raw_Data_for_FY22[[#This Row],[Department / Specialty]]&\"L\"","v":"AAMCAcademicPrivateAssociateMDRadiology TotalL"},"Radiology Total",3,"AAMC","Academic","Private","Associate","MD","2021-2022",420788,{"$f":"(((AAMC_Raw_Data_for_FY22[[#This Row],[Median]]-AAMC_Raw_Data_for_FY22[[#This Row],[25th]])/25)*5) + AAMC_Raw_Data_for_FY22[[#This Row],[25th]]","v":431002.4},{"$f":"(((AAMC_Raw_Data_for_FY22[[#This Row],[Median]]-AAMC_Raw_Data_for_FY22[[#This Row],[25th]])/25)*10) + AAMC_Raw_Data_for_FY22[[#This Row],[25th]]","v":441216.8},{"$f":"(((AAMC_Raw_Data_for_FY22[[#This Row],[Median]]-AAMC_Raw_Data_for_FY22[[#This Row],[25th]])/25)*15) + AAMC_Raw_Data_for_FY22[[#This Row],[25th]]","v":451431.2},{"$f":"(((AAMC_Raw_Data_for_FY22[[#This Row],[Median]]-AAMC_Raw_Data_for_FY22[[#This Row],[25th]])/25)*20) + AAMC_Raw_Data_for_FY22[[#This Row],[25th]]","v":461645.6},471860,{"$f":"(((AAMC_Raw_Data_for_FY22[[#This Row],[75th]]-AAMC_Raw_Data_for_FY22[[#This Row],[Median]])/25)*5) + AAMC_Raw_Data_for_FY22[[#This Row],[Median]]","v":485754.2},{"$f":"(((AAMC_Raw_Data_for_FY22[[#This Row],[75th]]-AAMC_Raw_Data_for_FY22[[#This Row],[Median]])/25)*10) + AAMC_Raw_Data_for_FY22[[#This Row],[Median]]","v":499648.4},{"$f":"(((AAMC_Raw_Data_for_FY22[[#This Row],[75th]]-AAMC_Raw_Data_for_FY22[[#This Row],[Median]])/25)*15) + AAMC_Raw_Data_for_FY22[[#This Row],[Median]]","v":513542.6},{"$f":"(((AAMC_Raw_Data_for_FY22[[#This Row],[75th]]-AAMC_Raw_Data_for_FY22[[#This Row],[Median]])/25)*20) + AAMC_Raw_Data_for_FY22[[#This Row],[Median]]","v":527436.80000000005},541331,{"$f":"(((AAMC_Raw_Data_for_FY22[[#This Row],[75th]]-AAMC_Raw_Data_for_FY22[[#This Row],[Median]])/25)*30) + AAMC_Raw_Data_for_FY22[[#This Row],[Median]]","v":555225.19999999995},{"$f":"(((AAMC_Raw_Data_for_FY22[[#This Row],[75th]]-AAMC_Raw_Data_for_FY22[[#This Row],[Median]])/25)*35) + AAMC_Raw_Data_for_FY22[[#This Row],[Median]]","v":569119.4},{"$f":"(((AAMC_Raw_Data_for_FY22[[#This Row],[75th]]-AAMC_Raw_Data_for_FY22[[#This Row],[Median]])/25)*40) + AAMC_Raw_Data_for_FY22[[#This Row],[Median]]","v":583013.6}]
[{"$f":"AAMC_Raw_Data_for_FY22[[#This Row],[Source]]&AAMC_Raw_Data_for_FY22[[#This Row],[Type]]&AAMC_Raw_Data_for_FY22[[#This Row],[School Subset]]&AAMC_Raw_Data_for_FY22[[#This Row],[Rank]]&AAMC_Raw_Data_for_FY22[[#This Row],[Degree]]&AAMC_Raw_Data_for_FY22[[#This Row],[Department / Specialty]]&\"L\"","v":"AAMCAcademicPrivateProfessorMDRadiology TotalL"},"Radiology Total",2,"AAMC","Academic","Private","Professor","MD","2021-2022",436683,{"$f":"(((AAMC_Raw_Data_for_FY22[[#This Row],[Median]]-AAMC_Raw_Data_for_FY22[[#This Row],[25th]])/25)*5) + AAMC_Raw_Data_for_FY22[[#This Row],[25th]]","v":451166.6},{"$f":"(((AAMC_Raw_Data_for_FY22[[#This Row],[Median]]-AAMC_Raw_Data_for_FY22[[#This Row],[25th]])/25)*10) + AAMC_Raw_Data_for_FY22[[#This Row],[25th]]","v":465650.2},{"$f":"(((AAMC_Raw_Data_for_FY22[[#This Row],[Median]]-AAMC_Raw_Data_for_FY22[[#This Row],[25th]])/25)*15) + AAMC_Raw_Data_for_FY22[[#This Row],[25th]]","v":480133.8},{"$f":"(((AAMC_Raw_Data_for_FY22[[#This Row],[Median]]-AAMC_Raw_Data_for_FY22[[#This Row],[25th]])/25)*20) + AAMC_Raw_Data_for_FY22[[#This Row],[25th]]","v":494617.4},509101,{"$f":"(((AAMC_Raw_Data_for_FY22[[#This Row],[75th]]-AAMC_Raw_Data_for_FY22[[#This Row],[Median]])/25)*5) + AAMC_Raw_Data_for_FY22[[#This Row],[Median]]","v":523111.4},{"$f":"(((AAMC_Raw_Data_for_FY22[[#This Row],[75th]]-AAMC_Raw_Data_for_FY22[[#This Row],[Median]])/25)*10) + AAMC_Raw_Data_for_FY22[[#This Row],[Median]]","v":537121.80000000005},{"$f":"(((AAMC_Raw_Data_for_FY22[[#This Row],[75th]]-AAMC_Raw_Data_for_FY22[[#This Row],[Median]])/25)*15) + AAMC_Raw_Data_for_FY22[[#This Row],[Median]]","v":551132.19999999995},{"$f":"(((AAMC_Raw_Data_for_FY22[[#This Row],[75th]]-AAMC_Raw_Data_for_FY22[[#This Row],[Median]])/25)*20) + AAMC_Raw_Data_for_FY22[[#This Row],[Median]]","v":565142.6},579153,{"$f":"(((AAMC_Raw_Data_for_FY22[[#This Row],[75th]]-AAMC_Raw_Data_for_FY22[[#This Row],[Median]])/25)*30) + AAMC_Raw_Data_for_FY22[[#This Row],[Median]]","v":593163.4},{"$f":"(((AAMC_Raw_Data_for_FY22[[#This Row],[75th]]-AAMC_Raw_Data_for_FY22[[#This Row],[Median]])/25)*35) + AAMC_Raw_Data_for_FY22[[#This Row],[Median]]","v":607173.80000000005},{"$f":"(((AAMC_Raw_Data_for_FY22[[#This Row],[75th]]-AAMC_Raw_Data_for_FY22[[#This Row],[Median]])/25)*40) + AAMC_Raw_Data_for_FY22[[#This Row],[Median]]","v":621184.19999999995}]
[{"$f":"AAMC_Raw_Data_for_FY22[[#This Row],[Source]]&AAMC_Raw_Data_for_FY22[[#This Row],[Type]]&AAMC_Raw_Data_for_FY22[[#This Row],[School Subset]]&AAMC_Raw_Data_for_FY22[[#This Row],[Rank]]&AAMC_Raw_Data_for_FY22[[#This Row],[Degree]]&AAMC_Raw_Data_for_FY22[[#This Row],[Department / Specialty]]&\"L\"","v":"AAMCAcademicPrivateChiefMDRadiology TotalL"},"Radiology Total",6,"AAMC","Academic","Private","Chief","MD","2021-2022",453198,{"$f":"(((AAMC_Raw_Data_for_FY22[[#This Row],[Median]]-AAMC_Raw_Data_for_FY22[[#This Row],[25th]])/25)*5) + AAMC_Raw_Data_for_FY22[[#This Row],[25th]]","v":464267.6},{"$f":"(((AAMC_Raw_Data_for_FY22[[#This Row],[Median]]-AAMC_Raw_Data_for_FY22[[#This Row],[25th]])/25)*10) + AAMC_Raw_Data_for_FY22[[#This Row],[25th]]","v":475337.2},{"$f":"(((AAMC_Raw_Data_for_FY22[[#This Row],[Median]]-AAMC_Raw_Data_for_FY22[[#This Row],[25th]])/25)*15) + AAMC_Raw_Data_for_FY22[[#This Row],[25th]]","v":486406.8},{"$f":"(((AAMC_Raw_Data_for_FY22[[#This Row],[Median]]-AAMC_Raw_Data_for_FY22[[#This Row],[25th]])/25)*20) + AAMC_Raw_Data_for_FY22[[#This Row],[25th]]","v":497476.4},508546,{"$f":"(((AAMC_Raw_Data_for_FY22[[#This Row],[75th]]-AAMC_Raw_Data_for_FY22[[#This Row],[Median]])/25)*5) + AAMC_Raw_Data_for_FY22[[#This Row],[Median]]","v":528888.19999999995},{"$f":"(((AAMC_Raw_Data_for_FY22[[#This Row],[75th]]-AAMC_Raw_Data_for_FY22[[#This Row],[Median]])/25)*10) + AAMC_Raw_Data_for_FY22[[#This Row],[Median]]","v":549230.4},{"$f":"(((AAMC_Raw_Data_for_FY22[[#This Row],[75th]]-AAMC_Raw_Data_for_FY22[[#This Row],[Median]])/25)*15) + AAMC_Raw_Data_for_FY22[[#This Row],[Median]]","v":569572.6},{"$f":"(((AAMC_Raw_Data_for_FY22[[#This Row],[75th]]-AAMC_Raw_Data_for_FY22[[#This Row],[Median]])/25)*20) + AAMC_Raw_Data_for_FY22[[#This Row],[Median]]","v":589914.80000000005},610257,{"$f":"(((AAMC_Raw_Data_for_FY22[[#This Row],[75th]]-AAMC_Raw_Data_for_FY22[[#This Row],[Median]])/25)*30) + AAMC_Raw_Data_for_FY22[[#This Row],[Median]]","v":630599.19999999995},{"$f":"(((AAMC_Raw_Data_for_FY22[[#This Row],[75th]]-AAMC_Raw_Data_for_FY22[[#This Row],[Median]])/25)*35) + AAMC_Raw_Data_for_FY22[[#This Row],[Median]]","v":650941.4},{"$f":"(((AAMC_Raw_Data_for_FY22[[#This Row],[75th]]-AAMC_Raw_Data_for_FY22[[#This Row],[Median]])/25)*40) + AAMC_Raw_Data_for_FY22[[#This Row],[Median]]","v":671283.6}]
[{"$f":"AAMC_Raw_Data_for_FY22[[#This Row],[Source]]&AAMC_Raw_Data_for_FY22[[#This Row],[Type]]&AAMC_Raw_Data_for_FY22[[#This Row],[School Subset]]&AAMC_Raw_Data_for_FY22[[#This Row],[Rank]]&AAMC_Raw_Data_for_FY22[[#This Row],[Degree]]&AAMC_Raw_Data_for_FY22[[#This Row],[Department / Specialty]]&\"L\"","v":"AAMCAcademicPrivateChairMDRadiology TotalL"},"Radiology Total",1,"AAMC","Academic","Private","Chair","MD","2021-2022",792250,{"$f":"(((AAMC_Raw_Data_for_FY22[[#This Row],[Median]]-AAMC_Raw_Data_for_FY22[[#This Row],[25th]])/25)*5) + AAMC_Raw_Data_for_FY22[[#This Row],[25th]]","v":805073.6},{"$f":"(((AAMC_Raw_Data_for_FY22[[#This Row],[Median]]-AAMC_Raw_Data_for_FY22[[#This Row],[25th]])/25)*10) + AAMC_Raw_Data_for_FY22[[#This Row],[25th]]","v":817897.2},{"$f":"(((AAMC_Raw_Data_for_FY22[[#This Row],[Median]]-AAMC_Raw_Data_for_FY22[[#This Row],[25th]])/25)*15) + AAMC_Raw_Data_for_FY22[[#This Row],[25th]]","v":830720.8},{"$f":"(((AAMC_Raw_Data_for_FY22[[#This Row],[Median]]-AAMC_Raw_Data_for_FY22[[#This Row],[25th]])/25)*20) + AAMC_Raw_Data_for_FY22[[#This Row],[25th]]","v":843544.4},856368,{"$f":"(((AAMC_Raw_Data_for_FY22[[#This Row],[75th]]-AAMC_Raw_Data_for_FY22[[#This Row],[Median]])/25)*5) + AAMC_Raw_Data_for_FY22[[#This Row],[Median]]","v":889649.4},{"$f":"(((AAMC_Raw_Data_for_FY22[[#This Row],[75th]]-AAMC_Raw_Data_for_FY22[[#This Row],[Median]])/25)*10) + AAMC_Raw_Data_for_FY22[[#This Row],[Median]]","v":922930.8},{"$f":"(((AAMC_Raw_Data_for_FY22[[#This Row],[75th]]-AAMC_Raw_Data_for_FY22[[#This Row],[Median]])/25)*15) + AAMC_Raw_Data_for_FY22[[#This Row],[Median]]","v":956212.2},{"$f":"(((AAMC_Raw_Data_for_FY22[[#This Row],[75th]]-AAMC_Raw_Data_for_FY22[[#This Row],[Median]])/25)*20) + AAMC_Raw_Data_for_FY22[[#This Row],[Median]]","v":989493.6},1022775,{"$f":"(((AAMC_Raw_Data_for_FY22[[#This Row],[75th]]-AAMC_Raw_Data_for_FY22[[#This Row],[Median]])/25)*30) + AAMC_Raw_Data_for_FY22[[#This Row],[Median]]","v":1056056.3999999999},{"$f":"(((AAMC_Raw_Data_for_FY22[[#This Row],[75th]]-AAMC_Raw_Data_for_FY22[[#This Row],[Median]])/25)*35) + AAMC_Raw_Data_for_FY22[[#This Row],[Median]]","v":1089337.8},{"$f":"(((AAMC_Raw_Data_for_FY22[[#This Row],[75th]]-AAMC_Raw_Data_for_FY22[[#This Row],[Median]])/25)*40) + AAMC_Raw_Data_for_FY22[[#This Row],[Median]]","v":1122619.2}]
[{"$f":"AAMC_Raw_Data_for_FY22[[#This Row],[Source]]&AAMC_Raw_Data_for_FY22[[#This Row],[Type]]&AAMC_Raw_Data_for_FY22[[#This Row],[School Subset]]&AAMC_Raw_Data_for_FY22[[#This Row],[Rank]]&AAMC_Raw_Data_for_FY22[[#This Row],[Degree]]&AAMC_Raw_Data_for_FY22[[#This Row],[Department / Specialty]]&\"L\"","v":"AAMCAcademicPrivateInstructorMDDiagnostic Radiology TotalL"},"Diagnostic Radiology Total",5,"AAMC","Academic","Private","Instructor","MD","2021-2022",328447,{"$f":"(((AAMC_Raw_Data_for_FY22[[#This Row],[Median]]-AAMC_Raw_Data_for_FY22[[#This Row],[25th]])/25)*5) + AAMC_Raw_Data_for_FY22[[#This Row],[25th]]","v":343069},{"$f":"(((AAMC_Raw_Data_for_FY22[[#This Row],[Median]]-AAMC_Raw_Data_for_FY22[[#This Row],[25th]])/25)*10) + AAMC_Raw_Data_for_FY22[[#This Row],[25th]]","v":357691},{"$f":"(((AAMC_Raw_Data_for_FY22[[#This Row],[Median]]-AAMC_Raw_Data_for_FY22[[#This Row],[25th]])/25)*15) + AAMC_Raw_Data_for_FY22[[#This Row],[25th]]","v":372313},{"$f":"(((AAMC_Raw_Data_for_FY22[[#This Row],[Median]]-AAMC_Raw_Data_for_FY22[[#This Row],[25th]])/25)*20) + AAMC_Raw_Data_for_FY22[[#This Row],[25th]]","v":386935},401557,{"$f":"(((AAMC_Raw_Data_for_FY22[[#This Row],[75th]]-AAMC_Raw_Data_for_FY22[[#This Row],[Median]])/25)*5) + AAMC_Raw_Data_for_FY22[[#This Row],[Median]]","v":426123.4},{"$f":"(((AAMC_Raw_Data_for_FY22[[#This Row],[75th]]-AAMC_Raw_Data_for_FY22[[#This Row],[Median]])/25)*10) + AAMC_Raw_Data_for_FY22[[#This Row],[Median]]","v":450689.8},{"$f":"(((AAMC_Raw_Data_for_FY22[[#This Row],[75th]]-AAMC_Raw_Data_for_FY22[[#This Row],[Median]])/25)*15) + AAMC_Raw_Data_for_FY22[[#This Row],[Median]]","v":475256.2},{"$f":"(((AAMC_Raw_Data_for_FY22[[#This Row],[75th]]-AAMC_Raw_Data_for_FY22[[#This Row],[Median]])/25)*20) + AAMC_Raw_Data_for_FY22[[#This Row],[Median]]","v":499822.6},524389,{"$f":"(((AAMC_Raw_Data_for_FY22[[#This Row],[75th]]-AAMC_Raw_Data_for_FY22[[#This Row],[Median]])/25)*30) + AAMC_Raw_Data_for_FY22[[#This Row],[Median]]","v":548955.4},{"$f":"(((AAMC_Raw_Data_for_FY22[[#This Row],[75th]]-AAMC_Raw_Data_for_FY22[[#This Row],[Median]])/25)*35) + AAMC_Raw_Data_for_FY22[[#This Row],[Median]]","v":573521.80000000005},{"$f":"(((AAMC_Raw_Data_for_FY22[[#This Row],[75th]]-AAMC_Raw_Data_for_FY22[[#This Row],[Median]])/25)*40) + AAMC_Raw_Data_for_FY22[[#This Row],[Median]]","v":598088.19999999995}]
[{"$f":"AAMC_Raw_Data_for_FY22[[#This Row],[Source]]&AAMC_Raw_Data_for_FY22[[#This Row],[Type]]&AAMC_Raw_Data_for_FY22[[#This Row],[School Subset]]&AAMC_Raw_Data_for_FY22[[#This Row],[Rank]]&AAMC_Raw_Data_for_FY22[[#This Row],[Degree]]&AAMC_Raw_Data_for_FY22[[#This Row],[Department / Specialty]]&\"L\"","v":"AAMCAcademicPrivateAssistantMDDiagnostic Radiology TotalL"},"Diagnostic Radiology Total",4,"AAMC","Academic","Private","Assistant","MD","2021-2022",374276,{"$f":"(((AAMC_Raw_Data_for_FY22[[#This Row],[Median]]-AAMC_Raw_Data_for_FY22[[#This Row],[25th]])/25)*5) + AAMC_Raw_Data_for_FY22[[#This Row],[25th]]","v":382940.6},{"$f":"(((AAMC_Raw_Data_for_FY22[[#This Row],[Median]]-AAMC_Raw_Data_for_FY22[[#This Row],[25th]])/25)*10) + AAMC_Raw_Data_for_FY22[[#This Row],[25th]]","v":391605.2},{"$f":"(((AAMC_Raw_Data_for_FY22[[#This Row],[Median]]-AAMC_Raw_Data_for_FY22[[#This Row],[25th]])/25)*15) + AAMC_Raw_Data_for_FY22[[#This Row],[25th]]","v":400269.8},{"$f":"(((AAMC_Raw_Data_for_FY22[[#This Row],[Median]]-AAMC_Raw_Data_for_FY22[[#This Row],[25th]])/25)*20) + AAMC_Raw_Data_for_FY22[[#This Row],[25th]]","v":408934.40000000002},417599,{"$f":"(((AAMC_Raw_Data_for_FY22[[#This Row],[75th]]-AAMC_Raw_Data_for_FY22[[#This Row],[Median]])/25)*5) + AAMC_Raw_Data_for_FY22[[#This Row],[Median]]","v":429653.8},{"$f":"(((AAMC_Raw_Data_for_FY22[[#This Row],[75th]]-AAMC_Raw_Data_for_FY22[[#This Row],[Median]])/25)*10) + AAMC_Raw_Data_for_FY22[[#This Row],[Median]]","v":441708.6},{"$f":"(((AAMC_Raw_Data_for_FY22[[#This Row],[75th]]-AAMC_Raw_Data_for_FY22[[#This Row],[Median]])/25)*15) + AAMC_Raw_Data_for_FY22[[#This Row],[Median]]","v":453763.4},{"$f":"(((AAMC_Raw_Data_for_FY22[[#This Row],[75th]]-AAMC_Raw_Data_for_FY22[[#This Row],[Median]])/25)*20) + AAMC_Raw_Data_for_FY22[[#This Row],[Median]]","v":465818.2},477873,{"$f":"(((AAMC_Raw_Data_for_FY22[[#This Row],[75th]]-AAMC_Raw_Data_for_FY22[[#This Row],[Median]])/25)*30) + AAMC_Raw_Data_for_FY22[[#This Row],[Median]]","v":489927.8},{"$f":"(((AAMC_Raw_Data_for_FY22[[#This Row],[75th]]-AAMC_Raw_Data_for_FY22[[#This Row],[Median]])/25)*35) + AAMC_Raw_Data_for_FY22[[#This Row],[Median]]","v":501982.6},{"$f":"(((AAMC_Raw_Data_for_FY22[[#This Row],[75th]]-AAMC_Raw_Data_for_FY22[[#This Row],[Median]])/25)*40) + AAMC_Raw_Data_for_FY22[[#This Row],[Median]]","v":514037.4}]
[{"$f":"AAMC_Raw_Data_for_FY22[[#This Row],[Source]]&AAMC_Raw_Data_for_FY22[[#This Row],[Type]]&AAMC_Raw_Data_for_FY22[[#This Row],[School Subset]]&AAMC_Raw_Data_for_FY22[[#This Row],[Rank]]&AAMC_Raw_Data_for_FY22[[#This Row],[Degree]]&AAMC_Raw_Data_for_FY22[[#This Row],[Department / Specialty]]&\"L\"","v":"AAMCAcademicPrivateAssociateMDDiagnostic Radiology TotalL"},"Diagnostic Radiology Total",3,"AAMC","Academic","Private","Associate","MD","2021-2022",417884,{"$f":"(((AAMC_Raw_Data_for_FY22[[#This Row],[Median]]-AAMC_Raw_Data_for_FY22[[#This Row],[25th]])/25)*5) + AAMC_Raw_Data_for_FY22[[#This Row],[25th]]","v":427038.4},{"$f":"(((AAMC_Raw_Data_for_FY22[[#This Row],[Median]]-AAMC_Raw_Data_for_FY22[[#This Row],[25th]])/25)*10) + AAMC_Raw_Data_for_FY22[[#This Row],[25th]]","v":436192.8},{"$f":"(((AAMC_Raw_Data_for_FY22[[#This Row],[Median]]-AAMC_Raw_Data_for_FY22[[#This Row],[25th]])/25)*15) + AAMC_Raw_Data_for_FY22[[#This Row],[25th]]","v":445347.2},{"$f":"(((AAMC_Raw_Data_for_FY22[[#This Row],[Median]]-AAMC_Raw_Data_for_FY22[[#This Row],[25th]])/25)*20) + AAMC_Raw_Data_for_FY22[[#This Row],[25th]]","v":454501.6},463656,{"$f":"(((AAMC_Raw_Data_for_FY22[[#This Row],[75th]]-AAMC_Raw_Data_for_FY22[[#This Row],[Median]])/25)*5) + AAMC_Raw_Data_for_FY22[[#This Row],[Median]]","v":475999.6},{"$f":"(((AAMC_Raw_Data_for_FY22[[#This Row],[75th]]-AAMC_Raw_Data_for_FY22[[#This Row],[Median]])/25)*10) + AAMC_Raw_Data_for_FY22[[#This Row],[Median]]","v":488343.2},{"$f":"(((AAMC_Raw_Data_for_FY22[[#This Row],[75th]]-AAMC_Raw_Data_for_FY22[[#This Row],[Median]])/25)*15) + AAMC_Raw_Data_for_FY22[[#This Row],[Median]]","v":500686.8},{"$f":"(((AAMC_Raw_Data_for_FY22[[#This Row],[75th]]-AAMC_Raw_Data_for_FY22[[#This Row],[Median]])/25)*20) + AAMC_Raw_Data_for_FY22[[#This Row],[Median]]","v":513030.40000000002},525374,{"$f":"(((AAMC_Raw_Data_for_FY22[[#This Row],[75th]]-AAMC_Raw_Data_for_FY22[[#This Row],[Median]])/25)*30) + AAMC_Raw_Data_for_FY22[[#This Row],[Median]]","v":537717.6},{"$f":"(((AAMC_Raw_Data_for_FY22[[#This Row],[75th]]-AAMC_Raw_Data_for_FY22[[#This Row],[Median]])/25)*35) + AAMC_Raw_Data_for_FY22[[#This Row],[Median]]","v":550061.19999999995},{"$f":"(((AAMC_Raw_Data_for_FY22[[#This Row],[75th]]-AAMC_Raw_Data_for_FY22[[#This Row],[Median]])/25)*40) + AAMC_Raw_Data_for_FY22[[#This Row],[Median]]","v":562404.80000000005}]
[{"$f":"AAMC_Raw_Data_for_FY22[[#This Row],[Source]]&AAMC_Raw_Data_for_FY22[[#This Row],[Type]]&AAMC_Raw_Data_for_FY22[[#This Row],[School Subset]]&AAMC_Raw_Data_for_FY22[[#This Row],[Rank]]&AAMC_Raw_Data_for_FY22[[#This Row],[Degree]]&AAMC_Raw_Data_for_FY22[[#This Row],[Department / Specialty]]&\"L\"","v":"AAMCAcademicPrivateProfessorMDDiagnostic Radiology TotalL"},"Diagnostic Radiology Total",2,"AAMC","Academic","Private","Professor","MD","2021-2022",443824,{"$f":"(((AAMC_Raw_Data_for_FY22[[#This Row],[Median]]-AAMC_Raw_Data_for_FY22[[#This Row],[25th]])/25)*5) + AAMC_Raw_Data_for_FY22[[#This Row],[25th]]","v":456376.4},{"$f":"(((AAMC_Raw_Data_for_FY22[[#This Row],[Median]]-AAMC_Raw_Data_for_FY22[[#This Row],[25th]])/25)*10) + AAMC_Raw_Data_for_FY22[[#This Row],[25th]]","v":468928.8},{"$f":"(((AAMC_Raw_Data_for_FY22[[#This Row],[Median]]-AAMC_Raw_Data_for_FY22[[#This Row],[25th]])/25)*15) + AAMC_Raw_Data_for_FY22[[#This Row],[25th]]","v":481481.2},{"$f":"(((AAMC_Raw_Data_for_FY22[[#This Row],[Median]]-AAMC_Raw_Data_for_FY22[[#This Row],[25th]])/25)*20) + AAMC_Raw_Data_for_FY22[[#This Row],[25th]]","v":494033.6},506586,{"$f":"(((AAMC_Raw_Data_for_FY22[[#This Row],[75th]]-AAMC_Raw_Data_for_FY22[[#This Row],[Median]])/25)*5) + AAMC_Raw_Data_for_FY22[[#This Row],[Median]]","v":519330.4},{"$f":"(((AAMC_Raw_Data_for_FY22[[#This Row],[75th]]-AAMC_Raw_Data_for_FY22[[#This Row],[Median]])/25)*10) + AAMC_Raw_Data_for_FY22[[#This Row],[Median]]","v":532074.80000000005},{"$f":"(((AAMC_Raw_Data_for_FY22[[#This Row],[75th]]-AAMC_Raw_Data_for_FY22[[#This Row],[Median]])/25)*15) + AAMC_Raw_Data_for_FY22[[#This Row],[Median]]","v":544819.19999999995},{"$f":"(((AAMC_Raw_Data_for_FY22[[#This Row],[75th]]-AAMC_Raw_Data_for_FY22[[#This Row],[Median]])/25)*20) + AAMC_Raw_Data_for_FY22[[#This Row],[Median]]","v":557563.6},570308,{"$f":"(((AAMC_Raw_Data_for_FY22[[#This Row],[75th]]-AAMC_Raw_Data_for_FY22[[#This Row],[Median]])/25)*30) + AAMC_Raw_Data_for_FY22[[#This Row],[Median]]","v":583052.4},{"$f":"(((AAMC_Raw_Data_for_FY22[[#This Row],[75th]]-AAMC_Raw_Data_for_FY22[[#This Row],[Median]])/25)*35) + AAMC_Raw_Data_for_FY22[[#This Row],[Median]]","v":595796.80000000005},{"$f":"(((AAMC_Raw_Data_for_FY22[[#This Row],[75th]]-AAMC_Raw_Data_for_FY22[[#This Row],[Median]])/25)*40) + AAMC_Raw_Data_for_FY22[[#This Row],[Median]]","v":608541.19999999995}]
[{"$f":"AAMC_Raw_Data_for_FY22[[#This Row],[Source]]&AAMC_Raw_Data_for_FY22[[#This Row],[Type]]&AAMC_Raw_Data_for_FY22[[#This Row],[School Subset]]&AAMC_Raw_Data_for_FY22[[#This Row],[Rank]]&AAMC_Raw_Data_for_FY22[[#This Row],[Degree]]&AAMC_Raw_Data_for_FY22[[#This Row],[Department / Specialty]]&\"L\"","v":"AAMCAcademicPrivateChiefMDDiagnostic Radiology TotalL"},"Diagnostic Radiology Total",6,"AAMC","Academic","Private","Chief","MD","2021-2022",447814,{"$f":"(((AAMC_Raw_Data_for_FY22[[#This Row],[Median]]-AAMC_Raw_Data_for_FY22[[#This Row],[25th]])/25)*5) + AAMC_Raw_Data_for_FY22[[#This Row],[25th]]","v":457233.2},{"$f":"(((AAMC_Raw_Data_for_FY22[[#This Row],[Median]]-AAMC_Raw_Data_for_FY22[[#This Row],[25th]])/25)*10) + AAMC_Raw_Data_for_FY22[[#This Row],[25th]]","v":466652.4},{"$f":"(((AAMC_Raw_Data_for_FY22[[#This Row],[Median]]-AAMC_Raw_Data_for_FY22[[#This Row],[25th]])/25)*15) + AAMC_Raw_Data_for_FY22[[#This Row],[25th]]","v":476071.6},{"$f":"(((AAMC_Raw_Data_for_FY22[[#This Row],[Median]]-AAMC_Raw_Data_for_FY22[[#This Row],[25th]])/25)*20) + AAMC_Raw_Data_for_FY22[[#This Row],[25th]]","v":485490.8},494910,{"$f":"(((AAMC_Raw_Data_for_FY22[[#This Row],[75th]]-AAMC_Raw_Data_for_FY22[[#This Row],[Median]])/25)*5) + AAMC_Raw_Data_for_FY22[[#This Row],[Median]]","v":515720.6},{"$f":"(((AAMC_Raw_Data_for_FY22[[#This Row],[75th]]-AAMC_Raw_Data_for_FY22[[#This Row],[Median]])/25)*10) + AAMC_Raw_Data_for_FY22[[#This Row],[Median]]","v":536531.19999999995},{"$f":"(((AAMC_Raw_Data_for_FY22[[#This Row],[75th]]-AAMC_Raw_Data_for_FY22[[#This Row],[Median]])/25)*15) + AAMC_Raw_Data_for_FY22[[#This Row],[Median]]","v":557341.80000000005},{"$f":"(((AAMC_Raw_Data_for_FY22[[#This Row],[75th]]-AAMC_Raw_Data_for_FY22[[#This Row],[Median]])/25)*20) + AAMC_Raw_Data_for_FY22[[#This Row],[Median]]","v":578152.4},598963,{"$f":"(((AAMC_Raw_Data_for_FY22[[#This Row],[75th]]-AAMC_Raw_Data_for_FY22[[#This Row],[Median]])/25)*30) + AAMC_Raw_Data_for_FY22[[#This Row],[Median]]","v":619773.6},{"$f":"(((AAMC_Raw_Data_for_FY22[[#This Row],[75th]]-AAMC_Raw_Data_for_FY22[[#This Row],[Median]])/25)*35) + AAMC_Raw_Data_for_FY22[[#This Row],[Median]]","v":640584.19999999995},{"$f":"(((AAMC_Raw_Data_for_FY22[[#This Row],[75th]]-AAMC_Raw_Data_for_FY22[[#This Row],[Median]])/25)*40) + AAMC_Raw_Data_for_FY22[[#This Row],[Median]]","v":661394.80000000005}]
[{"$f":"AAMC_Raw_Data_for_FY22[[#This Row],[Source]]&AAMC_Raw_Data_for_FY22[[#This Row],[Type]]&AAMC_Raw_Data_for_FY22[[#This Row],[School Subset]]&AAMC_Raw_Data_for_FY22[[#This Row],[Rank]]&AAMC_Raw_Data_for_FY22[[#This Row],[Degree]]&AAMC_Raw_Data_for_FY22[[#This Row],[Department / Specialty]]&\"L\"","v":"AAMCAcademicPrivateChairMDDiagnostic Radiology TotalL"},"Diagnostic Radiology Total",1,"AAMC","Academic","Private","Chair","MD","2021-2022",724591,{"$f":"(((AAMC_Raw_Data_for_FY22[[#This Row],[Median]]-AAMC_Raw_Data_for_FY22[[#This Row],[25th]])/25)*5) + AAMC_Raw_Data_for_FY22[[#This Row],[25th]]","v":746343},{"$f":"(((AAMC_Raw_Data_for_FY22[[#This Row],[Median]]-AAMC_Raw_Data_for_FY22[[#This Row],[25th]])/25)*10) + AAMC_Raw_Data_for_FY22[[#This Row],[25th]]","v":768095},{"$f":"(((AAMC_Raw_Data_for_FY22[[#This Row],[Median]]-AAMC_Raw_Data_for_FY22[[#This Row],[25th]])/25)*15) + AAMC_Raw_Data_for_FY22[[#This Row],[25th]]","v":789847},{"$f":"(((AAMC_Raw_Data_for_FY22[[#This Row],[Median]]-AAMC_Raw_Data_for_FY22[[#This Row],[25th]])/25)*20) + AAMC_Raw_Data_for_FY22[[#This Row],[25th]]","v":811599},833351,{"$f":"(((AAMC_Raw_Data_for_FY22[[#This Row],[75th]]-AAMC_Raw_Data_for_FY22[[#This Row],[Median]])/25)*5) + AAMC_Raw_Data_for_FY22[[#This Row],[Median]]","v":867253.4},{"$f":"(((AAMC_Raw_Data_for_FY22[[#This Row],[75th]]-AAMC_Raw_Data_for_FY22[[#This Row],[Median]])/25)*10) + AAMC_Raw_Data_for_FY22[[#This Row],[Median]]","v":901155.8},{"$f":"(((AAMC_Raw_Data_for_FY22[[#This Row],[75th]]-AAMC_Raw_Data_for_FY22[[#This Row],[Median]])/25)*15) + AAMC_Raw_Data_for_FY22[[#This Row],[Median]]","v":935058.2},{"$f":"(((AAMC_Raw_Data_for_FY22[[#This Row],[75th]]-AAMC_Raw_Data_for_FY22[[#This Row],[Median]])/25)*20) + AAMC_Raw_Data_for_FY22[[#This Row],[Median]]","v":968960.6},1002863,{"$f":"(((AAMC_Raw_Data_for_FY22[[#This Row],[75th]]-AAMC_Raw_Data_for_FY22[[#This Row],[Median]])/25)*30) + AAMC_Raw_Data_for_FY22[[#This Row],[Median]]","v":1036765.4},{"$f":"(((AAMC_Raw_Data_for_FY22[[#This Row],[75th]]-AAMC_Raw_Data_for_FY22[[#This Row],[Median]])/25)*35) + AAMC_Raw_Data_for_FY22[[#This Row],[Median]]","v":1070667.8},{"$f":"(((AAMC_Raw_Data_for_FY22[[#This Row],[75th]]-AAMC_Raw_Data_for_FY22[[#This Row],[Median]])/25)*40) + AAMC_Raw_Data_for_FY22[[#This Row],[Median]]","v":1104570.2}]
[{"$f":"AAMC_Raw_Data_for_FY22[[#This Row],[Source]]&AAMC_Raw_Data_for_FY22[[#This Row],[Type]]&AAMC_Raw_Data_for_FY22[[#This Row],[School Subset]]&AAMC_Raw_Data_for_FY22[[#This Row],[Rank]]&AAMC_Raw_Data_for_FY22[[#This Row],[Degree]]&AAMC_Raw_Data_for_FY22[[#This Row],[Department / Specialty]]&\"L\"","v":"AAMCAcademicPrivateInstructorMDDiagnostic Radiology: InterventionalL"},"Diagnostic Radiology: Interventional",5,"AAMC","Academic","Private","Instructor","MD","2021-2022",403000,{"$f":"(((AAMC_Raw_Data_for_FY22[[#This Row],[Median]]-AAMC_Raw_Data_for_FY22[[#This Row],[25th]])/25)*5) + AAMC_Raw_Data_for_FY22[[#This Row],[25th]]","v":418802.4},{"$f":"(((AAMC_Raw_Data_for_FY22[[#This Row],[Median]]-AAMC_Raw_Data_for_FY22[[#This Row],[25th]])/25)*10) + AAMC_Raw_Data_for_FY22[[#This Row],[25th]]","v":434604.79999999999},{"$f":"(((AAMC_Raw_Data_for_FY22[[#This Row],[Median]]-AAMC_Raw_Data_for_FY22[[#This Row],[25th]])/25)*15) + AAMC_Raw_Data_for_FY22[[#This Row],[25th]]","v":450407.2},{"$f":"(((AAMC_Raw_Data_for_FY22[[#This Row],[Median]]-AAMC_Raw_Data_for_FY22[[#This Row],[25th]])/25)*20) + AAMC_Raw_Data_for_FY22[[#This Row],[25th]]","v":466209.6},482012,{"$f":"(((AAMC_Raw_Data_for_FY22[[#This Row],[75th]]-AAMC_Raw_Data_for_FY22[[#This Row],[Median]])/25)*5) + AAMC_Raw_Data_for_FY22[[#This Row],[Median]]","v":494231},{"$f":"(((AAMC_Raw_Data_for_FY22[[#This Row],[75th]]-AAMC_Raw_Data_for_FY22[[#This Row],[Median]])/25)*10) + AAMC_Raw_Data_for_FY22[[#This Row],[Median]]","v":506450},{"$f":"(((AAMC_Raw_Data_for_FY22[[#This Row],[75th]]-AAMC_Raw_Data_for_FY22[[#This Row],[Median]])/25)*15) + AAMC_Raw_Data_for_FY22[[#This Row],[Median]]","v":518669},{"$f":"(((AAMC_Raw_Data_for_FY22[[#This Row],[75th]]-AAMC_Raw_Data_for_FY22[[#This Row],[Median]])/25)*20) + AAMC_Raw_Data_for_FY22[[#This Row],[Median]]","v":530888},543107,{"$f":"(((AAMC_Raw_Data_for_FY22[[#This Row],[75th]]-AAMC_Raw_Data_for_FY22[[#This Row],[Median]])/25)*30) + AAMC_Raw_Data_for_FY22[[#This Row],[Median]]","v":555326},{"$f":"(((AAMC_Raw_Data_for_FY22[[#This Row],[75th]]-AAMC_Raw_Data_for_FY22[[#This Row],[Median]])/25)*35) + AAMC_Raw_Data_for_FY22[[#This Row],[Median]]","v":567545},{"$f":"(((AAMC_Raw_Data_for_FY22[[#This Row],[75th]]-AAMC_Raw_Data_for_FY22[[#This Row],[Median]])/25)*40) + AAMC_Raw_Data_for_FY22[[#This Row],[Median]]","v":579764}]
[{"$f":"AAMC_Raw_Data_for_FY22[[#This Row],[Source]]&AAMC_Raw_Data_for_FY22[[#This Row],[Type]]&AAMC_Raw_Data_for_FY22[[#This Row],[School Subset]]&AAMC_Raw_Data_for_FY22[[#This Row],[Rank]]&AAMC_Raw_Data_for_FY22[[#This Row],[Degree]]&AAMC_Raw_Data_for_FY22[[#This Row],[Department / Specialty]]&\"L\"","v":"AAMCAcademicPrivateAssistantMDDiagnostic Radiology: InterventionalL"},"Diagnostic Radiology: Interventional",4,"AAMC","Academic","Private","Assistant","MD","2021-2022",393768,{"$f":"(((AAMC_Raw_Data_for_FY22[[#This Row],[Median]]-AAMC_Raw_Data_for_FY22[[#This Row],[25th]])/25)*5) + AAMC_Raw_Data_for_FY22[[#This Row],[25th]]","v":405832.2},{"$f":"(((AAMC_Raw_Data_for_FY22[[#This Row],[Median]]-AAMC_Raw_Data_for_FY22[[#This Row],[25th]])/25)*10) + AAMC_Raw_Data_for_FY22[[#This Row],[25th]]","v":417896.4},{"$f":"(((AAMC_Raw_Data_for_FY22[[#This Row],[Median]]-AAMC_Raw_Data_for_FY22[[#This Row],[25th]])/25)*15) + AAMC_Raw_Data_for_FY22[[#This Row],[25th]]","v":429960.6},{"$f":"(((AAMC_Raw_Data_for_FY22[[#This Row],[Median]]-AAMC_Raw_Data_for_FY22[[#This Row],[25th]])/25)*20) + AAMC_Raw_Data_for_FY22[[#This Row],[25th]]","v":442024.8},454089,{"$f":"(((AAMC_Raw_Data_for_FY22[[#This Row],[75th]]-AAMC_Raw_Data_for_FY22[[#This Row],[Median]])/25)*5) + AAMC_Raw_Data_for_FY22[[#This Row],[Median]]","v":467930.6},{"$f":"(((AAMC_Raw_Data_for_FY22[[#This Row],[75th]]-AAMC_Raw_Data_for_FY22[[#This Row],[Median]])/25)*10) + AAMC_Raw_Data_for_FY22[[#This Row],[Median]]","v":481772.2},{"$f":"(((AAMC_Raw_Data_for_FY22[[#This Row],[75th]]-AAMC_Raw_Data_for_FY22[[#This Row],[Median]])/25)*15) + AAMC_Raw_Data_for_FY22[[#This Row],[Median]]","v":495613.8},{"$f":"(((AAMC_Raw_Data_for_FY22[[#This Row],[75th]]-AAMC_Raw_Data_for_FY22[[#This Row],[Median]])/25)*20) + AAMC_Raw_Data_for_FY22[[#This Row],[Median]]","v":509455.4},523297,{"$f":"(((AAMC_Raw_Data_for_FY22[[#This Row],[75th]]-AAMC_Raw_Data_for_FY22[[#This Row],[Median]])/25)*30) + AAMC_Raw_Data_for_FY22[[#This Row],[Median]]","v":537138.6},{"$f":"(((AAMC_Raw_Data_for_FY22[[#This Row],[75th]]-AAMC_Raw_Data_for_FY22[[#This Row],[Median]])/25)*35) + AAMC_Raw_Data_for_FY22[[#This Row],[Median]]","v":550980.19999999995},{"$f":"(((AAMC_Raw_Data_for_FY22[[#This Row],[75th]]-AAMC_Raw_Data_for_FY22[[#This Row],[Median]])/25)*40) + AAMC_Raw_Data_for_FY22[[#This Row],[Median]]","v":564821.80000000005}]
[{"$f":"AAMC_Raw_Data_for_FY22[[#This Row],[Source]]&AAMC_Raw_Data_for_FY22[[#This Row],[Type]]&AAMC_Raw_Data_for_FY22[[#This Row],[School Subset]]&AAMC_Raw_Data_for_FY22[[#This Row],[Rank]]&AAMC_Raw_Data_for_FY22[[#This Row],[Degree]]&AAMC_Raw_Data_for_FY22[[#This Row],[Department / Specialty]]&\"L\"","v":"AAMCAcademicPrivateAssociateMDDiagnostic Radiology: InterventionalL"},"Diagnostic Radiology: Interventional",3,"AAMC","Academic","Private","Associate","MD","2021-2022",458616,{"$f":"(((AAMC_Raw_Data_for_FY22[[#This Row],[Median]]-AAMC_Raw_Data_for_FY22[[#This Row],[25th]])/25)*5) + AAMC_Raw_Data_for_FY22[[#This Row],[25th]]","v":467772.8},{"$f":"(((AAMC_Raw_Data_for_FY22[[#This Row],[Median]]-AAMC_Raw_Data_for_FY22[[#This Row],[25th]])/25)*10) + AAMC_Raw_Data_for_FY22[[#This Row],[25th]]","v":476929.6},{"$f":"(((AAMC_Raw_Data_for_FY22[[#This Row],[Median]]-AAMC_Raw_Data_for_FY22[[#This Row],[25th]])/25)*15) + AAMC_Raw_Data_for_FY22[[#This Row],[25th]]","v":486086.40000000002},{"$f":"(((AAMC_Raw_Data_for_FY22[[#This Row],[Median]]-AAMC_Raw_Data_for_FY22[[#This Row],[25th]])/25)*20) + AAMC_Raw_Data_for_FY22[[#This Row],[25th]]","v":495243.2},504400,{"$f":"(((AAMC_Raw_Data_for_FY22[[#This Row],[75th]]-AAMC_Raw_Data_for_FY22[[#This Row],[Median]])/25)*5) + AAMC_Raw_Data_for_FY22[[#This Row],[Median]]","v":518863.6},{"$f":"(((AAMC_Raw_Data_for_FY22[[#This Row],[75th]]-AAMC_Raw_Data_for_FY22[[#This Row],[Median]])/25)*10) + AAMC_Raw_Data_for_FY22[[#This Row],[Median]]","v":533327.19999999995},{"$f":"(((AAMC_Raw_Data_for_FY22[[#This Row],[75th]]-AAMC_Raw_Data_for_FY22[[#This Row],[Median]])/25)*15) + AAMC_Raw_Data_for_FY22[[#This Row],[Median]]","v":547790.80000000005},{"$f":"(((AAMC_Raw_Data_for_FY22[[#This Row],[75th]]-AAMC_Raw_Data_for_FY22[[#This Row],[Median]])/25)*20) + AAMC_Raw_Data_for_FY22[[#This Row],[Median]]","v":562254.4},576718,{"$f":"(((AAMC_Raw_Data_for_FY22[[#This Row],[75th]]-AAMC_Raw_Data_for_FY22[[#This Row],[Median]])/25)*30) + AAMC_Raw_Data_for_FY22[[#This Row],[Median]]","v":591181.6},{"$f":"(((AAMC_Raw_Data_for_FY22[[#This Row],[75th]]-AAMC_Raw_Data_for_FY22[[#This Row],[Median]])/25)*35) + AAMC_Raw_Data_for_FY22[[#This Row],[Median]]","v":605645.19999999995},{"$f":"(((AAMC_Raw_Data_for_FY22[[#This Row],[75th]]-AAMC_Raw_Data_for_FY22[[#This Row],[Median]])/25)*40) + AAMC_Raw_Data_for_FY22[[#This Row],[Median]]","v":620108.80000000005}]
[{"$f":"AAMC_Raw_Data_for_FY22[[#This Row],[Source]]&AAMC_Raw_Data_for_FY22[[#This Row],[Type]]&AAMC_Raw_Data_for_FY22[[#This Row],[School Subset]]&AAMC_Raw_Data_for_FY22[[#This Row],[Rank]]&AAMC_Raw_Data_for_FY22[[#This Row],[Degree]]&AAMC_Raw_Data_for_FY22[[#This Row],[Department / Specialty]]&\"L\"","v":"AAMCAcademicPrivateProfessorMDDiagnostic Radiology: InterventionalL"},"Diagnostic Radiology: Interventional",2,"AAMC","Academic","Private","Professor","MD","2021-2022",502924,{"$f":"(((AAMC_Raw_Data_for_FY22[[#This Row],[Median]]-AAMC_Raw_Data_for_FY22[[#This Row],[25th]])/25)*5) + AAMC_Raw_Data_for_FY22[[#This Row],[25th]]","v":513033.6},{"$f":"(((AAMC_Raw_Data_for_FY22[[#This Row],[Median]]-AAMC_Raw_Data_for_FY22[[#This Row],[25th]])/25)*10) + AAMC_Raw_Data_for_FY22[[#This Row],[25th]]","v":523143.2},{"$f":"(((AAMC_Raw_Data_for_FY22[[#This Row],[Median]]-AAMC_Raw_Data_for_FY22[[#This Row],[25th]])/25)*15) + AAMC_Raw_Data_for_FY22[[#This Row],[25th]]","v":533252.80000000005},{"$f":"(((AAMC_Raw_Data_for_FY22[[#This Row],[Median]]-AAMC_Raw_Data_for_FY22[[#This Row],[25th]])/25)*20) + AAMC_Raw_Data_for_FY22[[#This Row],[25th]]","v":543362.4},553472,{"$f":"(((AAMC_Raw_Data_for_FY22[[#This Row],[75th]]-AAMC_Raw_Data_for_FY22[[#This Row],[Median]])/25)*5) + AAMC_Raw_Data_for_FY22[[#This Row],[Median]]","v":575129.80000000005},{"$f":"(((AAMC_Raw_Data_for_FY22[[#This Row],[75th]]-AAMC_Raw_Data_for_FY22[[#This Row],[Median]])/25)*10) + AAMC_Raw_Data_for_FY22[[#This Row],[Median]]","v":596787.6},{"$f":"(((AAMC_Raw_Data_for_FY22[[#This Row],[75th]]-AAMC_Raw_Data_for_FY22[[#This Row],[Median]])/25)*15) + AAMC_Raw_Data_for_FY22[[#This Row],[Median]]","v":618445.4},{"$f":"(((AAMC_Raw_Data_for_FY22[[#This Row],[75th]]-AAMC_Raw_Data_for_FY22[[#This Row],[Median]])/25)*20) + AAMC_Raw_Data_for_FY22[[#This Row],[Median]]","v":640103.19999999995},661761,{"$f":"(((AAMC_Raw_Data_for_FY22[[#This Row],[75th]]-AAMC_Raw_Data_for_FY22[[#This Row],[Median]])/25)*30) + AAMC_Raw_Data_for_FY22[[#This Row],[Median]]","v":683418.8},{"$f":"(((AAMC_Raw_Data_for_FY22[[#This Row],[75th]]-AAMC_Raw_Data_for_FY22[[#This Row],[Median]])/25)*35) + AAMC_Raw_Data_for_FY22[[#This Row],[Median]]","v":705076.6},{"$f":"(((AAMC_Raw_Data_for_FY22[[#This Row],[75th]]-AAMC_Raw_Data_for_FY22[[#This Row],[Median]])/25)*40) + AAMC_Raw_Data_for_FY22[[#This Row],[Median]]","v":726734.4}]
[{"$f":"AAMC_Raw_Data_for_FY22[[#This Row],[Source]]&AAMC_Raw_Data_for_FY22[[#This Row],[Type]]&AAMC_Raw_Data_for_FY22[[#This Row],[School Subset]]&AAMC_Raw_Data_for_FY22[[#This Row],[Rank]]&AAMC_Raw_Data_for_FY22[[#This Row],[Degree]]&AAMC_Raw_Data_for_FY22[[#This Row],[Department / Specialty]]&\"L\"","v":"AAMCAcademicPrivateChiefMDDiagnostic Radiology: InterventionalL"},"Diagnostic Radiology: Interventional",6,"AAMC","Academic","Private","Chief","MD","2021-2022",560977,{"$f":"(((AAMC_Raw_Data_for_FY22[[#This Row],[Median]]-AAMC_Raw_Data_for_FY22[[#This Row],[25th]])/25)*5) + AAMC_Raw_Data_for_FY22[[#This Row],[25th]]","v":573942.19999999995},{"$f":"(((AAMC_Raw_Data_for_FY22[[#This Row],[Median]]-AAMC_Raw_Data_for_FY22[[#This Row],[25th]])/25)*10) + AAMC_Raw_Data_for_FY22[[#This Row],[25th]]","v":586907.4},{"$f":"(((AAMC_Raw_Data_for_FY22[[#This Row],[Median]]-AAMC_Raw_Data_for_FY22[[#This Row],[25th]])/25)*15) + AAMC_Raw_Data_for_FY22[[#This Row],[25th]]","v":599872.6},{"$f":"(((AAMC_Raw_Data_for_FY22[[#This Row],[Median]]-AAMC_Raw_Data_for_FY22[[#This Row],[25th]])/25)*20) + AAMC_Raw_Data_for_FY22[[#This Row],[25th]]","v":612837.80000000005},625803,{"$f":"(((AAMC_Raw_Data_for_FY22[[#This Row],[75th]]-AAMC_Raw_Data_for_FY22[[#This Row],[Median]])/25)*5) + AAMC_Raw_Data_for_FY22[[#This Row],[Median]]","v":636716},{"$f":"(((AAMC_Raw_Data_for_FY22[[#This Row],[75th]]-AAMC_Raw_Data_for_FY22[[#This Row],[Median]])/25)*10) + AAMC_Raw_Data_for_FY22[[#This Row],[Median]]","v":647629},{"$f":"(((AAMC_Raw_Data_for_FY22[[#This Row],[75th]]-AAMC_Raw_Data_for_FY22[[#This Row],[Median]])/25)*15) + AAMC_Raw_Data_for_FY22[[#This Row],[Median]]","v":658542},{"$f":"(((AAMC_Raw_Data_for_FY22[[#This Row],[75th]]-AAMC_Raw_Data_for_FY22[[#This Row],[Median]])/25)*20) + AAMC_Raw_Data_for_FY22[[#This Row],[Median]]","v":669455},680368,{"$f":"(((AAMC_Raw_Data_for_FY22[[#This Row],[75th]]-AAMC_Raw_Data_for_FY22[[#This Row],[Median]])/25)*30) + AAMC_Raw_Data_for_FY22[[#This Row],[Median]]","v":691281},{"$f":"(((AAMC_Raw_Data_for_FY22[[#This Row],[75th]]-AAMC_Raw_Data_for_FY22[[#This Row],[Median]])/25)*35) + AAMC_Raw_Data_for_FY22[[#This Row],[Median]]","v":702194},{"$f":"(((AAMC_Raw_Data_for_FY22[[#This Row],[75th]]-AAMC_Raw_Data_for_FY22[[#This Row],[Median]])/25)*40) + AAMC_Raw_Data_for_FY22[[#This Row],[Median]]","v":713107}]
[{"$f":"AAMC_Raw_Data_for_FY22[[#This Row],[Source]]&AAMC_Raw_Data_for_FY22[[#This Row],[Type]]&AAMC_Raw_Data_for_FY22[[#This Row],[School Subset]]&AAMC_Raw_Data_for_FY22[[#This Row],[Rank]]&AAMC_Raw_Data_for_FY22[[#This Row],[Degree]]&AAMC_Raw_Data_for_FY22[[#This Row],[Department / Specialty]]&\"L\"","v":"AAMCAcademicPrivateChairMDDiagnostic Radiology: InterventionalL"},"Diagnostic Radiology: Interventional",1,"AAMC","Academic","Private","Chair","MD","2021-2022",762147,{"$f":"(((AAMC_Raw_Data_for_FY22[[#This Row],[Median]]-AAMC_Raw_Data_for_FY22[[#This Row],[25th]])/25)*5) + AAMC_Raw_Data_for_FY22[[#This Row],[25th]]","v":779919.6},{"$f":"(((AAMC_Raw_Data_for_FY22[[#This Row],[Median]]-AAMC_Raw_Data_for_FY22[[#This Row],[25th]])/25)*10) + AAMC_Raw_Data_for_FY22[[#This Row],[25th]]","v":797692.2},{"$f":"(((AAMC_Raw_Data_for_FY22[[#This Row],[Median]]-AAMC_Raw_Data_for_FY22[[#This Row],[25th]])/25)*15) + AAMC_Raw_Data_for_FY22[[#This Row],[25th]]","v":815464.8},{"$f":"(((AAMC_Raw_Data_for_FY22[[#This Row],[Median]]-AAMC_Raw_Data_for_FY22[[#This Row],[25th]])/25)*20) + AAMC_Raw_Data_for_FY22[[#This Row],[25th]]","v":833237.4},851010,{"$f":"(((AAMC_Raw_Data_for_FY22[[#This Row],[75th]]-AAMC_Raw_Data_for_FY22[[#This Row],[Median]])/25)*5) + AAMC_Raw_Data_for_FY22[[#This Row],[Median]]","v":899163.4},{"$f":"(((AAMC_Raw_Data_for_FY22[[#This Row],[75th]]-AAMC_Raw_Data_for_FY22[[#This Row],[Median]])/25)*10) + AAMC_Raw_Data_for_FY22[[#This Row],[Median]]","v":947316.8},{"$f":"(((AAMC_Raw_Data_for_FY22[[#This Row],[75th]]-AAMC_Raw_Data_for_FY22[[#This Row],[Median]])/25)*15) + AAMC_Raw_Data_for_FY22[[#This Row],[Median]]","v":995470.2},{"$f":"(((AAMC_Raw_Data_for_FY22[[#This Row],[75th]]-AAMC_Raw_Data_for_FY22[[#This Row],[Median]])/25)*20) + AAMC_Raw_Data_for_FY22[[#This Row],[Median]]","v":1043623.6},1091777,{"$f":"(((AAMC_Raw_Data_for_FY22[[#This Row],[75th]]-AAMC_Raw_Data_for_FY22[[#This Row],[Median]])/25)*30) + AAMC_Raw_Data_for_FY22[[#This Row],[Median]]","v":1139930.3999999999},{"$f":"(((AAMC_Raw_Data_for_FY22[[#This Row],[75th]]-AAMC_Raw_Data_for_FY22[[#This Row],[Median]])/25)*35) + AAMC_Raw_Data_for_FY22[[#This Row],[Median]]","v":1188083.8},{"$f":"(((AAMC_Raw_Data_for_FY22[[#This Row],[75th]]-AAMC_Raw_Data_for_FY22[[#This Row],[Median]])/25)*40) + AAMC_Raw_Data_for_FY22[[#This Row],[Median]]","v":1236237.2}]
[{"$f":"AAMC_Raw_Data_for_FY22[[#This Row],[Source]]&AAMC_Raw_Data_for_FY22[[#This Row],[Type]]&AAMC_Raw_Data_for_FY22[[#This Row],[School Subset]]&AAMC_Raw_Data_for_FY22[[#This Row],[Rank]]&AAMC_Raw_Data_for_FY22[[#This Row],[Degree]]&AAMC_Raw_Data_for_FY22[[#This Row],[Department / Specialty]]&\"L\"","v":"AAMCAcademicPrivateInstructorMDDiagnostic Radiology: Non-interventionalL"},"Diagnostic Radiology: Non-interventional",5,"AAMC","Academic","Private","Instructor","MD","2021-2022",318754,{"$f":"(((AAMC_Raw_Data_for_FY22[[#This Row],[Median]]-AAMC_Raw_Data_for_FY22[[#This Row],[25th]])/25)*5) + AAMC_Raw_Data_for_FY22[[#This Row],[25th]]","v":332796.40000000002},{"$f":"(((AAMC_Raw_Data_for_FY22[[#This Row],[Median]]-AAMC_Raw_Data_for_FY22[[#This Row],[25th]])/25)*10) + AAMC_Raw_Data_for_FY22[[#This Row],[25th]]","v":346838.8},{"$f":"(((AAMC_Raw_Data_for_FY22[[#This Row],[Median]]-AAMC_Raw_Data_for_FY22[[#This Row],[25th]])/25)*15) + AAMC_Raw_Data_for_FY22[[#This Row],[25th]]","v":360881.2},{"$f":"(((AAMC_Raw_Data_for_FY22[[#This Row],[Median]]-AAMC_Raw_Data_for_FY22[[#This Row],[25th]])/25)*20) + AAMC_Raw_Data_for_FY22[[#This Row],[25th]]","v":374923.6},388966,{"$f":"(((AAMC_Raw_Data_for_FY22[[#This Row],[75th]]-AAMC_Raw_Data_for_FY22[[#This Row],[Median]])/25)*5) + AAMC_Raw_Data_for_FY22[[#This Row],[Median]]","v":414358},{"$f":"(((AAMC_Raw_Data_for_FY22[[#This Row],[75th]]-AAMC_Raw_Data_for_FY22[[#This Row],[Median]])/25)*10) + AAMC_Raw_Data_for_FY22[[#This Row],[Median]]","v":439750},{"$f":"(((AAMC_Raw_Data_for_FY22[[#This Row],[75th]]-AAMC_Raw_Data_for_FY22[[#This Row],[Median]])/25)*15) + AAMC_Raw_Data_for_FY22[[#This Row],[Median]]","v":465142},{"$f":"(((AAMC_Raw_Data_for_FY22[[#This Row],[75th]]-AAMC_Raw_Data_for_FY22[[#This Row],[Median]])/25)*20) + AAMC_Raw_Data_for_FY22[[#This Row],[Median]]","v":490534},515926,{"$f":"(((AAMC_Raw_Data_for_FY22[[#This Row],[75th]]-AAMC_Raw_Data_for_FY22[[#This Row],[Median]])/25)*30) + AAMC_Raw_Data_for_FY22[[#This Row],[Median]]","v":541318},{"$f":"(((AAMC_Raw_Data_for_FY22[[#This Row],[75th]]-AAMC_Raw_Data_for_FY22[[#This Row],[Median]])/25)*35) + AAMC_Raw_Data_for_FY22[[#This Row],[Median]]","v":566710},{"$f":"(((AAMC_Raw_Data_for_FY22[[#This Row],[75th]]-AAMC_Raw_Data_for_FY22[[#This Row],[Median]])/25)*40) + AAMC_Raw_Data_for_FY22[[#This Row],[Median]]","v":592102}]
[{"$f":"AAMC_Raw_Data_for_FY22[[#This Row],[Source]]&AAMC_Raw_Data_for_FY22[[#This Row],[Type]]&AAMC_Raw_Data_for_FY22[[#This Row],[School Subset]]&AAMC_Raw_Data_for_FY22[[#This Row],[Rank]]&AAMC_Raw_Data_for_FY22[[#This Row],[Degree]]&AAMC_Raw_Data_for_FY22[[#This Row],[Department / Specialty]]&\"L\"","v":"AAMCAcademicPrivateAssistantMDDiagnostic Radiology: Non-interventionalL"},"Diagnostic Radiology: Non-interventional",4,"AAMC","Academic","Private","Assistant","MD","2021-2022",372750,{"$f":"(((AAMC_Raw_Data_for_FY22[[#This Row],[Median]]-AAMC_Raw_Data_for_FY22[[#This Row],[25th]])/25)*5) + AAMC_Raw_Data_for_FY22[[#This Row],[25th]]","v":379730.4},{"$f":"(((AAMC_Raw_Data_for_FY22[[#This Row],[Median]]-AAMC_Raw_Data_for_FY22[[#This Row],[25th]])/25)*10) + AAMC_Raw_Data_for_FY22[[#This Row],[25th]]","v":386710.8},{"$f":"(((AAMC_Raw_Data_for_FY22[[#This Row],[Median]]-AAMC_Raw_Data_for_FY22[[#This Row],[25th]])/25)*15) + AAMC_Raw_Data_for_FY22[[#This Row],[25th]]","v":393691.2},{"$f":"(((AAMC_Raw_Data_for_FY22[[#This Row],[Median]]-AAMC_Raw_Data_for_FY22[[#This Row],[25th]])/25)*20) + AAMC_Raw_Data_for_FY22[[#This Row],[25th]]","v":400671.6},407652,{"$f":"(((AAMC_Raw_Data_for_FY22[[#This Row],[75th]]-AAMC_Raw_Data_for_FY22[[#This Row],[Median]])/25)*5) + AAMC_Raw_Data_for_FY22[[#This Row],[Median]]","v":419180.2},{"$f":"(((AAMC_Raw_Data_for_FY22[[#This Row],[75th]]-AAMC_Raw_Data_for_FY22[[#This Row],[Median]])/25)*10) + AAMC_Raw_Data_for_FY22[[#This Row],[Median]]","v":430708.4},{"$f":"(((AAMC_Raw_Data_for_FY22[[#This Row],[75th]]-AAMC_Raw_Data_for_FY22[[#This Row],[Median]])/25)*15) + AAMC_Raw_Data_for_FY22[[#This Row],[Median]]","v":442236.6},{"$f":"(((AAMC_Raw_Data_for_FY22[[#This Row],[75th]]-AAMC_Raw_Data_for_FY22[[#This Row],[Median]])/25)*20) + AAMC_Raw_Data_for_FY22[[#This Row],[Median]]","v":453764.8},465293,{"$f":"(((AAMC_Raw_Data_for_FY22[[#This Row],[75th]]-AAMC_Raw_Data_for_FY22[[#This Row],[Median]])/25)*30) + AAMC_Raw_Data_for_FY22[[#This Row],[Median]]","v":476821.2},{"$f":"(((AAMC_Raw_Data_for_FY22[[#This Row],[75th]]-AAMC_Raw_Data_for_FY22[[#This Row],[Median]])/25)*35) + AAMC_Raw_Data_for_FY22[[#This Row],[Median]]","v":488349.4},{"$f":"(((AAMC_Raw_Data_for_FY22[[#This Row],[75th]]-AAMC_Raw_Data_for_FY22[[#This Row],[Median]])/25)*40) + AAMC_Raw_Data_for_FY22[[#This Row],[Median]]","v":499877.6}]
[{"$f":"AAMC_Raw_Data_for_FY22[[#This Row],[Source]]&AAMC_Raw_Data_for_FY22[[#This Row],[Type]]&AAMC_Raw_Data_for_FY22[[#This Row],[School Subset]]&AAMC_Raw_Data_for_FY22[[#This Row],[Rank]]&AAMC_Raw_Data_for_FY22[[#This Row],[Degree]]&AAMC_Raw_Data_for_FY22[[#This Row],[Department / Specialty]]&\"L\"","v":"AAMCAcademicPrivateAssociateMDDiagnostic Radiology: Non-interventionalL"},"Diagnostic Radiology: Non-interventional",3,"AAMC","Academic","Private","Associate","MD","2021-2022",413795,{"$f":"(((AAMC_Raw_Data_for_FY22[[#This Row],[Median]]-AAMC_Raw_Data_for_FY22[[#This Row],[25th]])/25)*5) + AAMC_Raw_Data_for_FY22[[#This Row],[25th]]","v":421463},{"$f":"(((AAMC_Raw_Data_for_FY22[[#This Row],[Median]]-AAMC_Raw_Data_for_FY22[[#This Row],[25th]])/25)*10) + AAMC_Raw_Data_for_FY22[[#This Row],[25th]]","v":429131},{"$f":"(((AAMC_Raw_Data_for_FY22[[#This Row],[Median]]-AAMC_Raw_Data_for_FY22[[#This Row],[25th]])/25)*15) + AAMC_Raw_Data_for_FY22[[#This Row],[25th]]","v":436799},{"$f":"(((AAMC_Raw_Data_for_FY22[[#This Row],[Median]]-AAMC_Raw_Data_for_FY22[[#This Row],[25th]])/25)*20) + AAMC_Raw_Data_for_FY22[[#This Row],[25th]]","v":444467},452135,{"$f":"(((AAMC_Raw_Data_for_FY22[[#This Row],[75th]]-AAMC_Raw_Data_for_FY22[[#This Row],[Median]])/25)*5) + AAMC_Raw_Data_for_FY22[[#This Row],[Median]]","v":463909.8},{"$f":"(((AAMC_Raw_Data_for_FY22[[#This Row],[75th]]-AAMC_Raw_Data_for_FY22[[#This Row],[Median]])/25)*10) + AAMC_Raw_Data_for_FY22[[#This Row],[Median]]","v":475684.6},{"$f":"(((AAMC_Raw_Data_for_FY22[[#This Row],[75th]]-AAMC_Raw_Data_for_FY22[[#This Row],[Median]])/25)*15) + AAMC_Raw_Data_for_FY22[[#This Row],[Median]]","v":487459.4},{"$f":"(((AAMC_Raw_Data_for_FY22[[#This Row],[75th]]-AAMC_Raw_Data_for_FY22[[#This Row],[Median]])/25)*20) + AAMC_Raw_Data_for_FY22[[#This Row],[Median]]","v":499234.2},511009,{"$f":"(((AAMC_Raw_Data_for_FY22[[#This Row],[75th]]-AAMC_Raw_Data_for_FY22[[#This Row],[Median]])/25)*30) + AAMC_Raw_Data_for_FY22[[#This Row],[Median]]","v":522783.8},{"$f":"(((AAMC_Raw_Data_for_FY22[[#This Row],[75th]]-AAMC_Raw_Data_for_FY22[[#This Row],[Median]])/25)*35) + AAMC_Raw_Data_for_FY22[[#This Row],[Median]]","v":534558.6},{"$f":"(((AAMC_Raw_Data_for_FY22[[#This Row],[75th]]-AAMC_Raw_Data_for_FY22[[#This Row],[Median]])/25)*40) + AAMC_Raw_Data_for_FY22[[#This Row],[Median]]","v":546333.4}]
[{"$f":"AAMC_Raw_Data_for_FY22[[#This Row],[Source]]&AAMC_Raw_Data_for_FY22[[#This Row],[Type]]&AAMC_Raw_Data_for_FY22[[#This Row],[School Subset]]&AAMC_Raw_Data_for_FY22[[#This Row],[Rank]]&AAMC_Raw_Data_for_FY22[[#This Row],[Degree]]&AAMC_Raw_Data_for_FY22[[#This Row],[Department / Specialty]]&\"L\"","v":"AAMCAcademicPrivateProfessorMDDiagnostic Radiology: Non-interventionalL"},"Diagnostic Radiology: Non-interventional",2,"AAMC","Academic","Private","Professor","MD","2021-2022",433629,{"$f":"(((AAMC_Raw_Data_for_FY22[[#This Row],[Median]]-AAMC_Raw_Data_for_FY22[[#This Row],[25th]])/25)*5) + AAMC_Raw_Data_for_FY22[[#This Row],[25th]]","v":445752},{"$f":"(((AAMC_Raw_Data_for_FY22[[#This Row],[Median]]-AAMC_Raw_Data_for_FY22[[#This Row],[25th]])/25)*10) + AAMC_Raw_Data_for_FY22[[#This Row],[25th]]","v":457875},{"$f":"(((AAMC_Raw_Data_for_FY22[[#This Row],[Median]]-AAMC_Raw_Data_for_FY22[[#This Row],[25th]])/25)*15) + AAMC_Raw_Data_for_FY22[[#This Row],[25th]]","v":469998},{"$f":"(((AAMC_Raw_Data_for_FY22[[#This Row],[Median]]-AAMC_Raw_Data_for_FY22[[#This Row],[25th]])/25)*20) + AAMC_Raw_Data_for_FY22[[#This Row],[25th]]","v":482121},494244,{"$f":"(((AAMC_Raw_Data_for_FY22[[#This Row],[75th]]-AAMC_Raw_Data_for_FY22[[#This Row],[Median]])/25)*5) + AAMC_Raw_Data_for_FY22[[#This Row],[Median]]","v":506813},{"$f":"(((AAMC_Raw_Data_for_FY22[[#This Row],[75th]]-AAMC_Raw_Data_for_FY22[[#This Row],[Median]])/25)*10) + AAMC_Raw_Data_for_FY22[[#This Row],[Median]]","v":519382},{"$f":"(((AAMC_Raw_Data_for_FY22[[#This Row],[75th]]-AAMC_Raw_Data_for_FY22[[#This Row],[Median]])/25)*15) + AAMC_Raw_Data_for_FY22[[#This Row],[Median]]","v":531951},{"$f":"(((AAMC_Raw_Data_for_FY22[[#This Row],[75th]]-AAMC_Raw_Data_for_FY22[[#This Row],[Median]])/25)*20) + AAMC_Raw_Data_for_FY22[[#This Row],[Median]]","v":544520},557089,{"$f":"(((AAMC_Raw_Data_for_FY22[[#This Row],[75th]]-AAMC_Raw_Data_for_FY22[[#This Row],[Median]])/25)*30) + AAMC_Raw_Data_for_FY22[[#This Row],[Median]]","v":569658},{"$f":"(((AAMC_Raw_Data_for_FY22[[#This Row],[75th]]-AAMC_Raw_Data_for_FY22[[#This Row],[Median]])/25)*35) + AAMC_Raw_Data_for_FY22[[#This Row],[Median]]","v":582227},{"$f":"(((AAMC_Raw_Data_for_FY22[[#This Row],[75th]]-AAMC_Raw_Data_for_FY22[[#This Row],[Median]])/25)*40) + AAMC_Raw_Data_for_FY22[[#This Row],[Median]]","v":594796}]
[{"$f":"AAMC_Raw_Data_for_FY22[[#This Row],[Source]]&AAMC_Raw_Data_for_FY22[[#This Row],[Type]]&AAMC_Raw_Data_for_FY22[[#This Row],[School Subset]]&AAMC_Raw_Data_for_FY22[[#This Row],[Rank]]&AAMC_Raw_Data_for_FY22[[#This Row],[Degree]]&AAMC_Raw_Data_for_FY22[[#This Row],[Department / Specialty]]&\"L\"","v":"AAMCAcademicPrivateChiefMDDiagnostic Radiology: Non-interventionalL"},"Diagnostic Radiology: Non-interventional",6,"AAMC","Academic","Private","Chief","MD","2021-2022",439755,{"$f":"(((AAMC_Raw_Data_for_FY22[[#This Row],[Median]]-AAMC_Raw_Data_for_FY22[[#This Row],[25th]])/25)*5) + AAMC_Raw_Data_for_FY22[[#This Row],[25th]]","v":449285.2},{"$f":"(((AAMC_Raw_Data_for_FY22[[#This Row],[Median]]-AAMC_Raw_Data_for_FY22[[#This Row],[25th]])/25)*10) + AAMC_Raw_Data_for_FY22[[#This Row],[25th]]","v":458815.4},{"$f":"(((AAMC_Raw_Data_for_FY22[[#This Row],[Median]]-AAMC_Raw_Data_for_FY22[[#This Row],[25th]])/25)*15) + AAMC_Raw_Data_for_FY22[[#This Row],[25th]]","v":468345.59999999998},{"$f":"(((AAMC_Raw_Data_for_FY22[[#This Row],[Median]]-AAMC_Raw_Data_for_FY22[[#This Row],[25th]])/25)*20) + AAMC_Raw_Data_for_FY22[[#This Row],[25th]]","v":477875.8},487406,{"$f":"(((AAMC_Raw_Data_for_FY22[[#This Row],[75th]]-AAMC_Raw_Data_for_FY22[[#This Row],[Median]])/25)*5) + AAMC_Raw_Data_for_FY22[[#This Row],[Median]]","v":500556.4},{"$f":"(((AAMC_Raw_Data_for_FY22[[#This Row],[75th]]-AAMC_Raw_Data_for_FY22[[#This Row],[Median]])/25)*10) + AAMC_Raw_Data_for_FY22[[#This Row],[Median]]","v":513706.8},{"$f":"(((AAMC_Raw_Data_for_FY22[[#This Row],[75th]]-AAMC_Raw_Data_for_FY22[[#This Row],[Median]])/25)*15) + AAMC_Raw_Data_for_FY22[[#This Row],[Median]]","v":526857.19999999995},{"$f":"(((AAMC_Raw_Data_for_FY22[[#This Row],[75th]]-AAMC_Raw_Data_for_FY22[[#This Row],[Median]])/25)*20) + AAMC_Raw_Data_for_FY22[[#This Row],[Median]]","v":540007.6},553158,{"$f":"(((AAMC_Raw_Data_for_FY22[[#This Row],[75th]]-AAMC_Raw_Data_for_FY22[[#This Row],[Median]])/25)*30) + AAMC_Raw_Data_for_FY22[[#This Row],[Median]]","v":566308.4},{"$f":"(((AAMC_Raw_Data_for_FY22[[#This Row],[75th]]-AAMC_Raw_Data_for_FY22[[#This Row],[Median]])/25)*35) + AAMC_Raw_Data_for_FY22[[#This Row],[Median]]","v":579458.80000000005},{"$f":"(((AAMC_Raw_Data_for_FY22[[#This Row],[75th]]-AAMC_Raw_Data_for_FY22[[#This Row],[Median]])/25)*40) + AAMC_Raw_Data_for_FY22[[#This Row],[Median]]","v":592609.19999999995}]
[{"$f":"AAMC_Raw_Data_for_FY22[[#This Row],[Source]]&AAMC_Raw_Data_for_FY22[[#This Row],[Type]]&AAMC_Raw_Data_for_FY22[[#This Row],[School Subset]]&AAMC_Raw_Data_for_FY22[[#This Row],[Rank]]&AAMC_Raw_Data_for_FY22[[#This Row],[Degree]]&AAMC_Raw_Data_for_FY22[[#This Row],[Department / Specialty]]&\"L\"","v":"AAMCAcademicPrivateChairMDDiagnostic Radiology: Non-interventionalL"},"Diagnostic Radiology: Non-interventional",1,"AAMC","Academic","Private","Chair","MD","2021-2022",712740,{"$f":"(((AAMC_Raw_Data_for_FY22[[#This Row],[Median]]-AAMC_Raw_Data_for_FY22[[#This Row],[25th]])/25)*5) + AAMC_Raw_Data_for_FY22[[#This Row],[25th]]","v":735831.8},{"$f":"(((AAMC_Raw_Data_for_FY22[[#This Row],[Median]]-AAMC_Raw_Data_for_FY22[[#This Row],[25th]])/25)*10) + AAMC_Raw_Data_for_FY22[[#This Row],[25th]]","v":758923.6},{"$f":"(((AAMC_Raw_Data_for_FY22[[#This Row],[Median]]-AAMC_Raw_Data_for_FY22[[#This Row],[25th]])/25)*15) + AAMC_Raw_Data_for_FY22[[#This Row],[25th]]","v":782015.4},{"$f":"(((AAMC_Raw_Data_for_FY22[[#This Row],[Median]]-AAMC_Raw_Data_for_FY22[[#This Row],[25th]])/25)*20) + AAMC_Raw_Data_for_FY22[[#This Row],[25th]]","v":805107.19999999995},828199,{"$f":"(((AAMC_Raw_Data_for_FY22[[#This Row],[75th]]-AAMC_Raw_Data_for_FY22[[#This Row],[Median]])/25)*5) + AAMC_Raw_Data_for_FY22[[#This Row],[Median]]","v":859318.4},{"$f":"(((AAMC_Raw_Data_for_FY22[[#This Row],[75th]]-AAMC_Raw_Data_for_FY22[[#This Row],[Median]])/25)*10) + AAMC_Raw_Data_for_FY22[[#This Row],[Median]]","v":890437.8},{"$f":"(((AAMC_Raw_Data_for_FY22[[#This Row],[75th]]-AAMC_Raw_Data_for_FY22[[#This Row],[Median]])/25)*15) + AAMC_Raw_Data_for_FY22[[#This Row],[Median]]","v":921557.2},{"$f":"(((AAMC_Raw_Data_for_FY22[[#This Row],[75th]]-AAMC_Raw_Data_for_FY22[[#This Row],[Median]])/25)*20) + AAMC_Raw_Data_for_FY22[[#This Row],[Median]]","v":952676.6},983796,{"$f":"(((AAMC_Raw_Data_for_FY22[[#This Row],[75th]]-AAMC_Raw_Data_for_FY22[[#This Row],[Median]])/25)*30) + AAMC_Raw_Data_for_FY22[[#This Row],[Median]]","v":1014915.4},{"$f":"(((AAMC_Raw_Data_for_FY22[[#This Row],[75th]]-AAMC_Raw_Data_for_FY22[[#This Row],[Median]])/25)*35) + AAMC_Raw_Data_for_FY22[[#This Row],[Median]]","v":1046034.8},{"$f":"(((AAMC_Raw_Data_for_FY22[[#This Row],[75th]]-AAMC_Raw_Data_for_FY22[[#This Row],[Median]])/25)*40) + AAMC_Raw_Data_for_FY22[[#This Row],[Median]]","v":1077154.2}]
[{"$f":"AAMC_Raw_Data_for_FY22[[#This Row],[Source]]&AAMC_Raw_Data_for_FY22[[#This Row],[Type]]&AAMC_Raw_Data_for_FY22[[#This Row],[School Subset]]&AAMC_Raw_Data_for_FY22[[#This Row],[Rank]]&AAMC_Raw_Data_for_FY22[[#This Row],[Degree]]&AAMC_Raw_Data_for_FY22[[#This Row],[Department / Specialty]]&\"L\"","v":"AAMCAcademicPrivateInstructorMDNuclear MedicineL"},"Nuclear Medicine",5,"AAMC","Academic","Private","Instructor","MD","2021-2022",278972,{"$f":"(((AAMC_Raw_Data_for_FY22[[#This Row],[Median]]-AAMC_Raw_Data_for_FY22[[#This Row],[25th]])/25)*5) + AAMC_Raw_Data_for_FY22[[#This Row],[25th]]","v":282027.59999999998},{"$f":"(((AAMC_Raw_Data_for_FY22[[#This Row],[Median]]-AAMC_Raw_Data_for_FY22[[#This Row],[25th]])/25)*10) + AAMC_Raw_Data_for_FY22[[#This Row],[25th]]","v":285083.2},{"$f":"(((AAMC_Raw_Data_for_FY22[[#This Row],[Median]]-AAMC_Raw_Data_for_FY22[[#This Row],[25th]])/25)*15) + AAMC_Raw_Data_for_FY22[[#This Row],[25th]]","v":288138.8},{"$f":"(((AAMC_Raw_Data_for_FY22[[#This Row],[Median]]-AAMC_Raw_Data_for_FY22[[#This Row],[25th]])/25)*20) + AAMC_Raw_Data_for_FY22[[#This Row],[25th]]","v":291194.40000000002},294250,{"$f":"(((AAMC_Raw_Data_for_FY22[[#This Row],[75th]]-AAMC_Raw_Data_for_FY22[[#This Row],[Median]])/25)*5) + AAMC_Raw_Data_for_FY22[[#This Row],[Median]]","v":298073.8},{"$f":"(((AAMC_Raw_Data_for_FY22[[#This Row],[75th]]-AAMC_Raw_Data_for_FY22[[#This Row],[Median]])/25)*10) + AAMC_Raw_Data_for_FY22[[#This Row],[Median]]","v":301897.59999999998},{"$f":"(((AAMC_Raw_Data_for_FY22[[#This Row],[75th]]-AAMC_Raw_Data_for_FY22[[#This Row],[Median]])/25)*15) + AAMC_Raw_Data_for_FY22[[#This Row],[Median]]","v":305721.40000000002},{"$f":"(((AAMC_Raw_Data_for_FY22[[#This Row],[75th]]-AAMC_Raw_Data_for_FY22[[#This Row],[Median]])/25)*20) + AAMC_Raw_Data_for_FY22[[#This Row],[Median]]","v":309545.2},313369,{"$f":"(((AAMC_Raw_Data_for_FY22[[#This Row],[75th]]-AAMC_Raw_Data_for_FY22[[#This Row],[Median]])/25)*30) + AAMC_Raw_Data_for_FY22[[#This Row],[Median]]","v":317192.8},{"$f":"(((AAMC_Raw_Data_for_FY22[[#This Row],[75th]]-AAMC_Raw_Data_for_FY22[[#This Row],[Median]])/25)*35) + AAMC_Raw_Data_for_FY22[[#This Row],[Median]]","v":321016.59999999998},{"$f":"(((AAMC_Raw_Data_for_FY22[[#This Row],[75th]]-AAMC_Raw_Data_for_FY22[[#This Row],[Median]])/25)*40) + AAMC_Raw_Data_for_FY22[[#This Row],[Median]]","v":324840.40000000002}]
[{"$f":"AAMC_Raw_Data_for_FY22[[#This Row],[Source]]&AAMC_Raw_Data_for_FY22[[#This Row],[Type]]&AAMC_Raw_Data_for_FY22[[#This Row],[School Subset]]&AAMC_Raw_Data_for_FY22[[#This Row],[Rank]]&AAMC_Raw_Data_for_FY22[[#This Row],[Degree]]&AAMC_Raw_Data_for_FY22[[#This Row],[Department / Specialty]]&\"L\"","v":"AAMCAcademicPrivateAssistantMDNuclear MedicineL"},"Nuclear Medicine",4,"AAMC","Academic","Private","Assistant","MD","2021-2022",334116,{"$f":"(((AAMC_Raw_Data_for_FY22[[#This Row],[Median]]-AAMC_Raw_Data_for_FY22[[#This Row],[25th]])/25)*5) + AAMC_Raw_Data_for_FY22[[#This Row],[25th]]","v":341842.8},{"$f":"(((AAMC_Raw_Data_for_FY22[[#This Row],[Median]]-AAMC_Raw_Data_for_FY22[[#This Row],[25th]])/25)*10) + AAMC_Raw_Data_for_FY22[[#This Row],[25th]]","v":349569.6},{"$f":"(((AAMC_Raw_Data_for_FY22[[#This Row],[Median]]-AAMC_Raw_Data_for_FY22[[#This Row],[25th]])/25)*15) + AAMC_Raw_Data_for_FY22[[#This Row],[25th]]","v":357296.4},{"$f":"(((AAMC_Raw_Data_for_FY22[[#This Row],[Median]]-AAMC_Raw_Data_for_FY22[[#This Row],[25th]])/25)*20) + AAMC_Raw_Data_for_FY22[[#This Row],[25th]]","v":365023.2},372750,{"$f":"(((AAMC_Raw_Data_for_FY22[[#This Row],[75th]]-AAMC_Raw_Data_for_FY22[[#This Row],[Median]])/25)*5) + AAMC_Raw_Data_for_FY22[[#This Row],[Median]]","v":377609},{"$f":"(((AAMC_Raw_Data_for_FY22[[#This Row],[75th]]-AAMC_Raw_Data_for_FY22[[#This Row],[Median]])/25)*10) + AAMC_Raw_Data_for_FY22[[#This Row],[Median]]","v":382468},{"$f":"(((AAMC_Raw_Data_for_FY22[[#This Row],[75th]]-AAMC_Raw_Data_for_FY22[[#This Row],[Median]])/25)*15) + AAMC_Raw_Data_for_FY22[[#This Row],[Median]]","v":387327},{"$f":"(((AAMC_Raw_Data_for_FY22[[#This Row],[75th]]-AAMC_Raw_Data_for_FY22[[#This Row],[Median]])/25)*20) + AAMC_Raw_Data_for_FY22[[#This Row],[Median]]","v":392186},397045,{"$f":"(((AAMC_Raw_Data_for_FY22[[#This Row],[75th]]-AAMC_Raw_Data_for_FY22[[#This Row],[Median]])/25)*30) + AAMC_Raw_Data_for_FY22[[#This Row],[Median]]","v":401904},{"$f":"(((AAMC_Raw_Data_for_FY22[[#This Row],[75th]]-AAMC_Raw_Data_for_FY22[[#This Row],[Median]])/25)*35) + AAMC_Raw_Data_for_FY22[[#This Row],[Median]]","v":406763},{"$f":"(((AAMC_Raw_Data_for_FY22[[#This Row],[75th]]-AAMC_Raw_Data_for_FY22[[#This Row],[Median]])/25)*40) + AAMC_Raw_Data_for_FY22[[#This Row],[Median]]","v":411622}]
[{"$f":"AAMC_Raw_Data_for_FY22[[#This Row],[Source]]&AAMC_Raw_Data_for_FY22[[#This Row],[Type]]&AAMC_Raw_Data_for_FY22[[#This Row],[School Subset]]&AAMC_Raw_Data_for_FY22[[#This Row],[Rank]]&AAMC_Raw_Data_for_FY22[[#This Row],[Degree]]&AAMC_Raw_Data_for_FY22[[#This Row],[Department / Specialty]]&\"L\"","v":"AAMCAcademicPrivateAssociateMDNuclear MedicineL"},"Nuclear Medicine",3,"AAMC","Academic","Private","Associate","MD","2021-2022",387757,{"$f":"(((AAMC_Raw_Data_for_FY22[[#This Row],[Median]]-AAMC_Raw_Data_for_FY22[[#This Row],[25th]])/25)*5) + AAMC_Raw_Data_for_FY22[[#This Row],[25th]]","v":393408.8},{"$f":"(((AAMC_Raw_Data_for_FY22[[#This Row],[Median]]-AAMC_Raw_Data_for_FY22[[#This Row],[25th]])/25)*10) + AAMC_Raw_Data_for_FY22[[#This Row],[25th]]","v":399060.6},{"$f":"(((AAMC_Raw_Data_for_FY22[[#This Row],[Median]]-AAMC_Raw_Data_for_FY22[[#This Row],[25th]])/25)*15) + AAMC_Raw_Data_for_FY22[[#This Row],[25th]]","v":404712.4},{"$f":"(((AAMC_Raw_Data_for_FY22[[#This Row],[Median]]-AAMC_Raw_Data_for_FY22[[#This Row],[25th]])/25)*20) + AAMC_Raw_Data_for_FY22[[#This Row],[25th]]","v":410364.2},416016,{"$f":"(((AAMC_Raw_Data_for_FY22[[#This Row],[75th]]-AAMC_Raw_Data_for_FY22[[#This Row],[Median]])/25)*5) + AAMC_Raw_Data_for_FY22[[#This Row],[Median]]","v":435817.2},{"$f":"(((AAMC_Raw_Data_for_FY22[[#This Row],[75th]]-AAMC_Raw_Data_for_FY22[[#This Row],[Median]])/25)*10) + AAMC_Raw_Data_for_FY22[[#This Row],[Median]]","v":455618.4},{"$f":"(((AAMC_Raw_Data_for_FY22[[#This Row],[75th]]-AAMC_Raw_Data_for_FY22[[#This Row],[Median]])/25)*15) + AAMC_Raw_Data_for_FY22[[#This Row],[Median]]","v":475419.6},{"$f":"(((AAMC_Raw_Data_for_FY22[[#This Row],[75th]]-AAMC_Raw_Data_for_FY22[[#This Row],[Median]])/25)*20) + AAMC_Raw_Data_for_FY22[[#This Row],[Median]]","v":495220.8},515022,{"$f":"(((AAMC_Raw_Data_for_FY22[[#This Row],[75th]]-AAMC_Raw_Data_for_FY22[[#This Row],[Median]])/25)*30) + AAMC_Raw_Data_for_FY22[[#This Row],[Median]]","v":534823.19999999995},{"$f":"(((AAMC_Raw_Data_for_FY22[[#This Row],[75th]]-AAMC_Raw_Data_for_FY22[[#This Row],[Median]])/25)*35) + AAMC_Raw_Data_for_FY22[[#This Row],[Median]]","v":554624.4},{"$f":"(((AAMC_Raw_Data_for_FY22[[#This Row],[75th]]-AAMC_Raw_Data_for_FY22[[#This Row],[Median]])/25)*40) + AAMC_Raw_Data_for_FY22[[#This Row],[Median]]","v":574425.59999999998}]
[{"$f":"AAMC_Raw_Data_for_FY22[[#This Row],[Source]]&AAMC_Raw_Data_for_FY22[[#This Row],[Type]]&AAMC_Raw_Data_for_FY22[[#This Row],[School Subset]]&AAMC_Raw_Data_for_FY22[[#This Row],[Rank]]&AAMC_Raw_Data_for_FY22[[#This Row],[Degree]]&AAMC_Raw_Data_for_FY22[[#This Row],[Department / Specialty]]&\"L\"","v":"AAMCAcademicPrivateProfessorMDNuclear MedicineL"},"Nuclear Medicine",2,"AAMC","Academic","Private","Professor","MD","2021-2022",342723,{"$f":"(((AAMC_Raw_Data_for_FY22[[#This Row],[Median]]-AAMC_Raw_Data_for_FY22[[#This Row],[25th]])/25)*5) + AAMC_Raw_Data_for_FY22[[#This Row],[25th]]","v":363178.4},{"$f":"(((AAMC_Raw_Data_for_FY22[[#This Row],[Median]]-AAMC_Raw_Data_for_FY22[[#This Row],[25th]])/25)*10) + AAMC_Raw_Data_for_FY22[[#This Row],[25th]]","v":383633.8},{"$f":"(((AAMC_Raw_Data_for_FY22[[#This Row],[Median]]-AAMC_Raw_Data_for_FY22[[#This Row],[25th]])/25)*15) + AAMC_Raw_Data_for_FY22[[#This Row],[25th]]","v":404089.2},{"$f":"(((AAMC_Raw_Data_for_FY22[[#This Row],[Median]]-AAMC_Raw_Data_for_FY22[[#This Row],[25th]])/25)*20) + AAMC_Raw_Data_for_FY22[[#This Row],[25th]]","v":424544.6},445000,{"$f":"(((AAMC_Raw_Data_for_FY22[[#This Row],[75th]]-AAMC_Raw_Data_for_FY22[[#This Row],[Median]])/25)*5) + AAMC_Raw_Data_for_FY22[[#This Row],[Median]]","v":457188},{"$f":"(((AAMC_Raw_Data_for_FY22[[#This Row],[75th]]-AAMC_Raw_Data_for_FY22[[#This Row],[Median]])/25)*10) + AAMC_Raw_Data_for_FY22[[#This Row],[Median]]","v":469376},{"$f":"(((AAMC_Raw_Data_for_FY22[[#This Row],[75th]]-AAMC_Raw_Data_for_FY22[[#This Row],[Median]])/25)*15) + AAMC_Raw_Data_for_FY22[[#This Row],[Median]]","v":481564},{"$f":"(((AAMC_Raw_Data_for_FY22[[#This Row],[75th]]-AAMC_Raw_Data_for_FY22[[#This Row],[Median]])/25)*20) + AAMC_Raw_Data_for_FY22[[#This Row],[Median]]","v":493752},505940,{"$f":"(((AAMC_Raw_Data_for_FY22[[#This Row],[75th]]-AAMC_Raw_Data_for_FY22[[#This Row],[Median]])/25)*30) + AAMC_Raw_Data_for_FY22[[#This Row],[Median]]","v":518128},{"$f":"(((AAMC_Raw_Data_for_FY22[[#This Row],[75th]]-AAMC_Raw_Data_for_FY22[[#This Row],[Median]])/25)*35) + AAMC_Raw_Data_for_FY22[[#This Row],[Median]]","v":530316},{"$f":"(((AAMC_Raw_Data_for_FY22[[#This Row],[75th]]-AAMC_Raw_Data_for_FY22[[#This Row],[Median]])/25)*40) + AAMC_Raw_Data_for_FY22[[#This Row],[Median]]","v":542504}]
[{"$f":"AAMC_Raw_Data_for_FY22[[#This Row],[Source]]&AAMC_Raw_Data_for_FY22[[#This Row],[Type]]&AAMC_Raw_Data_for_FY22[[#This Row],[School Subset]]&AAMC_Raw_Data_for_FY22[[#This Row],[Rank]]&AAMC_Raw_Data_for_FY22[[#This Row],[Degree]]&AAMC_Raw_Data_for_FY22[[#This Row],[Department / Specialty]]&\"L\"","v":"AAMCAcademicPrivateChiefMDNuclear MedicineL"},"Nuclear Medicine",6,"AAMC","Academic","Private","Chief","MD","2021-2022",431026,{"$f":"(((AAMC_Raw_Data_for_FY22[[#This Row],[Median]]-AAMC_Raw_Data_for_FY22[[#This Row],[25th]])/25)*5) + AAMC_Raw_Data_for_FY22[[#This Row],[25th]]","v":435142},{"$f":"(((AAMC_Raw_Data_for_FY22[[#This Row],[Median]]-AAMC_Raw_Data_for_FY22[[#This Row],[25th]])/25)*10) + AAMC_Raw_Data_for_FY22[[#This Row],[25th]]","v":439258},{"$f":"(((AAMC_Raw_Data_for_FY22[[#This Row],[Median]]-AAMC_Raw_Data_for_FY22[[#This Row],[25th]])/25)*15) + AAMC_Raw_Data_for_FY22[[#This Row],[25th]]","v":443374},{"$f":"(((AAMC_Raw_Data_for_FY22[[#This Row],[Median]]-AAMC_Raw_Data_for_FY22[[#This Row],[25th]])/25)*20) + AAMC_Raw_Data_for_FY22[[#This Row],[25th]]","v":447490},451606,{"$f":"(((AAMC_Raw_Data_for_FY22[[#This Row],[75th]]-AAMC_Raw_Data_for_FY22[[#This Row],[Median]])/25)*5) + AAMC_Raw_Data_for_FY22[[#This Row],[Median]]","v":467501.2},{"$f":"(((AAMC_Raw_Data_for_FY22[[#This Row],[75th]]-AAMC_Raw_Data_for_FY22[[#This Row],[Median]])/25)*10) + AAMC_Raw_Data_for_FY22[[#This Row],[Median]]","v":483396.4},{"$f":"(((AAMC_Raw_Data_for_FY22[[#This Row],[75th]]-AAMC_Raw_Data_for_FY22[[#This Row],[Median]])/25)*15) + AAMC_Raw_Data_for_FY22[[#This Row],[Median]]","v":499291.6},{"$f":"(((AAMC_Raw_Data_for_FY22[[#This Row],[75th]]-AAMC_Raw_Data_for_FY22[[#This Row],[Median]])/25)*20) + AAMC_Raw_Data_for_FY22[[#This Row],[Median]]","v":515186.8},531082,{"$f":"(((AAMC_Raw_Data_for_FY22[[#This Row],[75th]]-AAMC_Raw_Data_for_FY22[[#This Row],[Median]])/25)*30) + AAMC_Raw_Data_for_FY22[[#This Row],[Median]]","v":546977.19999999995},{"$f":"(((AAMC_Raw_Data_for_FY22[[#This Row],[75th]]-AAMC_Raw_Data_for_FY22[[#This Row],[Median]])/25)*35) + AAMC_Raw_Data_for_FY22[[#This Row],[Median]]","v":562872.4},{"$f":"(((AAMC_Raw_Data_for_FY22[[#This Row],[75th]]-AAMC_Raw_Data_for_FY22[[#This Row],[Median]])/25)*40) + AAMC_Raw_Data_for_FY22[[#This Row],[Median]]","v":578767.6}]
[{"$f":"AAMC_Raw_Data_for_FY22[[#This Row],[Source]]&AAMC_Raw_Data_for_FY22[[#This Row],[Type]]&AAMC_Raw_Data_for_FY22[[#This Row],[School Subset]]&AAMC_Raw_Data_for_FY22[[#This Row],[Rank]]&AAMC_Raw_Data_for_FY22[[#This Row],[Degree]]&AAMC_Raw_Data_for_FY22[[#This Row],[Department / Specialty]]&\"L\"","v":"AAMCAcademicPrivateChairMDNuclear MedicineL"},"Nuclear Medicine",1,"AAMC","Academic","Private","Chair","MD","2021-2022",null,{"$f":"(((AAMC_Raw_Data_for_FY22[[#This Row],[Median]]-AAMC_Raw_Data_for_FY22[[#This Row],[25th]])/25)*5) + AAMC_Raw_Data_for_FY22[[#This Row],[25th]]","v":0},{"$f":"(((AAMC_Raw_Data_for_FY22[[#This Row],[Median]]-AAMC_Raw_Data_for_FY22[[#This Row],[25th]])/25)*10) + AAMC_Raw_Data_for_FY22[[#This Row],[25th]]","v":0},{"$f":"(((AAMC_Raw_Data_for_FY22[[#This Row],[Median]]-AAMC_Raw_Data_for_FY22[[#This Row],[25th]])/25)*15) + AAMC_Raw_Data_for_FY22[[#This Row],[25th]]","v":0},{"$f":"(((AAMC_Raw_Data_for_FY22[[#This Row],[Median]]-AAMC_Raw_Data_for_FY22[[#This Row],[25th]])/25)*20) + AAMC_Raw_Data_for_FY22[[#This Row],[25th]]","v":0},null,{"$f":"(((AAMC_Raw_Data_for_FY22[[#This Row],[75th]]-AAMC_Raw_Data_for_FY22[[#This Row],[Median]])/25)*5) + AAMC_Raw_Data_for_FY22[[#This Row],[Median]]","v":0},{"$f":"(((AAMC_Raw_Data_for_FY22[[#This Row],[75th]]-AAMC_Raw_Data_for_FY22[[#This Row],[Median]])/25)*10) + AAMC_Raw_Data_for_FY22[[#This Row],[Median]]","v":0},{"$f":"(((AAMC_Raw_Data_for_FY22[[#This Row],[75th]]-AAMC_Raw_Data_for_FY22[[#This Row],[Median]])/25)*15) + AAMC_Raw_Data_for_FY22[[#This Row],[Median]]","v":0},{"$f":"(((AAMC_Raw_Data_for_FY22[[#This Row],[75th]]-AAMC_Raw_Data_for_FY22[[#This Row],[Median]])/25)*20) + AAMC_Raw_Data_for_FY22[[#This Row],[Median]]","v":0},null,{"$f":"(((AAMC_Raw_Data_for_FY22[[#This Row],[75th]]-AAMC_Raw_Data_for_FY22[[#This Row],[Median]])/25)*30) + AAMC_Raw_Data_for_FY22[[#This Row],[Median]]","v":0},{"$f":"(((AAMC_Raw_Data_for_FY22[[#This Row],[75th]]-AAMC_Raw_Data_for_FY22[[#This Row],[Median]])/25)*35) + AAMC_Raw_Data_for_FY22[[#This Row],[Median]]","v":0},{"$f":"(((AAMC_Raw_Data_for_FY22[[#This Row],[75th]]-AAMC_Raw_Data_for_FY22[[#This Row],[Median]])/25)*40) + AAMC_Raw_Data_for_FY22[[#This Row],[Median]]","v":0}]
[{"$f":"AAMC_Raw_Data_for_FY22[[#This Row],[Source]]&AAMC_Raw_Data_for_FY22[[#This Row],[Type]]&AAMC_Raw_Data_for_FY22[[#This Row],[School Subset]]&AAMC_Raw_Data_for_FY22[[#This Row],[Rank]]&AAMC_Raw_Data_for_FY22[[#This Row],[Degree]]&AAMC_Raw_Data_for_FY22[[#This Row],[Department / Specialty]]&\"L\"","v":"AAMCAcademicPrivateInstructorMDRadiation OncologyL"},"Radiation Oncology",5,"AAMC","Academic","Private","Instructor","MD","2021-2022",313657,{"$f":"(((AAMC_Raw_Data_for_FY22[[#This Row],[Median]]-AAMC_Raw_Data_for_FY22[[#This Row],[25th]])/25)*5) + AAMC_Raw_Data_for_FY22[[#This Row],[25th]]","v":325925.59999999998},{"$f":"(((AAMC_Raw_Data_for_FY22[[#This Row],[Median]]-AAMC_Raw_Data_for_FY22[[#This Row],[25th]])/25)*10) + AAMC_Raw_Data_for_FY22[[#This Row],[25th]]","v":338194.2},{"$f":"(((AAMC_Raw_Data_for_FY22[[#This Row],[Median]]-AAMC_Raw_Data_for_FY22[[#This Row],[25th]])/25)*15) + AAMC_Raw_Data_for_FY22[[#This Row],[25th]]","v":350462.8},{"$f":"(((AAMC_Raw_Data_for_FY22[[#This Row],[Median]]-AAMC_Raw_Data_for_FY22[[#This Row],[25th]])/25)*20) + AAMC_Raw_Data_for_FY22[[#This Row],[25th]]","v":362731.4},375000,{"$f":"(((AAMC_Raw_Data_for_FY22[[#This Row],[75th]]-AAMC_Raw_Data_for_FY22[[#This Row],[Median]])/25)*5) + AAMC_Raw_Data_for_FY22[[#This Row],[Median]]","v":401236.6},{"$f":"(((AAMC_Raw_Data_for_FY22[[#This Row],[75th]]-AAMC_Raw_Data_for_FY22[[#This Row],[Median]])/25)*10) + AAMC_Raw_Data_for_FY22[[#This Row],[Median]]","v":427473.2},{"$f":"(((AAMC_Raw_Data_for_FY22[[#This Row],[75th]]-AAMC_Raw_Data_for_FY22[[#This Row],[Median]])/25)*15) + AAMC_Raw_Data_for_FY22[[#This Row],[Median]]","v":453709.8},{"$f":"(((AAMC_Raw_Data_for_FY22[[#This Row],[75th]]-AAMC_Raw_Data_for_FY22[[#This Row],[Median]])/25)*20) + AAMC_Raw_Data_for_FY22[[#This Row],[Median]]","v":479946.4},506183,{"$f":"(((AAMC_Raw_Data_for_FY22[[#This Row],[75th]]-AAMC_Raw_Data_for_FY22[[#This Row],[Median]])/25)*30) + AAMC_Raw_Data_for_FY22[[#This Row],[Median]]","v":532419.6},{"$f":"(((AAMC_Raw_Data_for_FY22[[#This Row],[75th]]-AAMC_Raw_Data_for_FY22[[#This Row],[Median]])/25)*35) + AAMC_Raw_Data_for_FY22[[#This Row],[Median]]","v":558656.19999999995},{"$f":"(((AAMC_Raw_Data_for_FY22[[#This Row],[75th]]-AAMC_Raw_Data_for_FY22[[#This Row],[Median]])/25)*40) + AAMC_Raw_Data_for_FY22[[#This Row],[Median]]","v":584892.80000000005}]
[{"$f":"AAMC_Raw_Data_for_FY22[[#This Row],[Source]]&AAMC_Raw_Data_for_FY22[[#This Row],[Type]]&AAMC_Raw_Data_for_FY22[[#This Row],[School Subset]]&AAMC_Raw_Data_for_FY22[[#This Row],[Rank]]&AAMC_Raw_Data_for_FY22[[#This Row],[Degree]]&AAMC_Raw_Data_for_FY22[[#This Row],[Department / Specialty]]&\"L\"","v":"AAMCAcademicPrivateAssistantMDRadiation OncologyL"},"Radiation Oncology",4,"AAMC","Academic","Private","Assistant","MD","2021-2022",357260,{"$f":"(((AAMC_Raw_Data_for_FY22[[#This Row],[Median]]-AAMC_Raw_Data_for_FY22[[#This Row],[25th]])/25)*5) + AAMC_Raw_Data_for_FY22[[#This Row],[25th]]","v":365946.4},{"$f":"(((AAMC_Raw_Data_for_FY22[[#This Row],[Median]]-AAMC_Raw_Data_for_FY22[[#This Row],[25th]])/25)*10) + AAMC_Raw_Data_for_FY22[[#This Row],[25th]]","v":374632.8},{"$f":"(((AAMC_Raw_Data_for_FY22[[#This Row],[Median]]-AAMC_Raw_Data_for_FY22[[#This Row],[25th]])/25)*15) + AAMC_Raw_Data_for_FY22[[#This Row],[25th]]","v":383319.2},{"$f":"(((AAMC_Raw_Data_for_FY22[[#This Row],[Median]]-AAMC_Raw_Data_for_FY22[[#This Row],[25th]])/25)*20) + AAMC_Raw_Data_for_FY22[[#This Row],[25th]]","v":392005.6},400692,{"$f":"(((AAMC_Raw_Data_for_FY22[[#This Row],[75th]]-AAMC_Raw_Data_for_FY22[[#This Row],[Median]])/25)*5) + AAMC_Raw_Data_for_FY22[[#This Row],[Median]]","v":414389.8},{"$f":"(((AAMC_Raw_Data_for_FY22[[#This Row],[75th]]-AAMC_Raw_Data_for_FY22[[#This Row],[Median]])/25)*10) + AAMC_Raw_Data_for_FY22[[#This Row],[Median]]","v":428087.6},{"$f":"(((AAMC_Raw_Data_for_FY22[[#This Row],[75th]]-AAMC_Raw_Data_for_FY22[[#This Row],[Median]])/25)*15) + AAMC_Raw_Data_for_FY22[[#This Row],[Median]]","v":441785.4},{"$f":"(((AAMC_Raw_Data_for_FY22[[#This Row],[75th]]-AAMC_Raw_Data_for_FY22[[#This Row],[Median]])/25)*20) + AAMC_Raw_Data_for_FY22[[#This Row],[Median]]","v":455483.2},469181,{"$f":"(((AAMC_Raw_Data_for_FY22[[#This Row],[75th]]-AAMC_Raw_Data_for_FY22[[#This Row],[Median]])/25)*30) + AAMC_Raw_Data_for_FY22[[#This Row],[Median]]","v":482878.8},{"$f":"(((AAMC_Raw_Data_for_FY22[[#This Row],[75th]]-AAMC_Raw_Data_for_FY22[[#This Row],[Median]])/25)*35) + AAMC_Raw_Data_for_FY22[[#This Row],[Median]]","v":496576.6},{"$f":"(((AAMC_Raw_Data_for_FY22[[#This Row],[75th]]-AAMC_Raw_Data_for_FY22[[#This Row],[Median]])/25)*40) + AAMC_Raw_Data_for_FY22[[#This Row],[Median]]","v":510274.4}]
[{"$f":"AAMC_Raw_Data_for_FY22[[#This Row],[Source]]&AAMC_Raw_Data_for_FY22[[#This Row],[Type]]&AAMC_Raw_Data_for_FY22[[#This Row],[School Subset]]&AAMC_Raw_Data_for_FY22[[#This Row],[Rank]]&AAMC_Raw_Data_for_FY22[[#This Row],[Degree]]&AAMC_Raw_Data_for_FY22[[#This Row],[Department / Specialty]]&\"L\"","v":"AAMCAcademicPrivateAssociateMDRadiation OncologyL"},"Radiation Oncology",3,"AAMC","Academic","Private","Associate","MD","2021-2022",459117,{"$f":"(((AAMC_Raw_Data_for_FY22[[#This Row],[Median]]-AAMC_Raw_Data_for_FY22[[#This Row],[25th]])/25)*5) + AAMC_Raw_Data_for_FY22[[#This Row],[25th]]","v":471102.2},{"$f":"(((AAMC_Raw_Data_for_FY22[[#This Row],[Median]]-AAMC_Raw_Data_for_FY22[[#This Row],[25th]])/25)*10) + AAMC_Raw_Data_for_FY22[[#This Row],[25th]]","v":483087.4},{"$f":"(((AAMC_Raw_Data_for_FY22[[#This Row],[Median]]-AAMC_Raw_Data_for_FY22[[#This Row],[25th]])/25)*15) + AAMC_Raw_Data_for_FY22[[#This Row],[25th]]","v":495072.6},{"$f":"(((AAMC_Raw_Data_for_FY22[[#This Row],[Median]]-AAMC_Raw_Data_for_FY22[[#This Row],[25th]])/25)*20) + AAMC_Raw_Data_for_FY22[[#This Row],[25th]]","v":507057.8},519043,{"$f":"(((AAMC_Raw_Data_for_FY22[[#This Row],[75th]]-AAMC_Raw_Data_for_FY22[[#This Row],[Median]])/25)*5) + AAMC_Raw_Data_for_FY22[[#This Row],[Median]]","v":530071},{"$f":"(((AAMC_Raw_Data_for_FY22[[#This Row],[75th]]-AAMC_Raw_Data_for_FY22[[#This Row],[Median]])/25)*10) + AAMC_Raw_Data_for_FY22[[#This Row],[Median]]","v":541099},{"$f":"(((AAMC_Raw_Data_for_FY22[[#This Row],[75th]]-AAMC_Raw_Data_for_FY22[[#This Row],[Median]])/25)*15) + AAMC_Raw_Data_for_FY22[[#This Row],[Median]]","v":552127},{"$f":"(((AAMC_Raw_Data_for_FY22[[#This Row],[75th]]-AAMC_Raw_Data_for_FY22[[#This Row],[Median]])/25)*20) + AAMC_Raw_Data_for_FY22[[#This Row],[Median]]","v":563155},574183,{"$f":"(((AAMC_Raw_Data_for_FY22[[#This Row],[75th]]-AAMC_Raw_Data_for_FY22[[#This Row],[Median]])/25)*30) + AAMC_Raw_Data_for_FY22[[#This Row],[Median]]","v":585211},{"$f":"(((AAMC_Raw_Data_for_FY22[[#This Row],[75th]]-AAMC_Raw_Data_for_FY22[[#This Row],[Median]])/25)*35) + AAMC_Raw_Data_for_FY22[[#This Row],[Median]]","v":596239},{"$f":"(((AAMC_Raw_Data_for_FY22[[#This Row],[75th]]-AAMC_Raw_Data_for_FY22[[#This Row],[Median]])/25)*40) + AAMC_Raw_Data_for_FY22[[#This Row],[Median]]","v":607267}]
[{"$f":"AAMC_Raw_Data_for_FY22[[#This Row],[Source]]&AAMC_Raw_Data_for_FY22[[#This Row],[Type]]&AAMC_Raw_Data_for_FY22[[#This Row],[School Subset]]&AAMC_Raw_Data_for_FY22[[#This Row],[Rank]]&AAMC_Raw_Data_for_FY22[[#This Row],[Degree]]&AAMC_Raw_Data_for_FY22[[#This Row],[Department / Specialty]]&\"L\"","v":"AAMCAcademicPrivateProfessorMDRadiation OncologyL"},"Radiation Oncology",2,"AAMC","Academic","Private","Professor","MD","2021-2022",488934,{"$f":"(((AAMC_Raw_Data_for_FY22[[#This Row],[Median]]-AAMC_Raw_Data_for_FY22[[#This Row],[25th]])/25)*5) + AAMC_Raw_Data_for_FY22[[#This Row],[25th]]","v":505897.8},{"$f":"(((AAMC_Raw_Data_for_FY22[[#This Row],[Median]]-AAMC_Raw_Data_for_FY22[[#This Row],[25th]])/25)*10) + AAMC_Raw_Data_for_FY22[[#This Row],[25th]]","v":522861.6},{"$f":"(((AAMC_Raw_Data_for_FY22[[#This Row],[Median]]-AAMC_Raw_Data_for_FY22[[#This Row],[25th]])/25)*15) + AAMC_Raw_Data_for_FY22[[#This Row],[25th]]","v":539825.4},{"$f":"(((AAMC_Raw_Data_for_FY22[[#This Row],[Median]]-AAMC_Raw_Data_for_FY22[[#This Row],[25th]])/25)*20) + AAMC_Raw_Data_for_FY22[[#This Row],[25th]]","v":556789.19999999995},573753,{"$f":"(((AAMC_Raw_Data_for_FY22[[#This Row],[75th]]-AAMC_Raw_Data_for_FY22[[#This Row],[Median]])/25)*5) + AAMC_Raw_Data_for_FY22[[#This Row],[Median]]","v":586303},{"$f":"(((AAMC_Raw_Data_for_FY22[[#This Row],[75th]]-AAMC_Raw_Data_for_FY22[[#This Row],[Median]])/25)*10) + AAMC_Raw_Data_for_FY22[[#This Row],[Median]]","v":598853},{"$f":"(((AAMC_Raw_Data_for_FY22[[#This Row],[75th]]-AAMC_Raw_Data_for_FY22[[#This Row],[Median]])/25)*15) + AAMC_Raw_Data_for_FY22[[#This Row],[Median]]","v":611403},{"$f":"(((AAMC_Raw_Data_for_FY22[[#This Row],[75th]]-AAMC_Raw_Data_for_FY22[[#This Row],[Median]])/25)*20) + AAMC_Raw_Data_for_FY22[[#This Row],[Median]]","v":623953},636503,{"$f":"(((AAMC_Raw_Data_for_FY22[[#This Row],[75th]]-AAMC_Raw_Data_for_FY22[[#This Row],[Median]])/25)*30) + AAMC_Raw_Data_for_FY22[[#This Row],[Median]]","v":649053},{"$f":"(((AAMC_Raw_Data_for_FY22[[#This Row],[75th]]-AAMC_Raw_Data_for_FY22[[#This Row],[Median]])/25)*35) + AAMC_Raw_Data_for_FY22[[#This Row],[Median]]","v":661603},{"$f":"(((AAMC_Raw_Data_for_FY22[[#This Row],[75th]]-AAMC_Raw_Data_for_FY22[[#This Row],[Median]])/25)*40) + AAMC_Raw_Data_for_FY22[[#This Row],[Median]]","v":674153}]
[{"$f":"AAMC_Raw_Data_for_FY22[[#This Row],[Source]]&AAMC_Raw_Data_for_FY22[[#This Row],[Type]]&AAMC_Raw_Data_for_FY22[[#This Row],[School Subset]]&AAMC_Raw_Data_for_FY22[[#This Row],[Rank]]&AAMC_Raw_Data_for_FY22[[#This Row],[Degree]]&AAMC_Raw_Data_for_FY22[[#This Row],[Department / Specialty]]&\"L\"","v":"AAMCAcademicPrivateChiefMDRadiation OncologyL"},"Radiation Oncology",6,"AAMC","Academic","Private","Chief","MD","2021-2022",571524,{"$f":"(((AAMC_Raw_Data_for_FY22[[#This Row],[Median]]-AAMC_Raw_Data_for_FY22[[#This Row],[25th]])/25)*5) + AAMC_Raw_Data_for_FY22[[#This Row],[25th]]","v":580603.80000000005},{"$f":"(((AAMC_Raw_Data_for_FY22[[#This Row],[Median]]-AAMC_Raw_Data_for_FY22[[#This Row],[25th]])/25)*10) + AAMC_Raw_Data_for_FY22[[#This Row],[25th]]","v":589683.6},{"$f":"(((AAMC_Raw_Data_for_FY22[[#This Row],[Median]]-AAMC_Raw_Data_for_FY22[[#This Row],[25th]])/25)*15) + AAMC_Raw_Data_for_FY22[[#This Row],[25th]]","v":598763.4},{"$f":"(((AAMC_Raw_Data_for_FY22[[#This Row],[Median]]-AAMC_Raw_Data_for_FY22[[#This Row],[25th]])/25)*20) + AAMC_Raw_Data_for_FY22[[#This Row],[25th]]","v":607843.19999999995},616923,{"$f":"(((AAMC_Raw_Data_for_FY22[[#This Row],[75th]]-AAMC_Raw_Data_for_FY22[[#This Row],[Median]])/25)*5) + AAMC_Raw_Data_for_FY22[[#This Row],[Median]]","v":650248.6},{"$f":"(((AAMC_Raw_Data_for_FY22[[#This Row],[75th]]-AAMC_Raw_Data_for_FY22[[#This Row],[Median]])/25)*10) + AAMC_Raw_Data_for_FY22[[#This Row],[Median]]","v":683574.2},{"$f":"(((AAMC_Raw_Data_for_FY22[[#This Row],[75th]]-AAMC_Raw_Data_for_FY22[[#This Row],[Median]])/25)*15) + AAMC_Raw_Data_for_FY22[[#This Row],[Median]]","v":716899.8},{"$f":"(((AAMC_Raw_Data_for_FY22[[#This Row],[75th]]-AAMC_Raw_Data_for_FY22[[#This Row],[Median]])/25)*20) + AAMC_Raw_Data_for_FY22[[#This Row],[Median]]","v":750225.4},783551,{"$f":"(((AAMC_Raw_Data_for_FY22[[#This Row],[75th]]-AAMC_Raw_Data_for_FY22[[#This Row],[Median]])/25)*30) + AAMC_Raw_Data_for_FY22[[#This Row],[Median]]","v":816876.6},{"$f":"(((AAMC_Raw_Data_for_FY22[[#This Row],[75th]]-AAMC_Raw_Data_for_FY22[[#This Row],[Median]])/25)*35) + AAMC_Raw_Data_for_FY22[[#This Row],[Median]]","v":850202.2},{"$f":"(((AAMC_Raw_Data_for_FY22[[#This Row],[75th]]-AAMC_Raw_Data_for_FY22[[#This Row],[Median]])/25)*40) + AAMC_Raw_Data_for_FY22[[#This Row],[Median]]","v":883527.8}]
[{"$f":"AAMC_Raw_Data_for_FY22[[#This Row],[Source]]&AAMC_Raw_Data_for_FY22[[#This Row],[Type]]&AAMC_Raw_Data_for_FY22[[#This Row],[School Subset]]&AAMC_Raw_Data_for_FY22[[#This Row],[Rank]]&AAMC_Raw_Data_for_FY22[[#This Row],[Degree]]&AAMC_Raw_Data_for_FY22[[#This Row],[Department / Specialty]]&\"L\"","v":"AAMCAcademicPrivateChairMDRadiation OncologyL"},"Radiation Oncology",1,"AAMC","Academic","Private","Chair","MD","2021-2022",810821,{"$f":"(((AAMC_Raw_Data_for_FY22[[#This Row],[Median]]-AAMC_Raw_Data_for_FY22[[#This Row],[25th]])/25)*5) + AAMC_Raw_Data_for_FY22[[#This Row],[25th]]","v":826498.4},{"$f":"(((AAMC_Raw_Data_for_FY22[[#This Row],[Median]]-AAMC_Raw_Data_for_FY22[[#This Row],[25th]])/25)*10) + AAMC_Raw_Data_for_FY22[[#This Row],[25th]]","v":842175.8},{"$f":"(((AAMC_Raw_Data_for_FY22[[#This Row],[Median]]-AAMC_Raw_Data_for_FY22[[#This Row],[25th]])/25)*15) + AAMC_Raw_Data_for_FY22[[#This Row],[25th]]","v":857853.2},{"$f":"(((AAMC_Raw_Data_for_FY22[[#This Row],[Median]]-AAMC_Raw_Data_for_FY22[[#This Row],[25th]])/25)*20) + AAMC_Raw_Data_for_FY22[[#This Row],[25th]]","v":873530.6},889208,{"$f":"(((AAMC_Raw_Data_for_FY22[[#This Row],[75th]]-AAMC_Raw_Data_for_FY22[[#This Row],[Median]])/25)*5) + AAMC_Raw_Data_for_FY22[[#This Row],[Median]]","v":919824.2},{"$f":"(((AAMC_Raw_Data_for_FY22[[#This Row],[75th]]-AAMC_Raw_Data_for_FY22[[#This Row],[Median]])/25)*10) + AAMC_Raw_Data_for_FY22[[#This Row],[Median]]","v":950440.4},{"$f":"(((AAMC_Raw_Data_for_FY22[[#This Row],[75th]]-AAMC_Raw_Data_for_FY22[[#This Row],[Median]])/25)*15) + AAMC_Raw_Data_for_FY22[[#This Row],[Median]]","v":981056.6},{"$f":"(((AAMC_Raw_Data_for_FY22[[#This Row],[75th]]-AAMC_Raw_Data_for_FY22[[#This Row],[Median]])/25)*20) + AAMC_Raw_Data_for_FY22[[#This Row],[Median]]","v":1011672.8},1042289,{"$f":"(((AAMC_Raw_Data_for_FY22[[#This Row],[75th]]-AAMC_Raw_Data_for_FY22[[#This Row],[Median]])/25)*30) + AAMC_Raw_Data_for_FY22[[#This Row],[Median]]","v":1072905.2},{"$f":"(((AAMC_Raw_Data_for_FY22[[#This Row],[75th]]-AAMC_Raw_Data_for_FY22[[#This Row],[Median]])/25)*35) + AAMC_Raw_Data_for_FY22[[#This Row],[Median]]","v":1103521.3999999999},{"$f":"(((AAMC_Raw_Data_for_FY22[[#This Row],[75th]]-AAMC_Raw_Data_for_FY22[[#This Row],[Median]])/25)*40) + AAMC_Raw_Data_for_FY22[[#This Row],[Median]]","v":1134137.6000000001}]
[{"$f":"AAMC_Raw_Data_for_FY22[[#This Row],[Source]]&AAMC_Raw_Data_for_FY22[[#This Row],[Type]]&AAMC_Raw_Data_for_FY22[[#This Row],[School Subset]]&AAMC_Raw_Data_for_FY22[[#This Row],[Rank]]&AAMC_Raw_Data_for_FY22[[#This Row],[Degree]]&AAMC_Raw_Data_for_FY22[[#This Row],[Department / Specialty]]&\"L\"","v":"AAMCAcademicPrivateInstructorMDOther RadiologyL"},"Other Radiology",5,"AAMC","Academic","Private","Instructor","MD","2021-2022",263866,{"$f":"(((AAMC_Raw_Data_for_FY22[[#This Row],[Median]]-AAMC_Raw_Data_for_FY22[[#This Row],[25th]])/25)*5) + AAMC_Raw_Data_for_FY22[[#This Row],[25th]]","v":274067},{"$f":"(((AAMC_Raw_Data_for_FY22[[#This Row],[Median]]-AAMC_Raw_Data_for_FY22[[#This Row],[25th]])/25)*10) + AAMC_Raw_Data_for_FY22[[#This Row],[25th]]","v":284268},{"$f":"(((AAMC_Raw_Data_for_FY22[[#This Row],[Median]]-AAMC_Raw_Data_for_FY22[[#This Row],[25th]])/25)*15) + AAMC_Raw_Data_for_FY22[[#This Row],[25th]]","v":294469},{"$f":"(((AAMC_Raw_Data_for_FY22[[#This Row],[Median]]-AAMC_Raw_Data_for_FY22[[#This Row],[25th]])/25)*20) + AAMC_Raw_Data_for_FY22[[#This Row],[25th]]","v":304670},314871,{"$f":"(((AAMC_Raw_Data_for_FY22[[#This Row],[75th]]-AAMC_Raw_Data_for_FY22[[#This Row],[Median]])/25)*5) + AAMC_Raw_Data_for_FY22[[#This Row],[Median]]","v":340150},{"$f":"(((AAMC_Raw_Data_for_FY22[[#This Row],[75th]]-AAMC_Raw_Data_for_FY22[[#This Row],[Median]])/25)*10) + AAMC_Raw_Data_for_FY22[[#This Row],[Median]]","v":365429},{"$f":"(((AAMC_Raw_Data_for_FY22[[#This Row],[75th]]-AAMC_Raw_Data_for_FY22[[#This Row],[Median]])/25)*15) + AAMC_Raw_Data_for_FY22[[#This Row],[Median]]","v":390708},{"$f":"(((AAMC_Raw_Data_for_FY22[[#This Row],[75th]]-AAMC_Raw_Data_for_FY22[[#This Row],[Median]])/25)*20) + AAMC_Raw_Data_for_FY22[[#This Row],[Median]]","v":415987},441266,{"$f":"(((AAMC_Raw_Data_for_FY22[[#This Row],[75th]]-AAMC_Raw_Data_for_FY22[[#This Row],[Median]])/25)*30) + AAMC_Raw_Data_for_FY22[[#This Row],[Median]]","v":466545},{"$f":"(((AAMC_Raw_Data_for_FY22[[#This Row],[75th]]-AAMC_Raw_Data_for_FY22[[#This Row],[Median]])/25)*35) + AAMC_Raw_Data_for_FY22[[#This Row],[Median]]","v":491824},{"$f":"(((AAMC_Raw_Data_for_FY22[[#This Row],[75th]]-AAMC_Raw_Data_for_FY22[[#This Row],[Median]])/25)*40) + AAMC_Raw_Data_for_FY22[[#This Row],[Median]]","v":517103}]
[{"$f":"AAMC_Raw_Data_for_FY22[[#This Row],[Source]]&AAMC_Raw_Data_for_FY22[[#This Row],[Type]]&AAMC_Raw_Data_for_FY22[[#This Row],[School Subset]]&AAMC_Raw_Data_for_FY22[[#This Row],[Rank]]&AAMC_Raw_Data_for_FY22[[#This Row],[Degree]]&AAMC_Raw_Data_for_FY22[[#This Row],[Department / Specialty]]&\"L\"","v":"AAMCAcademicPrivateAssistantMDOther RadiologyL"},"Other Radiology",4,"AAMC","Academic","Private","Assistant","MD","2021-2022",367331,{"$f":"(((AAMC_Raw_Data_for_FY22[[#This Row],[Median]]-AAMC_Raw_Data_for_FY22[[#This Row],[25th]])/25)*5) + AAMC_Raw_Data_for_FY22[[#This Row],[25th]]","v":377305.59999999998},{"$f":"(((AAMC_Raw_Data_for_FY22[[#This Row],[Median]]-AAMC_Raw_Data_for_FY22[[#This Row],[25th]])/25)*10) + AAMC_Raw_Data_for_FY22[[#This Row],[25th]]","v":387280.2},{"$f":"(((AAMC_Raw_Data_for_FY22[[#This Row],[Median]]-AAMC_Raw_Data_for_FY22[[#This Row],[25th]])/25)*15) + AAMC_Raw_Data_for_FY22[[#This Row],[25th]]","v":397254.8},{"$f":"(((AAMC_Raw_Data_for_FY22[[#This Row],[Median]]-AAMC_Raw_Data_for_FY22[[#This Row],[25th]])/25)*20) + AAMC_Raw_Data_for_FY22[[#This Row],[25th]]","v":407229.4},417204,{"$f":"(((AAMC_Raw_Data_for_FY22[[#This Row],[75th]]-AAMC_Raw_Data_for_FY22[[#This Row],[Median]])/25)*5) + AAMC_Raw_Data_for_FY22[[#This Row],[Median]]","v":426934},{"$f":"(((AAMC_Raw_Data_for_FY22[[#This Row],[75th]]-AAMC_Raw_Data_for_FY22[[#This Row],[Median]])/25)*10) + AAMC_Raw_Data_for_FY22[[#This Row],[Median]]","v":436664},{"$f":"(((AAMC_Raw_Data_for_FY22[[#This Row],[75th]]-AAMC_Raw_Data_for_FY22[[#This Row],[Median]])/25)*15) + AAMC_Raw_Data_for_FY22[[#This Row],[Median]]","v":446394},{"$f":"(((AAMC_Raw_Data_for_FY22[[#This Row],[75th]]-AAMC_Raw_Data_for_FY22[[#This Row],[Median]])/25)*20) + AAMC_Raw_Data_for_FY22[[#This Row],[Median]]","v":456124},465854,{"$f":"(((AAMC_Raw_Data_for_FY22[[#This Row],[75th]]-AAMC_Raw_Data_for_FY22[[#This Row],[Median]])/25)*30) + AAMC_Raw_Data_for_FY22[[#This Row],[Median]]","v":475584},{"$f":"(((AAMC_Raw_Data_for_FY22[[#This Row],[75th]]-AAMC_Raw_Data_for_FY22[[#This Row],[Median]])/25)*35) + AAMC_Raw_Data_for_FY22[[#This Row],[Median]]","v":485314},{"$f":"(((AAMC_Raw_Data_for_FY22[[#This Row],[75th]]-AAMC_Raw_Data_for_FY22[[#This Row],[Median]])/25)*40) + AAMC_Raw_Data_for_FY22[[#This Row],[Median]]","v":495044}]
[{"$f":"AAMC_Raw_Data_for_FY22[[#This Row],[Source]]&AAMC_Raw_Data_for_FY22[[#This Row],[Type]]&AAMC_Raw_Data_for_FY22[[#This Row],[School Subset]]&AAMC_Raw_Data_for_FY22[[#This Row],[Rank]]&AAMC_Raw_Data_for_FY22[[#This Row],[Degree]]&AAMC_Raw_Data_for_FY22[[#This Row],[Department / Specialty]]&\"L\"","v":"AAMCAcademicPrivateAssociateMDOther RadiologyL"},"Other Radiology",3,"AAMC","Academic","Private","Associate","MD","2021-2022",424828,{"$f":"(((AAMC_Raw_Data_for_FY22[[#This Row],[Median]]-AAMC_Raw_Data_for_FY22[[#This Row],[25th]])/25)*5) + AAMC_Raw_Data_for_FY22[[#This Row],[25th]]","v":431458.4},{"$f":"(((AAMC_Raw_Data_for_FY22[[#This Row],[Median]]-AAMC_Raw_Data_for_FY22[[#This Row],[25th]])/25)*10) + AAMC_Raw_Data_for_FY22[[#This Row],[25th]]","v":438088.8},{"$f":"(((AAMC_Raw_Data_for_FY22[[#This Row],[Median]]-AAMC_Raw_Data_for_FY22[[#This Row],[25th]])/25)*15) + AAMC_Raw_Data_for_FY22[[#This Row],[25th]]","v":444719.2},{"$f":"(((AAMC_Raw_Data_for_FY22[[#This Row],[Median]]-AAMC_Raw_Data_for_FY22[[#This Row],[25th]])/25)*20) + AAMC_Raw_Data_for_FY22[[#This Row],[25th]]","v":451349.6},457980,{"$f":"(((AAMC_Raw_Data_for_FY22[[#This Row],[75th]]-AAMC_Raw_Data_for_FY22[[#This Row],[Median]])/25)*5) + AAMC_Raw_Data_for_FY22[[#This Row],[Median]]","v":471063},{"$f":"(((AAMC_Raw_Data_for_FY22[[#This Row],[75th]]-AAMC_Raw_Data_for_FY22[[#This Row],[Median]])/25)*10) + AAMC_Raw_Data_for_FY22[[#This Row],[Median]]","v":484146},{"$f":"(((AAMC_Raw_Data_for_FY22[[#This Row],[75th]]-AAMC_Raw_Data_for_FY22[[#This Row],[Median]])/25)*15) + AAMC_Raw_Data_for_FY22[[#This Row],[Median]]","v":497229},{"$f":"(((AAMC_Raw_Data_for_FY22[[#This Row],[75th]]-AAMC_Raw_Data_for_FY22[[#This Row],[Median]])/25)*20) + AAMC_Raw_Data_for_FY22[[#This Row],[Median]]","v":510312},523395,{"$f":"(((AAMC_Raw_Data_for_FY22[[#This Row],[75th]]-AAMC_Raw_Data_for_FY22[[#This Row],[Median]])/25)*30) + AAMC_Raw_Data_for_FY22[[#This Row],[Median]]","v":536478},{"$f":"(((AAMC_Raw_Data_for_FY22[[#This Row],[75th]]-AAMC_Raw_Data_for_FY22[[#This Row],[Median]])/25)*35) + AAMC_Raw_Data_for_FY22[[#This Row],[Median]]","v":549561},{"$f":"(((AAMC_Raw_Data_for_FY22[[#This Row],[75th]]-AAMC_Raw_Data_for_FY22[[#This Row],[Median]])/25)*40) + AAMC_Raw_Data_for_FY22[[#This Row],[Median]]","v":562644}]
[{"$f":"AAMC_Raw_Data_for_FY22[[#This Row],[Source]]&AAMC_Raw_Data_for_FY22[[#This Row],[Type]]&AAMC_Raw_Data_for_FY22[[#This Row],[School Subset]]&AAMC_Raw_Data_for_FY22[[#This Row],[Rank]]&AAMC_Raw_Data_for_FY22[[#This Row],[Degree]]&AAMC_Raw_Data_for_FY22[[#This Row],[Department / Specialty]]&\"L\"","v":"AAMCAcademicPrivateProfessorMDOther RadiologyL"},"Other Radiology",2,"AAMC","Academic","Private","Professor","MD","2021-2022",392550,{"$f":"(((AAMC_Raw_Data_for_FY22[[#This Row],[Median]]-AAMC_Raw_Data_for_FY22[[#This Row],[25th]])/25)*5) + AAMC_Raw_Data_for_FY22[[#This Row],[25th]]","v":403763.4},{"$f":"(((AAMC_Raw_Data_for_FY22[[#This Row],[Median]]-AAMC_Raw_Data_for_FY22[[#This Row],[25th]])/25)*10) + AAMC_Raw_Data_for_FY22[[#This Row],[25th]]","v":414976.8},{"$f":"(((AAMC_Raw_Data_for_FY22[[#This Row],[Median]]-AAMC_Raw_Data_for_FY22[[#This Row],[25th]])/25)*15) + AAMC_Raw_Data_for_FY22[[#This Row],[25th]]","v":426190.2},{"$f":"(((AAMC_Raw_Data_for_FY22[[#This Row],[Median]]-AAMC_Raw_Data_for_FY22[[#This Row],[25th]])/25)*20) + AAMC_Raw_Data_for_FY22[[#This Row],[25th]]","v":437403.6},448617,{"$f":"(((AAMC_Raw_Data_for_FY22[[#This Row],[75th]]-AAMC_Raw_Data_for_FY22[[#This Row],[Median]])/25)*5) + AAMC_Raw_Data_for_FY22[[#This Row],[Median]]","v":464260.8},{"$f":"(((AAMC_Raw_Data_for_FY22[[#This Row],[75th]]-AAMC_Raw_Data_for_FY22[[#This Row],[Median]])/25)*10) + AAMC_Raw_Data_for_FY22[[#This Row],[Median]]","v":479904.6},{"$f":"(((AAMC_Raw_Data_for_FY22[[#This Row],[75th]]-AAMC_Raw_Data_for_FY22[[#This Row],[Median]])/25)*15) + AAMC_Raw_Data_for_FY22[[#This Row],[Median]]","v":495548.4},{"$f":"(((AAMC_Raw_Data_for_FY22[[#This Row],[75th]]-AAMC_Raw_Data_for_FY22[[#This Row],[Median]])/25)*20) + AAMC_Raw_Data_for_FY22[[#This Row],[Median]]","v":511192.2},526836,{"$f":"(((AAMC_Raw_Data_for_FY22[[#This Row],[75th]]-AAMC_Raw_Data_for_FY22[[#This Row],[Median]])/25)*30) + AAMC_Raw_Data_for_FY22[[#This Row],[Median]]","v":542479.80000000005},{"$f":"(((AAMC_Raw_Data_for_FY22[[#This Row],[75th]]-AAMC_Raw_Data_for_FY22[[#This Row],[Median]])/25)*35) + AAMC_Raw_Data_for_FY22[[#This Row],[Median]]","v":558123.6},{"$f":"(((AAMC_Raw_Data_for_FY22[[#This Row],[75th]]-AAMC_Raw_Data_for_FY22[[#This Row],[Median]])/25)*40) + AAMC_Raw_Data_for_FY22[[#This Row],[Median]]","v":573767.4}]
[{"$f":"AAMC_Raw_Data_for_FY22[[#This Row],[Source]]&AAMC_Raw_Data_for_FY22[[#This Row],[Type]]&AAMC_Raw_Data_for_FY22[[#This Row],[School Subset]]&AAMC_Raw_Data_for_FY22[[#This Row],[Rank]]&AAMC_Raw_Data_for_FY22[[#This Row],[Degree]]&AAMC_Raw_Data_for_FY22[[#This Row],[Department / Specialty]]&\"L\"","v":"AAMCAcademicPrivateChiefMDOther RadiologyL"},"Other Radiology",6,"AAMC","Academic","Private","Chief","MD","2021-2022",466727,{"$f":"(((AAMC_Raw_Data_for_FY22[[#This Row],[Median]]-AAMC_Raw_Data_for_FY22[[#This Row],[25th]])/25)*5) + AAMC_Raw_Data_for_FY22[[#This Row],[25th]]","v":472630.4},{"$f":"(((AAMC_Raw_Data_for_FY22[[#This Row],[Median]]-AAMC_Raw_Data_for_FY22[[#This Row],[25th]])/25)*10) + AAMC_Raw_Data_for_FY22[[#This Row],[25th]]","v":478533.8},{"$f":"(((AAMC_Raw_Data_for_FY22[[#This Row],[Median]]-AAMC_Raw_Data_for_FY22[[#This Row],[25th]])/25)*15) + AAMC_Raw_Data_for_FY22[[#This Row],[25th]]","v":484437.2},{"$f":"(((AAMC_Raw_Data_for_FY22[[#This Row],[Median]]-AAMC_Raw_Data_for_FY22[[#This Row],[25th]])/25)*20) + AAMC_Raw_Data_for_FY22[[#This Row],[25th]]","v":490340.6},496244,{"$f":"(((AAMC_Raw_Data_for_FY22[[#This Row],[75th]]-AAMC_Raw_Data_for_FY22[[#This Row],[Median]])/25)*5) + AAMC_Raw_Data_for_FY22[[#This Row],[Median]]","v":518697.4},{"$f":"(((AAMC_Raw_Data_for_FY22[[#This Row],[75th]]-AAMC_Raw_Data_for_FY22[[#This Row],[Median]])/25)*10) + AAMC_Raw_Data_for_FY22[[#This Row],[Median]]","v":541150.80000000005},{"$f":"(((AAMC_Raw_Data_for_FY22[[#This Row],[75th]]-AAMC_Raw_Data_for_FY22[[#This Row],[Median]])/25)*15) + AAMC_Raw_Data_for_FY22[[#This Row],[Median]]","v":563604.19999999995},{"$f":"(((AAMC_Raw_Data_for_FY22[[#This Row],[75th]]-AAMC_Raw_Data_for_FY22[[#This Row],[Median]])/25)*20) + AAMC_Raw_Data_for_FY22[[#This Row],[Median]]","v":586057.6},608511,{"$f":"(((AAMC_Raw_Data_for_FY22[[#This Row],[75th]]-AAMC_Raw_Data_for_FY22[[#This Row],[Median]])/25)*30) + AAMC_Raw_Data_for_FY22[[#This Row],[Median]]","v":630964.4},{"$f":"(((AAMC_Raw_Data_for_FY22[[#This Row],[75th]]-AAMC_Raw_Data_for_FY22[[#This Row],[Median]])/25)*35) + AAMC_Raw_Data_for_FY22[[#This Row],[Median]]","v":653417.80000000005},{"$f":"(((AAMC_Raw_Data_for_FY22[[#This Row],[75th]]-AAMC_Raw_Data_for_FY22[[#This Row],[Median]])/25)*40) + AAMC_Raw_Data_for_FY22[[#This Row],[Median]]","v":675871.2}]
[{"$f":"AAMC_Raw_Data_for_FY22[[#This Row],[Source]]&AAMC_Raw_Data_for_FY22[[#This Row],[Type]]&AAMC_Raw_Data_for_FY22[[#This Row],[School Subset]]&AAMC_Raw_Data_for_FY22[[#This Row],[Rank]]&AAMC_Raw_Data_for_FY22[[#This Row],[Degree]]&AAMC_Raw_Data_for_FY22[[#This Row],[Department / Specialty]]&\"L\"","v":"AAMCAcademicPrivateChairMDOther RadiologyL"},"Other Radiology",1,"AAMC","Academic","Private","Chair","MD","2021-2022",837058,{"$f":"(((AAMC_Raw_Data_for_FY22[[#This Row],[Median]]-AAMC_Raw_Data_for_FY22[[#This Row],[25th]])/25)*5) + AAMC_Raw_Data_for_FY22[[#This Row],[25th]]","v":840920},{"$f":"(((AAMC_Raw_Data_for_FY22[[#This Row],[Median]]-AAMC_Raw_Data_for_FY22[[#This Row],[25th]])/25)*10) + AAMC_Raw_Data_for_FY22[[#This Row],[25th]]","v":844782},{"$f":"(((AAMC_Raw_Data_for_FY22[[#This Row],[Median]]-AAMC_Raw_Data_for_FY22[[#This Row],[25th]])/25)*15) + AAMC_Raw_Data_for_FY22[[#This Row],[25th]]","v":848644},{"$f":"(((AAMC_Raw_Data_for_FY22[[#This Row],[Median]]-AAMC_Raw_Data_for_FY22[[#This Row],[25th]])/25)*20) + AAMC_Raw_Data_for_FY22[[#This Row],[25th]]","v":852506},856368,{"$f":"(((AAMC_Raw_Data_for_FY22[[#This Row],[75th]]-AAMC_Raw_Data_for_FY22[[#This Row],[Median]])/25)*5) + AAMC_Raw_Data_for_FY22[[#This Row],[Median]]","v":873720.4},{"$f":"(((AAMC_Raw_Data_for_FY22[[#This Row],[75th]]-AAMC_Raw_Data_for_FY22[[#This Row],[Median]])/25)*10) + AAMC_Raw_Data_for_FY22[[#This Row],[Median]]","v":891072.8},{"$f":"(((AAMC_Raw_Data_for_FY22[[#This Row],[75th]]-AAMC_Raw_Data_for_FY22[[#This Row],[Median]])/25)*15) + AAMC_Raw_Data_for_FY22[[#This Row],[Median]]","v":908425.2},{"$f":"(((AAMC_Raw_Data_for_FY22[[#This Row],[75th]]-AAMC_Raw_Data_for_FY22[[#This Row],[Median]])/25)*20) + AAMC_Raw_Data_for_FY22[[#This Row],[Median]]","v":925777.6},943130,{"$f":"(((AAMC_Raw_Data_for_FY22[[#This Row],[75th]]-AAMC_Raw_Data_for_FY22[[#This Row],[Median]])/25)*30) + AAMC_Raw_Data_for_FY22[[#This Row],[Median]]","v":960482.4},{"$f":"(((AAMC_Raw_Data_for_FY22[[#This Row],[75th]]-AAMC_Raw_Data_for_FY22[[#This Row],[Median]])/25)*35) + AAMC_Raw_Data_for_FY22[[#This Row],[Median]]","v":977834.8},{"$f":"(((AAMC_Raw_Data_for_FY22[[#This Row],[75th]]-AAMC_Raw_Data_for_FY22[[#This Row],[Median]])/25)*40) + AAMC_Raw_Data_for_FY22[[#This Row],[Median]]","v":995187.19999999995}]
[{"$f":"AAMC_Raw_Data_for_FY22[[#This Row],[Source]]&AAMC_Raw_Data_for_FY22[[#This Row],[Type]]&AAMC_Raw_Data_for_FY22[[#This Row],[School Subset]]&AAMC_Raw_Data_for_FY22[[#This Row],[Rank]]&AAMC_Raw_Data_for_FY22[[#This Row],[Degree]]&AAMC_Raw_Data_for_FY22[[#This Row],[Department / Specialty]]&\"L\"","v":"AAMCAcademicPrivateInstructorMDSurgery TotalL"},"Surgery Total",5,"AAMC","Academic","Private","Instructor","MD","2021-2022",151154,{"$f":"(((AAMC_Raw_Data_for_FY22[[#This Row],[Median]]-AAMC_Raw_Data_for_FY22[[#This Row],[25th]])/25)*5) + AAMC_Raw_Data_for_FY22[[#This Row],[25th]]","v":186848.4},{"$f":"(((AAMC_Raw_Data_for_FY22[[#This Row],[Median]]-AAMC_Raw_Data_for_FY22[[#This Row],[25th]])/25)*10) + AAMC_Raw_Data_for_FY22[[#This Row],[25th]]","v":222542.8},{"$f":"(((AAMC_Raw_Data_for_FY22[[#This Row],[Median]]-AAMC_Raw_Data_for_FY22[[#This Row],[25th]])/25)*15) + AAMC_Raw_Data_for_FY22[[#This Row],[25th]]","v":258237.2},{"$f":"(((AAMC_Raw_Data_for_FY22[[#This Row],[Median]]-AAMC_Raw_Data_for_FY22[[#This Row],[25th]])/25)*20) + AAMC_Raw_Data_for_FY22[[#This Row],[25th]]","v":293931.59999999998},329626,{"$f":"(((AAMC_Raw_Data_for_FY22[[#This Row],[75th]]-AAMC_Raw_Data_for_FY22[[#This Row],[Median]])/25)*5) + AAMC_Raw_Data_for_FY22[[#This Row],[Median]]","v":358700.79999999999},{"$f":"(((AAMC_Raw_Data_for_FY22[[#This Row],[75th]]-AAMC_Raw_Data_for_FY22[[#This Row],[Median]])/25)*10) + AAMC_Raw_Data_for_FY22[[#This Row],[Median]]","v":387775.6},{"$f":"(((AAMC_Raw_Data_for_FY22[[#This Row],[75th]]-AAMC_Raw_Data_for_FY22[[#This Row],[Median]])/25)*15) + AAMC_Raw_Data_for_FY22[[#This Row],[Median]]","v":416850.4},{"$f":"(((AAMC_Raw_Data_for_FY22[[#This Row],[75th]]-AAMC_Raw_Data_for_FY22[[#This Row],[Median]])/25)*20) + AAMC_Raw_Data_for_FY22[[#This Row],[Median]]","v":445925.2},475000,{"$f":"(((AAMC_Raw_Data_for_FY22[[#This Row],[75th]]-AAMC_Raw_Data_for_FY22[[#This Row],[Median]])/25)*30) + AAMC_Raw_Data_for_FY22[[#This Row],[Median]]","v":504074.8},{"$f":"(((AAMC_Raw_Data_for_FY22[[#This Row],[75th]]-AAMC_Raw_Data_for_FY22[[#This Row],[Median]])/25)*35) + AAMC_Raw_Data_for_FY22[[#This Row],[Median]]","v":533149.6},{"$f":"(((AAMC_Raw_Data_for_FY22[[#This Row],[75th]]-AAMC_Raw_Data_for_FY22[[#This Row],[Median]])/25)*40) + AAMC_Raw_Data_for_FY22[[#This Row],[Median]]","v":562224.4}]
[{"$f":"AAMC_Raw_Data_for_FY22[[#This Row],[Source]]&AAMC_Raw_Data_for_FY22[[#This Row],[Type]]&AAMC_Raw_Data_for_FY22[[#This Row],[School Subset]]&AAMC_Raw_Data_for_FY22[[#This Row],[Rank]]&AAMC_Raw_Data_for_FY22[[#This Row],[Degree]]&AAMC_Raw_Data_for_FY22[[#This Row],[Department / Specialty]]&\"L\"","v":"AAMCAcademicPrivateAssistantMDSurgery TotalL"},"Surgery Total",4,"AAMC","Academic","Private","Assistant","MD","2021-2022",348333,{"$f":"(((AAMC_Raw_Data_for_FY22[[#This Row],[Median]]-AAMC_Raw_Data_for_FY22[[#This Row],[25th]])/25)*5) + AAMC_Raw_Data_for_FY22[[#This Row],[25th]]","v":364219},{"$f":"(((AAMC_Raw_Data_for_FY22[[#This Row],[Median]]-AAMC_Raw_Data_for_FY22[[#This Row],[25th]])/25)*10) + AAMC_Raw_Data_for_FY22[[#This Row],[25th]]","v":380105},{"$f":"(((AAMC_Raw_Data_for_FY22[[#This Row],[Median]]-AAMC_Raw_Data_for_FY22[[#This Row],[25th]])/25)*15) + AAMC_Raw_Data_for_FY22[[#This Row],[25th]]","v":395991},{"$f":"(((AAMC_Raw_Data_for_FY22[[#This Row],[Median]]-AAMC_Raw_Data_for_FY22[[#This Row],[25th]])/25)*20) + AAMC_Raw_Data_for_FY22[[#This Row],[25th]]","v":411877},427763,{"$f":"(((AAMC_Raw_Data_for_FY22[[#This Row],[75th]]-AAMC_Raw_Data_for_FY22[[#This Row],[Median]])/25)*5) + AAMC_Raw_Data_for_FY22[[#This Row],[Median]]","v":456757.2},{"$f":"(((AAMC_Raw_Data_for_FY22[[#This Row],[75th]]-AAMC_Raw_Data_for_FY22[[#This Row],[Median]])/25)*10) + AAMC_Raw_Data_for_FY22[[#This Row],[Median]]","v":485751.4},{"$f":"(((AAMC_Raw_Data_for_FY22[[#This Row],[75th]]-AAMC_Raw_Data_for_FY22[[#This Row],[Median]])/25)*15) + AAMC_Raw_Data_for_FY22[[#This Row],[Median]]","v":514745.59999999998},{"$f":"(((AAMC_Raw_Data_for_FY22[[#This Row],[75th]]-AAMC_Raw_Data_for_FY22[[#This Row],[Median]])/25)*20) + AAMC_Raw_Data_for_FY22[[#This Row],[Median]]","v":543739.80000000005},572734,{"$f":"(((AAMC_Raw_Data_for_FY22[[#This Row],[75th]]-AAMC_Raw_Data_for_FY22[[#This Row],[Median]])/25)*30) + AAMC_Raw_Data_for_FY22[[#This Row],[Median]]","v":601728.19999999995},{"$f":"(((AAMC_Raw_Data_for_FY22[[#This Row],[75th]]-AAMC_Raw_Data_for_FY22[[#This Row],[Median]])/25)*35) + AAMC_Raw_Data_for_FY22[[#This Row],[Median]]","v":630722.4},{"$f":"(((AAMC_Raw_Data_for_FY22[[#This Row],[75th]]-AAMC_Raw_Data_for_FY22[[#This Row],[Median]])/25)*40) + AAMC_Raw_Data_for_FY22[[#This Row],[Median]]","v":659716.6}]
[{"$f":"AAMC_Raw_Data_for_FY22[[#This Row],[Source]]&AAMC_Raw_Data_for_FY22[[#This Row],[Type]]&AAMC_Raw_Data_for_FY22[[#This Row],[School Subset]]&AAMC_Raw_Data_for_FY22[[#This Row],[Rank]]&AAMC_Raw_Data_for_FY22[[#This Row],[Degree]]&AAMC_Raw_Data_for_FY22[[#This Row],[Department / Specialty]]&\"L\"","v":"AAMCAcademicPrivateAssociateMDSurgery TotalL"},"Surgery Total",3,"AAMC","Academic","Private","Associate","MD","2021-2022",437069,{"$f":"(((AAMC_Raw_Data_for_FY22[[#This Row],[Median]]-AAMC_Raw_Data_for_FY22[[#This Row],[25th]])/25)*5) + AAMC_Raw_Data_for_FY22[[#This Row],[25th]]","v":459018},{"$f":"(((AAMC_Raw_Data_for_FY22[[#This Row],[Median]]-AAMC_Raw_Data_for_FY22[[#This Row],[25th]])/25)*10) + AAMC_Raw_Data_for_FY22[[#This Row],[25th]]","v":480967},{"$f":"(((AAMC_Raw_Data_for_FY22[[#This Row],[Median]]-AAMC_Raw_Data_for_FY22[[#This Row],[25th]])/25)*15) + AAMC_Raw_Data_for_FY22[[#This Row],[25th]]","v":502916},{"$f":"(((AAMC_Raw_Data_for_FY22[[#This Row],[Median]]-AAMC_Raw_Data_for_FY22[[#This Row],[25th]])/25)*20) + AAMC_Raw_Data_for_FY22[[#This Row],[25th]]","v":524865},546814,{"$f":"(((AAMC_Raw_Data_for_FY22[[#This Row],[75th]]-AAMC_Raw_Data_for_FY22[[#This Row],[Median]])/25)*5) + AAMC_Raw_Data_for_FY22[[#This Row],[Median]]","v":586278.80000000005},{"$f":"(((AAMC_Raw_Data_for_FY22[[#This Row],[75th]]-AAMC_Raw_Data_for_FY22[[#This Row],[Median]])/25)*10) + AAMC_Raw_Data_for_FY22[[#This Row],[Median]]","v":625743.6},{"$f":"(((AAMC_Raw_Data_for_FY22[[#This Row],[75th]]-AAMC_Raw_Data_for_FY22[[#This Row],[Median]])/25)*15) + AAMC_Raw_Data_for_FY22[[#This Row],[Median]]","v":665208.4},{"$f":"(((AAMC_Raw_Data_for_FY22[[#This Row],[75th]]-AAMC_Raw_Data_for_FY22[[#This Row],[Median]])/25)*20) + AAMC_Raw_Data_for_FY22[[#This Row],[Median]]","v":704673.2},744138,{"$f":"(((AAMC_Raw_Data_for_FY22[[#This Row],[75th]]-AAMC_Raw_Data_for_FY22[[#This Row],[Median]])/25)*30) + AAMC_Raw_Data_for_FY22[[#This Row],[Median]]","v":783602.8},{"$f":"(((AAMC_Raw_Data_for_FY22[[#This Row],[75th]]-AAMC_Raw_Data_for_FY22[[#This Row],[Median]])/25)*35) + AAMC_Raw_Data_for_FY22[[#This Row],[Median]]","v":823067.6},{"$f":"(((AAMC_Raw_Data_for_FY22[[#This Row],[75th]]-AAMC_Raw_Data_for_FY22[[#This Row],[Median]])/25)*40) + AAMC_Raw_Data_for_FY22[[#This Row],[Median]]","v":862532.4}]
[{"$f":"AAMC_Raw_Data_for_FY22[[#This Row],[Source]]&AAMC_Raw_Data_for_FY22[[#This Row],[Type]]&AAMC_Raw_Data_for_FY22[[#This Row],[School Subset]]&AAMC_Raw_Data_for_FY22[[#This Row],[Rank]]&AAMC_Raw_Data_for_FY22[[#This Row],[Degree]]&AAMC_Raw_Data_for_FY22[[#This Row],[Department / Specialty]]&\"L\"","v":"AAMCAcademicPrivateProfessorMDSurgery TotalL"},"Surgery Total",2,"AAMC","Academic","Private","Professor","MD","2021-2022",465149,{"$f":"(((AAMC_Raw_Data_for_FY22[[#This Row],[Median]]-AAMC_Raw_Data_for_FY22[[#This Row],[25th]])/25)*5) + AAMC_Raw_Data_for_FY22[[#This Row],[25th]]","v":500160},{"$f":"(((AAMC_Raw_Data_for_FY22[[#This Row],[Median]]-AAMC_Raw_Data_for_FY22[[#This Row],[25th]])/25)*10) + AAMC_Raw_Data_for_FY22[[#This Row],[25th]]","v":535171},{"$f":"(((AAMC_Raw_Data_for_FY22[[#This Row],[Median]]-AAMC_Raw_Data_for_FY22[[#This Row],[25th]])/25)*15) + AAMC_Raw_Data_for_FY22[[#This Row],[25th]]","v":570182},{"$f":"(((AAMC_Raw_Data_for_FY22[[#This Row],[Median]]-AAMC_Raw_Data_for_FY22[[#This Row],[25th]])/25)*20) + AAMC_Raw_Data_for_FY22[[#This Row],[25th]]","v":605193},640204,{"$f":"(((AAMC_Raw_Data_for_FY22[[#This Row],[75th]]-AAMC_Raw_Data_for_FY22[[#This Row],[Median]])/25)*5) + AAMC_Raw_Data_for_FY22[[#This Row],[Median]]","v":686616.4},{"$f":"(((AAMC_Raw_Data_for_FY22[[#This Row],[75th]]-AAMC_Raw_Data_for_FY22[[#This Row],[Median]])/25)*10) + AAMC_Raw_Data_for_FY22[[#This Row],[Median]]","v":733028.8},{"$f":"(((AAMC_Raw_Data_for_FY22[[#This Row],[75th]]-AAMC_Raw_Data_for_FY22[[#This Row],[Median]])/25)*15) + AAMC_Raw_Data_for_FY22[[#This Row],[Median]]","v":779441.2},{"$f":"(((AAMC_Raw_Data_for_FY22[[#This Row],[75th]]-AAMC_Raw_Data_for_FY22[[#This Row],[Median]])/25)*20) + AAMC_Raw_Data_for_FY22[[#This Row],[Median]]","v":825853.6},872266,{"$f":"(((AAMC_Raw_Data_for_FY22[[#This Row],[75th]]-AAMC_Raw_Data_for_FY22[[#This Row],[Median]])/25)*30) + AAMC_Raw_Data_for_FY22[[#This Row],[Median]]","v":918678.39999999991},{"$f":"(((AAMC_Raw_Data_for_FY22[[#This Row],[75th]]-AAMC_Raw_Data_for_FY22[[#This Row],[Median]])/25)*35) + AAMC_Raw_Data_for_FY22[[#This Row],[Median]]","v":965090.8},{"$f":"(((AAMC_Raw_Data_for_FY22[[#This Row],[75th]]-AAMC_Raw_Data_for_FY22[[#This Row],[Median]])/25)*40) + AAMC_Raw_Data_for_FY22[[#This Row],[Median]]","v":1011503.2}]
[{"$f":"AAMC_Raw_Data_for_FY22[[#This Row],[Source]]&AAMC_Raw_Data_for_FY22[[#This Row],[Type]]&AAMC_Raw_Data_for_FY22[[#This Row],[School Subset]]&AAMC_Raw_Data_for_FY22[[#This Row],[Rank]]&AAMC_Raw_Data_for_FY22[[#This Row],[Degree]]&AAMC_Raw_Data_for_FY22[[#This Row],[Department / Specialty]]&\"L\"","v":"AAMCAcademicPrivateChiefMDSurgery TotalL"},"Surgery Total",6,"AAMC","Academic","Private","Chief","MD","2021-2022",610063,{"$f":"(((AAMC_Raw_Data_for_FY22[[#This Row],[Median]]-AAMC_Raw_Data_for_FY22[[#This Row],[25th]])/25)*5) + AAMC_Raw_Data_for_FY22[[#This Row],[25th]]","v":642229.19999999995},{"$f":"(((AAMC_Raw_Data_for_FY22[[#This Row],[Median]]-AAMC_Raw_Data_for_FY22[[#This Row],[25th]])/25)*10) + AAMC_Raw_Data_for_FY22[[#This Row],[25th]]","v":674395.4},{"$f":"(((AAMC_Raw_Data_for_FY22[[#This Row],[Median]]-AAMC_Raw_Data_for_FY22[[#This Row],[25th]])/25)*15) + AAMC_Raw_Data_for_FY22[[#This Row],[25th]]","v":706561.6},{"$f":"(((AAMC_Raw_Data_for_FY22[[#This Row],[Median]]-AAMC_Raw_Data_for_FY22[[#This Row],[25th]])/25)*20) + AAMC_Raw_Data_for_FY22[[#This Row],[25th]]","v":738727.8},770894,{"$f":"(((AAMC_Raw_Data_for_FY22[[#This Row],[75th]]-AAMC_Raw_Data_for_FY22[[#This Row],[Median]])/25)*5) + AAMC_Raw_Data_for_FY22[[#This Row],[Median]]","v":821521.6},{"$f":"(((AAMC_Raw_Data_for_FY22[[#This Row],[75th]]-AAMC_Raw_Data_for_FY22[[#This Row],[Median]])/25)*10) + AAMC_Raw_Data_for_FY22[[#This Row],[Median]]","v":872149.2},{"$f":"(((AAMC_Raw_Data_for_FY22[[#This Row],[75th]]-AAMC_Raw_Data_for_FY22[[#This Row],[Median]])/25)*15) + AAMC_Raw_Data_for_FY22[[#This Row],[Median]]","v":922776.8},{"$f":"(((AAMC_Raw_Data_for_FY22[[#This Row],[75th]]-AAMC_Raw_Data_for_FY22[[#This Row],[Median]])/25)*20) + AAMC_Raw_Data_for_FY22[[#This Row],[Median]]","v":973404.4},1024032,{"$f":"(((AAMC_Raw_Data_for_FY22[[#This Row],[75th]]-AAMC_Raw_Data_for_FY22[[#This Row],[Median]])/25)*30) + AAMC_Raw_Data_for_FY22[[#This Row],[Median]]","v":1074659.6000000001},{"$f":"(((AAMC_Raw_Data_for_FY22[[#This Row],[75th]]-AAMC_Raw_Data_for_FY22[[#This Row],[Median]])/25)*35) + AAMC_Raw_Data_for_FY22[[#This Row],[Median]]","v":1125287.2},{"$f":"(((AAMC_Raw_Data_for_FY22[[#This Row],[75th]]-AAMC_Raw_Data_for_FY22[[#This Row],[Median]])/25)*40) + AAMC_Raw_Data_for_FY22[[#This Row],[Median]]","v":1175914.8}]
[{"$f":"AAMC_Raw_Data_for_FY22[[#This Row],[Source]]&AAMC_Raw_Data_for_FY22[[#This Row],[Type]]&AAMC_Raw_Data_for_FY22[[#This Row],[School Subset]]&AAMC_Raw_Data_for_FY22[[#This Row],[Rank]]&AAMC_Raw_Data_for_FY22[[#This Row],[Degree]]&AAMC_Raw_Data_for_FY22[[#This Row],[Department / Specialty]]&\"L\"","v":"AAMCAcademicPrivateChairMDSurgery TotalL"},"Surgery Total",1,"AAMC","Academic","Private","Chair","MD","2021-2022",853504,{"$f":"(((AAMC_Raw_Data_for_FY22[[#This Row],[Median]]-AAMC_Raw_Data_for_FY22[[#This Row],[25th]])/25)*5) + AAMC_Raw_Data_for_FY22[[#This Row],[25th]]","v":913162.8},{"$f":"(((AAMC_Raw_Data_for_FY22[[#This Row],[Median]]-AAMC_Raw_Data_for_FY22[[#This Row],[25th]])/25)*10) + AAMC_Raw_Data_for_FY22[[#This Row],[25th]]","v":972821.6},{"$f":"(((AAMC_Raw_Data_for_FY22[[#This Row],[Median]]-AAMC_Raw_Data_for_FY22[[#This Row],[25th]])/25)*15) + AAMC_Raw_Data_for_FY22[[#This Row],[25th]]","v":1032480.4},{"$f":"(((AAMC_Raw_Data_for_FY22[[#This Row],[Median]]-AAMC_Raw_Data_for_FY22[[#This Row],[25th]])/25)*20) + AAMC_Raw_Data_for_FY22[[#This Row],[25th]]","v":1092139.2},1151798,{"$f":"(((AAMC_Raw_Data_for_FY22[[#This Row],[75th]]-AAMC_Raw_Data_for_FY22[[#This Row],[Median]])/25)*5) + AAMC_Raw_Data_for_FY22[[#This Row],[Median]]","v":1245626.2},{"$f":"(((AAMC_Raw_Data_for_FY22[[#This Row],[75th]]-AAMC_Raw_Data_for_FY22[[#This Row],[Median]])/25)*10) + AAMC_Raw_Data_for_FY22[[#This Row],[Median]]","v":1339454.3999999999},{"$f":"(((AAMC_Raw_Data_for_FY22[[#This Row],[75th]]-AAMC_Raw_Data_for_FY22[[#This Row],[Median]])/25)*15) + AAMC_Raw_Data_for_FY22[[#This Row],[Median]]","v":1433282.6},{"$f":"(((AAMC_Raw_Data_for_FY22[[#This Row],[75th]]-AAMC_Raw_Data_for_FY22[[#This Row],[Median]])/25)*20) + AAMC_Raw_Data_for_FY22[[#This Row],[Median]]","v":1527110.8},1620939,{"$f":"(((AAMC_Raw_Data_for_FY22[[#This Row],[75th]]-AAMC_Raw_Data_for_FY22[[#This Row],[Median]])/25)*30) + AAMC_Raw_Data_for_FY22[[#This Row],[Median]]","v":1714767.2},{"$f":"(((AAMC_Raw_Data_for_FY22[[#This Row],[75th]]-AAMC_Raw_Data_for_FY22[[#This Row],[Median]])/25)*35) + AAMC_Raw_Data_for_FY22[[#This Row],[Median]]","v":1808595.4},{"$f":"(((AAMC_Raw_Data_for_FY22[[#This Row],[75th]]-AAMC_Raw_Data_for_FY22[[#This Row],[Median]])/25)*40) + AAMC_Raw_Data_for_FY22[[#This Row],[Median]]","v":1902423.6}]
[{"$f":"AAMC_Raw_Data_for_FY22[[#This Row],[Source]]&AAMC_Raw_Data_for_FY22[[#This Row],[Type]]&AAMC_Raw_Data_for_FY22[[#This Row],[School Subset]]&AAMC_Raw_Data_for_FY22[[#This Row],[Rank]]&AAMC_Raw_Data_for_FY22[[#This Row],[Degree]]&AAMC_Raw_Data_for_FY22[[#This Row],[Department / Specialty]]&\"L\"","v":"AAMCAcademicPrivateInstructorMDGeneral SurgeryL"},"General Surgery",5,"AAMC","Academic","Private","Instructor","MD","2021-2022",140447,{"$f":"(((AAMC_Raw_Data_for_FY22[[#This Row],[Median]]-AAMC_Raw_Data_for_FY22[[#This Row],[25th]])/25)*5) + AAMC_Raw_Data_for_FY22[[#This Row],[25th]]","v":167969.4},{"$f":"(((AAMC_Raw_Data_for_FY22[[#This Row],[Median]]-AAMC_Raw_Data_for_FY22[[#This Row],[25th]])/25)*10) + AAMC_Raw_Data_for_FY22[[#This Row],[25th]]","v":195491.8},{"$f":"(((AAMC_Raw_Data_for_FY22[[#This Row],[Median]]-AAMC_Raw_Data_for_FY22[[#This Row],[25th]])/25)*15) + AAMC_Raw_Data_for_FY22[[#This Row],[25th]]","v":223014.2},{"$f":"(((AAMC_Raw_Data_for_FY22[[#This Row],[Median]]-AAMC_Raw_Data_for_FY22[[#This Row],[25th]])/25)*20) + AAMC_Raw_Data_for_FY22[[#This Row],[25th]]","v":250536.59999999998},278059,{"$f":"(((AAMC_Raw_Data_for_FY22[[#This Row],[75th]]-AAMC_Raw_Data_for_FY22[[#This Row],[Median]])/25)*5) + AAMC_Raw_Data_for_FY22[[#This Row],[Median]]","v":312789.40000000002},{"$f":"(((AAMC_Raw_Data_for_FY22[[#This Row],[75th]]-AAMC_Raw_Data_for_FY22[[#This Row],[Median]])/25)*10) + AAMC_Raw_Data_for_FY22[[#This Row],[Median]]","v":347519.8},{"$f":"(((AAMC_Raw_Data_for_FY22[[#This Row],[75th]]-AAMC_Raw_Data_for_FY22[[#This Row],[Median]])/25)*15) + AAMC_Raw_Data_for_FY22[[#This Row],[Median]]","v":382250.2},{"$f":"(((AAMC_Raw_Data_for_FY22[[#This Row],[75th]]-AAMC_Raw_Data_for_FY22[[#This Row],[Median]])/25)*20) + AAMC_Raw_Data_for_FY22[[#This Row],[Median]]","v":416980.6},451711,{"$f":"(((AAMC_Raw_Data_for_FY22[[#This Row],[75th]]-AAMC_Raw_Data_for_FY22[[#This Row],[Median]])/25)*30) + AAMC_Raw_Data_for_FY22[[#This Row],[Median]]","v":486441.4},{"$f":"(((AAMC_Raw_Data_for_FY22[[#This Row],[75th]]-AAMC_Raw_Data_for_FY22[[#This Row],[Median]])/25)*35) + AAMC_Raw_Data_for_FY22[[#This Row],[Median]]","v":521171.8},{"$f":"(((AAMC_Raw_Data_for_FY22[[#This Row],[75th]]-AAMC_Raw_Data_for_FY22[[#This Row],[Median]])/25)*40) + AAMC_Raw_Data_for_FY22[[#This Row],[Median]]","v":555902.19999999995}]
[{"$f":"AAMC_Raw_Data_for_FY22[[#This Row],[Source]]&AAMC_Raw_Data_for_FY22[[#This Row],[Type]]&AAMC_Raw_Data_for_FY22[[#This Row],[School Subset]]&AAMC_Raw_Data_for_FY22[[#This Row],[Rank]]&AAMC_Raw_Data_for_FY22[[#This Row],[Degree]]&AAMC_Raw_Data_for_FY22[[#This Row],[Department / Specialty]]&\"L\"","v":"AAMCAcademicPrivateAssistantMDGeneral SurgeryL"},"General Surgery",4,"AAMC","Academic","Private","Assistant","MD","2021-2022",327342,{"$f":"(((AAMC_Raw_Data_for_FY22[[#This Row],[Median]]-AAMC_Raw_Data_for_FY22[[#This Row],[25th]])/25)*5) + AAMC_Raw_Data_for_FY22[[#This Row],[25th]]","v":336873.6},{"$f":"(((AAMC_Raw_Data_for_FY22[[#This Row],[Median]]-AAMC_Raw_Data_for_FY22[[#This Row],[25th]])/25)*10) + AAMC_Raw_Data_for_FY22[[#This Row],[25th]]","v":346405.2},{"$f":"(((AAMC_Raw_Data_for_FY22[[#This Row],[Median]]-AAMC_Raw_Data_for_FY22[[#This Row],[25th]])/25)*15) + AAMC_Raw_Data_for_FY22[[#This Row],[25th]]","v":355936.8},{"$f":"(((AAMC_Raw_Data_for_FY22[[#This Row],[Median]]-AAMC_Raw_Data_for_FY22[[#This Row],[25th]])/25)*20) + AAMC_Raw_Data_for_FY22[[#This Row],[25th]]","v":365468.4},375000,{"$f":"(((AAMC_Raw_Data_for_FY22[[#This Row],[75th]]-AAMC_Raw_Data_for_FY22[[#This Row],[Median]])/25)*5) + AAMC_Raw_Data_for_FY22[[#This Row],[Median]]","v":395740.8},{"$f":"(((AAMC_Raw_Data_for_FY22[[#This Row],[75th]]-AAMC_Raw_Data_for_FY22[[#This Row],[Median]])/25)*10) + AAMC_Raw_Data_for_FY22[[#This Row],[Median]]","v":416481.6},{"$f":"(((AAMC_Raw_Data_for_FY22[[#This Row],[75th]]-AAMC_Raw_Data_for_FY22[[#This Row],[Median]])/25)*15) + AAMC_Raw_Data_for_FY22[[#This Row],[Median]]","v":437222.40000000002},{"$f":"(((AAMC_Raw_Data_for_FY22[[#This Row],[75th]]-AAMC_Raw_Data_for_FY22[[#This Row],[Median]])/25)*20) + AAMC_Raw_Data_for_FY22[[#This Row],[Median]]","v":457963.2},478704,{"$f":"(((AAMC_Raw_Data_for_FY22[[#This Row],[75th]]-AAMC_Raw_Data_for_FY22[[#This Row],[Median]])/25)*30) + AAMC_Raw_Data_for_FY22[[#This Row],[Median]]","v":499444.8},{"$f":"(((AAMC_Raw_Data_for_FY22[[#This Row],[75th]]-AAMC_Raw_Data_for_FY22[[#This Row],[Median]])/25)*35) + AAMC_Raw_Data_for_FY22[[#This Row],[Median]]","v":520185.59999999998},{"$f":"(((AAMC_Raw_Data_for_FY22[[#This Row],[75th]]-AAMC_Raw_Data_for_FY22[[#This Row],[Median]])/25)*40) + AAMC_Raw_Data_for_FY22[[#This Row],[Median]]","v":540926.4}]
[{"$f":"AAMC_Raw_Data_for_FY22[[#This Row],[Source]]&AAMC_Raw_Data_for_FY22[[#This Row],[Type]]&AAMC_Raw_Data_for_FY22[[#This Row],[School Subset]]&AAMC_Raw_Data_for_FY22[[#This Row],[Rank]]&AAMC_Raw_Data_for_FY22[[#This Row],[Degree]]&AAMC_Raw_Data_for_FY22[[#This Row],[Department / Specialty]]&\"L\"","v":"AAMCAcademicPrivateAssociateMDGeneral SurgeryL"},"General Surgery",3,"AAMC","Academic","Private","Associate","MD","2021-2022",382524,{"$f":"(((AAMC_Raw_Data_for_FY22[[#This Row],[Median]]-AAMC_Raw_Data_for_FY22[[#This Row],[25th]])/25)*5) + AAMC_Raw_Data_for_FY22[[#This Row],[25th]]","v":397426},{"$f":"(((AAMC_Raw_Data_for_FY22[[#This Row],[Median]]-AAMC_Raw_Data_for_FY22[[#This Row],[25th]])/25)*10) + AAMC_Raw_Data_for_FY22[[#This Row],[25th]]","v":412328},{"$f":"(((AAMC_Raw_Data_for_FY22[[#This Row],[Median]]-AAMC_Raw_Data_for_FY22[[#This Row],[25th]])/25)*15) + AAMC_Raw_Data_for_FY22[[#This Row],[25th]]","v":427230},{"$f":"(((AAMC_Raw_Data_for_FY22[[#This Row],[Median]]-AAMC_Raw_Data_for_FY22[[#This Row],[25th]])/25)*20) + AAMC_Raw_Data_for_FY22[[#This Row],[25th]]","v":442132},457034,{"$f":"(((AAMC_Raw_Data_for_FY22[[#This Row],[75th]]-AAMC_Raw_Data_for_FY22[[#This Row],[Median]])/25)*5) + AAMC_Raw_Data_for_FY22[[#This Row],[Median]]","v":473750.8},{"$f":"(((AAMC_Raw_Data_for_FY22[[#This Row],[75th]]-AAMC_Raw_Data_for_FY22[[#This Row],[Median]])/25)*10) + AAMC_Raw_Data_for_FY22[[#This Row],[Median]]","v":490467.6},{"$f":"(((AAMC_Raw_Data_for_FY22[[#This Row],[75th]]-AAMC_Raw_Data_for_FY22[[#This Row],[Median]])/25)*15) + AAMC_Raw_Data_for_FY22[[#This Row],[Median]]","v":507184.4},{"$f":"(((AAMC_Raw_Data_for_FY22[[#This Row],[75th]]-AAMC_Raw_Data_for_FY22[[#This Row],[Median]])/25)*20) + AAMC_Raw_Data_for_FY22[[#This Row],[Median]]","v":523901.2},540618,{"$f":"(((AAMC_Raw_Data_for_FY22[[#This Row],[75th]]-AAMC_Raw_Data_for_FY22[[#This Row],[Median]])/25)*30) + AAMC_Raw_Data_for_FY22[[#This Row],[Median]]","v":557334.80000000005},{"$f":"(((AAMC_Raw_Data_for_FY22[[#This Row],[75th]]-AAMC_Raw_Data_for_FY22[[#This Row],[Median]])/25)*35) + AAMC_Raw_Data_for_FY22[[#This Row],[Median]]","v":574051.6},{"$f":"(((AAMC_Raw_Data_for_FY22[[#This Row],[75th]]-AAMC_Raw_Data_for_FY22[[#This Row],[Median]])/25)*40) + AAMC_Raw_Data_for_FY22[[#This Row],[Median]]","v":590768.4}]
[{"$f":"AAMC_Raw_Data_for_FY22[[#This Row],[Source]]&AAMC_Raw_Data_for_FY22[[#This Row],[Type]]&AAMC_Raw_Data_for_FY22[[#This Row],[School Subset]]&AAMC_Raw_Data_for_FY22[[#This Row],[Rank]]&AAMC_Raw_Data_for_FY22[[#This Row],[Degree]]&AAMC_Raw_Data_for_FY22[[#This Row],[Department / Specialty]]&\"L\"","v":"AAMCAcademicPrivateProfessorMDGeneral SurgeryL"},"General Surgery",2,"AAMC","Academic","Private","Professor","MD","2021-2022",393718,{"$f":"(((AAMC_Raw_Data_for_FY22[[#This Row],[Median]]-AAMC_Raw_Data_for_FY22[[#This Row],[25th]])/25)*5) + AAMC_Raw_Data_for_FY22[[#This Row],[25th]]","v":420574.4},{"$f":"(((AAMC_Raw_Data_for_FY22[[#This Row],[Median]]-AAMC_Raw_Data_for_FY22[[#This Row],[25th]])/25)*10) + AAMC_Raw_Data_for_FY22[[#This Row],[25th]]","v":447430.8},{"$f":"(((AAMC_Raw_Data_for_FY22[[#This Row],[Median]]-AAMC_Raw_Data_for_FY22[[#This Row],[25th]])/25)*15) + AAMC_Raw_Data_for_FY22[[#This Row],[25th]]","v":474287.2},{"$f":"(((AAMC_Raw_Data_for_FY22[[#This Row],[Median]]-AAMC_Raw_Data_for_FY22[[#This Row],[25th]])/25)*20) + AAMC_Raw_Data_for_FY22[[#This Row],[25th]]","v":501143.6},528000,{"$f":"(((AAMC_Raw_Data_for_FY22[[#This Row],[75th]]-AAMC_Raw_Data_for_FY22[[#This Row],[Median]])/25)*5) + AAMC_Raw_Data_for_FY22[[#This Row],[Median]]","v":551996.19999999995},{"$f":"(((AAMC_Raw_Data_for_FY22[[#This Row],[75th]]-AAMC_Raw_Data_for_FY22[[#This Row],[Median]])/25)*10) + AAMC_Raw_Data_for_FY22[[#This Row],[Median]]","v":575992.4},{"$f":"(((AAMC_Raw_Data_for_FY22[[#This Row],[75th]]-AAMC_Raw_Data_for_FY22[[#This Row],[Median]])/25)*15) + AAMC_Raw_Data_for_FY22[[#This Row],[Median]]","v":599988.6},{"$f":"(((AAMC_Raw_Data_for_FY22[[#This Row],[75th]]-AAMC_Raw_Data_for_FY22[[#This Row],[Median]])/25)*20) + AAMC_Raw_Data_for_FY22[[#This Row],[Median]]","v":623984.80000000005},647981,{"$f":"(((AAMC_Raw_Data_for_FY22[[#This Row],[75th]]-AAMC_Raw_Data_for_FY22[[#This Row],[Median]])/25)*30) + AAMC_Raw_Data_for_FY22[[#This Row],[Median]]","v":671977.2},{"$f":"(((AAMC_Raw_Data_for_FY22[[#This Row],[75th]]-AAMC_Raw_Data_for_FY22[[#This Row],[Median]])/25)*35) + AAMC_Raw_Data_for_FY22[[#This Row],[Median]]","v":695973.4},{"$f":"(((AAMC_Raw_Data_for_FY22[[#This Row],[75th]]-AAMC_Raw_Data_for_FY22[[#This Row],[Median]])/25)*40) + AAMC_Raw_Data_for_FY22[[#This Row],[Median]]","v":719969.6}]
[{"$f":"AAMC_Raw_Data_for_FY22[[#This Row],[Source]]&AAMC_Raw_Data_for_FY22[[#This Row],[Type]]&AAMC_Raw_Data_for_FY22[[#This Row],[School Subset]]&AAMC_Raw_Data_for_FY22[[#This Row],[Rank]]&AAMC_Raw_Data_for_FY22[[#This Row],[Degree]]&AAMC_Raw_Data_for_FY22[[#This Row],[Department / Specialty]]&\"L\"","v":"AAMCAcademicPrivateChiefMDGeneral SurgeryL"},"General Surgery",6,"AAMC","Academic","Private","Chief","MD","2021-2022",514215,{"$f":"(((AAMC_Raw_Data_for_FY22[[#This Row],[Median]]-AAMC_Raw_Data_for_FY22[[#This Row],[25th]])/25)*5) + AAMC_Raw_Data_for_FY22[[#This Row],[25th]]","v":533372},{"$f":"(((AAMC_Raw_Data_for_FY22[[#This Row],[Median]]-AAMC_Raw_Data_for_FY22[[#This Row],[25th]])/25)*10) + AAMC_Raw_Data_for_FY22[[#This Row],[25th]]","v":552529},{"$f":"(((AAMC_Raw_Data_for_FY22[[#This Row],[Median]]-AAMC_Raw_Data_for_FY22[[#This Row],[25th]])/25)*15) + AAMC_Raw_Data_for_FY22[[#This Row],[25th]]","v":571686},{"$f":"(((AAMC_Raw_Data_for_FY22[[#This Row],[Median]]-AAMC_Raw_Data_for_FY22[[#This Row],[25th]])/25)*20) + AAMC_Raw_Data_for_FY22[[#This Row],[25th]]","v":590843},610000,{"$f":"(((AAMC_Raw_Data_for_FY22[[#This Row],[75th]]-AAMC_Raw_Data_for_FY22[[#This Row],[Median]])/25)*5) + AAMC_Raw_Data_for_FY22[[#This Row],[Median]]","v":626612.6},{"$f":"(((AAMC_Raw_Data_for_FY22[[#This Row],[75th]]-AAMC_Raw_Data_for_FY22[[#This Row],[Median]])/25)*10) + AAMC_Raw_Data_for_FY22[[#This Row],[Median]]","v":643225.19999999995},{"$f":"(((AAMC_Raw_Data_for_FY22[[#This Row],[75th]]-AAMC_Raw_Data_for_FY22[[#This Row],[Median]])/25)*15) + AAMC_Raw_Data_for_FY22[[#This Row],[Median]]","v":659837.80000000005},{"$f":"(((AAMC_Raw_Data_for_FY22[[#This Row],[75th]]-AAMC_Raw_Data_for_FY22[[#This Row],[Median]])/25)*20) + AAMC_Raw_Data_for_FY22[[#This Row],[Median]]","v":676450.4},693063,{"$f":"(((AAMC_Raw_Data_for_FY22[[#This Row],[75th]]-AAMC_Raw_Data_for_FY22[[#This Row],[Median]])/25)*30) + AAMC_Raw_Data_for_FY22[[#This Row],[Median]]","v":709675.6},{"$f":"(((AAMC_Raw_Data_for_FY22[[#This Row],[75th]]-AAMC_Raw_Data_for_FY22[[#This Row],[Median]])/25)*35) + AAMC_Raw_Data_for_FY22[[#This Row],[Median]]","v":726288.2},{"$f":"(((AAMC_Raw_Data_for_FY22[[#This Row],[75th]]-AAMC_Raw_Data_for_FY22[[#This Row],[Median]])/25)*40) + AAMC_Raw_Data_for_FY22[[#This Row],[Median]]","v":742900.8}]
[{"$f":"AAMC_Raw_Data_for_FY22[[#This Row],[Source]]&AAMC_Raw_Data_for_FY22[[#This Row],[Type]]&AAMC_Raw_Data_for_FY22[[#This Row],[School Subset]]&AAMC_Raw_Data_for_FY22[[#This Row],[Rank]]&AAMC_Raw_Data_for_FY22[[#This Row],[Degree]]&AAMC_Raw_Data_for_FY22[[#This Row],[Department / Specialty]]&\"L\"","v":"AAMCAcademicPrivateChairMDGeneral SurgeryL"},"General Surgery",1,"AAMC","Academic","Private","Chair","MD","2021-2022",755000,{"$f":"(((AAMC_Raw_Data_for_FY22[[#This Row],[Median]]-AAMC_Raw_Data_for_FY22[[#This Row],[25th]])/25)*5) + AAMC_Raw_Data_for_FY22[[#This Row],[25th]]","v":807823},{"$f":"(((AAMC_Raw_Data_for_FY22[[#This Row],[Median]]-AAMC_Raw_Data_for_FY22[[#This Row],[25th]])/25)*10) + AAMC_Raw_Data_for_FY22[[#This Row],[25th]]","v":860646},{"$f":"(((AAMC_Raw_Data_for_FY22[[#This Row],[Median]]-AAMC_Raw_Data_for_FY22[[#This Row],[25th]])/25)*15) + AAMC_Raw_Data_for_FY22[[#This Row],[25th]]","v":913469},{"$f":"(((AAMC_Raw_Data_for_FY22[[#This Row],[Median]]-AAMC_Raw_Data_for_FY22[[#This Row],[25th]])/25)*20) + AAMC_Raw_Data_for_FY22[[#This Row],[25th]]","v":966292},1019115,{"$f":"(((AAMC_Raw_Data_for_FY22[[#This Row],[75th]]-AAMC_Raw_Data_for_FY22[[#This Row],[Median]])/25)*5) + AAMC_Raw_Data_for_FY22[[#This Row],[Median]]","v":1067772},{"$f":"(((AAMC_Raw_Data_for_FY22[[#This Row],[75th]]-AAMC_Raw_Data_for_FY22[[#This Row],[Median]])/25)*10) + AAMC_Raw_Data_for_FY22[[#This Row],[Median]]","v":1116429},{"$f":"(((AAMC_Raw_Data_for_FY22[[#This Row],[75th]]-AAMC_Raw_Data_for_FY22[[#This Row],[Median]])/25)*15) + AAMC_Raw_Data_for_FY22[[#This Row],[Median]]","v":1165086},{"$f":"(((AAMC_Raw_Data_for_FY22[[#This Row],[75th]]-AAMC_Raw_Data_for_FY22[[#This Row],[Median]])/25)*20) + AAMC_Raw_Data_for_FY22[[#This Row],[Median]]","v":1213743},1262400,{"$f":"(((AAMC_Raw_Data_for_FY22[[#This Row],[75th]]-AAMC_Raw_Data_for_FY22[[#This Row],[Median]])/25)*30) + AAMC_Raw_Data_for_FY22[[#This Row],[Median]]","v":1311057},{"$f":"(((AAMC_Raw_Data_for_FY22[[#This Row],[75th]]-AAMC_Raw_Data_for_FY22[[#This Row],[Median]])/25)*35) + AAMC_Raw_Data_for_FY22[[#This Row],[Median]]","v":1359714},{"$f":"(((AAMC_Raw_Data_for_FY22[[#This Row],[75th]]-AAMC_Raw_Data_for_FY22[[#This Row],[Median]])/25)*40) + AAMC_Raw_Data_for_FY22[[#This Row],[Median]]","v":1408371}]
[{"$f":"AAMC_Raw_Data_for_FY22[[#This Row],[Source]]&AAMC_Raw_Data_for_FY22[[#This Row],[Type]]&AAMC_Raw_Data_for_FY22[[#This Row],[School Subset]]&AAMC_Raw_Data_for_FY22[[#This Row],[Rank]]&AAMC_Raw_Data_for_FY22[[#This Row],[Degree]]&AAMC_Raw_Data_for_FY22[[#This Row],[Department / Specialty]]&\"L\"","v":"AAMCAcademicPrivateInstructorMDNeurosurgeryL"},"Neurosurgery",5,"AAMC","Academic","Private","Instructor","MD","2021-2022",106250,{"$f":"(((AAMC_Raw_Data_for_FY22[[#This Row],[Median]]-AAMC_Raw_Data_for_FY22[[#This Row],[25th]])/25)*5) + AAMC_Raw_Data_for_FY22[[#This Row],[25th]]","v":118435.6},{"$f":"(((AAMC_Raw_Data_for_FY22[[#This Row],[Median]]-AAMC_Raw_Data_for_FY22[[#This Row],[25th]])/25)*10) + AAMC_Raw_Data_for_FY22[[#This Row],[25th]]","v":130621.2},{"$f":"(((AAMC_Raw_Data_for_FY22[[#This Row],[Median]]-AAMC_Raw_Data_for_FY22[[#This Row],[25th]])/25)*15) + AAMC_Raw_Data_for_FY22[[#This Row],[25th]]","v":142806.79999999999},{"$f":"(((AAMC_Raw_Data_for_FY22[[#This Row],[Median]]-AAMC_Raw_Data_for_FY22[[#This Row],[25th]])/25)*20) + AAMC_Raw_Data_for_FY22[[#This Row],[25th]]","v":154992.4},167178,{"$f":"(((AAMC_Raw_Data_for_FY22[[#This Row],[75th]]-AAMC_Raw_Data_for_FY22[[#This Row],[Median]])/25)*5) + AAMC_Raw_Data_for_FY22[[#This Row],[Median]]","v":234743},{"$f":"(((AAMC_Raw_Data_for_FY22[[#This Row],[75th]]-AAMC_Raw_Data_for_FY22[[#This Row],[Median]])/25)*10) + AAMC_Raw_Data_for_FY22[[#This Row],[Median]]","v":302308},{"$f":"(((AAMC_Raw_Data_for_FY22[[#This Row],[75th]]-AAMC_Raw_Data_for_FY22[[#This Row],[Median]])/25)*15) + AAMC_Raw_Data_for_FY22[[#This Row],[Median]]","v":369873},{"$f":"(((AAMC_Raw_Data_for_FY22[[#This Row],[75th]]-AAMC_Raw_Data_for_FY22[[#This Row],[Median]])/25)*20) + AAMC_Raw_Data_for_FY22[[#This Row],[Median]]","v":437438},505003,{"$f":"(((AAMC_Raw_Data_for_FY22[[#This Row],[75th]]-AAMC_Raw_Data_for_FY22[[#This Row],[Median]])/25)*30) + AAMC_Raw_Data_for_FY22[[#This Row],[Median]]","v":572568},{"$f":"(((AAMC_Raw_Data_for_FY22[[#This Row],[75th]]-AAMC_Raw_Data_for_FY22[[#This Row],[Median]])/25)*35) + AAMC_Raw_Data_for_FY22[[#This Row],[Median]]","v":640133},{"$f":"(((AAMC_Raw_Data_for_FY22[[#This Row],[75th]]-AAMC_Raw_Data_for_FY22[[#This Row],[Median]])/25)*40) + AAMC_Raw_Data_for_FY22[[#This Row],[Median]]","v":707698}]
[{"$f":"AAMC_Raw_Data_for_FY22[[#This Row],[Source]]&AAMC_Raw_Data_for_FY22[[#This Row],[Type]]&AAMC_Raw_Data_for_FY22[[#This Row],[School Subset]]&AAMC_Raw_Data_for_FY22[[#This Row],[Rank]]&AAMC_Raw_Data_for_FY22[[#This Row],[Degree]]&AAMC_Raw_Data_for_FY22[[#This Row],[Department / Specialty]]&\"L\"","v":"AAMCAcademicPrivateAssistantMDNeurosurgeryL"},"Neurosurgery",4,"AAMC","Academic","Private","Assistant","MD","2021-2022",492275,{"$f":"(((AAMC_Raw_Data_for_FY22[[#This Row],[Median]]-AAMC_Raw_Data_for_FY22[[#This Row],[25th]])/25)*5) + AAMC_Raw_Data_for_FY22[[#This Row],[25th]]","v":515195.2},{"$f":"(((AAMC_Raw_Data_for_FY22[[#This Row],[Median]]-AAMC_Raw_Data_for_FY22[[#This Row],[25th]])/25)*10) + AAMC_Raw_Data_for_FY22[[#This Row],[25th]]","v":538115.4},{"$f":"(((AAMC_Raw_Data_for_FY22[[#This Row],[Median]]-AAMC_Raw_Data_for_FY22[[#This Row],[25th]])/25)*15) + AAMC_Raw_Data_for_FY22[[#This Row],[25th]]","v":561035.6},{"$f":"(((AAMC_Raw_Data_for_FY22[[#This Row],[Median]]-AAMC_Raw_Data_for_FY22[[#This Row],[25th]])/25)*20) + AAMC_Raw_Data_for_FY22[[#This Row],[25th]]","v":583955.80000000005},606876,{"$f":"(((AAMC_Raw_Data_for_FY22[[#This Row],[75th]]-AAMC_Raw_Data_for_FY22[[#This Row],[Median]])/25)*5) + AAMC_Raw_Data_for_FY22[[#This Row],[Median]]","v":642493.80000000005},{"$f":"(((AAMC_Raw_Data_for_FY22[[#This Row],[75th]]-AAMC_Raw_Data_for_FY22[[#This Row],[Median]])/25)*10) + AAMC_Raw_Data_for_FY22[[#This Row],[Median]]","v":678111.6},{"$f":"(((AAMC_Raw_Data_for_FY22[[#This Row],[75th]]-AAMC_Raw_Data_for_FY22[[#This Row],[Median]])/25)*15) + AAMC_Raw_Data_for_FY22[[#This Row],[Median]]","v":713729.4},{"$f":"(((AAMC_Raw_Data_for_FY22[[#This Row],[75th]]-AAMC_Raw_Data_for_FY22[[#This Row],[Median]])/25)*20) + AAMC_Raw_Data_for_FY22[[#This Row],[Median]]","v":749347.2},784965,{"$f":"(((AAMC_Raw_Data_for_FY22[[#This Row],[75th]]-AAMC_Raw_Data_for_FY22[[#This Row],[Median]])/25)*30) + AAMC_Raw_Data_for_FY22[[#This Row],[Median]]","v":820582.8},{"$f":"(((AAMC_Raw_Data_for_FY22[[#This Row],[75th]]-AAMC_Raw_Data_for_FY22[[#This Row],[Median]])/25)*35) + AAMC_Raw_Data_for_FY22[[#This Row],[Median]]","v":856200.6},{"$f":"(((AAMC_Raw_Data_for_FY22[[#This Row],[75th]]-AAMC_Raw_Data_for_FY22[[#This Row],[Median]])/25)*40) + AAMC_Raw_Data_for_FY22[[#This Row],[Median]]","v":891818.4}]
[{"$f":"AAMC_Raw_Data_for_FY22[[#This Row],[Source]]&AAMC_Raw_Data_for_FY22[[#This Row],[Type]]&AAMC_Raw_Data_for_FY22[[#This Row],[School Subset]]&AAMC_Raw_Data_for_FY22[[#This Row],[Rank]]&AAMC_Raw_Data_for_FY22[[#This Row],[Degree]]&AAMC_Raw_Data_for_FY22[[#This Row],[Department / Specialty]]&\"L\"","v":"AAMCAcademicPrivateAssociateMDNeurosurgeryL"},"Neurosurgery",3,"AAMC","Academic","Private","Associate","MD","2021-2022",617848,{"$f":"(((AAMC_Raw_Data_for_FY22[[#This Row],[Median]]-AAMC_Raw_Data_for_FY22[[#This Row],[25th]])/25)*5) + AAMC_Raw_Data_for_FY22[[#This Row],[25th]]","v":654725},{"$f":"(((AAMC_Raw_Data_for_FY22[[#This Row],[Median]]-AAMC_Raw_Data_for_FY22[[#This Row],[25th]])/25)*10) + AAMC_Raw_Data_for_FY22[[#This Row],[25th]]","v":691602},{"$f":"(((AAMC_Raw_Data_for_FY22[[#This Row],[Median]]-AAMC_Raw_Data_for_FY22[[#This Row],[25th]])/25)*15) + AAMC_Raw_Data_for_FY22[[#This Row],[25th]]","v":728479},{"$f":"(((AAMC_Raw_Data_for_FY22[[#This Row],[Median]]-AAMC_Raw_Data_for_FY22[[#This Row],[25th]])/25)*20) + AAMC_Raw_Data_for_FY22[[#This Row],[25th]]","v":765356},802233,{"$f":"(((AAMC_Raw_Data_for_FY22[[#This Row],[75th]]-AAMC_Raw_Data_for_FY22[[#This Row],[Median]])/25)*5) + AAMC_Raw_Data_for_FY22[[#This Row],[Median]]","v":859687.2},{"$f":"(((AAMC_Raw_Data_for_FY22[[#This Row],[75th]]-AAMC_Raw_Data_for_FY22[[#This Row],[Median]])/25)*10) + AAMC_Raw_Data_for_FY22[[#This Row],[Median]]","v":917141.4},{"$f":"(((AAMC_Raw_Data_for_FY22[[#This Row],[75th]]-AAMC_Raw_Data_for_FY22[[#This Row],[Median]])/25)*15) + AAMC_Raw_Data_for_FY22[[#This Row],[Median]]","v":974595.6},{"$f":"(((AAMC_Raw_Data_for_FY22[[#This Row],[75th]]-AAMC_Raw_Data_for_FY22[[#This Row],[Median]])/25)*20) + AAMC_Raw_Data_for_FY22[[#This Row],[Median]]","v":1032049.8},1089504,{"$f":"(((AAMC_Raw_Data_for_FY22[[#This Row],[75th]]-AAMC_Raw_Data_for_FY22[[#This Row],[Median]])/25)*30) + AAMC_Raw_Data_for_FY22[[#This Row],[Median]]","v":1146958.2},{"$f":"(((AAMC_Raw_Data_for_FY22[[#This Row],[75th]]-AAMC_Raw_Data_for_FY22[[#This Row],[Median]])/25)*35) + AAMC_Raw_Data_for_FY22[[#This Row],[Median]]","v":1204412.3999999999},{"$f":"(((AAMC_Raw_Data_for_FY22[[#This Row],[75th]]-AAMC_Raw_Data_for_FY22[[#This Row],[Median]])/25)*40) + AAMC_Raw_Data_for_FY22[[#This Row],[Median]]","v":1261866.6000000001}]
[{"$f":"AAMC_Raw_Data_for_FY22[[#This Row],[Source]]&AAMC_Raw_Data_for_FY22[[#This Row],[Type]]&AAMC_Raw_Data_for_FY22[[#This Row],[School Subset]]&AAMC_Raw_Data_for_FY22[[#This Row],[Rank]]&AAMC_Raw_Data_for_FY22[[#This Row],[Degree]]&AAMC_Raw_Data_for_FY22[[#This Row],[Department / Specialty]]&\"L\"","v":"AAMCAcademicPrivateProfessorMDNeurosurgeryL"},"Neurosurgery",2,"AAMC","Academic","Private","Professor","MD","2021-2022",661249,{"$f":"(((AAMC_Raw_Data_for_FY22[[#This Row],[Median]]-AAMC_Raw_Data_for_FY22[[#This Row],[25th]])/25)*5) + AAMC_Raw_Data_for_FY22[[#This Row],[25th]]","v":702616},{"$f":"(((AAMC_Raw_Data_for_FY22[[#This Row],[Median]]-AAMC_Raw_Data_for_FY22[[#This Row],[25th]])/25)*10) + AAMC_Raw_Data_for_FY22[[#This Row],[25th]]","v":743983},{"$f":"(((AAMC_Raw_Data_for_FY22[[#This Row],[Median]]-AAMC_Raw_Data_for_FY22[[#This Row],[25th]])/25)*15) + AAMC_Raw_Data_for_FY22[[#This Row],[25th]]","v":785350},{"$f":"(((AAMC_Raw_Data_for_FY22[[#This Row],[Median]]-AAMC_Raw_Data_for_FY22[[#This Row],[25th]])/25)*20) + AAMC_Raw_Data_for_FY22[[#This Row],[25th]]","v":826717},868084,{"$f":"(((AAMC_Raw_Data_for_FY22[[#This Row],[75th]]-AAMC_Raw_Data_for_FY22[[#This Row],[Median]])/25)*5) + AAMC_Raw_Data_for_FY22[[#This Row],[Median]]","v":929778.4},{"$f":"(((AAMC_Raw_Data_for_FY22[[#This Row],[75th]]-AAMC_Raw_Data_for_FY22[[#This Row],[Median]])/25)*10) + AAMC_Raw_Data_for_FY22[[#This Row],[Median]]","v":991472.8},{"$f":"(((AAMC_Raw_Data_for_FY22[[#This Row],[75th]]-AAMC_Raw_Data_for_FY22[[#This Row],[Median]])/25)*15) + AAMC_Raw_Data_for_FY22[[#This Row],[Median]]","v":1053167.2},{"$f":"(((AAMC_Raw_Data_for_FY22[[#This Row],[75th]]-AAMC_Raw_Data_for_FY22[[#This Row],[Median]])/25)*20) + AAMC_Raw_Data_for_FY22[[#This Row],[Median]]","v":1114861.6000000001},1176556,{"$f":"(((AAMC_Raw_Data_for_FY22[[#This Row],[75th]]-AAMC_Raw_Data_for_FY22[[#This Row],[Median]])/25)*30) + AAMC_Raw_Data_for_FY22[[#This Row],[Median]]","v":1238250.3999999999},{"$f":"(((AAMC_Raw_Data_for_FY22[[#This Row],[75th]]-AAMC_Raw_Data_for_FY22[[#This Row],[Median]])/25)*35) + AAMC_Raw_Data_for_FY22[[#This Row],[Median]]","v":1299944.8},{"$f":"(((AAMC_Raw_Data_for_FY22[[#This Row],[75th]]-AAMC_Raw_Data_for_FY22[[#This Row],[Median]])/25)*40) + AAMC_Raw_Data_for_FY22[[#This Row],[Median]]","v":1361639.2}]
[{"$f":"AAMC_Raw_Data_for_FY22[[#This Row],[Source]]&AAMC_Raw_Data_for_FY22[[#This Row],[Type]]&AAMC_Raw_Data_for_FY22[[#This Row],[School Subset]]&AAMC_Raw_Data_for_FY22[[#This Row],[Rank]]&AAMC_Raw_Data_for_FY22[[#This Row],[Degree]]&AAMC_Raw_Data_for_FY22[[#This Row],[Department / Specialty]]&\"L\"","v":"AAMCAcademicPrivateChiefMDNeurosurgeryL"},"Neurosurgery",6,"AAMC","Academic","Private","Chief","MD","2021-2022",711369,{"$f":"(((AAMC_Raw_Data_for_FY22[[#This Row],[Median]]-AAMC_Raw_Data_for_FY22[[#This Row],[25th]])/25)*5) + AAMC_Raw_Data_for_FY22[[#This Row],[25th]]","v":764602.2},{"$f":"(((AAMC_Raw_Data_for_FY22[[#This Row],[Median]]-AAMC_Raw_Data_for_FY22[[#This Row],[25th]])/25)*10) + AAMC_Raw_Data_for_FY22[[#This Row],[25th]]","v":817835.4},{"$f":"(((AAMC_Raw_Data_for_FY22[[#This Row],[Median]]-AAMC_Raw_Data_for_FY22[[#This Row],[25th]])/25)*15) + AAMC_Raw_Data_for_FY22[[#This Row],[25th]]","v":871068.6},{"$f":"(((AAMC_Raw_Data_for_FY22[[#This Row],[Median]]-AAMC_Raw_Data_for_FY22[[#This Row],[25th]])/25)*20) + AAMC_Raw_Data_for_FY22[[#This Row],[25th]]","v":924301.8},977535,{"$f":"(((AAMC_Raw_Data_for_FY22[[#This Row],[75th]]-AAMC_Raw_Data_for_FY22[[#This Row],[Median]])/25)*5) + AAMC_Raw_Data_for_FY22[[#This Row],[Median]]","v":1058696.8},{"$f":"(((AAMC_Raw_Data_for_FY22[[#This Row],[75th]]-AAMC_Raw_Data_for_FY22[[#This Row],[Median]])/25)*10) + AAMC_Raw_Data_for_FY22[[#This Row],[Median]]","v":1139858.6000000001},{"$f":"(((AAMC_Raw_Data_for_FY22[[#This Row],[75th]]-AAMC_Raw_Data_for_FY22[[#This Row],[Median]])/25)*15) + AAMC_Raw_Data_for_FY22[[#This Row],[Median]]","v":1221020.3999999999},{"$f":"(((AAMC_Raw_Data_for_FY22[[#This Row],[75th]]-AAMC_Raw_Data_for_FY22[[#This Row],[Median]])/25)*20) + AAMC_Raw_Data_for_FY22[[#This Row],[Median]]","v":1302182.2},1383344,{"$f":"(((AAMC_Raw_Data_for_FY22[[#This Row],[75th]]-AAMC_Raw_Data_for_FY22[[#This Row],[Median]])/25)*30) + AAMC_Raw_Data_for_FY22[[#This Row],[Median]]","v":1464505.8},{"$f":"(((AAMC_Raw_Data_for_FY22[[#This Row],[75th]]-AAMC_Raw_Data_for_FY22[[#This Row],[Median]])/25)*35) + AAMC_Raw_Data_for_FY22[[#This Row],[Median]]","v":1545667.6},{"$f":"(((AAMC_Raw_Data_for_FY22[[#This Row],[75th]]-AAMC_Raw_Data_for_FY22[[#This Row],[Median]])/25)*40) + AAMC_Raw_Data_for_FY22[[#This Row],[Median]]","v":1626829.4}]
[{"$f":"AAMC_Raw_Data_for_FY22[[#This Row],[Source]]&AAMC_Raw_Data_for_FY22[[#This Row],[Type]]&AAMC_Raw_Data_for_FY22[[#This Row],[School Subset]]&AAMC_Raw_Data_for_FY22[[#This Row],[Rank]]&AAMC_Raw_Data_for_FY22[[#This Row],[Degree]]&AAMC_Raw_Data_for_FY22[[#This Row],[Department / Specialty]]&\"L\"","v":"AAMCAcademicPrivateChairMDNeurosurgeryL"},"Neurosurgery",1,"AAMC","Academic","Private","Chair","MD","2021-2022",1142299,{"$f":"(((AAMC_Raw_Data_for_FY22[[#This Row],[Median]]-AAMC_Raw_Data_for_FY22[[#This Row],[25th]])/25)*5) + AAMC_Raw_Data_for_FY22[[#This Row],[25th]]","v":1242276.2},{"$f":"(((AAMC_Raw_Data_for_FY22[[#This Row],[Median]]-AAMC_Raw_Data_for_FY22[[#This Row],[25th]])/25)*10) + AAMC_Raw_Data_for_FY22[[#This Row],[25th]]","v":1342253.4},{"$f":"(((AAMC_Raw_Data_for_FY22[[#This Row],[Median]]-AAMC_Raw_Data_for_FY22[[#This Row],[25th]])/25)*15) + AAMC_Raw_Data_for_FY22[[#This Row],[25th]]","v":1442230.6},{"$f":"(((AAMC_Raw_Data_for_FY22[[#This Row],[Median]]-AAMC_Raw_Data_for_FY22[[#This Row],[25th]])/25)*20) + AAMC_Raw_Data_for_FY22[[#This Row],[25th]]","v":1542207.8},1642185,{"$f":"(((AAMC_Raw_Data_for_FY22[[#This Row],[75th]]-AAMC_Raw_Data_for_FY22[[#This Row],[Median]])/25)*5) + AAMC_Raw_Data_for_FY22[[#This Row],[Median]]","v":1758029},{"$f":"(((AAMC_Raw_Data_for_FY22[[#This Row],[75th]]-AAMC_Raw_Data_for_FY22[[#This Row],[Median]])/25)*10) + AAMC_Raw_Data_for_FY22[[#This Row],[Median]]","v":1873873},{"$f":"(((AAMC_Raw_Data_for_FY22[[#This Row],[75th]]-AAMC_Raw_Data_for_FY22[[#This Row],[Median]])/25)*15) + AAMC_Raw_Data_for_FY22[[#This Row],[Median]]","v":1989717},{"$f":"(((AAMC_Raw_Data_for_FY22[[#This Row],[75th]]-AAMC_Raw_Data_for_FY22[[#This Row],[Median]])/25)*20) + AAMC_Raw_Data_for_FY22[[#This Row],[Median]]","v":2105561},2221405,{"$f":"(((AAMC_Raw_Data_for_FY22[[#This Row],[75th]]-AAMC_Raw_Data_for_FY22[[#This Row],[Median]])/25)*30) + AAMC_Raw_Data_for_FY22[[#This Row],[Median]]","v":2337249},{"$f":"(((AAMC_Raw_Data_for_FY22[[#This Row],[75th]]-AAMC_Raw_Data_for_FY22[[#This Row],[Median]])/25)*35) + AAMC_Raw_Data_for_FY22[[#This Row],[Median]]","v":2453093},{"$f":"(((AAMC_Raw_Data_for_FY22[[#This Row],[75th]]-AAMC_Raw_Data_for_FY22[[#This Row],[Median]])/25)*40) + AAMC_Raw_Data_for_FY22[[#This Row],[Median]]","v":2568937}]
[{"$f":"AAMC_Raw_Data_for_FY22[[#This Row],[Source]]&AAMC_Raw_Data_for_FY22[[#This Row],[Type]]&AAMC_Raw_Data_for_FY22[[#This Row],[School Subset]]&AAMC_Raw_Data_for_FY22[[#This Row],[Rank]]&AAMC_Raw_Data_for_FY22[[#This Row],[Degree]]&AAMC_Raw_Data_for_FY22[[#This Row],[Department / Specialty]]&\"L\"","v":"AAMCAcademicPrivateInstructorMDOrthopedic Surgery TotalL"},"Orthopedic Surgery Total",5,"AAMC","Academic","Private","Instructor","MD","2021-2022",308653,{"$f":"(((AAMC_Raw_Data_for_FY22[[#This Row],[Median]]-AAMC_Raw_Data_for_FY22[[#This Row],[25th]])/25)*5) + AAMC_Raw_Data_for_FY22[[#This Row],[25th]]","v":332833},{"$f":"(((AAMC_Raw_Data_for_FY22[[#This Row],[Median]]-AAMC_Raw_Data_for_FY22[[#This Row],[25th]])/25)*10) + AAMC_Raw_Data_for_FY22[[#This Row],[25th]]","v":357013},{"$f":"(((AAMC_Raw_Data_for_FY22[[#This Row],[Median]]-AAMC_Raw_Data_for_FY22[[#This Row],[25th]])/25)*15) + AAMC_Raw_Data_for_FY22[[#This Row],[25th]]","v":381193},{"$f":"(((AAMC_Raw_Data_for_FY22[[#This Row],[Median]]-AAMC_Raw_Data_for_FY22[[#This Row],[25th]])/25)*20) + AAMC_Raw_Data_for_FY22[[#This Row],[25th]]","v":405373},429553,{"$f":"(((AAMC_Raw_Data_for_FY22[[#This Row],[75th]]-AAMC_Raw_Data_for_FY22[[#This Row],[Median]])/25)*5) + AAMC_Raw_Data_for_FY22[[#This Row],[Median]]","v":474424.4},{"$f":"(((AAMC_Raw_Data_for_FY22[[#This Row],[75th]]-AAMC_Raw_Data_for_FY22[[#This Row],[Median]])/25)*10) + AAMC_Raw_Data_for_FY22[[#This Row],[Median]]","v":519295.8},{"$f":"(((AAMC_Raw_Data_for_FY22[[#This Row],[75th]]-AAMC_Raw_Data_for_FY22[[#This Row],[Median]])/25)*15) + AAMC_Raw_Data_for_FY22[[#This Row],[Median]]","v":564167.19999999995},{"$f":"(((AAMC_Raw_Data_for_FY22[[#This Row],[75th]]-AAMC_Raw_Data_for_FY22[[#This Row],[Median]])/25)*20) + AAMC_Raw_Data_for_FY22[[#This Row],[Median]]","v":609038.6},653910,{"$f":"(((AAMC_Raw_Data_for_FY22[[#This Row],[75th]]-AAMC_Raw_Data_for_FY22[[#This Row],[Median]])/25)*30) + AAMC_Raw_Data_for_FY22[[#This Row],[Median]]","v":698781.4},{"$f":"(((AAMC_Raw_Data_for_FY22[[#This Row],[75th]]-AAMC_Raw_Data_for_FY22[[#This Row],[Median]])/25)*35) + AAMC_Raw_Data_for_FY22[[#This Row],[Median]]","v":743652.8},{"$f":"(((AAMC_Raw_Data_for_FY22[[#This Row],[75th]]-AAMC_Raw_Data_for_FY22[[#This Row],[Median]])/25)*40) + AAMC_Raw_Data_for_FY22[[#This Row],[Median]]","v":788524.2}]
[{"$f":"AAMC_Raw_Data_for_FY22[[#This Row],[Source]]&AAMC_Raw_Data_for_FY22[[#This Row],[Type]]&AAMC_Raw_Data_for_FY22[[#This Row],[School Subset]]&AAMC_Raw_Data_for_FY22[[#This Row],[Rank]]&AAMC_Raw_Data_for_FY22[[#This Row],[Degree]]&AAMC_Raw_Data_for_FY22[[#This Row],[Department / Specialty]]&\"L\"","v":"AAMCAcademicPrivateAssistantMDOrthopedic Surgery TotalL"},"Orthopedic Surgery Total",4,"AAMC","Academic","Private","Assistant","MD","2021-2022",394768,{"$f":"(((AAMC_Raw_Data_for_FY22[[#This Row],[Median]]-AAMC_Raw_Data_for_FY22[[#This Row],[25th]])/25)*5) + AAMC_Raw_Data_for_FY22[[#This Row],[25th]]","v":416511.8},{"$f":"(((AAMC_Raw_Data_for_FY22[[#This Row],[Median]]-AAMC_Raw_Data_for_FY22[[#This Row],[25th]])/25)*10) + AAMC_Raw_Data_for_FY22[[#This Row],[25th]]","v":438255.6},{"$f":"(((AAMC_Raw_Data_for_FY22[[#This Row],[Median]]-AAMC_Raw_Data_for_FY22[[#This Row],[25th]])/25)*15) + AAMC_Raw_Data_for_FY22[[#This Row],[25th]]","v":459999.4},{"$f":"(((AAMC_Raw_Data_for_FY22[[#This Row],[Median]]-AAMC_Raw_Data_for_FY22[[#This Row],[25th]])/25)*20) + AAMC_Raw_Data_for_FY22[[#This Row],[25th]]","v":481743.2},503487,{"$f":"(((AAMC_Raw_Data_for_FY22[[#This Row],[75th]]-AAMC_Raw_Data_for_FY22[[#This Row],[Median]])/25)*5) + AAMC_Raw_Data_for_FY22[[#This Row],[Median]]","v":538485.6},{"$f":"(((AAMC_Raw_Data_for_FY22[[#This Row],[75th]]-AAMC_Raw_Data_for_FY22[[#This Row],[Median]])/25)*10) + AAMC_Raw_Data_for_FY22[[#This Row],[Median]]","v":573484.19999999995},{"$f":"(((AAMC_Raw_Data_for_FY22[[#This Row],[75th]]-AAMC_Raw_Data_for_FY22[[#This Row],[Median]])/25)*15) + AAMC_Raw_Data_for_FY22[[#This Row],[Median]]","v":608482.80000000005},{"$f":"(((AAMC_Raw_Data_for_FY22[[#This Row],[75th]]-AAMC_Raw_Data_for_FY22[[#This Row],[Median]])/25)*20) + AAMC_Raw_Data_for_FY22[[#This Row],[Median]]","v":643481.4},678480,{"$f":"(((AAMC_Raw_Data_for_FY22[[#This Row],[75th]]-AAMC_Raw_Data_for_FY22[[#This Row],[Median]])/25)*30) + AAMC_Raw_Data_for_FY22[[#This Row],[Median]]","v":713478.6},{"$f":"(((AAMC_Raw_Data_for_FY22[[#This Row],[75th]]-AAMC_Raw_Data_for_FY22[[#This Row],[Median]])/25)*35) + AAMC_Raw_Data_for_FY22[[#This Row],[Median]]","v":748477.2},{"$f":"(((AAMC_Raw_Data_for_FY22[[#This Row],[75th]]-AAMC_Raw_Data_for_FY22[[#This Row],[Median]])/25)*40) + AAMC_Raw_Data_for_FY22[[#This Row],[Median]]","v":783475.8}]
[{"$f":"AAMC_Raw_Data_for_FY22[[#This Row],[Source]]&AAMC_Raw_Data_for_FY22[[#This Row],[Type]]&AAMC_Raw_Data_for_FY22[[#This Row],[School Subset]]&AAMC_Raw_Data_for_FY22[[#This Row],[Rank]]&AAMC_Raw_Data_for_FY22[[#This Row],[Degree]]&AAMC_Raw_Data_for_FY22[[#This Row],[Department / Specialty]]&\"L\"","v":"AAMCAcademicPrivateAssociateMDOrthopedic Surgery TotalL"},"Orthopedic Surgery Total",3,"AAMC","Academic","Private","Associate","MD","2021-2022",480784,{"$f":"(((AAMC_Raw_Data_for_FY22[[#This Row],[Median]]-AAMC_Raw_Data_for_FY22[[#This Row],[25th]])/25)*5) + AAMC_Raw_Data_for_FY22[[#This Row],[25th]]","v":510201.4},{"$f":"(((AAMC_Raw_Data_for_FY22[[#This Row],[Median]]-AAMC_Raw_Data_for_FY22[[#This Row],[25th]])/25)*10) + AAMC_Raw_Data_for_FY22[[#This Row],[25th]]","v":539618.80000000005},{"$f":"(((AAMC_Raw_Data_for_FY22[[#This Row],[Median]]-AAMC_Raw_Data_for_FY22[[#This Row],[25th]])/25)*15) + AAMC_Raw_Data_for_FY22[[#This Row],[25th]]","v":569036.19999999995},{"$f":"(((AAMC_Raw_Data_for_FY22[[#This Row],[Median]]-AAMC_Raw_Data_for_FY22[[#This Row],[25th]])/25)*20) + AAMC_Raw_Data_for_FY22[[#This Row],[25th]]","v":598453.6},627871,{"$f":"(((AAMC_Raw_Data_for_FY22[[#This Row],[75th]]-AAMC_Raw_Data_for_FY22[[#This Row],[Median]])/25)*5) + AAMC_Raw_Data_for_FY22[[#This Row],[Median]]","v":669821.6},{"$f":"(((AAMC_Raw_Data_for_FY22[[#This Row],[75th]]-AAMC_Raw_Data_for_FY22[[#This Row],[Median]])/25)*10) + AAMC_Raw_Data_for_FY22[[#This Row],[Median]]","v":711772.2},{"$f":"(((AAMC_Raw_Data_for_FY22[[#This Row],[75th]]-AAMC_Raw_Data_for_FY22[[#This Row],[Median]])/25)*15) + AAMC_Raw_Data_for_FY22[[#This Row],[Median]]","v":753722.8},{"$f":"(((AAMC_Raw_Data_for_FY22[[#This Row],[75th]]-AAMC_Raw_Data_for_FY22[[#This Row],[Median]])/25)*20) + AAMC_Raw_Data_for_FY22[[#This Row],[Median]]","v":795673.4},837624,{"$f":"(((AAMC_Raw_Data_for_FY22[[#This Row],[75th]]-AAMC_Raw_Data_for_FY22[[#This Row],[Median]])/25)*30) + AAMC_Raw_Data_for_FY22[[#This Row],[Median]]","v":879574.60000000009},{"$f":"(((AAMC_Raw_Data_for_FY22[[#This Row],[75th]]-AAMC_Raw_Data_for_FY22[[#This Row],[Median]])/25)*35) + AAMC_Raw_Data_for_FY22[[#This Row],[Median]]","v":921525.2},{"$f":"(((AAMC_Raw_Data_for_FY22[[#This Row],[75th]]-AAMC_Raw_Data_for_FY22[[#This Row],[Median]])/25)*40) + AAMC_Raw_Data_for_FY22[[#This Row],[Median]]","v":963475.8}]
[{"$f":"AAMC_Raw_Data_for_FY22[[#This Row],[Source]]&AAMC_Raw_Data_for_FY22[[#This Row],[Type]]&AAMC_Raw_Data_for_FY22[[#This Row],[School Subset]]&AAMC_Raw_Data_for_FY22[[#This Row],[Rank]]&AAMC_Raw_Data_for_FY22[[#This Row],[Degree]]&AAMC_Raw_Data_for_FY22[[#This Row],[Department / Specialty]]&\"L\"","v":"AAMCAcademicPrivateProfessorMDOrthopedic Surgery TotalL"},"Orthopedic Surgery Total",2,"AAMC","Academic","Private","Professor","MD","2021-2022",474888,{"$f":"(((AAMC_Raw_Data_for_FY22[[#This Row],[Median]]-AAMC_Raw_Data_for_FY22[[#This Row],[25th]])/25)*5) + AAMC_Raw_Data_for_FY22[[#This Row],[25th]]","v":519655.2},{"$f":"(((AAMC_Raw_Data_for_FY22[[#This Row],[Median]]-AAMC_Raw_Data_for_FY22[[#This Row],[25th]])/25)*10) + AAMC_Raw_Data_for_FY22[[#This Row],[25th]]","v":564422.40000000002},{"$f":"(((AAMC_Raw_Data_for_FY22[[#This Row],[Median]]-AAMC_Raw_Data_for_FY22[[#This Row],[25th]])/25)*15) + AAMC_Raw_Data_for_FY22[[#This Row],[25th]]","v":609189.6},{"$f":"(((AAMC_Raw_Data_for_FY22[[#This Row],[Median]]-AAMC_Raw_Data_for_FY22[[#This Row],[25th]])/25)*20) + AAMC_Raw_Data_for_FY22[[#This Row],[25th]]","v":653956.80000000005},698724,{"$f":"(((AAMC_Raw_Data_for_FY22[[#This Row],[75th]]-AAMC_Raw_Data_for_FY22[[#This Row],[Median]])/25)*5) + AAMC_Raw_Data_for_FY22[[#This Row],[Median]]","v":739166},{"$f":"(((AAMC_Raw_Data_for_FY22[[#This Row],[75th]]-AAMC_Raw_Data_for_FY22[[#This Row],[Median]])/25)*10) + AAMC_Raw_Data_for_FY22[[#This Row],[Median]]","v":779608},{"$f":"(((AAMC_Raw_Data_for_FY22[[#This Row],[75th]]-AAMC_Raw_Data_for_FY22[[#This Row],[Median]])/25)*15) + AAMC_Raw_Data_for_FY22[[#This Row],[Median]]","v":820050},{"$f":"(((AAMC_Raw_Data_for_FY22[[#This Row],[75th]]-AAMC_Raw_Data_for_FY22[[#This Row],[Median]])/25)*20) + AAMC_Raw_Data_for_FY22[[#This Row],[Median]]","v":860492},900934,{"$f":"(((AAMC_Raw_Data_for_FY22[[#This Row],[75th]]-AAMC_Raw_Data_for_FY22[[#This Row],[Median]])/25)*30) + AAMC_Raw_Data_for_FY22[[#This Row],[Median]]","v":941376},{"$f":"(((AAMC_Raw_Data_for_FY22[[#This Row],[75th]]-AAMC_Raw_Data_for_FY22[[#This Row],[Median]])/25)*35) + AAMC_Raw_Data_for_FY22[[#This Row],[Median]]","v":981818},{"$f":"(((AAMC_Raw_Data_for_FY22[[#This Row],[75th]]-AAMC_Raw_Data_for_FY22[[#This Row],[Median]])/25)*40) + AAMC_Raw_Data_for_FY22[[#This Row],[Median]]","v":1022260}]
[{"$f":"AAMC_Raw_Data_for_FY22[[#This Row],[Source]]&AAMC_Raw_Data_for_FY22[[#This Row],[Type]]&AAMC_Raw_Data_for_FY22[[#This Row],[School Subset]]&AAMC_Raw_Data_for_FY22[[#This Row],[Rank]]&AAMC_Raw_Data_for_FY22[[#This Row],[Degree]]&AAMC_Raw_Data_for_FY22[[#This Row],[Department / Specialty]]&\"L\"","v":"AAMCAcademicPrivateChiefMDOrthopedic Surgery TotalL"},"Orthopedic Surgery Total",6,"AAMC","Academic","Private","Chief","MD","2021-2022",647961,{"$f":"(((AAMC_Raw_Data_for_FY22[[#This Row],[Median]]-AAMC_Raw_Data_for_FY22[[#This Row],[25th]])/25)*5) + AAMC_Raw_Data_for_FY22[[#This Row],[25th]]","v":680965.4},{"$f":"(((AAMC_Raw_Data_for_FY22[[#This Row],[Median]]-AAMC_Raw_Data_for_FY22[[#This Row],[25th]])/25)*10) + AAMC_Raw_Data_for_FY22[[#This Row],[25th]]","v":713969.8},{"$f":"(((AAMC_Raw_Data_for_FY22[[#This Row],[Median]]-AAMC_Raw_Data_for_FY22[[#This Row],[25th]])/25)*15) + AAMC_Raw_Data_for_FY22[[#This Row],[25th]]","v":746974.2},{"$f":"(((AAMC_Raw_Data_for_FY22[[#This Row],[Median]]-AAMC_Raw_Data_for_FY22[[#This Row],[25th]])/25)*20) + AAMC_Raw_Data_for_FY22[[#This Row],[25th]]","v":779978.6},812983,{"$f":"(((AAMC_Raw_Data_for_FY22[[#This Row],[75th]]-AAMC_Raw_Data_for_FY22[[#This Row],[Median]])/25)*5) + AAMC_Raw_Data_for_FY22[[#This Row],[Median]]","v":871927.2},{"$f":"(((AAMC_Raw_Data_for_FY22[[#This Row],[75th]]-AAMC_Raw_Data_for_FY22[[#This Row],[Median]])/25)*10) + AAMC_Raw_Data_for_FY22[[#This Row],[Median]]","v":930871.4},{"$f":"(((AAMC_Raw_Data_for_FY22[[#This Row],[75th]]-AAMC_Raw_Data_for_FY22[[#This Row],[Median]])/25)*15) + AAMC_Raw_Data_for_FY22[[#This Row],[Median]]","v":989815.6},{"$f":"(((AAMC_Raw_Data_for_FY22[[#This Row],[75th]]-AAMC_Raw_Data_for_FY22[[#This Row],[Median]])/25)*20) + AAMC_Raw_Data_for_FY22[[#This Row],[Median]]","v":1048759.8},1107704,{"$f":"(((AAMC_Raw_Data_for_FY22[[#This Row],[75th]]-AAMC_Raw_Data_for_FY22[[#This Row],[Median]])/25)*30) + AAMC_Raw_Data_for_FY22[[#This Row],[Median]]","v":1166648.2},{"$f":"(((AAMC_Raw_Data_for_FY22[[#This Row],[75th]]-AAMC_Raw_Data_for_FY22[[#This Row],[Median]])/25)*35) + AAMC_Raw_Data_for_FY22[[#This Row],[Median]]","v":1225592.3999999999},{"$f":"(((AAMC_Raw_Data_for_FY22[[#This Row],[75th]]-AAMC_Raw_Data_for_FY22[[#This Row],[Median]])/25)*40) + AAMC_Raw_Data_for_FY22[[#This Row],[Median]]","v":1284536.6000000001}]
[{"$f":"AAMC_Raw_Data_for_FY22[[#This Row],[Source]]&AAMC_Raw_Data_for_FY22[[#This Row],[Type]]&AAMC_Raw_Data_for_FY22[[#This Row],[School Subset]]&AAMC_Raw_Data_for_FY22[[#This Row],[Rank]]&AAMC_Raw_Data_for_FY22[[#This Row],[Degree]]&AAMC_Raw_Data_for_FY22[[#This Row],[Department / Specialty]]&\"L\"","v":"AAMCAcademicPrivateChairMDOrthopedic Surgery TotalL"},"Orthopedic Surgery Total",1,"AAMC","Academic","Private","Chair","MD","2021-2022",940000,{"$f":"(((AAMC_Raw_Data_for_FY22[[#This Row],[Median]]-AAMC_Raw_Data_for_FY22[[#This Row],[25th]])/25)*5) + AAMC_Raw_Data_for_FY22[[#This Row],[25th]]","v":974809.2},{"$f":"(((AAMC_Raw_Data_for_FY22[[#This Row],[Median]]-AAMC_Raw_Data_for_FY22[[#This Row],[25th]])/25)*10) + AAMC_Raw_Data_for_FY22[[#This Row],[25th]]","v":1009618.4},{"$f":"(((AAMC_Raw_Data_for_FY22[[#This Row],[Median]]-AAMC_Raw_Data_for_FY22[[#This Row],[25th]])/25)*15) + AAMC_Raw_Data_for_FY22[[#This Row],[25th]]","v":1044427.6},{"$f":"(((AAMC_Raw_Data_for_FY22[[#This Row],[Median]]-AAMC_Raw_Data_for_FY22[[#This Row],[25th]])/25)*20) + AAMC_Raw_Data_for_FY22[[#This Row],[25th]]","v":1079236.8},1114046,{"$f":"(((AAMC_Raw_Data_for_FY22[[#This Row],[75th]]-AAMC_Raw_Data_for_FY22[[#This Row],[Median]])/25)*5) + AAMC_Raw_Data_for_FY22[[#This Row],[Median]]","v":1174870.8},{"$f":"(((AAMC_Raw_Data_for_FY22[[#This Row],[75th]]-AAMC_Raw_Data_for_FY22[[#This Row],[Median]])/25)*10) + AAMC_Raw_Data_for_FY22[[#This Row],[Median]]","v":1235695.6000000001},{"$f":"(((AAMC_Raw_Data_for_FY22[[#This Row],[75th]]-AAMC_Raw_Data_for_FY22[[#This Row],[Median]])/25)*15) + AAMC_Raw_Data_for_FY22[[#This Row],[Median]]","v":1296520.3999999999},{"$f":"(((AAMC_Raw_Data_for_FY22[[#This Row],[75th]]-AAMC_Raw_Data_for_FY22[[#This Row],[Median]])/25)*20) + AAMC_Raw_Data_for_FY22[[#This Row],[Median]]","v":1357345.2},1418170,{"$f":"(((AAMC_Raw_Data_for_FY22[[#This Row],[75th]]-AAMC_Raw_Data_for_FY22[[#This Row],[Median]])/25)*30) + AAMC_Raw_Data_for_FY22[[#This Row],[Median]]","v":1478994.8},{"$f":"(((AAMC_Raw_Data_for_FY22[[#This Row],[75th]]-AAMC_Raw_Data_for_FY22[[#This Row],[Median]])/25)*35) + AAMC_Raw_Data_for_FY22[[#This Row],[Median]]","v":1539819.6},{"$f":"(((AAMC_Raw_Data_for_FY22[[#This Row],[75th]]-AAMC_Raw_Data_for_FY22[[#This Row],[Median]])/25)*40) + AAMC_Raw_Data_for_FY22[[#This Row],[Median]]","v":1600644.4}]
[{"$f":"AAMC_Raw_Data_for_FY22[[#This Row],[Source]]&AAMC_Raw_Data_for_FY22[[#This Row],[Type]]&AAMC_Raw_Data_for_FY22[[#This Row],[School Subset]]&AAMC_Raw_Data_for_FY22[[#This Row],[Rank]]&AAMC_Raw_Data_for_FY22[[#This Row],[Degree]]&AAMC_Raw_Data_for_FY22[[#This Row],[Department / Specialty]]&\"L\"","v":"AAMCAcademicPrivateInstructorMDOrthopedic Surgery: GeneralL"},"Orthopedic Surgery: General",5,"AAMC","Academic","Private","Instructor","MD","2021-2022",285305,{"$f":"(((AAMC_Raw_Data_for_FY22[[#This Row],[Median]]-AAMC_Raw_Data_for_FY22[[#This Row],[25th]])/25)*5) + AAMC_Raw_Data_for_FY22[[#This Row],[25th]]","v":297244},{"$f":"(((AAMC_Raw_Data_for_FY22[[#This Row],[Median]]-AAMC_Raw_Data_for_FY22[[#This Row],[25th]])/25)*10) + AAMC_Raw_Data_for_FY22[[#This Row],[25th]]","v":309183},{"$f":"(((AAMC_Raw_Data_for_FY22[[#This Row],[Median]]-AAMC_Raw_Data_for_FY22[[#This Row],[25th]])/25)*15) + AAMC_Raw_Data_for_FY22[[#This Row],[25th]]","v":321122},{"$f":"(((AAMC_Raw_Data_for_FY22[[#This Row],[Median]]-AAMC_Raw_Data_for_FY22[[#This Row],[25th]])/25)*20) + AAMC_Raw_Data_for_FY22[[#This Row],[25th]]","v":333061},345000,{"$f":"(((AAMC_Raw_Data_for_FY22[[#This Row],[75th]]-AAMC_Raw_Data_for_FY22[[#This Row],[Median]])/25)*5) + AAMC_Raw_Data_for_FY22[[#This Row],[Median]]","v":384100},{"$f":"(((AAMC_Raw_Data_for_FY22[[#This Row],[75th]]-AAMC_Raw_Data_for_FY22[[#This Row],[Median]])/25)*10) + AAMC_Raw_Data_for_FY22[[#This Row],[Median]]","v":423200},{"$f":"(((AAMC_Raw_Data_for_FY22[[#This Row],[75th]]-AAMC_Raw_Data_for_FY22[[#This Row],[Median]])/25)*15) + AAMC_Raw_Data_for_FY22[[#This Row],[Median]]","v":462300},{"$f":"(((AAMC_Raw_Data_for_FY22[[#This Row],[75th]]-AAMC_Raw_Data_for_FY22[[#This Row],[Median]])/25)*20) + AAMC_Raw_Data_for_FY22[[#This Row],[Median]]","v":501400},540500,{"$f":"(((AAMC_Raw_Data_for_FY22[[#This Row],[75th]]-AAMC_Raw_Data_for_FY22[[#This Row],[Median]])/25)*30) + AAMC_Raw_Data_for_FY22[[#This Row],[Median]]","v":579600},{"$f":"(((AAMC_Raw_Data_for_FY22[[#This Row],[75th]]-AAMC_Raw_Data_for_FY22[[#This Row],[Median]])/25)*35) + AAMC_Raw_Data_for_FY22[[#This Row],[Median]]","v":618700},{"$f":"(((AAMC_Raw_Data_for_FY22[[#This Row],[75th]]-AAMC_Raw_Data_for_FY22[[#This Row],[Median]])/25)*40) + AAMC_Raw_Data_for_FY22[[#This Row],[Median]]","v":657800}]
[{"$f":"AAMC_Raw_Data_for_FY22[[#This Row],[Source]]&AAMC_Raw_Data_for_FY22[[#This Row],[Type]]&AAMC_Raw_Data_for_FY22[[#This Row],[School Subset]]&AAMC_Raw_Data_for_FY22[[#This Row],[Rank]]&AAMC_Raw_Data_for_FY22[[#This Row],[Degree]]&AAMC_Raw_Data_for_FY22[[#This Row],[Department / Specialty]]&\"L\"","v":"AAMCAcademicPrivateAssistantMDOrthopedic Surgery: GeneralL"},"Orthopedic Surgery: General",4,"AAMC","Academic","Private","Assistant","MD","2021-2022",399426,{"$f":"(((AAMC_Raw_Data_for_FY22[[#This Row],[Median]]-AAMC_Raw_Data_for_FY22[[#This Row],[25th]])/25)*5) + AAMC_Raw_Data_for_FY22[[#This Row],[25th]]","v":418140.8},{"$f":"(((AAMC_Raw_Data_for_FY22[[#This Row],[Median]]-AAMC_Raw_Data_for_FY22[[#This Row],[25th]])/25)*10) + AAMC_Raw_Data_for_FY22[[#This Row],[25th]]","v":436855.6},{"$f":"(((AAMC_Raw_Data_for_FY22[[#This Row],[Median]]-AAMC_Raw_Data_for_FY22[[#This Row],[25th]])/25)*15) + AAMC_Raw_Data_for_FY22[[#This Row],[25th]]","v":455570.4},{"$f":"(((AAMC_Raw_Data_for_FY22[[#This Row],[Median]]-AAMC_Raw_Data_for_FY22[[#This Row],[25th]])/25)*20) + AAMC_Raw_Data_for_FY22[[#This Row],[25th]]","v":474285.2},493000,{"$f":"(((AAMC_Raw_Data_for_FY22[[#This Row],[75th]]-AAMC_Raw_Data_for_FY22[[#This Row],[Median]])/25)*5) + AAMC_Raw_Data_for_FY22[[#This Row],[Median]]","v":530060},{"$f":"(((AAMC_Raw_Data_for_FY22[[#This Row],[75th]]-AAMC_Raw_Data_for_FY22[[#This Row],[Median]])/25)*10) + AAMC_Raw_Data_for_FY22[[#This Row],[Median]]","v":567120},{"$f":"(((AAMC_Raw_Data_for_FY22[[#This Row],[75th]]-AAMC_Raw_Data_for_FY22[[#This Row],[Median]])/25)*15) + AAMC_Raw_Data_for_FY22[[#This Row],[Median]]","v":604180},{"$f":"(((AAMC_Raw_Data_for_FY22[[#This Row],[75th]]-AAMC_Raw_Data_for_FY22[[#This Row],[Median]])/25)*20) + AAMC_Raw_Data_for_FY22[[#This Row],[Median]]","v":641240},678300,{"$f":"(((AAMC_Raw_Data_for_FY22[[#This Row],[75th]]-AAMC_Raw_Data_for_FY22[[#This Row],[Median]])/25)*30) + AAMC_Raw_Data_for_FY22[[#This Row],[Median]]","v":715360},{"$f":"(((AAMC_Raw_Data_for_FY22[[#This Row],[75th]]-AAMC_Raw_Data_for_FY22[[#This Row],[Median]])/25)*35) + AAMC_Raw_Data_for_FY22[[#This Row],[Median]]","v":752420},{"$f":"(((AAMC_Raw_Data_for_FY22[[#This Row],[75th]]-AAMC_Raw_Data_for_FY22[[#This Row],[Median]])/25)*40) + AAMC_Raw_Data_for_FY22[[#This Row],[Median]]","v":789480}]
[{"$f":"AAMC_Raw_Data_for_FY22[[#This Row],[Source]]&AAMC_Raw_Data_for_FY22[[#This Row],[Type]]&AAMC_Raw_Data_for_FY22[[#This Row],[School Subset]]&AAMC_Raw_Data_for_FY22[[#This Row],[Rank]]&AAMC_Raw_Data_for_FY22[[#This Row],[Degree]]&AAMC_Raw_Data_for_FY22[[#This Row],[Department / Specialty]]&\"L\"","v":"AAMCAcademicPrivateAssociateMDOrthopedic Surgery: GeneralL"},"Orthopedic Surgery: General",3,"AAMC","Academic","Private","Associate","MD","2021-2022",473075,{"$f":"(((AAMC_Raw_Data_for_FY22[[#This Row],[Median]]-AAMC_Raw_Data_for_FY22[[#This Row],[25th]])/25)*5) + AAMC_Raw_Data_for_FY22[[#This Row],[25th]]","v":500051.8},{"$f":"(((AAMC_Raw_Data_for_FY22[[#This Row],[Median]]-AAMC_Raw_Data_for_FY22[[#This Row],[25th]])/25)*10) + AAMC_Raw_Data_for_FY22[[#This Row],[25th]]","v":527028.6},{"$f":"(((AAMC_Raw_Data_for_FY22[[#This Row],[Median]]-AAMC_Raw_Data_for_FY22[[#This Row],[25th]])/25)*15) + AAMC_Raw_Data_for_FY22[[#This Row],[25th]]","v":554005.4},{"$f":"(((AAMC_Raw_Data_for_FY22[[#This Row],[Median]]-AAMC_Raw_Data_for_FY22[[#This Row],[25th]])/25)*20) + AAMC_Raw_Data_for_FY22[[#This Row],[25th]]","v":580982.19999999995},607959,{"$f":"(((AAMC_Raw_Data_for_FY22[[#This Row],[75th]]-AAMC_Raw_Data_for_FY22[[#This Row],[Median]])/25)*5) + AAMC_Raw_Data_for_FY22[[#This Row],[Median]]","v":648142.19999999995},{"$f":"(((AAMC_Raw_Data_for_FY22[[#This Row],[75th]]-AAMC_Raw_Data_for_FY22[[#This Row],[Median]])/25)*10) + AAMC_Raw_Data_for_FY22[[#This Row],[Median]]","v":688325.4},{"$f":"(((AAMC_Raw_Data_for_FY22[[#This Row],[75th]]-AAMC_Raw_Data_for_FY22[[#This Row],[Median]])/25)*15) + AAMC_Raw_Data_for_FY22[[#This Row],[Median]]","v":728508.6},{"$f":"(((AAMC_Raw_Data_for_FY22[[#This Row],[75th]]-AAMC_Raw_Data_for_FY22[[#This Row],[Median]])/25)*20) + AAMC_Raw_Data_for_FY22[[#This Row],[Median]]","v":768691.8},808875,{"$f":"(((AAMC_Raw_Data_for_FY22[[#This Row],[75th]]-AAMC_Raw_Data_for_FY22[[#This Row],[Median]])/25)*30) + AAMC_Raw_Data_for_FY22[[#This Row],[Median]]","v":849058.2},{"$f":"(((AAMC_Raw_Data_for_FY22[[#This Row],[75th]]-AAMC_Raw_Data_for_FY22[[#This Row],[Median]])/25)*35) + AAMC_Raw_Data_for_FY22[[#This Row],[Median]]","v":889241.4},{"$f":"(((AAMC_Raw_Data_for_FY22[[#This Row],[75th]]-AAMC_Raw_Data_for_FY22[[#This Row],[Median]])/25)*40) + AAMC_Raw_Data_for_FY22[[#This Row],[Median]]","v":929424.60000000009}]
[{"$f":"AAMC_Raw_Data_for_FY22[[#This Row],[Source]]&AAMC_Raw_Data_for_FY22[[#This Row],[Type]]&AAMC_Raw_Data_for_FY22[[#This Row],[School Subset]]&AAMC_Raw_Data_for_FY22[[#This Row],[Rank]]&AAMC_Raw_Data_for_FY22[[#This Row],[Degree]]&AAMC_Raw_Data_for_FY22[[#This Row],[Department / Specialty]]&\"L\"","v":"AAMCAcademicPrivateProfessorMDOrthopedic Surgery: GeneralL"},"Orthopedic Surgery: General",2,"AAMC","Academic","Private","Professor","MD","2021-2022",467455,{"$f":"(((AAMC_Raw_Data_for_FY22[[#This Row],[Median]]-AAMC_Raw_Data_for_FY22[[#This Row],[25th]])/25)*5) + AAMC_Raw_Data_for_FY22[[#This Row],[25th]]","v":504242.6},{"$f":"(((AAMC_Raw_Data_for_FY22[[#This Row],[Median]]-AAMC_Raw_Data_for_FY22[[#This Row],[25th]])/25)*10) + AAMC_Raw_Data_for_FY22[[#This Row],[25th]]","v":541030.19999999995},{"$f":"(((AAMC_Raw_Data_for_FY22[[#This Row],[Median]]-AAMC_Raw_Data_for_FY22[[#This Row],[25th]])/25)*15) + AAMC_Raw_Data_for_FY22[[#This Row],[25th]]","v":577817.80000000005},{"$f":"(((AAMC_Raw_Data_for_FY22[[#This Row],[Median]]-AAMC_Raw_Data_for_FY22[[#This Row],[25th]])/25)*20) + AAMC_Raw_Data_for_FY22[[#This Row],[25th]]","v":614605.4},651393,{"$f":"(((AAMC_Raw_Data_for_FY22[[#This Row],[75th]]-AAMC_Raw_Data_for_FY22[[#This Row],[Median]])/25)*5) + AAMC_Raw_Data_for_FY22[[#This Row],[Median]]","v":675898.2},{"$f":"(((AAMC_Raw_Data_for_FY22[[#This Row],[75th]]-AAMC_Raw_Data_for_FY22[[#This Row],[Median]])/25)*10) + AAMC_Raw_Data_for_FY22[[#This Row],[Median]]","v":700403.4},{"$f":"(((AAMC_Raw_Data_for_FY22[[#This Row],[75th]]-AAMC_Raw_Data_for_FY22[[#This Row],[Median]])/25)*15) + AAMC_Raw_Data_for_FY22[[#This Row],[Median]]","v":724908.6},{"$f":"(((AAMC_Raw_Data_for_FY22[[#This Row],[75th]]-AAMC_Raw_Data_for_FY22[[#This Row],[Median]])/25)*20) + AAMC_Raw_Data_for_FY22[[#This Row],[Median]]","v":749413.8},773919,{"$f":"(((AAMC_Raw_Data_for_FY22[[#This Row],[75th]]-AAMC_Raw_Data_for_FY22[[#This Row],[Median]])/25)*30) + AAMC_Raw_Data_for_FY22[[#This Row],[Median]]","v":798424.2},{"$f":"(((AAMC_Raw_Data_for_FY22[[#This Row],[75th]]-AAMC_Raw_Data_for_FY22[[#This Row],[Median]])/25)*35) + AAMC_Raw_Data_for_FY22[[#This Row],[Median]]","v":822929.4},{"$f":"(((AAMC_Raw_Data_for_FY22[[#This Row],[75th]]-AAMC_Raw_Data_for_FY22[[#This Row],[Median]])/25)*40) + AAMC_Raw_Data_for_FY22[[#This Row],[Median]]","v":847434.6}]
[{"$f":"AAMC_Raw_Data_for_FY22[[#This Row],[Source]]&AAMC_Raw_Data_for_FY22[[#This Row],[Type]]&AAMC_Raw_Data_for_FY22[[#This Row],[School Subset]]&AAMC_Raw_Data_for_FY22[[#This Row],[Rank]]&AAMC_Raw_Data_for_FY22[[#This Row],[Degree]]&AAMC_Raw_Data_for_FY22[[#This Row],[Department / Specialty]]&\"L\"","v":"AAMCAcademicPrivateChiefMDOrthopedic Surgery: GeneralL"},"Orthopedic Surgery: General",6,"AAMC","Academic","Private","Chief","MD","2021-2022",687540,{"$f":"(((AAMC_Raw_Data_for_FY22[[#This Row],[Median]]-AAMC_Raw_Data_for_FY22[[#This Row],[25th]])/25)*5) + AAMC_Raw_Data_for_FY22[[#This Row],[25th]]","v":733605},{"$f":"(((AAMC_Raw_Data_for_FY22[[#This Row],[Median]]-AAMC_Raw_Data_for_FY22[[#This Row],[25th]])/25)*10) + AAMC_Raw_Data_for_FY22[[#This Row],[25th]]","v":779670},{"$f":"(((AAMC_Raw_Data_for_FY22[[#This Row],[Median]]-AAMC_Raw_Data_for_FY22[[#This Row],[25th]])/25)*15) + AAMC_Raw_Data_for_FY22[[#This Row],[25th]]","v":825735},{"$f":"(((AAMC_Raw_Data_for_FY22[[#This Row],[Median]]-AAMC_Raw_Data_for_FY22[[#This Row],[25th]])/25)*20) + AAMC_Raw_Data_for_FY22[[#This Row],[25th]]","v":871800},917865,{"$f":"(((AAMC_Raw_Data_for_FY22[[#This Row],[75th]]-AAMC_Raw_Data_for_FY22[[#This Row],[Median]])/25)*5) + AAMC_Raw_Data_for_FY22[[#This Row],[Median]]","v":1081652.3999999999},{"$f":"(((AAMC_Raw_Data_for_FY22[[#This Row],[75th]]-AAMC_Raw_Data_for_FY22[[#This Row],[Median]])/25)*10) + AAMC_Raw_Data_for_FY22[[#This Row],[Median]]","v":1245439.8},{"$f":"(((AAMC_Raw_Data_for_FY22[[#This Row],[75th]]-AAMC_Raw_Data_for_FY22[[#This Row],[Median]])/25)*15) + AAMC_Raw_Data_for_FY22[[#This Row],[Median]]","v":1409227.2},{"$f":"(((AAMC_Raw_Data_for_FY22[[#This Row],[75th]]-AAMC_Raw_Data_for_FY22[[#This Row],[Median]])/25)*20) + AAMC_Raw_Data_for_FY22[[#This Row],[Median]]","v":1573014.6},1736802,{"$f":"(((AAMC_Raw_Data_for_FY22[[#This Row],[75th]]-AAMC_Raw_Data_for_FY22[[#This Row],[Median]])/25)*30) + AAMC_Raw_Data_for_FY22[[#This Row],[Median]]","v":1900589.4},{"$f":"(((AAMC_Raw_Data_for_FY22[[#This Row],[75th]]-AAMC_Raw_Data_for_FY22[[#This Row],[Median]])/25)*35) + AAMC_Raw_Data_for_FY22[[#This Row],[Median]]","v":2064376.8},{"$f":"(((AAMC_Raw_Data_for_FY22[[#This Row],[75th]]-AAMC_Raw_Data_for_FY22[[#This Row],[Median]])/25)*40) + AAMC_Raw_Data_for_FY22[[#This Row],[Median]]","v":2228164.2000000002}]
[{"$f":"AAMC_Raw_Data_for_FY22[[#This Row],[Source]]&AAMC_Raw_Data_for_FY22[[#This Row],[Type]]&AAMC_Raw_Data_for_FY22[[#This Row],[School Subset]]&AAMC_Raw_Data_for_FY22[[#This Row],[Rank]]&AAMC_Raw_Data_for_FY22[[#This Row],[Degree]]&AAMC_Raw_Data_for_FY22[[#This Row],[Department / Specialty]]&\"L\"","v":"AAMCAcademicPrivateChairMDOrthopedic Surgery: GeneralL"},"Orthopedic Surgery: General",1,"AAMC","Academic","Private","Chair","MD","2021-2022",939061,{"$f":"(((AAMC_Raw_Data_for_FY22[[#This Row],[Median]]-AAMC_Raw_Data_for_FY22[[#This Row],[25th]])/25)*5) + AAMC_Raw_Data_for_FY22[[#This Row],[25th]]","v":974845},{"$f":"(((AAMC_Raw_Data_for_FY22[[#This Row],[Median]]-AAMC_Raw_Data_for_FY22[[#This Row],[25th]])/25)*10) + AAMC_Raw_Data_for_FY22[[#This Row],[25th]]","v":1010629},{"$f":"(((AAMC_Raw_Data_for_FY22[[#This Row],[Median]]-AAMC_Raw_Data_for_FY22[[#This Row],[25th]])/25)*15) + AAMC_Raw_Data_for_FY22[[#This Row],[25th]]","v":1046413},{"$f":"(((AAMC_Raw_Data_for_FY22[[#This Row],[Median]]-AAMC_Raw_Data_for_FY22[[#This Row],[25th]])/25)*20) + AAMC_Raw_Data_for_FY22[[#This Row],[25th]]","v":1082197},1117981,{"$f":"(((AAMC_Raw_Data_for_FY22[[#This Row],[75th]]-AAMC_Raw_Data_for_FY22[[#This Row],[Median]])/25)*5) + AAMC_Raw_Data_for_FY22[[#This Row],[Median]]","v":1179470.3999999999},{"$f":"(((AAMC_Raw_Data_for_FY22[[#This Row],[75th]]-AAMC_Raw_Data_for_FY22[[#This Row],[Median]])/25)*10) + AAMC_Raw_Data_for_FY22[[#This Row],[Median]]","v":1240959.8},{"$f":"(((AAMC_Raw_Data_for_FY22[[#This Row],[75th]]-AAMC_Raw_Data_for_FY22[[#This Row],[Median]])/25)*15) + AAMC_Raw_Data_for_FY22[[#This Row],[Median]]","v":1302449.2},{"$f":"(((AAMC_Raw_Data_for_FY22[[#This Row],[75th]]-AAMC_Raw_Data_for_FY22[[#This Row],[Median]])/25)*20) + AAMC_Raw_Data_for_FY22[[#This Row],[Median]]","v":1363938.6},1425428,{"$f":"(((AAMC_Raw_Data_for_FY22[[#This Row],[75th]]-AAMC_Raw_Data_for_FY22[[#This Row],[Median]])/25)*30) + AAMC_Raw_Data_for_FY22[[#This Row],[Median]]","v":1486917.4},{"$f":"(((AAMC_Raw_Data_for_FY22[[#This Row],[75th]]-AAMC_Raw_Data_for_FY22[[#This Row],[Median]])/25)*35) + AAMC_Raw_Data_for_FY22[[#This Row],[Median]]","v":1548406.8},{"$f":"(((AAMC_Raw_Data_for_FY22[[#This Row],[75th]]-AAMC_Raw_Data_for_FY22[[#This Row],[Median]])/25)*40) + AAMC_Raw_Data_for_FY22[[#This Row],[Median]]","v":1609896.2}]
[{"$f":"AAMC_Raw_Data_for_FY22[[#This Row],[Source]]&AAMC_Raw_Data_for_FY22[[#This Row],[Type]]&AAMC_Raw_Data_for_FY22[[#This Row],[School Subset]]&AAMC_Raw_Data_for_FY22[[#This Row],[Rank]]&AAMC_Raw_Data_for_FY22[[#This Row],[Degree]]&AAMC_Raw_Data_for_FY22[[#This Row],[Department / Specialty]]&\"L\"","v":"AAMCAcademicPrivateInstructorMDOrthopedic Surgery: HandL"},"Orthopedic Surgery: Hand",5,"AAMC","Academic","Private","Instructor","MD","2021-2022",null,{"$f":"(((AAMC_Raw_Data_for_FY22[[#This Row],[Median]]-AAMC_Raw_Data_for_FY22[[#This Row],[25th]])/25)*5) + AAMC_Raw_Data_for_FY22[[#This Row],[25th]]","v":0},{"$f":"(((AAMC_Raw_Data_for_FY22[[#This Row],[Median]]-AAMC_Raw_Data_for_FY22[[#This Row],[25th]])/25)*10) + AAMC_Raw_Data_for_FY22[[#This Row],[25th]]","v":0},{"$f":"(((AAMC_Raw_Data_for_FY22[[#This Row],[Median]]-AAMC_Raw_Data_for_FY22[[#This Row],[25th]])/25)*15) + AAMC_Raw_Data_for_FY22[[#This Row],[25th]]","v":0},{"$f":"(((AAMC_Raw_Data_for_FY22[[#This Row],[Median]]-AAMC_Raw_Data_for_FY22[[#This Row],[25th]])/25)*20) + AAMC_Raw_Data_for_FY22[[#This Row],[25th]]","v":0},null,{"$f":"(((AAMC_Raw_Data_for_FY22[[#This Row],[75th]]-AAMC_Raw_Data_for_FY22[[#This Row],[Median]])/25)*5) + AAMC_Raw_Data_for_FY22[[#This Row],[Median]]","v":0},{"$f":"(((AAMC_Raw_Data_for_FY22[[#This Row],[75th]]-AAMC_Raw_Data_for_FY22[[#This Row],[Median]])/25)*10) + AAMC_Raw_Data_for_FY22[[#This Row],[Median]]","v":0},{"$f":"(((AAMC_Raw_Data_for_FY22[[#This Row],[75th]]-AAMC_Raw_Data_for_FY22[[#This Row],[Median]])/25)*15) + AAMC_Raw_Data_for_FY22[[#This Row],[Median]]","v":0},{"$f":"(((AAMC_Raw_Data_for_FY22[[#This Row],[75th]]-AAMC_Raw_Data_for_FY22[[#This Row],[Median]])/25)*20) + AAMC_Raw_Data_for_FY22[[#This Row],[Median]]","v":0},null,{"$f":"(((AAMC_Raw_Data_for_FY22[[#This Row],[75th]]-AAMC_Raw_Data_for_FY22[[#This Row],[Median]])/25)*30) + AAMC_Raw_Data_for_FY22[[#This Row],[Median]]","v":0},{"$f":"(((AAMC_Raw_Data_for_FY22[[#This Row],[75th]]-AAMC_Raw_Data_for_FY22[[#This Row],[Median]])/25)*35) + AAMC_Raw_Data_for_FY22[[#This Row],[Median]]","v":0},{"$f":"(((AAMC_Raw_Data_for_FY22[[#This Row],[75th]]-AAMC_Raw_Data_for_FY22[[#This Row],[Median]])/25)*40) + AAMC_Raw_Data_for_FY22[[#This Row],[Median]]","v":0}]
[{"$f":"AAMC_Raw_Data_for_FY22[[#This Row],[Source]]&AAMC_Raw_Data_for_FY22[[#This Row],[Type]]&AAMC_Raw_Data_for_FY22[[#This Row],[School Subset]]&AAMC_Raw_Data_for_FY22[[#This Row],[Rank]]&AAMC_Raw_Data_for_FY22[[#This Row],[Degree]]&AAMC_Raw_Data_for_FY22[[#This Row],[Department / Specialty]]&\"L\"","v":"AAMCAcademicPrivateAssistantMDOrthopedic Surgery: HandL"},"Orthopedic Surgery: Hand",4,"AAMC","Academic","Private","Assistant","MD","2021-2022",445313,{"$f":"(((AAMC_Raw_Data_for_FY22[[#This Row],[Median]]-AAMC_Raw_Data_for_FY22[[#This Row],[25th]])/25)*5) + AAMC_Raw_Data_for_FY22[[#This Row],[25th]]","v":465926.40000000002},{"$f":"(((AAMC_Raw_Data_for_FY22[[#This Row],[Median]]-AAMC_Raw_Data_for_FY22[[#This Row],[25th]])/25)*10) + AAMC_Raw_Data_for_FY22[[#This Row],[25th]]","v":486539.8},{"$f":"(((AAMC_Raw_Data_for_FY22[[#This Row],[Median]]-AAMC_Raw_Data_for_FY22[[#This Row],[25th]])/25)*15) + AAMC_Raw_Data_for_FY22[[#This Row],[25th]]","v":507153.2},{"$f":"(((AAMC_Raw_Data_for_FY22[[#This Row],[Median]]-AAMC_Raw_Data_for_FY22[[#This Row],[25th]])/25)*20) + AAMC_Raw_Data_for_FY22[[#This Row],[25th]]","v":527766.6},548380,{"$f":"(((AAMC_Raw_Data_for_FY22[[#This Row],[75th]]-AAMC_Raw_Data_for_FY22[[#This Row],[Median]])/25)*5) + AAMC_Raw_Data_for_FY22[[#This Row],[Median]]","v":589229.19999999995},{"$f":"(((AAMC_Raw_Data_for_FY22[[#This Row],[75th]]-AAMC_Raw_Data_for_FY22[[#This Row],[Median]])/25)*10) + AAMC_Raw_Data_for_FY22[[#This Row],[Median]]","v":630078.4},{"$f":"(((AAMC_Raw_Data_for_FY22[[#This Row],[75th]]-AAMC_Raw_Data_for_FY22[[#This Row],[Median]])/25)*15) + AAMC_Raw_Data_for_FY22[[#This Row],[Median]]","v":670927.6},{"$f":"(((AAMC_Raw_Data_for_FY22[[#This Row],[75th]]-AAMC_Raw_Data_for_FY22[[#This Row],[Median]])/25)*20) + AAMC_Raw_Data_for_FY22[[#This Row],[Median]]","v":711776.8},752626,{"$f":"(((AAMC_Raw_Data_for_FY22[[#This Row],[75th]]-AAMC_Raw_Data_for_FY22[[#This Row],[Median]])/25)*30) + AAMC_Raw_Data_for_FY22[[#This Row],[Median]]","v":793475.2},{"$f":"(((AAMC_Raw_Data_for_FY22[[#This Row],[75th]]-AAMC_Raw_Data_for_FY22[[#This Row],[Median]])/25)*35) + AAMC_Raw_Data_for_FY22[[#This Row],[Median]]","v":834324.4},{"$f":"(((AAMC_Raw_Data_for_FY22[[#This Row],[75th]]-AAMC_Raw_Data_for_FY22[[#This Row],[Median]])/25)*40) + AAMC_Raw_Data_for_FY22[[#This Row],[Median]]","v":875173.6}]
[{"$f":"AAMC_Raw_Data_for_FY22[[#This Row],[Source]]&AAMC_Raw_Data_for_FY22[[#This Row],[Type]]&AAMC_Raw_Data_for_FY22[[#This Row],[School Subset]]&AAMC_Raw_Data_for_FY22[[#This Row],[Rank]]&AAMC_Raw_Data_for_FY22[[#This Row],[Degree]]&AAMC_Raw_Data_for_FY22[[#This Row],[Department / Specialty]]&\"L\"","v":"AAMCAcademicPrivateAssociateMDOrthopedic Surgery: HandL"},"Orthopedic Surgery: Hand",3,"AAMC","Academic","Private","Associate","MD","2021-2022",581923,{"$f":"(((AAMC_Raw_Data_for_FY22[[#This Row],[Median]]-AAMC_Raw_Data_for_FY22[[#This Row],[25th]])/25)*5) + AAMC_Raw_Data_for_FY22[[#This Row],[25th]]","v":620237.6},{"$f":"(((AAMC_Raw_Data_for_FY22[[#This Row],[Median]]-AAMC_Raw_Data_for_FY22[[#This Row],[25th]])/25)*10) + AAMC_Raw_Data_for_FY22[[#This Row],[25th]]","v":658552.19999999995},{"$f":"(((AAMC_Raw_Data_for_FY22[[#This Row],[Median]]-AAMC_Raw_Data_for_FY22[[#This Row],[25th]])/25)*15) + AAMC_Raw_Data_for_FY22[[#This Row],[25th]]","v":696866.8},{"$f":"(((AAMC_Raw_Data_for_FY22[[#This Row],[Median]]-AAMC_Raw_Data_for_FY22[[#This Row],[25th]])/25)*20) + AAMC_Raw_Data_for_FY22[[#This Row],[25th]]","v":735181.4},773496,{"$f":"(((AAMC_Raw_Data_for_FY22[[#This Row],[75th]]-AAMC_Raw_Data_for_FY22[[#This Row],[Median]])/25)*5) + AAMC_Raw_Data_for_FY22[[#This Row],[Median]]","v":802189.8},{"$f":"(((AAMC_Raw_Data_for_FY22[[#This Row],[75th]]-AAMC_Raw_Data_for_FY22[[#This Row],[Median]])/25)*10) + AAMC_Raw_Data_for_FY22[[#This Row],[Median]]","v":830883.6},{"$f":"(((AAMC_Raw_Data_for_FY22[[#This Row],[75th]]-AAMC_Raw_Data_for_FY22[[#This Row],[Median]])/25)*15) + AAMC_Raw_Data_for_FY22[[#This Row],[Median]]","v":859577.4},{"$f":"(((AAMC_Raw_Data_for_FY22[[#This Row],[75th]]-AAMC_Raw_Data_for_FY22[[#This Row],[Median]])/25)*20) + AAMC_Raw_Data_for_FY22[[#This Row],[Median]]","v":888271.2},916965,{"$f":"(((AAMC_Raw_Data_for_FY22[[#This Row],[75th]]-AAMC_Raw_Data_for_FY22[[#This Row],[Median]])/25)*30) + AAMC_Raw_Data_for_FY22[[#This Row],[Median]]","v":945658.8},{"$f":"(((AAMC_Raw_Data_for_FY22[[#This Row],[75th]]-AAMC_Raw_Data_for_FY22[[#This Row],[Median]])/25)*35) + AAMC_Raw_Data_for_FY22[[#This Row],[Median]]","v":974352.6},{"$f":"(((AAMC_Raw_Data_for_FY22[[#This Row],[75th]]-AAMC_Raw_Data_for_FY22[[#This Row],[Median]])/25)*40) + AAMC_Raw_Data_for_FY22[[#This Row],[Median]]","v":1003046.4}]
[{"$f":"AAMC_Raw_Data_for_FY22[[#This Row],[Source]]&AAMC_Raw_Data_for_FY22[[#This Row],[Type]]&AAMC_Raw_Data_for_FY22[[#This Row],[School Subset]]&AAMC_Raw_Data_for_FY22[[#This Row],[Rank]]&AAMC_Raw_Data_for_FY22[[#This Row],[Degree]]&AAMC_Raw_Data_for_FY22[[#This Row],[Department / Specialty]]&\"L\"","v":"AAMCAcademicPrivateProfessorMDOrthopedic Surgery: HandL"},"Orthopedic Surgery: Hand",2,"AAMC","Academic","Private","Professor","MD","2021-2022",586874,{"$f":"(((AAMC_Raw_Data_for_FY22[[#This Row],[Median]]-AAMC_Raw_Data_for_FY22[[#This Row],[25th]])/25)*5) + AAMC_Raw_Data_for_FY22[[#This Row],[25th]]","v":621321},{"$f":"(((AAMC_Raw_Data_for_FY22[[#This Row],[Median]]-AAMC_Raw_Data_for_FY22[[#This Row],[25th]])/25)*10) + AAMC_Raw_Data_for_FY22[[#This Row],[25th]]","v":655768},{"$f":"(((AAMC_Raw_Data_for_FY22[[#This Row],[Median]]-AAMC_Raw_Data_for_FY22[[#This Row],[25th]])/25)*15) + AAMC_Raw_Data_for_FY22[[#This Row],[25th]]","v":690215},{"$f":"(((AAMC_Raw_Data_for_FY22[[#This Row],[Median]]-AAMC_Raw_Data_for_FY22[[#This Row],[25th]])/25)*20) + AAMC_Raw_Data_for_FY22[[#This Row],[25th]]","v":724662},759109,{"$f":"(((AAMC_Raw_Data_for_FY22[[#This Row],[75th]]-AAMC_Raw_Data_for_FY22[[#This Row],[Median]])/25)*5) + AAMC_Raw_Data_for_FY22[[#This Row],[Median]]","v":808066},{"$f":"(((AAMC_Raw_Data_for_FY22[[#This Row],[75th]]-AAMC_Raw_Data_for_FY22[[#This Row],[Median]])/25)*10) + AAMC_Raw_Data_for_FY22[[#This Row],[Median]]","v":857023},{"$f":"(((AAMC_Raw_Data_for_FY22[[#This Row],[75th]]-AAMC_Raw_Data_for_FY22[[#This Row],[Median]])/25)*15) + AAMC_Raw_Data_for_FY22[[#This Row],[Median]]","v":905980},{"$f":"(((AAMC_Raw_Data_for_FY22[[#This Row],[75th]]-AAMC_Raw_Data_for_FY22[[#This Row],[Median]])/25)*20) + AAMC_Raw_Data_for_FY22[[#This Row],[Median]]","v":954937},1003894,{"$f":"(((AAMC_Raw_Data_for_FY22[[#This Row],[75th]]-AAMC_Raw_Data_for_FY22[[#This Row],[Median]])/25)*30) + AAMC_Raw_Data_for_FY22[[#This Row],[Median]]","v":1052851},{"$f":"(((AAMC_Raw_Data_for_FY22[[#This Row],[75th]]-AAMC_Raw_Data_for_FY22[[#This Row],[Median]])/25)*35) + AAMC_Raw_Data_for_FY22[[#This Row],[Median]]","v":1101808},{"$f":"(((AAMC_Raw_Data_for_FY22[[#This Row],[75th]]-AAMC_Raw_Data_for_FY22[[#This Row],[Median]])/25)*40) + AAMC_Raw_Data_for_FY22[[#This Row],[Median]]","v":1150765}]
[{"$f":"AAMC_Raw_Data_for_FY22[[#This Row],[Source]]&AAMC_Raw_Data_for_FY22[[#This Row],[Type]]&AAMC_Raw_Data_for_FY22[[#This Row],[School Subset]]&AAMC_Raw_Data_for_FY22[[#This Row],[Rank]]&AAMC_Raw_Data_for_FY22[[#This Row],[Degree]]&AAMC_Raw_Data_for_FY22[[#This Row],[Department / Specialty]]&\"L\"","v":"AAMCAcademicPrivateChiefMDOrthopedic Surgery: HandL"},"Orthopedic Surgery: Hand",6,"AAMC","Academic","Private","Chief","MD","2021-2022",null,{"$f":"(((AAMC_Raw_Data_for_FY22[[#This Row],[Median]]-AAMC_Raw_Data_for_FY22[[#This Row],[25th]])/25)*5) + AAMC_Raw_Data_for_FY22[[#This Row],[25th]]","v":0},{"$f":"(((AAMC_Raw_Data_for_FY22[[#This Row],[Median]]-AAMC_Raw_Data_for_FY22[[#This Row],[25th]])/25)*10) + AAMC_Raw_Data_for_FY22[[#This Row],[25th]]","v":0},{"$f":"(((AAMC_Raw_Data_for_FY22[[#This Row],[Median]]-AAMC_Raw_Data_for_FY22[[#This Row],[25th]])/25)*15) + AAMC_Raw_Data_for_FY22[[#This Row],[25th]]","v":0},{"$f":"(((AAMC_Raw_Data_for_FY22[[#This Row],[Median]]-AAMC_Raw_Data_for_FY22[[#This Row],[25th]])/25)*20) + AAMC_Raw_Data_for_FY22[[#This Row],[25th]]","v":0},null,{"$f":"(((AAMC_Raw_Data_for_FY22[[#This Row],[75th]]-AAMC_Raw_Data_for_FY22[[#This Row],[Median]])/25)*5) + AAMC_Raw_Data_for_FY22[[#This Row],[Median]]","v":0},{"$f":"(((AAMC_Raw_Data_for_FY22[[#This Row],[75th]]-AAMC_Raw_Data_for_FY22[[#This Row],[Median]])/25)*10) + AAMC_Raw_Data_for_FY22[[#This Row],[Median]]","v":0},{"$f":"(((AAMC_Raw_Data_for_FY22[[#This Row],[75th]]-AAMC_Raw_Data_for_FY22[[#This Row],[Median]])/25)*15) + AAMC_Raw_Data_for_FY22[[#This Row],[Median]]","v":0},{"$f":"(((AAMC_Raw_Data_for_FY22[[#This Row],[75th]]-AAMC_Raw_Data_for_FY22[[#This Row],[Median]])/25)*20) + AAMC_Raw_Data_for_FY22[[#This Row],[Median]]","v":0},null,{"$f":"(((AAMC_Raw_Data_for_FY22[[#This Row],[75th]]-AAMC_Raw_Data_for_FY22[[#This Row],[Median]])/25)*30) + AAMC_Raw_Data_for_FY22[[#This Row],[Median]]","v":0},{"$f":"(((AAMC_Raw_Data_for_FY22[[#This Row],[75th]]-AAMC_Raw_Data_for_FY22[[#This Row],[Median]])/25)*35) + AAMC_Raw_Data_for_FY22[[#This Row],[Median]]","v":0},{"$f":"(((AAMC_Raw_Data_for_FY22[[#This Row],[75th]]-AAMC_Raw_Data_for_FY22[[#This Row],[Median]])/25)*40) + AAMC_Raw_Data_for_FY22[[#This Row],[Median]]","v":0}]
[{"$f":"AAMC_Raw_Data_for_FY22[[#This Row],[Source]]&AAMC_Raw_Data_for_FY22[[#This Row],[Type]]&AAMC_Raw_Data_for_FY22[[#This Row],[School Subset]]&AAMC_Raw_Data_for_FY22[[#This Row],[Rank]]&AAMC_Raw_Data_for_FY22[[#This Row],[Degree]]&AAMC_Raw_Data_for_FY22[[#This Row],[Department / Specialty]]&\"L\"","v":"AAMCAcademicPrivateChairMDOrthopedic Surgery: HandL"},"Orthopedic Surgery: Hand",1,"AAMC","Academic","Private","Chair","MD","2021-2022",null,{"$f":"(((AAMC_Raw_Data_for_FY22[[#This Row],[Median]]-AAMC_Raw_Data_for_FY22[[#This Row],[25th]])/25)*5) + AAMC_Raw_Data_for_FY22[[#This Row],[25th]]","v":0},{"$f":"(((AAMC_Raw_Data_for_FY22[[#This Row],[Median]]-AAMC_Raw_Data_for_FY22[[#This Row],[25th]])/25)*10) + AAMC_Raw_Data_for_FY22[[#This Row],[25th]]","v":0},{"$f":"(((AAMC_Raw_Data_for_FY22[[#This Row],[Median]]-AAMC_Raw_Data_for_FY22[[#This Row],[25th]])/25)*15) + AAMC_Raw_Data_for_FY22[[#This Row],[25th]]","v":0},{"$f":"(((AAMC_Raw_Data_for_FY22[[#This Row],[Median]]-AAMC_Raw_Data_for_FY22[[#This Row],[25th]])/25)*20) + AAMC_Raw_Data_for_FY22[[#This Row],[25th]]","v":0},null,{"$f":"(((AAMC_Raw_Data_for_FY22[[#This Row],[75th]]-AAMC_Raw_Data_for_FY22[[#This Row],[Median]])/25)*5) + AAMC_Raw_Data_for_FY22[[#This Row],[Median]]","v":0},{"$f":"(((AAMC_Raw_Data_for_FY22[[#This Row],[75th]]-AAMC_Raw_Data_for_FY22[[#This Row],[Median]])/25)*10) + AAMC_Raw_Data_for_FY22[[#This Row],[Median]]","v":0},{"$f":"(((AAMC_Raw_Data_for_FY22[[#This Row],[75th]]-AAMC_Raw_Data_for_FY22[[#This Row],[Median]])/25)*15) + AAMC_Raw_Data_for_FY22[[#This Row],[Median]]","v":0},{"$f":"(((AAMC_Raw_Data_for_FY22[[#This Row],[75th]]-AAMC_Raw_Data_for_FY22[[#This Row],[Median]])/25)*20) + AAMC_Raw_Data_for_FY22[[#This Row],[Median]]","v":0},null,{"$f":"(((AAMC_Raw_Data_for_FY22[[#This Row],[75th]]-AAMC_Raw_Data_for_FY22[[#This Row],[Median]])/25)*30) + AAMC_Raw_Data_for_FY22[[#This Row],[Median]]","v":0},{"$f":"(((AAMC_Raw_Data_for_FY22[[#This Row],[75th]]-AAMC_Raw_Data_for_FY22[[#This Row],[Median]])/25)*35) + AAMC_Raw_Data_for_FY22[[#This Row],[Median]]","v":0},{"$f":"(((AAMC_Raw_Data_for_FY22[[#This Row],[75th]]-AAMC_Raw_Data_for_FY22[[#This Row],[Median]])/25)*40) + AAMC_Raw_Data_for_FY22[[#This Row],[Median]]","v":0}]
[{"$f":"AAMC_Raw_Data_for_FY22[[#This Row],[Source]]&AAMC_Raw_Data_for_FY22[[#This Row],[Type]]&AAMC_Raw_Data_for_FY22[[#This Row],[School Subset]]&AAMC_Raw_Data_for_FY22[[#This Row],[Rank]]&AAMC_Raw_Data_for_FY22[[#This Row],[Degree]]&AAMC_Raw_Data_for_FY22[[#This Row],[Department / Specialty]]&\"L\"","v":"AAMCAcademicPrivateInstructorMDOrthopedic Surgery: SpineL"},"Orthopedic Surgery: Spine",5,"AAMC","Academic","Private","Instructor","MD","2021-2022",null,{"$f":"(((AAMC_Raw_Data_for_FY22[[#This Row],[Median]]-AAMC_Raw_Data_for_FY22[[#This Row],[25th]])/25)*5) + AAMC_Raw_Data_for_FY22[[#This Row],[25th]]","v":0},{"$f":"(((AAMC_Raw_Data_for_FY22[[#This Row],[Median]]-AAMC_Raw_Data_for_FY22[[#This Row],[25th]])/25)*10) + AAMC_Raw_Data_for_FY22[[#This Row],[25th]]","v":0},{"$f":"(((AAMC_Raw_Data_for_FY22[[#This Row],[Median]]-AAMC_Raw_Data_for_FY22[[#This Row],[25th]])/25)*15) + AAMC_Raw_Data_for_FY22[[#This Row],[25th]]","v":0},{"$f":"(((AAMC_Raw_Data_for_FY22[[#This Row],[Median]]-AAMC_Raw_Data_for_FY22[[#This Row],[25th]])/25)*20) + AAMC_Raw_Data_for_FY22[[#This Row],[25th]]","v":0},null,{"$f":"(((AAMC_Raw_Data_for_FY22[[#This Row],[75th]]-AAMC_Raw_Data_for_FY22[[#This Row],[Median]])/25)*5) + AAMC_Raw_Data_for_FY22[[#This Row],[Median]]","v":0},{"$f":"(((AAMC_Raw_Data_for_FY22[[#This Row],[75th]]-AAMC_Raw_Data_for_FY22[[#This Row],[Median]])/25)*10) + AAMC_Raw_Data_for_FY22[[#This Row],[Median]]","v":0},{"$f":"(((AAMC_Raw_Data_for_FY22[[#This Row],[75th]]-AAMC_Raw_Data_for_FY22[[#This Row],[Median]])/25)*15) + AAMC_Raw_Data_for_FY22[[#This Row],[Median]]","v":0},{"$f":"(((AAMC_Raw_Data_for_FY22[[#This Row],[75th]]-AAMC_Raw_Data_for_FY22[[#This Row],[Median]])/25)*20) + AAMC_Raw_Data_for_FY22[[#This Row],[Median]]","v":0},null,{"$f":"(((AAMC_Raw_Data_for_FY22[[#This Row],[75th]]-AAMC_Raw_Data_for_FY22[[#This Row],[Median]])/25)*30) + AAMC_Raw_Data_for_FY22[[#This Row],[Median]]","v":0},{"$f":"(((AAMC_Raw_Data_for_FY22[[#This Row],[75th]]-AAMC_Raw_Data_for_FY22[[#This Row],[Median]])/25)*35) + AAMC_Raw_Data_for_FY22[[#This Row],[Median]]","v":0},{"$f":"(((AAMC_Raw_Data_for_FY22[[#This Row],[75th]]-AAMC_Raw_Data_for_FY22[[#This Row],[Median]])/25)*40) + AAMC_Raw_Data_for_FY22[[#This Row],[Median]]","v":0}]
[{"$f":"AAMC_Raw_Data_for_FY22[[#This Row],[Source]]&AAMC_Raw_Data_for_FY22[[#This Row],[Type]]&AAMC_Raw_Data_for_FY22[[#This Row],[School Subset]]&AAMC_Raw_Data_for_FY22[[#This Row],[Rank]]&AAMC_Raw_Data_for_FY22[[#This Row],[Degree]]&AAMC_Raw_Data_for_FY22[[#This Row],[Department / Specialty]]&\"L\"","v":"AAMCAcademicPrivateAssistantMDOrthopedic Surgery: SpineL"},"Orthopedic Surgery: Spine",4,"AAMC","Academic","Private","Assistant","MD","2021-2022",549904,{"$f":"(((AAMC_Raw_Data_for_FY22[[#This Row],[Median]]-AAMC_Raw_Data_for_FY22[[#This Row],[25th]])/25)*5) + AAMC_Raw_Data_for_FY22[[#This Row],[25th]]","v":567383.6},{"$f":"(((AAMC_Raw_Data_for_FY22[[#This Row],[Median]]-AAMC_Raw_Data_for_FY22[[#This Row],[25th]])/25)*10) + AAMC_Raw_Data_for_FY22[[#This Row],[25th]]","v":584863.19999999995},{"$f":"(((AAMC_Raw_Data_for_FY22[[#This Row],[Median]]-AAMC_Raw_Data_for_FY22[[#This Row],[25th]])/25)*15) + AAMC_Raw_Data_for_FY22[[#This Row],[25th]]","v":602342.80000000005},{"$f":"(((AAMC_Raw_Data_for_FY22[[#This Row],[Median]]-AAMC_Raw_Data_for_FY22[[#This Row],[25th]])/25)*20) + AAMC_Raw_Data_for_FY22[[#This Row],[25th]]","v":619822.4},637302,{"$f":"(((AAMC_Raw_Data_for_FY22[[#This Row],[75th]]-AAMC_Raw_Data_for_FY22[[#This Row],[Median]])/25)*5) + AAMC_Raw_Data_for_FY22[[#This Row],[Median]]","v":738067.8},{"$f":"(((AAMC_Raw_Data_for_FY22[[#This Row],[75th]]-AAMC_Raw_Data_for_FY22[[#This Row],[Median]])/25)*10) + AAMC_Raw_Data_for_FY22[[#This Row],[Median]]","v":838833.6},{"$f":"(((AAMC_Raw_Data_for_FY22[[#This Row],[75th]]-AAMC_Raw_Data_for_FY22[[#This Row],[Median]])/25)*15) + AAMC_Raw_Data_for_FY22[[#This Row],[Median]]","v":939599.4},{"$f":"(((AAMC_Raw_Data_for_FY22[[#This Row],[75th]]-AAMC_Raw_Data_for_FY22[[#This Row],[Median]])/25)*20) + AAMC_Raw_Data_for_FY22[[#This Row],[Median]]","v":1040365.2},1141131,{"$f":"(((AAMC_Raw_Data_for_FY22[[#This Row],[75th]]-AAMC_Raw_Data_for_FY22[[#This Row],[Median]])/25)*30) + AAMC_Raw_Data_for_FY22[[#This Row],[Median]]","v":1241896.8},{"$f":"(((AAMC_Raw_Data_for_FY22[[#This Row],[75th]]-AAMC_Raw_Data_for_FY22[[#This Row],[Median]])/25)*35) + AAMC_Raw_Data_for_FY22[[#This Row],[Median]]","v":1342662.6},{"$f":"(((AAMC_Raw_Data_for_FY22[[#This Row],[75th]]-AAMC_Raw_Data_for_FY22[[#This Row],[Median]])/25)*40) + AAMC_Raw_Data_for_FY22[[#This Row],[Median]]","v":1443428.4}]
[{"$f":"AAMC_Raw_Data_for_FY22[[#This Row],[Source]]&AAMC_Raw_Data_for_FY22[[#This Row],[Type]]&AAMC_Raw_Data_for_FY22[[#This Row],[School Subset]]&AAMC_Raw_Data_for_FY22[[#This Row],[Rank]]&AAMC_Raw_Data_for_FY22[[#This Row],[Degree]]&AAMC_Raw_Data_for_FY22[[#This Row],[Department / Specialty]]&\"L\"","v":"AAMCAcademicPrivateAssociateMDOrthopedic Surgery: SpineL"},"Orthopedic Surgery: Spine",3,"AAMC","Academic","Private","Associate","MD","2021-2022",623703,{"$f":"(((AAMC_Raw_Data_for_FY22[[#This Row],[Median]]-AAMC_Raw_Data_for_FY22[[#This Row],[25th]])/25)*5) + AAMC_Raw_Data_for_FY22[[#This Row],[25th]]","v":648247.4},{"$f":"(((AAMC_Raw_Data_for_FY22[[#This Row],[Median]]-AAMC_Raw_Data_for_FY22[[#This Row],[25th]])/25)*10) + AAMC_Raw_Data_for_FY22[[#This Row],[25th]]","v":672791.8},{"$f":"(((AAMC_Raw_Data_for_FY22[[#This Row],[Median]]-AAMC_Raw_Data_for_FY22[[#This Row],[25th]])/25)*15) + AAMC_Raw_Data_for_FY22[[#This Row],[25th]]","v":697336.2},{"$f":"(((AAMC_Raw_Data_for_FY22[[#This Row],[Median]]-AAMC_Raw_Data_for_FY22[[#This Row],[25th]])/25)*20) + AAMC_Raw_Data_for_FY22[[#This Row],[25th]]","v":721880.6},746425,{"$f":"(((AAMC_Raw_Data_for_FY22[[#This Row],[75th]]-AAMC_Raw_Data_for_FY22[[#This Row],[Median]])/25)*5) + AAMC_Raw_Data_for_FY22[[#This Row],[Median]]","v":773346.2},{"$f":"(((AAMC_Raw_Data_for_FY22[[#This Row],[75th]]-AAMC_Raw_Data_for_FY22[[#This Row],[Median]])/25)*10) + AAMC_Raw_Data_for_FY22[[#This Row],[Median]]","v":800267.4},{"$f":"(((AAMC_Raw_Data_for_FY22[[#This Row],[75th]]-AAMC_Raw_Data_for_FY22[[#This Row],[Median]])/25)*15) + AAMC_Raw_Data_for_FY22[[#This Row],[Median]]","v":827188.6},{"$f":"(((AAMC_Raw_Data_for_FY22[[#This Row],[75th]]-AAMC_Raw_Data_for_FY22[[#This Row],[Median]])/25)*20) + AAMC_Raw_Data_for_FY22[[#This Row],[Median]]","v":854109.8},881031,{"$f":"(((AAMC_Raw_Data_for_FY22[[#This Row],[75th]]-AAMC_Raw_Data_for_FY22[[#This Row],[Median]])/25)*30) + AAMC_Raw_Data_for_FY22[[#This Row],[Median]]","v":907952.2},{"$f":"(((AAMC_Raw_Data_for_FY22[[#This Row],[75th]]-AAMC_Raw_Data_for_FY22[[#This Row],[Median]])/25)*35) + AAMC_Raw_Data_for_FY22[[#This Row],[Median]]","v":934873.4},{"$f":"(((AAMC_Raw_Data_for_FY22[[#This Row],[75th]]-AAMC_Raw_Data_for_FY22[[#This Row],[Median]])/25)*40) + AAMC_Raw_Data_for_FY22[[#This Row],[Median]]","v":961794.6}]
[{"$f":"AAMC_Raw_Data_for_FY22[[#This Row],[Source]]&AAMC_Raw_Data_for_FY22[[#This Row],[Type]]&AAMC_Raw_Data_for_FY22[[#This Row],[School Subset]]&AAMC_Raw_Data_for_FY22[[#This Row],[Rank]]&AAMC_Raw_Data_for_FY22[[#This Row],[Degree]]&AAMC_Raw_Data_for_FY22[[#This Row],[Department / Specialty]]&\"L\"","v":"AAMCAcademicPrivateProfessorMDOrthopedic Surgery: SpineL"},"Orthopedic Surgery: Spine",2,"AAMC","Academic","Private","Professor","MD","2021-2022",675678,{"$f":"(((AAMC_Raw_Data_for_FY22[[#This Row],[Median]]-AAMC_Raw_Data_for_FY22[[#This Row],[25th]])/25)*5) + AAMC_Raw_Data_for_FY22[[#This Row],[25th]]","v":720941.2},{"$f":"(((AAMC_Raw_Data_for_FY22[[#This Row],[Median]]-AAMC_Raw_Data_for_FY22[[#This Row],[25th]])/25)*10) + AAMC_Raw_Data_for_FY22[[#This Row],[25th]]","v":766204.4},{"$f":"(((AAMC_Raw_Data_for_FY22[[#This Row],[Median]]-AAMC_Raw_Data_for_FY22[[#This Row],[25th]])/25)*15) + AAMC_Raw_Data_for_FY22[[#This Row],[25th]]","v":811467.6},{"$f":"(((AAMC_Raw_Data_for_FY22[[#This Row],[Median]]-AAMC_Raw_Data_for_FY22[[#This Row],[25th]])/25)*20) + AAMC_Raw_Data_for_FY22[[#This Row],[25th]]","v":856730.8},901994,{"$f":"(((AAMC_Raw_Data_for_FY22[[#This Row],[75th]]-AAMC_Raw_Data_for_FY22[[#This Row],[Median]])/25)*5) + AAMC_Raw_Data_for_FY22[[#This Row],[Median]]","v":990721.4},{"$f":"(((AAMC_Raw_Data_for_FY22[[#This Row],[75th]]-AAMC_Raw_Data_for_FY22[[#This Row],[Median]])/25)*10) + AAMC_Raw_Data_for_FY22[[#This Row],[Median]]","v":1079448.8},{"$f":"(((AAMC_Raw_Data_for_FY22[[#This Row],[75th]]-AAMC_Raw_Data_for_FY22[[#This Row],[Median]])/25)*15) + AAMC_Raw_Data_for_FY22[[#This Row],[Median]]","v":1168176.2},{"$f":"(((AAMC_Raw_Data_for_FY22[[#This Row],[75th]]-AAMC_Raw_Data_for_FY22[[#This Row],[Median]])/25)*20) + AAMC_Raw_Data_for_FY22[[#This Row],[Median]]","v":1256903.6000000001},1345631,{"$f":"(((AAMC_Raw_Data_for_FY22[[#This Row],[75th]]-AAMC_Raw_Data_for_FY22[[#This Row],[Median]])/25)*30) + AAMC_Raw_Data_for_FY22[[#This Row],[Median]]","v":1434358.4},{"$f":"(((AAMC_Raw_Data_for_FY22[[#This Row],[75th]]-AAMC_Raw_Data_for_FY22[[#This Row],[Median]])/25)*35) + AAMC_Raw_Data_for_FY22[[#This Row],[Median]]","v":1523085.7999999998},{"$f":"(((AAMC_Raw_Data_for_FY22[[#This Row],[75th]]-AAMC_Raw_Data_for_FY22[[#This Row],[Median]])/25)*40) + AAMC_Raw_Data_for_FY22[[#This Row],[Median]]","v":1611813.2}]
[{"$f":"AAMC_Raw_Data_for_FY22[[#This Row],[Source]]&AAMC_Raw_Data_for_FY22[[#This Row],[Type]]&AAMC_Raw_Data_for_FY22[[#This Row],[School Subset]]&AAMC_Raw_Data_for_FY22[[#This Row],[Rank]]&AAMC_Raw_Data_for_FY22[[#This Row],[Degree]]&AAMC_Raw_Data_for_FY22[[#This Row],[Department / Specialty]]&\"L\"","v":"AAMCAcademicPrivateChiefMDOrthopedic Surgery: SpineL"},"Orthopedic Surgery: Spine",6,"AAMC","Academic","Private","Chief","MD","2021-2022",null,{"$f":"(((AAMC_Raw_Data_for_FY22[[#This Row],[Median]]-AAMC_Raw_Data_for_FY22[[#This Row],[25th]])/25)*5) + AAMC_Raw_Data_for_FY22[[#This Row],[25th]]","v":0},{"$f":"(((AAMC_Raw_Data_for_FY22[[#This Row],[Median]]-AAMC_Raw_Data_for_FY22[[#This Row],[25th]])/25)*10) + AAMC_Raw_Data_for_FY22[[#This Row],[25th]]","v":0},{"$f":"(((AAMC_Raw_Data_for_FY22[[#This Row],[Median]]-AAMC_Raw_Data_for_FY22[[#This Row],[25th]])/25)*15) + AAMC_Raw_Data_for_FY22[[#This Row],[25th]]","v":0},{"$f":"(((AAMC_Raw_Data_for_FY22[[#This Row],[Median]]-AAMC_Raw_Data_for_FY22[[#This Row],[25th]])/25)*20) + AAMC_Raw_Data_for_FY22[[#This Row],[25th]]","v":0},null,{"$f":"(((AAMC_Raw_Data_for_FY22[[#This Row],[75th]]-AAMC_Raw_Data_for_FY22[[#This Row],[Median]])/25)*5) + AAMC_Raw_Data_for_FY22[[#This Row],[Median]]","v":0},{"$f":"(((AAMC_Raw_Data_for_FY22[[#This Row],[75th]]-AAMC_Raw_Data_for_FY22[[#This Row],[Median]])/25)*10) + AAMC_Raw_Data_for_FY22[[#This Row],[Median]]","v":0},{"$f":"(((AAMC_Raw_Data_for_FY22[[#This Row],[75th]]-AAMC_Raw_Data_for_FY22[[#This Row],[Median]])/25)*15) + AAMC_Raw_Data_for_FY22[[#This Row],[Median]]","v":0},{"$f":"(((AAMC_Raw_Data_for_FY22[[#This Row],[75th]]-AAMC_Raw_Data_for_FY22[[#This Row],[Median]])/25)*20) + AAMC_Raw_Data_for_FY22[[#This Row],[Median]]","v":0},null,{"$f":"(((AAMC_Raw_Data_for_FY22[[#This Row],[75th]]-AAMC_Raw_Data_for_FY22[[#This Row],[Median]])/25)*30) + AAMC_Raw_Data_for_FY22[[#This Row],[Median]]","v":0},{"$f":"(((AAMC_Raw_Data_for_FY22[[#This Row],[75th]]-AAMC_Raw_Data_for_FY22[[#This Row],[Median]])/25)*35) + AAMC_Raw_Data_for_FY22[[#This Row],[Median]]","v":0},{"$f":"(((AAMC_Raw_Data_for_FY22[[#This Row],[75th]]-AAMC_Raw_Data_for_FY22[[#This Row],[Median]])/25)*40) + AAMC_Raw_Data_for_FY22[[#This Row],[Median]]","v":0}]
[{"$f":"AAMC_Raw_Data_for_FY22[[#This Row],[Source]]&AAMC_Raw_Data_for_FY22[[#This Row],[Type]]&AAMC_Raw_Data_for_FY22[[#This Row],[School Subset]]&AAMC_Raw_Data_for_FY22[[#This Row],[Rank]]&AAMC_Raw_Data_for_FY22[[#This Row],[Degree]]&AAMC_Raw_Data_for_FY22[[#This Row],[Department / Specialty]]&\"L\"","v":"AAMCAcademicPrivateChairMDOrthopedic Surgery: SpineL"},"Orthopedic Surgery: Spine",1,"AAMC","Academic","Private","Chair","MD","2021-2022",null,{"$f":"(((AAMC_Raw_Data_for_FY22[[#This Row],[Median]]-AAMC_Raw_Data_for_FY22[[#This Row],[25th]])/25)*5) + AAMC_Raw_Data_for_FY22[[#This Row],[25th]]","v":0},{"$f":"(((AAMC_Raw_Data_for_FY22[[#This Row],[Median]]-AAMC_Raw_Data_for_FY22[[#This Row],[25th]])/25)*10) + AAMC_Raw_Data_for_FY22[[#This Row],[25th]]","v":0},{"$f":"(((AAMC_Raw_Data_for_FY22[[#This Row],[Median]]-AAMC_Raw_Data_for_FY22[[#This Row],[25th]])/25)*15) + AAMC_Raw_Data_for_FY22[[#This Row],[25th]]","v":0},{"$f":"(((AAMC_Raw_Data_for_FY22[[#This Row],[Median]]-AAMC_Raw_Data_for_FY22[[#This Row],[25th]])/25)*20) + AAMC_Raw_Data_for_FY22[[#This Row],[25th]]","v":0},null,{"$f":"(((AAMC_Raw_Data_for_FY22[[#This Row],[75th]]-AAMC_Raw_Data_for_FY22[[#This Row],[Median]])/25)*5) + AAMC_Raw_Data_for_FY22[[#This Row],[Median]]","v":0},{"$f":"(((AAMC_Raw_Data_for_FY22[[#This Row],[75th]]-AAMC_Raw_Data_for_FY22[[#This Row],[Median]])/25)*10) + AAMC_Raw_Data_for_FY22[[#This Row],[Median]]","v":0},{"$f":"(((AAMC_Raw_Data_for_FY22[[#This Row],[75th]]-AAMC_Raw_Data_for_FY22[[#This Row],[Median]])/25)*15) + AAMC_Raw_Data_for_FY22[[#This Row],[Median]]","v":0},{"$f":"(((AAMC_Raw_Data_for_FY22[[#This Row],[75th]]-AAMC_Raw_Data_for_FY22[[#This Row],[Median]])/25)*20) + AAMC_Raw_Data_for_FY22[[#This Row],[Median]]","v":0},null,{"$f":"(((AAMC_Raw_Data_for_FY22[[#This Row],[75th]]-AAMC_Raw_Data_for_FY22[[#This Row],[Median]])/25)*30) + AAMC_Raw_Data_for_FY22[[#This Row],[Median]]","v":0},{"$f":"(((AAMC_Raw_Data_for_FY22[[#This Row],[75th]]-AAMC_Raw_Data_for_FY22[[#This Row],[Median]])/25)*35) + AAMC_Raw_Data_for_FY22[[#This Row],[Median]]","v":0},{"$f":"(((AAMC_Raw_Data_for_FY22[[#This Row],[75th]]-AAMC_Raw_Data_for_FY22[[#This Row],[Median]])/25)*40) + AAMC_Raw_Data_for_FY22[[#This Row],[Median]]","v":0}]
[{"$f":"AAMC_Raw_Data_for_FY22[[#This Row],[Source]]&AAMC_Raw_Data_for_FY22[[#This Row],[Type]]&AAMC_Raw_Data_for_FY22[[#This Row],[School Subset]]&AAMC_Raw_Data_for_FY22[[#This Row],[Rank]]&AAMC_Raw_Data_for_FY22[[#This Row],[Degree]]&AAMC_Raw_Data_for_FY22[[#This Row],[Department / Specialty]]&\"L\"","v":"AAMCAcademicPrivateInstructorMDOrthopedic Surgery: Sports MedicineL"},"Orthopedic Surgery: Sports Medicine",5,"AAMC","Academic","Private","Instructor","MD","2021-2022",null,{"$f":"(((AAMC_Raw_Data_for_FY22[[#This Row],[Median]]-AAMC_Raw_Data_for_FY22[[#This Row],[25th]])/25)*5) + AAMC_Raw_Data_for_FY22[[#This Row],[25th]]","v":0},{"$f":"(((AAMC_Raw_Data_for_FY22[[#This Row],[Median]]-AAMC_Raw_Data_for_FY22[[#This Row],[25th]])/25)*10) + AAMC_Raw_Data_for_FY22[[#This Row],[25th]]","v":0},{"$f":"(((AAMC_Raw_Data_for_FY22[[#This Row],[Median]]-AAMC_Raw_Data_for_FY22[[#This Row],[25th]])/25)*15) + AAMC_Raw_Data_for_FY22[[#This Row],[25th]]","v":0},{"$f":"(((AAMC_Raw_Data_for_FY22[[#This Row],[Median]]-AAMC_Raw_Data_for_FY22[[#This Row],[25th]])/25)*20) + AAMC_Raw_Data_for_FY22[[#This Row],[25th]]","v":0},null,{"$f":"(((AAMC_Raw_Data_for_FY22[[#This Row],[75th]]-AAMC_Raw_Data_for_FY22[[#This Row],[Median]])/25)*5) + AAMC_Raw_Data_for_FY22[[#This Row],[Median]]","v":0},{"$f":"(((AAMC_Raw_Data_for_FY22[[#This Row],[75th]]-AAMC_Raw_Data_for_FY22[[#This Row],[Median]])/25)*10) + AAMC_Raw_Data_for_FY22[[#This Row],[Median]]","v":0},{"$f":"(((AAMC_Raw_Data_for_FY22[[#This Row],[75th]]-AAMC_Raw_Data_for_FY22[[#This Row],[Median]])/25)*15) + AAMC_Raw_Data_for_FY22[[#This Row],[Median]]","v":0},{"$f":"(((AAMC_Raw_Data_for_FY22[[#This Row],[75th]]-AAMC_Raw_Data_for_FY22[[#This Row],[Median]])/25)*20) + AAMC_Raw_Data_for_FY22[[#This Row],[Median]]","v":0},null,{"$f":"(((AAMC_Raw_Data_for_FY22[[#This Row],[75th]]-AAMC_Raw_Data_for_FY22[[#This Row],[Median]])/25)*30) + AAMC_Raw_Data_for_FY22[[#This Row],[Median]]","v":0},{"$f":"(((AAMC_Raw_Data_for_FY22[[#This Row],[75th]]-AAMC_Raw_Data_for_FY22[[#This Row],[Median]])/25)*35) + AAMC_Raw_Data_for_FY22[[#This Row],[Median]]","v":0},{"$f":"(((AAMC_Raw_Data_for_FY22[[#This Row],[75th]]-AAMC_Raw_Data_for_FY22[[#This Row],[Median]])/25)*40) + AAMC_Raw_Data_for_FY22[[#This Row],[Median]]","v":0}]
[{"$f":"AAMC_Raw_Data_for_FY22[[#This Row],[Source]]&AAMC_Raw_Data_for_FY22[[#This Row],[Type]]&AAMC_Raw_Data_for_FY22[[#This Row],[School Subset]]&AAMC_Raw_Data_for_FY22[[#This Row],[Rank]]&AAMC_Raw_Data_for_FY22[[#This Row],[Degree]]&AAMC_Raw_Data_for_FY22[[#This Row],[Department / Specialty]]&\"L\"","v":"AAMCAcademicPrivateAssistantMDOrthopedic Surgery: Sports MedicineL"},"Orthopedic Surgery: Sports Medicine",4,"AAMC","Academic","Private","Assistant","MD","2021-2022",401509,{"$f":"(((AAMC_Raw_Data_for_FY22[[#This Row],[Median]]-AAMC_Raw_Data_for_FY22[[#This Row],[25th]])/25)*5) + AAMC_Raw_Data_for_FY22[[#This Row],[25th]]","v":429011.8},{"$f":"(((AAMC_Raw_Data_for_FY22[[#This Row],[Median]]-AAMC_Raw_Data_for_FY22[[#This Row],[25th]])/25)*10) + AAMC_Raw_Data_for_FY22[[#This Row],[25th]]","v":456514.6},{"$f":"(((AAMC_Raw_Data_for_FY22[[#This Row],[Median]]-AAMC_Raw_Data_for_FY22[[#This Row],[25th]])/25)*15) + AAMC_Raw_Data_for_FY22[[#This Row],[25th]]","v":484017.4},{"$f":"(((AAMC_Raw_Data_for_FY22[[#This Row],[Median]]-AAMC_Raw_Data_for_FY22[[#This Row],[25th]])/25)*20) + AAMC_Raw_Data_for_FY22[[#This Row],[25th]]","v":511520.2},539023,{"$f":"(((AAMC_Raw_Data_for_FY22[[#This Row],[75th]]-AAMC_Raw_Data_for_FY22[[#This Row],[Median]])/25)*5) + AAMC_Raw_Data_for_FY22[[#This Row],[Median]]","v":583429.6},{"$f":"(((AAMC_Raw_Data_for_FY22[[#This Row],[75th]]-AAMC_Raw_Data_for_FY22[[#This Row],[Median]])/25)*10) + AAMC_Raw_Data_for_FY22[[#This Row],[Median]]","v":627836.19999999995},{"$f":"(((AAMC_Raw_Data_for_FY22[[#This Row],[75th]]-AAMC_Raw_Data_for_FY22[[#This Row],[Median]])/25)*15) + AAMC_Raw_Data_for_FY22[[#This Row],[Median]]","v":672242.8},{"$f":"(((AAMC_Raw_Data_for_FY22[[#This Row],[75th]]-AAMC_Raw_Data_for_FY22[[#This Row],[Median]])/25)*20) + AAMC_Raw_Data_for_FY22[[#This Row],[Median]]","v":716649.4},761056,{"$f":"(((AAMC_Raw_Data_for_FY22[[#This Row],[75th]]-AAMC_Raw_Data_for_FY22[[#This Row],[Median]])/25)*30) + AAMC_Raw_Data_for_FY22[[#This Row],[Median]]","v":805462.6},{"$f":"(((AAMC_Raw_Data_for_FY22[[#This Row],[75th]]-AAMC_Raw_Data_for_FY22[[#This Row],[Median]])/25)*35) + AAMC_Raw_Data_for_FY22[[#This Row],[Median]]","v":849869.2},{"$f":"(((AAMC_Raw_Data_for_FY22[[#This Row],[75th]]-AAMC_Raw_Data_for_FY22[[#This Row],[Median]])/25)*40) + AAMC_Raw_Data_for_FY22[[#This Row],[Median]]","v":894275.8}]
[{"$f":"AAMC_Raw_Data_for_FY22[[#This Row],[Source]]&AAMC_Raw_Data_for_FY22[[#This Row],[Type]]&AAMC_Raw_Data_for_FY22[[#This Row],[School Subset]]&AAMC_Raw_Data_for_FY22[[#This Row],[Rank]]&AAMC_Raw_Data_for_FY22[[#This Row],[Degree]]&AAMC_Raw_Data_for_FY22[[#This Row],[Department / Specialty]]&\"L\"","v":"AAMCAcademicPrivateAssociateMDOrthopedic Surgery: Sports MedicineL"},"Orthopedic Surgery: Sports Medicine",3,"AAMC","Academic","Private","Associate","MD","2021-2022",441951,{"$f":"(((AAMC_Raw_Data_for_FY22[[#This Row],[Median]]-AAMC_Raw_Data_for_FY22[[#This Row],[25th]])/25)*5) + AAMC_Raw_Data_for_FY22[[#This Row],[25th]]","v":486361.8},{"$f":"(((AAMC_Raw_Data_for_FY22[[#This Row],[Median]]-AAMC_Raw_Data_for_FY22[[#This Row],[25th]])/25)*10) + AAMC_Raw_Data_for_FY22[[#This Row],[25th]]","v":530772.6},{"$f":"(((AAMC_Raw_Data_for_FY22[[#This Row],[Median]]-AAMC_Raw_Data_for_FY22[[#This Row],[25th]])/25)*15) + AAMC_Raw_Data_for_FY22[[#This Row],[25th]]","v":575183.4},{"$f":"(((AAMC_Raw_Data_for_FY22[[#This Row],[Median]]-AAMC_Raw_Data_for_FY22[[#This Row],[25th]])/25)*20) + AAMC_Raw_Data_for_FY22[[#This Row],[25th]]","v":619594.19999999995},664005,{"$f":"(((AAMC_Raw_Data_for_FY22[[#This Row],[75th]]-AAMC_Raw_Data_for_FY22[[#This Row],[Median]])/25)*5) + AAMC_Raw_Data_for_FY22[[#This Row],[Median]]","v":726111.4},{"$f":"(((AAMC_Raw_Data_for_FY22[[#This Row],[75th]]-AAMC_Raw_Data_for_FY22[[#This Row],[Median]])/25)*10) + AAMC_Raw_Data_for_FY22[[#This Row],[Median]]","v":788217.8},{"$f":"(((AAMC_Raw_Data_for_FY22[[#This Row],[75th]]-AAMC_Raw_Data_for_FY22[[#This Row],[Median]])/25)*15) + AAMC_Raw_Data_for_FY22[[#This Row],[Median]]","v":850324.2},{"$f":"(((AAMC_Raw_Data_for_FY22[[#This Row],[75th]]-AAMC_Raw_Data_for_FY22[[#This Row],[Median]])/25)*20) + AAMC_Raw_Data_for_FY22[[#This Row],[Median]]","v":912430.6},974537,{"$f":"(((AAMC_Raw_Data_for_FY22[[#This Row],[75th]]-AAMC_Raw_Data_for_FY22[[#This Row],[Median]])/25)*30) + AAMC_Raw_Data_for_FY22[[#This Row],[Median]]","v":1036643.4},{"$f":"(((AAMC_Raw_Data_for_FY22[[#This Row],[75th]]-AAMC_Raw_Data_for_FY22[[#This Row],[Median]])/25)*35) + AAMC_Raw_Data_for_FY22[[#This Row],[Median]]","v":1098749.8},{"$f":"(((AAMC_Raw_Data_for_FY22[[#This Row],[75th]]-AAMC_Raw_Data_for_FY22[[#This Row],[Median]])/25)*40) + AAMC_Raw_Data_for_FY22[[#This Row],[Median]]","v":1160856.2}]
[{"$f":"AAMC_Raw_Data_for_FY22[[#This Row],[Source]]&AAMC_Raw_Data_for_FY22[[#This Row],[Type]]&AAMC_Raw_Data_for_FY22[[#This Row],[School Subset]]&AAMC_Raw_Data_for_FY22[[#This Row],[Rank]]&AAMC_Raw_Data_for_FY22[[#This Row],[Degree]]&AAMC_Raw_Data_for_FY22[[#This Row],[Department / Specialty]]&\"L\"","v":"AAMCAcademicPrivateProfessorMDOrthopedic Surgery: Sports MedicineL"},"Orthopedic Surgery: Sports Medicine",2,"AAMC","Academic","Private","Professor","MD","2021-2022",530272,{"$f":"(((AAMC_Raw_Data_for_FY22[[#This Row],[Median]]-AAMC_Raw_Data_for_FY22[[#This Row],[25th]])/25)*5) + AAMC_Raw_Data_for_FY22[[#This Row],[25th]]","v":580564.19999999995},{"$f":"(((AAMC_Raw_Data_for_FY22[[#This Row],[Median]]-AAMC_Raw_Data_for_FY22[[#This Row],[25th]])/25)*10) + AAMC_Raw_Data_for_FY22[[#This Row],[25th]]","v":630856.4},{"$f":"(((AAMC_Raw_Data_for_FY22[[#This Row],[Median]]-AAMC_Raw_Data_for_FY22[[#This Row],[25th]])/25)*15) + AAMC_Raw_Data_for_FY22[[#This Row],[25th]]","v":681148.6},{"$f":"(((AAMC_Raw_Data_for_FY22[[#This Row],[Median]]-AAMC_Raw_Data_for_FY22[[#This Row],[25th]])/25)*20) + AAMC_Raw_Data_for_FY22[[#This Row],[25th]]","v":731440.8},781733,{"$f":"(((AAMC_Raw_Data_for_FY22[[#This Row],[75th]]-AAMC_Raw_Data_for_FY22[[#This Row],[Median]])/25)*5) + AAMC_Raw_Data_for_FY22[[#This Row],[Median]]","v":871536},{"$f":"(((AAMC_Raw_Data_for_FY22[[#This Row],[75th]]-AAMC_Raw_Data_for_FY22[[#This Row],[Median]])/25)*10) + AAMC_Raw_Data_for_FY22[[#This Row],[Median]]","v":961339},{"$f":"(((AAMC_Raw_Data_for_FY22[[#This Row],[75th]]-AAMC_Raw_Data_for_FY22[[#This Row],[Median]])/25)*15) + AAMC_Raw_Data_for_FY22[[#This Row],[Median]]","v":1051142},{"$f":"(((AAMC_Raw_Data_for_FY22[[#This Row],[75th]]-AAMC_Raw_Data_for_FY22[[#This Row],[Median]])/25)*20) + AAMC_Raw_Data_for_FY22[[#This Row],[Median]]","v":1140945},1230748,{"$f":"(((AAMC_Raw_Data_for_FY22[[#This Row],[75th]]-AAMC_Raw_Data_for_FY22[[#This Row],[Median]])/25)*30) + AAMC_Raw_Data_for_FY22[[#This Row],[Median]]","v":1320551},{"$f":"(((AAMC_Raw_Data_for_FY22[[#This Row],[75th]]-AAMC_Raw_Data_for_FY22[[#This Row],[Median]])/25)*35) + AAMC_Raw_Data_for_FY22[[#This Row],[Median]]","v":1410354},{"$f":"(((AAMC_Raw_Data_for_FY22[[#This Row],[75th]]-AAMC_Raw_Data_for_FY22[[#This Row],[Median]])/25)*40) + AAMC_Raw_Data_for_FY22[[#This Row],[Median]]","v":1500157}]
[{"$f":"AAMC_Raw_Data_for_FY22[[#This Row],[Source]]&AAMC_Raw_Data_for_FY22[[#This Row],[Type]]&AAMC_Raw_Data_for_FY22[[#This Row],[School Subset]]&AAMC_Raw_Data_for_FY22[[#This Row],[Rank]]&AAMC_Raw_Data_for_FY22[[#This Row],[Degree]]&AAMC_Raw_Data_for_FY22[[#This Row],[Department / Specialty]]&\"L\"","v":"AAMCAcademicPrivateChiefMDOrthopedic Surgery: Sports MedicineL"},"Orthopedic Surgery: Sports Medicine",6,"AAMC","Academic","Private","Chief","MD","2021-2022",null,{"$f":"(((AAMC_Raw_Data_for_FY22[[#This Row],[Median]]-AAMC_Raw_Data_for_FY22[[#This Row],[25th]])/25)*5) + AAMC_Raw_Data_for_FY22[[#This Row],[25th]]","v":0},{"$f":"(((AAMC_Raw_Data_for_FY22[[#This Row],[Median]]-AAMC_Raw_Data_for_FY22[[#This Row],[25th]])/25)*10) + AAMC_Raw_Data_for_FY22[[#This Row],[25th]]","v":0},{"$f":"(((AAMC_Raw_Data_for_FY22[[#This Row],[Median]]-AAMC_Raw_Data_for_FY22[[#This Row],[25th]])/25)*15) + AAMC_Raw_Data_for_FY22[[#This Row],[25th]]","v":0},{"$f":"(((AAMC_Raw_Data_for_FY22[[#This Row],[Median]]-AAMC_Raw_Data_for_FY22[[#This Row],[25th]])/25)*20) + AAMC_Raw_Data_for_FY22[[#This Row],[25th]]","v":0},null,{"$f":"(((AAMC_Raw_Data_for_FY22[[#This Row],[75th]]-AAMC_Raw_Data_for_FY22[[#This Row],[Median]])/25)*5) + AAMC_Raw_Data_for_FY22[[#This Row],[Median]]","v":0},{"$f":"(((AAMC_Raw_Data_for_FY22[[#This Row],[75th]]-AAMC_Raw_Data_for_FY22[[#This Row],[Median]])/25)*10) + AAMC_Raw_Data_for_FY22[[#This Row],[Median]]","v":0},{"$f":"(((AAMC_Raw_Data_for_FY22[[#This Row],[75th]]-AAMC_Raw_Data_for_FY22[[#This Row],[Median]])/25)*15) + AAMC_Raw_Data_for_FY22[[#This Row],[Median]]","v":0},{"$f":"(((AAMC_Raw_Data_for_FY22[[#This Row],[75th]]-AAMC_Raw_Data_for_FY22[[#This Row],[Median]])/25)*20) + AAMC_Raw_Data_for_FY22[[#This Row],[Median]]","v":0},null,{"$f":"(((AAMC_Raw_Data_for_FY22[[#This Row],[75th]]-AAMC_Raw_Data_for_FY22[[#This Row],[Median]])/25)*30) + AAMC_Raw_Data_for_FY22[[#This Row],[Median]]","v":0},{"$f":"(((AAMC_Raw_Data_for_FY22[[#This Row],[75th]]-AAMC_Raw_Data_for_FY22[[#This Row],[Median]])/25)*35) + AAMC_Raw_Data_for_FY22[[#This Row],[Median]]","v":0},{"$f":"(((AAMC_Raw_Data_for_FY22[[#This Row],[75th]]-AAMC_Raw_Data_for_FY22[[#This Row],[Median]])/25)*40) + AAMC_Raw_Data_for_FY22[[#This Row],[Median]]","v":0}]
[{"$f":"AAMC_Raw_Data_for_FY22[[#This Row],[Source]]&AAMC_Raw_Data_for_FY22[[#This Row],[Type]]&AAMC_Raw_Data_for_FY22[[#This Row],[School Subset]]&AAMC_Raw_Data_for_FY22[[#This Row],[Rank]]&AAMC_Raw_Data_for_FY22[[#This Row],[Degree]]&AAMC_Raw_Data_for_FY22[[#This Row],[Department / Specialty]]&\"L\"","v":"AAMCAcademicPrivateChairMDOrthopedic Surgery: Sports MedicineL"},"Orthopedic Surgery: Sports Medicine",1,"AAMC","Academic","Private","Chair","MD","2021-2022",null,{"$f":"(((AAMC_Raw_Data_for_FY22[[#This Row],[Median]]-AAMC_Raw_Data_for_FY22[[#This Row],[25th]])/25)*5) + AAMC_Raw_Data_for_FY22[[#This Row],[25th]]","v":0},{"$f":"(((AAMC_Raw_Data_for_FY22[[#This Row],[Median]]-AAMC_Raw_Data_for_FY22[[#This Row],[25th]])/25)*10) + AAMC_Raw_Data_for_FY22[[#This Row],[25th]]","v":0},{"$f":"(((AAMC_Raw_Data_for_FY22[[#This Row],[Median]]-AAMC_Raw_Data_for_FY22[[#This Row],[25th]])/25)*15) + AAMC_Raw_Data_for_FY22[[#This Row],[25th]]","v":0},{"$f":"(((AAMC_Raw_Data_for_FY22[[#This Row],[Median]]-AAMC_Raw_Data_for_FY22[[#This Row],[25th]])/25)*20) + AAMC_Raw_Data_for_FY22[[#This Row],[25th]]","v":0},null,{"$f":"(((AAMC_Raw_Data_for_FY22[[#This Row],[75th]]-AAMC_Raw_Data_for_FY22[[#This Row],[Median]])/25)*5) + AAMC_Raw_Data_for_FY22[[#This Row],[Median]]","v":0},{"$f":"(((AAMC_Raw_Data_for_FY22[[#This Row],[75th]]-AAMC_Raw_Data_for_FY22[[#This Row],[Median]])/25)*10) + AAMC_Raw_Data_for_FY22[[#This Row],[Median]]","v":0},{"$f":"(((AAMC_Raw_Data_for_FY22[[#This Row],[75th]]-AAMC_Raw_Data_for_FY22[[#This Row],[Median]])/25)*15) + AAMC_Raw_Data_for_FY22[[#This Row],[Median]]","v":0},{"$f":"(((AAMC_Raw_Data_for_FY22[[#This Row],[75th]]-AAMC_Raw_Data_for_FY22[[#This Row],[Median]])/25)*20) + AAMC_Raw_Data_for_FY22[[#This Row],[Median]]","v":0},null,{"$f":"(((AAMC_Raw_Data_for_FY22[[#This Row],[75th]]-AAMC_Raw_Data_for_FY22[[#This Row],[Median]])/25)*30) + AAMC_Raw_Data_for_FY22[[#This Row],[Median]]","v":0},{"$f":"(((AAMC_Raw_Data_for_FY22[[#This Row],[75th]]-AAMC_Raw_Data_for_FY22[[#This Row],[Median]])/25)*35) + AAMC_Raw_Data_for_FY22[[#This Row],[Median]]","v":0},{"$f":"(((AAMC_Raw_Data_for_FY22[[#This Row],[75th]]-AAMC_Raw_Data_for_FY22[[#This Row],[Median]])/25)*40) + AAMC_Raw_Data_for_FY22[[#This Row],[Median]]","v":0}]
[{"$f":"AAMC_Raw_Data_for_FY22[[#This Row],[Source]]&AAMC_Raw_Data_for_FY22[[#This Row],[Type]]&AAMC_Raw_Data_for_FY22[[#This Row],[School Subset]]&AAMC_Raw_Data_for_FY22[[#This Row],[Rank]]&AAMC_Raw_Data_for_FY22[[#This Row],[Degree]]&AAMC_Raw_Data_for_FY22[[#This Row],[Department / Specialty]]&\"L\"","v":"AAMCAcademicPrivateAssistantMDOrthopedic Surgery: TraumaL"},"Orthopedic Surgery: Trauma",4,"AAMC","Academic","Private","Assistant","MD","2021-2022",538548,{"$f":"(((AAMC_Raw_Data_for_FY22[[#This Row],[Median]]-AAMC_Raw_Data_for_FY22[[#This Row],[25th]])/25)*5) + AAMC_Raw_Data_for_FY22[[#This Row],[25th]]","v":542931.6},{"$f":"(((AAMC_Raw_Data_for_FY22[[#This Row],[Median]]-AAMC_Raw_Data_for_FY22[[#This Row],[25th]])/25)*10) + AAMC_Raw_Data_for_FY22[[#This Row],[25th]]","v":547315.19999999995},{"$f":"(((AAMC_Raw_Data_for_FY22[[#This Row],[Median]]-AAMC_Raw_Data_for_FY22[[#This Row],[25th]])/25)*15) + AAMC_Raw_Data_for_FY22[[#This Row],[25th]]","v":551698.80000000005},{"$f":"(((AAMC_Raw_Data_for_FY22[[#This Row],[Median]]-AAMC_Raw_Data_for_FY22[[#This Row],[25th]])/25)*20) + AAMC_Raw_Data_for_FY22[[#This Row],[25th]]","v":556082.4},560466,{"$f":"(((AAMC_Raw_Data_for_FY22[[#This Row],[75th]]-AAMC_Raw_Data_for_FY22[[#This Row],[Median]])/25)*5) + AAMC_Raw_Data_for_FY22[[#This Row],[Median]]","v":570697.6},{"$f":"(((AAMC_Raw_Data_for_FY22[[#This Row],[75th]]-AAMC_Raw_Data_for_FY22[[#This Row],[Median]])/25)*10) + AAMC_Raw_Data_for_FY22[[#This Row],[Median]]","v":580929.19999999995},{"$f":"(((AAMC_Raw_Data_for_FY22[[#This Row],[75th]]-AAMC_Raw_Data_for_FY22[[#This Row],[Median]])/25)*15) + AAMC_Raw_Data_for_FY22[[#This Row],[Median]]","v":591160.80000000005},{"$f":"(((AAMC_Raw_Data_for_FY22[[#This Row],[75th]]-AAMC_Raw_Data_for_FY22[[#This Row],[Median]])/25)*20) + AAMC_Raw_Data_for_FY22[[#This Row],[Median]]","v":601392.4},611624,{"$f":"(((AAMC_Raw_Data_for_FY22[[#This Row],[75th]]-AAMC_Raw_Data_for_FY22[[#This Row],[Median]])/25)*30) + AAMC_Raw_Data_for_FY22[[#This Row],[Median]]","v":621855.6},{"$f":"(((AAMC_Raw_Data_for_FY22[[#This Row],[75th]]-AAMC_Raw_Data_for_FY22[[#This Row],[Median]])/25)*35) + AAMC_Raw_Data_for_FY22[[#This Row],[Median]]","v":632087.19999999995},{"$f":"(((AAMC_Raw_Data_for_FY22[[#This Row],[75th]]-AAMC_Raw_Data_for_FY22[[#This Row],[Median]])/25)*40) + AAMC_Raw_Data_for_FY22[[#This Row],[Median]]","v":642318.80000000005}]
[{"$f":"AAMC_Raw_Data_for_FY22[[#This Row],[Source]]&AAMC_Raw_Data_for_FY22[[#This Row],[Type]]&AAMC_Raw_Data_for_FY22[[#This Row],[School Subset]]&AAMC_Raw_Data_for_FY22[[#This Row],[Rank]]&AAMC_Raw_Data_for_FY22[[#This Row],[Degree]]&AAMC_Raw_Data_for_FY22[[#This Row],[Department / Specialty]]&\"L\"","v":"AAMCAcademicPrivateAssociateMDOrthopedic Surgery: TraumaL"},"Orthopedic Surgery: Trauma",3,"AAMC","Academic","Private","Associate","MD","2021-2022",663421,{"$f":"(((AAMC_Raw_Data_for_FY22[[#This Row],[Median]]-AAMC_Raw_Data_for_FY22[[#This Row],[25th]])/25)*5) + AAMC_Raw_Data_for_FY22[[#This Row],[25th]]","v":681644.6},{"$f":"(((AAMC_Raw_Data_for_FY22[[#This Row],[Median]]-AAMC_Raw_Data_for_FY22[[#This Row],[25th]])/25)*10) + AAMC_Raw_Data_for_FY22[[#This Row],[25th]]","v":699868.2},{"$f":"(((AAMC_Raw_Data_for_FY22[[#This Row],[Median]]-AAMC_Raw_Data_for_FY22[[#This Row],[25th]])/25)*15) + AAMC_Raw_Data_for_FY22[[#This Row],[25th]]","v":718091.8},{"$f":"(((AAMC_Raw_Data_for_FY22[[#This Row],[Median]]-AAMC_Raw_Data_for_FY22[[#This Row],[25th]])/25)*20) + AAMC_Raw_Data_for_FY22[[#This Row],[25th]]","v":736315.4},754539,{"$f":"(((AAMC_Raw_Data_for_FY22[[#This Row],[75th]]-AAMC_Raw_Data_for_FY22[[#This Row],[Median]])/25)*5) + AAMC_Raw_Data_for_FY22[[#This Row],[Median]]","v":787762.6},{"$f":"(((AAMC_Raw_Data_for_FY22[[#This Row],[75th]]-AAMC_Raw_Data_for_FY22[[#This Row],[Median]])/25)*10) + AAMC_Raw_Data_for_FY22[[#This Row],[Median]]","v":820986.2},{"$f":"(((AAMC_Raw_Data_for_FY22[[#This Row],[75th]]-AAMC_Raw_Data_for_FY22[[#This Row],[Median]])/25)*15) + AAMC_Raw_Data_for_FY22[[#This Row],[Median]]","v":854209.8},{"$f":"(((AAMC_Raw_Data_for_FY22[[#This Row],[75th]]-AAMC_Raw_Data_for_FY22[[#This Row],[Median]])/25)*20) + AAMC_Raw_Data_for_FY22[[#This Row],[Median]]","v":887433.4},920657,{"$f":"(((AAMC_Raw_Data_for_FY22[[#This Row],[75th]]-AAMC_Raw_Data_for_FY22[[#This Row],[Median]])/25)*30) + AAMC_Raw_Data_for_FY22[[#This Row],[Median]]","v":953880.6},{"$f":"(((AAMC_Raw_Data_for_FY22[[#This Row],[75th]]-AAMC_Raw_Data_for_FY22[[#This Row],[Median]])/25)*35) + AAMC_Raw_Data_for_FY22[[#This Row],[Median]]","v":987104.2},{"$f":"(((AAMC_Raw_Data_for_FY22[[#This Row],[75th]]-AAMC_Raw_Data_for_FY22[[#This Row],[Median]])/25)*40) + AAMC_Raw_Data_for_FY22[[#This Row],[Median]]","v":1020327.8}]
[{"$f":"AAMC_Raw_Data_for_FY22[[#This Row],[Source]]&AAMC_Raw_Data_for_FY22[[#This Row],[Type]]&AAMC_Raw_Data_for_FY22[[#This Row],[School Subset]]&AAMC_Raw_Data_for_FY22[[#This Row],[Rank]]&AAMC_Raw_Data_for_FY22[[#This Row],[Degree]]&AAMC_Raw_Data_for_FY22[[#This Row],[Department / Specialty]]&\"L\"","v":"AAMCAcademicPrivateProfessorMDOrthopedic Surgery: TraumaL"},"Orthopedic Surgery: Trauma",2,"AAMC","Academic","Private","Professor","MD","2021-2022",654644,{"$f":"(((AAMC_Raw_Data_for_FY22[[#This Row],[Median]]-AAMC_Raw_Data_for_FY22[[#This Row],[25th]])/25)*5) + AAMC_Raw_Data_for_FY22[[#This Row],[25th]]","v":663702.19999999995},{"$f":"(((AAMC_Raw_Data_for_FY22[[#This Row],[Median]]-AAMC_Raw_Data_for_FY22[[#This Row],[25th]])/25)*10) + AAMC_Raw_Data_for_FY22[[#This Row],[25th]]","v":672760.4},{"$f":"(((AAMC_Raw_Data_for_FY22[[#This Row],[Median]]-AAMC_Raw_Data_for_FY22[[#This Row],[25th]])/25)*15) + AAMC_Raw_Data_for_FY22[[#This Row],[25th]]","v":681818.6},{"$f":"(((AAMC_Raw_Data_for_FY22[[#This Row],[Median]]-AAMC_Raw_Data_for_FY22[[#This Row],[25th]])/25)*20) + AAMC_Raw_Data_for_FY22[[#This Row],[25th]]","v":690876.8},699935,{"$f":"(((AAMC_Raw_Data_for_FY22[[#This Row],[75th]]-AAMC_Raw_Data_for_FY22[[#This Row],[Median]])/25)*5) + AAMC_Raw_Data_for_FY22[[#This Row],[Median]]","v":726278.4},{"$f":"(((AAMC_Raw_Data_for_FY22[[#This Row],[75th]]-AAMC_Raw_Data_for_FY22[[#This Row],[Median]])/25)*10) + AAMC_Raw_Data_for_FY22[[#This Row],[Median]]","v":752621.8},{"$f":"(((AAMC_Raw_Data_for_FY22[[#This Row],[75th]]-AAMC_Raw_Data_for_FY22[[#This Row],[Median]])/25)*15) + AAMC_Raw_Data_for_FY22[[#This Row],[Median]]","v":778965.2},{"$f":"(((AAMC_Raw_Data_for_FY22[[#This Row],[75th]]-AAMC_Raw_Data_for_FY22[[#This Row],[Median]])/25)*20) + AAMC_Raw_Data_for_FY22[[#This Row],[Median]]","v":805308.6},831652,{"$f":"(((AAMC_Raw_Data_for_FY22[[#This Row],[75th]]-AAMC_Raw_Data_for_FY22[[#This Row],[Median]])/25)*30) + AAMC_Raw_Data_for_FY22[[#This Row],[Median]]","v":857995.4},{"$f":"(((AAMC_Raw_Data_for_FY22[[#This Row],[75th]]-AAMC_Raw_Data_for_FY22[[#This Row],[Median]])/25)*35) + AAMC_Raw_Data_for_FY22[[#This Row],[Median]]","v":884338.8},{"$f":"(((AAMC_Raw_Data_for_FY22[[#This Row],[75th]]-AAMC_Raw_Data_for_FY22[[#This Row],[Median]])/25)*40) + AAMC_Raw_Data_for_FY22[[#This Row],[Median]]","v":910682.2}]
[{"$f":"AAMC_Raw_Data_for_FY22[[#This Row],[Source]]&AAMC_Raw_Data_for_FY22[[#This Row],[Type]]&AAMC_Raw_Data_for_FY22[[#This Row],[School Subset]]&AAMC_Raw_Data_for_FY22[[#This Row],[Rank]]&AAMC_Raw_Data_for_FY22[[#This Row],[Degree]]&AAMC_Raw_Data_for_FY22[[#This Row],[Department / Specialty]]&\"L\"","v":"AAMCAcademicPrivateChiefMDOrthopedic Surgery: TraumaL"},"Orthopedic Surgery: Trauma",6,"AAMC","Academic","Private","Chief","MD","2021-2022",null,{"$f":"(((AAMC_Raw_Data_for_FY22[[#This Row],[Median]]-AAMC_Raw_Data_for_FY22[[#This Row],[25th]])/25)*5) + AAMC_Raw_Data_for_FY22[[#This Row],[25th]]","v":0},{"$f":"(((AAMC_Raw_Data_for_FY22[[#This Row],[Median]]-AAMC_Raw_Data_for_FY22[[#This Row],[25th]])/25)*10) + AAMC_Raw_Data_for_FY22[[#This Row],[25th]]","v":0},{"$f":"(((AAMC_Raw_Data_for_FY22[[#This Row],[Median]]-AAMC_Raw_Data_for_FY22[[#This Row],[25th]])/25)*15) + AAMC_Raw_Data_for_FY22[[#This Row],[25th]]","v":0},{"$f":"(((AAMC_Raw_Data_for_FY22[[#This Row],[Median]]-AAMC_Raw_Data_for_FY22[[#This Row],[25th]])/25)*20) + AAMC_Raw_Data_for_FY22[[#This Row],[25th]]","v":0},null,{"$f":"(((AAMC_Raw_Data_for_FY22[[#This Row],[75th]]-AAMC_Raw_Data_for_FY22[[#This Row],[Median]])/25)*5) + AAMC_Raw_Data_for_FY22[[#This Row],[Median]]","v":0},{"$f":"(((AAMC_Raw_Data_for_FY22[[#This Row],[75th]]-AAMC_Raw_Data_for_FY22[[#This Row],[Median]])/25)*10) + AAMC_Raw_Data_for_FY22[[#This Row],[Median]]","v":0},{"$f":"(((AAMC_Raw_Data_for_FY22[[#This Row],[75th]]-AAMC_Raw_Data_for_FY22[[#This Row],[Median]])/25)*15) + AAMC_Raw_Data_for_FY22[[#This Row],[Median]]","v":0},{"$f":"(((AAMC_Raw_Data_for_FY22[[#This Row],[75th]]-AAMC_Raw_Data_for_FY22[[#This Row],[Median]])/25)*20) + AAMC_Raw_Data_for_FY22[[#This Row],[Median]]","v":0},null,{"$f":"(((AAMC_Raw_Data_for_FY22[[#This Row],[75th]]-AAMC_Raw_Data_for_FY22[[#This Row],[Median]])/25)*30) + AAMC_Raw_Data_for_FY22[[#This Row],[Median]]","v":0},{"$f":"(((AAMC_Raw_Data_for_FY22[[#This Row],[75th]]-AAMC_Raw_Data_for_FY22[[#This Row],[Median]])/25)*35) + AAMC_Raw_Data_for_FY22[[#This Row],[Median]]","v":0},{"$f":"(((AAMC_Raw_Data_for_FY22[[#This Row],[75th]]-AAMC_Raw_Data_for_FY22[[#This Row],[Median]])/25)*40) + AAMC_Raw_Data_for_FY22[[#This Row],[Median]]","v":0}]
[{"$f":"AAMC_Raw_Data_for_FY22[[#This Row],[Source]]&AAMC_Raw_Data_for_FY22[[#This Row],[Type]]&AAMC_Raw_Data_for_FY22[[#This Row],[School Subset]]&AAMC_Raw_Data_for_FY22[[#This Row],[Rank]]&AAMC_Raw_Data_for_FY22[[#This Row],[Degree]]&AAMC_Raw_Data_for_FY22[[#This Row],[Department / Specialty]]&\"L\"","v":"AAMCAcademicPrivateChairMDOrthopedic Surgery: TraumaL"},"Orthopedic Surgery: Trauma",1,"AAMC","Academic","Private","Chair","MD","2021-2022",null,{"$f":"(((AAMC_Raw_Data_for_FY22[[#This Row],[Median]]-AAMC_Raw_Data_for_FY22[[#This Row],[25th]])/25)*5) + AAMC_Raw_Data_for_FY22[[#This Row],[25th]]","v":0},{"$f":"(((AAMC_Raw_Data_for_FY22[[#This Row],[Median]]-AAMC_Raw_Data_for_FY22[[#This Row],[25th]])/25)*10) + AAMC_Raw_Data_for_FY22[[#This Row],[25th]]","v":0},{"$f":"(((AAMC_Raw_Data_for_FY22[[#This Row],[Median]]-AAMC_Raw_Data_for_FY22[[#This Row],[25th]])/25)*15) + AAMC_Raw_Data_for_FY22[[#This Row],[25th]]","v":0},{"$f":"(((AAMC_Raw_Data_for_FY22[[#This Row],[Median]]-AAMC_Raw_Data_for_FY22[[#This Row],[25th]])/25)*20) + AAMC_Raw_Data_for_FY22[[#This Row],[25th]]","v":0},null,{"$f":"(((AAMC_Raw_Data_for_FY22[[#This Row],[75th]]-AAMC_Raw_Data_for_FY22[[#This Row],[Median]])/25)*5) + AAMC_Raw_Data_for_FY22[[#This Row],[Median]]","v":0},{"$f":"(((AAMC_Raw_Data_for_FY22[[#This Row],[75th]]-AAMC_Raw_Data_for_FY22[[#This Row],[Median]])/25)*10) + AAMC_Raw_Data_for_FY22[[#This Row],[Median]]","v":0},{"$f":"(((AAMC_Raw_Data_for_FY22[[#This Row],[75th]]-AAMC_Raw_Data_for_FY22[[#This Row],[Median]])/25)*15) + AAMC_Raw_Data_for_FY22[[#This Row],[Median]]","v":0},{"$f":"(((AAMC_Raw_Data_for_FY22[[#This Row],[75th]]-AAMC_Raw_Data_for_FY22[[#This Row],[Median]])/25)*20) + AAMC_Raw_Data_for_FY22[[#This Row],[Median]]","v":0},null,{"$f":"(((AAMC_Raw_Data_for_FY22[[#This Row],[75th]]-AAMC_Raw_Data_for_FY22[[#This Row],[Median]])/25)*30) + AAMC_Raw_Data_for_FY22[[#This Row],[Median]]","v":0},{"$f":"(((AAMC_Raw_Data_for_FY22[[#This Row],[75th]]-AAMC_Raw_Data_for_FY22[[#This Row],[Median]])/25)*35) + AAMC_Raw_Data_for_FY22[[#This Row],[Median]]","v":0},{"$f":"(((AAMC_Raw_Data_for_FY22[[#This Row],[75th]]-AAMC_Raw_Data_for_FY22[[#This Row],[Median]])/25)*40) + AAMC_Raw_Data_for_FY22[[#This Row],[Median]]","v":0}]
[{"$f":"AAMC_Raw_Data_for_FY22[[#This Row],[Source]]&AAMC_Raw_Data_for_FY22[[#This Row],[Type]]&AAMC_Raw_Data_for_FY22[[#This Row],[School Subset]]&AAMC_Raw_Data_for_FY22[[#This Row],[Rank]]&AAMC_Raw_Data_for_FY22[[#This Row],[Degree]]&AAMC_Raw_Data_for_FY22[[#This Row],[Department / Specialty]]&\"L\"","v":"AAMCAcademicPrivateInstructorMDOrthopedic Surgery: OtherL"},"Orthopedic Surgery: Other",5,"AAMC","Academic","Private","Instructor","MD","2021-2022",null,{"$f":"(((AAMC_Raw_Data_for_FY22[[#This Row],[Median]]-AAMC_Raw_Data_for_FY22[[#This Row],[25th]])/25)*5) + AAMC_Raw_Data_for_FY22[[#This Row],[25th]]","v":0},{"$f":"(((AAMC_Raw_Data_for_FY22[[#This Row],[Median]]-AAMC_Raw_Data_for_FY22[[#This Row],[25th]])/25)*10) + AAMC_Raw_Data_for_FY22[[#This Row],[25th]]","v":0},{"$f":"(((AAMC_Raw_Data_for_FY22[[#This Row],[Median]]-AAMC_Raw_Data_for_FY22[[#This Row],[25th]])/25)*15) + AAMC_Raw_Data_for_FY22[[#This Row],[25th]]","v":0},{"$f":"(((AAMC_Raw_Data_for_FY22[[#This Row],[Median]]-AAMC_Raw_Data_for_FY22[[#This Row],[25th]])/25)*20) + AAMC_Raw_Data_for_FY22[[#This Row],[25th]]","v":0},null,{"$f":"(((AAMC_Raw_Data_for_FY22[[#This Row],[75th]]-AAMC_Raw_Data_for_FY22[[#This Row],[Median]])/25)*5) + AAMC_Raw_Data_for_FY22[[#This Row],[Median]]","v":0},{"$f":"(((AAMC_Raw_Data_for_FY22[[#This Row],[75th]]-AAMC_Raw_Data_for_FY22[[#This Row],[Median]])/25)*10) + AAMC_Raw_Data_for_FY22[[#This Row],[Median]]","v":0},{"$f":"(((AAMC_Raw_Data_for_FY22[[#This Row],[75th]]-AAMC_Raw_Data_for_FY22[[#This Row],[Median]])/25)*15) + AAMC_Raw_Data_for_FY22[[#This Row],[Median]]","v":0},{"$f":"(((AAMC_Raw_Data_for_FY22[[#This Row],[75th]]-AAMC_Raw_Data_for_FY22[[#This Row],[Median]])/25)*20) + AAMC_Raw_Data_for_FY22[[#This Row],[Median]]","v":0},null,{"$f":"(((AAMC_Raw_Data_for_FY22[[#This Row],[75th]]-AAMC_Raw_Data_for_FY22[[#This Row],[Median]])/25)*30) + AAMC_Raw_Data_for_FY22[[#This Row],[Median]]","v":0},{"$f":"(((AAMC_Raw_Data_for_FY22[[#This Row],[75th]]-AAMC_Raw_Data_for_FY22[[#This Row],[Median]])/25)*35) + AAMC_Raw_Data_for_FY22[[#This Row],[Median]]","v":0},{"$f":"(((AAMC_Raw_Data_for_FY22[[#This Row],[75th]]-AAMC_Raw_Data_for_FY22[[#This Row],[Median]])/25)*40) + AAMC_Raw_Data_for_FY22[[#This Row],[Median]]","v":0}]
[{"$f":"AAMC_Raw_Data_for_FY22[[#This Row],[Source]]&AAMC_Raw_Data_for_FY22[[#This Row],[Type]]&AAMC_Raw_Data_for_FY22[[#This Row],[School Subset]]&AAMC_Raw_Data_for_FY22[[#This Row],[Rank]]&AAMC_Raw_Data_for_FY22[[#This Row],[Degree]]&AAMC_Raw_Data_for_FY22[[#This Row],[Department / Specialty]]&\"L\"","v":"AAMCAcademicPrivateAssistantMDOrthopedic Surgery: OtherL"},"Orthopedic Surgery: Other",4,"AAMC","Academic","Private","Assistant","MD","2021-2022",335390,{"$f":"(((AAMC_Raw_Data_for_FY22[[#This Row],[Median]]-AAMC_Raw_Data_for_FY22[[#This Row],[25th]])/25)*5) + AAMC_Raw_Data_for_FY22[[#This Row],[25th]]","v":355006},{"$f":"(((AAMC_Raw_Data_for_FY22[[#This Row],[Median]]-AAMC_Raw_Data_for_FY22[[#This Row],[25th]])/25)*10) + AAMC_Raw_Data_for_FY22[[#This Row],[25th]]","v":374622},{"$f":"(((AAMC_Raw_Data_for_FY22[[#This Row],[Median]]-AAMC_Raw_Data_for_FY22[[#This Row],[25th]])/25)*15) + AAMC_Raw_Data_for_FY22[[#This Row],[25th]]","v":394238},{"$f":"(((AAMC_Raw_Data_for_FY22[[#This Row],[Median]]-AAMC_Raw_Data_for_FY22[[#This Row],[25th]])/25)*20) + AAMC_Raw_Data_for_FY22[[#This Row],[25th]]","v":413854},433470,{"$f":"(((AAMC_Raw_Data_for_FY22[[#This Row],[75th]]-AAMC_Raw_Data_for_FY22[[#This Row],[Median]])/25)*5) + AAMC_Raw_Data_for_FY22[[#This Row],[Median]]","v":463379},{"$f":"(((AAMC_Raw_Data_for_FY22[[#This Row],[75th]]-AAMC_Raw_Data_for_FY22[[#This Row],[Median]])/25)*10) + AAMC_Raw_Data_for_FY22[[#This Row],[Median]]","v":493288},{"$f":"(((AAMC_Raw_Data_for_FY22[[#This Row],[75th]]-AAMC_Raw_Data_for_FY22[[#This Row],[Median]])/25)*15) + AAMC_Raw_Data_for_FY22[[#This Row],[Median]]","v":523197},{"$f":"(((AAMC_Raw_Data_for_FY22[[#This Row],[75th]]-AAMC_Raw_Data_for_FY22[[#This Row],[Median]])/25)*20) + AAMC_Raw_Data_for_FY22[[#This Row],[Median]]","v":553106},583015,{"$f":"(((AAMC_Raw_Data_for_FY22[[#This Row],[75th]]-AAMC_Raw_Data_for_FY22[[#This Row],[Median]])/25)*30) + AAMC_Raw_Data_for_FY22[[#This Row],[Median]]","v":612924},{"$f":"(((AAMC_Raw_Data_for_FY22[[#This Row],[75th]]-AAMC_Raw_Data_for_FY22[[#This Row],[Median]])/25)*35) + AAMC_Raw_Data_for_FY22[[#This Row],[Median]]","v":642833},{"$f":"(((AAMC_Raw_Data_for_FY22[[#This Row],[75th]]-AAMC_Raw_Data_for_FY22[[#This Row],[Median]])/25)*40) + AAMC_Raw_Data_for_FY22[[#This Row],[Median]]","v":672742}]
[{"$f":"AAMC_Raw_Data_for_FY22[[#This Row],[Source]]&AAMC_Raw_Data_for_FY22[[#This Row],[Type]]&AAMC_Raw_Data_for_FY22[[#This Row],[School Subset]]&AAMC_Raw_Data_for_FY22[[#This Row],[Rank]]&AAMC_Raw_Data_for_FY22[[#This Row],[Degree]]&AAMC_Raw_Data_for_FY22[[#This Row],[Department / Specialty]]&\"L\"","v":"AAMCAcademicPrivateAssociateMDOrthopedic Surgery: OtherL"},"Orthopedic Surgery: Other",3,"AAMC","Academic","Private","Associate","MD","2021-2022",473590,{"$f":"(((AAMC_Raw_Data_for_FY22[[#This Row],[Median]]-AAMC_Raw_Data_for_FY22[[#This Row],[25th]])/25)*5) + AAMC_Raw_Data_for_FY22[[#This Row],[25th]]","v":489957},{"$f":"(((AAMC_Raw_Data_for_FY22[[#This Row],[Median]]-AAMC_Raw_Data_for_FY22[[#This Row],[25th]])/25)*10) + AAMC_Raw_Data_for_FY22[[#This Row],[25th]]","v":506324},{"$f":"(((AAMC_Raw_Data_for_FY22[[#This Row],[Median]]-AAMC_Raw_Data_for_FY22[[#This Row],[25th]])/25)*15) + AAMC_Raw_Data_for_FY22[[#This Row],[25th]]","v":522691},{"$f":"(((AAMC_Raw_Data_for_FY22[[#This Row],[Median]]-AAMC_Raw_Data_for_FY22[[#This Row],[25th]])/25)*20) + AAMC_Raw_Data_for_FY22[[#This Row],[25th]]","v":539058},555425,{"$f":"(((AAMC_Raw_Data_for_FY22[[#This Row],[75th]]-AAMC_Raw_Data_for_FY22[[#This Row],[Median]])/25)*5) + AAMC_Raw_Data_for_FY22[[#This Row],[Median]]","v":602542.80000000005},{"$f":"(((AAMC_Raw_Data_for_FY22[[#This Row],[75th]]-AAMC_Raw_Data_for_FY22[[#This Row],[Median]])/25)*10) + AAMC_Raw_Data_for_FY22[[#This Row],[Median]]","v":649660.6},{"$f":"(((AAMC_Raw_Data_for_FY22[[#This Row],[75th]]-AAMC_Raw_Data_for_FY22[[#This Row],[Median]])/25)*15) + AAMC_Raw_Data_for_FY22[[#This Row],[Median]]","v":696778.4},{"$f":"(((AAMC_Raw_Data_for_FY22[[#This Row],[75th]]-AAMC_Raw_Data_for_FY22[[#This Row],[Median]])/25)*20) + AAMC_Raw_Data_for_FY22[[#This Row],[Median]]","v":743896.2},791014,{"$f":"(((AAMC_Raw_Data_for_FY22[[#This Row],[75th]]-AAMC_Raw_Data_for_FY22[[#This Row],[Median]])/25)*30) + AAMC_Raw_Data_for_FY22[[#This Row],[Median]]","v":838131.8},{"$f":"(((AAMC_Raw_Data_for_FY22[[#This Row],[75th]]-AAMC_Raw_Data_for_FY22[[#This Row],[Median]])/25)*35) + AAMC_Raw_Data_for_FY22[[#This Row],[Median]]","v":885249.6},{"$f":"(((AAMC_Raw_Data_for_FY22[[#This Row],[75th]]-AAMC_Raw_Data_for_FY22[[#This Row],[Median]])/25)*40) + AAMC_Raw_Data_for_FY22[[#This Row],[Median]]","v":932367.39999999991}]
[{"$f":"AAMC_Raw_Data_for_FY22[[#This Row],[Source]]&AAMC_Raw_Data_for_FY22[[#This Row],[Type]]&AAMC_Raw_Data_for_FY22[[#This Row],[School Subset]]&AAMC_Raw_Data_for_FY22[[#This Row],[Rank]]&AAMC_Raw_Data_for_FY22[[#This Row],[Degree]]&AAMC_Raw_Data_for_FY22[[#This Row],[Department / Specialty]]&\"L\"","v":"AAMCAcademicPrivateProfessorMDOrthopedic Surgery: OtherL"},"Orthopedic Surgery: Other",2,"AAMC","Academic","Private","Professor","MD","2021-2022",425000,{"$f":"(((AAMC_Raw_Data_for_FY22[[#This Row],[Median]]-AAMC_Raw_Data_for_FY22[[#This Row],[25th]])/25)*5) + AAMC_Raw_Data_for_FY22[[#This Row],[25th]]","v":464000},{"$f":"(((AAMC_Raw_Data_for_FY22[[#This Row],[Median]]-AAMC_Raw_Data_for_FY22[[#This Row],[25th]])/25)*10) + AAMC_Raw_Data_for_FY22[[#This Row],[25th]]","v":503000},{"$f":"(((AAMC_Raw_Data_for_FY22[[#This Row],[Median]]-AAMC_Raw_Data_for_FY22[[#This Row],[25th]])/25)*15) + AAMC_Raw_Data_for_FY22[[#This Row],[25th]]","v":542000},{"$f":"(((AAMC_Raw_Data_for_FY22[[#This Row],[Median]]-AAMC_Raw_Data_for_FY22[[#This Row],[25th]])/25)*20) + AAMC_Raw_Data_for_FY22[[#This Row],[25th]]","v":581000},620000,{"$f":"(((AAMC_Raw_Data_for_FY22[[#This Row],[75th]]-AAMC_Raw_Data_for_FY22[[#This Row],[Median]])/25)*5) + AAMC_Raw_Data_for_FY22[[#This Row],[Median]]","v":674843.6},{"$f":"(((AAMC_Raw_Data_for_FY22[[#This Row],[75th]]-AAMC_Raw_Data_for_FY22[[#This Row],[Median]])/25)*10) + AAMC_Raw_Data_for_FY22[[#This Row],[Median]]","v":729687.2},{"$f":"(((AAMC_Raw_Data_for_FY22[[#This Row],[75th]]-AAMC_Raw_Data_for_FY22[[#This Row],[Median]])/25)*15) + AAMC_Raw_Data_for_FY22[[#This Row],[Median]]","v":784530.8},{"$f":"(((AAMC_Raw_Data_for_FY22[[#This Row],[75th]]-AAMC_Raw_Data_for_FY22[[#This Row],[Median]])/25)*20) + AAMC_Raw_Data_for_FY22[[#This Row],[Median]]","v":839374.4},894218,{"$f":"(((AAMC_Raw_Data_for_FY22[[#This Row],[75th]]-AAMC_Raw_Data_for_FY22[[#This Row],[Median]])/25)*30) + AAMC_Raw_Data_for_FY22[[#This Row],[Median]]","v":949061.6},{"$f":"(((AAMC_Raw_Data_for_FY22[[#This Row],[75th]]-AAMC_Raw_Data_for_FY22[[#This Row],[Median]])/25)*35) + AAMC_Raw_Data_for_FY22[[#This Row],[Median]]","v":1003905.2},{"$f":"(((AAMC_Raw_Data_for_FY22[[#This Row],[75th]]-AAMC_Raw_Data_for_FY22[[#This Row],[Median]])/25)*40) + AAMC_Raw_Data_for_FY22[[#This Row],[Median]]","v":1058748.8}]
[{"$f":"AAMC_Raw_Data_for_FY22[[#This Row],[Source]]&AAMC_Raw_Data_for_FY22[[#This Row],[Type]]&AAMC_Raw_Data_for_FY22[[#This Row],[School Subset]]&AAMC_Raw_Data_for_FY22[[#This Row],[Rank]]&AAMC_Raw_Data_for_FY22[[#This Row],[Degree]]&AAMC_Raw_Data_for_FY22[[#This Row],[Department / Specialty]]&\"L\"","v":"AAMCAcademicPrivateChiefMDOrthopedic Surgery: OtherL"},"Orthopedic Surgery: Other",6,"AAMC","Academic","Private","Chief","MD","2021-2022",480000,{"$f":"(((AAMC_Raw_Data_for_FY22[[#This Row],[Median]]-AAMC_Raw_Data_for_FY22[[#This Row],[25th]])/25)*5) + AAMC_Raw_Data_for_FY22[[#This Row],[25th]]","v":496335.2},{"$f":"(((AAMC_Raw_Data_for_FY22[[#This Row],[Median]]-AAMC_Raw_Data_for_FY22[[#This Row],[25th]])/25)*10) + AAMC_Raw_Data_for_FY22[[#This Row],[25th]]","v":512670.4},{"$f":"(((AAMC_Raw_Data_for_FY22[[#This Row],[Median]]-AAMC_Raw_Data_for_FY22[[#This Row],[25th]])/25)*15) + AAMC_Raw_Data_for_FY22[[#This Row],[25th]]","v":529005.6},{"$f":"(((AAMC_Raw_Data_for_FY22[[#This Row],[Median]]-AAMC_Raw_Data_for_FY22[[#This Row],[25th]])/25)*20) + AAMC_Raw_Data_for_FY22[[#This Row],[25th]]","v":545340.80000000005},561676,{"$f":"(((AAMC_Raw_Data_for_FY22[[#This Row],[75th]]-AAMC_Raw_Data_for_FY22[[#This Row],[Median]])/25)*5) + AAMC_Raw_Data_for_FY22[[#This Row],[Median]]","v":617360.4},{"$f":"(((AAMC_Raw_Data_for_FY22[[#This Row],[75th]]-AAMC_Raw_Data_for_FY22[[#This Row],[Median]])/25)*10) + AAMC_Raw_Data_for_FY22[[#This Row],[Median]]","v":673044.8},{"$f":"(((AAMC_Raw_Data_for_FY22[[#This Row],[75th]]-AAMC_Raw_Data_for_FY22[[#This Row],[Median]])/25)*15) + AAMC_Raw_Data_for_FY22[[#This Row],[Median]]","v":728729.2},{"$f":"(((AAMC_Raw_Data_for_FY22[[#This Row],[75th]]-AAMC_Raw_Data_for_FY22[[#This Row],[Median]])/25)*20) + AAMC_Raw_Data_for_FY22[[#This Row],[Median]]","v":784413.6},840098,{"$f":"(((AAMC_Raw_Data_for_FY22[[#This Row],[75th]]-AAMC_Raw_Data_for_FY22[[#This Row],[Median]])/25)*30) + AAMC_Raw_Data_for_FY22[[#This Row],[Median]]","v":895782.39999999991},{"$f":"(((AAMC_Raw_Data_for_FY22[[#This Row],[75th]]-AAMC_Raw_Data_for_FY22[[#This Row],[Median]])/25)*35) + AAMC_Raw_Data_for_FY22[[#This Row],[Median]]","v":951466.8},{"$f":"(((AAMC_Raw_Data_for_FY22[[#This Row],[75th]]-AAMC_Raw_Data_for_FY22[[#This Row],[Median]])/25)*40) + AAMC_Raw_Data_for_FY22[[#This Row],[Median]]","v":1007151.2}]
[{"$f":"AAMC_Raw_Data_for_FY22[[#This Row],[Source]]&AAMC_Raw_Data_for_FY22[[#This Row],[Type]]&AAMC_Raw_Data_for_FY22[[#This Row],[School Subset]]&AAMC_Raw_Data_for_FY22[[#This Row],[Rank]]&AAMC_Raw_Data_for_FY22[[#This Row],[Degree]]&AAMC_Raw_Data_for_FY22[[#This Row],[Department / Specialty]]&\"L\"","v":"AAMCAcademicPrivateChairMDOrthopedic Surgery: OtherL"},"Orthopedic Surgery: Other",1,"AAMC","Academic","Private","Chair","MD","2021-2022",940000,{"$f":"(((AAMC_Raw_Data_for_FY22[[#This Row],[Median]]-AAMC_Raw_Data_for_FY22[[#This Row],[25th]])/25)*5) + AAMC_Raw_Data_for_FY22[[#This Row],[25th]]","v":959436.6},{"$f":"(((AAMC_Raw_Data_for_FY22[[#This Row],[Median]]-AAMC_Raw_Data_for_FY22[[#This Row],[25th]])/25)*10) + AAMC_Raw_Data_for_FY22[[#This Row],[25th]]","v":978873.2},{"$f":"(((AAMC_Raw_Data_for_FY22[[#This Row],[Median]]-AAMC_Raw_Data_for_FY22[[#This Row],[25th]])/25)*15) + AAMC_Raw_Data_for_FY22[[#This Row],[25th]]","v":998309.8},{"$f":"(((AAMC_Raw_Data_for_FY22[[#This Row],[Median]]-AAMC_Raw_Data_for_FY22[[#This Row],[25th]])/25)*20) + AAMC_Raw_Data_for_FY22[[#This Row],[25th]]","v":1017746.4},1037183,{"$f":"(((AAMC_Raw_Data_for_FY22[[#This Row],[75th]]-AAMC_Raw_Data_for_FY22[[#This Row],[Median]])/25)*5) + AAMC_Raw_Data_for_FY22[[#This Row],[Median]]","v":1059223.3999999999},{"$f":"(((AAMC_Raw_Data_for_FY22[[#This Row],[75th]]-AAMC_Raw_Data_for_FY22[[#This Row],[Median]])/25)*10) + AAMC_Raw_Data_for_FY22[[#This Row],[Median]]","v":1081263.8},{"$f":"(((AAMC_Raw_Data_for_FY22[[#This Row],[75th]]-AAMC_Raw_Data_for_FY22[[#This Row],[Median]])/25)*15) + AAMC_Raw_Data_for_FY22[[#This Row],[Median]]","v":1103304.2},{"$f":"(((AAMC_Raw_Data_for_FY22[[#This Row],[75th]]-AAMC_Raw_Data_for_FY22[[#This Row],[Median]])/25)*20) + AAMC_Raw_Data_for_FY22[[#This Row],[Median]]","v":1125344.6000000001},1147385,{"$f":"(((AAMC_Raw_Data_for_FY22[[#This Row],[75th]]-AAMC_Raw_Data_for_FY22[[#This Row],[Median]])/25)*30) + AAMC_Raw_Data_for_FY22[[#This Row],[Median]]","v":1169425.3999999999},{"$f":"(((AAMC_Raw_Data_for_FY22[[#This Row],[75th]]-AAMC_Raw_Data_for_FY22[[#This Row],[Median]])/25)*35) + AAMC_Raw_Data_for_FY22[[#This Row],[Median]]","v":1191465.8},{"$f":"(((AAMC_Raw_Data_for_FY22[[#This Row],[75th]]-AAMC_Raw_Data_for_FY22[[#This Row],[Median]])/25)*40) + AAMC_Raw_Data_for_FY22[[#This Row],[Median]]","v":1213506.2}]
[{"$f":"AAMC_Raw_Data_for_FY22[[#This Row],[Source]]&AAMC_Raw_Data_for_FY22[[#This Row],[Type]]&AAMC_Raw_Data_for_FY22[[#This Row],[School Subset]]&AAMC_Raw_Data_for_FY22[[#This Row],[Rank]]&AAMC_Raw_Data_for_FY22[[#This Row],[Degree]]&AAMC_Raw_Data_for_FY22[[#This Row],[Department / Specialty]]&\"L\"","v":"AAMCAcademicPrivateInstructorMDPediatric SurgeryL"},"Pediatric Surgery",5,"AAMC","Academic","Private","Instructor","MD","2021-2022",null,{"$f":"(((AAMC_Raw_Data_for_FY22[[#This Row],[Median]]-AAMC_Raw_Data_for_FY22[[#This Row],[25th]])/25)*5) + AAMC_Raw_Data_for_FY22[[#This Row],[25th]]","v":0},{"$f":"(((AAMC_Raw_Data_for_FY22[[#This Row],[Median]]-AAMC_Raw_Data_for_FY22[[#This Row],[25th]])/25)*10) + AAMC_Raw_Data_for_FY22[[#This Row],[25th]]","v":0},{"$f":"(((AAMC_Raw_Data_for_FY22[[#This Row],[Median]]-AAMC_Raw_Data_for_FY22[[#This Row],[25th]])/25)*15) + AAMC_Raw_Data_for_FY22[[#This Row],[25th]]","v":0},{"$f":"(((AAMC_Raw_Data_for_FY22[[#This Row],[Median]]-AAMC_Raw_Data_for_FY22[[#This Row],[25th]])/25)*20) + AAMC_Raw_Data_for_FY22[[#This Row],[25th]]","v":0},null,{"$f":"(((AAMC_Raw_Data_for_FY22[[#This Row],[75th]]-AAMC_Raw_Data_for_FY22[[#This Row],[Median]])/25)*5) + AAMC_Raw_Data_for_FY22[[#This Row],[Median]]","v":0},{"$f":"(((AAMC_Raw_Data_for_FY22[[#This Row],[75th]]-AAMC_Raw_Data_for_FY22[[#This Row],[Median]])/25)*10) + AAMC_Raw_Data_for_FY22[[#This Row],[Median]]","v":0},{"$f":"(((AAMC_Raw_Data_for_FY22[[#This Row],[75th]]-AAMC_Raw_Data_for_FY22[[#This Row],[Median]])/25)*15) + AAMC_Raw_Data_for_FY22[[#This Row],[Median]]","v":0},{"$f":"(((AAMC_Raw_Data_for_FY22[[#This Row],[75th]]-AAMC_Raw_Data_for_FY22[[#This Row],[Median]])/25)*20) + AAMC_Raw_Data_for_FY22[[#This Row],[Median]]","v":0},null,{"$f":"(((AAMC_Raw_Data_for_FY22[[#This Row],[75th]]-AAMC_Raw_Data_for_FY22[[#This Row],[Median]])/25)*30) + AAMC_Raw_Data_for_FY22[[#This Row],[Median]]","v":0},{"$f":"(((AAMC_Raw_Data_for_FY22[[#This Row],[75th]]-AAMC_Raw_Data_for_FY22[[#This Row],[Median]])/25)*35) + AAMC_Raw_Data_for_FY22[[#This Row],[Median]]","v":0},{"$f":"(((AAMC_Raw_Data_for_FY22[[#This Row],[75th]]-AAMC_Raw_Data_for_FY22[[#This Row],[Median]])/25)*40) + AAMC_Raw_Data_for_FY22[[#This Row],[Median]]","v":0}]
[{"$f":"AAMC_Raw_Data_for_FY22[[#This Row],[Source]]&AAMC_Raw_Data_for_FY22[[#This Row],[Type]]&AAMC_Raw_Data_for_FY22[[#This Row],[School Subset]]&AAMC_Raw_Data_for_FY22[[#This Row],[Rank]]&AAMC_Raw_Data_for_FY22[[#This Row],[Degree]]&AAMC_Raw_Data_for_FY22[[#This Row],[Department / Specialty]]&\"L\"","v":"AAMCAcademicPrivateAssistantMDPediatric SurgeryL"},"Pediatric Surgery",4,"AAMC","Academic","Private","Assistant","MD","2021-2022",431789,{"$f":"(((AAMC_Raw_Data_for_FY22[[#This Row],[Median]]-AAMC_Raw_Data_for_FY22[[#This Row],[25th]])/25)*5) + AAMC_Raw_Data_for_FY22[[#This Row],[25th]]","v":449018.6},{"$f":"(((AAMC_Raw_Data_for_FY22[[#This Row],[Median]]-AAMC_Raw_Data_for_FY22[[#This Row],[25th]])/25)*10) + AAMC_Raw_Data_for_FY22[[#This Row],[25th]]","v":466248.2},{"$f":"(((AAMC_Raw_Data_for_FY22[[#This Row],[Median]]-AAMC_Raw_Data_for_FY22[[#This Row],[25th]])/25)*15) + AAMC_Raw_Data_for_FY22[[#This Row],[25th]]","v":483477.8},{"$f":"(((AAMC_Raw_Data_for_FY22[[#This Row],[Median]]-AAMC_Raw_Data_for_FY22[[#This Row],[25th]])/25)*20) + AAMC_Raw_Data_for_FY22[[#This Row],[25th]]","v":500707.4},517937,{"$f":"(((AAMC_Raw_Data_for_FY22[[#This Row],[75th]]-AAMC_Raw_Data_for_FY22[[#This Row],[Median]])/25)*5) + AAMC_Raw_Data_for_FY22[[#This Row],[Median]]","v":531293.4},{"$f":"(((AAMC_Raw_Data_for_FY22[[#This Row],[75th]]-AAMC_Raw_Data_for_FY22[[#This Row],[Median]])/25)*10) + AAMC_Raw_Data_for_FY22[[#This Row],[Median]]","v":544649.80000000005},{"$f":"(((AAMC_Raw_Data_for_FY22[[#This Row],[75th]]-AAMC_Raw_Data_for_FY22[[#This Row],[Median]])/25)*15) + AAMC_Raw_Data_for_FY22[[#This Row],[Median]]","v":558006.19999999995},{"$f":"(((AAMC_Raw_Data_for_FY22[[#This Row],[75th]]-AAMC_Raw_Data_for_FY22[[#This Row],[Median]])/25)*20) + AAMC_Raw_Data_for_FY22[[#This Row],[Median]]","v":571362.6},584719,{"$f":"(((AAMC_Raw_Data_for_FY22[[#This Row],[75th]]-AAMC_Raw_Data_for_FY22[[#This Row],[Median]])/25)*30) + AAMC_Raw_Data_for_FY22[[#This Row],[Median]]","v":598075.4},{"$f":"(((AAMC_Raw_Data_for_FY22[[#This Row],[75th]]-AAMC_Raw_Data_for_FY22[[#This Row],[Median]])/25)*35) + AAMC_Raw_Data_for_FY22[[#This Row],[Median]]","v":611431.80000000005},{"$f":"(((AAMC_Raw_Data_for_FY22[[#This Row],[75th]]-AAMC_Raw_Data_for_FY22[[#This Row],[Median]])/25)*40) + AAMC_Raw_Data_for_FY22[[#This Row],[Median]]","v":624788.19999999995}]
[{"$f":"AAMC_Raw_Data_for_FY22[[#This Row],[Source]]&AAMC_Raw_Data_for_FY22[[#This Row],[Type]]&AAMC_Raw_Data_for_FY22[[#This Row],[School Subset]]&AAMC_Raw_Data_for_FY22[[#This Row],[Rank]]&AAMC_Raw_Data_for_FY22[[#This Row],[Degree]]&AAMC_Raw_Data_for_FY22[[#This Row],[Department / Specialty]]&\"L\"","v":"AAMCAcademicPrivateAssociateMDPediatric SurgeryL"},"Pediatric Surgery",3,"AAMC","Academic","Private","Associate","MD","2021-2022",510000,{"$f":"(((AAMC_Raw_Data_for_FY22[[#This Row],[Median]]-AAMC_Raw_Data_for_FY22[[#This Row],[25th]])/25)*5) + AAMC_Raw_Data_for_FY22[[#This Row],[25th]]","v":523973.4},{"$f":"(((AAMC_Raw_Data_for_FY22[[#This Row],[Median]]-AAMC_Raw_Data_for_FY22[[#This Row],[25th]])/25)*10) + AAMC_Raw_Data_for_FY22[[#This Row],[25th]]","v":537946.80000000005},{"$f":"(((AAMC_Raw_Data_for_FY22[[#This Row],[Median]]-AAMC_Raw_Data_for_FY22[[#This Row],[25th]])/25)*15) + AAMC_Raw_Data_for_FY22[[#This Row],[25th]]","v":551920.19999999995},{"$f":"(((AAMC_Raw_Data_for_FY22[[#This Row],[Median]]-AAMC_Raw_Data_for_FY22[[#This Row],[25th]])/25)*20) + AAMC_Raw_Data_for_FY22[[#This Row],[25th]]","v":565893.6},579867,{"$f":"(((AAMC_Raw_Data_for_FY22[[#This Row],[75th]]-AAMC_Raw_Data_for_FY22[[#This Row],[Median]])/25)*5) + AAMC_Raw_Data_for_FY22[[#This Row],[Median]]","v":600293.6},{"$f":"(((AAMC_Raw_Data_for_FY22[[#This Row],[75th]]-AAMC_Raw_Data_for_FY22[[#This Row],[Median]])/25)*10) + AAMC_Raw_Data_for_FY22[[#This Row],[Median]]","v":620720.19999999995},{"$f":"(((AAMC_Raw_Data_for_FY22[[#This Row],[75th]]-AAMC_Raw_Data_for_FY22[[#This Row],[Median]])/25)*15) + AAMC_Raw_Data_for_FY22[[#This Row],[Median]]","v":641146.80000000005},{"$f":"(((AAMC_Raw_Data_for_FY22[[#This Row],[75th]]-AAMC_Raw_Data_for_FY22[[#This Row],[Median]])/25)*20) + AAMC_Raw_Data_for_FY22[[#This Row],[Median]]","v":661573.4},682000,{"$f":"(((AAMC_Raw_Data_for_FY22[[#This Row],[75th]]-AAMC_Raw_Data_for_FY22[[#This Row],[Median]])/25)*30) + AAMC_Raw_Data_for_FY22[[#This Row],[Median]]","v":702426.6},{"$f":"(((AAMC_Raw_Data_for_FY22[[#This Row],[75th]]-AAMC_Raw_Data_for_FY22[[#This Row],[Median]])/25)*35) + AAMC_Raw_Data_for_FY22[[#This Row],[Median]]","v":722853.2},{"$f":"(((AAMC_Raw_Data_for_FY22[[#This Row],[75th]]-AAMC_Raw_Data_for_FY22[[#This Row],[Median]])/25)*40) + AAMC_Raw_Data_for_FY22[[#This Row],[Median]]","v":743279.8}]
[{"$f":"AAMC_Raw_Data_for_FY22[[#This Row],[Source]]&AAMC_Raw_Data_for_FY22[[#This Row],[Type]]&AAMC_Raw_Data_for_FY22[[#This Row],[School Subset]]&AAMC_Raw_Data_for_FY22[[#This Row],[Rank]]&AAMC_Raw_Data_for_FY22[[#This Row],[Degree]]&AAMC_Raw_Data_for_FY22[[#This Row],[Department / Specialty]]&\"L\"","v":"AAMCAcademicPrivateProfessorMDPediatric SurgeryL"},"Pediatric Surgery",2,"AAMC","Academic","Private","Professor","MD","2021-2022",577298,{"$f":"(((AAMC_Raw_Data_for_FY22[[#This Row],[Median]]-AAMC_Raw_Data_for_FY22[[#This Row],[25th]])/25)*5) + AAMC_Raw_Data_for_FY22[[#This Row],[25th]]","v":597038.4},{"$f":"(((AAMC_Raw_Data_for_FY22[[#This Row],[Median]]-AAMC_Raw_Data_for_FY22[[#This Row],[25th]])/25)*10) + AAMC_Raw_Data_for_FY22[[#This Row],[25th]]","v":616778.80000000005},{"$f":"(((AAMC_Raw_Data_for_FY22[[#This Row],[Median]]-AAMC_Raw_Data_for_FY22[[#This Row],[25th]])/25)*15) + AAMC_Raw_Data_for_FY22[[#This Row],[25th]]","v":636519.19999999995},{"$f":"(((AAMC_Raw_Data_for_FY22[[#This Row],[Median]]-AAMC_Raw_Data_for_FY22[[#This Row],[25th]])/25)*20) + AAMC_Raw_Data_for_FY22[[#This Row],[25th]]","v":656259.6},676000,{"$f":"(((AAMC_Raw_Data_for_FY22[[#This Row],[75th]]-AAMC_Raw_Data_for_FY22[[#This Row],[Median]])/25)*5) + AAMC_Raw_Data_for_FY22[[#This Row],[Median]]","v":700440.2},{"$f":"(((AAMC_Raw_Data_for_FY22[[#This Row],[75th]]-AAMC_Raw_Data_for_FY22[[#This Row],[Median]])/25)*10) + AAMC_Raw_Data_for_FY22[[#This Row],[Median]]","v":724880.4},{"$f":"(((AAMC_Raw_Data_for_FY22[[#This Row],[75th]]-AAMC_Raw_Data_for_FY22[[#This Row],[Median]])/25)*15) + AAMC_Raw_Data_for_FY22[[#This Row],[Median]]","v":749320.6},{"$f":"(((AAMC_Raw_Data_for_FY22[[#This Row],[75th]]-AAMC_Raw_Data_for_FY22[[#This Row],[Median]])/25)*20) + AAMC_Raw_Data_for_FY22[[#This Row],[Median]]","v":773760.8},798201,{"$f":"(((AAMC_Raw_Data_for_FY22[[#This Row],[75th]]-AAMC_Raw_Data_for_FY22[[#This Row],[Median]])/25)*30) + AAMC_Raw_Data_for_FY22[[#This Row],[Median]]","v":822641.2},{"$f":"(((AAMC_Raw_Data_for_FY22[[#This Row],[75th]]-AAMC_Raw_Data_for_FY22[[#This Row],[Median]])/25)*35) + AAMC_Raw_Data_for_FY22[[#This Row],[Median]]","v":847081.4},{"$f":"(((AAMC_Raw_Data_for_FY22[[#This Row],[75th]]-AAMC_Raw_Data_for_FY22[[#This Row],[Median]])/25)*40) + AAMC_Raw_Data_for_FY22[[#This Row],[Median]]","v":871521.6}]
[{"$f":"AAMC_Raw_Data_for_FY22[[#This Row],[Source]]&AAMC_Raw_Data_for_FY22[[#This Row],[Type]]&AAMC_Raw_Data_for_FY22[[#This Row],[School Subset]]&AAMC_Raw_Data_for_FY22[[#This Row],[Rank]]&AAMC_Raw_Data_for_FY22[[#This Row],[Degree]]&AAMC_Raw_Data_for_FY22[[#This Row],[Department / Specialty]]&\"L\"","v":"AAMCAcademicPrivateChiefMDPediatric SurgeryL"},"Pediatric Surgery",6,"AAMC","Academic","Private","Chief","MD","2021-2022",804615,{"$f":"(((AAMC_Raw_Data_for_FY22[[#This Row],[Median]]-AAMC_Raw_Data_for_FY22[[#This Row],[25th]])/25)*5) + AAMC_Raw_Data_for_FY22[[#This Row],[25th]]","v":826009},{"$f":"(((AAMC_Raw_Data_for_FY22[[#This Row],[Median]]-AAMC_Raw_Data_for_FY22[[#This Row],[25th]])/25)*10) + AAMC_Raw_Data_for_FY22[[#This Row],[25th]]","v":847403},{"$f":"(((AAMC_Raw_Data_for_FY22[[#This Row],[Median]]-AAMC_Raw_Data_for_FY22[[#This Row],[25th]])/25)*15) + AAMC_Raw_Data_for_FY22[[#This Row],[25th]]","v":868797},{"$f":"(((AAMC_Raw_Data_for_FY22[[#This Row],[Median]]-AAMC_Raw_Data_for_FY22[[#This Row],[25th]])/25)*20) + AAMC_Raw_Data_for_FY22[[#This Row],[25th]]","v":890191},911585,{"$f":"(((AAMC_Raw_Data_for_FY22[[#This Row],[75th]]-AAMC_Raw_Data_for_FY22[[#This Row],[Median]])/25)*5) + AAMC_Raw_Data_for_FY22[[#This Row],[Median]]","v":932318.4},{"$f":"(((AAMC_Raw_Data_for_FY22[[#This Row],[75th]]-AAMC_Raw_Data_for_FY22[[#This Row],[Median]])/25)*10) + AAMC_Raw_Data_for_FY22[[#This Row],[Median]]","v":953051.8},{"$f":"(((AAMC_Raw_Data_for_FY22[[#This Row],[75th]]-AAMC_Raw_Data_for_FY22[[#This Row],[Median]])/25)*15) + AAMC_Raw_Data_for_FY22[[#This Row],[Median]]","v":973785.2},{"$f":"(((AAMC_Raw_Data_for_FY22[[#This Row],[75th]]-AAMC_Raw_Data_for_FY22[[#This Row],[Median]])/25)*20) + AAMC_Raw_Data_for_FY22[[#This Row],[Median]]","v":994518.6},1015252,{"$f":"(((AAMC_Raw_Data_for_FY22[[#This Row],[75th]]-AAMC_Raw_Data_for_FY22[[#This Row],[Median]])/25)*30) + AAMC_Raw_Data_for_FY22[[#This Row],[Median]]","v":1035985.4},{"$f":"(((AAMC_Raw_Data_for_FY22[[#This Row],[75th]]-AAMC_Raw_Data_for_FY22[[#This Row],[Median]])/25)*35) + AAMC_Raw_Data_for_FY22[[#This Row],[Median]]","v":1056718.8},{"$f":"(((AAMC_Raw_Data_for_FY22[[#This Row],[75th]]-AAMC_Raw_Data_for_FY22[[#This Row],[Median]])/25)*40) + AAMC_Raw_Data_for_FY22[[#This Row],[Median]]","v":1077452.2}]
[{"$f":"AAMC_Raw_Data_for_FY22[[#This Row],[Source]]&AAMC_Raw_Data_for_FY22[[#This Row],[Type]]&AAMC_Raw_Data_for_FY22[[#This Row],[School Subset]]&AAMC_Raw_Data_for_FY22[[#This Row],[Rank]]&AAMC_Raw_Data_for_FY22[[#This Row],[Degree]]&AAMC_Raw_Data_for_FY22[[#This Row],[Department / Specialty]]&\"L\"","v":"AAMCAcademicPrivateChairMDPediatric SurgeryL"},"Pediatric Surgery",1,"AAMC","Academic","Private","Chair","MD","2021-2022",null,{"$f":"(((AAMC_Raw_Data_for_FY22[[#This Row],[Median]]-AAMC_Raw_Data_for_FY22[[#This Row],[25th]])/25)*5) + AAMC_Raw_Data_for_FY22[[#This Row],[25th]]","v":0},{"$f":"(((AAMC_Raw_Data_for_FY22[[#This Row],[Median]]-AAMC_Raw_Data_for_FY22[[#This Row],[25th]])/25)*10) + AAMC_Raw_Data_for_FY22[[#This Row],[25th]]","v":0},{"$f":"(((AAMC_Raw_Data_for_FY22[[#This Row],[Median]]-AAMC_Raw_Data_for_FY22[[#This Row],[25th]])/25)*15) + AAMC_Raw_Data_for_FY22[[#This Row],[25th]]","v":0},{"$f":"(((AAMC_Raw_Data_for_FY22[[#This Row],[Median]]-AAMC_Raw_Data_for_FY22[[#This Row],[25th]])/25)*20) + AAMC_Raw_Data_for_FY22[[#This Row],[25th]]","v":0},null,{"$f":"(((AAMC_Raw_Data_for_FY22[[#This Row],[75th]]-AAMC_Raw_Data_for_FY22[[#This Row],[Median]])/25)*5) + AAMC_Raw_Data_for_FY22[[#This Row],[Median]]","v":0},{"$f":"(((AAMC_Raw_Data_for_FY22[[#This Row],[75th]]-AAMC_Raw_Data_for_FY22[[#This Row],[Median]])/25)*10) + AAMC_Raw_Data_for_FY22[[#This Row],[Median]]","v":0},{"$f":"(((AAMC_Raw_Data_for_FY22[[#This Row],[75th]]-AAMC_Raw_Data_for_FY22[[#This Row],[Median]])/25)*15) + AAMC_Raw_Data_for_FY22[[#This Row],[Median]]","v":0},{"$f":"(((AAMC_Raw_Data_for_FY22[[#This Row],[75th]]-AAMC_Raw_Data_for_FY22[[#This Row],[Median]])/25)*20) + AAMC_Raw_Data_for_FY22[[#This Row],[Median]]","v":0},null,{"$f":"(((AAMC_Raw_Data_for_FY22[[#This Row],[75th]]-AAMC_Raw_Data_for_FY22[[#This Row],[Median]])/25)*30) + AAMC_Raw_Data_for_FY22[[#This Row],[Median]]","v":0},{"$f":"(((AAMC_Raw_Data_for_FY22[[#This Row],[75th]]-AAMC_Raw_Data_for_FY22[[#This Row],[Median]])/25)*35) + AAMC_Raw_Data_for_FY22[[#This Row],[Median]]","v":0},{"$f":"(((AAMC_Raw_Data_for_FY22[[#This Row],[75th]]-AAMC_Raw_Data_for_FY22[[#This Row],[Median]])/25)*40) + AAMC_Raw_Data_for_FY22[[#This Row],[Median]]","v":0}]
[{"$f":"AAMC_Raw_Data_for_FY22[[#This Row],[Source]]&AAMC_Raw_Data_for_FY22[[#This Row],[Type]]&AAMC_Raw_Data_for_FY22[[#This Row],[School Subset]]&AAMC_Raw_Data_for_FY22[[#This Row],[Rank]]&AAMC_Raw_Data_for_FY22[[#This Row],[Degree]]&AAMC_Raw_Data_for_FY22[[#This Row],[Department / Specialty]]&\"L\"","v":"AAMCAcademicPrivateInstructorMDPlastic SurgeryL"},"Plastic Surgery",5,"AAMC","Academic","Private","Instructor","MD","2021-2022",74314,{"$f":"(((AAMC_Raw_Data_for_FY22[[#This Row],[Median]]-AAMC_Raw_Data_for_FY22[[#This Row],[25th]])/25)*5) + AAMC_Raw_Data_for_FY22[[#This Row],[25th]]","v":77284.600000000006},{"$f":"(((AAMC_Raw_Data_for_FY22[[#This Row],[Median]]-AAMC_Raw_Data_for_FY22[[#This Row],[25th]])/25)*10) + AAMC_Raw_Data_for_FY22[[#This Row],[25th]]","v":80255.199999999997},{"$f":"(((AAMC_Raw_Data_for_FY22[[#This Row],[Median]]-AAMC_Raw_Data_for_FY22[[#This Row],[25th]])/25)*15) + AAMC_Raw_Data_for_FY22[[#This Row],[25th]]","v":83225.8},{"$f":"(((AAMC_Raw_Data_for_FY22[[#This Row],[Median]]-AAMC_Raw_Data_for_FY22[[#This Row],[25th]])/25)*20) + AAMC_Raw_Data_for_FY22[[#This Row],[25th]]","v":86196.4},89167,{"$f":"(((AAMC_Raw_Data_for_FY22[[#This Row],[75th]]-AAMC_Raw_Data_for_FY22[[#This Row],[Median]])/25)*5) + AAMC_Raw_Data_for_FY22[[#This Row],[Median]]","v":131582},{"$f":"(((AAMC_Raw_Data_for_FY22[[#This Row],[75th]]-AAMC_Raw_Data_for_FY22[[#This Row],[Median]])/25)*10) + AAMC_Raw_Data_for_FY22[[#This Row],[Median]]","v":173997},{"$f":"(((AAMC_Raw_Data_for_FY22[[#This Row],[75th]]-AAMC_Raw_Data_for_FY22[[#This Row],[Median]])/25)*15) + AAMC_Raw_Data_for_FY22[[#This Row],[Median]]","v":216412},{"$f":"(((AAMC_Raw_Data_for_FY22[[#This Row],[75th]]-AAMC_Raw_Data_for_FY22[[#This Row],[Median]])/25)*20) + AAMC_Raw_Data_for_FY22[[#This Row],[Median]]","v":258827},301242,{"$f":"(((AAMC_Raw_Data_for_FY22[[#This Row],[75th]]-AAMC_Raw_Data_for_FY22[[#This Row],[Median]])/25)*30) + AAMC_Raw_Data_for_FY22[[#This Row],[Median]]","v":343657},{"$f":"(((AAMC_Raw_Data_for_FY22[[#This Row],[75th]]-AAMC_Raw_Data_for_FY22[[#This Row],[Median]])/25)*35) + AAMC_Raw_Data_for_FY22[[#This Row],[Median]]","v":386072},{"$f":"(((AAMC_Raw_Data_for_FY22[[#This Row],[75th]]-AAMC_Raw_Data_for_FY22[[#This Row],[Median]])/25)*40) + AAMC_Raw_Data_for_FY22[[#This Row],[Median]]","v":428487}]
[{"$f":"AAMC_Raw_Data_for_FY22[[#This Row],[Source]]&AAMC_Raw_Data_for_FY22[[#This Row],[Type]]&AAMC_Raw_Data_for_FY22[[#This Row],[School Subset]]&AAMC_Raw_Data_for_FY22[[#This Row],[Rank]]&AAMC_Raw_Data_for_FY22[[#This Row],[Degree]]&AAMC_Raw_Data_for_FY22[[#This Row],[Department / Specialty]]&\"L\"","v":"AAMCAcademicPrivateAssistantMDPlastic SurgeryL"},"Plastic Surgery",4,"AAMC","Academic","Private","Assistant","MD","2021-2022",367726,{"$f":"(((AAMC_Raw_Data_for_FY22[[#This Row],[Median]]-AAMC_Raw_Data_for_FY22[[#This Row],[25th]])/25)*5) + AAMC_Raw_Data_for_FY22[[#This Row],[25th]]","v":381450.8},{"$f":"(((AAMC_Raw_Data_for_FY22[[#This Row],[Median]]-AAMC_Raw_Data_for_FY22[[#This Row],[25th]])/25)*10) + AAMC_Raw_Data_for_FY22[[#This Row],[25th]]","v":395175.6},{"$f":"(((AAMC_Raw_Data_for_FY22[[#This Row],[Median]]-AAMC_Raw_Data_for_FY22[[#This Row],[25th]])/25)*15) + AAMC_Raw_Data_for_FY22[[#This Row],[25th]]","v":408900.4},{"$f":"(((AAMC_Raw_Data_for_FY22[[#This Row],[Median]]-AAMC_Raw_Data_for_FY22[[#This Row],[25th]])/25)*20) + AAMC_Raw_Data_for_FY22[[#This Row],[25th]]","v":422625.2},436350,{"$f":"(((AAMC_Raw_Data_for_FY22[[#This Row],[75th]]-AAMC_Raw_Data_for_FY22[[#This Row],[Median]])/25)*5) + AAMC_Raw_Data_for_FY22[[#This Row],[Median]]","v":473862.40000000002},{"$f":"(((AAMC_Raw_Data_for_FY22[[#This Row],[75th]]-AAMC_Raw_Data_for_FY22[[#This Row],[Median]])/25)*10) + AAMC_Raw_Data_for_FY22[[#This Row],[Median]]","v":511374.8},{"$f":"(((AAMC_Raw_Data_for_FY22[[#This Row],[75th]]-AAMC_Raw_Data_for_FY22[[#This Row],[Median]])/25)*15) + AAMC_Raw_Data_for_FY22[[#This Row],[Median]]","v":548887.19999999995},{"$f":"(((AAMC_Raw_Data_for_FY22[[#This Row],[75th]]-AAMC_Raw_Data_for_FY22[[#This Row],[Median]])/25)*20) + AAMC_Raw_Data_for_FY22[[#This Row],[Median]]","v":586399.6},623912,{"$f":"(((AAMC_Raw_Data_for_FY22[[#This Row],[75th]]-AAMC_Raw_Data_for_FY22[[#This Row],[Median]])/25)*30) + AAMC_Raw_Data_for_FY22[[#This Row],[Median]]","v":661424.4},{"$f":"(((AAMC_Raw_Data_for_FY22[[#This Row],[75th]]-AAMC_Raw_Data_for_FY22[[#This Row],[Median]])/25)*35) + AAMC_Raw_Data_for_FY22[[#This Row],[Median]]","v":698936.8},{"$f":"(((AAMC_Raw_Data_for_FY22[[#This Row],[75th]]-AAMC_Raw_Data_for_FY22[[#This Row],[Median]])/25)*40) + AAMC_Raw_Data_for_FY22[[#This Row],[Median]]","v":736449.2}]
[{"$f":"AAMC_Raw_Data_for_FY22[[#This Row],[Source]]&AAMC_Raw_Data_for_FY22[[#This Row],[Type]]&AAMC_Raw_Data_for_FY22[[#This Row],[School Subset]]&AAMC_Raw_Data_for_FY22[[#This Row],[Rank]]&AAMC_Raw_Data_for_FY22[[#This Row],[Degree]]&AAMC_Raw_Data_for_FY22[[#This Row],[Department / Specialty]]&\"L\"","v":"AAMCAcademicPrivateAssociateMDPlastic SurgeryL"},"Plastic Surgery",3,"AAMC","Academic","Private","Associate","MD","2021-2022",459682,{"$f":"(((AAMC_Raw_Data_for_FY22[[#This Row],[Median]]-AAMC_Raw_Data_for_FY22[[#This Row],[25th]])/25)*5) + AAMC_Raw_Data_for_FY22[[#This Row],[25th]]","v":490488.6},{"$f":"(((AAMC_Raw_Data_for_FY22[[#This Row],[Median]]-AAMC_Raw_Data_for_FY22[[#This Row],[25th]])/25)*10) + AAMC_Raw_Data_for_FY22[[#This Row],[25th]]","v":521295.2},{"$f":"(((AAMC_Raw_Data_for_FY22[[#This Row],[Median]]-AAMC_Raw_Data_for_FY22[[#This Row],[25th]])/25)*15) + AAMC_Raw_Data_for_FY22[[#This Row],[25th]]","v":552101.80000000005},{"$f":"(((AAMC_Raw_Data_for_FY22[[#This Row],[Median]]-AAMC_Raw_Data_for_FY22[[#This Row],[25th]])/25)*20) + AAMC_Raw_Data_for_FY22[[#This Row],[25th]]","v":582908.4},613715,{"$f":"(((AAMC_Raw_Data_for_FY22[[#This Row],[75th]]-AAMC_Raw_Data_for_FY22[[#This Row],[Median]])/25)*5) + AAMC_Raw_Data_for_FY22[[#This Row],[Median]]","v":652176.4},{"$f":"(((AAMC_Raw_Data_for_FY22[[#This Row],[75th]]-AAMC_Raw_Data_for_FY22[[#This Row],[Median]])/25)*10) + AAMC_Raw_Data_for_FY22[[#This Row],[Median]]","v":690637.8},{"$f":"(((AAMC_Raw_Data_for_FY22[[#This Row],[75th]]-AAMC_Raw_Data_for_FY22[[#This Row],[Median]])/25)*15) + AAMC_Raw_Data_for_FY22[[#This Row],[Median]]","v":729099.2},{"$f":"(((AAMC_Raw_Data_for_FY22[[#This Row],[75th]]-AAMC_Raw_Data_for_FY22[[#This Row],[Median]])/25)*20) + AAMC_Raw_Data_for_FY22[[#This Row],[Median]]","v":767560.6},806022,{"$f":"(((AAMC_Raw_Data_for_FY22[[#This Row],[75th]]-AAMC_Raw_Data_for_FY22[[#This Row],[Median]])/25)*30) + AAMC_Raw_Data_for_FY22[[#This Row],[Median]]","v":844483.4},{"$f":"(((AAMC_Raw_Data_for_FY22[[#This Row],[75th]]-AAMC_Raw_Data_for_FY22[[#This Row],[Median]])/25)*35) + AAMC_Raw_Data_for_FY22[[#This Row],[Median]]","v":882944.8},{"$f":"(((AAMC_Raw_Data_for_FY22[[#This Row],[75th]]-AAMC_Raw_Data_for_FY22[[#This Row],[Median]])/25)*40) + AAMC_Raw_Data_for_FY22[[#This Row],[Median]]","v":921406.2}]
[{"$f":"AAMC_Raw_Data_for_FY22[[#This Row],[Source]]&AAMC_Raw_Data_for_FY22[[#This Row],[Type]]&AAMC_Raw_Data_for_FY22[[#This Row],[School Subset]]&AAMC_Raw_Data_for_FY22[[#This Row],[Rank]]&AAMC_Raw_Data_for_FY22[[#This Row],[Degree]]&AAMC_Raw_Data_for_FY22[[#This Row],[Department / Specialty]]&\"L\"","v":"AAMCAcademicPrivateProfessorMDPlastic SurgeryL"},"Plastic Surgery",2,"AAMC","Academic","Private","Professor","MD","2021-2022",510386,{"$f":"(((AAMC_Raw_Data_for_FY22[[#This Row],[Median]]-AAMC_Raw_Data_for_FY22[[#This Row],[25th]])/25)*5) + AAMC_Raw_Data_for_FY22[[#This Row],[25th]]","v":551582.80000000005},{"$f":"(((AAMC_Raw_Data_for_FY22[[#This Row],[Median]]-AAMC_Raw_Data_for_FY22[[#This Row],[25th]])/25)*10) + AAMC_Raw_Data_for_FY22[[#This Row],[25th]]","v":592779.6},{"$f":"(((AAMC_Raw_Data_for_FY22[[#This Row],[Median]]-AAMC_Raw_Data_for_FY22[[#This Row],[25th]])/25)*15) + AAMC_Raw_Data_for_FY22[[#This Row],[25th]]","v":633976.4},{"$f":"(((AAMC_Raw_Data_for_FY22[[#This Row],[Median]]-AAMC_Raw_Data_for_FY22[[#This Row],[25th]])/25)*20) + AAMC_Raw_Data_for_FY22[[#This Row],[25th]]","v":675173.2},716370,{"$f":"(((AAMC_Raw_Data_for_FY22[[#This Row],[75th]]-AAMC_Raw_Data_for_FY22[[#This Row],[Median]])/25)*5) + AAMC_Raw_Data_for_FY22[[#This Row],[Median]]","v":784081.2},{"$f":"(((AAMC_Raw_Data_for_FY22[[#This Row],[75th]]-AAMC_Raw_Data_for_FY22[[#This Row],[Median]])/25)*10) + AAMC_Raw_Data_for_FY22[[#This Row],[Median]]","v":851792.4},{"$f":"(((AAMC_Raw_Data_for_FY22[[#This Row],[75th]]-AAMC_Raw_Data_for_FY22[[#This Row],[Median]])/25)*15) + AAMC_Raw_Data_for_FY22[[#This Row],[Median]]","v":919503.6},{"$f":"(((AAMC_Raw_Data_for_FY22[[#This Row],[75th]]-AAMC_Raw_Data_for_FY22[[#This Row],[Median]])/25)*20) + AAMC_Raw_Data_for_FY22[[#This Row],[Median]]","v":987214.8},1054926,{"$f":"(((AAMC_Raw_Data_for_FY22[[#This Row],[75th]]-AAMC_Raw_Data_for_FY22[[#This Row],[Median]])/25)*30) + AAMC_Raw_Data_for_FY22[[#This Row],[Median]]","v":1122637.2},{"$f":"(((AAMC_Raw_Data_for_FY22[[#This Row],[75th]]-AAMC_Raw_Data_for_FY22[[#This Row],[Median]])/25)*35) + AAMC_Raw_Data_for_FY22[[#This Row],[Median]]","v":1190348.3999999999},{"$f":"(((AAMC_Raw_Data_for_FY22[[#This Row],[75th]]-AAMC_Raw_Data_for_FY22[[#This Row],[Median]])/25)*40) + AAMC_Raw_Data_for_FY22[[#This Row],[Median]]","v":1258059.6000000001}]
[{"$f":"AAMC_Raw_Data_for_FY22[[#This Row],[Source]]&AAMC_Raw_Data_for_FY22[[#This Row],[Type]]&AAMC_Raw_Data_for_FY22[[#This Row],[School Subset]]&AAMC_Raw_Data_for_FY22[[#This Row],[Rank]]&AAMC_Raw_Data_for_FY22[[#This Row],[Degree]]&AAMC_Raw_Data_for_FY22[[#This Row],[Department / Specialty]]&\"L\"","v":"AAMCAcademicPrivateChiefMDPlastic SurgeryL"},"Plastic Surgery",6,"AAMC","Academic","Private","Chief","MD","2021-2022",700450,{"$f":"(((AAMC_Raw_Data_for_FY22[[#This Row],[Median]]-AAMC_Raw_Data_for_FY22[[#This Row],[25th]])/25)*5) + AAMC_Raw_Data_for_FY22[[#This Row],[25th]]","v":717860},{"$f":"(((AAMC_Raw_Data_for_FY22[[#This Row],[Median]]-AAMC_Raw_Data_for_FY22[[#This Row],[25th]])/25)*10) + AAMC_Raw_Data_for_FY22[[#This Row],[25th]]","v":735270},{"$f":"(((AAMC_Raw_Data_for_FY22[[#This Row],[Median]]-AAMC_Raw_Data_for_FY22[[#This Row],[25th]])/25)*15) + AAMC_Raw_Data_for_FY22[[#This Row],[25th]]","v":752680},{"$f":"(((AAMC_Raw_Data_for_FY22[[#This Row],[Median]]-AAMC_Raw_Data_for_FY22[[#This Row],[25th]])/25)*20) + AAMC_Raw_Data_for_FY22[[#This Row],[25th]]","v":770090},787500,{"$f":"(((AAMC_Raw_Data_for_FY22[[#This Row],[75th]]-AAMC_Raw_Data_for_FY22[[#This Row],[Median]])/25)*5) + AAMC_Raw_Data_for_FY22[[#This Row],[Median]]","v":831464},{"$f":"(((AAMC_Raw_Data_for_FY22[[#This Row],[75th]]-AAMC_Raw_Data_for_FY22[[#This Row],[Median]])/25)*10) + AAMC_Raw_Data_for_FY22[[#This Row],[Median]]","v":875428},{"$f":"(((AAMC_Raw_Data_for_FY22[[#This Row],[75th]]-AAMC_Raw_Data_for_FY22[[#This Row],[Median]])/25)*15) + AAMC_Raw_Data_for_FY22[[#This Row],[Median]]","v":919392},{"$f":"(((AAMC_Raw_Data_for_FY22[[#This Row],[75th]]-AAMC_Raw_Data_for_FY22[[#This Row],[Median]])/25)*20) + AAMC_Raw_Data_for_FY22[[#This Row],[Median]]","v":963356},1007320,{"$f":"(((AAMC_Raw_Data_for_FY22[[#This Row],[75th]]-AAMC_Raw_Data_for_FY22[[#This Row],[Median]])/25)*30) + AAMC_Raw_Data_for_FY22[[#This Row],[Median]]","v":1051284},{"$f":"(((AAMC_Raw_Data_for_FY22[[#This Row],[75th]]-AAMC_Raw_Data_for_FY22[[#This Row],[Median]])/25)*35) + AAMC_Raw_Data_for_FY22[[#This Row],[Median]]","v":1095248},{"$f":"(((AAMC_Raw_Data_for_FY22[[#This Row],[75th]]-AAMC_Raw_Data_for_FY22[[#This Row],[Median]])/25)*40) + AAMC_Raw_Data_for_FY22[[#This Row],[Median]]","v":1139212}]
[{"$f":"AAMC_Raw_Data_for_FY22[[#This Row],[Source]]&AAMC_Raw_Data_for_FY22[[#This Row],[Type]]&AAMC_Raw_Data_for_FY22[[#This Row],[School Subset]]&AAMC_Raw_Data_for_FY22[[#This Row],[Rank]]&AAMC_Raw_Data_for_FY22[[#This Row],[Degree]]&AAMC_Raw_Data_for_FY22[[#This Row],[Department / Specialty]]&\"L\"","v":"AAMCAcademicPrivateChairMDPlastic SurgeryL"},"Plastic Surgery",1,"AAMC","Academic","Private","Chair","MD","2021-2022",878397,{"$f":"(((AAMC_Raw_Data_for_FY22[[#This Row],[Median]]-AAMC_Raw_Data_for_FY22[[#This Row],[25th]])/25)*5) + AAMC_Raw_Data_for_FY22[[#This Row],[25th]]","v":891837.2},{"$f":"(((AAMC_Raw_Data_for_FY22[[#This Row],[Median]]-AAMC_Raw_Data_for_FY22[[#This Row],[25th]])/25)*10) + AAMC_Raw_Data_for_FY22[[#This Row],[25th]]","v":905277.4},{"$f":"(((AAMC_Raw_Data_for_FY22[[#This Row],[Median]]-AAMC_Raw_Data_for_FY22[[#This Row],[25th]])/25)*15) + AAMC_Raw_Data_for_FY22[[#This Row],[25th]]","v":918717.6},{"$f":"(((AAMC_Raw_Data_for_FY22[[#This Row],[Median]]-AAMC_Raw_Data_for_FY22[[#This Row],[25th]])/25)*20) + AAMC_Raw_Data_for_FY22[[#This Row],[25th]]","v":932157.8},945598,{"$f":"(((AAMC_Raw_Data_for_FY22[[#This Row],[75th]]-AAMC_Raw_Data_for_FY22[[#This Row],[Median]])/25)*5) + AAMC_Raw_Data_for_FY22[[#This Row],[Median]]","v":968648},{"$f":"(((AAMC_Raw_Data_for_FY22[[#This Row],[75th]]-AAMC_Raw_Data_for_FY22[[#This Row],[Median]])/25)*10) + AAMC_Raw_Data_for_FY22[[#This Row],[Median]]","v":991698},{"$f":"(((AAMC_Raw_Data_for_FY22[[#This Row],[75th]]-AAMC_Raw_Data_for_FY22[[#This Row],[Median]])/25)*15) + AAMC_Raw_Data_for_FY22[[#This Row],[Median]]","v":1014748},{"$f":"(((AAMC_Raw_Data_for_FY22[[#This Row],[75th]]-AAMC_Raw_Data_for_FY22[[#This Row],[Median]])/25)*20) + AAMC_Raw_Data_for_FY22[[#This Row],[Median]]","v":1037798},1060848,{"$f":"(((AAMC_Raw_Data_for_FY22[[#This Row],[75th]]-AAMC_Raw_Data_for_FY22[[#This Row],[Median]])/25)*30) + AAMC_Raw_Data_for_FY22[[#This Row],[Median]]","v":1083898},{"$f":"(((AAMC_Raw_Data_for_FY22[[#This Row],[75th]]-AAMC_Raw_Data_for_FY22[[#This Row],[Median]])/25)*35) + AAMC_Raw_Data_for_FY22[[#This Row],[Median]]","v":1106948},{"$f":"(((AAMC_Raw_Data_for_FY22[[#This Row],[75th]]-AAMC_Raw_Data_for_FY22[[#This Row],[Median]])/25)*40) + AAMC_Raw_Data_for_FY22[[#This Row],[Median]]","v":1129998}]
[{"$f":"AAMC_Raw_Data_for_FY22[[#This Row],[Source]]&AAMC_Raw_Data_for_FY22[[#This Row],[Type]]&AAMC_Raw_Data_for_FY22[[#This Row],[School Subset]]&AAMC_Raw_Data_for_FY22[[#This Row],[Rank]]&AAMC_Raw_Data_for_FY22[[#This Row],[Degree]]&AAMC_Raw_Data_for_FY22[[#This Row],[Department / Specialty]]&\"L\"","v":"AAMCAcademicPrivateInstructorMDSurgical OncologyL"},"Surgical Oncology",5,"AAMC","Academic","Private","Instructor","MD","2021-2022",null,{"$f":"(((AAMC_Raw_Data_for_FY22[[#This Row],[Median]]-AAMC_Raw_Data_for_FY22[[#This Row],[25th]])/25)*5) + AAMC_Raw_Data_for_FY22[[#This Row],[25th]]","v":0},{"$f":"(((AAMC_Raw_Data_for_FY22[[#This Row],[Median]]-AAMC_Raw_Data_for_FY22[[#This Row],[25th]])/25)*10) + AAMC_Raw_Data_for_FY22[[#This Row],[25th]]","v":0},{"$f":"(((AAMC_Raw_Data_for_FY22[[#This Row],[Median]]-AAMC_Raw_Data_for_FY22[[#This Row],[25th]])/25)*15) + AAMC_Raw_Data_for_FY22[[#This Row],[25th]]","v":0},{"$f":"(((AAMC_Raw_Data_for_FY22[[#This Row],[Median]]-AAMC_Raw_Data_for_FY22[[#This Row],[25th]])/25)*20) + AAMC_Raw_Data_for_FY22[[#This Row],[25th]]","v":0},null,{"$f":"(((AAMC_Raw_Data_for_FY22[[#This Row],[75th]]-AAMC_Raw_Data_for_FY22[[#This Row],[Median]])/25)*5) + AAMC_Raw_Data_for_FY22[[#This Row],[Median]]","v":0},{"$f":"(((AAMC_Raw_Data_for_FY22[[#This Row],[75th]]-AAMC_Raw_Data_for_FY22[[#This Row],[Median]])/25)*10) + AAMC_Raw_Data_for_FY22[[#This Row],[Median]]","v":0},{"$f":"(((AAMC_Raw_Data_for_FY22[[#This Row],[75th]]-AAMC_Raw_Data_for_FY22[[#This Row],[Median]])/25)*15) + AAMC_Raw_Data_for_FY22[[#This Row],[Median]]","v":0},{"$f":"(((AAMC_Raw_Data_for_FY22[[#This Row],[75th]]-AAMC_Raw_Data_for_FY22[[#This Row],[Median]])/25)*20) + AAMC_Raw_Data_for_FY22[[#This Row],[Median]]","v":0},null,{"$f":"(((AAMC_Raw_Data_for_FY22[[#This Row],[75th]]-AAMC_Raw_Data_for_FY22[[#This Row],[Median]])/25)*30) + AAMC_Raw_Data_for_FY22[[#This Row],[Median]]","v":0},{"$f":"(((AAMC_Raw_Data_for_FY22[[#This Row],[75th]]-AAMC_Raw_Data_for_FY22[[#This Row],[Median]])/25)*35) + AAMC_Raw_Data_for_FY22[[#This Row],[Median]]","v":0},{"$f":"(((AAMC_Raw_Data_for_FY22[[#This Row],[75th]]-AAMC_Raw_Data_for_FY22[[#This Row],[Median]])/25)*40) + AAMC_Raw_Data_for_FY22[[#This Row],[Median]]","v":0}]
[{"$f":"AAMC_Raw_Data_for_FY22[[#This Row],[Source]]&AAMC_Raw_Data_for_FY22[[#This Row],[Type]]&AAMC_Raw_Data_for_FY22[[#This Row],[School Subset]]&AAMC_Raw_Data_for_FY22[[#This Row],[Rank]]&AAMC_Raw_Data_for_FY22[[#This Row],[Degree]]&AAMC_Raw_Data_for_FY22[[#This Row],[Department / Specialty]]&\"L\"","v":"AAMCAcademicPrivateAssistantMDSurgical OncologyL"},"Surgical Oncology",4,"AAMC","Academic","Private","Assistant","MD","2021-2022",319115,{"$f":"(((AAMC_Raw_Data_for_FY22[[#This Row],[Median]]-AAMC_Raw_Data_for_FY22[[#This Row],[25th]])/25)*5) + AAMC_Raw_Data_for_FY22[[#This Row],[25th]]","v":328142.8},{"$f":"(((AAMC_Raw_Data_for_FY22[[#This Row],[Median]]-AAMC_Raw_Data_for_FY22[[#This Row],[25th]])/25)*10) + AAMC_Raw_Data_for_FY22[[#This Row],[25th]]","v":337170.6},{"$f":"(((AAMC_Raw_Data_for_FY22[[#This Row],[Median]]-AAMC_Raw_Data_for_FY22[[#This Row],[25th]])/25)*15) + AAMC_Raw_Data_for_FY22[[#This Row],[25th]]","v":346198.4},{"$f":"(((AAMC_Raw_Data_for_FY22[[#This Row],[Median]]-AAMC_Raw_Data_for_FY22[[#This Row],[25th]])/25)*20) + AAMC_Raw_Data_for_FY22[[#This Row],[25th]]","v":355226.2},364254,{"$f":"(((AAMC_Raw_Data_for_FY22[[#This Row],[75th]]-AAMC_Raw_Data_for_FY22[[#This Row],[Median]])/25)*5) + AAMC_Raw_Data_for_FY22[[#This Row],[Median]]","v":382143.4},{"$f":"(((AAMC_Raw_Data_for_FY22[[#This Row],[75th]]-AAMC_Raw_Data_for_FY22[[#This Row],[Median]])/25)*10) + AAMC_Raw_Data_for_FY22[[#This Row],[Median]]","v":400032.8},{"$f":"(((AAMC_Raw_Data_for_FY22[[#This Row],[75th]]-AAMC_Raw_Data_for_FY22[[#This Row],[Median]])/25)*15) + AAMC_Raw_Data_for_FY22[[#This Row],[Median]]","v":417922.2},{"$f":"(((AAMC_Raw_Data_for_FY22[[#This Row],[75th]]-AAMC_Raw_Data_for_FY22[[#This Row],[Median]])/25)*20) + AAMC_Raw_Data_for_FY22[[#This Row],[Median]]","v":435811.6},453701,{"$f":"(((AAMC_Raw_Data_for_FY22[[#This Row],[75th]]-AAMC_Raw_Data_for_FY22[[#This Row],[Median]])/25)*30) + AAMC_Raw_Data_for_FY22[[#This Row],[Median]]","v":471590.40000000002},{"$f":"(((AAMC_Raw_Data_for_FY22[[#This Row],[75th]]-AAMC_Raw_Data_for_FY22[[#This Row],[Median]])/25)*35) + AAMC_Raw_Data_for_FY22[[#This Row],[Median]]","v":489479.8},{"$f":"(((AAMC_Raw_Data_for_FY22[[#This Row],[75th]]-AAMC_Raw_Data_for_FY22[[#This Row],[Median]])/25)*40) + AAMC_Raw_Data_for_FY22[[#This Row],[Median]]","v":507369.2}]
[{"$f":"AAMC_Raw_Data_for_FY22[[#This Row],[Source]]&AAMC_Raw_Data_for_FY22[[#This Row],[Type]]&AAMC_Raw_Data_for_FY22[[#This Row],[School Subset]]&AAMC_Raw_Data_for_FY22[[#This Row],[Rank]]&AAMC_Raw_Data_for_FY22[[#This Row],[Degree]]&AAMC_Raw_Data_for_FY22[[#This Row],[Department / Specialty]]&\"L\"","v":"AAMCAcademicPrivateAssociateMDSurgical OncologyL"},"Surgical Oncology",3,"AAMC","Academic","Private","Associate","MD","2021-2022",375695,{"$f":"(((AAMC_Raw_Data_for_FY22[[#This Row],[Median]]-AAMC_Raw_Data_for_FY22[[#This Row],[25th]])/25)*5) + AAMC_Raw_Data_for_FY22[[#This Row],[25th]]","v":392460},{"$f":"(((AAMC_Raw_Data_for_FY22[[#This Row],[Median]]-AAMC_Raw_Data_for_FY22[[#This Row],[25th]])/25)*10) + AAMC_Raw_Data_for_FY22[[#This Row],[25th]]","v":409225},{"$f":"(((AAMC_Raw_Data_for_FY22[[#This Row],[Median]]-AAMC_Raw_Data_for_FY22[[#This Row],[25th]])/25)*15) + AAMC_Raw_Data_for_FY22[[#This Row],[25th]]","v":425990},{"$f":"(((AAMC_Raw_Data_for_FY22[[#This Row],[Median]]-AAMC_Raw_Data_for_FY22[[#This Row],[25th]])/25)*20) + AAMC_Raw_Data_for_FY22[[#This Row],[25th]]","v":442755},459520,{"$f":"(((AAMC_Raw_Data_for_FY22[[#This Row],[75th]]-AAMC_Raw_Data_for_FY22[[#This Row],[Median]])/25)*5) + AAMC_Raw_Data_for_FY22[[#This Row],[Median]]","v":478746.4},{"$f":"(((AAMC_Raw_Data_for_FY22[[#This Row],[75th]]-AAMC_Raw_Data_for_FY22[[#This Row],[Median]])/25)*10) + AAMC_Raw_Data_for_FY22[[#This Row],[Median]]","v":497972.8},{"$f":"(((AAMC_Raw_Data_for_FY22[[#This Row],[75th]]-AAMC_Raw_Data_for_FY22[[#This Row],[Median]])/25)*15) + AAMC_Raw_Data_for_FY22[[#This Row],[Median]]","v":517199.2},{"$f":"(((AAMC_Raw_Data_for_FY22[[#This Row],[75th]]-AAMC_Raw_Data_for_FY22[[#This Row],[Median]])/25)*20) + AAMC_Raw_Data_for_FY22[[#This Row],[Median]]","v":536425.6},555652,{"$f":"(((AAMC_Raw_Data_for_FY22[[#This Row],[75th]]-AAMC_Raw_Data_for_FY22[[#This Row],[Median]])/25)*30) + AAMC_Raw_Data_for_FY22[[#This Row],[Median]]","v":574878.4},{"$f":"(((AAMC_Raw_Data_for_FY22[[#This Row],[75th]]-AAMC_Raw_Data_for_FY22[[#This Row],[Median]])/25)*35) + AAMC_Raw_Data_for_FY22[[#This Row],[Median]]","v":594104.80000000005},{"$f":"(((AAMC_Raw_Data_for_FY22[[#This Row],[75th]]-AAMC_Raw_Data_for_FY22[[#This Row],[Median]])/25)*40) + AAMC_Raw_Data_for_FY22[[#This Row],[Median]]","v":613331.19999999995}]
[{"$f":"AAMC_Raw_Data_for_FY22[[#This Row],[Source]]&AAMC_Raw_Data_for_FY22[[#This Row],[Type]]&AAMC_Raw_Data_for_FY22[[#This Row],[School Subset]]&AAMC_Raw_Data_for_FY22[[#This Row],[Rank]]&AAMC_Raw_Data_for_FY22[[#This Row],[Degree]]&AAMC_Raw_Data_for_FY22[[#This Row],[Department / Specialty]]&\"L\"","v":"AAMCAcademicPrivateProfessorMDSurgical OncologyL"},"Surgical Oncology",2,"AAMC","Academic","Private","Professor","MD","2021-2022",434665,{"$f":"(((AAMC_Raw_Data_for_FY22[[#This Row],[Median]]-AAMC_Raw_Data_for_FY22[[#This Row],[25th]])/25)*5) + AAMC_Raw_Data_for_FY22[[#This Row],[25th]]","v":461302.6},{"$f":"(((AAMC_Raw_Data_for_FY22[[#This Row],[Median]]-AAMC_Raw_Data_for_FY22[[#This Row],[25th]])/25)*10) + AAMC_Raw_Data_for_FY22[[#This Row],[25th]]","v":487940.2},{"$f":"(((AAMC_Raw_Data_for_FY22[[#This Row],[Median]]-AAMC_Raw_Data_for_FY22[[#This Row],[25th]])/25)*15) + AAMC_Raw_Data_for_FY22[[#This Row],[25th]]","v":514577.8},{"$f":"(((AAMC_Raw_Data_for_FY22[[#This Row],[Median]]-AAMC_Raw_Data_for_FY22[[#This Row],[25th]])/25)*20) + AAMC_Raw_Data_for_FY22[[#This Row],[25th]]","v":541215.4},567853,{"$f":"(((AAMC_Raw_Data_for_FY22[[#This Row],[75th]]-AAMC_Raw_Data_for_FY22[[#This Row],[Median]])/25)*5) + AAMC_Raw_Data_for_FY22[[#This Row],[Median]]","v":597111.6},{"$f":"(((AAMC_Raw_Data_for_FY22[[#This Row],[75th]]-AAMC_Raw_Data_for_FY22[[#This Row],[Median]])/25)*10) + AAMC_Raw_Data_for_FY22[[#This Row],[Median]]","v":626370.19999999995},{"$f":"(((AAMC_Raw_Data_for_FY22[[#This Row],[75th]]-AAMC_Raw_Data_for_FY22[[#This Row],[Median]])/25)*15) + AAMC_Raw_Data_for_FY22[[#This Row],[Median]]","v":655628.80000000005},{"$f":"(((AAMC_Raw_Data_for_FY22[[#This Row],[75th]]-AAMC_Raw_Data_for_FY22[[#This Row],[Median]])/25)*20) + AAMC_Raw_Data_for_FY22[[#This Row],[Median]]","v":684887.4},714146,{"$f":"(((AAMC_Raw_Data_for_FY22[[#This Row],[75th]]-AAMC_Raw_Data_for_FY22[[#This Row],[Median]])/25)*30) + AAMC_Raw_Data_for_FY22[[#This Row],[Median]]","v":743404.6},{"$f":"(((AAMC_Raw_Data_for_FY22[[#This Row],[75th]]-AAMC_Raw_Data_for_FY22[[#This Row],[Median]])/25)*35) + AAMC_Raw_Data_for_FY22[[#This Row],[Median]]","v":772663.2},{"$f":"(((AAMC_Raw_Data_for_FY22[[#This Row],[75th]]-AAMC_Raw_Data_for_FY22[[#This Row],[Median]])/25)*40) + AAMC_Raw_Data_for_FY22[[#This Row],[Median]]","v":801921.8}]
[{"$f":"AAMC_Raw_Data_for_FY22[[#This Row],[Source]]&AAMC_Raw_Data_for_FY22[[#This Row],[Type]]&AAMC_Raw_Data_for_FY22[[#This Row],[School Subset]]&AAMC_Raw_Data_for_FY22[[#This Row],[Rank]]&AAMC_Raw_Data_for_FY22[[#This Row],[Degree]]&AAMC_Raw_Data_for_FY22[[#This Row],[Department / Specialty]]&\"L\"","v":"AAMCAcademicPrivateChiefMDSurgical OncologyL"},"Surgical Oncology",6,"AAMC","Academic","Private","Chief","MD","2021-2022",582321,{"$f":"(((AAMC_Raw_Data_for_FY22[[#This Row],[Median]]-AAMC_Raw_Data_for_FY22[[#This Row],[25th]])/25)*5) + AAMC_Raw_Data_for_FY22[[#This Row],[25th]]","v":606291.4},{"$f":"(((AAMC_Raw_Data_for_FY22[[#This Row],[Median]]-AAMC_Raw_Data_for_FY22[[#This Row],[25th]])/25)*10) + AAMC_Raw_Data_for_FY22[[#This Row],[25th]]","v":630261.80000000005},{"$f":"(((AAMC_Raw_Data_for_FY22[[#This Row],[Median]]-AAMC_Raw_Data_for_FY22[[#This Row],[25th]])/25)*15) + AAMC_Raw_Data_for_FY22[[#This Row],[25th]]","v":654232.19999999995},{"$f":"(((AAMC_Raw_Data_for_FY22[[#This Row],[Median]]-AAMC_Raw_Data_for_FY22[[#This Row],[25th]])/25)*20) + AAMC_Raw_Data_for_FY22[[#This Row],[25th]]","v":678202.6},702173,{"$f":"(((AAMC_Raw_Data_for_FY22[[#This Row],[75th]]-AAMC_Raw_Data_for_FY22[[#This Row],[Median]])/25)*5) + AAMC_Raw_Data_for_FY22[[#This Row],[Median]]","v":729076.4},{"$f":"(((AAMC_Raw_Data_for_FY22[[#This Row],[75th]]-AAMC_Raw_Data_for_FY22[[#This Row],[Median]])/25)*10) + AAMC_Raw_Data_for_FY22[[#This Row],[Median]]","v":755979.8},{"$f":"(((AAMC_Raw_Data_for_FY22[[#This Row],[75th]]-AAMC_Raw_Data_for_FY22[[#This Row],[Median]])/25)*15) + AAMC_Raw_Data_for_FY22[[#This Row],[Median]]","v":782883.2},{"$f":"(((AAMC_Raw_Data_for_FY22[[#This Row],[75th]]-AAMC_Raw_Data_for_FY22[[#This Row],[Median]])/25)*20) + AAMC_Raw_Data_for_FY22[[#This Row],[Median]]","v":809786.6},836690,{"$f":"(((AAMC_Raw_Data_for_FY22[[#This Row],[75th]]-AAMC_Raw_Data_for_FY22[[#This Row],[Median]])/25)*30) + AAMC_Raw_Data_for_FY22[[#This Row],[Median]]","v":863593.4},{"$f":"(((AAMC_Raw_Data_for_FY22[[#This Row],[75th]]-AAMC_Raw_Data_for_FY22[[#This Row],[Median]])/25)*35) + AAMC_Raw_Data_for_FY22[[#This Row],[Median]]","v":890496.8},{"$f":"(((AAMC_Raw_Data_for_FY22[[#This Row],[75th]]-AAMC_Raw_Data_for_FY22[[#This Row],[Median]])/25)*40) + AAMC_Raw_Data_for_FY22[[#This Row],[Median]]","v":917400.2}]
[{"$f":"AAMC_Raw_Data_for_FY22[[#This Row],[Source]]&AAMC_Raw_Data_for_FY22[[#This Row],[Type]]&AAMC_Raw_Data_for_FY22[[#This Row],[School Subset]]&AAMC_Raw_Data_for_FY22[[#This Row],[Rank]]&AAMC_Raw_Data_for_FY22[[#This Row],[Degree]]&AAMC_Raw_Data_for_FY22[[#This Row],[Department / Specialty]]&\"L\"","v":"AAMCAcademicPrivateChairMDSurgical OncologyL"},"Surgical Oncology",1,"AAMC","Academic","Private","Chair","MD","2021-2022",937477,{"$f":"(((AAMC_Raw_Data_for_FY22[[#This Row],[Median]]-AAMC_Raw_Data_for_FY22[[#This Row],[25th]])/25)*5) + AAMC_Raw_Data_for_FY22[[#This Row],[25th]]","v":1014186.2},{"$f":"(((AAMC_Raw_Data_for_FY22[[#This Row],[Median]]-AAMC_Raw_Data_for_FY22[[#This Row],[25th]])/25)*10) + AAMC_Raw_Data_for_FY22[[#This Row],[25th]]","v":1090895.3999999999},{"$f":"(((AAMC_Raw_Data_for_FY22[[#This Row],[Median]]-AAMC_Raw_Data_for_FY22[[#This Row],[25th]])/25)*15) + AAMC_Raw_Data_for_FY22[[#This Row],[25th]]","v":1167604.6000000001},{"$f":"(((AAMC_Raw_Data_for_FY22[[#This Row],[Median]]-AAMC_Raw_Data_for_FY22[[#This Row],[25th]])/25)*20) + AAMC_Raw_Data_for_FY22[[#This Row],[25th]]","v":1244313.8},1321023,{"$f":"(((AAMC_Raw_Data_for_FY22[[#This Row],[75th]]-AAMC_Raw_Data_for_FY22[[#This Row],[Median]])/25)*5) + AAMC_Raw_Data_for_FY22[[#This Row],[Median]]","v":1358159.4},{"$f":"(((AAMC_Raw_Data_for_FY22[[#This Row],[75th]]-AAMC_Raw_Data_for_FY22[[#This Row],[Median]])/25)*10) + AAMC_Raw_Data_for_FY22[[#This Row],[Median]]","v":1395295.8},{"$f":"(((AAMC_Raw_Data_for_FY22[[#This Row],[75th]]-AAMC_Raw_Data_for_FY22[[#This Row],[Median]])/25)*15) + AAMC_Raw_Data_for_FY22[[#This Row],[Median]]","v":1432432.2},{"$f":"(((AAMC_Raw_Data_for_FY22[[#This Row],[75th]]-AAMC_Raw_Data_for_FY22[[#This Row],[Median]])/25)*20) + AAMC_Raw_Data_for_FY22[[#This Row],[Median]]","v":1469568.6},1506705,{"$f":"(((AAMC_Raw_Data_for_FY22[[#This Row],[75th]]-AAMC_Raw_Data_for_FY22[[#This Row],[Median]])/25)*30) + AAMC_Raw_Data_for_FY22[[#This Row],[Median]]","v":1543841.4},{"$f":"(((AAMC_Raw_Data_for_FY22[[#This Row],[75th]]-AAMC_Raw_Data_for_FY22[[#This Row],[Median]])/25)*35) + AAMC_Raw_Data_for_FY22[[#This Row],[Median]]","v":1580977.8},{"$f":"(((AAMC_Raw_Data_for_FY22[[#This Row],[75th]]-AAMC_Raw_Data_for_FY22[[#This Row],[Median]])/25)*40) + AAMC_Raw_Data_for_FY22[[#This Row],[Median]]","v":1618114.2}]
[{"$f":"AAMC_Raw_Data_for_FY22[[#This Row],[Source]]&AAMC_Raw_Data_for_FY22[[#This Row],[Type]]&AAMC_Raw_Data_for_FY22[[#This Row],[School Subset]]&AAMC_Raw_Data_for_FY22[[#This Row],[Rank]]&AAMC_Raw_Data_for_FY22[[#This Row],[Degree]]&AAMC_Raw_Data_for_FY22[[#This Row],[Department / Specialty]]&\"L\"","v":"AAMCAcademicPrivateInstructorMDThoracic & Cardiovascular SurgeryL"},"Thoracic & Cardiovascular Surgery",5,"AAMC","Academic","Private","Instructor","MD","2021-2022",268783,{"$f":"(((AAMC_Raw_Data_for_FY22[[#This Row],[Median]]-AAMC_Raw_Data_for_FY22[[#This Row],[25th]])/25)*5) + AAMC_Raw_Data_for_FY22[[#This Row],[25th]]","v":284326.40000000002},{"$f":"(((AAMC_Raw_Data_for_FY22[[#This Row],[Median]]-AAMC_Raw_Data_for_FY22[[#This Row],[25th]])/25)*10) + AAMC_Raw_Data_for_FY22[[#This Row],[25th]]","v":299869.8},{"$f":"(((AAMC_Raw_Data_for_FY22[[#This Row],[Median]]-AAMC_Raw_Data_for_FY22[[#This Row],[25th]])/25)*15) + AAMC_Raw_Data_for_FY22[[#This Row],[25th]]","v":315413.2},{"$f":"(((AAMC_Raw_Data_for_FY22[[#This Row],[Median]]-AAMC_Raw_Data_for_FY22[[#This Row],[25th]])/25)*20) + AAMC_Raw_Data_for_FY22[[#This Row],[25th]]","v":330956.59999999998},346500,{"$f":"(((AAMC_Raw_Data_for_FY22[[#This Row],[75th]]-AAMC_Raw_Data_for_FY22[[#This Row],[Median]])/25)*5) + AAMC_Raw_Data_for_FY22[[#This Row],[Median]]","v":368171.2},{"$f":"(((AAMC_Raw_Data_for_FY22[[#This Row],[75th]]-AAMC_Raw_Data_for_FY22[[#This Row],[Median]])/25)*10) + AAMC_Raw_Data_for_FY22[[#This Row],[Median]]","v":389842.4},{"$f":"(((AAMC_Raw_Data_for_FY22[[#This Row],[75th]]-AAMC_Raw_Data_for_FY22[[#This Row],[Median]])/25)*15) + AAMC_Raw_Data_for_FY22[[#This Row],[Median]]","v":411513.59999999998},{"$f":"(((AAMC_Raw_Data_for_FY22[[#This Row],[75th]]-AAMC_Raw_Data_for_FY22[[#This Row],[Median]])/25)*20) + AAMC_Raw_Data_for_FY22[[#This Row],[Median]]","v":433184.8},454856,{"$f":"(((AAMC_Raw_Data_for_FY22[[#This Row],[75th]]-AAMC_Raw_Data_for_FY22[[#This Row],[Median]])/25)*30) + AAMC_Raw_Data_for_FY22[[#This Row],[Median]]","v":476527.2},{"$f":"(((AAMC_Raw_Data_for_FY22[[#This Row],[75th]]-AAMC_Raw_Data_for_FY22[[#This Row],[Median]])/25)*35) + AAMC_Raw_Data_for_FY22[[#This Row],[Median]]","v":498198.4},{"$f":"(((AAMC_Raw_Data_for_FY22[[#This Row],[75th]]-AAMC_Raw_Data_for_FY22[[#This Row],[Median]])/25)*40) + AAMC_Raw_Data_for_FY22[[#This Row],[Median]]","v":519869.6}]
[{"$f":"AAMC_Raw_Data_for_FY22[[#This Row],[Source]]&AAMC_Raw_Data_for_FY22[[#This Row],[Type]]&AAMC_Raw_Data_for_FY22[[#This Row],[School Subset]]&AAMC_Raw_Data_for_FY22[[#This Row],[Rank]]&AAMC_Raw_Data_for_FY22[[#This Row],[Degree]]&AAMC_Raw_Data_for_FY22[[#This Row],[Department / Specialty]]&\"L\"","v":"AAMCAcademicPrivateAssistantMDThoracic & Cardiovascular SurgeryL"},"Thoracic & Cardiovascular Surgery",4,"AAMC","Academic","Private","Assistant","MD","2021-2022",385577,{"$f":"(((AAMC_Raw_Data_for_FY22[[#This Row],[Median]]-AAMC_Raw_Data_for_FY22[[#This Row],[25th]])/25)*5) + AAMC_Raw_Data_for_FY22[[#This Row],[25th]]","v":407405.4},{"$f":"(((AAMC_Raw_Data_for_FY22[[#This Row],[Median]]-AAMC_Raw_Data_for_FY22[[#This Row],[25th]])/25)*10) + AAMC_Raw_Data_for_FY22[[#This Row],[25th]]","v":429233.8},{"$f":"(((AAMC_Raw_Data_for_FY22[[#This Row],[Median]]-AAMC_Raw_Data_for_FY22[[#This Row],[25th]])/25)*15) + AAMC_Raw_Data_for_FY22[[#This Row],[25th]]","v":451062.2},{"$f":"(((AAMC_Raw_Data_for_FY22[[#This Row],[Median]]-AAMC_Raw_Data_for_FY22[[#This Row],[25th]])/25)*20) + AAMC_Raw_Data_for_FY22[[#This Row],[25th]]","v":472890.6},494719,{"$f":"(((AAMC_Raw_Data_for_FY22[[#This Row],[75th]]-AAMC_Raw_Data_for_FY22[[#This Row],[Median]])/25)*5) + AAMC_Raw_Data_for_FY22[[#This Row],[Median]]","v":523915.4},{"$f":"(((AAMC_Raw_Data_for_FY22[[#This Row],[75th]]-AAMC_Raw_Data_for_FY22[[#This Row],[Median]])/25)*10) + AAMC_Raw_Data_for_FY22[[#This Row],[Median]]","v":553111.80000000005},{"$f":"(((AAMC_Raw_Data_for_FY22[[#This Row],[75th]]-AAMC_Raw_Data_for_FY22[[#This Row],[Median]])/25)*15) + AAMC_Raw_Data_for_FY22[[#This Row],[Median]]","v":582308.19999999995},{"$f":"(((AAMC_Raw_Data_for_FY22[[#This Row],[75th]]-AAMC_Raw_Data_for_FY22[[#This Row],[Median]])/25)*20) + AAMC_Raw_Data_for_FY22[[#This Row],[Median]]","v":611504.6},640701,{"$f":"(((AAMC_Raw_Data_for_FY22[[#This Row],[75th]]-AAMC_Raw_Data_for_FY22[[#This Row],[Median]])/25)*30) + AAMC_Raw_Data_for_FY22[[#This Row],[Median]]","v":669897.4},{"$f":"(((AAMC_Raw_Data_for_FY22[[#This Row],[75th]]-AAMC_Raw_Data_for_FY22[[#This Row],[Median]])/25)*35) + AAMC_Raw_Data_for_FY22[[#This Row],[Median]]","v":699093.8},{"$f":"(((AAMC_Raw_Data_for_FY22[[#This Row],[75th]]-AAMC_Raw_Data_for_FY22[[#This Row],[Median]])/25)*40) + AAMC_Raw_Data_for_FY22[[#This Row],[Median]]","v":728290.2}]
[{"$f":"AAMC_Raw_Data_for_FY22[[#This Row],[Source]]&AAMC_Raw_Data_for_FY22[[#This Row],[Type]]&AAMC_Raw_Data_for_FY22[[#This Row],[School Subset]]&AAMC_Raw_Data_for_FY22[[#This Row],[Rank]]&AAMC_Raw_Data_for_FY22[[#This Row],[Degree]]&AAMC_Raw_Data_for_FY22[[#This Row],[Department / Specialty]]&\"L\"","v":"AAMCAcademicPrivateAssociateMDThoracic & Cardiovascular SurgeryL"},"Thoracic & Cardiovascular Surgery",3,"AAMC","Academic","Private","Associate","MD","2021-2022",524331,{"$f":"(((AAMC_Raw_Data_for_FY22[[#This Row],[Median]]-AAMC_Raw_Data_for_FY22[[#This Row],[25th]])/25)*5) + AAMC_Raw_Data_for_FY22[[#This Row],[25th]]","v":557401},{"$f":"(((AAMC_Raw_Data_for_FY22[[#This Row],[Median]]-AAMC_Raw_Data_for_FY22[[#This Row],[25th]])/25)*10) + AAMC_Raw_Data_for_FY22[[#This Row],[25th]]","v":590471},{"$f":"(((AAMC_Raw_Data_for_FY22[[#This Row],[Median]]-AAMC_Raw_Data_for_FY22[[#This Row],[25th]])/25)*15) + AAMC_Raw_Data_for_FY22[[#This Row],[25th]]","v":623541},{"$f":"(((AAMC_Raw_Data_for_FY22[[#This Row],[Median]]-AAMC_Raw_Data_for_FY22[[#This Row],[25th]])/25)*20) + AAMC_Raw_Data_for_FY22[[#This Row],[25th]]","v":656611},689681,{"$f":"(((AAMC_Raw_Data_for_FY22[[#This Row],[75th]]-AAMC_Raw_Data_for_FY22[[#This Row],[Median]])/25)*5) + AAMC_Raw_Data_for_FY22[[#This Row],[Median]]","v":733234.8},{"$f":"(((AAMC_Raw_Data_for_FY22[[#This Row],[75th]]-AAMC_Raw_Data_for_FY22[[#This Row],[Median]])/25)*10) + AAMC_Raw_Data_for_FY22[[#This Row],[Median]]","v":776788.6},{"$f":"(((AAMC_Raw_Data_for_FY22[[#This Row],[75th]]-AAMC_Raw_Data_for_FY22[[#This Row],[Median]])/25)*15) + AAMC_Raw_Data_for_FY22[[#This Row],[Median]]","v":820342.4},{"$f":"(((AAMC_Raw_Data_for_FY22[[#This Row],[75th]]-AAMC_Raw_Data_for_FY22[[#This Row],[Median]])/25)*20) + AAMC_Raw_Data_for_FY22[[#This Row],[Median]]","v":863896.2},907450,{"$f":"(((AAMC_Raw_Data_for_FY22[[#This Row],[75th]]-AAMC_Raw_Data_for_FY22[[#This Row],[Median]])/25)*30) + AAMC_Raw_Data_for_FY22[[#This Row],[Median]]","v":951003.8},{"$f":"(((AAMC_Raw_Data_for_FY22[[#This Row],[75th]]-AAMC_Raw_Data_for_FY22[[#This Row],[Median]])/25)*35) + AAMC_Raw_Data_for_FY22[[#This Row],[Median]]","v":994557.60000000009},{"$f":"(((AAMC_Raw_Data_for_FY22[[#This Row],[75th]]-AAMC_Raw_Data_for_FY22[[#This Row],[Median]])/25)*40) + AAMC_Raw_Data_for_FY22[[#This Row],[Median]]","v":1038111.4}]
[{"$f":"AAMC_Raw_Data_for_FY22[[#This Row],[Source]]&AAMC_Raw_Data_for_FY22[[#This Row],[Type]]&AAMC_Raw_Data_for_FY22[[#This Row],[School Subset]]&AAMC_Raw_Data_for_FY22[[#This Row],[Rank]]&AAMC_Raw_Data_for_FY22[[#This Row],[Degree]]&AAMC_Raw_Data_for_FY22[[#This Row],[Department / Specialty]]&\"L\"","v":"AAMCAcademicPrivateProfessorMDThoracic & Cardiovascular SurgeryL"},"Thoracic & Cardiovascular Surgery",2,"AAMC","Academic","Private","Professor","MD","2021-2022",567444,{"$f":"(((AAMC_Raw_Data_for_FY22[[#This Row],[Median]]-AAMC_Raw_Data_for_FY22[[#This Row],[25th]])/25)*5) + AAMC_Raw_Data_for_FY22[[#This Row],[25th]]","v":620707},{"$f":"(((AAMC_Raw_Data_for_FY22[[#This Row],[Median]]-AAMC_Raw_Data_for_FY22[[#This Row],[25th]])/25)*10) + AAMC_Raw_Data_for_FY22[[#This Row],[25th]]","v":673970},{"$f":"(((AAMC_Raw_Data_for_FY22[[#This Row],[Median]]-AAMC_Raw_Data_for_FY22[[#This Row],[25th]])/25)*15) + AAMC_Raw_Data_for_FY22[[#This Row],[25th]]","v":727233},{"$f":"(((AAMC_Raw_Data_for_FY22[[#This Row],[Median]]-AAMC_Raw_Data_for_FY22[[#This Row],[25th]])/25)*20) + AAMC_Raw_Data_for_FY22[[#This Row],[25th]]","v":780496},833759,{"$f":"(((AAMC_Raw_Data_for_FY22[[#This Row],[75th]]-AAMC_Raw_Data_for_FY22[[#This Row],[Median]])/25)*5) + AAMC_Raw_Data_for_FY22[[#This Row],[Median]]","v":900263.6},{"$f":"(((AAMC_Raw_Data_for_FY22[[#This Row],[75th]]-AAMC_Raw_Data_for_FY22[[#This Row],[Median]])/25)*10) + AAMC_Raw_Data_for_FY22[[#This Row],[Median]]","v":966768.2},{"$f":"(((AAMC_Raw_Data_for_FY22[[#This Row],[75th]]-AAMC_Raw_Data_for_FY22[[#This Row],[Median]])/25)*15) + AAMC_Raw_Data_for_FY22[[#This Row],[Median]]","v":1033272.8},{"$f":"(((AAMC_Raw_Data_for_FY22[[#This Row],[75th]]-AAMC_Raw_Data_for_FY22[[#This Row],[Median]])/25)*20) + AAMC_Raw_Data_for_FY22[[#This Row],[Median]]","v":1099777.3999999999},1166282,{"$f":"(((AAMC_Raw_Data_for_FY22[[#This Row],[75th]]-AAMC_Raw_Data_for_FY22[[#This Row],[Median]])/25)*30) + AAMC_Raw_Data_for_FY22[[#This Row],[Median]]","v":1232786.6000000001},{"$f":"(((AAMC_Raw_Data_for_FY22[[#This Row],[75th]]-AAMC_Raw_Data_for_FY22[[#This Row],[Median]])/25)*35) + AAMC_Raw_Data_for_FY22[[#This Row],[Median]]","v":1299291.2},{"$f":"(((AAMC_Raw_Data_for_FY22[[#This Row],[75th]]-AAMC_Raw_Data_for_FY22[[#This Row],[Median]])/25)*40) + AAMC_Raw_Data_for_FY22[[#This Row],[Median]]","v":1365795.8}]
[{"$f":"AAMC_Raw_Data_for_FY22[[#This Row],[Source]]&AAMC_Raw_Data_for_FY22[[#This Row],[Type]]&AAMC_Raw_Data_for_FY22[[#This Row],[School Subset]]&AAMC_Raw_Data_for_FY22[[#This Row],[Rank]]&AAMC_Raw_Data_for_FY22[[#This Row],[Degree]]&AAMC_Raw_Data_for_FY22[[#This Row],[Department / Specialty]]&\"L\"","v":"AAMCAcademicPrivateChiefMDThoracic & Cardiovascular SurgeryL"},"Thoracic & Cardiovascular Surgery",6,"AAMC","Academic","Private","Chief","MD","2021-2022",827234,{"$f":"(((AAMC_Raw_Data_for_FY22[[#This Row],[Median]]-AAMC_Raw_Data_for_FY22[[#This Row],[25th]])/25)*5) + AAMC_Raw_Data_for_FY22[[#This Row],[25th]]","v":868987.2},{"$f":"(((AAMC_Raw_Data_for_FY22[[#This Row],[Median]]-AAMC_Raw_Data_for_FY22[[#This Row],[25th]])/25)*10) + AAMC_Raw_Data_for_FY22[[#This Row],[25th]]","v":910740.4},{"$f":"(((AAMC_Raw_Data_for_FY22[[#This Row],[Median]]-AAMC_Raw_Data_for_FY22[[#This Row],[25th]])/25)*15) + AAMC_Raw_Data_for_FY22[[#This Row],[25th]]","v":952493.6},{"$f":"(((AAMC_Raw_Data_for_FY22[[#This Row],[Median]]-AAMC_Raw_Data_for_FY22[[#This Row],[25th]])/25)*20) + AAMC_Raw_Data_for_FY22[[#This Row],[25th]]","v":994246.8},1036000,{"$f":"(((AAMC_Raw_Data_for_FY22[[#This Row],[75th]]-AAMC_Raw_Data_for_FY22[[#This Row],[Median]])/25)*5) + AAMC_Raw_Data_for_FY22[[#This Row],[Median]]","v":1155980},{"$f":"(((AAMC_Raw_Data_for_FY22[[#This Row],[75th]]-AAMC_Raw_Data_for_FY22[[#This Row],[Median]])/25)*10) + AAMC_Raw_Data_for_FY22[[#This Row],[Median]]","v":1275960},{"$f":"(((AAMC_Raw_Data_for_FY22[[#This Row],[75th]]-AAMC_Raw_Data_for_FY22[[#This Row],[Median]])/25)*15) + AAMC_Raw_Data_for_FY22[[#This Row],[Median]]","v":1395940},{"$f":"(((AAMC_Raw_Data_for_FY22[[#This Row],[75th]]-AAMC_Raw_Data_for_FY22[[#This Row],[Median]])/25)*20) + AAMC_Raw_Data_for_FY22[[#This Row],[Median]]","v":1515920},1635900,{"$f":"(((AAMC_Raw_Data_for_FY22[[#This Row],[75th]]-AAMC_Raw_Data_for_FY22[[#This Row],[Median]])/25)*30) + AAMC_Raw_Data_for_FY22[[#This Row],[Median]]","v":1755880},{"$f":"(((AAMC_Raw_Data_for_FY22[[#This Row],[75th]]-AAMC_Raw_Data_for_FY22[[#This Row],[Median]])/25)*35) + AAMC_Raw_Data_for_FY22[[#This Row],[Median]]","v":1875860},{"$f":"(((AAMC_Raw_Data_for_FY22[[#This Row],[75th]]-AAMC_Raw_Data_for_FY22[[#This Row],[Median]])/25)*40) + AAMC_Raw_Data_for_FY22[[#This Row],[Median]]","v":1995840}]
[{"$f":"AAMC_Raw_Data_for_FY22[[#This Row],[Source]]&AAMC_Raw_Data_for_FY22[[#This Row],[Type]]&AAMC_Raw_Data_for_FY22[[#This Row],[School Subset]]&AAMC_Raw_Data_for_FY22[[#This Row],[Rank]]&AAMC_Raw_Data_for_FY22[[#This Row],[Degree]]&AAMC_Raw_Data_for_FY22[[#This Row],[Department / Specialty]]&\"L\"","v":"AAMCAcademicPrivateChairMDThoracic & Cardiovascular SurgeryL"},"Thoracic & Cardiovascular Surgery",1,"AAMC","Academic","Private","Chair","MD","2021-2022",1479768,{"$f":"(((AAMC_Raw_Data_for_FY22[[#This Row],[Median]]-AAMC_Raw_Data_for_FY22[[#This Row],[25th]])/25)*5) + AAMC_Raw_Data_for_FY22[[#This Row],[25th]]","v":1697814.4},{"$f":"(((AAMC_Raw_Data_for_FY22[[#This Row],[Median]]-AAMC_Raw_Data_for_FY22[[#This Row],[25th]])/25)*10) + AAMC_Raw_Data_for_FY22[[#This Row],[25th]]","v":1915860.8},{"$f":"(((AAMC_Raw_Data_for_FY22[[#This Row],[Median]]-AAMC_Raw_Data_for_FY22[[#This Row],[25th]])/25)*15) + AAMC_Raw_Data_for_FY22[[#This Row],[25th]]","v":2133907.2000000002},{"$f":"(((AAMC_Raw_Data_for_FY22[[#This Row],[Median]]-AAMC_Raw_Data_for_FY22[[#This Row],[25th]])/25)*20) + AAMC_Raw_Data_for_FY22[[#This Row],[25th]]","v":2351953.6},2570000,{"$f":"(((AAMC_Raw_Data_for_FY22[[#This Row],[75th]]-AAMC_Raw_Data_for_FY22[[#This Row],[Median]])/25)*5) + AAMC_Raw_Data_for_FY22[[#This Row],[Median]]","v":2666360.6},{"$f":"(((AAMC_Raw_Data_for_FY22[[#This Row],[75th]]-AAMC_Raw_Data_for_FY22[[#This Row],[Median]])/25)*10) + AAMC_Raw_Data_for_FY22[[#This Row],[Median]]","v":2762721.2},{"$f":"(((AAMC_Raw_Data_for_FY22[[#This Row],[75th]]-AAMC_Raw_Data_for_FY22[[#This Row],[Median]])/25)*15) + AAMC_Raw_Data_for_FY22[[#This Row],[Median]]","v":2859081.8},{"$f":"(((AAMC_Raw_Data_for_FY22[[#This Row],[75th]]-AAMC_Raw_Data_for_FY22[[#This Row],[Median]])/25)*20) + AAMC_Raw_Data_for_FY22[[#This Row],[Median]]","v":2955442.4},3051803,{"$f":"(((AAMC_Raw_Data_for_FY22[[#This Row],[75th]]-AAMC_Raw_Data_for_FY22[[#This Row],[Median]])/25)*30) + AAMC_Raw_Data_for_FY22[[#This Row],[Median]]","v":3148163.6},{"$f":"(((AAMC_Raw_Data_for_FY22[[#This Row],[75th]]-AAMC_Raw_Data_for_FY22[[#This Row],[Median]])/25)*35) + AAMC_Raw_Data_for_FY22[[#This Row],[Median]]","v":3244524.2},{"$f":"(((AAMC_Raw_Data_for_FY22[[#This Row],[75th]]-AAMC_Raw_Data_for_FY22[[#This Row],[Median]])/25)*40) + AAMC_Raw_Data_for_FY22[[#This Row],[Median]]","v":3340884.8}]
[{"$f":"AAMC_Raw_Data_for_FY22[[#This Row],[Source]]&AAMC_Raw_Data_for_FY22[[#This Row],[Type]]&AAMC_Raw_Data_for_FY22[[#This Row],[School Subset]]&AAMC_Raw_Data_for_FY22[[#This Row],[Rank]]&AAMC_Raw_Data_for_FY22[[#This Row],[Degree]]&AAMC_Raw_Data_for_FY22[[#This Row],[Department / Specialty]]&\"L\"","v":"AAMCAcademicPrivateInstructorMDTransplant SurgeryL"},"Transplant Surgery",5,"AAMC","Academic","Private","Instructor","MD","2021-2022",null,{"$f":"(((AAMC_Raw_Data_for_FY22[[#This Row],[Median]]-AAMC_Raw_Data_for_FY22[[#This Row],[25th]])/25)*5) + AAMC_Raw_Data_for_FY22[[#This Row],[25th]]","v":0},{"$f":"(((AAMC_Raw_Data_for_FY22[[#This Row],[Median]]-AAMC_Raw_Data_for_FY22[[#This Row],[25th]])/25)*10) + AAMC_Raw_Data_for_FY22[[#This Row],[25th]]","v":0},{"$f":"(((AAMC_Raw_Data_for_FY22[[#This Row],[Median]]-AAMC_Raw_Data_for_FY22[[#This Row],[25th]])/25)*15) + AAMC_Raw_Data_for_FY22[[#This Row],[25th]]","v":0},{"$f":"(((AAMC_Raw_Data_for_FY22[[#This Row],[Median]]-AAMC_Raw_Data_for_FY22[[#This Row],[25th]])/25)*20) + AAMC_Raw_Data_for_FY22[[#This Row],[25th]]","v":0},null,{"$f":"(((AAMC_Raw_Data_for_FY22[[#This Row],[75th]]-AAMC_Raw_Data_for_FY22[[#This Row],[Median]])/25)*5) + AAMC_Raw_Data_for_FY22[[#This Row],[Median]]","v":0},{"$f":"(((AAMC_Raw_Data_for_FY22[[#This Row],[75th]]-AAMC_Raw_Data_for_FY22[[#This Row],[Median]])/25)*10) + AAMC_Raw_Data_for_FY22[[#This Row],[Median]]","v":0},{"$f":"(((AAMC_Raw_Data_for_FY22[[#This Row],[75th]]-AAMC_Raw_Data_for_FY22[[#This Row],[Median]])/25)*15) + AAMC_Raw_Data_for_FY22[[#This Row],[Median]]","v":0},{"$f":"(((AAMC_Raw_Data_for_FY22[[#This Row],[75th]]-AAMC_Raw_Data_for_FY22[[#This Row],[Median]])/25)*20) + AAMC_Raw_Data_for_FY22[[#This Row],[Median]]","v":0},null,{"$f":"(((AAMC_Raw_Data_for_FY22[[#This Row],[75th]]-AAMC_Raw_Data_for_FY22[[#This Row],[Median]])/25)*30) + AAMC_Raw_Data_for_FY22[[#This Row],[Median]]","v":0},{"$f":"(((AAMC_Raw_Data_for_FY22[[#This Row],[75th]]-AAMC_Raw_Data_for_FY22[[#This Row],[Median]])/25)*35) + AAMC_Raw_Data_for_FY22[[#This Row],[Median]]","v":0},{"$f":"(((AAMC_Raw_Data_for_FY22[[#This Row],[75th]]-AAMC_Raw_Data_for_FY22[[#This Row],[Median]])/25)*40) + AAMC_Raw_Data_for_FY22[[#This Row],[Median]]","v":0}]
[{"$f":"AAMC_Raw_Data_for_FY22[[#This Row],[Source]]&AAMC_Raw_Data_for_FY22[[#This Row],[Type]]&AAMC_Raw_Data_for_FY22[[#This Row],[School Subset]]&AAMC_Raw_Data_for_FY22[[#This Row],[Rank]]&AAMC_Raw_Data_for_FY22[[#This Row],[Degree]]&AAMC_Raw_Data_for_FY22[[#This Row],[Department / Specialty]]&\"L\"","v":"AAMCAcademicPrivateAssistantMDTransplant SurgeryL"},"Transplant Surgery",4,"AAMC","Academic","Private","Assistant","MD","2021-2022",297392,{"$f":"(((AAMC_Raw_Data_for_FY22[[#This Row],[Median]]-AAMC_Raw_Data_for_FY22[[#This Row],[25th]])/25)*5) + AAMC_Raw_Data_for_FY22[[#This Row],[25th]]","v":309866},{"$f":"(((AAMC_Raw_Data_for_FY22[[#This Row],[Median]]-AAMC_Raw_Data_for_FY22[[#This Row],[25th]])/25)*10) + AAMC_Raw_Data_for_FY22[[#This Row],[25th]]","v":322340},{"$f":"(((AAMC_Raw_Data_for_FY22[[#This Row],[Median]]-AAMC_Raw_Data_for_FY22[[#This Row],[25th]])/25)*15) + AAMC_Raw_Data_for_FY22[[#This Row],[25th]]","v":334814},{"$f":"(((AAMC_Raw_Data_for_FY22[[#This Row],[Median]]-AAMC_Raw_Data_for_FY22[[#This Row],[25th]])/25)*20) + AAMC_Raw_Data_for_FY22[[#This Row],[25th]]","v":347288},359762,{"$f":"(((AAMC_Raw_Data_for_FY22[[#This Row],[75th]]-AAMC_Raw_Data_for_FY22[[#This Row],[Median]])/25)*5) + AAMC_Raw_Data_for_FY22[[#This Row],[Median]]","v":370209.8},{"$f":"(((AAMC_Raw_Data_for_FY22[[#This Row],[75th]]-AAMC_Raw_Data_for_FY22[[#This Row],[Median]])/25)*10) + AAMC_Raw_Data_for_FY22[[#This Row],[Median]]","v":380657.6},{"$f":"(((AAMC_Raw_Data_for_FY22[[#This Row],[75th]]-AAMC_Raw_Data_for_FY22[[#This Row],[Median]])/25)*15) + AAMC_Raw_Data_for_FY22[[#This Row],[Median]]","v":391105.4},{"$f":"(((AAMC_Raw_Data_for_FY22[[#This Row],[75th]]-AAMC_Raw_Data_for_FY22[[#This Row],[Median]])/25)*20) + AAMC_Raw_Data_for_FY22[[#This Row],[Median]]","v":401553.2},412001,{"$f":"(((AAMC_Raw_Data_for_FY22[[#This Row],[75th]]-AAMC_Raw_Data_for_FY22[[#This Row],[Median]])/25)*30) + AAMC_Raw_Data_for_FY22[[#This Row],[Median]]","v":422448.8},{"$f":"(((AAMC_Raw_Data_for_FY22[[#This Row],[75th]]-AAMC_Raw_Data_for_FY22[[#This Row],[Median]])/25)*35) + AAMC_Raw_Data_for_FY22[[#This Row],[Median]]","v":432896.6},{"$f":"(((AAMC_Raw_Data_for_FY22[[#This Row],[75th]]-AAMC_Raw_Data_for_FY22[[#This Row],[Median]])/25)*40) + AAMC_Raw_Data_for_FY22[[#This Row],[Median]]","v":443344.4}]
[{"$f":"AAMC_Raw_Data_for_FY22[[#This Row],[Source]]&AAMC_Raw_Data_for_FY22[[#This Row],[Type]]&AAMC_Raw_Data_for_FY22[[#This Row],[School Subset]]&AAMC_Raw_Data_for_FY22[[#This Row],[Rank]]&AAMC_Raw_Data_for_FY22[[#This Row],[Degree]]&AAMC_Raw_Data_for_FY22[[#This Row],[Department / Specialty]]&\"L\"","v":"AAMCAcademicPrivateAssociateMDTransplant SurgeryL"},"Transplant Surgery",3,"AAMC","Academic","Private","Associate","MD","2021-2022",425017,{"$f":"(((AAMC_Raw_Data_for_FY22[[#This Row],[Median]]-AAMC_Raw_Data_for_FY22[[#This Row],[25th]])/25)*5) + AAMC_Raw_Data_for_FY22[[#This Row],[25th]]","v":436785.2},{"$f":"(((AAMC_Raw_Data_for_FY22[[#This Row],[Median]]-AAMC_Raw_Data_for_FY22[[#This Row],[25th]])/25)*10) + AAMC_Raw_Data_for_FY22[[#This Row],[25th]]","v":448553.4},{"$f":"(((AAMC_Raw_Data_for_FY22[[#This Row],[Median]]-AAMC_Raw_Data_for_FY22[[#This Row],[25th]])/25)*15) + AAMC_Raw_Data_for_FY22[[#This Row],[25th]]","v":460321.6},{"$f":"(((AAMC_Raw_Data_for_FY22[[#This Row],[Median]]-AAMC_Raw_Data_for_FY22[[#This Row],[25th]])/25)*20) + AAMC_Raw_Data_for_FY22[[#This Row],[25th]]","v":472089.8},483858,{"$f":"(((AAMC_Raw_Data_for_FY22[[#This Row],[75th]]-AAMC_Raw_Data_for_FY22[[#This Row],[Median]])/25)*5) + AAMC_Raw_Data_for_FY22[[#This Row],[Median]]","v":500391.6},{"$f":"(((AAMC_Raw_Data_for_FY22[[#This Row],[75th]]-AAMC_Raw_Data_for_FY22[[#This Row],[Median]])/25)*10) + AAMC_Raw_Data_for_FY22[[#This Row],[Median]]","v":516925.2},{"$f":"(((AAMC_Raw_Data_for_FY22[[#This Row],[75th]]-AAMC_Raw_Data_for_FY22[[#This Row],[Median]])/25)*15) + AAMC_Raw_Data_for_FY22[[#This Row],[Median]]","v":533458.80000000005},{"$f":"(((AAMC_Raw_Data_for_FY22[[#This Row],[75th]]-AAMC_Raw_Data_for_FY22[[#This Row],[Median]])/25)*20) + AAMC_Raw_Data_for_FY22[[#This Row],[Median]]","v":549992.4},566526,{"$f":"(((AAMC_Raw_Data_for_FY22[[#This Row],[75th]]-AAMC_Raw_Data_for_FY22[[#This Row],[Median]])/25)*30) + AAMC_Raw_Data_for_FY22[[#This Row],[Median]]","v":583059.6},{"$f":"(((AAMC_Raw_Data_for_FY22[[#This Row],[75th]]-AAMC_Raw_Data_for_FY22[[#This Row],[Median]])/25)*35) + AAMC_Raw_Data_for_FY22[[#This Row],[Median]]","v":599593.19999999995},{"$f":"(((AAMC_Raw_Data_for_FY22[[#This Row],[75th]]-AAMC_Raw_Data_for_FY22[[#This Row],[Median]])/25)*40) + AAMC_Raw_Data_for_FY22[[#This Row],[Median]]","v":616126.80000000005}]
[{"$f":"AAMC_Raw_Data_for_FY22[[#This Row],[Source]]&AAMC_Raw_Data_for_FY22[[#This Row],[Type]]&AAMC_Raw_Data_for_FY22[[#This Row],[School Subset]]&AAMC_Raw_Data_for_FY22[[#This Row],[Rank]]&AAMC_Raw_Data_for_FY22[[#This Row],[Degree]]&AAMC_Raw_Data_for_FY22[[#This Row],[Department / Specialty]]&\"L\"","v":"AAMCAcademicPrivateProfessorMDTransplant SurgeryL"},"Transplant Surgery",2,"AAMC","Academic","Private","Professor","MD","2021-2022",437500,{"$f":"(((AAMC_Raw_Data_for_FY22[[#This Row],[Median]]-AAMC_Raw_Data_for_FY22[[#This Row],[25th]])/25)*5) + AAMC_Raw_Data_for_FY22[[#This Row],[25th]]","v":479732},{"$f":"(((AAMC_Raw_Data_for_FY22[[#This Row],[Median]]-AAMC_Raw_Data_for_FY22[[#This Row],[25th]])/25)*10) + AAMC_Raw_Data_for_FY22[[#This Row],[25th]]","v":521964},{"$f":"(((AAMC_Raw_Data_for_FY22[[#This Row],[Median]]-AAMC_Raw_Data_for_FY22[[#This Row],[25th]])/25)*15) + AAMC_Raw_Data_for_FY22[[#This Row],[25th]]","v":564196},{"$f":"(((AAMC_Raw_Data_for_FY22[[#This Row],[Median]]-AAMC_Raw_Data_for_FY22[[#This Row],[25th]])/25)*20) + AAMC_Raw_Data_for_FY22[[#This Row],[25th]]","v":606428},648660,{"$f":"(((AAMC_Raw_Data_for_FY22[[#This Row],[75th]]-AAMC_Raw_Data_for_FY22[[#This Row],[Median]])/25)*5) + AAMC_Raw_Data_for_FY22[[#This Row],[Median]]","v":688922.2},{"$f":"(((AAMC_Raw_Data_for_FY22[[#This Row],[75th]]-AAMC_Raw_Data_for_FY22[[#This Row],[Median]])/25)*10) + AAMC_Raw_Data_for_FY22[[#This Row],[Median]]","v":729184.4},{"$f":"(((AAMC_Raw_Data_for_FY22[[#This Row],[75th]]-AAMC_Raw_Data_for_FY22[[#This Row],[Median]])/25)*15) + AAMC_Raw_Data_for_FY22[[#This Row],[Median]]","v":769446.6},{"$f":"(((AAMC_Raw_Data_for_FY22[[#This Row],[75th]]-AAMC_Raw_Data_for_FY22[[#This Row],[Median]])/25)*20) + AAMC_Raw_Data_for_FY22[[#This Row],[Median]]","v":809708.8},849971,{"$f":"(((AAMC_Raw_Data_for_FY22[[#This Row],[75th]]-AAMC_Raw_Data_for_FY22[[#This Row],[Median]])/25)*30) + AAMC_Raw_Data_for_FY22[[#This Row],[Median]]","v":890233.2},{"$f":"(((AAMC_Raw_Data_for_FY22[[#This Row],[75th]]-AAMC_Raw_Data_for_FY22[[#This Row],[Median]])/25)*35) + AAMC_Raw_Data_for_FY22[[#This Row],[Median]]","v":930495.39999999991},{"$f":"(((AAMC_Raw_Data_for_FY22[[#This Row],[75th]]-AAMC_Raw_Data_for_FY22[[#This Row],[Median]])/25)*40) + AAMC_Raw_Data_for_FY22[[#This Row],[Median]]","v":970757.6}]
[{"$f":"AAMC_Raw_Data_for_FY22[[#This Row],[Source]]&AAMC_Raw_Data_for_FY22[[#This Row],[Type]]&AAMC_Raw_Data_for_FY22[[#This Row],[School Subset]]&AAMC_Raw_Data_for_FY22[[#This Row],[Rank]]&AAMC_Raw_Data_for_FY22[[#This Row],[Degree]]&AAMC_Raw_Data_for_FY22[[#This Row],[Department / Specialty]]&\"L\"","v":"AAMCAcademicPrivateChiefMDTransplant SurgeryL"},"Transplant Surgery",6,"AAMC","Academic","Private","Chief","MD","2021-2022",725649,{"$f":"(((AAMC_Raw_Data_for_FY22[[#This Row],[Median]]-AAMC_Raw_Data_for_FY22[[#This Row],[25th]])/25)*5) + AAMC_Raw_Data_for_FY22[[#This Row],[25th]]","v":776974.8},{"$f":"(((AAMC_Raw_Data_for_FY22[[#This Row],[Median]]-AAMC_Raw_Data_for_FY22[[#This Row],[25th]])/25)*10) + AAMC_Raw_Data_for_FY22[[#This Row],[25th]]","v":828300.6},{"$f":"(((AAMC_Raw_Data_for_FY22[[#This Row],[Median]]-AAMC_Raw_Data_for_FY22[[#This Row],[25th]])/25)*15) + AAMC_Raw_Data_for_FY22[[#This Row],[25th]]","v":879626.4},{"$f":"(((AAMC_Raw_Data_for_FY22[[#This Row],[Median]]-AAMC_Raw_Data_for_FY22[[#This Row],[25th]])/25)*20) + AAMC_Raw_Data_for_FY22[[#This Row],[25th]]","v":930952.2},982278,{"$f":"(((AAMC_Raw_Data_for_FY22[[#This Row],[75th]]-AAMC_Raw_Data_for_FY22[[#This Row],[Median]])/25)*5) + AAMC_Raw_Data_for_FY22[[#This Row],[Median]]","v":1002421},{"$f":"(((AAMC_Raw_Data_for_FY22[[#This Row],[75th]]-AAMC_Raw_Data_for_FY22[[#This Row],[Median]])/25)*10) + AAMC_Raw_Data_for_FY22[[#This Row],[Median]]","v":1022564},{"$f":"(((AAMC_Raw_Data_for_FY22[[#This Row],[75th]]-AAMC_Raw_Data_for_FY22[[#This Row],[Median]])/25)*15) + AAMC_Raw_Data_for_FY22[[#This Row],[Median]]","v":1042707},{"$f":"(((AAMC_Raw_Data_for_FY22[[#This Row],[75th]]-AAMC_Raw_Data_for_FY22[[#This Row],[Median]])/25)*20) + AAMC_Raw_Data_for_FY22[[#This Row],[Median]]","v":1062850},1082993,{"$f":"(((AAMC_Raw_Data_for_FY22[[#This Row],[75th]]-AAMC_Raw_Data_for_FY22[[#This Row],[Median]])/25)*30) + AAMC_Raw_Data_for_FY22[[#This Row],[Median]]","v":1103136},{"$f":"(((AAMC_Raw_Data_for_FY22[[#This Row],[75th]]-AAMC_Raw_Data_for_FY22[[#This Row],[Median]])/25)*35) + AAMC_Raw_Data_for_FY22[[#This Row],[Median]]","v":1123279},{"$f":"(((AAMC_Raw_Data_for_FY22[[#This Row],[75th]]-AAMC_Raw_Data_for_FY22[[#This Row],[Median]])/25)*40) + AAMC_Raw_Data_for_FY22[[#This Row],[Median]]","v":1143422}]
[{"$f":"AAMC_Raw_Data_for_FY22[[#This Row],[Source]]&AAMC_Raw_Data_for_FY22[[#This Row],[Type]]&AAMC_Raw_Data_for_FY22[[#This Row],[School Subset]]&AAMC_Raw_Data_for_FY22[[#This Row],[Rank]]&AAMC_Raw_Data_for_FY22[[#This Row],[Degree]]&AAMC_Raw_Data_for_FY22[[#This Row],[Department / Specialty]]&\"L\"","v":"AAMCAcademicPrivateChairMDTransplant SurgeryL"},"Transplant Surgery",1,"AAMC","Academic","Private","Chair","MD","2021-2022",null,{"$f":"(((AAMC_Raw_Data_for_FY22[[#This Row],[Median]]-AAMC_Raw_Data_for_FY22[[#This Row],[25th]])/25)*5) + AAMC_Raw_Data_for_FY22[[#This Row],[25th]]","v":0},{"$f":"(((AAMC_Raw_Data_for_FY22[[#This Row],[Median]]-AAMC_Raw_Data_for_FY22[[#This Row],[25th]])/25)*10) + AAMC_Raw_Data_for_FY22[[#This Row],[25th]]","v":0},{"$f":"(((AAMC_Raw_Data_for_FY22[[#This Row],[Median]]-AAMC_Raw_Data_for_FY22[[#This Row],[25th]])/25)*15) + AAMC_Raw_Data_for_FY22[[#This Row],[25th]]","v":0},{"$f":"(((AAMC_Raw_Data_for_FY22[[#This Row],[Median]]-AAMC_Raw_Data_for_FY22[[#This Row],[25th]])/25)*20) + AAMC_Raw_Data_for_FY22[[#This Row],[25th]]","v":0},null,{"$f":"(((AAMC_Raw_Data_for_FY22[[#This Row],[75th]]-AAMC_Raw_Data_for_FY22[[#This Row],[Median]])/25)*5) + AAMC_Raw_Data_for_FY22[[#This Row],[Median]]","v":0},{"$f":"(((AAMC_Raw_Data_for_FY22[[#This Row],[75th]]-AAMC_Raw_Data_for_FY22[[#This Row],[Median]])/25)*10) + AAMC_Raw_Data_for_FY22[[#This Row],[Median]]","v":0},{"$f":"(((AAMC_Raw_Data_for_FY22[[#This Row],[75th]]-AAMC_Raw_Data_for_FY22[[#This Row],[Median]])/25)*15) + AAMC_Raw_Data_for_FY22[[#This Row],[Median]]","v":0},{"$f":"(((AAMC_Raw_Data_for_FY22[[#This Row],[75th]]-AAMC_Raw_Data_for_FY22[[#This Row],[Median]])/25)*20) + AAMC_Raw_Data_for_FY22[[#This Row],[Median]]","v":0},null,{"$f":"(((AAMC_Raw_Data_for_FY22[[#This Row],[75th]]-AAMC_Raw_Data_for_FY22[[#This Row],[Median]])/25)*30) + AAMC_Raw_Data_for_FY22[[#This Row],[Median]]","v":0},{"$f":"(((AAMC_Raw_Data_for_FY22[[#This Row],[75th]]-AAMC_Raw_Data_for_FY22[[#This Row],[Median]])/25)*35) + AAMC_Raw_Data_for_FY22[[#This Row],[Median]]","v":0},{"$f":"(((AAMC_Raw_Data_for_FY22[[#This Row],[75th]]-AAMC_Raw_Data_for_FY22[[#This Row],[Median]])/25)*40) + AAMC_Raw_Data_for_FY22[[#This Row],[Median]]","v":0}]
[{"$f":"AAMC_Raw_Data_for_FY22[[#This Row],[Source]]&AAMC_Raw_Data_for_FY22[[#This Row],[Type]]&AAMC_Raw_Data_for_FY22[[#This Row],[School Subset]]&AAMC_Raw_Data_for_FY22[[#This Row],[Rank]]&AAMC_Raw_Data_for_FY22[[#This Row],[Degree]]&AAMC_Raw_Data_for_FY22[[#This Row],[Department / Specialty]]&\"L\"","v":"AAMCAcademicPrivateInstructorMDTrauma/Critical Care SurgeryL"},"Trauma/Critical Care Surgery",5,"AAMC","Academic","Private","Instructor","MD","2021-2022",157920,{"$f":"(((AAMC_Raw_Data_for_FY22[[#This Row],[Median]]-AAMC_Raw_Data_for_FY22[[#This Row],[25th]])/25)*5) + AAMC_Raw_Data_for_FY22[[#This Row],[25th]]","v":197692.79999999999},{"$f":"(((AAMC_Raw_Data_for_FY22[[#This Row],[Median]]-AAMC_Raw_Data_for_FY22[[#This Row],[25th]])/25)*10) + AAMC_Raw_Data_for_FY22[[#This Row],[25th]]","v":237465.60000000001},{"$f":"(((AAMC_Raw_Data_for_FY22[[#This Row],[Median]]-AAMC_Raw_Data_for_FY22[[#This Row],[25th]])/25)*15) + AAMC_Raw_Data_for_FY22[[#This Row],[25th]]","v":277238.40000000002},{"$f":"(((AAMC_Raw_Data_for_FY22[[#This Row],[Median]]-AAMC_Raw_Data_for_FY22[[#This Row],[25th]])/25)*20) + AAMC_Raw_Data_for_FY22[[#This Row],[25th]]","v":317011.20000000001},356784,{"$f":"(((AAMC_Raw_Data_for_FY22[[#This Row],[75th]]-AAMC_Raw_Data_for_FY22[[#This Row],[Median]])/25)*5) + AAMC_Raw_Data_for_FY22[[#This Row],[Median]]","v":384788.6},{"$f":"(((AAMC_Raw_Data_for_FY22[[#This Row],[75th]]-AAMC_Raw_Data_for_FY22[[#This Row],[Median]])/25)*10) + AAMC_Raw_Data_for_FY22[[#This Row],[Median]]","v":412793.2},{"$f":"(((AAMC_Raw_Data_for_FY22[[#This Row],[75th]]-AAMC_Raw_Data_for_FY22[[#This Row],[Median]])/25)*15) + AAMC_Raw_Data_for_FY22[[#This Row],[Median]]","v":440797.8},{"$f":"(((AAMC_Raw_Data_for_FY22[[#This Row],[75th]]-AAMC_Raw_Data_for_FY22[[#This Row],[Median]])/25)*20) + AAMC_Raw_Data_for_FY22[[#This Row],[Median]]","v":468802.4},496807,{"$f":"(((AAMC_Raw_Data_for_FY22[[#This Row],[75th]]-AAMC_Raw_Data_for_FY22[[#This Row],[Median]])/25)*30) + AAMC_Raw_Data_for_FY22[[#This Row],[Median]]","v":524811.6},{"$f":"(((AAMC_Raw_Data_for_FY22[[#This Row],[75th]]-AAMC_Raw_Data_for_FY22[[#This Row],[Median]])/25)*35) + AAMC_Raw_Data_for_FY22[[#This Row],[Median]]","v":552816.19999999995},{"$f":"(((AAMC_Raw_Data_for_FY22[[#This Row],[75th]]-AAMC_Raw_Data_for_FY22[[#This Row],[Median]])/25)*40) + AAMC_Raw_Data_for_FY22[[#This Row],[Median]]","v":580820.80000000005}]
[{"$f":"AAMC_Raw_Data_for_FY22[[#This Row],[Source]]&AAMC_Raw_Data_for_FY22[[#This Row],[Type]]&AAMC_Raw_Data_for_FY22[[#This Row],[School Subset]]&AAMC_Raw_Data_for_FY22[[#This Row],[Rank]]&AAMC_Raw_Data_for_FY22[[#This Row],[Degree]]&AAMC_Raw_Data_for_FY22[[#This Row],[Department / Specialty]]&\"L\"","v":"AAMCAcademicPrivateAssistantMDTrauma/Critical Care SurgeryL"},"Trauma/Critical Care Surgery",4,"AAMC","Academic","Private","Assistant","MD","2021-2022",361265,{"$f":"(((AAMC_Raw_Data_for_FY22[[#This Row],[Median]]-AAMC_Raw_Data_for_FY22[[#This Row],[25th]])/25)*5) + AAMC_Raw_Data_for_FY22[[#This Row],[25th]]","v":369318.6},{"$f":"(((AAMC_Raw_Data_for_FY22[[#This Row],[Median]]-AAMC_Raw_Data_for_FY22[[#This Row],[25th]])/25)*10) + AAMC_Raw_Data_for_FY22[[#This Row],[25th]]","v":377372.2},{"$f":"(((AAMC_Raw_Data_for_FY22[[#This Row],[Median]]-AAMC_Raw_Data_for_FY22[[#This Row],[25th]])/25)*15) + AAMC_Raw_Data_for_FY22[[#This Row],[25th]]","v":385425.8},{"$f":"(((AAMC_Raw_Data_for_FY22[[#This Row],[Median]]-AAMC_Raw_Data_for_FY22[[#This Row],[25th]])/25)*20) + AAMC_Raw_Data_for_FY22[[#This Row],[25th]]","v":393479.4},401533,{"$f":"(((AAMC_Raw_Data_for_FY22[[#This Row],[75th]]-AAMC_Raw_Data_for_FY22[[#This Row],[Median]])/25)*5) + AAMC_Raw_Data_for_FY22[[#This Row],[Median]]","v":411310.8},{"$f":"(((AAMC_Raw_Data_for_FY22[[#This Row],[75th]]-AAMC_Raw_Data_for_FY22[[#This Row],[Median]])/25)*10) + AAMC_Raw_Data_for_FY22[[#This Row],[Median]]","v":421088.6},{"$f":"(((AAMC_Raw_Data_for_FY22[[#This Row],[75th]]-AAMC_Raw_Data_for_FY22[[#This Row],[Median]])/25)*15) + AAMC_Raw_Data_for_FY22[[#This Row],[Median]]","v":430866.4},{"$f":"(((AAMC_Raw_Data_for_FY22[[#This Row],[75th]]-AAMC_Raw_Data_for_FY22[[#This Row],[Median]])/25)*20) + AAMC_Raw_Data_for_FY22[[#This Row],[Median]]","v":440644.2},450422,{"$f":"(((AAMC_Raw_Data_for_FY22[[#This Row],[75th]]-AAMC_Raw_Data_for_FY22[[#This Row],[Median]])/25)*30) + AAMC_Raw_Data_for_FY22[[#This Row],[Median]]","v":460199.8},{"$f":"(((AAMC_Raw_Data_for_FY22[[#This Row],[75th]]-AAMC_Raw_Data_for_FY22[[#This Row],[Median]])/25)*35) + AAMC_Raw_Data_for_FY22[[#This Row],[Median]]","v":469977.59999999998},{"$f":"(((AAMC_Raw_Data_for_FY22[[#This Row],[75th]]-AAMC_Raw_Data_for_FY22[[#This Row],[Median]])/25)*40) + AAMC_Raw_Data_for_FY22[[#This Row],[Median]]","v":479755.4}]
[{"$f":"AAMC_Raw_Data_for_FY22[[#This Row],[Source]]&AAMC_Raw_Data_for_FY22[[#This Row],[Type]]&AAMC_Raw_Data_for_FY22[[#This Row],[School Subset]]&AAMC_Raw_Data_for_FY22[[#This Row],[Rank]]&AAMC_Raw_Data_for_FY22[[#This Row],[Degree]]&AAMC_Raw_Data_for_FY22[[#This Row],[Department / Specialty]]&\"L\"","v":"AAMCAcademicPrivateAssociateMDTrauma/Critical Care SurgeryL"},"Trauma/Critical Care Surgery",3,"AAMC","Academic","Private","Associate","MD","2021-2022",423777,{"$f":"(((AAMC_Raw_Data_for_FY22[[#This Row],[Median]]-AAMC_Raw_Data_for_FY22[[#This Row],[25th]])/25)*5) + AAMC_Raw_Data_for_FY22[[#This Row],[25th]]","v":438119.2},{"$f":"(((AAMC_Raw_Data_for_FY22[[#This Row],[Median]]-AAMC_Raw_Data_for_FY22[[#This Row],[25th]])/25)*10) + AAMC_Raw_Data_for_FY22[[#This Row],[25th]]","v":452461.4},{"$f":"(((AAMC_Raw_Data_for_FY22[[#This Row],[Median]]-AAMC_Raw_Data_for_FY22[[#This Row],[25th]])/25)*15) + AAMC_Raw_Data_for_FY22[[#This Row],[25th]]","v":466803.6},{"$f":"(((AAMC_Raw_Data_for_FY22[[#This Row],[Median]]-AAMC_Raw_Data_for_FY22[[#This Row],[25th]])/25)*20) + AAMC_Raw_Data_for_FY22[[#This Row],[25th]]","v":481145.8},495488,{"$f":"(((AAMC_Raw_Data_for_FY22[[#This Row],[75th]]-AAMC_Raw_Data_for_FY22[[#This Row],[Median]])/25)*5) + AAMC_Raw_Data_for_FY22[[#This Row],[Median]]","v":503910.40000000002},{"$f":"(((AAMC_Raw_Data_for_FY22[[#This Row],[75th]]-AAMC_Raw_Data_for_FY22[[#This Row],[Median]])/25)*10) + AAMC_Raw_Data_for_FY22[[#This Row],[Median]]","v":512332.79999999999},{"$f":"(((AAMC_Raw_Data_for_FY22[[#This Row],[75th]]-AAMC_Raw_Data_for_FY22[[#This Row],[Median]])/25)*15) + AAMC_Raw_Data_for_FY22[[#This Row],[Median]]","v":520755.20000000001},{"$f":"(((AAMC_Raw_Data_for_FY22[[#This Row],[75th]]-AAMC_Raw_Data_for_FY22[[#This Row],[Median]])/25)*20) + AAMC_Raw_Data_for_FY22[[#This Row],[Median]]","v":529177.59999999998},537600,{"$f":"(((AAMC_Raw_Data_for_FY22[[#This Row],[75th]]-AAMC_Raw_Data_for_FY22[[#This Row],[Median]])/25)*30) + AAMC_Raw_Data_for_FY22[[#This Row],[Median]]","v":546022.40000000002},{"$f":"(((AAMC_Raw_Data_for_FY22[[#This Row],[75th]]-AAMC_Raw_Data_for_FY22[[#This Row],[Median]])/25)*35) + AAMC_Raw_Data_for_FY22[[#This Row],[Median]]","v":554444.80000000005},{"$f":"(((AAMC_Raw_Data_for_FY22[[#This Row],[75th]]-AAMC_Raw_Data_for_FY22[[#This Row],[Median]])/25)*40) + AAMC_Raw_Data_for_FY22[[#This Row],[Median]]","v":562867.19999999995}]
[{"$f":"AAMC_Raw_Data_for_FY22[[#This Row],[Source]]&AAMC_Raw_Data_for_FY22[[#This Row],[Type]]&AAMC_Raw_Data_for_FY22[[#This Row],[School Subset]]&AAMC_Raw_Data_for_FY22[[#This Row],[Rank]]&AAMC_Raw_Data_for_FY22[[#This Row],[Degree]]&AAMC_Raw_Data_for_FY22[[#This Row],[Department / Specialty]]&\"L\"","v":"AAMCAcademicPrivateProfessorMDTrauma/Critical Care SurgeryL"},"Trauma/Critical Care Surgery",2,"AAMC","Academic","Private","Professor","MD","2021-2022",453868,{"$f":"(((AAMC_Raw_Data_for_FY22[[#This Row],[Median]]-AAMC_Raw_Data_for_FY22[[#This Row],[25th]])/25)*5) + AAMC_Raw_Data_for_FY22[[#This Row],[25th]]","v":469710.6},{"$f":"(((AAMC_Raw_Data_for_FY22[[#This Row],[Median]]-AAMC_Raw_Data_for_FY22[[#This Row],[25th]])/25)*10) + AAMC_Raw_Data_for_FY22[[#This Row],[25th]]","v":485553.2},{"$f":"(((AAMC_Raw_Data_for_FY22[[#This Row],[Median]]-AAMC_Raw_Data_for_FY22[[#This Row],[25th]])/25)*15) + AAMC_Raw_Data_for_FY22[[#This Row],[25th]]","v":501395.8},{"$f":"(((AAMC_Raw_Data_for_FY22[[#This Row],[Median]]-AAMC_Raw_Data_for_FY22[[#This Row],[25th]])/25)*20) + AAMC_Raw_Data_for_FY22[[#This Row],[25th]]","v":517238.4},533081,{"$f":"(((AAMC_Raw_Data_for_FY22[[#This Row],[75th]]-AAMC_Raw_Data_for_FY22[[#This Row],[Median]])/25)*5) + AAMC_Raw_Data_for_FY22[[#This Row],[Median]]","v":552856.4},{"$f":"(((AAMC_Raw_Data_for_FY22[[#This Row],[75th]]-AAMC_Raw_Data_for_FY22[[#This Row],[Median]])/25)*10) + AAMC_Raw_Data_for_FY22[[#This Row],[Median]]","v":572631.80000000005},{"$f":"(((AAMC_Raw_Data_for_FY22[[#This Row],[75th]]-AAMC_Raw_Data_for_FY22[[#This Row],[Median]])/25)*15) + AAMC_Raw_Data_for_FY22[[#This Row],[Median]]","v":592407.19999999995},{"$f":"(((AAMC_Raw_Data_for_FY22[[#This Row],[75th]]-AAMC_Raw_Data_for_FY22[[#This Row],[Median]])/25)*20) + AAMC_Raw_Data_for_FY22[[#This Row],[Median]]","v":612182.6},631958,{"$f":"(((AAMC_Raw_Data_for_FY22[[#This Row],[75th]]-AAMC_Raw_Data_for_FY22[[#This Row],[Median]])/25)*30) + AAMC_Raw_Data_for_FY22[[#This Row],[Median]]","v":651733.4},{"$f":"(((AAMC_Raw_Data_for_FY22[[#This Row],[75th]]-AAMC_Raw_Data_for_FY22[[#This Row],[Median]])/25)*35) + AAMC_Raw_Data_for_FY22[[#This Row],[Median]]","v":671508.8},{"$f":"(((AAMC_Raw_Data_for_FY22[[#This Row],[75th]]-AAMC_Raw_Data_for_FY22[[#This Row],[Median]])/25)*40) + AAMC_Raw_Data_for_FY22[[#This Row],[Median]]","v":691284.2}]
[{"$f":"AAMC_Raw_Data_for_FY22[[#This Row],[Source]]&AAMC_Raw_Data_for_FY22[[#This Row],[Type]]&AAMC_Raw_Data_for_FY22[[#This Row],[School Subset]]&AAMC_Raw_Data_for_FY22[[#This Row],[Rank]]&AAMC_Raw_Data_for_FY22[[#This Row],[Degree]]&AAMC_Raw_Data_for_FY22[[#This Row],[Department / Specialty]]&\"L\"","v":"AAMCAcademicPrivateChiefMDTrauma/Critical Care SurgeryL"},"Trauma/Critical Care Surgery",6,"AAMC","Academic","Private","Chief","MD","2021-2022",553408,{"$f":"(((AAMC_Raw_Data_for_FY22[[#This Row],[Median]]-AAMC_Raw_Data_for_FY22[[#This Row],[25th]])/25)*5) + AAMC_Raw_Data_for_FY22[[#This Row],[25th]]","v":574470.6},{"$f":"(((AAMC_Raw_Data_for_FY22[[#This Row],[Median]]-AAMC_Raw_Data_for_FY22[[#This Row],[25th]])/25)*10) + AAMC_Raw_Data_for_FY22[[#This Row],[25th]]","v":595533.19999999995},{"$f":"(((AAMC_Raw_Data_for_FY22[[#This Row],[Median]]-AAMC_Raw_Data_for_FY22[[#This Row],[25th]])/25)*15) + AAMC_Raw_Data_for_FY22[[#This Row],[25th]]","v":616595.80000000005},{"$f":"(((AAMC_Raw_Data_for_FY22[[#This Row],[Median]]-AAMC_Raw_Data_for_FY22[[#This Row],[25th]])/25)*20) + AAMC_Raw_Data_for_FY22[[#This Row],[25th]]","v":637658.4},658721,{"$f":"(((AAMC_Raw_Data_for_FY22[[#This Row],[75th]]-AAMC_Raw_Data_for_FY22[[#This Row],[Median]])/25)*5) + AAMC_Raw_Data_for_FY22[[#This Row],[Median]]","v":672713.8},{"$f":"(((AAMC_Raw_Data_for_FY22[[#This Row],[75th]]-AAMC_Raw_Data_for_FY22[[#This Row],[Median]])/25)*10) + AAMC_Raw_Data_for_FY22[[#This Row],[Median]]","v":686706.6},{"$f":"(((AAMC_Raw_Data_for_FY22[[#This Row],[75th]]-AAMC_Raw_Data_for_FY22[[#This Row],[Median]])/25)*15) + AAMC_Raw_Data_for_FY22[[#This Row],[Median]]","v":700699.4},{"$f":"(((AAMC_Raw_Data_for_FY22[[#This Row],[75th]]-AAMC_Raw_Data_for_FY22[[#This Row],[Median]])/25)*20) + AAMC_Raw_Data_for_FY22[[#This Row],[Median]]","v":714692.2},728685,{"$f":"(((AAMC_Raw_Data_for_FY22[[#This Row],[75th]]-AAMC_Raw_Data_for_FY22[[#This Row],[Median]])/25)*30) + AAMC_Raw_Data_for_FY22[[#This Row],[Median]]","v":742677.8},{"$f":"(((AAMC_Raw_Data_for_FY22[[#This Row],[75th]]-AAMC_Raw_Data_for_FY22[[#This Row],[Median]])/25)*35) + AAMC_Raw_Data_for_FY22[[#This Row],[Median]]","v":756670.6},{"$f":"(((AAMC_Raw_Data_for_FY22[[#This Row],[75th]]-AAMC_Raw_Data_for_FY22[[#This Row],[Median]])/25)*40) + AAMC_Raw_Data_for_FY22[[#This Row],[Median]]","v":770663.4}]
[{"$f":"AAMC_Raw_Data_for_FY22[[#This Row],[Source]]&AAMC_Raw_Data_for_FY22[[#This Row],[Type]]&AAMC_Raw_Data_for_FY22[[#This Row],[School Subset]]&AAMC_Raw_Data_for_FY22[[#This Row],[Rank]]&AAMC_Raw_Data_for_FY22[[#This Row],[Degree]]&AAMC_Raw_Data_for_FY22[[#This Row],[Department / Specialty]]&\"L\"","v":"AAMCAcademicPrivateChairMDTrauma/Critical Care SurgeryL"},"Trauma/Critical Care Surgery",1,"AAMC","Academic","Private","Chair","MD","2021-2022",null,{"$f":"(((AAMC_Raw_Data_for_FY22[[#This Row],[Median]]-AAMC_Raw_Data_for_FY22[[#This Row],[25th]])/25)*5) + AAMC_Raw_Data_for_FY22[[#This Row],[25th]]","v":0},{"$f":"(((AAMC_Raw_Data_for_FY22[[#This Row],[Median]]-AAMC_Raw_Data_for_FY22[[#This Row],[25th]])/25)*10) + AAMC_Raw_Data_for_FY22[[#This Row],[25th]]","v":0},{"$f":"(((AAMC_Raw_Data_for_FY22[[#This Row],[Median]]-AAMC_Raw_Data_for_FY22[[#This Row],[25th]])/25)*15) + AAMC_Raw_Data_for_FY22[[#This Row],[25th]]","v":0},{"$f":"(((AAMC_Raw_Data_for_FY22[[#This Row],[Median]]-AAMC_Raw_Data_for_FY22[[#This Row],[25th]])/25)*20) + AAMC_Raw_Data_for_FY22[[#This Row],[25th]]","v":0},null,{"$f":"(((AAMC_Raw_Data_for_FY22[[#This Row],[75th]]-AAMC_Raw_Data_for_FY22[[#This Row],[Median]])/25)*5) + AAMC_Raw_Data_for_FY22[[#This Row],[Median]]","v":0},{"$f":"(((AAMC_Raw_Data_for_FY22[[#This Row],[75th]]-AAMC_Raw_Data_for_FY22[[#This Row],[Median]])/25)*10) + AAMC_Raw_Data_for_FY22[[#This Row],[Median]]","v":0},{"$f":"(((AAMC_Raw_Data_for_FY22[[#This Row],[75th]]-AAMC_Raw_Data_for_FY22[[#This Row],[Median]])/25)*15) + AAMC_Raw_Data_for_FY22[[#This Row],[Median]]","v":0},{"$f":"(((AAMC_Raw_Data_for_FY22[[#This Row],[75th]]-AAMC_Raw_Data_for_FY22[[#This Row],[Median]])/25)*20) + AAMC_Raw_Data_for_FY22[[#This Row],[Median]]","v":0},null,{"$f":"(((AAMC_Raw_Data_for_FY22[[#This Row],[75th]]-AAMC_Raw_Data_for_FY22[[#This Row],[Median]])/25)*30) + AAMC_Raw_Data_for_FY22[[#This Row],[Median]]","v":0},{"$f":"(((AAMC_Raw_Data_for_FY22[[#This Row],[75th]]-AAMC_Raw_Data_for_FY22[[#This Row],[Median]])/25)*35) + AAMC_Raw_Data_for_FY22[[#This Row],[Median]]","v":0},{"$f":"(((AAMC_Raw_Data_for_FY22[[#This Row],[75th]]-AAMC_Raw_Data_for_FY22[[#This Row],[Median]])/25)*40) + AAMC_Raw_Data_for_FY22[[#This Row],[Median]]","v":0}]
[{"$f":"AAMC_Raw_Data_for_FY22[[#This Row],[Source]]&AAMC_Raw_Data_for_FY22[[#This Row],[Type]]&AAMC_Raw_Data_for_FY22[[#This Row],[School Subset]]&AAMC_Raw_Data_for_FY22[[#This Row],[Rank]]&AAMC_Raw_Data_for_FY22[[#This Row],[Degree]]&AAMC_Raw_Data_for_FY22[[#This Row],[Department / Specialty]]&\"L\"","v":"AAMCAcademicPrivateInstructorMDUrologyL"},"Urology",5,"AAMC","Academic","Private","Instructor","MD","2021-2022",75202,{"$f":"(((AAMC_Raw_Data_for_FY22[[#This Row],[Median]]-AAMC_Raw_Data_for_FY22[[#This Row],[25th]])/25)*5) + AAMC_Raw_Data_for_FY22[[#This Row],[25th]]","v":90392.4},{"$f":"(((AAMC_Raw_Data_for_FY22[[#This Row],[Median]]-AAMC_Raw_Data_for_FY22[[#This Row],[25th]])/25)*10) + AAMC_Raw_Data_for_FY22[[#This Row],[25th]]","v":105582.8},{"$f":"(((AAMC_Raw_Data_for_FY22[[#This Row],[Median]]-AAMC_Raw_Data_for_FY22[[#This Row],[25th]])/25)*15) + AAMC_Raw_Data_for_FY22[[#This Row],[25th]]","v":120773.2},{"$f":"(((AAMC_Raw_Data_for_FY22[[#This Row],[Median]]-AAMC_Raw_Data_for_FY22[[#This Row],[25th]])/25)*20) + AAMC_Raw_Data_for_FY22[[#This Row],[25th]]","v":135963.6},151154,{"$f":"(((AAMC_Raw_Data_for_FY22[[#This Row],[75th]]-AAMC_Raw_Data_for_FY22[[#This Row],[Median]])/25)*5) + AAMC_Raw_Data_for_FY22[[#This Row],[Median]]","v":195444.8},{"$f":"(((AAMC_Raw_Data_for_FY22[[#This Row],[75th]]-AAMC_Raw_Data_for_FY22[[#This Row],[Median]])/25)*10) + AAMC_Raw_Data_for_FY22[[#This Row],[Median]]","v":239735.6},{"$f":"(((AAMC_Raw_Data_for_FY22[[#This Row],[75th]]-AAMC_Raw_Data_for_FY22[[#This Row],[Median]])/25)*15) + AAMC_Raw_Data_for_FY22[[#This Row],[Median]]","v":284026.40000000002},{"$f":"(((AAMC_Raw_Data_for_FY22[[#This Row],[75th]]-AAMC_Raw_Data_for_FY22[[#This Row],[Median]])/25)*20) + AAMC_Raw_Data_for_FY22[[#This Row],[Median]]","v":328317.2},372608,{"$f":"(((AAMC_Raw_Data_for_FY22[[#This Row],[75th]]-AAMC_Raw_Data_for_FY22[[#This Row],[Median]])/25)*30) + AAMC_Raw_Data_for_FY22[[#This Row],[Median]]","v":416898.8},{"$f":"(((AAMC_Raw_Data_for_FY22[[#This Row],[75th]]-AAMC_Raw_Data_for_FY22[[#This Row],[Median]])/25)*35) + AAMC_Raw_Data_for_FY22[[#This Row],[Median]]","v":461189.6},{"$f":"(((AAMC_Raw_Data_for_FY22[[#This Row],[75th]]-AAMC_Raw_Data_for_FY22[[#This Row],[Median]])/25)*40) + AAMC_Raw_Data_for_FY22[[#This Row],[Median]]","v":505480.4}]
[{"$f":"AAMC_Raw_Data_for_FY22[[#This Row],[Source]]&AAMC_Raw_Data_for_FY22[[#This Row],[Type]]&AAMC_Raw_Data_for_FY22[[#This Row],[School Subset]]&AAMC_Raw_Data_for_FY22[[#This Row],[Rank]]&AAMC_Raw_Data_for_FY22[[#This Row],[Degree]]&AAMC_Raw_Data_for_FY22[[#This Row],[Department / Specialty]]&\"L\"","v":"AAMCAcademicPrivateAssistantMDUrologyL"},"Urology",4,"AAMC","Academic","Private","Assistant","MD","2021-2022",333101,{"$f":"(((AAMC_Raw_Data_for_FY22[[#This Row],[Median]]-AAMC_Raw_Data_for_FY22[[#This Row],[25th]])/25)*5) + AAMC_Raw_Data_for_FY22[[#This Row],[25th]]","v":345443.6},{"$f":"(((AAMC_Raw_Data_for_FY22[[#This Row],[Median]]-AAMC_Raw_Data_for_FY22[[#This Row],[25th]])/25)*10) + AAMC_Raw_Data_for_FY22[[#This Row],[25th]]","v":357786.2},{"$f":"(((AAMC_Raw_Data_for_FY22[[#This Row],[Median]]-AAMC_Raw_Data_for_FY22[[#This Row],[25th]])/25)*15) + AAMC_Raw_Data_for_FY22[[#This Row],[25th]]","v":370128.8},{"$f":"(((AAMC_Raw_Data_for_FY22[[#This Row],[Median]]-AAMC_Raw_Data_for_FY22[[#This Row],[25th]])/25)*20) + AAMC_Raw_Data_for_FY22[[#This Row],[25th]]","v":382471.4},394814,{"$f":"(((AAMC_Raw_Data_for_FY22[[#This Row],[75th]]-AAMC_Raw_Data_for_FY22[[#This Row],[Median]])/25)*5) + AAMC_Raw_Data_for_FY22[[#This Row],[Median]]","v":408986.2},{"$f":"(((AAMC_Raw_Data_for_FY22[[#This Row],[75th]]-AAMC_Raw_Data_for_FY22[[#This Row],[Median]])/25)*10) + AAMC_Raw_Data_for_FY22[[#This Row],[Median]]","v":423158.4},{"$f":"(((AAMC_Raw_Data_for_FY22[[#This Row],[75th]]-AAMC_Raw_Data_for_FY22[[#This Row],[Median]])/25)*15) + AAMC_Raw_Data_for_FY22[[#This Row],[Median]]","v":437330.6},{"$f":"(((AAMC_Raw_Data_for_FY22[[#This Row],[75th]]-AAMC_Raw_Data_for_FY22[[#This Row],[Median]])/25)*20) + AAMC_Raw_Data_for_FY22[[#This Row],[Median]]","v":451502.8},465675,{"$f":"(((AAMC_Raw_Data_for_FY22[[#This Row],[75th]]-AAMC_Raw_Data_for_FY22[[#This Row],[Median]])/25)*30) + AAMC_Raw_Data_for_FY22[[#This Row],[Median]]","v":479847.2},{"$f":"(((AAMC_Raw_Data_for_FY22[[#This Row],[75th]]-AAMC_Raw_Data_for_FY22[[#This Row],[Median]])/25)*35) + AAMC_Raw_Data_for_FY22[[#This Row],[Median]]","v":494019.4},{"$f":"(((AAMC_Raw_Data_for_FY22[[#This Row],[75th]]-AAMC_Raw_Data_for_FY22[[#This Row],[Median]])/25)*40) + AAMC_Raw_Data_for_FY22[[#This Row],[Median]]","v":508191.6}]
[{"$f":"AAMC_Raw_Data_for_FY22[[#This Row],[Source]]&AAMC_Raw_Data_for_FY22[[#This Row],[Type]]&AAMC_Raw_Data_for_FY22[[#This Row],[School Subset]]&AAMC_Raw_Data_for_FY22[[#This Row],[Rank]]&AAMC_Raw_Data_for_FY22[[#This Row],[Degree]]&AAMC_Raw_Data_for_FY22[[#This Row],[Department / Specialty]]&\"L\"","v":"AAMCAcademicPrivateAssociateMDUrologyL"},"Urology",3,"AAMC","Academic","Private","Associate","MD","2021-2022",404201,{"$f":"(((AAMC_Raw_Data_for_FY22[[#This Row],[Median]]-AAMC_Raw_Data_for_FY22[[#This Row],[25th]])/25)*5) + AAMC_Raw_Data_for_FY22[[#This Row],[25th]]","v":418255.2},{"$f":"(((AAMC_Raw_Data_for_FY22[[#This Row],[Median]]-AAMC_Raw_Data_for_FY22[[#This Row],[25th]])/25)*10) + AAMC_Raw_Data_for_FY22[[#This Row],[25th]]","v":432309.4},{"$f":"(((AAMC_Raw_Data_for_FY22[[#This Row],[Median]]-AAMC_Raw_Data_for_FY22[[#This Row],[25th]])/25)*15) + AAMC_Raw_Data_for_FY22[[#This Row],[25th]]","v":446363.6},{"$f":"(((AAMC_Raw_Data_for_FY22[[#This Row],[Median]]-AAMC_Raw_Data_for_FY22[[#This Row],[25th]])/25)*20) + AAMC_Raw_Data_for_FY22[[#This Row],[25th]]","v":460417.8},474472,{"$f":"(((AAMC_Raw_Data_for_FY22[[#This Row],[75th]]-AAMC_Raw_Data_for_FY22[[#This Row],[Median]])/25)*5) + AAMC_Raw_Data_for_FY22[[#This Row],[Median]]","v":495703.8},{"$f":"(((AAMC_Raw_Data_for_FY22[[#This Row],[75th]]-AAMC_Raw_Data_for_FY22[[#This Row],[Median]])/25)*10) + AAMC_Raw_Data_for_FY22[[#This Row],[Median]]","v":516935.6},{"$f":"(((AAMC_Raw_Data_for_FY22[[#This Row],[75th]]-AAMC_Raw_Data_for_FY22[[#This Row],[Median]])/25)*15) + AAMC_Raw_Data_for_FY22[[#This Row],[Median]]","v":538167.4},{"$f":"(((AAMC_Raw_Data_for_FY22[[#This Row],[75th]]-AAMC_Raw_Data_for_FY22[[#This Row],[Median]])/25)*20) + AAMC_Raw_Data_for_FY22[[#This Row],[Median]]","v":559399.19999999995},580631,{"$f":"(((AAMC_Raw_Data_for_FY22[[#This Row],[75th]]-AAMC_Raw_Data_for_FY22[[#This Row],[Median]])/25)*30) + AAMC_Raw_Data_for_FY22[[#This Row],[Median]]","v":601862.80000000005},{"$f":"(((AAMC_Raw_Data_for_FY22[[#This Row],[75th]]-AAMC_Raw_Data_for_FY22[[#This Row],[Median]])/25)*35) + AAMC_Raw_Data_for_FY22[[#This Row],[Median]]","v":623094.6},{"$f":"(((AAMC_Raw_Data_for_FY22[[#This Row],[75th]]-AAMC_Raw_Data_for_FY22[[#This Row],[Median]])/25)*40) + AAMC_Raw_Data_for_FY22[[#This Row],[Median]]","v":644326.40000000002}]
[{"$f":"AAMC_Raw_Data_for_FY22[[#This Row],[Source]]&AAMC_Raw_Data_for_FY22[[#This Row],[Type]]&AAMC_Raw_Data_for_FY22[[#This Row],[School Subset]]&AAMC_Raw_Data_for_FY22[[#This Row],[Rank]]&AAMC_Raw_Data_for_FY22[[#This Row],[Degree]]&AAMC_Raw_Data_for_FY22[[#This Row],[Department / Specialty]]&\"L\"","v":"AAMCAcademicPrivateProfessorMDUrologyL"},"Urology",2,"AAMC","Academic","Private","Professor","MD","2021-2022",440310,{"$f":"(((AAMC_Raw_Data_for_FY22[[#This Row],[Median]]-AAMC_Raw_Data_for_FY22[[#This Row],[25th]])/25)*5) + AAMC_Raw_Data_for_FY22[[#This Row],[25th]]","v":460192.6},{"$f":"(((AAMC_Raw_Data_for_FY22[[#This Row],[Median]]-AAMC_Raw_Data_for_FY22[[#This Row],[25th]])/25)*10) + AAMC_Raw_Data_for_FY22[[#This Row],[25th]]","v":480075.2},{"$f":"(((AAMC_Raw_Data_for_FY22[[#This Row],[Median]]-AAMC_Raw_Data_for_FY22[[#This Row],[25th]])/25)*15) + AAMC_Raw_Data_for_FY22[[#This Row],[25th]]","v":499957.8},{"$f":"(((AAMC_Raw_Data_for_FY22[[#This Row],[Median]]-AAMC_Raw_Data_for_FY22[[#This Row],[25th]])/25)*20) + AAMC_Raw_Data_for_FY22[[#This Row],[25th]]","v":519840.4},539723,{"$f":"(((AAMC_Raw_Data_for_FY22[[#This Row],[75th]]-AAMC_Raw_Data_for_FY22[[#This Row],[Median]])/25)*5) + AAMC_Raw_Data_for_FY22[[#This Row],[Median]]","v":569728},{"$f":"(((AAMC_Raw_Data_for_FY22[[#This Row],[75th]]-AAMC_Raw_Data_for_FY22[[#This Row],[Median]])/25)*10) + AAMC_Raw_Data_for_FY22[[#This Row],[Median]]","v":599733},{"$f":"(((AAMC_Raw_Data_for_FY22[[#This Row],[75th]]-AAMC_Raw_Data_for_FY22[[#This Row],[Median]])/25)*15) + AAMC_Raw_Data_for_FY22[[#This Row],[Median]]","v":629738},{"$f":"(((AAMC_Raw_Data_for_FY22[[#This Row],[75th]]-AAMC_Raw_Data_for_FY22[[#This Row],[Median]])/25)*20) + AAMC_Raw_Data_for_FY22[[#This Row],[Median]]","v":659743},689748,{"$f":"(((AAMC_Raw_Data_for_FY22[[#This Row],[75th]]-AAMC_Raw_Data_for_FY22[[#This Row],[Median]])/25)*30) + AAMC_Raw_Data_for_FY22[[#This Row],[Median]]","v":719753},{"$f":"(((AAMC_Raw_Data_for_FY22[[#This Row],[75th]]-AAMC_Raw_Data_for_FY22[[#This Row],[Median]])/25)*35) + AAMC_Raw_Data_for_FY22[[#This Row],[Median]]","v":749758},{"$f":"(((AAMC_Raw_Data_for_FY22[[#This Row],[75th]]-AAMC_Raw_Data_for_FY22[[#This Row],[Median]])/25)*40) + AAMC_Raw_Data_for_FY22[[#This Row],[Median]]","v":779763}]
[{"$f":"AAMC_Raw_Data_for_FY22[[#This Row],[Source]]&AAMC_Raw_Data_for_FY22[[#This Row],[Type]]&AAMC_Raw_Data_for_FY22[[#This Row],[School Subset]]&AAMC_Raw_Data_for_FY22[[#This Row],[Rank]]&AAMC_Raw_Data_for_FY22[[#This Row],[Degree]]&AAMC_Raw_Data_for_FY22[[#This Row],[Department / Specialty]]&\"L\"","v":"AAMCAcademicPrivateChiefMDUrologyL"},"Urology",6,"AAMC","Academic","Private","Chief","MD","2021-2022",503780,{"$f":"(((AAMC_Raw_Data_for_FY22[[#This Row],[Median]]-AAMC_Raw_Data_for_FY22[[#This Row],[25th]])/25)*5) + AAMC_Raw_Data_for_FY22[[#This Row],[25th]]","v":549663.80000000005},{"$f":"(((AAMC_Raw_Data_for_FY22[[#This Row],[Median]]-AAMC_Raw_Data_for_FY22[[#This Row],[25th]])/25)*10) + AAMC_Raw_Data_for_FY22[[#This Row],[25th]]","v":595547.6},{"$f":"(((AAMC_Raw_Data_for_FY22[[#This Row],[Median]]-AAMC_Raw_Data_for_FY22[[#This Row],[25th]])/25)*15) + AAMC_Raw_Data_for_FY22[[#This Row],[25th]]","v":641431.4},{"$f":"(((AAMC_Raw_Data_for_FY22[[#This Row],[Median]]-AAMC_Raw_Data_for_FY22[[#This Row],[25th]])/25)*20) + AAMC_Raw_Data_for_FY22[[#This Row],[25th]]","v":687315.2},733199,{"$f":"(((AAMC_Raw_Data_for_FY22[[#This Row],[75th]]-AAMC_Raw_Data_for_FY22[[#This Row],[Median]])/25)*5) + AAMC_Raw_Data_for_FY22[[#This Row],[Median]]","v":806559.2},{"$f":"(((AAMC_Raw_Data_for_FY22[[#This Row],[75th]]-AAMC_Raw_Data_for_FY22[[#This Row],[Median]])/25)*10) + AAMC_Raw_Data_for_FY22[[#This Row],[Median]]","v":879919.4},{"$f":"(((AAMC_Raw_Data_for_FY22[[#This Row],[75th]]-AAMC_Raw_Data_for_FY22[[#This Row],[Median]])/25)*15) + AAMC_Raw_Data_for_FY22[[#This Row],[Median]]","v":953279.6},{"$f":"(((AAMC_Raw_Data_for_FY22[[#This Row],[75th]]-AAMC_Raw_Data_for_FY22[[#This Row],[Median]])/25)*20) + AAMC_Raw_Data_for_FY22[[#This Row],[Median]]","v":1026639.8},1100000,{"$f":"(((AAMC_Raw_Data_for_FY22[[#This Row],[75th]]-AAMC_Raw_Data_for_FY22[[#This Row],[Median]])/25)*30) + AAMC_Raw_Data_for_FY22[[#This Row],[Median]]","v":1173360.2},{"$f":"(((AAMC_Raw_Data_for_FY22[[#This Row],[75th]]-AAMC_Raw_Data_for_FY22[[#This Row],[Median]])/25)*35) + AAMC_Raw_Data_for_FY22[[#This Row],[Median]]","v":1246720.3999999999},{"$f":"(((AAMC_Raw_Data_for_FY22[[#This Row],[75th]]-AAMC_Raw_Data_for_FY22[[#This Row],[Median]])/25)*40) + AAMC_Raw_Data_for_FY22[[#This Row],[Median]]","v":1320080.6000000001}]
[{"$f":"AAMC_Raw_Data_for_FY22[[#This Row],[Source]]&AAMC_Raw_Data_for_FY22[[#This Row],[Type]]&AAMC_Raw_Data_for_FY22[[#This Row],[School Subset]]&AAMC_Raw_Data_for_FY22[[#This Row],[Rank]]&AAMC_Raw_Data_for_FY22[[#This Row],[Degree]]&AAMC_Raw_Data_for_FY22[[#This Row],[Department / Specialty]]&\"L\"","v":"AAMCAcademicPrivateChairMDUrologyL"},"Urology",1,"AAMC","Academic","Private","Chair","MD","2021-2022",724977,{"$f":"(((AAMC_Raw_Data_for_FY22[[#This Row],[Median]]-AAMC_Raw_Data_for_FY22[[#This Row],[25th]])/25)*5) + AAMC_Raw_Data_for_FY22[[#This Row],[25th]]","v":740815.2},{"$f":"(((AAMC_Raw_Data_for_FY22[[#This Row],[Median]]-AAMC_Raw_Data_for_FY22[[#This Row],[25th]])/25)*10) + AAMC_Raw_Data_for_FY22[[#This Row],[25th]]","v":756653.4},{"$f":"(((AAMC_Raw_Data_for_FY22[[#This Row],[Median]]-AAMC_Raw_Data_for_FY22[[#This Row],[25th]])/25)*15) + AAMC_Raw_Data_for_FY22[[#This Row],[25th]]","v":772491.6},{"$f":"(((AAMC_Raw_Data_for_FY22[[#This Row],[Median]]-AAMC_Raw_Data_for_FY22[[#This Row],[25th]])/25)*20) + AAMC_Raw_Data_for_FY22[[#This Row],[25th]]","v":788329.8},804168,{"$f":"(((AAMC_Raw_Data_for_FY22[[#This Row],[75th]]-AAMC_Raw_Data_for_FY22[[#This Row],[Median]])/25)*5) + AAMC_Raw_Data_for_FY22[[#This Row],[Median]]","v":895034.4},{"$f":"(((AAMC_Raw_Data_for_FY22[[#This Row],[75th]]-AAMC_Raw_Data_for_FY22[[#This Row],[Median]])/25)*10) + AAMC_Raw_Data_for_FY22[[#This Row],[Median]]","v":985900.8},{"$f":"(((AAMC_Raw_Data_for_FY22[[#This Row],[75th]]-AAMC_Raw_Data_for_FY22[[#This Row],[Median]])/25)*15) + AAMC_Raw_Data_for_FY22[[#This Row],[Median]]","v":1076767.2},{"$f":"(((AAMC_Raw_Data_for_FY22[[#This Row],[75th]]-AAMC_Raw_Data_for_FY22[[#This Row],[Median]])/25)*20) + AAMC_Raw_Data_for_FY22[[#This Row],[Median]]","v":1167633.6000000001},1258500,{"$f":"(((AAMC_Raw_Data_for_FY22[[#This Row],[75th]]-AAMC_Raw_Data_for_FY22[[#This Row],[Median]])/25)*30) + AAMC_Raw_Data_for_FY22[[#This Row],[Median]]","v":1349366.4},{"$f":"(((AAMC_Raw_Data_for_FY22[[#This Row],[75th]]-AAMC_Raw_Data_for_FY22[[#This Row],[Median]])/25)*35) + AAMC_Raw_Data_for_FY22[[#This Row],[Median]]","v":1440232.7999999998},{"$f":"(((AAMC_Raw_Data_for_FY22[[#This Row],[75th]]-AAMC_Raw_Data_for_FY22[[#This Row],[Median]])/25)*40) + AAMC_Raw_Data_for_FY22[[#This Row],[Median]]","v":1531099.2}]
[{"$f":"AAMC_Raw_Data_for_FY22[[#This Row],[Source]]&AAMC_Raw_Data_for_FY22[[#This Row],[Type]]&AAMC_Raw_Data_for_FY22[[#This Row],[School Subset]]&AAMC_Raw_Data_for_FY22[[#This Row],[Rank]]&AAMC_Raw_Data_for_FY22[[#This Row],[Degree]]&AAMC_Raw_Data_for_FY22[[#This Row],[Department / Specialty]]&\"L\"","v":"AAMCAcademicPrivateInstructorMDVascular SurgeryL"},"Vascular Surgery",5,"AAMC","Academic","Private","Instructor","MD","2021-2022",375000,{"$f":"(((AAMC_Raw_Data_for_FY22[[#This Row],[Median]]-AAMC_Raw_Data_for_FY22[[#This Row],[25th]])/25)*5) + AAMC_Raw_Data_for_FY22[[#This Row],[25th]]","v":385460.2},{"$f":"(((AAMC_Raw_Data_for_FY22[[#This Row],[Median]]-AAMC_Raw_Data_for_FY22[[#This Row],[25th]])/25)*10) + AAMC_Raw_Data_for_FY22[[#This Row],[25th]]","v":395920.4},{"$f":"(((AAMC_Raw_Data_for_FY22[[#This Row],[Median]]-AAMC_Raw_Data_for_FY22[[#This Row],[25th]])/25)*15) + AAMC_Raw_Data_for_FY22[[#This Row],[25th]]","v":406380.6},{"$f":"(((AAMC_Raw_Data_for_FY22[[#This Row],[Median]]-AAMC_Raw_Data_for_FY22[[#This Row],[25th]])/25)*20) + AAMC_Raw_Data_for_FY22[[#This Row],[25th]]","v":416840.8},427301,{"$f":"(((AAMC_Raw_Data_for_FY22[[#This Row],[75th]]-AAMC_Raw_Data_for_FY22[[#This Row],[Median]])/25)*5) + AAMC_Raw_Data_for_FY22[[#This Row],[Median]]","v":462006.6},{"$f":"(((AAMC_Raw_Data_for_FY22[[#This Row],[75th]]-AAMC_Raw_Data_for_FY22[[#This Row],[Median]])/25)*10) + AAMC_Raw_Data_for_FY22[[#This Row],[Median]]","v":496712.2},{"$f":"(((AAMC_Raw_Data_for_FY22[[#This Row],[75th]]-AAMC_Raw_Data_for_FY22[[#This Row],[Median]])/25)*15) + AAMC_Raw_Data_for_FY22[[#This Row],[Median]]","v":531417.80000000005},{"$f":"(((AAMC_Raw_Data_for_FY22[[#This Row],[75th]]-AAMC_Raw_Data_for_FY22[[#This Row],[Median]])/25)*20) + AAMC_Raw_Data_for_FY22[[#This Row],[Median]]","v":566123.4},600829,{"$f":"(((AAMC_Raw_Data_for_FY22[[#This Row],[75th]]-AAMC_Raw_Data_for_FY22[[#This Row],[Median]])/25)*30) + AAMC_Raw_Data_for_FY22[[#This Row],[Median]]","v":635534.6},{"$f":"(((AAMC_Raw_Data_for_FY22[[#This Row],[75th]]-AAMC_Raw_Data_for_FY22[[#This Row],[Median]])/25)*35) + AAMC_Raw_Data_for_FY22[[#This Row],[Median]]","v":670240.19999999995},{"$f":"(((AAMC_Raw_Data_for_FY22[[#This Row],[75th]]-AAMC_Raw_Data_for_FY22[[#This Row],[Median]])/25)*40) + AAMC_Raw_Data_for_FY22[[#This Row],[Median]]","v":704945.8}]
[{"$f":"AAMC_Raw_Data_for_FY22[[#This Row],[Source]]&AAMC_Raw_Data_for_FY22[[#This Row],[Type]]&AAMC_Raw_Data_for_FY22[[#This Row],[School Subset]]&AAMC_Raw_Data_for_FY22[[#This Row],[Rank]]&AAMC_Raw_Data_for_FY22[[#This Row],[Degree]]&AAMC_Raw_Data_for_FY22[[#This Row],[Department / Specialty]]&\"L\"","v":"AAMCAcademicPrivateAssistantMDVascular SurgeryL"},"Vascular Surgery",4,"AAMC","Academic","Private","Assistant","MD","2021-2022",360000,{"$f":"(((AAMC_Raw_Data_for_FY22[[#This Row],[Median]]-AAMC_Raw_Data_for_FY22[[#This Row],[25th]])/25)*5) + AAMC_Raw_Data_for_FY22[[#This Row],[25th]]","v":372558},{"$f":"(((AAMC_Raw_Data_for_FY22[[#This Row],[Median]]-AAMC_Raw_Data_for_FY22[[#This Row],[25th]])/25)*10) + AAMC_Raw_Data_for_FY22[[#This Row],[25th]]","v":385116},{"$f":"(((AAMC_Raw_Data_for_FY22[[#This Row],[Median]]-AAMC_Raw_Data_for_FY22[[#This Row],[25th]])/25)*15) + AAMC_Raw_Data_for_FY22[[#This Row],[25th]]","v":397674},{"$f":"(((AAMC_Raw_Data_for_FY22[[#This Row],[Median]]-AAMC_Raw_Data_for_FY22[[#This Row],[25th]])/25)*20) + AAMC_Raw_Data_for_FY22[[#This Row],[25th]]","v":410232},422790,{"$f":"(((AAMC_Raw_Data_for_FY22[[#This Row],[75th]]-AAMC_Raw_Data_for_FY22[[#This Row],[Median]])/25)*5) + AAMC_Raw_Data_for_FY22[[#This Row],[Median]]","v":444432},{"$f":"(((AAMC_Raw_Data_for_FY22[[#This Row],[75th]]-AAMC_Raw_Data_for_FY22[[#This Row],[Median]])/25)*10) + AAMC_Raw_Data_for_FY22[[#This Row],[Median]]","v":466074},{"$f":"(((AAMC_Raw_Data_for_FY22[[#This Row],[75th]]-AAMC_Raw_Data_for_FY22[[#This Row],[Median]])/25)*15) + AAMC_Raw_Data_for_FY22[[#This Row],[Median]]","v":487716},{"$f":"(((AAMC_Raw_Data_for_FY22[[#This Row],[75th]]-AAMC_Raw_Data_for_FY22[[#This Row],[Median]])/25)*20) + AAMC_Raw_Data_for_FY22[[#This Row],[Median]]","v":509358},531000,{"$f":"(((AAMC_Raw_Data_for_FY22[[#This Row],[75th]]-AAMC_Raw_Data_for_FY22[[#This Row],[Median]])/25)*30) + AAMC_Raw_Data_for_FY22[[#This Row],[Median]]","v":552642},{"$f":"(((AAMC_Raw_Data_for_FY22[[#This Row],[75th]]-AAMC_Raw_Data_for_FY22[[#This Row],[Median]])/25)*35) + AAMC_Raw_Data_for_FY22[[#This Row],[Median]]","v":574284},{"$f":"(((AAMC_Raw_Data_for_FY22[[#This Row],[75th]]-AAMC_Raw_Data_for_FY22[[#This Row],[Median]])/25)*40) + AAMC_Raw_Data_for_FY22[[#This Row],[Median]]","v":595926}]
[{"$f":"AAMC_Raw_Data_for_FY22[[#This Row],[Source]]&AAMC_Raw_Data_for_FY22[[#This Row],[Type]]&AAMC_Raw_Data_for_FY22[[#This Row],[School Subset]]&AAMC_Raw_Data_for_FY22[[#This Row],[Rank]]&AAMC_Raw_Data_for_FY22[[#This Row],[Degree]]&AAMC_Raw_Data_for_FY22[[#This Row],[Department / Specialty]]&\"L\"","v":"AAMCAcademicPrivateAssociateMDVascular SurgeryL"},"Vascular Surgery",3,"AAMC","Academic","Private","Associate","MD","2021-2022",447696,{"$f":"(((AAMC_Raw_Data_for_FY22[[#This Row],[Median]]-AAMC_Raw_Data_for_FY22[[#This Row],[25th]])/25)*5) + AAMC_Raw_Data_for_FY22[[#This Row],[25th]]","v":460135},{"$f":"(((AAMC_Raw_Data_for_FY22[[#This Row],[Median]]-AAMC_Raw_Data_for_FY22[[#This Row],[25th]])/25)*10) + AAMC_Raw_Data_for_FY22[[#This Row],[25th]]","v":472574},{"$f":"(((AAMC_Raw_Data_for_FY22[[#This Row],[Median]]-AAMC_Raw_Data_for_FY22[[#This Row],[25th]])/25)*15) + AAMC_Raw_Data_for_FY22[[#This Row],[25th]]","v":485013},{"$f":"(((AAMC_Raw_Data_for_FY22[[#This Row],[Median]]-AAMC_Raw_Data_for_FY22[[#This Row],[25th]])/25)*20) + AAMC_Raw_Data_for_FY22[[#This Row],[25th]]","v":497452},509891,{"$f":"(((AAMC_Raw_Data_for_FY22[[#This Row],[75th]]-AAMC_Raw_Data_for_FY22[[#This Row],[Median]])/25)*5) + AAMC_Raw_Data_for_FY22[[#This Row],[Median]]","v":530067.6},{"$f":"(((AAMC_Raw_Data_for_FY22[[#This Row],[75th]]-AAMC_Raw_Data_for_FY22[[#This Row],[Median]])/25)*10) + AAMC_Raw_Data_for_FY22[[#This Row],[Median]]","v":550244.19999999995},{"$f":"(((AAMC_Raw_Data_for_FY22[[#This Row],[75th]]-AAMC_Raw_Data_for_FY22[[#This Row],[Median]])/25)*15) + AAMC_Raw_Data_for_FY22[[#This Row],[Median]]","v":570420.80000000005},{"$f":"(((AAMC_Raw_Data_for_FY22[[#This Row],[75th]]-AAMC_Raw_Data_for_FY22[[#This Row],[Median]])/25)*20) + AAMC_Raw_Data_for_FY22[[#This Row],[Median]]","v":590597.4},610774,{"$f":"(((AAMC_Raw_Data_for_FY22[[#This Row],[75th]]-AAMC_Raw_Data_for_FY22[[#This Row],[Median]])/25)*30) + AAMC_Raw_Data_for_FY22[[#This Row],[Median]]","v":630950.6},{"$f":"(((AAMC_Raw_Data_for_FY22[[#This Row],[75th]]-AAMC_Raw_Data_for_FY22[[#This Row],[Median]])/25)*35) + AAMC_Raw_Data_for_FY22[[#This Row],[Median]]","v":651127.19999999995},{"$f":"(((AAMC_Raw_Data_for_FY22[[#This Row],[75th]]-AAMC_Raw_Data_for_FY22[[#This Row],[Median]])/25)*40) + AAMC_Raw_Data_for_FY22[[#This Row],[Median]]","v":671303.8}]
[{"$f":"AAMC_Raw_Data_for_FY22[[#This Row],[Source]]&AAMC_Raw_Data_for_FY22[[#This Row],[Type]]&AAMC_Raw_Data_for_FY22[[#This Row],[School Subset]]&AAMC_Raw_Data_for_FY22[[#This Row],[Rank]]&AAMC_Raw_Data_for_FY22[[#This Row],[Degree]]&AAMC_Raw_Data_for_FY22[[#This Row],[Department / Specialty]]&\"L\"","v":"AAMCAcademicPrivateProfessorMDVascular SurgeryL"},"Vascular Surgery",2,"AAMC","Academic","Private","Professor","MD","2021-2022",469858,{"$f":"(((AAMC_Raw_Data_for_FY22[[#This Row],[Median]]-AAMC_Raw_Data_for_FY22[[#This Row],[25th]])/25)*5) + AAMC_Raw_Data_for_FY22[[#This Row],[25th]]","v":494614},{"$f":"(((AAMC_Raw_Data_for_FY22[[#This Row],[Median]]-AAMC_Raw_Data_for_FY22[[#This Row],[25th]])/25)*10) + AAMC_Raw_Data_for_FY22[[#This Row],[25th]]","v":519370},{"$f":"(((AAMC_Raw_Data_for_FY22[[#This Row],[Median]]-AAMC_Raw_Data_for_FY22[[#This Row],[25th]])/25)*15) + AAMC_Raw_Data_for_FY22[[#This Row],[25th]]","v":544126},{"$f":"(((AAMC_Raw_Data_for_FY22[[#This Row],[Median]]-AAMC_Raw_Data_for_FY22[[#This Row],[25th]])/25)*20) + AAMC_Raw_Data_for_FY22[[#This Row],[25th]]","v":568882},593638,{"$f":"(((AAMC_Raw_Data_for_FY22[[#This Row],[75th]]-AAMC_Raw_Data_for_FY22[[#This Row],[Median]])/25)*5) + AAMC_Raw_Data_for_FY22[[#This Row],[Median]]","v":618510.6},{"$f":"(((AAMC_Raw_Data_for_FY22[[#This Row],[75th]]-AAMC_Raw_Data_for_FY22[[#This Row],[Median]])/25)*10) + AAMC_Raw_Data_for_FY22[[#This Row],[Median]]","v":643383.19999999995},{"$f":"(((AAMC_Raw_Data_for_FY22[[#This Row],[75th]]-AAMC_Raw_Data_for_FY22[[#This Row],[Median]])/25)*15) + AAMC_Raw_Data_for_FY22[[#This Row],[Median]]","v":668255.80000000005},{"$f":"(((AAMC_Raw_Data_for_FY22[[#This Row],[75th]]-AAMC_Raw_Data_for_FY22[[#This Row],[Median]])/25)*20) + AAMC_Raw_Data_for_FY22[[#This Row],[Median]]","v":693128.4},718001,{"$f":"(((AAMC_Raw_Data_for_FY22[[#This Row],[75th]]-AAMC_Raw_Data_for_FY22[[#This Row],[Median]])/25)*30) + AAMC_Raw_Data_for_FY22[[#This Row],[Median]]","v":742873.59999999998},{"$f":"(((AAMC_Raw_Data_for_FY22[[#This Row],[75th]]-AAMC_Raw_Data_for_FY22[[#This Row],[Median]])/25)*35) + AAMC_Raw_Data_for_FY22[[#This Row],[Median]]","v":767746.2},{"$f":"(((AAMC_Raw_Data_for_FY22[[#This Row],[75th]]-AAMC_Raw_Data_for_FY22[[#This Row],[Median]])/25)*40) + AAMC_Raw_Data_for_FY22[[#This Row],[Median]]","v":792618.8}]
[{"$f":"AAMC_Raw_Data_for_FY22[[#This Row],[Source]]&AAMC_Raw_Data_for_FY22[[#This Row],[Type]]&AAMC_Raw_Data_for_FY22[[#This Row],[School Subset]]&AAMC_Raw_Data_for_FY22[[#This Row],[Rank]]&AAMC_Raw_Data_for_FY22[[#This Row],[Degree]]&AAMC_Raw_Data_for_FY22[[#This Row],[Department / Specialty]]&\"L\"","v":"AAMCAcademicPrivateChiefMDVascular SurgeryL"},"Vascular Surgery",6,"AAMC","Academic","Private","Chief","MD","2021-2022",570000,{"$f":"(((AAMC_Raw_Data_for_FY22[[#This Row],[Median]]-AAMC_Raw_Data_for_FY22[[#This Row],[25th]])/25)*5) + AAMC_Raw_Data_for_FY22[[#This Row],[25th]]","v":606144},{"$f":"(((AAMC_Raw_Data_for_FY22[[#This Row],[Median]]-AAMC_Raw_Data_for_FY22[[#This Row],[25th]])/25)*10) + AAMC_Raw_Data_for_FY22[[#This Row],[25th]]","v":642288},{"$f":"(((AAMC_Raw_Data_for_FY22[[#This Row],[Median]]-AAMC_Raw_Data_for_FY22[[#This Row],[25th]])/25)*15) + AAMC_Raw_Data_for_FY22[[#This Row],[25th]]","v":678432},{"$f":"(((AAMC_Raw_Data_for_FY22[[#This Row],[Median]]-AAMC_Raw_Data_for_FY22[[#This Row],[25th]])/25)*20) + AAMC_Raw_Data_for_FY22[[#This Row],[25th]]","v":714576},750720,{"$f":"(((AAMC_Raw_Data_for_FY22[[#This Row],[75th]]-AAMC_Raw_Data_for_FY22[[#This Row],[Median]])/25)*5) + AAMC_Raw_Data_for_FY22[[#This Row],[Median]]","v":796230},{"$f":"(((AAMC_Raw_Data_for_FY22[[#This Row],[75th]]-AAMC_Raw_Data_for_FY22[[#This Row],[Median]])/25)*10) + AAMC_Raw_Data_for_FY22[[#This Row],[Median]]","v":841740},{"$f":"(((AAMC_Raw_Data_for_FY22[[#This Row],[75th]]-AAMC_Raw_Data_for_FY22[[#This Row],[Median]])/25)*15) + AAMC_Raw_Data_for_FY22[[#This Row],[Median]]","v":887250},{"$f":"(((AAMC_Raw_Data_for_FY22[[#This Row],[75th]]-AAMC_Raw_Data_for_FY22[[#This Row],[Median]])/25)*20) + AAMC_Raw_Data_for_FY22[[#This Row],[Median]]","v":932760},978270,{"$f":"(((AAMC_Raw_Data_for_FY22[[#This Row],[75th]]-AAMC_Raw_Data_for_FY22[[#This Row],[Median]])/25)*30) + AAMC_Raw_Data_for_FY22[[#This Row],[Median]]","v":1023780},{"$f":"(((AAMC_Raw_Data_for_FY22[[#This Row],[75th]]-AAMC_Raw_Data_for_FY22[[#This Row],[Median]])/25)*35) + AAMC_Raw_Data_for_FY22[[#This Row],[Median]]","v":1069290},{"$f":"(((AAMC_Raw_Data_for_FY22[[#This Row],[75th]]-AAMC_Raw_Data_for_FY22[[#This Row],[Median]])/25)*40) + AAMC_Raw_Data_for_FY22[[#This Row],[Median]]","v":1114800}]
[{"$f":"AAMC_Raw_Data_for_FY22[[#This Row],[Source]]&AAMC_Raw_Data_for_FY22[[#This Row],[Type]]&AAMC_Raw_Data_for_FY22[[#This Row],[School Subset]]&AAMC_Raw_Data_for_FY22[[#This Row],[Rank]]&AAMC_Raw_Data_for_FY22[[#This Row],[Degree]]&AAMC_Raw_Data_for_FY22[[#This Row],[Department / Specialty]]&\"L\"","v":"AAMCAcademicPrivateChairMDVascular SurgeryL"},"Vascular Surgery",1,"AAMC","Academic","Private","Chair","MD","2021-2022",null,{"$f":"(((AAMC_Raw_Data_for_FY22[[#This Row],[Median]]-AAMC_Raw_Data_for_FY22[[#This Row],[25th]])/25)*5) + AAMC_Raw_Data_for_FY22[[#This Row],[25th]]","v":0},{"$f":"(((AAMC_Raw_Data_for_FY22[[#This Row],[Median]]-AAMC_Raw_Data_for_FY22[[#This Row],[25th]])/25)*10) + AAMC_Raw_Data_for_FY22[[#This Row],[25th]]","v":0},{"$f":"(((AAMC_Raw_Data_for_FY22[[#This Row],[Median]]-AAMC_Raw_Data_for_FY22[[#This Row],[25th]])/25)*15) + AAMC_Raw_Data_for_FY22[[#This Row],[25th]]","v":0},{"$f":"(((AAMC_Raw_Data_for_FY22[[#This Row],[Median]]-AAMC_Raw_Data_for_FY22[[#This Row],[25th]])/25)*20) + AAMC_Raw_Data_for_FY22[[#This Row],[25th]]","v":0},null,{"$f":"(((AAMC_Raw_Data_for_FY22[[#This Row],[75th]]-AAMC_Raw_Data_for_FY22[[#This Row],[Median]])/25)*5) + AAMC_Raw_Data_for_FY22[[#This Row],[Median]]","v":0},{"$f":"(((AAMC_Raw_Data_for_FY22[[#This Row],[75th]]-AAMC_Raw_Data_for_FY22[[#This Row],[Median]])/25)*10) + AAMC_Raw_Data_for_FY22[[#This Row],[Median]]","v":0},{"$f":"(((AAMC_Raw_Data_for_FY22[[#This Row],[75th]]-AAMC_Raw_Data_for_FY22[[#This Row],[Median]])/25)*15) + AAMC_Raw_Data_for_FY22[[#This Row],[Median]]","v":0},{"$f":"(((AAMC_Raw_Data_for_FY22[[#This Row],[75th]]-AAMC_Raw_Data_for_FY22[[#This Row],[Median]])/25)*20) + AAMC_Raw_Data_for_FY22[[#This Row],[Median]]","v":0},null,{"$f":"(((AAMC_Raw_Data_for_FY22[[#This Row],[75th]]-AAMC_Raw_Data_for_FY22[[#This Row],[Median]])/25)*30) + AAMC_Raw_Data_for_FY22[[#This Row],[Median]]","v":0},{"$f":"(((AAMC_Raw_Data_for_FY22[[#This Row],[75th]]-AAMC_Raw_Data_for_FY22[[#This Row],[Median]])/25)*35) + AAMC_Raw_Data_for_FY22[[#This Row],[Median]]","v":0},{"$f":"(((AAMC_Raw_Data_for_FY22[[#This Row],[75th]]-AAMC_Raw_Data_for_FY22[[#This Row],[Median]])/25)*40) + AAMC_Raw_Data_for_FY22[[#This Row],[Median]]","v":0}]
[{"$f":"AAMC_Raw_Data_for_FY22[[#This Row],[Source]]&AAMC_Raw_Data_for_FY22[[#This Row],[Type]]&AAMC_Raw_Data_for_FY22[[#This Row],[School Subset]]&AAMC_Raw_Data_for_FY22[[#This Row],[Rank]]&AAMC_Raw_Data_for_FY22[[#This Row],[Degree]]&AAMC_Raw_Data_for_FY22[[#This Row],[Department / Specialty]]&\"L\"","v":"AAMCAcademicPrivateInstructorMDOther SurgeryL"},"Other Surgery",5,"AAMC","Academic","Private","Instructor","MD","2021-2022",178500,{"$f":"(((AAMC_Raw_Data_for_FY22[[#This Row],[Median]]-AAMC_Raw_Data_for_FY22[[#This Row],[25th]])/25)*5) + AAMC_Raw_Data_for_FY22[[#This Row],[25th]]","v":195800},{"$f":"(((AAMC_Raw_Data_for_FY22[[#This Row],[Median]]-AAMC_Raw_Data_for_FY22[[#This Row],[25th]])/25)*10) + AAMC_Raw_Data_for_FY22[[#This Row],[25th]]","v":213100},{"$f":"(((AAMC_Raw_Data_for_FY22[[#This Row],[Median]]-AAMC_Raw_Data_for_FY22[[#This Row],[25th]])/25)*15) + AAMC_Raw_Data_for_FY22[[#This Row],[25th]]","v":230400},{"$f":"(((AAMC_Raw_Data_for_FY22[[#This Row],[Median]]-AAMC_Raw_Data_for_FY22[[#This Row],[25th]])/25)*20) + AAMC_Raw_Data_for_FY22[[#This Row],[25th]]","v":247700},265000,{"$f":"(((AAMC_Raw_Data_for_FY22[[#This Row],[75th]]-AAMC_Raw_Data_for_FY22[[#This Row],[Median]])/25)*5) + AAMC_Raw_Data_for_FY22[[#This Row],[Median]]","v":279950},{"$f":"(((AAMC_Raw_Data_for_FY22[[#This Row],[75th]]-AAMC_Raw_Data_for_FY22[[#This Row],[Median]])/25)*10) + AAMC_Raw_Data_for_FY22[[#This Row],[Median]]","v":294900},{"$f":"(((AAMC_Raw_Data_for_FY22[[#This Row],[75th]]-AAMC_Raw_Data_for_FY22[[#This Row],[Median]])/25)*15) + AAMC_Raw_Data_for_FY22[[#This Row],[Median]]","v":309850},{"$f":"(((AAMC_Raw_Data_for_FY22[[#This Row],[75th]]-AAMC_Raw_Data_for_FY22[[#This Row],[Median]])/25)*20) + AAMC_Raw_Data_for_FY22[[#This Row],[Median]]","v":324800},339750,{"$f":"(((AAMC_Raw_Data_for_FY22[[#This Row],[75th]]-AAMC_Raw_Data_for_FY22[[#This Row],[Median]])/25)*30) + AAMC_Raw_Data_for_FY22[[#This Row],[Median]]","v":354700},{"$f":"(((AAMC_Raw_Data_for_FY22[[#This Row],[75th]]-AAMC_Raw_Data_for_FY22[[#This Row],[Median]])/25)*35) + AAMC_Raw_Data_for_FY22[[#This Row],[Median]]","v":369650},{"$f":"(((AAMC_Raw_Data_for_FY22[[#This Row],[75th]]-AAMC_Raw_Data_for_FY22[[#This Row],[Median]])/25)*40) + AAMC_Raw_Data_for_FY22[[#This Row],[Median]]","v":384600}]
[{"$f":"AAMC_Raw_Data_for_FY22[[#This Row],[Source]]&AAMC_Raw_Data_for_FY22[[#This Row],[Type]]&AAMC_Raw_Data_for_FY22[[#This Row],[School Subset]]&AAMC_Raw_Data_for_FY22[[#This Row],[Rank]]&AAMC_Raw_Data_for_FY22[[#This Row],[Degree]]&AAMC_Raw_Data_for_FY22[[#This Row],[Department / Specialty]]&\"L\"","v":"AAMCAcademicPrivateAssistantMDOther SurgeryL"},"Other Surgery",4,"AAMC","Academic","Private","Assistant","MD","2021-2022",255425,{"$f":"(((AAMC_Raw_Data_for_FY22[[#This Row],[Median]]-AAMC_Raw_Data_for_FY22[[#This Row],[25th]])/25)*5) + AAMC_Raw_Data_for_FY22[[#This Row],[25th]]","v":272510.2},{"$f":"(((AAMC_Raw_Data_for_FY22[[#This Row],[Median]]-AAMC_Raw_Data_for_FY22[[#This Row],[25th]])/25)*10) + AAMC_Raw_Data_for_FY22[[#This Row],[25th]]","v":289595.40000000002},{"$f":"(((AAMC_Raw_Data_for_FY22[[#This Row],[Median]]-AAMC_Raw_Data_for_FY22[[#This Row],[25th]])/25)*15) + AAMC_Raw_Data_for_FY22[[#This Row],[25th]]","v":306680.59999999998},{"$f":"(((AAMC_Raw_Data_for_FY22[[#This Row],[Median]]-AAMC_Raw_Data_for_FY22[[#This Row],[25th]])/25)*20) + AAMC_Raw_Data_for_FY22[[#This Row],[25th]]","v":323765.8},340851,{"$f":"(((AAMC_Raw_Data_for_FY22[[#This Row],[75th]]-AAMC_Raw_Data_for_FY22[[#This Row],[Median]])/25)*5) + AAMC_Raw_Data_for_FY22[[#This Row],[Median]]","v":358667.4},{"$f":"(((AAMC_Raw_Data_for_FY22[[#This Row],[75th]]-AAMC_Raw_Data_for_FY22[[#This Row],[Median]])/25)*10) + AAMC_Raw_Data_for_FY22[[#This Row],[Median]]","v":376483.8},{"$f":"(((AAMC_Raw_Data_for_FY22[[#This Row],[75th]]-AAMC_Raw_Data_for_FY22[[#This Row],[Median]])/25)*15) + AAMC_Raw_Data_for_FY22[[#This Row],[Median]]","v":394300.2},{"$f":"(((AAMC_Raw_Data_for_FY22[[#This Row],[75th]]-AAMC_Raw_Data_for_FY22[[#This Row],[Median]])/25)*20) + AAMC_Raw_Data_for_FY22[[#This Row],[Median]]","v":412116.6},429933,{"$f":"(((AAMC_Raw_Data_for_FY22[[#This Row],[75th]]-AAMC_Raw_Data_for_FY22[[#This Row],[Median]])/25)*30) + AAMC_Raw_Data_for_FY22[[#This Row],[Median]]","v":447749.4},{"$f":"(((AAMC_Raw_Data_for_FY22[[#This Row],[75th]]-AAMC_Raw_Data_for_FY22[[#This Row],[Median]])/25)*35) + AAMC_Raw_Data_for_FY22[[#This Row],[Median]]","v":465565.8},{"$f":"(((AAMC_Raw_Data_for_FY22[[#This Row],[75th]]-AAMC_Raw_Data_for_FY22[[#This Row],[Median]])/25)*40) + AAMC_Raw_Data_for_FY22[[#This Row],[Median]]","v":483382.2}]
[{"$f":"AAMC_Raw_Data_for_FY22[[#This Row],[Source]]&AAMC_Raw_Data_for_FY22[[#This Row],[Type]]&AAMC_Raw_Data_for_FY22[[#This Row],[School Subset]]&AAMC_Raw_Data_for_FY22[[#This Row],[Rank]]&AAMC_Raw_Data_for_FY22[[#This Row],[Degree]]&AAMC_Raw_Data_for_FY22[[#This Row],[Department / Specialty]]&\"L\"","v":"AAMCAcademicPrivateAssociateMDOther SurgeryL"},"Other Surgery",3,"AAMC","Academic","Private","Associate","MD","2021-2022",360485,{"$f":"(((AAMC_Raw_Data_for_FY22[[#This Row],[Median]]-AAMC_Raw_Data_for_FY22[[#This Row],[25th]])/25)*5) + AAMC_Raw_Data_for_FY22[[#This Row],[25th]]","v":377061},{"$f":"(((AAMC_Raw_Data_for_FY22[[#This Row],[Median]]-AAMC_Raw_Data_for_FY22[[#This Row],[25th]])/25)*10) + AAMC_Raw_Data_for_FY22[[#This Row],[25th]]","v":393637},{"$f":"(((AAMC_Raw_Data_for_FY22[[#This Row],[Median]]-AAMC_Raw_Data_for_FY22[[#This Row],[25th]])/25)*15) + AAMC_Raw_Data_for_FY22[[#This Row],[25th]]","v":410213},{"$f":"(((AAMC_Raw_Data_for_FY22[[#This Row],[Median]]-AAMC_Raw_Data_for_FY22[[#This Row],[25th]])/25)*20) + AAMC_Raw_Data_for_FY22[[#This Row],[25th]]","v":426789},443365,{"$f":"(((AAMC_Raw_Data_for_FY22[[#This Row],[75th]]-AAMC_Raw_Data_for_FY22[[#This Row],[Median]])/25)*5) + AAMC_Raw_Data_for_FY22[[#This Row],[Median]]","v":456071},{"$f":"(((AAMC_Raw_Data_for_FY22[[#This Row],[75th]]-AAMC_Raw_Data_for_FY22[[#This Row],[Median]])/25)*10) + AAMC_Raw_Data_for_FY22[[#This Row],[Median]]","v":468777},{"$f":"(((AAMC_Raw_Data_for_FY22[[#This Row],[75th]]-AAMC_Raw_Data_for_FY22[[#This Row],[Median]])/25)*15) + AAMC_Raw_Data_for_FY22[[#This Row],[Median]]","v":481483},{"$f":"(((AAMC_Raw_Data_for_FY22[[#This Row],[75th]]-AAMC_Raw_Data_for_FY22[[#This Row],[Median]])/25)*20) + AAMC_Raw_Data_for_FY22[[#This Row],[Median]]","v":494189},506895,{"$f":"(((AAMC_Raw_Data_for_FY22[[#This Row],[75th]]-AAMC_Raw_Data_for_FY22[[#This Row],[Median]])/25)*30) + AAMC_Raw_Data_for_FY22[[#This Row],[Median]]","v":519601},{"$f":"(((AAMC_Raw_Data_for_FY22[[#This Row],[75th]]-AAMC_Raw_Data_for_FY22[[#This Row],[Median]])/25)*35) + AAMC_Raw_Data_for_FY22[[#This Row],[Median]]","v":532307},{"$f":"(((AAMC_Raw_Data_for_FY22[[#This Row],[75th]]-AAMC_Raw_Data_for_FY22[[#This Row],[Median]])/25)*40) + AAMC_Raw_Data_for_FY22[[#This Row],[Median]]","v":545013}]
[{"$f":"AAMC_Raw_Data_for_FY22[[#This Row],[Source]]&AAMC_Raw_Data_for_FY22[[#This Row],[Type]]&AAMC_Raw_Data_for_FY22[[#This Row],[School Subset]]&AAMC_Raw_Data_for_FY22[[#This Row],[Rank]]&AAMC_Raw_Data_for_FY22[[#This Row],[Degree]]&AAMC_Raw_Data_for_FY22[[#This Row],[Department / Specialty]]&\"L\"","v":"AAMCAcademicPrivateProfessorMDOther SurgeryL"},"Other Surgery",2,"AAMC","Academic","Private","Professor","MD","2021-2022",322858,{"$f":"(((AAMC_Raw_Data_for_FY22[[#This Row],[Median]]-AAMC_Raw_Data_for_FY22[[#This Row],[25th]])/25)*5) + AAMC_Raw_Data_for_FY22[[#This Row],[25th]]","v":353547.2},{"$f":"(((AAMC_Raw_Data_for_FY22[[#This Row],[Median]]-AAMC_Raw_Data_for_FY22[[#This Row],[25th]])/25)*10) + AAMC_Raw_Data_for_FY22[[#This Row],[25th]]","v":384236.4},{"$f":"(((AAMC_Raw_Data_for_FY22[[#This Row],[Median]]-AAMC_Raw_Data_for_FY22[[#This Row],[25th]])/25)*15) + AAMC_Raw_Data_for_FY22[[#This Row],[25th]]","v":414925.6},{"$f":"(((AAMC_Raw_Data_for_FY22[[#This Row],[Median]]-AAMC_Raw_Data_for_FY22[[#This Row],[25th]])/25)*20) + AAMC_Raw_Data_for_FY22[[#This Row],[25th]]","v":445614.8},476304,{"$f":"(((AAMC_Raw_Data_for_FY22[[#This Row],[75th]]-AAMC_Raw_Data_for_FY22[[#This Row],[Median]])/25)*5) + AAMC_Raw_Data_for_FY22[[#This Row],[Median]]","v":511756},{"$f":"(((AAMC_Raw_Data_for_FY22[[#This Row],[75th]]-AAMC_Raw_Data_for_FY22[[#This Row],[Median]])/25)*10) + AAMC_Raw_Data_for_FY22[[#This Row],[Median]]","v":547208},{"$f":"(((AAMC_Raw_Data_for_FY22[[#This Row],[75th]]-AAMC_Raw_Data_for_FY22[[#This Row],[Median]])/25)*15) + AAMC_Raw_Data_for_FY22[[#This Row],[Median]]","v":582660},{"$f":"(((AAMC_Raw_Data_for_FY22[[#This Row],[75th]]-AAMC_Raw_Data_for_FY22[[#This Row],[Median]])/25)*20) + AAMC_Raw_Data_for_FY22[[#This Row],[Median]]","v":618112},653564,{"$f":"(((AAMC_Raw_Data_for_FY22[[#This Row],[75th]]-AAMC_Raw_Data_for_FY22[[#This Row],[Median]])/25)*30) + AAMC_Raw_Data_for_FY22[[#This Row],[Median]]","v":689016},{"$f":"(((AAMC_Raw_Data_for_FY22[[#This Row],[75th]]-AAMC_Raw_Data_for_FY22[[#This Row],[Median]])/25)*35) + AAMC_Raw_Data_for_FY22[[#This Row],[Median]]","v":724468},{"$f":"(((AAMC_Raw_Data_for_FY22[[#This Row],[75th]]-AAMC_Raw_Data_for_FY22[[#This Row],[Median]])/25)*40) + AAMC_Raw_Data_for_FY22[[#This Row],[Median]]","v":759920}]
[{"$f":"AAMC_Raw_Data_for_FY22[[#This Row],[Source]]&AAMC_Raw_Data_for_FY22[[#This Row],[Type]]&AAMC_Raw_Data_for_FY22[[#This Row],[School Subset]]&AAMC_Raw_Data_for_FY22[[#This Row],[Rank]]&AAMC_Raw_Data_for_FY22[[#This Row],[Degree]]&AAMC_Raw_Data_for_FY22[[#This Row],[Department / Specialty]]&\"L\"","v":"AAMCAcademicPrivateChiefMDOther SurgeryL"},"Other Surgery",6,"AAMC","Academic","Private","Chief","MD","2021-2022",491758,{"$f":"(((AAMC_Raw_Data_for_FY22[[#This Row],[Median]]-AAMC_Raw_Data_for_FY22[[#This Row],[25th]])/25)*5) + AAMC_Raw_Data_for_FY22[[#This Row],[25th]]","v":529141.6},{"$f":"(((AAMC_Raw_Data_for_FY22[[#This Row],[Median]]-AAMC_Raw_Data_for_FY22[[#This Row],[25th]])/25)*10) + AAMC_Raw_Data_for_FY22[[#This Row],[25th]]","v":566525.19999999995},{"$f":"(((AAMC_Raw_Data_for_FY22[[#This Row],[Median]]-AAMC_Raw_Data_for_FY22[[#This Row],[25th]])/25)*15) + AAMC_Raw_Data_for_FY22[[#This Row],[25th]]","v":603908.80000000005},{"$f":"(((AAMC_Raw_Data_for_FY22[[#This Row],[Median]]-AAMC_Raw_Data_for_FY22[[#This Row],[25th]])/25)*20) + AAMC_Raw_Data_for_FY22[[#This Row],[25th]]","v":641292.4},678676,{"$f":"(((AAMC_Raw_Data_for_FY22[[#This Row],[75th]]-AAMC_Raw_Data_for_FY22[[#This Row],[Median]])/25)*5) + AAMC_Raw_Data_for_FY22[[#This Row],[Median]]","v":705518.2},{"$f":"(((AAMC_Raw_Data_for_FY22[[#This Row],[75th]]-AAMC_Raw_Data_for_FY22[[#This Row],[Median]])/25)*10) + AAMC_Raw_Data_for_FY22[[#This Row],[Median]]","v":732360.4},{"$f":"(((AAMC_Raw_Data_for_FY22[[#This Row],[75th]]-AAMC_Raw_Data_for_FY22[[#This Row],[Median]])/25)*15) + AAMC_Raw_Data_for_FY22[[#This Row],[Median]]","v":759202.6},{"$f":"(((AAMC_Raw_Data_for_FY22[[#This Row],[75th]]-AAMC_Raw_Data_for_FY22[[#This Row],[Median]])/25)*20) + AAMC_Raw_Data_for_FY22[[#This Row],[Median]]","v":786044.8},812887,{"$f":"(((AAMC_Raw_Data_for_FY22[[#This Row],[75th]]-AAMC_Raw_Data_for_FY22[[#This Row],[Median]])/25)*30) + AAMC_Raw_Data_for_FY22[[#This Row],[Median]]","v":839729.2},{"$f":"(((AAMC_Raw_Data_for_FY22[[#This Row],[75th]]-AAMC_Raw_Data_for_FY22[[#This Row],[Median]])/25)*35) + AAMC_Raw_Data_for_FY22[[#This Row],[Median]]","v":866571.4},{"$f":"(((AAMC_Raw_Data_for_FY22[[#This Row],[75th]]-AAMC_Raw_Data_for_FY22[[#This Row],[Median]])/25)*40) + AAMC_Raw_Data_for_FY22[[#This Row],[Median]]","v":893413.6}]
[{"$f":"AAMC_Raw_Data_for_FY22[[#This Row],[Source]]&AAMC_Raw_Data_for_FY22[[#This Row],[Type]]&AAMC_Raw_Data_for_FY22[[#This Row],[School Subset]]&AAMC_Raw_Data_for_FY22[[#This Row],[Rank]]&AAMC_Raw_Data_for_FY22[[#This Row],[Degree]]&AAMC_Raw_Data_for_FY22[[#This Row],[Department / Specialty]]&\"L\"","v":"AAMCAcademicPrivateChairMDOther SurgeryL"},"Other Surgery",1,"AAMC","Academic","Private","Chair","MD","2021-2022",757850,{"$f":"(((AAMC_Raw_Data_for_FY22[[#This Row],[Median]]-AAMC_Raw_Data_for_FY22[[#This Row],[25th]])/25)*5) + AAMC_Raw_Data_for_FY22[[#This Row],[25th]]","v":779180},{"$f":"(((AAMC_Raw_Data_for_FY22[[#This Row],[Median]]-AAMC_Raw_Data_for_FY22[[#This Row],[25th]])/25)*10) + AAMC_Raw_Data_for_FY22[[#This Row],[25th]]","v":800510},{"$f":"(((AAMC_Raw_Data_for_FY22[[#This Row],[Median]]-AAMC_Raw_Data_for_FY22[[#This Row],[25th]])/25)*15) + AAMC_Raw_Data_for_FY22[[#This Row],[25th]]","v":821840},{"$f":"(((AAMC_Raw_Data_for_FY22[[#This Row],[Median]]-AAMC_Raw_Data_for_FY22[[#This Row],[25th]])/25)*20) + AAMC_Raw_Data_for_FY22[[#This Row],[25th]]","v":843170},864500,{"$f":"(((AAMC_Raw_Data_for_FY22[[#This Row],[75th]]-AAMC_Raw_Data_for_FY22[[#This Row],[Median]])/25)*5) + AAMC_Raw_Data_for_FY22[[#This Row],[Median]]","v":923791.6},{"$f":"(((AAMC_Raw_Data_for_FY22[[#This Row],[75th]]-AAMC_Raw_Data_for_FY22[[#This Row],[Median]])/25)*10) + AAMC_Raw_Data_for_FY22[[#This Row],[Median]]","v":983083.2},{"$f":"(((AAMC_Raw_Data_for_FY22[[#This Row],[75th]]-AAMC_Raw_Data_for_FY22[[#This Row],[Median]])/25)*15) + AAMC_Raw_Data_for_FY22[[#This Row],[Median]]","v":1042374.8},{"$f":"(((AAMC_Raw_Data_for_FY22[[#This Row],[75th]]-AAMC_Raw_Data_for_FY22[[#This Row],[Median]])/25)*20) + AAMC_Raw_Data_for_FY22[[#This Row],[Median]]","v":1101666.3999999999},1160958,{"$f":"(((AAMC_Raw_Data_for_FY22[[#This Row],[75th]]-AAMC_Raw_Data_for_FY22[[#This Row],[Median]])/25)*30) + AAMC_Raw_Data_for_FY22[[#This Row],[Median]]","v":1220249.6000000001},{"$f":"(((AAMC_Raw_Data_for_FY22[[#This Row],[75th]]-AAMC_Raw_Data_for_FY22[[#This Row],[Median]])/25)*35) + AAMC_Raw_Data_for_FY22[[#This Row],[Median]]","v":1279541.2},{"$f":"(((AAMC_Raw_Data_for_FY22[[#This Row],[75th]]-AAMC_Raw_Data_for_FY22[[#This Row],[Median]])/25)*40) + AAMC_Raw_Data_for_FY22[[#This Row],[Median]]","v":1338832.8}]
[{"$f":"AAMC_Raw_Data_for_FY22[[#This Row],[Source]]&AAMC_Raw_Data_for_FY22[[#This Row],[Type]]&AAMC_Raw_Data_for_FY22[[#This Row],[School Subset]]&AAMC_Raw_Data_for_FY22[[#This Row],[Rank]]&AAMC_Raw_Data_for_FY22[[#This Row],[Degree]]&AAMC_Raw_Data_for_FY22[[#This Row],[Department / Specialty]]&\"L\"","v":"AAMCAcademicPrivateInstructorMDOther Clinical Science TotalL"},"Other Clinical Science Total",5,"AAMC","Academic","Private","Instructor","MD","2021-2022",133297,{"$f":"(((AAMC_Raw_Data_for_FY22[[#This Row],[Median]]-AAMC_Raw_Data_for_FY22[[#This Row],[25th]])/25)*5) + AAMC_Raw_Data_for_FY22[[#This Row],[25th]]","v":148096},{"$f":"(((AAMC_Raw_Data_for_FY22[[#This Row],[Median]]-AAMC_Raw_Data_for_FY22[[#This Row],[25th]])/25)*10) + AAMC_Raw_Data_for_FY22[[#This Row],[25th]]","v":162895},{"$f":"(((AAMC_Raw_Data_for_FY22[[#This Row],[Median]]-AAMC_Raw_Data_for_FY22[[#This Row],[25th]])/25)*15) + AAMC_Raw_Data_for_FY22[[#This Row],[25th]]","v":177694},{"$f":"(((AAMC_Raw_Data_for_FY22[[#This Row],[Median]]-AAMC_Raw_Data_for_FY22[[#This Row],[25th]])/25)*20) + AAMC_Raw_Data_for_FY22[[#This Row],[25th]]","v":192493},207292,{"$f":"(((AAMC_Raw_Data_for_FY22[[#This Row],[75th]]-AAMC_Raw_Data_for_FY22[[#This Row],[Median]])/25)*5) + AAMC_Raw_Data_for_FY22[[#This Row],[Median]]","v":223899.4},{"$f":"(((AAMC_Raw_Data_for_FY22[[#This Row],[75th]]-AAMC_Raw_Data_for_FY22[[#This Row],[Median]])/25)*10) + AAMC_Raw_Data_for_FY22[[#This Row],[Median]]","v":240506.8},{"$f":"(((AAMC_Raw_Data_for_FY22[[#This Row],[75th]]-AAMC_Raw_Data_for_FY22[[#This Row],[Median]])/25)*15) + AAMC_Raw_Data_for_FY22[[#This Row],[Median]]","v":257114.2},{"$f":"(((AAMC_Raw_Data_for_FY22[[#This Row],[75th]]-AAMC_Raw_Data_for_FY22[[#This Row],[Median]])/25)*20) + AAMC_Raw_Data_for_FY22[[#This Row],[Median]]","v":273721.59999999998},290329,{"$f":"(((AAMC_Raw_Data_for_FY22[[#This Row],[75th]]-AAMC_Raw_Data_for_FY22[[#This Row],[Median]])/25)*30) + AAMC_Raw_Data_for_FY22[[#This Row],[Median]]","v":306936.40000000002},{"$f":"(((AAMC_Raw_Data_for_FY22[[#This Row],[75th]]-AAMC_Raw_Data_for_FY22[[#This Row],[Median]])/25)*35) + AAMC_Raw_Data_for_FY22[[#This Row],[Median]]","v":323543.8},{"$f":"(((AAMC_Raw_Data_for_FY22[[#This Row],[75th]]-AAMC_Raw_Data_for_FY22[[#This Row],[Median]])/25)*40) + AAMC_Raw_Data_for_FY22[[#This Row],[Median]]","v":340151.2}]
[{"$f":"AAMC_Raw_Data_for_FY22[[#This Row],[Source]]&AAMC_Raw_Data_for_FY22[[#This Row],[Type]]&AAMC_Raw_Data_for_FY22[[#This Row],[School Subset]]&AAMC_Raw_Data_for_FY22[[#This Row],[Rank]]&AAMC_Raw_Data_for_FY22[[#This Row],[Degree]]&AAMC_Raw_Data_for_FY22[[#This Row],[Department / Specialty]]&\"L\"","v":"AAMCAcademicPrivateAssistantMDOther Clinical Science TotalL"},"Other Clinical Science Total",4,"AAMC","Academic","Private","Assistant","MD","2021-2022",230000,{"$f":"(((AAMC_Raw_Data_for_FY22[[#This Row],[Median]]-AAMC_Raw_Data_for_FY22[[#This Row],[25th]])/25)*5) + AAMC_Raw_Data_for_FY22[[#This Row],[25th]]","v":242013.8},{"$f":"(((AAMC_Raw_Data_for_FY22[[#This Row],[Median]]-AAMC_Raw_Data_for_FY22[[#This Row],[25th]])/25)*10) + AAMC_Raw_Data_for_FY22[[#This Row],[25th]]","v":254027.6},{"$f":"(((AAMC_Raw_Data_for_FY22[[#This Row],[Median]]-AAMC_Raw_Data_for_FY22[[#This Row],[25th]])/25)*15) + AAMC_Raw_Data_for_FY22[[#This Row],[25th]]","v":266041.40000000002},{"$f":"(((AAMC_Raw_Data_for_FY22[[#This Row],[Median]]-AAMC_Raw_Data_for_FY22[[#This Row],[25th]])/25)*20) + AAMC_Raw_Data_for_FY22[[#This Row],[25th]]","v":278055.2},290069,{"$f":"(((AAMC_Raw_Data_for_FY22[[#This Row],[75th]]-AAMC_Raw_Data_for_FY22[[#This Row],[Median]])/25)*5) + AAMC_Raw_Data_for_FY22[[#This Row],[Median]]","v":300662.40000000002},{"$f":"(((AAMC_Raw_Data_for_FY22[[#This Row],[75th]]-AAMC_Raw_Data_for_FY22[[#This Row],[Median]])/25)*10) + AAMC_Raw_Data_for_FY22[[#This Row],[Median]]","v":311255.8},{"$f":"(((AAMC_Raw_Data_for_FY22[[#This Row],[75th]]-AAMC_Raw_Data_for_FY22[[#This Row],[Median]])/25)*15) + AAMC_Raw_Data_for_FY22[[#This Row],[Median]]","v":321849.2},{"$f":"(((AAMC_Raw_Data_for_FY22[[#This Row],[75th]]-AAMC_Raw_Data_for_FY22[[#This Row],[Median]])/25)*20) + AAMC_Raw_Data_for_FY22[[#This Row],[Median]]","v":332442.59999999998},343036,{"$f":"(((AAMC_Raw_Data_for_FY22[[#This Row],[75th]]-AAMC_Raw_Data_for_FY22[[#This Row],[Median]])/25)*30) + AAMC_Raw_Data_for_FY22[[#This Row],[Median]]","v":353629.4},{"$f":"(((AAMC_Raw_Data_for_FY22[[#This Row],[75th]]-AAMC_Raw_Data_for_FY22[[#This Row],[Median]])/25)*35) + AAMC_Raw_Data_for_FY22[[#This Row],[Median]]","v":364222.8},{"$f":"(((AAMC_Raw_Data_for_FY22[[#This Row],[75th]]-AAMC_Raw_Data_for_FY22[[#This Row],[Median]])/25)*40) + AAMC_Raw_Data_for_FY22[[#This Row],[Median]]","v":374816.2}]
[{"$f":"AAMC_Raw_Data_for_FY22[[#This Row],[Source]]&AAMC_Raw_Data_for_FY22[[#This Row],[Type]]&AAMC_Raw_Data_for_FY22[[#This Row],[School Subset]]&AAMC_Raw_Data_for_FY22[[#This Row],[Rank]]&AAMC_Raw_Data_for_FY22[[#This Row],[Degree]]&AAMC_Raw_Data_for_FY22[[#This Row],[Department / Specialty]]&\"L\"","v":"AAMCAcademicPrivateAssociateMDOther Clinical Science TotalL"},"Other Clinical Science Total",3,"AAMC","Academic","Private","Associate","MD","2021-2022",262124,{"$f":"(((AAMC_Raw_Data_for_FY22[[#This Row],[Median]]-AAMC_Raw_Data_for_FY22[[#This Row],[25th]])/25)*5) + AAMC_Raw_Data_for_FY22[[#This Row],[25th]]","v":274758.40000000002},{"$f":"(((AAMC_Raw_Data_for_FY22[[#This Row],[Median]]-AAMC_Raw_Data_for_FY22[[#This Row],[25th]])/25)*10) + AAMC_Raw_Data_for_FY22[[#This Row],[25th]]","v":287392.8},{"$f":"(((AAMC_Raw_Data_for_FY22[[#This Row],[Median]]-AAMC_Raw_Data_for_FY22[[#This Row],[25th]])/25)*15) + AAMC_Raw_Data_for_FY22[[#This Row],[25th]]","v":300027.2},{"$f":"(((AAMC_Raw_Data_for_FY22[[#This Row],[Median]]-AAMC_Raw_Data_for_FY22[[#This Row],[25th]])/25)*20) + AAMC_Raw_Data_for_FY22[[#This Row],[25th]]","v":312661.59999999998},325296,{"$f":"(((AAMC_Raw_Data_for_FY22[[#This Row],[75th]]-AAMC_Raw_Data_for_FY22[[#This Row],[Median]])/25)*5) + AAMC_Raw_Data_for_FY22[[#This Row],[Median]]","v":341836.79999999999},{"$f":"(((AAMC_Raw_Data_for_FY22[[#This Row],[75th]]-AAMC_Raw_Data_for_FY22[[#This Row],[Median]])/25)*10) + AAMC_Raw_Data_for_FY22[[#This Row],[Median]]","v":358377.6},{"$f":"(((AAMC_Raw_Data_for_FY22[[#This Row],[75th]]-AAMC_Raw_Data_for_FY22[[#This Row],[Median]])/25)*15) + AAMC_Raw_Data_for_FY22[[#This Row],[Median]]","v":374918.40000000002},{"$f":"(((AAMC_Raw_Data_for_FY22[[#This Row],[75th]]-AAMC_Raw_Data_for_FY22[[#This Row],[Median]])/25)*20) + AAMC_Raw_Data_for_FY22[[#This Row],[Median]]","v":391459.2},408000,{"$f":"(((AAMC_Raw_Data_for_FY22[[#This Row],[75th]]-AAMC_Raw_Data_for_FY22[[#This Row],[Median]])/25)*30) + AAMC_Raw_Data_for_FY22[[#This Row],[Median]]","v":424540.8},{"$f":"(((AAMC_Raw_Data_for_FY22[[#This Row],[75th]]-AAMC_Raw_Data_for_FY22[[#This Row],[Median]])/25)*35) + AAMC_Raw_Data_for_FY22[[#This Row],[Median]]","v":441081.59999999998},{"$f":"(((AAMC_Raw_Data_for_FY22[[#This Row],[75th]]-AAMC_Raw_Data_for_FY22[[#This Row],[Median]])/25)*40) + AAMC_Raw_Data_for_FY22[[#This Row],[Median]]","v":457622.4}]
[{"$f":"AAMC_Raw_Data_for_FY22[[#This Row],[Source]]&AAMC_Raw_Data_for_FY22[[#This Row],[Type]]&AAMC_Raw_Data_for_FY22[[#This Row],[School Subset]]&AAMC_Raw_Data_for_FY22[[#This Row],[Rank]]&AAMC_Raw_Data_for_FY22[[#This Row],[Degree]]&AAMC_Raw_Data_for_FY22[[#This Row],[Department / Specialty]]&\"L\"","v":"AAMCAcademicPrivateProfessorMDOther Clinical Science TotalL"},"Other Clinical Science Total",2,"AAMC","Academic","Private","Professor","MD","2021-2022",285208,{"$f":"(((AAMC_Raw_Data_for_FY22[[#This Row],[Median]]-AAMC_Raw_Data_for_FY22[[#This Row],[25th]])/25)*5) + AAMC_Raw_Data_for_FY22[[#This Row],[25th]]","v":299453.59999999998},{"$f":"(((AAMC_Raw_Data_for_FY22[[#This Row],[Median]]-AAMC_Raw_Data_for_FY22[[#This Row],[25th]])/25)*10) + AAMC_Raw_Data_for_FY22[[#This Row],[25th]]","v":313699.20000000001},{"$f":"(((AAMC_Raw_Data_for_FY22[[#This Row],[Median]]-AAMC_Raw_Data_for_FY22[[#This Row],[25th]])/25)*15) + AAMC_Raw_Data_for_FY22[[#This Row],[25th]]","v":327944.8},{"$f":"(((AAMC_Raw_Data_for_FY22[[#This Row],[Median]]-AAMC_Raw_Data_for_FY22[[#This Row],[25th]])/25)*20) + AAMC_Raw_Data_for_FY22[[#This Row],[25th]]","v":342190.4},356436,{"$f":"(((AAMC_Raw_Data_for_FY22[[#This Row],[75th]]-AAMC_Raw_Data_for_FY22[[#This Row],[Median]])/25)*5) + AAMC_Raw_Data_for_FY22[[#This Row],[Median]]","v":376117.2},{"$f":"(((AAMC_Raw_Data_for_FY22[[#This Row],[75th]]-AAMC_Raw_Data_for_FY22[[#This Row],[Median]])/25)*10) + AAMC_Raw_Data_for_FY22[[#This Row],[Median]]","v":395798.4},{"$f":"(((AAMC_Raw_Data_for_FY22[[#This Row],[75th]]-AAMC_Raw_Data_for_FY22[[#This Row],[Median]])/25)*15) + AAMC_Raw_Data_for_FY22[[#This Row],[Median]]","v":415479.6},{"$f":"(((AAMC_Raw_Data_for_FY22[[#This Row],[75th]]-AAMC_Raw_Data_for_FY22[[#This Row],[Median]])/25)*20) + AAMC_Raw_Data_for_FY22[[#This Row],[Median]]","v":435160.8},454842,{"$f":"(((AAMC_Raw_Data_for_FY22[[#This Row],[75th]]-AAMC_Raw_Data_for_FY22[[#This Row],[Median]])/25)*30) + AAMC_Raw_Data_for_FY22[[#This Row],[Median]]","v":474523.2},{"$f":"(((AAMC_Raw_Data_for_FY22[[#This Row],[75th]]-AAMC_Raw_Data_for_FY22[[#This Row],[Median]])/25)*35) + AAMC_Raw_Data_for_FY22[[#This Row],[Median]]","v":494204.4},{"$f":"(((AAMC_Raw_Data_for_FY22[[#This Row],[75th]]-AAMC_Raw_Data_for_FY22[[#This Row],[Median]])/25)*40) + AAMC_Raw_Data_for_FY22[[#This Row],[Median]]","v":513885.6}]
[{"$f":"AAMC_Raw_Data_for_FY22[[#This Row],[Source]]&AAMC_Raw_Data_for_FY22[[#This Row],[Type]]&AAMC_Raw_Data_for_FY22[[#This Row],[School Subset]]&AAMC_Raw_Data_for_FY22[[#This Row],[Rank]]&AAMC_Raw_Data_for_FY22[[#This Row],[Degree]]&AAMC_Raw_Data_for_FY22[[#This Row],[Department / Specialty]]&\"L\"","v":"AAMCAcademicPrivateChiefMDOther Clinical Science TotalL"},"Other Clinical Science Total",6,"AAMC","Academic","Private","Chief","MD","2021-2022",304528,{"$f":"(((AAMC_Raw_Data_for_FY22[[#This Row],[Median]]-AAMC_Raw_Data_for_FY22[[#This Row],[25th]])/25)*5) + AAMC_Raw_Data_for_FY22[[#This Row],[25th]]","v":319874.2},{"$f":"(((AAMC_Raw_Data_for_FY22[[#This Row],[Median]]-AAMC_Raw_Data_for_FY22[[#This Row],[25th]])/25)*10) + AAMC_Raw_Data_for_FY22[[#This Row],[25th]]","v":335220.40000000002},{"$f":"(((AAMC_Raw_Data_for_FY22[[#This Row],[Median]]-AAMC_Raw_Data_for_FY22[[#This Row],[25th]])/25)*15) + AAMC_Raw_Data_for_FY22[[#This Row],[25th]]","v":350566.6},{"$f":"(((AAMC_Raw_Data_for_FY22[[#This Row],[Median]]-AAMC_Raw_Data_for_FY22[[#This Row],[25th]])/25)*20) + AAMC_Raw_Data_for_FY22[[#This Row],[25th]]","v":365912.8},381259,{"$f":"(((AAMC_Raw_Data_for_FY22[[#This Row],[75th]]-AAMC_Raw_Data_for_FY22[[#This Row],[Median]])/25)*5) + AAMC_Raw_Data_for_FY22[[#This Row],[Median]]","v":402166.8},{"$f":"(((AAMC_Raw_Data_for_FY22[[#This Row],[75th]]-AAMC_Raw_Data_for_FY22[[#This Row],[Median]])/25)*10) + AAMC_Raw_Data_for_FY22[[#This Row],[Median]]","v":423074.6},{"$f":"(((AAMC_Raw_Data_for_FY22[[#This Row],[75th]]-AAMC_Raw_Data_for_FY22[[#This Row],[Median]])/25)*15) + AAMC_Raw_Data_for_FY22[[#This Row],[Median]]","v":443982.4},{"$f":"(((AAMC_Raw_Data_for_FY22[[#This Row],[75th]]-AAMC_Raw_Data_for_FY22[[#This Row],[Median]])/25)*20) + AAMC_Raw_Data_for_FY22[[#This Row],[Median]]","v":464890.2},485798,{"$f":"(((AAMC_Raw_Data_for_FY22[[#This Row],[75th]]-AAMC_Raw_Data_for_FY22[[#This Row],[Median]])/25)*30) + AAMC_Raw_Data_for_FY22[[#This Row],[Median]]","v":506705.80000000005},{"$f":"(((AAMC_Raw_Data_for_FY22[[#This Row],[75th]]-AAMC_Raw_Data_for_FY22[[#This Row],[Median]])/25)*35) + AAMC_Raw_Data_for_FY22[[#This Row],[Median]]","v":527613.6},{"$f":"(((AAMC_Raw_Data_for_FY22[[#This Row],[75th]]-AAMC_Raw_Data_for_FY22[[#This Row],[Median]])/25)*40) + AAMC_Raw_Data_for_FY22[[#This Row],[Median]]","v":548521.4}]
[{"$f":"AAMC_Raw_Data_for_FY22[[#This Row],[Source]]&AAMC_Raw_Data_for_FY22[[#This Row],[Type]]&AAMC_Raw_Data_for_FY22[[#This Row],[School Subset]]&AAMC_Raw_Data_for_FY22[[#This Row],[Rank]]&AAMC_Raw_Data_for_FY22[[#This Row],[Degree]]&AAMC_Raw_Data_for_FY22[[#This Row],[Department / Specialty]]&\"L\"","v":"AAMCAcademicPrivateChairMDOther Clinical Science TotalL"},"Other Clinical Science Total",1,"AAMC","Academic","Private","Chair","MD","2021-2022",533282,{"$f":"(((AAMC_Raw_Data_for_FY22[[#This Row],[Median]]-AAMC_Raw_Data_for_FY22[[#This Row],[25th]])/25)*5) + AAMC_Raw_Data_for_FY22[[#This Row],[25th]]","v":564501},{"$f":"(((AAMC_Raw_Data_for_FY22[[#This Row],[Median]]-AAMC_Raw_Data_for_FY22[[#This Row],[25th]])/25)*10) + AAMC_Raw_Data_for_FY22[[#This Row],[25th]]","v":595720},{"$f":"(((AAMC_Raw_Data_for_FY22[[#This Row],[Median]]-AAMC_Raw_Data_for_FY22[[#This Row],[25th]])/25)*15) + AAMC_Raw_Data_for_FY22[[#This Row],[25th]]","v":626939},{"$f":"(((AAMC_Raw_Data_for_FY22[[#This Row],[Median]]-AAMC_Raw_Data_for_FY22[[#This Row],[25th]])/25)*20) + AAMC_Raw_Data_for_FY22[[#This Row],[25th]]","v":658158},689377,{"$f":"(((AAMC_Raw_Data_for_FY22[[#This Row],[75th]]-AAMC_Raw_Data_for_FY22[[#This Row],[Median]])/25)*5) + AAMC_Raw_Data_for_FY22[[#This Row],[Median]]","v":721645.2},{"$f":"(((AAMC_Raw_Data_for_FY22[[#This Row],[75th]]-AAMC_Raw_Data_for_FY22[[#This Row],[Median]])/25)*10) + AAMC_Raw_Data_for_FY22[[#This Row],[Median]]","v":753913.4},{"$f":"(((AAMC_Raw_Data_for_FY22[[#This Row],[75th]]-AAMC_Raw_Data_for_FY22[[#This Row],[Median]])/25)*15) + AAMC_Raw_Data_for_FY22[[#This Row],[Median]]","v":786181.6},{"$f":"(((AAMC_Raw_Data_for_FY22[[#This Row],[75th]]-AAMC_Raw_Data_for_FY22[[#This Row],[Median]])/25)*20) + AAMC_Raw_Data_for_FY22[[#This Row],[Median]]","v":818449.8},850718,{"$f":"(((AAMC_Raw_Data_for_FY22[[#This Row],[75th]]-AAMC_Raw_Data_for_FY22[[#This Row],[Median]])/25)*30) + AAMC_Raw_Data_for_FY22[[#This Row],[Median]]","v":882986.2},{"$f":"(((AAMC_Raw_Data_for_FY22[[#This Row],[75th]]-AAMC_Raw_Data_for_FY22[[#This Row],[Median]])/25)*35) + AAMC_Raw_Data_for_FY22[[#This Row],[Median]]","v":915254.4},{"$f":"(((AAMC_Raw_Data_for_FY22[[#This Row],[75th]]-AAMC_Raw_Data_for_FY22[[#This Row],[Median]])/25)*40) + AAMC_Raw_Data_for_FY22[[#This Row],[Median]]","v":947522.6}]
[{"$f":"AAMC_Raw_Data_for_FY22[[#This Row],[Source]]&AAMC_Raw_Data_for_FY22[[#This Row],[Type]]&AAMC_Raw_Data_for_FY22[[#This Row],[School Subset]]&AAMC_Raw_Data_for_FY22[[#This Row],[Rank]]&AAMC_Raw_Data_for_FY22[[#This Row],[Degree]]&AAMC_Raw_Data_for_FY22[[#This Row],[Department / Specialty]]&\"L\"","v":"AAMCAcademicPrivateAssistantMDCommunity HealthL"},"Community Health",4,"AAMC","Academic","Private","Assistant","MD","2021-2022",173618,{"$f":"(((AAMC_Raw_Data_for_FY22[[#This Row],[Median]]-AAMC_Raw_Data_for_FY22[[#This Row],[25th]])/25)*5) + AAMC_Raw_Data_for_FY22[[#This Row],[25th]]","v":181142.8},{"$f":"(((AAMC_Raw_Data_for_FY22[[#This Row],[Median]]-AAMC_Raw_Data_for_FY22[[#This Row],[25th]])/25)*10) + AAMC_Raw_Data_for_FY22[[#This Row],[25th]]","v":188667.6},{"$f":"(((AAMC_Raw_Data_for_FY22[[#This Row],[Median]]-AAMC_Raw_Data_for_FY22[[#This Row],[25th]])/25)*15) + AAMC_Raw_Data_for_FY22[[#This Row],[25th]]","v":196192.4},{"$f":"(((AAMC_Raw_Data_for_FY22[[#This Row],[Median]]-AAMC_Raw_Data_for_FY22[[#This Row],[25th]])/25)*20) + AAMC_Raw_Data_for_FY22[[#This Row],[25th]]","v":203717.2},211242,{"$f":"(((AAMC_Raw_Data_for_FY22[[#This Row],[75th]]-AAMC_Raw_Data_for_FY22[[#This Row],[Median]])/25)*5) + AAMC_Raw_Data_for_FY22[[#This Row],[Median]]","v":213864.2},{"$f":"(((AAMC_Raw_Data_for_FY22[[#This Row],[75th]]-AAMC_Raw_Data_for_FY22[[#This Row],[Median]])/25)*10) + AAMC_Raw_Data_for_FY22[[#This Row],[Median]]","v":216486.39999999999},{"$f":"(((AAMC_Raw_Data_for_FY22[[#This Row],[75th]]-AAMC_Raw_Data_for_FY22[[#This Row],[Median]])/25)*15) + AAMC_Raw_Data_for_FY22[[#This Row],[Median]]","v":219108.6},{"$f":"(((AAMC_Raw_Data_for_FY22[[#This Row],[75th]]-AAMC_Raw_Data_for_FY22[[#This Row],[Median]])/25)*20) + AAMC_Raw_Data_for_FY22[[#This Row],[Median]]","v":221730.8},224353,{"$f":"(((AAMC_Raw_Data_for_FY22[[#This Row],[75th]]-AAMC_Raw_Data_for_FY22[[#This Row],[Median]])/25)*30) + AAMC_Raw_Data_for_FY22[[#This Row],[Median]]","v":226975.2},{"$f":"(((AAMC_Raw_Data_for_FY22[[#This Row],[75th]]-AAMC_Raw_Data_for_FY22[[#This Row],[Median]])/25)*35) + AAMC_Raw_Data_for_FY22[[#This Row],[Median]]","v":229597.4},{"$f":"(((AAMC_Raw_Data_for_FY22[[#This Row],[75th]]-AAMC_Raw_Data_for_FY22[[#This Row],[Median]])/25)*40) + AAMC_Raw_Data_for_FY22[[#This Row],[Median]]","v":232219.6}]
[{"$f":"AAMC_Raw_Data_for_FY22[[#This Row],[Source]]&AAMC_Raw_Data_for_FY22[[#This Row],[Type]]&AAMC_Raw_Data_for_FY22[[#This Row],[School Subset]]&AAMC_Raw_Data_for_FY22[[#This Row],[Rank]]&AAMC_Raw_Data_for_FY22[[#This Row],[Degree]]&AAMC_Raw_Data_for_FY22[[#This Row],[Department / Specialty]]&\"L\"","v":"AAMCAcademicPrivateAssociateMDCommunity HealthL"},"Community Health",3,"AAMC","Academic","Private","Associate","MD","2021-2022",190700,{"$f":"(((AAMC_Raw_Data_for_FY22[[#This Row],[Median]]-AAMC_Raw_Data_for_FY22[[#This Row],[25th]])/25)*5) + AAMC_Raw_Data_for_FY22[[#This Row],[25th]]","v":196887},{"$f":"(((AAMC_Raw_Data_for_FY22[[#This Row],[Median]]-AAMC_Raw_Data_for_FY22[[#This Row],[25th]])/25)*10) + AAMC_Raw_Data_for_FY22[[#This Row],[25th]]","v":203074},{"$f":"(((AAMC_Raw_Data_for_FY22[[#This Row],[Median]]-AAMC_Raw_Data_for_FY22[[#This Row],[25th]])/25)*15) + AAMC_Raw_Data_for_FY22[[#This Row],[25th]]","v":209261},{"$f":"(((AAMC_Raw_Data_for_FY22[[#This Row],[Median]]-AAMC_Raw_Data_for_FY22[[#This Row],[25th]])/25)*20) + AAMC_Raw_Data_for_FY22[[#This Row],[25th]]","v":215448},221635,{"$f":"(((AAMC_Raw_Data_for_FY22[[#This Row],[75th]]-AAMC_Raw_Data_for_FY22[[#This Row],[Median]])/25)*5) + AAMC_Raw_Data_for_FY22[[#This Row],[Median]]","v":230218.4},{"$f":"(((AAMC_Raw_Data_for_FY22[[#This Row],[75th]]-AAMC_Raw_Data_for_FY22[[#This Row],[Median]])/25)*10) + AAMC_Raw_Data_for_FY22[[#This Row],[Median]]","v":238801.8},{"$f":"(((AAMC_Raw_Data_for_FY22[[#This Row],[75th]]-AAMC_Raw_Data_for_FY22[[#This Row],[Median]])/25)*15) + AAMC_Raw_Data_for_FY22[[#This Row],[Median]]","v":247385.2},{"$f":"(((AAMC_Raw_Data_for_FY22[[#This Row],[75th]]-AAMC_Raw_Data_for_FY22[[#This Row],[Median]])/25)*20) + AAMC_Raw_Data_for_FY22[[#This Row],[Median]]","v":255968.6},264552,{"$f":"(((AAMC_Raw_Data_for_FY22[[#This Row],[75th]]-AAMC_Raw_Data_for_FY22[[#This Row],[Median]])/25)*30) + AAMC_Raw_Data_for_FY22[[#This Row],[Median]]","v":273135.40000000002},{"$f":"(((AAMC_Raw_Data_for_FY22[[#This Row],[75th]]-AAMC_Raw_Data_for_FY22[[#This Row],[Median]])/25)*35) + AAMC_Raw_Data_for_FY22[[#This Row],[Median]]","v":281718.8},{"$f":"(((AAMC_Raw_Data_for_FY22[[#This Row],[75th]]-AAMC_Raw_Data_for_FY22[[#This Row],[Median]])/25)*40) + AAMC_Raw_Data_for_FY22[[#This Row],[Median]]","v":290302.2}]
[{"$f":"AAMC_Raw_Data_for_FY22[[#This Row],[Source]]&AAMC_Raw_Data_for_FY22[[#This Row],[Type]]&AAMC_Raw_Data_for_FY22[[#This Row],[School Subset]]&AAMC_Raw_Data_for_FY22[[#This Row],[Rank]]&AAMC_Raw_Data_for_FY22[[#This Row],[Degree]]&AAMC_Raw_Data_for_FY22[[#This Row],[Department / Specialty]]&\"L\"","v":"AAMCAcademicPrivateProfessorMDCommunity HealthL"},"Community Health",2,"AAMC","Academic","Private","Professor","MD","2021-2022",249175,{"$f":"(((AAMC_Raw_Data_for_FY22[[#This Row],[Median]]-AAMC_Raw_Data_for_FY22[[#This Row],[25th]])/25)*5) + AAMC_Raw_Data_for_FY22[[#This Row],[25th]]","v":258666.2},{"$f":"(((AAMC_Raw_Data_for_FY22[[#This Row],[Median]]-AAMC_Raw_Data_for_FY22[[#This Row],[25th]])/25)*10) + AAMC_Raw_Data_for_FY22[[#This Row],[25th]]","v":268157.40000000002},{"$f":"(((AAMC_Raw_Data_for_FY22[[#This Row],[Median]]-AAMC_Raw_Data_for_FY22[[#This Row],[25th]])/25)*15) + AAMC_Raw_Data_for_FY22[[#This Row],[25th]]","v":277648.59999999998},{"$f":"(((AAMC_Raw_Data_for_FY22[[#This Row],[Median]]-AAMC_Raw_Data_for_FY22[[#This Row],[25th]])/25)*20) + AAMC_Raw_Data_for_FY22[[#This Row],[25th]]","v":287139.8},296631,{"$f":"(((AAMC_Raw_Data_for_FY22[[#This Row],[75th]]-AAMC_Raw_Data_for_FY22[[#This Row],[Median]])/25)*5) + AAMC_Raw_Data_for_FY22[[#This Row],[Median]]","v":304476.59999999998},{"$f":"(((AAMC_Raw_Data_for_FY22[[#This Row],[75th]]-AAMC_Raw_Data_for_FY22[[#This Row],[Median]])/25)*10) + AAMC_Raw_Data_for_FY22[[#This Row],[Median]]","v":312322.2},{"$f":"(((AAMC_Raw_Data_for_FY22[[#This Row],[75th]]-AAMC_Raw_Data_for_FY22[[#This Row],[Median]])/25)*15) + AAMC_Raw_Data_for_FY22[[#This Row],[Median]]","v":320167.8},{"$f":"(((AAMC_Raw_Data_for_FY22[[#This Row],[75th]]-AAMC_Raw_Data_for_FY22[[#This Row],[Median]])/25)*20) + AAMC_Raw_Data_for_FY22[[#This Row],[Median]]","v":328013.40000000002},335859,{"$f":"(((AAMC_Raw_Data_for_FY22[[#This Row],[75th]]-AAMC_Raw_Data_for_FY22[[#This Row],[Median]])/25)*30) + AAMC_Raw_Data_for_FY22[[#This Row],[Median]]","v":343704.6},{"$f":"(((AAMC_Raw_Data_for_FY22[[#This Row],[75th]]-AAMC_Raw_Data_for_FY22[[#This Row],[Median]])/25)*35) + AAMC_Raw_Data_for_FY22[[#This Row],[Median]]","v":351550.2},{"$f":"(((AAMC_Raw_Data_for_FY22[[#This Row],[75th]]-AAMC_Raw_Data_for_FY22[[#This Row],[Median]])/25)*40) + AAMC_Raw_Data_for_FY22[[#This Row],[Median]]","v":359395.8}]
[{"$f":"AAMC_Raw_Data_for_FY22[[#This Row],[Source]]&AAMC_Raw_Data_for_FY22[[#This Row],[Type]]&AAMC_Raw_Data_for_FY22[[#This Row],[School Subset]]&AAMC_Raw_Data_for_FY22[[#This Row],[Rank]]&AAMC_Raw_Data_for_FY22[[#This Row],[Degree]]&AAMC_Raw_Data_for_FY22[[#This Row],[Department / Specialty]]&\"L\"","v":"AAMCAcademicPrivateChiefMDCommunity HealthL"},"Community Health",6,"AAMC","Academic","Private","Chief","MD","2021-2022",null,{"$f":"(((AAMC_Raw_Data_for_FY22[[#This Row],[Median]]-AAMC_Raw_Data_for_FY22[[#This Row],[25th]])/25)*5) + AAMC_Raw_Data_for_FY22[[#This Row],[25th]]","v":0},{"$f":"(((AAMC_Raw_Data_for_FY22[[#This Row],[Median]]-AAMC_Raw_Data_for_FY22[[#This Row],[25th]])/25)*10) + AAMC_Raw_Data_for_FY22[[#This Row],[25th]]","v":0},{"$f":"(((AAMC_Raw_Data_for_FY22[[#This Row],[Median]]-AAMC_Raw_Data_for_FY22[[#This Row],[25th]])/25)*15) + AAMC_Raw_Data_for_FY22[[#This Row],[25th]]","v":0},{"$f":"(((AAMC_Raw_Data_for_FY22[[#This Row],[Median]]-AAMC_Raw_Data_for_FY22[[#This Row],[25th]])/25)*20) + AAMC_Raw_Data_for_FY22[[#This Row],[25th]]","v":0},null,{"$f":"(((AAMC_Raw_Data_for_FY22[[#This Row],[75th]]-AAMC_Raw_Data_for_FY22[[#This Row],[Median]])/25)*5) + AAMC_Raw_Data_for_FY22[[#This Row],[Median]]","v":0},{"$f":"(((AAMC_Raw_Data_for_FY22[[#This Row],[75th]]-AAMC_Raw_Data_for_FY22[[#This Row],[Median]])/25)*10) + AAMC_Raw_Data_for_FY22[[#This Row],[Median]]","v":0},{"$f":"(((AAMC_Raw_Data_for_FY22[[#This Row],[75th]]-AAMC_Raw_Data_for_FY22[[#This Row],[Median]])/25)*15) + AAMC_Raw_Data_for_FY22[[#This Row],[Median]]","v":0},{"$f":"(((AAMC_Raw_Data_for_FY22[[#This Row],[75th]]-AAMC_Raw_Data_for_FY22[[#This Row],[Median]])/25)*20) + AAMC_Raw_Data_for_FY22[[#This Row],[Median]]","v":0},null,{"$f":"(((AAMC_Raw_Data_for_FY22[[#This Row],[75th]]-AAMC_Raw_Data_for_FY22[[#This Row],[Median]])/25)*30) + AAMC_Raw_Data_for_FY22[[#This Row],[Median]]","v":0},{"$f":"(((AAMC_Raw_Data_for_FY22[[#This Row],[75th]]-AAMC_Raw_Data_for_FY22[[#This Row],[Median]])/25)*35) + AAMC_Raw_Data_for_FY22[[#This Row],[Median]]","v":0},{"$f":"(((AAMC_Raw_Data_for_FY22[[#This Row],[75th]]-AAMC_Raw_Data_for_FY22[[#This Row],[Median]])/25)*40) + AAMC_Raw_Data_for_FY22[[#This Row],[Median]]","v":0}]
[{"$f":"AAMC_Raw_Data_for_FY22[[#This Row],[Source]]&AAMC_Raw_Data_for_FY22[[#This Row],[Type]]&AAMC_Raw_Data_for_FY22[[#This Row],[School Subset]]&AAMC_Raw_Data_for_FY22[[#This Row],[Rank]]&AAMC_Raw_Data_for_FY22[[#This Row],[Degree]]&AAMC_Raw_Data_for_FY22[[#This Row],[Department / Specialty]]&\"L\"","v":"AAMCAcademicPrivateChairMDCommunity HealthL"},"Community Health",1,"AAMC","Academic","Private","Chair","MD","2021-2022",null,{"$f":"(((AAMC_Raw_Data_for_FY22[[#This Row],[Median]]-AAMC_Raw_Data_for_FY22[[#This Row],[25th]])/25)*5) + AAMC_Raw_Data_for_FY22[[#This Row],[25th]]","v":0},{"$f":"(((AAMC_Raw_Data_for_FY22[[#This Row],[Median]]-AAMC_Raw_Data_for_FY22[[#This Row],[25th]])/25)*10) + AAMC_Raw_Data_for_FY22[[#This Row],[25th]]","v":0},{"$f":"(((AAMC_Raw_Data_for_FY22[[#This Row],[Median]]-AAMC_Raw_Data_for_FY22[[#This Row],[25th]])/25)*15) + AAMC_Raw_Data_for_FY22[[#This Row],[25th]]","v":0},{"$f":"(((AAMC_Raw_Data_for_FY22[[#This Row],[Median]]-AAMC_Raw_Data_for_FY22[[#This Row],[25th]])/25)*20) + AAMC_Raw_Data_for_FY22[[#This Row],[25th]]","v":0},null,{"$f":"(((AAMC_Raw_Data_for_FY22[[#This Row],[75th]]-AAMC_Raw_Data_for_FY22[[#This Row],[Median]])/25)*5) + AAMC_Raw_Data_for_FY22[[#This Row],[Median]]","v":0},{"$f":"(((AAMC_Raw_Data_for_FY22[[#This Row],[75th]]-AAMC_Raw_Data_for_FY22[[#This Row],[Median]])/25)*10) + AAMC_Raw_Data_for_FY22[[#This Row],[Median]]","v":0},{"$f":"(((AAMC_Raw_Data_for_FY22[[#This Row],[75th]]-AAMC_Raw_Data_for_FY22[[#This Row],[Median]])/25)*15) + AAMC_Raw_Data_for_FY22[[#This Row],[Median]]","v":0},{"$f":"(((AAMC_Raw_Data_for_FY22[[#This Row],[75th]]-AAMC_Raw_Data_for_FY22[[#This Row],[Median]])/25)*20) + AAMC_Raw_Data_for_FY22[[#This Row],[Median]]","v":0},null,{"$f":"(((AAMC_Raw_Data_for_FY22[[#This Row],[75th]]-AAMC_Raw_Data_for_FY22[[#This Row],[Median]])/25)*30) + AAMC_Raw_Data_for_FY22[[#This Row],[Median]]","v":0},{"$f":"(((AAMC_Raw_Data_for_FY22[[#This Row],[75th]]-AAMC_Raw_Data_for_FY22[[#This Row],[Median]])/25)*35) + AAMC_Raw_Data_for_FY22[[#This Row],[Median]]","v":0},{"$f":"(((AAMC_Raw_Data_for_FY22[[#This Row],[75th]]-AAMC_Raw_Data_for_FY22[[#This Row],[Median]])/25)*40) + AAMC_Raw_Data_for_FY22[[#This Row],[Median]]","v":0}]
[{"$f":"AAMC_Raw_Data_for_FY22[[#This Row],[Source]]&AAMC_Raw_Data_for_FY22[[#This Row],[Type]]&AAMC_Raw_Data_for_FY22[[#This Row],[School Subset]]&AAMC_Raw_Data_for_FY22[[#This Row],[Rank]]&AAMC_Raw_Data_for_FY22[[#This Row],[Degree]]&AAMC_Raw_Data_for_FY22[[#This Row],[Department / Specialty]]&\"L\"","v":"AAMCAcademicPrivateInstructorMDEmergency MedicineL"},"Emergency Medicine",5,"AAMC","Academic","Private","Instructor","MD","2021-2022",196818,{"$f":"(((AAMC_Raw_Data_for_FY22[[#This Row],[Median]]-AAMC_Raw_Data_for_FY22[[#This Row],[25th]])/25)*5) + AAMC_Raw_Data_for_FY22[[#This Row],[25th]]","v":211617.8},{"$f":"(((AAMC_Raw_Data_for_FY22[[#This Row],[Median]]-AAMC_Raw_Data_for_FY22[[#This Row],[25th]])/25)*10) + AAMC_Raw_Data_for_FY22[[#This Row],[25th]]","v":226417.6},{"$f":"(((AAMC_Raw_Data_for_FY22[[#This Row],[Median]]-AAMC_Raw_Data_for_FY22[[#This Row],[25th]])/25)*15) + AAMC_Raw_Data_for_FY22[[#This Row],[25th]]","v":241217.4},{"$f":"(((AAMC_Raw_Data_for_FY22[[#This Row],[Median]]-AAMC_Raw_Data_for_FY22[[#This Row],[25th]])/25)*20) + AAMC_Raw_Data_for_FY22[[#This Row],[25th]]","v":256017.2},270817,{"$f":"(((AAMC_Raw_Data_for_FY22[[#This Row],[75th]]-AAMC_Raw_Data_for_FY22[[#This Row],[Median]])/25)*5) + AAMC_Raw_Data_for_FY22[[#This Row],[Median]]","v":279531.40000000002},{"$f":"(((AAMC_Raw_Data_for_FY22[[#This Row],[75th]]-AAMC_Raw_Data_for_FY22[[#This Row],[Median]])/25)*10) + AAMC_Raw_Data_for_FY22[[#This Row],[Median]]","v":288245.8},{"$f":"(((AAMC_Raw_Data_for_FY22[[#This Row],[75th]]-AAMC_Raw_Data_for_FY22[[#This Row],[Median]])/25)*15) + AAMC_Raw_Data_for_FY22[[#This Row],[Median]]","v":296960.2},{"$f":"(((AAMC_Raw_Data_for_FY22[[#This Row],[75th]]-AAMC_Raw_Data_for_FY22[[#This Row],[Median]])/25)*20) + AAMC_Raw_Data_for_FY22[[#This Row],[Median]]","v":305674.59999999998},314389,{"$f":"(((AAMC_Raw_Data_for_FY22[[#This Row],[75th]]-AAMC_Raw_Data_for_FY22[[#This Row],[Median]])/25)*30) + AAMC_Raw_Data_for_FY22[[#This Row],[Median]]","v":323103.40000000002},{"$f":"(((AAMC_Raw_Data_for_FY22[[#This Row],[75th]]-AAMC_Raw_Data_for_FY22[[#This Row],[Median]])/25)*35) + AAMC_Raw_Data_for_FY22[[#This Row],[Median]]","v":331817.8},{"$f":"(((AAMC_Raw_Data_for_FY22[[#This Row],[75th]]-AAMC_Raw_Data_for_FY22[[#This Row],[Median]])/25)*40) + AAMC_Raw_Data_for_FY22[[#This Row],[Median]]","v":340532.2}]
[{"$f":"AAMC_Raw_Data_for_FY22[[#This Row],[Source]]&AAMC_Raw_Data_for_FY22[[#This Row],[Type]]&AAMC_Raw_Data_for_FY22[[#This Row],[School Subset]]&AAMC_Raw_Data_for_FY22[[#This Row],[Rank]]&AAMC_Raw_Data_for_FY22[[#This Row],[Degree]]&AAMC_Raw_Data_for_FY22[[#This Row],[Department / Specialty]]&\"L\"","v":"AAMCAcademicPrivateAssistantMDEmergency MedicineL"},"Emergency Medicine",4,"AAMC","Academic","Private","Assistant","MD","2021-2022",279340,{"$f":"(((AAMC_Raw_Data_for_FY22[[#This Row],[Median]]-AAMC_Raw_Data_for_FY22[[#This Row],[25th]])/25)*5) + AAMC_Raw_Data_for_FY22[[#This Row],[25th]]","v":285807},{"$f":"(((AAMC_Raw_Data_for_FY22[[#This Row],[Median]]-AAMC_Raw_Data_for_FY22[[#This Row],[25th]])/25)*10) + AAMC_Raw_Data_for_FY22[[#This Row],[25th]]","v":292274},{"$f":"(((AAMC_Raw_Data_for_FY22[[#This Row],[Median]]-AAMC_Raw_Data_for_FY22[[#This Row],[25th]])/25)*15) + AAMC_Raw_Data_for_FY22[[#This Row],[25th]]","v":298741},{"$f":"(((AAMC_Raw_Data_for_FY22[[#This Row],[Median]]-AAMC_Raw_Data_for_FY22[[#This Row],[25th]])/25)*20) + AAMC_Raw_Data_for_FY22[[#This Row],[25th]]","v":305208},311675,{"$f":"(((AAMC_Raw_Data_for_FY22[[#This Row],[75th]]-AAMC_Raw_Data_for_FY22[[#This Row],[Median]])/25)*5) + AAMC_Raw_Data_for_FY22[[#This Row],[Median]]","v":318333.59999999998},{"$f":"(((AAMC_Raw_Data_for_FY22[[#This Row],[75th]]-AAMC_Raw_Data_for_FY22[[#This Row],[Median]])/25)*10) + AAMC_Raw_Data_for_FY22[[#This Row],[Median]]","v":324992.2},{"$f":"(((AAMC_Raw_Data_for_FY22[[#This Row],[75th]]-AAMC_Raw_Data_for_FY22[[#This Row],[Median]])/25)*15) + AAMC_Raw_Data_for_FY22[[#This Row],[Median]]","v":331650.8},{"$f":"(((AAMC_Raw_Data_for_FY22[[#This Row],[75th]]-AAMC_Raw_Data_for_FY22[[#This Row],[Median]])/25)*20) + AAMC_Raw_Data_for_FY22[[#This Row],[Median]]","v":338309.4},344968,{"$f":"(((AAMC_Raw_Data_for_FY22[[#This Row],[75th]]-AAMC_Raw_Data_for_FY22[[#This Row],[Median]])/25)*30) + AAMC_Raw_Data_for_FY22[[#This Row],[Median]]","v":351626.6},{"$f":"(((AAMC_Raw_Data_for_FY22[[#This Row],[75th]]-AAMC_Raw_Data_for_FY22[[#This Row],[Median]])/25)*35) + AAMC_Raw_Data_for_FY22[[#This Row],[Median]]","v":358285.2},{"$f":"(((AAMC_Raw_Data_for_FY22[[#This Row],[75th]]-AAMC_Raw_Data_for_FY22[[#This Row],[Median]])/25)*40) + AAMC_Raw_Data_for_FY22[[#This Row],[Median]]","v":364943.8}]
[{"$f":"AAMC_Raw_Data_for_FY22[[#This Row],[Source]]&AAMC_Raw_Data_for_FY22[[#This Row],[Type]]&AAMC_Raw_Data_for_FY22[[#This Row],[School Subset]]&AAMC_Raw_Data_for_FY22[[#This Row],[Rank]]&AAMC_Raw_Data_for_FY22[[#This Row],[Degree]]&AAMC_Raw_Data_for_FY22[[#This Row],[Department / Specialty]]&\"L\"","v":"AAMCAcademicPrivateAssociateMDEmergency MedicineL"},"Emergency Medicine",3,"AAMC","Academic","Private","Associate","MD","2021-2022",307405,{"$f":"(((AAMC_Raw_Data_for_FY22[[#This Row],[Median]]-AAMC_Raw_Data_for_FY22[[#This Row],[25th]])/25)*5) + AAMC_Raw_Data_for_FY22[[#This Row],[25th]]","v":312939.8},{"$f":"(((AAMC_Raw_Data_for_FY22[[#This Row],[Median]]-AAMC_Raw_Data_for_FY22[[#This Row],[25th]])/25)*10) + AAMC_Raw_Data_for_FY22[[#This Row],[25th]]","v":318474.59999999998},{"$f":"(((AAMC_Raw_Data_for_FY22[[#This Row],[Median]]-AAMC_Raw_Data_for_FY22[[#This Row],[25th]])/25)*15) + AAMC_Raw_Data_for_FY22[[#This Row],[25th]]","v":324009.40000000002},{"$f":"(((AAMC_Raw_Data_for_FY22[[#This Row],[Median]]-AAMC_Raw_Data_for_FY22[[#This Row],[25th]])/25)*20) + AAMC_Raw_Data_for_FY22[[#This Row],[25th]]","v":329544.2},335079,{"$f":"(((AAMC_Raw_Data_for_FY22[[#This Row],[75th]]-AAMC_Raw_Data_for_FY22[[#This Row],[Median]])/25)*5) + AAMC_Raw_Data_for_FY22[[#This Row],[Median]]","v":344640.2},{"$f":"(((AAMC_Raw_Data_for_FY22[[#This Row],[75th]]-AAMC_Raw_Data_for_FY22[[#This Row],[Median]])/25)*10) + AAMC_Raw_Data_for_FY22[[#This Row],[Median]]","v":354201.4},{"$f":"(((AAMC_Raw_Data_for_FY22[[#This Row],[75th]]-AAMC_Raw_Data_for_FY22[[#This Row],[Median]])/25)*15) + AAMC_Raw_Data_for_FY22[[#This Row],[Median]]","v":363762.6},{"$f":"(((AAMC_Raw_Data_for_FY22[[#This Row],[75th]]-AAMC_Raw_Data_for_FY22[[#This Row],[Median]])/25)*20) + AAMC_Raw_Data_for_FY22[[#This Row],[Median]]","v":373323.8},382885,{"$f":"(((AAMC_Raw_Data_for_FY22[[#This Row],[75th]]-AAMC_Raw_Data_for_FY22[[#This Row],[Median]])/25)*30) + AAMC_Raw_Data_for_FY22[[#This Row],[Median]]","v":392446.2},{"$f":"(((AAMC_Raw_Data_for_FY22[[#This Row],[75th]]-AAMC_Raw_Data_for_FY22[[#This Row],[Median]])/25)*35) + AAMC_Raw_Data_for_FY22[[#This Row],[Median]]","v":402007.4},{"$f":"(((AAMC_Raw_Data_for_FY22[[#This Row],[75th]]-AAMC_Raw_Data_for_FY22[[#This Row],[Median]])/25)*40) + AAMC_Raw_Data_for_FY22[[#This Row],[Median]]","v":411568.6}]
[{"$f":"AAMC_Raw_Data_for_FY22[[#This Row],[Source]]&AAMC_Raw_Data_for_FY22[[#This Row],[Type]]&AAMC_Raw_Data_for_FY22[[#This Row],[School Subset]]&AAMC_Raw_Data_for_FY22[[#This Row],[Rank]]&AAMC_Raw_Data_for_FY22[[#This Row],[Degree]]&AAMC_Raw_Data_for_FY22[[#This Row],[Department / Specialty]]&\"L\"","v":"AAMCAcademicPrivateProfessorMDEmergency MedicineL"},"Emergency Medicine",2,"AAMC","Academic","Private","Professor","MD","2021-2022",328509,{"$f":"(((AAMC_Raw_Data_for_FY22[[#This Row],[Median]]-AAMC_Raw_Data_for_FY22[[#This Row],[25th]])/25)*5) + AAMC_Raw_Data_for_FY22[[#This Row],[25th]]","v":336546.2},{"$f":"(((AAMC_Raw_Data_for_FY22[[#This Row],[Median]]-AAMC_Raw_Data_for_FY22[[#This Row],[25th]])/25)*10) + AAMC_Raw_Data_for_FY22[[#This Row],[25th]]","v":344583.4},{"$f":"(((AAMC_Raw_Data_for_FY22[[#This Row],[Median]]-AAMC_Raw_Data_for_FY22[[#This Row],[25th]])/25)*15) + AAMC_Raw_Data_for_FY22[[#This Row],[25th]]","v":352620.6},{"$f":"(((AAMC_Raw_Data_for_FY22[[#This Row],[Median]]-AAMC_Raw_Data_for_FY22[[#This Row],[25th]])/25)*20) + AAMC_Raw_Data_for_FY22[[#This Row],[25th]]","v":360657.8},368695,{"$f":"(((AAMC_Raw_Data_for_FY22[[#This Row],[75th]]-AAMC_Raw_Data_for_FY22[[#This Row],[Median]])/25)*5) + AAMC_Raw_Data_for_FY22[[#This Row],[Median]]","v":379758.2},{"$f":"(((AAMC_Raw_Data_for_FY22[[#This Row],[75th]]-AAMC_Raw_Data_for_FY22[[#This Row],[Median]])/25)*10) + AAMC_Raw_Data_for_FY22[[#This Row],[Median]]","v":390821.4},{"$f":"(((AAMC_Raw_Data_for_FY22[[#This Row],[75th]]-AAMC_Raw_Data_for_FY22[[#This Row],[Median]])/25)*15) + AAMC_Raw_Data_for_FY22[[#This Row],[Median]]","v":401884.6},{"$f":"(((AAMC_Raw_Data_for_FY22[[#This Row],[75th]]-AAMC_Raw_Data_for_FY22[[#This Row],[Median]])/25)*20) + AAMC_Raw_Data_for_FY22[[#This Row],[Median]]","v":412947.8},424011,{"$f":"(((AAMC_Raw_Data_for_FY22[[#This Row],[75th]]-AAMC_Raw_Data_for_FY22[[#This Row],[Median]])/25)*30) + AAMC_Raw_Data_for_FY22[[#This Row],[Median]]","v":435074.2},{"$f":"(((AAMC_Raw_Data_for_FY22[[#This Row],[75th]]-AAMC_Raw_Data_for_FY22[[#This Row],[Median]])/25)*35) + AAMC_Raw_Data_for_FY22[[#This Row],[Median]]","v":446137.4},{"$f":"(((AAMC_Raw_Data_for_FY22[[#This Row],[75th]]-AAMC_Raw_Data_for_FY22[[#This Row],[Median]])/25)*40) + AAMC_Raw_Data_for_FY22[[#This Row],[Median]]","v":457200.6}]
[{"$f":"AAMC_Raw_Data_for_FY22[[#This Row],[Source]]&AAMC_Raw_Data_for_FY22[[#This Row],[Type]]&AAMC_Raw_Data_for_FY22[[#This Row],[School Subset]]&AAMC_Raw_Data_for_FY22[[#This Row],[Rank]]&AAMC_Raw_Data_for_FY22[[#This Row],[Degree]]&AAMC_Raw_Data_for_FY22[[#This Row],[Department / Specialty]]&\"L\"","v":"AAMCAcademicPrivateChiefMDEmergency MedicineL"},"Emergency Medicine",6,"AAMC","Academic","Private","Chief","MD","2021-2022",329531,{"$f":"(((AAMC_Raw_Data_for_FY22[[#This Row],[Median]]-AAMC_Raw_Data_for_FY22[[#This Row],[25th]])/25)*5) + AAMC_Raw_Data_for_FY22[[#This Row],[25th]]","v":337953.6},{"$f":"(((AAMC_Raw_Data_for_FY22[[#This Row],[Median]]-AAMC_Raw_Data_for_FY22[[#This Row],[25th]])/25)*10) + AAMC_Raw_Data_for_FY22[[#This Row],[25th]]","v":346376.2},{"$f":"(((AAMC_Raw_Data_for_FY22[[#This Row],[Median]]-AAMC_Raw_Data_for_FY22[[#This Row],[25th]])/25)*15) + AAMC_Raw_Data_for_FY22[[#This Row],[25th]]","v":354798.8},{"$f":"(((AAMC_Raw_Data_for_FY22[[#This Row],[Median]]-AAMC_Raw_Data_for_FY22[[#This Row],[25th]])/25)*20) + AAMC_Raw_Data_for_FY22[[#This Row],[25th]]","v":363221.4},371644,{"$f":"(((AAMC_Raw_Data_for_FY22[[#This Row],[75th]]-AAMC_Raw_Data_for_FY22[[#This Row],[Median]])/25)*5) + AAMC_Raw_Data_for_FY22[[#This Row],[Median]]","v":380682.8},{"$f":"(((AAMC_Raw_Data_for_FY22[[#This Row],[75th]]-AAMC_Raw_Data_for_FY22[[#This Row],[Median]])/25)*10) + AAMC_Raw_Data_for_FY22[[#This Row],[Median]]","v":389721.59999999998},{"$f":"(((AAMC_Raw_Data_for_FY22[[#This Row],[75th]]-AAMC_Raw_Data_for_FY22[[#This Row],[Median]])/25)*15) + AAMC_Raw_Data_for_FY22[[#This Row],[Median]]","v":398760.4},{"$f":"(((AAMC_Raw_Data_for_FY22[[#This Row],[75th]]-AAMC_Raw_Data_for_FY22[[#This Row],[Median]])/25)*20) + AAMC_Raw_Data_for_FY22[[#This Row],[Median]]","v":407799.2},416838,{"$f":"(((AAMC_Raw_Data_for_FY22[[#This Row],[75th]]-AAMC_Raw_Data_for_FY22[[#This Row],[Median]])/25)*30) + AAMC_Raw_Data_for_FY22[[#This Row],[Median]]","v":425876.8},{"$f":"(((AAMC_Raw_Data_for_FY22[[#This Row],[75th]]-AAMC_Raw_Data_for_FY22[[#This Row],[Median]])/25)*35) + AAMC_Raw_Data_for_FY22[[#This Row],[Median]]","v":434915.6},{"$f":"(((AAMC_Raw_Data_for_FY22[[#This Row],[75th]]-AAMC_Raw_Data_for_FY22[[#This Row],[Median]])/25)*40) + AAMC_Raw_Data_for_FY22[[#This Row],[Median]]","v":443954.4}]
[{"$f":"AAMC_Raw_Data_for_FY22[[#This Row],[Source]]&AAMC_Raw_Data_for_FY22[[#This Row],[Type]]&AAMC_Raw_Data_for_FY22[[#This Row],[School Subset]]&AAMC_Raw_Data_for_FY22[[#This Row],[Rank]]&AAMC_Raw_Data_for_FY22[[#This Row],[Degree]]&AAMC_Raw_Data_for_FY22[[#This Row],[Department / Specialty]]&\"L\"","v":"AAMCAcademicPrivateChairMDEmergency MedicineL"},"Emergency Medicine",1,"AAMC","Academic","Private","Chair","MD","2021-2022",600850,{"$f":"(((AAMC_Raw_Data_for_FY22[[#This Row],[Median]]-AAMC_Raw_Data_for_FY22[[#This Row],[25th]])/25)*5) + AAMC_Raw_Data_for_FY22[[#This Row],[25th]]","v":618555.4},{"$f":"(((AAMC_Raw_Data_for_FY22[[#This Row],[Median]]-AAMC_Raw_Data_for_FY22[[#This Row],[25th]])/25)*10) + AAMC_Raw_Data_for_FY22[[#This Row],[25th]]","v":636260.80000000005},{"$f":"(((AAMC_Raw_Data_for_FY22[[#This Row],[Median]]-AAMC_Raw_Data_for_FY22[[#This Row],[25th]])/25)*15) + AAMC_Raw_Data_for_FY22[[#This Row],[25th]]","v":653966.19999999995},{"$f":"(((AAMC_Raw_Data_for_FY22[[#This Row],[Median]]-AAMC_Raw_Data_for_FY22[[#This Row],[25th]])/25)*20) + AAMC_Raw_Data_for_FY22[[#This Row],[25th]]","v":671671.6},689377,{"$f":"(((AAMC_Raw_Data_for_FY22[[#This Row],[75th]]-AAMC_Raw_Data_for_FY22[[#This Row],[Median]])/25)*5) + AAMC_Raw_Data_for_FY22[[#This Row],[Median]]","v":706315.8},{"$f":"(((AAMC_Raw_Data_for_FY22[[#This Row],[75th]]-AAMC_Raw_Data_for_FY22[[#This Row],[Median]])/25)*10) + AAMC_Raw_Data_for_FY22[[#This Row],[Median]]","v":723254.6},{"$f":"(((AAMC_Raw_Data_for_FY22[[#This Row],[75th]]-AAMC_Raw_Data_for_FY22[[#This Row],[Median]])/25)*15) + AAMC_Raw_Data_for_FY22[[#This Row],[Median]]","v":740193.4},{"$f":"(((AAMC_Raw_Data_for_FY22[[#This Row],[75th]]-AAMC_Raw_Data_for_FY22[[#This Row],[Median]])/25)*20) + AAMC_Raw_Data_for_FY22[[#This Row],[Median]]","v":757132.2},774071,{"$f":"(((AAMC_Raw_Data_for_FY22[[#This Row],[75th]]-AAMC_Raw_Data_for_FY22[[#This Row],[Median]])/25)*30) + AAMC_Raw_Data_for_FY22[[#This Row],[Median]]","v":791009.8},{"$f":"(((AAMC_Raw_Data_for_FY22[[#This Row],[75th]]-AAMC_Raw_Data_for_FY22[[#This Row],[Median]])/25)*35) + AAMC_Raw_Data_for_FY22[[#This Row],[Median]]","v":807948.6},{"$f":"(((AAMC_Raw_Data_for_FY22[[#This Row],[75th]]-AAMC_Raw_Data_for_FY22[[#This Row],[Median]])/25)*40) + AAMC_Raw_Data_for_FY22[[#This Row],[Median]]","v":824887.4}]
[{"$f":"AAMC_Raw_Data_for_FY22[[#This Row],[Source]]&AAMC_Raw_Data_for_FY22[[#This Row],[Type]]&AAMC_Raw_Data_for_FY22[[#This Row],[School Subset]]&AAMC_Raw_Data_for_FY22[[#This Row],[Rank]]&AAMC_Raw_Data_for_FY22[[#This Row],[Degree]]&AAMC_Raw_Data_for_FY22[[#This Row],[Department / Specialty]]&\"L\"","v":"AAMCAcademicPrivateInstructorMDNeurologyL"},"Neurology",5,"AAMC","Academic","Private","Instructor","MD","2021-2022",147947,{"$f":"(((AAMC_Raw_Data_for_FY22[[#This Row],[Median]]-AAMC_Raw_Data_for_FY22[[#This Row],[25th]])/25)*5) + AAMC_Raw_Data_for_FY22[[#This Row],[25th]]","v":155571.6},{"$f":"(((AAMC_Raw_Data_for_FY22[[#This Row],[Median]]-AAMC_Raw_Data_for_FY22[[#This Row],[25th]])/25)*10) + AAMC_Raw_Data_for_FY22[[#This Row],[25th]]","v":163196.20000000001},{"$f":"(((AAMC_Raw_Data_for_FY22[[#This Row],[Median]]-AAMC_Raw_Data_for_FY22[[#This Row],[25th]])/25)*15) + AAMC_Raw_Data_for_FY22[[#This Row],[25th]]","v":170820.8},{"$f":"(((AAMC_Raw_Data_for_FY22[[#This Row],[Median]]-AAMC_Raw_Data_for_FY22[[#This Row],[25th]])/25)*20) + AAMC_Raw_Data_for_FY22[[#This Row],[25th]]","v":178445.4},186070,{"$f":"(((AAMC_Raw_Data_for_FY22[[#This Row],[75th]]-AAMC_Raw_Data_for_FY22[[#This Row],[Median]])/25)*5) + AAMC_Raw_Data_for_FY22[[#This Row],[Median]]","v":194357},{"$f":"(((AAMC_Raw_Data_for_FY22[[#This Row],[75th]]-AAMC_Raw_Data_for_FY22[[#This Row],[Median]])/25)*10) + AAMC_Raw_Data_for_FY22[[#This Row],[Median]]","v":202644},{"$f":"(((AAMC_Raw_Data_for_FY22[[#This Row],[75th]]-AAMC_Raw_Data_for_FY22[[#This Row],[Median]])/25)*15) + AAMC_Raw_Data_for_FY22[[#This Row],[Median]]","v":210931},{"$f":"(((AAMC_Raw_Data_for_FY22[[#This Row],[75th]]-AAMC_Raw_Data_for_FY22[[#This Row],[Median]])/25)*20) + AAMC_Raw_Data_for_FY22[[#This Row],[Median]]","v":219218},227505,{"$f":"(((AAMC_Raw_Data_for_FY22[[#This Row],[75th]]-AAMC_Raw_Data_for_FY22[[#This Row],[Median]])/25)*30) + AAMC_Raw_Data_for_FY22[[#This Row],[Median]]","v":235792},{"$f":"(((AAMC_Raw_Data_for_FY22[[#This Row],[75th]]-AAMC_Raw_Data_for_FY22[[#This Row],[Median]])/25)*35) + AAMC_Raw_Data_for_FY22[[#This Row],[Median]]","v":244079},{"$f":"(((AAMC_Raw_Data_for_FY22[[#This Row],[75th]]-AAMC_Raw_Data_for_FY22[[#This Row],[Median]])/25)*40) + AAMC_Raw_Data_for_FY22[[#This Row],[Median]]","v":252366}]
[{"$f":"AAMC_Raw_Data_for_FY22[[#This Row],[Source]]&AAMC_Raw_Data_for_FY22[[#This Row],[Type]]&AAMC_Raw_Data_for_FY22[[#This Row],[School Subset]]&AAMC_Raw_Data_for_FY22[[#This Row],[Rank]]&AAMC_Raw_Data_for_FY22[[#This Row],[Degree]]&AAMC_Raw_Data_for_FY22[[#This Row],[Department / Specialty]]&\"L\"","v":"AAMCAcademicPrivateAssistantMDNeurologyL"},"Neurology",4,"AAMC","Academic","Private","Assistant","MD","2021-2022",202385,{"$f":"(((AAMC_Raw_Data_for_FY22[[#This Row],[Median]]-AAMC_Raw_Data_for_FY22[[#This Row],[25th]])/25)*5) + AAMC_Raw_Data_for_FY22[[#This Row],[25th]]","v":208990.4},{"$f":"(((AAMC_Raw_Data_for_FY22[[#This Row],[Median]]-AAMC_Raw_Data_for_FY22[[#This Row],[25th]])/25)*10) + AAMC_Raw_Data_for_FY22[[#This Row],[25th]]","v":215595.8},{"$f":"(((AAMC_Raw_Data_for_FY22[[#This Row],[Median]]-AAMC_Raw_Data_for_FY22[[#This Row],[25th]])/25)*15) + AAMC_Raw_Data_for_FY22[[#This Row],[25th]]","v":222201.2},{"$f":"(((AAMC_Raw_Data_for_FY22[[#This Row],[Median]]-AAMC_Raw_Data_for_FY22[[#This Row],[25th]])/25)*20) + AAMC_Raw_Data_for_FY22[[#This Row],[25th]]","v":228806.6},235412,{"$f":"(((AAMC_Raw_Data_for_FY22[[#This Row],[75th]]-AAMC_Raw_Data_for_FY22[[#This Row],[Median]])/25)*5) + AAMC_Raw_Data_for_FY22[[#This Row],[Median]]","v":245790.6},{"$f":"(((AAMC_Raw_Data_for_FY22[[#This Row],[75th]]-AAMC_Raw_Data_for_FY22[[#This Row],[Median]])/25)*10) + AAMC_Raw_Data_for_FY22[[#This Row],[Median]]","v":256169.2},{"$f":"(((AAMC_Raw_Data_for_FY22[[#This Row],[75th]]-AAMC_Raw_Data_for_FY22[[#This Row],[Median]])/25)*15) + AAMC_Raw_Data_for_FY22[[#This Row],[Median]]","v":266547.8},{"$f":"(((AAMC_Raw_Data_for_FY22[[#This Row],[75th]]-AAMC_Raw_Data_for_FY22[[#This Row],[Median]])/25)*20) + AAMC_Raw_Data_for_FY22[[#This Row],[Median]]","v":276926.40000000002},287305,{"$f":"(((AAMC_Raw_Data_for_FY22[[#This Row],[75th]]-AAMC_Raw_Data_for_FY22[[#This Row],[Median]])/25)*30) + AAMC_Raw_Data_for_FY22[[#This Row],[Median]]","v":297683.59999999998},{"$f":"(((AAMC_Raw_Data_for_FY22[[#This Row],[75th]]-AAMC_Raw_Data_for_FY22[[#This Row],[Median]])/25)*35) + AAMC_Raw_Data_for_FY22[[#This Row],[Median]]","v":308062.2},{"$f":"(((AAMC_Raw_Data_for_FY22[[#This Row],[75th]]-AAMC_Raw_Data_for_FY22[[#This Row],[Median]])/25)*40) + AAMC_Raw_Data_for_FY22[[#This Row],[Median]]","v":318440.8}]
[{"$f":"AAMC_Raw_Data_for_FY22[[#This Row],[Source]]&AAMC_Raw_Data_for_FY22[[#This Row],[Type]]&AAMC_Raw_Data_for_FY22[[#This Row],[School Subset]]&AAMC_Raw_Data_for_FY22[[#This Row],[Rank]]&AAMC_Raw_Data_for_FY22[[#This Row],[Degree]]&AAMC_Raw_Data_for_FY22[[#This Row],[Department / Specialty]]&\"L\"","v":"AAMCAcademicPrivateAssociateMDNeurologyL"},"Neurology",3,"AAMC","Academic","Private","Associate","MD","2021-2022",229757,{"$f":"(((AAMC_Raw_Data_for_FY22[[#This Row],[Median]]-AAMC_Raw_Data_for_FY22[[#This Row],[25th]])/25)*5) + AAMC_Raw_Data_for_FY22[[#This Row],[25th]]","v":238797.4},{"$f":"(((AAMC_Raw_Data_for_FY22[[#This Row],[Median]]-AAMC_Raw_Data_for_FY22[[#This Row],[25th]])/25)*10) + AAMC_Raw_Data_for_FY22[[#This Row],[25th]]","v":247837.8},{"$f":"(((AAMC_Raw_Data_for_FY22[[#This Row],[Median]]-AAMC_Raw_Data_for_FY22[[#This Row],[25th]])/25)*15) + AAMC_Raw_Data_for_FY22[[#This Row],[25th]]","v":256878.2},{"$f":"(((AAMC_Raw_Data_for_FY22[[#This Row],[Median]]-AAMC_Raw_Data_for_FY22[[#This Row],[25th]])/25)*20) + AAMC_Raw_Data_for_FY22[[#This Row],[25th]]","v":265918.59999999998},274959,{"$f":"(((AAMC_Raw_Data_for_FY22[[#This Row],[75th]]-AAMC_Raw_Data_for_FY22[[#This Row],[Median]])/25)*5) + AAMC_Raw_Data_for_FY22[[#This Row],[Median]]","v":285796.2},{"$f":"(((AAMC_Raw_Data_for_FY22[[#This Row],[75th]]-AAMC_Raw_Data_for_FY22[[#This Row],[Median]])/25)*10) + AAMC_Raw_Data_for_FY22[[#This Row],[Median]]","v":296633.40000000002},{"$f":"(((AAMC_Raw_Data_for_FY22[[#This Row],[75th]]-AAMC_Raw_Data_for_FY22[[#This Row],[Median]])/25)*15) + AAMC_Raw_Data_for_FY22[[#This Row],[Median]]","v":307470.59999999998},{"$f":"(((AAMC_Raw_Data_for_FY22[[#This Row],[75th]]-AAMC_Raw_Data_for_FY22[[#This Row],[Median]])/25)*20) + AAMC_Raw_Data_for_FY22[[#This Row],[Median]]","v":318307.8},329145,{"$f":"(((AAMC_Raw_Data_for_FY22[[#This Row],[75th]]-AAMC_Raw_Data_for_FY22[[#This Row],[Median]])/25)*30) + AAMC_Raw_Data_for_FY22[[#This Row],[Median]]","v":339982.2},{"$f":"(((AAMC_Raw_Data_for_FY22[[#This Row],[75th]]-AAMC_Raw_Data_for_FY22[[#This Row],[Median]])/25)*35) + AAMC_Raw_Data_for_FY22[[#This Row],[Median]]","v":350819.4},{"$f":"(((AAMC_Raw_Data_for_FY22[[#This Row],[75th]]-AAMC_Raw_Data_for_FY22[[#This Row],[Median]])/25)*40) + AAMC_Raw_Data_for_FY22[[#This Row],[Median]]","v":361656.6}]
[{"$f":"AAMC_Raw_Data_for_FY22[[#This Row],[Source]]&AAMC_Raw_Data_for_FY22[[#This Row],[Type]]&AAMC_Raw_Data_for_FY22[[#This Row],[School Subset]]&AAMC_Raw_Data_for_FY22[[#This Row],[Rank]]&AAMC_Raw_Data_for_FY22[[#This Row],[Degree]]&AAMC_Raw_Data_for_FY22[[#This Row],[Department / Specialty]]&\"L\"","v":"AAMCAcademicPrivateProfessorMDNeurologyL"},"Neurology",2,"AAMC","Academic","Private","Professor","MD","2021-2022",261985,{"$f":"(((AAMC_Raw_Data_for_FY22[[#This Row],[Median]]-AAMC_Raw_Data_for_FY22[[#This Row],[25th]])/25)*5) + AAMC_Raw_Data_for_FY22[[#This Row],[25th]]","v":270684.40000000002},{"$f":"(((AAMC_Raw_Data_for_FY22[[#This Row],[Median]]-AAMC_Raw_Data_for_FY22[[#This Row],[25th]])/25)*10) + AAMC_Raw_Data_for_FY22[[#This Row],[25th]]","v":279383.8},{"$f":"(((AAMC_Raw_Data_for_FY22[[#This Row],[Median]]-AAMC_Raw_Data_for_FY22[[#This Row],[25th]])/25)*15) + AAMC_Raw_Data_for_FY22[[#This Row],[25th]]","v":288083.20000000001},{"$f":"(((AAMC_Raw_Data_for_FY22[[#This Row],[Median]]-AAMC_Raw_Data_for_FY22[[#This Row],[25th]])/25)*20) + AAMC_Raw_Data_for_FY22[[#This Row],[25th]]","v":296782.59999999998},305482,{"$f":"(((AAMC_Raw_Data_for_FY22[[#This Row],[75th]]-AAMC_Raw_Data_for_FY22[[#This Row],[Median]])/25)*5) + AAMC_Raw_Data_for_FY22[[#This Row],[Median]]","v":319583},{"$f":"(((AAMC_Raw_Data_for_FY22[[#This Row],[75th]]-AAMC_Raw_Data_for_FY22[[#This Row],[Median]])/25)*10) + AAMC_Raw_Data_for_FY22[[#This Row],[Median]]","v":333684},{"$f":"(((AAMC_Raw_Data_for_FY22[[#This Row],[75th]]-AAMC_Raw_Data_for_FY22[[#This Row],[Median]])/25)*15) + AAMC_Raw_Data_for_FY22[[#This Row],[Median]]","v":347785},{"$f":"(((AAMC_Raw_Data_for_FY22[[#This Row],[75th]]-AAMC_Raw_Data_for_FY22[[#This Row],[Median]])/25)*20) + AAMC_Raw_Data_for_FY22[[#This Row],[Median]]","v":361886},375987,{"$f":"(((AAMC_Raw_Data_for_FY22[[#This Row],[75th]]-AAMC_Raw_Data_for_FY22[[#This Row],[Median]])/25)*30) + AAMC_Raw_Data_for_FY22[[#This Row],[Median]]","v":390088},{"$f":"(((AAMC_Raw_Data_for_FY22[[#This Row],[75th]]-AAMC_Raw_Data_for_FY22[[#This Row],[Median]])/25)*35) + AAMC_Raw_Data_for_FY22[[#This Row],[Median]]","v":404189},{"$f":"(((AAMC_Raw_Data_for_FY22[[#This Row],[75th]]-AAMC_Raw_Data_for_FY22[[#This Row],[Median]])/25)*40) + AAMC_Raw_Data_for_FY22[[#This Row],[Median]]","v":418290}]
[{"$f":"AAMC_Raw_Data_for_FY22[[#This Row],[Source]]&AAMC_Raw_Data_for_FY22[[#This Row],[Type]]&AAMC_Raw_Data_for_FY22[[#This Row],[School Subset]]&AAMC_Raw_Data_for_FY22[[#This Row],[Rank]]&AAMC_Raw_Data_for_FY22[[#This Row],[Degree]]&AAMC_Raw_Data_for_FY22[[#This Row],[Department / Specialty]]&\"L\"","v":"AAMCAcademicPrivateChiefMDNeurologyL"},"Neurology",6,"AAMC","Academic","Private","Chief","MD","2021-2022",287567,{"$f":"(((AAMC_Raw_Data_for_FY22[[#This Row],[Median]]-AAMC_Raw_Data_for_FY22[[#This Row],[25th]])/25)*5) + AAMC_Raw_Data_for_FY22[[#This Row],[25th]]","v":295835.59999999998},{"$f":"(((AAMC_Raw_Data_for_FY22[[#This Row],[Median]]-AAMC_Raw_Data_for_FY22[[#This Row],[25th]])/25)*10) + AAMC_Raw_Data_for_FY22[[#This Row],[25th]]","v":304104.2},{"$f":"(((AAMC_Raw_Data_for_FY22[[#This Row],[Median]]-AAMC_Raw_Data_for_FY22[[#This Row],[25th]])/25)*15) + AAMC_Raw_Data_for_FY22[[#This Row],[25th]]","v":312372.8},{"$f":"(((AAMC_Raw_Data_for_FY22[[#This Row],[Median]]-AAMC_Raw_Data_for_FY22[[#This Row],[25th]])/25)*20) + AAMC_Raw_Data_for_FY22[[#This Row],[25th]]","v":320641.40000000002},328910,{"$f":"(((AAMC_Raw_Data_for_FY22[[#This Row],[75th]]-AAMC_Raw_Data_for_FY22[[#This Row],[Median]])/25)*5) + AAMC_Raw_Data_for_FY22[[#This Row],[Median]]","v":343151.4},{"$f":"(((AAMC_Raw_Data_for_FY22[[#This Row],[75th]]-AAMC_Raw_Data_for_FY22[[#This Row],[Median]])/25)*10) + AAMC_Raw_Data_for_FY22[[#This Row],[Median]]","v":357392.8},{"$f":"(((AAMC_Raw_Data_for_FY22[[#This Row],[75th]]-AAMC_Raw_Data_for_FY22[[#This Row],[Median]])/25)*15) + AAMC_Raw_Data_for_FY22[[#This Row],[Median]]","v":371634.2},{"$f":"(((AAMC_Raw_Data_for_FY22[[#This Row],[75th]]-AAMC_Raw_Data_for_FY22[[#This Row],[Median]])/25)*20) + AAMC_Raw_Data_for_FY22[[#This Row],[Median]]","v":385875.6},400117,{"$f":"(((AAMC_Raw_Data_for_FY22[[#This Row],[75th]]-AAMC_Raw_Data_for_FY22[[#This Row],[Median]])/25)*30) + AAMC_Raw_Data_for_FY22[[#This Row],[Median]]","v":414358.4},{"$f":"(((AAMC_Raw_Data_for_FY22[[#This Row],[75th]]-AAMC_Raw_Data_for_FY22[[#This Row],[Median]])/25)*35) + AAMC_Raw_Data_for_FY22[[#This Row],[Median]]","v":428599.8},{"$f":"(((AAMC_Raw_Data_for_FY22[[#This Row],[75th]]-AAMC_Raw_Data_for_FY22[[#This Row],[Median]])/25)*40) + AAMC_Raw_Data_for_FY22[[#This Row],[Median]]","v":442841.2}]
[{"$f":"AAMC_Raw_Data_for_FY22[[#This Row],[Source]]&AAMC_Raw_Data_for_FY22[[#This Row],[Type]]&AAMC_Raw_Data_for_FY22[[#This Row],[School Subset]]&AAMC_Raw_Data_for_FY22[[#This Row],[Rank]]&AAMC_Raw_Data_for_FY22[[#This Row],[Degree]]&AAMC_Raw_Data_for_FY22[[#This Row],[Department / Specialty]]&\"L\"","v":"AAMCAcademicPrivateChairMDNeurologyL"},"Neurology",1,"AAMC","Academic","Private","Chair","MD","2021-2022",514836,{"$f":"(((AAMC_Raw_Data_for_FY22[[#This Row],[Median]]-AAMC_Raw_Data_for_FY22[[#This Row],[25th]])/25)*5) + AAMC_Raw_Data_for_FY22[[#This Row],[25th]]","v":533560.4},{"$f":"(((AAMC_Raw_Data_for_FY22[[#This Row],[Median]]-AAMC_Raw_Data_for_FY22[[#This Row],[25th]])/25)*10) + AAMC_Raw_Data_for_FY22[[#This Row],[25th]]","v":552284.80000000005},{"$f":"(((AAMC_Raw_Data_for_FY22[[#This Row],[Median]]-AAMC_Raw_Data_for_FY22[[#This Row],[25th]])/25)*15) + AAMC_Raw_Data_for_FY22[[#This Row],[25th]]","v":571009.19999999995},{"$f":"(((AAMC_Raw_Data_for_FY22[[#This Row],[Median]]-AAMC_Raw_Data_for_FY22[[#This Row],[25th]])/25)*20) + AAMC_Raw_Data_for_FY22[[#This Row],[25th]]","v":589733.6},608458,{"$f":"(((AAMC_Raw_Data_for_FY22[[#This Row],[75th]]-AAMC_Raw_Data_for_FY22[[#This Row],[Median]])/25)*5) + AAMC_Raw_Data_for_FY22[[#This Row],[Median]]","v":627509.19999999995},{"$f":"(((AAMC_Raw_Data_for_FY22[[#This Row],[75th]]-AAMC_Raw_Data_for_FY22[[#This Row],[Median]])/25)*10) + AAMC_Raw_Data_for_FY22[[#This Row],[Median]]","v":646560.4},{"$f":"(((AAMC_Raw_Data_for_FY22[[#This Row],[75th]]-AAMC_Raw_Data_for_FY22[[#This Row],[Median]])/25)*15) + AAMC_Raw_Data_for_FY22[[#This Row],[Median]]","v":665611.6},{"$f":"(((AAMC_Raw_Data_for_FY22[[#This Row],[75th]]-AAMC_Raw_Data_for_FY22[[#This Row],[Median]])/25)*20) + AAMC_Raw_Data_for_FY22[[#This Row],[Median]]","v":684662.8},703714,{"$f":"(((AAMC_Raw_Data_for_FY22[[#This Row],[75th]]-AAMC_Raw_Data_for_FY22[[#This Row],[Median]])/25)*30) + AAMC_Raw_Data_for_FY22[[#This Row],[Median]]","v":722765.2},{"$f":"(((AAMC_Raw_Data_for_FY22[[#This Row],[75th]]-AAMC_Raw_Data_for_FY22[[#This Row],[Median]])/25)*35) + AAMC_Raw_Data_for_FY22[[#This Row],[Median]]","v":741816.4},{"$f":"(((AAMC_Raw_Data_for_FY22[[#This Row],[75th]]-AAMC_Raw_Data_for_FY22[[#This Row],[Median]])/25)*40) + AAMC_Raw_Data_for_FY22[[#This Row],[Median]]","v":760867.6}]
[{"$f":"AAMC_Raw_Data_for_FY22[[#This Row],[Source]]&AAMC_Raw_Data_for_FY22[[#This Row],[Type]]&AAMC_Raw_Data_for_FY22[[#This Row],[School Subset]]&AAMC_Raw_Data_for_FY22[[#This Row],[Rank]]&AAMC_Raw_Data_for_FY22[[#This Row],[Degree]]&AAMC_Raw_Data_for_FY22[[#This Row],[Department / Specialty]]&\"L\"","v":"AAMCAcademicPrivateInstructorMDOphthalmologyL"},"Ophthalmology",5,"AAMC","Academic","Private","Instructor","MD","2021-2022",84794,{"$f":"(((AAMC_Raw_Data_for_FY22[[#This Row],[Median]]-AAMC_Raw_Data_for_FY22[[#This Row],[25th]])/25)*5) + AAMC_Raw_Data_for_FY22[[#This Row],[25th]]","v":92835.199999999997},{"$f":"(((AAMC_Raw_Data_for_FY22[[#This Row],[Median]]-AAMC_Raw_Data_for_FY22[[#This Row],[25th]])/25)*10) + AAMC_Raw_Data_for_FY22[[#This Row],[25th]]","v":100876.4},{"$f":"(((AAMC_Raw_Data_for_FY22[[#This Row],[Median]]-AAMC_Raw_Data_for_FY22[[#This Row],[25th]])/25)*15) + AAMC_Raw_Data_for_FY22[[#This Row],[25th]]","v":108917.6},{"$f":"(((AAMC_Raw_Data_for_FY22[[#This Row],[Median]]-AAMC_Raw_Data_for_FY22[[#This Row],[25th]])/25)*20) + AAMC_Raw_Data_for_FY22[[#This Row],[25th]]","v":116958.8},125000,{"$f":"(((AAMC_Raw_Data_for_FY22[[#This Row],[75th]]-AAMC_Raw_Data_for_FY22[[#This Row],[Median]])/25)*5) + AAMC_Raw_Data_for_FY22[[#This Row],[Median]]","v":137029.6},{"$f":"(((AAMC_Raw_Data_for_FY22[[#This Row],[75th]]-AAMC_Raw_Data_for_FY22[[#This Row],[Median]])/25)*10) + AAMC_Raw_Data_for_FY22[[#This Row],[Median]]","v":149059.20000000001},{"$f":"(((AAMC_Raw_Data_for_FY22[[#This Row],[75th]]-AAMC_Raw_Data_for_FY22[[#This Row],[Median]])/25)*15) + AAMC_Raw_Data_for_FY22[[#This Row],[Median]]","v":161088.79999999999},{"$f":"(((AAMC_Raw_Data_for_FY22[[#This Row],[75th]]-AAMC_Raw_Data_for_FY22[[#This Row],[Median]])/25)*20) + AAMC_Raw_Data_for_FY22[[#This Row],[Median]]","v":173118.4},185148,{"$f":"(((AAMC_Raw_Data_for_FY22[[#This Row],[75th]]-AAMC_Raw_Data_for_FY22[[#This Row],[Median]])/25)*30) + AAMC_Raw_Data_for_FY22[[#This Row],[Median]]","v":197177.60000000001},{"$f":"(((AAMC_Raw_Data_for_FY22[[#This Row],[75th]]-AAMC_Raw_Data_for_FY22[[#This Row],[Median]])/25)*35) + AAMC_Raw_Data_for_FY22[[#This Row],[Median]]","v":209207.2},{"$f":"(((AAMC_Raw_Data_for_FY22[[#This Row],[75th]]-AAMC_Raw_Data_for_FY22[[#This Row],[Median]])/25)*40) + AAMC_Raw_Data_for_FY22[[#This Row],[Median]]","v":221236.8}]
[{"$f":"AAMC_Raw_Data_for_FY22[[#This Row],[Source]]&AAMC_Raw_Data_for_FY22[[#This Row],[Type]]&AAMC_Raw_Data_for_FY22[[#This Row],[School Subset]]&AAMC_Raw_Data_for_FY22[[#This Row],[Rank]]&AAMC_Raw_Data_for_FY22[[#This Row],[Degree]]&AAMC_Raw_Data_for_FY22[[#This Row],[Department / Specialty]]&\"L\"","v":"AAMCAcademicPrivateAssistantMDOphthalmologyL"},"Ophthalmology",4,"AAMC","Academic","Private","Assistant","MD","2021-2022",238889,{"$f":"(((AAMC_Raw_Data_for_FY22[[#This Row],[Median]]-AAMC_Raw_Data_for_FY22[[#This Row],[25th]])/25)*5) + AAMC_Raw_Data_for_FY22[[#This Row],[25th]]","v":250740.2},{"$f":"(((AAMC_Raw_Data_for_FY22[[#This Row],[Median]]-AAMC_Raw_Data_for_FY22[[#This Row],[25th]])/25)*10) + AAMC_Raw_Data_for_FY22[[#This Row],[25th]]","v":262591.40000000002},{"$f":"(((AAMC_Raw_Data_for_FY22[[#This Row],[Median]]-AAMC_Raw_Data_for_FY22[[#This Row],[25th]])/25)*15) + AAMC_Raw_Data_for_FY22[[#This Row],[25th]]","v":274442.59999999998},{"$f":"(((AAMC_Raw_Data_for_FY22[[#This Row],[Median]]-AAMC_Raw_Data_for_FY22[[#This Row],[25th]])/25)*20) + AAMC_Raw_Data_for_FY22[[#This Row],[25th]]","v":286293.8},298145,{"$f":"(((AAMC_Raw_Data_for_FY22[[#This Row],[75th]]-AAMC_Raw_Data_for_FY22[[#This Row],[Median]])/25)*5) + AAMC_Raw_Data_for_FY22[[#This Row],[Median]]","v":313556},{"$f":"(((AAMC_Raw_Data_for_FY22[[#This Row],[75th]]-AAMC_Raw_Data_for_FY22[[#This Row],[Median]])/25)*10) + AAMC_Raw_Data_for_FY22[[#This Row],[Median]]","v":328967},{"$f":"(((AAMC_Raw_Data_for_FY22[[#This Row],[75th]]-AAMC_Raw_Data_for_FY22[[#This Row],[Median]])/25)*15) + AAMC_Raw_Data_for_FY22[[#This Row],[Median]]","v":344378},{"$f":"(((AAMC_Raw_Data_for_FY22[[#This Row],[75th]]-AAMC_Raw_Data_for_FY22[[#This Row],[Median]])/25)*20) + AAMC_Raw_Data_for_FY22[[#This Row],[Median]]","v":359789},375200,{"$f":"(((AAMC_Raw_Data_for_FY22[[#This Row],[75th]]-AAMC_Raw_Data_for_FY22[[#This Row],[Median]])/25)*30) + AAMC_Raw_Data_for_FY22[[#This Row],[Median]]","v":390611},{"$f":"(((AAMC_Raw_Data_for_FY22[[#This Row],[75th]]-AAMC_Raw_Data_for_FY22[[#This Row],[Median]])/25)*35) + AAMC_Raw_Data_for_FY22[[#This Row],[Median]]","v":406022},{"$f":"(((AAMC_Raw_Data_for_FY22[[#This Row],[75th]]-AAMC_Raw_Data_for_FY22[[#This Row],[Median]])/25)*40) + AAMC_Raw_Data_for_FY22[[#This Row],[Median]]","v":421433}]
[{"$f":"AAMC_Raw_Data_for_FY22[[#This Row],[Source]]&AAMC_Raw_Data_for_FY22[[#This Row],[Type]]&AAMC_Raw_Data_for_FY22[[#This Row],[School Subset]]&AAMC_Raw_Data_for_FY22[[#This Row],[Rank]]&AAMC_Raw_Data_for_FY22[[#This Row],[Degree]]&AAMC_Raw_Data_for_FY22[[#This Row],[Department / Specialty]]&\"L\"","v":"AAMCAcademicPrivateAssociateMDOphthalmologyL"},"Ophthalmology",3,"AAMC","Academic","Private","Associate","MD","2021-2022",280000,{"$f":"(((AAMC_Raw_Data_for_FY22[[#This Row],[Median]]-AAMC_Raw_Data_for_FY22[[#This Row],[25th]])/25)*5) + AAMC_Raw_Data_for_FY22[[#This Row],[25th]]","v":298717.40000000002},{"$f":"(((AAMC_Raw_Data_for_FY22[[#This Row],[Median]]-AAMC_Raw_Data_for_FY22[[#This Row],[25th]])/25)*10) + AAMC_Raw_Data_for_FY22[[#This Row],[25th]]","v":317434.8},{"$f":"(((AAMC_Raw_Data_for_FY22[[#This Row],[Median]]-AAMC_Raw_Data_for_FY22[[#This Row],[25th]])/25)*15) + AAMC_Raw_Data_for_FY22[[#This Row],[25th]]","v":336152.2},{"$f":"(((AAMC_Raw_Data_for_FY22[[#This Row],[Median]]-AAMC_Raw_Data_for_FY22[[#This Row],[25th]])/25)*20) + AAMC_Raw_Data_for_FY22[[#This Row],[25th]]","v":354869.6},373587,{"$f":"(((AAMC_Raw_Data_for_FY22[[#This Row],[75th]]-AAMC_Raw_Data_for_FY22[[#This Row],[Median]])/25)*5) + AAMC_Raw_Data_for_FY22[[#This Row],[Median]]","v":390911.2},{"$f":"(((AAMC_Raw_Data_for_FY22[[#This Row],[75th]]-AAMC_Raw_Data_for_FY22[[#This Row],[Median]])/25)*10) + AAMC_Raw_Data_for_FY22[[#This Row],[Median]]","v":408235.4},{"$f":"(((AAMC_Raw_Data_for_FY22[[#This Row],[75th]]-AAMC_Raw_Data_for_FY22[[#This Row],[Median]])/25)*15) + AAMC_Raw_Data_for_FY22[[#This Row],[Median]]","v":425559.6},{"$f":"(((AAMC_Raw_Data_for_FY22[[#This Row],[75th]]-AAMC_Raw_Data_for_FY22[[#This Row],[Median]])/25)*20) + AAMC_Raw_Data_for_FY22[[#This Row],[Median]]","v":442883.8},460208,{"$f":"(((AAMC_Raw_Data_for_FY22[[#This Row],[75th]]-AAMC_Raw_Data_for_FY22[[#This Row],[Median]])/25)*30) + AAMC_Raw_Data_for_FY22[[#This Row],[Median]]","v":477532.2},{"$f":"(((AAMC_Raw_Data_for_FY22[[#This Row],[75th]]-AAMC_Raw_Data_for_FY22[[#This Row],[Median]])/25)*35) + AAMC_Raw_Data_for_FY22[[#This Row],[Median]]","v":494856.4},{"$f":"(((AAMC_Raw_Data_for_FY22[[#This Row],[75th]]-AAMC_Raw_Data_for_FY22[[#This Row],[Median]])/25)*40) + AAMC_Raw_Data_for_FY22[[#This Row],[Median]]","v":512180.6}]
[{"$f":"AAMC_Raw_Data_for_FY22[[#This Row],[Source]]&AAMC_Raw_Data_for_FY22[[#This Row],[Type]]&AAMC_Raw_Data_for_FY22[[#This Row],[School Subset]]&AAMC_Raw_Data_for_FY22[[#This Row],[Rank]]&AAMC_Raw_Data_for_FY22[[#This Row],[Degree]]&AAMC_Raw_Data_for_FY22[[#This Row],[Department / Specialty]]&\"L\"","v":"AAMCAcademicPrivateProfessorMDOphthalmologyL"},"Ophthalmology",2,"AAMC","Academic","Private","Professor","MD","2021-2022",327291,{"$f":"(((AAMC_Raw_Data_for_FY22[[#This Row],[Median]]-AAMC_Raw_Data_for_FY22[[#This Row],[25th]])/25)*5) + AAMC_Raw_Data_for_FY22[[#This Row],[25th]]","v":342179.2},{"$f":"(((AAMC_Raw_Data_for_FY22[[#This Row],[Median]]-AAMC_Raw_Data_for_FY22[[#This Row],[25th]])/25)*10) + AAMC_Raw_Data_for_FY22[[#This Row],[25th]]","v":357067.4},{"$f":"(((AAMC_Raw_Data_for_FY22[[#This Row],[Median]]-AAMC_Raw_Data_for_FY22[[#This Row],[25th]])/25)*15) + AAMC_Raw_Data_for_FY22[[#This Row],[25th]]","v":371955.6},{"$f":"(((AAMC_Raw_Data_for_FY22[[#This Row],[Median]]-AAMC_Raw_Data_for_FY22[[#This Row],[25th]])/25)*20) + AAMC_Raw_Data_for_FY22[[#This Row],[25th]]","v":386843.8},401732,{"$f":"(((AAMC_Raw_Data_for_FY22[[#This Row],[75th]]-AAMC_Raw_Data_for_FY22[[#This Row],[Median]])/25)*5) + AAMC_Raw_Data_for_FY22[[#This Row],[Median]]","v":430648.6},{"$f":"(((AAMC_Raw_Data_for_FY22[[#This Row],[75th]]-AAMC_Raw_Data_for_FY22[[#This Row],[Median]])/25)*10) + AAMC_Raw_Data_for_FY22[[#This Row],[Median]]","v":459565.2},{"$f":"(((AAMC_Raw_Data_for_FY22[[#This Row],[75th]]-AAMC_Raw_Data_for_FY22[[#This Row],[Median]])/25)*15) + AAMC_Raw_Data_for_FY22[[#This Row],[Median]]","v":488481.8},{"$f":"(((AAMC_Raw_Data_for_FY22[[#This Row],[75th]]-AAMC_Raw_Data_for_FY22[[#This Row],[Median]])/25)*20) + AAMC_Raw_Data_for_FY22[[#This Row],[Median]]","v":517398.4},546315,{"$f":"(((AAMC_Raw_Data_for_FY22[[#This Row],[75th]]-AAMC_Raw_Data_for_FY22[[#This Row],[Median]])/25)*30) + AAMC_Raw_Data_for_FY22[[#This Row],[Median]]","v":575231.6},{"$f":"(((AAMC_Raw_Data_for_FY22[[#This Row],[75th]]-AAMC_Raw_Data_for_FY22[[#This Row],[Median]])/25)*35) + AAMC_Raw_Data_for_FY22[[#This Row],[Median]]","v":604148.19999999995},{"$f":"(((AAMC_Raw_Data_for_FY22[[#This Row],[75th]]-AAMC_Raw_Data_for_FY22[[#This Row],[Median]])/25)*40) + AAMC_Raw_Data_for_FY22[[#This Row],[Median]]","v":633064.80000000005}]
[{"$f":"AAMC_Raw_Data_for_FY22[[#This Row],[Source]]&AAMC_Raw_Data_for_FY22[[#This Row],[Type]]&AAMC_Raw_Data_for_FY22[[#This Row],[School Subset]]&AAMC_Raw_Data_for_FY22[[#This Row],[Rank]]&AAMC_Raw_Data_for_FY22[[#This Row],[Degree]]&AAMC_Raw_Data_for_FY22[[#This Row],[Department / Specialty]]&\"L\"","v":"AAMCAcademicPrivateChiefMDOphthalmologyL"},"Ophthalmology",6,"AAMC","Academic","Private","Chief","MD","2021-2022",385863,{"$f":"(((AAMC_Raw_Data_for_FY22[[#This Row],[Median]]-AAMC_Raw_Data_for_FY22[[#This Row],[25th]])/25)*5) + AAMC_Raw_Data_for_FY22[[#This Row],[25th]]","v":416339.6},{"$f":"(((AAMC_Raw_Data_for_FY22[[#This Row],[Median]]-AAMC_Raw_Data_for_FY22[[#This Row],[25th]])/25)*10) + AAMC_Raw_Data_for_FY22[[#This Row],[25th]]","v":446816.2},{"$f":"(((AAMC_Raw_Data_for_FY22[[#This Row],[Median]]-AAMC_Raw_Data_for_FY22[[#This Row],[25th]])/25)*15) + AAMC_Raw_Data_for_FY22[[#This Row],[25th]]","v":477292.79999999999},{"$f":"(((AAMC_Raw_Data_for_FY22[[#This Row],[Median]]-AAMC_Raw_Data_for_FY22[[#This Row],[25th]])/25)*20) + AAMC_Raw_Data_for_FY22[[#This Row],[25th]]","v":507769.4},538246,{"$f":"(((AAMC_Raw_Data_for_FY22[[#This Row],[75th]]-AAMC_Raw_Data_for_FY22[[#This Row],[Median]])/25)*5) + AAMC_Raw_Data_for_FY22[[#This Row],[Median]]","v":574443},{"$f":"(((AAMC_Raw_Data_for_FY22[[#This Row],[75th]]-AAMC_Raw_Data_for_FY22[[#This Row],[Median]])/25)*10) + AAMC_Raw_Data_for_FY22[[#This Row],[Median]]","v":610640},{"$f":"(((AAMC_Raw_Data_for_FY22[[#This Row],[75th]]-AAMC_Raw_Data_for_FY22[[#This Row],[Median]])/25)*15) + AAMC_Raw_Data_for_FY22[[#This Row],[Median]]","v":646837},{"$f":"(((AAMC_Raw_Data_for_FY22[[#This Row],[75th]]-AAMC_Raw_Data_for_FY22[[#This Row],[Median]])/25)*20) + AAMC_Raw_Data_for_FY22[[#This Row],[Median]]","v":683034},719231,{"$f":"(((AAMC_Raw_Data_for_FY22[[#This Row],[75th]]-AAMC_Raw_Data_for_FY22[[#This Row],[Median]])/25)*30) + AAMC_Raw_Data_for_FY22[[#This Row],[Median]]","v":755428},{"$f":"(((AAMC_Raw_Data_for_FY22[[#This Row],[75th]]-AAMC_Raw_Data_for_FY22[[#This Row],[Median]])/25)*35) + AAMC_Raw_Data_for_FY22[[#This Row],[Median]]","v":791625},{"$f":"(((AAMC_Raw_Data_for_FY22[[#This Row],[75th]]-AAMC_Raw_Data_for_FY22[[#This Row],[Median]])/25)*40) + AAMC_Raw_Data_for_FY22[[#This Row],[Median]]","v":827822}]
[{"$f":"AAMC_Raw_Data_for_FY22[[#This Row],[Source]]&AAMC_Raw_Data_for_FY22[[#This Row],[Type]]&AAMC_Raw_Data_for_FY22[[#This Row],[School Subset]]&AAMC_Raw_Data_for_FY22[[#This Row],[Rank]]&AAMC_Raw_Data_for_FY22[[#This Row],[Degree]]&AAMC_Raw_Data_for_FY22[[#This Row],[Department / Specialty]]&\"L\"","v":"AAMCAcademicPrivateChairMDOphthalmologyL"},"Ophthalmology",1,"AAMC","Academic","Private","Chair","MD","2021-2022",699943,{"$f":"(((AAMC_Raw_Data_for_FY22[[#This Row],[Median]]-AAMC_Raw_Data_for_FY22[[#This Row],[25th]])/25)*5) + AAMC_Raw_Data_for_FY22[[#This Row],[25th]]","v":714863.4},{"$f":"(((AAMC_Raw_Data_for_FY22[[#This Row],[Median]]-AAMC_Raw_Data_for_FY22[[#This Row],[25th]])/25)*10) + AAMC_Raw_Data_for_FY22[[#This Row],[25th]]","v":729783.8},{"$f":"(((AAMC_Raw_Data_for_FY22[[#This Row],[Median]]-AAMC_Raw_Data_for_FY22[[#This Row],[25th]])/25)*15) + AAMC_Raw_Data_for_FY22[[#This Row],[25th]]","v":744704.2},{"$f":"(((AAMC_Raw_Data_for_FY22[[#This Row],[Median]]-AAMC_Raw_Data_for_FY22[[#This Row],[25th]])/25)*20) + AAMC_Raw_Data_for_FY22[[#This Row],[25th]]","v":759624.6},774545,{"$f":"(((AAMC_Raw_Data_for_FY22[[#This Row],[75th]]-AAMC_Raw_Data_for_FY22[[#This Row],[Median]])/25)*5) + AAMC_Raw_Data_for_FY22[[#This Row],[Median]]","v":801551.4},{"$f":"(((AAMC_Raw_Data_for_FY22[[#This Row],[75th]]-AAMC_Raw_Data_for_FY22[[#This Row],[Median]])/25)*10) + AAMC_Raw_Data_for_FY22[[#This Row],[Median]]","v":828557.8},{"$f":"(((AAMC_Raw_Data_for_FY22[[#This Row],[75th]]-AAMC_Raw_Data_for_FY22[[#This Row],[Median]])/25)*15) + AAMC_Raw_Data_for_FY22[[#This Row],[Median]]","v":855564.2},{"$f":"(((AAMC_Raw_Data_for_FY22[[#This Row],[75th]]-AAMC_Raw_Data_for_FY22[[#This Row],[Median]])/25)*20) + AAMC_Raw_Data_for_FY22[[#This Row],[Median]]","v":882570.6},909577,{"$f":"(((AAMC_Raw_Data_for_FY22[[#This Row],[75th]]-AAMC_Raw_Data_for_FY22[[#This Row],[Median]])/25)*30) + AAMC_Raw_Data_for_FY22[[#This Row],[Median]]","v":936583.4},{"$f":"(((AAMC_Raw_Data_for_FY22[[#This Row],[75th]]-AAMC_Raw_Data_for_FY22[[#This Row],[Median]])/25)*35) + AAMC_Raw_Data_for_FY22[[#This Row],[Median]]","v":963589.8},{"$f":"(((AAMC_Raw_Data_for_FY22[[#This Row],[75th]]-AAMC_Raw_Data_for_FY22[[#This Row],[Median]])/25)*40) + AAMC_Raw_Data_for_FY22[[#This Row],[Median]]","v":990596.2}]
[{"$f":"AAMC_Raw_Data_for_FY22[[#This Row],[Source]]&AAMC_Raw_Data_for_FY22[[#This Row],[Type]]&AAMC_Raw_Data_for_FY22[[#This Row],[School Subset]]&AAMC_Raw_Data_for_FY22[[#This Row],[Rank]]&AAMC_Raw_Data_for_FY22[[#This Row],[Degree]]&AAMC_Raw_Data_for_FY22[[#This Row],[Department / Specialty]]&\"L\"","v":"AAMCAcademicPrivateInstructorMDOtolaryngologyL"},"Otolaryngology",5,"AAMC","Academic","Private","Instructor","MD","2021-2022",74817,{"$f":"(((AAMC_Raw_Data_for_FY22[[#This Row],[Median]]-AAMC_Raw_Data_for_FY22[[#This Row],[25th]])/25)*5) + AAMC_Raw_Data_for_FY22[[#This Row],[25th]]","v":78083},{"$f":"(((AAMC_Raw_Data_for_FY22[[#This Row],[Median]]-AAMC_Raw_Data_for_FY22[[#This Row],[25th]])/25)*10) + AAMC_Raw_Data_for_FY22[[#This Row],[25th]]","v":81349},{"$f":"(((AAMC_Raw_Data_for_FY22[[#This Row],[Median]]-AAMC_Raw_Data_for_FY22[[#This Row],[25th]])/25)*15) + AAMC_Raw_Data_for_FY22[[#This Row],[25th]]","v":84615},{"$f":"(((AAMC_Raw_Data_for_FY22[[#This Row],[Median]]-AAMC_Raw_Data_for_FY22[[#This Row],[25th]])/25)*20) + AAMC_Raw_Data_for_FY22[[#This Row],[25th]]","v":87881},91147,{"$f":"(((AAMC_Raw_Data_for_FY22[[#This Row],[75th]]-AAMC_Raw_Data_for_FY22[[#This Row],[Median]])/25)*5) + AAMC_Raw_Data_for_FY22[[#This Row],[Median]]","v":140252.6},{"$f":"(((AAMC_Raw_Data_for_FY22[[#This Row],[75th]]-AAMC_Raw_Data_for_FY22[[#This Row],[Median]])/25)*10) + AAMC_Raw_Data_for_FY22[[#This Row],[Median]]","v":189358.2},{"$f":"(((AAMC_Raw_Data_for_FY22[[#This Row],[75th]]-AAMC_Raw_Data_for_FY22[[#This Row],[Median]])/25)*15) + AAMC_Raw_Data_for_FY22[[#This Row],[Median]]","v":238463.80000000002},{"$f":"(((AAMC_Raw_Data_for_FY22[[#This Row],[75th]]-AAMC_Raw_Data_for_FY22[[#This Row],[Median]])/25)*20) + AAMC_Raw_Data_for_FY22[[#This Row],[Median]]","v":287569.40000000002},336675,{"$f":"(((AAMC_Raw_Data_for_FY22[[#This Row],[75th]]-AAMC_Raw_Data_for_FY22[[#This Row],[Median]])/25)*30) + AAMC_Raw_Data_for_FY22[[#This Row],[Median]]","v":385780.60000000003},{"$f":"(((AAMC_Raw_Data_for_FY22[[#This Row],[75th]]-AAMC_Raw_Data_for_FY22[[#This Row],[Median]])/25)*35) + AAMC_Raw_Data_for_FY22[[#This Row],[Median]]","v":434886.2},{"$f":"(((AAMC_Raw_Data_for_FY22[[#This Row],[75th]]-AAMC_Raw_Data_for_FY22[[#This Row],[Median]])/25)*40) + AAMC_Raw_Data_for_FY22[[#This Row],[Median]]","v":483991.80000000005}]
[{"$f":"AAMC_Raw_Data_for_FY22[[#This Row],[Source]]&AAMC_Raw_Data_for_FY22[[#This Row],[Type]]&AAMC_Raw_Data_for_FY22[[#This Row],[School Subset]]&AAMC_Raw_Data_for_FY22[[#This Row],[Rank]]&AAMC_Raw_Data_for_FY22[[#This Row],[Degree]]&AAMC_Raw_Data_for_FY22[[#This Row],[Department / Specialty]]&\"L\"","v":"AAMCAcademicPrivateAssistantMDOtolaryngologyL"},"Otolaryngology",4,"AAMC","Academic","Private","Assistant","MD","2021-2022",306500,{"$f":"(((AAMC_Raw_Data_for_FY22[[#This Row],[Median]]-AAMC_Raw_Data_for_FY22[[#This Row],[25th]])/25)*5) + AAMC_Raw_Data_for_FY22[[#This Row],[25th]]","v":315962},{"$f":"(((AAMC_Raw_Data_for_FY22[[#This Row],[Median]]-AAMC_Raw_Data_for_FY22[[#This Row],[25th]])/25)*10) + AAMC_Raw_Data_for_FY22[[#This Row],[25th]]","v":325424},{"$f":"(((AAMC_Raw_Data_for_FY22[[#This Row],[Median]]-AAMC_Raw_Data_for_FY22[[#This Row],[25th]])/25)*15) + AAMC_Raw_Data_for_FY22[[#This Row],[25th]]","v":334886},{"$f":"(((AAMC_Raw_Data_for_FY22[[#This Row],[Median]]-AAMC_Raw_Data_for_FY22[[#This Row],[25th]])/25)*20) + AAMC_Raw_Data_for_FY22[[#This Row],[25th]]","v":344348},353810,{"$f":"(((AAMC_Raw_Data_for_FY22[[#This Row],[75th]]-AAMC_Raw_Data_for_FY22[[#This Row],[Median]])/25)*5) + AAMC_Raw_Data_for_FY22[[#This Row],[Median]]","v":374221.2},{"$f":"(((AAMC_Raw_Data_for_FY22[[#This Row],[75th]]-AAMC_Raw_Data_for_FY22[[#This Row],[Median]])/25)*10) + AAMC_Raw_Data_for_FY22[[#This Row],[Median]]","v":394632.4},{"$f":"(((AAMC_Raw_Data_for_FY22[[#This Row],[75th]]-AAMC_Raw_Data_for_FY22[[#This Row],[Median]])/25)*15) + AAMC_Raw_Data_for_FY22[[#This Row],[Median]]","v":415043.6},{"$f":"(((AAMC_Raw_Data_for_FY22[[#This Row],[75th]]-AAMC_Raw_Data_for_FY22[[#This Row],[Median]])/25)*20) + AAMC_Raw_Data_for_FY22[[#This Row],[Median]]","v":435454.8},455866,{"$f":"(((AAMC_Raw_Data_for_FY22[[#This Row],[75th]]-AAMC_Raw_Data_for_FY22[[#This Row],[Median]])/25)*30) + AAMC_Raw_Data_for_FY22[[#This Row],[Median]]","v":476277.2},{"$f":"(((AAMC_Raw_Data_for_FY22[[#This Row],[75th]]-AAMC_Raw_Data_for_FY22[[#This Row],[Median]])/25)*35) + AAMC_Raw_Data_for_FY22[[#This Row],[Median]]","v":496688.4},{"$f":"(((AAMC_Raw_Data_for_FY22[[#This Row],[75th]]-AAMC_Raw_Data_for_FY22[[#This Row],[Median]])/25)*40) + AAMC_Raw_Data_for_FY22[[#This Row],[Median]]","v":517099.6}]
[{"$f":"AAMC_Raw_Data_for_FY22[[#This Row],[Source]]&AAMC_Raw_Data_for_FY22[[#This Row],[Type]]&AAMC_Raw_Data_for_FY22[[#This Row],[School Subset]]&AAMC_Raw_Data_for_FY22[[#This Row],[Rank]]&AAMC_Raw_Data_for_FY22[[#This Row],[Degree]]&AAMC_Raw_Data_for_FY22[[#This Row],[Department / Specialty]]&\"L\"","v":"AAMCAcademicPrivateAssociateMDOtolaryngologyL"},"Otolaryngology",3,"AAMC","Academic","Private","Associate","MD","2021-2022",394811,{"$f":"(((AAMC_Raw_Data_for_FY22[[#This Row],[Median]]-AAMC_Raw_Data_for_FY22[[#This Row],[25th]])/25)*5) + AAMC_Raw_Data_for_FY22[[#This Row],[25th]]","v":415182.8},{"$f":"(((AAMC_Raw_Data_for_FY22[[#This Row],[Median]]-AAMC_Raw_Data_for_FY22[[#This Row],[25th]])/25)*10) + AAMC_Raw_Data_for_FY22[[#This Row],[25th]]","v":435554.6},{"$f":"(((AAMC_Raw_Data_for_FY22[[#This Row],[Median]]-AAMC_Raw_Data_for_FY22[[#This Row],[25th]])/25)*15) + AAMC_Raw_Data_for_FY22[[#This Row],[25th]]","v":455926.4},{"$f":"(((AAMC_Raw_Data_for_FY22[[#This Row],[Median]]-AAMC_Raw_Data_for_FY22[[#This Row],[25th]])/25)*20) + AAMC_Raw_Data_for_FY22[[#This Row],[25th]]","v":476298.2},496670,{"$f":"(((AAMC_Raw_Data_for_FY22[[#This Row],[75th]]-AAMC_Raw_Data_for_FY22[[#This Row],[Median]])/25)*5) + AAMC_Raw_Data_for_FY22[[#This Row],[Median]]","v":521728.6},{"$f":"(((AAMC_Raw_Data_for_FY22[[#This Row],[75th]]-AAMC_Raw_Data_for_FY22[[#This Row],[Median]])/25)*10) + AAMC_Raw_Data_for_FY22[[#This Row],[Median]]","v":546787.19999999995},{"$f":"(((AAMC_Raw_Data_for_FY22[[#This Row],[75th]]-AAMC_Raw_Data_for_FY22[[#This Row],[Median]])/25)*15) + AAMC_Raw_Data_for_FY22[[#This Row],[Median]]","v":571845.80000000005},{"$f":"(((AAMC_Raw_Data_for_FY22[[#This Row],[75th]]-AAMC_Raw_Data_for_FY22[[#This Row],[Median]])/25)*20) + AAMC_Raw_Data_for_FY22[[#This Row],[Median]]","v":596904.4},621963,{"$f":"(((AAMC_Raw_Data_for_FY22[[#This Row],[75th]]-AAMC_Raw_Data_for_FY22[[#This Row],[Median]])/25)*30) + AAMC_Raw_Data_for_FY22[[#This Row],[Median]]","v":647021.6},{"$f":"(((AAMC_Raw_Data_for_FY22[[#This Row],[75th]]-AAMC_Raw_Data_for_FY22[[#This Row],[Median]])/25)*35) + AAMC_Raw_Data_for_FY22[[#This Row],[Median]]","v":672080.2},{"$f":"(((AAMC_Raw_Data_for_FY22[[#This Row],[75th]]-AAMC_Raw_Data_for_FY22[[#This Row],[Median]])/25)*40) + AAMC_Raw_Data_for_FY22[[#This Row],[Median]]","v":697138.8}]
[{"$f":"AAMC_Raw_Data_for_FY22[[#This Row],[Source]]&AAMC_Raw_Data_for_FY22[[#This Row],[Type]]&AAMC_Raw_Data_for_FY22[[#This Row],[School Subset]]&AAMC_Raw_Data_for_FY22[[#This Row],[Rank]]&AAMC_Raw_Data_for_FY22[[#This Row],[Degree]]&AAMC_Raw_Data_for_FY22[[#This Row],[Department / Specialty]]&\"L\"","v":"AAMCAcademicPrivateProfessorMDOtolaryngologyL"},"Otolaryngology",2,"AAMC","Academic","Private","Professor","MD","2021-2022",424279,{"$f":"(((AAMC_Raw_Data_for_FY22[[#This Row],[Median]]-AAMC_Raw_Data_for_FY22[[#This Row],[25th]])/25)*5) + AAMC_Raw_Data_for_FY22[[#This Row],[25th]]","v":448877.2},{"$f":"(((AAMC_Raw_Data_for_FY22[[#This Row],[Median]]-AAMC_Raw_Data_for_FY22[[#This Row],[25th]])/25)*10) + AAMC_Raw_Data_for_FY22[[#This Row],[25th]]","v":473475.4},{"$f":"(((AAMC_Raw_Data_for_FY22[[#This Row],[Median]]-AAMC_Raw_Data_for_FY22[[#This Row],[25th]])/25)*15) + AAMC_Raw_Data_for_FY22[[#This Row],[25th]]","v":498073.59999999998},{"$f":"(((AAMC_Raw_Data_for_FY22[[#This Row],[Median]]-AAMC_Raw_Data_for_FY22[[#This Row],[25th]])/25)*20) + AAMC_Raw_Data_for_FY22[[#This Row],[25th]]","v":522671.8},547270,{"$f":"(((AAMC_Raw_Data_for_FY22[[#This Row],[75th]]-AAMC_Raw_Data_for_FY22[[#This Row],[Median]])/25)*5) + AAMC_Raw_Data_for_FY22[[#This Row],[Median]]","v":579293.80000000005},{"$f":"(((AAMC_Raw_Data_for_FY22[[#This Row],[75th]]-AAMC_Raw_Data_for_FY22[[#This Row],[Median]])/25)*10) + AAMC_Raw_Data_for_FY22[[#This Row],[Median]]","v":611317.6},{"$f":"(((AAMC_Raw_Data_for_FY22[[#This Row],[75th]]-AAMC_Raw_Data_for_FY22[[#This Row],[Median]])/25)*15) + AAMC_Raw_Data_for_FY22[[#This Row],[Median]]","v":643341.4},{"$f":"(((AAMC_Raw_Data_for_FY22[[#This Row],[75th]]-AAMC_Raw_Data_for_FY22[[#This Row],[Median]])/25)*20) + AAMC_Raw_Data_for_FY22[[#This Row],[Median]]","v":675365.2},707389,{"$f":"(((AAMC_Raw_Data_for_FY22[[#This Row],[75th]]-AAMC_Raw_Data_for_FY22[[#This Row],[Median]])/25)*30) + AAMC_Raw_Data_for_FY22[[#This Row],[Median]]","v":739412.8},{"$f":"(((AAMC_Raw_Data_for_FY22[[#This Row],[75th]]-AAMC_Raw_Data_for_FY22[[#This Row],[Median]])/25)*35) + AAMC_Raw_Data_for_FY22[[#This Row],[Median]]","v":771436.6},{"$f":"(((AAMC_Raw_Data_for_FY22[[#This Row],[75th]]-AAMC_Raw_Data_for_FY22[[#This Row],[Median]])/25)*40) + AAMC_Raw_Data_for_FY22[[#This Row],[Median]]","v":803460.4}]
[{"$f":"AAMC_Raw_Data_for_FY22[[#This Row],[Source]]&AAMC_Raw_Data_for_FY22[[#This Row],[Type]]&AAMC_Raw_Data_for_FY22[[#This Row],[School Subset]]&AAMC_Raw_Data_for_FY22[[#This Row],[Rank]]&AAMC_Raw_Data_for_FY22[[#This Row],[Degree]]&AAMC_Raw_Data_for_FY22[[#This Row],[Department / Specialty]]&\"L\"","v":"AAMCAcademicPrivateChiefMDOtolaryngologyL"},"Otolaryngology",6,"AAMC","Academic","Private","Chief","MD","2021-2022",418968,{"$f":"(((AAMC_Raw_Data_for_FY22[[#This Row],[Median]]-AAMC_Raw_Data_for_FY22[[#This Row],[25th]])/25)*5) + AAMC_Raw_Data_for_FY22[[#This Row],[25th]]","v":432394.6},{"$f":"(((AAMC_Raw_Data_for_FY22[[#This Row],[Median]]-AAMC_Raw_Data_for_FY22[[#This Row],[25th]])/25)*10) + AAMC_Raw_Data_for_FY22[[#This Row],[25th]]","v":445821.2},{"$f":"(((AAMC_Raw_Data_for_FY22[[#This Row],[Median]]-AAMC_Raw_Data_for_FY22[[#This Row],[25th]])/25)*15) + AAMC_Raw_Data_for_FY22[[#This Row],[25th]]","v":459247.8},{"$f":"(((AAMC_Raw_Data_for_FY22[[#This Row],[Median]]-AAMC_Raw_Data_for_FY22[[#This Row],[25th]])/25)*20) + AAMC_Raw_Data_for_FY22[[#This Row],[25th]]","v":472674.4},486101,{"$f":"(((AAMC_Raw_Data_for_FY22[[#This Row],[75th]]-AAMC_Raw_Data_for_FY22[[#This Row],[Median]])/25)*5) + AAMC_Raw_Data_for_FY22[[#This Row],[Median]]","v":499712},{"$f":"(((AAMC_Raw_Data_for_FY22[[#This Row],[75th]]-AAMC_Raw_Data_for_FY22[[#This Row],[Median]])/25)*10) + AAMC_Raw_Data_for_FY22[[#This Row],[Median]]","v":513323},{"$f":"(((AAMC_Raw_Data_for_FY22[[#This Row],[75th]]-AAMC_Raw_Data_for_FY22[[#This Row],[Median]])/25)*15) + AAMC_Raw_Data_for_FY22[[#This Row],[Median]]","v":526934},{"$f":"(((AAMC_Raw_Data_for_FY22[[#This Row],[75th]]-AAMC_Raw_Data_for_FY22[[#This Row],[Median]])/25)*20) + AAMC_Raw_Data_for_FY22[[#This Row],[Median]]","v":540545},554156,{"$f":"(((AAMC_Raw_Data_for_FY22[[#This Row],[75th]]-AAMC_Raw_Data_for_FY22[[#This Row],[Median]])/25)*30) + AAMC_Raw_Data_for_FY22[[#This Row],[Median]]","v":567767},{"$f":"(((AAMC_Raw_Data_for_FY22[[#This Row],[75th]]-AAMC_Raw_Data_for_FY22[[#This Row],[Median]])/25)*35) + AAMC_Raw_Data_for_FY22[[#This Row],[Median]]","v":581378},{"$f":"(((AAMC_Raw_Data_for_FY22[[#This Row],[75th]]-AAMC_Raw_Data_for_FY22[[#This Row],[Median]])/25)*40) + AAMC_Raw_Data_for_FY22[[#This Row],[Median]]","v":594989}]
[{"$f":"AAMC_Raw_Data_for_FY22[[#This Row],[Source]]&AAMC_Raw_Data_for_FY22[[#This Row],[Type]]&AAMC_Raw_Data_for_FY22[[#This Row],[School Subset]]&AAMC_Raw_Data_for_FY22[[#This Row],[Rank]]&AAMC_Raw_Data_for_FY22[[#This Row],[Degree]]&AAMC_Raw_Data_for_FY22[[#This Row],[Department / Specialty]]&\"L\"","v":"AAMCAcademicPrivateChairMDOtolaryngologyL"},"Otolaryngology",1,"AAMC","Academic","Private","Chair","MD","2021-2022",783433,{"$f":"(((AAMC_Raw_Data_for_FY22[[#This Row],[Median]]-AAMC_Raw_Data_for_FY22[[#This Row],[25th]])/25)*5) + AAMC_Raw_Data_for_FY22[[#This Row],[25th]]","v":813815.4},{"$f":"(((AAMC_Raw_Data_for_FY22[[#This Row],[Median]]-AAMC_Raw_Data_for_FY22[[#This Row],[25th]])/25)*10) + AAMC_Raw_Data_for_FY22[[#This Row],[25th]]","v":844197.8},{"$f":"(((AAMC_Raw_Data_for_FY22[[#This Row],[Median]]-AAMC_Raw_Data_for_FY22[[#This Row],[25th]])/25)*15) + AAMC_Raw_Data_for_FY22[[#This Row],[25th]]","v":874580.2},{"$f":"(((AAMC_Raw_Data_for_FY22[[#This Row],[Median]]-AAMC_Raw_Data_for_FY22[[#This Row],[25th]])/25)*20) + AAMC_Raw_Data_for_FY22[[#This Row],[25th]]","v":904962.6},935345,{"$f":"(((AAMC_Raw_Data_for_FY22[[#This Row],[75th]]-AAMC_Raw_Data_for_FY22[[#This Row],[Median]])/25)*5) + AAMC_Raw_Data_for_FY22[[#This Row],[Median]]","v":965458.4},{"$f":"(((AAMC_Raw_Data_for_FY22[[#This Row],[75th]]-AAMC_Raw_Data_for_FY22[[#This Row],[Median]])/25)*10) + AAMC_Raw_Data_for_FY22[[#This Row],[Median]]","v":995571.8},{"$f":"(((AAMC_Raw_Data_for_FY22[[#This Row],[75th]]-AAMC_Raw_Data_for_FY22[[#This Row],[Median]])/25)*15) + AAMC_Raw_Data_for_FY22[[#This Row],[Median]]","v":1025685.2},{"$f":"(((AAMC_Raw_Data_for_FY22[[#This Row],[75th]]-AAMC_Raw_Data_for_FY22[[#This Row],[Median]])/25)*20) + AAMC_Raw_Data_for_FY22[[#This Row],[Median]]","v":1055798.6000000001},1085912,{"$f":"(((AAMC_Raw_Data_for_FY22[[#This Row],[75th]]-AAMC_Raw_Data_for_FY22[[#This Row],[Median]])/25)*30) + AAMC_Raw_Data_for_FY22[[#This Row],[Median]]","v":1116025.3999999999},{"$f":"(((AAMC_Raw_Data_for_FY22[[#This Row],[75th]]-AAMC_Raw_Data_for_FY22[[#This Row],[Median]])/25)*35) + AAMC_Raw_Data_for_FY22[[#This Row],[Median]]","v":1146138.8},{"$f":"(((AAMC_Raw_Data_for_FY22[[#This Row],[75th]]-AAMC_Raw_Data_for_FY22[[#This Row],[Median]])/25)*40) + AAMC_Raw_Data_for_FY22[[#This Row],[Median]]","v":1176252.2}]
[{"$f":"AAMC_Raw_Data_for_FY22[[#This Row],[Source]]&AAMC_Raw_Data_for_FY22[[#This Row],[Type]]&AAMC_Raw_Data_for_FY22[[#This Row],[School Subset]]&AAMC_Raw_Data_for_FY22[[#This Row],[Rank]]&AAMC_Raw_Data_for_FY22[[#This Row],[Degree]]&AAMC_Raw_Data_for_FY22[[#This Row],[Department / Specialty]]&\"L\"","v":"AAMCAcademicPrivateInstructorMDPhysical Medicine & RehabilitationL"},"Physical Medicine & Rehabilitation",5,"AAMC","Academic","Private","Instructor","MD","2021-2022",146409,{"$f":"(((AAMC_Raw_Data_for_FY22[[#This Row],[Median]]-AAMC_Raw_Data_for_FY22[[#This Row],[25th]])/25)*5) + AAMC_Raw_Data_for_FY22[[#This Row],[25th]]","v":156967.6},{"$f":"(((AAMC_Raw_Data_for_FY22[[#This Row],[Median]]-AAMC_Raw_Data_for_FY22[[#This Row],[25th]])/25)*10) + AAMC_Raw_Data_for_FY22[[#This Row],[25th]]","v":167526.20000000001},{"$f":"(((AAMC_Raw_Data_for_FY22[[#This Row],[Median]]-AAMC_Raw_Data_for_FY22[[#This Row],[25th]])/25)*15) + AAMC_Raw_Data_for_FY22[[#This Row],[25th]]","v":178084.8},{"$f":"(((AAMC_Raw_Data_for_FY22[[#This Row],[Median]]-AAMC_Raw_Data_for_FY22[[#This Row],[25th]])/25)*20) + AAMC_Raw_Data_for_FY22[[#This Row],[25th]]","v":188643.4},199202,{"$f":"(((AAMC_Raw_Data_for_FY22[[#This Row],[75th]]-AAMC_Raw_Data_for_FY22[[#This Row],[Median]])/25)*5) + AAMC_Raw_Data_for_FY22[[#This Row],[Median]]","v":213859.8},{"$f":"(((AAMC_Raw_Data_for_FY22[[#This Row],[75th]]-AAMC_Raw_Data_for_FY22[[#This Row],[Median]])/25)*10) + AAMC_Raw_Data_for_FY22[[#This Row],[Median]]","v":228517.6},{"$f":"(((AAMC_Raw_Data_for_FY22[[#This Row],[75th]]-AAMC_Raw_Data_for_FY22[[#This Row],[Median]])/25)*15) + AAMC_Raw_Data_for_FY22[[#This Row],[Median]]","v":243175.4},{"$f":"(((AAMC_Raw_Data_for_FY22[[#This Row],[75th]]-AAMC_Raw_Data_for_FY22[[#This Row],[Median]])/25)*20) + AAMC_Raw_Data_for_FY22[[#This Row],[Median]]","v":257833.2},272491,{"$f":"(((AAMC_Raw_Data_for_FY22[[#This Row],[75th]]-AAMC_Raw_Data_for_FY22[[#This Row],[Median]])/25)*30) + AAMC_Raw_Data_for_FY22[[#This Row],[Median]]","v":287148.79999999999},{"$f":"(((AAMC_Raw_Data_for_FY22[[#This Row],[75th]]-AAMC_Raw_Data_for_FY22[[#This Row],[Median]])/25)*35) + AAMC_Raw_Data_for_FY22[[#This Row],[Median]]","v":301806.59999999998},{"$f":"(((AAMC_Raw_Data_for_FY22[[#This Row],[75th]]-AAMC_Raw_Data_for_FY22[[#This Row],[Median]])/25)*40) + AAMC_Raw_Data_for_FY22[[#This Row],[Median]]","v":316464.40000000002}]
[{"$f":"AAMC_Raw_Data_for_FY22[[#This Row],[Source]]&AAMC_Raw_Data_for_FY22[[#This Row],[Type]]&AAMC_Raw_Data_for_FY22[[#This Row],[School Subset]]&AAMC_Raw_Data_for_FY22[[#This Row],[Rank]]&AAMC_Raw_Data_for_FY22[[#This Row],[Degree]]&AAMC_Raw_Data_for_FY22[[#This Row],[Department / Specialty]]&\"L\"","v":"AAMCAcademicPrivateAssistantMDPhysical Medicine & RehabilitationL"},"Physical Medicine & Rehabilitation",4,"AAMC","Academic","Private","Assistant","MD","2021-2022",215206,{"$f":"(((AAMC_Raw_Data_for_FY22[[#This Row],[Median]]-AAMC_Raw_Data_for_FY22[[#This Row],[25th]])/25)*5) + AAMC_Raw_Data_for_FY22[[#This Row],[25th]]","v":223318.6},{"$f":"(((AAMC_Raw_Data_for_FY22[[#This Row],[Median]]-AAMC_Raw_Data_for_FY22[[#This Row],[25th]])/25)*10) + AAMC_Raw_Data_for_FY22[[#This Row],[25th]]","v":231431.2},{"$f":"(((AAMC_Raw_Data_for_FY22[[#This Row],[Median]]-AAMC_Raw_Data_for_FY22[[#This Row],[25th]])/25)*15) + AAMC_Raw_Data_for_FY22[[#This Row],[25th]]","v":239543.8},{"$f":"(((AAMC_Raw_Data_for_FY22[[#This Row],[Median]]-AAMC_Raw_Data_for_FY22[[#This Row],[25th]])/25)*20) + AAMC_Raw_Data_for_FY22[[#This Row],[25th]]","v":247656.4},255769,{"$f":"(((AAMC_Raw_Data_for_FY22[[#This Row],[75th]]-AAMC_Raw_Data_for_FY22[[#This Row],[Median]])/25)*5) + AAMC_Raw_Data_for_FY22[[#This Row],[Median]]","v":267364.8},{"$f":"(((AAMC_Raw_Data_for_FY22[[#This Row],[75th]]-AAMC_Raw_Data_for_FY22[[#This Row],[Median]])/25)*10) + AAMC_Raw_Data_for_FY22[[#This Row],[Median]]","v":278960.59999999998},{"$f":"(((AAMC_Raw_Data_for_FY22[[#This Row],[75th]]-AAMC_Raw_Data_for_FY22[[#This Row],[Median]])/25)*15) + AAMC_Raw_Data_for_FY22[[#This Row],[Median]]","v":290556.40000000002},{"$f":"(((AAMC_Raw_Data_for_FY22[[#This Row],[75th]]-AAMC_Raw_Data_for_FY22[[#This Row],[Median]])/25)*20) + AAMC_Raw_Data_for_FY22[[#This Row],[Median]]","v":302152.2},313748,{"$f":"(((AAMC_Raw_Data_for_FY22[[#This Row],[75th]]-AAMC_Raw_Data_for_FY22[[#This Row],[Median]])/25)*30) + AAMC_Raw_Data_for_FY22[[#This Row],[Median]]","v":325343.8},{"$f":"(((AAMC_Raw_Data_for_FY22[[#This Row],[75th]]-AAMC_Raw_Data_for_FY22[[#This Row],[Median]])/25)*35) + AAMC_Raw_Data_for_FY22[[#This Row],[Median]]","v":336939.6},{"$f":"(((AAMC_Raw_Data_for_FY22[[#This Row],[75th]]-AAMC_Raw_Data_for_FY22[[#This Row],[Median]])/25)*40) + AAMC_Raw_Data_for_FY22[[#This Row],[Median]]","v":348535.4}]
[{"$f":"AAMC_Raw_Data_for_FY22[[#This Row],[Source]]&AAMC_Raw_Data_for_FY22[[#This Row],[Type]]&AAMC_Raw_Data_for_FY22[[#This Row],[School Subset]]&AAMC_Raw_Data_for_FY22[[#This Row],[Rank]]&AAMC_Raw_Data_for_FY22[[#This Row],[Degree]]&AAMC_Raw_Data_for_FY22[[#This Row],[Department / Specialty]]&\"L\"","v":"AAMCAcademicPrivateAssociateMDPhysical Medicine & RehabilitationL"},"Physical Medicine & Rehabilitation",3,"AAMC","Academic","Private","Associate","MD","2021-2022",233238,{"$f":"(((AAMC_Raw_Data_for_FY22[[#This Row],[Median]]-AAMC_Raw_Data_for_FY22[[#This Row],[25th]])/25)*5) + AAMC_Raw_Data_for_FY22[[#This Row],[25th]]","v":246608},{"$f":"(((AAMC_Raw_Data_for_FY22[[#This Row],[Median]]-AAMC_Raw_Data_for_FY22[[#This Row],[25th]])/25)*10) + AAMC_Raw_Data_for_FY22[[#This Row],[25th]]","v":259978},{"$f":"(((AAMC_Raw_Data_for_FY22[[#This Row],[Median]]-AAMC_Raw_Data_for_FY22[[#This Row],[25th]])/25)*15) + AAMC_Raw_Data_for_FY22[[#This Row],[25th]]","v":273348},{"$f":"(((AAMC_Raw_Data_for_FY22[[#This Row],[Median]]-AAMC_Raw_Data_for_FY22[[#This Row],[25th]])/25)*20) + AAMC_Raw_Data_for_FY22[[#This Row],[25th]]","v":286718},300088,{"$f":"(((AAMC_Raw_Data_for_FY22[[#This Row],[75th]]-AAMC_Raw_Data_for_FY22[[#This Row],[Median]])/25)*5) + AAMC_Raw_Data_for_FY22[[#This Row],[Median]]","v":311329.2},{"$f":"(((AAMC_Raw_Data_for_FY22[[#This Row],[75th]]-AAMC_Raw_Data_for_FY22[[#This Row],[Median]])/25)*10) + AAMC_Raw_Data_for_FY22[[#This Row],[Median]]","v":322570.40000000002},{"$f":"(((AAMC_Raw_Data_for_FY22[[#This Row],[75th]]-AAMC_Raw_Data_for_FY22[[#This Row],[Median]])/25)*15) + AAMC_Raw_Data_for_FY22[[#This Row],[Median]]","v":333811.59999999998},{"$f":"(((AAMC_Raw_Data_for_FY22[[#This Row],[75th]]-AAMC_Raw_Data_for_FY22[[#This Row],[Median]])/25)*20) + AAMC_Raw_Data_for_FY22[[#This Row],[Median]]","v":345052.8},356294,{"$f":"(((AAMC_Raw_Data_for_FY22[[#This Row],[75th]]-AAMC_Raw_Data_for_FY22[[#This Row],[Median]])/25)*30) + AAMC_Raw_Data_for_FY22[[#This Row],[Median]]","v":367535.2},{"$f":"(((AAMC_Raw_Data_for_FY22[[#This Row],[75th]]-AAMC_Raw_Data_for_FY22[[#This Row],[Median]])/25)*35) + AAMC_Raw_Data_for_FY22[[#This Row],[Median]]","v":378776.4},{"$f":"(((AAMC_Raw_Data_for_FY22[[#This Row],[75th]]-AAMC_Raw_Data_for_FY22[[#This Row],[Median]])/25)*40) + AAMC_Raw_Data_for_FY22[[#This Row],[Median]]","v":390017.6}]
[{"$f":"AAMC_Raw_Data_for_FY22[[#This Row],[Source]]&AAMC_Raw_Data_for_FY22[[#This Row],[Type]]&AAMC_Raw_Data_for_FY22[[#This Row],[School Subset]]&AAMC_Raw_Data_for_FY22[[#This Row],[Rank]]&AAMC_Raw_Data_for_FY22[[#This Row],[Degree]]&AAMC_Raw_Data_for_FY22[[#This Row],[Department / Specialty]]&\"L\"","v":"AAMCAcademicPrivateProfessorMDPhysical Medicine & RehabilitationL"},"Physical Medicine & Rehabilitation",2,"AAMC","Academic","Private","Professor","MD","2021-2022",263500,{"$f":"(((AAMC_Raw_Data_for_FY22[[#This Row],[Median]]-AAMC_Raw_Data_for_FY22[[#This Row],[25th]])/25)*5) + AAMC_Raw_Data_for_FY22[[#This Row],[25th]]","v":273691},{"$f":"(((AAMC_Raw_Data_for_FY22[[#This Row],[Median]]-AAMC_Raw_Data_for_FY22[[#This Row],[25th]])/25)*10) + AAMC_Raw_Data_for_FY22[[#This Row],[25th]]","v":283882},{"$f":"(((AAMC_Raw_Data_for_FY22[[#This Row],[Median]]-AAMC_Raw_Data_for_FY22[[#This Row],[25th]])/25)*15) + AAMC_Raw_Data_for_FY22[[#This Row],[25th]]","v":294073},{"$f":"(((AAMC_Raw_Data_for_FY22[[#This Row],[Median]]-AAMC_Raw_Data_for_FY22[[#This Row],[25th]])/25)*20) + AAMC_Raw_Data_for_FY22[[#This Row],[25th]]","v":304264},314455,{"$f":"(((AAMC_Raw_Data_for_FY22[[#This Row],[75th]]-AAMC_Raw_Data_for_FY22[[#This Row],[Median]])/25)*5) + AAMC_Raw_Data_for_FY22[[#This Row],[Median]]","v":323587.59999999998},{"$f":"(((AAMC_Raw_Data_for_FY22[[#This Row],[75th]]-AAMC_Raw_Data_for_FY22[[#This Row],[Median]])/25)*10) + AAMC_Raw_Data_for_FY22[[#This Row],[Median]]","v":332720.2},{"$f":"(((AAMC_Raw_Data_for_FY22[[#This Row],[75th]]-AAMC_Raw_Data_for_FY22[[#This Row],[Median]])/25)*15) + AAMC_Raw_Data_for_FY22[[#This Row],[Median]]","v":341852.8},{"$f":"(((AAMC_Raw_Data_for_FY22[[#This Row],[75th]]-AAMC_Raw_Data_for_FY22[[#This Row],[Median]])/25)*20) + AAMC_Raw_Data_for_FY22[[#This Row],[Median]]","v":350985.4},360118,{"$f":"(((AAMC_Raw_Data_for_FY22[[#This Row],[75th]]-AAMC_Raw_Data_for_FY22[[#This Row],[Median]])/25)*30) + AAMC_Raw_Data_for_FY22[[#This Row],[Median]]","v":369250.6},{"$f":"(((AAMC_Raw_Data_for_FY22[[#This Row],[75th]]-AAMC_Raw_Data_for_FY22[[#This Row],[Median]])/25)*35) + AAMC_Raw_Data_for_FY22[[#This Row],[Median]]","v":378383.2},{"$f":"(((AAMC_Raw_Data_for_FY22[[#This Row],[75th]]-AAMC_Raw_Data_for_FY22[[#This Row],[Median]])/25)*40) + AAMC_Raw_Data_for_FY22[[#This Row],[Median]]","v":387515.8}]
[{"$f":"AAMC_Raw_Data_for_FY22[[#This Row],[Source]]&AAMC_Raw_Data_for_FY22[[#This Row],[Type]]&AAMC_Raw_Data_for_FY22[[#This Row],[School Subset]]&AAMC_Raw_Data_for_FY22[[#This Row],[Rank]]&AAMC_Raw_Data_for_FY22[[#This Row],[Degree]]&AAMC_Raw_Data_for_FY22[[#This Row],[Department / Specialty]]&\"L\"","v":"AAMCAcademicPrivateChiefMDPhysical Medicine & RehabilitationL"},"Physical Medicine & Rehabilitation",6,"AAMC","Academic","Private","Chief","MD","2021-2022",null,{"$f":"(((AAMC_Raw_Data_for_FY22[[#This Row],[Median]]-AAMC_Raw_Data_for_FY22[[#This Row],[25th]])/25)*5) + AAMC_Raw_Data_for_FY22[[#This Row],[25th]]","v":0},{"$f":"(((AAMC_Raw_Data_for_FY22[[#This Row],[Median]]-AAMC_Raw_Data_for_FY22[[#This Row],[25th]])/25)*10) + AAMC_Raw_Data_for_FY22[[#This Row],[25th]]","v":0},{"$f":"(((AAMC_Raw_Data_for_FY22[[#This Row],[Median]]-AAMC_Raw_Data_for_FY22[[#This Row],[25th]])/25)*15) + AAMC_Raw_Data_for_FY22[[#This Row],[25th]]","v":0},{"$f":"(((AAMC_Raw_Data_for_FY22[[#This Row],[Median]]-AAMC_Raw_Data_for_FY22[[#This Row],[25th]])/25)*20) + AAMC_Raw_Data_for_FY22[[#This Row],[25th]]","v":0},null,{"$f":"(((AAMC_Raw_Data_for_FY22[[#This Row],[75th]]-AAMC_Raw_Data_for_FY22[[#This Row],[Median]])/25)*5) + AAMC_Raw_Data_for_FY22[[#This Row],[Median]]","v":0},{"$f":"(((AAMC_Raw_Data_for_FY22[[#This Row],[75th]]-AAMC_Raw_Data_for_FY22[[#This Row],[Median]])/25)*10) + AAMC_Raw_Data_for_FY22[[#This Row],[Median]]","v":0},{"$f":"(((AAMC_Raw_Data_for_FY22[[#This Row],[75th]]-AAMC_Raw_Data_for_FY22[[#This Row],[Median]])/25)*15) + AAMC_Raw_Data_for_FY22[[#This Row],[Median]]","v":0},{"$f":"(((AAMC_Raw_Data_for_FY22[[#This Row],[75th]]-AAMC_Raw_Data_for_FY22[[#This Row],[Median]])/25)*20) + AAMC_Raw_Data_for_FY22[[#This Row],[Median]]","v":0},null,{"$f":"(((AAMC_Raw_Data_for_FY22[[#This Row],[75th]]-AAMC_Raw_Data_for_FY22[[#This Row],[Median]])/25)*30) + AAMC_Raw_Data_for_FY22[[#This Row],[Median]]","v":0},{"$f":"(((AAMC_Raw_Data_for_FY22[[#This Row],[75th]]-AAMC_Raw_Data_for_FY22[[#This Row],[Median]])/25)*35) + AAMC_Raw_Data_for_FY22[[#This Row],[Median]]","v":0},{"$f":"(((AAMC_Raw_Data_for_FY22[[#This Row],[75th]]-AAMC_Raw_Data_for_FY22[[#This Row],[Median]])/25)*40) + AAMC_Raw_Data_for_FY22[[#This Row],[Median]]","v":0}]
[{"$f":"AAMC_Raw_Data_for_FY22[[#This Row],[Source]]&AAMC_Raw_Data_for_FY22[[#This Row],[Type]]&AAMC_Raw_Data_for_FY22[[#This Row],[School Subset]]&AAMC_Raw_Data_for_FY22[[#This Row],[Rank]]&AAMC_Raw_Data_for_FY22[[#This Row],[Degree]]&AAMC_Raw_Data_for_FY22[[#This Row],[Department / Specialty]]&\"L\"","v":"AAMCAcademicPrivateChairMDPhysical Medicine & RehabilitationL"},"Physical Medicine & Rehabilitation",1,"AAMC","Academic","Private","Chair","MD","2021-2022",500350,{"$f":"(((AAMC_Raw_Data_for_FY22[[#This Row],[Median]]-AAMC_Raw_Data_for_FY22[[#This Row],[25th]])/25)*5) + AAMC_Raw_Data_for_FY22[[#This Row],[25th]]","v":520655},{"$f":"(((AAMC_Raw_Data_for_FY22[[#This Row],[Median]]-AAMC_Raw_Data_for_FY22[[#This Row],[25th]])/25)*10) + AAMC_Raw_Data_for_FY22[[#This Row],[25th]]","v":540960},{"$f":"(((AAMC_Raw_Data_for_FY22[[#This Row],[Median]]-AAMC_Raw_Data_for_FY22[[#This Row],[25th]])/25)*15) + AAMC_Raw_Data_for_FY22[[#This Row],[25th]]","v":561265},{"$f":"(((AAMC_Raw_Data_for_FY22[[#This Row],[Median]]-AAMC_Raw_Data_for_FY22[[#This Row],[25th]])/25)*20) + AAMC_Raw_Data_for_FY22[[#This Row],[25th]]","v":581570},601875,{"$f":"(((AAMC_Raw_Data_for_FY22[[#This Row],[75th]]-AAMC_Raw_Data_for_FY22[[#This Row],[Median]])/25)*5) + AAMC_Raw_Data_for_FY22[[#This Row],[Median]]","v":611638.19999999995},{"$f":"(((AAMC_Raw_Data_for_FY22[[#This Row],[75th]]-AAMC_Raw_Data_for_FY22[[#This Row],[Median]])/25)*10) + AAMC_Raw_Data_for_FY22[[#This Row],[Median]]","v":621401.4},{"$f":"(((AAMC_Raw_Data_for_FY22[[#This Row],[75th]]-AAMC_Raw_Data_for_FY22[[#This Row],[Median]])/25)*15) + AAMC_Raw_Data_for_FY22[[#This Row],[Median]]","v":631164.6},{"$f":"(((AAMC_Raw_Data_for_FY22[[#This Row],[75th]]-AAMC_Raw_Data_for_FY22[[#This Row],[Median]])/25)*20) + AAMC_Raw_Data_for_FY22[[#This Row],[Median]]","v":640927.80000000005},650691,{"$f":"(((AAMC_Raw_Data_for_FY22[[#This Row],[75th]]-AAMC_Raw_Data_for_FY22[[#This Row],[Median]])/25)*30) + AAMC_Raw_Data_for_FY22[[#This Row],[Median]]","v":660454.19999999995},{"$f":"(((AAMC_Raw_Data_for_FY22[[#This Row],[75th]]-AAMC_Raw_Data_for_FY22[[#This Row],[Median]])/25)*35) + AAMC_Raw_Data_for_FY22[[#This Row],[Median]]","v":670217.4},{"$f":"(((AAMC_Raw_Data_for_FY22[[#This Row],[75th]]-AAMC_Raw_Data_for_FY22[[#This Row],[Median]])/25)*40) + AAMC_Raw_Data_for_FY22[[#This Row],[Median]]","v":679980.6}]
[{"$f":"AAMC_Raw_Data_for_FY22[[#This Row],[Source]]&AAMC_Raw_Data_for_FY22[[#This Row],[Type]]&AAMC_Raw_Data_for_FY22[[#This Row],[School Subset]]&AAMC_Raw_Data_for_FY22[[#This Row],[Rank]]&AAMC_Raw_Data_for_FY22[[#This Row],[Degree]]&AAMC_Raw_Data_for_FY22[[#This Row],[Department / Specialty]]&\"L\"","v":"AAMCAcademicPrivateInstructorMDPreventive MedicineL"},"Preventive Medicine",5,"AAMC","Academic","Private","Instructor","MD","2021-2022",null,{"$f":"(((AAMC_Raw_Data_for_FY22[[#This Row],[Median]]-AAMC_Raw_Data_for_FY22[[#This Row],[25th]])/25)*5) + AAMC_Raw_Data_for_FY22[[#This Row],[25th]]","v":0},{"$f":"(((AAMC_Raw_Data_for_FY22[[#This Row],[Median]]-AAMC_Raw_Data_for_FY22[[#This Row],[25th]])/25)*10) + AAMC_Raw_Data_for_FY22[[#This Row],[25th]]","v":0},{"$f":"(((AAMC_Raw_Data_for_FY22[[#This Row],[Median]]-AAMC_Raw_Data_for_FY22[[#This Row],[25th]])/25)*15) + AAMC_Raw_Data_for_FY22[[#This Row],[25th]]","v":0},{"$f":"(((AAMC_Raw_Data_for_FY22[[#This Row],[Median]]-AAMC_Raw_Data_for_FY22[[#This Row],[25th]])/25)*20) + AAMC_Raw_Data_for_FY22[[#This Row],[25th]]","v":0},null,{"$f":"(((AAMC_Raw_Data_for_FY22[[#This Row],[75th]]-AAMC_Raw_Data_for_FY22[[#This Row],[Median]])/25)*5) + AAMC_Raw_Data_for_FY22[[#This Row],[Median]]","v":0},{"$f":"(((AAMC_Raw_Data_for_FY22[[#This Row],[75th]]-AAMC_Raw_Data_for_FY22[[#This Row],[Median]])/25)*10) + AAMC_Raw_Data_for_FY22[[#This Row],[Median]]","v":0},{"$f":"(((AAMC_Raw_Data_for_FY22[[#This Row],[75th]]-AAMC_Raw_Data_for_FY22[[#This Row],[Median]])/25)*15) + AAMC_Raw_Data_for_FY22[[#This Row],[Median]]","v":0},{"$f":"(((AAMC_Raw_Data_for_FY22[[#This Row],[75th]]-AAMC_Raw_Data_for_FY22[[#This Row],[Median]])/25)*20) + AAMC_Raw_Data_for_FY22[[#This Row],[Median]]","v":0},null,{"$f":"(((AAMC_Raw_Data_for_FY22[[#This Row],[75th]]-AAMC_Raw_Data_for_FY22[[#This Row],[Median]])/25)*30) + AAMC_Raw_Data_for_FY22[[#This Row],[Median]]","v":0},{"$f":"(((AAMC_Raw_Data_for_FY22[[#This Row],[75th]]-AAMC_Raw_Data_for_FY22[[#This Row],[Median]])/25)*35) + AAMC_Raw_Data_for_FY22[[#This Row],[Median]]","v":0},{"$f":"(((AAMC_Raw_Data_for_FY22[[#This Row],[75th]]-AAMC_Raw_Data_for_FY22[[#This Row],[Median]])/25)*40) + AAMC_Raw_Data_for_FY22[[#This Row],[Median]]","v":0}]
[{"$f":"AAMC_Raw_Data_for_FY22[[#This Row],[Source]]&AAMC_Raw_Data_for_FY22[[#This Row],[Type]]&AAMC_Raw_Data_for_FY22[[#This Row],[School Subset]]&AAMC_Raw_Data_for_FY22[[#This Row],[Rank]]&AAMC_Raw_Data_for_FY22[[#This Row],[Degree]]&AAMC_Raw_Data_for_FY22[[#This Row],[Department / Specialty]]&\"L\"","v":"AAMCAcademicPrivateAssistantMDPreventive MedicineL"},"Preventive Medicine",4,"AAMC","Academic","Private","Assistant","MD","2021-2022",196538,{"$f":"(((AAMC_Raw_Data_for_FY22[[#This Row],[Median]]-AAMC_Raw_Data_for_FY22[[#This Row],[25th]])/25)*5) + AAMC_Raw_Data_for_FY22[[#This Row],[25th]]","v":200770.2},{"$f":"(((AAMC_Raw_Data_for_FY22[[#This Row],[Median]]-AAMC_Raw_Data_for_FY22[[#This Row],[25th]])/25)*10) + AAMC_Raw_Data_for_FY22[[#This Row],[25th]]","v":205002.4},{"$f":"(((AAMC_Raw_Data_for_FY22[[#This Row],[Median]]-AAMC_Raw_Data_for_FY22[[#This Row],[25th]])/25)*15) + AAMC_Raw_Data_for_FY22[[#This Row],[25th]]","v":209234.6},{"$f":"(((AAMC_Raw_Data_for_FY22[[#This Row],[Median]]-AAMC_Raw_Data_for_FY22[[#This Row],[25th]])/25)*20) + AAMC_Raw_Data_for_FY22[[#This Row],[25th]]","v":213466.8},217699,{"$f":"(((AAMC_Raw_Data_for_FY22[[#This Row],[75th]]-AAMC_Raw_Data_for_FY22[[#This Row],[Median]])/25)*5) + AAMC_Raw_Data_for_FY22[[#This Row],[Median]]","v":222771.6},{"$f":"(((AAMC_Raw_Data_for_FY22[[#This Row],[75th]]-AAMC_Raw_Data_for_FY22[[#This Row],[Median]])/25)*10) + AAMC_Raw_Data_for_FY22[[#This Row],[Median]]","v":227844.2},{"$f":"(((AAMC_Raw_Data_for_FY22[[#This Row],[75th]]-AAMC_Raw_Data_for_FY22[[#This Row],[Median]])/25)*15) + AAMC_Raw_Data_for_FY22[[#This Row],[Median]]","v":232916.8},{"$f":"(((AAMC_Raw_Data_for_FY22[[#This Row],[75th]]-AAMC_Raw_Data_for_FY22[[#This Row],[Median]])/25)*20) + AAMC_Raw_Data_for_FY22[[#This Row],[Median]]","v":237989.4},243062,{"$f":"(((AAMC_Raw_Data_for_FY22[[#This Row],[75th]]-AAMC_Raw_Data_for_FY22[[#This Row],[Median]])/25)*30) + AAMC_Raw_Data_for_FY22[[#This Row],[Median]]","v":248134.6},{"$f":"(((AAMC_Raw_Data_for_FY22[[#This Row],[75th]]-AAMC_Raw_Data_for_FY22[[#This Row],[Median]])/25)*35) + AAMC_Raw_Data_for_FY22[[#This Row],[Median]]","v":253207.2},{"$f":"(((AAMC_Raw_Data_for_FY22[[#This Row],[75th]]-AAMC_Raw_Data_for_FY22[[#This Row],[Median]])/25)*40) + AAMC_Raw_Data_for_FY22[[#This Row],[Median]]","v":258279.8}]
[{"$f":"AAMC_Raw_Data_for_FY22[[#This Row],[Source]]&AAMC_Raw_Data_for_FY22[[#This Row],[Type]]&AAMC_Raw_Data_for_FY22[[#This Row],[School Subset]]&AAMC_Raw_Data_for_FY22[[#This Row],[Rank]]&AAMC_Raw_Data_for_FY22[[#This Row],[Degree]]&AAMC_Raw_Data_for_FY22[[#This Row],[Department / Specialty]]&\"L\"","v":"AAMCAcademicPrivateAssociateMDPreventive MedicineL"},"Preventive Medicine",3,"AAMC","Academic","Private","Associate","MD","2021-2022",165000,{"$f":"(((AAMC_Raw_Data_for_FY22[[#This Row],[Median]]-AAMC_Raw_Data_for_FY22[[#This Row],[25th]])/25)*5) + AAMC_Raw_Data_for_FY22[[#This Row],[25th]]","v":176906.2},{"$f":"(((AAMC_Raw_Data_for_FY22[[#This Row],[Median]]-AAMC_Raw_Data_for_FY22[[#This Row],[25th]])/25)*10) + AAMC_Raw_Data_for_FY22[[#This Row],[25th]]","v":188812.4},{"$f":"(((AAMC_Raw_Data_for_FY22[[#This Row],[Median]]-AAMC_Raw_Data_for_FY22[[#This Row],[25th]])/25)*15) + AAMC_Raw_Data_for_FY22[[#This Row],[25th]]","v":200718.6},{"$f":"(((AAMC_Raw_Data_for_FY22[[#This Row],[Median]]-AAMC_Raw_Data_for_FY22[[#This Row],[25th]])/25)*20) + AAMC_Raw_Data_for_FY22[[#This Row],[25th]]","v":212624.8},224531,{"$f":"(((AAMC_Raw_Data_for_FY22[[#This Row],[75th]]-AAMC_Raw_Data_for_FY22[[#This Row],[Median]])/25)*5) + AAMC_Raw_Data_for_FY22[[#This Row],[Median]]","v":230656.8},{"$f":"(((AAMC_Raw_Data_for_FY22[[#This Row],[75th]]-AAMC_Raw_Data_for_FY22[[#This Row],[Median]])/25)*10) + AAMC_Raw_Data_for_FY22[[#This Row],[Median]]","v":236782.6},{"$f":"(((AAMC_Raw_Data_for_FY22[[#This Row],[75th]]-AAMC_Raw_Data_for_FY22[[#This Row],[Median]])/25)*15) + AAMC_Raw_Data_for_FY22[[#This Row],[Median]]","v":242908.4},{"$f":"(((AAMC_Raw_Data_for_FY22[[#This Row],[75th]]-AAMC_Raw_Data_for_FY22[[#This Row],[Median]])/25)*20) + AAMC_Raw_Data_for_FY22[[#This Row],[Median]]","v":249034.2},255160,{"$f":"(((AAMC_Raw_Data_for_FY22[[#This Row],[75th]]-AAMC_Raw_Data_for_FY22[[#This Row],[Median]])/25)*30) + AAMC_Raw_Data_for_FY22[[#This Row],[Median]]","v":261285.8},{"$f":"(((AAMC_Raw_Data_for_FY22[[#This Row],[75th]]-AAMC_Raw_Data_for_FY22[[#This Row],[Median]])/25)*35) + AAMC_Raw_Data_for_FY22[[#This Row],[Median]]","v":267411.59999999998},{"$f":"(((AAMC_Raw_Data_for_FY22[[#This Row],[75th]]-AAMC_Raw_Data_for_FY22[[#This Row],[Median]])/25)*40) + AAMC_Raw_Data_for_FY22[[#This Row],[Median]]","v":273537.40000000002}]
[{"$f":"AAMC_Raw_Data_for_FY22[[#This Row],[Source]]&AAMC_Raw_Data_for_FY22[[#This Row],[Type]]&AAMC_Raw_Data_for_FY22[[#This Row],[School Subset]]&AAMC_Raw_Data_for_FY22[[#This Row],[Rank]]&AAMC_Raw_Data_for_FY22[[#This Row],[Degree]]&AAMC_Raw_Data_for_FY22[[#This Row],[Department / Specialty]]&\"L\"","v":"AAMCAcademicPrivateProfessorMDPreventive MedicineL"},"Preventive Medicine",2,"AAMC","Academic","Private","Professor","MD","2021-2022",237029,{"$f":"(((AAMC_Raw_Data_for_FY22[[#This Row],[Median]]-AAMC_Raw_Data_for_FY22[[#This Row],[25th]])/25)*5) + AAMC_Raw_Data_for_FY22[[#This Row],[25th]]","v":243918.2},{"$f":"(((AAMC_Raw_Data_for_FY22[[#This Row],[Median]]-AAMC_Raw_Data_for_FY22[[#This Row],[25th]])/25)*10) + AAMC_Raw_Data_for_FY22[[#This Row],[25th]]","v":250807.4},{"$f":"(((AAMC_Raw_Data_for_FY22[[#This Row],[Median]]-AAMC_Raw_Data_for_FY22[[#This Row],[25th]])/25)*15) + AAMC_Raw_Data_for_FY22[[#This Row],[25th]]","v":257696.6},{"$f":"(((AAMC_Raw_Data_for_FY22[[#This Row],[Median]]-AAMC_Raw_Data_for_FY22[[#This Row],[25th]])/25)*20) + AAMC_Raw_Data_for_FY22[[#This Row],[25th]]","v":264585.8},271475,{"$f":"(((AAMC_Raw_Data_for_FY22[[#This Row],[75th]]-AAMC_Raw_Data_for_FY22[[#This Row],[Median]])/25)*5) + AAMC_Raw_Data_for_FY22[[#This Row],[Median]]","v":282499},{"$f":"(((AAMC_Raw_Data_for_FY22[[#This Row],[75th]]-AAMC_Raw_Data_for_FY22[[#This Row],[Median]])/25)*10) + AAMC_Raw_Data_for_FY22[[#This Row],[Median]]","v":293523},{"$f":"(((AAMC_Raw_Data_for_FY22[[#This Row],[75th]]-AAMC_Raw_Data_for_FY22[[#This Row],[Median]])/25)*15) + AAMC_Raw_Data_for_FY22[[#This Row],[Median]]","v":304547},{"$f":"(((AAMC_Raw_Data_for_FY22[[#This Row],[75th]]-AAMC_Raw_Data_for_FY22[[#This Row],[Median]])/25)*20) + AAMC_Raw_Data_for_FY22[[#This Row],[Median]]","v":315571},326595,{"$f":"(((AAMC_Raw_Data_for_FY22[[#This Row],[75th]]-AAMC_Raw_Data_for_FY22[[#This Row],[Median]])/25)*30) + AAMC_Raw_Data_for_FY22[[#This Row],[Median]]","v":337619},{"$f":"(((AAMC_Raw_Data_for_FY22[[#This Row],[75th]]-AAMC_Raw_Data_for_FY22[[#This Row],[Median]])/25)*35) + AAMC_Raw_Data_for_FY22[[#This Row],[Median]]","v":348643},{"$f":"(((AAMC_Raw_Data_for_FY22[[#This Row],[75th]]-AAMC_Raw_Data_for_FY22[[#This Row],[Median]])/25)*40) + AAMC_Raw_Data_for_FY22[[#This Row],[Median]]","v":359667}]
[{"$f":"AAMC_Raw_Data_for_FY22[[#This Row],[Source]]&AAMC_Raw_Data_for_FY22[[#This Row],[Type]]&AAMC_Raw_Data_for_FY22[[#This Row],[School Subset]]&AAMC_Raw_Data_for_FY22[[#This Row],[Rank]]&AAMC_Raw_Data_for_FY22[[#This Row],[Degree]]&AAMC_Raw_Data_for_FY22[[#This Row],[Department / Specialty]]&\"L\"","v":"AAMCAcademicPrivateChiefMDPreventive MedicineL"},"Preventive Medicine",6,"AAMC","Academic","Private","Chief","MD","2021-2022",null,{"$f":"(((AAMC_Raw_Data_for_FY22[[#This Row],[Median]]-AAMC_Raw_Data_for_FY22[[#This Row],[25th]])/25)*5) + AAMC_Raw_Data_for_FY22[[#This Row],[25th]]","v":0},{"$f":"(((AAMC_Raw_Data_for_FY22[[#This Row],[Median]]-AAMC_Raw_Data_for_FY22[[#This Row],[25th]])/25)*10) + AAMC_Raw_Data_for_FY22[[#This Row],[25th]]","v":0},{"$f":"(((AAMC_Raw_Data_for_FY22[[#This Row],[Median]]-AAMC_Raw_Data_for_FY22[[#This Row],[25th]])/25)*15) + AAMC_Raw_Data_for_FY22[[#This Row],[25th]]","v":0},{"$f":"(((AAMC_Raw_Data_for_FY22[[#This Row],[Median]]-AAMC_Raw_Data_for_FY22[[#This Row],[25th]])/25)*20) + AAMC_Raw_Data_for_FY22[[#This Row],[25th]]","v":0},null,{"$f":"(((AAMC_Raw_Data_for_FY22[[#This Row],[75th]]-AAMC_Raw_Data_for_FY22[[#This Row],[Median]])/25)*5) + AAMC_Raw_Data_for_FY22[[#This Row],[Median]]","v":0},{"$f":"(((AAMC_Raw_Data_for_FY22[[#This Row],[75th]]-AAMC_Raw_Data_for_FY22[[#This Row],[Median]])/25)*10) + AAMC_Raw_Data_for_FY22[[#This Row],[Median]]","v":0},{"$f":"(((AAMC_Raw_Data_for_FY22[[#This Row],[75th]]-AAMC_Raw_Data_for_FY22[[#This Row],[Median]])/25)*15) + AAMC_Raw_Data_for_FY22[[#This Row],[Median]]","v":0},{"$f":"(((AAMC_Raw_Data_for_FY22[[#This Row],[75th]]-AAMC_Raw_Data_for_FY22[[#This Row],[Median]])/25)*20) + AAMC_Raw_Data_for_FY22[[#This Row],[Median]]","v":0},null,{"$f":"(((AAMC_Raw_Data_for_FY22[[#This Row],[75th]]-AAMC_Raw_Data_for_FY22[[#This Row],[Median]])/25)*30) + AAMC_Raw_Data_for_FY22[[#This Row],[Median]]","v":0},{"$f":"(((AAMC_Raw_Data_for_FY22[[#This Row],[75th]]-AAMC_Raw_Data_for_FY22[[#This Row],[Median]])/25)*35) + AAMC_Raw_Data_for_FY22[[#This Row],[Median]]","v":0},{"$f":"(((AAMC_Raw_Data_for_FY22[[#This Row],[75th]]-AAMC_Raw_Data_for_FY22[[#This Row],[Median]])/25)*40) + AAMC_Raw_Data_for_FY22[[#This Row],[Median]]","v":0}]
[{"$f":"AAMC_Raw_Data_for_FY22[[#This Row],[Source]]&AAMC_Raw_Data_for_FY22[[#This Row],[Type]]&AAMC_Raw_Data_for_FY22[[#This Row],[School Subset]]&AAMC_Raw_Data_for_FY22[[#This Row],[Rank]]&AAMC_Raw_Data_for_FY22[[#This Row],[Degree]]&AAMC_Raw_Data_for_FY22[[#This Row],[Department / Specialty]]&\"L\"","v":"AAMCAcademicPrivateChairMDPreventive MedicineL"},"Preventive Medicine",1,"AAMC","Academic","Private","Chair","MD","2021-2022",null,{"$f":"(((AAMC_Raw_Data_for_FY22[[#This Row],[Median]]-AAMC_Raw_Data_for_FY22[[#This Row],[25th]])/25)*5) + AAMC_Raw_Data_for_FY22[[#This Row],[25th]]","v":0},{"$f":"(((AAMC_Raw_Data_for_FY22[[#This Row],[Median]]-AAMC_Raw_Data_for_FY22[[#This Row],[25th]])/25)*10) + AAMC_Raw_Data_for_FY22[[#This Row],[25th]]","v":0},{"$f":"(((AAMC_Raw_Data_for_FY22[[#This Row],[Median]]-AAMC_Raw_Data_for_FY22[[#This Row],[25th]])/25)*15) + AAMC_Raw_Data_for_FY22[[#This Row],[25th]]","v":0},{"$f":"(((AAMC_Raw_Data_for_FY22[[#This Row],[Median]]-AAMC_Raw_Data_for_FY22[[#This Row],[25th]])/25)*20) + AAMC_Raw_Data_for_FY22[[#This Row],[25th]]","v":0},null,{"$f":"(((AAMC_Raw_Data_for_FY22[[#This Row],[75th]]-AAMC_Raw_Data_for_FY22[[#This Row],[Median]])/25)*5) + AAMC_Raw_Data_for_FY22[[#This Row],[Median]]","v":0},{"$f":"(((AAMC_Raw_Data_for_FY22[[#This Row],[75th]]-AAMC_Raw_Data_for_FY22[[#This Row],[Median]])/25)*10) + AAMC_Raw_Data_for_FY22[[#This Row],[Median]]","v":0},{"$f":"(((AAMC_Raw_Data_for_FY22[[#This Row],[75th]]-AAMC_Raw_Data_for_FY22[[#This Row],[Median]])/25)*15) + AAMC_Raw_Data_for_FY22[[#This Row],[Median]]","v":0},{"$f":"(((AAMC_Raw_Data_for_FY22[[#This Row],[75th]]-AAMC_Raw_Data_for_FY22[[#This Row],[Median]])/25)*20) + AAMC_Raw_Data_for_FY22[[#This Row],[Median]]","v":0},null,{"$f":"(((AAMC_Raw_Data_for_FY22[[#This Row],[75th]]-AAMC_Raw_Data_for_FY22[[#This Row],[Median]])/25)*30) + AAMC_Raw_Data_for_FY22[[#This Row],[Median]]","v":0},{"$f":"(((AAMC_Raw_Data_for_FY22[[#This Row],[75th]]-AAMC_Raw_Data_for_FY22[[#This Row],[Median]])/25)*35) + AAMC_Raw_Data_for_FY22[[#This Row],[Median]]","v":0},{"$f":"(((AAMC_Raw_Data_for_FY22[[#This Row],[75th]]-AAMC_Raw_Data_for_FY22[[#This Row],[Median]])/25)*40) + AAMC_Raw_Data_for_FY22[[#This Row],[Median]]","v":0}]
[{"$f":"AAMC_Raw_Data_for_FY22[[#This Row],[Source]]&AAMC_Raw_Data_for_FY22[[#This Row],[Type]]&AAMC_Raw_Data_for_FY22[[#This Row],[School Subset]]&AAMC_Raw_Data_for_FY22[[#This Row],[Rank]]&AAMC_Raw_Data_for_FY22[[#This Row],[Degree]]&AAMC_Raw_Data_for_FY22[[#This Row],[Department / Specialty]]&\"L\"","v":"AAMCAcademicPrivateInstructorMDOther Clinical SciencesL"},"Other Clinical Sciences",5,"AAMC","Academic","Private","Instructor","MD","2021-2022",117713,{"$f":"(((AAMC_Raw_Data_for_FY22[[#This Row],[Median]]-AAMC_Raw_Data_for_FY22[[#This Row],[25th]])/25)*5) + AAMC_Raw_Data_for_FY22[[#This Row],[25th]]","v":128071},{"$f":"(((AAMC_Raw_Data_for_FY22[[#This Row],[Median]]-AAMC_Raw_Data_for_FY22[[#This Row],[25th]])/25)*10) + AAMC_Raw_Data_for_FY22[[#This Row],[25th]]","v":138429},{"$f":"(((AAMC_Raw_Data_for_FY22[[#This Row],[Median]]-AAMC_Raw_Data_for_FY22[[#This Row],[25th]])/25)*15) + AAMC_Raw_Data_for_FY22[[#This Row],[25th]]","v":148787},{"$f":"(((AAMC_Raw_Data_for_FY22[[#This Row],[Median]]-AAMC_Raw_Data_for_FY22[[#This Row],[25th]])/25)*20) + AAMC_Raw_Data_for_FY22[[#This Row],[25th]]","v":159145},169503,{"$f":"(((AAMC_Raw_Data_for_FY22[[#This Row],[75th]]-AAMC_Raw_Data_for_FY22[[#This Row],[Median]])/25)*5) + AAMC_Raw_Data_for_FY22[[#This Row],[Median]]","v":194723.6},{"$f":"(((AAMC_Raw_Data_for_FY22[[#This Row],[75th]]-AAMC_Raw_Data_for_FY22[[#This Row],[Median]])/25)*10) + AAMC_Raw_Data_for_FY22[[#This Row],[Median]]","v":219944.2},{"$f":"(((AAMC_Raw_Data_for_FY22[[#This Row],[75th]]-AAMC_Raw_Data_for_FY22[[#This Row],[Median]])/25)*15) + AAMC_Raw_Data_for_FY22[[#This Row],[Median]]","v":245164.79999999999},{"$f":"(((AAMC_Raw_Data_for_FY22[[#This Row],[75th]]-AAMC_Raw_Data_for_FY22[[#This Row],[Median]])/25)*20) + AAMC_Raw_Data_for_FY22[[#This Row],[Median]]","v":270385.40000000002},295606,{"$f":"(((AAMC_Raw_Data_for_FY22[[#This Row],[75th]]-AAMC_Raw_Data_for_FY22[[#This Row],[Median]])/25)*30) + AAMC_Raw_Data_for_FY22[[#This Row],[Median]]","v":320826.59999999998},{"$f":"(((AAMC_Raw_Data_for_FY22[[#This Row],[75th]]-AAMC_Raw_Data_for_FY22[[#This Row],[Median]])/25)*35) + AAMC_Raw_Data_for_FY22[[#This Row],[Median]]","v":346047.19999999995},{"$f":"(((AAMC_Raw_Data_for_FY22[[#This Row],[75th]]-AAMC_Raw_Data_for_FY22[[#This Row],[Median]])/25)*40) + AAMC_Raw_Data_for_FY22[[#This Row],[Median]]","v":371267.8}]
[{"$f":"AAMC_Raw_Data_for_FY22[[#This Row],[Source]]&AAMC_Raw_Data_for_FY22[[#This Row],[Type]]&AAMC_Raw_Data_for_FY22[[#This Row],[School Subset]]&AAMC_Raw_Data_for_FY22[[#This Row],[Rank]]&AAMC_Raw_Data_for_FY22[[#This Row],[Degree]]&AAMC_Raw_Data_for_FY22[[#This Row],[Department / Specialty]]&\"L\"","v":"AAMCAcademicPrivateAssistantMDOther Clinical SciencesL"},"Other Clinical Sciences",4,"AAMC","Academic","Private","Assistant","MD","2021-2022",129677,{"$f":"(((AAMC_Raw_Data_for_FY22[[#This Row],[Median]]-AAMC_Raw_Data_for_FY22[[#This Row],[25th]])/25)*5) + AAMC_Raw_Data_for_FY22[[#This Row],[25th]]","v":143849.4},{"$f":"(((AAMC_Raw_Data_for_FY22[[#This Row],[Median]]-AAMC_Raw_Data_for_FY22[[#This Row],[25th]])/25)*10) + AAMC_Raw_Data_for_FY22[[#This Row],[25th]]","v":158021.79999999999},{"$f":"(((AAMC_Raw_Data_for_FY22[[#This Row],[Median]]-AAMC_Raw_Data_for_FY22[[#This Row],[25th]])/25)*15) + AAMC_Raw_Data_for_FY22[[#This Row],[25th]]","v":172194.2},{"$f":"(((AAMC_Raw_Data_for_FY22[[#This Row],[Median]]-AAMC_Raw_Data_for_FY22[[#This Row],[25th]])/25)*20) + AAMC_Raw_Data_for_FY22[[#This Row],[25th]]","v":186366.6},200539,{"$f":"(((AAMC_Raw_Data_for_FY22[[#This Row],[75th]]-AAMC_Raw_Data_for_FY22[[#This Row],[Median]])/25)*5) + AAMC_Raw_Data_for_FY22[[#This Row],[Median]]","v":241842.8},{"$f":"(((AAMC_Raw_Data_for_FY22[[#This Row],[75th]]-AAMC_Raw_Data_for_FY22[[#This Row],[Median]])/25)*10) + AAMC_Raw_Data_for_FY22[[#This Row],[Median]]","v":283146.59999999998},{"$f":"(((AAMC_Raw_Data_for_FY22[[#This Row],[75th]]-AAMC_Raw_Data_for_FY22[[#This Row],[Median]])/25)*15) + AAMC_Raw_Data_for_FY22[[#This Row],[Median]]","v":324450.40000000002},{"$f":"(((AAMC_Raw_Data_for_FY22[[#This Row],[75th]]-AAMC_Raw_Data_for_FY22[[#This Row],[Median]])/25)*20) + AAMC_Raw_Data_for_FY22[[#This Row],[Median]]","v":365754.2},407058,{"$f":"(((AAMC_Raw_Data_for_FY22[[#This Row],[75th]]-AAMC_Raw_Data_for_FY22[[#This Row],[Median]])/25)*30) + AAMC_Raw_Data_for_FY22[[#This Row],[Median]]","v":448361.80000000005},{"$f":"(((AAMC_Raw_Data_for_FY22[[#This Row],[75th]]-AAMC_Raw_Data_for_FY22[[#This Row],[Median]])/25)*35) + AAMC_Raw_Data_for_FY22[[#This Row],[Median]]","v":489665.60000000003},{"$f":"(((AAMC_Raw_Data_for_FY22[[#This Row],[75th]]-AAMC_Raw_Data_for_FY22[[#This Row],[Median]])/25)*40) + AAMC_Raw_Data_for_FY22[[#This Row],[Median]]","v":530969.4}]
[{"$f":"AAMC_Raw_Data_for_FY22[[#This Row],[Source]]&AAMC_Raw_Data_for_FY22[[#This Row],[Type]]&AAMC_Raw_Data_for_FY22[[#This Row],[School Subset]]&AAMC_Raw_Data_for_FY22[[#This Row],[Rank]]&AAMC_Raw_Data_for_FY22[[#This Row],[Degree]]&AAMC_Raw_Data_for_FY22[[#This Row],[Department / Specialty]]&\"L\"","v":"AAMCAcademicPrivateAssociateMDOther Clinical SciencesL"},"Other Clinical Sciences",3,"AAMC","Academic","Private","Associate","MD","2021-2022",204130,{"$f":"(((AAMC_Raw_Data_for_FY22[[#This Row],[Median]]-AAMC_Raw_Data_for_FY22[[#This Row],[25th]])/25)*5) + AAMC_Raw_Data_for_FY22[[#This Row],[25th]]","v":216827},{"$f":"(((AAMC_Raw_Data_for_FY22[[#This Row],[Median]]-AAMC_Raw_Data_for_FY22[[#This Row],[25th]])/25)*10) + AAMC_Raw_Data_for_FY22[[#This Row],[25th]]","v":229524},{"$f":"(((AAMC_Raw_Data_for_FY22[[#This Row],[Median]]-AAMC_Raw_Data_for_FY22[[#This Row],[25th]])/25)*15) + AAMC_Raw_Data_for_FY22[[#This Row],[25th]]","v":242221},{"$f":"(((AAMC_Raw_Data_for_FY22[[#This Row],[Median]]-AAMC_Raw_Data_for_FY22[[#This Row],[25th]])/25)*20) + AAMC_Raw_Data_for_FY22[[#This Row],[25th]]","v":254918},267615,{"$f":"(((AAMC_Raw_Data_for_FY22[[#This Row],[75th]]-AAMC_Raw_Data_for_FY22[[#This Row],[Median]])/25)*5) + AAMC_Raw_Data_for_FY22[[#This Row],[Median]]","v":277516},{"$f":"(((AAMC_Raw_Data_for_FY22[[#This Row],[75th]]-AAMC_Raw_Data_for_FY22[[#This Row],[Median]])/25)*10) + AAMC_Raw_Data_for_FY22[[#This Row],[Median]]","v":287417},{"$f":"(((AAMC_Raw_Data_for_FY22[[#This Row],[75th]]-AAMC_Raw_Data_for_FY22[[#This Row],[Median]])/25)*15) + AAMC_Raw_Data_for_FY22[[#This Row],[Median]]","v":297318},{"$f":"(((AAMC_Raw_Data_for_FY22[[#This Row],[75th]]-AAMC_Raw_Data_for_FY22[[#This Row],[Median]])/25)*20) + AAMC_Raw_Data_for_FY22[[#This Row],[Median]]","v":307219},317120,{"$f":"(((AAMC_Raw_Data_for_FY22[[#This Row],[75th]]-AAMC_Raw_Data_for_FY22[[#This Row],[Median]])/25)*30) + AAMC_Raw_Data_for_FY22[[#This Row],[Median]]","v":327021},{"$f":"(((AAMC_Raw_Data_for_FY22[[#This Row],[75th]]-AAMC_Raw_Data_for_FY22[[#This Row],[Median]])/25)*35) + AAMC_Raw_Data_for_FY22[[#This Row],[Median]]","v":336922},{"$f":"(((AAMC_Raw_Data_for_FY22[[#This Row],[75th]]-AAMC_Raw_Data_for_FY22[[#This Row],[Median]])/25)*40) + AAMC_Raw_Data_for_FY22[[#This Row],[Median]]","v":346823}]
[{"$f":"AAMC_Raw_Data_for_FY22[[#This Row],[Source]]&AAMC_Raw_Data_for_FY22[[#This Row],[Type]]&AAMC_Raw_Data_for_FY22[[#This Row],[School Subset]]&AAMC_Raw_Data_for_FY22[[#This Row],[Rank]]&AAMC_Raw_Data_for_FY22[[#This Row],[Degree]]&AAMC_Raw_Data_for_FY22[[#This Row],[Department / Specialty]]&\"L\"","v":"AAMCAcademicPrivateProfessorMDOther Clinical SciencesL"},"Other Clinical Sciences",2,"AAMC","Academic","Private","Professor","MD","2021-2022",224116,{"$f":"(((AAMC_Raw_Data_for_FY22[[#This Row],[Median]]-AAMC_Raw_Data_for_FY22[[#This Row],[25th]])/25)*5) + AAMC_Raw_Data_for_FY22[[#This Row],[25th]]","v":236617.4},{"$f":"(((AAMC_Raw_Data_for_FY22[[#This Row],[Median]]-AAMC_Raw_Data_for_FY22[[#This Row],[25th]])/25)*10) + AAMC_Raw_Data_for_FY22[[#This Row],[25th]]","v":249118.8},{"$f":"(((AAMC_Raw_Data_for_FY22[[#This Row],[Median]]-AAMC_Raw_Data_for_FY22[[#This Row],[25th]])/25)*15) + AAMC_Raw_Data_for_FY22[[#This Row],[25th]]","v":261620.2},{"$f":"(((AAMC_Raw_Data_for_FY22[[#This Row],[Median]]-AAMC_Raw_Data_for_FY22[[#This Row],[25th]])/25)*20) + AAMC_Raw_Data_for_FY22[[#This Row],[25th]]","v":274121.59999999998},286623,{"$f":"(((AAMC_Raw_Data_for_FY22[[#This Row],[75th]]-AAMC_Raw_Data_for_FY22[[#This Row],[Median]])/25)*5) + AAMC_Raw_Data_for_FY22[[#This Row],[Median]]","v":302240.40000000002},{"$f":"(((AAMC_Raw_Data_for_FY22[[#This Row],[75th]]-AAMC_Raw_Data_for_FY22[[#This Row],[Median]])/25)*10) + AAMC_Raw_Data_for_FY22[[#This Row],[Median]]","v":317857.8},{"$f":"(((AAMC_Raw_Data_for_FY22[[#This Row],[75th]]-AAMC_Raw_Data_for_FY22[[#This Row],[Median]])/25)*15) + AAMC_Raw_Data_for_FY22[[#This Row],[Median]]","v":333475.20000000001},{"$f":"(((AAMC_Raw_Data_for_FY22[[#This Row],[75th]]-AAMC_Raw_Data_for_FY22[[#This Row],[Median]])/25)*20) + AAMC_Raw_Data_for_FY22[[#This Row],[Median]]","v":349092.6},364710,{"$f":"(((AAMC_Raw_Data_for_FY22[[#This Row],[75th]]-AAMC_Raw_Data_for_FY22[[#This Row],[Median]])/25)*30) + AAMC_Raw_Data_for_FY22[[#This Row],[Median]]","v":380327.4},{"$f":"(((AAMC_Raw_Data_for_FY22[[#This Row],[75th]]-AAMC_Raw_Data_for_FY22[[#This Row],[Median]])/25)*35) + AAMC_Raw_Data_for_FY22[[#This Row],[Median]]","v":395944.8},{"$f":"(((AAMC_Raw_Data_for_FY22[[#This Row],[75th]]-AAMC_Raw_Data_for_FY22[[#This Row],[Median]])/25)*40) + AAMC_Raw_Data_for_FY22[[#This Row],[Median]]","v":411562.2}]
[{"$f":"AAMC_Raw_Data_for_FY22[[#This Row],[Source]]&AAMC_Raw_Data_for_FY22[[#This Row],[Type]]&AAMC_Raw_Data_for_FY22[[#This Row],[School Subset]]&AAMC_Raw_Data_for_FY22[[#This Row],[Rank]]&AAMC_Raw_Data_for_FY22[[#This Row],[Degree]]&AAMC_Raw_Data_for_FY22[[#This Row],[Department / Specialty]]&\"L\"","v":"AAMCAcademicPrivateChiefMDOther Clinical SciencesL"},"Other Clinical Sciences",6,"AAMC","Academic","Private","Chief","MD","2021-2022",null,{"$f":"(((AAMC_Raw_Data_for_FY22[[#This Row],[Median]]-AAMC_Raw_Data_for_FY22[[#This Row],[25th]])/25)*5) + AAMC_Raw_Data_for_FY22[[#This Row],[25th]]","v":0},{"$f":"(((AAMC_Raw_Data_for_FY22[[#This Row],[Median]]-AAMC_Raw_Data_for_FY22[[#This Row],[25th]])/25)*10) + AAMC_Raw_Data_for_FY22[[#This Row],[25th]]","v":0},{"$f":"(((AAMC_Raw_Data_for_FY22[[#This Row],[Median]]-AAMC_Raw_Data_for_FY22[[#This Row],[25th]])/25)*15) + AAMC_Raw_Data_for_FY22[[#This Row],[25th]]","v":0},{"$f":"(((AAMC_Raw_Data_for_FY22[[#This Row],[Median]]-AAMC_Raw_Data_for_FY22[[#This Row],[25th]])/25)*20) + AAMC_Raw_Data_for_FY22[[#This Row],[25th]]","v":0},null,{"$f":"(((AAMC_Raw_Data_for_FY22[[#This Row],[75th]]-AAMC_Raw_Data_for_FY22[[#This Row],[Median]])/25)*5) + AAMC_Raw_Data_for_FY22[[#This Row],[Median]]","v":0},{"$f":"(((AAMC_Raw_Data_for_FY22[[#This Row],[75th]]-AAMC_Raw_Data_for_FY22[[#This Row],[Median]])/25)*10) + AAMC_Raw_Data_for_FY22[[#This Row],[Median]]","v":0},{"$f":"(((AAMC_Raw_Data_for_FY22[[#This Row],[75th]]-AAMC_Raw_Data_for_FY22[[#This Row],[Median]])/25)*15) + AAMC_Raw_Data_for_FY22[[#This Row],[Median]]","v":0},{"$f":"(((AAMC_Raw_Data_for_FY22[[#This Row],[75th]]-AAMC_Raw_Data_for_FY22[[#This Row],[Median]])/25)*20) + AAMC_Raw_Data_for_FY22[[#This Row],[Median]]","v":0},null,{"$f":"(((AAMC_Raw_Data_for_FY22[[#This Row],[75th]]-AAMC_Raw_Data_for_FY22[[#This Row],[Median]])/25)*30) + AAMC_Raw_Data_for_FY22[[#This Row],[Median]]","v":0},{"$f":"(((AAMC_Raw_Data_for_FY22[[#This Row],[75th]]-AAMC_Raw_Data_for_FY22[[#This Row],[Median]])/25)*35) + AAMC_Raw_Data_for_FY22[[#This Row],[Median]]","v":0},{"$f":"(((AAMC_Raw_Data_for_FY22[[#This Row],[75th]]-AAMC_Raw_Data_for_FY22[[#This Row],[Median]])/25)*40) + AAMC_Raw_Data_for_FY22[[#This Row],[Median]]","v":0}]
[{"$f":"AAMC_Raw_Data_for_FY22[[#This Row],[Source]]&AAMC_Raw_Data_for_FY22[[#This Row],[Type]]&AAMC_Raw_Data_for_FY22[[#This Row],[School Subset]]&AAMC_Raw_Data_for_FY22[[#This Row],[Rank]]&AAMC_Raw_Data_for_FY22[[#This Row],[Degree]]&AAMC_Raw_Data_for_FY22[[#This Row],[Department / Specialty]]&\"L\"","v":"AAMCAcademicPrivateChairMDOther Clinical SciencesL"},"Other Clinical Sciences",1,"AAMC","Academic","Private","Chair","MD","2021-2022",null,{"$f":"(((AAMC_Raw_Data_for_FY22[[#This Row],[Median]]-AAMC_Raw_Data_for_FY22[[#This Row],[25th]])/25)*5) + AAMC_Raw_Data_for_FY22[[#This Row],[25th]]","v":0},{"$f":"(((AAMC_Raw_Data_for_FY22[[#This Row],[Median]]-AAMC_Raw_Data_for_FY22[[#This Row],[25th]])/25)*10) + AAMC_Raw_Data_for_FY22[[#This Row],[25th]]","v":0},{"$f":"(((AAMC_Raw_Data_for_FY22[[#This Row],[Median]]-AAMC_Raw_Data_for_FY22[[#This Row],[25th]])/25)*15) + AAMC_Raw_Data_for_FY22[[#This Row],[25th]]","v":0},{"$f":"(((AAMC_Raw_Data_for_FY22[[#This Row],[Median]]-AAMC_Raw_Data_for_FY22[[#This Row],[25th]])/25)*20) + AAMC_Raw_Data_for_FY22[[#This Row],[25th]]","v":0},null,{"$f":"(((AAMC_Raw_Data_for_FY22[[#This Row],[75th]]-AAMC_Raw_Data_for_FY22[[#This Row],[Median]])/25)*5) + AAMC_Raw_Data_for_FY22[[#This Row],[Median]]","v":0},{"$f":"(((AAMC_Raw_Data_for_FY22[[#This Row],[75th]]-AAMC_Raw_Data_for_FY22[[#This Row],[Median]])/25)*10) + AAMC_Raw_Data_for_FY22[[#This Row],[Median]]","v":0},{"$f":"(((AAMC_Raw_Data_for_FY22[[#This Row],[75th]]-AAMC_Raw_Data_for_FY22[[#This Row],[Median]])/25)*15) + AAMC_Raw_Data_for_FY22[[#This Row],[Median]]","v":0},{"$f":"(((AAMC_Raw_Data_for_FY22[[#This Row],[75th]]-AAMC_Raw_Data_for_FY22[[#This Row],[Median]])/25)*20) + AAMC_Raw_Data_for_FY22[[#This Row],[Median]]","v":0},null,{"$f":"(((AAMC_Raw_Data_for_FY22[[#This Row],[75th]]-AAMC_Raw_Data_for_FY22[[#This Row],[Median]])/25)*30) + AAMC_Raw_Data_for_FY22[[#This Row],[Median]]","v":0},{"$f":"(((AAMC_Raw_Data_for_FY22[[#This Row],[75th]]-AAMC_Raw_Data_for_FY22[[#This Row],[Median]])/25)*35) + AAMC_Raw_Data_for_FY22[[#This Row],[Median]]","v":0},{"$f":"(((AAMC_Raw_Data_for_FY22[[#This Row],[75th]]-AAMC_Raw_Data_for_FY22[[#This Row],[Median]])/25)*40) + AAMC_Raw_Data_for_FY22[[#This Row],[Median]]","v":0}]
[{"$f":"AAMC_Raw_Data_for_FY22[[#This Row],[Source]]&AAMC_Raw_Data_for_FY22[[#This Row],[Type]]&AAMC_Raw_Data_for_FY22[[#This Row],[School Subset]]&AAMC_Raw_Data_for_FY22[[#This Row],[Rank]]&AAMC_Raw_Data_for_FY22[[#This Row],[Degree]]&AAMC_Raw_Data_for_FY22[[#This Row],[Department / Specialty]]&\"L\"","v":"AAMCAcademicPublicInstructorMDClinical Sciences TotalL"},"Clinical Sciences Total",5,"AAMC","Academic","Public","Instructor","MD","2021-2022",100881,{"$f":"(((AAMC_Raw_Data_for_FY22[[#This Row],[Median]]-AAMC_Raw_Data_for_FY22[[#This Row],[25th]])/25)*5) + AAMC_Raw_Data_for_FY22[[#This Row],[25th]]","v":119607.8},{"$f":"(((AAMC_Raw_Data_for_FY22[[#This Row],[Median]]-AAMC_Raw_Data_for_FY22[[#This Row],[25th]])/25)*10) + AAMC_Raw_Data_for_FY22[[#This Row],[25th]]","v":138334.6},{"$f":"(((AAMC_Raw_Data_for_FY22[[#This Row],[Median]]-AAMC_Raw_Data_for_FY22[[#This Row],[25th]])/25)*15) + AAMC_Raw_Data_for_FY22[[#This Row],[25th]]","v":157061.4},{"$f":"(((AAMC_Raw_Data_for_FY22[[#This Row],[Median]]-AAMC_Raw_Data_for_FY22[[#This Row],[25th]])/25)*20) + AAMC_Raw_Data_for_FY22[[#This Row],[25th]]","v":175788.2},194515,{"$f":"(((AAMC_Raw_Data_for_FY22[[#This Row],[75th]]-AAMC_Raw_Data_for_FY22[[#This Row],[Median]])/25)*5) + AAMC_Raw_Data_for_FY22[[#This Row],[Median]]","v":208134.8},{"$f":"(((AAMC_Raw_Data_for_FY22[[#This Row],[75th]]-AAMC_Raw_Data_for_FY22[[#This Row],[Median]])/25)*10) + AAMC_Raw_Data_for_FY22[[#This Row],[Median]]","v":221754.6},{"$f":"(((AAMC_Raw_Data_for_FY22[[#This Row],[75th]]-AAMC_Raw_Data_for_FY22[[#This Row],[Median]])/25)*15) + AAMC_Raw_Data_for_FY22[[#This Row],[Median]]","v":235374.4},{"$f":"(((AAMC_Raw_Data_for_FY22[[#This Row],[75th]]-AAMC_Raw_Data_for_FY22[[#This Row],[Median]])/25)*20) + AAMC_Raw_Data_for_FY22[[#This Row],[Median]]","v":248994.2},262614,{"$f":"(((AAMC_Raw_Data_for_FY22[[#This Row],[75th]]-AAMC_Raw_Data_for_FY22[[#This Row],[Median]])/25)*30) + AAMC_Raw_Data_for_FY22[[#This Row],[Median]]","v":276233.8},{"$f":"(((AAMC_Raw_Data_for_FY22[[#This Row],[75th]]-AAMC_Raw_Data_for_FY22[[#This Row],[Median]])/25)*35) + AAMC_Raw_Data_for_FY22[[#This Row],[Median]]","v":289853.59999999998},{"$f":"(((AAMC_Raw_Data_for_FY22[[#This Row],[75th]]-AAMC_Raw_Data_for_FY22[[#This Row],[Median]])/25)*40) + AAMC_Raw_Data_for_FY22[[#This Row],[Median]]","v":303473.40000000002}]
[{"$f":"AAMC_Raw_Data_for_FY22[[#This Row],[Source]]&AAMC_Raw_Data_for_FY22[[#This Row],[Type]]&AAMC_Raw_Data_for_FY22[[#This Row],[School Subset]]&AAMC_Raw_Data_for_FY22[[#This Row],[Rank]]&AAMC_Raw_Data_for_FY22[[#This Row],[Degree]]&AAMC_Raw_Data_for_FY22[[#This Row],[Department / Specialty]]&\"L\"","v":"AAMCAcademicPublicAssistantMDClinical Sciences TotalL"},"Clinical Sciences Total",4,"AAMC","Academic","Public","Assistant","MD","2021-2022",222441,{"$f":"(((AAMC_Raw_Data_for_FY22[[#This Row],[Median]]-AAMC_Raw_Data_for_FY22[[#This Row],[25th]])/25)*5) + AAMC_Raw_Data_for_FY22[[#This Row],[25th]]","v":234178.4},{"$f":"(((AAMC_Raw_Data_for_FY22[[#This Row],[Median]]-AAMC_Raw_Data_for_FY22[[#This Row],[25th]])/25)*10) + AAMC_Raw_Data_for_FY22[[#This Row],[25th]]","v":245915.8},{"$f":"(((AAMC_Raw_Data_for_FY22[[#This Row],[Median]]-AAMC_Raw_Data_for_FY22[[#This Row],[25th]])/25)*15) + AAMC_Raw_Data_for_FY22[[#This Row],[25th]]","v":257653.2},{"$f":"(((AAMC_Raw_Data_for_FY22[[#This Row],[Median]]-AAMC_Raw_Data_for_FY22[[#This Row],[25th]])/25)*20) + AAMC_Raw_Data_for_FY22[[#This Row],[25th]]","v":269390.59999999998},281128,{"$f":"(((AAMC_Raw_Data_for_FY22[[#This Row],[75th]]-AAMC_Raw_Data_for_FY22[[#This Row],[Median]])/25)*5) + AAMC_Raw_Data_for_FY22[[#This Row],[Median]]","v":301555.8},{"$f":"(((AAMC_Raw_Data_for_FY22[[#This Row],[75th]]-AAMC_Raw_Data_for_FY22[[#This Row],[Median]])/25)*10) + AAMC_Raw_Data_for_FY22[[#This Row],[Median]]","v":321983.59999999998},{"$f":"(((AAMC_Raw_Data_for_FY22[[#This Row],[75th]]-AAMC_Raw_Data_for_FY22[[#This Row],[Median]])/25)*15) + AAMC_Raw_Data_for_FY22[[#This Row],[Median]]","v":342411.4},{"$f":"(((AAMC_Raw_Data_for_FY22[[#This Row],[75th]]-AAMC_Raw_Data_for_FY22[[#This Row],[Median]])/25)*20) + AAMC_Raw_Data_for_FY22[[#This Row],[Median]]","v":362839.2},383267,{"$f":"(((AAMC_Raw_Data_for_FY22[[#This Row],[75th]]-AAMC_Raw_Data_for_FY22[[#This Row],[Median]])/25)*30) + AAMC_Raw_Data_for_FY22[[#This Row],[Median]]","v":403694.8},{"$f":"(((AAMC_Raw_Data_for_FY22[[#This Row],[75th]]-AAMC_Raw_Data_for_FY22[[#This Row],[Median]])/25)*35) + AAMC_Raw_Data_for_FY22[[#This Row],[Median]]","v":424122.6},{"$f":"(((AAMC_Raw_Data_for_FY22[[#This Row],[75th]]-AAMC_Raw_Data_for_FY22[[#This Row],[Median]])/25)*40) + AAMC_Raw_Data_for_FY22[[#This Row],[Median]]","v":444550.40000000002}]
[{"$f":"AAMC_Raw_Data_for_FY22[[#This Row],[Source]]&AAMC_Raw_Data_for_FY22[[#This Row],[Type]]&AAMC_Raw_Data_for_FY22[[#This Row],[School Subset]]&AAMC_Raw_Data_for_FY22[[#This Row],[Rank]]&AAMC_Raw_Data_for_FY22[[#This Row],[Degree]]&AAMC_Raw_Data_for_FY22[[#This Row],[Department / Specialty]]&\"L\"","v":"AAMCAcademicPublicAssociateMDClinical Sciences TotalL"},"Clinical Sciences Total",3,"AAMC","Academic","Public","Associate","MD","2021-2022",250948,{"$f":"(((AAMC_Raw_Data_for_FY22[[#This Row],[Median]]-AAMC_Raw_Data_for_FY22[[#This Row],[25th]])/25)*5) + AAMC_Raw_Data_for_FY22[[#This Row],[25th]]","v":265870.40000000002},{"$f":"(((AAMC_Raw_Data_for_FY22[[#This Row],[Median]]-AAMC_Raw_Data_for_FY22[[#This Row],[25th]])/25)*10) + AAMC_Raw_Data_for_FY22[[#This Row],[25th]]","v":280792.8},{"$f":"(((AAMC_Raw_Data_for_FY22[[#This Row],[Median]]-AAMC_Raw_Data_for_FY22[[#This Row],[25th]])/25)*15) + AAMC_Raw_Data_for_FY22[[#This Row],[25th]]","v":295715.20000000001},{"$f":"(((AAMC_Raw_Data_for_FY22[[#This Row],[Median]]-AAMC_Raw_Data_for_FY22[[#This Row],[25th]])/25)*20) + AAMC_Raw_Data_for_FY22[[#This Row],[25th]]","v":310637.59999999998},325560,{"$f":"(((AAMC_Raw_Data_for_FY22[[#This Row],[75th]]-AAMC_Raw_Data_for_FY22[[#This Row],[Median]])/25)*5) + AAMC_Raw_Data_for_FY22[[#This Row],[Median]]","v":348900.8},{"$f":"(((AAMC_Raw_Data_for_FY22[[#This Row],[75th]]-AAMC_Raw_Data_for_FY22[[#This Row],[Median]])/25)*10) + AAMC_Raw_Data_for_FY22[[#This Row],[Median]]","v":372241.6},{"$f":"(((AAMC_Raw_Data_for_FY22[[#This Row],[75th]]-AAMC_Raw_Data_for_FY22[[#This Row],[Median]])/25)*15) + AAMC_Raw_Data_for_FY22[[#This Row],[Median]]","v":395582.4},{"$f":"(((AAMC_Raw_Data_for_FY22[[#This Row],[75th]]-AAMC_Raw_Data_for_FY22[[#This Row],[Median]])/25)*20) + AAMC_Raw_Data_for_FY22[[#This Row],[Median]]","v":418923.2},442264,{"$f":"(((AAMC_Raw_Data_for_FY22[[#This Row],[75th]]-AAMC_Raw_Data_for_FY22[[#This Row],[Median]])/25)*30) + AAMC_Raw_Data_for_FY22[[#This Row],[Median]]","v":465604.8},{"$f":"(((AAMC_Raw_Data_for_FY22[[#This Row],[75th]]-AAMC_Raw_Data_for_FY22[[#This Row],[Median]])/25)*35) + AAMC_Raw_Data_for_FY22[[#This Row],[Median]]","v":488945.6},{"$f":"(((AAMC_Raw_Data_for_FY22[[#This Row],[75th]]-AAMC_Raw_Data_for_FY22[[#This Row],[Median]])/25)*40) + AAMC_Raw_Data_for_FY22[[#This Row],[Median]]","v":512286.4}]
[{"$f":"AAMC_Raw_Data_for_FY22[[#This Row],[Source]]&AAMC_Raw_Data_for_FY22[[#This Row],[Type]]&AAMC_Raw_Data_for_FY22[[#This Row],[School Subset]]&AAMC_Raw_Data_for_FY22[[#This Row],[Rank]]&AAMC_Raw_Data_for_FY22[[#This Row],[Degree]]&AAMC_Raw_Data_for_FY22[[#This Row],[Department / Specialty]]&\"L\"","v":"AAMCAcademicPublicProfessorMDClinical Sciences TotalL"},"Clinical Sciences Total",2,"AAMC","Academic","Public","Professor","MD","2021-2022",285009,{"$f":"(((AAMC_Raw_Data_for_FY22[[#This Row],[Median]]-AAMC_Raw_Data_for_FY22[[#This Row],[25th]])/25)*5) + AAMC_Raw_Data_for_FY22[[#This Row],[25th]]","v":301016.2},{"$f":"(((AAMC_Raw_Data_for_FY22[[#This Row],[Median]]-AAMC_Raw_Data_for_FY22[[#This Row],[25th]])/25)*10) + AAMC_Raw_Data_for_FY22[[#This Row],[25th]]","v":317023.40000000002},{"$f":"(((AAMC_Raw_Data_for_FY22[[#This Row],[Median]]-AAMC_Raw_Data_for_FY22[[#This Row],[25th]])/25)*15) + AAMC_Raw_Data_for_FY22[[#This Row],[25th]]","v":333030.59999999998},{"$f":"(((AAMC_Raw_Data_for_FY22[[#This Row],[Median]]-AAMC_Raw_Data_for_FY22[[#This Row],[25th]])/25)*20) + AAMC_Raw_Data_for_FY22[[#This Row],[25th]]","v":349037.8},365045,{"$f":"(((AAMC_Raw_Data_for_FY22[[#This Row],[75th]]-AAMC_Raw_Data_for_FY22[[#This Row],[Median]])/25)*5) + AAMC_Raw_Data_for_FY22[[#This Row],[Median]]","v":389345.2},{"$f":"(((AAMC_Raw_Data_for_FY22[[#This Row],[75th]]-AAMC_Raw_Data_for_FY22[[#This Row],[Median]])/25)*10) + AAMC_Raw_Data_for_FY22[[#This Row],[Median]]","v":413645.4},{"$f":"(((AAMC_Raw_Data_for_FY22[[#This Row],[75th]]-AAMC_Raw_Data_for_FY22[[#This Row],[Median]])/25)*15) + AAMC_Raw_Data_for_FY22[[#This Row],[Median]]","v":437945.59999999998},{"$f":"(((AAMC_Raw_Data_for_FY22[[#This Row],[75th]]-AAMC_Raw_Data_for_FY22[[#This Row],[Median]])/25)*20) + AAMC_Raw_Data_for_FY22[[#This Row],[Median]]","v":462245.8},486546,{"$f":"(((AAMC_Raw_Data_for_FY22[[#This Row],[75th]]-AAMC_Raw_Data_for_FY22[[#This Row],[Median]])/25)*30) + AAMC_Raw_Data_for_FY22[[#This Row],[Median]]","v":510846.2},{"$f":"(((AAMC_Raw_Data_for_FY22[[#This Row],[75th]]-AAMC_Raw_Data_for_FY22[[#This Row],[Median]])/25)*35) + AAMC_Raw_Data_for_FY22[[#This Row],[Median]]","v":535146.4},{"$f":"(((AAMC_Raw_Data_for_FY22[[#This Row],[75th]]-AAMC_Raw_Data_for_FY22[[#This Row],[Median]])/25)*40) + AAMC_Raw_Data_for_FY22[[#This Row],[Median]]","v":559446.6}]
[{"$f":"AAMC_Raw_Data_for_FY22[[#This Row],[Source]]&AAMC_Raw_Data_for_FY22[[#This Row],[Type]]&AAMC_Raw_Data_for_FY22[[#This Row],[School Subset]]&AAMC_Raw_Data_for_FY22[[#This Row],[Rank]]&AAMC_Raw_Data_for_FY22[[#This Row],[Degree]]&AAMC_Raw_Data_for_FY22[[#This Row],[Department / Specialty]]&\"L\"","v":"AAMCAcademicPublicChiefMDClinical Sciences TotalL"},"Clinical Sciences Total",6,"AAMC","Academic","Public","Chief","MD","2021-2022",309998,{"$f":"(((AAMC_Raw_Data_for_FY22[[#This Row],[Median]]-AAMC_Raw_Data_for_FY22[[#This Row],[25th]])/25)*5) + AAMC_Raw_Data_for_FY22[[#This Row],[25th]]","v":330096.8},{"$f":"(((AAMC_Raw_Data_for_FY22[[#This Row],[Median]]-AAMC_Raw_Data_for_FY22[[#This Row],[25th]])/25)*10) + AAMC_Raw_Data_for_FY22[[#This Row],[25th]]","v":350195.6},{"$f":"(((AAMC_Raw_Data_for_FY22[[#This Row],[Median]]-AAMC_Raw_Data_for_FY22[[#This Row],[25th]])/25)*15) + AAMC_Raw_Data_for_FY22[[#This Row],[25th]]","v":370294.4},{"$f":"(((AAMC_Raw_Data_for_FY22[[#This Row],[Median]]-AAMC_Raw_Data_for_FY22[[#This Row],[25th]])/25)*20) + AAMC_Raw_Data_for_FY22[[#This Row],[25th]]","v":390393.2},410492,{"$f":"(((AAMC_Raw_Data_for_FY22[[#This Row],[75th]]-AAMC_Raw_Data_for_FY22[[#This Row],[Median]])/25)*5) + AAMC_Raw_Data_for_FY22[[#This Row],[Median]]","v":435880.4},{"$f":"(((AAMC_Raw_Data_for_FY22[[#This Row],[75th]]-AAMC_Raw_Data_for_FY22[[#This Row],[Median]])/25)*10) + AAMC_Raw_Data_for_FY22[[#This Row],[Median]]","v":461268.8},{"$f":"(((AAMC_Raw_Data_for_FY22[[#This Row],[75th]]-AAMC_Raw_Data_for_FY22[[#This Row],[Median]])/25)*15) + AAMC_Raw_Data_for_FY22[[#This Row],[Median]]","v":486657.2},{"$f":"(((AAMC_Raw_Data_for_FY22[[#This Row],[75th]]-AAMC_Raw_Data_for_FY22[[#This Row],[Median]])/25)*20) + AAMC_Raw_Data_for_FY22[[#This Row],[Median]]","v":512045.6},537434,{"$f":"(((AAMC_Raw_Data_for_FY22[[#This Row],[75th]]-AAMC_Raw_Data_for_FY22[[#This Row],[Median]])/25)*30) + AAMC_Raw_Data_for_FY22[[#This Row],[Median]]","v":562822.40000000002},{"$f":"(((AAMC_Raw_Data_for_FY22[[#This Row],[75th]]-AAMC_Raw_Data_for_FY22[[#This Row],[Median]])/25)*35) + AAMC_Raw_Data_for_FY22[[#This Row],[Median]]","v":588210.80000000005},{"$f":"(((AAMC_Raw_Data_for_FY22[[#This Row],[75th]]-AAMC_Raw_Data_for_FY22[[#This Row],[Median]])/25)*40) + AAMC_Raw_Data_for_FY22[[#This Row],[Median]]","v":613599.19999999995}]
[{"$f":"AAMC_Raw_Data_for_FY22[[#This Row],[Source]]&AAMC_Raw_Data_for_FY22[[#This Row],[Type]]&AAMC_Raw_Data_for_FY22[[#This Row],[School Subset]]&AAMC_Raw_Data_for_FY22[[#This Row],[Rank]]&AAMC_Raw_Data_for_FY22[[#This Row],[Degree]]&AAMC_Raw_Data_for_FY22[[#This Row],[Department / Specialty]]&\"L\"","v":"AAMCAcademicPublicChairMDClinical Sciences TotalL"},"Clinical Sciences Total",1,"AAMC","Academic","Public","Chair","MD","2021-2022",489414,{"$f":"(((AAMC_Raw_Data_for_FY22[[#This Row],[Median]]-AAMC_Raw_Data_for_FY22[[#This Row],[25th]])/25)*5) + AAMC_Raw_Data_for_FY22[[#This Row],[25th]]","v":517813.2},{"$f":"(((AAMC_Raw_Data_for_FY22[[#This Row],[Median]]-AAMC_Raw_Data_for_FY22[[#This Row],[25th]])/25)*10) + AAMC_Raw_Data_for_FY22[[#This Row],[25th]]","v":546212.4},{"$f":"(((AAMC_Raw_Data_for_FY22[[#This Row],[Median]]-AAMC_Raw_Data_for_FY22[[#This Row],[25th]])/25)*15) + AAMC_Raw_Data_for_FY22[[#This Row],[25th]]","v":574611.6},{"$f":"(((AAMC_Raw_Data_for_FY22[[#This Row],[Median]]-AAMC_Raw_Data_for_FY22[[#This Row],[25th]])/25)*20) + AAMC_Raw_Data_for_FY22[[#This Row],[25th]]","v":603010.80000000005},631410,{"$f":"(((AAMC_Raw_Data_for_FY22[[#This Row],[75th]]-AAMC_Raw_Data_for_FY22[[#This Row],[Median]])/25)*5) + AAMC_Raw_Data_for_FY22[[#This Row],[Median]]","v":666848.80000000005},{"$f":"(((AAMC_Raw_Data_for_FY22[[#This Row],[75th]]-AAMC_Raw_Data_for_FY22[[#This Row],[Median]])/25)*10) + AAMC_Raw_Data_for_FY22[[#This Row],[Median]]","v":702287.6},{"$f":"(((AAMC_Raw_Data_for_FY22[[#This Row],[75th]]-AAMC_Raw_Data_for_FY22[[#This Row],[Median]])/25)*15) + AAMC_Raw_Data_for_FY22[[#This Row],[Median]]","v":737726.4},{"$f":"(((AAMC_Raw_Data_for_FY22[[#This Row],[75th]]-AAMC_Raw_Data_for_FY22[[#This Row],[Median]])/25)*20) + AAMC_Raw_Data_for_FY22[[#This Row],[Median]]","v":773165.2},808604,{"$f":"(((AAMC_Raw_Data_for_FY22[[#This Row],[75th]]-AAMC_Raw_Data_for_FY22[[#This Row],[Median]])/25)*30) + AAMC_Raw_Data_for_FY22[[#This Row],[Median]]","v":844042.8},{"$f":"(((AAMC_Raw_Data_for_FY22[[#This Row],[75th]]-AAMC_Raw_Data_for_FY22[[#This Row],[Median]])/25)*35) + AAMC_Raw_Data_for_FY22[[#This Row],[Median]]","v":879481.6},{"$f":"(((AAMC_Raw_Data_for_FY22[[#This Row],[75th]]-AAMC_Raw_Data_for_FY22[[#This Row],[Median]])/25)*40) + AAMC_Raw_Data_for_FY22[[#This Row],[Median]]","v":914920.4}]
[{"$f":"AAMC_Raw_Data_for_FY22[[#This Row],[Source]]&AAMC_Raw_Data_for_FY22[[#This Row],[Type]]&AAMC_Raw_Data_for_FY22[[#This Row],[School Subset]]&AAMC_Raw_Data_for_FY22[[#This Row],[Rank]]&AAMC_Raw_Data_for_FY22[[#This Row],[Degree]]&AAMC_Raw_Data_for_FY22[[#This Row],[Department / Specialty]]&\"L\"","v":"AAMCAcademicPublicInstructorMDAnesthesiology TotalL"},"Anesthesiology Total",5,"AAMC","Academic","Public","Instructor","MD","2021-2022",178407,{"$f":"(((AAMC_Raw_Data_for_FY22[[#This Row],[Median]]-AAMC_Raw_Data_for_FY22[[#This Row],[25th]])/25)*5) + AAMC_Raw_Data_for_FY22[[#This Row],[25th]]","v":218651},{"$f":"(((AAMC_Raw_Data_for_FY22[[#This Row],[Median]]-AAMC_Raw_Data_for_FY22[[#This Row],[25th]])/25)*10) + AAMC_Raw_Data_for_FY22[[#This Row],[25th]]","v":258895},{"$f":"(((AAMC_Raw_Data_for_FY22[[#This Row],[Median]]-AAMC_Raw_Data_for_FY22[[#This Row],[25th]])/25)*15) + AAMC_Raw_Data_for_FY22[[#This Row],[25th]]","v":299139},{"$f":"(((AAMC_Raw_Data_for_FY22[[#This Row],[Median]]-AAMC_Raw_Data_for_FY22[[#This Row],[25th]])/25)*20) + AAMC_Raw_Data_for_FY22[[#This Row],[25th]]","v":339383},379627,{"$f":"(((AAMC_Raw_Data_for_FY22[[#This Row],[75th]]-AAMC_Raw_Data_for_FY22[[#This Row],[Median]])/25)*5) + AAMC_Raw_Data_for_FY22[[#This Row],[Median]]","v":389756.2},{"$f":"(((AAMC_Raw_Data_for_FY22[[#This Row],[75th]]-AAMC_Raw_Data_for_FY22[[#This Row],[Median]])/25)*10) + AAMC_Raw_Data_for_FY22[[#This Row],[Median]]","v":399885.4},{"$f":"(((AAMC_Raw_Data_for_FY22[[#This Row],[75th]]-AAMC_Raw_Data_for_FY22[[#This Row],[Median]])/25)*15) + AAMC_Raw_Data_for_FY22[[#This Row],[Median]]","v":410014.6},{"$f":"(((AAMC_Raw_Data_for_FY22[[#This Row],[75th]]-AAMC_Raw_Data_for_FY22[[#This Row],[Median]])/25)*20) + AAMC_Raw_Data_for_FY22[[#This Row],[Median]]","v":420143.8},430273,{"$f":"(((AAMC_Raw_Data_for_FY22[[#This Row],[75th]]-AAMC_Raw_Data_for_FY22[[#This Row],[Median]])/25)*30) + AAMC_Raw_Data_for_FY22[[#This Row],[Median]]","v":440402.2},{"$f":"(((AAMC_Raw_Data_for_FY22[[#This Row],[75th]]-AAMC_Raw_Data_for_FY22[[#This Row],[Median]])/25)*35) + AAMC_Raw_Data_for_FY22[[#This Row],[Median]]","v":450531.4},{"$f":"(((AAMC_Raw_Data_for_FY22[[#This Row],[75th]]-AAMC_Raw_Data_for_FY22[[#This Row],[Median]])/25)*40) + AAMC_Raw_Data_for_FY22[[#This Row],[Median]]","v":460660.6}]
[{"$f":"AAMC_Raw_Data_for_FY22[[#This Row],[Source]]&AAMC_Raw_Data_for_FY22[[#This Row],[Type]]&AAMC_Raw_Data_for_FY22[[#This Row],[School Subset]]&AAMC_Raw_Data_for_FY22[[#This Row],[Rank]]&AAMC_Raw_Data_for_FY22[[#This Row],[Degree]]&AAMC_Raw_Data_for_FY22[[#This Row],[Department / Specialty]]&\"L\"","v":"AAMCAcademicPublicAssistantMDAnesthesiology TotalL"},"Anesthesiology Total",4,"AAMC","Academic","Public","Assistant","MD","2021-2022",385350,{"$f":"(((AAMC_Raw_Data_for_FY22[[#This Row],[Median]]-AAMC_Raw_Data_for_FY22[[#This Row],[25th]])/25)*5) + AAMC_Raw_Data_for_FY22[[#This Row],[25th]]","v":393837.6},{"$f":"(((AAMC_Raw_Data_for_FY22[[#This Row],[Median]]-AAMC_Raw_Data_for_FY22[[#This Row],[25th]])/25)*10) + AAMC_Raw_Data_for_FY22[[#This Row],[25th]]","v":402325.2},{"$f":"(((AAMC_Raw_Data_for_FY22[[#This Row],[Median]]-AAMC_Raw_Data_for_FY22[[#This Row],[25th]])/25)*15) + AAMC_Raw_Data_for_FY22[[#This Row],[25th]]","v":410812.8},{"$f":"(((AAMC_Raw_Data_for_FY22[[#This Row],[Median]]-AAMC_Raw_Data_for_FY22[[#This Row],[25th]])/25)*20) + AAMC_Raw_Data_for_FY22[[#This Row],[25th]]","v":419300.4},427788,{"$f":"(((AAMC_Raw_Data_for_FY22[[#This Row],[75th]]-AAMC_Raw_Data_for_FY22[[#This Row],[Median]])/25)*5) + AAMC_Raw_Data_for_FY22[[#This Row],[Median]]","v":436746.2},{"$f":"(((AAMC_Raw_Data_for_FY22[[#This Row],[75th]]-AAMC_Raw_Data_for_FY22[[#This Row],[Median]])/25)*10) + AAMC_Raw_Data_for_FY22[[#This Row],[Median]]","v":445704.4},{"$f":"(((AAMC_Raw_Data_for_FY22[[#This Row],[75th]]-AAMC_Raw_Data_for_FY22[[#This Row],[Median]])/25)*15) + AAMC_Raw_Data_for_FY22[[#This Row],[Median]]","v":454662.6},{"$f":"(((AAMC_Raw_Data_for_FY22[[#This Row],[75th]]-AAMC_Raw_Data_for_FY22[[#This Row],[Median]])/25)*20) + AAMC_Raw_Data_for_FY22[[#This Row],[Median]]","v":463620.8},472579,{"$f":"(((AAMC_Raw_Data_for_FY22[[#This Row],[75th]]-AAMC_Raw_Data_for_FY22[[#This Row],[Median]])/25)*30) + AAMC_Raw_Data_for_FY22[[#This Row],[Median]]","v":481537.2},{"$f":"(((AAMC_Raw_Data_for_FY22[[#This Row],[75th]]-AAMC_Raw_Data_for_FY22[[#This Row],[Median]])/25)*35) + AAMC_Raw_Data_for_FY22[[#This Row],[Median]]","v":490495.4},{"$f":"(((AAMC_Raw_Data_for_FY22[[#This Row],[75th]]-AAMC_Raw_Data_for_FY22[[#This Row],[Median]])/25)*40) + AAMC_Raw_Data_for_FY22[[#This Row],[Median]]","v":499453.6}]
[{"$f":"AAMC_Raw_Data_for_FY22[[#This Row],[Source]]&AAMC_Raw_Data_for_FY22[[#This Row],[Type]]&AAMC_Raw_Data_for_FY22[[#This Row],[School Subset]]&AAMC_Raw_Data_for_FY22[[#This Row],[Rank]]&AAMC_Raw_Data_for_FY22[[#This Row],[Degree]]&AAMC_Raw_Data_for_FY22[[#This Row],[Department / Specialty]]&\"L\"","v":"AAMCAcademicPublicAssociateMDAnesthesiology TotalL"},"Anesthesiology Total",3,"AAMC","Academic","Public","Associate","MD","2021-2022",410583,{"$f":"(((AAMC_Raw_Data_for_FY22[[#This Row],[Median]]-AAMC_Raw_Data_for_FY22[[#This Row],[25th]])/25)*5) + AAMC_Raw_Data_for_FY22[[#This Row],[25th]]","v":419690},{"$f":"(((AAMC_Raw_Data_for_FY22[[#This Row],[Median]]-AAMC_Raw_Data_for_FY22[[#This Row],[25th]])/25)*10) + AAMC_Raw_Data_for_FY22[[#This Row],[25th]]","v":428797},{"$f":"(((AAMC_Raw_Data_for_FY22[[#This Row],[Median]]-AAMC_Raw_Data_for_FY22[[#This Row],[25th]])/25)*15) + AAMC_Raw_Data_for_FY22[[#This Row],[25th]]","v":437904},{"$f":"(((AAMC_Raw_Data_for_FY22[[#This Row],[Median]]-AAMC_Raw_Data_for_FY22[[#This Row],[25th]])/25)*20) + AAMC_Raw_Data_for_FY22[[#This Row],[25th]]","v":447011},456118,{"$f":"(((AAMC_Raw_Data_for_FY22[[#This Row],[75th]]-AAMC_Raw_Data_for_FY22[[#This Row],[Median]])/25)*5) + AAMC_Raw_Data_for_FY22[[#This Row],[Median]]","v":465561.59999999998},{"$f":"(((AAMC_Raw_Data_for_FY22[[#This Row],[75th]]-AAMC_Raw_Data_for_FY22[[#This Row],[Median]])/25)*10) + AAMC_Raw_Data_for_FY22[[#This Row],[Median]]","v":475005.2},{"$f":"(((AAMC_Raw_Data_for_FY22[[#This Row],[75th]]-AAMC_Raw_Data_for_FY22[[#This Row],[Median]])/25)*15) + AAMC_Raw_Data_for_FY22[[#This Row],[Median]]","v":484448.8},{"$f":"(((AAMC_Raw_Data_for_FY22[[#This Row],[75th]]-AAMC_Raw_Data_for_FY22[[#This Row],[Median]])/25)*20) + AAMC_Raw_Data_for_FY22[[#This Row],[Median]]","v":493892.4},503336,{"$f":"(((AAMC_Raw_Data_for_FY22[[#This Row],[75th]]-AAMC_Raw_Data_for_FY22[[#This Row],[Median]])/25)*30) + AAMC_Raw_Data_for_FY22[[#This Row],[Median]]","v":512779.6},{"$f":"(((AAMC_Raw_Data_for_FY22[[#This Row],[75th]]-AAMC_Raw_Data_for_FY22[[#This Row],[Median]])/25)*35) + AAMC_Raw_Data_for_FY22[[#This Row],[Median]]","v":522223.2},{"$f":"(((AAMC_Raw_Data_for_FY22[[#This Row],[75th]]-AAMC_Raw_Data_for_FY22[[#This Row],[Median]])/25)*40) + AAMC_Raw_Data_for_FY22[[#This Row],[Median]]","v":531666.80000000005}]
[{"$f":"AAMC_Raw_Data_for_FY22[[#This Row],[Source]]&AAMC_Raw_Data_for_FY22[[#This Row],[Type]]&AAMC_Raw_Data_for_FY22[[#This Row],[School Subset]]&AAMC_Raw_Data_for_FY22[[#This Row],[Rank]]&AAMC_Raw_Data_for_FY22[[#This Row],[Degree]]&AAMC_Raw_Data_for_FY22[[#This Row],[Department / Specialty]]&\"L\"","v":"AAMCAcademicPublicProfessorMDAnesthesiology TotalL"},"Anesthesiology Total",2,"AAMC","Academic","Public","Professor","MD","2021-2022",410830,{"$f":"(((AAMC_Raw_Data_for_FY22[[#This Row],[Median]]-AAMC_Raw_Data_for_FY22[[#This Row],[25th]])/25)*5) + AAMC_Raw_Data_for_FY22[[#This Row],[25th]]","v":421912.8},{"$f":"(((AAMC_Raw_Data_for_FY22[[#This Row],[Median]]-AAMC_Raw_Data_for_FY22[[#This Row],[25th]])/25)*10) + AAMC_Raw_Data_for_FY22[[#This Row],[25th]]","v":432995.6},{"$f":"(((AAMC_Raw_Data_for_FY22[[#This Row],[Median]]-AAMC_Raw_Data_for_FY22[[#This Row],[25th]])/25)*15) + AAMC_Raw_Data_for_FY22[[#This Row],[25th]]","v":444078.4},{"$f":"(((AAMC_Raw_Data_for_FY22[[#This Row],[Median]]-AAMC_Raw_Data_for_FY22[[#This Row],[25th]])/25)*20) + AAMC_Raw_Data_for_FY22[[#This Row],[25th]]","v":455161.2},466244,{"$f":"(((AAMC_Raw_Data_for_FY22[[#This Row],[75th]]-AAMC_Raw_Data_for_FY22[[#This Row],[Median]])/25)*5) + AAMC_Raw_Data_for_FY22[[#This Row],[Median]]","v":476803},{"$f":"(((AAMC_Raw_Data_for_FY22[[#This Row],[75th]]-AAMC_Raw_Data_for_FY22[[#This Row],[Median]])/25)*10) + AAMC_Raw_Data_for_FY22[[#This Row],[Median]]","v":487362},{"$f":"(((AAMC_Raw_Data_for_FY22[[#This Row],[75th]]-AAMC_Raw_Data_for_FY22[[#This Row],[Median]])/25)*15) + AAMC_Raw_Data_for_FY22[[#This Row],[Median]]","v":497921},{"$f":"(((AAMC_Raw_Data_for_FY22[[#This Row],[75th]]-AAMC_Raw_Data_for_FY22[[#This Row],[Median]])/25)*20) + AAMC_Raw_Data_for_FY22[[#This Row],[Median]]","v":508480},519039,{"$f":"(((AAMC_Raw_Data_for_FY22[[#This Row],[75th]]-AAMC_Raw_Data_for_FY22[[#This Row],[Median]])/25)*30) + AAMC_Raw_Data_for_FY22[[#This Row],[Median]]","v":529598},{"$f":"(((AAMC_Raw_Data_for_FY22[[#This Row],[75th]]-AAMC_Raw_Data_for_FY22[[#This Row],[Median]])/25)*35) + AAMC_Raw_Data_for_FY22[[#This Row],[Median]]","v":540157},{"$f":"(((AAMC_Raw_Data_for_FY22[[#This Row],[75th]]-AAMC_Raw_Data_for_FY22[[#This Row],[Median]])/25)*40) + AAMC_Raw_Data_for_FY22[[#This Row],[Median]]","v":550716}]
[{"$f":"AAMC_Raw_Data_for_FY22[[#This Row],[Source]]&AAMC_Raw_Data_for_FY22[[#This Row],[Type]]&AAMC_Raw_Data_for_FY22[[#This Row],[School Subset]]&AAMC_Raw_Data_for_FY22[[#This Row],[Rank]]&AAMC_Raw_Data_for_FY22[[#This Row],[Degree]]&AAMC_Raw_Data_for_FY22[[#This Row],[Department / Specialty]]&\"L\"","v":"AAMCAcademicPublicChiefMDAnesthesiology TotalL"},"Anesthesiology Total",6,"AAMC","Academic","Public","Chief","MD","2021-2022",425133,{"$f":"(((AAMC_Raw_Data_for_FY22[[#This Row],[Median]]-AAMC_Raw_Data_for_FY22[[#This Row],[25th]])/25)*5) + AAMC_Raw_Data_for_FY22[[#This Row],[25th]]","v":433108},{"$f":"(((AAMC_Raw_Data_for_FY22[[#This Row],[Median]]-AAMC_Raw_Data_for_FY22[[#This Row],[25th]])/25)*10) + AAMC_Raw_Data_for_FY22[[#This Row],[25th]]","v":441083},{"$f":"(((AAMC_Raw_Data_for_FY22[[#This Row],[Median]]-AAMC_Raw_Data_for_FY22[[#This Row],[25th]])/25)*15) + AAMC_Raw_Data_for_FY22[[#This Row],[25th]]","v":449058},{"$f":"(((AAMC_Raw_Data_for_FY22[[#This Row],[Median]]-AAMC_Raw_Data_for_FY22[[#This Row],[25th]])/25)*20) + AAMC_Raw_Data_for_FY22[[#This Row],[25th]]","v":457033},465008,{"$f":"(((AAMC_Raw_Data_for_FY22[[#This Row],[75th]]-AAMC_Raw_Data_for_FY22[[#This Row],[Median]])/25)*5) + AAMC_Raw_Data_for_FY22[[#This Row],[Median]]","v":476286},{"$f":"(((AAMC_Raw_Data_for_FY22[[#This Row],[75th]]-AAMC_Raw_Data_for_FY22[[#This Row],[Median]])/25)*10) + AAMC_Raw_Data_for_FY22[[#This Row],[Median]]","v":487564},{"$f":"(((AAMC_Raw_Data_for_FY22[[#This Row],[75th]]-AAMC_Raw_Data_for_FY22[[#This Row],[Median]])/25)*15) + AAMC_Raw_Data_for_FY22[[#This Row],[Median]]","v":498842},{"$f":"(((AAMC_Raw_Data_for_FY22[[#This Row],[75th]]-AAMC_Raw_Data_for_FY22[[#This Row],[Median]])/25)*20) + AAMC_Raw_Data_for_FY22[[#This Row],[Median]]","v":510120},521398,{"$f":"(((AAMC_Raw_Data_for_FY22[[#This Row],[75th]]-AAMC_Raw_Data_for_FY22[[#This Row],[Median]])/25)*30) + AAMC_Raw_Data_for_FY22[[#This Row],[Median]]","v":532676},{"$f":"(((AAMC_Raw_Data_for_FY22[[#This Row],[75th]]-AAMC_Raw_Data_for_FY22[[#This Row],[Median]])/25)*35) + AAMC_Raw_Data_for_FY22[[#This Row],[Median]]","v":543954},{"$f":"(((AAMC_Raw_Data_for_FY22[[#This Row],[75th]]-AAMC_Raw_Data_for_FY22[[#This Row],[Median]])/25)*40) + AAMC_Raw_Data_for_FY22[[#This Row],[Median]]","v":555232}]
[{"$f":"AAMC_Raw_Data_for_FY22[[#This Row],[Source]]&AAMC_Raw_Data_for_FY22[[#This Row],[Type]]&AAMC_Raw_Data_for_FY22[[#This Row],[School Subset]]&AAMC_Raw_Data_for_FY22[[#This Row],[Rank]]&AAMC_Raw_Data_for_FY22[[#This Row],[Degree]]&AAMC_Raw_Data_for_FY22[[#This Row],[Department / Specialty]]&\"L\"","v":"AAMCAcademicPublicChairMDAnesthesiology TotalL"},"Anesthesiology Total",1,"AAMC","Academic","Public","Chair","MD","2021-2022",623338,{"$f":"(((AAMC_Raw_Data_for_FY22[[#This Row],[Median]]-AAMC_Raw_Data_for_FY22[[#This Row],[25th]])/25)*5) + AAMC_Raw_Data_for_FY22[[#This Row],[25th]]","v":631080.6},{"$f":"(((AAMC_Raw_Data_for_FY22[[#This Row],[Median]]-AAMC_Raw_Data_for_FY22[[#This Row],[25th]])/25)*10) + AAMC_Raw_Data_for_FY22[[#This Row],[25th]]","v":638823.19999999995},{"$f":"(((AAMC_Raw_Data_for_FY22[[#This Row],[Median]]-AAMC_Raw_Data_for_FY22[[#This Row],[25th]])/25)*15) + AAMC_Raw_Data_for_FY22[[#This Row],[25th]]","v":646565.80000000005},{"$f":"(((AAMC_Raw_Data_for_FY22[[#This Row],[Median]]-AAMC_Raw_Data_for_FY22[[#This Row],[25th]])/25)*20) + AAMC_Raw_Data_for_FY22[[#This Row],[25th]]","v":654308.4},662051,{"$f":"(((AAMC_Raw_Data_for_FY22[[#This Row],[75th]]-AAMC_Raw_Data_for_FY22[[#This Row],[Median]])/25)*5) + AAMC_Raw_Data_for_FY22[[#This Row],[Median]]","v":674094},{"$f":"(((AAMC_Raw_Data_for_FY22[[#This Row],[75th]]-AAMC_Raw_Data_for_FY22[[#This Row],[Median]])/25)*10) + AAMC_Raw_Data_for_FY22[[#This Row],[Median]]","v":686137},{"$f":"(((AAMC_Raw_Data_for_FY22[[#This Row],[75th]]-AAMC_Raw_Data_for_FY22[[#This Row],[Median]])/25)*15) + AAMC_Raw_Data_for_FY22[[#This Row],[Median]]","v":698180},{"$f":"(((AAMC_Raw_Data_for_FY22[[#This Row],[75th]]-AAMC_Raw_Data_for_FY22[[#This Row],[Median]])/25)*20) + AAMC_Raw_Data_for_FY22[[#This Row],[Median]]","v":710223},722266,{"$f":"(((AAMC_Raw_Data_for_FY22[[#This Row],[75th]]-AAMC_Raw_Data_for_FY22[[#This Row],[Median]])/25)*30) + AAMC_Raw_Data_for_FY22[[#This Row],[Median]]","v":734309},{"$f":"(((AAMC_Raw_Data_for_FY22[[#This Row],[75th]]-AAMC_Raw_Data_for_FY22[[#This Row],[Median]])/25)*35) + AAMC_Raw_Data_for_FY22[[#This Row],[Median]]","v":746352},{"$f":"(((AAMC_Raw_Data_for_FY22[[#This Row],[75th]]-AAMC_Raw_Data_for_FY22[[#This Row],[Median]])/25)*40) + AAMC_Raw_Data_for_FY22[[#This Row],[Median]]","v":758395}]
[{"$f":"AAMC_Raw_Data_for_FY22[[#This Row],[Source]]&AAMC_Raw_Data_for_FY22[[#This Row],[Type]]&AAMC_Raw_Data_for_FY22[[#This Row],[School Subset]]&AAMC_Raw_Data_for_FY22[[#This Row],[Rank]]&AAMC_Raw_Data_for_FY22[[#This Row],[Degree]]&AAMC_Raw_Data_for_FY22[[#This Row],[Department / Specialty]]&\"L\"","v":"AAMCAcademicPublicInstructorMDAnesthesiology: GeneralL"},"Anesthesiology: General",5,"AAMC","Academic","Public","Instructor","MD","2021-2022",156548,{"$f":"(((AAMC_Raw_Data_for_FY22[[#This Row],[Median]]-AAMC_Raw_Data_for_FY22[[#This Row],[25th]])/25)*5) + AAMC_Raw_Data_for_FY22[[#This Row],[25th]]","v":200857.8},{"$f":"(((AAMC_Raw_Data_for_FY22[[#This Row],[Median]]-AAMC_Raw_Data_for_FY22[[#This Row],[25th]])/25)*10) + AAMC_Raw_Data_for_FY22[[#This Row],[25th]]","v":245167.59999999998},{"$f":"(((AAMC_Raw_Data_for_FY22[[#This Row],[Median]]-AAMC_Raw_Data_for_FY22[[#This Row],[25th]])/25)*15) + AAMC_Raw_Data_for_FY22[[#This Row],[25th]]","v":289477.40000000002},{"$f":"(((AAMC_Raw_Data_for_FY22[[#This Row],[Median]]-AAMC_Raw_Data_for_FY22[[#This Row],[25th]])/25)*20) + AAMC_Raw_Data_for_FY22[[#This Row],[25th]]","v":333787.19999999995},378097,{"$f":"(((AAMC_Raw_Data_for_FY22[[#This Row],[75th]]-AAMC_Raw_Data_for_FY22[[#This Row],[Median]])/25)*5) + AAMC_Raw_Data_for_FY22[[#This Row],[Median]]","v":387443.20000000001},{"$f":"(((AAMC_Raw_Data_for_FY22[[#This Row],[75th]]-AAMC_Raw_Data_for_FY22[[#This Row],[Median]])/25)*10) + AAMC_Raw_Data_for_FY22[[#This Row],[Median]]","v":396789.4},{"$f":"(((AAMC_Raw_Data_for_FY22[[#This Row],[75th]]-AAMC_Raw_Data_for_FY22[[#This Row],[Median]])/25)*15) + AAMC_Raw_Data_for_FY22[[#This Row],[Median]]","v":406135.6},{"$f":"(((AAMC_Raw_Data_for_FY22[[#This Row],[75th]]-AAMC_Raw_Data_for_FY22[[#This Row],[Median]])/25)*20) + AAMC_Raw_Data_for_FY22[[#This Row],[Median]]","v":415481.8},424828,{"$f":"(((AAMC_Raw_Data_for_FY22[[#This Row],[75th]]-AAMC_Raw_Data_for_FY22[[#This Row],[Median]])/25)*30) + AAMC_Raw_Data_for_FY22[[#This Row],[Median]]","v":434174.2},{"$f":"(((AAMC_Raw_Data_for_FY22[[#This Row],[75th]]-AAMC_Raw_Data_for_FY22[[#This Row],[Median]])/25)*35) + AAMC_Raw_Data_for_FY22[[#This Row],[Median]]","v":443520.4},{"$f":"(((AAMC_Raw_Data_for_FY22[[#This Row],[75th]]-AAMC_Raw_Data_for_FY22[[#This Row],[Median]])/25)*40) + AAMC_Raw_Data_for_FY22[[#This Row],[Median]]","v":452866.6}]
[{"$f":"AAMC_Raw_Data_for_FY22[[#This Row],[Source]]&AAMC_Raw_Data_for_FY22[[#This Row],[Type]]&AAMC_Raw_Data_for_FY22[[#This Row],[School Subset]]&AAMC_Raw_Data_for_FY22[[#This Row],[Rank]]&AAMC_Raw_Data_for_FY22[[#This Row],[Degree]]&AAMC_Raw_Data_for_FY22[[#This Row],[Department / Specialty]]&\"L\"","v":"AAMCAcademicPublicAssistantMDAnesthesiology: GeneralL"},"Anesthesiology: General",4,"AAMC","Academic","Public","Assistant","MD","2021-2022",384092,{"$f":"(((AAMC_Raw_Data_for_FY22[[#This Row],[Median]]-AAMC_Raw_Data_for_FY22[[#This Row],[25th]])/25)*5) + AAMC_Raw_Data_for_FY22[[#This Row],[25th]]","v":392273.8},{"$f":"(((AAMC_Raw_Data_for_FY22[[#This Row],[Median]]-AAMC_Raw_Data_for_FY22[[#This Row],[25th]])/25)*10) + AAMC_Raw_Data_for_FY22[[#This Row],[25th]]","v":400455.6},{"$f":"(((AAMC_Raw_Data_for_FY22[[#This Row],[Median]]-AAMC_Raw_Data_for_FY22[[#This Row],[25th]])/25)*15) + AAMC_Raw_Data_for_FY22[[#This Row],[25th]]","v":408637.4},{"$f":"(((AAMC_Raw_Data_for_FY22[[#This Row],[Median]]-AAMC_Raw_Data_for_FY22[[#This Row],[25th]])/25)*20) + AAMC_Raw_Data_for_FY22[[#This Row],[25th]]","v":416819.20000000001},425001,{"$f":"(((AAMC_Raw_Data_for_FY22[[#This Row],[75th]]-AAMC_Raw_Data_for_FY22[[#This Row],[Median]])/25)*5) + AAMC_Raw_Data_for_FY22[[#This Row],[Median]]","v":434144.8},{"$f":"(((AAMC_Raw_Data_for_FY22[[#This Row],[75th]]-AAMC_Raw_Data_for_FY22[[#This Row],[Median]])/25)*10) + AAMC_Raw_Data_for_FY22[[#This Row],[Median]]","v":443288.6},{"$f":"(((AAMC_Raw_Data_for_FY22[[#This Row],[75th]]-AAMC_Raw_Data_for_FY22[[#This Row],[Median]])/25)*15) + AAMC_Raw_Data_for_FY22[[#This Row],[Median]]","v":452432.4},{"$f":"(((AAMC_Raw_Data_for_FY22[[#This Row],[75th]]-AAMC_Raw_Data_for_FY22[[#This Row],[Median]])/25)*20) + AAMC_Raw_Data_for_FY22[[#This Row],[Median]]","v":461576.2},470720,{"$f":"(((AAMC_Raw_Data_for_FY22[[#This Row],[75th]]-AAMC_Raw_Data_for_FY22[[#This Row],[Median]])/25)*30) + AAMC_Raw_Data_for_FY22[[#This Row],[Median]]","v":479863.8},{"$f":"(((AAMC_Raw_Data_for_FY22[[#This Row],[75th]]-AAMC_Raw_Data_for_FY22[[#This Row],[Median]])/25)*35) + AAMC_Raw_Data_for_FY22[[#This Row],[Median]]","v":489007.6},{"$f":"(((AAMC_Raw_Data_for_FY22[[#This Row],[75th]]-AAMC_Raw_Data_for_FY22[[#This Row],[Median]])/25)*40) + AAMC_Raw_Data_for_FY22[[#This Row],[Median]]","v":498151.4}]
[{"$f":"AAMC_Raw_Data_for_FY22[[#This Row],[Source]]&AAMC_Raw_Data_for_FY22[[#This Row],[Type]]&AAMC_Raw_Data_for_FY22[[#This Row],[School Subset]]&AAMC_Raw_Data_for_FY22[[#This Row],[Rank]]&AAMC_Raw_Data_for_FY22[[#This Row],[Degree]]&AAMC_Raw_Data_for_FY22[[#This Row],[Department / Specialty]]&\"L\"","v":"AAMCAcademicPublicAssociateMDAnesthesiology: GeneralL"},"Anesthesiology: General",3,"AAMC","Academic","Public","Associate","MD","2021-2022",410932,{"$f":"(((AAMC_Raw_Data_for_FY22[[#This Row],[Median]]-AAMC_Raw_Data_for_FY22[[#This Row],[25th]])/25)*5) + AAMC_Raw_Data_for_FY22[[#This Row],[25th]]","v":419874.6},{"$f":"(((AAMC_Raw_Data_for_FY22[[#This Row],[Median]]-AAMC_Raw_Data_for_FY22[[#This Row],[25th]])/25)*10) + AAMC_Raw_Data_for_FY22[[#This Row],[25th]]","v":428817.2},{"$f":"(((AAMC_Raw_Data_for_FY22[[#This Row],[Median]]-AAMC_Raw_Data_for_FY22[[#This Row],[25th]])/25)*15) + AAMC_Raw_Data_for_FY22[[#This Row],[25th]]","v":437759.8},{"$f":"(((AAMC_Raw_Data_for_FY22[[#This Row],[Median]]-AAMC_Raw_Data_for_FY22[[#This Row],[25th]])/25)*20) + AAMC_Raw_Data_for_FY22[[#This Row],[25th]]","v":446702.4},455645,{"$f":"(((AAMC_Raw_Data_for_FY22[[#This Row],[75th]]-AAMC_Raw_Data_for_FY22[[#This Row],[Median]])/25)*5) + AAMC_Raw_Data_for_FY22[[#This Row],[Median]]","v":465401.4},{"$f":"(((AAMC_Raw_Data_for_FY22[[#This Row],[75th]]-AAMC_Raw_Data_for_FY22[[#This Row],[Median]])/25)*10) + AAMC_Raw_Data_for_FY22[[#This Row],[Median]]","v":475157.8},{"$f":"(((AAMC_Raw_Data_for_FY22[[#This Row],[75th]]-AAMC_Raw_Data_for_FY22[[#This Row],[Median]])/25)*15) + AAMC_Raw_Data_for_FY22[[#This Row],[Median]]","v":484914.2},{"$f":"(((AAMC_Raw_Data_for_FY22[[#This Row],[75th]]-AAMC_Raw_Data_for_FY22[[#This Row],[Median]])/25)*20) + AAMC_Raw_Data_for_FY22[[#This Row],[Median]]","v":494670.6},504427,{"$f":"(((AAMC_Raw_Data_for_FY22[[#This Row],[75th]]-AAMC_Raw_Data_for_FY22[[#This Row],[Median]])/25)*30) + AAMC_Raw_Data_for_FY22[[#This Row],[Median]]","v":514183.4},{"$f":"(((AAMC_Raw_Data_for_FY22[[#This Row],[75th]]-AAMC_Raw_Data_for_FY22[[#This Row],[Median]])/25)*35) + AAMC_Raw_Data_for_FY22[[#This Row],[Median]]","v":523939.8},{"$f":"(((AAMC_Raw_Data_for_FY22[[#This Row],[75th]]-AAMC_Raw_Data_for_FY22[[#This Row],[Median]])/25)*40) + AAMC_Raw_Data_for_FY22[[#This Row],[Median]]","v":533696.19999999995}]
[{"$f":"AAMC_Raw_Data_for_FY22[[#This Row],[Source]]&AAMC_Raw_Data_for_FY22[[#This Row],[Type]]&AAMC_Raw_Data_for_FY22[[#This Row],[School Subset]]&AAMC_Raw_Data_for_FY22[[#This Row],[Rank]]&AAMC_Raw_Data_for_FY22[[#This Row],[Degree]]&AAMC_Raw_Data_for_FY22[[#This Row],[Department / Specialty]]&\"L\"","v":"AAMCAcademicPublicProfessorMDAnesthesiology: GeneralL"},"Anesthesiology: General",2,"AAMC","Academic","Public","Professor","MD","2021-2022",408108,{"$f":"(((AAMC_Raw_Data_for_FY22[[#This Row],[Median]]-AAMC_Raw_Data_for_FY22[[#This Row],[25th]])/25)*5) + AAMC_Raw_Data_for_FY22[[#This Row],[25th]]","v":419698.6},{"$f":"(((AAMC_Raw_Data_for_FY22[[#This Row],[Median]]-AAMC_Raw_Data_for_FY22[[#This Row],[25th]])/25)*10) + AAMC_Raw_Data_for_FY22[[#This Row],[25th]]","v":431289.2},{"$f":"(((AAMC_Raw_Data_for_FY22[[#This Row],[Median]]-AAMC_Raw_Data_for_FY22[[#This Row],[25th]])/25)*15) + AAMC_Raw_Data_for_FY22[[#This Row],[25th]]","v":442879.8},{"$f":"(((AAMC_Raw_Data_for_FY22[[#This Row],[Median]]-AAMC_Raw_Data_for_FY22[[#This Row],[25th]])/25)*20) + AAMC_Raw_Data_for_FY22[[#This Row],[25th]]","v":454470.40000000002},466061,{"$f":"(((AAMC_Raw_Data_for_FY22[[#This Row],[75th]]-AAMC_Raw_Data_for_FY22[[#This Row],[Median]])/25)*5) + AAMC_Raw_Data_for_FY22[[#This Row],[Median]]","v":476468.8},{"$f":"(((AAMC_Raw_Data_for_FY22[[#This Row],[75th]]-AAMC_Raw_Data_for_FY22[[#This Row],[Median]])/25)*10) + AAMC_Raw_Data_for_FY22[[#This Row],[Median]]","v":486876.6},{"$f":"(((AAMC_Raw_Data_for_FY22[[#This Row],[75th]]-AAMC_Raw_Data_for_FY22[[#This Row],[Median]])/25)*15) + AAMC_Raw_Data_for_FY22[[#This Row],[Median]]","v":497284.4},{"$f":"(((AAMC_Raw_Data_for_FY22[[#This Row],[75th]]-AAMC_Raw_Data_for_FY22[[#This Row],[Median]])/25)*20) + AAMC_Raw_Data_for_FY22[[#This Row],[Median]]","v":507692.2},518100,{"$f":"(((AAMC_Raw_Data_for_FY22[[#This Row],[75th]]-AAMC_Raw_Data_for_FY22[[#This Row],[Median]])/25)*30) + AAMC_Raw_Data_for_FY22[[#This Row],[Median]]","v":528507.80000000005},{"$f":"(((AAMC_Raw_Data_for_FY22[[#This Row],[75th]]-AAMC_Raw_Data_for_FY22[[#This Row],[Median]])/25)*35) + AAMC_Raw_Data_for_FY22[[#This Row],[Median]]","v":538915.6},{"$f":"(((AAMC_Raw_Data_for_FY22[[#This Row],[75th]]-AAMC_Raw_Data_for_FY22[[#This Row],[Median]])/25)*40) + AAMC_Raw_Data_for_FY22[[#This Row],[Median]]","v":549323.4}]
[{"$f":"AAMC_Raw_Data_for_FY22[[#This Row],[Source]]&AAMC_Raw_Data_for_FY22[[#This Row],[Type]]&AAMC_Raw_Data_for_FY22[[#This Row],[School Subset]]&AAMC_Raw_Data_for_FY22[[#This Row],[Rank]]&AAMC_Raw_Data_for_FY22[[#This Row],[Degree]]&AAMC_Raw_Data_for_FY22[[#This Row],[Department / Specialty]]&\"L\"","v":"AAMCAcademicPublicChiefMDAnesthesiology: GeneralL"},"Anesthesiology: General",6,"AAMC","Academic","Public","Chief","MD","2021-2022",432755,{"$f":"(((AAMC_Raw_Data_for_FY22[[#This Row],[Median]]-AAMC_Raw_Data_for_FY22[[#This Row],[25th]])/25)*5) + AAMC_Raw_Data_for_FY22[[#This Row],[25th]]","v":442485},{"$f":"(((AAMC_Raw_Data_for_FY22[[#This Row],[Median]]-AAMC_Raw_Data_for_FY22[[#This Row],[25th]])/25)*10) + AAMC_Raw_Data_for_FY22[[#This Row],[25th]]","v":452215},{"$f":"(((AAMC_Raw_Data_for_FY22[[#This Row],[Median]]-AAMC_Raw_Data_for_FY22[[#This Row],[25th]])/25)*15) + AAMC_Raw_Data_for_FY22[[#This Row],[25th]]","v":461945},{"$f":"(((AAMC_Raw_Data_for_FY22[[#This Row],[Median]]-AAMC_Raw_Data_for_FY22[[#This Row],[25th]])/25)*20) + AAMC_Raw_Data_for_FY22[[#This Row],[25th]]","v":471675},481405,{"$f":"(((AAMC_Raw_Data_for_FY22[[#This Row],[75th]]-AAMC_Raw_Data_for_FY22[[#This Row],[Median]])/25)*5) + AAMC_Raw_Data_for_FY22[[#This Row],[Median]]","v":489864},{"$f":"(((AAMC_Raw_Data_for_FY22[[#This Row],[75th]]-AAMC_Raw_Data_for_FY22[[#This Row],[Median]])/25)*10) + AAMC_Raw_Data_for_FY22[[#This Row],[Median]]","v":498323},{"$f":"(((AAMC_Raw_Data_for_FY22[[#This Row],[75th]]-AAMC_Raw_Data_for_FY22[[#This Row],[Median]])/25)*15) + AAMC_Raw_Data_for_FY22[[#This Row],[Median]]","v":506782},{"$f":"(((AAMC_Raw_Data_for_FY22[[#This Row],[75th]]-AAMC_Raw_Data_for_FY22[[#This Row],[Median]])/25)*20) + AAMC_Raw_Data_for_FY22[[#This Row],[Median]]","v":515241},523700,{"$f":"(((AAMC_Raw_Data_for_FY22[[#This Row],[75th]]-AAMC_Raw_Data_for_FY22[[#This Row],[Median]])/25)*30) + AAMC_Raw_Data_for_FY22[[#This Row],[Median]]","v":532159},{"$f":"(((AAMC_Raw_Data_for_FY22[[#This Row],[75th]]-AAMC_Raw_Data_for_FY22[[#This Row],[Median]])/25)*35) + AAMC_Raw_Data_for_FY22[[#This Row],[Median]]","v":540618},{"$f":"(((AAMC_Raw_Data_for_FY22[[#This Row],[75th]]-AAMC_Raw_Data_for_FY22[[#This Row],[Median]])/25)*40) + AAMC_Raw_Data_for_FY22[[#This Row],[Median]]","v":549077}]
[{"$f":"AAMC_Raw_Data_for_FY22[[#This Row],[Source]]&AAMC_Raw_Data_for_FY22[[#This Row],[Type]]&AAMC_Raw_Data_for_FY22[[#This Row],[School Subset]]&AAMC_Raw_Data_for_FY22[[#This Row],[Rank]]&AAMC_Raw_Data_for_FY22[[#This Row],[Degree]]&AAMC_Raw_Data_for_FY22[[#This Row],[Department / Specialty]]&\"L\"","v":"AAMCAcademicPublicChairMDAnesthesiology: GeneralL"},"Anesthesiology: General",1,"AAMC","Academic","Public","Chair","MD","2021-2022",630804,{"$f":"(((AAMC_Raw_Data_for_FY22[[#This Row],[Median]]-AAMC_Raw_Data_for_FY22[[#This Row],[25th]])/25)*5) + AAMC_Raw_Data_for_FY22[[#This Row],[25th]]","v":637890},{"$f":"(((AAMC_Raw_Data_for_FY22[[#This Row],[Median]]-AAMC_Raw_Data_for_FY22[[#This Row],[25th]])/25)*10) + AAMC_Raw_Data_for_FY22[[#This Row],[25th]]","v":644976},{"$f":"(((AAMC_Raw_Data_for_FY22[[#This Row],[Median]]-AAMC_Raw_Data_for_FY22[[#This Row],[25th]])/25)*15) + AAMC_Raw_Data_for_FY22[[#This Row],[25th]]","v":652062},{"$f":"(((AAMC_Raw_Data_for_FY22[[#This Row],[Median]]-AAMC_Raw_Data_for_FY22[[#This Row],[25th]])/25)*20) + AAMC_Raw_Data_for_FY22[[#This Row],[25th]]","v":659148},666234,{"$f":"(((AAMC_Raw_Data_for_FY22[[#This Row],[75th]]-AAMC_Raw_Data_for_FY22[[#This Row],[Median]])/25)*5) + AAMC_Raw_Data_for_FY22[[#This Row],[Median]]","v":678121.6},{"$f":"(((AAMC_Raw_Data_for_FY22[[#This Row],[75th]]-AAMC_Raw_Data_for_FY22[[#This Row],[Median]])/25)*10) + AAMC_Raw_Data_for_FY22[[#This Row],[Median]]","v":690009.2},{"$f":"(((AAMC_Raw_Data_for_FY22[[#This Row],[75th]]-AAMC_Raw_Data_for_FY22[[#This Row],[Median]])/25)*15) + AAMC_Raw_Data_for_FY22[[#This Row],[Median]]","v":701896.8},{"$f":"(((AAMC_Raw_Data_for_FY22[[#This Row],[75th]]-AAMC_Raw_Data_for_FY22[[#This Row],[Median]])/25)*20) + AAMC_Raw_Data_for_FY22[[#This Row],[Median]]","v":713784.4},725672,{"$f":"(((AAMC_Raw_Data_for_FY22[[#This Row],[75th]]-AAMC_Raw_Data_for_FY22[[#This Row],[Median]])/25)*30) + AAMC_Raw_Data_for_FY22[[#This Row],[Median]]","v":737559.6},{"$f":"(((AAMC_Raw_Data_for_FY22[[#This Row],[75th]]-AAMC_Raw_Data_for_FY22[[#This Row],[Median]])/25)*35) + AAMC_Raw_Data_for_FY22[[#This Row],[Median]]","v":749447.2},{"$f":"(((AAMC_Raw_Data_for_FY22[[#This Row],[75th]]-AAMC_Raw_Data_for_FY22[[#This Row],[Median]])/25)*40) + AAMC_Raw_Data_for_FY22[[#This Row],[Median]]","v":761334.8}]
[{"$f":"AAMC_Raw_Data_for_FY22[[#This Row],[Source]]&AAMC_Raw_Data_for_FY22[[#This Row],[Type]]&AAMC_Raw_Data_for_FY22[[#This Row],[School Subset]]&AAMC_Raw_Data_for_FY22[[#This Row],[Rank]]&AAMC_Raw_Data_for_FY22[[#This Row],[Degree]]&AAMC_Raw_Data_for_FY22[[#This Row],[Department / Specialty]]&\"L\"","v":"AAMCAcademicPublicInstructorMDAnesthesiology: Pain ManagementL"},"Anesthesiology: Pain Management",5,"AAMC","Academic","Public","Instructor","MD","2021-2022",null,{"$f":"(((AAMC_Raw_Data_for_FY22[[#This Row],[Median]]-AAMC_Raw_Data_for_FY22[[#This Row],[25th]])/25)*5) + AAMC_Raw_Data_for_FY22[[#This Row],[25th]]","v":0},{"$f":"(((AAMC_Raw_Data_for_FY22[[#This Row],[Median]]-AAMC_Raw_Data_for_FY22[[#This Row],[25th]])/25)*10) + AAMC_Raw_Data_for_FY22[[#This Row],[25th]]","v":0},{"$f":"(((AAMC_Raw_Data_for_FY22[[#This Row],[Median]]-AAMC_Raw_Data_for_FY22[[#This Row],[25th]])/25)*15) + AAMC_Raw_Data_for_FY22[[#This Row],[25th]]","v":0},{"$f":"(((AAMC_Raw_Data_for_FY22[[#This Row],[Median]]-AAMC_Raw_Data_for_FY22[[#This Row],[25th]])/25)*20) + AAMC_Raw_Data_for_FY22[[#This Row],[25th]]","v":0},null,{"$f":"(((AAMC_Raw_Data_for_FY22[[#This Row],[75th]]-AAMC_Raw_Data_for_FY22[[#This Row],[Median]])/25)*5) + AAMC_Raw_Data_for_FY22[[#This Row],[Median]]","v":0},{"$f":"(((AAMC_Raw_Data_for_FY22[[#This Row],[75th]]-AAMC_Raw_Data_for_FY22[[#This Row],[Median]])/25)*10) + AAMC_Raw_Data_for_FY22[[#This Row],[Median]]","v":0},{"$f":"(((AAMC_Raw_Data_for_FY22[[#This Row],[75th]]-AAMC_Raw_Data_for_FY22[[#This Row],[Median]])/25)*15) + AAMC_Raw_Data_for_FY22[[#This Row],[Median]]","v":0},{"$f":"(((AAMC_Raw_Data_for_FY22[[#This Row],[75th]]-AAMC_Raw_Data_for_FY22[[#This Row],[Median]])/25)*20) + AAMC_Raw_Data_for_FY22[[#This Row],[Median]]","v":0},null,{"$f":"(((AAMC_Raw_Data_for_FY22[[#This Row],[75th]]-AAMC_Raw_Data_for_FY22[[#This Row],[Median]])/25)*30) + AAMC_Raw_Data_for_FY22[[#This Row],[Median]]","v":0},{"$f":"(((AAMC_Raw_Data_for_FY22[[#This Row],[75th]]-AAMC_Raw_Data_for_FY22[[#This Row],[Median]])/25)*35) + AAMC_Raw_Data_for_FY22[[#This Row],[Median]]","v":0},{"$f":"(((AAMC_Raw_Data_for_FY22[[#This Row],[75th]]-AAMC_Raw_Data_for_FY22[[#This Row],[Median]])/25)*40) + AAMC_Raw_Data_for_FY22[[#This Row],[Median]]","v":0}]
[{"$f":"AAMC_Raw_Data_for_FY22[[#This Row],[Source]]&AAMC_Raw_Data_for_FY22[[#This Row],[Type]]&AAMC_Raw_Data_for_FY22[[#This Row],[School Subset]]&AAMC_Raw_Data_for_FY22[[#This Row],[Rank]]&AAMC_Raw_Data_for_FY22[[#This Row],[Degree]]&AAMC_Raw_Data_for_FY22[[#This Row],[Department / Specialty]]&\"L\"","v":"AAMCAcademicPublicAssistantMDAnesthesiology: Pain ManagementL"},"Anesthesiology: Pain Management",4,"AAMC","Academic","Public","Assistant","MD","2021-2022",372520,{"$f":"(((AAMC_Raw_Data_for_FY22[[#This Row],[Median]]-AAMC_Raw_Data_for_FY22[[#This Row],[25th]])/25)*5) + AAMC_Raw_Data_for_FY22[[#This Row],[25th]]","v":381980.4},{"$f":"(((AAMC_Raw_Data_for_FY22[[#This Row],[Median]]-AAMC_Raw_Data_for_FY22[[#This Row],[25th]])/25)*10) + AAMC_Raw_Data_for_FY22[[#This Row],[25th]]","v":391440.8},{"$f":"(((AAMC_Raw_Data_for_FY22[[#This Row],[Median]]-AAMC_Raw_Data_for_FY22[[#This Row],[25th]])/25)*15) + AAMC_Raw_Data_for_FY22[[#This Row],[25th]]","v":400901.2},{"$f":"(((AAMC_Raw_Data_for_FY22[[#This Row],[Median]]-AAMC_Raw_Data_for_FY22[[#This Row],[25th]])/25)*20) + AAMC_Raw_Data_for_FY22[[#This Row],[25th]]","v":410361.59999999998},419822,{"$f":"(((AAMC_Raw_Data_for_FY22[[#This Row],[75th]]-AAMC_Raw_Data_for_FY22[[#This Row],[Median]])/25)*5) + AAMC_Raw_Data_for_FY22[[#This Row],[Median]]","v":431532.79999999999},{"$f":"(((AAMC_Raw_Data_for_FY22[[#This Row],[75th]]-AAMC_Raw_Data_for_FY22[[#This Row],[Median]])/25)*10) + AAMC_Raw_Data_for_FY22[[#This Row],[Median]]","v":443243.6},{"$f":"(((AAMC_Raw_Data_for_FY22[[#This Row],[75th]]-AAMC_Raw_Data_for_FY22[[#This Row],[Median]])/25)*15) + AAMC_Raw_Data_for_FY22[[#This Row],[Median]]","v":454954.4},{"$f":"(((AAMC_Raw_Data_for_FY22[[#This Row],[75th]]-AAMC_Raw_Data_for_FY22[[#This Row],[Median]])/25)*20) + AAMC_Raw_Data_for_FY22[[#This Row],[Median]]","v":466665.2},478376,{"$f":"(((AAMC_Raw_Data_for_FY22[[#This Row],[75th]]-AAMC_Raw_Data_for_FY22[[#This Row],[Median]])/25)*30) + AAMC_Raw_Data_for_FY22[[#This Row],[Median]]","v":490086.8},{"$f":"(((AAMC_Raw_Data_for_FY22[[#This Row],[75th]]-AAMC_Raw_Data_for_FY22[[#This Row],[Median]])/25)*35) + AAMC_Raw_Data_for_FY22[[#This Row],[Median]]","v":501797.6},{"$f":"(((AAMC_Raw_Data_for_FY22[[#This Row],[75th]]-AAMC_Raw_Data_for_FY22[[#This Row],[Median]])/25)*40) + AAMC_Raw_Data_for_FY22[[#This Row],[Median]]","v":513508.4}]
[{"$f":"AAMC_Raw_Data_for_FY22[[#This Row],[Source]]&AAMC_Raw_Data_for_FY22[[#This Row],[Type]]&AAMC_Raw_Data_for_FY22[[#This Row],[School Subset]]&AAMC_Raw_Data_for_FY22[[#This Row],[Rank]]&AAMC_Raw_Data_for_FY22[[#This Row],[Degree]]&AAMC_Raw_Data_for_FY22[[#This Row],[Department / Specialty]]&\"L\"","v":"AAMCAcademicPublicAssociateMDAnesthesiology: Pain ManagementL"},"Anesthesiology: Pain Management",3,"AAMC","Academic","Public","Associate","MD","2021-2022",397342,{"$f":"(((AAMC_Raw_Data_for_FY22[[#This Row],[Median]]-AAMC_Raw_Data_for_FY22[[#This Row],[25th]])/25)*5) + AAMC_Raw_Data_for_FY22[[#This Row],[25th]]","v":405249.2},{"$f":"(((AAMC_Raw_Data_for_FY22[[#This Row],[Median]]-AAMC_Raw_Data_for_FY22[[#This Row],[25th]])/25)*10) + AAMC_Raw_Data_for_FY22[[#This Row],[25th]]","v":413156.4},{"$f":"(((AAMC_Raw_Data_for_FY22[[#This Row],[Median]]-AAMC_Raw_Data_for_FY22[[#This Row],[25th]])/25)*15) + AAMC_Raw_Data_for_FY22[[#This Row],[25th]]","v":421063.6},{"$f":"(((AAMC_Raw_Data_for_FY22[[#This Row],[Median]]-AAMC_Raw_Data_for_FY22[[#This Row],[25th]])/25)*20) + AAMC_Raw_Data_for_FY22[[#This Row],[25th]]","v":428970.8},436878,{"$f":"(((AAMC_Raw_Data_for_FY22[[#This Row],[75th]]-AAMC_Raw_Data_for_FY22[[#This Row],[Median]])/25)*5) + AAMC_Raw_Data_for_FY22[[#This Row],[Median]]","v":445207.2},{"$f":"(((AAMC_Raw_Data_for_FY22[[#This Row],[75th]]-AAMC_Raw_Data_for_FY22[[#This Row],[Median]])/25)*10) + AAMC_Raw_Data_for_FY22[[#This Row],[Median]]","v":453536.4},{"$f":"(((AAMC_Raw_Data_for_FY22[[#This Row],[75th]]-AAMC_Raw_Data_for_FY22[[#This Row],[Median]])/25)*15) + AAMC_Raw_Data_for_FY22[[#This Row],[Median]]","v":461865.6},{"$f":"(((AAMC_Raw_Data_for_FY22[[#This Row],[75th]]-AAMC_Raw_Data_for_FY22[[#This Row],[Median]])/25)*20) + AAMC_Raw_Data_for_FY22[[#This Row],[Median]]","v":470194.8},478524,{"$f":"(((AAMC_Raw_Data_for_FY22[[#This Row],[75th]]-AAMC_Raw_Data_for_FY22[[#This Row],[Median]])/25)*30) + AAMC_Raw_Data_for_FY22[[#This Row],[Median]]","v":486853.2},{"$f":"(((AAMC_Raw_Data_for_FY22[[#This Row],[75th]]-AAMC_Raw_Data_for_FY22[[#This Row],[Median]])/25)*35) + AAMC_Raw_Data_for_FY22[[#This Row],[Median]]","v":495182.4},{"$f":"(((AAMC_Raw_Data_for_FY22[[#This Row],[75th]]-AAMC_Raw_Data_for_FY22[[#This Row],[Median]])/25)*40) + AAMC_Raw_Data_for_FY22[[#This Row],[Median]]","v":503511.6}]
[{"$f":"AAMC_Raw_Data_for_FY22[[#This Row],[Source]]&AAMC_Raw_Data_for_FY22[[#This Row],[Type]]&AAMC_Raw_Data_for_FY22[[#This Row],[School Subset]]&AAMC_Raw_Data_for_FY22[[#This Row],[Rank]]&AAMC_Raw_Data_for_FY22[[#This Row],[Degree]]&AAMC_Raw_Data_for_FY22[[#This Row],[Department / Specialty]]&\"L\"","v":"AAMCAcademicPublicProfessorMDAnesthesiology: Pain ManagementL"},"Anesthesiology: Pain Management",2,"AAMC","Academic","Public","Professor","MD","2021-2022",406180,{"$f":"(((AAMC_Raw_Data_for_FY22[[#This Row],[Median]]-AAMC_Raw_Data_for_FY22[[#This Row],[25th]])/25)*5) + AAMC_Raw_Data_for_FY22[[#This Row],[25th]]","v":412515.4},{"$f":"(((AAMC_Raw_Data_for_FY22[[#This Row],[Median]]-AAMC_Raw_Data_for_FY22[[#This Row],[25th]])/25)*10) + AAMC_Raw_Data_for_FY22[[#This Row],[25th]]","v":418850.8},{"$f":"(((AAMC_Raw_Data_for_FY22[[#This Row],[Median]]-AAMC_Raw_Data_for_FY22[[#This Row],[25th]])/25)*15) + AAMC_Raw_Data_for_FY22[[#This Row],[25th]]","v":425186.2},{"$f":"(((AAMC_Raw_Data_for_FY22[[#This Row],[Median]]-AAMC_Raw_Data_for_FY22[[#This Row],[25th]])/25)*20) + AAMC_Raw_Data_for_FY22[[#This Row],[25th]]","v":431521.6},437857,{"$f":"(((AAMC_Raw_Data_for_FY22[[#This Row],[75th]]-AAMC_Raw_Data_for_FY22[[#This Row],[Median]])/25)*5) + AAMC_Raw_Data_for_FY22[[#This Row],[Median]]","v":452440.6},{"$f":"(((AAMC_Raw_Data_for_FY22[[#This Row],[75th]]-AAMC_Raw_Data_for_FY22[[#This Row],[Median]])/25)*10) + AAMC_Raw_Data_for_FY22[[#This Row],[Median]]","v":467024.2},{"$f":"(((AAMC_Raw_Data_for_FY22[[#This Row],[75th]]-AAMC_Raw_Data_for_FY22[[#This Row],[Median]])/25)*15) + AAMC_Raw_Data_for_FY22[[#This Row],[Median]]","v":481607.8},{"$f":"(((AAMC_Raw_Data_for_FY22[[#This Row],[75th]]-AAMC_Raw_Data_for_FY22[[#This Row],[Median]])/25)*20) + AAMC_Raw_Data_for_FY22[[#This Row],[Median]]","v":496191.4},510775,{"$f":"(((AAMC_Raw_Data_for_FY22[[#This Row],[75th]]-AAMC_Raw_Data_for_FY22[[#This Row],[Median]])/25)*30) + AAMC_Raw_Data_for_FY22[[#This Row],[Median]]","v":525358.6},{"$f":"(((AAMC_Raw_Data_for_FY22[[#This Row],[75th]]-AAMC_Raw_Data_for_FY22[[#This Row],[Median]])/25)*35) + AAMC_Raw_Data_for_FY22[[#This Row],[Median]]","v":539942.19999999995},{"$f":"(((AAMC_Raw_Data_for_FY22[[#This Row],[75th]]-AAMC_Raw_Data_for_FY22[[#This Row],[Median]])/25)*40) + AAMC_Raw_Data_for_FY22[[#This Row],[Median]]","v":554525.80000000005}]
[{"$f":"AAMC_Raw_Data_for_FY22[[#This Row],[Source]]&AAMC_Raw_Data_for_FY22[[#This Row],[Type]]&AAMC_Raw_Data_for_FY22[[#This Row],[School Subset]]&AAMC_Raw_Data_for_FY22[[#This Row],[Rank]]&AAMC_Raw_Data_for_FY22[[#This Row],[Degree]]&AAMC_Raw_Data_for_FY22[[#This Row],[Department / Specialty]]&\"L\"","v":"AAMCAcademicPublicChiefMDAnesthesiology: Pain ManagementL"},"Anesthesiology: Pain Management",6,"AAMC","Academic","Public","Chief","MD","2021-2022",401334,{"$f":"(((AAMC_Raw_Data_for_FY22[[#This Row],[Median]]-AAMC_Raw_Data_for_FY22[[#This Row],[25th]])/25)*5) + AAMC_Raw_Data_for_FY22[[#This Row],[25th]]","v":408919.4},{"$f":"(((AAMC_Raw_Data_for_FY22[[#This Row],[Median]]-AAMC_Raw_Data_for_FY22[[#This Row],[25th]])/25)*10) + AAMC_Raw_Data_for_FY22[[#This Row],[25th]]","v":416504.8},{"$f":"(((AAMC_Raw_Data_for_FY22[[#This Row],[Median]]-AAMC_Raw_Data_for_FY22[[#This Row],[25th]])/25)*15) + AAMC_Raw_Data_for_FY22[[#This Row],[25th]]","v":424090.2},{"$f":"(((AAMC_Raw_Data_for_FY22[[#This Row],[Median]]-AAMC_Raw_Data_for_FY22[[#This Row],[25th]])/25)*20) + AAMC_Raw_Data_for_FY22[[#This Row],[25th]]","v":431675.6},439261,{"$f":"(((AAMC_Raw_Data_for_FY22[[#This Row],[75th]]-AAMC_Raw_Data_for_FY22[[#This Row],[Median]])/25)*5) + AAMC_Raw_Data_for_FY22[[#This Row],[Median]]","v":449321.8},{"$f":"(((AAMC_Raw_Data_for_FY22[[#This Row],[75th]]-AAMC_Raw_Data_for_FY22[[#This Row],[Median]])/25)*10) + AAMC_Raw_Data_for_FY22[[#This Row],[Median]]","v":459382.6},{"$f":"(((AAMC_Raw_Data_for_FY22[[#This Row],[75th]]-AAMC_Raw_Data_for_FY22[[#This Row],[Median]])/25)*15) + AAMC_Raw_Data_for_FY22[[#This Row],[Median]]","v":469443.4},{"$f":"(((AAMC_Raw_Data_for_FY22[[#This Row],[75th]]-AAMC_Raw_Data_for_FY22[[#This Row],[Median]])/25)*20) + AAMC_Raw_Data_for_FY22[[#This Row],[Median]]","v":479504.2},489565,{"$f":"(((AAMC_Raw_Data_for_FY22[[#This Row],[75th]]-AAMC_Raw_Data_for_FY22[[#This Row],[Median]])/25)*30) + AAMC_Raw_Data_for_FY22[[#This Row],[Median]]","v":499625.8},{"$f":"(((AAMC_Raw_Data_for_FY22[[#This Row],[75th]]-AAMC_Raw_Data_for_FY22[[#This Row],[Median]])/25)*35) + AAMC_Raw_Data_for_FY22[[#This Row],[Median]]","v":509686.6},{"$f":"(((AAMC_Raw_Data_for_FY22[[#This Row],[75th]]-AAMC_Raw_Data_for_FY22[[#This Row],[Median]])/25)*40) + AAMC_Raw_Data_for_FY22[[#This Row],[Median]]","v":519747.4}]
[{"$f":"AAMC_Raw_Data_for_FY22[[#This Row],[Source]]&AAMC_Raw_Data_for_FY22[[#This Row],[Type]]&AAMC_Raw_Data_for_FY22[[#This Row],[School Subset]]&AAMC_Raw_Data_for_FY22[[#This Row],[Rank]]&AAMC_Raw_Data_for_FY22[[#This Row],[Degree]]&AAMC_Raw_Data_for_FY22[[#This Row],[Department / Specialty]]&\"L\"","v":"AAMCAcademicPublicChairMDAnesthesiology: Pain ManagementL"},"Anesthesiology: Pain Management",1,"AAMC","Academic","Public","Chair","MD","2021-2022",null,{"$f":"(((AAMC_Raw_Data_for_FY22[[#This Row],[Median]]-AAMC_Raw_Data_for_FY22[[#This Row],[25th]])/25)*5) + AAMC_Raw_Data_for_FY22[[#This Row],[25th]]","v":0},{"$f":"(((AAMC_Raw_Data_for_FY22[[#This Row],[Median]]-AAMC_Raw_Data_for_FY22[[#This Row],[25th]])/25)*10) + AAMC_Raw_Data_for_FY22[[#This Row],[25th]]","v":0},{"$f":"(((AAMC_Raw_Data_for_FY22[[#This Row],[Median]]-AAMC_Raw_Data_for_FY22[[#This Row],[25th]])/25)*15) + AAMC_Raw_Data_for_FY22[[#This Row],[25th]]","v":0},{"$f":"(((AAMC_Raw_Data_for_FY22[[#This Row],[Median]]-AAMC_Raw_Data_for_FY22[[#This Row],[25th]])/25)*20) + AAMC_Raw_Data_for_FY22[[#This Row],[25th]]","v":0},null,{"$f":"(((AAMC_Raw_Data_for_FY22[[#This Row],[75th]]-AAMC_Raw_Data_for_FY22[[#This Row],[Median]])/25)*5) + AAMC_Raw_Data_for_FY22[[#This Row],[Median]]","v":0},{"$f":"(((AAMC_Raw_Data_for_FY22[[#This Row],[75th]]-AAMC_Raw_Data_for_FY22[[#This Row],[Median]])/25)*10) + AAMC_Raw_Data_for_FY22[[#This Row],[Median]]","v":0},{"$f":"(((AAMC_Raw_Data_for_FY22[[#This Row],[75th]]-AAMC_Raw_Data_for_FY22[[#This Row],[Median]])/25)*15) + AAMC_Raw_Data_for_FY22[[#This Row],[Median]]","v":0},{"$f":"(((AAMC_Raw_Data_for_FY22[[#This Row],[75th]]-AAMC_Raw_Data_for_FY22[[#This Row],[Median]])/25)*20) + AAMC_Raw_Data_for_FY22[[#This Row],[Median]]","v":0},null,{"$f":"(((AAMC_Raw_Data_for_FY22[[#This Row],[75th]]-AAMC_Raw_Data_for_FY22[[#This Row],[Median]])/25)*30) + AAMC_Raw_Data_for_FY22[[#This Row],[Median]]","v":0},{"$f":"(((AAMC_Raw_Data_for_FY22[[#This Row],[75th]]-AAMC_Raw_Data_for_FY22[[#This Row],[Median]])/25)*35) + AAMC_Raw_Data_for_FY22[[#This Row],[Median]]","v":0},{"$f":"(((AAMC_Raw_Data_for_FY22[[#This Row],[75th]]-AAMC_Raw_Data_for_FY22[[#This Row],[Median]])/25)*40) + AAMC_Raw_Data_for_FY22[[#This Row],[Median]]","v":0}]
[{"$f":"AAMC_Raw_Data_for_FY22[[#This Row],[Source]]&AAMC_Raw_Data_for_FY22[[#This Row],[Type]]&AAMC_Raw_Data_for_FY22[[#This Row],[School Subset]]&AAMC_Raw_Data_for_FY22[[#This Row],[Rank]]&AAMC_Raw_Data_for_FY22[[#This Row],[Degree]]&AAMC_Raw_Data_for_FY22[[#This Row],[Department / Specialty]]&\"L\"","v":"AAMCAcademicPublicInstructorMDAnesthesiology: PediatricL"},"Anesthesiology: Pediatric",5,"AAMC","Academic","Public","Instructor","MD","2021-2022",null,{"$f":"(((AAMC_Raw_Data_for_FY22[[#This Row],[Median]]-AAMC_Raw_Data_for_FY22[[#This Row],[25th]])/25)*5) + AAMC_Raw_Data_for_FY22[[#This Row],[25th]]","v":0},{"$f":"(((AAMC_Raw_Data_for_FY22[[#This Row],[Median]]-AAMC_Raw_Data_for_FY22[[#This Row],[25th]])/25)*10) + AAMC_Raw_Data_for_FY22[[#This Row],[25th]]","v":0},{"$f":"(((AAMC_Raw_Data_for_FY22[[#This Row],[Median]]-AAMC_Raw_Data_for_FY22[[#This Row],[25th]])/25)*15) + AAMC_Raw_Data_for_FY22[[#This Row],[25th]]","v":0},{"$f":"(((AAMC_Raw_Data_for_FY22[[#This Row],[Median]]-AAMC_Raw_Data_for_FY22[[#This Row],[25th]])/25)*20) + AAMC_Raw_Data_for_FY22[[#This Row],[25th]]","v":0},null,{"$f":"(((AAMC_Raw_Data_for_FY22[[#This Row],[75th]]-AAMC_Raw_Data_for_FY22[[#This Row],[Median]])/25)*5) + AAMC_Raw_Data_for_FY22[[#This Row],[Median]]","v":0},{"$f":"(((AAMC_Raw_Data_for_FY22[[#This Row],[75th]]-AAMC_Raw_Data_for_FY22[[#This Row],[Median]])/25)*10) + AAMC_Raw_Data_for_FY22[[#This Row],[Median]]","v":0},{"$f":"(((AAMC_Raw_Data_for_FY22[[#This Row],[75th]]-AAMC_Raw_Data_for_FY22[[#This Row],[Median]])/25)*15) + AAMC_Raw_Data_for_FY22[[#This Row],[Median]]","v":0},{"$f":"(((AAMC_Raw_Data_for_FY22[[#This Row],[75th]]-AAMC_Raw_Data_for_FY22[[#This Row],[Median]])/25)*20) + AAMC_Raw_Data_for_FY22[[#This Row],[Median]]","v":0},null,{"$f":"(((AAMC_Raw_Data_for_FY22[[#This Row],[75th]]-AAMC_Raw_Data_for_FY22[[#This Row],[Median]])/25)*30) + AAMC_Raw_Data_for_FY22[[#This Row],[Median]]","v":0},{"$f":"(((AAMC_Raw_Data_for_FY22[[#This Row],[75th]]-AAMC_Raw_Data_for_FY22[[#This Row],[Median]])/25)*35) + AAMC_Raw_Data_for_FY22[[#This Row],[Median]]","v":0},{"$f":"(((AAMC_Raw_Data_for_FY22[[#This Row],[75th]]-AAMC_Raw_Data_for_FY22[[#This Row],[Median]])/25)*40) + AAMC_Raw_Data_for_FY22[[#This Row],[Median]]","v":0}]
[{"$f":"AAMC_Raw_Data_for_FY22[[#This Row],[Source]]&AAMC_Raw_Data_for_FY22[[#This Row],[Type]]&AAMC_Raw_Data_for_FY22[[#This Row],[School Subset]]&AAMC_Raw_Data_for_FY22[[#This Row],[Rank]]&AAMC_Raw_Data_for_FY22[[#This Row],[Degree]]&AAMC_Raw_Data_for_FY22[[#This Row],[Department / Specialty]]&\"L\"","v":"AAMCAcademicPublicAssistantMDAnesthesiology: PediatricL"},"Anesthesiology: Pediatric",4,"AAMC","Academic","Public","Assistant","MD","2021-2022",399250,{"$f":"(((AAMC_Raw_Data_for_FY22[[#This Row],[Median]]-AAMC_Raw_Data_for_FY22[[#This Row],[25th]])/25)*5) + AAMC_Raw_Data_for_FY22[[#This Row],[25th]]","v":406053.2},{"$f":"(((AAMC_Raw_Data_for_FY22[[#This Row],[Median]]-AAMC_Raw_Data_for_FY22[[#This Row],[25th]])/25)*10) + AAMC_Raw_Data_for_FY22[[#This Row],[25th]]","v":412856.4},{"$f":"(((AAMC_Raw_Data_for_FY22[[#This Row],[Median]]-AAMC_Raw_Data_for_FY22[[#This Row],[25th]])/25)*15) + AAMC_Raw_Data_for_FY22[[#This Row],[25th]]","v":419659.6},{"$f":"(((AAMC_Raw_Data_for_FY22[[#This Row],[Median]]-AAMC_Raw_Data_for_FY22[[#This Row],[25th]])/25)*20) + AAMC_Raw_Data_for_FY22[[#This Row],[25th]]","v":426462.8},433266,{"$f":"(((AAMC_Raw_Data_for_FY22[[#This Row],[75th]]-AAMC_Raw_Data_for_FY22[[#This Row],[Median]])/25)*5) + AAMC_Raw_Data_for_FY22[[#This Row],[Median]]","v":442238.4},{"$f":"(((AAMC_Raw_Data_for_FY22[[#This Row],[75th]]-AAMC_Raw_Data_for_FY22[[#This Row],[Median]])/25)*10) + AAMC_Raw_Data_for_FY22[[#This Row],[Median]]","v":451210.8},{"$f":"(((AAMC_Raw_Data_for_FY22[[#This Row],[75th]]-AAMC_Raw_Data_for_FY22[[#This Row],[Median]])/25)*15) + AAMC_Raw_Data_for_FY22[[#This Row],[Median]]","v":460183.2},{"$f":"(((AAMC_Raw_Data_for_FY22[[#This Row],[75th]]-AAMC_Raw_Data_for_FY22[[#This Row],[Median]])/25)*20) + AAMC_Raw_Data_for_FY22[[#This Row],[Median]]","v":469155.6},478128,{"$f":"(((AAMC_Raw_Data_for_FY22[[#This Row],[75th]]-AAMC_Raw_Data_for_FY22[[#This Row],[Median]])/25)*30) + AAMC_Raw_Data_for_FY22[[#This Row],[Median]]","v":487100.4},{"$f":"(((AAMC_Raw_Data_for_FY22[[#This Row],[75th]]-AAMC_Raw_Data_for_FY22[[#This Row],[Median]])/25)*35) + AAMC_Raw_Data_for_FY22[[#This Row],[Median]]","v":496072.8},{"$f":"(((AAMC_Raw_Data_for_FY22[[#This Row],[75th]]-AAMC_Raw_Data_for_FY22[[#This Row],[Median]])/25)*40) + AAMC_Raw_Data_for_FY22[[#This Row],[Median]]","v":505045.2}]
[{"$f":"AAMC_Raw_Data_for_FY22[[#This Row],[Source]]&AAMC_Raw_Data_for_FY22[[#This Row],[Type]]&AAMC_Raw_Data_for_FY22[[#This Row],[School Subset]]&AAMC_Raw_Data_for_FY22[[#This Row],[Rank]]&AAMC_Raw_Data_for_FY22[[#This Row],[Degree]]&AAMC_Raw_Data_for_FY22[[#This Row],[Department / Specialty]]&\"L\"","v":"AAMCAcademicPublicAssociateMDAnesthesiology: PediatricL"},"Anesthesiology: Pediatric",3,"AAMC","Academic","Public","Associate","MD","2021-2022",442377,{"$f":"(((AAMC_Raw_Data_for_FY22[[#This Row],[Median]]-AAMC_Raw_Data_for_FY22[[#This Row],[25th]])/25)*5) + AAMC_Raw_Data_for_FY22[[#This Row],[25th]]","v":448825},{"$f":"(((AAMC_Raw_Data_for_FY22[[#This Row],[Median]]-AAMC_Raw_Data_for_FY22[[#This Row],[25th]])/25)*10) + AAMC_Raw_Data_for_FY22[[#This Row],[25th]]","v":455273},{"$f":"(((AAMC_Raw_Data_for_FY22[[#This Row],[Median]]-AAMC_Raw_Data_for_FY22[[#This Row],[25th]])/25)*15) + AAMC_Raw_Data_for_FY22[[#This Row],[25th]]","v":461721},{"$f":"(((AAMC_Raw_Data_for_FY22[[#This Row],[Median]]-AAMC_Raw_Data_for_FY22[[#This Row],[25th]])/25)*20) + AAMC_Raw_Data_for_FY22[[#This Row],[25th]]","v":468169},474617,{"$f":"(((AAMC_Raw_Data_for_FY22[[#This Row],[75th]]-AAMC_Raw_Data_for_FY22[[#This Row],[Median]])/25)*5) + AAMC_Raw_Data_for_FY22[[#This Row],[Median]]","v":479856.2},{"$f":"(((AAMC_Raw_Data_for_FY22[[#This Row],[75th]]-AAMC_Raw_Data_for_FY22[[#This Row],[Median]])/25)*10) + AAMC_Raw_Data_for_FY22[[#This Row],[Median]]","v":485095.4},{"$f":"(((AAMC_Raw_Data_for_FY22[[#This Row],[75th]]-AAMC_Raw_Data_for_FY22[[#This Row],[Median]])/25)*15) + AAMC_Raw_Data_for_FY22[[#This Row],[Median]]","v":490334.6},{"$f":"(((AAMC_Raw_Data_for_FY22[[#This Row],[75th]]-AAMC_Raw_Data_for_FY22[[#This Row],[Median]])/25)*20) + AAMC_Raw_Data_for_FY22[[#This Row],[Median]]","v":495573.8},500813,{"$f":"(((AAMC_Raw_Data_for_FY22[[#This Row],[75th]]-AAMC_Raw_Data_for_FY22[[#This Row],[Median]])/25)*30) + AAMC_Raw_Data_for_FY22[[#This Row],[Median]]","v":506052.2},{"$f":"(((AAMC_Raw_Data_for_FY22[[#This Row],[75th]]-AAMC_Raw_Data_for_FY22[[#This Row],[Median]])/25)*35) + AAMC_Raw_Data_for_FY22[[#This Row],[Median]]","v":511291.4},{"$f":"(((AAMC_Raw_Data_for_FY22[[#This Row],[75th]]-AAMC_Raw_Data_for_FY22[[#This Row],[Median]])/25)*40) + AAMC_Raw_Data_for_FY22[[#This Row],[Median]]","v":516530.6}]
[{"$f":"AAMC_Raw_Data_for_FY22[[#This Row],[Source]]&AAMC_Raw_Data_for_FY22[[#This Row],[Type]]&AAMC_Raw_Data_for_FY22[[#This Row],[School Subset]]&AAMC_Raw_Data_for_FY22[[#This Row],[Rank]]&AAMC_Raw_Data_for_FY22[[#This Row],[Degree]]&AAMC_Raw_Data_for_FY22[[#This Row],[Department / Specialty]]&\"L\"","v":"AAMCAcademicPublicProfessorMDAnesthesiology: PediatricL"},"Anesthesiology: Pediatric",2,"AAMC","Academic","Public","Professor","MD","2021-2022",442662,{"$f":"(((AAMC_Raw_Data_for_FY22[[#This Row],[Median]]-AAMC_Raw_Data_for_FY22[[#This Row],[25th]])/25)*5) + AAMC_Raw_Data_for_FY22[[#This Row],[25th]]","v":450809.59999999998},{"$f":"(((AAMC_Raw_Data_for_FY22[[#This Row],[Median]]-AAMC_Raw_Data_for_FY22[[#This Row],[25th]])/25)*10) + AAMC_Raw_Data_for_FY22[[#This Row],[25th]]","v":458957.2},{"$f":"(((AAMC_Raw_Data_for_FY22[[#This Row],[Median]]-AAMC_Raw_Data_for_FY22[[#This Row],[25th]])/25)*15) + AAMC_Raw_Data_for_FY22[[#This Row],[25th]]","v":467104.8},{"$f":"(((AAMC_Raw_Data_for_FY22[[#This Row],[Median]]-AAMC_Raw_Data_for_FY22[[#This Row],[25th]])/25)*20) + AAMC_Raw_Data_for_FY22[[#This Row],[25th]]","v":475252.4},483400,{"$f":"(((AAMC_Raw_Data_for_FY22[[#This Row],[75th]]-AAMC_Raw_Data_for_FY22[[#This Row],[Median]])/25)*5) + AAMC_Raw_Data_for_FY22[[#This Row],[Median]]","v":495530.8},{"$f":"(((AAMC_Raw_Data_for_FY22[[#This Row],[75th]]-AAMC_Raw_Data_for_FY22[[#This Row],[Median]])/25)*10) + AAMC_Raw_Data_for_FY22[[#This Row],[Median]]","v":507661.6},{"$f":"(((AAMC_Raw_Data_for_FY22[[#This Row],[75th]]-AAMC_Raw_Data_for_FY22[[#This Row],[Median]])/25)*15) + AAMC_Raw_Data_for_FY22[[#This Row],[Median]]","v":519792.4},{"$f":"(((AAMC_Raw_Data_for_FY22[[#This Row],[75th]]-AAMC_Raw_Data_for_FY22[[#This Row],[Median]])/25)*20) + AAMC_Raw_Data_for_FY22[[#This Row],[Median]]","v":531923.19999999995},544054,{"$f":"(((AAMC_Raw_Data_for_FY22[[#This Row],[75th]]-AAMC_Raw_Data_for_FY22[[#This Row],[Median]])/25)*30) + AAMC_Raw_Data_for_FY22[[#This Row],[Median]]","v":556184.80000000005},{"$f":"(((AAMC_Raw_Data_for_FY22[[#This Row],[75th]]-AAMC_Raw_Data_for_FY22[[#This Row],[Median]])/25)*35) + AAMC_Raw_Data_for_FY22[[#This Row],[Median]]","v":568315.6},{"$f":"(((AAMC_Raw_Data_for_FY22[[#This Row],[75th]]-AAMC_Raw_Data_for_FY22[[#This Row],[Median]])/25)*40) + AAMC_Raw_Data_for_FY22[[#This Row],[Median]]","v":580446.4}]
[{"$f":"AAMC_Raw_Data_for_FY22[[#This Row],[Source]]&AAMC_Raw_Data_for_FY22[[#This Row],[Type]]&AAMC_Raw_Data_for_FY22[[#This Row],[School Subset]]&AAMC_Raw_Data_for_FY22[[#This Row],[Rank]]&AAMC_Raw_Data_for_FY22[[#This Row],[Degree]]&AAMC_Raw_Data_for_FY22[[#This Row],[Department / Specialty]]&\"L\"","v":"AAMCAcademicPublicChiefMDAnesthesiology: PediatricL"},"Anesthesiology: Pediatric",6,"AAMC","Academic","Public","Chief","MD","2021-2022",431971,{"$f":"(((AAMC_Raw_Data_for_FY22[[#This Row],[Median]]-AAMC_Raw_Data_for_FY22[[#This Row],[25th]])/25)*5) + AAMC_Raw_Data_for_FY22[[#This Row],[25th]]","v":436932.2},{"$f":"(((AAMC_Raw_Data_for_FY22[[#This Row],[Median]]-AAMC_Raw_Data_for_FY22[[#This Row],[25th]])/25)*10) + AAMC_Raw_Data_for_FY22[[#This Row],[25th]]","v":441893.4},{"$f":"(((AAMC_Raw_Data_for_FY22[[#This Row],[Median]]-AAMC_Raw_Data_for_FY22[[#This Row],[25th]])/25)*15) + AAMC_Raw_Data_for_FY22[[#This Row],[25th]]","v":446854.6},{"$f":"(((AAMC_Raw_Data_for_FY22[[#This Row],[Median]]-AAMC_Raw_Data_for_FY22[[#This Row],[25th]])/25)*20) + AAMC_Raw_Data_for_FY22[[#This Row],[25th]]","v":451815.8},456777,{"$f":"(((AAMC_Raw_Data_for_FY22[[#This Row],[75th]]-AAMC_Raw_Data_for_FY22[[#This Row],[Median]])/25)*5) + AAMC_Raw_Data_for_FY22[[#This Row],[Median]]","v":467824.2},{"$f":"(((AAMC_Raw_Data_for_FY22[[#This Row],[75th]]-AAMC_Raw_Data_for_FY22[[#This Row],[Median]])/25)*10) + AAMC_Raw_Data_for_FY22[[#This Row],[Median]]","v":478871.4},{"$f":"(((AAMC_Raw_Data_for_FY22[[#This Row],[75th]]-AAMC_Raw_Data_for_FY22[[#This Row],[Median]])/25)*15) + AAMC_Raw_Data_for_FY22[[#This Row],[Median]]","v":489918.6},{"$f":"(((AAMC_Raw_Data_for_FY22[[#This Row],[75th]]-AAMC_Raw_Data_for_FY22[[#This Row],[Median]])/25)*20) + AAMC_Raw_Data_for_FY22[[#This Row],[Median]]","v":500965.8},512013,{"$f":"(((AAMC_Raw_Data_for_FY22[[#This Row],[75th]]-AAMC_Raw_Data_for_FY22[[#This Row],[Median]])/25)*30) + AAMC_Raw_Data_for_FY22[[#This Row],[Median]]","v":523060.2},{"$f":"(((AAMC_Raw_Data_for_FY22[[#This Row],[75th]]-AAMC_Raw_Data_for_FY22[[#This Row],[Median]])/25)*35) + AAMC_Raw_Data_for_FY22[[#This Row],[Median]]","v":534107.4},{"$f":"(((AAMC_Raw_Data_for_FY22[[#This Row],[75th]]-AAMC_Raw_Data_for_FY22[[#This Row],[Median]])/25)*40) + AAMC_Raw_Data_for_FY22[[#This Row],[Median]]","v":545154.6}]
[{"$f":"AAMC_Raw_Data_for_FY22[[#This Row],[Source]]&AAMC_Raw_Data_for_FY22[[#This Row],[Type]]&AAMC_Raw_Data_for_FY22[[#This Row],[School Subset]]&AAMC_Raw_Data_for_FY22[[#This Row],[Rank]]&AAMC_Raw_Data_for_FY22[[#This Row],[Degree]]&AAMC_Raw_Data_for_FY22[[#This Row],[Department / Specialty]]&\"L\"","v":"AAMCAcademicPublicChairMDAnesthesiology: PediatricL"},"Anesthesiology: Pediatric",1,"AAMC","Academic","Public","Chair","MD","2021-2022",null,{"$f":"(((AAMC_Raw_Data_for_FY22[[#This Row],[Median]]-AAMC_Raw_Data_for_FY22[[#This Row],[25th]])/25)*5) + AAMC_Raw_Data_for_FY22[[#This Row],[25th]]","v":0},{"$f":"(((AAMC_Raw_Data_for_FY22[[#This Row],[Median]]-AAMC_Raw_Data_for_FY22[[#This Row],[25th]])/25)*10) + AAMC_Raw_Data_for_FY22[[#This Row],[25th]]","v":0},{"$f":"(((AAMC_Raw_Data_for_FY22[[#This Row],[Median]]-AAMC_Raw_Data_for_FY22[[#This Row],[25th]])/25)*15) + AAMC_Raw_Data_for_FY22[[#This Row],[25th]]","v":0},{"$f":"(((AAMC_Raw_Data_for_FY22[[#This Row],[Median]]-AAMC_Raw_Data_for_FY22[[#This Row],[25th]])/25)*20) + AAMC_Raw_Data_for_FY22[[#This Row],[25th]]","v":0},null,{"$f":"(((AAMC_Raw_Data_for_FY22[[#This Row],[75th]]-AAMC_Raw_Data_for_FY22[[#This Row],[Median]])/25)*5) + AAMC_Raw_Data_for_FY22[[#This Row],[Median]]","v":0},{"$f":"(((AAMC_Raw_Data_for_FY22[[#This Row],[75th]]-AAMC_Raw_Data_for_FY22[[#This Row],[Median]])/25)*10) + AAMC_Raw_Data_for_FY22[[#This Row],[Median]]","v":0},{"$f":"(((AAMC_Raw_Data_for_FY22[[#This Row],[75th]]-AAMC_Raw_Data_for_FY22[[#This Row],[Median]])/25)*15) + AAMC_Raw_Data_for_FY22[[#This Row],[Median]]","v":0},{"$f":"(((AAMC_Raw_Data_for_FY22[[#This Row],[75th]]-AAMC_Raw_Data_for_FY22[[#This Row],[Median]])/25)*20) + AAMC_Raw_Data_for_FY22[[#This Row],[Median]]","v":0},null,{"$f":"(((AAMC_Raw_Data_for_FY22[[#This Row],[75th]]-AAMC_Raw_Data_for_FY22[[#This Row],[Median]])/25)*30) + AAMC_Raw_Data_for_FY22[[#This Row],[Median]]","v":0},{"$f":"(((AAMC_Raw_Data_for_FY22[[#This Row],[75th]]-AAMC_Raw_Data_for_FY22[[#This Row],[Median]])/25)*35) + AAMC_Raw_Data_for_FY22[[#This Row],[Median]]","v":0},{"$f":"(((AAMC_Raw_Data_for_FY22[[#This Row],[75th]]-AAMC_Raw_Data_for_FY22[[#This Row],[Median]])/25)*40) + AAMC_Raw_Data_for_FY22[[#This Row],[Median]]","v":0}]
[{"$f":"AAMC_Raw_Data_for_FY22[[#This Row],[Source]]&AAMC_Raw_Data_for_FY22[[#This Row],[Type]]&AAMC_Raw_Data_for_FY22[[#This Row],[School Subset]]&AAMC_Raw_Data_for_FY22[[#This Row],[Rank]]&AAMC_Raw_Data_for_FY22[[#This Row],[Degree]]&AAMC_Raw_Data_for_FY22[[#This Row],[Department / Specialty]]&\"L\"","v":"AAMCAcademicPublicInstructorMDDermatology TotalL"},"Dermatology Total",5,"AAMC","Academic","Public","Instructor","MD","2021-2022",74707,{"$f":"(((AAMC_Raw_Data_for_FY22[[#This Row],[Median]]-AAMC_Raw_Data_for_FY22[[#This Row],[25th]])/25)*5) + AAMC_Raw_Data_for_FY22[[#This Row],[25th]]","v":86212.2},{"$f":"(((AAMC_Raw_Data_for_FY22[[#This Row],[Median]]-AAMC_Raw_Data_for_FY22[[#This Row],[25th]])/25)*10) + AAMC_Raw_Data_for_FY22[[#This Row],[25th]]","v":97717.4},{"$f":"(((AAMC_Raw_Data_for_FY22[[#This Row],[Median]]-AAMC_Raw_Data_for_FY22[[#This Row],[25th]])/25)*15) + AAMC_Raw_Data_for_FY22[[#This Row],[25th]]","v":109222.6},{"$f":"(((AAMC_Raw_Data_for_FY22[[#This Row],[Median]]-AAMC_Raw_Data_for_FY22[[#This Row],[25th]])/25)*20) + AAMC_Raw_Data_for_FY22[[#This Row],[25th]]","v":120727.8},132233,{"$f":"(((AAMC_Raw_Data_for_FY22[[#This Row],[75th]]-AAMC_Raw_Data_for_FY22[[#This Row],[Median]])/25)*5) + AAMC_Raw_Data_for_FY22[[#This Row],[Median]]","v":139264},{"$f":"(((AAMC_Raw_Data_for_FY22[[#This Row],[75th]]-AAMC_Raw_Data_for_FY22[[#This Row],[Median]])/25)*10) + AAMC_Raw_Data_for_FY22[[#This Row],[Median]]","v":146295},{"$f":"(((AAMC_Raw_Data_for_FY22[[#This Row],[75th]]-AAMC_Raw_Data_for_FY22[[#This Row],[Median]])/25)*15) + AAMC_Raw_Data_for_FY22[[#This Row],[Median]]","v":153326},{"$f":"(((AAMC_Raw_Data_for_FY22[[#This Row],[75th]]-AAMC_Raw_Data_for_FY22[[#This Row],[Median]])/25)*20) + AAMC_Raw_Data_for_FY22[[#This Row],[Median]]","v":160357},167388,{"$f":"(((AAMC_Raw_Data_for_FY22[[#This Row],[75th]]-AAMC_Raw_Data_for_FY22[[#This Row],[Median]])/25)*30) + AAMC_Raw_Data_for_FY22[[#This Row],[Median]]","v":174419},{"$f":"(((AAMC_Raw_Data_for_FY22[[#This Row],[75th]]-AAMC_Raw_Data_for_FY22[[#This Row],[Median]])/25)*35) + AAMC_Raw_Data_for_FY22[[#This Row],[Median]]","v":181450},{"$f":"(((AAMC_Raw_Data_for_FY22[[#This Row],[75th]]-AAMC_Raw_Data_for_FY22[[#This Row],[Median]])/25)*40) + AAMC_Raw_Data_for_FY22[[#This Row],[Median]]","v":188481}]
[{"$f":"AAMC_Raw_Data_for_FY22[[#This Row],[Source]]&AAMC_Raw_Data_for_FY22[[#This Row],[Type]]&AAMC_Raw_Data_for_FY22[[#This Row],[School Subset]]&AAMC_Raw_Data_for_FY22[[#This Row],[Rank]]&AAMC_Raw_Data_for_FY22[[#This Row],[Degree]]&AAMC_Raw_Data_for_FY22[[#This Row],[Department / Specialty]]&\"L\"","v":"AAMCAcademicPublicAssistantMDDermatology TotalL"},"Dermatology Total",4,"AAMC","Academic","Public","Assistant","MD","2021-2022",300139,{"$f":"(((AAMC_Raw_Data_for_FY22[[#This Row],[Median]]-AAMC_Raw_Data_for_FY22[[#This Row],[25th]])/25)*5) + AAMC_Raw_Data_for_FY22[[#This Row],[25th]]","v":309423.40000000002},{"$f":"(((AAMC_Raw_Data_for_FY22[[#This Row],[Median]]-AAMC_Raw_Data_for_FY22[[#This Row],[25th]])/25)*10) + AAMC_Raw_Data_for_FY22[[#This Row],[25th]]","v":318707.8},{"$f":"(((AAMC_Raw_Data_for_FY22[[#This Row],[Median]]-AAMC_Raw_Data_for_FY22[[#This Row],[25th]])/25)*15) + AAMC_Raw_Data_for_FY22[[#This Row],[25th]]","v":327992.2},{"$f":"(((AAMC_Raw_Data_for_FY22[[#This Row],[Median]]-AAMC_Raw_Data_for_FY22[[#This Row],[25th]])/25)*20) + AAMC_Raw_Data_for_FY22[[#This Row],[25th]]","v":337276.6},346561,{"$f":"(((AAMC_Raw_Data_for_FY22[[#This Row],[75th]]-AAMC_Raw_Data_for_FY22[[#This Row],[Median]])/25)*5) + AAMC_Raw_Data_for_FY22[[#This Row],[Median]]","v":363128.6},{"$f":"(((AAMC_Raw_Data_for_FY22[[#This Row],[75th]]-AAMC_Raw_Data_for_FY22[[#This Row],[Median]])/25)*10) + AAMC_Raw_Data_for_FY22[[#This Row],[Median]]","v":379696.2},{"$f":"(((AAMC_Raw_Data_for_FY22[[#This Row],[75th]]-AAMC_Raw_Data_for_FY22[[#This Row],[Median]])/25)*15) + AAMC_Raw_Data_for_FY22[[#This Row],[Median]]","v":396263.8},{"$f":"(((AAMC_Raw_Data_for_FY22[[#This Row],[75th]]-AAMC_Raw_Data_for_FY22[[#This Row],[Median]])/25)*20) + AAMC_Raw_Data_for_FY22[[#This Row],[Median]]","v":412831.4},429399,{"$f":"(((AAMC_Raw_Data_for_FY22[[#This Row],[75th]]-AAMC_Raw_Data_for_FY22[[#This Row],[Median]])/25)*30) + AAMC_Raw_Data_for_FY22[[#This Row],[Median]]","v":445966.6},{"$f":"(((AAMC_Raw_Data_for_FY22[[#This Row],[75th]]-AAMC_Raw_Data_for_FY22[[#This Row],[Median]])/25)*35) + AAMC_Raw_Data_for_FY22[[#This Row],[Median]]","v":462534.2},{"$f":"(((AAMC_Raw_Data_for_FY22[[#This Row],[75th]]-AAMC_Raw_Data_for_FY22[[#This Row],[Median]])/25)*40) + AAMC_Raw_Data_for_FY22[[#This Row],[Median]]","v":479101.8}]
[{"$f":"AAMC_Raw_Data_for_FY22[[#This Row],[Source]]&AAMC_Raw_Data_for_FY22[[#This Row],[Type]]&AAMC_Raw_Data_for_FY22[[#This Row],[School Subset]]&AAMC_Raw_Data_for_FY22[[#This Row],[Rank]]&AAMC_Raw_Data_for_FY22[[#This Row],[Degree]]&AAMC_Raw_Data_for_FY22[[#This Row],[Department / Specialty]]&\"L\"","v":"AAMCAcademicPublicAssociateMDDermatology TotalL"},"Dermatology Total",3,"AAMC","Academic","Public","Associate","MD","2021-2022",342122,{"$f":"(((AAMC_Raw_Data_for_FY22[[#This Row],[Median]]-AAMC_Raw_Data_for_FY22[[#This Row],[25th]])/25)*5) + AAMC_Raw_Data_for_FY22[[#This Row],[25th]]","v":354672.6},{"$f":"(((AAMC_Raw_Data_for_FY22[[#This Row],[Median]]-AAMC_Raw_Data_for_FY22[[#This Row],[25th]])/25)*10) + AAMC_Raw_Data_for_FY22[[#This Row],[25th]]","v":367223.2},{"$f":"(((AAMC_Raw_Data_for_FY22[[#This Row],[Median]]-AAMC_Raw_Data_for_FY22[[#This Row],[25th]])/25)*15) + AAMC_Raw_Data_for_FY22[[#This Row],[25th]]","v":379773.8},{"$f":"(((AAMC_Raw_Data_for_FY22[[#This Row],[Median]]-AAMC_Raw_Data_for_FY22[[#This Row],[25th]])/25)*20) + AAMC_Raw_Data_for_FY22[[#This Row],[25th]]","v":392324.4},404875,{"$f":"(((AAMC_Raw_Data_for_FY22[[#This Row],[75th]]-AAMC_Raw_Data_for_FY22[[#This Row],[Median]])/25)*5) + AAMC_Raw_Data_for_FY22[[#This Row],[Median]]","v":434227.8},{"$f":"(((AAMC_Raw_Data_for_FY22[[#This Row],[75th]]-AAMC_Raw_Data_for_FY22[[#This Row],[Median]])/25)*10) + AAMC_Raw_Data_for_FY22[[#This Row],[Median]]","v":463580.6},{"$f":"(((AAMC_Raw_Data_for_FY22[[#This Row],[75th]]-AAMC_Raw_Data_for_FY22[[#This Row],[Median]])/25)*15) + AAMC_Raw_Data_for_FY22[[#This Row],[Median]]","v":492933.4},{"$f":"(((AAMC_Raw_Data_for_FY22[[#This Row],[75th]]-AAMC_Raw_Data_for_FY22[[#This Row],[Median]])/25)*20) + AAMC_Raw_Data_for_FY22[[#This Row],[Median]]","v":522286.2},551639,{"$f":"(((AAMC_Raw_Data_for_FY22[[#This Row],[75th]]-AAMC_Raw_Data_for_FY22[[#This Row],[Median]])/25)*30) + AAMC_Raw_Data_for_FY22[[#This Row],[Median]]","v":580991.80000000005},{"$f":"(((AAMC_Raw_Data_for_FY22[[#This Row],[75th]]-AAMC_Raw_Data_for_FY22[[#This Row],[Median]])/25)*35) + AAMC_Raw_Data_for_FY22[[#This Row],[Median]]","v":610344.6},{"$f":"(((AAMC_Raw_Data_for_FY22[[#This Row],[75th]]-AAMC_Raw_Data_for_FY22[[#This Row],[Median]])/25)*40) + AAMC_Raw_Data_for_FY22[[#This Row],[Median]]","v":639697.4}]
[{"$f":"AAMC_Raw_Data_for_FY22[[#This Row],[Source]]&AAMC_Raw_Data_for_FY22[[#This Row],[Type]]&AAMC_Raw_Data_for_FY22[[#This Row],[School Subset]]&AAMC_Raw_Data_for_FY22[[#This Row],[Rank]]&AAMC_Raw_Data_for_FY22[[#This Row],[Degree]]&AAMC_Raw_Data_for_FY22[[#This Row],[Department / Specialty]]&\"L\"","v":"AAMCAcademicPublicProfessorMDDermatology TotalL"},"Dermatology Total",2,"AAMC","Academic","Public","Professor","MD","2021-2022",363567,{"$f":"(((AAMC_Raw_Data_for_FY22[[#This Row],[Median]]-AAMC_Raw_Data_for_FY22[[#This Row],[25th]])/25)*5) + AAMC_Raw_Data_for_FY22[[#This Row],[25th]]","v":378193.2},{"$f":"(((AAMC_Raw_Data_for_FY22[[#This Row],[Median]]-AAMC_Raw_Data_for_FY22[[#This Row],[25th]])/25)*10) + AAMC_Raw_Data_for_FY22[[#This Row],[25th]]","v":392819.4},{"$f":"(((AAMC_Raw_Data_for_FY22[[#This Row],[Median]]-AAMC_Raw_Data_for_FY22[[#This Row],[25th]])/25)*15) + AAMC_Raw_Data_for_FY22[[#This Row],[25th]]","v":407445.6},{"$f":"(((AAMC_Raw_Data_for_FY22[[#This Row],[Median]]-AAMC_Raw_Data_for_FY22[[#This Row],[25th]])/25)*20) + AAMC_Raw_Data_for_FY22[[#This Row],[25th]]","v":422071.8},436698,{"$f":"(((AAMC_Raw_Data_for_FY22[[#This Row],[75th]]-AAMC_Raw_Data_for_FY22[[#This Row],[Median]])/25)*5) + AAMC_Raw_Data_for_FY22[[#This Row],[Median]]","v":472016},{"$f":"(((AAMC_Raw_Data_for_FY22[[#This Row],[75th]]-AAMC_Raw_Data_for_FY22[[#This Row],[Median]])/25)*10) + AAMC_Raw_Data_for_FY22[[#This Row],[Median]]","v":507334},{"$f":"(((AAMC_Raw_Data_for_FY22[[#This Row],[75th]]-AAMC_Raw_Data_for_FY22[[#This Row],[Median]])/25)*15) + AAMC_Raw_Data_for_FY22[[#This Row],[Median]]","v":542652},{"$f":"(((AAMC_Raw_Data_for_FY22[[#This Row],[75th]]-AAMC_Raw_Data_for_FY22[[#This Row],[Median]])/25)*20) + AAMC_Raw_Data_for_FY22[[#This Row],[Median]]","v":577970},613288,{"$f":"(((AAMC_Raw_Data_for_FY22[[#This Row],[75th]]-AAMC_Raw_Data_for_FY22[[#This Row],[Median]])/25)*30) + AAMC_Raw_Data_for_FY22[[#This Row],[Median]]","v":648606},{"$f":"(((AAMC_Raw_Data_for_FY22[[#This Row],[75th]]-AAMC_Raw_Data_for_FY22[[#This Row],[Median]])/25)*35) + AAMC_Raw_Data_for_FY22[[#This Row],[Median]]","v":683924},{"$f":"(((AAMC_Raw_Data_for_FY22[[#This Row],[75th]]-AAMC_Raw_Data_for_FY22[[#This Row],[Median]])/25)*40) + AAMC_Raw_Data_for_FY22[[#This Row],[Median]]","v":719242}]
[{"$f":"AAMC_Raw_Data_for_FY22[[#This Row],[Source]]&AAMC_Raw_Data_for_FY22[[#This Row],[Type]]&AAMC_Raw_Data_for_FY22[[#This Row],[School Subset]]&AAMC_Raw_Data_for_FY22[[#This Row],[Rank]]&AAMC_Raw_Data_for_FY22[[#This Row],[Degree]]&AAMC_Raw_Data_for_FY22[[#This Row],[Department / Specialty]]&\"L\"","v":"AAMCAcademicPublicChiefMDDermatology TotalL"},"Dermatology Total",6,"AAMC","Academic","Public","Chief","MD","2021-2022",373147,{"$f":"(((AAMC_Raw_Data_for_FY22[[#This Row],[Median]]-AAMC_Raw_Data_for_FY22[[#This Row],[25th]])/25)*5) + AAMC_Raw_Data_for_FY22[[#This Row],[25th]]","v":406468.4},{"$f":"(((AAMC_Raw_Data_for_FY22[[#This Row],[Median]]-AAMC_Raw_Data_for_FY22[[#This Row],[25th]])/25)*10) + AAMC_Raw_Data_for_FY22[[#This Row],[25th]]","v":439789.8},{"$f":"(((AAMC_Raw_Data_for_FY22[[#This Row],[Median]]-AAMC_Raw_Data_for_FY22[[#This Row],[25th]])/25)*15) + AAMC_Raw_Data_for_FY22[[#This Row],[25th]]","v":473111.2},{"$f":"(((AAMC_Raw_Data_for_FY22[[#This Row],[Median]]-AAMC_Raw_Data_for_FY22[[#This Row],[25th]])/25)*20) + AAMC_Raw_Data_for_FY22[[#This Row],[25th]]","v":506432.6},539754,{"$f":"(((AAMC_Raw_Data_for_FY22[[#This Row],[75th]]-AAMC_Raw_Data_for_FY22[[#This Row],[Median]])/25)*5) + AAMC_Raw_Data_for_FY22[[#This Row],[Median]]","v":553167.6},{"$f":"(((AAMC_Raw_Data_for_FY22[[#This Row],[75th]]-AAMC_Raw_Data_for_FY22[[#This Row],[Median]])/25)*10) + AAMC_Raw_Data_for_FY22[[#This Row],[Median]]","v":566581.19999999995},{"$f":"(((AAMC_Raw_Data_for_FY22[[#This Row],[75th]]-AAMC_Raw_Data_for_FY22[[#This Row],[Median]])/25)*15) + AAMC_Raw_Data_for_FY22[[#This Row],[Median]]","v":579994.80000000005},{"$f":"(((AAMC_Raw_Data_for_FY22[[#This Row],[75th]]-AAMC_Raw_Data_for_FY22[[#This Row],[Median]])/25)*20) + AAMC_Raw_Data_for_FY22[[#This Row],[Median]]","v":593408.4},606822,{"$f":"(((AAMC_Raw_Data_for_FY22[[#This Row],[75th]]-AAMC_Raw_Data_for_FY22[[#This Row],[Median]])/25)*30) + AAMC_Raw_Data_for_FY22[[#This Row],[Median]]","v":620235.6},{"$f":"(((AAMC_Raw_Data_for_FY22[[#This Row],[75th]]-AAMC_Raw_Data_for_FY22[[#This Row],[Median]])/25)*35) + AAMC_Raw_Data_for_FY22[[#This Row],[Median]]","v":633649.19999999995},{"$f":"(((AAMC_Raw_Data_for_FY22[[#This Row],[75th]]-AAMC_Raw_Data_for_FY22[[#This Row],[Median]])/25)*40) + AAMC_Raw_Data_for_FY22[[#This Row],[Median]]","v":647062.80000000005}]
[{"$f":"AAMC_Raw_Data_for_FY22[[#This Row],[Source]]&AAMC_Raw_Data_for_FY22[[#This Row],[Type]]&AAMC_Raw_Data_for_FY22[[#This Row],[School Subset]]&AAMC_Raw_Data_for_FY22[[#This Row],[Rank]]&AAMC_Raw_Data_for_FY22[[#This Row],[Degree]]&AAMC_Raw_Data_for_FY22[[#This Row],[Department / Specialty]]&\"L\"","v":"AAMCAcademicPublicChairMDDermatology TotalL"},"Dermatology Total",1,"AAMC","Academic","Public","Chair","MD","2021-2022",509918,{"$f":"(((AAMC_Raw_Data_for_FY22[[#This Row],[Median]]-AAMC_Raw_Data_for_FY22[[#This Row],[25th]])/25)*5) + AAMC_Raw_Data_for_FY22[[#This Row],[25th]]","v":530992},{"$f":"(((AAMC_Raw_Data_for_FY22[[#This Row],[Median]]-AAMC_Raw_Data_for_FY22[[#This Row],[25th]])/25)*10) + AAMC_Raw_Data_for_FY22[[#This Row],[25th]]","v":552066},{"$f":"(((AAMC_Raw_Data_for_FY22[[#This Row],[Median]]-AAMC_Raw_Data_for_FY22[[#This Row],[25th]])/25)*15) + AAMC_Raw_Data_for_FY22[[#This Row],[25th]]","v":573140},{"$f":"(((AAMC_Raw_Data_for_FY22[[#This Row],[Median]]-AAMC_Raw_Data_for_FY22[[#This Row],[25th]])/25)*20) + AAMC_Raw_Data_for_FY22[[#This Row],[25th]]","v":594214},615288,{"$f":"(((AAMC_Raw_Data_for_FY22[[#This Row],[75th]]-AAMC_Raw_Data_for_FY22[[#This Row],[Median]])/25)*5) + AAMC_Raw_Data_for_FY22[[#This Row],[Median]]","v":630503.80000000005},{"$f":"(((AAMC_Raw_Data_for_FY22[[#This Row],[75th]]-AAMC_Raw_Data_for_FY22[[#This Row],[Median]])/25)*10) + AAMC_Raw_Data_for_FY22[[#This Row],[Median]]","v":645719.6},{"$f":"(((AAMC_Raw_Data_for_FY22[[#This Row],[75th]]-AAMC_Raw_Data_for_FY22[[#This Row],[Median]])/25)*15) + AAMC_Raw_Data_for_FY22[[#This Row],[Median]]","v":660935.4},{"$f":"(((AAMC_Raw_Data_for_FY22[[#This Row],[75th]]-AAMC_Raw_Data_for_FY22[[#This Row],[Median]])/25)*20) + AAMC_Raw_Data_for_FY22[[#This Row],[Median]]","v":676151.2},691367,{"$f":"(((AAMC_Raw_Data_for_FY22[[#This Row],[75th]]-AAMC_Raw_Data_for_FY22[[#This Row],[Median]])/25)*30) + AAMC_Raw_Data_for_FY22[[#This Row],[Median]]","v":706582.8},{"$f":"(((AAMC_Raw_Data_for_FY22[[#This Row],[75th]]-AAMC_Raw_Data_for_FY22[[#This Row],[Median]])/25)*35) + AAMC_Raw_Data_for_FY22[[#This Row],[Median]]","v":721798.6},{"$f":"(((AAMC_Raw_Data_for_FY22[[#This Row],[75th]]-AAMC_Raw_Data_for_FY22[[#This Row],[Median]])/25)*40) + AAMC_Raw_Data_for_FY22[[#This Row],[Median]]","v":737014.4}]
[{"$f":"AAMC_Raw_Data_for_FY22[[#This Row],[Source]]&AAMC_Raw_Data_for_FY22[[#This Row],[Type]]&AAMC_Raw_Data_for_FY22[[#This Row],[School Subset]]&AAMC_Raw_Data_for_FY22[[#This Row],[Rank]]&AAMC_Raw_Data_for_FY22[[#This Row],[Degree]]&AAMC_Raw_Data_for_FY22[[#This Row],[Department / Specialty]]&\"L\"","v":"AAMCAcademicPublicInstructorMDDermatology (excluding Mohs Surgery)L"},"Dermatology (excluding Mohs Surgery)",5,"AAMC","Academic","Public","Instructor","MD","2021-2022",73049,{"$f":"(((AAMC_Raw_Data_for_FY22[[#This Row],[Median]]-AAMC_Raw_Data_for_FY22[[#This Row],[25th]])/25)*5) + AAMC_Raw_Data_for_FY22[[#This Row],[25th]]","v":81795.600000000006},{"$f":"(((AAMC_Raw_Data_for_FY22[[#This Row],[Median]]-AAMC_Raw_Data_for_FY22[[#This Row],[25th]])/25)*10) + AAMC_Raw_Data_for_FY22[[#This Row],[25th]]","v":90542.2},{"$f":"(((AAMC_Raw_Data_for_FY22[[#This Row],[Median]]-AAMC_Raw_Data_for_FY22[[#This Row],[25th]])/25)*15) + AAMC_Raw_Data_for_FY22[[#This Row],[25th]]","v":99288.8},{"$f":"(((AAMC_Raw_Data_for_FY22[[#This Row],[Median]]-AAMC_Raw_Data_for_FY22[[#This Row],[25th]])/25)*20) + AAMC_Raw_Data_for_FY22[[#This Row],[25th]]","v":108035.4},116782,{"$f":"(((AAMC_Raw_Data_for_FY22[[#This Row],[75th]]-AAMC_Raw_Data_for_FY22[[#This Row],[Median]])/25)*5) + AAMC_Raw_Data_for_FY22[[#This Row],[Median]]","v":145085},{"$f":"(((AAMC_Raw_Data_for_FY22[[#This Row],[75th]]-AAMC_Raw_Data_for_FY22[[#This Row],[Median]])/25)*10) + AAMC_Raw_Data_for_FY22[[#This Row],[Median]]","v":173388},{"$f":"(((AAMC_Raw_Data_for_FY22[[#This Row],[75th]]-AAMC_Raw_Data_for_FY22[[#This Row],[Median]])/25)*15) + AAMC_Raw_Data_for_FY22[[#This Row],[Median]]","v":201691},{"$f":"(((AAMC_Raw_Data_for_FY22[[#This Row],[75th]]-AAMC_Raw_Data_for_FY22[[#This Row],[Median]])/25)*20) + AAMC_Raw_Data_for_FY22[[#This Row],[Median]]","v":229994},258297,{"$f":"(((AAMC_Raw_Data_for_FY22[[#This Row],[75th]]-AAMC_Raw_Data_for_FY22[[#This Row],[Median]])/25)*30) + AAMC_Raw_Data_for_FY22[[#This Row],[Median]]","v":286600},{"$f":"(((AAMC_Raw_Data_for_FY22[[#This Row],[75th]]-AAMC_Raw_Data_for_FY22[[#This Row],[Median]])/25)*35) + AAMC_Raw_Data_for_FY22[[#This Row],[Median]]","v":314903},{"$f":"(((AAMC_Raw_Data_for_FY22[[#This Row],[75th]]-AAMC_Raw_Data_for_FY22[[#This Row],[Median]])/25)*40) + AAMC_Raw_Data_for_FY22[[#This Row],[Median]]","v":343206}]
[{"$f":"AAMC_Raw_Data_for_FY22[[#This Row],[Source]]&AAMC_Raw_Data_for_FY22[[#This Row],[Type]]&AAMC_Raw_Data_for_FY22[[#This Row],[School Subset]]&AAMC_Raw_Data_for_FY22[[#This Row],[Rank]]&AAMC_Raw_Data_for_FY22[[#This Row],[Degree]]&AAMC_Raw_Data_for_FY22[[#This Row],[Department / Specialty]]&\"L\"","v":"AAMCAcademicPublicAssistantMDDermatology (excluding Mohs Surgery)L"},"Dermatology (excluding Mohs Surgery)",4,"AAMC","Academic","Public","Assistant","MD","2021-2022",297985,{"$f":"(((AAMC_Raw_Data_for_FY22[[#This Row],[Median]]-AAMC_Raw_Data_for_FY22[[#This Row],[25th]])/25)*5) + AAMC_Raw_Data_for_FY22[[#This Row],[25th]]","v":305803.59999999998},{"$f":"(((AAMC_Raw_Data_for_FY22[[#This Row],[Median]]-AAMC_Raw_Data_for_FY22[[#This Row],[25th]])/25)*10) + AAMC_Raw_Data_for_FY22[[#This Row],[25th]]","v":313622.2},{"$f":"(((AAMC_Raw_Data_for_FY22[[#This Row],[Median]]-AAMC_Raw_Data_for_FY22[[#This Row],[25th]])/25)*15) + AAMC_Raw_Data_for_FY22[[#This Row],[25th]]","v":321440.8},{"$f":"(((AAMC_Raw_Data_for_FY22[[#This Row],[Median]]-AAMC_Raw_Data_for_FY22[[#This Row],[25th]])/25)*20) + AAMC_Raw_Data_for_FY22[[#This Row],[25th]]","v":329259.40000000002},337078,{"$f":"(((AAMC_Raw_Data_for_FY22[[#This Row],[75th]]-AAMC_Raw_Data_for_FY22[[#This Row],[Median]])/25)*5) + AAMC_Raw_Data_for_FY22[[#This Row],[Median]]","v":351970.2},{"$f":"(((AAMC_Raw_Data_for_FY22[[#This Row],[75th]]-AAMC_Raw_Data_for_FY22[[#This Row],[Median]])/25)*10) + AAMC_Raw_Data_for_FY22[[#This Row],[Median]]","v":366862.4},{"$f":"(((AAMC_Raw_Data_for_FY22[[#This Row],[75th]]-AAMC_Raw_Data_for_FY22[[#This Row],[Median]])/25)*15) + AAMC_Raw_Data_for_FY22[[#This Row],[Median]]","v":381754.6},{"$f":"(((AAMC_Raw_Data_for_FY22[[#This Row],[75th]]-AAMC_Raw_Data_for_FY22[[#This Row],[Median]])/25)*20) + AAMC_Raw_Data_for_FY22[[#This Row],[Median]]","v":396646.8},411539,{"$f":"(((AAMC_Raw_Data_for_FY22[[#This Row],[75th]]-AAMC_Raw_Data_for_FY22[[#This Row],[Median]])/25)*30) + AAMC_Raw_Data_for_FY22[[#This Row],[Median]]","v":426431.2},{"$f":"(((AAMC_Raw_Data_for_FY22[[#This Row],[75th]]-AAMC_Raw_Data_for_FY22[[#This Row],[Median]])/25)*35) + AAMC_Raw_Data_for_FY22[[#This Row],[Median]]","v":441323.4},{"$f":"(((AAMC_Raw_Data_for_FY22[[#This Row],[75th]]-AAMC_Raw_Data_for_FY22[[#This Row],[Median]])/25)*40) + AAMC_Raw_Data_for_FY22[[#This Row],[Median]]","v":456215.6}]
[{"$f":"AAMC_Raw_Data_for_FY22[[#This Row],[Source]]&AAMC_Raw_Data_for_FY22[[#This Row],[Type]]&AAMC_Raw_Data_for_FY22[[#This Row],[School Subset]]&AAMC_Raw_Data_for_FY22[[#This Row],[Rank]]&AAMC_Raw_Data_for_FY22[[#This Row],[Degree]]&AAMC_Raw_Data_for_FY22[[#This Row],[Department / Specialty]]&\"L\"","v":"AAMCAcademicPublicAssociateMDDermatology (excluding Mohs Surgery)L"},"Dermatology (excluding Mohs Surgery)",3,"AAMC","Academic","Public","Associate","MD","2021-2022",326827,{"$f":"(((AAMC_Raw_Data_for_FY22[[#This Row],[Median]]-AAMC_Raw_Data_for_FY22[[#This Row],[25th]])/25)*5) + AAMC_Raw_Data_for_FY22[[#This Row],[25th]]","v":337648.8},{"$f":"(((AAMC_Raw_Data_for_FY22[[#This Row],[Median]]-AAMC_Raw_Data_for_FY22[[#This Row],[25th]])/25)*10) + AAMC_Raw_Data_for_FY22[[#This Row],[25th]]","v":348470.6},{"$f":"(((AAMC_Raw_Data_for_FY22[[#This Row],[Median]]-AAMC_Raw_Data_for_FY22[[#This Row],[25th]])/25)*15) + AAMC_Raw_Data_for_FY22[[#This Row],[25th]]","v":359292.4},{"$f":"(((AAMC_Raw_Data_for_FY22[[#This Row],[Median]]-AAMC_Raw_Data_for_FY22[[#This Row],[25th]])/25)*20) + AAMC_Raw_Data_for_FY22[[#This Row],[25th]]","v":370114.2},380936,{"$f":"(((AAMC_Raw_Data_for_FY22[[#This Row],[75th]]-AAMC_Raw_Data_for_FY22[[#This Row],[Median]])/25)*5) + AAMC_Raw_Data_for_FY22[[#This Row],[Median]]","v":399290.2},{"$f":"(((AAMC_Raw_Data_for_FY22[[#This Row],[75th]]-AAMC_Raw_Data_for_FY22[[#This Row],[Median]])/25)*10) + AAMC_Raw_Data_for_FY22[[#This Row],[Median]]","v":417644.4},{"$f":"(((AAMC_Raw_Data_for_FY22[[#This Row],[75th]]-AAMC_Raw_Data_for_FY22[[#This Row],[Median]])/25)*15) + AAMC_Raw_Data_for_FY22[[#This Row],[Median]]","v":435998.6},{"$f":"(((AAMC_Raw_Data_for_FY22[[#This Row],[75th]]-AAMC_Raw_Data_for_FY22[[#This Row],[Median]])/25)*20) + AAMC_Raw_Data_for_FY22[[#This Row],[Median]]","v":454352.8},472707,{"$f":"(((AAMC_Raw_Data_for_FY22[[#This Row],[75th]]-AAMC_Raw_Data_for_FY22[[#This Row],[Median]])/25)*30) + AAMC_Raw_Data_for_FY22[[#This Row],[Median]]","v":491061.2},{"$f":"(((AAMC_Raw_Data_for_FY22[[#This Row],[75th]]-AAMC_Raw_Data_for_FY22[[#This Row],[Median]])/25)*35) + AAMC_Raw_Data_for_FY22[[#This Row],[Median]]","v":509415.4},{"$f":"(((AAMC_Raw_Data_for_FY22[[#This Row],[75th]]-AAMC_Raw_Data_for_FY22[[#This Row],[Median]])/25)*40) + AAMC_Raw_Data_for_FY22[[#This Row],[Median]]","v":527769.59999999998}]
[{"$f":"AAMC_Raw_Data_for_FY22[[#This Row],[Source]]&AAMC_Raw_Data_for_FY22[[#This Row],[Type]]&AAMC_Raw_Data_for_FY22[[#This Row],[School Subset]]&AAMC_Raw_Data_for_FY22[[#This Row],[Rank]]&AAMC_Raw_Data_for_FY22[[#This Row],[Degree]]&AAMC_Raw_Data_for_FY22[[#This Row],[Department / Specialty]]&\"L\"","v":"AAMCAcademicPublicProfessorMDDermatology (excluding Mohs Surgery)L"},"Dermatology (excluding Mohs Surgery)",2,"AAMC","Academic","Public","Professor","MD","2021-2022",357346,{"$f":"(((AAMC_Raw_Data_for_FY22[[#This Row],[Median]]-AAMC_Raw_Data_for_FY22[[#This Row],[25th]])/25)*5) + AAMC_Raw_Data_for_FY22[[#This Row],[25th]]","v":367316.8},{"$f":"(((AAMC_Raw_Data_for_FY22[[#This Row],[Median]]-AAMC_Raw_Data_for_FY22[[#This Row],[25th]])/25)*10) + AAMC_Raw_Data_for_FY22[[#This Row],[25th]]","v":377287.6},{"$f":"(((AAMC_Raw_Data_for_FY22[[#This Row],[Median]]-AAMC_Raw_Data_for_FY22[[#This Row],[25th]])/25)*15) + AAMC_Raw_Data_for_FY22[[#This Row],[25th]]","v":387258.4},{"$f":"(((AAMC_Raw_Data_for_FY22[[#This Row],[Median]]-AAMC_Raw_Data_for_FY22[[#This Row],[25th]])/25)*20) + AAMC_Raw_Data_for_FY22[[#This Row],[25th]]","v":397229.2},407200,{"$f":"(((AAMC_Raw_Data_for_FY22[[#This Row],[75th]]-AAMC_Raw_Data_for_FY22[[#This Row],[Median]])/25)*5) + AAMC_Raw_Data_for_FY22[[#This Row],[Median]]","v":432878.4},{"$f":"(((AAMC_Raw_Data_for_FY22[[#This Row],[75th]]-AAMC_Raw_Data_for_FY22[[#This Row],[Median]])/25)*10) + AAMC_Raw_Data_for_FY22[[#This Row],[Median]]","v":458556.8},{"$f":"(((AAMC_Raw_Data_for_FY22[[#This Row],[75th]]-AAMC_Raw_Data_for_FY22[[#This Row],[Median]])/25)*15) + AAMC_Raw_Data_for_FY22[[#This Row],[Median]]","v":484235.2},{"$f":"(((AAMC_Raw_Data_for_FY22[[#This Row],[75th]]-AAMC_Raw_Data_for_FY22[[#This Row],[Median]])/25)*20) + AAMC_Raw_Data_for_FY22[[#This Row],[Median]]","v":509913.59999999998},535592,{"$f":"(((AAMC_Raw_Data_for_FY22[[#This Row],[75th]]-AAMC_Raw_Data_for_FY22[[#This Row],[Median]])/25)*30) + AAMC_Raw_Data_for_FY22[[#This Row],[Median]]","v":561270.4},{"$f":"(((AAMC_Raw_Data_for_FY22[[#This Row],[75th]]-AAMC_Raw_Data_for_FY22[[#This Row],[Median]])/25)*35) + AAMC_Raw_Data_for_FY22[[#This Row],[Median]]","v":586948.80000000005},{"$f":"(((AAMC_Raw_Data_for_FY22[[#This Row],[75th]]-AAMC_Raw_Data_for_FY22[[#This Row],[Median]])/25)*40) + AAMC_Raw_Data_for_FY22[[#This Row],[Median]]","v":612627.19999999995}]
[{"$f":"AAMC_Raw_Data_for_FY22[[#This Row],[Source]]&AAMC_Raw_Data_for_FY22[[#This Row],[Type]]&AAMC_Raw_Data_for_FY22[[#This Row],[School Subset]]&AAMC_Raw_Data_for_FY22[[#This Row],[Rank]]&AAMC_Raw_Data_for_FY22[[#This Row],[Degree]]&AAMC_Raw_Data_for_FY22[[#This Row],[Department / Specialty]]&\"L\"","v":"AAMCAcademicPublicChiefMDDermatology (excluding Mohs Surgery)L"},"Dermatology (excluding Mohs Surgery)",6,"AAMC","Academic","Public","Chief","MD","2021-2022",360877,{"$f":"(((AAMC_Raw_Data_for_FY22[[#This Row],[Median]]-AAMC_Raw_Data_for_FY22[[#This Row],[25th]])/25)*5) + AAMC_Raw_Data_for_FY22[[#This Row],[25th]]","v":372708.8},{"$f":"(((AAMC_Raw_Data_for_FY22[[#This Row],[Median]]-AAMC_Raw_Data_for_FY22[[#This Row],[25th]])/25)*10) + AAMC_Raw_Data_for_FY22[[#This Row],[25th]]","v":384540.6},{"$f":"(((AAMC_Raw_Data_for_FY22[[#This Row],[Median]]-AAMC_Raw_Data_for_FY22[[#This Row],[25th]])/25)*15) + AAMC_Raw_Data_for_FY22[[#This Row],[25th]]","v":396372.4},{"$f":"(((AAMC_Raw_Data_for_FY22[[#This Row],[Median]]-AAMC_Raw_Data_for_FY22[[#This Row],[25th]])/25)*20) + AAMC_Raw_Data_for_FY22[[#This Row],[25th]]","v":408204.2},420036,{"$f":"(((AAMC_Raw_Data_for_FY22[[#This Row],[75th]]-AAMC_Raw_Data_for_FY22[[#This Row],[Median]])/25)*5) + AAMC_Raw_Data_for_FY22[[#This Row],[Median]]","v":447276.79999999999},{"$f":"(((AAMC_Raw_Data_for_FY22[[#This Row],[75th]]-AAMC_Raw_Data_for_FY22[[#This Row],[Median]])/25)*10) + AAMC_Raw_Data_for_FY22[[#This Row],[Median]]","v":474517.6},{"$f":"(((AAMC_Raw_Data_for_FY22[[#This Row],[75th]]-AAMC_Raw_Data_for_FY22[[#This Row],[Median]])/25)*15) + AAMC_Raw_Data_for_FY22[[#This Row],[Median]]","v":501758.4},{"$f":"(((AAMC_Raw_Data_for_FY22[[#This Row],[75th]]-AAMC_Raw_Data_for_FY22[[#This Row],[Median]])/25)*20) + AAMC_Raw_Data_for_FY22[[#This Row],[Median]]","v":528999.19999999995},556240,{"$f":"(((AAMC_Raw_Data_for_FY22[[#This Row],[75th]]-AAMC_Raw_Data_for_FY22[[#This Row],[Median]])/25)*30) + AAMC_Raw_Data_for_FY22[[#This Row],[Median]]","v":583480.80000000005},{"$f":"(((AAMC_Raw_Data_for_FY22[[#This Row],[75th]]-AAMC_Raw_Data_for_FY22[[#This Row],[Median]])/25)*35) + AAMC_Raw_Data_for_FY22[[#This Row],[Median]]","v":610721.6},{"$f":"(((AAMC_Raw_Data_for_FY22[[#This Row],[75th]]-AAMC_Raw_Data_for_FY22[[#This Row],[Median]])/25)*40) + AAMC_Raw_Data_for_FY22[[#This Row],[Median]]","v":637962.4}]
[{"$f":"AAMC_Raw_Data_for_FY22[[#This Row],[Source]]&AAMC_Raw_Data_for_FY22[[#This Row],[Type]]&AAMC_Raw_Data_for_FY22[[#This Row],[School Subset]]&AAMC_Raw_Data_for_FY22[[#This Row],[Rank]]&AAMC_Raw_Data_for_FY22[[#This Row],[Degree]]&AAMC_Raw_Data_for_FY22[[#This Row],[Department / Specialty]]&\"L\"","v":"AAMCAcademicPublicChairMDDermatology (excluding Mohs Surgery)L"},"Dermatology (excluding Mohs Surgery)",1,"AAMC","Academic","Public","Chair","MD","2021-2022",499749,{"$f":"(((AAMC_Raw_Data_for_FY22[[#This Row],[Median]]-AAMC_Raw_Data_for_FY22[[#This Row],[25th]])/25)*5) + AAMC_Raw_Data_for_FY22[[#This Row],[25th]]","v":521299.8},{"$f":"(((AAMC_Raw_Data_for_FY22[[#This Row],[Median]]-AAMC_Raw_Data_for_FY22[[#This Row],[25th]])/25)*10) + AAMC_Raw_Data_for_FY22[[#This Row],[25th]]","v":542850.6},{"$f":"(((AAMC_Raw_Data_for_FY22[[#This Row],[Median]]-AAMC_Raw_Data_for_FY22[[#This Row],[25th]])/25)*15) + AAMC_Raw_Data_for_FY22[[#This Row],[25th]]","v":564401.4},{"$f":"(((AAMC_Raw_Data_for_FY22[[#This Row],[Median]]-AAMC_Raw_Data_for_FY22[[#This Row],[25th]])/25)*20) + AAMC_Raw_Data_for_FY22[[#This Row],[25th]]","v":585952.19999999995},607503,{"$f":"(((AAMC_Raw_Data_for_FY22[[#This Row],[75th]]-AAMC_Raw_Data_for_FY22[[#This Row],[Median]])/25)*5) + AAMC_Raw_Data_for_FY22[[#This Row],[Median]]","v":619202.4},{"$f":"(((AAMC_Raw_Data_for_FY22[[#This Row],[75th]]-AAMC_Raw_Data_for_FY22[[#This Row],[Median]])/25)*10) + AAMC_Raw_Data_for_FY22[[#This Row],[Median]]","v":630901.80000000005},{"$f":"(((AAMC_Raw_Data_for_FY22[[#This Row],[75th]]-AAMC_Raw_Data_for_FY22[[#This Row],[Median]])/25)*15) + AAMC_Raw_Data_for_FY22[[#This Row],[Median]]","v":642601.19999999995},{"$f":"(((AAMC_Raw_Data_for_FY22[[#This Row],[75th]]-AAMC_Raw_Data_for_FY22[[#This Row],[Median]])/25)*20) + AAMC_Raw_Data_for_FY22[[#This Row],[Median]]","v":654300.6},666000,{"$f":"(((AAMC_Raw_Data_for_FY22[[#This Row],[75th]]-AAMC_Raw_Data_for_FY22[[#This Row],[Median]])/25)*30) + AAMC_Raw_Data_for_FY22[[#This Row],[Median]]","v":677699.4},{"$f":"(((AAMC_Raw_Data_for_FY22[[#This Row],[75th]]-AAMC_Raw_Data_for_FY22[[#This Row],[Median]])/25)*35) + AAMC_Raw_Data_for_FY22[[#This Row],[Median]]","v":689398.8},{"$f":"(((AAMC_Raw_Data_for_FY22[[#This Row],[75th]]-AAMC_Raw_Data_for_FY22[[#This Row],[Median]])/25)*40) + AAMC_Raw_Data_for_FY22[[#This Row],[Median]]","v":701098.2}]
[{"$f":"AAMC_Raw_Data_for_FY22[[#This Row],[Source]]&AAMC_Raw_Data_for_FY22[[#This Row],[Type]]&AAMC_Raw_Data_for_FY22[[#This Row],[School Subset]]&AAMC_Raw_Data_for_FY22[[#This Row],[Rank]]&AAMC_Raw_Data_for_FY22[[#This Row],[Degree]]&AAMC_Raw_Data_for_FY22[[#This Row],[Department / Specialty]]&\"L\"","v":"AAMCAcademicPublicInstructorMDDermatology: Mohs SurgeryL"},"Dermatology: Mohs Surgery",5,"AAMC","Academic","Public","Instructor","MD","2021-2022",null,{"$f":"(((AAMC_Raw_Data_for_FY22[[#This Row],[Median]]-AAMC_Raw_Data_for_FY22[[#This Row],[25th]])/25)*5) + AAMC_Raw_Data_for_FY22[[#This Row],[25th]]","v":0},{"$f":"(((AAMC_Raw_Data_for_FY22[[#This Row],[Median]]-AAMC_Raw_Data_for_FY22[[#This Row],[25th]])/25)*10) + AAMC_Raw_Data_for_FY22[[#This Row],[25th]]","v":0},{"$f":"(((AAMC_Raw_Data_for_FY22[[#This Row],[Median]]-AAMC_Raw_Data_for_FY22[[#This Row],[25th]])/25)*15) + AAMC_Raw_Data_for_FY22[[#This Row],[25th]]","v":0},{"$f":"(((AAMC_Raw_Data_for_FY22[[#This Row],[Median]]-AAMC_Raw_Data_for_FY22[[#This Row],[25th]])/25)*20) + AAMC_Raw_Data_for_FY22[[#This Row],[25th]]","v":0},null,{"$f":"(((AAMC_Raw_Data_for_FY22[[#This Row],[75th]]-AAMC_Raw_Data_for_FY22[[#This Row],[Median]])/25)*5) + AAMC_Raw_Data_for_FY22[[#This Row],[Median]]","v":0},{"$f":"(((AAMC_Raw_Data_for_FY22[[#This Row],[75th]]-AAMC_Raw_Data_for_FY22[[#This Row],[Median]])/25)*10) + AAMC_Raw_Data_for_FY22[[#This Row],[Median]]","v":0},{"$f":"(((AAMC_Raw_Data_for_FY22[[#This Row],[75th]]-AAMC_Raw_Data_for_FY22[[#This Row],[Median]])/25)*15) + AAMC_Raw_Data_for_FY22[[#This Row],[Median]]","v":0},{"$f":"(((AAMC_Raw_Data_for_FY22[[#This Row],[75th]]-AAMC_Raw_Data_for_FY22[[#This Row],[Median]])/25)*20) + AAMC_Raw_Data_for_FY22[[#This Row],[Median]]","v":0},null,{"$f":"(((AAMC_Raw_Data_for_FY22[[#This Row],[75th]]-AAMC_Raw_Data_for_FY22[[#This Row],[Median]])/25)*30) + AAMC_Raw_Data_for_FY22[[#This Row],[Median]]","v":0},{"$f":"(((AAMC_Raw_Data_for_FY22[[#This Row],[75th]]-AAMC_Raw_Data_for_FY22[[#This Row],[Median]])/25)*35) + AAMC_Raw_Data_for_FY22[[#This Row],[Median]]","v":0},{"$f":"(((AAMC_Raw_Data_for_FY22[[#This Row],[75th]]-AAMC_Raw_Data_for_FY22[[#This Row],[Median]])/25)*40) + AAMC_Raw_Data_for_FY22[[#This Row],[Median]]","v":0}]
[{"$f":"AAMC_Raw_Data_for_FY22[[#This Row],[Source]]&AAMC_Raw_Data_for_FY22[[#This Row],[Type]]&AAMC_Raw_Data_for_FY22[[#This Row],[School Subset]]&AAMC_Raw_Data_for_FY22[[#This Row],[Rank]]&AAMC_Raw_Data_for_FY22[[#This Row],[Degree]]&AAMC_Raw_Data_for_FY22[[#This Row],[Department / Specialty]]&\"L\"","v":"AAMCAcademicPublicAssistantMDDermatology: Mohs SurgeryL"},"Dermatology: Mohs Surgery",4,"AAMC","Academic","Public","Assistant","MD","2021-2022",448973,{"$f":"(((AAMC_Raw_Data_for_FY22[[#This Row],[Median]]-AAMC_Raw_Data_for_FY22[[#This Row],[25th]])/25)*5) + AAMC_Raw_Data_for_FY22[[#This Row],[25th]]","v":475270},{"$f":"(((AAMC_Raw_Data_for_FY22[[#This Row],[Median]]-AAMC_Raw_Data_for_FY22[[#This Row],[25th]])/25)*10) + AAMC_Raw_Data_for_FY22[[#This Row],[25th]]","v":501567},{"$f":"(((AAMC_Raw_Data_for_FY22[[#This Row],[Median]]-AAMC_Raw_Data_for_FY22[[#This Row],[25th]])/25)*15) + AAMC_Raw_Data_for_FY22[[#This Row],[25th]]","v":527864},{"$f":"(((AAMC_Raw_Data_for_FY22[[#This Row],[Median]]-AAMC_Raw_Data_for_FY22[[#This Row],[25th]])/25)*20) + AAMC_Raw_Data_for_FY22[[#This Row],[25th]]","v":554161},580458,{"$f":"(((AAMC_Raw_Data_for_FY22[[#This Row],[75th]]-AAMC_Raw_Data_for_FY22[[#This Row],[Median]])/25)*5) + AAMC_Raw_Data_for_FY22[[#This Row],[Median]]","v":604924.4},{"$f":"(((AAMC_Raw_Data_for_FY22[[#This Row],[75th]]-AAMC_Raw_Data_for_FY22[[#This Row],[Median]])/25)*10) + AAMC_Raw_Data_for_FY22[[#This Row],[Median]]","v":629390.80000000005},{"$f":"(((AAMC_Raw_Data_for_FY22[[#This Row],[75th]]-AAMC_Raw_Data_for_FY22[[#This Row],[Median]])/25)*15) + AAMC_Raw_Data_for_FY22[[#This Row],[Median]]","v":653857.19999999995},{"$f":"(((AAMC_Raw_Data_for_FY22[[#This Row],[75th]]-AAMC_Raw_Data_for_FY22[[#This Row],[Median]])/25)*20) + AAMC_Raw_Data_for_FY22[[#This Row],[Median]]","v":678323.6},702790,{"$f":"(((AAMC_Raw_Data_for_FY22[[#This Row],[75th]]-AAMC_Raw_Data_for_FY22[[#This Row],[Median]])/25)*30) + AAMC_Raw_Data_for_FY22[[#This Row],[Median]]","v":727256.4},{"$f":"(((AAMC_Raw_Data_for_FY22[[#This Row],[75th]]-AAMC_Raw_Data_for_FY22[[#This Row],[Median]])/25)*35) + AAMC_Raw_Data_for_FY22[[#This Row],[Median]]","v":751722.8},{"$f":"(((AAMC_Raw_Data_for_FY22[[#This Row],[75th]]-AAMC_Raw_Data_for_FY22[[#This Row],[Median]])/25)*40) + AAMC_Raw_Data_for_FY22[[#This Row],[Median]]","v":776189.2}]
[{"$f":"AAMC_Raw_Data_for_FY22[[#This Row],[Source]]&AAMC_Raw_Data_for_FY22[[#This Row],[Type]]&AAMC_Raw_Data_for_FY22[[#This Row],[School Subset]]&AAMC_Raw_Data_for_FY22[[#This Row],[Rank]]&AAMC_Raw_Data_for_FY22[[#This Row],[Degree]]&AAMC_Raw_Data_for_FY22[[#This Row],[Department / Specialty]]&\"L\"","v":"AAMCAcademicPublicAssociateMDDermatology: Mohs SurgeryL"},"Dermatology: Mohs Surgery",3,"AAMC","Academic","Public","Associate","MD","2021-2022",580690,{"$f":"(((AAMC_Raw_Data_for_FY22[[#This Row],[Median]]-AAMC_Raw_Data_for_FY22[[#This Row],[25th]])/25)*5) + AAMC_Raw_Data_for_FY22[[#This Row],[25th]]","v":600952},{"$f":"(((AAMC_Raw_Data_for_FY22[[#This Row],[Median]]-AAMC_Raw_Data_for_FY22[[#This Row],[25th]])/25)*10) + AAMC_Raw_Data_for_FY22[[#This Row],[25th]]","v":621214},{"$f":"(((AAMC_Raw_Data_for_FY22[[#This Row],[Median]]-AAMC_Raw_Data_for_FY22[[#This Row],[25th]])/25)*15) + AAMC_Raw_Data_for_FY22[[#This Row],[25th]]","v":641476},{"$f":"(((AAMC_Raw_Data_for_FY22[[#This Row],[Median]]-AAMC_Raw_Data_for_FY22[[#This Row],[25th]])/25)*20) + AAMC_Raw_Data_for_FY22[[#This Row],[25th]]","v":661738},682000,{"$f":"(((AAMC_Raw_Data_for_FY22[[#This Row],[75th]]-AAMC_Raw_Data_for_FY22[[#This Row],[Median]])/25)*5) + AAMC_Raw_Data_for_FY22[[#This Row],[Median]]","v":723148.2},{"$f":"(((AAMC_Raw_Data_for_FY22[[#This Row],[75th]]-AAMC_Raw_Data_for_FY22[[#This Row],[Median]])/25)*10) + AAMC_Raw_Data_for_FY22[[#This Row],[Median]]","v":764296.4},{"$f":"(((AAMC_Raw_Data_for_FY22[[#This Row],[75th]]-AAMC_Raw_Data_for_FY22[[#This Row],[Median]])/25)*15) + AAMC_Raw_Data_for_FY22[[#This Row],[Median]]","v":805444.6},{"$f":"(((AAMC_Raw_Data_for_FY22[[#This Row],[75th]]-AAMC_Raw_Data_for_FY22[[#This Row],[Median]])/25)*20) + AAMC_Raw_Data_for_FY22[[#This Row],[Median]]","v":846592.8},887741,{"$f":"(((AAMC_Raw_Data_for_FY22[[#This Row],[75th]]-AAMC_Raw_Data_for_FY22[[#This Row],[Median]])/25)*30) + AAMC_Raw_Data_for_FY22[[#This Row],[Median]]","v":928889.2},{"$f":"(((AAMC_Raw_Data_for_FY22[[#This Row],[75th]]-AAMC_Raw_Data_for_FY22[[#This Row],[Median]])/25)*35) + AAMC_Raw_Data_for_FY22[[#This Row],[Median]]","v":970037.39999999991},{"$f":"(((AAMC_Raw_Data_for_FY22[[#This Row],[75th]]-AAMC_Raw_Data_for_FY22[[#This Row],[Median]])/25)*40) + AAMC_Raw_Data_for_FY22[[#This Row],[Median]]","v":1011185.6}]
[{"$f":"AAMC_Raw_Data_for_FY22[[#This Row],[Source]]&AAMC_Raw_Data_for_FY22[[#This Row],[Type]]&AAMC_Raw_Data_for_FY22[[#This Row],[School Subset]]&AAMC_Raw_Data_for_FY22[[#This Row],[Rank]]&AAMC_Raw_Data_for_FY22[[#This Row],[Degree]]&AAMC_Raw_Data_for_FY22[[#This Row],[Department / Specialty]]&\"L\"","v":"AAMCAcademicPublicProfessorMDDermatology: Mohs SurgeryL"},"Dermatology: Mohs Surgery",2,"AAMC","Academic","Public","Professor","MD","2021-2022",834029,{"$f":"(((AAMC_Raw_Data_for_FY22[[#This Row],[Median]]-AAMC_Raw_Data_for_FY22[[#This Row],[25th]])/25)*5) + AAMC_Raw_Data_for_FY22[[#This Row],[25th]]","v":854444.6},{"$f":"(((AAMC_Raw_Data_for_FY22[[#This Row],[Median]]-AAMC_Raw_Data_for_FY22[[#This Row],[25th]])/25)*10) + AAMC_Raw_Data_for_FY22[[#This Row],[25th]]","v":874860.2},{"$f":"(((AAMC_Raw_Data_for_FY22[[#This Row],[Median]]-AAMC_Raw_Data_for_FY22[[#This Row],[25th]])/25)*15) + AAMC_Raw_Data_for_FY22[[#This Row],[25th]]","v":895275.8},{"$f":"(((AAMC_Raw_Data_for_FY22[[#This Row],[Median]]-AAMC_Raw_Data_for_FY22[[#This Row],[25th]])/25)*20) + AAMC_Raw_Data_for_FY22[[#This Row],[25th]]","v":915691.4},936107,{"$f":"(((AAMC_Raw_Data_for_FY22[[#This Row],[75th]]-AAMC_Raw_Data_for_FY22[[#This Row],[Median]])/25)*5) + AAMC_Raw_Data_for_FY22[[#This Row],[Median]]","v":1023933.4},{"$f":"(((AAMC_Raw_Data_for_FY22[[#This Row],[75th]]-AAMC_Raw_Data_for_FY22[[#This Row],[Median]])/25)*10) + AAMC_Raw_Data_for_FY22[[#This Row],[Median]]","v":1111759.8},{"$f":"(((AAMC_Raw_Data_for_FY22[[#This Row],[75th]]-AAMC_Raw_Data_for_FY22[[#This Row],[Median]])/25)*15) + AAMC_Raw_Data_for_FY22[[#This Row],[Median]]","v":1199586.2},{"$f":"(((AAMC_Raw_Data_for_FY22[[#This Row],[75th]]-AAMC_Raw_Data_for_FY22[[#This Row],[Median]])/25)*20) + AAMC_Raw_Data_for_FY22[[#This Row],[Median]]","v":1287412.6000000001},1375239,{"$f":"(((AAMC_Raw_Data_for_FY22[[#This Row],[75th]]-AAMC_Raw_Data_for_FY22[[#This Row],[Median]])/25)*30) + AAMC_Raw_Data_for_FY22[[#This Row],[Median]]","v":1463065.4},{"$f":"(((AAMC_Raw_Data_for_FY22[[#This Row],[75th]]-AAMC_Raw_Data_for_FY22[[#This Row],[Median]])/25)*35) + AAMC_Raw_Data_for_FY22[[#This Row],[Median]]","v":1550891.7999999998},{"$f":"(((AAMC_Raw_Data_for_FY22[[#This Row],[75th]]-AAMC_Raw_Data_for_FY22[[#This Row],[Median]])/25)*40) + AAMC_Raw_Data_for_FY22[[#This Row],[Median]]","v":1638718.2}]
[{"$f":"AAMC_Raw_Data_for_FY22[[#This Row],[Source]]&AAMC_Raw_Data_for_FY22[[#This Row],[Type]]&AAMC_Raw_Data_for_FY22[[#This Row],[School Subset]]&AAMC_Raw_Data_for_FY22[[#This Row],[Rank]]&AAMC_Raw_Data_for_FY22[[#This Row],[Degree]]&AAMC_Raw_Data_for_FY22[[#This Row],[Department / Specialty]]&\"L\"","v":"AAMCAcademicPublicChiefMDDermatology: Mohs SurgeryL"},"Dermatology: Mohs Surgery",6,"AAMC","Academic","Public","Chief","MD","2021-2022",null,{"$f":"(((AAMC_Raw_Data_for_FY22[[#This Row],[Median]]-AAMC_Raw_Data_for_FY22[[#This Row],[25th]])/25)*5) + AAMC_Raw_Data_for_FY22[[#This Row],[25th]]","v":0},{"$f":"(((AAMC_Raw_Data_for_FY22[[#This Row],[Median]]-AAMC_Raw_Data_for_FY22[[#This Row],[25th]])/25)*10) + AAMC_Raw_Data_for_FY22[[#This Row],[25th]]","v":0},{"$f":"(((AAMC_Raw_Data_for_FY22[[#This Row],[Median]]-AAMC_Raw_Data_for_FY22[[#This Row],[25th]])/25)*15) + AAMC_Raw_Data_for_FY22[[#This Row],[25th]]","v":0},{"$f":"(((AAMC_Raw_Data_for_FY22[[#This Row],[Median]]-AAMC_Raw_Data_for_FY22[[#This Row],[25th]])/25)*20) + AAMC_Raw_Data_for_FY22[[#This Row],[25th]]","v":0},null,{"$f":"(((AAMC_Raw_Data_for_FY22[[#This Row],[75th]]-AAMC_Raw_Data_for_FY22[[#This Row],[Median]])/25)*5) + AAMC_Raw_Data_for_FY22[[#This Row],[Median]]","v":0},{"$f":"(((AAMC_Raw_Data_for_FY22[[#This Row],[75th]]-AAMC_Raw_Data_for_FY22[[#This Row],[Median]])/25)*10) + AAMC_Raw_Data_for_FY22[[#This Row],[Median]]","v":0},{"$f":"(((AAMC_Raw_Data_for_FY22[[#This Row],[75th]]-AAMC_Raw_Data_for_FY22[[#This Row],[Median]])/25)*15) + AAMC_Raw_Data_for_FY22[[#This Row],[Median]]","v":0},{"$f":"(((AAMC_Raw_Data_for_FY22[[#This Row],[75th]]-AAMC_Raw_Data_for_FY22[[#This Row],[Median]])/25)*20) + AAMC_Raw_Data_for_FY22[[#This Row],[Median]]","v":0},null,{"$f":"(((AAMC_Raw_Data_for_FY22[[#This Row],[75th]]-AAMC_Raw_Data_for_FY22[[#This Row],[Median]])/25)*30) + AAMC_Raw_Data_for_FY22[[#This Row],[Median]]","v":0},{"$f":"(((AAMC_Raw_Data_for_FY22[[#This Row],[75th]]-AAMC_Raw_Data_for_FY22[[#This Row],[Median]])/25)*35) + AAMC_Raw_Data_for_FY22[[#This Row],[Median]]","v":0},{"$f":"(((AAMC_Raw_Data_for_FY22[[#This Row],[75th]]-AAMC_Raw_Data_for_FY22[[#This Row],[Median]])/25)*40) + AAMC_Raw_Data_for_FY22[[#This Row],[Median]]","v":0}]
[{"$f":"AAMC_Raw_Data_for_FY22[[#This Row],[Source]]&AAMC_Raw_Data_for_FY22[[#This Row],[Type]]&AAMC_Raw_Data_for_FY22[[#This Row],[School Subset]]&AAMC_Raw_Data_for_FY22[[#This Row],[Rank]]&AAMC_Raw_Data_for_FY22[[#This Row],[Degree]]&AAMC_Raw_Data_for_FY22[[#This Row],[Department / Specialty]]&\"L\"","v":"AAMCAcademicPublicChairMDDermatology: Mohs SurgeryL"},"Dermatology: Mohs Surgery",1,"AAMC","Academic","Public","Chair","MD","2021-2022",null,{"$f":"(((AAMC_Raw_Data_for_FY22[[#This Row],[Median]]-AAMC_Raw_Data_for_FY22[[#This Row],[25th]])/25)*5) + AAMC_Raw_Data_for_FY22[[#This Row],[25th]]","v":0},{"$f":"(((AAMC_Raw_Data_for_FY22[[#This Row],[Median]]-AAMC_Raw_Data_for_FY22[[#This Row],[25th]])/25)*10) + AAMC_Raw_Data_for_FY22[[#This Row],[25th]]","v":0},{"$f":"(((AAMC_Raw_Data_for_FY22[[#This Row],[Median]]-AAMC_Raw_Data_for_FY22[[#This Row],[25th]])/25)*15) + AAMC_Raw_Data_for_FY22[[#This Row],[25th]]","v":0},{"$f":"(((AAMC_Raw_Data_for_FY22[[#This Row],[Median]]-AAMC_Raw_Data_for_FY22[[#This Row],[25th]])/25)*20) + AAMC_Raw_Data_for_FY22[[#This Row],[25th]]","v":0},null,{"$f":"(((AAMC_Raw_Data_for_FY22[[#This Row],[75th]]-AAMC_Raw_Data_for_FY22[[#This Row],[Median]])/25)*5) + AAMC_Raw_Data_for_FY22[[#This Row],[Median]]","v":0},{"$f":"(((AAMC_Raw_Data_for_FY22[[#This Row],[75th]]-AAMC_Raw_Data_for_FY22[[#This Row],[Median]])/25)*10) + AAMC_Raw_Data_for_FY22[[#This Row],[Median]]","v":0},{"$f":"(((AAMC_Raw_Data_for_FY22[[#This Row],[75th]]-AAMC_Raw_Data_for_FY22[[#This Row],[Median]])/25)*15) + AAMC_Raw_Data_for_FY22[[#This Row],[Median]]","v":0},{"$f":"(((AAMC_Raw_Data_for_FY22[[#This Row],[75th]]-AAMC_Raw_Data_for_FY22[[#This Row],[Median]])/25)*20) + AAMC_Raw_Data_for_FY22[[#This Row],[Median]]","v":0},null,{"$f":"(((AAMC_Raw_Data_for_FY22[[#This Row],[75th]]-AAMC_Raw_Data_for_FY22[[#This Row],[Median]])/25)*30) + AAMC_Raw_Data_for_FY22[[#This Row],[Median]]","v":0},{"$f":"(((AAMC_Raw_Data_for_FY22[[#This Row],[75th]]-AAMC_Raw_Data_for_FY22[[#This Row],[Median]])/25)*35) + AAMC_Raw_Data_for_FY22[[#This Row],[Median]]","v":0},{"$f":"(((AAMC_Raw_Data_for_FY22[[#This Row],[75th]]-AAMC_Raw_Data_for_FY22[[#This Row],[Median]])/25)*40) + AAMC_Raw_Data_for_FY22[[#This Row],[Median]]","v":0}]
[{"$f":"AAMC_Raw_Data_for_FY22[[#This Row],[Source]]&AAMC_Raw_Data_for_FY22[[#This Row],[Type]]&AAMC_Raw_Data_for_FY22[[#This Row],[School Subset]]&AAMC_Raw_Data_for_FY22[[#This Row],[Rank]]&AAMC_Raw_Data_for_FY22[[#This Row],[Degree]]&AAMC_Raw_Data_for_FY22[[#This Row],[Department / Specialty]]&\"L\"","v":"AAMCAcademicPublicInstructorMDFamily Medicine TotalL"},"Family Medicine Total",5,"AAMC","Academic","Public","Instructor","MD","2021-2022",117475,{"$f":"(((AAMC_Raw_Data_for_FY22[[#This Row],[Median]]-AAMC_Raw_Data_for_FY22[[#This Row],[25th]])/25)*5) + AAMC_Raw_Data_for_FY22[[#This Row],[25th]]","v":139328.20000000001},{"$f":"(((AAMC_Raw_Data_for_FY22[[#This Row],[Median]]-AAMC_Raw_Data_for_FY22[[#This Row],[25th]])/25)*10) + AAMC_Raw_Data_for_FY22[[#This Row],[25th]]","v":161181.4},{"$f":"(((AAMC_Raw_Data_for_FY22[[#This Row],[Median]]-AAMC_Raw_Data_for_FY22[[#This Row],[25th]])/25)*15) + AAMC_Raw_Data_for_FY22[[#This Row],[25th]]","v":183034.6},{"$f":"(((AAMC_Raw_Data_for_FY22[[#This Row],[Median]]-AAMC_Raw_Data_for_FY22[[#This Row],[25th]])/25)*20) + AAMC_Raw_Data_for_FY22[[#This Row],[25th]]","v":204887.8},226741,{"$f":"(((AAMC_Raw_Data_for_FY22[[#This Row],[75th]]-AAMC_Raw_Data_for_FY22[[#This Row],[Median]])/25)*5) + AAMC_Raw_Data_for_FY22[[#This Row],[Median]]","v":231437.2},{"$f":"(((AAMC_Raw_Data_for_FY22[[#This Row],[75th]]-AAMC_Raw_Data_for_FY22[[#This Row],[Median]])/25)*10) + AAMC_Raw_Data_for_FY22[[#This Row],[Median]]","v":236133.4},{"$f":"(((AAMC_Raw_Data_for_FY22[[#This Row],[75th]]-AAMC_Raw_Data_for_FY22[[#This Row],[Median]])/25)*15) + AAMC_Raw_Data_for_FY22[[#This Row],[Median]]","v":240829.6},{"$f":"(((AAMC_Raw_Data_for_FY22[[#This Row],[75th]]-AAMC_Raw_Data_for_FY22[[#This Row],[Median]])/25)*20) + AAMC_Raw_Data_for_FY22[[#This Row],[Median]]","v":245525.8},250222,{"$f":"(((AAMC_Raw_Data_for_FY22[[#This Row],[75th]]-AAMC_Raw_Data_for_FY22[[#This Row],[Median]])/25)*30) + AAMC_Raw_Data_for_FY22[[#This Row],[Median]]","v":254918.2},{"$f":"(((AAMC_Raw_Data_for_FY22[[#This Row],[75th]]-AAMC_Raw_Data_for_FY22[[#This Row],[Median]])/25)*35) + AAMC_Raw_Data_for_FY22[[#This Row],[Median]]","v":259614.4},{"$f":"(((AAMC_Raw_Data_for_FY22[[#This Row],[75th]]-AAMC_Raw_Data_for_FY22[[#This Row],[Median]])/25)*40) + AAMC_Raw_Data_for_FY22[[#This Row],[Median]]","v":264310.59999999998}]
[{"$f":"AAMC_Raw_Data_for_FY22[[#This Row],[Source]]&AAMC_Raw_Data_for_FY22[[#This Row],[Type]]&AAMC_Raw_Data_for_FY22[[#This Row],[School Subset]]&AAMC_Raw_Data_for_FY22[[#This Row],[Rank]]&AAMC_Raw_Data_for_FY22[[#This Row],[Degree]]&AAMC_Raw_Data_for_FY22[[#This Row],[Department / Specialty]]&\"L\"","v":"AAMCAcademicPublicAssistantMDFamily Medicine TotalL"},"Family Medicine Total",4,"AAMC","Academic","Public","Assistant","MD","2021-2022",203000,{"$f":"(((AAMC_Raw_Data_for_FY22[[#This Row],[Median]]-AAMC_Raw_Data_for_FY22[[#This Row],[25th]])/25)*5) + AAMC_Raw_Data_for_FY22[[#This Row],[25th]]","v":208075},{"$f":"(((AAMC_Raw_Data_for_FY22[[#This Row],[Median]]-AAMC_Raw_Data_for_FY22[[#This Row],[25th]])/25)*10) + AAMC_Raw_Data_for_FY22[[#This Row],[25th]]","v":213150},{"$f":"(((AAMC_Raw_Data_for_FY22[[#This Row],[Median]]-AAMC_Raw_Data_for_FY22[[#This Row],[25th]])/25)*15) + AAMC_Raw_Data_for_FY22[[#This Row],[25th]]","v":218225},{"$f":"(((AAMC_Raw_Data_for_FY22[[#This Row],[Median]]-AAMC_Raw_Data_for_FY22[[#This Row],[25th]])/25)*20) + AAMC_Raw_Data_for_FY22[[#This Row],[25th]]","v":223300},228375,{"$f":"(((AAMC_Raw_Data_for_FY22[[#This Row],[75th]]-AAMC_Raw_Data_for_FY22[[#This Row],[Median]])/25)*5) + AAMC_Raw_Data_for_FY22[[#This Row],[Median]]","v":233897.4},{"$f":"(((AAMC_Raw_Data_for_FY22[[#This Row],[75th]]-AAMC_Raw_Data_for_FY22[[#This Row],[Median]])/25)*10) + AAMC_Raw_Data_for_FY22[[#This Row],[Median]]","v":239419.8},{"$f":"(((AAMC_Raw_Data_for_FY22[[#This Row],[75th]]-AAMC_Raw_Data_for_FY22[[#This Row],[Median]])/25)*15) + AAMC_Raw_Data_for_FY22[[#This Row],[Median]]","v":244942.2},{"$f":"(((AAMC_Raw_Data_for_FY22[[#This Row],[75th]]-AAMC_Raw_Data_for_FY22[[#This Row],[Median]])/25)*20) + AAMC_Raw_Data_for_FY22[[#This Row],[Median]]","v":250464.6},255987,{"$f":"(((AAMC_Raw_Data_for_FY22[[#This Row],[75th]]-AAMC_Raw_Data_for_FY22[[#This Row],[Median]])/25)*30) + AAMC_Raw_Data_for_FY22[[#This Row],[Median]]","v":261509.4},{"$f":"(((AAMC_Raw_Data_for_FY22[[#This Row],[75th]]-AAMC_Raw_Data_for_FY22[[#This Row],[Median]])/25)*35) + AAMC_Raw_Data_for_FY22[[#This Row],[Median]]","v":267031.8},{"$f":"(((AAMC_Raw_Data_for_FY22[[#This Row],[75th]]-AAMC_Raw_Data_for_FY22[[#This Row],[Median]])/25)*40) + AAMC_Raw_Data_for_FY22[[#This Row],[Median]]","v":272554.2}]
[{"$f":"AAMC_Raw_Data_for_FY22[[#This Row],[Source]]&AAMC_Raw_Data_for_FY22[[#This Row],[Type]]&AAMC_Raw_Data_for_FY22[[#This Row],[School Subset]]&AAMC_Raw_Data_for_FY22[[#This Row],[Rank]]&AAMC_Raw_Data_for_FY22[[#This Row],[Degree]]&AAMC_Raw_Data_for_FY22[[#This Row],[Department / Specialty]]&\"L\"","v":"AAMCAcademicPublicAssociateMDFamily Medicine TotalL"},"Family Medicine Total",3,"AAMC","Academic","Public","Associate","MD","2021-2022",218029,{"$f":"(((AAMC_Raw_Data_for_FY22[[#This Row],[Median]]-AAMC_Raw_Data_for_FY22[[#This Row],[25th]])/25)*5) + AAMC_Raw_Data_for_FY22[[#This Row],[25th]]","v":223223.2},{"$f":"(((AAMC_Raw_Data_for_FY22[[#This Row],[Median]]-AAMC_Raw_Data_for_FY22[[#This Row],[25th]])/25)*10) + AAMC_Raw_Data_for_FY22[[#This Row],[25th]]","v":228417.4},{"$f":"(((AAMC_Raw_Data_for_FY22[[#This Row],[Median]]-AAMC_Raw_Data_for_FY22[[#This Row],[25th]])/25)*15) + AAMC_Raw_Data_for_FY22[[#This Row],[25th]]","v":233611.6},{"$f":"(((AAMC_Raw_Data_for_FY22[[#This Row],[Median]]-AAMC_Raw_Data_for_FY22[[#This Row],[25th]])/25)*20) + AAMC_Raw_Data_for_FY22[[#This Row],[25th]]","v":238805.8},244000,{"$f":"(((AAMC_Raw_Data_for_FY22[[#This Row],[75th]]-AAMC_Raw_Data_for_FY22[[#This Row],[Median]])/25)*5) + AAMC_Raw_Data_for_FY22[[#This Row],[Median]]","v":250329},{"$f":"(((AAMC_Raw_Data_for_FY22[[#This Row],[75th]]-AAMC_Raw_Data_for_FY22[[#This Row],[Median]])/25)*10) + AAMC_Raw_Data_for_FY22[[#This Row],[Median]]","v":256658},{"$f":"(((AAMC_Raw_Data_for_FY22[[#This Row],[75th]]-AAMC_Raw_Data_for_FY22[[#This Row],[Median]])/25)*15) + AAMC_Raw_Data_for_FY22[[#This Row],[Median]]","v":262987},{"$f":"(((AAMC_Raw_Data_for_FY22[[#This Row],[75th]]-AAMC_Raw_Data_for_FY22[[#This Row],[Median]])/25)*20) + AAMC_Raw_Data_for_FY22[[#This Row],[Median]]","v":269316},275645,{"$f":"(((AAMC_Raw_Data_for_FY22[[#This Row],[75th]]-AAMC_Raw_Data_for_FY22[[#This Row],[Median]])/25)*30) + AAMC_Raw_Data_for_FY22[[#This Row],[Median]]","v":281974},{"$f":"(((AAMC_Raw_Data_for_FY22[[#This Row],[75th]]-AAMC_Raw_Data_for_FY22[[#This Row],[Median]])/25)*35) + AAMC_Raw_Data_for_FY22[[#This Row],[Median]]","v":288303},{"$f":"(((AAMC_Raw_Data_for_FY22[[#This Row],[75th]]-AAMC_Raw_Data_for_FY22[[#This Row],[Median]])/25)*40) + AAMC_Raw_Data_for_FY22[[#This Row],[Median]]","v":294632}]
[{"$f":"AAMC_Raw_Data_for_FY22[[#This Row],[Source]]&AAMC_Raw_Data_for_FY22[[#This Row],[Type]]&AAMC_Raw_Data_for_FY22[[#This Row],[School Subset]]&AAMC_Raw_Data_for_FY22[[#This Row],[Rank]]&AAMC_Raw_Data_for_FY22[[#This Row],[Degree]]&AAMC_Raw_Data_for_FY22[[#This Row],[Department / Specialty]]&\"L\"","v":"AAMCAcademicPublicProfessorMDFamily Medicine TotalL"},"Family Medicine Total",2,"AAMC","Academic","Public","Professor","MD","2021-2022",236045,{"$f":"(((AAMC_Raw_Data_for_FY22[[#This Row],[Median]]-AAMC_Raw_Data_for_FY22[[#This Row],[25th]])/25)*5) + AAMC_Raw_Data_for_FY22[[#This Row],[25th]]","v":240991.2},{"$f":"(((AAMC_Raw_Data_for_FY22[[#This Row],[Median]]-AAMC_Raw_Data_for_FY22[[#This Row],[25th]])/25)*10) + AAMC_Raw_Data_for_FY22[[#This Row],[25th]]","v":245937.4},{"$f":"(((AAMC_Raw_Data_for_FY22[[#This Row],[Median]]-AAMC_Raw_Data_for_FY22[[#This Row],[25th]])/25)*15) + AAMC_Raw_Data_for_FY22[[#This Row],[25th]]","v":250883.6},{"$f":"(((AAMC_Raw_Data_for_FY22[[#This Row],[Median]]-AAMC_Raw_Data_for_FY22[[#This Row],[25th]])/25)*20) + AAMC_Raw_Data_for_FY22[[#This Row],[25th]]","v":255829.8},260776,{"$f":"(((AAMC_Raw_Data_for_FY22[[#This Row],[75th]]-AAMC_Raw_Data_for_FY22[[#This Row],[Median]])/25)*5) + AAMC_Raw_Data_for_FY22[[#This Row],[Median]]","v":268490.2},{"$f":"(((AAMC_Raw_Data_for_FY22[[#This Row],[75th]]-AAMC_Raw_Data_for_FY22[[#This Row],[Median]])/25)*10) + AAMC_Raw_Data_for_FY22[[#This Row],[Median]]","v":276204.40000000002},{"$f":"(((AAMC_Raw_Data_for_FY22[[#This Row],[75th]]-AAMC_Raw_Data_for_FY22[[#This Row],[Median]])/25)*15) + AAMC_Raw_Data_for_FY22[[#This Row],[Median]]","v":283918.59999999998},{"$f":"(((AAMC_Raw_Data_for_FY22[[#This Row],[75th]]-AAMC_Raw_Data_for_FY22[[#This Row],[Median]])/25)*20) + AAMC_Raw_Data_for_FY22[[#This Row],[Median]]","v":291632.8},299347,{"$f":"(((AAMC_Raw_Data_for_FY22[[#This Row],[75th]]-AAMC_Raw_Data_for_FY22[[#This Row],[Median]])/25)*30) + AAMC_Raw_Data_for_FY22[[#This Row],[Median]]","v":307061.2},{"$f":"(((AAMC_Raw_Data_for_FY22[[#This Row],[75th]]-AAMC_Raw_Data_for_FY22[[#This Row],[Median]])/25)*35) + AAMC_Raw_Data_for_FY22[[#This Row],[Median]]","v":314775.40000000002},{"$f":"(((AAMC_Raw_Data_for_FY22[[#This Row],[75th]]-AAMC_Raw_Data_for_FY22[[#This Row],[Median]])/25)*40) + AAMC_Raw_Data_for_FY22[[#This Row],[Median]]","v":322489.59999999998}]
[{"$f":"AAMC_Raw_Data_for_FY22[[#This Row],[Source]]&AAMC_Raw_Data_for_FY22[[#This Row],[Type]]&AAMC_Raw_Data_for_FY22[[#This Row],[School Subset]]&AAMC_Raw_Data_for_FY22[[#This Row],[Rank]]&AAMC_Raw_Data_for_FY22[[#This Row],[Degree]]&AAMC_Raw_Data_for_FY22[[#This Row],[Department / Specialty]]&\"L\"","v":"AAMCAcademicPublicChiefMDFamily Medicine TotalL"},"Family Medicine Total",6,"AAMC","Academic","Public","Chief","MD","2021-2022",253300,{"$f":"(((AAMC_Raw_Data_for_FY22[[#This Row],[Median]]-AAMC_Raw_Data_for_FY22[[#This Row],[25th]])/25)*5) + AAMC_Raw_Data_for_FY22[[#This Row],[25th]]","v":256628.8},{"$f":"(((AAMC_Raw_Data_for_FY22[[#This Row],[Median]]-AAMC_Raw_Data_for_FY22[[#This Row],[25th]])/25)*10) + AAMC_Raw_Data_for_FY22[[#This Row],[25th]]","v":259957.6},{"$f":"(((AAMC_Raw_Data_for_FY22[[#This Row],[Median]]-AAMC_Raw_Data_for_FY22[[#This Row],[25th]])/25)*15) + AAMC_Raw_Data_for_FY22[[#This Row],[25th]]","v":263286.40000000002},{"$f":"(((AAMC_Raw_Data_for_FY22[[#This Row],[Median]]-AAMC_Raw_Data_for_FY22[[#This Row],[25th]])/25)*20) + AAMC_Raw_Data_for_FY22[[#This Row],[25th]]","v":266615.2},269944,{"$f":"(((AAMC_Raw_Data_for_FY22[[#This Row],[75th]]-AAMC_Raw_Data_for_FY22[[#This Row],[Median]])/25)*5) + AAMC_Raw_Data_for_FY22[[#This Row],[Median]]","v":279192.2},{"$f":"(((AAMC_Raw_Data_for_FY22[[#This Row],[75th]]-AAMC_Raw_Data_for_FY22[[#This Row],[Median]])/25)*10) + AAMC_Raw_Data_for_FY22[[#This Row],[Median]]","v":288440.40000000002},{"$f":"(((AAMC_Raw_Data_for_FY22[[#This Row],[75th]]-AAMC_Raw_Data_for_FY22[[#This Row],[Median]])/25)*15) + AAMC_Raw_Data_for_FY22[[#This Row],[Median]]","v":297688.59999999998},{"$f":"(((AAMC_Raw_Data_for_FY22[[#This Row],[75th]]-AAMC_Raw_Data_for_FY22[[#This Row],[Median]])/25)*20) + AAMC_Raw_Data_for_FY22[[#This Row],[Median]]","v":306936.8},316185,{"$f":"(((AAMC_Raw_Data_for_FY22[[#This Row],[75th]]-AAMC_Raw_Data_for_FY22[[#This Row],[Median]])/25)*30) + AAMC_Raw_Data_for_FY22[[#This Row],[Median]]","v":325433.2},{"$f":"(((AAMC_Raw_Data_for_FY22[[#This Row],[75th]]-AAMC_Raw_Data_for_FY22[[#This Row],[Median]])/25)*35) + AAMC_Raw_Data_for_FY22[[#This Row],[Median]]","v":334681.40000000002},{"$f":"(((AAMC_Raw_Data_for_FY22[[#This Row],[75th]]-AAMC_Raw_Data_for_FY22[[#This Row],[Median]])/25)*40) + AAMC_Raw_Data_for_FY22[[#This Row],[Median]]","v":343929.59999999998}]
[{"$f":"AAMC_Raw_Data_for_FY22[[#This Row],[Source]]&AAMC_Raw_Data_for_FY22[[#This Row],[Type]]&AAMC_Raw_Data_for_FY22[[#This Row],[School Subset]]&AAMC_Raw_Data_for_FY22[[#This Row],[Rank]]&AAMC_Raw_Data_for_FY22[[#This Row],[Degree]]&AAMC_Raw_Data_for_FY22[[#This Row],[Department / Specialty]]&\"L\"","v":"AAMCAcademicPublicChairMDFamily Medicine TotalL"},"Family Medicine Total",1,"AAMC","Academic","Public","Chair","MD","2021-2022",338224,{"$f":"(((AAMC_Raw_Data_for_FY22[[#This Row],[Median]]-AAMC_Raw_Data_for_FY22[[#This Row],[25th]])/25)*5) + AAMC_Raw_Data_for_FY22[[#This Row],[25th]]","v":352508},{"$f":"(((AAMC_Raw_Data_for_FY22[[#This Row],[Median]]-AAMC_Raw_Data_for_FY22[[#This Row],[25th]])/25)*10) + AAMC_Raw_Data_for_FY22[[#This Row],[25th]]","v":366792},{"$f":"(((AAMC_Raw_Data_for_FY22[[#This Row],[Median]]-AAMC_Raw_Data_for_FY22[[#This Row],[25th]])/25)*15) + AAMC_Raw_Data_for_FY22[[#This Row],[25th]]","v":381076},{"$f":"(((AAMC_Raw_Data_for_FY22[[#This Row],[Median]]-AAMC_Raw_Data_for_FY22[[#This Row],[25th]])/25)*20) + AAMC_Raw_Data_for_FY22[[#This Row],[25th]]","v":395360},409644,{"$f":"(((AAMC_Raw_Data_for_FY22[[#This Row],[75th]]-AAMC_Raw_Data_for_FY22[[#This Row],[Median]])/25)*5) + AAMC_Raw_Data_for_FY22[[#This Row],[Median]]","v":413506},{"$f":"(((AAMC_Raw_Data_for_FY22[[#This Row],[75th]]-AAMC_Raw_Data_for_FY22[[#This Row],[Median]])/25)*10) + AAMC_Raw_Data_for_FY22[[#This Row],[Median]]","v":417368},{"$f":"(((AAMC_Raw_Data_for_FY22[[#This Row],[75th]]-AAMC_Raw_Data_for_FY22[[#This Row],[Median]])/25)*15) + AAMC_Raw_Data_for_FY22[[#This Row],[Median]]","v":421230},{"$f":"(((AAMC_Raw_Data_for_FY22[[#This Row],[75th]]-AAMC_Raw_Data_for_FY22[[#This Row],[Median]])/25)*20) + AAMC_Raw_Data_for_FY22[[#This Row],[Median]]","v":425092},428954,{"$f":"(((AAMC_Raw_Data_for_FY22[[#This Row],[75th]]-AAMC_Raw_Data_for_FY22[[#This Row],[Median]])/25)*30) + AAMC_Raw_Data_for_FY22[[#This Row],[Median]]","v":432816},{"$f":"(((AAMC_Raw_Data_for_FY22[[#This Row],[75th]]-AAMC_Raw_Data_for_FY22[[#This Row],[Median]])/25)*35) + AAMC_Raw_Data_for_FY22[[#This Row],[Median]]","v":436678},{"$f":"(((AAMC_Raw_Data_for_FY22[[#This Row],[75th]]-AAMC_Raw_Data_for_FY22[[#This Row],[Median]])/25)*40) + AAMC_Raw_Data_for_FY22[[#This Row],[Median]]","v":440540}]
[{"$f":"AAMC_Raw_Data_for_FY22[[#This Row],[Source]]&AAMC_Raw_Data_for_FY22[[#This Row],[Type]]&AAMC_Raw_Data_for_FY22[[#This Row],[School Subset]]&AAMC_Raw_Data_for_FY22[[#This Row],[Rank]]&AAMC_Raw_Data_for_FY22[[#This Row],[Degree]]&AAMC_Raw_Data_for_FY22[[#This Row],[Department / Specialty]]&\"L\"","v":"AAMCAcademicPublicInstructorMDFamily Medicine: GeneralL"},"Family Medicine: General",5,"AAMC","Academic","Public","Instructor","MD","2021-2022",104025,{"$f":"(((AAMC_Raw_Data_for_FY22[[#This Row],[Median]]-AAMC_Raw_Data_for_FY22[[#This Row],[25th]])/25)*5) + AAMC_Raw_Data_for_FY22[[#This Row],[25th]]","v":127845.2},{"$f":"(((AAMC_Raw_Data_for_FY22[[#This Row],[Median]]-AAMC_Raw_Data_for_FY22[[#This Row],[25th]])/25)*10) + AAMC_Raw_Data_for_FY22[[#This Row],[25th]]","v":151665.4},{"$f":"(((AAMC_Raw_Data_for_FY22[[#This Row],[Median]]-AAMC_Raw_Data_for_FY22[[#This Row],[25th]])/25)*15) + AAMC_Raw_Data_for_FY22[[#This Row],[25th]]","v":175485.6},{"$f":"(((AAMC_Raw_Data_for_FY22[[#This Row],[Median]]-AAMC_Raw_Data_for_FY22[[#This Row],[25th]])/25)*20) + AAMC_Raw_Data_for_FY22[[#This Row],[25th]]","v":199305.8},223126,{"$f":"(((AAMC_Raw_Data_for_FY22[[#This Row],[75th]]-AAMC_Raw_Data_for_FY22[[#This Row],[Median]])/25)*5) + AAMC_Raw_Data_for_FY22[[#This Row],[Median]]","v":228088.6},{"$f":"(((AAMC_Raw_Data_for_FY22[[#This Row],[75th]]-AAMC_Raw_Data_for_FY22[[#This Row],[Median]])/25)*10) + AAMC_Raw_Data_for_FY22[[#This Row],[Median]]","v":233051.2},{"$f":"(((AAMC_Raw_Data_for_FY22[[#This Row],[75th]]-AAMC_Raw_Data_for_FY22[[#This Row],[Median]])/25)*15) + AAMC_Raw_Data_for_FY22[[#This Row],[Median]]","v":238013.8},{"$f":"(((AAMC_Raw_Data_for_FY22[[#This Row],[75th]]-AAMC_Raw_Data_for_FY22[[#This Row],[Median]])/25)*20) + AAMC_Raw_Data_for_FY22[[#This Row],[Median]]","v":242976.4},247939,{"$f":"(((AAMC_Raw_Data_for_FY22[[#This Row],[75th]]-AAMC_Raw_Data_for_FY22[[#This Row],[Median]])/25)*30) + AAMC_Raw_Data_for_FY22[[#This Row],[Median]]","v":252901.6},{"$f":"(((AAMC_Raw_Data_for_FY22[[#This Row],[75th]]-AAMC_Raw_Data_for_FY22[[#This Row],[Median]])/25)*35) + AAMC_Raw_Data_for_FY22[[#This Row],[Median]]","v":257864.2},{"$f":"(((AAMC_Raw_Data_for_FY22[[#This Row],[75th]]-AAMC_Raw_Data_for_FY22[[#This Row],[Median]])/25)*40) + AAMC_Raw_Data_for_FY22[[#This Row],[Median]]","v":262826.8}]
[{"$f":"AAMC_Raw_Data_for_FY22[[#This Row],[Source]]&AAMC_Raw_Data_for_FY22[[#This Row],[Type]]&AAMC_Raw_Data_for_FY22[[#This Row],[School Subset]]&AAMC_Raw_Data_for_FY22[[#This Row],[Rank]]&AAMC_Raw_Data_for_FY22[[#This Row],[Degree]]&AAMC_Raw_Data_for_FY22[[#This Row],[Department / Specialty]]&\"L\"","v":"AAMCAcademicPublicAssistantMDFamily Medicine: GeneralL"},"Family Medicine: General",4,"AAMC","Academic","Public","Assistant","MD","2021-2022",202910,{"$f":"(((AAMC_Raw_Data_for_FY22[[#This Row],[Median]]-AAMC_Raw_Data_for_FY22[[#This Row],[25th]])/25)*5) + AAMC_Raw_Data_for_FY22[[#This Row],[25th]]","v":207718.6},{"$f":"(((AAMC_Raw_Data_for_FY22[[#This Row],[Median]]-AAMC_Raw_Data_for_FY22[[#This Row],[25th]])/25)*10) + AAMC_Raw_Data_for_FY22[[#This Row],[25th]]","v":212527.2},{"$f":"(((AAMC_Raw_Data_for_FY22[[#This Row],[Median]]-AAMC_Raw_Data_for_FY22[[#This Row],[25th]])/25)*15) + AAMC_Raw_Data_for_FY22[[#This Row],[25th]]","v":217335.8},{"$f":"(((AAMC_Raw_Data_for_FY22[[#This Row],[Median]]-AAMC_Raw_Data_for_FY22[[#This Row],[25th]])/25)*20) + AAMC_Raw_Data_for_FY22[[#This Row],[25th]]","v":222144.4},226953,{"$f":"(((AAMC_Raw_Data_for_FY22[[#This Row],[75th]]-AAMC_Raw_Data_for_FY22[[#This Row],[Median]])/25)*5) + AAMC_Raw_Data_for_FY22[[#This Row],[Median]]","v":232292.2},{"$f":"(((AAMC_Raw_Data_for_FY22[[#This Row],[75th]]-AAMC_Raw_Data_for_FY22[[#This Row],[Median]])/25)*10) + AAMC_Raw_Data_for_FY22[[#This Row],[Median]]","v":237631.4},{"$f":"(((AAMC_Raw_Data_for_FY22[[#This Row],[75th]]-AAMC_Raw_Data_for_FY22[[#This Row],[Median]])/25)*15) + AAMC_Raw_Data_for_FY22[[#This Row],[Median]]","v":242970.6},{"$f":"(((AAMC_Raw_Data_for_FY22[[#This Row],[75th]]-AAMC_Raw_Data_for_FY22[[#This Row],[Median]])/25)*20) + AAMC_Raw_Data_for_FY22[[#This Row],[Median]]","v":248309.8},253649,{"$f":"(((AAMC_Raw_Data_for_FY22[[#This Row],[75th]]-AAMC_Raw_Data_for_FY22[[#This Row],[Median]])/25)*30) + AAMC_Raw_Data_for_FY22[[#This Row],[Median]]","v":258988.2},{"$f":"(((AAMC_Raw_Data_for_FY22[[#This Row],[75th]]-AAMC_Raw_Data_for_FY22[[#This Row],[Median]])/25)*35) + AAMC_Raw_Data_for_FY22[[#This Row],[Median]]","v":264327.40000000002},{"$f":"(((AAMC_Raw_Data_for_FY22[[#This Row],[75th]]-AAMC_Raw_Data_for_FY22[[#This Row],[Median]])/25)*40) + AAMC_Raw_Data_for_FY22[[#This Row],[Median]]","v":269666.59999999998}]
[{"$f":"AAMC_Raw_Data_for_FY22[[#This Row],[Source]]&AAMC_Raw_Data_for_FY22[[#This Row],[Type]]&AAMC_Raw_Data_for_FY22[[#This Row],[School Subset]]&AAMC_Raw_Data_for_FY22[[#This Row],[Rank]]&AAMC_Raw_Data_for_FY22[[#This Row],[Degree]]&AAMC_Raw_Data_for_FY22[[#This Row],[Department / Specialty]]&\"L\"","v":"AAMCAcademicPublicAssociateMDFamily Medicine: GeneralL"},"Family Medicine: General",3,"AAMC","Academic","Public","Associate","MD","2021-2022",217145,{"$f":"(((AAMC_Raw_Data_for_FY22[[#This Row],[Median]]-AAMC_Raw_Data_for_FY22[[#This Row],[25th]])/25)*5) + AAMC_Raw_Data_for_FY22[[#This Row],[25th]]","v":222204.4},{"$f":"(((AAMC_Raw_Data_for_FY22[[#This Row],[Median]]-AAMC_Raw_Data_for_FY22[[#This Row],[25th]])/25)*10) + AAMC_Raw_Data_for_FY22[[#This Row],[25th]]","v":227263.8},{"$f":"(((AAMC_Raw_Data_for_FY22[[#This Row],[Median]]-AAMC_Raw_Data_for_FY22[[#This Row],[25th]])/25)*15) + AAMC_Raw_Data_for_FY22[[#This Row],[25th]]","v":232323.20000000001},{"$f":"(((AAMC_Raw_Data_for_FY22[[#This Row],[Median]]-AAMC_Raw_Data_for_FY22[[#This Row],[25th]])/25)*20) + AAMC_Raw_Data_for_FY22[[#This Row],[25th]]","v":237382.6},242442,{"$f":"(((AAMC_Raw_Data_for_FY22[[#This Row],[75th]]-AAMC_Raw_Data_for_FY22[[#This Row],[Median]])/25)*5) + AAMC_Raw_Data_for_FY22[[#This Row],[Median]]","v":248212.6},{"$f":"(((AAMC_Raw_Data_for_FY22[[#This Row],[75th]]-AAMC_Raw_Data_for_FY22[[#This Row],[Median]])/25)*10) + AAMC_Raw_Data_for_FY22[[#This Row],[Median]]","v":253983.2},{"$f":"(((AAMC_Raw_Data_for_FY22[[#This Row],[75th]]-AAMC_Raw_Data_for_FY22[[#This Row],[Median]])/25)*15) + AAMC_Raw_Data_for_FY22[[#This Row],[Median]]","v":259753.8},{"$f":"(((AAMC_Raw_Data_for_FY22[[#This Row],[75th]]-AAMC_Raw_Data_for_FY22[[#This Row],[Median]])/25)*20) + AAMC_Raw_Data_for_FY22[[#This Row],[Median]]","v":265524.40000000002},271295,{"$f":"(((AAMC_Raw_Data_for_FY22[[#This Row],[75th]]-AAMC_Raw_Data_for_FY22[[#This Row],[Median]])/25)*30) + AAMC_Raw_Data_for_FY22[[#This Row],[Median]]","v":277065.59999999998},{"$f":"(((AAMC_Raw_Data_for_FY22[[#This Row],[75th]]-AAMC_Raw_Data_for_FY22[[#This Row],[Median]])/25)*35) + AAMC_Raw_Data_for_FY22[[#This Row],[Median]]","v":282836.2},{"$f":"(((AAMC_Raw_Data_for_FY22[[#This Row],[75th]]-AAMC_Raw_Data_for_FY22[[#This Row],[Median]])/25)*40) + AAMC_Raw_Data_for_FY22[[#This Row],[Median]]","v":288606.8}]
[{"$f":"AAMC_Raw_Data_for_FY22[[#This Row],[Source]]&AAMC_Raw_Data_for_FY22[[#This Row],[Type]]&AAMC_Raw_Data_for_FY22[[#This Row],[School Subset]]&AAMC_Raw_Data_for_FY22[[#This Row],[Rank]]&AAMC_Raw_Data_for_FY22[[#This Row],[Degree]]&AAMC_Raw_Data_for_FY22[[#This Row],[Department / Specialty]]&\"L\"","v":"AAMCAcademicPublicProfessorMDFamily Medicine: GeneralL"},"Family Medicine: General",2,"AAMC","Academic","Public","Professor","MD","2021-2022",235559,{"$f":"(((AAMC_Raw_Data_for_FY22[[#This Row],[Median]]-AAMC_Raw_Data_for_FY22[[#This Row],[25th]])/25)*5) + AAMC_Raw_Data_for_FY22[[#This Row],[25th]]","v":240507.4},{"$f":"(((AAMC_Raw_Data_for_FY22[[#This Row],[Median]]-AAMC_Raw_Data_for_FY22[[#This Row],[25th]])/25)*10) + AAMC_Raw_Data_for_FY22[[#This Row],[25th]]","v":245455.8},{"$f":"(((AAMC_Raw_Data_for_FY22[[#This Row],[Median]]-AAMC_Raw_Data_for_FY22[[#This Row],[25th]])/25)*15) + AAMC_Raw_Data_for_FY22[[#This Row],[25th]]","v":250404.2},{"$f":"(((AAMC_Raw_Data_for_FY22[[#This Row],[Median]]-AAMC_Raw_Data_for_FY22[[#This Row],[25th]])/25)*20) + AAMC_Raw_Data_for_FY22[[#This Row],[25th]]","v":255352.6},260301,{"$f":"(((AAMC_Raw_Data_for_FY22[[#This Row],[75th]]-AAMC_Raw_Data_for_FY22[[#This Row],[Median]])/25)*5) + AAMC_Raw_Data_for_FY22[[#This Row],[Median]]","v":266970.2},{"$f":"(((AAMC_Raw_Data_for_FY22[[#This Row],[75th]]-AAMC_Raw_Data_for_FY22[[#This Row],[Median]])/25)*10) + AAMC_Raw_Data_for_FY22[[#This Row],[Median]]","v":273639.40000000002},{"$f":"(((AAMC_Raw_Data_for_FY22[[#This Row],[75th]]-AAMC_Raw_Data_for_FY22[[#This Row],[Median]])/25)*15) + AAMC_Raw_Data_for_FY22[[#This Row],[Median]]","v":280308.59999999998},{"$f":"(((AAMC_Raw_Data_for_FY22[[#This Row],[75th]]-AAMC_Raw_Data_for_FY22[[#This Row],[Median]])/25)*20) + AAMC_Raw_Data_for_FY22[[#This Row],[Median]]","v":286977.8},293647,{"$f":"(((AAMC_Raw_Data_for_FY22[[#This Row],[75th]]-AAMC_Raw_Data_for_FY22[[#This Row],[Median]])/25)*30) + AAMC_Raw_Data_for_FY22[[#This Row],[Median]]","v":300316.2},{"$f":"(((AAMC_Raw_Data_for_FY22[[#This Row],[75th]]-AAMC_Raw_Data_for_FY22[[#This Row],[Median]])/25)*35) + AAMC_Raw_Data_for_FY22[[#This Row],[Median]]","v":306985.40000000002},{"$f":"(((AAMC_Raw_Data_for_FY22[[#This Row],[75th]]-AAMC_Raw_Data_for_FY22[[#This Row],[Median]])/25)*40) + AAMC_Raw_Data_for_FY22[[#This Row],[Median]]","v":313654.59999999998}]
[{"$f":"AAMC_Raw_Data_for_FY22[[#This Row],[Source]]&AAMC_Raw_Data_for_FY22[[#This Row],[Type]]&AAMC_Raw_Data_for_FY22[[#This Row],[School Subset]]&AAMC_Raw_Data_for_FY22[[#This Row],[Rank]]&AAMC_Raw_Data_for_FY22[[#This Row],[Degree]]&AAMC_Raw_Data_for_FY22[[#This Row],[Department / Specialty]]&\"L\"","v":"AAMCAcademicPublicChiefMDFamily Medicine: GeneralL"},"Family Medicine: General",6,"AAMC","Academic","Public","Chief","MD","2021-2022",255799,{"$f":"(((AAMC_Raw_Data_for_FY22[[#This Row],[Median]]-AAMC_Raw_Data_for_FY22[[#This Row],[25th]])/25)*5) + AAMC_Raw_Data_for_FY22[[#This Row],[25th]]","v":258643.8},{"$f":"(((AAMC_Raw_Data_for_FY22[[#This Row],[Median]]-AAMC_Raw_Data_for_FY22[[#This Row],[25th]])/25)*10) + AAMC_Raw_Data_for_FY22[[#This Row],[25th]]","v":261488.6},{"$f":"(((AAMC_Raw_Data_for_FY22[[#This Row],[Median]]-AAMC_Raw_Data_for_FY22[[#This Row],[25th]])/25)*15) + AAMC_Raw_Data_for_FY22[[#This Row],[25th]]","v":264333.40000000002},{"$f":"(((AAMC_Raw_Data_for_FY22[[#This Row],[Median]]-AAMC_Raw_Data_for_FY22[[#This Row],[25th]])/25)*20) + AAMC_Raw_Data_for_FY22[[#This Row],[25th]]","v":267178.2},270023,{"$f":"(((AAMC_Raw_Data_for_FY22[[#This Row],[75th]]-AAMC_Raw_Data_for_FY22[[#This Row],[Median]])/25)*5) + AAMC_Raw_Data_for_FY22[[#This Row],[Median]]","v":275327.59999999998},{"$f":"(((AAMC_Raw_Data_for_FY22[[#This Row],[75th]]-AAMC_Raw_Data_for_FY22[[#This Row],[Median]])/25)*10) + AAMC_Raw_Data_for_FY22[[#This Row],[Median]]","v":280632.2},{"$f":"(((AAMC_Raw_Data_for_FY22[[#This Row],[75th]]-AAMC_Raw_Data_for_FY22[[#This Row],[Median]])/25)*15) + AAMC_Raw_Data_for_FY22[[#This Row],[Median]]","v":285936.8},{"$f":"(((AAMC_Raw_Data_for_FY22[[#This Row],[75th]]-AAMC_Raw_Data_for_FY22[[#This Row],[Median]])/25)*20) + AAMC_Raw_Data_for_FY22[[#This Row],[Median]]","v":291241.40000000002},296546,{"$f":"(((AAMC_Raw_Data_for_FY22[[#This Row],[75th]]-AAMC_Raw_Data_for_FY22[[#This Row],[Median]])/25)*30) + AAMC_Raw_Data_for_FY22[[#This Row],[Median]]","v":301850.59999999998},{"$f":"(((AAMC_Raw_Data_for_FY22[[#This Row],[75th]]-AAMC_Raw_Data_for_FY22[[#This Row],[Median]])/25)*35) + AAMC_Raw_Data_for_FY22[[#This Row],[Median]]","v":307155.20000000001},{"$f":"(((AAMC_Raw_Data_for_FY22[[#This Row],[75th]]-AAMC_Raw_Data_for_FY22[[#This Row],[Median]])/25)*40) + AAMC_Raw_Data_for_FY22[[#This Row],[Median]]","v":312459.8}]
[{"$f":"AAMC_Raw_Data_for_FY22[[#This Row],[Source]]&AAMC_Raw_Data_for_FY22[[#This Row],[Type]]&AAMC_Raw_Data_for_FY22[[#This Row],[School Subset]]&AAMC_Raw_Data_for_FY22[[#This Row],[Rank]]&AAMC_Raw_Data_for_FY22[[#This Row],[Degree]]&AAMC_Raw_Data_for_FY22[[#This Row],[Department / Specialty]]&\"L\"","v":"AAMCAcademicPublicChairMDFamily Medicine: GeneralL"},"Family Medicine: General",1,"AAMC","Academic","Public","Chair","MD","2021-2022",328078,{"$f":"(((AAMC_Raw_Data_for_FY22[[#This Row],[Median]]-AAMC_Raw_Data_for_FY22[[#This Row],[25th]])/25)*5) + AAMC_Raw_Data_for_FY22[[#This Row],[25th]]","v":341821},{"$f":"(((AAMC_Raw_Data_for_FY22[[#This Row],[Median]]-AAMC_Raw_Data_for_FY22[[#This Row],[25th]])/25)*10) + AAMC_Raw_Data_for_FY22[[#This Row],[25th]]","v":355564},{"$f":"(((AAMC_Raw_Data_for_FY22[[#This Row],[Median]]-AAMC_Raw_Data_for_FY22[[#This Row],[25th]])/25)*15) + AAMC_Raw_Data_for_FY22[[#This Row],[25th]]","v":369307},{"$f":"(((AAMC_Raw_Data_for_FY22[[#This Row],[Median]]-AAMC_Raw_Data_for_FY22[[#This Row],[25th]])/25)*20) + AAMC_Raw_Data_for_FY22[[#This Row],[25th]]","v":383050},396793,{"$f":"(((AAMC_Raw_Data_for_FY22[[#This Row],[75th]]-AAMC_Raw_Data_for_FY22[[#This Row],[Median]])/25)*5) + AAMC_Raw_Data_for_FY22[[#This Row],[Median]]","v":402767},{"$f":"(((AAMC_Raw_Data_for_FY22[[#This Row],[75th]]-AAMC_Raw_Data_for_FY22[[#This Row],[Median]])/25)*10) + AAMC_Raw_Data_for_FY22[[#This Row],[Median]]","v":408741},{"$f":"(((AAMC_Raw_Data_for_FY22[[#This Row],[75th]]-AAMC_Raw_Data_for_FY22[[#This Row],[Median]])/25)*15) + AAMC_Raw_Data_for_FY22[[#This Row],[Median]]","v":414715},{"$f":"(((AAMC_Raw_Data_for_FY22[[#This Row],[75th]]-AAMC_Raw_Data_for_FY22[[#This Row],[Median]])/25)*20) + AAMC_Raw_Data_for_FY22[[#This Row],[Median]]","v":420689},426663,{"$f":"(((AAMC_Raw_Data_for_FY22[[#This Row],[75th]]-AAMC_Raw_Data_for_FY22[[#This Row],[Median]])/25)*30) + AAMC_Raw_Data_for_FY22[[#This Row],[Median]]","v":432637},{"$f":"(((AAMC_Raw_Data_for_FY22[[#This Row],[75th]]-AAMC_Raw_Data_for_FY22[[#This Row],[Median]])/25)*35) + AAMC_Raw_Data_for_FY22[[#This Row],[Median]]","v":438611},{"$f":"(((AAMC_Raw_Data_for_FY22[[#This Row],[75th]]-AAMC_Raw_Data_for_FY22[[#This Row],[Median]])/25)*40) + AAMC_Raw_Data_for_FY22[[#This Row],[Median]]","v":444585}]
[{"$f":"AAMC_Raw_Data_for_FY22[[#This Row],[Source]]&AAMC_Raw_Data_for_FY22[[#This Row],[Type]]&AAMC_Raw_Data_for_FY22[[#This Row],[School Subset]]&AAMC_Raw_Data_for_FY22[[#This Row],[Rank]]&AAMC_Raw_Data_for_FY22[[#This Row],[Degree]]&AAMC_Raw_Data_for_FY22[[#This Row],[Department / Specialty]]&\"L\"","v":"AAMCAcademicPublicInstructorMDFamily Medicine: Sports MedicineL"},"Family Medicine: Sports Medicine",5,"AAMC","Academic","Public","Instructor","MD","2021-2022",null,{"$f":"(((AAMC_Raw_Data_for_FY22[[#This Row],[Median]]-AAMC_Raw_Data_for_FY22[[#This Row],[25th]])/25)*5) + AAMC_Raw_Data_for_FY22[[#This Row],[25th]]","v":0},{"$f":"(((AAMC_Raw_Data_for_FY22[[#This Row],[Median]]-AAMC_Raw_Data_for_FY22[[#This Row],[25th]])/25)*10) + AAMC_Raw_Data_for_FY22[[#This Row],[25th]]","v":0},{"$f":"(((AAMC_Raw_Data_for_FY22[[#This Row],[Median]]-AAMC_Raw_Data_for_FY22[[#This Row],[25th]])/25)*15) + AAMC_Raw_Data_for_FY22[[#This Row],[25th]]","v":0},{"$f":"(((AAMC_Raw_Data_for_FY22[[#This Row],[Median]]-AAMC_Raw_Data_for_FY22[[#This Row],[25th]])/25)*20) + AAMC_Raw_Data_for_FY22[[#This Row],[25th]]","v":0},null,{"$f":"(((AAMC_Raw_Data_for_FY22[[#This Row],[75th]]-AAMC_Raw_Data_for_FY22[[#This Row],[Median]])/25)*5) + AAMC_Raw_Data_for_FY22[[#This Row],[Median]]","v":0},{"$f":"(((AAMC_Raw_Data_for_FY22[[#This Row],[75th]]-AAMC_Raw_Data_for_FY22[[#This Row],[Median]])/25)*10) + AAMC_Raw_Data_for_FY22[[#This Row],[Median]]","v":0},{"$f":"(((AAMC_Raw_Data_for_FY22[[#This Row],[75th]]-AAMC_Raw_Data_for_FY22[[#This Row],[Median]])/25)*15) + AAMC_Raw_Data_for_FY22[[#This Row],[Median]]","v":0},{"$f":"(((AAMC_Raw_Data_for_FY22[[#This Row],[75th]]-AAMC_Raw_Data_for_FY22[[#This Row],[Median]])/25)*20) + AAMC_Raw_Data_for_FY22[[#This Row],[Median]]","v":0},null,{"$f":"(((AAMC_Raw_Data_for_FY22[[#This Row],[75th]]-AAMC_Raw_Data_for_FY22[[#This Row],[Median]])/25)*30) + AAMC_Raw_Data_for_FY22[[#This Row],[Median]]","v":0},{"$f":"(((AAMC_Raw_Data_for_FY22[[#This Row],[75th]]-AAMC_Raw_Data_for_FY22[[#This Row],[Median]])/25)*35) + AAMC_Raw_Data_for_FY22[[#This Row],[Median]]","v":0},{"$f":"(((AAMC_Raw_Data_for_FY22[[#This Row],[75th]]-AAMC_Raw_Data_for_FY22[[#This Row],[Median]])/25)*40) + AAMC_Raw_Data_for_FY22[[#This Row],[Median]]","v":0}]
[{"$f":"AAMC_Raw_Data_for_FY22[[#This Row],[Source]]&AAMC_Raw_Data_for_FY22[[#This Row],[Type]]&AAMC_Raw_Data_for_FY22[[#This Row],[School Subset]]&AAMC_Raw_Data_for_FY22[[#This Row],[Rank]]&AAMC_Raw_Data_for_FY22[[#This Row],[Degree]]&AAMC_Raw_Data_for_FY22[[#This Row],[Department / Specialty]]&\"L\"","v":"AAMCAcademicPublicAssistantMDFamily Medicine: Sports MedicineL"},"Family Medicine: Sports Medicine",4,"AAMC","Academic","Public","Assistant","MD","2021-2022",210608,{"$f":"(((AAMC_Raw_Data_for_FY22[[#This Row],[Median]]-AAMC_Raw_Data_for_FY22[[#This Row],[25th]])/25)*5) + AAMC_Raw_Data_for_FY22[[#This Row],[25th]]","v":216167.2},{"$f":"(((AAMC_Raw_Data_for_FY22[[#This Row],[Median]]-AAMC_Raw_Data_for_FY22[[#This Row],[25th]])/25)*10) + AAMC_Raw_Data_for_FY22[[#This Row],[25th]]","v":221726.4},{"$f":"(((AAMC_Raw_Data_for_FY22[[#This Row],[Median]]-AAMC_Raw_Data_for_FY22[[#This Row],[25th]])/25)*15) + AAMC_Raw_Data_for_FY22[[#This Row],[25th]]","v":227285.6},{"$f":"(((AAMC_Raw_Data_for_FY22[[#This Row],[Median]]-AAMC_Raw_Data_for_FY22[[#This Row],[25th]])/25)*20) + AAMC_Raw_Data_for_FY22[[#This Row],[25th]]","v":232844.79999999999},238404,{"$f":"(((AAMC_Raw_Data_for_FY22[[#This Row],[75th]]-AAMC_Raw_Data_for_FY22[[#This Row],[Median]])/25)*5) + AAMC_Raw_Data_for_FY22[[#This Row],[Median]]","v":249478.39999999999},{"$f":"(((AAMC_Raw_Data_for_FY22[[#This Row],[75th]]-AAMC_Raw_Data_for_FY22[[#This Row],[Median]])/25)*10) + AAMC_Raw_Data_for_FY22[[#This Row],[Median]]","v":260552.8},{"$f":"(((AAMC_Raw_Data_for_FY22[[#This Row],[75th]]-AAMC_Raw_Data_for_FY22[[#This Row],[Median]])/25)*15) + AAMC_Raw_Data_for_FY22[[#This Row],[Median]]","v":271627.2},{"$f":"(((AAMC_Raw_Data_for_FY22[[#This Row],[75th]]-AAMC_Raw_Data_for_FY22[[#This Row],[Median]])/25)*20) + AAMC_Raw_Data_for_FY22[[#This Row],[Median]]","v":282701.59999999998},293776,{"$f":"(((AAMC_Raw_Data_for_FY22[[#This Row],[75th]]-AAMC_Raw_Data_for_FY22[[#This Row],[Median]])/25)*30) + AAMC_Raw_Data_for_FY22[[#This Row],[Median]]","v":304850.40000000002},{"$f":"(((AAMC_Raw_Data_for_FY22[[#This Row],[75th]]-AAMC_Raw_Data_for_FY22[[#This Row],[Median]])/25)*35) + AAMC_Raw_Data_for_FY22[[#This Row],[Median]]","v":315924.8},{"$f":"(((AAMC_Raw_Data_for_FY22[[#This Row],[75th]]-AAMC_Raw_Data_for_FY22[[#This Row],[Median]])/25)*40) + AAMC_Raw_Data_for_FY22[[#This Row],[Median]]","v":326999.2}]
[{"$f":"AAMC_Raw_Data_for_FY22[[#This Row],[Source]]&AAMC_Raw_Data_for_FY22[[#This Row],[Type]]&AAMC_Raw_Data_for_FY22[[#This Row],[School Subset]]&AAMC_Raw_Data_for_FY22[[#This Row],[Rank]]&AAMC_Raw_Data_for_FY22[[#This Row],[Degree]]&AAMC_Raw_Data_for_FY22[[#This Row],[Department / Specialty]]&\"L\"","v":"AAMCAcademicPublicAssociateMDFamily Medicine: Sports MedicineL"},"Family Medicine: Sports Medicine",3,"AAMC","Academic","Public","Associate","MD","2021-2022",231920,{"$f":"(((AAMC_Raw_Data_for_FY22[[#This Row],[Median]]-AAMC_Raw_Data_for_FY22[[#This Row],[25th]])/25)*5) + AAMC_Raw_Data_for_FY22[[#This Row],[25th]]","v":240804},{"$f":"(((AAMC_Raw_Data_for_FY22[[#This Row],[Median]]-AAMC_Raw_Data_for_FY22[[#This Row],[25th]])/25)*10) + AAMC_Raw_Data_for_FY22[[#This Row],[25th]]","v":249688},{"$f":"(((AAMC_Raw_Data_for_FY22[[#This Row],[Median]]-AAMC_Raw_Data_for_FY22[[#This Row],[25th]])/25)*15) + AAMC_Raw_Data_for_FY22[[#This Row],[25th]]","v":258572},{"$f":"(((AAMC_Raw_Data_for_FY22[[#This Row],[Median]]-AAMC_Raw_Data_for_FY22[[#This Row],[25th]])/25)*20) + AAMC_Raw_Data_for_FY22[[#This Row],[25th]]","v":267456},276340,{"$f":"(((AAMC_Raw_Data_for_FY22[[#This Row],[75th]]-AAMC_Raw_Data_for_FY22[[#This Row],[Median]])/25)*5) + AAMC_Raw_Data_for_FY22[[#This Row],[Median]]","v":293864.40000000002},{"$f":"(((AAMC_Raw_Data_for_FY22[[#This Row],[75th]]-AAMC_Raw_Data_for_FY22[[#This Row],[Median]])/25)*10) + AAMC_Raw_Data_for_FY22[[#This Row],[Median]]","v":311388.79999999999},{"$f":"(((AAMC_Raw_Data_for_FY22[[#This Row],[75th]]-AAMC_Raw_Data_for_FY22[[#This Row],[Median]])/25)*15) + AAMC_Raw_Data_for_FY22[[#This Row],[Median]]","v":328913.2},{"$f":"(((AAMC_Raw_Data_for_FY22[[#This Row],[75th]]-AAMC_Raw_Data_for_FY22[[#This Row],[Median]])/25)*20) + AAMC_Raw_Data_for_FY22[[#This Row],[Median]]","v":346437.6},363962,{"$f":"(((AAMC_Raw_Data_for_FY22[[#This Row],[75th]]-AAMC_Raw_Data_for_FY22[[#This Row],[Median]])/25)*30) + AAMC_Raw_Data_for_FY22[[#This Row],[Median]]","v":381486.4},{"$f":"(((AAMC_Raw_Data_for_FY22[[#This Row],[75th]]-AAMC_Raw_Data_for_FY22[[#This Row],[Median]])/25)*35) + AAMC_Raw_Data_for_FY22[[#This Row],[Median]]","v":399010.8},{"$f":"(((AAMC_Raw_Data_for_FY22[[#This Row],[75th]]-AAMC_Raw_Data_for_FY22[[#This Row],[Median]])/25)*40) + AAMC_Raw_Data_for_FY22[[#This Row],[Median]]","v":416535.2}]
[{"$f":"AAMC_Raw_Data_for_FY22[[#This Row],[Source]]&AAMC_Raw_Data_for_FY22[[#This Row],[Type]]&AAMC_Raw_Data_for_FY22[[#This Row],[School Subset]]&AAMC_Raw_Data_for_FY22[[#This Row],[Rank]]&AAMC_Raw_Data_for_FY22[[#This Row],[Degree]]&AAMC_Raw_Data_for_FY22[[#This Row],[Department / Specialty]]&\"L\"","v":"AAMCAcademicPublicProfessorMDFamily Medicine: Sports MedicineL"},"Family Medicine: Sports Medicine",2,"AAMC","Academic","Public","Professor","MD","2021-2022",272153,{"$f":"(((AAMC_Raw_Data_for_FY22[[#This Row],[Median]]-AAMC_Raw_Data_for_FY22[[#This Row],[25th]])/25)*5) + AAMC_Raw_Data_for_FY22[[#This Row],[25th]]","v":279693.8},{"$f":"(((AAMC_Raw_Data_for_FY22[[#This Row],[Median]]-AAMC_Raw_Data_for_FY22[[#This Row],[25th]])/25)*10) + AAMC_Raw_Data_for_FY22[[#This Row],[25th]]","v":287234.59999999998},{"$f":"(((AAMC_Raw_Data_for_FY22[[#This Row],[Median]]-AAMC_Raw_Data_for_FY22[[#This Row],[25th]])/25)*15) + AAMC_Raw_Data_for_FY22[[#This Row],[25th]]","v":294775.40000000002},{"$f":"(((AAMC_Raw_Data_for_FY22[[#This Row],[Median]]-AAMC_Raw_Data_for_FY22[[#This Row],[25th]])/25)*20) + AAMC_Raw_Data_for_FY22[[#This Row],[25th]]","v":302316.2},309857,{"$f":"(((AAMC_Raw_Data_for_FY22[[#This Row],[75th]]-AAMC_Raw_Data_for_FY22[[#This Row],[Median]])/25)*5) + AAMC_Raw_Data_for_FY22[[#This Row],[Median]]","v":326747.8},{"$f":"(((AAMC_Raw_Data_for_FY22[[#This Row],[75th]]-AAMC_Raw_Data_for_FY22[[#This Row],[Median]])/25)*10) + AAMC_Raw_Data_for_FY22[[#This Row],[Median]]","v":343638.6},{"$f":"(((AAMC_Raw_Data_for_FY22[[#This Row],[75th]]-AAMC_Raw_Data_for_FY22[[#This Row],[Median]])/25)*15) + AAMC_Raw_Data_for_FY22[[#This Row],[Median]]","v":360529.4},{"$f":"(((AAMC_Raw_Data_for_FY22[[#This Row],[75th]]-AAMC_Raw_Data_for_FY22[[#This Row],[Median]])/25)*20) + AAMC_Raw_Data_for_FY22[[#This Row],[Median]]","v":377420.2},394311,{"$f":"(((AAMC_Raw_Data_for_FY22[[#This Row],[75th]]-AAMC_Raw_Data_for_FY22[[#This Row],[Median]])/25)*30) + AAMC_Raw_Data_for_FY22[[#This Row],[Median]]","v":411201.8},{"$f":"(((AAMC_Raw_Data_for_FY22[[#This Row],[75th]]-AAMC_Raw_Data_for_FY22[[#This Row],[Median]])/25)*35) + AAMC_Raw_Data_for_FY22[[#This Row],[Median]]","v":428092.6},{"$f":"(((AAMC_Raw_Data_for_FY22[[#This Row],[75th]]-AAMC_Raw_Data_for_FY22[[#This Row],[Median]])/25)*40) + AAMC_Raw_Data_for_FY22[[#This Row],[Median]]","v":444983.4}]
[{"$f":"AAMC_Raw_Data_for_FY22[[#This Row],[Source]]&AAMC_Raw_Data_for_FY22[[#This Row],[Type]]&AAMC_Raw_Data_for_FY22[[#This Row],[School Subset]]&AAMC_Raw_Data_for_FY22[[#This Row],[Rank]]&AAMC_Raw_Data_for_FY22[[#This Row],[Degree]]&AAMC_Raw_Data_for_FY22[[#This Row],[Department / Specialty]]&\"L\"","v":"AAMCAcademicPublicChiefMDFamily Medicine: Sports MedicineL"},"Family Medicine: Sports Medicine",6,"AAMC","Academic","Public","Chief","MD","2021-2022",null,{"$f":"(((AAMC_Raw_Data_for_FY22[[#This Row],[Median]]-AAMC_Raw_Data_for_FY22[[#This Row],[25th]])/25)*5) + AAMC_Raw_Data_for_FY22[[#This Row],[25th]]","v":0},{"$f":"(((AAMC_Raw_Data_for_FY22[[#This Row],[Median]]-AAMC_Raw_Data_for_FY22[[#This Row],[25th]])/25)*10) + AAMC_Raw_Data_for_FY22[[#This Row],[25th]]","v":0},{"$f":"(((AAMC_Raw_Data_for_FY22[[#This Row],[Median]]-AAMC_Raw_Data_for_FY22[[#This Row],[25th]])/25)*15) + AAMC_Raw_Data_for_FY22[[#This Row],[25th]]","v":0},{"$f":"(((AAMC_Raw_Data_for_FY22[[#This Row],[Median]]-AAMC_Raw_Data_for_FY22[[#This Row],[25th]])/25)*20) + AAMC_Raw_Data_for_FY22[[#This Row],[25th]]","v":0},null,{"$f":"(((AAMC_Raw_Data_for_FY22[[#This Row],[75th]]-AAMC_Raw_Data_for_FY22[[#This Row],[Median]])/25)*5) + AAMC_Raw_Data_for_FY22[[#This Row],[Median]]","v":0},{"$f":"(((AAMC_Raw_Data_for_FY22[[#This Row],[75th]]-AAMC_Raw_Data_for_FY22[[#This Row],[Median]])/25)*10) + AAMC_Raw_Data_for_FY22[[#This Row],[Median]]","v":0},{"$f":"(((AAMC_Raw_Data_for_FY22[[#This Row],[75th]]-AAMC_Raw_Data_for_FY22[[#This Row],[Median]])/25)*15) + AAMC_Raw_Data_for_FY22[[#This Row],[Median]]","v":0},{"$f":"(((AAMC_Raw_Data_for_FY22[[#This Row],[75th]]-AAMC_Raw_Data_for_FY22[[#This Row],[Median]])/25)*20) + AAMC_Raw_Data_for_FY22[[#This Row],[Median]]","v":0},null,{"$f":"(((AAMC_Raw_Data_for_FY22[[#This Row],[75th]]-AAMC_Raw_Data_for_FY22[[#This Row],[Median]])/25)*30) + AAMC_Raw_Data_for_FY22[[#This Row],[Median]]","v":0},{"$f":"(((AAMC_Raw_Data_for_FY22[[#This Row],[75th]]-AAMC_Raw_Data_for_FY22[[#This Row],[Median]])/25)*35) + AAMC_Raw_Data_for_FY22[[#This Row],[Median]]","v":0},{"$f":"(((AAMC_Raw_Data_for_FY22[[#This Row],[75th]]-AAMC_Raw_Data_for_FY22[[#This Row],[Median]])/25)*40) + AAMC_Raw_Data_for_FY22[[#This Row],[Median]]","v":0}]
[{"$f":"AAMC_Raw_Data_for_FY22[[#This Row],[Source]]&AAMC_Raw_Data_for_FY22[[#This Row],[Type]]&AAMC_Raw_Data_for_FY22[[#This Row],[School Subset]]&AAMC_Raw_Data_for_FY22[[#This Row],[Rank]]&AAMC_Raw_Data_for_FY22[[#This Row],[Degree]]&AAMC_Raw_Data_for_FY22[[#This Row],[Department / Specialty]]&\"L\"","v":"AAMCAcademicPublicChairMDFamily Medicine: Sports MedicineL"},"Family Medicine: Sports Medicine",1,"AAMC","Academic","Public","Chair","MD","2021-2022",null,{"$f":"(((AAMC_Raw_Data_for_FY22[[#This Row],[Median]]-AAMC_Raw_Data_for_FY22[[#This Row],[25th]])/25)*5) + AAMC_Raw_Data_for_FY22[[#This Row],[25th]]","v":0},{"$f":"(((AAMC_Raw_Data_for_FY22[[#This Row],[Median]]-AAMC_Raw_Data_for_FY22[[#This Row],[25th]])/25)*10) + AAMC_Raw_Data_for_FY22[[#This Row],[25th]]","v":0},{"$f":"(((AAMC_Raw_Data_for_FY22[[#This Row],[Median]]-AAMC_Raw_Data_for_FY22[[#This Row],[25th]])/25)*15) + AAMC_Raw_Data_for_FY22[[#This Row],[25th]]","v":0},{"$f":"(((AAMC_Raw_Data_for_FY22[[#This Row],[Median]]-AAMC_Raw_Data_for_FY22[[#This Row],[25th]])/25)*20) + AAMC_Raw_Data_for_FY22[[#This Row],[25th]]","v":0},null,{"$f":"(((AAMC_Raw_Data_for_FY22[[#This Row],[75th]]-AAMC_Raw_Data_for_FY22[[#This Row],[Median]])/25)*5) + AAMC_Raw_Data_for_FY22[[#This Row],[Median]]","v":0},{"$f":"(((AAMC_Raw_Data_for_FY22[[#This Row],[75th]]-AAMC_Raw_Data_for_FY22[[#This Row],[Median]])/25)*10) + AAMC_Raw_Data_for_FY22[[#This Row],[Median]]","v":0},{"$f":"(((AAMC_Raw_Data_for_FY22[[#This Row],[75th]]-AAMC_Raw_Data_for_FY22[[#This Row],[Median]])/25)*15) + AAMC_Raw_Data_for_FY22[[#This Row],[Median]]","v":0},{"$f":"(((AAMC_Raw_Data_for_FY22[[#This Row],[75th]]-AAMC_Raw_Data_for_FY22[[#This Row],[Median]])/25)*20) + AAMC_Raw_Data_for_FY22[[#This Row],[Median]]","v":0},null,{"$f":"(((AAMC_Raw_Data_for_FY22[[#This Row],[75th]]-AAMC_Raw_Data_for_FY22[[#This Row],[Median]])/25)*30) + AAMC_Raw_Data_for_FY22[[#This Row],[Median]]","v":0},{"$f":"(((AAMC_Raw_Data_for_FY22[[#This Row],[75th]]-AAMC_Raw_Data_for_FY22[[#This Row],[Median]])/25)*35) + AAMC_Raw_Data_for_FY22[[#This Row],[Median]]","v":0},{"$f":"(((AAMC_Raw_Data_for_FY22[[#This Row],[75th]]-AAMC_Raw_Data_for_FY22[[#This Row],[Median]])/25)*40) + AAMC_Raw_Data_for_FY22[[#This Row],[Median]]","v":0}]
[{"$f":"AAMC_Raw_Data_for_FY22[[#This Row],[Source]]&AAMC_Raw_Data_for_FY22[[#This Row],[Type]]&AAMC_Raw_Data_for_FY22[[#This Row],[School Subset]]&AAMC_Raw_Data_for_FY22[[#This Row],[Rank]]&AAMC_Raw_Data_for_FY22[[#This Row],[Degree]]&AAMC_Raw_Data_for_FY22[[#This Row],[Department / Specialty]]&\"L\"","v":"AAMCAcademicPublicInstructorMDFamily Medicine: OtherL"},"Family Medicine: Other",5,"AAMC","Academic","Public","Instructor","MD","2021-2022",null,{"$f":"(((AAMC_Raw_Data_for_FY22[[#This Row],[Median]]-AAMC_Raw_Data_for_FY22[[#This Row],[25th]])/25)*5) + AAMC_Raw_Data_for_FY22[[#This Row],[25th]]","v":0},{"$f":"(((AAMC_Raw_Data_for_FY22[[#This Row],[Median]]-AAMC_Raw_Data_for_FY22[[#This Row],[25th]])/25)*10) + AAMC_Raw_Data_for_FY22[[#This Row],[25th]]","v":0},{"$f":"(((AAMC_Raw_Data_for_FY22[[#This Row],[Median]]-AAMC_Raw_Data_for_FY22[[#This Row],[25th]])/25)*15) + AAMC_Raw_Data_for_FY22[[#This Row],[25th]]","v":0},{"$f":"(((AAMC_Raw_Data_for_FY22[[#This Row],[Median]]-AAMC_Raw_Data_for_FY22[[#This Row],[25th]])/25)*20) + AAMC_Raw_Data_for_FY22[[#This Row],[25th]]","v":0},null,{"$f":"(((AAMC_Raw_Data_for_FY22[[#This Row],[75th]]-AAMC_Raw_Data_for_FY22[[#This Row],[Median]])/25)*5) + AAMC_Raw_Data_for_FY22[[#This Row],[Median]]","v":0},{"$f":"(((AAMC_Raw_Data_for_FY22[[#This Row],[75th]]-AAMC_Raw_Data_for_FY22[[#This Row],[Median]])/25)*10) + AAMC_Raw_Data_for_FY22[[#This Row],[Median]]","v":0},{"$f":"(((AAMC_Raw_Data_for_FY22[[#This Row],[75th]]-AAMC_Raw_Data_for_FY22[[#This Row],[Median]])/25)*15) + AAMC_Raw_Data_for_FY22[[#This Row],[Median]]","v":0},{"$f":"(((AAMC_Raw_Data_for_FY22[[#This Row],[75th]]-AAMC_Raw_Data_for_FY22[[#This Row],[Median]])/25)*20) + AAMC_Raw_Data_for_FY22[[#This Row],[Median]]","v":0},null,{"$f":"(((AAMC_Raw_Data_for_FY22[[#This Row],[75th]]-AAMC_Raw_Data_for_FY22[[#This Row],[Median]])/25)*30) + AAMC_Raw_Data_for_FY22[[#This Row],[Median]]","v":0},{"$f":"(((AAMC_Raw_Data_for_FY22[[#This Row],[75th]]-AAMC_Raw_Data_for_FY22[[#This Row],[Median]])/25)*35) + AAMC_Raw_Data_for_FY22[[#This Row],[Median]]","v":0},{"$f":"(((AAMC_Raw_Data_for_FY22[[#This Row],[75th]]-AAMC_Raw_Data_for_FY22[[#This Row],[Median]])/25)*40) + AAMC_Raw_Data_for_FY22[[#This Row],[Median]]","v":0}]
[{"$f":"AAMC_Raw_Data_for_FY22[[#This Row],[Source]]&AAMC_Raw_Data_for_FY22[[#This Row],[Type]]&AAMC_Raw_Data_for_FY22[[#This Row],[School Subset]]&AAMC_Raw_Data_for_FY22[[#This Row],[Rank]]&AAMC_Raw_Data_for_FY22[[#This Row],[Degree]]&AAMC_Raw_Data_for_FY22[[#This Row],[Department / Specialty]]&\"L\"","v":"AAMCAcademicPublicAssistantMDFamily Medicine: OtherL"},"Family Medicine: Other",4,"AAMC","Academic","Public","Assistant","MD","2021-2022",211000,{"$f":"(((AAMC_Raw_Data_for_FY22[[#This Row],[Median]]-AAMC_Raw_Data_for_FY22[[#This Row],[25th]])/25)*5) + AAMC_Raw_Data_for_FY22[[#This Row],[25th]]","v":217240.6},{"$f":"(((AAMC_Raw_Data_for_FY22[[#This Row],[Median]]-AAMC_Raw_Data_for_FY22[[#This Row],[25th]])/25)*10) + AAMC_Raw_Data_for_FY22[[#This Row],[25th]]","v":223481.2},{"$f":"(((AAMC_Raw_Data_for_FY22[[#This Row],[Median]]-AAMC_Raw_Data_for_FY22[[#This Row],[25th]])/25)*15) + AAMC_Raw_Data_for_FY22[[#This Row],[25th]]","v":229721.8},{"$f":"(((AAMC_Raw_Data_for_FY22[[#This Row],[Median]]-AAMC_Raw_Data_for_FY22[[#This Row],[25th]])/25)*20) + AAMC_Raw_Data_for_FY22[[#This Row],[25th]]","v":235962.4},242203,{"$f":"(((AAMC_Raw_Data_for_FY22[[#This Row],[75th]]-AAMC_Raw_Data_for_FY22[[#This Row],[Median]])/25)*5) + AAMC_Raw_Data_for_FY22[[#This Row],[Median]]","v":248762.6},{"$f":"(((AAMC_Raw_Data_for_FY22[[#This Row],[75th]]-AAMC_Raw_Data_for_FY22[[#This Row],[Median]])/25)*10) + AAMC_Raw_Data_for_FY22[[#This Row],[Median]]","v":255322.2},{"$f":"(((AAMC_Raw_Data_for_FY22[[#This Row],[75th]]-AAMC_Raw_Data_for_FY22[[#This Row],[Median]])/25)*15) + AAMC_Raw_Data_for_FY22[[#This Row],[Median]]","v":261881.8},{"$f":"(((AAMC_Raw_Data_for_FY22[[#This Row],[75th]]-AAMC_Raw_Data_for_FY22[[#This Row],[Median]])/25)*20) + AAMC_Raw_Data_for_FY22[[#This Row],[Median]]","v":268441.40000000002},275001,{"$f":"(((AAMC_Raw_Data_for_FY22[[#This Row],[75th]]-AAMC_Raw_Data_for_FY22[[#This Row],[Median]])/25)*30) + AAMC_Raw_Data_for_FY22[[#This Row],[Median]]","v":281560.59999999998},{"$f":"(((AAMC_Raw_Data_for_FY22[[#This Row],[75th]]-AAMC_Raw_Data_for_FY22[[#This Row],[Median]])/25)*35) + AAMC_Raw_Data_for_FY22[[#This Row],[Median]]","v":288120.2},{"$f":"(((AAMC_Raw_Data_for_FY22[[#This Row],[75th]]-AAMC_Raw_Data_for_FY22[[#This Row],[Median]])/25)*40) + AAMC_Raw_Data_for_FY22[[#This Row],[Median]]","v":294679.8}]
[{"$f":"AAMC_Raw_Data_for_FY22[[#This Row],[Source]]&AAMC_Raw_Data_for_FY22[[#This Row],[Type]]&AAMC_Raw_Data_for_FY22[[#This Row],[School Subset]]&AAMC_Raw_Data_for_FY22[[#This Row],[Rank]]&AAMC_Raw_Data_for_FY22[[#This Row],[Degree]]&AAMC_Raw_Data_for_FY22[[#This Row],[Department / Specialty]]&\"L\"","v":"AAMCAcademicPublicAssociateMDFamily Medicine: OtherL"},"Family Medicine: Other",3,"AAMC","Academic","Public","Associate","MD","2021-2022",216156,{"$f":"(((AAMC_Raw_Data_for_FY22[[#This Row],[Median]]-AAMC_Raw_Data_for_FY22[[#This Row],[25th]])/25)*5) + AAMC_Raw_Data_for_FY22[[#This Row],[25th]]","v":220956.6},{"$f":"(((AAMC_Raw_Data_for_FY22[[#This Row],[Median]]-AAMC_Raw_Data_for_FY22[[#This Row],[25th]])/25)*10) + AAMC_Raw_Data_for_FY22[[#This Row],[25th]]","v":225757.2},{"$f":"(((AAMC_Raw_Data_for_FY22[[#This Row],[Median]]-AAMC_Raw_Data_for_FY22[[#This Row],[25th]])/25)*15) + AAMC_Raw_Data_for_FY22[[#This Row],[25th]]","v":230557.8},{"$f":"(((AAMC_Raw_Data_for_FY22[[#This Row],[Median]]-AAMC_Raw_Data_for_FY22[[#This Row],[25th]])/25)*20) + AAMC_Raw_Data_for_FY22[[#This Row],[25th]]","v":235358.4},240159,{"$f":"(((AAMC_Raw_Data_for_FY22[[#This Row],[75th]]-AAMC_Raw_Data_for_FY22[[#This Row],[Median]])/25)*5) + AAMC_Raw_Data_for_FY22[[#This Row],[Median]]","v":247748},{"$f":"(((AAMC_Raw_Data_for_FY22[[#This Row],[75th]]-AAMC_Raw_Data_for_FY22[[#This Row],[Median]])/25)*10) + AAMC_Raw_Data_for_FY22[[#This Row],[Median]]","v":255337},{"$f":"(((AAMC_Raw_Data_for_FY22[[#This Row],[75th]]-AAMC_Raw_Data_for_FY22[[#This Row],[Median]])/25)*15) + AAMC_Raw_Data_for_FY22[[#This Row],[Median]]","v":262926},{"$f":"(((AAMC_Raw_Data_for_FY22[[#This Row],[75th]]-AAMC_Raw_Data_for_FY22[[#This Row],[Median]])/25)*20) + AAMC_Raw_Data_for_FY22[[#This Row],[Median]]","v":270515},278104,{"$f":"(((AAMC_Raw_Data_for_FY22[[#This Row],[75th]]-AAMC_Raw_Data_for_FY22[[#This Row],[Median]])/25)*30) + AAMC_Raw_Data_for_FY22[[#This Row],[Median]]","v":285693},{"$f":"(((AAMC_Raw_Data_for_FY22[[#This Row],[75th]]-AAMC_Raw_Data_for_FY22[[#This Row],[Median]])/25)*35) + AAMC_Raw_Data_for_FY22[[#This Row],[Median]]","v":293282},{"$f":"(((AAMC_Raw_Data_for_FY22[[#This Row],[75th]]-AAMC_Raw_Data_for_FY22[[#This Row],[Median]])/25)*40) + AAMC_Raw_Data_for_FY22[[#This Row],[Median]]","v":300871}]
[{"$f":"AAMC_Raw_Data_for_FY22[[#This Row],[Source]]&AAMC_Raw_Data_for_FY22[[#This Row],[Type]]&AAMC_Raw_Data_for_FY22[[#This Row],[School Subset]]&AAMC_Raw_Data_for_FY22[[#This Row],[Rank]]&AAMC_Raw_Data_for_FY22[[#This Row],[Degree]]&AAMC_Raw_Data_for_FY22[[#This Row],[Department / Specialty]]&\"L\"","v":"AAMCAcademicPublicProfessorMDFamily Medicine: OtherL"},"Family Medicine: Other",2,"AAMC","Academic","Public","Professor","MD","2021-2022",195717,{"$f":"(((AAMC_Raw_Data_for_FY22[[#This Row],[Median]]-AAMC_Raw_Data_for_FY22[[#This Row],[25th]])/25)*5) + AAMC_Raw_Data_for_FY22[[#This Row],[25th]]","v":207517.8},{"$f":"(((AAMC_Raw_Data_for_FY22[[#This Row],[Median]]-AAMC_Raw_Data_for_FY22[[#This Row],[25th]])/25)*10) + AAMC_Raw_Data_for_FY22[[#This Row],[25th]]","v":219318.6},{"$f":"(((AAMC_Raw_Data_for_FY22[[#This Row],[Median]]-AAMC_Raw_Data_for_FY22[[#This Row],[25th]])/25)*15) + AAMC_Raw_Data_for_FY22[[#This Row],[25th]]","v":231119.4},{"$f":"(((AAMC_Raw_Data_for_FY22[[#This Row],[Median]]-AAMC_Raw_Data_for_FY22[[#This Row],[25th]])/25)*20) + AAMC_Raw_Data_for_FY22[[#This Row],[25th]]","v":242920.2},254721,{"$f":"(((AAMC_Raw_Data_for_FY22[[#This Row],[75th]]-AAMC_Raw_Data_for_FY22[[#This Row],[Median]])/25)*5) + AAMC_Raw_Data_for_FY22[[#This Row],[Median]]","v":258763.8},{"$f":"(((AAMC_Raw_Data_for_FY22[[#This Row],[75th]]-AAMC_Raw_Data_for_FY22[[#This Row],[Median]])/25)*10) + AAMC_Raw_Data_for_FY22[[#This Row],[Median]]","v":262806.59999999998},{"$f":"(((AAMC_Raw_Data_for_FY22[[#This Row],[75th]]-AAMC_Raw_Data_for_FY22[[#This Row],[Median]])/25)*15) + AAMC_Raw_Data_for_FY22[[#This Row],[Median]]","v":266849.40000000002},{"$f":"(((AAMC_Raw_Data_for_FY22[[#This Row],[75th]]-AAMC_Raw_Data_for_FY22[[#This Row],[Median]])/25)*20) + AAMC_Raw_Data_for_FY22[[#This Row],[Median]]","v":270892.2},274935,{"$f":"(((AAMC_Raw_Data_for_FY22[[#This Row],[75th]]-AAMC_Raw_Data_for_FY22[[#This Row],[Median]])/25)*30) + AAMC_Raw_Data_for_FY22[[#This Row],[Median]]","v":278977.8},{"$f":"(((AAMC_Raw_Data_for_FY22[[#This Row],[75th]]-AAMC_Raw_Data_for_FY22[[#This Row],[Median]])/25)*35) + AAMC_Raw_Data_for_FY22[[#This Row],[Median]]","v":283020.59999999998},{"$f":"(((AAMC_Raw_Data_for_FY22[[#This Row],[75th]]-AAMC_Raw_Data_for_FY22[[#This Row],[Median]])/25)*40) + AAMC_Raw_Data_for_FY22[[#This Row],[Median]]","v":287063.40000000002}]
[{"$f":"AAMC_Raw_Data_for_FY22[[#This Row],[Source]]&AAMC_Raw_Data_for_FY22[[#This Row],[Type]]&AAMC_Raw_Data_for_FY22[[#This Row],[School Subset]]&AAMC_Raw_Data_for_FY22[[#This Row],[Rank]]&AAMC_Raw_Data_for_FY22[[#This Row],[Degree]]&AAMC_Raw_Data_for_FY22[[#This Row],[Department / Specialty]]&\"L\"","v":"AAMCAcademicPublicChiefMDFamily Medicine: OtherL"},"Family Medicine: Other",6,"AAMC","Academic","Public","Chief","MD","2021-2022",null,{"$f":"(((AAMC_Raw_Data_for_FY22[[#This Row],[Median]]-AAMC_Raw_Data_for_FY22[[#This Row],[25th]])/25)*5) + AAMC_Raw_Data_for_FY22[[#This Row],[25th]]","v":0},{"$f":"(((AAMC_Raw_Data_for_FY22[[#This Row],[Median]]-AAMC_Raw_Data_for_FY22[[#This Row],[25th]])/25)*10) + AAMC_Raw_Data_for_FY22[[#This Row],[25th]]","v":0},{"$f":"(((AAMC_Raw_Data_for_FY22[[#This Row],[Median]]-AAMC_Raw_Data_for_FY22[[#This Row],[25th]])/25)*15) + AAMC_Raw_Data_for_FY22[[#This Row],[25th]]","v":0},{"$f":"(((AAMC_Raw_Data_for_FY22[[#This Row],[Median]]-AAMC_Raw_Data_for_FY22[[#This Row],[25th]])/25)*20) + AAMC_Raw_Data_for_FY22[[#This Row],[25th]]","v":0},null,{"$f":"(((AAMC_Raw_Data_for_FY22[[#This Row],[75th]]-AAMC_Raw_Data_for_FY22[[#This Row],[Median]])/25)*5) + AAMC_Raw_Data_for_FY22[[#This Row],[Median]]","v":0},{"$f":"(((AAMC_Raw_Data_for_FY22[[#This Row],[75th]]-AAMC_Raw_Data_for_FY22[[#This Row],[Median]])/25)*10) + AAMC_Raw_Data_for_FY22[[#This Row],[Median]]","v":0},{"$f":"(((AAMC_Raw_Data_for_FY22[[#This Row],[75th]]-AAMC_Raw_Data_for_FY22[[#This Row],[Median]])/25)*15) + AAMC_Raw_Data_for_FY22[[#This Row],[Median]]","v":0},{"$f":"(((AAMC_Raw_Data_for_FY22[[#This Row],[75th]]-AAMC_Raw_Data_for_FY22[[#This Row],[Median]])/25)*20) + AAMC_Raw_Data_for_FY22[[#This Row],[Median]]","v":0},null,{"$f":"(((AAMC_Raw_Data_for_FY22[[#This Row],[75th]]-AAMC_Raw_Data_for_FY22[[#This Row],[Median]])/25)*30) + AAMC_Raw_Data_for_FY22[[#This Row],[Median]]","v":0},{"$f":"(((AAMC_Raw_Data_for_FY22[[#This Row],[75th]]-AAMC_Raw_Data_for_FY22[[#This Row],[Median]])/25)*35) + AAMC_Raw_Data_for_FY22[[#This Row],[Median]]","v":0},{"$f":"(((AAMC_Raw_Data_for_FY22[[#This Row],[75th]]-AAMC_Raw_Data_for_FY22[[#This Row],[Median]])/25)*40) + AAMC_Raw_Data_for_FY22[[#This Row],[Median]]","v":0}]
[{"$f":"AAMC_Raw_Data_for_FY22[[#This Row],[Source]]&AAMC_Raw_Data_for_FY22[[#This Row],[Type]]&AAMC_Raw_Data_for_FY22[[#This Row],[School Subset]]&AAMC_Raw_Data_for_FY22[[#This Row],[Rank]]&AAMC_Raw_Data_for_FY22[[#This Row],[Degree]]&AAMC_Raw_Data_for_FY22[[#This Row],[Department / Specialty]]&\"L\"","v":"AAMCAcademicPublicChairMDFamily Medicine: OtherL"},"Family Medicine: Other",1,"AAMC","Academic","Public","Chair","MD","2021-2022",417147,{"$f":"(((AAMC_Raw_Data_for_FY22[[#This Row],[Median]]-AAMC_Raw_Data_for_FY22[[#This Row],[25th]])/25)*5) + AAMC_Raw_Data_for_FY22[[#This Row],[25th]]","v":421227},{"$f":"(((AAMC_Raw_Data_for_FY22[[#This Row],[Median]]-AAMC_Raw_Data_for_FY22[[#This Row],[25th]])/25)*10) + AAMC_Raw_Data_for_FY22[[#This Row],[25th]]","v":425307},{"$f":"(((AAMC_Raw_Data_for_FY22[[#This Row],[Median]]-AAMC_Raw_Data_for_FY22[[#This Row],[25th]])/25)*15) + AAMC_Raw_Data_for_FY22[[#This Row],[25th]]","v":429387},{"$f":"(((AAMC_Raw_Data_for_FY22[[#This Row],[Median]]-AAMC_Raw_Data_for_FY22[[#This Row],[25th]])/25)*20) + AAMC_Raw_Data_for_FY22[[#This Row],[25th]]","v":433467},437547,{"$f":"(((AAMC_Raw_Data_for_FY22[[#This Row],[75th]]-AAMC_Raw_Data_for_FY22[[#This Row],[Median]])/25)*5) + AAMC_Raw_Data_for_FY22[[#This Row],[Median]]","v":445537.4},{"$f":"(((AAMC_Raw_Data_for_FY22[[#This Row],[75th]]-AAMC_Raw_Data_for_FY22[[#This Row],[Median]])/25)*10) + AAMC_Raw_Data_for_FY22[[#This Row],[Median]]","v":453527.8},{"$f":"(((AAMC_Raw_Data_for_FY22[[#This Row],[75th]]-AAMC_Raw_Data_for_FY22[[#This Row],[Median]])/25)*15) + AAMC_Raw_Data_for_FY22[[#This Row],[Median]]","v":461518.2},{"$f":"(((AAMC_Raw_Data_for_FY22[[#This Row],[75th]]-AAMC_Raw_Data_for_FY22[[#This Row],[Median]])/25)*20) + AAMC_Raw_Data_for_FY22[[#This Row],[Median]]","v":469508.6},477499,{"$f":"(((AAMC_Raw_Data_for_FY22[[#This Row],[75th]]-AAMC_Raw_Data_for_FY22[[#This Row],[Median]])/25)*30) + AAMC_Raw_Data_for_FY22[[#This Row],[Median]]","v":485489.4},{"$f":"(((AAMC_Raw_Data_for_FY22[[#This Row],[75th]]-AAMC_Raw_Data_for_FY22[[#This Row],[Median]])/25)*35) + AAMC_Raw_Data_for_FY22[[#This Row],[Median]]","v":493479.8},{"$f":"(((AAMC_Raw_Data_for_FY22[[#This Row],[75th]]-AAMC_Raw_Data_for_FY22[[#This Row],[Median]])/25)*40) + AAMC_Raw_Data_for_FY22[[#This Row],[Median]]","v":501470.2}]
[{"$f":"AAMC_Raw_Data_for_FY22[[#This Row],[Source]]&AAMC_Raw_Data_for_FY22[[#This Row],[Type]]&AAMC_Raw_Data_for_FY22[[#This Row],[School Subset]]&AAMC_Raw_Data_for_FY22[[#This Row],[Rank]]&AAMC_Raw_Data_for_FY22[[#This Row],[Degree]]&AAMC_Raw_Data_for_FY22[[#This Row],[Department / Specialty]]&\"L\"","v":"AAMCAcademicPublicInstructorMDMedicine TotalL"},"Medicine Total",5,"AAMC","Academic","Public","Instructor","MD","2021-2022",142182,{"$f":"(((AAMC_Raw_Data_for_FY22[[#This Row],[Median]]-AAMC_Raw_Data_for_FY22[[#This Row],[25th]])/25)*5) + AAMC_Raw_Data_for_FY22[[#This Row],[25th]]","v":158515.6},{"$f":"(((AAMC_Raw_Data_for_FY22[[#This Row],[Median]]-AAMC_Raw_Data_for_FY22[[#This Row],[25th]])/25)*10) + AAMC_Raw_Data_for_FY22[[#This Row],[25th]]","v":174849.2},{"$f":"(((AAMC_Raw_Data_for_FY22[[#This Row],[Median]]-AAMC_Raw_Data_for_FY22[[#This Row],[25th]])/25)*15) + AAMC_Raw_Data_for_FY22[[#This Row],[25th]]","v":191182.8},{"$f":"(((AAMC_Raw_Data_for_FY22[[#This Row],[Median]]-AAMC_Raw_Data_for_FY22[[#This Row],[25th]])/25)*20) + AAMC_Raw_Data_for_FY22[[#This Row],[25th]]","v":207516.4},223850,{"$f":"(((AAMC_Raw_Data_for_FY22[[#This Row],[75th]]-AAMC_Raw_Data_for_FY22[[#This Row],[Median]])/25)*5) + AAMC_Raw_Data_for_FY22[[#This Row],[Median]]","v":230264.2},{"$f":"(((AAMC_Raw_Data_for_FY22[[#This Row],[75th]]-AAMC_Raw_Data_for_FY22[[#This Row],[Median]])/25)*10) + AAMC_Raw_Data_for_FY22[[#This Row],[Median]]","v":236678.39999999999},{"$f":"(((AAMC_Raw_Data_for_FY22[[#This Row],[75th]]-AAMC_Raw_Data_for_FY22[[#This Row],[Median]])/25)*15) + AAMC_Raw_Data_for_FY22[[#This Row],[Median]]","v":243092.6},{"$f":"(((AAMC_Raw_Data_for_FY22[[#This Row],[75th]]-AAMC_Raw_Data_for_FY22[[#This Row],[Median]])/25)*20) + AAMC_Raw_Data_for_FY22[[#This Row],[Median]]","v":249506.8},255921,{"$f":"(((AAMC_Raw_Data_for_FY22[[#This Row],[75th]]-AAMC_Raw_Data_for_FY22[[#This Row],[Median]])/25)*30) + AAMC_Raw_Data_for_FY22[[#This Row],[Median]]","v":262335.2},{"$f":"(((AAMC_Raw_Data_for_FY22[[#This Row],[75th]]-AAMC_Raw_Data_for_FY22[[#This Row],[Median]])/25)*35) + AAMC_Raw_Data_for_FY22[[#This Row],[Median]]","v":268749.40000000002},{"$f":"(((AAMC_Raw_Data_for_FY22[[#This Row],[75th]]-AAMC_Raw_Data_for_FY22[[#This Row],[Median]])/25)*40) + AAMC_Raw_Data_for_FY22[[#This Row],[Median]]","v":275163.59999999998}]
[{"$f":"AAMC_Raw_Data_for_FY22[[#This Row],[Source]]&AAMC_Raw_Data_for_FY22[[#This Row],[Type]]&AAMC_Raw_Data_for_FY22[[#This Row],[School Subset]]&AAMC_Raw_Data_for_FY22[[#This Row],[Rank]]&AAMC_Raw_Data_for_FY22[[#This Row],[Degree]]&AAMC_Raw_Data_for_FY22[[#This Row],[Department / Specialty]]&\"L\"","v":"AAMCAcademicPublicAssistantMDMedicine TotalL"},"Medicine Total",4,"AAMC","Academic","Public","Assistant","MD","2021-2022",220000,{"$f":"(((AAMC_Raw_Data_for_FY22[[#This Row],[Median]]-AAMC_Raw_Data_for_FY22[[#This Row],[25th]])/25)*5) + AAMC_Raw_Data_for_FY22[[#This Row],[25th]]","v":228442},{"$f":"(((AAMC_Raw_Data_for_FY22[[#This Row],[Median]]-AAMC_Raw_Data_for_FY22[[#This Row],[25th]])/25)*10) + AAMC_Raw_Data_for_FY22[[#This Row],[25th]]","v":236884},{"$f":"(((AAMC_Raw_Data_for_FY22[[#This Row],[Median]]-AAMC_Raw_Data_for_FY22[[#This Row],[25th]])/25)*15) + AAMC_Raw_Data_for_FY22[[#This Row],[25th]]","v":245326},{"$f":"(((AAMC_Raw_Data_for_FY22[[#This Row],[Median]]-AAMC_Raw_Data_for_FY22[[#This Row],[25th]])/25)*20) + AAMC_Raw_Data_for_FY22[[#This Row],[25th]]","v":253768},262210,{"$f":"(((AAMC_Raw_Data_for_FY22[[#This Row],[75th]]-AAMC_Raw_Data_for_FY22[[#This Row],[Median]])/25)*5) + AAMC_Raw_Data_for_FY22[[#This Row],[Median]]","v":274811.2},{"$f":"(((AAMC_Raw_Data_for_FY22[[#This Row],[75th]]-AAMC_Raw_Data_for_FY22[[#This Row],[Median]])/25)*10) + AAMC_Raw_Data_for_FY22[[#This Row],[Median]]","v":287412.40000000002},{"$f":"(((AAMC_Raw_Data_for_FY22[[#This Row],[75th]]-AAMC_Raw_Data_for_FY22[[#This Row],[Median]])/25)*15) + AAMC_Raw_Data_for_FY22[[#This Row],[Median]]","v":300013.59999999998},{"$f":"(((AAMC_Raw_Data_for_FY22[[#This Row],[75th]]-AAMC_Raw_Data_for_FY22[[#This Row],[Median]])/25)*20) + AAMC_Raw_Data_for_FY22[[#This Row],[Median]]","v":312614.8},325216,{"$f":"(((AAMC_Raw_Data_for_FY22[[#This Row],[75th]]-AAMC_Raw_Data_for_FY22[[#This Row],[Median]])/25)*30) + AAMC_Raw_Data_for_FY22[[#This Row],[Median]]","v":337817.2},{"$f":"(((AAMC_Raw_Data_for_FY22[[#This Row],[75th]]-AAMC_Raw_Data_for_FY22[[#This Row],[Median]])/25)*35) + AAMC_Raw_Data_for_FY22[[#This Row],[Median]]","v":350418.4},{"$f":"(((AAMC_Raw_Data_for_FY22[[#This Row],[75th]]-AAMC_Raw_Data_for_FY22[[#This Row],[Median]])/25)*40) + AAMC_Raw_Data_for_FY22[[#This Row],[Median]]","v":363019.6}]
[{"$f":"AAMC_Raw_Data_for_FY22[[#This Row],[Source]]&AAMC_Raw_Data_for_FY22[[#This Row],[Type]]&AAMC_Raw_Data_for_FY22[[#This Row],[School Subset]]&AAMC_Raw_Data_for_FY22[[#This Row],[Rank]]&AAMC_Raw_Data_for_FY22[[#This Row],[Degree]]&AAMC_Raw_Data_for_FY22[[#This Row],[Department / Specialty]]&\"L\"","v":"AAMCAcademicPublicAssociateMDMedicine TotalL"},"Medicine Total",3,"AAMC","Academic","Public","Associate","MD","2021-2022",245016,{"$f":"(((AAMC_Raw_Data_for_FY22[[#This Row],[Median]]-AAMC_Raw_Data_for_FY22[[#This Row],[25th]])/25)*5) + AAMC_Raw_Data_for_FY22[[#This Row],[25th]]","v":255586.4},{"$f":"(((AAMC_Raw_Data_for_FY22[[#This Row],[Median]]-AAMC_Raw_Data_for_FY22[[#This Row],[25th]])/25)*10) + AAMC_Raw_Data_for_FY22[[#This Row],[25th]]","v":266156.79999999999},{"$f":"(((AAMC_Raw_Data_for_FY22[[#This Row],[Median]]-AAMC_Raw_Data_for_FY22[[#This Row],[25th]])/25)*15) + AAMC_Raw_Data_for_FY22[[#This Row],[25th]]","v":276727.2},{"$f":"(((AAMC_Raw_Data_for_FY22[[#This Row],[Median]]-AAMC_Raw_Data_for_FY22[[#This Row],[25th]])/25)*20) + AAMC_Raw_Data_for_FY22[[#This Row],[25th]]","v":287297.59999999998},297868,{"$f":"(((AAMC_Raw_Data_for_FY22[[#This Row],[75th]]-AAMC_Raw_Data_for_FY22[[#This Row],[Median]])/25)*5) + AAMC_Raw_Data_for_FY22[[#This Row],[Median]]","v":314280},{"$f":"(((AAMC_Raw_Data_for_FY22[[#This Row],[75th]]-AAMC_Raw_Data_for_FY22[[#This Row],[Median]])/25)*10) + AAMC_Raw_Data_for_FY22[[#This Row],[Median]]","v":330692},{"$f":"(((AAMC_Raw_Data_for_FY22[[#This Row],[75th]]-AAMC_Raw_Data_for_FY22[[#This Row],[Median]])/25)*15) + AAMC_Raw_Data_for_FY22[[#This Row],[Median]]","v":347104},{"$f":"(((AAMC_Raw_Data_for_FY22[[#This Row],[75th]]-AAMC_Raw_Data_for_FY22[[#This Row],[Median]])/25)*20) + AAMC_Raw_Data_for_FY22[[#This Row],[Median]]","v":363516},379928,{"$f":"(((AAMC_Raw_Data_for_FY22[[#This Row],[75th]]-AAMC_Raw_Data_for_FY22[[#This Row],[Median]])/25)*30) + AAMC_Raw_Data_for_FY22[[#This Row],[Median]]","v":396340},{"$f":"(((AAMC_Raw_Data_for_FY22[[#This Row],[75th]]-AAMC_Raw_Data_for_FY22[[#This Row],[Median]])/25)*35) + AAMC_Raw_Data_for_FY22[[#This Row],[Median]]","v":412752},{"$f":"(((AAMC_Raw_Data_for_FY22[[#This Row],[75th]]-AAMC_Raw_Data_for_FY22[[#This Row],[Median]])/25)*40) + AAMC_Raw_Data_for_FY22[[#This Row],[Median]]","v":429164}]
[{"$f":"AAMC_Raw_Data_for_FY22[[#This Row],[Source]]&AAMC_Raw_Data_for_FY22[[#This Row],[Type]]&AAMC_Raw_Data_for_FY22[[#This Row],[School Subset]]&AAMC_Raw_Data_for_FY22[[#This Row],[Rank]]&AAMC_Raw_Data_for_FY22[[#This Row],[Degree]]&AAMC_Raw_Data_for_FY22[[#This Row],[Department / Specialty]]&\"L\"","v":"AAMCAcademicPublicProfessorMDMedicine TotalL"},"Medicine Total",2,"AAMC","Academic","Public","Professor","MD","2021-2022",276634,{"$f":"(((AAMC_Raw_Data_for_FY22[[#This Row],[Median]]-AAMC_Raw_Data_for_FY22[[#This Row],[25th]])/25)*5) + AAMC_Raw_Data_for_FY22[[#This Row],[25th]]","v":289559.8},{"$f":"(((AAMC_Raw_Data_for_FY22[[#This Row],[Median]]-AAMC_Raw_Data_for_FY22[[#This Row],[25th]])/25)*10) + AAMC_Raw_Data_for_FY22[[#This Row],[25th]]","v":302485.59999999998},{"$f":"(((AAMC_Raw_Data_for_FY22[[#This Row],[Median]]-AAMC_Raw_Data_for_FY22[[#This Row],[25th]])/25)*15) + AAMC_Raw_Data_for_FY22[[#This Row],[25th]]","v":315411.40000000002},{"$f":"(((AAMC_Raw_Data_for_FY22[[#This Row],[Median]]-AAMC_Raw_Data_for_FY22[[#This Row],[25th]])/25)*20) + AAMC_Raw_Data_for_FY22[[#This Row],[25th]]","v":328337.2},341263,{"$f":"(((AAMC_Raw_Data_for_FY22[[#This Row],[75th]]-AAMC_Raw_Data_for_FY22[[#This Row],[Median]])/25)*5) + AAMC_Raw_Data_for_FY22[[#This Row],[Median]]","v":359058.6},{"$f":"(((AAMC_Raw_Data_for_FY22[[#This Row],[75th]]-AAMC_Raw_Data_for_FY22[[#This Row],[Median]])/25)*10) + AAMC_Raw_Data_for_FY22[[#This Row],[Median]]","v":376854.2},{"$f":"(((AAMC_Raw_Data_for_FY22[[#This Row],[75th]]-AAMC_Raw_Data_for_FY22[[#This Row],[Median]])/25)*15) + AAMC_Raw_Data_for_FY22[[#This Row],[Median]]","v":394649.8},{"$f":"(((AAMC_Raw_Data_for_FY22[[#This Row],[75th]]-AAMC_Raw_Data_for_FY22[[#This Row],[Median]])/25)*20) + AAMC_Raw_Data_for_FY22[[#This Row],[Median]]","v":412445.4},430241,{"$f":"(((AAMC_Raw_Data_for_FY22[[#This Row],[75th]]-AAMC_Raw_Data_for_FY22[[#This Row],[Median]])/25)*30) + AAMC_Raw_Data_for_FY22[[#This Row],[Median]]","v":448036.6},{"$f":"(((AAMC_Raw_Data_for_FY22[[#This Row],[75th]]-AAMC_Raw_Data_for_FY22[[#This Row],[Median]])/25)*35) + AAMC_Raw_Data_for_FY22[[#This Row],[Median]]","v":465832.2},{"$f":"(((AAMC_Raw_Data_for_FY22[[#This Row],[75th]]-AAMC_Raw_Data_for_FY22[[#This Row],[Median]])/25)*40) + AAMC_Raw_Data_for_FY22[[#This Row],[Median]]","v":483627.8}]
[{"$f":"AAMC_Raw_Data_for_FY22[[#This Row],[Source]]&AAMC_Raw_Data_for_FY22[[#This Row],[Type]]&AAMC_Raw_Data_for_FY22[[#This Row],[School Subset]]&AAMC_Raw_Data_for_FY22[[#This Row],[Rank]]&AAMC_Raw_Data_for_FY22[[#This Row],[Degree]]&AAMC_Raw_Data_for_FY22[[#This Row],[Department / Specialty]]&\"L\"","v":"AAMCAcademicPublicChiefMDMedicine TotalL"},"Medicine Total",6,"AAMC","Academic","Public","Chief","MD","2021-2022",310680,{"$f":"(((AAMC_Raw_Data_for_FY22[[#This Row],[Median]]-AAMC_Raw_Data_for_FY22[[#This Row],[25th]])/25)*5) + AAMC_Raw_Data_for_FY22[[#This Row],[25th]]","v":323858.8},{"$f":"(((AAMC_Raw_Data_for_FY22[[#This Row],[Median]]-AAMC_Raw_Data_for_FY22[[#This Row],[25th]])/25)*10) + AAMC_Raw_Data_for_FY22[[#This Row],[25th]]","v":337037.6},{"$f":"(((AAMC_Raw_Data_for_FY22[[#This Row],[Median]]-AAMC_Raw_Data_for_FY22[[#This Row],[25th]])/25)*15) + AAMC_Raw_Data_for_FY22[[#This Row],[25th]]","v":350216.4},{"$f":"(((AAMC_Raw_Data_for_FY22[[#This Row],[Median]]-AAMC_Raw_Data_for_FY22[[#This Row],[25th]])/25)*20) + AAMC_Raw_Data_for_FY22[[#This Row],[25th]]","v":363395.2},376574,{"$f":"(((AAMC_Raw_Data_for_FY22[[#This Row],[75th]]-AAMC_Raw_Data_for_FY22[[#This Row],[Median]])/25)*5) + AAMC_Raw_Data_for_FY22[[#This Row],[Median]]","v":395826},{"$f":"(((AAMC_Raw_Data_for_FY22[[#This Row],[75th]]-AAMC_Raw_Data_for_FY22[[#This Row],[Median]])/25)*10) + AAMC_Raw_Data_for_FY22[[#This Row],[Median]]","v":415078},{"$f":"(((AAMC_Raw_Data_for_FY22[[#This Row],[75th]]-AAMC_Raw_Data_for_FY22[[#This Row],[Median]])/25)*15) + AAMC_Raw_Data_for_FY22[[#This Row],[Median]]","v":434330},{"$f":"(((AAMC_Raw_Data_for_FY22[[#This Row],[75th]]-AAMC_Raw_Data_for_FY22[[#This Row],[Median]])/25)*20) + AAMC_Raw_Data_for_FY22[[#This Row],[Median]]","v":453582},472834,{"$f":"(((AAMC_Raw_Data_for_FY22[[#This Row],[75th]]-AAMC_Raw_Data_for_FY22[[#This Row],[Median]])/25)*30) + AAMC_Raw_Data_for_FY22[[#This Row],[Median]]","v":492086},{"$f":"(((AAMC_Raw_Data_for_FY22[[#This Row],[75th]]-AAMC_Raw_Data_for_FY22[[#This Row],[Median]])/25)*35) + AAMC_Raw_Data_for_FY22[[#This Row],[Median]]","v":511338},{"$f":"(((AAMC_Raw_Data_for_FY22[[#This Row],[75th]]-AAMC_Raw_Data_for_FY22[[#This Row],[Median]])/25)*40) + AAMC_Raw_Data_for_FY22[[#This Row],[Median]]","v":530590}]
[{"$f":"AAMC_Raw_Data_for_FY22[[#This Row],[Source]]&AAMC_Raw_Data_for_FY22[[#This Row],[Type]]&AAMC_Raw_Data_for_FY22[[#This Row],[School Subset]]&AAMC_Raw_Data_for_FY22[[#This Row],[Rank]]&AAMC_Raw_Data_for_FY22[[#This Row],[Degree]]&AAMC_Raw_Data_for_FY22[[#This Row],[Department / Specialty]]&\"L\"","v":"AAMCAcademicPublicChairMDMedicine TotalL"},"Medicine Total",1,"AAMC","Academic","Public","Chair","MD","2021-2022",458302,{"$f":"(((AAMC_Raw_Data_for_FY22[[#This Row],[Median]]-AAMC_Raw_Data_for_FY22[[#This Row],[25th]])/25)*5) + AAMC_Raw_Data_for_FY22[[#This Row],[25th]]","v":485265},{"$f":"(((AAMC_Raw_Data_for_FY22[[#This Row],[Median]]-AAMC_Raw_Data_for_FY22[[#This Row],[25th]])/25)*10) + AAMC_Raw_Data_for_FY22[[#This Row],[25th]]","v":512228},{"$f":"(((AAMC_Raw_Data_for_FY22[[#This Row],[Median]]-AAMC_Raw_Data_for_FY22[[#This Row],[25th]])/25)*15) + AAMC_Raw_Data_for_FY22[[#This Row],[25th]]","v":539191},{"$f":"(((AAMC_Raw_Data_for_FY22[[#This Row],[Median]]-AAMC_Raw_Data_for_FY22[[#This Row],[25th]])/25)*20) + AAMC_Raw_Data_for_FY22[[#This Row],[25th]]","v":566154},593117,{"$f":"(((AAMC_Raw_Data_for_FY22[[#This Row],[75th]]-AAMC_Raw_Data_for_FY22[[#This Row],[Median]])/25)*5) + AAMC_Raw_Data_for_FY22[[#This Row],[Median]]","v":615382.19999999995},{"$f":"(((AAMC_Raw_Data_for_FY22[[#This Row],[75th]]-AAMC_Raw_Data_for_FY22[[#This Row],[Median]])/25)*10) + AAMC_Raw_Data_for_FY22[[#This Row],[Median]]","v":637647.4},{"$f":"(((AAMC_Raw_Data_for_FY22[[#This Row],[75th]]-AAMC_Raw_Data_for_FY22[[#This Row],[Median]])/25)*15) + AAMC_Raw_Data_for_FY22[[#This Row],[Median]]","v":659912.6},{"$f":"(((AAMC_Raw_Data_for_FY22[[#This Row],[75th]]-AAMC_Raw_Data_for_FY22[[#This Row],[Median]])/25)*20) + AAMC_Raw_Data_for_FY22[[#This Row],[Median]]","v":682177.8},704443,{"$f":"(((AAMC_Raw_Data_for_FY22[[#This Row],[75th]]-AAMC_Raw_Data_for_FY22[[#This Row],[Median]])/25)*30) + AAMC_Raw_Data_for_FY22[[#This Row],[Median]]","v":726708.2},{"$f":"(((AAMC_Raw_Data_for_FY22[[#This Row],[75th]]-AAMC_Raw_Data_for_FY22[[#This Row],[Median]])/25)*35) + AAMC_Raw_Data_for_FY22[[#This Row],[Median]]","v":748973.4},{"$f":"(((AAMC_Raw_Data_for_FY22[[#This Row],[75th]]-AAMC_Raw_Data_for_FY22[[#This Row],[Median]])/25)*40) + AAMC_Raw_Data_for_FY22[[#This Row],[Median]]","v":771238.6}]
[{"$f":"AAMC_Raw_Data_for_FY22[[#This Row],[Source]]&AAMC_Raw_Data_for_FY22[[#This Row],[Type]]&AAMC_Raw_Data_for_FY22[[#This Row],[School Subset]]&AAMC_Raw_Data_for_FY22[[#This Row],[Rank]]&AAMC_Raw_Data_for_FY22[[#This Row],[Degree]]&AAMC_Raw_Data_for_FY22[[#This Row],[Department / Specialty]]&\"L\"","v":"AAMCAcademicPublicInstructorMDAllergy/Immunology-Med.L"},"Allergy/Immunology-Med.",5,"AAMC","Academic","Public","Instructor","MD","2021-2022",null,{"$f":"(((AAMC_Raw_Data_for_FY22[[#This Row],[Median]]-AAMC_Raw_Data_for_FY22[[#This Row],[25th]])/25)*5) + AAMC_Raw_Data_for_FY22[[#This Row],[25th]]","v":0},{"$f":"(((AAMC_Raw_Data_for_FY22[[#This Row],[Median]]-AAMC_Raw_Data_for_FY22[[#This Row],[25th]])/25)*10) + AAMC_Raw_Data_for_FY22[[#This Row],[25th]]","v":0},{"$f":"(((AAMC_Raw_Data_for_FY22[[#This Row],[Median]]-AAMC_Raw_Data_for_FY22[[#This Row],[25th]])/25)*15) + AAMC_Raw_Data_for_FY22[[#This Row],[25th]]","v":0},{"$f":"(((AAMC_Raw_Data_for_FY22[[#This Row],[Median]]-AAMC_Raw_Data_for_FY22[[#This Row],[25th]])/25)*20) + AAMC_Raw_Data_for_FY22[[#This Row],[25th]]","v":0},null,{"$f":"(((AAMC_Raw_Data_for_FY22[[#This Row],[75th]]-AAMC_Raw_Data_for_FY22[[#This Row],[Median]])/25)*5) + AAMC_Raw_Data_for_FY22[[#This Row],[Median]]","v":0},{"$f":"(((AAMC_Raw_Data_for_FY22[[#This Row],[75th]]-AAMC_Raw_Data_for_FY22[[#This Row],[Median]])/25)*10) + AAMC_Raw_Data_for_FY22[[#This Row],[Median]]","v":0},{"$f":"(((AAMC_Raw_Data_for_FY22[[#This Row],[75th]]-AAMC_Raw_Data_for_FY22[[#This Row],[Median]])/25)*15) + AAMC_Raw_Data_for_FY22[[#This Row],[Median]]","v":0},{"$f":"(((AAMC_Raw_Data_for_FY22[[#This Row],[75th]]-AAMC_Raw_Data_for_FY22[[#This Row],[Median]])/25)*20) + AAMC_Raw_Data_for_FY22[[#This Row],[Median]]","v":0},null,{"$f":"(((AAMC_Raw_Data_for_FY22[[#This Row],[75th]]-AAMC_Raw_Data_for_FY22[[#This Row],[Median]])/25)*30) + AAMC_Raw_Data_for_FY22[[#This Row],[Median]]","v":0},{"$f":"(((AAMC_Raw_Data_for_FY22[[#This Row],[75th]]-AAMC_Raw_Data_for_FY22[[#This Row],[Median]])/25)*35) + AAMC_Raw_Data_for_FY22[[#This Row],[Median]]","v":0},{"$f":"(((AAMC_Raw_Data_for_FY22[[#This Row],[75th]]-AAMC_Raw_Data_for_FY22[[#This Row],[Median]])/25)*40) + AAMC_Raw_Data_for_FY22[[#This Row],[Median]]","v":0}]
[{"$f":"AAMC_Raw_Data_for_FY22[[#This Row],[Source]]&AAMC_Raw_Data_for_FY22[[#This Row],[Type]]&AAMC_Raw_Data_for_FY22[[#This Row],[School Subset]]&AAMC_Raw_Data_for_FY22[[#This Row],[Rank]]&AAMC_Raw_Data_for_FY22[[#This Row],[Degree]]&AAMC_Raw_Data_for_FY22[[#This Row],[Department / Specialty]]&\"L\"","v":"AAMCAcademicPublicAssistantMDAllergy/Immunology-Med.L"},"Allergy/Immunology-Med.",4,"AAMC","Academic","Public","Assistant","MD","2021-2022",184529,{"$f":"(((AAMC_Raw_Data_for_FY22[[#This Row],[Median]]-AAMC_Raw_Data_for_FY22[[#This Row],[25th]])/25)*5) + AAMC_Raw_Data_for_FY22[[#This Row],[25th]]","v":192920.4},{"$f":"(((AAMC_Raw_Data_for_FY22[[#This Row],[Median]]-AAMC_Raw_Data_for_FY22[[#This Row],[25th]])/25)*10) + AAMC_Raw_Data_for_FY22[[#This Row],[25th]]","v":201311.8},{"$f":"(((AAMC_Raw_Data_for_FY22[[#This Row],[Median]]-AAMC_Raw_Data_for_FY22[[#This Row],[25th]])/25)*15) + AAMC_Raw_Data_for_FY22[[#This Row],[25th]]","v":209703.2},{"$f":"(((AAMC_Raw_Data_for_FY22[[#This Row],[Median]]-AAMC_Raw_Data_for_FY22[[#This Row],[25th]])/25)*20) + AAMC_Raw_Data_for_FY22[[#This Row],[25th]]","v":218094.6},226486,{"$f":"(((AAMC_Raw_Data_for_FY22[[#This Row],[75th]]-AAMC_Raw_Data_for_FY22[[#This Row],[Median]])/25)*5) + AAMC_Raw_Data_for_FY22[[#This Row],[Median]]","v":235945},{"$f":"(((AAMC_Raw_Data_for_FY22[[#This Row],[75th]]-AAMC_Raw_Data_for_FY22[[#This Row],[Median]])/25)*10) + AAMC_Raw_Data_for_FY22[[#This Row],[Median]]","v":245404},{"$f":"(((AAMC_Raw_Data_for_FY22[[#This Row],[75th]]-AAMC_Raw_Data_for_FY22[[#This Row],[Median]])/25)*15) + AAMC_Raw_Data_for_FY22[[#This Row],[Median]]","v":254863},{"$f":"(((AAMC_Raw_Data_for_FY22[[#This Row],[75th]]-AAMC_Raw_Data_for_FY22[[#This Row],[Median]])/25)*20) + AAMC_Raw_Data_for_FY22[[#This Row],[Median]]","v":264322},273781,{"$f":"(((AAMC_Raw_Data_for_FY22[[#This Row],[75th]]-AAMC_Raw_Data_for_FY22[[#This Row],[Median]])/25)*30) + AAMC_Raw_Data_for_FY22[[#This Row],[Median]]","v":283240},{"$f":"(((AAMC_Raw_Data_for_FY22[[#This Row],[75th]]-AAMC_Raw_Data_for_FY22[[#This Row],[Median]])/25)*35) + AAMC_Raw_Data_for_FY22[[#This Row],[Median]]","v":292699},{"$f":"(((AAMC_Raw_Data_for_FY22[[#This Row],[75th]]-AAMC_Raw_Data_for_FY22[[#This Row],[Median]])/25)*40) + AAMC_Raw_Data_for_FY22[[#This Row],[Median]]","v":302158}]
[{"$f":"AAMC_Raw_Data_for_FY22[[#This Row],[Source]]&AAMC_Raw_Data_for_FY22[[#This Row],[Type]]&AAMC_Raw_Data_for_FY22[[#This Row],[School Subset]]&AAMC_Raw_Data_for_FY22[[#This Row],[Rank]]&AAMC_Raw_Data_for_FY22[[#This Row],[Degree]]&AAMC_Raw_Data_for_FY22[[#This Row],[Department / Specialty]]&\"L\"","v":"AAMCAcademicPublicAssociateMDAllergy/Immunology-Med.L"},"Allergy/Immunology-Med.",3,"AAMC","Academic","Public","Associate","MD","2021-2022",188801,{"$f":"(((AAMC_Raw_Data_for_FY22[[#This Row],[Median]]-AAMC_Raw_Data_for_FY22[[#This Row],[25th]])/25)*5) + AAMC_Raw_Data_for_FY22[[#This Row],[25th]]","v":197978.4},{"$f":"(((AAMC_Raw_Data_for_FY22[[#This Row],[Median]]-AAMC_Raw_Data_for_FY22[[#This Row],[25th]])/25)*10) + AAMC_Raw_Data_for_FY22[[#This Row],[25th]]","v":207155.8},{"$f":"(((AAMC_Raw_Data_for_FY22[[#This Row],[Median]]-AAMC_Raw_Data_for_FY22[[#This Row],[25th]])/25)*15) + AAMC_Raw_Data_for_FY22[[#This Row],[25th]]","v":216333.2},{"$f":"(((AAMC_Raw_Data_for_FY22[[#This Row],[Median]]-AAMC_Raw_Data_for_FY22[[#This Row],[25th]])/25)*20) + AAMC_Raw_Data_for_FY22[[#This Row],[25th]]","v":225510.6},234688,{"$f":"(((AAMC_Raw_Data_for_FY22[[#This Row],[75th]]-AAMC_Raw_Data_for_FY22[[#This Row],[Median]])/25)*5) + AAMC_Raw_Data_for_FY22[[#This Row],[Median]]","v":239318.6},{"$f":"(((AAMC_Raw_Data_for_FY22[[#This Row],[75th]]-AAMC_Raw_Data_for_FY22[[#This Row],[Median]])/25)*10) + AAMC_Raw_Data_for_FY22[[#This Row],[Median]]","v":243949.2},{"$f":"(((AAMC_Raw_Data_for_FY22[[#This Row],[75th]]-AAMC_Raw_Data_for_FY22[[#This Row],[Median]])/25)*15) + AAMC_Raw_Data_for_FY22[[#This Row],[Median]]","v":248579.8},{"$f":"(((AAMC_Raw_Data_for_FY22[[#This Row],[75th]]-AAMC_Raw_Data_for_FY22[[#This Row],[Median]])/25)*20) + AAMC_Raw_Data_for_FY22[[#This Row],[Median]]","v":253210.4},257841,{"$f":"(((AAMC_Raw_Data_for_FY22[[#This Row],[75th]]-AAMC_Raw_Data_for_FY22[[#This Row],[Median]])/25)*30) + AAMC_Raw_Data_for_FY22[[#This Row],[Median]]","v":262471.59999999998},{"$f":"(((AAMC_Raw_Data_for_FY22[[#This Row],[75th]]-AAMC_Raw_Data_for_FY22[[#This Row],[Median]])/25)*35) + AAMC_Raw_Data_for_FY22[[#This Row],[Median]]","v":267102.2},{"$f":"(((AAMC_Raw_Data_for_FY22[[#This Row],[75th]]-AAMC_Raw_Data_for_FY22[[#This Row],[Median]])/25)*40) + AAMC_Raw_Data_for_FY22[[#This Row],[Median]]","v":271732.8}]
[{"$f":"AAMC_Raw_Data_for_FY22[[#This Row],[Source]]&AAMC_Raw_Data_for_FY22[[#This Row],[Type]]&AAMC_Raw_Data_for_FY22[[#This Row],[School Subset]]&AAMC_Raw_Data_for_FY22[[#This Row],[Rank]]&AAMC_Raw_Data_for_FY22[[#This Row],[Degree]]&AAMC_Raw_Data_for_FY22[[#This Row],[Department / Specialty]]&\"L\"","v":"AAMCAcademicPublicProfessorMDAllergy/Immunology-Med.L"},"Allergy/Immunology-Med.",2,"AAMC","Academic","Public","Professor","MD","2021-2022",196359,{"$f":"(((AAMC_Raw_Data_for_FY22[[#This Row],[Median]]-AAMC_Raw_Data_for_FY22[[#This Row],[25th]])/25)*5) + AAMC_Raw_Data_for_FY22[[#This Row],[25th]]","v":201987.6},{"$f":"(((AAMC_Raw_Data_for_FY22[[#This Row],[Median]]-AAMC_Raw_Data_for_FY22[[#This Row],[25th]])/25)*10) + AAMC_Raw_Data_for_FY22[[#This Row],[25th]]","v":207616.2},{"$f":"(((AAMC_Raw_Data_for_FY22[[#This Row],[Median]]-AAMC_Raw_Data_for_FY22[[#This Row],[25th]])/25)*15) + AAMC_Raw_Data_for_FY22[[#This Row],[25th]]","v":213244.79999999999},{"$f":"(((AAMC_Raw_Data_for_FY22[[#This Row],[Median]]-AAMC_Raw_Data_for_FY22[[#This Row],[25th]])/25)*20) + AAMC_Raw_Data_for_FY22[[#This Row],[25th]]","v":218873.4},224502,{"$f":"(((AAMC_Raw_Data_for_FY22[[#This Row],[75th]]-AAMC_Raw_Data_for_FY22[[#This Row],[Median]])/25)*5) + AAMC_Raw_Data_for_FY22[[#This Row],[Median]]","v":247061.2},{"$f":"(((AAMC_Raw_Data_for_FY22[[#This Row],[75th]]-AAMC_Raw_Data_for_FY22[[#This Row],[Median]])/25)*10) + AAMC_Raw_Data_for_FY22[[#This Row],[Median]]","v":269620.40000000002},{"$f":"(((AAMC_Raw_Data_for_FY22[[#This Row],[75th]]-AAMC_Raw_Data_for_FY22[[#This Row],[Median]])/25)*15) + AAMC_Raw_Data_for_FY22[[#This Row],[Median]]","v":292179.59999999998},{"$f":"(((AAMC_Raw_Data_for_FY22[[#This Row],[75th]]-AAMC_Raw_Data_for_FY22[[#This Row],[Median]])/25)*20) + AAMC_Raw_Data_for_FY22[[#This Row],[Median]]","v":314738.8},337298,{"$f":"(((AAMC_Raw_Data_for_FY22[[#This Row],[75th]]-AAMC_Raw_Data_for_FY22[[#This Row],[Median]])/25)*30) + AAMC_Raw_Data_for_FY22[[#This Row],[Median]]","v":359857.2},{"$f":"(((AAMC_Raw_Data_for_FY22[[#This Row],[75th]]-AAMC_Raw_Data_for_FY22[[#This Row],[Median]])/25)*35) + AAMC_Raw_Data_for_FY22[[#This Row],[Median]]","v":382416.4},{"$f":"(((AAMC_Raw_Data_for_FY22[[#This Row],[75th]]-AAMC_Raw_Data_for_FY22[[#This Row],[Median]])/25)*40) + AAMC_Raw_Data_for_FY22[[#This Row],[Median]]","v":404975.6}]
[{"$f":"AAMC_Raw_Data_for_FY22[[#This Row],[Source]]&AAMC_Raw_Data_for_FY22[[#This Row],[Type]]&AAMC_Raw_Data_for_FY22[[#This Row],[School Subset]]&AAMC_Raw_Data_for_FY22[[#This Row],[Rank]]&AAMC_Raw_Data_for_FY22[[#This Row],[Degree]]&AAMC_Raw_Data_for_FY22[[#This Row],[Department / Specialty]]&\"L\"","v":"AAMCAcademicPublicChiefMDAllergy/Immunology-Med.L"},"Allergy/Immunology-Med.",6,"AAMC","Academic","Public","Chief","MD","2021-2022",263010,{"$f":"(((AAMC_Raw_Data_for_FY22[[#This Row],[Median]]-AAMC_Raw_Data_for_FY22[[#This Row],[25th]])/25)*5) + AAMC_Raw_Data_for_FY22[[#This Row],[25th]]","v":264960},{"$f":"(((AAMC_Raw_Data_for_FY22[[#This Row],[Median]]-AAMC_Raw_Data_for_FY22[[#This Row],[25th]])/25)*10) + AAMC_Raw_Data_for_FY22[[#This Row],[25th]]","v":266910},{"$f":"(((AAMC_Raw_Data_for_FY22[[#This Row],[Median]]-AAMC_Raw_Data_for_FY22[[#This Row],[25th]])/25)*15) + AAMC_Raw_Data_for_FY22[[#This Row],[25th]]","v":268860},{"$f":"(((AAMC_Raw_Data_for_FY22[[#This Row],[Median]]-AAMC_Raw_Data_for_FY22[[#This Row],[25th]])/25)*20) + AAMC_Raw_Data_for_FY22[[#This Row],[25th]]","v":270810},272760,{"$f":"(((AAMC_Raw_Data_for_FY22[[#This Row],[75th]]-AAMC_Raw_Data_for_FY22[[#This Row],[Median]])/25)*5) + AAMC_Raw_Data_for_FY22[[#This Row],[Median]]","v":285197},{"$f":"(((AAMC_Raw_Data_for_FY22[[#This Row],[75th]]-AAMC_Raw_Data_for_FY22[[#This Row],[Median]])/25)*10) + AAMC_Raw_Data_for_FY22[[#This Row],[Median]]","v":297634},{"$f":"(((AAMC_Raw_Data_for_FY22[[#This Row],[75th]]-AAMC_Raw_Data_for_FY22[[#This Row],[Median]])/25)*15) + AAMC_Raw_Data_for_FY22[[#This Row],[Median]]","v":310071},{"$f":"(((AAMC_Raw_Data_for_FY22[[#This Row],[75th]]-AAMC_Raw_Data_for_FY22[[#This Row],[Median]])/25)*20) + AAMC_Raw_Data_for_FY22[[#This Row],[Median]]","v":322508},334945,{"$f":"(((AAMC_Raw_Data_for_FY22[[#This Row],[75th]]-AAMC_Raw_Data_for_FY22[[#This Row],[Median]])/25)*30) + AAMC_Raw_Data_for_FY22[[#This Row],[Median]]","v":347382},{"$f":"(((AAMC_Raw_Data_for_FY22[[#This Row],[75th]]-AAMC_Raw_Data_for_FY22[[#This Row],[Median]])/25)*35) + AAMC_Raw_Data_for_FY22[[#This Row],[Median]]","v":359819},{"$f":"(((AAMC_Raw_Data_for_FY22[[#This Row],[75th]]-AAMC_Raw_Data_for_FY22[[#This Row],[Median]])/25)*40) + AAMC_Raw_Data_for_FY22[[#This Row],[Median]]","v":372256}]
[{"$f":"AAMC_Raw_Data_for_FY22[[#This Row],[Source]]&AAMC_Raw_Data_for_FY22[[#This Row],[Type]]&AAMC_Raw_Data_for_FY22[[#This Row],[School Subset]]&AAMC_Raw_Data_for_FY22[[#This Row],[Rank]]&AAMC_Raw_Data_for_FY22[[#This Row],[Degree]]&AAMC_Raw_Data_for_FY22[[#This Row],[Department / Specialty]]&\"L\"","v":"AAMCAcademicPublicInstructorMDCardiology TotalL"},"Cardiology Total",5,"AAMC","Academic","Public","Instructor","MD","2021-2022",113000,{"$f":"(((AAMC_Raw_Data_for_FY22[[#This Row],[Median]]-AAMC_Raw_Data_for_FY22[[#This Row],[25th]])/25)*5) + AAMC_Raw_Data_for_FY22[[#This Row],[25th]]","v":116400},{"$f":"(((AAMC_Raw_Data_for_FY22[[#This Row],[Median]]-AAMC_Raw_Data_for_FY22[[#This Row],[25th]])/25)*10) + AAMC_Raw_Data_for_FY22[[#This Row],[25th]]","v":119800},{"$f":"(((AAMC_Raw_Data_for_FY22[[#This Row],[Median]]-AAMC_Raw_Data_for_FY22[[#This Row],[25th]])/25)*15) + AAMC_Raw_Data_for_FY22[[#This Row],[25th]]","v":123200},{"$f":"(((AAMC_Raw_Data_for_FY22[[#This Row],[Median]]-AAMC_Raw_Data_for_FY22[[#This Row],[25th]])/25)*20) + AAMC_Raw_Data_for_FY22[[#This Row],[25th]]","v":126600},130000,{"$f":"(((AAMC_Raw_Data_for_FY22[[#This Row],[75th]]-AAMC_Raw_Data_for_FY22[[#This Row],[Median]])/25)*5) + AAMC_Raw_Data_for_FY22[[#This Row],[Median]]","v":152017.20000000001},{"$f":"(((AAMC_Raw_Data_for_FY22[[#This Row],[75th]]-AAMC_Raw_Data_for_FY22[[#This Row],[Median]])/25)*10) + AAMC_Raw_Data_for_FY22[[#This Row],[Median]]","v":174034.4},{"$f":"(((AAMC_Raw_Data_for_FY22[[#This Row],[75th]]-AAMC_Raw_Data_for_FY22[[#This Row],[Median]])/25)*15) + AAMC_Raw_Data_for_FY22[[#This Row],[Median]]","v":196051.59999999998},{"$f":"(((AAMC_Raw_Data_for_FY22[[#This Row],[75th]]-AAMC_Raw_Data_for_FY22[[#This Row],[Median]])/25)*20) + AAMC_Raw_Data_for_FY22[[#This Row],[Median]]","v":218068.8},240086,{"$f":"(((AAMC_Raw_Data_for_FY22[[#This Row],[75th]]-AAMC_Raw_Data_for_FY22[[#This Row],[Median]])/25)*30) + AAMC_Raw_Data_for_FY22[[#This Row],[Median]]","v":262103.19999999998},{"$f":"(((AAMC_Raw_Data_for_FY22[[#This Row],[75th]]-AAMC_Raw_Data_for_FY22[[#This Row],[Median]])/25)*35) + AAMC_Raw_Data_for_FY22[[#This Row],[Median]]","v":284120.40000000002},{"$f":"(((AAMC_Raw_Data_for_FY22[[#This Row],[75th]]-AAMC_Raw_Data_for_FY22[[#This Row],[Median]])/25)*40) + AAMC_Raw_Data_for_FY22[[#This Row],[Median]]","v":306137.59999999998}]
[{"$f":"AAMC_Raw_Data_for_FY22[[#This Row],[Source]]&AAMC_Raw_Data_for_FY22[[#This Row],[Type]]&AAMC_Raw_Data_for_FY22[[#This Row],[School Subset]]&AAMC_Raw_Data_for_FY22[[#This Row],[Rank]]&AAMC_Raw_Data_for_FY22[[#This Row],[Degree]]&AAMC_Raw_Data_for_FY22[[#This Row],[Department / Specialty]]&\"L\"","v":"AAMCAcademicPublicAssistantMDCardiology TotalL"},"Cardiology Total",4,"AAMC","Academic","Public","Assistant","MD","2021-2022",313606,{"$f":"(((AAMC_Raw_Data_for_FY22[[#This Row],[Median]]-AAMC_Raw_Data_for_FY22[[#This Row],[25th]])/25)*5) + AAMC_Raw_Data_for_FY22[[#This Row],[25th]]","v":327131.40000000002},{"$f":"(((AAMC_Raw_Data_for_FY22[[#This Row],[Median]]-AAMC_Raw_Data_for_FY22[[#This Row],[25th]])/25)*10) + AAMC_Raw_Data_for_FY22[[#This Row],[25th]]","v":340656.8},{"$f":"(((AAMC_Raw_Data_for_FY22[[#This Row],[Median]]-AAMC_Raw_Data_for_FY22[[#This Row],[25th]])/25)*15) + AAMC_Raw_Data_for_FY22[[#This Row],[25th]]","v":354182.2},{"$f":"(((AAMC_Raw_Data_for_FY22[[#This Row],[Median]]-AAMC_Raw_Data_for_FY22[[#This Row],[25th]])/25)*20) + AAMC_Raw_Data_for_FY22[[#This Row],[25th]]","v":367707.6},381233,{"$f":"(((AAMC_Raw_Data_for_FY22[[#This Row],[75th]]-AAMC_Raw_Data_for_FY22[[#This Row],[Median]])/25)*5) + AAMC_Raw_Data_for_FY22[[#This Row],[Median]]","v":398248.2},{"$f":"(((AAMC_Raw_Data_for_FY22[[#This Row],[75th]]-AAMC_Raw_Data_for_FY22[[#This Row],[Median]])/25)*10) + AAMC_Raw_Data_for_FY22[[#This Row],[Median]]","v":415263.4},{"$f":"(((AAMC_Raw_Data_for_FY22[[#This Row],[75th]]-AAMC_Raw_Data_for_FY22[[#This Row],[Median]])/25)*15) + AAMC_Raw_Data_for_FY22[[#This Row],[Median]]","v":432278.6},{"$f":"(((AAMC_Raw_Data_for_FY22[[#This Row],[75th]]-AAMC_Raw_Data_for_FY22[[#This Row],[Median]])/25)*20) + AAMC_Raw_Data_for_FY22[[#This Row],[Median]]","v":449293.8},466309,{"$f":"(((AAMC_Raw_Data_for_FY22[[#This Row],[75th]]-AAMC_Raw_Data_for_FY22[[#This Row],[Median]])/25)*30) + AAMC_Raw_Data_for_FY22[[#This Row],[Median]]","v":483324.2},{"$f":"(((AAMC_Raw_Data_for_FY22[[#This Row],[75th]]-AAMC_Raw_Data_for_FY22[[#This Row],[Median]])/25)*35) + AAMC_Raw_Data_for_FY22[[#This Row],[Median]]","v":500339.4},{"$f":"(((AAMC_Raw_Data_for_FY22[[#This Row],[75th]]-AAMC_Raw_Data_for_FY22[[#This Row],[Median]])/25)*40) + AAMC_Raw_Data_for_FY22[[#This Row],[Median]]","v":517354.6}]
[{"$f":"AAMC_Raw_Data_for_FY22[[#This Row],[Source]]&AAMC_Raw_Data_for_FY22[[#This Row],[Type]]&AAMC_Raw_Data_for_FY22[[#This Row],[School Subset]]&AAMC_Raw_Data_for_FY22[[#This Row],[Rank]]&AAMC_Raw_Data_for_FY22[[#This Row],[Degree]]&AAMC_Raw_Data_for_FY22[[#This Row],[Department / Specialty]]&\"L\"","v":"AAMCAcademicPublicAssociateMDCardiology TotalL"},"Cardiology Total",3,"AAMC","Academic","Public","Associate","MD","2021-2022",353773,{"$f":"(((AAMC_Raw_Data_for_FY22[[#This Row],[Median]]-AAMC_Raw_Data_for_FY22[[#This Row],[25th]])/25)*5) + AAMC_Raw_Data_for_FY22[[#This Row],[25th]]","v":366318.2},{"$f":"(((AAMC_Raw_Data_for_FY22[[#This Row],[Median]]-AAMC_Raw_Data_for_FY22[[#This Row],[25th]])/25)*10) + AAMC_Raw_Data_for_FY22[[#This Row],[25th]]","v":378863.4},{"$f":"(((AAMC_Raw_Data_for_FY22[[#This Row],[Median]]-AAMC_Raw_Data_for_FY22[[#This Row],[25th]])/25)*15) + AAMC_Raw_Data_for_FY22[[#This Row],[25th]]","v":391408.6},{"$f":"(((AAMC_Raw_Data_for_FY22[[#This Row],[Median]]-AAMC_Raw_Data_for_FY22[[#This Row],[25th]])/25)*20) + AAMC_Raw_Data_for_FY22[[#This Row],[25th]]","v":403953.8},416499,{"$f":"(((AAMC_Raw_Data_for_FY22[[#This Row],[75th]]-AAMC_Raw_Data_for_FY22[[#This Row],[Median]])/25)*5) + AAMC_Raw_Data_for_FY22[[#This Row],[Median]]","v":434698.8},{"$f":"(((AAMC_Raw_Data_for_FY22[[#This Row],[75th]]-AAMC_Raw_Data_for_FY22[[#This Row],[Median]])/25)*10) + AAMC_Raw_Data_for_FY22[[#This Row],[Median]]","v":452898.6},{"$f":"(((AAMC_Raw_Data_for_FY22[[#This Row],[75th]]-AAMC_Raw_Data_for_FY22[[#This Row],[Median]])/25)*15) + AAMC_Raw_Data_for_FY22[[#This Row],[Median]]","v":471098.4},{"$f":"(((AAMC_Raw_Data_for_FY22[[#This Row],[75th]]-AAMC_Raw_Data_for_FY22[[#This Row],[Median]])/25)*20) + AAMC_Raw_Data_for_FY22[[#This Row],[Median]]","v":489298.2},507498,{"$f":"(((AAMC_Raw_Data_for_FY22[[#This Row],[75th]]-AAMC_Raw_Data_for_FY22[[#This Row],[Median]])/25)*30) + AAMC_Raw_Data_for_FY22[[#This Row],[Median]]","v":525697.80000000005},{"$f":"(((AAMC_Raw_Data_for_FY22[[#This Row],[75th]]-AAMC_Raw_Data_for_FY22[[#This Row],[Median]])/25)*35) + AAMC_Raw_Data_for_FY22[[#This Row],[Median]]","v":543897.59999999998},{"$f":"(((AAMC_Raw_Data_for_FY22[[#This Row],[75th]]-AAMC_Raw_Data_for_FY22[[#This Row],[Median]])/25)*40) + AAMC_Raw_Data_for_FY22[[#This Row],[Median]]","v":562097.4}]
[{"$f":"AAMC_Raw_Data_for_FY22[[#This Row],[Source]]&AAMC_Raw_Data_for_FY22[[#This Row],[Type]]&AAMC_Raw_Data_for_FY22[[#This Row],[School Subset]]&AAMC_Raw_Data_for_FY22[[#This Row],[Rank]]&AAMC_Raw_Data_for_FY22[[#This Row],[Degree]]&AAMC_Raw_Data_for_FY22[[#This Row],[Department / Specialty]]&\"L\"","v":"AAMCAcademicPublicProfessorMDCardiology TotalL"},"Cardiology Total",2,"AAMC","Academic","Public","Professor","MD","2021-2022",351316,{"$f":"(((AAMC_Raw_Data_for_FY22[[#This Row],[Median]]-AAMC_Raw_Data_for_FY22[[#This Row],[25th]])/25)*5) + AAMC_Raw_Data_for_FY22[[#This Row],[25th]]","v":364922.6},{"$f":"(((AAMC_Raw_Data_for_FY22[[#This Row],[Median]]-AAMC_Raw_Data_for_FY22[[#This Row],[25th]])/25)*10) + AAMC_Raw_Data_for_FY22[[#This Row],[25th]]","v":378529.2},{"$f":"(((AAMC_Raw_Data_for_FY22[[#This Row],[Median]]-AAMC_Raw_Data_for_FY22[[#This Row],[25th]])/25)*15) + AAMC_Raw_Data_for_FY22[[#This Row],[25th]]","v":392135.8},{"$f":"(((AAMC_Raw_Data_for_FY22[[#This Row],[Median]]-AAMC_Raw_Data_for_FY22[[#This Row],[25th]])/25)*20) + AAMC_Raw_Data_for_FY22[[#This Row],[25th]]","v":405742.4},419349,{"$f":"(((AAMC_Raw_Data_for_FY22[[#This Row],[75th]]-AAMC_Raw_Data_for_FY22[[#This Row],[Median]])/25)*5) + AAMC_Raw_Data_for_FY22[[#This Row],[Median]]","v":441112.6},{"$f":"(((AAMC_Raw_Data_for_FY22[[#This Row],[75th]]-AAMC_Raw_Data_for_FY22[[#This Row],[Median]])/25)*10) + AAMC_Raw_Data_for_FY22[[#This Row],[Median]]","v":462876.2},{"$f":"(((AAMC_Raw_Data_for_FY22[[#This Row],[75th]]-AAMC_Raw_Data_for_FY22[[#This Row],[Median]])/25)*15) + AAMC_Raw_Data_for_FY22[[#This Row],[Median]]","v":484639.8},{"$f":"(((AAMC_Raw_Data_for_FY22[[#This Row],[75th]]-AAMC_Raw_Data_for_FY22[[#This Row],[Median]])/25)*20) + AAMC_Raw_Data_for_FY22[[#This Row],[Median]]","v":506403.4},528167,{"$f":"(((AAMC_Raw_Data_for_FY22[[#This Row],[75th]]-AAMC_Raw_Data_for_FY22[[#This Row],[Median]])/25)*30) + AAMC_Raw_Data_for_FY22[[#This Row],[Median]]","v":549930.6},{"$f":"(((AAMC_Raw_Data_for_FY22[[#This Row],[75th]]-AAMC_Raw_Data_for_FY22[[#This Row],[Median]])/25)*35) + AAMC_Raw_Data_for_FY22[[#This Row],[Median]]","v":571694.19999999995},{"$f":"(((AAMC_Raw_Data_for_FY22[[#This Row],[75th]]-AAMC_Raw_Data_for_FY22[[#This Row],[Median]])/25)*40) + AAMC_Raw_Data_for_FY22[[#This Row],[Median]]","v":593457.80000000005}]
[{"$f":"AAMC_Raw_Data_for_FY22[[#This Row],[Source]]&AAMC_Raw_Data_for_FY22[[#This Row],[Type]]&AAMC_Raw_Data_for_FY22[[#This Row],[School Subset]]&AAMC_Raw_Data_for_FY22[[#This Row],[Rank]]&AAMC_Raw_Data_for_FY22[[#This Row],[Degree]]&AAMC_Raw_Data_for_FY22[[#This Row],[Department / Specialty]]&\"L\"","v":"AAMCAcademicPublicChiefMDCardiology TotalL"},"Cardiology Total",6,"AAMC","Academic","Public","Chief","MD","2021-2022",506434,{"$f":"(((AAMC_Raw_Data_for_FY22[[#This Row],[Median]]-AAMC_Raw_Data_for_FY22[[#This Row],[25th]])/25)*5) + AAMC_Raw_Data_for_FY22[[#This Row],[25th]]","v":520295.6},{"$f":"(((AAMC_Raw_Data_for_FY22[[#This Row],[Median]]-AAMC_Raw_Data_for_FY22[[#This Row],[25th]])/25)*10) + AAMC_Raw_Data_for_FY22[[#This Row],[25th]]","v":534157.19999999995},{"$f":"(((AAMC_Raw_Data_for_FY22[[#This Row],[Median]]-AAMC_Raw_Data_for_FY22[[#This Row],[25th]])/25)*15) + AAMC_Raw_Data_for_FY22[[#This Row],[25th]]","v":548018.80000000005},{"$f":"(((AAMC_Raw_Data_for_FY22[[#This Row],[Median]]-AAMC_Raw_Data_for_FY22[[#This Row],[25th]])/25)*20) + AAMC_Raw_Data_for_FY22[[#This Row],[25th]]","v":561880.4},575742,{"$f":"(((AAMC_Raw_Data_for_FY22[[#This Row],[75th]]-AAMC_Raw_Data_for_FY22[[#This Row],[Median]])/25)*5) + AAMC_Raw_Data_for_FY22[[#This Row],[Median]]","v":599469.4},{"$f":"(((AAMC_Raw_Data_for_FY22[[#This Row],[75th]]-AAMC_Raw_Data_for_FY22[[#This Row],[Median]])/25)*10) + AAMC_Raw_Data_for_FY22[[#This Row],[Median]]","v":623196.80000000005},{"$f":"(((AAMC_Raw_Data_for_FY22[[#This Row],[75th]]-AAMC_Raw_Data_for_FY22[[#This Row],[Median]])/25)*15) + AAMC_Raw_Data_for_FY22[[#This Row],[Median]]","v":646924.19999999995},{"$f":"(((AAMC_Raw_Data_for_FY22[[#This Row],[75th]]-AAMC_Raw_Data_for_FY22[[#This Row],[Median]])/25)*20) + AAMC_Raw_Data_for_FY22[[#This Row],[Median]]","v":670651.6},694379,{"$f":"(((AAMC_Raw_Data_for_FY22[[#This Row],[75th]]-AAMC_Raw_Data_for_FY22[[#This Row],[Median]])/25)*30) + AAMC_Raw_Data_for_FY22[[#This Row],[Median]]","v":718106.4},{"$f":"(((AAMC_Raw_Data_for_FY22[[#This Row],[75th]]-AAMC_Raw_Data_for_FY22[[#This Row],[Median]])/25)*35) + AAMC_Raw_Data_for_FY22[[#This Row],[Median]]","v":741833.8},{"$f":"(((AAMC_Raw_Data_for_FY22[[#This Row],[75th]]-AAMC_Raw_Data_for_FY22[[#This Row],[Median]])/25)*40) + AAMC_Raw_Data_for_FY22[[#This Row],[Median]]","v":765561.2}]
[{"$f":"AAMC_Raw_Data_for_FY22[[#This Row],[Source]]&AAMC_Raw_Data_for_FY22[[#This Row],[Type]]&AAMC_Raw_Data_for_FY22[[#This Row],[School Subset]]&AAMC_Raw_Data_for_FY22[[#This Row],[Rank]]&AAMC_Raw_Data_for_FY22[[#This Row],[Degree]]&AAMC_Raw_Data_for_FY22[[#This Row],[Department / Specialty]]&\"L\"","v":"AAMCAcademicPublicChairMDCardiology TotalL"},"Cardiology Total",1,"AAMC","Academic","Public","Chair","MD","2021-2022",554574,{"$f":"(((AAMC_Raw_Data_for_FY22[[#This Row],[Median]]-AAMC_Raw_Data_for_FY22[[#This Row],[25th]])/25)*5) + AAMC_Raw_Data_for_FY22[[#This Row],[25th]]","v":572218.19999999995},{"$f":"(((AAMC_Raw_Data_for_FY22[[#This Row],[Median]]-AAMC_Raw_Data_for_FY22[[#This Row],[25th]])/25)*10) + AAMC_Raw_Data_for_FY22[[#This Row],[25th]]","v":589862.40000000002},{"$f":"(((AAMC_Raw_Data_for_FY22[[#This Row],[Median]]-AAMC_Raw_Data_for_FY22[[#This Row],[25th]])/25)*15) + AAMC_Raw_Data_for_FY22[[#This Row],[25th]]","v":607506.6},{"$f":"(((AAMC_Raw_Data_for_FY22[[#This Row],[Median]]-AAMC_Raw_Data_for_FY22[[#This Row],[25th]])/25)*20) + AAMC_Raw_Data_for_FY22[[#This Row],[25th]]","v":625150.80000000005},642795,{"$f":"(((AAMC_Raw_Data_for_FY22[[#This Row],[75th]]-AAMC_Raw_Data_for_FY22[[#This Row],[Median]])/25)*5) + AAMC_Raw_Data_for_FY22[[#This Row],[Median]]","v":674344.6},{"$f":"(((AAMC_Raw_Data_for_FY22[[#This Row],[75th]]-AAMC_Raw_Data_for_FY22[[#This Row],[Median]])/25)*10) + AAMC_Raw_Data_for_FY22[[#This Row],[Median]]","v":705894.2},{"$f":"(((AAMC_Raw_Data_for_FY22[[#This Row],[75th]]-AAMC_Raw_Data_for_FY22[[#This Row],[Median]])/25)*15) + AAMC_Raw_Data_for_FY22[[#This Row],[Median]]","v":737443.8},{"$f":"(((AAMC_Raw_Data_for_FY22[[#This Row],[75th]]-AAMC_Raw_Data_for_FY22[[#This Row],[Median]])/25)*20) + AAMC_Raw_Data_for_FY22[[#This Row],[Median]]","v":768993.4},800543,{"$f":"(((AAMC_Raw_Data_for_FY22[[#This Row],[75th]]-AAMC_Raw_Data_for_FY22[[#This Row],[Median]])/25)*30) + AAMC_Raw_Data_for_FY22[[#This Row],[Median]]","v":832092.6},{"$f":"(((AAMC_Raw_Data_for_FY22[[#This Row],[75th]]-AAMC_Raw_Data_for_FY22[[#This Row],[Median]])/25)*35) + AAMC_Raw_Data_for_FY22[[#This Row],[Median]]","v":863642.2},{"$f":"(((AAMC_Raw_Data_for_FY22[[#This Row],[75th]]-AAMC_Raw_Data_for_FY22[[#This Row],[Median]])/25)*40) + AAMC_Raw_Data_for_FY22[[#This Row],[Median]]","v":895191.8}]
[{"$f":"AAMC_Raw_Data_for_FY22[[#This Row],[Source]]&AAMC_Raw_Data_for_FY22[[#This Row],[Type]]&AAMC_Raw_Data_for_FY22[[#This Row],[School Subset]]&AAMC_Raw_Data_for_FY22[[#This Row],[Rank]]&AAMC_Raw_Data_for_FY22[[#This Row],[Degree]]&AAMC_Raw_Data_for_FY22[[#This Row],[Department / Specialty]]&\"L\"","v":"AAMCAcademicPublicInstructorMDCardiology: Invasive Interventional-Med.L"},"Cardiology: Invasive Interventional-Med.",5,"AAMC","Academic","Public","Instructor","MD","2021-2022",null,{"$f":"(((AAMC_Raw_Data_for_FY22[[#This Row],[Median]]-AAMC_Raw_Data_for_FY22[[#This Row],[25th]])/25)*5) + AAMC_Raw_Data_for_FY22[[#This Row],[25th]]","v":0},{"$f":"(((AAMC_Raw_Data_for_FY22[[#This Row],[Median]]-AAMC_Raw_Data_for_FY22[[#This Row],[25th]])/25)*10) + AAMC_Raw_Data_for_FY22[[#This Row],[25th]]","v":0},{"$f":"(((AAMC_Raw_Data_for_FY22[[#This Row],[Median]]-AAMC_Raw_Data_for_FY22[[#This Row],[25th]])/25)*15) + AAMC_Raw_Data_for_FY22[[#This Row],[25th]]","v":0},{"$f":"(((AAMC_Raw_Data_for_FY22[[#This Row],[Median]]-AAMC_Raw_Data_for_FY22[[#This Row],[25th]])/25)*20) + AAMC_Raw_Data_for_FY22[[#This Row],[25th]]","v":0},null,{"$f":"(((AAMC_Raw_Data_for_FY22[[#This Row],[75th]]-AAMC_Raw_Data_for_FY22[[#This Row],[Median]])/25)*5) + AAMC_Raw_Data_for_FY22[[#This Row],[Median]]","v":0},{"$f":"(((AAMC_Raw_Data_for_FY22[[#This Row],[75th]]-AAMC_Raw_Data_for_FY22[[#This Row],[Median]])/25)*10) + AAMC_Raw_Data_for_FY22[[#This Row],[Median]]","v":0},{"$f":"(((AAMC_Raw_Data_for_FY22[[#This Row],[75th]]-AAMC_Raw_Data_for_FY22[[#This Row],[Median]])/25)*15) + AAMC_Raw_Data_for_FY22[[#This Row],[Median]]","v":0},{"$f":"(((AAMC_Raw_Data_for_FY22[[#This Row],[75th]]-AAMC_Raw_Data_for_FY22[[#This Row],[Median]])/25)*20) + AAMC_Raw_Data_for_FY22[[#This Row],[Median]]","v":0},null,{"$f":"(((AAMC_Raw_Data_for_FY22[[#This Row],[75th]]-AAMC_Raw_Data_for_FY22[[#This Row],[Median]])/25)*30) + AAMC_Raw_Data_for_FY22[[#This Row],[Median]]","v":0},{"$f":"(((AAMC_Raw_Data_for_FY22[[#This Row],[75th]]-AAMC_Raw_Data_for_FY22[[#This Row],[Median]])/25)*35) + AAMC_Raw_Data_for_FY22[[#This Row],[Median]]","v":0},{"$f":"(((AAMC_Raw_Data_for_FY22[[#This Row],[75th]]-AAMC_Raw_Data_for_FY22[[#This Row],[Median]])/25)*40) + AAMC_Raw_Data_for_FY22[[#This Row],[Median]]","v":0}]
[{"$f":"AAMC_Raw_Data_for_FY22[[#This Row],[Source]]&AAMC_Raw_Data_for_FY22[[#This Row],[Type]]&AAMC_Raw_Data_for_FY22[[#This Row],[School Subset]]&AAMC_Raw_Data_for_FY22[[#This Row],[Rank]]&AAMC_Raw_Data_for_FY22[[#This Row],[Degree]]&AAMC_Raw_Data_for_FY22[[#This Row],[Department / Specialty]]&\"L\"","v":"AAMCAcademicPublicAssistantMDCardiology: Invasive Interventional-Med.L"},"Cardiology: Invasive Interventional-Med.",4,"AAMC","Academic","Public","Assistant","MD","2021-2022",357804,{"$f":"(((AAMC_Raw_Data_for_FY22[[#This Row],[Median]]-AAMC_Raw_Data_for_FY22[[#This Row],[25th]])/25)*5) + AAMC_Raw_Data_for_FY22[[#This Row],[25th]]","v":369784.8},{"$f":"(((AAMC_Raw_Data_for_FY22[[#This Row],[Median]]-AAMC_Raw_Data_for_FY22[[#This Row],[25th]])/25)*10) + AAMC_Raw_Data_for_FY22[[#This Row],[25th]]","v":381765.6},{"$f":"(((AAMC_Raw_Data_for_FY22[[#This Row],[Median]]-AAMC_Raw_Data_for_FY22[[#This Row],[25th]])/25)*15) + AAMC_Raw_Data_for_FY22[[#This Row],[25th]]","v":393746.4},{"$f":"(((AAMC_Raw_Data_for_FY22[[#This Row],[Median]]-AAMC_Raw_Data_for_FY22[[#This Row],[25th]])/25)*20) + AAMC_Raw_Data_for_FY22[[#This Row],[25th]]","v":405727.2},417708,{"$f":"(((AAMC_Raw_Data_for_FY22[[#This Row],[75th]]-AAMC_Raw_Data_for_FY22[[#This Row],[Median]])/25)*5) + AAMC_Raw_Data_for_FY22[[#This Row],[Median]]","v":440870},{"$f":"(((AAMC_Raw_Data_for_FY22[[#This Row],[75th]]-AAMC_Raw_Data_for_FY22[[#This Row],[Median]])/25)*10) + AAMC_Raw_Data_for_FY22[[#This Row],[Median]]","v":464032},{"$f":"(((AAMC_Raw_Data_for_FY22[[#This Row],[75th]]-AAMC_Raw_Data_for_FY22[[#This Row],[Median]])/25)*15) + AAMC_Raw_Data_for_FY22[[#This Row],[Median]]","v":487194},{"$f":"(((AAMC_Raw_Data_for_FY22[[#This Row],[75th]]-AAMC_Raw_Data_for_FY22[[#This Row],[Median]])/25)*20) + AAMC_Raw_Data_for_FY22[[#This Row],[Median]]","v":510356},533518,{"$f":"(((AAMC_Raw_Data_for_FY22[[#This Row],[75th]]-AAMC_Raw_Data_for_FY22[[#This Row],[Median]])/25)*30) + AAMC_Raw_Data_for_FY22[[#This Row],[Median]]","v":556680},{"$f":"(((AAMC_Raw_Data_for_FY22[[#This Row],[75th]]-AAMC_Raw_Data_for_FY22[[#This Row],[Median]])/25)*35) + AAMC_Raw_Data_for_FY22[[#This Row],[Median]]","v":579842},{"$f":"(((AAMC_Raw_Data_for_FY22[[#This Row],[75th]]-AAMC_Raw_Data_for_FY22[[#This Row],[Median]])/25)*40) + AAMC_Raw_Data_for_FY22[[#This Row],[Median]]","v":603004}]
[{"$f":"AAMC_Raw_Data_for_FY22[[#This Row],[Source]]&AAMC_Raw_Data_for_FY22[[#This Row],[Type]]&AAMC_Raw_Data_for_FY22[[#This Row],[School Subset]]&AAMC_Raw_Data_for_FY22[[#This Row],[Rank]]&AAMC_Raw_Data_for_FY22[[#This Row],[Degree]]&AAMC_Raw_Data_for_FY22[[#This Row],[Department / Specialty]]&\"L\"","v":"AAMCAcademicPublicAssociateMDCardiology: Invasive Interventional-Med.L"},"Cardiology: Invasive Interventional-Med.",3,"AAMC","Academic","Public","Associate","MD","2021-2022",407325,{"$f":"(((AAMC_Raw_Data_for_FY22[[#This Row],[Median]]-AAMC_Raw_Data_for_FY22[[#This Row],[25th]])/25)*5) + AAMC_Raw_Data_for_FY22[[#This Row],[25th]]","v":416525.8},{"$f":"(((AAMC_Raw_Data_for_FY22[[#This Row],[Median]]-AAMC_Raw_Data_for_FY22[[#This Row],[25th]])/25)*10) + AAMC_Raw_Data_for_FY22[[#This Row],[25th]]","v":425726.6},{"$f":"(((AAMC_Raw_Data_for_FY22[[#This Row],[Median]]-AAMC_Raw_Data_for_FY22[[#This Row],[25th]])/25)*15) + AAMC_Raw_Data_for_FY22[[#This Row],[25th]]","v":434927.4},{"$f":"(((AAMC_Raw_Data_for_FY22[[#This Row],[Median]]-AAMC_Raw_Data_for_FY22[[#This Row],[25th]])/25)*20) + AAMC_Raw_Data_for_FY22[[#This Row],[25th]]","v":444128.2},453329,{"$f":"(((AAMC_Raw_Data_for_FY22[[#This Row],[75th]]-AAMC_Raw_Data_for_FY22[[#This Row],[Median]])/25)*5) + AAMC_Raw_Data_for_FY22[[#This Row],[Median]]","v":471569.4},{"$f":"(((AAMC_Raw_Data_for_FY22[[#This Row],[75th]]-AAMC_Raw_Data_for_FY22[[#This Row],[Median]])/25)*10) + AAMC_Raw_Data_for_FY22[[#This Row],[Median]]","v":489809.8},{"$f":"(((AAMC_Raw_Data_for_FY22[[#This Row],[75th]]-AAMC_Raw_Data_for_FY22[[#This Row],[Median]])/25)*15) + AAMC_Raw_Data_for_FY22[[#This Row],[Median]]","v":508050.2},{"$f":"(((AAMC_Raw_Data_for_FY22[[#This Row],[75th]]-AAMC_Raw_Data_for_FY22[[#This Row],[Median]])/25)*20) + AAMC_Raw_Data_for_FY22[[#This Row],[Median]]","v":526290.6},544531,{"$f":"(((AAMC_Raw_Data_for_FY22[[#This Row],[75th]]-AAMC_Raw_Data_for_FY22[[#This Row],[Median]])/25)*30) + AAMC_Raw_Data_for_FY22[[#This Row],[Median]]","v":562771.4},{"$f":"(((AAMC_Raw_Data_for_FY22[[#This Row],[75th]]-AAMC_Raw_Data_for_FY22[[#This Row],[Median]])/25)*35) + AAMC_Raw_Data_for_FY22[[#This Row],[Median]]","v":581011.80000000005},{"$f":"(((AAMC_Raw_Data_for_FY22[[#This Row],[75th]]-AAMC_Raw_Data_for_FY22[[#This Row],[Median]])/25)*40) + AAMC_Raw_Data_for_FY22[[#This Row],[Median]]","v":599252.19999999995}]
[{"$f":"AAMC_Raw_Data_for_FY22[[#This Row],[Source]]&AAMC_Raw_Data_for_FY22[[#This Row],[Type]]&AAMC_Raw_Data_for_FY22[[#This Row],[School Subset]]&AAMC_Raw_Data_for_FY22[[#This Row],[Rank]]&AAMC_Raw_Data_for_FY22[[#This Row],[Degree]]&AAMC_Raw_Data_for_FY22[[#This Row],[Department / Specialty]]&\"L\"","v":"AAMCAcademicPublicProfessorMDCardiology: Invasive Interventional-Med.L"},"Cardiology: Invasive Interventional-Med.",2,"AAMC","Academic","Public","Professor","MD","2021-2022",402654,{"$f":"(((AAMC_Raw_Data_for_FY22[[#This Row],[Median]]-AAMC_Raw_Data_for_FY22[[#This Row],[25th]])/25)*5) + AAMC_Raw_Data_for_FY22[[#This Row],[25th]]","v":416887.6},{"$f":"(((AAMC_Raw_Data_for_FY22[[#This Row],[Median]]-AAMC_Raw_Data_for_FY22[[#This Row],[25th]])/25)*10) + AAMC_Raw_Data_for_FY22[[#This Row],[25th]]","v":431121.2},{"$f":"(((AAMC_Raw_Data_for_FY22[[#This Row],[Median]]-AAMC_Raw_Data_for_FY22[[#This Row],[25th]])/25)*15) + AAMC_Raw_Data_for_FY22[[#This Row],[25th]]","v":445354.8},{"$f":"(((AAMC_Raw_Data_for_FY22[[#This Row],[Median]]-AAMC_Raw_Data_for_FY22[[#This Row],[25th]])/25)*20) + AAMC_Raw_Data_for_FY22[[#This Row],[25th]]","v":459588.4},473822,{"$f":"(((AAMC_Raw_Data_for_FY22[[#This Row],[75th]]-AAMC_Raw_Data_for_FY22[[#This Row],[Median]])/25)*5) + AAMC_Raw_Data_for_FY22[[#This Row],[Median]]","v":490985.8},{"$f":"(((AAMC_Raw_Data_for_FY22[[#This Row],[75th]]-AAMC_Raw_Data_for_FY22[[#This Row],[Median]])/25)*10) + AAMC_Raw_Data_for_FY22[[#This Row],[Median]]","v":508149.6},{"$f":"(((AAMC_Raw_Data_for_FY22[[#This Row],[75th]]-AAMC_Raw_Data_for_FY22[[#This Row],[Median]])/25)*15) + AAMC_Raw_Data_for_FY22[[#This Row],[Median]]","v":525313.4},{"$f":"(((AAMC_Raw_Data_for_FY22[[#This Row],[75th]]-AAMC_Raw_Data_for_FY22[[#This Row],[Median]])/25)*20) + AAMC_Raw_Data_for_FY22[[#This Row],[Median]]","v":542477.19999999995},559641,{"$f":"(((AAMC_Raw_Data_for_FY22[[#This Row],[75th]]-AAMC_Raw_Data_for_FY22[[#This Row],[Median]])/25)*30) + AAMC_Raw_Data_for_FY22[[#This Row],[Median]]","v":576804.80000000005},{"$f":"(((AAMC_Raw_Data_for_FY22[[#This Row],[75th]]-AAMC_Raw_Data_for_FY22[[#This Row],[Median]])/25)*35) + AAMC_Raw_Data_for_FY22[[#This Row],[Median]]","v":593968.6},{"$f":"(((AAMC_Raw_Data_for_FY22[[#This Row],[75th]]-AAMC_Raw_Data_for_FY22[[#This Row],[Median]])/25)*40) + AAMC_Raw_Data_for_FY22[[#This Row],[Median]]","v":611132.4}]
[{"$f":"AAMC_Raw_Data_for_FY22[[#This Row],[Source]]&AAMC_Raw_Data_for_FY22[[#This Row],[Type]]&AAMC_Raw_Data_for_FY22[[#This Row],[School Subset]]&AAMC_Raw_Data_for_FY22[[#This Row],[Rank]]&AAMC_Raw_Data_for_FY22[[#This Row],[Degree]]&AAMC_Raw_Data_for_FY22[[#This Row],[Department / Specialty]]&\"L\"","v":"AAMCAcademicPublicChiefMDCardiology: Invasive Interventional-Med.L"},"Cardiology: Invasive Interventional-Med.",6,"AAMC","Academic","Public","Chief","MD","2021-2022",537196,{"$f":"(((AAMC_Raw_Data_for_FY22[[#This Row],[Median]]-AAMC_Raw_Data_for_FY22[[#This Row],[25th]])/25)*5) + AAMC_Raw_Data_for_FY22[[#This Row],[25th]]","v":572997.80000000005},{"$f":"(((AAMC_Raw_Data_for_FY22[[#This Row],[Median]]-AAMC_Raw_Data_for_FY22[[#This Row],[25th]])/25)*10) + AAMC_Raw_Data_for_FY22[[#This Row],[25th]]","v":608799.6},{"$f":"(((AAMC_Raw_Data_for_FY22[[#This Row],[Median]]-AAMC_Raw_Data_for_FY22[[#This Row],[25th]])/25)*15) + AAMC_Raw_Data_for_FY22[[#This Row],[25th]]","v":644601.4},{"$f":"(((AAMC_Raw_Data_for_FY22[[#This Row],[Median]]-AAMC_Raw_Data_for_FY22[[#This Row],[25th]])/25)*20) + AAMC_Raw_Data_for_FY22[[#This Row],[25th]]","v":680403.2},716205,{"$f":"(((AAMC_Raw_Data_for_FY22[[#This Row],[75th]]-AAMC_Raw_Data_for_FY22[[#This Row],[Median]])/25)*5) + AAMC_Raw_Data_for_FY22[[#This Row],[Median]]","v":733582.8},{"$f":"(((AAMC_Raw_Data_for_FY22[[#This Row],[75th]]-AAMC_Raw_Data_for_FY22[[#This Row],[Median]])/25)*10) + AAMC_Raw_Data_for_FY22[[#This Row],[Median]]","v":750960.6},{"$f":"(((AAMC_Raw_Data_for_FY22[[#This Row],[75th]]-AAMC_Raw_Data_for_FY22[[#This Row],[Median]])/25)*15) + AAMC_Raw_Data_for_FY22[[#This Row],[Median]]","v":768338.4},{"$f":"(((AAMC_Raw_Data_for_FY22[[#This Row],[75th]]-AAMC_Raw_Data_for_FY22[[#This Row],[Median]])/25)*20) + AAMC_Raw_Data_for_FY22[[#This Row],[Median]]","v":785716.2},803094,{"$f":"(((AAMC_Raw_Data_for_FY22[[#This Row],[75th]]-AAMC_Raw_Data_for_FY22[[#This Row],[Median]])/25)*30) + AAMC_Raw_Data_for_FY22[[#This Row],[Median]]","v":820471.8},{"$f":"(((AAMC_Raw_Data_for_FY22[[#This Row],[75th]]-AAMC_Raw_Data_for_FY22[[#This Row],[Median]])/25)*35) + AAMC_Raw_Data_for_FY22[[#This Row],[Median]]","v":837849.59999999998},{"$f":"(((AAMC_Raw_Data_for_FY22[[#This Row],[75th]]-AAMC_Raw_Data_for_FY22[[#This Row],[Median]])/25)*40) + AAMC_Raw_Data_for_FY22[[#This Row],[Median]]","v":855227.4}]
[{"$f":"AAMC_Raw_Data_for_FY22[[#This Row],[Source]]&AAMC_Raw_Data_for_FY22[[#This Row],[Type]]&AAMC_Raw_Data_for_FY22[[#This Row],[School Subset]]&AAMC_Raw_Data_for_FY22[[#This Row],[Rank]]&AAMC_Raw_Data_for_FY22[[#This Row],[Degree]]&AAMC_Raw_Data_for_FY22[[#This Row],[Department / Specialty]]&\"L\"","v":"AAMCAcademicPublicChairMDCardiology: Invasive Interventional-Med.L"},"Cardiology: Invasive Interventional-Med.",1,"AAMC","Academic","Public","Chair","MD","2021-2022",599699,{"$f":"(((AAMC_Raw_Data_for_FY22[[#This Row],[Median]]-AAMC_Raw_Data_for_FY22[[#This Row],[25th]])/25)*5) + AAMC_Raw_Data_for_FY22[[#This Row],[25th]]","v":613138},{"$f":"(((AAMC_Raw_Data_for_FY22[[#This Row],[Median]]-AAMC_Raw_Data_for_FY22[[#This Row],[25th]])/25)*10) + AAMC_Raw_Data_for_FY22[[#This Row],[25th]]","v":626577},{"$f":"(((AAMC_Raw_Data_for_FY22[[#This Row],[Median]]-AAMC_Raw_Data_for_FY22[[#This Row],[25th]])/25)*15) + AAMC_Raw_Data_for_FY22[[#This Row],[25th]]","v":640016},{"$f":"(((AAMC_Raw_Data_for_FY22[[#This Row],[Median]]-AAMC_Raw_Data_for_FY22[[#This Row],[25th]])/25)*20) + AAMC_Raw_Data_for_FY22[[#This Row],[25th]]","v":653455},666894,{"$f":"(((AAMC_Raw_Data_for_FY22[[#This Row],[75th]]-AAMC_Raw_Data_for_FY22[[#This Row],[Median]])/25)*5) + AAMC_Raw_Data_for_FY22[[#This Row],[Median]]","v":693315.2},{"$f":"(((AAMC_Raw_Data_for_FY22[[#This Row],[75th]]-AAMC_Raw_Data_for_FY22[[#This Row],[Median]])/25)*10) + AAMC_Raw_Data_for_FY22[[#This Row],[Median]]","v":719736.4},{"$f":"(((AAMC_Raw_Data_for_FY22[[#This Row],[75th]]-AAMC_Raw_Data_for_FY22[[#This Row],[Median]])/25)*15) + AAMC_Raw_Data_for_FY22[[#This Row],[Median]]","v":746157.6},{"$f":"(((AAMC_Raw_Data_for_FY22[[#This Row],[75th]]-AAMC_Raw_Data_for_FY22[[#This Row],[Median]])/25)*20) + AAMC_Raw_Data_for_FY22[[#This Row],[Median]]","v":772578.8},799000,{"$f":"(((AAMC_Raw_Data_for_FY22[[#This Row],[75th]]-AAMC_Raw_Data_for_FY22[[#This Row],[Median]])/25)*30) + AAMC_Raw_Data_for_FY22[[#This Row],[Median]]","v":825421.2},{"$f":"(((AAMC_Raw_Data_for_FY22[[#This Row],[75th]]-AAMC_Raw_Data_for_FY22[[#This Row],[Median]])/25)*35) + AAMC_Raw_Data_for_FY22[[#This Row],[Median]]","v":851842.4},{"$f":"(((AAMC_Raw_Data_for_FY22[[#This Row],[75th]]-AAMC_Raw_Data_for_FY22[[#This Row],[Median]])/25)*40) + AAMC_Raw_Data_for_FY22[[#This Row],[Median]]","v":878263.6}]
[{"$f":"AAMC_Raw_Data_for_FY22[[#This Row],[Source]]&AAMC_Raw_Data_for_FY22[[#This Row],[Type]]&AAMC_Raw_Data_for_FY22[[#This Row],[School Subset]]&AAMC_Raw_Data_for_FY22[[#This Row],[Rank]]&AAMC_Raw_Data_for_FY22[[#This Row],[Degree]]&AAMC_Raw_Data_for_FY22[[#This Row],[Department / Specialty]]&\"L\"","v":"AAMCAcademicPublicAssistantMDCardiology: Invasive Non-interventional-Med.L"},"Cardiology: Invasive Non-interventional-Med.",4,"AAMC","Academic","Public","Assistant","MD","2021-2022",343344,{"$f":"(((AAMC_Raw_Data_for_FY22[[#This Row],[Median]]-AAMC_Raw_Data_for_FY22[[#This Row],[25th]])/25)*5) + AAMC_Raw_Data_for_FY22[[#This Row],[25th]]","v":355434.4},{"$f":"(((AAMC_Raw_Data_for_FY22[[#This Row],[Median]]-AAMC_Raw_Data_for_FY22[[#This Row],[25th]])/25)*10) + AAMC_Raw_Data_for_FY22[[#This Row],[25th]]","v":367524.8},{"$f":"(((AAMC_Raw_Data_for_FY22[[#This Row],[Median]]-AAMC_Raw_Data_for_FY22[[#This Row],[25th]])/25)*15) + AAMC_Raw_Data_for_FY22[[#This Row],[25th]]","v":379615.2},{"$f":"(((AAMC_Raw_Data_for_FY22[[#This Row],[Median]]-AAMC_Raw_Data_for_FY22[[#This Row],[25th]])/25)*20) + AAMC_Raw_Data_for_FY22[[#This Row],[25th]]","v":391705.59999999998},403796,{"$f":"(((AAMC_Raw_Data_for_FY22[[#This Row],[75th]]-AAMC_Raw_Data_for_FY22[[#This Row],[Median]])/25)*5) + AAMC_Raw_Data_for_FY22[[#This Row],[Median]]","v":423836.2},{"$f":"(((AAMC_Raw_Data_for_FY22[[#This Row],[75th]]-AAMC_Raw_Data_for_FY22[[#This Row],[Median]])/25)*10) + AAMC_Raw_Data_for_FY22[[#This Row],[Median]]","v":443876.4},{"$f":"(((AAMC_Raw_Data_for_FY22[[#This Row],[75th]]-AAMC_Raw_Data_for_FY22[[#This Row],[Median]])/25)*15) + AAMC_Raw_Data_for_FY22[[#This Row],[Median]]","v":463916.6},{"$f":"(((AAMC_Raw_Data_for_FY22[[#This Row],[75th]]-AAMC_Raw_Data_for_FY22[[#This Row],[Median]])/25)*20) + AAMC_Raw_Data_for_FY22[[#This Row],[Median]]","v":483956.8},503997,{"$f":"(((AAMC_Raw_Data_for_FY22[[#This Row],[75th]]-AAMC_Raw_Data_for_FY22[[#This Row],[Median]])/25)*30) + AAMC_Raw_Data_for_FY22[[#This Row],[Median]]","v":524037.2},{"$f":"(((AAMC_Raw_Data_for_FY22[[#This Row],[75th]]-AAMC_Raw_Data_for_FY22[[#This Row],[Median]])/25)*35) + AAMC_Raw_Data_for_FY22[[#This Row],[Median]]","v":544077.4},{"$f":"(((AAMC_Raw_Data_for_FY22[[#This Row],[75th]]-AAMC_Raw_Data_for_FY22[[#This Row],[Median]])/25)*40) + AAMC_Raw_Data_for_FY22[[#This Row],[Median]]","v":564117.6}]
[{"$f":"AAMC_Raw_Data_for_FY22[[#This Row],[Source]]&AAMC_Raw_Data_for_FY22[[#This Row],[Type]]&AAMC_Raw_Data_for_FY22[[#This Row],[School Subset]]&AAMC_Raw_Data_for_FY22[[#This Row],[Rank]]&AAMC_Raw_Data_for_FY22[[#This Row],[Degree]]&AAMC_Raw_Data_for_FY22[[#This Row],[Department / Specialty]]&\"L\"","v":"AAMCAcademicPublicAssociateMDCardiology: Invasive Non-interventional-Med.L"},"Cardiology: Invasive Non-interventional-Med.",3,"AAMC","Academic","Public","Associate","MD","2021-2022",401040,{"$f":"(((AAMC_Raw_Data_for_FY22[[#This Row],[Median]]-AAMC_Raw_Data_for_FY22[[#This Row],[25th]])/25)*5) + AAMC_Raw_Data_for_FY22[[#This Row],[25th]]","v":416488},{"$f":"(((AAMC_Raw_Data_for_FY22[[#This Row],[Median]]-AAMC_Raw_Data_for_FY22[[#This Row],[25th]])/25)*10) + AAMC_Raw_Data_for_FY22[[#This Row],[25th]]","v":431936},{"$f":"(((AAMC_Raw_Data_for_FY22[[#This Row],[Median]]-AAMC_Raw_Data_for_FY22[[#This Row],[25th]])/25)*15) + AAMC_Raw_Data_for_FY22[[#This Row],[25th]]","v":447384},{"$f":"(((AAMC_Raw_Data_for_FY22[[#This Row],[Median]]-AAMC_Raw_Data_for_FY22[[#This Row],[25th]])/25)*20) + AAMC_Raw_Data_for_FY22[[#This Row],[25th]]","v":462832},478280,{"$f":"(((AAMC_Raw_Data_for_FY22[[#This Row],[75th]]-AAMC_Raw_Data_for_FY22[[#This Row],[Median]])/25)*5) + AAMC_Raw_Data_for_FY22[[#This Row],[Median]]","v":485457.2},{"$f":"(((AAMC_Raw_Data_for_FY22[[#This Row],[75th]]-AAMC_Raw_Data_for_FY22[[#This Row],[Median]])/25)*10) + AAMC_Raw_Data_for_FY22[[#This Row],[Median]]","v":492634.4},{"$f":"(((AAMC_Raw_Data_for_FY22[[#This Row],[75th]]-AAMC_Raw_Data_for_FY22[[#This Row],[Median]])/25)*15) + AAMC_Raw_Data_for_FY22[[#This Row],[Median]]","v":499811.6},{"$f":"(((AAMC_Raw_Data_for_FY22[[#This Row],[75th]]-AAMC_Raw_Data_for_FY22[[#This Row],[Median]])/25)*20) + AAMC_Raw_Data_for_FY22[[#This Row],[Median]]","v":506988.79999999999},514166,{"$f":"(((AAMC_Raw_Data_for_FY22[[#This Row],[75th]]-AAMC_Raw_Data_for_FY22[[#This Row],[Median]])/25)*30) + AAMC_Raw_Data_for_FY22[[#This Row],[Median]]","v":521343.2},{"$f":"(((AAMC_Raw_Data_for_FY22[[#This Row],[75th]]-AAMC_Raw_Data_for_FY22[[#This Row],[Median]])/25)*35) + AAMC_Raw_Data_for_FY22[[#This Row],[Median]]","v":528520.4},{"$f":"(((AAMC_Raw_Data_for_FY22[[#This Row],[75th]]-AAMC_Raw_Data_for_FY22[[#This Row],[Median]])/25)*40) + AAMC_Raw_Data_for_FY22[[#This Row],[Median]]","v":535697.6}]
[{"$f":"AAMC_Raw_Data_for_FY22[[#This Row],[Source]]&AAMC_Raw_Data_for_FY22[[#This Row],[Type]]&AAMC_Raw_Data_for_FY22[[#This Row],[School Subset]]&AAMC_Raw_Data_for_FY22[[#This Row],[Rank]]&AAMC_Raw_Data_for_FY22[[#This Row],[Degree]]&AAMC_Raw_Data_for_FY22[[#This Row],[Department / Specialty]]&\"L\"","v":"AAMCAcademicPublicProfessorMDCardiology: Invasive Non-interventional-Med.L"},"Cardiology: Invasive Non-interventional-Med.",2,"AAMC","Academic","Public","Professor","MD","2021-2022",395735,{"$f":"(((AAMC_Raw_Data_for_FY22[[#This Row],[Median]]-AAMC_Raw_Data_for_FY22[[#This Row],[25th]])/25)*5) + AAMC_Raw_Data_for_FY22[[#This Row],[25th]]","v":419943.4},{"$f":"(((AAMC_Raw_Data_for_FY22[[#This Row],[Median]]-AAMC_Raw_Data_for_FY22[[#This Row],[25th]])/25)*10) + AAMC_Raw_Data_for_FY22[[#This Row],[25th]]","v":444151.8},{"$f":"(((AAMC_Raw_Data_for_FY22[[#This Row],[Median]]-AAMC_Raw_Data_for_FY22[[#This Row],[25th]])/25)*15) + AAMC_Raw_Data_for_FY22[[#This Row],[25th]]","v":468360.2},{"$f":"(((AAMC_Raw_Data_for_FY22[[#This Row],[Median]]-AAMC_Raw_Data_for_FY22[[#This Row],[25th]])/25)*20) + AAMC_Raw_Data_for_FY22[[#This Row],[25th]]","v":492568.6},516777,{"$f":"(((AAMC_Raw_Data_for_FY22[[#This Row],[75th]]-AAMC_Raw_Data_for_FY22[[#This Row],[Median]])/25)*5) + AAMC_Raw_Data_for_FY22[[#This Row],[Median]]","v":528915.4},{"$f":"(((AAMC_Raw_Data_for_FY22[[#This Row],[75th]]-AAMC_Raw_Data_for_FY22[[#This Row],[Median]])/25)*10) + AAMC_Raw_Data_for_FY22[[#This Row],[Median]]","v":541053.80000000005},{"$f":"(((AAMC_Raw_Data_for_FY22[[#This Row],[75th]]-AAMC_Raw_Data_for_FY22[[#This Row],[Median]])/25)*15) + AAMC_Raw_Data_for_FY22[[#This Row],[Median]]","v":553192.19999999995},{"$f":"(((AAMC_Raw_Data_for_FY22[[#This Row],[75th]]-AAMC_Raw_Data_for_FY22[[#This Row],[Median]])/25)*20) + AAMC_Raw_Data_for_FY22[[#This Row],[Median]]","v":565330.6},577469,{"$f":"(((AAMC_Raw_Data_for_FY22[[#This Row],[75th]]-AAMC_Raw_Data_for_FY22[[#This Row],[Median]])/25)*30) + AAMC_Raw_Data_for_FY22[[#This Row],[Median]]","v":589607.4},{"$f":"(((AAMC_Raw_Data_for_FY22[[#This Row],[75th]]-AAMC_Raw_Data_for_FY22[[#This Row],[Median]])/25)*35) + AAMC_Raw_Data_for_FY22[[#This Row],[Median]]","v":601745.80000000005},{"$f":"(((AAMC_Raw_Data_for_FY22[[#This Row],[75th]]-AAMC_Raw_Data_for_FY22[[#This Row],[Median]])/25)*40) + AAMC_Raw_Data_for_FY22[[#This Row],[Median]]","v":613884.19999999995}]
[{"$f":"AAMC_Raw_Data_for_FY22[[#This Row],[Source]]&AAMC_Raw_Data_for_FY22[[#This Row],[Type]]&AAMC_Raw_Data_for_FY22[[#This Row],[School Subset]]&AAMC_Raw_Data_for_FY22[[#This Row],[Rank]]&AAMC_Raw_Data_for_FY22[[#This Row],[Degree]]&AAMC_Raw_Data_for_FY22[[#This Row],[Department / Specialty]]&\"L\"","v":"AAMCAcademicPublicChiefMDCardiology: Invasive Non-interventional-Med.L"},"Cardiology: Invasive Non-interventional-Med.",6,"AAMC","Academic","Public","Chief","MD","2021-2022",null,{"$f":"(((AAMC_Raw_Data_for_FY22[[#This Row],[Median]]-AAMC_Raw_Data_for_FY22[[#This Row],[25th]])/25)*5) + AAMC_Raw_Data_for_FY22[[#This Row],[25th]]","v":0},{"$f":"(((AAMC_Raw_Data_for_FY22[[#This Row],[Median]]-AAMC_Raw_Data_for_FY22[[#This Row],[25th]])/25)*10) + AAMC_Raw_Data_for_FY22[[#This Row],[25th]]","v":0},{"$f":"(((AAMC_Raw_Data_for_FY22[[#This Row],[Median]]-AAMC_Raw_Data_for_FY22[[#This Row],[25th]])/25)*15) + AAMC_Raw_Data_for_FY22[[#This Row],[25th]]","v":0},{"$f":"(((AAMC_Raw_Data_for_FY22[[#This Row],[Median]]-AAMC_Raw_Data_for_FY22[[#This Row],[25th]])/25)*20) + AAMC_Raw_Data_for_FY22[[#This Row],[25th]]","v":0},null,{"$f":"(((AAMC_Raw_Data_for_FY22[[#This Row],[75th]]-AAMC_Raw_Data_for_FY22[[#This Row],[Median]])/25)*5) + AAMC_Raw_Data_for_FY22[[#This Row],[Median]]","v":0},{"$f":"(((AAMC_Raw_Data_for_FY22[[#This Row],[75th]]-AAMC_Raw_Data_for_FY22[[#This Row],[Median]])/25)*10) + AAMC_Raw_Data_for_FY22[[#This Row],[Median]]","v":0},{"$f":"(((AAMC_Raw_Data_for_FY22[[#This Row],[75th]]-AAMC_Raw_Data_for_FY22[[#This Row],[Median]])/25)*15) + AAMC_Raw_Data_for_FY22[[#This Row],[Median]]","v":0},{"$f":"(((AAMC_Raw_Data_for_FY22[[#This Row],[75th]]-AAMC_Raw_Data_for_FY22[[#This Row],[Median]])/25)*20) + AAMC_Raw_Data_for_FY22[[#This Row],[Median]]","v":0},null,{"$f":"(((AAMC_Raw_Data_for_FY22[[#This Row],[75th]]-AAMC_Raw_Data_for_FY22[[#This Row],[Median]])/25)*30) + AAMC_Raw_Data_for_FY22[[#This Row],[Median]]","v":0},{"$f":"(((AAMC_Raw_Data_for_FY22[[#This Row],[75th]]-AAMC_Raw_Data_for_FY22[[#This Row],[Median]])/25)*35) + AAMC_Raw_Data_for_FY22[[#This Row],[Median]]","v":0},{"$f":"(((AAMC_Raw_Data_for_FY22[[#This Row],[75th]]-AAMC_Raw_Data_for_FY22[[#This Row],[Median]])/25)*40) + AAMC_Raw_Data_for_FY22[[#This Row],[Median]]","v":0}]
[{"$f":"AAMC_Raw_Data_for_FY22[[#This Row],[Source]]&AAMC_Raw_Data_for_FY22[[#This Row],[Type]]&AAMC_Raw_Data_for_FY22[[#This Row],[School Subset]]&AAMC_Raw_Data_for_FY22[[#This Row],[Rank]]&AAMC_Raw_Data_for_FY22[[#This Row],[Degree]]&AAMC_Raw_Data_for_FY22[[#This Row],[Department / Specialty]]&\"L\"","v":"AAMCAcademicPublicChairMDCardiology: Invasive Non-interventional-Med.L"},"Cardiology: Invasive Non-interventional-Med.",1,"AAMC","Academic","Public","Chair","MD","2021-2022",null,{"$f":"(((AAMC_Raw_Data_for_FY22[[#This Row],[Median]]-AAMC_Raw_Data_for_FY22[[#This Row],[25th]])/25)*5) + AAMC_Raw_Data_for_FY22[[#This Row],[25th]]","v":0},{"$f":"(((AAMC_Raw_Data_for_FY22[[#This Row],[Median]]-AAMC_Raw_Data_for_FY22[[#This Row],[25th]])/25)*10) + AAMC_Raw_Data_for_FY22[[#This Row],[25th]]","v":0},{"$f":"(((AAMC_Raw_Data_for_FY22[[#This Row],[Median]]-AAMC_Raw_Data_for_FY22[[#This Row],[25th]])/25)*15) + AAMC_Raw_Data_for_FY22[[#This Row],[25th]]","v":0},{"$f":"(((AAMC_Raw_Data_for_FY22[[#This Row],[Median]]-AAMC_Raw_Data_for_FY22[[#This Row],[25th]])/25)*20) + AAMC_Raw_Data_for_FY22[[#This Row],[25th]]","v":0},null,{"$f":"(((AAMC_Raw_Data_for_FY22[[#This Row],[75th]]-AAMC_Raw_Data_for_FY22[[#This Row],[Median]])/25)*5) + AAMC_Raw_Data_for_FY22[[#This Row],[Median]]","v":0},{"$f":"(((AAMC_Raw_Data_for_FY22[[#This Row],[75th]]-AAMC_Raw_Data_for_FY22[[#This Row],[Median]])/25)*10) + AAMC_Raw_Data_for_FY22[[#This Row],[Median]]","v":0},{"$f":"(((AAMC_Raw_Data_for_FY22[[#This Row],[75th]]-AAMC_Raw_Data_for_FY22[[#This Row],[Median]])/25)*15) + AAMC_Raw_Data_for_FY22[[#This Row],[Median]]","v":0},{"$f":"(((AAMC_Raw_Data_for_FY22[[#This Row],[75th]]-AAMC_Raw_Data_for_FY22[[#This Row],[Median]])/25)*20) + AAMC_Raw_Data_for_FY22[[#This Row],[Median]]","v":0},null,{"$f":"(((AAMC_Raw_Data_for_FY22[[#This Row],[75th]]-AAMC_Raw_Data_for_FY22[[#This Row],[Median]])/25)*30) + AAMC_Raw_Data_for_FY22[[#This Row],[Median]]","v":0},{"$f":"(((AAMC_Raw_Data_for_FY22[[#This Row],[75th]]-AAMC_Raw_Data_for_FY22[[#This Row],[Median]])/25)*35) + AAMC_Raw_Data_for_FY22[[#This Row],[Median]]","v":0},{"$f":"(((AAMC_Raw_Data_for_FY22[[#This Row],[75th]]-AAMC_Raw_Data_for_FY22[[#This Row],[Median]])/25)*40) + AAMC_Raw_Data_for_FY22[[#This Row],[Median]]","v":0}]
[{"$f":"AAMC_Raw_Data_for_FY22[[#This Row],[Source]]&AAMC_Raw_Data_for_FY22[[#This Row],[Type]]&AAMC_Raw_Data_for_FY22[[#This Row],[School Subset]]&AAMC_Raw_Data_for_FY22[[#This Row],[Rank]]&AAMC_Raw_Data_for_FY22[[#This Row],[Degree]]&AAMC_Raw_Data_for_FY22[[#This Row],[Department / Specialty]]&\"L\"","v":"AAMCAcademicPublicInstructorMDCardiology: Non-invasive-Med.L"},"Cardiology: Non-invasive-Med.",5,"AAMC","Academic","Public","Instructor","MD","2021-2022",113000,{"$f":"(((AAMC_Raw_Data_for_FY22[[#This Row],[Median]]-AAMC_Raw_Data_for_FY22[[#This Row],[25th]])/25)*5) + AAMC_Raw_Data_for_FY22[[#This Row],[25th]]","v":116400},{"$f":"(((AAMC_Raw_Data_for_FY22[[#This Row],[Median]]-AAMC_Raw_Data_for_FY22[[#This Row],[25th]])/25)*10) + AAMC_Raw_Data_for_FY22[[#This Row],[25th]]","v":119800},{"$f":"(((AAMC_Raw_Data_for_FY22[[#This Row],[Median]]-AAMC_Raw_Data_for_FY22[[#This Row],[25th]])/25)*15) + AAMC_Raw_Data_for_FY22[[#This Row],[25th]]","v":123200},{"$f":"(((AAMC_Raw_Data_for_FY22[[#This Row],[Median]]-AAMC_Raw_Data_for_FY22[[#This Row],[25th]])/25)*20) + AAMC_Raw_Data_for_FY22[[#This Row],[25th]]","v":126600},130000,{"$f":"(((AAMC_Raw_Data_for_FY22[[#This Row],[75th]]-AAMC_Raw_Data_for_FY22[[#This Row],[Median]])/25)*5) + AAMC_Raw_Data_for_FY22[[#This Row],[Median]]","v":152017.20000000001},{"$f":"(((AAMC_Raw_Data_for_FY22[[#This Row],[75th]]-AAMC_Raw_Data_for_FY22[[#This Row],[Median]])/25)*10) + AAMC_Raw_Data_for_FY22[[#This Row],[Median]]","v":174034.4},{"$f":"(((AAMC_Raw_Data_for_FY22[[#This Row],[75th]]-AAMC_Raw_Data_for_FY22[[#This Row],[Median]])/25)*15) + AAMC_Raw_Data_for_FY22[[#This Row],[Median]]","v":196051.59999999998},{"$f":"(((AAMC_Raw_Data_for_FY22[[#This Row],[75th]]-AAMC_Raw_Data_for_FY22[[#This Row],[Median]])/25)*20) + AAMC_Raw_Data_for_FY22[[#This Row],[Median]]","v":218068.8},240086,{"$f":"(((AAMC_Raw_Data_for_FY22[[#This Row],[75th]]-AAMC_Raw_Data_for_FY22[[#This Row],[Median]])/25)*30) + AAMC_Raw_Data_for_FY22[[#This Row],[Median]]","v":262103.19999999998},{"$f":"(((AAMC_Raw_Data_for_FY22[[#This Row],[75th]]-AAMC_Raw_Data_for_FY22[[#This Row],[Median]])/25)*35) + AAMC_Raw_Data_for_FY22[[#This Row],[Median]]","v":284120.40000000002},{"$f":"(((AAMC_Raw_Data_for_FY22[[#This Row],[75th]]-AAMC_Raw_Data_for_FY22[[#This Row],[Median]])/25)*40) + AAMC_Raw_Data_for_FY22[[#This Row],[Median]]","v":306137.59999999998}]
[{"$f":"AAMC_Raw_Data_for_FY22[[#This Row],[Source]]&AAMC_Raw_Data_for_FY22[[#This Row],[Type]]&AAMC_Raw_Data_for_FY22[[#This Row],[School Subset]]&AAMC_Raw_Data_for_FY22[[#This Row],[Rank]]&AAMC_Raw_Data_for_FY22[[#This Row],[Degree]]&AAMC_Raw_Data_for_FY22[[#This Row],[Department / Specialty]]&\"L\"","v":"AAMCAcademicPublicAssistantMDCardiology: Non-invasive-Med.L"},"Cardiology: Non-invasive-Med.",4,"AAMC","Academic","Public","Assistant","MD","2021-2022",300000,{"$f":"(((AAMC_Raw_Data_for_FY22[[#This Row],[Median]]-AAMC_Raw_Data_for_FY22[[#This Row],[25th]])/25)*5) + AAMC_Raw_Data_for_FY22[[#This Row],[25th]]","v":310285},{"$f":"(((AAMC_Raw_Data_for_FY22[[#This Row],[Median]]-AAMC_Raw_Data_for_FY22[[#This Row],[25th]])/25)*10) + AAMC_Raw_Data_for_FY22[[#This Row],[25th]]","v":320570},{"$f":"(((AAMC_Raw_Data_for_FY22[[#This Row],[Median]]-AAMC_Raw_Data_for_FY22[[#This Row],[25th]])/25)*15) + AAMC_Raw_Data_for_FY22[[#This Row],[25th]]","v":330855},{"$f":"(((AAMC_Raw_Data_for_FY22[[#This Row],[Median]]-AAMC_Raw_Data_for_FY22[[#This Row],[25th]])/25)*20) + AAMC_Raw_Data_for_FY22[[#This Row],[25th]]","v":341140},351425,{"$f":"(((AAMC_Raw_Data_for_FY22[[#This Row],[75th]]-AAMC_Raw_Data_for_FY22[[#This Row],[Median]])/25)*5) + AAMC_Raw_Data_for_FY22[[#This Row],[Median]]","v":366418.4},{"$f":"(((AAMC_Raw_Data_for_FY22[[#This Row],[75th]]-AAMC_Raw_Data_for_FY22[[#This Row],[Median]])/25)*10) + AAMC_Raw_Data_for_FY22[[#This Row],[Median]]","v":381411.8},{"$f":"(((AAMC_Raw_Data_for_FY22[[#This Row],[75th]]-AAMC_Raw_Data_for_FY22[[#This Row],[Median]])/25)*15) + AAMC_Raw_Data_for_FY22[[#This Row],[Median]]","v":396405.2},{"$f":"(((AAMC_Raw_Data_for_FY22[[#This Row],[75th]]-AAMC_Raw_Data_for_FY22[[#This Row],[Median]])/25)*20) + AAMC_Raw_Data_for_FY22[[#This Row],[Median]]","v":411398.6},426392,{"$f":"(((AAMC_Raw_Data_for_FY22[[#This Row],[75th]]-AAMC_Raw_Data_for_FY22[[#This Row],[Median]])/25)*30) + AAMC_Raw_Data_for_FY22[[#This Row],[Median]]","v":441385.4},{"$f":"(((AAMC_Raw_Data_for_FY22[[#This Row],[75th]]-AAMC_Raw_Data_for_FY22[[#This Row],[Median]])/25)*35) + AAMC_Raw_Data_for_FY22[[#This Row],[Median]]","v":456378.8},{"$f":"(((AAMC_Raw_Data_for_FY22[[#This Row],[75th]]-AAMC_Raw_Data_for_FY22[[#This Row],[Median]])/25)*40) + AAMC_Raw_Data_for_FY22[[#This Row],[Median]]","v":471372.2}]
[{"$f":"AAMC_Raw_Data_for_FY22[[#This Row],[Source]]&AAMC_Raw_Data_for_FY22[[#This Row],[Type]]&AAMC_Raw_Data_for_FY22[[#This Row],[School Subset]]&AAMC_Raw_Data_for_FY22[[#This Row],[Rank]]&AAMC_Raw_Data_for_FY22[[#This Row],[Degree]]&AAMC_Raw_Data_for_FY22[[#This Row],[Department / Specialty]]&\"L\"","v":"AAMCAcademicPublicAssociateMDCardiology: Non-invasive-Med.L"},"Cardiology: Non-invasive-Med.",3,"AAMC","Academic","Public","Associate","MD","2021-2022",330191,{"$f":"(((AAMC_Raw_Data_for_FY22[[#This Row],[Median]]-AAMC_Raw_Data_for_FY22[[#This Row],[25th]])/25)*5) + AAMC_Raw_Data_for_FY22[[#This Row],[25th]]","v":341552.6},{"$f":"(((AAMC_Raw_Data_for_FY22[[#This Row],[Median]]-AAMC_Raw_Data_for_FY22[[#This Row],[25th]])/25)*10) + AAMC_Raw_Data_for_FY22[[#This Row],[25th]]","v":352914.2},{"$f":"(((AAMC_Raw_Data_for_FY22[[#This Row],[Median]]-AAMC_Raw_Data_for_FY22[[#This Row],[25th]])/25)*15) + AAMC_Raw_Data_for_FY22[[#This Row],[25th]]","v":364275.8},{"$f":"(((AAMC_Raw_Data_for_FY22[[#This Row],[Median]]-AAMC_Raw_Data_for_FY22[[#This Row],[25th]])/25)*20) + AAMC_Raw_Data_for_FY22[[#This Row],[25th]]","v":375637.4},386999,{"$f":"(((AAMC_Raw_Data_for_FY22[[#This Row],[75th]]-AAMC_Raw_Data_for_FY22[[#This Row],[Median]])/25)*5) + AAMC_Raw_Data_for_FY22[[#This Row],[Median]]","v":400224.6},{"$f":"(((AAMC_Raw_Data_for_FY22[[#This Row],[75th]]-AAMC_Raw_Data_for_FY22[[#This Row],[Median]])/25)*10) + AAMC_Raw_Data_for_FY22[[#This Row],[Median]]","v":413450.2},{"$f":"(((AAMC_Raw_Data_for_FY22[[#This Row],[75th]]-AAMC_Raw_Data_for_FY22[[#This Row],[Median]])/25)*15) + AAMC_Raw_Data_for_FY22[[#This Row],[Median]]","v":426675.8},{"$f":"(((AAMC_Raw_Data_for_FY22[[#This Row],[75th]]-AAMC_Raw_Data_for_FY22[[#This Row],[Median]])/25)*20) + AAMC_Raw_Data_for_FY22[[#This Row],[Median]]","v":439901.4},453127,{"$f":"(((AAMC_Raw_Data_for_FY22[[#This Row],[75th]]-AAMC_Raw_Data_for_FY22[[#This Row],[Median]])/25)*30) + AAMC_Raw_Data_for_FY22[[#This Row],[Median]]","v":466352.6},{"$f":"(((AAMC_Raw_Data_for_FY22[[#This Row],[75th]]-AAMC_Raw_Data_for_FY22[[#This Row],[Median]])/25)*35) + AAMC_Raw_Data_for_FY22[[#This Row],[Median]]","v":479578.2},{"$f":"(((AAMC_Raw_Data_for_FY22[[#This Row],[75th]]-AAMC_Raw_Data_for_FY22[[#This Row],[Median]])/25)*40) + AAMC_Raw_Data_for_FY22[[#This Row],[Median]]","v":492803.8}]
[{"$f":"AAMC_Raw_Data_for_FY22[[#This Row],[Source]]&AAMC_Raw_Data_for_FY22[[#This Row],[Type]]&AAMC_Raw_Data_for_FY22[[#This Row],[School Subset]]&AAMC_Raw_Data_for_FY22[[#This Row],[Rank]]&AAMC_Raw_Data_for_FY22[[#This Row],[Degree]]&AAMC_Raw_Data_for_FY22[[#This Row],[Department / Specialty]]&\"L\"","v":"AAMCAcademicPublicProfessorMDCardiology: Non-invasive-Med.L"},"Cardiology: Non-invasive-Med.",2,"AAMC","Academic","Public","Professor","MD","2021-2022",330193,{"$f":"(((AAMC_Raw_Data_for_FY22[[#This Row],[Median]]-AAMC_Raw_Data_for_FY22[[#This Row],[25th]])/25)*5) + AAMC_Raw_Data_for_FY22[[#This Row],[25th]]","v":342231.4},{"$f":"(((AAMC_Raw_Data_for_FY22[[#This Row],[Median]]-AAMC_Raw_Data_for_FY22[[#This Row],[25th]])/25)*10) + AAMC_Raw_Data_for_FY22[[#This Row],[25th]]","v":354269.8},{"$f":"(((AAMC_Raw_Data_for_FY22[[#This Row],[Median]]-AAMC_Raw_Data_for_FY22[[#This Row],[25th]])/25)*15) + AAMC_Raw_Data_for_FY22[[#This Row],[25th]]","v":366308.2},{"$f":"(((AAMC_Raw_Data_for_FY22[[#This Row],[Median]]-AAMC_Raw_Data_for_FY22[[#This Row],[25th]])/25)*20) + AAMC_Raw_Data_for_FY22[[#This Row],[25th]]","v":378346.6},390385,{"$f":"(((AAMC_Raw_Data_for_FY22[[#This Row],[75th]]-AAMC_Raw_Data_for_FY22[[#This Row],[Median]])/25)*5) + AAMC_Raw_Data_for_FY22[[#This Row],[Median]]","v":410679.4},{"$f":"(((AAMC_Raw_Data_for_FY22[[#This Row],[75th]]-AAMC_Raw_Data_for_FY22[[#This Row],[Median]])/25)*10) + AAMC_Raw_Data_for_FY22[[#This Row],[Median]]","v":430973.8},{"$f":"(((AAMC_Raw_Data_for_FY22[[#This Row],[75th]]-AAMC_Raw_Data_for_FY22[[#This Row],[Median]])/25)*15) + AAMC_Raw_Data_for_FY22[[#This Row],[Median]]","v":451268.2},{"$f":"(((AAMC_Raw_Data_for_FY22[[#This Row],[75th]]-AAMC_Raw_Data_for_FY22[[#This Row],[Median]])/25)*20) + AAMC_Raw_Data_for_FY22[[#This Row],[Median]]","v":471562.6},491857,{"$f":"(((AAMC_Raw_Data_for_FY22[[#This Row],[75th]]-AAMC_Raw_Data_for_FY22[[#This Row],[Median]])/25)*30) + AAMC_Raw_Data_for_FY22[[#This Row],[Median]]","v":512151.4},{"$f":"(((AAMC_Raw_Data_for_FY22[[#This Row],[75th]]-AAMC_Raw_Data_for_FY22[[#This Row],[Median]])/25)*35) + AAMC_Raw_Data_for_FY22[[#This Row],[Median]]","v":532445.80000000005},{"$f":"(((AAMC_Raw_Data_for_FY22[[#This Row],[75th]]-AAMC_Raw_Data_for_FY22[[#This Row],[Median]])/25)*40) + AAMC_Raw_Data_for_FY22[[#This Row],[Median]]","v":552740.19999999995}]
[{"$f":"AAMC_Raw_Data_for_FY22[[#This Row],[Source]]&AAMC_Raw_Data_for_FY22[[#This Row],[Type]]&AAMC_Raw_Data_for_FY22[[#This Row],[School Subset]]&AAMC_Raw_Data_for_FY22[[#This Row],[Rank]]&AAMC_Raw_Data_for_FY22[[#This Row],[Degree]]&AAMC_Raw_Data_for_FY22[[#This Row],[Department / Specialty]]&\"L\"","v":"AAMCAcademicPublicChiefMDCardiology: Non-invasive-Med.L"},"Cardiology: Non-invasive-Med.",6,"AAMC","Academic","Public","Chief","MD","2021-2022",470002,{"$f":"(((AAMC_Raw_Data_for_FY22[[#This Row],[Median]]-AAMC_Raw_Data_for_FY22[[#This Row],[25th]])/25)*5) + AAMC_Raw_Data_for_FY22[[#This Row],[25th]]","v":487175.6},{"$f":"(((AAMC_Raw_Data_for_FY22[[#This Row],[Median]]-AAMC_Raw_Data_for_FY22[[#This Row],[25th]])/25)*10) + AAMC_Raw_Data_for_FY22[[#This Row],[25th]]","v":504349.2},{"$f":"(((AAMC_Raw_Data_for_FY22[[#This Row],[Median]]-AAMC_Raw_Data_for_FY22[[#This Row],[25th]])/25)*15) + AAMC_Raw_Data_for_FY22[[#This Row],[25th]]","v":521522.8},{"$f":"(((AAMC_Raw_Data_for_FY22[[#This Row],[Median]]-AAMC_Raw_Data_for_FY22[[#This Row],[25th]])/25)*20) + AAMC_Raw_Data_for_FY22[[#This Row],[25th]]","v":538696.4},555870,{"$f":"(((AAMC_Raw_Data_for_FY22[[#This Row],[75th]]-AAMC_Raw_Data_for_FY22[[#This Row],[Median]])/25)*5) + AAMC_Raw_Data_for_FY22[[#This Row],[Median]]","v":560467},{"$f":"(((AAMC_Raw_Data_for_FY22[[#This Row],[75th]]-AAMC_Raw_Data_for_FY22[[#This Row],[Median]])/25)*10) + AAMC_Raw_Data_for_FY22[[#This Row],[Median]]","v":565064},{"$f":"(((AAMC_Raw_Data_for_FY22[[#This Row],[75th]]-AAMC_Raw_Data_for_FY22[[#This Row],[Median]])/25)*15) + AAMC_Raw_Data_for_FY22[[#This Row],[Median]]","v":569661},{"$f":"(((AAMC_Raw_Data_for_FY22[[#This Row],[75th]]-AAMC_Raw_Data_for_FY22[[#This Row],[Median]])/25)*20) + AAMC_Raw_Data_for_FY22[[#This Row],[Median]]","v":574258},578855,{"$f":"(((AAMC_Raw_Data_for_FY22[[#This Row],[75th]]-AAMC_Raw_Data_for_FY22[[#This Row],[Median]])/25)*30) + AAMC_Raw_Data_for_FY22[[#This Row],[Median]]","v":583452},{"$f":"(((AAMC_Raw_Data_for_FY22[[#This Row],[75th]]-AAMC_Raw_Data_for_FY22[[#This Row],[Median]])/25)*35) + AAMC_Raw_Data_for_FY22[[#This Row],[Median]]","v":588049},{"$f":"(((AAMC_Raw_Data_for_FY22[[#This Row],[75th]]-AAMC_Raw_Data_for_FY22[[#This Row],[Median]])/25)*40) + AAMC_Raw_Data_for_FY22[[#This Row],[Median]]","v":592646}]
[{"$f":"AAMC_Raw_Data_for_FY22[[#This Row],[Source]]&AAMC_Raw_Data_for_FY22[[#This Row],[Type]]&AAMC_Raw_Data_for_FY22[[#This Row],[School Subset]]&AAMC_Raw_Data_for_FY22[[#This Row],[Rank]]&AAMC_Raw_Data_for_FY22[[#This Row],[Degree]]&AAMC_Raw_Data_for_FY22[[#This Row],[Department / Specialty]]&\"L\"","v":"AAMCAcademicPublicChairMDCardiology: Non-invasive-Med.L"},"Cardiology: Non-invasive-Med.",1,"AAMC","Academic","Public","Chair","MD","2021-2022",535378,{"$f":"(((AAMC_Raw_Data_for_FY22[[#This Row],[Median]]-AAMC_Raw_Data_for_FY22[[#This Row],[25th]])/25)*5) + AAMC_Raw_Data_for_FY22[[#This Row],[25th]]","v":544224.80000000005},{"$f":"(((AAMC_Raw_Data_for_FY22[[#This Row],[Median]]-AAMC_Raw_Data_for_FY22[[#This Row],[25th]])/25)*10) + AAMC_Raw_Data_for_FY22[[#This Row],[25th]]","v":553071.6},{"$f":"(((AAMC_Raw_Data_for_FY22[[#This Row],[Median]]-AAMC_Raw_Data_for_FY22[[#This Row],[25th]])/25)*15) + AAMC_Raw_Data_for_FY22[[#This Row],[25th]]","v":561918.4},{"$f":"(((AAMC_Raw_Data_for_FY22[[#This Row],[Median]]-AAMC_Raw_Data_for_FY22[[#This Row],[25th]])/25)*20) + AAMC_Raw_Data_for_FY22[[#This Row],[25th]]","v":570765.19999999995},579612,{"$f":"(((AAMC_Raw_Data_for_FY22[[#This Row],[75th]]-AAMC_Raw_Data_for_FY22[[#This Row],[Median]])/25)*5) + AAMC_Raw_Data_for_FY22[[#This Row],[Median]]","v":624589.6},{"$f":"(((AAMC_Raw_Data_for_FY22[[#This Row],[75th]]-AAMC_Raw_Data_for_FY22[[#This Row],[Median]])/25)*10) + AAMC_Raw_Data_for_FY22[[#This Row],[Median]]","v":669567.19999999995},{"$f":"(((AAMC_Raw_Data_for_FY22[[#This Row],[75th]]-AAMC_Raw_Data_for_FY22[[#This Row],[Median]])/25)*15) + AAMC_Raw_Data_for_FY22[[#This Row],[Median]]","v":714544.8},{"$f":"(((AAMC_Raw_Data_for_FY22[[#This Row],[75th]]-AAMC_Raw_Data_for_FY22[[#This Row],[Median]])/25)*20) + AAMC_Raw_Data_for_FY22[[#This Row],[Median]]","v":759522.4},804500,{"$f":"(((AAMC_Raw_Data_for_FY22[[#This Row],[75th]]-AAMC_Raw_Data_for_FY22[[#This Row],[Median]])/25)*30) + AAMC_Raw_Data_for_FY22[[#This Row],[Median]]","v":849477.60000000009},{"$f":"(((AAMC_Raw_Data_for_FY22[[#This Row],[75th]]-AAMC_Raw_Data_for_FY22[[#This Row],[Median]])/25)*35) + AAMC_Raw_Data_for_FY22[[#This Row],[Median]]","v":894455.2},{"$f":"(((AAMC_Raw_Data_for_FY22[[#This Row],[75th]]-AAMC_Raw_Data_for_FY22[[#This Row],[Median]])/25)*40) + AAMC_Raw_Data_for_FY22[[#This Row],[Median]]","v":939432.8}]
[{"$f":"AAMC_Raw_Data_for_FY22[[#This Row],[Source]]&AAMC_Raw_Data_for_FY22[[#This Row],[Type]]&AAMC_Raw_Data_for_FY22[[#This Row],[School Subset]]&AAMC_Raw_Data_for_FY22[[#This Row],[Rank]]&AAMC_Raw_Data_for_FY22[[#This Row],[Degree]]&AAMC_Raw_Data_for_FY22[[#This Row],[Department / Specialty]]&\"L\"","v":"AAMCAcademicPublicInstructorMDCritical/Intensive Care-Med.L"},"Critical/Intensive Care-Med.",5,"AAMC","Academic","Public","Instructor","MD","2021-2022",null,{"$f":"(((AAMC_Raw_Data_for_FY22[[#This Row],[Median]]-AAMC_Raw_Data_for_FY22[[#This Row],[25th]])/25)*5) + AAMC_Raw_Data_for_FY22[[#This Row],[25th]]","v":0},{"$f":"(((AAMC_Raw_Data_for_FY22[[#This Row],[Median]]-AAMC_Raw_Data_for_FY22[[#This Row],[25th]])/25)*10) + AAMC_Raw_Data_for_FY22[[#This Row],[25th]]","v":0},{"$f":"(((AAMC_Raw_Data_for_FY22[[#This Row],[Median]]-AAMC_Raw_Data_for_FY22[[#This Row],[25th]])/25)*15) + AAMC_Raw_Data_for_FY22[[#This Row],[25th]]","v":0},{"$f":"(((AAMC_Raw_Data_for_FY22[[#This Row],[Median]]-AAMC_Raw_Data_for_FY22[[#This Row],[25th]])/25)*20) + AAMC_Raw_Data_for_FY22[[#This Row],[25th]]","v":0},null,{"$f":"(((AAMC_Raw_Data_for_FY22[[#This Row],[75th]]-AAMC_Raw_Data_for_FY22[[#This Row],[Median]])/25)*5) + AAMC_Raw_Data_for_FY22[[#This Row],[Median]]","v":0},{"$f":"(((AAMC_Raw_Data_for_FY22[[#This Row],[75th]]-AAMC_Raw_Data_for_FY22[[#This Row],[Median]])/25)*10) + AAMC_Raw_Data_for_FY22[[#This Row],[Median]]","v":0},{"$f":"(((AAMC_Raw_Data_for_FY22[[#This Row],[75th]]-AAMC_Raw_Data_for_FY22[[#This Row],[Median]])/25)*15) + AAMC_Raw_Data_for_FY22[[#This Row],[Median]]","v":0},{"$f":"(((AAMC_Raw_Data_for_FY22[[#This Row],[75th]]-AAMC_Raw_Data_for_FY22[[#This Row],[Median]])/25)*20) + AAMC_Raw_Data_for_FY22[[#This Row],[Median]]","v":0},null,{"$f":"(((AAMC_Raw_Data_for_FY22[[#This Row],[75th]]-AAMC_Raw_Data_for_FY22[[#This Row],[Median]])/25)*30) + AAMC_Raw_Data_for_FY22[[#This Row],[Median]]","v":0},{"$f":"(((AAMC_Raw_Data_for_FY22[[#This Row],[75th]]-AAMC_Raw_Data_for_FY22[[#This Row],[Median]])/25)*35) + AAMC_Raw_Data_for_FY22[[#This Row],[Median]]","v":0},{"$f":"(((AAMC_Raw_Data_for_FY22[[#This Row],[75th]]-AAMC_Raw_Data_for_FY22[[#This Row],[Median]])/25)*40) + AAMC_Raw_Data_for_FY22[[#This Row],[Median]]","v":0}]
[{"$f":"AAMC_Raw_Data_for_FY22[[#This Row],[Source]]&AAMC_Raw_Data_for_FY22[[#This Row],[Type]]&AAMC_Raw_Data_for_FY22[[#This Row],[School Subset]]&AAMC_Raw_Data_for_FY22[[#This Row],[Rank]]&AAMC_Raw_Data_for_FY22[[#This Row],[Degree]]&AAMC_Raw_Data_for_FY22[[#This Row],[Department / Specialty]]&\"L\"","v":"AAMCAcademicPublicAssistantMDCritical/Intensive Care-Med.L"},"Critical/Intensive Care-Med.",4,"AAMC","Academic","Public","Assistant","MD","2021-2022",286600,{"$f":"(((AAMC_Raw_Data_for_FY22[[#This Row],[Median]]-AAMC_Raw_Data_for_FY22[[#This Row],[25th]])/25)*5) + AAMC_Raw_Data_for_FY22[[#This Row],[25th]]","v":299280},{"$f":"(((AAMC_Raw_Data_for_FY22[[#This Row],[Median]]-AAMC_Raw_Data_for_FY22[[#This Row],[25th]])/25)*10) + AAMC_Raw_Data_for_FY22[[#This Row],[25th]]","v":311960},{"$f":"(((AAMC_Raw_Data_for_FY22[[#This Row],[Median]]-AAMC_Raw_Data_for_FY22[[#This Row],[25th]])/25)*15) + AAMC_Raw_Data_for_FY22[[#This Row],[25th]]","v":324640},{"$f":"(((AAMC_Raw_Data_for_FY22[[#This Row],[Median]]-AAMC_Raw_Data_for_FY22[[#This Row],[25th]])/25)*20) + AAMC_Raw_Data_for_FY22[[#This Row],[25th]]","v":337320},350000,{"$f":"(((AAMC_Raw_Data_for_FY22[[#This Row],[75th]]-AAMC_Raw_Data_for_FY22[[#This Row],[Median]])/25)*5) + AAMC_Raw_Data_for_FY22[[#This Row],[Median]]","v":362779},{"$f":"(((AAMC_Raw_Data_for_FY22[[#This Row],[75th]]-AAMC_Raw_Data_for_FY22[[#This Row],[Median]])/25)*10) + AAMC_Raw_Data_for_FY22[[#This Row],[Median]]","v":375558},{"$f":"(((AAMC_Raw_Data_for_FY22[[#This Row],[75th]]-AAMC_Raw_Data_for_FY22[[#This Row],[Median]])/25)*15) + AAMC_Raw_Data_for_FY22[[#This Row],[Median]]","v":388337},{"$f":"(((AAMC_Raw_Data_for_FY22[[#This Row],[75th]]-AAMC_Raw_Data_for_FY22[[#This Row],[Median]])/25)*20) + AAMC_Raw_Data_for_FY22[[#This Row],[Median]]","v":401116},413895,{"$f":"(((AAMC_Raw_Data_for_FY22[[#This Row],[75th]]-AAMC_Raw_Data_for_FY22[[#This Row],[Median]])/25)*30) + AAMC_Raw_Data_for_FY22[[#This Row],[Median]]","v":426674},{"$f":"(((AAMC_Raw_Data_for_FY22[[#This Row],[75th]]-AAMC_Raw_Data_for_FY22[[#This Row],[Median]])/25)*35) + AAMC_Raw_Data_for_FY22[[#This Row],[Median]]","v":439453},{"$f":"(((AAMC_Raw_Data_for_FY22[[#This Row],[75th]]-AAMC_Raw_Data_for_FY22[[#This Row],[Median]])/25)*40) + AAMC_Raw_Data_for_FY22[[#This Row],[Median]]","v":452232}]
[{"$f":"AAMC_Raw_Data_for_FY22[[#This Row],[Source]]&AAMC_Raw_Data_for_FY22[[#This Row],[Type]]&AAMC_Raw_Data_for_FY22[[#This Row],[School Subset]]&AAMC_Raw_Data_for_FY22[[#This Row],[Rank]]&AAMC_Raw_Data_for_FY22[[#This Row],[Degree]]&AAMC_Raw_Data_for_FY22[[#This Row],[Department / Specialty]]&\"L\"","v":"AAMCAcademicPublicAssociateMDCritical/Intensive Care-Med.L"},"Critical/Intensive Care-Med.",3,"AAMC","Academic","Public","Associate","MD","2021-2022",303375,{"$f":"(((AAMC_Raw_Data_for_FY22[[#This Row],[Median]]-AAMC_Raw_Data_for_FY22[[#This Row],[25th]])/25)*5) + AAMC_Raw_Data_for_FY22[[#This Row],[25th]]","v":312879.59999999998},{"$f":"(((AAMC_Raw_Data_for_FY22[[#This Row],[Median]]-AAMC_Raw_Data_for_FY22[[#This Row],[25th]])/25)*10) + AAMC_Raw_Data_for_FY22[[#This Row],[25th]]","v":322384.2},{"$f":"(((AAMC_Raw_Data_for_FY22[[#This Row],[Median]]-AAMC_Raw_Data_for_FY22[[#This Row],[25th]])/25)*15) + AAMC_Raw_Data_for_FY22[[#This Row],[25th]]","v":331888.8},{"$f":"(((AAMC_Raw_Data_for_FY22[[#This Row],[Median]]-AAMC_Raw_Data_for_FY22[[#This Row],[25th]])/25)*20) + AAMC_Raw_Data_for_FY22[[#This Row],[25th]]","v":341393.4},350898,{"$f":"(((AAMC_Raw_Data_for_FY22[[#This Row],[75th]]-AAMC_Raw_Data_for_FY22[[#This Row],[Median]])/25)*5) + AAMC_Raw_Data_for_FY22[[#This Row],[Median]]","v":368312},{"$f":"(((AAMC_Raw_Data_for_FY22[[#This Row],[75th]]-AAMC_Raw_Data_for_FY22[[#This Row],[Median]])/25)*10) + AAMC_Raw_Data_for_FY22[[#This Row],[Median]]","v":385726},{"$f":"(((AAMC_Raw_Data_for_FY22[[#This Row],[75th]]-AAMC_Raw_Data_for_FY22[[#This Row],[Median]])/25)*15) + AAMC_Raw_Data_for_FY22[[#This Row],[Median]]","v":403140},{"$f":"(((AAMC_Raw_Data_for_FY22[[#This Row],[75th]]-AAMC_Raw_Data_for_FY22[[#This Row],[Median]])/25)*20) + AAMC_Raw_Data_for_FY22[[#This Row],[Median]]","v":420554},437968,{"$f":"(((AAMC_Raw_Data_for_FY22[[#This Row],[75th]]-AAMC_Raw_Data_for_FY22[[#This Row],[Median]])/25)*30) + AAMC_Raw_Data_for_FY22[[#This Row],[Median]]","v":455382},{"$f":"(((AAMC_Raw_Data_for_FY22[[#This Row],[75th]]-AAMC_Raw_Data_for_FY22[[#This Row],[Median]])/25)*35) + AAMC_Raw_Data_for_FY22[[#This Row],[Median]]","v":472796},{"$f":"(((AAMC_Raw_Data_for_FY22[[#This Row],[75th]]-AAMC_Raw_Data_for_FY22[[#This Row],[Median]])/25)*40) + AAMC_Raw_Data_for_FY22[[#This Row],[Median]]","v":490210}]
[{"$f":"AAMC_Raw_Data_for_FY22[[#This Row],[Source]]&AAMC_Raw_Data_for_FY22[[#This Row],[Type]]&AAMC_Raw_Data_for_FY22[[#This Row],[School Subset]]&AAMC_Raw_Data_for_FY22[[#This Row],[Rank]]&AAMC_Raw_Data_for_FY22[[#This Row],[Degree]]&AAMC_Raw_Data_for_FY22[[#This Row],[Department / Specialty]]&\"L\"","v":"AAMCAcademicPublicProfessorMDCritical/Intensive Care-Med.L"},"Critical/Intensive Care-Med.",2,"AAMC","Academic","Public","Professor","MD","2021-2022",326485,{"$f":"(((AAMC_Raw_Data_for_FY22[[#This Row],[Median]]-AAMC_Raw_Data_for_FY22[[#This Row],[25th]])/25)*5) + AAMC_Raw_Data_for_FY22[[#This Row],[25th]]","v":334221.40000000002},{"$f":"(((AAMC_Raw_Data_for_FY22[[#This Row],[Median]]-AAMC_Raw_Data_for_FY22[[#This Row],[25th]])/25)*10) + AAMC_Raw_Data_for_FY22[[#This Row],[25th]]","v":341957.8},{"$f":"(((AAMC_Raw_Data_for_FY22[[#This Row],[Median]]-AAMC_Raw_Data_for_FY22[[#This Row],[25th]])/25)*15) + AAMC_Raw_Data_for_FY22[[#This Row],[25th]]","v":349694.2},{"$f":"(((AAMC_Raw_Data_for_FY22[[#This Row],[Median]]-AAMC_Raw_Data_for_FY22[[#This Row],[25th]])/25)*20) + AAMC_Raw_Data_for_FY22[[#This Row],[25th]]","v":357430.6},365167,{"$f":"(((AAMC_Raw_Data_for_FY22[[#This Row],[75th]]-AAMC_Raw_Data_for_FY22[[#This Row],[Median]])/25)*5) + AAMC_Raw_Data_for_FY22[[#This Row],[Median]]","v":379045.8},{"$f":"(((AAMC_Raw_Data_for_FY22[[#This Row],[75th]]-AAMC_Raw_Data_for_FY22[[#This Row],[Median]])/25)*10) + AAMC_Raw_Data_for_FY22[[#This Row],[Median]]","v":392924.6},{"$f":"(((AAMC_Raw_Data_for_FY22[[#This Row],[75th]]-AAMC_Raw_Data_for_FY22[[#This Row],[Median]])/25)*15) + AAMC_Raw_Data_for_FY22[[#This Row],[Median]]","v":406803.4},{"$f":"(((AAMC_Raw_Data_for_FY22[[#This Row],[75th]]-AAMC_Raw_Data_for_FY22[[#This Row],[Median]])/25)*20) + AAMC_Raw_Data_for_FY22[[#This Row],[Median]]","v":420682.2},434561,{"$f":"(((AAMC_Raw_Data_for_FY22[[#This Row],[75th]]-AAMC_Raw_Data_for_FY22[[#This Row],[Median]])/25)*30) + AAMC_Raw_Data_for_FY22[[#This Row],[Median]]","v":448439.8},{"$f":"(((AAMC_Raw_Data_for_FY22[[#This Row],[75th]]-AAMC_Raw_Data_for_FY22[[#This Row],[Median]])/25)*35) + AAMC_Raw_Data_for_FY22[[#This Row],[Median]]","v":462318.6},{"$f":"(((AAMC_Raw_Data_for_FY22[[#This Row],[75th]]-AAMC_Raw_Data_for_FY22[[#This Row],[Median]])/25)*40) + AAMC_Raw_Data_for_FY22[[#This Row],[Median]]","v":476197.4}]
[{"$f":"AAMC_Raw_Data_for_FY22[[#This Row],[Source]]&AAMC_Raw_Data_for_FY22[[#This Row],[Type]]&AAMC_Raw_Data_for_FY22[[#This Row],[School Subset]]&AAMC_Raw_Data_for_FY22[[#This Row],[Rank]]&AAMC_Raw_Data_for_FY22[[#This Row],[Degree]]&AAMC_Raw_Data_for_FY22[[#This Row],[Department / Specialty]]&\"L\"","v":"AAMCAcademicPublicChiefMDCritical/Intensive Care-Med.L"},"Critical/Intensive Care-Med.",6,"AAMC","Academic","Public","Chief","MD","2021-2022",431327,{"$f":"(((AAMC_Raw_Data_for_FY22[[#This Row],[Median]]-AAMC_Raw_Data_for_FY22[[#This Row],[25th]])/25)*5) + AAMC_Raw_Data_for_FY22[[#This Row],[25th]]","v":434660.2},{"$f":"(((AAMC_Raw_Data_for_FY22[[#This Row],[Median]]-AAMC_Raw_Data_for_FY22[[#This Row],[25th]])/25)*10) + AAMC_Raw_Data_for_FY22[[#This Row],[25th]]","v":437993.4},{"$f":"(((AAMC_Raw_Data_for_FY22[[#This Row],[Median]]-AAMC_Raw_Data_for_FY22[[#This Row],[25th]])/25)*15) + AAMC_Raw_Data_for_FY22[[#This Row],[25th]]","v":441326.6},{"$f":"(((AAMC_Raw_Data_for_FY22[[#This Row],[Median]]-AAMC_Raw_Data_for_FY22[[#This Row],[25th]])/25)*20) + AAMC_Raw_Data_for_FY22[[#This Row],[25th]]","v":444659.8},447993,{"$f":"(((AAMC_Raw_Data_for_FY22[[#This Row],[75th]]-AAMC_Raw_Data_for_FY22[[#This Row],[Median]])/25)*5) + AAMC_Raw_Data_for_FY22[[#This Row],[Median]]","v":458967},{"$f":"(((AAMC_Raw_Data_for_FY22[[#This Row],[75th]]-AAMC_Raw_Data_for_FY22[[#This Row],[Median]])/25)*10) + AAMC_Raw_Data_for_FY22[[#This Row],[Median]]","v":469941},{"$f":"(((AAMC_Raw_Data_for_FY22[[#This Row],[75th]]-AAMC_Raw_Data_for_FY22[[#This Row],[Median]])/25)*15) + AAMC_Raw_Data_for_FY22[[#This Row],[Median]]","v":480915},{"$f":"(((AAMC_Raw_Data_for_FY22[[#This Row],[75th]]-AAMC_Raw_Data_for_FY22[[#This Row],[Median]])/25)*20) + AAMC_Raw_Data_for_FY22[[#This Row],[Median]]","v":491889},502863,{"$f":"(((AAMC_Raw_Data_for_FY22[[#This Row],[75th]]-AAMC_Raw_Data_for_FY22[[#This Row],[Median]])/25)*30) + AAMC_Raw_Data_for_FY22[[#This Row],[Median]]","v":513837},{"$f":"(((AAMC_Raw_Data_for_FY22[[#This Row],[75th]]-AAMC_Raw_Data_for_FY22[[#This Row],[Median]])/25)*35) + AAMC_Raw_Data_for_FY22[[#This Row],[Median]]","v":524811},{"$f":"(((AAMC_Raw_Data_for_FY22[[#This Row],[75th]]-AAMC_Raw_Data_for_FY22[[#This Row],[Median]])/25)*40) + AAMC_Raw_Data_for_FY22[[#This Row],[Median]]","v":535785}]
[{"$f":"AAMC_Raw_Data_for_FY22[[#This Row],[Source]]&AAMC_Raw_Data_for_FY22[[#This Row],[Type]]&AAMC_Raw_Data_for_FY22[[#This Row],[School Subset]]&AAMC_Raw_Data_for_FY22[[#This Row],[Rank]]&AAMC_Raw_Data_for_FY22[[#This Row],[Degree]]&AAMC_Raw_Data_for_FY22[[#This Row],[Department / Specialty]]&\"L\"","v":"AAMCAcademicPublicChairMDCritical/Intensive Care-Med.L"},"Critical/Intensive Care-Med.",1,"AAMC","Academic","Public","Chair","MD","2021-2022",null,{"$f":"(((AAMC_Raw_Data_for_FY22[[#This Row],[Median]]-AAMC_Raw_Data_for_FY22[[#This Row],[25th]])/25)*5) + AAMC_Raw_Data_for_FY22[[#This Row],[25th]]","v":0},{"$f":"(((AAMC_Raw_Data_for_FY22[[#This Row],[Median]]-AAMC_Raw_Data_for_FY22[[#This Row],[25th]])/25)*10) + AAMC_Raw_Data_for_FY22[[#This Row],[25th]]","v":0},{"$f":"(((AAMC_Raw_Data_for_FY22[[#This Row],[Median]]-AAMC_Raw_Data_for_FY22[[#This Row],[25th]])/25)*15) + AAMC_Raw_Data_for_FY22[[#This Row],[25th]]","v":0},{"$f":"(((AAMC_Raw_Data_for_FY22[[#This Row],[Median]]-AAMC_Raw_Data_for_FY22[[#This Row],[25th]])/25)*20) + AAMC_Raw_Data_for_FY22[[#This Row],[25th]]","v":0},null,{"$f":"(((AAMC_Raw_Data_for_FY22[[#This Row],[75th]]-AAMC_Raw_Data_for_FY22[[#This Row],[Median]])/25)*5) + AAMC_Raw_Data_for_FY22[[#This Row],[Median]]","v":0},{"$f":"(((AAMC_Raw_Data_for_FY22[[#This Row],[75th]]-AAMC_Raw_Data_for_FY22[[#This Row],[Median]])/25)*10) + AAMC_Raw_Data_for_FY22[[#This Row],[Median]]","v":0},{"$f":"(((AAMC_Raw_Data_for_FY22[[#This Row],[75th]]-AAMC_Raw_Data_for_FY22[[#This Row],[Median]])/25)*15) + AAMC_Raw_Data_for_FY22[[#This Row],[Median]]","v":0},{"$f":"(((AAMC_Raw_Data_for_FY22[[#This Row],[75th]]-AAMC_Raw_Data_for_FY22[[#This Row],[Median]])/25)*20) + AAMC_Raw_Data_for_FY22[[#This Row],[Median]]","v":0},null,{"$f":"(((AAMC_Raw_Data_for_FY22[[#This Row],[75th]]-AAMC_Raw_Data_for_FY22[[#This Row],[Median]])/25)*30) + AAMC_Raw_Data_for_FY22[[#This Row],[Median]]","v":0},{"$f":"(((AAMC_Raw_Data_for_FY22[[#This Row],[75th]]-AAMC_Raw_Data_for_FY22[[#This Row],[Median]])/25)*35) + AAMC_Raw_Data_for_FY22[[#This Row],[Median]]","v":0},{"$f":"(((AAMC_Raw_Data_for_FY22[[#This Row],[75th]]-AAMC_Raw_Data_for_FY22[[#This Row],[Median]])/25)*40) + AAMC_Raw_Data_for_FY22[[#This Row],[Median]]","v":0}]
[{"$f":"AAMC_Raw_Data_for_FY22[[#This Row],[Source]]&AAMC_Raw_Data_for_FY22[[#This Row],[Type]]&AAMC_Raw_Data_for_FY22[[#This Row],[School Subset]]&AAMC_Raw_Data_for_FY22[[#This Row],[Rank]]&AAMC_Raw_Data_for_FY22[[#This Row],[Degree]]&AAMC_Raw_Data_for_FY22[[#This Row],[Department / Specialty]]&\"L\"","v":"AAMCAcademicPublicInstructorMDEndocrinology-Med.L"},"Endocrinology-Med.",5,"AAMC","Academic","Public","Instructor","MD","2021-2022",null,{"$f":"(((AAMC_Raw_Data_for_FY22[[#This Row],[Median]]-AAMC_Raw_Data_for_FY22[[#This Row],[25th]])/25)*5) + AAMC_Raw_Data_for_FY22[[#This Row],[25th]]","v":0},{"$f":"(((AAMC_Raw_Data_for_FY22[[#This Row],[Median]]-AAMC_Raw_Data_for_FY22[[#This Row],[25th]])/25)*10) + AAMC_Raw_Data_for_FY22[[#This Row],[25th]]","v":0},{"$f":"(((AAMC_Raw_Data_for_FY22[[#This Row],[Median]]-AAMC_Raw_Data_for_FY22[[#This Row],[25th]])/25)*15) + AAMC_Raw_Data_for_FY22[[#This Row],[25th]]","v":0},{"$f":"(((AAMC_Raw_Data_for_FY22[[#This Row],[Median]]-AAMC_Raw_Data_for_FY22[[#This Row],[25th]])/25)*20) + AAMC_Raw_Data_for_FY22[[#This Row],[25th]]","v":0},null,{"$f":"(((AAMC_Raw_Data_for_FY22[[#This Row],[75th]]-AAMC_Raw_Data_for_FY22[[#This Row],[Median]])/25)*5) + AAMC_Raw_Data_for_FY22[[#This Row],[Median]]","v":0},{"$f":"(((AAMC_Raw_Data_for_FY22[[#This Row],[75th]]-AAMC_Raw_Data_for_FY22[[#This Row],[Median]])/25)*10) + AAMC_Raw_Data_for_FY22[[#This Row],[Median]]","v":0},{"$f":"(((AAMC_Raw_Data_for_FY22[[#This Row],[75th]]-AAMC_Raw_Data_for_FY22[[#This Row],[Median]])/25)*15) + AAMC_Raw_Data_for_FY22[[#This Row],[Median]]","v":0},{"$f":"(((AAMC_Raw_Data_for_FY22[[#This Row],[75th]]-AAMC_Raw_Data_for_FY22[[#This Row],[Median]])/25)*20) + AAMC_Raw_Data_for_FY22[[#This Row],[Median]]","v":0},null,{"$f":"(((AAMC_Raw_Data_for_FY22[[#This Row],[75th]]-AAMC_Raw_Data_for_FY22[[#This Row],[Median]])/25)*30) + AAMC_Raw_Data_for_FY22[[#This Row],[Median]]","v":0},{"$f":"(((AAMC_Raw_Data_for_FY22[[#This Row],[75th]]-AAMC_Raw_Data_for_FY22[[#This Row],[Median]])/25)*35) + AAMC_Raw_Data_for_FY22[[#This Row],[Median]]","v":0},{"$f":"(((AAMC_Raw_Data_for_FY22[[#This Row],[75th]]-AAMC_Raw_Data_for_FY22[[#This Row],[Median]])/25)*40) + AAMC_Raw_Data_for_FY22[[#This Row],[Median]]","v":0}]
[{"$f":"AAMC_Raw_Data_for_FY22[[#This Row],[Source]]&AAMC_Raw_Data_for_FY22[[#This Row],[Type]]&AAMC_Raw_Data_for_FY22[[#This Row],[School Subset]]&AAMC_Raw_Data_for_FY22[[#This Row],[Rank]]&AAMC_Raw_Data_for_FY22[[#This Row],[Degree]]&AAMC_Raw_Data_for_FY22[[#This Row],[Department / Specialty]]&\"L\"","v":"AAMCAcademicPublicAssistantMDEndocrinology-Med.L"},"Endocrinology-Med.",4,"AAMC","Academic","Public","Assistant","MD","2021-2022",176282,{"$f":"(((AAMC_Raw_Data_for_FY22[[#This Row],[Median]]-AAMC_Raw_Data_for_FY22[[#This Row],[25th]])/25)*5) + AAMC_Raw_Data_for_FY22[[#This Row],[25th]]","v":180800.4},{"$f":"(((AAMC_Raw_Data_for_FY22[[#This Row],[Median]]-AAMC_Raw_Data_for_FY22[[#This Row],[25th]])/25)*10) + AAMC_Raw_Data_for_FY22[[#This Row],[25th]]","v":185318.8},{"$f":"(((AAMC_Raw_Data_for_FY22[[#This Row],[Median]]-AAMC_Raw_Data_for_FY22[[#This Row],[25th]])/25)*15) + AAMC_Raw_Data_for_FY22[[#This Row],[25th]]","v":189837.2},{"$f":"(((AAMC_Raw_Data_for_FY22[[#This Row],[Median]]-AAMC_Raw_Data_for_FY22[[#This Row],[25th]])/25)*20) + AAMC_Raw_Data_for_FY22[[#This Row],[25th]]","v":194355.6},198874,{"$f":"(((AAMC_Raw_Data_for_FY22[[#This Row],[75th]]-AAMC_Raw_Data_for_FY22[[#This Row],[Median]])/25)*5) + AAMC_Raw_Data_for_FY22[[#This Row],[Median]]","v":205066},{"$f":"(((AAMC_Raw_Data_for_FY22[[#This Row],[75th]]-AAMC_Raw_Data_for_FY22[[#This Row],[Median]])/25)*10) + AAMC_Raw_Data_for_FY22[[#This Row],[Median]]","v":211258},{"$f":"(((AAMC_Raw_Data_for_FY22[[#This Row],[75th]]-AAMC_Raw_Data_for_FY22[[#This Row],[Median]])/25)*15) + AAMC_Raw_Data_for_FY22[[#This Row],[Median]]","v":217450},{"$f":"(((AAMC_Raw_Data_for_FY22[[#This Row],[75th]]-AAMC_Raw_Data_for_FY22[[#This Row],[Median]])/25)*20) + AAMC_Raw_Data_for_FY22[[#This Row],[Median]]","v":223642},229834,{"$f":"(((AAMC_Raw_Data_for_FY22[[#This Row],[75th]]-AAMC_Raw_Data_for_FY22[[#This Row],[Median]])/25)*30) + AAMC_Raw_Data_for_FY22[[#This Row],[Median]]","v":236026},{"$f":"(((AAMC_Raw_Data_for_FY22[[#This Row],[75th]]-AAMC_Raw_Data_for_FY22[[#This Row],[Median]])/25)*35) + AAMC_Raw_Data_for_FY22[[#This Row],[Median]]","v":242218},{"$f":"(((AAMC_Raw_Data_for_FY22[[#This Row],[75th]]-AAMC_Raw_Data_for_FY22[[#This Row],[Median]])/25)*40) + AAMC_Raw_Data_for_FY22[[#This Row],[Median]]","v":248410}]
[{"$f":"AAMC_Raw_Data_for_FY22[[#This Row],[Source]]&AAMC_Raw_Data_for_FY22[[#This Row],[Type]]&AAMC_Raw_Data_for_FY22[[#This Row],[School Subset]]&AAMC_Raw_Data_for_FY22[[#This Row],[Rank]]&AAMC_Raw_Data_for_FY22[[#This Row],[Degree]]&AAMC_Raw_Data_for_FY22[[#This Row],[Department / Specialty]]&\"L\"","v":"AAMCAcademicPublicAssociateMDEndocrinology-Med.L"},"Endocrinology-Med.",3,"AAMC","Academic","Public","Associate","MD","2021-2022",208944,{"$f":"(((AAMC_Raw_Data_for_FY22[[#This Row],[Median]]-AAMC_Raw_Data_for_FY22[[#This Row],[25th]])/25)*5) + AAMC_Raw_Data_for_FY22[[#This Row],[25th]]","v":212990.4},{"$f":"(((AAMC_Raw_Data_for_FY22[[#This Row],[Median]]-AAMC_Raw_Data_for_FY22[[#This Row],[25th]])/25)*10) + AAMC_Raw_Data_for_FY22[[#This Row],[25th]]","v":217036.79999999999},{"$f":"(((AAMC_Raw_Data_for_FY22[[#This Row],[Median]]-AAMC_Raw_Data_for_FY22[[#This Row],[25th]])/25)*15) + AAMC_Raw_Data_for_FY22[[#This Row],[25th]]","v":221083.2},{"$f":"(((AAMC_Raw_Data_for_FY22[[#This Row],[Median]]-AAMC_Raw_Data_for_FY22[[#This Row],[25th]])/25)*20) + AAMC_Raw_Data_for_FY22[[#This Row],[25th]]","v":225129.60000000001},229176,{"$f":"(((AAMC_Raw_Data_for_FY22[[#This Row],[75th]]-AAMC_Raw_Data_for_FY22[[#This Row],[Median]])/25)*5) + AAMC_Raw_Data_for_FY22[[#This Row],[Median]]","v":235063.6},{"$f":"(((AAMC_Raw_Data_for_FY22[[#This Row],[75th]]-AAMC_Raw_Data_for_FY22[[#This Row],[Median]])/25)*10) + AAMC_Raw_Data_for_FY22[[#This Row],[Median]]","v":240951.2},{"$f":"(((AAMC_Raw_Data_for_FY22[[#This Row],[75th]]-AAMC_Raw_Data_for_FY22[[#This Row],[Median]])/25)*15) + AAMC_Raw_Data_for_FY22[[#This Row],[Median]]","v":246838.8},{"$f":"(((AAMC_Raw_Data_for_FY22[[#This Row],[75th]]-AAMC_Raw_Data_for_FY22[[#This Row],[Median]])/25)*20) + AAMC_Raw_Data_for_FY22[[#This Row],[Median]]","v":252726.39999999999},258614,{"$f":"(((AAMC_Raw_Data_for_FY22[[#This Row],[75th]]-AAMC_Raw_Data_for_FY22[[#This Row],[Median]])/25)*30) + AAMC_Raw_Data_for_FY22[[#This Row],[Median]]","v":264501.59999999998},{"$f":"(((AAMC_Raw_Data_for_FY22[[#This Row],[75th]]-AAMC_Raw_Data_for_FY22[[#This Row],[Median]])/25)*35) + AAMC_Raw_Data_for_FY22[[#This Row],[Median]]","v":270389.2},{"$f":"(((AAMC_Raw_Data_for_FY22[[#This Row],[75th]]-AAMC_Raw_Data_for_FY22[[#This Row],[Median]])/25)*40) + AAMC_Raw_Data_for_FY22[[#This Row],[Median]]","v":276276.8}]
[{"$f":"AAMC_Raw_Data_for_FY22[[#This Row],[Source]]&AAMC_Raw_Data_for_FY22[[#This Row],[Type]]&AAMC_Raw_Data_for_FY22[[#This Row],[School Subset]]&AAMC_Raw_Data_for_FY22[[#This Row],[Rank]]&AAMC_Raw_Data_for_FY22[[#This Row],[Degree]]&AAMC_Raw_Data_for_FY22[[#This Row],[Department / Specialty]]&\"L\"","v":"AAMCAcademicPublicProfessorMDEndocrinology-Med.L"},"Endocrinology-Med.",2,"AAMC","Academic","Public","Professor","MD","2021-2022",239386,{"$f":"(((AAMC_Raw_Data_for_FY22[[#This Row],[Median]]-AAMC_Raw_Data_for_FY22[[#This Row],[25th]])/25)*5) + AAMC_Raw_Data_for_FY22[[#This Row],[25th]]","v":246666.6},{"$f":"(((AAMC_Raw_Data_for_FY22[[#This Row],[Median]]-AAMC_Raw_Data_for_FY22[[#This Row],[25th]])/25)*10) + AAMC_Raw_Data_for_FY22[[#This Row],[25th]]","v":253947.2},{"$f":"(((AAMC_Raw_Data_for_FY22[[#This Row],[Median]]-AAMC_Raw_Data_for_FY22[[#This Row],[25th]])/25)*15) + AAMC_Raw_Data_for_FY22[[#This Row],[25th]]","v":261227.8},{"$f":"(((AAMC_Raw_Data_for_FY22[[#This Row],[Median]]-AAMC_Raw_Data_for_FY22[[#This Row],[25th]])/25)*20) + AAMC_Raw_Data_for_FY22[[#This Row],[25th]]","v":268508.40000000002},275789,{"$f":"(((AAMC_Raw_Data_for_FY22[[#This Row],[75th]]-AAMC_Raw_Data_for_FY22[[#This Row],[Median]])/25)*5) + AAMC_Raw_Data_for_FY22[[#This Row],[Median]]","v":285745.8},{"$f":"(((AAMC_Raw_Data_for_FY22[[#This Row],[75th]]-AAMC_Raw_Data_for_FY22[[#This Row],[Median]])/25)*10) + AAMC_Raw_Data_for_FY22[[#This Row],[Median]]","v":295702.59999999998},{"$f":"(((AAMC_Raw_Data_for_FY22[[#This Row],[75th]]-AAMC_Raw_Data_for_FY22[[#This Row],[Median]])/25)*15) + AAMC_Raw_Data_for_FY22[[#This Row],[Median]]","v":305659.40000000002},{"$f":"(((AAMC_Raw_Data_for_FY22[[#This Row],[75th]]-AAMC_Raw_Data_for_FY22[[#This Row],[Median]])/25)*20) + AAMC_Raw_Data_for_FY22[[#This Row],[Median]]","v":315616.2},325573,{"$f":"(((AAMC_Raw_Data_for_FY22[[#This Row],[75th]]-AAMC_Raw_Data_for_FY22[[#This Row],[Median]])/25)*30) + AAMC_Raw_Data_for_FY22[[#This Row],[Median]]","v":335529.8},{"$f":"(((AAMC_Raw_Data_for_FY22[[#This Row],[75th]]-AAMC_Raw_Data_for_FY22[[#This Row],[Median]])/25)*35) + AAMC_Raw_Data_for_FY22[[#This Row],[Median]]","v":345486.6},{"$f":"(((AAMC_Raw_Data_for_FY22[[#This Row],[75th]]-AAMC_Raw_Data_for_FY22[[#This Row],[Median]])/25)*40) + AAMC_Raw_Data_for_FY22[[#This Row],[Median]]","v":355443.4}]
[{"$f":"AAMC_Raw_Data_for_FY22[[#This Row],[Source]]&AAMC_Raw_Data_for_FY22[[#This Row],[Type]]&AAMC_Raw_Data_for_FY22[[#This Row],[School Subset]]&AAMC_Raw_Data_for_FY22[[#This Row],[Rank]]&AAMC_Raw_Data_for_FY22[[#This Row],[Degree]]&AAMC_Raw_Data_for_FY22[[#This Row],[Department / Specialty]]&\"L\"","v":"AAMCAcademicPublicChiefMDEndocrinology-Med.L"},"Endocrinology-Med.",6,"AAMC","Academic","Public","Chief","MD","2021-2022",277752,{"$f":"(((AAMC_Raw_Data_for_FY22[[#This Row],[Median]]-AAMC_Raw_Data_for_FY22[[#This Row],[25th]])/25)*5) + AAMC_Raw_Data_for_FY22[[#This Row],[25th]]","v":286178.2},{"$f":"(((AAMC_Raw_Data_for_FY22[[#This Row],[Median]]-AAMC_Raw_Data_for_FY22[[#This Row],[25th]])/25)*10) + AAMC_Raw_Data_for_FY22[[#This Row],[25th]]","v":294604.40000000002},{"$f":"(((AAMC_Raw_Data_for_FY22[[#This Row],[Median]]-AAMC_Raw_Data_for_FY22[[#This Row],[25th]])/25)*15) + AAMC_Raw_Data_for_FY22[[#This Row],[25th]]","v":303030.59999999998},{"$f":"(((AAMC_Raw_Data_for_FY22[[#This Row],[Median]]-AAMC_Raw_Data_for_FY22[[#This Row],[25th]])/25)*20) + AAMC_Raw_Data_for_FY22[[#This Row],[25th]]","v":311456.8},319883,{"$f":"(((AAMC_Raw_Data_for_FY22[[#This Row],[75th]]-AAMC_Raw_Data_for_FY22[[#This Row],[Median]])/25)*5) + AAMC_Raw_Data_for_FY22[[#This Row],[Median]]","v":325521.2},{"$f":"(((AAMC_Raw_Data_for_FY22[[#This Row],[75th]]-AAMC_Raw_Data_for_FY22[[#This Row],[Median]])/25)*10) + AAMC_Raw_Data_for_FY22[[#This Row],[Median]]","v":331159.40000000002},{"$f":"(((AAMC_Raw_Data_for_FY22[[#This Row],[75th]]-AAMC_Raw_Data_for_FY22[[#This Row],[Median]])/25)*15) + AAMC_Raw_Data_for_FY22[[#This Row],[Median]]","v":336797.6},{"$f":"(((AAMC_Raw_Data_for_FY22[[#This Row],[75th]]-AAMC_Raw_Data_for_FY22[[#This Row],[Median]])/25)*20) + AAMC_Raw_Data_for_FY22[[#This Row],[Median]]","v":342435.8},348074,{"$f":"(((AAMC_Raw_Data_for_FY22[[#This Row],[75th]]-AAMC_Raw_Data_for_FY22[[#This Row],[Median]])/25)*30) + AAMC_Raw_Data_for_FY22[[#This Row],[Median]]","v":353712.2},{"$f":"(((AAMC_Raw_Data_for_FY22[[#This Row],[75th]]-AAMC_Raw_Data_for_FY22[[#This Row],[Median]])/25)*35) + AAMC_Raw_Data_for_FY22[[#This Row],[Median]]","v":359350.4},{"$f":"(((AAMC_Raw_Data_for_FY22[[#This Row],[75th]]-AAMC_Raw_Data_for_FY22[[#This Row],[Median]])/25)*40) + AAMC_Raw_Data_for_FY22[[#This Row],[Median]]","v":364988.6}]
[{"$f":"AAMC_Raw_Data_for_FY22[[#This Row],[Source]]&AAMC_Raw_Data_for_FY22[[#This Row],[Type]]&AAMC_Raw_Data_for_FY22[[#This Row],[School Subset]]&AAMC_Raw_Data_for_FY22[[#This Row],[Rank]]&AAMC_Raw_Data_for_FY22[[#This Row],[Degree]]&AAMC_Raw_Data_for_FY22[[#This Row],[Department / Specialty]]&\"L\"","v":"AAMCAcademicPublicChairMDEndocrinology-Med.L"},"Endocrinology-Med.",1,"AAMC","Academic","Public","Chair","MD","2021-2022",null,{"$f":"(((AAMC_Raw_Data_for_FY22[[#This Row],[Median]]-AAMC_Raw_Data_for_FY22[[#This Row],[25th]])/25)*5) + AAMC_Raw_Data_for_FY22[[#This Row],[25th]]","v":0},{"$f":"(((AAMC_Raw_Data_for_FY22[[#This Row],[Median]]-AAMC_Raw_Data_for_FY22[[#This Row],[25th]])/25)*10) + AAMC_Raw_Data_for_FY22[[#This Row],[25th]]","v":0},{"$f":"(((AAMC_Raw_Data_for_FY22[[#This Row],[Median]]-AAMC_Raw_Data_for_FY22[[#This Row],[25th]])/25)*15) + AAMC_Raw_Data_for_FY22[[#This Row],[25th]]","v":0},{"$f":"(((AAMC_Raw_Data_for_FY22[[#This Row],[Median]]-AAMC_Raw_Data_for_FY22[[#This Row],[25th]])/25)*20) + AAMC_Raw_Data_for_FY22[[#This Row],[25th]]","v":0},null,{"$f":"(((AAMC_Raw_Data_for_FY22[[#This Row],[75th]]-AAMC_Raw_Data_for_FY22[[#This Row],[Median]])/25)*5) + AAMC_Raw_Data_for_FY22[[#This Row],[Median]]","v":0},{"$f":"(((AAMC_Raw_Data_for_FY22[[#This Row],[75th]]-AAMC_Raw_Data_for_FY22[[#This Row],[Median]])/25)*10) + AAMC_Raw_Data_for_FY22[[#This Row],[Median]]","v":0},{"$f":"(((AAMC_Raw_Data_for_FY22[[#This Row],[75th]]-AAMC_Raw_Data_for_FY22[[#This Row],[Median]])/25)*15) + AAMC_Raw_Data_for_FY22[[#This Row],[Median]]","v":0},{"$f":"(((AAMC_Raw_Data_for_FY22[[#This Row],[75th]]-AAMC_Raw_Data_for_FY22[[#This Row],[Median]])/25)*20) + AAMC_Raw_Data_for_FY22[[#This Row],[Median]]","v":0},null,{"$f":"(((AAMC_Raw_Data_for_FY22[[#This Row],[75th]]-AAMC_Raw_Data_for_FY22[[#This Row],[Median]])/25)*30) + AAMC_Raw_Data_for_FY22[[#This Row],[Median]]","v":0},{"$f":"(((AAMC_Raw_Data_for_FY22[[#This Row],[75th]]-AAMC_Raw_Data_for_FY22[[#This Row],[Median]])/25)*35) + AAMC_Raw_Data_for_FY22[[#This Row],[Median]]","v":0},{"$f":"(((AAMC_Raw_Data_for_FY22[[#This Row],[75th]]-AAMC_Raw_Data_for_FY22[[#This Row],[Median]])/25)*40) + AAMC_Raw_Data_for_FY22[[#This Row],[Median]]","v":0}]
[{"$f":"AAMC_Raw_Data_for_FY22[[#This Row],[Source]]&AAMC_Raw_Data_for_FY22[[#This Row],[Type]]&AAMC_Raw_Data_for_FY22[[#This Row],[School Subset]]&AAMC_Raw_Data_for_FY22[[#This Row],[Rank]]&AAMC_Raw_Data_for_FY22[[#This Row],[Degree]]&AAMC_Raw_Data_for_FY22[[#This Row],[Department / Specialty]]&\"L\"","v":"AAMCAcademicPublicInstructorMDGastroenterology-Med.L"},"Gastroenterology-Med.",5,"AAMC","Academic","Public","Instructor","MD","2021-2022",94603,{"$f":"(((AAMC_Raw_Data_for_FY22[[#This Row],[Median]]-AAMC_Raw_Data_for_FY22[[#This Row],[25th]])/25)*5) + AAMC_Raw_Data_for_FY22[[#This Row],[25th]]","v":118762.4},{"$f":"(((AAMC_Raw_Data_for_FY22[[#This Row],[Median]]-AAMC_Raw_Data_for_FY22[[#This Row],[25th]])/25)*10) + AAMC_Raw_Data_for_FY22[[#This Row],[25th]]","v":142921.79999999999},{"$f":"(((AAMC_Raw_Data_for_FY22[[#This Row],[Median]]-AAMC_Raw_Data_for_FY22[[#This Row],[25th]])/25)*15) + AAMC_Raw_Data_for_FY22[[#This Row],[25th]]","v":167081.20000000001},{"$f":"(((AAMC_Raw_Data_for_FY22[[#This Row],[Median]]-AAMC_Raw_Data_for_FY22[[#This Row],[25th]])/25)*20) + AAMC_Raw_Data_for_FY22[[#This Row],[25th]]","v":191240.6},215400,{"$f":"(((AAMC_Raw_Data_for_FY22[[#This Row],[75th]]-AAMC_Raw_Data_for_FY22[[#This Row],[Median]])/25)*5) + AAMC_Raw_Data_for_FY22[[#This Row],[Median]]","v":237675.2},{"$f":"(((AAMC_Raw_Data_for_FY22[[#This Row],[75th]]-AAMC_Raw_Data_for_FY22[[#This Row],[Median]])/25)*10) + AAMC_Raw_Data_for_FY22[[#This Row],[Median]]","v":259950.4},{"$f":"(((AAMC_Raw_Data_for_FY22[[#This Row],[75th]]-AAMC_Raw_Data_for_FY22[[#This Row],[Median]])/25)*15) + AAMC_Raw_Data_for_FY22[[#This Row],[Median]]","v":282225.59999999998},{"$f":"(((AAMC_Raw_Data_for_FY22[[#This Row],[75th]]-AAMC_Raw_Data_for_FY22[[#This Row],[Median]])/25)*20) + AAMC_Raw_Data_for_FY22[[#This Row],[Median]]","v":304500.8},326776,{"$f":"(((AAMC_Raw_Data_for_FY22[[#This Row],[75th]]-AAMC_Raw_Data_for_FY22[[#This Row],[Median]])/25)*30) + AAMC_Raw_Data_for_FY22[[#This Row],[Median]]","v":349051.2},{"$f":"(((AAMC_Raw_Data_for_FY22[[#This Row],[75th]]-AAMC_Raw_Data_for_FY22[[#This Row],[Median]])/25)*35) + AAMC_Raw_Data_for_FY22[[#This Row],[Median]]","v":371326.4},{"$f":"(((AAMC_Raw_Data_for_FY22[[#This Row],[75th]]-AAMC_Raw_Data_for_FY22[[#This Row],[Median]])/25)*40) + AAMC_Raw_Data_for_FY22[[#This Row],[Median]]","v":393601.6}]
[{"$f":"AAMC_Raw_Data_for_FY22[[#This Row],[Source]]&AAMC_Raw_Data_for_FY22[[#This Row],[Type]]&AAMC_Raw_Data_for_FY22[[#This Row],[School Subset]]&AAMC_Raw_Data_for_FY22[[#This Row],[Rank]]&AAMC_Raw_Data_for_FY22[[#This Row],[Degree]]&AAMC_Raw_Data_for_FY22[[#This Row],[Department / Specialty]]&\"L\"","v":"AAMCAcademicPublicAssistantMDGastroenterology-Med.L"},"Gastroenterology-Med.",4,"AAMC","Academic","Public","Assistant","MD","2021-2022",298550,{"$f":"(((AAMC_Raw_Data_for_FY22[[#This Row],[Median]]-AAMC_Raw_Data_for_FY22[[#This Row],[25th]])/25)*5) + AAMC_Raw_Data_for_FY22[[#This Row],[25th]]","v":307356.2},{"$f":"(((AAMC_Raw_Data_for_FY22[[#This Row],[Median]]-AAMC_Raw_Data_for_FY22[[#This Row],[25th]])/25)*10) + AAMC_Raw_Data_for_FY22[[#This Row],[25th]]","v":316162.40000000002},{"$f":"(((AAMC_Raw_Data_for_FY22[[#This Row],[Median]]-AAMC_Raw_Data_for_FY22[[#This Row],[25th]])/25)*15) + AAMC_Raw_Data_for_FY22[[#This Row],[25th]]","v":324968.59999999998},{"$f":"(((AAMC_Raw_Data_for_FY22[[#This Row],[Median]]-AAMC_Raw_Data_for_FY22[[#This Row],[25th]])/25)*20) + AAMC_Raw_Data_for_FY22[[#This Row],[25th]]","v":333774.8},342581,{"$f":"(((AAMC_Raw_Data_for_FY22[[#This Row],[75th]]-AAMC_Raw_Data_for_FY22[[#This Row],[Median]])/25)*5) + AAMC_Raw_Data_for_FY22[[#This Row],[Median]]","v":359179.4},{"$f":"(((AAMC_Raw_Data_for_FY22[[#This Row],[75th]]-AAMC_Raw_Data_for_FY22[[#This Row],[Median]])/25)*10) + AAMC_Raw_Data_for_FY22[[#This Row],[Median]]","v":375777.8},{"$f":"(((AAMC_Raw_Data_for_FY22[[#This Row],[75th]]-AAMC_Raw_Data_for_FY22[[#This Row],[Median]])/25)*15) + AAMC_Raw_Data_for_FY22[[#This Row],[Median]]","v":392376.2},{"$f":"(((AAMC_Raw_Data_for_FY22[[#This Row],[75th]]-AAMC_Raw_Data_for_FY22[[#This Row],[Median]])/25)*20) + AAMC_Raw_Data_for_FY22[[#This Row],[Median]]","v":408974.6},425573,{"$f":"(((AAMC_Raw_Data_for_FY22[[#This Row],[75th]]-AAMC_Raw_Data_for_FY22[[#This Row],[Median]])/25)*30) + AAMC_Raw_Data_for_FY22[[#This Row],[Median]]","v":442171.4},{"$f":"(((AAMC_Raw_Data_for_FY22[[#This Row],[75th]]-AAMC_Raw_Data_for_FY22[[#This Row],[Median]])/25)*35) + AAMC_Raw_Data_for_FY22[[#This Row],[Median]]","v":458769.8},{"$f":"(((AAMC_Raw_Data_for_FY22[[#This Row],[75th]]-AAMC_Raw_Data_for_FY22[[#This Row],[Median]])/25)*40) + AAMC_Raw_Data_for_FY22[[#This Row],[Median]]","v":475368.19999999995}]
[{"$f":"AAMC_Raw_Data_for_FY22[[#This Row],[Source]]&AAMC_Raw_Data_for_FY22[[#This Row],[Type]]&AAMC_Raw_Data_for_FY22[[#This Row],[School Subset]]&AAMC_Raw_Data_for_FY22[[#This Row],[Rank]]&AAMC_Raw_Data_for_FY22[[#This Row],[Degree]]&AAMC_Raw_Data_for_FY22[[#This Row],[Department / Specialty]]&\"L\"","v":"AAMCAcademicPublicAssociateMDGastroenterology-Med.L"},"Gastroenterology-Med.",3,"AAMC","Academic","Public","Associate","MD","2021-2022",343242,{"$f":"(((AAMC_Raw_Data_for_FY22[[#This Row],[Median]]-AAMC_Raw_Data_for_FY22[[#This Row],[25th]])/25)*5) + AAMC_Raw_Data_for_FY22[[#This Row],[25th]]","v":355916.79999999999},{"$f":"(((AAMC_Raw_Data_for_FY22[[#This Row],[Median]]-AAMC_Raw_Data_for_FY22[[#This Row],[25th]])/25)*10) + AAMC_Raw_Data_for_FY22[[#This Row],[25th]]","v":368591.6},{"$f":"(((AAMC_Raw_Data_for_FY22[[#This Row],[Median]]-AAMC_Raw_Data_for_FY22[[#This Row],[25th]])/25)*15) + AAMC_Raw_Data_for_FY22[[#This Row],[25th]]","v":381266.4},{"$f":"(((AAMC_Raw_Data_for_FY22[[#This Row],[Median]]-AAMC_Raw_Data_for_FY22[[#This Row],[25th]])/25)*20) + AAMC_Raw_Data_for_FY22[[#This Row],[25th]]","v":393941.2},406616,{"$f":"(((AAMC_Raw_Data_for_FY22[[#This Row],[75th]]-AAMC_Raw_Data_for_FY22[[#This Row],[Median]])/25)*5) + AAMC_Raw_Data_for_FY22[[#This Row],[Median]]","v":422507.6},{"$f":"(((AAMC_Raw_Data_for_FY22[[#This Row],[75th]]-AAMC_Raw_Data_for_FY22[[#This Row],[Median]])/25)*10) + AAMC_Raw_Data_for_FY22[[#This Row],[Median]]","v":438399.2},{"$f":"(((AAMC_Raw_Data_for_FY22[[#This Row],[75th]]-AAMC_Raw_Data_for_FY22[[#This Row],[Median]])/25)*15) + AAMC_Raw_Data_for_FY22[[#This Row],[Median]]","v":454290.8},{"$f":"(((AAMC_Raw_Data_for_FY22[[#This Row],[75th]]-AAMC_Raw_Data_for_FY22[[#This Row],[Median]])/25)*20) + AAMC_Raw_Data_for_FY22[[#This Row],[Median]]","v":470182.40000000002},486074,{"$f":"(((AAMC_Raw_Data_for_FY22[[#This Row],[75th]]-AAMC_Raw_Data_for_FY22[[#This Row],[Median]])/25)*30) + AAMC_Raw_Data_for_FY22[[#This Row],[Median]]","v":501965.6},{"$f":"(((AAMC_Raw_Data_for_FY22[[#This Row],[75th]]-AAMC_Raw_Data_for_FY22[[#This Row],[Median]])/25)*35) + AAMC_Raw_Data_for_FY22[[#This Row],[Median]]","v":517857.2},{"$f":"(((AAMC_Raw_Data_for_FY22[[#This Row],[75th]]-AAMC_Raw_Data_for_FY22[[#This Row],[Median]])/25)*40) + AAMC_Raw_Data_for_FY22[[#This Row],[Median]]","v":533748.80000000005}]
[{"$f":"AAMC_Raw_Data_for_FY22[[#This Row],[Source]]&AAMC_Raw_Data_for_FY22[[#This Row],[Type]]&AAMC_Raw_Data_for_FY22[[#This Row],[School Subset]]&AAMC_Raw_Data_for_FY22[[#This Row],[Rank]]&AAMC_Raw_Data_for_FY22[[#This Row],[Degree]]&AAMC_Raw_Data_for_FY22[[#This Row],[Department / Specialty]]&\"L\"","v":"AAMCAcademicPublicProfessorMDGastroenterology-Med.L"},"Gastroenterology-Med.",2,"AAMC","Academic","Public","Professor","MD","2021-2022",338396,{"$f":"(((AAMC_Raw_Data_for_FY22[[#This Row],[Median]]-AAMC_Raw_Data_for_FY22[[#This Row],[25th]])/25)*5) + AAMC_Raw_Data_for_FY22[[#This Row],[25th]]","v":353576.8},{"$f":"(((AAMC_Raw_Data_for_FY22[[#This Row],[Median]]-AAMC_Raw_Data_for_FY22[[#This Row],[25th]])/25)*10) + AAMC_Raw_Data_for_FY22[[#This Row],[25th]]","v":368757.6},{"$f":"(((AAMC_Raw_Data_for_FY22[[#This Row],[Median]]-AAMC_Raw_Data_for_FY22[[#This Row],[25th]])/25)*15) + AAMC_Raw_Data_for_FY22[[#This Row],[25th]]","v":383938.4},{"$f":"(((AAMC_Raw_Data_for_FY22[[#This Row],[Median]]-AAMC_Raw_Data_for_FY22[[#This Row],[25th]])/25)*20) + AAMC_Raw_Data_for_FY22[[#This Row],[25th]]","v":399119.2},414300,{"$f":"(((AAMC_Raw_Data_for_FY22[[#This Row],[75th]]-AAMC_Raw_Data_for_FY22[[#This Row],[Median]])/25)*5) + AAMC_Raw_Data_for_FY22[[#This Row],[Median]]","v":432235.8},{"$f":"(((AAMC_Raw_Data_for_FY22[[#This Row],[75th]]-AAMC_Raw_Data_for_FY22[[#This Row],[Median]])/25)*10) + AAMC_Raw_Data_for_FY22[[#This Row],[Median]]","v":450171.6},{"$f":"(((AAMC_Raw_Data_for_FY22[[#This Row],[75th]]-AAMC_Raw_Data_for_FY22[[#This Row],[Median]])/25)*15) + AAMC_Raw_Data_for_FY22[[#This Row],[Median]]","v":468107.4},{"$f":"(((AAMC_Raw_Data_for_FY22[[#This Row],[75th]]-AAMC_Raw_Data_for_FY22[[#This Row],[Median]])/25)*20) + AAMC_Raw_Data_for_FY22[[#This Row],[Median]]","v":486043.2},503979,{"$f":"(((AAMC_Raw_Data_for_FY22[[#This Row],[75th]]-AAMC_Raw_Data_for_FY22[[#This Row],[Median]])/25)*30) + AAMC_Raw_Data_for_FY22[[#This Row],[Median]]","v":521914.8},{"$f":"(((AAMC_Raw_Data_for_FY22[[#This Row],[75th]]-AAMC_Raw_Data_for_FY22[[#This Row],[Median]])/25)*35) + AAMC_Raw_Data_for_FY22[[#This Row],[Median]]","v":539850.6},{"$f":"(((AAMC_Raw_Data_for_FY22[[#This Row],[75th]]-AAMC_Raw_Data_for_FY22[[#This Row],[Median]])/25)*40) + AAMC_Raw_Data_for_FY22[[#This Row],[Median]]","v":557786.4}]
[{"$f":"AAMC_Raw_Data_for_FY22[[#This Row],[Source]]&AAMC_Raw_Data_for_FY22[[#This Row],[Type]]&AAMC_Raw_Data_for_FY22[[#This Row],[School Subset]]&AAMC_Raw_Data_for_FY22[[#This Row],[Rank]]&AAMC_Raw_Data_for_FY22[[#This Row],[Degree]]&AAMC_Raw_Data_for_FY22[[#This Row],[Department / Specialty]]&\"L\"","v":"AAMCAcademicPublicChiefMDGastroenterology-Med.L"},"Gastroenterology-Med.",6,"AAMC","Academic","Public","Chief","MD","2021-2022",460495,{"$f":"(((AAMC_Raw_Data_for_FY22[[#This Row],[Median]]-AAMC_Raw_Data_for_FY22[[#This Row],[25th]])/25)*5) + AAMC_Raw_Data_for_FY22[[#This Row],[25th]]","v":473348.8},{"$f":"(((AAMC_Raw_Data_for_FY22[[#This Row],[Median]]-AAMC_Raw_Data_for_FY22[[#This Row],[25th]])/25)*10) + AAMC_Raw_Data_for_FY22[[#This Row],[25th]]","v":486202.6},{"$f":"(((AAMC_Raw_Data_for_FY22[[#This Row],[Median]]-AAMC_Raw_Data_for_FY22[[#This Row],[25th]])/25)*15) + AAMC_Raw_Data_for_FY22[[#This Row],[25th]]","v":499056.4},{"$f":"(((AAMC_Raw_Data_for_FY22[[#This Row],[Median]]-AAMC_Raw_Data_for_FY22[[#This Row],[25th]])/25)*20) + AAMC_Raw_Data_for_FY22[[#This Row],[25th]]","v":511910.2},524764,{"$f":"(((AAMC_Raw_Data_for_FY22[[#This Row],[75th]]-AAMC_Raw_Data_for_FY22[[#This Row],[Median]])/25)*5) + AAMC_Raw_Data_for_FY22[[#This Row],[Median]]","v":541142.4},{"$f":"(((AAMC_Raw_Data_for_FY22[[#This Row],[75th]]-AAMC_Raw_Data_for_FY22[[#This Row],[Median]])/25)*10) + AAMC_Raw_Data_for_FY22[[#This Row],[Median]]","v":557520.80000000005},{"$f":"(((AAMC_Raw_Data_for_FY22[[#This Row],[75th]]-AAMC_Raw_Data_for_FY22[[#This Row],[Median]])/25)*15) + AAMC_Raw_Data_for_FY22[[#This Row],[Median]]","v":573899.19999999995},{"$f":"(((AAMC_Raw_Data_for_FY22[[#This Row],[75th]]-AAMC_Raw_Data_for_FY22[[#This Row],[Median]])/25)*20) + AAMC_Raw_Data_for_FY22[[#This Row],[Median]]","v":590277.6},606656,{"$f":"(((AAMC_Raw_Data_for_FY22[[#This Row],[75th]]-AAMC_Raw_Data_for_FY22[[#This Row],[Median]])/25)*30) + AAMC_Raw_Data_for_FY22[[#This Row],[Median]]","v":623034.4},{"$f":"(((AAMC_Raw_Data_for_FY22[[#This Row],[75th]]-AAMC_Raw_Data_for_FY22[[#This Row],[Median]])/25)*35) + AAMC_Raw_Data_for_FY22[[#This Row],[Median]]","v":639412.80000000005},{"$f":"(((AAMC_Raw_Data_for_FY22[[#This Row],[75th]]-AAMC_Raw_Data_for_FY22[[#This Row],[Median]])/25)*40) + AAMC_Raw_Data_for_FY22[[#This Row],[Median]]","v":655791.19999999995}]
[{"$f":"AAMC_Raw_Data_for_FY22[[#This Row],[Source]]&AAMC_Raw_Data_for_FY22[[#This Row],[Type]]&AAMC_Raw_Data_for_FY22[[#This Row],[School Subset]]&AAMC_Raw_Data_for_FY22[[#This Row],[Rank]]&AAMC_Raw_Data_for_FY22[[#This Row],[Degree]]&AAMC_Raw_Data_for_FY22[[#This Row],[Department / Specialty]]&\"L\"","v":"AAMCAcademicPublicChairMDGastroenterology-Med.L"},"Gastroenterology-Med.",1,"AAMC","Academic","Public","Chair","MD","2021-2022",648958,{"$f":"(((AAMC_Raw_Data_for_FY22[[#This Row],[Median]]-AAMC_Raw_Data_for_FY22[[#This Row],[25th]])/25)*5) + AAMC_Raw_Data_for_FY22[[#This Row],[25th]]","v":651624.80000000005},{"$f":"(((AAMC_Raw_Data_for_FY22[[#This Row],[Median]]-AAMC_Raw_Data_for_FY22[[#This Row],[25th]])/25)*10) + AAMC_Raw_Data_for_FY22[[#This Row],[25th]]","v":654291.6},{"$f":"(((AAMC_Raw_Data_for_FY22[[#This Row],[Median]]-AAMC_Raw_Data_for_FY22[[#This Row],[25th]])/25)*15) + AAMC_Raw_Data_for_FY22[[#This Row],[25th]]","v":656958.4},{"$f":"(((AAMC_Raw_Data_for_FY22[[#This Row],[Median]]-AAMC_Raw_Data_for_FY22[[#This Row],[25th]])/25)*20) + AAMC_Raw_Data_for_FY22[[#This Row],[25th]]","v":659625.19999999995},662292,{"$f":"(((AAMC_Raw_Data_for_FY22[[#This Row],[75th]]-AAMC_Raw_Data_for_FY22[[#This Row],[Median]])/25)*5) + AAMC_Raw_Data_for_FY22[[#This Row],[Median]]","v":676585.6},{"$f":"(((AAMC_Raw_Data_for_FY22[[#This Row],[75th]]-AAMC_Raw_Data_for_FY22[[#This Row],[Median]])/25)*10) + AAMC_Raw_Data_for_FY22[[#This Row],[Median]]","v":690879.2},{"$f":"(((AAMC_Raw_Data_for_FY22[[#This Row],[75th]]-AAMC_Raw_Data_for_FY22[[#This Row],[Median]])/25)*15) + AAMC_Raw_Data_for_FY22[[#This Row],[Median]]","v":705172.8},{"$f":"(((AAMC_Raw_Data_for_FY22[[#This Row],[75th]]-AAMC_Raw_Data_for_FY22[[#This Row],[Median]])/25)*20) + AAMC_Raw_Data_for_FY22[[#This Row],[Median]]","v":719466.4},733760,{"$f":"(((AAMC_Raw_Data_for_FY22[[#This Row],[75th]]-AAMC_Raw_Data_for_FY22[[#This Row],[Median]])/25)*30) + AAMC_Raw_Data_for_FY22[[#This Row],[Median]]","v":748053.6},{"$f":"(((AAMC_Raw_Data_for_FY22[[#This Row],[75th]]-AAMC_Raw_Data_for_FY22[[#This Row],[Median]])/25)*35) + AAMC_Raw_Data_for_FY22[[#This Row],[Median]]","v":762347.2},{"$f":"(((AAMC_Raw_Data_for_FY22[[#This Row],[75th]]-AAMC_Raw_Data_for_FY22[[#This Row],[Median]])/25)*40) + AAMC_Raw_Data_for_FY22[[#This Row],[Median]]","v":776640.8}]
[{"$f":"AAMC_Raw_Data_for_FY22[[#This Row],[Source]]&AAMC_Raw_Data_for_FY22[[#This Row],[Type]]&AAMC_Raw_Data_for_FY22[[#This Row],[School Subset]]&AAMC_Raw_Data_for_FY22[[#This Row],[Rank]]&AAMC_Raw_Data_for_FY22[[#This Row],[Degree]]&AAMC_Raw_Data_for_FY22[[#This Row],[Department / Specialty]]&\"L\"","v":"AAMCAcademicPublicInstructorMDGeneral Internal MedicineL"},"General Internal Medicine",5,"AAMC","Academic","Public","Instructor","MD","2021-2022",117000,{"$f":"(((AAMC_Raw_Data_for_FY22[[#This Row],[Median]]-AAMC_Raw_Data_for_FY22[[#This Row],[25th]])/25)*5) + AAMC_Raw_Data_for_FY22[[#This Row],[25th]]","v":134251.79999999999},{"$f":"(((AAMC_Raw_Data_for_FY22[[#This Row],[Median]]-AAMC_Raw_Data_for_FY22[[#This Row],[25th]])/25)*10) + AAMC_Raw_Data_for_FY22[[#This Row],[25th]]","v":151503.6},{"$f":"(((AAMC_Raw_Data_for_FY22[[#This Row],[Median]]-AAMC_Raw_Data_for_FY22[[#This Row],[25th]])/25)*15) + AAMC_Raw_Data_for_FY22[[#This Row],[25th]]","v":168755.4},{"$f":"(((AAMC_Raw_Data_for_FY22[[#This Row],[Median]]-AAMC_Raw_Data_for_FY22[[#This Row],[25th]])/25)*20) + AAMC_Raw_Data_for_FY22[[#This Row],[25th]]","v":186007.2},203259,{"$f":"(((AAMC_Raw_Data_for_FY22[[#This Row],[75th]]-AAMC_Raw_Data_for_FY22[[#This Row],[Median]])/25)*5) + AAMC_Raw_Data_for_FY22[[#This Row],[Median]]","v":214348},{"$f":"(((AAMC_Raw_Data_for_FY22[[#This Row],[75th]]-AAMC_Raw_Data_for_FY22[[#This Row],[Median]])/25)*10) + AAMC_Raw_Data_for_FY22[[#This Row],[Median]]","v":225437},{"$f":"(((AAMC_Raw_Data_for_FY22[[#This Row],[75th]]-AAMC_Raw_Data_for_FY22[[#This Row],[Median]])/25)*15) + AAMC_Raw_Data_for_FY22[[#This Row],[Median]]","v":236526},{"$f":"(((AAMC_Raw_Data_for_FY22[[#This Row],[75th]]-AAMC_Raw_Data_for_FY22[[#This Row],[Median]])/25)*20) + AAMC_Raw_Data_for_FY22[[#This Row],[Median]]","v":247615},258704,{"$f":"(((AAMC_Raw_Data_for_FY22[[#This Row],[75th]]-AAMC_Raw_Data_for_FY22[[#This Row],[Median]])/25)*30) + AAMC_Raw_Data_for_FY22[[#This Row],[Median]]","v":269793},{"$f":"(((AAMC_Raw_Data_for_FY22[[#This Row],[75th]]-AAMC_Raw_Data_for_FY22[[#This Row],[Median]])/25)*35) + AAMC_Raw_Data_for_FY22[[#This Row],[Median]]","v":280882},{"$f":"(((AAMC_Raw_Data_for_FY22[[#This Row],[75th]]-AAMC_Raw_Data_for_FY22[[#This Row],[Median]])/25)*40) + AAMC_Raw_Data_for_FY22[[#This Row],[Median]]","v":291971}]
[{"$f":"AAMC_Raw_Data_for_FY22[[#This Row],[Source]]&AAMC_Raw_Data_for_FY22[[#This Row],[Type]]&AAMC_Raw_Data_for_FY22[[#This Row],[School Subset]]&AAMC_Raw_Data_for_FY22[[#This Row],[Rank]]&AAMC_Raw_Data_for_FY22[[#This Row],[Degree]]&AAMC_Raw_Data_for_FY22[[#This Row],[Department / Specialty]]&\"L\"","v":"AAMCAcademicPublicAssistantMDGeneral Internal MedicineL"},"General Internal Medicine",4,"AAMC","Academic","Public","Assistant","MD","2021-2022",209484,{"$f":"(((AAMC_Raw_Data_for_FY22[[#This Row],[Median]]-AAMC_Raw_Data_for_FY22[[#This Row],[25th]])/25)*5) + AAMC_Raw_Data_for_FY22[[#This Row],[25th]]","v":214303},{"$f":"(((AAMC_Raw_Data_for_FY22[[#This Row],[Median]]-AAMC_Raw_Data_for_FY22[[#This Row],[25th]])/25)*10) + AAMC_Raw_Data_for_FY22[[#This Row],[25th]]","v":219122},{"$f":"(((AAMC_Raw_Data_for_FY22[[#This Row],[Median]]-AAMC_Raw_Data_for_FY22[[#This Row],[25th]])/25)*15) + AAMC_Raw_Data_for_FY22[[#This Row],[25th]]","v":223941},{"$f":"(((AAMC_Raw_Data_for_FY22[[#This Row],[Median]]-AAMC_Raw_Data_for_FY22[[#This Row],[25th]])/25)*20) + AAMC_Raw_Data_for_FY22[[#This Row],[25th]]","v":228760},233579,{"$f":"(((AAMC_Raw_Data_for_FY22[[#This Row],[75th]]-AAMC_Raw_Data_for_FY22[[#This Row],[Median]])/25)*5) + AAMC_Raw_Data_for_FY22[[#This Row],[Median]]","v":240875},{"$f":"(((AAMC_Raw_Data_for_FY22[[#This Row],[75th]]-AAMC_Raw_Data_for_FY22[[#This Row],[Median]])/25)*10) + AAMC_Raw_Data_for_FY22[[#This Row],[Median]]","v":248171},{"$f":"(((AAMC_Raw_Data_for_FY22[[#This Row],[75th]]-AAMC_Raw_Data_for_FY22[[#This Row],[Median]])/25)*15) + AAMC_Raw_Data_for_FY22[[#This Row],[Median]]","v":255467},{"$f":"(((AAMC_Raw_Data_for_FY22[[#This Row],[75th]]-AAMC_Raw_Data_for_FY22[[#This Row],[Median]])/25)*20) + AAMC_Raw_Data_for_FY22[[#This Row],[Median]]","v":262763},270059,{"$f":"(((AAMC_Raw_Data_for_FY22[[#This Row],[75th]]-AAMC_Raw_Data_for_FY22[[#This Row],[Median]])/25)*30) + AAMC_Raw_Data_for_FY22[[#This Row],[Median]]","v":277355},{"$f":"(((AAMC_Raw_Data_for_FY22[[#This Row],[75th]]-AAMC_Raw_Data_for_FY22[[#This Row],[Median]])/25)*35) + AAMC_Raw_Data_for_FY22[[#This Row],[Median]]","v":284651},{"$f":"(((AAMC_Raw_Data_for_FY22[[#This Row],[75th]]-AAMC_Raw_Data_for_FY22[[#This Row],[Median]])/25)*40) + AAMC_Raw_Data_for_FY22[[#This Row],[Median]]","v":291947}]
[{"$f":"AAMC_Raw_Data_for_FY22[[#This Row],[Source]]&AAMC_Raw_Data_for_FY22[[#This Row],[Type]]&AAMC_Raw_Data_for_FY22[[#This Row],[School Subset]]&AAMC_Raw_Data_for_FY22[[#This Row],[Rank]]&AAMC_Raw_Data_for_FY22[[#This Row],[Degree]]&AAMC_Raw_Data_for_FY22[[#This Row],[Department / Specialty]]&\"L\"","v":"AAMCAcademicPublicAssociateMDGeneral Internal MedicineL"},"General Internal Medicine",3,"AAMC","Academic","Public","Associate","MD","2021-2022",225197,{"$f":"(((AAMC_Raw_Data_for_FY22[[#This Row],[Median]]-AAMC_Raw_Data_for_FY22[[#This Row],[25th]])/25)*5) + AAMC_Raw_Data_for_FY22[[#This Row],[25th]]","v":232003.20000000001},{"$f":"(((AAMC_Raw_Data_for_FY22[[#This Row],[Median]]-AAMC_Raw_Data_for_FY22[[#This Row],[25th]])/25)*10) + AAMC_Raw_Data_for_FY22[[#This Row],[25th]]","v":238809.4},{"$f":"(((AAMC_Raw_Data_for_FY22[[#This Row],[Median]]-AAMC_Raw_Data_for_FY22[[#This Row],[25th]])/25)*15) + AAMC_Raw_Data_for_FY22[[#This Row],[25th]]","v":245615.6},{"$f":"(((AAMC_Raw_Data_for_FY22[[#This Row],[Median]]-AAMC_Raw_Data_for_FY22[[#This Row],[25th]])/25)*20) + AAMC_Raw_Data_for_FY22[[#This Row],[25th]]","v":252421.8},259228,{"$f":"(((AAMC_Raw_Data_for_FY22[[#This Row],[75th]]-AAMC_Raw_Data_for_FY22[[#This Row],[Median]])/25)*5) + AAMC_Raw_Data_for_FY22[[#This Row],[Median]]","v":267162.2},{"$f":"(((AAMC_Raw_Data_for_FY22[[#This Row],[75th]]-AAMC_Raw_Data_for_FY22[[#This Row],[Median]])/25)*10) + AAMC_Raw_Data_for_FY22[[#This Row],[Median]]","v":275096.40000000002},{"$f":"(((AAMC_Raw_Data_for_FY22[[#This Row],[75th]]-AAMC_Raw_Data_for_FY22[[#This Row],[Median]])/25)*15) + AAMC_Raw_Data_for_FY22[[#This Row],[Median]]","v":283030.59999999998},{"$f":"(((AAMC_Raw_Data_for_FY22[[#This Row],[75th]]-AAMC_Raw_Data_for_FY22[[#This Row],[Median]])/25)*20) + AAMC_Raw_Data_for_FY22[[#This Row],[Median]]","v":290964.8},298899,{"$f":"(((AAMC_Raw_Data_for_FY22[[#This Row],[75th]]-AAMC_Raw_Data_for_FY22[[#This Row],[Median]])/25)*30) + AAMC_Raw_Data_for_FY22[[#This Row],[Median]]","v":306833.2},{"$f":"(((AAMC_Raw_Data_for_FY22[[#This Row],[75th]]-AAMC_Raw_Data_for_FY22[[#This Row],[Median]])/25)*35) + AAMC_Raw_Data_for_FY22[[#This Row],[Median]]","v":314767.40000000002},{"$f":"(((AAMC_Raw_Data_for_FY22[[#This Row],[75th]]-AAMC_Raw_Data_for_FY22[[#This Row],[Median]])/25)*40) + AAMC_Raw_Data_for_FY22[[#This Row],[Median]]","v":322701.59999999998}]
[{"$f":"AAMC_Raw_Data_for_FY22[[#This Row],[Source]]&AAMC_Raw_Data_for_FY22[[#This Row],[Type]]&AAMC_Raw_Data_for_FY22[[#This Row],[School Subset]]&AAMC_Raw_Data_for_FY22[[#This Row],[Rank]]&AAMC_Raw_Data_for_FY22[[#This Row],[Degree]]&AAMC_Raw_Data_for_FY22[[#This Row],[Department / Specialty]]&\"L\"","v":"AAMCAcademicPublicProfessorMDGeneral Internal MedicineL"},"General Internal Medicine",2,"AAMC","Academic","Public","Professor","MD","2021-2022",253988,{"$f":"(((AAMC_Raw_Data_for_FY22[[#This Row],[Median]]-AAMC_Raw_Data_for_FY22[[#This Row],[25th]])/25)*5) + AAMC_Raw_Data_for_FY22[[#This Row],[25th]]","v":260862.6},{"$f":"(((AAMC_Raw_Data_for_FY22[[#This Row],[Median]]-AAMC_Raw_Data_for_FY22[[#This Row],[25th]])/25)*10) + AAMC_Raw_Data_for_FY22[[#This Row],[25th]]","v":267737.2},{"$f":"(((AAMC_Raw_Data_for_FY22[[#This Row],[Median]]-AAMC_Raw_Data_for_FY22[[#This Row],[25th]])/25)*15) + AAMC_Raw_Data_for_FY22[[#This Row],[25th]]","v":274611.8},{"$f":"(((AAMC_Raw_Data_for_FY22[[#This Row],[Median]]-AAMC_Raw_Data_for_FY22[[#This Row],[25th]])/25)*20) + AAMC_Raw_Data_for_FY22[[#This Row],[25th]]","v":281486.40000000002},288361,{"$f":"(((AAMC_Raw_Data_for_FY22[[#This Row],[75th]]-AAMC_Raw_Data_for_FY22[[#This Row],[Median]])/25)*5) + AAMC_Raw_Data_for_FY22[[#This Row],[Median]]","v":299404.59999999998},{"$f":"(((AAMC_Raw_Data_for_FY22[[#This Row],[75th]]-AAMC_Raw_Data_for_FY22[[#This Row],[Median]])/25)*10) + AAMC_Raw_Data_for_FY22[[#This Row],[Median]]","v":310448.2},{"$f":"(((AAMC_Raw_Data_for_FY22[[#This Row],[75th]]-AAMC_Raw_Data_for_FY22[[#This Row],[Median]])/25)*15) + AAMC_Raw_Data_for_FY22[[#This Row],[Median]]","v":321491.8},{"$f":"(((AAMC_Raw_Data_for_FY22[[#This Row],[75th]]-AAMC_Raw_Data_for_FY22[[#This Row],[Median]])/25)*20) + AAMC_Raw_Data_for_FY22[[#This Row],[Median]]","v":332535.40000000002},343579,{"$f":"(((AAMC_Raw_Data_for_FY22[[#This Row],[75th]]-AAMC_Raw_Data_for_FY22[[#This Row],[Median]])/25)*30) + AAMC_Raw_Data_for_FY22[[#This Row],[Median]]","v":354622.6},{"$f":"(((AAMC_Raw_Data_for_FY22[[#This Row],[75th]]-AAMC_Raw_Data_for_FY22[[#This Row],[Median]])/25)*35) + AAMC_Raw_Data_for_FY22[[#This Row],[Median]]","v":365666.2},{"$f":"(((AAMC_Raw_Data_for_FY22[[#This Row],[75th]]-AAMC_Raw_Data_for_FY22[[#This Row],[Median]])/25)*40) + AAMC_Raw_Data_for_FY22[[#This Row],[Median]]","v":376709.8}]
[{"$f":"AAMC_Raw_Data_for_FY22[[#This Row],[Source]]&AAMC_Raw_Data_for_FY22[[#This Row],[Type]]&AAMC_Raw_Data_for_FY22[[#This Row],[School Subset]]&AAMC_Raw_Data_for_FY22[[#This Row],[Rank]]&AAMC_Raw_Data_for_FY22[[#This Row],[Degree]]&AAMC_Raw_Data_for_FY22[[#This Row],[Department / Specialty]]&\"L\"","v":"AAMCAcademicPublicChiefMDGeneral Internal MedicineL"},"General Internal Medicine",6,"AAMC","Academic","Public","Chief","MD","2021-2022",274516,{"$f":"(((AAMC_Raw_Data_for_FY22[[#This Row],[Median]]-AAMC_Raw_Data_for_FY22[[#This Row],[25th]])/25)*5) + AAMC_Raw_Data_for_FY22[[#This Row],[25th]]","v":283672.59999999998},{"$f":"(((AAMC_Raw_Data_for_FY22[[#This Row],[Median]]-AAMC_Raw_Data_for_FY22[[#This Row],[25th]])/25)*10) + AAMC_Raw_Data_for_FY22[[#This Row],[25th]]","v":292829.2},{"$f":"(((AAMC_Raw_Data_for_FY22[[#This Row],[Median]]-AAMC_Raw_Data_for_FY22[[#This Row],[25th]])/25)*15) + AAMC_Raw_Data_for_FY22[[#This Row],[25th]]","v":301985.8},{"$f":"(((AAMC_Raw_Data_for_FY22[[#This Row],[Median]]-AAMC_Raw_Data_for_FY22[[#This Row],[25th]])/25)*20) + AAMC_Raw_Data_for_FY22[[#This Row],[25th]]","v":311142.40000000002},320299,{"$f":"(((AAMC_Raw_Data_for_FY22[[#This Row],[75th]]-AAMC_Raw_Data_for_FY22[[#This Row],[Median]])/25)*5) + AAMC_Raw_Data_for_FY22[[#This Row],[Median]]","v":327705.40000000002},{"$f":"(((AAMC_Raw_Data_for_FY22[[#This Row],[75th]]-AAMC_Raw_Data_for_FY22[[#This Row],[Median]])/25)*10) + AAMC_Raw_Data_for_FY22[[#This Row],[Median]]","v":335111.8},{"$f":"(((AAMC_Raw_Data_for_FY22[[#This Row],[75th]]-AAMC_Raw_Data_for_FY22[[#This Row],[Median]])/25)*15) + AAMC_Raw_Data_for_FY22[[#This Row],[Median]]","v":342518.2},{"$f":"(((AAMC_Raw_Data_for_FY22[[#This Row],[75th]]-AAMC_Raw_Data_for_FY22[[#This Row],[Median]])/25)*20) + AAMC_Raw_Data_for_FY22[[#This Row],[Median]]","v":349924.6},357331,{"$f":"(((AAMC_Raw_Data_for_FY22[[#This Row],[75th]]-AAMC_Raw_Data_for_FY22[[#This Row],[Median]])/25)*30) + AAMC_Raw_Data_for_FY22[[#This Row],[Median]]","v":364737.4},{"$f":"(((AAMC_Raw_Data_for_FY22[[#This Row],[75th]]-AAMC_Raw_Data_for_FY22[[#This Row],[Median]])/25)*35) + AAMC_Raw_Data_for_FY22[[#This Row],[Median]]","v":372143.8},{"$f":"(((AAMC_Raw_Data_for_FY22[[#This Row],[75th]]-AAMC_Raw_Data_for_FY22[[#This Row],[Median]])/25)*40) + AAMC_Raw_Data_for_FY22[[#This Row],[Median]]","v":379550.2}]
[{"$f":"AAMC_Raw_Data_for_FY22[[#This Row],[Source]]&AAMC_Raw_Data_for_FY22[[#This Row],[Type]]&AAMC_Raw_Data_for_FY22[[#This Row],[School Subset]]&AAMC_Raw_Data_for_FY22[[#This Row],[Rank]]&AAMC_Raw_Data_for_FY22[[#This Row],[Degree]]&AAMC_Raw_Data_for_FY22[[#This Row],[Department / Specialty]]&\"L\"","v":"AAMCAcademicPublicChairMDGeneral Internal MedicineL"},"General Internal Medicine",1,"AAMC","Academic","Public","Chair","MD","2021-2022",431379,{"$f":"(((AAMC_Raw_Data_for_FY22[[#This Row],[Median]]-AAMC_Raw_Data_for_FY22[[#This Row],[25th]])/25)*5) + AAMC_Raw_Data_for_FY22[[#This Row],[25th]]","v":450703.2},{"$f":"(((AAMC_Raw_Data_for_FY22[[#This Row],[Median]]-AAMC_Raw_Data_for_FY22[[#This Row],[25th]])/25)*10) + AAMC_Raw_Data_for_FY22[[#This Row],[25th]]","v":470027.4},{"$f":"(((AAMC_Raw_Data_for_FY22[[#This Row],[Median]]-AAMC_Raw_Data_for_FY22[[#This Row],[25th]])/25)*15) + AAMC_Raw_Data_for_FY22[[#This Row],[25th]]","v":489351.6},{"$f":"(((AAMC_Raw_Data_for_FY22[[#This Row],[Median]]-AAMC_Raw_Data_for_FY22[[#This Row],[25th]])/25)*20) + AAMC_Raw_Data_for_FY22[[#This Row],[25th]]","v":508675.8},528000,{"$f":"(((AAMC_Raw_Data_for_FY22[[#This Row],[75th]]-AAMC_Raw_Data_for_FY22[[#This Row],[Median]])/25)*5) + AAMC_Raw_Data_for_FY22[[#This Row],[Median]]","v":547880.4},{"$f":"(((AAMC_Raw_Data_for_FY22[[#This Row],[75th]]-AAMC_Raw_Data_for_FY22[[#This Row],[Median]])/25)*10) + AAMC_Raw_Data_for_FY22[[#This Row],[Median]]","v":567760.80000000005},{"$f":"(((AAMC_Raw_Data_for_FY22[[#This Row],[75th]]-AAMC_Raw_Data_for_FY22[[#This Row],[Median]])/25)*15) + AAMC_Raw_Data_for_FY22[[#This Row],[Median]]","v":587641.19999999995},{"$f":"(((AAMC_Raw_Data_for_FY22[[#This Row],[75th]]-AAMC_Raw_Data_for_FY22[[#This Row],[Median]])/25)*20) + AAMC_Raw_Data_for_FY22[[#This Row],[Median]]","v":607521.6},627402,{"$f":"(((AAMC_Raw_Data_for_FY22[[#This Row],[75th]]-AAMC_Raw_Data_for_FY22[[#This Row],[Median]])/25)*30) + AAMC_Raw_Data_for_FY22[[#This Row],[Median]]","v":647282.4},{"$f":"(((AAMC_Raw_Data_for_FY22[[#This Row],[75th]]-AAMC_Raw_Data_for_FY22[[#This Row],[Median]])/25)*35) + AAMC_Raw_Data_for_FY22[[#This Row],[Median]]","v":667162.80000000005},{"$f":"(((AAMC_Raw_Data_for_FY22[[#This Row],[75th]]-AAMC_Raw_Data_for_FY22[[#This Row],[Median]])/25)*40) + AAMC_Raw_Data_for_FY22[[#This Row],[Median]]","v":687043.2}]
[{"$f":"AAMC_Raw_Data_for_FY22[[#This Row],[Source]]&AAMC_Raw_Data_for_FY22[[#This Row],[Type]]&AAMC_Raw_Data_for_FY22[[#This Row],[School Subset]]&AAMC_Raw_Data_for_FY22[[#This Row],[Rank]]&AAMC_Raw_Data_for_FY22[[#This Row],[Degree]]&AAMC_Raw_Data_for_FY22[[#This Row],[Department / Specialty]]&\"L\"","v":"AAMCAcademicPublicInstructorMDGeriatrics-Med.L"},"Geriatrics-Med.",5,"AAMC","Academic","Public","Instructor","MD","2021-2022",null,{"$f":"(((AAMC_Raw_Data_for_FY22[[#This Row],[Median]]-AAMC_Raw_Data_for_FY22[[#This Row],[25th]])/25)*5) + AAMC_Raw_Data_for_FY22[[#This Row],[25th]]","v":0},{"$f":"(((AAMC_Raw_Data_for_FY22[[#This Row],[Median]]-AAMC_Raw_Data_for_FY22[[#This Row],[25th]])/25)*10) + AAMC_Raw_Data_for_FY22[[#This Row],[25th]]","v":0},{"$f":"(((AAMC_Raw_Data_for_FY22[[#This Row],[Median]]-AAMC_Raw_Data_for_FY22[[#This Row],[25th]])/25)*15) + AAMC_Raw_Data_for_FY22[[#This Row],[25th]]","v":0},{"$f":"(((AAMC_Raw_Data_for_FY22[[#This Row],[Median]]-AAMC_Raw_Data_for_FY22[[#This Row],[25th]])/25)*20) + AAMC_Raw_Data_for_FY22[[#This Row],[25th]]","v":0},null,{"$f":"(((AAMC_Raw_Data_for_FY22[[#This Row],[75th]]-AAMC_Raw_Data_for_FY22[[#This Row],[Median]])/25)*5) + AAMC_Raw_Data_for_FY22[[#This Row],[Median]]","v":0},{"$f":"(((AAMC_Raw_Data_for_FY22[[#This Row],[75th]]-AAMC_Raw_Data_for_FY22[[#This Row],[Median]])/25)*10) + AAMC_Raw_Data_for_FY22[[#This Row],[Median]]","v":0},{"$f":"(((AAMC_Raw_Data_for_FY22[[#This Row],[75th]]-AAMC_Raw_Data_for_FY22[[#This Row],[Median]])/25)*15) + AAMC_Raw_Data_for_FY22[[#This Row],[Median]]","v":0},{"$f":"(((AAMC_Raw_Data_for_FY22[[#This Row],[75th]]-AAMC_Raw_Data_for_FY22[[#This Row],[Median]])/25)*20) + AAMC_Raw_Data_for_FY22[[#This Row],[Median]]","v":0},null,{"$f":"(((AAMC_Raw_Data_for_FY22[[#This Row],[75th]]-AAMC_Raw_Data_for_FY22[[#This Row],[Median]])/25)*30) + AAMC_Raw_Data_for_FY22[[#This Row],[Median]]","v":0},{"$f":"(((AAMC_Raw_Data_for_FY22[[#This Row],[75th]]-AAMC_Raw_Data_for_FY22[[#This Row],[Median]])/25)*35) + AAMC_Raw_Data_for_FY22[[#This Row],[Median]]","v":0},{"$f":"(((AAMC_Raw_Data_for_FY22[[#This Row],[75th]]-AAMC_Raw_Data_for_FY22[[#This Row],[Median]])/25)*40) + AAMC_Raw_Data_for_FY22[[#This Row],[Median]]","v":0}]
[{"$f":"AAMC_Raw_Data_for_FY22[[#This Row],[Source]]&AAMC_Raw_Data_for_FY22[[#This Row],[Type]]&AAMC_Raw_Data_for_FY22[[#This Row],[School Subset]]&AAMC_Raw_Data_for_FY22[[#This Row],[Rank]]&AAMC_Raw_Data_for_FY22[[#This Row],[Degree]]&AAMC_Raw_Data_for_FY22[[#This Row],[Department / Specialty]]&\"L\"","v":"AAMCAcademicPublicAssistantMDGeriatrics-Med.L"},"Geriatrics-Med.",4,"AAMC","Academic","Public","Assistant","MD","2021-2022",193945,{"$f":"(((AAMC_Raw_Data_for_FY22[[#This Row],[Median]]-AAMC_Raw_Data_for_FY22[[#This Row],[25th]])/25)*5) + AAMC_Raw_Data_for_FY22[[#This Row],[25th]]","v":196947.8},{"$f":"(((AAMC_Raw_Data_for_FY22[[#This Row],[Median]]-AAMC_Raw_Data_for_FY22[[#This Row],[25th]])/25)*10) + AAMC_Raw_Data_for_FY22[[#This Row],[25th]]","v":199950.6},{"$f":"(((AAMC_Raw_Data_for_FY22[[#This Row],[Median]]-AAMC_Raw_Data_for_FY22[[#This Row],[25th]])/25)*15) + AAMC_Raw_Data_for_FY22[[#This Row],[25th]]","v":202953.4},{"$f":"(((AAMC_Raw_Data_for_FY22[[#This Row],[Median]]-AAMC_Raw_Data_for_FY22[[#This Row],[25th]])/25)*20) + AAMC_Raw_Data_for_FY22[[#This Row],[25th]]","v":205956.2},208959,{"$f":"(((AAMC_Raw_Data_for_FY22[[#This Row],[75th]]-AAMC_Raw_Data_for_FY22[[#This Row],[Median]])/25)*5) + AAMC_Raw_Data_for_FY22[[#This Row],[Median]]","v":213610},{"$f":"(((AAMC_Raw_Data_for_FY22[[#This Row],[75th]]-AAMC_Raw_Data_for_FY22[[#This Row],[Median]])/25)*10) + AAMC_Raw_Data_for_FY22[[#This Row],[Median]]","v":218261},{"$f":"(((AAMC_Raw_Data_for_FY22[[#This Row],[75th]]-AAMC_Raw_Data_for_FY22[[#This Row],[Median]])/25)*15) + AAMC_Raw_Data_for_FY22[[#This Row],[Median]]","v":222912},{"$f":"(((AAMC_Raw_Data_for_FY22[[#This Row],[75th]]-AAMC_Raw_Data_for_FY22[[#This Row],[Median]])/25)*20) + AAMC_Raw_Data_for_FY22[[#This Row],[Median]]","v":227563},232214,{"$f":"(((AAMC_Raw_Data_for_FY22[[#This Row],[75th]]-AAMC_Raw_Data_for_FY22[[#This Row],[Median]])/25)*30) + AAMC_Raw_Data_for_FY22[[#This Row],[Median]]","v":236865},{"$f":"(((AAMC_Raw_Data_for_FY22[[#This Row],[75th]]-AAMC_Raw_Data_for_FY22[[#This Row],[Median]])/25)*35) + AAMC_Raw_Data_for_FY22[[#This Row],[Median]]","v":241516},{"$f":"(((AAMC_Raw_Data_for_FY22[[#This Row],[75th]]-AAMC_Raw_Data_for_FY22[[#This Row],[Median]])/25)*40) + AAMC_Raw_Data_for_FY22[[#This Row],[Median]]","v":246167}]
[{"$f":"AAMC_Raw_Data_for_FY22[[#This Row],[Source]]&AAMC_Raw_Data_for_FY22[[#This Row],[Type]]&AAMC_Raw_Data_for_FY22[[#This Row],[School Subset]]&AAMC_Raw_Data_for_FY22[[#This Row],[Rank]]&AAMC_Raw_Data_for_FY22[[#This Row],[Degree]]&AAMC_Raw_Data_for_FY22[[#This Row],[Department / Specialty]]&\"L\"","v":"AAMCAcademicPublicAssociateMDGeriatrics-Med.L"},"Geriatrics-Med.",3,"AAMC","Academic","Public","Associate","MD","2021-2022",226259,{"$f":"(((AAMC_Raw_Data_for_FY22[[#This Row],[Median]]-AAMC_Raw_Data_for_FY22[[#This Row],[25th]])/25)*5) + AAMC_Raw_Data_for_FY22[[#This Row],[25th]]","v":230729.8},{"$f":"(((AAMC_Raw_Data_for_FY22[[#This Row],[Median]]-AAMC_Raw_Data_for_FY22[[#This Row],[25th]])/25)*10) + AAMC_Raw_Data_for_FY22[[#This Row],[25th]]","v":235200.6},{"$f":"(((AAMC_Raw_Data_for_FY22[[#This Row],[Median]]-AAMC_Raw_Data_for_FY22[[#This Row],[25th]])/25)*15) + AAMC_Raw_Data_for_FY22[[#This Row],[25th]]","v":239671.4},{"$f":"(((AAMC_Raw_Data_for_FY22[[#This Row],[Median]]-AAMC_Raw_Data_for_FY22[[#This Row],[25th]])/25)*20) + AAMC_Raw_Data_for_FY22[[#This Row],[25th]]","v":244142.2},248613,{"$f":"(((AAMC_Raw_Data_for_FY22[[#This Row],[75th]]-AAMC_Raw_Data_for_FY22[[#This Row],[Median]])/25)*5) + AAMC_Raw_Data_for_FY22[[#This Row],[Median]]","v":253356.2},{"$f":"(((AAMC_Raw_Data_for_FY22[[#This Row],[75th]]-AAMC_Raw_Data_for_FY22[[#This Row],[Median]])/25)*10) + AAMC_Raw_Data_for_FY22[[#This Row],[Median]]","v":258099.4},{"$f":"(((AAMC_Raw_Data_for_FY22[[#This Row],[75th]]-AAMC_Raw_Data_for_FY22[[#This Row],[Median]])/25)*15) + AAMC_Raw_Data_for_FY22[[#This Row],[Median]]","v":262842.59999999998},{"$f":"(((AAMC_Raw_Data_for_FY22[[#This Row],[75th]]-AAMC_Raw_Data_for_FY22[[#This Row],[Median]])/25)*20) + AAMC_Raw_Data_for_FY22[[#This Row],[Median]]","v":267585.8},272329,{"$f":"(((AAMC_Raw_Data_for_FY22[[#This Row],[75th]]-AAMC_Raw_Data_for_FY22[[#This Row],[Median]])/25)*30) + AAMC_Raw_Data_for_FY22[[#This Row],[Median]]","v":277072.2},{"$f":"(((AAMC_Raw_Data_for_FY22[[#This Row],[75th]]-AAMC_Raw_Data_for_FY22[[#This Row],[Median]])/25)*35) + AAMC_Raw_Data_for_FY22[[#This Row],[Median]]","v":281815.40000000002},{"$f":"(((AAMC_Raw_Data_for_FY22[[#This Row],[75th]]-AAMC_Raw_Data_for_FY22[[#This Row],[Median]])/25)*40) + AAMC_Raw_Data_for_FY22[[#This Row],[Median]]","v":286558.59999999998}]
[{"$f":"AAMC_Raw_Data_for_FY22[[#This Row],[Source]]&AAMC_Raw_Data_for_FY22[[#This Row],[Type]]&AAMC_Raw_Data_for_FY22[[#This Row],[School Subset]]&AAMC_Raw_Data_for_FY22[[#This Row],[Rank]]&AAMC_Raw_Data_for_FY22[[#This Row],[Degree]]&AAMC_Raw_Data_for_FY22[[#This Row],[Department / Specialty]]&\"L\"","v":"AAMCAcademicPublicProfessorMDGeriatrics-Med.L"},"Geriatrics-Med.",2,"AAMC","Academic","Public","Professor","MD","2021-2022",253062,{"$f":"(((AAMC_Raw_Data_for_FY22[[#This Row],[Median]]-AAMC_Raw_Data_for_FY22[[#This Row],[25th]])/25)*5) + AAMC_Raw_Data_for_FY22[[#This Row],[25th]]","v":257530.2},{"$f":"(((AAMC_Raw_Data_for_FY22[[#This Row],[Median]]-AAMC_Raw_Data_for_FY22[[#This Row],[25th]])/25)*10) + AAMC_Raw_Data_for_FY22[[#This Row],[25th]]","v":261998.4},{"$f":"(((AAMC_Raw_Data_for_FY22[[#This Row],[Median]]-AAMC_Raw_Data_for_FY22[[#This Row],[25th]])/25)*15) + AAMC_Raw_Data_for_FY22[[#This Row],[25th]]","v":266466.59999999998},{"$f":"(((AAMC_Raw_Data_for_FY22[[#This Row],[Median]]-AAMC_Raw_Data_for_FY22[[#This Row],[25th]])/25)*20) + AAMC_Raw_Data_for_FY22[[#This Row],[25th]]","v":270934.8},275403,{"$f":"(((AAMC_Raw_Data_for_FY22[[#This Row],[75th]]-AAMC_Raw_Data_for_FY22[[#This Row],[Median]])/25)*5) + AAMC_Raw_Data_for_FY22[[#This Row],[Median]]","v":282304.2},{"$f":"(((AAMC_Raw_Data_for_FY22[[#This Row],[75th]]-AAMC_Raw_Data_for_FY22[[#This Row],[Median]])/25)*10) + AAMC_Raw_Data_for_FY22[[#This Row],[Median]]","v":289205.40000000002},{"$f":"(((AAMC_Raw_Data_for_FY22[[#This Row],[75th]]-AAMC_Raw_Data_for_FY22[[#This Row],[Median]])/25)*15) + AAMC_Raw_Data_for_FY22[[#This Row],[Median]]","v":296106.59999999998},{"$f":"(((AAMC_Raw_Data_for_FY22[[#This Row],[75th]]-AAMC_Raw_Data_for_FY22[[#This Row],[Median]])/25)*20) + AAMC_Raw_Data_for_FY22[[#This Row],[Median]]","v":303007.8},309909,{"$f":"(((AAMC_Raw_Data_for_FY22[[#This Row],[75th]]-AAMC_Raw_Data_for_FY22[[#This Row],[Median]])/25)*30) + AAMC_Raw_Data_for_FY22[[#This Row],[Median]]","v":316810.2},{"$f":"(((AAMC_Raw_Data_for_FY22[[#This Row],[75th]]-AAMC_Raw_Data_for_FY22[[#This Row],[Median]])/25)*35) + AAMC_Raw_Data_for_FY22[[#This Row],[Median]]","v":323711.40000000002},{"$f":"(((AAMC_Raw_Data_for_FY22[[#This Row],[75th]]-AAMC_Raw_Data_for_FY22[[#This Row],[Median]])/25)*40) + AAMC_Raw_Data_for_FY22[[#This Row],[Median]]","v":330612.59999999998}]
[{"$f":"AAMC_Raw_Data_for_FY22[[#This Row],[Source]]&AAMC_Raw_Data_for_FY22[[#This Row],[Type]]&AAMC_Raw_Data_for_FY22[[#This Row],[School Subset]]&AAMC_Raw_Data_for_FY22[[#This Row],[Rank]]&AAMC_Raw_Data_for_FY22[[#This Row],[Degree]]&AAMC_Raw_Data_for_FY22[[#This Row],[Department / Specialty]]&\"L\"","v":"AAMCAcademicPublicChiefMDGeriatrics-Med.L"},"Geriatrics-Med.",6,"AAMC","Academic","Public","Chief","MD","2021-2022",296059,{"$f":"(((AAMC_Raw_Data_for_FY22[[#This Row],[Median]]-AAMC_Raw_Data_for_FY22[[#This Row],[25th]])/25)*5) + AAMC_Raw_Data_for_FY22[[#This Row],[25th]]","v":300623.40000000002},{"$f":"(((AAMC_Raw_Data_for_FY22[[#This Row],[Median]]-AAMC_Raw_Data_for_FY22[[#This Row],[25th]])/25)*10) + AAMC_Raw_Data_for_FY22[[#This Row],[25th]]","v":305187.8},{"$f":"(((AAMC_Raw_Data_for_FY22[[#This Row],[Median]]-AAMC_Raw_Data_for_FY22[[#This Row],[25th]])/25)*15) + AAMC_Raw_Data_for_FY22[[#This Row],[25th]]","v":309752.2},{"$f":"(((AAMC_Raw_Data_for_FY22[[#This Row],[Median]]-AAMC_Raw_Data_for_FY22[[#This Row],[25th]])/25)*20) + AAMC_Raw_Data_for_FY22[[#This Row],[25th]]","v":314316.59999999998},318881,{"$f":"(((AAMC_Raw_Data_for_FY22[[#This Row],[75th]]-AAMC_Raw_Data_for_FY22[[#This Row],[Median]])/25)*5) + AAMC_Raw_Data_for_FY22[[#This Row],[Median]]","v":322189.2},{"$f":"(((AAMC_Raw_Data_for_FY22[[#This Row],[75th]]-AAMC_Raw_Data_for_FY22[[#This Row],[Median]])/25)*10) + AAMC_Raw_Data_for_FY22[[#This Row],[Median]]","v":325497.40000000002},{"$f":"(((AAMC_Raw_Data_for_FY22[[#This Row],[75th]]-AAMC_Raw_Data_for_FY22[[#This Row],[Median]])/25)*15) + AAMC_Raw_Data_for_FY22[[#This Row],[Median]]","v":328805.59999999998},{"$f":"(((AAMC_Raw_Data_for_FY22[[#This Row],[75th]]-AAMC_Raw_Data_for_FY22[[#This Row],[Median]])/25)*20) + AAMC_Raw_Data_for_FY22[[#This Row],[Median]]","v":332113.8},335422,{"$f":"(((AAMC_Raw_Data_for_FY22[[#This Row],[75th]]-AAMC_Raw_Data_for_FY22[[#This Row],[Median]])/25)*30) + AAMC_Raw_Data_for_FY22[[#This Row],[Median]]","v":338730.2},{"$f":"(((AAMC_Raw_Data_for_FY22[[#This Row],[75th]]-AAMC_Raw_Data_for_FY22[[#This Row],[Median]])/25)*35) + AAMC_Raw_Data_for_FY22[[#This Row],[Median]]","v":342038.4},{"$f":"(((AAMC_Raw_Data_for_FY22[[#This Row],[75th]]-AAMC_Raw_Data_for_FY22[[#This Row],[Median]])/25)*40) + AAMC_Raw_Data_for_FY22[[#This Row],[Median]]","v":345346.6}]
[{"$f":"AAMC_Raw_Data_for_FY22[[#This Row],[Source]]&AAMC_Raw_Data_for_FY22[[#This Row],[Type]]&AAMC_Raw_Data_for_FY22[[#This Row],[School Subset]]&AAMC_Raw_Data_for_FY22[[#This Row],[Rank]]&AAMC_Raw_Data_for_FY22[[#This Row],[Degree]]&AAMC_Raw_Data_for_FY22[[#This Row],[Department / Specialty]]&\"L\"","v":"AAMCAcademicPublicChairMDGeriatrics-Med.L"},"Geriatrics-Med.",1,"AAMC","Academic","Public","Chair","MD","2021-2022",361639,{"$f":"(((AAMC_Raw_Data_for_FY22[[#This Row],[Median]]-AAMC_Raw_Data_for_FY22[[#This Row],[25th]])/25)*5) + AAMC_Raw_Data_for_FY22[[#This Row],[25th]]","v":370939.2},{"$f":"(((AAMC_Raw_Data_for_FY22[[#This Row],[Median]]-AAMC_Raw_Data_for_FY22[[#This Row],[25th]])/25)*10) + AAMC_Raw_Data_for_FY22[[#This Row],[25th]]","v":380239.4},{"$f":"(((AAMC_Raw_Data_for_FY22[[#This Row],[Median]]-AAMC_Raw_Data_for_FY22[[#This Row],[25th]])/25)*15) + AAMC_Raw_Data_for_FY22[[#This Row],[25th]]","v":389539.6},{"$f":"(((AAMC_Raw_Data_for_FY22[[#This Row],[Median]]-AAMC_Raw_Data_for_FY22[[#This Row],[25th]])/25)*20) + AAMC_Raw_Data_for_FY22[[#This Row],[25th]]","v":398839.8},408140,{"$f":"(((AAMC_Raw_Data_for_FY22[[#This Row],[75th]]-AAMC_Raw_Data_for_FY22[[#This Row],[Median]])/25)*5) + AAMC_Raw_Data_for_FY22[[#This Row],[Median]]","v":419026.4},{"$f":"(((AAMC_Raw_Data_for_FY22[[#This Row],[75th]]-AAMC_Raw_Data_for_FY22[[#This Row],[Median]])/25)*10) + AAMC_Raw_Data_for_FY22[[#This Row],[Median]]","v":429912.8},{"$f":"(((AAMC_Raw_Data_for_FY22[[#This Row],[75th]]-AAMC_Raw_Data_for_FY22[[#This Row],[Median]])/25)*15) + AAMC_Raw_Data_for_FY22[[#This Row],[Median]]","v":440799.2},{"$f":"(((AAMC_Raw_Data_for_FY22[[#This Row],[75th]]-AAMC_Raw_Data_for_FY22[[#This Row],[Median]])/25)*20) + AAMC_Raw_Data_for_FY22[[#This Row],[Median]]","v":451685.6},462572,{"$f":"(((AAMC_Raw_Data_for_FY22[[#This Row],[75th]]-AAMC_Raw_Data_for_FY22[[#This Row],[Median]])/25)*30) + AAMC_Raw_Data_for_FY22[[#This Row],[Median]]","v":473458.4},{"$f":"(((AAMC_Raw_Data_for_FY22[[#This Row],[75th]]-AAMC_Raw_Data_for_FY22[[#This Row],[Median]])/25)*35) + AAMC_Raw_Data_for_FY22[[#This Row],[Median]]","v":484344.8},{"$f":"(((AAMC_Raw_Data_for_FY22[[#This Row],[75th]]-AAMC_Raw_Data_for_FY22[[#This Row],[Median]])/25)*40) + AAMC_Raw_Data_for_FY22[[#This Row],[Median]]","v":495231.2}]
[{"$f":"AAMC_Raw_Data_for_FY22[[#This Row],[Source]]&AAMC_Raw_Data_for_FY22[[#This Row],[Type]]&AAMC_Raw_Data_for_FY22[[#This Row],[School Subset]]&AAMC_Raw_Data_for_FY22[[#This Row],[Rank]]&AAMC_Raw_Data_for_FY22[[#This Row],[Degree]]&AAMC_Raw_Data_for_FY22[[#This Row],[Department / Specialty]]&\"L\"","v":"AAMCAcademicPublicInstructorMDHematology/Oncology-Med.L"},"Hematology/Oncology-Med.",5,"AAMC","Academic","Public","Instructor","MD","2021-2022",139356,{"$f":"(((AAMC_Raw_Data_for_FY22[[#This Row],[Median]]-AAMC_Raw_Data_for_FY22[[#This Row],[25th]])/25)*5) + AAMC_Raw_Data_for_FY22[[#This Row],[25th]]","v":148165.4},{"$f":"(((AAMC_Raw_Data_for_FY22[[#This Row],[Median]]-AAMC_Raw_Data_for_FY22[[#This Row],[25th]])/25)*10) + AAMC_Raw_Data_for_FY22[[#This Row],[25th]]","v":156974.79999999999},{"$f":"(((AAMC_Raw_Data_for_FY22[[#This Row],[Median]]-AAMC_Raw_Data_for_FY22[[#This Row],[25th]])/25)*15) + AAMC_Raw_Data_for_FY22[[#This Row],[25th]]","v":165784.20000000001},{"$f":"(((AAMC_Raw_Data_for_FY22[[#This Row],[Median]]-AAMC_Raw_Data_for_FY22[[#This Row],[25th]])/25)*20) + AAMC_Raw_Data_for_FY22[[#This Row],[25th]]","v":174593.6},183403,{"$f":"(((AAMC_Raw_Data_for_FY22[[#This Row],[75th]]-AAMC_Raw_Data_for_FY22[[#This Row],[Median]])/25)*5) + AAMC_Raw_Data_for_FY22[[#This Row],[Median]]","v":199222.39999999999},{"$f":"(((AAMC_Raw_Data_for_FY22[[#This Row],[75th]]-AAMC_Raw_Data_for_FY22[[#This Row],[Median]])/25)*10) + AAMC_Raw_Data_for_FY22[[#This Row],[Median]]","v":215041.8},{"$f":"(((AAMC_Raw_Data_for_FY22[[#This Row],[75th]]-AAMC_Raw_Data_for_FY22[[#This Row],[Median]])/25)*15) + AAMC_Raw_Data_for_FY22[[#This Row],[Median]]","v":230861.2},{"$f":"(((AAMC_Raw_Data_for_FY22[[#This Row],[75th]]-AAMC_Raw_Data_for_FY22[[#This Row],[Median]])/25)*20) + AAMC_Raw_Data_for_FY22[[#This Row],[Median]]","v":246680.6},262500,{"$f":"(((AAMC_Raw_Data_for_FY22[[#This Row],[75th]]-AAMC_Raw_Data_for_FY22[[#This Row],[Median]])/25)*30) + AAMC_Raw_Data_for_FY22[[#This Row],[Median]]","v":278319.40000000002},{"$f":"(((AAMC_Raw_Data_for_FY22[[#This Row],[75th]]-AAMC_Raw_Data_for_FY22[[#This Row],[Median]])/25)*35) + AAMC_Raw_Data_for_FY22[[#This Row],[Median]]","v":294138.8},{"$f":"(((AAMC_Raw_Data_for_FY22[[#This Row],[75th]]-AAMC_Raw_Data_for_FY22[[#This Row],[Median]])/25)*40) + AAMC_Raw_Data_for_FY22[[#This Row],[Median]]","v":309958.2}]
[{"$f":"AAMC_Raw_Data_for_FY22[[#This Row],[Source]]&AAMC_Raw_Data_for_FY22[[#This Row],[Type]]&AAMC_Raw_Data_for_FY22[[#This Row],[School Subset]]&AAMC_Raw_Data_for_FY22[[#This Row],[Rank]]&AAMC_Raw_Data_for_FY22[[#This Row],[Degree]]&AAMC_Raw_Data_for_FY22[[#This Row],[Department / Specialty]]&\"L\"","v":"AAMCAcademicPublicAssistantMDHematology/Oncology-Med.L"},"Hematology/Oncology-Med.",4,"AAMC","Academic","Public","Assistant","MD","2021-2022",241200,{"$f":"(((AAMC_Raw_Data_for_FY22[[#This Row],[Median]]-AAMC_Raw_Data_for_FY22[[#This Row],[25th]])/25)*5) + AAMC_Raw_Data_for_FY22[[#This Row],[25th]]","v":247660.79999999999},{"$f":"(((AAMC_Raw_Data_for_FY22[[#This Row],[Median]]-AAMC_Raw_Data_for_FY22[[#This Row],[25th]])/25)*10) + AAMC_Raw_Data_for_FY22[[#This Row],[25th]]","v":254121.60000000001},{"$f":"(((AAMC_Raw_Data_for_FY22[[#This Row],[Median]]-AAMC_Raw_Data_for_FY22[[#This Row],[25th]])/25)*15) + AAMC_Raw_Data_for_FY22[[#This Row],[25th]]","v":260582.39999999999},{"$f":"(((AAMC_Raw_Data_for_FY22[[#This Row],[Median]]-AAMC_Raw_Data_for_FY22[[#This Row],[25th]])/25)*20) + AAMC_Raw_Data_for_FY22[[#This Row],[25th]]","v":267043.20000000001},273504,{"$f":"(((AAMC_Raw_Data_for_FY22[[#This Row],[75th]]-AAMC_Raw_Data_for_FY22[[#This Row],[Median]])/25)*5) + AAMC_Raw_Data_for_FY22[[#This Row],[Median]]","v":286539},{"$f":"(((AAMC_Raw_Data_for_FY22[[#This Row],[75th]]-AAMC_Raw_Data_for_FY22[[#This Row],[Median]])/25)*10) + AAMC_Raw_Data_for_FY22[[#This Row],[Median]]","v":299574},{"$f":"(((AAMC_Raw_Data_for_FY22[[#This Row],[75th]]-AAMC_Raw_Data_for_FY22[[#This Row],[Median]])/25)*15) + AAMC_Raw_Data_for_FY22[[#This Row],[Median]]","v":312609},{"$f":"(((AAMC_Raw_Data_for_FY22[[#This Row],[75th]]-AAMC_Raw_Data_for_FY22[[#This Row],[Median]])/25)*20) + AAMC_Raw_Data_for_FY22[[#This Row],[Median]]","v":325644},338679,{"$f":"(((AAMC_Raw_Data_for_FY22[[#This Row],[75th]]-AAMC_Raw_Data_for_FY22[[#This Row],[Median]])/25)*30) + AAMC_Raw_Data_for_FY22[[#This Row],[Median]]","v":351714},{"$f":"(((AAMC_Raw_Data_for_FY22[[#This Row],[75th]]-AAMC_Raw_Data_for_FY22[[#This Row],[Median]])/25)*35) + AAMC_Raw_Data_for_FY22[[#This Row],[Median]]","v":364749},{"$f":"(((AAMC_Raw_Data_for_FY22[[#This Row],[75th]]-AAMC_Raw_Data_for_FY22[[#This Row],[Median]])/25)*40) + AAMC_Raw_Data_for_FY22[[#This Row],[Median]]","v":377784}]
[{"$f":"AAMC_Raw_Data_for_FY22[[#This Row],[Source]]&AAMC_Raw_Data_for_FY22[[#This Row],[Type]]&AAMC_Raw_Data_for_FY22[[#This Row],[School Subset]]&AAMC_Raw_Data_for_FY22[[#This Row],[Rank]]&AAMC_Raw_Data_for_FY22[[#This Row],[Degree]]&AAMC_Raw_Data_for_FY22[[#This Row],[Department / Specialty]]&\"L\"","v":"AAMCAcademicPublicAssociateMDHematology/Oncology-Med.L"},"Hematology/Oncology-Med.",3,"AAMC","Academic","Public","Associate","MD","2021-2022",290594,{"$f":"(((AAMC_Raw_Data_for_FY22[[#This Row],[Median]]-AAMC_Raw_Data_for_FY22[[#This Row],[25th]])/25)*5) + AAMC_Raw_Data_for_FY22[[#This Row],[25th]]","v":296490.59999999998},{"$f":"(((AAMC_Raw_Data_for_FY22[[#This Row],[Median]]-AAMC_Raw_Data_for_FY22[[#This Row],[25th]])/25)*10) + AAMC_Raw_Data_for_FY22[[#This Row],[25th]]","v":302387.20000000001},{"$f":"(((AAMC_Raw_Data_for_FY22[[#This Row],[Median]]-AAMC_Raw_Data_for_FY22[[#This Row],[25th]])/25)*15) + AAMC_Raw_Data_for_FY22[[#This Row],[25th]]","v":308283.8},{"$f":"(((AAMC_Raw_Data_for_FY22[[#This Row],[Median]]-AAMC_Raw_Data_for_FY22[[#This Row],[25th]])/25)*20) + AAMC_Raw_Data_for_FY22[[#This Row],[25th]]","v":314180.40000000002},320077,{"$f":"(((AAMC_Raw_Data_for_FY22[[#This Row],[75th]]-AAMC_Raw_Data_for_FY22[[#This Row],[Median]])/25)*5) + AAMC_Raw_Data_for_FY22[[#This Row],[Median]]","v":331164.40000000002},{"$f":"(((AAMC_Raw_Data_for_FY22[[#This Row],[75th]]-AAMC_Raw_Data_for_FY22[[#This Row],[Median]])/25)*10) + AAMC_Raw_Data_for_FY22[[#This Row],[Median]]","v":342251.8},{"$f":"(((AAMC_Raw_Data_for_FY22[[#This Row],[75th]]-AAMC_Raw_Data_for_FY22[[#This Row],[Median]])/25)*15) + AAMC_Raw_Data_for_FY22[[#This Row],[Median]]","v":353339.2},{"$f":"(((AAMC_Raw_Data_for_FY22[[#This Row],[75th]]-AAMC_Raw_Data_for_FY22[[#This Row],[Median]])/25)*20) + AAMC_Raw_Data_for_FY22[[#This Row],[Median]]","v":364426.6},375514,{"$f":"(((AAMC_Raw_Data_for_FY22[[#This Row],[75th]]-AAMC_Raw_Data_for_FY22[[#This Row],[Median]])/25)*30) + AAMC_Raw_Data_for_FY22[[#This Row],[Median]]","v":386601.4},{"$f":"(((AAMC_Raw_Data_for_FY22[[#This Row],[75th]]-AAMC_Raw_Data_for_FY22[[#This Row],[Median]])/25)*35) + AAMC_Raw_Data_for_FY22[[#This Row],[Median]]","v":397688.8},{"$f":"(((AAMC_Raw_Data_for_FY22[[#This Row],[75th]]-AAMC_Raw_Data_for_FY22[[#This Row],[Median]])/25)*40) + AAMC_Raw_Data_for_FY22[[#This Row],[Median]]","v":408776.2}]
[{"$f":"AAMC_Raw_Data_for_FY22[[#This Row],[Source]]&AAMC_Raw_Data_for_FY22[[#This Row],[Type]]&AAMC_Raw_Data_for_FY22[[#This Row],[School Subset]]&AAMC_Raw_Data_for_FY22[[#This Row],[Rank]]&AAMC_Raw_Data_for_FY22[[#This Row],[Degree]]&AAMC_Raw_Data_for_FY22[[#This Row],[Department / Specialty]]&\"L\"","v":"AAMCAcademicPublicProfessorMDHematology/Oncology-Med.L"},"Hematology/Oncology-Med.",2,"AAMC","Academic","Public","Professor","MD","2021-2022",332030,{"$f":"(((AAMC_Raw_Data_for_FY22[[#This Row],[Median]]-AAMC_Raw_Data_for_FY22[[#This Row],[25th]])/25)*5) + AAMC_Raw_Data_for_FY22[[#This Row],[25th]]","v":345291.8},{"$f":"(((AAMC_Raw_Data_for_FY22[[#This Row],[Median]]-AAMC_Raw_Data_for_FY22[[#This Row],[25th]])/25)*10) + AAMC_Raw_Data_for_FY22[[#This Row],[25th]]","v":358553.59999999998},{"$f":"(((AAMC_Raw_Data_for_FY22[[#This Row],[Median]]-AAMC_Raw_Data_for_FY22[[#This Row],[25th]])/25)*15) + AAMC_Raw_Data_for_FY22[[#This Row],[25th]]","v":371815.4},{"$f":"(((AAMC_Raw_Data_for_FY22[[#This Row],[Median]]-AAMC_Raw_Data_for_FY22[[#This Row],[25th]])/25)*20) + AAMC_Raw_Data_for_FY22[[#This Row],[25th]]","v":385077.2},398339,{"$f":"(((AAMC_Raw_Data_for_FY22[[#This Row],[75th]]-AAMC_Raw_Data_for_FY22[[#This Row],[Median]])/25)*5) + AAMC_Raw_Data_for_FY22[[#This Row],[Median]]","v":413582},{"$f":"(((AAMC_Raw_Data_for_FY22[[#This Row],[75th]]-AAMC_Raw_Data_for_FY22[[#This Row],[Median]])/25)*10) + AAMC_Raw_Data_for_FY22[[#This Row],[Median]]","v":428825},{"$f":"(((AAMC_Raw_Data_for_FY22[[#This Row],[75th]]-AAMC_Raw_Data_for_FY22[[#This Row],[Median]])/25)*15) + AAMC_Raw_Data_for_FY22[[#This Row],[Median]]","v":444068},{"$f":"(((AAMC_Raw_Data_for_FY22[[#This Row],[75th]]-AAMC_Raw_Data_for_FY22[[#This Row],[Median]])/25)*20) + AAMC_Raw_Data_for_FY22[[#This Row],[Median]]","v":459311},474554,{"$f":"(((AAMC_Raw_Data_for_FY22[[#This Row],[75th]]-AAMC_Raw_Data_for_FY22[[#This Row],[Median]])/25)*30) + AAMC_Raw_Data_for_FY22[[#This Row],[Median]]","v":489797},{"$f":"(((AAMC_Raw_Data_for_FY22[[#This Row],[75th]]-AAMC_Raw_Data_for_FY22[[#This Row],[Median]])/25)*35) + AAMC_Raw_Data_for_FY22[[#This Row],[Median]]","v":505040},{"$f":"(((AAMC_Raw_Data_for_FY22[[#This Row],[75th]]-AAMC_Raw_Data_for_FY22[[#This Row],[Median]])/25)*40) + AAMC_Raw_Data_for_FY22[[#This Row],[Median]]","v":520283}]
[{"$f":"AAMC_Raw_Data_for_FY22[[#This Row],[Source]]&AAMC_Raw_Data_for_FY22[[#This Row],[Type]]&AAMC_Raw_Data_for_FY22[[#This Row],[School Subset]]&AAMC_Raw_Data_for_FY22[[#This Row],[Rank]]&AAMC_Raw_Data_for_FY22[[#This Row],[Degree]]&AAMC_Raw_Data_for_FY22[[#This Row],[Department / Specialty]]&\"L\"","v":"AAMCAcademicPublicChiefMDHematology/Oncology-Med.L"},"Hematology/Oncology-Med.",6,"AAMC","Academic","Public","Chief","MD","2021-2022",409341,{"$f":"(((AAMC_Raw_Data_for_FY22[[#This Row],[Median]]-AAMC_Raw_Data_for_FY22[[#This Row],[25th]])/25)*5) + AAMC_Raw_Data_for_FY22[[#This Row],[25th]]","v":424721.6},{"$f":"(((AAMC_Raw_Data_for_FY22[[#This Row],[Median]]-AAMC_Raw_Data_for_FY22[[#This Row],[25th]])/25)*10) + AAMC_Raw_Data_for_FY22[[#This Row],[25th]]","v":440102.2},{"$f":"(((AAMC_Raw_Data_for_FY22[[#This Row],[Median]]-AAMC_Raw_Data_for_FY22[[#This Row],[25th]])/25)*15) + AAMC_Raw_Data_for_FY22[[#This Row],[25th]]","v":455482.8},{"$f":"(((AAMC_Raw_Data_for_FY22[[#This Row],[Median]]-AAMC_Raw_Data_for_FY22[[#This Row],[25th]])/25)*20) + AAMC_Raw_Data_for_FY22[[#This Row],[25th]]","v":470863.4},486244,{"$f":"(((AAMC_Raw_Data_for_FY22[[#This Row],[75th]]-AAMC_Raw_Data_for_FY22[[#This Row],[Median]])/25)*5) + AAMC_Raw_Data_for_FY22[[#This Row],[Median]]","v":499848.6},{"$f":"(((AAMC_Raw_Data_for_FY22[[#This Row],[75th]]-AAMC_Raw_Data_for_FY22[[#This Row],[Median]])/25)*10) + AAMC_Raw_Data_for_FY22[[#This Row],[Median]]","v":513453.2},{"$f":"(((AAMC_Raw_Data_for_FY22[[#This Row],[75th]]-AAMC_Raw_Data_for_FY22[[#This Row],[Median]])/25)*15) + AAMC_Raw_Data_for_FY22[[#This Row],[Median]]","v":527057.80000000005},{"$f":"(((AAMC_Raw_Data_for_FY22[[#This Row],[75th]]-AAMC_Raw_Data_for_FY22[[#This Row],[Median]])/25)*20) + AAMC_Raw_Data_for_FY22[[#This Row],[Median]]","v":540662.4},554267,{"$f":"(((AAMC_Raw_Data_for_FY22[[#This Row],[75th]]-AAMC_Raw_Data_for_FY22[[#This Row],[Median]])/25)*30) + AAMC_Raw_Data_for_FY22[[#This Row],[Median]]","v":567871.6},{"$f":"(((AAMC_Raw_Data_for_FY22[[#This Row],[75th]]-AAMC_Raw_Data_for_FY22[[#This Row],[Median]])/25)*35) + AAMC_Raw_Data_for_FY22[[#This Row],[Median]]","v":581476.19999999995},{"$f":"(((AAMC_Raw_Data_for_FY22[[#This Row],[75th]]-AAMC_Raw_Data_for_FY22[[#This Row],[Median]])/25)*40) + AAMC_Raw_Data_for_FY22[[#This Row],[Median]]","v":595080.80000000005}]
[{"$f":"AAMC_Raw_Data_for_FY22[[#This Row],[Source]]&AAMC_Raw_Data_for_FY22[[#This Row],[Type]]&AAMC_Raw_Data_for_FY22[[#This Row],[School Subset]]&AAMC_Raw_Data_for_FY22[[#This Row],[Rank]]&AAMC_Raw_Data_for_FY22[[#This Row],[Degree]]&AAMC_Raw_Data_for_FY22[[#This Row],[Department / Specialty]]&\"L\"","v":"AAMCAcademicPublicChairMDHematology/Oncology-Med.L"},"Hematology/Oncology-Med.",1,"AAMC","Academic","Public","Chair","MD","2021-2022",544599,{"$f":"(((AAMC_Raw_Data_for_FY22[[#This Row],[Median]]-AAMC_Raw_Data_for_FY22[[#This Row],[25th]])/25)*5) + AAMC_Raw_Data_for_FY22[[#This Row],[25th]]","v":563699.80000000005},{"$f":"(((AAMC_Raw_Data_for_FY22[[#This Row],[Median]]-AAMC_Raw_Data_for_FY22[[#This Row],[25th]])/25)*10) + AAMC_Raw_Data_for_FY22[[#This Row],[25th]]","v":582800.6},{"$f":"(((AAMC_Raw_Data_for_FY22[[#This Row],[Median]]-AAMC_Raw_Data_for_FY22[[#This Row],[25th]])/25)*15) + AAMC_Raw_Data_for_FY22[[#This Row],[25th]]","v":601901.4},{"$f":"(((AAMC_Raw_Data_for_FY22[[#This Row],[Median]]-AAMC_Raw_Data_for_FY22[[#This Row],[25th]])/25)*20) + AAMC_Raw_Data_for_FY22[[#This Row],[25th]]","v":621002.19999999995},640103,{"$f":"(((AAMC_Raw_Data_for_FY22[[#This Row],[75th]]-AAMC_Raw_Data_for_FY22[[#This Row],[Median]])/25)*5) + AAMC_Raw_Data_for_FY22[[#This Row],[Median]]","v":657271.4},{"$f":"(((AAMC_Raw_Data_for_FY22[[#This Row],[75th]]-AAMC_Raw_Data_for_FY22[[#This Row],[Median]])/25)*10) + AAMC_Raw_Data_for_FY22[[#This Row],[Median]]","v":674439.8},{"$f":"(((AAMC_Raw_Data_for_FY22[[#This Row],[75th]]-AAMC_Raw_Data_for_FY22[[#This Row],[Median]])/25)*15) + AAMC_Raw_Data_for_FY22[[#This Row],[Median]]","v":691608.2},{"$f":"(((AAMC_Raw_Data_for_FY22[[#This Row],[75th]]-AAMC_Raw_Data_for_FY22[[#This Row],[Median]])/25)*20) + AAMC_Raw_Data_for_FY22[[#This Row],[Median]]","v":708776.6},725945,{"$f":"(((AAMC_Raw_Data_for_FY22[[#This Row],[75th]]-AAMC_Raw_Data_for_FY22[[#This Row],[Median]])/25)*30) + AAMC_Raw_Data_for_FY22[[#This Row],[Median]]","v":743113.4},{"$f":"(((AAMC_Raw_Data_for_FY22[[#This Row],[75th]]-AAMC_Raw_Data_for_FY22[[#This Row],[Median]])/25)*35) + AAMC_Raw_Data_for_FY22[[#This Row],[Median]]","v":760281.8},{"$f":"(((AAMC_Raw_Data_for_FY22[[#This Row],[75th]]-AAMC_Raw_Data_for_FY22[[#This Row],[Median]])/25)*40) + AAMC_Raw_Data_for_FY22[[#This Row],[Median]]","v":777450.2}]
[{"$f":"AAMC_Raw_Data_for_FY22[[#This Row],[Source]]&AAMC_Raw_Data_for_FY22[[#This Row],[Type]]&AAMC_Raw_Data_for_FY22[[#This Row],[School Subset]]&AAMC_Raw_Data_for_FY22[[#This Row],[Rank]]&AAMC_Raw_Data_for_FY22[[#This Row],[Degree]]&AAMC_Raw_Data_for_FY22[[#This Row],[Department / Specialty]]&\"L\"","v":"AAMCAcademicPublicInstructorMDHospital MedicineL"},"Hospital Medicine",5,"AAMC","Academic","Public","Instructor","MD","2021-2022",210996,{"$f":"(((AAMC_Raw_Data_for_FY22[[#This Row],[Median]]-AAMC_Raw_Data_for_FY22[[#This Row],[25th]])/25)*5) + AAMC_Raw_Data_for_FY22[[#This Row],[25th]]","v":215301.4},{"$f":"(((AAMC_Raw_Data_for_FY22[[#This Row],[Median]]-AAMC_Raw_Data_for_FY22[[#This Row],[25th]])/25)*10) + AAMC_Raw_Data_for_FY22[[#This Row],[25th]]","v":219606.8},{"$f":"(((AAMC_Raw_Data_for_FY22[[#This Row],[Median]]-AAMC_Raw_Data_for_FY22[[#This Row],[25th]])/25)*15) + AAMC_Raw_Data_for_FY22[[#This Row],[25th]]","v":223912.2},{"$f":"(((AAMC_Raw_Data_for_FY22[[#This Row],[Median]]-AAMC_Raw_Data_for_FY22[[#This Row],[25th]])/25)*20) + AAMC_Raw_Data_for_FY22[[#This Row],[25th]]","v":228217.60000000001},232523,{"$f":"(((AAMC_Raw_Data_for_FY22[[#This Row],[75th]]-AAMC_Raw_Data_for_FY22[[#This Row],[Median]])/25)*5) + AAMC_Raw_Data_for_FY22[[#This Row],[Median]]","v":237650.8},{"$f":"(((AAMC_Raw_Data_for_FY22[[#This Row],[75th]]-AAMC_Raw_Data_for_FY22[[#This Row],[Median]])/25)*10) + AAMC_Raw_Data_for_FY22[[#This Row],[Median]]","v":242778.6},{"$f":"(((AAMC_Raw_Data_for_FY22[[#This Row],[75th]]-AAMC_Raw_Data_for_FY22[[#This Row],[Median]])/25)*15) + AAMC_Raw_Data_for_FY22[[#This Row],[Median]]","v":247906.4},{"$f":"(((AAMC_Raw_Data_for_FY22[[#This Row],[75th]]-AAMC_Raw_Data_for_FY22[[#This Row],[Median]])/25)*20) + AAMC_Raw_Data_for_FY22[[#This Row],[Median]]","v":253034.2},258162,{"$f":"(((AAMC_Raw_Data_for_FY22[[#This Row],[75th]]-AAMC_Raw_Data_for_FY22[[#This Row],[Median]])/25)*30) + AAMC_Raw_Data_for_FY22[[#This Row],[Median]]","v":263289.8},{"$f":"(((AAMC_Raw_Data_for_FY22[[#This Row],[75th]]-AAMC_Raw_Data_for_FY22[[#This Row],[Median]])/25)*35) + AAMC_Raw_Data_for_FY22[[#This Row],[Median]]","v":268417.59999999998},{"$f":"(((AAMC_Raw_Data_for_FY22[[#This Row],[75th]]-AAMC_Raw_Data_for_FY22[[#This Row],[Median]])/25)*40) + AAMC_Raw_Data_for_FY22[[#This Row],[Median]]","v":273545.40000000002}]
[{"$f":"AAMC_Raw_Data_for_FY22[[#This Row],[Source]]&AAMC_Raw_Data_for_FY22[[#This Row],[Type]]&AAMC_Raw_Data_for_FY22[[#This Row],[School Subset]]&AAMC_Raw_Data_for_FY22[[#This Row],[Rank]]&AAMC_Raw_Data_for_FY22[[#This Row],[Degree]]&AAMC_Raw_Data_for_FY22[[#This Row],[Department / Specialty]]&\"L\"","v":"AAMCAcademicPublicAssistantMDHospital MedicineL"},"Hospital Medicine",4,"AAMC","Academic","Public","Assistant","MD","2021-2022",237654,{"$f":"(((AAMC_Raw_Data_for_FY22[[#This Row],[Median]]-AAMC_Raw_Data_for_FY22[[#This Row],[25th]])/25)*5) + AAMC_Raw_Data_for_FY22[[#This Row],[25th]]","v":242783.4},{"$f":"(((AAMC_Raw_Data_for_FY22[[#This Row],[Median]]-AAMC_Raw_Data_for_FY22[[#This Row],[25th]])/25)*10) + AAMC_Raw_Data_for_FY22[[#This Row],[25th]]","v":247912.8},{"$f":"(((AAMC_Raw_Data_for_FY22[[#This Row],[Median]]-AAMC_Raw_Data_for_FY22[[#This Row],[25th]])/25)*15) + AAMC_Raw_Data_for_FY22[[#This Row],[25th]]","v":253042.2},{"$f":"(((AAMC_Raw_Data_for_FY22[[#This Row],[Median]]-AAMC_Raw_Data_for_FY22[[#This Row],[25th]])/25)*20) + AAMC_Raw_Data_for_FY22[[#This Row],[25th]]","v":258171.6},263301,{"$f":"(((AAMC_Raw_Data_for_FY22[[#This Row],[75th]]-AAMC_Raw_Data_for_FY22[[#This Row],[Median]])/25)*5) + AAMC_Raw_Data_for_FY22[[#This Row],[Median]]","v":269726},{"$f":"(((AAMC_Raw_Data_for_FY22[[#This Row],[75th]]-AAMC_Raw_Data_for_FY22[[#This Row],[Median]])/25)*10) + AAMC_Raw_Data_for_FY22[[#This Row],[Median]]","v":276151},{"$f":"(((AAMC_Raw_Data_for_FY22[[#This Row],[75th]]-AAMC_Raw_Data_for_FY22[[#This Row],[Median]])/25)*15) + AAMC_Raw_Data_for_FY22[[#This Row],[Median]]","v":282576},{"$f":"(((AAMC_Raw_Data_for_FY22[[#This Row],[75th]]-AAMC_Raw_Data_for_FY22[[#This Row],[Median]])/25)*20) + AAMC_Raw_Data_for_FY22[[#This Row],[Median]]","v":289001},295426,{"$f":"(((AAMC_Raw_Data_for_FY22[[#This Row],[75th]]-AAMC_Raw_Data_for_FY22[[#This Row],[Median]])/25)*30) + AAMC_Raw_Data_for_FY22[[#This Row],[Median]]","v":301851},{"$f":"(((AAMC_Raw_Data_for_FY22[[#This Row],[75th]]-AAMC_Raw_Data_for_FY22[[#This Row],[Median]])/25)*35) + AAMC_Raw_Data_for_FY22[[#This Row],[Median]]","v":308276},{"$f":"(((AAMC_Raw_Data_for_FY22[[#This Row],[75th]]-AAMC_Raw_Data_for_FY22[[#This Row],[Median]])/25)*40) + AAMC_Raw_Data_for_FY22[[#This Row],[Median]]","v":314701}]
[{"$f":"AAMC_Raw_Data_for_FY22[[#This Row],[Source]]&AAMC_Raw_Data_for_FY22[[#This Row],[Type]]&AAMC_Raw_Data_for_FY22[[#This Row],[School Subset]]&AAMC_Raw_Data_for_FY22[[#This Row],[Rank]]&AAMC_Raw_Data_for_FY22[[#This Row],[Degree]]&AAMC_Raw_Data_for_FY22[[#This Row],[Department / Specialty]]&\"L\"","v":"AAMCAcademicPublicAssociateMDHospital MedicineL"},"Hospital Medicine",3,"AAMC","Academic","Public","Associate","MD","2021-2022",251167,{"$f":"(((AAMC_Raw_Data_for_FY22[[#This Row],[Median]]-AAMC_Raw_Data_for_FY22[[#This Row],[25th]])/25)*5) + AAMC_Raw_Data_for_FY22[[#This Row],[25th]]","v":256920},{"$f":"(((AAMC_Raw_Data_for_FY22[[#This Row],[Median]]-AAMC_Raw_Data_for_FY22[[#This Row],[25th]])/25)*10) + AAMC_Raw_Data_for_FY22[[#This Row],[25th]]","v":262673},{"$f":"(((AAMC_Raw_Data_for_FY22[[#This Row],[Median]]-AAMC_Raw_Data_for_FY22[[#This Row],[25th]])/25)*15) + AAMC_Raw_Data_for_FY22[[#This Row],[25th]]","v":268426},{"$f":"(((AAMC_Raw_Data_for_FY22[[#This Row],[Median]]-AAMC_Raw_Data_for_FY22[[#This Row],[25th]])/25)*20) + AAMC_Raw_Data_for_FY22[[#This Row],[25th]]","v":274179},279932,{"$f":"(((AAMC_Raw_Data_for_FY22[[#This Row],[75th]]-AAMC_Raw_Data_for_FY22[[#This Row],[Median]])/25)*5) + AAMC_Raw_Data_for_FY22[[#This Row],[Median]]","v":287014.40000000002},{"$f":"(((AAMC_Raw_Data_for_FY22[[#This Row],[75th]]-AAMC_Raw_Data_for_FY22[[#This Row],[Median]])/25)*10) + AAMC_Raw_Data_for_FY22[[#This Row],[Median]]","v":294096.8},{"$f":"(((AAMC_Raw_Data_for_FY22[[#This Row],[75th]]-AAMC_Raw_Data_for_FY22[[#This Row],[Median]])/25)*15) + AAMC_Raw_Data_for_FY22[[#This Row],[Median]]","v":301179.2},{"$f":"(((AAMC_Raw_Data_for_FY22[[#This Row],[75th]]-AAMC_Raw_Data_for_FY22[[#This Row],[Median]])/25)*20) + AAMC_Raw_Data_for_FY22[[#This Row],[Median]]","v":308261.59999999998},315344,{"$f":"(((AAMC_Raw_Data_for_FY22[[#This Row],[75th]]-AAMC_Raw_Data_for_FY22[[#This Row],[Median]])/25)*30) + AAMC_Raw_Data_for_FY22[[#This Row],[Median]]","v":322426.40000000002},{"$f":"(((AAMC_Raw_Data_for_FY22[[#This Row],[75th]]-AAMC_Raw_Data_for_FY22[[#This Row],[Median]])/25)*35) + AAMC_Raw_Data_for_FY22[[#This Row],[Median]]","v":329508.8},{"$f":"(((AAMC_Raw_Data_for_FY22[[#This Row],[75th]]-AAMC_Raw_Data_for_FY22[[#This Row],[Median]])/25)*40) + AAMC_Raw_Data_for_FY22[[#This Row],[Median]]","v":336591.2}]
[{"$f":"AAMC_Raw_Data_for_FY22[[#This Row],[Source]]&AAMC_Raw_Data_for_FY22[[#This Row],[Type]]&AAMC_Raw_Data_for_FY22[[#This Row],[School Subset]]&AAMC_Raw_Data_for_FY22[[#This Row],[Rank]]&AAMC_Raw_Data_for_FY22[[#This Row],[Degree]]&AAMC_Raw_Data_for_FY22[[#This Row],[Department / Specialty]]&\"L\"","v":"AAMCAcademicPublicProfessorMDHospital MedicineL"},"Hospital Medicine",2,"AAMC","Academic","Public","Professor","MD","2021-2022",284298,{"$f":"(((AAMC_Raw_Data_for_FY22[[#This Row],[Median]]-AAMC_Raw_Data_for_FY22[[#This Row],[25th]])/25)*5) + AAMC_Raw_Data_for_FY22[[#This Row],[25th]]","v":293442.59999999998},{"$f":"(((AAMC_Raw_Data_for_FY22[[#This Row],[Median]]-AAMC_Raw_Data_for_FY22[[#This Row],[25th]])/25)*10) + AAMC_Raw_Data_for_FY22[[#This Row],[25th]]","v":302587.2},{"$f":"(((AAMC_Raw_Data_for_FY22[[#This Row],[Median]]-AAMC_Raw_Data_for_FY22[[#This Row],[25th]])/25)*15) + AAMC_Raw_Data_for_FY22[[#This Row],[25th]]","v":311731.8},{"$f":"(((AAMC_Raw_Data_for_FY22[[#This Row],[Median]]-AAMC_Raw_Data_for_FY22[[#This Row],[25th]])/25)*20) + AAMC_Raw_Data_for_FY22[[#This Row],[25th]]","v":320876.40000000002},330021,{"$f":"(((AAMC_Raw_Data_for_FY22[[#This Row],[75th]]-AAMC_Raw_Data_for_FY22[[#This Row],[Median]])/25)*5) + AAMC_Raw_Data_for_FY22[[#This Row],[Median]]","v":340630.2},{"$f":"(((AAMC_Raw_Data_for_FY22[[#This Row],[75th]]-AAMC_Raw_Data_for_FY22[[#This Row],[Median]])/25)*10) + AAMC_Raw_Data_for_FY22[[#This Row],[Median]]","v":351239.4},{"$f":"(((AAMC_Raw_Data_for_FY22[[#This Row],[75th]]-AAMC_Raw_Data_for_FY22[[#This Row],[Median]])/25)*15) + AAMC_Raw_Data_for_FY22[[#This Row],[Median]]","v":361848.6},{"$f":"(((AAMC_Raw_Data_for_FY22[[#This Row],[75th]]-AAMC_Raw_Data_for_FY22[[#This Row],[Median]])/25)*20) + AAMC_Raw_Data_for_FY22[[#This Row],[Median]]","v":372457.8},383067,{"$f":"(((AAMC_Raw_Data_for_FY22[[#This Row],[75th]]-AAMC_Raw_Data_for_FY22[[#This Row],[Median]])/25)*30) + AAMC_Raw_Data_for_FY22[[#This Row],[Median]]","v":393676.2},{"$f":"(((AAMC_Raw_Data_for_FY22[[#This Row],[75th]]-AAMC_Raw_Data_for_FY22[[#This Row],[Median]])/25)*35) + AAMC_Raw_Data_for_FY22[[#This Row],[Median]]","v":404285.4},{"$f":"(((AAMC_Raw_Data_for_FY22[[#This Row],[75th]]-AAMC_Raw_Data_for_FY22[[#This Row],[Median]])/25)*40) + AAMC_Raw_Data_for_FY22[[#This Row],[Median]]","v":414894.6}]
[{"$f":"AAMC_Raw_Data_for_FY22[[#This Row],[Source]]&AAMC_Raw_Data_for_FY22[[#This Row],[Type]]&AAMC_Raw_Data_for_FY22[[#This Row],[School Subset]]&AAMC_Raw_Data_for_FY22[[#This Row],[Rank]]&AAMC_Raw_Data_for_FY22[[#This Row],[Degree]]&AAMC_Raw_Data_for_FY22[[#This Row],[Department / Specialty]]&\"L\"","v":"AAMCAcademicPublicChiefMDHospital MedicineL"},"Hospital Medicine",6,"AAMC","Academic","Public","Chief","MD","2021-2022",315064,{"$f":"(((AAMC_Raw_Data_for_FY22[[#This Row],[Median]]-AAMC_Raw_Data_for_FY22[[#This Row],[25th]])/25)*5) + AAMC_Raw_Data_for_FY22[[#This Row],[25th]]","v":325180.40000000002},{"$f":"(((AAMC_Raw_Data_for_FY22[[#This Row],[Median]]-AAMC_Raw_Data_for_FY22[[#This Row],[25th]])/25)*10) + AAMC_Raw_Data_for_FY22[[#This Row],[25th]]","v":335296.8},{"$f":"(((AAMC_Raw_Data_for_FY22[[#This Row],[Median]]-AAMC_Raw_Data_for_FY22[[#This Row],[25th]])/25)*15) + AAMC_Raw_Data_for_FY22[[#This Row],[25th]]","v":345413.2},{"$f":"(((AAMC_Raw_Data_for_FY22[[#This Row],[Median]]-AAMC_Raw_Data_for_FY22[[#This Row],[25th]])/25)*20) + AAMC_Raw_Data_for_FY22[[#This Row],[25th]]","v":355529.6},365646,{"$f":"(((AAMC_Raw_Data_for_FY22[[#This Row],[75th]]-AAMC_Raw_Data_for_FY22[[#This Row],[Median]])/25)*5) + AAMC_Raw_Data_for_FY22[[#This Row],[Median]]","v":374224},{"$f":"(((AAMC_Raw_Data_for_FY22[[#This Row],[75th]]-AAMC_Raw_Data_for_FY22[[#This Row],[Median]])/25)*10) + AAMC_Raw_Data_for_FY22[[#This Row],[Median]]","v":382802},{"$f":"(((AAMC_Raw_Data_for_FY22[[#This Row],[75th]]-AAMC_Raw_Data_for_FY22[[#This Row],[Median]])/25)*15) + AAMC_Raw_Data_for_FY22[[#This Row],[Median]]","v":391380},{"$f":"(((AAMC_Raw_Data_for_FY22[[#This Row],[75th]]-AAMC_Raw_Data_for_FY22[[#This Row],[Median]])/25)*20) + AAMC_Raw_Data_for_FY22[[#This Row],[Median]]","v":399958},408536,{"$f":"(((AAMC_Raw_Data_for_FY22[[#This Row],[75th]]-AAMC_Raw_Data_for_FY22[[#This Row],[Median]])/25)*30) + AAMC_Raw_Data_for_FY22[[#This Row],[Median]]","v":417114},{"$f":"(((AAMC_Raw_Data_for_FY22[[#This Row],[75th]]-AAMC_Raw_Data_for_FY22[[#This Row],[Median]])/25)*35) + AAMC_Raw_Data_for_FY22[[#This Row],[Median]]","v":425692},{"$f":"(((AAMC_Raw_Data_for_FY22[[#This Row],[75th]]-AAMC_Raw_Data_for_FY22[[#This Row],[Median]])/25)*40) + AAMC_Raw_Data_for_FY22[[#This Row],[Median]]","v":434270}]
[{"$f":"AAMC_Raw_Data_for_FY22[[#This Row],[Source]]&AAMC_Raw_Data_for_FY22[[#This Row],[Type]]&AAMC_Raw_Data_for_FY22[[#This Row],[School Subset]]&AAMC_Raw_Data_for_FY22[[#This Row],[Rank]]&AAMC_Raw_Data_for_FY22[[#This Row],[Degree]]&AAMC_Raw_Data_for_FY22[[#This Row],[Department / Specialty]]&\"L\"","v":"AAMCAcademicPublicChairMDHospital MedicineL"},"Hospital Medicine",1,"AAMC","Academic","Public","Chair","MD","2021-2022",473600,{"$f":"(((AAMC_Raw_Data_for_FY22[[#This Row],[Median]]-AAMC_Raw_Data_for_FY22[[#This Row],[25th]])/25)*5) + AAMC_Raw_Data_for_FY22[[#This Row],[25th]]","v":493406.2},{"$f":"(((AAMC_Raw_Data_for_FY22[[#This Row],[Median]]-AAMC_Raw_Data_for_FY22[[#This Row],[25th]])/25)*10) + AAMC_Raw_Data_for_FY22[[#This Row],[25th]]","v":513212.4},{"$f":"(((AAMC_Raw_Data_for_FY22[[#This Row],[Median]]-AAMC_Raw_Data_for_FY22[[#This Row],[25th]])/25)*15) + AAMC_Raw_Data_for_FY22[[#This Row],[25th]]","v":533018.6},{"$f":"(((AAMC_Raw_Data_for_FY22[[#This Row],[Median]]-AAMC_Raw_Data_for_FY22[[#This Row],[25th]])/25)*20) + AAMC_Raw_Data_for_FY22[[#This Row],[25th]]","v":552824.80000000005},572631,{"$f":"(((AAMC_Raw_Data_for_FY22[[#This Row],[75th]]-AAMC_Raw_Data_for_FY22[[#This Row],[Median]])/25)*5) + AAMC_Raw_Data_for_FY22[[#This Row],[Median]]","v":695514},{"$f":"(((AAMC_Raw_Data_for_FY22[[#This Row],[75th]]-AAMC_Raw_Data_for_FY22[[#This Row],[Median]])/25)*10) + AAMC_Raw_Data_for_FY22[[#This Row],[Median]]","v":818397},{"$f":"(((AAMC_Raw_Data_for_FY22[[#This Row],[75th]]-AAMC_Raw_Data_for_FY22[[#This Row],[Median]])/25)*15) + AAMC_Raw_Data_for_FY22[[#This Row],[Median]]","v":941280},{"$f":"(((AAMC_Raw_Data_for_FY22[[#This Row],[75th]]-AAMC_Raw_Data_for_FY22[[#This Row],[Median]])/25)*20) + AAMC_Raw_Data_for_FY22[[#This Row],[Median]]","v":1064163},1187046,{"$f":"(((AAMC_Raw_Data_for_FY22[[#This Row],[75th]]-AAMC_Raw_Data_for_FY22[[#This Row],[Median]])/25)*30) + AAMC_Raw_Data_for_FY22[[#This Row],[Median]]","v":1309929},{"$f":"(((AAMC_Raw_Data_for_FY22[[#This Row],[75th]]-AAMC_Raw_Data_for_FY22[[#This Row],[Median]])/25)*35) + AAMC_Raw_Data_for_FY22[[#This Row],[Median]]","v":1432812},{"$f":"(((AAMC_Raw_Data_for_FY22[[#This Row],[75th]]-AAMC_Raw_Data_for_FY22[[#This Row],[Median]])/25)*40) + AAMC_Raw_Data_for_FY22[[#This Row],[Median]]","v":1555695}]
[{"$f":"AAMC_Raw_Data_for_FY22[[#This Row],[Source]]&AAMC_Raw_Data_for_FY22[[#This Row],[Type]]&AAMC_Raw_Data_for_FY22[[#This Row],[School Subset]]&AAMC_Raw_Data_for_FY22[[#This Row],[Rank]]&AAMC_Raw_Data_for_FY22[[#This Row],[Degree]]&AAMC_Raw_Data_for_FY22[[#This Row],[Department / Specialty]]&\"L\"","v":"AAMCAcademicPublicInstructorMDInfectious Disease-Med.L"},"Infectious Disease-Med.",5,"AAMC","Academic","Public","Instructor","MD","2021-2022",84883,{"$f":"(((AAMC_Raw_Data_for_FY22[[#This Row],[Median]]-AAMC_Raw_Data_for_FY22[[#This Row],[25th]])/25)*5) + AAMC_Raw_Data_for_FY22[[#This Row],[25th]]","v":92735},{"$f":"(((AAMC_Raw_Data_for_FY22[[#This Row],[Median]]-AAMC_Raw_Data_for_FY22[[#This Row],[25th]])/25)*10) + AAMC_Raw_Data_for_FY22[[#This Row],[25th]]","v":100587},{"$f":"(((AAMC_Raw_Data_for_FY22[[#This Row],[Median]]-AAMC_Raw_Data_for_FY22[[#This Row],[25th]])/25)*15) + AAMC_Raw_Data_for_FY22[[#This Row],[25th]]","v":108439},{"$f":"(((AAMC_Raw_Data_for_FY22[[#This Row],[Median]]-AAMC_Raw_Data_for_FY22[[#This Row],[25th]])/25)*20) + AAMC_Raw_Data_for_FY22[[#This Row],[25th]]","v":116291},124143,{"$f":"(((AAMC_Raw_Data_for_FY22[[#This Row],[75th]]-AAMC_Raw_Data_for_FY22[[#This Row],[Median]])/25)*5) + AAMC_Raw_Data_for_FY22[[#This Row],[Median]]","v":129959.6},{"$f":"(((AAMC_Raw_Data_for_FY22[[#This Row],[75th]]-AAMC_Raw_Data_for_FY22[[#This Row],[Median]])/25)*10) + AAMC_Raw_Data_for_FY22[[#This Row],[Median]]","v":135776.20000000001},{"$f":"(((AAMC_Raw_Data_for_FY22[[#This Row],[75th]]-AAMC_Raw_Data_for_FY22[[#This Row],[Median]])/25)*15) + AAMC_Raw_Data_for_FY22[[#This Row],[Median]]","v":141592.79999999999},{"$f":"(((AAMC_Raw_Data_for_FY22[[#This Row],[75th]]-AAMC_Raw_Data_for_FY22[[#This Row],[Median]])/25)*20) + AAMC_Raw_Data_for_FY22[[#This Row],[Median]]","v":147409.4},153226,{"$f":"(((AAMC_Raw_Data_for_FY22[[#This Row],[75th]]-AAMC_Raw_Data_for_FY22[[#This Row],[Median]])/25)*30) + AAMC_Raw_Data_for_FY22[[#This Row],[Median]]","v":159042.6},{"$f":"(((AAMC_Raw_Data_for_FY22[[#This Row],[75th]]-AAMC_Raw_Data_for_FY22[[#This Row],[Median]])/25)*35) + AAMC_Raw_Data_for_FY22[[#This Row],[Median]]","v":164859.20000000001},{"$f":"(((AAMC_Raw_Data_for_FY22[[#This Row],[75th]]-AAMC_Raw_Data_for_FY22[[#This Row],[Median]])/25)*40) + AAMC_Raw_Data_for_FY22[[#This Row],[Median]]","v":170675.8}]
[{"$f":"AAMC_Raw_Data_for_FY22[[#This Row],[Source]]&AAMC_Raw_Data_for_FY22[[#This Row],[Type]]&AAMC_Raw_Data_for_FY22[[#This Row],[School Subset]]&AAMC_Raw_Data_for_FY22[[#This Row],[Rank]]&AAMC_Raw_Data_for_FY22[[#This Row],[Degree]]&AAMC_Raw_Data_for_FY22[[#This Row],[Department / Specialty]]&\"L\"","v":"AAMCAcademicPublicAssistantMDInfectious Disease-Med.L"},"Infectious Disease-Med.",4,"AAMC","Academic","Public","Assistant","MD","2021-2022",176283,{"$f":"(((AAMC_Raw_Data_for_FY22[[#This Row],[Median]]-AAMC_Raw_Data_for_FY22[[#This Row],[25th]])/25)*5) + AAMC_Raw_Data_for_FY22[[#This Row],[25th]]","v":180546.2},{"$f":"(((AAMC_Raw_Data_for_FY22[[#This Row],[Median]]-AAMC_Raw_Data_for_FY22[[#This Row],[25th]])/25)*10) + AAMC_Raw_Data_for_FY22[[#This Row],[25th]]","v":184809.4},{"$f":"(((AAMC_Raw_Data_for_FY22[[#This Row],[Median]]-AAMC_Raw_Data_for_FY22[[#This Row],[25th]])/25)*15) + AAMC_Raw_Data_for_FY22[[#This Row],[25th]]","v":189072.6},{"$f":"(((AAMC_Raw_Data_for_FY22[[#This Row],[Median]]-AAMC_Raw_Data_for_FY22[[#This Row],[25th]])/25)*20) + AAMC_Raw_Data_for_FY22[[#This Row],[25th]]","v":193335.8},197599,{"$f":"(((AAMC_Raw_Data_for_FY22[[#This Row],[75th]]-AAMC_Raw_Data_for_FY22[[#This Row],[Median]])/25)*5) + AAMC_Raw_Data_for_FY22[[#This Row],[Median]]","v":203321},{"$f":"(((AAMC_Raw_Data_for_FY22[[#This Row],[75th]]-AAMC_Raw_Data_for_FY22[[#This Row],[Median]])/25)*10) + AAMC_Raw_Data_for_FY22[[#This Row],[Median]]","v":209043},{"$f":"(((AAMC_Raw_Data_for_FY22[[#This Row],[75th]]-AAMC_Raw_Data_for_FY22[[#This Row],[Median]])/25)*15) + AAMC_Raw_Data_for_FY22[[#This Row],[Median]]","v":214765},{"$f":"(((AAMC_Raw_Data_for_FY22[[#This Row],[75th]]-AAMC_Raw_Data_for_FY22[[#This Row],[Median]])/25)*20) + AAMC_Raw_Data_for_FY22[[#This Row],[Median]]","v":220487},226209,{"$f":"(((AAMC_Raw_Data_for_FY22[[#This Row],[75th]]-AAMC_Raw_Data_for_FY22[[#This Row],[Median]])/25)*30) + AAMC_Raw_Data_for_FY22[[#This Row],[Median]]","v":231931},{"$f":"(((AAMC_Raw_Data_for_FY22[[#This Row],[75th]]-AAMC_Raw_Data_for_FY22[[#This Row],[Median]])/25)*35) + AAMC_Raw_Data_for_FY22[[#This Row],[Median]]","v":237653},{"$f":"(((AAMC_Raw_Data_for_FY22[[#This Row],[75th]]-AAMC_Raw_Data_for_FY22[[#This Row],[Median]])/25)*40) + AAMC_Raw_Data_for_FY22[[#This Row],[Median]]","v":243375}]
[{"$f":"AAMC_Raw_Data_for_FY22[[#This Row],[Source]]&AAMC_Raw_Data_for_FY22[[#This Row],[Type]]&AAMC_Raw_Data_for_FY22[[#This Row],[School Subset]]&AAMC_Raw_Data_for_FY22[[#This Row],[Rank]]&AAMC_Raw_Data_for_FY22[[#This Row],[Degree]]&AAMC_Raw_Data_for_FY22[[#This Row],[Department / Specialty]]&\"L\"","v":"AAMCAcademicPublicAssociateMDInfectious Disease-Med.L"},"Infectious Disease-Med.",3,"AAMC","Academic","Public","Associate","MD","2021-2022",208574,{"$f":"(((AAMC_Raw_Data_for_FY22[[#This Row],[Median]]-AAMC_Raw_Data_for_FY22[[#This Row],[25th]])/25)*5) + AAMC_Raw_Data_for_FY22[[#This Row],[25th]]","v":212402.2},{"$f":"(((AAMC_Raw_Data_for_FY22[[#This Row],[Median]]-AAMC_Raw_Data_for_FY22[[#This Row],[25th]])/25)*10) + AAMC_Raw_Data_for_FY22[[#This Row],[25th]]","v":216230.39999999999},{"$f":"(((AAMC_Raw_Data_for_FY22[[#This Row],[Median]]-AAMC_Raw_Data_for_FY22[[#This Row],[25th]])/25)*15) + AAMC_Raw_Data_for_FY22[[#This Row],[25th]]","v":220058.6},{"$f":"(((AAMC_Raw_Data_for_FY22[[#This Row],[Median]]-AAMC_Raw_Data_for_FY22[[#This Row],[25th]])/25)*20) + AAMC_Raw_Data_for_FY22[[#This Row],[25th]]","v":223886.8},227715,{"$f":"(((AAMC_Raw_Data_for_FY22[[#This Row],[75th]]-AAMC_Raw_Data_for_FY22[[#This Row],[Median]])/25)*5) + AAMC_Raw_Data_for_FY22[[#This Row],[Median]]","v":234172},{"$f":"(((AAMC_Raw_Data_for_FY22[[#This Row],[75th]]-AAMC_Raw_Data_for_FY22[[#This Row],[Median]])/25)*10) + AAMC_Raw_Data_for_FY22[[#This Row],[Median]]","v":240629},{"$f":"(((AAMC_Raw_Data_for_FY22[[#This Row],[75th]]-AAMC_Raw_Data_for_FY22[[#This Row],[Median]])/25)*15) + AAMC_Raw_Data_for_FY22[[#This Row],[Median]]","v":247086},{"$f":"(((AAMC_Raw_Data_for_FY22[[#This Row],[75th]]-AAMC_Raw_Data_for_FY22[[#This Row],[Median]])/25)*20) + AAMC_Raw_Data_for_FY22[[#This Row],[Median]]","v":253543},260000,{"$f":"(((AAMC_Raw_Data_for_FY22[[#This Row],[75th]]-AAMC_Raw_Data_for_FY22[[#This Row],[Median]])/25)*30) + AAMC_Raw_Data_for_FY22[[#This Row],[Median]]","v":266457},{"$f":"(((AAMC_Raw_Data_for_FY22[[#This Row],[75th]]-AAMC_Raw_Data_for_FY22[[#This Row],[Median]])/25)*35) + AAMC_Raw_Data_for_FY22[[#This Row],[Median]]","v":272914},{"$f":"(((AAMC_Raw_Data_for_FY22[[#This Row],[75th]]-AAMC_Raw_Data_for_FY22[[#This Row],[Median]])/25)*40) + AAMC_Raw_Data_for_FY22[[#This Row],[Median]]","v":279371}]
[{"$f":"AAMC_Raw_Data_for_FY22[[#This Row],[Source]]&AAMC_Raw_Data_for_FY22[[#This Row],[Type]]&AAMC_Raw_Data_for_FY22[[#This Row],[School Subset]]&AAMC_Raw_Data_for_FY22[[#This Row],[Rank]]&AAMC_Raw_Data_for_FY22[[#This Row],[Degree]]&AAMC_Raw_Data_for_FY22[[#This Row],[Department / Specialty]]&\"L\"","v":"AAMCAcademicPublicProfessorMDInfectious Disease-Med.L"},"Infectious Disease-Med.",2,"AAMC","Academic","Public","Professor","MD","2021-2022",240264,{"$f":"(((AAMC_Raw_Data_for_FY22[[#This Row],[Median]]-AAMC_Raw_Data_for_FY22[[#This Row],[25th]])/25)*5) + AAMC_Raw_Data_for_FY22[[#This Row],[25th]]","v":247310.6},{"$f":"(((AAMC_Raw_Data_for_FY22[[#This Row],[Median]]-AAMC_Raw_Data_for_FY22[[#This Row],[25th]])/25)*10) + AAMC_Raw_Data_for_FY22[[#This Row],[25th]]","v":254357.2},{"$f":"(((AAMC_Raw_Data_for_FY22[[#This Row],[Median]]-AAMC_Raw_Data_for_FY22[[#This Row],[25th]])/25)*15) + AAMC_Raw_Data_for_FY22[[#This Row],[25th]]","v":261403.8},{"$f":"(((AAMC_Raw_Data_for_FY22[[#This Row],[Median]]-AAMC_Raw_Data_for_FY22[[#This Row],[25th]])/25)*20) + AAMC_Raw_Data_for_FY22[[#This Row],[25th]]","v":268450.40000000002},275497,{"$f":"(((AAMC_Raw_Data_for_FY22[[#This Row],[75th]]-AAMC_Raw_Data_for_FY22[[#This Row],[Median]])/25)*5) + AAMC_Raw_Data_for_FY22[[#This Row],[Median]]","v":284786.59999999998},{"$f":"(((AAMC_Raw_Data_for_FY22[[#This Row],[75th]]-AAMC_Raw_Data_for_FY22[[#This Row],[Median]])/25)*10) + AAMC_Raw_Data_for_FY22[[#This Row],[Median]]","v":294076.2},{"$f":"(((AAMC_Raw_Data_for_FY22[[#This Row],[75th]]-AAMC_Raw_Data_for_FY22[[#This Row],[Median]])/25)*15) + AAMC_Raw_Data_for_FY22[[#This Row],[Median]]","v":303365.8},{"$f":"(((AAMC_Raw_Data_for_FY22[[#This Row],[75th]]-AAMC_Raw_Data_for_FY22[[#This Row],[Median]])/25)*20) + AAMC_Raw_Data_for_FY22[[#This Row],[Median]]","v":312655.40000000002},321945,{"$f":"(((AAMC_Raw_Data_for_FY22[[#This Row],[75th]]-AAMC_Raw_Data_for_FY22[[#This Row],[Median]])/25)*30) + AAMC_Raw_Data_for_FY22[[#This Row],[Median]]","v":331234.59999999998},{"$f":"(((AAMC_Raw_Data_for_FY22[[#This Row],[75th]]-AAMC_Raw_Data_for_FY22[[#This Row],[Median]])/25)*35) + AAMC_Raw_Data_for_FY22[[#This Row],[Median]]","v":340524.2},{"$f":"(((AAMC_Raw_Data_for_FY22[[#This Row],[75th]]-AAMC_Raw_Data_for_FY22[[#This Row],[Median]])/25)*40) + AAMC_Raw_Data_for_FY22[[#This Row],[Median]]","v":349813.8}]
[{"$f":"AAMC_Raw_Data_for_FY22[[#This Row],[Source]]&AAMC_Raw_Data_for_FY22[[#This Row],[Type]]&AAMC_Raw_Data_for_FY22[[#This Row],[School Subset]]&AAMC_Raw_Data_for_FY22[[#This Row],[Rank]]&AAMC_Raw_Data_for_FY22[[#This Row],[Degree]]&AAMC_Raw_Data_for_FY22[[#This Row],[Department / Specialty]]&\"L\"","v":"AAMCAcademicPublicChiefMDInfectious Disease-Med.L"},"Infectious Disease-Med.",6,"AAMC","Academic","Public","Chief","MD","2021-2022",286267,{"$f":"(((AAMC_Raw_Data_for_FY22[[#This Row],[Median]]-AAMC_Raw_Data_for_FY22[[#This Row],[25th]])/25)*5) + AAMC_Raw_Data_for_FY22[[#This Row],[25th]]","v":293996.79999999999},{"$f":"(((AAMC_Raw_Data_for_FY22[[#This Row],[Median]]-AAMC_Raw_Data_for_FY22[[#This Row],[25th]])/25)*10) + AAMC_Raw_Data_for_FY22[[#This Row],[25th]]","v":301726.59999999998},{"$f":"(((AAMC_Raw_Data_for_FY22[[#This Row],[Median]]-AAMC_Raw_Data_for_FY22[[#This Row],[25th]])/25)*15) + AAMC_Raw_Data_for_FY22[[#This Row],[25th]]","v":309456.40000000002},{"$f":"(((AAMC_Raw_Data_for_FY22[[#This Row],[Median]]-AAMC_Raw_Data_for_FY22[[#This Row],[25th]])/25)*20) + AAMC_Raw_Data_for_FY22[[#This Row],[25th]]","v":317186.2},324916,{"$f":"(((AAMC_Raw_Data_for_FY22[[#This Row],[75th]]-AAMC_Raw_Data_for_FY22[[#This Row],[Median]])/25)*5) + AAMC_Raw_Data_for_FY22[[#This Row],[Median]]","v":337611.6},{"$f":"(((AAMC_Raw_Data_for_FY22[[#This Row],[75th]]-AAMC_Raw_Data_for_FY22[[#This Row],[Median]])/25)*10) + AAMC_Raw_Data_for_FY22[[#This Row],[Median]]","v":350307.2},{"$f":"(((AAMC_Raw_Data_for_FY22[[#This Row],[75th]]-AAMC_Raw_Data_for_FY22[[#This Row],[Median]])/25)*15) + AAMC_Raw_Data_for_FY22[[#This Row],[Median]]","v":363002.8},{"$f":"(((AAMC_Raw_Data_for_FY22[[#This Row],[75th]]-AAMC_Raw_Data_for_FY22[[#This Row],[Median]])/25)*20) + AAMC_Raw_Data_for_FY22[[#This Row],[Median]]","v":375698.4},388394,{"$f":"(((AAMC_Raw_Data_for_FY22[[#This Row],[75th]]-AAMC_Raw_Data_for_FY22[[#This Row],[Median]])/25)*30) + AAMC_Raw_Data_for_FY22[[#This Row],[Median]]","v":401089.6},{"$f":"(((AAMC_Raw_Data_for_FY22[[#This Row],[75th]]-AAMC_Raw_Data_for_FY22[[#This Row],[Median]])/25)*35) + AAMC_Raw_Data_for_FY22[[#This Row],[Median]]","v":413785.2},{"$f":"(((AAMC_Raw_Data_for_FY22[[#This Row],[75th]]-AAMC_Raw_Data_for_FY22[[#This Row],[Median]])/25)*40) + AAMC_Raw_Data_for_FY22[[#This Row],[Median]]","v":426480.8}]
[{"$f":"AAMC_Raw_Data_for_FY22[[#This Row],[Source]]&AAMC_Raw_Data_for_FY22[[#This Row],[Type]]&AAMC_Raw_Data_for_FY22[[#This Row],[School Subset]]&AAMC_Raw_Data_for_FY22[[#This Row],[Rank]]&AAMC_Raw_Data_for_FY22[[#This Row],[Degree]]&AAMC_Raw_Data_for_FY22[[#This Row],[Department / Specialty]]&\"L\"","v":"AAMCAcademicPublicChairMDInfectious Disease-Med.L"},"Infectious Disease-Med.",1,"AAMC","Academic","Public","Chair","MD","2021-2022",379276,{"$f":"(((AAMC_Raw_Data_for_FY22[[#This Row],[Median]]-AAMC_Raw_Data_for_FY22[[#This Row],[25th]])/25)*5) + AAMC_Raw_Data_for_FY22[[#This Row],[25th]]","v":415797},{"$f":"(((AAMC_Raw_Data_for_FY22[[#This Row],[Median]]-AAMC_Raw_Data_for_FY22[[#This Row],[25th]])/25)*10) + AAMC_Raw_Data_for_FY22[[#This Row],[25th]]","v":452318},{"$f":"(((AAMC_Raw_Data_for_FY22[[#This Row],[Median]]-AAMC_Raw_Data_for_FY22[[#This Row],[25th]])/25)*15) + AAMC_Raw_Data_for_FY22[[#This Row],[25th]]","v":488839},{"$f":"(((AAMC_Raw_Data_for_FY22[[#This Row],[Median]]-AAMC_Raw_Data_for_FY22[[#This Row],[25th]])/25)*20) + AAMC_Raw_Data_for_FY22[[#This Row],[25th]]","v":525360},561881,{"$f":"(((AAMC_Raw_Data_for_FY22[[#This Row],[75th]]-AAMC_Raw_Data_for_FY22[[#This Row],[Median]])/25)*5) + AAMC_Raw_Data_for_FY22[[#This Row],[Median]]","v":567780.80000000005},{"$f":"(((AAMC_Raw_Data_for_FY22[[#This Row],[75th]]-AAMC_Raw_Data_for_FY22[[#This Row],[Median]])/25)*10) + AAMC_Raw_Data_for_FY22[[#This Row],[Median]]","v":573680.6},{"$f":"(((AAMC_Raw_Data_for_FY22[[#This Row],[75th]]-AAMC_Raw_Data_for_FY22[[#This Row],[Median]])/25)*15) + AAMC_Raw_Data_for_FY22[[#This Row],[Median]]","v":579580.4},{"$f":"(((AAMC_Raw_Data_for_FY22[[#This Row],[75th]]-AAMC_Raw_Data_for_FY22[[#This Row],[Median]])/25)*20) + AAMC_Raw_Data_for_FY22[[#This Row],[Median]]","v":585480.19999999995},591380,{"$f":"(((AAMC_Raw_Data_for_FY22[[#This Row],[75th]]-AAMC_Raw_Data_for_FY22[[#This Row],[Median]])/25)*30) + AAMC_Raw_Data_for_FY22[[#This Row],[Median]]","v":597279.80000000005},{"$f":"(((AAMC_Raw_Data_for_FY22[[#This Row],[75th]]-AAMC_Raw_Data_for_FY22[[#This Row],[Median]])/25)*35) + AAMC_Raw_Data_for_FY22[[#This Row],[Median]]","v":603179.6},{"$f":"(((AAMC_Raw_Data_for_FY22[[#This Row],[75th]]-AAMC_Raw_Data_for_FY22[[#This Row],[Median]])/25)*40) + AAMC_Raw_Data_for_FY22[[#This Row],[Median]]","v":609079.4}]
[{"$f":"AAMC_Raw_Data_for_FY22[[#This Row],[Source]]&AAMC_Raw_Data_for_FY22[[#This Row],[Type]]&AAMC_Raw_Data_for_FY22[[#This Row],[School Subset]]&AAMC_Raw_Data_for_FY22[[#This Row],[Rank]]&AAMC_Raw_Data_for_FY22[[#This Row],[Degree]]&AAMC_Raw_Data_for_FY22[[#This Row],[Department / Specialty]]&\"L\"","v":"AAMCAcademicPublicInstructorMDNephrology-Med.L"},"Nephrology-Med.",5,"AAMC","Academic","Public","Instructor","MD","2021-2022",79933,{"$f":"(((AAMC_Raw_Data_for_FY22[[#This Row],[Median]]-AAMC_Raw_Data_for_FY22[[#This Row],[25th]])/25)*5) + AAMC_Raw_Data_for_FY22[[#This Row],[25th]]","v":87471.2},{"$f":"(((AAMC_Raw_Data_for_FY22[[#This Row],[Median]]-AAMC_Raw_Data_for_FY22[[#This Row],[25th]])/25)*10) + AAMC_Raw_Data_for_FY22[[#This Row],[25th]]","v":95009.4},{"$f":"(((AAMC_Raw_Data_for_FY22[[#This Row],[Median]]-AAMC_Raw_Data_for_FY22[[#This Row],[25th]])/25)*15) + AAMC_Raw_Data_for_FY22[[#This Row],[25th]]","v":102547.6},{"$f":"(((AAMC_Raw_Data_for_FY22[[#This Row],[Median]]-AAMC_Raw_Data_for_FY22[[#This Row],[25th]])/25)*20) + AAMC_Raw_Data_for_FY22[[#This Row],[25th]]","v":110085.8},117624,{"$f":"(((AAMC_Raw_Data_for_FY22[[#This Row],[75th]]-AAMC_Raw_Data_for_FY22[[#This Row],[Median]])/25)*5) + AAMC_Raw_Data_for_FY22[[#This Row],[Median]]","v":131357.20000000001},{"$f":"(((AAMC_Raw_Data_for_FY22[[#This Row],[75th]]-AAMC_Raw_Data_for_FY22[[#This Row],[Median]])/25)*10) + AAMC_Raw_Data_for_FY22[[#This Row],[Median]]","v":145090.4},{"$f":"(((AAMC_Raw_Data_for_FY22[[#This Row],[75th]]-AAMC_Raw_Data_for_FY22[[#This Row],[Median]])/25)*15) + AAMC_Raw_Data_for_FY22[[#This Row],[Median]]","v":158823.6},{"$f":"(((AAMC_Raw_Data_for_FY22[[#This Row],[75th]]-AAMC_Raw_Data_for_FY22[[#This Row],[Median]])/25)*20) + AAMC_Raw_Data_for_FY22[[#This Row],[Median]]","v":172556.79999999999},186290,{"$f":"(((AAMC_Raw_Data_for_FY22[[#This Row],[75th]]-AAMC_Raw_Data_for_FY22[[#This Row],[Median]])/25)*30) + AAMC_Raw_Data_for_FY22[[#This Row],[Median]]","v":200023.2},{"$f":"(((AAMC_Raw_Data_for_FY22[[#This Row],[75th]]-AAMC_Raw_Data_for_FY22[[#This Row],[Median]])/25)*35) + AAMC_Raw_Data_for_FY22[[#This Row],[Median]]","v":213756.4},{"$f":"(((AAMC_Raw_Data_for_FY22[[#This Row],[75th]]-AAMC_Raw_Data_for_FY22[[#This Row],[Median]])/25)*40) + AAMC_Raw_Data_for_FY22[[#This Row],[Median]]","v":227489.59999999998}]
[{"$f":"AAMC_Raw_Data_for_FY22[[#This Row],[Source]]&AAMC_Raw_Data_for_FY22[[#This Row],[Type]]&AAMC_Raw_Data_for_FY22[[#This Row],[School Subset]]&AAMC_Raw_Data_for_FY22[[#This Row],[Rank]]&AAMC_Raw_Data_for_FY22[[#This Row],[Degree]]&AAMC_Raw_Data_for_FY22[[#This Row],[Department / Specialty]]&\"L\"","v":"AAMCAcademicPublicAssistantMDNephrology-Med.L"},"Nephrology-Med.",4,"AAMC","Academic","Public","Assistant","MD","2021-2022",206826,{"$f":"(((AAMC_Raw_Data_for_FY22[[#This Row],[Median]]-AAMC_Raw_Data_for_FY22[[#This Row],[25th]])/25)*5) + AAMC_Raw_Data_for_FY22[[#This Row],[25th]]","v":212682.6},{"$f":"(((AAMC_Raw_Data_for_FY22[[#This Row],[Median]]-AAMC_Raw_Data_for_FY22[[#This Row],[25th]])/25)*10) + AAMC_Raw_Data_for_FY22[[#This Row],[25th]]","v":218539.2},{"$f":"(((AAMC_Raw_Data_for_FY22[[#This Row],[Median]]-AAMC_Raw_Data_for_FY22[[#This Row],[25th]])/25)*15) + AAMC_Raw_Data_for_FY22[[#This Row],[25th]]","v":224395.8},{"$f":"(((AAMC_Raw_Data_for_FY22[[#This Row],[Median]]-AAMC_Raw_Data_for_FY22[[#This Row],[25th]])/25)*20) + AAMC_Raw_Data_for_FY22[[#This Row],[25th]]","v":230252.4},236109,{"$f":"(((AAMC_Raw_Data_for_FY22[[#This Row],[75th]]-AAMC_Raw_Data_for_FY22[[#This Row],[Median]])/25)*5) + AAMC_Raw_Data_for_FY22[[#This Row],[Median]]","v":244544.2},{"$f":"(((AAMC_Raw_Data_for_FY22[[#This Row],[75th]]-AAMC_Raw_Data_for_FY22[[#This Row],[Median]])/25)*10) + AAMC_Raw_Data_for_FY22[[#This Row],[Median]]","v":252979.4},{"$f":"(((AAMC_Raw_Data_for_FY22[[#This Row],[75th]]-AAMC_Raw_Data_for_FY22[[#This Row],[Median]])/25)*15) + AAMC_Raw_Data_for_FY22[[#This Row],[Median]]","v":261414.6},{"$f":"(((AAMC_Raw_Data_for_FY22[[#This Row],[75th]]-AAMC_Raw_Data_for_FY22[[#This Row],[Median]])/25)*20) + AAMC_Raw_Data_for_FY22[[#This Row],[Median]]","v":269849.8},278285,{"$f":"(((AAMC_Raw_Data_for_FY22[[#This Row],[75th]]-AAMC_Raw_Data_for_FY22[[#This Row],[Median]])/25)*30) + AAMC_Raw_Data_for_FY22[[#This Row],[Median]]","v":286720.2},{"$f":"(((AAMC_Raw_Data_for_FY22[[#This Row],[75th]]-AAMC_Raw_Data_for_FY22[[#This Row],[Median]])/25)*35) + AAMC_Raw_Data_for_FY22[[#This Row],[Median]]","v":295155.40000000002},{"$f":"(((AAMC_Raw_Data_for_FY22[[#This Row],[75th]]-AAMC_Raw_Data_for_FY22[[#This Row],[Median]])/25)*40) + AAMC_Raw_Data_for_FY22[[#This Row],[Median]]","v":303590.59999999998}]
[{"$f":"AAMC_Raw_Data_for_FY22[[#This Row],[Source]]&AAMC_Raw_Data_for_FY22[[#This Row],[Type]]&AAMC_Raw_Data_for_FY22[[#This Row],[School Subset]]&AAMC_Raw_Data_for_FY22[[#This Row],[Rank]]&AAMC_Raw_Data_for_FY22[[#This Row],[Degree]]&AAMC_Raw_Data_for_FY22[[#This Row],[Department / Specialty]]&\"L\"","v":"AAMCAcademicPublicAssociateMDNephrology-Med.L"},"Nephrology-Med.",3,"AAMC","Academic","Public","Associate","MD","2021-2022",247396,{"$f":"(((AAMC_Raw_Data_for_FY22[[#This Row],[Median]]-AAMC_Raw_Data_for_FY22[[#This Row],[25th]])/25)*5) + AAMC_Raw_Data_for_FY22[[#This Row],[25th]]","v":252985.60000000001},{"$f":"(((AAMC_Raw_Data_for_FY22[[#This Row],[Median]]-AAMC_Raw_Data_for_FY22[[#This Row],[25th]])/25)*10) + AAMC_Raw_Data_for_FY22[[#This Row],[25th]]","v":258575.2},{"$f":"(((AAMC_Raw_Data_for_FY22[[#This Row],[Median]]-AAMC_Raw_Data_for_FY22[[#This Row],[25th]])/25)*15) + AAMC_Raw_Data_for_FY22[[#This Row],[25th]]","v":264164.8},{"$f":"(((AAMC_Raw_Data_for_FY22[[#This Row],[Median]]-AAMC_Raw_Data_for_FY22[[#This Row],[25th]])/25)*20) + AAMC_Raw_Data_for_FY22[[#This Row],[25th]]","v":269754.40000000002},275344,{"$f":"(((AAMC_Raw_Data_for_FY22[[#This Row],[75th]]-AAMC_Raw_Data_for_FY22[[#This Row],[Median]])/25)*5) + AAMC_Raw_Data_for_FY22[[#This Row],[Median]]","v":284876},{"$f":"(((AAMC_Raw_Data_for_FY22[[#This Row],[75th]]-AAMC_Raw_Data_for_FY22[[#This Row],[Median]])/25)*10) + AAMC_Raw_Data_for_FY22[[#This Row],[Median]]","v":294408},{"$f":"(((AAMC_Raw_Data_for_FY22[[#This Row],[75th]]-AAMC_Raw_Data_for_FY22[[#This Row],[Median]])/25)*15) + AAMC_Raw_Data_for_FY22[[#This Row],[Median]]","v":303940},{"$f":"(((AAMC_Raw_Data_for_FY22[[#This Row],[75th]]-AAMC_Raw_Data_for_FY22[[#This Row],[Median]])/25)*20) + AAMC_Raw_Data_for_FY22[[#This Row],[Median]]","v":313472},323004,{"$f":"(((AAMC_Raw_Data_for_FY22[[#This Row],[75th]]-AAMC_Raw_Data_for_FY22[[#This Row],[Median]])/25)*30) + AAMC_Raw_Data_for_FY22[[#This Row],[Median]]","v":332536},{"$f":"(((AAMC_Raw_Data_for_FY22[[#This Row],[75th]]-AAMC_Raw_Data_for_FY22[[#This Row],[Median]])/25)*35) + AAMC_Raw_Data_for_FY22[[#This Row],[Median]]","v":342068},{"$f":"(((AAMC_Raw_Data_for_FY22[[#This Row],[75th]]-AAMC_Raw_Data_for_FY22[[#This Row],[Median]])/25)*40) + AAMC_Raw_Data_for_FY22[[#This Row],[Median]]","v":351600}]
[{"$f":"AAMC_Raw_Data_for_FY22[[#This Row],[Source]]&AAMC_Raw_Data_for_FY22[[#This Row],[Type]]&AAMC_Raw_Data_for_FY22[[#This Row],[School Subset]]&AAMC_Raw_Data_for_FY22[[#This Row],[Rank]]&AAMC_Raw_Data_for_FY22[[#This Row],[Degree]]&AAMC_Raw_Data_for_FY22[[#This Row],[Department / Specialty]]&\"L\"","v":"AAMCAcademicPublicProfessorMDNephrology-Med.L"},"Nephrology-Med.",2,"AAMC","Academic","Public","Professor","MD","2021-2022",293032,{"$f":"(((AAMC_Raw_Data_for_FY22[[#This Row],[Median]]-AAMC_Raw_Data_for_FY22[[#This Row],[25th]])/25)*5) + AAMC_Raw_Data_for_FY22[[#This Row],[25th]]","v":302505.2},{"$f":"(((AAMC_Raw_Data_for_FY22[[#This Row],[Median]]-AAMC_Raw_Data_for_FY22[[#This Row],[25th]])/25)*10) + AAMC_Raw_Data_for_FY22[[#This Row],[25th]]","v":311978.40000000002},{"$f":"(((AAMC_Raw_Data_for_FY22[[#This Row],[Median]]-AAMC_Raw_Data_for_FY22[[#This Row],[25th]])/25)*15) + AAMC_Raw_Data_for_FY22[[#This Row],[25th]]","v":321451.59999999998},{"$f":"(((AAMC_Raw_Data_for_FY22[[#This Row],[Median]]-AAMC_Raw_Data_for_FY22[[#This Row],[25th]])/25)*20) + AAMC_Raw_Data_for_FY22[[#This Row],[25th]]","v":330924.79999999999},340398,{"$f":"(((AAMC_Raw_Data_for_FY22[[#This Row],[75th]]-AAMC_Raw_Data_for_FY22[[#This Row],[Median]])/25)*5) + AAMC_Raw_Data_for_FY22[[#This Row],[Median]]","v":351424.8},{"$f":"(((AAMC_Raw_Data_for_FY22[[#This Row],[75th]]-AAMC_Raw_Data_for_FY22[[#This Row],[Median]])/25)*10) + AAMC_Raw_Data_for_FY22[[#This Row],[Median]]","v":362451.6},{"$f":"(((AAMC_Raw_Data_for_FY22[[#This Row],[75th]]-AAMC_Raw_Data_for_FY22[[#This Row],[Median]])/25)*15) + AAMC_Raw_Data_for_FY22[[#This Row],[Median]]","v":373478.40000000002},{"$f":"(((AAMC_Raw_Data_for_FY22[[#This Row],[75th]]-AAMC_Raw_Data_for_FY22[[#This Row],[Median]])/25)*20) + AAMC_Raw_Data_for_FY22[[#This Row],[Median]]","v":384505.2},395532,{"$f":"(((AAMC_Raw_Data_for_FY22[[#This Row],[75th]]-AAMC_Raw_Data_for_FY22[[#This Row],[Median]])/25)*30) + AAMC_Raw_Data_for_FY22[[#This Row],[Median]]","v":406558.8},{"$f":"(((AAMC_Raw_Data_for_FY22[[#This Row],[75th]]-AAMC_Raw_Data_for_FY22[[#This Row],[Median]])/25)*35) + AAMC_Raw_Data_for_FY22[[#This Row],[Median]]","v":417585.6},{"$f":"(((AAMC_Raw_Data_for_FY22[[#This Row],[75th]]-AAMC_Raw_Data_for_FY22[[#This Row],[Median]])/25)*40) + AAMC_Raw_Data_for_FY22[[#This Row],[Median]]","v":428612.4}]
[{"$f":"AAMC_Raw_Data_for_FY22[[#This Row],[Source]]&AAMC_Raw_Data_for_FY22[[#This Row],[Type]]&AAMC_Raw_Data_for_FY22[[#This Row],[School Subset]]&AAMC_Raw_Data_for_FY22[[#This Row],[Rank]]&AAMC_Raw_Data_for_FY22[[#This Row],[Degree]]&AAMC_Raw_Data_for_FY22[[#This Row],[Department / Specialty]]&\"L\"","v":"AAMCAcademicPublicChiefMDNephrology-Med.L"},"Nephrology-Med.",6,"AAMC","Academic","Public","Chief","MD","2021-2022",329516,{"$f":"(((AAMC_Raw_Data_for_FY22[[#This Row],[Median]]-AAMC_Raw_Data_for_FY22[[#This Row],[25th]])/25)*5) + AAMC_Raw_Data_for_FY22[[#This Row],[25th]]","v":342421.4},{"$f":"(((AAMC_Raw_Data_for_FY22[[#This Row],[Median]]-AAMC_Raw_Data_for_FY22[[#This Row],[25th]])/25)*10) + AAMC_Raw_Data_for_FY22[[#This Row],[25th]]","v":355326.8},{"$f":"(((AAMC_Raw_Data_for_FY22[[#This Row],[Median]]-AAMC_Raw_Data_for_FY22[[#This Row],[25th]])/25)*15) + AAMC_Raw_Data_for_FY22[[#This Row],[25th]]","v":368232.2},{"$f":"(((AAMC_Raw_Data_for_FY22[[#This Row],[Median]]-AAMC_Raw_Data_for_FY22[[#This Row],[25th]])/25)*20) + AAMC_Raw_Data_for_FY22[[#This Row],[25th]]","v":381137.6},394043,{"$f":"(((AAMC_Raw_Data_for_FY22[[#This Row],[75th]]-AAMC_Raw_Data_for_FY22[[#This Row],[Median]])/25)*5) + AAMC_Raw_Data_for_FY22[[#This Row],[Median]]","v":404276},{"$f":"(((AAMC_Raw_Data_for_FY22[[#This Row],[75th]]-AAMC_Raw_Data_for_FY22[[#This Row],[Median]])/25)*10) + AAMC_Raw_Data_for_FY22[[#This Row],[Median]]","v":414509},{"$f":"(((AAMC_Raw_Data_for_FY22[[#This Row],[75th]]-AAMC_Raw_Data_for_FY22[[#This Row],[Median]])/25)*15) + AAMC_Raw_Data_for_FY22[[#This Row],[Median]]","v":424742},{"$f":"(((AAMC_Raw_Data_for_FY22[[#This Row],[75th]]-AAMC_Raw_Data_for_FY22[[#This Row],[Median]])/25)*20) + AAMC_Raw_Data_for_FY22[[#This Row],[Median]]","v":434975},445208,{"$f":"(((AAMC_Raw_Data_for_FY22[[#This Row],[75th]]-AAMC_Raw_Data_for_FY22[[#This Row],[Median]])/25)*30) + AAMC_Raw_Data_for_FY22[[#This Row],[Median]]","v":455441},{"$f":"(((AAMC_Raw_Data_for_FY22[[#This Row],[75th]]-AAMC_Raw_Data_for_FY22[[#This Row],[Median]])/25)*35) + AAMC_Raw_Data_for_FY22[[#This Row],[Median]]","v":465674},{"$f":"(((AAMC_Raw_Data_for_FY22[[#This Row],[75th]]-AAMC_Raw_Data_for_FY22[[#This Row],[Median]])/25)*40) + AAMC_Raw_Data_for_FY22[[#This Row],[Median]]","v":475907}]
[{"$f":"AAMC_Raw_Data_for_FY22[[#This Row],[Source]]&AAMC_Raw_Data_for_FY22[[#This Row],[Type]]&AAMC_Raw_Data_for_FY22[[#This Row],[School Subset]]&AAMC_Raw_Data_for_FY22[[#This Row],[Rank]]&AAMC_Raw_Data_for_FY22[[#This Row],[Degree]]&AAMC_Raw_Data_for_FY22[[#This Row],[Department / Specialty]]&\"L\"","v":"AAMCAcademicPublicChairMDNephrology-Med.L"},"Nephrology-Med.",1,"AAMC","Academic","Public","Chair","MD","2021-2022",391916,{"$f":"(((AAMC_Raw_Data_for_FY22[[#This Row],[Median]]-AAMC_Raw_Data_for_FY22[[#This Row],[25th]])/25)*5) + AAMC_Raw_Data_for_FY22[[#This Row],[25th]]","v":400348.6},{"$f":"(((AAMC_Raw_Data_for_FY22[[#This Row],[Median]]-AAMC_Raw_Data_for_FY22[[#This Row],[25th]])/25)*10) + AAMC_Raw_Data_for_FY22[[#This Row],[25th]]","v":408781.2},{"$f":"(((AAMC_Raw_Data_for_FY22[[#This Row],[Median]]-AAMC_Raw_Data_for_FY22[[#This Row],[25th]])/25)*15) + AAMC_Raw_Data_for_FY22[[#This Row],[25th]]","v":417213.8},{"$f":"(((AAMC_Raw_Data_for_FY22[[#This Row],[Median]]-AAMC_Raw_Data_for_FY22[[#This Row],[25th]])/25)*20) + AAMC_Raw_Data_for_FY22[[#This Row],[25th]]","v":425646.4},434079,{"$f":"(((AAMC_Raw_Data_for_FY22[[#This Row],[75th]]-AAMC_Raw_Data_for_FY22[[#This Row],[Median]])/25)*5) + AAMC_Raw_Data_for_FY22[[#This Row],[Median]]","v":458013.4},{"$f":"(((AAMC_Raw_Data_for_FY22[[#This Row],[75th]]-AAMC_Raw_Data_for_FY22[[#This Row],[Median]])/25)*10) + AAMC_Raw_Data_for_FY22[[#This Row],[Median]]","v":481947.8},{"$f":"(((AAMC_Raw_Data_for_FY22[[#This Row],[75th]]-AAMC_Raw_Data_for_FY22[[#This Row],[Median]])/25)*15) + AAMC_Raw_Data_for_FY22[[#This Row],[Median]]","v":505882.2},{"$f":"(((AAMC_Raw_Data_for_FY22[[#This Row],[75th]]-AAMC_Raw_Data_for_FY22[[#This Row],[Median]])/25)*20) + AAMC_Raw_Data_for_FY22[[#This Row],[Median]]","v":529816.6},553751,{"$f":"(((AAMC_Raw_Data_for_FY22[[#This Row],[75th]]-AAMC_Raw_Data_for_FY22[[#This Row],[Median]])/25)*30) + AAMC_Raw_Data_for_FY22[[#This Row],[Median]]","v":577685.4},{"$f":"(((AAMC_Raw_Data_for_FY22[[#This Row],[75th]]-AAMC_Raw_Data_for_FY22[[#This Row],[Median]])/25)*35) + AAMC_Raw_Data_for_FY22[[#This Row],[Median]]","v":601619.80000000005},{"$f":"(((AAMC_Raw_Data_for_FY22[[#This Row],[75th]]-AAMC_Raw_Data_for_FY22[[#This Row],[Median]])/25)*40) + AAMC_Raw_Data_for_FY22[[#This Row],[Median]]","v":625554.19999999995}]
[{"$f":"AAMC_Raw_Data_for_FY22[[#This Row],[Source]]&AAMC_Raw_Data_for_FY22[[#This Row],[Type]]&AAMC_Raw_Data_for_FY22[[#This Row],[School Subset]]&AAMC_Raw_Data_for_FY22[[#This Row],[Rank]]&AAMC_Raw_Data_for_FY22[[#This Row],[Degree]]&AAMC_Raw_Data_for_FY22[[#This Row],[Department / Specialty]]&\"L\"","v":"AAMCAcademicPublicInstructorMDPalliative Care-Med.L"},"Palliative Care-Med.",5,"AAMC","Academic","Public","Instructor","MD","2021-2022",null,{"$f":"(((AAMC_Raw_Data_for_FY22[[#This Row],[Median]]-AAMC_Raw_Data_for_FY22[[#This Row],[25th]])/25)*5) + AAMC_Raw_Data_for_FY22[[#This Row],[25th]]","v":0},{"$f":"(((AAMC_Raw_Data_for_FY22[[#This Row],[Median]]-AAMC_Raw_Data_for_FY22[[#This Row],[25th]])/25)*10) + AAMC_Raw_Data_for_FY22[[#This Row],[25th]]","v":0},{"$f":"(((AAMC_Raw_Data_for_FY22[[#This Row],[Median]]-AAMC_Raw_Data_for_FY22[[#This Row],[25th]])/25)*15) + AAMC_Raw_Data_for_FY22[[#This Row],[25th]]","v":0},{"$f":"(((AAMC_Raw_Data_for_FY22[[#This Row],[Median]]-AAMC_Raw_Data_for_FY22[[#This Row],[25th]])/25)*20) + AAMC_Raw_Data_for_FY22[[#This Row],[25th]]","v":0},null,{"$f":"(((AAMC_Raw_Data_for_FY22[[#This Row],[75th]]-AAMC_Raw_Data_for_FY22[[#This Row],[Median]])/25)*5) + AAMC_Raw_Data_for_FY22[[#This Row],[Median]]","v":0},{"$f":"(((AAMC_Raw_Data_for_FY22[[#This Row],[75th]]-AAMC_Raw_Data_for_FY22[[#This Row],[Median]])/25)*10) + AAMC_Raw_Data_for_FY22[[#This Row],[Median]]","v":0},{"$f":"(((AAMC_Raw_Data_for_FY22[[#This Row],[75th]]-AAMC_Raw_Data_for_FY22[[#This Row],[Median]])/25)*15) + AAMC_Raw_Data_for_FY22[[#This Row],[Median]]","v":0},{"$f":"(((AAMC_Raw_Data_for_FY22[[#This Row],[75th]]-AAMC_Raw_Data_for_FY22[[#This Row],[Median]])/25)*20) + AAMC_Raw_Data_for_FY22[[#This Row],[Median]]","v":0},null,{"$f":"(((AAMC_Raw_Data_for_FY22[[#This Row],[75th]]-AAMC_Raw_Data_for_FY22[[#This Row],[Median]])/25)*30) + AAMC_Raw_Data_for_FY22[[#This Row],[Median]]","v":0},{"$f":"(((AAMC_Raw_Data_for_FY22[[#This Row],[75th]]-AAMC_Raw_Data_for_FY22[[#This Row],[Median]])/25)*35) + AAMC_Raw_Data_for_FY22[[#This Row],[Median]]","v":0},{"$f":"(((AAMC_Raw_Data_for_FY22[[#This Row],[75th]]-AAMC_Raw_Data_for_FY22[[#This Row],[Median]])/25)*40) + AAMC_Raw_Data_for_FY22[[#This Row],[Median]]","v":0}]
[{"$f":"AAMC_Raw_Data_for_FY22[[#This Row],[Source]]&AAMC_Raw_Data_for_FY22[[#This Row],[Type]]&AAMC_Raw_Data_for_FY22[[#This Row],[School Subset]]&AAMC_Raw_Data_for_FY22[[#This Row],[Rank]]&AAMC_Raw_Data_for_FY22[[#This Row],[Degree]]&AAMC_Raw_Data_for_FY22[[#This Row],[Department / Specialty]]&\"L\"","v":"AAMCAcademicPublicAssistantMDPalliative Care-Med.L"},"Palliative Care-Med.",4,"AAMC","Academic","Public","Assistant","MD","2021-2022",217413,{"$f":"(((AAMC_Raw_Data_for_FY22[[#This Row],[Median]]-AAMC_Raw_Data_for_FY22[[#This Row],[25th]])/25)*5) + AAMC_Raw_Data_for_FY22[[#This Row],[25th]]","v":223430.39999999999},{"$f":"(((AAMC_Raw_Data_for_FY22[[#This Row],[Median]]-AAMC_Raw_Data_for_FY22[[#This Row],[25th]])/25)*10) + AAMC_Raw_Data_for_FY22[[#This Row],[25th]]","v":229447.8},{"$f":"(((AAMC_Raw_Data_for_FY22[[#This Row],[Median]]-AAMC_Raw_Data_for_FY22[[#This Row],[25th]])/25)*15) + AAMC_Raw_Data_for_FY22[[#This Row],[25th]]","v":235465.2},{"$f":"(((AAMC_Raw_Data_for_FY22[[#This Row],[Median]]-AAMC_Raw_Data_for_FY22[[#This Row],[25th]])/25)*20) + AAMC_Raw_Data_for_FY22[[#This Row],[25th]]","v":241482.6},247500,{"$f":"(((AAMC_Raw_Data_for_FY22[[#This Row],[75th]]-AAMC_Raw_Data_for_FY22[[#This Row],[Median]])/25)*5) + AAMC_Raw_Data_for_FY22[[#This Row],[Median]]","v":257454.2},{"$f":"(((AAMC_Raw_Data_for_FY22[[#This Row],[75th]]-AAMC_Raw_Data_for_FY22[[#This Row],[Median]])/25)*10) + AAMC_Raw_Data_for_FY22[[#This Row],[Median]]","v":267408.40000000002},{"$f":"(((AAMC_Raw_Data_for_FY22[[#This Row],[75th]]-AAMC_Raw_Data_for_FY22[[#This Row],[Median]])/25)*15) + AAMC_Raw_Data_for_FY22[[#This Row],[Median]]","v":277362.59999999998},{"$f":"(((AAMC_Raw_Data_for_FY22[[#This Row],[75th]]-AAMC_Raw_Data_for_FY22[[#This Row],[Median]])/25)*20) + AAMC_Raw_Data_for_FY22[[#This Row],[Median]]","v":287316.8},297271,{"$f":"(((AAMC_Raw_Data_for_FY22[[#This Row],[75th]]-AAMC_Raw_Data_for_FY22[[#This Row],[Median]])/25)*30) + AAMC_Raw_Data_for_FY22[[#This Row],[Median]]","v":307225.2},{"$f":"(((AAMC_Raw_Data_for_FY22[[#This Row],[75th]]-AAMC_Raw_Data_for_FY22[[#This Row],[Median]])/25)*35) + AAMC_Raw_Data_for_FY22[[#This Row],[Median]]","v":317179.40000000002},{"$f":"(((AAMC_Raw_Data_for_FY22[[#This Row],[75th]]-AAMC_Raw_Data_for_FY22[[#This Row],[Median]])/25)*40) + AAMC_Raw_Data_for_FY22[[#This Row],[Median]]","v":327133.59999999998}]
[{"$f":"AAMC_Raw_Data_for_FY22[[#This Row],[Source]]&AAMC_Raw_Data_for_FY22[[#This Row],[Type]]&AAMC_Raw_Data_for_FY22[[#This Row],[School Subset]]&AAMC_Raw_Data_for_FY22[[#This Row],[Rank]]&AAMC_Raw_Data_for_FY22[[#This Row],[Degree]]&AAMC_Raw_Data_for_FY22[[#This Row],[Department / Specialty]]&\"L\"","v":"AAMCAcademicPublicAssociateMDPalliative Care-Med.L"},"Palliative Care-Med.",3,"AAMC","Academic","Public","Associate","MD","2021-2022",247584,{"$f":"(((AAMC_Raw_Data_for_FY22[[#This Row],[Median]]-AAMC_Raw_Data_for_FY22[[#This Row],[25th]])/25)*5) + AAMC_Raw_Data_for_FY22[[#This Row],[25th]]","v":253794.4},{"$f":"(((AAMC_Raw_Data_for_FY22[[#This Row],[Median]]-AAMC_Raw_Data_for_FY22[[#This Row],[25th]])/25)*10) + AAMC_Raw_Data_for_FY22[[#This Row],[25th]]","v":260004.8},{"$f":"(((AAMC_Raw_Data_for_FY22[[#This Row],[Median]]-AAMC_Raw_Data_for_FY22[[#This Row],[25th]])/25)*15) + AAMC_Raw_Data_for_FY22[[#This Row],[25th]]","v":266215.2},{"$f":"(((AAMC_Raw_Data_for_FY22[[#This Row],[Median]]-AAMC_Raw_Data_for_FY22[[#This Row],[25th]])/25)*20) + AAMC_Raw_Data_for_FY22[[#This Row],[25th]]","v":272425.59999999998},278636,{"$f":"(((AAMC_Raw_Data_for_FY22[[#This Row],[75th]]-AAMC_Raw_Data_for_FY22[[#This Row],[Median]])/25)*5) + AAMC_Raw_Data_for_FY22[[#This Row],[Median]]","v":356427},{"$f":"(((AAMC_Raw_Data_for_FY22[[#This Row],[75th]]-AAMC_Raw_Data_for_FY22[[#This Row],[Median]])/25)*10) + AAMC_Raw_Data_for_FY22[[#This Row],[Median]]","v":434218},{"$f":"(((AAMC_Raw_Data_for_FY22[[#This Row],[75th]]-AAMC_Raw_Data_for_FY22[[#This Row],[Median]])/25)*15) + AAMC_Raw_Data_for_FY22[[#This Row],[Median]]","v":512009},{"$f":"(((AAMC_Raw_Data_for_FY22[[#This Row],[75th]]-AAMC_Raw_Data_for_FY22[[#This Row],[Median]])/25)*20) + AAMC_Raw_Data_for_FY22[[#This Row],[Median]]","v":589800},667591,{"$f":"(((AAMC_Raw_Data_for_FY22[[#This Row],[75th]]-AAMC_Raw_Data_for_FY22[[#This Row],[Median]])/25)*30) + AAMC_Raw_Data_for_FY22[[#This Row],[Median]]","v":745382},{"$f":"(((AAMC_Raw_Data_for_FY22[[#This Row],[75th]]-AAMC_Raw_Data_for_FY22[[#This Row],[Median]])/25)*35) + AAMC_Raw_Data_for_FY22[[#This Row],[Median]]","v":823173},{"$f":"(((AAMC_Raw_Data_for_FY22[[#This Row],[75th]]-AAMC_Raw_Data_for_FY22[[#This Row],[Median]])/25)*40) + AAMC_Raw_Data_for_FY22[[#This Row],[Median]]","v":900964}]
[{"$f":"AAMC_Raw_Data_for_FY22[[#This Row],[Source]]&AAMC_Raw_Data_for_FY22[[#This Row],[Type]]&AAMC_Raw_Data_for_FY22[[#This Row],[School Subset]]&AAMC_Raw_Data_for_FY22[[#This Row],[Rank]]&AAMC_Raw_Data_for_FY22[[#This Row],[Degree]]&AAMC_Raw_Data_for_FY22[[#This Row],[Department / Specialty]]&\"L\"","v":"AAMCAcademicPublicProfessorMDPalliative Care-Med.L"},"Palliative Care-Med.",2,"AAMC","Academic","Public","Professor","MD","2021-2022",null,{"$f":"(((AAMC_Raw_Data_for_FY22[[#This Row],[Median]]-AAMC_Raw_Data_for_FY22[[#This Row],[25th]])/25)*5) + AAMC_Raw_Data_for_FY22[[#This Row],[25th]]","v":0},{"$f":"(((AAMC_Raw_Data_for_FY22[[#This Row],[Median]]-AAMC_Raw_Data_for_FY22[[#This Row],[25th]])/25)*10) + AAMC_Raw_Data_for_FY22[[#This Row],[25th]]","v":0},{"$f":"(((AAMC_Raw_Data_for_FY22[[#This Row],[Median]]-AAMC_Raw_Data_for_FY22[[#This Row],[25th]])/25)*15) + AAMC_Raw_Data_for_FY22[[#This Row],[25th]]","v":0},{"$f":"(((AAMC_Raw_Data_for_FY22[[#This Row],[Median]]-AAMC_Raw_Data_for_FY22[[#This Row],[25th]])/25)*20) + AAMC_Raw_Data_for_FY22[[#This Row],[25th]]","v":0},null,{"$f":"(((AAMC_Raw_Data_for_FY22[[#This Row],[75th]]-AAMC_Raw_Data_for_FY22[[#This Row],[Median]])/25)*5) + AAMC_Raw_Data_for_FY22[[#This Row],[Median]]","v":0},{"$f":"(((AAMC_Raw_Data_for_FY22[[#This Row],[75th]]-AAMC_Raw_Data_for_FY22[[#This Row],[Median]])/25)*10) + AAMC_Raw_Data_for_FY22[[#This Row],[Median]]","v":0},{"$f":"(((AAMC_Raw_Data_for_FY22[[#This Row],[75th]]-AAMC_Raw_Data_for_FY22[[#This Row],[Median]])/25)*15) + AAMC_Raw_Data_for_FY22[[#This Row],[Median]]","v":0},{"$f":"(((AAMC_Raw_Data_for_FY22[[#This Row],[75th]]-AAMC_Raw_Data_for_FY22[[#This Row],[Median]])/25)*20) + AAMC_Raw_Data_for_FY22[[#This Row],[Median]]","v":0},null,{"$f":"(((AAMC_Raw_Data_for_FY22[[#This Row],[75th]]-AAMC_Raw_Data_for_FY22[[#This Row],[Median]])/25)*30) + AAMC_Raw_Data_for_FY22[[#This Row],[Median]]","v":0},{"$f":"(((AAMC_Raw_Data_for_FY22[[#This Row],[75th]]-AAMC_Raw_Data_for_FY22[[#This Row],[Median]])/25)*35) + AAMC_Raw_Data_for_FY22[[#This Row],[Median]]","v":0},{"$f":"(((AAMC_Raw_Data_for_FY22[[#This Row],[75th]]-AAMC_Raw_Data_for_FY22[[#This Row],[Median]])/25)*40) + AAMC_Raw_Data_for_FY22[[#This Row],[Median]]","v":0}]
[{"$f":"AAMC_Raw_Data_for_FY22[[#This Row],[Source]]&AAMC_Raw_Data_for_FY22[[#This Row],[Type]]&AAMC_Raw_Data_for_FY22[[#This Row],[School Subset]]&AAMC_Raw_Data_for_FY22[[#This Row],[Rank]]&AAMC_Raw_Data_for_FY22[[#This Row],[Degree]]&AAMC_Raw_Data_for_FY22[[#This Row],[Department / Specialty]]&\"L\"","v":"AAMCAcademicPublicChiefMDPalliative Care-Med.L"},"Palliative Care-Med.",6,"AAMC","Academic","Public","Chief","MD","2021-2022",null,{"$f":"(((AAMC_Raw_Data_for_FY22[[#This Row],[Median]]-AAMC_Raw_Data_for_FY22[[#This Row],[25th]])/25)*5) + AAMC_Raw_Data_for_FY22[[#This Row],[25th]]","v":0},{"$f":"(((AAMC_Raw_Data_for_FY22[[#This Row],[Median]]-AAMC_Raw_Data_for_FY22[[#This Row],[25th]])/25)*10) + AAMC_Raw_Data_for_FY22[[#This Row],[25th]]","v":0},{"$f":"(((AAMC_Raw_Data_for_FY22[[#This Row],[Median]]-AAMC_Raw_Data_for_FY22[[#This Row],[25th]])/25)*15) + AAMC_Raw_Data_for_FY22[[#This Row],[25th]]","v":0},{"$f":"(((AAMC_Raw_Data_for_FY22[[#This Row],[Median]]-AAMC_Raw_Data_for_FY22[[#This Row],[25th]])/25)*20) + AAMC_Raw_Data_for_FY22[[#This Row],[25th]]","v":0},null,{"$f":"(((AAMC_Raw_Data_for_FY22[[#This Row],[75th]]-AAMC_Raw_Data_for_FY22[[#This Row],[Median]])/25)*5) + AAMC_Raw_Data_for_FY22[[#This Row],[Median]]","v":0},{"$f":"(((AAMC_Raw_Data_for_FY22[[#This Row],[75th]]-AAMC_Raw_Data_for_FY22[[#This Row],[Median]])/25)*10) + AAMC_Raw_Data_for_FY22[[#This Row],[Median]]","v":0},{"$f":"(((AAMC_Raw_Data_for_FY22[[#This Row],[75th]]-AAMC_Raw_Data_for_FY22[[#This Row],[Median]])/25)*15) + AAMC_Raw_Data_for_FY22[[#This Row],[Median]]","v":0},{"$f":"(((AAMC_Raw_Data_for_FY22[[#This Row],[75th]]-AAMC_Raw_Data_for_FY22[[#This Row],[Median]])/25)*20) + AAMC_Raw_Data_for_FY22[[#This Row],[Median]]","v":0},null,{"$f":"(((AAMC_Raw_Data_for_FY22[[#This Row],[75th]]-AAMC_Raw_Data_for_FY22[[#This Row],[Median]])/25)*30) + AAMC_Raw_Data_for_FY22[[#This Row],[Median]]","v":0},{"$f":"(((AAMC_Raw_Data_for_FY22[[#This Row],[75th]]-AAMC_Raw_Data_for_FY22[[#This Row],[Median]])/25)*35) + AAMC_Raw_Data_for_FY22[[#This Row],[Median]]","v":0},{"$f":"(((AAMC_Raw_Data_for_FY22[[#This Row],[75th]]-AAMC_Raw_Data_for_FY22[[#This Row],[Median]])/25)*40) + AAMC_Raw_Data_for_FY22[[#This Row],[Median]]","v":0}]
[{"$f":"AAMC_Raw_Data_for_FY22[[#This Row],[Source]]&AAMC_Raw_Data_for_FY22[[#This Row],[Type]]&AAMC_Raw_Data_for_FY22[[#This Row],[School Subset]]&AAMC_Raw_Data_for_FY22[[#This Row],[Rank]]&AAMC_Raw_Data_for_FY22[[#This Row],[Degree]]&AAMC_Raw_Data_for_FY22[[#This Row],[Department / Specialty]]&\"L\"","v":"AAMCAcademicPublicChairMDPalliative Care-Med.L"},"Palliative Care-Med.",1,"AAMC","Academic","Public","Chair","MD","2021-2022",null,{"$f":"(((AAMC_Raw_Data_for_FY22[[#This Row],[Median]]-AAMC_Raw_Data_for_FY22[[#This Row],[25th]])/25)*5) + AAMC_Raw_Data_for_FY22[[#This Row],[25th]]","v":0},{"$f":"(((AAMC_Raw_Data_for_FY22[[#This Row],[Median]]-AAMC_Raw_Data_for_FY22[[#This Row],[25th]])/25)*10) + AAMC_Raw_Data_for_FY22[[#This Row],[25th]]","v":0},{"$f":"(((AAMC_Raw_Data_for_FY22[[#This Row],[Median]]-AAMC_Raw_Data_for_FY22[[#This Row],[25th]])/25)*15) + AAMC_Raw_Data_for_FY22[[#This Row],[25th]]","v":0},{"$f":"(((AAMC_Raw_Data_for_FY22[[#This Row],[Median]]-AAMC_Raw_Data_for_FY22[[#This Row],[25th]])/25)*20) + AAMC_Raw_Data_for_FY22[[#This Row],[25th]]","v":0},null,{"$f":"(((AAMC_Raw_Data_for_FY22[[#This Row],[75th]]-AAMC_Raw_Data_for_FY22[[#This Row],[Median]])/25)*5) + AAMC_Raw_Data_for_FY22[[#This Row],[Median]]","v":0},{"$f":"(((AAMC_Raw_Data_for_FY22[[#This Row],[75th]]-AAMC_Raw_Data_for_FY22[[#This Row],[Median]])/25)*10) + AAMC_Raw_Data_for_FY22[[#This Row],[Median]]","v":0},{"$f":"(((AAMC_Raw_Data_for_FY22[[#This Row],[75th]]-AAMC_Raw_Data_for_FY22[[#This Row],[Median]])/25)*15) + AAMC_Raw_Data_for_FY22[[#This Row],[Median]]","v":0},{"$f":"(((AAMC_Raw_Data_for_FY22[[#This Row],[75th]]-AAMC_Raw_Data_for_FY22[[#This Row],[Median]])/25)*20) + AAMC_Raw_Data_for_FY22[[#This Row],[Median]]","v":0},null,{"$f":"(((AAMC_Raw_Data_for_FY22[[#This Row],[75th]]-AAMC_Raw_Data_for_FY22[[#This Row],[Median]])/25)*30) + AAMC_Raw_Data_for_FY22[[#This Row],[Median]]","v":0},{"$f":"(((AAMC_Raw_Data_for_FY22[[#This Row],[75th]]-AAMC_Raw_Data_for_FY22[[#This Row],[Median]])/25)*35) + AAMC_Raw_Data_for_FY22[[#This Row],[Median]]","v":0},{"$f":"(((AAMC_Raw_Data_for_FY22[[#This Row],[75th]]-AAMC_Raw_Data_for_FY22[[#This Row],[Median]])/25)*40) + AAMC_Raw_Data_for_FY22[[#This Row],[Median]]","v":0}]
[{"$f":"AAMC_Raw_Data_for_FY22[[#This Row],[Source]]&AAMC_Raw_Data_for_FY22[[#This Row],[Type]]&AAMC_Raw_Data_for_FY22[[#This Row],[School Subset]]&AAMC_Raw_Data_for_FY22[[#This Row],[Rank]]&AAMC_Raw_Data_for_FY22[[#This Row],[Degree]]&AAMC_Raw_Data_for_FY22[[#This Row],[Department / Specialty]]&\"L\"","v":"AAMCAcademicPublicInstructorMDPulmonary-Med.L"},"Pulmonary-Med.",5,"AAMC","Academic","Public","Instructor","MD","2021-2022",173140,{"$f":"(((AAMC_Raw_Data_for_FY22[[#This Row],[Median]]-AAMC_Raw_Data_for_FY22[[#This Row],[25th]])/25)*5) + AAMC_Raw_Data_for_FY22[[#This Row],[25th]]","v":188512},{"$f":"(((AAMC_Raw_Data_for_FY22[[#This Row],[Median]]-AAMC_Raw_Data_for_FY22[[#This Row],[25th]])/25)*10) + AAMC_Raw_Data_for_FY22[[#This Row],[25th]]","v":203884},{"$f":"(((AAMC_Raw_Data_for_FY22[[#This Row],[Median]]-AAMC_Raw_Data_for_FY22[[#This Row],[25th]])/25)*15) + AAMC_Raw_Data_for_FY22[[#This Row],[25th]]","v":219256},{"$f":"(((AAMC_Raw_Data_for_FY22[[#This Row],[Median]]-AAMC_Raw_Data_for_FY22[[#This Row],[25th]])/25)*20) + AAMC_Raw_Data_for_FY22[[#This Row],[25th]]","v":234628},250000,{"$f":"(((AAMC_Raw_Data_for_FY22[[#This Row],[75th]]-AAMC_Raw_Data_for_FY22[[#This Row],[Median]])/25)*5) + AAMC_Raw_Data_for_FY22[[#This Row],[Median]]","v":268984.2},{"$f":"(((AAMC_Raw_Data_for_FY22[[#This Row],[75th]]-AAMC_Raw_Data_for_FY22[[#This Row],[Median]])/25)*10) + AAMC_Raw_Data_for_FY22[[#This Row],[Median]]","v":287968.40000000002},{"$f":"(((AAMC_Raw_Data_for_FY22[[#This Row],[75th]]-AAMC_Raw_Data_for_FY22[[#This Row],[Median]])/25)*15) + AAMC_Raw_Data_for_FY22[[#This Row],[Median]]","v":306952.59999999998},{"$f":"(((AAMC_Raw_Data_for_FY22[[#This Row],[75th]]-AAMC_Raw_Data_for_FY22[[#This Row],[Median]])/25)*20) + AAMC_Raw_Data_for_FY22[[#This Row],[Median]]","v":325936.8},344921,{"$f":"(((AAMC_Raw_Data_for_FY22[[#This Row],[75th]]-AAMC_Raw_Data_for_FY22[[#This Row],[Median]])/25)*30) + AAMC_Raw_Data_for_FY22[[#This Row],[Median]]","v":363905.2},{"$f":"(((AAMC_Raw_Data_for_FY22[[#This Row],[75th]]-AAMC_Raw_Data_for_FY22[[#This Row],[Median]])/25)*35) + AAMC_Raw_Data_for_FY22[[#This Row],[Median]]","v":382889.4},{"$f":"(((AAMC_Raw_Data_for_FY22[[#This Row],[75th]]-AAMC_Raw_Data_for_FY22[[#This Row],[Median]])/25)*40) + AAMC_Raw_Data_for_FY22[[#This Row],[Median]]","v":401873.6}]
[{"$f":"AAMC_Raw_Data_for_FY22[[#This Row],[Source]]&AAMC_Raw_Data_for_FY22[[#This Row],[Type]]&AAMC_Raw_Data_for_FY22[[#This Row],[School Subset]]&AAMC_Raw_Data_for_FY22[[#This Row],[Rank]]&AAMC_Raw_Data_for_FY22[[#This Row],[Degree]]&AAMC_Raw_Data_for_FY22[[#This Row],[Department / Specialty]]&\"L\"","v":"AAMCAcademicPublicAssistantMDPulmonary-Med.L"},"Pulmonary-Med.",4,"AAMC","Academic","Public","Assistant","MD","2021-2022",249039,{"$f":"(((AAMC_Raw_Data_for_FY22[[#This Row],[Median]]-AAMC_Raw_Data_for_FY22[[#This Row],[25th]])/25)*5) + AAMC_Raw_Data_for_FY22[[#This Row],[25th]]","v":259686.8},{"$f":"(((AAMC_Raw_Data_for_FY22[[#This Row],[Median]]-AAMC_Raw_Data_for_FY22[[#This Row],[25th]])/25)*10) + AAMC_Raw_Data_for_FY22[[#This Row],[25th]]","v":270334.59999999998},{"$f":"(((AAMC_Raw_Data_for_FY22[[#This Row],[Median]]-AAMC_Raw_Data_for_FY22[[#This Row],[25th]])/25)*15) + AAMC_Raw_Data_for_FY22[[#This Row],[25th]]","v":280982.40000000002},{"$f":"(((AAMC_Raw_Data_for_FY22[[#This Row],[Median]]-AAMC_Raw_Data_for_FY22[[#This Row],[25th]])/25)*20) + AAMC_Raw_Data_for_FY22[[#This Row],[25th]]","v":291630.2},302278,{"$f":"(((AAMC_Raw_Data_for_FY22[[#This Row],[75th]]-AAMC_Raw_Data_for_FY22[[#This Row],[Median]])/25)*5) + AAMC_Raw_Data_for_FY22[[#This Row],[Median]]","v":315359},{"$f":"(((AAMC_Raw_Data_for_FY22[[#This Row],[75th]]-AAMC_Raw_Data_for_FY22[[#This Row],[Median]])/25)*10) + AAMC_Raw_Data_for_FY22[[#This Row],[Median]]","v":328440},{"$f":"(((AAMC_Raw_Data_for_FY22[[#This Row],[75th]]-AAMC_Raw_Data_for_FY22[[#This Row],[Median]])/25)*15) + AAMC_Raw_Data_for_FY22[[#This Row],[Median]]","v":341521},{"$f":"(((AAMC_Raw_Data_for_FY22[[#This Row],[75th]]-AAMC_Raw_Data_for_FY22[[#This Row],[Median]])/25)*20) + AAMC_Raw_Data_for_FY22[[#This Row],[Median]]","v":354602},367683,{"$f":"(((AAMC_Raw_Data_for_FY22[[#This Row],[75th]]-AAMC_Raw_Data_for_FY22[[#This Row],[Median]])/25)*30) + AAMC_Raw_Data_for_FY22[[#This Row],[Median]]","v":380764},{"$f":"(((AAMC_Raw_Data_for_FY22[[#This Row],[75th]]-AAMC_Raw_Data_for_FY22[[#This Row],[Median]])/25)*35) + AAMC_Raw_Data_for_FY22[[#This Row],[Median]]","v":393845},{"$f":"(((AAMC_Raw_Data_for_FY22[[#This Row],[75th]]-AAMC_Raw_Data_for_FY22[[#This Row],[Median]])/25)*40) + AAMC_Raw_Data_for_FY22[[#This Row],[Median]]","v":406926}]
[{"$f":"AAMC_Raw_Data_for_FY22[[#This Row],[Source]]&AAMC_Raw_Data_for_FY22[[#This Row],[Type]]&AAMC_Raw_Data_for_FY22[[#This Row],[School Subset]]&AAMC_Raw_Data_for_FY22[[#This Row],[Rank]]&AAMC_Raw_Data_for_FY22[[#This Row],[Degree]]&AAMC_Raw_Data_for_FY22[[#This Row],[Department / Specialty]]&\"L\"","v":"AAMCAcademicPublicAssociateMDPulmonary-Med.L"},"Pulmonary-Med.",3,"AAMC","Academic","Public","Associate","MD","2021-2022",273474,{"$f":"(((AAMC_Raw_Data_for_FY22[[#This Row],[Median]]-AAMC_Raw_Data_for_FY22[[#This Row],[25th]])/25)*5) + AAMC_Raw_Data_for_FY22[[#This Row],[25th]]","v":284308.59999999998},{"$f":"(((AAMC_Raw_Data_for_FY22[[#This Row],[Median]]-AAMC_Raw_Data_for_FY22[[#This Row],[25th]])/25)*10) + AAMC_Raw_Data_for_FY22[[#This Row],[25th]]","v":295143.2},{"$f":"(((AAMC_Raw_Data_for_FY22[[#This Row],[Median]]-AAMC_Raw_Data_for_FY22[[#This Row],[25th]])/25)*15) + AAMC_Raw_Data_for_FY22[[#This Row],[25th]]","v":305977.8},{"$f":"(((AAMC_Raw_Data_for_FY22[[#This Row],[Median]]-AAMC_Raw_Data_for_FY22[[#This Row],[25th]])/25)*20) + AAMC_Raw_Data_for_FY22[[#This Row],[25th]]","v":316812.40000000002},327647,{"$f":"(((AAMC_Raw_Data_for_FY22[[#This Row],[75th]]-AAMC_Raw_Data_for_FY22[[#This Row],[Median]])/25)*5) + AAMC_Raw_Data_for_FY22[[#This Row],[Median]]","v":343001},{"$f":"(((AAMC_Raw_Data_for_FY22[[#This Row],[75th]]-AAMC_Raw_Data_for_FY22[[#This Row],[Median]])/25)*10) + AAMC_Raw_Data_for_FY22[[#This Row],[Median]]","v":358355},{"$f":"(((AAMC_Raw_Data_for_FY22[[#This Row],[75th]]-AAMC_Raw_Data_for_FY22[[#This Row],[Median]])/25)*15) + AAMC_Raw_Data_for_FY22[[#This Row],[Median]]","v":373709},{"$f":"(((AAMC_Raw_Data_for_FY22[[#This Row],[75th]]-AAMC_Raw_Data_for_FY22[[#This Row],[Median]])/25)*20) + AAMC_Raw_Data_for_FY22[[#This Row],[Median]]","v":389063},404417,{"$f":"(((AAMC_Raw_Data_for_FY22[[#This Row],[75th]]-AAMC_Raw_Data_for_FY22[[#This Row],[Median]])/25)*30) + AAMC_Raw_Data_for_FY22[[#This Row],[Median]]","v":419771},{"$f":"(((AAMC_Raw_Data_for_FY22[[#This Row],[75th]]-AAMC_Raw_Data_for_FY22[[#This Row],[Median]])/25)*35) + AAMC_Raw_Data_for_FY22[[#This Row],[Median]]","v":435125},{"$f":"(((AAMC_Raw_Data_for_FY22[[#This Row],[75th]]-AAMC_Raw_Data_for_FY22[[#This Row],[Median]])/25)*40) + AAMC_Raw_Data_for_FY22[[#This Row],[Median]]","v":450479}]
[{"$f":"AAMC_Raw_Data_for_FY22[[#This Row],[Source]]&AAMC_Raw_Data_for_FY22[[#This Row],[Type]]&AAMC_Raw_Data_for_FY22[[#This Row],[School Subset]]&AAMC_Raw_Data_for_FY22[[#This Row],[Rank]]&AAMC_Raw_Data_for_FY22[[#This Row],[Degree]]&AAMC_Raw_Data_for_FY22[[#This Row],[Department / Specialty]]&\"L\"","v":"AAMCAcademicPublicProfessorMDPulmonary-Med.L"},"Pulmonary-Med.",2,"AAMC","Academic","Public","Professor","MD","2021-2022",288150,{"$f":"(((AAMC_Raw_Data_for_FY22[[#This Row],[Median]]-AAMC_Raw_Data_for_FY22[[#This Row],[25th]])/25)*5) + AAMC_Raw_Data_for_FY22[[#This Row],[25th]]","v":298400.40000000002},{"$f":"(((AAMC_Raw_Data_for_FY22[[#This Row],[Median]]-AAMC_Raw_Data_for_FY22[[#This Row],[25th]])/25)*10) + AAMC_Raw_Data_for_FY22[[#This Row],[25th]]","v":308650.8},{"$f":"(((AAMC_Raw_Data_for_FY22[[#This Row],[Median]]-AAMC_Raw_Data_for_FY22[[#This Row],[25th]])/25)*15) + AAMC_Raw_Data_for_FY22[[#This Row],[25th]]","v":318901.2},{"$f":"(((AAMC_Raw_Data_for_FY22[[#This Row],[Median]]-AAMC_Raw_Data_for_FY22[[#This Row],[25th]])/25)*20) + AAMC_Raw_Data_for_FY22[[#This Row],[25th]]","v":329151.59999999998},339402,{"$f":"(((AAMC_Raw_Data_for_FY22[[#This Row],[75th]]-AAMC_Raw_Data_for_FY22[[#This Row],[Median]])/25)*5) + AAMC_Raw_Data_for_FY22[[#This Row],[Median]]","v":351238.8},{"$f":"(((AAMC_Raw_Data_for_FY22[[#This Row],[75th]]-AAMC_Raw_Data_for_FY22[[#This Row],[Median]])/25)*10) + AAMC_Raw_Data_for_FY22[[#This Row],[Median]]","v":363075.6},{"$f":"(((AAMC_Raw_Data_for_FY22[[#This Row],[75th]]-AAMC_Raw_Data_for_FY22[[#This Row],[Median]])/25)*15) + AAMC_Raw_Data_for_FY22[[#This Row],[Median]]","v":374912.4},{"$f":"(((AAMC_Raw_Data_for_FY22[[#This Row],[75th]]-AAMC_Raw_Data_for_FY22[[#This Row],[Median]])/25)*20) + AAMC_Raw_Data_for_FY22[[#This Row],[Median]]","v":386749.2},398586,{"$f":"(((AAMC_Raw_Data_for_FY22[[#This Row],[75th]]-AAMC_Raw_Data_for_FY22[[#This Row],[Median]])/25)*30) + AAMC_Raw_Data_for_FY22[[#This Row],[Median]]","v":410422.8},{"$f":"(((AAMC_Raw_Data_for_FY22[[#This Row],[75th]]-AAMC_Raw_Data_for_FY22[[#This Row],[Median]])/25)*35) + AAMC_Raw_Data_for_FY22[[#This Row],[Median]]","v":422259.6},{"$f":"(((AAMC_Raw_Data_for_FY22[[#This Row],[75th]]-AAMC_Raw_Data_for_FY22[[#This Row],[Median]])/25)*40) + AAMC_Raw_Data_for_FY22[[#This Row],[Median]]","v":434096.4}]
[{"$f":"AAMC_Raw_Data_for_FY22[[#This Row],[Source]]&AAMC_Raw_Data_for_FY22[[#This Row],[Type]]&AAMC_Raw_Data_for_FY22[[#This Row],[School Subset]]&AAMC_Raw_Data_for_FY22[[#This Row],[Rank]]&AAMC_Raw_Data_for_FY22[[#This Row],[Degree]]&AAMC_Raw_Data_for_FY22[[#This Row],[Department / Specialty]]&\"L\"","v":"AAMCAcademicPublicChiefMDPulmonary-Med.L"},"Pulmonary-Med.",6,"AAMC","Academic","Public","Chief","MD","2021-2022",390018,{"$f":"(((AAMC_Raw_Data_for_FY22[[#This Row],[Median]]-AAMC_Raw_Data_for_FY22[[#This Row],[25th]])/25)*5) + AAMC_Raw_Data_for_FY22[[#This Row],[25th]]","v":394523.6},{"$f":"(((AAMC_Raw_Data_for_FY22[[#This Row],[Median]]-AAMC_Raw_Data_for_FY22[[#This Row],[25th]])/25)*10) + AAMC_Raw_Data_for_FY22[[#This Row],[25th]]","v":399029.2},{"$f":"(((AAMC_Raw_Data_for_FY22[[#This Row],[Median]]-AAMC_Raw_Data_for_FY22[[#This Row],[25th]])/25)*15) + AAMC_Raw_Data_for_FY22[[#This Row],[25th]]","v":403534.8},{"$f":"(((AAMC_Raw_Data_for_FY22[[#This Row],[Median]]-AAMC_Raw_Data_for_FY22[[#This Row],[25th]])/25)*20) + AAMC_Raw_Data_for_FY22[[#This Row],[25th]]","v":408040.4},412546,{"$f":"(((AAMC_Raw_Data_for_FY22[[#This Row],[75th]]-AAMC_Raw_Data_for_FY22[[#This Row],[Median]])/25)*5) + AAMC_Raw_Data_for_FY22[[#This Row],[Median]]","v":420666.4},{"$f":"(((AAMC_Raw_Data_for_FY22[[#This Row],[75th]]-AAMC_Raw_Data_for_FY22[[#This Row],[Median]])/25)*10) + AAMC_Raw_Data_for_FY22[[#This Row],[Median]]","v":428786.8},{"$f":"(((AAMC_Raw_Data_for_FY22[[#This Row],[75th]]-AAMC_Raw_Data_for_FY22[[#This Row],[Median]])/25)*15) + AAMC_Raw_Data_for_FY22[[#This Row],[Median]]","v":436907.2},{"$f":"(((AAMC_Raw_Data_for_FY22[[#This Row],[75th]]-AAMC_Raw_Data_for_FY22[[#This Row],[Median]])/25)*20) + AAMC_Raw_Data_for_FY22[[#This Row],[Median]]","v":445027.6},453148,{"$f":"(((AAMC_Raw_Data_for_FY22[[#This Row],[75th]]-AAMC_Raw_Data_for_FY22[[#This Row],[Median]])/25)*30) + AAMC_Raw_Data_for_FY22[[#This Row],[Median]]","v":461268.4},{"$f":"(((AAMC_Raw_Data_for_FY22[[#This Row],[75th]]-AAMC_Raw_Data_for_FY22[[#This Row],[Median]])/25)*35) + AAMC_Raw_Data_for_FY22[[#This Row],[Median]]","v":469388.79999999999},{"$f":"(((AAMC_Raw_Data_for_FY22[[#This Row],[75th]]-AAMC_Raw_Data_for_FY22[[#This Row],[Median]])/25)*40) + AAMC_Raw_Data_for_FY22[[#This Row],[Median]]","v":477509.2}]
[{"$f":"AAMC_Raw_Data_for_FY22[[#This Row],[Source]]&AAMC_Raw_Data_for_FY22[[#This Row],[Type]]&AAMC_Raw_Data_for_FY22[[#This Row],[School Subset]]&AAMC_Raw_Data_for_FY22[[#This Row],[Rank]]&AAMC_Raw_Data_for_FY22[[#This Row],[Degree]]&AAMC_Raw_Data_for_FY22[[#This Row],[Department / Specialty]]&\"L\"","v":"AAMCAcademicPublicChairMDPulmonary-Med.L"},"Pulmonary-Med.",1,"AAMC","Academic","Public","Chair","MD","2021-2022",677156,{"$f":"(((AAMC_Raw_Data_for_FY22[[#This Row],[Median]]-AAMC_Raw_Data_for_FY22[[#This Row],[25th]])/25)*5) + AAMC_Raw_Data_for_FY22[[#This Row],[25th]]","v":688738.8},{"$f":"(((AAMC_Raw_Data_for_FY22[[#This Row],[Median]]-AAMC_Raw_Data_for_FY22[[#This Row],[25th]])/25)*10) + AAMC_Raw_Data_for_FY22[[#This Row],[25th]]","v":700321.6},{"$f":"(((AAMC_Raw_Data_for_FY22[[#This Row],[Median]]-AAMC_Raw_Data_for_FY22[[#This Row],[25th]])/25)*15) + AAMC_Raw_Data_for_FY22[[#This Row],[25th]]","v":711904.4},{"$f":"(((AAMC_Raw_Data_for_FY22[[#This Row],[Median]]-AAMC_Raw_Data_for_FY22[[#This Row],[25th]])/25)*20) + AAMC_Raw_Data_for_FY22[[#This Row],[25th]]","v":723487.2},735070,{"$f":"(((AAMC_Raw_Data_for_FY22[[#This Row],[75th]]-AAMC_Raw_Data_for_FY22[[#This Row],[Median]])/25)*5) + AAMC_Raw_Data_for_FY22[[#This Row],[Median]]","v":740828.2},{"$f":"(((AAMC_Raw_Data_for_FY22[[#This Row],[75th]]-AAMC_Raw_Data_for_FY22[[#This Row],[Median]])/25)*10) + AAMC_Raw_Data_for_FY22[[#This Row],[Median]]","v":746586.4},{"$f":"(((AAMC_Raw_Data_for_FY22[[#This Row],[75th]]-AAMC_Raw_Data_for_FY22[[#This Row],[Median]])/25)*15) + AAMC_Raw_Data_for_FY22[[#This Row],[Median]]","v":752344.6},{"$f":"(((AAMC_Raw_Data_for_FY22[[#This Row],[75th]]-AAMC_Raw_Data_for_FY22[[#This Row],[Median]])/25)*20) + AAMC_Raw_Data_for_FY22[[#This Row],[Median]]","v":758102.8},763861,{"$f":"(((AAMC_Raw_Data_for_FY22[[#This Row],[75th]]-AAMC_Raw_Data_for_FY22[[#This Row],[Median]])/25)*30) + AAMC_Raw_Data_for_FY22[[#This Row],[Median]]","v":769619.2},{"$f":"(((AAMC_Raw_Data_for_FY22[[#This Row],[75th]]-AAMC_Raw_Data_for_FY22[[#This Row],[Median]])/25)*35) + AAMC_Raw_Data_for_FY22[[#This Row],[Median]]","v":775377.4},{"$f":"(((AAMC_Raw_Data_for_FY22[[#This Row],[75th]]-AAMC_Raw_Data_for_FY22[[#This Row],[Median]])/25)*40) + AAMC_Raw_Data_for_FY22[[#This Row],[Median]]","v":781135.6}]
[{"$f":"AAMC_Raw_Data_for_FY22[[#This Row],[Source]]&AAMC_Raw_Data_for_FY22[[#This Row],[Type]]&AAMC_Raw_Data_for_FY22[[#This Row],[School Subset]]&AAMC_Raw_Data_for_FY22[[#This Row],[Rank]]&AAMC_Raw_Data_for_FY22[[#This Row],[Degree]]&AAMC_Raw_Data_for_FY22[[#This Row],[Department / Specialty]]&\"L\"","v":"AAMCAcademicPublicInstructorMDRheumatology-Med.L"},"Rheumatology-Med.",5,"AAMC","Academic","Public","Instructor","MD","2021-2022",null,{"$f":"(((AAMC_Raw_Data_for_FY22[[#This Row],[Median]]-AAMC_Raw_Data_for_FY22[[#This Row],[25th]])/25)*5) + AAMC_Raw_Data_for_FY22[[#This Row],[25th]]","v":0},{"$f":"(((AAMC_Raw_Data_for_FY22[[#This Row],[Median]]-AAMC_Raw_Data_for_FY22[[#This Row],[25th]])/25)*10) + AAMC_Raw_Data_for_FY22[[#This Row],[25th]]","v":0},{"$f":"(((AAMC_Raw_Data_for_FY22[[#This Row],[Median]]-AAMC_Raw_Data_for_FY22[[#This Row],[25th]])/25)*15) + AAMC_Raw_Data_for_FY22[[#This Row],[25th]]","v":0},{"$f":"(((AAMC_Raw_Data_for_FY22[[#This Row],[Median]]-AAMC_Raw_Data_for_FY22[[#This Row],[25th]])/25)*20) + AAMC_Raw_Data_for_FY22[[#This Row],[25th]]","v":0},null,{"$f":"(((AAMC_Raw_Data_for_FY22[[#This Row],[75th]]-AAMC_Raw_Data_for_FY22[[#This Row],[Median]])/25)*5) + AAMC_Raw_Data_for_FY22[[#This Row],[Median]]","v":0},{"$f":"(((AAMC_Raw_Data_for_FY22[[#This Row],[75th]]-AAMC_Raw_Data_for_FY22[[#This Row],[Median]])/25)*10) + AAMC_Raw_Data_for_FY22[[#This Row],[Median]]","v":0},{"$f":"(((AAMC_Raw_Data_for_FY22[[#This Row],[75th]]-AAMC_Raw_Data_for_FY22[[#This Row],[Median]])/25)*15) + AAMC_Raw_Data_for_FY22[[#This Row],[Median]]","v":0},{"$f":"(((AAMC_Raw_Data_for_FY22[[#This Row],[75th]]-AAMC_Raw_Data_for_FY22[[#This Row],[Median]])/25)*20) + AAMC_Raw_Data_for_FY22[[#This Row],[Median]]","v":0},null,{"$f":"(((AAMC_Raw_Data_for_FY22[[#This Row],[75th]]-AAMC_Raw_Data_for_FY22[[#This Row],[Median]])/25)*30) + AAMC_Raw_Data_for_FY22[[#This Row],[Median]]","v":0},{"$f":"(((AAMC_Raw_Data_for_FY22[[#This Row],[75th]]-AAMC_Raw_Data_for_FY22[[#This Row],[Median]])/25)*35) + AAMC_Raw_Data_for_FY22[[#This Row],[Median]]","v":0},{"$f":"(((AAMC_Raw_Data_for_FY22[[#This Row],[75th]]-AAMC_Raw_Data_for_FY22[[#This Row],[Median]])/25)*40) + AAMC_Raw_Data_for_FY22[[#This Row],[Median]]","v":0}]
[{"$f":"AAMC_Raw_Data_for_FY22[[#This Row],[Source]]&AAMC_Raw_Data_for_FY22[[#This Row],[Type]]&AAMC_Raw_Data_for_FY22[[#This Row],[School Subset]]&AAMC_Raw_Data_for_FY22[[#This Row],[Rank]]&AAMC_Raw_Data_for_FY22[[#This Row],[Degree]]&AAMC_Raw_Data_for_FY22[[#This Row],[Department / Specialty]]&\"L\"","v":"AAMCAcademicPublicAssistantMDRheumatology-Med.L"},"Rheumatology-Med.",4,"AAMC","Academic","Public","Assistant","MD","2021-2022",183572,{"$f":"(((AAMC_Raw_Data_for_FY22[[#This Row],[Median]]-AAMC_Raw_Data_for_FY22[[#This Row],[25th]])/25)*5) + AAMC_Raw_Data_for_FY22[[#This Row],[25th]]","v":187589.6},{"$f":"(((AAMC_Raw_Data_for_FY22[[#This Row],[Median]]-AAMC_Raw_Data_for_FY22[[#This Row],[25th]])/25)*10) + AAMC_Raw_Data_for_FY22[[#This Row],[25th]]","v":191607.2},{"$f":"(((AAMC_Raw_Data_for_FY22[[#This Row],[Median]]-AAMC_Raw_Data_for_FY22[[#This Row],[25th]])/25)*15) + AAMC_Raw_Data_for_FY22[[#This Row],[25th]]","v":195624.8},{"$f":"(((AAMC_Raw_Data_for_FY22[[#This Row],[Median]]-AAMC_Raw_Data_for_FY22[[#This Row],[25th]])/25)*20) + AAMC_Raw_Data_for_FY22[[#This Row],[25th]]","v":199642.4},203660,{"$f":"(((AAMC_Raw_Data_for_FY22[[#This Row],[75th]]-AAMC_Raw_Data_for_FY22[[#This Row],[Median]])/25)*5) + AAMC_Raw_Data_for_FY22[[#This Row],[Median]]","v":209971},{"$f":"(((AAMC_Raw_Data_for_FY22[[#This Row],[75th]]-AAMC_Raw_Data_for_FY22[[#This Row],[Median]])/25)*10) + AAMC_Raw_Data_for_FY22[[#This Row],[Median]]","v":216282},{"$f":"(((AAMC_Raw_Data_for_FY22[[#This Row],[75th]]-AAMC_Raw_Data_for_FY22[[#This Row],[Median]])/25)*15) + AAMC_Raw_Data_for_FY22[[#This Row],[Median]]","v":222593},{"$f":"(((AAMC_Raw_Data_for_FY22[[#This Row],[75th]]-AAMC_Raw_Data_for_FY22[[#This Row],[Median]])/25)*20) + AAMC_Raw_Data_for_FY22[[#This Row],[Median]]","v":228904},235215,{"$f":"(((AAMC_Raw_Data_for_FY22[[#This Row],[75th]]-AAMC_Raw_Data_for_FY22[[#This Row],[Median]])/25)*30) + AAMC_Raw_Data_for_FY22[[#This Row],[Median]]","v":241526},{"$f":"(((AAMC_Raw_Data_for_FY22[[#This Row],[75th]]-AAMC_Raw_Data_for_FY22[[#This Row],[Median]])/25)*35) + AAMC_Raw_Data_for_FY22[[#This Row],[Median]]","v":247837},{"$f":"(((AAMC_Raw_Data_for_FY22[[#This Row],[75th]]-AAMC_Raw_Data_for_FY22[[#This Row],[Median]])/25)*40) + AAMC_Raw_Data_for_FY22[[#This Row],[Median]]","v":254148}]
[{"$f":"AAMC_Raw_Data_for_FY22[[#This Row],[Source]]&AAMC_Raw_Data_for_FY22[[#This Row],[Type]]&AAMC_Raw_Data_for_FY22[[#This Row],[School Subset]]&AAMC_Raw_Data_for_FY22[[#This Row],[Rank]]&AAMC_Raw_Data_for_FY22[[#This Row],[Degree]]&AAMC_Raw_Data_for_FY22[[#This Row],[Department / Specialty]]&\"L\"","v":"AAMCAcademicPublicAssociateMDRheumatology-Med.L"},"Rheumatology-Med.",3,"AAMC","Academic","Public","Associate","MD","2021-2022",211707,{"$f":"(((AAMC_Raw_Data_for_FY22[[#This Row],[Median]]-AAMC_Raw_Data_for_FY22[[#This Row],[25th]])/25)*5) + AAMC_Raw_Data_for_FY22[[#This Row],[25th]]","v":216626.2},{"$f":"(((AAMC_Raw_Data_for_FY22[[#This Row],[Median]]-AAMC_Raw_Data_for_FY22[[#This Row],[25th]])/25)*10) + AAMC_Raw_Data_for_FY22[[#This Row],[25th]]","v":221545.4},{"$f":"(((AAMC_Raw_Data_for_FY22[[#This Row],[Median]]-AAMC_Raw_Data_for_FY22[[#This Row],[25th]])/25)*15) + AAMC_Raw_Data_for_FY22[[#This Row],[25th]]","v":226464.6},{"$f":"(((AAMC_Raw_Data_for_FY22[[#This Row],[Median]]-AAMC_Raw_Data_for_FY22[[#This Row],[25th]])/25)*20) + AAMC_Raw_Data_for_FY22[[#This Row],[25th]]","v":231383.8},236303,{"$f":"(((AAMC_Raw_Data_for_FY22[[#This Row],[75th]]-AAMC_Raw_Data_for_FY22[[#This Row],[Median]])/25)*5) + AAMC_Raw_Data_for_FY22[[#This Row],[Median]]","v":243778.8},{"$f":"(((AAMC_Raw_Data_for_FY22[[#This Row],[75th]]-AAMC_Raw_Data_for_FY22[[#This Row],[Median]])/25)*10) + AAMC_Raw_Data_for_FY22[[#This Row],[Median]]","v":251254.6},{"$f":"(((AAMC_Raw_Data_for_FY22[[#This Row],[75th]]-AAMC_Raw_Data_for_FY22[[#This Row],[Median]])/25)*15) + AAMC_Raw_Data_for_FY22[[#This Row],[Median]]","v":258730.4},{"$f":"(((AAMC_Raw_Data_for_FY22[[#This Row],[75th]]-AAMC_Raw_Data_for_FY22[[#This Row],[Median]])/25)*20) + AAMC_Raw_Data_for_FY22[[#This Row],[Median]]","v":266206.2},273682,{"$f":"(((AAMC_Raw_Data_for_FY22[[#This Row],[75th]]-AAMC_Raw_Data_for_FY22[[#This Row],[Median]])/25)*30) + AAMC_Raw_Data_for_FY22[[#This Row],[Median]]","v":281157.8},{"$f":"(((AAMC_Raw_Data_for_FY22[[#This Row],[75th]]-AAMC_Raw_Data_for_FY22[[#This Row],[Median]])/25)*35) + AAMC_Raw_Data_for_FY22[[#This Row],[Median]]","v":288633.59999999998},{"$f":"(((AAMC_Raw_Data_for_FY22[[#This Row],[75th]]-AAMC_Raw_Data_for_FY22[[#This Row],[Median]])/25)*40) + AAMC_Raw_Data_for_FY22[[#This Row],[Median]]","v":296109.40000000002}]
[{"$f":"AAMC_Raw_Data_for_FY22[[#This Row],[Source]]&AAMC_Raw_Data_for_FY22[[#This Row],[Type]]&AAMC_Raw_Data_for_FY22[[#This Row],[School Subset]]&AAMC_Raw_Data_for_FY22[[#This Row],[Rank]]&AAMC_Raw_Data_for_FY22[[#This Row],[Degree]]&AAMC_Raw_Data_for_FY22[[#This Row],[Department / Specialty]]&\"L\"","v":"AAMCAcademicPublicProfessorMDRheumatology-Med.L"},"Rheumatology-Med.",2,"AAMC","Academic","Public","Professor","MD","2021-2022",235838,{"$f":"(((AAMC_Raw_Data_for_FY22[[#This Row],[Median]]-AAMC_Raw_Data_for_FY22[[#This Row],[25th]])/25)*5) + AAMC_Raw_Data_for_FY22[[#This Row],[25th]]","v":241765},{"$f":"(((AAMC_Raw_Data_for_FY22[[#This Row],[Median]]-AAMC_Raw_Data_for_FY22[[#This Row],[25th]])/25)*10) + AAMC_Raw_Data_for_FY22[[#This Row],[25th]]","v":247692},{"$f":"(((AAMC_Raw_Data_for_FY22[[#This Row],[Median]]-AAMC_Raw_Data_for_FY22[[#This Row],[25th]])/25)*15) + AAMC_Raw_Data_for_FY22[[#This Row],[25th]]","v":253619},{"$f":"(((AAMC_Raw_Data_for_FY22[[#This Row],[Median]]-AAMC_Raw_Data_for_FY22[[#This Row],[25th]])/25)*20) + AAMC_Raw_Data_for_FY22[[#This Row],[25th]]","v":259546},265473,{"$f":"(((AAMC_Raw_Data_for_FY22[[#This Row],[75th]]-AAMC_Raw_Data_for_FY22[[#This Row],[Median]])/25)*5) + AAMC_Raw_Data_for_FY22[[#This Row],[Median]]","v":274505.8},{"$f":"(((AAMC_Raw_Data_for_FY22[[#This Row],[75th]]-AAMC_Raw_Data_for_FY22[[#This Row],[Median]])/25)*10) + AAMC_Raw_Data_for_FY22[[#This Row],[Median]]","v":283538.59999999998},{"$f":"(((AAMC_Raw_Data_for_FY22[[#This Row],[75th]]-AAMC_Raw_Data_for_FY22[[#This Row],[Median]])/25)*15) + AAMC_Raw_Data_for_FY22[[#This Row],[Median]]","v":292571.40000000002},{"$f":"(((AAMC_Raw_Data_for_FY22[[#This Row],[75th]]-AAMC_Raw_Data_for_FY22[[#This Row],[Median]])/25)*20) + AAMC_Raw_Data_for_FY22[[#This Row],[Median]]","v":301604.2},310637,{"$f":"(((AAMC_Raw_Data_for_FY22[[#This Row],[75th]]-AAMC_Raw_Data_for_FY22[[#This Row],[Median]])/25)*30) + AAMC_Raw_Data_for_FY22[[#This Row],[Median]]","v":319669.8},{"$f":"(((AAMC_Raw_Data_for_FY22[[#This Row],[75th]]-AAMC_Raw_Data_for_FY22[[#This Row],[Median]])/25)*35) + AAMC_Raw_Data_for_FY22[[#This Row],[Median]]","v":328702.59999999998},{"$f":"(((AAMC_Raw_Data_for_FY22[[#This Row],[75th]]-AAMC_Raw_Data_for_FY22[[#This Row],[Median]])/25)*40) + AAMC_Raw_Data_for_FY22[[#This Row],[Median]]","v":337735.4}]
[{"$f":"AAMC_Raw_Data_for_FY22[[#This Row],[Source]]&AAMC_Raw_Data_for_FY22[[#This Row],[Type]]&AAMC_Raw_Data_for_FY22[[#This Row],[School Subset]]&AAMC_Raw_Data_for_FY22[[#This Row],[Rank]]&AAMC_Raw_Data_for_FY22[[#This Row],[Degree]]&AAMC_Raw_Data_for_FY22[[#This Row],[Department / Specialty]]&\"L\"","v":"AAMCAcademicPublicChiefMDRheumatology-Med.L"},"Rheumatology-Med.",6,"AAMC","Academic","Public","Chief","MD","2021-2022",272568,{"$f":"(((AAMC_Raw_Data_for_FY22[[#This Row],[Median]]-AAMC_Raw_Data_for_FY22[[#This Row],[25th]])/25)*5) + AAMC_Raw_Data_for_FY22[[#This Row],[25th]]","v":276821.59999999998},{"$f":"(((AAMC_Raw_Data_for_FY22[[#This Row],[Median]]-AAMC_Raw_Data_for_FY22[[#This Row],[25th]])/25)*10) + AAMC_Raw_Data_for_FY22[[#This Row],[25th]]","v":281075.20000000001},{"$f":"(((AAMC_Raw_Data_for_FY22[[#This Row],[Median]]-AAMC_Raw_Data_for_FY22[[#This Row],[25th]])/25)*15) + AAMC_Raw_Data_for_FY22[[#This Row],[25th]]","v":285328.8},{"$f":"(((AAMC_Raw_Data_for_FY22[[#This Row],[Median]]-AAMC_Raw_Data_for_FY22[[#This Row],[25th]])/25)*20) + AAMC_Raw_Data_for_FY22[[#This Row],[25th]]","v":289582.40000000002},293836,{"$f":"(((AAMC_Raw_Data_for_FY22[[#This Row],[75th]]-AAMC_Raw_Data_for_FY22[[#This Row],[Median]])/25)*5) + AAMC_Raw_Data_for_FY22[[#This Row],[Median]]","v":302515.8},{"$f":"(((AAMC_Raw_Data_for_FY22[[#This Row],[75th]]-AAMC_Raw_Data_for_FY22[[#This Row],[Median]])/25)*10) + AAMC_Raw_Data_for_FY22[[#This Row],[Median]]","v":311195.59999999998},{"$f":"(((AAMC_Raw_Data_for_FY22[[#This Row],[75th]]-AAMC_Raw_Data_for_FY22[[#This Row],[Median]])/25)*15) + AAMC_Raw_Data_for_FY22[[#This Row],[Median]]","v":319875.40000000002},{"$f":"(((AAMC_Raw_Data_for_FY22[[#This Row],[75th]]-AAMC_Raw_Data_for_FY22[[#This Row],[Median]])/25)*20) + AAMC_Raw_Data_for_FY22[[#This Row],[Median]]","v":328555.2},337235,{"$f":"(((AAMC_Raw_Data_for_FY22[[#This Row],[75th]]-AAMC_Raw_Data_for_FY22[[#This Row],[Median]])/25)*30) + AAMC_Raw_Data_for_FY22[[#This Row],[Median]]","v":345914.8},{"$f":"(((AAMC_Raw_Data_for_FY22[[#This Row],[75th]]-AAMC_Raw_Data_for_FY22[[#This Row],[Median]])/25)*35) + AAMC_Raw_Data_for_FY22[[#This Row],[Median]]","v":354594.6},{"$f":"(((AAMC_Raw_Data_for_FY22[[#This Row],[75th]]-AAMC_Raw_Data_for_FY22[[#This Row],[Median]])/25)*40) + AAMC_Raw_Data_for_FY22[[#This Row],[Median]]","v":363274.4}]
[{"$f":"AAMC_Raw_Data_for_FY22[[#This Row],[Source]]&AAMC_Raw_Data_for_FY22[[#This Row],[Type]]&AAMC_Raw_Data_for_FY22[[#This Row],[School Subset]]&AAMC_Raw_Data_for_FY22[[#This Row],[Rank]]&AAMC_Raw_Data_for_FY22[[#This Row],[Degree]]&AAMC_Raw_Data_for_FY22[[#This Row],[Department / Specialty]]&\"L\"","v":"AAMCAcademicPublicInstructorMDOther MedicineL"},"Other Medicine",5,"AAMC","Academic","Public","Instructor","MD","2021-2022",null,{"$f":"(((AAMC_Raw_Data_for_FY22[[#This Row],[Median]]-AAMC_Raw_Data_for_FY22[[#This Row],[25th]])/25)*5) + AAMC_Raw_Data_for_FY22[[#This Row],[25th]]","v":0},{"$f":"(((AAMC_Raw_Data_for_FY22[[#This Row],[Median]]-AAMC_Raw_Data_for_FY22[[#This Row],[25th]])/25)*10) + AAMC_Raw_Data_for_FY22[[#This Row],[25th]]","v":0},{"$f":"(((AAMC_Raw_Data_for_FY22[[#This Row],[Median]]-AAMC_Raw_Data_for_FY22[[#This Row],[25th]])/25)*15) + AAMC_Raw_Data_for_FY22[[#This Row],[25th]]","v":0},{"$f":"(((AAMC_Raw_Data_for_FY22[[#This Row],[Median]]-AAMC_Raw_Data_for_FY22[[#This Row],[25th]])/25)*20) + AAMC_Raw_Data_for_FY22[[#This Row],[25th]]","v":0},null,{"$f":"(((AAMC_Raw_Data_for_FY22[[#This Row],[75th]]-AAMC_Raw_Data_for_FY22[[#This Row],[Median]])/25)*5) + AAMC_Raw_Data_for_FY22[[#This Row],[Median]]","v":0},{"$f":"(((AAMC_Raw_Data_for_FY22[[#This Row],[75th]]-AAMC_Raw_Data_for_FY22[[#This Row],[Median]])/25)*10) + AAMC_Raw_Data_for_FY22[[#This Row],[Median]]","v":0},{"$f":"(((AAMC_Raw_Data_for_FY22[[#This Row],[75th]]-AAMC_Raw_Data_for_FY22[[#This Row],[Median]])/25)*15) + AAMC_Raw_Data_for_FY22[[#This Row],[Median]]","v":0},{"$f":"(((AAMC_Raw_Data_for_FY22[[#This Row],[75th]]-AAMC_Raw_Data_for_FY22[[#This Row],[Median]])/25)*20) + AAMC_Raw_Data_for_FY22[[#This Row],[Median]]","v":0},null,{"$f":"(((AAMC_Raw_Data_for_FY22[[#This Row],[75th]]-AAMC_Raw_Data_for_FY22[[#This Row],[Median]])/25)*30) + AAMC_Raw_Data_for_FY22[[#This Row],[Median]]","v":0},{"$f":"(((AAMC_Raw_Data_for_FY22[[#This Row],[75th]]-AAMC_Raw_Data_for_FY22[[#This Row],[Median]])/25)*35) + AAMC_Raw_Data_for_FY22[[#This Row],[Median]]","v":0},{"$f":"(((AAMC_Raw_Data_for_FY22[[#This Row],[75th]]-AAMC_Raw_Data_for_FY22[[#This Row],[Median]])/25)*40) + AAMC_Raw_Data_for_FY22[[#This Row],[Median]]","v":0}]
[{"$f":"AAMC_Raw_Data_for_FY22[[#This Row],[Source]]&AAMC_Raw_Data_for_FY22[[#This Row],[Type]]&AAMC_Raw_Data_for_FY22[[#This Row],[School Subset]]&AAMC_Raw_Data_for_FY22[[#This Row],[Rank]]&AAMC_Raw_Data_for_FY22[[#This Row],[Degree]]&AAMC_Raw_Data_for_FY22[[#This Row],[Department / Specialty]]&\"L\"","v":"AAMCAcademicPublicAssistantMDOther MedicineL"},"Other Medicine",4,"AAMC","Academic","Public","Assistant","MD","2021-2022",168533,{"$f":"(((AAMC_Raw_Data_for_FY22[[#This Row],[Median]]-AAMC_Raw_Data_for_FY22[[#This Row],[25th]])/25)*5) + AAMC_Raw_Data_for_FY22[[#This Row],[25th]]","v":179981},{"$f":"(((AAMC_Raw_Data_for_FY22[[#This Row],[Median]]-AAMC_Raw_Data_for_FY22[[#This Row],[25th]])/25)*10) + AAMC_Raw_Data_for_FY22[[#This Row],[25th]]","v":191429},{"$f":"(((AAMC_Raw_Data_for_FY22[[#This Row],[Median]]-AAMC_Raw_Data_for_FY22[[#This Row],[25th]])/25)*15) + AAMC_Raw_Data_for_FY22[[#This Row],[25th]]","v":202877},{"$f":"(((AAMC_Raw_Data_for_FY22[[#This Row],[Median]]-AAMC_Raw_Data_for_FY22[[#This Row],[25th]])/25)*20) + AAMC_Raw_Data_for_FY22[[#This Row],[25th]]","v":214325},225773,{"$f":"(((AAMC_Raw_Data_for_FY22[[#This Row],[75th]]-AAMC_Raw_Data_for_FY22[[#This Row],[Median]])/25)*5) + AAMC_Raw_Data_for_FY22[[#This Row],[Median]]","v":237844.8},{"$f":"(((AAMC_Raw_Data_for_FY22[[#This Row],[75th]]-AAMC_Raw_Data_for_FY22[[#This Row],[Median]])/25)*10) + AAMC_Raw_Data_for_FY22[[#This Row],[Median]]","v":249916.6},{"$f":"(((AAMC_Raw_Data_for_FY22[[#This Row],[75th]]-AAMC_Raw_Data_for_FY22[[#This Row],[Median]])/25)*15) + AAMC_Raw_Data_for_FY22[[#This Row],[Median]]","v":261988.4},{"$f":"(((AAMC_Raw_Data_for_FY22[[#This Row],[75th]]-AAMC_Raw_Data_for_FY22[[#This Row],[Median]])/25)*20) + AAMC_Raw_Data_for_FY22[[#This Row],[Median]]","v":274060.2},286132,{"$f":"(((AAMC_Raw_Data_for_FY22[[#This Row],[75th]]-AAMC_Raw_Data_for_FY22[[#This Row],[Median]])/25)*30) + AAMC_Raw_Data_for_FY22[[#This Row],[Median]]","v":298203.8},{"$f":"(((AAMC_Raw_Data_for_FY22[[#This Row],[75th]]-AAMC_Raw_Data_for_FY22[[#This Row],[Median]])/25)*35) + AAMC_Raw_Data_for_FY22[[#This Row],[Median]]","v":310275.59999999998},{"$f":"(((AAMC_Raw_Data_for_FY22[[#This Row],[75th]]-AAMC_Raw_Data_for_FY22[[#This Row],[Median]])/25)*40) + AAMC_Raw_Data_for_FY22[[#This Row],[Median]]","v":322347.40000000002}]
[{"$f":"AAMC_Raw_Data_for_FY22[[#This Row],[Source]]&AAMC_Raw_Data_for_FY22[[#This Row],[Type]]&AAMC_Raw_Data_for_FY22[[#This Row],[School Subset]]&AAMC_Raw_Data_for_FY22[[#This Row],[Rank]]&AAMC_Raw_Data_for_FY22[[#This Row],[Degree]]&AAMC_Raw_Data_for_FY22[[#This Row],[Department / Specialty]]&\"L\"","v":"AAMCAcademicPublicAssociateMDOther MedicineL"},"Other Medicine",3,"AAMC","Academic","Public","Associate","MD","2021-2022",140170,{"$f":"(((AAMC_Raw_Data_for_FY22[[#This Row],[Median]]-AAMC_Raw_Data_for_FY22[[#This Row],[25th]])/25)*5) + AAMC_Raw_Data_for_FY22[[#This Row],[25th]]","v":159186.79999999999},{"$f":"(((AAMC_Raw_Data_for_FY22[[#This Row],[Median]]-AAMC_Raw_Data_for_FY22[[#This Row],[25th]])/25)*10) + AAMC_Raw_Data_for_FY22[[#This Row],[25th]]","v":178203.6},{"$f":"(((AAMC_Raw_Data_for_FY22[[#This Row],[Median]]-AAMC_Raw_Data_for_FY22[[#This Row],[25th]])/25)*15) + AAMC_Raw_Data_for_FY22[[#This Row],[25th]]","v":197220.4},{"$f":"(((AAMC_Raw_Data_for_FY22[[#This Row],[Median]]-AAMC_Raw_Data_for_FY22[[#This Row],[25th]])/25)*20) + AAMC_Raw_Data_for_FY22[[#This Row],[25th]]","v":216237.2},235254,{"$f":"(((AAMC_Raw_Data_for_FY22[[#This Row],[75th]]-AAMC_Raw_Data_for_FY22[[#This Row],[Median]])/25)*5) + AAMC_Raw_Data_for_FY22[[#This Row],[Median]]","v":249549.8},{"$f":"(((AAMC_Raw_Data_for_FY22[[#This Row],[75th]]-AAMC_Raw_Data_for_FY22[[#This Row],[Median]])/25)*10) + AAMC_Raw_Data_for_FY22[[#This Row],[Median]]","v":263845.59999999998},{"$f":"(((AAMC_Raw_Data_for_FY22[[#This Row],[75th]]-AAMC_Raw_Data_for_FY22[[#This Row],[Median]])/25)*15) + AAMC_Raw_Data_for_FY22[[#This Row],[Median]]","v":278141.40000000002},{"$f":"(((AAMC_Raw_Data_for_FY22[[#This Row],[75th]]-AAMC_Raw_Data_for_FY22[[#This Row],[Median]])/25)*20) + AAMC_Raw_Data_for_FY22[[#This Row],[Median]]","v":292437.2},306733,{"$f":"(((AAMC_Raw_Data_for_FY22[[#This Row],[75th]]-AAMC_Raw_Data_for_FY22[[#This Row],[Median]])/25)*30) + AAMC_Raw_Data_for_FY22[[#This Row],[Median]]","v":321028.8},{"$f":"(((AAMC_Raw_Data_for_FY22[[#This Row],[75th]]-AAMC_Raw_Data_for_FY22[[#This Row],[Median]])/25)*35) + AAMC_Raw_Data_for_FY22[[#This Row],[Median]]","v":335324.59999999998},{"$f":"(((AAMC_Raw_Data_for_FY22[[#This Row],[75th]]-AAMC_Raw_Data_for_FY22[[#This Row],[Median]])/25)*40) + AAMC_Raw_Data_for_FY22[[#This Row],[Median]]","v":349620.4}]
[{"$f":"AAMC_Raw_Data_for_FY22[[#This Row],[Source]]&AAMC_Raw_Data_for_FY22[[#This Row],[Type]]&AAMC_Raw_Data_for_FY22[[#This Row],[School Subset]]&AAMC_Raw_Data_for_FY22[[#This Row],[Rank]]&AAMC_Raw_Data_for_FY22[[#This Row],[Degree]]&AAMC_Raw_Data_for_FY22[[#This Row],[Department / Specialty]]&\"L\"","v":"AAMCAcademicPublicProfessorMDOther MedicineL"},"Other Medicine",2,"AAMC","Academic","Public","Professor","MD","2021-2022",251486,{"$f":"(((AAMC_Raw_Data_for_FY22[[#This Row],[Median]]-AAMC_Raw_Data_for_FY22[[#This Row],[25th]])/25)*5) + AAMC_Raw_Data_for_FY22[[#This Row],[25th]]","v":261757.2},{"$f":"(((AAMC_Raw_Data_for_FY22[[#This Row],[Median]]-AAMC_Raw_Data_for_FY22[[#This Row],[25th]])/25)*10) + AAMC_Raw_Data_for_FY22[[#This Row],[25th]]","v":272028.40000000002},{"$f":"(((AAMC_Raw_Data_for_FY22[[#This Row],[Median]]-AAMC_Raw_Data_for_FY22[[#This Row],[25th]])/25)*15) + AAMC_Raw_Data_for_FY22[[#This Row],[25th]]","v":282299.59999999998},{"$f":"(((AAMC_Raw_Data_for_FY22[[#This Row],[Median]]-AAMC_Raw_Data_for_FY22[[#This Row],[25th]])/25)*20) + AAMC_Raw_Data_for_FY22[[#This Row],[25th]]","v":292570.8},302842,{"$f":"(((AAMC_Raw_Data_for_FY22[[#This Row],[75th]]-AAMC_Raw_Data_for_FY22[[#This Row],[Median]])/25)*5) + AAMC_Raw_Data_for_FY22[[#This Row],[Median]]","v":316070.59999999998},{"$f":"(((AAMC_Raw_Data_for_FY22[[#This Row],[75th]]-AAMC_Raw_Data_for_FY22[[#This Row],[Median]])/25)*10) + AAMC_Raw_Data_for_FY22[[#This Row],[Median]]","v":329299.20000000001},{"$f":"(((AAMC_Raw_Data_for_FY22[[#This Row],[75th]]-AAMC_Raw_Data_for_FY22[[#This Row],[Median]])/25)*15) + AAMC_Raw_Data_for_FY22[[#This Row],[Median]]","v":342527.8},{"$f":"(((AAMC_Raw_Data_for_FY22[[#This Row],[75th]]-AAMC_Raw_Data_for_FY22[[#This Row],[Median]])/25)*20) + AAMC_Raw_Data_for_FY22[[#This Row],[Median]]","v":355756.4},368985,{"$f":"(((AAMC_Raw_Data_for_FY22[[#This Row],[75th]]-AAMC_Raw_Data_for_FY22[[#This Row],[Median]])/25)*30) + AAMC_Raw_Data_for_FY22[[#This Row],[Median]]","v":382213.6},{"$f":"(((AAMC_Raw_Data_for_FY22[[#This Row],[75th]]-AAMC_Raw_Data_for_FY22[[#This Row],[Median]])/25)*35) + AAMC_Raw_Data_for_FY22[[#This Row],[Median]]","v":395442.2},{"$f":"(((AAMC_Raw_Data_for_FY22[[#This Row],[75th]]-AAMC_Raw_Data_for_FY22[[#This Row],[Median]])/25)*40) + AAMC_Raw_Data_for_FY22[[#This Row],[Median]]","v":408670.8}]
[{"$f":"AAMC_Raw_Data_for_FY22[[#This Row],[Source]]&AAMC_Raw_Data_for_FY22[[#This Row],[Type]]&AAMC_Raw_Data_for_FY22[[#This Row],[School Subset]]&AAMC_Raw_Data_for_FY22[[#This Row],[Rank]]&AAMC_Raw_Data_for_FY22[[#This Row],[Degree]]&AAMC_Raw_Data_for_FY22[[#This Row],[Department / Specialty]]&\"L\"","v":"AAMCAcademicPublicChiefMDOther MedicineL"},"Other Medicine",6,"AAMC","Academic","Public","Chief","MD","2021-2022",352464,{"$f":"(((AAMC_Raw_Data_for_FY22[[#This Row],[Median]]-AAMC_Raw_Data_for_FY22[[#This Row],[25th]])/25)*5) + AAMC_Raw_Data_for_FY22[[#This Row],[25th]]","v":364072.8},{"$f":"(((AAMC_Raw_Data_for_FY22[[#This Row],[Median]]-AAMC_Raw_Data_for_FY22[[#This Row],[25th]])/25)*10) + AAMC_Raw_Data_for_FY22[[#This Row],[25th]]","v":375681.6},{"$f":"(((AAMC_Raw_Data_for_FY22[[#This Row],[Median]]-AAMC_Raw_Data_for_FY22[[#This Row],[25th]])/25)*15) + AAMC_Raw_Data_for_FY22[[#This Row],[25th]]","v":387290.4},{"$f":"(((AAMC_Raw_Data_for_FY22[[#This Row],[Median]]-AAMC_Raw_Data_for_FY22[[#This Row],[25th]])/25)*20) + AAMC_Raw_Data_for_FY22[[#This Row],[25th]]","v":398899.20000000001},410508,{"$f":"(((AAMC_Raw_Data_for_FY22[[#This Row],[75th]]-AAMC_Raw_Data_for_FY22[[#This Row],[Median]])/25)*5) + AAMC_Raw_Data_for_FY22[[#This Row],[Median]]","v":413946.6},{"$f":"(((AAMC_Raw_Data_for_FY22[[#This Row],[75th]]-AAMC_Raw_Data_for_FY22[[#This Row],[Median]])/25)*10) + AAMC_Raw_Data_for_FY22[[#This Row],[Median]]","v":417385.2},{"$f":"(((AAMC_Raw_Data_for_FY22[[#This Row],[75th]]-AAMC_Raw_Data_for_FY22[[#This Row],[Median]])/25)*15) + AAMC_Raw_Data_for_FY22[[#This Row],[Median]]","v":420823.8},{"$f":"(((AAMC_Raw_Data_for_FY22[[#This Row],[75th]]-AAMC_Raw_Data_for_FY22[[#This Row],[Median]])/25)*20) + AAMC_Raw_Data_for_FY22[[#This Row],[Median]]","v":424262.40000000002},427701,{"$f":"(((AAMC_Raw_Data_for_FY22[[#This Row],[75th]]-AAMC_Raw_Data_for_FY22[[#This Row],[Median]])/25)*30) + AAMC_Raw_Data_for_FY22[[#This Row],[Median]]","v":431139.6},{"$f":"(((AAMC_Raw_Data_for_FY22[[#This Row],[75th]]-AAMC_Raw_Data_for_FY22[[#This Row],[Median]])/25)*35) + AAMC_Raw_Data_for_FY22[[#This Row],[Median]]","v":434578.2},{"$f":"(((AAMC_Raw_Data_for_FY22[[#This Row],[75th]]-AAMC_Raw_Data_for_FY22[[#This Row],[Median]])/25)*40) + AAMC_Raw_Data_for_FY22[[#This Row],[Median]]","v":438016.8}]
[{"$f":"AAMC_Raw_Data_for_FY22[[#This Row],[Source]]&AAMC_Raw_Data_for_FY22[[#This Row],[Type]]&AAMC_Raw_Data_for_FY22[[#This Row],[School Subset]]&AAMC_Raw_Data_for_FY22[[#This Row],[Rank]]&AAMC_Raw_Data_for_FY22[[#This Row],[Degree]]&AAMC_Raw_Data_for_FY22[[#This Row],[Department / Specialty]]&\"L\"","v":"AAMCAcademicPublicChairMDOther MedicineL"},"Other Medicine",1,"AAMC","Academic","Public","Chair","MD","2021-2022",594341,{"$f":"(((AAMC_Raw_Data_for_FY22[[#This Row],[Median]]-AAMC_Raw_Data_for_FY22[[#This Row],[25th]])/25)*5) + AAMC_Raw_Data_for_FY22[[#This Row],[25th]]","v":610279.80000000005},{"$f":"(((AAMC_Raw_Data_for_FY22[[#This Row],[Median]]-AAMC_Raw_Data_for_FY22[[#This Row],[25th]])/25)*10) + AAMC_Raw_Data_for_FY22[[#This Row],[25th]]","v":626218.6},{"$f":"(((AAMC_Raw_Data_for_FY22[[#This Row],[Median]]-AAMC_Raw_Data_for_FY22[[#This Row],[25th]])/25)*15) + AAMC_Raw_Data_for_FY22[[#This Row],[25th]]","v":642157.4},{"$f":"(((AAMC_Raw_Data_for_FY22[[#This Row],[Median]]-AAMC_Raw_Data_for_FY22[[#This Row],[25th]])/25)*20) + AAMC_Raw_Data_for_FY22[[#This Row],[25th]]","v":658096.19999999995},674035,{"$f":"(((AAMC_Raw_Data_for_FY22[[#This Row],[75th]]-AAMC_Raw_Data_for_FY22[[#This Row],[Median]])/25)*5) + AAMC_Raw_Data_for_FY22[[#This Row],[Median]]","v":694703.4},{"$f":"(((AAMC_Raw_Data_for_FY22[[#This Row],[75th]]-AAMC_Raw_Data_for_FY22[[#This Row],[Median]])/25)*10) + AAMC_Raw_Data_for_FY22[[#This Row],[Median]]","v":715371.8},{"$f":"(((AAMC_Raw_Data_for_FY22[[#This Row],[75th]]-AAMC_Raw_Data_for_FY22[[#This Row],[Median]])/25)*15) + AAMC_Raw_Data_for_FY22[[#This Row],[Median]]","v":736040.2},{"$f":"(((AAMC_Raw_Data_for_FY22[[#This Row],[75th]]-AAMC_Raw_Data_for_FY22[[#This Row],[Median]])/25)*20) + AAMC_Raw_Data_for_FY22[[#This Row],[Median]]","v":756708.6},777377,{"$f":"(((AAMC_Raw_Data_for_FY22[[#This Row],[75th]]-AAMC_Raw_Data_for_FY22[[#This Row],[Median]])/25)*30) + AAMC_Raw_Data_for_FY22[[#This Row],[Median]]","v":798045.4},{"$f":"(((AAMC_Raw_Data_for_FY22[[#This Row],[75th]]-AAMC_Raw_Data_for_FY22[[#This Row],[Median]])/25)*35) + AAMC_Raw_Data_for_FY22[[#This Row],[Median]]","v":818713.8},{"$f":"(((AAMC_Raw_Data_for_FY22[[#This Row],[75th]]-AAMC_Raw_Data_for_FY22[[#This Row],[Median]])/25)*40) + AAMC_Raw_Data_for_FY22[[#This Row],[Median]]","v":839382.2}]
[{"$f":"AAMC_Raw_Data_for_FY22[[#This Row],[Source]]&AAMC_Raw_Data_for_FY22[[#This Row],[Type]]&AAMC_Raw_Data_for_FY22[[#This Row],[School Subset]]&AAMC_Raw_Data_for_FY22[[#This Row],[Rank]]&AAMC_Raw_Data_for_FY22[[#This Row],[Degree]]&AAMC_Raw_Data_for_FY22[[#This Row],[Department / Specialty]]&\"L\"","v":"AAMCAcademicPublicInstructorMDOB/GYN TotalL"},"OB/GYN Total",5,"AAMC","Academic","Public","Instructor","MD","2021-2022",219890,{"$f":"(((AAMC_Raw_Data_for_FY22[[#This Row],[Median]]-AAMC_Raw_Data_for_FY22[[#This Row],[25th]])/25)*5) + AAMC_Raw_Data_for_FY22[[#This Row],[25th]]","v":228044.79999999999},{"$f":"(((AAMC_Raw_Data_for_FY22[[#This Row],[Median]]-AAMC_Raw_Data_for_FY22[[#This Row],[25th]])/25)*10) + AAMC_Raw_Data_for_FY22[[#This Row],[25th]]","v":236199.6},{"$f":"(((AAMC_Raw_Data_for_FY22[[#This Row],[Median]]-AAMC_Raw_Data_for_FY22[[#This Row],[25th]])/25)*15) + AAMC_Raw_Data_for_FY22[[#This Row],[25th]]","v":244354.4},{"$f":"(((AAMC_Raw_Data_for_FY22[[#This Row],[Median]]-AAMC_Raw_Data_for_FY22[[#This Row],[25th]])/25)*20) + AAMC_Raw_Data_for_FY22[[#This Row],[25th]]","v":252509.2},260664,{"$f":"(((AAMC_Raw_Data_for_FY22[[#This Row],[75th]]-AAMC_Raw_Data_for_FY22[[#This Row],[Median]])/25)*5) + AAMC_Raw_Data_for_FY22[[#This Row],[Median]]","v":266531.20000000001},{"$f":"(((AAMC_Raw_Data_for_FY22[[#This Row],[75th]]-AAMC_Raw_Data_for_FY22[[#This Row],[Median]])/25)*10) + AAMC_Raw_Data_for_FY22[[#This Row],[Median]]","v":272398.40000000002},{"$f":"(((AAMC_Raw_Data_for_FY22[[#This Row],[75th]]-AAMC_Raw_Data_for_FY22[[#This Row],[Median]])/25)*15) + AAMC_Raw_Data_for_FY22[[#This Row],[Median]]","v":278265.59999999998},{"$f":"(((AAMC_Raw_Data_for_FY22[[#This Row],[75th]]-AAMC_Raw_Data_for_FY22[[#This Row],[Median]])/25)*20) + AAMC_Raw_Data_for_FY22[[#This Row],[Median]]","v":284132.8},290000,{"$f":"(((AAMC_Raw_Data_for_FY22[[#This Row],[75th]]-AAMC_Raw_Data_for_FY22[[#This Row],[Median]])/25)*30) + AAMC_Raw_Data_for_FY22[[#This Row],[Median]]","v":295867.2},{"$f":"(((AAMC_Raw_Data_for_FY22[[#This Row],[75th]]-AAMC_Raw_Data_for_FY22[[#This Row],[Median]])/25)*35) + AAMC_Raw_Data_for_FY22[[#This Row],[Median]]","v":301734.40000000002},{"$f":"(((AAMC_Raw_Data_for_FY22[[#This Row],[75th]]-AAMC_Raw_Data_for_FY22[[#This Row],[Median]])/25)*40) + AAMC_Raw_Data_for_FY22[[#This Row],[Median]]","v":307601.59999999998}]
[{"$f":"AAMC_Raw_Data_for_FY22[[#This Row],[Source]]&AAMC_Raw_Data_for_FY22[[#This Row],[Type]]&AAMC_Raw_Data_for_FY22[[#This Row],[School Subset]]&AAMC_Raw_Data_for_FY22[[#This Row],[Rank]]&AAMC_Raw_Data_for_FY22[[#This Row],[Degree]]&AAMC_Raw_Data_for_FY22[[#This Row],[Department / Specialty]]&\"L\"","v":"AAMCAcademicPublicAssistantMDOB/GYN TotalL"},"OB/GYN Total",4,"AAMC","Academic","Public","Assistant","MD","2021-2022",260317,{"$f":"(((AAMC_Raw_Data_for_FY22[[#This Row],[Median]]-AAMC_Raw_Data_for_FY22[[#This Row],[25th]])/25)*5) + AAMC_Raw_Data_for_FY22[[#This Row],[25th]]","v":269833.59999999998},{"$f":"(((AAMC_Raw_Data_for_FY22[[#This Row],[Median]]-AAMC_Raw_Data_for_FY22[[#This Row],[25th]])/25)*10) + AAMC_Raw_Data_for_FY22[[#This Row],[25th]]","v":279350.2},{"$f":"(((AAMC_Raw_Data_for_FY22[[#This Row],[Median]]-AAMC_Raw_Data_for_FY22[[#This Row],[25th]])/25)*15) + AAMC_Raw_Data_for_FY22[[#This Row],[25th]]","v":288866.8},{"$f":"(((AAMC_Raw_Data_for_FY22[[#This Row],[Median]]-AAMC_Raw_Data_for_FY22[[#This Row],[25th]])/25)*20) + AAMC_Raw_Data_for_FY22[[#This Row],[25th]]","v":298383.40000000002},307900,{"$f":"(((AAMC_Raw_Data_for_FY22[[#This Row],[75th]]-AAMC_Raw_Data_for_FY22[[#This Row],[Median]])/25)*5) + AAMC_Raw_Data_for_FY22[[#This Row],[Median]]","v":320309.8},{"$f":"(((AAMC_Raw_Data_for_FY22[[#This Row],[75th]]-AAMC_Raw_Data_for_FY22[[#This Row],[Median]])/25)*10) + AAMC_Raw_Data_for_FY22[[#This Row],[Median]]","v":332719.59999999998},{"$f":"(((AAMC_Raw_Data_for_FY22[[#This Row],[75th]]-AAMC_Raw_Data_for_FY22[[#This Row],[Median]])/25)*15) + AAMC_Raw_Data_for_FY22[[#This Row],[Median]]","v":345129.4},{"$f":"(((AAMC_Raw_Data_for_FY22[[#This Row],[75th]]-AAMC_Raw_Data_for_FY22[[#This Row],[Median]])/25)*20) + AAMC_Raw_Data_for_FY22[[#This Row],[Median]]","v":357539.2},369949,{"$f":"(((AAMC_Raw_Data_for_FY22[[#This Row],[75th]]-AAMC_Raw_Data_for_FY22[[#This Row],[Median]])/25)*30) + AAMC_Raw_Data_for_FY22[[#This Row],[Median]]","v":382358.8},{"$f":"(((AAMC_Raw_Data_for_FY22[[#This Row],[75th]]-AAMC_Raw_Data_for_FY22[[#This Row],[Median]])/25)*35) + AAMC_Raw_Data_for_FY22[[#This Row],[Median]]","v":394768.6},{"$f":"(((AAMC_Raw_Data_for_FY22[[#This Row],[75th]]-AAMC_Raw_Data_for_FY22[[#This Row],[Median]])/25)*40) + AAMC_Raw_Data_for_FY22[[#This Row],[Median]]","v":407178.4}]
[{"$f":"AAMC_Raw_Data_for_FY22[[#This Row],[Source]]&AAMC_Raw_Data_for_FY22[[#This Row],[Type]]&AAMC_Raw_Data_for_FY22[[#This Row],[School Subset]]&AAMC_Raw_Data_for_FY22[[#This Row],[Rank]]&AAMC_Raw_Data_for_FY22[[#This Row],[Degree]]&AAMC_Raw_Data_for_FY22[[#This Row],[Department / Specialty]]&\"L\"","v":"AAMCAcademicPublicAssociateMDOB/GYN TotalL"},"OB/GYN Total",3,"AAMC","Academic","Public","Associate","MD","2021-2022",309043,{"$f":"(((AAMC_Raw_Data_for_FY22[[#This Row],[Median]]-AAMC_Raw_Data_for_FY22[[#This Row],[25th]])/25)*5) + AAMC_Raw_Data_for_FY22[[#This Row],[25th]]","v":322402.59999999998},{"$f":"(((AAMC_Raw_Data_for_FY22[[#This Row],[Median]]-AAMC_Raw_Data_for_FY22[[#This Row],[25th]])/25)*10) + AAMC_Raw_Data_for_FY22[[#This Row],[25th]]","v":335762.2},{"$f":"(((AAMC_Raw_Data_for_FY22[[#This Row],[Median]]-AAMC_Raw_Data_for_FY22[[#This Row],[25th]])/25)*15) + AAMC_Raw_Data_for_FY22[[#This Row],[25th]]","v":349121.8},{"$f":"(((AAMC_Raw_Data_for_FY22[[#This Row],[Median]]-AAMC_Raw_Data_for_FY22[[#This Row],[25th]])/25)*20) + AAMC_Raw_Data_for_FY22[[#This Row],[25th]]","v":362481.4},375841,{"$f":"(((AAMC_Raw_Data_for_FY22[[#This Row],[75th]]-AAMC_Raw_Data_for_FY22[[#This Row],[Median]])/25)*5) + AAMC_Raw_Data_for_FY22[[#This Row],[Median]]","v":391611.6},{"$f":"(((AAMC_Raw_Data_for_FY22[[#This Row],[75th]]-AAMC_Raw_Data_for_FY22[[#This Row],[Median]])/25)*10) + AAMC_Raw_Data_for_FY22[[#This Row],[Median]]","v":407382.2},{"$f":"(((AAMC_Raw_Data_for_FY22[[#This Row],[75th]]-AAMC_Raw_Data_for_FY22[[#This Row],[Median]])/25)*15) + AAMC_Raw_Data_for_FY22[[#This Row],[Median]]","v":423152.8},{"$f":"(((AAMC_Raw_Data_for_FY22[[#This Row],[75th]]-AAMC_Raw_Data_for_FY22[[#This Row],[Median]])/25)*20) + AAMC_Raw_Data_for_FY22[[#This Row],[Median]]","v":438923.4},454694,{"$f":"(((AAMC_Raw_Data_for_FY22[[#This Row],[75th]]-AAMC_Raw_Data_for_FY22[[#This Row],[Median]])/25)*30) + AAMC_Raw_Data_for_FY22[[#This Row],[Median]]","v":470464.6},{"$f":"(((AAMC_Raw_Data_for_FY22[[#This Row],[75th]]-AAMC_Raw_Data_for_FY22[[#This Row],[Median]])/25)*35) + AAMC_Raw_Data_for_FY22[[#This Row],[Median]]","v":486235.2},{"$f":"(((AAMC_Raw_Data_for_FY22[[#This Row],[75th]]-AAMC_Raw_Data_for_FY22[[#This Row],[Median]])/25)*40) + AAMC_Raw_Data_for_FY22[[#This Row],[Median]]","v":502005.8}]
[{"$f":"AAMC_Raw_Data_for_FY22[[#This Row],[Source]]&AAMC_Raw_Data_for_FY22[[#This Row],[Type]]&AAMC_Raw_Data_for_FY22[[#This Row],[School Subset]]&AAMC_Raw_Data_for_FY22[[#This Row],[Rank]]&AAMC_Raw_Data_for_FY22[[#This Row],[Degree]]&AAMC_Raw_Data_for_FY22[[#This Row],[Department / Specialty]]&\"L\"","v":"AAMCAcademicPublicProfessorMDOB/GYN TotalL"},"OB/GYN Total",2,"AAMC","Academic","Public","Professor","MD","2021-2022",329764,{"$f":"(((AAMC_Raw_Data_for_FY22[[#This Row],[Median]]-AAMC_Raw_Data_for_FY22[[#This Row],[25th]])/25)*5) + AAMC_Raw_Data_for_FY22[[#This Row],[25th]]","v":344721},{"$f":"(((AAMC_Raw_Data_for_FY22[[#This Row],[Median]]-AAMC_Raw_Data_for_FY22[[#This Row],[25th]])/25)*10) + AAMC_Raw_Data_for_FY22[[#This Row],[25th]]","v":359678},{"$f":"(((AAMC_Raw_Data_for_FY22[[#This Row],[Median]]-AAMC_Raw_Data_for_FY22[[#This Row],[25th]])/25)*15) + AAMC_Raw_Data_for_FY22[[#This Row],[25th]]","v":374635},{"$f":"(((AAMC_Raw_Data_for_FY22[[#This Row],[Median]]-AAMC_Raw_Data_for_FY22[[#This Row],[25th]])/25)*20) + AAMC_Raw_Data_for_FY22[[#This Row],[25th]]","v":389592},404549,{"$f":"(((AAMC_Raw_Data_for_FY22[[#This Row],[75th]]-AAMC_Raw_Data_for_FY22[[#This Row],[Median]])/25)*5) + AAMC_Raw_Data_for_FY22[[#This Row],[Median]]","v":423879.2},{"$f":"(((AAMC_Raw_Data_for_FY22[[#This Row],[75th]]-AAMC_Raw_Data_for_FY22[[#This Row],[Median]])/25)*10) + AAMC_Raw_Data_for_FY22[[#This Row],[Median]]","v":443209.4},{"$f":"(((AAMC_Raw_Data_for_FY22[[#This Row],[75th]]-AAMC_Raw_Data_for_FY22[[#This Row],[Median]])/25)*15) + AAMC_Raw_Data_for_FY22[[#This Row],[Median]]","v":462539.6},{"$f":"(((AAMC_Raw_Data_for_FY22[[#This Row],[75th]]-AAMC_Raw_Data_for_FY22[[#This Row],[Median]])/25)*20) + AAMC_Raw_Data_for_FY22[[#This Row],[Median]]","v":481869.8},501200,{"$f":"(((AAMC_Raw_Data_for_FY22[[#This Row],[75th]]-AAMC_Raw_Data_for_FY22[[#This Row],[Median]])/25)*30) + AAMC_Raw_Data_for_FY22[[#This Row],[Median]]","v":520530.2},{"$f":"(((AAMC_Raw_Data_for_FY22[[#This Row],[75th]]-AAMC_Raw_Data_for_FY22[[#This Row],[Median]])/25)*35) + AAMC_Raw_Data_for_FY22[[#This Row],[Median]]","v":539860.4},{"$f":"(((AAMC_Raw_Data_for_FY22[[#This Row],[75th]]-AAMC_Raw_Data_for_FY22[[#This Row],[Median]])/25)*40) + AAMC_Raw_Data_for_FY22[[#This Row],[Median]]","v":559190.6}]
[{"$f":"AAMC_Raw_Data_for_FY22[[#This Row],[Source]]&AAMC_Raw_Data_for_FY22[[#This Row],[Type]]&AAMC_Raw_Data_for_FY22[[#This Row],[School Subset]]&AAMC_Raw_Data_for_FY22[[#This Row],[Rank]]&AAMC_Raw_Data_for_FY22[[#This Row],[Degree]]&AAMC_Raw_Data_for_FY22[[#This Row],[Department / Specialty]]&\"L\"","v":"AAMCAcademicPublicChiefMDOB/GYN TotalL"},"OB/GYN Total",6,"AAMC","Academic","Public","Chief","MD","2021-2022",354226,{"$f":"(((AAMC_Raw_Data_for_FY22[[#This Row],[Median]]-AAMC_Raw_Data_for_FY22[[#This Row],[25th]])/25)*5) + AAMC_Raw_Data_for_FY22[[#This Row],[25th]]","v":366486.4},{"$f":"(((AAMC_Raw_Data_for_FY22[[#This Row],[Median]]-AAMC_Raw_Data_for_FY22[[#This Row],[25th]])/25)*10) + AAMC_Raw_Data_for_FY22[[#This Row],[25th]]","v":378746.8},{"$f":"(((AAMC_Raw_Data_for_FY22[[#This Row],[Median]]-AAMC_Raw_Data_for_FY22[[#This Row],[25th]])/25)*15) + AAMC_Raw_Data_for_FY22[[#This Row],[25th]]","v":391007.2},{"$f":"(((AAMC_Raw_Data_for_FY22[[#This Row],[Median]]-AAMC_Raw_Data_for_FY22[[#This Row],[25th]])/25)*20) + AAMC_Raw_Data_for_FY22[[#This Row],[25th]]","v":403267.6},415528,{"$f":"(((AAMC_Raw_Data_for_FY22[[#This Row],[75th]]-AAMC_Raw_Data_for_FY22[[#This Row],[Median]])/25)*5) + AAMC_Raw_Data_for_FY22[[#This Row],[Median]]","v":433368.2},{"$f":"(((AAMC_Raw_Data_for_FY22[[#This Row],[75th]]-AAMC_Raw_Data_for_FY22[[#This Row],[Median]])/25)*10) + AAMC_Raw_Data_for_FY22[[#This Row],[Median]]","v":451208.4},{"$f":"(((AAMC_Raw_Data_for_FY22[[#This Row],[75th]]-AAMC_Raw_Data_for_FY22[[#This Row],[Median]])/25)*15) + AAMC_Raw_Data_for_FY22[[#This Row],[Median]]","v":469048.6},{"$f":"(((AAMC_Raw_Data_for_FY22[[#This Row],[75th]]-AAMC_Raw_Data_for_FY22[[#This Row],[Median]])/25)*20) + AAMC_Raw_Data_for_FY22[[#This Row],[Median]]","v":486888.8},504729,{"$f":"(((AAMC_Raw_Data_for_FY22[[#This Row],[75th]]-AAMC_Raw_Data_for_FY22[[#This Row],[Median]])/25)*30) + AAMC_Raw_Data_for_FY22[[#This Row],[Median]]","v":522569.2},{"$f":"(((AAMC_Raw_Data_for_FY22[[#This Row],[75th]]-AAMC_Raw_Data_for_FY22[[#This Row],[Median]])/25)*35) + AAMC_Raw_Data_for_FY22[[#This Row],[Median]]","v":540409.4},{"$f":"(((AAMC_Raw_Data_for_FY22[[#This Row],[75th]]-AAMC_Raw_Data_for_FY22[[#This Row],[Median]])/25)*40) + AAMC_Raw_Data_for_FY22[[#This Row],[Median]]","v":558249.6}]
[{"$f":"AAMC_Raw_Data_for_FY22[[#This Row],[Source]]&AAMC_Raw_Data_for_FY22[[#This Row],[Type]]&AAMC_Raw_Data_for_FY22[[#This Row],[School Subset]]&AAMC_Raw_Data_for_FY22[[#This Row],[Rank]]&AAMC_Raw_Data_for_FY22[[#This Row],[Degree]]&AAMC_Raw_Data_for_FY22[[#This Row],[Department / Specialty]]&\"L\"","v":"AAMCAcademicPublicChairMDOB/GYN TotalL"},"OB/GYN Total",1,"AAMC","Academic","Public","Chair","MD","2021-2022",545840,{"$f":"(((AAMC_Raw_Data_for_FY22[[#This Row],[Median]]-AAMC_Raw_Data_for_FY22[[#This Row],[25th]])/25)*5) + AAMC_Raw_Data_for_FY22[[#This Row],[25th]]","v":556853.4},{"$f":"(((AAMC_Raw_Data_for_FY22[[#This Row],[Median]]-AAMC_Raw_Data_for_FY22[[#This Row],[25th]])/25)*10) + AAMC_Raw_Data_for_FY22[[#This Row],[25th]]","v":567866.80000000005},{"$f":"(((AAMC_Raw_Data_for_FY22[[#This Row],[Median]]-AAMC_Raw_Data_for_FY22[[#This Row],[25th]])/25)*15) + AAMC_Raw_Data_for_FY22[[#This Row],[25th]]","v":578880.19999999995},{"$f":"(((AAMC_Raw_Data_for_FY22[[#This Row],[Median]]-AAMC_Raw_Data_for_FY22[[#This Row],[25th]])/25)*20) + AAMC_Raw_Data_for_FY22[[#This Row],[25th]]","v":589893.6},600907,{"$f":"(((AAMC_Raw_Data_for_FY22[[#This Row],[75th]]-AAMC_Raw_Data_for_FY22[[#This Row],[Median]])/25)*5) + AAMC_Raw_Data_for_FY22[[#This Row],[Median]]","v":615391.19999999995},{"$f":"(((AAMC_Raw_Data_for_FY22[[#This Row],[75th]]-AAMC_Raw_Data_for_FY22[[#This Row],[Median]])/25)*10) + AAMC_Raw_Data_for_FY22[[#This Row],[Median]]","v":629875.4},{"$f":"(((AAMC_Raw_Data_for_FY22[[#This Row],[75th]]-AAMC_Raw_Data_for_FY22[[#This Row],[Median]])/25)*15) + AAMC_Raw_Data_for_FY22[[#This Row],[Median]]","v":644359.6},{"$f":"(((AAMC_Raw_Data_for_FY22[[#This Row],[75th]]-AAMC_Raw_Data_for_FY22[[#This Row],[Median]])/25)*20) + AAMC_Raw_Data_for_FY22[[#This Row],[Median]]","v":658843.80000000005},673328,{"$f":"(((AAMC_Raw_Data_for_FY22[[#This Row],[75th]]-AAMC_Raw_Data_for_FY22[[#This Row],[Median]])/25)*30) + AAMC_Raw_Data_for_FY22[[#This Row],[Median]]","v":687812.2},{"$f":"(((AAMC_Raw_Data_for_FY22[[#This Row],[75th]]-AAMC_Raw_Data_for_FY22[[#This Row],[Median]])/25)*35) + AAMC_Raw_Data_for_FY22[[#This Row],[Median]]","v":702296.4},{"$f":"(((AAMC_Raw_Data_for_FY22[[#This Row],[75th]]-AAMC_Raw_Data_for_FY22[[#This Row],[Median]])/25)*40) + AAMC_Raw_Data_for_FY22[[#This Row],[Median]]","v":716780.6}]
[{"$f":"AAMC_Raw_Data_for_FY22[[#This Row],[Source]]&AAMC_Raw_Data_for_FY22[[#This Row],[Type]]&AAMC_Raw_Data_for_FY22[[#This Row],[School Subset]]&AAMC_Raw_Data_for_FY22[[#This Row],[Rank]]&AAMC_Raw_Data_for_FY22[[#This Row],[Degree]]&AAMC_Raw_Data_for_FY22[[#This Row],[Department / Specialty]]&\"L\"","v":"AAMCAcademicPublicInstructorMDOB/GYN: GeneralL"},"OB/GYN: General",5,"AAMC","Academic","Public","Instructor","MD","2021-2022",222219,{"$f":"(((AAMC_Raw_Data_for_FY22[[#This Row],[Median]]-AAMC_Raw_Data_for_FY22[[#This Row],[25th]])/25)*5) + AAMC_Raw_Data_for_FY22[[#This Row],[25th]]","v":229908},{"$f":"(((AAMC_Raw_Data_for_FY22[[#This Row],[Median]]-AAMC_Raw_Data_for_FY22[[#This Row],[25th]])/25)*10) + AAMC_Raw_Data_for_FY22[[#This Row],[25th]]","v":237597},{"$f":"(((AAMC_Raw_Data_for_FY22[[#This Row],[Median]]-AAMC_Raw_Data_for_FY22[[#This Row],[25th]])/25)*15) + AAMC_Raw_Data_for_FY22[[#This Row],[25th]]","v":245286},{"$f":"(((AAMC_Raw_Data_for_FY22[[#This Row],[Median]]-AAMC_Raw_Data_for_FY22[[#This Row],[25th]])/25)*20) + AAMC_Raw_Data_for_FY22[[#This Row],[25th]]","v":252975},260664,{"$f":"(((AAMC_Raw_Data_for_FY22[[#This Row],[75th]]-AAMC_Raw_Data_for_FY22[[#This Row],[Median]])/25)*5) + AAMC_Raw_Data_for_FY22[[#This Row],[Median]]","v":266531.20000000001},{"$f":"(((AAMC_Raw_Data_for_FY22[[#This Row],[75th]]-AAMC_Raw_Data_for_FY22[[#This Row],[Median]])/25)*10) + AAMC_Raw_Data_for_FY22[[#This Row],[Median]]","v":272398.40000000002},{"$f":"(((AAMC_Raw_Data_for_FY22[[#This Row],[75th]]-AAMC_Raw_Data_for_FY22[[#This Row],[Median]])/25)*15) + AAMC_Raw_Data_for_FY22[[#This Row],[Median]]","v":278265.59999999998},{"$f":"(((AAMC_Raw_Data_for_FY22[[#This Row],[75th]]-AAMC_Raw_Data_for_FY22[[#This Row],[Median]])/25)*20) + AAMC_Raw_Data_for_FY22[[#This Row],[Median]]","v":284132.8},290000,{"$f":"(((AAMC_Raw_Data_for_FY22[[#This Row],[75th]]-AAMC_Raw_Data_for_FY22[[#This Row],[Median]])/25)*30) + AAMC_Raw_Data_for_FY22[[#This Row],[Median]]","v":295867.2},{"$f":"(((AAMC_Raw_Data_for_FY22[[#This Row],[75th]]-AAMC_Raw_Data_for_FY22[[#This Row],[Median]])/25)*35) + AAMC_Raw_Data_for_FY22[[#This Row],[Median]]","v":301734.40000000002},{"$f":"(((AAMC_Raw_Data_for_FY22[[#This Row],[75th]]-AAMC_Raw_Data_for_FY22[[#This Row],[Median]])/25)*40) + AAMC_Raw_Data_for_FY22[[#This Row],[Median]]","v":307601.59999999998}]
[{"$f":"AAMC_Raw_Data_for_FY22[[#This Row],[Source]]&AAMC_Raw_Data_for_FY22[[#This Row],[Type]]&AAMC_Raw_Data_for_FY22[[#This Row],[School Subset]]&AAMC_Raw_Data_for_FY22[[#This Row],[Rank]]&AAMC_Raw_Data_for_FY22[[#This Row],[Degree]]&AAMC_Raw_Data_for_FY22[[#This Row],[Department / Specialty]]&\"L\"","v":"AAMCAcademicPublicAssistantMDOB/GYN: GeneralL"},"OB/GYN: General",4,"AAMC","Academic","Public","Assistant","MD","2021-2022",251500,{"$f":"(((AAMC_Raw_Data_for_FY22[[#This Row],[Median]]-AAMC_Raw_Data_for_FY22[[#This Row],[25th]])/25)*5) + AAMC_Raw_Data_for_FY22[[#This Row],[25th]]","v":258612.2},{"$f":"(((AAMC_Raw_Data_for_FY22[[#This Row],[Median]]-AAMC_Raw_Data_for_FY22[[#This Row],[25th]])/25)*10) + AAMC_Raw_Data_for_FY22[[#This Row],[25th]]","v":265724.40000000002},{"$f":"(((AAMC_Raw_Data_for_FY22[[#This Row],[Median]]-AAMC_Raw_Data_for_FY22[[#This Row],[25th]])/25)*15) + AAMC_Raw_Data_for_FY22[[#This Row],[25th]]","v":272836.59999999998},{"$f":"(((AAMC_Raw_Data_for_FY22[[#This Row],[Median]]-AAMC_Raw_Data_for_FY22[[#This Row],[25th]])/25)*20) + AAMC_Raw_Data_for_FY22[[#This Row],[25th]]","v":279948.79999999999},287061,{"$f":"(((AAMC_Raw_Data_for_FY22[[#This Row],[75th]]-AAMC_Raw_Data_for_FY22[[#This Row],[Median]])/25)*5) + AAMC_Raw_Data_for_FY22[[#This Row],[Median]]","v":296865.40000000002},{"$f":"(((AAMC_Raw_Data_for_FY22[[#This Row],[75th]]-AAMC_Raw_Data_for_FY22[[#This Row],[Median]])/25)*10) + AAMC_Raw_Data_for_FY22[[#This Row],[Median]]","v":306669.8},{"$f":"(((AAMC_Raw_Data_for_FY22[[#This Row],[75th]]-AAMC_Raw_Data_for_FY22[[#This Row],[Median]])/25)*15) + AAMC_Raw_Data_for_FY22[[#This Row],[Median]]","v":316474.2},{"$f":"(((AAMC_Raw_Data_for_FY22[[#This Row],[75th]]-AAMC_Raw_Data_for_FY22[[#This Row],[Median]])/25)*20) + AAMC_Raw_Data_for_FY22[[#This Row],[Median]]","v":326278.59999999998},336083,{"$f":"(((AAMC_Raw_Data_for_FY22[[#This Row],[75th]]-AAMC_Raw_Data_for_FY22[[#This Row],[Median]])/25)*30) + AAMC_Raw_Data_for_FY22[[#This Row],[Median]]","v":345887.4},{"$f":"(((AAMC_Raw_Data_for_FY22[[#This Row],[75th]]-AAMC_Raw_Data_for_FY22[[#This Row],[Median]])/25)*35) + AAMC_Raw_Data_for_FY22[[#This Row],[Median]]","v":355691.8},{"$f":"(((AAMC_Raw_Data_for_FY22[[#This Row],[75th]]-AAMC_Raw_Data_for_FY22[[#This Row],[Median]])/25)*40) + AAMC_Raw_Data_for_FY22[[#This Row],[Median]]","v":365496.2}]
[{"$f":"AAMC_Raw_Data_for_FY22[[#This Row],[Source]]&AAMC_Raw_Data_for_FY22[[#This Row],[Type]]&AAMC_Raw_Data_for_FY22[[#This Row],[School Subset]]&AAMC_Raw_Data_for_FY22[[#This Row],[Rank]]&AAMC_Raw_Data_for_FY22[[#This Row],[Degree]]&AAMC_Raw_Data_for_FY22[[#This Row],[Department / Specialty]]&\"L\"","v":"AAMCAcademicPublicAssociateMDOB/GYN: GeneralL"},"OB/GYN: General",3,"AAMC","Academic","Public","Associate","MD","2021-2022",293825,{"$f":"(((AAMC_Raw_Data_for_FY22[[#This Row],[Median]]-AAMC_Raw_Data_for_FY22[[#This Row],[25th]])/25)*5) + AAMC_Raw_Data_for_FY22[[#This Row],[25th]]","v":300534.40000000002},{"$f":"(((AAMC_Raw_Data_for_FY22[[#This Row],[Median]]-AAMC_Raw_Data_for_FY22[[#This Row],[25th]])/25)*10) + AAMC_Raw_Data_for_FY22[[#This Row],[25th]]","v":307243.8},{"$f":"(((AAMC_Raw_Data_for_FY22[[#This Row],[Median]]-AAMC_Raw_Data_for_FY22[[#This Row],[25th]])/25)*15) + AAMC_Raw_Data_for_FY22[[#This Row],[25th]]","v":313953.2},{"$f":"(((AAMC_Raw_Data_for_FY22[[#This Row],[Median]]-AAMC_Raw_Data_for_FY22[[#This Row],[25th]])/25)*20) + AAMC_Raw_Data_for_FY22[[#This Row],[25th]]","v":320662.59999999998},327372,{"$f":"(((AAMC_Raw_Data_for_FY22[[#This Row],[75th]]-AAMC_Raw_Data_for_FY22[[#This Row],[Median]])/25)*5) + AAMC_Raw_Data_for_FY22[[#This Row],[Median]]","v":339406.4},{"$f":"(((AAMC_Raw_Data_for_FY22[[#This Row],[75th]]-AAMC_Raw_Data_for_FY22[[#This Row],[Median]])/25)*10) + AAMC_Raw_Data_for_FY22[[#This Row],[Median]]","v":351440.8},{"$f":"(((AAMC_Raw_Data_for_FY22[[#This Row],[75th]]-AAMC_Raw_Data_for_FY22[[#This Row],[Median]])/25)*15) + AAMC_Raw_Data_for_FY22[[#This Row],[Median]]","v":363475.20000000001},{"$f":"(((AAMC_Raw_Data_for_FY22[[#This Row],[75th]]-AAMC_Raw_Data_for_FY22[[#This Row],[Median]])/25)*20) + AAMC_Raw_Data_for_FY22[[#This Row],[Median]]","v":375509.6},387544,{"$f":"(((AAMC_Raw_Data_for_FY22[[#This Row],[75th]]-AAMC_Raw_Data_for_FY22[[#This Row],[Median]])/25)*30) + AAMC_Raw_Data_for_FY22[[#This Row],[Median]]","v":399578.4},{"$f":"(((AAMC_Raw_Data_for_FY22[[#This Row],[75th]]-AAMC_Raw_Data_for_FY22[[#This Row],[Median]])/25)*35) + AAMC_Raw_Data_for_FY22[[#This Row],[Median]]","v":411612.8},{"$f":"(((AAMC_Raw_Data_for_FY22[[#This Row],[75th]]-AAMC_Raw_Data_for_FY22[[#This Row],[Median]])/25)*40) + AAMC_Raw_Data_for_FY22[[#This Row],[Median]]","v":423647.2}]
[{"$f":"AAMC_Raw_Data_for_FY22[[#This Row],[Source]]&AAMC_Raw_Data_for_FY22[[#This Row],[Type]]&AAMC_Raw_Data_for_FY22[[#This Row],[School Subset]]&AAMC_Raw_Data_for_FY22[[#This Row],[Rank]]&AAMC_Raw_Data_for_FY22[[#This Row],[Degree]]&AAMC_Raw_Data_for_FY22[[#This Row],[Department / Specialty]]&\"L\"","v":"AAMCAcademicPublicProfessorMDOB/GYN: GeneralL"},"OB/GYN: General",2,"AAMC","Academic","Public","Professor","MD","2021-2022",300375,{"$f":"(((AAMC_Raw_Data_for_FY22[[#This Row],[Median]]-AAMC_Raw_Data_for_FY22[[#This Row],[25th]])/25)*5) + AAMC_Raw_Data_for_FY22[[#This Row],[25th]]","v":308277.2},{"$f":"(((AAMC_Raw_Data_for_FY22[[#This Row],[Median]]-AAMC_Raw_Data_for_FY22[[#This Row],[25th]])/25)*10) + AAMC_Raw_Data_for_FY22[[#This Row],[25th]]","v":316179.40000000002},{"$f":"(((AAMC_Raw_Data_for_FY22[[#This Row],[Median]]-AAMC_Raw_Data_for_FY22[[#This Row],[25th]])/25)*15) + AAMC_Raw_Data_for_FY22[[#This Row],[25th]]","v":324081.59999999998},{"$f":"(((AAMC_Raw_Data_for_FY22[[#This Row],[Median]]-AAMC_Raw_Data_for_FY22[[#This Row],[25th]])/25)*20) + AAMC_Raw_Data_for_FY22[[#This Row],[25th]]","v":331983.8},339886,{"$f":"(((AAMC_Raw_Data_for_FY22[[#This Row],[75th]]-AAMC_Raw_Data_for_FY22[[#This Row],[Median]])/25)*5) + AAMC_Raw_Data_for_FY22[[#This Row],[Median]]","v":353162.8},{"$f":"(((AAMC_Raw_Data_for_FY22[[#This Row],[75th]]-AAMC_Raw_Data_for_FY22[[#This Row],[Median]])/25)*10) + AAMC_Raw_Data_for_FY22[[#This Row],[Median]]","v":366439.6},{"$f":"(((AAMC_Raw_Data_for_FY22[[#This Row],[75th]]-AAMC_Raw_Data_for_FY22[[#This Row],[Median]])/25)*15) + AAMC_Raw_Data_for_FY22[[#This Row],[Median]]","v":379716.4},{"$f":"(((AAMC_Raw_Data_for_FY22[[#This Row],[75th]]-AAMC_Raw_Data_for_FY22[[#This Row],[Median]])/25)*20) + AAMC_Raw_Data_for_FY22[[#This Row],[Median]]","v":392993.2},406270,{"$f":"(((AAMC_Raw_Data_for_FY22[[#This Row],[75th]]-AAMC_Raw_Data_for_FY22[[#This Row],[Median]])/25)*30) + AAMC_Raw_Data_for_FY22[[#This Row],[Median]]","v":419546.8},{"$f":"(((AAMC_Raw_Data_for_FY22[[#This Row],[75th]]-AAMC_Raw_Data_for_FY22[[#This Row],[Median]])/25)*35) + AAMC_Raw_Data_for_FY22[[#This Row],[Median]]","v":432823.6},{"$f":"(((AAMC_Raw_Data_for_FY22[[#This Row],[75th]]-AAMC_Raw_Data_for_FY22[[#This Row],[Median]])/25)*40) + AAMC_Raw_Data_for_FY22[[#This Row],[Median]]","v":446100.4}]
[{"$f":"AAMC_Raw_Data_for_FY22[[#This Row],[Source]]&AAMC_Raw_Data_for_FY22[[#This Row],[Type]]&AAMC_Raw_Data_for_FY22[[#This Row],[School Subset]]&AAMC_Raw_Data_for_FY22[[#This Row],[Rank]]&AAMC_Raw_Data_for_FY22[[#This Row],[Degree]]&AAMC_Raw_Data_for_FY22[[#This Row],[Department / Specialty]]&\"L\"","v":"AAMCAcademicPublicChiefMDOB/GYN: GeneralL"},"OB/GYN: General",6,"AAMC","Academic","Public","Chief","MD","2021-2022",334079,{"$f":"(((AAMC_Raw_Data_for_FY22[[#This Row],[Median]]-AAMC_Raw_Data_for_FY22[[#This Row],[25th]])/25)*5) + AAMC_Raw_Data_for_FY22[[#This Row],[25th]]","v":340914.8},{"$f":"(((AAMC_Raw_Data_for_FY22[[#This Row],[Median]]-AAMC_Raw_Data_for_FY22[[#This Row],[25th]])/25)*10) + AAMC_Raw_Data_for_FY22[[#This Row],[25th]]","v":347750.6},{"$f":"(((AAMC_Raw_Data_for_FY22[[#This Row],[Median]]-AAMC_Raw_Data_for_FY22[[#This Row],[25th]])/25)*15) + AAMC_Raw_Data_for_FY22[[#This Row],[25th]]","v":354586.4},{"$f":"(((AAMC_Raw_Data_for_FY22[[#This Row],[Median]]-AAMC_Raw_Data_for_FY22[[#This Row],[25th]])/25)*20) + AAMC_Raw_Data_for_FY22[[#This Row],[25th]]","v":361422.2},368258,{"$f":"(((AAMC_Raw_Data_for_FY22[[#This Row],[75th]]-AAMC_Raw_Data_for_FY22[[#This Row],[Median]])/25)*5) + AAMC_Raw_Data_for_FY22[[#This Row],[Median]]","v":381741.4},{"$f":"(((AAMC_Raw_Data_for_FY22[[#This Row],[75th]]-AAMC_Raw_Data_for_FY22[[#This Row],[Median]])/25)*10) + AAMC_Raw_Data_for_FY22[[#This Row],[Median]]","v":395224.8},{"$f":"(((AAMC_Raw_Data_for_FY22[[#This Row],[75th]]-AAMC_Raw_Data_for_FY22[[#This Row],[Median]])/25)*15) + AAMC_Raw_Data_for_FY22[[#This Row],[Median]]","v":408708.2},{"$f":"(((AAMC_Raw_Data_for_FY22[[#This Row],[75th]]-AAMC_Raw_Data_for_FY22[[#This Row],[Median]])/25)*20) + AAMC_Raw_Data_for_FY22[[#This Row],[Median]]","v":422191.6},435675,{"$f":"(((AAMC_Raw_Data_for_FY22[[#This Row],[75th]]-AAMC_Raw_Data_for_FY22[[#This Row],[Median]])/25)*30) + AAMC_Raw_Data_for_FY22[[#This Row],[Median]]","v":449158.40000000002},{"$f":"(((AAMC_Raw_Data_for_FY22[[#This Row],[75th]]-AAMC_Raw_Data_for_FY22[[#This Row],[Median]])/25)*35) + AAMC_Raw_Data_for_FY22[[#This Row],[Median]]","v":462641.8},{"$f":"(((AAMC_Raw_Data_for_FY22[[#This Row],[75th]]-AAMC_Raw_Data_for_FY22[[#This Row],[Median]])/25)*40) + AAMC_Raw_Data_for_FY22[[#This Row],[Median]]","v":476125.2}]
[{"$f":"AAMC_Raw_Data_for_FY22[[#This Row],[Source]]&AAMC_Raw_Data_for_FY22[[#This Row],[Type]]&AAMC_Raw_Data_for_FY22[[#This Row],[School Subset]]&AAMC_Raw_Data_for_FY22[[#This Row],[Rank]]&AAMC_Raw_Data_for_FY22[[#This Row],[Degree]]&AAMC_Raw_Data_for_FY22[[#This Row],[Department / Specialty]]&\"L\"","v":"AAMCAcademicPublicChairMDOB/GYN: GeneralL"},"OB/GYN: General",1,"AAMC","Academic","Public","Chair","MD","2021-2022",493622,{"$f":"(((AAMC_Raw_Data_for_FY22[[#This Row],[Median]]-AAMC_Raw_Data_for_FY22[[#This Row],[25th]])/25)*5) + AAMC_Raw_Data_for_FY22[[#This Row],[25th]]","v":509693.4},{"$f":"(((AAMC_Raw_Data_for_FY22[[#This Row],[Median]]-AAMC_Raw_Data_for_FY22[[#This Row],[25th]])/25)*10) + AAMC_Raw_Data_for_FY22[[#This Row],[25th]]","v":525764.80000000005},{"$f":"(((AAMC_Raw_Data_for_FY22[[#This Row],[Median]]-AAMC_Raw_Data_for_FY22[[#This Row],[25th]])/25)*15) + AAMC_Raw_Data_for_FY22[[#This Row],[25th]]","v":541836.19999999995},{"$f":"(((AAMC_Raw_Data_for_FY22[[#This Row],[Median]]-AAMC_Raw_Data_for_FY22[[#This Row],[25th]])/25)*20) + AAMC_Raw_Data_for_FY22[[#This Row],[25th]]","v":557907.6},573979,{"$f":"(((AAMC_Raw_Data_for_FY22[[#This Row],[75th]]-AAMC_Raw_Data_for_FY22[[#This Row],[Median]])/25)*5) + AAMC_Raw_Data_for_FY22[[#This Row],[Median]]","v":586203.19999999995},{"$f":"(((AAMC_Raw_Data_for_FY22[[#This Row],[75th]]-AAMC_Raw_Data_for_FY22[[#This Row],[Median]])/25)*10) + AAMC_Raw_Data_for_FY22[[#This Row],[Median]]","v":598427.4},{"$f":"(((AAMC_Raw_Data_for_FY22[[#This Row],[75th]]-AAMC_Raw_Data_for_FY22[[#This Row],[Median]])/25)*15) + AAMC_Raw_Data_for_FY22[[#This Row],[Median]]","v":610651.6},{"$f":"(((AAMC_Raw_Data_for_FY22[[#This Row],[75th]]-AAMC_Raw_Data_for_FY22[[#This Row],[Median]])/25)*20) + AAMC_Raw_Data_for_FY22[[#This Row],[Median]]","v":622875.80000000005},635100,{"$f":"(((AAMC_Raw_Data_for_FY22[[#This Row],[75th]]-AAMC_Raw_Data_for_FY22[[#This Row],[Median]])/25)*30) + AAMC_Raw_Data_for_FY22[[#This Row],[Median]]","v":647324.19999999995},{"$f":"(((AAMC_Raw_Data_for_FY22[[#This Row],[75th]]-AAMC_Raw_Data_for_FY22[[#This Row],[Median]])/25)*35) + AAMC_Raw_Data_for_FY22[[#This Row],[Median]]","v":659548.4},{"$f":"(((AAMC_Raw_Data_for_FY22[[#This Row],[75th]]-AAMC_Raw_Data_for_FY22[[#This Row],[Median]])/25)*40) + AAMC_Raw_Data_for_FY22[[#This Row],[Median]]","v":671772.6}]
[{"$f":"AAMC_Raw_Data_for_FY22[[#This Row],[Source]]&AAMC_Raw_Data_for_FY22[[#This Row],[Type]]&AAMC_Raw_Data_for_FY22[[#This Row],[School Subset]]&AAMC_Raw_Data_for_FY22[[#This Row],[Rank]]&AAMC_Raw_Data_for_FY22[[#This Row],[Degree]]&AAMC_Raw_Data_for_FY22[[#This Row],[Department / Specialty]]&\"L\"","v":"AAMCAcademicPublicInstructorMDOB/GYN: Gynecologic OncologyL"},"OB/GYN: Gynecologic Oncology",5,"AAMC","Academic","Public","Instructor","MD","2021-2022",null,{"$f":"(((AAMC_Raw_Data_for_FY22[[#This Row],[Median]]-AAMC_Raw_Data_for_FY22[[#This Row],[25th]])/25)*5) + AAMC_Raw_Data_for_FY22[[#This Row],[25th]]","v":0},{"$f":"(((AAMC_Raw_Data_for_FY22[[#This Row],[Median]]-AAMC_Raw_Data_for_FY22[[#This Row],[25th]])/25)*10) + AAMC_Raw_Data_for_FY22[[#This Row],[25th]]","v":0},{"$f":"(((AAMC_Raw_Data_for_FY22[[#This Row],[Median]]-AAMC_Raw_Data_for_FY22[[#This Row],[25th]])/25)*15) + AAMC_Raw_Data_for_FY22[[#This Row],[25th]]","v":0},{"$f":"(((AAMC_Raw_Data_for_FY22[[#This Row],[Median]]-AAMC_Raw_Data_for_FY22[[#This Row],[25th]])/25)*20) + AAMC_Raw_Data_for_FY22[[#This Row],[25th]]","v":0},null,{"$f":"(((AAMC_Raw_Data_for_FY22[[#This Row],[75th]]-AAMC_Raw_Data_for_FY22[[#This Row],[Median]])/25)*5) + AAMC_Raw_Data_for_FY22[[#This Row],[Median]]","v":0},{"$f":"(((AAMC_Raw_Data_for_FY22[[#This Row],[75th]]-AAMC_Raw_Data_for_FY22[[#This Row],[Median]])/25)*10) + AAMC_Raw_Data_for_FY22[[#This Row],[Median]]","v":0},{"$f":"(((AAMC_Raw_Data_for_FY22[[#This Row],[75th]]-AAMC_Raw_Data_for_FY22[[#This Row],[Median]])/25)*15) + AAMC_Raw_Data_for_FY22[[#This Row],[Median]]","v":0},{"$f":"(((AAMC_Raw_Data_for_FY22[[#This Row],[75th]]-AAMC_Raw_Data_for_FY22[[#This Row],[Median]])/25)*20) + AAMC_Raw_Data_for_FY22[[#This Row],[Median]]","v":0},null,{"$f":"(((AAMC_Raw_Data_for_FY22[[#This Row],[75th]]-AAMC_Raw_Data_for_FY22[[#This Row],[Median]])/25)*30) + AAMC_Raw_Data_for_FY22[[#This Row],[Median]]","v":0},{"$f":"(((AAMC_Raw_Data_for_FY22[[#This Row],[75th]]-AAMC_Raw_Data_for_FY22[[#This Row],[Median]])/25)*35) + AAMC_Raw_Data_for_FY22[[#This Row],[Median]]","v":0},{"$f":"(((AAMC_Raw_Data_for_FY22[[#This Row],[75th]]-AAMC_Raw_Data_for_FY22[[#This Row],[Median]])/25)*40) + AAMC_Raw_Data_for_FY22[[#This Row],[Median]]","v":0}]
[{"$f":"AAMC_Raw_Data_for_FY22[[#This Row],[Source]]&AAMC_Raw_Data_for_FY22[[#This Row],[Type]]&AAMC_Raw_Data_for_FY22[[#This Row],[School Subset]]&AAMC_Raw_Data_for_FY22[[#This Row],[Rank]]&AAMC_Raw_Data_for_FY22[[#This Row],[Degree]]&AAMC_Raw_Data_for_FY22[[#This Row],[Department / Specialty]]&\"L\"","v":"AAMCAcademicPublicAssistantMDOB/GYN: Gynecologic OncologyL"},"OB/GYN: Gynecologic Oncology",4,"AAMC","Academic","Public","Assistant","MD","2021-2022",331479,{"$f":"(((AAMC_Raw_Data_for_FY22[[#This Row],[Median]]-AAMC_Raw_Data_for_FY22[[#This Row],[25th]])/25)*5) + AAMC_Raw_Data_for_FY22[[#This Row],[25th]]","v":335272.8},{"$f":"(((AAMC_Raw_Data_for_FY22[[#This Row],[Median]]-AAMC_Raw_Data_for_FY22[[#This Row],[25th]])/25)*10) + AAMC_Raw_Data_for_FY22[[#This Row],[25th]]","v":339066.6},{"$f":"(((AAMC_Raw_Data_for_FY22[[#This Row],[Median]]-AAMC_Raw_Data_for_FY22[[#This Row],[25th]])/25)*15) + AAMC_Raw_Data_for_FY22[[#This Row],[25th]]","v":342860.4},{"$f":"(((AAMC_Raw_Data_for_FY22[[#This Row],[Median]]-AAMC_Raw_Data_for_FY22[[#This Row],[25th]])/25)*20) + AAMC_Raw_Data_for_FY22[[#This Row],[25th]]","v":346654.2},350448,{"$f":"(((AAMC_Raw_Data_for_FY22[[#This Row],[75th]]-AAMC_Raw_Data_for_FY22[[#This Row],[Median]])/25)*5) + AAMC_Raw_Data_for_FY22[[#This Row],[Median]]","v":361130.8},{"$f":"(((AAMC_Raw_Data_for_FY22[[#This Row],[75th]]-AAMC_Raw_Data_for_FY22[[#This Row],[Median]])/25)*10) + AAMC_Raw_Data_for_FY22[[#This Row],[Median]]","v":371813.6},{"$f":"(((AAMC_Raw_Data_for_FY22[[#This Row],[75th]]-AAMC_Raw_Data_for_FY22[[#This Row],[Median]])/25)*15) + AAMC_Raw_Data_for_FY22[[#This Row],[Median]]","v":382496.4},{"$f":"(((AAMC_Raw_Data_for_FY22[[#This Row],[75th]]-AAMC_Raw_Data_for_FY22[[#This Row],[Median]])/25)*20) + AAMC_Raw_Data_for_FY22[[#This Row],[Median]]","v":393179.2},403862,{"$f":"(((AAMC_Raw_Data_for_FY22[[#This Row],[75th]]-AAMC_Raw_Data_for_FY22[[#This Row],[Median]])/25)*30) + AAMC_Raw_Data_for_FY22[[#This Row],[Median]]","v":414544.8},{"$f":"(((AAMC_Raw_Data_for_FY22[[#This Row],[75th]]-AAMC_Raw_Data_for_FY22[[#This Row],[Median]])/25)*35) + AAMC_Raw_Data_for_FY22[[#This Row],[Median]]","v":425227.6},{"$f":"(((AAMC_Raw_Data_for_FY22[[#This Row],[75th]]-AAMC_Raw_Data_for_FY22[[#This Row],[Median]])/25)*40) + AAMC_Raw_Data_for_FY22[[#This Row],[Median]]","v":435910.40000000002}]
[{"$f":"AAMC_Raw_Data_for_FY22[[#This Row],[Source]]&AAMC_Raw_Data_for_FY22[[#This Row],[Type]]&AAMC_Raw_Data_for_FY22[[#This Row],[School Subset]]&AAMC_Raw_Data_for_FY22[[#This Row],[Rank]]&AAMC_Raw_Data_for_FY22[[#This Row],[Degree]]&AAMC_Raw_Data_for_FY22[[#This Row],[Department / Specialty]]&\"L\"","v":"AAMCAcademicPublicAssociateMDOB/GYN: Gynecologic OncologyL"},"OB/GYN: Gynecologic Oncology",3,"AAMC","Academic","Public","Associate","MD","2021-2022",377676,{"$f":"(((AAMC_Raw_Data_for_FY22[[#This Row],[Median]]-AAMC_Raw_Data_for_FY22[[#This Row],[25th]])/25)*5) + AAMC_Raw_Data_for_FY22[[#This Row],[25th]]","v":384143.4},{"$f":"(((AAMC_Raw_Data_for_FY22[[#This Row],[Median]]-AAMC_Raw_Data_for_FY22[[#This Row],[25th]])/25)*10) + AAMC_Raw_Data_for_FY22[[#This Row],[25th]]","v":390610.8},{"$f":"(((AAMC_Raw_Data_for_FY22[[#This Row],[Median]]-AAMC_Raw_Data_for_FY22[[#This Row],[25th]])/25)*15) + AAMC_Raw_Data_for_FY22[[#This Row],[25th]]","v":397078.2},{"$f":"(((AAMC_Raw_Data_for_FY22[[#This Row],[Median]]-AAMC_Raw_Data_for_FY22[[#This Row],[25th]])/25)*20) + AAMC_Raw_Data_for_FY22[[#This Row],[25th]]","v":403545.59999999998},410013,{"$f":"(((AAMC_Raw_Data_for_FY22[[#This Row],[75th]]-AAMC_Raw_Data_for_FY22[[#This Row],[Median]])/25)*5) + AAMC_Raw_Data_for_FY22[[#This Row],[Median]]","v":426953.4},{"$f":"(((AAMC_Raw_Data_for_FY22[[#This Row],[75th]]-AAMC_Raw_Data_for_FY22[[#This Row],[Median]])/25)*10) + AAMC_Raw_Data_for_FY22[[#This Row],[Median]]","v":443893.8},{"$f":"(((AAMC_Raw_Data_for_FY22[[#This Row],[75th]]-AAMC_Raw_Data_for_FY22[[#This Row],[Median]])/25)*15) + AAMC_Raw_Data_for_FY22[[#This Row],[Median]]","v":460834.2},{"$f":"(((AAMC_Raw_Data_for_FY22[[#This Row],[75th]]-AAMC_Raw_Data_for_FY22[[#This Row],[Median]])/25)*20) + AAMC_Raw_Data_for_FY22[[#This Row],[Median]]","v":477774.6},494715,{"$f":"(((AAMC_Raw_Data_for_FY22[[#This Row],[75th]]-AAMC_Raw_Data_for_FY22[[#This Row],[Median]])/25)*30) + AAMC_Raw_Data_for_FY22[[#This Row],[Median]]","v":511655.4},{"$f":"(((AAMC_Raw_Data_for_FY22[[#This Row],[75th]]-AAMC_Raw_Data_for_FY22[[#This Row],[Median]])/25)*35) + AAMC_Raw_Data_for_FY22[[#This Row],[Median]]","v":528595.80000000005},{"$f":"(((AAMC_Raw_Data_for_FY22[[#This Row],[75th]]-AAMC_Raw_Data_for_FY22[[#This Row],[Median]])/25)*40) + AAMC_Raw_Data_for_FY22[[#This Row],[Median]]","v":545536.19999999995}]
[{"$f":"AAMC_Raw_Data_for_FY22[[#This Row],[Source]]&AAMC_Raw_Data_for_FY22[[#This Row],[Type]]&AAMC_Raw_Data_for_FY22[[#This Row],[School Subset]]&AAMC_Raw_Data_for_FY22[[#This Row],[Rank]]&AAMC_Raw_Data_for_FY22[[#This Row],[Degree]]&AAMC_Raw_Data_for_FY22[[#This Row],[Department / Specialty]]&\"L\"","v":"AAMCAcademicPublicProfessorMDOB/GYN: Gynecologic OncologyL"},"OB/GYN: Gynecologic Oncology",2,"AAMC","Academic","Public","Professor","MD","2021-2022",422657,{"$f":"(((AAMC_Raw_Data_for_FY22[[#This Row],[Median]]-AAMC_Raw_Data_for_FY22[[#This Row],[25th]])/25)*5) + AAMC_Raw_Data_for_FY22[[#This Row],[25th]]","v":434468.6},{"$f":"(((AAMC_Raw_Data_for_FY22[[#This Row],[Median]]-AAMC_Raw_Data_for_FY22[[#This Row],[25th]])/25)*10) + AAMC_Raw_Data_for_FY22[[#This Row],[25th]]","v":446280.2},{"$f":"(((AAMC_Raw_Data_for_FY22[[#This Row],[Median]]-AAMC_Raw_Data_for_FY22[[#This Row],[25th]])/25)*15) + AAMC_Raw_Data_for_FY22[[#This Row],[25th]]","v":458091.8},{"$f":"(((AAMC_Raw_Data_for_FY22[[#This Row],[Median]]-AAMC_Raw_Data_for_FY22[[#This Row],[25th]])/25)*20) + AAMC_Raw_Data_for_FY22[[#This Row],[25th]]","v":469903.4},481715,{"$f":"(((AAMC_Raw_Data_for_FY22[[#This Row],[75th]]-AAMC_Raw_Data_for_FY22[[#This Row],[Median]])/25)*5) + AAMC_Raw_Data_for_FY22[[#This Row],[Median]]","v":503298},{"$f":"(((AAMC_Raw_Data_for_FY22[[#This Row],[75th]]-AAMC_Raw_Data_for_FY22[[#This Row],[Median]])/25)*10) + AAMC_Raw_Data_for_FY22[[#This Row],[Median]]","v":524881},{"$f":"(((AAMC_Raw_Data_for_FY22[[#This Row],[75th]]-AAMC_Raw_Data_for_FY22[[#This Row],[Median]])/25)*15) + AAMC_Raw_Data_for_FY22[[#This Row],[Median]]","v":546464},{"$f":"(((AAMC_Raw_Data_for_FY22[[#This Row],[75th]]-AAMC_Raw_Data_for_FY22[[#This Row],[Median]])/25)*20) + AAMC_Raw_Data_for_FY22[[#This Row],[Median]]","v":568047},589630,{"$f":"(((AAMC_Raw_Data_for_FY22[[#This Row],[75th]]-AAMC_Raw_Data_for_FY22[[#This Row],[Median]])/25)*30) + AAMC_Raw_Data_for_FY22[[#This Row],[Median]]","v":611213},{"$f":"(((AAMC_Raw_Data_for_FY22[[#This Row],[75th]]-AAMC_Raw_Data_for_FY22[[#This Row],[Median]])/25)*35) + AAMC_Raw_Data_for_FY22[[#This Row],[Median]]","v":632796},{"$f":"(((AAMC_Raw_Data_for_FY22[[#This Row],[75th]]-AAMC_Raw_Data_for_FY22[[#This Row],[Median]])/25)*40) + AAMC_Raw_Data_for_FY22[[#This Row],[Median]]","v":654379}]
[{"$f":"AAMC_Raw_Data_for_FY22[[#This Row],[Source]]&AAMC_Raw_Data_for_FY22[[#This Row],[Type]]&AAMC_Raw_Data_for_FY22[[#This Row],[School Subset]]&AAMC_Raw_Data_for_FY22[[#This Row],[Rank]]&AAMC_Raw_Data_for_FY22[[#This Row],[Degree]]&AAMC_Raw_Data_for_FY22[[#This Row],[Department / Specialty]]&\"L\"","v":"AAMCAcademicPublicChiefMDOB/GYN: Gynecologic OncologyL"},"OB/GYN: Gynecologic Oncology",6,"AAMC","Academic","Public","Chief","MD","2021-2022",427677,{"$f":"(((AAMC_Raw_Data_for_FY22[[#This Row],[Median]]-AAMC_Raw_Data_for_FY22[[#This Row],[25th]])/25)*5) + AAMC_Raw_Data_for_FY22[[#This Row],[25th]]","v":442767.4},{"$f":"(((AAMC_Raw_Data_for_FY22[[#This Row],[Median]]-AAMC_Raw_Data_for_FY22[[#This Row],[25th]])/25)*10) + AAMC_Raw_Data_for_FY22[[#This Row],[25th]]","v":457857.8},{"$f":"(((AAMC_Raw_Data_for_FY22[[#This Row],[Median]]-AAMC_Raw_Data_for_FY22[[#This Row],[25th]])/25)*15) + AAMC_Raw_Data_for_FY22[[#This Row],[25th]]","v":472948.2},{"$f":"(((AAMC_Raw_Data_for_FY22[[#This Row],[Median]]-AAMC_Raw_Data_for_FY22[[#This Row],[25th]])/25)*20) + AAMC_Raw_Data_for_FY22[[#This Row],[25th]]","v":488038.6},503129,{"$f":"(((AAMC_Raw_Data_for_FY22[[#This Row],[75th]]-AAMC_Raw_Data_for_FY22[[#This Row],[Median]])/25)*5) + AAMC_Raw_Data_for_FY22[[#This Row],[Median]]","v":531287.19999999995},{"$f":"(((AAMC_Raw_Data_for_FY22[[#This Row],[75th]]-AAMC_Raw_Data_for_FY22[[#This Row],[Median]])/25)*10) + AAMC_Raw_Data_for_FY22[[#This Row],[Median]]","v":559445.4},{"$f":"(((AAMC_Raw_Data_for_FY22[[#This Row],[75th]]-AAMC_Raw_Data_for_FY22[[#This Row],[Median]])/25)*15) + AAMC_Raw_Data_for_FY22[[#This Row],[Median]]","v":587603.6},{"$f":"(((AAMC_Raw_Data_for_FY22[[#This Row],[75th]]-AAMC_Raw_Data_for_FY22[[#This Row],[Median]])/25)*20) + AAMC_Raw_Data_for_FY22[[#This Row],[Median]]","v":615761.80000000005},643920,{"$f":"(((AAMC_Raw_Data_for_FY22[[#This Row],[75th]]-AAMC_Raw_Data_for_FY22[[#This Row],[Median]])/25)*30) + AAMC_Raw_Data_for_FY22[[#This Row],[Median]]","v":672078.2},{"$f":"(((AAMC_Raw_Data_for_FY22[[#This Row],[75th]]-AAMC_Raw_Data_for_FY22[[#This Row],[Median]])/25)*35) + AAMC_Raw_Data_for_FY22[[#This Row],[Median]]","v":700236.4},{"$f":"(((AAMC_Raw_Data_for_FY22[[#This Row],[75th]]-AAMC_Raw_Data_for_FY22[[#This Row],[Median]])/25)*40) + AAMC_Raw_Data_for_FY22[[#This Row],[Median]]","v":728394.6}]
[{"$f":"AAMC_Raw_Data_for_FY22[[#This Row],[Source]]&AAMC_Raw_Data_for_FY22[[#This Row],[Type]]&AAMC_Raw_Data_for_FY22[[#This Row],[School Subset]]&AAMC_Raw_Data_for_FY22[[#This Row],[Rank]]&AAMC_Raw_Data_for_FY22[[#This Row],[Degree]]&AAMC_Raw_Data_for_FY22[[#This Row],[Department / Specialty]]&\"L\"","v":"AAMCAcademicPublicChairMDOB/GYN: Gynecologic OncologyL"},"OB/GYN: Gynecologic Oncology",1,"AAMC","Academic","Public","Chair","MD","2021-2022",633007,{"$f":"(((AAMC_Raw_Data_for_FY22[[#This Row],[Median]]-AAMC_Raw_Data_for_FY22[[#This Row],[25th]])/25)*5) + AAMC_Raw_Data_for_FY22[[#This Row],[25th]]","v":634587.4},{"$f":"(((AAMC_Raw_Data_for_FY22[[#This Row],[Median]]-AAMC_Raw_Data_for_FY22[[#This Row],[25th]])/25)*10) + AAMC_Raw_Data_for_FY22[[#This Row],[25th]]","v":636167.80000000005},{"$f":"(((AAMC_Raw_Data_for_FY22[[#This Row],[Median]]-AAMC_Raw_Data_for_FY22[[#This Row],[25th]])/25)*15) + AAMC_Raw_Data_for_FY22[[#This Row],[25th]]","v":637748.19999999995},{"$f":"(((AAMC_Raw_Data_for_FY22[[#This Row],[Median]]-AAMC_Raw_Data_for_FY22[[#This Row],[25th]])/25)*20) + AAMC_Raw_Data_for_FY22[[#This Row],[25th]]","v":639328.6},640909,{"$f":"(((AAMC_Raw_Data_for_FY22[[#This Row],[75th]]-AAMC_Raw_Data_for_FY22[[#This Row],[Median]])/25)*5) + AAMC_Raw_Data_for_FY22[[#This Row],[Median]]","v":650877.80000000005},{"$f":"(((AAMC_Raw_Data_for_FY22[[#This Row],[75th]]-AAMC_Raw_Data_for_FY22[[#This Row],[Median]])/25)*10) + AAMC_Raw_Data_for_FY22[[#This Row],[Median]]","v":660846.6},{"$f":"(((AAMC_Raw_Data_for_FY22[[#This Row],[75th]]-AAMC_Raw_Data_for_FY22[[#This Row],[Median]])/25)*15) + AAMC_Raw_Data_for_FY22[[#This Row],[Median]]","v":670815.4},{"$f":"(((AAMC_Raw_Data_for_FY22[[#This Row],[75th]]-AAMC_Raw_Data_for_FY22[[#This Row],[Median]])/25)*20) + AAMC_Raw_Data_for_FY22[[#This Row],[Median]]","v":680784.2},690753,{"$f":"(((AAMC_Raw_Data_for_FY22[[#This Row],[75th]]-AAMC_Raw_Data_for_FY22[[#This Row],[Median]])/25)*30) + AAMC_Raw_Data_for_FY22[[#This Row],[Median]]","v":700721.8},{"$f":"(((AAMC_Raw_Data_for_FY22[[#This Row],[75th]]-AAMC_Raw_Data_for_FY22[[#This Row],[Median]])/25)*35) + AAMC_Raw_Data_for_FY22[[#This Row],[Median]]","v":710690.6},{"$f":"(((AAMC_Raw_Data_for_FY22[[#This Row],[75th]]-AAMC_Raw_Data_for_FY22[[#This Row],[Median]])/25)*40) + AAMC_Raw_Data_for_FY22[[#This Row],[Median]]","v":720659.4}]
[{"$f":"AAMC_Raw_Data_for_FY22[[#This Row],[Source]]&AAMC_Raw_Data_for_FY22[[#This Row],[Type]]&AAMC_Raw_Data_for_FY22[[#This Row],[School Subset]]&AAMC_Raw_Data_for_FY22[[#This Row],[Rank]]&AAMC_Raw_Data_for_FY22[[#This Row],[Degree]]&AAMC_Raw_Data_for_FY22[[#This Row],[Department / Specialty]]&\"L\"","v":"AAMCAcademicPublicInstructorMDOB/GYN: Maternal & FetalL"},"OB/GYN: Maternal & Fetal",5,"AAMC","Academic","Public","Instructor","MD","2021-2022",null,{"$f":"(((AAMC_Raw_Data_for_FY22[[#This Row],[Median]]-AAMC_Raw_Data_for_FY22[[#This Row],[25th]])/25)*5) + AAMC_Raw_Data_for_FY22[[#This Row],[25th]]","v":0},{"$f":"(((AAMC_Raw_Data_for_FY22[[#This Row],[Median]]-AAMC_Raw_Data_for_FY22[[#This Row],[25th]])/25)*10) + AAMC_Raw_Data_for_FY22[[#This Row],[25th]]","v":0},{"$f":"(((AAMC_Raw_Data_for_FY22[[#This Row],[Median]]-AAMC_Raw_Data_for_FY22[[#This Row],[25th]])/25)*15) + AAMC_Raw_Data_for_FY22[[#This Row],[25th]]","v":0},{"$f":"(((AAMC_Raw_Data_for_FY22[[#This Row],[Median]]-AAMC_Raw_Data_for_FY22[[#This Row],[25th]])/25)*20) + AAMC_Raw_Data_for_FY22[[#This Row],[25th]]","v":0},null,{"$f":"(((AAMC_Raw_Data_for_FY22[[#This Row],[75th]]-AAMC_Raw_Data_for_FY22[[#This Row],[Median]])/25)*5) + AAMC_Raw_Data_for_FY22[[#This Row],[Median]]","v":0},{"$f":"(((AAMC_Raw_Data_for_FY22[[#This Row],[75th]]-AAMC_Raw_Data_for_FY22[[#This Row],[Median]])/25)*10) + AAMC_Raw_Data_for_FY22[[#This Row],[Median]]","v":0},{"$f":"(((AAMC_Raw_Data_for_FY22[[#This Row],[75th]]-AAMC_Raw_Data_for_FY22[[#This Row],[Median]])/25)*15) + AAMC_Raw_Data_for_FY22[[#This Row],[Median]]","v":0},{"$f":"(((AAMC_Raw_Data_for_FY22[[#This Row],[75th]]-AAMC_Raw_Data_for_FY22[[#This Row],[Median]])/25)*20) + AAMC_Raw_Data_for_FY22[[#This Row],[Median]]","v":0},null,{"$f":"(((AAMC_Raw_Data_for_FY22[[#This Row],[75th]]-AAMC_Raw_Data_for_FY22[[#This Row],[Median]])/25)*30) + AAMC_Raw_Data_for_FY22[[#This Row],[Median]]","v":0},{"$f":"(((AAMC_Raw_Data_for_FY22[[#This Row],[75th]]-AAMC_Raw_Data_for_FY22[[#This Row],[Median]])/25)*35) + AAMC_Raw_Data_for_FY22[[#This Row],[Median]]","v":0},{"$f":"(((AAMC_Raw_Data_for_FY22[[#This Row],[75th]]-AAMC_Raw_Data_for_FY22[[#This Row],[Median]])/25)*40) + AAMC_Raw_Data_for_FY22[[#This Row],[Median]]","v":0}]
[{"$f":"AAMC_Raw_Data_for_FY22[[#This Row],[Source]]&AAMC_Raw_Data_for_FY22[[#This Row],[Type]]&AAMC_Raw_Data_for_FY22[[#This Row],[School Subset]]&AAMC_Raw_Data_for_FY22[[#This Row],[Rank]]&AAMC_Raw_Data_for_FY22[[#This Row],[Degree]]&AAMC_Raw_Data_for_FY22[[#This Row],[Department / Specialty]]&\"L\"","v":"AAMCAcademicPublicAssistantMDOB/GYN: Maternal & FetalL"},"OB/GYN: Maternal & Fetal",4,"AAMC","Academic","Public","Assistant","MD","2021-2022",333237,{"$f":"(((AAMC_Raw_Data_for_FY22[[#This Row],[Median]]-AAMC_Raw_Data_for_FY22[[#This Row],[25th]])/25)*5) + AAMC_Raw_Data_for_FY22[[#This Row],[25th]]","v":341614},{"$f":"(((AAMC_Raw_Data_for_FY22[[#This Row],[Median]]-AAMC_Raw_Data_for_FY22[[#This Row],[25th]])/25)*10) + AAMC_Raw_Data_for_FY22[[#This Row],[25th]]","v":349991},{"$f":"(((AAMC_Raw_Data_for_FY22[[#This Row],[Median]]-AAMC_Raw_Data_for_FY22[[#This Row],[25th]])/25)*15) + AAMC_Raw_Data_for_FY22[[#This Row],[25th]]","v":358368},{"$f":"(((AAMC_Raw_Data_for_FY22[[#This Row],[Median]]-AAMC_Raw_Data_for_FY22[[#This Row],[25th]])/25)*20) + AAMC_Raw_Data_for_FY22[[#This Row],[25th]]","v":366745},375122,{"$f":"(((AAMC_Raw_Data_for_FY22[[#This Row],[75th]]-AAMC_Raw_Data_for_FY22[[#This Row],[Median]])/25)*5) + AAMC_Raw_Data_for_FY22[[#This Row],[Median]]","v":388752.8},{"$f":"(((AAMC_Raw_Data_for_FY22[[#This Row],[75th]]-AAMC_Raw_Data_for_FY22[[#This Row],[Median]])/25)*10) + AAMC_Raw_Data_for_FY22[[#This Row],[Median]]","v":402383.6},{"$f":"(((AAMC_Raw_Data_for_FY22[[#This Row],[75th]]-AAMC_Raw_Data_for_FY22[[#This Row],[Median]])/25)*15) + AAMC_Raw_Data_for_FY22[[#This Row],[Median]]","v":416014.4},{"$f":"(((AAMC_Raw_Data_for_FY22[[#This Row],[75th]]-AAMC_Raw_Data_for_FY22[[#This Row],[Median]])/25)*20) + AAMC_Raw_Data_for_FY22[[#This Row],[Median]]","v":429645.2},443276,{"$f":"(((AAMC_Raw_Data_for_FY22[[#This Row],[75th]]-AAMC_Raw_Data_for_FY22[[#This Row],[Median]])/25)*30) + AAMC_Raw_Data_for_FY22[[#This Row],[Median]]","v":456906.8},{"$f":"(((AAMC_Raw_Data_for_FY22[[#This Row],[75th]]-AAMC_Raw_Data_for_FY22[[#This Row],[Median]])/25)*35) + AAMC_Raw_Data_for_FY22[[#This Row],[Median]]","v":470537.6},{"$f":"(((AAMC_Raw_Data_for_FY22[[#This Row],[75th]]-AAMC_Raw_Data_for_FY22[[#This Row],[Median]])/25)*40) + AAMC_Raw_Data_for_FY22[[#This Row],[Median]]","v":484168.4}]
[{"$f":"AAMC_Raw_Data_for_FY22[[#This Row],[Source]]&AAMC_Raw_Data_for_FY22[[#This Row],[Type]]&AAMC_Raw_Data_for_FY22[[#This Row],[School Subset]]&AAMC_Raw_Data_for_FY22[[#This Row],[Rank]]&AAMC_Raw_Data_for_FY22[[#This Row],[Degree]]&AAMC_Raw_Data_for_FY22[[#This Row],[Department / Specialty]]&\"L\"","v":"AAMCAcademicPublicAssociateMDOB/GYN: Maternal & FetalL"},"OB/GYN: Maternal & Fetal",3,"AAMC","Academic","Public","Associate","MD","2021-2022",414696,{"$f":"(((AAMC_Raw_Data_for_FY22[[#This Row],[Median]]-AAMC_Raw_Data_for_FY22[[#This Row],[25th]])/25)*5) + AAMC_Raw_Data_for_FY22[[#This Row],[25th]]","v":426026.6},{"$f":"(((AAMC_Raw_Data_for_FY22[[#This Row],[Median]]-AAMC_Raw_Data_for_FY22[[#This Row],[25th]])/25)*10) + AAMC_Raw_Data_for_FY22[[#This Row],[25th]]","v":437357.2},{"$f":"(((AAMC_Raw_Data_for_FY22[[#This Row],[Median]]-AAMC_Raw_Data_for_FY22[[#This Row],[25th]])/25)*15) + AAMC_Raw_Data_for_FY22[[#This Row],[25th]]","v":448687.8},{"$f":"(((AAMC_Raw_Data_for_FY22[[#This Row],[Median]]-AAMC_Raw_Data_for_FY22[[#This Row],[25th]])/25)*20) + AAMC_Raw_Data_for_FY22[[#This Row],[25th]]","v":460018.4},471349,{"$f":"(((AAMC_Raw_Data_for_FY22[[#This Row],[75th]]-AAMC_Raw_Data_for_FY22[[#This Row],[Median]])/25)*5) + AAMC_Raw_Data_for_FY22[[#This Row],[Median]]","v":483572.2},{"$f":"(((AAMC_Raw_Data_for_FY22[[#This Row],[75th]]-AAMC_Raw_Data_for_FY22[[#This Row],[Median]])/25)*10) + AAMC_Raw_Data_for_FY22[[#This Row],[Median]]","v":495795.4},{"$f":"(((AAMC_Raw_Data_for_FY22[[#This Row],[75th]]-AAMC_Raw_Data_for_FY22[[#This Row],[Median]])/25)*15) + AAMC_Raw_Data_for_FY22[[#This Row],[Median]]","v":508018.6},{"$f":"(((AAMC_Raw_Data_for_FY22[[#This Row],[75th]]-AAMC_Raw_Data_for_FY22[[#This Row],[Median]])/25)*20) + AAMC_Raw_Data_for_FY22[[#This Row],[Median]]","v":520241.8},532465,{"$f":"(((AAMC_Raw_Data_for_FY22[[#This Row],[75th]]-AAMC_Raw_Data_for_FY22[[#This Row],[Median]])/25)*30) + AAMC_Raw_Data_for_FY22[[#This Row],[Median]]","v":544688.19999999995},{"$f":"(((AAMC_Raw_Data_for_FY22[[#This Row],[75th]]-AAMC_Raw_Data_for_FY22[[#This Row],[Median]])/25)*35) + AAMC_Raw_Data_for_FY22[[#This Row],[Median]]","v":556911.4},{"$f":"(((AAMC_Raw_Data_for_FY22[[#This Row],[75th]]-AAMC_Raw_Data_for_FY22[[#This Row],[Median]])/25)*40) + AAMC_Raw_Data_for_FY22[[#This Row],[Median]]","v":569134.6}]
[{"$f":"AAMC_Raw_Data_for_FY22[[#This Row],[Source]]&AAMC_Raw_Data_for_FY22[[#This Row],[Type]]&AAMC_Raw_Data_for_FY22[[#This Row],[School Subset]]&AAMC_Raw_Data_for_FY22[[#This Row],[Rank]]&AAMC_Raw_Data_for_FY22[[#This Row],[Degree]]&AAMC_Raw_Data_for_FY22[[#This Row],[Department / Specialty]]&\"L\"","v":"AAMCAcademicPublicProfessorMDOB/GYN: Maternal & FetalL"},"OB/GYN: Maternal & Fetal",2,"AAMC","Academic","Public","Professor","MD","2021-2022",397585,{"$f":"(((AAMC_Raw_Data_for_FY22[[#This Row],[Median]]-AAMC_Raw_Data_for_FY22[[#This Row],[25th]])/25)*5) + AAMC_Raw_Data_for_FY22[[#This Row],[25th]]","v":415131.2},{"$f":"(((AAMC_Raw_Data_for_FY22[[#This Row],[Median]]-AAMC_Raw_Data_for_FY22[[#This Row],[25th]])/25)*10) + AAMC_Raw_Data_for_FY22[[#This Row],[25th]]","v":432677.4},{"$f":"(((AAMC_Raw_Data_for_FY22[[#This Row],[Median]]-AAMC_Raw_Data_for_FY22[[#This Row],[25th]])/25)*15) + AAMC_Raw_Data_for_FY22[[#This Row],[25th]]","v":450223.6},{"$f":"(((AAMC_Raw_Data_for_FY22[[#This Row],[Median]]-AAMC_Raw_Data_for_FY22[[#This Row],[25th]])/25)*20) + AAMC_Raw_Data_for_FY22[[#This Row],[25th]]","v":467769.8},485316,{"$f":"(((AAMC_Raw_Data_for_FY22[[#This Row],[75th]]-AAMC_Raw_Data_for_FY22[[#This Row],[Median]])/25)*5) + AAMC_Raw_Data_for_FY22[[#This Row],[Median]]","v":504790.4},{"$f":"(((AAMC_Raw_Data_for_FY22[[#This Row],[75th]]-AAMC_Raw_Data_for_FY22[[#This Row],[Median]])/25)*10) + AAMC_Raw_Data_for_FY22[[#This Row],[Median]]","v":524264.8},{"$f":"(((AAMC_Raw_Data_for_FY22[[#This Row],[75th]]-AAMC_Raw_Data_for_FY22[[#This Row],[Median]])/25)*15) + AAMC_Raw_Data_for_FY22[[#This Row],[Median]]","v":543739.19999999995},{"$f":"(((AAMC_Raw_Data_for_FY22[[#This Row],[75th]]-AAMC_Raw_Data_for_FY22[[#This Row],[Median]])/25)*20) + AAMC_Raw_Data_for_FY22[[#This Row],[Median]]","v":563213.6},582688,{"$f":"(((AAMC_Raw_Data_for_FY22[[#This Row],[75th]]-AAMC_Raw_Data_for_FY22[[#This Row],[Median]])/25)*30) + AAMC_Raw_Data_for_FY22[[#This Row],[Median]]","v":602162.4},{"$f":"(((AAMC_Raw_Data_for_FY22[[#This Row],[75th]]-AAMC_Raw_Data_for_FY22[[#This Row],[Median]])/25)*35) + AAMC_Raw_Data_for_FY22[[#This Row],[Median]]","v":621636.80000000005},{"$f":"(((AAMC_Raw_Data_for_FY22[[#This Row],[75th]]-AAMC_Raw_Data_for_FY22[[#This Row],[Median]])/25)*40) + AAMC_Raw_Data_for_FY22[[#This Row],[Median]]","v":641111.19999999995}]
[{"$f":"AAMC_Raw_Data_for_FY22[[#This Row],[Source]]&AAMC_Raw_Data_for_FY22[[#This Row],[Type]]&AAMC_Raw_Data_for_FY22[[#This Row],[School Subset]]&AAMC_Raw_Data_for_FY22[[#This Row],[Rank]]&AAMC_Raw_Data_for_FY22[[#This Row],[Degree]]&AAMC_Raw_Data_for_FY22[[#This Row],[Department / Specialty]]&\"L\"","v":"AAMCAcademicPublicChiefMDOB/GYN: Maternal & FetalL"},"OB/GYN: Maternal & Fetal",6,"AAMC","Academic","Public","Chief","MD","2021-2022",474284,{"$f":"(((AAMC_Raw_Data_for_FY22[[#This Row],[Median]]-AAMC_Raw_Data_for_FY22[[#This Row],[25th]])/25)*5) + AAMC_Raw_Data_for_FY22[[#This Row],[25th]]","v":487821.4},{"$f":"(((AAMC_Raw_Data_for_FY22[[#This Row],[Median]]-AAMC_Raw_Data_for_FY22[[#This Row],[25th]])/25)*10) + AAMC_Raw_Data_for_FY22[[#This Row],[25th]]","v":501358.8},{"$f":"(((AAMC_Raw_Data_for_FY22[[#This Row],[Median]]-AAMC_Raw_Data_for_FY22[[#This Row],[25th]])/25)*15) + AAMC_Raw_Data_for_FY22[[#This Row],[25th]]","v":514896.2},{"$f":"(((AAMC_Raw_Data_for_FY22[[#This Row],[Median]]-AAMC_Raw_Data_for_FY22[[#This Row],[25th]])/25)*20) + AAMC_Raw_Data_for_FY22[[#This Row],[25th]]","v":528433.6},541971,{"$f":"(((AAMC_Raw_Data_for_FY22[[#This Row],[75th]]-AAMC_Raw_Data_for_FY22[[#This Row],[Median]])/25)*5) + AAMC_Raw_Data_for_FY22[[#This Row],[Median]]","v":547442.19999999995},{"$f":"(((AAMC_Raw_Data_for_FY22[[#This Row],[75th]]-AAMC_Raw_Data_for_FY22[[#This Row],[Median]])/25)*10) + AAMC_Raw_Data_for_FY22[[#This Row],[Median]]","v":552913.4},{"$f":"(((AAMC_Raw_Data_for_FY22[[#This Row],[75th]]-AAMC_Raw_Data_for_FY22[[#This Row],[Median]])/25)*15) + AAMC_Raw_Data_for_FY22[[#This Row],[Median]]","v":558384.6},{"$f":"(((AAMC_Raw_Data_for_FY22[[#This Row],[75th]]-AAMC_Raw_Data_for_FY22[[#This Row],[Median]])/25)*20) + AAMC_Raw_Data_for_FY22[[#This Row],[Median]]","v":563855.80000000005},569327,{"$f":"(((AAMC_Raw_Data_for_FY22[[#This Row],[75th]]-AAMC_Raw_Data_for_FY22[[#This Row],[Median]])/25)*30) + AAMC_Raw_Data_for_FY22[[#This Row],[Median]]","v":574798.19999999995},{"$f":"(((AAMC_Raw_Data_for_FY22[[#This Row],[75th]]-AAMC_Raw_Data_for_FY22[[#This Row],[Median]])/25)*35) + AAMC_Raw_Data_for_FY22[[#This Row],[Median]]","v":580269.4},{"$f":"(((AAMC_Raw_Data_for_FY22[[#This Row],[75th]]-AAMC_Raw_Data_for_FY22[[#This Row],[Median]])/25)*40) + AAMC_Raw_Data_for_FY22[[#This Row],[Median]]","v":585740.6}]
[{"$f":"AAMC_Raw_Data_for_FY22[[#This Row],[Source]]&AAMC_Raw_Data_for_FY22[[#This Row],[Type]]&AAMC_Raw_Data_for_FY22[[#This Row],[School Subset]]&AAMC_Raw_Data_for_FY22[[#This Row],[Rank]]&AAMC_Raw_Data_for_FY22[[#This Row],[Degree]]&AAMC_Raw_Data_for_FY22[[#This Row],[Department / Specialty]]&\"L\"","v":"AAMCAcademicPublicChairMDOB/GYN: Maternal & FetalL"},"OB/GYN: Maternal & Fetal",1,"AAMC","Academic","Public","Chair","MD","2021-2022",516235,{"$f":"(((AAMC_Raw_Data_for_FY22[[#This Row],[Median]]-AAMC_Raw_Data_for_FY22[[#This Row],[25th]])/25)*5) + AAMC_Raw_Data_for_FY22[[#This Row],[25th]]","v":539558.80000000005},{"$f":"(((AAMC_Raw_Data_for_FY22[[#This Row],[Median]]-AAMC_Raw_Data_for_FY22[[#This Row],[25th]])/25)*10) + AAMC_Raw_Data_for_FY22[[#This Row],[25th]]","v":562882.6},{"$f":"(((AAMC_Raw_Data_for_FY22[[#This Row],[Median]]-AAMC_Raw_Data_for_FY22[[#This Row],[25th]])/25)*15) + AAMC_Raw_Data_for_FY22[[#This Row],[25th]]","v":586206.4},{"$f":"(((AAMC_Raw_Data_for_FY22[[#This Row],[Median]]-AAMC_Raw_Data_for_FY22[[#This Row],[25th]])/25)*20) + AAMC_Raw_Data_for_FY22[[#This Row],[25th]]","v":609530.19999999995},632854,{"$f":"(((AAMC_Raw_Data_for_FY22[[#This Row],[75th]]-AAMC_Raw_Data_for_FY22[[#This Row],[Median]])/25)*5) + AAMC_Raw_Data_for_FY22[[#This Row],[Median]]","v":642482.19999999995},{"$f":"(((AAMC_Raw_Data_for_FY22[[#This Row],[75th]]-AAMC_Raw_Data_for_FY22[[#This Row],[Median]])/25)*10) + AAMC_Raw_Data_for_FY22[[#This Row],[Median]]","v":652110.4},{"$f":"(((AAMC_Raw_Data_for_FY22[[#This Row],[75th]]-AAMC_Raw_Data_for_FY22[[#This Row],[Median]])/25)*15) + AAMC_Raw_Data_for_FY22[[#This Row],[Median]]","v":661738.6},{"$f":"(((AAMC_Raw_Data_for_FY22[[#This Row],[75th]]-AAMC_Raw_Data_for_FY22[[#This Row],[Median]])/25)*20) + AAMC_Raw_Data_for_FY22[[#This Row],[Median]]","v":671366.8},680995,{"$f":"(((AAMC_Raw_Data_for_FY22[[#This Row],[75th]]-AAMC_Raw_Data_for_FY22[[#This Row],[Median]])/25)*30) + AAMC_Raw_Data_for_FY22[[#This Row],[Median]]","v":690623.2},{"$f":"(((AAMC_Raw_Data_for_FY22[[#This Row],[75th]]-AAMC_Raw_Data_for_FY22[[#This Row],[Median]])/25)*35) + AAMC_Raw_Data_for_FY22[[#This Row],[Median]]","v":700251.4},{"$f":"(((AAMC_Raw_Data_for_FY22[[#This Row],[75th]]-AAMC_Raw_Data_for_FY22[[#This Row],[Median]])/25)*40) + AAMC_Raw_Data_for_FY22[[#This Row],[Median]]","v":709879.6}]
[{"$f":"AAMC_Raw_Data_for_FY22[[#This Row],[Source]]&AAMC_Raw_Data_for_FY22[[#This Row],[Type]]&AAMC_Raw_Data_for_FY22[[#This Row],[School Subset]]&AAMC_Raw_Data_for_FY22[[#This Row],[Rank]]&AAMC_Raw_Data_for_FY22[[#This Row],[Degree]]&AAMC_Raw_Data_for_FY22[[#This Row],[Department / Specialty]]&\"L\"","v":"AAMCAcademicPublicAssistantMDOB/GYN: Reproductive EndocrinologyL"},"OB/GYN: Reproductive Endocrinology",4,"AAMC","Academic","Public","Assistant","MD","2021-2022",273634,{"$f":"(((AAMC_Raw_Data_for_FY22[[#This Row],[Median]]-AAMC_Raw_Data_for_FY22[[#This Row],[25th]])/25)*5) + AAMC_Raw_Data_for_FY22[[#This Row],[25th]]","v":282327.40000000002},{"$f":"(((AAMC_Raw_Data_for_FY22[[#This Row],[Median]]-AAMC_Raw_Data_for_FY22[[#This Row],[25th]])/25)*10) + AAMC_Raw_Data_for_FY22[[#This Row],[25th]]","v":291020.79999999999},{"$f":"(((AAMC_Raw_Data_for_FY22[[#This Row],[Median]]-AAMC_Raw_Data_for_FY22[[#This Row],[25th]])/25)*15) + AAMC_Raw_Data_for_FY22[[#This Row],[25th]]","v":299714.2},{"$f":"(((AAMC_Raw_Data_for_FY22[[#This Row],[Median]]-AAMC_Raw_Data_for_FY22[[#This Row],[25th]])/25)*20) + AAMC_Raw_Data_for_FY22[[#This Row],[25th]]","v":308407.59999999998},317101,{"$f":"(((AAMC_Raw_Data_for_FY22[[#This Row],[75th]]-AAMC_Raw_Data_for_FY22[[#This Row],[Median]])/25)*5) + AAMC_Raw_Data_for_FY22[[#This Row],[Median]]","v":340840},{"$f":"(((AAMC_Raw_Data_for_FY22[[#This Row],[75th]]-AAMC_Raw_Data_for_FY22[[#This Row],[Median]])/25)*10) + AAMC_Raw_Data_for_FY22[[#This Row],[Median]]","v":364579},{"$f":"(((AAMC_Raw_Data_for_FY22[[#This Row],[75th]]-AAMC_Raw_Data_for_FY22[[#This Row],[Median]])/25)*15) + AAMC_Raw_Data_for_FY22[[#This Row],[Median]]","v":388318},{"$f":"(((AAMC_Raw_Data_for_FY22[[#This Row],[75th]]-AAMC_Raw_Data_for_FY22[[#This Row],[Median]])/25)*20) + AAMC_Raw_Data_for_FY22[[#This Row],[Median]]","v":412057},435796,{"$f":"(((AAMC_Raw_Data_for_FY22[[#This Row],[75th]]-AAMC_Raw_Data_for_FY22[[#This Row],[Median]])/25)*30) + AAMC_Raw_Data_for_FY22[[#This Row],[Median]]","v":459535},{"$f":"(((AAMC_Raw_Data_for_FY22[[#This Row],[75th]]-AAMC_Raw_Data_for_FY22[[#This Row],[Median]])/25)*35) + AAMC_Raw_Data_for_FY22[[#This Row],[Median]]","v":483274},{"$f":"(((AAMC_Raw_Data_for_FY22[[#This Row],[75th]]-AAMC_Raw_Data_for_FY22[[#This Row],[Median]])/25)*40) + AAMC_Raw_Data_for_FY22[[#This Row],[Median]]","v":507013}]
[{"$f":"AAMC_Raw_Data_for_FY22[[#This Row],[Source]]&AAMC_Raw_Data_for_FY22[[#This Row],[Type]]&AAMC_Raw_Data_for_FY22[[#This Row],[School Subset]]&AAMC_Raw_Data_for_FY22[[#This Row],[Rank]]&AAMC_Raw_Data_for_FY22[[#This Row],[Degree]]&AAMC_Raw_Data_for_FY22[[#This Row],[Department / Specialty]]&\"L\"","v":"AAMCAcademicPublicAssociateMDOB/GYN: Reproductive EndocrinologyL"},"OB/GYN: Reproductive Endocrinology",3,"AAMC","Academic","Public","Associate","MD","2021-2022",332539,{"$f":"(((AAMC_Raw_Data_for_FY22[[#This Row],[Median]]-AAMC_Raw_Data_for_FY22[[#This Row],[25th]])/25)*5) + AAMC_Raw_Data_for_FY22[[#This Row],[25th]]","v":344293},{"$f":"(((AAMC_Raw_Data_for_FY22[[#This Row],[Median]]-AAMC_Raw_Data_for_FY22[[#This Row],[25th]])/25)*10) + AAMC_Raw_Data_for_FY22[[#This Row],[25th]]","v":356047},{"$f":"(((AAMC_Raw_Data_for_FY22[[#This Row],[Median]]-AAMC_Raw_Data_for_FY22[[#This Row],[25th]])/25)*15) + AAMC_Raw_Data_for_FY22[[#This Row],[25th]]","v":367801},{"$f":"(((AAMC_Raw_Data_for_FY22[[#This Row],[Median]]-AAMC_Raw_Data_for_FY22[[#This Row],[25th]])/25)*20) + AAMC_Raw_Data_for_FY22[[#This Row],[25th]]","v":379555},391309,{"$f":"(((AAMC_Raw_Data_for_FY22[[#This Row],[75th]]-AAMC_Raw_Data_for_FY22[[#This Row],[Median]])/25)*5) + AAMC_Raw_Data_for_FY22[[#This Row],[Median]]","v":435133},{"$f":"(((AAMC_Raw_Data_for_FY22[[#This Row],[75th]]-AAMC_Raw_Data_for_FY22[[#This Row],[Median]])/25)*10) + AAMC_Raw_Data_for_FY22[[#This Row],[Median]]","v":478957},{"$f":"(((AAMC_Raw_Data_for_FY22[[#This Row],[75th]]-AAMC_Raw_Data_for_FY22[[#This Row],[Median]])/25)*15) + AAMC_Raw_Data_for_FY22[[#This Row],[Median]]","v":522781},{"$f":"(((AAMC_Raw_Data_for_FY22[[#This Row],[75th]]-AAMC_Raw_Data_for_FY22[[#This Row],[Median]])/25)*20) + AAMC_Raw_Data_for_FY22[[#This Row],[Median]]","v":566605},610429,{"$f":"(((AAMC_Raw_Data_for_FY22[[#This Row],[75th]]-AAMC_Raw_Data_for_FY22[[#This Row],[Median]])/25)*30) + AAMC_Raw_Data_for_FY22[[#This Row],[Median]]","v":654253},{"$f":"(((AAMC_Raw_Data_for_FY22[[#This Row],[75th]]-AAMC_Raw_Data_for_FY22[[#This Row],[Median]])/25)*35) + AAMC_Raw_Data_for_FY22[[#This Row],[Median]]","v":698077},{"$f":"(((AAMC_Raw_Data_for_FY22[[#This Row],[75th]]-AAMC_Raw_Data_for_FY22[[#This Row],[Median]])/25)*40) + AAMC_Raw_Data_for_FY22[[#This Row],[Median]]","v":741901}]
[{"$f":"AAMC_Raw_Data_for_FY22[[#This Row],[Source]]&AAMC_Raw_Data_for_FY22[[#This Row],[Type]]&AAMC_Raw_Data_for_FY22[[#This Row],[School Subset]]&AAMC_Raw_Data_for_FY22[[#This Row],[Rank]]&AAMC_Raw_Data_for_FY22[[#This Row],[Degree]]&AAMC_Raw_Data_for_FY22[[#This Row],[Department / Specialty]]&\"L\"","v":"AAMCAcademicPublicProfessorMDOB/GYN: Reproductive EndocrinologyL"},"OB/GYN: Reproductive Endocrinology",2,"AAMC","Academic","Public","Professor","MD","2021-2022",337625,{"$f":"(((AAMC_Raw_Data_for_FY22[[#This Row],[Median]]-AAMC_Raw_Data_for_FY22[[#This Row],[25th]])/25)*5) + AAMC_Raw_Data_for_FY22[[#This Row],[25th]]","v":350562.6},{"$f":"(((AAMC_Raw_Data_for_FY22[[#This Row],[Median]]-AAMC_Raw_Data_for_FY22[[#This Row],[25th]])/25)*10) + AAMC_Raw_Data_for_FY22[[#This Row],[25th]]","v":363500.2},{"$f":"(((AAMC_Raw_Data_for_FY22[[#This Row],[Median]]-AAMC_Raw_Data_for_FY22[[#This Row],[25th]])/25)*15) + AAMC_Raw_Data_for_FY22[[#This Row],[25th]]","v":376437.8},{"$f":"(((AAMC_Raw_Data_for_FY22[[#This Row],[Median]]-AAMC_Raw_Data_for_FY22[[#This Row],[25th]])/25)*20) + AAMC_Raw_Data_for_FY22[[#This Row],[25th]]","v":389375.4},402313,{"$f":"(((AAMC_Raw_Data_for_FY22[[#This Row],[75th]]-AAMC_Raw_Data_for_FY22[[#This Row],[Median]])/25)*5) + AAMC_Raw_Data_for_FY22[[#This Row],[Median]]","v":414531.8},{"$f":"(((AAMC_Raw_Data_for_FY22[[#This Row],[75th]]-AAMC_Raw_Data_for_FY22[[#This Row],[Median]])/25)*10) + AAMC_Raw_Data_for_FY22[[#This Row],[Median]]","v":426750.6},{"$f":"(((AAMC_Raw_Data_for_FY22[[#This Row],[75th]]-AAMC_Raw_Data_for_FY22[[#This Row],[Median]])/25)*15) + AAMC_Raw_Data_for_FY22[[#This Row],[Median]]","v":438969.4},{"$f":"(((AAMC_Raw_Data_for_FY22[[#This Row],[75th]]-AAMC_Raw_Data_for_FY22[[#This Row],[Median]])/25)*20) + AAMC_Raw_Data_for_FY22[[#This Row],[Median]]","v":451188.2},463407,{"$f":"(((AAMC_Raw_Data_for_FY22[[#This Row],[75th]]-AAMC_Raw_Data_for_FY22[[#This Row],[Median]])/25)*30) + AAMC_Raw_Data_for_FY22[[#This Row],[Median]]","v":475625.8},{"$f":"(((AAMC_Raw_Data_for_FY22[[#This Row],[75th]]-AAMC_Raw_Data_for_FY22[[#This Row],[Median]])/25)*35) + AAMC_Raw_Data_for_FY22[[#This Row],[Median]]","v":487844.6},{"$f":"(((AAMC_Raw_Data_for_FY22[[#This Row],[75th]]-AAMC_Raw_Data_for_FY22[[#This Row],[Median]])/25)*40) + AAMC_Raw_Data_for_FY22[[#This Row],[Median]]","v":500063.4}]
[{"$f":"AAMC_Raw_Data_for_FY22[[#This Row],[Source]]&AAMC_Raw_Data_for_FY22[[#This Row],[Type]]&AAMC_Raw_Data_for_FY22[[#This Row],[School Subset]]&AAMC_Raw_Data_for_FY22[[#This Row],[Rank]]&AAMC_Raw_Data_for_FY22[[#This Row],[Degree]]&AAMC_Raw_Data_for_FY22[[#This Row],[Department / Specialty]]&\"L\"","v":"AAMCAcademicPublicChiefMDOB/GYN: Reproductive EndocrinologyL"},"OB/GYN: Reproductive Endocrinology",6,"AAMC","Academic","Public","Chief","MD","2021-2022",342648,{"$f":"(((AAMC_Raw_Data_for_FY22[[#This Row],[Median]]-AAMC_Raw_Data_for_FY22[[#This Row],[25th]])/25)*5) + AAMC_Raw_Data_for_FY22[[#This Row],[25th]]","v":350737.6},{"$f":"(((AAMC_Raw_Data_for_FY22[[#This Row],[Median]]-AAMC_Raw_Data_for_FY22[[#This Row],[25th]])/25)*10) + AAMC_Raw_Data_for_FY22[[#This Row],[25th]]","v":358827.2},{"$f":"(((AAMC_Raw_Data_for_FY22[[#This Row],[Median]]-AAMC_Raw_Data_for_FY22[[#This Row],[25th]])/25)*15) + AAMC_Raw_Data_for_FY22[[#This Row],[25th]]","v":366916.8},{"$f":"(((AAMC_Raw_Data_for_FY22[[#This Row],[Median]]-AAMC_Raw_Data_for_FY22[[#This Row],[25th]])/25)*20) + AAMC_Raw_Data_for_FY22[[#This Row],[25th]]","v":375006.4},383096,{"$f":"(((AAMC_Raw_Data_for_FY22[[#This Row],[75th]]-AAMC_Raw_Data_for_FY22[[#This Row],[Median]])/25)*5) + AAMC_Raw_Data_for_FY22[[#This Row],[Median]]","v":390051},{"$f":"(((AAMC_Raw_Data_for_FY22[[#This Row],[75th]]-AAMC_Raw_Data_for_FY22[[#This Row],[Median]])/25)*10) + AAMC_Raw_Data_for_FY22[[#This Row],[Median]]","v":397006},{"$f":"(((AAMC_Raw_Data_for_FY22[[#This Row],[75th]]-AAMC_Raw_Data_for_FY22[[#This Row],[Median]])/25)*15) + AAMC_Raw_Data_for_FY22[[#This Row],[Median]]","v":403961},{"$f":"(((AAMC_Raw_Data_for_FY22[[#This Row],[75th]]-AAMC_Raw_Data_for_FY22[[#This Row],[Median]])/25)*20) + AAMC_Raw_Data_for_FY22[[#This Row],[Median]]","v":410916},417871,{"$f":"(((AAMC_Raw_Data_for_FY22[[#This Row],[75th]]-AAMC_Raw_Data_for_FY22[[#This Row],[Median]])/25)*30) + AAMC_Raw_Data_for_FY22[[#This Row],[Median]]","v":424826},{"$f":"(((AAMC_Raw_Data_for_FY22[[#This Row],[75th]]-AAMC_Raw_Data_for_FY22[[#This Row],[Median]])/25)*35) + AAMC_Raw_Data_for_FY22[[#This Row],[Median]]","v":431781},{"$f":"(((AAMC_Raw_Data_for_FY22[[#This Row],[75th]]-AAMC_Raw_Data_for_FY22[[#This Row],[Median]])/25)*40) + AAMC_Raw_Data_for_FY22[[#This Row],[Median]]","v":438736}]
[{"$f":"AAMC_Raw_Data_for_FY22[[#This Row],[Source]]&AAMC_Raw_Data_for_FY22[[#This Row],[Type]]&AAMC_Raw_Data_for_FY22[[#This Row],[School Subset]]&AAMC_Raw_Data_for_FY22[[#This Row],[Rank]]&AAMC_Raw_Data_for_FY22[[#This Row],[Degree]]&AAMC_Raw_Data_for_FY22[[#This Row],[Department / Specialty]]&\"L\"","v":"AAMCAcademicPublicChairMDOB/GYN: Reproductive EndocrinologyL"},"OB/GYN: Reproductive Endocrinology",1,"AAMC","Academic","Public","Chair","MD","2021-2022",615157,{"$f":"(((AAMC_Raw_Data_for_FY22[[#This Row],[Median]]-AAMC_Raw_Data_for_FY22[[#This Row],[25th]])/25)*5) + AAMC_Raw_Data_for_FY22[[#This Row],[25th]]","v":624562},{"$f":"(((AAMC_Raw_Data_for_FY22[[#This Row],[Median]]-AAMC_Raw_Data_for_FY22[[#This Row],[25th]])/25)*10) + AAMC_Raw_Data_for_FY22[[#This Row],[25th]]","v":633967},{"$f":"(((AAMC_Raw_Data_for_FY22[[#This Row],[Median]]-AAMC_Raw_Data_for_FY22[[#This Row],[25th]])/25)*15) + AAMC_Raw_Data_for_FY22[[#This Row],[25th]]","v":643372},{"$f":"(((AAMC_Raw_Data_for_FY22[[#This Row],[Median]]-AAMC_Raw_Data_for_FY22[[#This Row],[25th]])/25)*20) + AAMC_Raw_Data_for_FY22[[#This Row],[25th]]","v":652777},662182,{"$f":"(((AAMC_Raw_Data_for_FY22[[#This Row],[75th]]-AAMC_Raw_Data_for_FY22[[#This Row],[Median]])/25)*5) + AAMC_Raw_Data_for_FY22[[#This Row],[Median]]","v":705624.4},{"$f":"(((AAMC_Raw_Data_for_FY22[[#This Row],[75th]]-AAMC_Raw_Data_for_FY22[[#This Row],[Median]])/25)*10) + AAMC_Raw_Data_for_FY22[[#This Row],[Median]]","v":749066.8},{"$f":"(((AAMC_Raw_Data_for_FY22[[#This Row],[75th]]-AAMC_Raw_Data_for_FY22[[#This Row],[Median]])/25)*15) + AAMC_Raw_Data_for_FY22[[#This Row],[Median]]","v":792509.2},{"$f":"(((AAMC_Raw_Data_for_FY22[[#This Row],[75th]]-AAMC_Raw_Data_for_FY22[[#This Row],[Median]])/25)*20) + AAMC_Raw_Data_for_FY22[[#This Row],[Median]]","v":835951.6},879394,{"$f":"(((AAMC_Raw_Data_for_FY22[[#This Row],[75th]]-AAMC_Raw_Data_for_FY22[[#This Row],[Median]])/25)*30) + AAMC_Raw_Data_for_FY22[[#This Row],[Median]]","v":922836.4},{"$f":"(((AAMC_Raw_Data_for_FY22[[#This Row],[75th]]-AAMC_Raw_Data_for_FY22[[#This Row],[Median]])/25)*35) + AAMC_Raw_Data_for_FY22[[#This Row],[Median]]","v":966278.8},{"$f":"(((AAMC_Raw_Data_for_FY22[[#This Row],[75th]]-AAMC_Raw_Data_for_FY22[[#This Row],[Median]])/25)*40) + AAMC_Raw_Data_for_FY22[[#This Row],[Median]]","v":1009721.2}]
[{"$f":"AAMC_Raw_Data_for_FY22[[#This Row],[Source]]&AAMC_Raw_Data_for_FY22[[#This Row],[Type]]&AAMC_Raw_Data_for_FY22[[#This Row],[School Subset]]&AAMC_Raw_Data_for_FY22[[#This Row],[Rank]]&AAMC_Raw_Data_for_FY22[[#This Row],[Degree]]&AAMC_Raw_Data_for_FY22[[#This Row],[Department / Specialty]]&\"L\"","v":"AAMCAcademicPublicInstructorMDOB/GYN: Other OB/GYNL"},"OB/GYN: Other OB/GYN",5,"AAMC","Academic","Public","Instructor","MD","2021-2022",null,{"$f":"(((AAMC_Raw_Data_for_FY22[[#This Row],[Median]]-AAMC_Raw_Data_for_FY22[[#This Row],[25th]])/25)*5) + AAMC_Raw_Data_for_FY22[[#This Row],[25th]]","v":0},{"$f":"(((AAMC_Raw_Data_for_FY22[[#This Row],[Median]]-AAMC_Raw_Data_for_FY22[[#This Row],[25th]])/25)*10) + AAMC_Raw_Data_for_FY22[[#This Row],[25th]]","v":0},{"$f":"(((AAMC_Raw_Data_for_FY22[[#This Row],[Median]]-AAMC_Raw_Data_for_FY22[[#This Row],[25th]])/25)*15) + AAMC_Raw_Data_for_FY22[[#This Row],[25th]]","v":0},{"$f":"(((AAMC_Raw_Data_for_FY22[[#This Row],[Median]]-AAMC_Raw_Data_for_FY22[[#This Row],[25th]])/25)*20) + AAMC_Raw_Data_for_FY22[[#This Row],[25th]]","v":0},null,{"$f":"(((AAMC_Raw_Data_for_FY22[[#This Row],[75th]]-AAMC_Raw_Data_for_FY22[[#This Row],[Median]])/25)*5) + AAMC_Raw_Data_for_FY22[[#This Row],[Median]]","v":0},{"$f":"(((AAMC_Raw_Data_for_FY22[[#This Row],[75th]]-AAMC_Raw_Data_for_FY22[[#This Row],[Median]])/25)*10) + AAMC_Raw_Data_for_FY22[[#This Row],[Median]]","v":0},{"$f":"(((AAMC_Raw_Data_for_FY22[[#This Row],[75th]]-AAMC_Raw_Data_for_FY22[[#This Row],[Median]])/25)*15) + AAMC_Raw_Data_for_FY22[[#This Row],[Median]]","v":0},{"$f":"(((AAMC_Raw_Data_for_FY22[[#This Row],[75th]]-AAMC_Raw_Data_for_FY22[[#This Row],[Median]])/25)*20) + AAMC_Raw_Data_for_FY22[[#This Row],[Median]]","v":0},null,{"$f":"(((AAMC_Raw_Data_for_FY22[[#This Row],[75th]]-AAMC_Raw_Data_for_FY22[[#This Row],[Median]])/25)*30) + AAMC_Raw_Data_for_FY22[[#This Row],[Median]]","v":0},{"$f":"(((AAMC_Raw_Data_for_FY22[[#This Row],[75th]]-AAMC_Raw_Data_for_FY22[[#This Row],[Median]])/25)*35) + AAMC_Raw_Data_for_FY22[[#This Row],[Median]]","v":0},{"$f":"(((AAMC_Raw_Data_for_FY22[[#This Row],[75th]]-AAMC_Raw_Data_for_FY22[[#This Row],[Median]])/25)*40) + AAMC_Raw_Data_for_FY22[[#This Row],[Median]]","v":0}]
[{"$f":"AAMC_Raw_Data_for_FY22[[#This Row],[Source]]&AAMC_Raw_Data_for_FY22[[#This Row],[Type]]&AAMC_Raw_Data_for_FY22[[#This Row],[School Subset]]&AAMC_Raw_Data_for_FY22[[#This Row],[Rank]]&AAMC_Raw_Data_for_FY22[[#This Row],[Degree]]&AAMC_Raw_Data_for_FY22[[#This Row],[Department / Specialty]]&\"L\"","v":"AAMCAcademicPublicAssistantMDOB/GYN: Other OB/GYNL"},"OB/GYN: Other OB/GYN",4,"AAMC","Academic","Public","Assistant","MD","2021-2022",258107,{"$f":"(((AAMC_Raw_Data_for_FY22[[#This Row],[Median]]-AAMC_Raw_Data_for_FY22[[#This Row],[25th]])/25)*5) + AAMC_Raw_Data_for_FY22[[#This Row],[25th]]","v":263605.59999999998},{"$f":"(((AAMC_Raw_Data_for_FY22[[#This Row],[Median]]-AAMC_Raw_Data_for_FY22[[#This Row],[25th]])/25)*10) + AAMC_Raw_Data_for_FY22[[#This Row],[25th]]","v":269104.2},{"$f":"(((AAMC_Raw_Data_for_FY22[[#This Row],[Median]]-AAMC_Raw_Data_for_FY22[[#This Row],[25th]])/25)*15) + AAMC_Raw_Data_for_FY22[[#This Row],[25th]]","v":274602.8},{"$f":"(((AAMC_Raw_Data_for_FY22[[#This Row],[Median]]-AAMC_Raw_Data_for_FY22[[#This Row],[25th]])/25)*20) + AAMC_Raw_Data_for_FY22[[#This Row],[25th]]","v":280101.40000000002},285600,{"$f":"(((AAMC_Raw_Data_for_FY22[[#This Row],[75th]]-AAMC_Raw_Data_for_FY22[[#This Row],[Median]])/25)*5) + AAMC_Raw_Data_for_FY22[[#This Row],[Median]]","v":294938.2},{"$f":"(((AAMC_Raw_Data_for_FY22[[#This Row],[75th]]-AAMC_Raw_Data_for_FY22[[#This Row],[Median]])/25)*10) + AAMC_Raw_Data_for_FY22[[#This Row],[Median]]","v":304276.40000000002},{"$f":"(((AAMC_Raw_Data_for_FY22[[#This Row],[75th]]-AAMC_Raw_Data_for_FY22[[#This Row],[Median]])/25)*15) + AAMC_Raw_Data_for_FY22[[#This Row],[Median]]","v":313614.59999999998},{"$f":"(((AAMC_Raw_Data_for_FY22[[#This Row],[75th]]-AAMC_Raw_Data_for_FY22[[#This Row],[Median]])/25)*20) + AAMC_Raw_Data_for_FY22[[#This Row],[Median]]","v":322952.8},332291,{"$f":"(((AAMC_Raw_Data_for_FY22[[#This Row],[75th]]-AAMC_Raw_Data_for_FY22[[#This Row],[Median]])/25)*30) + AAMC_Raw_Data_for_FY22[[#This Row],[Median]]","v":341629.2},{"$f":"(((AAMC_Raw_Data_for_FY22[[#This Row],[75th]]-AAMC_Raw_Data_for_FY22[[#This Row],[Median]])/25)*35) + AAMC_Raw_Data_for_FY22[[#This Row],[Median]]","v":350967.4},{"$f":"(((AAMC_Raw_Data_for_FY22[[#This Row],[75th]]-AAMC_Raw_Data_for_FY22[[#This Row],[Median]])/25)*40) + AAMC_Raw_Data_for_FY22[[#This Row],[Median]]","v":360305.6}]
[{"$f":"AAMC_Raw_Data_for_FY22[[#This Row],[Source]]&AAMC_Raw_Data_for_FY22[[#This Row],[Type]]&AAMC_Raw_Data_for_FY22[[#This Row],[School Subset]]&AAMC_Raw_Data_for_FY22[[#This Row],[Rank]]&AAMC_Raw_Data_for_FY22[[#This Row],[Degree]]&AAMC_Raw_Data_for_FY22[[#This Row],[Department / Specialty]]&\"L\"","v":"AAMCAcademicPublicAssociateMDOB/GYN: Other OB/GYNL"},"OB/GYN: Other OB/GYN",3,"AAMC","Academic","Public","Associate","MD","2021-2022",299968,{"$f":"(((AAMC_Raw_Data_for_FY22[[#This Row],[Median]]-AAMC_Raw_Data_for_FY22[[#This Row],[25th]])/25)*5) + AAMC_Raw_Data_for_FY22[[#This Row],[25th]]","v":308867.40000000002},{"$f":"(((AAMC_Raw_Data_for_FY22[[#This Row],[Median]]-AAMC_Raw_Data_for_FY22[[#This Row],[25th]])/25)*10) + AAMC_Raw_Data_for_FY22[[#This Row],[25th]]","v":317766.8},{"$f":"(((AAMC_Raw_Data_for_FY22[[#This Row],[Median]]-AAMC_Raw_Data_for_FY22[[#This Row],[25th]])/25)*15) + AAMC_Raw_Data_for_FY22[[#This Row],[25th]]","v":326666.2},{"$f":"(((AAMC_Raw_Data_for_FY22[[#This Row],[Median]]-AAMC_Raw_Data_for_FY22[[#This Row],[25th]])/25)*20) + AAMC_Raw_Data_for_FY22[[#This Row],[25th]]","v":335565.6},344465,{"$f":"(((AAMC_Raw_Data_for_FY22[[#This Row],[75th]]-AAMC_Raw_Data_for_FY22[[#This Row],[Median]])/25)*5) + AAMC_Raw_Data_for_FY22[[#This Row],[Median]]","v":356352.2},{"$f":"(((AAMC_Raw_Data_for_FY22[[#This Row],[75th]]-AAMC_Raw_Data_for_FY22[[#This Row],[Median]])/25)*10) + AAMC_Raw_Data_for_FY22[[#This Row],[Median]]","v":368239.4},{"$f":"(((AAMC_Raw_Data_for_FY22[[#This Row],[75th]]-AAMC_Raw_Data_for_FY22[[#This Row],[Median]])/25)*15) + AAMC_Raw_Data_for_FY22[[#This Row],[Median]]","v":380126.6},{"$f":"(((AAMC_Raw_Data_for_FY22[[#This Row],[75th]]-AAMC_Raw_Data_for_FY22[[#This Row],[Median]])/25)*20) + AAMC_Raw_Data_for_FY22[[#This Row],[Median]]","v":392013.8},403901,{"$f":"(((AAMC_Raw_Data_for_FY22[[#This Row],[75th]]-AAMC_Raw_Data_for_FY22[[#This Row],[Median]])/25)*30) + AAMC_Raw_Data_for_FY22[[#This Row],[Median]]","v":415788.2},{"$f":"(((AAMC_Raw_Data_for_FY22[[#This Row],[75th]]-AAMC_Raw_Data_for_FY22[[#This Row],[Median]])/25)*35) + AAMC_Raw_Data_for_FY22[[#This Row],[Median]]","v":427675.4},{"$f":"(((AAMC_Raw_Data_for_FY22[[#This Row],[75th]]-AAMC_Raw_Data_for_FY22[[#This Row],[Median]])/25)*40) + AAMC_Raw_Data_for_FY22[[#This Row],[Median]]","v":439562.6}]
[{"$f":"AAMC_Raw_Data_for_FY22[[#This Row],[Source]]&AAMC_Raw_Data_for_FY22[[#This Row],[Type]]&AAMC_Raw_Data_for_FY22[[#This Row],[School Subset]]&AAMC_Raw_Data_for_FY22[[#This Row],[Rank]]&AAMC_Raw_Data_for_FY22[[#This Row],[Degree]]&AAMC_Raw_Data_for_FY22[[#This Row],[Department / Specialty]]&\"L\"","v":"AAMCAcademicPublicProfessorMDOB/GYN: Other OB/GYNL"},"OB/GYN: Other OB/GYN",2,"AAMC","Academic","Public","Professor","MD","2021-2022",308696,{"$f":"(((AAMC_Raw_Data_for_FY22[[#This Row],[Median]]-AAMC_Raw_Data_for_FY22[[#This Row],[25th]])/25)*5) + AAMC_Raw_Data_for_FY22[[#This Row],[25th]]","v":319748.40000000002},{"$f":"(((AAMC_Raw_Data_for_FY22[[#This Row],[Median]]-AAMC_Raw_Data_for_FY22[[#This Row],[25th]])/25)*10) + AAMC_Raw_Data_for_FY22[[#This Row],[25th]]","v":330800.8},{"$f":"(((AAMC_Raw_Data_for_FY22[[#This Row],[Median]]-AAMC_Raw_Data_for_FY22[[#This Row],[25th]])/25)*15) + AAMC_Raw_Data_for_FY22[[#This Row],[25th]]","v":341853.2},{"$f":"(((AAMC_Raw_Data_for_FY22[[#This Row],[Median]]-AAMC_Raw_Data_for_FY22[[#This Row],[25th]])/25)*20) + AAMC_Raw_Data_for_FY22[[#This Row],[25th]]","v":352905.6},363958,{"$f":"(((AAMC_Raw_Data_for_FY22[[#This Row],[75th]]-AAMC_Raw_Data_for_FY22[[#This Row],[Median]])/25)*5) + AAMC_Raw_Data_for_FY22[[#This Row],[Median]]","v":371872.6},{"$f":"(((AAMC_Raw_Data_for_FY22[[#This Row],[75th]]-AAMC_Raw_Data_for_FY22[[#This Row],[Median]])/25)*10) + AAMC_Raw_Data_for_FY22[[#This Row],[Median]]","v":379787.2},{"$f":"(((AAMC_Raw_Data_for_FY22[[#This Row],[75th]]-AAMC_Raw_Data_for_FY22[[#This Row],[Median]])/25)*15) + AAMC_Raw_Data_for_FY22[[#This Row],[Median]]","v":387701.8},{"$f":"(((AAMC_Raw_Data_for_FY22[[#This Row],[75th]]-AAMC_Raw_Data_for_FY22[[#This Row],[Median]])/25)*20) + AAMC_Raw_Data_for_FY22[[#This Row],[Median]]","v":395616.4},403531,{"$f":"(((AAMC_Raw_Data_for_FY22[[#This Row],[75th]]-AAMC_Raw_Data_for_FY22[[#This Row],[Median]])/25)*30) + AAMC_Raw_Data_for_FY22[[#This Row],[Median]]","v":411445.6},{"$f":"(((AAMC_Raw_Data_for_FY22[[#This Row],[75th]]-AAMC_Raw_Data_for_FY22[[#This Row],[Median]])/25)*35) + AAMC_Raw_Data_for_FY22[[#This Row],[Median]]","v":419360.2},{"$f":"(((AAMC_Raw_Data_for_FY22[[#This Row],[75th]]-AAMC_Raw_Data_for_FY22[[#This Row],[Median]])/25)*40) + AAMC_Raw_Data_for_FY22[[#This Row],[Median]]","v":427274.8}]
[{"$f":"AAMC_Raw_Data_for_FY22[[#This Row],[Source]]&AAMC_Raw_Data_for_FY22[[#This Row],[Type]]&AAMC_Raw_Data_for_FY22[[#This Row],[School Subset]]&AAMC_Raw_Data_for_FY22[[#This Row],[Rank]]&AAMC_Raw_Data_for_FY22[[#This Row],[Degree]]&AAMC_Raw_Data_for_FY22[[#This Row],[Department / Specialty]]&\"L\"","v":"AAMCAcademicPublicChiefMDOB/GYN: Other OB/GYNL"},"OB/GYN: Other OB/GYN",6,"AAMC","Academic","Public","Chief","MD","2021-2022",318238,{"$f":"(((AAMC_Raw_Data_for_FY22[[#This Row],[Median]]-AAMC_Raw_Data_for_FY22[[#This Row],[25th]])/25)*5) + AAMC_Raw_Data_for_FY22[[#This Row],[25th]]","v":329138.8},{"$f":"(((AAMC_Raw_Data_for_FY22[[#This Row],[Median]]-AAMC_Raw_Data_for_FY22[[#This Row],[25th]])/25)*10) + AAMC_Raw_Data_for_FY22[[#This Row],[25th]]","v":340039.6},{"$f":"(((AAMC_Raw_Data_for_FY22[[#This Row],[Median]]-AAMC_Raw_Data_for_FY22[[#This Row],[25th]])/25)*15) + AAMC_Raw_Data_for_FY22[[#This Row],[25th]]","v":350940.4},{"$f":"(((AAMC_Raw_Data_for_FY22[[#This Row],[Median]]-AAMC_Raw_Data_for_FY22[[#This Row],[25th]])/25)*20) + AAMC_Raw_Data_for_FY22[[#This Row],[25th]]","v":361841.2},372742,{"$f":"(((AAMC_Raw_Data_for_FY22[[#This Row],[75th]]-AAMC_Raw_Data_for_FY22[[#This Row],[Median]])/25)*5) + AAMC_Raw_Data_for_FY22[[#This Row],[Median]]","v":380422},{"$f":"(((AAMC_Raw_Data_for_FY22[[#This Row],[75th]]-AAMC_Raw_Data_for_FY22[[#This Row],[Median]])/25)*10) + AAMC_Raw_Data_for_FY22[[#This Row],[Median]]","v":388102},{"$f":"(((AAMC_Raw_Data_for_FY22[[#This Row],[75th]]-AAMC_Raw_Data_for_FY22[[#This Row],[Median]])/25)*15) + AAMC_Raw_Data_for_FY22[[#This Row],[Median]]","v":395782},{"$f":"(((AAMC_Raw_Data_for_FY22[[#This Row],[75th]]-AAMC_Raw_Data_for_FY22[[#This Row],[Median]])/25)*20) + AAMC_Raw_Data_for_FY22[[#This Row],[Median]]","v":403462},411142,{"$f":"(((AAMC_Raw_Data_for_FY22[[#This Row],[75th]]-AAMC_Raw_Data_for_FY22[[#This Row],[Median]])/25)*30) + AAMC_Raw_Data_for_FY22[[#This Row],[Median]]","v":418822},{"$f":"(((AAMC_Raw_Data_for_FY22[[#This Row],[75th]]-AAMC_Raw_Data_for_FY22[[#This Row],[Median]])/25)*35) + AAMC_Raw_Data_for_FY22[[#This Row],[Median]]","v":426502},{"$f":"(((AAMC_Raw_Data_for_FY22[[#This Row],[75th]]-AAMC_Raw_Data_for_FY22[[#This Row],[Median]])/25)*40) + AAMC_Raw_Data_for_FY22[[#This Row],[Median]]","v":434182}]
[{"$f":"AAMC_Raw_Data_for_FY22[[#This Row],[Source]]&AAMC_Raw_Data_for_FY22[[#This Row],[Type]]&AAMC_Raw_Data_for_FY22[[#This Row],[School Subset]]&AAMC_Raw_Data_for_FY22[[#This Row],[Rank]]&AAMC_Raw_Data_for_FY22[[#This Row],[Degree]]&AAMC_Raw_Data_for_FY22[[#This Row],[Department / Specialty]]&\"L\"","v":"AAMCAcademicPublicChairMDOB/GYN: Other OB/GYNL"},"OB/GYN: Other OB/GYN",1,"AAMC","Academic","Public","Chair","MD","2021-2022",null,{"$f":"(((AAMC_Raw_Data_for_FY22[[#This Row],[Median]]-AAMC_Raw_Data_for_FY22[[#This Row],[25th]])/25)*5) + AAMC_Raw_Data_for_FY22[[#This Row],[25th]]","v":0},{"$f":"(((AAMC_Raw_Data_for_FY22[[#This Row],[Median]]-AAMC_Raw_Data_for_FY22[[#This Row],[25th]])/25)*10) + AAMC_Raw_Data_for_FY22[[#This Row],[25th]]","v":0},{"$f":"(((AAMC_Raw_Data_for_FY22[[#This Row],[Median]]-AAMC_Raw_Data_for_FY22[[#This Row],[25th]])/25)*15) + AAMC_Raw_Data_for_FY22[[#This Row],[25th]]","v":0},{"$f":"(((AAMC_Raw_Data_for_FY22[[#This Row],[Median]]-AAMC_Raw_Data_for_FY22[[#This Row],[25th]])/25)*20) + AAMC_Raw_Data_for_FY22[[#This Row],[25th]]","v":0},null,{"$f":"(((AAMC_Raw_Data_for_FY22[[#This Row],[75th]]-AAMC_Raw_Data_for_FY22[[#This Row],[Median]])/25)*5) + AAMC_Raw_Data_for_FY22[[#This Row],[Median]]","v":0},{"$f":"(((AAMC_Raw_Data_for_FY22[[#This Row],[75th]]-AAMC_Raw_Data_for_FY22[[#This Row],[Median]])/25)*10) + AAMC_Raw_Data_for_FY22[[#This Row],[Median]]","v":0},{"$f":"(((AAMC_Raw_Data_for_FY22[[#This Row],[75th]]-AAMC_Raw_Data_for_FY22[[#This Row],[Median]])/25)*15) + AAMC_Raw_Data_for_FY22[[#This Row],[Median]]","v":0},{"$f":"(((AAMC_Raw_Data_for_FY22[[#This Row],[75th]]-AAMC_Raw_Data_for_FY22[[#This Row],[Median]])/25)*20) + AAMC_Raw_Data_for_FY22[[#This Row],[Median]]","v":0},null,{"$f":"(((AAMC_Raw_Data_for_FY22[[#This Row],[75th]]-AAMC_Raw_Data_for_FY22[[#This Row],[Median]])/25)*30) + AAMC_Raw_Data_for_FY22[[#This Row],[Median]]","v":0},{"$f":"(((AAMC_Raw_Data_for_FY22[[#This Row],[75th]]-AAMC_Raw_Data_for_FY22[[#This Row],[Median]])/25)*35) + AAMC_Raw_Data_for_FY22[[#This Row],[Median]]","v":0},{"$f":"(((AAMC_Raw_Data_for_FY22[[#This Row],[75th]]-AAMC_Raw_Data_for_FY22[[#This Row],[Median]])/25)*40) + AAMC_Raw_Data_for_FY22[[#This Row],[Median]]","v":0}]
[{"$f":"AAMC_Raw_Data_for_FY22[[#This Row],[Source]]&AAMC_Raw_Data_for_FY22[[#This Row],[Type]]&AAMC_Raw_Data_for_FY22[[#This Row],[School Subset]]&AAMC_Raw_Data_for_FY22[[#This Row],[Rank]]&AAMC_Raw_Data_for_FY22[[#This Row],[Degree]]&AAMC_Raw_Data_for_FY22[[#This Row],[Department / Specialty]]&\"L\"","v":"AAMCAcademicPublicInstructorMDPathology TotalL"},"Pathology Total",5,"AAMC","Academic","Public","Instructor","MD","2021-2022",85630,{"$f":"(((AAMC_Raw_Data_for_FY22[[#This Row],[Median]]-AAMC_Raw_Data_for_FY22[[#This Row],[25th]])/25)*5) + AAMC_Raw_Data_for_FY22[[#This Row],[25th]]","v":86602.2},{"$f":"(((AAMC_Raw_Data_for_FY22[[#This Row],[Median]]-AAMC_Raw_Data_for_FY22[[#This Row],[25th]])/25)*10) + AAMC_Raw_Data_for_FY22[[#This Row],[25th]]","v":87574.399999999994},{"$f":"(((AAMC_Raw_Data_for_FY22[[#This Row],[Median]]-AAMC_Raw_Data_for_FY22[[#This Row],[25th]])/25)*15) + AAMC_Raw_Data_for_FY22[[#This Row],[25th]]","v":88546.6},{"$f":"(((AAMC_Raw_Data_for_FY22[[#This Row],[Median]]-AAMC_Raw_Data_for_FY22[[#This Row],[25th]])/25)*20) + AAMC_Raw_Data_for_FY22[[#This Row],[25th]]","v":89518.8},90491,{"$f":"(((AAMC_Raw_Data_for_FY22[[#This Row],[75th]]-AAMC_Raw_Data_for_FY22[[#This Row],[Median]])/25)*5) + AAMC_Raw_Data_for_FY22[[#This Row],[Median]]","v":101070.8},{"$f":"(((AAMC_Raw_Data_for_FY22[[#This Row],[75th]]-AAMC_Raw_Data_for_FY22[[#This Row],[Median]])/25)*10) + AAMC_Raw_Data_for_FY22[[#This Row],[Median]]","v":111650.6},{"$f":"(((AAMC_Raw_Data_for_FY22[[#This Row],[75th]]-AAMC_Raw_Data_for_FY22[[#This Row],[Median]])/25)*15) + AAMC_Raw_Data_for_FY22[[#This Row],[Median]]","v":122230.39999999999},{"$f":"(((AAMC_Raw_Data_for_FY22[[#This Row],[75th]]-AAMC_Raw_Data_for_FY22[[#This Row],[Median]])/25)*20) + AAMC_Raw_Data_for_FY22[[#This Row],[Median]]","v":132810.20000000001},143390,{"$f":"(((AAMC_Raw_Data_for_FY22[[#This Row],[75th]]-AAMC_Raw_Data_for_FY22[[#This Row],[Median]])/25)*30) + AAMC_Raw_Data_for_FY22[[#This Row],[Median]]","v":153969.79999999999},{"$f":"(((AAMC_Raw_Data_for_FY22[[#This Row],[75th]]-AAMC_Raw_Data_for_FY22[[#This Row],[Median]])/25)*35) + AAMC_Raw_Data_for_FY22[[#This Row],[Median]]","v":164549.6},{"$f":"(((AAMC_Raw_Data_for_FY22[[#This Row],[75th]]-AAMC_Raw_Data_for_FY22[[#This Row],[Median]])/25)*40) + AAMC_Raw_Data_for_FY22[[#This Row],[Median]]","v":175129.4}]
[{"$f":"AAMC_Raw_Data_for_FY22[[#This Row],[Source]]&AAMC_Raw_Data_for_FY22[[#This Row],[Type]]&AAMC_Raw_Data_for_FY22[[#This Row],[School Subset]]&AAMC_Raw_Data_for_FY22[[#This Row],[Rank]]&AAMC_Raw_Data_for_FY22[[#This Row],[Degree]]&AAMC_Raw_Data_for_FY22[[#This Row],[Department / Specialty]]&\"L\"","v":"AAMCAcademicPublicAssistantMDPathology TotalL"},"Pathology Total",4,"AAMC","Academic","Public","Assistant","MD","2021-2022",220000,{"$f":"(((AAMC_Raw_Data_for_FY22[[#This Row],[Median]]-AAMC_Raw_Data_for_FY22[[#This Row],[25th]])/25)*5) + AAMC_Raw_Data_for_FY22[[#This Row],[25th]]","v":224396.4},{"$f":"(((AAMC_Raw_Data_for_FY22[[#This Row],[Median]]-AAMC_Raw_Data_for_FY22[[#This Row],[25th]])/25)*10) + AAMC_Raw_Data_for_FY22[[#This Row],[25th]]","v":228792.8},{"$f":"(((AAMC_Raw_Data_for_FY22[[#This Row],[Median]]-AAMC_Raw_Data_for_FY22[[#This Row],[25th]])/25)*15) + AAMC_Raw_Data_for_FY22[[#This Row],[25th]]","v":233189.2},{"$f":"(((AAMC_Raw_Data_for_FY22[[#This Row],[Median]]-AAMC_Raw_Data_for_FY22[[#This Row],[25th]])/25)*20) + AAMC_Raw_Data_for_FY22[[#This Row],[25th]]","v":237585.6},241982,{"$f":"(((AAMC_Raw_Data_for_FY22[[#This Row],[75th]]-AAMC_Raw_Data_for_FY22[[#This Row],[Median]])/25)*5) + AAMC_Raw_Data_for_FY22[[#This Row],[Median]]","v":248368.6},{"$f":"(((AAMC_Raw_Data_for_FY22[[#This Row],[75th]]-AAMC_Raw_Data_for_FY22[[#This Row],[Median]])/25)*10) + AAMC_Raw_Data_for_FY22[[#This Row],[Median]]","v":254755.20000000001},{"$f":"(((AAMC_Raw_Data_for_FY22[[#This Row],[75th]]-AAMC_Raw_Data_for_FY22[[#This Row],[Median]])/25)*15) + AAMC_Raw_Data_for_FY22[[#This Row],[Median]]","v":261141.8},{"$f":"(((AAMC_Raw_Data_for_FY22[[#This Row],[75th]]-AAMC_Raw_Data_for_FY22[[#This Row],[Median]])/25)*20) + AAMC_Raw_Data_for_FY22[[#This Row],[Median]]","v":267528.40000000002},273915,{"$f":"(((AAMC_Raw_Data_for_FY22[[#This Row],[75th]]-AAMC_Raw_Data_for_FY22[[#This Row],[Median]])/25)*30) + AAMC_Raw_Data_for_FY22[[#This Row],[Median]]","v":280301.59999999998},{"$f":"(((AAMC_Raw_Data_for_FY22[[#This Row],[75th]]-AAMC_Raw_Data_for_FY22[[#This Row],[Median]])/25)*35) + AAMC_Raw_Data_for_FY22[[#This Row],[Median]]","v":286688.2},{"$f":"(((AAMC_Raw_Data_for_FY22[[#This Row],[75th]]-AAMC_Raw_Data_for_FY22[[#This Row],[Median]])/25)*40) + AAMC_Raw_Data_for_FY22[[#This Row],[Median]]","v":293074.8}]
[{"$f":"AAMC_Raw_Data_for_FY22[[#This Row],[Source]]&AAMC_Raw_Data_for_FY22[[#This Row],[Type]]&AAMC_Raw_Data_for_FY22[[#This Row],[School Subset]]&AAMC_Raw_Data_for_FY22[[#This Row],[Rank]]&AAMC_Raw_Data_for_FY22[[#This Row],[Degree]]&AAMC_Raw_Data_for_FY22[[#This Row],[Department / Specialty]]&\"L\"","v":"AAMCAcademicPublicAssociateMDPathology TotalL"},"Pathology Total",3,"AAMC","Academic","Public","Associate","MD","2021-2022",259220,{"$f":"(((AAMC_Raw_Data_for_FY22[[#This Row],[Median]]-AAMC_Raw_Data_for_FY22[[#This Row],[25th]])/25)*5) + AAMC_Raw_Data_for_FY22[[#This Row],[25th]]","v":265237.40000000002},{"$f":"(((AAMC_Raw_Data_for_FY22[[#This Row],[Median]]-AAMC_Raw_Data_for_FY22[[#This Row],[25th]])/25)*10) + AAMC_Raw_Data_for_FY22[[#This Row],[25th]]","v":271254.8},{"$f":"(((AAMC_Raw_Data_for_FY22[[#This Row],[Median]]-AAMC_Raw_Data_for_FY22[[#This Row],[25th]])/25)*15) + AAMC_Raw_Data_for_FY22[[#This Row],[25th]]","v":277272.2},{"$f":"(((AAMC_Raw_Data_for_FY22[[#This Row],[Median]]-AAMC_Raw_Data_for_FY22[[#This Row],[25th]])/25)*20) + AAMC_Raw_Data_for_FY22[[#This Row],[25th]]","v":283289.59999999998},289307,{"$f":"(((AAMC_Raw_Data_for_FY22[[#This Row],[75th]]-AAMC_Raw_Data_for_FY22[[#This Row],[Median]])/25)*5) + AAMC_Raw_Data_for_FY22[[#This Row],[Median]]","v":295604},{"$f":"(((AAMC_Raw_Data_for_FY22[[#This Row],[75th]]-AAMC_Raw_Data_for_FY22[[#This Row],[Median]])/25)*10) + AAMC_Raw_Data_for_FY22[[#This Row],[Median]]","v":301901},{"$f":"(((AAMC_Raw_Data_for_FY22[[#This Row],[75th]]-AAMC_Raw_Data_for_FY22[[#This Row],[Median]])/25)*15) + AAMC_Raw_Data_for_FY22[[#This Row],[Median]]","v":308198},{"$f":"(((AAMC_Raw_Data_for_FY22[[#This Row],[75th]]-AAMC_Raw_Data_for_FY22[[#This Row],[Median]])/25)*20) + AAMC_Raw_Data_for_FY22[[#This Row],[Median]]","v":314495},320792,{"$f":"(((AAMC_Raw_Data_for_FY22[[#This Row],[75th]]-AAMC_Raw_Data_for_FY22[[#This Row],[Median]])/25)*30) + AAMC_Raw_Data_for_FY22[[#This Row],[Median]]","v":327089},{"$f":"(((AAMC_Raw_Data_for_FY22[[#This Row],[75th]]-AAMC_Raw_Data_for_FY22[[#This Row],[Median]])/25)*35) + AAMC_Raw_Data_for_FY22[[#This Row],[Median]]","v":333386},{"$f":"(((AAMC_Raw_Data_for_FY22[[#This Row],[75th]]-AAMC_Raw_Data_for_FY22[[#This Row],[Median]])/25)*40) + AAMC_Raw_Data_for_FY22[[#This Row],[Median]]","v":339683}]
[{"$f":"AAMC_Raw_Data_for_FY22[[#This Row],[Source]]&AAMC_Raw_Data_for_FY22[[#This Row],[Type]]&AAMC_Raw_Data_for_FY22[[#This Row],[School Subset]]&AAMC_Raw_Data_for_FY22[[#This Row],[Rank]]&AAMC_Raw_Data_for_FY22[[#This Row],[Degree]]&AAMC_Raw_Data_for_FY22[[#This Row],[Department / Specialty]]&\"L\"","v":"AAMCAcademicPublicProfessorMDPathology TotalL"},"Pathology Total",2,"AAMC","Academic","Public","Professor","MD","2021-2022",297901,{"$f":"(((AAMC_Raw_Data_for_FY22[[#This Row],[Median]]-AAMC_Raw_Data_for_FY22[[#This Row],[25th]])/25)*5) + AAMC_Raw_Data_for_FY22[[#This Row],[25th]]","v":307290.40000000002},{"$f":"(((AAMC_Raw_Data_for_FY22[[#This Row],[Median]]-AAMC_Raw_Data_for_FY22[[#This Row],[25th]])/25)*10) + AAMC_Raw_Data_for_FY22[[#This Row],[25th]]","v":316679.8},{"$f":"(((AAMC_Raw_Data_for_FY22[[#This Row],[Median]]-AAMC_Raw_Data_for_FY22[[#This Row],[25th]])/25)*15) + AAMC_Raw_Data_for_FY22[[#This Row],[25th]]","v":326069.2},{"$f":"(((AAMC_Raw_Data_for_FY22[[#This Row],[Median]]-AAMC_Raw_Data_for_FY22[[#This Row],[25th]])/25)*20) + AAMC_Raw_Data_for_FY22[[#This Row],[25th]]","v":335458.59999999998},344848,{"$f":"(((AAMC_Raw_Data_for_FY22[[#This Row],[75th]]-AAMC_Raw_Data_for_FY22[[#This Row],[Median]])/25)*5) + AAMC_Raw_Data_for_FY22[[#This Row],[Median]]","v":353622},{"$f":"(((AAMC_Raw_Data_for_FY22[[#This Row],[75th]]-AAMC_Raw_Data_for_FY22[[#This Row],[Median]])/25)*10) + AAMC_Raw_Data_for_FY22[[#This Row],[Median]]","v":362396},{"$f":"(((AAMC_Raw_Data_for_FY22[[#This Row],[75th]]-AAMC_Raw_Data_for_FY22[[#This Row],[Median]])/25)*15) + AAMC_Raw_Data_for_FY22[[#This Row],[Median]]","v":371170},{"$f":"(((AAMC_Raw_Data_for_FY22[[#This Row],[75th]]-AAMC_Raw_Data_for_FY22[[#This Row],[Median]])/25)*20) + AAMC_Raw_Data_for_FY22[[#This Row],[Median]]","v":379944},388718,{"$f":"(((AAMC_Raw_Data_for_FY22[[#This Row],[75th]]-AAMC_Raw_Data_for_FY22[[#This Row],[Median]])/25)*30) + AAMC_Raw_Data_for_FY22[[#This Row],[Median]]","v":397492},{"$f":"(((AAMC_Raw_Data_for_FY22[[#This Row],[75th]]-AAMC_Raw_Data_for_FY22[[#This Row],[Median]])/25)*35) + AAMC_Raw_Data_for_FY22[[#This Row],[Median]]","v":406266},{"$f":"(((AAMC_Raw_Data_for_FY22[[#This Row],[75th]]-AAMC_Raw_Data_for_FY22[[#This Row],[Median]])/25)*40) + AAMC_Raw_Data_for_FY22[[#This Row],[Median]]","v":415040}]
[{"$f":"AAMC_Raw_Data_for_FY22[[#This Row],[Source]]&AAMC_Raw_Data_for_FY22[[#This Row],[Type]]&AAMC_Raw_Data_for_FY22[[#This Row],[School Subset]]&AAMC_Raw_Data_for_FY22[[#This Row],[Rank]]&AAMC_Raw_Data_for_FY22[[#This Row],[Degree]]&AAMC_Raw_Data_for_FY22[[#This Row],[Department / Specialty]]&\"L\"","v":"AAMCAcademicPublicChiefMDPathology TotalL"},"Pathology Total",6,"AAMC","Academic","Public","Chief","MD","2021-2022",316661,{"$f":"(((AAMC_Raw_Data_for_FY22[[#This Row],[Median]]-AAMC_Raw_Data_for_FY22[[#This Row],[25th]])/25)*5) + AAMC_Raw_Data_for_FY22[[#This Row],[25th]]","v":328315.8},{"$f":"(((AAMC_Raw_Data_for_FY22[[#This Row],[Median]]-AAMC_Raw_Data_for_FY22[[#This Row],[25th]])/25)*10) + AAMC_Raw_Data_for_FY22[[#This Row],[25th]]","v":339970.6},{"$f":"(((AAMC_Raw_Data_for_FY22[[#This Row],[Median]]-AAMC_Raw_Data_for_FY22[[#This Row],[25th]])/25)*15) + AAMC_Raw_Data_for_FY22[[#This Row],[25th]]","v":351625.4},{"$f":"(((AAMC_Raw_Data_for_FY22[[#This Row],[Median]]-AAMC_Raw_Data_for_FY22[[#This Row],[25th]])/25)*20) + AAMC_Raw_Data_for_FY22[[#This Row],[25th]]","v":363280.2},374935,{"$f":"(((AAMC_Raw_Data_for_FY22[[#This Row],[75th]]-AAMC_Raw_Data_for_FY22[[#This Row],[Median]])/25)*5) + AAMC_Raw_Data_for_FY22[[#This Row],[Median]]","v":382861},{"$f":"(((AAMC_Raw_Data_for_FY22[[#This Row],[75th]]-AAMC_Raw_Data_for_FY22[[#This Row],[Median]])/25)*10) + AAMC_Raw_Data_for_FY22[[#This Row],[Median]]","v":390787},{"$f":"(((AAMC_Raw_Data_for_FY22[[#This Row],[75th]]-AAMC_Raw_Data_for_FY22[[#This Row],[Median]])/25)*15) + AAMC_Raw_Data_for_FY22[[#This Row],[Median]]","v":398713},{"$f":"(((AAMC_Raw_Data_for_FY22[[#This Row],[75th]]-AAMC_Raw_Data_for_FY22[[#This Row],[Median]])/25)*20) + AAMC_Raw_Data_for_FY22[[#This Row],[Median]]","v":406639},414565,{"$f":"(((AAMC_Raw_Data_for_FY22[[#This Row],[75th]]-AAMC_Raw_Data_for_FY22[[#This Row],[Median]])/25)*30) + AAMC_Raw_Data_for_FY22[[#This Row],[Median]]","v":422491},{"$f":"(((AAMC_Raw_Data_for_FY22[[#This Row],[75th]]-AAMC_Raw_Data_for_FY22[[#This Row],[Median]])/25)*35) + AAMC_Raw_Data_for_FY22[[#This Row],[Median]]","v":430417},{"$f":"(((AAMC_Raw_Data_for_FY22[[#This Row],[75th]]-AAMC_Raw_Data_for_FY22[[#This Row],[Median]])/25)*40) + AAMC_Raw_Data_for_FY22[[#This Row],[Median]]","v":438343}]
[{"$f":"AAMC_Raw_Data_for_FY22[[#This Row],[Source]]&AAMC_Raw_Data_for_FY22[[#This Row],[Type]]&AAMC_Raw_Data_for_FY22[[#This Row],[School Subset]]&AAMC_Raw_Data_for_FY22[[#This Row],[Rank]]&AAMC_Raw_Data_for_FY22[[#This Row],[Degree]]&AAMC_Raw_Data_for_FY22[[#This Row],[Department / Specialty]]&\"L\"","v":"AAMCAcademicPublicChairMDPathology TotalL"},"Pathology Total",1,"AAMC","Academic","Public","Chair","MD","2021-2022",500500,{"$f":"(((AAMC_Raw_Data_for_FY22[[#This Row],[Median]]-AAMC_Raw_Data_for_FY22[[#This Row],[25th]])/25)*5) + AAMC_Raw_Data_for_FY22[[#This Row],[25th]]","v":516809.4},{"$f":"(((AAMC_Raw_Data_for_FY22[[#This Row],[Median]]-AAMC_Raw_Data_for_FY22[[#This Row],[25th]])/25)*10) + AAMC_Raw_Data_for_FY22[[#This Row],[25th]]","v":533118.80000000005},{"$f":"(((AAMC_Raw_Data_for_FY22[[#This Row],[Median]]-AAMC_Raw_Data_for_FY22[[#This Row],[25th]])/25)*15) + AAMC_Raw_Data_for_FY22[[#This Row],[25th]]","v":549428.19999999995},{"$f":"(((AAMC_Raw_Data_for_FY22[[#This Row],[Median]]-AAMC_Raw_Data_for_FY22[[#This Row],[25th]])/25)*20) + AAMC_Raw_Data_for_FY22[[#This Row],[25th]]","v":565737.6},582047,{"$f":"(((AAMC_Raw_Data_for_FY22[[#This Row],[75th]]-AAMC_Raw_Data_for_FY22[[#This Row],[Median]])/25)*5) + AAMC_Raw_Data_for_FY22[[#This Row],[Median]]","v":605800},{"$f":"(((AAMC_Raw_Data_for_FY22[[#This Row],[75th]]-AAMC_Raw_Data_for_FY22[[#This Row],[Median]])/25)*10) + AAMC_Raw_Data_for_FY22[[#This Row],[Median]]","v":629553},{"$f":"(((AAMC_Raw_Data_for_FY22[[#This Row],[75th]]-AAMC_Raw_Data_for_FY22[[#This Row],[Median]])/25)*15) + AAMC_Raw_Data_for_FY22[[#This Row],[Median]]","v":653306},{"$f":"(((AAMC_Raw_Data_for_FY22[[#This Row],[75th]]-AAMC_Raw_Data_for_FY22[[#This Row],[Median]])/25)*20) + AAMC_Raw_Data_for_FY22[[#This Row],[Median]]","v":677059},700812,{"$f":"(((AAMC_Raw_Data_for_FY22[[#This Row],[75th]]-AAMC_Raw_Data_for_FY22[[#This Row],[Median]])/25)*30) + AAMC_Raw_Data_for_FY22[[#This Row],[Median]]","v":724565},{"$f":"(((AAMC_Raw_Data_for_FY22[[#This Row],[75th]]-AAMC_Raw_Data_for_FY22[[#This Row],[Median]])/25)*35) + AAMC_Raw_Data_for_FY22[[#This Row],[Median]]","v":748318},{"$f":"(((AAMC_Raw_Data_for_FY22[[#This Row],[75th]]-AAMC_Raw_Data_for_FY22[[#This Row],[Median]])/25)*40) + AAMC_Raw_Data_for_FY22[[#This Row],[Median]]","v":772071}]
[{"$f":"AAMC_Raw_Data_for_FY22[[#This Row],[Source]]&AAMC_Raw_Data_for_FY22[[#This Row],[Type]]&AAMC_Raw_Data_for_FY22[[#This Row],[School Subset]]&AAMC_Raw_Data_for_FY22[[#This Row],[Rank]]&AAMC_Raw_Data_for_FY22[[#This Row],[Degree]]&AAMC_Raw_Data_for_FY22[[#This Row],[Department / Specialty]]&\"L\"","v":"AAMCAcademicPublicInstructorMDPathology: AnatomicL"},"Pathology: Anatomic",5,"AAMC","Academic","Public","Instructor","MD","2021-2022",85006,{"$f":"(((AAMC_Raw_Data_for_FY22[[#This Row],[Median]]-AAMC_Raw_Data_for_FY22[[#This Row],[25th]])/25)*5) + AAMC_Raw_Data_for_FY22[[#This Row],[25th]]","v":85436.800000000003},{"$f":"(((AAMC_Raw_Data_for_FY22[[#This Row],[Median]]-AAMC_Raw_Data_for_FY22[[#This Row],[25th]])/25)*10) + AAMC_Raw_Data_for_FY22[[#This Row],[25th]]","v":85867.6},{"$f":"(((AAMC_Raw_Data_for_FY22[[#This Row],[Median]]-AAMC_Raw_Data_for_FY22[[#This Row],[25th]])/25)*15) + AAMC_Raw_Data_for_FY22[[#This Row],[25th]]","v":86298.4},{"$f":"(((AAMC_Raw_Data_for_FY22[[#This Row],[Median]]-AAMC_Raw_Data_for_FY22[[#This Row],[25th]])/25)*20) + AAMC_Raw_Data_for_FY22[[#This Row],[25th]]","v":86729.2},87160,{"$f":"(((AAMC_Raw_Data_for_FY22[[#This Row],[75th]]-AAMC_Raw_Data_for_FY22[[#This Row],[Median]])/25)*5) + AAMC_Raw_Data_for_FY22[[#This Row],[Median]]","v":96401.600000000006},{"$f":"(((AAMC_Raw_Data_for_FY22[[#This Row],[75th]]-AAMC_Raw_Data_for_FY22[[#This Row],[Median]])/25)*10) + AAMC_Raw_Data_for_FY22[[#This Row],[Median]]","v":105643.2},{"$f":"(((AAMC_Raw_Data_for_FY22[[#This Row],[75th]]-AAMC_Raw_Data_for_FY22[[#This Row],[Median]])/25)*15) + AAMC_Raw_Data_for_FY22[[#This Row],[Median]]","v":114884.8},{"$f":"(((AAMC_Raw_Data_for_FY22[[#This Row],[75th]]-AAMC_Raw_Data_for_FY22[[#This Row],[Median]])/25)*20) + AAMC_Raw_Data_for_FY22[[#This Row],[Median]]","v":124126.39999999999},133368,{"$f":"(((AAMC_Raw_Data_for_FY22[[#This Row],[75th]]-AAMC_Raw_Data_for_FY22[[#This Row],[Median]])/25)*30) + AAMC_Raw_Data_for_FY22[[#This Row],[Median]]","v":142609.60000000001},{"$f":"(((AAMC_Raw_Data_for_FY22[[#This Row],[75th]]-AAMC_Raw_Data_for_FY22[[#This Row],[Median]])/25)*35) + AAMC_Raw_Data_for_FY22[[#This Row],[Median]]","v":151851.20000000001},{"$f":"(((AAMC_Raw_Data_for_FY22[[#This Row],[75th]]-AAMC_Raw_Data_for_FY22[[#This Row],[Median]])/25)*40) + AAMC_Raw_Data_for_FY22[[#This Row],[Median]]","v":161092.79999999999}]
[{"$f":"AAMC_Raw_Data_for_FY22[[#This Row],[Source]]&AAMC_Raw_Data_for_FY22[[#This Row],[Type]]&AAMC_Raw_Data_for_FY22[[#This Row],[School Subset]]&AAMC_Raw_Data_for_FY22[[#This Row],[Rank]]&AAMC_Raw_Data_for_FY22[[#This Row],[Degree]]&AAMC_Raw_Data_for_FY22[[#This Row],[Department / Specialty]]&\"L\"","v":"AAMCAcademicPublicAssistantMDPathology: AnatomicL"},"Pathology: Anatomic",4,"AAMC","Academic","Public","Assistant","MD","2021-2022",221730,{"$f":"(((AAMC_Raw_Data_for_FY22[[#This Row],[Median]]-AAMC_Raw_Data_for_FY22[[#This Row],[25th]])/25)*5) + AAMC_Raw_Data_for_FY22[[#This Row],[25th]]","v":226560.2},{"$f":"(((AAMC_Raw_Data_for_FY22[[#This Row],[Median]]-AAMC_Raw_Data_for_FY22[[#This Row],[25th]])/25)*10) + AAMC_Raw_Data_for_FY22[[#This Row],[25th]]","v":231390.4},{"$f":"(((AAMC_Raw_Data_for_FY22[[#This Row],[Median]]-AAMC_Raw_Data_for_FY22[[#This Row],[25th]])/25)*15) + AAMC_Raw_Data_for_FY22[[#This Row],[25th]]","v":236220.6},{"$f":"(((AAMC_Raw_Data_for_FY22[[#This Row],[Median]]-AAMC_Raw_Data_for_FY22[[#This Row],[25th]])/25)*20) + AAMC_Raw_Data_for_FY22[[#This Row],[25th]]","v":241050.8},245881,{"$f":"(((AAMC_Raw_Data_for_FY22[[#This Row],[75th]]-AAMC_Raw_Data_for_FY22[[#This Row],[Median]])/25)*5) + AAMC_Raw_Data_for_FY22[[#This Row],[Median]]","v":251548.6},{"$f":"(((AAMC_Raw_Data_for_FY22[[#This Row],[75th]]-AAMC_Raw_Data_for_FY22[[#This Row],[Median]])/25)*10) + AAMC_Raw_Data_for_FY22[[#This Row],[Median]]","v":257216.2},{"$f":"(((AAMC_Raw_Data_for_FY22[[#This Row],[75th]]-AAMC_Raw_Data_for_FY22[[#This Row],[Median]])/25)*15) + AAMC_Raw_Data_for_FY22[[#This Row],[Median]]","v":262883.8},{"$f":"(((AAMC_Raw_Data_for_FY22[[#This Row],[75th]]-AAMC_Raw_Data_for_FY22[[#This Row],[Median]])/25)*20) + AAMC_Raw_Data_for_FY22[[#This Row],[Median]]","v":268551.40000000002},274219,{"$f":"(((AAMC_Raw_Data_for_FY22[[#This Row],[75th]]-AAMC_Raw_Data_for_FY22[[#This Row],[Median]])/25)*30) + AAMC_Raw_Data_for_FY22[[#This Row],[Median]]","v":279886.59999999998},{"$f":"(((AAMC_Raw_Data_for_FY22[[#This Row],[75th]]-AAMC_Raw_Data_for_FY22[[#This Row],[Median]])/25)*35) + AAMC_Raw_Data_for_FY22[[#This Row],[Median]]","v":285554.2},{"$f":"(((AAMC_Raw_Data_for_FY22[[#This Row],[75th]]-AAMC_Raw_Data_for_FY22[[#This Row],[Median]])/25)*40) + AAMC_Raw_Data_for_FY22[[#This Row],[Median]]","v":291221.8}]
[{"$f":"AAMC_Raw_Data_for_FY22[[#This Row],[Source]]&AAMC_Raw_Data_for_FY22[[#This Row],[Type]]&AAMC_Raw_Data_for_FY22[[#This Row],[School Subset]]&AAMC_Raw_Data_for_FY22[[#This Row],[Rank]]&AAMC_Raw_Data_for_FY22[[#This Row],[Degree]]&AAMC_Raw_Data_for_FY22[[#This Row],[Department / Specialty]]&\"L\"","v":"AAMCAcademicPublicAssociateMDPathology: AnatomicL"},"Pathology: Anatomic",3,"AAMC","Academic","Public","Associate","MD","2021-2022",267607,{"$f":"(((AAMC_Raw_Data_for_FY22[[#This Row],[Median]]-AAMC_Raw_Data_for_FY22[[#This Row],[25th]])/25)*5) + AAMC_Raw_Data_for_FY22[[#This Row],[25th]]","v":272530.40000000002},{"$f":"(((AAMC_Raw_Data_for_FY22[[#This Row],[Median]]-AAMC_Raw_Data_for_FY22[[#This Row],[25th]])/25)*10) + AAMC_Raw_Data_for_FY22[[#This Row],[25th]]","v":277453.8},{"$f":"(((AAMC_Raw_Data_for_FY22[[#This Row],[Median]]-AAMC_Raw_Data_for_FY22[[#This Row],[25th]])/25)*15) + AAMC_Raw_Data_for_FY22[[#This Row],[25th]]","v":282377.2},{"$f":"(((AAMC_Raw_Data_for_FY22[[#This Row],[Median]]-AAMC_Raw_Data_for_FY22[[#This Row],[25th]])/25)*20) + AAMC_Raw_Data_for_FY22[[#This Row],[25th]]","v":287300.59999999998},292224,{"$f":"(((AAMC_Raw_Data_for_FY22[[#This Row],[75th]]-AAMC_Raw_Data_for_FY22[[#This Row],[Median]])/25)*5) + AAMC_Raw_Data_for_FY22[[#This Row],[Median]]","v":297995.2},{"$f":"(((AAMC_Raw_Data_for_FY22[[#This Row],[75th]]-AAMC_Raw_Data_for_FY22[[#This Row],[Median]])/25)*10) + AAMC_Raw_Data_for_FY22[[#This Row],[Median]]","v":303766.40000000002},{"$f":"(((AAMC_Raw_Data_for_FY22[[#This Row],[75th]]-AAMC_Raw_Data_for_FY22[[#This Row],[Median]])/25)*15) + AAMC_Raw_Data_for_FY22[[#This Row],[Median]]","v":309537.59999999998},{"$f":"(((AAMC_Raw_Data_for_FY22[[#This Row],[75th]]-AAMC_Raw_Data_for_FY22[[#This Row],[Median]])/25)*20) + AAMC_Raw_Data_for_FY22[[#This Row],[Median]]","v":315308.79999999999},321080,{"$f":"(((AAMC_Raw_Data_for_FY22[[#This Row],[75th]]-AAMC_Raw_Data_for_FY22[[#This Row],[Median]])/25)*30) + AAMC_Raw_Data_for_FY22[[#This Row],[Median]]","v":326851.20000000001},{"$f":"(((AAMC_Raw_Data_for_FY22[[#This Row],[75th]]-AAMC_Raw_Data_for_FY22[[#This Row],[Median]])/25)*35) + AAMC_Raw_Data_for_FY22[[#This Row],[Median]]","v":332622.40000000002},{"$f":"(((AAMC_Raw_Data_for_FY22[[#This Row],[75th]]-AAMC_Raw_Data_for_FY22[[#This Row],[Median]])/25)*40) + AAMC_Raw_Data_for_FY22[[#This Row],[Median]]","v":338393.59999999998}]
[{"$f":"AAMC_Raw_Data_for_FY22[[#This Row],[Source]]&AAMC_Raw_Data_for_FY22[[#This Row],[Type]]&AAMC_Raw_Data_for_FY22[[#This Row],[School Subset]]&AAMC_Raw_Data_for_FY22[[#This Row],[Rank]]&AAMC_Raw_Data_for_FY22[[#This Row],[Degree]]&AAMC_Raw_Data_for_FY22[[#This Row],[Department / Specialty]]&\"L\"","v":"AAMCAcademicPublicProfessorMDPathology: AnatomicL"},"Pathology: Anatomic",2,"AAMC","Academic","Public","Professor","MD","2021-2022",319811,{"$f":"(((AAMC_Raw_Data_for_FY22[[#This Row],[Median]]-AAMC_Raw_Data_for_FY22[[#This Row],[25th]])/25)*5) + AAMC_Raw_Data_for_FY22[[#This Row],[25th]]","v":326490.40000000002},{"$f":"(((AAMC_Raw_Data_for_FY22[[#This Row],[Median]]-AAMC_Raw_Data_for_FY22[[#This Row],[25th]])/25)*10) + AAMC_Raw_Data_for_FY22[[#This Row],[25th]]","v":333169.8},{"$f":"(((AAMC_Raw_Data_for_FY22[[#This Row],[Median]]-AAMC_Raw_Data_for_FY22[[#This Row],[25th]])/25)*15) + AAMC_Raw_Data_for_FY22[[#This Row],[25th]]","v":339849.2},{"$f":"(((AAMC_Raw_Data_for_FY22[[#This Row],[Median]]-AAMC_Raw_Data_for_FY22[[#This Row],[25th]])/25)*20) + AAMC_Raw_Data_for_FY22[[#This Row],[25th]]","v":346528.6},353208,{"$f":"(((AAMC_Raw_Data_for_FY22[[#This Row],[75th]]-AAMC_Raw_Data_for_FY22[[#This Row],[Median]])/25)*5) + AAMC_Raw_Data_for_FY22[[#This Row],[Median]]","v":363072.8},{"$f":"(((AAMC_Raw_Data_for_FY22[[#This Row],[75th]]-AAMC_Raw_Data_for_FY22[[#This Row],[Median]])/25)*10) + AAMC_Raw_Data_for_FY22[[#This Row],[Median]]","v":372937.6},{"$f":"(((AAMC_Raw_Data_for_FY22[[#This Row],[75th]]-AAMC_Raw_Data_for_FY22[[#This Row],[Median]])/25)*15) + AAMC_Raw_Data_for_FY22[[#This Row],[Median]]","v":382802.4},{"$f":"(((AAMC_Raw_Data_for_FY22[[#This Row],[75th]]-AAMC_Raw_Data_for_FY22[[#This Row],[Median]])/25)*20) + AAMC_Raw_Data_for_FY22[[#This Row],[Median]]","v":392667.2},402532,{"$f":"(((AAMC_Raw_Data_for_FY22[[#This Row],[75th]]-AAMC_Raw_Data_for_FY22[[#This Row],[Median]])/25)*30) + AAMC_Raw_Data_for_FY22[[#This Row],[Median]]","v":412396.79999999999},{"$f":"(((AAMC_Raw_Data_for_FY22[[#This Row],[75th]]-AAMC_Raw_Data_for_FY22[[#This Row],[Median]])/25)*35) + AAMC_Raw_Data_for_FY22[[#This Row],[Median]]","v":422261.6},{"$f":"(((AAMC_Raw_Data_for_FY22[[#This Row],[75th]]-AAMC_Raw_Data_for_FY22[[#This Row],[Median]])/25)*40) + AAMC_Raw_Data_for_FY22[[#This Row],[Median]]","v":432126.4}]
[{"$f":"AAMC_Raw_Data_for_FY22[[#This Row],[Source]]&AAMC_Raw_Data_for_FY22[[#This Row],[Type]]&AAMC_Raw_Data_for_FY22[[#This Row],[School Subset]]&AAMC_Raw_Data_for_FY22[[#This Row],[Rank]]&AAMC_Raw_Data_for_FY22[[#This Row],[Degree]]&AAMC_Raw_Data_for_FY22[[#This Row],[Department / Specialty]]&\"L\"","v":"AAMCAcademicPublicChiefMDPathology: AnatomicL"},"Pathology: Anatomic",6,"AAMC","Academic","Public","Chief","MD","2021-2022",326621,{"$f":"(((AAMC_Raw_Data_for_FY22[[#This Row],[Median]]-AAMC_Raw_Data_for_FY22[[#This Row],[25th]])/25)*5) + AAMC_Raw_Data_for_FY22[[#This Row],[25th]]","v":342628},{"$f":"(((AAMC_Raw_Data_for_FY22[[#This Row],[Median]]-AAMC_Raw_Data_for_FY22[[#This Row],[25th]])/25)*10) + AAMC_Raw_Data_for_FY22[[#This Row],[25th]]","v":358635},{"$f":"(((AAMC_Raw_Data_for_FY22[[#This Row],[Median]]-AAMC_Raw_Data_for_FY22[[#This Row],[25th]])/25)*15) + AAMC_Raw_Data_for_FY22[[#This Row],[25th]]","v":374642},{"$f":"(((AAMC_Raw_Data_for_FY22[[#This Row],[Median]]-AAMC_Raw_Data_for_FY22[[#This Row],[25th]])/25)*20) + AAMC_Raw_Data_for_FY22[[#This Row],[25th]]","v":390649},406656,{"$f":"(((AAMC_Raw_Data_for_FY22[[#This Row],[75th]]-AAMC_Raw_Data_for_FY22[[#This Row],[Median]])/25)*5) + AAMC_Raw_Data_for_FY22[[#This Row],[Median]]","v":413279},{"$f":"(((AAMC_Raw_Data_for_FY22[[#This Row],[75th]]-AAMC_Raw_Data_for_FY22[[#This Row],[Median]])/25)*10) + AAMC_Raw_Data_for_FY22[[#This Row],[Median]]","v":419902},{"$f":"(((AAMC_Raw_Data_for_FY22[[#This Row],[75th]]-AAMC_Raw_Data_for_FY22[[#This Row],[Median]])/25)*15) + AAMC_Raw_Data_for_FY22[[#This Row],[Median]]","v":426525},{"$f":"(((AAMC_Raw_Data_for_FY22[[#This Row],[75th]]-AAMC_Raw_Data_for_FY22[[#This Row],[Median]])/25)*20) + AAMC_Raw_Data_for_FY22[[#This Row],[Median]]","v":433148},439771,{"$f":"(((AAMC_Raw_Data_for_FY22[[#This Row],[75th]]-AAMC_Raw_Data_for_FY22[[#This Row],[Median]])/25)*30) + AAMC_Raw_Data_for_FY22[[#This Row],[Median]]","v":446394},{"$f":"(((AAMC_Raw_Data_for_FY22[[#This Row],[75th]]-AAMC_Raw_Data_for_FY22[[#This Row],[Median]])/25)*35) + AAMC_Raw_Data_for_FY22[[#This Row],[Median]]","v":453017},{"$f":"(((AAMC_Raw_Data_for_FY22[[#This Row],[75th]]-AAMC_Raw_Data_for_FY22[[#This Row],[Median]])/25)*40) + AAMC_Raw_Data_for_FY22[[#This Row],[Median]]","v":459640}]
[{"$f":"AAMC_Raw_Data_for_FY22[[#This Row],[Source]]&AAMC_Raw_Data_for_FY22[[#This Row],[Type]]&AAMC_Raw_Data_for_FY22[[#This Row],[School Subset]]&AAMC_Raw_Data_for_FY22[[#This Row],[Rank]]&AAMC_Raw_Data_for_FY22[[#This Row],[Degree]]&AAMC_Raw_Data_for_FY22[[#This Row],[Department / Specialty]]&\"L\"","v":"AAMCAcademicPublicChairMDPathology: AnatomicL"},"Pathology: Anatomic",1,"AAMC","Academic","Public","Chair","MD","2021-2022",474526,{"$f":"(((AAMC_Raw_Data_for_FY22[[#This Row],[Median]]-AAMC_Raw_Data_for_FY22[[#This Row],[25th]])/25)*5) + AAMC_Raw_Data_for_FY22[[#This Row],[25th]]","v":485355.8},{"$f":"(((AAMC_Raw_Data_for_FY22[[#This Row],[Median]]-AAMC_Raw_Data_for_FY22[[#This Row],[25th]])/25)*10) + AAMC_Raw_Data_for_FY22[[#This Row],[25th]]","v":496185.59999999998},{"$f":"(((AAMC_Raw_Data_for_FY22[[#This Row],[Median]]-AAMC_Raw_Data_for_FY22[[#This Row],[25th]])/25)*15) + AAMC_Raw_Data_for_FY22[[#This Row],[25th]]","v":507015.4},{"$f":"(((AAMC_Raw_Data_for_FY22[[#This Row],[Median]]-AAMC_Raw_Data_for_FY22[[#This Row],[25th]])/25)*20) + AAMC_Raw_Data_for_FY22[[#This Row],[25th]]","v":517845.2},528675,{"$f":"(((AAMC_Raw_Data_for_FY22[[#This Row],[75th]]-AAMC_Raw_Data_for_FY22[[#This Row],[Median]])/25)*5) + AAMC_Raw_Data_for_FY22[[#This Row],[Median]]","v":545910.4},{"$f":"(((AAMC_Raw_Data_for_FY22[[#This Row],[75th]]-AAMC_Raw_Data_for_FY22[[#This Row],[Median]])/25)*10) + AAMC_Raw_Data_for_FY22[[#This Row],[Median]]","v":563145.80000000005},{"$f":"(((AAMC_Raw_Data_for_FY22[[#This Row],[75th]]-AAMC_Raw_Data_for_FY22[[#This Row],[Median]])/25)*15) + AAMC_Raw_Data_for_FY22[[#This Row],[Median]]","v":580381.19999999995},{"$f":"(((AAMC_Raw_Data_for_FY22[[#This Row],[75th]]-AAMC_Raw_Data_for_FY22[[#This Row],[Median]])/25)*20) + AAMC_Raw_Data_for_FY22[[#This Row],[Median]]","v":597616.6},614852,{"$f":"(((AAMC_Raw_Data_for_FY22[[#This Row],[75th]]-AAMC_Raw_Data_for_FY22[[#This Row],[Median]])/25)*30) + AAMC_Raw_Data_for_FY22[[#This Row],[Median]]","v":632087.4},{"$f":"(((AAMC_Raw_Data_for_FY22[[#This Row],[75th]]-AAMC_Raw_Data_for_FY22[[#This Row],[Median]])/25)*35) + AAMC_Raw_Data_for_FY22[[#This Row],[Median]]","v":649322.80000000005},{"$f":"(((AAMC_Raw_Data_for_FY22[[#This Row],[75th]]-AAMC_Raw_Data_for_FY22[[#This Row],[Median]])/25)*40) + AAMC_Raw_Data_for_FY22[[#This Row],[Median]]","v":666558.19999999995}]
[{"$f":"AAMC_Raw_Data_for_FY22[[#This Row],[Source]]&AAMC_Raw_Data_for_FY22[[#This Row],[Type]]&AAMC_Raw_Data_for_FY22[[#This Row],[School Subset]]&AAMC_Raw_Data_for_FY22[[#This Row],[Rank]]&AAMC_Raw_Data_for_FY22[[#This Row],[Degree]]&AAMC_Raw_Data_for_FY22[[#This Row],[Department / Specialty]]&\"L\"","v":"AAMCAcademicPublicInstructorMDPathology: ClinicalL"},"Pathology: Clinical",5,"AAMC","Academic","Public","Instructor","MD","2021-2022",117272,{"$f":"(((AAMC_Raw_Data_for_FY22[[#This Row],[Median]]-AAMC_Raw_Data_for_FY22[[#This Row],[25th]])/25)*5) + AAMC_Raw_Data_for_FY22[[#This Row],[25th]]","v":119846.8},{"$f":"(((AAMC_Raw_Data_for_FY22[[#This Row],[Median]]-AAMC_Raw_Data_for_FY22[[#This Row],[25th]])/25)*10) + AAMC_Raw_Data_for_FY22[[#This Row],[25th]]","v":122421.6},{"$f":"(((AAMC_Raw_Data_for_FY22[[#This Row],[Median]]-AAMC_Raw_Data_for_FY22[[#This Row],[25th]])/25)*15) + AAMC_Raw_Data_for_FY22[[#This Row],[25th]]","v":124996.4},{"$f":"(((AAMC_Raw_Data_for_FY22[[#This Row],[Median]]-AAMC_Raw_Data_for_FY22[[#This Row],[25th]])/25)*20) + AAMC_Raw_Data_for_FY22[[#This Row],[25th]]","v":127571.2},130146,{"$f":"(((AAMC_Raw_Data_for_FY22[[#This Row],[75th]]-AAMC_Raw_Data_for_FY22[[#This Row],[Median]])/25)*5) + AAMC_Raw_Data_for_FY22[[#This Row],[Median]]","v":139161.4},{"$f":"(((AAMC_Raw_Data_for_FY22[[#This Row],[75th]]-AAMC_Raw_Data_for_FY22[[#This Row],[Median]])/25)*10) + AAMC_Raw_Data_for_FY22[[#This Row],[Median]]","v":148176.79999999999},{"$f":"(((AAMC_Raw_Data_for_FY22[[#This Row],[75th]]-AAMC_Raw_Data_for_FY22[[#This Row],[Median]])/25)*15) + AAMC_Raw_Data_for_FY22[[#This Row],[Median]]","v":157192.20000000001},{"$f":"(((AAMC_Raw_Data_for_FY22[[#This Row],[75th]]-AAMC_Raw_Data_for_FY22[[#This Row],[Median]])/25)*20) + AAMC_Raw_Data_for_FY22[[#This Row],[Median]]","v":166207.6},175223,{"$f":"(((AAMC_Raw_Data_for_FY22[[#This Row],[75th]]-AAMC_Raw_Data_for_FY22[[#This Row],[Median]])/25)*30) + AAMC_Raw_Data_for_FY22[[#This Row],[Median]]","v":184238.4},{"$f":"(((AAMC_Raw_Data_for_FY22[[#This Row],[75th]]-AAMC_Raw_Data_for_FY22[[#This Row],[Median]])/25)*35) + AAMC_Raw_Data_for_FY22[[#This Row],[Median]]","v":193253.8},{"$f":"(((AAMC_Raw_Data_for_FY22[[#This Row],[75th]]-AAMC_Raw_Data_for_FY22[[#This Row],[Median]])/25)*40) + AAMC_Raw_Data_for_FY22[[#This Row],[Median]]","v":202269.2}]
[{"$f":"AAMC_Raw_Data_for_FY22[[#This Row],[Source]]&AAMC_Raw_Data_for_FY22[[#This Row],[Type]]&AAMC_Raw_Data_for_FY22[[#This Row],[School Subset]]&AAMC_Raw_Data_for_FY22[[#This Row],[Rank]]&AAMC_Raw_Data_for_FY22[[#This Row],[Degree]]&AAMC_Raw_Data_for_FY22[[#This Row],[Department / Specialty]]&\"L\"","v":"AAMCAcademicPublicAssistantMDPathology: ClinicalL"},"Pathology: Clinical",4,"AAMC","Academic","Public","Assistant","MD","2021-2022",218208,{"$f":"(((AAMC_Raw_Data_for_FY22[[#This Row],[Median]]-AAMC_Raw_Data_for_FY22[[#This Row],[25th]])/25)*5) + AAMC_Raw_Data_for_FY22[[#This Row],[25th]]","v":222204},{"$f":"(((AAMC_Raw_Data_for_FY22[[#This Row],[Median]]-AAMC_Raw_Data_for_FY22[[#This Row],[25th]])/25)*10) + AAMC_Raw_Data_for_FY22[[#This Row],[25th]]","v":226200},{"$f":"(((AAMC_Raw_Data_for_FY22[[#This Row],[Median]]-AAMC_Raw_Data_for_FY22[[#This Row],[25th]])/25)*15) + AAMC_Raw_Data_for_FY22[[#This Row],[25th]]","v":230196},{"$f":"(((AAMC_Raw_Data_for_FY22[[#This Row],[Median]]-AAMC_Raw_Data_for_FY22[[#This Row],[25th]])/25)*20) + AAMC_Raw_Data_for_FY22[[#This Row],[25th]]","v":234192},238188,{"$f":"(((AAMC_Raw_Data_for_FY22[[#This Row],[75th]]-AAMC_Raw_Data_for_FY22[[#This Row],[Median]])/25)*5) + AAMC_Raw_Data_for_FY22[[#This Row],[Median]]","v":244271},{"$f":"(((AAMC_Raw_Data_for_FY22[[#This Row],[75th]]-AAMC_Raw_Data_for_FY22[[#This Row],[Median]])/25)*10) + AAMC_Raw_Data_for_FY22[[#This Row],[Median]]","v":250354},{"$f":"(((AAMC_Raw_Data_for_FY22[[#This Row],[75th]]-AAMC_Raw_Data_for_FY22[[#This Row],[Median]])/25)*15) + AAMC_Raw_Data_for_FY22[[#This Row],[Median]]","v":256437},{"$f":"(((AAMC_Raw_Data_for_FY22[[#This Row],[75th]]-AAMC_Raw_Data_for_FY22[[#This Row],[Median]])/25)*20) + AAMC_Raw_Data_for_FY22[[#This Row],[Median]]","v":262520},268603,{"$f":"(((AAMC_Raw_Data_for_FY22[[#This Row],[75th]]-AAMC_Raw_Data_for_FY22[[#This Row],[Median]])/25)*30) + AAMC_Raw_Data_for_FY22[[#This Row],[Median]]","v":274686},{"$f":"(((AAMC_Raw_Data_for_FY22[[#This Row],[75th]]-AAMC_Raw_Data_for_FY22[[#This Row],[Median]])/25)*35) + AAMC_Raw_Data_for_FY22[[#This Row],[Median]]","v":280769},{"$f":"(((AAMC_Raw_Data_for_FY22[[#This Row],[75th]]-AAMC_Raw_Data_for_FY22[[#This Row],[Median]])/25)*40) + AAMC_Raw_Data_for_FY22[[#This Row],[Median]]","v":286852}]
[{"$f":"AAMC_Raw_Data_for_FY22[[#This Row],[Source]]&AAMC_Raw_Data_for_FY22[[#This Row],[Type]]&AAMC_Raw_Data_for_FY22[[#This Row],[School Subset]]&AAMC_Raw_Data_for_FY22[[#This Row],[Rank]]&AAMC_Raw_Data_for_FY22[[#This Row],[Degree]]&AAMC_Raw_Data_for_FY22[[#This Row],[Department / Specialty]]&\"L\"","v":"AAMCAcademicPublicAssociateMDPathology: ClinicalL"},"Pathology: Clinical",3,"AAMC","Academic","Public","Associate","MD","2021-2022",261867,{"$f":"(((AAMC_Raw_Data_for_FY22[[#This Row],[Median]]-AAMC_Raw_Data_for_FY22[[#This Row],[25th]])/25)*5) + AAMC_Raw_Data_for_FY22[[#This Row],[25th]]","v":267443.59999999998},{"$f":"(((AAMC_Raw_Data_for_FY22[[#This Row],[Median]]-AAMC_Raw_Data_for_FY22[[#This Row],[25th]])/25)*10) + AAMC_Raw_Data_for_FY22[[#This Row],[25th]]","v":273020.2},{"$f":"(((AAMC_Raw_Data_for_FY22[[#This Row],[Median]]-AAMC_Raw_Data_for_FY22[[#This Row],[25th]])/25)*15) + AAMC_Raw_Data_for_FY22[[#This Row],[25th]]","v":278596.8},{"$f":"(((AAMC_Raw_Data_for_FY22[[#This Row],[Median]]-AAMC_Raw_Data_for_FY22[[#This Row],[25th]])/25)*20) + AAMC_Raw_Data_for_FY22[[#This Row],[25th]]","v":284173.40000000002},289750,{"$f":"(((AAMC_Raw_Data_for_FY22[[#This Row],[75th]]-AAMC_Raw_Data_for_FY22[[#This Row],[Median]])/25)*5) + AAMC_Raw_Data_for_FY22[[#This Row],[Median]]","v":297078.8},{"$f":"(((AAMC_Raw_Data_for_FY22[[#This Row],[75th]]-AAMC_Raw_Data_for_FY22[[#This Row],[Median]])/25)*10) + AAMC_Raw_Data_for_FY22[[#This Row],[Median]]","v":304407.59999999998},{"$f":"(((AAMC_Raw_Data_for_FY22[[#This Row],[75th]]-AAMC_Raw_Data_for_FY22[[#This Row],[Median]])/25)*15) + AAMC_Raw_Data_for_FY22[[#This Row],[Median]]","v":311736.40000000002},{"$f":"(((AAMC_Raw_Data_for_FY22[[#This Row],[75th]]-AAMC_Raw_Data_for_FY22[[#This Row],[Median]])/25)*20) + AAMC_Raw_Data_for_FY22[[#This Row],[Median]]","v":319065.2},326394,{"$f":"(((AAMC_Raw_Data_for_FY22[[#This Row],[75th]]-AAMC_Raw_Data_for_FY22[[#This Row],[Median]])/25)*30) + AAMC_Raw_Data_for_FY22[[#This Row],[Median]]","v":333722.8},{"$f":"(((AAMC_Raw_Data_for_FY22[[#This Row],[75th]]-AAMC_Raw_Data_for_FY22[[#This Row],[Median]])/25)*35) + AAMC_Raw_Data_for_FY22[[#This Row],[Median]]","v":341051.6},{"$f":"(((AAMC_Raw_Data_for_FY22[[#This Row],[75th]]-AAMC_Raw_Data_for_FY22[[#This Row],[Median]])/25)*40) + AAMC_Raw_Data_for_FY22[[#This Row],[Median]]","v":348380.4}]
[{"$f":"AAMC_Raw_Data_for_FY22[[#This Row],[Source]]&AAMC_Raw_Data_for_FY22[[#This Row],[Type]]&AAMC_Raw_Data_for_FY22[[#This Row],[School Subset]]&AAMC_Raw_Data_for_FY22[[#This Row],[Rank]]&AAMC_Raw_Data_for_FY22[[#This Row],[Degree]]&AAMC_Raw_Data_for_FY22[[#This Row],[Department / Specialty]]&\"L\"","v":"AAMCAcademicPublicProfessorMDPathology: ClinicalL"},"Pathology: Clinical",2,"AAMC","Academic","Public","Professor","MD","2021-2022",275942,{"$f":"(((AAMC_Raw_Data_for_FY22[[#This Row],[Median]]-AAMC_Raw_Data_for_FY22[[#This Row],[25th]])/25)*5) + AAMC_Raw_Data_for_FY22[[#This Row],[25th]]","v":287268},{"$f":"(((AAMC_Raw_Data_for_FY22[[#This Row],[Median]]-AAMC_Raw_Data_for_FY22[[#This Row],[25th]])/25)*10) + AAMC_Raw_Data_for_FY22[[#This Row],[25th]]","v":298594},{"$f":"(((AAMC_Raw_Data_for_FY22[[#This Row],[Median]]-AAMC_Raw_Data_for_FY22[[#This Row],[25th]])/25)*15) + AAMC_Raw_Data_for_FY22[[#This Row],[25th]]","v":309920},{"$f":"(((AAMC_Raw_Data_for_FY22[[#This Row],[Median]]-AAMC_Raw_Data_for_FY22[[#This Row],[25th]])/25)*20) + AAMC_Raw_Data_for_FY22[[#This Row],[25th]]","v":321246},332572,{"$f":"(((AAMC_Raw_Data_for_FY22[[#This Row],[75th]]-AAMC_Raw_Data_for_FY22[[#This Row],[Median]])/25)*5) + AAMC_Raw_Data_for_FY22[[#This Row],[Median]]","v":340455.2},{"$f":"(((AAMC_Raw_Data_for_FY22[[#This Row],[75th]]-AAMC_Raw_Data_for_FY22[[#This Row],[Median]])/25)*10) + AAMC_Raw_Data_for_FY22[[#This Row],[Median]]","v":348338.4},{"$f":"(((AAMC_Raw_Data_for_FY22[[#This Row],[75th]]-AAMC_Raw_Data_for_FY22[[#This Row],[Median]])/25)*15) + AAMC_Raw_Data_for_FY22[[#This Row],[Median]]","v":356221.6},{"$f":"(((AAMC_Raw_Data_for_FY22[[#This Row],[75th]]-AAMC_Raw_Data_for_FY22[[#This Row],[Median]])/25)*20) + AAMC_Raw_Data_for_FY22[[#This Row],[Median]]","v":364104.8},371988,{"$f":"(((AAMC_Raw_Data_for_FY22[[#This Row],[75th]]-AAMC_Raw_Data_for_FY22[[#This Row],[Median]])/25)*30) + AAMC_Raw_Data_for_FY22[[#This Row],[Median]]","v":379871.2},{"$f":"(((AAMC_Raw_Data_for_FY22[[#This Row],[75th]]-AAMC_Raw_Data_for_FY22[[#This Row],[Median]])/25)*35) + AAMC_Raw_Data_for_FY22[[#This Row],[Median]]","v":387754.4},{"$f":"(((AAMC_Raw_Data_for_FY22[[#This Row],[75th]]-AAMC_Raw_Data_for_FY22[[#This Row],[Median]])/25)*40) + AAMC_Raw_Data_for_FY22[[#This Row],[Median]]","v":395637.6}]
[{"$f":"AAMC_Raw_Data_for_FY22[[#This Row],[Source]]&AAMC_Raw_Data_for_FY22[[#This Row],[Type]]&AAMC_Raw_Data_for_FY22[[#This Row],[School Subset]]&AAMC_Raw_Data_for_FY22[[#This Row],[Rank]]&AAMC_Raw_Data_for_FY22[[#This Row],[Degree]]&AAMC_Raw_Data_for_FY22[[#This Row],[Department / Specialty]]&\"L\"","v":"AAMCAcademicPublicChiefMDPathology: ClinicalL"},"Pathology: Clinical",6,"AAMC","Academic","Public","Chief","MD","2021-2022",313755,{"$f":"(((AAMC_Raw_Data_for_FY22[[#This Row],[Median]]-AAMC_Raw_Data_for_FY22[[#This Row],[25th]])/25)*5) + AAMC_Raw_Data_for_FY22[[#This Row],[25th]]","v":318237.2},{"$f":"(((AAMC_Raw_Data_for_FY22[[#This Row],[Median]]-AAMC_Raw_Data_for_FY22[[#This Row],[25th]])/25)*10) + AAMC_Raw_Data_for_FY22[[#This Row],[25th]]","v":322719.40000000002},{"$f":"(((AAMC_Raw_Data_for_FY22[[#This Row],[Median]]-AAMC_Raw_Data_for_FY22[[#This Row],[25th]])/25)*15) + AAMC_Raw_Data_for_FY22[[#This Row],[25th]]","v":327201.59999999998},{"$f":"(((AAMC_Raw_Data_for_FY22[[#This Row],[Median]]-AAMC_Raw_Data_for_FY22[[#This Row],[25th]])/25)*20) + AAMC_Raw_Data_for_FY22[[#This Row],[25th]]","v":331683.8},336166,{"$f":"(((AAMC_Raw_Data_for_FY22[[#This Row],[75th]]-AAMC_Raw_Data_for_FY22[[#This Row],[Median]])/25)*5) + AAMC_Raw_Data_for_FY22[[#This Row],[Median]]","v":349769},{"$f":"(((AAMC_Raw_Data_for_FY22[[#This Row],[75th]]-AAMC_Raw_Data_for_FY22[[#This Row],[Median]])/25)*10) + AAMC_Raw_Data_for_FY22[[#This Row],[Median]]","v":363372},{"$f":"(((AAMC_Raw_Data_for_FY22[[#This Row],[75th]]-AAMC_Raw_Data_for_FY22[[#This Row],[Median]])/25)*15) + AAMC_Raw_Data_for_FY22[[#This Row],[Median]]","v":376975},{"$f":"(((AAMC_Raw_Data_for_FY22[[#This Row],[75th]]-AAMC_Raw_Data_for_FY22[[#This Row],[Median]])/25)*20) + AAMC_Raw_Data_for_FY22[[#This Row],[Median]]","v":390578},404181,{"$f":"(((AAMC_Raw_Data_for_FY22[[#This Row],[75th]]-AAMC_Raw_Data_for_FY22[[#This Row],[Median]])/25)*30) + AAMC_Raw_Data_for_FY22[[#This Row],[Median]]","v":417784},{"$f":"(((AAMC_Raw_Data_for_FY22[[#This Row],[75th]]-AAMC_Raw_Data_for_FY22[[#This Row],[Median]])/25)*35) + AAMC_Raw_Data_for_FY22[[#This Row],[Median]]","v":431387},{"$f":"(((AAMC_Raw_Data_for_FY22[[#This Row],[75th]]-AAMC_Raw_Data_for_FY22[[#This Row],[Median]])/25)*40) + AAMC_Raw_Data_for_FY22[[#This Row],[Median]]","v":444990}]
[{"$f":"AAMC_Raw_Data_for_FY22[[#This Row],[Source]]&AAMC_Raw_Data_for_FY22[[#This Row],[Type]]&AAMC_Raw_Data_for_FY22[[#This Row],[School Subset]]&AAMC_Raw_Data_for_FY22[[#This Row],[Rank]]&AAMC_Raw_Data_for_FY22[[#This Row],[Degree]]&AAMC_Raw_Data_for_FY22[[#This Row],[Department / Specialty]]&\"L\"","v":"AAMCAcademicPublicChairMDPathology: ClinicalL"},"Pathology: Clinical",1,"AAMC","Academic","Public","Chair","MD","2021-2022",580630,{"$f":"(((AAMC_Raw_Data_for_FY22[[#This Row],[Median]]-AAMC_Raw_Data_for_FY22[[#This Row],[25th]])/25)*5) + AAMC_Raw_Data_for_FY22[[#This Row],[25th]]","v":593684},{"$f":"(((AAMC_Raw_Data_for_FY22[[#This Row],[Median]]-AAMC_Raw_Data_for_FY22[[#This Row],[25th]])/25)*10) + AAMC_Raw_Data_for_FY22[[#This Row],[25th]]","v":606738},{"$f":"(((AAMC_Raw_Data_for_FY22[[#This Row],[Median]]-AAMC_Raw_Data_for_FY22[[#This Row],[25th]])/25)*15) + AAMC_Raw_Data_for_FY22[[#This Row],[25th]]","v":619792},{"$f":"(((AAMC_Raw_Data_for_FY22[[#This Row],[Median]]-AAMC_Raw_Data_for_FY22[[#This Row],[25th]])/25)*20) + AAMC_Raw_Data_for_FY22[[#This Row],[25th]]","v":632846},645900,{"$f":"(((AAMC_Raw_Data_for_FY22[[#This Row],[75th]]-AAMC_Raw_Data_for_FY22[[#This Row],[Median]])/25)*5) + AAMC_Raw_Data_for_FY22[[#This Row],[Median]]","v":664459.80000000005},{"$f":"(((AAMC_Raw_Data_for_FY22[[#This Row],[75th]]-AAMC_Raw_Data_for_FY22[[#This Row],[Median]])/25)*10) + AAMC_Raw_Data_for_FY22[[#This Row],[Median]]","v":683019.6},{"$f":"(((AAMC_Raw_Data_for_FY22[[#This Row],[75th]]-AAMC_Raw_Data_for_FY22[[#This Row],[Median]])/25)*15) + AAMC_Raw_Data_for_FY22[[#This Row],[Median]]","v":701579.4},{"$f":"(((AAMC_Raw_Data_for_FY22[[#This Row],[75th]]-AAMC_Raw_Data_for_FY22[[#This Row],[Median]])/25)*20) + AAMC_Raw_Data_for_FY22[[#This Row],[Median]]","v":720139.2},738699,{"$f":"(((AAMC_Raw_Data_for_FY22[[#This Row],[75th]]-AAMC_Raw_Data_for_FY22[[#This Row],[Median]])/25)*30) + AAMC_Raw_Data_for_FY22[[#This Row],[Median]]","v":757258.8},{"$f":"(((AAMC_Raw_Data_for_FY22[[#This Row],[75th]]-AAMC_Raw_Data_for_FY22[[#This Row],[Median]])/25)*35) + AAMC_Raw_Data_for_FY22[[#This Row],[Median]]","v":775818.6},{"$f":"(((AAMC_Raw_Data_for_FY22[[#This Row],[75th]]-AAMC_Raw_Data_for_FY22[[#This Row],[Median]])/25)*40) + AAMC_Raw_Data_for_FY22[[#This Row],[Median]]","v":794378.4}]
[{"$f":"AAMC_Raw_Data_for_FY22[[#This Row],[Source]]&AAMC_Raw_Data_for_FY22[[#This Row],[Type]]&AAMC_Raw_Data_for_FY22[[#This Row],[School Subset]]&AAMC_Raw_Data_for_FY22[[#This Row],[Rank]]&AAMC_Raw_Data_for_FY22[[#This Row],[Degree]]&AAMC_Raw_Data_for_FY22[[#This Row],[Department / Specialty]]&\"L\"","v":"AAMCAcademicPublicInstructorMDPathology: Other PathologyL"},"Pathology: Other Pathology",5,"AAMC","Academic","Public","Instructor","MD","2021-2022",null,{"$f":"(((AAMC_Raw_Data_for_FY22[[#This Row],[Median]]-AAMC_Raw_Data_for_FY22[[#This Row],[25th]])/25)*5) + AAMC_Raw_Data_for_FY22[[#This Row],[25th]]","v":0},{"$f":"(((AAMC_Raw_Data_for_FY22[[#This Row],[Median]]-AAMC_Raw_Data_for_FY22[[#This Row],[25th]])/25)*10) + AAMC_Raw_Data_for_FY22[[#This Row],[25th]]","v":0},{"$f":"(((AAMC_Raw_Data_for_FY22[[#This Row],[Median]]-AAMC_Raw_Data_for_FY22[[#This Row],[25th]])/25)*15) + AAMC_Raw_Data_for_FY22[[#This Row],[25th]]","v":0},{"$f":"(((AAMC_Raw_Data_for_FY22[[#This Row],[Median]]-AAMC_Raw_Data_for_FY22[[#This Row],[25th]])/25)*20) + AAMC_Raw_Data_for_FY22[[#This Row],[25th]]","v":0},null,{"$f":"(((AAMC_Raw_Data_for_FY22[[#This Row],[75th]]-AAMC_Raw_Data_for_FY22[[#This Row],[Median]])/25)*5) + AAMC_Raw_Data_for_FY22[[#This Row],[Median]]","v":0},{"$f":"(((AAMC_Raw_Data_for_FY22[[#This Row],[75th]]-AAMC_Raw_Data_for_FY22[[#This Row],[Median]])/25)*10) + AAMC_Raw_Data_for_FY22[[#This Row],[Median]]","v":0},{"$f":"(((AAMC_Raw_Data_for_FY22[[#This Row],[75th]]-AAMC_Raw_Data_for_FY22[[#This Row],[Median]])/25)*15) + AAMC_Raw_Data_for_FY22[[#This Row],[Median]]","v":0},{"$f":"(((AAMC_Raw_Data_for_FY22[[#This Row],[75th]]-AAMC_Raw_Data_for_FY22[[#This Row],[Median]])/25)*20) + AAMC_Raw_Data_for_FY22[[#This Row],[Median]]","v":0},null,{"$f":"(((AAMC_Raw_Data_for_FY22[[#This Row],[75th]]-AAMC_Raw_Data_for_FY22[[#This Row],[Median]])/25)*30) + AAMC_Raw_Data_for_FY22[[#This Row],[Median]]","v":0},{"$f":"(((AAMC_Raw_Data_for_FY22[[#This Row],[75th]]-AAMC_Raw_Data_for_FY22[[#This Row],[Median]])/25)*35) + AAMC_Raw_Data_for_FY22[[#This Row],[Median]]","v":0},{"$f":"(((AAMC_Raw_Data_for_FY22[[#This Row],[75th]]-AAMC_Raw_Data_for_FY22[[#This Row],[Median]])/25)*40) + AAMC_Raw_Data_for_FY22[[#This Row],[Median]]","v":0}]
[{"$f":"AAMC_Raw_Data_for_FY22[[#This Row],[Source]]&AAMC_Raw_Data_for_FY22[[#This Row],[Type]]&AAMC_Raw_Data_for_FY22[[#This Row],[School Subset]]&AAMC_Raw_Data_for_FY22[[#This Row],[Rank]]&AAMC_Raw_Data_for_FY22[[#This Row],[Degree]]&AAMC_Raw_Data_for_FY22[[#This Row],[Department / Specialty]]&\"L\"","v":"AAMCAcademicPublicAssistantMDPathology: Other PathologyL"},"Pathology: Other Pathology",4,"AAMC","Academic","Public","Assistant","MD","2021-2022",214331,{"$f":"(((AAMC_Raw_Data_for_FY22[[#This Row],[Median]]-AAMC_Raw_Data_for_FY22[[#This Row],[25th]])/25)*5) + AAMC_Raw_Data_for_FY22[[#This Row],[25th]]","v":217623.8},{"$f":"(((AAMC_Raw_Data_for_FY22[[#This Row],[Median]]-AAMC_Raw_Data_for_FY22[[#This Row],[25th]])/25)*10) + AAMC_Raw_Data_for_FY22[[#This Row],[25th]]","v":220916.6},{"$f":"(((AAMC_Raw_Data_for_FY22[[#This Row],[Median]]-AAMC_Raw_Data_for_FY22[[#This Row],[25th]])/25)*15) + AAMC_Raw_Data_for_FY22[[#This Row],[25th]]","v":224209.4},{"$f":"(((AAMC_Raw_Data_for_FY22[[#This Row],[Median]]-AAMC_Raw_Data_for_FY22[[#This Row],[25th]])/25)*20) + AAMC_Raw_Data_for_FY22[[#This Row],[25th]]","v":227502.2},230795,{"$f":"(((AAMC_Raw_Data_for_FY22[[#This Row],[75th]]-AAMC_Raw_Data_for_FY22[[#This Row],[Median]])/25)*5) + AAMC_Raw_Data_for_FY22[[#This Row],[Median]]","v":242622.2},{"$f":"(((AAMC_Raw_Data_for_FY22[[#This Row],[75th]]-AAMC_Raw_Data_for_FY22[[#This Row],[Median]])/25)*10) + AAMC_Raw_Data_for_FY22[[#This Row],[Median]]","v":254449.4},{"$f":"(((AAMC_Raw_Data_for_FY22[[#This Row],[75th]]-AAMC_Raw_Data_for_FY22[[#This Row],[Median]])/25)*15) + AAMC_Raw_Data_for_FY22[[#This Row],[Median]]","v":266276.59999999998},{"$f":"(((AAMC_Raw_Data_for_FY22[[#This Row],[75th]]-AAMC_Raw_Data_for_FY22[[#This Row],[Median]])/25)*20) + AAMC_Raw_Data_for_FY22[[#This Row],[Median]]","v":278103.8},289931,{"$f":"(((AAMC_Raw_Data_for_FY22[[#This Row],[75th]]-AAMC_Raw_Data_for_FY22[[#This Row],[Median]])/25)*30) + AAMC_Raw_Data_for_FY22[[#This Row],[Median]]","v":301758.2},{"$f":"(((AAMC_Raw_Data_for_FY22[[#This Row],[75th]]-AAMC_Raw_Data_for_FY22[[#This Row],[Median]])/25)*35) + AAMC_Raw_Data_for_FY22[[#This Row],[Median]]","v":313585.40000000002},{"$f":"(((AAMC_Raw_Data_for_FY22[[#This Row],[75th]]-AAMC_Raw_Data_for_FY22[[#This Row],[Median]])/25)*40) + AAMC_Raw_Data_for_FY22[[#This Row],[Median]]","v":325412.59999999998}]
[{"$f":"AAMC_Raw_Data_for_FY22[[#This Row],[Source]]&AAMC_Raw_Data_for_FY22[[#This Row],[Type]]&AAMC_Raw_Data_for_FY22[[#This Row],[School Subset]]&AAMC_Raw_Data_for_FY22[[#This Row],[Rank]]&AAMC_Raw_Data_for_FY22[[#This Row],[Degree]]&AAMC_Raw_Data_for_FY22[[#This Row],[Department / Specialty]]&\"L\"","v":"AAMCAcademicPublicAssociateMDPathology: Other PathologyL"},"Pathology: Other Pathology",3,"AAMC","Academic","Public","Associate","MD","2021-2022",160464,{"$f":"(((AAMC_Raw_Data_for_FY22[[#This Row],[Median]]-AAMC_Raw_Data_for_FY22[[#This Row],[25th]])/25)*5) + AAMC_Raw_Data_for_FY22[[#This Row],[25th]]","v":178171.2},{"$f":"(((AAMC_Raw_Data_for_FY22[[#This Row],[Median]]-AAMC_Raw_Data_for_FY22[[#This Row],[25th]])/25)*10) + AAMC_Raw_Data_for_FY22[[#This Row],[25th]]","v":195878.39999999999},{"$f":"(((AAMC_Raw_Data_for_FY22[[#This Row],[Median]]-AAMC_Raw_Data_for_FY22[[#This Row],[25th]])/25)*15) + AAMC_Raw_Data_for_FY22[[#This Row],[25th]]","v":213585.6},{"$f":"(((AAMC_Raw_Data_for_FY22[[#This Row],[Median]]-AAMC_Raw_Data_for_FY22[[#This Row],[25th]])/25)*20) + AAMC_Raw_Data_for_FY22[[#This Row],[25th]]","v":231292.79999999999},249000,{"$f":"(((AAMC_Raw_Data_for_FY22[[#This Row],[75th]]-AAMC_Raw_Data_for_FY22[[#This Row],[Median]])/25)*5) + AAMC_Raw_Data_for_FY22[[#This Row],[Median]]","v":257825},{"$f":"(((AAMC_Raw_Data_for_FY22[[#This Row],[75th]]-AAMC_Raw_Data_for_FY22[[#This Row],[Median]])/25)*10) + AAMC_Raw_Data_for_FY22[[#This Row],[Median]]","v":266650},{"$f":"(((AAMC_Raw_Data_for_FY22[[#This Row],[75th]]-AAMC_Raw_Data_for_FY22[[#This Row],[Median]])/25)*15) + AAMC_Raw_Data_for_FY22[[#This Row],[Median]]","v":275475},{"$f":"(((AAMC_Raw_Data_for_FY22[[#This Row],[75th]]-AAMC_Raw_Data_for_FY22[[#This Row],[Median]])/25)*20) + AAMC_Raw_Data_for_FY22[[#This Row],[Median]]","v":284300},293125,{"$f":"(((AAMC_Raw_Data_for_FY22[[#This Row],[75th]]-AAMC_Raw_Data_for_FY22[[#This Row],[Median]])/25)*30) + AAMC_Raw_Data_for_FY22[[#This Row],[Median]]","v":301950},{"$f":"(((AAMC_Raw_Data_for_FY22[[#This Row],[75th]]-AAMC_Raw_Data_for_FY22[[#This Row],[Median]])/25)*35) + AAMC_Raw_Data_for_FY22[[#This Row],[Median]]","v":310775},{"$f":"(((AAMC_Raw_Data_for_FY22[[#This Row],[75th]]-AAMC_Raw_Data_for_FY22[[#This Row],[Median]])/25)*40) + AAMC_Raw_Data_for_FY22[[#This Row],[Median]]","v":319600}]
[{"$f":"AAMC_Raw_Data_for_FY22[[#This Row],[Source]]&AAMC_Raw_Data_for_FY22[[#This Row],[Type]]&AAMC_Raw_Data_for_FY22[[#This Row],[School Subset]]&AAMC_Raw_Data_for_FY22[[#This Row],[Rank]]&AAMC_Raw_Data_for_FY22[[#This Row],[Degree]]&AAMC_Raw_Data_for_FY22[[#This Row],[Department / Specialty]]&\"L\"","v":"AAMCAcademicPublicProfessorMDPathology: Other PathologyL"},"Pathology: Other Pathology",2,"AAMC","Academic","Public","Professor","MD","2021-2022",231098,{"$f":"(((AAMC_Raw_Data_for_FY22[[#This Row],[Median]]-AAMC_Raw_Data_for_FY22[[#This Row],[25th]])/25)*5) + AAMC_Raw_Data_for_FY22[[#This Row],[25th]]","v":243503.4},{"$f":"(((AAMC_Raw_Data_for_FY22[[#This Row],[Median]]-AAMC_Raw_Data_for_FY22[[#This Row],[25th]])/25)*10) + AAMC_Raw_Data_for_FY22[[#This Row],[25th]]","v":255908.8},{"$f":"(((AAMC_Raw_Data_for_FY22[[#This Row],[Median]]-AAMC_Raw_Data_for_FY22[[#This Row],[25th]])/25)*15) + AAMC_Raw_Data_for_FY22[[#This Row],[25th]]","v":268314.2},{"$f":"(((AAMC_Raw_Data_for_FY22[[#This Row],[Median]]-AAMC_Raw_Data_for_FY22[[#This Row],[25th]])/25)*20) + AAMC_Raw_Data_for_FY22[[#This Row],[25th]]","v":280719.59999999998},293125,{"$f":"(((AAMC_Raw_Data_for_FY22[[#This Row],[75th]]-AAMC_Raw_Data_for_FY22[[#This Row],[Median]])/25)*5) + AAMC_Raw_Data_for_FY22[[#This Row],[Median]]","v":308935.8},{"$f":"(((AAMC_Raw_Data_for_FY22[[#This Row],[75th]]-AAMC_Raw_Data_for_FY22[[#This Row],[Median]])/25)*10) + AAMC_Raw_Data_for_FY22[[#This Row],[Median]]","v":324746.59999999998},{"$f":"(((AAMC_Raw_Data_for_FY22[[#This Row],[75th]]-AAMC_Raw_Data_for_FY22[[#This Row],[Median]])/25)*15) + AAMC_Raw_Data_for_FY22[[#This Row],[Median]]","v":340557.4},{"$f":"(((AAMC_Raw_Data_for_FY22[[#This Row],[75th]]-AAMC_Raw_Data_for_FY22[[#This Row],[Median]])/25)*20) + AAMC_Raw_Data_for_FY22[[#This Row],[Median]]","v":356368.2},372179,{"$f":"(((AAMC_Raw_Data_for_FY22[[#This Row],[75th]]-AAMC_Raw_Data_for_FY22[[#This Row],[Median]])/25)*30) + AAMC_Raw_Data_for_FY22[[#This Row],[Median]]","v":387989.8},{"$f":"(((AAMC_Raw_Data_for_FY22[[#This Row],[75th]]-AAMC_Raw_Data_for_FY22[[#This Row],[Median]])/25)*35) + AAMC_Raw_Data_for_FY22[[#This Row],[Median]]","v":403800.6},{"$f":"(((AAMC_Raw_Data_for_FY22[[#This Row],[75th]]-AAMC_Raw_Data_for_FY22[[#This Row],[Median]])/25)*40) + AAMC_Raw_Data_for_FY22[[#This Row],[Median]]","v":419611.4}]
[{"$f":"AAMC_Raw_Data_for_FY22[[#This Row],[Source]]&AAMC_Raw_Data_for_FY22[[#This Row],[Type]]&AAMC_Raw_Data_for_FY22[[#This Row],[School Subset]]&AAMC_Raw_Data_for_FY22[[#This Row],[Rank]]&AAMC_Raw_Data_for_FY22[[#This Row],[Degree]]&AAMC_Raw_Data_for_FY22[[#This Row],[Department / Specialty]]&\"L\"","v":"AAMCAcademicPublicChiefMDPathology: Other PathologyL"},"Pathology: Other Pathology",6,"AAMC","Academic","Public","Chief","MD","2021-2022",null,{"$f":"(((AAMC_Raw_Data_for_FY22[[#This Row],[Median]]-AAMC_Raw_Data_for_FY22[[#This Row],[25th]])/25)*5) + AAMC_Raw_Data_for_FY22[[#This Row],[25th]]","v":0},{"$f":"(((AAMC_Raw_Data_for_FY22[[#This Row],[Median]]-AAMC_Raw_Data_for_FY22[[#This Row],[25th]])/25)*10) + AAMC_Raw_Data_for_FY22[[#This Row],[25th]]","v":0},{"$f":"(((AAMC_Raw_Data_for_FY22[[#This Row],[Median]]-AAMC_Raw_Data_for_FY22[[#This Row],[25th]])/25)*15) + AAMC_Raw_Data_for_FY22[[#This Row],[25th]]","v":0},{"$f":"(((AAMC_Raw_Data_for_FY22[[#This Row],[Median]]-AAMC_Raw_Data_for_FY22[[#This Row],[25th]])/25)*20) + AAMC_Raw_Data_for_FY22[[#This Row],[25th]]","v":0},null,{"$f":"(((AAMC_Raw_Data_for_FY22[[#This Row],[75th]]-AAMC_Raw_Data_for_FY22[[#This Row],[Median]])/25)*5) + AAMC_Raw_Data_for_FY22[[#This Row],[Median]]","v":0},{"$f":"(((AAMC_Raw_Data_for_FY22[[#This Row],[75th]]-AAMC_Raw_Data_for_FY22[[#This Row],[Median]])/25)*10) + AAMC_Raw_Data_for_FY22[[#This Row],[Median]]","v":0},{"$f":"(((AAMC_Raw_Data_for_FY22[[#This Row],[75th]]-AAMC_Raw_Data_for_FY22[[#This Row],[Median]])/25)*15) + AAMC_Raw_Data_for_FY22[[#This Row],[Median]]","v":0},{"$f":"(((AAMC_Raw_Data_for_FY22[[#This Row],[75th]]-AAMC_Raw_Data_for_FY22[[#This Row],[Median]])/25)*20) + AAMC_Raw_Data_for_FY22[[#This Row],[Median]]","v":0},null,{"$f":"(((AAMC_Raw_Data_for_FY22[[#This Row],[75th]]-AAMC_Raw_Data_for_FY22[[#This Row],[Median]])/25)*30) + AAMC_Raw_Data_for_FY22[[#This Row],[Median]]","v":0},{"$f":"(((AAMC_Raw_Data_for_FY22[[#This Row],[75th]]-AAMC_Raw_Data_for_FY22[[#This Row],[Median]])/25)*35) + AAMC_Raw_Data_for_FY22[[#This Row],[Median]]","v":0},{"$f":"(((AAMC_Raw_Data_for_FY22[[#This Row],[75th]]-AAMC_Raw_Data_for_FY22[[#This Row],[Median]])/25)*40) + AAMC_Raw_Data_for_FY22[[#This Row],[Median]]","v":0}]
[{"$f":"AAMC_Raw_Data_for_FY22[[#This Row],[Source]]&AAMC_Raw_Data_for_FY22[[#This Row],[Type]]&AAMC_Raw_Data_for_FY22[[#This Row],[School Subset]]&AAMC_Raw_Data_for_FY22[[#This Row],[Rank]]&AAMC_Raw_Data_for_FY22[[#This Row],[Degree]]&AAMC_Raw_Data_for_FY22[[#This Row],[Department / Specialty]]&\"L\"","v":"AAMCAcademicPublicChairMDPathology: Other PathologyL"},"Pathology: Other Pathology",1,"AAMC","Academic","Public","Chair","MD","2021-2022",550700,{"$f":"(((AAMC_Raw_Data_for_FY22[[#This Row],[Median]]-AAMC_Raw_Data_for_FY22[[#This Row],[25th]])/25)*5) + AAMC_Raw_Data_for_FY22[[#This Row],[25th]]","v":555678.19999999995},{"$f":"(((AAMC_Raw_Data_for_FY22[[#This Row],[Median]]-AAMC_Raw_Data_for_FY22[[#This Row],[25th]])/25)*10) + AAMC_Raw_Data_for_FY22[[#This Row],[25th]]","v":560656.4},{"$f":"(((AAMC_Raw_Data_for_FY22[[#This Row],[Median]]-AAMC_Raw_Data_for_FY22[[#This Row],[25th]])/25)*15) + AAMC_Raw_Data_for_FY22[[#This Row],[25th]]","v":565634.6},{"$f":"(((AAMC_Raw_Data_for_FY22[[#This Row],[Median]]-AAMC_Raw_Data_for_FY22[[#This Row],[25th]])/25)*20) + AAMC_Raw_Data_for_FY22[[#This Row],[25th]]","v":570612.80000000005},575591,{"$f":"(((AAMC_Raw_Data_for_FY22[[#This Row],[75th]]-AAMC_Raw_Data_for_FY22[[#This Row],[Median]])/25)*5) + AAMC_Raw_Data_for_FY22[[#This Row],[Median]]","v":608944.19999999995},{"$f":"(((AAMC_Raw_Data_for_FY22[[#This Row],[75th]]-AAMC_Raw_Data_for_FY22[[#This Row],[Median]])/25)*10) + AAMC_Raw_Data_for_FY22[[#This Row],[Median]]","v":642297.4},{"$f":"(((AAMC_Raw_Data_for_FY22[[#This Row],[75th]]-AAMC_Raw_Data_for_FY22[[#This Row],[Median]])/25)*15) + AAMC_Raw_Data_for_FY22[[#This Row],[Median]]","v":675650.6},{"$f":"(((AAMC_Raw_Data_for_FY22[[#This Row],[75th]]-AAMC_Raw_Data_for_FY22[[#This Row],[Median]])/25)*20) + AAMC_Raw_Data_for_FY22[[#This Row],[Median]]","v":709003.8},742357,{"$f":"(((AAMC_Raw_Data_for_FY22[[#This Row],[75th]]-AAMC_Raw_Data_for_FY22[[#This Row],[Median]])/25)*30) + AAMC_Raw_Data_for_FY22[[#This Row],[Median]]","v":775710.2},{"$f":"(((AAMC_Raw_Data_for_FY22[[#This Row],[75th]]-AAMC_Raw_Data_for_FY22[[#This Row],[Median]])/25)*35) + AAMC_Raw_Data_for_FY22[[#This Row],[Median]]","v":809063.4},{"$f":"(((AAMC_Raw_Data_for_FY22[[#This Row],[75th]]-AAMC_Raw_Data_for_FY22[[#This Row],[Median]])/25)*40) + AAMC_Raw_Data_for_FY22[[#This Row],[Median]]","v":842416.60000000009}]
[{"$f":"AAMC_Raw_Data_for_FY22[[#This Row],[Source]]&AAMC_Raw_Data_for_FY22[[#This Row],[Type]]&AAMC_Raw_Data_for_FY22[[#This Row],[School Subset]]&AAMC_Raw_Data_for_FY22[[#This Row],[Rank]]&AAMC_Raw_Data_for_FY22[[#This Row],[Degree]]&AAMC_Raw_Data_for_FY22[[#This Row],[Department / Specialty]]&\"L\"","v":"AAMCAcademicPublicInstructorMDPediatrics TotalL"},"Pediatrics Total",5,"AAMC","Academic","Public","Instructor","MD","2021-2022",122670,{"$f":"(((AAMC_Raw_Data_for_FY22[[#This Row],[Median]]-AAMC_Raw_Data_for_FY22[[#This Row],[25th]])/25)*5) + AAMC_Raw_Data_for_FY22[[#This Row],[25th]]","v":132430.6},{"$f":"(((AAMC_Raw_Data_for_FY22[[#This Row],[Median]]-AAMC_Raw_Data_for_FY22[[#This Row],[25th]])/25)*10) + AAMC_Raw_Data_for_FY22[[#This Row],[25th]]","v":142191.20000000001},{"$f":"(((AAMC_Raw_Data_for_FY22[[#This Row],[Median]]-AAMC_Raw_Data_for_FY22[[#This Row],[25th]])/25)*15) + AAMC_Raw_Data_for_FY22[[#This Row],[25th]]","v":151951.79999999999},{"$f":"(((AAMC_Raw_Data_for_FY22[[#This Row],[Median]]-AAMC_Raw_Data_for_FY22[[#This Row],[25th]])/25)*20) + AAMC_Raw_Data_for_FY22[[#This Row],[25th]]","v":161712.4},171473,{"$f":"(((AAMC_Raw_Data_for_FY22[[#This Row],[75th]]-AAMC_Raw_Data_for_FY22[[#This Row],[Median]])/25)*5) + AAMC_Raw_Data_for_FY22[[#This Row],[Median]]","v":178836.4},{"$f":"(((AAMC_Raw_Data_for_FY22[[#This Row],[75th]]-AAMC_Raw_Data_for_FY22[[#This Row],[Median]])/25)*10) + AAMC_Raw_Data_for_FY22[[#This Row],[Median]]","v":186199.8},{"$f":"(((AAMC_Raw_Data_for_FY22[[#This Row],[75th]]-AAMC_Raw_Data_for_FY22[[#This Row],[Median]])/25)*15) + AAMC_Raw_Data_for_FY22[[#This Row],[Median]]","v":193563.2},{"$f":"(((AAMC_Raw_Data_for_FY22[[#This Row],[75th]]-AAMC_Raw_Data_for_FY22[[#This Row],[Median]])/25)*20) + AAMC_Raw_Data_for_FY22[[#This Row],[Median]]","v":200926.6},208290,{"$f":"(((AAMC_Raw_Data_for_FY22[[#This Row],[75th]]-AAMC_Raw_Data_for_FY22[[#This Row],[Median]])/25)*30) + AAMC_Raw_Data_for_FY22[[#This Row],[Median]]","v":215653.4},{"$f":"(((AAMC_Raw_Data_for_FY22[[#This Row],[75th]]-AAMC_Raw_Data_for_FY22[[#This Row],[Median]])/25)*35) + AAMC_Raw_Data_for_FY22[[#This Row],[Median]]","v":223016.8},{"$f":"(((AAMC_Raw_Data_for_FY22[[#This Row],[75th]]-AAMC_Raw_Data_for_FY22[[#This Row],[Median]])/25)*40) + AAMC_Raw_Data_for_FY22[[#This Row],[Median]]","v":230380.2}]
[{"$f":"AAMC_Raw_Data_for_FY22[[#This Row],[Source]]&AAMC_Raw_Data_for_FY22[[#This Row],[Type]]&AAMC_Raw_Data_for_FY22[[#This Row],[School Subset]]&AAMC_Raw_Data_for_FY22[[#This Row],[Rank]]&AAMC_Raw_Data_for_FY22[[#This Row],[Degree]]&AAMC_Raw_Data_for_FY22[[#This Row],[Department / Specialty]]&\"L\"","v":"AAMCAcademicPublicAssistantMDPediatrics TotalL"},"Pediatrics Total",4,"AAMC","Academic","Public","Assistant","MD","2021-2022",177000,{"$f":"(((AAMC_Raw_Data_for_FY22[[#This Row],[Median]]-AAMC_Raw_Data_for_FY22[[#This Row],[25th]])/25)*5) + AAMC_Raw_Data_for_FY22[[#This Row],[25th]]","v":183306.2},{"$f":"(((AAMC_Raw_Data_for_FY22[[#This Row],[Median]]-AAMC_Raw_Data_for_FY22[[#This Row],[25th]])/25)*10) + AAMC_Raw_Data_for_FY22[[#This Row],[25th]]","v":189612.4},{"$f":"(((AAMC_Raw_Data_for_FY22[[#This Row],[Median]]-AAMC_Raw_Data_for_FY22[[#This Row],[25th]])/25)*15) + AAMC_Raw_Data_for_FY22[[#This Row],[25th]]","v":195918.6},{"$f":"(((AAMC_Raw_Data_for_FY22[[#This Row],[Median]]-AAMC_Raw_Data_for_FY22[[#This Row],[25th]])/25)*20) + AAMC_Raw_Data_for_FY22[[#This Row],[25th]]","v":202224.8},208531,{"$f":"(((AAMC_Raw_Data_for_FY22[[#This Row],[75th]]-AAMC_Raw_Data_for_FY22[[#This Row],[Median]])/25)*5) + AAMC_Raw_Data_for_FY22[[#This Row],[Median]]","v":216816.4},{"$f":"(((AAMC_Raw_Data_for_FY22[[#This Row],[75th]]-AAMC_Raw_Data_for_FY22[[#This Row],[Median]])/25)*10) + AAMC_Raw_Data_for_FY22[[#This Row],[Median]]","v":225101.8},{"$f":"(((AAMC_Raw_Data_for_FY22[[#This Row],[75th]]-AAMC_Raw_Data_for_FY22[[#This Row],[Median]])/25)*15) + AAMC_Raw_Data_for_FY22[[#This Row],[Median]]","v":233387.2},{"$f":"(((AAMC_Raw_Data_for_FY22[[#This Row],[75th]]-AAMC_Raw_Data_for_FY22[[#This Row],[Median]])/25)*20) + AAMC_Raw_Data_for_FY22[[#This Row],[Median]]","v":241672.6},249958,{"$f":"(((AAMC_Raw_Data_for_FY22[[#This Row],[75th]]-AAMC_Raw_Data_for_FY22[[#This Row],[Median]])/25)*30) + AAMC_Raw_Data_for_FY22[[#This Row],[Median]]","v":258243.4},{"$f":"(((AAMC_Raw_Data_for_FY22[[#This Row],[75th]]-AAMC_Raw_Data_for_FY22[[#This Row],[Median]])/25)*35) + AAMC_Raw_Data_for_FY22[[#This Row],[Median]]","v":266528.8},{"$f":"(((AAMC_Raw_Data_for_FY22[[#This Row],[75th]]-AAMC_Raw_Data_for_FY22[[#This Row],[Median]])/25)*40) + AAMC_Raw_Data_for_FY22[[#This Row],[Median]]","v":274814.2}]
[{"$f":"AAMC_Raw_Data_for_FY22[[#This Row],[Source]]&AAMC_Raw_Data_for_FY22[[#This Row],[Type]]&AAMC_Raw_Data_for_FY22[[#This Row],[School Subset]]&AAMC_Raw_Data_for_FY22[[#This Row],[Rank]]&AAMC_Raw_Data_for_FY22[[#This Row],[Degree]]&AAMC_Raw_Data_for_FY22[[#This Row],[Department / Specialty]]&\"L\"","v":"AAMCAcademicPublicAssociateMDPediatrics TotalL"},"Pediatrics Total",3,"AAMC","Academic","Public","Associate","MD","2021-2022",202519,{"$f":"(((AAMC_Raw_Data_for_FY22[[#This Row],[Median]]-AAMC_Raw_Data_for_FY22[[#This Row],[25th]])/25)*5) + AAMC_Raw_Data_for_FY22[[#This Row],[25th]]","v":210759},{"$f":"(((AAMC_Raw_Data_for_FY22[[#This Row],[Median]]-AAMC_Raw_Data_for_FY22[[#This Row],[25th]])/25)*10) + AAMC_Raw_Data_for_FY22[[#This Row],[25th]]","v":218999},{"$f":"(((AAMC_Raw_Data_for_FY22[[#This Row],[Median]]-AAMC_Raw_Data_for_FY22[[#This Row],[25th]])/25)*15) + AAMC_Raw_Data_for_FY22[[#This Row],[25th]]","v":227239},{"$f":"(((AAMC_Raw_Data_for_FY22[[#This Row],[Median]]-AAMC_Raw_Data_for_FY22[[#This Row],[25th]])/25)*20) + AAMC_Raw_Data_for_FY22[[#This Row],[25th]]","v":235479},243719,{"$f":"(((AAMC_Raw_Data_for_FY22[[#This Row],[75th]]-AAMC_Raw_Data_for_FY22[[#This Row],[Median]])/25)*5) + AAMC_Raw_Data_for_FY22[[#This Row],[Median]]","v":254089.2},{"$f":"(((AAMC_Raw_Data_for_FY22[[#This Row],[75th]]-AAMC_Raw_Data_for_FY22[[#This Row],[Median]])/25)*10) + AAMC_Raw_Data_for_FY22[[#This Row],[Median]]","v":264459.40000000002},{"$f":"(((AAMC_Raw_Data_for_FY22[[#This Row],[75th]]-AAMC_Raw_Data_for_FY22[[#This Row],[Median]])/25)*15) + AAMC_Raw_Data_for_FY22[[#This Row],[Median]]","v":274829.59999999998},{"$f":"(((AAMC_Raw_Data_for_FY22[[#This Row],[75th]]-AAMC_Raw_Data_for_FY22[[#This Row],[Median]])/25)*20) + AAMC_Raw_Data_for_FY22[[#This Row],[Median]]","v":285199.8},295570,{"$f":"(((AAMC_Raw_Data_for_FY22[[#This Row],[75th]]-AAMC_Raw_Data_for_FY22[[#This Row],[Median]])/25)*30) + AAMC_Raw_Data_for_FY22[[#This Row],[Median]]","v":305940.2},{"$f":"(((AAMC_Raw_Data_for_FY22[[#This Row],[75th]]-AAMC_Raw_Data_for_FY22[[#This Row],[Median]])/25)*35) + AAMC_Raw_Data_for_FY22[[#This Row],[Median]]","v":316310.40000000002},{"$f":"(((AAMC_Raw_Data_for_FY22[[#This Row],[75th]]-AAMC_Raw_Data_for_FY22[[#This Row],[Median]])/25)*40) + AAMC_Raw_Data_for_FY22[[#This Row],[Median]]","v":326680.59999999998}]
[{"$f":"AAMC_Raw_Data_for_FY22[[#This Row],[Source]]&AAMC_Raw_Data_for_FY22[[#This Row],[Type]]&AAMC_Raw_Data_for_FY22[[#This Row],[School Subset]]&AAMC_Raw_Data_for_FY22[[#This Row],[Rank]]&AAMC_Raw_Data_for_FY22[[#This Row],[Degree]]&AAMC_Raw_Data_for_FY22[[#This Row],[Department / Specialty]]&\"L\"","v":"AAMCAcademicPublicProfessorMDPediatrics TotalL"},"Pediatrics Total",2,"AAMC","Academic","Public","Professor","MD","2021-2022",250580,{"$f":"(((AAMC_Raw_Data_for_FY22[[#This Row],[Median]]-AAMC_Raw_Data_for_FY22[[#This Row],[25th]])/25)*5) + AAMC_Raw_Data_for_FY22[[#This Row],[25th]]","v":260157.2},{"$f":"(((AAMC_Raw_Data_for_FY22[[#This Row],[Median]]-AAMC_Raw_Data_for_FY22[[#This Row],[25th]])/25)*10) + AAMC_Raw_Data_for_FY22[[#This Row],[25th]]","v":269734.40000000002},{"$f":"(((AAMC_Raw_Data_for_FY22[[#This Row],[Median]]-AAMC_Raw_Data_for_FY22[[#This Row],[25th]])/25)*15) + AAMC_Raw_Data_for_FY22[[#This Row],[25th]]","v":279311.59999999998},{"$f":"(((AAMC_Raw_Data_for_FY22[[#This Row],[Median]]-AAMC_Raw_Data_for_FY22[[#This Row],[25th]])/25)*20) + AAMC_Raw_Data_for_FY22[[#This Row],[25th]]","v":288888.8},298466,{"$f":"(((AAMC_Raw_Data_for_FY22[[#This Row],[75th]]-AAMC_Raw_Data_for_FY22[[#This Row],[Median]])/25)*5) + AAMC_Raw_Data_for_FY22[[#This Row],[Median]]","v":310071.59999999998},{"$f":"(((AAMC_Raw_Data_for_FY22[[#This Row],[75th]]-AAMC_Raw_Data_for_FY22[[#This Row],[Median]])/25)*10) + AAMC_Raw_Data_for_FY22[[#This Row],[Median]]","v":321677.2},{"$f":"(((AAMC_Raw_Data_for_FY22[[#This Row],[75th]]-AAMC_Raw_Data_for_FY22[[#This Row],[Median]])/25)*15) + AAMC_Raw_Data_for_FY22[[#This Row],[Median]]","v":333282.8},{"$f":"(((AAMC_Raw_Data_for_FY22[[#This Row],[75th]]-AAMC_Raw_Data_for_FY22[[#This Row],[Median]])/25)*20) + AAMC_Raw_Data_for_FY22[[#This Row],[Median]]","v":344888.4},356494,{"$f":"(((AAMC_Raw_Data_for_FY22[[#This Row],[75th]]-AAMC_Raw_Data_for_FY22[[#This Row],[Median]])/25)*30) + AAMC_Raw_Data_for_FY22[[#This Row],[Median]]","v":368099.6},{"$f":"(((AAMC_Raw_Data_for_FY22[[#This Row],[75th]]-AAMC_Raw_Data_for_FY22[[#This Row],[Median]])/25)*35) + AAMC_Raw_Data_for_FY22[[#This Row],[Median]]","v":379705.2},{"$f":"(((AAMC_Raw_Data_for_FY22[[#This Row],[75th]]-AAMC_Raw_Data_for_FY22[[#This Row],[Median]])/25)*40) + AAMC_Raw_Data_for_FY22[[#This Row],[Median]]","v":391310.8}]
[{"$f":"AAMC_Raw_Data_for_FY22[[#This Row],[Source]]&AAMC_Raw_Data_for_FY22[[#This Row],[Type]]&AAMC_Raw_Data_for_FY22[[#This Row],[School Subset]]&AAMC_Raw_Data_for_FY22[[#This Row],[Rank]]&AAMC_Raw_Data_for_FY22[[#This Row],[Degree]]&AAMC_Raw_Data_for_FY22[[#This Row],[Department / Specialty]]&\"L\"","v":"AAMCAcademicPublicChiefMDPediatrics TotalL"},"Pediatrics Total",6,"AAMC","Academic","Public","Chief","MD","2021-2022",251684,{"$f":"(((AAMC_Raw_Data_for_FY22[[#This Row],[Median]]-AAMC_Raw_Data_for_FY22[[#This Row],[25th]])/25)*5) + AAMC_Raw_Data_for_FY22[[#This Row],[25th]]","v":261822.8},{"$f":"(((AAMC_Raw_Data_for_FY22[[#This Row],[Median]]-AAMC_Raw_Data_for_FY22[[#This Row],[25th]])/25)*10) + AAMC_Raw_Data_for_FY22[[#This Row],[25th]]","v":271961.59999999998},{"$f":"(((AAMC_Raw_Data_for_FY22[[#This Row],[Median]]-AAMC_Raw_Data_for_FY22[[#This Row],[25th]])/25)*15) + AAMC_Raw_Data_for_FY22[[#This Row],[25th]]","v":282100.40000000002},{"$f":"(((AAMC_Raw_Data_for_FY22[[#This Row],[Median]]-AAMC_Raw_Data_for_FY22[[#This Row],[25th]])/25)*20) + AAMC_Raw_Data_for_FY22[[#This Row],[25th]]","v":292239.2},302378,{"$f":"(((AAMC_Raw_Data_for_FY22[[#This Row],[75th]]-AAMC_Raw_Data_for_FY22[[#This Row],[Median]])/25)*5) + AAMC_Raw_Data_for_FY22[[#This Row],[Median]]","v":315589.40000000002},{"$f":"(((AAMC_Raw_Data_for_FY22[[#This Row],[75th]]-AAMC_Raw_Data_for_FY22[[#This Row],[Median]])/25)*10) + AAMC_Raw_Data_for_FY22[[#This Row],[Median]]","v":328800.8},{"$f":"(((AAMC_Raw_Data_for_FY22[[#This Row],[75th]]-AAMC_Raw_Data_for_FY22[[#This Row],[Median]])/25)*15) + AAMC_Raw_Data_for_FY22[[#This Row],[Median]]","v":342012.2},{"$f":"(((AAMC_Raw_Data_for_FY22[[#This Row],[75th]]-AAMC_Raw_Data_for_FY22[[#This Row],[Median]])/25)*20) + AAMC_Raw_Data_for_FY22[[#This Row],[Median]]","v":355223.6},368435,{"$f":"(((AAMC_Raw_Data_for_FY22[[#This Row],[75th]]-AAMC_Raw_Data_for_FY22[[#This Row],[Median]])/25)*30) + AAMC_Raw_Data_for_FY22[[#This Row],[Median]]","v":381646.4},{"$f":"(((AAMC_Raw_Data_for_FY22[[#This Row],[75th]]-AAMC_Raw_Data_for_FY22[[#This Row],[Median]])/25)*35) + AAMC_Raw_Data_for_FY22[[#This Row],[Median]]","v":394857.8},{"$f":"(((AAMC_Raw_Data_for_FY22[[#This Row],[75th]]-AAMC_Raw_Data_for_FY22[[#This Row],[Median]])/25)*40) + AAMC_Raw_Data_for_FY22[[#This Row],[Median]]","v":408069.2}]
[{"$f":"AAMC_Raw_Data_for_FY22[[#This Row],[Source]]&AAMC_Raw_Data_for_FY22[[#This Row],[Type]]&AAMC_Raw_Data_for_FY22[[#This Row],[School Subset]]&AAMC_Raw_Data_for_FY22[[#This Row],[Rank]]&AAMC_Raw_Data_for_FY22[[#This Row],[Degree]]&AAMC_Raw_Data_for_FY22[[#This Row],[Department / Specialty]]&\"L\"","v":"AAMCAcademicPublicChairMDPediatrics TotalL"},"Pediatrics Total",1,"AAMC","Academic","Public","Chair","MD","2021-2022",451320,{"$f":"(((AAMC_Raw_Data_for_FY22[[#This Row],[Median]]-AAMC_Raw_Data_for_FY22[[#This Row],[25th]])/25)*5) + AAMC_Raw_Data_for_FY22[[#This Row],[25th]]","v":469889.6},{"$f":"(((AAMC_Raw_Data_for_FY22[[#This Row],[Median]]-AAMC_Raw_Data_for_FY22[[#This Row],[25th]])/25)*10) + AAMC_Raw_Data_for_FY22[[#This Row],[25th]]","v":488459.2},{"$f":"(((AAMC_Raw_Data_for_FY22[[#This Row],[Median]]-AAMC_Raw_Data_for_FY22[[#This Row],[25th]])/25)*15) + AAMC_Raw_Data_for_FY22[[#This Row],[25th]]","v":507028.8},{"$f":"(((AAMC_Raw_Data_for_FY22[[#This Row],[Median]]-AAMC_Raw_Data_for_FY22[[#This Row],[25th]])/25)*20) + AAMC_Raw_Data_for_FY22[[#This Row],[25th]]","v":525598.4},544168,{"$f":"(((AAMC_Raw_Data_for_FY22[[#This Row],[75th]]-AAMC_Raw_Data_for_FY22[[#This Row],[Median]])/25)*5) + AAMC_Raw_Data_for_FY22[[#This Row],[Median]]","v":557035},{"$f":"(((AAMC_Raw_Data_for_FY22[[#This Row],[75th]]-AAMC_Raw_Data_for_FY22[[#This Row],[Median]])/25)*10) + AAMC_Raw_Data_for_FY22[[#This Row],[Median]]","v":569902},{"$f":"(((AAMC_Raw_Data_for_FY22[[#This Row],[75th]]-AAMC_Raw_Data_for_FY22[[#This Row],[Median]])/25)*15) + AAMC_Raw_Data_for_FY22[[#This Row],[Median]]","v":582769},{"$f":"(((AAMC_Raw_Data_for_FY22[[#This Row],[75th]]-AAMC_Raw_Data_for_FY22[[#This Row],[Median]])/25)*20) + AAMC_Raw_Data_for_FY22[[#This Row],[Median]]","v":595636},608503,{"$f":"(((AAMC_Raw_Data_for_FY22[[#This Row],[75th]]-AAMC_Raw_Data_for_FY22[[#This Row],[Median]])/25)*30) + AAMC_Raw_Data_for_FY22[[#This Row],[Median]]","v":621370},{"$f":"(((AAMC_Raw_Data_for_FY22[[#This Row],[75th]]-AAMC_Raw_Data_for_FY22[[#This Row],[Median]])/25)*35) + AAMC_Raw_Data_for_FY22[[#This Row],[Median]]","v":634237},{"$f":"(((AAMC_Raw_Data_for_FY22[[#This Row],[75th]]-AAMC_Raw_Data_for_FY22[[#This Row],[Median]])/25)*40) + AAMC_Raw_Data_for_FY22[[#This Row],[Median]]","v":647104}]
[{"$f":"AAMC_Raw_Data_for_FY22[[#This Row],[Source]]&AAMC_Raw_Data_for_FY22[[#This Row],[Type]]&AAMC_Raw_Data_for_FY22[[#This Row],[School Subset]]&AAMC_Raw_Data_for_FY22[[#This Row],[Rank]]&AAMC_Raw_Data_for_FY22[[#This Row],[Degree]]&AAMC_Raw_Data_for_FY22[[#This Row],[Department / Specialty]]&\"L\"","v":"AAMCAcademicPublicInstructorMDAdolescent MedicineL"},"Adolescent Medicine",5,"AAMC","Academic","Public","Instructor","MD","2021-2022",null,{"$f":"(((AAMC_Raw_Data_for_FY22[[#This Row],[Median]]-AAMC_Raw_Data_for_FY22[[#This Row],[25th]])/25)*5) + AAMC_Raw_Data_for_FY22[[#This Row],[25th]]","v":0},{"$f":"(((AAMC_Raw_Data_for_FY22[[#This Row],[Median]]-AAMC_Raw_Data_for_FY22[[#This Row],[25th]])/25)*10) + AAMC_Raw_Data_for_FY22[[#This Row],[25th]]","v":0},{"$f":"(((AAMC_Raw_Data_for_FY22[[#This Row],[Median]]-AAMC_Raw_Data_for_FY22[[#This Row],[25th]])/25)*15) + AAMC_Raw_Data_for_FY22[[#This Row],[25th]]","v":0},{"$f":"(((AAMC_Raw_Data_for_FY22[[#This Row],[Median]]-AAMC_Raw_Data_for_FY22[[#This Row],[25th]])/25)*20) + AAMC_Raw_Data_for_FY22[[#This Row],[25th]]","v":0},null,{"$f":"(((AAMC_Raw_Data_for_FY22[[#This Row],[75th]]-AAMC_Raw_Data_for_FY22[[#This Row],[Median]])/25)*5) + AAMC_Raw_Data_for_FY22[[#This Row],[Median]]","v":0},{"$f":"(((AAMC_Raw_Data_for_FY22[[#This Row],[75th]]-AAMC_Raw_Data_for_FY22[[#This Row],[Median]])/25)*10) + AAMC_Raw_Data_for_FY22[[#This Row],[Median]]","v":0},{"$f":"(((AAMC_Raw_Data_for_FY22[[#This Row],[75th]]-AAMC_Raw_Data_for_FY22[[#This Row],[Median]])/25)*15) + AAMC_Raw_Data_for_FY22[[#This Row],[Median]]","v":0},{"$f":"(((AAMC_Raw_Data_for_FY22[[#This Row],[75th]]-AAMC_Raw_Data_for_FY22[[#This Row],[Median]])/25)*20) + AAMC_Raw_Data_for_FY22[[#This Row],[Median]]","v":0},null,{"$f":"(((AAMC_Raw_Data_for_FY22[[#This Row],[75th]]-AAMC_Raw_Data_for_FY22[[#This Row],[Median]])/25)*30) + AAMC_Raw_Data_for_FY22[[#This Row],[Median]]","v":0},{"$f":"(((AAMC_Raw_Data_for_FY22[[#This Row],[75th]]-AAMC_Raw_Data_for_FY22[[#This Row],[Median]])/25)*35) + AAMC_Raw_Data_for_FY22[[#This Row],[Median]]","v":0},{"$f":"(((AAMC_Raw_Data_for_FY22[[#This Row],[75th]]-AAMC_Raw_Data_for_FY22[[#This Row],[Median]])/25)*40) + AAMC_Raw_Data_for_FY22[[#This Row],[Median]]","v":0}]
[{"$f":"AAMC_Raw_Data_for_FY22[[#This Row],[Source]]&AAMC_Raw_Data_for_FY22[[#This Row],[Type]]&AAMC_Raw_Data_for_FY22[[#This Row],[School Subset]]&AAMC_Raw_Data_for_FY22[[#This Row],[Rank]]&AAMC_Raw_Data_for_FY22[[#This Row],[Degree]]&AAMC_Raw_Data_for_FY22[[#This Row],[Department / Specialty]]&\"L\"","v":"AAMCAcademicPublicAssistantMDAdolescent MedicineL"},"Adolescent Medicine",4,"AAMC","Academic","Public","Assistant","MD","2021-2022",164156,{"$f":"(((AAMC_Raw_Data_for_FY22[[#This Row],[Median]]-AAMC_Raw_Data_for_FY22[[#This Row],[25th]])/25)*5) + AAMC_Raw_Data_for_FY22[[#This Row],[25th]]","v":167294.79999999999},{"$f":"(((AAMC_Raw_Data_for_FY22[[#This Row],[Median]]-AAMC_Raw_Data_for_FY22[[#This Row],[25th]])/25)*10) + AAMC_Raw_Data_for_FY22[[#This Row],[25th]]","v":170433.6},{"$f":"(((AAMC_Raw_Data_for_FY22[[#This Row],[Median]]-AAMC_Raw_Data_for_FY22[[#This Row],[25th]])/25)*15) + AAMC_Raw_Data_for_FY22[[#This Row],[25th]]","v":173572.4},{"$f":"(((AAMC_Raw_Data_for_FY22[[#This Row],[Median]]-AAMC_Raw_Data_for_FY22[[#This Row],[25th]])/25)*20) + AAMC_Raw_Data_for_FY22[[#This Row],[25th]]","v":176711.2},179850,{"$f":"(((AAMC_Raw_Data_for_FY22[[#This Row],[75th]]-AAMC_Raw_Data_for_FY22[[#This Row],[Median]])/25)*5) + AAMC_Raw_Data_for_FY22[[#This Row],[Median]]","v":182078},{"$f":"(((AAMC_Raw_Data_for_FY22[[#This Row],[75th]]-AAMC_Raw_Data_for_FY22[[#This Row],[Median]])/25)*10) + AAMC_Raw_Data_for_FY22[[#This Row],[Median]]","v":184306},{"$f":"(((AAMC_Raw_Data_for_FY22[[#This Row],[75th]]-AAMC_Raw_Data_for_FY22[[#This Row],[Median]])/25)*15) + AAMC_Raw_Data_for_FY22[[#This Row],[Median]]","v":186534},{"$f":"(((AAMC_Raw_Data_for_FY22[[#This Row],[75th]]-AAMC_Raw_Data_for_FY22[[#This Row],[Median]])/25)*20) + AAMC_Raw_Data_for_FY22[[#This Row],[Median]]","v":188762},190990,{"$f":"(((AAMC_Raw_Data_for_FY22[[#This Row],[75th]]-AAMC_Raw_Data_for_FY22[[#This Row],[Median]])/25)*30) + AAMC_Raw_Data_for_FY22[[#This Row],[Median]]","v":193218},{"$f":"(((AAMC_Raw_Data_for_FY22[[#This Row],[75th]]-AAMC_Raw_Data_for_FY22[[#This Row],[Median]])/25)*35) + AAMC_Raw_Data_for_FY22[[#This Row],[Median]]","v":195446},{"$f":"(((AAMC_Raw_Data_for_FY22[[#This Row],[75th]]-AAMC_Raw_Data_for_FY22[[#This Row],[Median]])/25)*40) + AAMC_Raw_Data_for_FY22[[#This Row],[Median]]","v":197674}]
[{"$f":"AAMC_Raw_Data_for_FY22[[#This Row],[Source]]&AAMC_Raw_Data_for_FY22[[#This Row],[Type]]&AAMC_Raw_Data_for_FY22[[#This Row],[School Subset]]&AAMC_Raw_Data_for_FY22[[#This Row],[Rank]]&AAMC_Raw_Data_for_FY22[[#This Row],[Degree]]&AAMC_Raw_Data_for_FY22[[#This Row],[Department / Specialty]]&\"L\"","v":"AAMCAcademicPublicAssociateMDAdolescent MedicineL"},"Adolescent Medicine",3,"AAMC","Academic","Public","Associate","MD","2021-2022",181947,{"$f":"(((AAMC_Raw_Data_for_FY22[[#This Row],[Median]]-AAMC_Raw_Data_for_FY22[[#This Row],[25th]])/25)*5) + AAMC_Raw_Data_for_FY22[[#This Row],[25th]]","v":184138.2},{"$f":"(((AAMC_Raw_Data_for_FY22[[#This Row],[Median]]-AAMC_Raw_Data_for_FY22[[#This Row],[25th]])/25)*10) + AAMC_Raw_Data_for_FY22[[#This Row],[25th]]","v":186329.4},{"$f":"(((AAMC_Raw_Data_for_FY22[[#This Row],[Median]]-AAMC_Raw_Data_for_FY22[[#This Row],[25th]])/25)*15) + AAMC_Raw_Data_for_FY22[[#This Row],[25th]]","v":188520.6},{"$f":"(((AAMC_Raw_Data_for_FY22[[#This Row],[Median]]-AAMC_Raw_Data_for_FY22[[#This Row],[25th]])/25)*20) + AAMC_Raw_Data_for_FY22[[#This Row],[25th]]","v":190711.8},192903,{"$f":"(((AAMC_Raw_Data_for_FY22[[#This Row],[75th]]-AAMC_Raw_Data_for_FY22[[#This Row],[Median]])/25)*5) + AAMC_Raw_Data_for_FY22[[#This Row],[Median]]","v":196177.8},{"$f":"(((AAMC_Raw_Data_for_FY22[[#This Row],[75th]]-AAMC_Raw_Data_for_FY22[[#This Row],[Median]])/25)*10) + AAMC_Raw_Data_for_FY22[[#This Row],[Median]]","v":199452.6},{"$f":"(((AAMC_Raw_Data_for_FY22[[#This Row],[75th]]-AAMC_Raw_Data_for_FY22[[#This Row],[Median]])/25)*15) + AAMC_Raw_Data_for_FY22[[#This Row],[Median]]","v":202727.4},{"$f":"(((AAMC_Raw_Data_for_FY22[[#This Row],[75th]]-AAMC_Raw_Data_for_FY22[[#This Row],[Median]])/25)*20) + AAMC_Raw_Data_for_FY22[[#This Row],[Median]]","v":206002.2},209277,{"$f":"(((AAMC_Raw_Data_for_FY22[[#This Row],[75th]]-AAMC_Raw_Data_for_FY22[[#This Row],[Median]])/25)*30) + AAMC_Raw_Data_for_FY22[[#This Row],[Median]]","v":212551.8},{"$f":"(((AAMC_Raw_Data_for_FY22[[#This Row],[75th]]-AAMC_Raw_Data_for_FY22[[#This Row],[Median]])/25)*35) + AAMC_Raw_Data_for_FY22[[#This Row],[Median]]","v":215826.6},{"$f":"(((AAMC_Raw_Data_for_FY22[[#This Row],[75th]]-AAMC_Raw_Data_for_FY22[[#This Row],[Median]])/25)*40) + AAMC_Raw_Data_for_FY22[[#This Row],[Median]]","v":219101.4}]
[{"$f":"AAMC_Raw_Data_for_FY22[[#This Row],[Source]]&AAMC_Raw_Data_for_FY22[[#This Row],[Type]]&AAMC_Raw_Data_for_FY22[[#This Row],[School Subset]]&AAMC_Raw_Data_for_FY22[[#This Row],[Rank]]&AAMC_Raw_Data_for_FY22[[#This Row],[Degree]]&AAMC_Raw_Data_for_FY22[[#This Row],[Department / Specialty]]&\"L\"","v":"AAMCAcademicPublicProfessorMDAdolescent MedicineL"},"Adolescent Medicine",2,"AAMC","Academic","Public","Professor","MD","2021-2022",223520,{"$f":"(((AAMC_Raw_Data_for_FY22[[#This Row],[Median]]-AAMC_Raw_Data_for_FY22[[#This Row],[25th]])/25)*5) + AAMC_Raw_Data_for_FY22[[#This Row],[25th]]","v":232954},{"$f":"(((AAMC_Raw_Data_for_FY22[[#This Row],[Median]]-AAMC_Raw_Data_for_FY22[[#This Row],[25th]])/25)*10) + AAMC_Raw_Data_for_FY22[[#This Row],[25th]]","v":242388},{"$f":"(((AAMC_Raw_Data_for_FY22[[#This Row],[Median]]-AAMC_Raw_Data_for_FY22[[#This Row],[25th]])/25)*15) + AAMC_Raw_Data_for_FY22[[#This Row],[25th]]","v":251822},{"$f":"(((AAMC_Raw_Data_for_FY22[[#This Row],[Median]]-AAMC_Raw_Data_for_FY22[[#This Row],[25th]])/25)*20) + AAMC_Raw_Data_for_FY22[[#This Row],[25th]]","v":261256},270690,{"$f":"(((AAMC_Raw_Data_for_FY22[[#This Row],[75th]]-AAMC_Raw_Data_for_FY22[[#This Row],[Median]])/25)*5) + AAMC_Raw_Data_for_FY22[[#This Row],[Median]]","v":282157.2},{"$f":"(((AAMC_Raw_Data_for_FY22[[#This Row],[75th]]-AAMC_Raw_Data_for_FY22[[#This Row],[Median]])/25)*10) + AAMC_Raw_Data_for_FY22[[#This Row],[Median]]","v":293624.40000000002},{"$f":"(((AAMC_Raw_Data_for_FY22[[#This Row],[75th]]-AAMC_Raw_Data_for_FY22[[#This Row],[Median]])/25)*15) + AAMC_Raw_Data_for_FY22[[#This Row],[Median]]","v":305091.59999999998},{"$f":"(((AAMC_Raw_Data_for_FY22[[#This Row],[75th]]-AAMC_Raw_Data_for_FY22[[#This Row],[Median]])/25)*20) + AAMC_Raw_Data_for_FY22[[#This Row],[Median]]","v":316558.8},328026,{"$f":"(((AAMC_Raw_Data_for_FY22[[#This Row],[75th]]-AAMC_Raw_Data_for_FY22[[#This Row],[Median]])/25)*30) + AAMC_Raw_Data_for_FY22[[#This Row],[Median]]","v":339493.2},{"$f":"(((AAMC_Raw_Data_for_FY22[[#This Row],[75th]]-AAMC_Raw_Data_for_FY22[[#This Row],[Median]])/25)*35) + AAMC_Raw_Data_for_FY22[[#This Row],[Median]]","v":350960.4},{"$f":"(((AAMC_Raw_Data_for_FY22[[#This Row],[75th]]-AAMC_Raw_Data_for_FY22[[#This Row],[Median]])/25)*40) + AAMC_Raw_Data_for_FY22[[#This Row],[Median]]","v":362427.6}]
[{"$f":"AAMC_Raw_Data_for_FY22[[#This Row],[Source]]&AAMC_Raw_Data_for_FY22[[#This Row],[Type]]&AAMC_Raw_Data_for_FY22[[#This Row],[School Subset]]&AAMC_Raw_Data_for_FY22[[#This Row],[Rank]]&AAMC_Raw_Data_for_FY22[[#This Row],[Degree]]&AAMC_Raw_Data_for_FY22[[#This Row],[Department / Specialty]]&\"L\"","v":"AAMCAcademicPublicChiefMDAdolescent MedicineL"},"Adolescent Medicine",6,"AAMC","Academic","Public","Chief","MD","2021-2022",216055,{"$f":"(((AAMC_Raw_Data_for_FY22[[#This Row],[Median]]-AAMC_Raw_Data_for_FY22[[#This Row],[25th]])/25)*5) + AAMC_Raw_Data_for_FY22[[#This Row],[25th]]","v":218844},{"$f":"(((AAMC_Raw_Data_for_FY22[[#This Row],[Median]]-AAMC_Raw_Data_for_FY22[[#This Row],[25th]])/25)*10) + AAMC_Raw_Data_for_FY22[[#This Row],[25th]]","v":221633},{"$f":"(((AAMC_Raw_Data_for_FY22[[#This Row],[Median]]-AAMC_Raw_Data_for_FY22[[#This Row],[25th]])/25)*15) + AAMC_Raw_Data_for_FY22[[#This Row],[25th]]","v":224422},{"$f":"(((AAMC_Raw_Data_for_FY22[[#This Row],[Median]]-AAMC_Raw_Data_for_FY22[[#This Row],[25th]])/25)*20) + AAMC_Raw_Data_for_FY22[[#This Row],[25th]]","v":227211},230000,{"$f":"(((AAMC_Raw_Data_for_FY22[[#This Row],[75th]]-AAMC_Raw_Data_for_FY22[[#This Row],[Median]])/25)*5) + AAMC_Raw_Data_for_FY22[[#This Row],[Median]]","v":236970},{"$f":"(((AAMC_Raw_Data_for_FY22[[#This Row],[75th]]-AAMC_Raw_Data_for_FY22[[#This Row],[Median]])/25)*10) + AAMC_Raw_Data_for_FY22[[#This Row],[Median]]","v":243940},{"$f":"(((AAMC_Raw_Data_for_FY22[[#This Row],[75th]]-AAMC_Raw_Data_for_FY22[[#This Row],[Median]])/25)*15) + AAMC_Raw_Data_for_FY22[[#This Row],[Median]]","v":250910},{"$f":"(((AAMC_Raw_Data_for_FY22[[#This Row],[75th]]-AAMC_Raw_Data_for_FY22[[#This Row],[Median]])/25)*20) + AAMC_Raw_Data_for_FY22[[#This Row],[Median]]","v":257880},264850,{"$f":"(((AAMC_Raw_Data_for_FY22[[#This Row],[75th]]-AAMC_Raw_Data_for_FY22[[#This Row],[Median]])/25)*30) + AAMC_Raw_Data_for_FY22[[#This Row],[Median]]","v":271820},{"$f":"(((AAMC_Raw_Data_for_FY22[[#This Row],[75th]]-AAMC_Raw_Data_for_FY22[[#This Row],[Median]])/25)*35) + AAMC_Raw_Data_for_FY22[[#This Row],[Median]]","v":278790},{"$f":"(((AAMC_Raw_Data_for_FY22[[#This Row],[75th]]-AAMC_Raw_Data_for_FY22[[#This Row],[Median]])/25)*40) + AAMC_Raw_Data_for_FY22[[#This Row],[Median]]","v":285760}]
[{"$f":"AAMC_Raw_Data_for_FY22[[#This Row],[Source]]&AAMC_Raw_Data_for_FY22[[#This Row],[Type]]&AAMC_Raw_Data_for_FY22[[#This Row],[School Subset]]&AAMC_Raw_Data_for_FY22[[#This Row],[Rank]]&AAMC_Raw_Data_for_FY22[[#This Row],[Degree]]&AAMC_Raw_Data_for_FY22[[#This Row],[Department / Specialty]]&\"L\"","v":"AAMCAcademicPublicAssistantMDAllergy/Immunology-Peds.L"},"Allergy/Immunology-Peds.",4,"AAMC","Academic","Public","Assistant","MD","2021-2022",168315,{"$f":"(((AAMC_Raw_Data_for_FY22[[#This Row],[Median]]-AAMC_Raw_Data_for_FY22[[#This Row],[25th]])/25)*5) + AAMC_Raw_Data_for_FY22[[#This Row],[25th]]","v":169681.6},{"$f":"(((AAMC_Raw_Data_for_FY22[[#This Row],[Median]]-AAMC_Raw_Data_for_FY22[[#This Row],[25th]])/25)*10) + AAMC_Raw_Data_for_FY22[[#This Row],[25th]]","v":171048.2},{"$f":"(((AAMC_Raw_Data_for_FY22[[#This Row],[Median]]-AAMC_Raw_Data_for_FY22[[#This Row],[25th]])/25)*15) + AAMC_Raw_Data_for_FY22[[#This Row],[25th]]","v":172414.8},{"$f":"(((AAMC_Raw_Data_for_FY22[[#This Row],[Median]]-AAMC_Raw_Data_for_FY22[[#This Row],[25th]])/25)*20) + AAMC_Raw_Data_for_FY22[[#This Row],[25th]]","v":173781.4},175148,{"$f":"(((AAMC_Raw_Data_for_FY22[[#This Row],[75th]]-AAMC_Raw_Data_for_FY22[[#This Row],[Median]])/25)*5) + AAMC_Raw_Data_for_FY22[[#This Row],[Median]]","v":179268.4},{"$f":"(((AAMC_Raw_Data_for_FY22[[#This Row],[75th]]-AAMC_Raw_Data_for_FY22[[#This Row],[Median]])/25)*10) + AAMC_Raw_Data_for_FY22[[#This Row],[Median]]","v":183388.79999999999},{"$f":"(((AAMC_Raw_Data_for_FY22[[#This Row],[75th]]-AAMC_Raw_Data_for_FY22[[#This Row],[Median]])/25)*15) + AAMC_Raw_Data_for_FY22[[#This Row],[Median]]","v":187509.2},{"$f":"(((AAMC_Raw_Data_for_FY22[[#This Row],[75th]]-AAMC_Raw_Data_for_FY22[[#This Row],[Median]])/25)*20) + AAMC_Raw_Data_for_FY22[[#This Row],[Median]]","v":191629.6},195750,{"$f":"(((AAMC_Raw_Data_for_FY22[[#This Row],[75th]]-AAMC_Raw_Data_for_FY22[[#This Row],[Median]])/25)*30) + AAMC_Raw_Data_for_FY22[[#This Row],[Median]]","v":199870.4},{"$f":"(((AAMC_Raw_Data_for_FY22[[#This Row],[75th]]-AAMC_Raw_Data_for_FY22[[#This Row],[Median]])/25)*35) + AAMC_Raw_Data_for_FY22[[#This Row],[Median]]","v":203990.8},{"$f":"(((AAMC_Raw_Data_for_FY22[[#This Row],[75th]]-AAMC_Raw_Data_for_FY22[[#This Row],[Median]])/25)*40) + AAMC_Raw_Data_for_FY22[[#This Row],[Median]]","v":208111.2}]
[{"$f":"AAMC_Raw_Data_for_FY22[[#This Row],[Source]]&AAMC_Raw_Data_for_FY22[[#This Row],[Type]]&AAMC_Raw_Data_for_FY22[[#This Row],[School Subset]]&AAMC_Raw_Data_for_FY22[[#This Row],[Rank]]&AAMC_Raw_Data_for_FY22[[#This Row],[Degree]]&AAMC_Raw_Data_for_FY22[[#This Row],[Department / Specialty]]&\"L\"","v":"AAMCAcademicPublicAssociateMDAllergy/Immunology-Peds.L"},"Allergy/Immunology-Peds.",3,"AAMC","Academic","Public","Associate","MD","2021-2022",200558,{"$f":"(((AAMC_Raw_Data_for_FY22[[#This Row],[Median]]-AAMC_Raw_Data_for_FY22[[#This Row],[25th]])/25)*5) + AAMC_Raw_Data_for_FY22[[#This Row],[25th]]","v":202462.4},{"$f":"(((AAMC_Raw_Data_for_FY22[[#This Row],[Median]]-AAMC_Raw_Data_for_FY22[[#This Row],[25th]])/25)*10) + AAMC_Raw_Data_for_FY22[[#This Row],[25th]]","v":204366.8},{"$f":"(((AAMC_Raw_Data_for_FY22[[#This Row],[Median]]-AAMC_Raw_Data_for_FY22[[#This Row],[25th]])/25)*15) + AAMC_Raw_Data_for_FY22[[#This Row],[25th]]","v":206271.2},{"$f":"(((AAMC_Raw_Data_for_FY22[[#This Row],[Median]]-AAMC_Raw_Data_for_FY22[[#This Row],[25th]])/25)*20) + AAMC_Raw_Data_for_FY22[[#This Row],[25th]]","v":208175.6},210080,{"$f":"(((AAMC_Raw_Data_for_FY22[[#This Row],[75th]]-AAMC_Raw_Data_for_FY22[[#This Row],[Median]])/25)*5) + AAMC_Raw_Data_for_FY22[[#This Row],[Median]]","v":215423},{"$f":"(((AAMC_Raw_Data_for_FY22[[#This Row],[75th]]-AAMC_Raw_Data_for_FY22[[#This Row],[Median]])/25)*10) + AAMC_Raw_Data_for_FY22[[#This Row],[Median]]","v":220766},{"$f":"(((AAMC_Raw_Data_for_FY22[[#This Row],[75th]]-AAMC_Raw_Data_for_FY22[[#This Row],[Median]])/25)*15) + AAMC_Raw_Data_for_FY22[[#This Row],[Median]]","v":226109},{"$f":"(((AAMC_Raw_Data_for_FY22[[#This Row],[75th]]-AAMC_Raw_Data_for_FY22[[#This Row],[Median]])/25)*20) + AAMC_Raw_Data_for_FY22[[#This Row],[Median]]","v":231452},236795,{"$f":"(((AAMC_Raw_Data_for_FY22[[#This Row],[75th]]-AAMC_Raw_Data_for_FY22[[#This Row],[Median]])/25)*30) + AAMC_Raw_Data_for_FY22[[#This Row],[Median]]","v":242138},{"$f":"(((AAMC_Raw_Data_for_FY22[[#This Row],[75th]]-AAMC_Raw_Data_for_FY22[[#This Row],[Median]])/25)*35) + AAMC_Raw_Data_for_FY22[[#This Row],[Median]]","v":247481},{"$f":"(((AAMC_Raw_Data_for_FY22[[#This Row],[75th]]-AAMC_Raw_Data_for_FY22[[#This Row],[Median]])/25)*40) + AAMC_Raw_Data_for_FY22[[#This Row],[Median]]","v":252824}]
[{"$f":"AAMC_Raw_Data_for_FY22[[#This Row],[Source]]&AAMC_Raw_Data_for_FY22[[#This Row],[Type]]&AAMC_Raw_Data_for_FY22[[#This Row],[School Subset]]&AAMC_Raw_Data_for_FY22[[#This Row],[Rank]]&AAMC_Raw_Data_for_FY22[[#This Row],[Degree]]&AAMC_Raw_Data_for_FY22[[#This Row],[Department / Specialty]]&\"L\"","v":"AAMCAcademicPublicProfessorMDAllergy/Immunology-Peds.L"},"Allergy/Immunology-Peds.",2,"AAMC","Academic","Public","Professor","MD","2021-2022",212756,{"$f":"(((AAMC_Raw_Data_for_FY22[[#This Row],[Median]]-AAMC_Raw_Data_for_FY22[[#This Row],[25th]])/25)*5) + AAMC_Raw_Data_for_FY22[[#This Row],[25th]]","v":219709.4},{"$f":"(((AAMC_Raw_Data_for_FY22[[#This Row],[Median]]-AAMC_Raw_Data_for_FY22[[#This Row],[25th]])/25)*10) + AAMC_Raw_Data_for_FY22[[#This Row],[25th]]","v":226662.8},{"$f":"(((AAMC_Raw_Data_for_FY22[[#This Row],[Median]]-AAMC_Raw_Data_for_FY22[[#This Row],[25th]])/25)*15) + AAMC_Raw_Data_for_FY22[[#This Row],[25th]]","v":233616.2},{"$f":"(((AAMC_Raw_Data_for_FY22[[#This Row],[Median]]-AAMC_Raw_Data_for_FY22[[#This Row],[25th]])/25)*20) + AAMC_Raw_Data_for_FY22[[#This Row],[25th]]","v":240569.60000000001},247523,{"$f":"(((AAMC_Raw_Data_for_FY22[[#This Row],[75th]]-AAMC_Raw_Data_for_FY22[[#This Row],[Median]])/25)*5) + AAMC_Raw_Data_for_FY22[[#This Row],[Median]]","v":259798.39999999999},{"$f":"(((AAMC_Raw_Data_for_FY22[[#This Row],[75th]]-AAMC_Raw_Data_for_FY22[[#This Row],[Median]])/25)*10) + AAMC_Raw_Data_for_FY22[[#This Row],[Median]]","v":272073.8},{"$f":"(((AAMC_Raw_Data_for_FY22[[#This Row],[75th]]-AAMC_Raw_Data_for_FY22[[#This Row],[Median]])/25)*15) + AAMC_Raw_Data_for_FY22[[#This Row],[Median]]","v":284349.2},{"$f":"(((AAMC_Raw_Data_for_FY22[[#This Row],[75th]]-AAMC_Raw_Data_for_FY22[[#This Row],[Median]])/25)*20) + AAMC_Raw_Data_for_FY22[[#This Row],[Median]]","v":296624.59999999998},308900,{"$f":"(((AAMC_Raw_Data_for_FY22[[#This Row],[75th]]-AAMC_Raw_Data_for_FY22[[#This Row],[Median]])/25)*30) + AAMC_Raw_Data_for_FY22[[#This Row],[Median]]","v":321175.40000000002},{"$f":"(((AAMC_Raw_Data_for_FY22[[#This Row],[75th]]-AAMC_Raw_Data_for_FY22[[#This Row],[Median]])/25)*35) + AAMC_Raw_Data_for_FY22[[#This Row],[Median]]","v":333450.8},{"$f":"(((AAMC_Raw_Data_for_FY22[[#This Row],[75th]]-AAMC_Raw_Data_for_FY22[[#This Row],[Median]])/25)*40) + AAMC_Raw_Data_for_FY22[[#This Row],[Median]]","v":345726.2}]
[{"$f":"AAMC_Raw_Data_for_FY22[[#This Row],[Source]]&AAMC_Raw_Data_for_FY22[[#This Row],[Type]]&AAMC_Raw_Data_for_FY22[[#This Row],[School Subset]]&AAMC_Raw_Data_for_FY22[[#This Row],[Rank]]&AAMC_Raw_Data_for_FY22[[#This Row],[Degree]]&AAMC_Raw_Data_for_FY22[[#This Row],[Department / Specialty]]&\"L\"","v":"AAMCAcademicPublicChiefMDAllergy/Immunology-Peds.L"},"Allergy/Immunology-Peds.",6,"AAMC","Academic","Public","Chief","MD","2021-2022",243037,{"$f":"(((AAMC_Raw_Data_for_FY22[[#This Row],[Median]]-AAMC_Raw_Data_for_FY22[[#This Row],[25th]])/25)*5) + AAMC_Raw_Data_for_FY22[[#This Row],[25th]]","v":258111.6},{"$f":"(((AAMC_Raw_Data_for_FY22[[#This Row],[Median]]-AAMC_Raw_Data_for_FY22[[#This Row],[25th]])/25)*10) + AAMC_Raw_Data_for_FY22[[#This Row],[25th]]","v":273186.2},{"$f":"(((AAMC_Raw_Data_for_FY22[[#This Row],[Median]]-AAMC_Raw_Data_for_FY22[[#This Row],[25th]])/25)*15) + AAMC_Raw_Data_for_FY22[[#This Row],[25th]]","v":288260.8},{"$f":"(((AAMC_Raw_Data_for_FY22[[#This Row],[Median]]-AAMC_Raw_Data_for_FY22[[#This Row],[25th]])/25)*20) + AAMC_Raw_Data_for_FY22[[#This Row],[25th]]","v":303335.40000000002},318410,{"$f":"(((AAMC_Raw_Data_for_FY22[[#This Row],[75th]]-AAMC_Raw_Data_for_FY22[[#This Row],[Median]])/25)*5) + AAMC_Raw_Data_for_FY22[[#This Row],[Median]]","v":324695.59999999998},{"$f":"(((AAMC_Raw_Data_for_FY22[[#This Row],[75th]]-AAMC_Raw_Data_for_FY22[[#This Row],[Median]])/25)*10) + AAMC_Raw_Data_for_FY22[[#This Row],[Median]]","v":330981.2},{"$f":"(((AAMC_Raw_Data_for_FY22[[#This Row],[75th]]-AAMC_Raw_Data_for_FY22[[#This Row],[Median]])/25)*15) + AAMC_Raw_Data_for_FY22[[#This Row],[Median]]","v":337266.8},{"$f":"(((AAMC_Raw_Data_for_FY22[[#This Row],[75th]]-AAMC_Raw_Data_for_FY22[[#This Row],[Median]])/25)*20) + AAMC_Raw_Data_for_FY22[[#This Row],[Median]]","v":343552.4},349838,{"$f":"(((AAMC_Raw_Data_for_FY22[[#This Row],[75th]]-AAMC_Raw_Data_for_FY22[[#This Row],[Median]])/25)*30) + AAMC_Raw_Data_for_FY22[[#This Row],[Median]]","v":356123.6},{"$f":"(((AAMC_Raw_Data_for_FY22[[#This Row],[75th]]-AAMC_Raw_Data_for_FY22[[#This Row],[Median]])/25)*35) + AAMC_Raw_Data_for_FY22[[#This Row],[Median]]","v":362409.2},{"$f":"(((AAMC_Raw_Data_for_FY22[[#This Row],[75th]]-AAMC_Raw_Data_for_FY22[[#This Row],[Median]])/25)*40) + AAMC_Raw_Data_for_FY22[[#This Row],[Median]]","v":368694.8}]
[{"$f":"AAMC_Raw_Data_for_FY22[[#This Row],[Source]]&AAMC_Raw_Data_for_FY22[[#This Row],[Type]]&AAMC_Raw_Data_for_FY22[[#This Row],[School Subset]]&AAMC_Raw_Data_for_FY22[[#This Row],[Rank]]&AAMC_Raw_Data_for_FY22[[#This Row],[Degree]]&AAMC_Raw_Data_for_FY22[[#This Row],[Department / Specialty]]&\"L\"","v":"AAMCAcademicPublicChairMDAllergy/Immunology-Peds.L"},"Allergy/Immunology-Peds.",1,"AAMC","Academic","Public","Chair","MD","2021-2022",null,{"$f":"(((AAMC_Raw_Data_for_FY22[[#This Row],[Median]]-AAMC_Raw_Data_for_FY22[[#This Row],[25th]])/25)*5) + AAMC_Raw_Data_for_FY22[[#This Row],[25th]]","v":0},{"$f":"(((AAMC_Raw_Data_for_FY22[[#This Row],[Median]]-AAMC_Raw_Data_for_FY22[[#This Row],[25th]])/25)*10) + AAMC_Raw_Data_for_FY22[[#This Row],[25th]]","v":0},{"$f":"(((AAMC_Raw_Data_for_FY22[[#This Row],[Median]]-AAMC_Raw_Data_for_FY22[[#This Row],[25th]])/25)*15) + AAMC_Raw_Data_for_FY22[[#This Row],[25th]]","v":0},{"$f":"(((AAMC_Raw_Data_for_FY22[[#This Row],[Median]]-AAMC_Raw_Data_for_FY22[[#This Row],[25th]])/25)*20) + AAMC_Raw_Data_for_FY22[[#This Row],[25th]]","v":0},null,{"$f":"(((AAMC_Raw_Data_for_FY22[[#This Row],[75th]]-AAMC_Raw_Data_for_FY22[[#This Row],[Median]])/25)*5) + AAMC_Raw_Data_for_FY22[[#This Row],[Median]]","v":0},{"$f":"(((AAMC_Raw_Data_for_FY22[[#This Row],[75th]]-AAMC_Raw_Data_for_FY22[[#This Row],[Median]])/25)*10) + AAMC_Raw_Data_for_FY22[[#This Row],[Median]]","v":0},{"$f":"(((AAMC_Raw_Data_for_FY22[[#This Row],[75th]]-AAMC_Raw_Data_for_FY22[[#This Row],[Median]])/25)*15) + AAMC_Raw_Data_for_FY22[[#This Row],[Median]]","v":0},{"$f":"(((AAMC_Raw_Data_for_FY22[[#This Row],[75th]]-AAMC_Raw_Data_for_FY22[[#This Row],[Median]])/25)*20) + AAMC_Raw_Data_for_FY22[[#This Row],[Median]]","v":0},null,{"$f":"(((AAMC_Raw_Data_for_FY22[[#This Row],[75th]]-AAMC_Raw_Data_for_FY22[[#This Row],[Median]])/25)*30) + AAMC_Raw_Data_for_FY22[[#This Row],[Median]]","v":0},{"$f":"(((AAMC_Raw_Data_for_FY22[[#This Row],[75th]]-AAMC_Raw_Data_for_FY22[[#This Row],[Median]])/25)*35) + AAMC_Raw_Data_for_FY22[[#This Row],[Median]]","v":0},{"$f":"(((AAMC_Raw_Data_for_FY22[[#This Row],[75th]]-AAMC_Raw_Data_for_FY22[[#This Row],[Median]])/25)*40) + AAMC_Raw_Data_for_FY22[[#This Row],[Median]]","v":0}]
[{"$f":"AAMC_Raw_Data_for_FY22[[#This Row],[Source]]&AAMC_Raw_Data_for_FY22[[#This Row],[Type]]&AAMC_Raw_Data_for_FY22[[#This Row],[School Subset]]&AAMC_Raw_Data_for_FY22[[#This Row],[Rank]]&AAMC_Raw_Data_for_FY22[[#This Row],[Degree]]&AAMC_Raw_Data_for_FY22[[#This Row],[Department / Specialty]]&\"L\"","v":"AAMCAcademicPublicInstructorMDCritical/Intensive Care-Peds.L"},"Critical/Intensive Care-Peds.",5,"AAMC","Academic","Public","Instructor","MD","2021-2022",200241,{"$f":"(((AAMC_Raw_Data_for_FY22[[#This Row],[Median]]-AAMC_Raw_Data_for_FY22[[#This Row],[25th]])/25)*5) + AAMC_Raw_Data_for_FY22[[#This Row],[25th]]","v":208248.6},{"$f":"(((AAMC_Raw_Data_for_FY22[[#This Row],[Median]]-AAMC_Raw_Data_for_FY22[[#This Row],[25th]])/25)*10) + AAMC_Raw_Data_for_FY22[[#This Row],[25th]]","v":216256.2},{"$f":"(((AAMC_Raw_Data_for_FY22[[#This Row],[Median]]-AAMC_Raw_Data_for_FY22[[#This Row],[25th]])/25)*15) + AAMC_Raw_Data_for_FY22[[#This Row],[25th]]","v":224263.8},{"$f":"(((AAMC_Raw_Data_for_FY22[[#This Row],[Median]]-AAMC_Raw_Data_for_FY22[[#This Row],[25th]])/25)*20) + AAMC_Raw_Data_for_FY22[[#This Row],[25th]]","v":232271.4},240279,{"$f":"(((AAMC_Raw_Data_for_FY22[[#This Row],[75th]]-AAMC_Raw_Data_for_FY22[[#This Row],[Median]])/25)*5) + AAMC_Raw_Data_for_FY22[[#This Row],[Median]]","v":246848.2},{"$f":"(((AAMC_Raw_Data_for_FY22[[#This Row],[75th]]-AAMC_Raw_Data_for_FY22[[#This Row],[Median]])/25)*10) + AAMC_Raw_Data_for_FY22[[#This Row],[Median]]","v":253417.4},{"$f":"(((AAMC_Raw_Data_for_FY22[[#This Row],[75th]]-AAMC_Raw_Data_for_FY22[[#This Row],[Median]])/25)*15) + AAMC_Raw_Data_for_FY22[[#This Row],[Median]]","v":259986.6},{"$f":"(((AAMC_Raw_Data_for_FY22[[#This Row],[75th]]-AAMC_Raw_Data_for_FY22[[#This Row],[Median]])/25)*20) + AAMC_Raw_Data_for_FY22[[#This Row],[Median]]","v":266555.8},273125,{"$f":"(((AAMC_Raw_Data_for_FY22[[#This Row],[75th]]-AAMC_Raw_Data_for_FY22[[#This Row],[Median]])/25)*30) + AAMC_Raw_Data_for_FY22[[#This Row],[Median]]","v":279694.2},{"$f":"(((AAMC_Raw_Data_for_FY22[[#This Row],[75th]]-AAMC_Raw_Data_for_FY22[[#This Row],[Median]])/25)*35) + AAMC_Raw_Data_for_FY22[[#This Row],[Median]]","v":286263.40000000002},{"$f":"(((AAMC_Raw_Data_for_FY22[[#This Row],[75th]]-AAMC_Raw_Data_for_FY22[[#This Row],[Median]])/25)*40) + AAMC_Raw_Data_for_FY22[[#This Row],[Median]]","v":292832.59999999998}]
[{"$f":"AAMC_Raw_Data_for_FY22[[#This Row],[Source]]&AAMC_Raw_Data_for_FY22[[#This Row],[Type]]&AAMC_Raw_Data_for_FY22[[#This Row],[School Subset]]&AAMC_Raw_Data_for_FY22[[#This Row],[Rank]]&AAMC_Raw_Data_for_FY22[[#This Row],[Degree]]&AAMC_Raw_Data_for_FY22[[#This Row],[Department / Specialty]]&\"L\"","v":"AAMCAcademicPublicAssistantMDCritical/Intensive Care-Peds.L"},"Critical/Intensive Care-Peds.",4,"AAMC","Academic","Public","Assistant","MD","2021-2022",238208,{"$f":"(((AAMC_Raw_Data_for_FY22[[#This Row],[Median]]-AAMC_Raw_Data_for_FY22[[#This Row],[25th]])/25)*5) + AAMC_Raw_Data_for_FY22[[#This Row],[25th]]","v":243084.2},{"$f":"(((AAMC_Raw_Data_for_FY22[[#This Row],[Median]]-AAMC_Raw_Data_for_FY22[[#This Row],[25th]])/25)*10) + AAMC_Raw_Data_for_FY22[[#This Row],[25th]]","v":247960.4},{"$f":"(((AAMC_Raw_Data_for_FY22[[#This Row],[Median]]-AAMC_Raw_Data_for_FY22[[#This Row],[25th]])/25)*15) + AAMC_Raw_Data_for_FY22[[#This Row],[25th]]","v":252836.6},{"$f":"(((AAMC_Raw_Data_for_FY22[[#This Row],[Median]]-AAMC_Raw_Data_for_FY22[[#This Row],[25th]])/25)*20) + AAMC_Raw_Data_for_FY22[[#This Row],[25th]]","v":257712.8},262589,{"$f":"(((AAMC_Raw_Data_for_FY22[[#This Row],[75th]]-AAMC_Raw_Data_for_FY22[[#This Row],[Median]])/25)*5) + AAMC_Raw_Data_for_FY22[[#This Row],[Median]]","v":269253},{"$f":"(((AAMC_Raw_Data_for_FY22[[#This Row],[75th]]-AAMC_Raw_Data_for_FY22[[#This Row],[Median]])/25)*10) + AAMC_Raw_Data_for_FY22[[#This Row],[Median]]","v":275917},{"$f":"(((AAMC_Raw_Data_for_FY22[[#This Row],[75th]]-AAMC_Raw_Data_for_FY22[[#This Row],[Median]])/25)*15) + AAMC_Raw_Data_for_FY22[[#This Row],[Median]]","v":282581},{"$f":"(((AAMC_Raw_Data_for_FY22[[#This Row],[75th]]-AAMC_Raw_Data_for_FY22[[#This Row],[Median]])/25)*20) + AAMC_Raw_Data_for_FY22[[#This Row],[Median]]","v":289245},295909,{"$f":"(((AAMC_Raw_Data_for_FY22[[#This Row],[75th]]-AAMC_Raw_Data_for_FY22[[#This Row],[Median]])/25)*30) + AAMC_Raw_Data_for_FY22[[#This Row],[Median]]","v":302573},{"$f":"(((AAMC_Raw_Data_for_FY22[[#This Row],[75th]]-AAMC_Raw_Data_for_FY22[[#This Row],[Median]])/25)*35) + AAMC_Raw_Data_for_FY22[[#This Row],[Median]]","v":309237},{"$f":"(((AAMC_Raw_Data_for_FY22[[#This Row],[75th]]-AAMC_Raw_Data_for_FY22[[#This Row],[Median]])/25)*40) + AAMC_Raw_Data_for_FY22[[#This Row],[Median]]","v":315901}]
[{"$f":"AAMC_Raw_Data_for_FY22[[#This Row],[Source]]&AAMC_Raw_Data_for_FY22[[#This Row],[Type]]&AAMC_Raw_Data_for_FY22[[#This Row],[School Subset]]&AAMC_Raw_Data_for_FY22[[#This Row],[Rank]]&AAMC_Raw_Data_for_FY22[[#This Row],[Degree]]&AAMC_Raw_Data_for_FY22[[#This Row],[Department / Specialty]]&\"L\"","v":"AAMCAcademicPublicAssociateMDCritical/Intensive Care-Peds.L"},"Critical/Intensive Care-Peds.",3,"AAMC","Academic","Public","Associate","MD","2021-2022",266426,{"$f":"(((AAMC_Raw_Data_for_FY22[[#This Row],[Median]]-AAMC_Raw_Data_for_FY22[[#This Row],[25th]])/25)*5) + AAMC_Raw_Data_for_FY22[[#This Row],[25th]]","v":274433},{"$f":"(((AAMC_Raw_Data_for_FY22[[#This Row],[Median]]-AAMC_Raw_Data_for_FY22[[#This Row],[25th]])/25)*10) + AAMC_Raw_Data_for_FY22[[#This Row],[25th]]","v":282440},{"$f":"(((AAMC_Raw_Data_for_FY22[[#This Row],[Median]]-AAMC_Raw_Data_for_FY22[[#This Row],[25th]])/25)*15) + AAMC_Raw_Data_for_FY22[[#This Row],[25th]]","v":290447},{"$f":"(((AAMC_Raw_Data_for_FY22[[#This Row],[Median]]-AAMC_Raw_Data_for_FY22[[#This Row],[25th]])/25)*20) + AAMC_Raw_Data_for_FY22[[#This Row],[25th]]","v":298454},306461,{"$f":"(((AAMC_Raw_Data_for_FY22[[#This Row],[75th]]-AAMC_Raw_Data_for_FY22[[#This Row],[Median]])/25)*5) + AAMC_Raw_Data_for_FY22[[#This Row],[Median]]","v":315068.79999999999},{"$f":"(((AAMC_Raw_Data_for_FY22[[#This Row],[75th]]-AAMC_Raw_Data_for_FY22[[#This Row],[Median]])/25)*10) + AAMC_Raw_Data_for_FY22[[#This Row],[Median]]","v":323676.59999999998},{"$f":"(((AAMC_Raw_Data_for_FY22[[#This Row],[75th]]-AAMC_Raw_Data_for_FY22[[#This Row],[Median]])/25)*15) + AAMC_Raw_Data_for_FY22[[#This Row],[Median]]","v":332284.40000000002},{"$f":"(((AAMC_Raw_Data_for_FY22[[#This Row],[75th]]-AAMC_Raw_Data_for_FY22[[#This Row],[Median]])/25)*20) + AAMC_Raw_Data_for_FY22[[#This Row],[Median]]","v":340892.2},349500,{"$f":"(((AAMC_Raw_Data_for_FY22[[#This Row],[75th]]-AAMC_Raw_Data_for_FY22[[#This Row],[Median]])/25)*30) + AAMC_Raw_Data_for_FY22[[#This Row],[Median]]","v":358107.8},{"$f":"(((AAMC_Raw_Data_for_FY22[[#This Row],[75th]]-AAMC_Raw_Data_for_FY22[[#This Row],[Median]])/25)*35) + AAMC_Raw_Data_for_FY22[[#This Row],[Median]]","v":366715.6},{"$f":"(((AAMC_Raw_Data_for_FY22[[#This Row],[75th]]-AAMC_Raw_Data_for_FY22[[#This Row],[Median]])/25)*40) + AAMC_Raw_Data_for_FY22[[#This Row],[Median]]","v":375323.4}]
[{"$f":"AAMC_Raw_Data_for_FY22[[#This Row],[Source]]&AAMC_Raw_Data_for_FY22[[#This Row],[Type]]&AAMC_Raw_Data_for_FY22[[#This Row],[School Subset]]&AAMC_Raw_Data_for_FY22[[#This Row],[Rank]]&AAMC_Raw_Data_for_FY22[[#This Row],[Degree]]&AAMC_Raw_Data_for_FY22[[#This Row],[Department / Specialty]]&\"L\"","v":"AAMCAcademicPublicProfessorMDCritical/Intensive Care-Peds.L"},"Critical/Intensive Care-Peds.",2,"AAMC","Academic","Public","Professor","MD","2021-2022",320400,{"$f":"(((AAMC_Raw_Data_for_FY22[[#This Row],[Median]]-AAMC_Raw_Data_for_FY22[[#This Row],[25th]])/25)*5) + AAMC_Raw_Data_for_FY22[[#This Row],[25th]]","v":327055.8},{"$f":"(((AAMC_Raw_Data_for_FY22[[#This Row],[Median]]-AAMC_Raw_Data_for_FY22[[#This Row],[25th]])/25)*10) + AAMC_Raw_Data_for_FY22[[#This Row],[25th]]","v":333711.59999999998},{"$f":"(((AAMC_Raw_Data_for_FY22[[#This Row],[Median]]-AAMC_Raw_Data_for_FY22[[#This Row],[25th]])/25)*15) + AAMC_Raw_Data_for_FY22[[#This Row],[25th]]","v":340367.4},{"$f":"(((AAMC_Raw_Data_for_FY22[[#This Row],[Median]]-AAMC_Raw_Data_for_FY22[[#This Row],[25th]])/25)*20) + AAMC_Raw_Data_for_FY22[[#This Row],[25th]]","v":347023.2},353679,{"$f":"(((AAMC_Raw_Data_for_FY22[[#This Row],[75th]]-AAMC_Raw_Data_for_FY22[[#This Row],[Median]])/25)*5) + AAMC_Raw_Data_for_FY22[[#This Row],[Median]]","v":361338.2},{"$f":"(((AAMC_Raw_Data_for_FY22[[#This Row],[75th]]-AAMC_Raw_Data_for_FY22[[#This Row],[Median]])/25)*10) + AAMC_Raw_Data_for_FY22[[#This Row],[Median]]","v":368997.4},{"$f":"(((AAMC_Raw_Data_for_FY22[[#This Row],[75th]]-AAMC_Raw_Data_for_FY22[[#This Row],[Median]])/25)*15) + AAMC_Raw_Data_for_FY22[[#This Row],[Median]]","v":376656.6},{"$f":"(((AAMC_Raw_Data_for_FY22[[#This Row],[75th]]-AAMC_Raw_Data_for_FY22[[#This Row],[Median]])/25)*20) + AAMC_Raw_Data_for_FY22[[#This Row],[Median]]","v":384315.8},391975,{"$f":"(((AAMC_Raw_Data_for_FY22[[#This Row],[75th]]-AAMC_Raw_Data_for_FY22[[#This Row],[Median]])/25)*30) + AAMC_Raw_Data_for_FY22[[#This Row],[Median]]","v":399634.2},{"$f":"(((AAMC_Raw_Data_for_FY22[[#This Row],[75th]]-AAMC_Raw_Data_for_FY22[[#This Row],[Median]])/25)*35) + AAMC_Raw_Data_for_FY22[[#This Row],[Median]]","v":407293.4},{"$f":"(((AAMC_Raw_Data_for_FY22[[#This Row],[75th]]-AAMC_Raw_Data_for_FY22[[#This Row],[Median]])/25)*40) + AAMC_Raw_Data_for_FY22[[#This Row],[Median]]","v":414952.6}]
[{"$f":"AAMC_Raw_Data_for_FY22[[#This Row],[Source]]&AAMC_Raw_Data_for_FY22[[#This Row],[Type]]&AAMC_Raw_Data_for_FY22[[#This Row],[School Subset]]&AAMC_Raw_Data_for_FY22[[#This Row],[Rank]]&AAMC_Raw_Data_for_FY22[[#This Row],[Degree]]&AAMC_Raw_Data_for_FY22[[#This Row],[Department / Specialty]]&\"L\"","v":"AAMCAcademicPublicChiefMDCritical/Intensive Care-Peds.L"},"Critical/Intensive Care-Peds.",6,"AAMC","Academic","Public","Chief","MD","2021-2022",318185,{"$f":"(((AAMC_Raw_Data_for_FY22[[#This Row],[Median]]-AAMC_Raw_Data_for_FY22[[#This Row],[25th]])/25)*5) + AAMC_Raw_Data_for_FY22[[#This Row],[25th]]","v":323403},{"$f":"(((AAMC_Raw_Data_for_FY22[[#This Row],[Median]]-AAMC_Raw_Data_for_FY22[[#This Row],[25th]])/25)*10) + AAMC_Raw_Data_for_FY22[[#This Row],[25th]]","v":328621},{"$f":"(((AAMC_Raw_Data_for_FY22[[#This Row],[Median]]-AAMC_Raw_Data_for_FY22[[#This Row],[25th]])/25)*15) + AAMC_Raw_Data_for_FY22[[#This Row],[25th]]","v":333839},{"$f":"(((AAMC_Raw_Data_for_FY22[[#This Row],[Median]]-AAMC_Raw_Data_for_FY22[[#This Row],[25th]])/25)*20) + AAMC_Raw_Data_for_FY22[[#This Row],[25th]]","v":339057},344275,{"$f":"(((AAMC_Raw_Data_for_FY22[[#This Row],[75th]]-AAMC_Raw_Data_for_FY22[[#This Row],[Median]])/25)*5) + AAMC_Raw_Data_for_FY22[[#This Row],[Median]]","v":354014},{"$f":"(((AAMC_Raw_Data_for_FY22[[#This Row],[75th]]-AAMC_Raw_Data_for_FY22[[#This Row],[Median]])/25)*10) + AAMC_Raw_Data_for_FY22[[#This Row],[Median]]","v":363753},{"$f":"(((AAMC_Raw_Data_for_FY22[[#This Row],[75th]]-AAMC_Raw_Data_for_FY22[[#This Row],[Median]])/25)*15) + AAMC_Raw_Data_for_FY22[[#This Row],[Median]]","v":373492},{"$f":"(((AAMC_Raw_Data_for_FY22[[#This Row],[75th]]-AAMC_Raw_Data_for_FY22[[#This Row],[Median]])/25)*20) + AAMC_Raw_Data_for_FY22[[#This Row],[Median]]","v":383231},392970,{"$f":"(((AAMC_Raw_Data_for_FY22[[#This Row],[75th]]-AAMC_Raw_Data_for_FY22[[#This Row],[Median]])/25)*30) + AAMC_Raw_Data_for_FY22[[#This Row],[Median]]","v":402709},{"$f":"(((AAMC_Raw_Data_for_FY22[[#This Row],[75th]]-AAMC_Raw_Data_for_FY22[[#This Row],[Median]])/25)*35) + AAMC_Raw_Data_for_FY22[[#This Row],[Median]]","v":412448},{"$f":"(((AAMC_Raw_Data_for_FY22[[#This Row],[75th]]-AAMC_Raw_Data_for_FY22[[#This Row],[Median]])/25)*40) + AAMC_Raw_Data_for_FY22[[#This Row],[Median]]","v":422187}]
[{"$f":"AAMC_Raw_Data_for_FY22[[#This Row],[Source]]&AAMC_Raw_Data_for_FY22[[#This Row],[Type]]&AAMC_Raw_Data_for_FY22[[#This Row],[School Subset]]&AAMC_Raw_Data_for_FY22[[#This Row],[Rank]]&AAMC_Raw_Data_for_FY22[[#This Row],[Degree]]&AAMC_Raw_Data_for_FY22[[#This Row],[Department / Specialty]]&\"L\"","v":"AAMCAcademicPublicChairMDCritical/Intensive Care-Peds.L"},"Critical/Intensive Care-Peds.",1,"AAMC","Academic","Public","Chair","MD","2021-2022",449197,{"$f":"(((AAMC_Raw_Data_for_FY22[[#This Row],[Median]]-AAMC_Raw_Data_for_FY22[[#This Row],[25th]])/25)*5) + AAMC_Raw_Data_for_FY22[[#This Row],[25th]]","v":470021.6},{"$f":"(((AAMC_Raw_Data_for_FY22[[#This Row],[Median]]-AAMC_Raw_Data_for_FY22[[#This Row],[25th]])/25)*10) + AAMC_Raw_Data_for_FY22[[#This Row],[25th]]","v":490846.2},{"$f":"(((AAMC_Raw_Data_for_FY22[[#This Row],[Median]]-AAMC_Raw_Data_for_FY22[[#This Row],[25th]])/25)*15) + AAMC_Raw_Data_for_FY22[[#This Row],[25th]]","v":511670.8},{"$f":"(((AAMC_Raw_Data_for_FY22[[#This Row],[Median]]-AAMC_Raw_Data_for_FY22[[#This Row],[25th]])/25)*20) + AAMC_Raw_Data_for_FY22[[#This Row],[25th]]","v":532495.4},553320,{"$f":"(((AAMC_Raw_Data_for_FY22[[#This Row],[75th]]-AAMC_Raw_Data_for_FY22[[#This Row],[Median]])/25)*5) + AAMC_Raw_Data_for_FY22[[#This Row],[Median]]","v":555591},{"$f":"(((AAMC_Raw_Data_for_FY22[[#This Row],[75th]]-AAMC_Raw_Data_for_FY22[[#This Row],[Median]])/25)*10) + AAMC_Raw_Data_for_FY22[[#This Row],[Median]]","v":557862},{"$f":"(((AAMC_Raw_Data_for_FY22[[#This Row],[75th]]-AAMC_Raw_Data_for_FY22[[#This Row],[Median]])/25)*15) + AAMC_Raw_Data_for_FY22[[#This Row],[Median]]","v":560133},{"$f":"(((AAMC_Raw_Data_for_FY22[[#This Row],[75th]]-AAMC_Raw_Data_for_FY22[[#This Row],[Median]])/25)*20) + AAMC_Raw_Data_for_FY22[[#This Row],[Median]]","v":562404},564675,{"$f":"(((AAMC_Raw_Data_for_FY22[[#This Row],[75th]]-AAMC_Raw_Data_for_FY22[[#This Row],[Median]])/25)*30) + AAMC_Raw_Data_for_FY22[[#This Row],[Median]]","v":566946},{"$f":"(((AAMC_Raw_Data_for_FY22[[#This Row],[75th]]-AAMC_Raw_Data_for_FY22[[#This Row],[Median]])/25)*35) + AAMC_Raw_Data_for_FY22[[#This Row],[Median]]","v":569217},{"$f":"(((AAMC_Raw_Data_for_FY22[[#This Row],[75th]]-AAMC_Raw_Data_for_FY22[[#This Row],[Median]])/25)*40) + AAMC_Raw_Data_for_FY22[[#This Row],[Median]]","v":571488}]
[{"$f":"AAMC_Raw_Data_for_FY22[[#This Row],[Source]]&AAMC_Raw_Data_for_FY22[[#This Row],[Type]]&AAMC_Raw_Data_for_FY22[[#This Row],[School Subset]]&AAMC_Raw_Data_for_FY22[[#This Row],[Rank]]&AAMC_Raw_Data_for_FY22[[#This Row],[Degree]]&AAMC_Raw_Data_for_FY22[[#This Row],[Department / Specialty]]&\"L\"","v":"AAMCAcademicPublicAssistantMDDevelopmental-Behavioral PediatricsL"},"Developmental-Behavioral Pediatrics",4,"AAMC","Academic","Public","Assistant","MD","2021-2022",176824,{"$f":"(((AAMC_Raw_Data_for_FY22[[#This Row],[Median]]-AAMC_Raw_Data_for_FY22[[#This Row],[25th]])/25)*5) + AAMC_Raw_Data_for_FY22[[#This Row],[25th]]","v":177759.2},{"$f":"(((AAMC_Raw_Data_for_FY22[[#This Row],[Median]]-AAMC_Raw_Data_for_FY22[[#This Row],[25th]])/25)*10) + AAMC_Raw_Data_for_FY22[[#This Row],[25th]]","v":178694.39999999999},{"$f":"(((AAMC_Raw_Data_for_FY22[[#This Row],[Median]]-AAMC_Raw_Data_for_FY22[[#This Row],[25th]])/25)*15) + AAMC_Raw_Data_for_FY22[[#This Row],[25th]]","v":179629.6},{"$f":"(((AAMC_Raw_Data_for_FY22[[#This Row],[Median]]-AAMC_Raw_Data_for_FY22[[#This Row],[25th]])/25)*20) + AAMC_Raw_Data_for_FY22[[#This Row],[25th]]","v":180564.8},181500,{"$f":"(((AAMC_Raw_Data_for_FY22[[#This Row],[75th]]-AAMC_Raw_Data_for_FY22[[#This Row],[Median]])/25)*5) + AAMC_Raw_Data_for_FY22[[#This Row],[Median]]","v":191898.6},{"$f":"(((AAMC_Raw_Data_for_FY22[[#This Row],[75th]]-AAMC_Raw_Data_for_FY22[[#This Row],[Median]])/25)*10) + AAMC_Raw_Data_for_FY22[[#This Row],[Median]]","v":202297.2},{"$f":"(((AAMC_Raw_Data_for_FY22[[#This Row],[75th]]-AAMC_Raw_Data_for_FY22[[#This Row],[Median]])/25)*15) + AAMC_Raw_Data_for_FY22[[#This Row],[Median]]","v":212695.8},{"$f":"(((AAMC_Raw_Data_for_FY22[[#This Row],[75th]]-AAMC_Raw_Data_for_FY22[[#This Row],[Median]])/25)*20) + AAMC_Raw_Data_for_FY22[[#This Row],[Median]]","v":223094.39999999999},233493,{"$f":"(((AAMC_Raw_Data_for_FY22[[#This Row],[75th]]-AAMC_Raw_Data_for_FY22[[#This Row],[Median]])/25)*30) + AAMC_Raw_Data_for_FY22[[#This Row],[Median]]","v":243891.59999999998},{"$f":"(((AAMC_Raw_Data_for_FY22[[#This Row],[75th]]-AAMC_Raw_Data_for_FY22[[#This Row],[Median]])/25)*35) + AAMC_Raw_Data_for_FY22[[#This Row],[Median]]","v":254290.2},{"$f":"(((AAMC_Raw_Data_for_FY22[[#This Row],[75th]]-AAMC_Raw_Data_for_FY22[[#This Row],[Median]])/25)*40) + AAMC_Raw_Data_for_FY22[[#This Row],[Median]]","v":264688.8}]
[{"$f":"AAMC_Raw_Data_for_FY22[[#This Row],[Source]]&AAMC_Raw_Data_for_FY22[[#This Row],[Type]]&AAMC_Raw_Data_for_FY22[[#This Row],[School Subset]]&AAMC_Raw_Data_for_FY22[[#This Row],[Rank]]&AAMC_Raw_Data_for_FY22[[#This Row],[Degree]]&AAMC_Raw_Data_for_FY22[[#This Row],[Department / Specialty]]&\"L\"","v":"AAMCAcademicPublicAssociateMDDevelopmental-Behavioral PediatricsL"},"Developmental-Behavioral Pediatrics",3,"AAMC","Academic","Public","Associate","MD","2021-2022",181306,{"$f":"(((AAMC_Raw_Data_for_FY22[[#This Row],[Median]]-AAMC_Raw_Data_for_FY22[[#This Row],[25th]])/25)*5) + AAMC_Raw_Data_for_FY22[[#This Row],[25th]]","v":184902.39999999999},{"$f":"(((AAMC_Raw_Data_for_FY22[[#This Row],[Median]]-AAMC_Raw_Data_for_FY22[[#This Row],[25th]])/25)*10) + AAMC_Raw_Data_for_FY22[[#This Row],[25th]]","v":188498.8},{"$f":"(((AAMC_Raw_Data_for_FY22[[#This Row],[Median]]-AAMC_Raw_Data_for_FY22[[#This Row],[25th]])/25)*15) + AAMC_Raw_Data_for_FY22[[#This Row],[25th]]","v":192095.2},{"$f":"(((AAMC_Raw_Data_for_FY22[[#This Row],[Median]]-AAMC_Raw_Data_for_FY22[[#This Row],[25th]])/25)*20) + AAMC_Raw_Data_for_FY22[[#This Row],[25th]]","v":195691.6},199288,{"$f":"(((AAMC_Raw_Data_for_FY22[[#This Row],[75th]]-AAMC_Raw_Data_for_FY22[[#This Row],[Median]])/25)*5) + AAMC_Raw_Data_for_FY22[[#This Row],[Median]]","v":202855},{"$f":"(((AAMC_Raw_Data_for_FY22[[#This Row],[75th]]-AAMC_Raw_Data_for_FY22[[#This Row],[Median]])/25)*10) + AAMC_Raw_Data_for_FY22[[#This Row],[Median]]","v":206422},{"$f":"(((AAMC_Raw_Data_for_FY22[[#This Row],[75th]]-AAMC_Raw_Data_for_FY22[[#This Row],[Median]])/25)*15) + AAMC_Raw_Data_for_FY22[[#This Row],[Median]]","v":209989},{"$f":"(((AAMC_Raw_Data_for_FY22[[#This Row],[75th]]-AAMC_Raw_Data_for_FY22[[#This Row],[Median]])/25)*20) + AAMC_Raw_Data_for_FY22[[#This Row],[Median]]","v":213556},217123,{"$f":"(((AAMC_Raw_Data_for_FY22[[#This Row],[75th]]-AAMC_Raw_Data_for_FY22[[#This Row],[Median]])/25)*30) + AAMC_Raw_Data_for_FY22[[#This Row],[Median]]","v":220690},{"$f":"(((AAMC_Raw_Data_for_FY22[[#This Row],[75th]]-AAMC_Raw_Data_for_FY22[[#This Row],[Median]])/25)*35) + AAMC_Raw_Data_for_FY22[[#This Row],[Median]]","v":224257},{"$f":"(((AAMC_Raw_Data_for_FY22[[#This Row],[75th]]-AAMC_Raw_Data_for_FY22[[#This Row],[Median]])/25)*40) + AAMC_Raw_Data_for_FY22[[#This Row],[Median]]","v":227824}]
[{"$f":"AAMC_Raw_Data_for_FY22[[#This Row],[Source]]&AAMC_Raw_Data_for_FY22[[#This Row],[Type]]&AAMC_Raw_Data_for_FY22[[#This Row],[School Subset]]&AAMC_Raw_Data_for_FY22[[#This Row],[Rank]]&AAMC_Raw_Data_for_FY22[[#This Row],[Degree]]&AAMC_Raw_Data_for_FY22[[#This Row],[Department / Specialty]]&\"L\"","v":"AAMCAcademicPublicProfessorMDDevelopmental-Behavioral PediatricsL"},"Developmental-Behavioral Pediatrics",2,"AAMC","Academic","Public","Professor","MD","2021-2022",232057,{"$f":"(((AAMC_Raw_Data_for_FY22[[#This Row],[Median]]-AAMC_Raw_Data_for_FY22[[#This Row],[25th]])/25)*5) + AAMC_Raw_Data_for_FY22[[#This Row],[25th]]","v":235910.39999999999},{"$f":"(((AAMC_Raw_Data_for_FY22[[#This Row],[Median]]-AAMC_Raw_Data_for_FY22[[#This Row],[25th]])/25)*10) + AAMC_Raw_Data_for_FY22[[#This Row],[25th]]","v":239763.8},{"$f":"(((AAMC_Raw_Data_for_FY22[[#This Row],[Median]]-AAMC_Raw_Data_for_FY22[[#This Row],[25th]])/25)*15) + AAMC_Raw_Data_for_FY22[[#This Row],[25th]]","v":243617.2},{"$f":"(((AAMC_Raw_Data_for_FY22[[#This Row],[Median]]-AAMC_Raw_Data_for_FY22[[#This Row],[25th]])/25)*20) + AAMC_Raw_Data_for_FY22[[#This Row],[25th]]","v":247470.6},251324,{"$f":"(((AAMC_Raw_Data_for_FY22[[#This Row],[75th]]-AAMC_Raw_Data_for_FY22[[#This Row],[Median]])/25)*5) + AAMC_Raw_Data_for_FY22[[#This Row],[Median]]","v":252495.6},{"$f":"(((AAMC_Raw_Data_for_FY22[[#This Row],[75th]]-AAMC_Raw_Data_for_FY22[[#This Row],[Median]])/25)*10) + AAMC_Raw_Data_for_FY22[[#This Row],[Median]]","v":253667.20000000001},{"$f":"(((AAMC_Raw_Data_for_FY22[[#This Row],[75th]]-AAMC_Raw_Data_for_FY22[[#This Row],[Median]])/25)*15) + AAMC_Raw_Data_for_FY22[[#This Row],[Median]]","v":254838.8},{"$f":"(((AAMC_Raw_Data_for_FY22[[#This Row],[75th]]-AAMC_Raw_Data_for_FY22[[#This Row],[Median]])/25)*20) + AAMC_Raw_Data_for_FY22[[#This Row],[Median]]","v":256010.4},257182,{"$f":"(((AAMC_Raw_Data_for_FY22[[#This Row],[75th]]-AAMC_Raw_Data_for_FY22[[#This Row],[Median]])/25)*30) + AAMC_Raw_Data_for_FY22[[#This Row],[Median]]","v":258353.6},{"$f":"(((AAMC_Raw_Data_for_FY22[[#This Row],[75th]]-AAMC_Raw_Data_for_FY22[[#This Row],[Median]])/25)*35) + AAMC_Raw_Data_for_FY22[[#This Row],[Median]]","v":259525.2},{"$f":"(((AAMC_Raw_Data_for_FY22[[#This Row],[75th]]-AAMC_Raw_Data_for_FY22[[#This Row],[Median]])/25)*40) + AAMC_Raw_Data_for_FY22[[#This Row],[Median]]","v":260696.8}]
[{"$f":"AAMC_Raw_Data_for_FY22[[#This Row],[Source]]&AAMC_Raw_Data_for_FY22[[#This Row],[Type]]&AAMC_Raw_Data_for_FY22[[#This Row],[School Subset]]&AAMC_Raw_Data_for_FY22[[#This Row],[Rank]]&AAMC_Raw_Data_for_FY22[[#This Row],[Degree]]&AAMC_Raw_Data_for_FY22[[#This Row],[Department / Specialty]]&\"L\"","v":"AAMCAcademicPublicChiefMDDevelopmental-Behavioral PediatricsL"},"Developmental-Behavioral Pediatrics",6,"AAMC","Academic","Public","Chief","MD","2021-2022",224245,{"$f":"(((AAMC_Raw_Data_for_FY22[[#This Row],[Median]]-AAMC_Raw_Data_for_FY22[[#This Row],[25th]])/25)*5) + AAMC_Raw_Data_for_FY22[[#This Row],[25th]]","v":240511.4},{"$f":"(((AAMC_Raw_Data_for_FY22[[#This Row],[Median]]-AAMC_Raw_Data_for_FY22[[#This Row],[25th]])/25)*10) + AAMC_Raw_Data_for_FY22[[#This Row],[25th]]","v":256777.8},{"$f":"(((AAMC_Raw_Data_for_FY22[[#This Row],[Median]]-AAMC_Raw_Data_for_FY22[[#This Row],[25th]])/25)*15) + AAMC_Raw_Data_for_FY22[[#This Row],[25th]]","v":273044.2},{"$f":"(((AAMC_Raw_Data_for_FY22[[#This Row],[Median]]-AAMC_Raw_Data_for_FY22[[#This Row],[25th]])/25)*20) + AAMC_Raw_Data_for_FY22[[#This Row],[25th]]","v":289310.59999999998},305577,{"$f":"(((AAMC_Raw_Data_for_FY22[[#This Row],[75th]]-AAMC_Raw_Data_for_FY22[[#This Row],[Median]])/25)*5) + AAMC_Raw_Data_for_FY22[[#This Row],[Median]]","v":309089.8},{"$f":"(((AAMC_Raw_Data_for_FY22[[#This Row],[75th]]-AAMC_Raw_Data_for_FY22[[#This Row],[Median]])/25)*10) + AAMC_Raw_Data_for_FY22[[#This Row],[Median]]","v":312602.59999999998},{"$f":"(((AAMC_Raw_Data_for_FY22[[#This Row],[75th]]-AAMC_Raw_Data_for_FY22[[#This Row],[Median]])/25)*15) + AAMC_Raw_Data_for_FY22[[#This Row],[Median]]","v":316115.40000000002},{"$f":"(((AAMC_Raw_Data_for_FY22[[#This Row],[75th]]-AAMC_Raw_Data_for_FY22[[#This Row],[Median]])/25)*20) + AAMC_Raw_Data_for_FY22[[#This Row],[Median]]","v":319628.2},323141,{"$f":"(((AAMC_Raw_Data_for_FY22[[#This Row],[75th]]-AAMC_Raw_Data_for_FY22[[#This Row],[Median]])/25)*30) + AAMC_Raw_Data_for_FY22[[#This Row],[Median]]","v":326653.8},{"$f":"(((AAMC_Raw_Data_for_FY22[[#This Row],[75th]]-AAMC_Raw_Data_for_FY22[[#This Row],[Median]])/25)*35) + AAMC_Raw_Data_for_FY22[[#This Row],[Median]]","v":330166.59999999998},{"$f":"(((AAMC_Raw_Data_for_FY22[[#This Row],[75th]]-AAMC_Raw_Data_for_FY22[[#This Row],[Median]])/25)*40) + AAMC_Raw_Data_for_FY22[[#This Row],[Median]]","v":333679.40000000002}]
[{"$f":"AAMC_Raw_Data_for_FY22[[#This Row],[Source]]&AAMC_Raw_Data_for_FY22[[#This Row],[Type]]&AAMC_Raw_Data_for_FY22[[#This Row],[School Subset]]&AAMC_Raw_Data_for_FY22[[#This Row],[Rank]]&AAMC_Raw_Data_for_FY22[[#This Row],[Degree]]&AAMC_Raw_Data_for_FY22[[#This Row],[Department / Specialty]]&\"L\"","v":"AAMCAcademicPublicChairMDDevelopmental-Behavioral PediatricsL"},"Developmental-Behavioral Pediatrics",1,"AAMC","Academic","Public","Chair","MD","2021-2022",null,{"$f":"(((AAMC_Raw_Data_for_FY22[[#This Row],[Median]]-AAMC_Raw_Data_for_FY22[[#This Row],[25th]])/25)*5) + AAMC_Raw_Data_for_FY22[[#This Row],[25th]]","v":0},{"$f":"(((AAMC_Raw_Data_for_FY22[[#This Row],[Median]]-AAMC_Raw_Data_for_FY22[[#This Row],[25th]])/25)*10) + AAMC_Raw_Data_for_FY22[[#This Row],[25th]]","v":0},{"$f":"(((AAMC_Raw_Data_for_FY22[[#This Row],[Median]]-AAMC_Raw_Data_for_FY22[[#This Row],[25th]])/25)*15) + AAMC_Raw_Data_for_FY22[[#This Row],[25th]]","v":0},{"$f":"(((AAMC_Raw_Data_for_FY22[[#This Row],[Median]]-AAMC_Raw_Data_for_FY22[[#This Row],[25th]])/25)*20) + AAMC_Raw_Data_for_FY22[[#This Row],[25th]]","v":0},null,{"$f":"(((AAMC_Raw_Data_for_FY22[[#This Row],[75th]]-AAMC_Raw_Data_for_FY22[[#This Row],[Median]])/25)*5) + AAMC_Raw_Data_for_FY22[[#This Row],[Median]]","v":0},{"$f":"(((AAMC_Raw_Data_for_FY22[[#This Row],[75th]]-AAMC_Raw_Data_for_FY22[[#This Row],[Median]])/25)*10) + AAMC_Raw_Data_for_FY22[[#This Row],[Median]]","v":0},{"$f":"(((AAMC_Raw_Data_for_FY22[[#This Row],[75th]]-AAMC_Raw_Data_for_FY22[[#This Row],[Median]])/25)*15) + AAMC_Raw_Data_for_FY22[[#This Row],[Median]]","v":0},{"$f":"(((AAMC_Raw_Data_for_FY22[[#This Row],[75th]]-AAMC_Raw_Data_for_FY22[[#This Row],[Median]])/25)*20) + AAMC_Raw_Data_for_FY22[[#This Row],[Median]]","v":0},null,{"$f":"(((AAMC_Raw_Data_for_FY22[[#This Row],[75th]]-AAMC_Raw_Data_for_FY22[[#This Row],[Median]])/25)*30) + AAMC_Raw_Data_for_FY22[[#This Row],[Median]]","v":0},{"$f":"(((AAMC_Raw_Data_for_FY22[[#This Row],[75th]]-AAMC_Raw_Data_for_FY22[[#This Row],[Median]])/25)*35) + AAMC_Raw_Data_for_FY22[[#This Row],[Median]]","v":0},{"$f":"(((AAMC_Raw_Data_for_FY22[[#This Row],[75th]]-AAMC_Raw_Data_for_FY22[[#This Row],[Median]])/25)*40) + AAMC_Raw_Data_for_FY22[[#This Row],[Median]]","v":0}]
[{"$f":"AAMC_Raw_Data_for_FY22[[#This Row],[Source]]&AAMC_Raw_Data_for_FY22[[#This Row],[Type]]&AAMC_Raw_Data_for_FY22[[#This Row],[School Subset]]&AAMC_Raw_Data_for_FY22[[#This Row],[Rank]]&AAMC_Raw_Data_for_FY22[[#This Row],[Degree]]&AAMC_Raw_Data_for_FY22[[#This Row],[Department / Specialty]]&\"L\"","v":"AAMCAcademicPublicInstructorMDEmergency Medicine-Peds.L"},"Emergency Medicine-Peds.",5,"AAMC","Academic","Public","Instructor","MD","2021-2022",null,{"$f":"(((AAMC_Raw_Data_for_FY22[[#This Row],[Median]]-AAMC_Raw_Data_for_FY22[[#This Row],[25th]])/25)*5) + AAMC_Raw_Data_for_FY22[[#This Row],[25th]]","v":0},{"$f":"(((AAMC_Raw_Data_for_FY22[[#This Row],[Median]]-AAMC_Raw_Data_for_FY22[[#This Row],[25th]])/25)*10) + AAMC_Raw_Data_for_FY22[[#This Row],[25th]]","v":0},{"$f":"(((AAMC_Raw_Data_for_FY22[[#This Row],[Median]]-AAMC_Raw_Data_for_FY22[[#This Row],[25th]])/25)*15) + AAMC_Raw_Data_for_FY22[[#This Row],[25th]]","v":0},{"$f":"(((AAMC_Raw_Data_for_FY22[[#This Row],[Median]]-AAMC_Raw_Data_for_FY22[[#This Row],[25th]])/25)*20) + AAMC_Raw_Data_for_FY22[[#This Row],[25th]]","v":0},null,{"$f":"(((AAMC_Raw_Data_for_FY22[[#This Row],[75th]]-AAMC_Raw_Data_for_FY22[[#This Row],[Median]])/25)*5) + AAMC_Raw_Data_for_FY22[[#This Row],[Median]]","v":0},{"$f":"(((AAMC_Raw_Data_for_FY22[[#This Row],[75th]]-AAMC_Raw_Data_for_FY22[[#This Row],[Median]])/25)*10) + AAMC_Raw_Data_for_FY22[[#This Row],[Median]]","v":0},{"$f":"(((AAMC_Raw_Data_for_FY22[[#This Row],[75th]]-AAMC_Raw_Data_for_FY22[[#This Row],[Median]])/25)*15) + AAMC_Raw_Data_for_FY22[[#This Row],[Median]]","v":0},{"$f":"(((AAMC_Raw_Data_for_FY22[[#This Row],[75th]]-AAMC_Raw_Data_for_FY22[[#This Row],[Median]])/25)*20) + AAMC_Raw_Data_for_FY22[[#This Row],[Median]]","v":0},null,{"$f":"(((AAMC_Raw_Data_for_FY22[[#This Row],[75th]]-AAMC_Raw_Data_for_FY22[[#This Row],[Median]])/25)*30) + AAMC_Raw_Data_for_FY22[[#This Row],[Median]]","v":0},{"$f":"(((AAMC_Raw_Data_for_FY22[[#This Row],[75th]]-AAMC_Raw_Data_for_FY22[[#This Row],[Median]])/25)*35) + AAMC_Raw_Data_for_FY22[[#This Row],[Median]]","v":0},{"$f":"(((AAMC_Raw_Data_for_FY22[[#This Row],[75th]]-AAMC_Raw_Data_for_FY22[[#This Row],[Median]])/25)*40) + AAMC_Raw_Data_for_FY22[[#This Row],[Median]]","v":0}]
[{"$f":"AAMC_Raw_Data_for_FY22[[#This Row],[Source]]&AAMC_Raw_Data_for_FY22[[#This Row],[Type]]&AAMC_Raw_Data_for_FY22[[#This Row],[School Subset]]&AAMC_Raw_Data_for_FY22[[#This Row],[Rank]]&AAMC_Raw_Data_for_FY22[[#This Row],[Degree]]&AAMC_Raw_Data_for_FY22[[#This Row],[Department / Specialty]]&\"L\"","v":"AAMCAcademicPublicAssistantMDEmergency Medicine-Peds.L"},"Emergency Medicine-Peds.",4,"AAMC","Academic","Public","Assistant","MD","2021-2022",224275,{"$f":"(((AAMC_Raw_Data_for_FY22[[#This Row],[Median]]-AAMC_Raw_Data_for_FY22[[#This Row],[25th]])/25)*5) + AAMC_Raw_Data_for_FY22[[#This Row],[25th]]","v":229492.2},{"$f":"(((AAMC_Raw_Data_for_FY22[[#This Row],[Median]]-AAMC_Raw_Data_for_FY22[[#This Row],[25th]])/25)*10) + AAMC_Raw_Data_for_FY22[[#This Row],[25th]]","v":234709.4},{"$f":"(((AAMC_Raw_Data_for_FY22[[#This Row],[Median]]-AAMC_Raw_Data_for_FY22[[#This Row],[25th]])/25)*15) + AAMC_Raw_Data_for_FY22[[#This Row],[25th]]","v":239926.6},{"$f":"(((AAMC_Raw_Data_for_FY22[[#This Row],[Median]]-AAMC_Raw_Data_for_FY22[[#This Row],[25th]])/25)*20) + AAMC_Raw_Data_for_FY22[[#This Row],[25th]]","v":245143.8},250361,{"$f":"(((AAMC_Raw_Data_for_FY22[[#This Row],[75th]]-AAMC_Raw_Data_for_FY22[[#This Row],[Median]])/25)*5) + AAMC_Raw_Data_for_FY22[[#This Row],[Median]]","v":257308.79999999999},{"$f":"(((AAMC_Raw_Data_for_FY22[[#This Row],[75th]]-AAMC_Raw_Data_for_FY22[[#This Row],[Median]])/25)*10) + AAMC_Raw_Data_for_FY22[[#This Row],[Median]]","v":264256.59999999998},{"$f":"(((AAMC_Raw_Data_for_FY22[[#This Row],[75th]]-AAMC_Raw_Data_for_FY22[[#This Row],[Median]])/25)*15) + AAMC_Raw_Data_for_FY22[[#This Row],[Median]]","v":271204.40000000002},{"$f":"(((AAMC_Raw_Data_for_FY22[[#This Row],[75th]]-AAMC_Raw_Data_for_FY22[[#This Row],[Median]])/25)*20) + AAMC_Raw_Data_for_FY22[[#This Row],[Median]]","v":278152.2},285100,{"$f":"(((AAMC_Raw_Data_for_FY22[[#This Row],[75th]]-AAMC_Raw_Data_for_FY22[[#This Row],[Median]])/25)*30) + AAMC_Raw_Data_for_FY22[[#This Row],[Median]]","v":292047.8},{"$f":"(((AAMC_Raw_Data_for_FY22[[#This Row],[75th]]-AAMC_Raw_Data_for_FY22[[#This Row],[Median]])/25)*35) + AAMC_Raw_Data_for_FY22[[#This Row],[Median]]","v":298995.59999999998},{"$f":"(((AAMC_Raw_Data_for_FY22[[#This Row],[75th]]-AAMC_Raw_Data_for_FY22[[#This Row],[Median]])/25)*40) + AAMC_Raw_Data_for_FY22[[#This Row],[Median]]","v":305943.40000000002}]
[{"$f":"AAMC_Raw_Data_for_FY22[[#This Row],[Source]]&AAMC_Raw_Data_for_FY22[[#This Row],[Type]]&AAMC_Raw_Data_for_FY22[[#This Row],[School Subset]]&AAMC_Raw_Data_for_FY22[[#This Row],[Rank]]&AAMC_Raw_Data_for_FY22[[#This Row],[Degree]]&AAMC_Raw_Data_for_FY22[[#This Row],[Department / Specialty]]&\"L\"","v":"AAMCAcademicPublicAssociateMDEmergency Medicine-Peds.L"},"Emergency Medicine-Peds.",3,"AAMC","Academic","Public","Associate","MD","2021-2022",256922,{"$f":"(((AAMC_Raw_Data_for_FY22[[#This Row],[Median]]-AAMC_Raw_Data_for_FY22[[#This Row],[25th]])/25)*5) + AAMC_Raw_Data_for_FY22[[#This Row],[25th]]","v":260636.2},{"$f":"(((AAMC_Raw_Data_for_FY22[[#This Row],[Median]]-AAMC_Raw_Data_for_FY22[[#This Row],[25th]])/25)*10) + AAMC_Raw_Data_for_FY22[[#This Row],[25th]]","v":264350.40000000002},{"$f":"(((AAMC_Raw_Data_for_FY22[[#This Row],[Median]]-AAMC_Raw_Data_for_FY22[[#This Row],[25th]])/25)*15) + AAMC_Raw_Data_for_FY22[[#This Row],[25th]]","v":268064.59999999998},{"$f":"(((AAMC_Raw_Data_for_FY22[[#This Row],[Median]]-AAMC_Raw_Data_for_FY22[[#This Row],[25th]])/25)*20) + AAMC_Raw_Data_for_FY22[[#This Row],[25th]]","v":271778.8},275493,{"$f":"(((AAMC_Raw_Data_for_FY22[[#This Row],[75th]]-AAMC_Raw_Data_for_FY22[[#This Row],[Median]])/25)*5) + AAMC_Raw_Data_for_FY22[[#This Row],[Median]]","v":282898.59999999998},{"$f":"(((AAMC_Raw_Data_for_FY22[[#This Row],[75th]]-AAMC_Raw_Data_for_FY22[[#This Row],[Median]])/25)*10) + AAMC_Raw_Data_for_FY22[[#This Row],[Median]]","v":290304.2},{"$f":"(((AAMC_Raw_Data_for_FY22[[#This Row],[75th]]-AAMC_Raw_Data_for_FY22[[#This Row],[Median]])/25)*15) + AAMC_Raw_Data_for_FY22[[#This Row],[Median]]","v":297709.8},{"$f":"(((AAMC_Raw_Data_for_FY22[[#This Row],[75th]]-AAMC_Raw_Data_for_FY22[[#This Row],[Median]])/25)*20) + AAMC_Raw_Data_for_FY22[[#This Row],[Median]]","v":305115.40000000002},312521,{"$f":"(((AAMC_Raw_Data_for_FY22[[#This Row],[75th]]-AAMC_Raw_Data_for_FY22[[#This Row],[Median]])/25)*30) + AAMC_Raw_Data_for_FY22[[#This Row],[Median]]","v":319926.59999999998},{"$f":"(((AAMC_Raw_Data_for_FY22[[#This Row],[75th]]-AAMC_Raw_Data_for_FY22[[#This Row],[Median]])/25)*35) + AAMC_Raw_Data_for_FY22[[#This Row],[Median]]","v":327332.2},{"$f":"(((AAMC_Raw_Data_for_FY22[[#This Row],[75th]]-AAMC_Raw_Data_for_FY22[[#This Row],[Median]])/25)*40) + AAMC_Raw_Data_for_FY22[[#This Row],[Median]]","v":334737.8}]
[{"$f":"AAMC_Raw_Data_for_FY22[[#This Row],[Source]]&AAMC_Raw_Data_for_FY22[[#This Row],[Type]]&AAMC_Raw_Data_for_FY22[[#This Row],[School Subset]]&AAMC_Raw_Data_for_FY22[[#This Row],[Rank]]&AAMC_Raw_Data_for_FY22[[#This Row],[Degree]]&AAMC_Raw_Data_for_FY22[[#This Row],[Department / Specialty]]&\"L\"","v":"AAMCAcademicPublicProfessorMDEmergency Medicine-Peds.L"},"Emergency Medicine-Peds.",2,"AAMC","Academic","Public","Professor","MD","2021-2022",305000,{"$f":"(((AAMC_Raw_Data_for_FY22[[#This Row],[Median]]-AAMC_Raw_Data_for_FY22[[#This Row],[25th]])/25)*5) + AAMC_Raw_Data_for_FY22[[#This Row],[25th]]","v":307796.40000000002},{"$f":"(((AAMC_Raw_Data_for_FY22[[#This Row],[Median]]-AAMC_Raw_Data_for_FY22[[#This Row],[25th]])/25)*10) + AAMC_Raw_Data_for_FY22[[#This Row],[25th]]","v":310592.8},{"$f":"(((AAMC_Raw_Data_for_FY22[[#This Row],[Median]]-AAMC_Raw_Data_for_FY22[[#This Row],[25th]])/25)*15) + AAMC_Raw_Data_for_FY22[[#This Row],[25th]]","v":313389.2},{"$f":"(((AAMC_Raw_Data_for_FY22[[#This Row],[Median]]-AAMC_Raw_Data_for_FY22[[#This Row],[25th]])/25)*20) + AAMC_Raw_Data_for_FY22[[#This Row],[25th]]","v":316185.59999999998},318982,{"$f":"(((AAMC_Raw_Data_for_FY22[[#This Row],[75th]]-AAMC_Raw_Data_for_FY22[[#This Row],[Median]])/25)*5) + AAMC_Raw_Data_for_FY22[[#This Row],[Median]]","v":324426},{"$f":"(((AAMC_Raw_Data_for_FY22[[#This Row],[75th]]-AAMC_Raw_Data_for_FY22[[#This Row],[Median]])/25)*10) + AAMC_Raw_Data_for_FY22[[#This Row],[Median]]","v":329870},{"$f":"(((AAMC_Raw_Data_for_FY22[[#This Row],[75th]]-AAMC_Raw_Data_for_FY22[[#This Row],[Median]])/25)*15) + AAMC_Raw_Data_for_FY22[[#This Row],[Median]]","v":335314},{"$f":"(((AAMC_Raw_Data_for_FY22[[#This Row],[75th]]-AAMC_Raw_Data_for_FY22[[#This Row],[Median]])/25)*20) + AAMC_Raw_Data_for_FY22[[#This Row],[Median]]","v":340758},346202,{"$f":"(((AAMC_Raw_Data_for_FY22[[#This Row],[75th]]-AAMC_Raw_Data_for_FY22[[#This Row],[Median]])/25)*30) + AAMC_Raw_Data_for_FY22[[#This Row],[Median]]","v":351646},{"$f":"(((AAMC_Raw_Data_for_FY22[[#This Row],[75th]]-AAMC_Raw_Data_for_FY22[[#This Row],[Median]])/25)*35) + AAMC_Raw_Data_for_FY22[[#This Row],[Median]]","v":357090},{"$f":"(((AAMC_Raw_Data_for_FY22[[#This Row],[75th]]-AAMC_Raw_Data_for_FY22[[#This Row],[Median]])/25)*40) + AAMC_Raw_Data_for_FY22[[#This Row],[Median]]","v":362534}]
[{"$f":"AAMC_Raw_Data_for_FY22[[#This Row],[Source]]&AAMC_Raw_Data_for_FY22[[#This Row],[Type]]&AAMC_Raw_Data_for_FY22[[#This Row],[School Subset]]&AAMC_Raw_Data_for_FY22[[#This Row],[Rank]]&AAMC_Raw_Data_for_FY22[[#This Row],[Degree]]&AAMC_Raw_Data_for_FY22[[#This Row],[Department / Specialty]]&\"L\"","v":"AAMCAcademicPublicChiefMDEmergency Medicine-Peds.L"},"Emergency Medicine-Peds.",6,"AAMC","Academic","Public","Chief","MD","2021-2022",351200,{"$f":"(((AAMC_Raw_Data_for_FY22[[#This Row],[Median]]-AAMC_Raw_Data_for_FY22[[#This Row],[25th]])/25)*5) + AAMC_Raw_Data_for_FY22[[#This Row],[25th]]","v":357230.6},{"$f":"(((AAMC_Raw_Data_for_FY22[[#This Row],[Median]]-AAMC_Raw_Data_for_FY22[[#This Row],[25th]])/25)*10) + AAMC_Raw_Data_for_FY22[[#This Row],[25th]]","v":363261.2},{"$f":"(((AAMC_Raw_Data_for_FY22[[#This Row],[Median]]-AAMC_Raw_Data_for_FY22[[#This Row],[25th]])/25)*15) + AAMC_Raw_Data_for_FY22[[#This Row],[25th]]","v":369291.8},{"$f":"(((AAMC_Raw_Data_for_FY22[[#This Row],[Median]]-AAMC_Raw_Data_for_FY22[[#This Row],[25th]])/25)*20) + AAMC_Raw_Data_for_FY22[[#This Row],[25th]]","v":375322.4},381353,{"$f":"(((AAMC_Raw_Data_for_FY22[[#This Row],[75th]]-AAMC_Raw_Data_for_FY22[[#This Row],[Median]])/25)*5) + AAMC_Raw_Data_for_FY22[[#This Row],[Median]]","v":389918.6},{"$f":"(((AAMC_Raw_Data_for_FY22[[#This Row],[75th]]-AAMC_Raw_Data_for_FY22[[#This Row],[Median]])/25)*10) + AAMC_Raw_Data_for_FY22[[#This Row],[Median]]","v":398484.2},{"$f":"(((AAMC_Raw_Data_for_FY22[[#This Row],[75th]]-AAMC_Raw_Data_for_FY22[[#This Row],[Median]])/25)*15) + AAMC_Raw_Data_for_FY22[[#This Row],[Median]]","v":407049.8},{"$f":"(((AAMC_Raw_Data_for_FY22[[#This Row],[75th]]-AAMC_Raw_Data_for_FY22[[#This Row],[Median]])/25)*20) + AAMC_Raw_Data_for_FY22[[#This Row],[Median]]","v":415615.4},424181,{"$f":"(((AAMC_Raw_Data_for_FY22[[#This Row],[75th]]-AAMC_Raw_Data_for_FY22[[#This Row],[Median]])/25)*30) + AAMC_Raw_Data_for_FY22[[#This Row],[Median]]","v":432746.6},{"$f":"(((AAMC_Raw_Data_for_FY22[[#This Row],[75th]]-AAMC_Raw_Data_for_FY22[[#This Row],[Median]])/25)*35) + AAMC_Raw_Data_for_FY22[[#This Row],[Median]]","v":441312.2},{"$f":"(((AAMC_Raw_Data_for_FY22[[#This Row],[75th]]-AAMC_Raw_Data_for_FY22[[#This Row],[Median]])/25)*40) + AAMC_Raw_Data_for_FY22[[#This Row],[Median]]","v":449877.8}]
[{"$f":"AAMC_Raw_Data_for_FY22[[#This Row],[Source]]&AAMC_Raw_Data_for_FY22[[#This Row],[Type]]&AAMC_Raw_Data_for_FY22[[#This Row],[School Subset]]&AAMC_Raw_Data_for_FY22[[#This Row],[Rank]]&AAMC_Raw_Data_for_FY22[[#This Row],[Degree]]&AAMC_Raw_Data_for_FY22[[#This Row],[Department / Specialty]]&\"L\"","v":"AAMCAcademicPublicChairMDEmergency Medicine-Peds.L"},"Emergency Medicine-Peds.",1,"AAMC","Academic","Public","Chair","MD","2021-2022",null,{"$f":"(((AAMC_Raw_Data_for_FY22[[#This Row],[Median]]-AAMC_Raw_Data_for_FY22[[#This Row],[25th]])/25)*5) + AAMC_Raw_Data_for_FY22[[#This Row],[25th]]","v":0},{"$f":"(((AAMC_Raw_Data_for_FY22[[#This Row],[Median]]-AAMC_Raw_Data_for_FY22[[#This Row],[25th]])/25)*10) + AAMC_Raw_Data_for_FY22[[#This Row],[25th]]","v":0},{"$f":"(((AAMC_Raw_Data_for_FY22[[#This Row],[Median]]-AAMC_Raw_Data_for_FY22[[#This Row],[25th]])/25)*15) + AAMC_Raw_Data_for_FY22[[#This Row],[25th]]","v":0},{"$f":"(((AAMC_Raw_Data_for_FY22[[#This Row],[Median]]-AAMC_Raw_Data_for_FY22[[#This Row],[25th]])/25)*20) + AAMC_Raw_Data_for_FY22[[#This Row],[25th]]","v":0},null,{"$f":"(((AAMC_Raw_Data_for_FY22[[#This Row],[75th]]-AAMC_Raw_Data_for_FY22[[#This Row],[Median]])/25)*5) + AAMC_Raw_Data_for_FY22[[#This Row],[Median]]","v":0},{"$f":"(((AAMC_Raw_Data_for_FY22[[#This Row],[75th]]-AAMC_Raw_Data_for_FY22[[#This Row],[Median]])/25)*10) + AAMC_Raw_Data_for_FY22[[#This Row],[Median]]","v":0},{"$f":"(((AAMC_Raw_Data_for_FY22[[#This Row],[75th]]-AAMC_Raw_Data_for_FY22[[#This Row],[Median]])/25)*15) + AAMC_Raw_Data_for_FY22[[#This Row],[Median]]","v":0},{"$f":"(((AAMC_Raw_Data_for_FY22[[#This Row],[75th]]-AAMC_Raw_Data_for_FY22[[#This Row],[Median]])/25)*20) + AAMC_Raw_Data_for_FY22[[#This Row],[Median]]","v":0},null,{"$f":"(((AAMC_Raw_Data_for_FY22[[#This Row],[75th]]-AAMC_Raw_Data_for_FY22[[#This Row],[Median]])/25)*30) + AAMC_Raw_Data_for_FY22[[#This Row],[Median]]","v":0},{"$f":"(((AAMC_Raw_Data_for_FY22[[#This Row],[75th]]-AAMC_Raw_Data_for_FY22[[#This Row],[Median]])/25)*35) + AAMC_Raw_Data_for_FY22[[#This Row],[Median]]","v":0},{"$f":"(((AAMC_Raw_Data_for_FY22[[#This Row],[75th]]-AAMC_Raw_Data_for_FY22[[#This Row],[Median]])/25)*40) + AAMC_Raw_Data_for_FY22[[#This Row],[Median]]","v":0}]
[{"$f":"AAMC_Raw_Data_for_FY22[[#This Row],[Source]]&AAMC_Raw_Data_for_FY22[[#This Row],[Type]]&AAMC_Raw_Data_for_FY22[[#This Row],[School Subset]]&AAMC_Raw_Data_for_FY22[[#This Row],[Rank]]&AAMC_Raw_Data_for_FY22[[#This Row],[Degree]]&AAMC_Raw_Data_for_FY22[[#This Row],[Department / Specialty]]&\"L\"","v":"AAMCAcademicPublicInstructorMDEndocrinology-Peds.L"},"Endocrinology-Peds.",5,"AAMC","Academic","Public","Instructor","MD","2021-2022",null,{"$f":"(((AAMC_Raw_Data_for_FY22[[#This Row],[Median]]-AAMC_Raw_Data_for_FY22[[#This Row],[25th]])/25)*5) + AAMC_Raw_Data_for_FY22[[#This Row],[25th]]","v":0},{"$f":"(((AAMC_Raw_Data_for_FY22[[#This Row],[Median]]-AAMC_Raw_Data_for_FY22[[#This Row],[25th]])/25)*10) + AAMC_Raw_Data_for_FY22[[#This Row],[25th]]","v":0},{"$f":"(((AAMC_Raw_Data_for_FY22[[#This Row],[Median]]-AAMC_Raw_Data_for_FY22[[#This Row],[25th]])/25)*15) + AAMC_Raw_Data_for_FY22[[#This Row],[25th]]","v":0},{"$f":"(((AAMC_Raw_Data_for_FY22[[#This Row],[Median]]-AAMC_Raw_Data_for_FY22[[#This Row],[25th]])/25)*20) + AAMC_Raw_Data_for_FY22[[#This Row],[25th]]","v":0},null,{"$f":"(((AAMC_Raw_Data_for_FY22[[#This Row],[75th]]-AAMC_Raw_Data_for_FY22[[#This Row],[Median]])/25)*5) + AAMC_Raw_Data_for_FY22[[#This Row],[Median]]","v":0},{"$f":"(((AAMC_Raw_Data_for_FY22[[#This Row],[75th]]-AAMC_Raw_Data_for_FY22[[#This Row],[Median]])/25)*10) + AAMC_Raw_Data_for_FY22[[#This Row],[Median]]","v":0},{"$f":"(((AAMC_Raw_Data_for_FY22[[#This Row],[75th]]-AAMC_Raw_Data_for_FY22[[#This Row],[Median]])/25)*15) + AAMC_Raw_Data_for_FY22[[#This Row],[Median]]","v":0},{"$f":"(((AAMC_Raw_Data_for_FY22[[#This Row],[75th]]-AAMC_Raw_Data_for_FY22[[#This Row],[Median]])/25)*20) + AAMC_Raw_Data_for_FY22[[#This Row],[Median]]","v":0},null,{"$f":"(((AAMC_Raw_Data_for_FY22[[#This Row],[75th]]-AAMC_Raw_Data_for_FY22[[#This Row],[Median]])/25)*30) + AAMC_Raw_Data_for_FY22[[#This Row],[Median]]","v":0},{"$f":"(((AAMC_Raw_Data_for_FY22[[#This Row],[75th]]-AAMC_Raw_Data_for_FY22[[#This Row],[Median]])/25)*35) + AAMC_Raw_Data_for_FY22[[#This Row],[Median]]","v":0},{"$f":"(((AAMC_Raw_Data_for_FY22[[#This Row],[75th]]-AAMC_Raw_Data_for_FY22[[#This Row],[Median]])/25)*40) + AAMC_Raw_Data_for_FY22[[#This Row],[Median]]","v":0}]
[{"$f":"AAMC_Raw_Data_for_FY22[[#This Row],[Source]]&AAMC_Raw_Data_for_FY22[[#This Row],[Type]]&AAMC_Raw_Data_for_FY22[[#This Row],[School Subset]]&AAMC_Raw_Data_for_FY22[[#This Row],[Rank]]&AAMC_Raw_Data_for_FY22[[#This Row],[Degree]]&AAMC_Raw_Data_for_FY22[[#This Row],[Department / Specialty]]&\"L\"","v":"AAMCAcademicPublicAssistantMDEndocrinology-Peds.L"},"Endocrinology-Peds.",4,"AAMC","Academic","Public","Assistant","MD","2021-2022",161000,{"$f":"(((AAMC_Raw_Data_for_FY22[[#This Row],[Median]]-AAMC_Raw_Data_for_FY22[[#This Row],[25th]])/25)*5) + AAMC_Raw_Data_for_FY22[[#This Row],[25th]]","v":163240.6},{"$f":"(((AAMC_Raw_Data_for_FY22[[#This Row],[Median]]-AAMC_Raw_Data_for_FY22[[#This Row],[25th]])/25)*10) + AAMC_Raw_Data_for_FY22[[#This Row],[25th]]","v":165481.20000000001},{"$f":"(((AAMC_Raw_Data_for_FY22[[#This Row],[Median]]-AAMC_Raw_Data_for_FY22[[#This Row],[25th]])/25)*15) + AAMC_Raw_Data_for_FY22[[#This Row],[25th]]","v":167721.79999999999},{"$f":"(((AAMC_Raw_Data_for_FY22[[#This Row],[Median]]-AAMC_Raw_Data_for_FY22[[#This Row],[25th]])/25)*20) + AAMC_Raw_Data_for_FY22[[#This Row],[25th]]","v":169962.4},172203,{"$f":"(((AAMC_Raw_Data_for_FY22[[#This Row],[75th]]-AAMC_Raw_Data_for_FY22[[#This Row],[Median]])/25)*5) + AAMC_Raw_Data_for_FY22[[#This Row],[Median]]","v":175476.2},{"$f":"(((AAMC_Raw_Data_for_FY22[[#This Row],[75th]]-AAMC_Raw_Data_for_FY22[[#This Row],[Median]])/25)*10) + AAMC_Raw_Data_for_FY22[[#This Row],[Median]]","v":178749.4},{"$f":"(((AAMC_Raw_Data_for_FY22[[#This Row],[75th]]-AAMC_Raw_Data_for_FY22[[#This Row],[Median]])/25)*15) + AAMC_Raw_Data_for_FY22[[#This Row],[Median]]","v":182022.6},{"$f":"(((AAMC_Raw_Data_for_FY22[[#This Row],[75th]]-AAMC_Raw_Data_for_FY22[[#This Row],[Median]])/25)*20) + AAMC_Raw_Data_for_FY22[[#This Row],[Median]]","v":185295.8},188569,{"$f":"(((AAMC_Raw_Data_for_FY22[[#This Row],[75th]]-AAMC_Raw_Data_for_FY22[[#This Row],[Median]])/25)*30) + AAMC_Raw_Data_for_FY22[[#This Row],[Median]]","v":191842.2},{"$f":"(((AAMC_Raw_Data_for_FY22[[#This Row],[75th]]-AAMC_Raw_Data_for_FY22[[#This Row],[Median]])/25)*35) + AAMC_Raw_Data_for_FY22[[#This Row],[Median]]","v":195115.4},{"$f":"(((AAMC_Raw_Data_for_FY22[[#This Row],[75th]]-AAMC_Raw_Data_for_FY22[[#This Row],[Median]])/25)*40) + AAMC_Raw_Data_for_FY22[[#This Row],[Median]]","v":198388.6}]
[{"$f":"AAMC_Raw_Data_for_FY22[[#This Row],[Source]]&AAMC_Raw_Data_for_FY22[[#This Row],[Type]]&AAMC_Raw_Data_for_FY22[[#This Row],[School Subset]]&AAMC_Raw_Data_for_FY22[[#This Row],[Rank]]&AAMC_Raw_Data_for_FY22[[#This Row],[Degree]]&AAMC_Raw_Data_for_FY22[[#This Row],[Department / Specialty]]&\"L\"","v":"AAMCAcademicPublicAssociateMDEndocrinology-Peds.L"},"Endocrinology-Peds.",3,"AAMC","Academic","Public","Associate","MD","2021-2022",189962,{"$f":"(((AAMC_Raw_Data_for_FY22[[#This Row],[Median]]-AAMC_Raw_Data_for_FY22[[#This Row],[25th]])/25)*5) + AAMC_Raw_Data_for_FY22[[#This Row],[25th]]","v":191570.6},{"$f":"(((AAMC_Raw_Data_for_FY22[[#This Row],[Median]]-AAMC_Raw_Data_for_FY22[[#This Row],[25th]])/25)*10) + AAMC_Raw_Data_for_FY22[[#This Row],[25th]]","v":193179.2},{"$f":"(((AAMC_Raw_Data_for_FY22[[#This Row],[Median]]-AAMC_Raw_Data_for_FY22[[#This Row],[25th]])/25)*15) + AAMC_Raw_Data_for_FY22[[#This Row],[25th]]","v":194787.8},{"$f":"(((AAMC_Raw_Data_for_FY22[[#This Row],[Median]]-AAMC_Raw_Data_for_FY22[[#This Row],[25th]])/25)*20) + AAMC_Raw_Data_for_FY22[[#This Row],[25th]]","v":196396.4},198005,{"$f":"(((AAMC_Raw_Data_for_FY22[[#This Row],[75th]]-AAMC_Raw_Data_for_FY22[[#This Row],[Median]])/25)*5) + AAMC_Raw_Data_for_FY22[[#This Row],[Median]]","v":200744},{"$f":"(((AAMC_Raw_Data_for_FY22[[#This Row],[75th]]-AAMC_Raw_Data_for_FY22[[#This Row],[Median]])/25)*10) + AAMC_Raw_Data_for_FY22[[#This Row],[Median]]","v":203483},{"$f":"(((AAMC_Raw_Data_for_FY22[[#This Row],[75th]]-AAMC_Raw_Data_for_FY22[[#This Row],[Median]])/25)*15) + AAMC_Raw_Data_for_FY22[[#This Row],[Median]]","v":206222},{"$f":"(((AAMC_Raw_Data_for_FY22[[#This Row],[75th]]-AAMC_Raw_Data_for_FY22[[#This Row],[Median]])/25)*20) + AAMC_Raw_Data_for_FY22[[#This Row],[Median]]","v":208961},211700,{"$f":"(((AAMC_Raw_Data_for_FY22[[#This Row],[75th]]-AAMC_Raw_Data_for_FY22[[#This Row],[Median]])/25)*30) + AAMC_Raw_Data_for_FY22[[#This Row],[Median]]","v":214439},{"$f":"(((AAMC_Raw_Data_for_FY22[[#This Row],[75th]]-AAMC_Raw_Data_for_FY22[[#This Row],[Median]])/25)*35) + AAMC_Raw_Data_for_FY22[[#This Row],[Median]]","v":217178},{"$f":"(((AAMC_Raw_Data_for_FY22[[#This Row],[75th]]-AAMC_Raw_Data_for_FY22[[#This Row],[Median]])/25)*40) + AAMC_Raw_Data_for_FY22[[#This Row],[Median]]","v":219917}]
[{"$f":"AAMC_Raw_Data_for_FY22[[#This Row],[Source]]&AAMC_Raw_Data_for_FY22[[#This Row],[Type]]&AAMC_Raw_Data_for_FY22[[#This Row],[School Subset]]&AAMC_Raw_Data_for_FY22[[#This Row],[Rank]]&AAMC_Raw_Data_for_FY22[[#This Row],[Degree]]&AAMC_Raw_Data_for_FY22[[#This Row],[Department / Specialty]]&\"L\"","v":"AAMCAcademicPublicProfessorMDEndocrinology-Peds.L"},"Endocrinology-Peds.",2,"AAMC","Academic","Public","Professor","MD","2021-2022",230844,{"$f":"(((AAMC_Raw_Data_for_FY22[[#This Row],[Median]]-AAMC_Raw_Data_for_FY22[[#This Row],[25th]])/25)*5) + AAMC_Raw_Data_for_FY22[[#This Row],[25th]]","v":233476.2},{"$f":"(((AAMC_Raw_Data_for_FY22[[#This Row],[Median]]-AAMC_Raw_Data_for_FY22[[#This Row],[25th]])/25)*10) + AAMC_Raw_Data_for_FY22[[#This Row],[25th]]","v":236108.4},{"$f":"(((AAMC_Raw_Data_for_FY22[[#This Row],[Median]]-AAMC_Raw_Data_for_FY22[[#This Row],[25th]])/25)*15) + AAMC_Raw_Data_for_FY22[[#This Row],[25th]]","v":238740.6},{"$f":"(((AAMC_Raw_Data_for_FY22[[#This Row],[Median]]-AAMC_Raw_Data_for_FY22[[#This Row],[25th]])/25)*20) + AAMC_Raw_Data_for_FY22[[#This Row],[25th]]","v":241372.79999999999},244005,{"$f":"(((AAMC_Raw_Data_for_FY22[[#This Row],[75th]]-AAMC_Raw_Data_for_FY22[[#This Row],[Median]])/25)*5) + AAMC_Raw_Data_for_FY22[[#This Row],[Median]]","v":251985},{"$f":"(((AAMC_Raw_Data_for_FY22[[#This Row],[75th]]-AAMC_Raw_Data_for_FY22[[#This Row],[Median]])/25)*10) + AAMC_Raw_Data_for_FY22[[#This Row],[Median]]","v":259965},{"$f":"(((AAMC_Raw_Data_for_FY22[[#This Row],[75th]]-AAMC_Raw_Data_for_FY22[[#This Row],[Median]])/25)*15) + AAMC_Raw_Data_for_FY22[[#This Row],[Median]]","v":267945},{"$f":"(((AAMC_Raw_Data_for_FY22[[#This Row],[75th]]-AAMC_Raw_Data_for_FY22[[#This Row],[Median]])/25)*20) + AAMC_Raw_Data_for_FY22[[#This Row],[Median]]","v":275925},283905,{"$f":"(((AAMC_Raw_Data_for_FY22[[#This Row],[75th]]-AAMC_Raw_Data_for_FY22[[#This Row],[Median]])/25)*30) + AAMC_Raw_Data_for_FY22[[#This Row],[Median]]","v":291885},{"$f":"(((AAMC_Raw_Data_for_FY22[[#This Row],[75th]]-AAMC_Raw_Data_for_FY22[[#This Row],[Median]])/25)*35) + AAMC_Raw_Data_for_FY22[[#This Row],[Median]]","v":299865},{"$f":"(((AAMC_Raw_Data_for_FY22[[#This Row],[75th]]-AAMC_Raw_Data_for_FY22[[#This Row],[Median]])/25)*40) + AAMC_Raw_Data_for_FY22[[#This Row],[Median]]","v":307845}]
[{"$f":"AAMC_Raw_Data_for_FY22[[#This Row],[Source]]&AAMC_Raw_Data_for_FY22[[#This Row],[Type]]&AAMC_Raw_Data_for_FY22[[#This Row],[School Subset]]&AAMC_Raw_Data_for_FY22[[#This Row],[Rank]]&AAMC_Raw_Data_for_FY22[[#This Row],[Degree]]&AAMC_Raw_Data_for_FY22[[#This Row],[Department / Specialty]]&\"L\"","v":"AAMCAcademicPublicChiefMDEndocrinology-Peds.L"},"Endocrinology-Peds.",6,"AAMC","Academic","Public","Chief","MD","2021-2022",247458,{"$f":"(((AAMC_Raw_Data_for_FY22[[#This Row],[Median]]-AAMC_Raw_Data_for_FY22[[#This Row],[25th]])/25)*5) + AAMC_Raw_Data_for_FY22[[#This Row],[25th]]","v":253417.8},{"$f":"(((AAMC_Raw_Data_for_FY22[[#This Row],[Median]]-AAMC_Raw_Data_for_FY22[[#This Row],[25th]])/25)*10) + AAMC_Raw_Data_for_FY22[[#This Row],[25th]]","v":259377.6},{"$f":"(((AAMC_Raw_Data_for_FY22[[#This Row],[Median]]-AAMC_Raw_Data_for_FY22[[#This Row],[25th]])/25)*15) + AAMC_Raw_Data_for_FY22[[#This Row],[25th]]","v":265337.40000000002},{"$f":"(((AAMC_Raw_Data_for_FY22[[#This Row],[Median]]-AAMC_Raw_Data_for_FY22[[#This Row],[25th]])/25)*20) + AAMC_Raw_Data_for_FY22[[#This Row],[25th]]","v":271297.2},277257,{"$f":"(((AAMC_Raw_Data_for_FY22[[#This Row],[75th]]-AAMC_Raw_Data_for_FY22[[#This Row],[Median]])/25)*5) + AAMC_Raw_Data_for_FY22[[#This Row],[Median]]","v":282378},{"$f":"(((AAMC_Raw_Data_for_FY22[[#This Row],[75th]]-AAMC_Raw_Data_for_FY22[[#This Row],[Median]])/25)*10) + AAMC_Raw_Data_for_FY22[[#This Row],[Median]]","v":287499},{"$f":"(((AAMC_Raw_Data_for_FY22[[#This Row],[75th]]-AAMC_Raw_Data_for_FY22[[#This Row],[Median]])/25)*15) + AAMC_Raw_Data_for_FY22[[#This Row],[Median]]","v":292620},{"$f":"(((AAMC_Raw_Data_for_FY22[[#This Row],[75th]]-AAMC_Raw_Data_for_FY22[[#This Row],[Median]])/25)*20) + AAMC_Raw_Data_for_FY22[[#This Row],[Median]]","v":297741},302862,{"$f":"(((AAMC_Raw_Data_for_FY22[[#This Row],[75th]]-AAMC_Raw_Data_for_FY22[[#This Row],[Median]])/25)*30) + AAMC_Raw_Data_for_FY22[[#This Row],[Median]]","v":307983},{"$f":"(((AAMC_Raw_Data_for_FY22[[#This Row],[75th]]-AAMC_Raw_Data_for_FY22[[#This Row],[Median]])/25)*35) + AAMC_Raw_Data_for_FY22[[#This Row],[Median]]","v":313104},{"$f":"(((AAMC_Raw_Data_for_FY22[[#This Row],[75th]]-AAMC_Raw_Data_for_FY22[[#This Row],[Median]])/25)*40) + AAMC_Raw_Data_for_FY22[[#This Row],[Median]]","v":318225}]
[{"$f":"AAMC_Raw_Data_for_FY22[[#This Row],[Source]]&AAMC_Raw_Data_for_FY22[[#This Row],[Type]]&AAMC_Raw_Data_for_FY22[[#This Row],[School Subset]]&AAMC_Raw_Data_for_FY22[[#This Row],[Rank]]&AAMC_Raw_Data_for_FY22[[#This Row],[Degree]]&AAMC_Raw_Data_for_FY22[[#This Row],[Department / Specialty]]&\"L\"","v":"AAMCAcademicPublicChairMDEndocrinology-Peds.L"},"Endocrinology-Peds.",1,"AAMC","Academic","Public","Chair","MD","2021-2022",null,{"$f":"(((AAMC_Raw_Data_for_FY22[[#This Row],[Median]]-AAMC_Raw_Data_for_FY22[[#This Row],[25th]])/25)*5) + AAMC_Raw_Data_for_FY22[[#This Row],[25th]]","v":0},{"$f":"(((AAMC_Raw_Data_for_FY22[[#This Row],[Median]]-AAMC_Raw_Data_for_FY22[[#This Row],[25th]])/25)*10) + AAMC_Raw_Data_for_FY22[[#This Row],[25th]]","v":0},{"$f":"(((AAMC_Raw_Data_for_FY22[[#This Row],[Median]]-AAMC_Raw_Data_for_FY22[[#This Row],[25th]])/25)*15) + AAMC_Raw_Data_for_FY22[[#This Row],[25th]]","v":0},{"$f":"(((AAMC_Raw_Data_for_FY22[[#This Row],[Median]]-AAMC_Raw_Data_for_FY22[[#This Row],[25th]])/25)*20) + AAMC_Raw_Data_for_FY22[[#This Row],[25th]]","v":0},null,{"$f":"(((AAMC_Raw_Data_for_FY22[[#This Row],[75th]]-AAMC_Raw_Data_for_FY22[[#This Row],[Median]])/25)*5) + AAMC_Raw_Data_for_FY22[[#This Row],[Median]]","v":0},{"$f":"(((AAMC_Raw_Data_for_FY22[[#This Row],[75th]]-AAMC_Raw_Data_for_FY22[[#This Row],[Median]])/25)*10) + AAMC_Raw_Data_for_FY22[[#This Row],[Median]]","v":0},{"$f":"(((AAMC_Raw_Data_for_FY22[[#This Row],[75th]]-AAMC_Raw_Data_for_FY22[[#This Row],[Median]])/25)*15) + AAMC_Raw_Data_for_FY22[[#This Row],[Median]]","v":0},{"$f":"(((AAMC_Raw_Data_for_FY22[[#This Row],[75th]]-AAMC_Raw_Data_for_FY22[[#This Row],[Median]])/25)*20) + AAMC_Raw_Data_for_FY22[[#This Row],[Median]]","v":0},null,{"$f":"(((AAMC_Raw_Data_for_FY22[[#This Row],[75th]]-AAMC_Raw_Data_for_FY22[[#This Row],[Median]])/25)*30) + AAMC_Raw_Data_for_FY22[[#This Row],[Median]]","v":0},{"$f":"(((AAMC_Raw_Data_for_FY22[[#This Row],[75th]]-AAMC_Raw_Data_for_FY22[[#This Row],[Median]])/25)*35) + AAMC_Raw_Data_for_FY22[[#This Row],[Median]]","v":0},{"$f":"(((AAMC_Raw_Data_for_FY22[[#This Row],[75th]]-AAMC_Raw_Data_for_FY22[[#This Row],[Median]])/25)*40) + AAMC_Raw_Data_for_FY22[[#This Row],[Median]]","v":0}]
[{"$f":"AAMC_Raw_Data_for_FY22[[#This Row],[Source]]&AAMC_Raw_Data_for_FY22[[#This Row],[Type]]&AAMC_Raw_Data_for_FY22[[#This Row],[School Subset]]&AAMC_Raw_Data_for_FY22[[#This Row],[Rank]]&AAMC_Raw_Data_for_FY22[[#This Row],[Degree]]&AAMC_Raw_Data_for_FY22[[#This Row],[Department / Specialty]]&\"L\"","v":"AAMCAcademicPublicInstructorMDGastroenterology-Peds.L"},"Gastroenterology-Peds.",5,"AAMC","Academic","Public","Instructor","MD","2021-2022",null,{"$f":"(((AAMC_Raw_Data_for_FY22[[#This Row],[Median]]-AAMC_Raw_Data_for_FY22[[#This Row],[25th]])/25)*5) + AAMC_Raw_Data_for_FY22[[#This Row],[25th]]","v":0},{"$f":"(((AAMC_Raw_Data_for_FY22[[#This Row],[Median]]-AAMC_Raw_Data_for_FY22[[#This Row],[25th]])/25)*10) + AAMC_Raw_Data_for_FY22[[#This Row],[25th]]","v":0},{"$f":"(((AAMC_Raw_Data_for_FY22[[#This Row],[Median]]-AAMC_Raw_Data_for_FY22[[#This Row],[25th]])/25)*15) + AAMC_Raw_Data_for_FY22[[#This Row],[25th]]","v":0},{"$f":"(((AAMC_Raw_Data_for_FY22[[#This Row],[Median]]-AAMC_Raw_Data_for_FY22[[#This Row],[25th]])/25)*20) + AAMC_Raw_Data_for_FY22[[#This Row],[25th]]","v":0},null,{"$f":"(((AAMC_Raw_Data_for_FY22[[#This Row],[75th]]-AAMC_Raw_Data_for_FY22[[#This Row],[Median]])/25)*5) + AAMC_Raw_Data_for_FY22[[#This Row],[Median]]","v":0},{"$f":"(((AAMC_Raw_Data_for_FY22[[#This Row],[75th]]-AAMC_Raw_Data_for_FY22[[#This Row],[Median]])/25)*10) + AAMC_Raw_Data_for_FY22[[#This Row],[Median]]","v":0},{"$f":"(((AAMC_Raw_Data_for_FY22[[#This Row],[75th]]-AAMC_Raw_Data_for_FY22[[#This Row],[Median]])/25)*15) + AAMC_Raw_Data_for_FY22[[#This Row],[Median]]","v":0},{"$f":"(((AAMC_Raw_Data_for_FY22[[#This Row],[75th]]-AAMC_Raw_Data_for_FY22[[#This Row],[Median]])/25)*20) + AAMC_Raw_Data_for_FY22[[#This Row],[Median]]","v":0},null,{"$f":"(((AAMC_Raw_Data_for_FY22[[#This Row],[75th]]-AAMC_Raw_Data_for_FY22[[#This Row],[Median]])/25)*30) + AAMC_Raw_Data_for_FY22[[#This Row],[Median]]","v":0},{"$f":"(((AAMC_Raw_Data_for_FY22[[#This Row],[75th]]-AAMC_Raw_Data_for_FY22[[#This Row],[Median]])/25)*35) + AAMC_Raw_Data_for_FY22[[#This Row],[Median]]","v":0},{"$f":"(((AAMC_Raw_Data_for_FY22[[#This Row],[75th]]-AAMC_Raw_Data_for_FY22[[#This Row],[Median]])/25)*40) + AAMC_Raw_Data_for_FY22[[#This Row],[Median]]","v":0}]
[{"$f":"AAMC_Raw_Data_for_FY22[[#This Row],[Source]]&AAMC_Raw_Data_for_FY22[[#This Row],[Type]]&AAMC_Raw_Data_for_FY22[[#This Row],[School Subset]]&AAMC_Raw_Data_for_FY22[[#This Row],[Rank]]&AAMC_Raw_Data_for_FY22[[#This Row],[Degree]]&AAMC_Raw_Data_for_FY22[[#This Row],[Department / Specialty]]&\"L\"","v":"AAMCAcademicPublicAssistantMDGastroenterology-Peds.L"},"Gastroenterology-Peds.",4,"AAMC","Academic","Public","Assistant","MD","2021-2022",203043,{"$f":"(((AAMC_Raw_Data_for_FY22[[#This Row],[Median]]-AAMC_Raw_Data_for_FY22[[#This Row],[25th]])/25)*5) + AAMC_Raw_Data_for_FY22[[#This Row],[25th]]","v":205261.6},{"$f":"(((AAMC_Raw_Data_for_FY22[[#This Row],[Median]]-AAMC_Raw_Data_for_FY22[[#This Row],[25th]])/25)*10) + AAMC_Raw_Data_for_FY22[[#This Row],[25th]]","v":207480.2},{"$f":"(((AAMC_Raw_Data_for_FY22[[#This Row],[Median]]-AAMC_Raw_Data_for_FY22[[#This Row],[25th]])/25)*15) + AAMC_Raw_Data_for_FY22[[#This Row],[25th]]","v":209698.8},{"$f":"(((AAMC_Raw_Data_for_FY22[[#This Row],[Median]]-AAMC_Raw_Data_for_FY22[[#This Row],[25th]])/25)*20) + AAMC_Raw_Data_for_FY22[[#This Row],[25th]]","v":211917.4},214136,{"$f":"(((AAMC_Raw_Data_for_FY22[[#This Row],[75th]]-AAMC_Raw_Data_for_FY22[[#This Row],[Median]])/25)*5) + AAMC_Raw_Data_for_FY22[[#This Row],[Median]]","v":218308.8},{"$f":"(((AAMC_Raw_Data_for_FY22[[#This Row],[75th]]-AAMC_Raw_Data_for_FY22[[#This Row],[Median]])/25)*10) + AAMC_Raw_Data_for_FY22[[#This Row],[Median]]","v":222481.6},{"$f":"(((AAMC_Raw_Data_for_FY22[[#This Row],[75th]]-AAMC_Raw_Data_for_FY22[[#This Row],[Median]])/25)*15) + AAMC_Raw_Data_for_FY22[[#This Row],[Median]]","v":226654.4},{"$f":"(((AAMC_Raw_Data_for_FY22[[#This Row],[75th]]-AAMC_Raw_Data_for_FY22[[#This Row],[Median]])/25)*20) + AAMC_Raw_Data_for_FY22[[#This Row],[Median]]","v":230827.2},235000,{"$f":"(((AAMC_Raw_Data_for_FY22[[#This Row],[75th]]-AAMC_Raw_Data_for_FY22[[#This Row],[Median]])/25)*30) + AAMC_Raw_Data_for_FY22[[#This Row],[Median]]","v":239172.8},{"$f":"(((AAMC_Raw_Data_for_FY22[[#This Row],[75th]]-AAMC_Raw_Data_for_FY22[[#This Row],[Median]])/25)*35) + AAMC_Raw_Data_for_FY22[[#This Row],[Median]]","v":243345.6},{"$f":"(((AAMC_Raw_Data_for_FY22[[#This Row],[75th]]-AAMC_Raw_Data_for_FY22[[#This Row],[Median]])/25)*40) + AAMC_Raw_Data_for_FY22[[#This Row],[Median]]","v":247518.4}]
[{"$f":"AAMC_Raw_Data_for_FY22[[#This Row],[Source]]&AAMC_Raw_Data_for_FY22[[#This Row],[Type]]&AAMC_Raw_Data_for_FY22[[#This Row],[School Subset]]&AAMC_Raw_Data_for_FY22[[#This Row],[Rank]]&AAMC_Raw_Data_for_FY22[[#This Row],[Degree]]&AAMC_Raw_Data_for_FY22[[#This Row],[Department / Specialty]]&\"L\"","v":"AAMCAcademicPublicAssociateMDGastroenterology-Peds.L"},"Gastroenterology-Peds.",3,"AAMC","Academic","Public","Associate","MD","2021-2022",240045,{"$f":"(((AAMC_Raw_Data_for_FY22[[#This Row],[Median]]-AAMC_Raw_Data_for_FY22[[#This Row],[25th]])/25)*5) + AAMC_Raw_Data_for_FY22[[#This Row],[25th]]","v":243524.2},{"$f":"(((AAMC_Raw_Data_for_FY22[[#This Row],[Median]]-AAMC_Raw_Data_for_FY22[[#This Row],[25th]])/25)*10) + AAMC_Raw_Data_for_FY22[[#This Row],[25th]]","v":247003.4},{"$f":"(((AAMC_Raw_Data_for_FY22[[#This Row],[Median]]-AAMC_Raw_Data_for_FY22[[#This Row],[25th]])/25)*15) + AAMC_Raw_Data_for_FY22[[#This Row],[25th]]","v":250482.6},{"$f":"(((AAMC_Raw_Data_for_FY22[[#This Row],[Median]]-AAMC_Raw_Data_for_FY22[[#This Row],[25th]])/25)*20) + AAMC_Raw_Data_for_FY22[[#This Row],[25th]]","v":253961.8},257441,{"$f":"(((AAMC_Raw_Data_for_FY22[[#This Row],[75th]]-AAMC_Raw_Data_for_FY22[[#This Row],[Median]])/25)*5) + AAMC_Raw_Data_for_FY22[[#This Row],[Median]]","v":263288.59999999998},{"$f":"(((AAMC_Raw_Data_for_FY22[[#This Row],[75th]]-AAMC_Raw_Data_for_FY22[[#This Row],[Median]])/25)*10) + AAMC_Raw_Data_for_FY22[[#This Row],[Median]]","v":269136.2},{"$f":"(((AAMC_Raw_Data_for_FY22[[#This Row],[75th]]-AAMC_Raw_Data_for_FY22[[#This Row],[Median]])/25)*15) + AAMC_Raw_Data_for_FY22[[#This Row],[Median]]","v":274983.8},{"$f":"(((AAMC_Raw_Data_for_FY22[[#This Row],[75th]]-AAMC_Raw_Data_for_FY22[[#This Row],[Median]])/25)*20) + AAMC_Raw_Data_for_FY22[[#This Row],[Median]]","v":280831.40000000002},286679,{"$f":"(((AAMC_Raw_Data_for_FY22[[#This Row],[75th]]-AAMC_Raw_Data_for_FY22[[#This Row],[Median]])/25)*30) + AAMC_Raw_Data_for_FY22[[#This Row],[Median]]","v":292526.59999999998},{"$f":"(((AAMC_Raw_Data_for_FY22[[#This Row],[75th]]-AAMC_Raw_Data_for_FY22[[#This Row],[Median]])/25)*35) + AAMC_Raw_Data_for_FY22[[#This Row],[Median]]","v":298374.2},{"$f":"(((AAMC_Raw_Data_for_FY22[[#This Row],[75th]]-AAMC_Raw_Data_for_FY22[[#This Row],[Median]])/25)*40) + AAMC_Raw_Data_for_FY22[[#This Row],[Median]]","v":304221.8}]
[{"$f":"AAMC_Raw_Data_for_FY22[[#This Row],[Source]]&AAMC_Raw_Data_for_FY22[[#This Row],[Type]]&AAMC_Raw_Data_for_FY22[[#This Row],[School Subset]]&AAMC_Raw_Data_for_FY22[[#This Row],[Rank]]&AAMC_Raw_Data_for_FY22[[#This Row],[Degree]]&AAMC_Raw_Data_for_FY22[[#This Row],[Department / Specialty]]&\"L\"","v":"AAMCAcademicPublicProfessorMDGastroenterology-Peds.L"},"Gastroenterology-Peds.",2,"AAMC","Academic","Public","Professor","MD","2021-2022",291075,{"$f":"(((AAMC_Raw_Data_for_FY22[[#This Row],[Median]]-AAMC_Raw_Data_for_FY22[[#This Row],[25th]])/25)*5) + AAMC_Raw_Data_for_FY22[[#This Row],[25th]]","v":297713.40000000002},{"$f":"(((AAMC_Raw_Data_for_FY22[[#This Row],[Median]]-AAMC_Raw_Data_for_FY22[[#This Row],[25th]])/25)*10) + AAMC_Raw_Data_for_FY22[[#This Row],[25th]]","v":304351.8},{"$f":"(((AAMC_Raw_Data_for_FY22[[#This Row],[Median]]-AAMC_Raw_Data_for_FY22[[#This Row],[25th]])/25)*15) + AAMC_Raw_Data_for_FY22[[#This Row],[25th]]","v":310990.2},{"$f":"(((AAMC_Raw_Data_for_FY22[[#This Row],[Median]]-AAMC_Raw_Data_for_FY22[[#This Row],[25th]])/25)*20) + AAMC_Raw_Data_for_FY22[[#This Row],[25th]]","v":317628.59999999998},324267,{"$f":"(((AAMC_Raw_Data_for_FY22[[#This Row],[75th]]-AAMC_Raw_Data_for_FY22[[#This Row],[Median]])/25)*5) + AAMC_Raw_Data_for_FY22[[#This Row],[Median]]","v":328866.59999999998},{"$f":"(((AAMC_Raw_Data_for_FY22[[#This Row],[75th]]-AAMC_Raw_Data_for_FY22[[#This Row],[Median]])/25)*10) + AAMC_Raw_Data_for_FY22[[#This Row],[Median]]","v":333466.2},{"$f":"(((AAMC_Raw_Data_for_FY22[[#This Row],[75th]]-AAMC_Raw_Data_for_FY22[[#This Row],[Median]])/25)*15) + AAMC_Raw_Data_for_FY22[[#This Row],[Median]]","v":338065.8},{"$f":"(((AAMC_Raw_Data_for_FY22[[#This Row],[75th]]-AAMC_Raw_Data_for_FY22[[#This Row],[Median]])/25)*20) + AAMC_Raw_Data_for_FY22[[#This Row],[Median]]","v":342665.4},347265,{"$f":"(((AAMC_Raw_Data_for_FY22[[#This Row],[75th]]-AAMC_Raw_Data_for_FY22[[#This Row],[Median]])/25)*30) + AAMC_Raw_Data_for_FY22[[#This Row],[Median]]","v":351864.6},{"$f":"(((AAMC_Raw_Data_for_FY22[[#This Row],[75th]]-AAMC_Raw_Data_for_FY22[[#This Row],[Median]])/25)*35) + AAMC_Raw_Data_for_FY22[[#This Row],[Median]]","v":356464.2},{"$f":"(((AAMC_Raw_Data_for_FY22[[#This Row],[75th]]-AAMC_Raw_Data_for_FY22[[#This Row],[Median]])/25)*40) + AAMC_Raw_Data_for_FY22[[#This Row],[Median]]","v":361063.8}]
[{"$f":"AAMC_Raw_Data_for_FY22[[#This Row],[Source]]&AAMC_Raw_Data_for_FY22[[#This Row],[Type]]&AAMC_Raw_Data_for_FY22[[#This Row],[School Subset]]&AAMC_Raw_Data_for_FY22[[#This Row],[Rank]]&AAMC_Raw_Data_for_FY22[[#This Row],[Degree]]&AAMC_Raw_Data_for_FY22[[#This Row],[Department / Specialty]]&\"L\"","v":"AAMCAcademicPublicChiefMDGastroenterology-Peds.L"},"Gastroenterology-Peds.",6,"AAMC","Academic","Public","Chief","MD","2021-2022",319888,{"$f":"(((AAMC_Raw_Data_for_FY22[[#This Row],[Median]]-AAMC_Raw_Data_for_FY22[[#This Row],[25th]])/25)*5) + AAMC_Raw_Data_for_FY22[[#This Row],[25th]]","v":326436},{"$f":"(((AAMC_Raw_Data_for_FY22[[#This Row],[Median]]-AAMC_Raw_Data_for_FY22[[#This Row],[25th]])/25)*10) + AAMC_Raw_Data_for_FY22[[#This Row],[25th]]","v":332984},{"$f":"(((AAMC_Raw_Data_for_FY22[[#This Row],[Median]]-AAMC_Raw_Data_for_FY22[[#This Row],[25th]])/25)*15) + AAMC_Raw_Data_for_FY22[[#This Row],[25th]]","v":339532},{"$f":"(((AAMC_Raw_Data_for_FY22[[#This Row],[Median]]-AAMC_Raw_Data_for_FY22[[#This Row],[25th]])/25)*20) + AAMC_Raw_Data_for_FY22[[#This Row],[25th]]","v":346080},352628,{"$f":"(((AAMC_Raw_Data_for_FY22[[#This Row],[75th]]-AAMC_Raw_Data_for_FY22[[#This Row],[Median]])/25)*5) + AAMC_Raw_Data_for_FY22[[#This Row],[Median]]","v":360762.4},{"$f":"(((AAMC_Raw_Data_for_FY22[[#This Row],[75th]]-AAMC_Raw_Data_for_FY22[[#This Row],[Median]])/25)*10) + AAMC_Raw_Data_for_FY22[[#This Row],[Median]]","v":368896.8},{"$f":"(((AAMC_Raw_Data_for_FY22[[#This Row],[75th]]-AAMC_Raw_Data_for_FY22[[#This Row],[Median]])/25)*15) + AAMC_Raw_Data_for_FY22[[#This Row],[Median]]","v":377031.2},{"$f":"(((AAMC_Raw_Data_for_FY22[[#This Row],[75th]]-AAMC_Raw_Data_for_FY22[[#This Row],[Median]])/25)*20) + AAMC_Raw_Data_for_FY22[[#This Row],[Median]]","v":385165.6},393300,{"$f":"(((AAMC_Raw_Data_for_FY22[[#This Row],[75th]]-AAMC_Raw_Data_for_FY22[[#This Row],[Median]])/25)*30) + AAMC_Raw_Data_for_FY22[[#This Row],[Median]]","v":401434.4},{"$f":"(((AAMC_Raw_Data_for_FY22[[#This Row],[75th]]-AAMC_Raw_Data_for_FY22[[#This Row],[Median]])/25)*35) + AAMC_Raw_Data_for_FY22[[#This Row],[Median]]","v":409568.8},{"$f":"(((AAMC_Raw_Data_for_FY22[[#This Row],[75th]]-AAMC_Raw_Data_for_FY22[[#This Row],[Median]])/25)*40) + AAMC_Raw_Data_for_FY22[[#This Row],[Median]]","v":417703.2}]
[{"$f":"AAMC_Raw_Data_for_FY22[[#This Row],[Source]]&AAMC_Raw_Data_for_FY22[[#This Row],[Type]]&AAMC_Raw_Data_for_FY22[[#This Row],[School Subset]]&AAMC_Raw_Data_for_FY22[[#This Row],[Rank]]&AAMC_Raw_Data_for_FY22[[#This Row],[Degree]]&AAMC_Raw_Data_for_FY22[[#This Row],[Department / Specialty]]&\"L\"","v":"AAMCAcademicPublicChairMDGastroenterology-Peds.L"},"Gastroenterology-Peds.",1,"AAMC","Academic","Public","Chair","MD","2021-2022",null,{"$f":"(((AAMC_Raw_Data_for_FY22[[#This Row],[Median]]-AAMC_Raw_Data_for_FY22[[#This Row],[25th]])/25)*5) + AAMC_Raw_Data_for_FY22[[#This Row],[25th]]","v":0},{"$f":"(((AAMC_Raw_Data_for_FY22[[#This Row],[Median]]-AAMC_Raw_Data_for_FY22[[#This Row],[25th]])/25)*10) + AAMC_Raw_Data_for_FY22[[#This Row],[25th]]","v":0},{"$f":"(((AAMC_Raw_Data_for_FY22[[#This Row],[Median]]-AAMC_Raw_Data_for_FY22[[#This Row],[25th]])/25)*15) + AAMC_Raw_Data_for_FY22[[#This Row],[25th]]","v":0},{"$f":"(((AAMC_Raw_Data_for_FY22[[#This Row],[Median]]-AAMC_Raw_Data_for_FY22[[#This Row],[25th]])/25)*20) + AAMC_Raw_Data_for_FY22[[#This Row],[25th]]","v":0},null,{"$f":"(((AAMC_Raw_Data_for_FY22[[#This Row],[75th]]-AAMC_Raw_Data_for_FY22[[#This Row],[Median]])/25)*5) + AAMC_Raw_Data_for_FY22[[#This Row],[Median]]","v":0},{"$f":"(((AAMC_Raw_Data_for_FY22[[#This Row],[75th]]-AAMC_Raw_Data_for_FY22[[#This Row],[Median]])/25)*10) + AAMC_Raw_Data_for_FY22[[#This Row],[Median]]","v":0},{"$f":"(((AAMC_Raw_Data_for_FY22[[#This Row],[75th]]-AAMC_Raw_Data_for_FY22[[#This Row],[Median]])/25)*15) + AAMC_Raw_Data_for_FY22[[#This Row],[Median]]","v":0},{"$f":"(((AAMC_Raw_Data_for_FY22[[#This Row],[75th]]-AAMC_Raw_Data_for_FY22[[#This Row],[Median]])/25)*20) + AAMC_Raw_Data_for_FY22[[#This Row],[Median]]","v":0},null,{"$f":"(((AAMC_Raw_Data_for_FY22[[#This Row],[75th]]-AAMC_Raw_Data_for_FY22[[#This Row],[Median]])/25)*30) + AAMC_Raw_Data_for_FY22[[#This Row],[Median]]","v":0},{"$f":"(((AAMC_Raw_Data_for_FY22[[#This Row],[75th]]-AAMC_Raw_Data_for_FY22[[#This Row],[Median]])/25)*35) + AAMC_Raw_Data_for_FY22[[#This Row],[Median]]","v":0},{"$f":"(((AAMC_Raw_Data_for_FY22[[#This Row],[75th]]-AAMC_Raw_Data_for_FY22[[#This Row],[Median]])/25)*40) + AAMC_Raw_Data_for_FY22[[#This Row],[Median]]","v":0}]
[{"$f":"AAMC_Raw_Data_for_FY22[[#This Row],[Source]]&AAMC_Raw_Data_for_FY22[[#This Row],[Type]]&AAMC_Raw_Data_for_FY22[[#This Row],[School Subset]]&AAMC_Raw_Data_for_FY22[[#This Row],[Rank]]&AAMC_Raw_Data_for_FY22[[#This Row],[Degree]]&AAMC_Raw_Data_for_FY22[[#This Row],[Department / Specialty]]&\"L\"","v":"AAMCAcademicPublicInstructorMDGeneral PediatricsL"},"General Pediatrics",5,"AAMC","Academic","Public","Instructor","MD","2021-2022",106435,{"$f":"(((AAMC_Raw_Data_for_FY22[[#This Row],[Median]]-AAMC_Raw_Data_for_FY22[[#This Row],[25th]])/25)*5) + AAMC_Raw_Data_for_FY22[[#This Row],[25th]]","v":112201.60000000001},{"$f":"(((AAMC_Raw_Data_for_FY22[[#This Row],[Median]]-AAMC_Raw_Data_for_FY22[[#This Row],[25th]])/25)*10) + AAMC_Raw_Data_for_FY22[[#This Row],[25th]]","v":117968.2},{"$f":"(((AAMC_Raw_Data_for_FY22[[#This Row],[Median]]-AAMC_Raw_Data_for_FY22[[#This Row],[25th]])/25)*15) + AAMC_Raw_Data_for_FY22[[#This Row],[25th]]","v":123734.8},{"$f":"(((AAMC_Raw_Data_for_FY22[[#This Row],[Median]]-AAMC_Raw_Data_for_FY22[[#This Row],[25th]])/25)*20) + AAMC_Raw_Data_for_FY22[[#This Row],[25th]]","v":129501.4},135268,{"$f":"(((AAMC_Raw_Data_for_FY22[[#This Row],[75th]]-AAMC_Raw_Data_for_FY22[[#This Row],[Median]])/25)*5) + AAMC_Raw_Data_for_FY22[[#This Row],[Median]]","v":141326.39999999999},{"$f":"(((AAMC_Raw_Data_for_FY22[[#This Row],[75th]]-AAMC_Raw_Data_for_FY22[[#This Row],[Median]])/25)*10) + AAMC_Raw_Data_for_FY22[[#This Row],[Median]]","v":147384.79999999999},{"$f":"(((AAMC_Raw_Data_for_FY22[[#This Row],[75th]]-AAMC_Raw_Data_for_FY22[[#This Row],[Median]])/25)*15) + AAMC_Raw_Data_for_FY22[[#This Row],[Median]]","v":153443.20000000001},{"$f":"(((AAMC_Raw_Data_for_FY22[[#This Row],[75th]]-AAMC_Raw_Data_for_FY22[[#This Row],[Median]])/25)*20) + AAMC_Raw_Data_for_FY22[[#This Row],[Median]]","v":159501.6},165560,{"$f":"(((AAMC_Raw_Data_for_FY22[[#This Row],[75th]]-AAMC_Raw_Data_for_FY22[[#This Row],[Median]])/25)*30) + AAMC_Raw_Data_for_FY22[[#This Row],[Median]]","v":171618.4},{"$f":"(((AAMC_Raw_Data_for_FY22[[#This Row],[75th]]-AAMC_Raw_Data_for_FY22[[#This Row],[Median]])/25)*35) + AAMC_Raw_Data_for_FY22[[#This Row],[Median]]","v":177676.79999999999},{"$f":"(((AAMC_Raw_Data_for_FY22[[#This Row],[75th]]-AAMC_Raw_Data_for_FY22[[#This Row],[Median]])/25)*40) + AAMC_Raw_Data_for_FY22[[#This Row],[Median]]","v":183735.2}]
[{"$f":"AAMC_Raw_Data_for_FY22[[#This Row],[Source]]&AAMC_Raw_Data_for_FY22[[#This Row],[Type]]&AAMC_Raw_Data_for_FY22[[#This Row],[School Subset]]&AAMC_Raw_Data_for_FY22[[#This Row],[Rank]]&AAMC_Raw_Data_for_FY22[[#This Row],[Degree]]&AAMC_Raw_Data_for_FY22[[#This Row],[Department / Specialty]]&\"L\"","v":"AAMCAcademicPublicAssistantMDGeneral PediatricsL"},"General Pediatrics",4,"AAMC","Academic","Public","Assistant","MD","2021-2022",162965,{"$f":"(((AAMC_Raw_Data_for_FY22[[#This Row],[Median]]-AAMC_Raw_Data_for_FY22[[#This Row],[25th]])/25)*5) + AAMC_Raw_Data_for_FY22[[#This Row],[25th]]","v":167149.6},{"$f":"(((AAMC_Raw_Data_for_FY22[[#This Row],[Median]]-AAMC_Raw_Data_for_FY22[[#This Row],[25th]])/25)*10) + AAMC_Raw_Data_for_FY22[[#This Row],[25th]]","v":171334.2},{"$f":"(((AAMC_Raw_Data_for_FY22[[#This Row],[Median]]-AAMC_Raw_Data_for_FY22[[#This Row],[25th]])/25)*15) + AAMC_Raw_Data_for_FY22[[#This Row],[25th]]","v":175518.8},{"$f":"(((AAMC_Raw_Data_for_FY22[[#This Row],[Median]]-AAMC_Raw_Data_for_FY22[[#This Row],[25th]])/25)*20) + AAMC_Raw_Data_for_FY22[[#This Row],[25th]]","v":179703.4},183888,{"$f":"(((AAMC_Raw_Data_for_FY22[[#This Row],[75th]]-AAMC_Raw_Data_for_FY22[[#This Row],[Median]])/25)*5) + AAMC_Raw_Data_for_FY22[[#This Row],[Median]]","v":189322.8},{"$f":"(((AAMC_Raw_Data_for_FY22[[#This Row],[75th]]-AAMC_Raw_Data_for_FY22[[#This Row],[Median]])/25)*10) + AAMC_Raw_Data_for_FY22[[#This Row],[Median]]","v":194757.6},{"$f":"(((AAMC_Raw_Data_for_FY22[[#This Row],[75th]]-AAMC_Raw_Data_for_FY22[[#This Row],[Median]])/25)*15) + AAMC_Raw_Data_for_FY22[[#This Row],[Median]]","v":200192.4},{"$f":"(((AAMC_Raw_Data_for_FY22[[#This Row],[75th]]-AAMC_Raw_Data_for_FY22[[#This Row],[Median]])/25)*20) + AAMC_Raw_Data_for_FY22[[#This Row],[Median]]","v":205627.2},211062,{"$f":"(((AAMC_Raw_Data_for_FY22[[#This Row],[75th]]-AAMC_Raw_Data_for_FY22[[#This Row],[Median]])/25)*30) + AAMC_Raw_Data_for_FY22[[#This Row],[Median]]","v":216496.8},{"$f":"(((AAMC_Raw_Data_for_FY22[[#This Row],[75th]]-AAMC_Raw_Data_for_FY22[[#This Row],[Median]])/25)*35) + AAMC_Raw_Data_for_FY22[[#This Row],[Median]]","v":221931.6},{"$f":"(((AAMC_Raw_Data_for_FY22[[#This Row],[75th]]-AAMC_Raw_Data_for_FY22[[#This Row],[Median]])/25)*40) + AAMC_Raw_Data_for_FY22[[#This Row],[Median]]","v":227366.39999999999}]
[{"$f":"AAMC_Raw_Data_for_FY22[[#This Row],[Source]]&AAMC_Raw_Data_for_FY22[[#This Row],[Type]]&AAMC_Raw_Data_for_FY22[[#This Row],[School Subset]]&AAMC_Raw_Data_for_FY22[[#This Row],[Rank]]&AAMC_Raw_Data_for_FY22[[#This Row],[Degree]]&AAMC_Raw_Data_for_FY22[[#This Row],[Department / Specialty]]&\"L\"","v":"AAMCAcademicPublicAssociateMDGeneral PediatricsL"},"General Pediatrics",3,"AAMC","Academic","Public","Associate","MD","2021-2022",182880,{"$f":"(((AAMC_Raw_Data_for_FY22[[#This Row],[Median]]-AAMC_Raw_Data_for_FY22[[#This Row],[25th]])/25)*5) + AAMC_Raw_Data_for_FY22[[#This Row],[25th]]","v":186798.8},{"$f":"(((AAMC_Raw_Data_for_FY22[[#This Row],[Median]]-AAMC_Raw_Data_for_FY22[[#This Row],[25th]])/25)*10) + AAMC_Raw_Data_for_FY22[[#This Row],[25th]]","v":190717.6},{"$f":"(((AAMC_Raw_Data_for_FY22[[#This Row],[Median]]-AAMC_Raw_Data_for_FY22[[#This Row],[25th]])/25)*15) + AAMC_Raw_Data_for_FY22[[#This Row],[25th]]","v":194636.4},{"$f":"(((AAMC_Raw_Data_for_FY22[[#This Row],[Median]]-AAMC_Raw_Data_for_FY22[[#This Row],[25th]])/25)*20) + AAMC_Raw_Data_for_FY22[[#This Row],[25th]]","v":198555.2},202474,{"$f":"(((AAMC_Raw_Data_for_FY22[[#This Row],[75th]]-AAMC_Raw_Data_for_FY22[[#This Row],[Median]])/25)*5) + AAMC_Raw_Data_for_FY22[[#This Row],[Median]]","v":208245.2},{"$f":"(((AAMC_Raw_Data_for_FY22[[#This Row],[75th]]-AAMC_Raw_Data_for_FY22[[#This Row],[Median]])/25)*10) + AAMC_Raw_Data_for_FY22[[#This Row],[Median]]","v":214016.4},{"$f":"(((AAMC_Raw_Data_for_FY22[[#This Row],[75th]]-AAMC_Raw_Data_for_FY22[[#This Row],[Median]])/25)*15) + AAMC_Raw_Data_for_FY22[[#This Row],[Median]]","v":219787.6},{"$f":"(((AAMC_Raw_Data_for_FY22[[#This Row],[75th]]-AAMC_Raw_Data_for_FY22[[#This Row],[Median]])/25)*20) + AAMC_Raw_Data_for_FY22[[#This Row],[Median]]","v":225558.8},231330,{"$f":"(((AAMC_Raw_Data_for_FY22[[#This Row],[75th]]-AAMC_Raw_Data_for_FY22[[#This Row],[Median]])/25)*30) + AAMC_Raw_Data_for_FY22[[#This Row],[Median]]","v":237101.2},{"$f":"(((AAMC_Raw_Data_for_FY22[[#This Row],[75th]]-AAMC_Raw_Data_for_FY22[[#This Row],[Median]])/25)*35) + AAMC_Raw_Data_for_FY22[[#This Row],[Median]]","v":242872.4},{"$f":"(((AAMC_Raw_Data_for_FY22[[#This Row],[75th]]-AAMC_Raw_Data_for_FY22[[#This Row],[Median]])/25)*40) + AAMC_Raw_Data_for_FY22[[#This Row],[Median]]","v":248643.6}]
[{"$f":"AAMC_Raw_Data_for_FY22[[#This Row],[Source]]&AAMC_Raw_Data_for_FY22[[#This Row],[Type]]&AAMC_Raw_Data_for_FY22[[#This Row],[School Subset]]&AAMC_Raw_Data_for_FY22[[#This Row],[Rank]]&AAMC_Raw_Data_for_FY22[[#This Row],[Degree]]&AAMC_Raw_Data_for_FY22[[#This Row],[Department / Specialty]]&\"L\"","v":"AAMCAcademicPublicProfessorMDGeneral PediatricsL"},"General Pediatrics",2,"AAMC","Academic","Public","Professor","MD","2021-2022",221624,{"$f":"(((AAMC_Raw_Data_for_FY22[[#This Row],[Median]]-AAMC_Raw_Data_for_FY22[[#This Row],[25th]])/25)*5) + AAMC_Raw_Data_for_FY22[[#This Row],[25th]]","v":227367.8},{"$f":"(((AAMC_Raw_Data_for_FY22[[#This Row],[Median]]-AAMC_Raw_Data_for_FY22[[#This Row],[25th]])/25)*10) + AAMC_Raw_Data_for_FY22[[#This Row],[25th]]","v":233111.6},{"$f":"(((AAMC_Raw_Data_for_FY22[[#This Row],[Median]]-AAMC_Raw_Data_for_FY22[[#This Row],[25th]])/25)*15) + AAMC_Raw_Data_for_FY22[[#This Row],[25th]]","v":238855.4},{"$f":"(((AAMC_Raw_Data_for_FY22[[#This Row],[Median]]-AAMC_Raw_Data_for_FY22[[#This Row],[25th]])/25)*20) + AAMC_Raw_Data_for_FY22[[#This Row],[25th]]","v":244599.2},250343,{"$f":"(((AAMC_Raw_Data_for_FY22[[#This Row],[75th]]-AAMC_Raw_Data_for_FY22[[#This Row],[Median]])/25)*5) + AAMC_Raw_Data_for_FY22[[#This Row],[Median]]","v":259149.2},{"$f":"(((AAMC_Raw_Data_for_FY22[[#This Row],[75th]]-AAMC_Raw_Data_for_FY22[[#This Row],[Median]])/25)*10) + AAMC_Raw_Data_for_FY22[[#This Row],[Median]]","v":267955.40000000002},{"$f":"(((AAMC_Raw_Data_for_FY22[[#This Row],[75th]]-AAMC_Raw_Data_for_FY22[[#This Row],[Median]])/25)*15) + AAMC_Raw_Data_for_FY22[[#This Row],[Median]]","v":276761.59999999998},{"$f":"(((AAMC_Raw_Data_for_FY22[[#This Row],[75th]]-AAMC_Raw_Data_for_FY22[[#This Row],[Median]])/25)*20) + AAMC_Raw_Data_for_FY22[[#This Row],[Median]]","v":285567.8},294374,{"$f":"(((AAMC_Raw_Data_for_FY22[[#This Row],[75th]]-AAMC_Raw_Data_for_FY22[[#This Row],[Median]])/25)*30) + AAMC_Raw_Data_for_FY22[[#This Row],[Median]]","v":303180.2},{"$f":"(((AAMC_Raw_Data_for_FY22[[#This Row],[75th]]-AAMC_Raw_Data_for_FY22[[#This Row],[Median]])/25)*35) + AAMC_Raw_Data_for_FY22[[#This Row],[Median]]","v":311986.40000000002},{"$f":"(((AAMC_Raw_Data_for_FY22[[#This Row],[75th]]-AAMC_Raw_Data_for_FY22[[#This Row],[Median]])/25)*40) + AAMC_Raw_Data_for_FY22[[#This Row],[Median]]","v":320792.59999999998}]
[{"$f":"AAMC_Raw_Data_for_FY22[[#This Row],[Source]]&AAMC_Raw_Data_for_FY22[[#This Row],[Type]]&AAMC_Raw_Data_for_FY22[[#This Row],[School Subset]]&AAMC_Raw_Data_for_FY22[[#This Row],[Rank]]&AAMC_Raw_Data_for_FY22[[#This Row],[Degree]]&AAMC_Raw_Data_for_FY22[[#This Row],[Department / Specialty]]&\"L\"","v":"AAMCAcademicPublicChiefMDGeneral PediatricsL"},"General Pediatrics",6,"AAMC","Academic","Public","Chief","MD","2021-2022",229454,{"$f":"(((AAMC_Raw_Data_for_FY22[[#This Row],[Median]]-AAMC_Raw_Data_for_FY22[[#This Row],[25th]])/25)*5) + AAMC_Raw_Data_for_FY22[[#This Row],[25th]]","v":236520.8},{"$f":"(((AAMC_Raw_Data_for_FY22[[#This Row],[Median]]-AAMC_Raw_Data_for_FY22[[#This Row],[25th]])/25)*10) + AAMC_Raw_Data_for_FY22[[#This Row],[25th]]","v":243587.6},{"$f":"(((AAMC_Raw_Data_for_FY22[[#This Row],[Median]]-AAMC_Raw_Data_for_FY22[[#This Row],[25th]])/25)*15) + AAMC_Raw_Data_for_FY22[[#This Row],[25th]]","v":250654.4},{"$f":"(((AAMC_Raw_Data_for_FY22[[#This Row],[Median]]-AAMC_Raw_Data_for_FY22[[#This Row],[25th]])/25)*20) + AAMC_Raw_Data_for_FY22[[#This Row],[25th]]","v":257721.2},264788,{"$f":"(((AAMC_Raw_Data_for_FY22[[#This Row],[75th]]-AAMC_Raw_Data_for_FY22[[#This Row],[Median]])/25)*5) + AAMC_Raw_Data_for_FY22[[#This Row],[Median]]","v":274830.40000000002},{"$f":"(((AAMC_Raw_Data_for_FY22[[#This Row],[75th]]-AAMC_Raw_Data_for_FY22[[#This Row],[Median]])/25)*10) + AAMC_Raw_Data_for_FY22[[#This Row],[Median]]","v":284872.8},{"$f":"(((AAMC_Raw_Data_for_FY22[[#This Row],[75th]]-AAMC_Raw_Data_for_FY22[[#This Row],[Median]])/25)*15) + AAMC_Raw_Data_for_FY22[[#This Row],[Median]]","v":294915.20000000001},{"$f":"(((AAMC_Raw_Data_for_FY22[[#This Row],[75th]]-AAMC_Raw_Data_for_FY22[[#This Row],[Median]])/25)*20) + AAMC_Raw_Data_for_FY22[[#This Row],[Median]]","v":304957.59999999998},315000,{"$f":"(((AAMC_Raw_Data_for_FY22[[#This Row],[75th]]-AAMC_Raw_Data_for_FY22[[#This Row],[Median]])/25)*30) + AAMC_Raw_Data_for_FY22[[#This Row],[Median]]","v":325042.40000000002},{"$f":"(((AAMC_Raw_Data_for_FY22[[#This Row],[75th]]-AAMC_Raw_Data_for_FY22[[#This Row],[Median]])/25)*35) + AAMC_Raw_Data_for_FY22[[#This Row],[Median]]","v":335084.79999999999},{"$f":"(((AAMC_Raw_Data_for_FY22[[#This Row],[75th]]-AAMC_Raw_Data_for_FY22[[#This Row],[Median]])/25)*40) + AAMC_Raw_Data_for_FY22[[#This Row],[Median]]","v":345127.2}]
[{"$f":"AAMC_Raw_Data_for_FY22[[#This Row],[Source]]&AAMC_Raw_Data_for_FY22[[#This Row],[Type]]&AAMC_Raw_Data_for_FY22[[#This Row],[School Subset]]&AAMC_Raw_Data_for_FY22[[#This Row],[Rank]]&AAMC_Raw_Data_for_FY22[[#This Row],[Degree]]&AAMC_Raw_Data_for_FY22[[#This Row],[Department / Specialty]]&\"L\"","v":"AAMCAcademicPublicChairMDGeneral PediatricsL"},"General Pediatrics",1,"AAMC","Academic","Public","Chair","MD","2021-2022",449318,{"$f":"(((AAMC_Raw_Data_for_FY22[[#This Row],[Median]]-AAMC_Raw_Data_for_FY22[[#This Row],[25th]])/25)*5) + AAMC_Raw_Data_for_FY22[[#This Row],[25th]]","v":459872.6},{"$f":"(((AAMC_Raw_Data_for_FY22[[#This Row],[Median]]-AAMC_Raw_Data_for_FY22[[#This Row],[25th]])/25)*10) + AAMC_Raw_Data_for_FY22[[#This Row],[25th]]","v":470427.2},{"$f":"(((AAMC_Raw_Data_for_FY22[[#This Row],[Median]]-AAMC_Raw_Data_for_FY22[[#This Row],[25th]])/25)*15) + AAMC_Raw_Data_for_FY22[[#This Row],[25th]]","v":480981.8},{"$f":"(((AAMC_Raw_Data_for_FY22[[#This Row],[Median]]-AAMC_Raw_Data_for_FY22[[#This Row],[25th]])/25)*20) + AAMC_Raw_Data_for_FY22[[#This Row],[25th]]","v":491536.4},502091,{"$f":"(((AAMC_Raw_Data_for_FY22[[#This Row],[75th]]-AAMC_Raw_Data_for_FY22[[#This Row],[Median]])/25)*5) + AAMC_Raw_Data_for_FY22[[#This Row],[Median]]","v":515179},{"$f":"(((AAMC_Raw_Data_for_FY22[[#This Row],[75th]]-AAMC_Raw_Data_for_FY22[[#This Row],[Median]])/25)*10) + AAMC_Raw_Data_for_FY22[[#This Row],[Median]]","v":528267},{"$f":"(((AAMC_Raw_Data_for_FY22[[#This Row],[75th]]-AAMC_Raw_Data_for_FY22[[#This Row],[Median]])/25)*15) + AAMC_Raw_Data_for_FY22[[#This Row],[Median]]","v":541355},{"$f":"(((AAMC_Raw_Data_for_FY22[[#This Row],[75th]]-AAMC_Raw_Data_for_FY22[[#This Row],[Median]])/25)*20) + AAMC_Raw_Data_for_FY22[[#This Row],[Median]]","v":554443},567531,{"$f":"(((AAMC_Raw_Data_for_FY22[[#This Row],[75th]]-AAMC_Raw_Data_for_FY22[[#This Row],[Median]])/25)*30) + AAMC_Raw_Data_for_FY22[[#This Row],[Median]]","v":580619},{"$f":"(((AAMC_Raw_Data_for_FY22[[#This Row],[75th]]-AAMC_Raw_Data_for_FY22[[#This Row],[Median]])/25)*35) + AAMC_Raw_Data_for_FY22[[#This Row],[Median]]","v":593707},{"$f":"(((AAMC_Raw_Data_for_FY22[[#This Row],[75th]]-AAMC_Raw_Data_for_FY22[[#This Row],[Median]])/25)*40) + AAMC_Raw_Data_for_FY22[[#This Row],[Median]]","v":606795}]
[{"$f":"AAMC_Raw_Data_for_FY22[[#This Row],[Source]]&AAMC_Raw_Data_for_FY22[[#This Row],[Type]]&AAMC_Raw_Data_for_FY22[[#This Row],[School Subset]]&AAMC_Raw_Data_for_FY22[[#This Row],[Rank]]&AAMC_Raw_Data_for_FY22[[#This Row],[Degree]]&AAMC_Raw_Data_for_FY22[[#This Row],[Department / Specialty]]&\"L\"","v":"AAMCAcademicPublicAssistantMDGenetics-Peds.L"},"Genetics-Peds.",4,"AAMC","Academic","Public","Assistant","MD","2021-2022",171945,{"$f":"(((AAMC_Raw_Data_for_FY22[[#This Row],[Median]]-AAMC_Raw_Data_for_FY22[[#This Row],[25th]])/25)*5) + AAMC_Raw_Data_for_FY22[[#This Row],[25th]]","v":173804.4},{"$f":"(((AAMC_Raw_Data_for_FY22[[#This Row],[Median]]-AAMC_Raw_Data_for_FY22[[#This Row],[25th]])/25)*10) + AAMC_Raw_Data_for_FY22[[#This Row],[25th]]","v":175663.8},{"$f":"(((AAMC_Raw_Data_for_FY22[[#This Row],[Median]]-AAMC_Raw_Data_for_FY22[[#This Row],[25th]])/25)*15) + AAMC_Raw_Data_for_FY22[[#This Row],[25th]]","v":177523.20000000001},{"$f":"(((AAMC_Raw_Data_for_FY22[[#This Row],[Median]]-AAMC_Raw_Data_for_FY22[[#This Row],[25th]])/25)*20) + AAMC_Raw_Data_for_FY22[[#This Row],[25th]]","v":179382.6},181242,{"$f":"(((AAMC_Raw_Data_for_FY22[[#This Row],[75th]]-AAMC_Raw_Data_for_FY22[[#This Row],[Median]])/25)*5) + AAMC_Raw_Data_for_FY22[[#This Row],[Median]]","v":183327.4},{"$f":"(((AAMC_Raw_Data_for_FY22[[#This Row],[75th]]-AAMC_Raw_Data_for_FY22[[#This Row],[Median]])/25)*10) + AAMC_Raw_Data_for_FY22[[#This Row],[Median]]","v":185412.8},{"$f":"(((AAMC_Raw_Data_for_FY22[[#This Row],[75th]]-AAMC_Raw_Data_for_FY22[[#This Row],[Median]])/25)*15) + AAMC_Raw_Data_for_FY22[[#This Row],[Median]]","v":187498.2},{"$f":"(((AAMC_Raw_Data_for_FY22[[#This Row],[75th]]-AAMC_Raw_Data_for_FY22[[#This Row],[Median]])/25)*20) + AAMC_Raw_Data_for_FY22[[#This Row],[Median]]","v":189583.6},191669,{"$f":"(((AAMC_Raw_Data_for_FY22[[#This Row],[75th]]-AAMC_Raw_Data_for_FY22[[#This Row],[Median]])/25)*30) + AAMC_Raw_Data_for_FY22[[#This Row],[Median]]","v":193754.4},{"$f":"(((AAMC_Raw_Data_for_FY22[[#This Row],[75th]]-AAMC_Raw_Data_for_FY22[[#This Row],[Median]])/25)*35) + AAMC_Raw_Data_for_FY22[[#This Row],[Median]]","v":195839.8},{"$f":"(((AAMC_Raw_Data_for_FY22[[#This Row],[75th]]-AAMC_Raw_Data_for_FY22[[#This Row],[Median]])/25)*40) + AAMC_Raw_Data_for_FY22[[#This Row],[Median]]","v":197925.2}]
[{"$f":"AAMC_Raw_Data_for_FY22[[#This Row],[Source]]&AAMC_Raw_Data_for_FY22[[#This Row],[Type]]&AAMC_Raw_Data_for_FY22[[#This Row],[School Subset]]&AAMC_Raw_Data_for_FY22[[#This Row],[Rank]]&AAMC_Raw_Data_for_FY22[[#This Row],[Degree]]&AAMC_Raw_Data_for_FY22[[#This Row],[Department / Specialty]]&\"L\"","v":"AAMCAcademicPublicAssociateMDGenetics-Peds.L"},"Genetics-Peds.",3,"AAMC","Academic","Public","Associate","MD","2021-2022",189200,{"$f":"(((AAMC_Raw_Data_for_FY22[[#This Row],[Median]]-AAMC_Raw_Data_for_FY22[[#This Row],[25th]])/25)*5) + AAMC_Raw_Data_for_FY22[[#This Row],[25th]]","v":191609.2},{"$f":"(((AAMC_Raw_Data_for_FY22[[#This Row],[Median]]-AAMC_Raw_Data_for_FY22[[#This Row],[25th]])/25)*10) + AAMC_Raw_Data_for_FY22[[#This Row],[25th]]","v":194018.4},{"$f":"(((AAMC_Raw_Data_for_FY22[[#This Row],[Median]]-AAMC_Raw_Data_for_FY22[[#This Row],[25th]])/25)*15) + AAMC_Raw_Data_for_FY22[[#This Row],[25th]]","v":196427.6},{"$f":"(((AAMC_Raw_Data_for_FY22[[#This Row],[Median]]-AAMC_Raw_Data_for_FY22[[#This Row],[25th]])/25)*20) + AAMC_Raw_Data_for_FY22[[#This Row],[25th]]","v":198836.8},201246,{"$f":"(((AAMC_Raw_Data_for_FY22[[#This Row],[75th]]-AAMC_Raw_Data_for_FY22[[#This Row],[Median]])/25)*5) + AAMC_Raw_Data_for_FY22[[#This Row],[Median]]","v":205260},{"$f":"(((AAMC_Raw_Data_for_FY22[[#This Row],[75th]]-AAMC_Raw_Data_for_FY22[[#This Row],[Median]])/25)*10) + AAMC_Raw_Data_for_FY22[[#This Row],[Median]]","v":209274},{"$f":"(((AAMC_Raw_Data_for_FY22[[#This Row],[75th]]-AAMC_Raw_Data_for_FY22[[#This Row],[Median]])/25)*15) + AAMC_Raw_Data_for_FY22[[#This Row],[Median]]","v":213288},{"$f":"(((AAMC_Raw_Data_for_FY22[[#This Row],[75th]]-AAMC_Raw_Data_for_FY22[[#This Row],[Median]])/25)*20) + AAMC_Raw_Data_for_FY22[[#This Row],[Median]]","v":217302},221316,{"$f":"(((AAMC_Raw_Data_for_FY22[[#This Row],[75th]]-AAMC_Raw_Data_for_FY22[[#This Row],[Median]])/25)*30) + AAMC_Raw_Data_for_FY22[[#This Row],[Median]]","v":225330},{"$f":"(((AAMC_Raw_Data_for_FY22[[#This Row],[75th]]-AAMC_Raw_Data_for_FY22[[#This Row],[Median]])/25)*35) + AAMC_Raw_Data_for_FY22[[#This Row],[Median]]","v":229344},{"$f":"(((AAMC_Raw_Data_for_FY22[[#This Row],[75th]]-AAMC_Raw_Data_for_FY22[[#This Row],[Median]])/25)*40) + AAMC_Raw_Data_for_FY22[[#This Row],[Median]]","v":233358}]
[{"$f":"AAMC_Raw_Data_for_FY22[[#This Row],[Source]]&AAMC_Raw_Data_for_FY22[[#This Row],[Type]]&AAMC_Raw_Data_for_FY22[[#This Row],[School Subset]]&AAMC_Raw_Data_for_FY22[[#This Row],[Rank]]&AAMC_Raw_Data_for_FY22[[#This Row],[Degree]]&AAMC_Raw_Data_for_FY22[[#This Row],[Department / Specialty]]&\"L\"","v":"AAMCAcademicPublicProfessorMDGenetics-Peds.L"},"Genetics-Peds.",2,"AAMC","Academic","Public","Professor","MD","2021-2022",215280,{"$f":"(((AAMC_Raw_Data_for_FY22[[#This Row],[Median]]-AAMC_Raw_Data_for_FY22[[#This Row],[25th]])/25)*5) + AAMC_Raw_Data_for_FY22[[#This Row],[25th]]","v":219929.4},{"$f":"(((AAMC_Raw_Data_for_FY22[[#This Row],[Median]]-AAMC_Raw_Data_for_FY22[[#This Row],[25th]])/25)*10) + AAMC_Raw_Data_for_FY22[[#This Row],[25th]]","v":224578.8},{"$f":"(((AAMC_Raw_Data_for_FY22[[#This Row],[Median]]-AAMC_Raw_Data_for_FY22[[#This Row],[25th]])/25)*15) + AAMC_Raw_Data_for_FY22[[#This Row],[25th]]","v":229228.2},{"$f":"(((AAMC_Raw_Data_for_FY22[[#This Row],[Median]]-AAMC_Raw_Data_for_FY22[[#This Row],[25th]])/25)*20) + AAMC_Raw_Data_for_FY22[[#This Row],[25th]]","v":233877.6},238527,{"$f":"(((AAMC_Raw_Data_for_FY22[[#This Row],[75th]]-AAMC_Raw_Data_for_FY22[[#This Row],[Median]])/25)*5) + AAMC_Raw_Data_for_FY22[[#This Row],[Median]]","v":246469.2},{"$f":"(((AAMC_Raw_Data_for_FY22[[#This Row],[75th]]-AAMC_Raw_Data_for_FY22[[#This Row],[Median]])/25)*10) + AAMC_Raw_Data_for_FY22[[#This Row],[Median]]","v":254411.4},{"$f":"(((AAMC_Raw_Data_for_FY22[[#This Row],[75th]]-AAMC_Raw_Data_for_FY22[[#This Row],[Median]])/25)*15) + AAMC_Raw_Data_for_FY22[[#This Row],[Median]]","v":262353.59999999998},{"$f":"(((AAMC_Raw_Data_for_FY22[[#This Row],[75th]]-AAMC_Raw_Data_for_FY22[[#This Row],[Median]])/25)*20) + AAMC_Raw_Data_for_FY22[[#This Row],[Median]]","v":270295.8},278238,{"$f":"(((AAMC_Raw_Data_for_FY22[[#This Row],[75th]]-AAMC_Raw_Data_for_FY22[[#This Row],[Median]])/25)*30) + AAMC_Raw_Data_for_FY22[[#This Row],[Median]]","v":286180.2},{"$f":"(((AAMC_Raw_Data_for_FY22[[#This Row],[75th]]-AAMC_Raw_Data_for_FY22[[#This Row],[Median]])/25)*35) + AAMC_Raw_Data_for_FY22[[#This Row],[Median]]","v":294122.40000000002},{"$f":"(((AAMC_Raw_Data_for_FY22[[#This Row],[75th]]-AAMC_Raw_Data_for_FY22[[#This Row],[Median]])/25)*40) + AAMC_Raw_Data_for_FY22[[#This Row],[Median]]","v":302064.59999999998}]
[{"$f":"AAMC_Raw_Data_for_FY22[[#This Row],[Source]]&AAMC_Raw_Data_for_FY22[[#This Row],[Type]]&AAMC_Raw_Data_for_FY22[[#This Row],[School Subset]]&AAMC_Raw_Data_for_FY22[[#This Row],[Rank]]&AAMC_Raw_Data_for_FY22[[#This Row],[Degree]]&AAMC_Raw_Data_for_FY22[[#This Row],[Department / Specialty]]&\"L\"","v":"AAMCAcademicPublicChiefMDGenetics-Peds.L"},"Genetics-Peds.",6,"AAMC","Academic","Public","Chief","MD","2021-2022",235138,{"$f":"(((AAMC_Raw_Data_for_FY22[[#This Row],[Median]]-AAMC_Raw_Data_for_FY22[[#This Row],[25th]])/25)*5) + AAMC_Raw_Data_for_FY22[[#This Row],[25th]]","v":238467},{"$f":"(((AAMC_Raw_Data_for_FY22[[#This Row],[Median]]-AAMC_Raw_Data_for_FY22[[#This Row],[25th]])/25)*10) + AAMC_Raw_Data_for_FY22[[#This Row],[25th]]","v":241796},{"$f":"(((AAMC_Raw_Data_for_FY22[[#This Row],[Median]]-AAMC_Raw_Data_for_FY22[[#This Row],[25th]])/25)*15) + AAMC_Raw_Data_for_FY22[[#This Row],[25th]]","v":245125},{"$f":"(((AAMC_Raw_Data_for_FY22[[#This Row],[Median]]-AAMC_Raw_Data_for_FY22[[#This Row],[25th]])/25)*20) + AAMC_Raw_Data_for_FY22[[#This Row],[25th]]","v":248454},251783,{"$f":"(((AAMC_Raw_Data_for_FY22[[#This Row],[75th]]-AAMC_Raw_Data_for_FY22[[#This Row],[Median]])/25)*5) + AAMC_Raw_Data_for_FY22[[#This Row],[Median]]","v":265374.40000000002},{"$f":"(((AAMC_Raw_Data_for_FY22[[#This Row],[75th]]-AAMC_Raw_Data_for_FY22[[#This Row],[Median]])/25)*10) + AAMC_Raw_Data_for_FY22[[#This Row],[Median]]","v":278965.8},{"$f":"(((AAMC_Raw_Data_for_FY22[[#This Row],[75th]]-AAMC_Raw_Data_for_FY22[[#This Row],[Median]])/25)*15) + AAMC_Raw_Data_for_FY22[[#This Row],[Median]]","v":292557.2},{"$f":"(((AAMC_Raw_Data_for_FY22[[#This Row],[75th]]-AAMC_Raw_Data_for_FY22[[#This Row],[Median]])/25)*20) + AAMC_Raw_Data_for_FY22[[#This Row],[Median]]","v":306148.59999999998},319740,{"$f":"(((AAMC_Raw_Data_for_FY22[[#This Row],[75th]]-AAMC_Raw_Data_for_FY22[[#This Row],[Median]])/25)*30) + AAMC_Raw_Data_for_FY22[[#This Row],[Median]]","v":333331.40000000002},{"$f":"(((AAMC_Raw_Data_for_FY22[[#This Row],[75th]]-AAMC_Raw_Data_for_FY22[[#This Row],[Median]])/25)*35) + AAMC_Raw_Data_for_FY22[[#This Row],[Median]]","v":346922.8},{"$f":"(((AAMC_Raw_Data_for_FY22[[#This Row],[75th]]-AAMC_Raw_Data_for_FY22[[#This Row],[Median]])/25)*40) + AAMC_Raw_Data_for_FY22[[#This Row],[Median]]","v":360514.2}]
[{"$f":"AAMC_Raw_Data_for_FY22[[#This Row],[Source]]&AAMC_Raw_Data_for_FY22[[#This Row],[Type]]&AAMC_Raw_Data_for_FY22[[#This Row],[School Subset]]&AAMC_Raw_Data_for_FY22[[#This Row],[Rank]]&AAMC_Raw_Data_for_FY22[[#This Row],[Degree]]&AAMC_Raw_Data_for_FY22[[#This Row],[Department / Specialty]]&\"L\"","v":"AAMCAcademicPublicInstructorMDHematology/Oncology-Peds.L"},"Hematology/Oncology-Peds.",5,"AAMC","Academic","Public","Instructor","MD","2021-2022",104700,{"$f":"(((AAMC_Raw_Data_for_FY22[[#This Row],[Median]]-AAMC_Raw_Data_for_FY22[[#This Row],[25th]])/25)*5) + AAMC_Raw_Data_for_FY22[[#This Row],[25th]]","v":106761.60000000001},{"$f":"(((AAMC_Raw_Data_for_FY22[[#This Row],[Median]]-AAMC_Raw_Data_for_FY22[[#This Row],[25th]])/25)*10) + AAMC_Raw_Data_for_FY22[[#This Row],[25th]]","v":108823.2},{"$f":"(((AAMC_Raw_Data_for_FY22[[#This Row],[Median]]-AAMC_Raw_Data_for_FY22[[#This Row],[25th]])/25)*15) + AAMC_Raw_Data_for_FY22[[#This Row],[25th]]","v":110884.8},{"$f":"(((AAMC_Raw_Data_for_FY22[[#This Row],[Median]]-AAMC_Raw_Data_for_FY22[[#This Row],[25th]])/25)*20) + AAMC_Raw_Data_for_FY22[[#This Row],[25th]]","v":112946.4},115008,{"$f":"(((AAMC_Raw_Data_for_FY22[[#This Row],[75th]]-AAMC_Raw_Data_for_FY22[[#This Row],[Median]])/25)*5) + AAMC_Raw_Data_for_FY22[[#This Row],[Median]]","v":117310.2},{"$f":"(((AAMC_Raw_Data_for_FY22[[#This Row],[75th]]-AAMC_Raw_Data_for_FY22[[#This Row],[Median]])/25)*10) + AAMC_Raw_Data_for_FY22[[#This Row],[Median]]","v":119612.4},{"$f":"(((AAMC_Raw_Data_for_FY22[[#This Row],[75th]]-AAMC_Raw_Data_for_FY22[[#This Row],[Median]])/25)*15) + AAMC_Raw_Data_for_FY22[[#This Row],[Median]]","v":121914.6},{"$f":"(((AAMC_Raw_Data_for_FY22[[#This Row],[75th]]-AAMC_Raw_Data_for_FY22[[#This Row],[Median]])/25)*20) + AAMC_Raw_Data_for_FY22[[#This Row],[Median]]","v":124216.8},126519,{"$f":"(((AAMC_Raw_Data_for_FY22[[#This Row],[75th]]-AAMC_Raw_Data_for_FY22[[#This Row],[Median]])/25)*30) + AAMC_Raw_Data_for_FY22[[#This Row],[Median]]","v":128821.2},{"$f":"(((AAMC_Raw_Data_for_FY22[[#This Row],[75th]]-AAMC_Raw_Data_for_FY22[[#This Row],[Median]])/25)*35) + AAMC_Raw_Data_for_FY22[[#This Row],[Median]]","v":131123.4},{"$f":"(((AAMC_Raw_Data_for_FY22[[#This Row],[75th]]-AAMC_Raw_Data_for_FY22[[#This Row],[Median]])/25)*40) + AAMC_Raw_Data_for_FY22[[#This Row],[Median]]","v":133425.60000000001}]
[{"$f":"AAMC_Raw_Data_for_FY22[[#This Row],[Source]]&AAMC_Raw_Data_for_FY22[[#This Row],[Type]]&AAMC_Raw_Data_for_FY22[[#This Row],[School Subset]]&AAMC_Raw_Data_for_FY22[[#This Row],[Rank]]&AAMC_Raw_Data_for_FY22[[#This Row],[Degree]]&AAMC_Raw_Data_for_FY22[[#This Row],[Department / Specialty]]&\"L\"","v":"AAMCAcademicPublicAssistantMDHematology/Oncology-Peds.L"},"Hematology/Oncology-Peds.",4,"AAMC","Academic","Public","Assistant","MD","2021-2022",170330,{"$f":"(((AAMC_Raw_Data_for_FY22[[#This Row],[Median]]-AAMC_Raw_Data_for_FY22[[#This Row],[25th]])/25)*5) + AAMC_Raw_Data_for_FY22[[#This Row],[25th]]","v":172264},{"$f":"(((AAMC_Raw_Data_for_FY22[[#This Row],[Median]]-AAMC_Raw_Data_for_FY22[[#This Row],[25th]])/25)*10) + AAMC_Raw_Data_for_FY22[[#This Row],[25th]]","v":174198},{"$f":"(((AAMC_Raw_Data_for_FY22[[#This Row],[Median]]-AAMC_Raw_Data_for_FY22[[#This Row],[25th]])/25)*15) + AAMC_Raw_Data_for_FY22[[#This Row],[25th]]","v":176132},{"$f":"(((AAMC_Raw_Data_for_FY22[[#This Row],[Median]]-AAMC_Raw_Data_for_FY22[[#This Row],[25th]])/25)*20) + AAMC_Raw_Data_for_FY22[[#This Row],[25th]]","v":178066},180000,{"$f":"(((AAMC_Raw_Data_for_FY22[[#This Row],[75th]]-AAMC_Raw_Data_for_FY22[[#This Row],[Median]])/25)*5) + AAMC_Raw_Data_for_FY22[[#This Row],[Median]]","v":184001.6},{"$f":"(((AAMC_Raw_Data_for_FY22[[#This Row],[75th]]-AAMC_Raw_Data_for_FY22[[#This Row],[Median]])/25)*10) + AAMC_Raw_Data_for_FY22[[#This Row],[Median]]","v":188003.20000000001},{"$f":"(((AAMC_Raw_Data_for_FY22[[#This Row],[75th]]-AAMC_Raw_Data_for_FY22[[#This Row],[Median]])/25)*15) + AAMC_Raw_Data_for_FY22[[#This Row],[Median]]","v":192004.8},{"$f":"(((AAMC_Raw_Data_for_FY22[[#This Row],[75th]]-AAMC_Raw_Data_for_FY22[[#This Row],[Median]])/25)*20) + AAMC_Raw_Data_for_FY22[[#This Row],[Median]]","v":196006.39999999999},200008,{"$f":"(((AAMC_Raw_Data_for_FY22[[#This Row],[75th]]-AAMC_Raw_Data_for_FY22[[#This Row],[Median]])/25)*30) + AAMC_Raw_Data_for_FY22[[#This Row],[Median]]","v":204009.60000000001},{"$f":"(((AAMC_Raw_Data_for_FY22[[#This Row],[75th]]-AAMC_Raw_Data_for_FY22[[#This Row],[Median]])/25)*35) + AAMC_Raw_Data_for_FY22[[#This Row],[Median]]","v":208011.2},{"$f":"(((AAMC_Raw_Data_for_FY22[[#This Row],[75th]]-AAMC_Raw_Data_for_FY22[[#This Row],[Median]])/25)*40) + AAMC_Raw_Data_for_FY22[[#This Row],[Median]]","v":212012.79999999999}]
[{"$f":"AAMC_Raw_Data_for_FY22[[#This Row],[Source]]&AAMC_Raw_Data_for_FY22[[#This Row],[Type]]&AAMC_Raw_Data_for_FY22[[#This Row],[School Subset]]&AAMC_Raw_Data_for_FY22[[#This Row],[Rank]]&AAMC_Raw_Data_for_FY22[[#This Row],[Degree]]&AAMC_Raw_Data_for_FY22[[#This Row],[Department / Specialty]]&\"L\"","v":"AAMCAcademicPublicAssociateMDHematology/Oncology-Peds.L"},"Hematology/Oncology-Peds.",3,"AAMC","Academic","Public","Associate","MD","2021-2022",200341,{"$f":"(((AAMC_Raw_Data_for_FY22[[#This Row],[Median]]-AAMC_Raw_Data_for_FY22[[#This Row],[25th]])/25)*5) + AAMC_Raw_Data_for_FY22[[#This Row],[25th]]","v":204414.6},{"$f":"(((AAMC_Raw_Data_for_FY22[[#This Row],[Median]]-AAMC_Raw_Data_for_FY22[[#This Row],[25th]])/25)*10) + AAMC_Raw_Data_for_FY22[[#This Row],[25th]]","v":208488.2},{"$f":"(((AAMC_Raw_Data_for_FY22[[#This Row],[Median]]-AAMC_Raw_Data_for_FY22[[#This Row],[25th]])/25)*15) + AAMC_Raw_Data_for_FY22[[#This Row],[25th]]","v":212561.8},{"$f":"(((AAMC_Raw_Data_for_FY22[[#This Row],[Median]]-AAMC_Raw_Data_for_FY22[[#This Row],[25th]])/25)*20) + AAMC_Raw_Data_for_FY22[[#This Row],[25th]]","v":216635.4},220709,{"$f":"(((AAMC_Raw_Data_for_FY22[[#This Row],[75th]]-AAMC_Raw_Data_for_FY22[[#This Row],[Median]])/25)*5) + AAMC_Raw_Data_for_FY22[[#This Row],[Median]]","v":224990.8},{"$f":"(((AAMC_Raw_Data_for_FY22[[#This Row],[75th]]-AAMC_Raw_Data_for_FY22[[#This Row],[Median]])/25)*10) + AAMC_Raw_Data_for_FY22[[#This Row],[Median]]","v":229272.6},{"$f":"(((AAMC_Raw_Data_for_FY22[[#This Row],[75th]]-AAMC_Raw_Data_for_FY22[[#This Row],[Median]])/25)*15) + AAMC_Raw_Data_for_FY22[[#This Row],[Median]]","v":233554.4},{"$f":"(((AAMC_Raw_Data_for_FY22[[#This Row],[75th]]-AAMC_Raw_Data_for_FY22[[#This Row],[Median]])/25)*20) + AAMC_Raw_Data_for_FY22[[#This Row],[Median]]","v":237836.2},242118,{"$f":"(((AAMC_Raw_Data_for_FY22[[#This Row],[75th]]-AAMC_Raw_Data_for_FY22[[#This Row],[Median]])/25)*30) + AAMC_Raw_Data_for_FY22[[#This Row],[Median]]","v":246399.8},{"$f":"(((AAMC_Raw_Data_for_FY22[[#This Row],[75th]]-AAMC_Raw_Data_for_FY22[[#This Row],[Median]])/25)*35) + AAMC_Raw_Data_for_FY22[[#This Row],[Median]]","v":250681.60000000001},{"$f":"(((AAMC_Raw_Data_for_FY22[[#This Row],[75th]]-AAMC_Raw_Data_for_FY22[[#This Row],[Median]])/25)*40) + AAMC_Raw_Data_for_FY22[[#This Row],[Median]]","v":254963.4}]
[{"$f":"AAMC_Raw_Data_for_FY22[[#This Row],[Source]]&AAMC_Raw_Data_for_FY22[[#This Row],[Type]]&AAMC_Raw_Data_for_FY22[[#This Row],[School Subset]]&AAMC_Raw_Data_for_FY22[[#This Row],[Rank]]&AAMC_Raw_Data_for_FY22[[#This Row],[Degree]]&AAMC_Raw_Data_for_FY22[[#This Row],[Department / Specialty]]&\"L\"","v":"AAMCAcademicPublicProfessorMDHematology/Oncology-Peds.L"},"Hematology/Oncology-Peds.",2,"AAMC","Academic","Public","Professor","MD","2021-2022",256592,{"$f":"(((AAMC_Raw_Data_for_FY22[[#This Row],[Median]]-AAMC_Raw_Data_for_FY22[[#This Row],[25th]])/25)*5) + AAMC_Raw_Data_for_FY22[[#This Row],[25th]]","v":261732.4},{"$f":"(((AAMC_Raw_Data_for_FY22[[#This Row],[Median]]-AAMC_Raw_Data_for_FY22[[#This Row],[25th]])/25)*10) + AAMC_Raw_Data_for_FY22[[#This Row],[25th]]","v":266872.8},{"$f":"(((AAMC_Raw_Data_for_FY22[[#This Row],[Median]]-AAMC_Raw_Data_for_FY22[[#This Row],[25th]])/25)*15) + AAMC_Raw_Data_for_FY22[[#This Row],[25th]]","v":272013.2},{"$f":"(((AAMC_Raw_Data_for_FY22[[#This Row],[Median]]-AAMC_Raw_Data_for_FY22[[#This Row],[25th]])/25)*20) + AAMC_Raw_Data_for_FY22[[#This Row],[25th]]","v":277153.59999999998},282294,{"$f":"(((AAMC_Raw_Data_for_FY22[[#This Row],[75th]]-AAMC_Raw_Data_for_FY22[[#This Row],[Median]])/25)*5) + AAMC_Raw_Data_for_FY22[[#This Row],[Median]]","v":289887},{"$f":"(((AAMC_Raw_Data_for_FY22[[#This Row],[75th]]-AAMC_Raw_Data_for_FY22[[#This Row],[Median]])/25)*10) + AAMC_Raw_Data_for_FY22[[#This Row],[Median]]","v":297480},{"$f":"(((AAMC_Raw_Data_for_FY22[[#This Row],[75th]]-AAMC_Raw_Data_for_FY22[[#This Row],[Median]])/25)*15) + AAMC_Raw_Data_for_FY22[[#This Row],[Median]]","v":305073},{"$f":"(((AAMC_Raw_Data_for_FY22[[#This Row],[75th]]-AAMC_Raw_Data_for_FY22[[#This Row],[Median]])/25)*20) + AAMC_Raw_Data_for_FY22[[#This Row],[Median]]","v":312666},320259,{"$f":"(((AAMC_Raw_Data_for_FY22[[#This Row],[75th]]-AAMC_Raw_Data_for_FY22[[#This Row],[Median]])/25)*30) + AAMC_Raw_Data_for_FY22[[#This Row],[Median]]","v":327852},{"$f":"(((AAMC_Raw_Data_for_FY22[[#This Row],[75th]]-AAMC_Raw_Data_for_FY22[[#This Row],[Median]])/25)*35) + AAMC_Raw_Data_for_FY22[[#This Row],[Median]]","v":335445},{"$f":"(((AAMC_Raw_Data_for_FY22[[#This Row],[75th]]-AAMC_Raw_Data_for_FY22[[#This Row],[Median]])/25)*40) + AAMC_Raw_Data_for_FY22[[#This Row],[Median]]","v":343038}]
[{"$f":"AAMC_Raw_Data_for_FY22[[#This Row],[Source]]&AAMC_Raw_Data_for_FY22[[#This Row],[Type]]&AAMC_Raw_Data_for_FY22[[#This Row],[School Subset]]&AAMC_Raw_Data_for_FY22[[#This Row],[Rank]]&AAMC_Raw_Data_for_FY22[[#This Row],[Degree]]&AAMC_Raw_Data_for_FY22[[#This Row],[Department / Specialty]]&\"L\"","v":"AAMCAcademicPublicChiefMDHematology/Oncology-Peds.L"},"Hematology/Oncology-Peds.",6,"AAMC","Academic","Public","Chief","MD","2021-2022",276290,{"$f":"(((AAMC_Raw_Data_for_FY22[[#This Row],[Median]]-AAMC_Raw_Data_for_FY22[[#This Row],[25th]])/25)*5) + AAMC_Raw_Data_for_FY22[[#This Row],[25th]]","v":283152},{"$f":"(((AAMC_Raw_Data_for_FY22[[#This Row],[Median]]-AAMC_Raw_Data_for_FY22[[#This Row],[25th]])/25)*10) + AAMC_Raw_Data_for_FY22[[#This Row],[25th]]","v":290014},{"$f":"(((AAMC_Raw_Data_for_FY22[[#This Row],[Median]]-AAMC_Raw_Data_for_FY22[[#This Row],[25th]])/25)*15) + AAMC_Raw_Data_for_FY22[[#This Row],[25th]]","v":296876},{"$f":"(((AAMC_Raw_Data_for_FY22[[#This Row],[Median]]-AAMC_Raw_Data_for_FY22[[#This Row],[25th]])/25)*20) + AAMC_Raw_Data_for_FY22[[#This Row],[25th]]","v":303738},310600,{"$f":"(((AAMC_Raw_Data_for_FY22[[#This Row],[75th]]-AAMC_Raw_Data_for_FY22[[#This Row],[Median]])/25)*5) + AAMC_Raw_Data_for_FY22[[#This Row],[Median]]","v":323621.40000000002},{"$f":"(((AAMC_Raw_Data_for_FY22[[#This Row],[75th]]-AAMC_Raw_Data_for_FY22[[#This Row],[Median]])/25)*10) + AAMC_Raw_Data_for_FY22[[#This Row],[Median]]","v":336642.8},{"$f":"(((AAMC_Raw_Data_for_FY22[[#This Row],[75th]]-AAMC_Raw_Data_for_FY22[[#This Row],[Median]])/25)*15) + AAMC_Raw_Data_for_FY22[[#This Row],[Median]]","v":349664.2},{"$f":"(((AAMC_Raw_Data_for_FY22[[#This Row],[75th]]-AAMC_Raw_Data_for_FY22[[#This Row],[Median]])/25)*20) + AAMC_Raw_Data_for_FY22[[#This Row],[Median]]","v":362685.6},375707,{"$f":"(((AAMC_Raw_Data_for_FY22[[#This Row],[75th]]-AAMC_Raw_Data_for_FY22[[#This Row],[Median]])/25)*30) + AAMC_Raw_Data_for_FY22[[#This Row],[Median]]","v":388728.4},{"$f":"(((AAMC_Raw_Data_for_FY22[[#This Row],[75th]]-AAMC_Raw_Data_for_FY22[[#This Row],[Median]])/25)*35) + AAMC_Raw_Data_for_FY22[[#This Row],[Median]]","v":401749.8},{"$f":"(((AAMC_Raw_Data_for_FY22[[#This Row],[75th]]-AAMC_Raw_Data_for_FY22[[#This Row],[Median]])/25)*40) + AAMC_Raw_Data_for_FY22[[#This Row],[Median]]","v":414771.20000000001}]
[{"$f":"AAMC_Raw_Data_for_FY22[[#This Row],[Source]]&AAMC_Raw_Data_for_FY22[[#This Row],[Type]]&AAMC_Raw_Data_for_FY22[[#This Row],[School Subset]]&AAMC_Raw_Data_for_FY22[[#This Row],[Rank]]&AAMC_Raw_Data_for_FY22[[#This Row],[Degree]]&AAMC_Raw_Data_for_FY22[[#This Row],[Department / Specialty]]&\"L\"","v":"AAMCAcademicPublicChairMDHematology/Oncology-Peds.L"},"Hematology/Oncology-Peds.",1,"AAMC","Academic","Public","Chair","MD","2021-2022",null,{"$f":"(((AAMC_Raw_Data_for_FY22[[#This Row],[Median]]-AAMC_Raw_Data_for_FY22[[#This Row],[25th]])/25)*5) + AAMC_Raw_Data_for_FY22[[#This Row],[25th]]","v":0},{"$f":"(((AAMC_Raw_Data_for_FY22[[#This Row],[Median]]-AAMC_Raw_Data_for_FY22[[#This Row],[25th]])/25)*10) + AAMC_Raw_Data_for_FY22[[#This Row],[25th]]","v":0},{"$f":"(((AAMC_Raw_Data_for_FY22[[#This Row],[Median]]-AAMC_Raw_Data_for_FY22[[#This Row],[25th]])/25)*15) + AAMC_Raw_Data_for_FY22[[#This Row],[25th]]","v":0},{"$f":"(((AAMC_Raw_Data_for_FY22[[#This Row],[Median]]-AAMC_Raw_Data_for_FY22[[#This Row],[25th]])/25)*20) + AAMC_Raw_Data_for_FY22[[#This Row],[25th]]","v":0},null,{"$f":"(((AAMC_Raw_Data_for_FY22[[#This Row],[75th]]-AAMC_Raw_Data_for_FY22[[#This Row],[Median]])/25)*5) + AAMC_Raw_Data_for_FY22[[#This Row],[Median]]","v":0},{"$f":"(((AAMC_Raw_Data_for_FY22[[#This Row],[75th]]-AAMC_Raw_Data_for_FY22[[#This Row],[Median]])/25)*10) + AAMC_Raw_Data_for_FY22[[#This Row],[Median]]","v":0},{"$f":"(((AAMC_Raw_Data_for_FY22[[#This Row],[75th]]-AAMC_Raw_Data_for_FY22[[#This Row],[Median]])/25)*15) + AAMC_Raw_Data_for_FY22[[#This Row],[Median]]","v":0},{"$f":"(((AAMC_Raw_Data_for_FY22[[#This Row],[75th]]-AAMC_Raw_Data_for_FY22[[#This Row],[Median]])/25)*20) + AAMC_Raw_Data_for_FY22[[#This Row],[Median]]","v":0},null,{"$f":"(((AAMC_Raw_Data_for_FY22[[#This Row],[75th]]-AAMC_Raw_Data_for_FY22[[#This Row],[Median]])/25)*30) + AAMC_Raw_Data_for_FY22[[#This Row],[Median]]","v":0},{"$f":"(((AAMC_Raw_Data_for_FY22[[#This Row],[75th]]-AAMC_Raw_Data_for_FY22[[#This Row],[Median]])/25)*35) + AAMC_Raw_Data_for_FY22[[#This Row],[Median]]","v":0},{"$f":"(((AAMC_Raw_Data_for_FY22[[#This Row],[75th]]-AAMC_Raw_Data_for_FY22[[#This Row],[Median]])/25)*40) + AAMC_Raw_Data_for_FY22[[#This Row],[Median]]","v":0}]
[{"$f":"AAMC_Raw_Data_for_FY22[[#This Row],[Source]]&AAMC_Raw_Data_for_FY22[[#This Row],[Type]]&AAMC_Raw_Data_for_FY22[[#This Row],[School Subset]]&AAMC_Raw_Data_for_FY22[[#This Row],[Rank]]&AAMC_Raw_Data_for_FY22[[#This Row],[Degree]]&AAMC_Raw_Data_for_FY22[[#This Row],[Department / Specialty]]&\"L\"","v":"AAMCAcademicPublicInstructorMDHospital Medicine-Peds.L"},"Hospital Medicine-Peds.",5,"AAMC","Academic","Public","Instructor","MD","2021-2022",162658,{"$f":"(((AAMC_Raw_Data_for_FY22[[#This Row],[Median]]-AAMC_Raw_Data_for_FY22[[#This Row],[25th]])/25)*5) + AAMC_Raw_Data_for_FY22[[#This Row],[25th]]","v":164477.20000000001},{"$f":"(((AAMC_Raw_Data_for_FY22[[#This Row],[Median]]-AAMC_Raw_Data_for_FY22[[#This Row],[25th]])/25)*10) + AAMC_Raw_Data_for_FY22[[#This Row],[25th]]","v":166296.4},{"$f":"(((AAMC_Raw_Data_for_FY22[[#This Row],[Median]]-AAMC_Raw_Data_for_FY22[[#This Row],[25th]])/25)*15) + AAMC_Raw_Data_for_FY22[[#This Row],[25th]]","v":168115.6},{"$f":"(((AAMC_Raw_Data_for_FY22[[#This Row],[Median]]-AAMC_Raw_Data_for_FY22[[#This Row],[25th]])/25)*20) + AAMC_Raw_Data_for_FY22[[#This Row],[25th]]","v":169934.8},171754,{"$f":"(((AAMC_Raw_Data_for_FY22[[#This Row],[75th]]-AAMC_Raw_Data_for_FY22[[#This Row],[Median]])/25)*5) + AAMC_Raw_Data_for_FY22[[#This Row],[Median]]","v":175200.2},{"$f":"(((AAMC_Raw_Data_for_FY22[[#This Row],[75th]]-AAMC_Raw_Data_for_FY22[[#This Row],[Median]])/25)*10) + AAMC_Raw_Data_for_FY22[[#This Row],[Median]]","v":178646.39999999999},{"$f":"(((AAMC_Raw_Data_for_FY22[[#This Row],[75th]]-AAMC_Raw_Data_for_FY22[[#This Row],[Median]])/25)*15) + AAMC_Raw_Data_for_FY22[[#This Row],[Median]]","v":182092.6},{"$f":"(((AAMC_Raw_Data_for_FY22[[#This Row],[75th]]-AAMC_Raw_Data_for_FY22[[#This Row],[Median]])/25)*20) + AAMC_Raw_Data_for_FY22[[#This Row],[Median]]","v":185538.8},188985,{"$f":"(((AAMC_Raw_Data_for_FY22[[#This Row],[75th]]-AAMC_Raw_Data_for_FY22[[#This Row],[Median]])/25)*30) + AAMC_Raw_Data_for_FY22[[#This Row],[Median]]","v":192431.2},{"$f":"(((AAMC_Raw_Data_for_FY22[[#This Row],[75th]]-AAMC_Raw_Data_for_FY22[[#This Row],[Median]])/25)*35) + AAMC_Raw_Data_for_FY22[[#This Row],[Median]]","v":195877.4},{"$f":"(((AAMC_Raw_Data_for_FY22[[#This Row],[75th]]-AAMC_Raw_Data_for_FY22[[#This Row],[Median]])/25)*40) + AAMC_Raw_Data_for_FY22[[#This Row],[Median]]","v":199323.6}]
[{"$f":"AAMC_Raw_Data_for_FY22[[#This Row],[Source]]&AAMC_Raw_Data_for_FY22[[#This Row],[Type]]&AAMC_Raw_Data_for_FY22[[#This Row],[School Subset]]&AAMC_Raw_Data_for_FY22[[#This Row],[Rank]]&AAMC_Raw_Data_for_FY22[[#This Row],[Degree]]&AAMC_Raw_Data_for_FY22[[#This Row],[Department / Specialty]]&\"L\"","v":"AAMCAcademicPublicAssistantMDHospital Medicine-Peds.L"},"Hospital Medicine-Peds.",4,"AAMC","Academic","Public","Assistant","MD","2021-2022",176525,{"$f":"(((AAMC_Raw_Data_for_FY22[[#This Row],[Median]]-AAMC_Raw_Data_for_FY22[[#This Row],[25th]])/25)*5) + AAMC_Raw_Data_for_FY22[[#This Row],[25th]]","v":179043.20000000001},{"$f":"(((AAMC_Raw_Data_for_FY22[[#This Row],[Median]]-AAMC_Raw_Data_for_FY22[[#This Row],[25th]])/25)*10) + AAMC_Raw_Data_for_FY22[[#This Row],[25th]]","v":181561.4},{"$f":"(((AAMC_Raw_Data_for_FY22[[#This Row],[Median]]-AAMC_Raw_Data_for_FY22[[#This Row],[25th]])/25)*15) + AAMC_Raw_Data_for_FY22[[#This Row],[25th]]","v":184079.6},{"$f":"(((AAMC_Raw_Data_for_FY22[[#This Row],[Median]]-AAMC_Raw_Data_for_FY22[[#This Row],[25th]])/25)*20) + AAMC_Raw_Data_for_FY22[[#This Row],[25th]]","v":186597.8},189116,{"$f":"(((AAMC_Raw_Data_for_FY22[[#This Row],[75th]]-AAMC_Raw_Data_for_FY22[[#This Row],[Median]])/25)*5) + AAMC_Raw_Data_for_FY22[[#This Row],[Median]]","v":194293.6},{"$f":"(((AAMC_Raw_Data_for_FY22[[#This Row],[75th]]-AAMC_Raw_Data_for_FY22[[#This Row],[Median]])/25)*10) + AAMC_Raw_Data_for_FY22[[#This Row],[Median]]","v":199471.2},{"$f":"(((AAMC_Raw_Data_for_FY22[[#This Row],[75th]]-AAMC_Raw_Data_for_FY22[[#This Row],[Median]])/25)*15) + AAMC_Raw_Data_for_FY22[[#This Row],[Median]]","v":204648.8},{"$f":"(((AAMC_Raw_Data_for_FY22[[#This Row],[75th]]-AAMC_Raw_Data_for_FY22[[#This Row],[Median]])/25)*20) + AAMC_Raw_Data_for_FY22[[#This Row],[Median]]","v":209826.4},215004,{"$f":"(((AAMC_Raw_Data_for_FY22[[#This Row],[75th]]-AAMC_Raw_Data_for_FY22[[#This Row],[Median]])/25)*30) + AAMC_Raw_Data_for_FY22[[#This Row],[Median]]","v":220181.6},{"$f":"(((AAMC_Raw_Data_for_FY22[[#This Row],[75th]]-AAMC_Raw_Data_for_FY22[[#This Row],[Median]])/25)*35) + AAMC_Raw_Data_for_FY22[[#This Row],[Median]]","v":225359.2},{"$f":"(((AAMC_Raw_Data_for_FY22[[#This Row],[75th]]-AAMC_Raw_Data_for_FY22[[#This Row],[Median]])/25)*40) + AAMC_Raw_Data_for_FY22[[#This Row],[Median]]","v":230536.8}]
[{"$f":"AAMC_Raw_Data_for_FY22[[#This Row],[Source]]&AAMC_Raw_Data_for_FY22[[#This Row],[Type]]&AAMC_Raw_Data_for_FY22[[#This Row],[School Subset]]&AAMC_Raw_Data_for_FY22[[#This Row],[Rank]]&AAMC_Raw_Data_for_FY22[[#This Row],[Degree]]&AAMC_Raw_Data_for_FY22[[#This Row],[Department / Specialty]]&\"L\"","v":"AAMCAcademicPublicAssociateMDHospital Medicine-Peds.L"},"Hospital Medicine-Peds.",3,"AAMC","Academic","Public","Associate","MD","2021-2022",199238,{"$f":"(((AAMC_Raw_Data_for_FY22[[#This Row],[Median]]-AAMC_Raw_Data_for_FY22[[#This Row],[25th]])/25)*5) + AAMC_Raw_Data_for_FY22[[#This Row],[25th]]","v":202183.8},{"$f":"(((AAMC_Raw_Data_for_FY22[[#This Row],[Median]]-AAMC_Raw_Data_for_FY22[[#This Row],[25th]])/25)*10) + AAMC_Raw_Data_for_FY22[[#This Row],[25th]]","v":205129.60000000001},{"$f":"(((AAMC_Raw_Data_for_FY22[[#This Row],[Median]]-AAMC_Raw_Data_for_FY22[[#This Row],[25th]])/25)*15) + AAMC_Raw_Data_for_FY22[[#This Row],[25th]]","v":208075.4},{"$f":"(((AAMC_Raw_Data_for_FY22[[#This Row],[Median]]-AAMC_Raw_Data_for_FY22[[#This Row],[25th]])/25)*20) + AAMC_Raw_Data_for_FY22[[#This Row],[25th]]","v":211021.2},213967,{"$f":"(((AAMC_Raw_Data_for_FY22[[#This Row],[75th]]-AAMC_Raw_Data_for_FY22[[#This Row],[Median]])/25)*5) + AAMC_Raw_Data_for_FY22[[#This Row],[Median]]","v":218964.6},{"$f":"(((AAMC_Raw_Data_for_FY22[[#This Row],[75th]]-AAMC_Raw_Data_for_FY22[[#This Row],[Median]])/25)*10) + AAMC_Raw_Data_for_FY22[[#This Row],[Median]]","v":223962.2},{"$f":"(((AAMC_Raw_Data_for_FY22[[#This Row],[75th]]-AAMC_Raw_Data_for_FY22[[#This Row],[Median]])/25)*15) + AAMC_Raw_Data_for_FY22[[#This Row],[Median]]","v":228959.8},{"$f":"(((AAMC_Raw_Data_for_FY22[[#This Row],[75th]]-AAMC_Raw_Data_for_FY22[[#This Row],[Median]])/25)*20) + AAMC_Raw_Data_for_FY22[[#This Row],[Median]]","v":233957.4},238955,{"$f":"(((AAMC_Raw_Data_for_FY22[[#This Row],[75th]]-AAMC_Raw_Data_for_FY22[[#This Row],[Median]])/25)*30) + AAMC_Raw_Data_for_FY22[[#This Row],[Median]]","v":243952.6},{"$f":"(((AAMC_Raw_Data_for_FY22[[#This Row],[75th]]-AAMC_Raw_Data_for_FY22[[#This Row],[Median]])/25)*35) + AAMC_Raw_Data_for_FY22[[#This Row],[Median]]","v":248950.2},{"$f":"(((AAMC_Raw_Data_for_FY22[[#This Row],[75th]]-AAMC_Raw_Data_for_FY22[[#This Row],[Median]])/25)*40) + AAMC_Raw_Data_for_FY22[[#This Row],[Median]]","v":253947.8}]
[{"$f":"AAMC_Raw_Data_for_FY22[[#This Row],[Source]]&AAMC_Raw_Data_for_FY22[[#This Row],[Type]]&AAMC_Raw_Data_for_FY22[[#This Row],[School Subset]]&AAMC_Raw_Data_for_FY22[[#This Row],[Rank]]&AAMC_Raw_Data_for_FY22[[#This Row],[Degree]]&AAMC_Raw_Data_for_FY22[[#This Row],[Department / Specialty]]&\"L\"","v":"AAMCAcademicPublicProfessorMDHospital Medicine-Peds.L"},"Hospital Medicine-Peds.",2,"AAMC","Academic","Public","Professor","MD","2021-2022",225012,{"$f":"(((AAMC_Raw_Data_for_FY22[[#This Row],[Median]]-AAMC_Raw_Data_for_FY22[[#This Row],[25th]])/25)*5) + AAMC_Raw_Data_for_FY22[[#This Row],[25th]]","v":231905},{"$f":"(((AAMC_Raw_Data_for_FY22[[#This Row],[Median]]-AAMC_Raw_Data_for_FY22[[#This Row],[25th]])/25)*10) + AAMC_Raw_Data_for_FY22[[#This Row],[25th]]","v":238798},{"$f":"(((AAMC_Raw_Data_for_FY22[[#This Row],[Median]]-AAMC_Raw_Data_for_FY22[[#This Row],[25th]])/25)*15) + AAMC_Raw_Data_for_FY22[[#This Row],[25th]]","v":245691},{"$f":"(((AAMC_Raw_Data_for_FY22[[#This Row],[Median]]-AAMC_Raw_Data_for_FY22[[#This Row],[25th]])/25)*20) + AAMC_Raw_Data_for_FY22[[#This Row],[25th]]","v":252584},259477,{"$f":"(((AAMC_Raw_Data_for_FY22[[#This Row],[75th]]-AAMC_Raw_Data_for_FY22[[#This Row],[Median]])/25)*5) + AAMC_Raw_Data_for_FY22[[#This Row],[Median]]","v":268211.20000000001},{"$f":"(((AAMC_Raw_Data_for_FY22[[#This Row],[75th]]-AAMC_Raw_Data_for_FY22[[#This Row],[Median]])/25)*10) + AAMC_Raw_Data_for_FY22[[#This Row],[Median]]","v":276945.40000000002},{"$f":"(((AAMC_Raw_Data_for_FY22[[#This Row],[75th]]-AAMC_Raw_Data_for_FY22[[#This Row],[Median]])/25)*15) + AAMC_Raw_Data_for_FY22[[#This Row],[Median]]","v":285679.59999999998},{"$f":"(((AAMC_Raw_Data_for_FY22[[#This Row],[75th]]-AAMC_Raw_Data_for_FY22[[#This Row],[Median]])/25)*20) + AAMC_Raw_Data_for_FY22[[#This Row],[Median]]","v":294413.8},303148,{"$f":"(((AAMC_Raw_Data_for_FY22[[#This Row],[75th]]-AAMC_Raw_Data_for_FY22[[#This Row],[Median]])/25)*30) + AAMC_Raw_Data_for_FY22[[#This Row],[Median]]","v":311882.2},{"$f":"(((AAMC_Raw_Data_for_FY22[[#This Row],[75th]]-AAMC_Raw_Data_for_FY22[[#This Row],[Median]])/25)*35) + AAMC_Raw_Data_for_FY22[[#This Row],[Median]]","v":320616.40000000002},{"$f":"(((AAMC_Raw_Data_for_FY22[[#This Row],[75th]]-AAMC_Raw_Data_for_FY22[[#This Row],[Median]])/25)*40) + AAMC_Raw_Data_for_FY22[[#This Row],[Median]]","v":329350.59999999998}]
[{"$f":"AAMC_Raw_Data_for_FY22[[#This Row],[Source]]&AAMC_Raw_Data_for_FY22[[#This Row],[Type]]&AAMC_Raw_Data_for_FY22[[#This Row],[School Subset]]&AAMC_Raw_Data_for_FY22[[#This Row],[Rank]]&AAMC_Raw_Data_for_FY22[[#This Row],[Degree]]&AAMC_Raw_Data_for_FY22[[#This Row],[Department / Specialty]]&\"L\"","v":"AAMCAcademicPublicChiefMDHospital Medicine-Peds.L"},"Hospital Medicine-Peds.",6,"AAMC","Academic","Public","Chief","MD","2021-2022",237523,{"$f":"(((AAMC_Raw_Data_for_FY22[[#This Row],[Median]]-AAMC_Raw_Data_for_FY22[[#This Row],[25th]])/25)*5) + AAMC_Raw_Data_for_FY22[[#This Row],[25th]]","v":242808.6},{"$f":"(((AAMC_Raw_Data_for_FY22[[#This Row],[Median]]-AAMC_Raw_Data_for_FY22[[#This Row],[25th]])/25)*10) + AAMC_Raw_Data_for_FY22[[#This Row],[25th]]","v":248094.2},{"$f":"(((AAMC_Raw_Data_for_FY22[[#This Row],[Median]]-AAMC_Raw_Data_for_FY22[[#This Row],[25th]])/25)*15) + AAMC_Raw_Data_for_FY22[[#This Row],[25th]]","v":253379.8},{"$f":"(((AAMC_Raw_Data_for_FY22[[#This Row],[Median]]-AAMC_Raw_Data_for_FY22[[#This Row],[25th]])/25)*20) + AAMC_Raw_Data_for_FY22[[#This Row],[25th]]","v":258665.4},263951,{"$f":"(((AAMC_Raw_Data_for_FY22[[#This Row],[75th]]-AAMC_Raw_Data_for_FY22[[#This Row],[Median]])/25)*5) + AAMC_Raw_Data_for_FY22[[#This Row],[Median]]","v":274248.40000000002},{"$f":"(((AAMC_Raw_Data_for_FY22[[#This Row],[75th]]-AAMC_Raw_Data_for_FY22[[#This Row],[Median]])/25)*10) + AAMC_Raw_Data_for_FY22[[#This Row],[Median]]","v":284545.8},{"$f":"(((AAMC_Raw_Data_for_FY22[[#This Row],[75th]]-AAMC_Raw_Data_for_FY22[[#This Row],[Median]])/25)*15) + AAMC_Raw_Data_for_FY22[[#This Row],[Median]]","v":294843.2},{"$f":"(((AAMC_Raw_Data_for_FY22[[#This Row],[75th]]-AAMC_Raw_Data_for_FY22[[#This Row],[Median]])/25)*20) + AAMC_Raw_Data_for_FY22[[#This Row],[Median]]","v":305140.59999999998},315438,{"$f":"(((AAMC_Raw_Data_for_FY22[[#This Row],[75th]]-AAMC_Raw_Data_for_FY22[[#This Row],[Median]])/25)*30) + AAMC_Raw_Data_for_FY22[[#This Row],[Median]]","v":325735.40000000002},{"$f":"(((AAMC_Raw_Data_for_FY22[[#This Row],[75th]]-AAMC_Raw_Data_for_FY22[[#This Row],[Median]])/25)*35) + AAMC_Raw_Data_for_FY22[[#This Row],[Median]]","v":336032.8},{"$f":"(((AAMC_Raw_Data_for_FY22[[#This Row],[75th]]-AAMC_Raw_Data_for_FY22[[#This Row],[Median]])/25)*40) + AAMC_Raw_Data_for_FY22[[#This Row],[Median]]","v":346330.2}]
[{"$f":"AAMC_Raw_Data_for_FY22[[#This Row],[Source]]&AAMC_Raw_Data_for_FY22[[#This Row],[Type]]&AAMC_Raw_Data_for_FY22[[#This Row],[School Subset]]&AAMC_Raw_Data_for_FY22[[#This Row],[Rank]]&AAMC_Raw_Data_for_FY22[[#This Row],[Degree]]&AAMC_Raw_Data_for_FY22[[#This Row],[Department / Specialty]]&\"L\"","v":"AAMCAcademicPublicChairMDHospital Medicine-Peds.L"},"Hospital Medicine-Peds.",1,"AAMC","Academic","Public","Chair","MD","2021-2022",327120,{"$f":"(((AAMC_Raw_Data_for_FY22[[#This Row],[Median]]-AAMC_Raw_Data_for_FY22[[#This Row],[25th]])/25)*5) + AAMC_Raw_Data_for_FY22[[#This Row],[25th]]","v":364896},{"$f":"(((AAMC_Raw_Data_for_FY22[[#This Row],[Median]]-AAMC_Raw_Data_for_FY22[[#This Row],[25th]])/25)*10) + AAMC_Raw_Data_for_FY22[[#This Row],[25th]]","v":402672},{"$f":"(((AAMC_Raw_Data_for_FY22[[#This Row],[Median]]-AAMC_Raw_Data_for_FY22[[#This Row],[25th]])/25)*15) + AAMC_Raw_Data_for_FY22[[#This Row],[25th]]","v":440448},{"$f":"(((AAMC_Raw_Data_for_FY22[[#This Row],[Median]]-AAMC_Raw_Data_for_FY22[[#This Row],[25th]])/25)*20) + AAMC_Raw_Data_for_FY22[[#This Row],[25th]]","v":478224},516000,{"$f":"(((AAMC_Raw_Data_for_FY22[[#This Row],[75th]]-AAMC_Raw_Data_for_FY22[[#This Row],[Median]])/25)*5) + AAMC_Raw_Data_for_FY22[[#This Row],[Median]]","v":522237.4},{"$f":"(((AAMC_Raw_Data_for_FY22[[#This Row],[75th]]-AAMC_Raw_Data_for_FY22[[#This Row],[Median]])/25)*10) + AAMC_Raw_Data_for_FY22[[#This Row],[Median]]","v":528474.80000000005},{"$f":"(((AAMC_Raw_Data_for_FY22[[#This Row],[75th]]-AAMC_Raw_Data_for_FY22[[#This Row],[Median]])/25)*15) + AAMC_Raw_Data_for_FY22[[#This Row],[Median]]","v":534712.19999999995},{"$f":"(((AAMC_Raw_Data_for_FY22[[#This Row],[75th]]-AAMC_Raw_Data_for_FY22[[#This Row],[Median]])/25)*20) + AAMC_Raw_Data_for_FY22[[#This Row],[Median]]","v":540949.6},547187,{"$f":"(((AAMC_Raw_Data_for_FY22[[#This Row],[75th]]-AAMC_Raw_Data_for_FY22[[#This Row],[Median]])/25)*30) + AAMC_Raw_Data_for_FY22[[#This Row],[Median]]","v":553424.4},{"$f":"(((AAMC_Raw_Data_for_FY22[[#This Row],[75th]]-AAMC_Raw_Data_for_FY22[[#This Row],[Median]])/25)*35) + AAMC_Raw_Data_for_FY22[[#This Row],[Median]]","v":559661.80000000005},{"$f":"(((AAMC_Raw_Data_for_FY22[[#This Row],[75th]]-AAMC_Raw_Data_for_FY22[[#This Row],[Median]])/25)*40) + AAMC_Raw_Data_for_FY22[[#This Row],[Median]]","v":565899.19999999995}]
[{"$f":"AAMC_Raw_Data_for_FY22[[#This Row],[Source]]&AAMC_Raw_Data_for_FY22[[#This Row],[Type]]&AAMC_Raw_Data_for_FY22[[#This Row],[School Subset]]&AAMC_Raw_Data_for_FY22[[#This Row],[Rank]]&AAMC_Raw_Data_for_FY22[[#This Row],[Degree]]&AAMC_Raw_Data_for_FY22[[#This Row],[Department / Specialty]]&\"L\"","v":"AAMCAcademicPublicInstructorMDInfectious Disease-Peds.L"},"Infectious Disease-Peds.",5,"AAMC","Academic","Public","Instructor","MD","2021-2022",null,{"$f":"(((AAMC_Raw_Data_for_FY22[[#This Row],[Median]]-AAMC_Raw_Data_for_FY22[[#This Row],[25th]])/25)*5) + AAMC_Raw_Data_for_FY22[[#This Row],[25th]]","v":0},{"$f":"(((AAMC_Raw_Data_for_FY22[[#This Row],[Median]]-AAMC_Raw_Data_for_FY22[[#This Row],[25th]])/25)*10) + AAMC_Raw_Data_for_FY22[[#This Row],[25th]]","v":0},{"$f":"(((AAMC_Raw_Data_for_FY22[[#This Row],[Median]]-AAMC_Raw_Data_for_FY22[[#This Row],[25th]])/25)*15) + AAMC_Raw_Data_for_FY22[[#This Row],[25th]]","v":0},{"$f":"(((AAMC_Raw_Data_for_FY22[[#This Row],[Median]]-AAMC_Raw_Data_for_FY22[[#This Row],[25th]])/25)*20) + AAMC_Raw_Data_for_FY22[[#This Row],[25th]]","v":0},null,{"$f":"(((AAMC_Raw_Data_for_FY22[[#This Row],[75th]]-AAMC_Raw_Data_for_FY22[[#This Row],[Median]])/25)*5) + AAMC_Raw_Data_for_FY22[[#This Row],[Median]]","v":0},{"$f":"(((AAMC_Raw_Data_for_FY22[[#This Row],[75th]]-AAMC_Raw_Data_for_FY22[[#This Row],[Median]])/25)*10) + AAMC_Raw_Data_for_FY22[[#This Row],[Median]]","v":0},{"$f":"(((AAMC_Raw_Data_for_FY22[[#This Row],[75th]]-AAMC_Raw_Data_for_FY22[[#This Row],[Median]])/25)*15) + AAMC_Raw_Data_for_FY22[[#This Row],[Median]]","v":0},{"$f":"(((AAMC_Raw_Data_for_FY22[[#This Row],[75th]]-AAMC_Raw_Data_for_FY22[[#This Row],[Median]])/25)*20) + AAMC_Raw_Data_for_FY22[[#This Row],[Median]]","v":0},null,{"$f":"(((AAMC_Raw_Data_for_FY22[[#This Row],[75th]]-AAMC_Raw_Data_for_FY22[[#This Row],[Median]])/25)*30) + AAMC_Raw_Data_for_FY22[[#This Row],[Median]]","v":0},{"$f":"(((AAMC_Raw_Data_for_FY22[[#This Row],[75th]]-AAMC_Raw_Data_for_FY22[[#This Row],[Median]])/25)*35) + AAMC_Raw_Data_for_FY22[[#This Row],[Median]]","v":0},{"$f":"(((AAMC_Raw_Data_for_FY22[[#This Row],[75th]]-AAMC_Raw_Data_for_FY22[[#This Row],[Median]])/25)*40) + AAMC_Raw_Data_for_FY22[[#This Row],[Median]]","v":0}]
[{"$f":"AAMC_Raw_Data_for_FY22[[#This Row],[Source]]&AAMC_Raw_Data_for_FY22[[#This Row],[Type]]&AAMC_Raw_Data_for_FY22[[#This Row],[School Subset]]&AAMC_Raw_Data_for_FY22[[#This Row],[Rank]]&AAMC_Raw_Data_for_FY22[[#This Row],[Degree]]&AAMC_Raw_Data_for_FY22[[#This Row],[Department / Specialty]]&\"L\"","v":"AAMCAcademicPublicAssistantMDInfectious Disease-Peds.L"},"Infectious Disease-Peds.",4,"AAMC","Academic","Public","Assistant","MD","2021-2022",151788,{"$f":"(((AAMC_Raw_Data_for_FY22[[#This Row],[Median]]-AAMC_Raw_Data_for_FY22[[#This Row],[25th]])/25)*5) + AAMC_Raw_Data_for_FY22[[#This Row],[25th]]","v":154218.4},{"$f":"(((AAMC_Raw_Data_for_FY22[[#This Row],[Median]]-AAMC_Raw_Data_for_FY22[[#This Row],[25th]])/25)*10) + AAMC_Raw_Data_for_FY22[[#This Row],[25th]]","v":156648.79999999999},{"$f":"(((AAMC_Raw_Data_for_FY22[[#This Row],[Median]]-AAMC_Raw_Data_for_FY22[[#This Row],[25th]])/25)*15) + AAMC_Raw_Data_for_FY22[[#This Row],[25th]]","v":159079.20000000001},{"$f":"(((AAMC_Raw_Data_for_FY22[[#This Row],[Median]]-AAMC_Raw_Data_for_FY22[[#This Row],[25th]])/25)*20) + AAMC_Raw_Data_for_FY22[[#This Row],[25th]]","v":161509.6},163940,{"$f":"(((AAMC_Raw_Data_for_FY22[[#This Row],[75th]]-AAMC_Raw_Data_for_FY22[[#This Row],[Median]])/25)*5) + AAMC_Raw_Data_for_FY22[[#This Row],[Median]]","v":167832.8},{"$f":"(((AAMC_Raw_Data_for_FY22[[#This Row],[75th]]-AAMC_Raw_Data_for_FY22[[#This Row],[Median]])/25)*10) + AAMC_Raw_Data_for_FY22[[#This Row],[Median]]","v":171725.6},{"$f":"(((AAMC_Raw_Data_for_FY22[[#This Row],[75th]]-AAMC_Raw_Data_for_FY22[[#This Row],[Median]])/25)*15) + AAMC_Raw_Data_for_FY22[[#This Row],[Median]]","v":175618.4},{"$f":"(((AAMC_Raw_Data_for_FY22[[#This Row],[75th]]-AAMC_Raw_Data_for_FY22[[#This Row],[Median]])/25)*20) + AAMC_Raw_Data_for_FY22[[#This Row],[Median]]","v":179511.2},183404,{"$f":"(((AAMC_Raw_Data_for_FY22[[#This Row],[75th]]-AAMC_Raw_Data_for_FY22[[#This Row],[Median]])/25)*30) + AAMC_Raw_Data_for_FY22[[#This Row],[Median]]","v":187296.8},{"$f":"(((AAMC_Raw_Data_for_FY22[[#This Row],[75th]]-AAMC_Raw_Data_for_FY22[[#This Row],[Median]])/25)*35) + AAMC_Raw_Data_for_FY22[[#This Row],[Median]]","v":191189.6},{"$f":"(((AAMC_Raw_Data_for_FY22[[#This Row],[75th]]-AAMC_Raw_Data_for_FY22[[#This Row],[Median]])/25)*40) + AAMC_Raw_Data_for_FY22[[#This Row],[Median]]","v":195082.4}]
[{"$f":"AAMC_Raw_Data_for_FY22[[#This Row],[Source]]&AAMC_Raw_Data_for_FY22[[#This Row],[Type]]&AAMC_Raw_Data_for_FY22[[#This Row],[School Subset]]&AAMC_Raw_Data_for_FY22[[#This Row],[Rank]]&AAMC_Raw_Data_for_FY22[[#This Row],[Degree]]&AAMC_Raw_Data_for_FY22[[#This Row],[Department / Specialty]]&\"L\"","v":"AAMCAcademicPublicAssociateMDInfectious Disease-Peds.L"},"Infectious Disease-Peds.",3,"AAMC","Academic","Public","Associate","MD","2021-2022",179523,{"$f":"(((AAMC_Raw_Data_for_FY22[[#This Row],[Median]]-AAMC_Raw_Data_for_FY22[[#This Row],[25th]])/25)*5) + AAMC_Raw_Data_for_FY22[[#This Row],[25th]]","v":181488.8},{"$f":"(((AAMC_Raw_Data_for_FY22[[#This Row],[Median]]-AAMC_Raw_Data_for_FY22[[#This Row],[25th]])/25)*10) + AAMC_Raw_Data_for_FY22[[#This Row],[25th]]","v":183454.6},{"$f":"(((AAMC_Raw_Data_for_FY22[[#This Row],[Median]]-AAMC_Raw_Data_for_FY22[[#This Row],[25th]])/25)*15) + AAMC_Raw_Data_for_FY22[[#This Row],[25th]]","v":185420.4},{"$f":"(((AAMC_Raw_Data_for_FY22[[#This Row],[Median]]-AAMC_Raw_Data_for_FY22[[#This Row],[25th]])/25)*20) + AAMC_Raw_Data_for_FY22[[#This Row],[25th]]","v":187386.2},189352,{"$f":"(((AAMC_Raw_Data_for_FY22[[#This Row],[75th]]-AAMC_Raw_Data_for_FY22[[#This Row],[Median]])/25)*5) + AAMC_Raw_Data_for_FY22[[#This Row],[Median]]","v":192178.2},{"$f":"(((AAMC_Raw_Data_for_FY22[[#This Row],[75th]]-AAMC_Raw_Data_for_FY22[[#This Row],[Median]])/25)*10) + AAMC_Raw_Data_for_FY22[[#This Row],[Median]]","v":195004.4},{"$f":"(((AAMC_Raw_Data_for_FY22[[#This Row],[75th]]-AAMC_Raw_Data_for_FY22[[#This Row],[Median]])/25)*15) + AAMC_Raw_Data_for_FY22[[#This Row],[Median]]","v":197830.6},{"$f":"(((AAMC_Raw_Data_for_FY22[[#This Row],[75th]]-AAMC_Raw_Data_for_FY22[[#This Row],[Median]])/25)*20) + AAMC_Raw_Data_for_FY22[[#This Row],[Median]]","v":200656.8},203483,{"$f":"(((AAMC_Raw_Data_for_FY22[[#This Row],[75th]]-AAMC_Raw_Data_for_FY22[[#This Row],[Median]])/25)*30) + AAMC_Raw_Data_for_FY22[[#This Row],[Median]]","v":206309.2},{"$f":"(((AAMC_Raw_Data_for_FY22[[#This Row],[75th]]-AAMC_Raw_Data_for_FY22[[#This Row],[Median]])/25)*35) + AAMC_Raw_Data_for_FY22[[#This Row],[Median]]","v":209135.4},{"$f":"(((AAMC_Raw_Data_for_FY22[[#This Row],[75th]]-AAMC_Raw_Data_for_FY22[[#This Row],[Median]])/25)*40) + AAMC_Raw_Data_for_FY22[[#This Row],[Median]]","v":211961.60000000001}]
[{"$f":"AAMC_Raw_Data_for_FY22[[#This Row],[Source]]&AAMC_Raw_Data_for_FY22[[#This Row],[Type]]&AAMC_Raw_Data_for_FY22[[#This Row],[School Subset]]&AAMC_Raw_Data_for_FY22[[#This Row],[Rank]]&AAMC_Raw_Data_for_FY22[[#This Row],[Degree]]&AAMC_Raw_Data_for_FY22[[#This Row],[Department / Specialty]]&\"L\"","v":"AAMCAcademicPublicProfessorMDInfectious Disease-Peds.L"},"Infectious Disease-Peds.",2,"AAMC","Academic","Public","Professor","MD","2021-2022",218892,{"$f":"(((AAMC_Raw_Data_for_FY22[[#This Row],[Median]]-AAMC_Raw_Data_for_FY22[[#This Row],[25th]])/25)*5) + AAMC_Raw_Data_for_FY22[[#This Row],[25th]]","v":226390},{"$f":"(((AAMC_Raw_Data_for_FY22[[#This Row],[Median]]-AAMC_Raw_Data_for_FY22[[#This Row],[25th]])/25)*10) + AAMC_Raw_Data_for_FY22[[#This Row],[25th]]","v":233888},{"$f":"(((AAMC_Raw_Data_for_FY22[[#This Row],[Median]]-AAMC_Raw_Data_for_FY22[[#This Row],[25th]])/25)*15) + AAMC_Raw_Data_for_FY22[[#This Row],[25th]]","v":241386},{"$f":"(((AAMC_Raw_Data_for_FY22[[#This Row],[Median]]-AAMC_Raw_Data_for_FY22[[#This Row],[25th]])/25)*20) + AAMC_Raw_Data_for_FY22[[#This Row],[25th]]","v":248884},256382,{"$f":"(((AAMC_Raw_Data_for_FY22[[#This Row],[75th]]-AAMC_Raw_Data_for_FY22[[#This Row],[Median]])/25)*5) + AAMC_Raw_Data_for_FY22[[#This Row],[Median]]","v":263099.2},{"$f":"(((AAMC_Raw_Data_for_FY22[[#This Row],[75th]]-AAMC_Raw_Data_for_FY22[[#This Row],[Median]])/25)*10) + AAMC_Raw_Data_for_FY22[[#This Row],[Median]]","v":269816.40000000002},{"$f":"(((AAMC_Raw_Data_for_FY22[[#This Row],[75th]]-AAMC_Raw_Data_for_FY22[[#This Row],[Median]])/25)*15) + AAMC_Raw_Data_for_FY22[[#This Row],[Median]]","v":276533.59999999998},{"$f":"(((AAMC_Raw_Data_for_FY22[[#This Row],[75th]]-AAMC_Raw_Data_for_FY22[[#This Row],[Median]])/25)*20) + AAMC_Raw_Data_for_FY22[[#This Row],[Median]]","v":283250.8},289968,{"$f":"(((AAMC_Raw_Data_for_FY22[[#This Row],[75th]]-AAMC_Raw_Data_for_FY22[[#This Row],[Median]])/25)*30) + AAMC_Raw_Data_for_FY22[[#This Row],[Median]]","v":296685.2},{"$f":"(((AAMC_Raw_Data_for_FY22[[#This Row],[75th]]-AAMC_Raw_Data_for_FY22[[#This Row],[Median]])/25)*35) + AAMC_Raw_Data_for_FY22[[#This Row],[Median]]","v":303402.40000000002},{"$f":"(((AAMC_Raw_Data_for_FY22[[#This Row],[75th]]-AAMC_Raw_Data_for_FY22[[#This Row],[Median]])/25)*40) + AAMC_Raw_Data_for_FY22[[#This Row],[Median]]","v":310119.59999999998}]
[{"$f":"AAMC_Raw_Data_for_FY22[[#This Row],[Source]]&AAMC_Raw_Data_for_FY22[[#This Row],[Type]]&AAMC_Raw_Data_for_FY22[[#This Row],[School Subset]]&AAMC_Raw_Data_for_FY22[[#This Row],[Rank]]&AAMC_Raw_Data_for_FY22[[#This Row],[Degree]]&AAMC_Raw_Data_for_FY22[[#This Row],[Department / Specialty]]&\"L\"","v":"AAMCAcademicPublicChiefMDInfectious Disease-Peds.L"},"Infectious Disease-Peds.",6,"AAMC","Academic","Public","Chief","MD","2021-2022",220698,{"$f":"(((AAMC_Raw_Data_for_FY22[[#This Row],[Median]]-AAMC_Raw_Data_for_FY22[[#This Row],[25th]])/25)*5) + AAMC_Raw_Data_for_FY22[[#This Row],[25th]]","v":232088.6},{"$f":"(((AAMC_Raw_Data_for_FY22[[#This Row],[Median]]-AAMC_Raw_Data_for_FY22[[#This Row],[25th]])/25)*10) + AAMC_Raw_Data_for_FY22[[#This Row],[25th]]","v":243479.2},{"$f":"(((AAMC_Raw_Data_for_FY22[[#This Row],[Median]]-AAMC_Raw_Data_for_FY22[[#This Row],[25th]])/25)*15) + AAMC_Raw_Data_for_FY22[[#This Row],[25th]]","v":254869.8},{"$f":"(((AAMC_Raw_Data_for_FY22[[#This Row],[Median]]-AAMC_Raw_Data_for_FY22[[#This Row],[25th]])/25)*20) + AAMC_Raw_Data_for_FY22[[#This Row],[25th]]","v":266260.40000000002},277651,{"$f":"(((AAMC_Raw_Data_for_FY22[[#This Row],[75th]]-AAMC_Raw_Data_for_FY22[[#This Row],[Median]])/25)*5) + AAMC_Raw_Data_for_FY22[[#This Row],[Median]]","v":287763.20000000001},{"$f":"(((AAMC_Raw_Data_for_FY22[[#This Row],[75th]]-AAMC_Raw_Data_for_FY22[[#This Row],[Median]])/25)*10) + AAMC_Raw_Data_for_FY22[[#This Row],[Median]]","v":297875.40000000002},{"$f":"(((AAMC_Raw_Data_for_FY22[[#This Row],[75th]]-AAMC_Raw_Data_for_FY22[[#This Row],[Median]])/25)*15) + AAMC_Raw_Data_for_FY22[[#This Row],[Median]]","v":307987.59999999998},{"$f":"(((AAMC_Raw_Data_for_FY22[[#This Row],[75th]]-AAMC_Raw_Data_for_FY22[[#This Row],[Median]])/25)*20) + AAMC_Raw_Data_for_FY22[[#This Row],[Median]]","v":318099.8},328212,{"$f":"(((AAMC_Raw_Data_for_FY22[[#This Row],[75th]]-AAMC_Raw_Data_for_FY22[[#This Row],[Median]])/25)*30) + AAMC_Raw_Data_for_FY22[[#This Row],[Median]]","v":338324.2},{"$f":"(((AAMC_Raw_Data_for_FY22[[#This Row],[75th]]-AAMC_Raw_Data_for_FY22[[#This Row],[Median]])/25)*35) + AAMC_Raw_Data_for_FY22[[#This Row],[Median]]","v":348436.4},{"$f":"(((AAMC_Raw_Data_for_FY22[[#This Row],[75th]]-AAMC_Raw_Data_for_FY22[[#This Row],[Median]])/25)*40) + AAMC_Raw_Data_for_FY22[[#This Row],[Median]]","v":358548.6}]
[{"$f":"AAMC_Raw_Data_for_FY22[[#This Row],[Source]]&AAMC_Raw_Data_for_FY22[[#This Row],[Type]]&AAMC_Raw_Data_for_FY22[[#This Row],[School Subset]]&AAMC_Raw_Data_for_FY22[[#This Row],[Rank]]&AAMC_Raw_Data_for_FY22[[#This Row],[Degree]]&AAMC_Raw_Data_for_FY22[[#This Row],[Department / Specialty]]&\"L\"","v":"AAMCAcademicPublicChairMDInfectious Disease-Peds.L"},"Infectious Disease-Peds.",1,"AAMC","Academic","Public","Chair","MD","2021-2022",535300,{"$f":"(((AAMC_Raw_Data_for_FY22[[#This Row],[Median]]-AAMC_Raw_Data_for_FY22[[#This Row],[25th]])/25)*5) + AAMC_Raw_Data_for_FY22[[#This Row],[25th]]","v":545363},{"$f":"(((AAMC_Raw_Data_for_FY22[[#This Row],[Median]]-AAMC_Raw_Data_for_FY22[[#This Row],[25th]])/25)*10) + AAMC_Raw_Data_for_FY22[[#This Row],[25th]]","v":555426},{"$f":"(((AAMC_Raw_Data_for_FY22[[#This Row],[Median]]-AAMC_Raw_Data_for_FY22[[#This Row],[25th]])/25)*15) + AAMC_Raw_Data_for_FY22[[#This Row],[25th]]","v":565489},{"$f":"(((AAMC_Raw_Data_for_FY22[[#This Row],[Median]]-AAMC_Raw_Data_for_FY22[[#This Row],[25th]])/25)*20) + AAMC_Raw_Data_for_FY22[[#This Row],[25th]]","v":575552},585615,{"$f":"(((AAMC_Raw_Data_for_FY22[[#This Row],[75th]]-AAMC_Raw_Data_for_FY22[[#This Row],[Median]])/25)*5) + AAMC_Raw_Data_for_FY22[[#This Row],[Median]]","v":590192.6},{"$f":"(((AAMC_Raw_Data_for_FY22[[#This Row],[75th]]-AAMC_Raw_Data_for_FY22[[#This Row],[Median]])/25)*10) + AAMC_Raw_Data_for_FY22[[#This Row],[Median]]","v":594770.19999999995},{"$f":"(((AAMC_Raw_Data_for_FY22[[#This Row],[75th]]-AAMC_Raw_Data_for_FY22[[#This Row],[Median]])/25)*15) + AAMC_Raw_Data_for_FY22[[#This Row],[Median]]","v":599347.80000000005},{"$f":"(((AAMC_Raw_Data_for_FY22[[#This Row],[75th]]-AAMC_Raw_Data_for_FY22[[#This Row],[Median]])/25)*20) + AAMC_Raw_Data_for_FY22[[#This Row],[Median]]","v":603925.4},608503,{"$f":"(((AAMC_Raw_Data_for_FY22[[#This Row],[75th]]-AAMC_Raw_Data_for_FY22[[#This Row],[Median]])/25)*30) + AAMC_Raw_Data_for_FY22[[#This Row],[Median]]","v":613080.6},{"$f":"(((AAMC_Raw_Data_for_FY22[[#This Row],[75th]]-AAMC_Raw_Data_for_FY22[[#This Row],[Median]])/25)*35) + AAMC_Raw_Data_for_FY22[[#This Row],[Median]]","v":617658.19999999995},{"$f":"(((AAMC_Raw_Data_for_FY22[[#This Row],[75th]]-AAMC_Raw_Data_for_FY22[[#This Row],[Median]])/25)*40) + AAMC_Raw_Data_for_FY22[[#This Row],[Median]]","v":622235.80000000005}]
[{"$f":"AAMC_Raw_Data_for_FY22[[#This Row],[Source]]&AAMC_Raw_Data_for_FY22[[#This Row],[Type]]&AAMC_Raw_Data_for_FY22[[#This Row],[School Subset]]&AAMC_Raw_Data_for_FY22[[#This Row],[Rank]]&AAMC_Raw_Data_for_FY22[[#This Row],[Degree]]&AAMC_Raw_Data_for_FY22[[#This Row],[Department / Specialty]]&\"L\"","v":"AAMCAcademicPublicInstructorMDNeonatologyL"},"Neonatology",5,"AAMC","Academic","Public","Instructor","MD","2021-2022",201461,{"$f":"(((AAMC_Raw_Data_for_FY22[[#This Row],[Median]]-AAMC_Raw_Data_for_FY22[[#This Row],[25th]])/25)*5) + AAMC_Raw_Data_for_FY22[[#This Row],[25th]]","v":208008.8},{"$f":"(((AAMC_Raw_Data_for_FY22[[#This Row],[Median]]-AAMC_Raw_Data_for_FY22[[#This Row],[25th]])/25)*10) + AAMC_Raw_Data_for_FY22[[#This Row],[25th]]","v":214556.6},{"$f":"(((AAMC_Raw_Data_for_FY22[[#This Row],[Median]]-AAMC_Raw_Data_for_FY22[[#This Row],[25th]])/25)*15) + AAMC_Raw_Data_for_FY22[[#This Row],[25th]]","v":221104.4},{"$f":"(((AAMC_Raw_Data_for_FY22[[#This Row],[Median]]-AAMC_Raw_Data_for_FY22[[#This Row],[25th]])/25)*20) + AAMC_Raw_Data_for_FY22[[#This Row],[25th]]","v":227652.2},234200,{"$f":"(((AAMC_Raw_Data_for_FY22[[#This Row],[75th]]-AAMC_Raw_Data_for_FY22[[#This Row],[Median]])/25)*5) + AAMC_Raw_Data_for_FY22[[#This Row],[Median]]","v":250131.6},{"$f":"(((AAMC_Raw_Data_for_FY22[[#This Row],[75th]]-AAMC_Raw_Data_for_FY22[[#This Row],[Median]])/25)*10) + AAMC_Raw_Data_for_FY22[[#This Row],[Median]]","v":266063.2},{"$f":"(((AAMC_Raw_Data_for_FY22[[#This Row],[75th]]-AAMC_Raw_Data_for_FY22[[#This Row],[Median]])/25)*15) + AAMC_Raw_Data_for_FY22[[#This Row],[Median]]","v":281994.8},{"$f":"(((AAMC_Raw_Data_for_FY22[[#This Row],[75th]]-AAMC_Raw_Data_for_FY22[[#This Row],[Median]])/25)*20) + AAMC_Raw_Data_for_FY22[[#This Row],[Median]]","v":297926.40000000002},313858,{"$f":"(((AAMC_Raw_Data_for_FY22[[#This Row],[75th]]-AAMC_Raw_Data_for_FY22[[#This Row],[Median]])/25)*30) + AAMC_Raw_Data_for_FY22[[#This Row],[Median]]","v":329789.59999999998},{"$f":"(((AAMC_Raw_Data_for_FY22[[#This Row],[75th]]-AAMC_Raw_Data_for_FY22[[#This Row],[Median]])/25)*35) + AAMC_Raw_Data_for_FY22[[#This Row],[Median]]","v":345721.2},{"$f":"(((AAMC_Raw_Data_for_FY22[[#This Row],[75th]]-AAMC_Raw_Data_for_FY22[[#This Row],[Median]])/25)*40) + AAMC_Raw_Data_for_FY22[[#This Row],[Median]]","v":361652.8}]
[{"$f":"AAMC_Raw_Data_for_FY22[[#This Row],[Source]]&AAMC_Raw_Data_for_FY22[[#This Row],[Type]]&AAMC_Raw_Data_for_FY22[[#This Row],[School Subset]]&AAMC_Raw_Data_for_FY22[[#This Row],[Rank]]&AAMC_Raw_Data_for_FY22[[#This Row],[Degree]]&AAMC_Raw_Data_for_FY22[[#This Row],[Department / Specialty]]&\"L\"","v":"AAMCAcademicPublicAssistantMDNeonatologyL"},"Neonatology",4,"AAMC","Academic","Public","Assistant","MD","2021-2022",234844,{"$f":"(((AAMC_Raw_Data_for_FY22[[#This Row],[Median]]-AAMC_Raw_Data_for_FY22[[#This Row],[25th]])/25)*5) + AAMC_Raw_Data_for_FY22[[#This Row],[25th]]","v":241897.60000000001},{"$f":"(((AAMC_Raw_Data_for_FY22[[#This Row],[Median]]-AAMC_Raw_Data_for_FY22[[#This Row],[25th]])/25)*10) + AAMC_Raw_Data_for_FY22[[#This Row],[25th]]","v":248951.2},{"$f":"(((AAMC_Raw_Data_for_FY22[[#This Row],[Median]]-AAMC_Raw_Data_for_FY22[[#This Row],[25th]])/25)*15) + AAMC_Raw_Data_for_FY22[[#This Row],[25th]]","v":256004.8},{"$f":"(((AAMC_Raw_Data_for_FY22[[#This Row],[Median]]-AAMC_Raw_Data_for_FY22[[#This Row],[25th]])/25)*20) + AAMC_Raw_Data_for_FY22[[#This Row],[25th]]","v":263058.40000000002},270112,{"$f":"(((AAMC_Raw_Data_for_FY22[[#This Row],[75th]]-AAMC_Raw_Data_for_FY22[[#This Row],[Median]])/25)*5) + AAMC_Raw_Data_for_FY22[[#This Row],[Median]]","v":280089.40000000002},{"$f":"(((AAMC_Raw_Data_for_FY22[[#This Row],[75th]]-AAMC_Raw_Data_for_FY22[[#This Row],[Median]])/25)*10) + AAMC_Raw_Data_for_FY22[[#This Row],[Median]]","v":290066.8},{"$f":"(((AAMC_Raw_Data_for_FY22[[#This Row],[75th]]-AAMC_Raw_Data_for_FY22[[#This Row],[Median]])/25)*15) + AAMC_Raw_Data_for_FY22[[#This Row],[Median]]","v":300044.2},{"$f":"(((AAMC_Raw_Data_for_FY22[[#This Row],[75th]]-AAMC_Raw_Data_for_FY22[[#This Row],[Median]])/25)*20) + AAMC_Raw_Data_for_FY22[[#This Row],[Median]]","v":310021.59999999998},319999,{"$f":"(((AAMC_Raw_Data_for_FY22[[#This Row],[75th]]-AAMC_Raw_Data_for_FY22[[#This Row],[Median]])/25)*30) + AAMC_Raw_Data_for_FY22[[#This Row],[Median]]","v":329976.40000000002},{"$f":"(((AAMC_Raw_Data_for_FY22[[#This Row],[75th]]-AAMC_Raw_Data_for_FY22[[#This Row],[Median]])/25)*35) + AAMC_Raw_Data_for_FY22[[#This Row],[Median]]","v":339953.8},{"$f":"(((AAMC_Raw_Data_for_FY22[[#This Row],[75th]]-AAMC_Raw_Data_for_FY22[[#This Row],[Median]])/25)*40) + AAMC_Raw_Data_for_FY22[[#This Row],[Median]]","v":349931.2}]
[{"$f":"AAMC_Raw_Data_for_FY22[[#This Row],[Source]]&AAMC_Raw_Data_for_FY22[[#This Row],[Type]]&AAMC_Raw_Data_for_FY22[[#This Row],[School Subset]]&AAMC_Raw_Data_for_FY22[[#This Row],[Rank]]&AAMC_Raw_Data_for_FY22[[#This Row],[Degree]]&AAMC_Raw_Data_for_FY22[[#This Row],[Department / Specialty]]&\"L\"","v":"AAMCAcademicPublicAssociateMDNeonatologyL"},"Neonatology",3,"AAMC","Academic","Public","Associate","MD","2021-2022",278900,{"$f":"(((AAMC_Raw_Data_for_FY22[[#This Row],[Median]]-AAMC_Raw_Data_for_FY22[[#This Row],[25th]])/25)*5) + AAMC_Raw_Data_for_FY22[[#This Row],[25th]]","v":286270},{"$f":"(((AAMC_Raw_Data_for_FY22[[#This Row],[Median]]-AAMC_Raw_Data_for_FY22[[#This Row],[25th]])/25)*10) + AAMC_Raw_Data_for_FY22[[#This Row],[25th]]","v":293640},{"$f":"(((AAMC_Raw_Data_for_FY22[[#This Row],[Median]]-AAMC_Raw_Data_for_FY22[[#This Row],[25th]])/25)*15) + AAMC_Raw_Data_for_FY22[[#This Row],[25th]]","v":301010},{"$f":"(((AAMC_Raw_Data_for_FY22[[#This Row],[Median]]-AAMC_Raw_Data_for_FY22[[#This Row],[25th]])/25)*20) + AAMC_Raw_Data_for_FY22[[#This Row],[25th]]","v":308380},315750,{"$f":"(((AAMC_Raw_Data_for_FY22[[#This Row],[75th]]-AAMC_Raw_Data_for_FY22[[#This Row],[Median]])/25)*5) + AAMC_Raw_Data_for_FY22[[#This Row],[Median]]","v":323956.59999999998},{"$f":"(((AAMC_Raw_Data_for_FY22[[#This Row],[75th]]-AAMC_Raw_Data_for_FY22[[#This Row],[Median]])/25)*10) + AAMC_Raw_Data_for_FY22[[#This Row],[Median]]","v":332163.20000000001},{"$f":"(((AAMC_Raw_Data_for_FY22[[#This Row],[75th]]-AAMC_Raw_Data_for_FY22[[#This Row],[Median]])/25)*15) + AAMC_Raw_Data_for_FY22[[#This Row],[Median]]","v":340369.8},{"$f":"(((AAMC_Raw_Data_for_FY22[[#This Row],[75th]]-AAMC_Raw_Data_for_FY22[[#This Row],[Median]])/25)*20) + AAMC_Raw_Data_for_FY22[[#This Row],[Median]]","v":348576.4},356783,{"$f":"(((AAMC_Raw_Data_for_FY22[[#This Row],[75th]]-AAMC_Raw_Data_for_FY22[[#This Row],[Median]])/25)*30) + AAMC_Raw_Data_for_FY22[[#This Row],[Median]]","v":364989.6},{"$f":"(((AAMC_Raw_Data_for_FY22[[#This Row],[75th]]-AAMC_Raw_Data_for_FY22[[#This Row],[Median]])/25)*35) + AAMC_Raw_Data_for_FY22[[#This Row],[Median]]","v":373196.2},{"$f":"(((AAMC_Raw_Data_for_FY22[[#This Row],[75th]]-AAMC_Raw_Data_for_FY22[[#This Row],[Median]])/25)*40) + AAMC_Raw_Data_for_FY22[[#This Row],[Median]]","v":381402.8}]
[{"$f":"AAMC_Raw_Data_for_FY22[[#This Row],[Source]]&AAMC_Raw_Data_for_FY22[[#This Row],[Type]]&AAMC_Raw_Data_for_FY22[[#This Row],[School Subset]]&AAMC_Raw_Data_for_FY22[[#This Row],[Rank]]&AAMC_Raw_Data_for_FY22[[#This Row],[Degree]]&AAMC_Raw_Data_for_FY22[[#This Row],[Department / Specialty]]&\"L\"","v":"AAMCAcademicPublicProfessorMDNeonatologyL"},"Neonatology",2,"AAMC","Academic","Public","Professor","MD","2021-2022",320412,{"$f":"(((AAMC_Raw_Data_for_FY22[[#This Row],[Median]]-AAMC_Raw_Data_for_FY22[[#This Row],[25th]])/25)*5) + AAMC_Raw_Data_for_FY22[[#This Row],[25th]]","v":328257.40000000002},{"$f":"(((AAMC_Raw_Data_for_FY22[[#This Row],[Median]]-AAMC_Raw_Data_for_FY22[[#This Row],[25th]])/25)*10) + AAMC_Raw_Data_for_FY22[[#This Row],[25th]]","v":336102.8},{"$f":"(((AAMC_Raw_Data_for_FY22[[#This Row],[Median]]-AAMC_Raw_Data_for_FY22[[#This Row],[25th]])/25)*15) + AAMC_Raw_Data_for_FY22[[#This Row],[25th]]","v":343948.2},{"$f":"(((AAMC_Raw_Data_for_FY22[[#This Row],[Median]]-AAMC_Raw_Data_for_FY22[[#This Row],[25th]])/25)*20) + AAMC_Raw_Data_for_FY22[[#This Row],[25th]]","v":351793.6},359639,{"$f":"(((AAMC_Raw_Data_for_FY22[[#This Row],[75th]]-AAMC_Raw_Data_for_FY22[[#This Row],[Median]])/25)*5) + AAMC_Raw_Data_for_FY22[[#This Row],[Median]]","v":372032},{"$f":"(((AAMC_Raw_Data_for_FY22[[#This Row],[75th]]-AAMC_Raw_Data_for_FY22[[#This Row],[Median]])/25)*10) + AAMC_Raw_Data_for_FY22[[#This Row],[Median]]","v":384425},{"$f":"(((AAMC_Raw_Data_for_FY22[[#This Row],[75th]]-AAMC_Raw_Data_for_FY22[[#This Row],[Median]])/25)*15) + AAMC_Raw_Data_for_FY22[[#This Row],[Median]]","v":396818},{"$f":"(((AAMC_Raw_Data_for_FY22[[#This Row],[75th]]-AAMC_Raw_Data_for_FY22[[#This Row],[Median]])/25)*20) + AAMC_Raw_Data_for_FY22[[#This Row],[Median]]","v":409211},421604,{"$f":"(((AAMC_Raw_Data_for_FY22[[#This Row],[75th]]-AAMC_Raw_Data_for_FY22[[#This Row],[Median]])/25)*30) + AAMC_Raw_Data_for_FY22[[#This Row],[Median]]","v":433997},{"$f":"(((AAMC_Raw_Data_for_FY22[[#This Row],[75th]]-AAMC_Raw_Data_for_FY22[[#This Row],[Median]])/25)*35) + AAMC_Raw_Data_for_FY22[[#This Row],[Median]]","v":446390},{"$f":"(((AAMC_Raw_Data_for_FY22[[#This Row],[75th]]-AAMC_Raw_Data_for_FY22[[#This Row],[Median]])/25)*40) + AAMC_Raw_Data_for_FY22[[#This Row],[Median]]","v":458783}]
[{"$f":"AAMC_Raw_Data_for_FY22[[#This Row],[Source]]&AAMC_Raw_Data_for_FY22[[#This Row],[Type]]&AAMC_Raw_Data_for_FY22[[#This Row],[School Subset]]&AAMC_Raw_Data_for_FY22[[#This Row],[Rank]]&AAMC_Raw_Data_for_FY22[[#This Row],[Degree]]&AAMC_Raw_Data_for_FY22[[#This Row],[Department / Specialty]]&\"L\"","v":"AAMCAcademicPublicChiefMDNeonatologyL"},"Neonatology",6,"AAMC","Academic","Public","Chief","MD","2021-2022",362390,{"$f":"(((AAMC_Raw_Data_for_FY22[[#This Row],[Median]]-AAMC_Raw_Data_for_FY22[[#This Row],[25th]])/25)*5) + AAMC_Raw_Data_for_FY22[[#This Row],[25th]]","v":374458},{"$f":"(((AAMC_Raw_Data_for_FY22[[#This Row],[Median]]-AAMC_Raw_Data_for_FY22[[#This Row],[25th]])/25)*10) + AAMC_Raw_Data_for_FY22[[#This Row],[25th]]","v":386526},{"$f":"(((AAMC_Raw_Data_for_FY22[[#This Row],[Median]]-AAMC_Raw_Data_for_FY22[[#This Row],[25th]])/25)*15) + AAMC_Raw_Data_for_FY22[[#This Row],[25th]]","v":398594},{"$f":"(((AAMC_Raw_Data_for_FY22[[#This Row],[Median]]-AAMC_Raw_Data_for_FY22[[#This Row],[25th]])/25)*20) + AAMC_Raw_Data_for_FY22[[#This Row],[25th]]","v":410662},422730,{"$f":"(((AAMC_Raw_Data_for_FY22[[#This Row],[75th]]-AAMC_Raw_Data_for_FY22[[#This Row],[Median]])/25)*5) + AAMC_Raw_Data_for_FY22[[#This Row],[Median]]","v":437182.4},{"$f":"(((AAMC_Raw_Data_for_FY22[[#This Row],[75th]]-AAMC_Raw_Data_for_FY22[[#This Row],[Median]])/25)*10) + AAMC_Raw_Data_for_FY22[[#This Row],[Median]]","v":451634.8},{"$f":"(((AAMC_Raw_Data_for_FY22[[#This Row],[75th]]-AAMC_Raw_Data_for_FY22[[#This Row],[Median]])/25)*15) + AAMC_Raw_Data_for_FY22[[#This Row],[Median]]","v":466087.2},{"$f":"(((AAMC_Raw_Data_for_FY22[[#This Row],[75th]]-AAMC_Raw_Data_for_FY22[[#This Row],[Median]])/25)*20) + AAMC_Raw_Data_for_FY22[[#This Row],[Median]]","v":480539.6},494992,{"$f":"(((AAMC_Raw_Data_for_FY22[[#This Row],[75th]]-AAMC_Raw_Data_for_FY22[[#This Row],[Median]])/25)*30) + AAMC_Raw_Data_for_FY22[[#This Row],[Median]]","v":509444.4},{"$f":"(((AAMC_Raw_Data_for_FY22[[#This Row],[75th]]-AAMC_Raw_Data_for_FY22[[#This Row],[Median]])/25)*35) + AAMC_Raw_Data_for_FY22[[#This Row],[Median]]","v":523896.8},{"$f":"(((AAMC_Raw_Data_for_FY22[[#This Row],[75th]]-AAMC_Raw_Data_for_FY22[[#This Row],[Median]])/25)*40) + AAMC_Raw_Data_for_FY22[[#This Row],[Median]]","v":538349.19999999995}]
[{"$f":"AAMC_Raw_Data_for_FY22[[#This Row],[Source]]&AAMC_Raw_Data_for_FY22[[#This Row],[Type]]&AAMC_Raw_Data_for_FY22[[#This Row],[School Subset]]&AAMC_Raw_Data_for_FY22[[#This Row],[Rank]]&AAMC_Raw_Data_for_FY22[[#This Row],[Degree]]&AAMC_Raw_Data_for_FY22[[#This Row],[Department / Specialty]]&\"L\"","v":"AAMCAcademicPublicChairMDNeonatologyL"},"Neonatology",1,"AAMC","Academic","Public","Chair","MD","2021-2022",null,{"$f":"(((AAMC_Raw_Data_for_FY22[[#This Row],[Median]]-AAMC_Raw_Data_for_FY22[[#This Row],[25th]])/25)*5) + AAMC_Raw_Data_for_FY22[[#This Row],[25th]]","v":0},{"$f":"(((AAMC_Raw_Data_for_FY22[[#This Row],[Median]]-AAMC_Raw_Data_for_FY22[[#This Row],[25th]])/25)*10) + AAMC_Raw_Data_for_FY22[[#This Row],[25th]]","v":0},{"$f":"(((AAMC_Raw_Data_for_FY22[[#This Row],[Median]]-AAMC_Raw_Data_for_FY22[[#This Row],[25th]])/25)*15) + AAMC_Raw_Data_for_FY22[[#This Row],[25th]]","v":0},{"$f":"(((AAMC_Raw_Data_for_FY22[[#This Row],[Median]]-AAMC_Raw_Data_for_FY22[[#This Row],[25th]])/25)*20) + AAMC_Raw_Data_for_FY22[[#This Row],[25th]]","v":0},null,{"$f":"(((AAMC_Raw_Data_for_FY22[[#This Row],[75th]]-AAMC_Raw_Data_for_FY22[[#This Row],[Median]])/25)*5) + AAMC_Raw_Data_for_FY22[[#This Row],[Median]]","v":0},{"$f":"(((AAMC_Raw_Data_for_FY22[[#This Row],[75th]]-AAMC_Raw_Data_for_FY22[[#This Row],[Median]])/25)*10) + AAMC_Raw_Data_for_FY22[[#This Row],[Median]]","v":0},{"$f":"(((AAMC_Raw_Data_for_FY22[[#This Row],[75th]]-AAMC_Raw_Data_for_FY22[[#This Row],[Median]])/25)*15) + AAMC_Raw_Data_for_FY22[[#This Row],[Median]]","v":0},{"$f":"(((AAMC_Raw_Data_for_FY22[[#This Row],[75th]]-AAMC_Raw_Data_for_FY22[[#This Row],[Median]])/25)*20) + AAMC_Raw_Data_for_FY22[[#This Row],[Median]]","v":0},null,{"$f":"(((AAMC_Raw_Data_for_FY22[[#This Row],[75th]]-AAMC_Raw_Data_for_FY22[[#This Row],[Median]])/25)*30) + AAMC_Raw_Data_for_FY22[[#This Row],[Median]]","v":0},{"$f":"(((AAMC_Raw_Data_for_FY22[[#This Row],[75th]]-AAMC_Raw_Data_for_FY22[[#This Row],[Median]])/25)*35) + AAMC_Raw_Data_for_FY22[[#This Row],[Median]]","v":0},{"$f":"(((AAMC_Raw_Data_for_FY22[[#This Row],[75th]]-AAMC_Raw_Data_for_FY22[[#This Row],[Median]])/25)*40) + AAMC_Raw_Data_for_FY22[[#This Row],[Median]]","v":0}]
[{"$f":"AAMC_Raw_Data_for_FY22[[#This Row],[Source]]&AAMC_Raw_Data_for_FY22[[#This Row],[Type]]&AAMC_Raw_Data_for_FY22[[#This Row],[School Subset]]&AAMC_Raw_Data_for_FY22[[#This Row],[Rank]]&AAMC_Raw_Data_for_FY22[[#This Row],[Degree]]&AAMC_Raw_Data_for_FY22[[#This Row],[Department / Specialty]]&\"L\"","v":"AAMCAcademicPublicInstructorMDNephrology-Peds.L"},"Nephrology-Peds.",5,"AAMC","Academic","Public","Instructor","MD","2021-2022",null,{"$f":"(((AAMC_Raw_Data_for_FY22[[#This Row],[Median]]-AAMC_Raw_Data_for_FY22[[#This Row],[25th]])/25)*5) + AAMC_Raw_Data_for_FY22[[#This Row],[25th]]","v":0},{"$f":"(((AAMC_Raw_Data_for_FY22[[#This Row],[Median]]-AAMC_Raw_Data_for_FY22[[#This Row],[25th]])/25)*10) + AAMC_Raw_Data_for_FY22[[#This Row],[25th]]","v":0},{"$f":"(((AAMC_Raw_Data_for_FY22[[#This Row],[Median]]-AAMC_Raw_Data_for_FY22[[#This Row],[25th]])/25)*15) + AAMC_Raw_Data_for_FY22[[#This Row],[25th]]","v":0},{"$f":"(((AAMC_Raw_Data_for_FY22[[#This Row],[Median]]-AAMC_Raw_Data_for_FY22[[#This Row],[25th]])/25)*20) + AAMC_Raw_Data_for_FY22[[#This Row],[25th]]","v":0},null,{"$f":"(((AAMC_Raw_Data_for_FY22[[#This Row],[75th]]-AAMC_Raw_Data_for_FY22[[#This Row],[Median]])/25)*5) + AAMC_Raw_Data_for_FY22[[#This Row],[Median]]","v":0},{"$f":"(((AAMC_Raw_Data_for_FY22[[#This Row],[75th]]-AAMC_Raw_Data_for_FY22[[#This Row],[Median]])/25)*10) + AAMC_Raw_Data_for_FY22[[#This Row],[Median]]","v":0},{"$f":"(((AAMC_Raw_Data_for_FY22[[#This Row],[75th]]-AAMC_Raw_Data_for_FY22[[#This Row],[Median]])/25)*15) + AAMC_Raw_Data_for_FY22[[#This Row],[Median]]","v":0},{"$f":"(((AAMC_Raw_Data_for_FY22[[#This Row],[75th]]-AAMC_Raw_Data_for_FY22[[#This Row],[Median]])/25)*20) + AAMC_Raw_Data_for_FY22[[#This Row],[Median]]","v":0},null,{"$f":"(((AAMC_Raw_Data_for_FY22[[#This Row],[75th]]-AAMC_Raw_Data_for_FY22[[#This Row],[Median]])/25)*30) + AAMC_Raw_Data_for_FY22[[#This Row],[Median]]","v":0},{"$f":"(((AAMC_Raw_Data_for_FY22[[#This Row],[75th]]-AAMC_Raw_Data_for_FY22[[#This Row],[Median]])/25)*35) + AAMC_Raw_Data_for_FY22[[#This Row],[Median]]","v":0},{"$f":"(((AAMC_Raw_Data_for_FY22[[#This Row],[75th]]-AAMC_Raw_Data_for_FY22[[#This Row],[Median]])/25)*40) + AAMC_Raw_Data_for_FY22[[#This Row],[Median]]","v":0}]
[{"$f":"AAMC_Raw_Data_for_FY22[[#This Row],[Source]]&AAMC_Raw_Data_for_FY22[[#This Row],[Type]]&AAMC_Raw_Data_for_FY22[[#This Row],[School Subset]]&AAMC_Raw_Data_for_FY22[[#This Row],[Rank]]&AAMC_Raw_Data_for_FY22[[#This Row],[Degree]]&AAMC_Raw_Data_for_FY22[[#This Row],[Department / Specialty]]&\"L\"","v":"AAMCAcademicPublicAssistantMDNephrology-Peds.L"},"Nephrology-Peds.",4,"AAMC","Academic","Public","Assistant","MD","2021-2022",165741,{"$f":"(((AAMC_Raw_Data_for_FY22[[#This Row],[Median]]-AAMC_Raw_Data_for_FY22[[#This Row],[25th]])/25)*5) + AAMC_Raw_Data_for_FY22[[#This Row],[25th]]","v":167904.4},{"$f":"(((AAMC_Raw_Data_for_FY22[[#This Row],[Median]]-AAMC_Raw_Data_for_FY22[[#This Row],[25th]])/25)*10) + AAMC_Raw_Data_for_FY22[[#This Row],[25th]]","v":170067.8},{"$f":"(((AAMC_Raw_Data_for_FY22[[#This Row],[Median]]-AAMC_Raw_Data_for_FY22[[#This Row],[25th]])/25)*15) + AAMC_Raw_Data_for_FY22[[#This Row],[25th]]","v":172231.2},{"$f":"(((AAMC_Raw_Data_for_FY22[[#This Row],[Median]]-AAMC_Raw_Data_for_FY22[[#This Row],[25th]])/25)*20) + AAMC_Raw_Data_for_FY22[[#This Row],[25th]]","v":174394.6},176558,{"$f":"(((AAMC_Raw_Data_for_FY22[[#This Row],[75th]]-AAMC_Raw_Data_for_FY22[[#This Row],[Median]])/25)*5) + AAMC_Raw_Data_for_FY22[[#This Row],[Median]]","v":178623.2},{"$f":"(((AAMC_Raw_Data_for_FY22[[#This Row],[75th]]-AAMC_Raw_Data_for_FY22[[#This Row],[Median]])/25)*10) + AAMC_Raw_Data_for_FY22[[#This Row],[Median]]","v":180688.4},{"$f":"(((AAMC_Raw_Data_for_FY22[[#This Row],[75th]]-AAMC_Raw_Data_for_FY22[[#This Row],[Median]])/25)*15) + AAMC_Raw_Data_for_FY22[[#This Row],[Median]]","v":182753.6},{"$f":"(((AAMC_Raw_Data_for_FY22[[#This Row],[75th]]-AAMC_Raw_Data_for_FY22[[#This Row],[Median]])/25)*20) + AAMC_Raw_Data_for_FY22[[#This Row],[Median]]","v":184818.8},186884,{"$f":"(((AAMC_Raw_Data_for_FY22[[#This Row],[75th]]-AAMC_Raw_Data_for_FY22[[#This Row],[Median]])/25)*30) + AAMC_Raw_Data_for_FY22[[#This Row],[Median]]","v":188949.2},{"$f":"(((AAMC_Raw_Data_for_FY22[[#This Row],[75th]]-AAMC_Raw_Data_for_FY22[[#This Row],[Median]])/25)*35) + AAMC_Raw_Data_for_FY22[[#This Row],[Median]]","v":191014.39999999999},{"$f":"(((AAMC_Raw_Data_for_FY22[[#This Row],[75th]]-AAMC_Raw_Data_for_FY22[[#This Row],[Median]])/25)*40) + AAMC_Raw_Data_for_FY22[[#This Row],[Median]]","v":193079.6}]
[{"$f":"AAMC_Raw_Data_for_FY22[[#This Row],[Source]]&AAMC_Raw_Data_for_FY22[[#This Row],[Type]]&AAMC_Raw_Data_for_FY22[[#This Row],[School Subset]]&AAMC_Raw_Data_for_FY22[[#This Row],[Rank]]&AAMC_Raw_Data_for_FY22[[#This Row],[Degree]]&AAMC_Raw_Data_for_FY22[[#This Row],[Department / Specialty]]&\"L\"","v":"AAMCAcademicPublicAssociateMDNephrology-Peds.L"},"Nephrology-Peds.",3,"AAMC","Academic","Public","Associate","MD","2021-2022",200473,{"$f":"(((AAMC_Raw_Data_for_FY22[[#This Row],[Median]]-AAMC_Raw_Data_for_FY22[[#This Row],[25th]])/25)*5) + AAMC_Raw_Data_for_FY22[[#This Row],[25th]]","v":203850.8},{"$f":"(((AAMC_Raw_Data_for_FY22[[#This Row],[Median]]-AAMC_Raw_Data_for_FY22[[#This Row],[25th]])/25)*10) + AAMC_Raw_Data_for_FY22[[#This Row],[25th]]","v":207228.6},{"$f":"(((AAMC_Raw_Data_for_FY22[[#This Row],[Median]]-AAMC_Raw_Data_for_FY22[[#This Row],[25th]])/25)*15) + AAMC_Raw_Data_for_FY22[[#This Row],[25th]]","v":210606.4},{"$f":"(((AAMC_Raw_Data_for_FY22[[#This Row],[Median]]-AAMC_Raw_Data_for_FY22[[#This Row],[25th]])/25)*20) + AAMC_Raw_Data_for_FY22[[#This Row],[25th]]","v":213984.2},217362,{"$f":"(((AAMC_Raw_Data_for_FY22[[#This Row],[75th]]-AAMC_Raw_Data_for_FY22[[#This Row],[Median]])/25)*5) + AAMC_Raw_Data_for_FY22[[#This Row],[Median]]","v":222068},{"$f":"(((AAMC_Raw_Data_for_FY22[[#This Row],[75th]]-AAMC_Raw_Data_for_FY22[[#This Row],[Median]])/25)*10) + AAMC_Raw_Data_for_FY22[[#This Row],[Median]]","v":226774},{"$f":"(((AAMC_Raw_Data_for_FY22[[#This Row],[75th]]-AAMC_Raw_Data_for_FY22[[#This Row],[Median]])/25)*15) + AAMC_Raw_Data_for_FY22[[#This Row],[Median]]","v":231480},{"$f":"(((AAMC_Raw_Data_for_FY22[[#This Row],[75th]]-AAMC_Raw_Data_for_FY22[[#This Row],[Median]])/25)*20) + AAMC_Raw_Data_for_FY22[[#This Row],[Median]]","v":236186},240892,{"$f":"(((AAMC_Raw_Data_for_FY22[[#This Row],[75th]]-AAMC_Raw_Data_for_FY22[[#This Row],[Median]])/25)*30) + AAMC_Raw_Data_for_FY22[[#This Row],[Median]]","v":245598},{"$f":"(((AAMC_Raw_Data_for_FY22[[#This Row],[75th]]-AAMC_Raw_Data_for_FY22[[#This Row],[Median]])/25)*35) + AAMC_Raw_Data_for_FY22[[#This Row],[Median]]","v":250304},{"$f":"(((AAMC_Raw_Data_for_FY22[[#This Row],[75th]]-AAMC_Raw_Data_for_FY22[[#This Row],[Median]])/25)*40) + AAMC_Raw_Data_for_FY22[[#This Row],[Median]]","v":255010}]
[{"$f":"AAMC_Raw_Data_for_FY22[[#This Row],[Source]]&AAMC_Raw_Data_for_FY22[[#This Row],[Type]]&AAMC_Raw_Data_for_FY22[[#This Row],[School Subset]]&AAMC_Raw_Data_for_FY22[[#This Row],[Rank]]&AAMC_Raw_Data_for_FY22[[#This Row],[Degree]]&AAMC_Raw_Data_for_FY22[[#This Row],[Department / Specialty]]&\"L\"","v":"AAMCAcademicPublicProfessorMDNephrology-Peds.L"},"Nephrology-Peds.",2,"AAMC","Academic","Public","Professor","MD","2021-2022",252415,{"$f":"(((AAMC_Raw_Data_for_FY22[[#This Row],[Median]]-AAMC_Raw_Data_for_FY22[[#This Row],[25th]])/25)*5) + AAMC_Raw_Data_for_FY22[[#This Row],[25th]]","v":258755},{"$f":"(((AAMC_Raw_Data_for_FY22[[#This Row],[Median]]-AAMC_Raw_Data_for_FY22[[#This Row],[25th]])/25)*10) + AAMC_Raw_Data_for_FY22[[#This Row],[25th]]","v":265095},{"$f":"(((AAMC_Raw_Data_for_FY22[[#This Row],[Median]]-AAMC_Raw_Data_for_FY22[[#This Row],[25th]])/25)*15) + AAMC_Raw_Data_for_FY22[[#This Row],[25th]]","v":271435},{"$f":"(((AAMC_Raw_Data_for_FY22[[#This Row],[Median]]-AAMC_Raw_Data_for_FY22[[#This Row],[25th]])/25)*20) + AAMC_Raw_Data_for_FY22[[#This Row],[25th]]","v":277775},284115,{"$f":"(((AAMC_Raw_Data_for_FY22[[#This Row],[75th]]-AAMC_Raw_Data_for_FY22[[#This Row],[Median]])/25)*5) + AAMC_Raw_Data_for_FY22[[#This Row],[Median]]","v":292754},{"$f":"(((AAMC_Raw_Data_for_FY22[[#This Row],[75th]]-AAMC_Raw_Data_for_FY22[[#This Row],[Median]])/25)*10) + AAMC_Raw_Data_for_FY22[[#This Row],[Median]]","v":301393},{"$f":"(((AAMC_Raw_Data_for_FY22[[#This Row],[75th]]-AAMC_Raw_Data_for_FY22[[#This Row],[Median]])/25)*15) + AAMC_Raw_Data_for_FY22[[#This Row],[Median]]","v":310032},{"$f":"(((AAMC_Raw_Data_for_FY22[[#This Row],[75th]]-AAMC_Raw_Data_for_FY22[[#This Row],[Median]])/25)*20) + AAMC_Raw_Data_for_FY22[[#This Row],[Median]]","v":318671},327310,{"$f":"(((AAMC_Raw_Data_for_FY22[[#This Row],[75th]]-AAMC_Raw_Data_for_FY22[[#This Row],[Median]])/25)*30) + AAMC_Raw_Data_for_FY22[[#This Row],[Median]]","v":335949},{"$f":"(((AAMC_Raw_Data_for_FY22[[#This Row],[75th]]-AAMC_Raw_Data_for_FY22[[#This Row],[Median]])/25)*35) + AAMC_Raw_Data_for_FY22[[#This Row],[Median]]","v":344588},{"$f":"(((AAMC_Raw_Data_for_FY22[[#This Row],[75th]]-AAMC_Raw_Data_for_FY22[[#This Row],[Median]])/25)*40) + AAMC_Raw_Data_for_FY22[[#This Row],[Median]]","v":353227}]
[{"$f":"AAMC_Raw_Data_for_FY22[[#This Row],[Source]]&AAMC_Raw_Data_for_FY22[[#This Row],[Type]]&AAMC_Raw_Data_for_FY22[[#This Row],[School Subset]]&AAMC_Raw_Data_for_FY22[[#This Row],[Rank]]&AAMC_Raw_Data_for_FY22[[#This Row],[Degree]]&AAMC_Raw_Data_for_FY22[[#This Row],[Department / Specialty]]&\"L\"","v":"AAMCAcademicPublicChiefMDNephrology-Peds.L"},"Nephrology-Peds.",6,"AAMC","Academic","Public","Chief","MD","2021-2022",241070,{"$f":"(((AAMC_Raw_Data_for_FY22[[#This Row],[Median]]-AAMC_Raw_Data_for_FY22[[#This Row],[25th]])/25)*5) + AAMC_Raw_Data_for_FY22[[#This Row],[25th]]","v":247286.39999999999},{"$f":"(((AAMC_Raw_Data_for_FY22[[#This Row],[Median]]-AAMC_Raw_Data_for_FY22[[#This Row],[25th]])/25)*10) + AAMC_Raw_Data_for_FY22[[#This Row],[25th]]","v":253502.8},{"$f":"(((AAMC_Raw_Data_for_FY22[[#This Row],[Median]]-AAMC_Raw_Data_for_FY22[[#This Row],[25th]])/25)*15) + AAMC_Raw_Data_for_FY22[[#This Row],[25th]]","v":259719.2},{"$f":"(((AAMC_Raw_Data_for_FY22[[#This Row],[Median]]-AAMC_Raw_Data_for_FY22[[#This Row],[25th]])/25)*20) + AAMC_Raw_Data_for_FY22[[#This Row],[25th]]","v":265935.59999999998},272152,{"$f":"(((AAMC_Raw_Data_for_FY22[[#This Row],[75th]]-AAMC_Raw_Data_for_FY22[[#This Row],[Median]])/25)*5) + AAMC_Raw_Data_for_FY22[[#This Row],[Median]]","v":278715.8},{"$f":"(((AAMC_Raw_Data_for_FY22[[#This Row],[75th]]-AAMC_Raw_Data_for_FY22[[#This Row],[Median]])/25)*10) + AAMC_Raw_Data_for_FY22[[#This Row],[Median]]","v":285279.59999999998},{"$f":"(((AAMC_Raw_Data_for_FY22[[#This Row],[75th]]-AAMC_Raw_Data_for_FY22[[#This Row],[Median]])/25)*15) + AAMC_Raw_Data_for_FY22[[#This Row],[Median]]","v":291843.40000000002},{"$f":"(((AAMC_Raw_Data_for_FY22[[#This Row],[75th]]-AAMC_Raw_Data_for_FY22[[#This Row],[Median]])/25)*20) + AAMC_Raw_Data_for_FY22[[#This Row],[Median]]","v":298407.2},304971,{"$f":"(((AAMC_Raw_Data_for_FY22[[#This Row],[75th]]-AAMC_Raw_Data_for_FY22[[#This Row],[Median]])/25)*30) + AAMC_Raw_Data_for_FY22[[#This Row],[Median]]","v":311534.8},{"$f":"(((AAMC_Raw_Data_for_FY22[[#This Row],[75th]]-AAMC_Raw_Data_for_FY22[[#This Row],[Median]])/25)*35) + AAMC_Raw_Data_for_FY22[[#This Row],[Median]]","v":318098.59999999998},{"$f":"(((AAMC_Raw_Data_for_FY22[[#This Row],[75th]]-AAMC_Raw_Data_for_FY22[[#This Row],[Median]])/25)*40) + AAMC_Raw_Data_for_FY22[[#This Row],[Median]]","v":324662.40000000002}]
[{"$f":"AAMC_Raw_Data_for_FY22[[#This Row],[Source]]&AAMC_Raw_Data_for_FY22[[#This Row],[Type]]&AAMC_Raw_Data_for_FY22[[#This Row],[School Subset]]&AAMC_Raw_Data_for_FY22[[#This Row],[Rank]]&AAMC_Raw_Data_for_FY22[[#This Row],[Degree]]&AAMC_Raw_Data_for_FY22[[#This Row],[Department / Specialty]]&\"L\"","v":"AAMCAcademicPublicChairMDNephrology-Peds.L"},"Nephrology-Peds.",1,"AAMC","Academic","Public","Chair","MD","2021-2022",null,{"$f":"(((AAMC_Raw_Data_for_FY22[[#This Row],[Median]]-AAMC_Raw_Data_for_FY22[[#This Row],[25th]])/25)*5) + AAMC_Raw_Data_for_FY22[[#This Row],[25th]]","v":0},{"$f":"(((AAMC_Raw_Data_for_FY22[[#This Row],[Median]]-AAMC_Raw_Data_for_FY22[[#This Row],[25th]])/25)*10) + AAMC_Raw_Data_for_FY22[[#This Row],[25th]]","v":0},{"$f":"(((AAMC_Raw_Data_for_FY22[[#This Row],[Median]]-AAMC_Raw_Data_for_FY22[[#This Row],[25th]])/25)*15) + AAMC_Raw_Data_for_FY22[[#This Row],[25th]]","v":0},{"$f":"(((AAMC_Raw_Data_for_FY22[[#This Row],[Median]]-AAMC_Raw_Data_for_FY22[[#This Row],[25th]])/25)*20) + AAMC_Raw_Data_for_FY22[[#This Row],[25th]]","v":0},null,{"$f":"(((AAMC_Raw_Data_for_FY22[[#This Row],[75th]]-AAMC_Raw_Data_for_FY22[[#This Row],[Median]])/25)*5) + AAMC_Raw_Data_for_FY22[[#This Row],[Median]]","v":0},{"$f":"(((AAMC_Raw_Data_for_FY22[[#This Row],[75th]]-AAMC_Raw_Data_for_FY22[[#This Row],[Median]])/25)*10) + AAMC_Raw_Data_for_FY22[[#This Row],[Median]]","v":0},{"$f":"(((AAMC_Raw_Data_for_FY22[[#This Row],[75th]]-AAMC_Raw_Data_for_FY22[[#This Row],[Median]])/25)*15) + AAMC_Raw_Data_for_FY22[[#This Row],[Median]]","v":0},{"$f":"(((AAMC_Raw_Data_for_FY22[[#This Row],[75th]]-AAMC_Raw_Data_for_FY22[[#This Row],[Median]])/25)*20) + AAMC_Raw_Data_for_FY22[[#This Row],[Median]]","v":0},null,{"$f":"(((AAMC_Raw_Data_for_FY22[[#This Row],[75th]]-AAMC_Raw_Data_for_FY22[[#This Row],[Median]])/25)*30) + AAMC_Raw_Data_for_FY22[[#This Row],[Median]]","v":0},{"$f":"(((AAMC_Raw_Data_for_FY22[[#This Row],[75th]]-AAMC_Raw_Data_for_FY22[[#This Row],[Median]])/25)*35) + AAMC_Raw_Data_for_FY22[[#This Row],[Median]]","v":0},{"$f":"(((AAMC_Raw_Data_for_FY22[[#This Row],[75th]]-AAMC_Raw_Data_for_FY22[[#This Row],[Median]])/25)*40) + AAMC_Raw_Data_for_FY22[[#This Row],[Median]]","v":0}]
[{"$f":"AAMC_Raw_Data_for_FY22[[#This Row],[Source]]&AAMC_Raw_Data_for_FY22[[#This Row],[Type]]&AAMC_Raw_Data_for_FY22[[#This Row],[School Subset]]&AAMC_Raw_Data_for_FY22[[#This Row],[Rank]]&AAMC_Raw_Data_for_FY22[[#This Row],[Degree]]&AAMC_Raw_Data_for_FY22[[#This Row],[Department / Specialty]]&\"L\"","v":"AAMCAcademicPublicInstructorMDNeurology-Peds.L"},"Neurology-Peds.",5,"AAMC","Academic","Public","Instructor","MD","2021-2022",null,{"$f":"(((AAMC_Raw_Data_for_FY22[[#This Row],[Median]]-AAMC_Raw_Data_for_FY22[[#This Row],[25th]])/25)*5) + AAMC_Raw_Data_for_FY22[[#This Row],[25th]]","v":0},{"$f":"(((AAMC_Raw_Data_for_FY22[[#This Row],[Median]]-AAMC_Raw_Data_for_FY22[[#This Row],[25th]])/25)*10) + AAMC_Raw_Data_for_FY22[[#This Row],[25th]]","v":0},{"$f":"(((AAMC_Raw_Data_for_FY22[[#This Row],[Median]]-AAMC_Raw_Data_for_FY22[[#This Row],[25th]])/25)*15) + AAMC_Raw_Data_for_FY22[[#This Row],[25th]]","v":0},{"$f":"(((AAMC_Raw_Data_for_FY22[[#This Row],[Median]]-AAMC_Raw_Data_for_FY22[[#This Row],[25th]])/25)*20) + AAMC_Raw_Data_for_FY22[[#This Row],[25th]]","v":0},null,{"$f":"(((AAMC_Raw_Data_for_FY22[[#This Row],[75th]]-AAMC_Raw_Data_for_FY22[[#This Row],[Median]])/25)*5) + AAMC_Raw_Data_for_FY22[[#This Row],[Median]]","v":0},{"$f":"(((AAMC_Raw_Data_for_FY22[[#This Row],[75th]]-AAMC_Raw_Data_for_FY22[[#This Row],[Median]])/25)*10) + AAMC_Raw_Data_for_FY22[[#This Row],[Median]]","v":0},{"$f":"(((AAMC_Raw_Data_for_FY22[[#This Row],[75th]]-AAMC_Raw_Data_for_FY22[[#This Row],[Median]])/25)*15) + AAMC_Raw_Data_for_FY22[[#This Row],[Median]]","v":0},{"$f":"(((AAMC_Raw_Data_for_FY22[[#This Row],[75th]]-AAMC_Raw_Data_for_FY22[[#This Row],[Median]])/25)*20) + AAMC_Raw_Data_for_FY22[[#This Row],[Median]]","v":0},null,{"$f":"(((AAMC_Raw_Data_for_FY22[[#This Row],[75th]]-AAMC_Raw_Data_for_FY22[[#This Row],[Median]])/25)*30) + AAMC_Raw_Data_for_FY22[[#This Row],[Median]]","v":0},{"$f":"(((AAMC_Raw_Data_for_FY22[[#This Row],[75th]]-AAMC_Raw_Data_for_FY22[[#This Row],[Median]])/25)*35) + AAMC_Raw_Data_for_FY22[[#This Row],[Median]]","v":0},{"$f":"(((AAMC_Raw_Data_for_FY22[[#This Row],[75th]]-AAMC_Raw_Data_for_FY22[[#This Row],[Median]])/25)*40) + AAMC_Raw_Data_for_FY22[[#This Row],[Median]]","v":0}]
[{"$f":"AAMC_Raw_Data_for_FY22[[#This Row],[Source]]&AAMC_Raw_Data_for_FY22[[#This Row],[Type]]&AAMC_Raw_Data_for_FY22[[#This Row],[School Subset]]&AAMC_Raw_Data_for_FY22[[#This Row],[Rank]]&AAMC_Raw_Data_for_FY22[[#This Row],[Degree]]&AAMC_Raw_Data_for_FY22[[#This Row],[Department / Specialty]]&\"L\"","v":"AAMCAcademicPublicAssistantMDNeurology-Peds.L"},"Neurology-Peds.",4,"AAMC","Academic","Public","Assistant","MD","2021-2022",200000,{"$f":"(((AAMC_Raw_Data_for_FY22[[#This Row],[Median]]-AAMC_Raw_Data_for_FY22[[#This Row],[25th]])/25)*5) + AAMC_Raw_Data_for_FY22[[#This Row],[25th]]","v":202840},{"$f":"(((AAMC_Raw_Data_for_FY22[[#This Row],[Median]]-AAMC_Raw_Data_for_FY22[[#This Row],[25th]])/25)*10) + AAMC_Raw_Data_for_FY22[[#This Row],[25th]]","v":205680},{"$f":"(((AAMC_Raw_Data_for_FY22[[#This Row],[Median]]-AAMC_Raw_Data_for_FY22[[#This Row],[25th]])/25)*15) + AAMC_Raw_Data_for_FY22[[#This Row],[25th]]","v":208520},{"$f":"(((AAMC_Raw_Data_for_FY22[[#This Row],[Median]]-AAMC_Raw_Data_for_FY22[[#This Row],[25th]])/25)*20) + AAMC_Raw_Data_for_FY22[[#This Row],[25th]]","v":211360},214200,{"$f":"(((AAMC_Raw_Data_for_FY22[[#This Row],[75th]]-AAMC_Raw_Data_for_FY22[[#This Row],[Median]])/25)*5) + AAMC_Raw_Data_for_FY22[[#This Row],[Median]]","v":217013.8},{"$f":"(((AAMC_Raw_Data_for_FY22[[#This Row],[75th]]-AAMC_Raw_Data_for_FY22[[#This Row],[Median]])/25)*10) + AAMC_Raw_Data_for_FY22[[#This Row],[Median]]","v":219827.6},{"$f":"(((AAMC_Raw_Data_for_FY22[[#This Row],[75th]]-AAMC_Raw_Data_for_FY22[[#This Row],[Median]])/25)*15) + AAMC_Raw_Data_for_FY22[[#This Row],[Median]]","v":222641.4},{"$f":"(((AAMC_Raw_Data_for_FY22[[#This Row],[75th]]-AAMC_Raw_Data_for_FY22[[#This Row],[Median]])/25)*20) + AAMC_Raw_Data_for_FY22[[#This Row],[Median]]","v":225455.2},228269,{"$f":"(((AAMC_Raw_Data_for_FY22[[#This Row],[75th]]-AAMC_Raw_Data_for_FY22[[#This Row],[Median]])/25)*30) + AAMC_Raw_Data_for_FY22[[#This Row],[Median]]","v":231082.8},{"$f":"(((AAMC_Raw_Data_for_FY22[[#This Row],[75th]]-AAMC_Raw_Data_for_FY22[[#This Row],[Median]])/25)*35) + AAMC_Raw_Data_for_FY22[[#This Row],[Median]]","v":233896.6},{"$f":"(((AAMC_Raw_Data_for_FY22[[#This Row],[75th]]-AAMC_Raw_Data_for_FY22[[#This Row],[Median]])/25)*40) + AAMC_Raw_Data_for_FY22[[#This Row],[Median]]","v":236710.39999999999}]
[{"$f":"AAMC_Raw_Data_for_FY22[[#This Row],[Source]]&AAMC_Raw_Data_for_FY22[[#This Row],[Type]]&AAMC_Raw_Data_for_FY22[[#This Row],[School Subset]]&AAMC_Raw_Data_for_FY22[[#This Row],[Rank]]&AAMC_Raw_Data_for_FY22[[#This Row],[Degree]]&AAMC_Raw_Data_for_FY22[[#This Row],[Department / Specialty]]&\"L\"","v":"AAMCAcademicPublicAssociateMDNeurology-Peds.L"},"Neurology-Peds.",3,"AAMC","Academic","Public","Associate","MD","2021-2022",227790,{"$f":"(((AAMC_Raw_Data_for_FY22[[#This Row],[Median]]-AAMC_Raw_Data_for_FY22[[#This Row],[25th]])/25)*5) + AAMC_Raw_Data_for_FY22[[#This Row],[25th]]","v":230686.2},{"$f":"(((AAMC_Raw_Data_for_FY22[[#This Row],[Median]]-AAMC_Raw_Data_for_FY22[[#This Row],[25th]])/25)*10) + AAMC_Raw_Data_for_FY22[[#This Row],[25th]]","v":233582.4},{"$f":"(((AAMC_Raw_Data_for_FY22[[#This Row],[Median]]-AAMC_Raw_Data_for_FY22[[#This Row],[25th]])/25)*15) + AAMC_Raw_Data_for_FY22[[#This Row],[25th]]","v":236478.6},{"$f":"(((AAMC_Raw_Data_for_FY22[[#This Row],[Median]]-AAMC_Raw_Data_for_FY22[[#This Row],[25th]])/25)*20) + AAMC_Raw_Data_for_FY22[[#This Row],[25th]]","v":239374.8},242271,{"$f":"(((AAMC_Raw_Data_for_FY22[[#This Row],[75th]]-AAMC_Raw_Data_for_FY22[[#This Row],[Median]])/25)*5) + AAMC_Raw_Data_for_FY22[[#This Row],[Median]]","v":245438.6},{"$f":"(((AAMC_Raw_Data_for_FY22[[#This Row],[75th]]-AAMC_Raw_Data_for_FY22[[#This Row],[Median]])/25)*10) + AAMC_Raw_Data_for_FY22[[#This Row],[Median]]","v":248606.2},{"$f":"(((AAMC_Raw_Data_for_FY22[[#This Row],[75th]]-AAMC_Raw_Data_for_FY22[[#This Row],[Median]])/25)*15) + AAMC_Raw_Data_for_FY22[[#This Row],[Median]]","v":251773.8},{"$f":"(((AAMC_Raw_Data_for_FY22[[#This Row],[75th]]-AAMC_Raw_Data_for_FY22[[#This Row],[Median]])/25)*20) + AAMC_Raw_Data_for_FY22[[#This Row],[Median]]","v":254941.4},258109,{"$f":"(((AAMC_Raw_Data_for_FY22[[#This Row],[75th]]-AAMC_Raw_Data_for_FY22[[#This Row],[Median]])/25)*30) + AAMC_Raw_Data_for_FY22[[#This Row],[Median]]","v":261276.6},{"$f":"(((AAMC_Raw_Data_for_FY22[[#This Row],[75th]]-AAMC_Raw_Data_for_FY22[[#This Row],[Median]])/25)*35) + AAMC_Raw_Data_for_FY22[[#This Row],[Median]]","v":264444.2},{"$f":"(((AAMC_Raw_Data_for_FY22[[#This Row],[75th]]-AAMC_Raw_Data_for_FY22[[#This Row],[Median]])/25)*40) + AAMC_Raw_Data_for_FY22[[#This Row],[Median]]","v":267611.8}]
[{"$f":"AAMC_Raw_Data_for_FY22[[#This Row],[Source]]&AAMC_Raw_Data_for_FY22[[#This Row],[Type]]&AAMC_Raw_Data_for_FY22[[#This Row],[School Subset]]&AAMC_Raw_Data_for_FY22[[#This Row],[Rank]]&AAMC_Raw_Data_for_FY22[[#This Row],[Degree]]&AAMC_Raw_Data_for_FY22[[#This Row],[Department / Specialty]]&\"L\"","v":"AAMCAcademicPublicProfessorMDNeurology-Peds.L"},"Neurology-Peds.",2,"AAMC","Academic","Public","Professor","MD","2021-2022",260082,{"$f":"(((AAMC_Raw_Data_for_FY22[[#This Row],[Median]]-AAMC_Raw_Data_for_FY22[[#This Row],[25th]])/25)*5) + AAMC_Raw_Data_for_FY22[[#This Row],[25th]]","v":264523.59999999998},{"$f":"(((AAMC_Raw_Data_for_FY22[[#This Row],[Median]]-AAMC_Raw_Data_for_FY22[[#This Row],[25th]])/25)*10) + AAMC_Raw_Data_for_FY22[[#This Row],[25th]]","v":268965.2},{"$f":"(((AAMC_Raw_Data_for_FY22[[#This Row],[Median]]-AAMC_Raw_Data_for_FY22[[#This Row],[25th]])/25)*15) + AAMC_Raw_Data_for_FY22[[#This Row],[25th]]","v":273406.8},{"$f":"(((AAMC_Raw_Data_for_FY22[[#This Row],[Median]]-AAMC_Raw_Data_for_FY22[[#This Row],[25th]])/25)*20) + AAMC_Raw_Data_for_FY22[[#This Row],[25th]]","v":277848.40000000002},282290,{"$f":"(((AAMC_Raw_Data_for_FY22[[#This Row],[75th]]-AAMC_Raw_Data_for_FY22[[#This Row],[Median]])/25)*5) + AAMC_Raw_Data_for_FY22[[#This Row],[Median]]","v":287754.40000000002},{"$f":"(((AAMC_Raw_Data_for_FY22[[#This Row],[75th]]-AAMC_Raw_Data_for_FY22[[#This Row],[Median]])/25)*10) + AAMC_Raw_Data_for_FY22[[#This Row],[Median]]","v":293218.8},{"$f":"(((AAMC_Raw_Data_for_FY22[[#This Row],[75th]]-AAMC_Raw_Data_for_FY22[[#This Row],[Median]])/25)*15) + AAMC_Raw_Data_for_FY22[[#This Row],[Median]]","v":298683.2},{"$f":"(((AAMC_Raw_Data_for_FY22[[#This Row],[75th]]-AAMC_Raw_Data_for_FY22[[#This Row],[Median]])/25)*20) + AAMC_Raw_Data_for_FY22[[#This Row],[Median]]","v":304147.59999999998},309612,{"$f":"(((AAMC_Raw_Data_for_FY22[[#This Row],[75th]]-AAMC_Raw_Data_for_FY22[[#This Row],[Median]])/25)*30) + AAMC_Raw_Data_for_FY22[[#This Row],[Median]]","v":315076.40000000002},{"$f":"(((AAMC_Raw_Data_for_FY22[[#This Row],[75th]]-AAMC_Raw_Data_for_FY22[[#This Row],[Median]])/25)*35) + AAMC_Raw_Data_for_FY22[[#This Row],[Median]]","v":320540.79999999999},{"$f":"(((AAMC_Raw_Data_for_FY22[[#This Row],[75th]]-AAMC_Raw_Data_for_FY22[[#This Row],[Median]])/25)*40) + AAMC_Raw_Data_for_FY22[[#This Row],[Median]]","v":326005.2}]
[{"$f":"AAMC_Raw_Data_for_FY22[[#This Row],[Source]]&AAMC_Raw_Data_for_FY22[[#This Row],[Type]]&AAMC_Raw_Data_for_FY22[[#This Row],[School Subset]]&AAMC_Raw_Data_for_FY22[[#This Row],[Rank]]&AAMC_Raw_Data_for_FY22[[#This Row],[Degree]]&AAMC_Raw_Data_for_FY22[[#This Row],[Department / Specialty]]&\"L\"","v":"AAMCAcademicPublicChiefMDNeurology-Peds.L"},"Neurology-Peds.",6,"AAMC","Academic","Public","Chief","MD","2021-2022",278409,{"$f":"(((AAMC_Raw_Data_for_FY22[[#This Row],[Median]]-AAMC_Raw_Data_for_FY22[[#This Row],[25th]])/25)*5) + AAMC_Raw_Data_for_FY22[[#This Row],[25th]]","v":291598.2},{"$f":"(((AAMC_Raw_Data_for_FY22[[#This Row],[Median]]-AAMC_Raw_Data_for_FY22[[#This Row],[25th]])/25)*10) + AAMC_Raw_Data_for_FY22[[#This Row],[25th]]","v":304787.40000000002},{"$f":"(((AAMC_Raw_Data_for_FY22[[#This Row],[Median]]-AAMC_Raw_Data_for_FY22[[#This Row],[25th]])/25)*15) + AAMC_Raw_Data_for_FY22[[#This Row],[25th]]","v":317976.59999999998},{"$f":"(((AAMC_Raw_Data_for_FY22[[#This Row],[Median]]-AAMC_Raw_Data_for_FY22[[#This Row],[25th]])/25)*20) + AAMC_Raw_Data_for_FY22[[#This Row],[25th]]","v":331165.8},344355,{"$f":"(((AAMC_Raw_Data_for_FY22[[#This Row],[75th]]-AAMC_Raw_Data_for_FY22[[#This Row],[Median]])/25)*5) + AAMC_Raw_Data_for_FY22[[#This Row],[Median]]","v":350401.8},{"$f":"(((AAMC_Raw_Data_for_FY22[[#This Row],[75th]]-AAMC_Raw_Data_for_FY22[[#This Row],[Median]])/25)*10) + AAMC_Raw_Data_for_FY22[[#This Row],[Median]]","v":356448.6},{"$f":"(((AAMC_Raw_Data_for_FY22[[#This Row],[75th]]-AAMC_Raw_Data_for_FY22[[#This Row],[Median]])/25)*15) + AAMC_Raw_Data_for_FY22[[#This Row],[Median]]","v":362495.4},{"$f":"(((AAMC_Raw_Data_for_FY22[[#This Row],[75th]]-AAMC_Raw_Data_for_FY22[[#This Row],[Median]])/25)*20) + AAMC_Raw_Data_for_FY22[[#This Row],[Median]]","v":368542.2},374589,{"$f":"(((AAMC_Raw_Data_for_FY22[[#This Row],[75th]]-AAMC_Raw_Data_for_FY22[[#This Row],[Median]])/25)*30) + AAMC_Raw_Data_for_FY22[[#This Row],[Median]]","v":380635.8},{"$f":"(((AAMC_Raw_Data_for_FY22[[#This Row],[75th]]-AAMC_Raw_Data_for_FY22[[#This Row],[Median]])/25)*35) + AAMC_Raw_Data_for_FY22[[#This Row],[Median]]","v":386682.6},{"$f":"(((AAMC_Raw_Data_for_FY22[[#This Row],[75th]]-AAMC_Raw_Data_for_FY22[[#This Row],[Median]])/25)*40) + AAMC_Raw_Data_for_FY22[[#This Row],[Median]]","v":392729.4}]
[{"$f":"AAMC_Raw_Data_for_FY22[[#This Row],[Source]]&AAMC_Raw_Data_for_FY22[[#This Row],[Type]]&AAMC_Raw_Data_for_FY22[[#This Row],[School Subset]]&AAMC_Raw_Data_for_FY22[[#This Row],[Rank]]&AAMC_Raw_Data_for_FY22[[#This Row],[Degree]]&AAMC_Raw_Data_for_FY22[[#This Row],[Department / Specialty]]&\"L\"","v":"AAMCAcademicPublicChairMDNeurology-Peds.L"},"Neurology-Peds.",1,"AAMC","Academic","Public","Chair","MD","2021-2022",null,{"$f":"(((AAMC_Raw_Data_for_FY22[[#This Row],[Median]]-AAMC_Raw_Data_for_FY22[[#This Row],[25th]])/25)*5) + AAMC_Raw_Data_for_FY22[[#This Row],[25th]]","v":0},{"$f":"(((AAMC_Raw_Data_for_FY22[[#This Row],[Median]]-AAMC_Raw_Data_for_FY22[[#This Row],[25th]])/25)*10) + AAMC_Raw_Data_for_FY22[[#This Row],[25th]]","v":0},{"$f":"(((AAMC_Raw_Data_for_FY22[[#This Row],[Median]]-AAMC_Raw_Data_for_FY22[[#This Row],[25th]])/25)*15) + AAMC_Raw_Data_for_FY22[[#This Row],[25th]]","v":0},{"$f":"(((AAMC_Raw_Data_for_FY22[[#This Row],[Median]]-AAMC_Raw_Data_for_FY22[[#This Row],[25th]])/25)*20) + AAMC_Raw_Data_for_FY22[[#This Row],[25th]]","v":0},null,{"$f":"(((AAMC_Raw_Data_for_FY22[[#This Row],[75th]]-AAMC_Raw_Data_for_FY22[[#This Row],[Median]])/25)*5) + AAMC_Raw_Data_for_FY22[[#This Row],[Median]]","v":0},{"$f":"(((AAMC_Raw_Data_for_FY22[[#This Row],[75th]]-AAMC_Raw_Data_for_FY22[[#This Row],[Median]])/25)*10) + AAMC_Raw_Data_for_FY22[[#This Row],[Median]]","v":0},{"$f":"(((AAMC_Raw_Data_for_FY22[[#This Row],[75th]]-AAMC_Raw_Data_for_FY22[[#This Row],[Median]])/25)*15) + AAMC_Raw_Data_for_FY22[[#This Row],[Median]]","v":0},{"$f":"(((AAMC_Raw_Data_for_FY22[[#This Row],[75th]]-AAMC_Raw_Data_for_FY22[[#This Row],[Median]])/25)*20) + AAMC_Raw_Data_for_FY22[[#This Row],[Median]]","v":0},null,{"$f":"(((AAMC_Raw_Data_for_FY22[[#This Row],[75th]]-AAMC_Raw_Data_for_FY22[[#This Row],[Median]])/25)*30) + AAMC_Raw_Data_for_FY22[[#This Row],[Median]]","v":0},{"$f":"(((AAMC_Raw_Data_for_FY22[[#This Row],[75th]]-AAMC_Raw_Data_for_FY22[[#This Row],[Median]])/25)*35) + AAMC_Raw_Data_for_FY22[[#This Row],[Median]]","v":0},{"$f":"(((AAMC_Raw_Data_for_FY22[[#This Row],[75th]]-AAMC_Raw_Data_for_FY22[[#This Row],[Median]])/25)*40) + AAMC_Raw_Data_for_FY22[[#This Row],[Median]]","v":0}]
[{"$f":"AAMC_Raw_Data_for_FY22[[#This Row],[Source]]&AAMC_Raw_Data_for_FY22[[#This Row],[Type]]&AAMC_Raw_Data_for_FY22[[#This Row],[School Subset]]&AAMC_Raw_Data_for_FY22[[#This Row],[Rank]]&AAMC_Raw_Data_for_FY22[[#This Row],[Degree]]&AAMC_Raw_Data_for_FY22[[#This Row],[Department / Specialty]]&\"L\"","v":"AAMCAcademicPublicInstructorMDPediatric CardiologyL"},"Pediatric Cardiology",5,"AAMC","Academic","Public","Instructor","MD","2021-2022",109550,{"$f":"(((AAMC_Raw_Data_for_FY22[[#This Row],[Median]]-AAMC_Raw_Data_for_FY22[[#This Row],[25th]])/25)*5) + AAMC_Raw_Data_for_FY22[[#This Row],[25th]]","v":129369.4},{"$f":"(((AAMC_Raw_Data_for_FY22[[#This Row],[Median]]-AAMC_Raw_Data_for_FY22[[#This Row],[25th]])/25)*10) + AAMC_Raw_Data_for_FY22[[#This Row],[25th]]","v":149188.79999999999},{"$f":"(((AAMC_Raw_Data_for_FY22[[#This Row],[Median]]-AAMC_Raw_Data_for_FY22[[#This Row],[25th]])/25)*15) + AAMC_Raw_Data_for_FY22[[#This Row],[25th]]","v":169008.2},{"$f":"(((AAMC_Raw_Data_for_FY22[[#This Row],[Median]]-AAMC_Raw_Data_for_FY22[[#This Row],[25th]])/25)*20) + AAMC_Raw_Data_for_FY22[[#This Row],[25th]]","v":188827.6},208647,{"$f":"(((AAMC_Raw_Data_for_FY22[[#This Row],[75th]]-AAMC_Raw_Data_for_FY22[[#This Row],[Median]])/25)*5) + AAMC_Raw_Data_for_FY22[[#This Row],[Median]]","v":223654.2},{"$f":"(((AAMC_Raw_Data_for_FY22[[#This Row],[75th]]-AAMC_Raw_Data_for_FY22[[#This Row],[Median]])/25)*10) + AAMC_Raw_Data_for_FY22[[#This Row],[Median]]","v":238661.4},{"$f":"(((AAMC_Raw_Data_for_FY22[[#This Row],[75th]]-AAMC_Raw_Data_for_FY22[[#This Row],[Median]])/25)*15) + AAMC_Raw_Data_for_FY22[[#This Row],[Median]]","v":253668.6},{"$f":"(((AAMC_Raw_Data_for_FY22[[#This Row],[75th]]-AAMC_Raw_Data_for_FY22[[#This Row],[Median]])/25)*20) + AAMC_Raw_Data_for_FY22[[#This Row],[Median]]","v":268675.8},283683,{"$f":"(((AAMC_Raw_Data_for_FY22[[#This Row],[75th]]-AAMC_Raw_Data_for_FY22[[#This Row],[Median]])/25)*30) + AAMC_Raw_Data_for_FY22[[#This Row],[Median]]","v":298690.2},{"$f":"(((AAMC_Raw_Data_for_FY22[[#This Row],[75th]]-AAMC_Raw_Data_for_FY22[[#This Row],[Median]])/25)*35) + AAMC_Raw_Data_for_FY22[[#This Row],[Median]]","v":313697.40000000002},{"$f":"(((AAMC_Raw_Data_for_FY22[[#This Row],[75th]]-AAMC_Raw_Data_for_FY22[[#This Row],[Median]])/25)*40) + AAMC_Raw_Data_for_FY22[[#This Row],[Median]]","v":328704.59999999998}]
[{"$f":"AAMC_Raw_Data_for_FY22[[#This Row],[Source]]&AAMC_Raw_Data_for_FY22[[#This Row],[Type]]&AAMC_Raw_Data_for_FY22[[#This Row],[School Subset]]&AAMC_Raw_Data_for_FY22[[#This Row],[Rank]]&AAMC_Raw_Data_for_FY22[[#This Row],[Degree]]&AAMC_Raw_Data_for_FY22[[#This Row],[Department / Specialty]]&\"L\"","v":"AAMCAcademicPublicAssistantMDPediatric CardiologyL"},"Pediatric Cardiology",4,"AAMC","Academic","Public","Assistant","MD","2021-2022",234764,{"$f":"(((AAMC_Raw_Data_for_FY22[[#This Row],[Median]]-AAMC_Raw_Data_for_FY22[[#This Row],[25th]])/25)*5) + AAMC_Raw_Data_for_FY22[[#This Row],[25th]]","v":238428},{"$f":"(((AAMC_Raw_Data_for_FY22[[#This Row],[Median]]-AAMC_Raw_Data_for_FY22[[#This Row],[25th]])/25)*10) + AAMC_Raw_Data_for_FY22[[#This Row],[25th]]","v":242092},{"$f":"(((AAMC_Raw_Data_for_FY22[[#This Row],[Median]]-AAMC_Raw_Data_for_FY22[[#This Row],[25th]])/25)*15) + AAMC_Raw_Data_for_FY22[[#This Row],[25th]]","v":245756},{"$f":"(((AAMC_Raw_Data_for_FY22[[#This Row],[Median]]-AAMC_Raw_Data_for_FY22[[#This Row],[25th]])/25)*20) + AAMC_Raw_Data_for_FY22[[#This Row],[25th]]","v":249420},253084,{"$f":"(((AAMC_Raw_Data_for_FY22[[#This Row],[75th]]-AAMC_Raw_Data_for_FY22[[#This Row],[Median]])/25)*5) + AAMC_Raw_Data_for_FY22[[#This Row],[Median]]","v":261721.2},{"$f":"(((AAMC_Raw_Data_for_FY22[[#This Row],[75th]]-AAMC_Raw_Data_for_FY22[[#This Row],[Median]])/25)*10) + AAMC_Raw_Data_for_FY22[[#This Row],[Median]]","v":270358.40000000002},{"$f":"(((AAMC_Raw_Data_for_FY22[[#This Row],[75th]]-AAMC_Raw_Data_for_FY22[[#This Row],[Median]])/25)*15) + AAMC_Raw_Data_for_FY22[[#This Row],[Median]]","v":278995.59999999998},{"$f":"(((AAMC_Raw_Data_for_FY22[[#This Row],[75th]]-AAMC_Raw_Data_for_FY22[[#This Row],[Median]])/25)*20) + AAMC_Raw_Data_for_FY22[[#This Row],[Median]]","v":287632.8},296270,{"$f":"(((AAMC_Raw_Data_for_FY22[[#This Row],[75th]]-AAMC_Raw_Data_for_FY22[[#This Row],[Median]])/25)*30) + AAMC_Raw_Data_for_FY22[[#This Row],[Median]]","v":304907.2},{"$f":"(((AAMC_Raw_Data_for_FY22[[#This Row],[75th]]-AAMC_Raw_Data_for_FY22[[#This Row],[Median]])/25)*35) + AAMC_Raw_Data_for_FY22[[#This Row],[Median]]","v":313544.40000000002},{"$f":"(((AAMC_Raw_Data_for_FY22[[#This Row],[75th]]-AAMC_Raw_Data_for_FY22[[#This Row],[Median]])/25)*40) + AAMC_Raw_Data_for_FY22[[#This Row],[Median]]","v":322181.59999999998}]
[{"$f":"AAMC_Raw_Data_for_FY22[[#This Row],[Source]]&AAMC_Raw_Data_for_FY22[[#This Row],[Type]]&AAMC_Raw_Data_for_FY22[[#This Row],[School Subset]]&AAMC_Raw_Data_for_FY22[[#This Row],[Rank]]&AAMC_Raw_Data_for_FY22[[#This Row],[Degree]]&AAMC_Raw_Data_for_FY22[[#This Row],[Department / Specialty]]&\"L\"","v":"AAMCAcademicPublicAssociateMDPediatric CardiologyL"},"Pediatric Cardiology",3,"AAMC","Academic","Public","Associate","MD","2021-2022",282747,{"$f":"(((AAMC_Raw_Data_for_FY22[[#This Row],[Median]]-AAMC_Raw_Data_for_FY22[[#This Row],[25th]])/25)*5) + AAMC_Raw_Data_for_FY22[[#This Row],[25th]]","v":287070.59999999998},{"$f":"(((AAMC_Raw_Data_for_FY22[[#This Row],[Median]]-AAMC_Raw_Data_for_FY22[[#This Row],[25th]])/25)*10) + AAMC_Raw_Data_for_FY22[[#This Row],[25th]]","v":291394.2},{"$f":"(((AAMC_Raw_Data_for_FY22[[#This Row],[Median]]-AAMC_Raw_Data_for_FY22[[#This Row],[25th]])/25)*15) + AAMC_Raw_Data_for_FY22[[#This Row],[25th]]","v":295717.8},{"$f":"(((AAMC_Raw_Data_for_FY22[[#This Row],[Median]]-AAMC_Raw_Data_for_FY22[[#This Row],[25th]])/25)*20) + AAMC_Raw_Data_for_FY22[[#This Row],[25th]]","v":300041.40000000002},304365,{"$f":"(((AAMC_Raw_Data_for_FY22[[#This Row],[75th]]-AAMC_Raw_Data_for_FY22[[#This Row],[Median]])/25)*5) + AAMC_Raw_Data_for_FY22[[#This Row],[Median]]","v":311093.59999999998},{"$f":"(((AAMC_Raw_Data_for_FY22[[#This Row],[75th]]-AAMC_Raw_Data_for_FY22[[#This Row],[Median]])/25)*10) + AAMC_Raw_Data_for_FY22[[#This Row],[Median]]","v":317822.2},{"$f":"(((AAMC_Raw_Data_for_FY22[[#This Row],[75th]]-AAMC_Raw_Data_for_FY22[[#This Row],[Median]])/25)*15) + AAMC_Raw_Data_for_FY22[[#This Row],[Median]]","v":324550.8},{"$f":"(((AAMC_Raw_Data_for_FY22[[#This Row],[75th]]-AAMC_Raw_Data_for_FY22[[#This Row],[Median]])/25)*20) + AAMC_Raw_Data_for_FY22[[#This Row],[Median]]","v":331279.40000000002},338008,{"$f":"(((AAMC_Raw_Data_for_FY22[[#This Row],[75th]]-AAMC_Raw_Data_for_FY22[[#This Row],[Median]])/25)*30) + AAMC_Raw_Data_for_FY22[[#This Row],[Median]]","v":344736.6},{"$f":"(((AAMC_Raw_Data_for_FY22[[#This Row],[75th]]-AAMC_Raw_Data_for_FY22[[#This Row],[Median]])/25)*35) + AAMC_Raw_Data_for_FY22[[#This Row],[Median]]","v":351465.2},{"$f":"(((AAMC_Raw_Data_for_FY22[[#This Row],[75th]]-AAMC_Raw_Data_for_FY22[[#This Row],[Median]])/25)*40) + AAMC_Raw_Data_for_FY22[[#This Row],[Median]]","v":358193.8}]
[{"$f":"AAMC_Raw_Data_for_FY22[[#This Row],[Source]]&AAMC_Raw_Data_for_FY22[[#This Row],[Type]]&AAMC_Raw_Data_for_FY22[[#This Row],[School Subset]]&AAMC_Raw_Data_for_FY22[[#This Row],[Rank]]&AAMC_Raw_Data_for_FY22[[#This Row],[Degree]]&AAMC_Raw_Data_for_FY22[[#This Row],[Department / Specialty]]&\"L\"","v":"AAMCAcademicPublicProfessorMDPediatric CardiologyL"},"Pediatric Cardiology",2,"AAMC","Academic","Public","Professor","MD","2021-2022",357619,{"$f":"(((AAMC_Raw_Data_for_FY22[[#This Row],[Median]]-AAMC_Raw_Data_for_FY22[[#This Row],[25th]])/25)*5) + AAMC_Raw_Data_for_FY22[[#This Row],[25th]]","v":364748.4},{"$f":"(((AAMC_Raw_Data_for_FY22[[#This Row],[Median]]-AAMC_Raw_Data_for_FY22[[#This Row],[25th]])/25)*10) + AAMC_Raw_Data_for_FY22[[#This Row],[25th]]","v":371877.8},{"$f":"(((AAMC_Raw_Data_for_FY22[[#This Row],[Median]]-AAMC_Raw_Data_for_FY22[[#This Row],[25th]])/25)*15) + AAMC_Raw_Data_for_FY22[[#This Row],[25th]]","v":379007.2},{"$f":"(((AAMC_Raw_Data_for_FY22[[#This Row],[Median]]-AAMC_Raw_Data_for_FY22[[#This Row],[25th]])/25)*20) + AAMC_Raw_Data_for_FY22[[#This Row],[25th]]","v":386136.6},393266,{"$f":"(((AAMC_Raw_Data_for_FY22[[#This Row],[75th]]-AAMC_Raw_Data_for_FY22[[#This Row],[Median]])/25)*5) + AAMC_Raw_Data_for_FY22[[#This Row],[Median]]","v":404014.6},{"$f":"(((AAMC_Raw_Data_for_FY22[[#This Row],[75th]]-AAMC_Raw_Data_for_FY22[[#This Row],[Median]])/25)*10) + AAMC_Raw_Data_for_FY22[[#This Row],[Median]]","v":414763.2},{"$f":"(((AAMC_Raw_Data_for_FY22[[#This Row],[75th]]-AAMC_Raw_Data_for_FY22[[#This Row],[Median]])/25)*15) + AAMC_Raw_Data_for_FY22[[#This Row],[Median]]","v":425511.8},{"$f":"(((AAMC_Raw_Data_for_FY22[[#This Row],[75th]]-AAMC_Raw_Data_for_FY22[[#This Row],[Median]])/25)*20) + AAMC_Raw_Data_for_FY22[[#This Row],[Median]]","v":436260.4},447009,{"$f":"(((AAMC_Raw_Data_for_FY22[[#This Row],[75th]]-AAMC_Raw_Data_for_FY22[[#This Row],[Median]])/25)*30) + AAMC_Raw_Data_for_FY22[[#This Row],[Median]]","v":457757.6},{"$f":"(((AAMC_Raw_Data_for_FY22[[#This Row],[75th]]-AAMC_Raw_Data_for_FY22[[#This Row],[Median]])/25)*35) + AAMC_Raw_Data_for_FY22[[#This Row],[Median]]","v":468506.2},{"$f":"(((AAMC_Raw_Data_for_FY22[[#This Row],[75th]]-AAMC_Raw_Data_for_FY22[[#This Row],[Median]])/25)*40) + AAMC_Raw_Data_for_FY22[[#This Row],[Median]]","v":479254.8}]
[{"$f":"AAMC_Raw_Data_for_FY22[[#This Row],[Source]]&AAMC_Raw_Data_for_FY22[[#This Row],[Type]]&AAMC_Raw_Data_for_FY22[[#This Row],[School Subset]]&AAMC_Raw_Data_for_FY22[[#This Row],[Rank]]&AAMC_Raw_Data_for_FY22[[#This Row],[Degree]]&AAMC_Raw_Data_for_FY22[[#This Row],[Department / Specialty]]&\"L\"","v":"AAMCAcademicPublicChiefMDPediatric CardiologyL"},"Pediatric Cardiology",6,"AAMC","Academic","Public","Chief","MD","2021-2022",364968,{"$f":"(((AAMC_Raw_Data_for_FY22[[#This Row],[Median]]-AAMC_Raw_Data_for_FY22[[#This Row],[25th]])/25)*5) + AAMC_Raw_Data_for_FY22[[#This Row],[25th]]","v":379837.6},{"$f":"(((AAMC_Raw_Data_for_FY22[[#This Row],[Median]]-AAMC_Raw_Data_for_FY22[[#This Row],[25th]])/25)*10) + AAMC_Raw_Data_for_FY22[[#This Row],[25th]]","v":394707.20000000001},{"$f":"(((AAMC_Raw_Data_for_FY22[[#This Row],[Median]]-AAMC_Raw_Data_for_FY22[[#This Row],[25th]])/25)*15) + AAMC_Raw_Data_for_FY22[[#This Row],[25th]]","v":409576.8},{"$f":"(((AAMC_Raw_Data_for_FY22[[#This Row],[Median]]-AAMC_Raw_Data_for_FY22[[#This Row],[25th]])/25)*20) + AAMC_Raw_Data_for_FY22[[#This Row],[25th]]","v":424446.4},439316,{"$f":"(((AAMC_Raw_Data_for_FY22[[#This Row],[75th]]-AAMC_Raw_Data_for_FY22[[#This Row],[Median]])/25)*5) + AAMC_Raw_Data_for_FY22[[#This Row],[Median]]","v":448779.2},{"$f":"(((AAMC_Raw_Data_for_FY22[[#This Row],[75th]]-AAMC_Raw_Data_for_FY22[[#This Row],[Median]])/25)*10) + AAMC_Raw_Data_for_FY22[[#This Row],[Median]]","v":458242.4},{"$f":"(((AAMC_Raw_Data_for_FY22[[#This Row],[75th]]-AAMC_Raw_Data_for_FY22[[#This Row],[Median]])/25)*15) + AAMC_Raw_Data_for_FY22[[#This Row],[Median]]","v":467705.59999999998},{"$f":"(((AAMC_Raw_Data_for_FY22[[#This Row],[75th]]-AAMC_Raw_Data_for_FY22[[#This Row],[Median]])/25)*20) + AAMC_Raw_Data_for_FY22[[#This Row],[Median]]","v":477168.8},486632,{"$f":"(((AAMC_Raw_Data_for_FY22[[#This Row],[75th]]-AAMC_Raw_Data_for_FY22[[#This Row],[Median]])/25)*30) + AAMC_Raw_Data_for_FY22[[#This Row],[Median]]","v":496095.2},{"$f":"(((AAMC_Raw_Data_for_FY22[[#This Row],[75th]]-AAMC_Raw_Data_for_FY22[[#This Row],[Median]])/25)*35) + AAMC_Raw_Data_for_FY22[[#This Row],[Median]]","v":505558.4},{"$f":"(((AAMC_Raw_Data_for_FY22[[#This Row],[75th]]-AAMC_Raw_Data_for_FY22[[#This Row],[Median]])/25)*40) + AAMC_Raw_Data_for_FY22[[#This Row],[Median]]","v":515021.6}]
[{"$f":"AAMC_Raw_Data_for_FY22[[#This Row],[Source]]&AAMC_Raw_Data_for_FY22[[#This Row],[Type]]&AAMC_Raw_Data_for_FY22[[#This Row],[School Subset]]&AAMC_Raw_Data_for_FY22[[#This Row],[Rank]]&AAMC_Raw_Data_for_FY22[[#This Row],[Degree]]&AAMC_Raw_Data_for_FY22[[#This Row],[Department / Specialty]]&\"L\"","v":"AAMCAcademicPublicChairMDPediatric CardiologyL"},"Pediatric Cardiology",1,"AAMC","Academic","Public","Chair","MD","2021-2022",null,{"$f":"(((AAMC_Raw_Data_for_FY22[[#This Row],[Median]]-AAMC_Raw_Data_for_FY22[[#This Row],[25th]])/25)*5) + AAMC_Raw_Data_for_FY22[[#This Row],[25th]]","v":0},{"$f":"(((AAMC_Raw_Data_for_FY22[[#This Row],[Median]]-AAMC_Raw_Data_for_FY22[[#This Row],[25th]])/25)*10) + AAMC_Raw_Data_for_FY22[[#This Row],[25th]]","v":0},{"$f":"(((AAMC_Raw_Data_for_FY22[[#This Row],[Median]]-AAMC_Raw_Data_for_FY22[[#This Row],[25th]])/25)*15) + AAMC_Raw_Data_for_FY22[[#This Row],[25th]]","v":0},{"$f":"(((AAMC_Raw_Data_for_FY22[[#This Row],[Median]]-AAMC_Raw_Data_for_FY22[[#This Row],[25th]])/25)*20) + AAMC_Raw_Data_for_FY22[[#This Row],[25th]]","v":0},null,{"$f":"(((AAMC_Raw_Data_for_FY22[[#This Row],[75th]]-AAMC_Raw_Data_for_FY22[[#This Row],[Median]])/25)*5) + AAMC_Raw_Data_for_FY22[[#This Row],[Median]]","v":0},{"$f":"(((AAMC_Raw_Data_for_FY22[[#This Row],[75th]]-AAMC_Raw_Data_for_FY22[[#This Row],[Median]])/25)*10) + AAMC_Raw_Data_for_FY22[[#This Row],[Median]]","v":0},{"$f":"(((AAMC_Raw_Data_for_FY22[[#This Row],[75th]]-AAMC_Raw_Data_for_FY22[[#This Row],[Median]])/25)*15) + AAMC_Raw_Data_for_FY22[[#This Row],[Median]]","v":0},{"$f":"(((AAMC_Raw_Data_for_FY22[[#This Row],[75th]]-AAMC_Raw_Data_for_FY22[[#This Row],[Median]])/25)*20) + AAMC_Raw_Data_for_FY22[[#This Row],[Median]]","v":0},null,{"$f":"(((AAMC_Raw_Data_for_FY22[[#This Row],[75th]]-AAMC_Raw_Data_for_FY22[[#This Row],[Median]])/25)*30) + AAMC_Raw_Data_for_FY22[[#This Row],[Median]]","v":0},{"$f":"(((AAMC_Raw_Data_for_FY22[[#This Row],[75th]]-AAMC_Raw_Data_for_FY22[[#This Row],[Median]])/25)*35) + AAMC_Raw_Data_for_FY22[[#This Row],[Median]]","v":0},{"$f":"(((AAMC_Raw_Data_for_FY22[[#This Row],[75th]]-AAMC_Raw_Data_for_FY22[[#This Row],[Median]])/25)*40) + AAMC_Raw_Data_for_FY22[[#This Row],[Median]]","v":0}]
[{"$f":"AAMC_Raw_Data_for_FY22[[#This Row],[Source]]&AAMC_Raw_Data_for_FY22[[#This Row],[Type]]&AAMC_Raw_Data_for_FY22[[#This Row],[School Subset]]&AAMC_Raw_Data_for_FY22[[#This Row],[Rank]]&AAMC_Raw_Data_for_FY22[[#This Row],[Degree]]&AAMC_Raw_Data_for_FY22[[#This Row],[Department / Specialty]]&\"L\"","v":"AAMCAcademicPublicAssistantMDPsychology-Peds.L"},"Psychology-Peds.",4,"AAMC","Academic","Public","Assistant","MD","2021-2022",null,{"$f":"(((AAMC_Raw_Data_for_FY22[[#This Row],[Median]]-AAMC_Raw_Data_for_FY22[[#This Row],[25th]])/25)*5) + AAMC_Raw_Data_for_FY22[[#This Row],[25th]]","v":0},{"$f":"(((AAMC_Raw_Data_for_FY22[[#This Row],[Median]]-AAMC_Raw_Data_for_FY22[[#This Row],[25th]])/25)*10) + AAMC_Raw_Data_for_FY22[[#This Row],[25th]]","v":0},{"$f":"(((AAMC_Raw_Data_for_FY22[[#This Row],[Median]]-AAMC_Raw_Data_for_FY22[[#This Row],[25th]])/25)*15) + AAMC_Raw_Data_for_FY22[[#This Row],[25th]]","v":0},{"$f":"(((AAMC_Raw_Data_for_FY22[[#This Row],[Median]]-AAMC_Raw_Data_for_FY22[[#This Row],[25th]])/25)*20) + AAMC_Raw_Data_for_FY22[[#This Row],[25th]]","v":0},null,{"$f":"(((AAMC_Raw_Data_for_FY22[[#This Row],[75th]]-AAMC_Raw_Data_for_FY22[[#This Row],[Median]])/25)*5) + AAMC_Raw_Data_for_FY22[[#This Row],[Median]]","v":0},{"$f":"(((AAMC_Raw_Data_for_FY22[[#This Row],[75th]]-AAMC_Raw_Data_for_FY22[[#This Row],[Median]])/25)*10) + AAMC_Raw_Data_for_FY22[[#This Row],[Median]]","v":0},{"$f":"(((AAMC_Raw_Data_for_FY22[[#This Row],[75th]]-AAMC_Raw_Data_for_FY22[[#This Row],[Median]])/25)*15) + AAMC_Raw_Data_for_FY22[[#This Row],[Median]]","v":0},{"$f":"(((AAMC_Raw_Data_for_FY22[[#This Row],[75th]]-AAMC_Raw_Data_for_FY22[[#This Row],[Median]])/25)*20) + AAMC_Raw_Data_for_FY22[[#This Row],[Median]]","v":0},null,{"$f":"(((AAMC_Raw_Data_for_FY22[[#This Row],[75th]]-AAMC_Raw_Data_for_FY22[[#This Row],[Median]])/25)*30) + AAMC_Raw_Data_for_FY22[[#This Row],[Median]]","v":0},{"$f":"(((AAMC_Raw_Data_for_FY22[[#This Row],[75th]]-AAMC_Raw_Data_for_FY22[[#This Row],[Median]])/25)*35) + AAMC_Raw_Data_for_FY22[[#This Row],[Median]]","v":0},{"$f":"(((AAMC_Raw_Data_for_FY22[[#This Row],[75th]]-AAMC_Raw_Data_for_FY22[[#This Row],[Median]])/25)*40) + AAMC_Raw_Data_for_FY22[[#This Row],[Median]]","v":0}]
[{"$f":"AAMC_Raw_Data_for_FY22[[#This Row],[Source]]&AAMC_Raw_Data_for_FY22[[#This Row],[Type]]&AAMC_Raw_Data_for_FY22[[#This Row],[School Subset]]&AAMC_Raw_Data_for_FY22[[#This Row],[Rank]]&AAMC_Raw_Data_for_FY22[[#This Row],[Degree]]&AAMC_Raw_Data_for_FY22[[#This Row],[Department / Specialty]]&\"L\"","v":"AAMCAcademicPublicAssociateMDPsychology-Peds.L"},"Psychology-Peds.",3,"AAMC","Academic","Public","Associate","MD","2021-2022",null,{"$f":"(((AAMC_Raw_Data_for_FY22[[#This Row],[Median]]-AAMC_Raw_Data_for_FY22[[#This Row],[25th]])/25)*5) + AAMC_Raw_Data_for_FY22[[#This Row],[25th]]","v":0},{"$f":"(((AAMC_Raw_Data_for_FY22[[#This Row],[Median]]-AAMC_Raw_Data_for_FY22[[#This Row],[25th]])/25)*10) + AAMC_Raw_Data_for_FY22[[#This Row],[25th]]","v":0},{"$f":"(((AAMC_Raw_Data_for_FY22[[#This Row],[Median]]-AAMC_Raw_Data_for_FY22[[#This Row],[25th]])/25)*15) + AAMC_Raw_Data_for_FY22[[#This Row],[25th]]","v":0},{"$f":"(((AAMC_Raw_Data_for_FY22[[#This Row],[Median]]-AAMC_Raw_Data_for_FY22[[#This Row],[25th]])/25)*20) + AAMC_Raw_Data_for_FY22[[#This Row],[25th]]","v":0},null,{"$f":"(((AAMC_Raw_Data_for_FY22[[#This Row],[75th]]-AAMC_Raw_Data_for_FY22[[#This Row],[Median]])/25)*5) + AAMC_Raw_Data_for_FY22[[#This Row],[Median]]","v":0},{"$f":"(((AAMC_Raw_Data_for_FY22[[#This Row],[75th]]-AAMC_Raw_Data_for_FY22[[#This Row],[Median]])/25)*10) + AAMC_Raw_Data_for_FY22[[#This Row],[Median]]","v":0},{"$f":"(((AAMC_Raw_Data_for_FY22[[#This Row],[75th]]-AAMC_Raw_Data_for_FY22[[#This Row],[Median]])/25)*15) + AAMC_Raw_Data_for_FY22[[#This Row],[Median]]","v":0},{"$f":"(((AAMC_Raw_Data_for_FY22[[#This Row],[75th]]-AAMC_Raw_Data_for_FY22[[#This Row],[Median]])/25)*20) + AAMC_Raw_Data_for_FY22[[#This Row],[Median]]","v":0},null,{"$f":"(((AAMC_Raw_Data_for_FY22[[#This Row],[75th]]-AAMC_Raw_Data_for_FY22[[#This Row],[Median]])/25)*30) + AAMC_Raw_Data_for_FY22[[#This Row],[Median]]","v":0},{"$f":"(((AAMC_Raw_Data_for_FY22[[#This Row],[75th]]-AAMC_Raw_Data_for_FY22[[#This Row],[Median]])/25)*35) + AAMC_Raw_Data_for_FY22[[#This Row],[Median]]","v":0},{"$f":"(((AAMC_Raw_Data_for_FY22[[#This Row],[75th]]-AAMC_Raw_Data_for_FY22[[#This Row],[Median]])/25)*40) + AAMC_Raw_Data_for_FY22[[#This Row],[Median]]","v":0}]
[{"$f":"AAMC_Raw_Data_for_FY22[[#This Row],[Source]]&AAMC_Raw_Data_for_FY22[[#This Row],[Type]]&AAMC_Raw_Data_for_FY22[[#This Row],[School Subset]]&AAMC_Raw_Data_for_FY22[[#This Row],[Rank]]&AAMC_Raw_Data_for_FY22[[#This Row],[Degree]]&AAMC_Raw_Data_for_FY22[[#This Row],[Department / Specialty]]&\"L\"","v":"AAMCAcademicPublicInstructorMDPulmonary-Peds.L"},"Pulmonary-Peds.",5,"AAMC","Academic","Public","Instructor","MD","2021-2022",null,{"$f":"(((AAMC_Raw_Data_for_FY22[[#This Row],[Median]]-AAMC_Raw_Data_for_FY22[[#This Row],[25th]])/25)*5) + AAMC_Raw_Data_for_FY22[[#This Row],[25th]]","v":0},{"$f":"(((AAMC_Raw_Data_for_FY22[[#This Row],[Median]]-AAMC_Raw_Data_for_FY22[[#This Row],[25th]])/25)*10) + AAMC_Raw_Data_for_FY22[[#This Row],[25th]]","v":0},{"$f":"(((AAMC_Raw_Data_for_FY22[[#This Row],[Median]]-AAMC_Raw_Data_for_FY22[[#This Row],[25th]])/25)*15) + AAMC_Raw_Data_for_FY22[[#This Row],[25th]]","v":0},{"$f":"(((AAMC_Raw_Data_for_FY22[[#This Row],[Median]]-AAMC_Raw_Data_for_FY22[[#This Row],[25th]])/25)*20) + AAMC_Raw_Data_for_FY22[[#This Row],[25th]]","v":0},null,{"$f":"(((AAMC_Raw_Data_for_FY22[[#This Row],[75th]]-AAMC_Raw_Data_for_FY22[[#This Row],[Median]])/25)*5) + AAMC_Raw_Data_for_FY22[[#This Row],[Median]]","v":0},{"$f":"(((AAMC_Raw_Data_for_FY22[[#This Row],[75th]]-AAMC_Raw_Data_for_FY22[[#This Row],[Median]])/25)*10) + AAMC_Raw_Data_for_FY22[[#This Row],[Median]]","v":0},{"$f":"(((AAMC_Raw_Data_for_FY22[[#This Row],[75th]]-AAMC_Raw_Data_for_FY22[[#This Row],[Median]])/25)*15) + AAMC_Raw_Data_for_FY22[[#This Row],[Median]]","v":0},{"$f":"(((AAMC_Raw_Data_for_FY22[[#This Row],[75th]]-AAMC_Raw_Data_for_FY22[[#This Row],[Median]])/25)*20) + AAMC_Raw_Data_for_FY22[[#This Row],[Median]]","v":0},null,{"$f":"(((AAMC_Raw_Data_for_FY22[[#This Row],[75th]]-AAMC_Raw_Data_for_FY22[[#This Row],[Median]])/25)*30) + AAMC_Raw_Data_for_FY22[[#This Row],[Median]]","v":0},{"$f":"(((AAMC_Raw_Data_for_FY22[[#This Row],[75th]]-AAMC_Raw_Data_for_FY22[[#This Row],[Median]])/25)*35) + AAMC_Raw_Data_for_FY22[[#This Row],[Median]]","v":0},{"$f":"(((AAMC_Raw_Data_for_FY22[[#This Row],[75th]]-AAMC_Raw_Data_for_FY22[[#This Row],[Median]])/25)*40) + AAMC_Raw_Data_for_FY22[[#This Row],[Median]]","v":0}]
[{"$f":"AAMC_Raw_Data_for_FY22[[#This Row],[Source]]&AAMC_Raw_Data_for_FY22[[#This Row],[Type]]&AAMC_Raw_Data_for_FY22[[#This Row],[School Subset]]&AAMC_Raw_Data_for_FY22[[#This Row],[Rank]]&AAMC_Raw_Data_for_FY22[[#This Row],[Degree]]&AAMC_Raw_Data_for_FY22[[#This Row],[Department / Specialty]]&\"L\"","v":"AAMCAcademicPublicAssistantMDPulmonary-Peds.L"},"Pulmonary-Peds.",4,"AAMC","Academic","Public","Assistant","MD","2021-2022",180193,{"$f":"(((AAMC_Raw_Data_for_FY22[[#This Row],[Median]]-AAMC_Raw_Data_for_FY22[[#This Row],[25th]])/25)*5) + AAMC_Raw_Data_for_FY22[[#This Row],[25th]]","v":182623},{"$f":"(((AAMC_Raw_Data_for_FY22[[#This Row],[Median]]-AAMC_Raw_Data_for_FY22[[#This Row],[25th]])/25)*10) + AAMC_Raw_Data_for_FY22[[#This Row],[25th]]","v":185053},{"$f":"(((AAMC_Raw_Data_for_FY22[[#This Row],[Median]]-AAMC_Raw_Data_for_FY22[[#This Row],[25th]])/25)*15) + AAMC_Raw_Data_for_FY22[[#This Row],[25th]]","v":187483},{"$f":"(((AAMC_Raw_Data_for_FY22[[#This Row],[Median]]-AAMC_Raw_Data_for_FY22[[#This Row],[25th]])/25)*20) + AAMC_Raw_Data_for_FY22[[#This Row],[25th]]","v":189913},192343,{"$f":"(((AAMC_Raw_Data_for_FY22[[#This Row],[75th]]-AAMC_Raw_Data_for_FY22[[#This Row],[Median]])/25)*5) + AAMC_Raw_Data_for_FY22[[#This Row],[Median]]","v":195439.4},{"$f":"(((AAMC_Raw_Data_for_FY22[[#This Row],[75th]]-AAMC_Raw_Data_for_FY22[[#This Row],[Median]])/25)*10) + AAMC_Raw_Data_for_FY22[[#This Row],[Median]]","v":198535.8},{"$f":"(((AAMC_Raw_Data_for_FY22[[#This Row],[75th]]-AAMC_Raw_Data_for_FY22[[#This Row],[Median]])/25)*15) + AAMC_Raw_Data_for_FY22[[#This Row],[Median]]","v":201632.2},{"$f":"(((AAMC_Raw_Data_for_FY22[[#This Row],[75th]]-AAMC_Raw_Data_for_FY22[[#This Row],[Median]])/25)*20) + AAMC_Raw_Data_for_FY22[[#This Row],[Median]]","v":204728.6},207825,{"$f":"(((AAMC_Raw_Data_for_FY22[[#This Row],[75th]]-AAMC_Raw_Data_for_FY22[[#This Row],[Median]])/25)*30) + AAMC_Raw_Data_for_FY22[[#This Row],[Median]]","v":210921.4},{"$f":"(((AAMC_Raw_Data_for_FY22[[#This Row],[75th]]-AAMC_Raw_Data_for_FY22[[#This Row],[Median]])/25)*35) + AAMC_Raw_Data_for_FY22[[#This Row],[Median]]","v":214017.8},{"$f":"(((AAMC_Raw_Data_for_FY22[[#This Row],[75th]]-AAMC_Raw_Data_for_FY22[[#This Row],[Median]])/25)*40) + AAMC_Raw_Data_for_FY22[[#This Row],[Median]]","v":217114.2}]
[{"$f":"AAMC_Raw_Data_for_FY22[[#This Row],[Source]]&AAMC_Raw_Data_for_FY22[[#This Row],[Type]]&AAMC_Raw_Data_for_FY22[[#This Row],[School Subset]]&AAMC_Raw_Data_for_FY22[[#This Row],[Rank]]&AAMC_Raw_Data_for_FY22[[#This Row],[Degree]]&AAMC_Raw_Data_for_FY22[[#This Row],[Department / Specialty]]&\"L\"","v":"AAMCAcademicPublicAssociateMDPulmonary-Peds.L"},"Pulmonary-Peds.",3,"AAMC","Academic","Public","Associate","MD","2021-2022",208818,{"$f":"(((AAMC_Raw_Data_for_FY22[[#This Row],[Median]]-AAMC_Raw_Data_for_FY22[[#This Row],[25th]])/25)*5) + AAMC_Raw_Data_for_FY22[[#This Row],[25th]]","v":212337.2},{"$f":"(((AAMC_Raw_Data_for_FY22[[#This Row],[Median]]-AAMC_Raw_Data_for_FY22[[#This Row],[25th]])/25)*10) + AAMC_Raw_Data_for_FY22[[#This Row],[25th]]","v":215856.4},{"$f":"(((AAMC_Raw_Data_for_FY22[[#This Row],[Median]]-AAMC_Raw_Data_for_FY22[[#This Row],[25th]])/25)*15) + AAMC_Raw_Data_for_FY22[[#This Row],[25th]]","v":219375.6},{"$f":"(((AAMC_Raw_Data_for_FY22[[#This Row],[Median]]-AAMC_Raw_Data_for_FY22[[#This Row],[25th]])/25)*20) + AAMC_Raw_Data_for_FY22[[#This Row],[25th]]","v":222894.8},226414,{"$f":"(((AAMC_Raw_Data_for_FY22[[#This Row],[75th]]-AAMC_Raw_Data_for_FY22[[#This Row],[Median]])/25)*5) + AAMC_Raw_Data_for_FY22[[#This Row],[Median]]","v":232640.6},{"$f":"(((AAMC_Raw_Data_for_FY22[[#This Row],[75th]]-AAMC_Raw_Data_for_FY22[[#This Row],[Median]])/25)*10) + AAMC_Raw_Data_for_FY22[[#This Row],[Median]]","v":238867.20000000001},{"$f":"(((AAMC_Raw_Data_for_FY22[[#This Row],[75th]]-AAMC_Raw_Data_for_FY22[[#This Row],[Median]])/25)*15) + AAMC_Raw_Data_for_FY22[[#This Row],[Median]]","v":245093.8},{"$f":"(((AAMC_Raw_Data_for_FY22[[#This Row],[75th]]-AAMC_Raw_Data_for_FY22[[#This Row],[Median]])/25)*20) + AAMC_Raw_Data_for_FY22[[#This Row],[Median]]","v":251320.4},257547,{"$f":"(((AAMC_Raw_Data_for_FY22[[#This Row],[75th]]-AAMC_Raw_Data_for_FY22[[#This Row],[Median]])/25)*30) + AAMC_Raw_Data_for_FY22[[#This Row],[Median]]","v":263773.59999999998},{"$f":"(((AAMC_Raw_Data_for_FY22[[#This Row],[75th]]-AAMC_Raw_Data_for_FY22[[#This Row],[Median]])/25)*35) + AAMC_Raw_Data_for_FY22[[#This Row],[Median]]","v":270000.2},{"$f":"(((AAMC_Raw_Data_for_FY22[[#This Row],[75th]]-AAMC_Raw_Data_for_FY22[[#This Row],[Median]])/25)*40) + AAMC_Raw_Data_for_FY22[[#This Row],[Median]]","v":276226.8}]
[{"$f":"AAMC_Raw_Data_for_FY22[[#This Row],[Source]]&AAMC_Raw_Data_for_FY22[[#This Row],[Type]]&AAMC_Raw_Data_for_FY22[[#This Row],[School Subset]]&AAMC_Raw_Data_for_FY22[[#This Row],[Rank]]&AAMC_Raw_Data_for_FY22[[#This Row],[Degree]]&AAMC_Raw_Data_for_FY22[[#This Row],[Department / Specialty]]&\"L\"","v":"AAMCAcademicPublicProfessorMDPulmonary-Peds.L"},"Pulmonary-Peds.",2,"AAMC","Academic","Public","Professor","MD","2021-2022",250935,{"$f":"(((AAMC_Raw_Data_for_FY22[[#This Row],[Median]]-AAMC_Raw_Data_for_FY22[[#This Row],[25th]])/25)*5) + AAMC_Raw_Data_for_FY22[[#This Row],[25th]]","v":255800.6},{"$f":"(((AAMC_Raw_Data_for_FY22[[#This Row],[Median]]-AAMC_Raw_Data_for_FY22[[#This Row],[25th]])/25)*10) + AAMC_Raw_Data_for_FY22[[#This Row],[25th]]","v":260666.2},{"$f":"(((AAMC_Raw_Data_for_FY22[[#This Row],[Median]]-AAMC_Raw_Data_for_FY22[[#This Row],[25th]])/25)*15) + AAMC_Raw_Data_for_FY22[[#This Row],[25th]]","v":265531.8},{"$f":"(((AAMC_Raw_Data_for_FY22[[#This Row],[Median]]-AAMC_Raw_Data_for_FY22[[#This Row],[25th]])/25)*20) + AAMC_Raw_Data_for_FY22[[#This Row],[25th]]","v":270397.40000000002},275263,{"$f":"(((AAMC_Raw_Data_for_FY22[[#This Row],[75th]]-AAMC_Raw_Data_for_FY22[[#This Row],[Median]])/25)*5) + AAMC_Raw_Data_for_FY22[[#This Row],[Median]]","v":280770.2},{"$f":"(((AAMC_Raw_Data_for_FY22[[#This Row],[75th]]-AAMC_Raw_Data_for_FY22[[#This Row],[Median]])/25)*10) + AAMC_Raw_Data_for_FY22[[#This Row],[Median]]","v":286277.40000000002},{"$f":"(((AAMC_Raw_Data_for_FY22[[#This Row],[75th]]-AAMC_Raw_Data_for_FY22[[#This Row],[Median]])/25)*15) + AAMC_Raw_Data_for_FY22[[#This Row],[Median]]","v":291784.59999999998},{"$f":"(((AAMC_Raw_Data_for_FY22[[#This Row],[75th]]-AAMC_Raw_Data_for_FY22[[#This Row],[Median]])/25)*20) + AAMC_Raw_Data_for_FY22[[#This Row],[Median]]","v":297291.8},302799,{"$f":"(((AAMC_Raw_Data_for_FY22[[#This Row],[75th]]-AAMC_Raw_Data_for_FY22[[#This Row],[Median]])/25)*30) + AAMC_Raw_Data_for_FY22[[#This Row],[Median]]","v":308306.2},{"$f":"(((AAMC_Raw_Data_for_FY22[[#This Row],[75th]]-AAMC_Raw_Data_for_FY22[[#This Row],[Median]])/25)*35) + AAMC_Raw_Data_for_FY22[[#This Row],[Median]]","v":313813.40000000002},{"$f":"(((AAMC_Raw_Data_for_FY22[[#This Row],[75th]]-AAMC_Raw_Data_for_FY22[[#This Row],[Median]])/25)*40) + AAMC_Raw_Data_for_FY22[[#This Row],[Median]]","v":319320.59999999998}]
[{"$f":"AAMC_Raw_Data_for_FY22[[#This Row],[Source]]&AAMC_Raw_Data_for_FY22[[#This Row],[Type]]&AAMC_Raw_Data_for_FY22[[#This Row],[School Subset]]&AAMC_Raw_Data_for_FY22[[#This Row],[Rank]]&AAMC_Raw_Data_for_FY22[[#This Row],[Degree]]&AAMC_Raw_Data_for_FY22[[#This Row],[Department / Specialty]]&\"L\"","v":"AAMCAcademicPublicChiefMDPulmonary-Peds.L"},"Pulmonary-Peds.",6,"AAMC","Academic","Public","Chief","MD","2021-2022",262288,{"$f":"(((AAMC_Raw_Data_for_FY22[[#This Row],[Median]]-AAMC_Raw_Data_for_FY22[[#This Row],[25th]])/25)*5) + AAMC_Raw_Data_for_FY22[[#This Row],[25th]]","v":269402.8},{"$f":"(((AAMC_Raw_Data_for_FY22[[#This Row],[Median]]-AAMC_Raw_Data_for_FY22[[#This Row],[25th]])/25)*10) + AAMC_Raw_Data_for_FY22[[#This Row],[25th]]","v":276517.59999999998},{"$f":"(((AAMC_Raw_Data_for_FY22[[#This Row],[Median]]-AAMC_Raw_Data_for_FY22[[#This Row],[25th]])/25)*15) + AAMC_Raw_Data_for_FY22[[#This Row],[25th]]","v":283632.40000000002},{"$f":"(((AAMC_Raw_Data_for_FY22[[#This Row],[Median]]-AAMC_Raw_Data_for_FY22[[#This Row],[25th]])/25)*20) + AAMC_Raw_Data_for_FY22[[#This Row],[25th]]","v":290747.2},297862,{"$f":"(((AAMC_Raw_Data_for_FY22[[#This Row],[75th]]-AAMC_Raw_Data_for_FY22[[#This Row],[Median]])/25)*5) + AAMC_Raw_Data_for_FY22[[#This Row],[Median]]","v":307883.2},{"$f":"(((AAMC_Raw_Data_for_FY22[[#This Row],[75th]]-AAMC_Raw_Data_for_FY22[[#This Row],[Median]])/25)*10) + AAMC_Raw_Data_for_FY22[[#This Row],[Median]]","v":317904.40000000002},{"$f":"(((AAMC_Raw_Data_for_FY22[[#This Row],[75th]]-AAMC_Raw_Data_for_FY22[[#This Row],[Median]])/25)*15) + AAMC_Raw_Data_for_FY22[[#This Row],[Median]]","v":327925.59999999998},{"$f":"(((AAMC_Raw_Data_for_FY22[[#This Row],[75th]]-AAMC_Raw_Data_for_FY22[[#This Row],[Median]])/25)*20) + AAMC_Raw_Data_for_FY22[[#This Row],[Median]]","v":337946.8},347968,{"$f":"(((AAMC_Raw_Data_for_FY22[[#This Row],[75th]]-AAMC_Raw_Data_for_FY22[[#This Row],[Median]])/25)*30) + AAMC_Raw_Data_for_FY22[[#This Row],[Median]]","v":357989.2},{"$f":"(((AAMC_Raw_Data_for_FY22[[#This Row],[75th]]-AAMC_Raw_Data_for_FY22[[#This Row],[Median]])/25)*35) + AAMC_Raw_Data_for_FY22[[#This Row],[Median]]","v":368010.4},{"$f":"(((AAMC_Raw_Data_for_FY22[[#This Row],[75th]]-AAMC_Raw_Data_for_FY22[[#This Row],[Median]])/25)*40) + AAMC_Raw_Data_for_FY22[[#This Row],[Median]]","v":378031.6}]
[{"$f":"AAMC_Raw_Data_for_FY22[[#This Row],[Source]]&AAMC_Raw_Data_for_FY22[[#This Row],[Type]]&AAMC_Raw_Data_for_FY22[[#This Row],[School Subset]]&AAMC_Raw_Data_for_FY22[[#This Row],[Rank]]&AAMC_Raw_Data_for_FY22[[#This Row],[Degree]]&AAMC_Raw_Data_for_FY22[[#This Row],[Department / Specialty]]&\"L\"","v":"AAMCAcademicPublicChairMDPulmonary-Peds.L"},"Pulmonary-Peds.",1,"AAMC","Academic","Public","Chair","MD","2021-2022",492435,{"$f":"(((AAMC_Raw_Data_for_FY22[[#This Row],[Median]]-AAMC_Raw_Data_for_FY22[[#This Row],[25th]])/25)*5) + AAMC_Raw_Data_for_FY22[[#This Row],[25th]]","v":508757.4},{"$f":"(((AAMC_Raw_Data_for_FY22[[#This Row],[Median]]-AAMC_Raw_Data_for_FY22[[#This Row],[25th]])/25)*10) + AAMC_Raw_Data_for_FY22[[#This Row],[25th]]","v":525079.80000000005},{"$f":"(((AAMC_Raw_Data_for_FY22[[#This Row],[Median]]-AAMC_Raw_Data_for_FY22[[#This Row],[25th]])/25)*15) + AAMC_Raw_Data_for_FY22[[#This Row],[25th]]","v":541402.19999999995},{"$f":"(((AAMC_Raw_Data_for_FY22[[#This Row],[Median]]-AAMC_Raw_Data_for_FY22[[#This Row],[25th]])/25)*20) + AAMC_Raw_Data_for_FY22[[#This Row],[25th]]","v":557724.6},574047,{"$f":"(((AAMC_Raw_Data_for_FY22[[#This Row],[75th]]-AAMC_Raw_Data_for_FY22[[#This Row],[Median]])/25)*5) + AAMC_Raw_Data_for_FY22[[#This Row],[Median]]","v":581948.6},{"$f":"(((AAMC_Raw_Data_for_FY22[[#This Row],[75th]]-AAMC_Raw_Data_for_FY22[[#This Row],[Median]])/25)*10) + AAMC_Raw_Data_for_FY22[[#This Row],[Median]]","v":589850.19999999995},{"$f":"(((AAMC_Raw_Data_for_FY22[[#This Row],[75th]]-AAMC_Raw_Data_for_FY22[[#This Row],[Median]])/25)*15) + AAMC_Raw_Data_for_FY22[[#This Row],[Median]]","v":597751.80000000005},{"$f":"(((AAMC_Raw_Data_for_FY22[[#This Row],[75th]]-AAMC_Raw_Data_for_FY22[[#This Row],[Median]])/25)*20) + AAMC_Raw_Data_for_FY22[[#This Row],[Median]]","v":605653.4},613555,{"$f":"(((AAMC_Raw_Data_for_FY22[[#This Row],[75th]]-AAMC_Raw_Data_for_FY22[[#This Row],[Median]])/25)*30) + AAMC_Raw_Data_for_FY22[[#This Row],[Median]]","v":621456.6},{"$f":"(((AAMC_Raw_Data_for_FY22[[#This Row],[75th]]-AAMC_Raw_Data_for_FY22[[#This Row],[Median]])/25)*35) + AAMC_Raw_Data_for_FY22[[#This Row],[Median]]","v":629358.19999999995},{"$f":"(((AAMC_Raw_Data_for_FY22[[#This Row],[75th]]-AAMC_Raw_Data_for_FY22[[#This Row],[Median]])/25)*40) + AAMC_Raw_Data_for_FY22[[#This Row],[Median]]","v":637259.80000000005}]
[{"$f":"AAMC_Raw_Data_for_FY22[[#This Row],[Source]]&AAMC_Raw_Data_for_FY22[[#This Row],[Type]]&AAMC_Raw_Data_for_FY22[[#This Row],[School Subset]]&AAMC_Raw_Data_for_FY22[[#This Row],[Rank]]&AAMC_Raw_Data_for_FY22[[#This Row],[Degree]]&AAMC_Raw_Data_for_FY22[[#This Row],[Department / Specialty]]&\"L\"","v":"AAMCAcademicPublicInstructorMDRheumatology-Peds.L"},"Rheumatology-Peds.",5,"AAMC","Academic","Public","Instructor","MD","2021-2022",null,{"$f":"(((AAMC_Raw_Data_for_FY22[[#This Row],[Median]]-AAMC_Raw_Data_for_FY22[[#This Row],[25th]])/25)*5) + AAMC_Raw_Data_for_FY22[[#This Row],[25th]]","v":0},{"$f":"(((AAMC_Raw_Data_for_FY22[[#This Row],[Median]]-AAMC_Raw_Data_for_FY22[[#This Row],[25th]])/25)*10) + AAMC_Raw_Data_for_FY22[[#This Row],[25th]]","v":0},{"$f":"(((AAMC_Raw_Data_for_FY22[[#This Row],[Median]]-AAMC_Raw_Data_for_FY22[[#This Row],[25th]])/25)*15) + AAMC_Raw_Data_for_FY22[[#This Row],[25th]]","v":0},{"$f":"(((AAMC_Raw_Data_for_FY22[[#This Row],[Median]]-AAMC_Raw_Data_for_FY22[[#This Row],[25th]])/25)*20) + AAMC_Raw_Data_for_FY22[[#This Row],[25th]]","v":0},null,{"$f":"(((AAMC_Raw_Data_for_FY22[[#This Row],[75th]]-AAMC_Raw_Data_for_FY22[[#This Row],[Median]])/25)*5) + AAMC_Raw_Data_for_FY22[[#This Row],[Median]]","v":0},{"$f":"(((AAMC_Raw_Data_for_FY22[[#This Row],[75th]]-AAMC_Raw_Data_for_FY22[[#This Row],[Median]])/25)*10) + AAMC_Raw_Data_for_FY22[[#This Row],[Median]]","v":0},{"$f":"(((AAMC_Raw_Data_for_FY22[[#This Row],[75th]]-AAMC_Raw_Data_for_FY22[[#This Row],[Median]])/25)*15) + AAMC_Raw_Data_for_FY22[[#This Row],[Median]]","v":0},{"$f":"(((AAMC_Raw_Data_for_FY22[[#This Row],[75th]]-AAMC_Raw_Data_for_FY22[[#This Row],[Median]])/25)*20) + AAMC_Raw_Data_for_FY22[[#This Row],[Median]]","v":0},null,{"$f":"(((AAMC_Raw_Data_for_FY22[[#This Row],[75th]]-AAMC_Raw_Data_for_FY22[[#This Row],[Median]])/25)*30) + AAMC_Raw_Data_for_FY22[[#This Row],[Median]]","v":0},{"$f":"(((AAMC_Raw_Data_for_FY22[[#This Row],[75th]]-AAMC_Raw_Data_for_FY22[[#This Row],[Median]])/25)*35) + AAMC_Raw_Data_for_FY22[[#This Row],[Median]]","v":0},{"$f":"(((AAMC_Raw_Data_for_FY22[[#This Row],[75th]]-AAMC_Raw_Data_for_FY22[[#This Row],[Median]])/25)*40) + AAMC_Raw_Data_for_FY22[[#This Row],[Median]]","v":0}]
[{"$f":"AAMC_Raw_Data_for_FY22[[#This Row],[Source]]&AAMC_Raw_Data_for_FY22[[#This Row],[Type]]&AAMC_Raw_Data_for_FY22[[#This Row],[School Subset]]&AAMC_Raw_Data_for_FY22[[#This Row],[Rank]]&AAMC_Raw_Data_for_FY22[[#This Row],[Degree]]&AAMC_Raw_Data_for_FY22[[#This Row],[Department / Specialty]]&\"L\"","v":"AAMCAcademicPublicAssistantMDRheumatology-Peds.L"},"Rheumatology-Peds.",4,"AAMC","Academic","Public","Assistant","MD","2021-2022",166328,{"$f":"(((AAMC_Raw_Data_for_FY22[[#This Row],[Median]]-AAMC_Raw_Data_for_FY22[[#This Row],[25th]])/25)*5) + AAMC_Raw_Data_for_FY22[[#This Row],[25th]]","v":167694.20000000001},{"$f":"(((AAMC_Raw_Data_for_FY22[[#This Row],[Median]]-AAMC_Raw_Data_for_FY22[[#This Row],[25th]])/25)*10) + AAMC_Raw_Data_for_FY22[[#This Row],[25th]]","v":169060.4},{"$f":"(((AAMC_Raw_Data_for_FY22[[#This Row],[Median]]-AAMC_Raw_Data_for_FY22[[#This Row],[25th]])/25)*15) + AAMC_Raw_Data_for_FY22[[#This Row],[25th]]","v":170426.6},{"$f":"(((AAMC_Raw_Data_for_FY22[[#This Row],[Median]]-AAMC_Raw_Data_for_FY22[[#This Row],[25th]])/25)*20) + AAMC_Raw_Data_for_FY22[[#This Row],[25th]]","v":171792.8},173159,{"$f":"(((AAMC_Raw_Data_for_FY22[[#This Row],[75th]]-AAMC_Raw_Data_for_FY22[[#This Row],[Median]])/25)*5) + AAMC_Raw_Data_for_FY22[[#This Row],[Median]]","v":176099.6},{"$f":"(((AAMC_Raw_Data_for_FY22[[#This Row],[75th]]-AAMC_Raw_Data_for_FY22[[#This Row],[Median]])/25)*10) + AAMC_Raw_Data_for_FY22[[#This Row],[Median]]","v":179040.2},{"$f":"(((AAMC_Raw_Data_for_FY22[[#This Row],[75th]]-AAMC_Raw_Data_for_FY22[[#This Row],[Median]])/25)*15) + AAMC_Raw_Data_for_FY22[[#This Row],[Median]]","v":181980.79999999999},{"$f":"(((AAMC_Raw_Data_for_FY22[[#This Row],[75th]]-AAMC_Raw_Data_for_FY22[[#This Row],[Median]])/25)*20) + AAMC_Raw_Data_for_FY22[[#This Row],[Median]]","v":184921.4},187862,{"$f":"(((AAMC_Raw_Data_for_FY22[[#This Row],[75th]]-AAMC_Raw_Data_for_FY22[[#This Row],[Median]])/25)*30) + AAMC_Raw_Data_for_FY22[[#This Row],[Median]]","v":190802.6},{"$f":"(((AAMC_Raw_Data_for_FY22[[#This Row],[75th]]-AAMC_Raw_Data_for_FY22[[#This Row],[Median]])/25)*35) + AAMC_Raw_Data_for_FY22[[#This Row],[Median]]","v":193743.2},{"$f":"(((AAMC_Raw_Data_for_FY22[[#This Row],[75th]]-AAMC_Raw_Data_for_FY22[[#This Row],[Median]])/25)*40) + AAMC_Raw_Data_for_FY22[[#This Row],[Median]]","v":196683.8}]
[{"$f":"AAMC_Raw_Data_for_FY22[[#This Row],[Source]]&AAMC_Raw_Data_for_FY22[[#This Row],[Type]]&AAMC_Raw_Data_for_FY22[[#This Row],[School Subset]]&AAMC_Raw_Data_for_FY22[[#This Row],[Rank]]&AAMC_Raw_Data_for_FY22[[#This Row],[Degree]]&AAMC_Raw_Data_for_FY22[[#This Row],[Department / Specialty]]&\"L\"","v":"AAMCAcademicPublicAssociateMDRheumatology-Peds.L"},"Rheumatology-Peds.",3,"AAMC","Academic","Public","Associate","MD","2021-2022",195358,{"$f":"(((AAMC_Raw_Data_for_FY22[[#This Row],[Median]]-AAMC_Raw_Data_for_FY22[[#This Row],[25th]])/25)*5) + AAMC_Raw_Data_for_FY22[[#This Row],[25th]]","v":197970.4},{"$f":"(((AAMC_Raw_Data_for_FY22[[#This Row],[Median]]-AAMC_Raw_Data_for_FY22[[#This Row],[25th]])/25)*10) + AAMC_Raw_Data_for_FY22[[#This Row],[25th]]","v":200582.8},{"$f":"(((AAMC_Raw_Data_for_FY22[[#This Row],[Median]]-AAMC_Raw_Data_for_FY22[[#This Row],[25th]])/25)*15) + AAMC_Raw_Data_for_FY22[[#This Row],[25th]]","v":203195.2},{"$f":"(((AAMC_Raw_Data_for_FY22[[#This Row],[Median]]-AAMC_Raw_Data_for_FY22[[#This Row],[25th]])/25)*20) + AAMC_Raw_Data_for_FY22[[#This Row],[25th]]","v":205807.6},208420,{"$f":"(((AAMC_Raw_Data_for_FY22[[#This Row],[75th]]-AAMC_Raw_Data_for_FY22[[#This Row],[Median]])/25)*5) + AAMC_Raw_Data_for_FY22[[#This Row],[Median]]","v":210425.60000000001},{"$f":"(((AAMC_Raw_Data_for_FY22[[#This Row],[75th]]-AAMC_Raw_Data_for_FY22[[#This Row],[Median]])/25)*10) + AAMC_Raw_Data_for_FY22[[#This Row],[Median]]","v":212431.2},{"$f":"(((AAMC_Raw_Data_for_FY22[[#This Row],[75th]]-AAMC_Raw_Data_for_FY22[[#This Row],[Median]])/25)*15) + AAMC_Raw_Data_for_FY22[[#This Row],[Median]]","v":214436.8},{"$f":"(((AAMC_Raw_Data_for_FY22[[#This Row],[75th]]-AAMC_Raw_Data_for_FY22[[#This Row],[Median]])/25)*20) + AAMC_Raw_Data_for_FY22[[#This Row],[Median]]","v":216442.4},218448,{"$f":"(((AAMC_Raw_Data_for_FY22[[#This Row],[75th]]-AAMC_Raw_Data_for_FY22[[#This Row],[Median]])/25)*30) + AAMC_Raw_Data_for_FY22[[#This Row],[Median]]","v":220453.6},{"$f":"(((AAMC_Raw_Data_for_FY22[[#This Row],[75th]]-AAMC_Raw_Data_for_FY22[[#This Row],[Median]])/25)*35) + AAMC_Raw_Data_for_FY22[[#This Row],[Median]]","v":222459.2},{"$f":"(((AAMC_Raw_Data_for_FY22[[#This Row],[75th]]-AAMC_Raw_Data_for_FY22[[#This Row],[Median]])/25)*40) + AAMC_Raw_Data_for_FY22[[#This Row],[Median]]","v":224464.8}]
[{"$f":"AAMC_Raw_Data_for_FY22[[#This Row],[Source]]&AAMC_Raw_Data_for_FY22[[#This Row],[Type]]&AAMC_Raw_Data_for_FY22[[#This Row],[School Subset]]&AAMC_Raw_Data_for_FY22[[#This Row],[Rank]]&AAMC_Raw_Data_for_FY22[[#This Row],[Degree]]&AAMC_Raw_Data_for_FY22[[#This Row],[Department / Specialty]]&\"L\"","v":"AAMCAcademicPublicProfessorMDRheumatology-Peds.L"},"Rheumatology-Peds.",2,"AAMC","Academic","Public","Professor","MD","2021-2022",254922,{"$f":"(((AAMC_Raw_Data_for_FY22[[#This Row],[Median]]-AAMC_Raw_Data_for_FY22[[#This Row],[25th]])/25)*5) + AAMC_Raw_Data_for_FY22[[#This Row],[25th]]","v":261376.6},{"$f":"(((AAMC_Raw_Data_for_FY22[[#This Row],[Median]]-AAMC_Raw_Data_for_FY22[[#This Row],[25th]])/25)*10) + AAMC_Raw_Data_for_FY22[[#This Row],[25th]]","v":267831.2},{"$f":"(((AAMC_Raw_Data_for_FY22[[#This Row],[Median]]-AAMC_Raw_Data_for_FY22[[#This Row],[25th]])/25)*15) + AAMC_Raw_Data_for_FY22[[#This Row],[25th]]","v":274285.8},{"$f":"(((AAMC_Raw_Data_for_FY22[[#This Row],[Median]]-AAMC_Raw_Data_for_FY22[[#This Row],[25th]])/25)*20) + AAMC_Raw_Data_for_FY22[[#This Row],[25th]]","v":280740.40000000002},287195,{"$f":"(((AAMC_Raw_Data_for_FY22[[#This Row],[75th]]-AAMC_Raw_Data_for_FY22[[#This Row],[Median]])/25)*5) + AAMC_Raw_Data_for_FY22[[#This Row],[Median]]","v":294057.59999999998},{"$f":"(((AAMC_Raw_Data_for_FY22[[#This Row],[75th]]-AAMC_Raw_Data_for_FY22[[#This Row],[Median]])/25)*10) + AAMC_Raw_Data_for_FY22[[#This Row],[Median]]","v":300920.2},{"$f":"(((AAMC_Raw_Data_for_FY22[[#This Row],[75th]]-AAMC_Raw_Data_for_FY22[[#This Row],[Median]])/25)*15) + AAMC_Raw_Data_for_FY22[[#This Row],[Median]]","v":307782.8},{"$f":"(((AAMC_Raw_Data_for_FY22[[#This Row],[75th]]-AAMC_Raw_Data_for_FY22[[#This Row],[Median]])/25)*20) + AAMC_Raw_Data_for_FY22[[#This Row],[Median]]","v":314645.40000000002},321508,{"$f":"(((AAMC_Raw_Data_for_FY22[[#This Row],[75th]]-AAMC_Raw_Data_for_FY22[[#This Row],[Median]])/25)*30) + AAMC_Raw_Data_for_FY22[[#This Row],[Median]]","v":328370.59999999998},{"$f":"(((AAMC_Raw_Data_for_FY22[[#This Row],[75th]]-AAMC_Raw_Data_for_FY22[[#This Row],[Median]])/25)*35) + AAMC_Raw_Data_for_FY22[[#This Row],[Median]]","v":335233.2},{"$f":"(((AAMC_Raw_Data_for_FY22[[#This Row],[75th]]-AAMC_Raw_Data_for_FY22[[#This Row],[Median]])/25)*40) + AAMC_Raw_Data_for_FY22[[#This Row],[Median]]","v":342095.8}]
[{"$f":"AAMC_Raw_Data_for_FY22[[#This Row],[Source]]&AAMC_Raw_Data_for_FY22[[#This Row],[Type]]&AAMC_Raw_Data_for_FY22[[#This Row],[School Subset]]&AAMC_Raw_Data_for_FY22[[#This Row],[Rank]]&AAMC_Raw_Data_for_FY22[[#This Row],[Degree]]&AAMC_Raw_Data_for_FY22[[#This Row],[Department / Specialty]]&\"L\"","v":"AAMCAcademicPublicChiefMDRheumatology-Peds.L"},"Rheumatology-Peds.",6,"AAMC","Academic","Public","Chief","MD","2021-2022",247924,{"$f":"(((AAMC_Raw_Data_for_FY22[[#This Row],[Median]]-AAMC_Raw_Data_for_FY22[[#This Row],[25th]])/25)*5) + AAMC_Raw_Data_for_FY22[[#This Row],[25th]]","v":250388},{"$f":"(((AAMC_Raw_Data_for_FY22[[#This Row],[Median]]-AAMC_Raw_Data_for_FY22[[#This Row],[25th]])/25)*10) + AAMC_Raw_Data_for_FY22[[#This Row],[25th]]","v":252852},{"$f":"(((AAMC_Raw_Data_for_FY22[[#This Row],[Median]]-AAMC_Raw_Data_for_FY22[[#This Row],[25th]])/25)*15) + AAMC_Raw_Data_for_FY22[[#This Row],[25th]]","v":255316},{"$f":"(((AAMC_Raw_Data_for_FY22[[#This Row],[Median]]-AAMC_Raw_Data_for_FY22[[#This Row],[25th]])/25)*20) + AAMC_Raw_Data_for_FY22[[#This Row],[25th]]","v":257780},260244,{"$f":"(((AAMC_Raw_Data_for_FY22[[#This Row],[75th]]-AAMC_Raw_Data_for_FY22[[#This Row],[Median]])/25)*5) + AAMC_Raw_Data_for_FY22[[#This Row],[Median]]","v":270874.40000000002},{"$f":"(((AAMC_Raw_Data_for_FY22[[#This Row],[75th]]-AAMC_Raw_Data_for_FY22[[#This Row],[Median]])/25)*10) + AAMC_Raw_Data_for_FY22[[#This Row],[Median]]","v":281504.8},{"$f":"(((AAMC_Raw_Data_for_FY22[[#This Row],[75th]]-AAMC_Raw_Data_for_FY22[[#This Row],[Median]])/25)*15) + AAMC_Raw_Data_for_FY22[[#This Row],[Median]]","v":292135.2},{"$f":"(((AAMC_Raw_Data_for_FY22[[#This Row],[75th]]-AAMC_Raw_Data_for_FY22[[#This Row],[Median]])/25)*20) + AAMC_Raw_Data_for_FY22[[#This Row],[Median]]","v":302765.59999999998},313396,{"$f":"(((AAMC_Raw_Data_for_FY22[[#This Row],[75th]]-AAMC_Raw_Data_for_FY22[[#This Row],[Median]])/25)*30) + AAMC_Raw_Data_for_FY22[[#This Row],[Median]]","v":324026.40000000002},{"$f":"(((AAMC_Raw_Data_for_FY22[[#This Row],[75th]]-AAMC_Raw_Data_for_FY22[[#This Row],[Median]])/25)*35) + AAMC_Raw_Data_for_FY22[[#This Row],[Median]]","v":334656.8},{"$f":"(((AAMC_Raw_Data_for_FY22[[#This Row],[75th]]-AAMC_Raw_Data_for_FY22[[#This Row],[Median]])/25)*40) + AAMC_Raw_Data_for_FY22[[#This Row],[Median]]","v":345287.2}]
[{"$f":"AAMC_Raw_Data_for_FY22[[#This Row],[Source]]&AAMC_Raw_Data_for_FY22[[#This Row],[Type]]&AAMC_Raw_Data_for_FY22[[#This Row],[School Subset]]&AAMC_Raw_Data_for_FY22[[#This Row],[Rank]]&AAMC_Raw_Data_for_FY22[[#This Row],[Degree]]&AAMC_Raw_Data_for_FY22[[#This Row],[Department / Specialty]]&\"L\"","v":"AAMCAcademicPublicChairMDRheumatology-Peds.L"},"Rheumatology-Peds.",1,"AAMC","Academic","Public","Chair","MD","2021-2022",null,{"$f":"(((AAMC_Raw_Data_for_FY22[[#This Row],[Median]]-AAMC_Raw_Data_for_FY22[[#This Row],[25th]])/25)*5) + AAMC_Raw_Data_for_FY22[[#This Row],[25th]]","v":0},{"$f":"(((AAMC_Raw_Data_for_FY22[[#This Row],[Median]]-AAMC_Raw_Data_for_FY22[[#This Row],[25th]])/25)*10) + AAMC_Raw_Data_for_FY22[[#This Row],[25th]]","v":0},{"$f":"(((AAMC_Raw_Data_for_FY22[[#This Row],[Median]]-AAMC_Raw_Data_for_FY22[[#This Row],[25th]])/25)*15) + AAMC_Raw_Data_for_FY22[[#This Row],[25th]]","v":0},{"$f":"(((AAMC_Raw_Data_for_FY22[[#This Row],[Median]]-AAMC_Raw_Data_for_FY22[[#This Row],[25th]])/25)*20) + AAMC_Raw_Data_for_FY22[[#This Row],[25th]]","v":0},null,{"$f":"(((AAMC_Raw_Data_for_FY22[[#This Row],[75th]]-AAMC_Raw_Data_for_FY22[[#This Row],[Median]])/25)*5) + AAMC_Raw_Data_for_FY22[[#This Row],[Median]]","v":0},{"$f":"(((AAMC_Raw_Data_for_FY22[[#This Row],[75th]]-AAMC_Raw_Data_for_FY22[[#This Row],[Median]])/25)*10) + AAMC_Raw_Data_for_FY22[[#This Row],[Median]]","v":0},{"$f":"(((AAMC_Raw_Data_for_FY22[[#This Row],[75th]]-AAMC_Raw_Data_for_FY22[[#This Row],[Median]])/25)*15) + AAMC_Raw_Data_for_FY22[[#This Row],[Median]]","v":0},{"$f":"(((AAMC_Raw_Data_for_FY22[[#This Row],[75th]]-AAMC_Raw_Data_for_FY22[[#This Row],[Median]])/25)*20) + AAMC_Raw_Data_for_FY22[[#This Row],[Median]]","v":0},null,{"$f":"(((AAMC_Raw_Data_for_FY22[[#This Row],[75th]]-AAMC_Raw_Data_for_FY22[[#This Row],[Median]])/25)*30) + AAMC_Raw_Data_for_FY22[[#This Row],[Median]]","v":0},{"$f":"(((AAMC_Raw_Data_for_FY22[[#This Row],[75th]]-AAMC_Raw_Data_for_FY22[[#This Row],[Median]])/25)*35) + AAMC_Raw_Data_for_FY22[[#This Row],[Median]]","v":0},{"$f":"(((AAMC_Raw_Data_for_FY22[[#This Row],[75th]]-AAMC_Raw_Data_for_FY22[[#This Row],[Median]])/25)*40) + AAMC_Raw_Data_for_FY22[[#This Row],[Median]]","v":0}]
[{"$f":"AAMC_Raw_Data_for_FY22[[#This Row],[Source]]&AAMC_Raw_Data_for_FY22[[#This Row],[Type]]&AAMC_Raw_Data_for_FY22[[#This Row],[School Subset]]&AAMC_Raw_Data_for_FY22[[#This Row],[Rank]]&AAMC_Raw_Data_for_FY22[[#This Row],[Degree]]&AAMC_Raw_Data_for_FY22[[#This Row],[Department / Specialty]]&\"L\"","v":"AAMCAcademicPublicInstructorMDOther PediatricsL"},"Other Pediatrics",5,"AAMC","Academic","Public","Instructor","MD","2021-2022",null,{"$f":"(((AAMC_Raw_Data_for_FY22[[#This Row],[Median]]-AAMC_Raw_Data_for_FY22[[#This Row],[25th]])/25)*5) + AAMC_Raw_Data_for_FY22[[#This Row],[25th]]","v":0},{"$f":"(((AAMC_Raw_Data_for_FY22[[#This Row],[Median]]-AAMC_Raw_Data_for_FY22[[#This Row],[25th]])/25)*10) + AAMC_Raw_Data_for_FY22[[#This Row],[25th]]","v":0},{"$f":"(((AAMC_Raw_Data_for_FY22[[#This Row],[Median]]-AAMC_Raw_Data_for_FY22[[#This Row],[25th]])/25)*15) + AAMC_Raw_Data_for_FY22[[#This Row],[25th]]","v":0},{"$f":"(((AAMC_Raw_Data_for_FY22[[#This Row],[Median]]-AAMC_Raw_Data_for_FY22[[#This Row],[25th]])/25)*20) + AAMC_Raw_Data_for_FY22[[#This Row],[25th]]","v":0},null,{"$f":"(((AAMC_Raw_Data_for_FY22[[#This Row],[75th]]-AAMC_Raw_Data_for_FY22[[#This Row],[Median]])/25)*5) + AAMC_Raw_Data_for_FY22[[#This Row],[Median]]","v":0},{"$f":"(((AAMC_Raw_Data_for_FY22[[#This Row],[75th]]-AAMC_Raw_Data_for_FY22[[#This Row],[Median]])/25)*10) + AAMC_Raw_Data_for_FY22[[#This Row],[Median]]","v":0},{"$f":"(((AAMC_Raw_Data_for_FY22[[#This Row],[75th]]-AAMC_Raw_Data_for_FY22[[#This Row],[Median]])/25)*15) + AAMC_Raw_Data_for_FY22[[#This Row],[Median]]","v":0},{"$f":"(((AAMC_Raw_Data_for_FY22[[#This Row],[75th]]-AAMC_Raw_Data_for_FY22[[#This Row],[Median]])/25)*20) + AAMC_Raw_Data_for_FY22[[#This Row],[Median]]","v":0},null,{"$f":"(((AAMC_Raw_Data_for_FY22[[#This Row],[75th]]-AAMC_Raw_Data_for_FY22[[#This Row],[Median]])/25)*30) + AAMC_Raw_Data_for_FY22[[#This Row],[Median]]","v":0},{"$f":"(((AAMC_Raw_Data_for_FY22[[#This Row],[75th]]-AAMC_Raw_Data_for_FY22[[#This Row],[Median]])/25)*35) + AAMC_Raw_Data_for_FY22[[#This Row],[Median]]","v":0},{"$f":"(((AAMC_Raw_Data_for_FY22[[#This Row],[75th]]-AAMC_Raw_Data_for_FY22[[#This Row],[Median]])/25)*40) + AAMC_Raw_Data_for_FY22[[#This Row],[Median]]","v":0}]
[{"$f":"AAMC_Raw_Data_for_FY22[[#This Row],[Source]]&AAMC_Raw_Data_for_FY22[[#This Row],[Type]]&AAMC_Raw_Data_for_FY22[[#This Row],[School Subset]]&AAMC_Raw_Data_for_FY22[[#This Row],[Rank]]&AAMC_Raw_Data_for_FY22[[#This Row],[Degree]]&AAMC_Raw_Data_for_FY22[[#This Row],[Department / Specialty]]&\"L\"","v":"AAMCAcademicPublicAssistantMDOther PediatricsL"},"Other Pediatrics",4,"AAMC","Academic","Public","Assistant","MD","2021-2022",174398,{"$f":"(((AAMC_Raw_Data_for_FY22[[#This Row],[Median]]-AAMC_Raw_Data_for_FY22[[#This Row],[25th]])/25)*5) + AAMC_Raw_Data_for_FY22[[#This Row],[25th]]","v":181518.4},{"$f":"(((AAMC_Raw_Data_for_FY22[[#This Row],[Median]]-AAMC_Raw_Data_for_FY22[[#This Row],[25th]])/25)*10) + AAMC_Raw_Data_for_FY22[[#This Row],[25th]]","v":188638.8},{"$f":"(((AAMC_Raw_Data_for_FY22[[#This Row],[Median]]-AAMC_Raw_Data_for_FY22[[#This Row],[25th]])/25)*15) + AAMC_Raw_Data_for_FY22[[#This Row],[25th]]","v":195759.2},{"$f":"(((AAMC_Raw_Data_for_FY22[[#This Row],[Median]]-AAMC_Raw_Data_for_FY22[[#This Row],[25th]])/25)*20) + AAMC_Raw_Data_for_FY22[[#This Row],[25th]]","v":202879.6},210000,{"$f":"(((AAMC_Raw_Data_for_FY22[[#This Row],[75th]]-AAMC_Raw_Data_for_FY22[[#This Row],[Median]])/25)*5) + AAMC_Raw_Data_for_FY22[[#This Row],[Median]]","v":216929.2},{"$f":"(((AAMC_Raw_Data_for_FY22[[#This Row],[75th]]-AAMC_Raw_Data_for_FY22[[#This Row],[Median]])/25)*10) + AAMC_Raw_Data_for_FY22[[#This Row],[Median]]","v":223858.4},{"$f":"(((AAMC_Raw_Data_for_FY22[[#This Row],[75th]]-AAMC_Raw_Data_for_FY22[[#This Row],[Median]])/25)*15) + AAMC_Raw_Data_for_FY22[[#This Row],[Median]]","v":230787.6},{"$f":"(((AAMC_Raw_Data_for_FY22[[#This Row],[75th]]-AAMC_Raw_Data_for_FY22[[#This Row],[Median]])/25)*20) + AAMC_Raw_Data_for_FY22[[#This Row],[Median]]","v":237716.8},244646,{"$f":"(((AAMC_Raw_Data_for_FY22[[#This Row],[75th]]-AAMC_Raw_Data_for_FY22[[#This Row],[Median]])/25)*30) + AAMC_Raw_Data_for_FY22[[#This Row],[Median]]","v":251575.2},{"$f":"(((AAMC_Raw_Data_for_FY22[[#This Row],[75th]]-AAMC_Raw_Data_for_FY22[[#This Row],[Median]])/25)*35) + AAMC_Raw_Data_for_FY22[[#This Row],[Median]]","v":258504.4},{"$f":"(((AAMC_Raw_Data_for_FY22[[#This Row],[75th]]-AAMC_Raw_Data_for_FY22[[#This Row],[Median]])/25)*40) + AAMC_Raw_Data_for_FY22[[#This Row],[Median]]","v":265433.59999999998}]
[{"$f":"AAMC_Raw_Data_for_FY22[[#This Row],[Source]]&AAMC_Raw_Data_for_FY22[[#This Row],[Type]]&AAMC_Raw_Data_for_FY22[[#This Row],[School Subset]]&AAMC_Raw_Data_for_FY22[[#This Row],[Rank]]&AAMC_Raw_Data_for_FY22[[#This Row],[Degree]]&AAMC_Raw_Data_for_FY22[[#This Row],[Department / Specialty]]&\"L\"","v":"AAMCAcademicPublicAssociateMDOther PediatricsL"},"Other Pediatrics",3,"AAMC","Academic","Public","Associate","MD","2021-2022",193286,{"$f":"(((AAMC_Raw_Data_for_FY22[[#This Row],[Median]]-AAMC_Raw_Data_for_FY22[[#This Row],[25th]])/25)*5) + AAMC_Raw_Data_for_FY22[[#This Row],[25th]]","v":203612.79999999999},{"$f":"(((AAMC_Raw_Data_for_FY22[[#This Row],[Median]]-AAMC_Raw_Data_for_FY22[[#This Row],[25th]])/25)*10) + AAMC_Raw_Data_for_FY22[[#This Row],[25th]]","v":213939.6},{"$f":"(((AAMC_Raw_Data_for_FY22[[#This Row],[Median]]-AAMC_Raw_Data_for_FY22[[#This Row],[25th]])/25)*15) + AAMC_Raw_Data_for_FY22[[#This Row],[25th]]","v":224266.4},{"$f":"(((AAMC_Raw_Data_for_FY22[[#This Row],[Median]]-AAMC_Raw_Data_for_FY22[[#This Row],[25th]])/25)*20) + AAMC_Raw_Data_for_FY22[[#This Row],[25th]]","v":234593.2},244920,{"$f":"(((AAMC_Raw_Data_for_FY22[[#This Row],[75th]]-AAMC_Raw_Data_for_FY22[[#This Row],[Median]])/25)*5) + AAMC_Raw_Data_for_FY22[[#This Row],[Median]]","v":250079},{"$f":"(((AAMC_Raw_Data_for_FY22[[#This Row],[75th]]-AAMC_Raw_Data_for_FY22[[#This Row],[Median]])/25)*10) + AAMC_Raw_Data_for_FY22[[#This Row],[Median]]","v":255238},{"$f":"(((AAMC_Raw_Data_for_FY22[[#This Row],[75th]]-AAMC_Raw_Data_for_FY22[[#This Row],[Median]])/25)*15) + AAMC_Raw_Data_for_FY22[[#This Row],[Median]]","v":260397},{"$f":"(((AAMC_Raw_Data_for_FY22[[#This Row],[75th]]-AAMC_Raw_Data_for_FY22[[#This Row],[Median]])/25)*20) + AAMC_Raw_Data_for_FY22[[#This Row],[Median]]","v":265556},270715,{"$f":"(((AAMC_Raw_Data_for_FY22[[#This Row],[75th]]-AAMC_Raw_Data_for_FY22[[#This Row],[Median]])/25)*30) + AAMC_Raw_Data_for_FY22[[#This Row],[Median]]","v":275874},{"$f":"(((AAMC_Raw_Data_for_FY22[[#This Row],[75th]]-AAMC_Raw_Data_for_FY22[[#This Row],[Median]])/25)*35) + AAMC_Raw_Data_for_FY22[[#This Row],[Median]]","v":281033},{"$f":"(((AAMC_Raw_Data_for_FY22[[#This Row],[75th]]-AAMC_Raw_Data_for_FY22[[#This Row],[Median]])/25)*40) + AAMC_Raw_Data_for_FY22[[#This Row],[Median]]","v":286192}]
[{"$f":"AAMC_Raw_Data_for_FY22[[#This Row],[Source]]&AAMC_Raw_Data_for_FY22[[#This Row],[Type]]&AAMC_Raw_Data_for_FY22[[#This Row],[School Subset]]&AAMC_Raw_Data_for_FY22[[#This Row],[Rank]]&AAMC_Raw_Data_for_FY22[[#This Row],[Degree]]&AAMC_Raw_Data_for_FY22[[#This Row],[Department / Specialty]]&\"L\"","v":"AAMCAcademicPublicProfessorMDOther PediatricsL"},"Other Pediatrics",2,"AAMC","Academic","Public","Professor","MD","2021-2022",245568,{"$f":"(((AAMC_Raw_Data_for_FY22[[#This Row],[Median]]-AAMC_Raw_Data_for_FY22[[#This Row],[25th]])/25)*5) + AAMC_Raw_Data_for_FY22[[#This Row],[25th]]","v":252454.39999999999},{"$f":"(((AAMC_Raw_Data_for_FY22[[#This Row],[Median]]-AAMC_Raw_Data_for_FY22[[#This Row],[25th]])/25)*10) + AAMC_Raw_Data_for_FY22[[#This Row],[25th]]","v":259340.79999999999},{"$f":"(((AAMC_Raw_Data_for_FY22[[#This Row],[Median]]-AAMC_Raw_Data_for_FY22[[#This Row],[25th]])/25)*15) + AAMC_Raw_Data_for_FY22[[#This Row],[25th]]","v":266227.20000000001},{"$f":"(((AAMC_Raw_Data_for_FY22[[#This Row],[Median]]-AAMC_Raw_Data_for_FY22[[#This Row],[25th]])/25)*20) + AAMC_Raw_Data_for_FY22[[#This Row],[25th]]","v":273113.59999999998},280000,{"$f":"(((AAMC_Raw_Data_for_FY22[[#This Row],[75th]]-AAMC_Raw_Data_for_FY22[[#This Row],[Median]])/25)*5) + AAMC_Raw_Data_for_FY22[[#This Row],[Median]]","v":287800.2},{"$f":"(((AAMC_Raw_Data_for_FY22[[#This Row],[75th]]-AAMC_Raw_Data_for_FY22[[#This Row],[Median]])/25)*10) + AAMC_Raw_Data_for_FY22[[#This Row],[Median]]","v":295600.40000000002},{"$f":"(((AAMC_Raw_Data_for_FY22[[#This Row],[75th]]-AAMC_Raw_Data_for_FY22[[#This Row],[Median]])/25)*15) + AAMC_Raw_Data_for_FY22[[#This Row],[Median]]","v":303400.59999999998},{"$f":"(((AAMC_Raw_Data_for_FY22[[#This Row],[75th]]-AAMC_Raw_Data_for_FY22[[#This Row],[Median]])/25)*20) + AAMC_Raw_Data_for_FY22[[#This Row],[Median]]","v":311200.8},319001,{"$f":"(((AAMC_Raw_Data_for_FY22[[#This Row],[75th]]-AAMC_Raw_Data_for_FY22[[#This Row],[Median]])/25)*30) + AAMC_Raw_Data_for_FY22[[#This Row],[Median]]","v":326801.2},{"$f":"(((AAMC_Raw_Data_for_FY22[[#This Row],[75th]]-AAMC_Raw_Data_for_FY22[[#This Row],[Median]])/25)*35) + AAMC_Raw_Data_for_FY22[[#This Row],[Median]]","v":334601.40000000002},{"$f":"(((AAMC_Raw_Data_for_FY22[[#This Row],[75th]]-AAMC_Raw_Data_for_FY22[[#This Row],[Median]])/25)*40) + AAMC_Raw_Data_for_FY22[[#This Row],[Median]]","v":342401.6}]
[{"$f":"AAMC_Raw_Data_for_FY22[[#This Row],[Source]]&AAMC_Raw_Data_for_FY22[[#This Row],[Type]]&AAMC_Raw_Data_for_FY22[[#This Row],[School Subset]]&AAMC_Raw_Data_for_FY22[[#This Row],[Rank]]&AAMC_Raw_Data_for_FY22[[#This Row],[Degree]]&AAMC_Raw_Data_for_FY22[[#This Row],[Department / Specialty]]&\"L\"","v":"AAMCAcademicPublicChiefMDOther PediatricsL"},"Other Pediatrics",6,"AAMC","Academic","Public","Chief","MD","2021-2022",245859,{"$f":"(((AAMC_Raw_Data_for_FY22[[#This Row],[Median]]-AAMC_Raw_Data_for_FY22[[#This Row],[25th]])/25)*5) + AAMC_Raw_Data_for_FY22[[#This Row],[25th]]","v":255077.2},{"$f":"(((AAMC_Raw_Data_for_FY22[[#This Row],[Median]]-AAMC_Raw_Data_for_FY22[[#This Row],[25th]])/25)*10) + AAMC_Raw_Data_for_FY22[[#This Row],[25th]]","v":264295.40000000002},{"$f":"(((AAMC_Raw_Data_for_FY22[[#This Row],[Median]]-AAMC_Raw_Data_for_FY22[[#This Row],[25th]])/25)*15) + AAMC_Raw_Data_for_FY22[[#This Row],[25th]]","v":273513.59999999998},{"$f":"(((AAMC_Raw_Data_for_FY22[[#This Row],[Median]]-AAMC_Raw_Data_for_FY22[[#This Row],[25th]])/25)*20) + AAMC_Raw_Data_for_FY22[[#This Row],[25th]]","v":282731.8},291950,{"$f":"(((AAMC_Raw_Data_for_FY22[[#This Row],[75th]]-AAMC_Raw_Data_for_FY22[[#This Row],[Median]])/25)*5) + AAMC_Raw_Data_for_FY22[[#This Row],[Median]]","v":307343.59999999998},{"$f":"(((AAMC_Raw_Data_for_FY22[[#This Row],[75th]]-AAMC_Raw_Data_for_FY22[[#This Row],[Median]])/25)*10) + AAMC_Raw_Data_for_FY22[[#This Row],[Median]]","v":322737.2},{"$f":"(((AAMC_Raw_Data_for_FY22[[#This Row],[75th]]-AAMC_Raw_Data_for_FY22[[#This Row],[Median]])/25)*15) + AAMC_Raw_Data_for_FY22[[#This Row],[Median]]","v":338130.8},{"$f":"(((AAMC_Raw_Data_for_FY22[[#This Row],[75th]]-AAMC_Raw_Data_for_FY22[[#This Row],[Median]])/25)*20) + AAMC_Raw_Data_for_FY22[[#This Row],[Median]]","v":353524.4},368918,{"$f":"(((AAMC_Raw_Data_for_FY22[[#This Row],[75th]]-AAMC_Raw_Data_for_FY22[[#This Row],[Median]])/25)*30) + AAMC_Raw_Data_for_FY22[[#This Row],[Median]]","v":384311.6},{"$f":"(((AAMC_Raw_Data_for_FY22[[#This Row],[75th]]-AAMC_Raw_Data_for_FY22[[#This Row],[Median]])/25)*35) + AAMC_Raw_Data_for_FY22[[#This Row],[Median]]","v":399705.2},{"$f":"(((AAMC_Raw_Data_for_FY22[[#This Row],[75th]]-AAMC_Raw_Data_for_FY22[[#This Row],[Median]])/25)*40) + AAMC_Raw_Data_for_FY22[[#This Row],[Median]]","v":415098.8}]
[{"$f":"AAMC_Raw_Data_for_FY22[[#This Row],[Source]]&AAMC_Raw_Data_for_FY22[[#This Row],[Type]]&AAMC_Raw_Data_for_FY22[[#This Row],[School Subset]]&AAMC_Raw_Data_for_FY22[[#This Row],[Rank]]&AAMC_Raw_Data_for_FY22[[#This Row],[Degree]]&AAMC_Raw_Data_for_FY22[[#This Row],[Department / Specialty]]&\"L\"","v":"AAMCAcademicPublicChairMDOther PediatricsL"},"Other Pediatrics",1,"AAMC","Academic","Public","Chair","MD","2021-2022",559369,{"$f":"(((AAMC_Raw_Data_for_FY22[[#This Row],[Median]]-AAMC_Raw_Data_for_FY22[[#This Row],[25th]])/25)*5) + AAMC_Raw_Data_for_FY22[[#This Row],[25th]]","v":568255.19999999995},{"$f":"(((AAMC_Raw_Data_for_FY22[[#This Row],[Median]]-AAMC_Raw_Data_for_FY22[[#This Row],[25th]])/25)*10) + AAMC_Raw_Data_for_FY22[[#This Row],[25th]]","v":577141.4},{"$f":"(((AAMC_Raw_Data_for_FY22[[#This Row],[Median]]-AAMC_Raw_Data_for_FY22[[#This Row],[25th]])/25)*15) + AAMC_Raw_Data_for_FY22[[#This Row],[25th]]","v":586027.6},{"$f":"(((AAMC_Raw_Data_for_FY22[[#This Row],[Median]]-AAMC_Raw_Data_for_FY22[[#This Row],[25th]])/25)*20) + AAMC_Raw_Data_for_FY22[[#This Row],[25th]]","v":594913.80000000005},603800,{"$f":"(((AAMC_Raw_Data_for_FY22[[#This Row],[75th]]-AAMC_Raw_Data_for_FY22[[#This Row],[Median]])/25)*5) + AAMC_Raw_Data_for_FY22[[#This Row],[Median]]","v":625969.6},{"$f":"(((AAMC_Raw_Data_for_FY22[[#This Row],[75th]]-AAMC_Raw_Data_for_FY22[[#This Row],[Median]])/25)*10) + AAMC_Raw_Data_for_FY22[[#This Row],[Median]]","v":648139.19999999995},{"$f":"(((AAMC_Raw_Data_for_FY22[[#This Row],[75th]]-AAMC_Raw_Data_for_FY22[[#This Row],[Median]])/25)*15) + AAMC_Raw_Data_for_FY22[[#This Row],[Median]]","v":670308.80000000005},{"$f":"(((AAMC_Raw_Data_for_FY22[[#This Row],[75th]]-AAMC_Raw_Data_for_FY22[[#This Row],[Median]])/25)*20) + AAMC_Raw_Data_for_FY22[[#This Row],[Median]]","v":692478.4},714648,{"$f":"(((AAMC_Raw_Data_for_FY22[[#This Row],[75th]]-AAMC_Raw_Data_for_FY22[[#This Row],[Median]])/25)*30) + AAMC_Raw_Data_for_FY22[[#This Row],[Median]]","v":736817.6},{"$f":"(((AAMC_Raw_Data_for_FY22[[#This Row],[75th]]-AAMC_Raw_Data_for_FY22[[#This Row],[Median]])/25)*35) + AAMC_Raw_Data_for_FY22[[#This Row],[Median]]","v":758987.2},{"$f":"(((AAMC_Raw_Data_for_FY22[[#This Row],[75th]]-AAMC_Raw_Data_for_FY22[[#This Row],[Median]])/25)*40) + AAMC_Raw_Data_for_FY22[[#This Row],[Median]]","v":781156.8}]
[{"$f":"AAMC_Raw_Data_for_FY22[[#This Row],[Source]]&AAMC_Raw_Data_for_FY22[[#This Row],[Type]]&AAMC_Raw_Data_for_FY22[[#This Row],[School Subset]]&AAMC_Raw_Data_for_FY22[[#This Row],[Rank]]&AAMC_Raw_Data_for_FY22[[#This Row],[Degree]]&AAMC_Raw_Data_for_FY22[[#This Row],[Department / Specialty]]&\"L\"","v":"AAMCAcademicPublicInstructorMDPsychiatry TotalL"},"Psychiatry Total",5,"AAMC","Academic","Public","Instructor","MD","2021-2022",184161,{"$f":"(((AAMC_Raw_Data_for_FY22[[#This Row],[Median]]-AAMC_Raw_Data_for_FY22[[#This Row],[25th]])/25)*5) + AAMC_Raw_Data_for_FY22[[#This Row],[25th]]","v":189382},{"$f":"(((AAMC_Raw_Data_for_FY22[[#This Row],[Median]]-AAMC_Raw_Data_for_FY22[[#This Row],[25th]])/25)*10) + AAMC_Raw_Data_for_FY22[[#This Row],[25th]]","v":194603},{"$f":"(((AAMC_Raw_Data_for_FY22[[#This Row],[Median]]-AAMC_Raw_Data_for_FY22[[#This Row],[25th]])/25)*15) + AAMC_Raw_Data_for_FY22[[#This Row],[25th]]","v":199824},{"$f":"(((AAMC_Raw_Data_for_FY22[[#This Row],[Median]]-AAMC_Raw_Data_for_FY22[[#This Row],[25th]])/25)*20) + AAMC_Raw_Data_for_FY22[[#This Row],[25th]]","v":205045},210266,{"$f":"(((AAMC_Raw_Data_for_FY22[[#This Row],[75th]]-AAMC_Raw_Data_for_FY22[[#This Row],[Median]])/25)*5) + AAMC_Raw_Data_for_FY22[[#This Row],[Median]]","v":215022.8},{"$f":"(((AAMC_Raw_Data_for_FY22[[#This Row],[75th]]-AAMC_Raw_Data_for_FY22[[#This Row],[Median]])/25)*10) + AAMC_Raw_Data_for_FY22[[#This Row],[Median]]","v":219779.6},{"$f":"(((AAMC_Raw_Data_for_FY22[[#This Row],[75th]]-AAMC_Raw_Data_for_FY22[[#This Row],[Median]])/25)*15) + AAMC_Raw_Data_for_FY22[[#This Row],[Median]]","v":224536.4},{"$f":"(((AAMC_Raw_Data_for_FY22[[#This Row],[75th]]-AAMC_Raw_Data_for_FY22[[#This Row],[Median]])/25)*20) + AAMC_Raw_Data_for_FY22[[#This Row],[Median]]","v":229293.2},234050,{"$f":"(((AAMC_Raw_Data_for_FY22[[#This Row],[75th]]-AAMC_Raw_Data_for_FY22[[#This Row],[Median]])/25)*30) + AAMC_Raw_Data_for_FY22[[#This Row],[Median]]","v":238806.8},{"$f":"(((AAMC_Raw_Data_for_FY22[[#This Row],[75th]]-AAMC_Raw_Data_for_FY22[[#This Row],[Median]])/25)*35) + AAMC_Raw_Data_for_FY22[[#This Row],[Median]]","v":243563.6},{"$f":"(((AAMC_Raw_Data_for_FY22[[#This Row],[75th]]-AAMC_Raw_Data_for_FY22[[#This Row],[Median]])/25)*40) + AAMC_Raw_Data_for_FY22[[#This Row],[Median]]","v":248320.4}]
[{"$f":"AAMC_Raw_Data_for_FY22[[#This Row],[Source]]&AAMC_Raw_Data_for_FY22[[#This Row],[Type]]&AAMC_Raw_Data_for_FY22[[#This Row],[School Subset]]&AAMC_Raw_Data_for_FY22[[#This Row],[Rank]]&AAMC_Raw_Data_for_FY22[[#This Row],[Degree]]&AAMC_Raw_Data_for_FY22[[#This Row],[Department / Specialty]]&\"L\"","v":"AAMCAcademicPublicAssistantMDPsychiatry TotalL"},"Psychiatry Total",4,"AAMC","Academic","Public","Assistant","MD","2021-2022",218000,{"$f":"(((AAMC_Raw_Data_for_FY22[[#This Row],[Median]]-AAMC_Raw_Data_for_FY22[[#This Row],[25th]])/25)*5) + AAMC_Raw_Data_for_FY22[[#This Row],[25th]]","v":222522.8},{"$f":"(((AAMC_Raw_Data_for_FY22[[#This Row],[Median]]-AAMC_Raw_Data_for_FY22[[#This Row],[25th]])/25)*10) + AAMC_Raw_Data_for_FY22[[#This Row],[25th]]","v":227045.6},{"$f":"(((AAMC_Raw_Data_for_FY22[[#This Row],[Median]]-AAMC_Raw_Data_for_FY22[[#This Row],[25th]])/25)*15) + AAMC_Raw_Data_for_FY22[[#This Row],[25th]]","v":231568.4},{"$f":"(((AAMC_Raw_Data_for_FY22[[#This Row],[Median]]-AAMC_Raw_Data_for_FY22[[#This Row],[25th]])/25)*20) + AAMC_Raw_Data_for_FY22[[#This Row],[25th]]","v":236091.2},240614,{"$f":"(((AAMC_Raw_Data_for_FY22[[#This Row],[75th]]-AAMC_Raw_Data_for_FY22[[#This Row],[Median]])/25)*5) + AAMC_Raw_Data_for_FY22[[#This Row],[Median]]","v":247706.8},{"$f":"(((AAMC_Raw_Data_for_FY22[[#This Row],[75th]]-AAMC_Raw_Data_for_FY22[[#This Row],[Median]])/25)*10) + AAMC_Raw_Data_for_FY22[[#This Row],[Median]]","v":254799.6},{"$f":"(((AAMC_Raw_Data_for_FY22[[#This Row],[75th]]-AAMC_Raw_Data_for_FY22[[#This Row],[Median]])/25)*15) + AAMC_Raw_Data_for_FY22[[#This Row],[Median]]","v":261892.4},{"$f":"(((AAMC_Raw_Data_for_FY22[[#This Row],[75th]]-AAMC_Raw_Data_for_FY22[[#This Row],[Median]])/25)*20) + AAMC_Raw_Data_for_FY22[[#This Row],[Median]]","v":268985.2},276078,{"$f":"(((AAMC_Raw_Data_for_FY22[[#This Row],[75th]]-AAMC_Raw_Data_for_FY22[[#This Row],[Median]])/25)*30) + AAMC_Raw_Data_for_FY22[[#This Row],[Median]]","v":283170.8},{"$f":"(((AAMC_Raw_Data_for_FY22[[#This Row],[75th]]-AAMC_Raw_Data_for_FY22[[#This Row],[Median]])/25)*35) + AAMC_Raw_Data_for_FY22[[#This Row],[Median]]","v":290263.59999999998},{"$f":"(((AAMC_Raw_Data_for_FY22[[#This Row],[75th]]-AAMC_Raw_Data_for_FY22[[#This Row],[Median]])/25)*40) + AAMC_Raw_Data_for_FY22[[#This Row],[Median]]","v":297356.40000000002}]
[{"$f":"AAMC_Raw_Data_for_FY22[[#This Row],[Source]]&AAMC_Raw_Data_for_FY22[[#This Row],[Type]]&AAMC_Raw_Data_for_FY22[[#This Row],[School Subset]]&AAMC_Raw_Data_for_FY22[[#This Row],[Rank]]&AAMC_Raw_Data_for_FY22[[#This Row],[Degree]]&AAMC_Raw_Data_for_FY22[[#This Row],[Department / Specialty]]&\"L\"","v":"AAMCAcademicPublicAssociateMDPsychiatry TotalL"},"Psychiatry Total",3,"AAMC","Academic","Public","Associate","MD","2021-2022",235735,{"$f":"(((AAMC_Raw_Data_for_FY22[[#This Row],[Median]]-AAMC_Raw_Data_for_FY22[[#This Row],[25th]])/25)*5) + AAMC_Raw_Data_for_FY22[[#This Row],[25th]]","v":241261.8},{"$f":"(((AAMC_Raw_Data_for_FY22[[#This Row],[Median]]-AAMC_Raw_Data_for_FY22[[#This Row],[25th]])/25)*10) + AAMC_Raw_Data_for_FY22[[#This Row],[25th]]","v":246788.6},{"$f":"(((AAMC_Raw_Data_for_FY22[[#This Row],[Median]]-AAMC_Raw_Data_for_FY22[[#This Row],[25th]])/25)*15) + AAMC_Raw_Data_for_FY22[[#This Row],[25th]]","v":252315.4},{"$f":"(((AAMC_Raw_Data_for_FY22[[#This Row],[Median]]-AAMC_Raw_Data_for_FY22[[#This Row],[25th]])/25)*20) + AAMC_Raw_Data_for_FY22[[#This Row],[25th]]","v":257842.2},263369,{"$f":"(((AAMC_Raw_Data_for_FY22[[#This Row],[75th]]-AAMC_Raw_Data_for_FY22[[#This Row],[Median]])/25)*5) + AAMC_Raw_Data_for_FY22[[#This Row],[Median]]","v":271705},{"$f":"(((AAMC_Raw_Data_for_FY22[[#This Row],[75th]]-AAMC_Raw_Data_for_FY22[[#This Row],[Median]])/25)*10) + AAMC_Raw_Data_for_FY22[[#This Row],[Median]]","v":280041},{"$f":"(((AAMC_Raw_Data_for_FY22[[#This Row],[75th]]-AAMC_Raw_Data_for_FY22[[#This Row],[Median]])/25)*15) + AAMC_Raw_Data_for_FY22[[#This Row],[Median]]","v":288377},{"$f":"(((AAMC_Raw_Data_for_FY22[[#This Row],[75th]]-AAMC_Raw_Data_for_FY22[[#This Row],[Median]])/25)*20) + AAMC_Raw_Data_for_FY22[[#This Row],[Median]]","v":296713},305049,{"$f":"(((AAMC_Raw_Data_for_FY22[[#This Row],[75th]]-AAMC_Raw_Data_for_FY22[[#This Row],[Median]])/25)*30) + AAMC_Raw_Data_for_FY22[[#This Row],[Median]]","v":313385},{"$f":"(((AAMC_Raw_Data_for_FY22[[#This Row],[75th]]-AAMC_Raw_Data_for_FY22[[#This Row],[Median]])/25)*35) + AAMC_Raw_Data_for_FY22[[#This Row],[Median]]","v":321721},{"$f":"(((AAMC_Raw_Data_for_FY22[[#This Row],[75th]]-AAMC_Raw_Data_for_FY22[[#This Row],[Median]])/25)*40) + AAMC_Raw_Data_for_FY22[[#This Row],[Median]]","v":330057}]
[{"$f":"AAMC_Raw_Data_for_FY22[[#This Row],[Source]]&AAMC_Raw_Data_for_FY22[[#This Row],[Type]]&AAMC_Raw_Data_for_FY22[[#This Row],[School Subset]]&AAMC_Raw_Data_for_FY22[[#This Row],[Rank]]&AAMC_Raw_Data_for_FY22[[#This Row],[Degree]]&AAMC_Raw_Data_for_FY22[[#This Row],[Department / Specialty]]&\"L\"","v":"AAMCAcademicPublicProfessorMDPsychiatry TotalL"},"Psychiatry Total",2,"AAMC","Academic","Public","Professor","MD","2021-2022",258328,{"$f":"(((AAMC_Raw_Data_for_FY22[[#This Row],[Median]]-AAMC_Raw_Data_for_FY22[[#This Row],[25th]])/25)*5) + AAMC_Raw_Data_for_FY22[[#This Row],[25th]]","v":266730.8},{"$f":"(((AAMC_Raw_Data_for_FY22[[#This Row],[Median]]-AAMC_Raw_Data_for_FY22[[#This Row],[25th]])/25)*10) + AAMC_Raw_Data_for_FY22[[#This Row],[25th]]","v":275133.59999999998},{"$f":"(((AAMC_Raw_Data_for_FY22[[#This Row],[Median]]-AAMC_Raw_Data_for_FY22[[#This Row],[25th]])/25)*15) + AAMC_Raw_Data_for_FY22[[#This Row],[25th]]","v":283536.40000000002},{"$f":"(((AAMC_Raw_Data_for_FY22[[#This Row],[Median]]-AAMC_Raw_Data_for_FY22[[#This Row],[25th]])/25)*20) + AAMC_Raw_Data_for_FY22[[#This Row],[25th]]","v":291939.20000000001},300342,{"$f":"(((AAMC_Raw_Data_for_FY22[[#This Row],[75th]]-AAMC_Raw_Data_for_FY22[[#This Row],[Median]])/25)*5) + AAMC_Raw_Data_for_FY22[[#This Row],[Median]]","v":310391.40000000002},{"$f":"(((AAMC_Raw_Data_for_FY22[[#This Row],[75th]]-AAMC_Raw_Data_for_FY22[[#This Row],[Median]])/25)*10) + AAMC_Raw_Data_for_FY22[[#This Row],[Median]]","v":320440.8},{"$f":"(((AAMC_Raw_Data_for_FY22[[#This Row],[75th]]-AAMC_Raw_Data_for_FY22[[#This Row],[Median]])/25)*15) + AAMC_Raw_Data_for_FY22[[#This Row],[Median]]","v":330490.2},{"$f":"(((AAMC_Raw_Data_for_FY22[[#This Row],[75th]]-AAMC_Raw_Data_for_FY22[[#This Row],[Median]])/25)*20) + AAMC_Raw_Data_for_FY22[[#This Row],[Median]]","v":340539.6},350589,{"$f":"(((AAMC_Raw_Data_for_FY22[[#This Row],[75th]]-AAMC_Raw_Data_for_FY22[[#This Row],[Median]])/25)*30) + AAMC_Raw_Data_for_FY22[[#This Row],[Median]]","v":360638.4},{"$f":"(((AAMC_Raw_Data_for_FY22[[#This Row],[75th]]-AAMC_Raw_Data_for_FY22[[#This Row],[Median]])/25)*35) + AAMC_Raw_Data_for_FY22[[#This Row],[Median]]","v":370687.8},{"$f":"(((AAMC_Raw_Data_for_FY22[[#This Row],[75th]]-AAMC_Raw_Data_for_FY22[[#This Row],[Median]])/25)*40) + AAMC_Raw_Data_for_FY22[[#This Row],[Median]]","v":380737.2}]
[{"$f":"AAMC_Raw_Data_for_FY22[[#This Row],[Source]]&AAMC_Raw_Data_for_FY22[[#This Row],[Type]]&AAMC_Raw_Data_for_FY22[[#This Row],[School Subset]]&AAMC_Raw_Data_for_FY22[[#This Row],[Rank]]&AAMC_Raw_Data_for_FY22[[#This Row],[Degree]]&AAMC_Raw_Data_for_FY22[[#This Row],[Department / Specialty]]&\"L\"","v":"AAMCAcademicPublicChiefMDPsychiatry TotalL"},"Psychiatry Total",6,"AAMC","Academic","Public","Chief","MD","2021-2022",265982,{"$f":"(((AAMC_Raw_Data_for_FY22[[#This Row],[Median]]-AAMC_Raw_Data_for_FY22[[#This Row],[25th]])/25)*5) + AAMC_Raw_Data_for_FY22[[#This Row],[25th]]","v":273206.2},{"$f":"(((AAMC_Raw_Data_for_FY22[[#This Row],[Median]]-AAMC_Raw_Data_for_FY22[[#This Row],[25th]])/25)*10) + AAMC_Raw_Data_for_FY22[[#This Row],[25th]]","v":280430.40000000002},{"$f":"(((AAMC_Raw_Data_for_FY22[[#This Row],[Median]]-AAMC_Raw_Data_for_FY22[[#This Row],[25th]])/25)*15) + AAMC_Raw_Data_for_FY22[[#This Row],[25th]]","v":287654.59999999998},{"$f":"(((AAMC_Raw_Data_for_FY22[[#This Row],[Median]]-AAMC_Raw_Data_for_FY22[[#This Row],[25th]])/25)*20) + AAMC_Raw_Data_for_FY22[[#This Row],[25th]]","v":294878.8},302103,{"$f":"(((AAMC_Raw_Data_for_FY22[[#This Row],[75th]]-AAMC_Raw_Data_for_FY22[[#This Row],[Median]])/25)*5) + AAMC_Raw_Data_for_FY22[[#This Row],[Median]]","v":315565.40000000002},{"$f":"(((AAMC_Raw_Data_for_FY22[[#This Row],[75th]]-AAMC_Raw_Data_for_FY22[[#This Row],[Median]])/25)*10) + AAMC_Raw_Data_for_FY22[[#This Row],[Median]]","v":329027.8},{"$f":"(((AAMC_Raw_Data_for_FY22[[#This Row],[75th]]-AAMC_Raw_Data_for_FY22[[#This Row],[Median]])/25)*15) + AAMC_Raw_Data_for_FY22[[#This Row],[Median]]","v":342490.2},{"$f":"(((AAMC_Raw_Data_for_FY22[[#This Row],[75th]]-AAMC_Raw_Data_for_FY22[[#This Row],[Median]])/25)*20) + AAMC_Raw_Data_for_FY22[[#This Row],[Median]]","v":355952.6},369415,{"$f":"(((AAMC_Raw_Data_for_FY22[[#This Row],[75th]]-AAMC_Raw_Data_for_FY22[[#This Row],[Median]])/25)*30) + AAMC_Raw_Data_for_FY22[[#This Row],[Median]]","v":382877.4},{"$f":"(((AAMC_Raw_Data_for_FY22[[#This Row],[75th]]-AAMC_Raw_Data_for_FY22[[#This Row],[Median]])/25)*35) + AAMC_Raw_Data_for_FY22[[#This Row],[Median]]","v":396339.8},{"$f":"(((AAMC_Raw_Data_for_FY22[[#This Row],[75th]]-AAMC_Raw_Data_for_FY22[[#This Row],[Median]])/25)*40) + AAMC_Raw_Data_for_FY22[[#This Row],[Median]]","v":409802.2}]
[{"$f":"AAMC_Raw_Data_for_FY22[[#This Row],[Source]]&AAMC_Raw_Data_for_FY22[[#This Row],[Type]]&AAMC_Raw_Data_for_FY22[[#This Row],[School Subset]]&AAMC_Raw_Data_for_FY22[[#This Row],[Rank]]&AAMC_Raw_Data_for_FY22[[#This Row],[Degree]]&AAMC_Raw_Data_for_FY22[[#This Row],[Department / Specialty]]&\"L\"","v":"AAMCAcademicPublicChairMDPsychiatry TotalL"},"Psychiatry Total",1,"AAMC","Academic","Public","Chair","MD","2021-2022",393385,{"$f":"(((AAMC_Raw_Data_for_FY22[[#This Row],[Median]]-AAMC_Raw_Data_for_FY22[[#This Row],[25th]])/25)*5) + AAMC_Raw_Data_for_FY22[[#This Row],[25th]]","v":411308},{"$f":"(((AAMC_Raw_Data_for_FY22[[#This Row],[Median]]-AAMC_Raw_Data_for_FY22[[#This Row],[25th]])/25)*10) + AAMC_Raw_Data_for_FY22[[#This Row],[25th]]","v":429231},{"$f":"(((AAMC_Raw_Data_for_FY22[[#This Row],[Median]]-AAMC_Raw_Data_for_FY22[[#This Row],[25th]])/25)*15) + AAMC_Raw_Data_for_FY22[[#This Row],[25th]]","v":447154},{"$f":"(((AAMC_Raw_Data_for_FY22[[#This Row],[Median]]-AAMC_Raw_Data_for_FY22[[#This Row],[25th]])/25)*20) + AAMC_Raw_Data_for_FY22[[#This Row],[25th]]","v":465077},483000,{"$f":"(((AAMC_Raw_Data_for_FY22[[#This Row],[75th]]-AAMC_Raw_Data_for_FY22[[#This Row],[Median]])/25)*5) + AAMC_Raw_Data_for_FY22[[#This Row],[Median]]","v":492912.6},{"$f":"(((AAMC_Raw_Data_for_FY22[[#This Row],[75th]]-AAMC_Raw_Data_for_FY22[[#This Row],[Median]])/25)*10) + AAMC_Raw_Data_for_FY22[[#This Row],[Median]]","v":502825.2},{"$f":"(((AAMC_Raw_Data_for_FY22[[#This Row],[75th]]-AAMC_Raw_Data_for_FY22[[#This Row],[Median]])/25)*15) + AAMC_Raw_Data_for_FY22[[#This Row],[Median]]","v":512737.8},{"$f":"(((AAMC_Raw_Data_for_FY22[[#This Row],[75th]]-AAMC_Raw_Data_for_FY22[[#This Row],[Median]])/25)*20) + AAMC_Raw_Data_for_FY22[[#This Row],[Median]]","v":522650.4},532563,{"$f":"(((AAMC_Raw_Data_for_FY22[[#This Row],[75th]]-AAMC_Raw_Data_for_FY22[[#This Row],[Median]])/25)*30) + AAMC_Raw_Data_for_FY22[[#This Row],[Median]]","v":542475.6},{"$f":"(((AAMC_Raw_Data_for_FY22[[#This Row],[75th]]-AAMC_Raw_Data_for_FY22[[#This Row],[Median]])/25)*35) + AAMC_Raw_Data_for_FY22[[#This Row],[Median]]","v":552388.19999999995},{"$f":"(((AAMC_Raw_Data_for_FY22[[#This Row],[75th]]-AAMC_Raw_Data_for_FY22[[#This Row],[Median]])/25)*40) + AAMC_Raw_Data_for_FY22[[#This Row],[Median]]","v":562300.80000000005}]
[{"$f":"AAMC_Raw_Data_for_FY22[[#This Row],[Source]]&AAMC_Raw_Data_for_FY22[[#This Row],[Type]]&AAMC_Raw_Data_for_FY22[[#This Row],[School Subset]]&AAMC_Raw_Data_for_FY22[[#This Row],[Rank]]&AAMC_Raw_Data_for_FY22[[#This Row],[Degree]]&AAMC_Raw_Data_for_FY22[[#This Row],[Department / Specialty]]&\"L\"","v":"AAMCAcademicPublicInstructorMDPsychiatry: Child & AdolescentL"},"Psychiatry: Child & Adolescent",5,"AAMC","Academic","Public","Instructor","MD","2021-2022",null,{"$f":"(((AAMC_Raw_Data_for_FY22[[#This Row],[Median]]-AAMC_Raw_Data_for_FY22[[#This Row],[25th]])/25)*5) + AAMC_Raw_Data_for_FY22[[#This Row],[25th]]","v":0},{"$f":"(((AAMC_Raw_Data_for_FY22[[#This Row],[Median]]-AAMC_Raw_Data_for_FY22[[#This Row],[25th]])/25)*10) + AAMC_Raw_Data_for_FY22[[#This Row],[25th]]","v":0},{"$f":"(((AAMC_Raw_Data_for_FY22[[#This Row],[Median]]-AAMC_Raw_Data_for_FY22[[#This Row],[25th]])/25)*15) + AAMC_Raw_Data_for_FY22[[#This Row],[25th]]","v":0},{"$f":"(((AAMC_Raw_Data_for_FY22[[#This Row],[Median]]-AAMC_Raw_Data_for_FY22[[#This Row],[25th]])/25)*20) + AAMC_Raw_Data_for_FY22[[#This Row],[25th]]","v":0},null,{"$f":"(((AAMC_Raw_Data_for_FY22[[#This Row],[75th]]-AAMC_Raw_Data_for_FY22[[#This Row],[Median]])/25)*5) + AAMC_Raw_Data_for_FY22[[#This Row],[Median]]","v":0},{"$f":"(((AAMC_Raw_Data_for_FY22[[#This Row],[75th]]-AAMC_Raw_Data_for_FY22[[#This Row],[Median]])/25)*10) + AAMC_Raw_Data_for_FY22[[#This Row],[Median]]","v":0},{"$f":"(((AAMC_Raw_Data_for_FY22[[#This Row],[75th]]-AAMC_Raw_Data_for_FY22[[#This Row],[Median]])/25)*15) + AAMC_Raw_Data_for_FY22[[#This Row],[Median]]","v":0},{"$f":"(((AAMC_Raw_Data_for_FY22[[#This Row],[75th]]-AAMC_Raw_Data_for_FY22[[#This Row],[Median]])/25)*20) + AAMC_Raw_Data_for_FY22[[#This Row],[Median]]","v":0},null,{"$f":"(((AAMC_Raw_Data_for_FY22[[#This Row],[75th]]-AAMC_Raw_Data_for_FY22[[#This Row],[Median]])/25)*30) + AAMC_Raw_Data_for_FY22[[#This Row],[Median]]","v":0},{"$f":"(((AAMC_Raw_Data_for_FY22[[#This Row],[75th]]-AAMC_Raw_Data_for_FY22[[#This Row],[Median]])/25)*35) + AAMC_Raw_Data_for_FY22[[#This Row],[Median]]","v":0},{"$f":"(((AAMC_Raw_Data_for_FY22[[#This Row],[75th]]-AAMC_Raw_Data_for_FY22[[#This Row],[Median]])/25)*40) + AAMC_Raw_Data_for_FY22[[#This Row],[Median]]","v":0}]
[{"$f":"AAMC_Raw_Data_for_FY22[[#This Row],[Source]]&AAMC_Raw_Data_for_FY22[[#This Row],[Type]]&AAMC_Raw_Data_for_FY22[[#This Row],[School Subset]]&AAMC_Raw_Data_for_FY22[[#This Row],[Rank]]&AAMC_Raw_Data_for_FY22[[#This Row],[Degree]]&AAMC_Raw_Data_for_FY22[[#This Row],[Department / Specialty]]&\"L\"","v":"AAMCAcademicPublicAssistantMDPsychiatry: Child & AdolescentL"},"Psychiatry: Child & Adolescent",4,"AAMC","Academic","Public","Assistant","MD","2021-2022",221858,{"$f":"(((AAMC_Raw_Data_for_FY22[[#This Row],[Median]]-AAMC_Raw_Data_for_FY22[[#This Row],[25th]])/25)*5) + AAMC_Raw_Data_for_FY22[[#This Row],[25th]]","v":227801},{"$f":"(((AAMC_Raw_Data_for_FY22[[#This Row],[Median]]-AAMC_Raw_Data_for_FY22[[#This Row],[25th]])/25)*10) + AAMC_Raw_Data_for_FY22[[#This Row],[25th]]","v":233744},{"$f":"(((AAMC_Raw_Data_for_FY22[[#This Row],[Median]]-AAMC_Raw_Data_for_FY22[[#This Row],[25th]])/25)*15) + AAMC_Raw_Data_for_FY22[[#This Row],[25th]]","v":239687},{"$f":"(((AAMC_Raw_Data_for_FY22[[#This Row],[Median]]-AAMC_Raw_Data_for_FY22[[#This Row],[25th]])/25)*20) + AAMC_Raw_Data_for_FY22[[#This Row],[25th]]","v":245630},251573,{"$f":"(((AAMC_Raw_Data_for_FY22[[#This Row],[75th]]-AAMC_Raw_Data_for_FY22[[#This Row],[Median]])/25)*5) + AAMC_Raw_Data_for_FY22[[#This Row],[Median]]","v":257221.2},{"$f":"(((AAMC_Raw_Data_for_FY22[[#This Row],[75th]]-AAMC_Raw_Data_for_FY22[[#This Row],[Median]])/25)*10) + AAMC_Raw_Data_for_FY22[[#This Row],[Median]]","v":262869.40000000002},{"$f":"(((AAMC_Raw_Data_for_FY22[[#This Row],[75th]]-AAMC_Raw_Data_for_FY22[[#This Row],[Median]])/25)*15) + AAMC_Raw_Data_for_FY22[[#This Row],[Median]]","v":268517.59999999998},{"$f":"(((AAMC_Raw_Data_for_FY22[[#This Row],[75th]]-AAMC_Raw_Data_for_FY22[[#This Row],[Median]])/25)*20) + AAMC_Raw_Data_for_FY22[[#This Row],[Median]]","v":274165.8},279814,{"$f":"(((AAMC_Raw_Data_for_FY22[[#This Row],[75th]]-AAMC_Raw_Data_for_FY22[[#This Row],[Median]])/25)*30) + AAMC_Raw_Data_for_FY22[[#This Row],[Median]]","v":285462.2},{"$f":"(((AAMC_Raw_Data_for_FY22[[#This Row],[75th]]-AAMC_Raw_Data_for_FY22[[#This Row],[Median]])/25)*35) + AAMC_Raw_Data_for_FY22[[#This Row],[Median]]","v":291110.40000000002},{"$f":"(((AAMC_Raw_Data_for_FY22[[#This Row],[75th]]-AAMC_Raw_Data_for_FY22[[#This Row],[Median]])/25)*40) + AAMC_Raw_Data_for_FY22[[#This Row],[Median]]","v":296758.59999999998}]
[{"$f":"AAMC_Raw_Data_for_FY22[[#This Row],[Source]]&AAMC_Raw_Data_for_FY22[[#This Row],[Type]]&AAMC_Raw_Data_for_FY22[[#This Row],[School Subset]]&AAMC_Raw_Data_for_FY22[[#This Row],[Rank]]&AAMC_Raw_Data_for_FY22[[#This Row],[Degree]]&AAMC_Raw_Data_for_FY22[[#This Row],[Department / Specialty]]&\"L\"","v":"AAMCAcademicPublicAssociateMDPsychiatry: Child & AdolescentL"},"Psychiatry: Child & Adolescent",3,"AAMC","Academic","Public","Associate","MD","2021-2022",240551,{"$f":"(((AAMC_Raw_Data_for_FY22[[#This Row],[Median]]-AAMC_Raw_Data_for_FY22[[#This Row],[25th]])/25)*5) + AAMC_Raw_Data_for_FY22[[#This Row],[25th]]","v":247478.6},{"$f":"(((AAMC_Raw_Data_for_FY22[[#This Row],[Median]]-AAMC_Raw_Data_for_FY22[[#This Row],[25th]])/25)*10) + AAMC_Raw_Data_for_FY22[[#This Row],[25th]]","v":254406.2},{"$f":"(((AAMC_Raw_Data_for_FY22[[#This Row],[Median]]-AAMC_Raw_Data_for_FY22[[#This Row],[25th]])/25)*15) + AAMC_Raw_Data_for_FY22[[#This Row],[25th]]","v":261333.8},{"$f":"(((AAMC_Raw_Data_for_FY22[[#This Row],[Median]]-AAMC_Raw_Data_for_FY22[[#This Row],[25th]])/25)*20) + AAMC_Raw_Data_for_FY22[[#This Row],[25th]]","v":268261.40000000002},275189,{"$f":"(((AAMC_Raw_Data_for_FY22[[#This Row],[75th]]-AAMC_Raw_Data_for_FY22[[#This Row],[Median]])/25)*5) + AAMC_Raw_Data_for_FY22[[#This Row],[Median]]","v":281544.59999999998},{"$f":"(((AAMC_Raw_Data_for_FY22[[#This Row],[75th]]-AAMC_Raw_Data_for_FY22[[#This Row],[Median]])/25)*10) + AAMC_Raw_Data_for_FY22[[#This Row],[Median]]","v":287900.2},{"$f":"(((AAMC_Raw_Data_for_FY22[[#This Row],[75th]]-AAMC_Raw_Data_for_FY22[[#This Row],[Median]])/25)*15) + AAMC_Raw_Data_for_FY22[[#This Row],[Median]]","v":294255.8},{"$f":"(((AAMC_Raw_Data_for_FY22[[#This Row],[75th]]-AAMC_Raw_Data_for_FY22[[#This Row],[Median]])/25)*20) + AAMC_Raw_Data_for_FY22[[#This Row],[Median]]","v":300611.40000000002},306967,{"$f":"(((AAMC_Raw_Data_for_FY22[[#This Row],[75th]]-AAMC_Raw_Data_for_FY22[[#This Row],[Median]])/25)*30) + AAMC_Raw_Data_for_FY22[[#This Row],[Median]]","v":313322.59999999998},{"$f":"(((AAMC_Raw_Data_for_FY22[[#This Row],[75th]]-AAMC_Raw_Data_for_FY22[[#This Row],[Median]])/25)*35) + AAMC_Raw_Data_for_FY22[[#This Row],[Median]]","v":319678.2},{"$f":"(((AAMC_Raw_Data_for_FY22[[#This Row],[75th]]-AAMC_Raw_Data_for_FY22[[#This Row],[Median]])/25)*40) + AAMC_Raw_Data_for_FY22[[#This Row],[Median]]","v":326033.8}]
[{"$f":"AAMC_Raw_Data_for_FY22[[#This Row],[Source]]&AAMC_Raw_Data_for_FY22[[#This Row],[Type]]&AAMC_Raw_Data_for_FY22[[#This Row],[School Subset]]&AAMC_Raw_Data_for_FY22[[#This Row],[Rank]]&AAMC_Raw_Data_for_FY22[[#This Row],[Degree]]&AAMC_Raw_Data_for_FY22[[#This Row],[Department / Specialty]]&\"L\"","v":"AAMCAcademicPublicProfessorMDPsychiatry: Child & AdolescentL"},"Psychiatry: Child & Adolescent",2,"AAMC","Academic","Public","Professor","MD","2021-2022",257008,{"$f":"(((AAMC_Raw_Data_for_FY22[[#This Row],[Median]]-AAMC_Raw_Data_for_FY22[[#This Row],[25th]])/25)*5) + AAMC_Raw_Data_for_FY22[[#This Row],[25th]]","v":266035.40000000002},{"$f":"(((AAMC_Raw_Data_for_FY22[[#This Row],[Median]]-AAMC_Raw_Data_for_FY22[[#This Row],[25th]])/25)*10) + AAMC_Raw_Data_for_FY22[[#This Row],[25th]]","v":275062.8},{"$f":"(((AAMC_Raw_Data_for_FY22[[#This Row],[Median]]-AAMC_Raw_Data_for_FY22[[#This Row],[25th]])/25)*15) + AAMC_Raw_Data_for_FY22[[#This Row],[25th]]","v":284090.2},{"$f":"(((AAMC_Raw_Data_for_FY22[[#This Row],[Median]]-AAMC_Raw_Data_for_FY22[[#This Row],[25th]])/25)*20) + AAMC_Raw_Data_for_FY22[[#This Row],[25th]]","v":293117.59999999998},302145,{"$f":"(((AAMC_Raw_Data_for_FY22[[#This Row],[75th]]-AAMC_Raw_Data_for_FY22[[#This Row],[Median]])/25)*5) + AAMC_Raw_Data_for_FY22[[#This Row],[Median]]","v":310845.40000000002},{"$f":"(((AAMC_Raw_Data_for_FY22[[#This Row],[75th]]-AAMC_Raw_Data_for_FY22[[#This Row],[Median]])/25)*10) + AAMC_Raw_Data_for_FY22[[#This Row],[Median]]","v":319545.8},{"$f":"(((AAMC_Raw_Data_for_FY22[[#This Row],[75th]]-AAMC_Raw_Data_for_FY22[[#This Row],[Median]])/25)*15) + AAMC_Raw_Data_for_FY22[[#This Row],[Median]]","v":328246.2},{"$f":"(((AAMC_Raw_Data_for_FY22[[#This Row],[75th]]-AAMC_Raw_Data_for_FY22[[#This Row],[Median]])/25)*20) + AAMC_Raw_Data_for_FY22[[#This Row],[Median]]","v":336946.6},345647,{"$f":"(((AAMC_Raw_Data_for_FY22[[#This Row],[75th]]-AAMC_Raw_Data_for_FY22[[#This Row],[Median]])/25)*30) + AAMC_Raw_Data_for_FY22[[#This Row],[Median]]","v":354347.4},{"$f":"(((AAMC_Raw_Data_for_FY22[[#This Row],[75th]]-AAMC_Raw_Data_for_FY22[[#This Row],[Median]])/25)*35) + AAMC_Raw_Data_for_FY22[[#This Row],[Median]]","v":363047.8},{"$f":"(((AAMC_Raw_Data_for_FY22[[#This Row],[75th]]-AAMC_Raw_Data_for_FY22[[#This Row],[Median]])/25)*40) + AAMC_Raw_Data_for_FY22[[#This Row],[Median]]","v":371748.2}]
[{"$f":"AAMC_Raw_Data_for_FY22[[#This Row],[Source]]&AAMC_Raw_Data_for_FY22[[#This Row],[Type]]&AAMC_Raw_Data_for_FY22[[#This Row],[School Subset]]&AAMC_Raw_Data_for_FY22[[#This Row],[Rank]]&AAMC_Raw_Data_for_FY22[[#This Row],[Degree]]&AAMC_Raw_Data_for_FY22[[#This Row],[Department / Specialty]]&\"L\"","v":"AAMCAcademicPublicChiefMDPsychiatry: Child & AdolescentL"},"Psychiatry: Child & Adolescent",6,"AAMC","Academic","Public","Chief","MD","2021-2022",256346,{"$f":"(((AAMC_Raw_Data_for_FY22[[#This Row],[Median]]-AAMC_Raw_Data_for_FY22[[#This Row],[25th]])/25)*5) + AAMC_Raw_Data_for_FY22[[#This Row],[25th]]","v":261123.8},{"$f":"(((AAMC_Raw_Data_for_FY22[[#This Row],[Median]]-AAMC_Raw_Data_for_FY22[[#This Row],[25th]])/25)*10) + AAMC_Raw_Data_for_FY22[[#This Row],[25th]]","v":265901.59999999998},{"$f":"(((AAMC_Raw_Data_for_FY22[[#This Row],[Median]]-AAMC_Raw_Data_for_FY22[[#This Row],[25th]])/25)*15) + AAMC_Raw_Data_for_FY22[[#This Row],[25th]]","v":270679.40000000002},{"$f":"(((AAMC_Raw_Data_for_FY22[[#This Row],[Median]]-AAMC_Raw_Data_for_FY22[[#This Row],[25th]])/25)*20) + AAMC_Raw_Data_for_FY22[[#This Row],[25th]]","v":275457.2},280235,{"$f":"(((AAMC_Raw_Data_for_FY22[[#This Row],[75th]]-AAMC_Raw_Data_for_FY22[[#This Row],[Median]])/25)*5) + AAMC_Raw_Data_for_FY22[[#This Row],[Median]]","v":290038.40000000002},{"$f":"(((AAMC_Raw_Data_for_FY22[[#This Row],[75th]]-AAMC_Raw_Data_for_FY22[[#This Row],[Median]])/25)*10) + AAMC_Raw_Data_for_FY22[[#This Row],[Median]]","v":299841.8},{"$f":"(((AAMC_Raw_Data_for_FY22[[#This Row],[75th]]-AAMC_Raw_Data_for_FY22[[#This Row],[Median]])/25)*15) + AAMC_Raw_Data_for_FY22[[#This Row],[Median]]","v":309645.2},{"$f":"(((AAMC_Raw_Data_for_FY22[[#This Row],[75th]]-AAMC_Raw_Data_for_FY22[[#This Row],[Median]])/25)*20) + AAMC_Raw_Data_for_FY22[[#This Row],[Median]]","v":319448.59999999998},329252,{"$f":"(((AAMC_Raw_Data_for_FY22[[#This Row],[75th]]-AAMC_Raw_Data_for_FY22[[#This Row],[Median]])/25)*30) + AAMC_Raw_Data_for_FY22[[#This Row],[Median]]","v":339055.4},{"$f":"(((AAMC_Raw_Data_for_FY22[[#This Row],[75th]]-AAMC_Raw_Data_for_FY22[[#This Row],[Median]])/25)*35) + AAMC_Raw_Data_for_FY22[[#This Row],[Median]]","v":348858.8},{"$f":"(((AAMC_Raw_Data_for_FY22[[#This Row],[75th]]-AAMC_Raw_Data_for_FY22[[#This Row],[Median]])/25)*40) + AAMC_Raw_Data_for_FY22[[#This Row],[Median]]","v":358662.2}]
[{"$f":"AAMC_Raw_Data_for_FY22[[#This Row],[Source]]&AAMC_Raw_Data_for_FY22[[#This Row],[Type]]&AAMC_Raw_Data_for_FY22[[#This Row],[School Subset]]&AAMC_Raw_Data_for_FY22[[#This Row],[Rank]]&AAMC_Raw_Data_for_FY22[[#This Row],[Degree]]&AAMC_Raw_Data_for_FY22[[#This Row],[Department / Specialty]]&\"L\"","v":"AAMCAcademicPublicChairMDPsychiatry: Child & AdolescentL"},"Psychiatry: Child & Adolescent",1,"AAMC","Academic","Public","Chair","MD","2021-2022",327075,{"$f":"(((AAMC_Raw_Data_for_FY22[[#This Row],[Median]]-AAMC_Raw_Data_for_FY22[[#This Row],[25th]])/25)*5) + AAMC_Raw_Data_for_FY22[[#This Row],[25th]]","v":354853.8},{"$f":"(((AAMC_Raw_Data_for_FY22[[#This Row],[Median]]-AAMC_Raw_Data_for_FY22[[#This Row],[25th]])/25)*10) + AAMC_Raw_Data_for_FY22[[#This Row],[25th]]","v":382632.6},{"$f":"(((AAMC_Raw_Data_for_FY22[[#This Row],[Median]]-AAMC_Raw_Data_for_FY22[[#This Row],[25th]])/25)*15) + AAMC_Raw_Data_for_FY22[[#This Row],[25th]]","v":410411.4},{"$f":"(((AAMC_Raw_Data_for_FY22[[#This Row],[Median]]-AAMC_Raw_Data_for_FY22[[#This Row],[25th]])/25)*20) + AAMC_Raw_Data_for_FY22[[#This Row],[25th]]","v":438190.2},465969,{"$f":"(((AAMC_Raw_Data_for_FY22[[#This Row],[75th]]-AAMC_Raw_Data_for_FY22[[#This Row],[Median]])/25)*5) + AAMC_Raw_Data_for_FY22[[#This Row],[Median]]","v":498452.4},{"$f":"(((AAMC_Raw_Data_for_FY22[[#This Row],[75th]]-AAMC_Raw_Data_for_FY22[[#This Row],[Median]])/25)*10) + AAMC_Raw_Data_for_FY22[[#This Row],[Median]]","v":530935.80000000005},{"$f":"(((AAMC_Raw_Data_for_FY22[[#This Row],[75th]]-AAMC_Raw_Data_for_FY22[[#This Row],[Median]])/25)*15) + AAMC_Raw_Data_for_FY22[[#This Row],[Median]]","v":563419.19999999995},{"$f":"(((AAMC_Raw_Data_for_FY22[[#This Row],[75th]]-AAMC_Raw_Data_for_FY22[[#This Row],[Median]])/25)*20) + AAMC_Raw_Data_for_FY22[[#This Row],[Median]]","v":595902.6},628386,{"$f":"(((AAMC_Raw_Data_for_FY22[[#This Row],[75th]]-AAMC_Raw_Data_for_FY22[[#This Row],[Median]])/25)*30) + AAMC_Raw_Data_for_FY22[[#This Row],[Median]]","v":660869.4},{"$f":"(((AAMC_Raw_Data_for_FY22[[#This Row],[75th]]-AAMC_Raw_Data_for_FY22[[#This Row],[Median]])/25)*35) + AAMC_Raw_Data_for_FY22[[#This Row],[Median]]","v":693352.8},{"$f":"(((AAMC_Raw_Data_for_FY22[[#This Row],[75th]]-AAMC_Raw_Data_for_FY22[[#This Row],[Median]])/25)*40) + AAMC_Raw_Data_for_FY22[[#This Row],[Median]]","v":725836.2}]
[{"$f":"AAMC_Raw_Data_for_FY22[[#This Row],[Source]]&AAMC_Raw_Data_for_FY22[[#This Row],[Type]]&AAMC_Raw_Data_for_FY22[[#This Row],[School Subset]]&AAMC_Raw_Data_for_FY22[[#This Row],[Rank]]&AAMC_Raw_Data_for_FY22[[#This Row],[Degree]]&AAMC_Raw_Data_for_FY22[[#This Row],[Department / Specialty]]&\"L\"","v":"AAMCAcademicPublicInstructorMDPsychiatry: GeneralL"},"Psychiatry: General",5,"AAMC","Academic","Public","Instructor","MD","2021-2022",190436,{"$f":"(((AAMC_Raw_Data_for_FY22[[#This Row],[Median]]-AAMC_Raw_Data_for_FY22[[#This Row],[25th]])/25)*5) + AAMC_Raw_Data_for_FY22[[#This Row],[25th]]","v":195984},{"$f":"(((AAMC_Raw_Data_for_FY22[[#This Row],[Median]]-AAMC_Raw_Data_for_FY22[[#This Row],[25th]])/25)*10) + AAMC_Raw_Data_for_FY22[[#This Row],[25th]]","v":201532},{"$f":"(((AAMC_Raw_Data_for_FY22[[#This Row],[Median]]-AAMC_Raw_Data_for_FY22[[#This Row],[25th]])/25)*15) + AAMC_Raw_Data_for_FY22[[#This Row],[25th]]","v":207080},{"$f":"(((AAMC_Raw_Data_for_FY22[[#This Row],[Median]]-AAMC_Raw_Data_for_FY22[[#This Row],[25th]])/25)*20) + AAMC_Raw_Data_for_FY22[[#This Row],[25th]]","v":212628},218176,{"$f":"(((AAMC_Raw_Data_for_FY22[[#This Row],[75th]]-AAMC_Raw_Data_for_FY22[[#This Row],[Median]])/25)*5) + AAMC_Raw_Data_for_FY22[[#This Row],[Median]]","v":221639},{"$f":"(((AAMC_Raw_Data_for_FY22[[#This Row],[75th]]-AAMC_Raw_Data_for_FY22[[#This Row],[Median]])/25)*10) + AAMC_Raw_Data_for_FY22[[#This Row],[Median]]","v":225102},{"$f":"(((AAMC_Raw_Data_for_FY22[[#This Row],[75th]]-AAMC_Raw_Data_for_FY22[[#This Row],[Median]])/25)*15) + AAMC_Raw_Data_for_FY22[[#This Row],[Median]]","v":228565},{"$f":"(((AAMC_Raw_Data_for_FY22[[#This Row],[75th]]-AAMC_Raw_Data_for_FY22[[#This Row],[Median]])/25)*20) + AAMC_Raw_Data_for_FY22[[#This Row],[Median]]","v":232028},235491,{"$f":"(((AAMC_Raw_Data_for_FY22[[#This Row],[75th]]-AAMC_Raw_Data_for_FY22[[#This Row],[Median]])/25)*30) + AAMC_Raw_Data_for_FY22[[#This Row],[Median]]","v":238954},{"$f":"(((AAMC_Raw_Data_for_FY22[[#This Row],[75th]]-AAMC_Raw_Data_for_FY22[[#This Row],[Median]])/25)*35) + AAMC_Raw_Data_for_FY22[[#This Row],[Median]]","v":242417},{"$f":"(((AAMC_Raw_Data_for_FY22[[#This Row],[75th]]-AAMC_Raw_Data_for_FY22[[#This Row],[Median]])/25)*40) + AAMC_Raw_Data_for_FY22[[#This Row],[Median]]","v":245880}]
[{"$f":"AAMC_Raw_Data_for_FY22[[#This Row],[Source]]&AAMC_Raw_Data_for_FY22[[#This Row],[Type]]&AAMC_Raw_Data_for_FY22[[#This Row],[School Subset]]&AAMC_Raw_Data_for_FY22[[#This Row],[Rank]]&AAMC_Raw_Data_for_FY22[[#This Row],[Degree]]&AAMC_Raw_Data_for_FY22[[#This Row],[Department / Specialty]]&\"L\"","v":"AAMCAcademicPublicAssistantMDPsychiatry: GeneralL"},"Psychiatry: General",4,"AAMC","Academic","Public","Assistant","MD","2021-2022",217440,{"$f":"(((AAMC_Raw_Data_for_FY22[[#This Row],[Median]]-AAMC_Raw_Data_for_FY22[[#This Row],[25th]])/25)*5) + AAMC_Raw_Data_for_FY22[[#This Row],[25th]]","v":221538.4},{"$f":"(((AAMC_Raw_Data_for_FY22[[#This Row],[Median]]-AAMC_Raw_Data_for_FY22[[#This Row],[25th]])/25)*10) + AAMC_Raw_Data_for_FY22[[#This Row],[25th]]","v":225636.8},{"$f":"(((AAMC_Raw_Data_for_FY22[[#This Row],[Median]]-AAMC_Raw_Data_for_FY22[[#This Row],[25th]])/25)*15) + AAMC_Raw_Data_for_FY22[[#This Row],[25th]]","v":229735.2},{"$f":"(((AAMC_Raw_Data_for_FY22[[#This Row],[Median]]-AAMC_Raw_Data_for_FY22[[#This Row],[25th]])/25)*20) + AAMC_Raw_Data_for_FY22[[#This Row],[25th]]","v":233833.60000000001},237932,{"$f":"(((AAMC_Raw_Data_for_FY22[[#This Row],[75th]]-AAMC_Raw_Data_for_FY22[[#This Row],[Median]])/25)*5) + AAMC_Raw_Data_for_FY22[[#This Row],[Median]]","v":244980.2},{"$f":"(((AAMC_Raw_Data_for_FY22[[#This Row],[75th]]-AAMC_Raw_Data_for_FY22[[#This Row],[Median]])/25)*10) + AAMC_Raw_Data_for_FY22[[#This Row],[Median]]","v":252028.4},{"$f":"(((AAMC_Raw_Data_for_FY22[[#This Row],[75th]]-AAMC_Raw_Data_for_FY22[[#This Row],[Median]])/25)*15) + AAMC_Raw_Data_for_FY22[[#This Row],[Median]]","v":259076.6},{"$f":"(((AAMC_Raw_Data_for_FY22[[#This Row],[75th]]-AAMC_Raw_Data_for_FY22[[#This Row],[Median]])/25)*20) + AAMC_Raw_Data_for_FY22[[#This Row],[Median]]","v":266124.79999999999},273173,{"$f":"(((AAMC_Raw_Data_for_FY22[[#This Row],[75th]]-AAMC_Raw_Data_for_FY22[[#This Row],[Median]])/25)*30) + AAMC_Raw_Data_for_FY22[[#This Row],[Median]]","v":280221.2},{"$f":"(((AAMC_Raw_Data_for_FY22[[#This Row],[75th]]-AAMC_Raw_Data_for_FY22[[#This Row],[Median]])/25)*35) + AAMC_Raw_Data_for_FY22[[#This Row],[Median]]","v":287269.40000000002},{"$f":"(((AAMC_Raw_Data_for_FY22[[#This Row],[75th]]-AAMC_Raw_Data_for_FY22[[#This Row],[Median]])/25)*40) + AAMC_Raw_Data_for_FY22[[#This Row],[Median]]","v":294317.59999999998}]
[{"$f":"AAMC_Raw_Data_for_FY22[[#This Row],[Source]]&AAMC_Raw_Data_for_FY22[[#This Row],[Type]]&AAMC_Raw_Data_for_FY22[[#This Row],[School Subset]]&AAMC_Raw_Data_for_FY22[[#This Row],[Rank]]&AAMC_Raw_Data_for_FY22[[#This Row],[Degree]]&AAMC_Raw_Data_for_FY22[[#This Row],[Department / Specialty]]&\"L\"","v":"AAMCAcademicPublicAssociateMDPsychiatry: GeneralL"},"Psychiatry: General",3,"AAMC","Academic","Public","Associate","MD","2021-2022",234354,{"$f":"(((AAMC_Raw_Data_for_FY22[[#This Row],[Median]]-AAMC_Raw_Data_for_FY22[[#This Row],[25th]])/25)*5) + AAMC_Raw_Data_for_FY22[[#This Row],[25th]]","v":239245.6},{"$f":"(((AAMC_Raw_Data_for_FY22[[#This Row],[Median]]-AAMC_Raw_Data_for_FY22[[#This Row],[25th]])/25)*10) + AAMC_Raw_Data_for_FY22[[#This Row],[25th]]","v":244137.2},{"$f":"(((AAMC_Raw_Data_for_FY22[[#This Row],[Median]]-AAMC_Raw_Data_for_FY22[[#This Row],[25th]])/25)*15) + AAMC_Raw_Data_for_FY22[[#This Row],[25th]]","v":249028.8},{"$f":"(((AAMC_Raw_Data_for_FY22[[#This Row],[Median]]-AAMC_Raw_Data_for_FY22[[#This Row],[25th]])/25)*20) + AAMC_Raw_Data_for_FY22[[#This Row],[25th]]","v":253920.4},258812,{"$f":"(((AAMC_Raw_Data_for_FY22[[#This Row],[75th]]-AAMC_Raw_Data_for_FY22[[#This Row],[Median]])/25)*5) + AAMC_Raw_Data_for_FY22[[#This Row],[Median]]","v":267303.8},{"$f":"(((AAMC_Raw_Data_for_FY22[[#This Row],[75th]]-AAMC_Raw_Data_for_FY22[[#This Row],[Median]])/25)*10) + AAMC_Raw_Data_for_FY22[[#This Row],[Median]]","v":275795.59999999998},{"$f":"(((AAMC_Raw_Data_for_FY22[[#This Row],[75th]]-AAMC_Raw_Data_for_FY22[[#This Row],[Median]])/25)*15) + AAMC_Raw_Data_for_FY22[[#This Row],[Median]]","v":284287.40000000002},{"$f":"(((AAMC_Raw_Data_for_FY22[[#This Row],[75th]]-AAMC_Raw_Data_for_FY22[[#This Row],[Median]])/25)*20) + AAMC_Raw_Data_for_FY22[[#This Row],[Median]]","v":292779.2},301271,{"$f":"(((AAMC_Raw_Data_for_FY22[[#This Row],[75th]]-AAMC_Raw_Data_for_FY22[[#This Row],[Median]])/25)*30) + AAMC_Raw_Data_for_FY22[[#This Row],[Median]]","v":309762.8},{"$f":"(((AAMC_Raw_Data_for_FY22[[#This Row],[75th]]-AAMC_Raw_Data_for_FY22[[#This Row],[Median]])/25)*35) + AAMC_Raw_Data_for_FY22[[#This Row],[Median]]","v":318254.59999999998},{"$f":"(((AAMC_Raw_Data_for_FY22[[#This Row],[75th]]-AAMC_Raw_Data_for_FY22[[#This Row],[Median]])/25)*40) + AAMC_Raw_Data_for_FY22[[#This Row],[Median]]","v":326746.40000000002}]
[{"$f":"AAMC_Raw_Data_for_FY22[[#This Row],[Source]]&AAMC_Raw_Data_for_FY22[[#This Row],[Type]]&AAMC_Raw_Data_for_FY22[[#This Row],[School Subset]]&AAMC_Raw_Data_for_FY22[[#This Row],[Rank]]&AAMC_Raw_Data_for_FY22[[#This Row],[Degree]]&AAMC_Raw_Data_for_FY22[[#This Row],[Department / Specialty]]&\"L\"","v":"AAMCAcademicPublicProfessorMDPsychiatry: GeneralL"},"Psychiatry: General",2,"AAMC","Academic","Public","Professor","MD","2021-2022",258523,{"$f":"(((AAMC_Raw_Data_for_FY22[[#This Row],[Median]]-AAMC_Raw_Data_for_FY22[[#This Row],[25th]])/25)*5) + AAMC_Raw_Data_for_FY22[[#This Row],[25th]]","v":266818.40000000002},{"$f":"(((AAMC_Raw_Data_for_FY22[[#This Row],[Median]]-AAMC_Raw_Data_for_FY22[[#This Row],[25th]])/25)*10) + AAMC_Raw_Data_for_FY22[[#This Row],[25th]]","v":275113.8},{"$f":"(((AAMC_Raw_Data_for_FY22[[#This Row],[Median]]-AAMC_Raw_Data_for_FY22[[#This Row],[25th]])/25)*15) + AAMC_Raw_Data_for_FY22[[#This Row],[25th]]","v":283409.2},{"$f":"(((AAMC_Raw_Data_for_FY22[[#This Row],[Median]]-AAMC_Raw_Data_for_FY22[[#This Row],[25th]])/25)*20) + AAMC_Raw_Data_for_FY22[[#This Row],[25th]]","v":291704.59999999998},300000,{"$f":"(((AAMC_Raw_Data_for_FY22[[#This Row],[75th]]-AAMC_Raw_Data_for_FY22[[#This Row],[Median]])/25)*5) + AAMC_Raw_Data_for_FY22[[#This Row],[Median]]","v":311925.8},{"$f":"(((AAMC_Raw_Data_for_FY22[[#This Row],[75th]]-AAMC_Raw_Data_for_FY22[[#This Row],[Median]])/25)*10) + AAMC_Raw_Data_for_FY22[[#This Row],[Median]]","v":323851.59999999998},{"$f":"(((AAMC_Raw_Data_for_FY22[[#This Row],[75th]]-AAMC_Raw_Data_for_FY22[[#This Row],[Median]])/25)*15) + AAMC_Raw_Data_for_FY22[[#This Row],[Median]]","v":335777.4},{"$f":"(((AAMC_Raw_Data_for_FY22[[#This Row],[75th]]-AAMC_Raw_Data_for_FY22[[#This Row],[Median]])/25)*20) + AAMC_Raw_Data_for_FY22[[#This Row],[Median]]","v":347703.2},359629,{"$f":"(((AAMC_Raw_Data_for_FY22[[#This Row],[75th]]-AAMC_Raw_Data_for_FY22[[#This Row],[Median]])/25)*30) + AAMC_Raw_Data_for_FY22[[#This Row],[Median]]","v":371554.8},{"$f":"(((AAMC_Raw_Data_for_FY22[[#This Row],[75th]]-AAMC_Raw_Data_for_FY22[[#This Row],[Median]])/25)*35) + AAMC_Raw_Data_for_FY22[[#This Row],[Median]]","v":383480.6},{"$f":"(((AAMC_Raw_Data_for_FY22[[#This Row],[75th]]-AAMC_Raw_Data_for_FY22[[#This Row],[Median]])/25)*40) + AAMC_Raw_Data_for_FY22[[#This Row],[Median]]","v":395406.4}]
[{"$f":"AAMC_Raw_Data_for_FY22[[#This Row],[Source]]&AAMC_Raw_Data_for_FY22[[#This Row],[Type]]&AAMC_Raw_Data_for_FY22[[#This Row],[School Subset]]&AAMC_Raw_Data_for_FY22[[#This Row],[Rank]]&AAMC_Raw_Data_for_FY22[[#This Row],[Degree]]&AAMC_Raw_Data_for_FY22[[#This Row],[Department / Specialty]]&\"L\"","v":"AAMCAcademicPublicChiefMDPsychiatry: GeneralL"},"Psychiatry: General",6,"AAMC","Academic","Public","Chief","MD","2021-2022",279116,{"$f":"(((AAMC_Raw_Data_for_FY22[[#This Row],[Median]]-AAMC_Raw_Data_for_FY22[[#This Row],[25th]])/25)*5) + AAMC_Raw_Data_for_FY22[[#This Row],[25th]]","v":286738.59999999998},{"$f":"(((AAMC_Raw_Data_for_FY22[[#This Row],[Median]]-AAMC_Raw_Data_for_FY22[[#This Row],[25th]])/25)*10) + AAMC_Raw_Data_for_FY22[[#This Row],[25th]]","v":294361.2},{"$f":"(((AAMC_Raw_Data_for_FY22[[#This Row],[Median]]-AAMC_Raw_Data_for_FY22[[#This Row],[25th]])/25)*15) + AAMC_Raw_Data_for_FY22[[#This Row],[25th]]","v":301983.8},{"$f":"(((AAMC_Raw_Data_for_FY22[[#This Row],[Median]]-AAMC_Raw_Data_for_FY22[[#This Row],[25th]])/25)*20) + AAMC_Raw_Data_for_FY22[[#This Row],[25th]]","v":309606.40000000002},317229,{"$f":"(((AAMC_Raw_Data_for_FY22[[#This Row],[75th]]-AAMC_Raw_Data_for_FY22[[#This Row],[Median]])/25)*5) + AAMC_Raw_Data_for_FY22[[#This Row],[Median]]","v":330958.59999999998},{"$f":"(((AAMC_Raw_Data_for_FY22[[#This Row],[75th]]-AAMC_Raw_Data_for_FY22[[#This Row],[Median]])/25)*10) + AAMC_Raw_Data_for_FY22[[#This Row],[Median]]","v":344688.2},{"$f":"(((AAMC_Raw_Data_for_FY22[[#This Row],[75th]]-AAMC_Raw_Data_for_FY22[[#This Row],[Median]])/25)*15) + AAMC_Raw_Data_for_FY22[[#This Row],[Median]]","v":358417.8},{"$f":"(((AAMC_Raw_Data_for_FY22[[#This Row],[75th]]-AAMC_Raw_Data_for_FY22[[#This Row],[Median]])/25)*20) + AAMC_Raw_Data_for_FY22[[#This Row],[Median]]","v":372147.4},385877,{"$f":"(((AAMC_Raw_Data_for_FY22[[#This Row],[75th]]-AAMC_Raw_Data_for_FY22[[#This Row],[Median]])/25)*30) + AAMC_Raw_Data_for_FY22[[#This Row],[Median]]","v":399606.6},{"$f":"(((AAMC_Raw_Data_for_FY22[[#This Row],[75th]]-AAMC_Raw_Data_for_FY22[[#This Row],[Median]])/25)*35) + AAMC_Raw_Data_for_FY22[[#This Row],[Median]]","v":413336.2},{"$f":"(((AAMC_Raw_Data_for_FY22[[#This Row],[75th]]-AAMC_Raw_Data_for_FY22[[#This Row],[Median]])/25)*40) + AAMC_Raw_Data_for_FY22[[#This Row],[Median]]","v":427065.8}]
[{"$f":"AAMC_Raw_Data_for_FY22[[#This Row],[Source]]&AAMC_Raw_Data_for_FY22[[#This Row],[Type]]&AAMC_Raw_Data_for_FY22[[#This Row],[School Subset]]&AAMC_Raw_Data_for_FY22[[#This Row],[Rank]]&AAMC_Raw_Data_for_FY22[[#This Row],[Degree]]&AAMC_Raw_Data_for_FY22[[#This Row],[Department / Specialty]]&\"L\"","v":"AAMCAcademicPublicChairMDPsychiatry: GeneralL"},"Psychiatry: General",1,"AAMC","Academic","Public","Chair","MD","2021-2022",393769,{"$f":"(((AAMC_Raw_Data_for_FY22[[#This Row],[Median]]-AAMC_Raw_Data_for_FY22[[#This Row],[25th]])/25)*5) + AAMC_Raw_Data_for_FY22[[#This Row],[25th]]","v":409990.6},{"$f":"(((AAMC_Raw_Data_for_FY22[[#This Row],[Median]]-AAMC_Raw_Data_for_FY22[[#This Row],[25th]])/25)*10) + AAMC_Raw_Data_for_FY22[[#This Row],[25th]]","v":426212.2},{"$f":"(((AAMC_Raw_Data_for_FY22[[#This Row],[Median]]-AAMC_Raw_Data_for_FY22[[#This Row],[25th]])/25)*15) + AAMC_Raw_Data_for_FY22[[#This Row],[25th]]","v":442433.8},{"$f":"(((AAMC_Raw_Data_for_FY22[[#This Row],[Median]]-AAMC_Raw_Data_for_FY22[[#This Row],[25th]])/25)*20) + AAMC_Raw_Data_for_FY22[[#This Row],[25th]]","v":458655.4},474877,{"$f":"(((AAMC_Raw_Data_for_FY22[[#This Row],[75th]]-AAMC_Raw_Data_for_FY22[[#This Row],[Median]])/25)*5) + AAMC_Raw_Data_for_FY22[[#This Row],[Median]]","v":485155},{"$f":"(((AAMC_Raw_Data_for_FY22[[#This Row],[75th]]-AAMC_Raw_Data_for_FY22[[#This Row],[Median]])/25)*10) + AAMC_Raw_Data_for_FY22[[#This Row],[Median]]","v":495433},{"$f":"(((AAMC_Raw_Data_for_FY22[[#This Row],[75th]]-AAMC_Raw_Data_for_FY22[[#This Row],[Median]])/25)*15) + AAMC_Raw_Data_for_FY22[[#This Row],[Median]]","v":505711},{"$f":"(((AAMC_Raw_Data_for_FY22[[#This Row],[75th]]-AAMC_Raw_Data_for_FY22[[#This Row],[Median]])/25)*20) + AAMC_Raw_Data_for_FY22[[#This Row],[Median]]","v":515989},526267,{"$f":"(((AAMC_Raw_Data_for_FY22[[#This Row],[75th]]-AAMC_Raw_Data_for_FY22[[#This Row],[Median]])/25)*30) + AAMC_Raw_Data_for_FY22[[#This Row],[Median]]","v":536545},{"$f":"(((AAMC_Raw_Data_for_FY22[[#This Row],[75th]]-AAMC_Raw_Data_for_FY22[[#This Row],[Median]])/25)*35) + AAMC_Raw_Data_for_FY22[[#This Row],[Median]]","v":546823},{"$f":"(((AAMC_Raw_Data_for_FY22[[#This Row],[75th]]-AAMC_Raw_Data_for_FY22[[#This Row],[Median]])/25)*40) + AAMC_Raw_Data_for_FY22[[#This Row],[Median]]","v":557101}]
[{"$f":"AAMC_Raw_Data_for_FY22[[#This Row],[Source]]&AAMC_Raw_Data_for_FY22[[#This Row],[Type]]&AAMC_Raw_Data_for_FY22[[#This Row],[School Subset]]&AAMC_Raw_Data_for_FY22[[#This Row],[Rank]]&AAMC_Raw_Data_for_FY22[[#This Row],[Degree]]&AAMC_Raw_Data_for_FY22[[#This Row],[Department / Specialty]]&\"L\"","v":"AAMCAcademicPublicInstructorMDPsychiatry: PsychologyL"},"Psychiatry: Psychology",5,"AAMC","Academic","Public","Instructor","MD","2021-2022",null,{"$f":"(((AAMC_Raw_Data_for_FY22[[#This Row],[Median]]-AAMC_Raw_Data_for_FY22[[#This Row],[25th]])/25)*5) + AAMC_Raw_Data_for_FY22[[#This Row],[25th]]","v":0},{"$f":"(((AAMC_Raw_Data_for_FY22[[#This Row],[Median]]-AAMC_Raw_Data_for_FY22[[#This Row],[25th]])/25)*10) + AAMC_Raw_Data_for_FY22[[#This Row],[25th]]","v":0},{"$f":"(((AAMC_Raw_Data_for_FY22[[#This Row],[Median]]-AAMC_Raw_Data_for_FY22[[#This Row],[25th]])/25)*15) + AAMC_Raw_Data_for_FY22[[#This Row],[25th]]","v":0},{"$f":"(((AAMC_Raw_Data_for_FY22[[#This Row],[Median]]-AAMC_Raw_Data_for_FY22[[#This Row],[25th]])/25)*20) + AAMC_Raw_Data_for_FY22[[#This Row],[25th]]","v":0},null,{"$f":"(((AAMC_Raw_Data_for_FY22[[#This Row],[75th]]-AAMC_Raw_Data_for_FY22[[#This Row],[Median]])/25)*5) + AAMC_Raw_Data_for_FY22[[#This Row],[Median]]","v":0},{"$f":"(((AAMC_Raw_Data_for_FY22[[#This Row],[75th]]-AAMC_Raw_Data_for_FY22[[#This Row],[Median]])/25)*10) + AAMC_Raw_Data_for_FY22[[#This Row],[Median]]","v":0},{"$f":"(((AAMC_Raw_Data_for_FY22[[#This Row],[75th]]-AAMC_Raw_Data_for_FY22[[#This Row],[Median]])/25)*15) + AAMC_Raw_Data_for_FY22[[#This Row],[Median]]","v":0},{"$f":"(((AAMC_Raw_Data_for_FY22[[#This Row],[75th]]-AAMC_Raw_Data_for_FY22[[#This Row],[Median]])/25)*20) + AAMC_Raw_Data_for_FY22[[#This Row],[Median]]","v":0},null,{"$f":"(((AAMC_Raw_Data_for_FY22[[#This Row],[75th]]-AAMC_Raw_Data_for_FY22[[#This Row],[Median]])/25)*30) + AAMC_Raw_Data_for_FY22[[#This Row],[Median]]","v":0},{"$f":"(((AAMC_Raw_Data_for_FY22[[#This Row],[75th]]-AAMC_Raw_Data_for_FY22[[#This Row],[Median]])/25)*35) + AAMC_Raw_Data_for_FY22[[#This Row],[Median]]","v":0},{"$f":"(((AAMC_Raw_Data_for_FY22[[#This Row],[75th]]-AAMC_Raw_Data_for_FY22[[#This Row],[Median]])/25)*40) + AAMC_Raw_Data_for_FY22[[#This Row],[Median]]","v":0}]
[{"$f":"AAMC_Raw_Data_for_FY22[[#This Row],[Source]]&AAMC_Raw_Data_for_FY22[[#This Row],[Type]]&AAMC_Raw_Data_for_FY22[[#This Row],[School Subset]]&AAMC_Raw_Data_for_FY22[[#This Row],[Rank]]&AAMC_Raw_Data_for_FY22[[#This Row],[Degree]]&AAMC_Raw_Data_for_FY22[[#This Row],[Department / Specialty]]&\"L\"","v":"AAMCAcademicPublicAssistantMDPsychiatry: PsychologyL"},"Psychiatry: Psychology",4,"AAMC","Academic","Public","Assistant","MD","2021-2022",219853,{"$f":"(((AAMC_Raw_Data_for_FY22[[#This Row],[Median]]-AAMC_Raw_Data_for_FY22[[#This Row],[25th]])/25)*5) + AAMC_Raw_Data_for_FY22[[#This Row],[25th]]","v":220882.4},{"$f":"(((AAMC_Raw_Data_for_FY22[[#This Row],[Median]]-AAMC_Raw_Data_for_FY22[[#This Row],[25th]])/25)*10) + AAMC_Raw_Data_for_FY22[[#This Row],[25th]]","v":221911.8},{"$f":"(((AAMC_Raw_Data_for_FY22[[#This Row],[Median]]-AAMC_Raw_Data_for_FY22[[#This Row],[25th]])/25)*15) + AAMC_Raw_Data_for_FY22[[#This Row],[25th]]","v":222941.2},{"$f":"(((AAMC_Raw_Data_for_FY22[[#This Row],[Median]]-AAMC_Raw_Data_for_FY22[[#This Row],[25th]])/25)*20) + AAMC_Raw_Data_for_FY22[[#This Row],[25th]]","v":223970.6},225000,{"$f":"(((AAMC_Raw_Data_for_FY22[[#This Row],[75th]]-AAMC_Raw_Data_for_FY22[[#This Row],[Median]])/25)*5) + AAMC_Raw_Data_for_FY22[[#This Row],[Median]]","v":227616.6},{"$f":"(((AAMC_Raw_Data_for_FY22[[#This Row],[75th]]-AAMC_Raw_Data_for_FY22[[#This Row],[Median]])/25)*10) + AAMC_Raw_Data_for_FY22[[#This Row],[Median]]","v":230233.2},{"$f":"(((AAMC_Raw_Data_for_FY22[[#This Row],[75th]]-AAMC_Raw_Data_for_FY22[[#This Row],[Median]])/25)*15) + AAMC_Raw_Data_for_FY22[[#This Row],[Median]]","v":232849.8},{"$f":"(((AAMC_Raw_Data_for_FY22[[#This Row],[75th]]-AAMC_Raw_Data_for_FY22[[#This Row],[Median]])/25)*20) + AAMC_Raw_Data_for_FY22[[#This Row],[Median]]","v":235466.4},238083,{"$f":"(((AAMC_Raw_Data_for_FY22[[#This Row],[75th]]-AAMC_Raw_Data_for_FY22[[#This Row],[Median]])/25)*30) + AAMC_Raw_Data_for_FY22[[#This Row],[Median]]","v":240699.6},{"$f":"(((AAMC_Raw_Data_for_FY22[[#This Row],[75th]]-AAMC_Raw_Data_for_FY22[[#This Row],[Median]])/25)*35) + AAMC_Raw_Data_for_FY22[[#This Row],[Median]]","v":243316.2},{"$f":"(((AAMC_Raw_Data_for_FY22[[#This Row],[75th]]-AAMC_Raw_Data_for_FY22[[#This Row],[Median]])/25)*40) + AAMC_Raw_Data_for_FY22[[#This Row],[Median]]","v":245932.79999999999}]
[{"$f":"AAMC_Raw_Data_for_FY22[[#This Row],[Source]]&AAMC_Raw_Data_for_FY22[[#This Row],[Type]]&AAMC_Raw_Data_for_FY22[[#This Row],[School Subset]]&AAMC_Raw_Data_for_FY22[[#This Row],[Rank]]&AAMC_Raw_Data_for_FY22[[#This Row],[Degree]]&AAMC_Raw_Data_for_FY22[[#This Row],[Department / Specialty]]&\"L\"","v":"AAMCAcademicPublicAssociateMDPsychiatry: PsychologyL"},"Psychiatry: Psychology",3,"AAMC","Academic","Public","Associate","MD","2021-2022",null,{"$f":"(((AAMC_Raw_Data_for_FY22[[#This Row],[Median]]-AAMC_Raw_Data_for_FY22[[#This Row],[25th]])/25)*5) + AAMC_Raw_Data_for_FY22[[#This Row],[25th]]","v":0},{"$f":"(((AAMC_Raw_Data_for_FY22[[#This Row],[Median]]-AAMC_Raw_Data_for_FY22[[#This Row],[25th]])/25)*10) + AAMC_Raw_Data_for_FY22[[#This Row],[25th]]","v":0},{"$f":"(((AAMC_Raw_Data_for_FY22[[#This Row],[Median]]-AAMC_Raw_Data_for_FY22[[#This Row],[25th]])/25)*15) + AAMC_Raw_Data_for_FY22[[#This Row],[25th]]","v":0},{"$f":"(((AAMC_Raw_Data_for_FY22[[#This Row],[Median]]-AAMC_Raw_Data_for_FY22[[#This Row],[25th]])/25)*20) + AAMC_Raw_Data_for_FY22[[#This Row],[25th]]","v":0},null,{"$f":"(((AAMC_Raw_Data_for_FY22[[#This Row],[75th]]-AAMC_Raw_Data_for_FY22[[#This Row],[Median]])/25)*5) + AAMC_Raw_Data_for_FY22[[#This Row],[Median]]","v":0},{"$f":"(((AAMC_Raw_Data_for_FY22[[#This Row],[75th]]-AAMC_Raw_Data_for_FY22[[#This Row],[Median]])/25)*10) + AAMC_Raw_Data_for_FY22[[#This Row],[Median]]","v":0},{"$f":"(((AAMC_Raw_Data_for_FY22[[#This Row],[75th]]-AAMC_Raw_Data_for_FY22[[#This Row],[Median]])/25)*15) + AAMC_Raw_Data_for_FY22[[#This Row],[Median]]","v":0},{"$f":"(((AAMC_Raw_Data_for_FY22[[#This Row],[75th]]-AAMC_Raw_Data_for_FY22[[#This Row],[Median]])/25)*20) + AAMC_Raw_Data_for_FY22[[#This Row],[Median]]","v":0},null,{"$f":"(((AAMC_Raw_Data_for_FY22[[#This Row],[75th]]-AAMC_Raw_Data_for_FY22[[#This Row],[Median]])/25)*30) + AAMC_Raw_Data_for_FY22[[#This Row],[Median]]","v":0},{"$f":"(((AAMC_Raw_Data_for_FY22[[#This Row],[75th]]-AAMC_Raw_Data_for_FY22[[#This Row],[Median]])/25)*35) + AAMC_Raw_Data_for_FY22[[#This Row],[Median]]","v":0},{"$f":"(((AAMC_Raw_Data_for_FY22[[#This Row],[75th]]-AAMC_Raw_Data_for_FY22[[#This Row],[Median]])/25)*40) + AAMC_Raw_Data_for_FY22[[#This Row],[Median]]","v":0}]
[{"$f":"AAMC_Raw_Data_for_FY22[[#This Row],[Source]]&AAMC_Raw_Data_for_FY22[[#This Row],[Type]]&AAMC_Raw_Data_for_FY22[[#This Row],[School Subset]]&AAMC_Raw_Data_for_FY22[[#This Row],[Rank]]&AAMC_Raw_Data_for_FY22[[#This Row],[Degree]]&AAMC_Raw_Data_for_FY22[[#This Row],[Department / Specialty]]&\"L\"","v":"AAMCAcademicPublicProfessorMDPsychiatry: PsychologyL"},"Psychiatry: Psychology",2,"AAMC","Academic","Public","Professor","MD","2021-2022",null,{"$f":"(((AAMC_Raw_Data_for_FY22[[#This Row],[Median]]-AAMC_Raw_Data_for_FY22[[#This Row],[25th]])/25)*5) + AAMC_Raw_Data_for_FY22[[#This Row],[25th]]","v":0},{"$f":"(((AAMC_Raw_Data_for_FY22[[#This Row],[Median]]-AAMC_Raw_Data_for_FY22[[#This Row],[25th]])/25)*10) + AAMC_Raw_Data_for_FY22[[#This Row],[25th]]","v":0},{"$f":"(((AAMC_Raw_Data_for_FY22[[#This Row],[Median]]-AAMC_Raw_Data_for_FY22[[#This Row],[25th]])/25)*15) + AAMC_Raw_Data_for_FY22[[#This Row],[25th]]","v":0},{"$f":"(((AAMC_Raw_Data_for_FY22[[#This Row],[Median]]-AAMC_Raw_Data_for_FY22[[#This Row],[25th]])/25)*20) + AAMC_Raw_Data_for_FY22[[#This Row],[25th]]","v":0},null,{"$f":"(((AAMC_Raw_Data_for_FY22[[#This Row],[75th]]-AAMC_Raw_Data_for_FY22[[#This Row],[Median]])/25)*5) + AAMC_Raw_Data_for_FY22[[#This Row],[Median]]","v":0},{"$f":"(((AAMC_Raw_Data_for_FY22[[#This Row],[75th]]-AAMC_Raw_Data_for_FY22[[#This Row],[Median]])/25)*10) + AAMC_Raw_Data_for_FY22[[#This Row],[Median]]","v":0},{"$f":"(((AAMC_Raw_Data_for_FY22[[#This Row],[75th]]-AAMC_Raw_Data_for_FY22[[#This Row],[Median]])/25)*15) + AAMC_Raw_Data_for_FY22[[#This Row],[Median]]","v":0},{"$f":"(((AAMC_Raw_Data_for_FY22[[#This Row],[75th]]-AAMC_Raw_Data_for_FY22[[#This Row],[Median]])/25)*20) + AAMC_Raw_Data_for_FY22[[#This Row],[Median]]","v":0},null,{"$f":"(((AAMC_Raw_Data_for_FY22[[#This Row],[75th]]-AAMC_Raw_Data_for_FY22[[#This Row],[Median]])/25)*30) + AAMC_Raw_Data_for_FY22[[#This Row],[Median]]","v":0},{"$f":"(((AAMC_Raw_Data_for_FY22[[#This Row],[75th]]-AAMC_Raw_Data_for_FY22[[#This Row],[Median]])/25)*35) + AAMC_Raw_Data_for_FY22[[#This Row],[Median]]","v":0},{"$f":"(((AAMC_Raw_Data_for_FY22[[#This Row],[75th]]-AAMC_Raw_Data_for_FY22[[#This Row],[Median]])/25)*40) + AAMC_Raw_Data_for_FY22[[#This Row],[Median]]","v":0}]
[{"$f":"AAMC_Raw_Data_for_FY22[[#This Row],[Source]]&AAMC_Raw_Data_for_FY22[[#This Row],[Type]]&AAMC_Raw_Data_for_FY22[[#This Row],[School Subset]]&AAMC_Raw_Data_for_FY22[[#This Row],[Rank]]&AAMC_Raw_Data_for_FY22[[#This Row],[Degree]]&AAMC_Raw_Data_for_FY22[[#This Row],[Department / Specialty]]&\"L\"","v":"AAMCAcademicPublicInstructorMDPsychiatry: OtherL"},"Psychiatry: Other",5,"AAMC","Academic","Public","Instructor","MD","2021-2022",null,{"$f":"(((AAMC_Raw_Data_for_FY22[[#This Row],[Median]]-AAMC_Raw_Data_for_FY22[[#This Row],[25th]])/25)*5) + AAMC_Raw_Data_for_FY22[[#This Row],[25th]]","v":0},{"$f":"(((AAMC_Raw_Data_for_FY22[[#This Row],[Median]]-AAMC_Raw_Data_for_FY22[[#This Row],[25th]])/25)*10) + AAMC_Raw_Data_for_FY22[[#This Row],[25th]]","v":0},{"$f":"(((AAMC_Raw_Data_for_FY22[[#This Row],[Median]]-AAMC_Raw_Data_for_FY22[[#This Row],[25th]])/25)*15) + AAMC_Raw_Data_for_FY22[[#This Row],[25th]]","v":0},{"$f":"(((AAMC_Raw_Data_for_FY22[[#This Row],[Median]]-AAMC_Raw_Data_for_FY22[[#This Row],[25th]])/25)*20) + AAMC_Raw_Data_for_FY22[[#This Row],[25th]]","v":0},null,{"$f":"(((AAMC_Raw_Data_for_FY22[[#This Row],[75th]]-AAMC_Raw_Data_for_FY22[[#This Row],[Median]])/25)*5) + AAMC_Raw_Data_for_FY22[[#This Row],[Median]]","v":0},{"$f":"(((AAMC_Raw_Data_for_FY22[[#This Row],[75th]]-AAMC_Raw_Data_for_FY22[[#This Row],[Median]])/25)*10) + AAMC_Raw_Data_for_FY22[[#This Row],[Median]]","v":0},{"$f":"(((AAMC_Raw_Data_for_FY22[[#This Row],[75th]]-AAMC_Raw_Data_for_FY22[[#This Row],[Median]])/25)*15) + AAMC_Raw_Data_for_FY22[[#This Row],[Median]]","v":0},{"$f":"(((AAMC_Raw_Data_for_FY22[[#This Row],[75th]]-AAMC_Raw_Data_for_FY22[[#This Row],[Median]])/25)*20) + AAMC_Raw_Data_for_FY22[[#This Row],[Median]]","v":0},null,{"$f":"(((AAMC_Raw_Data_for_FY22[[#This Row],[75th]]-AAMC_Raw_Data_for_FY22[[#This Row],[Median]])/25)*30) + AAMC_Raw_Data_for_FY22[[#This Row],[Median]]","v":0},{"$f":"(((AAMC_Raw_Data_for_FY22[[#This Row],[75th]]-AAMC_Raw_Data_for_FY22[[#This Row],[Median]])/25)*35) + AAMC_Raw_Data_for_FY22[[#This Row],[Median]]","v":0},{"$f":"(((AAMC_Raw_Data_for_FY22[[#This Row],[75th]]-AAMC_Raw_Data_for_FY22[[#This Row],[Median]])/25)*40) + AAMC_Raw_Data_for_FY22[[#This Row],[Median]]","v":0}]
[{"$f":"AAMC_Raw_Data_for_FY22[[#This Row],[Source]]&AAMC_Raw_Data_for_FY22[[#This Row],[Type]]&AAMC_Raw_Data_for_FY22[[#This Row],[School Subset]]&AAMC_Raw_Data_for_FY22[[#This Row],[Rank]]&AAMC_Raw_Data_for_FY22[[#This Row],[Degree]]&AAMC_Raw_Data_for_FY22[[#This Row],[Department / Specialty]]&\"L\"","v":"AAMCAcademicPublicAssistantMDPsychiatry: OtherL"},"Psychiatry: Other",4,"AAMC","Academic","Public","Assistant","MD","2021-2022",208247,{"$f":"(((AAMC_Raw_Data_for_FY22[[#This Row],[Median]]-AAMC_Raw_Data_for_FY22[[#This Row],[25th]])/25)*5) + AAMC_Raw_Data_for_FY22[[#This Row],[25th]]","v":215834.4},{"$f":"(((AAMC_Raw_Data_for_FY22[[#This Row],[Median]]-AAMC_Raw_Data_for_FY22[[#This Row],[25th]])/25)*10) + AAMC_Raw_Data_for_FY22[[#This Row],[25th]]","v":223421.8},{"$f":"(((AAMC_Raw_Data_for_FY22[[#This Row],[Median]]-AAMC_Raw_Data_for_FY22[[#This Row],[25th]])/25)*15) + AAMC_Raw_Data_for_FY22[[#This Row],[25th]]","v":231009.2},{"$f":"(((AAMC_Raw_Data_for_FY22[[#This Row],[Median]]-AAMC_Raw_Data_for_FY22[[#This Row],[25th]])/25)*20) + AAMC_Raw_Data_for_FY22[[#This Row],[25th]]","v":238596.6},246184,{"$f":"(((AAMC_Raw_Data_for_FY22[[#This Row],[75th]]-AAMC_Raw_Data_for_FY22[[#This Row],[Median]])/25)*5) + AAMC_Raw_Data_for_FY22[[#This Row],[Median]]","v":260428.4},{"$f":"(((AAMC_Raw_Data_for_FY22[[#This Row],[75th]]-AAMC_Raw_Data_for_FY22[[#This Row],[Median]])/25)*10) + AAMC_Raw_Data_for_FY22[[#This Row],[Median]]","v":274672.8},{"$f":"(((AAMC_Raw_Data_for_FY22[[#This Row],[75th]]-AAMC_Raw_Data_for_FY22[[#This Row],[Median]])/25)*15) + AAMC_Raw_Data_for_FY22[[#This Row],[Median]]","v":288917.2},{"$f":"(((AAMC_Raw_Data_for_FY22[[#This Row],[75th]]-AAMC_Raw_Data_for_FY22[[#This Row],[Median]])/25)*20) + AAMC_Raw_Data_for_FY22[[#This Row],[Median]]","v":303161.59999999998},317406,{"$f":"(((AAMC_Raw_Data_for_FY22[[#This Row],[75th]]-AAMC_Raw_Data_for_FY22[[#This Row],[Median]])/25)*30) + AAMC_Raw_Data_for_FY22[[#This Row],[Median]]","v":331650.40000000002},{"$f":"(((AAMC_Raw_Data_for_FY22[[#This Row],[75th]]-AAMC_Raw_Data_for_FY22[[#This Row],[Median]])/25)*35) + AAMC_Raw_Data_for_FY22[[#This Row],[Median]]","v":345894.8},{"$f":"(((AAMC_Raw_Data_for_FY22[[#This Row],[75th]]-AAMC_Raw_Data_for_FY22[[#This Row],[Median]])/25)*40) + AAMC_Raw_Data_for_FY22[[#This Row],[Median]]","v":360139.2}]
[{"$f":"AAMC_Raw_Data_for_FY22[[#This Row],[Source]]&AAMC_Raw_Data_for_FY22[[#This Row],[Type]]&AAMC_Raw_Data_for_FY22[[#This Row],[School Subset]]&AAMC_Raw_Data_for_FY22[[#This Row],[Rank]]&AAMC_Raw_Data_for_FY22[[#This Row],[Degree]]&AAMC_Raw_Data_for_FY22[[#This Row],[Department / Specialty]]&\"L\"","v":"AAMCAcademicPublicAssociateMDPsychiatry: OtherL"},"Psychiatry: Other",3,"AAMC","Academic","Public","Associate","MD","2021-2022",243802,{"$f":"(((AAMC_Raw_Data_for_FY22[[#This Row],[Median]]-AAMC_Raw_Data_for_FY22[[#This Row],[25th]])/25)*5) + AAMC_Raw_Data_for_FY22[[#This Row],[25th]]","v":254381.2},{"$f":"(((AAMC_Raw_Data_for_FY22[[#This Row],[Median]]-AAMC_Raw_Data_for_FY22[[#This Row],[25th]])/25)*10) + AAMC_Raw_Data_for_FY22[[#This Row],[25th]]","v":264960.40000000002},{"$f":"(((AAMC_Raw_Data_for_FY22[[#This Row],[Median]]-AAMC_Raw_Data_for_FY22[[#This Row],[25th]])/25)*15) + AAMC_Raw_Data_for_FY22[[#This Row],[25th]]","v":275539.59999999998},{"$f":"(((AAMC_Raw_Data_for_FY22[[#This Row],[Median]]-AAMC_Raw_Data_for_FY22[[#This Row],[25th]])/25)*20) + AAMC_Raw_Data_for_FY22[[#This Row],[25th]]","v":286118.8},296698,{"$f":"(((AAMC_Raw_Data_for_FY22[[#This Row],[75th]]-AAMC_Raw_Data_for_FY22[[#This Row],[Median]])/25)*5) + AAMC_Raw_Data_for_FY22[[#This Row],[Median]]","v":307245.2},{"$f":"(((AAMC_Raw_Data_for_FY22[[#This Row],[75th]]-AAMC_Raw_Data_for_FY22[[#This Row],[Median]])/25)*10) + AAMC_Raw_Data_for_FY22[[#This Row],[Median]]","v":317792.40000000002},{"$f":"(((AAMC_Raw_Data_for_FY22[[#This Row],[75th]]-AAMC_Raw_Data_for_FY22[[#This Row],[Median]])/25)*15) + AAMC_Raw_Data_for_FY22[[#This Row],[Median]]","v":328339.59999999998},{"$f":"(((AAMC_Raw_Data_for_FY22[[#This Row],[75th]]-AAMC_Raw_Data_for_FY22[[#This Row],[Median]])/25)*20) + AAMC_Raw_Data_for_FY22[[#This Row],[Median]]","v":338886.8},349434,{"$f":"(((AAMC_Raw_Data_for_FY22[[#This Row],[75th]]-AAMC_Raw_Data_for_FY22[[#This Row],[Median]])/25)*30) + AAMC_Raw_Data_for_FY22[[#This Row],[Median]]","v":359981.2},{"$f":"(((AAMC_Raw_Data_for_FY22[[#This Row],[75th]]-AAMC_Raw_Data_for_FY22[[#This Row],[Median]])/25)*35) + AAMC_Raw_Data_for_FY22[[#This Row],[Median]]","v":370528.4},{"$f":"(((AAMC_Raw_Data_for_FY22[[#This Row],[75th]]-AAMC_Raw_Data_for_FY22[[#This Row],[Median]])/25)*40) + AAMC_Raw_Data_for_FY22[[#This Row],[Median]]","v":381075.6}]
[{"$f":"AAMC_Raw_Data_for_FY22[[#This Row],[Source]]&AAMC_Raw_Data_for_FY22[[#This Row],[Type]]&AAMC_Raw_Data_for_FY22[[#This Row],[School Subset]]&AAMC_Raw_Data_for_FY22[[#This Row],[Rank]]&AAMC_Raw_Data_for_FY22[[#This Row],[Degree]]&AAMC_Raw_Data_for_FY22[[#This Row],[Department / Specialty]]&\"L\"","v":"AAMCAcademicPublicProfessorMDPsychiatry: OtherL"},"Psychiatry: Other",2,"AAMC","Academic","Public","Professor","MD","2021-2022",258774,{"$f":"(((AAMC_Raw_Data_for_FY22[[#This Row],[Median]]-AAMC_Raw_Data_for_FY22[[#This Row],[25th]])/25)*5) + AAMC_Raw_Data_for_FY22[[#This Row],[25th]]","v":268420.40000000002},{"$f":"(((AAMC_Raw_Data_for_FY22[[#This Row],[Median]]-AAMC_Raw_Data_for_FY22[[#This Row],[25th]])/25)*10) + AAMC_Raw_Data_for_FY22[[#This Row],[25th]]","v":278066.8},{"$f":"(((AAMC_Raw_Data_for_FY22[[#This Row],[Median]]-AAMC_Raw_Data_for_FY22[[#This Row],[25th]])/25)*15) + AAMC_Raw_Data_for_FY22[[#This Row],[25th]]","v":287713.2},{"$f":"(((AAMC_Raw_Data_for_FY22[[#This Row],[Median]]-AAMC_Raw_Data_for_FY22[[#This Row],[25th]])/25)*20) + AAMC_Raw_Data_for_FY22[[#This Row],[25th]]","v":297359.59999999998},307006,{"$f":"(((AAMC_Raw_Data_for_FY22[[#This Row],[75th]]-AAMC_Raw_Data_for_FY22[[#This Row],[Median]])/25)*5) + AAMC_Raw_Data_for_FY22[[#This Row],[Median]]","v":314296.2},{"$f":"(((AAMC_Raw_Data_for_FY22[[#This Row],[75th]]-AAMC_Raw_Data_for_FY22[[#This Row],[Median]])/25)*10) + AAMC_Raw_Data_for_FY22[[#This Row],[Median]]","v":321586.40000000002},{"$f":"(((AAMC_Raw_Data_for_FY22[[#This Row],[75th]]-AAMC_Raw_Data_for_FY22[[#This Row],[Median]])/25)*15) + AAMC_Raw_Data_for_FY22[[#This Row],[Median]]","v":328876.59999999998},{"$f":"(((AAMC_Raw_Data_for_FY22[[#This Row],[75th]]-AAMC_Raw_Data_for_FY22[[#This Row],[Median]])/25)*20) + AAMC_Raw_Data_for_FY22[[#This Row],[Median]]","v":336166.8},343457,{"$f":"(((AAMC_Raw_Data_for_FY22[[#This Row],[75th]]-AAMC_Raw_Data_for_FY22[[#This Row],[Median]])/25)*30) + AAMC_Raw_Data_for_FY22[[#This Row],[Median]]","v":350747.2},{"$f":"(((AAMC_Raw_Data_for_FY22[[#This Row],[75th]]-AAMC_Raw_Data_for_FY22[[#This Row],[Median]])/25)*35) + AAMC_Raw_Data_for_FY22[[#This Row],[Median]]","v":358037.4},{"$f":"(((AAMC_Raw_Data_for_FY22[[#This Row],[75th]]-AAMC_Raw_Data_for_FY22[[#This Row],[Median]])/25)*40) + AAMC_Raw_Data_for_FY22[[#This Row],[Median]]","v":365327.6}]
[{"$f":"AAMC_Raw_Data_for_FY22[[#This Row],[Source]]&AAMC_Raw_Data_for_FY22[[#This Row],[Type]]&AAMC_Raw_Data_for_FY22[[#This Row],[School Subset]]&AAMC_Raw_Data_for_FY22[[#This Row],[Rank]]&AAMC_Raw_Data_for_FY22[[#This Row],[Degree]]&AAMC_Raw_Data_for_FY22[[#This Row],[Department / Specialty]]&\"L\"","v":"AAMCAcademicPublicChiefMDPsychiatry: OtherL"},"Psychiatry: Other",6,"AAMC","Academic","Public","Chief","MD","2021-2022",null,{"$f":"(((AAMC_Raw_Data_for_FY22[[#This Row],[Median]]-AAMC_Raw_Data_for_FY22[[#This Row],[25th]])/25)*5) + AAMC_Raw_Data_for_FY22[[#This Row],[25th]]","v":0},{"$f":"(((AAMC_Raw_Data_for_FY22[[#This Row],[Median]]-AAMC_Raw_Data_for_FY22[[#This Row],[25th]])/25)*10) + AAMC_Raw_Data_for_FY22[[#This Row],[25th]]","v":0},{"$f":"(((AAMC_Raw_Data_for_FY22[[#This Row],[Median]]-AAMC_Raw_Data_for_FY22[[#This Row],[25th]])/25)*15) + AAMC_Raw_Data_for_FY22[[#This Row],[25th]]","v":0},{"$f":"(((AAMC_Raw_Data_for_FY22[[#This Row],[Median]]-AAMC_Raw_Data_for_FY22[[#This Row],[25th]])/25)*20) + AAMC_Raw_Data_for_FY22[[#This Row],[25th]]","v":0},null,{"$f":"(((AAMC_Raw_Data_for_FY22[[#This Row],[75th]]-AAMC_Raw_Data_for_FY22[[#This Row],[Median]])/25)*5) + AAMC_Raw_Data_for_FY22[[#This Row],[Median]]","v":0},{"$f":"(((AAMC_Raw_Data_for_FY22[[#This Row],[75th]]-AAMC_Raw_Data_for_FY22[[#This Row],[Median]])/25)*10) + AAMC_Raw_Data_for_FY22[[#This Row],[Median]]","v":0},{"$f":"(((AAMC_Raw_Data_for_FY22[[#This Row],[75th]]-AAMC_Raw_Data_for_FY22[[#This Row],[Median]])/25)*15) + AAMC_Raw_Data_for_FY22[[#This Row],[Median]]","v":0},{"$f":"(((AAMC_Raw_Data_for_FY22[[#This Row],[75th]]-AAMC_Raw_Data_for_FY22[[#This Row],[Median]])/25)*20) + AAMC_Raw_Data_for_FY22[[#This Row],[Median]]","v":0},null,{"$f":"(((AAMC_Raw_Data_for_FY22[[#This Row],[75th]]-AAMC_Raw_Data_for_FY22[[#This Row],[Median]])/25)*30) + AAMC_Raw_Data_for_FY22[[#This Row],[Median]]","v":0},{"$f":"(((AAMC_Raw_Data_for_FY22[[#This Row],[75th]]-AAMC_Raw_Data_for_FY22[[#This Row],[Median]])/25)*35) + AAMC_Raw_Data_for_FY22[[#This Row],[Median]]","v":0},{"$f":"(((AAMC_Raw_Data_for_FY22[[#This Row],[75th]]-AAMC_Raw_Data_for_FY22[[#This Row],[Median]])/25)*40) + AAMC_Raw_Data_for_FY22[[#This Row],[Median]]","v":0}]
[{"$f":"AAMC_Raw_Data_for_FY22[[#This Row],[Source]]&AAMC_Raw_Data_for_FY22[[#This Row],[Type]]&AAMC_Raw_Data_for_FY22[[#This Row],[School Subset]]&AAMC_Raw_Data_for_FY22[[#This Row],[Rank]]&AAMC_Raw_Data_for_FY22[[#This Row],[Degree]]&AAMC_Raw_Data_for_FY22[[#This Row],[Department / Specialty]]&\"L\"","v":"AAMCAcademicPublicChairMDPsychiatry: OtherL"},"Psychiatry: Other",1,"AAMC","Academic","Public","Chair","MD","2021-2022",469612,{"$f":"(((AAMC_Raw_Data_for_FY22[[#This Row],[Median]]-AAMC_Raw_Data_for_FY22[[#This Row],[25th]])/25)*5) + AAMC_Raw_Data_for_FY22[[#This Row],[25th]]","v":477128.6},{"$f":"(((AAMC_Raw_Data_for_FY22[[#This Row],[Median]]-AAMC_Raw_Data_for_FY22[[#This Row],[25th]])/25)*10) + AAMC_Raw_Data_for_FY22[[#This Row],[25th]]","v":484645.2},{"$f":"(((AAMC_Raw_Data_for_FY22[[#This Row],[Median]]-AAMC_Raw_Data_for_FY22[[#This Row],[25th]])/25)*15) + AAMC_Raw_Data_for_FY22[[#This Row],[25th]]","v":492161.8},{"$f":"(((AAMC_Raw_Data_for_FY22[[#This Row],[Median]]-AAMC_Raw_Data_for_FY22[[#This Row],[25th]])/25)*20) + AAMC_Raw_Data_for_FY22[[#This Row],[25th]]","v":499678.4},507195,{"$f":"(((AAMC_Raw_Data_for_FY22[[#This Row],[75th]]-AAMC_Raw_Data_for_FY22[[#This Row],[Median]])/25)*5) + AAMC_Raw_Data_for_FY22[[#This Row],[Median]]","v":512359},{"$f":"(((AAMC_Raw_Data_for_FY22[[#This Row],[75th]]-AAMC_Raw_Data_for_FY22[[#This Row],[Median]])/25)*10) + AAMC_Raw_Data_for_FY22[[#This Row],[Median]]","v":517523},{"$f":"(((AAMC_Raw_Data_for_FY22[[#This Row],[75th]]-AAMC_Raw_Data_for_FY22[[#This Row],[Median]])/25)*15) + AAMC_Raw_Data_for_FY22[[#This Row],[Median]]","v":522687},{"$f":"(((AAMC_Raw_Data_for_FY22[[#This Row],[75th]]-AAMC_Raw_Data_for_FY22[[#This Row],[Median]])/25)*20) + AAMC_Raw_Data_for_FY22[[#This Row],[Median]]","v":527851},533015,{"$f":"(((AAMC_Raw_Data_for_FY22[[#This Row],[75th]]-AAMC_Raw_Data_for_FY22[[#This Row],[Median]])/25)*30) + AAMC_Raw_Data_for_FY22[[#This Row],[Median]]","v":538179},{"$f":"(((AAMC_Raw_Data_for_FY22[[#This Row],[75th]]-AAMC_Raw_Data_for_FY22[[#This Row],[Median]])/25)*35) + AAMC_Raw_Data_for_FY22[[#This Row],[Median]]","v":543343},{"$f":"(((AAMC_Raw_Data_for_FY22[[#This Row],[75th]]-AAMC_Raw_Data_for_FY22[[#This Row],[Median]])/25)*40) + AAMC_Raw_Data_for_FY22[[#This Row],[Median]]","v":548507}]
[{"$f":"AAMC_Raw_Data_for_FY22[[#This Row],[Source]]&AAMC_Raw_Data_for_FY22[[#This Row],[Type]]&AAMC_Raw_Data_for_FY22[[#This Row],[School Subset]]&AAMC_Raw_Data_for_FY22[[#This Row],[Rank]]&AAMC_Raw_Data_for_FY22[[#This Row],[Degree]]&AAMC_Raw_Data_for_FY22[[#This Row],[Department / Specialty]]&\"L\"","v":"AAMCAcademicPublicInstructorMDRadiology TotalL"},"Radiology Total",5,"AAMC","Academic","Public","Instructor","MD","2021-2022",83740,{"$f":"(((AAMC_Raw_Data_for_FY22[[#This Row],[Median]]-AAMC_Raw_Data_for_FY22[[#This Row],[25th]])/25)*5) + AAMC_Raw_Data_for_FY22[[#This Row],[25th]]","v":86555.6},{"$f":"(((AAMC_Raw_Data_for_FY22[[#This Row],[Median]]-AAMC_Raw_Data_for_FY22[[#This Row],[25th]])/25)*10) + AAMC_Raw_Data_for_FY22[[#This Row],[25th]]","v":89371.199999999997},{"$f":"(((AAMC_Raw_Data_for_FY22[[#This Row],[Median]]-AAMC_Raw_Data_for_FY22[[#This Row],[25th]])/25)*15) + AAMC_Raw_Data_for_FY22[[#This Row],[25th]]","v":92186.8},{"$f":"(((AAMC_Raw_Data_for_FY22[[#This Row],[Median]]-AAMC_Raw_Data_for_FY22[[#This Row],[25th]])/25)*20) + AAMC_Raw_Data_for_FY22[[#This Row],[25th]]","v":95002.4},97818,{"$f":"(((AAMC_Raw_Data_for_FY22[[#This Row],[75th]]-AAMC_Raw_Data_for_FY22[[#This Row],[Median]])/25)*5) + AAMC_Raw_Data_for_FY22[[#This Row],[Median]]","v":103590.39999999999},{"$f":"(((AAMC_Raw_Data_for_FY22[[#This Row],[75th]]-AAMC_Raw_Data_for_FY22[[#This Row],[Median]])/25)*10) + AAMC_Raw_Data_for_FY22[[#This Row],[Median]]","v":109362.8},{"$f":"(((AAMC_Raw_Data_for_FY22[[#This Row],[75th]]-AAMC_Raw_Data_for_FY22[[#This Row],[Median]])/25)*15) + AAMC_Raw_Data_for_FY22[[#This Row],[Median]]","v":115135.2},{"$f":"(((AAMC_Raw_Data_for_FY22[[#This Row],[75th]]-AAMC_Raw_Data_for_FY22[[#This Row],[Median]])/25)*20) + AAMC_Raw_Data_for_FY22[[#This Row],[Median]]","v":120907.6},126680,{"$f":"(((AAMC_Raw_Data_for_FY22[[#This Row],[75th]]-AAMC_Raw_Data_for_FY22[[#This Row],[Median]])/25)*30) + AAMC_Raw_Data_for_FY22[[#This Row],[Median]]","v":132452.4},{"$f":"(((AAMC_Raw_Data_for_FY22[[#This Row],[75th]]-AAMC_Raw_Data_for_FY22[[#This Row],[Median]])/25)*35) + AAMC_Raw_Data_for_FY22[[#This Row],[Median]]","v":138224.79999999999},{"$f":"(((AAMC_Raw_Data_for_FY22[[#This Row],[75th]]-AAMC_Raw_Data_for_FY22[[#This Row],[Median]])/25)*40) + AAMC_Raw_Data_for_FY22[[#This Row],[Median]]","v":143997.20000000001}]
[{"$f":"AAMC_Raw_Data_for_FY22[[#This Row],[Source]]&AAMC_Raw_Data_for_FY22[[#This Row],[Type]]&AAMC_Raw_Data_for_FY22[[#This Row],[School Subset]]&AAMC_Raw_Data_for_FY22[[#This Row],[Rank]]&AAMC_Raw_Data_for_FY22[[#This Row],[Degree]]&AAMC_Raw_Data_for_FY22[[#This Row],[Department / Specialty]]&\"L\"","v":"AAMCAcademicPublicAssistantMDRadiology TotalL"},"Radiology Total",4,"AAMC","Academic","Public","Assistant","MD","2021-2022",379002,{"$f":"(((AAMC_Raw_Data_for_FY22[[#This Row],[Median]]-AAMC_Raw_Data_for_FY22[[#This Row],[25th]])/25)*5) + AAMC_Raw_Data_for_FY22[[#This Row],[25th]]","v":388446.4},{"$f":"(((AAMC_Raw_Data_for_FY22[[#This Row],[Median]]-AAMC_Raw_Data_for_FY22[[#This Row],[25th]])/25)*10) + AAMC_Raw_Data_for_FY22[[#This Row],[25th]]","v":397890.8},{"$f":"(((AAMC_Raw_Data_for_FY22[[#This Row],[Median]]-AAMC_Raw_Data_for_FY22[[#This Row],[25th]])/25)*15) + AAMC_Raw_Data_for_FY22[[#This Row],[25th]]","v":407335.2},{"$f":"(((AAMC_Raw_Data_for_FY22[[#This Row],[Median]]-AAMC_Raw_Data_for_FY22[[#This Row],[25th]])/25)*20) + AAMC_Raw_Data_for_FY22[[#This Row],[25th]]","v":416779.6},426224,{"$f":"(((AAMC_Raw_Data_for_FY22[[#This Row],[75th]]-AAMC_Raw_Data_for_FY22[[#This Row],[Median]])/25)*5) + AAMC_Raw_Data_for_FY22[[#This Row],[Median]]","v":437514},{"$f":"(((AAMC_Raw_Data_for_FY22[[#This Row],[75th]]-AAMC_Raw_Data_for_FY22[[#This Row],[Median]])/25)*10) + AAMC_Raw_Data_for_FY22[[#This Row],[Median]]","v":448804},{"$f":"(((AAMC_Raw_Data_for_FY22[[#This Row],[75th]]-AAMC_Raw_Data_for_FY22[[#This Row],[Median]])/25)*15) + AAMC_Raw_Data_for_FY22[[#This Row],[Median]]","v":460094},{"$f":"(((AAMC_Raw_Data_for_FY22[[#This Row],[75th]]-AAMC_Raw_Data_for_FY22[[#This Row],[Median]])/25)*20) + AAMC_Raw_Data_for_FY22[[#This Row],[Median]]","v":471384},482674,{"$f":"(((AAMC_Raw_Data_for_FY22[[#This Row],[75th]]-AAMC_Raw_Data_for_FY22[[#This Row],[Median]])/25)*30) + AAMC_Raw_Data_for_FY22[[#This Row],[Median]]","v":493964},{"$f":"(((AAMC_Raw_Data_for_FY22[[#This Row],[75th]]-AAMC_Raw_Data_for_FY22[[#This Row],[Median]])/25)*35) + AAMC_Raw_Data_for_FY22[[#This Row],[Median]]","v":505254},{"$f":"(((AAMC_Raw_Data_for_FY22[[#This Row],[75th]]-AAMC_Raw_Data_for_FY22[[#This Row],[Median]])/25)*40) + AAMC_Raw_Data_for_FY22[[#This Row],[Median]]","v":516544}]
[{"$f":"AAMC_Raw_Data_for_FY22[[#This Row],[Source]]&AAMC_Raw_Data_for_FY22[[#This Row],[Type]]&AAMC_Raw_Data_for_FY22[[#This Row],[School Subset]]&AAMC_Raw_Data_for_FY22[[#This Row],[Rank]]&AAMC_Raw_Data_for_FY22[[#This Row],[Degree]]&AAMC_Raw_Data_for_FY22[[#This Row],[Department / Specialty]]&\"L\"","v":"AAMCAcademicPublicAssociateMDRadiology TotalL"},"Radiology Total",3,"AAMC","Academic","Public","Associate","MD","2021-2022",417455,{"$f":"(((AAMC_Raw_Data_for_FY22[[#This Row],[Median]]-AAMC_Raw_Data_for_FY22[[#This Row],[25th]])/25)*5) + AAMC_Raw_Data_for_FY22[[#This Row],[25th]]","v":425288.4},{"$f":"(((AAMC_Raw_Data_for_FY22[[#This Row],[Median]]-AAMC_Raw_Data_for_FY22[[#This Row],[25th]])/25)*10) + AAMC_Raw_Data_for_FY22[[#This Row],[25th]]","v":433121.8},{"$f":"(((AAMC_Raw_Data_for_FY22[[#This Row],[Median]]-AAMC_Raw_Data_for_FY22[[#This Row],[25th]])/25)*15) + AAMC_Raw_Data_for_FY22[[#This Row],[25th]]","v":440955.2},{"$f":"(((AAMC_Raw_Data_for_FY22[[#This Row],[Median]]-AAMC_Raw_Data_for_FY22[[#This Row],[25th]])/25)*20) + AAMC_Raw_Data_for_FY22[[#This Row],[25th]]","v":448788.6},456622,{"$f":"(((AAMC_Raw_Data_for_FY22[[#This Row],[75th]]-AAMC_Raw_Data_for_FY22[[#This Row],[Median]])/25)*5) + AAMC_Raw_Data_for_FY22[[#This Row],[Median]]","v":469451.4},{"$f":"(((AAMC_Raw_Data_for_FY22[[#This Row],[75th]]-AAMC_Raw_Data_for_FY22[[#This Row],[Median]])/25)*10) + AAMC_Raw_Data_for_FY22[[#This Row],[Median]]","v":482280.8},{"$f":"(((AAMC_Raw_Data_for_FY22[[#This Row],[75th]]-AAMC_Raw_Data_for_FY22[[#This Row],[Median]])/25)*15) + AAMC_Raw_Data_for_FY22[[#This Row],[Median]]","v":495110.2},{"$f":"(((AAMC_Raw_Data_for_FY22[[#This Row],[75th]]-AAMC_Raw_Data_for_FY22[[#This Row],[Median]])/25)*20) + AAMC_Raw_Data_for_FY22[[#This Row],[Median]]","v":507939.6},520769,{"$f":"(((AAMC_Raw_Data_for_FY22[[#This Row],[75th]]-AAMC_Raw_Data_for_FY22[[#This Row],[Median]])/25)*30) + AAMC_Raw_Data_for_FY22[[#This Row],[Median]]","v":533598.4},{"$f":"(((AAMC_Raw_Data_for_FY22[[#This Row],[75th]]-AAMC_Raw_Data_for_FY22[[#This Row],[Median]])/25)*35) + AAMC_Raw_Data_for_FY22[[#This Row],[Median]]","v":546427.80000000005},{"$f":"(((AAMC_Raw_Data_for_FY22[[#This Row],[75th]]-AAMC_Raw_Data_for_FY22[[#This Row],[Median]])/25)*40) + AAMC_Raw_Data_for_FY22[[#This Row],[Median]]","v":559257.19999999995}]
[{"$f":"AAMC_Raw_Data_for_FY22[[#This Row],[Source]]&AAMC_Raw_Data_for_FY22[[#This Row],[Type]]&AAMC_Raw_Data_for_FY22[[#This Row],[School Subset]]&AAMC_Raw_Data_for_FY22[[#This Row],[Rank]]&AAMC_Raw_Data_for_FY22[[#This Row],[Degree]]&AAMC_Raw_Data_for_FY22[[#This Row],[Department / Specialty]]&\"L\"","v":"AAMCAcademicPublicProfessorMDRadiology TotalL"},"Radiology Total",2,"AAMC","Academic","Public","Professor","MD","2021-2022",428824,{"$f":"(((AAMC_Raw_Data_for_FY22[[#This Row],[Median]]-AAMC_Raw_Data_for_FY22[[#This Row],[25th]])/25)*5) + AAMC_Raw_Data_for_FY22[[#This Row],[25th]]","v":439051.6},{"$f":"(((AAMC_Raw_Data_for_FY22[[#This Row],[Median]]-AAMC_Raw_Data_for_FY22[[#This Row],[25th]])/25)*10) + AAMC_Raw_Data_for_FY22[[#This Row],[25th]]","v":449279.2},{"$f":"(((AAMC_Raw_Data_for_FY22[[#This Row],[Median]]-AAMC_Raw_Data_for_FY22[[#This Row],[25th]])/25)*15) + AAMC_Raw_Data_for_FY22[[#This Row],[25th]]","v":459506.8},{"$f":"(((AAMC_Raw_Data_for_FY22[[#This Row],[Median]]-AAMC_Raw_Data_for_FY22[[#This Row],[25th]])/25)*20) + AAMC_Raw_Data_for_FY22[[#This Row],[25th]]","v":469734.40000000002},479962,{"$f":"(((AAMC_Raw_Data_for_FY22[[#This Row],[75th]]-AAMC_Raw_Data_for_FY22[[#This Row],[Median]])/25)*5) + AAMC_Raw_Data_for_FY22[[#This Row],[Median]]","v":493073},{"$f":"(((AAMC_Raw_Data_for_FY22[[#This Row],[75th]]-AAMC_Raw_Data_for_FY22[[#This Row],[Median]])/25)*10) + AAMC_Raw_Data_for_FY22[[#This Row],[Median]]","v":506184},{"$f":"(((AAMC_Raw_Data_for_FY22[[#This Row],[75th]]-AAMC_Raw_Data_for_FY22[[#This Row],[Median]])/25)*15) + AAMC_Raw_Data_for_FY22[[#This Row],[Median]]","v":519295},{"$f":"(((AAMC_Raw_Data_for_FY22[[#This Row],[75th]]-AAMC_Raw_Data_for_FY22[[#This Row],[Median]])/25)*20) + AAMC_Raw_Data_for_FY22[[#This Row],[Median]]","v":532406},545517,{"$f":"(((AAMC_Raw_Data_for_FY22[[#This Row],[75th]]-AAMC_Raw_Data_for_FY22[[#This Row],[Median]])/25)*30) + AAMC_Raw_Data_for_FY22[[#This Row],[Median]]","v":558628},{"$f":"(((AAMC_Raw_Data_for_FY22[[#This Row],[75th]]-AAMC_Raw_Data_for_FY22[[#This Row],[Median]])/25)*35) + AAMC_Raw_Data_for_FY22[[#This Row],[Median]]","v":571739},{"$f":"(((AAMC_Raw_Data_for_FY22[[#This Row],[75th]]-AAMC_Raw_Data_for_FY22[[#This Row],[Median]])/25)*40) + AAMC_Raw_Data_for_FY22[[#This Row],[Median]]","v":584850}]
[{"$f":"AAMC_Raw_Data_for_FY22[[#This Row],[Source]]&AAMC_Raw_Data_for_FY22[[#This Row],[Type]]&AAMC_Raw_Data_for_FY22[[#This Row],[School Subset]]&AAMC_Raw_Data_for_FY22[[#This Row],[Rank]]&AAMC_Raw_Data_for_FY22[[#This Row],[Degree]]&AAMC_Raw_Data_for_FY22[[#This Row],[Department / Specialty]]&\"L\"","v":"AAMCAcademicPublicChiefMDRadiology TotalL"},"Radiology Total",6,"AAMC","Academic","Public","Chief","MD","2021-2022",461041,{"$f":"(((AAMC_Raw_Data_for_FY22[[#This Row],[Median]]-AAMC_Raw_Data_for_FY22[[#This Row],[25th]])/25)*5) + AAMC_Raw_Data_for_FY22[[#This Row],[25th]]","v":466652.2},{"$f":"(((AAMC_Raw_Data_for_FY22[[#This Row],[Median]]-AAMC_Raw_Data_for_FY22[[#This Row],[25th]])/25)*10) + AAMC_Raw_Data_for_FY22[[#This Row],[25th]]","v":472263.4},{"$f":"(((AAMC_Raw_Data_for_FY22[[#This Row],[Median]]-AAMC_Raw_Data_for_FY22[[#This Row],[25th]])/25)*15) + AAMC_Raw_Data_for_FY22[[#This Row],[25th]]","v":477874.6},{"$f":"(((AAMC_Raw_Data_for_FY22[[#This Row],[Median]]-AAMC_Raw_Data_for_FY22[[#This Row],[25th]])/25)*20) + AAMC_Raw_Data_for_FY22[[#This Row],[25th]]","v":483485.8},489097,{"$f":"(((AAMC_Raw_Data_for_FY22[[#This Row],[75th]]-AAMC_Raw_Data_for_FY22[[#This Row],[Median]])/25)*5) + AAMC_Raw_Data_for_FY22[[#This Row],[Median]]","v":499189},{"$f":"(((AAMC_Raw_Data_for_FY22[[#This Row],[75th]]-AAMC_Raw_Data_for_FY22[[#This Row],[Median]])/25)*10) + AAMC_Raw_Data_for_FY22[[#This Row],[Median]]","v":509281},{"$f":"(((AAMC_Raw_Data_for_FY22[[#This Row],[75th]]-AAMC_Raw_Data_for_FY22[[#This Row],[Median]])/25)*15) + AAMC_Raw_Data_for_FY22[[#This Row],[Median]]","v":519373},{"$f":"(((AAMC_Raw_Data_for_FY22[[#This Row],[75th]]-AAMC_Raw_Data_for_FY22[[#This Row],[Median]])/25)*20) + AAMC_Raw_Data_for_FY22[[#This Row],[Median]]","v":529465},539557,{"$f":"(((AAMC_Raw_Data_for_FY22[[#This Row],[75th]]-AAMC_Raw_Data_for_FY22[[#This Row],[Median]])/25)*30) + AAMC_Raw_Data_for_FY22[[#This Row],[Median]]","v":549649},{"$f":"(((AAMC_Raw_Data_for_FY22[[#This Row],[75th]]-AAMC_Raw_Data_for_FY22[[#This Row],[Median]])/25)*35) + AAMC_Raw_Data_for_FY22[[#This Row],[Median]]","v":559741},{"$f":"(((AAMC_Raw_Data_for_FY22[[#This Row],[75th]]-AAMC_Raw_Data_for_FY22[[#This Row],[Median]])/25)*40) + AAMC_Raw_Data_for_FY22[[#This Row],[Median]]","v":569833}]
[{"$f":"AAMC_Raw_Data_for_FY22[[#This Row],[Source]]&AAMC_Raw_Data_for_FY22[[#This Row],[Type]]&AAMC_Raw_Data_for_FY22[[#This Row],[School Subset]]&AAMC_Raw_Data_for_FY22[[#This Row],[Rank]]&AAMC_Raw_Data_for_FY22[[#This Row],[Degree]]&AAMC_Raw_Data_for_FY22[[#This Row],[Department / Specialty]]&\"L\"","v":"AAMCAcademicPublicChairMDRadiology TotalL"},"Radiology Total",1,"AAMC","Academic","Public","Chair","MD","2021-2022",698201,{"$f":"(((AAMC_Raw_Data_for_FY22[[#This Row],[Median]]-AAMC_Raw_Data_for_FY22[[#This Row],[25th]])/25)*5) + AAMC_Raw_Data_for_FY22[[#This Row],[25th]]","v":712741.6},{"$f":"(((AAMC_Raw_Data_for_FY22[[#This Row],[Median]]-AAMC_Raw_Data_for_FY22[[#This Row],[25th]])/25)*10) + AAMC_Raw_Data_for_FY22[[#This Row],[25th]]","v":727282.2},{"$f":"(((AAMC_Raw_Data_for_FY22[[#This Row],[Median]]-AAMC_Raw_Data_for_FY22[[#This Row],[25th]])/25)*15) + AAMC_Raw_Data_for_FY22[[#This Row],[25th]]","v":741822.8},{"$f":"(((AAMC_Raw_Data_for_FY22[[#This Row],[Median]]-AAMC_Raw_Data_for_FY22[[#This Row],[25th]])/25)*20) + AAMC_Raw_Data_for_FY22[[#This Row],[25th]]","v":756363.4},770904,{"$f":"(((AAMC_Raw_Data_for_FY22[[#This Row],[75th]]-AAMC_Raw_Data_for_FY22[[#This Row],[Median]])/25)*5) + AAMC_Raw_Data_for_FY22[[#This Row],[Median]]","v":783052.6},{"$f":"(((AAMC_Raw_Data_for_FY22[[#This Row],[75th]]-AAMC_Raw_Data_for_FY22[[#This Row],[Median]])/25)*10) + AAMC_Raw_Data_for_FY22[[#This Row],[Median]]","v":795201.2},{"$f":"(((AAMC_Raw_Data_for_FY22[[#This Row],[75th]]-AAMC_Raw_Data_for_FY22[[#This Row],[Median]])/25)*15) + AAMC_Raw_Data_for_FY22[[#This Row],[Median]]","v":807349.8},{"$f":"(((AAMC_Raw_Data_for_FY22[[#This Row],[75th]]-AAMC_Raw_Data_for_FY22[[#This Row],[Median]])/25)*20) + AAMC_Raw_Data_for_FY22[[#This Row],[Median]]","v":819498.4},831647,{"$f":"(((AAMC_Raw_Data_for_FY22[[#This Row],[75th]]-AAMC_Raw_Data_for_FY22[[#This Row],[Median]])/25)*30) + AAMC_Raw_Data_for_FY22[[#This Row],[Median]]","v":843795.6},{"$f":"(((AAMC_Raw_Data_for_FY22[[#This Row],[75th]]-AAMC_Raw_Data_for_FY22[[#This Row],[Median]])/25)*35) + AAMC_Raw_Data_for_FY22[[#This Row],[Median]]","v":855944.2},{"$f":"(((AAMC_Raw_Data_for_FY22[[#This Row],[75th]]-AAMC_Raw_Data_for_FY22[[#This Row],[Median]])/25)*40) + AAMC_Raw_Data_for_FY22[[#This Row],[Median]]","v":868092.8}]
[{"$f":"AAMC_Raw_Data_for_FY22[[#This Row],[Source]]&AAMC_Raw_Data_for_FY22[[#This Row],[Type]]&AAMC_Raw_Data_for_FY22[[#This Row],[School Subset]]&AAMC_Raw_Data_for_FY22[[#This Row],[Rank]]&AAMC_Raw_Data_for_FY22[[#This Row],[Degree]]&AAMC_Raw_Data_for_FY22[[#This Row],[Department / Specialty]]&\"L\"","v":"AAMCAcademicPublicInstructorMDDiagnostic Radiology TotalL"},"Diagnostic Radiology Total",5,"AAMC","Academic","Public","Instructor","MD","2021-2022",84644,{"$f":"(((AAMC_Raw_Data_for_FY22[[#This Row],[Median]]-AAMC_Raw_Data_for_FY22[[#This Row],[25th]])/25)*5) + AAMC_Raw_Data_for_FY22[[#This Row],[25th]]","v":87246},{"$f":"(((AAMC_Raw_Data_for_FY22[[#This Row],[Median]]-AAMC_Raw_Data_for_FY22[[#This Row],[25th]])/25)*10) + AAMC_Raw_Data_for_FY22[[#This Row],[25th]]","v":89848},{"$f":"(((AAMC_Raw_Data_for_FY22[[#This Row],[Median]]-AAMC_Raw_Data_for_FY22[[#This Row],[25th]])/25)*15) + AAMC_Raw_Data_for_FY22[[#This Row],[25th]]","v":92450},{"$f":"(((AAMC_Raw_Data_for_FY22[[#This Row],[Median]]-AAMC_Raw_Data_for_FY22[[#This Row],[25th]])/25)*20) + AAMC_Raw_Data_for_FY22[[#This Row],[25th]]","v":95052},97654,{"$f":"(((AAMC_Raw_Data_for_FY22[[#This Row],[75th]]-AAMC_Raw_Data_for_FY22[[#This Row],[Median]])/25)*5) + AAMC_Raw_Data_for_FY22[[#This Row],[Median]]","v":102814},{"$f":"(((AAMC_Raw_Data_for_FY22[[#This Row],[75th]]-AAMC_Raw_Data_for_FY22[[#This Row],[Median]])/25)*10) + AAMC_Raw_Data_for_FY22[[#This Row],[Median]]","v":107974},{"$f":"(((AAMC_Raw_Data_for_FY22[[#This Row],[75th]]-AAMC_Raw_Data_for_FY22[[#This Row],[Median]])/25)*15) + AAMC_Raw_Data_for_FY22[[#This Row],[Median]]","v":113134},{"$f":"(((AAMC_Raw_Data_for_FY22[[#This Row],[75th]]-AAMC_Raw_Data_for_FY22[[#This Row],[Median]])/25)*20) + AAMC_Raw_Data_for_FY22[[#This Row],[Median]]","v":118294},123454,{"$f":"(((AAMC_Raw_Data_for_FY22[[#This Row],[75th]]-AAMC_Raw_Data_for_FY22[[#This Row],[Median]])/25)*30) + AAMC_Raw_Data_for_FY22[[#This Row],[Median]]","v":128614},{"$f":"(((AAMC_Raw_Data_for_FY22[[#This Row],[75th]]-AAMC_Raw_Data_for_FY22[[#This Row],[Median]])/25)*35) + AAMC_Raw_Data_for_FY22[[#This Row],[Median]]","v":133774},{"$f":"(((AAMC_Raw_Data_for_FY22[[#This Row],[75th]]-AAMC_Raw_Data_for_FY22[[#This Row],[Median]])/25)*40) + AAMC_Raw_Data_for_FY22[[#This Row],[Median]]","v":138934}]
[{"$f":"AAMC_Raw_Data_for_FY22[[#This Row],[Source]]&AAMC_Raw_Data_for_FY22[[#This Row],[Type]]&AAMC_Raw_Data_for_FY22[[#This Row],[School Subset]]&AAMC_Raw_Data_for_FY22[[#This Row],[Rank]]&AAMC_Raw_Data_for_FY22[[#This Row],[Degree]]&AAMC_Raw_Data_for_FY22[[#This Row],[Department / Specialty]]&\"L\"","v":"AAMCAcademicPublicAssistantMDDiagnostic Radiology TotalL"},"Diagnostic Radiology Total",4,"AAMC","Academic","Public","Assistant","MD","2021-2022",387789,{"$f":"(((AAMC_Raw_Data_for_FY22[[#This Row],[Median]]-AAMC_Raw_Data_for_FY22[[#This Row],[25th]])/25)*5) + AAMC_Raw_Data_for_FY22[[#This Row],[25th]]","v":396431.2},{"$f":"(((AAMC_Raw_Data_for_FY22[[#This Row],[Median]]-AAMC_Raw_Data_for_FY22[[#This Row],[25th]])/25)*10) + AAMC_Raw_Data_for_FY22[[#This Row],[25th]]","v":405073.4},{"$f":"(((AAMC_Raw_Data_for_FY22[[#This Row],[Median]]-AAMC_Raw_Data_for_FY22[[#This Row],[25th]])/25)*15) + AAMC_Raw_Data_for_FY22[[#This Row],[25th]]","v":413715.6},{"$f":"(((AAMC_Raw_Data_for_FY22[[#This Row],[Median]]-AAMC_Raw_Data_for_FY22[[#This Row],[25th]])/25)*20) + AAMC_Raw_Data_for_FY22[[#This Row],[25th]]","v":422357.8},431000,{"$f":"(((AAMC_Raw_Data_for_FY22[[#This Row],[75th]]-AAMC_Raw_Data_for_FY22[[#This Row],[Median]])/25)*5) + AAMC_Raw_Data_for_FY22[[#This Row],[Median]]","v":444588.4},{"$f":"(((AAMC_Raw_Data_for_FY22[[#This Row],[75th]]-AAMC_Raw_Data_for_FY22[[#This Row],[Median]])/25)*10) + AAMC_Raw_Data_for_FY22[[#This Row],[Median]]","v":458176.8},{"$f":"(((AAMC_Raw_Data_for_FY22[[#This Row],[75th]]-AAMC_Raw_Data_for_FY22[[#This Row],[Median]])/25)*15) + AAMC_Raw_Data_for_FY22[[#This Row],[Median]]","v":471765.2},{"$f":"(((AAMC_Raw_Data_for_FY22[[#This Row],[75th]]-AAMC_Raw_Data_for_FY22[[#This Row],[Median]])/25)*20) + AAMC_Raw_Data_for_FY22[[#This Row],[Median]]","v":485353.6},498942,{"$f":"(((AAMC_Raw_Data_for_FY22[[#This Row],[75th]]-AAMC_Raw_Data_for_FY22[[#This Row],[Median]])/25)*30) + AAMC_Raw_Data_for_FY22[[#This Row],[Median]]","v":512530.4},{"$f":"(((AAMC_Raw_Data_for_FY22[[#This Row],[75th]]-AAMC_Raw_Data_for_FY22[[#This Row],[Median]])/25)*35) + AAMC_Raw_Data_for_FY22[[#This Row],[Median]]","v":526118.80000000005},{"$f":"(((AAMC_Raw_Data_for_FY22[[#This Row],[75th]]-AAMC_Raw_Data_for_FY22[[#This Row],[Median]])/25)*40) + AAMC_Raw_Data_for_FY22[[#This Row],[Median]]","v":539707.19999999995}]
[{"$f":"AAMC_Raw_Data_for_FY22[[#This Row],[Source]]&AAMC_Raw_Data_for_FY22[[#This Row],[Type]]&AAMC_Raw_Data_for_FY22[[#This Row],[School Subset]]&AAMC_Raw_Data_for_FY22[[#This Row],[Rank]]&AAMC_Raw_Data_for_FY22[[#This Row],[Degree]]&AAMC_Raw_Data_for_FY22[[#This Row],[Department / Specialty]]&\"L\"","v":"AAMCAcademicPublicAssociateMDDiagnostic Radiology TotalL"},"Diagnostic Radiology Total",3,"AAMC","Academic","Public","Associate","MD","2021-2022",420976,{"$f":"(((AAMC_Raw_Data_for_FY22[[#This Row],[Median]]-AAMC_Raw_Data_for_FY22[[#This Row],[25th]])/25)*5) + AAMC_Raw_Data_for_FY22[[#This Row],[25th]]","v":427980.79999999999},{"$f":"(((AAMC_Raw_Data_for_FY22[[#This Row],[Median]]-AAMC_Raw_Data_for_FY22[[#This Row],[25th]])/25)*10) + AAMC_Raw_Data_for_FY22[[#This Row],[25th]]","v":434985.6},{"$f":"(((AAMC_Raw_Data_for_FY22[[#This Row],[Median]]-AAMC_Raw_Data_for_FY22[[#This Row],[25th]])/25)*15) + AAMC_Raw_Data_for_FY22[[#This Row],[25th]]","v":441990.40000000002},{"$f":"(((AAMC_Raw_Data_for_FY22[[#This Row],[Median]]-AAMC_Raw_Data_for_FY22[[#This Row],[25th]])/25)*20) + AAMC_Raw_Data_for_FY22[[#This Row],[25th]]","v":448995.2},456000,{"$f":"(((AAMC_Raw_Data_for_FY22[[#This Row],[75th]]-AAMC_Raw_Data_for_FY22[[#This Row],[Median]])/25)*5) + AAMC_Raw_Data_for_FY22[[#This Row],[Median]]","v":468317.2},{"$f":"(((AAMC_Raw_Data_for_FY22[[#This Row],[75th]]-AAMC_Raw_Data_for_FY22[[#This Row],[Median]])/25)*10) + AAMC_Raw_Data_for_FY22[[#This Row],[Median]]","v":480634.4},{"$f":"(((AAMC_Raw_Data_for_FY22[[#This Row],[75th]]-AAMC_Raw_Data_for_FY22[[#This Row],[Median]])/25)*15) + AAMC_Raw_Data_for_FY22[[#This Row],[Median]]","v":492951.6},{"$f":"(((AAMC_Raw_Data_for_FY22[[#This Row],[75th]]-AAMC_Raw_Data_for_FY22[[#This Row],[Median]])/25)*20) + AAMC_Raw_Data_for_FY22[[#This Row],[Median]]","v":505268.8},517586,{"$f":"(((AAMC_Raw_Data_for_FY22[[#This Row],[75th]]-AAMC_Raw_Data_for_FY22[[#This Row],[Median]])/25)*30) + AAMC_Raw_Data_for_FY22[[#This Row],[Median]]","v":529903.19999999995},{"$f":"(((AAMC_Raw_Data_for_FY22[[#This Row],[75th]]-AAMC_Raw_Data_for_FY22[[#This Row],[Median]])/25)*35) + AAMC_Raw_Data_for_FY22[[#This Row],[Median]]","v":542220.4},{"$f":"(((AAMC_Raw_Data_for_FY22[[#This Row],[75th]]-AAMC_Raw_Data_for_FY22[[#This Row],[Median]])/25)*40) + AAMC_Raw_Data_for_FY22[[#This Row],[Median]]","v":554537.6}]
[{"$f":"AAMC_Raw_Data_for_FY22[[#This Row],[Source]]&AAMC_Raw_Data_for_FY22[[#This Row],[Type]]&AAMC_Raw_Data_for_FY22[[#This Row],[School Subset]]&AAMC_Raw_Data_for_FY22[[#This Row],[Rank]]&AAMC_Raw_Data_for_FY22[[#This Row],[Degree]]&AAMC_Raw_Data_for_FY22[[#This Row],[Department / Specialty]]&\"L\"","v":"AAMCAcademicPublicProfessorMDDiagnostic Radiology TotalL"},"Diagnostic Radiology Total",2,"AAMC","Academic","Public","Professor","MD","2021-2022",429154,{"$f":"(((AAMC_Raw_Data_for_FY22[[#This Row],[Median]]-AAMC_Raw_Data_for_FY22[[#This Row],[25th]])/25)*5) + AAMC_Raw_Data_for_FY22[[#This Row],[25th]]","v":438230.8},{"$f":"(((AAMC_Raw_Data_for_FY22[[#This Row],[Median]]-AAMC_Raw_Data_for_FY22[[#This Row],[25th]])/25)*10) + AAMC_Raw_Data_for_FY22[[#This Row],[25th]]","v":447307.6},{"$f":"(((AAMC_Raw_Data_for_FY22[[#This Row],[Median]]-AAMC_Raw_Data_for_FY22[[#This Row],[25th]])/25)*15) + AAMC_Raw_Data_for_FY22[[#This Row],[25th]]","v":456384.4},{"$f":"(((AAMC_Raw_Data_for_FY22[[#This Row],[Median]]-AAMC_Raw_Data_for_FY22[[#This Row],[25th]])/25)*20) + AAMC_Raw_Data_for_FY22[[#This Row],[25th]]","v":465461.2},474538,{"$f":"(((AAMC_Raw_Data_for_FY22[[#This Row],[75th]]-AAMC_Raw_Data_for_FY22[[#This Row],[Median]])/25)*5) + AAMC_Raw_Data_for_FY22[[#This Row],[Median]]","v":486829.6},{"$f":"(((AAMC_Raw_Data_for_FY22[[#This Row],[75th]]-AAMC_Raw_Data_for_FY22[[#This Row],[Median]])/25)*10) + AAMC_Raw_Data_for_FY22[[#This Row],[Median]]","v":499121.2},{"$f":"(((AAMC_Raw_Data_for_FY22[[#This Row],[75th]]-AAMC_Raw_Data_for_FY22[[#This Row],[Median]])/25)*15) + AAMC_Raw_Data_for_FY22[[#This Row],[Median]]","v":511412.8},{"$f":"(((AAMC_Raw_Data_for_FY22[[#This Row],[75th]]-AAMC_Raw_Data_for_FY22[[#This Row],[Median]])/25)*20) + AAMC_Raw_Data_for_FY22[[#This Row],[Median]]","v":523704.4},535996,{"$f":"(((AAMC_Raw_Data_for_FY22[[#This Row],[75th]]-AAMC_Raw_Data_for_FY22[[#This Row],[Median]])/25)*30) + AAMC_Raw_Data_for_FY22[[#This Row],[Median]]","v":548287.6},{"$f":"(((AAMC_Raw_Data_for_FY22[[#This Row],[75th]]-AAMC_Raw_Data_for_FY22[[#This Row],[Median]])/25)*35) + AAMC_Raw_Data_for_FY22[[#This Row],[Median]]","v":560579.19999999995},{"$f":"(((AAMC_Raw_Data_for_FY22[[#This Row],[75th]]-AAMC_Raw_Data_for_FY22[[#This Row],[Median]])/25)*40) + AAMC_Raw_Data_for_FY22[[#This Row],[Median]]","v":572870.80000000005}]
[{"$f":"AAMC_Raw_Data_for_FY22[[#This Row],[Source]]&AAMC_Raw_Data_for_FY22[[#This Row],[Type]]&AAMC_Raw_Data_for_FY22[[#This Row],[School Subset]]&AAMC_Raw_Data_for_FY22[[#This Row],[Rank]]&AAMC_Raw_Data_for_FY22[[#This Row],[Degree]]&AAMC_Raw_Data_for_FY22[[#This Row],[Department / Specialty]]&\"L\"","v":"AAMCAcademicPublicChiefMDDiagnostic Radiology TotalL"},"Diagnostic Radiology Total",6,"AAMC","Academic","Public","Chief","MD","2021-2022",461041,{"$f":"(((AAMC_Raw_Data_for_FY22[[#This Row],[Median]]-AAMC_Raw_Data_for_FY22[[#This Row],[25th]])/25)*5) + AAMC_Raw_Data_for_FY22[[#This Row],[25th]]","v":466652.2},{"$f":"(((AAMC_Raw_Data_for_FY22[[#This Row],[Median]]-AAMC_Raw_Data_for_FY22[[#This Row],[25th]])/25)*10) + AAMC_Raw_Data_for_FY22[[#This Row],[25th]]","v":472263.4},{"$f":"(((AAMC_Raw_Data_for_FY22[[#This Row],[Median]]-AAMC_Raw_Data_for_FY22[[#This Row],[25th]])/25)*15) + AAMC_Raw_Data_for_FY22[[#This Row],[25th]]","v":477874.6},{"$f":"(((AAMC_Raw_Data_for_FY22[[#This Row],[Median]]-AAMC_Raw_Data_for_FY22[[#This Row],[25th]])/25)*20) + AAMC_Raw_Data_for_FY22[[#This Row],[25th]]","v":483485.8},489097,{"$f":"(((AAMC_Raw_Data_for_FY22[[#This Row],[75th]]-AAMC_Raw_Data_for_FY22[[#This Row],[Median]])/25)*5) + AAMC_Raw_Data_for_FY22[[#This Row],[Median]]","v":498808.4},{"$f":"(((AAMC_Raw_Data_for_FY22[[#This Row],[75th]]-AAMC_Raw_Data_for_FY22[[#This Row],[Median]])/25)*10) + AAMC_Raw_Data_for_FY22[[#This Row],[Median]]","v":508519.8},{"$f":"(((AAMC_Raw_Data_for_FY22[[#This Row],[75th]]-AAMC_Raw_Data_for_FY22[[#This Row],[Median]])/25)*15) + AAMC_Raw_Data_for_FY22[[#This Row],[Median]]","v":518231.2},{"$f":"(((AAMC_Raw_Data_for_FY22[[#This Row],[75th]]-AAMC_Raw_Data_for_FY22[[#This Row],[Median]])/25)*20) + AAMC_Raw_Data_for_FY22[[#This Row],[Median]]","v":527942.6},537654,{"$f":"(((AAMC_Raw_Data_for_FY22[[#This Row],[75th]]-AAMC_Raw_Data_for_FY22[[#This Row],[Median]])/25)*30) + AAMC_Raw_Data_for_FY22[[#This Row],[Median]]","v":547365.4},{"$f":"(((AAMC_Raw_Data_for_FY22[[#This Row],[75th]]-AAMC_Raw_Data_for_FY22[[#This Row],[Median]])/25)*35) + AAMC_Raw_Data_for_FY22[[#This Row],[Median]]","v":557076.80000000005},{"$f":"(((AAMC_Raw_Data_for_FY22[[#This Row],[75th]]-AAMC_Raw_Data_for_FY22[[#This Row],[Median]])/25)*40) + AAMC_Raw_Data_for_FY22[[#This Row],[Median]]","v":566788.19999999995}]
[{"$f":"AAMC_Raw_Data_for_FY22[[#This Row],[Source]]&AAMC_Raw_Data_for_FY22[[#This Row],[Type]]&AAMC_Raw_Data_for_FY22[[#This Row],[School Subset]]&AAMC_Raw_Data_for_FY22[[#This Row],[Rank]]&AAMC_Raw_Data_for_FY22[[#This Row],[Degree]]&AAMC_Raw_Data_for_FY22[[#This Row],[Department / Specialty]]&\"L\"","v":"AAMCAcademicPublicChairMDDiagnostic Radiology TotalL"},"Diagnostic Radiology Total",1,"AAMC","Academic","Public","Chair","MD","2021-2022",687404,{"$f":"(((AAMC_Raw_Data_for_FY22[[#This Row],[Median]]-AAMC_Raw_Data_for_FY22[[#This Row],[25th]])/25)*5) + AAMC_Raw_Data_for_FY22[[#This Row],[25th]]","v":704104},{"$f":"(((AAMC_Raw_Data_for_FY22[[#This Row],[Median]]-AAMC_Raw_Data_for_FY22[[#This Row],[25th]])/25)*10) + AAMC_Raw_Data_for_FY22[[#This Row],[25th]]","v":720804},{"$f":"(((AAMC_Raw_Data_for_FY22[[#This Row],[Median]]-AAMC_Raw_Data_for_FY22[[#This Row],[25th]])/25)*15) + AAMC_Raw_Data_for_FY22[[#This Row],[25th]]","v":737504},{"$f":"(((AAMC_Raw_Data_for_FY22[[#This Row],[Median]]-AAMC_Raw_Data_for_FY22[[#This Row],[25th]])/25)*20) + AAMC_Raw_Data_for_FY22[[#This Row],[25th]]","v":754204},770904,{"$f":"(((AAMC_Raw_Data_for_FY22[[#This Row],[75th]]-AAMC_Raw_Data_for_FY22[[#This Row],[Median]])/25)*5) + AAMC_Raw_Data_for_FY22[[#This Row],[Median]]","v":780506.6},{"$f":"(((AAMC_Raw_Data_for_FY22[[#This Row],[75th]]-AAMC_Raw_Data_for_FY22[[#This Row],[Median]])/25)*10) + AAMC_Raw_Data_for_FY22[[#This Row],[Median]]","v":790109.2},{"$f":"(((AAMC_Raw_Data_for_FY22[[#This Row],[75th]]-AAMC_Raw_Data_for_FY22[[#This Row],[Median]])/25)*15) + AAMC_Raw_Data_for_FY22[[#This Row],[Median]]","v":799711.8},{"$f":"(((AAMC_Raw_Data_for_FY22[[#This Row],[75th]]-AAMC_Raw_Data_for_FY22[[#This Row],[Median]])/25)*20) + AAMC_Raw_Data_for_FY22[[#This Row],[Median]]","v":809314.4},818917,{"$f":"(((AAMC_Raw_Data_for_FY22[[#This Row],[75th]]-AAMC_Raw_Data_for_FY22[[#This Row],[Median]])/25)*30) + AAMC_Raw_Data_for_FY22[[#This Row],[Median]]","v":828519.6},{"$f":"(((AAMC_Raw_Data_for_FY22[[#This Row],[75th]]-AAMC_Raw_Data_for_FY22[[#This Row],[Median]])/25)*35) + AAMC_Raw_Data_for_FY22[[#This Row],[Median]]","v":838122.2},{"$f":"(((AAMC_Raw_Data_for_FY22[[#This Row],[75th]]-AAMC_Raw_Data_for_FY22[[#This Row],[Median]])/25)*40) + AAMC_Raw_Data_for_FY22[[#This Row],[Median]]","v":847724.8}]
[{"$f":"AAMC_Raw_Data_for_FY22[[#This Row],[Source]]&AAMC_Raw_Data_for_FY22[[#This Row],[Type]]&AAMC_Raw_Data_for_FY22[[#This Row],[School Subset]]&AAMC_Raw_Data_for_FY22[[#This Row],[Rank]]&AAMC_Raw_Data_for_FY22[[#This Row],[Degree]]&AAMC_Raw_Data_for_FY22[[#This Row],[Department / Specialty]]&\"L\"","v":"AAMCAcademicPublicInstructorMDDiagnostic Radiology: InterventionalL"},"Diagnostic Radiology: Interventional",5,"AAMC","Academic","Public","Instructor","MD","2021-2022",null,{"$f":"(((AAMC_Raw_Data_for_FY22[[#This Row],[Median]]-AAMC_Raw_Data_for_FY22[[#This Row],[25th]])/25)*5) + AAMC_Raw_Data_for_FY22[[#This Row],[25th]]","v":0},{"$f":"(((AAMC_Raw_Data_for_FY22[[#This Row],[Median]]-AAMC_Raw_Data_for_FY22[[#This Row],[25th]])/25)*10) + AAMC_Raw_Data_for_FY22[[#This Row],[25th]]","v":0},{"$f":"(((AAMC_Raw_Data_for_FY22[[#This Row],[Median]]-AAMC_Raw_Data_for_FY22[[#This Row],[25th]])/25)*15) + AAMC_Raw_Data_for_FY22[[#This Row],[25th]]","v":0},{"$f":"(((AAMC_Raw_Data_for_FY22[[#This Row],[Median]]-AAMC_Raw_Data_for_FY22[[#This Row],[25th]])/25)*20) + AAMC_Raw_Data_for_FY22[[#This Row],[25th]]","v":0},null,{"$f":"(((AAMC_Raw_Data_for_FY22[[#This Row],[75th]]-AAMC_Raw_Data_for_FY22[[#This Row],[Median]])/25)*5) + AAMC_Raw_Data_for_FY22[[#This Row],[Median]]","v":0},{"$f":"(((AAMC_Raw_Data_for_FY22[[#This Row],[75th]]-AAMC_Raw_Data_for_FY22[[#This Row],[Median]])/25)*10) + AAMC_Raw_Data_for_FY22[[#This Row],[Median]]","v":0},{"$f":"(((AAMC_Raw_Data_for_FY22[[#This Row],[75th]]-AAMC_Raw_Data_for_FY22[[#This Row],[Median]])/25)*15) + AAMC_Raw_Data_for_FY22[[#This Row],[Median]]","v":0},{"$f":"(((AAMC_Raw_Data_for_FY22[[#This Row],[75th]]-AAMC_Raw_Data_for_FY22[[#This Row],[Median]])/25)*20) + AAMC_Raw_Data_for_FY22[[#This Row],[Median]]","v":0},null,{"$f":"(((AAMC_Raw_Data_for_FY22[[#This Row],[75th]]-AAMC_Raw_Data_for_FY22[[#This Row],[Median]])/25)*30) + AAMC_Raw_Data_for_FY22[[#This Row],[Median]]","v":0},{"$f":"(((AAMC_Raw_Data_for_FY22[[#This Row],[75th]]-AAMC_Raw_Data_for_FY22[[#This Row],[Median]])/25)*35) + AAMC_Raw_Data_for_FY22[[#This Row],[Median]]","v":0},{"$f":"(((AAMC_Raw_Data_for_FY22[[#This Row],[75th]]-AAMC_Raw_Data_for_FY22[[#This Row],[Median]])/25)*40) + AAMC_Raw_Data_for_FY22[[#This Row],[Median]]","v":0}]
[{"$f":"AAMC_Raw_Data_for_FY22[[#This Row],[Source]]&AAMC_Raw_Data_for_FY22[[#This Row],[Type]]&AAMC_Raw_Data_for_FY22[[#This Row],[School Subset]]&AAMC_Raw_Data_for_FY22[[#This Row],[Rank]]&AAMC_Raw_Data_for_FY22[[#This Row],[Degree]]&AAMC_Raw_Data_for_FY22[[#This Row],[Department / Specialty]]&\"L\"","v":"AAMCAcademicPublicAssistantMDDiagnostic Radiology: InterventionalL"},"Diagnostic Radiology: Interventional",4,"AAMC","Academic","Public","Assistant","MD","2021-2022",420226,{"$f":"(((AAMC_Raw_Data_for_FY22[[#This Row],[Median]]-AAMC_Raw_Data_for_FY22[[#This Row],[25th]])/25)*5) + AAMC_Raw_Data_for_FY22[[#This Row],[25th]]","v":427673.2},{"$f":"(((AAMC_Raw_Data_for_FY22[[#This Row],[Median]]-AAMC_Raw_Data_for_FY22[[#This Row],[25th]])/25)*10) + AAMC_Raw_Data_for_FY22[[#This Row],[25th]]","v":435120.4},{"$f":"(((AAMC_Raw_Data_for_FY22[[#This Row],[Median]]-AAMC_Raw_Data_for_FY22[[#This Row],[25th]])/25)*15) + AAMC_Raw_Data_for_FY22[[#This Row],[25th]]","v":442567.6},{"$f":"(((AAMC_Raw_Data_for_FY22[[#This Row],[Median]]-AAMC_Raw_Data_for_FY22[[#This Row],[25th]])/25)*20) + AAMC_Raw_Data_for_FY22[[#This Row],[25th]]","v":450014.8},457462,{"$f":"(((AAMC_Raw_Data_for_FY22[[#This Row],[75th]]-AAMC_Raw_Data_for_FY22[[#This Row],[Median]])/25)*5) + AAMC_Raw_Data_for_FY22[[#This Row],[Median]]","v":472489.6},{"$f":"(((AAMC_Raw_Data_for_FY22[[#This Row],[75th]]-AAMC_Raw_Data_for_FY22[[#This Row],[Median]])/25)*10) + AAMC_Raw_Data_for_FY22[[#This Row],[Median]]","v":487517.2},{"$f":"(((AAMC_Raw_Data_for_FY22[[#This Row],[75th]]-AAMC_Raw_Data_for_FY22[[#This Row],[Median]])/25)*15) + AAMC_Raw_Data_for_FY22[[#This Row],[Median]]","v":502544.8},{"$f":"(((AAMC_Raw_Data_for_FY22[[#This Row],[75th]]-AAMC_Raw_Data_for_FY22[[#This Row],[Median]])/25)*20) + AAMC_Raw_Data_for_FY22[[#This Row],[Median]]","v":517572.4},532600,{"$f":"(((AAMC_Raw_Data_for_FY22[[#This Row],[75th]]-AAMC_Raw_Data_for_FY22[[#This Row],[Median]])/25)*30) + AAMC_Raw_Data_for_FY22[[#This Row],[Median]]","v":547627.6},{"$f":"(((AAMC_Raw_Data_for_FY22[[#This Row],[75th]]-AAMC_Raw_Data_for_FY22[[#This Row],[Median]])/25)*35) + AAMC_Raw_Data_for_FY22[[#This Row],[Median]]","v":562655.19999999995},{"$f":"(((AAMC_Raw_Data_for_FY22[[#This Row],[75th]]-AAMC_Raw_Data_for_FY22[[#This Row],[Median]])/25)*40) + AAMC_Raw_Data_for_FY22[[#This Row],[Median]]","v":577682.80000000005}]
[{"$f":"AAMC_Raw_Data_for_FY22[[#This Row],[Source]]&AAMC_Raw_Data_for_FY22[[#This Row],[Type]]&AAMC_Raw_Data_for_FY22[[#This Row],[School Subset]]&AAMC_Raw_Data_for_FY22[[#This Row],[Rank]]&AAMC_Raw_Data_for_FY22[[#This Row],[Degree]]&AAMC_Raw_Data_for_FY22[[#This Row],[Department / Specialty]]&\"L\"","v":"AAMCAcademicPublicAssociateMDDiagnostic Radiology: InterventionalL"},"Diagnostic Radiology: Interventional",3,"AAMC","Academic","Public","Associate","MD","2021-2022",452051,{"$f":"(((AAMC_Raw_Data_for_FY22[[#This Row],[Median]]-AAMC_Raw_Data_for_FY22[[#This Row],[25th]])/25)*5) + AAMC_Raw_Data_for_FY22[[#This Row],[25th]]","v":459299.8},{"$f":"(((AAMC_Raw_Data_for_FY22[[#This Row],[Median]]-AAMC_Raw_Data_for_FY22[[#This Row],[25th]])/25)*10) + AAMC_Raw_Data_for_FY22[[#This Row],[25th]]","v":466548.6},{"$f":"(((AAMC_Raw_Data_for_FY22[[#This Row],[Median]]-AAMC_Raw_Data_for_FY22[[#This Row],[25th]])/25)*15) + AAMC_Raw_Data_for_FY22[[#This Row],[25th]]","v":473797.4},{"$f":"(((AAMC_Raw_Data_for_FY22[[#This Row],[Median]]-AAMC_Raw_Data_for_FY22[[#This Row],[25th]])/25)*20) + AAMC_Raw_Data_for_FY22[[#This Row],[25th]]","v":481046.2},488295,{"$f":"(((AAMC_Raw_Data_for_FY22[[#This Row],[75th]]-AAMC_Raw_Data_for_FY22[[#This Row],[Median]])/25)*5) + AAMC_Raw_Data_for_FY22[[#This Row],[Median]]","v":500555.2},{"$f":"(((AAMC_Raw_Data_for_FY22[[#This Row],[75th]]-AAMC_Raw_Data_for_FY22[[#This Row],[Median]])/25)*10) + AAMC_Raw_Data_for_FY22[[#This Row],[Median]]","v":512815.4},{"$f":"(((AAMC_Raw_Data_for_FY22[[#This Row],[75th]]-AAMC_Raw_Data_for_FY22[[#This Row],[Median]])/25)*15) + AAMC_Raw_Data_for_FY22[[#This Row],[Median]]","v":525075.6},{"$f":"(((AAMC_Raw_Data_for_FY22[[#This Row],[75th]]-AAMC_Raw_Data_for_FY22[[#This Row],[Median]])/25)*20) + AAMC_Raw_Data_for_FY22[[#This Row],[Median]]","v":537335.80000000005},549596,{"$f":"(((AAMC_Raw_Data_for_FY22[[#This Row],[75th]]-AAMC_Raw_Data_for_FY22[[#This Row],[Median]])/25)*30) + AAMC_Raw_Data_for_FY22[[#This Row],[Median]]","v":561856.19999999995},{"$f":"(((AAMC_Raw_Data_for_FY22[[#This Row],[75th]]-AAMC_Raw_Data_for_FY22[[#This Row],[Median]])/25)*35) + AAMC_Raw_Data_for_FY22[[#This Row],[Median]]","v":574116.4},{"$f":"(((AAMC_Raw_Data_for_FY22[[#This Row],[75th]]-AAMC_Raw_Data_for_FY22[[#This Row],[Median]])/25)*40) + AAMC_Raw_Data_for_FY22[[#This Row],[Median]]","v":586376.6}]
[{"$f":"AAMC_Raw_Data_for_FY22[[#This Row],[Source]]&AAMC_Raw_Data_for_FY22[[#This Row],[Type]]&AAMC_Raw_Data_for_FY22[[#This Row],[School Subset]]&AAMC_Raw_Data_for_FY22[[#This Row],[Rank]]&AAMC_Raw_Data_for_FY22[[#This Row],[Degree]]&AAMC_Raw_Data_for_FY22[[#This Row],[Department / Specialty]]&\"L\"","v":"AAMCAcademicPublicProfessorMDDiagnostic Radiology: InterventionalL"},"Diagnostic Radiology: Interventional",2,"AAMC","Academic","Public","Professor","MD","2021-2022",470496,{"$f":"(((AAMC_Raw_Data_for_FY22[[#This Row],[Median]]-AAMC_Raw_Data_for_FY22[[#This Row],[25th]])/25)*5) + AAMC_Raw_Data_for_FY22[[#This Row],[25th]]","v":478343.6},{"$f":"(((AAMC_Raw_Data_for_FY22[[#This Row],[Median]]-AAMC_Raw_Data_for_FY22[[#This Row],[25th]])/25)*10) + AAMC_Raw_Data_for_FY22[[#This Row],[25th]]","v":486191.2},{"$f":"(((AAMC_Raw_Data_for_FY22[[#This Row],[Median]]-AAMC_Raw_Data_for_FY22[[#This Row],[25th]])/25)*15) + AAMC_Raw_Data_for_FY22[[#This Row],[25th]]","v":494038.8},{"$f":"(((AAMC_Raw_Data_for_FY22[[#This Row],[Median]]-AAMC_Raw_Data_for_FY22[[#This Row],[25th]])/25)*20) + AAMC_Raw_Data_for_FY22[[#This Row],[25th]]","v":501886.4},509734,{"$f":"(((AAMC_Raw_Data_for_FY22[[#This Row],[75th]]-AAMC_Raw_Data_for_FY22[[#This Row],[Median]])/25)*5) + AAMC_Raw_Data_for_FY22[[#This Row],[Median]]","v":522314},{"$f":"(((AAMC_Raw_Data_for_FY22[[#This Row],[75th]]-AAMC_Raw_Data_for_FY22[[#This Row],[Median]])/25)*10) + AAMC_Raw_Data_for_FY22[[#This Row],[Median]]","v":534894},{"$f":"(((AAMC_Raw_Data_for_FY22[[#This Row],[75th]]-AAMC_Raw_Data_for_FY22[[#This Row],[Median]])/25)*15) + AAMC_Raw_Data_for_FY22[[#This Row],[Median]]","v":547474},{"$f":"(((AAMC_Raw_Data_for_FY22[[#This Row],[75th]]-AAMC_Raw_Data_for_FY22[[#This Row],[Median]])/25)*20) + AAMC_Raw_Data_for_FY22[[#This Row],[Median]]","v":560054},572634,{"$f":"(((AAMC_Raw_Data_for_FY22[[#This Row],[75th]]-AAMC_Raw_Data_for_FY22[[#This Row],[Median]])/25)*30) + AAMC_Raw_Data_for_FY22[[#This Row],[Median]]","v":585214},{"$f":"(((AAMC_Raw_Data_for_FY22[[#This Row],[75th]]-AAMC_Raw_Data_for_FY22[[#This Row],[Median]])/25)*35) + AAMC_Raw_Data_for_FY22[[#This Row],[Median]]","v":597794},{"$f":"(((AAMC_Raw_Data_for_FY22[[#This Row],[75th]]-AAMC_Raw_Data_for_FY22[[#This Row],[Median]])/25)*40) + AAMC_Raw_Data_for_FY22[[#This Row],[Median]]","v":610374}]
[{"$f":"AAMC_Raw_Data_for_FY22[[#This Row],[Source]]&AAMC_Raw_Data_for_FY22[[#This Row],[Type]]&AAMC_Raw_Data_for_FY22[[#This Row],[School Subset]]&AAMC_Raw_Data_for_FY22[[#This Row],[Rank]]&AAMC_Raw_Data_for_FY22[[#This Row],[Degree]]&AAMC_Raw_Data_for_FY22[[#This Row],[Department / Specialty]]&\"L\"","v":"AAMCAcademicPublicChiefMDDiagnostic Radiology: InterventionalL"},"Diagnostic Radiology: Interventional",6,"AAMC","Academic","Public","Chief","MD","2021-2022",493077,{"$f":"(((AAMC_Raw_Data_for_FY22[[#This Row],[Median]]-AAMC_Raw_Data_for_FY22[[#This Row],[25th]])/25)*5) + AAMC_Raw_Data_for_FY22[[#This Row],[25th]]","v":501584.8},{"$f":"(((AAMC_Raw_Data_for_FY22[[#This Row],[Median]]-AAMC_Raw_Data_for_FY22[[#This Row],[25th]])/25)*10) + AAMC_Raw_Data_for_FY22[[#This Row],[25th]]","v":510092.6},{"$f":"(((AAMC_Raw_Data_for_FY22[[#This Row],[Median]]-AAMC_Raw_Data_for_FY22[[#This Row],[25th]])/25)*15) + AAMC_Raw_Data_for_FY22[[#This Row],[25th]]","v":518600.4},{"$f":"(((AAMC_Raw_Data_for_FY22[[#This Row],[Median]]-AAMC_Raw_Data_for_FY22[[#This Row],[25th]])/25)*20) + AAMC_Raw_Data_for_FY22[[#This Row],[25th]]","v":527108.19999999995},535616,{"$f":"(((AAMC_Raw_Data_for_FY22[[#This Row],[75th]]-AAMC_Raw_Data_for_FY22[[#This Row],[Median]])/25)*5) + AAMC_Raw_Data_for_FY22[[#This Row],[Median]]","v":543004},{"$f":"(((AAMC_Raw_Data_for_FY22[[#This Row],[75th]]-AAMC_Raw_Data_for_FY22[[#This Row],[Median]])/25)*10) + AAMC_Raw_Data_for_FY22[[#This Row],[Median]]","v":550392},{"$f":"(((AAMC_Raw_Data_for_FY22[[#This Row],[75th]]-AAMC_Raw_Data_for_FY22[[#This Row],[Median]])/25)*15) + AAMC_Raw_Data_for_FY22[[#This Row],[Median]]","v":557780},{"$f":"(((AAMC_Raw_Data_for_FY22[[#This Row],[75th]]-AAMC_Raw_Data_for_FY22[[#This Row],[Median]])/25)*20) + AAMC_Raw_Data_for_FY22[[#This Row],[Median]]","v":565168},572556,{"$f":"(((AAMC_Raw_Data_for_FY22[[#This Row],[75th]]-AAMC_Raw_Data_for_FY22[[#This Row],[Median]])/25)*30) + AAMC_Raw_Data_for_FY22[[#This Row],[Median]]","v":579944},{"$f":"(((AAMC_Raw_Data_for_FY22[[#This Row],[75th]]-AAMC_Raw_Data_for_FY22[[#This Row],[Median]])/25)*35) + AAMC_Raw_Data_for_FY22[[#This Row],[Median]]","v":587332},{"$f":"(((AAMC_Raw_Data_for_FY22[[#This Row],[75th]]-AAMC_Raw_Data_for_FY22[[#This Row],[Median]])/25)*40) + AAMC_Raw_Data_for_FY22[[#This Row],[Median]]","v":594720}]
[{"$f":"AAMC_Raw_Data_for_FY22[[#This Row],[Source]]&AAMC_Raw_Data_for_FY22[[#This Row],[Type]]&AAMC_Raw_Data_for_FY22[[#This Row],[School Subset]]&AAMC_Raw_Data_for_FY22[[#This Row],[Rank]]&AAMC_Raw_Data_for_FY22[[#This Row],[Degree]]&AAMC_Raw_Data_for_FY22[[#This Row],[Department / Specialty]]&\"L\"","v":"AAMCAcademicPublicChairMDDiagnostic Radiology: InterventionalL"},"Diagnostic Radiology: Interventional",1,"AAMC","Academic","Public","Chair","MD","2021-2022",678255,{"$f":"(((AAMC_Raw_Data_for_FY22[[#This Row],[Median]]-AAMC_Raw_Data_for_FY22[[#This Row],[25th]])/25)*5) + AAMC_Raw_Data_for_FY22[[#This Row],[25th]]","v":690826.4},{"$f":"(((AAMC_Raw_Data_for_FY22[[#This Row],[Median]]-AAMC_Raw_Data_for_FY22[[#This Row],[25th]])/25)*10) + AAMC_Raw_Data_for_FY22[[#This Row],[25th]]","v":703397.8},{"$f":"(((AAMC_Raw_Data_for_FY22[[#This Row],[Median]]-AAMC_Raw_Data_for_FY22[[#This Row],[25th]])/25)*15) + AAMC_Raw_Data_for_FY22[[#This Row],[25th]]","v":715969.2},{"$f":"(((AAMC_Raw_Data_for_FY22[[#This Row],[Median]]-AAMC_Raw_Data_for_FY22[[#This Row],[25th]])/25)*20) + AAMC_Raw_Data_for_FY22[[#This Row],[25th]]","v":728540.6},741112,{"$f":"(((AAMC_Raw_Data_for_FY22[[#This Row],[75th]]-AAMC_Raw_Data_for_FY22[[#This Row],[Median]])/25)*5) + AAMC_Raw_Data_for_FY22[[#This Row],[Median]]","v":754206.2},{"$f":"(((AAMC_Raw_Data_for_FY22[[#This Row],[75th]]-AAMC_Raw_Data_for_FY22[[#This Row],[Median]])/25)*10) + AAMC_Raw_Data_for_FY22[[#This Row],[Median]]","v":767300.4},{"$f":"(((AAMC_Raw_Data_for_FY22[[#This Row],[75th]]-AAMC_Raw_Data_for_FY22[[#This Row],[Median]])/25)*15) + AAMC_Raw_Data_for_FY22[[#This Row],[Median]]","v":780394.6},{"$f":"(((AAMC_Raw_Data_for_FY22[[#This Row],[75th]]-AAMC_Raw_Data_for_FY22[[#This Row],[Median]])/25)*20) + AAMC_Raw_Data_for_FY22[[#This Row],[Median]]","v":793488.8},806583,{"$f":"(((AAMC_Raw_Data_for_FY22[[#This Row],[75th]]-AAMC_Raw_Data_for_FY22[[#This Row],[Median]])/25)*30) + AAMC_Raw_Data_for_FY22[[#This Row],[Median]]","v":819677.2},{"$f":"(((AAMC_Raw_Data_for_FY22[[#This Row],[75th]]-AAMC_Raw_Data_for_FY22[[#This Row],[Median]])/25)*35) + AAMC_Raw_Data_for_FY22[[#This Row],[Median]]","v":832771.4},{"$f":"(((AAMC_Raw_Data_for_FY22[[#This Row],[75th]]-AAMC_Raw_Data_for_FY22[[#This Row],[Median]])/25)*40) + AAMC_Raw_Data_for_FY22[[#This Row],[Median]]","v":845865.6}]
[{"$f":"AAMC_Raw_Data_for_FY22[[#This Row],[Source]]&AAMC_Raw_Data_for_FY22[[#This Row],[Type]]&AAMC_Raw_Data_for_FY22[[#This Row],[School Subset]]&AAMC_Raw_Data_for_FY22[[#This Row],[Rank]]&AAMC_Raw_Data_for_FY22[[#This Row],[Degree]]&AAMC_Raw_Data_for_FY22[[#This Row],[Department / Specialty]]&\"L\"","v":"AAMCAcademicPublicInstructorMDDiagnostic Radiology: Non-interventionalL"},"Diagnostic Radiology: Non-interventional",5,"AAMC","Academic","Public","Instructor","MD","2021-2022",84644,{"$f":"(((AAMC_Raw_Data_for_FY22[[#This Row],[Median]]-AAMC_Raw_Data_for_FY22[[#This Row],[25th]])/25)*5) + AAMC_Raw_Data_for_FY22[[#This Row],[25th]]","v":87551.6},{"$f":"(((AAMC_Raw_Data_for_FY22[[#This Row],[Median]]-AAMC_Raw_Data_for_FY22[[#This Row],[25th]])/25)*10) + AAMC_Raw_Data_for_FY22[[#This Row],[25th]]","v":90459.199999999997},{"$f":"(((AAMC_Raw_Data_for_FY22[[#This Row],[Median]]-AAMC_Raw_Data_for_FY22[[#This Row],[25th]])/25)*15) + AAMC_Raw_Data_for_FY22[[#This Row],[25th]]","v":93366.8},{"$f":"(((AAMC_Raw_Data_for_FY22[[#This Row],[Median]]-AAMC_Raw_Data_for_FY22[[#This Row],[25th]])/25)*20) + AAMC_Raw_Data_for_FY22[[#This Row],[25th]]","v":96274.4},99182,{"$f":"(((AAMC_Raw_Data_for_FY22[[#This Row],[75th]]-AAMC_Raw_Data_for_FY22[[#This Row],[Median]])/25)*5) + AAMC_Raw_Data_for_FY22[[#This Row],[Median]]","v":104544.4},{"$f":"(((AAMC_Raw_Data_for_FY22[[#This Row],[75th]]-AAMC_Raw_Data_for_FY22[[#This Row],[Median]])/25)*10) + AAMC_Raw_Data_for_FY22[[#This Row],[Median]]","v":109906.8},{"$f":"(((AAMC_Raw_Data_for_FY22[[#This Row],[75th]]-AAMC_Raw_Data_for_FY22[[#This Row],[Median]])/25)*15) + AAMC_Raw_Data_for_FY22[[#This Row],[Median]]","v":115269.2},{"$f":"(((AAMC_Raw_Data_for_FY22[[#This Row],[75th]]-AAMC_Raw_Data_for_FY22[[#This Row],[Median]])/25)*20) + AAMC_Raw_Data_for_FY22[[#This Row],[Median]]","v":120631.6},125994,{"$f":"(((AAMC_Raw_Data_for_FY22[[#This Row],[75th]]-AAMC_Raw_Data_for_FY22[[#This Row],[Median]])/25)*30) + AAMC_Raw_Data_for_FY22[[#This Row],[Median]]","v":131356.4},{"$f":"(((AAMC_Raw_Data_for_FY22[[#This Row],[75th]]-AAMC_Raw_Data_for_FY22[[#This Row],[Median]])/25)*35) + AAMC_Raw_Data_for_FY22[[#This Row],[Median]]","v":136718.79999999999},{"$f":"(((AAMC_Raw_Data_for_FY22[[#This Row],[75th]]-AAMC_Raw_Data_for_FY22[[#This Row],[Median]])/25)*40) + AAMC_Raw_Data_for_FY22[[#This Row],[Median]]","v":142081.20000000001}]
[{"$f":"AAMC_Raw_Data_for_FY22[[#This Row],[Source]]&AAMC_Raw_Data_for_FY22[[#This Row],[Type]]&AAMC_Raw_Data_for_FY22[[#This Row],[School Subset]]&AAMC_Raw_Data_for_FY22[[#This Row],[Rank]]&AAMC_Raw_Data_for_FY22[[#This Row],[Degree]]&AAMC_Raw_Data_for_FY22[[#This Row],[Department / Specialty]]&\"L\"","v":"AAMCAcademicPublicAssistantMDDiagnostic Radiology: Non-interventionalL"},"Diagnostic Radiology: Non-interventional",4,"AAMC","Academic","Public","Assistant","MD","2021-2022",377566,{"$f":"(((AAMC_Raw_Data_for_FY22[[#This Row],[Median]]-AAMC_Raw_Data_for_FY22[[#This Row],[25th]])/25)*5) + AAMC_Raw_Data_for_FY22[[#This Row],[25th]]","v":386057.8},{"$f":"(((AAMC_Raw_Data_for_FY22[[#This Row],[Median]]-AAMC_Raw_Data_for_FY22[[#This Row],[25th]])/25)*10) + AAMC_Raw_Data_for_FY22[[#This Row],[25th]]","v":394549.6},{"$f":"(((AAMC_Raw_Data_for_FY22[[#This Row],[Median]]-AAMC_Raw_Data_for_FY22[[#This Row],[25th]])/25)*15) + AAMC_Raw_Data_for_FY22[[#This Row],[25th]]","v":403041.4},{"$f":"(((AAMC_Raw_Data_for_FY22[[#This Row],[Median]]-AAMC_Raw_Data_for_FY22[[#This Row],[25th]])/25)*20) + AAMC_Raw_Data_for_FY22[[#This Row],[25th]]","v":411533.2},420025,{"$f":"(((AAMC_Raw_Data_for_FY22[[#This Row],[75th]]-AAMC_Raw_Data_for_FY22[[#This Row],[Median]])/25)*5) + AAMC_Raw_Data_for_FY22[[#This Row],[Median]]","v":432841.4},{"$f":"(((AAMC_Raw_Data_for_FY22[[#This Row],[75th]]-AAMC_Raw_Data_for_FY22[[#This Row],[Median]])/25)*10) + AAMC_Raw_Data_for_FY22[[#This Row],[Median]]","v":445657.8},{"$f":"(((AAMC_Raw_Data_for_FY22[[#This Row],[75th]]-AAMC_Raw_Data_for_FY22[[#This Row],[Median]])/25)*15) + AAMC_Raw_Data_for_FY22[[#This Row],[Median]]","v":458474.2},{"$f":"(((AAMC_Raw_Data_for_FY22[[#This Row],[75th]]-AAMC_Raw_Data_for_FY22[[#This Row],[Median]])/25)*20) + AAMC_Raw_Data_for_FY22[[#This Row],[Median]]","v":471290.6},484107,{"$f":"(((AAMC_Raw_Data_for_FY22[[#This Row],[75th]]-AAMC_Raw_Data_for_FY22[[#This Row],[Median]])/25)*30) + AAMC_Raw_Data_for_FY22[[#This Row],[Median]]","v":496923.4},{"$f":"(((AAMC_Raw_Data_for_FY22[[#This Row],[75th]]-AAMC_Raw_Data_for_FY22[[#This Row],[Median]])/25)*35) + AAMC_Raw_Data_for_FY22[[#This Row],[Median]]","v":509739.8},{"$f":"(((AAMC_Raw_Data_for_FY22[[#This Row],[75th]]-AAMC_Raw_Data_for_FY22[[#This Row],[Median]])/25)*40) + AAMC_Raw_Data_for_FY22[[#This Row],[Median]]","v":522556.2}]
[{"$f":"AAMC_Raw_Data_for_FY22[[#This Row],[Source]]&AAMC_Raw_Data_for_FY22[[#This Row],[Type]]&AAMC_Raw_Data_for_FY22[[#This Row],[School Subset]]&AAMC_Raw_Data_for_FY22[[#This Row],[Rank]]&AAMC_Raw_Data_for_FY22[[#This Row],[Degree]]&AAMC_Raw_Data_for_FY22[[#This Row],[Department / Specialty]]&\"L\"","v":"AAMCAcademicPublicAssociateMDDiagnostic Radiology: Non-interventionalL"},"Diagnostic Radiology: Non-interventional",3,"AAMC","Academic","Public","Associate","MD","2021-2022",413665,{"$f":"(((AAMC_Raw_Data_for_FY22[[#This Row],[Median]]-AAMC_Raw_Data_for_FY22[[#This Row],[25th]])/25)*5) + AAMC_Raw_Data_for_FY22[[#This Row],[25th]]","v":420629.4},{"$f":"(((AAMC_Raw_Data_for_FY22[[#This Row],[Median]]-AAMC_Raw_Data_for_FY22[[#This Row],[25th]])/25)*10) + AAMC_Raw_Data_for_FY22[[#This Row],[25th]]","v":427593.8},{"$f":"(((AAMC_Raw_Data_for_FY22[[#This Row],[Median]]-AAMC_Raw_Data_for_FY22[[#This Row],[25th]])/25)*15) + AAMC_Raw_Data_for_FY22[[#This Row],[25th]]","v":434558.2},{"$f":"(((AAMC_Raw_Data_for_FY22[[#This Row],[Median]]-AAMC_Raw_Data_for_FY22[[#This Row],[25th]])/25)*20) + AAMC_Raw_Data_for_FY22[[#This Row],[25th]]","v":441522.6},448487,{"$f":"(((AAMC_Raw_Data_for_FY22[[#This Row],[75th]]-AAMC_Raw_Data_for_FY22[[#This Row],[Median]])/25)*5) + AAMC_Raw_Data_for_FY22[[#This Row],[Median]]","v":460055},{"$f":"(((AAMC_Raw_Data_for_FY22[[#This Row],[75th]]-AAMC_Raw_Data_for_FY22[[#This Row],[Median]])/25)*10) + AAMC_Raw_Data_for_FY22[[#This Row],[Median]]","v":471623},{"$f":"(((AAMC_Raw_Data_for_FY22[[#This Row],[75th]]-AAMC_Raw_Data_for_FY22[[#This Row],[Median]])/25)*15) + AAMC_Raw_Data_for_FY22[[#This Row],[Median]]","v":483191},{"$f":"(((AAMC_Raw_Data_for_FY22[[#This Row],[75th]]-AAMC_Raw_Data_for_FY22[[#This Row],[Median]])/25)*20) + AAMC_Raw_Data_for_FY22[[#This Row],[Median]]","v":494759},506327,{"$f":"(((AAMC_Raw_Data_for_FY22[[#This Row],[75th]]-AAMC_Raw_Data_for_FY22[[#This Row],[Median]])/25)*30) + AAMC_Raw_Data_for_FY22[[#This Row],[Median]]","v":517895},{"$f":"(((AAMC_Raw_Data_for_FY22[[#This Row],[75th]]-AAMC_Raw_Data_for_FY22[[#This Row],[Median]])/25)*35) + AAMC_Raw_Data_for_FY22[[#This Row],[Median]]","v":529463},{"$f":"(((AAMC_Raw_Data_for_FY22[[#This Row],[75th]]-AAMC_Raw_Data_for_FY22[[#This Row],[Median]])/25)*40) + AAMC_Raw_Data_for_FY22[[#This Row],[Median]]","v":541031}]
[{"$f":"AAMC_Raw_Data_for_FY22[[#This Row],[Source]]&AAMC_Raw_Data_for_FY22[[#This Row],[Type]]&AAMC_Raw_Data_for_FY22[[#This Row],[School Subset]]&AAMC_Raw_Data_for_FY22[[#This Row],[Rank]]&AAMC_Raw_Data_for_FY22[[#This Row],[Degree]]&AAMC_Raw_Data_for_FY22[[#This Row],[Department / Specialty]]&\"L\"","v":"AAMCAcademicPublicProfessorMDDiagnostic Radiology: Non-interventionalL"},"Diagnostic Radiology: Non-interventional",2,"AAMC","Academic","Public","Professor","MD","2021-2022",423586,{"$f":"(((AAMC_Raw_Data_for_FY22[[#This Row],[Median]]-AAMC_Raw_Data_for_FY22[[#This Row],[25th]])/25)*5) + AAMC_Raw_Data_for_FY22[[#This Row],[25th]]","v":432226.6},{"$f":"(((AAMC_Raw_Data_for_FY22[[#This Row],[Median]]-AAMC_Raw_Data_for_FY22[[#This Row],[25th]])/25)*10) + AAMC_Raw_Data_for_FY22[[#This Row],[25th]]","v":440867.2},{"$f":"(((AAMC_Raw_Data_for_FY22[[#This Row],[Median]]-AAMC_Raw_Data_for_FY22[[#This Row],[25th]])/25)*15) + AAMC_Raw_Data_for_FY22[[#This Row],[25th]]","v":449507.8},{"$f":"(((AAMC_Raw_Data_for_FY22[[#This Row],[Median]]-AAMC_Raw_Data_for_FY22[[#This Row],[25th]])/25)*20) + AAMC_Raw_Data_for_FY22[[#This Row],[25th]]","v":458148.4},466789,{"$f":"(((AAMC_Raw_Data_for_FY22[[#This Row],[75th]]-AAMC_Raw_Data_for_FY22[[#This Row],[Median]])/25)*5) + AAMC_Raw_Data_for_FY22[[#This Row],[Median]]","v":478205.8},{"$f":"(((AAMC_Raw_Data_for_FY22[[#This Row],[75th]]-AAMC_Raw_Data_for_FY22[[#This Row],[Median]])/25)*10) + AAMC_Raw_Data_for_FY22[[#This Row],[Median]]","v":489622.6},{"$f":"(((AAMC_Raw_Data_for_FY22[[#This Row],[75th]]-AAMC_Raw_Data_for_FY22[[#This Row],[Median]])/25)*15) + AAMC_Raw_Data_for_FY22[[#This Row],[Median]]","v":501039.4},{"$f":"(((AAMC_Raw_Data_for_FY22[[#This Row],[75th]]-AAMC_Raw_Data_for_FY22[[#This Row],[Median]])/25)*20) + AAMC_Raw_Data_for_FY22[[#This Row],[Median]]","v":512456.2},523873,{"$f":"(((AAMC_Raw_Data_for_FY22[[#This Row],[75th]]-AAMC_Raw_Data_for_FY22[[#This Row],[Median]])/25)*30) + AAMC_Raw_Data_for_FY22[[#This Row],[Median]]","v":535289.80000000005},{"$f":"(((AAMC_Raw_Data_for_FY22[[#This Row],[75th]]-AAMC_Raw_Data_for_FY22[[#This Row],[Median]])/25)*35) + AAMC_Raw_Data_for_FY22[[#This Row],[Median]]","v":546706.6},{"$f":"(((AAMC_Raw_Data_for_FY22[[#This Row],[75th]]-AAMC_Raw_Data_for_FY22[[#This Row],[Median]])/25)*40) + AAMC_Raw_Data_for_FY22[[#This Row],[Median]]","v":558123.4}]
[{"$f":"AAMC_Raw_Data_for_FY22[[#This Row],[Source]]&AAMC_Raw_Data_for_FY22[[#This Row],[Type]]&AAMC_Raw_Data_for_FY22[[#This Row],[School Subset]]&AAMC_Raw_Data_for_FY22[[#This Row],[Rank]]&AAMC_Raw_Data_for_FY22[[#This Row],[Degree]]&AAMC_Raw_Data_for_FY22[[#This Row],[Department / Specialty]]&\"L\"","v":"AAMCAcademicPublicChiefMDDiagnostic Radiology: Non-interventionalL"},"Diagnostic Radiology: Non-interventional",6,"AAMC","Academic","Public","Chief","MD","2021-2022",453037,{"$f":"(((AAMC_Raw_Data_for_FY22[[#This Row],[Median]]-AAMC_Raw_Data_for_FY22[[#This Row],[25th]])/25)*5) + AAMC_Raw_Data_for_FY22[[#This Row],[25th]]","v":458967.8},{"$f":"(((AAMC_Raw_Data_for_FY22[[#This Row],[Median]]-AAMC_Raw_Data_for_FY22[[#This Row],[25th]])/25)*10) + AAMC_Raw_Data_for_FY22[[#This Row],[25th]]","v":464898.6},{"$f":"(((AAMC_Raw_Data_for_FY22[[#This Row],[Median]]-AAMC_Raw_Data_for_FY22[[#This Row],[25th]])/25)*15) + AAMC_Raw_Data_for_FY22[[#This Row],[25th]]","v":470829.4},{"$f":"(((AAMC_Raw_Data_for_FY22[[#This Row],[Median]]-AAMC_Raw_Data_for_FY22[[#This Row],[25th]])/25)*20) + AAMC_Raw_Data_for_FY22[[#This Row],[25th]]","v":476760.2},482691,{"$f":"(((AAMC_Raw_Data_for_FY22[[#This Row],[75th]]-AAMC_Raw_Data_for_FY22[[#This Row],[Median]])/25)*5) + AAMC_Raw_Data_for_FY22[[#This Row],[Median]]","v":488567.2},{"$f":"(((AAMC_Raw_Data_for_FY22[[#This Row],[75th]]-AAMC_Raw_Data_for_FY22[[#This Row],[Median]])/25)*10) + AAMC_Raw_Data_for_FY22[[#This Row],[Median]]","v":494443.4},{"$f":"(((AAMC_Raw_Data_for_FY22[[#This Row],[75th]]-AAMC_Raw_Data_for_FY22[[#This Row],[Median]])/25)*15) + AAMC_Raw_Data_for_FY22[[#This Row],[Median]]","v":500319.6},{"$f":"(((AAMC_Raw_Data_for_FY22[[#This Row],[75th]]-AAMC_Raw_Data_for_FY22[[#This Row],[Median]])/25)*20) + AAMC_Raw_Data_for_FY22[[#This Row],[Median]]","v":506195.8},512072,{"$f":"(((AAMC_Raw_Data_for_FY22[[#This Row],[75th]]-AAMC_Raw_Data_for_FY22[[#This Row],[Median]])/25)*30) + AAMC_Raw_Data_for_FY22[[#This Row],[Median]]","v":517948.2},{"$f":"(((AAMC_Raw_Data_for_FY22[[#This Row],[75th]]-AAMC_Raw_Data_for_FY22[[#This Row],[Median]])/25)*35) + AAMC_Raw_Data_for_FY22[[#This Row],[Median]]","v":523824.4},{"$f":"(((AAMC_Raw_Data_for_FY22[[#This Row],[75th]]-AAMC_Raw_Data_for_FY22[[#This Row],[Median]])/25)*40) + AAMC_Raw_Data_for_FY22[[#This Row],[Median]]","v":529700.6}]
[{"$f":"AAMC_Raw_Data_for_FY22[[#This Row],[Source]]&AAMC_Raw_Data_for_FY22[[#This Row],[Type]]&AAMC_Raw_Data_for_FY22[[#This Row],[School Subset]]&AAMC_Raw_Data_for_FY22[[#This Row],[Rank]]&AAMC_Raw_Data_for_FY22[[#This Row],[Degree]]&AAMC_Raw_Data_for_FY22[[#This Row],[Department / Specialty]]&\"L\"","v":"AAMCAcademicPublicChairMDDiagnostic Radiology: Non-interventionalL"},"Diagnostic Radiology: Non-interventional",1,"AAMC","Academic","Public","Chair","MD","2021-2022",697157,{"$f":"(((AAMC_Raw_Data_for_FY22[[#This Row],[Median]]-AAMC_Raw_Data_for_FY22[[#This Row],[25th]])/25)*5) + AAMC_Raw_Data_for_FY22[[#This Row],[25th]]","v":714309.4},{"$f":"(((AAMC_Raw_Data_for_FY22[[#This Row],[Median]]-AAMC_Raw_Data_for_FY22[[#This Row],[25th]])/25)*10) + AAMC_Raw_Data_for_FY22[[#This Row],[25th]]","v":731461.8},{"$f":"(((AAMC_Raw_Data_for_FY22[[#This Row],[Median]]-AAMC_Raw_Data_for_FY22[[#This Row],[25th]])/25)*15) + AAMC_Raw_Data_for_FY22[[#This Row],[25th]]","v":748614.2},{"$f":"(((AAMC_Raw_Data_for_FY22[[#This Row],[Median]]-AAMC_Raw_Data_for_FY22[[#This Row],[25th]])/25)*20) + AAMC_Raw_Data_for_FY22[[#This Row],[25th]]","v":765766.6},782919,{"$f":"(((AAMC_Raw_Data_for_FY22[[#This Row],[75th]]-AAMC_Raw_Data_for_FY22[[#This Row],[Median]])/25)*5) + AAMC_Raw_Data_for_FY22[[#This Row],[Median]]","v":790118.6},{"$f":"(((AAMC_Raw_Data_for_FY22[[#This Row],[75th]]-AAMC_Raw_Data_for_FY22[[#This Row],[Median]])/25)*10) + AAMC_Raw_Data_for_FY22[[#This Row],[Median]]","v":797318.2},{"$f":"(((AAMC_Raw_Data_for_FY22[[#This Row],[75th]]-AAMC_Raw_Data_for_FY22[[#This Row],[Median]])/25)*15) + AAMC_Raw_Data_for_FY22[[#This Row],[Median]]","v":804517.8},{"$f":"(((AAMC_Raw_Data_for_FY22[[#This Row],[75th]]-AAMC_Raw_Data_for_FY22[[#This Row],[Median]])/25)*20) + AAMC_Raw_Data_for_FY22[[#This Row],[Median]]","v":811717.4},818917,{"$f":"(((AAMC_Raw_Data_for_FY22[[#This Row],[75th]]-AAMC_Raw_Data_for_FY22[[#This Row],[Median]])/25)*30) + AAMC_Raw_Data_for_FY22[[#This Row],[Median]]","v":826116.6},{"$f":"(((AAMC_Raw_Data_for_FY22[[#This Row],[75th]]-AAMC_Raw_Data_for_FY22[[#This Row],[Median]])/25)*35) + AAMC_Raw_Data_for_FY22[[#This Row],[Median]]","v":833316.2},{"$f":"(((AAMC_Raw_Data_for_FY22[[#This Row],[75th]]-AAMC_Raw_Data_for_FY22[[#This Row],[Median]])/25)*40) + AAMC_Raw_Data_for_FY22[[#This Row],[Median]]","v":840515.8}]
[{"$f":"AAMC_Raw_Data_for_FY22[[#This Row],[Source]]&AAMC_Raw_Data_for_FY22[[#This Row],[Type]]&AAMC_Raw_Data_for_FY22[[#This Row],[School Subset]]&AAMC_Raw_Data_for_FY22[[#This Row],[Rank]]&AAMC_Raw_Data_for_FY22[[#This Row],[Degree]]&AAMC_Raw_Data_for_FY22[[#This Row],[Department / Specialty]]&\"L\"","v":"AAMCAcademicPublicAssistantMDNuclear MedicineL"},"Nuclear Medicine",4,"AAMC","Academic","Public","Assistant","MD","2021-2022",352663,{"$f":"(((AAMC_Raw_Data_for_FY22[[#This Row],[Median]]-AAMC_Raw_Data_for_FY22[[#This Row],[25th]])/25)*5) + AAMC_Raw_Data_for_FY22[[#This Row],[25th]]","v":359489.6},{"$f":"(((AAMC_Raw_Data_for_FY22[[#This Row],[Median]]-AAMC_Raw_Data_for_FY22[[#This Row],[25th]])/25)*10) + AAMC_Raw_Data_for_FY22[[#This Row],[25th]]","v":366316.2},{"$f":"(((AAMC_Raw_Data_for_FY22[[#This Row],[Median]]-AAMC_Raw_Data_for_FY22[[#This Row],[25th]])/25)*15) + AAMC_Raw_Data_for_FY22[[#This Row],[25th]]","v":373142.8},{"$f":"(((AAMC_Raw_Data_for_FY22[[#This Row],[Median]]-AAMC_Raw_Data_for_FY22[[#This Row],[25th]])/25)*20) + AAMC_Raw_Data_for_FY22[[#This Row],[25th]]","v":379969.4},386796,{"$f":"(((AAMC_Raw_Data_for_FY22[[#This Row],[75th]]-AAMC_Raw_Data_for_FY22[[#This Row],[Median]])/25)*5) + AAMC_Raw_Data_for_FY22[[#This Row],[Median]]","v":395906.4},{"$f":"(((AAMC_Raw_Data_for_FY22[[#This Row],[75th]]-AAMC_Raw_Data_for_FY22[[#This Row],[Median]])/25)*10) + AAMC_Raw_Data_for_FY22[[#This Row],[Median]]","v":405016.8},{"$f":"(((AAMC_Raw_Data_for_FY22[[#This Row],[75th]]-AAMC_Raw_Data_for_FY22[[#This Row],[Median]])/25)*15) + AAMC_Raw_Data_for_FY22[[#This Row],[Median]]","v":414127.2},{"$f":"(((AAMC_Raw_Data_for_FY22[[#This Row],[75th]]-AAMC_Raw_Data_for_FY22[[#This Row],[Median]])/25)*20) + AAMC_Raw_Data_for_FY22[[#This Row],[Median]]","v":423237.6},432348,{"$f":"(((AAMC_Raw_Data_for_FY22[[#This Row],[75th]]-AAMC_Raw_Data_for_FY22[[#This Row],[Median]])/25)*30) + AAMC_Raw_Data_for_FY22[[#This Row],[Median]]","v":441458.4},{"$f":"(((AAMC_Raw_Data_for_FY22[[#This Row],[75th]]-AAMC_Raw_Data_for_FY22[[#This Row],[Median]])/25)*35) + AAMC_Raw_Data_for_FY22[[#This Row],[Median]]","v":450568.8},{"$f":"(((AAMC_Raw_Data_for_FY22[[#This Row],[75th]]-AAMC_Raw_Data_for_FY22[[#This Row],[Median]])/25)*40) + AAMC_Raw_Data_for_FY22[[#This Row],[Median]]","v":459679.2}]
[{"$f":"AAMC_Raw_Data_for_FY22[[#This Row],[Source]]&AAMC_Raw_Data_for_FY22[[#This Row],[Type]]&AAMC_Raw_Data_for_FY22[[#This Row],[School Subset]]&AAMC_Raw_Data_for_FY22[[#This Row],[Rank]]&AAMC_Raw_Data_for_FY22[[#This Row],[Degree]]&AAMC_Raw_Data_for_FY22[[#This Row],[Department / Specialty]]&\"L\"","v":"AAMCAcademicPublicAssociateMDNuclear MedicineL"},"Nuclear Medicine",3,"AAMC","Academic","Public","Associate","MD","2021-2022",378488,{"$f":"(((AAMC_Raw_Data_for_FY22[[#This Row],[Median]]-AAMC_Raw_Data_for_FY22[[#This Row],[25th]])/25)*5) + AAMC_Raw_Data_for_FY22[[#This Row],[25th]]","v":383730.4},{"$f":"(((AAMC_Raw_Data_for_FY22[[#This Row],[Median]]-AAMC_Raw_Data_for_FY22[[#This Row],[25th]])/25)*10) + AAMC_Raw_Data_for_FY22[[#This Row],[25th]]","v":388972.79999999999},{"$f":"(((AAMC_Raw_Data_for_FY22[[#This Row],[Median]]-AAMC_Raw_Data_for_FY22[[#This Row],[25th]])/25)*15) + AAMC_Raw_Data_for_FY22[[#This Row],[25th]]","v":394215.2},{"$f":"(((AAMC_Raw_Data_for_FY22[[#This Row],[Median]]-AAMC_Raw_Data_for_FY22[[#This Row],[25th]])/25)*20) + AAMC_Raw_Data_for_FY22[[#This Row],[25th]]","v":399457.6},404700,{"$f":"(((AAMC_Raw_Data_for_FY22[[#This Row],[75th]]-AAMC_Raw_Data_for_FY22[[#This Row],[Median]])/25)*5) + AAMC_Raw_Data_for_FY22[[#This Row],[Median]]","v":416982.2},{"$f":"(((AAMC_Raw_Data_for_FY22[[#This Row],[75th]]-AAMC_Raw_Data_for_FY22[[#This Row],[Median]])/25)*10) + AAMC_Raw_Data_for_FY22[[#This Row],[Median]]","v":429264.4},{"$f":"(((AAMC_Raw_Data_for_FY22[[#This Row],[75th]]-AAMC_Raw_Data_for_FY22[[#This Row],[Median]])/25)*15) + AAMC_Raw_Data_for_FY22[[#This Row],[Median]]","v":441546.6},{"$f":"(((AAMC_Raw_Data_for_FY22[[#This Row],[75th]]-AAMC_Raw_Data_for_FY22[[#This Row],[Median]])/25)*20) + AAMC_Raw_Data_for_FY22[[#This Row],[Median]]","v":453828.8},466111,{"$f":"(((AAMC_Raw_Data_for_FY22[[#This Row],[75th]]-AAMC_Raw_Data_for_FY22[[#This Row],[Median]])/25)*30) + AAMC_Raw_Data_for_FY22[[#This Row],[Median]]","v":478393.2},{"$f":"(((AAMC_Raw_Data_for_FY22[[#This Row],[75th]]-AAMC_Raw_Data_for_FY22[[#This Row],[Median]])/25)*35) + AAMC_Raw_Data_for_FY22[[#This Row],[Median]]","v":490675.4},{"$f":"(((AAMC_Raw_Data_for_FY22[[#This Row],[75th]]-AAMC_Raw_Data_for_FY22[[#This Row],[Median]])/25)*40) + AAMC_Raw_Data_for_FY22[[#This Row],[Median]]","v":502957.6}]
[{"$f":"AAMC_Raw_Data_for_FY22[[#This Row],[Source]]&AAMC_Raw_Data_for_FY22[[#This Row],[Type]]&AAMC_Raw_Data_for_FY22[[#This Row],[School Subset]]&AAMC_Raw_Data_for_FY22[[#This Row],[Rank]]&AAMC_Raw_Data_for_FY22[[#This Row],[Degree]]&AAMC_Raw_Data_for_FY22[[#This Row],[Department / Specialty]]&\"L\"","v":"AAMCAcademicPublicProfessorMDNuclear MedicineL"},"Nuclear Medicine",2,"AAMC","Academic","Public","Professor","MD","2021-2022",362309,{"$f":"(((AAMC_Raw_Data_for_FY22[[#This Row],[Median]]-AAMC_Raw_Data_for_FY22[[#This Row],[25th]])/25)*5) + AAMC_Raw_Data_for_FY22[[#This Row],[25th]]","v":366837.2},{"$f":"(((AAMC_Raw_Data_for_FY22[[#This Row],[Median]]-AAMC_Raw_Data_for_FY22[[#This Row],[25th]])/25)*10) + AAMC_Raw_Data_for_FY22[[#This Row],[25th]]","v":371365.4},{"$f":"(((AAMC_Raw_Data_for_FY22[[#This Row],[Median]]-AAMC_Raw_Data_for_FY22[[#This Row],[25th]])/25)*15) + AAMC_Raw_Data_for_FY22[[#This Row],[25th]]","v":375893.6},{"$f":"(((AAMC_Raw_Data_for_FY22[[#This Row],[Median]]-AAMC_Raw_Data_for_FY22[[#This Row],[25th]])/25)*20) + AAMC_Raw_Data_for_FY22[[#This Row],[25th]]","v":380421.8},384950,{"$f":"(((AAMC_Raw_Data_for_FY22[[#This Row],[75th]]-AAMC_Raw_Data_for_FY22[[#This Row],[Median]])/25)*5) + AAMC_Raw_Data_for_FY22[[#This Row],[Median]]","v":399699.6},{"$f":"(((AAMC_Raw_Data_for_FY22[[#This Row],[75th]]-AAMC_Raw_Data_for_FY22[[#This Row],[Median]])/25)*10) + AAMC_Raw_Data_for_FY22[[#This Row],[Median]]","v":414449.2},{"$f":"(((AAMC_Raw_Data_for_FY22[[#This Row],[75th]]-AAMC_Raw_Data_for_FY22[[#This Row],[Median]])/25)*15) + AAMC_Raw_Data_for_FY22[[#This Row],[Median]]","v":429198.8},{"$f":"(((AAMC_Raw_Data_for_FY22[[#This Row],[75th]]-AAMC_Raw_Data_for_FY22[[#This Row],[Median]])/25)*20) + AAMC_Raw_Data_for_FY22[[#This Row],[Median]]","v":443948.4},458698,{"$f":"(((AAMC_Raw_Data_for_FY22[[#This Row],[75th]]-AAMC_Raw_Data_for_FY22[[#This Row],[Median]])/25)*30) + AAMC_Raw_Data_for_FY22[[#This Row],[Median]]","v":473447.6},{"$f":"(((AAMC_Raw_Data_for_FY22[[#This Row],[75th]]-AAMC_Raw_Data_for_FY22[[#This Row],[Median]])/25)*35) + AAMC_Raw_Data_for_FY22[[#This Row],[Median]]","v":488197.2},{"$f":"(((AAMC_Raw_Data_for_FY22[[#This Row],[75th]]-AAMC_Raw_Data_for_FY22[[#This Row],[Median]])/25)*40) + AAMC_Raw_Data_for_FY22[[#This Row],[Median]]","v":502946.8}]
[{"$f":"AAMC_Raw_Data_for_FY22[[#This Row],[Source]]&AAMC_Raw_Data_for_FY22[[#This Row],[Type]]&AAMC_Raw_Data_for_FY22[[#This Row],[School Subset]]&AAMC_Raw_Data_for_FY22[[#This Row],[Rank]]&AAMC_Raw_Data_for_FY22[[#This Row],[Degree]]&AAMC_Raw_Data_for_FY22[[#This Row],[Department / Specialty]]&\"L\"","v":"AAMCAcademicPublicChiefMDNuclear MedicineL"},"Nuclear Medicine",6,"AAMC","Academic","Public","Chief","MD","2021-2022",436747,{"$f":"(((AAMC_Raw_Data_for_FY22[[#This Row],[Median]]-AAMC_Raw_Data_for_FY22[[#This Row],[25th]])/25)*5) + AAMC_Raw_Data_for_FY22[[#This Row],[25th]]","v":442383.6},{"$f":"(((AAMC_Raw_Data_for_FY22[[#This Row],[Median]]-AAMC_Raw_Data_for_FY22[[#This Row],[25th]])/25)*10) + AAMC_Raw_Data_for_FY22[[#This Row],[25th]]","v":448020.2},{"$f":"(((AAMC_Raw_Data_for_FY22[[#This Row],[Median]]-AAMC_Raw_Data_for_FY22[[#This Row],[25th]])/25)*15) + AAMC_Raw_Data_for_FY22[[#This Row],[25th]]","v":453656.8},{"$f":"(((AAMC_Raw_Data_for_FY22[[#This Row],[Median]]-AAMC_Raw_Data_for_FY22[[#This Row],[25th]])/25)*20) + AAMC_Raw_Data_for_FY22[[#This Row],[25th]]","v":459293.4},464930,{"$f":"(((AAMC_Raw_Data_for_FY22[[#This Row],[75th]]-AAMC_Raw_Data_for_FY22[[#This Row],[Median]])/25)*5) + AAMC_Raw_Data_for_FY22[[#This Row],[Median]]","v":485099},{"$f":"(((AAMC_Raw_Data_for_FY22[[#This Row],[75th]]-AAMC_Raw_Data_for_FY22[[#This Row],[Median]])/25)*10) + AAMC_Raw_Data_for_FY22[[#This Row],[Median]]","v":505268},{"$f":"(((AAMC_Raw_Data_for_FY22[[#This Row],[75th]]-AAMC_Raw_Data_for_FY22[[#This Row],[Median]])/25)*15) + AAMC_Raw_Data_for_FY22[[#This Row],[Median]]","v":525437},{"$f":"(((AAMC_Raw_Data_for_FY22[[#This Row],[75th]]-AAMC_Raw_Data_for_FY22[[#This Row],[Median]])/25)*20) + AAMC_Raw_Data_for_FY22[[#This Row],[Median]]","v":545606},565775,{"$f":"(((AAMC_Raw_Data_for_FY22[[#This Row],[75th]]-AAMC_Raw_Data_for_FY22[[#This Row],[Median]])/25)*30) + AAMC_Raw_Data_for_FY22[[#This Row],[Median]]","v":585944},{"$f":"(((AAMC_Raw_Data_for_FY22[[#This Row],[75th]]-AAMC_Raw_Data_for_FY22[[#This Row],[Median]])/25)*35) + AAMC_Raw_Data_for_FY22[[#This Row],[Median]]","v":606113},{"$f":"(((AAMC_Raw_Data_for_FY22[[#This Row],[75th]]-AAMC_Raw_Data_for_FY22[[#This Row],[Median]])/25)*40) + AAMC_Raw_Data_for_FY22[[#This Row],[Median]]","v":626282}]
[{"$f":"AAMC_Raw_Data_for_FY22[[#This Row],[Source]]&AAMC_Raw_Data_for_FY22[[#This Row],[Type]]&AAMC_Raw_Data_for_FY22[[#This Row],[School Subset]]&AAMC_Raw_Data_for_FY22[[#This Row],[Rank]]&AAMC_Raw_Data_for_FY22[[#This Row],[Degree]]&AAMC_Raw_Data_for_FY22[[#This Row],[Department / Specialty]]&\"L\"","v":"AAMCAcademicPublicChairMDNuclear MedicineL"},"Nuclear Medicine",1,"AAMC","Academic","Public","Chair","MD","2021-2022",null,{"$f":"(((AAMC_Raw_Data_for_FY22[[#This Row],[Median]]-AAMC_Raw_Data_for_FY22[[#This Row],[25th]])/25)*5) + AAMC_Raw_Data_for_FY22[[#This Row],[25th]]","v":0},{"$f":"(((AAMC_Raw_Data_for_FY22[[#This Row],[Median]]-AAMC_Raw_Data_for_FY22[[#This Row],[25th]])/25)*10) + AAMC_Raw_Data_for_FY22[[#This Row],[25th]]","v":0},{"$f":"(((AAMC_Raw_Data_for_FY22[[#This Row],[Median]]-AAMC_Raw_Data_for_FY22[[#This Row],[25th]])/25)*15) + AAMC_Raw_Data_for_FY22[[#This Row],[25th]]","v":0},{"$f":"(((AAMC_Raw_Data_for_FY22[[#This Row],[Median]]-AAMC_Raw_Data_for_FY22[[#This Row],[25th]])/25)*20) + AAMC_Raw_Data_for_FY22[[#This Row],[25th]]","v":0},null,{"$f":"(((AAMC_Raw_Data_for_FY22[[#This Row],[75th]]-AAMC_Raw_Data_for_FY22[[#This Row],[Median]])/25)*5) + AAMC_Raw_Data_for_FY22[[#This Row],[Median]]","v":0},{"$f":"(((AAMC_Raw_Data_for_FY22[[#This Row],[75th]]-AAMC_Raw_Data_for_FY22[[#This Row],[Median]])/25)*10) + AAMC_Raw_Data_for_FY22[[#This Row],[Median]]","v":0},{"$f":"(((AAMC_Raw_Data_for_FY22[[#This Row],[75th]]-AAMC_Raw_Data_for_FY22[[#This Row],[Median]])/25)*15) + AAMC_Raw_Data_for_FY22[[#This Row],[Median]]","v":0},{"$f":"(((AAMC_Raw_Data_for_FY22[[#This Row],[75th]]-AAMC_Raw_Data_for_FY22[[#This Row],[Median]])/25)*20) + AAMC_Raw_Data_for_FY22[[#This Row],[Median]]","v":0},null,{"$f":"(((AAMC_Raw_Data_for_FY22[[#This Row],[75th]]-AAMC_Raw_Data_for_FY22[[#This Row],[Median]])/25)*30) + AAMC_Raw_Data_for_FY22[[#This Row],[Median]]","v":0},{"$f":"(((AAMC_Raw_Data_for_FY22[[#This Row],[75th]]-AAMC_Raw_Data_for_FY22[[#This Row],[Median]])/25)*35) + AAMC_Raw_Data_for_FY22[[#This Row],[Median]]","v":0},{"$f":"(((AAMC_Raw_Data_for_FY22[[#This Row],[75th]]-AAMC_Raw_Data_for_FY22[[#This Row],[Median]])/25)*40) + AAMC_Raw_Data_for_FY22[[#This Row],[Median]]","v":0}]
[{"$f":"AAMC_Raw_Data_for_FY22[[#This Row],[Source]]&AAMC_Raw_Data_for_FY22[[#This Row],[Type]]&AAMC_Raw_Data_for_FY22[[#This Row],[School Subset]]&AAMC_Raw_Data_for_FY22[[#This Row],[Rank]]&AAMC_Raw_Data_for_FY22[[#This Row],[Degree]]&AAMC_Raw_Data_for_FY22[[#This Row],[Department / Specialty]]&\"L\"","v":"AAMCAcademicPublicInstructorMDRadiation OncologyL"},"Radiation Oncology",5,"AAMC","Academic","Public","Instructor","MD","2021-2022",112630,{"$f":"(((AAMC_Raw_Data_for_FY22[[#This Row],[Median]]-AAMC_Raw_Data_for_FY22[[#This Row],[25th]])/25)*5) + AAMC_Raw_Data_for_FY22[[#This Row],[25th]]","v":130304},{"$f":"(((AAMC_Raw_Data_for_FY22[[#This Row],[Median]]-AAMC_Raw_Data_for_FY22[[#This Row],[25th]])/25)*10) + AAMC_Raw_Data_for_FY22[[#This Row],[25th]]","v":147978},{"$f":"(((AAMC_Raw_Data_for_FY22[[#This Row],[Median]]-AAMC_Raw_Data_for_FY22[[#This Row],[25th]])/25)*15) + AAMC_Raw_Data_for_FY22[[#This Row],[25th]]","v":165652},{"$f":"(((AAMC_Raw_Data_for_FY22[[#This Row],[Median]]-AAMC_Raw_Data_for_FY22[[#This Row],[25th]])/25)*20) + AAMC_Raw_Data_for_FY22[[#This Row],[25th]]","v":183326},201000,{"$f":"(((AAMC_Raw_Data_for_FY22[[#This Row],[75th]]-AAMC_Raw_Data_for_FY22[[#This Row],[Median]])/25)*5) + AAMC_Raw_Data_for_FY22[[#This Row],[Median]]","v":221000.8},{"$f":"(((AAMC_Raw_Data_for_FY22[[#This Row],[75th]]-AAMC_Raw_Data_for_FY22[[#This Row],[Median]])/25)*10) + AAMC_Raw_Data_for_FY22[[#This Row],[Median]]","v":241001.60000000001},{"$f":"(((AAMC_Raw_Data_for_FY22[[#This Row],[75th]]-AAMC_Raw_Data_for_FY22[[#This Row],[Median]])/25)*15) + AAMC_Raw_Data_for_FY22[[#This Row],[Median]]","v":261002.4},{"$f":"(((AAMC_Raw_Data_for_FY22[[#This Row],[75th]]-AAMC_Raw_Data_for_FY22[[#This Row],[Median]])/25)*20) + AAMC_Raw_Data_for_FY22[[#This Row],[Median]]","v":281003.2},301004,{"$f":"(((AAMC_Raw_Data_for_FY22[[#This Row],[75th]]-AAMC_Raw_Data_for_FY22[[#This Row],[Median]])/25)*30) + AAMC_Raw_Data_for_FY22[[#This Row],[Median]]","v":321004.79999999999},{"$f":"(((AAMC_Raw_Data_for_FY22[[#This Row],[75th]]-AAMC_Raw_Data_for_FY22[[#This Row],[Median]])/25)*35) + AAMC_Raw_Data_for_FY22[[#This Row],[Median]]","v":341005.6},{"$f":"(((AAMC_Raw_Data_for_FY22[[#This Row],[75th]]-AAMC_Raw_Data_for_FY22[[#This Row],[Median]])/25)*40) + AAMC_Raw_Data_for_FY22[[#This Row],[Median]]","v":361006.4}]
[{"$f":"AAMC_Raw_Data_for_FY22[[#This Row],[Source]]&AAMC_Raw_Data_for_FY22[[#This Row],[Type]]&AAMC_Raw_Data_for_FY22[[#This Row],[School Subset]]&AAMC_Raw_Data_for_FY22[[#This Row],[Rank]]&AAMC_Raw_Data_for_FY22[[#This Row],[Degree]]&AAMC_Raw_Data_for_FY22[[#This Row],[Department / Specialty]]&\"L\"","v":"AAMCAcademicPublicAssistantMDRadiation OncologyL"},"Radiation Oncology",4,"AAMC","Academic","Public","Assistant","MD","2021-2022",357835,{"$f":"(((AAMC_Raw_Data_for_FY22[[#This Row],[Median]]-AAMC_Raw_Data_for_FY22[[#This Row],[25th]])/25)*5) + AAMC_Raw_Data_for_FY22[[#This Row],[25th]]","v":366987.6},{"$f":"(((AAMC_Raw_Data_for_FY22[[#This Row],[Median]]-AAMC_Raw_Data_for_FY22[[#This Row],[25th]])/25)*10) + AAMC_Raw_Data_for_FY22[[#This Row],[25th]]","v":376140.2},{"$f":"(((AAMC_Raw_Data_for_FY22[[#This Row],[Median]]-AAMC_Raw_Data_for_FY22[[#This Row],[25th]])/25)*15) + AAMC_Raw_Data_for_FY22[[#This Row],[25th]]","v":385292.79999999999},{"$f":"(((AAMC_Raw_Data_for_FY22[[#This Row],[Median]]-AAMC_Raw_Data_for_FY22[[#This Row],[25th]])/25)*20) + AAMC_Raw_Data_for_FY22[[#This Row],[25th]]","v":394445.4},403598,{"$f":"(((AAMC_Raw_Data_for_FY22[[#This Row],[75th]]-AAMC_Raw_Data_for_FY22[[#This Row],[Median]])/25)*5) + AAMC_Raw_Data_for_FY22[[#This Row],[Median]]","v":414146.2},{"$f":"(((AAMC_Raw_Data_for_FY22[[#This Row],[75th]]-AAMC_Raw_Data_for_FY22[[#This Row],[Median]])/25)*10) + AAMC_Raw_Data_for_FY22[[#This Row],[Median]]","v":424694.4},{"$f":"(((AAMC_Raw_Data_for_FY22[[#This Row],[75th]]-AAMC_Raw_Data_for_FY22[[#This Row],[Median]])/25)*15) + AAMC_Raw_Data_for_FY22[[#This Row],[Median]]","v":435242.6},{"$f":"(((AAMC_Raw_Data_for_FY22[[#This Row],[75th]]-AAMC_Raw_Data_for_FY22[[#This Row],[Median]])/25)*20) + AAMC_Raw_Data_for_FY22[[#This Row],[Median]]","v":445790.8},456339,{"$f":"(((AAMC_Raw_Data_for_FY22[[#This Row],[75th]]-AAMC_Raw_Data_for_FY22[[#This Row],[Median]])/25)*30) + AAMC_Raw_Data_for_FY22[[#This Row],[Median]]","v":466887.2},{"$f":"(((AAMC_Raw_Data_for_FY22[[#This Row],[75th]]-AAMC_Raw_Data_for_FY22[[#This Row],[Median]])/25)*35) + AAMC_Raw_Data_for_FY22[[#This Row],[Median]]","v":477435.4},{"$f":"(((AAMC_Raw_Data_for_FY22[[#This Row],[75th]]-AAMC_Raw_Data_for_FY22[[#This Row],[Median]])/25)*40) + AAMC_Raw_Data_for_FY22[[#This Row],[Median]]","v":487983.6}]
[{"$f":"AAMC_Raw_Data_for_FY22[[#This Row],[Source]]&AAMC_Raw_Data_for_FY22[[#This Row],[Type]]&AAMC_Raw_Data_for_FY22[[#This Row],[School Subset]]&AAMC_Raw_Data_for_FY22[[#This Row],[Rank]]&AAMC_Raw_Data_for_FY22[[#This Row],[Degree]]&AAMC_Raw_Data_for_FY22[[#This Row],[Department / Specialty]]&\"L\"","v":"AAMCAcademicPublicAssociateMDRadiation OncologyL"},"Radiation Oncology",3,"AAMC","Academic","Public","Associate","MD","2021-2022",427096,{"$f":"(((AAMC_Raw_Data_for_FY22[[#This Row],[Median]]-AAMC_Raw_Data_for_FY22[[#This Row],[25th]])/25)*5) + AAMC_Raw_Data_for_FY22[[#This Row],[25th]]","v":439422.4},{"$f":"(((AAMC_Raw_Data_for_FY22[[#This Row],[Median]]-AAMC_Raw_Data_for_FY22[[#This Row],[25th]])/25)*10) + AAMC_Raw_Data_for_FY22[[#This Row],[25th]]","v":451748.8},{"$f":"(((AAMC_Raw_Data_for_FY22[[#This Row],[Median]]-AAMC_Raw_Data_for_FY22[[#This Row],[25th]])/25)*15) + AAMC_Raw_Data_for_FY22[[#This Row],[25th]]","v":464075.2},{"$f":"(((AAMC_Raw_Data_for_FY22[[#This Row],[Median]]-AAMC_Raw_Data_for_FY22[[#This Row],[25th]])/25)*20) + AAMC_Raw_Data_for_FY22[[#This Row],[25th]]","v":476401.6},488728,{"$f":"(((AAMC_Raw_Data_for_FY22[[#This Row],[75th]]-AAMC_Raw_Data_for_FY22[[#This Row],[Median]])/25)*5) + AAMC_Raw_Data_for_FY22[[#This Row],[Median]]","v":499810},{"$f":"(((AAMC_Raw_Data_for_FY22[[#This Row],[75th]]-AAMC_Raw_Data_for_FY22[[#This Row],[Median]])/25)*10) + AAMC_Raw_Data_for_FY22[[#This Row],[Median]]","v":510892},{"$f":"(((AAMC_Raw_Data_for_FY22[[#This Row],[75th]]-AAMC_Raw_Data_for_FY22[[#This Row],[Median]])/25)*15) + AAMC_Raw_Data_for_FY22[[#This Row],[Median]]","v":521974},{"$f":"(((AAMC_Raw_Data_for_FY22[[#This Row],[75th]]-AAMC_Raw_Data_for_FY22[[#This Row],[Median]])/25)*20) + AAMC_Raw_Data_for_FY22[[#This Row],[Median]]","v":533056},544138,{"$f":"(((AAMC_Raw_Data_for_FY22[[#This Row],[75th]]-AAMC_Raw_Data_for_FY22[[#This Row],[Median]])/25)*30) + AAMC_Raw_Data_for_FY22[[#This Row],[Median]]","v":555220},{"$f":"(((AAMC_Raw_Data_for_FY22[[#This Row],[75th]]-AAMC_Raw_Data_for_FY22[[#This Row],[Median]])/25)*35) + AAMC_Raw_Data_for_FY22[[#This Row],[Median]]","v":566302},{"$f":"(((AAMC_Raw_Data_for_FY22[[#This Row],[75th]]-AAMC_Raw_Data_for_FY22[[#This Row],[Median]])/25)*40) + AAMC_Raw_Data_for_FY22[[#This Row],[Median]]","v":577384}]
[{"$f":"AAMC_Raw_Data_for_FY22[[#This Row],[Source]]&AAMC_Raw_Data_for_FY22[[#This Row],[Type]]&AAMC_Raw_Data_for_FY22[[#This Row],[School Subset]]&AAMC_Raw_Data_for_FY22[[#This Row],[Rank]]&AAMC_Raw_Data_for_FY22[[#This Row],[Degree]]&AAMC_Raw_Data_for_FY22[[#This Row],[Department / Specialty]]&\"L\"","v":"AAMCAcademicPublicProfessorMDRadiation OncologyL"},"Radiation Oncology",2,"AAMC","Academic","Public","Professor","MD","2021-2022",485373,{"$f":"(((AAMC_Raw_Data_for_FY22[[#This Row],[Median]]-AAMC_Raw_Data_for_FY22[[#This Row],[25th]])/25)*5) + AAMC_Raw_Data_for_FY22[[#This Row],[25th]]","v":496160.6},{"$f":"(((AAMC_Raw_Data_for_FY22[[#This Row],[Median]]-AAMC_Raw_Data_for_FY22[[#This Row],[25th]])/25)*10) + AAMC_Raw_Data_for_FY22[[#This Row],[25th]]","v":506948.2},{"$f":"(((AAMC_Raw_Data_for_FY22[[#This Row],[Median]]-AAMC_Raw_Data_for_FY22[[#This Row],[25th]])/25)*15) + AAMC_Raw_Data_for_FY22[[#This Row],[25th]]","v":517735.8},{"$f":"(((AAMC_Raw_Data_for_FY22[[#This Row],[Median]]-AAMC_Raw_Data_for_FY22[[#This Row],[25th]])/25)*20) + AAMC_Raw_Data_for_FY22[[#This Row],[25th]]","v":528523.4},539311,{"$f":"(((AAMC_Raw_Data_for_FY22[[#This Row],[75th]]-AAMC_Raw_Data_for_FY22[[#This Row],[Median]])/25)*5) + AAMC_Raw_Data_for_FY22[[#This Row],[Median]]","v":551769.80000000005},{"$f":"(((AAMC_Raw_Data_for_FY22[[#This Row],[75th]]-AAMC_Raw_Data_for_FY22[[#This Row],[Median]])/25)*10) + AAMC_Raw_Data_for_FY22[[#This Row],[Median]]","v":564228.6},{"$f":"(((AAMC_Raw_Data_for_FY22[[#This Row],[75th]]-AAMC_Raw_Data_for_FY22[[#This Row],[Median]])/25)*15) + AAMC_Raw_Data_for_FY22[[#This Row],[Median]]","v":576687.4},{"$f":"(((AAMC_Raw_Data_for_FY22[[#This Row],[75th]]-AAMC_Raw_Data_for_FY22[[#This Row],[Median]])/25)*20) + AAMC_Raw_Data_for_FY22[[#This Row],[Median]]","v":589146.19999999995},601605,{"$f":"(((AAMC_Raw_Data_for_FY22[[#This Row],[75th]]-AAMC_Raw_Data_for_FY22[[#This Row],[Median]])/25)*30) + AAMC_Raw_Data_for_FY22[[#This Row],[Median]]","v":614063.80000000005},{"$f":"(((AAMC_Raw_Data_for_FY22[[#This Row],[75th]]-AAMC_Raw_Data_for_FY22[[#This Row],[Median]])/25)*35) + AAMC_Raw_Data_for_FY22[[#This Row],[Median]]","v":626522.6},{"$f":"(((AAMC_Raw_Data_for_FY22[[#This Row],[75th]]-AAMC_Raw_Data_for_FY22[[#This Row],[Median]])/25)*40) + AAMC_Raw_Data_for_FY22[[#This Row],[Median]]","v":638981.4}]
[{"$f":"AAMC_Raw_Data_for_FY22[[#This Row],[Source]]&AAMC_Raw_Data_for_FY22[[#This Row],[Type]]&AAMC_Raw_Data_for_FY22[[#This Row],[School Subset]]&AAMC_Raw_Data_for_FY22[[#This Row],[Rank]]&AAMC_Raw_Data_for_FY22[[#This Row],[Degree]]&AAMC_Raw_Data_for_FY22[[#This Row],[Department / Specialty]]&\"L\"","v":"AAMCAcademicPublicChiefMDRadiation OncologyL"},"Radiation Oncology",6,"AAMC","Academic","Public","Chief","MD","2021-2022",485237,{"$f":"(((AAMC_Raw_Data_for_FY22[[#This Row],[Median]]-AAMC_Raw_Data_for_FY22[[#This Row],[25th]])/25)*5) + AAMC_Raw_Data_for_FY22[[#This Row],[25th]]","v":493125.2},{"$f":"(((AAMC_Raw_Data_for_FY22[[#This Row],[Median]]-AAMC_Raw_Data_for_FY22[[#This Row],[25th]])/25)*10) + AAMC_Raw_Data_for_FY22[[#This Row],[25th]]","v":501013.4},{"$f":"(((AAMC_Raw_Data_for_FY22[[#This Row],[Median]]-AAMC_Raw_Data_for_FY22[[#This Row],[25th]])/25)*15) + AAMC_Raw_Data_for_FY22[[#This Row],[25th]]","v":508901.6},{"$f":"(((AAMC_Raw_Data_for_FY22[[#This Row],[Median]]-AAMC_Raw_Data_for_FY22[[#This Row],[25th]])/25)*20) + AAMC_Raw_Data_for_FY22[[#This Row],[25th]]","v":516789.8},524678,{"$f":"(((AAMC_Raw_Data_for_FY22[[#This Row],[75th]]-AAMC_Raw_Data_for_FY22[[#This Row],[Median]])/25)*5) + AAMC_Raw_Data_for_FY22[[#This Row],[Median]]","v":534886.19999999995},{"$f":"(((AAMC_Raw_Data_for_FY22[[#This Row],[75th]]-AAMC_Raw_Data_for_FY22[[#This Row],[Median]])/25)*10) + AAMC_Raw_Data_for_FY22[[#This Row],[Median]]","v":545094.40000000002},{"$f":"(((AAMC_Raw_Data_for_FY22[[#This Row],[75th]]-AAMC_Raw_Data_for_FY22[[#This Row],[Median]])/25)*15) + AAMC_Raw_Data_for_FY22[[#This Row],[Median]]","v":555302.6},{"$f":"(((AAMC_Raw_Data_for_FY22[[#This Row],[75th]]-AAMC_Raw_Data_for_FY22[[#This Row],[Median]])/25)*20) + AAMC_Raw_Data_for_FY22[[#This Row],[Median]]","v":565510.80000000005},575719,{"$f":"(((AAMC_Raw_Data_for_FY22[[#This Row],[75th]]-AAMC_Raw_Data_for_FY22[[#This Row],[Median]])/25)*30) + AAMC_Raw_Data_for_FY22[[#This Row],[Median]]","v":585927.19999999995},{"$f":"(((AAMC_Raw_Data_for_FY22[[#This Row],[75th]]-AAMC_Raw_Data_for_FY22[[#This Row],[Median]])/25)*35) + AAMC_Raw_Data_for_FY22[[#This Row],[Median]]","v":596135.4},{"$f":"(((AAMC_Raw_Data_for_FY22[[#This Row],[75th]]-AAMC_Raw_Data_for_FY22[[#This Row],[Median]])/25)*40) + AAMC_Raw_Data_for_FY22[[#This Row],[Median]]","v":606343.6}]
[{"$f":"AAMC_Raw_Data_for_FY22[[#This Row],[Source]]&AAMC_Raw_Data_for_FY22[[#This Row],[Type]]&AAMC_Raw_Data_for_FY22[[#This Row],[School Subset]]&AAMC_Raw_Data_for_FY22[[#This Row],[Rank]]&AAMC_Raw_Data_for_FY22[[#This Row],[Degree]]&AAMC_Raw_Data_for_FY22[[#This Row],[Department / Specialty]]&\"L\"","v":"AAMCAcademicPublicChairMDRadiation OncologyL"},"Radiation Oncology",1,"AAMC","Academic","Public","Chair","MD","2021-2022",746502,{"$f":"(((AAMC_Raw_Data_for_FY22[[#This Row],[Median]]-AAMC_Raw_Data_for_FY22[[#This Row],[25th]])/25)*5) + AAMC_Raw_Data_for_FY22[[#This Row],[25th]]","v":759246.8},{"$f":"(((AAMC_Raw_Data_for_FY22[[#This Row],[Median]]-AAMC_Raw_Data_for_FY22[[#This Row],[25th]])/25)*10) + AAMC_Raw_Data_for_FY22[[#This Row],[25th]]","v":771991.6},{"$f":"(((AAMC_Raw_Data_for_FY22[[#This Row],[Median]]-AAMC_Raw_Data_for_FY22[[#This Row],[25th]])/25)*15) + AAMC_Raw_Data_for_FY22[[#This Row],[25th]]","v":784736.4},{"$f":"(((AAMC_Raw_Data_for_FY22[[#This Row],[Median]]-AAMC_Raw_Data_for_FY22[[#This Row],[25th]])/25)*20) + AAMC_Raw_Data_for_FY22[[#This Row],[25th]]","v":797481.2},810226,{"$f":"(((AAMC_Raw_Data_for_FY22[[#This Row],[75th]]-AAMC_Raw_Data_for_FY22[[#This Row],[Median]])/25)*5) + AAMC_Raw_Data_for_FY22[[#This Row],[Median]]","v":834553.6},{"$f":"(((AAMC_Raw_Data_for_FY22[[#This Row],[75th]]-AAMC_Raw_Data_for_FY22[[#This Row],[Median]])/25)*10) + AAMC_Raw_Data_for_FY22[[#This Row],[Median]]","v":858881.2},{"$f":"(((AAMC_Raw_Data_for_FY22[[#This Row],[75th]]-AAMC_Raw_Data_for_FY22[[#This Row],[Median]])/25)*15) + AAMC_Raw_Data_for_FY22[[#This Row],[Median]]","v":883208.8},{"$f":"(((AAMC_Raw_Data_for_FY22[[#This Row],[75th]]-AAMC_Raw_Data_for_FY22[[#This Row],[Median]])/25)*20) + AAMC_Raw_Data_for_FY22[[#This Row],[Median]]","v":907536.4},931864,{"$f":"(((AAMC_Raw_Data_for_FY22[[#This Row],[75th]]-AAMC_Raw_Data_for_FY22[[#This Row],[Median]])/25)*30) + AAMC_Raw_Data_for_FY22[[#This Row],[Median]]","v":956191.6},{"$f":"(((AAMC_Raw_Data_for_FY22[[#This Row],[75th]]-AAMC_Raw_Data_for_FY22[[#This Row],[Median]])/25)*35) + AAMC_Raw_Data_for_FY22[[#This Row],[Median]]","v":980519.2},{"$f":"(((AAMC_Raw_Data_for_FY22[[#This Row],[75th]]-AAMC_Raw_Data_for_FY22[[#This Row],[Median]])/25)*40) + AAMC_Raw_Data_for_FY22[[#This Row],[Median]]","v":1004846.8}]
[{"$f":"AAMC_Raw_Data_for_FY22[[#This Row],[Source]]&AAMC_Raw_Data_for_FY22[[#This Row],[Type]]&AAMC_Raw_Data_for_FY22[[#This Row],[School Subset]]&AAMC_Raw_Data_for_FY22[[#This Row],[Rank]]&AAMC_Raw_Data_for_FY22[[#This Row],[Degree]]&AAMC_Raw_Data_for_FY22[[#This Row],[Department / Specialty]]&\"L\"","v":"AAMCAcademicPublicInstructorMDOther RadiologyL"},"Other Radiology",5,"AAMC","Academic","Public","Instructor","MD","2021-2022",null,{"$f":"(((AAMC_Raw_Data_for_FY22[[#This Row],[Median]]-AAMC_Raw_Data_for_FY22[[#This Row],[25th]])/25)*5) + AAMC_Raw_Data_for_FY22[[#This Row],[25th]]","v":0},{"$f":"(((AAMC_Raw_Data_for_FY22[[#This Row],[Median]]-AAMC_Raw_Data_for_FY22[[#This Row],[25th]])/25)*10) + AAMC_Raw_Data_for_FY22[[#This Row],[25th]]","v":0},{"$f":"(((AAMC_Raw_Data_for_FY22[[#This Row],[Median]]-AAMC_Raw_Data_for_FY22[[#This Row],[25th]])/25)*15) + AAMC_Raw_Data_for_FY22[[#This Row],[25th]]","v":0},{"$f":"(((AAMC_Raw_Data_for_FY22[[#This Row],[Median]]-AAMC_Raw_Data_for_FY22[[#This Row],[25th]])/25)*20) + AAMC_Raw_Data_for_FY22[[#This Row],[25th]]","v":0},null,{"$f":"(((AAMC_Raw_Data_for_FY22[[#This Row],[75th]]-AAMC_Raw_Data_for_FY22[[#This Row],[Median]])/25)*5) + AAMC_Raw_Data_for_FY22[[#This Row],[Median]]","v":0},{"$f":"(((AAMC_Raw_Data_for_FY22[[#This Row],[75th]]-AAMC_Raw_Data_for_FY22[[#This Row],[Median]])/25)*10) + AAMC_Raw_Data_for_FY22[[#This Row],[Median]]","v":0},{"$f":"(((AAMC_Raw_Data_for_FY22[[#This Row],[75th]]-AAMC_Raw_Data_for_FY22[[#This Row],[Median]])/25)*15) + AAMC_Raw_Data_for_FY22[[#This Row],[Median]]","v":0},{"$f":"(((AAMC_Raw_Data_for_FY22[[#This Row],[75th]]-AAMC_Raw_Data_for_FY22[[#This Row],[Median]])/25)*20) + AAMC_Raw_Data_for_FY22[[#This Row],[Median]]","v":0},null,{"$f":"(((AAMC_Raw_Data_for_FY22[[#This Row],[75th]]-AAMC_Raw_Data_for_FY22[[#This Row],[Median]])/25)*30) + AAMC_Raw_Data_for_FY22[[#This Row],[Median]]","v":0},{"$f":"(((AAMC_Raw_Data_for_FY22[[#This Row],[75th]]-AAMC_Raw_Data_for_FY22[[#This Row],[Median]])/25)*35) + AAMC_Raw_Data_for_FY22[[#This Row],[Median]]","v":0},{"$f":"(((AAMC_Raw_Data_for_FY22[[#This Row],[75th]]-AAMC_Raw_Data_for_FY22[[#This Row],[Median]])/25)*40) + AAMC_Raw_Data_for_FY22[[#This Row],[Median]]","v":0}]
[{"$f":"AAMC_Raw_Data_for_FY22[[#This Row],[Source]]&AAMC_Raw_Data_for_FY22[[#This Row],[Type]]&AAMC_Raw_Data_for_FY22[[#This Row],[School Subset]]&AAMC_Raw_Data_for_FY22[[#This Row],[Rank]]&AAMC_Raw_Data_for_FY22[[#This Row],[Degree]]&AAMC_Raw_Data_for_FY22[[#This Row],[Department / Specialty]]&\"L\"","v":"AAMCAcademicPublicAssistantMDOther RadiologyL"},"Other Radiology",4,"AAMC","Academic","Public","Assistant","MD","2021-2022",352970,{"$f":"(((AAMC_Raw_Data_for_FY22[[#This Row],[Median]]-AAMC_Raw_Data_for_FY22[[#This Row],[25th]])/25)*5) + AAMC_Raw_Data_for_FY22[[#This Row],[25th]]","v":365360.8},{"$f":"(((AAMC_Raw_Data_for_FY22[[#This Row],[Median]]-AAMC_Raw_Data_for_FY22[[#This Row],[25th]])/25)*10) + AAMC_Raw_Data_for_FY22[[#This Row],[25th]]","v":377751.6},{"$f":"(((AAMC_Raw_Data_for_FY22[[#This Row],[Median]]-AAMC_Raw_Data_for_FY22[[#This Row],[25th]])/25)*15) + AAMC_Raw_Data_for_FY22[[#This Row],[25th]]","v":390142.4},{"$f":"(((AAMC_Raw_Data_for_FY22[[#This Row],[Median]]-AAMC_Raw_Data_for_FY22[[#This Row],[25th]])/25)*20) + AAMC_Raw_Data_for_FY22[[#This Row],[25th]]","v":402533.2},414924,{"$f":"(((AAMC_Raw_Data_for_FY22[[#This Row],[75th]]-AAMC_Raw_Data_for_FY22[[#This Row],[Median]])/25)*5) + AAMC_Raw_Data_for_FY22[[#This Row],[Median]]","v":423839.2},{"$f":"(((AAMC_Raw_Data_for_FY22[[#This Row],[75th]]-AAMC_Raw_Data_for_FY22[[#This Row],[Median]])/25)*10) + AAMC_Raw_Data_for_FY22[[#This Row],[Median]]","v":432754.4},{"$f":"(((AAMC_Raw_Data_for_FY22[[#This Row],[75th]]-AAMC_Raw_Data_for_FY22[[#This Row],[Median]])/25)*15) + AAMC_Raw_Data_for_FY22[[#This Row],[Median]]","v":441669.6},{"$f":"(((AAMC_Raw_Data_for_FY22[[#This Row],[75th]]-AAMC_Raw_Data_for_FY22[[#This Row],[Median]])/25)*20) + AAMC_Raw_Data_for_FY22[[#This Row],[Median]]","v":450584.8},459500,{"$f":"(((AAMC_Raw_Data_for_FY22[[#This Row],[75th]]-AAMC_Raw_Data_for_FY22[[#This Row],[Median]])/25)*30) + AAMC_Raw_Data_for_FY22[[#This Row],[Median]]","v":468415.2},{"$f":"(((AAMC_Raw_Data_for_FY22[[#This Row],[75th]]-AAMC_Raw_Data_for_FY22[[#This Row],[Median]])/25)*35) + AAMC_Raw_Data_for_FY22[[#This Row],[Median]]","v":477330.4},{"$f":"(((AAMC_Raw_Data_for_FY22[[#This Row],[75th]]-AAMC_Raw_Data_for_FY22[[#This Row],[Median]])/25)*40) + AAMC_Raw_Data_for_FY22[[#This Row],[Median]]","v":486245.6}]
[{"$f":"AAMC_Raw_Data_for_FY22[[#This Row],[Source]]&AAMC_Raw_Data_for_FY22[[#This Row],[Type]]&AAMC_Raw_Data_for_FY22[[#This Row],[School Subset]]&AAMC_Raw_Data_for_FY22[[#This Row],[Rank]]&AAMC_Raw_Data_for_FY22[[#This Row],[Degree]]&AAMC_Raw_Data_for_FY22[[#This Row],[Department / Specialty]]&\"L\"","v":"AAMCAcademicPublicAssociateMDOther RadiologyL"},"Other Radiology",3,"AAMC","Academic","Public","Associate","MD","2021-2022",351390,{"$f":"(((AAMC_Raw_Data_for_FY22[[#This Row],[Median]]-AAMC_Raw_Data_for_FY22[[#This Row],[25th]])/25)*5) + AAMC_Raw_Data_for_FY22[[#This Row],[25th]]","v":364812.6},{"$f":"(((AAMC_Raw_Data_for_FY22[[#This Row],[Median]]-AAMC_Raw_Data_for_FY22[[#This Row],[25th]])/25)*10) + AAMC_Raw_Data_for_FY22[[#This Row],[25th]]","v":378235.2},{"$f":"(((AAMC_Raw_Data_for_FY22[[#This Row],[Median]]-AAMC_Raw_Data_for_FY22[[#This Row],[25th]])/25)*15) + AAMC_Raw_Data_for_FY22[[#This Row],[25th]]","v":391657.8},{"$f":"(((AAMC_Raw_Data_for_FY22[[#This Row],[Median]]-AAMC_Raw_Data_for_FY22[[#This Row],[25th]])/25)*20) + AAMC_Raw_Data_for_FY22[[#This Row],[25th]]","v":405080.4},418503,{"$f":"(((AAMC_Raw_Data_for_FY22[[#This Row],[75th]]-AAMC_Raw_Data_for_FY22[[#This Row],[Median]])/25)*5) + AAMC_Raw_Data_for_FY22[[#This Row],[Median]]","v":428525.8},{"$f":"(((AAMC_Raw_Data_for_FY22[[#This Row],[75th]]-AAMC_Raw_Data_for_FY22[[#This Row],[Median]])/25)*10) + AAMC_Raw_Data_for_FY22[[#This Row],[Median]]","v":438548.6},{"$f":"(((AAMC_Raw_Data_for_FY22[[#This Row],[75th]]-AAMC_Raw_Data_for_FY22[[#This Row],[Median]])/25)*15) + AAMC_Raw_Data_for_FY22[[#This Row],[Median]]","v":448571.4},{"$f":"(((AAMC_Raw_Data_for_FY22[[#This Row],[75th]]-AAMC_Raw_Data_for_FY22[[#This Row],[Median]])/25)*20) + AAMC_Raw_Data_for_FY22[[#This Row],[Median]]","v":458594.2},468617,{"$f":"(((AAMC_Raw_Data_for_FY22[[#This Row],[75th]]-AAMC_Raw_Data_for_FY22[[#This Row],[Median]])/25)*30) + AAMC_Raw_Data_for_FY22[[#This Row],[Median]]","v":478639.8},{"$f":"(((AAMC_Raw_Data_for_FY22[[#This Row],[75th]]-AAMC_Raw_Data_for_FY22[[#This Row],[Median]])/25)*35) + AAMC_Raw_Data_for_FY22[[#This Row],[Median]]","v":488662.6},{"$f":"(((AAMC_Raw_Data_for_FY22[[#This Row],[75th]]-AAMC_Raw_Data_for_FY22[[#This Row],[Median]])/25)*40) + AAMC_Raw_Data_for_FY22[[#This Row],[Median]]","v":498685.4}]
[{"$f":"AAMC_Raw_Data_for_FY22[[#This Row],[Source]]&AAMC_Raw_Data_for_FY22[[#This Row],[Type]]&AAMC_Raw_Data_for_FY22[[#This Row],[School Subset]]&AAMC_Raw_Data_for_FY22[[#This Row],[Rank]]&AAMC_Raw_Data_for_FY22[[#This Row],[Degree]]&AAMC_Raw_Data_for_FY22[[#This Row],[Department / Specialty]]&\"L\"","v":"AAMCAcademicPublicProfessorMDOther RadiologyL"},"Other Radiology",2,"AAMC","Academic","Public","Professor","MD","2021-2022",344965,{"$f":"(((AAMC_Raw_Data_for_FY22[[#This Row],[Median]]-AAMC_Raw_Data_for_FY22[[#This Row],[25th]])/25)*5) + AAMC_Raw_Data_for_FY22[[#This Row],[25th]]","v":350641.4},{"$f":"(((AAMC_Raw_Data_for_FY22[[#This Row],[Median]]-AAMC_Raw_Data_for_FY22[[#This Row],[25th]])/25)*10) + AAMC_Raw_Data_for_FY22[[#This Row],[25th]]","v":356317.8},{"$f":"(((AAMC_Raw_Data_for_FY22[[#This Row],[Median]]-AAMC_Raw_Data_for_FY22[[#This Row],[25th]])/25)*15) + AAMC_Raw_Data_for_FY22[[#This Row],[25th]]","v":361994.2},{"$f":"(((AAMC_Raw_Data_for_FY22[[#This Row],[Median]]-AAMC_Raw_Data_for_FY22[[#This Row],[25th]])/25)*20) + AAMC_Raw_Data_for_FY22[[#This Row],[25th]]","v":367670.6},373347,{"$f":"(((AAMC_Raw_Data_for_FY22[[#This Row],[75th]]-AAMC_Raw_Data_for_FY22[[#This Row],[Median]])/25)*5) + AAMC_Raw_Data_for_FY22[[#This Row],[Median]]","v":397214.4},{"$f":"(((AAMC_Raw_Data_for_FY22[[#This Row],[75th]]-AAMC_Raw_Data_for_FY22[[#This Row],[Median]])/25)*10) + AAMC_Raw_Data_for_FY22[[#This Row],[Median]]","v":421081.8},{"$f":"(((AAMC_Raw_Data_for_FY22[[#This Row],[75th]]-AAMC_Raw_Data_for_FY22[[#This Row],[Median]])/25)*15) + AAMC_Raw_Data_for_FY22[[#This Row],[Median]]","v":444949.2},{"$f":"(((AAMC_Raw_Data_for_FY22[[#This Row],[75th]]-AAMC_Raw_Data_for_FY22[[#This Row],[Median]])/25)*20) + AAMC_Raw_Data_for_FY22[[#This Row],[Median]]","v":468816.6},492684,{"$f":"(((AAMC_Raw_Data_for_FY22[[#This Row],[75th]]-AAMC_Raw_Data_for_FY22[[#This Row],[Median]])/25)*30) + AAMC_Raw_Data_for_FY22[[#This Row],[Median]]","v":516551.4},{"$f":"(((AAMC_Raw_Data_for_FY22[[#This Row],[75th]]-AAMC_Raw_Data_for_FY22[[#This Row],[Median]])/25)*35) + AAMC_Raw_Data_for_FY22[[#This Row],[Median]]","v":540418.80000000005},{"$f":"(((AAMC_Raw_Data_for_FY22[[#This Row],[75th]]-AAMC_Raw_Data_for_FY22[[#This Row],[Median]])/25)*40) + AAMC_Raw_Data_for_FY22[[#This Row],[Median]]","v":564286.19999999995}]
[{"$f":"AAMC_Raw_Data_for_FY22[[#This Row],[Source]]&AAMC_Raw_Data_for_FY22[[#This Row],[Type]]&AAMC_Raw_Data_for_FY22[[#This Row],[School Subset]]&AAMC_Raw_Data_for_FY22[[#This Row],[Rank]]&AAMC_Raw_Data_for_FY22[[#This Row],[Degree]]&AAMC_Raw_Data_for_FY22[[#This Row],[Department / Specialty]]&\"L\"","v":"AAMCAcademicPublicChiefMDOther RadiologyL"},"Other Radiology",6,"AAMC","Academic","Public","Chief","MD","2021-2022",null,{"$f":"(((AAMC_Raw_Data_for_FY22[[#This Row],[Median]]-AAMC_Raw_Data_for_FY22[[#This Row],[25th]])/25)*5) + AAMC_Raw_Data_for_FY22[[#This Row],[25th]]","v":0},{"$f":"(((AAMC_Raw_Data_for_FY22[[#This Row],[Median]]-AAMC_Raw_Data_for_FY22[[#This Row],[25th]])/25)*10) + AAMC_Raw_Data_for_FY22[[#This Row],[25th]]","v":0},{"$f":"(((AAMC_Raw_Data_for_FY22[[#This Row],[Median]]-AAMC_Raw_Data_for_FY22[[#This Row],[25th]])/25)*15) + AAMC_Raw_Data_for_FY22[[#This Row],[25th]]","v":0},{"$f":"(((AAMC_Raw_Data_for_FY22[[#This Row],[Median]]-AAMC_Raw_Data_for_FY22[[#This Row],[25th]])/25)*20) + AAMC_Raw_Data_for_FY22[[#This Row],[25th]]","v":0},null,{"$f":"(((AAMC_Raw_Data_for_FY22[[#This Row],[75th]]-AAMC_Raw_Data_for_FY22[[#This Row],[Median]])/25)*5) + AAMC_Raw_Data_for_FY22[[#This Row],[Median]]","v":0},{"$f":"(((AAMC_Raw_Data_for_FY22[[#This Row],[75th]]-AAMC_Raw_Data_for_FY22[[#This Row],[Median]])/25)*10) + AAMC_Raw_Data_for_FY22[[#This Row],[Median]]","v":0},{"$f":"(((AAMC_Raw_Data_for_FY22[[#This Row],[75th]]-AAMC_Raw_Data_for_FY22[[#This Row],[Median]])/25)*15) + AAMC_Raw_Data_for_FY22[[#This Row],[Median]]","v":0},{"$f":"(((AAMC_Raw_Data_for_FY22[[#This Row],[75th]]-AAMC_Raw_Data_for_FY22[[#This Row],[Median]])/25)*20) + AAMC_Raw_Data_for_FY22[[#This Row],[Median]]","v":0},null,{"$f":"(((AAMC_Raw_Data_for_FY22[[#This Row],[75th]]-AAMC_Raw_Data_for_FY22[[#This Row],[Median]])/25)*30) + AAMC_Raw_Data_for_FY22[[#This Row],[Median]]","v":0},{"$f":"(((AAMC_Raw_Data_for_FY22[[#This Row],[75th]]-AAMC_Raw_Data_for_FY22[[#This Row],[Median]])/25)*35) + AAMC_Raw_Data_for_FY22[[#This Row],[Median]]","v":0},{"$f":"(((AAMC_Raw_Data_for_FY22[[#This Row],[75th]]-AAMC_Raw_Data_for_FY22[[#This Row],[Median]])/25)*40) + AAMC_Raw_Data_for_FY22[[#This Row],[Median]]","v":0}]
[{"$f":"AAMC_Raw_Data_for_FY22[[#This Row],[Source]]&AAMC_Raw_Data_for_FY22[[#This Row],[Type]]&AAMC_Raw_Data_for_FY22[[#This Row],[School Subset]]&AAMC_Raw_Data_for_FY22[[#This Row],[Rank]]&AAMC_Raw_Data_for_FY22[[#This Row],[Degree]]&AAMC_Raw_Data_for_FY22[[#This Row],[Department / Specialty]]&\"L\"","v":"AAMCAcademicPublicChairMDOther RadiologyL"},"Other Radiology",1,"AAMC","Academic","Public","Chair","MD","2021-2022",468520,{"$f":"(((AAMC_Raw_Data_for_FY22[[#This Row],[Median]]-AAMC_Raw_Data_for_FY22[[#This Row],[25th]])/25)*5) + AAMC_Raw_Data_for_FY22[[#This Row],[25th]]","v":500976.8},{"$f":"(((AAMC_Raw_Data_for_FY22[[#This Row],[Median]]-AAMC_Raw_Data_for_FY22[[#This Row],[25th]])/25)*10) + AAMC_Raw_Data_for_FY22[[#This Row],[25th]]","v":533433.59999999998},{"$f":"(((AAMC_Raw_Data_for_FY22[[#This Row],[Median]]-AAMC_Raw_Data_for_FY22[[#This Row],[25th]])/25)*15) + AAMC_Raw_Data_for_FY22[[#This Row],[25th]]","v":565890.4},{"$f":"(((AAMC_Raw_Data_for_FY22[[#This Row],[Median]]-AAMC_Raw_Data_for_FY22[[#This Row],[25th]])/25)*20) + AAMC_Raw_Data_for_FY22[[#This Row],[25th]]","v":598347.19999999995},630804,{"$f":"(((AAMC_Raw_Data_for_FY22[[#This Row],[75th]]-AAMC_Raw_Data_for_FY22[[#This Row],[Median]])/25)*5) + AAMC_Raw_Data_for_FY22[[#This Row],[Median]]","v":645946.4},{"$f":"(((AAMC_Raw_Data_for_FY22[[#This Row],[75th]]-AAMC_Raw_Data_for_FY22[[#This Row],[Median]])/25)*10) + AAMC_Raw_Data_for_FY22[[#This Row],[Median]]","v":661088.80000000005},{"$f":"(((AAMC_Raw_Data_for_FY22[[#This Row],[75th]]-AAMC_Raw_Data_for_FY22[[#This Row],[Median]])/25)*15) + AAMC_Raw_Data_for_FY22[[#This Row],[Median]]","v":676231.2},{"$f":"(((AAMC_Raw_Data_for_FY22[[#This Row],[75th]]-AAMC_Raw_Data_for_FY22[[#This Row],[Median]])/25)*20) + AAMC_Raw_Data_for_FY22[[#This Row],[Median]]","v":691373.6},706516,{"$f":"(((AAMC_Raw_Data_for_FY22[[#This Row],[75th]]-AAMC_Raw_Data_for_FY22[[#This Row],[Median]])/25)*30) + AAMC_Raw_Data_for_FY22[[#This Row],[Median]]","v":721658.4},{"$f":"(((AAMC_Raw_Data_for_FY22[[#This Row],[75th]]-AAMC_Raw_Data_for_FY22[[#This Row],[Median]])/25)*35) + AAMC_Raw_Data_for_FY22[[#This Row],[Median]]","v":736800.8},{"$f":"(((AAMC_Raw_Data_for_FY22[[#This Row],[75th]]-AAMC_Raw_Data_for_FY22[[#This Row],[Median]])/25)*40) + AAMC_Raw_Data_for_FY22[[#This Row],[Median]]","v":751943.2}]
[{"$f":"AAMC_Raw_Data_for_FY22[[#This Row],[Source]]&AAMC_Raw_Data_for_FY22[[#This Row],[Type]]&AAMC_Raw_Data_for_FY22[[#This Row],[School Subset]]&AAMC_Raw_Data_for_FY22[[#This Row],[Rank]]&AAMC_Raw_Data_for_FY22[[#This Row],[Degree]]&AAMC_Raw_Data_for_FY22[[#This Row],[Department / Specialty]]&\"L\"","v":"AAMCAcademicPublicInstructorMDSurgery TotalL"},"Surgery Total",5,"AAMC","Academic","Public","Instructor","MD","2021-2022",77600,{"$f":"(((AAMC_Raw_Data_for_FY22[[#This Row],[Median]]-AAMC_Raw_Data_for_FY22[[#This Row],[25th]])/25)*5) + AAMC_Raw_Data_for_FY22[[#This Row],[25th]]","v":81583.199999999997},{"$f":"(((AAMC_Raw_Data_for_FY22[[#This Row],[Median]]-AAMC_Raw_Data_for_FY22[[#This Row],[25th]])/25)*10) + AAMC_Raw_Data_for_FY22[[#This Row],[25th]]","v":85566.399999999994},{"$f":"(((AAMC_Raw_Data_for_FY22[[#This Row],[Median]]-AAMC_Raw_Data_for_FY22[[#This Row],[25th]])/25)*15) + AAMC_Raw_Data_for_FY22[[#This Row],[25th]]","v":89549.6},{"$f":"(((AAMC_Raw_Data_for_FY22[[#This Row],[Median]]-AAMC_Raw_Data_for_FY22[[#This Row],[25th]])/25)*20) + AAMC_Raw_Data_for_FY22[[#This Row],[25th]]","v":93532.800000000003},97516,{"$f":"(((AAMC_Raw_Data_for_FY22[[#This Row],[75th]]-AAMC_Raw_Data_for_FY22[[#This Row],[Median]])/25)*5) + AAMC_Raw_Data_for_FY22[[#This Row],[Median]]","v":116312.8},{"$f":"(((AAMC_Raw_Data_for_FY22[[#This Row],[75th]]-AAMC_Raw_Data_for_FY22[[#This Row],[Median]])/25)*10) + AAMC_Raw_Data_for_FY22[[#This Row],[Median]]","v":135109.6},{"$f":"(((AAMC_Raw_Data_for_FY22[[#This Row],[75th]]-AAMC_Raw_Data_for_FY22[[#This Row],[Median]])/25)*15) + AAMC_Raw_Data_for_FY22[[#This Row],[Median]]","v":153906.4},{"$f":"(((AAMC_Raw_Data_for_FY22[[#This Row],[75th]]-AAMC_Raw_Data_for_FY22[[#This Row],[Median]])/25)*20) + AAMC_Raw_Data_for_FY22[[#This Row],[Median]]","v":172703.2},191500,{"$f":"(((AAMC_Raw_Data_for_FY22[[#This Row],[75th]]-AAMC_Raw_Data_for_FY22[[#This Row],[Median]])/25)*30) + AAMC_Raw_Data_for_FY22[[#This Row],[Median]]","v":210296.8},{"$f":"(((AAMC_Raw_Data_for_FY22[[#This Row],[75th]]-AAMC_Raw_Data_for_FY22[[#This Row],[Median]])/25)*35) + AAMC_Raw_Data_for_FY22[[#This Row],[Median]]","v":229093.6},{"$f":"(((AAMC_Raw_Data_for_FY22[[#This Row],[75th]]-AAMC_Raw_Data_for_FY22[[#This Row],[Median]])/25)*40) + AAMC_Raw_Data_for_FY22[[#This Row],[Median]]","v":247890.4}]
[{"$f":"AAMC_Raw_Data_for_FY22[[#This Row],[Source]]&AAMC_Raw_Data_for_FY22[[#This Row],[Type]]&AAMC_Raw_Data_for_FY22[[#This Row],[School Subset]]&AAMC_Raw_Data_for_FY22[[#This Row],[Rank]]&AAMC_Raw_Data_for_FY22[[#This Row],[Degree]]&AAMC_Raw_Data_for_FY22[[#This Row],[Department / Specialty]]&\"L\"","v":"AAMCAcademicPublicAssistantMDSurgery TotalL"},"Surgery Total",4,"AAMC","Academic","Public","Assistant","MD","2021-2022",353500,{"$f":"(((AAMC_Raw_Data_for_FY22[[#This Row],[Median]]-AAMC_Raw_Data_for_FY22[[#This Row],[25th]])/25)*5) + AAMC_Raw_Data_for_FY22[[#This Row],[25th]]","v":369936.2},{"$f":"(((AAMC_Raw_Data_for_FY22[[#This Row],[Median]]-AAMC_Raw_Data_for_FY22[[#This Row],[25th]])/25)*10) + AAMC_Raw_Data_for_FY22[[#This Row],[25th]]","v":386372.4},{"$f":"(((AAMC_Raw_Data_for_FY22[[#This Row],[Median]]-AAMC_Raw_Data_for_FY22[[#This Row],[25th]])/25)*15) + AAMC_Raw_Data_for_FY22[[#This Row],[25th]]","v":402808.6},{"$f":"(((AAMC_Raw_Data_for_FY22[[#This Row],[Median]]-AAMC_Raw_Data_for_FY22[[#This Row],[25th]])/25)*20) + AAMC_Raw_Data_for_FY22[[#This Row],[25th]]","v":419244.79999999999},435681,{"$f":"(((AAMC_Raw_Data_for_FY22[[#This Row],[75th]]-AAMC_Raw_Data_for_FY22[[#This Row],[Median]])/25)*5) + AAMC_Raw_Data_for_FY22[[#This Row],[Median]]","v":463197.4},{"$f":"(((AAMC_Raw_Data_for_FY22[[#This Row],[75th]]-AAMC_Raw_Data_for_FY22[[#This Row],[Median]])/25)*10) + AAMC_Raw_Data_for_FY22[[#This Row],[Median]]","v":490713.8},{"$f":"(((AAMC_Raw_Data_for_FY22[[#This Row],[75th]]-AAMC_Raw_Data_for_FY22[[#This Row],[Median]])/25)*15) + AAMC_Raw_Data_for_FY22[[#This Row],[Median]]","v":518230.2},{"$f":"(((AAMC_Raw_Data_for_FY22[[#This Row],[75th]]-AAMC_Raw_Data_for_FY22[[#This Row],[Median]])/25)*20) + AAMC_Raw_Data_for_FY22[[#This Row],[Median]]","v":545746.6},573263,{"$f":"(((AAMC_Raw_Data_for_FY22[[#This Row],[75th]]-AAMC_Raw_Data_for_FY22[[#This Row],[Median]])/25)*30) + AAMC_Raw_Data_for_FY22[[#This Row],[Median]]","v":600779.4},{"$f":"(((AAMC_Raw_Data_for_FY22[[#This Row],[75th]]-AAMC_Raw_Data_for_FY22[[#This Row],[Median]])/25)*35) + AAMC_Raw_Data_for_FY22[[#This Row],[Median]]","v":628295.80000000005},{"$f":"(((AAMC_Raw_Data_for_FY22[[#This Row],[75th]]-AAMC_Raw_Data_for_FY22[[#This Row],[Median]])/25)*40) + AAMC_Raw_Data_for_FY22[[#This Row],[Median]]","v":655812.19999999995}]
[{"$f":"AAMC_Raw_Data_for_FY22[[#This Row],[Source]]&AAMC_Raw_Data_for_FY22[[#This Row],[Type]]&AAMC_Raw_Data_for_FY22[[#This Row],[School Subset]]&AAMC_Raw_Data_for_FY22[[#This Row],[Rank]]&AAMC_Raw_Data_for_FY22[[#This Row],[Degree]]&AAMC_Raw_Data_for_FY22[[#This Row],[Department / Specialty]]&\"L\"","v":"AAMCAcademicPublicAssociateMDSurgery TotalL"},"Surgery Total",3,"AAMC","Academic","Public","Associate","MD","2021-2022",423850,{"$f":"(((AAMC_Raw_Data_for_FY22[[#This Row],[Median]]-AAMC_Raw_Data_for_FY22[[#This Row],[25th]])/25)*5) + AAMC_Raw_Data_for_FY22[[#This Row],[25th]]","v":443494.2},{"$f":"(((AAMC_Raw_Data_for_FY22[[#This Row],[Median]]-AAMC_Raw_Data_for_FY22[[#This Row],[25th]])/25)*10) + AAMC_Raw_Data_for_FY22[[#This Row],[25th]]","v":463138.4},{"$f":"(((AAMC_Raw_Data_for_FY22[[#This Row],[Median]]-AAMC_Raw_Data_for_FY22[[#This Row],[25th]])/25)*15) + AAMC_Raw_Data_for_FY22[[#This Row],[25th]]","v":482782.6},{"$f":"(((AAMC_Raw_Data_for_FY22[[#This Row],[Median]]-AAMC_Raw_Data_for_FY22[[#This Row],[25th]])/25)*20) + AAMC_Raw_Data_for_FY22[[#This Row],[25th]]","v":502426.8},522071,{"$f":"(((AAMC_Raw_Data_for_FY22[[#This Row],[75th]]-AAMC_Raw_Data_for_FY22[[#This Row],[Median]])/25)*5) + AAMC_Raw_Data_for_FY22[[#This Row],[Median]]","v":552054.6},{"$f":"(((AAMC_Raw_Data_for_FY22[[#This Row],[75th]]-AAMC_Raw_Data_for_FY22[[#This Row],[Median]])/25)*10) + AAMC_Raw_Data_for_FY22[[#This Row],[Median]]","v":582038.19999999995},{"$f":"(((AAMC_Raw_Data_for_FY22[[#This Row],[75th]]-AAMC_Raw_Data_for_FY22[[#This Row],[Median]])/25)*15) + AAMC_Raw_Data_for_FY22[[#This Row],[Median]]","v":612021.80000000005},{"$f":"(((AAMC_Raw_Data_for_FY22[[#This Row],[75th]]-AAMC_Raw_Data_for_FY22[[#This Row],[Median]])/25)*20) + AAMC_Raw_Data_for_FY22[[#This Row],[Median]]","v":642005.4},671989,{"$f":"(((AAMC_Raw_Data_for_FY22[[#This Row],[75th]]-AAMC_Raw_Data_for_FY22[[#This Row],[Median]])/25)*30) + AAMC_Raw_Data_for_FY22[[#This Row],[Median]]","v":701972.6},{"$f":"(((AAMC_Raw_Data_for_FY22[[#This Row],[75th]]-AAMC_Raw_Data_for_FY22[[#This Row],[Median]])/25)*35) + AAMC_Raw_Data_for_FY22[[#This Row],[Median]]","v":731956.2},{"$f":"(((AAMC_Raw_Data_for_FY22[[#This Row],[75th]]-AAMC_Raw_Data_for_FY22[[#This Row],[Median]])/25)*40) + AAMC_Raw_Data_for_FY22[[#This Row],[Median]]","v":761939.8}]
[{"$f":"AAMC_Raw_Data_for_FY22[[#This Row],[Source]]&AAMC_Raw_Data_for_FY22[[#This Row],[Type]]&AAMC_Raw_Data_for_FY22[[#This Row],[School Subset]]&AAMC_Raw_Data_for_FY22[[#This Row],[Rank]]&AAMC_Raw_Data_for_FY22[[#This Row],[Degree]]&AAMC_Raw_Data_for_FY22[[#This Row],[Department / Specialty]]&\"L\"","v":"AAMCAcademicPublicProfessorMDSurgery TotalL"},"Surgery Total",2,"AAMC","Academic","Public","Professor","MD","2021-2022",451639,{"$f":"(((AAMC_Raw_Data_for_FY22[[#This Row],[Median]]-AAMC_Raw_Data_for_FY22[[#This Row],[25th]])/25)*5) + AAMC_Raw_Data_for_FY22[[#This Row],[25th]]","v":475856.8},{"$f":"(((AAMC_Raw_Data_for_FY22[[#This Row],[Median]]-AAMC_Raw_Data_for_FY22[[#This Row],[25th]])/25)*10) + AAMC_Raw_Data_for_FY22[[#This Row],[25th]]","v":500074.6},{"$f":"(((AAMC_Raw_Data_for_FY22[[#This Row],[Median]]-AAMC_Raw_Data_for_FY22[[#This Row],[25th]])/25)*15) + AAMC_Raw_Data_for_FY22[[#This Row],[25th]]","v":524292.4},{"$f":"(((AAMC_Raw_Data_for_FY22[[#This Row],[Median]]-AAMC_Raw_Data_for_FY22[[#This Row],[25th]])/25)*20) + AAMC_Raw_Data_for_FY22[[#This Row],[25th]]","v":548510.19999999995},572728,{"$f":"(((AAMC_Raw_Data_for_FY22[[#This Row],[75th]]-AAMC_Raw_Data_for_FY22[[#This Row],[Median]])/25)*5) + AAMC_Raw_Data_for_FY22[[#This Row],[Median]]","v":605960.6},{"$f":"(((AAMC_Raw_Data_for_FY22[[#This Row],[75th]]-AAMC_Raw_Data_for_FY22[[#This Row],[Median]])/25)*10) + AAMC_Raw_Data_for_FY22[[#This Row],[Median]]","v":639193.19999999995},{"$f":"(((AAMC_Raw_Data_for_FY22[[#This Row],[75th]]-AAMC_Raw_Data_for_FY22[[#This Row],[Median]])/25)*15) + AAMC_Raw_Data_for_FY22[[#This Row],[Median]]","v":672425.8},{"$f":"(((AAMC_Raw_Data_for_FY22[[#This Row],[75th]]-AAMC_Raw_Data_for_FY22[[#This Row],[Median]])/25)*20) + AAMC_Raw_Data_for_FY22[[#This Row],[Median]]","v":705658.4},738891,{"$f":"(((AAMC_Raw_Data_for_FY22[[#This Row],[75th]]-AAMC_Raw_Data_for_FY22[[#This Row],[Median]])/25)*30) + AAMC_Raw_Data_for_FY22[[#This Row],[Median]]","v":772123.6},{"$f":"(((AAMC_Raw_Data_for_FY22[[#This Row],[75th]]-AAMC_Raw_Data_for_FY22[[#This Row],[Median]])/25)*35) + AAMC_Raw_Data_for_FY22[[#This Row],[Median]]","v":805356.2},{"$f":"(((AAMC_Raw_Data_for_FY22[[#This Row],[75th]]-AAMC_Raw_Data_for_FY22[[#This Row],[Median]])/25)*40) + AAMC_Raw_Data_for_FY22[[#This Row],[Median]]","v":838588.8}]
[{"$f":"AAMC_Raw_Data_for_FY22[[#This Row],[Source]]&AAMC_Raw_Data_for_FY22[[#This Row],[Type]]&AAMC_Raw_Data_for_FY22[[#This Row],[School Subset]]&AAMC_Raw_Data_for_FY22[[#This Row],[Rank]]&AAMC_Raw_Data_for_FY22[[#This Row],[Degree]]&AAMC_Raw_Data_for_FY22[[#This Row],[Department / Specialty]]&\"L\"","v":"AAMCAcademicPublicChiefMDSurgery TotalL"},"Surgery Total",6,"AAMC","Academic","Public","Chief","MD","2021-2022",553421,{"$f":"(((AAMC_Raw_Data_for_FY22[[#This Row],[Median]]-AAMC_Raw_Data_for_FY22[[#This Row],[25th]])/25)*5) + AAMC_Raw_Data_for_FY22[[#This Row],[25th]]","v":576161.6},{"$f":"(((AAMC_Raw_Data_for_FY22[[#This Row],[Median]]-AAMC_Raw_Data_for_FY22[[#This Row],[25th]])/25)*10) + AAMC_Raw_Data_for_FY22[[#This Row],[25th]]","v":598902.19999999995},{"$f":"(((AAMC_Raw_Data_for_FY22[[#This Row],[Median]]-AAMC_Raw_Data_for_FY22[[#This Row],[25th]])/25)*15) + AAMC_Raw_Data_for_FY22[[#This Row],[25th]]","v":621642.80000000005},{"$f":"(((AAMC_Raw_Data_for_FY22[[#This Row],[Median]]-AAMC_Raw_Data_for_FY22[[#This Row],[25th]])/25)*20) + AAMC_Raw_Data_for_FY22[[#This Row],[25th]]","v":644383.4},667124,{"$f":"(((AAMC_Raw_Data_for_FY22[[#This Row],[75th]]-AAMC_Raw_Data_for_FY22[[#This Row],[Median]])/25)*5) + AAMC_Raw_Data_for_FY22[[#This Row],[Median]]","v":700330.4},{"$f":"(((AAMC_Raw_Data_for_FY22[[#This Row],[75th]]-AAMC_Raw_Data_for_FY22[[#This Row],[Median]])/25)*10) + AAMC_Raw_Data_for_FY22[[#This Row],[Median]]","v":733536.8},{"$f":"(((AAMC_Raw_Data_for_FY22[[#This Row],[75th]]-AAMC_Raw_Data_for_FY22[[#This Row],[Median]])/25)*15) + AAMC_Raw_Data_for_FY22[[#This Row],[Median]]","v":766743.2},{"$f":"(((AAMC_Raw_Data_for_FY22[[#This Row],[75th]]-AAMC_Raw_Data_for_FY22[[#This Row],[Median]])/25)*20) + AAMC_Raw_Data_for_FY22[[#This Row],[Median]]","v":799949.6},833156,{"$f":"(((AAMC_Raw_Data_for_FY22[[#This Row],[75th]]-AAMC_Raw_Data_for_FY22[[#This Row],[Median]])/25)*30) + AAMC_Raw_Data_for_FY22[[#This Row],[Median]]","v":866362.4},{"$f":"(((AAMC_Raw_Data_for_FY22[[#This Row],[75th]]-AAMC_Raw_Data_for_FY22[[#This Row],[Median]])/25)*35) + AAMC_Raw_Data_for_FY22[[#This Row],[Median]]","v":899568.8},{"$f":"(((AAMC_Raw_Data_for_FY22[[#This Row],[75th]]-AAMC_Raw_Data_for_FY22[[#This Row],[Median]])/25)*40) + AAMC_Raw_Data_for_FY22[[#This Row],[Median]]","v":932775.2}]
[{"$f":"AAMC_Raw_Data_for_FY22[[#This Row],[Source]]&AAMC_Raw_Data_for_FY22[[#This Row],[Type]]&AAMC_Raw_Data_for_FY22[[#This Row],[School Subset]]&AAMC_Raw_Data_for_FY22[[#This Row],[Rank]]&AAMC_Raw_Data_for_FY22[[#This Row],[Degree]]&AAMC_Raw_Data_for_FY22[[#This Row],[Department / Specialty]]&\"L\"","v":"AAMCAcademicPublicChairMDSurgery TotalL"},"Surgery Total",1,"AAMC","Academic","Public","Chair","MD","2021-2022",777698,{"$f":"(((AAMC_Raw_Data_for_FY22[[#This Row],[Median]]-AAMC_Raw_Data_for_FY22[[#This Row],[25th]])/25)*5) + AAMC_Raw_Data_for_FY22[[#This Row],[25th]]","v":810608.2},{"$f":"(((AAMC_Raw_Data_for_FY22[[#This Row],[Median]]-AAMC_Raw_Data_for_FY22[[#This Row],[25th]])/25)*10) + AAMC_Raw_Data_for_FY22[[#This Row],[25th]]","v":843518.4},{"$f":"(((AAMC_Raw_Data_for_FY22[[#This Row],[Median]]-AAMC_Raw_Data_for_FY22[[#This Row],[25th]])/25)*15) + AAMC_Raw_Data_for_FY22[[#This Row],[25th]]","v":876428.6},{"$f":"(((AAMC_Raw_Data_for_FY22[[#This Row],[Median]]-AAMC_Raw_Data_for_FY22[[#This Row],[25th]])/25)*20) + AAMC_Raw_Data_for_FY22[[#This Row],[25th]]","v":909338.8},942249,{"$f":"(((AAMC_Raw_Data_for_FY22[[#This Row],[75th]]-AAMC_Raw_Data_for_FY22[[#This Row],[Median]])/25)*5) + AAMC_Raw_Data_for_FY22[[#This Row],[Median]]","v":975070},{"$f":"(((AAMC_Raw_Data_for_FY22[[#This Row],[75th]]-AAMC_Raw_Data_for_FY22[[#This Row],[Median]])/25)*10) + AAMC_Raw_Data_for_FY22[[#This Row],[Median]]","v":1007891},{"$f":"(((AAMC_Raw_Data_for_FY22[[#This Row],[75th]]-AAMC_Raw_Data_for_FY22[[#This Row],[Median]])/25)*15) + AAMC_Raw_Data_for_FY22[[#This Row],[Median]]","v":1040712},{"$f":"(((AAMC_Raw_Data_for_FY22[[#This Row],[75th]]-AAMC_Raw_Data_for_FY22[[#This Row],[Median]])/25)*20) + AAMC_Raw_Data_for_FY22[[#This Row],[Median]]","v":1073533},1106354,{"$f":"(((AAMC_Raw_Data_for_FY22[[#This Row],[75th]]-AAMC_Raw_Data_for_FY22[[#This Row],[Median]])/25)*30) + AAMC_Raw_Data_for_FY22[[#This Row],[Median]]","v":1139175},{"$f":"(((AAMC_Raw_Data_for_FY22[[#This Row],[75th]]-AAMC_Raw_Data_for_FY22[[#This Row],[Median]])/25)*35) + AAMC_Raw_Data_for_FY22[[#This Row],[Median]]","v":1171996},{"$f":"(((AAMC_Raw_Data_for_FY22[[#This Row],[75th]]-AAMC_Raw_Data_for_FY22[[#This Row],[Median]])/25)*40) + AAMC_Raw_Data_for_FY22[[#This Row],[Median]]","v":1204817}]
[{"$f":"AAMC_Raw_Data_for_FY22[[#This Row],[Source]]&AAMC_Raw_Data_for_FY22[[#This Row],[Type]]&AAMC_Raw_Data_for_FY22[[#This Row],[School Subset]]&AAMC_Raw_Data_for_FY22[[#This Row],[Rank]]&AAMC_Raw_Data_for_FY22[[#This Row],[Degree]]&AAMC_Raw_Data_for_FY22[[#This Row],[Department / Specialty]]&\"L\"","v":"AAMCAcademicPublicInstructorMDGeneral SurgeryL"},"General Surgery",5,"AAMC","Academic","Public","Instructor","MD","2021-2022",112200,{"$f":"(((AAMC_Raw_Data_for_FY22[[#This Row],[Median]]-AAMC_Raw_Data_for_FY22[[#This Row],[25th]])/25)*5) + AAMC_Raw_Data_for_FY22[[#This Row],[25th]]","v":154760},{"$f":"(((AAMC_Raw_Data_for_FY22[[#This Row],[Median]]-AAMC_Raw_Data_for_FY22[[#This Row],[25th]])/25)*10) + AAMC_Raw_Data_for_FY22[[#This Row],[25th]]","v":197320},{"$f":"(((AAMC_Raw_Data_for_FY22[[#This Row],[Median]]-AAMC_Raw_Data_for_FY22[[#This Row],[25th]])/25)*15) + AAMC_Raw_Data_for_FY22[[#This Row],[25th]]","v":239880},{"$f":"(((AAMC_Raw_Data_for_FY22[[#This Row],[Median]]-AAMC_Raw_Data_for_FY22[[#This Row],[25th]])/25)*20) + AAMC_Raw_Data_for_FY22[[#This Row],[25th]]","v":282440},325000,{"$f":"(((AAMC_Raw_Data_for_FY22[[#This Row],[75th]]-AAMC_Raw_Data_for_FY22[[#This Row],[Median]])/25)*5) + AAMC_Raw_Data_for_FY22[[#This Row],[Median]]","v":347356},{"$f":"(((AAMC_Raw_Data_for_FY22[[#This Row],[75th]]-AAMC_Raw_Data_for_FY22[[#This Row],[Median]])/25)*10) + AAMC_Raw_Data_for_FY22[[#This Row],[Median]]","v":369712},{"$f":"(((AAMC_Raw_Data_for_FY22[[#This Row],[75th]]-AAMC_Raw_Data_for_FY22[[#This Row],[Median]])/25)*15) + AAMC_Raw_Data_for_FY22[[#This Row],[Median]]","v":392068},{"$f":"(((AAMC_Raw_Data_for_FY22[[#This Row],[75th]]-AAMC_Raw_Data_for_FY22[[#This Row],[Median]])/25)*20) + AAMC_Raw_Data_for_FY22[[#This Row],[Median]]","v":414424},436780,{"$f":"(((AAMC_Raw_Data_for_FY22[[#This Row],[75th]]-AAMC_Raw_Data_for_FY22[[#This Row],[Median]])/25)*30) + AAMC_Raw_Data_for_FY22[[#This Row],[Median]]","v":459136},{"$f":"(((AAMC_Raw_Data_for_FY22[[#This Row],[75th]]-AAMC_Raw_Data_for_FY22[[#This Row],[Median]])/25)*35) + AAMC_Raw_Data_for_FY22[[#This Row],[Median]]","v":481492},{"$f":"(((AAMC_Raw_Data_for_FY22[[#This Row],[75th]]-AAMC_Raw_Data_for_FY22[[#This Row],[Median]])/25)*40) + AAMC_Raw_Data_for_FY22[[#This Row],[Median]]","v":503848}]
[{"$f":"AAMC_Raw_Data_for_FY22[[#This Row],[Source]]&AAMC_Raw_Data_for_FY22[[#This Row],[Type]]&AAMC_Raw_Data_for_FY22[[#This Row],[School Subset]]&AAMC_Raw_Data_for_FY22[[#This Row],[Rank]]&AAMC_Raw_Data_for_FY22[[#This Row],[Degree]]&AAMC_Raw_Data_for_FY22[[#This Row],[Department / Specialty]]&\"L\"","v":"AAMCAcademicPublicAssistantMDGeneral SurgeryL"},"General Surgery",4,"AAMC","Academic","Public","Assistant","MD","2021-2022",320000,{"$f":"(((AAMC_Raw_Data_for_FY22[[#This Row],[Median]]-AAMC_Raw_Data_for_FY22[[#This Row],[25th]])/25)*5) + AAMC_Raw_Data_for_FY22[[#This Row],[25th]]","v":328308.40000000002},{"$f":"(((AAMC_Raw_Data_for_FY22[[#This Row],[Median]]-AAMC_Raw_Data_for_FY22[[#This Row],[25th]])/25)*10) + AAMC_Raw_Data_for_FY22[[#This Row],[25th]]","v":336616.8},{"$f":"(((AAMC_Raw_Data_for_FY22[[#This Row],[Median]]-AAMC_Raw_Data_for_FY22[[#This Row],[25th]])/25)*15) + AAMC_Raw_Data_for_FY22[[#This Row],[25th]]","v":344925.2},{"$f":"(((AAMC_Raw_Data_for_FY22[[#This Row],[Median]]-AAMC_Raw_Data_for_FY22[[#This Row],[25th]])/25)*20) + AAMC_Raw_Data_for_FY22[[#This Row],[25th]]","v":353233.6},361542,{"$f":"(((AAMC_Raw_Data_for_FY22[[#This Row],[75th]]-AAMC_Raw_Data_for_FY22[[#This Row],[Median]])/25)*5) + AAMC_Raw_Data_for_FY22[[#This Row],[Median]]","v":378912.6},{"$f":"(((AAMC_Raw_Data_for_FY22[[#This Row],[75th]]-AAMC_Raw_Data_for_FY22[[#This Row],[Median]])/25)*10) + AAMC_Raw_Data_for_FY22[[#This Row],[Median]]","v":396283.2},{"$f":"(((AAMC_Raw_Data_for_FY22[[#This Row],[75th]]-AAMC_Raw_Data_for_FY22[[#This Row],[Median]])/25)*15) + AAMC_Raw_Data_for_FY22[[#This Row],[Median]]","v":413653.8},{"$f":"(((AAMC_Raw_Data_for_FY22[[#This Row],[75th]]-AAMC_Raw_Data_for_FY22[[#This Row],[Median]])/25)*20) + AAMC_Raw_Data_for_FY22[[#This Row],[Median]]","v":431024.4},448395,{"$f":"(((AAMC_Raw_Data_for_FY22[[#This Row],[75th]]-AAMC_Raw_Data_for_FY22[[#This Row],[Median]])/25)*30) + AAMC_Raw_Data_for_FY22[[#This Row],[Median]]","v":465765.6},{"$f":"(((AAMC_Raw_Data_for_FY22[[#This Row],[75th]]-AAMC_Raw_Data_for_FY22[[#This Row],[Median]])/25)*35) + AAMC_Raw_Data_for_FY22[[#This Row],[Median]]","v":483136.2},{"$f":"(((AAMC_Raw_Data_for_FY22[[#This Row],[75th]]-AAMC_Raw_Data_for_FY22[[#This Row],[Median]])/25)*40) + AAMC_Raw_Data_for_FY22[[#This Row],[Median]]","v":500506.8}]
[{"$f":"AAMC_Raw_Data_for_FY22[[#This Row],[Source]]&AAMC_Raw_Data_for_FY22[[#This Row],[Type]]&AAMC_Raw_Data_for_FY22[[#This Row],[School Subset]]&AAMC_Raw_Data_for_FY22[[#This Row],[Rank]]&AAMC_Raw_Data_for_FY22[[#This Row],[Degree]]&AAMC_Raw_Data_for_FY22[[#This Row],[Department / Specialty]]&\"L\"","v":"AAMCAcademicPublicAssociateMDGeneral SurgeryL"},"General Surgery",3,"AAMC","Academic","Public","Associate","MD","2021-2022",370469,{"$f":"(((AAMC_Raw_Data_for_FY22[[#This Row],[Median]]-AAMC_Raw_Data_for_FY22[[#This Row],[25th]])/25)*5) + AAMC_Raw_Data_for_FY22[[#This Row],[25th]]","v":381111.2},{"$f":"(((AAMC_Raw_Data_for_FY22[[#This Row],[Median]]-AAMC_Raw_Data_for_FY22[[#This Row],[25th]])/25)*10) + AAMC_Raw_Data_for_FY22[[#This Row],[25th]]","v":391753.4},{"$f":"(((AAMC_Raw_Data_for_FY22[[#This Row],[Median]]-AAMC_Raw_Data_for_FY22[[#This Row],[25th]])/25)*15) + AAMC_Raw_Data_for_FY22[[#This Row],[25th]]","v":402395.6},{"$f":"(((AAMC_Raw_Data_for_FY22[[#This Row],[Median]]-AAMC_Raw_Data_for_FY22[[#This Row],[25th]])/25)*20) + AAMC_Raw_Data_for_FY22[[#This Row],[25th]]","v":413037.8},423680,{"$f":"(((AAMC_Raw_Data_for_FY22[[#This Row],[75th]]-AAMC_Raw_Data_for_FY22[[#This Row],[Median]])/25)*5) + AAMC_Raw_Data_for_FY22[[#This Row],[Median]]","v":440404},{"$f":"(((AAMC_Raw_Data_for_FY22[[#This Row],[75th]]-AAMC_Raw_Data_for_FY22[[#This Row],[Median]])/25)*10) + AAMC_Raw_Data_for_FY22[[#This Row],[Median]]","v":457128},{"$f":"(((AAMC_Raw_Data_for_FY22[[#This Row],[75th]]-AAMC_Raw_Data_for_FY22[[#This Row],[Median]])/25)*15) + AAMC_Raw_Data_for_FY22[[#This Row],[Median]]","v":473852},{"$f":"(((AAMC_Raw_Data_for_FY22[[#This Row],[75th]]-AAMC_Raw_Data_for_FY22[[#This Row],[Median]])/25)*20) + AAMC_Raw_Data_for_FY22[[#This Row],[Median]]","v":490576},507300,{"$f":"(((AAMC_Raw_Data_for_FY22[[#This Row],[75th]]-AAMC_Raw_Data_for_FY22[[#This Row],[Median]])/25)*30) + AAMC_Raw_Data_for_FY22[[#This Row],[Median]]","v":524024},{"$f":"(((AAMC_Raw_Data_for_FY22[[#This Row],[75th]]-AAMC_Raw_Data_for_FY22[[#This Row],[Median]])/25)*35) + AAMC_Raw_Data_for_FY22[[#This Row],[Median]]","v":540748},{"$f":"(((AAMC_Raw_Data_for_FY22[[#This Row],[75th]]-AAMC_Raw_Data_for_FY22[[#This Row],[Median]])/25)*40) + AAMC_Raw_Data_for_FY22[[#This Row],[Median]]","v":557472}]
[{"$f":"AAMC_Raw_Data_for_FY22[[#This Row],[Source]]&AAMC_Raw_Data_for_FY22[[#This Row],[Type]]&AAMC_Raw_Data_for_FY22[[#This Row],[School Subset]]&AAMC_Raw_Data_for_FY22[[#This Row],[Rank]]&AAMC_Raw_Data_for_FY22[[#This Row],[Degree]]&AAMC_Raw_Data_for_FY22[[#This Row],[Department / Specialty]]&\"L\"","v":"AAMCAcademicPublicProfessorMDGeneral SurgeryL"},"General Surgery",2,"AAMC","Academic","Public","Professor","MD","2021-2022",361915,{"$f":"(((AAMC_Raw_Data_for_FY22[[#This Row],[Median]]-AAMC_Raw_Data_for_FY22[[#This Row],[25th]])/25)*5) + AAMC_Raw_Data_for_FY22[[#This Row],[25th]]","v":384766.4},{"$f":"(((AAMC_Raw_Data_for_FY22[[#This Row],[Median]]-AAMC_Raw_Data_for_FY22[[#This Row],[25th]])/25)*10) + AAMC_Raw_Data_for_FY22[[#This Row],[25th]]","v":407617.8},{"$f":"(((AAMC_Raw_Data_for_FY22[[#This Row],[Median]]-AAMC_Raw_Data_for_FY22[[#This Row],[25th]])/25)*15) + AAMC_Raw_Data_for_FY22[[#This Row],[25th]]","v":430469.2},{"$f":"(((AAMC_Raw_Data_for_FY22[[#This Row],[Median]]-AAMC_Raw_Data_for_FY22[[#This Row],[25th]])/25)*20) + AAMC_Raw_Data_for_FY22[[#This Row],[25th]]","v":453320.6},476172,{"$f":"(((AAMC_Raw_Data_for_FY22[[#This Row],[75th]]-AAMC_Raw_Data_for_FY22[[#This Row],[Median]])/25)*5) + AAMC_Raw_Data_for_FY22[[#This Row],[Median]]","v":493031.4},{"$f":"(((AAMC_Raw_Data_for_FY22[[#This Row],[75th]]-AAMC_Raw_Data_for_FY22[[#This Row],[Median]])/25)*10) + AAMC_Raw_Data_for_FY22[[#This Row],[Median]]","v":509890.8},{"$f":"(((AAMC_Raw_Data_for_FY22[[#This Row],[75th]]-AAMC_Raw_Data_for_FY22[[#This Row],[Median]])/25)*15) + AAMC_Raw_Data_for_FY22[[#This Row],[Median]]","v":526750.19999999995},{"$f":"(((AAMC_Raw_Data_for_FY22[[#This Row],[75th]]-AAMC_Raw_Data_for_FY22[[#This Row],[Median]])/25)*20) + AAMC_Raw_Data_for_FY22[[#This Row],[Median]]","v":543609.59999999998},560469,{"$f":"(((AAMC_Raw_Data_for_FY22[[#This Row],[75th]]-AAMC_Raw_Data_for_FY22[[#This Row],[Median]])/25)*30) + AAMC_Raw_Data_for_FY22[[#This Row],[Median]]","v":577328.4},{"$f":"(((AAMC_Raw_Data_for_FY22[[#This Row],[75th]]-AAMC_Raw_Data_for_FY22[[#This Row],[Median]])/25)*35) + AAMC_Raw_Data_for_FY22[[#This Row],[Median]]","v":594187.80000000005},{"$f":"(((AAMC_Raw_Data_for_FY22[[#This Row],[75th]]-AAMC_Raw_Data_for_FY22[[#This Row],[Median]])/25)*40) + AAMC_Raw_Data_for_FY22[[#This Row],[Median]]","v":611047.19999999995}]
[{"$f":"AAMC_Raw_Data_for_FY22[[#This Row],[Source]]&AAMC_Raw_Data_for_FY22[[#This Row],[Type]]&AAMC_Raw_Data_for_FY22[[#This Row],[School Subset]]&AAMC_Raw_Data_for_FY22[[#This Row],[Rank]]&AAMC_Raw_Data_for_FY22[[#This Row],[Degree]]&AAMC_Raw_Data_for_FY22[[#This Row],[Department / Specialty]]&\"L\"","v":"AAMCAcademicPublicChiefMDGeneral SurgeryL"},"General Surgery",6,"AAMC","Academic","Public","Chief","MD","2021-2022",526144,{"$f":"(((AAMC_Raw_Data_for_FY22[[#This Row],[Median]]-AAMC_Raw_Data_for_FY22[[#This Row],[25th]])/25)*5) + AAMC_Raw_Data_for_FY22[[#This Row],[25th]]","v":539549.19999999995},{"$f":"(((AAMC_Raw_Data_for_FY22[[#This Row],[Median]]-AAMC_Raw_Data_for_FY22[[#This Row],[25th]])/25)*10) + AAMC_Raw_Data_for_FY22[[#This Row],[25th]]","v":552954.4},{"$f":"(((AAMC_Raw_Data_for_FY22[[#This Row],[Median]]-AAMC_Raw_Data_for_FY22[[#This Row],[25th]])/25)*15) + AAMC_Raw_Data_for_FY22[[#This Row],[25th]]","v":566359.6},{"$f":"(((AAMC_Raw_Data_for_FY22[[#This Row],[Median]]-AAMC_Raw_Data_for_FY22[[#This Row],[25th]])/25)*20) + AAMC_Raw_Data_for_FY22[[#This Row],[25th]]","v":579764.80000000005},593170,{"$f":"(((AAMC_Raw_Data_for_FY22[[#This Row],[75th]]-AAMC_Raw_Data_for_FY22[[#This Row],[Median]])/25)*5) + AAMC_Raw_Data_for_FY22[[#This Row],[Median]]","v":615318},{"$f":"(((AAMC_Raw_Data_for_FY22[[#This Row],[75th]]-AAMC_Raw_Data_for_FY22[[#This Row],[Median]])/25)*10) + AAMC_Raw_Data_for_FY22[[#This Row],[Median]]","v":637466},{"$f":"(((AAMC_Raw_Data_for_FY22[[#This Row],[75th]]-AAMC_Raw_Data_for_FY22[[#This Row],[Median]])/25)*15) + AAMC_Raw_Data_for_FY22[[#This Row],[Median]]","v":659614},{"$f":"(((AAMC_Raw_Data_for_FY22[[#This Row],[75th]]-AAMC_Raw_Data_for_FY22[[#This Row],[Median]])/25)*20) + AAMC_Raw_Data_for_FY22[[#This Row],[Median]]","v":681762},703910,{"$f":"(((AAMC_Raw_Data_for_FY22[[#This Row],[75th]]-AAMC_Raw_Data_for_FY22[[#This Row],[Median]])/25)*30) + AAMC_Raw_Data_for_FY22[[#This Row],[Median]]","v":726058},{"$f":"(((AAMC_Raw_Data_for_FY22[[#This Row],[75th]]-AAMC_Raw_Data_for_FY22[[#This Row],[Median]])/25)*35) + AAMC_Raw_Data_for_FY22[[#This Row],[Median]]","v":748206},{"$f":"(((AAMC_Raw_Data_for_FY22[[#This Row],[75th]]-AAMC_Raw_Data_for_FY22[[#This Row],[Median]])/25)*40) + AAMC_Raw_Data_for_FY22[[#This Row],[Median]]","v":770354}]
[{"$f":"AAMC_Raw_Data_for_FY22[[#This Row],[Source]]&AAMC_Raw_Data_for_FY22[[#This Row],[Type]]&AAMC_Raw_Data_for_FY22[[#This Row],[School Subset]]&AAMC_Raw_Data_for_FY22[[#This Row],[Rank]]&AAMC_Raw_Data_for_FY22[[#This Row],[Degree]]&AAMC_Raw_Data_for_FY22[[#This Row],[Department / Specialty]]&\"L\"","v":"AAMCAcademicPublicChairMDGeneral SurgeryL"},"General Surgery",1,"AAMC","Academic","Public","Chair","MD","2021-2022",647447,{"$f":"(((AAMC_Raw_Data_for_FY22[[#This Row],[Median]]-AAMC_Raw_Data_for_FY22[[#This Row],[25th]])/25)*5) + AAMC_Raw_Data_for_FY22[[#This Row],[25th]]","v":689890},{"$f":"(((AAMC_Raw_Data_for_FY22[[#This Row],[Median]]-AAMC_Raw_Data_for_FY22[[#This Row],[25th]])/25)*10) + AAMC_Raw_Data_for_FY22[[#This Row],[25th]]","v":732333},{"$f":"(((AAMC_Raw_Data_for_FY22[[#This Row],[Median]]-AAMC_Raw_Data_for_FY22[[#This Row],[25th]])/25)*15) + AAMC_Raw_Data_for_FY22[[#This Row],[25th]]","v":774776},{"$f":"(((AAMC_Raw_Data_for_FY22[[#This Row],[Median]]-AAMC_Raw_Data_for_FY22[[#This Row],[25th]])/25)*20) + AAMC_Raw_Data_for_FY22[[#This Row],[25th]]","v":817219},859662,{"$f":"(((AAMC_Raw_Data_for_FY22[[#This Row],[75th]]-AAMC_Raw_Data_for_FY22[[#This Row],[Median]])/25)*5) + AAMC_Raw_Data_for_FY22[[#This Row],[Median]]","v":881451.4},{"$f":"(((AAMC_Raw_Data_for_FY22[[#This Row],[75th]]-AAMC_Raw_Data_for_FY22[[#This Row],[Median]])/25)*10) + AAMC_Raw_Data_for_FY22[[#This Row],[Median]]","v":903240.8},{"$f":"(((AAMC_Raw_Data_for_FY22[[#This Row],[75th]]-AAMC_Raw_Data_for_FY22[[#This Row],[Median]])/25)*15) + AAMC_Raw_Data_for_FY22[[#This Row],[Median]]","v":925030.2},{"$f":"(((AAMC_Raw_Data_for_FY22[[#This Row],[75th]]-AAMC_Raw_Data_for_FY22[[#This Row],[Median]])/25)*20) + AAMC_Raw_Data_for_FY22[[#This Row],[Median]]","v":946819.6},968609,{"$f":"(((AAMC_Raw_Data_for_FY22[[#This Row],[75th]]-AAMC_Raw_Data_for_FY22[[#This Row],[Median]])/25)*30) + AAMC_Raw_Data_for_FY22[[#This Row],[Median]]","v":990398.4},{"$f":"(((AAMC_Raw_Data_for_FY22[[#This Row],[75th]]-AAMC_Raw_Data_for_FY22[[#This Row],[Median]])/25)*35) + AAMC_Raw_Data_for_FY22[[#This Row],[Median]]","v":1012187.8},{"$f":"(((AAMC_Raw_Data_for_FY22[[#This Row],[75th]]-AAMC_Raw_Data_for_FY22[[#This Row],[Median]])/25)*40) + AAMC_Raw_Data_for_FY22[[#This Row],[Median]]","v":1033977.2}]
[{"$f":"AAMC_Raw_Data_for_FY22[[#This Row],[Source]]&AAMC_Raw_Data_for_FY22[[#This Row],[Type]]&AAMC_Raw_Data_for_FY22[[#This Row],[School Subset]]&AAMC_Raw_Data_for_FY22[[#This Row],[Rank]]&AAMC_Raw_Data_for_FY22[[#This Row],[Degree]]&AAMC_Raw_Data_for_FY22[[#This Row],[Department / Specialty]]&\"L\"","v":"AAMCAcademicPublicInstructorMDNeurosurgeryL"},"Neurosurgery",5,"AAMC","Academic","Public","Instructor","MD","2021-2022",75490,{"$f":"(((AAMC_Raw_Data_for_FY22[[#This Row],[Median]]-AAMC_Raw_Data_for_FY22[[#This Row],[25th]])/25)*5) + AAMC_Raw_Data_for_FY22[[#This Row],[25th]]","v":77077.8},{"$f":"(((AAMC_Raw_Data_for_FY22[[#This Row],[Median]]-AAMC_Raw_Data_for_FY22[[#This Row],[25th]])/25)*10) + AAMC_Raw_Data_for_FY22[[#This Row],[25th]]","v":78665.600000000006},{"$f":"(((AAMC_Raw_Data_for_FY22[[#This Row],[Median]]-AAMC_Raw_Data_for_FY22[[#This Row],[25th]])/25)*15) + AAMC_Raw_Data_for_FY22[[#This Row],[25th]]","v":80253.399999999994},{"$f":"(((AAMC_Raw_Data_for_FY22[[#This Row],[Median]]-AAMC_Raw_Data_for_FY22[[#This Row],[25th]])/25)*20) + AAMC_Raw_Data_for_FY22[[#This Row],[25th]]","v":81841.2},83429,{"$f":"(((AAMC_Raw_Data_for_FY22[[#This Row],[75th]]-AAMC_Raw_Data_for_FY22[[#This Row],[Median]])/25)*5) + AAMC_Raw_Data_for_FY22[[#This Row],[Median]]","v":86744.8},{"$f":"(((AAMC_Raw_Data_for_FY22[[#This Row],[75th]]-AAMC_Raw_Data_for_FY22[[#This Row],[Median]])/25)*10) + AAMC_Raw_Data_for_FY22[[#This Row],[Median]]","v":90060.6},{"$f":"(((AAMC_Raw_Data_for_FY22[[#This Row],[75th]]-AAMC_Raw_Data_for_FY22[[#This Row],[Median]])/25)*15) + AAMC_Raw_Data_for_FY22[[#This Row],[Median]]","v":93376.4},{"$f":"(((AAMC_Raw_Data_for_FY22[[#This Row],[75th]]-AAMC_Raw_Data_for_FY22[[#This Row],[Median]])/25)*20) + AAMC_Raw_Data_for_FY22[[#This Row],[Median]]","v":96692.2},100008,{"$f":"(((AAMC_Raw_Data_for_FY22[[#This Row],[75th]]-AAMC_Raw_Data_for_FY22[[#This Row],[Median]])/25)*30) + AAMC_Raw_Data_for_FY22[[#This Row],[Median]]","v":103323.8},{"$f":"(((AAMC_Raw_Data_for_FY22[[#This Row],[75th]]-AAMC_Raw_Data_for_FY22[[#This Row],[Median]])/25)*35) + AAMC_Raw_Data_for_FY22[[#This Row],[Median]]","v":106639.6},{"$f":"(((AAMC_Raw_Data_for_FY22[[#This Row],[75th]]-AAMC_Raw_Data_for_FY22[[#This Row],[Median]])/25)*40) + AAMC_Raw_Data_for_FY22[[#This Row],[Median]]","v":109955.4}]
[{"$f":"AAMC_Raw_Data_for_FY22[[#This Row],[Source]]&AAMC_Raw_Data_for_FY22[[#This Row],[Type]]&AAMC_Raw_Data_for_FY22[[#This Row],[School Subset]]&AAMC_Raw_Data_for_FY22[[#This Row],[Rank]]&AAMC_Raw_Data_for_FY22[[#This Row],[Degree]]&AAMC_Raw_Data_for_FY22[[#This Row],[Department / Specialty]]&\"L\"","v":"AAMCAcademicPublicAssistantMDNeurosurgeryL"},"Neurosurgery",4,"AAMC","Academic","Public","Assistant","MD","2021-2022",512315,{"$f":"(((AAMC_Raw_Data_for_FY22[[#This Row],[Median]]-AAMC_Raw_Data_for_FY22[[#This Row],[25th]])/25)*5) + AAMC_Raw_Data_for_FY22[[#This Row],[25th]]","v":532638.4},{"$f":"(((AAMC_Raw_Data_for_FY22[[#This Row],[Median]]-AAMC_Raw_Data_for_FY22[[#This Row],[25th]])/25)*10) + AAMC_Raw_Data_for_FY22[[#This Row],[25th]]","v":552961.80000000005},{"$f":"(((AAMC_Raw_Data_for_FY22[[#This Row],[Median]]-AAMC_Raw_Data_for_FY22[[#This Row],[25th]])/25)*15) + AAMC_Raw_Data_for_FY22[[#This Row],[25th]]","v":573285.19999999995},{"$f":"(((AAMC_Raw_Data_for_FY22[[#This Row],[Median]]-AAMC_Raw_Data_for_FY22[[#This Row],[25th]])/25)*20) + AAMC_Raw_Data_for_FY22[[#This Row],[25th]]","v":593608.6},613932,{"$f":"(((AAMC_Raw_Data_for_FY22[[#This Row],[75th]]-AAMC_Raw_Data_for_FY22[[#This Row],[Median]])/25)*5) + AAMC_Raw_Data_for_FY22[[#This Row],[Median]]","v":650571},{"$f":"(((AAMC_Raw_Data_for_FY22[[#This Row],[75th]]-AAMC_Raw_Data_for_FY22[[#This Row],[Median]])/25)*10) + AAMC_Raw_Data_for_FY22[[#This Row],[Median]]","v":687210},{"$f":"(((AAMC_Raw_Data_for_FY22[[#This Row],[75th]]-AAMC_Raw_Data_for_FY22[[#This Row],[Median]])/25)*15) + AAMC_Raw_Data_for_FY22[[#This Row],[Median]]","v":723849},{"$f":"(((AAMC_Raw_Data_for_FY22[[#This Row],[75th]]-AAMC_Raw_Data_for_FY22[[#This Row],[Median]])/25)*20) + AAMC_Raw_Data_for_FY22[[#This Row],[Median]]","v":760488},797127,{"$f":"(((AAMC_Raw_Data_for_FY22[[#This Row],[75th]]-AAMC_Raw_Data_for_FY22[[#This Row],[Median]])/25)*30) + AAMC_Raw_Data_for_FY22[[#This Row],[Median]]","v":833766},{"$f":"(((AAMC_Raw_Data_for_FY22[[#This Row],[75th]]-AAMC_Raw_Data_for_FY22[[#This Row],[Median]])/25)*35) + AAMC_Raw_Data_for_FY22[[#This Row],[Median]]","v":870405},{"$f":"(((AAMC_Raw_Data_for_FY22[[#This Row],[75th]]-AAMC_Raw_Data_for_FY22[[#This Row],[Median]])/25)*40) + AAMC_Raw_Data_for_FY22[[#This Row],[Median]]","v":907044}]
[{"$f":"AAMC_Raw_Data_for_FY22[[#This Row],[Source]]&AAMC_Raw_Data_for_FY22[[#This Row],[Type]]&AAMC_Raw_Data_for_FY22[[#This Row],[School Subset]]&AAMC_Raw_Data_for_FY22[[#This Row],[Rank]]&AAMC_Raw_Data_for_FY22[[#This Row],[Degree]]&AAMC_Raw_Data_for_FY22[[#This Row],[Department / Specialty]]&\"L\"","v":"AAMCAcademicPublicAssociateMDNeurosurgeryL"},"Neurosurgery",3,"AAMC","Academic","Public","Associate","MD","2021-2022",572012,{"$f":"(((AAMC_Raw_Data_for_FY22[[#This Row],[Median]]-AAMC_Raw_Data_for_FY22[[#This Row],[25th]])/25)*5) + AAMC_Raw_Data_for_FY22[[#This Row],[25th]]","v":603018},{"$f":"(((AAMC_Raw_Data_for_FY22[[#This Row],[Median]]-AAMC_Raw_Data_for_FY22[[#This Row],[25th]])/25)*10) + AAMC_Raw_Data_for_FY22[[#This Row],[25th]]","v":634024},{"$f":"(((AAMC_Raw_Data_for_FY22[[#This Row],[Median]]-AAMC_Raw_Data_for_FY22[[#This Row],[25th]])/25)*15) + AAMC_Raw_Data_for_FY22[[#This Row],[25th]]","v":665030},{"$f":"(((AAMC_Raw_Data_for_FY22[[#This Row],[Median]]-AAMC_Raw_Data_for_FY22[[#This Row],[25th]])/25)*20) + AAMC_Raw_Data_for_FY22[[#This Row],[25th]]","v":696036},727042,{"$f":"(((AAMC_Raw_Data_for_FY22[[#This Row],[75th]]-AAMC_Raw_Data_for_FY22[[#This Row],[Median]])/25)*5) + AAMC_Raw_Data_for_FY22[[#This Row],[Median]]","v":763025.4},{"$f":"(((AAMC_Raw_Data_for_FY22[[#This Row],[75th]]-AAMC_Raw_Data_for_FY22[[#This Row],[Median]])/25)*10) + AAMC_Raw_Data_for_FY22[[#This Row],[Median]]","v":799008.8},{"$f":"(((AAMC_Raw_Data_for_FY22[[#This Row],[75th]]-AAMC_Raw_Data_for_FY22[[#This Row],[Median]])/25)*15) + AAMC_Raw_Data_for_FY22[[#This Row],[Median]]","v":834992.2},{"$f":"(((AAMC_Raw_Data_for_FY22[[#This Row],[75th]]-AAMC_Raw_Data_for_FY22[[#This Row],[Median]])/25)*20) + AAMC_Raw_Data_for_FY22[[#This Row],[Median]]","v":870975.6},906959,{"$f":"(((AAMC_Raw_Data_for_FY22[[#This Row],[75th]]-AAMC_Raw_Data_for_FY22[[#This Row],[Median]])/25)*30) + AAMC_Raw_Data_for_FY22[[#This Row],[Median]]","v":942942.4},{"$f":"(((AAMC_Raw_Data_for_FY22[[#This Row],[75th]]-AAMC_Raw_Data_for_FY22[[#This Row],[Median]])/25)*35) + AAMC_Raw_Data_for_FY22[[#This Row],[Median]]","v":978925.8},{"$f":"(((AAMC_Raw_Data_for_FY22[[#This Row],[75th]]-AAMC_Raw_Data_for_FY22[[#This Row],[Median]])/25)*40) + AAMC_Raw_Data_for_FY22[[#This Row],[Median]]","v":1014909.2}]
[{"$f":"AAMC_Raw_Data_for_FY22[[#This Row],[Source]]&AAMC_Raw_Data_for_FY22[[#This Row],[Type]]&AAMC_Raw_Data_for_FY22[[#This Row],[School Subset]]&AAMC_Raw_Data_for_FY22[[#This Row],[Rank]]&AAMC_Raw_Data_for_FY22[[#This Row],[Degree]]&AAMC_Raw_Data_for_FY22[[#This Row],[Department / Specialty]]&\"L\"","v":"AAMCAcademicPublicProfessorMDNeurosurgeryL"},"Neurosurgery",2,"AAMC","Academic","Public","Professor","MD","2021-2022",592225,{"$f":"(((AAMC_Raw_Data_for_FY22[[#This Row],[Median]]-AAMC_Raw_Data_for_FY22[[#This Row],[25th]])/25)*5) + AAMC_Raw_Data_for_FY22[[#This Row],[25th]]","v":622312.80000000005},{"$f":"(((AAMC_Raw_Data_for_FY22[[#This Row],[Median]]-AAMC_Raw_Data_for_FY22[[#This Row],[25th]])/25)*10) + AAMC_Raw_Data_for_FY22[[#This Row],[25th]]","v":652400.6},{"$f":"(((AAMC_Raw_Data_for_FY22[[#This Row],[Median]]-AAMC_Raw_Data_for_FY22[[#This Row],[25th]])/25)*15) + AAMC_Raw_Data_for_FY22[[#This Row],[25th]]","v":682488.4},{"$f":"(((AAMC_Raw_Data_for_FY22[[#This Row],[Median]]-AAMC_Raw_Data_for_FY22[[#This Row],[25th]])/25)*20) + AAMC_Raw_Data_for_FY22[[#This Row],[25th]]","v":712576.2},742664,{"$f":"(((AAMC_Raw_Data_for_FY22[[#This Row],[75th]]-AAMC_Raw_Data_for_FY22[[#This Row],[Median]])/25)*5) + AAMC_Raw_Data_for_FY22[[#This Row],[Median]]","v":781066.2},{"$f":"(((AAMC_Raw_Data_for_FY22[[#This Row],[75th]]-AAMC_Raw_Data_for_FY22[[#This Row],[Median]])/25)*10) + AAMC_Raw_Data_for_FY22[[#This Row],[Median]]","v":819468.4},{"$f":"(((AAMC_Raw_Data_for_FY22[[#This Row],[75th]]-AAMC_Raw_Data_for_FY22[[#This Row],[Median]])/25)*15) + AAMC_Raw_Data_for_FY22[[#This Row],[Median]]","v":857870.6},{"$f":"(((AAMC_Raw_Data_for_FY22[[#This Row],[75th]]-AAMC_Raw_Data_for_FY22[[#This Row],[Median]])/25)*20) + AAMC_Raw_Data_for_FY22[[#This Row],[Median]]","v":896272.8},934675,{"$f":"(((AAMC_Raw_Data_for_FY22[[#This Row],[75th]]-AAMC_Raw_Data_for_FY22[[#This Row],[Median]])/25)*30) + AAMC_Raw_Data_for_FY22[[#This Row],[Median]]","v":973077.2},{"$f":"(((AAMC_Raw_Data_for_FY22[[#This Row],[75th]]-AAMC_Raw_Data_for_FY22[[#This Row],[Median]])/25)*35) + AAMC_Raw_Data_for_FY22[[#This Row],[Median]]","v":1011479.3999999999},{"$f":"(((AAMC_Raw_Data_for_FY22[[#This Row],[75th]]-AAMC_Raw_Data_for_FY22[[#This Row],[Median]])/25)*40) + AAMC_Raw_Data_for_FY22[[#This Row],[Median]]","v":1049881.6000000001}]
[{"$f":"AAMC_Raw_Data_for_FY22[[#This Row],[Source]]&AAMC_Raw_Data_for_FY22[[#This Row],[Type]]&AAMC_Raw_Data_for_FY22[[#This Row],[School Subset]]&AAMC_Raw_Data_for_FY22[[#This Row],[Rank]]&AAMC_Raw_Data_for_FY22[[#This Row],[Degree]]&AAMC_Raw_Data_for_FY22[[#This Row],[Department / Specialty]]&\"L\"","v":"AAMCAcademicPublicChiefMDNeurosurgeryL"},"Neurosurgery",6,"AAMC","Academic","Public","Chief","MD","2021-2022",653813,{"$f":"(((AAMC_Raw_Data_for_FY22[[#This Row],[Median]]-AAMC_Raw_Data_for_FY22[[#This Row],[25th]])/25)*5) + AAMC_Raw_Data_for_FY22[[#This Row],[25th]]","v":699559},{"$f":"(((AAMC_Raw_Data_for_FY22[[#This Row],[Median]]-AAMC_Raw_Data_for_FY22[[#This Row],[25th]])/25)*10) + AAMC_Raw_Data_for_FY22[[#This Row],[25th]]","v":745305},{"$f":"(((AAMC_Raw_Data_for_FY22[[#This Row],[Median]]-AAMC_Raw_Data_for_FY22[[#This Row],[25th]])/25)*15) + AAMC_Raw_Data_for_FY22[[#This Row],[25th]]","v":791051},{"$f":"(((AAMC_Raw_Data_for_FY22[[#This Row],[Median]]-AAMC_Raw_Data_for_FY22[[#This Row],[25th]])/25)*20) + AAMC_Raw_Data_for_FY22[[#This Row],[25th]]","v":836797},882543,{"$f":"(((AAMC_Raw_Data_for_FY22[[#This Row],[75th]]-AAMC_Raw_Data_for_FY22[[#This Row],[Median]])/25)*5) + AAMC_Raw_Data_for_FY22[[#This Row],[Median]]","v":899350.2},{"$f":"(((AAMC_Raw_Data_for_FY22[[#This Row],[75th]]-AAMC_Raw_Data_for_FY22[[#This Row],[Median]])/25)*10) + AAMC_Raw_Data_for_FY22[[#This Row],[Median]]","v":916157.4},{"$f":"(((AAMC_Raw_Data_for_FY22[[#This Row],[75th]]-AAMC_Raw_Data_for_FY22[[#This Row],[Median]])/25)*15) + AAMC_Raw_Data_for_FY22[[#This Row],[Median]]","v":932964.6},{"$f":"(((AAMC_Raw_Data_for_FY22[[#This Row],[75th]]-AAMC_Raw_Data_for_FY22[[#This Row],[Median]])/25)*20) + AAMC_Raw_Data_for_FY22[[#This Row],[Median]]","v":949771.8},966579,{"$f":"(((AAMC_Raw_Data_for_FY22[[#This Row],[75th]]-AAMC_Raw_Data_for_FY22[[#This Row],[Median]])/25)*30) + AAMC_Raw_Data_for_FY22[[#This Row],[Median]]","v":983386.2},{"$f":"(((AAMC_Raw_Data_for_FY22[[#This Row],[75th]]-AAMC_Raw_Data_for_FY22[[#This Row],[Median]])/25)*35) + AAMC_Raw_Data_for_FY22[[#This Row],[Median]]","v":1000193.4},{"$f":"(((AAMC_Raw_Data_for_FY22[[#This Row],[75th]]-AAMC_Raw_Data_for_FY22[[#This Row],[Median]])/25)*40) + AAMC_Raw_Data_for_FY22[[#This Row],[Median]]","v":1017000.6}]
[{"$f":"AAMC_Raw_Data_for_FY22[[#This Row],[Source]]&AAMC_Raw_Data_for_FY22[[#This Row],[Type]]&AAMC_Raw_Data_for_FY22[[#This Row],[School Subset]]&AAMC_Raw_Data_for_FY22[[#This Row],[Rank]]&AAMC_Raw_Data_for_FY22[[#This Row],[Degree]]&AAMC_Raw_Data_for_FY22[[#This Row],[Department / Specialty]]&\"L\"","v":"AAMCAcademicPublicChairMDNeurosurgeryL"},"Neurosurgery",1,"AAMC","Academic","Public","Chair","MD","2021-2022",951312,{"$f":"(((AAMC_Raw_Data_for_FY22[[#This Row],[Median]]-AAMC_Raw_Data_for_FY22[[#This Row],[25th]])/25)*5) + AAMC_Raw_Data_for_FY22[[#This Row],[25th]]","v":983552},{"$f":"(((AAMC_Raw_Data_for_FY22[[#This Row],[Median]]-AAMC_Raw_Data_for_FY22[[#This Row],[25th]])/25)*10) + AAMC_Raw_Data_for_FY22[[#This Row],[25th]]","v":1015792},{"$f":"(((AAMC_Raw_Data_for_FY22[[#This Row],[Median]]-AAMC_Raw_Data_for_FY22[[#This Row],[25th]])/25)*15) + AAMC_Raw_Data_for_FY22[[#This Row],[25th]]","v":1048032},{"$f":"(((AAMC_Raw_Data_for_FY22[[#This Row],[Median]]-AAMC_Raw_Data_for_FY22[[#This Row],[25th]])/25)*20) + AAMC_Raw_Data_for_FY22[[#This Row],[25th]]","v":1080272},1112512,{"$f":"(((AAMC_Raw_Data_for_FY22[[#This Row],[75th]]-AAMC_Raw_Data_for_FY22[[#This Row],[Median]])/25)*5) + AAMC_Raw_Data_for_FY22[[#This Row],[Median]]","v":1153559.6000000001},{"$f":"(((AAMC_Raw_Data_for_FY22[[#This Row],[75th]]-AAMC_Raw_Data_for_FY22[[#This Row],[Median]])/25)*10) + AAMC_Raw_Data_for_FY22[[#This Row],[Median]]","v":1194607.2},{"$f":"(((AAMC_Raw_Data_for_FY22[[#This Row],[75th]]-AAMC_Raw_Data_for_FY22[[#This Row],[Median]])/25)*15) + AAMC_Raw_Data_for_FY22[[#This Row],[Median]]","v":1235654.8},{"$f":"(((AAMC_Raw_Data_for_FY22[[#This Row],[75th]]-AAMC_Raw_Data_for_FY22[[#This Row],[Median]])/25)*20) + AAMC_Raw_Data_for_FY22[[#This Row],[Median]]","v":1276702.3999999999},1317750,{"$f":"(((AAMC_Raw_Data_for_FY22[[#This Row],[75th]]-AAMC_Raw_Data_for_FY22[[#This Row],[Median]])/25)*30) + AAMC_Raw_Data_for_FY22[[#This Row],[Median]]","v":1358797.6},{"$f":"(((AAMC_Raw_Data_for_FY22[[#This Row],[75th]]-AAMC_Raw_Data_for_FY22[[#This Row],[Median]])/25)*35) + AAMC_Raw_Data_for_FY22[[#This Row],[Median]]","v":1399845.2},{"$f":"(((AAMC_Raw_Data_for_FY22[[#This Row],[75th]]-AAMC_Raw_Data_for_FY22[[#This Row],[Median]])/25)*40) + AAMC_Raw_Data_for_FY22[[#This Row],[Median]]","v":1440892.8}]
[{"$f":"AAMC_Raw_Data_for_FY22[[#This Row],[Source]]&AAMC_Raw_Data_for_FY22[[#This Row],[Type]]&AAMC_Raw_Data_for_FY22[[#This Row],[School Subset]]&AAMC_Raw_Data_for_FY22[[#This Row],[Rank]]&AAMC_Raw_Data_for_FY22[[#This Row],[Degree]]&AAMC_Raw_Data_for_FY22[[#This Row],[Department / Specialty]]&\"L\"","v":"AAMCAcademicPublicInstructorMDOrthopedic Surgery TotalL"},"Orthopedic Surgery Total",5,"AAMC","Academic","Public","Instructor","MD","2021-2022",67950,{"$f":"(((AAMC_Raw_Data_for_FY22[[#This Row],[Median]]-AAMC_Raw_Data_for_FY22[[#This Row],[25th]])/25)*5) + AAMC_Raw_Data_for_FY22[[#This Row],[25th]]","v":69585.600000000006},{"$f":"(((AAMC_Raw_Data_for_FY22[[#This Row],[Median]]-AAMC_Raw_Data_for_FY22[[#This Row],[25th]])/25)*10) + AAMC_Raw_Data_for_FY22[[#This Row],[25th]]","v":71221.2},{"$f":"(((AAMC_Raw_Data_for_FY22[[#This Row],[Median]]-AAMC_Raw_Data_for_FY22[[#This Row],[25th]])/25)*15) + AAMC_Raw_Data_for_FY22[[#This Row],[25th]]","v":72856.800000000003},{"$f":"(((AAMC_Raw_Data_for_FY22[[#This Row],[Median]]-AAMC_Raw_Data_for_FY22[[#This Row],[25th]])/25)*20) + AAMC_Raw_Data_for_FY22[[#This Row],[25th]]","v":74492.399999999994},76128,{"$f":"(((AAMC_Raw_Data_for_FY22[[#This Row],[75th]]-AAMC_Raw_Data_for_FY22[[#This Row],[Median]])/25)*5) + AAMC_Raw_Data_for_FY22[[#This Row],[Median]]","v":96761.4},{"$f":"(((AAMC_Raw_Data_for_FY22[[#This Row],[75th]]-AAMC_Raw_Data_for_FY22[[#This Row],[Median]])/25)*10) + AAMC_Raw_Data_for_FY22[[#This Row],[Median]]","v":117394.8},{"$f":"(((AAMC_Raw_Data_for_FY22[[#This Row],[75th]]-AAMC_Raw_Data_for_FY22[[#This Row],[Median]])/25)*15) + AAMC_Raw_Data_for_FY22[[#This Row],[Median]]","v":138028.20000000001},{"$f":"(((AAMC_Raw_Data_for_FY22[[#This Row],[75th]]-AAMC_Raw_Data_for_FY22[[#This Row],[Median]])/25)*20) + AAMC_Raw_Data_for_FY22[[#This Row],[Median]]","v":158661.6},179295,{"$f":"(((AAMC_Raw_Data_for_FY22[[#This Row],[75th]]-AAMC_Raw_Data_for_FY22[[#This Row],[Median]])/25)*30) + AAMC_Raw_Data_for_FY22[[#This Row],[Median]]","v":199928.40000000002},{"$f":"(((AAMC_Raw_Data_for_FY22[[#This Row],[75th]]-AAMC_Raw_Data_for_FY22[[#This Row],[Median]])/25)*35) + AAMC_Raw_Data_for_FY22[[#This Row],[Median]]","v":220561.80000000002},{"$f":"(((AAMC_Raw_Data_for_FY22[[#This Row],[75th]]-AAMC_Raw_Data_for_FY22[[#This Row],[Median]])/25)*40) + AAMC_Raw_Data_for_FY22[[#This Row],[Median]]","v":241195.2}]
[{"$f":"AAMC_Raw_Data_for_FY22[[#This Row],[Source]]&AAMC_Raw_Data_for_FY22[[#This Row],[Type]]&AAMC_Raw_Data_for_FY22[[#This Row],[School Subset]]&AAMC_Raw_Data_for_FY22[[#This Row],[Rank]]&AAMC_Raw_Data_for_FY22[[#This Row],[Degree]]&AAMC_Raw_Data_for_FY22[[#This Row],[Department / Specialty]]&\"L\"","v":"AAMCAcademicPublicAssistantMDOrthopedic Surgery TotalL"},"Orthopedic Surgery Total",4,"AAMC","Academic","Public","Assistant","MD","2021-2022",416678,{"$f":"(((AAMC_Raw_Data_for_FY22[[#This Row],[Median]]-AAMC_Raw_Data_for_FY22[[#This Row],[25th]])/25)*5) + AAMC_Raw_Data_for_FY22[[#This Row],[25th]]","v":438389.4},{"$f":"(((AAMC_Raw_Data_for_FY22[[#This Row],[Median]]-AAMC_Raw_Data_for_FY22[[#This Row],[25th]])/25)*10) + AAMC_Raw_Data_for_FY22[[#This Row],[25th]]","v":460100.8},{"$f":"(((AAMC_Raw_Data_for_FY22[[#This Row],[Median]]-AAMC_Raw_Data_for_FY22[[#This Row],[25th]])/25)*15) + AAMC_Raw_Data_for_FY22[[#This Row],[25th]]","v":481812.2},{"$f":"(((AAMC_Raw_Data_for_FY22[[#This Row],[Median]]-AAMC_Raw_Data_for_FY22[[#This Row],[25th]])/25)*20) + AAMC_Raw_Data_for_FY22[[#This Row],[25th]]","v":503523.6},525235,{"$f":"(((AAMC_Raw_Data_for_FY22[[#This Row],[75th]]-AAMC_Raw_Data_for_FY22[[#This Row],[Median]])/25)*5) + AAMC_Raw_Data_for_FY22[[#This Row],[Median]]","v":561888},{"$f":"(((AAMC_Raw_Data_for_FY22[[#This Row],[75th]]-AAMC_Raw_Data_for_FY22[[#This Row],[Median]])/25)*10) + AAMC_Raw_Data_for_FY22[[#This Row],[Median]]","v":598541},{"$f":"(((AAMC_Raw_Data_for_FY22[[#This Row],[75th]]-AAMC_Raw_Data_for_FY22[[#This Row],[Median]])/25)*15) + AAMC_Raw_Data_for_FY22[[#This Row],[Median]]","v":635194},{"$f":"(((AAMC_Raw_Data_for_FY22[[#This Row],[75th]]-AAMC_Raw_Data_for_FY22[[#This Row],[Median]])/25)*20) + AAMC_Raw_Data_for_FY22[[#This Row],[Median]]","v":671847},708500,{"$f":"(((AAMC_Raw_Data_for_FY22[[#This Row],[75th]]-AAMC_Raw_Data_for_FY22[[#This Row],[Median]])/25)*30) + AAMC_Raw_Data_for_FY22[[#This Row],[Median]]","v":745153},{"$f":"(((AAMC_Raw_Data_for_FY22[[#This Row],[75th]]-AAMC_Raw_Data_for_FY22[[#This Row],[Median]])/25)*35) + AAMC_Raw_Data_for_FY22[[#This Row],[Median]]","v":781806},{"$f":"(((AAMC_Raw_Data_for_FY22[[#This Row],[75th]]-AAMC_Raw_Data_for_FY22[[#This Row],[Median]])/25)*40) + AAMC_Raw_Data_for_FY22[[#This Row],[Median]]","v":818459}]
[{"$f":"AAMC_Raw_Data_for_FY22[[#This Row],[Source]]&AAMC_Raw_Data_for_FY22[[#This Row],[Type]]&AAMC_Raw_Data_for_FY22[[#This Row],[School Subset]]&AAMC_Raw_Data_for_FY22[[#This Row],[Rank]]&AAMC_Raw_Data_for_FY22[[#This Row],[Degree]]&AAMC_Raw_Data_for_FY22[[#This Row],[Department / Specialty]]&\"L\"","v":"AAMCAcademicPublicAssociateMDOrthopedic Surgery TotalL"},"Orthopedic Surgery Total",3,"AAMC","Academic","Public","Associate","MD","2021-2022",505897,{"$f":"(((AAMC_Raw_Data_for_FY22[[#This Row],[Median]]-AAMC_Raw_Data_for_FY22[[#This Row],[25th]])/25)*5) + AAMC_Raw_Data_for_FY22[[#This Row],[25th]]","v":528140.19999999995},{"$f":"(((AAMC_Raw_Data_for_FY22[[#This Row],[Median]]-AAMC_Raw_Data_for_FY22[[#This Row],[25th]])/25)*10) + AAMC_Raw_Data_for_FY22[[#This Row],[25th]]","v":550383.4},{"$f":"(((AAMC_Raw_Data_for_FY22[[#This Row],[Median]]-AAMC_Raw_Data_for_FY22[[#This Row],[25th]])/25)*15) + AAMC_Raw_Data_for_FY22[[#This Row],[25th]]","v":572626.6},{"$f":"(((AAMC_Raw_Data_for_FY22[[#This Row],[Median]]-AAMC_Raw_Data_for_FY22[[#This Row],[25th]])/25)*20) + AAMC_Raw_Data_for_FY22[[#This Row],[25th]]","v":594869.80000000005},617113,{"$f":"(((AAMC_Raw_Data_for_FY22[[#This Row],[75th]]-AAMC_Raw_Data_for_FY22[[#This Row],[Median]])/25)*5) + AAMC_Raw_Data_for_FY22[[#This Row],[Median]]","v":649497.19999999995},{"$f":"(((AAMC_Raw_Data_for_FY22[[#This Row],[75th]]-AAMC_Raw_Data_for_FY22[[#This Row],[Median]])/25)*10) + AAMC_Raw_Data_for_FY22[[#This Row],[Median]]","v":681881.4},{"$f":"(((AAMC_Raw_Data_for_FY22[[#This Row],[75th]]-AAMC_Raw_Data_for_FY22[[#This Row],[Median]])/25)*15) + AAMC_Raw_Data_for_FY22[[#This Row],[Median]]","v":714265.59999999998},{"$f":"(((AAMC_Raw_Data_for_FY22[[#This Row],[75th]]-AAMC_Raw_Data_for_FY22[[#This Row],[Median]])/25)*20) + AAMC_Raw_Data_for_FY22[[#This Row],[Median]]","v":746649.8},779034,{"$f":"(((AAMC_Raw_Data_for_FY22[[#This Row],[75th]]-AAMC_Raw_Data_for_FY22[[#This Row],[Median]])/25)*30) + AAMC_Raw_Data_for_FY22[[#This Row],[Median]]","v":811418.2},{"$f":"(((AAMC_Raw_Data_for_FY22[[#This Row],[75th]]-AAMC_Raw_Data_for_FY22[[#This Row],[Median]])/25)*35) + AAMC_Raw_Data_for_FY22[[#This Row],[Median]]","v":843802.4},{"$f":"(((AAMC_Raw_Data_for_FY22[[#This Row],[75th]]-AAMC_Raw_Data_for_FY22[[#This Row],[Median]])/25)*40) + AAMC_Raw_Data_for_FY22[[#This Row],[Median]]","v":876186.6}]
[{"$f":"AAMC_Raw_Data_for_FY22[[#This Row],[Source]]&AAMC_Raw_Data_for_FY22[[#This Row],[Type]]&AAMC_Raw_Data_for_FY22[[#This Row],[School Subset]]&AAMC_Raw_Data_for_FY22[[#This Row],[Rank]]&AAMC_Raw_Data_for_FY22[[#This Row],[Degree]]&AAMC_Raw_Data_for_FY22[[#This Row],[Department / Specialty]]&\"L\"","v":"AAMCAcademicPublicProfessorMDOrthopedic Surgery TotalL"},"Orthopedic Surgery Total",2,"AAMC","Academic","Public","Professor","MD","2021-2022",496160,{"$f":"(((AAMC_Raw_Data_for_FY22[[#This Row],[Median]]-AAMC_Raw_Data_for_FY22[[#This Row],[25th]])/25)*5) + AAMC_Raw_Data_for_FY22[[#This Row],[25th]]","v":523151.4},{"$f":"(((AAMC_Raw_Data_for_FY22[[#This Row],[Median]]-AAMC_Raw_Data_for_FY22[[#This Row],[25th]])/25)*10) + AAMC_Raw_Data_for_FY22[[#This Row],[25th]]","v":550142.80000000005},{"$f":"(((AAMC_Raw_Data_for_FY22[[#This Row],[Median]]-AAMC_Raw_Data_for_FY22[[#This Row],[25th]])/25)*15) + AAMC_Raw_Data_for_FY22[[#This Row],[25th]]","v":577134.19999999995},{"$f":"(((AAMC_Raw_Data_for_FY22[[#This Row],[Median]]-AAMC_Raw_Data_for_FY22[[#This Row],[25th]])/25)*20) + AAMC_Raw_Data_for_FY22[[#This Row],[25th]]","v":604125.6},631117,{"$f":"(((AAMC_Raw_Data_for_FY22[[#This Row],[75th]]-AAMC_Raw_Data_for_FY22[[#This Row],[Median]])/25)*5) + AAMC_Raw_Data_for_FY22[[#This Row],[Median]]","v":662518.4},{"$f":"(((AAMC_Raw_Data_for_FY22[[#This Row],[75th]]-AAMC_Raw_Data_for_FY22[[#This Row],[Median]])/25)*10) + AAMC_Raw_Data_for_FY22[[#This Row],[Median]]","v":693919.8},{"$f":"(((AAMC_Raw_Data_for_FY22[[#This Row],[75th]]-AAMC_Raw_Data_for_FY22[[#This Row],[Median]])/25)*15) + AAMC_Raw_Data_for_FY22[[#This Row],[Median]]","v":725321.2},{"$f":"(((AAMC_Raw_Data_for_FY22[[#This Row],[75th]]-AAMC_Raw_Data_for_FY22[[#This Row],[Median]])/25)*20) + AAMC_Raw_Data_for_FY22[[#This Row],[Median]]","v":756722.6},788124,{"$f":"(((AAMC_Raw_Data_for_FY22[[#This Row],[75th]]-AAMC_Raw_Data_for_FY22[[#This Row],[Median]])/25)*30) + AAMC_Raw_Data_for_FY22[[#This Row],[Median]]","v":819525.4},{"$f":"(((AAMC_Raw_Data_for_FY22[[#This Row],[75th]]-AAMC_Raw_Data_for_FY22[[#This Row],[Median]])/25)*35) + AAMC_Raw_Data_for_FY22[[#This Row],[Median]]","v":850926.8},{"$f":"(((AAMC_Raw_Data_for_FY22[[#This Row],[75th]]-AAMC_Raw_Data_for_FY22[[#This Row],[Median]])/25)*40) + AAMC_Raw_Data_for_FY22[[#This Row],[Median]]","v":882328.2}]
[{"$f":"AAMC_Raw_Data_for_FY22[[#This Row],[Source]]&AAMC_Raw_Data_for_FY22[[#This Row],[Type]]&AAMC_Raw_Data_for_FY22[[#This Row],[School Subset]]&AAMC_Raw_Data_for_FY22[[#This Row],[Rank]]&AAMC_Raw_Data_for_FY22[[#This Row],[Degree]]&AAMC_Raw_Data_for_FY22[[#This Row],[Department / Specialty]]&\"L\"","v":"AAMCAcademicPublicChiefMDOrthopedic Surgery TotalL"},"Orthopedic Surgery Total",6,"AAMC","Academic","Public","Chief","MD","2021-2022",546136,{"$f":"(((AAMC_Raw_Data_for_FY22[[#This Row],[Median]]-AAMC_Raw_Data_for_FY22[[#This Row],[25th]])/25)*5) + AAMC_Raw_Data_for_FY22[[#This Row],[25th]]","v":578923.4},{"$f":"(((AAMC_Raw_Data_for_FY22[[#This Row],[Median]]-AAMC_Raw_Data_for_FY22[[#This Row],[25th]])/25)*10) + AAMC_Raw_Data_for_FY22[[#This Row],[25th]]","v":611710.80000000005},{"$f":"(((AAMC_Raw_Data_for_FY22[[#This Row],[Median]]-AAMC_Raw_Data_for_FY22[[#This Row],[25th]])/25)*15) + AAMC_Raw_Data_for_FY22[[#This Row],[25th]]","v":644498.19999999995},{"$f":"(((AAMC_Raw_Data_for_FY22[[#This Row],[Median]]-AAMC_Raw_Data_for_FY22[[#This Row],[25th]])/25)*20) + AAMC_Raw_Data_for_FY22[[#This Row],[25th]]","v":677285.6},710073,{"$f":"(((AAMC_Raw_Data_for_FY22[[#This Row],[75th]]-AAMC_Raw_Data_for_FY22[[#This Row],[Median]])/25)*5) + AAMC_Raw_Data_for_FY22[[#This Row],[Median]]","v":745684.2},{"$f":"(((AAMC_Raw_Data_for_FY22[[#This Row],[75th]]-AAMC_Raw_Data_for_FY22[[#This Row],[Median]])/25)*10) + AAMC_Raw_Data_for_FY22[[#This Row],[Median]]","v":781295.4},{"$f":"(((AAMC_Raw_Data_for_FY22[[#This Row],[75th]]-AAMC_Raw_Data_for_FY22[[#This Row],[Median]])/25)*15) + AAMC_Raw_Data_for_FY22[[#This Row],[Median]]","v":816906.6},{"$f":"(((AAMC_Raw_Data_for_FY22[[#This Row],[75th]]-AAMC_Raw_Data_for_FY22[[#This Row],[Median]])/25)*20) + AAMC_Raw_Data_for_FY22[[#This Row],[Median]]","v":852517.8},888129,{"$f":"(((AAMC_Raw_Data_for_FY22[[#This Row],[75th]]-AAMC_Raw_Data_for_FY22[[#This Row],[Median]])/25)*30) + AAMC_Raw_Data_for_FY22[[#This Row],[Median]]","v":923740.2},{"$f":"(((AAMC_Raw_Data_for_FY22[[#This Row],[75th]]-AAMC_Raw_Data_for_FY22[[#This Row],[Median]])/25)*35) + AAMC_Raw_Data_for_FY22[[#This Row],[Median]]","v":959351.4},{"$f":"(((AAMC_Raw_Data_for_FY22[[#This Row],[75th]]-AAMC_Raw_Data_for_FY22[[#This Row],[Median]])/25)*40) + AAMC_Raw_Data_for_FY22[[#This Row],[Median]]","v":994962.6}]
[{"$f":"AAMC_Raw_Data_for_FY22[[#This Row],[Source]]&AAMC_Raw_Data_for_FY22[[#This Row],[Type]]&AAMC_Raw_Data_for_FY22[[#This Row],[School Subset]]&AAMC_Raw_Data_for_FY22[[#This Row],[Rank]]&AAMC_Raw_Data_for_FY22[[#This Row],[Degree]]&AAMC_Raw_Data_for_FY22[[#This Row],[Department / Specialty]]&\"L\"","v":"AAMCAcademicPublicChairMDOrthopedic Surgery TotalL"},"Orthopedic Surgery Total",1,"AAMC","Academic","Public","Chair","MD","2021-2022",851365,{"$f":"(((AAMC_Raw_Data_for_FY22[[#This Row],[Median]]-AAMC_Raw_Data_for_FY22[[#This Row],[25th]])/25)*5) + AAMC_Raw_Data_for_FY22[[#This Row],[25th]]","v":874671.8},{"$f":"(((AAMC_Raw_Data_for_FY22[[#This Row],[Median]]-AAMC_Raw_Data_for_FY22[[#This Row],[25th]])/25)*10) + AAMC_Raw_Data_for_FY22[[#This Row],[25th]]","v":897978.6},{"$f":"(((AAMC_Raw_Data_for_FY22[[#This Row],[Median]]-AAMC_Raw_Data_for_FY22[[#This Row],[25th]])/25)*15) + AAMC_Raw_Data_for_FY22[[#This Row],[25th]]","v":921285.4},{"$f":"(((AAMC_Raw_Data_for_FY22[[#This Row],[Median]]-AAMC_Raw_Data_for_FY22[[#This Row],[25th]])/25)*20) + AAMC_Raw_Data_for_FY22[[#This Row],[25th]]","v":944592.2},967899,{"$f":"(((AAMC_Raw_Data_for_FY22[[#This Row],[75th]]-AAMC_Raw_Data_for_FY22[[#This Row],[Median]])/25)*5) + AAMC_Raw_Data_for_FY22[[#This Row],[Median]]","v":1001007.2},{"$f":"(((AAMC_Raw_Data_for_FY22[[#This Row],[75th]]-AAMC_Raw_Data_for_FY22[[#This Row],[Median]])/25)*10) + AAMC_Raw_Data_for_FY22[[#This Row],[Median]]","v":1034115.4},{"$f":"(((AAMC_Raw_Data_for_FY22[[#This Row],[75th]]-AAMC_Raw_Data_for_FY22[[#This Row],[Median]])/25)*15) + AAMC_Raw_Data_for_FY22[[#This Row],[Median]]","v":1067223.6000000001},{"$f":"(((AAMC_Raw_Data_for_FY22[[#This Row],[75th]]-AAMC_Raw_Data_for_FY22[[#This Row],[Median]])/25)*20) + AAMC_Raw_Data_for_FY22[[#This Row],[Median]]","v":1100331.8},1133440,{"$f":"(((AAMC_Raw_Data_for_FY22[[#This Row],[75th]]-AAMC_Raw_Data_for_FY22[[#This Row],[Median]])/25)*30) + AAMC_Raw_Data_for_FY22[[#This Row],[Median]]","v":1166548.2},{"$f":"(((AAMC_Raw_Data_for_FY22[[#This Row],[75th]]-AAMC_Raw_Data_for_FY22[[#This Row],[Median]])/25)*35) + AAMC_Raw_Data_for_FY22[[#This Row],[Median]]","v":1199656.3999999999},{"$f":"(((AAMC_Raw_Data_for_FY22[[#This Row],[75th]]-AAMC_Raw_Data_for_FY22[[#This Row],[Median]])/25)*40) + AAMC_Raw_Data_for_FY22[[#This Row],[Median]]","v":1232764.6000000001}]
[{"$f":"AAMC_Raw_Data_for_FY22[[#This Row],[Source]]&AAMC_Raw_Data_for_FY22[[#This Row],[Type]]&AAMC_Raw_Data_for_FY22[[#This Row],[School Subset]]&AAMC_Raw_Data_for_FY22[[#This Row],[Rank]]&AAMC_Raw_Data_for_FY22[[#This Row],[Degree]]&AAMC_Raw_Data_for_FY22[[#This Row],[Department / Specialty]]&\"L\"","v":"AAMCAcademicPublicInstructorMDOrthopedic Surgery: GeneralL"},"Orthopedic Surgery: General",5,"AAMC","Academic","Public","Instructor","MD","2021-2022",67950,{"$f":"(((AAMC_Raw_Data_for_FY22[[#This Row],[Median]]-AAMC_Raw_Data_for_FY22[[#This Row],[25th]])/25)*5) + AAMC_Raw_Data_for_FY22[[#This Row],[25th]]","v":69585.600000000006},{"$f":"(((AAMC_Raw_Data_for_FY22[[#This Row],[Median]]-AAMC_Raw_Data_for_FY22[[#This Row],[25th]])/25)*10) + AAMC_Raw_Data_for_FY22[[#This Row],[25th]]","v":71221.2},{"$f":"(((AAMC_Raw_Data_for_FY22[[#This Row],[Median]]-AAMC_Raw_Data_for_FY22[[#This Row],[25th]])/25)*15) + AAMC_Raw_Data_for_FY22[[#This Row],[25th]]","v":72856.800000000003},{"$f":"(((AAMC_Raw_Data_for_FY22[[#This Row],[Median]]-AAMC_Raw_Data_for_FY22[[#This Row],[25th]])/25)*20) + AAMC_Raw_Data_for_FY22[[#This Row],[25th]]","v":74492.399999999994},76128,{"$f":"(((AAMC_Raw_Data_for_FY22[[#This Row],[75th]]-AAMC_Raw_Data_for_FY22[[#This Row],[Median]])/25)*5) + AAMC_Raw_Data_for_FY22[[#This Row],[Median]]","v":78099.600000000006},{"$f":"(((AAMC_Raw_Data_for_FY22[[#This Row],[75th]]-AAMC_Raw_Data_for_FY22[[#This Row],[Median]])/25)*10) + AAMC_Raw_Data_for_FY22[[#This Row],[Median]]","v":80071.199999999997},{"$f":"(((AAMC_Raw_Data_for_FY22[[#This Row],[75th]]-AAMC_Raw_Data_for_FY22[[#This Row],[Median]])/25)*15) + AAMC_Raw_Data_for_FY22[[#This Row],[Median]]","v":82042.8},{"$f":"(((AAMC_Raw_Data_for_FY22[[#This Row],[75th]]-AAMC_Raw_Data_for_FY22[[#This Row],[Median]])/25)*20) + AAMC_Raw_Data_for_FY22[[#This Row],[Median]]","v":84014.399999999994},85986,{"$f":"(((AAMC_Raw_Data_for_FY22[[#This Row],[75th]]-AAMC_Raw_Data_for_FY22[[#This Row],[Median]])/25)*30) + AAMC_Raw_Data_for_FY22[[#This Row],[Median]]","v":87957.6},{"$f":"(((AAMC_Raw_Data_for_FY22[[#This Row],[75th]]-AAMC_Raw_Data_for_FY22[[#This Row],[Median]])/25)*35) + AAMC_Raw_Data_for_FY22[[#This Row],[Median]]","v":89929.2},{"$f":"(((AAMC_Raw_Data_for_FY22[[#This Row],[75th]]-AAMC_Raw_Data_for_FY22[[#This Row],[Median]])/25)*40) + AAMC_Raw_Data_for_FY22[[#This Row],[Median]]","v":91900.800000000003}]
[{"$f":"AAMC_Raw_Data_for_FY22[[#This Row],[Source]]&AAMC_Raw_Data_for_FY22[[#This Row],[Type]]&AAMC_Raw_Data_for_FY22[[#This Row],[School Subset]]&AAMC_Raw_Data_for_FY22[[#This Row],[Rank]]&AAMC_Raw_Data_for_FY22[[#This Row],[Degree]]&AAMC_Raw_Data_for_FY22[[#This Row],[Department / Specialty]]&\"L\"","v":"AAMCAcademicPublicAssistantMDOrthopedic Surgery: GeneralL"},"Orthopedic Surgery: General",4,"AAMC","Academic","Public","Assistant","MD","2021-2022",402119,{"$f":"(((AAMC_Raw_Data_for_FY22[[#This Row],[Median]]-AAMC_Raw_Data_for_FY22[[#This Row],[25th]])/25)*5) + AAMC_Raw_Data_for_FY22[[#This Row],[25th]]","v":423440.6},{"$f":"(((AAMC_Raw_Data_for_FY22[[#This Row],[Median]]-AAMC_Raw_Data_for_FY22[[#This Row],[25th]])/25)*10) + AAMC_Raw_Data_for_FY22[[#This Row],[25th]]","v":444762.2},{"$f":"(((AAMC_Raw_Data_for_FY22[[#This Row],[Median]]-AAMC_Raw_Data_for_FY22[[#This Row],[25th]])/25)*15) + AAMC_Raw_Data_for_FY22[[#This Row],[25th]]","v":466083.8},{"$f":"(((AAMC_Raw_Data_for_FY22[[#This Row],[Median]]-AAMC_Raw_Data_for_FY22[[#This Row],[25th]])/25)*20) + AAMC_Raw_Data_for_FY22[[#This Row],[25th]]","v":487405.4},508727,{"$f":"(((AAMC_Raw_Data_for_FY22[[#This Row],[75th]]-AAMC_Raw_Data_for_FY22[[#This Row],[Median]])/25)*5) + AAMC_Raw_Data_for_FY22[[#This Row],[Median]]","v":538489},{"$f":"(((AAMC_Raw_Data_for_FY22[[#This Row],[75th]]-AAMC_Raw_Data_for_FY22[[#This Row],[Median]])/25)*10) + AAMC_Raw_Data_for_FY22[[#This Row],[Median]]","v":568251},{"$f":"(((AAMC_Raw_Data_for_FY22[[#This Row],[75th]]-AAMC_Raw_Data_for_FY22[[#This Row],[Median]])/25)*15) + AAMC_Raw_Data_for_FY22[[#This Row],[Median]]","v":598013},{"$f":"(((AAMC_Raw_Data_for_FY22[[#This Row],[75th]]-AAMC_Raw_Data_for_FY22[[#This Row],[Median]])/25)*20) + AAMC_Raw_Data_for_FY22[[#This Row],[Median]]","v":627775},657537,{"$f":"(((AAMC_Raw_Data_for_FY22[[#This Row],[75th]]-AAMC_Raw_Data_for_FY22[[#This Row],[Median]])/25)*30) + AAMC_Raw_Data_for_FY22[[#This Row],[Median]]","v":687299},{"$f":"(((AAMC_Raw_Data_for_FY22[[#This Row],[75th]]-AAMC_Raw_Data_for_FY22[[#This Row],[Median]])/25)*35) + AAMC_Raw_Data_for_FY22[[#This Row],[Median]]","v":717061},{"$f":"(((AAMC_Raw_Data_for_FY22[[#This Row],[75th]]-AAMC_Raw_Data_for_FY22[[#This Row],[Median]])/25)*40) + AAMC_Raw_Data_for_FY22[[#This Row],[Median]]","v":746823}]
[{"$f":"AAMC_Raw_Data_for_FY22[[#This Row],[Source]]&AAMC_Raw_Data_for_FY22[[#This Row],[Type]]&AAMC_Raw_Data_for_FY22[[#This Row],[School Subset]]&AAMC_Raw_Data_for_FY22[[#This Row],[Rank]]&AAMC_Raw_Data_for_FY22[[#This Row],[Degree]]&AAMC_Raw_Data_for_FY22[[#This Row],[Department / Specialty]]&\"L\"","v":"AAMCAcademicPublicAssociateMDOrthopedic Surgery: GeneralL"},"Orthopedic Surgery: General",3,"AAMC","Academic","Public","Associate","MD","2021-2022",498932,{"$f":"(((AAMC_Raw_Data_for_FY22[[#This Row],[Median]]-AAMC_Raw_Data_for_FY22[[#This Row],[25th]])/25)*5) + AAMC_Raw_Data_for_FY22[[#This Row],[25th]]","v":520123.8},{"$f":"(((AAMC_Raw_Data_for_FY22[[#This Row],[Median]]-AAMC_Raw_Data_for_FY22[[#This Row],[25th]])/25)*10) + AAMC_Raw_Data_for_FY22[[#This Row],[25th]]","v":541315.6},{"$f":"(((AAMC_Raw_Data_for_FY22[[#This Row],[Median]]-AAMC_Raw_Data_for_FY22[[#This Row],[25th]])/25)*15) + AAMC_Raw_Data_for_FY22[[#This Row],[25th]]","v":562507.4},{"$f":"(((AAMC_Raw_Data_for_FY22[[#This Row],[Median]]-AAMC_Raw_Data_for_FY22[[#This Row],[25th]])/25)*20) + AAMC_Raw_Data_for_FY22[[#This Row],[25th]]","v":583699.19999999995},604891,{"$f":"(((AAMC_Raw_Data_for_FY22[[#This Row],[75th]]-AAMC_Raw_Data_for_FY22[[#This Row],[Median]])/25)*5) + AAMC_Raw_Data_for_FY22[[#This Row],[Median]]","v":639545},{"$f":"(((AAMC_Raw_Data_for_FY22[[#This Row],[75th]]-AAMC_Raw_Data_for_FY22[[#This Row],[Median]])/25)*10) + AAMC_Raw_Data_for_FY22[[#This Row],[Median]]","v":674199},{"$f":"(((AAMC_Raw_Data_for_FY22[[#This Row],[75th]]-AAMC_Raw_Data_for_FY22[[#This Row],[Median]])/25)*15) + AAMC_Raw_Data_for_FY22[[#This Row],[Median]]","v":708853},{"$f":"(((AAMC_Raw_Data_for_FY22[[#This Row],[75th]]-AAMC_Raw_Data_for_FY22[[#This Row],[Median]])/25)*20) + AAMC_Raw_Data_for_FY22[[#This Row],[Median]]","v":743507},778161,{"$f":"(((AAMC_Raw_Data_for_FY22[[#This Row],[75th]]-AAMC_Raw_Data_for_FY22[[#This Row],[Median]])/25)*30) + AAMC_Raw_Data_for_FY22[[#This Row],[Median]]","v":812815},{"$f":"(((AAMC_Raw_Data_for_FY22[[#This Row],[75th]]-AAMC_Raw_Data_for_FY22[[#This Row],[Median]])/25)*35) + AAMC_Raw_Data_for_FY22[[#This Row],[Median]]","v":847469},{"$f":"(((AAMC_Raw_Data_for_FY22[[#This Row],[75th]]-AAMC_Raw_Data_for_FY22[[#This Row],[Median]])/25)*40) + AAMC_Raw_Data_for_FY22[[#This Row],[Median]]","v":882123}]
[{"$f":"AAMC_Raw_Data_for_FY22[[#This Row],[Source]]&AAMC_Raw_Data_for_FY22[[#This Row],[Type]]&AAMC_Raw_Data_for_FY22[[#This Row],[School Subset]]&AAMC_Raw_Data_for_FY22[[#This Row],[Rank]]&AAMC_Raw_Data_for_FY22[[#This Row],[Degree]]&AAMC_Raw_Data_for_FY22[[#This Row],[Department / Specialty]]&\"L\"","v":"AAMCAcademicPublicProfessorMDOrthopedic Surgery: GeneralL"},"Orthopedic Surgery: General",2,"AAMC","Academic","Public","Professor","MD","2021-2022",504206,{"$f":"(((AAMC_Raw_Data_for_FY22[[#This Row],[Median]]-AAMC_Raw_Data_for_FY22[[#This Row],[25th]])/25)*5) + AAMC_Raw_Data_for_FY22[[#This Row],[25th]]","v":526462.6},{"$f":"(((AAMC_Raw_Data_for_FY22[[#This Row],[Median]]-AAMC_Raw_Data_for_FY22[[#This Row],[25th]])/25)*10) + AAMC_Raw_Data_for_FY22[[#This Row],[25th]]","v":548719.19999999995},{"$f":"(((AAMC_Raw_Data_for_FY22[[#This Row],[Median]]-AAMC_Raw_Data_for_FY22[[#This Row],[25th]])/25)*15) + AAMC_Raw_Data_for_FY22[[#This Row],[25th]]","v":570975.80000000005},{"$f":"(((AAMC_Raw_Data_for_FY22[[#This Row],[Median]]-AAMC_Raw_Data_for_FY22[[#This Row],[25th]])/25)*20) + AAMC_Raw_Data_for_FY22[[#This Row],[25th]]","v":593232.4},615489,{"$f":"(((AAMC_Raw_Data_for_FY22[[#This Row],[75th]]-AAMC_Raw_Data_for_FY22[[#This Row],[Median]])/25)*5) + AAMC_Raw_Data_for_FY22[[#This Row],[Median]]","v":645354.6},{"$f":"(((AAMC_Raw_Data_for_FY22[[#This Row],[75th]]-AAMC_Raw_Data_for_FY22[[#This Row],[Median]])/25)*10) + AAMC_Raw_Data_for_FY22[[#This Row],[Median]]","v":675220.2},{"$f":"(((AAMC_Raw_Data_for_FY22[[#This Row],[75th]]-AAMC_Raw_Data_for_FY22[[#This Row],[Median]])/25)*15) + AAMC_Raw_Data_for_FY22[[#This Row],[Median]]","v":705085.8},{"$f":"(((AAMC_Raw_Data_for_FY22[[#This Row],[75th]]-AAMC_Raw_Data_for_FY22[[#This Row],[Median]])/25)*20) + AAMC_Raw_Data_for_FY22[[#This Row],[Median]]","v":734951.4},764817,{"$f":"(((AAMC_Raw_Data_for_FY22[[#This Row],[75th]]-AAMC_Raw_Data_for_FY22[[#This Row],[Median]])/25)*30) + AAMC_Raw_Data_for_FY22[[#This Row],[Median]]","v":794682.6},{"$f":"(((AAMC_Raw_Data_for_FY22[[#This Row],[75th]]-AAMC_Raw_Data_for_FY22[[#This Row],[Median]])/25)*35) + AAMC_Raw_Data_for_FY22[[#This Row],[Median]]","v":824548.2},{"$f":"(((AAMC_Raw_Data_for_FY22[[#This Row],[75th]]-AAMC_Raw_Data_for_FY22[[#This Row],[Median]])/25)*40) + AAMC_Raw_Data_for_FY22[[#This Row],[Median]]","v":854413.8}]
[{"$f":"AAMC_Raw_Data_for_FY22[[#This Row],[Source]]&AAMC_Raw_Data_for_FY22[[#This Row],[Type]]&AAMC_Raw_Data_for_FY22[[#This Row],[School Subset]]&AAMC_Raw_Data_for_FY22[[#This Row],[Rank]]&AAMC_Raw_Data_for_FY22[[#This Row],[Degree]]&AAMC_Raw_Data_for_FY22[[#This Row],[Department / Specialty]]&\"L\"","v":"AAMCAcademicPublicChiefMDOrthopedic Surgery: GeneralL"},"Orthopedic Surgery: General",6,"AAMC","Academic","Public","Chief","MD","2021-2022",null,{"$f":"(((AAMC_Raw_Data_for_FY22[[#This Row],[Median]]-AAMC_Raw_Data_for_FY22[[#This Row],[25th]])/25)*5) + AAMC_Raw_Data_for_FY22[[#This Row],[25th]]","v":0},{"$f":"(((AAMC_Raw_Data_for_FY22[[#This Row],[Median]]-AAMC_Raw_Data_for_FY22[[#This Row],[25th]])/25)*10) + AAMC_Raw_Data_for_FY22[[#This Row],[25th]]","v":0},{"$f":"(((AAMC_Raw_Data_for_FY22[[#This Row],[Median]]-AAMC_Raw_Data_for_FY22[[#This Row],[25th]])/25)*15) + AAMC_Raw_Data_for_FY22[[#This Row],[25th]]","v":0},{"$f":"(((AAMC_Raw_Data_for_FY22[[#This Row],[Median]]-AAMC_Raw_Data_for_FY22[[#This Row],[25th]])/25)*20) + AAMC_Raw_Data_for_FY22[[#This Row],[25th]]","v":0},null,{"$f":"(((AAMC_Raw_Data_for_FY22[[#This Row],[75th]]-AAMC_Raw_Data_for_FY22[[#This Row],[Median]])/25)*5) + AAMC_Raw_Data_for_FY22[[#This Row],[Median]]","v":0},{"$f":"(((AAMC_Raw_Data_for_FY22[[#This Row],[75th]]-AAMC_Raw_Data_for_FY22[[#This Row],[Median]])/25)*10) + AAMC_Raw_Data_for_FY22[[#This Row],[Median]]","v":0},{"$f":"(((AAMC_Raw_Data_for_FY22[[#This Row],[75th]]-AAMC_Raw_Data_for_FY22[[#This Row],[Median]])/25)*15) + AAMC_Raw_Data_for_FY22[[#This Row],[Median]]","v":0},{"$f":"(((AAMC_Raw_Data_for_FY22[[#This Row],[75th]]-AAMC_Raw_Data_for_FY22[[#This Row],[Median]])/25)*20) + AAMC_Raw_Data_for_FY22[[#This Row],[Median]]","v":0},null,{"$f":"(((AAMC_Raw_Data_for_FY22[[#This Row],[75th]]-AAMC_Raw_Data_for_FY22[[#This Row],[Median]])/25)*30) + AAMC_Raw_Data_for_FY22[[#This Row],[Median]]","v":0},{"$f":"(((AAMC_Raw_Data_for_FY22[[#This Row],[75th]]-AAMC_Raw_Data_for_FY22[[#This Row],[Median]])/25)*35) + AAMC_Raw_Data_for_FY22[[#This Row],[Median]]","v":0},{"$f":"(((AAMC_Raw_Data_for_FY22[[#This Row],[75th]]-AAMC_Raw_Data_for_FY22[[#This Row],[Median]])/25)*40) + AAMC_Raw_Data_for_FY22[[#This Row],[Median]]","v":0}]
[{"$f":"AAMC_Raw_Data_for_FY22[[#This Row],[Source]]&AAMC_Raw_Data_for_FY22[[#This Row],[Type]]&AAMC_Raw_Data_for_FY22[[#This Row],[School Subset]]&AAMC_Raw_Data_for_FY22[[#This Row],[Rank]]&AAMC_Raw_Data_for_FY22[[#This Row],[Degree]]&AAMC_Raw_Data_for_FY22[[#This Row],[Department / Specialty]]&\"L\"","v":"AAMCAcademicPublicChairMDOrthopedic Surgery: GeneralL"},"Orthopedic Surgery: General",1,"AAMC","Academic","Public","Chair","MD","2021-2022",875809,{"$f":"(((AAMC_Raw_Data_for_FY22[[#This Row],[Median]]-AAMC_Raw_Data_for_FY22[[#This Row],[25th]])/25)*5) + AAMC_Raw_Data_for_FY22[[#This Row],[25th]]","v":891295.2},{"$f":"(((AAMC_Raw_Data_for_FY22[[#This Row],[Median]]-AAMC_Raw_Data_for_FY22[[#This Row],[25th]])/25)*10) + AAMC_Raw_Data_for_FY22[[#This Row],[25th]]","v":906781.4},{"$f":"(((AAMC_Raw_Data_for_FY22[[#This Row],[Median]]-AAMC_Raw_Data_for_FY22[[#This Row],[25th]])/25)*15) + AAMC_Raw_Data_for_FY22[[#This Row],[25th]]","v":922267.6},{"$f":"(((AAMC_Raw_Data_for_FY22[[#This Row],[Median]]-AAMC_Raw_Data_for_FY22[[#This Row],[25th]])/25)*20) + AAMC_Raw_Data_for_FY22[[#This Row],[25th]]","v":937753.8},953240,{"$f":"(((AAMC_Raw_Data_for_FY22[[#This Row],[75th]]-AAMC_Raw_Data_for_FY22[[#This Row],[Median]])/25)*5) + AAMC_Raw_Data_for_FY22[[#This Row],[Median]]","v":967525.8},{"$f":"(((AAMC_Raw_Data_for_FY22[[#This Row],[75th]]-AAMC_Raw_Data_for_FY22[[#This Row],[Median]])/25)*10) + AAMC_Raw_Data_for_FY22[[#This Row],[Median]]","v":981811.6},{"$f":"(((AAMC_Raw_Data_for_FY22[[#This Row],[75th]]-AAMC_Raw_Data_for_FY22[[#This Row],[Median]])/25)*15) + AAMC_Raw_Data_for_FY22[[#This Row],[Median]]","v":996097.4},{"$f":"(((AAMC_Raw_Data_for_FY22[[#This Row],[75th]]-AAMC_Raw_Data_for_FY22[[#This Row],[Median]])/25)*20) + AAMC_Raw_Data_for_FY22[[#This Row],[Median]]","v":1010383.2},1024669,{"$f":"(((AAMC_Raw_Data_for_FY22[[#This Row],[75th]]-AAMC_Raw_Data_for_FY22[[#This Row],[Median]])/25)*30) + AAMC_Raw_Data_for_FY22[[#This Row],[Median]]","v":1038954.8},{"$f":"(((AAMC_Raw_Data_for_FY22[[#This Row],[75th]]-AAMC_Raw_Data_for_FY22[[#This Row],[Median]])/25)*35) + AAMC_Raw_Data_for_FY22[[#This Row],[Median]]","v":1053240.6000000001},{"$f":"(((AAMC_Raw_Data_for_FY22[[#This Row],[75th]]-AAMC_Raw_Data_for_FY22[[#This Row],[Median]])/25)*40) + AAMC_Raw_Data_for_FY22[[#This Row],[Median]]","v":1067526.3999999999}]
[{"$f":"AAMC_Raw_Data_for_FY22[[#This Row],[Source]]&AAMC_Raw_Data_for_FY22[[#This Row],[Type]]&AAMC_Raw_Data_for_FY22[[#This Row],[School Subset]]&AAMC_Raw_Data_for_FY22[[#This Row],[Rank]]&AAMC_Raw_Data_for_FY22[[#This Row],[Degree]]&AAMC_Raw_Data_for_FY22[[#This Row],[Department / Specialty]]&\"L\"","v":"AAMCAcademicPublicAssistantMDOrthopedic Surgery: HandL"},"Orthopedic Surgery: Hand",4,"AAMC","Academic","Public","Assistant","MD","2021-2022",426713,{"$f":"(((AAMC_Raw_Data_for_FY22[[#This Row],[Median]]-AAMC_Raw_Data_for_FY22[[#This Row],[25th]])/25)*5) + AAMC_Raw_Data_for_FY22[[#This Row],[25th]]","v":451154.8},{"$f":"(((AAMC_Raw_Data_for_FY22[[#This Row],[Median]]-AAMC_Raw_Data_for_FY22[[#This Row],[25th]])/25)*10) + AAMC_Raw_Data_for_FY22[[#This Row],[25th]]","v":475596.6},{"$f":"(((AAMC_Raw_Data_for_FY22[[#This Row],[Median]]-AAMC_Raw_Data_for_FY22[[#This Row],[25th]])/25)*15) + AAMC_Raw_Data_for_FY22[[#This Row],[25th]]","v":500038.40000000002},{"$f":"(((AAMC_Raw_Data_for_FY22[[#This Row],[Median]]-AAMC_Raw_Data_for_FY22[[#This Row],[25th]])/25)*20) + AAMC_Raw_Data_for_FY22[[#This Row],[25th]]","v":524480.19999999995},548922,{"$f":"(((AAMC_Raw_Data_for_FY22[[#This Row],[75th]]-AAMC_Raw_Data_for_FY22[[#This Row],[Median]])/25)*5) + AAMC_Raw_Data_for_FY22[[#This Row],[Median]]","v":584779.6},{"$f":"(((AAMC_Raw_Data_for_FY22[[#This Row],[75th]]-AAMC_Raw_Data_for_FY22[[#This Row],[Median]])/25)*10) + AAMC_Raw_Data_for_FY22[[#This Row],[Median]]","v":620637.19999999995},{"$f":"(((AAMC_Raw_Data_for_FY22[[#This Row],[75th]]-AAMC_Raw_Data_for_FY22[[#This Row],[Median]])/25)*15) + AAMC_Raw_Data_for_FY22[[#This Row],[Median]]","v":656494.80000000005},{"$f":"(((AAMC_Raw_Data_for_FY22[[#This Row],[75th]]-AAMC_Raw_Data_for_FY22[[#This Row],[Median]])/25)*20) + AAMC_Raw_Data_for_FY22[[#This Row],[Median]]","v":692352.4},728210,{"$f":"(((AAMC_Raw_Data_for_FY22[[#This Row],[75th]]-AAMC_Raw_Data_for_FY22[[#This Row],[Median]])/25)*30) + AAMC_Raw_Data_for_FY22[[#This Row],[Median]]","v":764067.6},{"$f":"(((AAMC_Raw_Data_for_FY22[[#This Row],[75th]]-AAMC_Raw_Data_for_FY22[[#This Row],[Median]])/25)*35) + AAMC_Raw_Data_for_FY22[[#This Row],[Median]]","v":799925.2},{"$f":"(((AAMC_Raw_Data_for_FY22[[#This Row],[75th]]-AAMC_Raw_Data_for_FY22[[#This Row],[Median]])/25)*40) + AAMC_Raw_Data_for_FY22[[#This Row],[Median]]","v":835782.8}]
[{"$f":"AAMC_Raw_Data_for_FY22[[#This Row],[Source]]&AAMC_Raw_Data_for_FY22[[#This Row],[Type]]&AAMC_Raw_Data_for_FY22[[#This Row],[School Subset]]&AAMC_Raw_Data_for_FY22[[#This Row],[Rank]]&AAMC_Raw_Data_for_FY22[[#This Row],[Degree]]&AAMC_Raw_Data_for_FY22[[#This Row],[Department / Specialty]]&\"L\"","v":"AAMCAcademicPublicAssociateMDOrthopedic Surgery: HandL"},"Orthopedic Surgery: Hand",3,"AAMC","Academic","Public","Associate","MD","2021-2022",507038,{"$f":"(((AAMC_Raw_Data_for_FY22[[#This Row],[Median]]-AAMC_Raw_Data_for_FY22[[#This Row],[25th]])/25)*5) + AAMC_Raw_Data_for_FY22[[#This Row],[25th]]","v":523622.2},{"$f":"(((AAMC_Raw_Data_for_FY22[[#This Row],[Median]]-AAMC_Raw_Data_for_FY22[[#This Row],[25th]])/25)*10) + AAMC_Raw_Data_for_FY22[[#This Row],[25th]]","v":540206.4},{"$f":"(((AAMC_Raw_Data_for_FY22[[#This Row],[Median]]-AAMC_Raw_Data_for_FY22[[#This Row],[25th]])/25)*15) + AAMC_Raw_Data_for_FY22[[#This Row],[25th]]","v":556790.6},{"$f":"(((AAMC_Raw_Data_for_FY22[[#This Row],[Median]]-AAMC_Raw_Data_for_FY22[[#This Row],[25th]])/25)*20) + AAMC_Raw_Data_for_FY22[[#This Row],[25th]]","v":573374.80000000005},589959,{"$f":"(((AAMC_Raw_Data_for_FY22[[#This Row],[75th]]-AAMC_Raw_Data_for_FY22[[#This Row],[Median]])/25)*5) + AAMC_Raw_Data_for_FY22[[#This Row],[Median]]","v":615415.19999999995},{"$f":"(((AAMC_Raw_Data_for_FY22[[#This Row],[75th]]-AAMC_Raw_Data_for_FY22[[#This Row],[Median]])/25)*10) + AAMC_Raw_Data_for_FY22[[#This Row],[Median]]","v":640871.4},{"$f":"(((AAMC_Raw_Data_for_FY22[[#This Row],[75th]]-AAMC_Raw_Data_for_FY22[[#This Row],[Median]])/25)*15) + AAMC_Raw_Data_for_FY22[[#This Row],[Median]]","v":666327.6},{"$f":"(((AAMC_Raw_Data_for_FY22[[#This Row],[75th]]-AAMC_Raw_Data_for_FY22[[#This Row],[Median]])/25)*20) + AAMC_Raw_Data_for_FY22[[#This Row],[Median]]","v":691783.8},717240,{"$f":"(((AAMC_Raw_Data_for_FY22[[#This Row],[75th]]-AAMC_Raw_Data_for_FY22[[#This Row],[Median]])/25)*30) + AAMC_Raw_Data_for_FY22[[#This Row],[Median]]","v":742696.2},{"$f":"(((AAMC_Raw_Data_for_FY22[[#This Row],[75th]]-AAMC_Raw_Data_for_FY22[[#This Row],[Median]])/25)*35) + AAMC_Raw_Data_for_FY22[[#This Row],[Median]]","v":768152.4},{"$f":"(((AAMC_Raw_Data_for_FY22[[#This Row],[75th]]-AAMC_Raw_Data_for_FY22[[#This Row],[Median]])/25)*40) + AAMC_Raw_Data_for_FY22[[#This Row],[Median]]","v":793608.6}]
[{"$f":"AAMC_Raw_Data_for_FY22[[#This Row],[Source]]&AAMC_Raw_Data_for_FY22[[#This Row],[Type]]&AAMC_Raw_Data_for_FY22[[#This Row],[School Subset]]&AAMC_Raw_Data_for_FY22[[#This Row],[Rank]]&AAMC_Raw_Data_for_FY22[[#This Row],[Degree]]&AAMC_Raw_Data_for_FY22[[#This Row],[Department / Specialty]]&\"L\"","v":"AAMCAcademicPublicProfessorMDOrthopedic Surgery: HandL"},"Orthopedic Surgery: Hand",2,"AAMC","Academic","Public","Professor","MD","2021-2022",476160,{"$f":"(((AAMC_Raw_Data_for_FY22[[#This Row],[Median]]-AAMC_Raw_Data_for_FY22[[#This Row],[25th]])/25)*5) + AAMC_Raw_Data_for_FY22[[#This Row],[25th]]","v":493708.6},{"$f":"(((AAMC_Raw_Data_for_FY22[[#This Row],[Median]]-AAMC_Raw_Data_for_FY22[[#This Row],[25th]])/25)*10) + AAMC_Raw_Data_for_FY22[[#This Row],[25th]]","v":511257.2},{"$f":"(((AAMC_Raw_Data_for_FY22[[#This Row],[Median]]-AAMC_Raw_Data_for_FY22[[#This Row],[25th]])/25)*15) + AAMC_Raw_Data_for_FY22[[#This Row],[25th]]","v":528805.80000000005},{"$f":"(((AAMC_Raw_Data_for_FY22[[#This Row],[Median]]-AAMC_Raw_Data_for_FY22[[#This Row],[25th]])/25)*20) + AAMC_Raw_Data_for_FY22[[#This Row],[25th]]","v":546354.4},563903,{"$f":"(((AAMC_Raw_Data_for_FY22[[#This Row],[75th]]-AAMC_Raw_Data_for_FY22[[#This Row],[Median]])/25)*5) + AAMC_Raw_Data_for_FY22[[#This Row],[Median]]","v":587440.4},{"$f":"(((AAMC_Raw_Data_for_FY22[[#This Row],[75th]]-AAMC_Raw_Data_for_FY22[[#This Row],[Median]])/25)*10) + AAMC_Raw_Data_for_FY22[[#This Row],[Median]]","v":610977.80000000005},{"$f":"(((AAMC_Raw_Data_for_FY22[[#This Row],[75th]]-AAMC_Raw_Data_for_FY22[[#This Row],[Median]])/25)*15) + AAMC_Raw_Data_for_FY22[[#This Row],[Median]]","v":634515.19999999995},{"$f":"(((AAMC_Raw_Data_for_FY22[[#This Row],[75th]]-AAMC_Raw_Data_for_FY22[[#This Row],[Median]])/25)*20) + AAMC_Raw_Data_for_FY22[[#This Row],[Median]]","v":658052.6},681590,{"$f":"(((AAMC_Raw_Data_for_FY22[[#This Row],[75th]]-AAMC_Raw_Data_for_FY22[[#This Row],[Median]])/25)*30) + AAMC_Raw_Data_for_FY22[[#This Row],[Median]]","v":705127.4},{"$f":"(((AAMC_Raw_Data_for_FY22[[#This Row],[75th]]-AAMC_Raw_Data_for_FY22[[#This Row],[Median]])/25)*35) + AAMC_Raw_Data_for_FY22[[#This Row],[Median]]","v":728664.8},{"$f":"(((AAMC_Raw_Data_for_FY22[[#This Row],[75th]]-AAMC_Raw_Data_for_FY22[[#This Row],[Median]])/25)*40) + AAMC_Raw_Data_for_FY22[[#This Row],[Median]]","v":752202.2}]
[{"$f":"AAMC_Raw_Data_for_FY22[[#This Row],[Source]]&AAMC_Raw_Data_for_FY22[[#This Row],[Type]]&AAMC_Raw_Data_for_FY22[[#This Row],[School Subset]]&AAMC_Raw_Data_for_FY22[[#This Row],[Rank]]&AAMC_Raw_Data_for_FY22[[#This Row],[Degree]]&AAMC_Raw_Data_for_FY22[[#This Row],[Department / Specialty]]&\"L\"","v":"AAMCAcademicPublicChiefMDOrthopedic Surgery: HandL"},"Orthopedic Surgery: Hand",6,"AAMC","Academic","Public","Chief","MD","2021-2022",null,{"$f":"(((AAMC_Raw_Data_for_FY22[[#This Row],[Median]]-AAMC_Raw_Data_for_FY22[[#This Row],[25th]])/25)*5) + AAMC_Raw_Data_for_FY22[[#This Row],[25th]]","v":0},{"$f":"(((AAMC_Raw_Data_for_FY22[[#This Row],[Median]]-AAMC_Raw_Data_for_FY22[[#This Row],[25th]])/25)*10) + AAMC_Raw_Data_for_FY22[[#This Row],[25th]]","v":0},{"$f":"(((AAMC_Raw_Data_for_FY22[[#This Row],[Median]]-AAMC_Raw_Data_for_FY22[[#This Row],[25th]])/25)*15) + AAMC_Raw_Data_for_FY22[[#This Row],[25th]]","v":0},{"$f":"(((AAMC_Raw_Data_for_FY22[[#This Row],[Median]]-AAMC_Raw_Data_for_FY22[[#This Row],[25th]])/25)*20) + AAMC_Raw_Data_for_FY22[[#This Row],[25th]]","v":0},null,{"$f":"(((AAMC_Raw_Data_for_FY22[[#This Row],[75th]]-AAMC_Raw_Data_for_FY22[[#This Row],[Median]])/25)*5) + AAMC_Raw_Data_for_FY22[[#This Row],[Median]]","v":0},{"$f":"(((AAMC_Raw_Data_for_FY22[[#This Row],[75th]]-AAMC_Raw_Data_for_FY22[[#This Row],[Median]])/25)*10) + AAMC_Raw_Data_for_FY22[[#This Row],[Median]]","v":0},{"$f":"(((AAMC_Raw_Data_for_FY22[[#This Row],[75th]]-AAMC_Raw_Data_for_FY22[[#This Row],[Median]])/25)*15) + AAMC_Raw_Data_for_FY22[[#This Row],[Median]]","v":0},{"$f":"(((AAMC_Raw_Data_for_FY22[[#This Row],[75th]]-AAMC_Raw_Data_for_FY22[[#This Row],[Median]])/25)*20) + AAMC_Raw_Data_for_FY22[[#This Row],[Median]]","v":0},null,{"$f":"(((AAMC_Raw_Data_for_FY22[[#This Row],[75th]]-AAMC_Raw_Data_for_FY22[[#This Row],[Median]])/25)*30) + AAMC_Raw_Data_for_FY22[[#This Row],[Median]]","v":0},{"$f":"(((AAMC_Raw_Data_for_FY22[[#This Row],[75th]]-AAMC_Raw_Data_for_FY22[[#This Row],[Median]])/25)*35) + AAMC_Raw_Data_for_FY22[[#This Row],[Median]]","v":0},{"$f":"(((AAMC_Raw_Data_for_FY22[[#This Row],[75th]]-AAMC_Raw_Data_for_FY22[[#This Row],[Median]])/25)*40) + AAMC_Raw_Data_for_FY22[[#This Row],[Median]]","v":0}]
[{"$f":"AAMC_Raw_Data_for_FY22[[#This Row],[Source]]&AAMC_Raw_Data_for_FY22[[#This Row],[Type]]&AAMC_Raw_Data_for_FY22[[#This Row],[School Subset]]&AAMC_Raw_Data_for_FY22[[#This Row],[Rank]]&AAMC_Raw_Data_for_FY22[[#This Row],[Degree]]&AAMC_Raw_Data_for_FY22[[#This Row],[Department / Specialty]]&\"L\"","v":"AAMCAcademicPublicChairMDOrthopedic Surgery: HandL"},"Orthopedic Surgery: Hand",1,"AAMC","Academic","Public","Chair","MD","2021-2022",null,{"$f":"(((AAMC_Raw_Data_for_FY22[[#This Row],[Median]]-AAMC_Raw_Data_for_FY22[[#This Row],[25th]])/25)*5) + AAMC_Raw_Data_for_FY22[[#This Row],[25th]]","v":0},{"$f":"(((AAMC_Raw_Data_for_FY22[[#This Row],[Median]]-AAMC_Raw_Data_for_FY22[[#This Row],[25th]])/25)*10) + AAMC_Raw_Data_for_FY22[[#This Row],[25th]]","v":0},{"$f":"(((AAMC_Raw_Data_for_FY22[[#This Row],[Median]]-AAMC_Raw_Data_for_FY22[[#This Row],[25th]])/25)*15) + AAMC_Raw_Data_for_FY22[[#This Row],[25th]]","v":0},{"$f":"(((AAMC_Raw_Data_for_FY22[[#This Row],[Median]]-AAMC_Raw_Data_for_FY22[[#This Row],[25th]])/25)*20) + AAMC_Raw_Data_for_FY22[[#This Row],[25th]]","v":0},null,{"$f":"(((AAMC_Raw_Data_for_FY22[[#This Row],[75th]]-AAMC_Raw_Data_for_FY22[[#This Row],[Median]])/25)*5) + AAMC_Raw_Data_for_FY22[[#This Row],[Median]]","v":0},{"$f":"(((AAMC_Raw_Data_for_FY22[[#This Row],[75th]]-AAMC_Raw_Data_for_FY22[[#This Row],[Median]])/25)*10) + AAMC_Raw_Data_for_FY22[[#This Row],[Median]]","v":0},{"$f":"(((AAMC_Raw_Data_for_FY22[[#This Row],[75th]]-AAMC_Raw_Data_for_FY22[[#This Row],[Median]])/25)*15) + AAMC_Raw_Data_for_FY22[[#This Row],[Median]]","v":0},{"$f":"(((AAMC_Raw_Data_for_FY22[[#This Row],[75th]]-AAMC_Raw_Data_for_FY22[[#This Row],[Median]])/25)*20) + AAMC_Raw_Data_for_FY22[[#This Row],[Median]]","v":0},null,{"$f":"(((AAMC_Raw_Data_for_FY22[[#This Row],[75th]]-AAMC_Raw_Data_for_FY22[[#This Row],[Median]])/25)*30) + AAMC_Raw_Data_for_FY22[[#This Row],[Median]]","v":0},{"$f":"(((AAMC_Raw_Data_for_FY22[[#This Row],[75th]]-AAMC_Raw_Data_for_FY22[[#This Row],[Median]])/25)*35) + AAMC_Raw_Data_for_FY22[[#This Row],[Median]]","v":0},{"$f":"(((AAMC_Raw_Data_for_FY22[[#This Row],[75th]]-AAMC_Raw_Data_for_FY22[[#This Row],[Median]])/25)*40) + AAMC_Raw_Data_for_FY22[[#This Row],[Median]]","v":0}]
[{"$f":"AAMC_Raw_Data_for_FY22[[#This Row],[Source]]&AAMC_Raw_Data_for_FY22[[#This Row],[Type]]&AAMC_Raw_Data_for_FY22[[#This Row],[School Subset]]&AAMC_Raw_Data_for_FY22[[#This Row],[Rank]]&AAMC_Raw_Data_for_FY22[[#This Row],[Degree]]&AAMC_Raw_Data_for_FY22[[#This Row],[Department / Specialty]]&\"L\"","v":"AAMCAcademicPublicAssistantMDOrthopedic Surgery: SpineL"},"Orthopedic Surgery: Spine",4,"AAMC","Academic","Public","Assistant","MD","2021-2022",473064,{"$f":"(((AAMC_Raw_Data_for_FY22[[#This Row],[Median]]-AAMC_Raw_Data_for_FY22[[#This Row],[25th]])/25)*5) + AAMC_Raw_Data_for_FY22[[#This Row],[25th]]","v":513651},{"$f":"(((AAMC_Raw_Data_for_FY22[[#This Row],[Median]]-AAMC_Raw_Data_for_FY22[[#This Row],[25th]])/25)*10) + AAMC_Raw_Data_for_FY22[[#This Row],[25th]]","v":554238},{"$f":"(((AAMC_Raw_Data_for_FY22[[#This Row],[Median]]-AAMC_Raw_Data_for_FY22[[#This Row],[25th]])/25)*15) + AAMC_Raw_Data_for_FY22[[#This Row],[25th]]","v":594825},{"$f":"(((AAMC_Raw_Data_for_FY22[[#This Row],[Median]]-AAMC_Raw_Data_for_FY22[[#This Row],[25th]])/25)*20) + AAMC_Raw_Data_for_FY22[[#This Row],[25th]]","v":635412},675999,{"$f":"(((AAMC_Raw_Data_for_FY22[[#This Row],[75th]]-AAMC_Raw_Data_for_FY22[[#This Row],[Median]])/25)*5) + AAMC_Raw_Data_for_FY22[[#This Row],[Median]]","v":700901},{"$f":"(((AAMC_Raw_Data_for_FY22[[#This Row],[75th]]-AAMC_Raw_Data_for_FY22[[#This Row],[Median]])/25)*10) + AAMC_Raw_Data_for_FY22[[#This Row],[Median]]","v":725803},{"$f":"(((AAMC_Raw_Data_for_FY22[[#This Row],[75th]]-AAMC_Raw_Data_for_FY22[[#This Row],[Median]])/25)*15) + AAMC_Raw_Data_for_FY22[[#This Row],[Median]]","v":750705},{"$f":"(((AAMC_Raw_Data_for_FY22[[#This Row],[75th]]-AAMC_Raw_Data_for_FY22[[#This Row],[Median]])/25)*20) + AAMC_Raw_Data_for_FY22[[#This Row],[Median]]","v":775607},800509,{"$f":"(((AAMC_Raw_Data_for_FY22[[#This Row],[75th]]-AAMC_Raw_Data_for_FY22[[#This Row],[Median]])/25)*30) + AAMC_Raw_Data_for_FY22[[#This Row],[Median]]","v":825411},{"$f":"(((AAMC_Raw_Data_for_FY22[[#This Row],[75th]]-AAMC_Raw_Data_for_FY22[[#This Row],[Median]])/25)*35) + AAMC_Raw_Data_for_FY22[[#This Row],[Median]]","v":850313},{"$f":"(((AAMC_Raw_Data_for_FY22[[#This Row],[75th]]-AAMC_Raw_Data_for_FY22[[#This Row],[Median]])/25)*40) + AAMC_Raw_Data_for_FY22[[#This Row],[Median]]","v":875215}]
[{"$f":"AAMC_Raw_Data_for_FY22[[#This Row],[Source]]&AAMC_Raw_Data_for_FY22[[#This Row],[Type]]&AAMC_Raw_Data_for_FY22[[#This Row],[School Subset]]&AAMC_Raw_Data_for_FY22[[#This Row],[Rank]]&AAMC_Raw_Data_for_FY22[[#This Row],[Degree]]&AAMC_Raw_Data_for_FY22[[#This Row],[Department / Specialty]]&\"L\"","v":"AAMCAcademicPublicAssociateMDOrthopedic Surgery: SpineL"},"Orthopedic Surgery: Spine",3,"AAMC","Academic","Public","Associate","MD","2021-2022",573536,{"$f":"(((AAMC_Raw_Data_for_FY22[[#This Row],[Median]]-AAMC_Raw_Data_for_FY22[[#This Row],[25th]])/25)*5) + AAMC_Raw_Data_for_FY22[[#This Row],[25th]]","v":590626.4},{"$f":"(((AAMC_Raw_Data_for_FY22[[#This Row],[Median]]-AAMC_Raw_Data_for_FY22[[#This Row],[25th]])/25)*10) + AAMC_Raw_Data_for_FY22[[#This Row],[25th]]","v":607716.80000000005},{"$f":"(((AAMC_Raw_Data_for_FY22[[#This Row],[Median]]-AAMC_Raw_Data_for_FY22[[#This Row],[25th]])/25)*15) + AAMC_Raw_Data_for_FY22[[#This Row],[25th]]","v":624807.19999999995},{"$f":"(((AAMC_Raw_Data_for_FY22[[#This Row],[Median]]-AAMC_Raw_Data_for_FY22[[#This Row],[25th]])/25)*20) + AAMC_Raw_Data_for_FY22[[#This Row],[25th]]","v":641897.6},658988,{"$f":"(((AAMC_Raw_Data_for_FY22[[#This Row],[75th]]-AAMC_Raw_Data_for_FY22[[#This Row],[Median]])/25)*5) + AAMC_Raw_Data_for_FY22[[#This Row],[Median]]","v":709755.4},{"$f":"(((AAMC_Raw_Data_for_FY22[[#This Row],[75th]]-AAMC_Raw_Data_for_FY22[[#This Row],[Median]])/25)*10) + AAMC_Raw_Data_for_FY22[[#This Row],[Median]]","v":760522.8},{"$f":"(((AAMC_Raw_Data_for_FY22[[#This Row],[75th]]-AAMC_Raw_Data_for_FY22[[#This Row],[Median]])/25)*15) + AAMC_Raw_Data_for_FY22[[#This Row],[Median]]","v":811290.2},{"$f":"(((AAMC_Raw_Data_for_FY22[[#This Row],[75th]]-AAMC_Raw_Data_for_FY22[[#This Row],[Median]])/25)*20) + AAMC_Raw_Data_for_FY22[[#This Row],[Median]]","v":862057.6},912825,{"$f":"(((AAMC_Raw_Data_for_FY22[[#This Row],[75th]]-AAMC_Raw_Data_for_FY22[[#This Row],[Median]])/25)*30) + AAMC_Raw_Data_for_FY22[[#This Row],[Median]]","v":963592.39999999991},{"$f":"(((AAMC_Raw_Data_for_FY22[[#This Row],[75th]]-AAMC_Raw_Data_for_FY22[[#This Row],[Median]])/25)*35) + AAMC_Raw_Data_for_FY22[[#This Row],[Median]]","v":1014359.8},{"$f":"(((AAMC_Raw_Data_for_FY22[[#This Row],[75th]]-AAMC_Raw_Data_for_FY22[[#This Row],[Median]])/25)*40) + AAMC_Raw_Data_for_FY22[[#This Row],[Median]]","v":1065127.2}]
[{"$f":"AAMC_Raw_Data_for_FY22[[#This Row],[Source]]&AAMC_Raw_Data_for_FY22[[#This Row],[Type]]&AAMC_Raw_Data_for_FY22[[#This Row],[School Subset]]&AAMC_Raw_Data_for_FY22[[#This Row],[Rank]]&AAMC_Raw_Data_for_FY22[[#This Row],[Degree]]&AAMC_Raw_Data_for_FY22[[#This Row],[Department / Specialty]]&\"L\"","v":"AAMCAcademicPublicProfessorMDOrthopedic Surgery: SpineL"},"Orthopedic Surgery: Spine",2,"AAMC","Academic","Public","Professor","MD","2021-2022",690290,{"$f":"(((AAMC_Raw_Data_for_FY22[[#This Row],[Median]]-AAMC_Raw_Data_for_FY22[[#This Row],[25th]])/25)*5) + AAMC_Raw_Data_for_FY22[[#This Row],[25th]]","v":713262},{"$f":"(((AAMC_Raw_Data_for_FY22[[#This Row],[Median]]-AAMC_Raw_Data_for_FY22[[#This Row],[25th]])/25)*10) + AAMC_Raw_Data_for_FY22[[#This Row],[25th]]","v":736234},{"$f":"(((AAMC_Raw_Data_for_FY22[[#This Row],[Median]]-AAMC_Raw_Data_for_FY22[[#This Row],[25th]])/25)*15) + AAMC_Raw_Data_for_FY22[[#This Row],[25th]]","v":759206},{"$f":"(((AAMC_Raw_Data_for_FY22[[#This Row],[Median]]-AAMC_Raw_Data_for_FY22[[#This Row],[25th]])/25)*20) + AAMC_Raw_Data_for_FY22[[#This Row],[25th]]","v":782178},805150,{"$f":"(((AAMC_Raw_Data_for_FY22[[#This Row],[75th]]-AAMC_Raw_Data_for_FY22[[#This Row],[Median]])/25)*5) + AAMC_Raw_Data_for_FY22[[#This Row],[Median]]","v":832491.6},{"$f":"(((AAMC_Raw_Data_for_FY22[[#This Row],[75th]]-AAMC_Raw_Data_for_FY22[[#This Row],[Median]])/25)*10) + AAMC_Raw_Data_for_FY22[[#This Row],[Median]]","v":859833.2},{"$f":"(((AAMC_Raw_Data_for_FY22[[#This Row],[75th]]-AAMC_Raw_Data_for_FY22[[#This Row],[Median]])/25)*15) + AAMC_Raw_Data_for_FY22[[#This Row],[Median]]","v":887174.8},{"$f":"(((AAMC_Raw_Data_for_FY22[[#This Row],[75th]]-AAMC_Raw_Data_for_FY22[[#This Row],[Median]])/25)*20) + AAMC_Raw_Data_for_FY22[[#This Row],[Median]]","v":914516.4},941858,{"$f":"(((AAMC_Raw_Data_for_FY22[[#This Row],[75th]]-AAMC_Raw_Data_for_FY22[[#This Row],[Median]])/25)*30) + AAMC_Raw_Data_for_FY22[[#This Row],[Median]]","v":969199.6},{"$f":"(((AAMC_Raw_Data_for_FY22[[#This Row],[75th]]-AAMC_Raw_Data_for_FY22[[#This Row],[Median]])/25)*35) + AAMC_Raw_Data_for_FY22[[#This Row],[Median]]","v":996541.2},{"$f":"(((AAMC_Raw_Data_for_FY22[[#This Row],[75th]]-AAMC_Raw_Data_for_FY22[[#This Row],[Median]])/25)*40) + AAMC_Raw_Data_for_FY22[[#This Row],[Median]]","v":1023882.8}]
[{"$f":"AAMC_Raw_Data_for_FY22[[#This Row],[Source]]&AAMC_Raw_Data_for_FY22[[#This Row],[Type]]&AAMC_Raw_Data_for_FY22[[#This Row],[School Subset]]&AAMC_Raw_Data_for_FY22[[#This Row],[Rank]]&AAMC_Raw_Data_for_FY22[[#This Row],[Degree]]&AAMC_Raw_Data_for_FY22[[#This Row],[Department / Specialty]]&\"L\"","v":"AAMCAcademicPublicChiefMDOrthopedic Surgery: SpineL"},"Orthopedic Surgery: Spine",6,"AAMC","Academic","Public","Chief","MD","2021-2022",null,{"$f":"(((AAMC_Raw_Data_for_FY22[[#This Row],[Median]]-AAMC_Raw_Data_for_FY22[[#This Row],[25th]])/25)*5) + AAMC_Raw_Data_for_FY22[[#This Row],[25th]]","v":0},{"$f":"(((AAMC_Raw_Data_for_FY22[[#This Row],[Median]]-AAMC_Raw_Data_for_FY22[[#This Row],[25th]])/25)*10) + AAMC_Raw_Data_for_FY22[[#This Row],[25th]]","v":0},{"$f":"(((AAMC_Raw_Data_for_FY22[[#This Row],[Median]]-AAMC_Raw_Data_for_FY22[[#This Row],[25th]])/25)*15) + AAMC_Raw_Data_for_FY22[[#This Row],[25th]]","v":0},{"$f":"(((AAMC_Raw_Data_for_FY22[[#This Row],[Median]]-AAMC_Raw_Data_for_FY22[[#This Row],[25th]])/25)*20) + AAMC_Raw_Data_for_FY22[[#This Row],[25th]]","v":0},null,{"$f":"(((AAMC_Raw_Data_for_FY22[[#This Row],[75th]]-AAMC_Raw_Data_for_FY22[[#This Row],[Median]])/25)*5) + AAMC_Raw_Data_for_FY22[[#This Row],[Median]]","v":0},{"$f":"(((AAMC_Raw_Data_for_FY22[[#This Row],[75th]]-AAMC_Raw_Data_for_FY22[[#This Row],[Median]])/25)*10) + AAMC_Raw_Data_for_FY22[[#This Row],[Median]]","v":0},{"$f":"(((AAMC_Raw_Data_for_FY22[[#This Row],[75th]]-AAMC_Raw_Data_for_FY22[[#This Row],[Median]])/25)*15) + AAMC_Raw_Data_for_FY22[[#This Row],[Median]]","v":0},{"$f":"(((AAMC_Raw_Data_for_FY22[[#This Row],[75th]]-AAMC_Raw_Data_for_FY22[[#This Row],[Median]])/25)*20) + AAMC_Raw_Data_for_FY22[[#This Row],[Median]]","v":0},null,{"$f":"(((AAMC_Raw_Data_for_FY22[[#This Row],[75th]]-AAMC_Raw_Data_for_FY22[[#This Row],[Median]])/25)*30) + AAMC_Raw_Data_for_FY22[[#This Row],[Median]]","v":0},{"$f":"(((AAMC_Raw_Data_for_FY22[[#This Row],[75th]]-AAMC_Raw_Data_for_FY22[[#This Row],[Median]])/25)*35) + AAMC_Raw_Data_for_FY22[[#This Row],[Median]]","v":0},{"$f":"(((AAMC_Raw_Data_for_FY22[[#This Row],[75th]]-AAMC_Raw_Data_for_FY22[[#This Row],[Median]])/25)*40) + AAMC_Raw_Data_for_FY22[[#This Row],[Median]]","v":0}]
[{"$f":"AAMC_Raw_Data_for_FY22[[#This Row],[Source]]&AAMC_Raw_Data_for_FY22[[#This Row],[Type]]&AAMC_Raw_Data_for_FY22[[#This Row],[School Subset]]&AAMC_Raw_Data_for_FY22[[#This Row],[Rank]]&AAMC_Raw_Data_for_FY22[[#This Row],[Degree]]&AAMC_Raw_Data_for_FY22[[#This Row],[Department / Specialty]]&\"L\"","v":"AAMCAcademicPublicChairMDOrthopedic Surgery: SpineL"},"Orthopedic Surgery: Spine",1,"AAMC","Academic","Public","Chair","MD","2021-2022",null,{"$f":"(((AAMC_Raw_Data_for_FY22[[#This Row],[Median]]-AAMC_Raw_Data_for_FY22[[#This Row],[25th]])/25)*5) + AAMC_Raw_Data_for_FY22[[#This Row],[25th]]","v":0},{"$f":"(((AAMC_Raw_Data_for_FY22[[#This Row],[Median]]-AAMC_Raw_Data_for_FY22[[#This Row],[25th]])/25)*10) + AAMC_Raw_Data_for_FY22[[#This Row],[25th]]","v":0},{"$f":"(((AAMC_Raw_Data_for_FY22[[#This Row],[Median]]-AAMC_Raw_Data_for_FY22[[#This Row],[25th]])/25)*15) + AAMC_Raw_Data_for_FY22[[#This Row],[25th]]","v":0},{"$f":"(((AAMC_Raw_Data_for_FY22[[#This Row],[Median]]-AAMC_Raw_Data_for_FY22[[#This Row],[25th]])/25)*20) + AAMC_Raw_Data_for_FY22[[#This Row],[25th]]","v":0},null,{"$f":"(((AAMC_Raw_Data_for_FY22[[#This Row],[75th]]-AAMC_Raw_Data_for_FY22[[#This Row],[Median]])/25)*5) + AAMC_Raw_Data_for_FY22[[#This Row],[Median]]","v":0},{"$f":"(((AAMC_Raw_Data_for_FY22[[#This Row],[75th]]-AAMC_Raw_Data_for_FY22[[#This Row],[Median]])/25)*10) + AAMC_Raw_Data_for_FY22[[#This Row],[Median]]","v":0},{"$f":"(((AAMC_Raw_Data_for_FY22[[#This Row],[75th]]-AAMC_Raw_Data_for_FY22[[#This Row],[Median]])/25)*15) + AAMC_Raw_Data_for_FY22[[#This Row],[Median]]","v":0},{"$f":"(((AAMC_Raw_Data_for_FY22[[#This Row],[75th]]-AAMC_Raw_Data_for_FY22[[#This Row],[Median]])/25)*20) + AAMC_Raw_Data_for_FY22[[#This Row],[Median]]","v":0},null,{"$f":"(((AAMC_Raw_Data_for_FY22[[#This Row],[75th]]-AAMC_Raw_Data_for_FY22[[#This Row],[Median]])/25)*30) + AAMC_Raw_Data_for_FY22[[#This Row],[Median]]","v":0},{"$f":"(((AAMC_Raw_Data_for_FY22[[#This Row],[75th]]-AAMC_Raw_Data_for_FY22[[#This Row],[Median]])/25)*35) + AAMC_Raw_Data_for_FY22[[#This Row],[Median]]","v":0},{"$f":"(((AAMC_Raw_Data_for_FY22[[#This Row],[75th]]-AAMC_Raw_Data_for_FY22[[#This Row],[Median]])/25)*40) + AAMC_Raw_Data_for_FY22[[#This Row],[Median]]","v":0}]
[{"$f":"AAMC_Raw_Data_for_FY22[[#This Row],[Source]]&AAMC_Raw_Data_for_FY22[[#This Row],[Type]]&AAMC_Raw_Data_for_FY22[[#This Row],[School Subset]]&AAMC_Raw_Data_for_FY22[[#This Row],[Rank]]&AAMC_Raw_Data_for_FY22[[#This Row],[Degree]]&AAMC_Raw_Data_for_FY22[[#This Row],[Department / Specialty]]&\"L\"","v":"AAMCAcademicPublicAssistantMDOrthopedic Surgery: Sports MedicineL"},"Orthopedic Surgery: Sports Medicine",4,"AAMC","Academic","Public","Assistant","MD","2021-2022",442274,{"$f":"(((AAMC_Raw_Data_for_FY22[[#This Row],[Median]]-AAMC_Raw_Data_for_FY22[[#This Row],[25th]])/25)*5) + AAMC_Raw_Data_for_FY22[[#This Row],[25th]]","v":469979.6},{"$f":"(((AAMC_Raw_Data_for_FY22[[#This Row],[Median]]-AAMC_Raw_Data_for_FY22[[#This Row],[25th]])/25)*10) + AAMC_Raw_Data_for_FY22[[#This Row],[25th]]","v":497685.2},{"$f":"(((AAMC_Raw_Data_for_FY22[[#This Row],[Median]]-AAMC_Raw_Data_for_FY22[[#This Row],[25th]])/25)*15) + AAMC_Raw_Data_for_FY22[[#This Row],[25th]]","v":525390.80000000005},{"$f":"(((AAMC_Raw_Data_for_FY22[[#This Row],[Median]]-AAMC_Raw_Data_for_FY22[[#This Row],[25th]])/25)*20) + AAMC_Raw_Data_for_FY22[[#This Row],[25th]]","v":553096.4},580802,{"$f":"(((AAMC_Raw_Data_for_FY22[[#This Row],[75th]]-AAMC_Raw_Data_for_FY22[[#This Row],[Median]])/25)*5) + AAMC_Raw_Data_for_FY22[[#This Row],[Median]]","v":612387.4},{"$f":"(((AAMC_Raw_Data_for_FY22[[#This Row],[75th]]-AAMC_Raw_Data_for_FY22[[#This Row],[Median]])/25)*10) + AAMC_Raw_Data_for_FY22[[#This Row],[Median]]","v":643972.80000000005},{"$f":"(((AAMC_Raw_Data_for_FY22[[#This Row],[75th]]-AAMC_Raw_Data_for_FY22[[#This Row],[Median]])/25)*15) + AAMC_Raw_Data_for_FY22[[#This Row],[Median]]","v":675558.2},{"$f":"(((AAMC_Raw_Data_for_FY22[[#This Row],[75th]]-AAMC_Raw_Data_for_FY22[[#This Row],[Median]])/25)*20) + AAMC_Raw_Data_for_FY22[[#This Row],[Median]]","v":707143.6},738729,{"$f":"(((AAMC_Raw_Data_for_FY22[[#This Row],[75th]]-AAMC_Raw_Data_for_FY22[[#This Row],[Median]])/25)*30) + AAMC_Raw_Data_for_FY22[[#This Row],[Median]]","v":770314.4},{"$f":"(((AAMC_Raw_Data_for_FY22[[#This Row],[75th]]-AAMC_Raw_Data_for_FY22[[#This Row],[Median]])/25)*35) + AAMC_Raw_Data_for_FY22[[#This Row],[Median]]","v":801899.8},{"$f":"(((AAMC_Raw_Data_for_FY22[[#This Row],[75th]]-AAMC_Raw_Data_for_FY22[[#This Row],[Median]])/25)*40) + AAMC_Raw_Data_for_FY22[[#This Row],[Median]]","v":833485.2}]
[{"$f":"AAMC_Raw_Data_for_FY22[[#This Row],[Source]]&AAMC_Raw_Data_for_FY22[[#This Row],[Type]]&AAMC_Raw_Data_for_FY22[[#This Row],[School Subset]]&AAMC_Raw_Data_for_FY22[[#This Row],[Rank]]&AAMC_Raw_Data_for_FY22[[#This Row],[Degree]]&AAMC_Raw_Data_for_FY22[[#This Row],[Department / Specialty]]&\"L\"","v":"AAMCAcademicPublicAssociateMDOrthopedic Surgery: Sports MedicineL"},"Orthopedic Surgery: Sports Medicine",3,"AAMC","Academic","Public","Associate","MD","2021-2022",557936,{"$f":"(((AAMC_Raw_Data_for_FY22[[#This Row],[Median]]-AAMC_Raw_Data_for_FY22[[#This Row],[25th]])/25)*5) + AAMC_Raw_Data_for_FY22[[#This Row],[25th]]","v":584392.80000000005},{"$f":"(((AAMC_Raw_Data_for_FY22[[#This Row],[Median]]-AAMC_Raw_Data_for_FY22[[#This Row],[25th]])/25)*10) + AAMC_Raw_Data_for_FY22[[#This Row],[25th]]","v":610849.6},{"$f":"(((AAMC_Raw_Data_for_FY22[[#This Row],[Median]]-AAMC_Raw_Data_for_FY22[[#This Row],[25th]])/25)*15) + AAMC_Raw_Data_for_FY22[[#This Row],[25th]]","v":637306.4},{"$f":"(((AAMC_Raw_Data_for_FY22[[#This Row],[Median]]-AAMC_Raw_Data_for_FY22[[#This Row],[25th]])/25)*20) + AAMC_Raw_Data_for_FY22[[#This Row],[25th]]","v":663763.19999999995},690220,{"$f":"(((AAMC_Raw_Data_for_FY22[[#This Row],[75th]]-AAMC_Raw_Data_for_FY22[[#This Row],[Median]])/25)*5) + AAMC_Raw_Data_for_FY22[[#This Row],[Median]]","v":746172},{"$f":"(((AAMC_Raw_Data_for_FY22[[#This Row],[75th]]-AAMC_Raw_Data_for_FY22[[#This Row],[Median]])/25)*10) + AAMC_Raw_Data_for_FY22[[#This Row],[Median]]","v":802124},{"$f":"(((AAMC_Raw_Data_for_FY22[[#This Row],[75th]]-AAMC_Raw_Data_for_FY22[[#This Row],[Median]])/25)*15) + AAMC_Raw_Data_for_FY22[[#This Row],[Median]]","v":858076},{"$f":"(((AAMC_Raw_Data_for_FY22[[#This Row],[75th]]-AAMC_Raw_Data_for_FY22[[#This Row],[Median]])/25)*20) + AAMC_Raw_Data_for_FY22[[#This Row],[Median]]","v":914028},969980,{"$f":"(((AAMC_Raw_Data_for_FY22[[#This Row],[75th]]-AAMC_Raw_Data_for_FY22[[#This Row],[Median]])/25)*30) + AAMC_Raw_Data_for_FY22[[#This Row],[Median]]","v":1025932},{"$f":"(((AAMC_Raw_Data_for_FY22[[#This Row],[75th]]-AAMC_Raw_Data_for_FY22[[#This Row],[Median]])/25)*35) + AAMC_Raw_Data_for_FY22[[#This Row],[Median]]","v":1081884},{"$f":"(((AAMC_Raw_Data_for_FY22[[#This Row],[75th]]-AAMC_Raw_Data_for_FY22[[#This Row],[Median]])/25)*40) + AAMC_Raw_Data_for_FY22[[#This Row],[Median]]","v":1137836}]
[{"$f":"AAMC_Raw_Data_for_FY22[[#This Row],[Source]]&AAMC_Raw_Data_for_FY22[[#This Row],[Type]]&AAMC_Raw_Data_for_FY22[[#This Row],[School Subset]]&AAMC_Raw_Data_for_FY22[[#This Row],[Rank]]&AAMC_Raw_Data_for_FY22[[#This Row],[Degree]]&AAMC_Raw_Data_for_FY22[[#This Row],[Department / Specialty]]&\"L\"","v":"AAMCAcademicPublicProfessorMDOrthopedic Surgery: Sports MedicineL"},"Orthopedic Surgery: Sports Medicine",2,"AAMC","Academic","Public","Professor","MD","2021-2022",490621,{"$f":"(((AAMC_Raw_Data_for_FY22[[#This Row],[Median]]-AAMC_Raw_Data_for_FY22[[#This Row],[25th]])/25)*5) + AAMC_Raw_Data_for_FY22[[#This Row],[25th]]","v":525476.80000000005},{"$f":"(((AAMC_Raw_Data_for_FY22[[#This Row],[Median]]-AAMC_Raw_Data_for_FY22[[#This Row],[25th]])/25)*10) + AAMC_Raw_Data_for_FY22[[#This Row],[25th]]","v":560332.6},{"$f":"(((AAMC_Raw_Data_for_FY22[[#This Row],[Median]]-AAMC_Raw_Data_for_FY22[[#This Row],[25th]])/25)*15) + AAMC_Raw_Data_for_FY22[[#This Row],[25th]]","v":595188.4},{"$f":"(((AAMC_Raw_Data_for_FY22[[#This Row],[Median]]-AAMC_Raw_Data_for_FY22[[#This Row],[25th]])/25)*20) + AAMC_Raw_Data_for_FY22[[#This Row],[25th]]","v":630044.19999999995},664900,{"$f":"(((AAMC_Raw_Data_for_FY22[[#This Row],[75th]]-AAMC_Raw_Data_for_FY22[[#This Row],[Median]])/25)*5) + AAMC_Raw_Data_for_FY22[[#This Row],[Median]]","v":694552.8},{"$f":"(((AAMC_Raw_Data_for_FY22[[#This Row],[75th]]-AAMC_Raw_Data_for_FY22[[#This Row],[Median]])/25)*10) + AAMC_Raw_Data_for_FY22[[#This Row],[Median]]","v":724205.6},{"$f":"(((AAMC_Raw_Data_for_FY22[[#This Row],[75th]]-AAMC_Raw_Data_for_FY22[[#This Row],[Median]])/25)*15) + AAMC_Raw_Data_for_FY22[[#This Row],[Median]]","v":753858.4},{"$f":"(((AAMC_Raw_Data_for_FY22[[#This Row],[75th]]-AAMC_Raw_Data_for_FY22[[#This Row],[Median]])/25)*20) + AAMC_Raw_Data_for_FY22[[#This Row],[Median]]","v":783511.2},813164,{"$f":"(((AAMC_Raw_Data_for_FY22[[#This Row],[75th]]-AAMC_Raw_Data_for_FY22[[#This Row],[Median]])/25)*30) + AAMC_Raw_Data_for_FY22[[#This Row],[Median]]","v":842816.8},{"$f":"(((AAMC_Raw_Data_for_FY22[[#This Row],[75th]]-AAMC_Raw_Data_for_FY22[[#This Row],[Median]])/25)*35) + AAMC_Raw_Data_for_FY22[[#This Row],[Median]]","v":872469.6},{"$f":"(((AAMC_Raw_Data_for_FY22[[#This Row],[75th]]-AAMC_Raw_Data_for_FY22[[#This Row],[Median]])/25)*40) + AAMC_Raw_Data_for_FY22[[#This Row],[Median]]","v":902122.4}]
[{"$f":"AAMC_Raw_Data_for_FY22[[#This Row],[Source]]&AAMC_Raw_Data_for_FY22[[#This Row],[Type]]&AAMC_Raw_Data_for_FY22[[#This Row],[School Subset]]&AAMC_Raw_Data_for_FY22[[#This Row],[Rank]]&AAMC_Raw_Data_for_FY22[[#This Row],[Degree]]&AAMC_Raw_Data_for_FY22[[#This Row],[Department / Specialty]]&\"L\"","v":"AAMCAcademicPublicChiefMDOrthopedic Surgery: Sports MedicineL"},"Orthopedic Surgery: Sports Medicine",6,"AAMC","Academic","Public","Chief","MD","2021-2022",584693,{"$f":"(((AAMC_Raw_Data_for_FY22[[#This Row],[Median]]-AAMC_Raw_Data_for_FY22[[#This Row],[25th]])/25)*5) + AAMC_Raw_Data_for_FY22[[#This Row],[25th]]","v":642561.4},{"$f":"(((AAMC_Raw_Data_for_FY22[[#This Row],[Median]]-AAMC_Raw_Data_for_FY22[[#This Row],[25th]])/25)*10) + AAMC_Raw_Data_for_FY22[[#This Row],[25th]]","v":700429.8},{"$f":"(((AAMC_Raw_Data_for_FY22[[#This Row],[Median]]-AAMC_Raw_Data_for_FY22[[#This Row],[25th]])/25)*15) + AAMC_Raw_Data_for_FY22[[#This Row],[25th]]","v":758298.2},{"$f":"(((AAMC_Raw_Data_for_FY22[[#This Row],[Median]]-AAMC_Raw_Data_for_FY22[[#This Row],[25th]])/25)*20) + AAMC_Raw_Data_for_FY22[[#This Row],[25th]]","v":816166.6},874035,{"$f":"(((AAMC_Raw_Data_for_FY22[[#This Row],[75th]]-AAMC_Raw_Data_for_FY22[[#This Row],[Median]])/25)*5) + AAMC_Raw_Data_for_FY22[[#This Row],[Median]]","v":893187.2},{"$f":"(((AAMC_Raw_Data_for_FY22[[#This Row],[75th]]-AAMC_Raw_Data_for_FY22[[#This Row],[Median]])/25)*10) + AAMC_Raw_Data_for_FY22[[#This Row],[Median]]","v":912339.4},{"$f":"(((AAMC_Raw_Data_for_FY22[[#This Row],[75th]]-AAMC_Raw_Data_for_FY22[[#This Row],[Median]])/25)*15) + AAMC_Raw_Data_for_FY22[[#This Row],[Median]]","v":931491.6},{"$f":"(((AAMC_Raw_Data_for_FY22[[#This Row],[75th]]-AAMC_Raw_Data_for_FY22[[#This Row],[Median]])/25)*20) + AAMC_Raw_Data_for_FY22[[#This Row],[Median]]","v":950643.8},969796,{"$f":"(((AAMC_Raw_Data_for_FY22[[#This Row],[75th]]-AAMC_Raw_Data_for_FY22[[#This Row],[Median]])/25)*30) + AAMC_Raw_Data_for_FY22[[#This Row],[Median]]","v":988948.2},{"$f":"(((AAMC_Raw_Data_for_FY22[[#This Row],[75th]]-AAMC_Raw_Data_for_FY22[[#This Row],[Median]])/25)*35) + AAMC_Raw_Data_for_FY22[[#This Row],[Median]]","v":1008100.4},{"$f":"(((AAMC_Raw_Data_for_FY22[[#This Row],[75th]]-AAMC_Raw_Data_for_FY22[[#This Row],[Median]])/25)*40) + AAMC_Raw_Data_for_FY22[[#This Row],[Median]]","v":1027252.6}]
[{"$f":"AAMC_Raw_Data_for_FY22[[#This Row],[Source]]&AAMC_Raw_Data_for_FY22[[#This Row],[Type]]&AAMC_Raw_Data_for_FY22[[#This Row],[School Subset]]&AAMC_Raw_Data_for_FY22[[#This Row],[Rank]]&AAMC_Raw_Data_for_FY22[[#This Row],[Degree]]&AAMC_Raw_Data_for_FY22[[#This Row],[Department / Specialty]]&\"L\"","v":"AAMCAcademicPublicChairMDOrthopedic Surgery: Sports MedicineL"},"Orthopedic Surgery: Sports Medicine",1,"AAMC","Academic","Public","Chair","MD","2021-2022",731980,{"$f":"(((AAMC_Raw_Data_for_FY22[[#This Row],[Median]]-AAMC_Raw_Data_for_FY22[[#This Row],[25th]])/25)*5) + AAMC_Raw_Data_for_FY22[[#This Row],[25th]]","v":735734},{"$f":"(((AAMC_Raw_Data_for_FY22[[#This Row],[Median]]-AAMC_Raw_Data_for_FY22[[#This Row],[25th]])/25)*10) + AAMC_Raw_Data_for_FY22[[#This Row],[25th]]","v":739488},{"$f":"(((AAMC_Raw_Data_for_FY22[[#This Row],[Median]]-AAMC_Raw_Data_for_FY22[[#This Row],[25th]])/25)*15) + AAMC_Raw_Data_for_FY22[[#This Row],[25th]]","v":743242},{"$f":"(((AAMC_Raw_Data_for_FY22[[#This Row],[Median]]-AAMC_Raw_Data_for_FY22[[#This Row],[25th]])/25)*20) + AAMC_Raw_Data_for_FY22[[#This Row],[25th]]","v":746996},750750,{"$f":"(((AAMC_Raw_Data_for_FY22[[#This Row],[75th]]-AAMC_Raw_Data_for_FY22[[#This Row],[Median]])/25)*5) + AAMC_Raw_Data_for_FY22[[#This Row],[Median]]","v":798303.6},{"$f":"(((AAMC_Raw_Data_for_FY22[[#This Row],[75th]]-AAMC_Raw_Data_for_FY22[[#This Row],[Median]])/25)*10) + AAMC_Raw_Data_for_FY22[[#This Row],[Median]]","v":845857.2},{"$f":"(((AAMC_Raw_Data_for_FY22[[#This Row],[75th]]-AAMC_Raw_Data_for_FY22[[#This Row],[Median]])/25)*15) + AAMC_Raw_Data_for_FY22[[#This Row],[Median]]","v":893410.8},{"$f":"(((AAMC_Raw_Data_for_FY22[[#This Row],[75th]]-AAMC_Raw_Data_for_FY22[[#This Row],[Median]])/25)*20) + AAMC_Raw_Data_for_FY22[[#This Row],[Median]]","v":940964.4},988518,{"$f":"(((AAMC_Raw_Data_for_FY22[[#This Row],[75th]]-AAMC_Raw_Data_for_FY22[[#This Row],[Median]])/25)*30) + AAMC_Raw_Data_for_FY22[[#This Row],[Median]]","v":1036071.6},{"$f":"(((AAMC_Raw_Data_for_FY22[[#This Row],[75th]]-AAMC_Raw_Data_for_FY22[[#This Row],[Median]])/25)*35) + AAMC_Raw_Data_for_FY22[[#This Row],[Median]]","v":1083625.2},{"$f":"(((AAMC_Raw_Data_for_FY22[[#This Row],[75th]]-AAMC_Raw_Data_for_FY22[[#This Row],[Median]])/25)*40) + AAMC_Raw_Data_for_FY22[[#This Row],[Median]]","v":1131178.8}]
[{"$f":"AAMC_Raw_Data_for_FY22[[#This Row],[Source]]&AAMC_Raw_Data_for_FY22[[#This Row],[Type]]&AAMC_Raw_Data_for_FY22[[#This Row],[School Subset]]&AAMC_Raw_Data_for_FY22[[#This Row],[Rank]]&AAMC_Raw_Data_for_FY22[[#This Row],[Degree]]&AAMC_Raw_Data_for_FY22[[#This Row],[Department / Specialty]]&\"L\"","v":"AAMCAcademicPublicAssistantMDOrthopedic Surgery: TraumaL"},"Orthopedic Surgery: Trauma",4,"AAMC","Academic","Public","Assistant","MD","2021-2022",457797,{"$f":"(((AAMC_Raw_Data_for_FY22[[#This Row],[Median]]-AAMC_Raw_Data_for_FY22[[#This Row],[25th]])/25)*5) + AAMC_Raw_Data_for_FY22[[#This Row],[25th]]","v":485463.6},{"$f":"(((AAMC_Raw_Data_for_FY22[[#This Row],[Median]]-AAMC_Raw_Data_for_FY22[[#This Row],[25th]])/25)*10) + AAMC_Raw_Data_for_FY22[[#This Row],[25th]]","v":513130.2},{"$f":"(((AAMC_Raw_Data_for_FY22[[#This Row],[Median]]-AAMC_Raw_Data_for_FY22[[#This Row],[25th]])/25)*15) + AAMC_Raw_Data_for_FY22[[#This Row],[25th]]","v":540796.80000000005},{"$f":"(((AAMC_Raw_Data_for_FY22[[#This Row],[Median]]-AAMC_Raw_Data_for_FY22[[#This Row],[25th]])/25)*20) + AAMC_Raw_Data_for_FY22[[#This Row],[25th]]","v":568463.4},596130,{"$f":"(((AAMC_Raw_Data_for_FY22[[#This Row],[75th]]-AAMC_Raw_Data_for_FY22[[#This Row],[Median]])/25)*5) + AAMC_Raw_Data_for_FY22[[#This Row],[Median]]","v":618456.6},{"$f":"(((AAMC_Raw_Data_for_FY22[[#This Row],[75th]]-AAMC_Raw_Data_for_FY22[[#This Row],[Median]])/25)*10) + AAMC_Raw_Data_for_FY22[[#This Row],[Median]]","v":640783.19999999995},{"$f":"(((AAMC_Raw_Data_for_FY22[[#This Row],[75th]]-AAMC_Raw_Data_for_FY22[[#This Row],[Median]])/25)*15) + AAMC_Raw_Data_for_FY22[[#This Row],[Median]]","v":663109.80000000005},{"$f":"(((AAMC_Raw_Data_for_FY22[[#This Row],[75th]]-AAMC_Raw_Data_for_FY22[[#This Row],[Median]])/25)*20) + AAMC_Raw_Data_for_FY22[[#This Row],[Median]]","v":685436.4},707763,{"$f":"(((AAMC_Raw_Data_for_FY22[[#This Row],[75th]]-AAMC_Raw_Data_for_FY22[[#This Row],[Median]])/25)*30) + AAMC_Raw_Data_for_FY22[[#This Row],[Median]]","v":730089.6},{"$f":"(((AAMC_Raw_Data_for_FY22[[#This Row],[75th]]-AAMC_Raw_Data_for_FY22[[#This Row],[Median]])/25)*35) + AAMC_Raw_Data_for_FY22[[#This Row],[Median]]","v":752416.2},{"$f":"(((AAMC_Raw_Data_for_FY22[[#This Row],[75th]]-AAMC_Raw_Data_for_FY22[[#This Row],[Median]])/25)*40) + AAMC_Raw_Data_for_FY22[[#This Row],[Median]]","v":774742.8}]
[{"$f":"AAMC_Raw_Data_for_FY22[[#This Row],[Source]]&AAMC_Raw_Data_for_FY22[[#This Row],[Type]]&AAMC_Raw_Data_for_FY22[[#This Row],[School Subset]]&AAMC_Raw_Data_for_FY22[[#This Row],[Rank]]&AAMC_Raw_Data_for_FY22[[#This Row],[Degree]]&AAMC_Raw_Data_for_FY22[[#This Row],[Department / Specialty]]&\"L\"","v":"AAMCAcademicPublicAssociateMDOrthopedic Surgery: TraumaL"},"Orthopedic Surgery: Trauma",3,"AAMC","Academic","Public","Associate","MD","2021-2022",521957,{"$f":"(((AAMC_Raw_Data_for_FY22[[#This Row],[Median]]-AAMC_Raw_Data_for_FY22[[#This Row],[25th]])/25)*5) + AAMC_Raw_Data_for_FY22[[#This Row],[25th]]","v":550770.6},{"$f":"(((AAMC_Raw_Data_for_FY22[[#This Row],[Median]]-AAMC_Raw_Data_for_FY22[[#This Row],[25th]])/25)*10) + AAMC_Raw_Data_for_FY22[[#This Row],[25th]]","v":579584.19999999995},{"$f":"(((AAMC_Raw_Data_for_FY22[[#This Row],[Median]]-AAMC_Raw_Data_for_FY22[[#This Row],[25th]])/25)*15) + AAMC_Raw_Data_for_FY22[[#This Row],[25th]]","v":608397.80000000005},{"$f":"(((AAMC_Raw_Data_for_FY22[[#This Row],[Median]]-AAMC_Raw_Data_for_FY22[[#This Row],[25th]])/25)*20) + AAMC_Raw_Data_for_FY22[[#This Row],[25th]]","v":637211.4},666025,{"$f":"(((AAMC_Raw_Data_for_FY22[[#This Row],[75th]]-AAMC_Raw_Data_for_FY22[[#This Row],[Median]])/25)*5) + AAMC_Raw_Data_for_FY22[[#This Row],[Median]]","v":677040.4},{"$f":"(((AAMC_Raw_Data_for_FY22[[#This Row],[75th]]-AAMC_Raw_Data_for_FY22[[#This Row],[Median]])/25)*10) + AAMC_Raw_Data_for_FY22[[#This Row],[Median]]","v":688055.8},{"$f":"(((AAMC_Raw_Data_for_FY22[[#This Row],[75th]]-AAMC_Raw_Data_for_FY22[[#This Row],[Median]])/25)*15) + AAMC_Raw_Data_for_FY22[[#This Row],[Median]]","v":699071.2},{"$f":"(((AAMC_Raw_Data_for_FY22[[#This Row],[75th]]-AAMC_Raw_Data_for_FY22[[#This Row],[Median]])/25)*20) + AAMC_Raw_Data_for_FY22[[#This Row],[Median]]","v":710086.6},721102,{"$f":"(((AAMC_Raw_Data_for_FY22[[#This Row],[75th]]-AAMC_Raw_Data_for_FY22[[#This Row],[Median]])/25)*30) + AAMC_Raw_Data_for_FY22[[#This Row],[Median]]","v":732117.4},{"$f":"(((AAMC_Raw_Data_for_FY22[[#This Row],[75th]]-AAMC_Raw_Data_for_FY22[[#This Row],[Median]])/25)*35) + AAMC_Raw_Data_for_FY22[[#This Row],[Median]]","v":743132.8},{"$f":"(((AAMC_Raw_Data_for_FY22[[#This Row],[75th]]-AAMC_Raw_Data_for_FY22[[#This Row],[Median]])/25)*40) + AAMC_Raw_Data_for_FY22[[#This Row],[Median]]","v":754148.2}]
[{"$f":"AAMC_Raw_Data_for_FY22[[#This Row],[Source]]&AAMC_Raw_Data_for_FY22[[#This Row],[Type]]&AAMC_Raw_Data_for_FY22[[#This Row],[School Subset]]&AAMC_Raw_Data_for_FY22[[#This Row],[Rank]]&AAMC_Raw_Data_for_FY22[[#This Row],[Degree]]&AAMC_Raw_Data_for_FY22[[#This Row],[Department / Specialty]]&\"L\"","v":"AAMCAcademicPublicProfessorMDOrthopedic Surgery: TraumaL"},"Orthopedic Surgery: Trauma",2,"AAMC","Academic","Public","Professor","MD","2021-2022",565000,{"$f":"(((AAMC_Raw_Data_for_FY22[[#This Row],[Median]]-AAMC_Raw_Data_for_FY22[[#This Row],[25th]])/25)*5) + AAMC_Raw_Data_for_FY22[[#This Row],[25th]]","v":580520},{"$f":"(((AAMC_Raw_Data_for_FY22[[#This Row],[Median]]-AAMC_Raw_Data_for_FY22[[#This Row],[25th]])/25)*10) + AAMC_Raw_Data_for_FY22[[#This Row],[25th]]","v":596040},{"$f":"(((AAMC_Raw_Data_for_FY22[[#This Row],[Median]]-AAMC_Raw_Data_for_FY22[[#This Row],[25th]])/25)*15) + AAMC_Raw_Data_for_FY22[[#This Row],[25th]]","v":611560},{"$f":"(((AAMC_Raw_Data_for_FY22[[#This Row],[Median]]-AAMC_Raw_Data_for_FY22[[#This Row],[25th]])/25)*20) + AAMC_Raw_Data_for_FY22[[#This Row],[25th]]","v":627080},642600,{"$f":"(((AAMC_Raw_Data_for_FY22[[#This Row],[75th]]-AAMC_Raw_Data_for_FY22[[#This Row],[Median]])/25)*5) + AAMC_Raw_Data_for_FY22[[#This Row],[Median]]","v":669626.80000000005},{"$f":"(((AAMC_Raw_Data_for_FY22[[#This Row],[75th]]-AAMC_Raw_Data_for_FY22[[#This Row],[Median]])/25)*10) + AAMC_Raw_Data_for_FY22[[#This Row],[Median]]","v":696653.6},{"$f":"(((AAMC_Raw_Data_for_FY22[[#This Row],[75th]]-AAMC_Raw_Data_for_FY22[[#This Row],[Median]])/25)*15) + AAMC_Raw_Data_for_FY22[[#This Row],[Median]]","v":723680.4},{"$f":"(((AAMC_Raw_Data_for_FY22[[#This Row],[75th]]-AAMC_Raw_Data_for_FY22[[#This Row],[Median]])/25)*20) + AAMC_Raw_Data_for_FY22[[#This Row],[Median]]","v":750707.19999999995},777734,{"$f":"(((AAMC_Raw_Data_for_FY22[[#This Row],[75th]]-AAMC_Raw_Data_for_FY22[[#This Row],[Median]])/25)*30) + AAMC_Raw_Data_for_FY22[[#This Row],[Median]]","v":804760.8},{"$f":"(((AAMC_Raw_Data_for_FY22[[#This Row],[75th]]-AAMC_Raw_Data_for_FY22[[#This Row],[Median]])/25)*35) + AAMC_Raw_Data_for_FY22[[#This Row],[Median]]","v":831787.6},{"$f":"(((AAMC_Raw_Data_for_FY22[[#This Row],[75th]]-AAMC_Raw_Data_for_FY22[[#This Row],[Median]])/25)*40) + AAMC_Raw_Data_for_FY22[[#This Row],[Median]]","v":858814.4}]
[{"$f":"AAMC_Raw_Data_for_FY22[[#This Row],[Source]]&AAMC_Raw_Data_for_FY22[[#This Row],[Type]]&AAMC_Raw_Data_for_FY22[[#This Row],[School Subset]]&AAMC_Raw_Data_for_FY22[[#This Row],[Rank]]&AAMC_Raw_Data_for_FY22[[#This Row],[Degree]]&AAMC_Raw_Data_for_FY22[[#This Row],[Department / Specialty]]&\"L\"","v":"AAMCAcademicPublicChiefMDOrthopedic Surgery: TraumaL"},"Orthopedic Surgery: Trauma",6,"AAMC","Academic","Public","Chief","MD","2021-2022",567000,{"$f":"(((AAMC_Raw_Data_for_FY22[[#This Row],[Median]]-AAMC_Raw_Data_for_FY22[[#This Row],[25th]])/25)*5) + AAMC_Raw_Data_for_FY22[[#This Row],[25th]]","v":602300},{"$f":"(((AAMC_Raw_Data_for_FY22[[#This Row],[Median]]-AAMC_Raw_Data_for_FY22[[#This Row],[25th]])/25)*10) + AAMC_Raw_Data_for_FY22[[#This Row],[25th]]","v":637600},{"$f":"(((AAMC_Raw_Data_for_FY22[[#This Row],[Median]]-AAMC_Raw_Data_for_FY22[[#This Row],[25th]])/25)*15) + AAMC_Raw_Data_for_FY22[[#This Row],[25th]]","v":672900},{"$f":"(((AAMC_Raw_Data_for_FY22[[#This Row],[Median]]-AAMC_Raw_Data_for_FY22[[#This Row],[25th]])/25)*20) + AAMC_Raw_Data_for_FY22[[#This Row],[25th]]","v":708200},743500,{"$f":"(((AAMC_Raw_Data_for_FY22[[#This Row],[75th]]-AAMC_Raw_Data_for_FY22[[#This Row],[Median]])/25)*5) + AAMC_Raw_Data_for_FY22[[#This Row],[Median]]","v":782579.4},{"$f":"(((AAMC_Raw_Data_for_FY22[[#This Row],[75th]]-AAMC_Raw_Data_for_FY22[[#This Row],[Median]])/25)*10) + AAMC_Raw_Data_for_FY22[[#This Row],[Median]]","v":821658.8},{"$f":"(((AAMC_Raw_Data_for_FY22[[#This Row],[75th]]-AAMC_Raw_Data_for_FY22[[#This Row],[Median]])/25)*15) + AAMC_Raw_Data_for_FY22[[#This Row],[Median]]","v":860738.2},{"$f":"(((AAMC_Raw_Data_for_FY22[[#This Row],[75th]]-AAMC_Raw_Data_for_FY22[[#This Row],[Median]])/25)*20) + AAMC_Raw_Data_for_FY22[[#This Row],[Median]]","v":899817.6},938897,{"$f":"(((AAMC_Raw_Data_for_FY22[[#This Row],[75th]]-AAMC_Raw_Data_for_FY22[[#This Row],[Median]])/25)*30) + AAMC_Raw_Data_for_FY22[[#This Row],[Median]]","v":977976.4},{"$f":"(((AAMC_Raw_Data_for_FY22[[#This Row],[75th]]-AAMC_Raw_Data_for_FY22[[#This Row],[Median]])/25)*35) + AAMC_Raw_Data_for_FY22[[#This Row],[Median]]","v":1017055.8},{"$f":"(((AAMC_Raw_Data_for_FY22[[#This Row],[75th]]-AAMC_Raw_Data_for_FY22[[#This Row],[Median]])/25)*40) + AAMC_Raw_Data_for_FY22[[#This Row],[Median]]","v":1056135.2}]
[{"$f":"AAMC_Raw_Data_for_FY22[[#This Row],[Source]]&AAMC_Raw_Data_for_FY22[[#This Row],[Type]]&AAMC_Raw_Data_for_FY22[[#This Row],[School Subset]]&AAMC_Raw_Data_for_FY22[[#This Row],[Rank]]&AAMC_Raw_Data_for_FY22[[#This Row],[Degree]]&AAMC_Raw_Data_for_FY22[[#This Row],[Department / Specialty]]&\"L\"","v":"AAMCAcademicPublicChairMDOrthopedic Surgery: TraumaL"},"Orthopedic Surgery: Trauma",1,"AAMC","Academic","Public","Chair","MD","2021-2022",null,{"$f":"(((AAMC_Raw_Data_for_FY22[[#This Row],[Median]]-AAMC_Raw_Data_for_FY22[[#This Row],[25th]])/25)*5) + AAMC_Raw_Data_for_FY22[[#This Row],[25th]]","v":0},{"$f":"(((AAMC_Raw_Data_for_FY22[[#This Row],[Median]]-AAMC_Raw_Data_for_FY22[[#This Row],[25th]])/25)*10) + AAMC_Raw_Data_for_FY22[[#This Row],[25th]]","v":0},{"$f":"(((AAMC_Raw_Data_for_FY22[[#This Row],[Median]]-AAMC_Raw_Data_for_FY22[[#This Row],[25th]])/25)*15) + AAMC_Raw_Data_for_FY22[[#This Row],[25th]]","v":0},{"$f":"(((AAMC_Raw_Data_for_FY22[[#This Row],[Median]]-AAMC_Raw_Data_for_FY22[[#This Row],[25th]])/25)*20) + AAMC_Raw_Data_for_FY22[[#This Row],[25th]]","v":0},null,{"$f":"(((AAMC_Raw_Data_for_FY22[[#This Row],[75th]]-AAMC_Raw_Data_for_FY22[[#This Row],[Median]])/25)*5) + AAMC_Raw_Data_for_FY22[[#This Row],[Median]]","v":0},{"$f":"(((AAMC_Raw_Data_for_FY22[[#This Row],[75th]]-AAMC_Raw_Data_for_FY22[[#This Row],[Median]])/25)*10) + AAMC_Raw_Data_for_FY22[[#This Row],[Median]]","v":0},{"$f":"(((AAMC_Raw_Data_for_FY22[[#This Row],[75th]]-AAMC_Raw_Data_for_FY22[[#This Row],[Median]])/25)*15) + AAMC_Raw_Data_for_FY22[[#This Row],[Median]]","v":0},{"$f":"(((AAMC_Raw_Data_for_FY22[[#This Row],[75th]]-AAMC_Raw_Data_for_FY22[[#This Row],[Median]])/25)*20) + AAMC_Raw_Data_for_FY22[[#This Row],[Median]]","v":0},null,{"$f":"(((AAMC_Raw_Data_for_FY22[[#This Row],[75th]]-AAMC_Raw_Data_for_FY22[[#This Row],[Median]])/25)*30) + AAMC_Raw_Data_for_FY22[[#This Row],[Median]]","v":0},{"$f":"(((AAMC_Raw_Data_for_FY22[[#This Row],[75th]]-AAMC_Raw_Data_for_FY22[[#This Row],[Median]])/25)*35) + AAMC_Raw_Data_for_FY22[[#This Row],[Median]]","v":0},{"$f":"(((AAMC_Raw_Data_for_FY22[[#This Row],[75th]]-AAMC_Raw_Data_for_FY22[[#This Row],[Median]])/25)*40) + AAMC_Raw_Data_for_FY22[[#This Row],[Median]]","v":0}]
[{"$f":"AAMC_Raw_Data_for_FY22[[#This Row],[Source]]&AAMC_Raw_Data_for_FY22[[#This Row],[Type]]&AAMC_Raw_Data_for_FY22[[#This Row],[School Subset]]&AAMC_Raw_Data_for_FY22[[#This Row],[Rank]]&AAMC_Raw_Data_for_FY22[[#This Row],[Degree]]&AAMC_Raw_Data_for_FY22[[#This Row],[Department / Specialty]]&\"L\"","v":"AAMCAcademicPublicInstructorMDOrthopedic Surgery: OtherL"},"Orthopedic Surgery: Other",5,"AAMC","Academic","Public","Instructor","MD","2021-2022",null,{"$f":"(((AAMC_Raw_Data_for_FY22[[#This Row],[Median]]-AAMC_Raw_Data_for_FY22[[#This Row],[25th]])/25)*5) + AAMC_Raw_Data_for_FY22[[#This Row],[25th]]","v":0},{"$f":"(((AAMC_Raw_Data_for_FY22[[#This Row],[Median]]-AAMC_Raw_Data_for_FY22[[#This Row],[25th]])/25)*10) + AAMC_Raw_Data_for_FY22[[#This Row],[25th]]","v":0},{"$f":"(((AAMC_Raw_Data_for_FY22[[#This Row],[Median]]-AAMC_Raw_Data_for_FY22[[#This Row],[25th]])/25)*15) + AAMC_Raw_Data_for_FY22[[#This Row],[25th]]","v":0},{"$f":"(((AAMC_Raw_Data_for_FY22[[#This Row],[Median]]-AAMC_Raw_Data_for_FY22[[#This Row],[25th]])/25)*20) + AAMC_Raw_Data_for_FY22[[#This Row],[25th]]","v":0},null,{"$f":"(((AAMC_Raw_Data_for_FY22[[#This Row],[75th]]-AAMC_Raw_Data_for_FY22[[#This Row],[Median]])/25)*5) + AAMC_Raw_Data_for_FY22[[#This Row],[Median]]","v":0},{"$f":"(((AAMC_Raw_Data_for_FY22[[#This Row],[75th]]-AAMC_Raw_Data_for_FY22[[#This Row],[Median]])/25)*10) + AAMC_Raw_Data_for_FY22[[#This Row],[Median]]","v":0},{"$f":"(((AAMC_Raw_Data_for_FY22[[#This Row],[75th]]-AAMC_Raw_Data_for_FY22[[#This Row],[Median]])/25)*15) + AAMC_Raw_Data_for_FY22[[#This Row],[Median]]","v":0},{"$f":"(((AAMC_Raw_Data_for_FY22[[#This Row],[75th]]-AAMC_Raw_Data_for_FY22[[#This Row],[Median]])/25)*20) + AAMC_Raw_Data_for_FY22[[#This Row],[Median]]","v":0},null,{"$f":"(((AAMC_Raw_Data_for_FY22[[#This Row],[75th]]-AAMC_Raw_Data_for_FY22[[#This Row],[Median]])/25)*30) + AAMC_Raw_Data_for_FY22[[#This Row],[Median]]","v":0},{"$f":"(((AAMC_Raw_Data_for_FY22[[#This Row],[75th]]-AAMC_Raw_Data_for_FY22[[#This Row],[Median]])/25)*35) + AAMC_Raw_Data_for_FY22[[#This Row],[Median]]","v":0},{"$f":"(((AAMC_Raw_Data_for_FY22[[#This Row],[75th]]-AAMC_Raw_Data_for_FY22[[#This Row],[Median]])/25)*40) + AAMC_Raw_Data_for_FY22[[#This Row],[Median]]","v":0}]
[{"$f":"AAMC_Raw_Data_for_FY22[[#This Row],[Source]]&AAMC_Raw_Data_for_FY22[[#This Row],[Type]]&AAMC_Raw_Data_for_FY22[[#This Row],[School Subset]]&AAMC_Raw_Data_for_FY22[[#This Row],[Rank]]&AAMC_Raw_Data_for_FY22[[#This Row],[Degree]]&AAMC_Raw_Data_for_FY22[[#This Row],[Department / Specialty]]&\"L\"","v":"AAMCAcademicPublicAssistantMDOrthopedic Surgery: OtherL"},"Orthopedic Surgery: Other",4,"AAMC","Academic","Public","Assistant","MD","2021-2022",389022,{"$f":"(((AAMC_Raw_Data_for_FY22[[#This Row],[Median]]-AAMC_Raw_Data_for_FY22[[#This Row],[25th]])/25)*5) + AAMC_Raw_Data_for_FY22[[#This Row],[25th]]","v":415240},{"$f":"(((AAMC_Raw_Data_for_FY22[[#This Row],[Median]]-AAMC_Raw_Data_for_FY22[[#This Row],[25th]])/25)*10) + AAMC_Raw_Data_for_FY22[[#This Row],[25th]]","v":441458},{"$f":"(((AAMC_Raw_Data_for_FY22[[#This Row],[Median]]-AAMC_Raw_Data_for_FY22[[#This Row],[25th]])/25)*15) + AAMC_Raw_Data_for_FY22[[#This Row],[25th]]","v":467676},{"$f":"(((AAMC_Raw_Data_for_FY22[[#This Row],[Median]]-AAMC_Raw_Data_for_FY22[[#This Row],[25th]])/25)*20) + AAMC_Raw_Data_for_FY22[[#This Row],[25th]]","v":493894},520112,{"$f":"(((AAMC_Raw_Data_for_FY22[[#This Row],[75th]]-AAMC_Raw_Data_for_FY22[[#This Row],[Median]])/25)*5) + AAMC_Raw_Data_for_FY22[[#This Row],[Median]]","v":549675.6},{"$f":"(((AAMC_Raw_Data_for_FY22[[#This Row],[75th]]-AAMC_Raw_Data_for_FY22[[#This Row],[Median]])/25)*10) + AAMC_Raw_Data_for_FY22[[#This Row],[Median]]","v":579239.19999999995},{"$f":"(((AAMC_Raw_Data_for_FY22[[#This Row],[75th]]-AAMC_Raw_Data_for_FY22[[#This Row],[Median]])/25)*15) + AAMC_Raw_Data_for_FY22[[#This Row],[Median]]","v":608802.80000000005},{"$f":"(((AAMC_Raw_Data_for_FY22[[#This Row],[75th]]-AAMC_Raw_Data_for_FY22[[#This Row],[Median]])/25)*20) + AAMC_Raw_Data_for_FY22[[#This Row],[Median]]","v":638366.4},667930,{"$f":"(((AAMC_Raw_Data_for_FY22[[#This Row],[75th]]-AAMC_Raw_Data_for_FY22[[#This Row],[Median]])/25)*30) + AAMC_Raw_Data_for_FY22[[#This Row],[Median]]","v":697493.6},{"$f":"(((AAMC_Raw_Data_for_FY22[[#This Row],[75th]]-AAMC_Raw_Data_for_FY22[[#This Row],[Median]])/25)*35) + AAMC_Raw_Data_for_FY22[[#This Row],[Median]]","v":727057.2},{"$f":"(((AAMC_Raw_Data_for_FY22[[#This Row],[75th]]-AAMC_Raw_Data_for_FY22[[#This Row],[Median]])/25)*40) + AAMC_Raw_Data_for_FY22[[#This Row],[Median]]","v":756620.80000000005}]
[{"$f":"AAMC_Raw_Data_for_FY22[[#This Row],[Source]]&AAMC_Raw_Data_for_FY22[[#This Row],[Type]]&AAMC_Raw_Data_for_FY22[[#This Row],[School Subset]]&AAMC_Raw_Data_for_FY22[[#This Row],[Rank]]&AAMC_Raw_Data_for_FY22[[#This Row],[Degree]]&AAMC_Raw_Data_for_FY22[[#This Row],[Department / Specialty]]&\"L\"","v":"AAMCAcademicPublicAssociateMDOrthopedic Surgery: OtherL"},"Orthopedic Surgery: Other",3,"AAMC","Academic","Public","Associate","MD","2021-2022",495410,{"$f":"(((AAMC_Raw_Data_for_FY22[[#This Row],[Median]]-AAMC_Raw_Data_for_FY22[[#This Row],[25th]])/25)*5) + AAMC_Raw_Data_for_FY22[[#This Row],[25th]]","v":512050.4},{"$f":"(((AAMC_Raw_Data_for_FY22[[#This Row],[Median]]-AAMC_Raw_Data_for_FY22[[#This Row],[25th]])/25)*10) + AAMC_Raw_Data_for_FY22[[#This Row],[25th]]","v":528690.80000000005},{"$f":"(((AAMC_Raw_Data_for_FY22[[#This Row],[Median]]-AAMC_Raw_Data_for_FY22[[#This Row],[25th]])/25)*15) + AAMC_Raw_Data_for_FY22[[#This Row],[25th]]","v":545331.19999999995},{"$f":"(((AAMC_Raw_Data_for_FY22[[#This Row],[Median]]-AAMC_Raw_Data_for_FY22[[#This Row],[25th]])/25)*20) + AAMC_Raw_Data_for_FY22[[#This Row],[25th]]","v":561971.6},578612,{"$f":"(((AAMC_Raw_Data_for_FY22[[#This Row],[75th]]-AAMC_Raw_Data_for_FY22[[#This Row],[Median]])/25)*5) + AAMC_Raw_Data_for_FY22[[#This Row],[Median]]","v":607725.6},{"$f":"(((AAMC_Raw_Data_for_FY22[[#This Row],[75th]]-AAMC_Raw_Data_for_FY22[[#This Row],[Median]])/25)*10) + AAMC_Raw_Data_for_FY22[[#This Row],[Median]]","v":636839.19999999995},{"$f":"(((AAMC_Raw_Data_for_FY22[[#This Row],[75th]]-AAMC_Raw_Data_for_FY22[[#This Row],[Median]])/25)*15) + AAMC_Raw_Data_for_FY22[[#This Row],[Median]]","v":665952.80000000005},{"$f":"(((AAMC_Raw_Data_for_FY22[[#This Row],[75th]]-AAMC_Raw_Data_for_FY22[[#This Row],[Median]])/25)*20) + AAMC_Raw_Data_for_FY22[[#This Row],[Median]]","v":695066.4},724180,{"$f":"(((AAMC_Raw_Data_for_FY22[[#This Row],[75th]]-AAMC_Raw_Data_for_FY22[[#This Row],[Median]])/25)*30) + AAMC_Raw_Data_for_FY22[[#This Row],[Median]]","v":753293.6},{"$f":"(((AAMC_Raw_Data_for_FY22[[#This Row],[75th]]-AAMC_Raw_Data_for_FY22[[#This Row],[Median]])/25)*35) + AAMC_Raw_Data_for_FY22[[#This Row],[Median]]","v":782407.2},{"$f":"(((AAMC_Raw_Data_for_FY22[[#This Row],[75th]]-AAMC_Raw_Data_for_FY22[[#This Row],[Median]])/25)*40) + AAMC_Raw_Data_for_FY22[[#This Row],[Median]]","v":811520.8}]
[{"$f":"AAMC_Raw_Data_for_FY22[[#This Row],[Source]]&AAMC_Raw_Data_for_FY22[[#This Row],[Type]]&AAMC_Raw_Data_for_FY22[[#This Row],[School Subset]]&AAMC_Raw_Data_for_FY22[[#This Row],[Rank]]&AAMC_Raw_Data_for_FY22[[#This Row],[Degree]]&AAMC_Raw_Data_for_FY22[[#This Row],[Department / Specialty]]&\"L\"","v":"AAMCAcademicPublicProfessorMDOrthopedic Surgery: OtherL"},"Orthopedic Surgery: Other",2,"AAMC","Academic","Public","Professor","MD","2021-2022",417871,{"$f":"(((AAMC_Raw_Data_for_FY22[[#This Row],[Median]]-AAMC_Raw_Data_for_FY22[[#This Row],[25th]])/25)*5) + AAMC_Raw_Data_for_FY22[[#This Row],[25th]]","v":454438.8},{"$f":"(((AAMC_Raw_Data_for_FY22[[#This Row],[Median]]-AAMC_Raw_Data_for_FY22[[#This Row],[25th]])/25)*10) + AAMC_Raw_Data_for_FY22[[#This Row],[25th]]","v":491006.6},{"$f":"(((AAMC_Raw_Data_for_FY22[[#This Row],[Median]]-AAMC_Raw_Data_for_FY22[[#This Row],[25th]])/25)*15) + AAMC_Raw_Data_for_FY22[[#This Row],[25th]]","v":527574.4},{"$f":"(((AAMC_Raw_Data_for_FY22[[#This Row],[Median]]-AAMC_Raw_Data_for_FY22[[#This Row],[25th]])/25)*20) + AAMC_Raw_Data_for_FY22[[#This Row],[25th]]","v":564142.19999999995},600710,{"$f":"(((AAMC_Raw_Data_for_FY22[[#This Row],[75th]]-AAMC_Raw_Data_for_FY22[[#This Row],[Median]])/25)*5) + AAMC_Raw_Data_for_FY22[[#This Row],[Median]]","v":631555.80000000005},{"$f":"(((AAMC_Raw_Data_for_FY22[[#This Row],[75th]]-AAMC_Raw_Data_for_FY22[[#This Row],[Median]])/25)*10) + AAMC_Raw_Data_for_FY22[[#This Row],[Median]]","v":662401.6},{"$f":"(((AAMC_Raw_Data_for_FY22[[#This Row],[75th]]-AAMC_Raw_Data_for_FY22[[#This Row],[Median]])/25)*15) + AAMC_Raw_Data_for_FY22[[#This Row],[Median]]","v":693247.4},{"$f":"(((AAMC_Raw_Data_for_FY22[[#This Row],[75th]]-AAMC_Raw_Data_for_FY22[[#This Row],[Median]])/25)*20) + AAMC_Raw_Data_for_FY22[[#This Row],[Median]]","v":724093.2},754939,{"$f":"(((AAMC_Raw_Data_for_FY22[[#This Row],[75th]]-AAMC_Raw_Data_for_FY22[[#This Row],[Median]])/25)*30) + AAMC_Raw_Data_for_FY22[[#This Row],[Median]]","v":785784.8},{"$f":"(((AAMC_Raw_Data_for_FY22[[#This Row],[75th]]-AAMC_Raw_Data_for_FY22[[#This Row],[Median]])/25)*35) + AAMC_Raw_Data_for_FY22[[#This Row],[Median]]","v":816630.6},{"$f":"(((AAMC_Raw_Data_for_FY22[[#This Row],[75th]]-AAMC_Raw_Data_for_FY22[[#This Row],[Median]])/25)*40) + AAMC_Raw_Data_for_FY22[[#This Row],[Median]]","v":847476.4}]
[{"$f":"AAMC_Raw_Data_for_FY22[[#This Row],[Source]]&AAMC_Raw_Data_for_FY22[[#This Row],[Type]]&AAMC_Raw_Data_for_FY22[[#This Row],[School Subset]]&AAMC_Raw_Data_for_FY22[[#This Row],[Rank]]&AAMC_Raw_Data_for_FY22[[#This Row],[Degree]]&AAMC_Raw_Data_for_FY22[[#This Row],[Department / Specialty]]&\"L\"","v":"AAMCAcademicPublicChiefMDOrthopedic Surgery: OtherL"},"Orthopedic Surgery: Other",6,"AAMC","Academic","Public","Chief","MD","2021-2022",500114,{"$f":"(((AAMC_Raw_Data_for_FY22[[#This Row],[Median]]-AAMC_Raw_Data_for_FY22[[#This Row],[25th]])/25)*5) + AAMC_Raw_Data_for_FY22[[#This Row],[25th]]","v":520826.6},{"$f":"(((AAMC_Raw_Data_for_FY22[[#This Row],[Median]]-AAMC_Raw_Data_for_FY22[[#This Row],[25th]])/25)*10) + AAMC_Raw_Data_for_FY22[[#This Row],[25th]]","v":541539.19999999995},{"$f":"(((AAMC_Raw_Data_for_FY22[[#This Row],[Median]]-AAMC_Raw_Data_for_FY22[[#This Row],[25th]])/25)*15) + AAMC_Raw_Data_for_FY22[[#This Row],[25th]]","v":562251.80000000005},{"$f":"(((AAMC_Raw_Data_for_FY22[[#This Row],[Median]]-AAMC_Raw_Data_for_FY22[[#This Row],[25th]])/25)*20) + AAMC_Raw_Data_for_FY22[[#This Row],[25th]]","v":582964.4},603677,{"$f":"(((AAMC_Raw_Data_for_FY22[[#This Row],[75th]]-AAMC_Raw_Data_for_FY22[[#This Row],[Median]])/25)*5) + AAMC_Raw_Data_for_FY22[[#This Row],[Median]]","v":628234.4},{"$f":"(((AAMC_Raw_Data_for_FY22[[#This Row],[75th]]-AAMC_Raw_Data_for_FY22[[#This Row],[Median]])/25)*10) + AAMC_Raw_Data_for_FY22[[#This Row],[Median]]","v":652791.80000000005},{"$f":"(((AAMC_Raw_Data_for_FY22[[#This Row],[75th]]-AAMC_Raw_Data_for_FY22[[#This Row],[Median]])/25)*15) + AAMC_Raw_Data_for_FY22[[#This Row],[Median]]","v":677349.2},{"$f":"(((AAMC_Raw_Data_for_FY22[[#This Row],[75th]]-AAMC_Raw_Data_for_FY22[[#This Row],[Median]])/25)*20) + AAMC_Raw_Data_for_FY22[[#This Row],[Median]]","v":701906.6},726464,{"$f":"(((AAMC_Raw_Data_for_FY22[[#This Row],[75th]]-AAMC_Raw_Data_for_FY22[[#This Row],[Median]])/25)*30) + AAMC_Raw_Data_for_FY22[[#This Row],[Median]]","v":751021.4},{"$f":"(((AAMC_Raw_Data_for_FY22[[#This Row],[75th]]-AAMC_Raw_Data_for_FY22[[#This Row],[Median]])/25)*35) + AAMC_Raw_Data_for_FY22[[#This Row],[Median]]","v":775578.8},{"$f":"(((AAMC_Raw_Data_for_FY22[[#This Row],[75th]]-AAMC_Raw_Data_for_FY22[[#This Row],[Median]])/25)*40) + AAMC_Raw_Data_for_FY22[[#This Row],[Median]]","v":800136.2}]
[{"$f":"AAMC_Raw_Data_for_FY22[[#This Row],[Source]]&AAMC_Raw_Data_for_FY22[[#This Row],[Type]]&AAMC_Raw_Data_for_FY22[[#This Row],[School Subset]]&AAMC_Raw_Data_for_FY22[[#This Row],[Rank]]&AAMC_Raw_Data_for_FY22[[#This Row],[Degree]]&AAMC_Raw_Data_for_FY22[[#This Row],[Department / Specialty]]&\"L\"","v":"AAMCAcademicPublicChairMDOrthopedic Surgery: OtherL"},"Orthopedic Surgery: Other",1,"AAMC","Academic","Public","Chair","MD","2021-2022",944730,{"$f":"(((AAMC_Raw_Data_for_FY22[[#This Row],[Median]]-AAMC_Raw_Data_for_FY22[[#This Row],[25th]])/25)*5) + AAMC_Raw_Data_for_FY22[[#This Row],[25th]]","v":966433.6},{"$f":"(((AAMC_Raw_Data_for_FY22[[#This Row],[Median]]-AAMC_Raw_Data_for_FY22[[#This Row],[25th]])/25)*10) + AAMC_Raw_Data_for_FY22[[#This Row],[25th]]","v":988137.2},{"$f":"(((AAMC_Raw_Data_for_FY22[[#This Row],[Median]]-AAMC_Raw_Data_for_FY22[[#This Row],[25th]])/25)*15) + AAMC_Raw_Data_for_FY22[[#This Row],[25th]]","v":1009840.8},{"$f":"(((AAMC_Raw_Data_for_FY22[[#This Row],[Median]]-AAMC_Raw_Data_for_FY22[[#This Row],[25th]])/25)*20) + AAMC_Raw_Data_for_FY22[[#This Row],[25th]]","v":1031544.4},1053248,{"$f":"(((AAMC_Raw_Data_for_FY22[[#This Row],[75th]]-AAMC_Raw_Data_for_FY22[[#This Row],[Median]])/25)*5) + AAMC_Raw_Data_for_FY22[[#This Row],[Median]]","v":1079691.2},{"$f":"(((AAMC_Raw_Data_for_FY22[[#This Row],[75th]]-AAMC_Raw_Data_for_FY22[[#This Row],[Median]])/25)*10) + AAMC_Raw_Data_for_FY22[[#This Row],[Median]]","v":1106134.3999999999},{"$f":"(((AAMC_Raw_Data_for_FY22[[#This Row],[75th]]-AAMC_Raw_Data_for_FY22[[#This Row],[Median]])/25)*15) + AAMC_Raw_Data_for_FY22[[#This Row],[Median]]","v":1132577.6000000001},{"$f":"(((AAMC_Raw_Data_for_FY22[[#This Row],[75th]]-AAMC_Raw_Data_for_FY22[[#This Row],[Median]])/25)*20) + AAMC_Raw_Data_for_FY22[[#This Row],[Median]]","v":1159020.8},1185464,{"$f":"(((AAMC_Raw_Data_for_FY22[[#This Row],[75th]]-AAMC_Raw_Data_for_FY22[[#This Row],[Median]])/25)*30) + AAMC_Raw_Data_for_FY22[[#This Row],[Median]]","v":1211907.2},{"$f":"(((AAMC_Raw_Data_for_FY22[[#This Row],[75th]]-AAMC_Raw_Data_for_FY22[[#This Row],[Median]])/25)*35) + AAMC_Raw_Data_for_FY22[[#This Row],[Median]]","v":1238350.3999999999},{"$f":"(((AAMC_Raw_Data_for_FY22[[#This Row],[75th]]-AAMC_Raw_Data_for_FY22[[#This Row],[Median]])/25)*40) + AAMC_Raw_Data_for_FY22[[#This Row],[Median]]","v":1264793.6000000001}]
[{"$f":"AAMC_Raw_Data_for_FY22[[#This Row],[Source]]&AAMC_Raw_Data_for_FY22[[#This Row],[Type]]&AAMC_Raw_Data_for_FY22[[#This Row],[School Subset]]&AAMC_Raw_Data_for_FY22[[#This Row],[Rank]]&AAMC_Raw_Data_for_FY22[[#This Row],[Degree]]&AAMC_Raw_Data_for_FY22[[#This Row],[Department / Specialty]]&\"L\"","v":"AAMCAcademicPublicAssistantMDPediatric SurgeryL"},"Pediatric Surgery",4,"AAMC","Academic","Public","Assistant","MD","2021-2022",420268,{"$f":"(((AAMC_Raw_Data_for_FY22[[#This Row],[Median]]-AAMC_Raw_Data_for_FY22[[#This Row],[25th]])/25)*5) + AAMC_Raw_Data_for_FY22[[#This Row],[25th]]","v":428357.8},{"$f":"(((AAMC_Raw_Data_for_FY22[[#This Row],[Median]]-AAMC_Raw_Data_for_FY22[[#This Row],[25th]])/25)*10) + AAMC_Raw_Data_for_FY22[[#This Row],[25th]]","v":436447.6},{"$f":"(((AAMC_Raw_Data_for_FY22[[#This Row],[Median]]-AAMC_Raw_Data_for_FY22[[#This Row],[25th]])/25)*15) + AAMC_Raw_Data_for_FY22[[#This Row],[25th]]","v":444537.4},{"$f":"(((AAMC_Raw_Data_for_FY22[[#This Row],[Median]]-AAMC_Raw_Data_for_FY22[[#This Row],[25th]])/25)*20) + AAMC_Raw_Data_for_FY22[[#This Row],[25th]]","v":452627.20000000001},460717,{"$f":"(((AAMC_Raw_Data_for_FY22[[#This Row],[75th]]-AAMC_Raw_Data_for_FY22[[#This Row],[Median]])/25)*5) + AAMC_Raw_Data_for_FY22[[#This Row],[Median]]","v":473485},{"$f":"(((AAMC_Raw_Data_for_FY22[[#This Row],[75th]]-AAMC_Raw_Data_for_FY22[[#This Row],[Median]])/25)*10) + AAMC_Raw_Data_for_FY22[[#This Row],[Median]]","v":486253},{"$f":"(((AAMC_Raw_Data_for_FY22[[#This Row],[75th]]-AAMC_Raw_Data_for_FY22[[#This Row],[Median]])/25)*15) + AAMC_Raw_Data_for_FY22[[#This Row],[Median]]","v":499021},{"$f":"(((AAMC_Raw_Data_for_FY22[[#This Row],[75th]]-AAMC_Raw_Data_for_FY22[[#This Row],[Median]])/25)*20) + AAMC_Raw_Data_for_FY22[[#This Row],[Median]]","v":511789},524557,{"$f":"(((AAMC_Raw_Data_for_FY22[[#This Row],[75th]]-AAMC_Raw_Data_for_FY22[[#This Row],[Median]])/25)*30) + AAMC_Raw_Data_for_FY22[[#This Row],[Median]]","v":537325},{"$f":"(((AAMC_Raw_Data_for_FY22[[#This Row],[75th]]-AAMC_Raw_Data_for_FY22[[#This Row],[Median]])/25)*35) + AAMC_Raw_Data_for_FY22[[#This Row],[Median]]","v":550093},{"$f":"(((AAMC_Raw_Data_for_FY22[[#This Row],[75th]]-AAMC_Raw_Data_for_FY22[[#This Row],[Median]])/25)*40) + AAMC_Raw_Data_for_FY22[[#This Row],[Median]]","v":562861}]
[{"$f":"AAMC_Raw_Data_for_FY22[[#This Row],[Source]]&AAMC_Raw_Data_for_FY22[[#This Row],[Type]]&AAMC_Raw_Data_for_FY22[[#This Row],[School Subset]]&AAMC_Raw_Data_for_FY22[[#This Row],[Rank]]&AAMC_Raw_Data_for_FY22[[#This Row],[Degree]]&AAMC_Raw_Data_for_FY22[[#This Row],[Department / Specialty]]&\"L\"","v":"AAMCAcademicPublicAssociateMDPediatric SurgeryL"},"Pediatric Surgery",3,"AAMC","Academic","Public","Associate","MD","2021-2022",526597,{"$f":"(((AAMC_Raw_Data_for_FY22[[#This Row],[Median]]-AAMC_Raw_Data_for_FY22[[#This Row],[25th]])/25)*5) + AAMC_Raw_Data_for_FY22[[#This Row],[25th]]","v":539640.80000000005},{"$f":"(((AAMC_Raw_Data_for_FY22[[#This Row],[Median]]-AAMC_Raw_Data_for_FY22[[#This Row],[25th]])/25)*10) + AAMC_Raw_Data_for_FY22[[#This Row],[25th]]","v":552684.6},{"$f":"(((AAMC_Raw_Data_for_FY22[[#This Row],[Median]]-AAMC_Raw_Data_for_FY22[[#This Row],[25th]])/25)*15) + AAMC_Raw_Data_for_FY22[[#This Row],[25th]]","v":565728.4},{"$f":"(((AAMC_Raw_Data_for_FY22[[#This Row],[Median]]-AAMC_Raw_Data_for_FY22[[#This Row],[25th]])/25)*20) + AAMC_Raw_Data_for_FY22[[#This Row],[25th]]","v":578772.19999999995},591816,{"$f":"(((AAMC_Raw_Data_for_FY22[[#This Row],[75th]]-AAMC_Raw_Data_for_FY22[[#This Row],[Median]])/25)*5) + AAMC_Raw_Data_for_FY22[[#This Row],[Median]]","v":607113.19999999995},{"$f":"(((AAMC_Raw_Data_for_FY22[[#This Row],[75th]]-AAMC_Raw_Data_for_FY22[[#This Row],[Median]])/25)*10) + AAMC_Raw_Data_for_FY22[[#This Row],[Median]]","v":622410.4},{"$f":"(((AAMC_Raw_Data_for_FY22[[#This Row],[75th]]-AAMC_Raw_Data_for_FY22[[#This Row],[Median]])/25)*15) + AAMC_Raw_Data_for_FY22[[#This Row],[Median]]","v":637707.6},{"$f":"(((AAMC_Raw_Data_for_FY22[[#This Row],[75th]]-AAMC_Raw_Data_for_FY22[[#This Row],[Median]])/25)*20) + AAMC_Raw_Data_for_FY22[[#This Row],[Median]]","v":653004.80000000005},668302,{"$f":"(((AAMC_Raw_Data_for_FY22[[#This Row],[75th]]-AAMC_Raw_Data_for_FY22[[#This Row],[Median]])/25)*30) + AAMC_Raw_Data_for_FY22[[#This Row],[Median]]","v":683599.2},{"$f":"(((AAMC_Raw_Data_for_FY22[[#This Row],[75th]]-AAMC_Raw_Data_for_FY22[[#This Row],[Median]])/25)*35) + AAMC_Raw_Data_for_FY22[[#This Row],[Median]]","v":698896.4},{"$f":"(((AAMC_Raw_Data_for_FY22[[#This Row],[75th]]-AAMC_Raw_Data_for_FY22[[#This Row],[Median]])/25)*40) + AAMC_Raw_Data_for_FY22[[#This Row],[Median]]","v":714193.6}]
[{"$f":"AAMC_Raw_Data_for_FY22[[#This Row],[Source]]&AAMC_Raw_Data_for_FY22[[#This Row],[Type]]&AAMC_Raw_Data_for_FY22[[#This Row],[School Subset]]&AAMC_Raw_Data_for_FY22[[#This Row],[Rank]]&AAMC_Raw_Data_for_FY22[[#This Row],[Degree]]&AAMC_Raw_Data_for_FY22[[#This Row],[Department / Specialty]]&\"L\"","v":"AAMCAcademicPublicProfessorMDPediatric SurgeryL"},"Pediatric Surgery",2,"AAMC","Academic","Public","Professor","MD","2021-2022",573296,{"$f":"(((AAMC_Raw_Data_for_FY22[[#This Row],[Median]]-AAMC_Raw_Data_for_FY22[[#This Row],[25th]])/25)*5) + AAMC_Raw_Data_for_FY22[[#This Row],[25th]]","v":593092.6},{"$f":"(((AAMC_Raw_Data_for_FY22[[#This Row],[Median]]-AAMC_Raw_Data_for_FY22[[#This Row],[25th]])/25)*10) + AAMC_Raw_Data_for_FY22[[#This Row],[25th]]","v":612889.19999999995},{"$f":"(((AAMC_Raw_Data_for_FY22[[#This Row],[Median]]-AAMC_Raw_Data_for_FY22[[#This Row],[25th]])/25)*15) + AAMC_Raw_Data_for_FY22[[#This Row],[25th]]","v":632685.80000000005},{"$f":"(((AAMC_Raw_Data_for_FY22[[#This Row],[Median]]-AAMC_Raw_Data_for_FY22[[#This Row],[25th]])/25)*20) + AAMC_Raw_Data_for_FY22[[#This Row],[25th]]","v":652482.4},672279,{"$f":"(((AAMC_Raw_Data_for_FY22[[#This Row],[75th]]-AAMC_Raw_Data_for_FY22[[#This Row],[Median]])/25)*5) + AAMC_Raw_Data_for_FY22[[#This Row],[Median]]","v":701207.2},{"$f":"(((AAMC_Raw_Data_for_FY22[[#This Row],[75th]]-AAMC_Raw_Data_for_FY22[[#This Row],[Median]])/25)*10) + AAMC_Raw_Data_for_FY22[[#This Row],[Median]]","v":730135.4},{"$f":"(((AAMC_Raw_Data_for_FY22[[#This Row],[75th]]-AAMC_Raw_Data_for_FY22[[#This Row],[Median]])/25)*15) + AAMC_Raw_Data_for_FY22[[#This Row],[Median]]","v":759063.6},{"$f":"(((AAMC_Raw_Data_for_FY22[[#This Row],[75th]]-AAMC_Raw_Data_for_FY22[[#This Row],[Median]])/25)*20) + AAMC_Raw_Data_for_FY22[[#This Row],[Median]]","v":787991.8},816920,{"$f":"(((AAMC_Raw_Data_for_FY22[[#This Row],[75th]]-AAMC_Raw_Data_for_FY22[[#This Row],[Median]])/25)*30) + AAMC_Raw_Data_for_FY22[[#This Row],[Median]]","v":845848.2},{"$f":"(((AAMC_Raw_Data_for_FY22[[#This Row],[75th]]-AAMC_Raw_Data_for_FY22[[#This Row],[Median]])/25)*35) + AAMC_Raw_Data_for_FY22[[#This Row],[Median]]","v":874776.4},{"$f":"(((AAMC_Raw_Data_for_FY22[[#This Row],[75th]]-AAMC_Raw_Data_for_FY22[[#This Row],[Median]])/25)*40) + AAMC_Raw_Data_for_FY22[[#This Row],[Median]]","v":903704.6}]
[{"$f":"AAMC_Raw_Data_for_FY22[[#This Row],[Source]]&AAMC_Raw_Data_for_FY22[[#This Row],[Type]]&AAMC_Raw_Data_for_FY22[[#This Row],[School Subset]]&AAMC_Raw_Data_for_FY22[[#This Row],[Rank]]&AAMC_Raw_Data_for_FY22[[#This Row],[Degree]]&AAMC_Raw_Data_for_FY22[[#This Row],[Department / Specialty]]&\"L\"","v":"AAMCAcademicPublicChiefMDPediatric SurgeryL"},"Pediatric Surgery",6,"AAMC","Academic","Public","Chief","MD","2021-2022",638076,{"$f":"(((AAMC_Raw_Data_for_FY22[[#This Row],[Median]]-AAMC_Raw_Data_for_FY22[[#This Row],[25th]])/25)*5) + AAMC_Raw_Data_for_FY22[[#This Row],[25th]]","v":657832.80000000005},{"$f":"(((AAMC_Raw_Data_for_FY22[[#This Row],[Median]]-AAMC_Raw_Data_for_FY22[[#This Row],[25th]])/25)*10) + AAMC_Raw_Data_for_FY22[[#This Row],[25th]]","v":677589.6},{"$f":"(((AAMC_Raw_Data_for_FY22[[#This Row],[Median]]-AAMC_Raw_Data_for_FY22[[#This Row],[25th]])/25)*15) + AAMC_Raw_Data_for_FY22[[#This Row],[25th]]","v":697346.4},{"$f":"(((AAMC_Raw_Data_for_FY22[[#This Row],[Median]]-AAMC_Raw_Data_for_FY22[[#This Row],[25th]])/25)*20) + AAMC_Raw_Data_for_FY22[[#This Row],[25th]]","v":717103.2},736860,{"$f":"(((AAMC_Raw_Data_for_FY22[[#This Row],[75th]]-AAMC_Raw_Data_for_FY22[[#This Row],[Median]])/25)*5) + AAMC_Raw_Data_for_FY22[[#This Row],[Median]]","v":755677.4},{"$f":"(((AAMC_Raw_Data_for_FY22[[#This Row],[75th]]-AAMC_Raw_Data_for_FY22[[#This Row],[Median]])/25)*10) + AAMC_Raw_Data_for_FY22[[#This Row],[Median]]","v":774494.8},{"$f":"(((AAMC_Raw_Data_for_FY22[[#This Row],[75th]]-AAMC_Raw_Data_for_FY22[[#This Row],[Median]])/25)*15) + AAMC_Raw_Data_for_FY22[[#This Row],[Median]]","v":793312.2},{"$f":"(((AAMC_Raw_Data_for_FY22[[#This Row],[75th]]-AAMC_Raw_Data_for_FY22[[#This Row],[Median]])/25)*20) + AAMC_Raw_Data_for_FY22[[#This Row],[Median]]","v":812129.6},830947,{"$f":"(((AAMC_Raw_Data_for_FY22[[#This Row],[75th]]-AAMC_Raw_Data_for_FY22[[#This Row],[Median]])/25)*30) + AAMC_Raw_Data_for_FY22[[#This Row],[Median]]","v":849764.4},{"$f":"(((AAMC_Raw_Data_for_FY22[[#This Row],[75th]]-AAMC_Raw_Data_for_FY22[[#This Row],[Median]])/25)*35) + AAMC_Raw_Data_for_FY22[[#This Row],[Median]]","v":868581.8},{"$f":"(((AAMC_Raw_Data_for_FY22[[#This Row],[75th]]-AAMC_Raw_Data_for_FY22[[#This Row],[Median]])/25)*40) + AAMC_Raw_Data_for_FY22[[#This Row],[Median]]","v":887399.2}]
[{"$f":"AAMC_Raw_Data_for_FY22[[#This Row],[Source]]&AAMC_Raw_Data_for_FY22[[#This Row],[Type]]&AAMC_Raw_Data_for_FY22[[#This Row],[School Subset]]&AAMC_Raw_Data_for_FY22[[#This Row],[Rank]]&AAMC_Raw_Data_for_FY22[[#This Row],[Degree]]&AAMC_Raw_Data_for_FY22[[#This Row],[Department / Specialty]]&\"L\"","v":"AAMCAcademicPublicChairMDPediatric SurgeryL"},"Pediatric Surgery",1,"AAMC","Academic","Public","Chair","MD","2021-2022",null,{"$f":"(((AAMC_Raw_Data_for_FY22[[#This Row],[Median]]-AAMC_Raw_Data_for_FY22[[#This Row],[25th]])/25)*5) + AAMC_Raw_Data_for_FY22[[#This Row],[25th]]","v":0},{"$f":"(((AAMC_Raw_Data_for_FY22[[#This Row],[Median]]-AAMC_Raw_Data_for_FY22[[#This Row],[25th]])/25)*10) + AAMC_Raw_Data_for_FY22[[#This Row],[25th]]","v":0},{"$f":"(((AAMC_Raw_Data_for_FY22[[#This Row],[Median]]-AAMC_Raw_Data_for_FY22[[#This Row],[25th]])/25)*15) + AAMC_Raw_Data_for_FY22[[#This Row],[25th]]","v":0},{"$f":"(((AAMC_Raw_Data_for_FY22[[#This Row],[Median]]-AAMC_Raw_Data_for_FY22[[#This Row],[25th]])/25)*20) + AAMC_Raw_Data_for_FY22[[#This Row],[25th]]","v":0},null,{"$f":"(((AAMC_Raw_Data_for_FY22[[#This Row],[75th]]-AAMC_Raw_Data_for_FY22[[#This Row],[Median]])/25)*5) + AAMC_Raw_Data_for_FY22[[#This Row],[Median]]","v":0},{"$f":"(((AAMC_Raw_Data_for_FY22[[#This Row],[75th]]-AAMC_Raw_Data_for_FY22[[#This Row],[Median]])/25)*10) + AAMC_Raw_Data_for_FY22[[#This Row],[Median]]","v":0},{"$f":"(((AAMC_Raw_Data_for_FY22[[#This Row],[75th]]-AAMC_Raw_Data_for_FY22[[#This Row],[Median]])/25)*15) + AAMC_Raw_Data_for_FY22[[#This Row],[Median]]","v":0},{"$f":"(((AAMC_Raw_Data_for_FY22[[#This Row],[75th]]-AAMC_Raw_Data_for_FY22[[#This Row],[Median]])/25)*20) + AAMC_Raw_Data_for_FY22[[#This Row],[Median]]","v":0},null,{"$f":"(((AAMC_Raw_Data_for_FY22[[#This Row],[75th]]-AAMC_Raw_Data_for_FY22[[#This Row],[Median]])/25)*30) + AAMC_Raw_Data_for_FY22[[#This Row],[Median]]","v":0},{"$f":"(((AAMC_Raw_Data_for_FY22[[#This Row],[75th]]-AAMC_Raw_Data_for_FY22[[#This Row],[Median]])/25)*35) + AAMC_Raw_Data_for_FY22[[#This Row],[Median]]","v":0},{"$f":"(((AAMC_Raw_Data_for_FY22[[#This Row],[75th]]-AAMC_Raw_Data_for_FY22[[#This Row],[Median]])/25)*40) + AAMC_Raw_Data_for_FY22[[#This Row],[Median]]","v":0}]
[{"$f":"AAMC_Raw_Data_for_FY22[[#This Row],[Source]]&AAMC_Raw_Data_for_FY22[[#This Row],[Type]]&AAMC_Raw_Data_for_FY22[[#This Row],[School Subset]]&AAMC_Raw_Data_for_FY22[[#This Row],[Rank]]&AAMC_Raw_Data_for_FY22[[#This Row],[Degree]]&AAMC_Raw_Data_for_FY22[[#This Row],[Department / Specialty]]&\"L\"","v":"AAMCAcademicPublicInstructorMDPlastic SurgeryL"},"Plastic Surgery",5,"AAMC","Academic","Public","Instructor","MD","2021-2022",null,{"$f":"(((AAMC_Raw_Data_for_FY22[[#This Row],[Median]]-AAMC_Raw_Data_for_FY22[[#This Row],[25th]])/25)*5) + AAMC_Raw_Data_for_FY22[[#This Row],[25th]]","v":0},{"$f":"(((AAMC_Raw_Data_for_FY22[[#This Row],[Median]]-AAMC_Raw_Data_for_FY22[[#This Row],[25th]])/25)*10) + AAMC_Raw_Data_for_FY22[[#This Row],[25th]]","v":0},{"$f":"(((AAMC_Raw_Data_for_FY22[[#This Row],[Median]]-AAMC_Raw_Data_for_FY22[[#This Row],[25th]])/25)*15) + AAMC_Raw_Data_for_FY22[[#This Row],[25th]]","v":0},{"$f":"(((AAMC_Raw_Data_for_FY22[[#This Row],[Median]]-AAMC_Raw_Data_for_FY22[[#This Row],[25th]])/25)*20) + AAMC_Raw_Data_for_FY22[[#This Row],[25th]]","v":0},null,{"$f":"(((AAMC_Raw_Data_for_FY22[[#This Row],[75th]]-AAMC_Raw_Data_for_FY22[[#This Row],[Median]])/25)*5) + AAMC_Raw_Data_for_FY22[[#This Row],[Median]]","v":0},{"$f":"(((AAMC_Raw_Data_for_FY22[[#This Row],[75th]]-AAMC_Raw_Data_for_FY22[[#This Row],[Median]])/25)*10) + AAMC_Raw_Data_for_FY22[[#This Row],[Median]]","v":0},{"$f":"(((AAMC_Raw_Data_for_FY22[[#This Row],[75th]]-AAMC_Raw_Data_for_FY22[[#This Row],[Median]])/25)*15) + AAMC_Raw_Data_for_FY22[[#This Row],[Median]]","v":0},{"$f":"(((AAMC_Raw_Data_for_FY22[[#This Row],[75th]]-AAMC_Raw_Data_for_FY22[[#This Row],[Median]])/25)*20) + AAMC_Raw_Data_for_FY22[[#This Row],[Median]]","v":0},null,{"$f":"(((AAMC_Raw_Data_for_FY22[[#This Row],[75th]]-AAMC_Raw_Data_for_FY22[[#This Row],[Median]])/25)*30) + AAMC_Raw_Data_for_FY22[[#This Row],[Median]]","v":0},{"$f":"(((AAMC_Raw_Data_for_FY22[[#This Row],[75th]]-AAMC_Raw_Data_for_FY22[[#This Row],[Median]])/25)*35) + AAMC_Raw_Data_for_FY22[[#This Row],[Median]]","v":0},{"$f":"(((AAMC_Raw_Data_for_FY22[[#This Row],[75th]]-AAMC_Raw_Data_for_FY22[[#This Row],[Median]])/25)*40) + AAMC_Raw_Data_for_FY22[[#This Row],[Median]]","v":0}]
[{"$f":"AAMC_Raw_Data_for_FY22[[#This Row],[Source]]&AAMC_Raw_Data_for_FY22[[#This Row],[Type]]&AAMC_Raw_Data_for_FY22[[#This Row],[School Subset]]&AAMC_Raw_Data_for_FY22[[#This Row],[Rank]]&AAMC_Raw_Data_for_FY22[[#This Row],[Degree]]&AAMC_Raw_Data_for_FY22[[#This Row],[Department / Specialty]]&\"L\"","v":"AAMCAcademicPublicAssistantMDPlastic SurgeryL"},"Plastic Surgery",4,"AAMC","Academic","Public","Assistant","MD","2021-2022",363611,{"$f":"(((AAMC_Raw_Data_for_FY22[[#This Row],[Median]]-AAMC_Raw_Data_for_FY22[[#This Row],[25th]])/25)*5) + AAMC_Raw_Data_for_FY22[[#This Row],[25th]]","v":375667.8},{"$f":"(((AAMC_Raw_Data_for_FY22[[#This Row],[Median]]-AAMC_Raw_Data_for_FY22[[#This Row],[25th]])/25)*10) + AAMC_Raw_Data_for_FY22[[#This Row],[25th]]","v":387724.6},{"$f":"(((AAMC_Raw_Data_for_FY22[[#This Row],[Median]]-AAMC_Raw_Data_for_FY22[[#This Row],[25th]])/25)*15) + AAMC_Raw_Data_for_FY22[[#This Row],[25th]]","v":399781.4},{"$f":"(((AAMC_Raw_Data_for_FY22[[#This Row],[Median]]-AAMC_Raw_Data_for_FY22[[#This Row],[25th]])/25)*20) + AAMC_Raw_Data_for_FY22[[#This Row],[25th]]","v":411838.2},423895,{"$f":"(((AAMC_Raw_Data_for_FY22[[#This Row],[75th]]-AAMC_Raw_Data_for_FY22[[#This Row],[Median]])/25)*5) + AAMC_Raw_Data_for_FY22[[#This Row],[Median]]","v":445967.8},{"$f":"(((AAMC_Raw_Data_for_FY22[[#This Row],[75th]]-AAMC_Raw_Data_for_FY22[[#This Row],[Median]])/25)*10) + AAMC_Raw_Data_for_FY22[[#This Row],[Median]]","v":468040.6},{"$f":"(((AAMC_Raw_Data_for_FY22[[#This Row],[75th]]-AAMC_Raw_Data_for_FY22[[#This Row],[Median]])/25)*15) + AAMC_Raw_Data_for_FY22[[#This Row],[Median]]","v":490113.4},{"$f":"(((AAMC_Raw_Data_for_FY22[[#This Row],[75th]]-AAMC_Raw_Data_for_FY22[[#This Row],[Median]])/25)*20) + AAMC_Raw_Data_for_FY22[[#This Row],[Median]]","v":512186.2},534259,{"$f":"(((AAMC_Raw_Data_for_FY22[[#This Row],[75th]]-AAMC_Raw_Data_for_FY22[[#This Row],[Median]])/25)*30) + AAMC_Raw_Data_for_FY22[[#This Row],[Median]]","v":556331.80000000005},{"$f":"(((AAMC_Raw_Data_for_FY22[[#This Row],[75th]]-AAMC_Raw_Data_for_FY22[[#This Row],[Median]])/25)*35) + AAMC_Raw_Data_for_FY22[[#This Row],[Median]]","v":578404.6},{"$f":"(((AAMC_Raw_Data_for_FY22[[#This Row],[75th]]-AAMC_Raw_Data_for_FY22[[#This Row],[Median]])/25)*40) + AAMC_Raw_Data_for_FY22[[#This Row],[Median]]","v":600477.4}]
[{"$f":"AAMC_Raw_Data_for_FY22[[#This Row],[Source]]&AAMC_Raw_Data_for_FY22[[#This Row],[Type]]&AAMC_Raw_Data_for_FY22[[#This Row],[School Subset]]&AAMC_Raw_Data_for_FY22[[#This Row],[Rank]]&AAMC_Raw_Data_for_FY22[[#This Row],[Degree]]&AAMC_Raw_Data_for_FY22[[#This Row],[Department / Specialty]]&\"L\"","v":"AAMCAcademicPublicAssociateMDPlastic SurgeryL"},"Plastic Surgery",3,"AAMC","Academic","Public","Associate","MD","2021-2022",458381,{"$f":"(((AAMC_Raw_Data_for_FY22[[#This Row],[Median]]-AAMC_Raw_Data_for_FY22[[#This Row],[25th]])/25)*5) + AAMC_Raw_Data_for_FY22[[#This Row],[25th]]","v":472264},{"$f":"(((AAMC_Raw_Data_for_FY22[[#This Row],[Median]]-AAMC_Raw_Data_for_FY22[[#This Row],[25th]])/25)*10) + AAMC_Raw_Data_for_FY22[[#This Row],[25th]]","v":486147},{"$f":"(((AAMC_Raw_Data_for_FY22[[#This Row],[Median]]-AAMC_Raw_Data_for_FY22[[#This Row],[25th]])/25)*15) + AAMC_Raw_Data_for_FY22[[#This Row],[25th]]","v":500030},{"$f":"(((AAMC_Raw_Data_for_FY22[[#This Row],[Median]]-AAMC_Raw_Data_for_FY22[[#This Row],[25th]])/25)*20) + AAMC_Raw_Data_for_FY22[[#This Row],[25th]]","v":513913},527796,{"$f":"(((AAMC_Raw_Data_for_FY22[[#This Row],[75th]]-AAMC_Raw_Data_for_FY22[[#This Row],[Median]])/25)*5) + AAMC_Raw_Data_for_FY22[[#This Row],[Median]]","v":555945},{"$f":"(((AAMC_Raw_Data_for_FY22[[#This Row],[75th]]-AAMC_Raw_Data_for_FY22[[#This Row],[Median]])/25)*10) + AAMC_Raw_Data_for_FY22[[#This Row],[Median]]","v":584094},{"$f":"(((AAMC_Raw_Data_for_FY22[[#This Row],[75th]]-AAMC_Raw_Data_for_FY22[[#This Row],[Median]])/25)*15) + AAMC_Raw_Data_for_FY22[[#This Row],[Median]]","v":612243},{"$f":"(((AAMC_Raw_Data_for_FY22[[#This Row],[75th]]-AAMC_Raw_Data_for_FY22[[#This Row],[Median]])/25)*20) + AAMC_Raw_Data_for_FY22[[#This Row],[Median]]","v":640392},668541,{"$f":"(((AAMC_Raw_Data_for_FY22[[#This Row],[75th]]-AAMC_Raw_Data_for_FY22[[#This Row],[Median]])/25)*30) + AAMC_Raw_Data_for_FY22[[#This Row],[Median]]","v":696690},{"$f":"(((AAMC_Raw_Data_for_FY22[[#This Row],[75th]]-AAMC_Raw_Data_for_FY22[[#This Row],[Median]])/25)*35) + AAMC_Raw_Data_for_FY22[[#This Row],[Median]]","v":724839},{"$f":"(((AAMC_Raw_Data_for_FY22[[#This Row],[75th]]-AAMC_Raw_Data_for_FY22[[#This Row],[Median]])/25)*40) + AAMC_Raw_Data_for_FY22[[#This Row],[Median]]","v":752988}]
[{"$f":"AAMC_Raw_Data_for_FY22[[#This Row],[Source]]&AAMC_Raw_Data_for_FY22[[#This Row],[Type]]&AAMC_Raw_Data_for_FY22[[#This Row],[School Subset]]&AAMC_Raw_Data_for_FY22[[#This Row],[Rank]]&AAMC_Raw_Data_for_FY22[[#This Row],[Degree]]&AAMC_Raw_Data_for_FY22[[#This Row],[Department / Specialty]]&\"L\"","v":"AAMCAcademicPublicProfessorMDPlastic SurgeryL"},"Plastic Surgery",2,"AAMC","Academic","Public","Professor","MD","2021-2022",488341,{"$f":"(((AAMC_Raw_Data_for_FY22[[#This Row],[Median]]-AAMC_Raw_Data_for_FY22[[#This Row],[25th]])/25)*5) + AAMC_Raw_Data_for_FY22[[#This Row],[25th]]","v":519409},{"$f":"(((AAMC_Raw_Data_for_FY22[[#This Row],[Median]]-AAMC_Raw_Data_for_FY22[[#This Row],[25th]])/25)*10) + AAMC_Raw_Data_for_FY22[[#This Row],[25th]]","v":550477},{"$f":"(((AAMC_Raw_Data_for_FY22[[#This Row],[Median]]-AAMC_Raw_Data_for_FY22[[#This Row],[25th]])/25)*15) + AAMC_Raw_Data_for_FY22[[#This Row],[25th]]","v":581545},{"$f":"(((AAMC_Raw_Data_for_FY22[[#This Row],[Median]]-AAMC_Raw_Data_for_FY22[[#This Row],[25th]])/25)*20) + AAMC_Raw_Data_for_FY22[[#This Row],[25th]]","v":612613},643681,{"$f":"(((AAMC_Raw_Data_for_FY22[[#This Row],[75th]]-AAMC_Raw_Data_for_FY22[[#This Row],[Median]])/25)*5) + AAMC_Raw_Data_for_FY22[[#This Row],[Median]]","v":665595},{"$f":"(((AAMC_Raw_Data_for_FY22[[#This Row],[75th]]-AAMC_Raw_Data_for_FY22[[#This Row],[Median]])/25)*10) + AAMC_Raw_Data_for_FY22[[#This Row],[Median]]","v":687509},{"$f":"(((AAMC_Raw_Data_for_FY22[[#This Row],[75th]]-AAMC_Raw_Data_for_FY22[[#This Row],[Median]])/25)*15) + AAMC_Raw_Data_for_FY22[[#This Row],[Median]]","v":709423},{"$f":"(((AAMC_Raw_Data_for_FY22[[#This Row],[75th]]-AAMC_Raw_Data_for_FY22[[#This Row],[Median]])/25)*20) + AAMC_Raw_Data_for_FY22[[#This Row],[Median]]","v":731337},753251,{"$f":"(((AAMC_Raw_Data_for_FY22[[#This Row],[75th]]-AAMC_Raw_Data_for_FY22[[#This Row],[Median]])/25)*30) + AAMC_Raw_Data_for_FY22[[#This Row],[Median]]","v":775165},{"$f":"(((AAMC_Raw_Data_for_FY22[[#This Row],[75th]]-AAMC_Raw_Data_for_FY22[[#This Row],[Median]])/25)*35) + AAMC_Raw_Data_for_FY22[[#This Row],[Median]]","v":797079},{"$f":"(((AAMC_Raw_Data_for_FY22[[#This Row],[75th]]-AAMC_Raw_Data_for_FY22[[#This Row],[Median]])/25)*40) + AAMC_Raw_Data_for_FY22[[#This Row],[Median]]","v":818993}]
[{"$f":"AAMC_Raw_Data_for_FY22[[#This Row],[Source]]&AAMC_Raw_Data_for_FY22[[#This Row],[Type]]&AAMC_Raw_Data_for_FY22[[#This Row],[School Subset]]&AAMC_Raw_Data_for_FY22[[#This Row],[Rank]]&AAMC_Raw_Data_for_FY22[[#This Row],[Degree]]&AAMC_Raw_Data_for_FY22[[#This Row],[Department / Specialty]]&\"L\"","v":"AAMCAcademicPublicChiefMDPlastic SurgeryL"},"Plastic Surgery",6,"AAMC","Academic","Public","Chief","MD","2021-2022",595403,{"$f":"(((AAMC_Raw_Data_for_FY22[[#This Row],[Median]]-AAMC_Raw_Data_for_FY22[[#This Row],[25th]])/25)*5) + AAMC_Raw_Data_for_FY22[[#This Row],[25th]]","v":611075.6},{"$f":"(((AAMC_Raw_Data_for_FY22[[#This Row],[Median]]-AAMC_Raw_Data_for_FY22[[#This Row],[25th]])/25)*10) + AAMC_Raw_Data_for_FY22[[#This Row],[25th]]","v":626748.19999999995},{"$f":"(((AAMC_Raw_Data_for_FY22[[#This Row],[Median]]-AAMC_Raw_Data_for_FY22[[#This Row],[25th]])/25)*15) + AAMC_Raw_Data_for_FY22[[#This Row],[25th]]","v":642420.80000000005},{"$f":"(((AAMC_Raw_Data_for_FY22[[#This Row],[Median]]-AAMC_Raw_Data_for_FY22[[#This Row],[25th]])/25)*20) + AAMC_Raw_Data_for_FY22[[#This Row],[25th]]","v":658093.4},673766,{"$f":"(((AAMC_Raw_Data_for_FY22[[#This Row],[75th]]-AAMC_Raw_Data_for_FY22[[#This Row],[Median]])/25)*5) + AAMC_Raw_Data_for_FY22[[#This Row],[Median]]","v":708311.2},{"$f":"(((AAMC_Raw_Data_for_FY22[[#This Row],[75th]]-AAMC_Raw_Data_for_FY22[[#This Row],[Median]])/25)*10) + AAMC_Raw_Data_for_FY22[[#This Row],[Median]]","v":742856.4},{"$f":"(((AAMC_Raw_Data_for_FY22[[#This Row],[75th]]-AAMC_Raw_Data_for_FY22[[#This Row],[Median]])/25)*15) + AAMC_Raw_Data_for_FY22[[#This Row],[Median]]","v":777401.6},{"$f":"(((AAMC_Raw_Data_for_FY22[[#This Row],[75th]]-AAMC_Raw_Data_for_FY22[[#This Row],[Median]])/25)*20) + AAMC_Raw_Data_for_FY22[[#This Row],[Median]]","v":811946.8},846492,{"$f":"(((AAMC_Raw_Data_for_FY22[[#This Row],[75th]]-AAMC_Raw_Data_for_FY22[[#This Row],[Median]])/25)*30) + AAMC_Raw_Data_for_FY22[[#This Row],[Median]]","v":881037.2},{"$f":"(((AAMC_Raw_Data_for_FY22[[#This Row],[75th]]-AAMC_Raw_Data_for_FY22[[#This Row],[Median]])/25)*35) + AAMC_Raw_Data_for_FY22[[#This Row],[Median]]","v":915582.4},{"$f":"(((AAMC_Raw_Data_for_FY22[[#This Row],[75th]]-AAMC_Raw_Data_for_FY22[[#This Row],[Median]])/25)*40) + AAMC_Raw_Data_for_FY22[[#This Row],[Median]]","v":950127.6}]
[{"$f":"AAMC_Raw_Data_for_FY22[[#This Row],[Source]]&AAMC_Raw_Data_for_FY22[[#This Row],[Type]]&AAMC_Raw_Data_for_FY22[[#This Row],[School Subset]]&AAMC_Raw_Data_for_FY22[[#This Row],[Rank]]&AAMC_Raw_Data_for_FY22[[#This Row],[Degree]]&AAMC_Raw_Data_for_FY22[[#This Row],[Department / Specialty]]&\"L\"","v":"AAMCAcademicPublicChairMDPlastic SurgeryL"},"Plastic Surgery",1,"AAMC","Academic","Public","Chair","MD","2021-2022",852892,{"$f":"(((AAMC_Raw_Data_for_FY22[[#This Row],[Median]]-AAMC_Raw_Data_for_FY22[[#This Row],[25th]])/25)*5) + AAMC_Raw_Data_for_FY22[[#This Row],[25th]]","v":857480.4},{"$f":"(((AAMC_Raw_Data_for_FY22[[#This Row],[Median]]-AAMC_Raw_Data_for_FY22[[#This Row],[25th]])/25)*10) + AAMC_Raw_Data_for_FY22[[#This Row],[25th]]","v":862068.8},{"$f":"(((AAMC_Raw_Data_for_FY22[[#This Row],[Median]]-AAMC_Raw_Data_for_FY22[[#This Row],[25th]])/25)*15) + AAMC_Raw_Data_for_FY22[[#This Row],[25th]]","v":866657.2},{"$f":"(((AAMC_Raw_Data_for_FY22[[#This Row],[Median]]-AAMC_Raw_Data_for_FY22[[#This Row],[25th]])/25)*20) + AAMC_Raw_Data_for_FY22[[#This Row],[25th]]","v":871245.6},875834,{"$f":"(((AAMC_Raw_Data_for_FY22[[#This Row],[75th]]-AAMC_Raw_Data_for_FY22[[#This Row],[Median]])/25)*5) + AAMC_Raw_Data_for_FY22[[#This Row],[Median]]","v":897836.8},{"$f":"(((AAMC_Raw_Data_for_FY22[[#This Row],[75th]]-AAMC_Raw_Data_for_FY22[[#This Row],[Median]])/25)*10) + AAMC_Raw_Data_for_FY22[[#This Row],[Median]]","v":919839.6},{"$f":"(((AAMC_Raw_Data_for_FY22[[#This Row],[75th]]-AAMC_Raw_Data_for_FY22[[#This Row],[Median]])/25)*15) + AAMC_Raw_Data_for_FY22[[#This Row],[Median]]","v":941842.4},{"$f":"(((AAMC_Raw_Data_for_FY22[[#This Row],[75th]]-AAMC_Raw_Data_for_FY22[[#This Row],[Median]])/25)*20) + AAMC_Raw_Data_for_FY22[[#This Row],[Median]]","v":963845.2},985848,{"$f":"(((AAMC_Raw_Data_for_FY22[[#This Row],[75th]]-AAMC_Raw_Data_for_FY22[[#This Row],[Median]])/25)*30) + AAMC_Raw_Data_for_FY22[[#This Row],[Median]]","v":1007850.8},{"$f":"(((AAMC_Raw_Data_for_FY22[[#This Row],[75th]]-AAMC_Raw_Data_for_FY22[[#This Row],[Median]])/25)*35) + AAMC_Raw_Data_for_FY22[[#This Row],[Median]]","v":1029853.6},{"$f":"(((AAMC_Raw_Data_for_FY22[[#This Row],[75th]]-AAMC_Raw_Data_for_FY22[[#This Row],[Median]])/25)*40) + AAMC_Raw_Data_for_FY22[[#This Row],[Median]]","v":1051856.3999999999}]
[{"$f":"AAMC_Raw_Data_for_FY22[[#This Row],[Source]]&AAMC_Raw_Data_for_FY22[[#This Row],[Type]]&AAMC_Raw_Data_for_FY22[[#This Row],[School Subset]]&AAMC_Raw_Data_for_FY22[[#This Row],[Rank]]&AAMC_Raw_Data_for_FY22[[#This Row],[Degree]]&AAMC_Raw_Data_for_FY22[[#This Row],[Department / Specialty]]&\"L\"","v":"AAMCAcademicPublicInstructorMDSurgical OncologyL"},"Surgical Oncology",5,"AAMC","Academic","Public","Instructor","MD","2021-2022",null,{"$f":"(((AAMC_Raw_Data_for_FY22[[#This Row],[Median]]-AAMC_Raw_Data_for_FY22[[#This Row],[25th]])/25)*5) + AAMC_Raw_Data_for_FY22[[#This Row],[25th]]","v":0},{"$f":"(((AAMC_Raw_Data_for_FY22[[#This Row],[Median]]-AAMC_Raw_Data_for_FY22[[#This Row],[25th]])/25)*10) + AAMC_Raw_Data_for_FY22[[#This Row],[25th]]","v":0},{"$f":"(((AAMC_Raw_Data_for_FY22[[#This Row],[Median]]-AAMC_Raw_Data_for_FY22[[#This Row],[25th]])/25)*15) + AAMC_Raw_Data_for_FY22[[#This Row],[25th]]","v":0},{"$f":"(((AAMC_Raw_Data_for_FY22[[#This Row],[Median]]-AAMC_Raw_Data_for_FY22[[#This Row],[25th]])/25)*20) + AAMC_Raw_Data_for_FY22[[#This Row],[25th]]","v":0},null,{"$f":"(((AAMC_Raw_Data_for_FY22[[#This Row],[75th]]-AAMC_Raw_Data_for_FY22[[#This Row],[Median]])/25)*5) + AAMC_Raw_Data_for_FY22[[#This Row],[Median]]","v":0},{"$f":"(((AAMC_Raw_Data_for_FY22[[#This Row],[75th]]-AAMC_Raw_Data_for_FY22[[#This Row],[Median]])/25)*10) + AAMC_Raw_Data_for_FY22[[#This Row],[Median]]","v":0},{"$f":"(((AAMC_Raw_Data_for_FY22[[#This Row],[75th]]-AAMC_Raw_Data_for_FY22[[#This Row],[Median]])/25)*15) + AAMC_Raw_Data_for_FY22[[#This Row],[Median]]","v":0},{"$f":"(((AAMC_Raw_Data_for_FY22[[#This Row],[75th]]-AAMC_Raw_Data_for_FY22[[#This Row],[Median]])/25)*20) + AAMC_Raw_Data_for_FY22[[#This Row],[Median]]","v":0},null,{"$f":"(((AAMC_Raw_Data_for_FY22[[#This Row],[75th]]-AAMC_Raw_Data_for_FY22[[#This Row],[Median]])/25)*30) + AAMC_Raw_Data_for_FY22[[#This Row],[Median]]","v":0},{"$f":"(((AAMC_Raw_Data_for_FY22[[#This Row],[75th]]-AAMC_Raw_Data_for_FY22[[#This Row],[Median]])/25)*35) + AAMC_Raw_Data_for_FY22[[#This Row],[Median]]","v":0},{"$f":"(((AAMC_Raw_Data_for_FY22[[#This Row],[75th]]-AAMC_Raw_Data_for_FY22[[#This Row],[Median]])/25)*40) + AAMC_Raw_Data_for_FY22[[#This Row],[Median]]","v":0}]
[{"$f":"AAMC_Raw_Data_for_FY22[[#This Row],[Source]]&AAMC_Raw_Data_for_FY22[[#This Row],[Type]]&AAMC_Raw_Data_for_FY22[[#This Row],[School Subset]]&AAMC_Raw_Data_for_FY22[[#This Row],[Rank]]&AAMC_Raw_Data_for_FY22[[#This Row],[Degree]]&AAMC_Raw_Data_for_FY22[[#This Row],[Department / Specialty]]&\"L\"","v":"AAMCAcademicPublicAssistantMDSurgical OncologyL"},"Surgical Oncology",4,"AAMC","Academic","Public","Assistant","MD","2021-2022",301737,{"$f":"(((AAMC_Raw_Data_for_FY22[[#This Row],[Median]]-AAMC_Raw_Data_for_FY22[[#This Row],[25th]])/25)*5) + AAMC_Raw_Data_for_FY22[[#This Row],[25th]]","v":307989.59999999998},{"$f":"(((AAMC_Raw_Data_for_FY22[[#This Row],[Median]]-AAMC_Raw_Data_for_FY22[[#This Row],[25th]])/25)*10) + AAMC_Raw_Data_for_FY22[[#This Row],[25th]]","v":314242.2},{"$f":"(((AAMC_Raw_Data_for_FY22[[#This Row],[Median]]-AAMC_Raw_Data_for_FY22[[#This Row],[25th]])/25)*15) + AAMC_Raw_Data_for_FY22[[#This Row],[25th]]","v":320494.8},{"$f":"(((AAMC_Raw_Data_for_FY22[[#This Row],[Median]]-AAMC_Raw_Data_for_FY22[[#This Row],[25th]])/25)*20) + AAMC_Raw_Data_for_FY22[[#This Row],[25th]]","v":326747.40000000002},333000,{"$f":"(((AAMC_Raw_Data_for_FY22[[#This Row],[75th]]-AAMC_Raw_Data_for_FY22[[#This Row],[Median]])/25)*5) + AAMC_Raw_Data_for_FY22[[#This Row],[Median]]","v":339960.2},{"$f":"(((AAMC_Raw_Data_for_FY22[[#This Row],[75th]]-AAMC_Raw_Data_for_FY22[[#This Row],[Median]])/25)*10) + AAMC_Raw_Data_for_FY22[[#This Row],[Median]]","v":346920.4},{"$f":"(((AAMC_Raw_Data_for_FY22[[#This Row],[75th]]-AAMC_Raw_Data_for_FY22[[#This Row],[Median]])/25)*15) + AAMC_Raw_Data_for_FY22[[#This Row],[Median]]","v":353880.6},{"$f":"(((AAMC_Raw_Data_for_FY22[[#This Row],[75th]]-AAMC_Raw_Data_for_FY22[[#This Row],[Median]])/25)*20) + AAMC_Raw_Data_for_FY22[[#This Row],[Median]]","v":360840.8},367801,{"$f":"(((AAMC_Raw_Data_for_FY22[[#This Row],[75th]]-AAMC_Raw_Data_for_FY22[[#This Row],[Median]])/25)*30) + AAMC_Raw_Data_for_FY22[[#This Row],[Median]]","v":374761.2},{"$f":"(((AAMC_Raw_Data_for_FY22[[#This Row],[75th]]-AAMC_Raw_Data_for_FY22[[#This Row],[Median]])/25)*35) + AAMC_Raw_Data_for_FY22[[#This Row],[Median]]","v":381721.4},{"$f":"(((AAMC_Raw_Data_for_FY22[[#This Row],[75th]]-AAMC_Raw_Data_for_FY22[[#This Row],[Median]])/25)*40) + AAMC_Raw_Data_for_FY22[[#This Row],[Median]]","v":388681.6}]
[{"$f":"AAMC_Raw_Data_for_FY22[[#This Row],[Source]]&AAMC_Raw_Data_for_FY22[[#This Row],[Type]]&AAMC_Raw_Data_for_FY22[[#This Row],[School Subset]]&AAMC_Raw_Data_for_FY22[[#This Row],[Rank]]&AAMC_Raw_Data_for_FY22[[#This Row],[Degree]]&AAMC_Raw_Data_for_FY22[[#This Row],[Department / Specialty]]&\"L\"","v":"AAMCAcademicPublicAssociateMDSurgical OncologyL"},"Surgical Oncology",3,"AAMC","Academic","Public","Associate","MD","2021-2022",350849,{"$f":"(((AAMC_Raw_Data_for_FY22[[#This Row],[Median]]-AAMC_Raw_Data_for_FY22[[#This Row],[25th]])/25)*5) + AAMC_Raw_Data_for_FY22[[#This Row],[25th]]","v":359430},{"$f":"(((AAMC_Raw_Data_for_FY22[[#This Row],[Median]]-AAMC_Raw_Data_for_FY22[[#This Row],[25th]])/25)*10) + AAMC_Raw_Data_for_FY22[[#This Row],[25th]]","v":368011},{"$f":"(((AAMC_Raw_Data_for_FY22[[#This Row],[Median]]-AAMC_Raw_Data_for_FY22[[#This Row],[25th]])/25)*15) + AAMC_Raw_Data_for_FY22[[#This Row],[25th]]","v":376592},{"$f":"(((AAMC_Raw_Data_for_FY22[[#This Row],[Median]]-AAMC_Raw_Data_for_FY22[[#This Row],[25th]])/25)*20) + AAMC_Raw_Data_for_FY22[[#This Row],[25th]]","v":385173},393754,{"$f":"(((AAMC_Raw_Data_for_FY22[[#This Row],[75th]]-AAMC_Raw_Data_for_FY22[[#This Row],[Median]])/25)*5) + AAMC_Raw_Data_for_FY22[[#This Row],[Median]]","v":412775.2},{"$f":"(((AAMC_Raw_Data_for_FY22[[#This Row],[75th]]-AAMC_Raw_Data_for_FY22[[#This Row],[Median]])/25)*10) + AAMC_Raw_Data_for_FY22[[#This Row],[Median]]","v":431796.4},{"$f":"(((AAMC_Raw_Data_for_FY22[[#This Row],[75th]]-AAMC_Raw_Data_for_FY22[[#This Row],[Median]])/25)*15) + AAMC_Raw_Data_for_FY22[[#This Row],[Median]]","v":450817.6},{"$f":"(((AAMC_Raw_Data_for_FY22[[#This Row],[75th]]-AAMC_Raw_Data_for_FY22[[#This Row],[Median]])/25)*20) + AAMC_Raw_Data_for_FY22[[#This Row],[Median]]","v":469838.8},488860,{"$f":"(((AAMC_Raw_Data_for_FY22[[#This Row],[75th]]-AAMC_Raw_Data_for_FY22[[#This Row],[Median]])/25)*30) + AAMC_Raw_Data_for_FY22[[#This Row],[Median]]","v":507881.2},{"$f":"(((AAMC_Raw_Data_for_FY22[[#This Row],[75th]]-AAMC_Raw_Data_for_FY22[[#This Row],[Median]])/25)*35) + AAMC_Raw_Data_for_FY22[[#This Row],[Median]]","v":526902.4},{"$f":"(((AAMC_Raw_Data_for_FY22[[#This Row],[75th]]-AAMC_Raw_Data_for_FY22[[#This Row],[Median]])/25)*40) + AAMC_Raw_Data_for_FY22[[#This Row],[Median]]","v":545923.6}]
[{"$f":"AAMC_Raw_Data_for_FY22[[#This Row],[Source]]&AAMC_Raw_Data_for_FY22[[#This Row],[Type]]&AAMC_Raw_Data_for_FY22[[#This Row],[School Subset]]&AAMC_Raw_Data_for_FY22[[#This Row],[Rank]]&AAMC_Raw_Data_for_FY22[[#This Row],[Degree]]&AAMC_Raw_Data_for_FY22[[#This Row],[Department / Specialty]]&\"L\"","v":"AAMCAcademicPublicProfessorMDSurgical OncologyL"},"Surgical Oncology",2,"AAMC","Academic","Public","Professor","MD","2021-2022",407707,{"$f":"(((AAMC_Raw_Data_for_FY22[[#This Row],[Median]]-AAMC_Raw_Data_for_FY22[[#This Row],[25th]])/25)*5) + AAMC_Raw_Data_for_FY22[[#This Row],[25th]]","v":421686.4},{"$f":"(((AAMC_Raw_Data_for_FY22[[#This Row],[Median]]-AAMC_Raw_Data_for_FY22[[#This Row],[25th]])/25)*10) + AAMC_Raw_Data_for_FY22[[#This Row],[25th]]","v":435665.8},{"$f":"(((AAMC_Raw_Data_for_FY22[[#This Row],[Median]]-AAMC_Raw_Data_for_FY22[[#This Row],[25th]])/25)*15) + AAMC_Raw_Data_for_FY22[[#This Row],[25th]]","v":449645.2},{"$f":"(((AAMC_Raw_Data_for_FY22[[#This Row],[Median]]-AAMC_Raw_Data_for_FY22[[#This Row],[25th]])/25)*20) + AAMC_Raw_Data_for_FY22[[#This Row],[25th]]","v":463624.6},477604,{"$f":"(((AAMC_Raw_Data_for_FY22[[#This Row],[75th]]-AAMC_Raw_Data_for_FY22[[#This Row],[Median]])/25)*5) + AAMC_Raw_Data_for_FY22[[#This Row],[Median]]","v":499076.8},{"$f":"(((AAMC_Raw_Data_for_FY22[[#This Row],[75th]]-AAMC_Raw_Data_for_FY22[[#This Row],[Median]])/25)*10) + AAMC_Raw_Data_for_FY22[[#This Row],[Median]]","v":520549.6},{"$f":"(((AAMC_Raw_Data_for_FY22[[#This Row],[75th]]-AAMC_Raw_Data_for_FY22[[#This Row],[Median]])/25)*15) + AAMC_Raw_Data_for_FY22[[#This Row],[Median]]","v":542022.40000000002},{"$f":"(((AAMC_Raw_Data_for_FY22[[#This Row],[75th]]-AAMC_Raw_Data_for_FY22[[#This Row],[Median]])/25)*20) + AAMC_Raw_Data_for_FY22[[#This Row],[Median]]","v":563495.19999999995},584968,{"$f":"(((AAMC_Raw_Data_for_FY22[[#This Row],[75th]]-AAMC_Raw_Data_for_FY22[[#This Row],[Median]])/25)*30) + AAMC_Raw_Data_for_FY22[[#This Row],[Median]]","v":606440.80000000005},{"$f":"(((AAMC_Raw_Data_for_FY22[[#This Row],[75th]]-AAMC_Raw_Data_for_FY22[[#This Row],[Median]])/25)*35) + AAMC_Raw_Data_for_FY22[[#This Row],[Median]]","v":627913.6},{"$f":"(((AAMC_Raw_Data_for_FY22[[#This Row],[75th]]-AAMC_Raw_Data_for_FY22[[#This Row],[Median]])/25)*40) + AAMC_Raw_Data_for_FY22[[#This Row],[Median]]","v":649386.4}]
[{"$f":"AAMC_Raw_Data_for_FY22[[#This Row],[Source]]&AAMC_Raw_Data_for_FY22[[#This Row],[Type]]&AAMC_Raw_Data_for_FY22[[#This Row],[School Subset]]&AAMC_Raw_Data_for_FY22[[#This Row],[Rank]]&AAMC_Raw_Data_for_FY22[[#This Row],[Degree]]&AAMC_Raw_Data_for_FY22[[#This Row],[Department / Specialty]]&\"L\"","v":"AAMCAcademicPublicChiefMDSurgical OncologyL"},"Surgical Oncology",6,"AAMC","Academic","Public","Chief","MD","2021-2022",498510,{"$f":"(((AAMC_Raw_Data_for_FY22[[#This Row],[Median]]-AAMC_Raw_Data_for_FY22[[#This Row],[25th]])/25)*5) + AAMC_Raw_Data_for_FY22[[#This Row],[25th]]","v":507271.4},{"$f":"(((AAMC_Raw_Data_for_FY22[[#This Row],[Median]]-AAMC_Raw_Data_for_FY22[[#This Row],[25th]])/25)*10) + AAMC_Raw_Data_for_FY22[[#This Row],[25th]]","v":516032.8},{"$f":"(((AAMC_Raw_Data_for_FY22[[#This Row],[Median]]-AAMC_Raw_Data_for_FY22[[#This Row],[25th]])/25)*15) + AAMC_Raw_Data_for_FY22[[#This Row],[25th]]","v":524794.19999999995},{"$f":"(((AAMC_Raw_Data_for_FY22[[#This Row],[Median]]-AAMC_Raw_Data_for_FY22[[#This Row],[25th]])/25)*20) + AAMC_Raw_Data_for_FY22[[#This Row],[25th]]","v":533555.6},542317,{"$f":"(((AAMC_Raw_Data_for_FY22[[#This Row],[75th]]-AAMC_Raw_Data_for_FY22[[#This Row],[Median]])/25)*5) + AAMC_Raw_Data_for_FY22[[#This Row],[Median]]","v":561638.19999999995},{"$f":"(((AAMC_Raw_Data_for_FY22[[#This Row],[75th]]-AAMC_Raw_Data_for_FY22[[#This Row],[Median]])/25)*10) + AAMC_Raw_Data_for_FY22[[#This Row],[Median]]","v":580959.4},{"$f":"(((AAMC_Raw_Data_for_FY22[[#This Row],[75th]]-AAMC_Raw_Data_for_FY22[[#This Row],[Median]])/25)*15) + AAMC_Raw_Data_for_FY22[[#This Row],[Median]]","v":600280.6},{"$f":"(((AAMC_Raw_Data_for_FY22[[#This Row],[75th]]-AAMC_Raw_Data_for_FY22[[#This Row],[Median]])/25)*20) + AAMC_Raw_Data_for_FY22[[#This Row],[Median]]","v":619601.80000000005},638923,{"$f":"(((AAMC_Raw_Data_for_FY22[[#This Row],[75th]]-AAMC_Raw_Data_for_FY22[[#This Row],[Median]])/25)*30) + AAMC_Raw_Data_for_FY22[[#This Row],[Median]]","v":658244.19999999995},{"$f":"(((AAMC_Raw_Data_for_FY22[[#This Row],[75th]]-AAMC_Raw_Data_for_FY22[[#This Row],[Median]])/25)*35) + AAMC_Raw_Data_for_FY22[[#This Row],[Median]]","v":677565.4},{"$f":"(((AAMC_Raw_Data_for_FY22[[#This Row],[75th]]-AAMC_Raw_Data_for_FY22[[#This Row],[Median]])/25)*40) + AAMC_Raw_Data_for_FY22[[#This Row],[Median]]","v":696886.6}]
[{"$f":"AAMC_Raw_Data_for_FY22[[#This Row],[Source]]&AAMC_Raw_Data_for_FY22[[#This Row],[Type]]&AAMC_Raw_Data_for_FY22[[#This Row],[School Subset]]&AAMC_Raw_Data_for_FY22[[#This Row],[Rank]]&AAMC_Raw_Data_for_FY22[[#This Row],[Degree]]&AAMC_Raw_Data_for_FY22[[#This Row],[Department / Specialty]]&\"L\"","v":"AAMCAcademicPublicChairMDSurgical OncologyL"},"Surgical Oncology",1,"AAMC","Academic","Public","Chair","MD","2021-2022",939424,{"$f":"(((AAMC_Raw_Data_for_FY22[[#This Row],[Median]]-AAMC_Raw_Data_for_FY22[[#This Row],[25th]])/25)*5) + AAMC_Raw_Data_for_FY22[[#This Row],[25th]]","v":956805.2},{"$f":"(((AAMC_Raw_Data_for_FY22[[#This Row],[Median]]-AAMC_Raw_Data_for_FY22[[#This Row],[25th]])/25)*10) + AAMC_Raw_Data_for_FY22[[#This Row],[25th]]","v":974186.4},{"$f":"(((AAMC_Raw_Data_for_FY22[[#This Row],[Median]]-AAMC_Raw_Data_for_FY22[[#This Row],[25th]])/25)*15) + AAMC_Raw_Data_for_FY22[[#This Row],[25th]]","v":991567.6},{"$f":"(((AAMC_Raw_Data_for_FY22[[#This Row],[Median]]-AAMC_Raw_Data_for_FY22[[#This Row],[25th]])/25)*20) + AAMC_Raw_Data_for_FY22[[#This Row],[25th]]","v":1008948.8},1026330,{"$f":"(((AAMC_Raw_Data_for_FY22[[#This Row],[75th]]-AAMC_Raw_Data_for_FY22[[#This Row],[Median]])/25)*5) + AAMC_Raw_Data_for_FY22[[#This Row],[Median]]","v":1048855.6000000001},{"$f":"(((AAMC_Raw_Data_for_FY22[[#This Row],[75th]]-AAMC_Raw_Data_for_FY22[[#This Row],[Median]])/25)*10) + AAMC_Raw_Data_for_FY22[[#This Row],[Median]]","v":1071381.2},{"$f":"(((AAMC_Raw_Data_for_FY22[[#This Row],[75th]]-AAMC_Raw_Data_for_FY22[[#This Row],[Median]])/25)*15) + AAMC_Raw_Data_for_FY22[[#This Row],[Median]]","v":1093906.8},{"$f":"(((AAMC_Raw_Data_for_FY22[[#This Row],[75th]]-AAMC_Raw_Data_for_FY22[[#This Row],[Median]])/25)*20) + AAMC_Raw_Data_for_FY22[[#This Row],[Median]]","v":1116432.3999999999},1138958,{"$f":"(((AAMC_Raw_Data_for_FY22[[#This Row],[75th]]-AAMC_Raw_Data_for_FY22[[#This Row],[Median]])/25)*30) + AAMC_Raw_Data_for_FY22[[#This Row],[Median]]","v":1161483.6000000001},{"$f":"(((AAMC_Raw_Data_for_FY22[[#This Row],[75th]]-AAMC_Raw_Data_for_FY22[[#This Row],[Median]])/25)*35) + AAMC_Raw_Data_for_FY22[[#This Row],[Median]]","v":1184009.2},{"$f":"(((AAMC_Raw_Data_for_FY22[[#This Row],[75th]]-AAMC_Raw_Data_for_FY22[[#This Row],[Median]])/25)*40) + AAMC_Raw_Data_for_FY22[[#This Row],[Median]]","v":1206534.8}]
[{"$f":"AAMC_Raw_Data_for_FY22[[#This Row],[Source]]&AAMC_Raw_Data_for_FY22[[#This Row],[Type]]&AAMC_Raw_Data_for_FY22[[#This Row],[School Subset]]&AAMC_Raw_Data_for_FY22[[#This Row],[Rank]]&AAMC_Raw_Data_for_FY22[[#This Row],[Degree]]&AAMC_Raw_Data_for_FY22[[#This Row],[Department / Specialty]]&\"L\"","v":"AAMCAcademicPublicInstructorMDThoracic & Cardiovascular SurgeryL"},"Thoracic & Cardiovascular Surgery",5,"AAMC","Academic","Public","Instructor","MD","2021-2022",105928,{"$f":"(((AAMC_Raw_Data_for_FY22[[#This Row],[Median]]-AAMC_Raw_Data_for_FY22[[#This Row],[25th]])/25)*5) + AAMC_Raw_Data_for_FY22[[#This Row],[25th]]","v":119042.4},{"$f":"(((AAMC_Raw_Data_for_FY22[[#This Row],[Median]]-AAMC_Raw_Data_for_FY22[[#This Row],[25th]])/25)*10) + AAMC_Raw_Data_for_FY22[[#This Row],[25th]]","v":132156.79999999999},{"$f":"(((AAMC_Raw_Data_for_FY22[[#This Row],[Median]]-AAMC_Raw_Data_for_FY22[[#This Row],[25th]])/25)*15) + AAMC_Raw_Data_for_FY22[[#This Row],[25th]]","v":145271.20000000001},{"$f":"(((AAMC_Raw_Data_for_FY22[[#This Row],[Median]]-AAMC_Raw_Data_for_FY22[[#This Row],[25th]])/25)*20) + AAMC_Raw_Data_for_FY22[[#This Row],[25th]]","v":158385.60000000001},171500,{"$f":"(((AAMC_Raw_Data_for_FY22[[#This Row],[75th]]-AAMC_Raw_Data_for_FY22[[#This Row],[Median]])/25)*5) + AAMC_Raw_Data_for_FY22[[#This Row],[Median]]","v":178950},{"$f":"(((AAMC_Raw_Data_for_FY22[[#This Row],[75th]]-AAMC_Raw_Data_for_FY22[[#This Row],[Median]])/25)*10) + AAMC_Raw_Data_for_FY22[[#This Row],[Median]]","v":186400},{"$f":"(((AAMC_Raw_Data_for_FY22[[#This Row],[75th]]-AAMC_Raw_Data_for_FY22[[#This Row],[Median]])/25)*15) + AAMC_Raw_Data_for_FY22[[#This Row],[Median]]","v":193850},{"$f":"(((AAMC_Raw_Data_for_FY22[[#This Row],[75th]]-AAMC_Raw_Data_for_FY22[[#This Row],[Median]])/25)*20) + AAMC_Raw_Data_for_FY22[[#This Row],[Median]]","v":201300},208750,{"$f":"(((AAMC_Raw_Data_for_FY22[[#This Row],[75th]]-AAMC_Raw_Data_for_FY22[[#This Row],[Median]])/25)*30) + AAMC_Raw_Data_for_FY22[[#This Row],[Median]]","v":216200},{"$f":"(((AAMC_Raw_Data_for_FY22[[#This Row],[75th]]-AAMC_Raw_Data_for_FY22[[#This Row],[Median]])/25)*35) + AAMC_Raw_Data_for_FY22[[#This Row],[Median]]","v":223650},{"$f":"(((AAMC_Raw_Data_for_FY22[[#This Row],[75th]]-AAMC_Raw_Data_for_FY22[[#This Row],[Median]])/25)*40) + AAMC_Raw_Data_for_FY22[[#This Row],[Median]]","v":231100}]
[{"$f":"AAMC_Raw_Data_for_FY22[[#This Row],[Source]]&AAMC_Raw_Data_for_FY22[[#This Row],[Type]]&AAMC_Raw_Data_for_FY22[[#This Row],[School Subset]]&AAMC_Raw_Data_for_FY22[[#This Row],[Rank]]&AAMC_Raw_Data_for_FY22[[#This Row],[Degree]]&AAMC_Raw_Data_for_FY22[[#This Row],[Department / Specialty]]&\"L\"","v":"AAMCAcademicPublicAssistantMDThoracic & Cardiovascular SurgeryL"},"Thoracic & Cardiovascular Surgery",4,"AAMC","Academic","Public","Assistant","MD","2021-2022",408795,{"$f":"(((AAMC_Raw_Data_for_FY22[[#This Row],[Median]]-AAMC_Raw_Data_for_FY22[[#This Row],[25th]])/25)*5) + AAMC_Raw_Data_for_FY22[[#This Row],[25th]]","v":422769.8},{"$f":"(((AAMC_Raw_Data_for_FY22[[#This Row],[Median]]-AAMC_Raw_Data_for_FY22[[#This Row],[25th]])/25)*10) + AAMC_Raw_Data_for_FY22[[#This Row],[25th]]","v":436744.6},{"$f":"(((AAMC_Raw_Data_for_FY22[[#This Row],[Median]]-AAMC_Raw_Data_for_FY22[[#This Row],[25th]])/25)*15) + AAMC_Raw_Data_for_FY22[[#This Row],[25th]]","v":450719.4},{"$f":"(((AAMC_Raw_Data_for_FY22[[#This Row],[Median]]-AAMC_Raw_Data_for_FY22[[#This Row],[25th]])/25)*20) + AAMC_Raw_Data_for_FY22[[#This Row],[25th]]","v":464694.2},478669,{"$f":"(((AAMC_Raw_Data_for_FY22[[#This Row],[75th]]-AAMC_Raw_Data_for_FY22[[#This Row],[Median]])/25)*5) + AAMC_Raw_Data_for_FY22[[#This Row],[Median]]","v":505435},{"$f":"(((AAMC_Raw_Data_for_FY22[[#This Row],[75th]]-AAMC_Raw_Data_for_FY22[[#This Row],[Median]])/25)*10) + AAMC_Raw_Data_for_FY22[[#This Row],[Median]]","v":532201},{"$f":"(((AAMC_Raw_Data_for_FY22[[#This Row],[75th]]-AAMC_Raw_Data_for_FY22[[#This Row],[Median]])/25)*15) + AAMC_Raw_Data_for_FY22[[#This Row],[Median]]","v":558967},{"$f":"(((AAMC_Raw_Data_for_FY22[[#This Row],[75th]]-AAMC_Raw_Data_for_FY22[[#This Row],[Median]])/25)*20) + AAMC_Raw_Data_for_FY22[[#This Row],[Median]]","v":585733},612499,{"$f":"(((AAMC_Raw_Data_for_FY22[[#This Row],[75th]]-AAMC_Raw_Data_for_FY22[[#This Row],[Median]])/25)*30) + AAMC_Raw_Data_for_FY22[[#This Row],[Median]]","v":639265},{"$f":"(((AAMC_Raw_Data_for_FY22[[#This Row],[75th]]-AAMC_Raw_Data_for_FY22[[#This Row],[Median]])/25)*35) + AAMC_Raw_Data_for_FY22[[#This Row],[Median]]","v":666031},{"$f":"(((AAMC_Raw_Data_for_FY22[[#This Row],[75th]]-AAMC_Raw_Data_for_FY22[[#This Row],[Median]])/25)*40) + AAMC_Raw_Data_for_FY22[[#This Row],[Median]]","v":692797}]
[{"$f":"AAMC_Raw_Data_for_FY22[[#This Row],[Source]]&AAMC_Raw_Data_for_FY22[[#This Row],[Type]]&AAMC_Raw_Data_for_FY22[[#This Row],[School Subset]]&AAMC_Raw_Data_for_FY22[[#This Row],[Rank]]&AAMC_Raw_Data_for_FY22[[#This Row],[Degree]]&AAMC_Raw_Data_for_FY22[[#This Row],[Department / Specialty]]&\"L\"","v":"AAMCAcademicPublicAssociateMDThoracic & Cardiovascular SurgeryL"},"Thoracic & Cardiovascular Surgery",3,"AAMC","Academic","Public","Associate","MD","2021-2022",550000,{"$f":"(((AAMC_Raw_Data_for_FY22[[#This Row],[Median]]-AAMC_Raw_Data_for_FY22[[#This Row],[25th]])/25)*5) + AAMC_Raw_Data_for_FY22[[#This Row],[25th]]","v":573030},{"$f":"(((AAMC_Raw_Data_for_FY22[[#This Row],[Median]]-AAMC_Raw_Data_for_FY22[[#This Row],[25th]])/25)*10) + AAMC_Raw_Data_for_FY22[[#This Row],[25th]]","v":596060},{"$f":"(((AAMC_Raw_Data_for_FY22[[#This Row],[Median]]-AAMC_Raw_Data_for_FY22[[#This Row],[25th]])/25)*15) + AAMC_Raw_Data_for_FY22[[#This Row],[25th]]","v":619090},{"$f":"(((AAMC_Raw_Data_for_FY22[[#This Row],[Median]]-AAMC_Raw_Data_for_FY22[[#This Row],[25th]])/25)*20) + AAMC_Raw_Data_for_FY22[[#This Row],[25th]]","v":642120},665150,{"$f":"(((AAMC_Raw_Data_for_FY22[[#This Row],[75th]]-AAMC_Raw_Data_for_FY22[[#This Row],[Median]])/25)*5) + AAMC_Raw_Data_for_FY22[[#This Row],[Median]]","v":713470},{"$f":"(((AAMC_Raw_Data_for_FY22[[#This Row],[75th]]-AAMC_Raw_Data_for_FY22[[#This Row],[Median]])/25)*10) + AAMC_Raw_Data_for_FY22[[#This Row],[Median]]","v":761790},{"$f":"(((AAMC_Raw_Data_for_FY22[[#This Row],[75th]]-AAMC_Raw_Data_for_FY22[[#This Row],[Median]])/25)*15) + AAMC_Raw_Data_for_FY22[[#This Row],[Median]]","v":810110},{"$f":"(((AAMC_Raw_Data_for_FY22[[#This Row],[75th]]-AAMC_Raw_Data_for_FY22[[#This Row],[Median]])/25)*20) + AAMC_Raw_Data_for_FY22[[#This Row],[Median]]","v":858430},906750,{"$f":"(((AAMC_Raw_Data_for_FY22[[#This Row],[75th]]-AAMC_Raw_Data_for_FY22[[#This Row],[Median]])/25)*30) + AAMC_Raw_Data_for_FY22[[#This Row],[Median]]","v":955070},{"$f":"(((AAMC_Raw_Data_for_FY22[[#This Row],[75th]]-AAMC_Raw_Data_for_FY22[[#This Row],[Median]])/25)*35) + AAMC_Raw_Data_for_FY22[[#This Row],[Median]]","v":1003390},{"$f":"(((AAMC_Raw_Data_for_FY22[[#This Row],[75th]]-AAMC_Raw_Data_for_FY22[[#This Row],[Median]])/25)*40) + AAMC_Raw_Data_for_FY22[[#This Row],[Median]]","v":1051710}]
[{"$f":"AAMC_Raw_Data_for_FY22[[#This Row],[Source]]&AAMC_Raw_Data_for_FY22[[#This Row],[Type]]&AAMC_Raw_Data_for_FY22[[#This Row],[School Subset]]&AAMC_Raw_Data_for_FY22[[#This Row],[Rank]]&AAMC_Raw_Data_for_FY22[[#This Row],[Degree]]&AAMC_Raw_Data_for_FY22[[#This Row],[Department / Specialty]]&\"L\"","v":"AAMCAcademicPublicProfessorMDThoracic & Cardiovascular SurgeryL"},"Thoracic & Cardiovascular Surgery",2,"AAMC","Academic","Public","Professor","MD","2021-2022",595233,{"$f":"(((AAMC_Raw_Data_for_FY22[[#This Row],[Median]]-AAMC_Raw_Data_for_FY22[[#This Row],[25th]])/25)*5) + AAMC_Raw_Data_for_FY22[[#This Row],[25th]]","v":626186.4},{"$f":"(((AAMC_Raw_Data_for_FY22[[#This Row],[Median]]-AAMC_Raw_Data_for_FY22[[#This Row],[25th]])/25)*10) + AAMC_Raw_Data_for_FY22[[#This Row],[25th]]","v":657139.80000000005},{"$f":"(((AAMC_Raw_Data_for_FY22[[#This Row],[Median]]-AAMC_Raw_Data_for_FY22[[#This Row],[25th]])/25)*15) + AAMC_Raw_Data_for_FY22[[#This Row],[25th]]","v":688093.2},{"$f":"(((AAMC_Raw_Data_for_FY22[[#This Row],[Median]]-AAMC_Raw_Data_for_FY22[[#This Row],[25th]])/25)*20) + AAMC_Raw_Data_for_FY22[[#This Row],[25th]]","v":719046.6},750000,{"$f":"(((AAMC_Raw_Data_for_FY22[[#This Row],[75th]]-AAMC_Raw_Data_for_FY22[[#This Row],[Median]])/25)*5) + AAMC_Raw_Data_for_FY22[[#This Row],[Median]]","v":800533.2},{"$f":"(((AAMC_Raw_Data_for_FY22[[#This Row],[75th]]-AAMC_Raw_Data_for_FY22[[#This Row],[Median]])/25)*10) + AAMC_Raw_Data_for_FY22[[#This Row],[Median]]","v":851066.4},{"$f":"(((AAMC_Raw_Data_for_FY22[[#This Row],[75th]]-AAMC_Raw_Data_for_FY22[[#This Row],[Median]])/25)*15) + AAMC_Raw_Data_for_FY22[[#This Row],[Median]]","v":901599.6},{"$f":"(((AAMC_Raw_Data_for_FY22[[#This Row],[75th]]-AAMC_Raw_Data_for_FY22[[#This Row],[Median]])/25)*20) + AAMC_Raw_Data_for_FY22[[#This Row],[Median]]","v":952132.8},1002666,{"$f":"(((AAMC_Raw_Data_for_FY22[[#This Row],[75th]]-AAMC_Raw_Data_for_FY22[[#This Row],[Median]])/25)*30) + AAMC_Raw_Data_for_FY22[[#This Row],[Median]]","v":1053199.2},{"$f":"(((AAMC_Raw_Data_for_FY22[[#This Row],[75th]]-AAMC_Raw_Data_for_FY22[[#This Row],[Median]])/25)*35) + AAMC_Raw_Data_for_FY22[[#This Row],[Median]]","v":1103732.3999999999},{"$f":"(((AAMC_Raw_Data_for_FY22[[#This Row],[75th]]-AAMC_Raw_Data_for_FY22[[#This Row],[Median]])/25)*40) + AAMC_Raw_Data_for_FY22[[#This Row],[Median]]","v":1154265.6000000001}]
[{"$f":"AAMC_Raw_Data_for_FY22[[#This Row],[Source]]&AAMC_Raw_Data_for_FY22[[#This Row],[Type]]&AAMC_Raw_Data_for_FY22[[#This Row],[School Subset]]&AAMC_Raw_Data_for_FY22[[#This Row],[Rank]]&AAMC_Raw_Data_for_FY22[[#This Row],[Degree]]&AAMC_Raw_Data_for_FY22[[#This Row],[Department / Specialty]]&\"L\"","v":"AAMCAcademicPublicChiefMDThoracic & Cardiovascular SurgeryL"},"Thoracic & Cardiovascular Surgery",6,"AAMC","Academic","Public","Chief","MD","2021-2022",682390,{"$f":"(((AAMC_Raw_Data_for_FY22[[#This Row],[Median]]-AAMC_Raw_Data_for_FY22[[#This Row],[25th]])/25)*5) + AAMC_Raw_Data_for_FY22[[#This Row],[25th]]","v":725994.4},{"$f":"(((AAMC_Raw_Data_for_FY22[[#This Row],[Median]]-AAMC_Raw_Data_for_FY22[[#This Row],[25th]])/25)*10) + AAMC_Raw_Data_for_FY22[[#This Row],[25th]]","v":769598.8},{"$f":"(((AAMC_Raw_Data_for_FY22[[#This Row],[Median]]-AAMC_Raw_Data_for_FY22[[#This Row],[25th]])/25)*15) + AAMC_Raw_Data_for_FY22[[#This Row],[25th]]","v":813203.2},{"$f":"(((AAMC_Raw_Data_for_FY22[[#This Row],[Median]]-AAMC_Raw_Data_for_FY22[[#This Row],[25th]])/25)*20) + AAMC_Raw_Data_for_FY22[[#This Row],[25th]]","v":856807.6},900412,{"$f":"(((AAMC_Raw_Data_for_FY22[[#This Row],[75th]]-AAMC_Raw_Data_for_FY22[[#This Row],[Median]])/25)*5) + AAMC_Raw_Data_for_FY22[[#This Row],[Median]]","v":981828.6},{"$f":"(((AAMC_Raw_Data_for_FY22[[#This Row],[75th]]-AAMC_Raw_Data_for_FY22[[#This Row],[Median]])/25)*10) + AAMC_Raw_Data_for_FY22[[#This Row],[Median]]","v":1063245.2},{"$f":"(((AAMC_Raw_Data_for_FY22[[#This Row],[75th]]-AAMC_Raw_Data_for_FY22[[#This Row],[Median]])/25)*15) + AAMC_Raw_Data_for_FY22[[#This Row],[Median]]","v":1144661.8},{"$f":"(((AAMC_Raw_Data_for_FY22[[#This Row],[75th]]-AAMC_Raw_Data_for_FY22[[#This Row],[Median]])/25)*20) + AAMC_Raw_Data_for_FY22[[#This Row],[Median]]","v":1226078.3999999999},1307495,{"$f":"(((AAMC_Raw_Data_for_FY22[[#This Row],[75th]]-AAMC_Raw_Data_for_FY22[[#This Row],[Median]])/25)*30) + AAMC_Raw_Data_for_FY22[[#This Row],[Median]]","v":1388911.6},{"$f":"(((AAMC_Raw_Data_for_FY22[[#This Row],[75th]]-AAMC_Raw_Data_for_FY22[[#This Row],[Median]])/25)*35) + AAMC_Raw_Data_for_FY22[[#This Row],[Median]]","v":1470328.2},{"$f":"(((AAMC_Raw_Data_for_FY22[[#This Row],[75th]]-AAMC_Raw_Data_for_FY22[[#This Row],[Median]])/25)*40) + AAMC_Raw_Data_for_FY22[[#This Row],[Median]]","v":1551744.8}]
[{"$f":"AAMC_Raw_Data_for_FY22[[#This Row],[Source]]&AAMC_Raw_Data_for_FY22[[#This Row],[Type]]&AAMC_Raw_Data_for_FY22[[#This Row],[School Subset]]&AAMC_Raw_Data_for_FY22[[#This Row],[Rank]]&AAMC_Raw_Data_for_FY22[[#This Row],[Degree]]&AAMC_Raw_Data_for_FY22[[#This Row],[Department / Specialty]]&\"L\"","v":"AAMCAcademicPublicChairMDThoracic & Cardiovascular SurgeryL"},"Thoracic & Cardiovascular Surgery",1,"AAMC","Academic","Public","Chair","MD","2021-2022",939082,{"$f":"(((AAMC_Raw_Data_for_FY22[[#This Row],[Median]]-AAMC_Raw_Data_for_FY22[[#This Row],[25th]])/25)*5) + AAMC_Raw_Data_for_FY22[[#This Row],[25th]]","v":966990.6},{"$f":"(((AAMC_Raw_Data_for_FY22[[#This Row],[Median]]-AAMC_Raw_Data_for_FY22[[#This Row],[25th]])/25)*10) + AAMC_Raw_Data_for_FY22[[#This Row],[25th]]","v":994899.2},{"$f":"(((AAMC_Raw_Data_for_FY22[[#This Row],[Median]]-AAMC_Raw_Data_for_FY22[[#This Row],[25th]])/25)*15) + AAMC_Raw_Data_for_FY22[[#This Row],[25th]]","v":1022807.8},{"$f":"(((AAMC_Raw_Data_for_FY22[[#This Row],[Median]]-AAMC_Raw_Data_for_FY22[[#This Row],[25th]])/25)*20) + AAMC_Raw_Data_for_FY22[[#This Row],[25th]]","v":1050716.3999999999},1078625,{"$f":"(((AAMC_Raw_Data_for_FY22[[#This Row],[75th]]-AAMC_Raw_Data_for_FY22[[#This Row],[Median]])/25)*5) + AAMC_Raw_Data_for_FY22[[#This Row],[Median]]","v":1159060.3999999999},{"$f":"(((AAMC_Raw_Data_for_FY22[[#This Row],[75th]]-AAMC_Raw_Data_for_FY22[[#This Row],[Median]])/25)*10) + AAMC_Raw_Data_for_FY22[[#This Row],[Median]]","v":1239495.8},{"$f":"(((AAMC_Raw_Data_for_FY22[[#This Row],[75th]]-AAMC_Raw_Data_for_FY22[[#This Row],[Median]])/25)*15) + AAMC_Raw_Data_for_FY22[[#This Row],[Median]]","v":1319931.2},{"$f":"(((AAMC_Raw_Data_for_FY22[[#This Row],[75th]]-AAMC_Raw_Data_for_FY22[[#This Row],[Median]])/25)*20) + AAMC_Raw_Data_for_FY22[[#This Row],[Median]]","v":1400366.6},1480802,{"$f":"(((AAMC_Raw_Data_for_FY22[[#This Row],[75th]]-AAMC_Raw_Data_for_FY22[[#This Row],[Median]])/25)*30) + AAMC_Raw_Data_for_FY22[[#This Row],[Median]]","v":1561237.4},{"$f":"(((AAMC_Raw_Data_for_FY22[[#This Row],[75th]]-AAMC_Raw_Data_for_FY22[[#This Row],[Median]])/25)*35) + AAMC_Raw_Data_for_FY22[[#This Row],[Median]]","v":1641672.8},{"$f":"(((AAMC_Raw_Data_for_FY22[[#This Row],[75th]]-AAMC_Raw_Data_for_FY22[[#This Row],[Median]])/25)*40) + AAMC_Raw_Data_for_FY22[[#This Row],[Median]]","v":1722108.2}]
[{"$f":"AAMC_Raw_Data_for_FY22[[#This Row],[Source]]&AAMC_Raw_Data_for_FY22[[#This Row],[Type]]&AAMC_Raw_Data_for_FY22[[#This Row],[School Subset]]&AAMC_Raw_Data_for_FY22[[#This Row],[Rank]]&AAMC_Raw_Data_for_FY22[[#This Row],[Degree]]&AAMC_Raw_Data_for_FY22[[#This Row],[Department / Specialty]]&\"L\"","v":"AAMCAcademicPublicInstructorMDTransplant SurgeryL"},"Transplant Surgery",5,"AAMC","Academic","Public","Instructor","MD","2021-2022",103760,{"$f":"(((AAMC_Raw_Data_for_FY22[[#This Row],[Median]]-AAMC_Raw_Data_for_FY22[[#This Row],[25th]])/25)*5) + AAMC_Raw_Data_for_FY22[[#This Row],[25th]]","v":108479.2},{"$f":"(((AAMC_Raw_Data_for_FY22[[#This Row],[Median]]-AAMC_Raw_Data_for_FY22[[#This Row],[25th]])/25)*10) + AAMC_Raw_Data_for_FY22[[#This Row],[25th]]","v":113198.39999999999},{"$f":"(((AAMC_Raw_Data_for_FY22[[#This Row],[Median]]-AAMC_Raw_Data_for_FY22[[#This Row],[25th]])/25)*15) + AAMC_Raw_Data_for_FY22[[#This Row],[25th]]","v":117917.6},{"$f":"(((AAMC_Raw_Data_for_FY22[[#This Row],[Median]]-AAMC_Raw_Data_for_FY22[[#This Row],[25th]])/25)*20) + AAMC_Raw_Data_for_FY22[[#This Row],[25th]]","v":122636.8},127356,{"$f":"(((AAMC_Raw_Data_for_FY22[[#This Row],[75th]]-AAMC_Raw_Data_for_FY22[[#This Row],[Median]])/25)*5) + AAMC_Raw_Data_for_FY22[[#This Row],[Median]]","v":130197.8},{"$f":"(((AAMC_Raw_Data_for_FY22[[#This Row],[75th]]-AAMC_Raw_Data_for_FY22[[#This Row],[Median]])/25)*10) + AAMC_Raw_Data_for_FY22[[#This Row],[Median]]","v":133039.6},{"$f":"(((AAMC_Raw_Data_for_FY22[[#This Row],[75th]]-AAMC_Raw_Data_for_FY22[[#This Row],[Median]])/25)*15) + AAMC_Raw_Data_for_FY22[[#This Row],[Median]]","v":135881.4},{"$f":"(((AAMC_Raw_Data_for_FY22[[#This Row],[75th]]-AAMC_Raw_Data_for_FY22[[#This Row],[Median]])/25)*20) + AAMC_Raw_Data_for_FY22[[#This Row],[Median]]","v":138723.20000000001},141565,{"$f":"(((AAMC_Raw_Data_for_FY22[[#This Row],[75th]]-AAMC_Raw_Data_for_FY22[[#This Row],[Median]])/25)*30) + AAMC_Raw_Data_for_FY22[[#This Row],[Median]]","v":144406.79999999999},{"$f":"(((AAMC_Raw_Data_for_FY22[[#This Row],[75th]]-AAMC_Raw_Data_for_FY22[[#This Row],[Median]])/25)*35) + AAMC_Raw_Data_for_FY22[[#This Row],[Median]]","v":147248.6},{"$f":"(((AAMC_Raw_Data_for_FY22[[#This Row],[75th]]-AAMC_Raw_Data_for_FY22[[#This Row],[Median]])/25)*40) + AAMC_Raw_Data_for_FY22[[#This Row],[Median]]","v":150090.4}]
[{"$f":"AAMC_Raw_Data_for_FY22[[#This Row],[Source]]&AAMC_Raw_Data_for_FY22[[#This Row],[Type]]&AAMC_Raw_Data_for_FY22[[#This Row],[School Subset]]&AAMC_Raw_Data_for_FY22[[#This Row],[Rank]]&AAMC_Raw_Data_for_FY22[[#This Row],[Degree]]&AAMC_Raw_Data_for_FY22[[#This Row],[Department / Specialty]]&\"L\"","v":"AAMCAcademicPublicAssistantMDTransplant SurgeryL"},"Transplant Surgery",4,"AAMC","Academic","Public","Assistant","MD","2021-2022",334600,{"$f":"(((AAMC_Raw_Data_for_FY22[[#This Row],[Median]]-AAMC_Raw_Data_for_FY22[[#This Row],[25th]])/25)*5) + AAMC_Raw_Data_for_FY22[[#This Row],[25th]]","v":345923},{"$f":"(((AAMC_Raw_Data_for_FY22[[#This Row],[Median]]-AAMC_Raw_Data_for_FY22[[#This Row],[25th]])/25)*10) + AAMC_Raw_Data_for_FY22[[#This Row],[25th]]","v":357246},{"$f":"(((AAMC_Raw_Data_for_FY22[[#This Row],[Median]]-AAMC_Raw_Data_for_FY22[[#This Row],[25th]])/25)*15) + AAMC_Raw_Data_for_FY22[[#This Row],[25th]]","v":368569},{"$f":"(((AAMC_Raw_Data_for_FY22[[#This Row],[Median]]-AAMC_Raw_Data_for_FY22[[#This Row],[25th]])/25)*20) + AAMC_Raw_Data_for_FY22[[#This Row],[25th]]","v":379892},391215,{"$f":"(((AAMC_Raw_Data_for_FY22[[#This Row],[75th]]-AAMC_Raw_Data_for_FY22[[#This Row],[Median]])/25)*5) + AAMC_Raw_Data_for_FY22[[#This Row],[Median]]","v":403037},{"$f":"(((AAMC_Raw_Data_for_FY22[[#This Row],[75th]]-AAMC_Raw_Data_for_FY22[[#This Row],[Median]])/25)*10) + AAMC_Raw_Data_for_FY22[[#This Row],[Median]]","v":414859},{"$f":"(((AAMC_Raw_Data_for_FY22[[#This Row],[75th]]-AAMC_Raw_Data_for_FY22[[#This Row],[Median]])/25)*15) + AAMC_Raw_Data_for_FY22[[#This Row],[Median]]","v":426681},{"$f":"(((AAMC_Raw_Data_for_FY22[[#This Row],[75th]]-AAMC_Raw_Data_for_FY22[[#This Row],[Median]])/25)*20) + AAMC_Raw_Data_for_FY22[[#This Row],[Median]]","v":438503},450325,{"$f":"(((AAMC_Raw_Data_for_FY22[[#This Row],[75th]]-AAMC_Raw_Data_for_FY22[[#This Row],[Median]])/25)*30) + AAMC_Raw_Data_for_FY22[[#This Row],[Median]]","v":462147},{"$f":"(((AAMC_Raw_Data_for_FY22[[#This Row],[75th]]-AAMC_Raw_Data_for_FY22[[#This Row],[Median]])/25)*35) + AAMC_Raw_Data_for_FY22[[#This Row],[Median]]","v":473969},{"$f":"(((AAMC_Raw_Data_for_FY22[[#This Row],[75th]]-AAMC_Raw_Data_for_FY22[[#This Row],[Median]])/25)*40) + AAMC_Raw_Data_for_FY22[[#This Row],[Median]]","v":485791}]
[{"$f":"AAMC_Raw_Data_for_FY22[[#This Row],[Source]]&AAMC_Raw_Data_for_FY22[[#This Row],[Type]]&AAMC_Raw_Data_for_FY22[[#This Row],[School Subset]]&AAMC_Raw_Data_for_FY22[[#This Row],[Rank]]&AAMC_Raw_Data_for_FY22[[#This Row],[Degree]]&AAMC_Raw_Data_for_FY22[[#This Row],[Department / Specialty]]&\"L\"","v":"AAMCAcademicPublicAssociateMDTransplant SurgeryL"},"Transplant Surgery",3,"AAMC","Academic","Public","Associate","MD","2021-2022",490672,{"$f":"(((AAMC_Raw_Data_for_FY22[[#This Row],[Median]]-AAMC_Raw_Data_for_FY22[[#This Row],[25th]])/25)*5) + AAMC_Raw_Data_for_FY22[[#This Row],[25th]]","v":499055.4},{"$f":"(((AAMC_Raw_Data_for_FY22[[#This Row],[Median]]-AAMC_Raw_Data_for_FY22[[#This Row],[25th]])/25)*10) + AAMC_Raw_Data_for_FY22[[#This Row],[25th]]","v":507438.8},{"$f":"(((AAMC_Raw_Data_for_FY22[[#This Row],[Median]]-AAMC_Raw_Data_for_FY22[[#This Row],[25th]])/25)*15) + AAMC_Raw_Data_for_FY22[[#This Row],[25th]]","v":515822.2},{"$f":"(((AAMC_Raw_Data_for_FY22[[#This Row],[Median]]-AAMC_Raw_Data_for_FY22[[#This Row],[25th]])/25)*20) + AAMC_Raw_Data_for_FY22[[#This Row],[25th]]","v":524205.6},532589,{"$f":"(((AAMC_Raw_Data_for_FY22[[#This Row],[75th]]-AAMC_Raw_Data_for_FY22[[#This Row],[Median]])/25)*5) + AAMC_Raw_Data_for_FY22[[#This Row],[Median]]","v":562388.80000000005},{"$f":"(((AAMC_Raw_Data_for_FY22[[#This Row],[75th]]-AAMC_Raw_Data_for_FY22[[#This Row],[Median]])/25)*10) + AAMC_Raw_Data_for_FY22[[#This Row],[Median]]","v":592188.6},{"$f":"(((AAMC_Raw_Data_for_FY22[[#This Row],[75th]]-AAMC_Raw_Data_for_FY22[[#This Row],[Median]])/25)*15) + AAMC_Raw_Data_for_FY22[[#This Row],[Median]]","v":621988.4},{"$f":"(((AAMC_Raw_Data_for_FY22[[#This Row],[75th]]-AAMC_Raw_Data_for_FY22[[#This Row],[Median]])/25)*20) + AAMC_Raw_Data_for_FY22[[#This Row],[Median]]","v":651788.19999999995},681588,{"$f":"(((AAMC_Raw_Data_for_FY22[[#This Row],[75th]]-AAMC_Raw_Data_for_FY22[[#This Row],[Median]])/25)*30) + AAMC_Raw_Data_for_FY22[[#This Row],[Median]]","v":711387.8},{"$f":"(((AAMC_Raw_Data_for_FY22[[#This Row],[75th]]-AAMC_Raw_Data_for_FY22[[#This Row],[Median]])/25)*35) + AAMC_Raw_Data_for_FY22[[#This Row],[Median]]","v":741187.6},{"$f":"(((AAMC_Raw_Data_for_FY22[[#This Row],[75th]]-AAMC_Raw_Data_for_FY22[[#This Row],[Median]])/25)*40) + AAMC_Raw_Data_for_FY22[[#This Row],[Median]]","v":770987.4}]
[{"$f":"AAMC_Raw_Data_for_FY22[[#This Row],[Source]]&AAMC_Raw_Data_for_FY22[[#This Row],[Type]]&AAMC_Raw_Data_for_FY22[[#This Row],[School Subset]]&AAMC_Raw_Data_for_FY22[[#This Row],[Rank]]&AAMC_Raw_Data_for_FY22[[#This Row],[Degree]]&AAMC_Raw_Data_for_FY22[[#This Row],[Department / Specialty]]&\"L\"","v":"AAMCAcademicPublicProfessorMDTransplant SurgeryL"},"Transplant Surgery",2,"AAMC","Academic","Public","Professor","MD","2021-2022",517000,{"$f":"(((AAMC_Raw_Data_for_FY22[[#This Row],[Median]]-AAMC_Raw_Data_for_FY22[[#This Row],[25th]])/25)*5) + AAMC_Raw_Data_for_FY22[[#This Row],[25th]]","v":534965.4},{"$f":"(((AAMC_Raw_Data_for_FY22[[#This Row],[Median]]-AAMC_Raw_Data_for_FY22[[#This Row],[25th]])/25)*10) + AAMC_Raw_Data_for_FY22[[#This Row],[25th]]","v":552930.80000000005},{"$f":"(((AAMC_Raw_Data_for_FY22[[#This Row],[Median]]-AAMC_Raw_Data_for_FY22[[#This Row],[25th]])/25)*15) + AAMC_Raw_Data_for_FY22[[#This Row],[25th]]","v":570896.19999999995},{"$f":"(((AAMC_Raw_Data_for_FY22[[#This Row],[Median]]-AAMC_Raw_Data_for_FY22[[#This Row],[25th]])/25)*20) + AAMC_Raw_Data_for_FY22[[#This Row],[25th]]","v":588861.6},606827,{"$f":"(((AAMC_Raw_Data_for_FY22[[#This Row],[75th]]-AAMC_Raw_Data_for_FY22[[#This Row],[Median]])/25)*5) + AAMC_Raw_Data_for_FY22[[#This Row],[Median]]","v":645461.6},{"$f":"(((AAMC_Raw_Data_for_FY22[[#This Row],[75th]]-AAMC_Raw_Data_for_FY22[[#This Row],[Median]])/25)*10) + AAMC_Raw_Data_for_FY22[[#This Row],[Median]]","v":684096.2},{"$f":"(((AAMC_Raw_Data_for_FY22[[#This Row],[75th]]-AAMC_Raw_Data_for_FY22[[#This Row],[Median]])/25)*15) + AAMC_Raw_Data_for_FY22[[#This Row],[Median]]","v":722730.8},{"$f":"(((AAMC_Raw_Data_for_FY22[[#This Row],[75th]]-AAMC_Raw_Data_for_FY22[[#This Row],[Median]])/25)*20) + AAMC_Raw_Data_for_FY22[[#This Row],[Median]]","v":761365.4},800000,{"$f":"(((AAMC_Raw_Data_for_FY22[[#This Row],[75th]]-AAMC_Raw_Data_for_FY22[[#This Row],[Median]])/25)*30) + AAMC_Raw_Data_for_FY22[[#This Row],[Median]]","v":838634.6},{"$f":"(((AAMC_Raw_Data_for_FY22[[#This Row],[75th]]-AAMC_Raw_Data_for_FY22[[#This Row],[Median]])/25)*35) + AAMC_Raw_Data_for_FY22[[#This Row],[Median]]","v":877269.2},{"$f":"(((AAMC_Raw_Data_for_FY22[[#This Row],[75th]]-AAMC_Raw_Data_for_FY22[[#This Row],[Median]])/25)*40) + AAMC_Raw_Data_for_FY22[[#This Row],[Median]]","v":915903.8}]
[{"$f":"AAMC_Raw_Data_for_FY22[[#This Row],[Source]]&AAMC_Raw_Data_for_FY22[[#This Row],[Type]]&AAMC_Raw_Data_for_FY22[[#This Row],[School Subset]]&AAMC_Raw_Data_for_FY22[[#This Row],[Rank]]&AAMC_Raw_Data_for_FY22[[#This Row],[Degree]]&AAMC_Raw_Data_for_FY22[[#This Row],[Department / Specialty]]&\"L\"","v":"AAMCAcademicPublicChiefMDTransplant SurgeryL"},"Transplant Surgery",6,"AAMC","Academic","Public","Chief","MD","2021-2022",646708,{"$f":"(((AAMC_Raw_Data_for_FY22[[#This Row],[Median]]-AAMC_Raw_Data_for_FY22[[#This Row],[25th]])/25)*5) + AAMC_Raw_Data_for_FY22[[#This Row],[25th]]","v":680002.4},{"$f":"(((AAMC_Raw_Data_for_FY22[[#This Row],[Median]]-AAMC_Raw_Data_for_FY22[[#This Row],[25th]])/25)*10) + AAMC_Raw_Data_for_FY22[[#This Row],[25th]]","v":713296.8},{"$f":"(((AAMC_Raw_Data_for_FY22[[#This Row],[Median]]-AAMC_Raw_Data_for_FY22[[#This Row],[25th]])/25)*15) + AAMC_Raw_Data_for_FY22[[#This Row],[25th]]","v":746591.2},{"$f":"(((AAMC_Raw_Data_for_FY22[[#This Row],[Median]]-AAMC_Raw_Data_for_FY22[[#This Row],[25th]])/25)*20) + AAMC_Raw_Data_for_FY22[[#This Row],[25th]]","v":779885.6},813180,{"$f":"(((AAMC_Raw_Data_for_FY22[[#This Row],[75th]]-AAMC_Raw_Data_for_FY22[[#This Row],[Median]])/25)*5) + AAMC_Raw_Data_for_FY22[[#This Row],[Median]]","v":841771.6},{"$f":"(((AAMC_Raw_Data_for_FY22[[#This Row],[75th]]-AAMC_Raw_Data_for_FY22[[#This Row],[Median]])/25)*10) + AAMC_Raw_Data_for_FY22[[#This Row],[Median]]","v":870363.2},{"$f":"(((AAMC_Raw_Data_for_FY22[[#This Row],[75th]]-AAMC_Raw_Data_for_FY22[[#This Row],[Median]])/25)*15) + AAMC_Raw_Data_for_FY22[[#This Row],[Median]]","v":898954.8},{"$f":"(((AAMC_Raw_Data_for_FY22[[#This Row],[75th]]-AAMC_Raw_Data_for_FY22[[#This Row],[Median]])/25)*20) + AAMC_Raw_Data_for_FY22[[#This Row],[Median]]","v":927546.4},956138,{"$f":"(((AAMC_Raw_Data_for_FY22[[#This Row],[75th]]-AAMC_Raw_Data_for_FY22[[#This Row],[Median]])/25)*30) + AAMC_Raw_Data_for_FY22[[#This Row],[Median]]","v":984729.59999999998},{"$f":"(((AAMC_Raw_Data_for_FY22[[#This Row],[75th]]-AAMC_Raw_Data_for_FY22[[#This Row],[Median]])/25)*35) + AAMC_Raw_Data_for_FY22[[#This Row],[Median]]","v":1013321.2},{"$f":"(((AAMC_Raw_Data_for_FY22[[#This Row],[75th]]-AAMC_Raw_Data_for_FY22[[#This Row],[Median]])/25)*40) + AAMC_Raw_Data_for_FY22[[#This Row],[Median]]","v":1041912.8}]
[{"$f":"AAMC_Raw_Data_for_FY22[[#This Row],[Source]]&AAMC_Raw_Data_for_FY22[[#This Row],[Type]]&AAMC_Raw_Data_for_FY22[[#This Row],[School Subset]]&AAMC_Raw_Data_for_FY22[[#This Row],[Rank]]&AAMC_Raw_Data_for_FY22[[#This Row],[Degree]]&AAMC_Raw_Data_for_FY22[[#This Row],[Department / Specialty]]&\"L\"","v":"AAMCAcademicPublicChairMDTransplant SurgeryL"},"Transplant Surgery",1,"AAMC","Academic","Public","Chair","MD","2021-2022",null,{"$f":"(((AAMC_Raw_Data_for_FY22[[#This Row],[Median]]-AAMC_Raw_Data_for_FY22[[#This Row],[25th]])/25)*5) + AAMC_Raw_Data_for_FY22[[#This Row],[25th]]","v":0},{"$f":"(((AAMC_Raw_Data_for_FY22[[#This Row],[Median]]-AAMC_Raw_Data_for_FY22[[#This Row],[25th]])/25)*10) + AAMC_Raw_Data_for_FY22[[#This Row],[25th]]","v":0},{"$f":"(((AAMC_Raw_Data_for_FY22[[#This Row],[Median]]-AAMC_Raw_Data_for_FY22[[#This Row],[25th]])/25)*15) + AAMC_Raw_Data_for_FY22[[#This Row],[25th]]","v":0},{"$f":"(((AAMC_Raw_Data_for_FY22[[#This Row],[Median]]-AAMC_Raw_Data_for_FY22[[#This Row],[25th]])/25)*20) + AAMC_Raw_Data_for_FY22[[#This Row],[25th]]","v":0},null,{"$f":"(((AAMC_Raw_Data_for_FY22[[#This Row],[75th]]-AAMC_Raw_Data_for_FY22[[#This Row],[Median]])/25)*5) + AAMC_Raw_Data_for_FY22[[#This Row],[Median]]","v":0},{"$f":"(((AAMC_Raw_Data_for_FY22[[#This Row],[75th]]-AAMC_Raw_Data_for_FY22[[#This Row],[Median]])/25)*10) + AAMC_Raw_Data_for_FY22[[#This Row],[Median]]","v":0},{"$f":"(((AAMC_Raw_Data_for_FY22[[#This Row],[75th]]-AAMC_Raw_Data_for_FY22[[#This Row],[Median]])/25)*15) + AAMC_Raw_Data_for_FY22[[#This Row],[Median]]","v":0},{"$f":"(((AAMC_Raw_Data_for_FY22[[#This Row],[75th]]-AAMC_Raw_Data_for_FY22[[#This Row],[Median]])/25)*20) + AAMC_Raw_Data_for_FY22[[#This Row],[Median]]","v":0},null,{"$f":"(((AAMC_Raw_Data_for_FY22[[#This Row],[75th]]-AAMC_Raw_Data_for_FY22[[#This Row],[Median]])/25)*30) + AAMC_Raw_Data_for_FY22[[#This Row],[Median]]","v":0},{"$f":"(((AAMC_Raw_Data_for_FY22[[#This Row],[75th]]-AAMC_Raw_Data_for_FY22[[#This Row],[Median]])/25)*35) + AAMC_Raw_Data_for_FY22[[#This Row],[Median]]","v":0},{"$f":"(((AAMC_Raw_Data_for_FY22[[#This Row],[75th]]-AAMC_Raw_Data_for_FY22[[#This Row],[Median]])/25)*40) + AAMC_Raw_Data_for_FY22[[#This Row],[Median]]","v":0}]
[{"$f":"AAMC_Raw_Data_for_FY22[[#This Row],[Source]]&AAMC_Raw_Data_for_FY22[[#This Row],[Type]]&AAMC_Raw_Data_for_FY22[[#This Row],[School Subset]]&AAMC_Raw_Data_for_FY22[[#This Row],[Rank]]&AAMC_Raw_Data_for_FY22[[#This Row],[Degree]]&AAMC_Raw_Data_for_FY22[[#This Row],[Department / Specialty]]&\"L\"","v":"AAMCAcademicPublicInstructorMDTrauma/Critical Care SurgeryL"},"Trauma/Critical Care Surgery",5,"AAMC","Academic","Public","Instructor","MD","2021-2022",122200,{"$f":"(((AAMC_Raw_Data_for_FY22[[#This Row],[Median]]-AAMC_Raw_Data_for_FY22[[#This Row],[25th]])/25)*5) + AAMC_Raw_Data_for_FY22[[#This Row],[25th]]","v":135260},{"$f":"(((AAMC_Raw_Data_for_FY22[[#This Row],[Median]]-AAMC_Raw_Data_for_FY22[[#This Row],[25th]])/25)*10) + AAMC_Raw_Data_for_FY22[[#This Row],[25th]]","v":148320},{"$f":"(((AAMC_Raw_Data_for_FY22[[#This Row],[Median]]-AAMC_Raw_Data_for_FY22[[#This Row],[25th]])/25)*15) + AAMC_Raw_Data_for_FY22[[#This Row],[25th]]","v":161380},{"$f":"(((AAMC_Raw_Data_for_FY22[[#This Row],[Median]]-AAMC_Raw_Data_for_FY22[[#This Row],[25th]])/25)*20) + AAMC_Raw_Data_for_FY22[[#This Row],[25th]]","v":174440},187500,{"$f":"(((AAMC_Raw_Data_for_FY22[[#This Row],[75th]]-AAMC_Raw_Data_for_FY22[[#This Row],[Median]])/25)*5) + AAMC_Raw_Data_for_FY22[[#This Row],[Median]]","v":227916},{"$f":"(((AAMC_Raw_Data_for_FY22[[#This Row],[75th]]-AAMC_Raw_Data_for_FY22[[#This Row],[Median]])/25)*10) + AAMC_Raw_Data_for_FY22[[#This Row],[Median]]","v":268332},{"$f":"(((AAMC_Raw_Data_for_FY22[[#This Row],[75th]]-AAMC_Raw_Data_for_FY22[[#This Row],[Median]])/25)*15) + AAMC_Raw_Data_for_FY22[[#This Row],[Median]]","v":308748},{"$f":"(((AAMC_Raw_Data_for_FY22[[#This Row],[75th]]-AAMC_Raw_Data_for_FY22[[#This Row],[Median]])/25)*20) + AAMC_Raw_Data_for_FY22[[#This Row],[Median]]","v":349164},389580,{"$f":"(((AAMC_Raw_Data_for_FY22[[#This Row],[75th]]-AAMC_Raw_Data_for_FY22[[#This Row],[Median]])/25)*30) + AAMC_Raw_Data_for_FY22[[#This Row],[Median]]","v":429996},{"$f":"(((AAMC_Raw_Data_for_FY22[[#This Row],[75th]]-AAMC_Raw_Data_for_FY22[[#This Row],[Median]])/25)*35) + AAMC_Raw_Data_for_FY22[[#This Row],[Median]]","v":470412},{"$f":"(((AAMC_Raw_Data_for_FY22[[#This Row],[75th]]-AAMC_Raw_Data_for_FY22[[#This Row],[Median]])/25)*40) + AAMC_Raw_Data_for_FY22[[#This Row],[Median]]","v":510828}]
[{"$f":"AAMC_Raw_Data_for_FY22[[#This Row],[Source]]&AAMC_Raw_Data_for_FY22[[#This Row],[Type]]&AAMC_Raw_Data_for_FY22[[#This Row],[School Subset]]&AAMC_Raw_Data_for_FY22[[#This Row],[Rank]]&AAMC_Raw_Data_for_FY22[[#This Row],[Degree]]&AAMC_Raw_Data_for_FY22[[#This Row],[Department / Specialty]]&\"L\"","v":"AAMCAcademicPublicAssistantMDTrauma/Critical Care SurgeryL"},"Trauma/Critical Care Surgery",4,"AAMC","Academic","Public","Assistant","MD","2021-2022",367231,{"$f":"(((AAMC_Raw_Data_for_FY22[[#This Row],[Median]]-AAMC_Raw_Data_for_FY22[[#This Row],[25th]])/25)*5) + AAMC_Raw_Data_for_FY22[[#This Row],[25th]]","v":374800.8},{"$f":"(((AAMC_Raw_Data_for_FY22[[#This Row],[Median]]-AAMC_Raw_Data_for_FY22[[#This Row],[25th]])/25)*10) + AAMC_Raw_Data_for_FY22[[#This Row],[25th]]","v":382370.6},{"$f":"(((AAMC_Raw_Data_for_FY22[[#This Row],[Median]]-AAMC_Raw_Data_for_FY22[[#This Row],[25th]])/25)*15) + AAMC_Raw_Data_for_FY22[[#This Row],[25th]]","v":389940.4},{"$f":"(((AAMC_Raw_Data_for_FY22[[#This Row],[Median]]-AAMC_Raw_Data_for_FY22[[#This Row],[25th]])/25)*20) + AAMC_Raw_Data_for_FY22[[#This Row],[25th]]","v":397510.2},405080,{"$f":"(((AAMC_Raw_Data_for_FY22[[#This Row],[75th]]-AAMC_Raw_Data_for_FY22[[#This Row],[Median]])/25)*5) + AAMC_Raw_Data_for_FY22[[#This Row],[Median]]","v":420691.8},{"$f":"(((AAMC_Raw_Data_for_FY22[[#This Row],[75th]]-AAMC_Raw_Data_for_FY22[[#This Row],[Median]])/25)*10) + AAMC_Raw_Data_for_FY22[[#This Row],[Median]]","v":436303.6},{"$f":"(((AAMC_Raw_Data_for_FY22[[#This Row],[75th]]-AAMC_Raw_Data_for_FY22[[#This Row],[Median]])/25)*15) + AAMC_Raw_Data_for_FY22[[#This Row],[Median]]","v":451915.4},{"$f":"(((AAMC_Raw_Data_for_FY22[[#This Row],[75th]]-AAMC_Raw_Data_for_FY22[[#This Row],[Median]])/25)*20) + AAMC_Raw_Data_for_FY22[[#This Row],[Median]]","v":467527.2},483139,{"$f":"(((AAMC_Raw_Data_for_FY22[[#This Row],[75th]]-AAMC_Raw_Data_for_FY22[[#This Row],[Median]])/25)*30) + AAMC_Raw_Data_for_FY22[[#This Row],[Median]]","v":498750.8},{"$f":"(((AAMC_Raw_Data_for_FY22[[#This Row],[75th]]-AAMC_Raw_Data_for_FY22[[#This Row],[Median]])/25)*35) + AAMC_Raw_Data_for_FY22[[#This Row],[Median]]","v":514362.6},{"$f":"(((AAMC_Raw_Data_for_FY22[[#This Row],[75th]]-AAMC_Raw_Data_for_FY22[[#This Row],[Median]])/25)*40) + AAMC_Raw_Data_for_FY22[[#This Row],[Median]]","v":529974.4}]
[{"$f":"AAMC_Raw_Data_for_FY22[[#This Row],[Source]]&AAMC_Raw_Data_for_FY22[[#This Row],[Type]]&AAMC_Raw_Data_for_FY22[[#This Row],[School Subset]]&AAMC_Raw_Data_for_FY22[[#This Row],[Rank]]&AAMC_Raw_Data_for_FY22[[#This Row],[Degree]]&AAMC_Raw_Data_for_FY22[[#This Row],[Department / Specialty]]&\"L\"","v":"AAMCAcademicPublicAssociateMDTrauma/Critical Care SurgeryL"},"Trauma/Critical Care Surgery",3,"AAMC","Academic","Public","Associate","MD","2021-2022",423869,{"$f":"(((AAMC_Raw_Data_for_FY22[[#This Row],[Median]]-AAMC_Raw_Data_for_FY22[[#This Row],[25th]])/25)*5) + AAMC_Raw_Data_for_FY22[[#This Row],[25th]]","v":431473.2},{"$f":"(((AAMC_Raw_Data_for_FY22[[#This Row],[Median]]-AAMC_Raw_Data_for_FY22[[#This Row],[25th]])/25)*10) + AAMC_Raw_Data_for_FY22[[#This Row],[25th]]","v":439077.4},{"$f":"(((AAMC_Raw_Data_for_FY22[[#This Row],[Median]]-AAMC_Raw_Data_for_FY22[[#This Row],[25th]])/25)*15) + AAMC_Raw_Data_for_FY22[[#This Row],[25th]]","v":446681.59999999998},{"$f":"(((AAMC_Raw_Data_for_FY22[[#This Row],[Median]]-AAMC_Raw_Data_for_FY22[[#This Row],[25th]])/25)*20) + AAMC_Raw_Data_for_FY22[[#This Row],[25th]]","v":454285.8},461890,{"$f":"(((AAMC_Raw_Data_for_FY22[[#This Row],[75th]]-AAMC_Raw_Data_for_FY22[[#This Row],[Median]])/25)*5) + AAMC_Raw_Data_for_FY22[[#This Row],[Median]]","v":483038.2},{"$f":"(((AAMC_Raw_Data_for_FY22[[#This Row],[75th]]-AAMC_Raw_Data_for_FY22[[#This Row],[Median]])/25)*10) + AAMC_Raw_Data_for_FY22[[#This Row],[Median]]","v":504186.4},{"$f":"(((AAMC_Raw_Data_for_FY22[[#This Row],[75th]]-AAMC_Raw_Data_for_FY22[[#This Row],[Median]])/25)*15) + AAMC_Raw_Data_for_FY22[[#This Row],[Median]]","v":525334.6},{"$f":"(((AAMC_Raw_Data_for_FY22[[#This Row],[75th]]-AAMC_Raw_Data_for_FY22[[#This Row],[Median]])/25)*20) + AAMC_Raw_Data_for_FY22[[#This Row],[Median]]","v":546482.80000000005},567631,{"$f":"(((AAMC_Raw_Data_for_FY22[[#This Row],[75th]]-AAMC_Raw_Data_for_FY22[[#This Row],[Median]])/25)*30) + AAMC_Raw_Data_for_FY22[[#This Row],[Median]]","v":588779.19999999995},{"$f":"(((AAMC_Raw_Data_for_FY22[[#This Row],[75th]]-AAMC_Raw_Data_for_FY22[[#This Row],[Median]])/25)*35) + AAMC_Raw_Data_for_FY22[[#This Row],[Median]]","v":609927.4},{"$f":"(((AAMC_Raw_Data_for_FY22[[#This Row],[75th]]-AAMC_Raw_Data_for_FY22[[#This Row],[Median]])/25)*40) + AAMC_Raw_Data_for_FY22[[#This Row],[Median]]","v":631075.6}]
[{"$f":"AAMC_Raw_Data_for_FY22[[#This Row],[Source]]&AAMC_Raw_Data_for_FY22[[#This Row],[Type]]&AAMC_Raw_Data_for_FY22[[#This Row],[School Subset]]&AAMC_Raw_Data_for_FY22[[#This Row],[Rank]]&AAMC_Raw_Data_for_FY22[[#This Row],[Degree]]&AAMC_Raw_Data_for_FY22[[#This Row],[Department / Specialty]]&\"L\"","v":"AAMCAcademicPublicProfessorMDTrauma/Critical Care SurgeryL"},"Trauma/Critical Care Surgery",2,"AAMC","Academic","Public","Professor","MD","2021-2022",451207,{"$f":"(((AAMC_Raw_Data_for_FY22[[#This Row],[Median]]-AAMC_Raw_Data_for_FY22[[#This Row],[25th]])/25)*5) + AAMC_Raw_Data_for_FY22[[#This Row],[25th]]","v":465103.6},{"$f":"(((AAMC_Raw_Data_for_FY22[[#This Row],[Median]]-AAMC_Raw_Data_for_FY22[[#This Row],[25th]])/25)*10) + AAMC_Raw_Data_for_FY22[[#This Row],[25th]]","v":479000.2},{"$f":"(((AAMC_Raw_Data_for_FY22[[#This Row],[Median]]-AAMC_Raw_Data_for_FY22[[#This Row],[25th]])/25)*15) + AAMC_Raw_Data_for_FY22[[#This Row],[25th]]","v":492896.8},{"$f":"(((AAMC_Raw_Data_for_FY22[[#This Row],[Median]]-AAMC_Raw_Data_for_FY22[[#This Row],[25th]])/25)*20) + AAMC_Raw_Data_for_FY22[[#This Row],[25th]]","v":506793.4},520690,{"$f":"(((AAMC_Raw_Data_for_FY22[[#This Row],[75th]]-AAMC_Raw_Data_for_FY22[[#This Row],[Median]])/25)*5) + AAMC_Raw_Data_for_FY22[[#This Row],[Median]]","v":534002},{"$f":"(((AAMC_Raw_Data_for_FY22[[#This Row],[75th]]-AAMC_Raw_Data_for_FY22[[#This Row],[Median]])/25)*10) + AAMC_Raw_Data_for_FY22[[#This Row],[Median]]","v":547314},{"$f":"(((AAMC_Raw_Data_for_FY22[[#This Row],[75th]]-AAMC_Raw_Data_for_FY22[[#This Row],[Median]])/25)*15) + AAMC_Raw_Data_for_FY22[[#This Row],[Median]]","v":560626},{"$f":"(((AAMC_Raw_Data_for_FY22[[#This Row],[75th]]-AAMC_Raw_Data_for_FY22[[#This Row],[Median]])/25)*20) + AAMC_Raw_Data_for_FY22[[#This Row],[Median]]","v":573938},587250,{"$f":"(((AAMC_Raw_Data_for_FY22[[#This Row],[75th]]-AAMC_Raw_Data_for_FY22[[#This Row],[Median]])/25)*30) + AAMC_Raw_Data_for_FY22[[#This Row],[Median]]","v":600562},{"$f":"(((AAMC_Raw_Data_for_FY22[[#This Row],[75th]]-AAMC_Raw_Data_for_FY22[[#This Row],[Median]])/25)*35) + AAMC_Raw_Data_for_FY22[[#This Row],[Median]]","v":613874},{"$f":"(((AAMC_Raw_Data_for_FY22[[#This Row],[75th]]-AAMC_Raw_Data_for_FY22[[#This Row],[Median]])/25)*40) + AAMC_Raw_Data_for_FY22[[#This Row],[Median]]","v":627186}]
[{"$f":"AAMC_Raw_Data_for_FY22[[#This Row],[Source]]&AAMC_Raw_Data_for_FY22[[#This Row],[Type]]&AAMC_Raw_Data_for_FY22[[#This Row],[School Subset]]&AAMC_Raw_Data_for_FY22[[#This Row],[Rank]]&AAMC_Raw_Data_for_FY22[[#This Row],[Degree]]&AAMC_Raw_Data_for_FY22[[#This Row],[Department / Specialty]]&\"L\"","v":"AAMCAcademicPublicChiefMDTrauma/Critical Care SurgeryL"},"Trauma/Critical Care Surgery",6,"AAMC","Academic","Public","Chief","MD","2021-2022",520195,{"$f":"(((AAMC_Raw_Data_for_FY22[[#This Row],[Median]]-AAMC_Raw_Data_for_FY22[[#This Row],[25th]])/25)*5) + AAMC_Raw_Data_for_FY22[[#This Row],[25th]]","v":542203.6},{"$f":"(((AAMC_Raw_Data_for_FY22[[#This Row],[Median]]-AAMC_Raw_Data_for_FY22[[#This Row],[25th]])/25)*10) + AAMC_Raw_Data_for_FY22[[#This Row],[25th]]","v":564212.19999999995},{"$f":"(((AAMC_Raw_Data_for_FY22[[#This Row],[Median]]-AAMC_Raw_Data_for_FY22[[#This Row],[25th]])/25)*15) + AAMC_Raw_Data_for_FY22[[#This Row],[25th]]","v":586220.80000000005},{"$f":"(((AAMC_Raw_Data_for_FY22[[#This Row],[Median]]-AAMC_Raw_Data_for_FY22[[#This Row],[25th]])/25)*20) + AAMC_Raw_Data_for_FY22[[#This Row],[25th]]","v":608229.4},630238,{"$f":"(((AAMC_Raw_Data_for_FY22[[#This Row],[75th]]-AAMC_Raw_Data_for_FY22[[#This Row],[Median]])/25)*5) + AAMC_Raw_Data_for_FY22[[#This Row],[Median]]","v":645303.80000000005},{"$f":"(((AAMC_Raw_Data_for_FY22[[#This Row],[75th]]-AAMC_Raw_Data_for_FY22[[#This Row],[Median]])/25)*10) + AAMC_Raw_Data_for_FY22[[#This Row],[Median]]","v":660369.6},{"$f":"(((AAMC_Raw_Data_for_FY22[[#This Row],[75th]]-AAMC_Raw_Data_for_FY22[[#This Row],[Median]])/25)*15) + AAMC_Raw_Data_for_FY22[[#This Row],[Median]]","v":675435.4},{"$f":"(((AAMC_Raw_Data_for_FY22[[#This Row],[75th]]-AAMC_Raw_Data_for_FY22[[#This Row],[Median]])/25)*20) + AAMC_Raw_Data_for_FY22[[#This Row],[Median]]","v":690501.2},705567,{"$f":"(((AAMC_Raw_Data_for_FY22[[#This Row],[75th]]-AAMC_Raw_Data_for_FY22[[#This Row],[Median]])/25)*30) + AAMC_Raw_Data_for_FY22[[#This Row],[Median]]","v":720632.8},{"$f":"(((AAMC_Raw_Data_for_FY22[[#This Row],[75th]]-AAMC_Raw_Data_for_FY22[[#This Row],[Median]])/25)*35) + AAMC_Raw_Data_for_FY22[[#This Row],[Median]]","v":735698.6},{"$f":"(((AAMC_Raw_Data_for_FY22[[#This Row],[75th]]-AAMC_Raw_Data_for_FY22[[#This Row],[Median]])/25)*40) + AAMC_Raw_Data_for_FY22[[#This Row],[Median]]","v":750764.4}]
[{"$f":"AAMC_Raw_Data_for_FY22[[#This Row],[Source]]&AAMC_Raw_Data_for_FY22[[#This Row],[Type]]&AAMC_Raw_Data_for_FY22[[#This Row],[School Subset]]&AAMC_Raw_Data_for_FY22[[#This Row],[Rank]]&AAMC_Raw_Data_for_FY22[[#This Row],[Degree]]&AAMC_Raw_Data_for_FY22[[#This Row],[Department / Specialty]]&\"L\"","v":"AAMCAcademicPublicChairMDTrauma/Critical Care SurgeryL"},"Trauma/Critical Care Surgery",1,"AAMC","Academic","Public","Chair","MD","2021-2022",668642,{"$f":"(((AAMC_Raw_Data_for_FY22[[#This Row],[Median]]-AAMC_Raw_Data_for_FY22[[#This Row],[25th]])/25)*5) + AAMC_Raw_Data_for_FY22[[#This Row],[25th]]","v":694966.2},{"$f":"(((AAMC_Raw_Data_for_FY22[[#This Row],[Median]]-AAMC_Raw_Data_for_FY22[[#This Row],[25th]])/25)*10) + AAMC_Raw_Data_for_FY22[[#This Row],[25th]]","v":721290.4},{"$f":"(((AAMC_Raw_Data_for_FY22[[#This Row],[Median]]-AAMC_Raw_Data_for_FY22[[#This Row],[25th]])/25)*15) + AAMC_Raw_Data_for_FY22[[#This Row],[25th]]","v":747614.6},{"$f":"(((AAMC_Raw_Data_for_FY22[[#This Row],[Median]]-AAMC_Raw_Data_for_FY22[[#This Row],[25th]])/25)*20) + AAMC_Raw_Data_for_FY22[[#This Row],[25th]]","v":773938.8},800263,{"$f":"(((AAMC_Raw_Data_for_FY22[[#This Row],[75th]]-AAMC_Raw_Data_for_FY22[[#This Row],[Median]])/25)*5) + AAMC_Raw_Data_for_FY22[[#This Row],[Median]]","v":801310.4},{"$f":"(((AAMC_Raw_Data_for_FY22[[#This Row],[75th]]-AAMC_Raw_Data_for_FY22[[#This Row],[Median]])/25)*10) + AAMC_Raw_Data_for_FY22[[#This Row],[Median]]","v":802357.8},{"$f":"(((AAMC_Raw_Data_for_FY22[[#This Row],[75th]]-AAMC_Raw_Data_for_FY22[[#This Row],[Median]])/25)*15) + AAMC_Raw_Data_for_FY22[[#This Row],[Median]]","v":803405.2},{"$f":"(((AAMC_Raw_Data_for_FY22[[#This Row],[75th]]-AAMC_Raw_Data_for_FY22[[#This Row],[Median]])/25)*20) + AAMC_Raw_Data_for_FY22[[#This Row],[Median]]","v":804452.6},805500,{"$f":"(((AAMC_Raw_Data_for_FY22[[#This Row],[75th]]-AAMC_Raw_Data_for_FY22[[#This Row],[Median]])/25)*30) + AAMC_Raw_Data_for_FY22[[#This Row],[Median]]","v":806547.4},{"$f":"(((AAMC_Raw_Data_for_FY22[[#This Row],[75th]]-AAMC_Raw_Data_for_FY22[[#This Row],[Median]])/25)*35) + AAMC_Raw_Data_for_FY22[[#This Row],[Median]]","v":807594.8},{"$f":"(((AAMC_Raw_Data_for_FY22[[#This Row],[75th]]-AAMC_Raw_Data_for_FY22[[#This Row],[Median]])/25)*40) + AAMC_Raw_Data_for_FY22[[#This Row],[Median]]","v":808642.2}]
[{"$f":"AAMC_Raw_Data_for_FY22[[#This Row],[Source]]&AAMC_Raw_Data_for_FY22[[#This Row],[Type]]&AAMC_Raw_Data_for_FY22[[#This Row],[School Subset]]&AAMC_Raw_Data_for_FY22[[#This Row],[Rank]]&AAMC_Raw_Data_for_FY22[[#This Row],[Degree]]&AAMC_Raw_Data_for_FY22[[#This Row],[Department / Specialty]]&\"L\"","v":"AAMCAcademicPublicInstructorMDUrologyL"},"Urology",5,"AAMC","Academic","Public","Instructor","MD","2021-2022",83688,{"$f":"(((AAMC_Raw_Data_for_FY22[[#This Row],[Median]]-AAMC_Raw_Data_for_FY22[[#This Row],[25th]])/25)*5) + AAMC_Raw_Data_for_FY22[[#This Row],[25th]]","v":85026.2},{"$f":"(((AAMC_Raw_Data_for_FY22[[#This Row],[Median]]-AAMC_Raw_Data_for_FY22[[#This Row],[25th]])/25)*10) + AAMC_Raw_Data_for_FY22[[#This Row],[25th]]","v":86364.4},{"$f":"(((AAMC_Raw_Data_for_FY22[[#This Row],[Median]]-AAMC_Raw_Data_for_FY22[[#This Row],[25th]])/25)*15) + AAMC_Raw_Data_for_FY22[[#This Row],[25th]]","v":87702.6},{"$f":"(((AAMC_Raw_Data_for_FY22[[#This Row],[Median]]-AAMC_Raw_Data_for_FY22[[#This Row],[25th]])/25)*20) + AAMC_Raw_Data_for_FY22[[#This Row],[25th]]","v":89040.8},90379,{"$f":"(((AAMC_Raw_Data_for_FY22[[#This Row],[75th]]-AAMC_Raw_Data_for_FY22[[#This Row],[Median]])/25)*5) + AAMC_Raw_Data_for_FY22[[#This Row],[Median]]","v":116165.2},{"$f":"(((AAMC_Raw_Data_for_FY22[[#This Row],[75th]]-AAMC_Raw_Data_for_FY22[[#This Row],[Median]])/25)*10) + AAMC_Raw_Data_for_FY22[[#This Row],[Median]]","v":141951.4},{"$f":"(((AAMC_Raw_Data_for_FY22[[#This Row],[75th]]-AAMC_Raw_Data_for_FY22[[#This Row],[Median]])/25)*15) + AAMC_Raw_Data_for_FY22[[#This Row],[Median]]","v":167737.59999999998},{"$f":"(((AAMC_Raw_Data_for_FY22[[#This Row],[75th]]-AAMC_Raw_Data_for_FY22[[#This Row],[Median]])/25)*20) + AAMC_Raw_Data_for_FY22[[#This Row],[Median]]","v":193523.8},219310,{"$f":"(((AAMC_Raw_Data_for_FY22[[#This Row],[75th]]-AAMC_Raw_Data_for_FY22[[#This Row],[Median]])/25)*30) + AAMC_Raw_Data_for_FY22[[#This Row],[Median]]","v":245096.19999999998},{"$f":"(((AAMC_Raw_Data_for_FY22[[#This Row],[75th]]-AAMC_Raw_Data_for_FY22[[#This Row],[Median]])/25)*35) + AAMC_Raw_Data_for_FY22[[#This Row],[Median]]","v":270882.40000000002},{"$f":"(((AAMC_Raw_Data_for_FY22[[#This Row],[75th]]-AAMC_Raw_Data_for_FY22[[#This Row],[Median]])/25)*40) + AAMC_Raw_Data_for_FY22[[#This Row],[Median]]","v":296668.59999999998}]
[{"$f":"AAMC_Raw_Data_for_FY22[[#This Row],[Source]]&AAMC_Raw_Data_for_FY22[[#This Row],[Type]]&AAMC_Raw_Data_for_FY22[[#This Row],[School Subset]]&AAMC_Raw_Data_for_FY22[[#This Row],[Rank]]&AAMC_Raw_Data_for_FY22[[#This Row],[Degree]]&AAMC_Raw_Data_for_FY22[[#This Row],[Department / Specialty]]&\"L\"","v":"AAMCAcademicPublicAssistantMDUrologyL"},"Urology",4,"AAMC","Academic","Public","Assistant","MD","2021-2022",332842,{"$f":"(((AAMC_Raw_Data_for_FY22[[#This Row],[Median]]-AAMC_Raw_Data_for_FY22[[#This Row],[25th]])/25)*5) + AAMC_Raw_Data_for_FY22[[#This Row],[25th]]","v":342162.8},{"$f":"(((AAMC_Raw_Data_for_FY22[[#This Row],[Median]]-AAMC_Raw_Data_for_FY22[[#This Row],[25th]])/25)*10) + AAMC_Raw_Data_for_FY22[[#This Row],[25th]]","v":351483.6},{"$f":"(((AAMC_Raw_Data_for_FY22[[#This Row],[Median]]-AAMC_Raw_Data_for_FY22[[#This Row],[25th]])/25)*15) + AAMC_Raw_Data_for_FY22[[#This Row],[25th]]","v":360804.4},{"$f":"(((AAMC_Raw_Data_for_FY22[[#This Row],[Median]]-AAMC_Raw_Data_for_FY22[[#This Row],[25th]])/25)*20) + AAMC_Raw_Data_for_FY22[[#This Row],[25th]]","v":370125.2},379446,{"$f":"(((AAMC_Raw_Data_for_FY22[[#This Row],[75th]]-AAMC_Raw_Data_for_FY22[[#This Row],[Median]])/25)*5) + AAMC_Raw_Data_for_FY22[[#This Row],[Median]]","v":393715.4},{"$f":"(((AAMC_Raw_Data_for_FY22[[#This Row],[75th]]-AAMC_Raw_Data_for_FY22[[#This Row],[Median]])/25)*10) + AAMC_Raw_Data_for_FY22[[#This Row],[Median]]","v":407984.8},{"$f":"(((AAMC_Raw_Data_for_FY22[[#This Row],[75th]]-AAMC_Raw_Data_for_FY22[[#This Row],[Median]])/25)*15) + AAMC_Raw_Data_for_FY22[[#This Row],[Median]]","v":422254.2},{"$f":"(((AAMC_Raw_Data_for_FY22[[#This Row],[75th]]-AAMC_Raw_Data_for_FY22[[#This Row],[Median]])/25)*20) + AAMC_Raw_Data_for_FY22[[#This Row],[Median]]","v":436523.6},450793,{"$f":"(((AAMC_Raw_Data_for_FY22[[#This Row],[75th]]-AAMC_Raw_Data_for_FY22[[#This Row],[Median]])/25)*30) + AAMC_Raw_Data_for_FY22[[#This Row],[Median]]","v":465062.40000000002},{"$f":"(((AAMC_Raw_Data_for_FY22[[#This Row],[75th]]-AAMC_Raw_Data_for_FY22[[#This Row],[Median]])/25)*35) + AAMC_Raw_Data_for_FY22[[#This Row],[Median]]","v":479331.8},{"$f":"(((AAMC_Raw_Data_for_FY22[[#This Row],[75th]]-AAMC_Raw_Data_for_FY22[[#This Row],[Median]])/25)*40) + AAMC_Raw_Data_for_FY22[[#This Row],[Median]]","v":493601.2}]
[{"$f":"AAMC_Raw_Data_for_FY22[[#This Row],[Source]]&AAMC_Raw_Data_for_FY22[[#This Row],[Type]]&AAMC_Raw_Data_for_FY22[[#This Row],[School Subset]]&AAMC_Raw_Data_for_FY22[[#This Row],[Rank]]&AAMC_Raw_Data_for_FY22[[#This Row],[Degree]]&AAMC_Raw_Data_for_FY22[[#This Row],[Department / Specialty]]&\"L\"","v":"AAMCAcademicPublicAssociateMDUrologyL"},"Urology",3,"AAMC","Academic","Public","Associate","MD","2021-2022",396279,{"$f":"(((AAMC_Raw_Data_for_FY22[[#This Row],[Median]]-AAMC_Raw_Data_for_FY22[[#This Row],[25th]])/25)*5) + AAMC_Raw_Data_for_FY22[[#This Row],[25th]]","v":404576.8},{"$f":"(((AAMC_Raw_Data_for_FY22[[#This Row],[Median]]-AAMC_Raw_Data_for_FY22[[#This Row],[25th]])/25)*10) + AAMC_Raw_Data_for_FY22[[#This Row],[25th]]","v":412874.6},{"$f":"(((AAMC_Raw_Data_for_FY22[[#This Row],[Median]]-AAMC_Raw_Data_for_FY22[[#This Row],[25th]])/25)*15) + AAMC_Raw_Data_for_FY22[[#This Row],[25th]]","v":421172.4},{"$f":"(((AAMC_Raw_Data_for_FY22[[#This Row],[Median]]-AAMC_Raw_Data_for_FY22[[#This Row],[25th]])/25)*20) + AAMC_Raw_Data_for_FY22[[#This Row],[25th]]","v":429470.2},437768,{"$f":"(((AAMC_Raw_Data_for_FY22[[#This Row],[75th]]-AAMC_Raw_Data_for_FY22[[#This Row],[Median]])/25)*5) + AAMC_Raw_Data_for_FY22[[#This Row],[Median]]","v":454057.6},{"$f":"(((AAMC_Raw_Data_for_FY22[[#This Row],[75th]]-AAMC_Raw_Data_for_FY22[[#This Row],[Median]])/25)*10) + AAMC_Raw_Data_for_FY22[[#This Row],[Median]]","v":470347.2},{"$f":"(((AAMC_Raw_Data_for_FY22[[#This Row],[75th]]-AAMC_Raw_Data_for_FY22[[#This Row],[Median]])/25)*15) + AAMC_Raw_Data_for_FY22[[#This Row],[Median]]","v":486636.79999999999},{"$f":"(((AAMC_Raw_Data_for_FY22[[#This Row],[75th]]-AAMC_Raw_Data_for_FY22[[#This Row],[Median]])/25)*20) + AAMC_Raw_Data_for_FY22[[#This Row],[Median]]","v":502926.4},519216,{"$f":"(((AAMC_Raw_Data_for_FY22[[#This Row],[75th]]-AAMC_Raw_Data_for_FY22[[#This Row],[Median]])/25)*30) + AAMC_Raw_Data_for_FY22[[#This Row],[Median]]","v":535505.6},{"$f":"(((AAMC_Raw_Data_for_FY22[[#This Row],[75th]]-AAMC_Raw_Data_for_FY22[[#This Row],[Median]])/25)*35) + AAMC_Raw_Data_for_FY22[[#This Row],[Median]]","v":551795.19999999995},{"$f":"(((AAMC_Raw_Data_for_FY22[[#This Row],[75th]]-AAMC_Raw_Data_for_FY22[[#This Row],[Median]])/25)*40) + AAMC_Raw_Data_for_FY22[[#This Row],[Median]]","v":568084.80000000005}]
[{"$f":"AAMC_Raw_Data_for_FY22[[#This Row],[Source]]&AAMC_Raw_Data_for_FY22[[#This Row],[Type]]&AAMC_Raw_Data_for_FY22[[#This Row],[School Subset]]&AAMC_Raw_Data_for_FY22[[#This Row],[Rank]]&AAMC_Raw_Data_for_FY22[[#This Row],[Degree]]&AAMC_Raw_Data_for_FY22[[#This Row],[Department / Specialty]]&\"L\"","v":"AAMCAcademicPublicProfessorMDUrologyL"},"Urology",2,"AAMC","Academic","Public","Professor","MD","2021-2022",444179,{"$f":"(((AAMC_Raw_Data_for_FY22[[#This Row],[Median]]-AAMC_Raw_Data_for_FY22[[#This Row],[25th]])/25)*5) + AAMC_Raw_Data_for_FY22[[#This Row],[25th]]","v":462283.2},{"$f":"(((AAMC_Raw_Data_for_FY22[[#This Row],[Median]]-AAMC_Raw_Data_for_FY22[[#This Row],[25th]])/25)*10) + AAMC_Raw_Data_for_FY22[[#This Row],[25th]]","v":480387.4},{"$f":"(((AAMC_Raw_Data_for_FY22[[#This Row],[Median]]-AAMC_Raw_Data_for_FY22[[#This Row],[25th]])/25)*15) + AAMC_Raw_Data_for_FY22[[#This Row],[25th]]","v":498491.6},{"$f":"(((AAMC_Raw_Data_for_FY22[[#This Row],[Median]]-AAMC_Raw_Data_for_FY22[[#This Row],[25th]])/25)*20) + AAMC_Raw_Data_for_FY22[[#This Row],[25th]]","v":516595.8},534700,{"$f":"(((AAMC_Raw_Data_for_FY22[[#This Row],[75th]]-AAMC_Raw_Data_for_FY22[[#This Row],[Median]])/25)*5) + AAMC_Raw_Data_for_FY22[[#This Row],[Median]]","v":552776.19999999995},{"$f":"(((AAMC_Raw_Data_for_FY22[[#This Row],[75th]]-AAMC_Raw_Data_for_FY22[[#This Row],[Median]])/25)*10) + AAMC_Raw_Data_for_FY22[[#This Row],[Median]]","v":570852.4},{"$f":"(((AAMC_Raw_Data_for_FY22[[#This Row],[75th]]-AAMC_Raw_Data_for_FY22[[#This Row],[Median]])/25)*15) + AAMC_Raw_Data_for_FY22[[#This Row],[Median]]","v":588928.6},{"$f":"(((AAMC_Raw_Data_for_FY22[[#This Row],[75th]]-AAMC_Raw_Data_for_FY22[[#This Row],[Median]])/25)*20) + AAMC_Raw_Data_for_FY22[[#This Row],[Median]]","v":607004.80000000005},625081,{"$f":"(((AAMC_Raw_Data_for_FY22[[#This Row],[75th]]-AAMC_Raw_Data_for_FY22[[#This Row],[Median]])/25)*30) + AAMC_Raw_Data_for_FY22[[#This Row],[Median]]","v":643157.19999999995},{"$f":"(((AAMC_Raw_Data_for_FY22[[#This Row],[75th]]-AAMC_Raw_Data_for_FY22[[#This Row],[Median]])/25)*35) + AAMC_Raw_Data_for_FY22[[#This Row],[Median]]","v":661233.4},{"$f":"(((AAMC_Raw_Data_for_FY22[[#This Row],[75th]]-AAMC_Raw_Data_for_FY22[[#This Row],[Median]])/25)*40) + AAMC_Raw_Data_for_FY22[[#This Row],[Median]]","v":679309.6}]
[{"$f":"AAMC_Raw_Data_for_FY22[[#This Row],[Source]]&AAMC_Raw_Data_for_FY22[[#This Row],[Type]]&AAMC_Raw_Data_for_FY22[[#This Row],[School Subset]]&AAMC_Raw_Data_for_FY22[[#This Row],[Rank]]&AAMC_Raw_Data_for_FY22[[#This Row],[Degree]]&AAMC_Raw_Data_for_FY22[[#This Row],[Department / Specialty]]&\"L\"","v":"AAMCAcademicPublicChiefMDUrologyL"},"Urology",6,"AAMC","Academic","Public","Chief","MD","2021-2022",501851,{"$f":"(((AAMC_Raw_Data_for_FY22[[#This Row],[Median]]-AAMC_Raw_Data_for_FY22[[#This Row],[25th]])/25)*5) + AAMC_Raw_Data_for_FY22[[#This Row],[25th]]","v":508624.6},{"$f":"(((AAMC_Raw_Data_for_FY22[[#This Row],[Median]]-AAMC_Raw_Data_for_FY22[[#This Row],[25th]])/25)*10) + AAMC_Raw_Data_for_FY22[[#This Row],[25th]]","v":515398.2},{"$f":"(((AAMC_Raw_Data_for_FY22[[#This Row],[Median]]-AAMC_Raw_Data_for_FY22[[#This Row],[25th]])/25)*15) + AAMC_Raw_Data_for_FY22[[#This Row],[25th]]","v":522171.8},{"$f":"(((AAMC_Raw_Data_for_FY22[[#This Row],[Median]]-AAMC_Raw_Data_for_FY22[[#This Row],[25th]])/25)*20) + AAMC_Raw_Data_for_FY22[[#This Row],[25th]]","v":528945.4},535719,{"$f":"(((AAMC_Raw_Data_for_FY22[[#This Row],[75th]]-AAMC_Raw_Data_for_FY22[[#This Row],[Median]])/25)*5) + AAMC_Raw_Data_for_FY22[[#This Row],[Median]]","v":549270.6},{"$f":"(((AAMC_Raw_Data_for_FY22[[#This Row],[75th]]-AAMC_Raw_Data_for_FY22[[#This Row],[Median]])/25)*10) + AAMC_Raw_Data_for_FY22[[#This Row],[Median]]","v":562822.19999999995},{"$f":"(((AAMC_Raw_Data_for_FY22[[#This Row],[75th]]-AAMC_Raw_Data_for_FY22[[#This Row],[Median]])/25)*15) + AAMC_Raw_Data_for_FY22[[#This Row],[Median]]","v":576373.80000000005},{"$f":"(((AAMC_Raw_Data_for_FY22[[#This Row],[75th]]-AAMC_Raw_Data_for_FY22[[#This Row],[Median]])/25)*20) + AAMC_Raw_Data_for_FY22[[#This Row],[Median]]","v":589925.4},603477,{"$f":"(((AAMC_Raw_Data_for_FY22[[#This Row],[75th]]-AAMC_Raw_Data_for_FY22[[#This Row],[Median]])/25)*30) + AAMC_Raw_Data_for_FY22[[#This Row],[Median]]","v":617028.6},{"$f":"(((AAMC_Raw_Data_for_FY22[[#This Row],[75th]]-AAMC_Raw_Data_for_FY22[[#This Row],[Median]])/25)*35) + AAMC_Raw_Data_for_FY22[[#This Row],[Median]]","v":630580.19999999995},{"$f":"(((AAMC_Raw_Data_for_FY22[[#This Row],[75th]]-AAMC_Raw_Data_for_FY22[[#This Row],[Median]])/25)*40) + AAMC_Raw_Data_for_FY22[[#This Row],[Median]]","v":644131.80000000005}]
[{"$f":"AAMC_Raw_Data_for_FY22[[#This Row],[Source]]&AAMC_Raw_Data_for_FY22[[#This Row],[Type]]&AAMC_Raw_Data_for_FY22[[#This Row],[School Subset]]&AAMC_Raw_Data_for_FY22[[#This Row],[Rank]]&AAMC_Raw_Data_for_FY22[[#This Row],[Degree]]&AAMC_Raw_Data_for_FY22[[#This Row],[Department / Specialty]]&\"L\"","v":"AAMCAcademicPublicChairMDUrologyL"},"Urology",1,"AAMC","Academic","Public","Chair","MD","2021-2022",578658,{"$f":"(((AAMC_Raw_Data_for_FY22[[#This Row],[Median]]-AAMC_Raw_Data_for_FY22[[#This Row],[25th]])/25)*5) + AAMC_Raw_Data_for_FY22[[#This Row],[25th]]","v":616025.80000000005},{"$f":"(((AAMC_Raw_Data_for_FY22[[#This Row],[Median]]-AAMC_Raw_Data_for_FY22[[#This Row],[25th]])/25)*10) + AAMC_Raw_Data_for_FY22[[#This Row],[25th]]","v":653393.6},{"$f":"(((AAMC_Raw_Data_for_FY22[[#This Row],[Median]]-AAMC_Raw_Data_for_FY22[[#This Row],[25th]])/25)*15) + AAMC_Raw_Data_for_FY22[[#This Row],[25th]]","v":690761.4},{"$f":"(((AAMC_Raw_Data_for_FY22[[#This Row],[Median]]-AAMC_Raw_Data_for_FY22[[#This Row],[25th]])/25)*20) + AAMC_Raw_Data_for_FY22[[#This Row],[25th]]","v":728129.2},765497,{"$f":"(((AAMC_Raw_Data_for_FY22[[#This Row],[75th]]-AAMC_Raw_Data_for_FY22[[#This Row],[Median]])/25)*5) + AAMC_Raw_Data_for_FY22[[#This Row],[Median]]","v":789737},{"$f":"(((AAMC_Raw_Data_for_FY22[[#This Row],[75th]]-AAMC_Raw_Data_for_FY22[[#This Row],[Median]])/25)*10) + AAMC_Raw_Data_for_FY22[[#This Row],[Median]]","v":813977},{"$f":"(((AAMC_Raw_Data_for_FY22[[#This Row],[75th]]-AAMC_Raw_Data_for_FY22[[#This Row],[Median]])/25)*15) + AAMC_Raw_Data_for_FY22[[#This Row],[Median]]","v":838217},{"$f":"(((AAMC_Raw_Data_for_FY22[[#This Row],[75th]]-AAMC_Raw_Data_for_FY22[[#This Row],[Median]])/25)*20) + AAMC_Raw_Data_for_FY22[[#This Row],[Median]]","v":862457},886697,{"$f":"(((AAMC_Raw_Data_for_FY22[[#This Row],[75th]]-AAMC_Raw_Data_for_FY22[[#This Row],[Median]])/25)*30) + AAMC_Raw_Data_for_FY22[[#This Row],[Median]]","v":910937},{"$f":"(((AAMC_Raw_Data_for_FY22[[#This Row],[75th]]-AAMC_Raw_Data_for_FY22[[#This Row],[Median]])/25)*35) + AAMC_Raw_Data_for_FY22[[#This Row],[Median]]","v":935177},{"$f":"(((AAMC_Raw_Data_for_FY22[[#This Row],[75th]]-AAMC_Raw_Data_for_FY22[[#This Row],[Median]])/25)*40) + AAMC_Raw_Data_for_FY22[[#This Row],[Median]]","v":959417}]
[{"$f":"AAMC_Raw_Data_for_FY22[[#This Row],[Source]]&AAMC_Raw_Data_for_FY22[[#This Row],[Type]]&AAMC_Raw_Data_for_FY22[[#This Row],[School Subset]]&AAMC_Raw_Data_for_FY22[[#This Row],[Rank]]&AAMC_Raw_Data_for_FY22[[#This Row],[Degree]]&AAMC_Raw_Data_for_FY22[[#This Row],[Department / Specialty]]&\"L\"","v":"AAMCAcademicPublicInstructorMDVascular SurgeryL"},"Vascular Surgery",5,"AAMC","Academic","Public","Instructor","MD","2021-2022",null,{"$f":"(((AAMC_Raw_Data_for_FY22[[#This Row],[Median]]-AAMC_Raw_Data_for_FY22[[#This Row],[25th]])/25)*5) + AAMC_Raw_Data_for_FY22[[#This Row],[25th]]","v":0},{"$f":"(((AAMC_Raw_Data_for_FY22[[#This Row],[Median]]-AAMC_Raw_Data_for_FY22[[#This Row],[25th]])/25)*10) + AAMC_Raw_Data_for_FY22[[#This Row],[25th]]","v":0},{"$f":"(((AAMC_Raw_Data_for_FY22[[#This Row],[Median]]-AAMC_Raw_Data_for_FY22[[#This Row],[25th]])/25)*15) + AAMC_Raw_Data_for_FY22[[#This Row],[25th]]","v":0},{"$f":"(((AAMC_Raw_Data_for_FY22[[#This Row],[Median]]-AAMC_Raw_Data_for_FY22[[#This Row],[25th]])/25)*20) + AAMC_Raw_Data_for_FY22[[#This Row],[25th]]","v":0},null,{"$f":"(((AAMC_Raw_Data_for_FY22[[#This Row],[75th]]-AAMC_Raw_Data_for_FY22[[#This Row],[Median]])/25)*5) + AAMC_Raw_Data_for_FY22[[#This Row],[Median]]","v":0},{"$f":"(((AAMC_Raw_Data_for_FY22[[#This Row],[75th]]-AAMC_Raw_Data_for_FY22[[#This Row],[Median]])/25)*10) + AAMC_Raw_Data_for_FY22[[#This Row],[Median]]","v":0},{"$f":"(((AAMC_Raw_Data_for_FY22[[#This Row],[75th]]-AAMC_Raw_Data_for_FY22[[#This Row],[Median]])/25)*15) + AAMC_Raw_Data_for_FY22[[#This Row],[Median]]","v":0},{"$f":"(((AAMC_Raw_Data_for_FY22[[#This Row],[75th]]-AAMC_Raw_Data_for_FY22[[#This Row],[Median]])/25)*20) + AAMC_Raw_Data_for_FY22[[#This Row],[Median]]","v":0},null,{"$f":"(((AAMC_Raw_Data_for_FY22[[#This Row],[75th]]-AAMC_Raw_Data_for_FY22[[#This Row],[Median]])/25)*30) + AAMC_Raw_Data_for_FY22[[#This Row],[Median]]","v":0},{"$f":"(((AAMC_Raw_Data_for_FY22[[#This Row],[75th]]-AAMC_Raw_Data_for_FY22[[#This Row],[Median]])/25)*35) + AAMC_Raw_Data_for_FY22[[#This Row],[Median]]","v":0},{"$f":"(((AAMC_Raw_Data_for_FY22[[#This Row],[75th]]-AAMC_Raw_Data_for_FY22[[#This Row],[Median]])/25)*40) + AAMC_Raw_Data_for_FY22[[#This Row],[Median]]","v":0}]
[{"$f":"AAMC_Raw_Data_for_FY22[[#This Row],[Source]]&AAMC_Raw_Data_for_FY22[[#This Row],[Type]]&AAMC_Raw_Data_for_FY22[[#This Row],[School Subset]]&AAMC_Raw_Data_for_FY22[[#This Row],[Rank]]&AAMC_Raw_Data_for_FY22[[#This Row],[Degree]]&AAMC_Raw_Data_for_FY22[[#This Row],[Department / Specialty]]&\"L\"","v":"AAMCAcademicPublicAssistantMDVascular SurgeryL"},"Vascular Surgery",4,"AAMC","Academic","Public","Assistant","MD","2021-2022",352726,{"$f":"(((AAMC_Raw_Data_for_FY22[[#This Row],[Median]]-AAMC_Raw_Data_for_FY22[[#This Row],[25th]])/25)*5) + AAMC_Raw_Data_for_FY22[[#This Row],[25th]]","v":362180.8},{"$f":"(((AAMC_Raw_Data_for_FY22[[#This Row],[Median]]-AAMC_Raw_Data_for_FY22[[#This Row],[25th]])/25)*10) + AAMC_Raw_Data_for_FY22[[#This Row],[25th]]","v":371635.6},{"$f":"(((AAMC_Raw_Data_for_FY22[[#This Row],[Median]]-AAMC_Raw_Data_for_FY22[[#This Row],[25th]])/25)*15) + AAMC_Raw_Data_for_FY22[[#This Row],[25th]]","v":381090.4},{"$f":"(((AAMC_Raw_Data_for_FY22[[#This Row],[Median]]-AAMC_Raw_Data_for_FY22[[#This Row],[25th]])/25)*20) + AAMC_Raw_Data_for_FY22[[#This Row],[25th]]","v":390545.2},400000,{"$f":"(((AAMC_Raw_Data_for_FY22[[#This Row],[75th]]-AAMC_Raw_Data_for_FY22[[#This Row],[Median]])/25)*5) + AAMC_Raw_Data_for_FY22[[#This Row],[Median]]","v":413818.4},{"$f":"(((AAMC_Raw_Data_for_FY22[[#This Row],[75th]]-AAMC_Raw_Data_for_FY22[[#This Row],[Median]])/25)*10) + AAMC_Raw_Data_for_FY22[[#This Row],[Median]]","v":427636.8},{"$f":"(((AAMC_Raw_Data_for_FY22[[#This Row],[75th]]-AAMC_Raw_Data_for_FY22[[#This Row],[Median]])/25)*15) + AAMC_Raw_Data_for_FY22[[#This Row],[Median]]","v":441455.2},{"$f":"(((AAMC_Raw_Data_for_FY22[[#This Row],[75th]]-AAMC_Raw_Data_for_FY22[[#This Row],[Median]])/25)*20) + AAMC_Raw_Data_for_FY22[[#This Row],[Median]]","v":455273.6},469092,{"$f":"(((AAMC_Raw_Data_for_FY22[[#This Row],[75th]]-AAMC_Raw_Data_for_FY22[[#This Row],[Median]])/25)*30) + AAMC_Raw_Data_for_FY22[[#This Row],[Median]]","v":482910.4},{"$f":"(((AAMC_Raw_Data_for_FY22[[#This Row],[75th]]-AAMC_Raw_Data_for_FY22[[#This Row],[Median]])/25)*35) + AAMC_Raw_Data_for_FY22[[#This Row],[Median]]","v":496728.8},{"$f":"(((AAMC_Raw_Data_for_FY22[[#This Row],[75th]]-AAMC_Raw_Data_for_FY22[[#This Row],[Median]])/25)*40) + AAMC_Raw_Data_for_FY22[[#This Row],[Median]]","v":510547.20000000001}]
[{"$f":"AAMC_Raw_Data_for_FY22[[#This Row],[Source]]&AAMC_Raw_Data_for_FY22[[#This Row],[Type]]&AAMC_Raw_Data_for_FY22[[#This Row],[School Subset]]&AAMC_Raw_Data_for_FY22[[#This Row],[Rank]]&AAMC_Raw_Data_for_FY22[[#This Row],[Degree]]&AAMC_Raw_Data_for_FY22[[#This Row],[Department / Specialty]]&\"L\"","v":"AAMCAcademicPublicAssociateMDVascular SurgeryL"},"Vascular Surgery",3,"AAMC","Academic","Public","Associate","MD","2021-2022",404000,{"$f":"(((AAMC_Raw_Data_for_FY22[[#This Row],[Median]]-AAMC_Raw_Data_for_FY22[[#This Row],[25th]])/25)*5) + AAMC_Raw_Data_for_FY22[[#This Row],[25th]]","v":411860},{"$f":"(((AAMC_Raw_Data_for_FY22[[#This Row],[Median]]-AAMC_Raw_Data_for_FY22[[#This Row],[25th]])/25)*10) + AAMC_Raw_Data_for_FY22[[#This Row],[25th]]","v":419720},{"$f":"(((AAMC_Raw_Data_for_FY22[[#This Row],[Median]]-AAMC_Raw_Data_for_FY22[[#This Row],[25th]])/25)*15) + AAMC_Raw_Data_for_FY22[[#This Row],[25th]]","v":427580},{"$f":"(((AAMC_Raw_Data_for_FY22[[#This Row],[Median]]-AAMC_Raw_Data_for_FY22[[#This Row],[25th]])/25)*20) + AAMC_Raw_Data_for_FY22[[#This Row],[25th]]","v":435440},443300,{"$f":"(((AAMC_Raw_Data_for_FY22[[#This Row],[75th]]-AAMC_Raw_Data_for_FY22[[#This Row],[Median]])/25)*5) + AAMC_Raw_Data_for_FY22[[#This Row],[Median]]","v":453807.8},{"$f":"(((AAMC_Raw_Data_for_FY22[[#This Row],[75th]]-AAMC_Raw_Data_for_FY22[[#This Row],[Median]])/25)*10) + AAMC_Raw_Data_for_FY22[[#This Row],[Median]]","v":464315.6},{"$f":"(((AAMC_Raw_Data_for_FY22[[#This Row],[75th]]-AAMC_Raw_Data_for_FY22[[#This Row],[Median]])/25)*15) + AAMC_Raw_Data_for_FY22[[#This Row],[Median]]","v":474823.4},{"$f":"(((AAMC_Raw_Data_for_FY22[[#This Row],[75th]]-AAMC_Raw_Data_for_FY22[[#This Row],[Median]])/25)*20) + AAMC_Raw_Data_for_FY22[[#This Row],[Median]]","v":485331.20000000001},495839,{"$f":"(((AAMC_Raw_Data_for_FY22[[#This Row],[75th]]-AAMC_Raw_Data_for_FY22[[#This Row],[Median]])/25)*30) + AAMC_Raw_Data_for_FY22[[#This Row],[Median]]","v":506346.8},{"$f":"(((AAMC_Raw_Data_for_FY22[[#This Row],[75th]]-AAMC_Raw_Data_for_FY22[[#This Row],[Median]])/25)*35) + AAMC_Raw_Data_for_FY22[[#This Row],[Median]]","v":516854.6},{"$f":"(((AAMC_Raw_Data_for_FY22[[#This Row],[75th]]-AAMC_Raw_Data_for_FY22[[#This Row],[Median]])/25)*40) + AAMC_Raw_Data_for_FY22[[#This Row],[Median]]","v":527362.4}]
[{"$f":"AAMC_Raw_Data_for_FY22[[#This Row],[Source]]&AAMC_Raw_Data_for_FY22[[#This Row],[Type]]&AAMC_Raw_Data_for_FY22[[#This Row],[School Subset]]&AAMC_Raw_Data_for_FY22[[#This Row],[Rank]]&AAMC_Raw_Data_for_FY22[[#This Row],[Degree]]&AAMC_Raw_Data_for_FY22[[#This Row],[Department / Specialty]]&\"L\"","v":"AAMCAcademicPublicProfessorMDVascular SurgeryL"},"Vascular Surgery",2,"AAMC","Academic","Public","Professor","MD","2021-2022",431077,{"$f":"(((AAMC_Raw_Data_for_FY22[[#This Row],[Median]]-AAMC_Raw_Data_for_FY22[[#This Row],[25th]])/25)*5) + AAMC_Raw_Data_for_FY22[[#This Row],[25th]]","v":447790.8},{"$f":"(((AAMC_Raw_Data_for_FY22[[#This Row],[Median]]-AAMC_Raw_Data_for_FY22[[#This Row],[25th]])/25)*10) + AAMC_Raw_Data_for_FY22[[#This Row],[25th]]","v":464504.6},{"$f":"(((AAMC_Raw_Data_for_FY22[[#This Row],[Median]]-AAMC_Raw_Data_for_FY22[[#This Row],[25th]])/25)*15) + AAMC_Raw_Data_for_FY22[[#This Row],[25th]]","v":481218.4},{"$f":"(((AAMC_Raw_Data_for_FY22[[#This Row],[Median]]-AAMC_Raw_Data_for_FY22[[#This Row],[25th]])/25)*20) + AAMC_Raw_Data_for_FY22[[#This Row],[25th]]","v":497932.2},514646,{"$f":"(((AAMC_Raw_Data_for_FY22[[#This Row],[75th]]-AAMC_Raw_Data_for_FY22[[#This Row],[Median]])/25)*5) + AAMC_Raw_Data_for_FY22[[#This Row],[Median]]","v":543590.19999999995},{"$f":"(((AAMC_Raw_Data_for_FY22[[#This Row],[75th]]-AAMC_Raw_Data_for_FY22[[#This Row],[Median]])/25)*10) + AAMC_Raw_Data_for_FY22[[#This Row],[Median]]","v":572534.4},{"$f":"(((AAMC_Raw_Data_for_FY22[[#This Row],[75th]]-AAMC_Raw_Data_for_FY22[[#This Row],[Median]])/25)*15) + AAMC_Raw_Data_for_FY22[[#This Row],[Median]]","v":601478.6},{"$f":"(((AAMC_Raw_Data_for_FY22[[#This Row],[75th]]-AAMC_Raw_Data_for_FY22[[#This Row],[Median]])/25)*20) + AAMC_Raw_Data_for_FY22[[#This Row],[Median]]","v":630422.80000000005},659367,{"$f":"(((AAMC_Raw_Data_for_FY22[[#This Row],[75th]]-AAMC_Raw_Data_for_FY22[[#This Row],[Median]])/25)*30) + AAMC_Raw_Data_for_FY22[[#This Row],[Median]]","v":688311.2},{"$f":"(((AAMC_Raw_Data_for_FY22[[#This Row],[75th]]-AAMC_Raw_Data_for_FY22[[#This Row],[Median]])/25)*35) + AAMC_Raw_Data_for_FY22[[#This Row],[Median]]","v":717255.4},{"$f":"(((AAMC_Raw_Data_for_FY22[[#This Row],[75th]]-AAMC_Raw_Data_for_FY22[[#This Row],[Median]])/25)*40) + AAMC_Raw_Data_for_FY22[[#This Row],[Median]]","v":746199.6}]
[{"$f":"AAMC_Raw_Data_for_FY22[[#This Row],[Source]]&AAMC_Raw_Data_for_FY22[[#This Row],[Type]]&AAMC_Raw_Data_for_FY22[[#This Row],[School Subset]]&AAMC_Raw_Data_for_FY22[[#This Row],[Rank]]&AAMC_Raw_Data_for_FY22[[#This Row],[Degree]]&AAMC_Raw_Data_for_FY22[[#This Row],[Department / Specialty]]&\"L\"","v":"AAMCAcademicPublicChiefMDVascular SurgeryL"},"Vascular Surgery",6,"AAMC","Academic","Public","Chief","MD","2021-2022",599925,{"$f":"(((AAMC_Raw_Data_for_FY22[[#This Row],[Median]]-AAMC_Raw_Data_for_FY22[[#This Row],[25th]])/25)*5) + AAMC_Raw_Data_for_FY22[[#This Row],[25th]]","v":614100.19999999995},{"$f":"(((AAMC_Raw_Data_for_FY22[[#This Row],[Median]]-AAMC_Raw_Data_for_FY22[[#This Row],[25th]])/25)*10) + AAMC_Raw_Data_for_FY22[[#This Row],[25th]]","v":628275.4},{"$f":"(((AAMC_Raw_Data_for_FY22[[#This Row],[Median]]-AAMC_Raw_Data_for_FY22[[#This Row],[25th]])/25)*15) + AAMC_Raw_Data_for_FY22[[#This Row],[25th]]","v":642450.6},{"$f":"(((AAMC_Raw_Data_for_FY22[[#This Row],[Median]]-AAMC_Raw_Data_for_FY22[[#This Row],[25th]])/25)*20) + AAMC_Raw_Data_for_FY22[[#This Row],[25th]]","v":656625.80000000005},670801,{"$f":"(((AAMC_Raw_Data_for_FY22[[#This Row],[75th]]-AAMC_Raw_Data_for_FY22[[#This Row],[Median]])/25)*5) + AAMC_Raw_Data_for_FY22[[#This Row],[Median]]","v":684631.8},{"$f":"(((AAMC_Raw_Data_for_FY22[[#This Row],[75th]]-AAMC_Raw_Data_for_FY22[[#This Row],[Median]])/25)*10) + AAMC_Raw_Data_for_FY22[[#This Row],[Median]]","v":698462.6},{"$f":"(((AAMC_Raw_Data_for_FY22[[#This Row],[75th]]-AAMC_Raw_Data_for_FY22[[#This Row],[Median]])/25)*15) + AAMC_Raw_Data_for_FY22[[#This Row],[Median]]","v":712293.4},{"$f":"(((AAMC_Raw_Data_for_FY22[[#This Row],[75th]]-AAMC_Raw_Data_for_FY22[[#This Row],[Median]])/25)*20) + AAMC_Raw_Data_for_FY22[[#This Row],[Median]]","v":726124.2},739955,{"$f":"(((AAMC_Raw_Data_for_FY22[[#This Row],[75th]]-AAMC_Raw_Data_for_FY22[[#This Row],[Median]])/25)*30) + AAMC_Raw_Data_for_FY22[[#This Row],[Median]]","v":753785.8},{"$f":"(((AAMC_Raw_Data_for_FY22[[#This Row],[75th]]-AAMC_Raw_Data_for_FY22[[#This Row],[Median]])/25)*35) + AAMC_Raw_Data_for_FY22[[#This Row],[Median]]","v":767616.6},{"$f":"(((AAMC_Raw_Data_for_FY22[[#This Row],[75th]]-AAMC_Raw_Data_for_FY22[[#This Row],[Median]])/25)*40) + AAMC_Raw_Data_for_FY22[[#This Row],[Median]]","v":781447.4}]
[{"$f":"AAMC_Raw_Data_for_FY22[[#This Row],[Source]]&AAMC_Raw_Data_for_FY22[[#This Row],[Type]]&AAMC_Raw_Data_for_FY22[[#This Row],[School Subset]]&AAMC_Raw_Data_for_FY22[[#This Row],[Rank]]&AAMC_Raw_Data_for_FY22[[#This Row],[Degree]]&AAMC_Raw_Data_for_FY22[[#This Row],[Department / Specialty]]&\"L\"","v":"AAMCAcademicPublicChairMDVascular SurgeryL"},"Vascular Surgery",1,"AAMC","Academic","Public","Chair","MD","2021-2022",654441,{"$f":"(((AAMC_Raw_Data_for_FY22[[#This Row],[Median]]-AAMC_Raw_Data_for_FY22[[#This Row],[25th]])/25)*5) + AAMC_Raw_Data_for_FY22[[#This Row],[25th]]","v":703883.2},{"$f":"(((AAMC_Raw_Data_for_FY22[[#This Row],[Median]]-AAMC_Raw_Data_for_FY22[[#This Row],[25th]])/25)*10) + AAMC_Raw_Data_for_FY22[[#This Row],[25th]]","v":753325.4},{"$f":"(((AAMC_Raw_Data_for_FY22[[#This Row],[Median]]-AAMC_Raw_Data_for_FY22[[#This Row],[25th]])/25)*15) + AAMC_Raw_Data_for_FY22[[#This Row],[25th]]","v":802767.6},{"$f":"(((AAMC_Raw_Data_for_FY22[[#This Row],[Median]]-AAMC_Raw_Data_for_FY22[[#This Row],[25th]])/25)*20) + AAMC_Raw_Data_for_FY22[[#This Row],[25th]]","v":852209.8},901652,{"$f":"(((AAMC_Raw_Data_for_FY22[[#This Row],[75th]]-AAMC_Raw_Data_for_FY22[[#This Row],[Median]])/25)*5) + AAMC_Raw_Data_for_FY22[[#This Row],[Median]]","v":931246},{"$f":"(((AAMC_Raw_Data_for_FY22[[#This Row],[75th]]-AAMC_Raw_Data_for_FY22[[#This Row],[Median]])/25)*10) + AAMC_Raw_Data_for_FY22[[#This Row],[Median]]","v":960840},{"$f":"(((AAMC_Raw_Data_for_FY22[[#This Row],[75th]]-AAMC_Raw_Data_for_FY22[[#This Row],[Median]])/25)*15) + AAMC_Raw_Data_for_FY22[[#This Row],[Median]]","v":990434},{"$f":"(((AAMC_Raw_Data_for_FY22[[#This Row],[75th]]-AAMC_Raw_Data_for_FY22[[#This Row],[Median]])/25)*20) + AAMC_Raw_Data_for_FY22[[#This Row],[Median]]","v":1020028},1049622,{"$f":"(((AAMC_Raw_Data_for_FY22[[#This Row],[75th]]-AAMC_Raw_Data_for_FY22[[#This Row],[Median]])/25)*30) + AAMC_Raw_Data_for_FY22[[#This Row],[Median]]","v":1079216},{"$f":"(((AAMC_Raw_Data_for_FY22[[#This Row],[75th]]-AAMC_Raw_Data_for_FY22[[#This Row],[Median]])/25)*35) + AAMC_Raw_Data_for_FY22[[#This Row],[Median]]","v":1108810},{"$f":"(((AAMC_Raw_Data_for_FY22[[#This Row],[75th]]-AAMC_Raw_Data_for_FY22[[#This Row],[Median]])/25)*40) + AAMC_Raw_Data_for_FY22[[#This Row],[Median]]","v":1138404}]
[{"$f":"AAMC_Raw_Data_for_FY22[[#This Row],[Source]]&AAMC_Raw_Data_for_FY22[[#This Row],[Type]]&AAMC_Raw_Data_for_FY22[[#This Row],[School Subset]]&AAMC_Raw_Data_for_FY22[[#This Row],[Rank]]&AAMC_Raw_Data_for_FY22[[#This Row],[Degree]]&AAMC_Raw_Data_for_FY22[[#This Row],[Department / Specialty]]&\"L\"","v":"AAMCAcademicPublicInstructorMDOther SurgeryL"},"Other Surgery",5,"AAMC","Academic","Public","Instructor","MD","2021-2022",74890,{"$f":"(((AAMC_Raw_Data_for_FY22[[#This Row],[Median]]-AAMC_Raw_Data_for_FY22[[#This Row],[25th]])/25)*5) + AAMC_Raw_Data_for_FY22[[#This Row],[25th]]","v":79912},{"$f":"(((AAMC_Raw_Data_for_FY22[[#This Row],[Median]]-AAMC_Raw_Data_for_FY22[[#This Row],[25th]])/25)*10) + AAMC_Raw_Data_for_FY22[[#This Row],[25th]]","v":84934},{"$f":"(((AAMC_Raw_Data_for_FY22[[#This Row],[Median]]-AAMC_Raw_Data_for_FY22[[#This Row],[25th]])/25)*15) + AAMC_Raw_Data_for_FY22[[#This Row],[25th]]","v":89956},{"$f":"(((AAMC_Raw_Data_for_FY22[[#This Row],[Median]]-AAMC_Raw_Data_for_FY22[[#This Row],[25th]])/25)*20) + AAMC_Raw_Data_for_FY22[[#This Row],[25th]]","v":94978},100000,{"$f":"(((AAMC_Raw_Data_for_FY22[[#This Row],[75th]]-AAMC_Raw_Data_for_FY22[[#This Row],[Median]])/25)*5) + AAMC_Raw_Data_for_FY22[[#This Row],[Median]]","v":147583.20000000001},{"$f":"(((AAMC_Raw_Data_for_FY22[[#This Row],[75th]]-AAMC_Raw_Data_for_FY22[[#This Row],[Median]])/25)*10) + AAMC_Raw_Data_for_FY22[[#This Row],[Median]]","v":195166.4},{"$f":"(((AAMC_Raw_Data_for_FY22[[#This Row],[75th]]-AAMC_Raw_Data_for_FY22[[#This Row],[Median]])/25)*15) + AAMC_Raw_Data_for_FY22[[#This Row],[Median]]","v":242749.59999999998},{"$f":"(((AAMC_Raw_Data_for_FY22[[#This Row],[75th]]-AAMC_Raw_Data_for_FY22[[#This Row],[Median]])/25)*20) + AAMC_Raw_Data_for_FY22[[#This Row],[Median]]","v":290332.79999999999},337916,{"$f":"(((AAMC_Raw_Data_for_FY22[[#This Row],[75th]]-AAMC_Raw_Data_for_FY22[[#This Row],[Median]])/25)*30) + AAMC_Raw_Data_for_FY22[[#This Row],[Median]]","v":385499.19999999995},{"$f":"(((AAMC_Raw_Data_for_FY22[[#This Row],[75th]]-AAMC_Raw_Data_for_FY22[[#This Row],[Median]])/25)*35) + AAMC_Raw_Data_for_FY22[[#This Row],[Median]]","v":433082.39999999997},{"$f":"(((AAMC_Raw_Data_for_FY22[[#This Row],[75th]]-AAMC_Raw_Data_for_FY22[[#This Row],[Median]])/25)*40) + AAMC_Raw_Data_for_FY22[[#This Row],[Median]]","v":480665.59999999998}]
[{"$f":"AAMC_Raw_Data_for_FY22[[#This Row],[Source]]&AAMC_Raw_Data_for_FY22[[#This Row],[Type]]&AAMC_Raw_Data_for_FY22[[#This Row],[School Subset]]&AAMC_Raw_Data_for_FY22[[#This Row],[Rank]]&AAMC_Raw_Data_for_FY22[[#This Row],[Degree]]&AAMC_Raw_Data_for_FY22[[#This Row],[Department / Specialty]]&\"L\"","v":"AAMCAcademicPublicAssistantMDOther SurgeryL"},"Other Surgery",4,"AAMC","Academic","Public","Assistant","MD","2021-2022",285332,{"$f":"(((AAMC_Raw_Data_for_FY22[[#This Row],[Median]]-AAMC_Raw_Data_for_FY22[[#This Row],[25th]])/25)*5) + AAMC_Raw_Data_for_FY22[[#This Row],[25th]]","v":299389.40000000002},{"$f":"(((AAMC_Raw_Data_for_FY22[[#This Row],[Median]]-AAMC_Raw_Data_for_FY22[[#This Row],[25th]])/25)*10) + AAMC_Raw_Data_for_FY22[[#This Row],[25th]]","v":313446.8},{"$f":"(((AAMC_Raw_Data_for_FY22[[#This Row],[Median]]-AAMC_Raw_Data_for_FY22[[#This Row],[25th]])/25)*15) + AAMC_Raw_Data_for_FY22[[#This Row],[25th]]","v":327504.2},{"$f":"(((AAMC_Raw_Data_for_FY22[[#This Row],[Median]]-AAMC_Raw_Data_for_FY22[[#This Row],[25th]])/25)*20) + AAMC_Raw_Data_for_FY22[[#This Row],[25th]]","v":341561.59999999998},355619,{"$f":"(((AAMC_Raw_Data_for_FY22[[#This Row],[75th]]-AAMC_Raw_Data_for_FY22[[#This Row],[Median]])/25)*5) + AAMC_Raw_Data_for_FY22[[#This Row],[Median]]","v":379025.4},{"$f":"(((AAMC_Raw_Data_for_FY22[[#This Row],[75th]]-AAMC_Raw_Data_for_FY22[[#This Row],[Median]])/25)*10) + AAMC_Raw_Data_for_FY22[[#This Row],[Median]]","v":402431.8},{"$f":"(((AAMC_Raw_Data_for_FY22[[#This Row],[75th]]-AAMC_Raw_Data_for_FY22[[#This Row],[Median]])/25)*15) + AAMC_Raw_Data_for_FY22[[#This Row],[Median]]","v":425838.2},{"$f":"(((AAMC_Raw_Data_for_FY22[[#This Row],[75th]]-AAMC_Raw_Data_for_FY22[[#This Row],[Median]])/25)*20) + AAMC_Raw_Data_for_FY22[[#This Row],[Median]]","v":449244.6},472651,{"$f":"(((AAMC_Raw_Data_for_FY22[[#This Row],[75th]]-AAMC_Raw_Data_for_FY22[[#This Row],[Median]])/25)*30) + AAMC_Raw_Data_for_FY22[[#This Row],[Median]]","v":496057.4},{"$f":"(((AAMC_Raw_Data_for_FY22[[#This Row],[75th]]-AAMC_Raw_Data_for_FY22[[#This Row],[Median]])/25)*35) + AAMC_Raw_Data_for_FY22[[#This Row],[Median]]","v":519463.8},{"$f":"(((AAMC_Raw_Data_for_FY22[[#This Row],[75th]]-AAMC_Raw_Data_for_FY22[[#This Row],[Median]])/25)*40) + AAMC_Raw_Data_for_FY22[[#This Row],[Median]]","v":542870.19999999995}]
[{"$f":"AAMC_Raw_Data_for_FY22[[#This Row],[Source]]&AAMC_Raw_Data_for_FY22[[#This Row],[Type]]&AAMC_Raw_Data_for_FY22[[#This Row],[School Subset]]&AAMC_Raw_Data_for_FY22[[#This Row],[Rank]]&AAMC_Raw_Data_for_FY22[[#This Row],[Degree]]&AAMC_Raw_Data_for_FY22[[#This Row],[Department / Specialty]]&\"L\"","v":"AAMCAcademicPublicAssociateMDOther SurgeryL"},"Other Surgery",3,"AAMC","Academic","Public","Associate","MD","2021-2022",357369,{"$f":"(((AAMC_Raw_Data_for_FY22[[#This Row],[Median]]-AAMC_Raw_Data_for_FY22[[#This Row],[25th]])/25)*5) + AAMC_Raw_Data_for_FY22[[#This Row],[25th]]","v":371720},{"$f":"(((AAMC_Raw_Data_for_FY22[[#This Row],[Median]]-AAMC_Raw_Data_for_FY22[[#This Row],[25th]])/25)*10) + AAMC_Raw_Data_for_FY22[[#This Row],[25th]]","v":386071},{"$f":"(((AAMC_Raw_Data_for_FY22[[#This Row],[Median]]-AAMC_Raw_Data_for_FY22[[#This Row],[25th]])/25)*15) + AAMC_Raw_Data_for_FY22[[#This Row],[25th]]","v":400422},{"$f":"(((AAMC_Raw_Data_for_FY22[[#This Row],[Median]]-AAMC_Raw_Data_for_FY22[[#This Row],[25th]])/25)*20) + AAMC_Raw_Data_for_FY22[[#This Row],[25th]]","v":414773},429124,{"$f":"(((AAMC_Raw_Data_for_FY22[[#This Row],[75th]]-AAMC_Raw_Data_for_FY22[[#This Row],[Median]])/25)*5) + AAMC_Raw_Data_for_FY22[[#This Row],[Median]]","v":445565.2},{"$f":"(((AAMC_Raw_Data_for_FY22[[#This Row],[75th]]-AAMC_Raw_Data_for_FY22[[#This Row],[Median]])/25)*10) + AAMC_Raw_Data_for_FY22[[#This Row],[Median]]","v":462006.4},{"$f":"(((AAMC_Raw_Data_for_FY22[[#This Row],[75th]]-AAMC_Raw_Data_for_FY22[[#This Row],[Median]])/25)*15) + AAMC_Raw_Data_for_FY22[[#This Row],[Median]]","v":478447.6},{"$f":"(((AAMC_Raw_Data_for_FY22[[#This Row],[75th]]-AAMC_Raw_Data_for_FY22[[#This Row],[Median]])/25)*20) + AAMC_Raw_Data_for_FY22[[#This Row],[Median]]","v":494888.8},511330,{"$f":"(((AAMC_Raw_Data_for_FY22[[#This Row],[75th]]-AAMC_Raw_Data_for_FY22[[#This Row],[Median]])/25)*30) + AAMC_Raw_Data_for_FY22[[#This Row],[Median]]","v":527771.19999999995},{"$f":"(((AAMC_Raw_Data_for_FY22[[#This Row],[75th]]-AAMC_Raw_Data_for_FY22[[#This Row],[Median]])/25)*35) + AAMC_Raw_Data_for_FY22[[#This Row],[Median]]","v":544212.4},{"$f":"(((AAMC_Raw_Data_for_FY22[[#This Row],[75th]]-AAMC_Raw_Data_for_FY22[[#This Row],[Median]])/25)*40) + AAMC_Raw_Data_for_FY22[[#This Row],[Median]]","v":560653.6}]
[{"$f":"AAMC_Raw_Data_for_FY22[[#This Row],[Source]]&AAMC_Raw_Data_for_FY22[[#This Row],[Type]]&AAMC_Raw_Data_for_FY22[[#This Row],[School Subset]]&AAMC_Raw_Data_for_FY22[[#This Row],[Rank]]&AAMC_Raw_Data_for_FY22[[#This Row],[Degree]]&AAMC_Raw_Data_for_FY22[[#This Row],[Department / Specialty]]&\"L\"","v":"AAMCAcademicPublicProfessorMDOther SurgeryL"},"Other Surgery",2,"AAMC","Academic","Public","Professor","MD","2021-2022",260448,{"$f":"(((AAMC_Raw_Data_for_FY22[[#This Row],[Median]]-AAMC_Raw_Data_for_FY22[[#This Row],[25th]])/25)*5) + AAMC_Raw_Data_for_FY22[[#This Row],[25th]]","v":295479.59999999998},{"$f":"(((AAMC_Raw_Data_for_FY22[[#This Row],[Median]]-AAMC_Raw_Data_for_FY22[[#This Row],[25th]])/25)*10) + AAMC_Raw_Data_for_FY22[[#This Row],[25th]]","v":330511.2},{"$f":"(((AAMC_Raw_Data_for_FY22[[#This Row],[Median]]-AAMC_Raw_Data_for_FY22[[#This Row],[25th]])/25)*15) + AAMC_Raw_Data_for_FY22[[#This Row],[25th]]","v":365542.8},{"$f":"(((AAMC_Raw_Data_for_FY22[[#This Row],[Median]]-AAMC_Raw_Data_for_FY22[[#This Row],[25th]])/25)*20) + AAMC_Raw_Data_for_FY22[[#This Row],[25th]]","v":400574.4},435606,{"$f":"(((AAMC_Raw_Data_for_FY22[[#This Row],[75th]]-AAMC_Raw_Data_for_FY22[[#This Row],[Median]])/25)*5) + AAMC_Raw_Data_for_FY22[[#This Row],[Median]]","v":477720},{"$f":"(((AAMC_Raw_Data_for_FY22[[#This Row],[75th]]-AAMC_Raw_Data_for_FY22[[#This Row],[Median]])/25)*10) + AAMC_Raw_Data_for_FY22[[#This Row],[Median]]","v":519834},{"$f":"(((AAMC_Raw_Data_for_FY22[[#This Row],[75th]]-AAMC_Raw_Data_for_FY22[[#This Row],[Median]])/25)*15) + AAMC_Raw_Data_for_FY22[[#This Row],[Median]]","v":561948},{"$f":"(((AAMC_Raw_Data_for_FY22[[#This Row],[75th]]-AAMC_Raw_Data_for_FY22[[#This Row],[Median]])/25)*20) + AAMC_Raw_Data_for_FY22[[#This Row],[Median]]","v":604062},646176,{"$f":"(((AAMC_Raw_Data_for_FY22[[#This Row],[75th]]-AAMC_Raw_Data_for_FY22[[#This Row],[Median]])/25)*30) + AAMC_Raw_Data_for_FY22[[#This Row],[Median]]","v":688290},{"$f":"(((AAMC_Raw_Data_for_FY22[[#This Row],[75th]]-AAMC_Raw_Data_for_FY22[[#This Row],[Median]])/25)*35) + AAMC_Raw_Data_for_FY22[[#This Row],[Median]]","v":730404},{"$f":"(((AAMC_Raw_Data_for_FY22[[#This Row],[75th]]-AAMC_Raw_Data_for_FY22[[#This Row],[Median]])/25)*40) + AAMC_Raw_Data_for_FY22[[#This Row],[Median]]","v":772518}]
[{"$f":"AAMC_Raw_Data_for_FY22[[#This Row],[Source]]&AAMC_Raw_Data_for_FY22[[#This Row],[Type]]&AAMC_Raw_Data_for_FY22[[#This Row],[School Subset]]&AAMC_Raw_Data_for_FY22[[#This Row],[Rank]]&AAMC_Raw_Data_for_FY22[[#This Row],[Degree]]&AAMC_Raw_Data_for_FY22[[#This Row],[Department / Specialty]]&\"L\"","v":"AAMCAcademicPublicChiefMDOther SurgeryL"},"Other Surgery",6,"AAMC","Academic","Public","Chief","MD","2021-2022",544146,{"$f":"(((AAMC_Raw_Data_for_FY22[[#This Row],[Median]]-AAMC_Raw_Data_for_FY22[[#This Row],[25th]])/25)*5) + AAMC_Raw_Data_for_FY22[[#This Row],[25th]]","v":547923.80000000005},{"$f":"(((AAMC_Raw_Data_for_FY22[[#This Row],[Median]]-AAMC_Raw_Data_for_FY22[[#This Row],[25th]])/25)*10) + AAMC_Raw_Data_for_FY22[[#This Row],[25th]]","v":551701.6},{"$f":"(((AAMC_Raw_Data_for_FY22[[#This Row],[Median]]-AAMC_Raw_Data_for_FY22[[#This Row],[25th]])/25)*15) + AAMC_Raw_Data_for_FY22[[#This Row],[25th]]","v":555479.4},{"$f":"(((AAMC_Raw_Data_for_FY22[[#This Row],[Median]]-AAMC_Raw_Data_for_FY22[[#This Row],[25th]])/25)*20) + AAMC_Raw_Data_for_FY22[[#This Row],[25th]]","v":559257.19999999995},563035,{"$f":"(((AAMC_Raw_Data_for_FY22[[#This Row],[75th]]-AAMC_Raw_Data_for_FY22[[#This Row],[Median]])/25)*5) + AAMC_Raw_Data_for_FY22[[#This Row],[Median]]","v":581925},{"$f":"(((AAMC_Raw_Data_for_FY22[[#This Row],[75th]]-AAMC_Raw_Data_for_FY22[[#This Row],[Median]])/25)*10) + AAMC_Raw_Data_for_FY22[[#This Row],[Median]]","v":600815},{"$f":"(((AAMC_Raw_Data_for_FY22[[#This Row],[75th]]-AAMC_Raw_Data_for_FY22[[#This Row],[Median]])/25)*15) + AAMC_Raw_Data_for_FY22[[#This Row],[Median]]","v":619705},{"$f":"(((AAMC_Raw_Data_for_FY22[[#This Row],[75th]]-AAMC_Raw_Data_for_FY22[[#This Row],[Median]])/25)*20) + AAMC_Raw_Data_for_FY22[[#This Row],[Median]]","v":638595},657485,{"$f":"(((AAMC_Raw_Data_for_FY22[[#This Row],[75th]]-AAMC_Raw_Data_for_FY22[[#This Row],[Median]])/25)*30) + AAMC_Raw_Data_for_FY22[[#This Row],[Median]]","v":676375},{"$f":"(((AAMC_Raw_Data_for_FY22[[#This Row],[75th]]-AAMC_Raw_Data_for_FY22[[#This Row],[Median]])/25)*35) + AAMC_Raw_Data_for_FY22[[#This Row],[Median]]","v":695265},{"$f":"(((AAMC_Raw_Data_for_FY22[[#This Row],[75th]]-AAMC_Raw_Data_for_FY22[[#This Row],[Median]])/25)*40) + AAMC_Raw_Data_for_FY22[[#This Row],[Median]]","v":714155}]
[{"$f":"AAMC_Raw_Data_for_FY22[[#This Row],[Source]]&AAMC_Raw_Data_for_FY22[[#This Row],[Type]]&AAMC_Raw_Data_for_FY22[[#This Row],[School Subset]]&AAMC_Raw_Data_for_FY22[[#This Row],[Rank]]&AAMC_Raw_Data_for_FY22[[#This Row],[Degree]]&AAMC_Raw_Data_for_FY22[[#This Row],[Department / Specialty]]&\"L\"","v":"AAMCAcademicPublicChairMDOther SurgeryL"},"Other Surgery",1,"AAMC","Academic","Public","Chair","MD","2021-2022",748845,{"$f":"(((AAMC_Raw_Data_for_FY22[[#This Row],[Median]]-AAMC_Raw_Data_for_FY22[[#This Row],[25th]])/25)*5) + AAMC_Raw_Data_for_FY22[[#This Row],[25th]]","v":760877},{"$f":"(((AAMC_Raw_Data_for_FY22[[#This Row],[Median]]-AAMC_Raw_Data_for_FY22[[#This Row],[25th]])/25)*10) + AAMC_Raw_Data_for_FY22[[#This Row],[25th]]","v":772909},{"$f":"(((AAMC_Raw_Data_for_FY22[[#This Row],[Median]]-AAMC_Raw_Data_for_FY22[[#This Row],[25th]])/25)*15) + AAMC_Raw_Data_for_FY22[[#This Row],[25th]]","v":784941},{"$f":"(((AAMC_Raw_Data_for_FY22[[#This Row],[Median]]-AAMC_Raw_Data_for_FY22[[#This Row],[25th]])/25)*20) + AAMC_Raw_Data_for_FY22[[#This Row],[25th]]","v":796973},809005,{"$f":"(((AAMC_Raw_Data_for_FY22[[#This Row],[75th]]-AAMC_Raw_Data_for_FY22[[#This Row],[Median]])/25)*5) + AAMC_Raw_Data_for_FY22[[#This Row],[Median]]","v":817659},{"$f":"(((AAMC_Raw_Data_for_FY22[[#This Row],[75th]]-AAMC_Raw_Data_for_FY22[[#This Row],[Median]])/25)*10) + AAMC_Raw_Data_for_FY22[[#This Row],[Median]]","v":826313},{"$f":"(((AAMC_Raw_Data_for_FY22[[#This Row],[75th]]-AAMC_Raw_Data_for_FY22[[#This Row],[Median]])/25)*15) + AAMC_Raw_Data_for_FY22[[#This Row],[Median]]","v":834967},{"$f":"(((AAMC_Raw_Data_for_FY22[[#This Row],[75th]]-AAMC_Raw_Data_for_FY22[[#This Row],[Median]])/25)*20) + AAMC_Raw_Data_for_FY22[[#This Row],[Median]]","v":843621},852275,{"$f":"(((AAMC_Raw_Data_for_FY22[[#This Row],[75th]]-AAMC_Raw_Data_for_FY22[[#This Row],[Median]])/25)*30) + AAMC_Raw_Data_for_FY22[[#This Row],[Median]]","v":860929},{"$f":"(((AAMC_Raw_Data_for_FY22[[#This Row],[75th]]-AAMC_Raw_Data_for_FY22[[#This Row],[Median]])/25)*35) + AAMC_Raw_Data_for_FY22[[#This Row],[Median]]","v":869583},{"$f":"(((AAMC_Raw_Data_for_FY22[[#This Row],[75th]]-AAMC_Raw_Data_for_FY22[[#This Row],[Median]])/25)*40) + AAMC_Raw_Data_for_FY22[[#This Row],[Median]]","v":878237}]
[{"$f":"AAMC_Raw_Data_for_FY22[[#This Row],[Source]]&AAMC_Raw_Data_for_FY22[[#This Row],[Type]]&AAMC_Raw_Data_for_FY22[[#This Row],[School Subset]]&AAMC_Raw_Data_for_FY22[[#This Row],[Rank]]&AAMC_Raw_Data_for_FY22[[#This Row],[Degree]]&AAMC_Raw_Data_for_FY22[[#This Row],[Department / Specialty]]&\"L\"","v":"AAMCAcademicPublicInstructorMDOther Clinical Science TotalL"},"Other Clinical Science Total",5,"AAMC","Academic","Public","Instructor","MD","2021-2022",75463,{"$f":"(((AAMC_Raw_Data_for_FY22[[#This Row],[Median]]-AAMC_Raw_Data_for_FY22[[#This Row],[25th]])/25)*5) + AAMC_Raw_Data_for_FY22[[#This Row],[25th]]","v":87460.800000000003},{"$f":"(((AAMC_Raw_Data_for_FY22[[#This Row],[Median]]-AAMC_Raw_Data_for_FY22[[#This Row],[25th]])/25)*10) + AAMC_Raw_Data_for_FY22[[#This Row],[25th]]","v":99458.6},{"$f":"(((AAMC_Raw_Data_for_FY22[[#This Row],[Median]]-AAMC_Raw_Data_for_FY22[[#This Row],[25th]])/25)*15) + AAMC_Raw_Data_for_FY22[[#This Row],[25th]]","v":111456.4},{"$f":"(((AAMC_Raw_Data_for_FY22[[#This Row],[Median]]-AAMC_Raw_Data_for_FY22[[#This Row],[25th]])/25)*20) + AAMC_Raw_Data_for_FY22[[#This Row],[25th]]","v":123454.2},135452,{"$f":"(((AAMC_Raw_Data_for_FY22[[#This Row],[75th]]-AAMC_Raw_Data_for_FY22[[#This Row],[Median]])/25)*5) + AAMC_Raw_Data_for_FY22[[#This Row],[Median]]","v":173696.4},{"$f":"(((AAMC_Raw_Data_for_FY22[[#This Row],[75th]]-AAMC_Raw_Data_for_FY22[[#This Row],[Median]])/25)*10) + AAMC_Raw_Data_for_FY22[[#This Row],[Median]]","v":211940.8},{"$f":"(((AAMC_Raw_Data_for_FY22[[#This Row],[75th]]-AAMC_Raw_Data_for_FY22[[#This Row],[Median]])/25)*15) + AAMC_Raw_Data_for_FY22[[#This Row],[Median]]","v":250185.2},{"$f":"(((AAMC_Raw_Data_for_FY22[[#This Row],[75th]]-AAMC_Raw_Data_for_FY22[[#This Row],[Median]])/25)*20) + AAMC_Raw_Data_for_FY22[[#This Row],[Median]]","v":288429.59999999998},326674,{"$f":"(((AAMC_Raw_Data_for_FY22[[#This Row],[75th]]-AAMC_Raw_Data_for_FY22[[#This Row],[Median]])/25)*30) + AAMC_Raw_Data_for_FY22[[#This Row],[Median]]","v":364918.4},{"$f":"(((AAMC_Raw_Data_for_FY22[[#This Row],[75th]]-AAMC_Raw_Data_for_FY22[[#This Row],[Median]])/25)*35) + AAMC_Raw_Data_for_FY22[[#This Row],[Median]]","v":403162.8},{"$f":"(((AAMC_Raw_Data_for_FY22[[#This Row],[75th]]-AAMC_Raw_Data_for_FY22[[#This Row],[Median]])/25)*40) + AAMC_Raw_Data_for_FY22[[#This Row],[Median]]","v":441407.2}]
[{"$f":"AAMC_Raw_Data_for_FY22[[#This Row],[Source]]&AAMC_Raw_Data_for_FY22[[#This Row],[Type]]&AAMC_Raw_Data_for_FY22[[#This Row],[School Subset]]&AAMC_Raw_Data_for_FY22[[#This Row],[Rank]]&AAMC_Raw_Data_for_FY22[[#This Row],[Degree]]&AAMC_Raw_Data_for_FY22[[#This Row],[Department / Specialty]]&\"L\"","v":"AAMCAcademicPublicAssistantMDOther Clinical Science TotalL"},"Other Clinical Science Total",4,"AAMC","Academic","Public","Assistant","MD","2021-2022",235387,{"$f":"(((AAMC_Raw_Data_for_FY22[[#This Row],[Median]]-AAMC_Raw_Data_for_FY22[[#This Row],[25th]])/25)*5) + AAMC_Raw_Data_for_FY22[[#This Row],[25th]]","v":246009.60000000001},{"$f":"(((AAMC_Raw_Data_for_FY22[[#This Row],[Median]]-AAMC_Raw_Data_for_FY22[[#This Row],[25th]])/25)*10) + AAMC_Raw_Data_for_FY22[[#This Row],[25th]]","v":256632.2},{"$f":"(((AAMC_Raw_Data_for_FY22[[#This Row],[Median]]-AAMC_Raw_Data_for_FY22[[#This Row],[25th]])/25)*15) + AAMC_Raw_Data_for_FY22[[#This Row],[25th]]","v":267254.8},{"$f":"(((AAMC_Raw_Data_for_FY22[[#This Row],[Median]]-AAMC_Raw_Data_for_FY22[[#This Row],[25th]])/25)*20) + AAMC_Raw_Data_for_FY22[[#This Row],[25th]]","v":277877.40000000002},288500,{"$f":"(((AAMC_Raw_Data_for_FY22[[#This Row],[75th]]-AAMC_Raw_Data_for_FY22[[#This Row],[Median]])/25)*5) + AAMC_Raw_Data_for_FY22[[#This Row],[Median]]","v":298020.40000000002},{"$f":"(((AAMC_Raw_Data_for_FY22[[#This Row],[75th]]-AAMC_Raw_Data_for_FY22[[#This Row],[Median]])/25)*10) + AAMC_Raw_Data_for_FY22[[#This Row],[Median]]","v":307540.8},{"$f":"(((AAMC_Raw_Data_for_FY22[[#This Row],[75th]]-AAMC_Raw_Data_for_FY22[[#This Row],[Median]])/25)*15) + AAMC_Raw_Data_for_FY22[[#This Row],[Median]]","v":317061.2},{"$f":"(((AAMC_Raw_Data_for_FY22[[#This Row],[75th]]-AAMC_Raw_Data_for_FY22[[#This Row],[Median]])/25)*20) + AAMC_Raw_Data_for_FY22[[#This Row],[Median]]","v":326581.59999999998},336102,{"$f":"(((AAMC_Raw_Data_for_FY22[[#This Row],[75th]]-AAMC_Raw_Data_for_FY22[[#This Row],[Median]])/25)*30) + AAMC_Raw_Data_for_FY22[[#This Row],[Median]]","v":345622.4},{"$f":"(((AAMC_Raw_Data_for_FY22[[#This Row],[75th]]-AAMC_Raw_Data_for_FY22[[#This Row],[Median]])/25)*35) + AAMC_Raw_Data_for_FY22[[#This Row],[Median]]","v":355142.8},{"$f":"(((AAMC_Raw_Data_for_FY22[[#This Row],[75th]]-AAMC_Raw_Data_for_FY22[[#This Row],[Median]])/25)*40) + AAMC_Raw_Data_for_FY22[[#This Row],[Median]]","v":364663.2}]
[{"$f":"AAMC_Raw_Data_for_FY22[[#This Row],[Source]]&AAMC_Raw_Data_for_FY22[[#This Row],[Type]]&AAMC_Raw_Data_for_FY22[[#This Row],[School Subset]]&AAMC_Raw_Data_for_FY22[[#This Row],[Rank]]&AAMC_Raw_Data_for_FY22[[#This Row],[Degree]]&AAMC_Raw_Data_for_FY22[[#This Row],[Department / Specialty]]&\"L\"","v":"AAMCAcademicPublicAssociateMDOther Clinical Science TotalL"},"Other Clinical Science Total",3,"AAMC","Academic","Public","Associate","MD","2021-2022",266606,{"$f":"(((AAMC_Raw_Data_for_FY22[[#This Row],[Median]]-AAMC_Raw_Data_for_FY22[[#This Row],[25th]])/25)*5) + AAMC_Raw_Data_for_FY22[[#This Row],[25th]]","v":278633.8},{"$f":"(((AAMC_Raw_Data_for_FY22[[#This Row],[Median]]-AAMC_Raw_Data_for_FY22[[#This Row],[25th]])/25)*10) + AAMC_Raw_Data_for_FY22[[#This Row],[25th]]","v":290661.59999999998},{"$f":"(((AAMC_Raw_Data_for_FY22[[#This Row],[Median]]-AAMC_Raw_Data_for_FY22[[#This Row],[25th]])/25)*15) + AAMC_Raw_Data_for_FY22[[#This Row],[25th]]","v":302689.40000000002},{"$f":"(((AAMC_Raw_Data_for_FY22[[#This Row],[Median]]-AAMC_Raw_Data_for_FY22[[#This Row],[25th]])/25)*20) + AAMC_Raw_Data_for_FY22[[#This Row],[25th]]","v":314717.2},326745,{"$f":"(((AAMC_Raw_Data_for_FY22[[#This Row],[75th]]-AAMC_Raw_Data_for_FY22[[#This Row],[Median]])/25)*5) + AAMC_Raw_Data_for_FY22[[#This Row],[Median]]","v":339751.8},{"$f":"(((AAMC_Raw_Data_for_FY22[[#This Row],[75th]]-AAMC_Raw_Data_for_FY22[[#This Row],[Median]])/25)*10) + AAMC_Raw_Data_for_FY22[[#This Row],[Median]]","v":352758.6},{"$f":"(((AAMC_Raw_Data_for_FY22[[#This Row],[75th]]-AAMC_Raw_Data_for_FY22[[#This Row],[Median]])/25)*15) + AAMC_Raw_Data_for_FY22[[#This Row],[Median]]","v":365765.4},{"$f":"(((AAMC_Raw_Data_for_FY22[[#This Row],[75th]]-AAMC_Raw_Data_for_FY22[[#This Row],[Median]])/25)*20) + AAMC_Raw_Data_for_FY22[[#This Row],[Median]]","v":378772.2},391779,{"$f":"(((AAMC_Raw_Data_for_FY22[[#This Row],[75th]]-AAMC_Raw_Data_for_FY22[[#This Row],[Median]])/25)*30) + AAMC_Raw_Data_for_FY22[[#This Row],[Median]]","v":404785.8},{"$f":"(((AAMC_Raw_Data_for_FY22[[#This Row],[75th]]-AAMC_Raw_Data_for_FY22[[#This Row],[Median]])/25)*35) + AAMC_Raw_Data_for_FY22[[#This Row],[Median]]","v":417792.6},{"$f":"(((AAMC_Raw_Data_for_FY22[[#This Row],[75th]]-AAMC_Raw_Data_for_FY22[[#This Row],[Median]])/25)*40) + AAMC_Raw_Data_for_FY22[[#This Row],[Median]]","v":430799.4}]
[{"$f":"AAMC_Raw_Data_for_FY22[[#This Row],[Source]]&AAMC_Raw_Data_for_FY22[[#This Row],[Type]]&AAMC_Raw_Data_for_FY22[[#This Row],[School Subset]]&AAMC_Raw_Data_for_FY22[[#This Row],[Rank]]&AAMC_Raw_Data_for_FY22[[#This Row],[Degree]]&AAMC_Raw_Data_for_FY22[[#This Row],[Department / Specialty]]&\"L\"","v":"AAMCAcademicPublicProfessorMDOther Clinical Science TotalL"},"Other Clinical Science Total",2,"AAMC","Academic","Public","Professor","MD","2021-2022",286673,{"$f":"(((AAMC_Raw_Data_for_FY22[[#This Row],[Median]]-AAMC_Raw_Data_for_FY22[[#This Row],[25th]])/25)*5) + AAMC_Raw_Data_for_FY22[[#This Row],[25th]]","v":299356.2},{"$f":"(((AAMC_Raw_Data_for_FY22[[#This Row],[Median]]-AAMC_Raw_Data_for_FY22[[#This Row],[25th]])/25)*10) + AAMC_Raw_Data_for_FY22[[#This Row],[25th]]","v":312039.40000000002},{"$f":"(((AAMC_Raw_Data_for_FY22[[#This Row],[Median]]-AAMC_Raw_Data_for_FY22[[#This Row],[25th]])/25)*15) + AAMC_Raw_Data_for_FY22[[#This Row],[25th]]","v":324722.59999999998},{"$f":"(((AAMC_Raw_Data_for_FY22[[#This Row],[Median]]-AAMC_Raw_Data_for_FY22[[#This Row],[25th]])/25)*20) + AAMC_Raw_Data_for_FY22[[#This Row],[25th]]","v":337405.8},350089,{"$f":"(((AAMC_Raw_Data_for_FY22[[#This Row],[75th]]-AAMC_Raw_Data_for_FY22[[#This Row],[Median]])/25)*5) + AAMC_Raw_Data_for_FY22[[#This Row],[Median]]","v":369427.20000000001},{"$f":"(((AAMC_Raw_Data_for_FY22[[#This Row],[75th]]-AAMC_Raw_Data_for_FY22[[#This Row],[Median]])/25)*10) + AAMC_Raw_Data_for_FY22[[#This Row],[Median]]","v":388765.4},{"$f":"(((AAMC_Raw_Data_for_FY22[[#This Row],[75th]]-AAMC_Raw_Data_for_FY22[[#This Row],[Median]])/25)*15) + AAMC_Raw_Data_for_FY22[[#This Row],[Median]]","v":408103.6},{"$f":"(((AAMC_Raw_Data_for_FY22[[#This Row],[75th]]-AAMC_Raw_Data_for_FY22[[#This Row],[Median]])/25)*20) + AAMC_Raw_Data_for_FY22[[#This Row],[Median]]","v":427441.8},446780,{"$f":"(((AAMC_Raw_Data_for_FY22[[#This Row],[75th]]-AAMC_Raw_Data_for_FY22[[#This Row],[Median]])/25)*30) + AAMC_Raw_Data_for_FY22[[#This Row],[Median]]","v":466118.2},{"$f":"(((AAMC_Raw_Data_for_FY22[[#This Row],[75th]]-AAMC_Raw_Data_for_FY22[[#This Row],[Median]])/25)*35) + AAMC_Raw_Data_for_FY22[[#This Row],[Median]]","v":485456.4},{"$f":"(((AAMC_Raw_Data_for_FY22[[#This Row],[75th]]-AAMC_Raw_Data_for_FY22[[#This Row],[Median]])/25)*40) + AAMC_Raw_Data_for_FY22[[#This Row],[Median]]","v":504794.6}]
[{"$f":"AAMC_Raw_Data_for_FY22[[#This Row],[Source]]&AAMC_Raw_Data_for_FY22[[#This Row],[Type]]&AAMC_Raw_Data_for_FY22[[#This Row],[School Subset]]&AAMC_Raw_Data_for_FY22[[#This Row],[Rank]]&AAMC_Raw_Data_for_FY22[[#This Row],[Degree]]&AAMC_Raw_Data_for_FY22[[#This Row],[Department / Specialty]]&\"L\"","v":"AAMCAcademicPublicChiefMDOther Clinical Science TotalL"},"Other Clinical Science Total",6,"AAMC","Academic","Public","Chief","MD","2021-2022",314896,{"$f":"(((AAMC_Raw_Data_for_FY22[[#This Row],[Median]]-AAMC_Raw_Data_for_FY22[[#This Row],[25th]])/25)*5) + AAMC_Raw_Data_for_FY22[[#This Row],[25th]]","v":328926.8},{"$f":"(((AAMC_Raw_Data_for_FY22[[#This Row],[Median]]-AAMC_Raw_Data_for_FY22[[#This Row],[25th]])/25)*10) + AAMC_Raw_Data_for_FY22[[#This Row],[25th]]","v":342957.6},{"$f":"(((AAMC_Raw_Data_for_FY22[[#This Row],[Median]]-AAMC_Raw_Data_for_FY22[[#This Row],[25th]])/25)*15) + AAMC_Raw_Data_for_FY22[[#This Row],[25th]]","v":356988.4},{"$f":"(((AAMC_Raw_Data_for_FY22[[#This Row],[Median]]-AAMC_Raw_Data_for_FY22[[#This Row],[25th]])/25)*20) + AAMC_Raw_Data_for_FY22[[#This Row],[25th]]","v":371019.2},385050,{"$f":"(((AAMC_Raw_Data_for_FY22[[#This Row],[75th]]-AAMC_Raw_Data_for_FY22[[#This Row],[Median]])/25)*5) + AAMC_Raw_Data_for_FY22[[#This Row],[Median]]","v":404665.4},{"$f":"(((AAMC_Raw_Data_for_FY22[[#This Row],[75th]]-AAMC_Raw_Data_for_FY22[[#This Row],[Median]])/25)*10) + AAMC_Raw_Data_for_FY22[[#This Row],[Median]]","v":424280.8},{"$f":"(((AAMC_Raw_Data_for_FY22[[#This Row],[75th]]-AAMC_Raw_Data_for_FY22[[#This Row],[Median]])/25)*15) + AAMC_Raw_Data_for_FY22[[#This Row],[Median]]","v":443896.2},{"$f":"(((AAMC_Raw_Data_for_FY22[[#This Row],[75th]]-AAMC_Raw_Data_for_FY22[[#This Row],[Median]])/25)*20) + AAMC_Raw_Data_for_FY22[[#This Row],[Median]]","v":463511.6},483127,{"$f":"(((AAMC_Raw_Data_for_FY22[[#This Row],[75th]]-AAMC_Raw_Data_for_FY22[[#This Row],[Median]])/25)*30) + AAMC_Raw_Data_for_FY22[[#This Row],[Median]]","v":502742.4},{"$f":"(((AAMC_Raw_Data_for_FY22[[#This Row],[75th]]-AAMC_Raw_Data_for_FY22[[#This Row],[Median]])/25)*35) + AAMC_Raw_Data_for_FY22[[#This Row],[Median]]","v":522357.8},{"$f":"(((AAMC_Raw_Data_for_FY22[[#This Row],[75th]]-AAMC_Raw_Data_for_FY22[[#This Row],[Median]])/25)*40) + AAMC_Raw_Data_for_FY22[[#This Row],[Median]]","v":541973.19999999995}]
[{"$f":"AAMC_Raw_Data_for_FY22[[#This Row],[Source]]&AAMC_Raw_Data_for_FY22[[#This Row],[Type]]&AAMC_Raw_Data_for_FY22[[#This Row],[School Subset]]&AAMC_Raw_Data_for_FY22[[#This Row],[Rank]]&AAMC_Raw_Data_for_FY22[[#This Row],[Degree]]&AAMC_Raw_Data_for_FY22[[#This Row],[Department / Specialty]]&\"L\"","v":"AAMCAcademicPublicChairMDOther Clinical Science TotalL"},"Other Clinical Science Total",1,"AAMC","Academic","Public","Chair","MD","2021-2022",496083,{"$f":"(((AAMC_Raw_Data_for_FY22[[#This Row],[Median]]-AAMC_Raw_Data_for_FY22[[#This Row],[25th]])/25)*5) + AAMC_Raw_Data_for_FY22[[#This Row],[25th]]","v":514716.8},{"$f":"(((AAMC_Raw_Data_for_FY22[[#This Row],[Median]]-AAMC_Raw_Data_for_FY22[[#This Row],[25th]])/25)*10) + AAMC_Raw_Data_for_FY22[[#This Row],[25th]]","v":533350.6},{"$f":"(((AAMC_Raw_Data_for_FY22[[#This Row],[Median]]-AAMC_Raw_Data_for_FY22[[#This Row],[25th]])/25)*15) + AAMC_Raw_Data_for_FY22[[#This Row],[25th]]","v":551984.4},{"$f":"(((AAMC_Raw_Data_for_FY22[[#This Row],[Median]]-AAMC_Raw_Data_for_FY22[[#This Row],[25th]])/25)*20) + AAMC_Raw_Data_for_FY22[[#This Row],[25th]]","v":570618.19999999995},589252,{"$f":"(((AAMC_Raw_Data_for_FY22[[#This Row],[75th]]-AAMC_Raw_Data_for_FY22[[#This Row],[Median]])/25)*5) + AAMC_Raw_Data_for_FY22[[#This Row],[Median]]","v":610381.80000000005},{"$f":"(((AAMC_Raw_Data_for_FY22[[#This Row],[75th]]-AAMC_Raw_Data_for_FY22[[#This Row],[Median]])/25)*10) + AAMC_Raw_Data_for_FY22[[#This Row],[Median]]","v":631511.6},{"$f":"(((AAMC_Raw_Data_for_FY22[[#This Row],[75th]]-AAMC_Raw_Data_for_FY22[[#This Row],[Median]])/25)*15) + AAMC_Raw_Data_for_FY22[[#This Row],[Median]]","v":652641.4},{"$f":"(((AAMC_Raw_Data_for_FY22[[#This Row],[75th]]-AAMC_Raw_Data_for_FY22[[#This Row],[Median]])/25)*20) + AAMC_Raw_Data_for_FY22[[#This Row],[Median]]","v":673771.2},694901,{"$f":"(((AAMC_Raw_Data_for_FY22[[#This Row],[75th]]-AAMC_Raw_Data_for_FY22[[#This Row],[Median]])/25)*30) + AAMC_Raw_Data_for_FY22[[#This Row],[Median]]","v":716030.8},{"$f":"(((AAMC_Raw_Data_for_FY22[[#This Row],[75th]]-AAMC_Raw_Data_for_FY22[[#This Row],[Median]])/25)*35) + AAMC_Raw_Data_for_FY22[[#This Row],[Median]]","v":737160.6},{"$f":"(((AAMC_Raw_Data_for_FY22[[#This Row],[75th]]-AAMC_Raw_Data_for_FY22[[#This Row],[Median]])/25)*40) + AAMC_Raw_Data_for_FY22[[#This Row],[Median]]","v":758290.4}]
[{"$f":"AAMC_Raw_Data_for_FY22[[#This Row],[Source]]&AAMC_Raw_Data_for_FY22[[#This Row],[Type]]&AAMC_Raw_Data_for_FY22[[#This Row],[School Subset]]&AAMC_Raw_Data_for_FY22[[#This Row],[Rank]]&AAMC_Raw_Data_for_FY22[[#This Row],[Degree]]&AAMC_Raw_Data_for_FY22[[#This Row],[Department / Specialty]]&\"L\"","v":"AAMCAcademicPublicInstructorMDCommunity HealthL"},"Community Health",5,"AAMC","Academic","Public","Instructor","MD","2021-2022",null,{"$f":"(((AAMC_Raw_Data_for_FY22[[#This Row],[Median]]-AAMC_Raw_Data_for_FY22[[#This Row],[25th]])/25)*5) + AAMC_Raw_Data_for_FY22[[#This Row],[25th]]","v":0},{"$f":"(((AAMC_Raw_Data_for_FY22[[#This Row],[Median]]-AAMC_Raw_Data_for_FY22[[#This Row],[25th]])/25)*10) + AAMC_Raw_Data_for_FY22[[#This Row],[25th]]","v":0},{"$f":"(((AAMC_Raw_Data_for_FY22[[#This Row],[Median]]-AAMC_Raw_Data_for_FY22[[#This Row],[25th]])/25)*15) + AAMC_Raw_Data_for_FY22[[#This Row],[25th]]","v":0},{"$f":"(((AAMC_Raw_Data_for_FY22[[#This Row],[Median]]-AAMC_Raw_Data_for_FY22[[#This Row],[25th]])/25)*20) + AAMC_Raw_Data_for_FY22[[#This Row],[25th]]","v":0},null,{"$f":"(((AAMC_Raw_Data_for_FY22[[#This Row],[75th]]-AAMC_Raw_Data_for_FY22[[#This Row],[Median]])/25)*5) + AAMC_Raw_Data_for_FY22[[#This Row],[Median]]","v":0},{"$f":"(((AAMC_Raw_Data_for_FY22[[#This Row],[75th]]-AAMC_Raw_Data_for_FY22[[#This Row],[Median]])/25)*10) + AAMC_Raw_Data_for_FY22[[#This Row],[Median]]","v":0},{"$f":"(((AAMC_Raw_Data_for_FY22[[#This Row],[75th]]-AAMC_Raw_Data_for_FY22[[#This Row],[Median]])/25)*15) + AAMC_Raw_Data_for_FY22[[#This Row],[Median]]","v":0},{"$f":"(((AAMC_Raw_Data_for_FY22[[#This Row],[75th]]-AAMC_Raw_Data_for_FY22[[#This Row],[Median]])/25)*20) + AAMC_Raw_Data_for_FY22[[#This Row],[Median]]","v":0},null,{"$f":"(((AAMC_Raw_Data_for_FY22[[#This Row],[75th]]-AAMC_Raw_Data_for_FY22[[#This Row],[Median]])/25)*30) + AAMC_Raw_Data_for_FY22[[#This Row],[Median]]","v":0},{"$f":"(((AAMC_Raw_Data_for_FY22[[#This Row],[75th]]-AAMC_Raw_Data_for_FY22[[#This Row],[Median]])/25)*35) + AAMC_Raw_Data_for_FY22[[#This Row],[Median]]","v":0},{"$f":"(((AAMC_Raw_Data_for_FY22[[#This Row],[75th]]-AAMC_Raw_Data_for_FY22[[#This Row],[Median]])/25)*40) + AAMC_Raw_Data_for_FY22[[#This Row],[Median]]","v":0}]
[{"$f":"AAMC_Raw_Data_for_FY22[[#This Row],[Source]]&AAMC_Raw_Data_for_FY22[[#This Row],[Type]]&AAMC_Raw_Data_for_FY22[[#This Row],[School Subset]]&AAMC_Raw_Data_for_FY22[[#This Row],[Rank]]&AAMC_Raw_Data_for_FY22[[#This Row],[Degree]]&AAMC_Raw_Data_for_FY22[[#This Row],[Department / Specialty]]&\"L\"","v":"AAMCAcademicPublicAssistantMDCommunity HealthL"},"Community Health",4,"AAMC","Academic","Public","Assistant","MD","2021-2022",148274,{"$f":"(((AAMC_Raw_Data_for_FY22[[#This Row],[Median]]-AAMC_Raw_Data_for_FY22[[#This Row],[25th]])/25)*5) + AAMC_Raw_Data_for_FY22[[#This Row],[25th]]","v":159502},{"$f":"(((AAMC_Raw_Data_for_FY22[[#This Row],[Median]]-AAMC_Raw_Data_for_FY22[[#This Row],[25th]])/25)*10) + AAMC_Raw_Data_for_FY22[[#This Row],[25th]]","v":170730},{"$f":"(((AAMC_Raw_Data_for_FY22[[#This Row],[Median]]-AAMC_Raw_Data_for_FY22[[#This Row],[25th]])/25)*15) + AAMC_Raw_Data_for_FY22[[#This Row],[25th]]","v":181958},{"$f":"(((AAMC_Raw_Data_for_FY22[[#This Row],[Median]]-AAMC_Raw_Data_for_FY22[[#This Row],[25th]])/25)*20) + AAMC_Raw_Data_for_FY22[[#This Row],[25th]]","v":193186},204414,{"$f":"(((AAMC_Raw_Data_for_FY22[[#This Row],[75th]]-AAMC_Raw_Data_for_FY22[[#This Row],[Median]])/25)*5) + AAMC_Raw_Data_for_FY22[[#This Row],[Median]]","v":205014},{"$f":"(((AAMC_Raw_Data_for_FY22[[#This Row],[75th]]-AAMC_Raw_Data_for_FY22[[#This Row],[Median]])/25)*10) + AAMC_Raw_Data_for_FY22[[#This Row],[Median]]","v":205614},{"$f":"(((AAMC_Raw_Data_for_FY22[[#This Row],[75th]]-AAMC_Raw_Data_for_FY22[[#This Row],[Median]])/25)*15) + AAMC_Raw_Data_for_FY22[[#This Row],[Median]]","v":206214},{"$f":"(((AAMC_Raw_Data_for_FY22[[#This Row],[75th]]-AAMC_Raw_Data_for_FY22[[#This Row],[Median]])/25)*20) + AAMC_Raw_Data_for_FY22[[#This Row],[Median]]","v":206814},207414,{"$f":"(((AAMC_Raw_Data_for_FY22[[#This Row],[75th]]-AAMC_Raw_Data_for_FY22[[#This Row],[Median]])/25)*30) + AAMC_Raw_Data_for_FY22[[#This Row],[Median]]","v":208014},{"$f":"(((AAMC_Raw_Data_for_FY22[[#This Row],[75th]]-AAMC_Raw_Data_for_FY22[[#This Row],[Median]])/25)*35) + AAMC_Raw_Data_for_FY22[[#This Row],[Median]]","v":208614},{"$f":"(((AAMC_Raw_Data_for_FY22[[#This Row],[75th]]-AAMC_Raw_Data_for_FY22[[#This Row],[Median]])/25)*40) + AAMC_Raw_Data_for_FY22[[#This Row],[Median]]","v":209214}]
[{"$f":"AAMC_Raw_Data_for_FY22[[#This Row],[Source]]&AAMC_Raw_Data_for_FY22[[#This Row],[Type]]&AAMC_Raw_Data_for_FY22[[#This Row],[School Subset]]&AAMC_Raw_Data_for_FY22[[#This Row],[Rank]]&AAMC_Raw_Data_for_FY22[[#This Row],[Degree]]&AAMC_Raw_Data_for_FY22[[#This Row],[Department / Specialty]]&\"L\"","v":"AAMCAcademicPublicAssociateMDCommunity HealthL"},"Community Health",3,"AAMC","Academic","Public","Associate","MD","2021-2022",null,{"$f":"(((AAMC_Raw_Data_for_FY22[[#This Row],[Median]]-AAMC_Raw_Data_for_FY22[[#This Row],[25th]])/25)*5) + AAMC_Raw_Data_for_FY22[[#This Row],[25th]]","v":0},{"$f":"(((AAMC_Raw_Data_for_FY22[[#This Row],[Median]]-AAMC_Raw_Data_for_FY22[[#This Row],[25th]])/25)*10) + AAMC_Raw_Data_for_FY22[[#This Row],[25th]]","v":0},{"$f":"(((AAMC_Raw_Data_for_FY22[[#This Row],[Median]]-AAMC_Raw_Data_for_FY22[[#This Row],[25th]])/25)*15) + AAMC_Raw_Data_for_FY22[[#This Row],[25th]]","v":0},{"$f":"(((AAMC_Raw_Data_for_FY22[[#This Row],[Median]]-AAMC_Raw_Data_for_FY22[[#This Row],[25th]])/25)*20) + AAMC_Raw_Data_for_FY22[[#This Row],[25th]]","v":0},null,{"$f":"(((AAMC_Raw_Data_for_FY22[[#This Row],[75th]]-AAMC_Raw_Data_for_FY22[[#This Row],[Median]])/25)*5) + AAMC_Raw_Data_for_FY22[[#This Row],[Median]]","v":0},{"$f":"(((AAMC_Raw_Data_for_FY22[[#This Row],[75th]]-AAMC_Raw_Data_for_FY22[[#This Row],[Median]])/25)*10) + AAMC_Raw_Data_for_FY22[[#This Row],[Median]]","v":0},{"$f":"(((AAMC_Raw_Data_for_FY22[[#This Row],[75th]]-AAMC_Raw_Data_for_FY22[[#This Row],[Median]])/25)*15) + AAMC_Raw_Data_for_FY22[[#This Row],[Median]]","v":0},{"$f":"(((AAMC_Raw_Data_for_FY22[[#This Row],[75th]]-AAMC_Raw_Data_for_FY22[[#This Row],[Median]])/25)*20) + AAMC_Raw_Data_for_FY22[[#This Row],[Median]]","v":0},null,{"$f":"(((AAMC_Raw_Data_for_FY22[[#This Row],[75th]]-AAMC_Raw_Data_for_FY22[[#This Row],[Median]])/25)*30) + AAMC_Raw_Data_for_FY22[[#This Row],[Median]]","v":0},{"$f":"(((AAMC_Raw_Data_for_FY22[[#This Row],[75th]]-AAMC_Raw_Data_for_FY22[[#This Row],[Median]])/25)*35) + AAMC_Raw_Data_for_FY22[[#This Row],[Median]]","v":0},{"$f":"(((AAMC_Raw_Data_for_FY22[[#This Row],[75th]]-AAMC_Raw_Data_for_FY22[[#This Row],[Median]])/25)*40) + AAMC_Raw_Data_for_FY22[[#This Row],[Median]]","v":0}]
[{"$f":"AAMC_Raw_Data_for_FY22[[#This Row],[Source]]&AAMC_Raw_Data_for_FY22[[#This Row],[Type]]&AAMC_Raw_Data_for_FY22[[#This Row],[School Subset]]&AAMC_Raw_Data_for_FY22[[#This Row],[Rank]]&AAMC_Raw_Data_for_FY22[[#This Row],[Degree]]&AAMC_Raw_Data_for_FY22[[#This Row],[Department / Specialty]]&\"L\"","v":"AAMCAcademicPublicProfessorMDCommunity HealthL"},"Community Health",2,"AAMC","Academic","Public","Professor","MD","2021-2022",248262,{"$f":"(((AAMC_Raw_Data_for_FY22[[#This Row],[Median]]-AAMC_Raw_Data_for_FY22[[#This Row],[25th]])/25)*5) + AAMC_Raw_Data_for_FY22[[#This Row],[25th]]","v":253279.8},{"$f":"(((AAMC_Raw_Data_for_FY22[[#This Row],[Median]]-AAMC_Raw_Data_for_FY22[[#This Row],[25th]])/25)*10) + AAMC_Raw_Data_for_FY22[[#This Row],[25th]]","v":258297.60000000001},{"$f":"(((AAMC_Raw_Data_for_FY22[[#This Row],[Median]]-AAMC_Raw_Data_for_FY22[[#This Row],[25th]])/25)*15) + AAMC_Raw_Data_for_FY22[[#This Row],[25th]]","v":263315.40000000002},{"$f":"(((AAMC_Raw_Data_for_FY22[[#This Row],[Median]]-AAMC_Raw_Data_for_FY22[[#This Row],[25th]])/25)*20) + AAMC_Raw_Data_for_FY22[[#This Row],[25th]]","v":268333.2},273351,{"$f":"(((AAMC_Raw_Data_for_FY22[[#This Row],[75th]]-AAMC_Raw_Data_for_FY22[[#This Row],[Median]])/25)*5) + AAMC_Raw_Data_for_FY22[[#This Row],[Median]]","v":282071},{"$f":"(((AAMC_Raw_Data_for_FY22[[#This Row],[75th]]-AAMC_Raw_Data_for_FY22[[#This Row],[Median]])/25)*10) + AAMC_Raw_Data_for_FY22[[#This Row],[Median]]","v":290791},{"$f":"(((AAMC_Raw_Data_for_FY22[[#This Row],[75th]]-AAMC_Raw_Data_for_FY22[[#This Row],[Median]])/25)*15) + AAMC_Raw_Data_for_FY22[[#This Row],[Median]]","v":299511},{"$f":"(((AAMC_Raw_Data_for_FY22[[#This Row],[75th]]-AAMC_Raw_Data_for_FY22[[#This Row],[Median]])/25)*20) + AAMC_Raw_Data_for_FY22[[#This Row],[Median]]","v":308231},316951,{"$f":"(((AAMC_Raw_Data_for_FY22[[#This Row],[75th]]-AAMC_Raw_Data_for_FY22[[#This Row],[Median]])/25)*30) + AAMC_Raw_Data_for_FY22[[#This Row],[Median]]","v":325671},{"$f":"(((AAMC_Raw_Data_for_FY22[[#This Row],[75th]]-AAMC_Raw_Data_for_FY22[[#This Row],[Median]])/25)*35) + AAMC_Raw_Data_for_FY22[[#This Row],[Median]]","v":334391},{"$f":"(((AAMC_Raw_Data_for_FY22[[#This Row],[75th]]-AAMC_Raw_Data_for_FY22[[#This Row],[Median]])/25)*40) + AAMC_Raw_Data_for_FY22[[#This Row],[Median]]","v":343111}]
[{"$f":"AAMC_Raw_Data_for_FY22[[#This Row],[Source]]&AAMC_Raw_Data_for_FY22[[#This Row],[Type]]&AAMC_Raw_Data_for_FY22[[#This Row],[School Subset]]&AAMC_Raw_Data_for_FY22[[#This Row],[Rank]]&AAMC_Raw_Data_for_FY22[[#This Row],[Degree]]&AAMC_Raw_Data_for_FY22[[#This Row],[Department / Specialty]]&\"L\"","v":"AAMCAcademicPublicChiefMDCommunity HealthL"},"Community Health",6,"AAMC","Academic","Public","Chief","MD","2021-2022",null,{"$f":"(((AAMC_Raw_Data_for_FY22[[#This Row],[Median]]-AAMC_Raw_Data_for_FY22[[#This Row],[25th]])/25)*5) + AAMC_Raw_Data_for_FY22[[#This Row],[25th]]","v":0},{"$f":"(((AAMC_Raw_Data_for_FY22[[#This Row],[Median]]-AAMC_Raw_Data_for_FY22[[#This Row],[25th]])/25)*10) + AAMC_Raw_Data_for_FY22[[#This Row],[25th]]","v":0},{"$f":"(((AAMC_Raw_Data_for_FY22[[#This Row],[Median]]-AAMC_Raw_Data_for_FY22[[#This Row],[25th]])/25)*15) + AAMC_Raw_Data_for_FY22[[#This Row],[25th]]","v":0},{"$f":"(((AAMC_Raw_Data_for_FY22[[#This Row],[Median]]-AAMC_Raw_Data_for_FY22[[#This Row],[25th]])/25)*20) + AAMC_Raw_Data_for_FY22[[#This Row],[25th]]","v":0},null,{"$f":"(((AAMC_Raw_Data_for_FY22[[#This Row],[75th]]-AAMC_Raw_Data_for_FY22[[#This Row],[Median]])/25)*5) + AAMC_Raw_Data_for_FY22[[#This Row],[Median]]","v":0},{"$f":"(((AAMC_Raw_Data_for_FY22[[#This Row],[75th]]-AAMC_Raw_Data_for_FY22[[#This Row],[Median]])/25)*10) + AAMC_Raw_Data_for_FY22[[#This Row],[Median]]","v":0},{"$f":"(((AAMC_Raw_Data_for_FY22[[#This Row],[75th]]-AAMC_Raw_Data_for_FY22[[#This Row],[Median]])/25)*15) + AAMC_Raw_Data_for_FY22[[#This Row],[Median]]","v":0},{"$f":"(((AAMC_Raw_Data_for_FY22[[#This Row],[75th]]-AAMC_Raw_Data_for_FY22[[#This Row],[Median]])/25)*20) + AAMC_Raw_Data_for_FY22[[#This Row],[Median]]","v":0},null,{"$f":"(((AAMC_Raw_Data_for_FY22[[#This Row],[75th]]-AAMC_Raw_Data_for_FY22[[#This Row],[Median]])/25)*30) + AAMC_Raw_Data_for_FY22[[#This Row],[Median]]","v":0},{"$f":"(((AAMC_Raw_Data_for_FY22[[#This Row],[75th]]-AAMC_Raw_Data_for_FY22[[#This Row],[Median]])/25)*35) + AAMC_Raw_Data_for_FY22[[#This Row],[Median]]","v":0},{"$f":"(((AAMC_Raw_Data_for_FY22[[#This Row],[75th]]-AAMC_Raw_Data_for_FY22[[#This Row],[Median]])/25)*40) + AAMC_Raw_Data_for_FY22[[#This Row],[Median]]","v":0}]
[{"$f":"AAMC_Raw_Data_for_FY22[[#This Row],[Source]]&AAMC_Raw_Data_for_FY22[[#This Row],[Type]]&AAMC_Raw_Data_for_FY22[[#This Row],[School Subset]]&AAMC_Raw_Data_for_FY22[[#This Row],[Rank]]&AAMC_Raw_Data_for_FY22[[#This Row],[Degree]]&AAMC_Raw_Data_for_FY22[[#This Row],[Department / Specialty]]&\"L\"","v":"AAMCAcademicPublicInstructorMDEmergency MedicineL"},"Emergency Medicine",5,"AAMC","Academic","Public","Instructor","MD","2021-2022",182614,{"$f":"(((AAMC_Raw_Data_for_FY22[[#This Row],[Median]]-AAMC_Raw_Data_for_FY22[[#This Row],[25th]])/25)*5) + AAMC_Raw_Data_for_FY22[[#This Row],[25th]]","v":209266.4},{"$f":"(((AAMC_Raw_Data_for_FY22[[#This Row],[Median]]-AAMC_Raw_Data_for_FY22[[#This Row],[25th]])/25)*10) + AAMC_Raw_Data_for_FY22[[#This Row],[25th]]","v":235918.8},{"$f":"(((AAMC_Raw_Data_for_FY22[[#This Row],[Median]]-AAMC_Raw_Data_for_FY22[[#This Row],[25th]])/25)*15) + AAMC_Raw_Data_for_FY22[[#This Row],[25th]]","v":262571.2},{"$f":"(((AAMC_Raw_Data_for_FY22[[#This Row],[Median]]-AAMC_Raw_Data_for_FY22[[#This Row],[25th]])/25)*20) + AAMC_Raw_Data_for_FY22[[#This Row],[25th]]","v":289223.59999999998},315876,{"$f":"(((AAMC_Raw_Data_for_FY22[[#This Row],[75th]]-AAMC_Raw_Data_for_FY22[[#This Row],[Median]])/25)*5) + AAMC_Raw_Data_for_FY22[[#This Row],[Median]]","v":328504.2},{"$f":"(((AAMC_Raw_Data_for_FY22[[#This Row],[75th]]-AAMC_Raw_Data_for_FY22[[#This Row],[Median]])/25)*10) + AAMC_Raw_Data_for_FY22[[#This Row],[Median]]","v":341132.4},{"$f":"(((AAMC_Raw_Data_for_FY22[[#This Row],[75th]]-AAMC_Raw_Data_for_FY22[[#This Row],[Median]])/25)*15) + AAMC_Raw_Data_for_FY22[[#This Row],[Median]]","v":353760.6},{"$f":"(((AAMC_Raw_Data_for_FY22[[#This Row],[75th]]-AAMC_Raw_Data_for_FY22[[#This Row],[Median]])/25)*20) + AAMC_Raw_Data_for_FY22[[#This Row],[Median]]","v":366388.8},379017,{"$f":"(((AAMC_Raw_Data_for_FY22[[#This Row],[75th]]-AAMC_Raw_Data_for_FY22[[#This Row],[Median]])/25)*30) + AAMC_Raw_Data_for_FY22[[#This Row],[Median]]","v":391645.2},{"$f":"(((AAMC_Raw_Data_for_FY22[[#This Row],[75th]]-AAMC_Raw_Data_for_FY22[[#This Row],[Median]])/25)*35) + AAMC_Raw_Data_for_FY22[[#This Row],[Median]]","v":404273.4},{"$f":"(((AAMC_Raw_Data_for_FY22[[#This Row],[75th]]-AAMC_Raw_Data_for_FY22[[#This Row],[Median]])/25)*40) + AAMC_Raw_Data_for_FY22[[#This Row],[Median]]","v":416901.6}]
[{"$f":"AAMC_Raw_Data_for_FY22[[#This Row],[Source]]&AAMC_Raw_Data_for_FY22[[#This Row],[Type]]&AAMC_Raw_Data_for_FY22[[#This Row],[School Subset]]&AAMC_Raw_Data_for_FY22[[#This Row],[Rank]]&AAMC_Raw_Data_for_FY22[[#This Row],[Degree]]&AAMC_Raw_Data_for_FY22[[#This Row],[Department / Specialty]]&\"L\"","v":"AAMCAcademicPublicAssistantMDEmergency MedicineL"},"Emergency Medicine",4,"AAMC","Academic","Public","Assistant","MD","2021-2022",283176,{"$f":"(((AAMC_Raw_Data_for_FY22[[#This Row],[Median]]-AAMC_Raw_Data_for_FY22[[#This Row],[25th]])/25)*5) + AAMC_Raw_Data_for_FY22[[#This Row],[25th]]","v":288152.8},{"$f":"(((AAMC_Raw_Data_for_FY22[[#This Row],[Median]]-AAMC_Raw_Data_for_FY22[[#This Row],[25th]])/25)*10) + AAMC_Raw_Data_for_FY22[[#This Row],[25th]]","v":293129.59999999998},{"$f":"(((AAMC_Raw_Data_for_FY22[[#This Row],[Median]]-AAMC_Raw_Data_for_FY22[[#This Row],[25th]])/25)*15) + AAMC_Raw_Data_for_FY22[[#This Row],[25th]]","v":298106.40000000002},{"$f":"(((AAMC_Raw_Data_for_FY22[[#This Row],[Median]]-AAMC_Raw_Data_for_FY22[[#This Row],[25th]])/25)*20) + AAMC_Raw_Data_for_FY22[[#This Row],[25th]]","v":303083.2},308060,{"$f":"(((AAMC_Raw_Data_for_FY22[[#This Row],[75th]]-AAMC_Raw_Data_for_FY22[[#This Row],[Median]])/25)*5) + AAMC_Raw_Data_for_FY22[[#This Row],[Median]]","v":314915.59999999998},{"$f":"(((AAMC_Raw_Data_for_FY22[[#This Row],[75th]]-AAMC_Raw_Data_for_FY22[[#This Row],[Median]])/25)*10) + AAMC_Raw_Data_for_FY22[[#This Row],[Median]]","v":321771.2},{"$f":"(((AAMC_Raw_Data_for_FY22[[#This Row],[75th]]-AAMC_Raw_Data_for_FY22[[#This Row],[Median]])/25)*15) + AAMC_Raw_Data_for_FY22[[#This Row],[Median]]","v":328626.8},{"$f":"(((AAMC_Raw_Data_for_FY22[[#This Row],[75th]]-AAMC_Raw_Data_for_FY22[[#This Row],[Median]])/25)*20) + AAMC_Raw_Data_for_FY22[[#This Row],[Median]]","v":335482.40000000002},342338,{"$f":"(((AAMC_Raw_Data_for_FY22[[#This Row],[75th]]-AAMC_Raw_Data_for_FY22[[#This Row],[Median]])/25)*30) + AAMC_Raw_Data_for_FY22[[#This Row],[Median]]","v":349193.6},{"$f":"(((AAMC_Raw_Data_for_FY22[[#This Row],[75th]]-AAMC_Raw_Data_for_FY22[[#This Row],[Median]])/25)*35) + AAMC_Raw_Data_for_FY22[[#This Row],[Median]]","v":356049.2},{"$f":"(((AAMC_Raw_Data_for_FY22[[#This Row],[75th]]-AAMC_Raw_Data_for_FY22[[#This Row],[Median]])/25)*40) + AAMC_Raw_Data_for_FY22[[#This Row],[Median]]","v":362904.8}]
[{"$f":"AAMC_Raw_Data_for_FY22[[#This Row],[Source]]&AAMC_Raw_Data_for_FY22[[#This Row],[Type]]&AAMC_Raw_Data_for_FY22[[#This Row],[School Subset]]&AAMC_Raw_Data_for_FY22[[#This Row],[Rank]]&AAMC_Raw_Data_for_FY22[[#This Row],[Degree]]&AAMC_Raw_Data_for_FY22[[#This Row],[Department / Specialty]]&\"L\"","v":"AAMCAcademicPublicAssociateMDEmergency MedicineL"},"Emergency Medicine",3,"AAMC","Academic","Public","Associate","MD","2021-2022",310619,{"$f":"(((AAMC_Raw_Data_for_FY22[[#This Row],[Median]]-AAMC_Raw_Data_for_FY22[[#This Row],[25th]])/25)*5) + AAMC_Raw_Data_for_FY22[[#This Row],[25th]]","v":316136.2},{"$f":"(((AAMC_Raw_Data_for_FY22[[#This Row],[Median]]-AAMC_Raw_Data_for_FY22[[#This Row],[25th]])/25)*10) + AAMC_Raw_Data_for_FY22[[#This Row],[25th]]","v":321653.40000000002},{"$f":"(((AAMC_Raw_Data_for_FY22[[#This Row],[Median]]-AAMC_Raw_Data_for_FY22[[#This Row],[25th]])/25)*15) + AAMC_Raw_Data_for_FY22[[#This Row],[25th]]","v":327170.59999999998},{"$f":"(((AAMC_Raw_Data_for_FY22[[#This Row],[Median]]-AAMC_Raw_Data_for_FY22[[#This Row],[25th]])/25)*20) + AAMC_Raw_Data_for_FY22[[#This Row],[25th]]","v":332687.8},338205,{"$f":"(((AAMC_Raw_Data_for_FY22[[#This Row],[75th]]-AAMC_Raw_Data_for_FY22[[#This Row],[Median]])/25)*5) + AAMC_Raw_Data_for_FY22[[#This Row],[Median]]","v":344585.4},{"$f":"(((AAMC_Raw_Data_for_FY22[[#This Row],[75th]]-AAMC_Raw_Data_for_FY22[[#This Row],[Median]])/25)*10) + AAMC_Raw_Data_for_FY22[[#This Row],[Median]]","v":350965.8},{"$f":"(((AAMC_Raw_Data_for_FY22[[#This Row],[75th]]-AAMC_Raw_Data_for_FY22[[#This Row],[Median]])/25)*15) + AAMC_Raw_Data_for_FY22[[#This Row],[Median]]","v":357346.2},{"$f":"(((AAMC_Raw_Data_for_FY22[[#This Row],[75th]]-AAMC_Raw_Data_for_FY22[[#This Row],[Median]])/25)*20) + AAMC_Raw_Data_for_FY22[[#This Row],[Median]]","v":363726.6},370107,{"$f":"(((AAMC_Raw_Data_for_FY22[[#This Row],[75th]]-AAMC_Raw_Data_for_FY22[[#This Row],[Median]])/25)*30) + AAMC_Raw_Data_for_FY22[[#This Row],[Median]]","v":376487.4},{"$f":"(((AAMC_Raw_Data_for_FY22[[#This Row],[75th]]-AAMC_Raw_Data_for_FY22[[#This Row],[Median]])/25)*35) + AAMC_Raw_Data_for_FY22[[#This Row],[Median]]","v":382867.8},{"$f":"(((AAMC_Raw_Data_for_FY22[[#This Row],[75th]]-AAMC_Raw_Data_for_FY22[[#This Row],[Median]])/25)*40) + AAMC_Raw_Data_for_FY22[[#This Row],[Median]]","v":389248.2}]
[{"$f":"AAMC_Raw_Data_for_FY22[[#This Row],[Source]]&AAMC_Raw_Data_for_FY22[[#This Row],[Type]]&AAMC_Raw_Data_for_FY22[[#This Row],[School Subset]]&AAMC_Raw_Data_for_FY22[[#This Row],[Rank]]&AAMC_Raw_Data_for_FY22[[#This Row],[Degree]]&AAMC_Raw_Data_for_FY22[[#This Row],[Department / Specialty]]&\"L\"","v":"AAMCAcademicPublicProfessorMDEmergency MedicineL"},"Emergency Medicine",2,"AAMC","Academic","Public","Professor","MD","2021-2022",327949,{"$f":"(((AAMC_Raw_Data_for_FY22[[#This Row],[Median]]-AAMC_Raw_Data_for_FY22[[#This Row],[25th]])/25)*5) + AAMC_Raw_Data_for_FY22[[#This Row],[25th]]","v":334878.40000000002},{"$f":"(((AAMC_Raw_Data_for_FY22[[#This Row],[Median]]-AAMC_Raw_Data_for_FY22[[#This Row],[25th]])/25)*10) + AAMC_Raw_Data_for_FY22[[#This Row],[25th]]","v":341807.8},{"$f":"(((AAMC_Raw_Data_for_FY22[[#This Row],[Median]]-AAMC_Raw_Data_for_FY22[[#This Row],[25th]])/25)*15) + AAMC_Raw_Data_for_FY22[[#This Row],[25th]]","v":348737.2},{"$f":"(((AAMC_Raw_Data_for_FY22[[#This Row],[Median]]-AAMC_Raw_Data_for_FY22[[#This Row],[25th]])/25)*20) + AAMC_Raw_Data_for_FY22[[#This Row],[25th]]","v":355666.6},362596,{"$f":"(((AAMC_Raw_Data_for_FY22[[#This Row],[75th]]-AAMC_Raw_Data_for_FY22[[#This Row],[Median]])/25)*5) + AAMC_Raw_Data_for_FY22[[#This Row],[Median]]","v":373576},{"$f":"(((AAMC_Raw_Data_for_FY22[[#This Row],[75th]]-AAMC_Raw_Data_for_FY22[[#This Row],[Median]])/25)*10) + AAMC_Raw_Data_for_FY22[[#This Row],[Median]]","v":384556},{"$f":"(((AAMC_Raw_Data_for_FY22[[#This Row],[75th]]-AAMC_Raw_Data_for_FY22[[#This Row],[Median]])/25)*15) + AAMC_Raw_Data_for_FY22[[#This Row],[Median]]","v":395536},{"$f":"(((AAMC_Raw_Data_for_FY22[[#This Row],[75th]]-AAMC_Raw_Data_for_FY22[[#This Row],[Median]])/25)*20) + AAMC_Raw_Data_for_FY22[[#This Row],[Median]]","v":406516},417496,{"$f":"(((AAMC_Raw_Data_for_FY22[[#This Row],[75th]]-AAMC_Raw_Data_for_FY22[[#This Row],[Median]])/25)*30) + AAMC_Raw_Data_for_FY22[[#This Row],[Median]]","v":428476},{"$f":"(((AAMC_Raw_Data_for_FY22[[#This Row],[75th]]-AAMC_Raw_Data_for_FY22[[#This Row],[Median]])/25)*35) + AAMC_Raw_Data_for_FY22[[#This Row],[Median]]","v":439456},{"$f":"(((AAMC_Raw_Data_for_FY22[[#This Row],[75th]]-AAMC_Raw_Data_for_FY22[[#This Row],[Median]])/25)*40) + AAMC_Raw_Data_for_FY22[[#This Row],[Median]]","v":450436}]
[{"$f":"AAMC_Raw_Data_for_FY22[[#This Row],[Source]]&AAMC_Raw_Data_for_FY22[[#This Row],[Type]]&AAMC_Raw_Data_for_FY22[[#This Row],[School Subset]]&AAMC_Raw_Data_for_FY22[[#This Row],[Rank]]&AAMC_Raw_Data_for_FY22[[#This Row],[Degree]]&AAMC_Raw_Data_for_FY22[[#This Row],[Department / Specialty]]&\"L\"","v":"AAMCAcademicPublicChiefMDEmergency MedicineL"},"Emergency Medicine",6,"AAMC","Academic","Public","Chief","MD","2021-2022",349612,{"$f":"(((AAMC_Raw_Data_for_FY22[[#This Row],[Median]]-AAMC_Raw_Data_for_FY22[[#This Row],[25th]])/25)*5) + AAMC_Raw_Data_for_FY22[[#This Row],[25th]]","v":367080.4},{"$f":"(((AAMC_Raw_Data_for_FY22[[#This Row],[Median]]-AAMC_Raw_Data_for_FY22[[#This Row],[25th]])/25)*10) + AAMC_Raw_Data_for_FY22[[#This Row],[25th]]","v":384548.8},{"$f":"(((AAMC_Raw_Data_for_FY22[[#This Row],[Median]]-AAMC_Raw_Data_for_FY22[[#This Row],[25th]])/25)*15) + AAMC_Raw_Data_for_FY22[[#This Row],[25th]]","v":402017.2},{"$f":"(((AAMC_Raw_Data_for_FY22[[#This Row],[Median]]-AAMC_Raw_Data_for_FY22[[#This Row],[25th]])/25)*20) + AAMC_Raw_Data_for_FY22[[#This Row],[25th]]","v":419485.6},436954,{"$f":"(((AAMC_Raw_Data_for_FY22[[#This Row],[75th]]-AAMC_Raw_Data_for_FY22[[#This Row],[Median]])/25)*5) + AAMC_Raw_Data_for_FY22[[#This Row],[Median]]","v":446525.8},{"$f":"(((AAMC_Raw_Data_for_FY22[[#This Row],[75th]]-AAMC_Raw_Data_for_FY22[[#This Row],[Median]])/25)*10) + AAMC_Raw_Data_for_FY22[[#This Row],[Median]]","v":456097.6},{"$f":"(((AAMC_Raw_Data_for_FY22[[#This Row],[75th]]-AAMC_Raw_Data_for_FY22[[#This Row],[Median]])/25)*15) + AAMC_Raw_Data_for_FY22[[#This Row],[Median]]","v":465669.4},{"$f":"(((AAMC_Raw_Data_for_FY22[[#This Row],[75th]]-AAMC_Raw_Data_for_FY22[[#This Row],[Median]])/25)*20) + AAMC_Raw_Data_for_FY22[[#This Row],[Median]]","v":475241.2},484813,{"$f":"(((AAMC_Raw_Data_for_FY22[[#This Row],[75th]]-AAMC_Raw_Data_for_FY22[[#This Row],[Median]])/25)*30) + AAMC_Raw_Data_for_FY22[[#This Row],[Median]]","v":494384.8},{"$f":"(((AAMC_Raw_Data_for_FY22[[#This Row],[75th]]-AAMC_Raw_Data_for_FY22[[#This Row],[Median]])/25)*35) + AAMC_Raw_Data_for_FY22[[#This Row],[Median]]","v":503956.6},{"$f":"(((AAMC_Raw_Data_for_FY22[[#This Row],[75th]]-AAMC_Raw_Data_for_FY22[[#This Row],[Median]])/25)*40) + AAMC_Raw_Data_for_FY22[[#This Row],[Median]]","v":513528.4}]
[{"$f":"AAMC_Raw_Data_for_FY22[[#This Row],[Source]]&AAMC_Raw_Data_for_FY22[[#This Row],[Type]]&AAMC_Raw_Data_for_FY22[[#This Row],[School Subset]]&AAMC_Raw_Data_for_FY22[[#This Row],[Rank]]&AAMC_Raw_Data_for_FY22[[#This Row],[Degree]]&AAMC_Raw_Data_for_FY22[[#This Row],[Department / Specialty]]&\"L\"","v":"AAMCAcademicPublicChairMDEmergency MedicineL"},"Emergency Medicine",1,"AAMC","Academic","Public","Chair","MD","2021-2022",533448,{"$f":"(((AAMC_Raw_Data_for_FY22[[#This Row],[Median]]-AAMC_Raw_Data_for_FY22[[#This Row],[25th]])/25)*5) + AAMC_Raw_Data_for_FY22[[#This Row],[25th]]","v":548166.40000000002},{"$f":"(((AAMC_Raw_Data_for_FY22[[#This Row],[Median]]-AAMC_Raw_Data_for_FY22[[#This Row],[25th]])/25)*10) + AAMC_Raw_Data_for_FY22[[#This Row],[25th]]","v":562884.80000000005},{"$f":"(((AAMC_Raw_Data_for_FY22[[#This Row],[Median]]-AAMC_Raw_Data_for_FY22[[#This Row],[25th]])/25)*15) + AAMC_Raw_Data_for_FY22[[#This Row],[25th]]","v":577603.19999999995},{"$f":"(((AAMC_Raw_Data_for_FY22[[#This Row],[Median]]-AAMC_Raw_Data_for_FY22[[#This Row],[25th]])/25)*20) + AAMC_Raw_Data_for_FY22[[#This Row],[25th]]","v":592321.6},607040,{"$f":"(((AAMC_Raw_Data_for_FY22[[#This Row],[75th]]-AAMC_Raw_Data_for_FY22[[#This Row],[Median]])/25)*5) + AAMC_Raw_Data_for_FY22[[#This Row],[Median]]","v":621533},{"$f":"(((AAMC_Raw_Data_for_FY22[[#This Row],[75th]]-AAMC_Raw_Data_for_FY22[[#This Row],[Median]])/25)*10) + AAMC_Raw_Data_for_FY22[[#This Row],[Median]]","v":636026},{"$f":"(((AAMC_Raw_Data_for_FY22[[#This Row],[75th]]-AAMC_Raw_Data_for_FY22[[#This Row],[Median]])/25)*15) + AAMC_Raw_Data_for_FY22[[#This Row],[Median]]","v":650519},{"$f":"(((AAMC_Raw_Data_for_FY22[[#This Row],[75th]]-AAMC_Raw_Data_for_FY22[[#This Row],[Median]])/25)*20) + AAMC_Raw_Data_for_FY22[[#This Row],[Median]]","v":665012},679505,{"$f":"(((AAMC_Raw_Data_for_FY22[[#This Row],[75th]]-AAMC_Raw_Data_for_FY22[[#This Row],[Median]])/25)*30) + AAMC_Raw_Data_for_FY22[[#This Row],[Median]]","v":693998},{"$f":"(((AAMC_Raw_Data_for_FY22[[#This Row],[75th]]-AAMC_Raw_Data_for_FY22[[#This Row],[Median]])/25)*35) + AAMC_Raw_Data_for_FY22[[#This Row],[Median]]","v":708491},{"$f":"(((AAMC_Raw_Data_for_FY22[[#This Row],[75th]]-AAMC_Raw_Data_for_FY22[[#This Row],[Median]])/25)*40) + AAMC_Raw_Data_for_FY22[[#This Row],[Median]]","v":722984}]
[{"$f":"AAMC_Raw_Data_for_FY22[[#This Row],[Source]]&AAMC_Raw_Data_for_FY22[[#This Row],[Type]]&AAMC_Raw_Data_for_FY22[[#This Row],[School Subset]]&AAMC_Raw_Data_for_FY22[[#This Row],[Rank]]&AAMC_Raw_Data_for_FY22[[#This Row],[Degree]]&AAMC_Raw_Data_for_FY22[[#This Row],[Department / Specialty]]&\"L\"","v":"AAMCAcademicPublicInstructorMDNeurologyL"},"Neurology",5,"AAMC","Academic","Public","Instructor","MD","2021-2022",77213,{"$f":"(((AAMC_Raw_Data_for_FY22[[#This Row],[Median]]-AAMC_Raw_Data_for_FY22[[#This Row],[25th]])/25)*5) + AAMC_Raw_Data_for_FY22[[#This Row],[25th]]","v":79170.399999999994},{"$f":"(((AAMC_Raw_Data_for_FY22[[#This Row],[Median]]-AAMC_Raw_Data_for_FY22[[#This Row],[25th]])/25)*10) + AAMC_Raw_Data_for_FY22[[#This Row],[25th]]","v":81127.8},{"$f":"(((AAMC_Raw_Data_for_FY22[[#This Row],[Median]]-AAMC_Raw_Data_for_FY22[[#This Row],[25th]])/25)*15) + AAMC_Raw_Data_for_FY22[[#This Row],[25th]]","v":83085.2},{"$f":"(((AAMC_Raw_Data_for_FY22[[#This Row],[Median]]-AAMC_Raw_Data_for_FY22[[#This Row],[25th]])/25)*20) + AAMC_Raw_Data_for_FY22[[#This Row],[25th]]","v":85042.6},87000,{"$f":"(((AAMC_Raw_Data_for_FY22[[#This Row],[75th]]-AAMC_Raw_Data_for_FY22[[#This Row],[Median]])/25)*5) + AAMC_Raw_Data_for_FY22[[#This Row],[Median]]","v":94245},{"$f":"(((AAMC_Raw_Data_for_FY22[[#This Row],[75th]]-AAMC_Raw_Data_for_FY22[[#This Row],[Median]])/25)*10) + AAMC_Raw_Data_for_FY22[[#This Row],[Median]]","v":101490},{"$f":"(((AAMC_Raw_Data_for_FY22[[#This Row],[75th]]-AAMC_Raw_Data_for_FY22[[#This Row],[Median]])/25)*15) + AAMC_Raw_Data_for_FY22[[#This Row],[Median]]","v":108735},{"$f":"(((AAMC_Raw_Data_for_FY22[[#This Row],[75th]]-AAMC_Raw_Data_for_FY22[[#This Row],[Median]])/25)*20) + AAMC_Raw_Data_for_FY22[[#This Row],[Median]]","v":115980},123225,{"$f":"(((AAMC_Raw_Data_for_FY22[[#This Row],[75th]]-AAMC_Raw_Data_for_FY22[[#This Row],[Median]])/25)*30) + AAMC_Raw_Data_for_FY22[[#This Row],[Median]]","v":130470},{"$f":"(((AAMC_Raw_Data_for_FY22[[#This Row],[75th]]-AAMC_Raw_Data_for_FY22[[#This Row],[Median]])/25)*35) + AAMC_Raw_Data_for_FY22[[#This Row],[Median]]","v":137715},{"$f":"(((AAMC_Raw_Data_for_FY22[[#This Row],[75th]]-AAMC_Raw_Data_for_FY22[[#This Row],[Median]])/25)*40) + AAMC_Raw_Data_for_FY22[[#This Row],[Median]]","v":144960}]
[{"$f":"AAMC_Raw_Data_for_FY22[[#This Row],[Source]]&AAMC_Raw_Data_for_FY22[[#This Row],[Type]]&AAMC_Raw_Data_for_FY22[[#This Row],[School Subset]]&AAMC_Raw_Data_for_FY22[[#This Row],[Rank]]&AAMC_Raw_Data_for_FY22[[#This Row],[Degree]]&AAMC_Raw_Data_for_FY22[[#This Row],[Department / Specialty]]&\"L\"","v":"AAMCAcademicPublicAssistantMDNeurologyL"},"Neurology",4,"AAMC","Academic","Public","Assistant","MD","2021-2022",210000,{"$f":"(((AAMC_Raw_Data_for_FY22[[#This Row],[Median]]-AAMC_Raw_Data_for_FY22[[#This Row],[25th]])/25)*5) + AAMC_Raw_Data_for_FY22[[#This Row],[25th]]","v":215293.6},{"$f":"(((AAMC_Raw_Data_for_FY22[[#This Row],[Median]]-AAMC_Raw_Data_for_FY22[[#This Row],[25th]])/25)*10) + AAMC_Raw_Data_for_FY22[[#This Row],[25th]]","v":220587.2},{"$f":"(((AAMC_Raw_Data_for_FY22[[#This Row],[Median]]-AAMC_Raw_Data_for_FY22[[#This Row],[25th]])/25)*15) + AAMC_Raw_Data_for_FY22[[#This Row],[25th]]","v":225880.8},{"$f":"(((AAMC_Raw_Data_for_FY22[[#This Row],[Median]]-AAMC_Raw_Data_for_FY22[[#This Row],[25th]])/25)*20) + AAMC_Raw_Data_for_FY22[[#This Row],[25th]]","v":231174.39999999999},236468,{"$f":"(((AAMC_Raw_Data_for_FY22[[#This Row],[75th]]-AAMC_Raw_Data_for_FY22[[#This Row],[Median]])/25)*5) + AAMC_Raw_Data_for_FY22[[#This Row],[Median]]","v":244990.2},{"$f":"(((AAMC_Raw_Data_for_FY22[[#This Row],[75th]]-AAMC_Raw_Data_for_FY22[[#This Row],[Median]])/25)*10) + AAMC_Raw_Data_for_FY22[[#This Row],[Median]]","v":253512.4},{"$f":"(((AAMC_Raw_Data_for_FY22[[#This Row],[75th]]-AAMC_Raw_Data_for_FY22[[#This Row],[Median]])/25)*15) + AAMC_Raw_Data_for_FY22[[#This Row],[Median]]","v":262034.6},{"$f":"(((AAMC_Raw_Data_for_FY22[[#This Row],[75th]]-AAMC_Raw_Data_for_FY22[[#This Row],[Median]])/25)*20) + AAMC_Raw_Data_for_FY22[[#This Row],[Median]]","v":270556.79999999999},279079,{"$f":"(((AAMC_Raw_Data_for_FY22[[#This Row],[75th]]-AAMC_Raw_Data_for_FY22[[#This Row],[Median]])/25)*30) + AAMC_Raw_Data_for_FY22[[#This Row],[Median]]","v":287601.2},{"$f":"(((AAMC_Raw_Data_for_FY22[[#This Row],[75th]]-AAMC_Raw_Data_for_FY22[[#This Row],[Median]])/25)*35) + AAMC_Raw_Data_for_FY22[[#This Row],[Median]]","v":296123.40000000002},{"$f":"(((AAMC_Raw_Data_for_FY22[[#This Row],[75th]]-AAMC_Raw_Data_for_FY22[[#This Row],[Median]])/25)*40) + AAMC_Raw_Data_for_FY22[[#This Row],[Median]]","v":304645.59999999998}]
[{"$f":"AAMC_Raw_Data_for_FY22[[#This Row],[Source]]&AAMC_Raw_Data_for_FY22[[#This Row],[Type]]&AAMC_Raw_Data_for_FY22[[#This Row],[School Subset]]&AAMC_Raw_Data_for_FY22[[#This Row],[Rank]]&AAMC_Raw_Data_for_FY22[[#This Row],[Degree]]&AAMC_Raw_Data_for_FY22[[#This Row],[Department / Specialty]]&\"L\"","v":"AAMCAcademicPublicAssociateMDNeurologyL"},"Neurology",3,"AAMC","Academic","Public","Associate","MD","2021-2022",229906,{"$f":"(((AAMC_Raw_Data_for_FY22[[#This Row],[Median]]-AAMC_Raw_Data_for_FY22[[#This Row],[25th]])/25)*5) + AAMC_Raw_Data_for_FY22[[#This Row],[25th]]","v":235827.6},{"$f":"(((AAMC_Raw_Data_for_FY22[[#This Row],[Median]]-AAMC_Raw_Data_for_FY22[[#This Row],[25th]])/25)*10) + AAMC_Raw_Data_for_FY22[[#This Row],[25th]]","v":241749.2},{"$f":"(((AAMC_Raw_Data_for_FY22[[#This Row],[Median]]-AAMC_Raw_Data_for_FY22[[#This Row],[25th]])/25)*15) + AAMC_Raw_Data_for_FY22[[#This Row],[25th]]","v":247670.8},{"$f":"(((AAMC_Raw_Data_for_FY22[[#This Row],[Median]]-AAMC_Raw_Data_for_FY22[[#This Row],[25th]])/25)*20) + AAMC_Raw_Data_for_FY22[[#This Row],[25th]]","v":253592.4},259514,{"$f":"(((AAMC_Raw_Data_for_FY22[[#This Row],[75th]]-AAMC_Raw_Data_for_FY22[[#This Row],[Median]])/25)*5) + AAMC_Raw_Data_for_FY22[[#This Row],[Median]]","v":269011.20000000001},{"$f":"(((AAMC_Raw_Data_for_FY22[[#This Row],[75th]]-AAMC_Raw_Data_for_FY22[[#This Row],[Median]])/25)*10) + AAMC_Raw_Data_for_FY22[[#This Row],[Median]]","v":278508.40000000002},{"$f":"(((AAMC_Raw_Data_for_FY22[[#This Row],[75th]]-AAMC_Raw_Data_for_FY22[[#This Row],[Median]])/25)*15) + AAMC_Raw_Data_for_FY22[[#This Row],[Median]]","v":288005.59999999998},{"$f":"(((AAMC_Raw_Data_for_FY22[[#This Row],[75th]]-AAMC_Raw_Data_for_FY22[[#This Row],[Median]])/25)*20) + AAMC_Raw_Data_for_FY22[[#This Row],[Median]]","v":297502.8},307000,{"$f":"(((AAMC_Raw_Data_for_FY22[[#This Row],[75th]]-AAMC_Raw_Data_for_FY22[[#This Row],[Median]])/25)*30) + AAMC_Raw_Data_for_FY22[[#This Row],[Median]]","v":316497.2},{"$f":"(((AAMC_Raw_Data_for_FY22[[#This Row],[75th]]-AAMC_Raw_Data_for_FY22[[#This Row],[Median]])/25)*35) + AAMC_Raw_Data_for_FY22[[#This Row],[Median]]","v":325994.40000000002},{"$f":"(((AAMC_Raw_Data_for_FY22[[#This Row],[75th]]-AAMC_Raw_Data_for_FY22[[#This Row],[Median]])/25)*40) + AAMC_Raw_Data_for_FY22[[#This Row],[Median]]","v":335491.59999999998}]
[{"$f":"AAMC_Raw_Data_for_FY22[[#This Row],[Source]]&AAMC_Raw_Data_for_FY22[[#This Row],[Type]]&AAMC_Raw_Data_for_FY22[[#This Row],[School Subset]]&AAMC_Raw_Data_for_FY22[[#This Row],[Rank]]&AAMC_Raw_Data_for_FY22[[#This Row],[Degree]]&AAMC_Raw_Data_for_FY22[[#This Row],[Department / Specialty]]&\"L\"","v":"AAMCAcademicPublicProfessorMDNeurologyL"},"Neurology",2,"AAMC","Academic","Public","Professor","MD","2021-2022",260327,{"$f":"(((AAMC_Raw_Data_for_FY22[[#This Row],[Median]]-AAMC_Raw_Data_for_FY22[[#This Row],[25th]])/25)*5) + AAMC_Raw_Data_for_FY22[[#This Row],[25th]]","v":268646.40000000002},{"$f":"(((AAMC_Raw_Data_for_FY22[[#This Row],[Median]]-AAMC_Raw_Data_for_FY22[[#This Row],[25th]])/25)*10) + AAMC_Raw_Data_for_FY22[[#This Row],[25th]]","v":276965.8},{"$f":"(((AAMC_Raw_Data_for_FY22[[#This Row],[Median]]-AAMC_Raw_Data_for_FY22[[#This Row],[25th]])/25)*15) + AAMC_Raw_Data_for_FY22[[#This Row],[25th]]","v":285285.2},{"$f":"(((AAMC_Raw_Data_for_FY22[[#This Row],[Median]]-AAMC_Raw_Data_for_FY22[[#This Row],[25th]])/25)*20) + AAMC_Raw_Data_for_FY22[[#This Row],[25th]]","v":293604.59999999998},301924,{"$f":"(((AAMC_Raw_Data_for_FY22[[#This Row],[75th]]-AAMC_Raw_Data_for_FY22[[#This Row],[Median]])/25)*5) + AAMC_Raw_Data_for_FY22[[#This Row],[Median]]","v":312256.2},{"$f":"(((AAMC_Raw_Data_for_FY22[[#This Row],[75th]]-AAMC_Raw_Data_for_FY22[[#This Row],[Median]])/25)*10) + AAMC_Raw_Data_for_FY22[[#This Row],[Median]]","v":322588.40000000002},{"$f":"(((AAMC_Raw_Data_for_FY22[[#This Row],[75th]]-AAMC_Raw_Data_for_FY22[[#This Row],[Median]])/25)*15) + AAMC_Raw_Data_for_FY22[[#This Row],[Median]]","v":332920.59999999998},{"$f":"(((AAMC_Raw_Data_for_FY22[[#This Row],[75th]]-AAMC_Raw_Data_for_FY22[[#This Row],[Median]])/25)*20) + AAMC_Raw_Data_for_FY22[[#This Row],[Median]]","v":343252.8},353585,{"$f":"(((AAMC_Raw_Data_for_FY22[[#This Row],[75th]]-AAMC_Raw_Data_for_FY22[[#This Row],[Median]])/25)*30) + AAMC_Raw_Data_for_FY22[[#This Row],[Median]]","v":363917.2},{"$f":"(((AAMC_Raw_Data_for_FY22[[#This Row],[75th]]-AAMC_Raw_Data_for_FY22[[#This Row],[Median]])/25)*35) + AAMC_Raw_Data_for_FY22[[#This Row],[Median]]","v":374249.4},{"$f":"(((AAMC_Raw_Data_for_FY22[[#This Row],[75th]]-AAMC_Raw_Data_for_FY22[[#This Row],[Median]])/25)*40) + AAMC_Raw_Data_for_FY22[[#This Row],[Median]]","v":384581.6}]
[{"$f":"AAMC_Raw_Data_for_FY22[[#This Row],[Source]]&AAMC_Raw_Data_for_FY22[[#This Row],[Type]]&AAMC_Raw_Data_for_FY22[[#This Row],[School Subset]]&AAMC_Raw_Data_for_FY22[[#This Row],[Rank]]&AAMC_Raw_Data_for_FY22[[#This Row],[Degree]]&AAMC_Raw_Data_for_FY22[[#This Row],[Department / Specialty]]&\"L\"","v":"AAMCAcademicPublicChiefMDNeurologyL"},"Neurology",6,"AAMC","Academic","Public","Chief","MD","2021-2022",299422,{"$f":"(((AAMC_Raw_Data_for_FY22[[#This Row],[Median]]-AAMC_Raw_Data_for_FY22[[#This Row],[25th]])/25)*5) + AAMC_Raw_Data_for_FY22[[#This Row],[25th]]","v":305975.2},{"$f":"(((AAMC_Raw_Data_for_FY22[[#This Row],[Median]]-AAMC_Raw_Data_for_FY22[[#This Row],[25th]])/25)*10) + AAMC_Raw_Data_for_FY22[[#This Row],[25th]]","v":312528.40000000002},{"$f":"(((AAMC_Raw_Data_for_FY22[[#This Row],[Median]]-AAMC_Raw_Data_for_FY22[[#This Row],[25th]])/25)*15) + AAMC_Raw_Data_for_FY22[[#This Row],[25th]]","v":319081.59999999998},{"$f":"(((AAMC_Raw_Data_for_FY22[[#This Row],[Median]]-AAMC_Raw_Data_for_FY22[[#This Row],[25th]])/25)*20) + AAMC_Raw_Data_for_FY22[[#This Row],[25th]]","v":325634.8},332188,{"$f":"(((AAMC_Raw_Data_for_FY22[[#This Row],[75th]]-AAMC_Raw_Data_for_FY22[[#This Row],[Median]])/25)*5) + AAMC_Raw_Data_for_FY22[[#This Row],[Median]]","v":344971.4},{"$f":"(((AAMC_Raw_Data_for_FY22[[#This Row],[75th]]-AAMC_Raw_Data_for_FY22[[#This Row],[Median]])/25)*10) + AAMC_Raw_Data_for_FY22[[#This Row],[Median]]","v":357754.8},{"$f":"(((AAMC_Raw_Data_for_FY22[[#This Row],[75th]]-AAMC_Raw_Data_for_FY22[[#This Row],[Median]])/25)*15) + AAMC_Raw_Data_for_FY22[[#This Row],[Median]]","v":370538.2},{"$f":"(((AAMC_Raw_Data_for_FY22[[#This Row],[75th]]-AAMC_Raw_Data_for_FY22[[#This Row],[Median]])/25)*20) + AAMC_Raw_Data_for_FY22[[#This Row],[Median]]","v":383321.59999999998},396105,{"$f":"(((AAMC_Raw_Data_for_FY22[[#This Row],[75th]]-AAMC_Raw_Data_for_FY22[[#This Row],[Median]])/25)*30) + AAMC_Raw_Data_for_FY22[[#This Row],[Median]]","v":408888.4},{"$f":"(((AAMC_Raw_Data_for_FY22[[#This Row],[75th]]-AAMC_Raw_Data_for_FY22[[#This Row],[Median]])/25)*35) + AAMC_Raw_Data_for_FY22[[#This Row],[Median]]","v":421671.8},{"$f":"(((AAMC_Raw_Data_for_FY22[[#This Row],[75th]]-AAMC_Raw_Data_for_FY22[[#This Row],[Median]])/25)*40) + AAMC_Raw_Data_for_FY22[[#This Row],[Median]]","v":434455.2}]
[{"$f":"AAMC_Raw_Data_for_FY22[[#This Row],[Source]]&AAMC_Raw_Data_for_FY22[[#This Row],[Type]]&AAMC_Raw_Data_for_FY22[[#This Row],[School Subset]]&AAMC_Raw_Data_for_FY22[[#This Row],[Rank]]&AAMC_Raw_Data_for_FY22[[#This Row],[Degree]]&AAMC_Raw_Data_for_FY22[[#This Row],[Department / Specialty]]&\"L\"","v":"AAMCAcademicPublicChairMDNeurologyL"},"Neurology",1,"AAMC","Academic","Public","Chair","MD","2021-2022",452200,{"$f":"(((AAMC_Raw_Data_for_FY22[[#This Row],[Median]]-AAMC_Raw_Data_for_FY22[[#This Row],[25th]])/25)*5) + AAMC_Raw_Data_for_FY22[[#This Row],[25th]]","v":466387.6},{"$f":"(((AAMC_Raw_Data_for_FY22[[#This Row],[Median]]-AAMC_Raw_Data_for_FY22[[#This Row],[25th]])/25)*10) + AAMC_Raw_Data_for_FY22[[#This Row],[25th]]","v":480575.2},{"$f":"(((AAMC_Raw_Data_for_FY22[[#This Row],[Median]]-AAMC_Raw_Data_for_FY22[[#This Row],[25th]])/25)*15) + AAMC_Raw_Data_for_FY22[[#This Row],[25th]]","v":494762.8},{"$f":"(((AAMC_Raw_Data_for_FY22[[#This Row],[Median]]-AAMC_Raw_Data_for_FY22[[#This Row],[25th]])/25)*20) + AAMC_Raw_Data_for_FY22[[#This Row],[25th]]","v":508950.4},523138,{"$f":"(((AAMC_Raw_Data_for_FY22[[#This Row],[75th]]-AAMC_Raw_Data_for_FY22[[#This Row],[Median]])/25)*5) + AAMC_Raw_Data_for_FY22[[#This Row],[Median]]","v":532068.19999999995},{"$f":"(((AAMC_Raw_Data_for_FY22[[#This Row],[75th]]-AAMC_Raw_Data_for_FY22[[#This Row],[Median]])/25)*10) + AAMC_Raw_Data_for_FY22[[#This Row],[Median]]","v":540998.40000000002},{"$f":"(((AAMC_Raw_Data_for_FY22[[#This Row],[75th]]-AAMC_Raw_Data_for_FY22[[#This Row],[Median]])/25)*15) + AAMC_Raw_Data_for_FY22[[#This Row],[Median]]","v":549928.6},{"$f":"(((AAMC_Raw_Data_for_FY22[[#This Row],[75th]]-AAMC_Raw_Data_for_FY22[[#This Row],[Median]])/25)*20) + AAMC_Raw_Data_for_FY22[[#This Row],[Median]]","v":558858.80000000005},567789,{"$f":"(((AAMC_Raw_Data_for_FY22[[#This Row],[75th]]-AAMC_Raw_Data_for_FY22[[#This Row],[Median]])/25)*30) + AAMC_Raw_Data_for_FY22[[#This Row],[Median]]","v":576719.19999999995},{"$f":"(((AAMC_Raw_Data_for_FY22[[#This Row],[75th]]-AAMC_Raw_Data_for_FY22[[#This Row],[Median]])/25)*35) + AAMC_Raw_Data_for_FY22[[#This Row],[Median]]","v":585649.4},{"$f":"(((AAMC_Raw_Data_for_FY22[[#This Row],[75th]]-AAMC_Raw_Data_for_FY22[[#This Row],[Median]])/25)*40) + AAMC_Raw_Data_for_FY22[[#This Row],[Median]]","v":594579.6}]
[{"$f":"AAMC_Raw_Data_for_FY22[[#This Row],[Source]]&AAMC_Raw_Data_for_FY22[[#This Row],[Type]]&AAMC_Raw_Data_for_FY22[[#This Row],[School Subset]]&AAMC_Raw_Data_for_FY22[[#This Row],[Rank]]&AAMC_Raw_Data_for_FY22[[#This Row],[Degree]]&AAMC_Raw_Data_for_FY22[[#This Row],[Department / Specialty]]&\"L\"","v":"AAMCAcademicPublicInstructorMDOphthalmologyL"},"Ophthalmology",5,"AAMC","Academic","Public","Instructor","MD","2021-2022",65000,{"$f":"(((AAMC_Raw_Data_for_FY22[[#This Row],[Median]]-AAMC_Raw_Data_for_FY22[[#This Row],[25th]])/25)*5) + AAMC_Raw_Data_for_FY22[[#This Row],[25th]]","v":65300},{"$f":"(((AAMC_Raw_Data_for_FY22[[#This Row],[Median]]-AAMC_Raw_Data_for_FY22[[#This Row],[25th]])/25)*10) + AAMC_Raw_Data_for_FY22[[#This Row],[25th]]","v":65600},{"$f":"(((AAMC_Raw_Data_for_FY22[[#This Row],[Median]]-AAMC_Raw_Data_for_FY22[[#This Row],[25th]])/25)*15) + AAMC_Raw_Data_for_FY22[[#This Row],[25th]]","v":65900},{"$f":"(((AAMC_Raw_Data_for_FY22[[#This Row],[Median]]-AAMC_Raw_Data_for_FY22[[#This Row],[25th]])/25)*20) + AAMC_Raw_Data_for_FY22[[#This Row],[25th]]","v":66200},66500,{"$f":"(((AAMC_Raw_Data_for_FY22[[#This Row],[75th]]-AAMC_Raw_Data_for_FY22[[#This Row],[Median]])/25)*5) + AAMC_Raw_Data_for_FY22[[#This Row],[Median]]","v":67741.600000000006},{"$f":"(((AAMC_Raw_Data_for_FY22[[#This Row],[75th]]-AAMC_Raw_Data_for_FY22[[#This Row],[Median]])/25)*10) + AAMC_Raw_Data_for_FY22[[#This Row],[Median]]","v":68983.199999999997},{"$f":"(((AAMC_Raw_Data_for_FY22[[#This Row],[75th]]-AAMC_Raw_Data_for_FY22[[#This Row],[Median]])/25)*15) + AAMC_Raw_Data_for_FY22[[#This Row],[Median]]","v":70224.800000000003},{"$f":"(((AAMC_Raw_Data_for_FY22[[#This Row],[75th]]-AAMC_Raw_Data_for_FY22[[#This Row],[Median]])/25)*20) + AAMC_Raw_Data_for_FY22[[#This Row],[Median]]","v":71466.399999999994},72708,{"$f":"(((AAMC_Raw_Data_for_FY22[[#This Row],[75th]]-AAMC_Raw_Data_for_FY22[[#This Row],[Median]])/25)*30) + AAMC_Raw_Data_for_FY22[[#This Row],[Median]]","v":73949.600000000006},{"$f":"(((AAMC_Raw_Data_for_FY22[[#This Row],[75th]]-AAMC_Raw_Data_for_FY22[[#This Row],[Median]])/25)*35) + AAMC_Raw_Data_for_FY22[[#This Row],[Median]]","v":75191.199999999997},{"$f":"(((AAMC_Raw_Data_for_FY22[[#This Row],[75th]]-AAMC_Raw_Data_for_FY22[[#This Row],[Median]])/25)*40) + AAMC_Raw_Data_for_FY22[[#This Row],[Median]]","v":76432.800000000003}]
[{"$f":"AAMC_Raw_Data_for_FY22[[#This Row],[Source]]&AAMC_Raw_Data_for_FY22[[#This Row],[Type]]&AAMC_Raw_Data_for_FY22[[#This Row],[School Subset]]&AAMC_Raw_Data_for_FY22[[#This Row],[Rank]]&AAMC_Raw_Data_for_FY22[[#This Row],[Degree]]&AAMC_Raw_Data_for_FY22[[#This Row],[Department / Specialty]]&\"L\"","v":"AAMCAcademicPublicAssistantMDOphthalmologyL"},"Ophthalmology",4,"AAMC","Academic","Public","Assistant","MD","2021-2022",231795,{"$f":"(((AAMC_Raw_Data_for_FY22[[#This Row],[Median]]-AAMC_Raw_Data_for_FY22[[#This Row],[25th]])/25)*5) + AAMC_Raw_Data_for_FY22[[#This Row],[25th]]","v":241513},{"$f":"(((AAMC_Raw_Data_for_FY22[[#This Row],[Median]]-AAMC_Raw_Data_for_FY22[[#This Row],[25th]])/25)*10) + AAMC_Raw_Data_for_FY22[[#This Row],[25th]]","v":251231},{"$f":"(((AAMC_Raw_Data_for_FY22[[#This Row],[Median]]-AAMC_Raw_Data_for_FY22[[#This Row],[25th]])/25)*15) + AAMC_Raw_Data_for_FY22[[#This Row],[25th]]","v":260949},{"$f":"(((AAMC_Raw_Data_for_FY22[[#This Row],[Median]]-AAMC_Raw_Data_for_FY22[[#This Row],[25th]])/25)*20) + AAMC_Raw_Data_for_FY22[[#This Row],[25th]]","v":270667},280385,{"$f":"(((AAMC_Raw_Data_for_FY22[[#This Row],[75th]]-AAMC_Raw_Data_for_FY22[[#This Row],[Median]])/25)*5) + AAMC_Raw_Data_for_FY22[[#This Row],[Median]]","v":296077.8},{"$f":"(((AAMC_Raw_Data_for_FY22[[#This Row],[75th]]-AAMC_Raw_Data_for_FY22[[#This Row],[Median]])/25)*10) + AAMC_Raw_Data_for_FY22[[#This Row],[Median]]","v":311770.59999999998},{"$f":"(((AAMC_Raw_Data_for_FY22[[#This Row],[75th]]-AAMC_Raw_Data_for_FY22[[#This Row],[Median]])/25)*15) + AAMC_Raw_Data_for_FY22[[#This Row],[Median]]","v":327463.40000000002},{"$f":"(((AAMC_Raw_Data_for_FY22[[#This Row],[75th]]-AAMC_Raw_Data_for_FY22[[#This Row],[Median]])/25)*20) + AAMC_Raw_Data_for_FY22[[#This Row],[Median]]","v":343156.2},358849,{"$f":"(((AAMC_Raw_Data_for_FY22[[#This Row],[75th]]-AAMC_Raw_Data_for_FY22[[#This Row],[Median]])/25)*30) + AAMC_Raw_Data_for_FY22[[#This Row],[Median]]","v":374541.8},{"$f":"(((AAMC_Raw_Data_for_FY22[[#This Row],[75th]]-AAMC_Raw_Data_for_FY22[[#This Row],[Median]])/25)*35) + AAMC_Raw_Data_for_FY22[[#This Row],[Median]]","v":390234.6},{"$f":"(((AAMC_Raw_Data_for_FY22[[#This Row],[75th]]-AAMC_Raw_Data_for_FY22[[#This Row],[Median]])/25)*40) + AAMC_Raw_Data_for_FY22[[#This Row],[Median]]","v":405927.4}]
[{"$f":"AAMC_Raw_Data_for_FY22[[#This Row],[Source]]&AAMC_Raw_Data_for_FY22[[#This Row],[Type]]&AAMC_Raw_Data_for_FY22[[#This Row],[School Subset]]&AAMC_Raw_Data_for_FY22[[#This Row],[Rank]]&AAMC_Raw_Data_for_FY22[[#This Row],[Degree]]&AAMC_Raw_Data_for_FY22[[#This Row],[Department / Specialty]]&\"L\"","v":"AAMCAcademicPublicAssociateMDOphthalmologyL"},"Ophthalmology",3,"AAMC","Academic","Public","Associate","MD","2021-2022",284830,{"$f":"(((AAMC_Raw_Data_for_FY22[[#This Row],[Median]]-AAMC_Raw_Data_for_FY22[[#This Row],[25th]])/25)*5) + AAMC_Raw_Data_for_FY22[[#This Row],[25th]]","v":297084},{"$f":"(((AAMC_Raw_Data_for_FY22[[#This Row],[Median]]-AAMC_Raw_Data_for_FY22[[#This Row],[25th]])/25)*10) + AAMC_Raw_Data_for_FY22[[#This Row],[25th]]","v":309338},{"$f":"(((AAMC_Raw_Data_for_FY22[[#This Row],[Median]]-AAMC_Raw_Data_for_FY22[[#This Row],[25th]])/25)*15) + AAMC_Raw_Data_for_FY22[[#This Row],[25th]]","v":321592},{"$f":"(((AAMC_Raw_Data_for_FY22[[#This Row],[Median]]-AAMC_Raw_Data_for_FY22[[#This Row],[25th]])/25)*20) + AAMC_Raw_Data_for_FY22[[#This Row],[25th]]","v":333846},346100,{"$f":"(((AAMC_Raw_Data_for_FY22[[#This Row],[75th]]-AAMC_Raw_Data_for_FY22[[#This Row],[Median]])/25)*5) + AAMC_Raw_Data_for_FY22[[#This Row],[Median]]","v":368235},{"$f":"(((AAMC_Raw_Data_for_FY22[[#This Row],[75th]]-AAMC_Raw_Data_for_FY22[[#This Row],[Median]])/25)*10) + AAMC_Raw_Data_for_FY22[[#This Row],[Median]]","v":390370},{"$f":"(((AAMC_Raw_Data_for_FY22[[#This Row],[75th]]-AAMC_Raw_Data_for_FY22[[#This Row],[Median]])/25)*15) + AAMC_Raw_Data_for_FY22[[#This Row],[Median]]","v":412505},{"$f":"(((AAMC_Raw_Data_for_FY22[[#This Row],[75th]]-AAMC_Raw_Data_for_FY22[[#This Row],[Median]])/25)*20) + AAMC_Raw_Data_for_FY22[[#This Row],[Median]]","v":434640},456775,{"$f":"(((AAMC_Raw_Data_for_FY22[[#This Row],[75th]]-AAMC_Raw_Data_for_FY22[[#This Row],[Median]])/25)*30) + AAMC_Raw_Data_for_FY22[[#This Row],[Median]]","v":478910},{"$f":"(((AAMC_Raw_Data_for_FY22[[#This Row],[75th]]-AAMC_Raw_Data_for_FY22[[#This Row],[Median]])/25)*35) + AAMC_Raw_Data_for_FY22[[#This Row],[Median]]","v":501045},{"$f":"(((AAMC_Raw_Data_for_FY22[[#This Row],[75th]]-AAMC_Raw_Data_for_FY22[[#This Row],[Median]])/25)*40) + AAMC_Raw_Data_for_FY22[[#This Row],[Median]]","v":523180}]
[{"$f":"AAMC_Raw_Data_for_FY22[[#This Row],[Source]]&AAMC_Raw_Data_for_FY22[[#This Row],[Type]]&AAMC_Raw_Data_for_FY22[[#This Row],[School Subset]]&AAMC_Raw_Data_for_FY22[[#This Row],[Rank]]&AAMC_Raw_Data_for_FY22[[#This Row],[Degree]]&AAMC_Raw_Data_for_FY22[[#This Row],[Department / Specialty]]&\"L\"","v":"AAMCAcademicPublicProfessorMDOphthalmologyL"},"Ophthalmology",2,"AAMC","Academic","Public","Professor","MD","2021-2022",315567,{"$f":"(((AAMC_Raw_Data_for_FY22[[#This Row],[Median]]-AAMC_Raw_Data_for_FY22[[#This Row],[25th]])/25)*5) + AAMC_Raw_Data_for_FY22[[#This Row],[25th]]","v":334111.59999999998},{"$f":"(((AAMC_Raw_Data_for_FY22[[#This Row],[Median]]-AAMC_Raw_Data_for_FY22[[#This Row],[25th]])/25)*10) + AAMC_Raw_Data_for_FY22[[#This Row],[25th]]","v":352656.2},{"$f":"(((AAMC_Raw_Data_for_FY22[[#This Row],[Median]]-AAMC_Raw_Data_for_FY22[[#This Row],[25th]])/25)*15) + AAMC_Raw_Data_for_FY22[[#This Row],[25th]]","v":371200.8},{"$f":"(((AAMC_Raw_Data_for_FY22[[#This Row],[Median]]-AAMC_Raw_Data_for_FY22[[#This Row],[25th]])/25)*20) + AAMC_Raw_Data_for_FY22[[#This Row],[25th]]","v":389745.4},408290,{"$f":"(((AAMC_Raw_Data_for_FY22[[#This Row],[75th]]-AAMC_Raw_Data_for_FY22[[#This Row],[Median]])/25)*5) + AAMC_Raw_Data_for_FY22[[#This Row],[Median]]","v":437689.4},{"$f":"(((AAMC_Raw_Data_for_FY22[[#This Row],[75th]]-AAMC_Raw_Data_for_FY22[[#This Row],[Median]])/25)*10) + AAMC_Raw_Data_for_FY22[[#This Row],[Median]]","v":467088.8},{"$f":"(((AAMC_Raw_Data_for_FY22[[#This Row],[75th]]-AAMC_Raw_Data_for_FY22[[#This Row],[Median]])/25)*15) + AAMC_Raw_Data_for_FY22[[#This Row],[Median]]","v":496488.2},{"$f":"(((AAMC_Raw_Data_for_FY22[[#This Row],[75th]]-AAMC_Raw_Data_for_FY22[[#This Row],[Median]])/25)*20) + AAMC_Raw_Data_for_FY22[[#This Row],[Median]]","v":525887.6},555287,{"$f":"(((AAMC_Raw_Data_for_FY22[[#This Row],[75th]]-AAMC_Raw_Data_for_FY22[[#This Row],[Median]])/25)*30) + AAMC_Raw_Data_for_FY22[[#This Row],[Median]]","v":584686.4},{"$f":"(((AAMC_Raw_Data_for_FY22[[#This Row],[75th]]-AAMC_Raw_Data_for_FY22[[#This Row],[Median]])/25)*35) + AAMC_Raw_Data_for_FY22[[#This Row],[Median]]","v":614085.80000000005},{"$f":"(((AAMC_Raw_Data_for_FY22[[#This Row],[75th]]-AAMC_Raw_Data_for_FY22[[#This Row],[Median]])/25)*40) + AAMC_Raw_Data_for_FY22[[#This Row],[Median]]","v":643485.19999999995}]
[{"$f":"AAMC_Raw_Data_for_FY22[[#This Row],[Source]]&AAMC_Raw_Data_for_FY22[[#This Row],[Type]]&AAMC_Raw_Data_for_FY22[[#This Row],[School Subset]]&AAMC_Raw_Data_for_FY22[[#This Row],[Rank]]&AAMC_Raw_Data_for_FY22[[#This Row],[Degree]]&AAMC_Raw_Data_for_FY22[[#This Row],[Department / Specialty]]&\"L\"","v":"AAMCAcademicPublicChiefMDOphthalmologyL"},"Ophthalmology",6,"AAMC","Academic","Public","Chief","MD","2021-2022",489851,{"$f":"(((AAMC_Raw_Data_for_FY22[[#This Row],[Median]]-AAMC_Raw_Data_for_FY22[[#This Row],[25th]])/25)*5) + AAMC_Raw_Data_for_FY22[[#This Row],[25th]]","v":494109.2},{"$f":"(((AAMC_Raw_Data_for_FY22[[#This Row],[Median]]-AAMC_Raw_Data_for_FY22[[#This Row],[25th]])/25)*10) + AAMC_Raw_Data_for_FY22[[#This Row],[25th]]","v":498367.4},{"$f":"(((AAMC_Raw_Data_for_FY22[[#This Row],[Median]]-AAMC_Raw_Data_for_FY22[[#This Row],[25th]])/25)*15) + AAMC_Raw_Data_for_FY22[[#This Row],[25th]]","v":502625.6},{"$f":"(((AAMC_Raw_Data_for_FY22[[#This Row],[Median]]-AAMC_Raw_Data_for_FY22[[#This Row],[25th]])/25)*20) + AAMC_Raw_Data_for_FY22[[#This Row],[25th]]","v":506883.8},511142,{"$f":"(((AAMC_Raw_Data_for_FY22[[#This Row],[75th]]-AAMC_Raw_Data_for_FY22[[#This Row],[Median]])/25)*5) + AAMC_Raw_Data_for_FY22[[#This Row],[Median]]","v":515126.8},{"$f":"(((AAMC_Raw_Data_for_FY22[[#This Row],[75th]]-AAMC_Raw_Data_for_FY22[[#This Row],[Median]])/25)*10) + AAMC_Raw_Data_for_FY22[[#This Row],[Median]]","v":519111.6},{"$f":"(((AAMC_Raw_Data_for_FY22[[#This Row],[75th]]-AAMC_Raw_Data_for_FY22[[#This Row],[Median]])/25)*15) + AAMC_Raw_Data_for_FY22[[#This Row],[Median]]","v":523096.4},{"$f":"(((AAMC_Raw_Data_for_FY22[[#This Row],[75th]]-AAMC_Raw_Data_for_FY22[[#This Row],[Median]])/25)*20) + AAMC_Raw_Data_for_FY22[[#This Row],[Median]]","v":527081.19999999995},531066,{"$f":"(((AAMC_Raw_Data_for_FY22[[#This Row],[75th]]-AAMC_Raw_Data_for_FY22[[#This Row],[Median]])/25)*30) + AAMC_Raw_Data_for_FY22[[#This Row],[Median]]","v":535050.80000000005},{"$f":"(((AAMC_Raw_Data_for_FY22[[#This Row],[75th]]-AAMC_Raw_Data_for_FY22[[#This Row],[Median]])/25)*35) + AAMC_Raw_Data_for_FY22[[#This Row],[Median]]","v":539035.6},{"$f":"(((AAMC_Raw_Data_for_FY22[[#This Row],[75th]]-AAMC_Raw_Data_for_FY22[[#This Row],[Median]])/25)*40) + AAMC_Raw_Data_for_FY22[[#This Row],[Median]]","v":543020.4}]
[{"$f":"AAMC_Raw_Data_for_FY22[[#This Row],[Source]]&AAMC_Raw_Data_for_FY22[[#This Row],[Type]]&AAMC_Raw_Data_for_FY22[[#This Row],[School Subset]]&AAMC_Raw_Data_for_FY22[[#This Row],[Rank]]&AAMC_Raw_Data_for_FY22[[#This Row],[Degree]]&AAMC_Raw_Data_for_FY22[[#This Row],[Department / Specialty]]&\"L\"","v":"AAMCAcademicPublicChairMDOphthalmologyL"},"Ophthalmology",1,"AAMC","Academic","Public","Chair","MD","2021-2022",599864,{"$f":"(((AAMC_Raw_Data_for_FY22[[#This Row],[Median]]-AAMC_Raw_Data_for_FY22[[#This Row],[25th]])/25)*5) + AAMC_Raw_Data_for_FY22[[#This Row],[25th]]","v":609943.19999999995},{"$f":"(((AAMC_Raw_Data_for_FY22[[#This Row],[Median]]-AAMC_Raw_Data_for_FY22[[#This Row],[25th]])/25)*10) + AAMC_Raw_Data_for_FY22[[#This Row],[25th]]","v":620022.4},{"$f":"(((AAMC_Raw_Data_for_FY22[[#This Row],[Median]]-AAMC_Raw_Data_for_FY22[[#This Row],[25th]])/25)*15) + AAMC_Raw_Data_for_FY22[[#This Row],[25th]]","v":630101.6},{"$f":"(((AAMC_Raw_Data_for_FY22[[#This Row],[Median]]-AAMC_Raw_Data_for_FY22[[#This Row],[25th]])/25)*20) + AAMC_Raw_Data_for_FY22[[#This Row],[25th]]","v":640180.80000000005},650260,{"$f":"(((AAMC_Raw_Data_for_FY22[[#This Row],[75th]]-AAMC_Raw_Data_for_FY22[[#This Row],[Median]])/25)*5) + AAMC_Raw_Data_for_FY22[[#This Row],[Median]]","v":672736.6},{"$f":"(((AAMC_Raw_Data_for_FY22[[#This Row],[75th]]-AAMC_Raw_Data_for_FY22[[#This Row],[Median]])/25)*10) + AAMC_Raw_Data_for_FY22[[#This Row],[Median]]","v":695213.2},{"$f":"(((AAMC_Raw_Data_for_FY22[[#This Row],[75th]]-AAMC_Raw_Data_for_FY22[[#This Row],[Median]])/25)*15) + AAMC_Raw_Data_for_FY22[[#This Row],[Median]]","v":717689.8},{"$f":"(((AAMC_Raw_Data_for_FY22[[#This Row],[75th]]-AAMC_Raw_Data_for_FY22[[#This Row],[Median]])/25)*20) + AAMC_Raw_Data_for_FY22[[#This Row],[Median]]","v":740166.4},762643,{"$f":"(((AAMC_Raw_Data_for_FY22[[#This Row],[75th]]-AAMC_Raw_Data_for_FY22[[#This Row],[Median]])/25)*30) + AAMC_Raw_Data_for_FY22[[#This Row],[Median]]","v":785119.6},{"$f":"(((AAMC_Raw_Data_for_FY22[[#This Row],[75th]]-AAMC_Raw_Data_for_FY22[[#This Row],[Median]])/25)*35) + AAMC_Raw_Data_for_FY22[[#This Row],[Median]]","v":807596.2},{"$f":"(((AAMC_Raw_Data_for_FY22[[#This Row],[75th]]-AAMC_Raw_Data_for_FY22[[#This Row],[Median]])/25)*40) + AAMC_Raw_Data_for_FY22[[#This Row],[Median]]","v":830072.8}]
[{"$f":"AAMC_Raw_Data_for_FY22[[#This Row],[Source]]&AAMC_Raw_Data_for_FY22[[#This Row],[Type]]&AAMC_Raw_Data_for_FY22[[#This Row],[School Subset]]&AAMC_Raw_Data_for_FY22[[#This Row],[Rank]]&AAMC_Raw_Data_for_FY22[[#This Row],[Degree]]&AAMC_Raw_Data_for_FY22[[#This Row],[Department / Specialty]]&\"L\"","v":"AAMCAcademicPublicInstructorMDOtolaryngologyL"},"Otolaryngology",5,"AAMC","Academic","Public","Instructor","MD","2021-2022",69000,{"$f":"(((AAMC_Raw_Data_for_FY22[[#This Row],[Median]]-AAMC_Raw_Data_for_FY22[[#This Row],[25th]])/25)*5) + AAMC_Raw_Data_for_FY22[[#This Row],[25th]]","v":71064},{"$f":"(((AAMC_Raw_Data_for_FY22[[#This Row],[Median]]-AAMC_Raw_Data_for_FY22[[#This Row],[25th]])/25)*10) + AAMC_Raw_Data_for_FY22[[#This Row],[25th]]","v":73128},{"$f":"(((AAMC_Raw_Data_for_FY22[[#This Row],[Median]]-AAMC_Raw_Data_for_FY22[[#This Row],[25th]])/25)*15) + AAMC_Raw_Data_for_FY22[[#This Row],[25th]]","v":75192},{"$f":"(((AAMC_Raw_Data_for_FY22[[#This Row],[Median]]-AAMC_Raw_Data_for_FY22[[#This Row],[25th]])/25)*20) + AAMC_Raw_Data_for_FY22[[#This Row],[25th]]","v":77256},79320,{"$f":"(((AAMC_Raw_Data_for_FY22[[#This Row],[75th]]-AAMC_Raw_Data_for_FY22[[#This Row],[Median]])/25)*5) + AAMC_Raw_Data_for_FY22[[#This Row],[Median]]","v":80406.2},{"$f":"(((AAMC_Raw_Data_for_FY22[[#This Row],[75th]]-AAMC_Raw_Data_for_FY22[[#This Row],[Median]])/25)*10) + AAMC_Raw_Data_for_FY22[[#This Row],[Median]]","v":81492.399999999994},{"$f":"(((AAMC_Raw_Data_for_FY22[[#This Row],[75th]]-AAMC_Raw_Data_for_FY22[[#This Row],[Median]])/25)*15) + AAMC_Raw_Data_for_FY22[[#This Row],[Median]]","v":82578.600000000006},{"$f":"(((AAMC_Raw_Data_for_FY22[[#This Row],[75th]]-AAMC_Raw_Data_for_FY22[[#This Row],[Median]])/25)*20) + AAMC_Raw_Data_for_FY22[[#This Row],[Median]]","v":83664.800000000003},84751,{"$f":"(((AAMC_Raw_Data_for_FY22[[#This Row],[75th]]-AAMC_Raw_Data_for_FY22[[#This Row],[Median]])/25)*30) + AAMC_Raw_Data_for_FY22[[#This Row],[Median]]","v":85837.2},{"$f":"(((AAMC_Raw_Data_for_FY22[[#This Row],[75th]]-AAMC_Raw_Data_for_FY22[[#This Row],[Median]])/25)*35) + AAMC_Raw_Data_for_FY22[[#This Row],[Median]]","v":86923.4},{"$f":"(((AAMC_Raw_Data_for_FY22[[#This Row],[75th]]-AAMC_Raw_Data_for_FY22[[#This Row],[Median]])/25)*40) + AAMC_Raw_Data_for_FY22[[#This Row],[Median]]","v":88009.600000000006}]
[{"$f":"AAMC_Raw_Data_for_FY22[[#This Row],[Source]]&AAMC_Raw_Data_for_FY22[[#This Row],[Type]]&AAMC_Raw_Data_for_FY22[[#This Row],[School Subset]]&AAMC_Raw_Data_for_FY22[[#This Row],[Rank]]&AAMC_Raw_Data_for_FY22[[#This Row],[Degree]]&AAMC_Raw_Data_for_FY22[[#This Row],[Department / Specialty]]&\"L\"","v":"AAMCAcademicPublicAssistantMDOtolaryngologyL"},"Otolaryngology",4,"AAMC","Academic","Public","Assistant","MD","2021-2022",311466,{"$f":"(((AAMC_Raw_Data_for_FY22[[#This Row],[Median]]-AAMC_Raw_Data_for_FY22[[#This Row],[25th]])/25)*5) + AAMC_Raw_Data_for_FY22[[#This Row],[25th]]","v":319172.8},{"$f":"(((AAMC_Raw_Data_for_FY22[[#This Row],[Median]]-AAMC_Raw_Data_for_FY22[[#This Row],[25th]])/25)*10) + AAMC_Raw_Data_for_FY22[[#This Row],[25th]]","v":326879.59999999998},{"$f":"(((AAMC_Raw_Data_for_FY22[[#This Row],[Median]]-AAMC_Raw_Data_for_FY22[[#This Row],[25th]])/25)*15) + AAMC_Raw_Data_for_FY22[[#This Row],[25th]]","v":334586.40000000002},{"$f":"(((AAMC_Raw_Data_for_FY22[[#This Row],[Median]]-AAMC_Raw_Data_for_FY22[[#This Row],[25th]])/25)*20) + AAMC_Raw_Data_for_FY22[[#This Row],[25th]]","v":342293.2},350000,{"$f":"(((AAMC_Raw_Data_for_FY22[[#This Row],[75th]]-AAMC_Raw_Data_for_FY22[[#This Row],[Median]])/25)*5) + AAMC_Raw_Data_for_FY22[[#This Row],[Median]]","v":364234.4},{"$f":"(((AAMC_Raw_Data_for_FY22[[#This Row],[75th]]-AAMC_Raw_Data_for_FY22[[#This Row],[Median]])/25)*10) + AAMC_Raw_Data_for_FY22[[#This Row],[Median]]","v":378468.8},{"$f":"(((AAMC_Raw_Data_for_FY22[[#This Row],[75th]]-AAMC_Raw_Data_for_FY22[[#This Row],[Median]])/25)*15) + AAMC_Raw_Data_for_FY22[[#This Row],[Median]]","v":392703.2},{"$f":"(((AAMC_Raw_Data_for_FY22[[#This Row],[75th]]-AAMC_Raw_Data_for_FY22[[#This Row],[Median]])/25)*20) + AAMC_Raw_Data_for_FY22[[#This Row],[Median]]","v":406937.59999999998},421172,{"$f":"(((AAMC_Raw_Data_for_FY22[[#This Row],[75th]]-AAMC_Raw_Data_for_FY22[[#This Row],[Median]])/25)*30) + AAMC_Raw_Data_for_FY22[[#This Row],[Median]]","v":435406.4},{"$f":"(((AAMC_Raw_Data_for_FY22[[#This Row],[75th]]-AAMC_Raw_Data_for_FY22[[#This Row],[Median]])/25)*35) + AAMC_Raw_Data_for_FY22[[#This Row],[Median]]","v":449640.8},{"$f":"(((AAMC_Raw_Data_for_FY22[[#This Row],[75th]]-AAMC_Raw_Data_for_FY22[[#This Row],[Median]])/25)*40) + AAMC_Raw_Data_for_FY22[[#This Row],[Median]]","v":463875.2}]
[{"$f":"AAMC_Raw_Data_for_FY22[[#This Row],[Source]]&AAMC_Raw_Data_for_FY22[[#This Row],[Type]]&AAMC_Raw_Data_for_FY22[[#This Row],[School Subset]]&AAMC_Raw_Data_for_FY22[[#This Row],[Rank]]&AAMC_Raw_Data_for_FY22[[#This Row],[Degree]]&AAMC_Raw_Data_for_FY22[[#This Row],[Department / Specialty]]&\"L\"","v":"AAMCAcademicPublicAssociateMDOtolaryngologyL"},"Otolaryngology",3,"AAMC","Academic","Public","Associate","MD","2021-2022",382418,{"$f":"(((AAMC_Raw_Data_for_FY22[[#This Row],[Median]]-AAMC_Raw_Data_for_FY22[[#This Row],[25th]])/25)*5) + AAMC_Raw_Data_for_FY22[[#This Row],[25th]]","v":393372},{"$f":"(((AAMC_Raw_Data_for_FY22[[#This Row],[Median]]-AAMC_Raw_Data_for_FY22[[#This Row],[25th]])/25)*10) + AAMC_Raw_Data_for_FY22[[#This Row],[25th]]","v":404326},{"$f":"(((AAMC_Raw_Data_for_FY22[[#This Row],[Median]]-AAMC_Raw_Data_for_FY22[[#This Row],[25th]])/25)*15) + AAMC_Raw_Data_for_FY22[[#This Row],[25th]]","v":415280},{"$f":"(((AAMC_Raw_Data_for_FY22[[#This Row],[Median]]-AAMC_Raw_Data_for_FY22[[#This Row],[25th]])/25)*20) + AAMC_Raw_Data_for_FY22[[#This Row],[25th]]","v":426234},437188,{"$f":"(((AAMC_Raw_Data_for_FY22[[#This Row],[75th]]-AAMC_Raw_Data_for_FY22[[#This Row],[Median]])/25)*5) + AAMC_Raw_Data_for_FY22[[#This Row],[Median]]","v":453806.2},{"$f":"(((AAMC_Raw_Data_for_FY22[[#This Row],[75th]]-AAMC_Raw_Data_for_FY22[[#This Row],[Median]])/25)*10) + AAMC_Raw_Data_for_FY22[[#This Row],[Median]]","v":470424.4},{"$f":"(((AAMC_Raw_Data_for_FY22[[#This Row],[75th]]-AAMC_Raw_Data_for_FY22[[#This Row],[Median]])/25)*15) + AAMC_Raw_Data_for_FY22[[#This Row],[Median]]","v":487042.6},{"$f":"(((AAMC_Raw_Data_for_FY22[[#This Row],[75th]]-AAMC_Raw_Data_for_FY22[[#This Row],[Median]])/25)*20) + AAMC_Raw_Data_for_FY22[[#This Row],[Median]]","v":503660.79999999999},520279,{"$f":"(((AAMC_Raw_Data_for_FY22[[#This Row],[75th]]-AAMC_Raw_Data_for_FY22[[#This Row],[Median]])/25)*30) + AAMC_Raw_Data_for_FY22[[#This Row],[Median]]","v":536897.19999999995},{"$f":"(((AAMC_Raw_Data_for_FY22[[#This Row],[75th]]-AAMC_Raw_Data_for_FY22[[#This Row],[Median]])/25)*35) + AAMC_Raw_Data_for_FY22[[#This Row],[Median]]","v":553515.4},{"$f":"(((AAMC_Raw_Data_for_FY22[[#This Row],[75th]]-AAMC_Raw_Data_for_FY22[[#This Row],[Median]])/25)*40) + AAMC_Raw_Data_for_FY22[[#This Row],[Median]]","v":570133.6}]
[{"$f":"AAMC_Raw_Data_for_FY22[[#This Row],[Source]]&AAMC_Raw_Data_for_FY22[[#This Row],[Type]]&AAMC_Raw_Data_for_FY22[[#This Row],[School Subset]]&AAMC_Raw_Data_for_FY22[[#This Row],[Rank]]&AAMC_Raw_Data_for_FY22[[#This Row],[Degree]]&AAMC_Raw_Data_for_FY22[[#This Row],[Department / Specialty]]&\"L\"","v":"AAMCAcademicPublicProfessorMDOtolaryngologyL"},"Otolaryngology",2,"AAMC","Academic","Public","Professor","MD","2021-2022",401953,{"$f":"(((AAMC_Raw_Data_for_FY22[[#This Row],[Median]]-AAMC_Raw_Data_for_FY22[[#This Row],[25th]])/25)*5) + AAMC_Raw_Data_for_FY22[[#This Row],[25th]]","v":417349.8},{"$f":"(((AAMC_Raw_Data_for_FY22[[#This Row],[Median]]-AAMC_Raw_Data_for_FY22[[#This Row],[25th]])/25)*10) + AAMC_Raw_Data_for_FY22[[#This Row],[25th]]","v":432746.6},{"$f":"(((AAMC_Raw_Data_for_FY22[[#This Row],[Median]]-AAMC_Raw_Data_for_FY22[[#This Row],[25th]])/25)*15) + AAMC_Raw_Data_for_FY22[[#This Row],[25th]]","v":448143.4},{"$f":"(((AAMC_Raw_Data_for_FY22[[#This Row],[Median]]-AAMC_Raw_Data_for_FY22[[#This Row],[25th]])/25)*20) + AAMC_Raw_Data_for_FY22[[#This Row],[25th]]","v":463540.2},478937,{"$f":"(((AAMC_Raw_Data_for_FY22[[#This Row],[75th]]-AAMC_Raw_Data_for_FY22[[#This Row],[Median]])/25)*5) + AAMC_Raw_Data_for_FY22[[#This Row],[Median]]","v":492791.4},{"$f":"(((AAMC_Raw_Data_for_FY22[[#This Row],[75th]]-AAMC_Raw_Data_for_FY22[[#This Row],[Median]])/25)*10) + AAMC_Raw_Data_for_FY22[[#This Row],[Median]]","v":506645.8},{"$f":"(((AAMC_Raw_Data_for_FY22[[#This Row],[75th]]-AAMC_Raw_Data_for_FY22[[#This Row],[Median]])/25)*15) + AAMC_Raw_Data_for_FY22[[#This Row],[Median]]","v":520500.2},{"$f":"(((AAMC_Raw_Data_for_FY22[[#This Row],[75th]]-AAMC_Raw_Data_for_FY22[[#This Row],[Median]])/25)*20) + AAMC_Raw_Data_for_FY22[[#This Row],[Median]]","v":534354.6},548209,{"$f":"(((AAMC_Raw_Data_for_FY22[[#This Row],[75th]]-AAMC_Raw_Data_for_FY22[[#This Row],[Median]])/25)*30) + AAMC_Raw_Data_for_FY22[[#This Row],[Median]]","v":562063.4},{"$f":"(((AAMC_Raw_Data_for_FY22[[#This Row],[75th]]-AAMC_Raw_Data_for_FY22[[#This Row],[Median]])/25)*35) + AAMC_Raw_Data_for_FY22[[#This Row],[Median]]","v":575917.80000000005},{"$f":"(((AAMC_Raw_Data_for_FY22[[#This Row],[75th]]-AAMC_Raw_Data_for_FY22[[#This Row],[Median]])/25)*40) + AAMC_Raw_Data_for_FY22[[#This Row],[Median]]","v":589772.19999999995}]
[{"$f":"AAMC_Raw_Data_for_FY22[[#This Row],[Source]]&AAMC_Raw_Data_for_FY22[[#This Row],[Type]]&AAMC_Raw_Data_for_FY22[[#This Row],[School Subset]]&AAMC_Raw_Data_for_FY22[[#This Row],[Rank]]&AAMC_Raw_Data_for_FY22[[#This Row],[Degree]]&AAMC_Raw_Data_for_FY22[[#This Row],[Department / Specialty]]&\"L\"","v":"AAMCAcademicPublicChiefMDOtolaryngologyL"},"Otolaryngology",6,"AAMC","Academic","Public","Chief","MD","2021-2022",429949,{"$f":"(((AAMC_Raw_Data_for_FY22[[#This Row],[Median]]-AAMC_Raw_Data_for_FY22[[#This Row],[25th]])/25)*5) + AAMC_Raw_Data_for_FY22[[#This Row],[25th]]","v":442455.4},{"$f":"(((AAMC_Raw_Data_for_FY22[[#This Row],[Median]]-AAMC_Raw_Data_for_FY22[[#This Row],[25th]])/25)*10) + AAMC_Raw_Data_for_FY22[[#This Row],[25th]]","v":454961.8},{"$f":"(((AAMC_Raw_Data_for_FY22[[#This Row],[Median]]-AAMC_Raw_Data_for_FY22[[#This Row],[25th]])/25)*15) + AAMC_Raw_Data_for_FY22[[#This Row],[25th]]","v":467468.2},{"$f":"(((AAMC_Raw_Data_for_FY22[[#This Row],[Median]]-AAMC_Raw_Data_for_FY22[[#This Row],[25th]])/25)*20) + AAMC_Raw_Data_for_FY22[[#This Row],[25th]]","v":479974.6},492481,{"$f":"(((AAMC_Raw_Data_for_FY22[[#This Row],[75th]]-AAMC_Raw_Data_for_FY22[[#This Row],[Median]])/25)*5) + AAMC_Raw_Data_for_FY22[[#This Row],[Median]]","v":505030.6},{"$f":"(((AAMC_Raw_Data_for_FY22[[#This Row],[75th]]-AAMC_Raw_Data_for_FY22[[#This Row],[Median]])/25)*10) + AAMC_Raw_Data_for_FY22[[#This Row],[Median]]","v":517580.2},{"$f":"(((AAMC_Raw_Data_for_FY22[[#This Row],[75th]]-AAMC_Raw_Data_for_FY22[[#This Row],[Median]])/25)*15) + AAMC_Raw_Data_for_FY22[[#This Row],[Median]]","v":530129.80000000005},{"$f":"(((AAMC_Raw_Data_for_FY22[[#This Row],[75th]]-AAMC_Raw_Data_for_FY22[[#This Row],[Median]])/25)*20) + AAMC_Raw_Data_for_FY22[[#This Row],[Median]]","v":542679.4},555229,{"$f":"(((AAMC_Raw_Data_for_FY22[[#This Row],[75th]]-AAMC_Raw_Data_for_FY22[[#This Row],[Median]])/25)*30) + AAMC_Raw_Data_for_FY22[[#This Row],[Median]]","v":567778.6},{"$f":"(((AAMC_Raw_Data_for_FY22[[#This Row],[75th]]-AAMC_Raw_Data_for_FY22[[#This Row],[Median]])/25)*35) + AAMC_Raw_Data_for_FY22[[#This Row],[Median]]","v":580328.19999999995},{"$f":"(((AAMC_Raw_Data_for_FY22[[#This Row],[75th]]-AAMC_Raw_Data_for_FY22[[#This Row],[Median]])/25)*40) + AAMC_Raw_Data_for_FY22[[#This Row],[Median]]","v":592877.80000000005}]
[{"$f":"AAMC_Raw_Data_for_FY22[[#This Row],[Source]]&AAMC_Raw_Data_for_FY22[[#This Row],[Type]]&AAMC_Raw_Data_for_FY22[[#This Row],[School Subset]]&AAMC_Raw_Data_for_FY22[[#This Row],[Rank]]&AAMC_Raw_Data_for_FY22[[#This Row],[Degree]]&AAMC_Raw_Data_for_FY22[[#This Row],[Department / Specialty]]&\"L\"","v":"AAMCAcademicPublicChairMDOtolaryngologyL"},"Otolaryngology",1,"AAMC","Academic","Public","Chair","MD","2021-2022",653575,{"$f":"(((AAMC_Raw_Data_for_FY22[[#This Row],[Median]]-AAMC_Raw_Data_for_FY22[[#This Row],[25th]])/25)*5) + AAMC_Raw_Data_for_FY22[[#This Row],[25th]]","v":673261.4},{"$f":"(((AAMC_Raw_Data_for_FY22[[#This Row],[Median]]-AAMC_Raw_Data_for_FY22[[#This Row],[25th]])/25)*10) + AAMC_Raw_Data_for_FY22[[#This Row],[25th]]","v":692947.8},{"$f":"(((AAMC_Raw_Data_for_FY22[[#This Row],[Median]]-AAMC_Raw_Data_for_FY22[[#This Row],[25th]])/25)*15) + AAMC_Raw_Data_for_FY22[[#This Row],[25th]]","v":712634.2},{"$f":"(((AAMC_Raw_Data_for_FY22[[#This Row],[Median]]-AAMC_Raw_Data_for_FY22[[#This Row],[25th]])/25)*20) + AAMC_Raw_Data_for_FY22[[#This Row],[25th]]","v":732320.6},752007,{"$f":"(((AAMC_Raw_Data_for_FY22[[#This Row],[75th]]-AAMC_Raw_Data_for_FY22[[#This Row],[Median]])/25)*5) + AAMC_Raw_Data_for_FY22[[#This Row],[Median]]","v":782476.80000000005},{"$f":"(((AAMC_Raw_Data_for_FY22[[#This Row],[75th]]-AAMC_Raw_Data_for_FY22[[#This Row],[Median]])/25)*10) + AAMC_Raw_Data_for_FY22[[#This Row],[Median]]","v":812946.6},{"$f":"(((AAMC_Raw_Data_for_FY22[[#This Row],[75th]]-AAMC_Raw_Data_for_FY22[[#This Row],[Median]])/25)*15) + AAMC_Raw_Data_for_FY22[[#This Row],[Median]]","v":843416.4},{"$f":"(((AAMC_Raw_Data_for_FY22[[#This Row],[75th]]-AAMC_Raw_Data_for_FY22[[#This Row],[Median]])/25)*20) + AAMC_Raw_Data_for_FY22[[#This Row],[Median]]","v":873886.2},904356,{"$f":"(((AAMC_Raw_Data_for_FY22[[#This Row],[75th]]-AAMC_Raw_Data_for_FY22[[#This Row],[Median]])/25)*30) + AAMC_Raw_Data_for_FY22[[#This Row],[Median]]","v":934825.8},{"$f":"(((AAMC_Raw_Data_for_FY22[[#This Row],[75th]]-AAMC_Raw_Data_for_FY22[[#This Row],[Median]])/25)*35) + AAMC_Raw_Data_for_FY22[[#This Row],[Median]]","v":965295.6},{"$f":"(((AAMC_Raw_Data_for_FY22[[#This Row],[75th]]-AAMC_Raw_Data_for_FY22[[#This Row],[Median]])/25)*40) + AAMC_Raw_Data_for_FY22[[#This Row],[Median]]","v":995765.4}]
[{"$f":"AAMC_Raw_Data_for_FY22[[#This Row],[Source]]&AAMC_Raw_Data_for_FY22[[#This Row],[Type]]&AAMC_Raw_Data_for_FY22[[#This Row],[School Subset]]&AAMC_Raw_Data_for_FY22[[#This Row],[Rank]]&AAMC_Raw_Data_for_FY22[[#This Row],[Degree]]&AAMC_Raw_Data_for_FY22[[#This Row],[Department / Specialty]]&\"L\"","v":"AAMCAcademicPublicInstructorMDPhysical Medicine & RehabilitationL"},"Physical Medicine & Rehabilitation",5,"AAMC","Academic","Public","Instructor","MD","2021-2022",null,{"$f":"(((AAMC_Raw_Data_for_FY22[[#This Row],[Median]]-AAMC_Raw_Data_for_FY22[[#This Row],[25th]])/25)*5) + AAMC_Raw_Data_for_FY22[[#This Row],[25th]]","v":0},{"$f":"(((AAMC_Raw_Data_for_FY22[[#This Row],[Median]]-AAMC_Raw_Data_for_FY22[[#This Row],[25th]])/25)*10) + AAMC_Raw_Data_for_FY22[[#This Row],[25th]]","v":0},{"$f":"(((AAMC_Raw_Data_for_FY22[[#This Row],[Median]]-AAMC_Raw_Data_for_FY22[[#This Row],[25th]])/25)*15) + AAMC_Raw_Data_for_FY22[[#This Row],[25th]]","v":0},{"$f":"(((AAMC_Raw_Data_for_FY22[[#This Row],[Median]]-AAMC_Raw_Data_for_FY22[[#This Row],[25th]])/25)*20) + AAMC_Raw_Data_for_FY22[[#This Row],[25th]]","v":0},null,{"$f":"(((AAMC_Raw_Data_for_FY22[[#This Row],[75th]]-AAMC_Raw_Data_for_FY22[[#This Row],[Median]])/25)*5) + AAMC_Raw_Data_for_FY22[[#This Row],[Median]]","v":0},{"$f":"(((AAMC_Raw_Data_for_FY22[[#This Row],[75th]]-AAMC_Raw_Data_for_FY22[[#This Row],[Median]])/25)*10) + AAMC_Raw_Data_for_FY22[[#This Row],[Median]]","v":0},{"$f":"(((AAMC_Raw_Data_for_FY22[[#This Row],[75th]]-AAMC_Raw_Data_for_FY22[[#This Row],[Median]])/25)*15) + AAMC_Raw_Data_for_FY22[[#This Row],[Median]]","v":0},{"$f":"(((AAMC_Raw_Data_for_FY22[[#This Row],[75th]]-AAMC_Raw_Data_for_FY22[[#This Row],[Median]])/25)*20) + AAMC_Raw_Data_for_FY22[[#This Row],[Median]]","v":0},null,{"$f":"(((AAMC_Raw_Data_for_FY22[[#This Row],[75th]]-AAMC_Raw_Data_for_FY22[[#This Row],[Median]])/25)*30) + AAMC_Raw_Data_for_FY22[[#This Row],[Median]]","v":0},{"$f":"(((AAMC_Raw_Data_for_FY22[[#This Row],[75th]]-AAMC_Raw_Data_for_FY22[[#This Row],[Median]])/25)*35) + AAMC_Raw_Data_for_FY22[[#This Row],[Median]]","v":0},{"$f":"(((AAMC_Raw_Data_for_FY22[[#This Row],[75th]]-AAMC_Raw_Data_for_FY22[[#This Row],[Median]])/25)*40) + AAMC_Raw_Data_for_FY22[[#This Row],[Median]]","v":0}]
[{"$f":"AAMC_Raw_Data_for_FY22[[#This Row],[Source]]&AAMC_Raw_Data_for_FY22[[#This Row],[Type]]&AAMC_Raw_Data_for_FY22[[#This Row],[School Subset]]&AAMC_Raw_Data_for_FY22[[#This Row],[Rank]]&AAMC_Raw_Data_for_FY22[[#This Row],[Degree]]&AAMC_Raw_Data_for_FY22[[#This Row],[Department / Specialty]]&\"L\"","v":"AAMCAcademicPublicAssistantMDPhysical Medicine & RehabilitationL"},"Physical Medicine & Rehabilitation",4,"AAMC","Academic","Public","Assistant","MD","2021-2022",212801,{"$f":"(((AAMC_Raw_Data_for_FY22[[#This Row],[Median]]-AAMC_Raw_Data_for_FY22[[#This Row],[25th]])/25)*5) + AAMC_Raw_Data_for_FY22[[#This Row],[25th]]","v":218165.2},{"$f":"(((AAMC_Raw_Data_for_FY22[[#This Row],[Median]]-AAMC_Raw_Data_for_FY22[[#This Row],[25th]])/25)*10) + AAMC_Raw_Data_for_FY22[[#This Row],[25th]]","v":223529.4},{"$f":"(((AAMC_Raw_Data_for_FY22[[#This Row],[Median]]-AAMC_Raw_Data_for_FY22[[#This Row],[25th]])/25)*15) + AAMC_Raw_Data_for_FY22[[#This Row],[25th]]","v":228893.6},{"$f":"(((AAMC_Raw_Data_for_FY22[[#This Row],[Median]]-AAMC_Raw_Data_for_FY22[[#This Row],[25th]])/25)*20) + AAMC_Raw_Data_for_FY22[[#This Row],[25th]]","v":234257.8},239622,{"$f":"(((AAMC_Raw_Data_for_FY22[[#This Row],[75th]]-AAMC_Raw_Data_for_FY22[[#This Row],[Median]])/25)*5) + AAMC_Raw_Data_for_FY22[[#This Row],[Median]]","v":249191.2},{"$f":"(((AAMC_Raw_Data_for_FY22[[#This Row],[75th]]-AAMC_Raw_Data_for_FY22[[#This Row],[Median]])/25)*10) + AAMC_Raw_Data_for_FY22[[#This Row],[Median]]","v":258760.4},{"$f":"(((AAMC_Raw_Data_for_FY22[[#This Row],[75th]]-AAMC_Raw_Data_for_FY22[[#This Row],[Median]])/25)*15) + AAMC_Raw_Data_for_FY22[[#This Row],[Median]]","v":268329.59999999998},{"$f":"(((AAMC_Raw_Data_for_FY22[[#This Row],[75th]]-AAMC_Raw_Data_for_FY22[[#This Row],[Median]])/25)*20) + AAMC_Raw_Data_for_FY22[[#This Row],[Median]]","v":277898.8},287468,{"$f":"(((AAMC_Raw_Data_for_FY22[[#This Row],[75th]]-AAMC_Raw_Data_for_FY22[[#This Row],[Median]])/25)*30) + AAMC_Raw_Data_for_FY22[[#This Row],[Median]]","v":297037.2},{"$f":"(((AAMC_Raw_Data_for_FY22[[#This Row],[75th]]-AAMC_Raw_Data_for_FY22[[#This Row],[Median]])/25)*35) + AAMC_Raw_Data_for_FY22[[#This Row],[Median]]","v":306606.40000000002},{"$f":"(((AAMC_Raw_Data_for_FY22[[#This Row],[75th]]-AAMC_Raw_Data_for_FY22[[#This Row],[Median]])/25)*40) + AAMC_Raw_Data_for_FY22[[#This Row],[Median]]","v":316175.59999999998}]
[{"$f":"AAMC_Raw_Data_for_FY22[[#This Row],[Source]]&AAMC_Raw_Data_for_FY22[[#This Row],[Type]]&AAMC_Raw_Data_for_FY22[[#This Row],[School Subset]]&AAMC_Raw_Data_for_FY22[[#This Row],[Rank]]&AAMC_Raw_Data_for_FY22[[#This Row],[Degree]]&AAMC_Raw_Data_for_FY22[[#This Row],[Department / Specialty]]&\"L\"","v":"AAMCAcademicPublicAssociateMDPhysical Medicine & RehabilitationL"},"Physical Medicine & Rehabilitation",3,"AAMC","Academic","Public","Associate","MD","2021-2022",241002,{"$f":"(((AAMC_Raw_Data_for_FY22[[#This Row],[Median]]-AAMC_Raw_Data_for_FY22[[#This Row],[25th]])/25)*5) + AAMC_Raw_Data_for_FY22[[#This Row],[25th]]","v":246525.6},{"$f":"(((AAMC_Raw_Data_for_FY22[[#This Row],[Median]]-AAMC_Raw_Data_for_FY22[[#This Row],[25th]])/25)*10) + AAMC_Raw_Data_for_FY22[[#This Row],[25th]]","v":252049.2},{"$f":"(((AAMC_Raw_Data_for_FY22[[#This Row],[Median]]-AAMC_Raw_Data_for_FY22[[#This Row],[25th]])/25)*15) + AAMC_Raw_Data_for_FY22[[#This Row],[25th]]","v":257572.8},{"$f":"(((AAMC_Raw_Data_for_FY22[[#This Row],[Median]]-AAMC_Raw_Data_for_FY22[[#This Row],[25th]])/25)*20) + AAMC_Raw_Data_for_FY22[[#This Row],[25th]]","v":263096.40000000002},268620,{"$f":"(((AAMC_Raw_Data_for_FY22[[#This Row],[75th]]-AAMC_Raw_Data_for_FY22[[#This Row],[Median]])/25)*5) + AAMC_Raw_Data_for_FY22[[#This Row],[Median]]","v":279289.40000000002},{"$f":"(((AAMC_Raw_Data_for_FY22[[#This Row],[75th]]-AAMC_Raw_Data_for_FY22[[#This Row],[Median]])/25)*10) + AAMC_Raw_Data_for_FY22[[#This Row],[Median]]","v":289958.8},{"$f":"(((AAMC_Raw_Data_for_FY22[[#This Row],[75th]]-AAMC_Raw_Data_for_FY22[[#This Row],[Median]])/25)*15) + AAMC_Raw_Data_for_FY22[[#This Row],[Median]]","v":300628.2},{"$f":"(((AAMC_Raw_Data_for_FY22[[#This Row],[75th]]-AAMC_Raw_Data_for_FY22[[#This Row],[Median]])/25)*20) + AAMC_Raw_Data_for_FY22[[#This Row],[Median]]","v":311297.59999999998},321967,{"$f":"(((AAMC_Raw_Data_for_FY22[[#This Row],[75th]]-AAMC_Raw_Data_for_FY22[[#This Row],[Median]])/25)*30) + AAMC_Raw_Data_for_FY22[[#This Row],[Median]]","v":332636.40000000002},{"$f":"(((AAMC_Raw_Data_for_FY22[[#This Row],[75th]]-AAMC_Raw_Data_for_FY22[[#This Row],[Median]])/25)*35) + AAMC_Raw_Data_for_FY22[[#This Row],[Median]]","v":343305.8},{"$f":"(((AAMC_Raw_Data_for_FY22[[#This Row],[75th]]-AAMC_Raw_Data_for_FY22[[#This Row],[Median]])/25)*40) + AAMC_Raw_Data_for_FY22[[#This Row],[Median]]","v":353975.2}]
[{"$f":"AAMC_Raw_Data_for_FY22[[#This Row],[Source]]&AAMC_Raw_Data_for_FY22[[#This Row],[Type]]&AAMC_Raw_Data_for_FY22[[#This Row],[School Subset]]&AAMC_Raw_Data_for_FY22[[#This Row],[Rank]]&AAMC_Raw_Data_for_FY22[[#This Row],[Degree]]&AAMC_Raw_Data_for_FY22[[#This Row],[Department / Specialty]]&\"L\"","v":"AAMCAcademicPublicProfessorMDPhysical Medicine & RehabilitationL"},"Physical Medicine & Rehabilitation",2,"AAMC","Academic","Public","Professor","MD","2021-2022",271711,{"$f":"(((AAMC_Raw_Data_for_FY22[[#This Row],[Median]]-AAMC_Raw_Data_for_FY22[[#This Row],[25th]])/25)*5) + AAMC_Raw_Data_for_FY22[[#This Row],[25th]]","v":278609.59999999998},{"$f":"(((AAMC_Raw_Data_for_FY22[[#This Row],[Median]]-AAMC_Raw_Data_for_FY22[[#This Row],[25th]])/25)*10) + AAMC_Raw_Data_for_FY22[[#This Row],[25th]]","v":285508.2},{"$f":"(((AAMC_Raw_Data_for_FY22[[#This Row],[Median]]-AAMC_Raw_Data_for_FY22[[#This Row],[25th]])/25)*15) + AAMC_Raw_Data_for_FY22[[#This Row],[25th]]","v":292406.8},{"$f":"(((AAMC_Raw_Data_for_FY22[[#This Row],[Median]]-AAMC_Raw_Data_for_FY22[[#This Row],[25th]])/25)*20) + AAMC_Raw_Data_for_FY22[[#This Row],[25th]]","v":299305.40000000002},306204,{"$f":"(((AAMC_Raw_Data_for_FY22[[#This Row],[75th]]-AAMC_Raw_Data_for_FY22[[#This Row],[Median]])/25)*5) + AAMC_Raw_Data_for_FY22[[#This Row],[Median]]","v":318326},{"$f":"(((AAMC_Raw_Data_for_FY22[[#This Row],[75th]]-AAMC_Raw_Data_for_FY22[[#This Row],[Median]])/25)*10) + AAMC_Raw_Data_for_FY22[[#This Row],[Median]]","v":330448},{"$f":"(((AAMC_Raw_Data_for_FY22[[#This Row],[75th]]-AAMC_Raw_Data_for_FY22[[#This Row],[Median]])/25)*15) + AAMC_Raw_Data_for_FY22[[#This Row],[Median]]","v":342570},{"$f":"(((AAMC_Raw_Data_for_FY22[[#This Row],[75th]]-AAMC_Raw_Data_for_FY22[[#This Row],[Median]])/25)*20) + AAMC_Raw_Data_for_FY22[[#This Row],[Median]]","v":354692},366814,{"$f":"(((AAMC_Raw_Data_for_FY22[[#This Row],[75th]]-AAMC_Raw_Data_for_FY22[[#This Row],[Median]])/25)*30) + AAMC_Raw_Data_for_FY22[[#This Row],[Median]]","v":378936},{"$f":"(((AAMC_Raw_Data_for_FY22[[#This Row],[75th]]-AAMC_Raw_Data_for_FY22[[#This Row],[Median]])/25)*35) + AAMC_Raw_Data_for_FY22[[#This Row],[Median]]","v":391058},{"$f":"(((AAMC_Raw_Data_for_FY22[[#This Row],[75th]]-AAMC_Raw_Data_for_FY22[[#This Row],[Median]])/25)*40) + AAMC_Raw_Data_for_FY22[[#This Row],[Median]]","v":403180}]
[{"$f":"AAMC_Raw_Data_for_FY22[[#This Row],[Source]]&AAMC_Raw_Data_for_FY22[[#This Row],[Type]]&AAMC_Raw_Data_for_FY22[[#This Row],[School Subset]]&AAMC_Raw_Data_for_FY22[[#This Row],[Rank]]&AAMC_Raw_Data_for_FY22[[#This Row],[Degree]]&AAMC_Raw_Data_for_FY22[[#This Row],[Department / Specialty]]&\"L\"","v":"AAMCAcademicPublicChiefMDPhysical Medicine & RehabilitationL"},"Physical Medicine & Rehabilitation",6,"AAMC","Academic","Public","Chief","MD","2021-2022",null,{"$f":"(((AAMC_Raw_Data_for_FY22[[#This Row],[Median]]-AAMC_Raw_Data_for_FY22[[#This Row],[25th]])/25)*5) + AAMC_Raw_Data_for_FY22[[#This Row],[25th]]","v":0},{"$f":"(((AAMC_Raw_Data_for_FY22[[#This Row],[Median]]-AAMC_Raw_Data_for_FY22[[#This Row],[25th]])/25)*10) + AAMC_Raw_Data_for_FY22[[#This Row],[25th]]","v":0},{"$f":"(((AAMC_Raw_Data_for_FY22[[#This Row],[Median]]-AAMC_Raw_Data_for_FY22[[#This Row],[25th]])/25)*15) + AAMC_Raw_Data_for_FY22[[#This Row],[25th]]","v":0},{"$f":"(((AAMC_Raw_Data_for_FY22[[#This Row],[Median]]-AAMC_Raw_Data_for_FY22[[#This Row],[25th]])/25)*20) + AAMC_Raw_Data_for_FY22[[#This Row],[25th]]","v":0},null,{"$f":"(((AAMC_Raw_Data_for_FY22[[#This Row],[75th]]-AAMC_Raw_Data_for_FY22[[#This Row],[Median]])/25)*5) + AAMC_Raw_Data_for_FY22[[#This Row],[Median]]","v":0},{"$f":"(((AAMC_Raw_Data_for_FY22[[#This Row],[75th]]-AAMC_Raw_Data_for_FY22[[#This Row],[Median]])/25)*10) + AAMC_Raw_Data_for_FY22[[#This Row],[Median]]","v":0},{"$f":"(((AAMC_Raw_Data_for_FY22[[#This Row],[75th]]-AAMC_Raw_Data_for_FY22[[#This Row],[Median]])/25)*15) + AAMC_Raw_Data_for_FY22[[#This Row],[Median]]","v":0},{"$f":"(((AAMC_Raw_Data_for_FY22[[#This Row],[75th]]-AAMC_Raw_Data_for_FY22[[#This Row],[Median]])/25)*20) + AAMC_Raw_Data_for_FY22[[#This Row],[Median]]","v":0},null,{"$f":"(((AAMC_Raw_Data_for_FY22[[#This Row],[75th]]-AAMC_Raw_Data_for_FY22[[#This Row],[Median]])/25)*30) + AAMC_Raw_Data_for_FY22[[#This Row],[Median]]","v":0},{"$f":"(((AAMC_Raw_Data_for_FY22[[#This Row],[75th]]-AAMC_Raw_Data_for_FY22[[#This Row],[Median]])/25)*35) + AAMC_Raw_Data_for_FY22[[#This Row],[Median]]","v":0},{"$f":"(((AAMC_Raw_Data_for_FY22[[#This Row],[75th]]-AAMC_Raw_Data_for_FY22[[#This Row],[Median]])/25)*40) + AAMC_Raw_Data_for_FY22[[#This Row],[Median]]","v":0}]
[{"$f":"AAMC_Raw_Data_for_FY22[[#This Row],[Source]]&AAMC_Raw_Data_for_FY22[[#This Row],[Type]]&AAMC_Raw_Data_for_FY22[[#This Row],[School Subset]]&AAMC_Raw_Data_for_FY22[[#This Row],[Rank]]&AAMC_Raw_Data_for_FY22[[#This Row],[Degree]]&AAMC_Raw_Data_for_FY22[[#This Row],[Department / Specialty]]&\"L\"","v":"AAMCAcademicPublicChairMDPhysical Medicine & RehabilitationL"},"Physical Medicine & Rehabilitation",1,"AAMC","Academic","Public","Chair","MD","2021-2022",425580,{"$f":"(((AAMC_Raw_Data_for_FY22[[#This Row],[Median]]-AAMC_Raw_Data_for_FY22[[#This Row],[25th]])/25)*5) + AAMC_Raw_Data_for_FY22[[#This Row],[25th]]","v":436353.2},{"$f":"(((AAMC_Raw_Data_for_FY22[[#This Row],[Median]]-AAMC_Raw_Data_for_FY22[[#This Row],[25th]])/25)*10) + AAMC_Raw_Data_for_FY22[[#This Row],[25th]]","v":447126.4},{"$f":"(((AAMC_Raw_Data_for_FY22[[#This Row],[Median]]-AAMC_Raw_Data_for_FY22[[#This Row],[25th]])/25)*15) + AAMC_Raw_Data_for_FY22[[#This Row],[25th]]","v":457899.6},{"$f":"(((AAMC_Raw_Data_for_FY22[[#This Row],[Median]]-AAMC_Raw_Data_for_FY22[[#This Row],[25th]])/25)*20) + AAMC_Raw_Data_for_FY22[[#This Row],[25th]]","v":468672.8},479446,{"$f":"(((AAMC_Raw_Data_for_FY22[[#This Row],[75th]]-AAMC_Raw_Data_for_FY22[[#This Row],[Median]])/25)*5) + AAMC_Raw_Data_for_FY22[[#This Row],[Median]]","v":487634.8},{"$f":"(((AAMC_Raw_Data_for_FY22[[#This Row],[75th]]-AAMC_Raw_Data_for_FY22[[#This Row],[Median]])/25)*10) + AAMC_Raw_Data_for_FY22[[#This Row],[Median]]","v":495823.6},{"$f":"(((AAMC_Raw_Data_for_FY22[[#This Row],[75th]]-AAMC_Raw_Data_for_FY22[[#This Row],[Median]])/25)*15) + AAMC_Raw_Data_for_FY22[[#This Row],[Median]]","v":504012.4},{"$f":"(((AAMC_Raw_Data_for_FY22[[#This Row],[75th]]-AAMC_Raw_Data_for_FY22[[#This Row],[Median]])/25)*20) + AAMC_Raw_Data_for_FY22[[#This Row],[Median]]","v":512201.2},520390,{"$f":"(((AAMC_Raw_Data_for_FY22[[#This Row],[75th]]-AAMC_Raw_Data_for_FY22[[#This Row],[Median]])/25)*30) + AAMC_Raw_Data_for_FY22[[#This Row],[Median]]","v":528578.80000000005},{"$f":"(((AAMC_Raw_Data_for_FY22[[#This Row],[75th]]-AAMC_Raw_Data_for_FY22[[#This Row],[Median]])/25)*35) + AAMC_Raw_Data_for_FY22[[#This Row],[Median]]","v":536767.6},{"$f":"(((AAMC_Raw_Data_for_FY22[[#This Row],[75th]]-AAMC_Raw_Data_for_FY22[[#This Row],[Median]])/25)*40) + AAMC_Raw_Data_for_FY22[[#This Row],[Median]]","v":544956.4}]
[{"$f":"AAMC_Raw_Data_for_FY22[[#This Row],[Source]]&AAMC_Raw_Data_for_FY22[[#This Row],[Type]]&AAMC_Raw_Data_for_FY22[[#This Row],[School Subset]]&AAMC_Raw_Data_for_FY22[[#This Row],[Rank]]&AAMC_Raw_Data_for_FY22[[#This Row],[Degree]]&AAMC_Raw_Data_for_FY22[[#This Row],[Department / Specialty]]&\"L\"","v":"AAMCAcademicPublicInstructorMDPreventive MedicineL"},"Preventive Medicine",5,"AAMC","Academic","Public","Instructor","MD","2021-2022",null,{"$f":"(((AAMC_Raw_Data_for_FY22[[#This Row],[Median]]-AAMC_Raw_Data_for_FY22[[#This Row],[25th]])/25)*5) + AAMC_Raw_Data_for_FY22[[#This Row],[25th]]","v":0},{"$f":"(((AAMC_Raw_Data_for_FY22[[#This Row],[Median]]-AAMC_Raw_Data_for_FY22[[#This Row],[25th]])/25)*10) + AAMC_Raw_Data_for_FY22[[#This Row],[25th]]","v":0},{"$f":"(((AAMC_Raw_Data_for_FY22[[#This Row],[Median]]-AAMC_Raw_Data_for_FY22[[#This Row],[25th]])/25)*15) + AAMC_Raw_Data_for_FY22[[#This Row],[25th]]","v":0},{"$f":"(((AAMC_Raw_Data_for_FY22[[#This Row],[Median]]-AAMC_Raw_Data_for_FY22[[#This Row],[25th]])/25)*20) + AAMC_Raw_Data_for_FY22[[#This Row],[25th]]","v":0},null,{"$f":"(((AAMC_Raw_Data_for_FY22[[#This Row],[75th]]-AAMC_Raw_Data_for_FY22[[#This Row],[Median]])/25)*5) + AAMC_Raw_Data_for_FY22[[#This Row],[Median]]","v":0},{"$f":"(((AAMC_Raw_Data_for_FY22[[#This Row],[75th]]-AAMC_Raw_Data_for_FY22[[#This Row],[Median]])/25)*10) + AAMC_Raw_Data_for_FY22[[#This Row],[Median]]","v":0},{"$f":"(((AAMC_Raw_Data_for_FY22[[#This Row],[75th]]-AAMC_Raw_Data_for_FY22[[#This Row],[Median]])/25)*15) + AAMC_Raw_Data_for_FY22[[#This Row],[Median]]","v":0},{"$f":"(((AAMC_Raw_Data_for_FY22[[#This Row],[75th]]-AAMC_Raw_Data_for_FY22[[#This Row],[Median]])/25)*20) + AAMC_Raw_Data_for_FY22[[#This Row],[Median]]","v":0},null,{"$f":"(((AAMC_Raw_Data_for_FY22[[#This Row],[75th]]-AAMC_Raw_Data_for_FY22[[#This Row],[Median]])/25)*30) + AAMC_Raw_Data_for_FY22[[#This Row],[Median]]","v":0},{"$f":"(((AAMC_Raw_Data_for_FY22[[#This Row],[75th]]-AAMC_Raw_Data_for_FY22[[#This Row],[Median]])/25)*35) + AAMC_Raw_Data_for_FY22[[#This Row],[Median]]","v":0},{"$f":"(((AAMC_Raw_Data_for_FY22[[#This Row],[75th]]-AAMC_Raw_Data_for_FY22[[#This Row],[Median]])/25)*40) + AAMC_Raw_Data_for_FY22[[#This Row],[Median]]","v":0}]
[{"$f":"AAMC_Raw_Data_for_FY22[[#This Row],[Source]]&AAMC_Raw_Data_for_FY22[[#This Row],[Type]]&AAMC_Raw_Data_for_FY22[[#This Row],[School Subset]]&AAMC_Raw_Data_for_FY22[[#This Row],[Rank]]&AAMC_Raw_Data_for_FY22[[#This Row],[Degree]]&AAMC_Raw_Data_for_FY22[[#This Row],[Department / Specialty]]&\"L\"","v":"AAMCAcademicPublicAssistantMDPreventive MedicineL"},"Preventive Medicine",4,"AAMC","Academic","Public","Assistant","MD","2021-2022",null,{"$f":"(((AAMC_Raw_Data_for_FY22[[#This Row],[Median]]-AAMC_Raw_Data_for_FY22[[#This Row],[25th]])/25)*5) + AAMC_Raw_Data_for_FY22[[#This Row],[25th]]","v":0},{"$f":"(((AAMC_Raw_Data_for_FY22[[#This Row],[Median]]-AAMC_Raw_Data_for_FY22[[#This Row],[25th]])/25)*10) + AAMC_Raw_Data_for_FY22[[#This Row],[25th]]","v":0},{"$f":"(((AAMC_Raw_Data_for_FY22[[#This Row],[Median]]-AAMC_Raw_Data_for_FY22[[#This Row],[25th]])/25)*15) + AAMC_Raw_Data_for_FY22[[#This Row],[25th]]","v":0},{"$f":"(((AAMC_Raw_Data_for_FY22[[#This Row],[Median]]-AAMC_Raw_Data_for_FY22[[#This Row],[25th]])/25)*20) + AAMC_Raw_Data_for_FY22[[#This Row],[25th]]","v":0},null,{"$f":"(((AAMC_Raw_Data_for_FY22[[#This Row],[75th]]-AAMC_Raw_Data_for_FY22[[#This Row],[Median]])/25)*5) + AAMC_Raw_Data_for_FY22[[#This Row],[Median]]","v":0},{"$f":"(((AAMC_Raw_Data_for_FY22[[#This Row],[75th]]-AAMC_Raw_Data_for_FY22[[#This Row],[Median]])/25)*10) + AAMC_Raw_Data_for_FY22[[#This Row],[Median]]","v":0},{"$f":"(((AAMC_Raw_Data_for_FY22[[#This Row],[75th]]-AAMC_Raw_Data_for_FY22[[#This Row],[Median]])/25)*15) + AAMC_Raw_Data_for_FY22[[#This Row],[Median]]","v":0},{"$f":"(((AAMC_Raw_Data_for_FY22[[#This Row],[75th]]-AAMC_Raw_Data_for_FY22[[#This Row],[Median]])/25)*20) + AAMC_Raw_Data_for_FY22[[#This Row],[Median]]","v":0},null,{"$f":"(((AAMC_Raw_Data_for_FY22[[#This Row],[75th]]-AAMC_Raw_Data_for_FY22[[#This Row],[Median]])/25)*30) + AAMC_Raw_Data_for_FY22[[#This Row],[Median]]","v":0},{"$f":"(((AAMC_Raw_Data_for_FY22[[#This Row],[75th]]-AAMC_Raw_Data_for_FY22[[#This Row],[Median]])/25)*35) + AAMC_Raw_Data_for_FY22[[#This Row],[Median]]","v":0},{"$f":"(((AAMC_Raw_Data_for_FY22[[#This Row],[75th]]-AAMC_Raw_Data_for_FY22[[#This Row],[Median]])/25)*40) + AAMC_Raw_Data_for_FY22[[#This Row],[Median]]","v":0}]
[{"$f":"AAMC_Raw_Data_for_FY22[[#This Row],[Source]]&AAMC_Raw_Data_for_FY22[[#This Row],[Type]]&AAMC_Raw_Data_for_FY22[[#This Row],[School Subset]]&AAMC_Raw_Data_for_FY22[[#This Row],[Rank]]&AAMC_Raw_Data_for_FY22[[#This Row],[Degree]]&AAMC_Raw_Data_for_FY22[[#This Row],[Department / Specialty]]&\"L\"","v":"AAMCAcademicPublicAssociateMDPreventive MedicineL"},"Preventive Medicine",3,"AAMC","Academic","Public","Associate","MD","2021-2022",175349,{"$f":"(((AAMC_Raw_Data_for_FY22[[#This Row],[Median]]-AAMC_Raw_Data_for_FY22[[#This Row],[25th]])/25)*5) + AAMC_Raw_Data_for_FY22[[#This Row],[25th]]","v":185879.2},{"$f":"(((AAMC_Raw_Data_for_FY22[[#This Row],[Median]]-AAMC_Raw_Data_for_FY22[[#This Row],[25th]])/25)*10) + AAMC_Raw_Data_for_FY22[[#This Row],[25th]]","v":196409.4},{"$f":"(((AAMC_Raw_Data_for_FY22[[#This Row],[Median]]-AAMC_Raw_Data_for_FY22[[#This Row],[25th]])/25)*15) + AAMC_Raw_Data_for_FY22[[#This Row],[25th]]","v":206939.6},{"$f":"(((AAMC_Raw_Data_for_FY22[[#This Row],[Median]]-AAMC_Raw_Data_for_FY22[[#This Row],[25th]])/25)*20) + AAMC_Raw_Data_for_FY22[[#This Row],[25th]]","v":217469.8},228000,{"$f":"(((AAMC_Raw_Data_for_FY22[[#This Row],[75th]]-AAMC_Raw_Data_for_FY22[[#This Row],[Median]])/25)*5) + AAMC_Raw_Data_for_FY22[[#This Row],[Median]]","v":228450},{"$f":"(((AAMC_Raw_Data_for_FY22[[#This Row],[75th]]-AAMC_Raw_Data_for_FY22[[#This Row],[Median]])/25)*10) + AAMC_Raw_Data_for_FY22[[#This Row],[Median]]","v":228900},{"$f":"(((AAMC_Raw_Data_for_FY22[[#This Row],[75th]]-AAMC_Raw_Data_for_FY22[[#This Row],[Median]])/25)*15) + AAMC_Raw_Data_for_FY22[[#This Row],[Median]]","v":229350},{"$f":"(((AAMC_Raw_Data_for_FY22[[#This Row],[75th]]-AAMC_Raw_Data_for_FY22[[#This Row],[Median]])/25)*20) + AAMC_Raw_Data_for_FY22[[#This Row],[Median]]","v":229800},230250,{"$f":"(((AAMC_Raw_Data_for_FY22[[#This Row],[75th]]-AAMC_Raw_Data_for_FY22[[#This Row],[Median]])/25)*30) + AAMC_Raw_Data_for_FY22[[#This Row],[Median]]","v":230700},{"$f":"(((AAMC_Raw_Data_for_FY22[[#This Row],[75th]]-AAMC_Raw_Data_for_FY22[[#This Row],[Median]])/25)*35) + AAMC_Raw_Data_for_FY22[[#This Row],[Median]]","v":231150},{"$f":"(((AAMC_Raw_Data_for_FY22[[#This Row],[75th]]-AAMC_Raw_Data_for_FY22[[#This Row],[Median]])/25)*40) + AAMC_Raw_Data_for_FY22[[#This Row],[Median]]","v":231600}]
[{"$f":"AAMC_Raw_Data_for_FY22[[#This Row],[Source]]&AAMC_Raw_Data_for_FY22[[#This Row],[Type]]&AAMC_Raw_Data_for_FY22[[#This Row],[School Subset]]&AAMC_Raw_Data_for_FY22[[#This Row],[Rank]]&AAMC_Raw_Data_for_FY22[[#This Row],[Degree]]&AAMC_Raw_Data_for_FY22[[#This Row],[Department / Specialty]]&\"L\"","v":"AAMCAcademicPublicProfessorMDPreventive MedicineL"},"Preventive Medicine",2,"AAMC","Academic","Public","Professor","MD","2021-2022",266330,{"$f":"(((AAMC_Raw_Data_for_FY22[[#This Row],[Median]]-AAMC_Raw_Data_for_FY22[[#This Row],[25th]])/25)*5) + AAMC_Raw_Data_for_FY22[[#This Row],[25th]]","v":270055.40000000002},{"$f":"(((AAMC_Raw_Data_for_FY22[[#This Row],[Median]]-AAMC_Raw_Data_for_FY22[[#This Row],[25th]])/25)*10) + AAMC_Raw_Data_for_FY22[[#This Row],[25th]]","v":273780.8},{"$f":"(((AAMC_Raw_Data_for_FY22[[#This Row],[Median]]-AAMC_Raw_Data_for_FY22[[#This Row],[25th]])/25)*15) + AAMC_Raw_Data_for_FY22[[#This Row],[25th]]","v":277506.2},{"$f":"(((AAMC_Raw_Data_for_FY22[[#This Row],[Median]]-AAMC_Raw_Data_for_FY22[[#This Row],[25th]])/25)*20) + AAMC_Raw_Data_for_FY22[[#This Row],[25th]]","v":281231.59999999998},284957,{"$f":"(((AAMC_Raw_Data_for_FY22[[#This Row],[75th]]-AAMC_Raw_Data_for_FY22[[#This Row],[Median]])/25)*5) + AAMC_Raw_Data_for_FY22[[#This Row],[Median]]","v":297978},{"$f":"(((AAMC_Raw_Data_for_FY22[[#This Row],[75th]]-AAMC_Raw_Data_for_FY22[[#This Row],[Median]])/25)*10) + AAMC_Raw_Data_for_FY22[[#This Row],[Median]]","v":310999},{"$f":"(((AAMC_Raw_Data_for_FY22[[#This Row],[75th]]-AAMC_Raw_Data_for_FY22[[#This Row],[Median]])/25)*15) + AAMC_Raw_Data_for_FY22[[#This Row],[Median]]","v":324020},{"$f":"(((AAMC_Raw_Data_for_FY22[[#This Row],[75th]]-AAMC_Raw_Data_for_FY22[[#This Row],[Median]])/25)*20) + AAMC_Raw_Data_for_FY22[[#This Row],[Median]]","v":337041},350062,{"$f":"(((AAMC_Raw_Data_for_FY22[[#This Row],[75th]]-AAMC_Raw_Data_for_FY22[[#This Row],[Median]])/25)*30) + AAMC_Raw_Data_for_FY22[[#This Row],[Median]]","v":363083},{"$f":"(((AAMC_Raw_Data_for_FY22[[#This Row],[75th]]-AAMC_Raw_Data_for_FY22[[#This Row],[Median]])/25)*35) + AAMC_Raw_Data_for_FY22[[#This Row],[Median]]","v":376104},{"$f":"(((AAMC_Raw_Data_for_FY22[[#This Row],[75th]]-AAMC_Raw_Data_for_FY22[[#This Row],[Median]])/25)*40) + AAMC_Raw_Data_for_FY22[[#This Row],[Median]]","v":389125}]
[{"$f":"AAMC_Raw_Data_for_FY22[[#This Row],[Source]]&AAMC_Raw_Data_for_FY22[[#This Row],[Type]]&AAMC_Raw_Data_for_FY22[[#This Row],[School Subset]]&AAMC_Raw_Data_for_FY22[[#This Row],[Rank]]&AAMC_Raw_Data_for_FY22[[#This Row],[Degree]]&AAMC_Raw_Data_for_FY22[[#This Row],[Department / Specialty]]&\"L\"","v":"AAMCAcademicPublicChiefMDPreventive MedicineL"},"Preventive Medicine",6,"AAMC","Academic","Public","Chief","MD","2021-2022",null,{"$f":"(((AAMC_Raw_Data_for_FY22[[#This Row],[Median]]-AAMC_Raw_Data_for_FY22[[#This Row],[25th]])/25)*5) + AAMC_Raw_Data_for_FY22[[#This Row],[25th]]","v":0},{"$f":"(((AAMC_Raw_Data_for_FY22[[#This Row],[Median]]-AAMC_Raw_Data_for_FY22[[#This Row],[25th]])/25)*10) + AAMC_Raw_Data_for_FY22[[#This Row],[25th]]","v":0},{"$f":"(((AAMC_Raw_Data_for_FY22[[#This Row],[Median]]-AAMC_Raw_Data_for_FY22[[#This Row],[25th]])/25)*15) + AAMC_Raw_Data_for_FY22[[#This Row],[25th]]","v":0},{"$f":"(((AAMC_Raw_Data_for_FY22[[#This Row],[Median]]-AAMC_Raw_Data_for_FY22[[#This Row],[25th]])/25)*20) + AAMC_Raw_Data_for_FY22[[#This Row],[25th]]","v":0},null,{"$f":"(((AAMC_Raw_Data_for_FY22[[#This Row],[75th]]-AAMC_Raw_Data_for_FY22[[#This Row],[Median]])/25)*5) + AAMC_Raw_Data_for_FY22[[#This Row],[Median]]","v":0},{"$f":"(((AAMC_Raw_Data_for_FY22[[#This Row],[75th]]-AAMC_Raw_Data_for_FY22[[#This Row],[Median]])/25)*10) + AAMC_Raw_Data_for_FY22[[#This Row],[Median]]","v":0},{"$f":"(((AAMC_Raw_Data_for_FY22[[#This Row],[75th]]-AAMC_Raw_Data_for_FY22[[#This Row],[Median]])/25)*15) + AAMC_Raw_Data_for_FY22[[#This Row],[Median]]","v":0},{"$f":"(((AAMC_Raw_Data_for_FY22[[#This Row],[75th]]-AAMC_Raw_Data_for_FY22[[#This Row],[Median]])/25)*20) + AAMC_Raw_Data_for_FY22[[#This Row],[Median]]","v":0},null,{"$f":"(((AAMC_Raw_Data_for_FY22[[#This Row],[75th]]-AAMC_Raw_Data_for_FY22[[#This Row],[Median]])/25)*30) + AAMC_Raw_Data_for_FY22[[#This Row],[Median]]","v":0},{"$f":"(((AAMC_Raw_Data_for_FY22[[#This Row],[75th]]-AAMC_Raw_Data_for_FY22[[#This Row],[Median]])/25)*35) + AAMC_Raw_Data_for_FY22[[#This Row],[Median]]","v":0},{"$f":"(((AAMC_Raw_Data_for_FY22[[#This Row],[75th]]-AAMC_Raw_Data_for_FY22[[#This Row],[Median]])/25)*40) + AAMC_Raw_Data_for_FY22[[#This Row],[Median]]","v":0}]
[{"$f":"AAMC_Raw_Data_for_FY22[[#This Row],[Source]]&AAMC_Raw_Data_for_FY22[[#This Row],[Type]]&AAMC_Raw_Data_for_FY22[[#This Row],[School Subset]]&AAMC_Raw_Data_for_FY22[[#This Row],[Rank]]&AAMC_Raw_Data_for_FY22[[#This Row],[Degree]]&AAMC_Raw_Data_for_FY22[[#This Row],[Department / Specialty]]&\"L\"","v":"AAMCAcademicPublicChairMDPreventive MedicineL"},"Preventive Medicine",1,"AAMC","Academic","Public","Chair","MD","2021-2022",null,{"$f":"(((AAMC_Raw_Data_for_FY22[[#This Row],[Median]]-AAMC_Raw_Data_for_FY22[[#This Row],[25th]])/25)*5) + AAMC_Raw_Data_for_FY22[[#This Row],[25th]]","v":0},{"$f":"(((AAMC_Raw_Data_for_FY22[[#This Row],[Median]]-AAMC_Raw_Data_for_FY22[[#This Row],[25th]])/25)*10) + AAMC_Raw_Data_for_FY22[[#This Row],[25th]]","v":0},{"$f":"(((AAMC_Raw_Data_for_FY22[[#This Row],[Median]]-AAMC_Raw_Data_for_FY22[[#This Row],[25th]])/25)*15) + AAMC_Raw_Data_for_FY22[[#This Row],[25th]]","v":0},{"$f":"(((AAMC_Raw_Data_for_FY22[[#This Row],[Median]]-AAMC_Raw_Data_for_FY22[[#This Row],[25th]])/25)*20) + AAMC_Raw_Data_for_FY22[[#This Row],[25th]]","v":0},null,{"$f":"(((AAMC_Raw_Data_for_FY22[[#This Row],[75th]]-AAMC_Raw_Data_for_FY22[[#This Row],[Median]])/25)*5) + AAMC_Raw_Data_for_FY22[[#This Row],[Median]]","v":0},{"$f":"(((AAMC_Raw_Data_for_FY22[[#This Row],[75th]]-AAMC_Raw_Data_for_FY22[[#This Row],[Median]])/25)*10) + AAMC_Raw_Data_for_FY22[[#This Row],[Median]]","v":0},{"$f":"(((AAMC_Raw_Data_for_FY22[[#This Row],[75th]]-AAMC_Raw_Data_for_FY22[[#This Row],[Median]])/25)*15) + AAMC_Raw_Data_for_FY22[[#This Row],[Median]]","v":0},{"$f":"(((AAMC_Raw_Data_for_FY22[[#This Row],[75th]]-AAMC_Raw_Data_for_FY22[[#This Row],[Median]])/25)*20) + AAMC_Raw_Data_for_FY22[[#This Row],[Median]]","v":0},null,{"$f":"(((AAMC_Raw_Data_for_FY22[[#This Row],[75th]]-AAMC_Raw_Data_for_FY22[[#This Row],[Median]])/25)*30) + AAMC_Raw_Data_for_FY22[[#This Row],[Median]]","v":0},{"$f":"(((AAMC_Raw_Data_for_FY22[[#This Row],[75th]]-AAMC_Raw_Data_for_FY22[[#This Row],[Median]])/25)*35) + AAMC_Raw_Data_for_FY22[[#This Row],[Median]]","v":0},{"$f":"(((AAMC_Raw_Data_for_FY22[[#This Row],[75th]]-AAMC_Raw_Data_for_FY22[[#This Row],[Median]])/25)*40) + AAMC_Raw_Data_for_FY22[[#This Row],[Median]]","v":0}]
[{"$f":"AAMC_Raw_Data_for_FY22[[#This Row],[Source]]&AAMC_Raw_Data_for_FY22[[#This Row],[Type]]&AAMC_Raw_Data_for_FY22[[#This Row],[School Subset]]&AAMC_Raw_Data_for_FY22[[#This Row],[Rank]]&AAMC_Raw_Data_for_FY22[[#This Row],[Degree]]&AAMC_Raw_Data_for_FY22[[#This Row],[Department / Specialty]]&\"L\"","v":"AAMCAcademicPublicInstructorMDOther Clinical SciencesL"},"Other Clinical Sciences",5,"AAMC","Academic","Public","Instructor","MD","2021-2022",null,{"$f":"(((AAMC_Raw_Data_for_FY22[[#This Row],[Median]]-AAMC_Raw_Data_for_FY22[[#This Row],[25th]])/25)*5) + AAMC_Raw_Data_for_FY22[[#This Row],[25th]]","v":0},{"$f":"(((AAMC_Raw_Data_for_FY22[[#This Row],[Median]]-AAMC_Raw_Data_for_FY22[[#This Row],[25th]])/25)*10) + AAMC_Raw_Data_for_FY22[[#This Row],[25th]]","v":0},{"$f":"(((AAMC_Raw_Data_for_FY22[[#This Row],[Median]]-AAMC_Raw_Data_for_FY22[[#This Row],[25th]])/25)*15) + AAMC_Raw_Data_for_FY22[[#This Row],[25th]]","v":0},{"$f":"(((AAMC_Raw_Data_for_FY22[[#This Row],[Median]]-AAMC_Raw_Data_for_FY22[[#This Row],[25th]])/25)*20) + AAMC_Raw_Data_for_FY22[[#This Row],[25th]]","v":0},null,{"$f":"(((AAMC_Raw_Data_for_FY22[[#This Row],[75th]]-AAMC_Raw_Data_for_FY22[[#This Row],[Median]])/25)*5) + AAMC_Raw_Data_for_FY22[[#This Row],[Median]]","v":0},{"$f":"(((AAMC_Raw_Data_for_FY22[[#This Row],[75th]]-AAMC_Raw_Data_for_FY22[[#This Row],[Median]])/25)*10) + AAMC_Raw_Data_for_FY22[[#This Row],[Median]]","v":0},{"$f":"(((AAMC_Raw_Data_for_FY22[[#This Row],[75th]]-AAMC_Raw_Data_for_FY22[[#This Row],[Median]])/25)*15) + AAMC_Raw_Data_for_FY22[[#This Row],[Median]]","v":0},{"$f":"(((AAMC_Raw_Data_for_FY22[[#This Row],[75th]]-AAMC_Raw_Data_for_FY22[[#This Row],[Median]])/25)*20) + AAMC_Raw_Data_for_FY22[[#This Row],[Median]]","v":0},null,{"$f":"(((AAMC_Raw_Data_for_FY22[[#This Row],[75th]]-AAMC_Raw_Data_for_FY22[[#This Row],[Median]])/25)*30) + AAMC_Raw_Data_for_FY22[[#This Row],[Median]]","v":0},{"$f":"(((AAMC_Raw_Data_for_FY22[[#This Row],[75th]]-AAMC_Raw_Data_for_FY22[[#This Row],[Median]])/25)*35) + AAMC_Raw_Data_for_FY22[[#This Row],[Median]]","v":0},{"$f":"(((AAMC_Raw_Data_for_FY22[[#This Row],[75th]]-AAMC_Raw_Data_for_FY22[[#This Row],[Median]])/25)*40) + AAMC_Raw_Data_for_FY22[[#This Row],[Median]]","v":0}]
[{"$f":"AAMC_Raw_Data_for_FY22[[#This Row],[Source]]&AAMC_Raw_Data_for_FY22[[#This Row],[Type]]&AAMC_Raw_Data_for_FY22[[#This Row],[School Subset]]&AAMC_Raw_Data_for_FY22[[#This Row],[Rank]]&AAMC_Raw_Data_for_FY22[[#This Row],[Degree]]&AAMC_Raw_Data_for_FY22[[#This Row],[Department / Specialty]]&\"L\"","v":"AAMCAcademicPublicAssistantMDOther Clinical SciencesL"},"Other Clinical Sciences",4,"AAMC","Academic","Public","Assistant","MD","2021-2022",170582,{"$f":"(((AAMC_Raw_Data_for_FY22[[#This Row],[Median]]-AAMC_Raw_Data_for_FY22[[#This Row],[25th]])/25)*5) + AAMC_Raw_Data_for_FY22[[#This Row],[25th]]","v":178263.2},{"$f":"(((AAMC_Raw_Data_for_FY22[[#This Row],[Median]]-AAMC_Raw_Data_for_FY22[[#This Row],[25th]])/25)*10) + AAMC_Raw_Data_for_FY22[[#This Row],[25th]]","v":185944.4},{"$f":"(((AAMC_Raw_Data_for_FY22[[#This Row],[Median]]-AAMC_Raw_Data_for_FY22[[#This Row],[25th]])/25)*15) + AAMC_Raw_Data_for_FY22[[#This Row],[25th]]","v":193625.60000000001},{"$f":"(((AAMC_Raw_Data_for_FY22[[#This Row],[Median]]-AAMC_Raw_Data_for_FY22[[#This Row],[25th]])/25)*20) + AAMC_Raw_Data_for_FY22[[#This Row],[25th]]","v":201306.8},208988,{"$f":"(((AAMC_Raw_Data_for_FY22[[#This Row],[75th]]-AAMC_Raw_Data_for_FY22[[#This Row],[Median]])/25)*5) + AAMC_Raw_Data_for_FY22[[#This Row],[Median]]","v":218448},{"$f":"(((AAMC_Raw_Data_for_FY22[[#This Row],[75th]]-AAMC_Raw_Data_for_FY22[[#This Row],[Median]])/25)*10) + AAMC_Raw_Data_for_FY22[[#This Row],[Median]]","v":227908},{"$f":"(((AAMC_Raw_Data_for_FY22[[#This Row],[75th]]-AAMC_Raw_Data_for_FY22[[#This Row],[Median]])/25)*15) + AAMC_Raw_Data_for_FY22[[#This Row],[Median]]","v":237368},{"$f":"(((AAMC_Raw_Data_for_FY22[[#This Row],[75th]]-AAMC_Raw_Data_for_FY22[[#This Row],[Median]])/25)*20) + AAMC_Raw_Data_for_FY22[[#This Row],[Median]]","v":246828},256288,{"$f":"(((AAMC_Raw_Data_for_FY22[[#This Row],[75th]]-AAMC_Raw_Data_for_FY22[[#This Row],[Median]])/25)*30) + AAMC_Raw_Data_for_FY22[[#This Row],[Median]]","v":265748},{"$f":"(((AAMC_Raw_Data_for_FY22[[#This Row],[75th]]-AAMC_Raw_Data_for_FY22[[#This Row],[Median]])/25)*35) + AAMC_Raw_Data_for_FY22[[#This Row],[Median]]","v":275208},{"$f":"(((AAMC_Raw_Data_for_FY22[[#This Row],[75th]]-AAMC_Raw_Data_for_FY22[[#This Row],[Median]])/25)*40) + AAMC_Raw_Data_for_FY22[[#This Row],[Median]]","v":284668}]
[{"$f":"AAMC_Raw_Data_for_FY22[[#This Row],[Source]]&AAMC_Raw_Data_for_FY22[[#This Row],[Type]]&AAMC_Raw_Data_for_FY22[[#This Row],[School Subset]]&AAMC_Raw_Data_for_FY22[[#This Row],[Rank]]&AAMC_Raw_Data_for_FY22[[#This Row],[Degree]]&AAMC_Raw_Data_for_FY22[[#This Row],[Department / Specialty]]&\"L\"","v":"AAMCAcademicPublicAssociateMDOther Clinical SciencesL"},"Other Clinical Sciences",3,"AAMC","Academic","Public","Associate","MD","2021-2022",185814,{"$f":"(((AAMC_Raw_Data_for_FY22[[#This Row],[Median]]-AAMC_Raw_Data_for_FY22[[#This Row],[25th]])/25)*5) + AAMC_Raw_Data_for_FY22[[#This Row],[25th]]","v":198549},{"$f":"(((AAMC_Raw_Data_for_FY22[[#This Row],[Median]]-AAMC_Raw_Data_for_FY22[[#This Row],[25th]])/25)*10) + AAMC_Raw_Data_for_FY22[[#This Row],[25th]]","v":211284},{"$f":"(((AAMC_Raw_Data_for_FY22[[#This Row],[Median]]-AAMC_Raw_Data_for_FY22[[#This Row],[25th]])/25)*15) + AAMC_Raw_Data_for_FY22[[#This Row],[25th]]","v":224019},{"$f":"(((AAMC_Raw_Data_for_FY22[[#This Row],[Median]]-AAMC_Raw_Data_for_FY22[[#This Row],[25th]])/25)*20) + AAMC_Raw_Data_for_FY22[[#This Row],[25th]]","v":236754},249489,{"$f":"(((AAMC_Raw_Data_for_FY22[[#This Row],[75th]]-AAMC_Raw_Data_for_FY22[[#This Row],[Median]])/25)*5) + AAMC_Raw_Data_for_FY22[[#This Row],[Median]]","v":298990.40000000002},{"$f":"(((AAMC_Raw_Data_for_FY22[[#This Row],[75th]]-AAMC_Raw_Data_for_FY22[[#This Row],[Median]])/25)*10) + AAMC_Raw_Data_for_FY22[[#This Row],[Median]]","v":348491.8},{"$f":"(((AAMC_Raw_Data_for_FY22[[#This Row],[75th]]-AAMC_Raw_Data_for_FY22[[#This Row],[Median]])/25)*15) + AAMC_Raw_Data_for_FY22[[#This Row],[Median]]","v":397993.2},{"$f":"(((AAMC_Raw_Data_for_FY22[[#This Row],[75th]]-AAMC_Raw_Data_for_FY22[[#This Row],[Median]])/25)*20) + AAMC_Raw_Data_for_FY22[[#This Row],[Median]]","v":447494.6},496996,{"$f":"(((AAMC_Raw_Data_for_FY22[[#This Row],[75th]]-AAMC_Raw_Data_for_FY22[[#This Row],[Median]])/25)*30) + AAMC_Raw_Data_for_FY22[[#This Row],[Median]]","v":546497.4},{"$f":"(((AAMC_Raw_Data_for_FY22[[#This Row],[75th]]-AAMC_Raw_Data_for_FY22[[#This Row],[Median]])/25)*35) + AAMC_Raw_Data_for_FY22[[#This Row],[Median]]","v":595998.80000000005},{"$f":"(((AAMC_Raw_Data_for_FY22[[#This Row],[75th]]-AAMC_Raw_Data_for_FY22[[#This Row],[Median]])/25)*40) + AAMC_Raw_Data_for_FY22[[#This Row],[Median]]","v":645500.19999999995}]
[{"$f":"AAMC_Raw_Data_for_FY22[[#This Row],[Source]]&AAMC_Raw_Data_for_FY22[[#This Row],[Type]]&AAMC_Raw_Data_for_FY22[[#This Row],[School Subset]]&AAMC_Raw_Data_for_FY22[[#This Row],[Rank]]&AAMC_Raw_Data_for_FY22[[#This Row],[Degree]]&AAMC_Raw_Data_for_FY22[[#This Row],[Department / Specialty]]&\"L\"","v":"AAMCAcademicPublicProfessorMDOther Clinical SciencesL"},"Other Clinical Sciences",2,"AAMC","Academic","Public","Professor","MD","2021-2022",180599,{"$f":"(((AAMC_Raw_Data_for_FY22[[#This Row],[Median]]-AAMC_Raw_Data_for_FY22[[#This Row],[25th]])/25)*5) + AAMC_Raw_Data_for_FY22[[#This Row],[25th]]","v":197787},{"$f":"(((AAMC_Raw_Data_for_FY22[[#This Row],[Median]]-AAMC_Raw_Data_for_FY22[[#This Row],[25th]])/25)*10) + AAMC_Raw_Data_for_FY22[[#This Row],[25th]]","v":214975},{"$f":"(((AAMC_Raw_Data_for_FY22[[#This Row],[Median]]-AAMC_Raw_Data_for_FY22[[#This Row],[25th]])/25)*15) + AAMC_Raw_Data_for_FY22[[#This Row],[25th]]","v":232163},{"$f":"(((AAMC_Raw_Data_for_FY22[[#This Row],[Median]]-AAMC_Raw_Data_for_FY22[[#This Row],[25th]])/25)*20) + AAMC_Raw_Data_for_FY22[[#This Row],[25th]]","v":249351},266539,{"$f":"(((AAMC_Raw_Data_for_FY22[[#This Row],[75th]]-AAMC_Raw_Data_for_FY22[[#This Row],[Median]])/25)*5) + AAMC_Raw_Data_for_FY22[[#This Row],[Median]]","v":290566.8},{"$f":"(((AAMC_Raw_Data_for_FY22[[#This Row],[75th]]-AAMC_Raw_Data_for_FY22[[#This Row],[Median]])/25)*10) + AAMC_Raw_Data_for_FY22[[#This Row],[Median]]","v":314594.59999999998},{"$f":"(((AAMC_Raw_Data_for_FY22[[#This Row],[75th]]-AAMC_Raw_Data_for_FY22[[#This Row],[Median]])/25)*15) + AAMC_Raw_Data_for_FY22[[#This Row],[Median]]","v":338622.4},{"$f":"(((AAMC_Raw_Data_for_FY22[[#This Row],[75th]]-AAMC_Raw_Data_for_FY22[[#This Row],[Median]])/25)*20) + AAMC_Raw_Data_for_FY22[[#This Row],[Median]]","v":362650.2},386678,{"$f":"(((AAMC_Raw_Data_for_FY22[[#This Row],[75th]]-AAMC_Raw_Data_for_FY22[[#This Row],[Median]])/25)*30) + AAMC_Raw_Data_for_FY22[[#This Row],[Median]]","v":410705.80000000005},{"$f":"(((AAMC_Raw_Data_for_FY22[[#This Row],[75th]]-AAMC_Raw_Data_for_FY22[[#This Row],[Median]])/25)*35) + AAMC_Raw_Data_for_FY22[[#This Row],[Median]]","v":434733.6},{"$f":"(((AAMC_Raw_Data_for_FY22[[#This Row],[75th]]-AAMC_Raw_Data_for_FY22[[#This Row],[Median]])/25)*40) + AAMC_Raw_Data_for_FY22[[#This Row],[Median]]","v":458761.4}]
[{"$f":"AAMC_Raw_Data_for_FY22[[#This Row],[Source]]&AAMC_Raw_Data_for_FY22[[#This Row],[Type]]&AAMC_Raw_Data_for_FY22[[#This Row],[School Subset]]&AAMC_Raw_Data_for_FY22[[#This Row],[Rank]]&AAMC_Raw_Data_for_FY22[[#This Row],[Degree]]&AAMC_Raw_Data_for_FY22[[#This Row],[Department / Specialty]]&\"L\"","v":"AAMCAcademicPublicChairMDOther Clinical SciencesL"},"Other Clinical Sciences",1,"AAMC","Academic","Public","Chair","MD","2021-2022",null,{"$f":"(((AAMC_Raw_Data_for_FY22[[#This Row],[Median]]-AAMC_Raw_Data_for_FY22[[#This Row],[25th]])/25)*5) + AAMC_Raw_Data_for_FY22[[#This Row],[25th]]","v":0},{"$f":"(((AAMC_Raw_Data_for_FY22[[#This Row],[Median]]-AAMC_Raw_Data_for_FY22[[#This Row],[25th]])/25)*10) + AAMC_Raw_Data_for_FY22[[#This Row],[25th]]","v":0},{"$f":"(((AAMC_Raw_Data_for_FY22[[#This Row],[Median]]-AAMC_Raw_Data_for_FY22[[#This Row],[25th]])/25)*15) + AAMC_Raw_Data_for_FY22[[#This Row],[25th]]","v":0},{"$f":"(((AAMC_Raw_Data_for_FY22[[#This Row],[Median]]-AAMC_Raw_Data_for_FY22[[#This Row],[25th]])/25)*20) + AAMC_Raw_Data_for_FY22[[#This Row],[25th]]","v":0},null,{"$f":"(((AAMC_Raw_Data_for_FY22[[#This Row],[75th]]-AAMC_Raw_Data_for_FY22[[#This Row],[Median]])/25)*5) + AAMC_Raw_Data_for_FY22[[#This Row],[Median]]","v":0},{"$f":"(((AAMC_Raw_Data_for_FY22[[#This Row],[75th]]-AAMC_Raw_Data_for_FY22[[#This Row],[Median]])/25)*10) + AAMC_Raw_Data_for_FY22[[#This Row],[Median]]","v":0},{"$f":"(((AAMC_Raw_Data_for_FY22[[#This Row],[75th]]-AAMC_Raw_Data_for_FY22[[#This Row],[Median]])/25)*15) + AAMC_Raw_Data_for_FY22[[#This Row],[Median]]","v":0},{"$f":"(((AAMC_Raw_Data_for_FY22[[#This Row],[75th]]-AAMC_Raw_Data_for_FY22[[#This Row],[Median]])/25)*20) + AAMC_Raw_Data_for_FY22[[#This Row],[Median]]","v":0},null,{"$f":"(((AAMC_Raw_Data_for_FY22[[#This Row],[75th]]-AAMC_Raw_Data_for_FY22[[#This Row],[Median]])/25)*30) + AAMC_Raw_Data_for_FY22[[#This Row],[Median]]","v":0},{"$f":"(((AAMC_Raw_Data_for_FY22[[#This Row],[75th]]-AAMC_Raw_Data_for_FY22[[#This Row],[Median]])/25)*35) + AAMC_Raw_Data_for_FY22[[#This Row],[Median]]","v":0},{"$f":"(((AAMC_Raw_Data_for_FY22[[#This Row],[75th]]-AAMC_Raw_Data_for_FY22[[#This Row],[Median]])/25)*40) + AAMC_Raw_Data_for_FY22[[#This Row],[Median]]","v":0}]
[{"$f":"AAMC_Raw_Data_for_FY22[[#This Row],[Source]]&AAMC_Raw_Data_for_FY22[[#This Row],[Type]]&AAMC_Raw_Data_for_FY22[[#This Row],[School Subset]]&AAMC_Raw_Data_for_FY22[[#This Row],[Rank]]&AAMC_Raw_Data_for_FY22[[#This Row],[Degree]]&AAMC_Raw_Data_for_FY22[[#This Row],[Department / Specialty]]&\"L\"","v":"AAMCAcademicAllInstructorPhDClinical Sciences TotalL"},"Clinical Sciences Total",5,"AAMC","Academic","All","Instructor","PhD","2021-2022",70000,{"$f":"(((AAMC_Raw_Data_for_FY22[[#This Row],[Median]]-AAMC_Raw_Data_for_FY22[[#This Row],[25th]])/25)*5) + AAMC_Raw_Data_for_FY22[[#This Row],[25th]]","v":73020},{"$f":"(((AAMC_Raw_Data_for_FY22[[#This Row],[Median]]-AAMC_Raw_Data_for_FY22[[#This Row],[25th]])/25)*10) + AAMC_Raw_Data_for_FY22[[#This Row],[25th]]","v":76040},{"$f":"(((AAMC_Raw_Data_for_FY22[[#This Row],[Median]]-AAMC_Raw_Data_for_FY22[[#This Row],[25th]])/25)*15) + AAMC_Raw_Data_for_FY22[[#This Row],[25th]]","v":79060},{"$f":"(((AAMC_Raw_Data_for_FY22[[#This Row],[Median]]-AAMC_Raw_Data_for_FY22[[#This Row],[25th]])/25)*20) + AAMC_Raw_Data_for_FY22[[#This Row],[25th]]","v":82080},85100,{"$f":"(((AAMC_Raw_Data_for_FY22[[#This Row],[75th]]-AAMC_Raw_Data_for_FY22[[#This Row],[Median]])/25)*5) + AAMC_Raw_Data_for_FY22[[#This Row],[Median]]","v":89890.2},{"$f":"(((AAMC_Raw_Data_for_FY22[[#This Row],[75th]]-AAMC_Raw_Data_for_FY22[[#This Row],[Median]])/25)*10) + AAMC_Raw_Data_for_FY22[[#This Row],[Median]]","v":94680.4},{"$f":"(((AAMC_Raw_Data_for_FY22[[#This Row],[75th]]-AAMC_Raw_Data_for_FY22[[#This Row],[Median]])/25)*15) + AAMC_Raw_Data_for_FY22[[#This Row],[Median]]","v":99470.6},{"$f":"(((AAMC_Raw_Data_for_FY22[[#This Row],[75th]]-AAMC_Raw_Data_for_FY22[[#This Row],[Median]])/25)*20) + AAMC_Raw_Data_for_FY22[[#This Row],[Median]]","v":104260.8},109051,{"$f":"(((AAMC_Raw_Data_for_FY22[[#This Row],[75th]]-AAMC_Raw_Data_for_FY22[[#This Row],[Median]])/25)*30) + AAMC_Raw_Data_for_FY22[[#This Row],[Median]]","v":113841.2},{"$f":"(((AAMC_Raw_Data_for_FY22[[#This Row],[75th]]-AAMC_Raw_Data_for_FY22[[#This Row],[Median]])/25)*35) + AAMC_Raw_Data_for_FY22[[#This Row],[Median]]","v":118631.4},{"$f":"(((AAMC_Raw_Data_for_FY22[[#This Row],[75th]]-AAMC_Raw_Data_for_FY22[[#This Row],[Median]])/25)*40) + AAMC_Raw_Data_for_FY22[[#This Row],[Median]]","v":123421.6}]
[{"$f":"AAMC_Raw_Data_for_FY22[[#This Row],[Source]]&AAMC_Raw_Data_for_FY22[[#This Row],[Type]]&AAMC_Raw_Data_for_FY22[[#This Row],[School Subset]]&AAMC_Raw_Data_for_FY22[[#This Row],[Rank]]&AAMC_Raw_Data_for_FY22[[#This Row],[Degree]]&AAMC_Raw_Data_for_FY22[[#This Row],[Department / Specialty]]&\"L\"","v":"AAMCAcademicAllAssistantPhDClinical Sciences TotalL"},"Clinical Sciences Total",4,"AAMC","Academic","All","Assistant","PhD","2021-2022",97822,{"$f":"(((AAMC_Raw_Data_for_FY22[[#This Row],[Median]]-AAMC_Raw_Data_for_FY22[[#This Row],[25th]])/25)*5) + AAMC_Raw_Data_for_FY22[[#This Row],[25th]]","v":101217.60000000001},{"$f":"(((AAMC_Raw_Data_for_FY22[[#This Row],[Median]]-AAMC_Raw_Data_for_FY22[[#This Row],[25th]])/25)*10) + AAMC_Raw_Data_for_FY22[[#This Row],[25th]]","v":104613.2},{"$f":"(((AAMC_Raw_Data_for_FY22[[#This Row],[Median]]-AAMC_Raw_Data_for_FY22[[#This Row],[25th]])/25)*15) + AAMC_Raw_Data_for_FY22[[#This Row],[25th]]","v":108008.8},{"$f":"(((AAMC_Raw_Data_for_FY22[[#This Row],[Median]]-AAMC_Raw_Data_for_FY22[[#This Row],[25th]])/25)*20) + AAMC_Raw_Data_for_FY22[[#This Row],[25th]]","v":111404.4},114800,{"$f":"(((AAMC_Raw_Data_for_FY22[[#This Row],[75th]]-AAMC_Raw_Data_for_FY22[[#This Row],[Median]])/25)*5) + AAMC_Raw_Data_for_FY22[[#This Row],[Median]]","v":119079},{"$f":"(((AAMC_Raw_Data_for_FY22[[#This Row],[75th]]-AAMC_Raw_Data_for_FY22[[#This Row],[Median]])/25)*10) + AAMC_Raw_Data_for_FY22[[#This Row],[Median]]","v":123358},{"$f":"(((AAMC_Raw_Data_for_FY22[[#This Row],[75th]]-AAMC_Raw_Data_for_FY22[[#This Row],[Median]])/25)*15) + AAMC_Raw_Data_for_FY22[[#This Row],[Median]]","v":127637},{"$f":"(((AAMC_Raw_Data_for_FY22[[#This Row],[75th]]-AAMC_Raw_Data_for_FY22[[#This Row],[Median]])/25)*20) + AAMC_Raw_Data_for_FY22[[#This Row],[Median]]","v":131916},136195,{"$f":"(((AAMC_Raw_Data_for_FY22[[#This Row],[75th]]-AAMC_Raw_Data_for_FY22[[#This Row],[Median]])/25)*30) + AAMC_Raw_Data_for_FY22[[#This Row],[Median]]","v":140474},{"$f":"(((AAMC_Raw_Data_for_FY22[[#This Row],[75th]]-AAMC_Raw_Data_for_FY22[[#This Row],[Median]])/25)*35) + AAMC_Raw_Data_for_FY22[[#This Row],[Median]]","v":144753},{"$f":"(((AAMC_Raw_Data_for_FY22[[#This Row],[75th]]-AAMC_Raw_Data_for_FY22[[#This Row],[Median]])/25)*40) + AAMC_Raw_Data_for_FY22[[#This Row],[Median]]","v":149032}]
[{"$f":"AAMC_Raw_Data_for_FY22[[#This Row],[Source]]&AAMC_Raw_Data_for_FY22[[#This Row],[Type]]&AAMC_Raw_Data_for_FY22[[#This Row],[School Subset]]&AAMC_Raw_Data_for_FY22[[#This Row],[Rank]]&AAMC_Raw_Data_for_FY22[[#This Row],[Degree]]&AAMC_Raw_Data_for_FY22[[#This Row],[Department / Specialty]]&\"L\"","v":"AAMCAcademicAllAssociatePhDClinical Sciences TotalL"},"Clinical Sciences Total",3,"AAMC","Academic","All","Associate","PhD","2021-2022",126120,{"$f":"(((AAMC_Raw_Data_for_FY22[[#This Row],[Median]]-AAMC_Raw_Data_for_FY22[[#This Row],[25th]])/25)*5) + AAMC_Raw_Data_for_FY22[[#This Row],[25th]]","v":130583},{"$f":"(((AAMC_Raw_Data_for_FY22[[#This Row],[Median]]-AAMC_Raw_Data_for_FY22[[#This Row],[25th]])/25)*10) + AAMC_Raw_Data_for_FY22[[#This Row],[25th]]","v":135046},{"$f":"(((AAMC_Raw_Data_for_FY22[[#This Row],[Median]]-AAMC_Raw_Data_for_FY22[[#This Row],[25th]])/25)*15) + AAMC_Raw_Data_for_FY22[[#This Row],[25th]]","v":139509},{"$f":"(((AAMC_Raw_Data_for_FY22[[#This Row],[Median]]-AAMC_Raw_Data_for_FY22[[#This Row],[25th]])/25)*20) + AAMC_Raw_Data_for_FY22[[#This Row],[25th]]","v":143972},148435,{"$f":"(((AAMC_Raw_Data_for_FY22[[#This Row],[75th]]-AAMC_Raw_Data_for_FY22[[#This Row],[Median]])/25)*5) + AAMC_Raw_Data_for_FY22[[#This Row],[Median]]","v":154592.6},{"$f":"(((AAMC_Raw_Data_for_FY22[[#This Row],[75th]]-AAMC_Raw_Data_for_FY22[[#This Row],[Median]])/25)*10) + AAMC_Raw_Data_for_FY22[[#This Row],[Median]]","v":160750.20000000001},{"$f":"(((AAMC_Raw_Data_for_FY22[[#This Row],[75th]]-AAMC_Raw_Data_for_FY22[[#This Row],[Median]])/25)*15) + AAMC_Raw_Data_for_FY22[[#This Row],[Median]]","v":166907.79999999999},{"$f":"(((AAMC_Raw_Data_for_FY22[[#This Row],[75th]]-AAMC_Raw_Data_for_FY22[[#This Row],[Median]])/25)*20) + AAMC_Raw_Data_for_FY22[[#This Row],[Median]]","v":173065.4},179223,{"$f":"(((AAMC_Raw_Data_for_FY22[[#This Row],[75th]]-AAMC_Raw_Data_for_FY22[[#This Row],[Median]])/25)*30) + AAMC_Raw_Data_for_FY22[[#This Row],[Median]]","v":185380.6},{"$f":"(((AAMC_Raw_Data_for_FY22[[#This Row],[75th]]-AAMC_Raw_Data_for_FY22[[#This Row],[Median]])/25)*35) + AAMC_Raw_Data_for_FY22[[#This Row],[Median]]","v":191538.2},{"$f":"(((AAMC_Raw_Data_for_FY22[[#This Row],[75th]]-AAMC_Raw_Data_for_FY22[[#This Row],[Median]])/25)*40) + AAMC_Raw_Data_for_FY22[[#This Row],[Median]]","v":197695.8}]
[{"$f":"AAMC_Raw_Data_for_FY22[[#This Row],[Source]]&AAMC_Raw_Data_for_FY22[[#This Row],[Type]]&AAMC_Raw_Data_for_FY22[[#This Row],[School Subset]]&AAMC_Raw_Data_for_FY22[[#This Row],[Rank]]&AAMC_Raw_Data_for_FY22[[#This Row],[Degree]]&AAMC_Raw_Data_for_FY22[[#This Row],[Department / Specialty]]&\"L\"","v":"AAMCAcademicAllProfessorPhDClinical Sciences TotalL"},"Clinical Sciences Total",2,"AAMC","Academic","All","Professor","PhD","2021-2022",180031,{"$f":"(((AAMC_Raw_Data_for_FY22[[#This Row],[Median]]-AAMC_Raw_Data_for_FY22[[#This Row],[25th]])/25)*5) + AAMC_Raw_Data_for_FY22[[#This Row],[25th]]","v":187339.8},{"$f":"(((AAMC_Raw_Data_for_FY22[[#This Row],[Median]]-AAMC_Raw_Data_for_FY22[[#This Row],[25th]])/25)*10) + AAMC_Raw_Data_for_FY22[[#This Row],[25th]]","v":194648.6},{"$f":"(((AAMC_Raw_Data_for_FY22[[#This Row],[Median]]-AAMC_Raw_Data_for_FY22[[#This Row],[25th]])/25)*15) + AAMC_Raw_Data_for_FY22[[#This Row],[25th]]","v":201957.4},{"$f":"(((AAMC_Raw_Data_for_FY22[[#This Row],[Median]]-AAMC_Raw_Data_for_FY22[[#This Row],[25th]])/25)*20) + AAMC_Raw_Data_for_FY22[[#This Row],[25th]]","v":209266.2},216575,{"$f":"(((AAMC_Raw_Data_for_FY22[[#This Row],[75th]]-AAMC_Raw_Data_for_FY22[[#This Row],[Median]])/25)*5) + AAMC_Raw_Data_for_FY22[[#This Row],[Median]]","v":226263.6},{"$f":"(((AAMC_Raw_Data_for_FY22[[#This Row],[75th]]-AAMC_Raw_Data_for_FY22[[#This Row],[Median]])/25)*10) + AAMC_Raw_Data_for_FY22[[#This Row],[Median]]","v":235952.2},{"$f":"(((AAMC_Raw_Data_for_FY22[[#This Row],[75th]]-AAMC_Raw_Data_for_FY22[[#This Row],[Median]])/25)*15) + AAMC_Raw_Data_for_FY22[[#This Row],[Median]]","v":245640.8},{"$f":"(((AAMC_Raw_Data_for_FY22[[#This Row],[75th]]-AAMC_Raw_Data_for_FY22[[#This Row],[Median]])/25)*20) + AAMC_Raw_Data_for_FY22[[#This Row],[Median]]","v":255329.4},265018,{"$f":"(((AAMC_Raw_Data_for_FY22[[#This Row],[75th]]-AAMC_Raw_Data_for_FY22[[#This Row],[Median]])/25)*30) + AAMC_Raw_Data_for_FY22[[#This Row],[Median]]","v":274706.59999999998},{"$f":"(((AAMC_Raw_Data_for_FY22[[#This Row],[75th]]-AAMC_Raw_Data_for_FY22[[#This Row],[Median]])/25)*35) + AAMC_Raw_Data_for_FY22[[#This Row],[Median]]","v":284395.2},{"$f":"(((AAMC_Raw_Data_for_FY22[[#This Row],[75th]]-AAMC_Raw_Data_for_FY22[[#This Row],[Median]])/25)*40) + AAMC_Raw_Data_for_FY22[[#This Row],[Median]]","v":294083.8}]
[{"$f":"AAMC_Raw_Data_for_FY22[[#This Row],[Source]]&AAMC_Raw_Data_for_FY22[[#This Row],[Type]]&AAMC_Raw_Data_for_FY22[[#This Row],[School Subset]]&AAMC_Raw_Data_for_FY22[[#This Row],[Rank]]&AAMC_Raw_Data_for_FY22[[#This Row],[Degree]]&AAMC_Raw_Data_for_FY22[[#This Row],[Department / Specialty]]&\"L\"","v":"AAMCAcademicAllChiefPhDClinical Sciences TotalL"},"Clinical Sciences Total",6,"AAMC","Academic","All","Chief","PhD","2021-2022",205000,{"$f":"(((AAMC_Raw_Data_for_FY22[[#This Row],[Median]]-AAMC_Raw_Data_for_FY22[[#This Row],[25th]])/25)*5) + AAMC_Raw_Data_for_FY22[[#This Row],[25th]]","v":216890.8},{"$f":"(((AAMC_Raw_Data_for_FY22[[#This Row],[Median]]-AAMC_Raw_Data_for_FY22[[#This Row],[25th]])/25)*10) + AAMC_Raw_Data_for_FY22[[#This Row],[25th]]","v":228781.6},{"$f":"(((AAMC_Raw_Data_for_FY22[[#This Row],[Median]]-AAMC_Raw_Data_for_FY22[[#This Row],[25th]])/25)*15) + AAMC_Raw_Data_for_FY22[[#This Row],[25th]]","v":240672.4},{"$f":"(((AAMC_Raw_Data_for_FY22[[#This Row],[Median]]-AAMC_Raw_Data_for_FY22[[#This Row],[25th]])/25)*20) + AAMC_Raw_Data_for_FY22[[#This Row],[25th]]","v":252563.20000000001},264454,{"$f":"(((AAMC_Raw_Data_for_FY22[[#This Row],[75th]]-AAMC_Raw_Data_for_FY22[[#This Row],[Median]])/25)*5) + AAMC_Raw_Data_for_FY22[[#This Row],[Median]]","v":280328.8},{"$f":"(((AAMC_Raw_Data_for_FY22[[#This Row],[75th]]-AAMC_Raw_Data_for_FY22[[#This Row],[Median]])/25)*10) + AAMC_Raw_Data_for_FY22[[#This Row],[Median]]","v":296203.59999999998},{"$f":"(((AAMC_Raw_Data_for_FY22[[#This Row],[75th]]-AAMC_Raw_Data_for_FY22[[#This Row],[Median]])/25)*15) + AAMC_Raw_Data_for_FY22[[#This Row],[Median]]","v":312078.40000000002},{"$f":"(((AAMC_Raw_Data_for_FY22[[#This Row],[75th]]-AAMC_Raw_Data_for_FY22[[#This Row],[Median]])/25)*20) + AAMC_Raw_Data_for_FY22[[#This Row],[Median]]","v":327953.2},343828,{"$f":"(((AAMC_Raw_Data_for_FY22[[#This Row],[75th]]-AAMC_Raw_Data_for_FY22[[#This Row],[Median]])/25)*30) + AAMC_Raw_Data_for_FY22[[#This Row],[Median]]","v":359702.8},{"$f":"(((AAMC_Raw_Data_for_FY22[[#This Row],[75th]]-AAMC_Raw_Data_for_FY22[[#This Row],[Median]])/25)*35) + AAMC_Raw_Data_for_FY22[[#This Row],[Median]]","v":375577.59999999998},{"$f":"(((AAMC_Raw_Data_for_FY22[[#This Row],[75th]]-AAMC_Raw_Data_for_FY22[[#This Row],[Median]])/25)*40) + AAMC_Raw_Data_for_FY22[[#This Row],[Median]]","v":391452.4}]
[{"$f":"AAMC_Raw_Data_for_FY22[[#This Row],[Source]]&AAMC_Raw_Data_for_FY22[[#This Row],[Type]]&AAMC_Raw_Data_for_FY22[[#This Row],[School Subset]]&AAMC_Raw_Data_for_FY22[[#This Row],[Rank]]&AAMC_Raw_Data_for_FY22[[#This Row],[Degree]]&AAMC_Raw_Data_for_FY22[[#This Row],[Department / Specialty]]&\"L\"","v":"AAMCAcademicAllChairPhDClinical Sciences TotalL"},"Clinical Sciences Total",1,"AAMC","Academic","All","Chair","PhD","2021-2022",233768,{"$f":"(((AAMC_Raw_Data_for_FY22[[#This Row],[Median]]-AAMC_Raw_Data_for_FY22[[#This Row],[25th]])/25)*5) + AAMC_Raw_Data_for_FY22[[#This Row],[25th]]","v":246678.39999999999},{"$f":"(((AAMC_Raw_Data_for_FY22[[#This Row],[Median]]-AAMC_Raw_Data_for_FY22[[#This Row],[25th]])/25)*10) + AAMC_Raw_Data_for_FY22[[#This Row],[25th]]","v":259588.8},{"$f":"(((AAMC_Raw_Data_for_FY22[[#This Row],[Median]]-AAMC_Raw_Data_for_FY22[[#This Row],[25th]])/25)*15) + AAMC_Raw_Data_for_FY22[[#This Row],[25th]]","v":272499.20000000001},{"$f":"(((AAMC_Raw_Data_for_FY22[[#This Row],[Median]]-AAMC_Raw_Data_for_FY22[[#This Row],[25th]])/25)*20) + AAMC_Raw_Data_for_FY22[[#This Row],[25th]]","v":285409.59999999998},298320,{"$f":"(((AAMC_Raw_Data_for_FY22[[#This Row],[75th]]-AAMC_Raw_Data_for_FY22[[#This Row],[Median]])/25)*5) + AAMC_Raw_Data_for_FY22[[#This Row],[Median]]","v":328738.8},{"$f":"(((AAMC_Raw_Data_for_FY22[[#This Row],[75th]]-AAMC_Raw_Data_for_FY22[[#This Row],[Median]])/25)*10) + AAMC_Raw_Data_for_FY22[[#This Row],[Median]]","v":359157.6},{"$f":"(((AAMC_Raw_Data_for_FY22[[#This Row],[75th]]-AAMC_Raw_Data_for_FY22[[#This Row],[Median]])/25)*15) + AAMC_Raw_Data_for_FY22[[#This Row],[Median]]","v":389576.4},{"$f":"(((AAMC_Raw_Data_for_FY22[[#This Row],[75th]]-AAMC_Raw_Data_for_FY22[[#This Row],[Median]])/25)*20) + AAMC_Raw_Data_for_FY22[[#This Row],[Median]]","v":419995.2},450414,{"$f":"(((AAMC_Raw_Data_for_FY22[[#This Row],[75th]]-AAMC_Raw_Data_for_FY22[[#This Row],[Median]])/25)*30) + AAMC_Raw_Data_for_FY22[[#This Row],[Median]]","v":480832.80000000005},{"$f":"(((AAMC_Raw_Data_for_FY22[[#This Row],[75th]]-AAMC_Raw_Data_for_FY22[[#This Row],[Median]])/25)*35) + AAMC_Raw_Data_for_FY22[[#This Row],[Median]]","v":511251.6},{"$f":"(((AAMC_Raw_Data_for_FY22[[#This Row],[75th]]-AAMC_Raw_Data_for_FY22[[#This Row],[Median]])/25)*40) + AAMC_Raw_Data_for_FY22[[#This Row],[Median]]","v":541670.40000000002}]
[{"$f":"AAMC_Raw_Data_for_FY22[[#This Row],[Source]]&AAMC_Raw_Data_for_FY22[[#This Row],[Type]]&AAMC_Raw_Data_for_FY22[[#This Row],[School Subset]]&AAMC_Raw_Data_for_FY22[[#This Row],[Rank]]&AAMC_Raw_Data_for_FY22[[#This Row],[Degree]]&AAMC_Raw_Data_for_FY22[[#This Row],[Department / Specialty]]&\"L\"","v":"AAMCAcademicAllInstructorPhDAnesthesiology TotalL"},"Anesthesiology Total",5,"AAMC","Academic","All","Instructor","PhD","2021-2022",80238,{"$f":"(((AAMC_Raw_Data_for_FY22[[#This Row],[Median]]-AAMC_Raw_Data_for_FY22[[#This Row],[25th]])/25)*5) + AAMC_Raw_Data_for_FY22[[#This Row],[25th]]","v":84210.4},{"$f":"(((AAMC_Raw_Data_for_FY22[[#This Row],[Median]]-AAMC_Raw_Data_for_FY22[[#This Row],[25th]])/25)*10) + AAMC_Raw_Data_for_FY22[[#This Row],[25th]]","v":88182.8},{"$f":"(((AAMC_Raw_Data_for_FY22[[#This Row],[Median]]-AAMC_Raw_Data_for_FY22[[#This Row],[25th]])/25)*15) + AAMC_Raw_Data_for_FY22[[#This Row],[25th]]","v":92155.199999999997},{"$f":"(((AAMC_Raw_Data_for_FY22[[#This Row],[Median]]-AAMC_Raw_Data_for_FY22[[#This Row],[25th]])/25)*20) + AAMC_Raw_Data_for_FY22[[#This Row],[25th]]","v":96127.6},100100,{"$f":"(((AAMC_Raw_Data_for_FY22[[#This Row],[75th]]-AAMC_Raw_Data_for_FY22[[#This Row],[Median]])/25)*5) + AAMC_Raw_Data_for_FY22[[#This Row],[Median]]","v":113978.8},{"$f":"(((AAMC_Raw_Data_for_FY22[[#This Row],[75th]]-AAMC_Raw_Data_for_FY22[[#This Row],[Median]])/25)*10) + AAMC_Raw_Data_for_FY22[[#This Row],[Median]]","v":127857.60000000001},{"$f":"(((AAMC_Raw_Data_for_FY22[[#This Row],[75th]]-AAMC_Raw_Data_for_FY22[[#This Row],[Median]])/25)*15) + AAMC_Raw_Data_for_FY22[[#This Row],[Median]]","v":141736.4},{"$f":"(((AAMC_Raw_Data_for_FY22[[#This Row],[75th]]-AAMC_Raw_Data_for_FY22[[#This Row],[Median]])/25)*20) + AAMC_Raw_Data_for_FY22[[#This Row],[Median]]","v":155615.20000000001},169494,{"$f":"(((AAMC_Raw_Data_for_FY22[[#This Row],[75th]]-AAMC_Raw_Data_for_FY22[[#This Row],[Median]])/25)*30) + AAMC_Raw_Data_for_FY22[[#This Row],[Median]]","v":183372.79999999999},{"$f":"(((AAMC_Raw_Data_for_FY22[[#This Row],[75th]]-AAMC_Raw_Data_for_FY22[[#This Row],[Median]])/25)*35) + AAMC_Raw_Data_for_FY22[[#This Row],[Median]]","v":197251.6},{"$f":"(((AAMC_Raw_Data_for_FY22[[#This Row],[75th]]-AAMC_Raw_Data_for_FY22[[#This Row],[Median]])/25)*40) + AAMC_Raw_Data_for_FY22[[#This Row],[Median]]","v":211130.40000000002}]
[{"$f":"AAMC_Raw_Data_for_FY22[[#This Row],[Source]]&AAMC_Raw_Data_for_FY22[[#This Row],[Type]]&AAMC_Raw_Data_for_FY22[[#This Row],[School Subset]]&AAMC_Raw_Data_for_FY22[[#This Row],[Rank]]&AAMC_Raw_Data_for_FY22[[#This Row],[Degree]]&AAMC_Raw_Data_for_FY22[[#This Row],[Department / Specialty]]&\"L\"","v":"AAMCAcademicAllAssistantPhDAnesthesiology TotalL"},"Anesthesiology Total",4,"AAMC","Academic","All","Assistant","PhD","2021-2022",105708,{"$f":"(((AAMC_Raw_Data_for_FY22[[#This Row],[Median]]-AAMC_Raw_Data_for_FY22[[#This Row],[25th]])/25)*5) + AAMC_Raw_Data_for_FY22[[#This Row],[25th]]","v":110305},{"$f":"(((AAMC_Raw_Data_for_FY22[[#This Row],[Median]]-AAMC_Raw_Data_for_FY22[[#This Row],[25th]])/25)*10) + AAMC_Raw_Data_for_FY22[[#This Row],[25th]]","v":114902},{"$f":"(((AAMC_Raw_Data_for_FY22[[#This Row],[Median]]-AAMC_Raw_Data_for_FY22[[#This Row],[25th]])/25)*15) + AAMC_Raw_Data_for_FY22[[#This Row],[25th]]","v":119499},{"$f":"(((AAMC_Raw_Data_for_FY22[[#This Row],[Median]]-AAMC_Raw_Data_for_FY22[[#This Row],[25th]])/25)*20) + AAMC_Raw_Data_for_FY22[[#This Row],[25th]]","v":124096},128693,{"$f":"(((AAMC_Raw_Data_for_FY22[[#This Row],[75th]]-AAMC_Raw_Data_for_FY22[[#This Row],[Median]])/25)*5) + AAMC_Raw_Data_for_FY22[[#This Row],[Median]]","v":136692.4},{"$f":"(((AAMC_Raw_Data_for_FY22[[#This Row],[75th]]-AAMC_Raw_Data_for_FY22[[#This Row],[Median]])/25)*10) + AAMC_Raw_Data_for_FY22[[#This Row],[Median]]","v":144691.79999999999},{"$f":"(((AAMC_Raw_Data_for_FY22[[#This Row],[75th]]-AAMC_Raw_Data_for_FY22[[#This Row],[Median]])/25)*15) + AAMC_Raw_Data_for_FY22[[#This Row],[Median]]","v":152691.20000000001},{"$f":"(((AAMC_Raw_Data_for_FY22[[#This Row],[75th]]-AAMC_Raw_Data_for_FY22[[#This Row],[Median]])/25)*20) + AAMC_Raw_Data_for_FY22[[#This Row],[Median]]","v":160690.6},168690,{"$f":"(((AAMC_Raw_Data_for_FY22[[#This Row],[75th]]-AAMC_Raw_Data_for_FY22[[#This Row],[Median]])/25)*30) + AAMC_Raw_Data_for_FY22[[#This Row],[Median]]","v":176689.4},{"$f":"(((AAMC_Raw_Data_for_FY22[[#This Row],[75th]]-AAMC_Raw_Data_for_FY22[[#This Row],[Median]])/25)*35) + AAMC_Raw_Data_for_FY22[[#This Row],[Median]]","v":184688.8},{"$f":"(((AAMC_Raw_Data_for_FY22[[#This Row],[75th]]-AAMC_Raw_Data_for_FY22[[#This Row],[Median]])/25)*40) + AAMC_Raw_Data_for_FY22[[#This Row],[Median]]","v":192688.2}]
[{"$f":"AAMC_Raw_Data_for_FY22[[#This Row],[Source]]&AAMC_Raw_Data_for_FY22[[#This Row],[Type]]&AAMC_Raw_Data_for_FY22[[#This Row],[School Subset]]&AAMC_Raw_Data_for_FY22[[#This Row],[Rank]]&AAMC_Raw_Data_for_FY22[[#This Row],[Degree]]&AAMC_Raw_Data_for_FY22[[#This Row],[Department / Specialty]]&\"L\"","v":"AAMCAcademicAllAssociatePhDAnesthesiology TotalL"},"Anesthesiology Total",3,"AAMC","Academic","All","Associate","PhD","2021-2022",139413,{"$f":"(((AAMC_Raw_Data_for_FY22[[#This Row],[Median]]-AAMC_Raw_Data_for_FY22[[#This Row],[25th]])/25)*5) + AAMC_Raw_Data_for_FY22[[#This Row],[25th]]","v":142254.79999999999},{"$f":"(((AAMC_Raw_Data_for_FY22[[#This Row],[Median]]-AAMC_Raw_Data_for_FY22[[#This Row],[25th]])/25)*10) + AAMC_Raw_Data_for_FY22[[#This Row],[25th]]","v":145096.6},{"$f":"(((AAMC_Raw_Data_for_FY22[[#This Row],[Median]]-AAMC_Raw_Data_for_FY22[[#This Row],[25th]])/25)*15) + AAMC_Raw_Data_for_FY22[[#This Row],[25th]]","v":147938.4},{"$f":"(((AAMC_Raw_Data_for_FY22[[#This Row],[Median]]-AAMC_Raw_Data_for_FY22[[#This Row],[25th]])/25)*20) + AAMC_Raw_Data_for_FY22[[#This Row],[25th]]","v":150780.20000000001},153622,{"$f":"(((AAMC_Raw_Data_for_FY22[[#This Row],[75th]]-AAMC_Raw_Data_for_FY22[[#This Row],[Median]])/25)*5) + AAMC_Raw_Data_for_FY22[[#This Row],[Median]]","v":160856.6},{"$f":"(((AAMC_Raw_Data_for_FY22[[#This Row],[75th]]-AAMC_Raw_Data_for_FY22[[#This Row],[Median]])/25)*10) + AAMC_Raw_Data_for_FY22[[#This Row],[Median]]","v":168091.2},{"$f":"(((AAMC_Raw_Data_for_FY22[[#This Row],[75th]]-AAMC_Raw_Data_for_FY22[[#This Row],[Median]])/25)*15) + AAMC_Raw_Data_for_FY22[[#This Row],[Median]]","v":175325.8},{"$f":"(((AAMC_Raw_Data_for_FY22[[#This Row],[75th]]-AAMC_Raw_Data_for_FY22[[#This Row],[Median]])/25)*20) + AAMC_Raw_Data_for_FY22[[#This Row],[Median]]","v":182560.4},189795,{"$f":"(((AAMC_Raw_Data_for_FY22[[#This Row],[75th]]-AAMC_Raw_Data_for_FY22[[#This Row],[Median]])/25)*30) + AAMC_Raw_Data_for_FY22[[#This Row],[Median]]","v":197029.6},{"$f":"(((AAMC_Raw_Data_for_FY22[[#This Row],[75th]]-AAMC_Raw_Data_for_FY22[[#This Row],[Median]])/25)*35) + AAMC_Raw_Data_for_FY22[[#This Row],[Median]]","v":204264.2},{"$f":"(((AAMC_Raw_Data_for_FY22[[#This Row],[75th]]-AAMC_Raw_Data_for_FY22[[#This Row],[Median]])/25)*40) + AAMC_Raw_Data_for_FY22[[#This Row],[Median]]","v":211498.8}]
[{"$f":"AAMC_Raw_Data_for_FY22[[#This Row],[Source]]&AAMC_Raw_Data_for_FY22[[#This Row],[Type]]&AAMC_Raw_Data_for_FY22[[#This Row],[School Subset]]&AAMC_Raw_Data_for_FY22[[#This Row],[Rank]]&AAMC_Raw_Data_for_FY22[[#This Row],[Degree]]&AAMC_Raw_Data_for_FY22[[#This Row],[Department / Specialty]]&\"L\"","v":"AAMCAcademicAllProfessorPhDAnesthesiology TotalL"},"Anesthesiology Total",2,"AAMC","Academic","All","Professor","PhD","2021-2022",196778,{"$f":"(((AAMC_Raw_Data_for_FY22[[#This Row],[Median]]-AAMC_Raw_Data_for_FY22[[#This Row],[25th]])/25)*5) + AAMC_Raw_Data_for_FY22[[#This Row],[25th]]","v":204342.39999999999},{"$f":"(((AAMC_Raw_Data_for_FY22[[#This Row],[Median]]-AAMC_Raw_Data_for_FY22[[#This Row],[25th]])/25)*10) + AAMC_Raw_Data_for_FY22[[#This Row],[25th]]","v":211906.8},{"$f":"(((AAMC_Raw_Data_for_FY22[[#This Row],[Median]]-AAMC_Raw_Data_for_FY22[[#This Row],[25th]])/25)*15) + AAMC_Raw_Data_for_FY22[[#This Row],[25th]]","v":219471.2},{"$f":"(((AAMC_Raw_Data_for_FY22[[#This Row],[Median]]-AAMC_Raw_Data_for_FY22[[#This Row],[25th]])/25)*20) + AAMC_Raw_Data_for_FY22[[#This Row],[25th]]","v":227035.6},234600,{"$f":"(((AAMC_Raw_Data_for_FY22[[#This Row],[75th]]-AAMC_Raw_Data_for_FY22[[#This Row],[Median]])/25)*5) + AAMC_Raw_Data_for_FY22[[#This Row],[Median]]","v":244230.2},{"$f":"(((AAMC_Raw_Data_for_FY22[[#This Row],[75th]]-AAMC_Raw_Data_for_FY22[[#This Row],[Median]])/25)*10) + AAMC_Raw_Data_for_FY22[[#This Row],[Median]]","v":253860.4},{"$f":"(((AAMC_Raw_Data_for_FY22[[#This Row],[75th]]-AAMC_Raw_Data_for_FY22[[#This Row],[Median]])/25)*15) + AAMC_Raw_Data_for_FY22[[#This Row],[Median]]","v":263490.59999999998},{"$f":"(((AAMC_Raw_Data_for_FY22[[#This Row],[75th]]-AAMC_Raw_Data_for_FY22[[#This Row],[Median]])/25)*20) + AAMC_Raw_Data_for_FY22[[#This Row],[Median]]","v":273120.8},282751,{"$f":"(((AAMC_Raw_Data_for_FY22[[#This Row],[75th]]-AAMC_Raw_Data_for_FY22[[#This Row],[Median]])/25)*30) + AAMC_Raw_Data_for_FY22[[#This Row],[Median]]","v":292381.2},{"$f":"(((AAMC_Raw_Data_for_FY22[[#This Row],[75th]]-AAMC_Raw_Data_for_FY22[[#This Row],[Median]])/25)*35) + AAMC_Raw_Data_for_FY22[[#This Row],[Median]]","v":302011.40000000002},{"$f":"(((AAMC_Raw_Data_for_FY22[[#This Row],[75th]]-AAMC_Raw_Data_for_FY22[[#This Row],[Median]])/25)*40) + AAMC_Raw_Data_for_FY22[[#This Row],[Median]]","v":311641.59999999998}]
[{"$f":"AAMC_Raw_Data_for_FY22[[#This Row],[Source]]&AAMC_Raw_Data_for_FY22[[#This Row],[Type]]&AAMC_Raw_Data_for_FY22[[#This Row],[School Subset]]&AAMC_Raw_Data_for_FY22[[#This Row],[Rank]]&AAMC_Raw_Data_for_FY22[[#This Row],[Degree]]&AAMC_Raw_Data_for_FY22[[#This Row],[Department / Specialty]]&\"L\"","v":"AAMCAcademicAllChiefPhDAnesthesiology TotalL"},"Anesthesiology Total",6,"AAMC","Academic","All","Chief","PhD","2021-2022",null,{"$f":"(((AAMC_Raw_Data_for_FY22[[#This Row],[Median]]-AAMC_Raw_Data_for_FY22[[#This Row],[25th]])/25)*5) + AAMC_Raw_Data_for_FY22[[#This Row],[25th]]","v":0},{"$f":"(((AAMC_Raw_Data_for_FY22[[#This Row],[Median]]-AAMC_Raw_Data_for_FY22[[#This Row],[25th]])/25)*10) + AAMC_Raw_Data_for_FY22[[#This Row],[25th]]","v":0},{"$f":"(((AAMC_Raw_Data_for_FY22[[#This Row],[Median]]-AAMC_Raw_Data_for_FY22[[#This Row],[25th]])/25)*15) + AAMC_Raw_Data_for_FY22[[#This Row],[25th]]","v":0},{"$f":"(((AAMC_Raw_Data_for_FY22[[#This Row],[Median]]-AAMC_Raw_Data_for_FY22[[#This Row],[25th]])/25)*20) + AAMC_Raw_Data_for_FY22[[#This Row],[25th]]","v":0},null,{"$f":"(((AAMC_Raw_Data_for_FY22[[#This Row],[75th]]-AAMC_Raw_Data_for_FY22[[#This Row],[Median]])/25)*5) + AAMC_Raw_Data_for_FY22[[#This Row],[Median]]","v":0},{"$f":"(((AAMC_Raw_Data_for_FY22[[#This Row],[75th]]-AAMC_Raw_Data_for_FY22[[#This Row],[Median]])/25)*10) + AAMC_Raw_Data_for_FY22[[#This Row],[Median]]","v":0},{"$f":"(((AAMC_Raw_Data_for_FY22[[#This Row],[75th]]-AAMC_Raw_Data_for_FY22[[#This Row],[Median]])/25)*15) + AAMC_Raw_Data_for_FY22[[#This Row],[Median]]","v":0},{"$f":"(((AAMC_Raw_Data_for_FY22[[#This Row],[75th]]-AAMC_Raw_Data_for_FY22[[#This Row],[Median]])/25)*20) + AAMC_Raw_Data_for_FY22[[#This Row],[Median]]","v":0},null,{"$f":"(((AAMC_Raw_Data_for_FY22[[#This Row],[75th]]-AAMC_Raw_Data_for_FY22[[#This Row],[Median]])/25)*30) + AAMC_Raw_Data_for_FY22[[#This Row],[Median]]","v":0},{"$f":"(((AAMC_Raw_Data_for_FY22[[#This Row],[75th]]-AAMC_Raw_Data_for_FY22[[#This Row],[Median]])/25)*35) + AAMC_Raw_Data_for_FY22[[#This Row],[Median]]","v":0},{"$f":"(((AAMC_Raw_Data_for_FY22[[#This Row],[75th]]-AAMC_Raw_Data_for_FY22[[#This Row],[Median]])/25)*40) + AAMC_Raw_Data_for_FY22[[#This Row],[Median]]","v":0}]
[{"$f":"AAMC_Raw_Data_for_FY22[[#This Row],[Source]]&AAMC_Raw_Data_for_FY22[[#This Row],[Type]]&AAMC_Raw_Data_for_FY22[[#This Row],[School Subset]]&AAMC_Raw_Data_for_FY22[[#This Row],[Rank]]&AAMC_Raw_Data_for_FY22[[#This Row],[Degree]]&AAMC_Raw_Data_for_FY22[[#This Row],[Department / Specialty]]&\"L\"","v":"AAMCAcademicAllChairPhDAnesthesiology TotalL"},"Anesthesiology Total",1,"AAMC","Academic","All","Chair","PhD","2021-2022",null,{"$f":"(((AAMC_Raw_Data_for_FY22[[#This Row],[Median]]-AAMC_Raw_Data_for_FY22[[#This Row],[25th]])/25)*5) + AAMC_Raw_Data_for_FY22[[#This Row],[25th]]","v":0},{"$f":"(((AAMC_Raw_Data_for_FY22[[#This Row],[Median]]-AAMC_Raw_Data_for_FY22[[#This Row],[25th]])/25)*10) + AAMC_Raw_Data_for_FY22[[#This Row],[25th]]","v":0},{"$f":"(((AAMC_Raw_Data_for_FY22[[#This Row],[Median]]-AAMC_Raw_Data_for_FY22[[#This Row],[25th]])/25)*15) + AAMC_Raw_Data_for_FY22[[#This Row],[25th]]","v":0},{"$f":"(((AAMC_Raw_Data_for_FY22[[#This Row],[Median]]-AAMC_Raw_Data_for_FY22[[#This Row],[25th]])/25)*20) + AAMC_Raw_Data_for_FY22[[#This Row],[25th]]","v":0},null,{"$f":"(((AAMC_Raw_Data_for_FY22[[#This Row],[75th]]-AAMC_Raw_Data_for_FY22[[#This Row],[Median]])/25)*5) + AAMC_Raw_Data_for_FY22[[#This Row],[Median]]","v":0},{"$f":"(((AAMC_Raw_Data_for_FY22[[#This Row],[75th]]-AAMC_Raw_Data_for_FY22[[#This Row],[Median]])/25)*10) + AAMC_Raw_Data_for_FY22[[#This Row],[Median]]","v":0},{"$f":"(((AAMC_Raw_Data_for_FY22[[#This Row],[75th]]-AAMC_Raw_Data_for_FY22[[#This Row],[Median]])/25)*15) + AAMC_Raw_Data_for_FY22[[#This Row],[Median]]","v":0},{"$f":"(((AAMC_Raw_Data_for_FY22[[#This Row],[75th]]-AAMC_Raw_Data_for_FY22[[#This Row],[Median]])/25)*20) + AAMC_Raw_Data_for_FY22[[#This Row],[Median]]","v":0},null,{"$f":"(((AAMC_Raw_Data_for_FY22[[#This Row],[75th]]-AAMC_Raw_Data_for_FY22[[#This Row],[Median]])/25)*30) + AAMC_Raw_Data_for_FY22[[#This Row],[Median]]","v":0},{"$f":"(((AAMC_Raw_Data_for_FY22[[#This Row],[75th]]-AAMC_Raw_Data_for_FY22[[#This Row],[Median]])/25)*35) + AAMC_Raw_Data_for_FY22[[#This Row],[Median]]","v":0},{"$f":"(((AAMC_Raw_Data_for_FY22[[#This Row],[75th]]-AAMC_Raw_Data_for_FY22[[#This Row],[Median]])/25)*40) + AAMC_Raw_Data_for_FY22[[#This Row],[Median]]","v":0}]
[{"$f":"AAMC_Raw_Data_for_FY22[[#This Row],[Source]]&AAMC_Raw_Data_for_FY22[[#This Row],[Type]]&AAMC_Raw_Data_for_FY22[[#This Row],[School Subset]]&AAMC_Raw_Data_for_FY22[[#This Row],[Rank]]&AAMC_Raw_Data_for_FY22[[#This Row],[Degree]]&AAMC_Raw_Data_for_FY22[[#This Row],[Department / Specialty]]&\"L\"","v":"AAMCAcademicAllInstructorPhDAnesthesiology: GeneralL"},"Anesthesiology: General",5,"AAMC","Academic","All","Instructor","PhD","2021-2022",80850,{"$f":"(((AAMC_Raw_Data_for_FY22[[#This Row],[Median]]-AAMC_Raw_Data_for_FY22[[#This Row],[25th]])/25)*5) + AAMC_Raw_Data_for_FY22[[#This Row],[25th]]","v":84921.2},{"$f":"(((AAMC_Raw_Data_for_FY22[[#This Row],[Median]]-AAMC_Raw_Data_for_FY22[[#This Row],[25th]])/25)*10) + AAMC_Raw_Data_for_FY22[[#This Row],[25th]]","v":88992.4},{"$f":"(((AAMC_Raw_Data_for_FY22[[#This Row],[Median]]-AAMC_Raw_Data_for_FY22[[#This Row],[25th]])/25)*15) + AAMC_Raw_Data_for_FY22[[#This Row],[25th]]","v":93063.6},{"$f":"(((AAMC_Raw_Data_for_FY22[[#This Row],[Median]]-AAMC_Raw_Data_for_FY22[[#This Row],[25th]])/25)*20) + AAMC_Raw_Data_for_FY22[[#This Row],[25th]]","v":97134.8},101206,{"$f":"(((AAMC_Raw_Data_for_FY22[[#This Row],[75th]]-AAMC_Raw_Data_for_FY22[[#This Row],[Median]])/25)*5) + AAMC_Raw_Data_for_FY22[[#This Row],[Median]]","v":115961},{"$f":"(((AAMC_Raw_Data_for_FY22[[#This Row],[75th]]-AAMC_Raw_Data_for_FY22[[#This Row],[Median]])/25)*10) + AAMC_Raw_Data_for_FY22[[#This Row],[Median]]","v":130716},{"$f":"(((AAMC_Raw_Data_for_FY22[[#This Row],[75th]]-AAMC_Raw_Data_for_FY22[[#This Row],[Median]])/25)*15) + AAMC_Raw_Data_for_FY22[[#This Row],[Median]]","v":145471},{"$f":"(((AAMC_Raw_Data_for_FY22[[#This Row],[75th]]-AAMC_Raw_Data_for_FY22[[#This Row],[Median]])/25)*20) + AAMC_Raw_Data_for_FY22[[#This Row],[Median]]","v":160226},174981,{"$f":"(((AAMC_Raw_Data_for_FY22[[#This Row],[75th]]-AAMC_Raw_Data_for_FY22[[#This Row],[Median]])/25)*30) + AAMC_Raw_Data_for_FY22[[#This Row],[Median]]","v":189736},{"$f":"(((AAMC_Raw_Data_for_FY22[[#This Row],[75th]]-AAMC_Raw_Data_for_FY22[[#This Row],[Median]])/25)*35) + AAMC_Raw_Data_for_FY22[[#This Row],[Median]]","v":204491},{"$f":"(((AAMC_Raw_Data_for_FY22[[#This Row],[75th]]-AAMC_Raw_Data_for_FY22[[#This Row],[Median]])/25)*40) + AAMC_Raw_Data_for_FY22[[#This Row],[Median]]","v":219246}]
[{"$f":"AAMC_Raw_Data_for_FY22[[#This Row],[Source]]&AAMC_Raw_Data_for_FY22[[#This Row],[Type]]&AAMC_Raw_Data_for_FY22[[#This Row],[School Subset]]&AAMC_Raw_Data_for_FY22[[#This Row],[Rank]]&AAMC_Raw_Data_for_FY22[[#This Row],[Degree]]&AAMC_Raw_Data_for_FY22[[#This Row],[Department / Specialty]]&\"L\"","v":"AAMCAcademicAllAssistantPhDAnesthesiology: GeneralL"},"Anesthesiology: General",4,"AAMC","Academic","All","Assistant","PhD","2021-2022",104803,{"$f":"(((AAMC_Raw_Data_for_FY22[[#This Row],[Median]]-AAMC_Raw_Data_for_FY22[[#This Row],[25th]])/25)*5) + AAMC_Raw_Data_for_FY22[[#This Row],[25th]]","v":109555.4},{"$f":"(((AAMC_Raw_Data_for_FY22[[#This Row],[Median]]-AAMC_Raw_Data_for_FY22[[#This Row],[25th]])/25)*10) + AAMC_Raw_Data_for_FY22[[#This Row],[25th]]","v":114307.8},{"$f":"(((AAMC_Raw_Data_for_FY22[[#This Row],[Median]]-AAMC_Raw_Data_for_FY22[[#This Row],[25th]])/25)*15) + AAMC_Raw_Data_for_FY22[[#This Row],[25th]]","v":119060.2},{"$f":"(((AAMC_Raw_Data_for_FY22[[#This Row],[Median]]-AAMC_Raw_Data_for_FY22[[#This Row],[25th]])/25)*20) + AAMC_Raw_Data_for_FY22[[#This Row],[25th]]","v":123812.6},128565,{"$f":"(((AAMC_Raw_Data_for_FY22[[#This Row],[75th]]-AAMC_Raw_Data_for_FY22[[#This Row],[Median]])/25)*5) + AAMC_Raw_Data_for_FY22[[#This Row],[Median]]","v":136781.20000000001},{"$f":"(((AAMC_Raw_Data_for_FY22[[#This Row],[75th]]-AAMC_Raw_Data_for_FY22[[#This Row],[Median]])/25)*10) + AAMC_Raw_Data_for_FY22[[#This Row],[Median]]","v":144997.4},{"$f":"(((AAMC_Raw_Data_for_FY22[[#This Row],[75th]]-AAMC_Raw_Data_for_FY22[[#This Row],[Median]])/25)*15) + AAMC_Raw_Data_for_FY22[[#This Row],[Median]]","v":153213.6},{"$f":"(((AAMC_Raw_Data_for_FY22[[#This Row],[75th]]-AAMC_Raw_Data_for_FY22[[#This Row],[Median]])/25)*20) + AAMC_Raw_Data_for_FY22[[#This Row],[Median]]","v":161429.79999999999},169646,{"$f":"(((AAMC_Raw_Data_for_FY22[[#This Row],[75th]]-AAMC_Raw_Data_for_FY22[[#This Row],[Median]])/25)*30) + AAMC_Raw_Data_for_FY22[[#This Row],[Median]]","v":177862.2},{"$f":"(((AAMC_Raw_Data_for_FY22[[#This Row],[75th]]-AAMC_Raw_Data_for_FY22[[#This Row],[Median]])/25)*35) + AAMC_Raw_Data_for_FY22[[#This Row],[Median]]","v":186078.4},{"$f":"(((AAMC_Raw_Data_for_FY22[[#This Row],[75th]]-AAMC_Raw_Data_for_FY22[[#This Row],[Median]])/25)*40) + AAMC_Raw_Data_for_FY22[[#This Row],[Median]]","v":194294.6}]
[{"$f":"AAMC_Raw_Data_for_FY22[[#This Row],[Source]]&AAMC_Raw_Data_for_FY22[[#This Row],[Type]]&AAMC_Raw_Data_for_FY22[[#This Row],[School Subset]]&AAMC_Raw_Data_for_FY22[[#This Row],[Rank]]&AAMC_Raw_Data_for_FY22[[#This Row],[Degree]]&AAMC_Raw_Data_for_FY22[[#This Row],[Department / Specialty]]&\"L\"","v":"AAMCAcademicAllAssociatePhDAnesthesiology: GeneralL"},"Anesthesiology: General",3,"AAMC","Academic","All","Associate","PhD","2021-2022",136716,{"$f":"(((AAMC_Raw_Data_for_FY22[[#This Row],[Median]]-AAMC_Raw_Data_for_FY22[[#This Row],[25th]])/25)*5) + AAMC_Raw_Data_for_FY22[[#This Row],[25th]]","v":139392.79999999999},{"$f":"(((AAMC_Raw_Data_for_FY22[[#This Row],[Median]]-AAMC_Raw_Data_for_FY22[[#This Row],[25th]])/25)*10) + AAMC_Raw_Data_for_FY22[[#This Row],[25th]]","v":142069.6},{"$f":"(((AAMC_Raw_Data_for_FY22[[#This Row],[Median]]-AAMC_Raw_Data_for_FY22[[#This Row],[25th]])/25)*15) + AAMC_Raw_Data_for_FY22[[#This Row],[25th]]","v":144746.4},{"$f":"(((AAMC_Raw_Data_for_FY22[[#This Row],[Median]]-AAMC_Raw_Data_for_FY22[[#This Row],[25th]])/25)*20) + AAMC_Raw_Data_for_FY22[[#This Row],[25th]]","v":147423.20000000001},150100,{"$f":"(((AAMC_Raw_Data_for_FY22[[#This Row],[75th]]-AAMC_Raw_Data_for_FY22[[#This Row],[Median]])/25)*5) + AAMC_Raw_Data_for_FY22[[#This Row],[Median]]","v":159036.20000000001},{"$f":"(((AAMC_Raw_Data_for_FY22[[#This Row],[75th]]-AAMC_Raw_Data_for_FY22[[#This Row],[Median]])/25)*10) + AAMC_Raw_Data_for_FY22[[#This Row],[Median]]","v":167972.4},{"$f":"(((AAMC_Raw_Data_for_FY22[[#This Row],[75th]]-AAMC_Raw_Data_for_FY22[[#This Row],[Median]])/25)*15) + AAMC_Raw_Data_for_FY22[[#This Row],[Median]]","v":176908.6},{"$f":"(((AAMC_Raw_Data_for_FY22[[#This Row],[75th]]-AAMC_Raw_Data_for_FY22[[#This Row],[Median]])/25)*20) + AAMC_Raw_Data_for_FY22[[#This Row],[Median]]","v":185844.8},194781,{"$f":"(((AAMC_Raw_Data_for_FY22[[#This Row],[75th]]-AAMC_Raw_Data_for_FY22[[#This Row],[Median]])/25)*30) + AAMC_Raw_Data_for_FY22[[#This Row],[Median]]","v":203717.2},{"$f":"(((AAMC_Raw_Data_for_FY22[[#This Row],[75th]]-AAMC_Raw_Data_for_FY22[[#This Row],[Median]])/25)*35) + AAMC_Raw_Data_for_FY22[[#This Row],[Median]]","v":212653.4},{"$f":"(((AAMC_Raw_Data_for_FY22[[#This Row],[75th]]-AAMC_Raw_Data_for_FY22[[#This Row],[Median]])/25)*40) + AAMC_Raw_Data_for_FY22[[#This Row],[Median]]","v":221589.6}]
[{"$f":"AAMC_Raw_Data_for_FY22[[#This Row],[Source]]&AAMC_Raw_Data_for_FY22[[#This Row],[Type]]&AAMC_Raw_Data_for_FY22[[#This Row],[School Subset]]&AAMC_Raw_Data_for_FY22[[#This Row],[Rank]]&AAMC_Raw_Data_for_FY22[[#This Row],[Degree]]&AAMC_Raw_Data_for_FY22[[#This Row],[Department / Specialty]]&\"L\"","v":"AAMCAcademicAllProfessorPhDAnesthesiology: GeneralL"},"Anesthesiology: General",2,"AAMC","Academic","All","Professor","PhD","2021-2022",196791,{"$f":"(((AAMC_Raw_Data_for_FY22[[#This Row],[Median]]-AAMC_Raw_Data_for_FY22[[#This Row],[25th]])/25)*5) + AAMC_Raw_Data_for_FY22[[#This Row],[25th]]","v":204352.8},{"$f":"(((AAMC_Raw_Data_for_FY22[[#This Row],[Median]]-AAMC_Raw_Data_for_FY22[[#This Row],[25th]])/25)*10) + AAMC_Raw_Data_for_FY22[[#This Row],[25th]]","v":211914.6},{"$f":"(((AAMC_Raw_Data_for_FY22[[#This Row],[Median]]-AAMC_Raw_Data_for_FY22[[#This Row],[25th]])/25)*15) + AAMC_Raw_Data_for_FY22[[#This Row],[25th]]","v":219476.4},{"$f":"(((AAMC_Raw_Data_for_FY22[[#This Row],[Median]]-AAMC_Raw_Data_for_FY22[[#This Row],[25th]])/25)*20) + AAMC_Raw_Data_for_FY22[[#This Row],[25th]]","v":227038.2},234600,{"$f":"(((AAMC_Raw_Data_for_FY22[[#This Row],[75th]]-AAMC_Raw_Data_for_FY22[[#This Row],[Median]])/25)*5) + AAMC_Raw_Data_for_FY22[[#This Row],[Median]]","v":244701.2},{"$f":"(((AAMC_Raw_Data_for_FY22[[#This Row],[75th]]-AAMC_Raw_Data_for_FY22[[#This Row],[Median]])/25)*10) + AAMC_Raw_Data_for_FY22[[#This Row],[Median]]","v":254802.4},{"$f":"(((AAMC_Raw_Data_for_FY22[[#This Row],[75th]]-AAMC_Raw_Data_for_FY22[[#This Row],[Median]])/25)*15) + AAMC_Raw_Data_for_FY22[[#This Row],[Median]]","v":264903.59999999998},{"$f":"(((AAMC_Raw_Data_for_FY22[[#This Row],[75th]]-AAMC_Raw_Data_for_FY22[[#This Row],[Median]])/25)*20) + AAMC_Raw_Data_for_FY22[[#This Row],[Median]]","v":275004.79999999999},285106,{"$f":"(((AAMC_Raw_Data_for_FY22[[#This Row],[75th]]-AAMC_Raw_Data_for_FY22[[#This Row],[Median]])/25)*30) + AAMC_Raw_Data_for_FY22[[#This Row],[Median]]","v":295207.2},{"$f":"(((AAMC_Raw_Data_for_FY22[[#This Row],[75th]]-AAMC_Raw_Data_for_FY22[[#This Row],[Median]])/25)*35) + AAMC_Raw_Data_for_FY22[[#This Row],[Median]]","v":305308.40000000002},{"$f":"(((AAMC_Raw_Data_for_FY22[[#This Row],[75th]]-AAMC_Raw_Data_for_FY22[[#This Row],[Median]])/25)*40) + AAMC_Raw_Data_for_FY22[[#This Row],[Median]]","v":315409.59999999998}]
[{"$f":"AAMC_Raw_Data_for_FY22[[#This Row],[Source]]&AAMC_Raw_Data_for_FY22[[#This Row],[Type]]&AAMC_Raw_Data_for_FY22[[#This Row],[School Subset]]&AAMC_Raw_Data_for_FY22[[#This Row],[Rank]]&AAMC_Raw_Data_for_FY22[[#This Row],[Degree]]&AAMC_Raw_Data_for_FY22[[#This Row],[Department / Specialty]]&\"L\"","v":"AAMCAcademicAllChiefPhDAnesthesiology: GeneralL"},"Anesthesiology: General",6,"AAMC","Academic","All","Chief","PhD","2021-2022",null,{"$f":"(((AAMC_Raw_Data_for_FY22[[#This Row],[Median]]-AAMC_Raw_Data_for_FY22[[#This Row],[25th]])/25)*5) + AAMC_Raw_Data_for_FY22[[#This Row],[25th]]","v":0},{"$f":"(((AAMC_Raw_Data_for_FY22[[#This Row],[Median]]-AAMC_Raw_Data_for_FY22[[#This Row],[25th]])/25)*10) + AAMC_Raw_Data_for_FY22[[#This Row],[25th]]","v":0},{"$f":"(((AAMC_Raw_Data_for_FY22[[#This Row],[Median]]-AAMC_Raw_Data_for_FY22[[#This Row],[25th]])/25)*15) + AAMC_Raw_Data_for_FY22[[#This Row],[25th]]","v":0},{"$f":"(((AAMC_Raw_Data_for_FY22[[#This Row],[Median]]-AAMC_Raw_Data_for_FY22[[#This Row],[25th]])/25)*20) + AAMC_Raw_Data_for_FY22[[#This Row],[25th]]","v":0},null,{"$f":"(((AAMC_Raw_Data_for_FY22[[#This Row],[75th]]-AAMC_Raw_Data_for_FY22[[#This Row],[Median]])/25)*5) + AAMC_Raw_Data_for_FY22[[#This Row],[Median]]","v":0},{"$f":"(((AAMC_Raw_Data_for_FY22[[#This Row],[75th]]-AAMC_Raw_Data_for_FY22[[#This Row],[Median]])/25)*10) + AAMC_Raw_Data_for_FY22[[#This Row],[Median]]","v":0},{"$f":"(((AAMC_Raw_Data_for_FY22[[#This Row],[75th]]-AAMC_Raw_Data_for_FY22[[#This Row],[Median]])/25)*15) + AAMC_Raw_Data_for_FY22[[#This Row],[Median]]","v":0},{"$f":"(((AAMC_Raw_Data_for_FY22[[#This Row],[75th]]-AAMC_Raw_Data_for_FY22[[#This Row],[Median]])/25)*20) + AAMC_Raw_Data_for_FY22[[#This Row],[Median]]","v":0},null,{"$f":"(((AAMC_Raw_Data_for_FY22[[#This Row],[75th]]-AAMC_Raw_Data_for_FY22[[#This Row],[Median]])/25)*30) + AAMC_Raw_Data_for_FY22[[#This Row],[Median]]","v":0},{"$f":"(((AAMC_Raw_Data_for_FY22[[#This Row],[75th]]-AAMC_Raw_Data_for_FY22[[#This Row],[Median]])/25)*35) + AAMC_Raw_Data_for_FY22[[#This Row],[Median]]","v":0},{"$f":"(((AAMC_Raw_Data_for_FY22[[#This Row],[75th]]-AAMC_Raw_Data_for_FY22[[#This Row],[Median]])/25)*40) + AAMC_Raw_Data_for_FY22[[#This Row],[Median]]","v":0}]
[{"$f":"AAMC_Raw_Data_for_FY22[[#This Row],[Source]]&AAMC_Raw_Data_for_FY22[[#This Row],[Type]]&AAMC_Raw_Data_for_FY22[[#This Row],[School Subset]]&AAMC_Raw_Data_for_FY22[[#This Row],[Rank]]&AAMC_Raw_Data_for_FY22[[#This Row],[Degree]]&AAMC_Raw_Data_for_FY22[[#This Row],[Department / Specialty]]&\"L\"","v":"AAMCAcademicAllChairPhDAnesthesiology: GeneralL"},"Anesthesiology: General",1,"AAMC","Academic","All","Chair","PhD","2021-2022",null,{"$f":"(((AAMC_Raw_Data_for_FY22[[#This Row],[Median]]-AAMC_Raw_Data_for_FY22[[#This Row],[25th]])/25)*5) + AAMC_Raw_Data_for_FY22[[#This Row],[25th]]","v":0},{"$f":"(((AAMC_Raw_Data_for_FY22[[#This Row],[Median]]-AAMC_Raw_Data_for_FY22[[#This Row],[25th]])/25)*10) + AAMC_Raw_Data_for_FY22[[#This Row],[25th]]","v":0},{"$f":"(((AAMC_Raw_Data_for_FY22[[#This Row],[Median]]-AAMC_Raw_Data_for_FY22[[#This Row],[25th]])/25)*15) + AAMC_Raw_Data_for_FY22[[#This Row],[25th]]","v":0},{"$f":"(((AAMC_Raw_Data_for_FY22[[#This Row],[Median]]-AAMC_Raw_Data_for_FY22[[#This Row],[25th]])/25)*20) + AAMC_Raw_Data_for_FY22[[#This Row],[25th]]","v":0},null,{"$f":"(((AAMC_Raw_Data_for_FY22[[#This Row],[75th]]-AAMC_Raw_Data_for_FY22[[#This Row],[Median]])/25)*5) + AAMC_Raw_Data_for_FY22[[#This Row],[Median]]","v":0},{"$f":"(((AAMC_Raw_Data_for_FY22[[#This Row],[75th]]-AAMC_Raw_Data_for_FY22[[#This Row],[Median]])/25)*10) + AAMC_Raw_Data_for_FY22[[#This Row],[Median]]","v":0},{"$f":"(((AAMC_Raw_Data_for_FY22[[#This Row],[75th]]-AAMC_Raw_Data_for_FY22[[#This Row],[Median]])/25)*15) + AAMC_Raw_Data_for_FY22[[#This Row],[Median]]","v":0},{"$f":"(((AAMC_Raw_Data_for_FY22[[#This Row],[75th]]-AAMC_Raw_Data_for_FY22[[#This Row],[Median]])/25)*20) + AAMC_Raw_Data_for_FY22[[#This Row],[Median]]","v":0},null,{"$f":"(((AAMC_Raw_Data_for_FY22[[#This Row],[75th]]-AAMC_Raw_Data_for_FY22[[#This Row],[Median]])/25)*30) + AAMC_Raw_Data_for_FY22[[#This Row],[Median]]","v":0},{"$f":"(((AAMC_Raw_Data_for_FY22[[#This Row],[75th]]-AAMC_Raw_Data_for_FY22[[#This Row],[Median]])/25)*35) + AAMC_Raw_Data_for_FY22[[#This Row],[Median]]","v":0},{"$f":"(((AAMC_Raw_Data_for_FY22[[#This Row],[75th]]-AAMC_Raw_Data_for_FY22[[#This Row],[Median]])/25)*40) + AAMC_Raw_Data_for_FY22[[#This Row],[Median]]","v":0}]
[{"$f":"AAMC_Raw_Data_for_FY22[[#This Row],[Source]]&AAMC_Raw_Data_for_FY22[[#This Row],[Type]]&AAMC_Raw_Data_for_FY22[[#This Row],[School Subset]]&AAMC_Raw_Data_for_FY22[[#This Row],[Rank]]&AAMC_Raw_Data_for_FY22[[#This Row],[Degree]]&AAMC_Raw_Data_for_FY22[[#This Row],[Department / Specialty]]&\"L\"","v":"AAMCAcademicAllInstructorPhDAnesthesiology: Pain ManagementL"},"Anesthesiology: Pain Management",5,"AAMC","Academic","All","Instructor","PhD","2021-2022",null,{"$f":"(((AAMC_Raw_Data_for_FY22[[#This Row],[Median]]-AAMC_Raw_Data_for_FY22[[#This Row],[25th]])/25)*5) + AAMC_Raw_Data_for_FY22[[#This Row],[25th]]","v":0},{"$f":"(((AAMC_Raw_Data_for_FY22[[#This Row],[Median]]-AAMC_Raw_Data_for_FY22[[#This Row],[25th]])/25)*10) + AAMC_Raw_Data_for_FY22[[#This Row],[25th]]","v":0},{"$f":"(((AAMC_Raw_Data_for_FY22[[#This Row],[Median]]-AAMC_Raw_Data_for_FY22[[#This Row],[25th]])/25)*15) + AAMC_Raw_Data_for_FY22[[#This Row],[25th]]","v":0},{"$f":"(((AAMC_Raw_Data_for_FY22[[#This Row],[Median]]-AAMC_Raw_Data_for_FY22[[#This Row],[25th]])/25)*20) + AAMC_Raw_Data_for_FY22[[#This Row],[25th]]","v":0},null,{"$f":"(((AAMC_Raw_Data_for_FY22[[#This Row],[75th]]-AAMC_Raw_Data_for_FY22[[#This Row],[Median]])/25)*5) + AAMC_Raw_Data_for_FY22[[#This Row],[Median]]","v":0},{"$f":"(((AAMC_Raw_Data_for_FY22[[#This Row],[75th]]-AAMC_Raw_Data_for_FY22[[#This Row],[Median]])/25)*10) + AAMC_Raw_Data_for_FY22[[#This Row],[Median]]","v":0},{"$f":"(((AAMC_Raw_Data_for_FY22[[#This Row],[75th]]-AAMC_Raw_Data_for_FY22[[#This Row],[Median]])/25)*15) + AAMC_Raw_Data_for_FY22[[#This Row],[Median]]","v":0},{"$f":"(((AAMC_Raw_Data_for_FY22[[#This Row],[75th]]-AAMC_Raw_Data_for_FY22[[#This Row],[Median]])/25)*20) + AAMC_Raw_Data_for_FY22[[#This Row],[Median]]","v":0},null,{"$f":"(((AAMC_Raw_Data_for_FY22[[#This Row],[75th]]-AAMC_Raw_Data_for_FY22[[#This Row],[Median]])/25)*30) + AAMC_Raw_Data_for_FY22[[#This Row],[Median]]","v":0},{"$f":"(((AAMC_Raw_Data_for_FY22[[#This Row],[75th]]-AAMC_Raw_Data_for_FY22[[#This Row],[Median]])/25)*35) + AAMC_Raw_Data_for_FY22[[#This Row],[Median]]","v":0},{"$f":"(((AAMC_Raw_Data_for_FY22[[#This Row],[75th]]-AAMC_Raw_Data_for_FY22[[#This Row],[Median]])/25)*40) + AAMC_Raw_Data_for_FY22[[#This Row],[Median]]","v":0}]
[{"$f":"AAMC_Raw_Data_for_FY22[[#This Row],[Source]]&AAMC_Raw_Data_for_FY22[[#This Row],[Type]]&AAMC_Raw_Data_for_FY22[[#This Row],[School Subset]]&AAMC_Raw_Data_for_FY22[[#This Row],[Rank]]&AAMC_Raw_Data_for_FY22[[#This Row],[Degree]]&AAMC_Raw_Data_for_FY22[[#This Row],[Department / Specialty]]&\"L\"","v":"AAMCAcademicAllAssistantPhDAnesthesiology: Pain ManagementL"},"Anesthesiology: Pain Management",4,"AAMC","Academic","All","Assistant","PhD","2021-2022",117508,{"$f":"(((AAMC_Raw_Data_for_FY22[[#This Row],[Median]]-AAMC_Raw_Data_for_FY22[[#This Row],[25th]])/25)*5) + AAMC_Raw_Data_for_FY22[[#This Row],[25th]]","v":119110},{"$f":"(((AAMC_Raw_Data_for_FY22[[#This Row],[Median]]-AAMC_Raw_Data_for_FY22[[#This Row],[25th]])/25)*10) + AAMC_Raw_Data_for_FY22[[#This Row],[25th]]","v":120712},{"$f":"(((AAMC_Raw_Data_for_FY22[[#This Row],[Median]]-AAMC_Raw_Data_for_FY22[[#This Row],[25th]])/25)*15) + AAMC_Raw_Data_for_FY22[[#This Row],[25th]]","v":122314},{"$f":"(((AAMC_Raw_Data_for_FY22[[#This Row],[Median]]-AAMC_Raw_Data_for_FY22[[#This Row],[25th]])/25)*20) + AAMC_Raw_Data_for_FY22[[#This Row],[25th]]","v":123916},125518,{"$f":"(((AAMC_Raw_Data_for_FY22[[#This Row],[75th]]-AAMC_Raw_Data_for_FY22[[#This Row],[Median]])/25)*5) + AAMC_Raw_Data_for_FY22[[#This Row],[Median]]","v":130360.6},{"$f":"(((AAMC_Raw_Data_for_FY22[[#This Row],[75th]]-AAMC_Raw_Data_for_FY22[[#This Row],[Median]])/25)*10) + AAMC_Raw_Data_for_FY22[[#This Row],[Median]]","v":135203.20000000001},{"$f":"(((AAMC_Raw_Data_for_FY22[[#This Row],[75th]]-AAMC_Raw_Data_for_FY22[[#This Row],[Median]])/25)*15) + AAMC_Raw_Data_for_FY22[[#This Row],[Median]]","v":140045.79999999999},{"$f":"(((AAMC_Raw_Data_for_FY22[[#This Row],[75th]]-AAMC_Raw_Data_for_FY22[[#This Row],[Median]])/25)*20) + AAMC_Raw_Data_for_FY22[[#This Row],[Median]]","v":144888.4},149731,{"$f":"(((AAMC_Raw_Data_for_FY22[[#This Row],[75th]]-AAMC_Raw_Data_for_FY22[[#This Row],[Median]])/25)*30) + AAMC_Raw_Data_for_FY22[[#This Row],[Median]]","v":154573.6},{"$f":"(((AAMC_Raw_Data_for_FY22[[#This Row],[75th]]-AAMC_Raw_Data_for_FY22[[#This Row],[Median]])/25)*35) + AAMC_Raw_Data_for_FY22[[#This Row],[Median]]","v":159416.20000000001},{"$f":"(((AAMC_Raw_Data_for_FY22[[#This Row],[75th]]-AAMC_Raw_Data_for_FY22[[#This Row],[Median]])/25)*40) + AAMC_Raw_Data_for_FY22[[#This Row],[Median]]","v":164258.79999999999}]
[{"$f":"AAMC_Raw_Data_for_FY22[[#This Row],[Source]]&AAMC_Raw_Data_for_FY22[[#This Row],[Type]]&AAMC_Raw_Data_for_FY22[[#This Row],[School Subset]]&AAMC_Raw_Data_for_FY22[[#This Row],[Rank]]&AAMC_Raw_Data_for_FY22[[#This Row],[Degree]]&AAMC_Raw_Data_for_FY22[[#This Row],[Department / Specialty]]&\"L\"","v":"AAMCAcademicAllAssociatePhDAnesthesiology: Pain ManagementL"},"Anesthesiology: Pain Management",3,"AAMC","Academic","All","Associate","PhD","2021-2022",151565,{"$f":"(((AAMC_Raw_Data_for_FY22[[#This Row],[Median]]-AAMC_Raw_Data_for_FY22[[#This Row],[25th]])/25)*5) + AAMC_Raw_Data_for_FY22[[#This Row],[25th]]","v":154118.6},{"$f":"(((AAMC_Raw_Data_for_FY22[[#This Row],[Median]]-AAMC_Raw_Data_for_FY22[[#This Row],[25th]])/25)*10) + AAMC_Raw_Data_for_FY22[[#This Row],[25th]]","v":156672.20000000001},{"$f":"(((AAMC_Raw_Data_for_FY22[[#This Row],[Median]]-AAMC_Raw_Data_for_FY22[[#This Row],[25th]])/25)*15) + AAMC_Raw_Data_for_FY22[[#This Row],[25th]]","v":159225.79999999999},{"$f":"(((AAMC_Raw_Data_for_FY22[[#This Row],[Median]]-AAMC_Raw_Data_for_FY22[[#This Row],[25th]])/25)*20) + AAMC_Raw_Data_for_FY22[[#This Row],[25th]]","v":161779.4},164333,{"$f":"(((AAMC_Raw_Data_for_FY22[[#This Row],[75th]]-AAMC_Raw_Data_for_FY22[[#This Row],[Median]])/25)*5) + AAMC_Raw_Data_for_FY22[[#This Row],[Median]]","v":167482},{"$f":"(((AAMC_Raw_Data_for_FY22[[#This Row],[75th]]-AAMC_Raw_Data_for_FY22[[#This Row],[Median]])/25)*10) + AAMC_Raw_Data_for_FY22[[#This Row],[Median]]","v":170631},{"$f":"(((AAMC_Raw_Data_for_FY22[[#This Row],[75th]]-AAMC_Raw_Data_for_FY22[[#This Row],[Median]])/25)*15) + AAMC_Raw_Data_for_FY22[[#This Row],[Median]]","v":173780},{"$f":"(((AAMC_Raw_Data_for_FY22[[#This Row],[75th]]-AAMC_Raw_Data_for_FY22[[#This Row],[Median]])/25)*20) + AAMC_Raw_Data_for_FY22[[#This Row],[Median]]","v":176929},180078,{"$f":"(((AAMC_Raw_Data_for_FY22[[#This Row],[75th]]-AAMC_Raw_Data_for_FY22[[#This Row],[Median]])/25)*30) + AAMC_Raw_Data_for_FY22[[#This Row],[Median]]","v":183227},{"$f":"(((AAMC_Raw_Data_for_FY22[[#This Row],[75th]]-AAMC_Raw_Data_for_FY22[[#This Row],[Median]])/25)*35) + AAMC_Raw_Data_for_FY22[[#This Row],[Median]]","v":186376},{"$f":"(((AAMC_Raw_Data_for_FY22[[#This Row],[75th]]-AAMC_Raw_Data_for_FY22[[#This Row],[Median]])/25)*40) + AAMC_Raw_Data_for_FY22[[#This Row],[Median]]","v":189525}]
[{"$f":"AAMC_Raw_Data_for_FY22[[#This Row],[Source]]&AAMC_Raw_Data_for_FY22[[#This Row],[Type]]&AAMC_Raw_Data_for_FY22[[#This Row],[School Subset]]&AAMC_Raw_Data_for_FY22[[#This Row],[Rank]]&AAMC_Raw_Data_for_FY22[[#This Row],[Degree]]&AAMC_Raw_Data_for_FY22[[#This Row],[Department / Specialty]]&\"L\"","v":"AAMCAcademicAllProfessorPhDAnesthesiology: Pain ManagementL"},"Anesthesiology: Pain Management",2,"AAMC","Academic","All","Professor","PhD","2021-2022",null,{"$f":"(((AAMC_Raw_Data_for_FY22[[#This Row],[Median]]-AAMC_Raw_Data_for_FY22[[#This Row],[25th]])/25)*5) + AAMC_Raw_Data_for_FY22[[#This Row],[25th]]","v":0},{"$f":"(((AAMC_Raw_Data_for_FY22[[#This Row],[Median]]-AAMC_Raw_Data_for_FY22[[#This Row],[25th]])/25)*10) + AAMC_Raw_Data_for_FY22[[#This Row],[25th]]","v":0},{"$f":"(((AAMC_Raw_Data_for_FY22[[#This Row],[Median]]-AAMC_Raw_Data_for_FY22[[#This Row],[25th]])/25)*15) + AAMC_Raw_Data_for_FY22[[#This Row],[25th]]","v":0},{"$f":"(((AAMC_Raw_Data_for_FY22[[#This Row],[Median]]-AAMC_Raw_Data_for_FY22[[#This Row],[25th]])/25)*20) + AAMC_Raw_Data_for_FY22[[#This Row],[25th]]","v":0},null,{"$f":"(((AAMC_Raw_Data_for_FY22[[#This Row],[75th]]-AAMC_Raw_Data_for_FY22[[#This Row],[Median]])/25)*5) + AAMC_Raw_Data_for_FY22[[#This Row],[Median]]","v":0},{"$f":"(((AAMC_Raw_Data_for_FY22[[#This Row],[75th]]-AAMC_Raw_Data_for_FY22[[#This Row],[Median]])/25)*10) + AAMC_Raw_Data_for_FY22[[#This Row],[Median]]","v":0},{"$f":"(((AAMC_Raw_Data_for_FY22[[#This Row],[75th]]-AAMC_Raw_Data_for_FY22[[#This Row],[Median]])/25)*15) + AAMC_Raw_Data_for_FY22[[#This Row],[Median]]","v":0},{"$f":"(((AAMC_Raw_Data_for_FY22[[#This Row],[75th]]-AAMC_Raw_Data_for_FY22[[#This Row],[Median]])/25)*20) + AAMC_Raw_Data_for_FY22[[#This Row],[Median]]","v":0},null,{"$f":"(((AAMC_Raw_Data_for_FY22[[#This Row],[75th]]-AAMC_Raw_Data_for_FY22[[#This Row],[Median]])/25)*30) + AAMC_Raw_Data_for_FY22[[#This Row],[Median]]","v":0},{"$f":"(((AAMC_Raw_Data_for_FY22[[#This Row],[75th]]-AAMC_Raw_Data_for_FY22[[#This Row],[Median]])/25)*35) + AAMC_Raw_Data_for_FY22[[#This Row],[Median]]","v":0},{"$f":"(((AAMC_Raw_Data_for_FY22[[#This Row],[75th]]-AAMC_Raw_Data_for_FY22[[#This Row],[Median]])/25)*40) + AAMC_Raw_Data_for_FY22[[#This Row],[Median]]","v":0}]
[{"$f":"AAMC_Raw_Data_for_FY22[[#This Row],[Source]]&AAMC_Raw_Data_for_FY22[[#This Row],[Type]]&AAMC_Raw_Data_for_FY22[[#This Row],[School Subset]]&AAMC_Raw_Data_for_FY22[[#This Row],[Rank]]&AAMC_Raw_Data_for_FY22[[#This Row],[Degree]]&AAMC_Raw_Data_for_FY22[[#This Row],[Department / Specialty]]&\"L\"","v":"AAMCAcademicAllChiefPhDAnesthesiology: Pain ManagementL"},"Anesthesiology: Pain Management",6,"AAMC","Academic","All","Chief","PhD","2021-2022",null,{"$f":"(((AAMC_Raw_Data_for_FY22[[#This Row],[Median]]-AAMC_Raw_Data_for_FY22[[#This Row],[25th]])/25)*5) + AAMC_Raw_Data_for_FY22[[#This Row],[25th]]","v":0},{"$f":"(((AAMC_Raw_Data_for_FY22[[#This Row],[Median]]-AAMC_Raw_Data_for_FY22[[#This Row],[25th]])/25)*10) + AAMC_Raw_Data_for_FY22[[#This Row],[25th]]","v":0},{"$f":"(((AAMC_Raw_Data_for_FY22[[#This Row],[Median]]-AAMC_Raw_Data_for_FY22[[#This Row],[25th]])/25)*15) + AAMC_Raw_Data_for_FY22[[#This Row],[25th]]","v":0},{"$f":"(((AAMC_Raw_Data_for_FY22[[#This Row],[Median]]-AAMC_Raw_Data_for_FY22[[#This Row],[25th]])/25)*20) + AAMC_Raw_Data_for_FY22[[#This Row],[25th]]","v":0},null,{"$f":"(((AAMC_Raw_Data_for_FY22[[#This Row],[75th]]-AAMC_Raw_Data_for_FY22[[#This Row],[Median]])/25)*5) + AAMC_Raw_Data_for_FY22[[#This Row],[Median]]","v":0},{"$f":"(((AAMC_Raw_Data_for_FY22[[#This Row],[75th]]-AAMC_Raw_Data_for_FY22[[#This Row],[Median]])/25)*10) + AAMC_Raw_Data_for_FY22[[#This Row],[Median]]","v":0},{"$f":"(((AAMC_Raw_Data_for_FY22[[#This Row],[75th]]-AAMC_Raw_Data_for_FY22[[#This Row],[Median]])/25)*15) + AAMC_Raw_Data_for_FY22[[#This Row],[Median]]","v":0},{"$f":"(((AAMC_Raw_Data_for_FY22[[#This Row],[75th]]-AAMC_Raw_Data_for_FY22[[#This Row],[Median]])/25)*20) + AAMC_Raw_Data_for_FY22[[#This Row],[Median]]","v":0},null,{"$f":"(((AAMC_Raw_Data_for_FY22[[#This Row],[75th]]-AAMC_Raw_Data_for_FY22[[#This Row],[Median]])/25)*30) + AAMC_Raw_Data_for_FY22[[#This Row],[Median]]","v":0},{"$f":"(((AAMC_Raw_Data_for_FY22[[#This Row],[75th]]-AAMC_Raw_Data_for_FY22[[#This Row],[Median]])/25)*35) + AAMC_Raw_Data_for_FY22[[#This Row],[Median]]","v":0},{"$f":"(((AAMC_Raw_Data_for_FY22[[#This Row],[75th]]-AAMC_Raw_Data_for_FY22[[#This Row],[Median]])/25)*40) + AAMC_Raw_Data_for_FY22[[#This Row],[Median]]","v":0}]
[{"$f":"AAMC_Raw_Data_for_FY22[[#This Row],[Source]]&AAMC_Raw_Data_for_FY22[[#This Row],[Type]]&AAMC_Raw_Data_for_FY22[[#This Row],[School Subset]]&AAMC_Raw_Data_for_FY22[[#This Row],[Rank]]&AAMC_Raw_Data_for_FY22[[#This Row],[Degree]]&AAMC_Raw_Data_for_FY22[[#This Row],[Department / Specialty]]&\"L\"","v":"AAMCAcademicAllAssistantPhDAnesthesiology: PediatricL"},"Anesthesiology: Pediatric",4,"AAMC","Academic","All","Assistant","PhD","2021-2022",null,{"$f":"(((AAMC_Raw_Data_for_FY22[[#This Row],[Median]]-AAMC_Raw_Data_for_FY22[[#This Row],[25th]])/25)*5) + AAMC_Raw_Data_for_FY22[[#This Row],[25th]]","v":0},{"$f":"(((AAMC_Raw_Data_for_FY22[[#This Row],[Median]]-AAMC_Raw_Data_for_FY22[[#This Row],[25th]])/25)*10) + AAMC_Raw_Data_for_FY22[[#This Row],[25th]]","v":0},{"$f":"(((AAMC_Raw_Data_for_FY22[[#This Row],[Median]]-AAMC_Raw_Data_for_FY22[[#This Row],[25th]])/25)*15) + AAMC_Raw_Data_for_FY22[[#This Row],[25th]]","v":0},{"$f":"(((AAMC_Raw_Data_for_FY22[[#This Row],[Median]]-AAMC_Raw_Data_for_FY22[[#This Row],[25th]])/25)*20) + AAMC_Raw_Data_for_FY22[[#This Row],[25th]]","v":0},null,{"$f":"(((AAMC_Raw_Data_for_FY22[[#This Row],[75th]]-AAMC_Raw_Data_for_FY22[[#This Row],[Median]])/25)*5) + AAMC_Raw_Data_for_FY22[[#This Row],[Median]]","v":0},{"$f":"(((AAMC_Raw_Data_for_FY22[[#This Row],[75th]]-AAMC_Raw_Data_for_FY22[[#This Row],[Median]])/25)*10) + AAMC_Raw_Data_for_FY22[[#This Row],[Median]]","v":0},{"$f":"(((AAMC_Raw_Data_for_FY22[[#This Row],[75th]]-AAMC_Raw_Data_for_FY22[[#This Row],[Median]])/25)*15) + AAMC_Raw_Data_for_FY22[[#This Row],[Median]]","v":0},{"$f":"(((AAMC_Raw_Data_for_FY22[[#This Row],[75th]]-AAMC_Raw_Data_for_FY22[[#This Row],[Median]])/25)*20) + AAMC_Raw_Data_for_FY22[[#This Row],[Median]]","v":0},null,{"$f":"(((AAMC_Raw_Data_for_FY22[[#This Row],[75th]]-AAMC_Raw_Data_for_FY22[[#This Row],[Median]])/25)*30) + AAMC_Raw_Data_for_FY22[[#This Row],[Median]]","v":0},{"$f":"(((AAMC_Raw_Data_for_FY22[[#This Row],[75th]]-AAMC_Raw_Data_for_FY22[[#This Row],[Median]])/25)*35) + AAMC_Raw_Data_for_FY22[[#This Row],[Median]]","v":0},{"$f":"(((AAMC_Raw_Data_for_FY22[[#This Row],[75th]]-AAMC_Raw_Data_for_FY22[[#This Row],[Median]])/25)*40) + AAMC_Raw_Data_for_FY22[[#This Row],[Median]]","v":0}]
[{"$f":"AAMC_Raw_Data_for_FY22[[#This Row],[Source]]&AAMC_Raw_Data_for_FY22[[#This Row],[Type]]&AAMC_Raw_Data_for_FY22[[#This Row],[School Subset]]&AAMC_Raw_Data_for_FY22[[#This Row],[Rank]]&AAMC_Raw_Data_for_FY22[[#This Row],[Degree]]&AAMC_Raw_Data_for_FY22[[#This Row],[Department / Specialty]]&\"L\"","v":"AAMCAcademicAllAssociatePhDAnesthesiology: PediatricL"},"Anesthesiology: Pediatric",3,"AAMC","Academic","All","Associate","PhD","2021-2022",null,{"$f":"(((AAMC_Raw_Data_for_FY22[[#This Row],[Median]]-AAMC_Raw_Data_for_FY22[[#This Row],[25th]])/25)*5) + AAMC_Raw_Data_for_FY22[[#This Row],[25th]]","v":0},{"$f":"(((AAMC_Raw_Data_for_FY22[[#This Row],[Median]]-AAMC_Raw_Data_for_FY22[[#This Row],[25th]])/25)*10) + AAMC_Raw_Data_for_FY22[[#This Row],[25th]]","v":0},{"$f":"(((AAMC_Raw_Data_for_FY22[[#This Row],[Median]]-AAMC_Raw_Data_for_FY22[[#This Row],[25th]])/25)*15) + AAMC_Raw_Data_for_FY22[[#This Row],[25th]]","v":0},{"$f":"(((AAMC_Raw_Data_for_FY22[[#This Row],[Median]]-AAMC_Raw_Data_for_FY22[[#This Row],[25th]])/25)*20) + AAMC_Raw_Data_for_FY22[[#This Row],[25th]]","v":0},null,{"$f":"(((AAMC_Raw_Data_for_FY22[[#This Row],[75th]]-AAMC_Raw_Data_for_FY22[[#This Row],[Median]])/25)*5) + AAMC_Raw_Data_for_FY22[[#This Row],[Median]]","v":0},{"$f":"(((AAMC_Raw_Data_for_FY22[[#This Row],[75th]]-AAMC_Raw_Data_for_FY22[[#This Row],[Median]])/25)*10) + AAMC_Raw_Data_for_FY22[[#This Row],[Median]]","v":0},{"$f":"(((AAMC_Raw_Data_for_FY22[[#This Row],[75th]]-AAMC_Raw_Data_for_FY22[[#This Row],[Median]])/25)*15) + AAMC_Raw_Data_for_FY22[[#This Row],[Median]]","v":0},{"$f":"(((AAMC_Raw_Data_for_FY22[[#This Row],[75th]]-AAMC_Raw_Data_for_FY22[[#This Row],[Median]])/25)*20) + AAMC_Raw_Data_for_FY22[[#This Row],[Median]]","v":0},null,{"$f":"(((AAMC_Raw_Data_for_FY22[[#This Row],[75th]]-AAMC_Raw_Data_for_FY22[[#This Row],[Median]])/25)*30) + AAMC_Raw_Data_for_FY22[[#This Row],[Median]]","v":0},{"$f":"(((AAMC_Raw_Data_for_FY22[[#This Row],[75th]]-AAMC_Raw_Data_for_FY22[[#This Row],[Median]])/25)*35) + AAMC_Raw_Data_for_FY22[[#This Row],[Median]]","v":0},{"$f":"(((AAMC_Raw_Data_for_FY22[[#This Row],[75th]]-AAMC_Raw_Data_for_FY22[[#This Row],[Median]])/25)*40) + AAMC_Raw_Data_for_FY22[[#This Row],[Median]]","v":0}]
[{"$f":"AAMC_Raw_Data_for_FY22[[#This Row],[Source]]&AAMC_Raw_Data_for_FY22[[#This Row],[Type]]&AAMC_Raw_Data_for_FY22[[#This Row],[School Subset]]&AAMC_Raw_Data_for_FY22[[#This Row],[Rank]]&AAMC_Raw_Data_for_FY22[[#This Row],[Degree]]&AAMC_Raw_Data_for_FY22[[#This Row],[Department / Specialty]]&\"L\"","v":"AAMCAcademicAllProfessorPhDAnesthesiology: PediatricL"},"Anesthesiology: Pediatric",2,"AAMC","Academic","All","Professor","PhD","2021-2022",null,{"$f":"(((AAMC_Raw_Data_for_FY22[[#This Row],[Median]]-AAMC_Raw_Data_for_FY22[[#This Row],[25th]])/25)*5) + AAMC_Raw_Data_for_FY22[[#This Row],[25th]]","v":0},{"$f":"(((AAMC_Raw_Data_for_FY22[[#This Row],[Median]]-AAMC_Raw_Data_for_FY22[[#This Row],[25th]])/25)*10) + AAMC_Raw_Data_for_FY22[[#This Row],[25th]]","v":0},{"$f":"(((AAMC_Raw_Data_for_FY22[[#This Row],[Median]]-AAMC_Raw_Data_for_FY22[[#This Row],[25th]])/25)*15) + AAMC_Raw_Data_for_FY22[[#This Row],[25th]]","v":0},{"$f":"(((AAMC_Raw_Data_for_FY22[[#This Row],[Median]]-AAMC_Raw_Data_for_FY22[[#This Row],[25th]])/25)*20) + AAMC_Raw_Data_for_FY22[[#This Row],[25th]]","v":0},null,{"$f":"(((AAMC_Raw_Data_for_FY22[[#This Row],[75th]]-AAMC_Raw_Data_for_FY22[[#This Row],[Median]])/25)*5) + AAMC_Raw_Data_for_FY22[[#This Row],[Median]]","v":0},{"$f":"(((AAMC_Raw_Data_for_FY22[[#This Row],[75th]]-AAMC_Raw_Data_for_FY22[[#This Row],[Median]])/25)*10) + AAMC_Raw_Data_for_FY22[[#This Row],[Median]]","v":0},{"$f":"(((AAMC_Raw_Data_for_FY22[[#This Row],[75th]]-AAMC_Raw_Data_for_FY22[[#This Row],[Median]])/25)*15) + AAMC_Raw_Data_for_FY22[[#This Row],[Median]]","v":0},{"$f":"(((AAMC_Raw_Data_for_FY22[[#This Row],[75th]]-AAMC_Raw_Data_for_FY22[[#This Row],[Median]])/25)*20) + AAMC_Raw_Data_for_FY22[[#This Row],[Median]]","v":0},null,{"$f":"(((AAMC_Raw_Data_for_FY22[[#This Row],[75th]]-AAMC_Raw_Data_for_FY22[[#This Row],[Median]])/25)*30) + AAMC_Raw_Data_for_FY22[[#This Row],[Median]]","v":0},{"$f":"(((AAMC_Raw_Data_for_FY22[[#This Row],[75th]]-AAMC_Raw_Data_for_FY22[[#This Row],[Median]])/25)*35) + AAMC_Raw_Data_for_FY22[[#This Row],[Median]]","v":0},{"$f":"(((AAMC_Raw_Data_for_FY22[[#This Row],[75th]]-AAMC_Raw_Data_for_FY22[[#This Row],[Median]])/25)*40) + AAMC_Raw_Data_for_FY22[[#This Row],[Median]]","v":0}]
[{"$f":"AAMC_Raw_Data_for_FY22[[#This Row],[Source]]&AAMC_Raw_Data_for_FY22[[#This Row],[Type]]&AAMC_Raw_Data_for_FY22[[#This Row],[School Subset]]&AAMC_Raw_Data_for_FY22[[#This Row],[Rank]]&AAMC_Raw_Data_for_FY22[[#This Row],[Degree]]&AAMC_Raw_Data_for_FY22[[#This Row],[Department / Specialty]]&\"L\"","v":"AAMCAcademicAllInstructorPhDDermatology TotalL"},"Dermatology Total",5,"AAMC","Academic","All","Instructor","PhD","2021-2022",62958,{"$f":"(((AAMC_Raw_Data_for_FY22[[#This Row],[Median]]-AAMC_Raw_Data_for_FY22[[#This Row],[25th]])/25)*5) + AAMC_Raw_Data_for_FY22[[#This Row],[25th]]","v":66886.399999999994},{"$f":"(((AAMC_Raw_Data_for_FY22[[#This Row],[Median]]-AAMC_Raw_Data_for_FY22[[#This Row],[25th]])/25)*10) + AAMC_Raw_Data_for_FY22[[#This Row],[25th]]","v":70814.8},{"$f":"(((AAMC_Raw_Data_for_FY22[[#This Row],[Median]]-AAMC_Raw_Data_for_FY22[[#This Row],[25th]])/25)*15) + AAMC_Raw_Data_for_FY22[[#This Row],[25th]]","v":74743.199999999997},{"$f":"(((AAMC_Raw_Data_for_FY22[[#This Row],[Median]]-AAMC_Raw_Data_for_FY22[[#This Row],[25th]])/25)*20) + AAMC_Raw_Data_for_FY22[[#This Row],[25th]]","v":78671.600000000006},82600,{"$f":"(((AAMC_Raw_Data_for_FY22[[#This Row],[75th]]-AAMC_Raw_Data_for_FY22[[#This Row],[Median]])/25)*5) + AAMC_Raw_Data_for_FY22[[#This Row],[Median]]","v":88453.8},{"$f":"(((AAMC_Raw_Data_for_FY22[[#This Row],[75th]]-AAMC_Raw_Data_for_FY22[[#This Row],[Median]])/25)*10) + AAMC_Raw_Data_for_FY22[[#This Row],[Median]]","v":94307.6},{"$f":"(((AAMC_Raw_Data_for_FY22[[#This Row],[75th]]-AAMC_Raw_Data_for_FY22[[#This Row],[Median]])/25)*15) + AAMC_Raw_Data_for_FY22[[#This Row],[Median]]","v":100161.4},{"$f":"(((AAMC_Raw_Data_for_FY22[[#This Row],[75th]]-AAMC_Raw_Data_for_FY22[[#This Row],[Median]])/25)*20) + AAMC_Raw_Data_for_FY22[[#This Row],[Median]]","v":106015.2},111869,{"$f":"(((AAMC_Raw_Data_for_FY22[[#This Row],[75th]]-AAMC_Raw_Data_for_FY22[[#This Row],[Median]])/25)*30) + AAMC_Raw_Data_for_FY22[[#This Row],[Median]]","v":117722.8},{"$f":"(((AAMC_Raw_Data_for_FY22[[#This Row],[75th]]-AAMC_Raw_Data_for_FY22[[#This Row],[Median]])/25)*35) + AAMC_Raw_Data_for_FY22[[#This Row],[Median]]","v":123576.6},{"$f":"(((AAMC_Raw_Data_for_FY22[[#This Row],[75th]]-AAMC_Raw_Data_for_FY22[[#This Row],[Median]])/25)*40) + AAMC_Raw_Data_for_FY22[[#This Row],[Median]]","v":129430.39999999999}]
[{"$f":"AAMC_Raw_Data_for_FY22[[#This Row],[Source]]&AAMC_Raw_Data_for_FY22[[#This Row],[Type]]&AAMC_Raw_Data_for_FY22[[#This Row],[School Subset]]&AAMC_Raw_Data_for_FY22[[#This Row],[Rank]]&AAMC_Raw_Data_for_FY22[[#This Row],[Degree]]&AAMC_Raw_Data_for_FY22[[#This Row],[Department / Specialty]]&\"L\"","v":"AAMCAcademicAllAssistantPhDDermatology TotalL"},"Dermatology Total",4,"AAMC","Academic","All","Assistant","PhD","2021-2022",84970,{"$f":"(((AAMC_Raw_Data_for_FY22[[#This Row],[Median]]-AAMC_Raw_Data_for_FY22[[#This Row],[25th]])/25)*5) + AAMC_Raw_Data_for_FY22[[#This Row],[25th]]","v":88391.2},{"$f":"(((AAMC_Raw_Data_for_FY22[[#This Row],[Median]]-AAMC_Raw_Data_for_FY22[[#This Row],[25th]])/25)*10) + AAMC_Raw_Data_for_FY22[[#This Row],[25th]]","v":91812.4},{"$f":"(((AAMC_Raw_Data_for_FY22[[#This Row],[Median]]-AAMC_Raw_Data_for_FY22[[#This Row],[25th]])/25)*15) + AAMC_Raw_Data_for_FY22[[#This Row],[25th]]","v":95233.600000000006},{"$f":"(((AAMC_Raw_Data_for_FY22[[#This Row],[Median]]-AAMC_Raw_Data_for_FY22[[#This Row],[25th]])/25)*20) + AAMC_Raw_Data_for_FY22[[#This Row],[25th]]","v":98654.8},102076,{"$f":"(((AAMC_Raw_Data_for_FY22[[#This Row],[75th]]-AAMC_Raw_Data_for_FY22[[#This Row],[Median]])/25)*5) + AAMC_Raw_Data_for_FY22[[#This Row],[Median]]","v":107131.2},{"$f":"(((AAMC_Raw_Data_for_FY22[[#This Row],[75th]]-AAMC_Raw_Data_for_FY22[[#This Row],[Median]])/25)*10) + AAMC_Raw_Data_for_FY22[[#This Row],[Median]]","v":112186.4},{"$f":"(((AAMC_Raw_Data_for_FY22[[#This Row],[75th]]-AAMC_Raw_Data_for_FY22[[#This Row],[Median]])/25)*15) + AAMC_Raw_Data_for_FY22[[#This Row],[Median]]","v":117241.60000000001},{"$f":"(((AAMC_Raw_Data_for_FY22[[#This Row],[75th]]-AAMC_Raw_Data_for_FY22[[#This Row],[Median]])/25)*20) + AAMC_Raw_Data_for_FY22[[#This Row],[Median]]","v":122296.8},127352,{"$f":"(((AAMC_Raw_Data_for_FY22[[#This Row],[75th]]-AAMC_Raw_Data_for_FY22[[#This Row],[Median]])/25)*30) + AAMC_Raw_Data_for_FY22[[#This Row],[Median]]","v":132407.20000000001},{"$f":"(((AAMC_Raw_Data_for_FY22[[#This Row],[75th]]-AAMC_Raw_Data_for_FY22[[#This Row],[Median]])/25)*35) + AAMC_Raw_Data_for_FY22[[#This Row],[Median]]","v":137462.39999999999},{"$f":"(((AAMC_Raw_Data_for_FY22[[#This Row],[75th]]-AAMC_Raw_Data_for_FY22[[#This Row],[Median]])/25)*40) + AAMC_Raw_Data_for_FY22[[#This Row],[Median]]","v":142517.6}]
[{"$f":"AAMC_Raw_Data_for_FY22[[#This Row],[Source]]&AAMC_Raw_Data_for_FY22[[#This Row],[Type]]&AAMC_Raw_Data_for_FY22[[#This Row],[School Subset]]&AAMC_Raw_Data_for_FY22[[#This Row],[Rank]]&AAMC_Raw_Data_for_FY22[[#This Row],[Degree]]&AAMC_Raw_Data_for_FY22[[#This Row],[Department / Specialty]]&\"L\"","v":"AAMCAcademicAllAssociatePhDDermatology TotalL"},"Dermatology Total",3,"AAMC","Academic","All","Associate","PhD","2021-2022",132364,{"$f":"(((AAMC_Raw_Data_for_FY22[[#This Row],[Median]]-AAMC_Raw_Data_for_FY22[[#This Row],[25th]])/25)*5) + AAMC_Raw_Data_for_FY22[[#This Row],[25th]]","v":135493},{"$f":"(((AAMC_Raw_Data_for_FY22[[#This Row],[Median]]-AAMC_Raw_Data_for_FY22[[#This Row],[25th]])/25)*10) + AAMC_Raw_Data_for_FY22[[#This Row],[25th]]","v":138622},{"$f":"(((AAMC_Raw_Data_for_FY22[[#This Row],[Median]]-AAMC_Raw_Data_for_FY22[[#This Row],[25th]])/25)*15) + AAMC_Raw_Data_for_FY22[[#This Row],[25th]]","v":141751},{"$f":"(((AAMC_Raw_Data_for_FY22[[#This Row],[Median]]-AAMC_Raw_Data_for_FY22[[#This Row],[25th]])/25)*20) + AAMC_Raw_Data_for_FY22[[#This Row],[25th]]","v":144880},148009,{"$f":"(((AAMC_Raw_Data_for_FY22[[#This Row],[75th]]-AAMC_Raw_Data_for_FY22[[#This Row],[Median]])/25)*5) + AAMC_Raw_Data_for_FY22[[#This Row],[Median]]","v":150581.4},{"$f":"(((AAMC_Raw_Data_for_FY22[[#This Row],[75th]]-AAMC_Raw_Data_for_FY22[[#This Row],[Median]])/25)*10) + AAMC_Raw_Data_for_FY22[[#This Row],[Median]]","v":153153.79999999999},{"$f":"(((AAMC_Raw_Data_for_FY22[[#This Row],[75th]]-AAMC_Raw_Data_for_FY22[[#This Row],[Median]])/25)*15) + AAMC_Raw_Data_for_FY22[[#This Row],[Median]]","v":155726.20000000001},{"$f":"(((AAMC_Raw_Data_for_FY22[[#This Row],[75th]]-AAMC_Raw_Data_for_FY22[[#This Row],[Median]])/25)*20) + AAMC_Raw_Data_for_FY22[[#This Row],[Median]]","v":158298.6},160871,{"$f":"(((AAMC_Raw_Data_for_FY22[[#This Row],[75th]]-AAMC_Raw_Data_for_FY22[[#This Row],[Median]])/25)*30) + AAMC_Raw_Data_for_FY22[[#This Row],[Median]]","v":163443.4},{"$f":"(((AAMC_Raw_Data_for_FY22[[#This Row],[75th]]-AAMC_Raw_Data_for_FY22[[#This Row],[Median]])/25)*35) + AAMC_Raw_Data_for_FY22[[#This Row],[Median]]","v":166015.79999999999},{"$f":"(((AAMC_Raw_Data_for_FY22[[#This Row],[75th]]-AAMC_Raw_Data_for_FY22[[#This Row],[Median]])/25)*40) + AAMC_Raw_Data_for_FY22[[#This Row],[Median]]","v":168588.2}]
[{"$f":"AAMC_Raw_Data_for_FY22[[#This Row],[Source]]&AAMC_Raw_Data_for_FY22[[#This Row],[Type]]&AAMC_Raw_Data_for_FY22[[#This Row],[School Subset]]&AAMC_Raw_Data_for_FY22[[#This Row],[Rank]]&AAMC_Raw_Data_for_FY22[[#This Row],[Degree]]&AAMC_Raw_Data_for_FY22[[#This Row],[Department / Specialty]]&\"L\"","v":"AAMCAcademicAllProfessorPhDDermatology TotalL"},"Dermatology Total",2,"AAMC","Academic","All","Professor","PhD","2021-2022",160596,{"$f":"(((AAMC_Raw_Data_for_FY22[[#This Row],[Median]]-AAMC_Raw_Data_for_FY22[[#This Row],[25th]])/25)*5) + AAMC_Raw_Data_for_FY22[[#This Row],[25th]]","v":166850.20000000001},{"$f":"(((AAMC_Raw_Data_for_FY22[[#This Row],[Median]]-AAMC_Raw_Data_for_FY22[[#This Row],[25th]])/25)*10) + AAMC_Raw_Data_for_FY22[[#This Row],[25th]]","v":173104.4},{"$f":"(((AAMC_Raw_Data_for_FY22[[#This Row],[Median]]-AAMC_Raw_Data_for_FY22[[#This Row],[25th]])/25)*15) + AAMC_Raw_Data_for_FY22[[#This Row],[25th]]","v":179358.6},{"$f":"(((AAMC_Raw_Data_for_FY22[[#This Row],[Median]]-AAMC_Raw_Data_for_FY22[[#This Row],[25th]])/25)*20) + AAMC_Raw_Data_for_FY22[[#This Row],[25th]]","v":185612.79999999999},191867,{"$f":"(((AAMC_Raw_Data_for_FY22[[#This Row],[75th]]-AAMC_Raw_Data_for_FY22[[#This Row],[Median]])/25)*5) + AAMC_Raw_Data_for_FY22[[#This Row],[Median]]","v":199031.6},{"$f":"(((AAMC_Raw_Data_for_FY22[[#This Row],[75th]]-AAMC_Raw_Data_for_FY22[[#This Row],[Median]])/25)*10) + AAMC_Raw_Data_for_FY22[[#This Row],[Median]]","v":206196.2},{"$f":"(((AAMC_Raw_Data_for_FY22[[#This Row],[75th]]-AAMC_Raw_Data_for_FY22[[#This Row],[Median]])/25)*15) + AAMC_Raw_Data_for_FY22[[#This Row],[Median]]","v":213360.8},{"$f":"(((AAMC_Raw_Data_for_FY22[[#This Row],[75th]]-AAMC_Raw_Data_for_FY22[[#This Row],[Median]])/25)*20) + AAMC_Raw_Data_for_FY22[[#This Row],[Median]]","v":220525.4},227690,{"$f":"(((AAMC_Raw_Data_for_FY22[[#This Row],[75th]]-AAMC_Raw_Data_for_FY22[[#This Row],[Median]])/25)*30) + AAMC_Raw_Data_for_FY22[[#This Row],[Median]]","v":234854.6},{"$f":"(((AAMC_Raw_Data_for_FY22[[#This Row],[75th]]-AAMC_Raw_Data_for_FY22[[#This Row],[Median]])/25)*35) + AAMC_Raw_Data_for_FY22[[#This Row],[Median]]","v":242019.20000000001},{"$f":"(((AAMC_Raw_Data_for_FY22[[#This Row],[75th]]-AAMC_Raw_Data_for_FY22[[#This Row],[Median]])/25)*40) + AAMC_Raw_Data_for_FY22[[#This Row],[Median]]","v":249183.8}]
[{"$f":"AAMC_Raw_Data_for_FY22[[#This Row],[Source]]&AAMC_Raw_Data_for_FY22[[#This Row],[Type]]&AAMC_Raw_Data_for_FY22[[#This Row],[School Subset]]&AAMC_Raw_Data_for_FY22[[#This Row],[Rank]]&AAMC_Raw_Data_for_FY22[[#This Row],[Degree]]&AAMC_Raw_Data_for_FY22[[#This Row],[Department / Specialty]]&\"L\"","v":"AAMCAcademicAllInstructorPhDDermatology (excluding Mohs Surgery)L"},"Dermatology (excluding Mohs Surgery)",5,"AAMC","Academic","All","Instructor","PhD","2021-2022",62915,{"$f":"(((AAMC_Raw_Data_for_FY22[[#This Row],[Median]]-AAMC_Raw_Data_for_FY22[[#This Row],[25th]])/25)*5) + AAMC_Raw_Data_for_FY22[[#This Row],[25th]]","v":66352},{"$f":"(((AAMC_Raw_Data_for_FY22[[#This Row],[Median]]-AAMC_Raw_Data_for_FY22[[#This Row],[25th]])/25)*10) + AAMC_Raw_Data_for_FY22[[#This Row],[25th]]","v":69789},{"$f":"(((AAMC_Raw_Data_for_FY22[[#This Row],[Median]]-AAMC_Raw_Data_for_FY22[[#This Row],[25th]])/25)*15) + AAMC_Raw_Data_for_FY22[[#This Row],[25th]]","v":73226},{"$f":"(((AAMC_Raw_Data_for_FY22[[#This Row],[Median]]-AAMC_Raw_Data_for_FY22[[#This Row],[25th]])/25)*20) + AAMC_Raw_Data_for_FY22[[#This Row],[25th]]","v":76663},80100,{"$f":"(((AAMC_Raw_Data_for_FY22[[#This Row],[75th]]-AAMC_Raw_Data_for_FY22[[#This Row],[Median]])/25)*5) + AAMC_Raw_Data_for_FY22[[#This Row],[Median]]","v":85238.2},{"$f":"(((AAMC_Raw_Data_for_FY22[[#This Row],[75th]]-AAMC_Raw_Data_for_FY22[[#This Row],[Median]])/25)*10) + AAMC_Raw_Data_for_FY22[[#This Row],[Median]]","v":90376.4},{"$f":"(((AAMC_Raw_Data_for_FY22[[#This Row],[75th]]-AAMC_Raw_Data_for_FY22[[#This Row],[Median]])/25)*15) + AAMC_Raw_Data_for_FY22[[#This Row],[Median]]","v":95514.6},{"$f":"(((AAMC_Raw_Data_for_FY22[[#This Row],[75th]]-AAMC_Raw_Data_for_FY22[[#This Row],[Median]])/25)*20) + AAMC_Raw_Data_for_FY22[[#This Row],[Median]]","v":100652.8},105791,{"$f":"(((AAMC_Raw_Data_for_FY22[[#This Row],[75th]]-AAMC_Raw_Data_for_FY22[[#This Row],[Median]])/25)*30) + AAMC_Raw_Data_for_FY22[[#This Row],[Median]]","v":110929.20000000001},{"$f":"(((AAMC_Raw_Data_for_FY22[[#This Row],[75th]]-AAMC_Raw_Data_for_FY22[[#This Row],[Median]])/25)*35) + AAMC_Raw_Data_for_FY22[[#This Row],[Median]]","v":116067.4},{"$f":"(((AAMC_Raw_Data_for_FY22[[#This Row],[75th]]-AAMC_Raw_Data_for_FY22[[#This Row],[Median]])/25)*40) + AAMC_Raw_Data_for_FY22[[#This Row],[Median]]","v":121205.6}]
[{"$f":"AAMC_Raw_Data_for_FY22[[#This Row],[Source]]&AAMC_Raw_Data_for_FY22[[#This Row],[Type]]&AAMC_Raw_Data_for_FY22[[#This Row],[School Subset]]&AAMC_Raw_Data_for_FY22[[#This Row],[Rank]]&AAMC_Raw_Data_for_FY22[[#This Row],[Degree]]&AAMC_Raw_Data_for_FY22[[#This Row],[Department / Specialty]]&\"L\"","v":"AAMCAcademicAllAssistantPhDDermatology (excluding Mohs Surgery)L"},"Dermatology (excluding Mohs Surgery)",4,"AAMC","Academic","All","Assistant","PhD","2021-2022",84970,{"$f":"(((AAMC_Raw_Data_for_FY22[[#This Row],[Median]]-AAMC_Raw_Data_for_FY22[[#This Row],[25th]])/25)*5) + AAMC_Raw_Data_for_FY22[[#This Row],[25th]]","v":88391.2},{"$f":"(((AAMC_Raw_Data_for_FY22[[#This Row],[Median]]-AAMC_Raw_Data_for_FY22[[#This Row],[25th]])/25)*10) + AAMC_Raw_Data_for_FY22[[#This Row],[25th]]","v":91812.4},{"$f":"(((AAMC_Raw_Data_for_FY22[[#This Row],[Median]]-AAMC_Raw_Data_for_FY22[[#This Row],[25th]])/25)*15) + AAMC_Raw_Data_for_FY22[[#This Row],[25th]]","v":95233.600000000006},{"$f":"(((AAMC_Raw_Data_for_FY22[[#This Row],[Median]]-AAMC_Raw_Data_for_FY22[[#This Row],[25th]])/25)*20) + AAMC_Raw_Data_for_FY22[[#This Row],[25th]]","v":98654.8},102076,{"$f":"(((AAMC_Raw_Data_for_FY22[[#This Row],[75th]]-AAMC_Raw_Data_for_FY22[[#This Row],[Median]])/25)*5) + AAMC_Raw_Data_for_FY22[[#This Row],[Median]]","v":107131.2},{"$f":"(((AAMC_Raw_Data_for_FY22[[#This Row],[75th]]-AAMC_Raw_Data_for_FY22[[#This Row],[Median]])/25)*10) + AAMC_Raw_Data_for_FY22[[#This Row],[Median]]","v":112186.4},{"$f":"(((AAMC_Raw_Data_for_FY22[[#This Row],[75th]]-AAMC_Raw_Data_for_FY22[[#This Row],[Median]])/25)*15) + AAMC_Raw_Data_for_FY22[[#This Row],[Median]]","v":117241.60000000001},{"$f":"(((AAMC_Raw_Data_for_FY22[[#This Row],[75th]]-AAMC_Raw_Data_for_FY22[[#This Row],[Median]])/25)*20) + AAMC_Raw_Data_for_FY22[[#This Row],[Median]]","v":122296.8},127352,{"$f":"(((AAMC_Raw_Data_for_FY22[[#This Row],[75th]]-AAMC_Raw_Data_for_FY22[[#This Row],[Median]])/25)*30) + AAMC_Raw_Data_for_FY22[[#This Row],[Median]]","v":132407.20000000001},{"$f":"(((AAMC_Raw_Data_for_FY22[[#This Row],[75th]]-AAMC_Raw_Data_for_FY22[[#This Row],[Median]])/25)*35) + AAMC_Raw_Data_for_FY22[[#This Row],[Median]]","v":137462.39999999999},{"$f":"(((AAMC_Raw_Data_for_FY22[[#This Row],[75th]]-AAMC_Raw_Data_for_FY22[[#This Row],[Median]])/25)*40) + AAMC_Raw_Data_for_FY22[[#This Row],[Median]]","v":142517.6}]
[{"$f":"AAMC_Raw_Data_for_FY22[[#This Row],[Source]]&AAMC_Raw_Data_for_FY22[[#This Row],[Type]]&AAMC_Raw_Data_for_FY22[[#This Row],[School Subset]]&AAMC_Raw_Data_for_FY22[[#This Row],[Rank]]&AAMC_Raw_Data_for_FY22[[#This Row],[Degree]]&AAMC_Raw_Data_for_FY22[[#This Row],[Department / Specialty]]&\"L\"","v":"AAMCAcademicAllAssociatePhDDermatology (excluding Mohs Surgery)L"},"Dermatology (excluding Mohs Surgery)",3,"AAMC","Academic","All","Associate","PhD","2021-2022",132364,{"$f":"(((AAMC_Raw_Data_for_FY22[[#This Row],[Median]]-AAMC_Raw_Data_for_FY22[[#This Row],[25th]])/25)*5) + AAMC_Raw_Data_for_FY22[[#This Row],[25th]]","v":135493},{"$f":"(((AAMC_Raw_Data_for_FY22[[#This Row],[Median]]-AAMC_Raw_Data_for_FY22[[#This Row],[25th]])/25)*10) + AAMC_Raw_Data_for_FY22[[#This Row],[25th]]","v":138622},{"$f":"(((AAMC_Raw_Data_for_FY22[[#This Row],[Median]]-AAMC_Raw_Data_for_FY22[[#This Row],[25th]])/25)*15) + AAMC_Raw_Data_for_FY22[[#This Row],[25th]]","v":141751},{"$f":"(((AAMC_Raw_Data_for_FY22[[#This Row],[Median]]-AAMC_Raw_Data_for_FY22[[#This Row],[25th]])/25)*20) + AAMC_Raw_Data_for_FY22[[#This Row],[25th]]","v":144880},148009,{"$f":"(((AAMC_Raw_Data_for_FY22[[#This Row],[75th]]-AAMC_Raw_Data_for_FY22[[#This Row],[Median]])/25)*5) + AAMC_Raw_Data_for_FY22[[#This Row],[Median]]","v":150581.4},{"$f":"(((AAMC_Raw_Data_for_FY22[[#This Row],[75th]]-AAMC_Raw_Data_for_FY22[[#This Row],[Median]])/25)*10) + AAMC_Raw_Data_for_FY22[[#This Row],[Median]]","v":153153.79999999999},{"$f":"(((AAMC_Raw_Data_for_FY22[[#This Row],[75th]]-AAMC_Raw_Data_for_FY22[[#This Row],[Median]])/25)*15) + AAMC_Raw_Data_for_FY22[[#This Row],[Median]]","v":155726.20000000001},{"$f":"(((AAMC_Raw_Data_for_FY22[[#This Row],[75th]]-AAMC_Raw_Data_for_FY22[[#This Row],[Median]])/25)*20) + AAMC_Raw_Data_for_FY22[[#This Row],[Median]]","v":158298.6},160871,{"$f":"(((AAMC_Raw_Data_for_FY22[[#This Row],[75th]]-AAMC_Raw_Data_for_FY22[[#This Row],[Median]])/25)*30) + AAMC_Raw_Data_for_FY22[[#This Row],[Median]]","v":163443.4},{"$f":"(((AAMC_Raw_Data_for_FY22[[#This Row],[75th]]-AAMC_Raw_Data_for_FY22[[#This Row],[Median]])/25)*35) + AAMC_Raw_Data_for_FY22[[#This Row],[Median]]","v":166015.79999999999},{"$f":"(((AAMC_Raw_Data_for_FY22[[#This Row],[75th]]-AAMC_Raw_Data_for_FY22[[#This Row],[Median]])/25)*40) + AAMC_Raw_Data_for_FY22[[#This Row],[Median]]","v":168588.2}]
[{"$f":"AAMC_Raw_Data_for_FY22[[#This Row],[Source]]&AAMC_Raw_Data_for_FY22[[#This Row],[Type]]&AAMC_Raw_Data_for_FY22[[#This Row],[School Subset]]&AAMC_Raw_Data_for_FY22[[#This Row],[Rank]]&AAMC_Raw_Data_for_FY22[[#This Row],[Degree]]&AAMC_Raw_Data_for_FY22[[#This Row],[Department / Specialty]]&\"L\"","v":"AAMCAcademicAllProfessorPhDDermatology (excluding Mohs Surgery)L"},"Dermatology (excluding Mohs Surgery)",2,"AAMC","Academic","All","Professor","PhD","2021-2022",160596,{"$f":"(((AAMC_Raw_Data_for_FY22[[#This Row],[Median]]-AAMC_Raw_Data_for_FY22[[#This Row],[25th]])/25)*5) + AAMC_Raw_Data_for_FY22[[#This Row],[25th]]","v":166850.20000000001},{"$f":"(((AAMC_Raw_Data_for_FY22[[#This Row],[Median]]-AAMC_Raw_Data_for_FY22[[#This Row],[25th]])/25)*10) + AAMC_Raw_Data_for_FY22[[#This Row],[25th]]","v":173104.4},{"$f":"(((AAMC_Raw_Data_for_FY22[[#This Row],[Median]]-AAMC_Raw_Data_for_FY22[[#This Row],[25th]])/25)*15) + AAMC_Raw_Data_for_FY22[[#This Row],[25th]]","v":179358.6},{"$f":"(((AAMC_Raw_Data_for_FY22[[#This Row],[Median]]-AAMC_Raw_Data_for_FY22[[#This Row],[25th]])/25)*20) + AAMC_Raw_Data_for_FY22[[#This Row],[25th]]","v":185612.79999999999},191867,{"$f":"(((AAMC_Raw_Data_for_FY22[[#This Row],[75th]]-AAMC_Raw_Data_for_FY22[[#This Row],[Median]])/25)*5) + AAMC_Raw_Data_for_FY22[[#This Row],[Median]]","v":199031.6},{"$f":"(((AAMC_Raw_Data_for_FY22[[#This Row],[75th]]-AAMC_Raw_Data_for_FY22[[#This Row],[Median]])/25)*10) + AAMC_Raw_Data_for_FY22[[#This Row],[Median]]","v":206196.2},{"$f":"(((AAMC_Raw_Data_for_FY22[[#This Row],[75th]]-AAMC_Raw_Data_for_FY22[[#This Row],[Median]])/25)*15) + AAMC_Raw_Data_for_FY22[[#This Row],[Median]]","v":213360.8},{"$f":"(((AAMC_Raw_Data_for_FY22[[#This Row],[75th]]-AAMC_Raw_Data_for_FY22[[#This Row],[Median]])/25)*20) + AAMC_Raw_Data_for_FY22[[#This Row],[Median]]","v":220525.4},227690,{"$f":"(((AAMC_Raw_Data_for_FY22[[#This Row],[75th]]-AAMC_Raw_Data_for_FY22[[#This Row],[Median]])/25)*30) + AAMC_Raw_Data_for_FY22[[#This Row],[Median]]","v":234854.6},{"$f":"(((AAMC_Raw_Data_for_FY22[[#This Row],[75th]]-AAMC_Raw_Data_for_FY22[[#This Row],[Median]])/25)*35) + AAMC_Raw_Data_for_FY22[[#This Row],[Median]]","v":242019.20000000001},{"$f":"(((AAMC_Raw_Data_for_FY22[[#This Row],[75th]]-AAMC_Raw_Data_for_FY22[[#This Row],[Median]])/25)*40) + AAMC_Raw_Data_for_FY22[[#This Row],[Median]]","v":249183.8}]
[{"$f":"AAMC_Raw_Data_for_FY22[[#This Row],[Source]]&AAMC_Raw_Data_for_FY22[[#This Row],[Type]]&AAMC_Raw_Data_for_FY22[[#This Row],[School Subset]]&AAMC_Raw_Data_for_FY22[[#This Row],[Rank]]&AAMC_Raw_Data_for_FY22[[#This Row],[Degree]]&AAMC_Raw_Data_for_FY22[[#This Row],[Department / Specialty]]&\"L\"","v":"AAMCAcademicAllInstructorPhDDermatology: Mohs SurgeryL"},"Dermatology: Mohs Surgery",5,"AAMC","Academic","All","Instructor","PhD","2021-2022",null,{"$f":"(((AAMC_Raw_Data_for_FY22[[#This Row],[Median]]-AAMC_Raw_Data_for_FY22[[#This Row],[25th]])/25)*5) + AAMC_Raw_Data_for_FY22[[#This Row],[25th]]","v":0},{"$f":"(((AAMC_Raw_Data_for_FY22[[#This Row],[Median]]-AAMC_Raw_Data_for_FY22[[#This Row],[25th]])/25)*10) + AAMC_Raw_Data_for_FY22[[#This Row],[25th]]","v":0},{"$f":"(((AAMC_Raw_Data_for_FY22[[#This Row],[Median]]-AAMC_Raw_Data_for_FY22[[#This Row],[25th]])/25)*15) + AAMC_Raw_Data_for_FY22[[#This Row],[25th]]","v":0},{"$f":"(((AAMC_Raw_Data_for_FY22[[#This Row],[Median]]-AAMC_Raw_Data_for_FY22[[#This Row],[25th]])/25)*20) + AAMC_Raw_Data_for_FY22[[#This Row],[25th]]","v":0},null,{"$f":"(((AAMC_Raw_Data_for_FY22[[#This Row],[75th]]-AAMC_Raw_Data_for_FY22[[#This Row],[Median]])/25)*5) + AAMC_Raw_Data_for_FY22[[#This Row],[Median]]","v":0},{"$f":"(((AAMC_Raw_Data_for_FY22[[#This Row],[75th]]-AAMC_Raw_Data_for_FY22[[#This Row],[Median]])/25)*10) + AAMC_Raw_Data_for_FY22[[#This Row],[Median]]","v":0},{"$f":"(((AAMC_Raw_Data_for_FY22[[#This Row],[75th]]-AAMC_Raw_Data_for_FY22[[#This Row],[Median]])/25)*15) + AAMC_Raw_Data_for_FY22[[#This Row],[Median]]","v":0},{"$f":"(((AAMC_Raw_Data_for_FY22[[#This Row],[75th]]-AAMC_Raw_Data_for_FY22[[#This Row],[Median]])/25)*20) + AAMC_Raw_Data_for_FY22[[#This Row],[Median]]","v":0},null,{"$f":"(((AAMC_Raw_Data_for_FY22[[#This Row],[75th]]-AAMC_Raw_Data_for_FY22[[#This Row],[Median]])/25)*30) + AAMC_Raw_Data_for_FY22[[#This Row],[Median]]","v":0},{"$f":"(((AAMC_Raw_Data_for_FY22[[#This Row],[75th]]-AAMC_Raw_Data_for_FY22[[#This Row],[Median]])/25)*35) + AAMC_Raw_Data_for_FY22[[#This Row],[Median]]","v":0},{"$f":"(((AAMC_Raw_Data_for_FY22[[#This Row],[75th]]-AAMC_Raw_Data_for_FY22[[#This Row],[Median]])/25)*40) + AAMC_Raw_Data_for_FY22[[#This Row],[Median]]","v":0}]
[{"$f":"AAMC_Raw_Data_for_FY22[[#This Row],[Source]]&AAMC_Raw_Data_for_FY22[[#This Row],[Type]]&AAMC_Raw_Data_for_FY22[[#This Row],[School Subset]]&AAMC_Raw_Data_for_FY22[[#This Row],[Rank]]&AAMC_Raw_Data_for_FY22[[#This Row],[Degree]]&AAMC_Raw_Data_for_FY22[[#This Row],[Department / Specialty]]&\"L\"","v":"AAMCAcademicAllInstructorPhDFamily Medicine TotalL"},"Family Medicine Total",5,"AAMC","Academic","All","Instructor","PhD","2021-2022",95130,{"$f":"(((AAMC_Raw_Data_for_FY22[[#This Row],[Median]]-AAMC_Raw_Data_for_FY22[[#This Row],[25th]])/25)*5) + AAMC_Raw_Data_for_FY22[[#This Row],[25th]]","v":98182.6},{"$f":"(((AAMC_Raw_Data_for_FY22[[#This Row],[Median]]-AAMC_Raw_Data_for_FY22[[#This Row],[25th]])/25)*10) + AAMC_Raw_Data_for_FY22[[#This Row],[25th]]","v":101235.2},{"$f":"(((AAMC_Raw_Data_for_FY22[[#This Row],[Median]]-AAMC_Raw_Data_for_FY22[[#This Row],[25th]])/25)*15) + AAMC_Raw_Data_for_FY22[[#This Row],[25th]]","v":104287.8},{"$f":"(((AAMC_Raw_Data_for_FY22[[#This Row],[Median]]-AAMC_Raw_Data_for_FY22[[#This Row],[25th]])/25)*20) + AAMC_Raw_Data_for_FY22[[#This Row],[25th]]","v":107340.4},110393,{"$f":"(((AAMC_Raw_Data_for_FY22[[#This Row],[75th]]-AAMC_Raw_Data_for_FY22[[#This Row],[Median]])/25)*5) + AAMC_Raw_Data_for_FY22[[#This Row],[Median]]","v":111270.2},{"$f":"(((AAMC_Raw_Data_for_FY22[[#This Row],[75th]]-AAMC_Raw_Data_for_FY22[[#This Row],[Median]])/25)*10) + AAMC_Raw_Data_for_FY22[[#This Row],[Median]]","v":112147.4},{"$f":"(((AAMC_Raw_Data_for_FY22[[#This Row],[75th]]-AAMC_Raw_Data_for_FY22[[#This Row],[Median]])/25)*15) + AAMC_Raw_Data_for_FY22[[#This Row],[Median]]","v":113024.6},{"$f":"(((AAMC_Raw_Data_for_FY22[[#This Row],[75th]]-AAMC_Raw_Data_for_FY22[[#This Row],[Median]])/25)*20) + AAMC_Raw_Data_for_FY22[[#This Row],[Median]]","v":113901.8},114779,{"$f":"(((AAMC_Raw_Data_for_FY22[[#This Row],[75th]]-AAMC_Raw_Data_for_FY22[[#This Row],[Median]])/25)*30) + AAMC_Raw_Data_for_FY22[[#This Row],[Median]]","v":115656.2},{"$f":"(((AAMC_Raw_Data_for_FY22[[#This Row],[75th]]-AAMC_Raw_Data_for_FY22[[#This Row],[Median]])/25)*35) + AAMC_Raw_Data_for_FY22[[#This Row],[Median]]","v":116533.4},{"$f":"(((AAMC_Raw_Data_for_FY22[[#This Row],[75th]]-AAMC_Raw_Data_for_FY22[[#This Row],[Median]])/25)*40) + AAMC_Raw_Data_for_FY22[[#This Row],[Median]]","v":117410.6}]
[{"$f":"AAMC_Raw_Data_for_FY22[[#This Row],[Source]]&AAMC_Raw_Data_for_FY22[[#This Row],[Type]]&AAMC_Raw_Data_for_FY22[[#This Row],[School Subset]]&AAMC_Raw_Data_for_FY22[[#This Row],[Rank]]&AAMC_Raw_Data_for_FY22[[#This Row],[Degree]]&AAMC_Raw_Data_for_FY22[[#This Row],[Department / Specialty]]&\"L\"","v":"AAMCAcademicAllAssistantPhDFamily Medicine TotalL"},"Family Medicine Total",4,"AAMC","Academic","All","Assistant","PhD","2021-2022",99244,{"$f":"(((AAMC_Raw_Data_for_FY22[[#This Row],[Median]]-AAMC_Raw_Data_for_FY22[[#This Row],[25th]])/25)*5) + AAMC_Raw_Data_for_FY22[[#This Row],[25th]]","v":101786.8},{"$f":"(((AAMC_Raw_Data_for_FY22[[#This Row],[Median]]-AAMC_Raw_Data_for_FY22[[#This Row],[25th]])/25)*10) + AAMC_Raw_Data_for_FY22[[#This Row],[25th]]","v":104329.60000000001},{"$f":"(((AAMC_Raw_Data_for_FY22[[#This Row],[Median]]-AAMC_Raw_Data_for_FY22[[#This Row],[25th]])/25)*15) + AAMC_Raw_Data_for_FY22[[#This Row],[25th]]","v":106872.4},{"$f":"(((AAMC_Raw_Data_for_FY22[[#This Row],[Median]]-AAMC_Raw_Data_for_FY22[[#This Row],[25th]])/25)*20) + AAMC_Raw_Data_for_FY22[[#This Row],[25th]]","v":109415.2},111958,{"$f":"(((AAMC_Raw_Data_for_FY22[[#This Row],[75th]]-AAMC_Raw_Data_for_FY22[[#This Row],[Median]])/25)*5) + AAMC_Raw_Data_for_FY22[[#This Row],[Median]]","v":115326.39999999999},{"$f":"(((AAMC_Raw_Data_for_FY22[[#This Row],[75th]]-AAMC_Raw_Data_for_FY22[[#This Row],[Median]])/25)*10) + AAMC_Raw_Data_for_FY22[[#This Row],[Median]]","v":118694.8},{"$f":"(((AAMC_Raw_Data_for_FY22[[#This Row],[75th]]-AAMC_Raw_Data_for_FY22[[#This Row],[Median]])/25)*15) + AAMC_Raw_Data_for_FY22[[#This Row],[Median]]","v":122063.2},{"$f":"(((AAMC_Raw_Data_for_FY22[[#This Row],[75th]]-AAMC_Raw_Data_for_FY22[[#This Row],[Median]])/25)*20) + AAMC_Raw_Data_for_FY22[[#This Row],[Median]]","v":125431.6},128800,{"$f":"(((AAMC_Raw_Data_for_FY22[[#This Row],[75th]]-AAMC_Raw_Data_for_FY22[[#This Row],[Median]])/25)*30) + AAMC_Raw_Data_for_FY22[[#This Row],[Median]]","v":132168.4},{"$f":"(((AAMC_Raw_Data_for_FY22[[#This Row],[75th]]-AAMC_Raw_Data_for_FY22[[#This Row],[Median]])/25)*35) + AAMC_Raw_Data_for_FY22[[#This Row],[Median]]","v":135536.79999999999},{"$f":"(((AAMC_Raw_Data_for_FY22[[#This Row],[75th]]-AAMC_Raw_Data_for_FY22[[#This Row],[Median]])/25)*40) + AAMC_Raw_Data_for_FY22[[#This Row],[Median]]","v":138905.20000000001}]
[{"$f":"AAMC_Raw_Data_for_FY22[[#This Row],[Source]]&AAMC_Raw_Data_for_FY22[[#This Row],[Type]]&AAMC_Raw_Data_for_FY22[[#This Row],[School Subset]]&AAMC_Raw_Data_for_FY22[[#This Row],[Rank]]&AAMC_Raw_Data_for_FY22[[#This Row],[Degree]]&AAMC_Raw_Data_for_FY22[[#This Row],[Department / Specialty]]&\"L\"","v":"AAMCAcademicAllAssociatePhDFamily Medicine TotalL"},"Family Medicine Total",3,"AAMC","Academic","All","Associate","PhD","2021-2022",120950,{"$f":"(((AAMC_Raw_Data_for_FY22[[#This Row],[Median]]-AAMC_Raw_Data_for_FY22[[#This Row],[25th]])/25)*5) + AAMC_Raw_Data_for_FY22[[#This Row],[25th]]","v":123066.8},{"$f":"(((AAMC_Raw_Data_for_FY22[[#This Row],[Median]]-AAMC_Raw_Data_for_FY22[[#This Row],[25th]])/25)*10) + AAMC_Raw_Data_for_FY22[[#This Row],[25th]]","v":125183.6},{"$f":"(((AAMC_Raw_Data_for_FY22[[#This Row],[Median]]-AAMC_Raw_Data_for_FY22[[#This Row],[25th]])/25)*15) + AAMC_Raw_Data_for_FY22[[#This Row],[25th]]","v":127300.4},{"$f":"(((AAMC_Raw_Data_for_FY22[[#This Row],[Median]]-AAMC_Raw_Data_for_FY22[[#This Row],[25th]])/25)*20) + AAMC_Raw_Data_for_FY22[[#This Row],[25th]]","v":129417.2},131534,{"$f":"(((AAMC_Raw_Data_for_FY22[[#This Row],[75th]]-AAMC_Raw_Data_for_FY22[[#This Row],[Median]])/25)*5) + AAMC_Raw_Data_for_FY22[[#This Row],[Median]]","v":134970.6},{"$f":"(((AAMC_Raw_Data_for_FY22[[#This Row],[75th]]-AAMC_Raw_Data_for_FY22[[#This Row],[Median]])/25)*10) + AAMC_Raw_Data_for_FY22[[#This Row],[Median]]","v":138407.20000000001},{"$f":"(((AAMC_Raw_Data_for_FY22[[#This Row],[75th]]-AAMC_Raw_Data_for_FY22[[#This Row],[Median]])/25)*15) + AAMC_Raw_Data_for_FY22[[#This Row],[Median]]","v":141843.79999999999},{"$f":"(((AAMC_Raw_Data_for_FY22[[#This Row],[75th]]-AAMC_Raw_Data_for_FY22[[#This Row],[Median]])/25)*20) + AAMC_Raw_Data_for_FY22[[#This Row],[Median]]","v":145280.4},148717,{"$f":"(((AAMC_Raw_Data_for_FY22[[#This Row],[75th]]-AAMC_Raw_Data_for_FY22[[#This Row],[Median]])/25)*30) + AAMC_Raw_Data_for_FY22[[#This Row],[Median]]","v":152153.60000000001},{"$f":"(((AAMC_Raw_Data_for_FY22[[#This Row],[75th]]-AAMC_Raw_Data_for_FY22[[#This Row],[Median]])/25)*35) + AAMC_Raw_Data_for_FY22[[#This Row],[Median]]","v":155590.20000000001},{"$f":"(((AAMC_Raw_Data_for_FY22[[#This Row],[75th]]-AAMC_Raw_Data_for_FY22[[#This Row],[Median]])/25)*40) + AAMC_Raw_Data_for_FY22[[#This Row],[Median]]","v":159026.79999999999}]
[{"$f":"AAMC_Raw_Data_for_FY22[[#This Row],[Source]]&AAMC_Raw_Data_for_FY22[[#This Row],[Type]]&AAMC_Raw_Data_for_FY22[[#This Row],[School Subset]]&AAMC_Raw_Data_for_FY22[[#This Row],[Rank]]&AAMC_Raw_Data_for_FY22[[#This Row],[Degree]]&AAMC_Raw_Data_for_FY22[[#This Row],[Department / Specialty]]&\"L\"","v":"AAMCAcademicAllProfessorPhDFamily Medicine TotalL"},"Family Medicine Total",2,"AAMC","Academic","All","Professor","PhD","2021-2022",165622,{"$f":"(((AAMC_Raw_Data_for_FY22[[#This Row],[Median]]-AAMC_Raw_Data_for_FY22[[#This Row],[25th]])/25)*5) + AAMC_Raw_Data_for_FY22[[#This Row],[25th]]","v":170214.8},{"$f":"(((AAMC_Raw_Data_for_FY22[[#This Row],[Median]]-AAMC_Raw_Data_for_FY22[[#This Row],[25th]])/25)*10) + AAMC_Raw_Data_for_FY22[[#This Row],[25th]]","v":174807.6},{"$f":"(((AAMC_Raw_Data_for_FY22[[#This Row],[Median]]-AAMC_Raw_Data_for_FY22[[#This Row],[25th]])/25)*15) + AAMC_Raw_Data_for_FY22[[#This Row],[25th]]","v":179400.4},{"$f":"(((AAMC_Raw_Data_for_FY22[[#This Row],[Median]]-AAMC_Raw_Data_for_FY22[[#This Row],[25th]])/25)*20) + AAMC_Raw_Data_for_FY22[[#This Row],[25th]]","v":183993.2},188586,{"$f":"(((AAMC_Raw_Data_for_FY22[[#This Row],[75th]]-AAMC_Raw_Data_for_FY22[[#This Row],[Median]])/25)*5) + AAMC_Raw_Data_for_FY22[[#This Row],[Median]]","v":195187.20000000001},{"$f":"(((AAMC_Raw_Data_for_FY22[[#This Row],[75th]]-AAMC_Raw_Data_for_FY22[[#This Row],[Median]])/25)*10) + AAMC_Raw_Data_for_FY22[[#This Row],[Median]]","v":201788.4},{"$f":"(((AAMC_Raw_Data_for_FY22[[#This Row],[75th]]-AAMC_Raw_Data_for_FY22[[#This Row],[Median]])/25)*15) + AAMC_Raw_Data_for_FY22[[#This Row],[Median]]","v":208389.6},{"$f":"(((AAMC_Raw_Data_for_FY22[[#This Row],[75th]]-AAMC_Raw_Data_for_FY22[[#This Row],[Median]])/25)*20) + AAMC_Raw_Data_for_FY22[[#This Row],[Median]]","v":214990.8},221592,{"$f":"(((AAMC_Raw_Data_for_FY22[[#This Row],[75th]]-AAMC_Raw_Data_for_FY22[[#This Row],[Median]])/25)*30) + AAMC_Raw_Data_for_FY22[[#This Row],[Median]]","v":228193.2},{"$f":"(((AAMC_Raw_Data_for_FY22[[#This Row],[75th]]-AAMC_Raw_Data_for_FY22[[#This Row],[Median]])/25)*35) + AAMC_Raw_Data_for_FY22[[#This Row],[Median]]","v":234794.4},{"$f":"(((AAMC_Raw_Data_for_FY22[[#This Row],[75th]]-AAMC_Raw_Data_for_FY22[[#This Row],[Median]])/25)*40) + AAMC_Raw_Data_for_FY22[[#This Row],[Median]]","v":241395.6}]
[{"$f":"AAMC_Raw_Data_for_FY22[[#This Row],[Source]]&AAMC_Raw_Data_for_FY22[[#This Row],[Type]]&AAMC_Raw_Data_for_FY22[[#This Row],[School Subset]]&AAMC_Raw_Data_for_FY22[[#This Row],[Rank]]&AAMC_Raw_Data_for_FY22[[#This Row],[Degree]]&AAMC_Raw_Data_for_FY22[[#This Row],[Department / Specialty]]&\"L\"","v":"AAMCAcademicAllChiefPhDFamily Medicine TotalL"},"Family Medicine Total",6,"AAMC","Academic","All","Chief","PhD","2021-2022",null,{"$f":"(((AAMC_Raw_Data_for_FY22[[#This Row],[Median]]-AAMC_Raw_Data_for_FY22[[#This Row],[25th]])/25)*5) + AAMC_Raw_Data_for_FY22[[#This Row],[25th]]","v":0},{"$f":"(((AAMC_Raw_Data_for_FY22[[#This Row],[Median]]-AAMC_Raw_Data_for_FY22[[#This Row],[25th]])/25)*10) + AAMC_Raw_Data_for_FY22[[#This Row],[25th]]","v":0},{"$f":"(((AAMC_Raw_Data_for_FY22[[#This Row],[Median]]-AAMC_Raw_Data_for_FY22[[#This Row],[25th]])/25)*15) + AAMC_Raw_Data_for_FY22[[#This Row],[25th]]","v":0},{"$f":"(((AAMC_Raw_Data_for_FY22[[#This Row],[Median]]-AAMC_Raw_Data_for_FY22[[#This Row],[25th]])/25)*20) + AAMC_Raw_Data_for_FY22[[#This Row],[25th]]","v":0},null,{"$f":"(((AAMC_Raw_Data_for_FY22[[#This Row],[75th]]-AAMC_Raw_Data_for_FY22[[#This Row],[Median]])/25)*5) + AAMC_Raw_Data_for_FY22[[#This Row],[Median]]","v":0},{"$f":"(((AAMC_Raw_Data_for_FY22[[#This Row],[75th]]-AAMC_Raw_Data_for_FY22[[#This Row],[Median]])/25)*10) + AAMC_Raw_Data_for_FY22[[#This Row],[Median]]","v":0},{"$f":"(((AAMC_Raw_Data_for_FY22[[#This Row],[75th]]-AAMC_Raw_Data_for_FY22[[#This Row],[Median]])/25)*15) + AAMC_Raw_Data_for_FY22[[#This Row],[Median]]","v":0},{"$f":"(((AAMC_Raw_Data_for_FY22[[#This Row],[75th]]-AAMC_Raw_Data_for_FY22[[#This Row],[Median]])/25)*20) + AAMC_Raw_Data_for_FY22[[#This Row],[Median]]","v":0},null,{"$f":"(((AAMC_Raw_Data_for_FY22[[#This Row],[75th]]-AAMC_Raw_Data_for_FY22[[#This Row],[Median]])/25)*30) + AAMC_Raw_Data_for_FY22[[#This Row],[Median]]","v":0},{"$f":"(((AAMC_Raw_Data_for_FY22[[#This Row],[75th]]-AAMC_Raw_Data_for_FY22[[#This Row],[Median]])/25)*35) + AAMC_Raw_Data_for_FY22[[#This Row],[Median]]","v":0},{"$f":"(((AAMC_Raw_Data_for_FY22[[#This Row],[75th]]-AAMC_Raw_Data_for_FY22[[#This Row],[Median]])/25)*40) + AAMC_Raw_Data_for_FY22[[#This Row],[Median]]","v":0}]
[{"$f":"AAMC_Raw_Data_for_FY22[[#This Row],[Source]]&AAMC_Raw_Data_for_FY22[[#This Row],[Type]]&AAMC_Raw_Data_for_FY22[[#This Row],[School Subset]]&AAMC_Raw_Data_for_FY22[[#This Row],[Rank]]&AAMC_Raw_Data_for_FY22[[#This Row],[Degree]]&AAMC_Raw_Data_for_FY22[[#This Row],[Department / Specialty]]&\"L\"","v":"AAMCAcademicAllChairPhDFamily Medicine TotalL"},"Family Medicine Total",1,"AAMC","Academic","All","Chair","PhD","2021-2022",null,{"$f":"(((AAMC_Raw_Data_for_FY22[[#This Row],[Median]]-AAMC_Raw_Data_for_FY22[[#This Row],[25th]])/25)*5) + AAMC_Raw_Data_for_FY22[[#This Row],[25th]]","v":0},{"$f":"(((AAMC_Raw_Data_for_FY22[[#This Row],[Median]]-AAMC_Raw_Data_for_FY22[[#This Row],[25th]])/25)*10) + AAMC_Raw_Data_for_FY22[[#This Row],[25th]]","v":0},{"$f":"(((AAMC_Raw_Data_for_FY22[[#This Row],[Median]]-AAMC_Raw_Data_for_FY22[[#This Row],[25th]])/25)*15) + AAMC_Raw_Data_for_FY22[[#This Row],[25th]]","v":0},{"$f":"(((AAMC_Raw_Data_for_FY22[[#This Row],[Median]]-AAMC_Raw_Data_for_FY22[[#This Row],[25th]])/25)*20) + AAMC_Raw_Data_for_FY22[[#This Row],[25th]]","v":0},null,{"$f":"(((AAMC_Raw_Data_for_FY22[[#This Row],[75th]]-AAMC_Raw_Data_for_FY22[[#This Row],[Median]])/25)*5) + AAMC_Raw_Data_for_FY22[[#This Row],[Median]]","v":0},{"$f":"(((AAMC_Raw_Data_for_FY22[[#This Row],[75th]]-AAMC_Raw_Data_for_FY22[[#This Row],[Median]])/25)*10) + AAMC_Raw_Data_for_FY22[[#This Row],[Median]]","v":0},{"$f":"(((AAMC_Raw_Data_for_FY22[[#This Row],[75th]]-AAMC_Raw_Data_for_FY22[[#This Row],[Median]])/25)*15) + AAMC_Raw_Data_for_FY22[[#This Row],[Median]]","v":0},{"$f":"(((AAMC_Raw_Data_for_FY22[[#This Row],[75th]]-AAMC_Raw_Data_for_FY22[[#This Row],[Median]])/25)*20) + AAMC_Raw_Data_for_FY22[[#This Row],[Median]]","v":0},null,{"$f":"(((AAMC_Raw_Data_for_FY22[[#This Row],[75th]]-AAMC_Raw_Data_for_FY22[[#This Row],[Median]])/25)*30) + AAMC_Raw_Data_for_FY22[[#This Row],[Median]]","v":0},{"$f":"(((AAMC_Raw_Data_for_FY22[[#This Row],[75th]]-AAMC_Raw_Data_for_FY22[[#This Row],[Median]])/25)*35) + AAMC_Raw_Data_for_FY22[[#This Row],[Median]]","v":0},{"$f":"(((AAMC_Raw_Data_for_FY22[[#This Row],[75th]]-AAMC_Raw_Data_for_FY22[[#This Row],[Median]])/25)*40) + AAMC_Raw_Data_for_FY22[[#This Row],[Median]]","v":0}]
[{"$f":"AAMC_Raw_Data_for_FY22[[#This Row],[Source]]&AAMC_Raw_Data_for_FY22[[#This Row],[Type]]&AAMC_Raw_Data_for_FY22[[#This Row],[School Subset]]&AAMC_Raw_Data_for_FY22[[#This Row],[Rank]]&AAMC_Raw_Data_for_FY22[[#This Row],[Degree]]&AAMC_Raw_Data_for_FY22[[#This Row],[Department / Specialty]]&\"L\"","v":"AAMCAcademicAllInstructorPhDFamily Medicine: GeneralL"},"Family Medicine: General",5,"AAMC","Academic","All","Instructor","PhD","2021-2022",null,{"$f":"(((AAMC_Raw_Data_for_FY22[[#This Row],[Median]]-AAMC_Raw_Data_for_FY22[[#This Row],[25th]])/25)*5) + AAMC_Raw_Data_for_FY22[[#This Row],[25th]]","v":0},{"$f":"(((AAMC_Raw_Data_for_FY22[[#This Row],[Median]]-AAMC_Raw_Data_for_FY22[[#This Row],[25th]])/25)*10) + AAMC_Raw_Data_for_FY22[[#This Row],[25th]]","v":0},{"$f":"(((AAMC_Raw_Data_for_FY22[[#This Row],[Median]]-AAMC_Raw_Data_for_FY22[[#This Row],[25th]])/25)*15) + AAMC_Raw_Data_for_FY22[[#This Row],[25th]]","v":0},{"$f":"(((AAMC_Raw_Data_for_FY22[[#This Row],[Median]]-AAMC_Raw_Data_for_FY22[[#This Row],[25th]])/25)*20) + AAMC_Raw_Data_for_FY22[[#This Row],[25th]]","v":0},null,{"$f":"(((AAMC_Raw_Data_for_FY22[[#This Row],[75th]]-AAMC_Raw_Data_for_FY22[[#This Row],[Median]])/25)*5) + AAMC_Raw_Data_for_FY22[[#This Row],[Median]]","v":0},{"$f":"(((AAMC_Raw_Data_for_FY22[[#This Row],[75th]]-AAMC_Raw_Data_for_FY22[[#This Row],[Median]])/25)*10) + AAMC_Raw_Data_for_FY22[[#This Row],[Median]]","v":0},{"$f":"(((AAMC_Raw_Data_for_FY22[[#This Row],[75th]]-AAMC_Raw_Data_for_FY22[[#This Row],[Median]])/25)*15) + AAMC_Raw_Data_for_FY22[[#This Row],[Median]]","v":0},{"$f":"(((AAMC_Raw_Data_for_FY22[[#This Row],[75th]]-AAMC_Raw_Data_for_FY22[[#This Row],[Median]])/25)*20) + AAMC_Raw_Data_for_FY22[[#This Row],[Median]]","v":0},null,{"$f":"(((AAMC_Raw_Data_for_FY22[[#This Row],[75th]]-AAMC_Raw_Data_for_FY22[[#This Row],[Median]])/25)*30) + AAMC_Raw_Data_for_FY22[[#This Row],[Median]]","v":0},{"$f":"(((AAMC_Raw_Data_for_FY22[[#This Row],[75th]]-AAMC_Raw_Data_for_FY22[[#This Row],[Median]])/25)*35) + AAMC_Raw_Data_for_FY22[[#This Row],[Median]]","v":0},{"$f":"(((AAMC_Raw_Data_for_FY22[[#This Row],[75th]]-AAMC_Raw_Data_for_FY22[[#This Row],[Median]])/25)*40) + AAMC_Raw_Data_for_FY22[[#This Row],[Median]]","v":0}]
[{"$f":"AAMC_Raw_Data_for_FY22[[#This Row],[Source]]&AAMC_Raw_Data_for_FY22[[#This Row],[Type]]&AAMC_Raw_Data_for_FY22[[#This Row],[School Subset]]&AAMC_Raw_Data_for_FY22[[#This Row],[Rank]]&AAMC_Raw_Data_for_FY22[[#This Row],[Degree]]&AAMC_Raw_Data_for_FY22[[#This Row],[Department / Specialty]]&\"L\"","v":"AAMCAcademicAllAssistantPhDFamily Medicine: GeneralL"},"Family Medicine: General",4,"AAMC","Academic","All","Assistant","PhD","2021-2022",99403,{"$f":"(((AAMC_Raw_Data_for_FY22[[#This Row],[Median]]-AAMC_Raw_Data_for_FY22[[#This Row],[25th]])/25)*5) + AAMC_Raw_Data_for_FY22[[#This Row],[25th]]","v":101922.4},{"$f":"(((AAMC_Raw_Data_for_FY22[[#This Row],[Median]]-AAMC_Raw_Data_for_FY22[[#This Row],[25th]])/25)*10) + AAMC_Raw_Data_for_FY22[[#This Row],[25th]]","v":104441.8},{"$f":"(((AAMC_Raw_Data_for_FY22[[#This Row],[Median]]-AAMC_Raw_Data_for_FY22[[#This Row],[25th]])/25)*15) + AAMC_Raw_Data_for_FY22[[#This Row],[25th]]","v":106961.2},{"$f":"(((AAMC_Raw_Data_for_FY22[[#This Row],[Median]]-AAMC_Raw_Data_for_FY22[[#This Row],[25th]])/25)*20) + AAMC_Raw_Data_for_FY22[[#This Row],[25th]]","v":109480.6},112000,{"$f":"(((AAMC_Raw_Data_for_FY22[[#This Row],[75th]]-AAMC_Raw_Data_for_FY22[[#This Row],[Median]])/25)*5) + AAMC_Raw_Data_for_FY22[[#This Row],[Median]]","v":115392.4},{"$f":"(((AAMC_Raw_Data_for_FY22[[#This Row],[75th]]-AAMC_Raw_Data_for_FY22[[#This Row],[Median]])/25)*10) + AAMC_Raw_Data_for_FY22[[#This Row],[Median]]","v":118784.8},{"$f":"(((AAMC_Raw_Data_for_FY22[[#This Row],[75th]]-AAMC_Raw_Data_for_FY22[[#This Row],[Median]])/25)*15) + AAMC_Raw_Data_for_FY22[[#This Row],[Median]]","v":122177.2},{"$f":"(((AAMC_Raw_Data_for_FY22[[#This Row],[75th]]-AAMC_Raw_Data_for_FY22[[#This Row],[Median]])/25)*20) + AAMC_Raw_Data_for_FY22[[#This Row],[Median]]","v":125569.60000000001},128962,{"$f":"(((AAMC_Raw_Data_for_FY22[[#This Row],[75th]]-AAMC_Raw_Data_for_FY22[[#This Row],[Median]])/25)*30) + AAMC_Raw_Data_for_FY22[[#This Row],[Median]]","v":132354.4},{"$f":"(((AAMC_Raw_Data_for_FY22[[#This Row],[75th]]-AAMC_Raw_Data_for_FY22[[#This Row],[Median]])/25)*35) + AAMC_Raw_Data_for_FY22[[#This Row],[Median]]","v":135746.79999999999},{"$f":"(((AAMC_Raw_Data_for_FY22[[#This Row],[75th]]-AAMC_Raw_Data_for_FY22[[#This Row],[Median]])/25)*40) + AAMC_Raw_Data_for_FY22[[#This Row],[Median]]","v":139139.20000000001}]
[{"$f":"AAMC_Raw_Data_for_FY22[[#This Row],[Source]]&AAMC_Raw_Data_for_FY22[[#This Row],[Type]]&AAMC_Raw_Data_for_FY22[[#This Row],[School Subset]]&AAMC_Raw_Data_for_FY22[[#This Row],[Rank]]&AAMC_Raw_Data_for_FY22[[#This Row],[Degree]]&AAMC_Raw_Data_for_FY22[[#This Row],[Department / Specialty]]&\"L\"","v":"AAMCAcademicAllAssociatePhDFamily Medicine: GeneralL"},"Family Medicine: General",3,"AAMC","Academic","All","Associate","PhD","2021-2022",120971,{"$f":"(((AAMC_Raw_Data_for_FY22[[#This Row],[Median]]-AAMC_Raw_Data_for_FY22[[#This Row],[25th]])/25)*5) + AAMC_Raw_Data_for_FY22[[#This Row],[25th]]","v":123274.4},{"$f":"(((AAMC_Raw_Data_for_FY22[[#This Row],[Median]]-AAMC_Raw_Data_for_FY22[[#This Row],[25th]])/25)*10) + AAMC_Raw_Data_for_FY22[[#This Row],[25th]]","v":125577.8},{"$f":"(((AAMC_Raw_Data_for_FY22[[#This Row],[Median]]-AAMC_Raw_Data_for_FY22[[#This Row],[25th]])/25)*15) + AAMC_Raw_Data_for_FY22[[#This Row],[25th]]","v":127881.2},{"$f":"(((AAMC_Raw_Data_for_FY22[[#This Row],[Median]]-AAMC_Raw_Data_for_FY22[[#This Row],[25th]])/25)*20) + AAMC_Raw_Data_for_FY22[[#This Row],[25th]]","v":130184.6},132488,{"$f":"(((AAMC_Raw_Data_for_FY22[[#This Row],[75th]]-AAMC_Raw_Data_for_FY22[[#This Row],[Median]])/25)*5) + AAMC_Raw_Data_for_FY22[[#This Row],[Median]]","v":136576.79999999999},{"$f":"(((AAMC_Raw_Data_for_FY22[[#This Row],[75th]]-AAMC_Raw_Data_for_FY22[[#This Row],[Median]])/25)*10) + AAMC_Raw_Data_for_FY22[[#This Row],[Median]]","v":140665.60000000001},{"$f":"(((AAMC_Raw_Data_for_FY22[[#This Row],[75th]]-AAMC_Raw_Data_for_FY22[[#This Row],[Median]])/25)*15) + AAMC_Raw_Data_for_FY22[[#This Row],[Median]]","v":144754.4},{"$f":"(((AAMC_Raw_Data_for_FY22[[#This Row],[75th]]-AAMC_Raw_Data_for_FY22[[#This Row],[Median]])/25)*20) + AAMC_Raw_Data_for_FY22[[#This Row],[Median]]","v":148843.20000000001},152932,{"$f":"(((AAMC_Raw_Data_for_FY22[[#This Row],[75th]]-AAMC_Raw_Data_for_FY22[[#This Row],[Median]])/25)*30) + AAMC_Raw_Data_for_FY22[[#This Row],[Median]]","v":157020.79999999999},{"$f":"(((AAMC_Raw_Data_for_FY22[[#This Row],[75th]]-AAMC_Raw_Data_for_FY22[[#This Row],[Median]])/25)*35) + AAMC_Raw_Data_for_FY22[[#This Row],[Median]]","v":161109.6},{"$f":"(((AAMC_Raw_Data_for_FY22[[#This Row],[75th]]-AAMC_Raw_Data_for_FY22[[#This Row],[Median]])/25)*40) + AAMC_Raw_Data_for_FY22[[#This Row],[Median]]","v":165198.39999999999}]
[{"$f":"AAMC_Raw_Data_for_FY22[[#This Row],[Source]]&AAMC_Raw_Data_for_FY22[[#This Row],[Type]]&AAMC_Raw_Data_for_FY22[[#This Row],[School Subset]]&AAMC_Raw_Data_for_FY22[[#This Row],[Rank]]&AAMC_Raw_Data_for_FY22[[#This Row],[Degree]]&AAMC_Raw_Data_for_FY22[[#This Row],[Department / Specialty]]&\"L\"","v":"AAMCAcademicAllProfessorPhDFamily Medicine: GeneralL"},"Family Medicine: General",2,"AAMC","Academic","All","Professor","PhD","2021-2022",161681,{"$f":"(((AAMC_Raw_Data_for_FY22[[#This Row],[Median]]-AAMC_Raw_Data_for_FY22[[#This Row],[25th]])/25)*5) + AAMC_Raw_Data_for_FY22[[#This Row],[25th]]","v":166384.79999999999},{"$f":"(((AAMC_Raw_Data_for_FY22[[#This Row],[Median]]-AAMC_Raw_Data_for_FY22[[#This Row],[25th]])/25)*10) + AAMC_Raw_Data_for_FY22[[#This Row],[25th]]","v":171088.6},{"$f":"(((AAMC_Raw_Data_for_FY22[[#This Row],[Median]]-AAMC_Raw_Data_for_FY22[[#This Row],[25th]])/25)*15) + AAMC_Raw_Data_for_FY22[[#This Row],[25th]]","v":175792.4},{"$f":"(((AAMC_Raw_Data_for_FY22[[#This Row],[Median]]-AAMC_Raw_Data_for_FY22[[#This Row],[25th]])/25)*20) + AAMC_Raw_Data_for_FY22[[#This Row],[25th]]","v":180496.2},185200,{"$f":"(((AAMC_Raw_Data_for_FY22[[#This Row],[75th]]-AAMC_Raw_Data_for_FY22[[#This Row],[Median]])/25)*5) + AAMC_Raw_Data_for_FY22[[#This Row],[Median]]","v":191053},{"$f":"(((AAMC_Raw_Data_for_FY22[[#This Row],[75th]]-AAMC_Raw_Data_for_FY22[[#This Row],[Median]])/25)*10) + AAMC_Raw_Data_for_FY22[[#This Row],[Median]]","v":196906},{"$f":"(((AAMC_Raw_Data_for_FY22[[#This Row],[75th]]-AAMC_Raw_Data_for_FY22[[#This Row],[Median]])/25)*15) + AAMC_Raw_Data_for_FY22[[#This Row],[Median]]","v":202759},{"$f":"(((AAMC_Raw_Data_for_FY22[[#This Row],[75th]]-AAMC_Raw_Data_for_FY22[[#This Row],[Median]])/25)*20) + AAMC_Raw_Data_for_FY22[[#This Row],[Median]]","v":208612},214465,{"$f":"(((AAMC_Raw_Data_for_FY22[[#This Row],[75th]]-AAMC_Raw_Data_for_FY22[[#This Row],[Median]])/25)*30) + AAMC_Raw_Data_for_FY22[[#This Row],[Median]]","v":220318},{"$f":"(((AAMC_Raw_Data_for_FY22[[#This Row],[75th]]-AAMC_Raw_Data_for_FY22[[#This Row],[Median]])/25)*35) + AAMC_Raw_Data_for_FY22[[#This Row],[Median]]","v":226171},{"$f":"(((AAMC_Raw_Data_for_FY22[[#This Row],[75th]]-AAMC_Raw_Data_for_FY22[[#This Row],[Median]])/25)*40) + AAMC_Raw_Data_for_FY22[[#This Row],[Median]]","v":232024}]
[{"$f":"AAMC_Raw_Data_for_FY22[[#This Row],[Source]]&AAMC_Raw_Data_for_FY22[[#This Row],[Type]]&AAMC_Raw_Data_for_FY22[[#This Row],[School Subset]]&AAMC_Raw_Data_for_FY22[[#This Row],[Rank]]&AAMC_Raw_Data_for_FY22[[#This Row],[Degree]]&AAMC_Raw_Data_for_FY22[[#This Row],[Department / Specialty]]&\"L\"","v":"AAMCAcademicAllChiefPhDFamily Medicine: GeneralL"},"Family Medicine: General",6,"AAMC","Academic","All","Chief","PhD","2021-2022",null,{"$f":"(((AAMC_Raw_Data_for_FY22[[#This Row],[Median]]-AAMC_Raw_Data_for_FY22[[#This Row],[25th]])/25)*5) + AAMC_Raw_Data_for_FY22[[#This Row],[25th]]","v":0},{"$f":"(((AAMC_Raw_Data_for_FY22[[#This Row],[Median]]-AAMC_Raw_Data_for_FY22[[#This Row],[25th]])/25)*10) + AAMC_Raw_Data_for_FY22[[#This Row],[25th]]","v":0},{"$f":"(((AAMC_Raw_Data_for_FY22[[#This Row],[Median]]-AAMC_Raw_Data_for_FY22[[#This Row],[25th]])/25)*15) + AAMC_Raw_Data_for_FY22[[#This Row],[25th]]","v":0},{"$f":"(((AAMC_Raw_Data_for_FY22[[#This Row],[Median]]-AAMC_Raw_Data_for_FY22[[#This Row],[25th]])/25)*20) + AAMC_Raw_Data_for_FY22[[#This Row],[25th]]","v":0},null,{"$f":"(((AAMC_Raw_Data_for_FY22[[#This Row],[75th]]-AAMC_Raw_Data_for_FY22[[#This Row],[Median]])/25)*5) + AAMC_Raw_Data_for_FY22[[#This Row],[Median]]","v":0},{"$f":"(((AAMC_Raw_Data_for_FY22[[#This Row],[75th]]-AAMC_Raw_Data_for_FY22[[#This Row],[Median]])/25)*10) + AAMC_Raw_Data_for_FY22[[#This Row],[Median]]","v":0},{"$f":"(((AAMC_Raw_Data_for_FY22[[#This Row],[75th]]-AAMC_Raw_Data_for_FY22[[#This Row],[Median]])/25)*15) + AAMC_Raw_Data_for_FY22[[#This Row],[Median]]","v":0},{"$f":"(((AAMC_Raw_Data_for_FY22[[#This Row],[75th]]-AAMC_Raw_Data_for_FY22[[#This Row],[Median]])/25)*20) + AAMC_Raw_Data_for_FY22[[#This Row],[Median]]","v":0},null,{"$f":"(((AAMC_Raw_Data_for_FY22[[#This Row],[75th]]-AAMC_Raw_Data_for_FY22[[#This Row],[Median]])/25)*30) + AAMC_Raw_Data_for_FY22[[#This Row],[Median]]","v":0},{"$f":"(((AAMC_Raw_Data_for_FY22[[#This Row],[75th]]-AAMC_Raw_Data_for_FY22[[#This Row],[Median]])/25)*35) + AAMC_Raw_Data_for_FY22[[#This Row],[Median]]","v":0},{"$f":"(((AAMC_Raw_Data_for_FY22[[#This Row],[75th]]-AAMC_Raw_Data_for_FY22[[#This Row],[Median]])/25)*40) + AAMC_Raw_Data_for_FY22[[#This Row],[Median]]","v":0}]
[{"$f":"AAMC_Raw_Data_for_FY22[[#This Row],[Source]]&AAMC_Raw_Data_for_FY22[[#This Row],[Type]]&AAMC_Raw_Data_for_FY22[[#This Row],[School Subset]]&AAMC_Raw_Data_for_FY22[[#This Row],[Rank]]&AAMC_Raw_Data_for_FY22[[#This Row],[Degree]]&AAMC_Raw_Data_for_FY22[[#This Row],[Department / Specialty]]&\"L\"","v":"AAMCAcademicAllChairPhDFamily Medicine: GeneralL"},"Family Medicine: General",1,"AAMC","Academic","All","Chair","PhD","2021-2022",null,{"$f":"(((AAMC_Raw_Data_for_FY22[[#This Row],[Median]]-AAMC_Raw_Data_for_FY22[[#This Row],[25th]])/25)*5) + AAMC_Raw_Data_for_FY22[[#This Row],[25th]]","v":0},{"$f":"(((AAMC_Raw_Data_for_FY22[[#This Row],[Median]]-AAMC_Raw_Data_for_FY22[[#This Row],[25th]])/25)*10) + AAMC_Raw_Data_for_FY22[[#This Row],[25th]]","v":0},{"$f":"(((AAMC_Raw_Data_for_FY22[[#This Row],[Median]]-AAMC_Raw_Data_for_FY22[[#This Row],[25th]])/25)*15) + AAMC_Raw_Data_for_FY22[[#This Row],[25th]]","v":0},{"$f":"(((AAMC_Raw_Data_for_FY22[[#This Row],[Median]]-AAMC_Raw_Data_for_FY22[[#This Row],[25th]])/25)*20) + AAMC_Raw_Data_for_FY22[[#This Row],[25th]]","v":0},null,{"$f":"(((AAMC_Raw_Data_for_FY22[[#This Row],[75th]]-AAMC_Raw_Data_for_FY22[[#This Row],[Median]])/25)*5) + AAMC_Raw_Data_for_FY22[[#This Row],[Median]]","v":0},{"$f":"(((AAMC_Raw_Data_for_FY22[[#This Row],[75th]]-AAMC_Raw_Data_for_FY22[[#This Row],[Median]])/25)*10) + AAMC_Raw_Data_for_FY22[[#This Row],[Median]]","v":0},{"$f":"(((AAMC_Raw_Data_for_FY22[[#This Row],[75th]]-AAMC_Raw_Data_for_FY22[[#This Row],[Median]])/25)*15) + AAMC_Raw_Data_for_FY22[[#This Row],[Median]]","v":0},{"$f":"(((AAMC_Raw_Data_for_FY22[[#This Row],[75th]]-AAMC_Raw_Data_for_FY22[[#This Row],[Median]])/25)*20) + AAMC_Raw_Data_for_FY22[[#This Row],[Median]]","v":0},null,{"$f":"(((AAMC_Raw_Data_for_FY22[[#This Row],[75th]]-AAMC_Raw_Data_for_FY22[[#This Row],[Median]])/25)*30) + AAMC_Raw_Data_for_FY22[[#This Row],[Median]]","v":0},{"$f":"(((AAMC_Raw_Data_for_FY22[[#This Row],[75th]]-AAMC_Raw_Data_for_FY22[[#This Row],[Median]])/25)*35) + AAMC_Raw_Data_for_FY22[[#This Row],[Median]]","v":0},{"$f":"(((AAMC_Raw_Data_for_FY22[[#This Row],[75th]]-AAMC_Raw_Data_for_FY22[[#This Row],[Median]])/25)*40) + AAMC_Raw_Data_for_FY22[[#This Row],[Median]]","v":0}]
[{"$f":"AAMC_Raw_Data_for_FY22[[#This Row],[Source]]&AAMC_Raw_Data_for_FY22[[#This Row],[Type]]&AAMC_Raw_Data_for_FY22[[#This Row],[School Subset]]&AAMC_Raw_Data_for_FY22[[#This Row],[Rank]]&AAMC_Raw_Data_for_FY22[[#This Row],[Degree]]&AAMC_Raw_Data_for_FY22[[#This Row],[Department / Specialty]]&\"L\"","v":"AAMCAcademicAllProfessorPhDFamily Medicine: Sports MedicineL"},"Family Medicine: Sports Medicine",2,"AAMC","Academic","All","Professor","PhD","2021-2022",null,{"$f":"(((AAMC_Raw_Data_for_FY22[[#This Row],[Median]]-AAMC_Raw_Data_for_FY22[[#This Row],[25th]])/25)*5) + AAMC_Raw_Data_for_FY22[[#This Row],[25th]]","v":0},{"$f":"(((AAMC_Raw_Data_for_FY22[[#This Row],[Median]]-AAMC_Raw_Data_for_FY22[[#This Row],[25th]])/25)*10) + AAMC_Raw_Data_for_FY22[[#This Row],[25th]]","v":0},{"$f":"(((AAMC_Raw_Data_for_FY22[[#This Row],[Median]]-AAMC_Raw_Data_for_FY22[[#This Row],[25th]])/25)*15) + AAMC_Raw_Data_for_FY22[[#This Row],[25th]]","v":0},{"$f":"(((AAMC_Raw_Data_for_FY22[[#This Row],[Median]]-AAMC_Raw_Data_for_FY22[[#This Row],[25th]])/25)*20) + AAMC_Raw_Data_for_FY22[[#This Row],[25th]]","v":0},null,{"$f":"(((AAMC_Raw_Data_for_FY22[[#This Row],[75th]]-AAMC_Raw_Data_for_FY22[[#This Row],[Median]])/25)*5) + AAMC_Raw_Data_for_FY22[[#This Row],[Median]]","v":0},{"$f":"(((AAMC_Raw_Data_for_FY22[[#This Row],[75th]]-AAMC_Raw_Data_for_FY22[[#This Row],[Median]])/25)*10) + AAMC_Raw_Data_for_FY22[[#This Row],[Median]]","v":0},{"$f":"(((AAMC_Raw_Data_for_FY22[[#This Row],[75th]]-AAMC_Raw_Data_for_FY22[[#This Row],[Median]])/25)*15) + AAMC_Raw_Data_for_FY22[[#This Row],[Median]]","v":0},{"$f":"(((AAMC_Raw_Data_for_FY22[[#This Row],[75th]]-AAMC_Raw_Data_for_FY22[[#This Row],[Median]])/25)*20) + AAMC_Raw_Data_for_FY22[[#This Row],[Median]]","v":0},null,{"$f":"(((AAMC_Raw_Data_for_FY22[[#This Row],[75th]]-AAMC_Raw_Data_for_FY22[[#This Row],[Median]])/25)*30) + AAMC_Raw_Data_for_FY22[[#This Row],[Median]]","v":0},{"$f":"(((AAMC_Raw_Data_for_FY22[[#This Row],[75th]]-AAMC_Raw_Data_for_FY22[[#This Row],[Median]])/25)*35) + AAMC_Raw_Data_for_FY22[[#This Row],[Median]]","v":0},{"$f":"(((AAMC_Raw_Data_for_FY22[[#This Row],[75th]]-AAMC_Raw_Data_for_FY22[[#This Row],[Median]])/25)*40) + AAMC_Raw_Data_for_FY22[[#This Row],[Median]]","v":0}]
[{"$f":"AAMC_Raw_Data_for_FY22[[#This Row],[Source]]&AAMC_Raw_Data_for_FY22[[#This Row],[Type]]&AAMC_Raw_Data_for_FY22[[#This Row],[School Subset]]&AAMC_Raw_Data_for_FY22[[#This Row],[Rank]]&AAMC_Raw_Data_for_FY22[[#This Row],[Degree]]&AAMC_Raw_Data_for_FY22[[#This Row],[Department / Specialty]]&\"L\"","v":"AAMCAcademicAllInstructorPhDFamily Medicine: OtherL"},"Family Medicine: Other",5,"AAMC","Academic","All","Instructor","PhD","2021-2022",null,{"$f":"(((AAMC_Raw_Data_for_FY22[[#This Row],[Median]]-AAMC_Raw_Data_for_FY22[[#This Row],[25th]])/25)*5) + AAMC_Raw_Data_for_FY22[[#This Row],[25th]]","v":0},{"$f":"(((AAMC_Raw_Data_for_FY22[[#This Row],[Median]]-AAMC_Raw_Data_for_FY22[[#This Row],[25th]])/25)*10) + AAMC_Raw_Data_for_FY22[[#This Row],[25th]]","v":0},{"$f":"(((AAMC_Raw_Data_for_FY22[[#This Row],[Median]]-AAMC_Raw_Data_for_FY22[[#This Row],[25th]])/25)*15) + AAMC_Raw_Data_for_FY22[[#This Row],[25th]]","v":0},{"$f":"(((AAMC_Raw_Data_for_FY22[[#This Row],[Median]]-AAMC_Raw_Data_for_FY22[[#This Row],[25th]])/25)*20) + AAMC_Raw_Data_for_FY22[[#This Row],[25th]]","v":0},null,{"$f":"(((AAMC_Raw_Data_for_FY22[[#This Row],[75th]]-AAMC_Raw_Data_for_FY22[[#This Row],[Median]])/25)*5) + AAMC_Raw_Data_for_FY22[[#This Row],[Median]]","v":0},{"$f":"(((AAMC_Raw_Data_for_FY22[[#This Row],[75th]]-AAMC_Raw_Data_for_FY22[[#This Row],[Median]])/25)*10) + AAMC_Raw_Data_for_FY22[[#This Row],[Median]]","v":0},{"$f":"(((AAMC_Raw_Data_for_FY22[[#This Row],[75th]]-AAMC_Raw_Data_for_FY22[[#This Row],[Median]])/25)*15) + AAMC_Raw_Data_for_FY22[[#This Row],[Median]]","v":0},{"$f":"(((AAMC_Raw_Data_for_FY22[[#This Row],[75th]]-AAMC_Raw_Data_for_FY22[[#This Row],[Median]])/25)*20) + AAMC_Raw_Data_for_FY22[[#This Row],[Median]]","v":0},null,{"$f":"(((AAMC_Raw_Data_for_FY22[[#This Row],[75th]]-AAMC_Raw_Data_for_FY22[[#This Row],[Median]])/25)*30) + AAMC_Raw_Data_for_FY22[[#This Row],[Median]]","v":0},{"$f":"(((AAMC_Raw_Data_for_FY22[[#This Row],[75th]]-AAMC_Raw_Data_for_FY22[[#This Row],[Median]])/25)*35) + AAMC_Raw_Data_for_FY22[[#This Row],[Median]]","v":0},{"$f":"(((AAMC_Raw_Data_for_FY22[[#This Row],[75th]]-AAMC_Raw_Data_for_FY22[[#This Row],[Median]])/25)*40) + AAMC_Raw_Data_for_FY22[[#This Row],[Median]]","v":0}]
[{"$f":"AAMC_Raw_Data_for_FY22[[#This Row],[Source]]&AAMC_Raw_Data_for_FY22[[#This Row],[Type]]&AAMC_Raw_Data_for_FY22[[#This Row],[School Subset]]&AAMC_Raw_Data_for_FY22[[#This Row],[Rank]]&AAMC_Raw_Data_for_FY22[[#This Row],[Degree]]&AAMC_Raw_Data_for_FY22[[#This Row],[Department / Specialty]]&\"L\"","v":"AAMCAcademicAllAssistantPhDFamily Medicine: OtherL"},"Family Medicine: Other",4,"AAMC","Academic","All","Assistant","PhD","2021-2022",97700,{"$f":"(((AAMC_Raw_Data_for_FY22[[#This Row],[Median]]-AAMC_Raw_Data_for_FY22[[#This Row],[25th]])/25)*5) + AAMC_Raw_Data_for_FY22[[#This Row],[25th]]","v":100130.6},{"$f":"(((AAMC_Raw_Data_for_FY22[[#This Row],[Median]]-AAMC_Raw_Data_for_FY22[[#This Row],[25th]])/25)*10) + AAMC_Raw_Data_for_FY22[[#This Row],[25th]]","v":102561.2},{"$f":"(((AAMC_Raw_Data_for_FY22[[#This Row],[Median]]-AAMC_Raw_Data_for_FY22[[#This Row],[25th]])/25)*15) + AAMC_Raw_Data_for_FY22[[#This Row],[25th]]","v":104991.8},{"$f":"(((AAMC_Raw_Data_for_FY22[[#This Row],[Median]]-AAMC_Raw_Data_for_FY22[[#This Row],[25th]])/25)*20) + AAMC_Raw_Data_for_FY22[[#This Row],[25th]]","v":107422.39999999999},109853,{"$f":"(((AAMC_Raw_Data_for_FY22[[#This Row],[75th]]-AAMC_Raw_Data_for_FY22[[#This Row],[Median]])/25)*5) + AAMC_Raw_Data_for_FY22[[#This Row],[Median]]","v":112846},{"$f":"(((AAMC_Raw_Data_for_FY22[[#This Row],[75th]]-AAMC_Raw_Data_for_FY22[[#This Row],[Median]])/25)*10) + AAMC_Raw_Data_for_FY22[[#This Row],[Median]]","v":115839},{"$f":"(((AAMC_Raw_Data_for_FY22[[#This Row],[75th]]-AAMC_Raw_Data_for_FY22[[#This Row],[Median]])/25)*15) + AAMC_Raw_Data_for_FY22[[#This Row],[Median]]","v":118832},{"$f":"(((AAMC_Raw_Data_for_FY22[[#This Row],[75th]]-AAMC_Raw_Data_for_FY22[[#This Row],[Median]])/25)*20) + AAMC_Raw_Data_for_FY22[[#This Row],[Median]]","v":121825},124818,{"$f":"(((AAMC_Raw_Data_for_FY22[[#This Row],[75th]]-AAMC_Raw_Data_for_FY22[[#This Row],[Median]])/25)*30) + AAMC_Raw_Data_for_FY22[[#This Row],[Median]]","v":127811},{"$f":"(((AAMC_Raw_Data_for_FY22[[#This Row],[75th]]-AAMC_Raw_Data_for_FY22[[#This Row],[Median]])/25)*35) + AAMC_Raw_Data_for_FY22[[#This Row],[Median]]","v":130804},{"$f":"(((AAMC_Raw_Data_for_FY22[[#This Row],[75th]]-AAMC_Raw_Data_for_FY22[[#This Row],[Median]])/25)*40) + AAMC_Raw_Data_for_FY22[[#This Row],[Median]]","v":133797}]
[{"$f":"AAMC_Raw_Data_for_FY22[[#This Row],[Source]]&AAMC_Raw_Data_for_FY22[[#This Row],[Type]]&AAMC_Raw_Data_for_FY22[[#This Row],[School Subset]]&AAMC_Raw_Data_for_FY22[[#This Row],[Rank]]&AAMC_Raw_Data_for_FY22[[#This Row],[Degree]]&AAMC_Raw_Data_for_FY22[[#This Row],[Department / Specialty]]&\"L\"","v":"AAMCAcademicAllAssociatePhDFamily Medicine: OtherL"},"Family Medicine: Other",3,"AAMC","Academic","All","Associate","PhD","2021-2022",120689,{"$f":"(((AAMC_Raw_Data_for_FY22[[#This Row],[Median]]-AAMC_Raw_Data_for_FY22[[#This Row],[25th]])/25)*5) + AAMC_Raw_Data_for_FY22[[#This Row],[25th]]","v":122056.8},{"$f":"(((AAMC_Raw_Data_for_FY22[[#This Row],[Median]]-AAMC_Raw_Data_for_FY22[[#This Row],[25th]])/25)*10) + AAMC_Raw_Data_for_FY22[[#This Row],[25th]]","v":123424.6},{"$f":"(((AAMC_Raw_Data_for_FY22[[#This Row],[Median]]-AAMC_Raw_Data_for_FY22[[#This Row],[25th]])/25)*15) + AAMC_Raw_Data_for_FY22[[#This Row],[25th]]","v":124792.4},{"$f":"(((AAMC_Raw_Data_for_FY22[[#This Row],[Median]]-AAMC_Raw_Data_for_FY22[[#This Row],[25th]])/25)*20) + AAMC_Raw_Data_for_FY22[[#This Row],[25th]]","v":126160.2},127528,{"$f":"(((AAMC_Raw_Data_for_FY22[[#This Row],[75th]]-AAMC_Raw_Data_for_FY22[[#This Row],[Median]])/25)*5) + AAMC_Raw_Data_for_FY22[[#This Row],[Median]]","v":130506.6},{"$f":"(((AAMC_Raw_Data_for_FY22[[#This Row],[75th]]-AAMC_Raw_Data_for_FY22[[#This Row],[Median]])/25)*10) + AAMC_Raw_Data_for_FY22[[#This Row],[Median]]","v":133485.20000000001},{"$f":"(((AAMC_Raw_Data_for_FY22[[#This Row],[75th]]-AAMC_Raw_Data_for_FY22[[#This Row],[Median]])/25)*15) + AAMC_Raw_Data_for_FY22[[#This Row],[Median]]","v":136463.79999999999},{"$f":"(((AAMC_Raw_Data_for_FY22[[#This Row],[75th]]-AAMC_Raw_Data_for_FY22[[#This Row],[Median]])/25)*20) + AAMC_Raw_Data_for_FY22[[#This Row],[Median]]","v":139442.4},142421,{"$f":"(((AAMC_Raw_Data_for_FY22[[#This Row],[75th]]-AAMC_Raw_Data_for_FY22[[#This Row],[Median]])/25)*30) + AAMC_Raw_Data_for_FY22[[#This Row],[Median]]","v":145399.6},{"$f":"(((AAMC_Raw_Data_for_FY22[[#This Row],[75th]]-AAMC_Raw_Data_for_FY22[[#This Row],[Median]])/25)*35) + AAMC_Raw_Data_for_FY22[[#This Row],[Median]]","v":148378.20000000001},{"$f":"(((AAMC_Raw_Data_for_FY22[[#This Row],[75th]]-AAMC_Raw_Data_for_FY22[[#This Row],[Median]])/25)*40) + AAMC_Raw_Data_for_FY22[[#This Row],[Median]]","v":151356.79999999999}]
[{"$f":"AAMC_Raw_Data_for_FY22[[#This Row],[Source]]&AAMC_Raw_Data_for_FY22[[#This Row],[Type]]&AAMC_Raw_Data_for_FY22[[#This Row],[School Subset]]&AAMC_Raw_Data_for_FY22[[#This Row],[Rank]]&AAMC_Raw_Data_for_FY22[[#This Row],[Degree]]&AAMC_Raw_Data_for_FY22[[#This Row],[Department / Specialty]]&\"L\"","v":"AAMCAcademicAllProfessorPhDFamily Medicine: OtherL"},"Family Medicine: Other",2,"AAMC","Academic","All","Professor","PhD","2021-2022",174634,{"$f":"(((AAMC_Raw_Data_for_FY22[[#This Row],[Median]]-AAMC_Raw_Data_for_FY22[[#This Row],[25th]])/25)*5) + AAMC_Raw_Data_for_FY22[[#This Row],[25th]]","v":184008.6},{"$f":"(((AAMC_Raw_Data_for_FY22[[#This Row],[Median]]-AAMC_Raw_Data_for_FY22[[#This Row],[25th]])/25)*10) + AAMC_Raw_Data_for_FY22[[#This Row],[25th]]","v":193383.2},{"$f":"(((AAMC_Raw_Data_for_FY22[[#This Row],[Median]]-AAMC_Raw_Data_for_FY22[[#This Row],[25th]])/25)*15) + AAMC_Raw_Data_for_FY22[[#This Row],[25th]]","v":202757.8},{"$f":"(((AAMC_Raw_Data_for_FY22[[#This Row],[Median]]-AAMC_Raw_Data_for_FY22[[#This Row],[25th]])/25)*20) + AAMC_Raw_Data_for_FY22[[#This Row],[25th]]","v":212132.4},221507,{"$f":"(((AAMC_Raw_Data_for_FY22[[#This Row],[75th]]-AAMC_Raw_Data_for_FY22[[#This Row],[Median]])/25)*5) + AAMC_Raw_Data_for_FY22[[#This Row],[Median]]","v":231823.8},{"$f":"(((AAMC_Raw_Data_for_FY22[[#This Row],[75th]]-AAMC_Raw_Data_for_FY22[[#This Row],[Median]])/25)*10) + AAMC_Raw_Data_for_FY22[[#This Row],[Median]]","v":242140.6},{"$f":"(((AAMC_Raw_Data_for_FY22[[#This Row],[75th]]-AAMC_Raw_Data_for_FY22[[#This Row],[Median]])/25)*15) + AAMC_Raw_Data_for_FY22[[#This Row],[Median]]","v":252457.4},{"$f":"(((AAMC_Raw_Data_for_FY22[[#This Row],[75th]]-AAMC_Raw_Data_for_FY22[[#This Row],[Median]])/25)*20) + AAMC_Raw_Data_for_FY22[[#This Row],[Median]]","v":262774.2},273091,{"$f":"(((AAMC_Raw_Data_for_FY22[[#This Row],[75th]]-AAMC_Raw_Data_for_FY22[[#This Row],[Median]])/25)*30) + AAMC_Raw_Data_for_FY22[[#This Row],[Median]]","v":283407.8},{"$f":"(((AAMC_Raw_Data_for_FY22[[#This Row],[75th]]-AAMC_Raw_Data_for_FY22[[#This Row],[Median]])/25)*35) + AAMC_Raw_Data_for_FY22[[#This Row],[Median]]","v":293724.59999999998},{"$f":"(((AAMC_Raw_Data_for_FY22[[#This Row],[75th]]-AAMC_Raw_Data_for_FY22[[#This Row],[Median]])/25)*40) + AAMC_Raw_Data_for_FY22[[#This Row],[Median]]","v":304041.40000000002}]
[{"$f":"AAMC_Raw_Data_for_FY22[[#This Row],[Source]]&AAMC_Raw_Data_for_FY22[[#This Row],[Type]]&AAMC_Raw_Data_for_FY22[[#This Row],[School Subset]]&AAMC_Raw_Data_for_FY22[[#This Row],[Rank]]&AAMC_Raw_Data_for_FY22[[#This Row],[Degree]]&AAMC_Raw_Data_for_FY22[[#This Row],[Department / Specialty]]&\"L\"","v":"AAMCAcademicAllChairPhDFamily Medicine: OtherL"},"Family Medicine: Other",1,"AAMC","Academic","All","Chair","PhD","2021-2022",null,{"$f":"(((AAMC_Raw_Data_for_FY22[[#This Row],[Median]]-AAMC_Raw_Data_for_FY22[[#This Row],[25th]])/25)*5) + AAMC_Raw_Data_for_FY22[[#This Row],[25th]]","v":0},{"$f":"(((AAMC_Raw_Data_for_FY22[[#This Row],[Median]]-AAMC_Raw_Data_for_FY22[[#This Row],[25th]])/25)*10) + AAMC_Raw_Data_for_FY22[[#This Row],[25th]]","v":0},{"$f":"(((AAMC_Raw_Data_for_FY22[[#This Row],[Median]]-AAMC_Raw_Data_for_FY22[[#This Row],[25th]])/25)*15) + AAMC_Raw_Data_for_FY22[[#This Row],[25th]]","v":0},{"$f":"(((AAMC_Raw_Data_for_FY22[[#This Row],[Median]]-AAMC_Raw_Data_for_FY22[[#This Row],[25th]])/25)*20) + AAMC_Raw_Data_for_FY22[[#This Row],[25th]]","v":0},null,{"$f":"(((AAMC_Raw_Data_for_FY22[[#This Row],[75th]]-AAMC_Raw_Data_for_FY22[[#This Row],[Median]])/25)*5) + AAMC_Raw_Data_for_FY22[[#This Row],[Median]]","v":0},{"$f":"(((AAMC_Raw_Data_for_FY22[[#This Row],[75th]]-AAMC_Raw_Data_for_FY22[[#This Row],[Median]])/25)*10) + AAMC_Raw_Data_for_FY22[[#This Row],[Median]]","v":0},{"$f":"(((AAMC_Raw_Data_for_FY22[[#This Row],[75th]]-AAMC_Raw_Data_for_FY22[[#This Row],[Median]])/25)*15) + AAMC_Raw_Data_for_FY22[[#This Row],[Median]]","v":0},{"$f":"(((AAMC_Raw_Data_for_FY22[[#This Row],[75th]]-AAMC_Raw_Data_for_FY22[[#This Row],[Median]])/25)*20) + AAMC_Raw_Data_for_FY22[[#This Row],[Median]]","v":0},null,{"$f":"(((AAMC_Raw_Data_for_FY22[[#This Row],[75th]]-AAMC_Raw_Data_for_FY22[[#This Row],[Median]])/25)*30) + AAMC_Raw_Data_for_FY22[[#This Row],[Median]]","v":0},{"$f":"(((AAMC_Raw_Data_for_FY22[[#This Row],[75th]]-AAMC_Raw_Data_for_FY22[[#This Row],[Median]])/25)*35) + AAMC_Raw_Data_for_FY22[[#This Row],[Median]]","v":0},{"$f":"(((AAMC_Raw_Data_for_FY22[[#This Row],[75th]]-AAMC_Raw_Data_for_FY22[[#This Row],[Median]])/25)*40) + AAMC_Raw_Data_for_FY22[[#This Row],[Median]]","v":0}]
[{"$f":"AAMC_Raw_Data_for_FY22[[#This Row],[Source]]&AAMC_Raw_Data_for_FY22[[#This Row],[Type]]&AAMC_Raw_Data_for_FY22[[#This Row],[School Subset]]&AAMC_Raw_Data_for_FY22[[#This Row],[Rank]]&AAMC_Raw_Data_for_FY22[[#This Row],[Degree]]&AAMC_Raw_Data_for_FY22[[#This Row],[Department / Specialty]]&\"L\"","v":"AAMCAcademicAllInstructorPhDMedicine TotalL"},"Medicine Total",5,"AAMC","Academic","All","Instructor","PhD","2021-2022",67167,{"$f":"(((AAMC_Raw_Data_for_FY22[[#This Row],[Median]]-AAMC_Raw_Data_for_FY22[[#This Row],[25th]])/25)*5) + AAMC_Raw_Data_for_FY22[[#This Row],[25th]]","v":70138.399999999994},{"$f":"(((AAMC_Raw_Data_for_FY22[[#This Row],[Median]]-AAMC_Raw_Data_for_FY22[[#This Row],[25th]])/25)*10) + AAMC_Raw_Data_for_FY22[[#This Row],[25th]]","v":73109.8},{"$f":"(((AAMC_Raw_Data_for_FY22[[#This Row],[Median]]-AAMC_Raw_Data_for_FY22[[#This Row],[25th]])/25)*15) + AAMC_Raw_Data_for_FY22[[#This Row],[25th]]","v":76081.2},{"$f":"(((AAMC_Raw_Data_for_FY22[[#This Row],[Median]]-AAMC_Raw_Data_for_FY22[[#This Row],[25th]])/25)*20) + AAMC_Raw_Data_for_FY22[[#This Row],[25th]]","v":79052.600000000006},82024,{"$f":"(((AAMC_Raw_Data_for_FY22[[#This Row],[75th]]-AAMC_Raw_Data_for_FY22[[#This Row],[Median]])/25)*5) + AAMC_Raw_Data_for_FY22[[#This Row],[Median]]","v":85953.8},{"$f":"(((AAMC_Raw_Data_for_FY22[[#This Row],[75th]]-AAMC_Raw_Data_for_FY22[[#This Row],[Median]])/25)*10) + AAMC_Raw_Data_for_FY22[[#This Row],[Median]]","v":89883.6},{"$f":"(((AAMC_Raw_Data_for_FY22[[#This Row],[75th]]-AAMC_Raw_Data_for_FY22[[#This Row],[Median]])/25)*15) + AAMC_Raw_Data_for_FY22[[#This Row],[Median]]","v":93813.4},{"$f":"(((AAMC_Raw_Data_for_FY22[[#This Row],[75th]]-AAMC_Raw_Data_for_FY22[[#This Row],[Median]])/25)*20) + AAMC_Raw_Data_for_FY22[[#This Row],[Median]]","v":97743.2},101673,{"$f":"(((AAMC_Raw_Data_for_FY22[[#This Row],[75th]]-AAMC_Raw_Data_for_FY22[[#This Row],[Median]])/25)*30) + AAMC_Raw_Data_for_FY22[[#This Row],[Median]]","v":105602.8},{"$f":"(((AAMC_Raw_Data_for_FY22[[#This Row],[75th]]-AAMC_Raw_Data_for_FY22[[#This Row],[Median]])/25)*35) + AAMC_Raw_Data_for_FY22[[#This Row],[Median]]","v":109532.6},{"$f":"(((AAMC_Raw_Data_for_FY22[[#This Row],[75th]]-AAMC_Raw_Data_for_FY22[[#This Row],[Median]])/25)*40) + AAMC_Raw_Data_for_FY22[[#This Row],[Median]]","v":113462.39999999999}]
[{"$f":"AAMC_Raw_Data_for_FY22[[#This Row],[Source]]&AAMC_Raw_Data_for_FY22[[#This Row],[Type]]&AAMC_Raw_Data_for_FY22[[#This Row],[School Subset]]&AAMC_Raw_Data_for_FY22[[#This Row],[Rank]]&AAMC_Raw_Data_for_FY22[[#This Row],[Degree]]&AAMC_Raw_Data_for_FY22[[#This Row],[Department / Specialty]]&\"L\"","v":"AAMCAcademicAllAssistantPhDMedicine TotalL"},"Medicine Total",4,"AAMC","Academic","All","Assistant","PhD","2021-2022",90100,{"$f":"(((AAMC_Raw_Data_for_FY22[[#This Row],[Median]]-AAMC_Raw_Data_for_FY22[[#This Row],[25th]])/25)*5) + AAMC_Raw_Data_for_FY22[[#This Row],[25th]]","v":94155.199999999997},{"$f":"(((AAMC_Raw_Data_for_FY22[[#This Row],[Median]]-AAMC_Raw_Data_for_FY22[[#This Row],[25th]])/25)*10) + AAMC_Raw_Data_for_FY22[[#This Row],[25th]]","v":98210.4},{"$f":"(((AAMC_Raw_Data_for_FY22[[#This Row],[Median]]-AAMC_Raw_Data_for_FY22[[#This Row],[25th]])/25)*15) + AAMC_Raw_Data_for_FY22[[#This Row],[25th]]","v":102265.60000000001},{"$f":"(((AAMC_Raw_Data_for_FY22[[#This Row],[Median]]-AAMC_Raw_Data_for_FY22[[#This Row],[25th]])/25)*20) + AAMC_Raw_Data_for_FY22[[#This Row],[25th]]","v":106320.8},110376,{"$f":"(((AAMC_Raw_Data_for_FY22[[#This Row],[75th]]-AAMC_Raw_Data_for_FY22[[#This Row],[Median]])/25)*5) + AAMC_Raw_Data_for_FY22[[#This Row],[Median]]","v":114762.2},{"$f":"(((AAMC_Raw_Data_for_FY22[[#This Row],[75th]]-AAMC_Raw_Data_for_FY22[[#This Row],[Median]])/25)*10) + AAMC_Raw_Data_for_FY22[[#This Row],[Median]]","v":119148.4},{"$f":"(((AAMC_Raw_Data_for_FY22[[#This Row],[75th]]-AAMC_Raw_Data_for_FY22[[#This Row],[Median]])/25)*15) + AAMC_Raw_Data_for_FY22[[#This Row],[Median]]","v":123534.6},{"$f":"(((AAMC_Raw_Data_for_FY22[[#This Row],[75th]]-AAMC_Raw_Data_for_FY22[[#This Row],[Median]])/25)*20) + AAMC_Raw_Data_for_FY22[[#This Row],[Median]]","v":127920.8},132307,{"$f":"(((AAMC_Raw_Data_for_FY22[[#This Row],[75th]]-AAMC_Raw_Data_for_FY22[[#This Row],[Median]])/25)*30) + AAMC_Raw_Data_for_FY22[[#This Row],[Median]]","v":136693.20000000001},{"$f":"(((AAMC_Raw_Data_for_FY22[[#This Row],[75th]]-AAMC_Raw_Data_for_FY22[[#This Row],[Median]])/25)*35) + AAMC_Raw_Data_for_FY22[[#This Row],[Median]]","v":141079.4},{"$f":"(((AAMC_Raw_Data_for_FY22[[#This Row],[75th]]-AAMC_Raw_Data_for_FY22[[#This Row],[Median]])/25)*40) + AAMC_Raw_Data_for_FY22[[#This Row],[Median]]","v":145465.60000000001}]
[{"$f":"AAMC_Raw_Data_for_FY22[[#This Row],[Source]]&AAMC_Raw_Data_for_FY22[[#This Row],[Type]]&AAMC_Raw_Data_for_FY22[[#This Row],[School Subset]]&AAMC_Raw_Data_for_FY22[[#This Row],[Rank]]&AAMC_Raw_Data_for_FY22[[#This Row],[Degree]]&AAMC_Raw_Data_for_FY22[[#This Row],[Department / Specialty]]&\"L\"","v":"AAMCAcademicAllAssociatePhDMedicine TotalL"},"Medicine Total",3,"AAMC","Academic","All","Associate","PhD","2021-2022",118922,{"$f":"(((AAMC_Raw_Data_for_FY22[[#This Row],[Median]]-AAMC_Raw_Data_for_FY22[[#This Row],[25th]])/25)*5) + AAMC_Raw_Data_for_FY22[[#This Row],[25th]]","v":124008.4},{"$f":"(((AAMC_Raw_Data_for_FY22[[#This Row],[Median]]-AAMC_Raw_Data_for_FY22[[#This Row],[25th]])/25)*10) + AAMC_Raw_Data_for_FY22[[#This Row],[25th]]","v":129094.8},{"$f":"(((AAMC_Raw_Data_for_FY22[[#This Row],[Median]]-AAMC_Raw_Data_for_FY22[[#This Row],[25th]])/25)*15) + AAMC_Raw_Data_for_FY22[[#This Row],[25th]]","v":134181.20000000001},{"$f":"(((AAMC_Raw_Data_for_FY22[[#This Row],[Median]]-AAMC_Raw_Data_for_FY22[[#This Row],[25th]])/25)*20) + AAMC_Raw_Data_for_FY22[[#This Row],[25th]]","v":139267.6},144354,{"$f":"(((AAMC_Raw_Data_for_FY22[[#This Row],[75th]]-AAMC_Raw_Data_for_FY22[[#This Row],[Median]])/25)*5) + AAMC_Raw_Data_for_FY22[[#This Row],[Median]]","v":149168.4},{"$f":"(((AAMC_Raw_Data_for_FY22[[#This Row],[75th]]-AAMC_Raw_Data_for_FY22[[#This Row],[Median]])/25)*10) + AAMC_Raw_Data_for_FY22[[#This Row],[Median]]","v":153982.79999999999},{"$f":"(((AAMC_Raw_Data_for_FY22[[#This Row],[75th]]-AAMC_Raw_Data_for_FY22[[#This Row],[Median]])/25)*15) + AAMC_Raw_Data_for_FY22[[#This Row],[Median]]","v":158797.20000000001},{"$f":"(((AAMC_Raw_Data_for_FY22[[#This Row],[75th]]-AAMC_Raw_Data_for_FY22[[#This Row],[Median]])/25)*20) + AAMC_Raw_Data_for_FY22[[#This Row],[Median]]","v":163611.6},168426,{"$f":"(((AAMC_Raw_Data_for_FY22[[#This Row],[75th]]-AAMC_Raw_Data_for_FY22[[#This Row],[Median]])/25)*30) + AAMC_Raw_Data_for_FY22[[#This Row],[Median]]","v":173240.4},{"$f":"(((AAMC_Raw_Data_for_FY22[[#This Row],[75th]]-AAMC_Raw_Data_for_FY22[[#This Row],[Median]])/25)*35) + AAMC_Raw_Data_for_FY22[[#This Row],[Median]]","v":178054.8},{"$f":"(((AAMC_Raw_Data_for_FY22[[#This Row],[75th]]-AAMC_Raw_Data_for_FY22[[#This Row],[Median]])/25)*40) + AAMC_Raw_Data_for_FY22[[#This Row],[Median]]","v":182869.2}]
[{"$f":"AAMC_Raw_Data_for_FY22[[#This Row],[Source]]&AAMC_Raw_Data_for_FY22[[#This Row],[Type]]&AAMC_Raw_Data_for_FY22[[#This Row],[School Subset]]&AAMC_Raw_Data_for_FY22[[#This Row],[Rank]]&AAMC_Raw_Data_for_FY22[[#This Row],[Degree]]&AAMC_Raw_Data_for_FY22[[#This Row],[Department / Specialty]]&\"L\"","v":"AAMCAcademicAllProfessorPhDMedicine TotalL"},"Medicine Total",2,"AAMC","Academic","All","Professor","PhD","2021-2022",172818,{"$f":"(((AAMC_Raw_Data_for_FY22[[#This Row],[Median]]-AAMC_Raw_Data_for_FY22[[#This Row],[25th]])/25)*5) + AAMC_Raw_Data_for_FY22[[#This Row],[25th]]","v":180484.4},{"$f":"(((AAMC_Raw_Data_for_FY22[[#This Row],[Median]]-AAMC_Raw_Data_for_FY22[[#This Row],[25th]])/25)*10) + AAMC_Raw_Data_for_FY22[[#This Row],[25th]]","v":188150.8},{"$f":"(((AAMC_Raw_Data_for_FY22[[#This Row],[Median]]-AAMC_Raw_Data_for_FY22[[#This Row],[25th]])/25)*15) + AAMC_Raw_Data_for_FY22[[#This Row],[25th]]","v":195817.2},{"$f":"(((AAMC_Raw_Data_for_FY22[[#This Row],[Median]]-AAMC_Raw_Data_for_FY22[[#This Row],[25th]])/25)*20) + AAMC_Raw_Data_for_FY22[[#This Row],[25th]]","v":203483.6},211150,{"$f":"(((AAMC_Raw_Data_for_FY22[[#This Row],[75th]]-AAMC_Raw_Data_for_FY22[[#This Row],[Median]])/25)*5) + AAMC_Raw_Data_for_FY22[[#This Row],[Median]]","v":221783.2},{"$f":"(((AAMC_Raw_Data_for_FY22[[#This Row],[75th]]-AAMC_Raw_Data_for_FY22[[#This Row],[Median]])/25)*10) + AAMC_Raw_Data_for_FY22[[#This Row],[Median]]","v":232416.4},{"$f":"(((AAMC_Raw_Data_for_FY22[[#This Row],[75th]]-AAMC_Raw_Data_for_FY22[[#This Row],[Median]])/25)*15) + AAMC_Raw_Data_for_FY22[[#This Row],[Median]]","v":243049.60000000001},{"$f":"(((AAMC_Raw_Data_for_FY22[[#This Row],[75th]]-AAMC_Raw_Data_for_FY22[[#This Row],[Median]])/25)*20) + AAMC_Raw_Data_for_FY22[[#This Row],[Median]]","v":253682.8},264316,{"$f":"(((AAMC_Raw_Data_for_FY22[[#This Row],[75th]]-AAMC_Raw_Data_for_FY22[[#This Row],[Median]])/25)*30) + AAMC_Raw_Data_for_FY22[[#This Row],[Median]]","v":274949.2},{"$f":"(((AAMC_Raw_Data_for_FY22[[#This Row],[75th]]-AAMC_Raw_Data_for_FY22[[#This Row],[Median]])/25)*35) + AAMC_Raw_Data_for_FY22[[#This Row],[Median]]","v":285582.40000000002},{"$f":"(((AAMC_Raw_Data_for_FY22[[#This Row],[75th]]-AAMC_Raw_Data_for_FY22[[#This Row],[Median]])/25)*40) + AAMC_Raw_Data_for_FY22[[#This Row],[Median]]","v":296215.59999999998}]
[{"$f":"AAMC_Raw_Data_for_FY22[[#This Row],[Source]]&AAMC_Raw_Data_for_FY22[[#This Row],[Type]]&AAMC_Raw_Data_for_FY22[[#This Row],[School Subset]]&AAMC_Raw_Data_for_FY22[[#This Row],[Rank]]&AAMC_Raw_Data_for_FY22[[#This Row],[Degree]]&AAMC_Raw_Data_for_FY22[[#This Row],[Department / Specialty]]&\"L\"","v":"AAMCAcademicAllChiefPhDMedicine TotalL"},"Medicine Total",6,"AAMC","Academic","All","Chief","PhD","2021-2022",250404,{"$f":"(((AAMC_Raw_Data_for_FY22[[#This Row],[Median]]-AAMC_Raw_Data_for_FY22[[#This Row],[25th]])/25)*5) + AAMC_Raw_Data_for_FY22[[#This Row],[25th]]","v":256534.39999999999},{"$f":"(((AAMC_Raw_Data_for_FY22[[#This Row],[Median]]-AAMC_Raw_Data_for_FY22[[#This Row],[25th]])/25)*10) + AAMC_Raw_Data_for_FY22[[#This Row],[25th]]","v":262664.8},{"$f":"(((AAMC_Raw_Data_for_FY22[[#This Row],[Median]]-AAMC_Raw_Data_for_FY22[[#This Row],[25th]])/25)*15) + AAMC_Raw_Data_for_FY22[[#This Row],[25th]]","v":268795.2},{"$f":"(((AAMC_Raw_Data_for_FY22[[#This Row],[Median]]-AAMC_Raw_Data_for_FY22[[#This Row],[25th]])/25)*20) + AAMC_Raw_Data_for_FY22[[#This Row],[25th]]","v":274925.59999999998},281056,{"$f":"(((AAMC_Raw_Data_for_FY22[[#This Row],[75th]]-AAMC_Raw_Data_for_FY22[[#This Row],[Median]])/25)*5) + AAMC_Raw_Data_for_FY22[[#This Row],[Median]]","v":290288},{"$f":"(((AAMC_Raw_Data_for_FY22[[#This Row],[75th]]-AAMC_Raw_Data_for_FY22[[#This Row],[Median]])/25)*10) + AAMC_Raw_Data_for_FY22[[#This Row],[Median]]","v":299520},{"$f":"(((AAMC_Raw_Data_for_FY22[[#This Row],[75th]]-AAMC_Raw_Data_for_FY22[[#This Row],[Median]])/25)*15) + AAMC_Raw_Data_for_FY22[[#This Row],[Median]]","v":308752},{"$f":"(((AAMC_Raw_Data_for_FY22[[#This Row],[75th]]-AAMC_Raw_Data_for_FY22[[#This Row],[Median]])/25)*20) + AAMC_Raw_Data_for_FY22[[#This Row],[Median]]","v":317984},327216,{"$f":"(((AAMC_Raw_Data_for_FY22[[#This Row],[75th]]-AAMC_Raw_Data_for_FY22[[#This Row],[Median]])/25)*30) + AAMC_Raw_Data_for_FY22[[#This Row],[Median]]","v":336448},{"$f":"(((AAMC_Raw_Data_for_FY22[[#This Row],[75th]]-AAMC_Raw_Data_for_FY22[[#This Row],[Median]])/25)*35) + AAMC_Raw_Data_for_FY22[[#This Row],[Median]]","v":345680},{"$f":"(((AAMC_Raw_Data_for_FY22[[#This Row],[75th]]-AAMC_Raw_Data_for_FY22[[#This Row],[Median]])/25)*40) + AAMC_Raw_Data_for_FY22[[#This Row],[Median]]","v":354912}]
[{"$f":"AAMC_Raw_Data_for_FY22[[#This Row],[Source]]&AAMC_Raw_Data_for_FY22[[#This Row],[Type]]&AAMC_Raw_Data_for_FY22[[#This Row],[School Subset]]&AAMC_Raw_Data_for_FY22[[#This Row],[Rank]]&AAMC_Raw_Data_for_FY22[[#This Row],[Degree]]&AAMC_Raw_Data_for_FY22[[#This Row],[Department / Specialty]]&\"L\"","v":"AAMCAcademicAllChairPhDMedicine TotalL"},"Medicine Total",1,"AAMC","Academic","All","Chair","PhD","2021-2022",386543,{"$f":"(((AAMC_Raw_Data_for_FY22[[#This Row],[Median]]-AAMC_Raw_Data_for_FY22[[#This Row],[25th]])/25)*5) + AAMC_Raw_Data_for_FY22[[#This Row],[25th]]","v":393613.4},{"$f":"(((AAMC_Raw_Data_for_FY22[[#This Row],[Median]]-AAMC_Raw_Data_for_FY22[[#This Row],[25th]])/25)*10) + AAMC_Raw_Data_for_FY22[[#This Row],[25th]]","v":400683.8},{"$f":"(((AAMC_Raw_Data_for_FY22[[#This Row],[Median]]-AAMC_Raw_Data_for_FY22[[#This Row],[25th]])/25)*15) + AAMC_Raw_Data_for_FY22[[#This Row],[25th]]","v":407754.2},{"$f":"(((AAMC_Raw_Data_for_FY22[[#This Row],[Median]]-AAMC_Raw_Data_for_FY22[[#This Row],[25th]])/25)*20) + AAMC_Raw_Data_for_FY22[[#This Row],[25th]]","v":414824.6},421895,{"$f":"(((AAMC_Raw_Data_for_FY22[[#This Row],[75th]]-AAMC_Raw_Data_for_FY22[[#This Row],[Median]])/25)*5) + AAMC_Raw_Data_for_FY22[[#This Row],[Median]]","v":460428},{"$f":"(((AAMC_Raw_Data_for_FY22[[#This Row],[75th]]-AAMC_Raw_Data_for_FY22[[#This Row],[Median]])/25)*10) + AAMC_Raw_Data_for_FY22[[#This Row],[Median]]","v":498961},{"$f":"(((AAMC_Raw_Data_for_FY22[[#This Row],[75th]]-AAMC_Raw_Data_for_FY22[[#This Row],[Median]])/25)*15) + AAMC_Raw_Data_for_FY22[[#This Row],[Median]]","v":537494},{"$f":"(((AAMC_Raw_Data_for_FY22[[#This Row],[75th]]-AAMC_Raw_Data_for_FY22[[#This Row],[Median]])/25)*20) + AAMC_Raw_Data_for_FY22[[#This Row],[Median]]","v":576027},614560,{"$f":"(((AAMC_Raw_Data_for_FY22[[#This Row],[75th]]-AAMC_Raw_Data_for_FY22[[#This Row],[Median]])/25)*30) + AAMC_Raw_Data_for_FY22[[#This Row],[Median]]","v":653093},{"$f":"(((AAMC_Raw_Data_for_FY22[[#This Row],[75th]]-AAMC_Raw_Data_for_FY22[[#This Row],[Median]])/25)*35) + AAMC_Raw_Data_for_FY22[[#This Row],[Median]]","v":691626},{"$f":"(((AAMC_Raw_Data_for_FY22[[#This Row],[75th]]-AAMC_Raw_Data_for_FY22[[#This Row],[Median]])/25)*40) + AAMC_Raw_Data_for_FY22[[#This Row],[Median]]","v":730159}]
[{"$f":"AAMC_Raw_Data_for_FY22[[#This Row],[Source]]&AAMC_Raw_Data_for_FY22[[#This Row],[Type]]&AAMC_Raw_Data_for_FY22[[#This Row],[School Subset]]&AAMC_Raw_Data_for_FY22[[#This Row],[Rank]]&AAMC_Raw_Data_for_FY22[[#This Row],[Degree]]&AAMC_Raw_Data_for_FY22[[#This Row],[Department / Specialty]]&\"L\"","v":"AAMCAcademicAllInstructorPhDAllergy/Immunology-Med.L"},"Allergy/Immunology-Med.",5,"AAMC","Academic","All","Instructor","PhD","2021-2022",67119,{"$f":"(((AAMC_Raw_Data_for_FY22[[#This Row],[Median]]-AAMC_Raw_Data_for_FY22[[#This Row],[25th]])/25)*5) + AAMC_Raw_Data_for_FY22[[#This Row],[25th]]","v":68541.399999999994},{"$f":"(((AAMC_Raw_Data_for_FY22[[#This Row],[Median]]-AAMC_Raw_Data_for_FY22[[#This Row],[25th]])/25)*10) + AAMC_Raw_Data_for_FY22[[#This Row],[25th]]","v":69963.8},{"$f":"(((AAMC_Raw_Data_for_FY22[[#This Row],[Median]]-AAMC_Raw_Data_for_FY22[[#This Row],[25th]])/25)*15) + AAMC_Raw_Data_for_FY22[[#This Row],[25th]]","v":71386.2},{"$f":"(((AAMC_Raw_Data_for_FY22[[#This Row],[Median]]-AAMC_Raw_Data_for_FY22[[#This Row],[25th]])/25)*20) + AAMC_Raw_Data_for_FY22[[#This Row],[25th]]","v":72808.600000000006},74231,{"$f":"(((AAMC_Raw_Data_for_FY22[[#This Row],[75th]]-AAMC_Raw_Data_for_FY22[[#This Row],[Median]])/25)*5) + AAMC_Raw_Data_for_FY22[[#This Row],[Median]]","v":75484.800000000003},{"$f":"(((AAMC_Raw_Data_for_FY22[[#This Row],[75th]]-AAMC_Raw_Data_for_FY22[[#This Row],[Median]])/25)*10) + AAMC_Raw_Data_for_FY22[[#This Row],[Median]]","v":76738.600000000006},{"$f":"(((AAMC_Raw_Data_for_FY22[[#This Row],[75th]]-AAMC_Raw_Data_for_FY22[[#This Row],[Median]])/25)*15) + AAMC_Raw_Data_for_FY22[[#This Row],[Median]]","v":77992.399999999994},{"$f":"(((AAMC_Raw_Data_for_FY22[[#This Row],[75th]]-AAMC_Raw_Data_for_FY22[[#This Row],[Median]])/25)*20) + AAMC_Raw_Data_for_FY22[[#This Row],[Median]]","v":79246.2},80500,{"$f":"(((AAMC_Raw_Data_for_FY22[[#This Row],[75th]]-AAMC_Raw_Data_for_FY22[[#This Row],[Median]])/25)*30) + AAMC_Raw_Data_for_FY22[[#This Row],[Median]]","v":81753.8},{"$f":"(((AAMC_Raw_Data_for_FY22[[#This Row],[75th]]-AAMC_Raw_Data_for_FY22[[#This Row],[Median]])/25)*35) + AAMC_Raw_Data_for_FY22[[#This Row],[Median]]","v":83007.600000000006},{"$f":"(((AAMC_Raw_Data_for_FY22[[#This Row],[75th]]-AAMC_Raw_Data_for_FY22[[#This Row],[Median]])/25)*40) + AAMC_Raw_Data_for_FY22[[#This Row],[Median]]","v":84261.4}]
[{"$f":"AAMC_Raw_Data_for_FY22[[#This Row],[Source]]&AAMC_Raw_Data_for_FY22[[#This Row],[Type]]&AAMC_Raw_Data_for_FY22[[#This Row],[School Subset]]&AAMC_Raw_Data_for_FY22[[#This Row],[Rank]]&AAMC_Raw_Data_for_FY22[[#This Row],[Degree]]&AAMC_Raw_Data_for_FY22[[#This Row],[Department / Specialty]]&\"L\"","v":"AAMCAcademicAllAssistantPhDAllergy/Immunology-Med.L"},"Allergy/Immunology-Med.",4,"AAMC","Academic","All","Assistant","PhD","2021-2022",92531,{"$f":"(((AAMC_Raw_Data_for_FY22[[#This Row],[Median]]-AAMC_Raw_Data_for_FY22[[#This Row],[25th]])/25)*5) + AAMC_Raw_Data_for_FY22[[#This Row],[25th]]","v":96017.4},{"$f":"(((AAMC_Raw_Data_for_FY22[[#This Row],[Median]]-AAMC_Raw_Data_for_FY22[[#This Row],[25th]])/25)*10) + AAMC_Raw_Data_for_FY22[[#This Row],[25th]]","v":99503.8},{"$f":"(((AAMC_Raw_Data_for_FY22[[#This Row],[Median]]-AAMC_Raw_Data_for_FY22[[#This Row],[25th]])/25)*15) + AAMC_Raw_Data_for_FY22[[#This Row],[25th]]","v":102990.2},{"$f":"(((AAMC_Raw_Data_for_FY22[[#This Row],[Median]]-AAMC_Raw_Data_for_FY22[[#This Row],[25th]])/25)*20) + AAMC_Raw_Data_for_FY22[[#This Row],[25th]]","v":106476.6},109963,{"$f":"(((AAMC_Raw_Data_for_FY22[[#This Row],[75th]]-AAMC_Raw_Data_for_FY22[[#This Row],[Median]])/25)*5) + AAMC_Raw_Data_for_FY22[[#This Row],[Median]]","v":112280.2},{"$f":"(((AAMC_Raw_Data_for_FY22[[#This Row],[75th]]-AAMC_Raw_Data_for_FY22[[#This Row],[Median]])/25)*10) + AAMC_Raw_Data_for_FY22[[#This Row],[Median]]","v":114597.4},{"$f":"(((AAMC_Raw_Data_for_FY22[[#This Row],[75th]]-AAMC_Raw_Data_for_FY22[[#This Row],[Median]])/25)*15) + AAMC_Raw_Data_for_FY22[[#This Row],[Median]]","v":116914.6},{"$f":"(((AAMC_Raw_Data_for_FY22[[#This Row],[75th]]-AAMC_Raw_Data_for_FY22[[#This Row],[Median]])/25)*20) + AAMC_Raw_Data_for_FY22[[#This Row],[Median]]","v":119231.8},121549,{"$f":"(((AAMC_Raw_Data_for_FY22[[#This Row],[75th]]-AAMC_Raw_Data_for_FY22[[#This Row],[Median]])/25)*30) + AAMC_Raw_Data_for_FY22[[#This Row],[Median]]","v":123866.2},{"$f":"(((AAMC_Raw_Data_for_FY22[[#This Row],[75th]]-AAMC_Raw_Data_for_FY22[[#This Row],[Median]])/25)*35) + AAMC_Raw_Data_for_FY22[[#This Row],[Median]]","v":126183.4},{"$f":"(((AAMC_Raw_Data_for_FY22[[#This Row],[75th]]-AAMC_Raw_Data_for_FY22[[#This Row],[Median]])/25)*40) + AAMC_Raw_Data_for_FY22[[#This Row],[Median]]","v":128500.6}]
[{"$f":"AAMC_Raw_Data_for_FY22[[#This Row],[Source]]&AAMC_Raw_Data_for_FY22[[#This Row],[Type]]&AAMC_Raw_Data_for_FY22[[#This Row],[School Subset]]&AAMC_Raw_Data_for_FY22[[#This Row],[Rank]]&AAMC_Raw_Data_for_FY22[[#This Row],[Degree]]&AAMC_Raw_Data_for_FY22[[#This Row],[Department / Specialty]]&\"L\"","v":"AAMCAcademicAllAssociatePhDAllergy/Immunology-Med.L"},"Allergy/Immunology-Med.",3,"AAMC","Academic","All","Associate","PhD","2021-2022",126248,{"$f":"(((AAMC_Raw_Data_for_FY22[[#This Row],[Median]]-AAMC_Raw_Data_for_FY22[[#This Row],[25th]])/25)*5) + AAMC_Raw_Data_for_FY22[[#This Row],[25th]]","v":128509.8},{"$f":"(((AAMC_Raw_Data_for_FY22[[#This Row],[Median]]-AAMC_Raw_Data_for_FY22[[#This Row],[25th]])/25)*10) + AAMC_Raw_Data_for_FY22[[#This Row],[25th]]","v":130771.6},{"$f":"(((AAMC_Raw_Data_for_FY22[[#This Row],[Median]]-AAMC_Raw_Data_for_FY22[[#This Row],[25th]])/25)*15) + AAMC_Raw_Data_for_FY22[[#This Row],[25th]]","v":133033.4},{"$f":"(((AAMC_Raw_Data_for_FY22[[#This Row],[Median]]-AAMC_Raw_Data_for_FY22[[#This Row],[25th]])/25)*20) + AAMC_Raw_Data_for_FY22[[#This Row],[25th]]","v":135295.20000000001},137557,{"$f":"(((AAMC_Raw_Data_for_FY22[[#This Row],[75th]]-AAMC_Raw_Data_for_FY22[[#This Row],[Median]])/25)*5) + AAMC_Raw_Data_for_FY22[[#This Row],[Median]]","v":142085.6},{"$f":"(((AAMC_Raw_Data_for_FY22[[#This Row],[75th]]-AAMC_Raw_Data_for_FY22[[#This Row],[Median]])/25)*10) + AAMC_Raw_Data_for_FY22[[#This Row],[Median]]","v":146614.20000000001},{"$f":"(((AAMC_Raw_Data_for_FY22[[#This Row],[75th]]-AAMC_Raw_Data_for_FY22[[#This Row],[Median]])/25)*15) + AAMC_Raw_Data_for_FY22[[#This Row],[Median]]","v":151142.79999999999},{"$f":"(((AAMC_Raw_Data_for_FY22[[#This Row],[75th]]-AAMC_Raw_Data_for_FY22[[#This Row],[Median]])/25)*20) + AAMC_Raw_Data_for_FY22[[#This Row],[Median]]","v":155671.4},160200,{"$f":"(((AAMC_Raw_Data_for_FY22[[#This Row],[75th]]-AAMC_Raw_Data_for_FY22[[#This Row],[Median]])/25)*30) + AAMC_Raw_Data_for_FY22[[#This Row],[Median]]","v":164728.6},{"$f":"(((AAMC_Raw_Data_for_FY22[[#This Row],[75th]]-AAMC_Raw_Data_for_FY22[[#This Row],[Median]])/25)*35) + AAMC_Raw_Data_for_FY22[[#This Row],[Median]]","v":169257.2},{"$f":"(((AAMC_Raw_Data_for_FY22[[#This Row],[75th]]-AAMC_Raw_Data_for_FY22[[#This Row],[Median]])/25)*40) + AAMC_Raw_Data_for_FY22[[#This Row],[Median]]","v":173785.8}]
[{"$f":"AAMC_Raw_Data_for_FY22[[#This Row],[Source]]&AAMC_Raw_Data_for_FY22[[#This Row],[Type]]&AAMC_Raw_Data_for_FY22[[#This Row],[School Subset]]&AAMC_Raw_Data_for_FY22[[#This Row],[Rank]]&AAMC_Raw_Data_for_FY22[[#This Row],[Degree]]&AAMC_Raw_Data_for_FY22[[#This Row],[Department / Specialty]]&\"L\"","v":"AAMCAcademicAllProfessorPhDAllergy/Immunology-Med.L"},"Allergy/Immunology-Med.",2,"AAMC","Academic","All","Professor","PhD","2021-2022",161331,{"$f":"(((AAMC_Raw_Data_for_FY22[[#This Row],[Median]]-AAMC_Raw_Data_for_FY22[[#This Row],[25th]])/25)*5) + AAMC_Raw_Data_for_FY22[[#This Row],[25th]]","v":168599.2},{"$f":"(((AAMC_Raw_Data_for_FY22[[#This Row],[Median]]-AAMC_Raw_Data_for_FY22[[#This Row],[25th]])/25)*10) + AAMC_Raw_Data_for_FY22[[#This Row],[25th]]","v":175867.4},{"$f":"(((AAMC_Raw_Data_for_FY22[[#This Row],[Median]]-AAMC_Raw_Data_for_FY22[[#This Row],[25th]])/25)*15) + AAMC_Raw_Data_for_FY22[[#This Row],[25th]]","v":183135.6},{"$f":"(((AAMC_Raw_Data_for_FY22[[#This Row],[Median]]-AAMC_Raw_Data_for_FY22[[#This Row],[25th]])/25)*20) + AAMC_Raw_Data_for_FY22[[#This Row],[25th]]","v":190403.8},197672,{"$f":"(((AAMC_Raw_Data_for_FY22[[#This Row],[75th]]-AAMC_Raw_Data_for_FY22[[#This Row],[Median]])/25)*5) + AAMC_Raw_Data_for_FY22[[#This Row],[Median]]","v":199926.8},{"$f":"(((AAMC_Raw_Data_for_FY22[[#This Row],[75th]]-AAMC_Raw_Data_for_FY22[[#This Row],[Median]])/25)*10) + AAMC_Raw_Data_for_FY22[[#This Row],[Median]]","v":202181.6},{"$f":"(((AAMC_Raw_Data_for_FY22[[#This Row],[75th]]-AAMC_Raw_Data_for_FY22[[#This Row],[Median]])/25)*15) + AAMC_Raw_Data_for_FY22[[#This Row],[Median]]","v":204436.4},{"$f":"(((AAMC_Raw_Data_for_FY22[[#This Row],[75th]]-AAMC_Raw_Data_for_FY22[[#This Row],[Median]])/25)*20) + AAMC_Raw_Data_for_FY22[[#This Row],[Median]]","v":206691.20000000001},208946,{"$f":"(((AAMC_Raw_Data_for_FY22[[#This Row],[75th]]-AAMC_Raw_Data_for_FY22[[#This Row],[Median]])/25)*30) + AAMC_Raw_Data_for_FY22[[#This Row],[Median]]","v":211200.8},{"$f":"(((AAMC_Raw_Data_for_FY22[[#This Row],[75th]]-AAMC_Raw_Data_for_FY22[[#This Row],[Median]])/25)*35) + AAMC_Raw_Data_for_FY22[[#This Row],[Median]]","v":213455.6},{"$f":"(((AAMC_Raw_Data_for_FY22[[#This Row],[75th]]-AAMC_Raw_Data_for_FY22[[#This Row],[Median]])/25)*40) + AAMC_Raw_Data_for_FY22[[#This Row],[Median]]","v":215710.4}]
[{"$f":"AAMC_Raw_Data_for_FY22[[#This Row],[Source]]&AAMC_Raw_Data_for_FY22[[#This Row],[Type]]&AAMC_Raw_Data_for_FY22[[#This Row],[School Subset]]&AAMC_Raw_Data_for_FY22[[#This Row],[Rank]]&AAMC_Raw_Data_for_FY22[[#This Row],[Degree]]&AAMC_Raw_Data_for_FY22[[#This Row],[Department / Specialty]]&\"L\"","v":"AAMCAcademicAllChiefPhDAllergy/Immunology-Med.L"},"Allergy/Immunology-Med.",6,"AAMC","Academic","All","Chief","PhD","2021-2022",null,{"$f":"(((AAMC_Raw_Data_for_FY22[[#This Row],[Median]]-AAMC_Raw_Data_for_FY22[[#This Row],[25th]])/25)*5) + AAMC_Raw_Data_for_FY22[[#This Row],[25th]]","v":0},{"$f":"(((AAMC_Raw_Data_for_FY22[[#This Row],[Median]]-AAMC_Raw_Data_for_FY22[[#This Row],[25th]])/25)*10) + AAMC_Raw_Data_for_FY22[[#This Row],[25th]]","v":0},{"$f":"(((AAMC_Raw_Data_for_FY22[[#This Row],[Median]]-AAMC_Raw_Data_for_FY22[[#This Row],[25th]])/25)*15) + AAMC_Raw_Data_for_FY22[[#This Row],[25th]]","v":0},{"$f":"(((AAMC_Raw_Data_for_FY22[[#This Row],[Median]]-AAMC_Raw_Data_for_FY22[[#This Row],[25th]])/25)*20) + AAMC_Raw_Data_for_FY22[[#This Row],[25th]]","v":0},null,{"$f":"(((AAMC_Raw_Data_for_FY22[[#This Row],[75th]]-AAMC_Raw_Data_for_FY22[[#This Row],[Median]])/25)*5) + AAMC_Raw_Data_for_FY22[[#This Row],[Median]]","v":0},{"$f":"(((AAMC_Raw_Data_for_FY22[[#This Row],[75th]]-AAMC_Raw_Data_for_FY22[[#This Row],[Median]])/25)*10) + AAMC_Raw_Data_for_FY22[[#This Row],[Median]]","v":0},{"$f":"(((AAMC_Raw_Data_for_FY22[[#This Row],[75th]]-AAMC_Raw_Data_for_FY22[[#This Row],[Median]])/25)*15) + AAMC_Raw_Data_for_FY22[[#This Row],[Median]]","v":0},{"$f":"(((AAMC_Raw_Data_for_FY22[[#This Row],[75th]]-AAMC_Raw_Data_for_FY22[[#This Row],[Median]])/25)*20) + AAMC_Raw_Data_for_FY22[[#This Row],[Median]]","v":0},null,{"$f":"(((AAMC_Raw_Data_for_FY22[[#This Row],[75th]]-AAMC_Raw_Data_for_FY22[[#This Row],[Median]])/25)*30) + AAMC_Raw_Data_for_FY22[[#This Row],[Median]]","v":0},{"$f":"(((AAMC_Raw_Data_for_FY22[[#This Row],[75th]]-AAMC_Raw_Data_for_FY22[[#This Row],[Median]])/25)*35) + AAMC_Raw_Data_for_FY22[[#This Row],[Median]]","v":0},{"$f":"(((AAMC_Raw_Data_for_FY22[[#This Row],[75th]]-AAMC_Raw_Data_for_FY22[[#This Row],[Median]])/25)*40) + AAMC_Raw_Data_for_FY22[[#This Row],[Median]]","v":0}]
[{"$f":"AAMC_Raw_Data_for_FY22[[#This Row],[Source]]&AAMC_Raw_Data_for_FY22[[#This Row],[Type]]&AAMC_Raw_Data_for_FY22[[#This Row],[School Subset]]&AAMC_Raw_Data_for_FY22[[#This Row],[Rank]]&AAMC_Raw_Data_for_FY22[[#This Row],[Degree]]&AAMC_Raw_Data_for_FY22[[#This Row],[Department / Specialty]]&\"L\"","v":"AAMCAcademicAllChairPhDAllergy/Immunology-Med.L"},"Allergy/Immunology-Med.",1,"AAMC","Academic","All","Chair","PhD","2021-2022",null,{"$f":"(((AAMC_Raw_Data_for_FY22[[#This Row],[Median]]-AAMC_Raw_Data_for_FY22[[#This Row],[25th]])/25)*5) + AAMC_Raw_Data_for_FY22[[#This Row],[25th]]","v":0},{"$f":"(((AAMC_Raw_Data_for_FY22[[#This Row],[Median]]-AAMC_Raw_Data_for_FY22[[#This Row],[25th]])/25)*10) + AAMC_Raw_Data_for_FY22[[#This Row],[25th]]","v":0},{"$f":"(((AAMC_Raw_Data_for_FY22[[#This Row],[Median]]-AAMC_Raw_Data_for_FY22[[#This Row],[25th]])/25)*15) + AAMC_Raw_Data_for_FY22[[#This Row],[25th]]","v":0},{"$f":"(((AAMC_Raw_Data_for_FY22[[#This Row],[Median]]-AAMC_Raw_Data_for_FY22[[#This Row],[25th]])/25)*20) + AAMC_Raw_Data_for_FY22[[#This Row],[25th]]","v":0},null,{"$f":"(((AAMC_Raw_Data_for_FY22[[#This Row],[75th]]-AAMC_Raw_Data_for_FY22[[#This Row],[Median]])/25)*5) + AAMC_Raw_Data_for_FY22[[#This Row],[Median]]","v":0},{"$f":"(((AAMC_Raw_Data_for_FY22[[#This Row],[75th]]-AAMC_Raw_Data_for_FY22[[#This Row],[Median]])/25)*10) + AAMC_Raw_Data_for_FY22[[#This Row],[Median]]","v":0},{"$f":"(((AAMC_Raw_Data_for_FY22[[#This Row],[75th]]-AAMC_Raw_Data_for_FY22[[#This Row],[Median]])/25)*15) + AAMC_Raw_Data_for_FY22[[#This Row],[Median]]","v":0},{"$f":"(((AAMC_Raw_Data_for_FY22[[#This Row],[75th]]-AAMC_Raw_Data_for_FY22[[#This Row],[Median]])/25)*20) + AAMC_Raw_Data_for_FY22[[#This Row],[Median]]","v":0},null,{"$f":"(((AAMC_Raw_Data_for_FY22[[#This Row],[75th]]-AAMC_Raw_Data_for_FY22[[#This Row],[Median]])/25)*30) + AAMC_Raw_Data_for_FY22[[#This Row],[Median]]","v":0},{"$f":"(((AAMC_Raw_Data_for_FY22[[#This Row],[75th]]-AAMC_Raw_Data_for_FY22[[#This Row],[Median]])/25)*35) + AAMC_Raw_Data_for_FY22[[#This Row],[Median]]","v":0},{"$f":"(((AAMC_Raw_Data_for_FY22[[#This Row],[75th]]-AAMC_Raw_Data_for_FY22[[#This Row],[Median]])/25)*40) + AAMC_Raw_Data_for_FY22[[#This Row],[Median]]","v":0}]
[{"$f":"AAMC_Raw_Data_for_FY22[[#This Row],[Source]]&AAMC_Raw_Data_for_FY22[[#This Row],[Type]]&AAMC_Raw_Data_for_FY22[[#This Row],[School Subset]]&AAMC_Raw_Data_for_FY22[[#This Row],[Rank]]&AAMC_Raw_Data_for_FY22[[#This Row],[Degree]]&AAMC_Raw_Data_for_FY22[[#This Row],[Department / Specialty]]&\"L\"","v":"AAMCAcademicAllInstructorPhDCardiology TotalL"},"Cardiology Total",5,"AAMC","Academic","All","Instructor","PhD","2021-2022",63551,{"$f":"(((AAMC_Raw_Data_for_FY22[[#This Row],[Median]]-AAMC_Raw_Data_for_FY22[[#This Row],[25th]])/25)*5) + AAMC_Raw_Data_for_FY22[[#This Row],[25th]]","v":68914.2},{"$f":"(((AAMC_Raw_Data_for_FY22[[#This Row],[Median]]-AAMC_Raw_Data_for_FY22[[#This Row],[25th]])/25)*10) + AAMC_Raw_Data_for_FY22[[#This Row],[25th]]","v":74277.399999999994},{"$f":"(((AAMC_Raw_Data_for_FY22[[#This Row],[Median]]-AAMC_Raw_Data_for_FY22[[#This Row],[25th]])/25)*15) + AAMC_Raw_Data_for_FY22[[#This Row],[25th]]","v":79640.600000000006},{"$f":"(((AAMC_Raw_Data_for_FY22[[#This Row],[Median]]-AAMC_Raw_Data_for_FY22[[#This Row],[25th]])/25)*20) + AAMC_Raw_Data_for_FY22[[#This Row],[25th]]","v":85003.8},90367,{"$f":"(((AAMC_Raw_Data_for_FY22[[#This Row],[75th]]-AAMC_Raw_Data_for_FY22[[#This Row],[Median]])/25)*5) + AAMC_Raw_Data_for_FY22[[#This Row],[Median]]","v":93122.4},{"$f":"(((AAMC_Raw_Data_for_FY22[[#This Row],[75th]]-AAMC_Raw_Data_for_FY22[[#This Row],[Median]])/25)*10) + AAMC_Raw_Data_for_FY22[[#This Row],[Median]]","v":95877.8},{"$f":"(((AAMC_Raw_Data_for_FY22[[#This Row],[75th]]-AAMC_Raw_Data_for_FY22[[#This Row],[Median]])/25)*15) + AAMC_Raw_Data_for_FY22[[#This Row],[Median]]","v":98633.2},{"$f":"(((AAMC_Raw_Data_for_FY22[[#This Row],[75th]]-AAMC_Raw_Data_for_FY22[[#This Row],[Median]])/25)*20) + AAMC_Raw_Data_for_FY22[[#This Row],[Median]]","v":101388.6},104144,{"$f":"(((AAMC_Raw_Data_for_FY22[[#This Row],[75th]]-AAMC_Raw_Data_for_FY22[[#This Row],[Median]])/25)*30) + AAMC_Raw_Data_for_FY22[[#This Row],[Median]]","v":106899.4},{"$f":"(((AAMC_Raw_Data_for_FY22[[#This Row],[75th]]-AAMC_Raw_Data_for_FY22[[#This Row],[Median]])/25)*35) + AAMC_Raw_Data_for_FY22[[#This Row],[Median]]","v":109654.8},{"$f":"(((AAMC_Raw_Data_for_FY22[[#This Row],[75th]]-AAMC_Raw_Data_for_FY22[[#This Row],[Median]])/25)*40) + AAMC_Raw_Data_for_FY22[[#This Row],[Median]]","v":112410.2}]
[{"$f":"AAMC_Raw_Data_for_FY22[[#This Row],[Source]]&AAMC_Raw_Data_for_FY22[[#This Row],[Type]]&AAMC_Raw_Data_for_FY22[[#This Row],[School Subset]]&AAMC_Raw_Data_for_FY22[[#This Row],[Rank]]&AAMC_Raw_Data_for_FY22[[#This Row],[Degree]]&AAMC_Raw_Data_for_FY22[[#This Row],[Department / Specialty]]&\"L\"","v":"AAMCAcademicAllAssistantPhDCardiology TotalL"},"Cardiology Total",4,"AAMC","Academic","All","Assistant","PhD","2021-2022",88529,{"$f":"(((AAMC_Raw_Data_for_FY22[[#This Row],[Median]]-AAMC_Raw_Data_for_FY22[[#This Row],[25th]])/25)*5) + AAMC_Raw_Data_for_FY22[[#This Row],[25th]]","v":92823.2},{"$f":"(((AAMC_Raw_Data_for_FY22[[#This Row],[Median]]-AAMC_Raw_Data_for_FY22[[#This Row],[25th]])/25)*10) + AAMC_Raw_Data_for_FY22[[#This Row],[25th]]","v":97117.4},{"$f":"(((AAMC_Raw_Data_for_FY22[[#This Row],[Median]]-AAMC_Raw_Data_for_FY22[[#This Row],[25th]])/25)*15) + AAMC_Raw_Data_for_FY22[[#This Row],[25th]]","v":101411.6},{"$f":"(((AAMC_Raw_Data_for_FY22[[#This Row],[Median]]-AAMC_Raw_Data_for_FY22[[#This Row],[25th]])/25)*20) + AAMC_Raw_Data_for_FY22[[#This Row],[25th]]","v":105705.8},110000,{"$f":"(((AAMC_Raw_Data_for_FY22[[#This Row],[75th]]-AAMC_Raw_Data_for_FY22[[#This Row],[Median]])/25)*5) + AAMC_Raw_Data_for_FY22[[#This Row],[Median]]","v":116233.60000000001},{"$f":"(((AAMC_Raw_Data_for_FY22[[#This Row],[75th]]-AAMC_Raw_Data_for_FY22[[#This Row],[Median]])/25)*10) + AAMC_Raw_Data_for_FY22[[#This Row],[Median]]","v":122467.2},{"$f":"(((AAMC_Raw_Data_for_FY22[[#This Row],[75th]]-AAMC_Raw_Data_for_FY22[[#This Row],[Median]])/25)*15) + AAMC_Raw_Data_for_FY22[[#This Row],[Median]]","v":128700.8},{"$f":"(((AAMC_Raw_Data_for_FY22[[#This Row],[75th]]-AAMC_Raw_Data_for_FY22[[#This Row],[Median]])/25)*20) + AAMC_Raw_Data_for_FY22[[#This Row],[Median]]","v":134934.39999999999},141168,{"$f":"(((AAMC_Raw_Data_for_FY22[[#This Row],[75th]]-AAMC_Raw_Data_for_FY22[[#This Row],[Median]])/25)*30) + AAMC_Raw_Data_for_FY22[[#This Row],[Median]]","v":147401.60000000001},{"$f":"(((AAMC_Raw_Data_for_FY22[[#This Row],[75th]]-AAMC_Raw_Data_for_FY22[[#This Row],[Median]])/25)*35) + AAMC_Raw_Data_for_FY22[[#This Row],[Median]]","v":153635.20000000001},{"$f":"(((AAMC_Raw_Data_for_FY22[[#This Row],[75th]]-AAMC_Raw_Data_for_FY22[[#This Row],[Median]])/25)*40) + AAMC_Raw_Data_for_FY22[[#This Row],[Median]]","v":159868.79999999999}]
[{"$f":"AAMC_Raw_Data_for_FY22[[#This Row],[Source]]&AAMC_Raw_Data_for_FY22[[#This Row],[Type]]&AAMC_Raw_Data_for_FY22[[#This Row],[School Subset]]&AAMC_Raw_Data_for_FY22[[#This Row],[Rank]]&AAMC_Raw_Data_for_FY22[[#This Row],[Degree]]&AAMC_Raw_Data_for_FY22[[#This Row],[Department / Specialty]]&\"L\"","v":"AAMCAcademicAllAssociatePhDCardiology TotalL"},"Cardiology Total",3,"AAMC","Academic","All","Associate","PhD","2021-2022",119859,{"$f":"(((AAMC_Raw_Data_for_FY22[[#This Row],[Median]]-AAMC_Raw_Data_for_FY22[[#This Row],[25th]])/25)*5) + AAMC_Raw_Data_for_FY22[[#This Row],[25th]]","v":124681.2},{"$f":"(((AAMC_Raw_Data_for_FY22[[#This Row],[Median]]-AAMC_Raw_Data_for_FY22[[#This Row],[25th]])/25)*10) + AAMC_Raw_Data_for_FY22[[#This Row],[25th]]","v":129503.4},{"$f":"(((AAMC_Raw_Data_for_FY22[[#This Row],[Median]]-AAMC_Raw_Data_for_FY22[[#This Row],[25th]])/25)*15) + AAMC_Raw_Data_for_FY22[[#This Row],[25th]]","v":134325.6},{"$f":"(((AAMC_Raw_Data_for_FY22[[#This Row],[Median]]-AAMC_Raw_Data_for_FY22[[#This Row],[25th]])/25)*20) + AAMC_Raw_Data_for_FY22[[#This Row],[25th]]","v":139147.79999999999},143970,{"$f":"(((AAMC_Raw_Data_for_FY22[[#This Row],[75th]]-AAMC_Raw_Data_for_FY22[[#This Row],[Median]])/25)*5) + AAMC_Raw_Data_for_FY22[[#This Row],[Median]]","v":150429},{"$f":"(((AAMC_Raw_Data_for_FY22[[#This Row],[75th]]-AAMC_Raw_Data_for_FY22[[#This Row],[Median]])/25)*10) + AAMC_Raw_Data_for_FY22[[#This Row],[Median]]","v":156888},{"$f":"(((AAMC_Raw_Data_for_FY22[[#This Row],[75th]]-AAMC_Raw_Data_for_FY22[[#This Row],[Median]])/25)*15) + AAMC_Raw_Data_for_FY22[[#This Row],[Median]]","v":163347},{"$f":"(((AAMC_Raw_Data_for_FY22[[#This Row],[75th]]-AAMC_Raw_Data_for_FY22[[#This Row],[Median]])/25)*20) + AAMC_Raw_Data_for_FY22[[#This Row],[Median]]","v":169806},176265,{"$f":"(((AAMC_Raw_Data_for_FY22[[#This Row],[75th]]-AAMC_Raw_Data_for_FY22[[#This Row],[Median]])/25)*30) + AAMC_Raw_Data_for_FY22[[#This Row],[Median]]","v":182724},{"$f":"(((AAMC_Raw_Data_for_FY22[[#This Row],[75th]]-AAMC_Raw_Data_for_FY22[[#This Row],[Median]])/25)*35) + AAMC_Raw_Data_for_FY22[[#This Row],[Median]]","v":189183},{"$f":"(((AAMC_Raw_Data_for_FY22[[#This Row],[75th]]-AAMC_Raw_Data_for_FY22[[#This Row],[Median]])/25)*40) + AAMC_Raw_Data_for_FY22[[#This Row],[Median]]","v":195642}]
[{"$f":"AAMC_Raw_Data_for_FY22[[#This Row],[Source]]&AAMC_Raw_Data_for_FY22[[#This Row],[Type]]&AAMC_Raw_Data_for_FY22[[#This Row],[School Subset]]&AAMC_Raw_Data_for_FY22[[#This Row],[Rank]]&AAMC_Raw_Data_for_FY22[[#This Row],[Degree]]&AAMC_Raw_Data_for_FY22[[#This Row],[Department / Specialty]]&\"L\"","v":"AAMCAcademicAllProfessorPhDCardiology TotalL"},"Cardiology Total",2,"AAMC","Academic","All","Professor","PhD","2021-2022",181859,{"$f":"(((AAMC_Raw_Data_for_FY22[[#This Row],[Median]]-AAMC_Raw_Data_for_FY22[[#This Row],[25th]])/25)*5) + AAMC_Raw_Data_for_FY22[[#This Row],[25th]]","v":193193.8},{"$f":"(((AAMC_Raw_Data_for_FY22[[#This Row],[Median]]-AAMC_Raw_Data_for_FY22[[#This Row],[25th]])/25)*10) + AAMC_Raw_Data_for_FY22[[#This Row],[25th]]","v":204528.6},{"$f":"(((AAMC_Raw_Data_for_FY22[[#This Row],[Median]]-AAMC_Raw_Data_for_FY22[[#This Row],[25th]])/25)*15) + AAMC_Raw_Data_for_FY22[[#This Row],[25th]]","v":215863.4},{"$f":"(((AAMC_Raw_Data_for_FY22[[#This Row],[Median]]-AAMC_Raw_Data_for_FY22[[#This Row],[25th]])/25)*20) + AAMC_Raw_Data_for_FY22[[#This Row],[25th]]","v":227198.2},238533,{"$f":"(((AAMC_Raw_Data_for_FY22[[#This Row],[75th]]-AAMC_Raw_Data_for_FY22[[#This Row],[Median]])/25)*5) + AAMC_Raw_Data_for_FY22[[#This Row],[Median]]","v":246046.4},{"$f":"(((AAMC_Raw_Data_for_FY22[[#This Row],[75th]]-AAMC_Raw_Data_for_FY22[[#This Row],[Median]])/25)*10) + AAMC_Raw_Data_for_FY22[[#This Row],[Median]]","v":253559.8},{"$f":"(((AAMC_Raw_Data_for_FY22[[#This Row],[75th]]-AAMC_Raw_Data_for_FY22[[#This Row],[Median]])/25)*15) + AAMC_Raw_Data_for_FY22[[#This Row],[Median]]","v":261073.2},{"$f":"(((AAMC_Raw_Data_for_FY22[[#This Row],[75th]]-AAMC_Raw_Data_for_FY22[[#This Row],[Median]])/25)*20) + AAMC_Raw_Data_for_FY22[[#This Row],[Median]]","v":268586.59999999998},276100,{"$f":"(((AAMC_Raw_Data_for_FY22[[#This Row],[75th]]-AAMC_Raw_Data_for_FY22[[#This Row],[Median]])/25)*30) + AAMC_Raw_Data_for_FY22[[#This Row],[Median]]","v":283613.40000000002},{"$f":"(((AAMC_Raw_Data_for_FY22[[#This Row],[75th]]-AAMC_Raw_Data_for_FY22[[#This Row],[Median]])/25)*35) + AAMC_Raw_Data_for_FY22[[#This Row],[Median]]","v":291126.8},{"$f":"(((AAMC_Raw_Data_for_FY22[[#This Row],[75th]]-AAMC_Raw_Data_for_FY22[[#This Row],[Median]])/25)*40) + AAMC_Raw_Data_for_FY22[[#This Row],[Median]]","v":298640.2}]
[{"$f":"AAMC_Raw_Data_for_FY22[[#This Row],[Source]]&AAMC_Raw_Data_for_FY22[[#This Row],[Type]]&AAMC_Raw_Data_for_FY22[[#This Row],[School Subset]]&AAMC_Raw_Data_for_FY22[[#This Row],[Rank]]&AAMC_Raw_Data_for_FY22[[#This Row],[Degree]]&AAMC_Raw_Data_for_FY22[[#This Row],[Department / Specialty]]&\"L\"","v":"AAMCAcademicAllInstructorPhDCardiology: Invasive Interventional-Med.L"},"Cardiology: Invasive Interventional-Med.",5,"AAMC","Academic","All","Instructor","PhD","2021-2022",null,{"$f":"(((AAMC_Raw_Data_for_FY22[[#This Row],[Median]]-AAMC_Raw_Data_for_FY22[[#This Row],[25th]])/25)*5) + AAMC_Raw_Data_for_FY22[[#This Row],[25th]]","v":0},{"$f":"(((AAMC_Raw_Data_for_FY22[[#This Row],[Median]]-AAMC_Raw_Data_for_FY22[[#This Row],[25th]])/25)*10) + AAMC_Raw_Data_for_FY22[[#This Row],[25th]]","v":0},{"$f":"(((AAMC_Raw_Data_for_FY22[[#This Row],[Median]]-AAMC_Raw_Data_for_FY22[[#This Row],[25th]])/25)*15) + AAMC_Raw_Data_for_FY22[[#This Row],[25th]]","v":0},{"$f":"(((AAMC_Raw_Data_for_FY22[[#This Row],[Median]]-AAMC_Raw_Data_for_FY22[[#This Row],[25th]])/25)*20) + AAMC_Raw_Data_for_FY22[[#This Row],[25th]]","v":0},null,{"$f":"(((AAMC_Raw_Data_for_FY22[[#This Row],[75th]]-AAMC_Raw_Data_for_FY22[[#This Row],[Median]])/25)*5) + AAMC_Raw_Data_for_FY22[[#This Row],[Median]]","v":0},{"$f":"(((AAMC_Raw_Data_for_FY22[[#This Row],[75th]]-AAMC_Raw_Data_for_FY22[[#This Row],[Median]])/25)*10) + AAMC_Raw_Data_for_FY22[[#This Row],[Median]]","v":0},{"$f":"(((AAMC_Raw_Data_for_FY22[[#This Row],[75th]]-AAMC_Raw_Data_for_FY22[[#This Row],[Median]])/25)*15) + AAMC_Raw_Data_for_FY22[[#This Row],[Median]]","v":0},{"$f":"(((AAMC_Raw_Data_for_FY22[[#This Row],[75th]]-AAMC_Raw_Data_for_FY22[[#This Row],[Median]])/25)*20) + AAMC_Raw_Data_for_FY22[[#This Row],[Median]]","v":0},null,{"$f":"(((AAMC_Raw_Data_for_FY22[[#This Row],[75th]]-AAMC_Raw_Data_for_FY22[[#This Row],[Median]])/25)*30) + AAMC_Raw_Data_for_FY22[[#This Row],[Median]]","v":0},{"$f":"(((AAMC_Raw_Data_for_FY22[[#This Row],[75th]]-AAMC_Raw_Data_for_FY22[[#This Row],[Median]])/25)*35) + AAMC_Raw_Data_for_FY22[[#This Row],[Median]]","v":0},{"$f":"(((AAMC_Raw_Data_for_FY22[[#This Row],[75th]]-AAMC_Raw_Data_for_FY22[[#This Row],[Median]])/25)*40) + AAMC_Raw_Data_for_FY22[[#This Row],[Median]]","v":0}]
[{"$f":"AAMC_Raw_Data_for_FY22[[#This Row],[Source]]&AAMC_Raw_Data_for_FY22[[#This Row],[Type]]&AAMC_Raw_Data_for_FY22[[#This Row],[School Subset]]&AAMC_Raw_Data_for_FY22[[#This Row],[Rank]]&AAMC_Raw_Data_for_FY22[[#This Row],[Degree]]&AAMC_Raw_Data_for_FY22[[#This Row],[Department / Specialty]]&\"L\"","v":"AAMCAcademicAllAssistantPhDCardiology: Invasive Interventional-Med.L"},"Cardiology: Invasive Interventional-Med.",4,"AAMC","Academic","All","Assistant","PhD","2021-2022",99713,{"$f":"(((AAMC_Raw_Data_for_FY22[[#This Row],[Median]]-AAMC_Raw_Data_for_FY22[[#This Row],[25th]])/25)*5) + AAMC_Raw_Data_for_FY22[[#This Row],[25th]]","v":105790.39999999999},{"$f":"(((AAMC_Raw_Data_for_FY22[[#This Row],[Median]]-AAMC_Raw_Data_for_FY22[[#This Row],[25th]])/25)*10) + AAMC_Raw_Data_for_FY22[[#This Row],[25th]]","v":111867.8},{"$f":"(((AAMC_Raw_Data_for_FY22[[#This Row],[Median]]-AAMC_Raw_Data_for_FY22[[#This Row],[25th]])/25)*15) + AAMC_Raw_Data_for_FY22[[#This Row],[25th]]","v":117945.2},{"$f":"(((AAMC_Raw_Data_for_FY22[[#This Row],[Median]]-AAMC_Raw_Data_for_FY22[[#This Row],[25th]])/25)*20) + AAMC_Raw_Data_for_FY22[[#This Row],[25th]]","v":124022.6},130100,{"$f":"(((AAMC_Raw_Data_for_FY22[[#This Row],[75th]]-AAMC_Raw_Data_for_FY22[[#This Row],[Median]])/25)*5) + AAMC_Raw_Data_for_FY22[[#This Row],[Median]]","v":142703.4},{"$f":"(((AAMC_Raw_Data_for_FY22[[#This Row],[75th]]-AAMC_Raw_Data_for_FY22[[#This Row],[Median]])/25)*10) + AAMC_Raw_Data_for_FY22[[#This Row],[Median]]","v":155306.79999999999},{"$f":"(((AAMC_Raw_Data_for_FY22[[#This Row],[75th]]-AAMC_Raw_Data_for_FY22[[#This Row],[Median]])/25)*15) + AAMC_Raw_Data_for_FY22[[#This Row],[Median]]","v":167910.2},{"$f":"(((AAMC_Raw_Data_for_FY22[[#This Row],[75th]]-AAMC_Raw_Data_for_FY22[[#This Row],[Median]])/25)*20) + AAMC_Raw_Data_for_FY22[[#This Row],[Median]]","v":180513.6},193117,{"$f":"(((AAMC_Raw_Data_for_FY22[[#This Row],[75th]]-AAMC_Raw_Data_for_FY22[[#This Row],[Median]])/25)*30) + AAMC_Raw_Data_for_FY22[[#This Row],[Median]]","v":205720.4},{"$f":"(((AAMC_Raw_Data_for_FY22[[#This Row],[75th]]-AAMC_Raw_Data_for_FY22[[#This Row],[Median]])/25)*35) + AAMC_Raw_Data_for_FY22[[#This Row],[Median]]","v":218323.8},{"$f":"(((AAMC_Raw_Data_for_FY22[[#This Row],[75th]]-AAMC_Raw_Data_for_FY22[[#This Row],[Median]])/25)*40) + AAMC_Raw_Data_for_FY22[[#This Row],[Median]]","v":230927.2}]
[{"$f":"AAMC_Raw_Data_for_FY22[[#This Row],[Source]]&AAMC_Raw_Data_for_FY22[[#This Row],[Type]]&AAMC_Raw_Data_for_FY22[[#This Row],[School Subset]]&AAMC_Raw_Data_for_FY22[[#This Row],[Rank]]&AAMC_Raw_Data_for_FY22[[#This Row],[Degree]]&AAMC_Raw_Data_for_FY22[[#This Row],[Department / Specialty]]&\"L\"","v":"AAMCAcademicAllAssociatePhDCardiology: Invasive Interventional-Med.L"},"Cardiology: Invasive Interventional-Med.",3,"AAMC","Academic","All","Associate","PhD","2021-2022",126000,{"$f":"(((AAMC_Raw_Data_for_FY22[[#This Row],[Median]]-AAMC_Raw_Data_for_FY22[[#This Row],[25th]])/25)*5) + AAMC_Raw_Data_for_FY22[[#This Row],[25th]]","v":129380},{"$f":"(((AAMC_Raw_Data_for_FY22[[#This Row],[Median]]-AAMC_Raw_Data_for_FY22[[#This Row],[25th]])/25)*10) + AAMC_Raw_Data_for_FY22[[#This Row],[25th]]","v":132760},{"$f":"(((AAMC_Raw_Data_for_FY22[[#This Row],[Median]]-AAMC_Raw_Data_for_FY22[[#This Row],[25th]])/25)*15) + AAMC_Raw_Data_for_FY22[[#This Row],[25th]]","v":136140},{"$f":"(((AAMC_Raw_Data_for_FY22[[#This Row],[Median]]-AAMC_Raw_Data_for_FY22[[#This Row],[25th]])/25)*20) + AAMC_Raw_Data_for_FY22[[#This Row],[25th]]","v":139520},142900,{"$f":"(((AAMC_Raw_Data_for_FY22[[#This Row],[75th]]-AAMC_Raw_Data_for_FY22[[#This Row],[Median]])/25)*5) + AAMC_Raw_Data_for_FY22[[#This Row],[Median]]","v":147264},{"$f":"(((AAMC_Raw_Data_for_FY22[[#This Row],[75th]]-AAMC_Raw_Data_for_FY22[[#This Row],[Median]])/25)*10) + AAMC_Raw_Data_for_FY22[[#This Row],[Median]]","v":151628},{"$f":"(((AAMC_Raw_Data_for_FY22[[#This Row],[75th]]-AAMC_Raw_Data_for_FY22[[#This Row],[Median]])/25)*15) + AAMC_Raw_Data_for_FY22[[#This Row],[Median]]","v":155992},{"$f":"(((AAMC_Raw_Data_for_FY22[[#This Row],[75th]]-AAMC_Raw_Data_for_FY22[[#This Row],[Median]])/25)*20) + AAMC_Raw_Data_for_FY22[[#This Row],[Median]]","v":160356},164720,{"$f":"(((AAMC_Raw_Data_for_FY22[[#This Row],[75th]]-AAMC_Raw_Data_for_FY22[[#This Row],[Median]])/25)*30) + AAMC_Raw_Data_for_FY22[[#This Row],[Median]]","v":169084},{"$f":"(((AAMC_Raw_Data_for_FY22[[#This Row],[75th]]-AAMC_Raw_Data_for_FY22[[#This Row],[Median]])/25)*35) + AAMC_Raw_Data_for_FY22[[#This Row],[Median]]","v":173448},{"$f":"(((AAMC_Raw_Data_for_FY22[[#This Row],[75th]]-AAMC_Raw_Data_for_FY22[[#This Row],[Median]])/25)*40) + AAMC_Raw_Data_for_FY22[[#This Row],[Median]]","v":177812}]
[{"$f":"AAMC_Raw_Data_for_FY22[[#This Row],[Source]]&AAMC_Raw_Data_for_FY22[[#This Row],[Type]]&AAMC_Raw_Data_for_FY22[[#This Row],[School Subset]]&AAMC_Raw_Data_for_FY22[[#This Row],[Rank]]&AAMC_Raw_Data_for_FY22[[#This Row],[Degree]]&AAMC_Raw_Data_for_FY22[[#This Row],[Department / Specialty]]&\"L\"","v":"AAMCAcademicAllProfessorPhDCardiology: Invasive Interventional-Med.L"},"Cardiology: Invasive Interventional-Med.",2,"AAMC","Academic","All","Professor","PhD","2021-2022",179143,{"$f":"(((AAMC_Raw_Data_for_FY22[[#This Row],[Median]]-AAMC_Raw_Data_for_FY22[[#This Row],[25th]])/25)*5) + AAMC_Raw_Data_for_FY22[[#This Row],[25th]]","v":189140.2},{"$f":"(((AAMC_Raw_Data_for_FY22[[#This Row],[Median]]-AAMC_Raw_Data_for_FY22[[#This Row],[25th]])/25)*10) + AAMC_Raw_Data_for_FY22[[#This Row],[25th]]","v":199137.4},{"$f":"(((AAMC_Raw_Data_for_FY22[[#This Row],[Median]]-AAMC_Raw_Data_for_FY22[[#This Row],[25th]])/25)*15) + AAMC_Raw_Data_for_FY22[[#This Row],[25th]]","v":209134.6},{"$f":"(((AAMC_Raw_Data_for_FY22[[#This Row],[Median]]-AAMC_Raw_Data_for_FY22[[#This Row],[25th]])/25)*20) + AAMC_Raw_Data_for_FY22[[#This Row],[25th]]","v":219131.8},229129,{"$f":"(((AAMC_Raw_Data_for_FY22[[#This Row],[75th]]-AAMC_Raw_Data_for_FY22[[#This Row],[Median]])/25)*5) + AAMC_Raw_Data_for_FY22[[#This Row],[Median]]","v":237669.2},{"$f":"(((AAMC_Raw_Data_for_FY22[[#This Row],[75th]]-AAMC_Raw_Data_for_FY22[[#This Row],[Median]])/25)*10) + AAMC_Raw_Data_for_FY22[[#This Row],[Median]]","v":246209.4},{"$f":"(((AAMC_Raw_Data_for_FY22[[#This Row],[75th]]-AAMC_Raw_Data_for_FY22[[#This Row],[Median]])/25)*15) + AAMC_Raw_Data_for_FY22[[#This Row],[Median]]","v":254749.6},{"$f":"(((AAMC_Raw_Data_for_FY22[[#This Row],[75th]]-AAMC_Raw_Data_for_FY22[[#This Row],[Median]])/25)*20) + AAMC_Raw_Data_for_FY22[[#This Row],[Median]]","v":263289.8},271830,{"$f":"(((AAMC_Raw_Data_for_FY22[[#This Row],[75th]]-AAMC_Raw_Data_for_FY22[[#This Row],[Median]])/25)*30) + AAMC_Raw_Data_for_FY22[[#This Row],[Median]]","v":280370.2},{"$f":"(((AAMC_Raw_Data_for_FY22[[#This Row],[75th]]-AAMC_Raw_Data_for_FY22[[#This Row],[Median]])/25)*35) + AAMC_Raw_Data_for_FY22[[#This Row],[Median]]","v":288910.40000000002},{"$f":"(((AAMC_Raw_Data_for_FY22[[#This Row],[75th]]-AAMC_Raw_Data_for_FY22[[#This Row],[Median]])/25)*40) + AAMC_Raw_Data_for_FY22[[#This Row],[Median]]","v":297450.59999999998}]
[{"$f":"AAMC_Raw_Data_for_FY22[[#This Row],[Source]]&AAMC_Raw_Data_for_FY22[[#This Row],[Type]]&AAMC_Raw_Data_for_FY22[[#This Row],[School Subset]]&AAMC_Raw_Data_for_FY22[[#This Row],[Rank]]&AAMC_Raw_Data_for_FY22[[#This Row],[Degree]]&AAMC_Raw_Data_for_FY22[[#This Row],[Department / Specialty]]&\"L\"","v":"AAMCAcademicAllInstructorPhDCardiology: Invasive Non-interventional-Med.L"},"Cardiology: Invasive Non-interventional-Med.",5,"AAMC","Academic","All","Instructor","PhD","2021-2022",null,{"$f":"(((AAMC_Raw_Data_for_FY22[[#This Row],[Median]]-AAMC_Raw_Data_for_FY22[[#This Row],[25th]])/25)*5) + AAMC_Raw_Data_for_FY22[[#This Row],[25th]]","v":0},{"$f":"(((AAMC_Raw_Data_for_FY22[[#This Row],[Median]]-AAMC_Raw_Data_for_FY22[[#This Row],[25th]])/25)*10) + AAMC_Raw_Data_for_FY22[[#This Row],[25th]]","v":0},{"$f":"(((AAMC_Raw_Data_for_FY22[[#This Row],[Median]]-AAMC_Raw_Data_for_FY22[[#This Row],[25th]])/25)*15) + AAMC_Raw_Data_for_FY22[[#This Row],[25th]]","v":0},{"$f":"(((AAMC_Raw_Data_for_FY22[[#This Row],[Median]]-AAMC_Raw_Data_for_FY22[[#This Row],[25th]])/25)*20) + AAMC_Raw_Data_for_FY22[[#This Row],[25th]]","v":0},null,{"$f":"(((AAMC_Raw_Data_for_FY22[[#This Row],[75th]]-AAMC_Raw_Data_for_FY22[[#This Row],[Median]])/25)*5) + AAMC_Raw_Data_for_FY22[[#This Row],[Median]]","v":0},{"$f":"(((AAMC_Raw_Data_for_FY22[[#This Row],[75th]]-AAMC_Raw_Data_for_FY22[[#This Row],[Median]])/25)*10) + AAMC_Raw_Data_for_FY22[[#This Row],[Median]]","v":0},{"$f":"(((AAMC_Raw_Data_for_FY22[[#This Row],[75th]]-AAMC_Raw_Data_for_FY22[[#This Row],[Median]])/25)*15) + AAMC_Raw_Data_for_FY22[[#This Row],[Median]]","v":0},{"$f":"(((AAMC_Raw_Data_for_FY22[[#This Row],[75th]]-AAMC_Raw_Data_for_FY22[[#This Row],[Median]])/25)*20) + AAMC_Raw_Data_for_FY22[[#This Row],[Median]]","v":0},null,{"$f":"(((AAMC_Raw_Data_for_FY22[[#This Row],[75th]]-AAMC_Raw_Data_for_FY22[[#This Row],[Median]])/25)*30) + AAMC_Raw_Data_for_FY22[[#This Row],[Median]]","v":0},{"$f":"(((AAMC_Raw_Data_for_FY22[[#This Row],[75th]]-AAMC_Raw_Data_for_FY22[[#This Row],[Median]])/25)*35) + AAMC_Raw_Data_for_FY22[[#This Row],[Median]]","v":0},{"$f":"(((AAMC_Raw_Data_for_FY22[[#This Row],[75th]]-AAMC_Raw_Data_for_FY22[[#This Row],[Median]])/25)*40) + AAMC_Raw_Data_for_FY22[[#This Row],[Median]]","v":0}]
[{"$f":"AAMC_Raw_Data_for_FY22[[#This Row],[Source]]&AAMC_Raw_Data_for_FY22[[#This Row],[Type]]&AAMC_Raw_Data_for_FY22[[#This Row],[School Subset]]&AAMC_Raw_Data_for_FY22[[#This Row],[Rank]]&AAMC_Raw_Data_for_FY22[[#This Row],[Degree]]&AAMC_Raw_Data_for_FY22[[#This Row],[Department / Specialty]]&\"L\"","v":"AAMCAcademicAllAssistantPhDCardiology: Invasive Non-interventional-Med.L"},"Cardiology: Invasive Non-interventional-Med.",4,"AAMC","Academic","All","Assistant","PhD","2021-2022",null,{"$f":"(((AAMC_Raw_Data_for_FY22[[#This Row],[Median]]-AAMC_Raw_Data_for_FY22[[#This Row],[25th]])/25)*5) + AAMC_Raw_Data_for_FY22[[#This Row],[25th]]","v":0},{"$f":"(((AAMC_Raw_Data_for_FY22[[#This Row],[Median]]-AAMC_Raw_Data_for_FY22[[#This Row],[25th]])/25)*10) + AAMC_Raw_Data_for_FY22[[#This Row],[25th]]","v":0},{"$f":"(((AAMC_Raw_Data_for_FY22[[#This Row],[Median]]-AAMC_Raw_Data_for_FY22[[#This Row],[25th]])/25)*15) + AAMC_Raw_Data_for_FY22[[#This Row],[25th]]","v":0},{"$f":"(((AAMC_Raw_Data_for_FY22[[#This Row],[Median]]-AAMC_Raw_Data_for_FY22[[#This Row],[25th]])/25)*20) + AAMC_Raw_Data_for_FY22[[#This Row],[25th]]","v":0},null,{"$f":"(((AAMC_Raw_Data_for_FY22[[#This Row],[75th]]-AAMC_Raw_Data_for_FY22[[#This Row],[Median]])/25)*5) + AAMC_Raw_Data_for_FY22[[#This Row],[Median]]","v":0},{"$f":"(((AAMC_Raw_Data_for_FY22[[#This Row],[75th]]-AAMC_Raw_Data_for_FY22[[#This Row],[Median]])/25)*10) + AAMC_Raw_Data_for_FY22[[#This Row],[Median]]","v":0},{"$f":"(((AAMC_Raw_Data_for_FY22[[#This Row],[75th]]-AAMC_Raw_Data_for_FY22[[#This Row],[Median]])/25)*15) + AAMC_Raw_Data_for_FY22[[#This Row],[Median]]","v":0},{"$f":"(((AAMC_Raw_Data_for_FY22[[#This Row],[75th]]-AAMC_Raw_Data_for_FY22[[#This Row],[Median]])/25)*20) + AAMC_Raw_Data_for_FY22[[#This Row],[Median]]","v":0},null,{"$f":"(((AAMC_Raw_Data_for_FY22[[#This Row],[75th]]-AAMC_Raw_Data_for_FY22[[#This Row],[Median]])/25)*30) + AAMC_Raw_Data_for_FY22[[#This Row],[Median]]","v":0},{"$f":"(((AAMC_Raw_Data_for_FY22[[#This Row],[75th]]-AAMC_Raw_Data_for_FY22[[#This Row],[Median]])/25)*35) + AAMC_Raw_Data_for_FY22[[#This Row],[Median]]","v":0},{"$f":"(((AAMC_Raw_Data_for_FY22[[#This Row],[75th]]-AAMC_Raw_Data_for_FY22[[#This Row],[Median]])/25)*40) + AAMC_Raw_Data_for_FY22[[#This Row],[Median]]","v":0}]
[{"$f":"AAMC_Raw_Data_for_FY22[[#This Row],[Source]]&AAMC_Raw_Data_for_FY22[[#This Row],[Type]]&AAMC_Raw_Data_for_FY22[[#This Row],[School Subset]]&AAMC_Raw_Data_for_FY22[[#This Row],[Rank]]&AAMC_Raw_Data_for_FY22[[#This Row],[Degree]]&AAMC_Raw_Data_for_FY22[[#This Row],[Department / Specialty]]&\"L\"","v":"AAMCAcademicAllAssociatePhDCardiology: Invasive Non-interventional-Med.L"},"Cardiology: Invasive Non-interventional-Med.",3,"AAMC","Academic","All","Associate","PhD","2021-2022",null,{"$f":"(((AAMC_Raw_Data_for_FY22[[#This Row],[Median]]-AAMC_Raw_Data_for_FY22[[#This Row],[25th]])/25)*5) + AAMC_Raw_Data_for_FY22[[#This Row],[25th]]","v":0},{"$f":"(((AAMC_Raw_Data_for_FY22[[#This Row],[Median]]-AAMC_Raw_Data_for_FY22[[#This Row],[25th]])/25)*10) + AAMC_Raw_Data_for_FY22[[#This Row],[25th]]","v":0},{"$f":"(((AAMC_Raw_Data_for_FY22[[#This Row],[Median]]-AAMC_Raw_Data_for_FY22[[#This Row],[25th]])/25)*15) + AAMC_Raw_Data_for_FY22[[#This Row],[25th]]","v":0},{"$f":"(((AAMC_Raw_Data_for_FY22[[#This Row],[Median]]-AAMC_Raw_Data_for_FY22[[#This Row],[25th]])/25)*20) + AAMC_Raw_Data_for_FY22[[#This Row],[25th]]","v":0},null,{"$f":"(((AAMC_Raw_Data_for_FY22[[#This Row],[75th]]-AAMC_Raw_Data_for_FY22[[#This Row],[Median]])/25)*5) + AAMC_Raw_Data_for_FY22[[#This Row],[Median]]","v":0},{"$f":"(((AAMC_Raw_Data_for_FY22[[#This Row],[75th]]-AAMC_Raw_Data_for_FY22[[#This Row],[Median]])/25)*10) + AAMC_Raw_Data_for_FY22[[#This Row],[Median]]","v":0},{"$f":"(((AAMC_Raw_Data_for_FY22[[#This Row],[75th]]-AAMC_Raw_Data_for_FY22[[#This Row],[Median]])/25)*15) + AAMC_Raw_Data_for_FY22[[#This Row],[Median]]","v":0},{"$f":"(((AAMC_Raw_Data_for_FY22[[#This Row],[75th]]-AAMC_Raw_Data_for_FY22[[#This Row],[Median]])/25)*20) + AAMC_Raw_Data_for_FY22[[#This Row],[Median]]","v":0},null,{"$f":"(((AAMC_Raw_Data_for_FY22[[#This Row],[75th]]-AAMC_Raw_Data_for_FY22[[#This Row],[Median]])/25)*30) + AAMC_Raw_Data_for_FY22[[#This Row],[Median]]","v":0},{"$f":"(((AAMC_Raw_Data_for_FY22[[#This Row],[75th]]-AAMC_Raw_Data_for_FY22[[#This Row],[Median]])/25)*35) + AAMC_Raw_Data_for_FY22[[#This Row],[Median]]","v":0},{"$f":"(((AAMC_Raw_Data_for_FY22[[#This Row],[75th]]-AAMC_Raw_Data_for_FY22[[#This Row],[Median]])/25)*40) + AAMC_Raw_Data_for_FY22[[#This Row],[Median]]","v":0}]
[{"$f":"AAMC_Raw_Data_for_FY22[[#This Row],[Source]]&AAMC_Raw_Data_for_FY22[[#This Row],[Type]]&AAMC_Raw_Data_for_FY22[[#This Row],[School Subset]]&AAMC_Raw_Data_for_FY22[[#This Row],[Rank]]&AAMC_Raw_Data_for_FY22[[#This Row],[Degree]]&AAMC_Raw_Data_for_FY22[[#This Row],[Department / Specialty]]&\"L\"","v":"AAMCAcademicAllProfessorPhDCardiology: Invasive Non-interventional-Med.L"},"Cardiology: Invasive Non-interventional-Med.",2,"AAMC","Academic","All","Professor","PhD","2021-2022",null,{"$f":"(((AAMC_Raw_Data_for_FY22[[#This Row],[Median]]-AAMC_Raw_Data_for_FY22[[#This Row],[25th]])/25)*5) + AAMC_Raw_Data_for_FY22[[#This Row],[25th]]","v":0},{"$f":"(((AAMC_Raw_Data_for_FY22[[#This Row],[Median]]-AAMC_Raw_Data_for_FY22[[#This Row],[25th]])/25)*10) + AAMC_Raw_Data_for_FY22[[#This Row],[25th]]","v":0},{"$f":"(((AAMC_Raw_Data_for_FY22[[#This Row],[Median]]-AAMC_Raw_Data_for_FY22[[#This Row],[25th]])/25)*15) + AAMC_Raw_Data_for_FY22[[#This Row],[25th]]","v":0},{"$f":"(((AAMC_Raw_Data_for_FY22[[#This Row],[Median]]-AAMC_Raw_Data_for_FY22[[#This Row],[25th]])/25)*20) + AAMC_Raw_Data_for_FY22[[#This Row],[25th]]","v":0},null,{"$f":"(((AAMC_Raw_Data_for_FY22[[#This Row],[75th]]-AAMC_Raw_Data_for_FY22[[#This Row],[Median]])/25)*5) + AAMC_Raw_Data_for_FY22[[#This Row],[Median]]","v":0},{"$f":"(((AAMC_Raw_Data_for_FY22[[#This Row],[75th]]-AAMC_Raw_Data_for_FY22[[#This Row],[Median]])/25)*10) + AAMC_Raw_Data_for_FY22[[#This Row],[Median]]","v":0},{"$f":"(((AAMC_Raw_Data_for_FY22[[#This Row],[75th]]-AAMC_Raw_Data_for_FY22[[#This Row],[Median]])/25)*15) + AAMC_Raw_Data_for_FY22[[#This Row],[Median]]","v":0},{"$f":"(((AAMC_Raw_Data_for_FY22[[#This Row],[75th]]-AAMC_Raw_Data_for_FY22[[#This Row],[Median]])/25)*20) + AAMC_Raw_Data_for_FY22[[#This Row],[Median]]","v":0},null,{"$f":"(((AAMC_Raw_Data_for_FY22[[#This Row],[75th]]-AAMC_Raw_Data_for_FY22[[#This Row],[Median]])/25)*30) + AAMC_Raw_Data_for_FY22[[#This Row],[Median]]","v":0},{"$f":"(((AAMC_Raw_Data_for_FY22[[#This Row],[75th]]-AAMC_Raw_Data_for_FY22[[#This Row],[Median]])/25)*35) + AAMC_Raw_Data_for_FY22[[#This Row],[Median]]","v":0},{"$f":"(((AAMC_Raw_Data_for_FY22[[#This Row],[75th]]-AAMC_Raw_Data_for_FY22[[#This Row],[Median]])/25)*40) + AAMC_Raw_Data_for_FY22[[#This Row],[Median]]","v":0}]
[{"$f":"AAMC_Raw_Data_for_FY22[[#This Row],[Source]]&AAMC_Raw_Data_for_FY22[[#This Row],[Type]]&AAMC_Raw_Data_for_FY22[[#This Row],[School Subset]]&AAMC_Raw_Data_for_FY22[[#This Row],[Rank]]&AAMC_Raw_Data_for_FY22[[#This Row],[Degree]]&AAMC_Raw_Data_for_FY22[[#This Row],[Department / Specialty]]&\"L\"","v":"AAMCAcademicAllInstructorPhDCardiology: Non-invasive-Med.L"},"Cardiology: Non-invasive-Med.",5,"AAMC","Academic","All","Instructor","PhD","2021-2022",62397,{"$f":"(((AAMC_Raw_Data_for_FY22[[#This Row],[Median]]-AAMC_Raw_Data_for_FY22[[#This Row],[25th]])/25)*5) + AAMC_Raw_Data_for_FY22[[#This Row],[25th]]","v":65067.6},{"$f":"(((AAMC_Raw_Data_for_FY22[[#This Row],[Median]]-AAMC_Raw_Data_for_FY22[[#This Row],[25th]])/25)*10) + AAMC_Raw_Data_for_FY22[[#This Row],[25th]]","v":67738.2},{"$f":"(((AAMC_Raw_Data_for_FY22[[#This Row],[Median]]-AAMC_Raw_Data_for_FY22[[#This Row],[25th]])/25)*15) + AAMC_Raw_Data_for_FY22[[#This Row],[25th]]","v":70408.800000000003},{"$f":"(((AAMC_Raw_Data_for_FY22[[#This Row],[Median]]-AAMC_Raw_Data_for_FY22[[#This Row],[25th]])/25)*20) + AAMC_Raw_Data_for_FY22[[#This Row],[25th]]","v":73079.399999999994},75750,{"$f":"(((AAMC_Raw_Data_for_FY22[[#This Row],[75th]]-AAMC_Raw_Data_for_FY22[[#This Row],[Median]])/25)*5) + AAMC_Raw_Data_for_FY22[[#This Row],[Median]]","v":80700.600000000006},{"$f":"(((AAMC_Raw_Data_for_FY22[[#This Row],[75th]]-AAMC_Raw_Data_for_FY22[[#This Row],[Median]])/25)*10) + AAMC_Raw_Data_for_FY22[[#This Row],[Median]]","v":85651.199999999997},{"$f":"(((AAMC_Raw_Data_for_FY22[[#This Row],[75th]]-AAMC_Raw_Data_for_FY22[[#This Row],[Median]])/25)*15) + AAMC_Raw_Data_for_FY22[[#This Row],[Median]]","v":90601.8},{"$f":"(((AAMC_Raw_Data_for_FY22[[#This Row],[75th]]-AAMC_Raw_Data_for_FY22[[#This Row],[Median]])/25)*20) + AAMC_Raw_Data_for_FY22[[#This Row],[Median]]","v":95552.4},100503,{"$f":"(((AAMC_Raw_Data_for_FY22[[#This Row],[75th]]-AAMC_Raw_Data_for_FY22[[#This Row],[Median]])/25)*30) + AAMC_Raw_Data_for_FY22[[#This Row],[Median]]","v":105453.6},{"$f":"(((AAMC_Raw_Data_for_FY22[[#This Row],[75th]]-AAMC_Raw_Data_for_FY22[[#This Row],[Median]])/25)*35) + AAMC_Raw_Data_for_FY22[[#This Row],[Median]]","v":110404.2},{"$f":"(((AAMC_Raw_Data_for_FY22[[#This Row],[75th]]-AAMC_Raw_Data_for_FY22[[#This Row],[Median]])/25)*40) + AAMC_Raw_Data_for_FY22[[#This Row],[Median]]","v":115354.8}]
[{"$f":"AAMC_Raw_Data_for_FY22[[#This Row],[Source]]&AAMC_Raw_Data_for_FY22[[#This Row],[Type]]&AAMC_Raw_Data_for_FY22[[#This Row],[School Subset]]&AAMC_Raw_Data_for_FY22[[#This Row],[Rank]]&AAMC_Raw_Data_for_FY22[[#This Row],[Degree]]&AAMC_Raw_Data_for_FY22[[#This Row],[Department / Specialty]]&\"L\"","v":"AAMCAcademicAllAssistantPhDCardiology: Non-invasive-Med.L"},"Cardiology: Non-invasive-Med.",4,"AAMC","Academic","All","Assistant","PhD","2021-2022",83036,{"$f":"(((AAMC_Raw_Data_for_FY22[[#This Row],[Median]]-AAMC_Raw_Data_for_FY22[[#This Row],[25th]])/25)*5) + AAMC_Raw_Data_for_FY22[[#This Row],[25th]]","v":87848.8},{"$f":"(((AAMC_Raw_Data_for_FY22[[#This Row],[Median]]-AAMC_Raw_Data_for_FY22[[#This Row],[25th]])/25)*10) + AAMC_Raw_Data_for_FY22[[#This Row],[25th]]","v":92661.6},{"$f":"(((AAMC_Raw_Data_for_FY22[[#This Row],[Median]]-AAMC_Raw_Data_for_FY22[[#This Row],[25th]])/25)*15) + AAMC_Raw_Data_for_FY22[[#This Row],[25th]]","v":97474.4},{"$f":"(((AAMC_Raw_Data_for_FY22[[#This Row],[Median]]-AAMC_Raw_Data_for_FY22[[#This Row],[25th]])/25)*20) + AAMC_Raw_Data_for_FY22[[#This Row],[25th]]","v":102287.2},107100,{"$f":"(((AAMC_Raw_Data_for_FY22[[#This Row],[75th]]-AAMC_Raw_Data_for_FY22[[#This Row],[Median]])/25)*5) + AAMC_Raw_Data_for_FY22[[#This Row],[Median]]","v":111180},{"$f":"(((AAMC_Raw_Data_for_FY22[[#This Row],[75th]]-AAMC_Raw_Data_for_FY22[[#This Row],[Median]])/25)*10) + AAMC_Raw_Data_for_FY22[[#This Row],[Median]]","v":115260},{"$f":"(((AAMC_Raw_Data_for_FY22[[#This Row],[75th]]-AAMC_Raw_Data_for_FY22[[#This Row],[Median]])/25)*15) + AAMC_Raw_Data_for_FY22[[#This Row],[Median]]","v":119340},{"$f":"(((AAMC_Raw_Data_for_FY22[[#This Row],[75th]]-AAMC_Raw_Data_for_FY22[[#This Row],[Median]])/25)*20) + AAMC_Raw_Data_for_FY22[[#This Row],[Median]]","v":123420},127500,{"$f":"(((AAMC_Raw_Data_for_FY22[[#This Row],[75th]]-AAMC_Raw_Data_for_FY22[[#This Row],[Median]])/25)*30) + AAMC_Raw_Data_for_FY22[[#This Row],[Median]]","v":131580},{"$f":"(((AAMC_Raw_Data_for_FY22[[#This Row],[75th]]-AAMC_Raw_Data_for_FY22[[#This Row],[Median]])/25)*35) + AAMC_Raw_Data_for_FY22[[#This Row],[Median]]","v":135660},{"$f":"(((AAMC_Raw_Data_for_FY22[[#This Row],[75th]]-AAMC_Raw_Data_for_FY22[[#This Row],[Median]])/25)*40) + AAMC_Raw_Data_for_FY22[[#This Row],[Median]]","v":139740}]
[{"$f":"AAMC_Raw_Data_for_FY22[[#This Row],[Source]]&AAMC_Raw_Data_for_FY22[[#This Row],[Type]]&AAMC_Raw_Data_for_FY22[[#This Row],[School Subset]]&AAMC_Raw_Data_for_FY22[[#This Row],[Rank]]&AAMC_Raw_Data_for_FY22[[#This Row],[Degree]]&AAMC_Raw_Data_for_FY22[[#This Row],[Department / Specialty]]&\"L\"","v":"AAMCAcademicAllAssociatePhDCardiology: Non-invasive-Med.L"},"Cardiology: Non-invasive-Med.",3,"AAMC","Academic","All","Associate","PhD","2021-2022",114750,{"$f":"(((AAMC_Raw_Data_for_FY22[[#This Row],[Median]]-AAMC_Raw_Data_for_FY22[[#This Row],[25th]])/25)*5) + AAMC_Raw_Data_for_FY22[[#This Row],[25th]]","v":118901},{"$f":"(((AAMC_Raw_Data_for_FY22[[#This Row],[Median]]-AAMC_Raw_Data_for_FY22[[#This Row],[25th]])/25)*10) + AAMC_Raw_Data_for_FY22[[#This Row],[25th]]","v":123052},{"$f":"(((AAMC_Raw_Data_for_FY22[[#This Row],[Median]]-AAMC_Raw_Data_for_FY22[[#This Row],[25th]])/25)*15) + AAMC_Raw_Data_for_FY22[[#This Row],[25th]]","v":127203},{"$f":"(((AAMC_Raw_Data_for_FY22[[#This Row],[Median]]-AAMC_Raw_Data_for_FY22[[#This Row],[25th]])/25)*20) + AAMC_Raw_Data_for_FY22[[#This Row],[25th]]","v":131354},135505,{"$f":"(((AAMC_Raw_Data_for_FY22[[#This Row],[75th]]-AAMC_Raw_Data_for_FY22[[#This Row],[Median]])/25)*5) + AAMC_Raw_Data_for_FY22[[#This Row],[Median]]","v":141196},{"$f":"(((AAMC_Raw_Data_for_FY22[[#This Row],[75th]]-AAMC_Raw_Data_for_FY22[[#This Row],[Median]])/25)*10) + AAMC_Raw_Data_for_FY22[[#This Row],[Median]]","v":146887},{"$f":"(((AAMC_Raw_Data_for_FY22[[#This Row],[75th]]-AAMC_Raw_Data_for_FY22[[#This Row],[Median]])/25)*15) + AAMC_Raw_Data_for_FY22[[#This Row],[Median]]","v":152578},{"$f":"(((AAMC_Raw_Data_for_FY22[[#This Row],[75th]]-AAMC_Raw_Data_for_FY22[[#This Row],[Median]])/25)*20) + AAMC_Raw_Data_for_FY22[[#This Row],[Median]]","v":158269},163960,{"$f":"(((AAMC_Raw_Data_for_FY22[[#This Row],[75th]]-AAMC_Raw_Data_for_FY22[[#This Row],[Median]])/25)*30) + AAMC_Raw_Data_for_FY22[[#This Row],[Median]]","v":169651},{"$f":"(((AAMC_Raw_Data_for_FY22[[#This Row],[75th]]-AAMC_Raw_Data_for_FY22[[#This Row],[Median]])/25)*35) + AAMC_Raw_Data_for_FY22[[#This Row],[Median]]","v":175342},{"$f":"(((AAMC_Raw_Data_for_FY22[[#This Row],[75th]]-AAMC_Raw_Data_for_FY22[[#This Row],[Median]])/25)*40) + AAMC_Raw_Data_for_FY22[[#This Row],[Median]]","v":181033}]
[{"$f":"AAMC_Raw_Data_for_FY22[[#This Row],[Source]]&AAMC_Raw_Data_for_FY22[[#This Row],[Type]]&AAMC_Raw_Data_for_FY22[[#This Row],[School Subset]]&AAMC_Raw_Data_for_FY22[[#This Row],[Rank]]&AAMC_Raw_Data_for_FY22[[#This Row],[Degree]]&AAMC_Raw_Data_for_FY22[[#This Row],[Department / Specialty]]&\"L\"","v":"AAMCAcademicAllProfessorPhDCardiology: Non-invasive-Med.L"},"Cardiology: Non-invasive-Med.",2,"AAMC","Academic","All","Professor","PhD","2021-2022",181719,{"$f":"(((AAMC_Raw_Data_for_FY22[[#This Row],[Median]]-AAMC_Raw_Data_for_FY22[[#This Row],[25th]])/25)*5) + AAMC_Raw_Data_for_FY22[[#This Row],[25th]]","v":191240.2},{"$f":"(((AAMC_Raw_Data_for_FY22[[#This Row],[Median]]-AAMC_Raw_Data_for_FY22[[#This Row],[25th]])/25)*10) + AAMC_Raw_Data_for_FY22[[#This Row],[25th]]","v":200761.4},{"$f":"(((AAMC_Raw_Data_for_FY22[[#This Row],[Median]]-AAMC_Raw_Data_for_FY22[[#This Row],[25th]])/25)*15) + AAMC_Raw_Data_for_FY22[[#This Row],[25th]]","v":210282.6},{"$f":"(((AAMC_Raw_Data_for_FY22[[#This Row],[Median]]-AAMC_Raw_Data_for_FY22[[#This Row],[25th]])/25)*20) + AAMC_Raw_Data_for_FY22[[#This Row],[25th]]","v":219803.8},229325,{"$f":"(((AAMC_Raw_Data_for_FY22[[#This Row],[75th]]-AAMC_Raw_Data_for_FY22[[#This Row],[Median]])/25)*5) + AAMC_Raw_Data_for_FY22[[#This Row],[Median]]","v":238240},{"$f":"(((AAMC_Raw_Data_for_FY22[[#This Row],[75th]]-AAMC_Raw_Data_for_FY22[[#This Row],[Median]])/25)*10) + AAMC_Raw_Data_for_FY22[[#This Row],[Median]]","v":247155},{"$f":"(((AAMC_Raw_Data_for_FY22[[#This Row],[75th]]-AAMC_Raw_Data_for_FY22[[#This Row],[Median]])/25)*15) + AAMC_Raw_Data_for_FY22[[#This Row],[Median]]","v":256070},{"$f":"(((AAMC_Raw_Data_for_FY22[[#This Row],[75th]]-AAMC_Raw_Data_for_FY22[[#This Row],[Median]])/25)*20) + AAMC_Raw_Data_for_FY22[[#This Row],[Median]]","v":264985},273900,{"$f":"(((AAMC_Raw_Data_for_FY22[[#This Row],[75th]]-AAMC_Raw_Data_for_FY22[[#This Row],[Median]])/25)*30) + AAMC_Raw_Data_for_FY22[[#This Row],[Median]]","v":282815},{"$f":"(((AAMC_Raw_Data_for_FY22[[#This Row],[75th]]-AAMC_Raw_Data_for_FY22[[#This Row],[Median]])/25)*35) + AAMC_Raw_Data_for_FY22[[#This Row],[Median]]","v":291730},{"$f":"(((AAMC_Raw_Data_for_FY22[[#This Row],[75th]]-AAMC_Raw_Data_for_FY22[[#This Row],[Median]])/25)*40) + AAMC_Raw_Data_for_FY22[[#This Row],[Median]]","v":300645}]
[{"$f":"AAMC_Raw_Data_for_FY22[[#This Row],[Source]]&AAMC_Raw_Data_for_FY22[[#This Row],[Type]]&AAMC_Raw_Data_for_FY22[[#This Row],[School Subset]]&AAMC_Raw_Data_for_FY22[[#This Row],[Rank]]&AAMC_Raw_Data_for_FY22[[#This Row],[Degree]]&AAMC_Raw_Data_for_FY22[[#This Row],[Department / Specialty]]&\"L\"","v":"AAMCAcademicAllAssistantPhDCritical/Intensive Care-Med.L"},"Critical/Intensive Care-Med.",4,"AAMC","Academic","All","Assistant","PhD","2021-2022",87824,{"$f":"(((AAMC_Raw_Data_for_FY22[[#This Row],[Median]]-AAMC_Raw_Data_for_FY22[[#This Row],[25th]])/25)*5) + AAMC_Raw_Data_for_FY22[[#This Row],[25th]]","v":89595},{"$f":"(((AAMC_Raw_Data_for_FY22[[#This Row],[Median]]-AAMC_Raw_Data_for_FY22[[#This Row],[25th]])/25)*10) + AAMC_Raw_Data_for_FY22[[#This Row],[25th]]","v":91366},{"$f":"(((AAMC_Raw_Data_for_FY22[[#This Row],[Median]]-AAMC_Raw_Data_for_FY22[[#This Row],[25th]])/25)*15) + AAMC_Raw_Data_for_FY22[[#This Row],[25th]]","v":93137},{"$f":"(((AAMC_Raw_Data_for_FY22[[#This Row],[Median]]-AAMC_Raw_Data_for_FY22[[#This Row],[25th]])/25)*20) + AAMC_Raw_Data_for_FY22[[#This Row],[25th]]","v":94908},96679,{"$f":"(((AAMC_Raw_Data_for_FY22[[#This Row],[75th]]-AAMC_Raw_Data_for_FY22[[#This Row],[Median]])/25)*5) + AAMC_Raw_Data_for_FY22[[#This Row],[Median]]","v":104905.60000000001},{"$f":"(((AAMC_Raw_Data_for_FY22[[#This Row],[75th]]-AAMC_Raw_Data_for_FY22[[#This Row],[Median]])/25)*10) + AAMC_Raw_Data_for_FY22[[#This Row],[Median]]","v":113132.2},{"$f":"(((AAMC_Raw_Data_for_FY22[[#This Row],[75th]]-AAMC_Raw_Data_for_FY22[[#This Row],[Median]])/25)*15) + AAMC_Raw_Data_for_FY22[[#This Row],[Median]]","v":121358.8},{"$f":"(((AAMC_Raw_Data_for_FY22[[#This Row],[75th]]-AAMC_Raw_Data_for_FY22[[#This Row],[Median]])/25)*20) + AAMC_Raw_Data_for_FY22[[#This Row],[Median]]","v":129585.4},137812,{"$f":"(((AAMC_Raw_Data_for_FY22[[#This Row],[75th]]-AAMC_Raw_Data_for_FY22[[#This Row],[Median]])/25)*30) + AAMC_Raw_Data_for_FY22[[#This Row],[Median]]","v":146038.6},{"$f":"(((AAMC_Raw_Data_for_FY22[[#This Row],[75th]]-AAMC_Raw_Data_for_FY22[[#This Row],[Median]])/25)*35) + AAMC_Raw_Data_for_FY22[[#This Row],[Median]]","v":154265.20000000001},{"$f":"(((AAMC_Raw_Data_for_FY22[[#This Row],[75th]]-AAMC_Raw_Data_for_FY22[[#This Row],[Median]])/25)*40) + AAMC_Raw_Data_for_FY22[[#This Row],[Median]]","v":162491.79999999999}]
[{"$f":"AAMC_Raw_Data_for_FY22[[#This Row],[Source]]&AAMC_Raw_Data_for_FY22[[#This Row],[Type]]&AAMC_Raw_Data_for_FY22[[#This Row],[School Subset]]&AAMC_Raw_Data_for_FY22[[#This Row],[Rank]]&AAMC_Raw_Data_for_FY22[[#This Row],[Degree]]&AAMC_Raw_Data_for_FY22[[#This Row],[Department / Specialty]]&\"L\"","v":"AAMCAcademicAllProfessorPhDCritical/Intensive Care-Med.L"},"Critical/Intensive Care-Med.",2,"AAMC","Academic","All","Professor","PhD","2021-2022",null,{"$f":"(((AAMC_Raw_Data_for_FY22[[#This Row],[Median]]-AAMC_Raw_Data_for_FY22[[#This Row],[25th]])/25)*5) + AAMC_Raw_Data_for_FY22[[#This Row],[25th]]","v":0},{"$f":"(((AAMC_Raw_Data_for_FY22[[#This Row],[Median]]-AAMC_Raw_Data_for_FY22[[#This Row],[25th]])/25)*10) + AAMC_Raw_Data_for_FY22[[#This Row],[25th]]","v":0},{"$f":"(((AAMC_Raw_Data_for_FY22[[#This Row],[Median]]-AAMC_Raw_Data_for_FY22[[#This Row],[25th]])/25)*15) + AAMC_Raw_Data_for_FY22[[#This Row],[25th]]","v":0},{"$f":"(((AAMC_Raw_Data_for_FY22[[#This Row],[Median]]-AAMC_Raw_Data_for_FY22[[#This Row],[25th]])/25)*20) + AAMC_Raw_Data_for_FY22[[#This Row],[25th]]","v":0},null,{"$f":"(((AAMC_Raw_Data_for_FY22[[#This Row],[75th]]-AAMC_Raw_Data_for_FY22[[#This Row],[Median]])/25)*5) + AAMC_Raw_Data_for_FY22[[#This Row],[Median]]","v":0},{"$f":"(((AAMC_Raw_Data_for_FY22[[#This Row],[75th]]-AAMC_Raw_Data_for_FY22[[#This Row],[Median]])/25)*10) + AAMC_Raw_Data_for_FY22[[#This Row],[Median]]","v":0},{"$f":"(((AAMC_Raw_Data_for_FY22[[#This Row],[75th]]-AAMC_Raw_Data_for_FY22[[#This Row],[Median]])/25)*15) + AAMC_Raw_Data_for_FY22[[#This Row],[Median]]","v":0},{"$f":"(((AAMC_Raw_Data_for_FY22[[#This Row],[75th]]-AAMC_Raw_Data_for_FY22[[#This Row],[Median]])/25)*20) + AAMC_Raw_Data_for_FY22[[#This Row],[Median]]","v":0},null,{"$f":"(((AAMC_Raw_Data_for_FY22[[#This Row],[75th]]-AAMC_Raw_Data_for_FY22[[#This Row],[Median]])/25)*30) + AAMC_Raw_Data_for_FY22[[#This Row],[Median]]","v":0},{"$f":"(((AAMC_Raw_Data_for_FY22[[#This Row],[75th]]-AAMC_Raw_Data_for_FY22[[#This Row],[Median]])/25)*35) + AAMC_Raw_Data_for_FY22[[#This Row],[Median]]","v":0},{"$f":"(((AAMC_Raw_Data_for_FY22[[#This Row],[75th]]-AAMC_Raw_Data_for_FY22[[#This Row],[Median]])/25)*40) + AAMC_Raw_Data_for_FY22[[#This Row],[Median]]","v":0}]
[{"$f":"AAMC_Raw_Data_for_FY22[[#This Row],[Source]]&AAMC_Raw_Data_for_FY22[[#This Row],[Type]]&AAMC_Raw_Data_for_FY22[[#This Row],[School Subset]]&AAMC_Raw_Data_for_FY22[[#This Row],[Rank]]&AAMC_Raw_Data_for_FY22[[#This Row],[Degree]]&AAMC_Raw_Data_for_FY22[[#This Row],[Department / Specialty]]&\"L\"","v":"AAMCAcademicAllInstructorPhDEndocrinology-Med.L"},"Endocrinology-Med.",5,"AAMC","Academic","All","Instructor","PhD","2021-2022",66878,{"$f":"(((AAMC_Raw_Data_for_FY22[[#This Row],[Median]]-AAMC_Raw_Data_for_FY22[[#This Row],[25th]])/25)*5) + AAMC_Raw_Data_for_FY22[[#This Row],[25th]]","v":71447.8},{"$f":"(((AAMC_Raw_Data_for_FY22[[#This Row],[Median]]-AAMC_Raw_Data_for_FY22[[#This Row],[25th]])/25)*10) + AAMC_Raw_Data_for_FY22[[#This Row],[25th]]","v":76017.600000000006},{"$f":"(((AAMC_Raw_Data_for_FY22[[#This Row],[Median]]-AAMC_Raw_Data_for_FY22[[#This Row],[25th]])/25)*15) + AAMC_Raw_Data_for_FY22[[#This Row],[25th]]","v":80587.399999999994},{"$f":"(((AAMC_Raw_Data_for_FY22[[#This Row],[Median]]-AAMC_Raw_Data_for_FY22[[#This Row],[25th]])/25)*20) + AAMC_Raw_Data_for_FY22[[#This Row],[25th]]","v":85157.2},89727,{"$f":"(((AAMC_Raw_Data_for_FY22[[#This Row],[75th]]-AAMC_Raw_Data_for_FY22[[#This Row],[Median]])/25)*5) + AAMC_Raw_Data_for_FY22[[#This Row],[Median]]","v":91793.600000000006},{"$f":"(((AAMC_Raw_Data_for_FY22[[#This Row],[75th]]-AAMC_Raw_Data_for_FY22[[#This Row],[Median]])/25)*10) + AAMC_Raw_Data_for_FY22[[#This Row],[Median]]","v":93860.2},{"$f":"(((AAMC_Raw_Data_for_FY22[[#This Row],[75th]]-AAMC_Raw_Data_for_FY22[[#This Row],[Median]])/25)*15) + AAMC_Raw_Data_for_FY22[[#This Row],[Median]]","v":95926.8},{"$f":"(((AAMC_Raw_Data_for_FY22[[#This Row],[75th]]-AAMC_Raw_Data_for_FY22[[#This Row],[Median]])/25)*20) + AAMC_Raw_Data_for_FY22[[#This Row],[Median]]","v":97993.4},100060,{"$f":"(((AAMC_Raw_Data_for_FY22[[#This Row],[75th]]-AAMC_Raw_Data_for_FY22[[#This Row],[Median]])/25)*30) + AAMC_Raw_Data_for_FY22[[#This Row],[Median]]","v":102126.6},{"$f":"(((AAMC_Raw_Data_for_FY22[[#This Row],[75th]]-AAMC_Raw_Data_for_FY22[[#This Row],[Median]])/25)*35) + AAMC_Raw_Data_for_FY22[[#This Row],[Median]]","v":104193.2},{"$f":"(((AAMC_Raw_Data_for_FY22[[#This Row],[75th]]-AAMC_Raw_Data_for_FY22[[#This Row],[Median]])/25)*40) + AAMC_Raw_Data_for_FY22[[#This Row],[Median]]","v":106259.8}]
[{"$f":"AAMC_Raw_Data_for_FY22[[#This Row],[Source]]&AAMC_Raw_Data_for_FY22[[#This Row],[Type]]&AAMC_Raw_Data_for_FY22[[#This Row],[School Subset]]&AAMC_Raw_Data_for_FY22[[#This Row],[Rank]]&AAMC_Raw_Data_for_FY22[[#This Row],[Degree]]&AAMC_Raw_Data_for_FY22[[#This Row],[Department / Specialty]]&\"L\"","v":"AAMCAcademicAllAssistantPhDEndocrinology-Med.L"},"Endocrinology-Med.",4,"AAMC","Academic","All","Assistant","PhD","2021-2022",90100,{"$f":"(((AAMC_Raw_Data_for_FY22[[#This Row],[Median]]-AAMC_Raw_Data_for_FY22[[#This Row],[25th]])/25)*5) + AAMC_Raw_Data_for_FY22[[#This Row],[25th]]","v":94703.2},{"$f":"(((AAMC_Raw_Data_for_FY22[[#This Row],[Median]]-AAMC_Raw_Data_for_FY22[[#This Row],[25th]])/25)*10) + AAMC_Raw_Data_for_FY22[[#This Row],[25th]]","v":99306.4},{"$f":"(((AAMC_Raw_Data_for_FY22[[#This Row],[Median]]-AAMC_Raw_Data_for_FY22[[#This Row],[25th]])/25)*15) + AAMC_Raw_Data_for_FY22[[#This Row],[25th]]","v":103909.6},{"$f":"(((AAMC_Raw_Data_for_FY22[[#This Row],[Median]]-AAMC_Raw_Data_for_FY22[[#This Row],[25th]])/25)*20) + AAMC_Raw_Data_for_FY22[[#This Row],[25th]]","v":108512.8},113116,{"$f":"(((AAMC_Raw_Data_for_FY22[[#This Row],[75th]]-AAMC_Raw_Data_for_FY22[[#This Row],[Median]])/25)*5) + AAMC_Raw_Data_for_FY22[[#This Row],[Median]]","v":117000.2},{"$f":"(((AAMC_Raw_Data_for_FY22[[#This Row],[75th]]-AAMC_Raw_Data_for_FY22[[#This Row],[Median]])/25)*10) + AAMC_Raw_Data_for_FY22[[#This Row],[Median]]","v":120884.4},{"$f":"(((AAMC_Raw_Data_for_FY22[[#This Row],[75th]]-AAMC_Raw_Data_for_FY22[[#This Row],[Median]])/25)*15) + AAMC_Raw_Data_for_FY22[[#This Row],[Median]]","v":124768.6},{"$f":"(((AAMC_Raw_Data_for_FY22[[#This Row],[75th]]-AAMC_Raw_Data_for_FY22[[#This Row],[Median]])/25)*20) + AAMC_Raw_Data_for_FY22[[#This Row],[Median]]","v":128652.8},132537,{"$f":"(((AAMC_Raw_Data_for_FY22[[#This Row],[75th]]-AAMC_Raw_Data_for_FY22[[#This Row],[Median]])/25)*30) + AAMC_Raw_Data_for_FY22[[#This Row],[Median]]","v":136421.20000000001},{"$f":"(((AAMC_Raw_Data_for_FY22[[#This Row],[75th]]-AAMC_Raw_Data_for_FY22[[#This Row],[Median]])/25)*35) + AAMC_Raw_Data_for_FY22[[#This Row],[Median]]","v":140305.4},{"$f":"(((AAMC_Raw_Data_for_FY22[[#This Row],[75th]]-AAMC_Raw_Data_for_FY22[[#This Row],[Median]])/25)*40) + AAMC_Raw_Data_for_FY22[[#This Row],[Median]]","v":144189.6}]
[{"$f":"AAMC_Raw_Data_for_FY22[[#This Row],[Source]]&AAMC_Raw_Data_for_FY22[[#This Row],[Type]]&AAMC_Raw_Data_for_FY22[[#This Row],[School Subset]]&AAMC_Raw_Data_for_FY22[[#This Row],[Rank]]&AAMC_Raw_Data_for_FY22[[#This Row],[Degree]]&AAMC_Raw_Data_for_FY22[[#This Row],[Department / Specialty]]&\"L\"","v":"AAMCAcademicAllAssociatePhDEndocrinology-Med.L"},"Endocrinology-Med.",3,"AAMC","Academic","All","Associate","PhD","2021-2022",117594,{"$f":"(((AAMC_Raw_Data_for_FY22[[#This Row],[Median]]-AAMC_Raw_Data_for_FY22[[#This Row],[25th]])/25)*5) + AAMC_Raw_Data_for_FY22[[#This Row],[25th]]","v":121139},{"$f":"(((AAMC_Raw_Data_for_FY22[[#This Row],[Median]]-AAMC_Raw_Data_for_FY22[[#This Row],[25th]])/25)*10) + AAMC_Raw_Data_for_FY22[[#This Row],[25th]]","v":124684},{"$f":"(((AAMC_Raw_Data_for_FY22[[#This Row],[Median]]-AAMC_Raw_Data_for_FY22[[#This Row],[25th]])/25)*15) + AAMC_Raw_Data_for_FY22[[#This Row],[25th]]","v":128229},{"$f":"(((AAMC_Raw_Data_for_FY22[[#This Row],[Median]]-AAMC_Raw_Data_for_FY22[[#This Row],[25th]])/25)*20) + AAMC_Raw_Data_for_FY22[[#This Row],[25th]]","v":131774},135319,{"$f":"(((AAMC_Raw_Data_for_FY22[[#This Row],[75th]]-AAMC_Raw_Data_for_FY22[[#This Row],[Median]])/25)*5) + AAMC_Raw_Data_for_FY22[[#This Row],[Median]]","v":141737.60000000001},{"$f":"(((AAMC_Raw_Data_for_FY22[[#This Row],[75th]]-AAMC_Raw_Data_for_FY22[[#This Row],[Median]])/25)*10) + AAMC_Raw_Data_for_FY22[[#This Row],[Median]]","v":148156.20000000001},{"$f":"(((AAMC_Raw_Data_for_FY22[[#This Row],[75th]]-AAMC_Raw_Data_for_FY22[[#This Row],[Median]])/25)*15) + AAMC_Raw_Data_for_FY22[[#This Row],[Median]]","v":154574.79999999999},{"$f":"(((AAMC_Raw_Data_for_FY22[[#This Row],[75th]]-AAMC_Raw_Data_for_FY22[[#This Row],[Median]])/25)*20) + AAMC_Raw_Data_for_FY22[[#This Row],[Median]]","v":160993.4},167412,{"$f":"(((AAMC_Raw_Data_for_FY22[[#This Row],[75th]]-AAMC_Raw_Data_for_FY22[[#This Row],[Median]])/25)*30) + AAMC_Raw_Data_for_FY22[[#This Row],[Median]]","v":173830.6},{"$f":"(((AAMC_Raw_Data_for_FY22[[#This Row],[75th]]-AAMC_Raw_Data_for_FY22[[#This Row],[Median]])/25)*35) + AAMC_Raw_Data_for_FY22[[#This Row],[Median]]","v":180249.2},{"$f":"(((AAMC_Raw_Data_for_FY22[[#This Row],[75th]]-AAMC_Raw_Data_for_FY22[[#This Row],[Median]])/25)*40) + AAMC_Raw_Data_for_FY22[[#This Row],[Median]]","v":186667.8}]
[{"$f":"AAMC_Raw_Data_for_FY22[[#This Row],[Source]]&AAMC_Raw_Data_for_FY22[[#This Row],[Type]]&AAMC_Raw_Data_for_FY22[[#This Row],[School Subset]]&AAMC_Raw_Data_for_FY22[[#This Row],[Rank]]&AAMC_Raw_Data_for_FY22[[#This Row],[Degree]]&AAMC_Raw_Data_for_FY22[[#This Row],[Department / Specialty]]&\"L\"","v":"AAMCAcademicAllProfessorPhDEndocrinology-Med.L"},"Endocrinology-Med.",2,"AAMC","Academic","All","Professor","PhD","2021-2022",160525,{"$f":"(((AAMC_Raw_Data_for_FY22[[#This Row],[Median]]-AAMC_Raw_Data_for_FY22[[#This Row],[25th]])/25)*5) + AAMC_Raw_Data_for_FY22[[#This Row],[25th]]","v":168673.2},{"$f":"(((AAMC_Raw_Data_for_FY22[[#This Row],[Median]]-AAMC_Raw_Data_for_FY22[[#This Row],[25th]])/25)*10) + AAMC_Raw_Data_for_FY22[[#This Row],[25th]]","v":176821.4},{"$f":"(((AAMC_Raw_Data_for_FY22[[#This Row],[Median]]-AAMC_Raw_Data_for_FY22[[#This Row],[25th]])/25)*15) + AAMC_Raw_Data_for_FY22[[#This Row],[25th]]","v":184969.60000000001},{"$f":"(((AAMC_Raw_Data_for_FY22[[#This Row],[Median]]-AAMC_Raw_Data_for_FY22[[#This Row],[25th]])/25)*20) + AAMC_Raw_Data_for_FY22[[#This Row],[25th]]","v":193117.8},201266,{"$f":"(((AAMC_Raw_Data_for_FY22[[#This Row],[75th]]-AAMC_Raw_Data_for_FY22[[#This Row],[Median]])/25)*5) + AAMC_Raw_Data_for_FY22[[#This Row],[Median]]","v":212228.8},{"$f":"(((AAMC_Raw_Data_for_FY22[[#This Row],[75th]]-AAMC_Raw_Data_for_FY22[[#This Row],[Median]])/25)*10) + AAMC_Raw_Data_for_FY22[[#This Row],[Median]]","v":223191.6},{"$f":"(((AAMC_Raw_Data_for_FY22[[#This Row],[75th]]-AAMC_Raw_Data_for_FY22[[#This Row],[Median]])/25)*15) + AAMC_Raw_Data_for_FY22[[#This Row],[Median]]","v":234154.4},{"$f":"(((AAMC_Raw_Data_for_FY22[[#This Row],[75th]]-AAMC_Raw_Data_for_FY22[[#This Row],[Median]])/25)*20) + AAMC_Raw_Data_for_FY22[[#This Row],[Median]]","v":245117.2},256080,{"$f":"(((AAMC_Raw_Data_for_FY22[[#This Row],[75th]]-AAMC_Raw_Data_for_FY22[[#This Row],[Median]])/25)*30) + AAMC_Raw_Data_for_FY22[[#This Row],[Median]]","v":267042.8},{"$f":"(((AAMC_Raw_Data_for_FY22[[#This Row],[75th]]-AAMC_Raw_Data_for_FY22[[#This Row],[Median]])/25)*35) + AAMC_Raw_Data_for_FY22[[#This Row],[Median]]","v":278005.59999999998},{"$f":"(((AAMC_Raw_Data_for_FY22[[#This Row],[75th]]-AAMC_Raw_Data_for_FY22[[#This Row],[Median]])/25)*40) + AAMC_Raw_Data_for_FY22[[#This Row],[Median]]","v":288968.40000000002}]
[{"$f":"AAMC_Raw_Data_for_FY22[[#This Row],[Source]]&AAMC_Raw_Data_for_FY22[[#This Row],[Type]]&AAMC_Raw_Data_for_FY22[[#This Row],[School Subset]]&AAMC_Raw_Data_for_FY22[[#This Row],[Rank]]&AAMC_Raw_Data_for_FY22[[#This Row],[Degree]]&AAMC_Raw_Data_for_FY22[[#This Row],[Department / Specialty]]&\"L\"","v":"AAMCAcademicAllChiefPhDEndocrinology-Med.L"},"Endocrinology-Med.",6,"AAMC","Academic","All","Chief","PhD","2021-2022",null,{"$f":"(((AAMC_Raw_Data_for_FY22[[#This Row],[Median]]-AAMC_Raw_Data_for_FY22[[#This Row],[25th]])/25)*5) + AAMC_Raw_Data_for_FY22[[#This Row],[25th]]","v":0},{"$f":"(((AAMC_Raw_Data_for_FY22[[#This Row],[Median]]-AAMC_Raw_Data_for_FY22[[#This Row],[25th]])/25)*10) + AAMC_Raw_Data_for_FY22[[#This Row],[25th]]","v":0},{"$f":"(((AAMC_Raw_Data_for_FY22[[#This Row],[Median]]-AAMC_Raw_Data_for_FY22[[#This Row],[25th]])/25)*15) + AAMC_Raw_Data_for_FY22[[#This Row],[25th]]","v":0},{"$f":"(((AAMC_Raw_Data_for_FY22[[#This Row],[Median]]-AAMC_Raw_Data_for_FY22[[#This Row],[25th]])/25)*20) + AAMC_Raw_Data_for_FY22[[#This Row],[25th]]","v":0},null,{"$f":"(((AAMC_Raw_Data_for_FY22[[#This Row],[75th]]-AAMC_Raw_Data_for_FY22[[#This Row],[Median]])/25)*5) + AAMC_Raw_Data_for_FY22[[#This Row],[Median]]","v":0},{"$f":"(((AAMC_Raw_Data_for_FY22[[#This Row],[75th]]-AAMC_Raw_Data_for_FY22[[#This Row],[Median]])/25)*10) + AAMC_Raw_Data_for_FY22[[#This Row],[Median]]","v":0},{"$f":"(((AAMC_Raw_Data_for_FY22[[#This Row],[75th]]-AAMC_Raw_Data_for_FY22[[#This Row],[Median]])/25)*15) + AAMC_Raw_Data_for_FY22[[#This Row],[Median]]","v":0},{"$f":"(((AAMC_Raw_Data_for_FY22[[#This Row],[75th]]-AAMC_Raw_Data_for_FY22[[#This Row],[Median]])/25)*20) + AAMC_Raw_Data_for_FY22[[#This Row],[Median]]","v":0},null,{"$f":"(((AAMC_Raw_Data_for_FY22[[#This Row],[75th]]-AAMC_Raw_Data_for_FY22[[#This Row],[Median]])/25)*30) + AAMC_Raw_Data_for_FY22[[#This Row],[Median]]","v":0},{"$f":"(((AAMC_Raw_Data_for_FY22[[#This Row],[75th]]-AAMC_Raw_Data_for_FY22[[#This Row],[Median]])/25)*35) + AAMC_Raw_Data_for_FY22[[#This Row],[Median]]","v":0},{"$f":"(((AAMC_Raw_Data_for_FY22[[#This Row],[75th]]-AAMC_Raw_Data_for_FY22[[#This Row],[Median]])/25)*40) + AAMC_Raw_Data_for_FY22[[#This Row],[Median]]","v":0}]
[{"$f":"AAMC_Raw_Data_for_FY22[[#This Row],[Source]]&AAMC_Raw_Data_for_FY22[[#This Row],[Type]]&AAMC_Raw_Data_for_FY22[[#This Row],[School Subset]]&AAMC_Raw_Data_for_FY22[[#This Row],[Rank]]&AAMC_Raw_Data_for_FY22[[#This Row],[Degree]]&AAMC_Raw_Data_for_FY22[[#This Row],[Department / Specialty]]&\"L\"","v":"AAMCAcademicAllInstructorPhDGastroenterology-Med.L"},"Gastroenterology-Med.",5,"AAMC","Academic","All","Instructor","PhD","2021-2022",69671,{"$f":"(((AAMC_Raw_Data_for_FY22[[#This Row],[Median]]-AAMC_Raw_Data_for_FY22[[#This Row],[25th]])/25)*5) + AAMC_Raw_Data_for_FY22[[#This Row],[25th]]","v":73746.8},{"$f":"(((AAMC_Raw_Data_for_FY22[[#This Row],[Median]]-AAMC_Raw_Data_for_FY22[[#This Row],[25th]])/25)*10) + AAMC_Raw_Data_for_FY22[[#This Row],[25th]]","v":77822.600000000006},{"$f":"(((AAMC_Raw_Data_for_FY22[[#This Row],[Median]]-AAMC_Raw_Data_for_FY22[[#This Row],[25th]])/25)*15) + AAMC_Raw_Data_for_FY22[[#This Row],[25th]]","v":81898.399999999994},{"$f":"(((AAMC_Raw_Data_for_FY22[[#This Row],[Median]]-AAMC_Raw_Data_for_FY22[[#This Row],[25th]])/25)*20) + AAMC_Raw_Data_for_FY22[[#This Row],[25th]]","v":85974.2},90050,{"$f":"(((AAMC_Raw_Data_for_FY22[[#This Row],[75th]]-AAMC_Raw_Data_for_FY22[[#This Row],[Median]])/25)*5) + AAMC_Raw_Data_for_FY22[[#This Row],[Median]]","v":92435.4},{"$f":"(((AAMC_Raw_Data_for_FY22[[#This Row],[75th]]-AAMC_Raw_Data_for_FY22[[#This Row],[Median]])/25)*10) + AAMC_Raw_Data_for_FY22[[#This Row],[Median]]","v":94820.800000000003},{"$f":"(((AAMC_Raw_Data_for_FY22[[#This Row],[75th]]-AAMC_Raw_Data_for_FY22[[#This Row],[Median]])/25)*15) + AAMC_Raw_Data_for_FY22[[#This Row],[Median]]","v":97206.2},{"$f":"(((AAMC_Raw_Data_for_FY22[[#This Row],[75th]]-AAMC_Raw_Data_for_FY22[[#This Row],[Median]])/25)*20) + AAMC_Raw_Data_for_FY22[[#This Row],[Median]]","v":99591.6},101977,{"$f":"(((AAMC_Raw_Data_for_FY22[[#This Row],[75th]]-AAMC_Raw_Data_for_FY22[[#This Row],[Median]])/25)*30) + AAMC_Raw_Data_for_FY22[[#This Row],[Median]]","v":104362.4},{"$f":"(((AAMC_Raw_Data_for_FY22[[#This Row],[75th]]-AAMC_Raw_Data_for_FY22[[#This Row],[Median]])/25)*35) + AAMC_Raw_Data_for_FY22[[#This Row],[Median]]","v":106747.8},{"$f":"(((AAMC_Raw_Data_for_FY22[[#This Row],[75th]]-AAMC_Raw_Data_for_FY22[[#This Row],[Median]])/25)*40) + AAMC_Raw_Data_for_FY22[[#This Row],[Median]]","v":109133.2}]
[{"$f":"AAMC_Raw_Data_for_FY22[[#This Row],[Source]]&AAMC_Raw_Data_for_FY22[[#This Row],[Type]]&AAMC_Raw_Data_for_FY22[[#This Row],[School Subset]]&AAMC_Raw_Data_for_FY22[[#This Row],[Rank]]&AAMC_Raw_Data_for_FY22[[#This Row],[Degree]]&AAMC_Raw_Data_for_FY22[[#This Row],[Department / Specialty]]&\"L\"","v":"AAMCAcademicAllAssistantPhDGastroenterology-Med.L"},"Gastroenterology-Med.",4,"AAMC","Academic","All","Assistant","PhD","2021-2022",80198,{"$f":"(((AAMC_Raw_Data_for_FY22[[#This Row],[Median]]-AAMC_Raw_Data_for_FY22[[#This Row],[25th]])/25)*5) + AAMC_Raw_Data_for_FY22[[#This Row],[25th]]","v":85208.4},{"$f":"(((AAMC_Raw_Data_for_FY22[[#This Row],[Median]]-AAMC_Raw_Data_for_FY22[[#This Row],[25th]])/25)*10) + AAMC_Raw_Data_for_FY22[[#This Row],[25th]]","v":90218.8},{"$f":"(((AAMC_Raw_Data_for_FY22[[#This Row],[Median]]-AAMC_Raw_Data_for_FY22[[#This Row],[25th]])/25)*15) + AAMC_Raw_Data_for_FY22[[#This Row],[25th]]","v":95229.2},{"$f":"(((AAMC_Raw_Data_for_FY22[[#This Row],[Median]]-AAMC_Raw_Data_for_FY22[[#This Row],[25th]])/25)*20) + AAMC_Raw_Data_for_FY22[[#This Row],[25th]]","v":100239.6},105250,{"$f":"(((AAMC_Raw_Data_for_FY22[[#This Row],[75th]]-AAMC_Raw_Data_for_FY22[[#This Row],[Median]])/25)*5) + AAMC_Raw_Data_for_FY22[[#This Row],[Median]]","v":109653.6},{"$f":"(((AAMC_Raw_Data_for_FY22[[#This Row],[75th]]-AAMC_Raw_Data_for_FY22[[#This Row],[Median]])/25)*10) + AAMC_Raw_Data_for_FY22[[#This Row],[Median]]","v":114057.2},{"$f":"(((AAMC_Raw_Data_for_FY22[[#This Row],[75th]]-AAMC_Raw_Data_for_FY22[[#This Row],[Median]])/25)*15) + AAMC_Raw_Data_for_FY22[[#This Row],[Median]]","v":118460.8},{"$f":"(((AAMC_Raw_Data_for_FY22[[#This Row],[75th]]-AAMC_Raw_Data_for_FY22[[#This Row],[Median]])/25)*20) + AAMC_Raw_Data_for_FY22[[#This Row],[Median]]","v":122864.4},127268,{"$f":"(((AAMC_Raw_Data_for_FY22[[#This Row],[75th]]-AAMC_Raw_Data_for_FY22[[#This Row],[Median]])/25)*30) + AAMC_Raw_Data_for_FY22[[#This Row],[Median]]","v":131671.6},{"$f":"(((AAMC_Raw_Data_for_FY22[[#This Row],[75th]]-AAMC_Raw_Data_for_FY22[[#This Row],[Median]])/25)*35) + AAMC_Raw_Data_for_FY22[[#This Row],[Median]]","v":136075.20000000001},{"$f":"(((AAMC_Raw_Data_for_FY22[[#This Row],[75th]]-AAMC_Raw_Data_for_FY22[[#This Row],[Median]])/25)*40) + AAMC_Raw_Data_for_FY22[[#This Row],[Median]]","v":140478.79999999999}]
[{"$f":"AAMC_Raw_Data_for_FY22[[#This Row],[Source]]&AAMC_Raw_Data_for_FY22[[#This Row],[Type]]&AAMC_Raw_Data_for_FY22[[#This Row],[School Subset]]&AAMC_Raw_Data_for_FY22[[#This Row],[Rank]]&AAMC_Raw_Data_for_FY22[[#This Row],[Degree]]&AAMC_Raw_Data_for_FY22[[#This Row],[Department / Specialty]]&\"L\"","v":"AAMCAcademicAllAssociatePhDGastroenterology-Med.L"},"Gastroenterology-Med.",3,"AAMC","Academic","All","Associate","PhD","2021-2022",108220,{"$f":"(((AAMC_Raw_Data_for_FY22[[#This Row],[Median]]-AAMC_Raw_Data_for_FY22[[#This Row],[25th]])/25)*5) + AAMC_Raw_Data_for_FY22[[#This Row],[25th]]","v":113378.6},{"$f":"(((AAMC_Raw_Data_for_FY22[[#This Row],[Median]]-AAMC_Raw_Data_for_FY22[[#This Row],[25th]])/25)*10) + AAMC_Raw_Data_for_FY22[[#This Row],[25th]]","v":118537.2},{"$f":"(((AAMC_Raw_Data_for_FY22[[#This Row],[Median]]-AAMC_Raw_Data_for_FY22[[#This Row],[25th]])/25)*15) + AAMC_Raw_Data_for_FY22[[#This Row],[25th]]","v":123695.8},{"$f":"(((AAMC_Raw_Data_for_FY22[[#This Row],[Median]]-AAMC_Raw_Data_for_FY22[[#This Row],[25th]])/25)*20) + AAMC_Raw_Data_for_FY22[[#This Row],[25th]]","v":128854.39999999999},134013,{"$f":"(((AAMC_Raw_Data_for_FY22[[#This Row],[75th]]-AAMC_Raw_Data_for_FY22[[#This Row],[Median]])/25)*5) + AAMC_Raw_Data_for_FY22[[#This Row],[Median]]","v":137222},{"$f":"(((AAMC_Raw_Data_for_FY22[[#This Row],[75th]]-AAMC_Raw_Data_for_FY22[[#This Row],[Median]])/25)*10) + AAMC_Raw_Data_for_FY22[[#This Row],[Median]]","v":140431},{"$f":"(((AAMC_Raw_Data_for_FY22[[#This Row],[75th]]-AAMC_Raw_Data_for_FY22[[#This Row],[Median]])/25)*15) + AAMC_Raw_Data_for_FY22[[#This Row],[Median]]","v":143640},{"$f":"(((AAMC_Raw_Data_for_FY22[[#This Row],[75th]]-AAMC_Raw_Data_for_FY22[[#This Row],[Median]])/25)*20) + AAMC_Raw_Data_for_FY22[[#This Row],[Median]]","v":146849},150058,{"$f":"(((AAMC_Raw_Data_for_FY22[[#This Row],[75th]]-AAMC_Raw_Data_for_FY22[[#This Row],[Median]])/25)*30) + AAMC_Raw_Data_for_FY22[[#This Row],[Median]]","v":153267},{"$f":"(((AAMC_Raw_Data_for_FY22[[#This Row],[75th]]-AAMC_Raw_Data_for_FY22[[#This Row],[Median]])/25)*35) + AAMC_Raw_Data_for_FY22[[#This Row],[Median]]","v":156476},{"$f":"(((AAMC_Raw_Data_for_FY22[[#This Row],[75th]]-AAMC_Raw_Data_for_FY22[[#This Row],[Median]])/25)*40) + AAMC_Raw_Data_for_FY22[[#This Row],[Median]]","v":159685}]
[{"$f":"AAMC_Raw_Data_for_FY22[[#This Row],[Source]]&AAMC_Raw_Data_for_FY22[[#This Row],[Type]]&AAMC_Raw_Data_for_FY22[[#This Row],[School Subset]]&AAMC_Raw_Data_for_FY22[[#This Row],[Rank]]&AAMC_Raw_Data_for_FY22[[#This Row],[Degree]]&AAMC_Raw_Data_for_FY22[[#This Row],[Department / Specialty]]&\"L\"","v":"AAMCAcademicAllProfessorPhDGastroenterology-Med.L"},"Gastroenterology-Med.",2,"AAMC","Academic","All","Professor","PhD","2021-2022",180704,{"$f":"(((AAMC_Raw_Data_for_FY22[[#This Row],[Median]]-AAMC_Raw_Data_for_FY22[[#This Row],[25th]])/25)*5) + AAMC_Raw_Data_for_FY22[[#This Row],[25th]]","v":184448.2},{"$f":"(((AAMC_Raw_Data_for_FY22[[#This Row],[Median]]-AAMC_Raw_Data_for_FY22[[#This Row],[25th]])/25)*10) + AAMC_Raw_Data_for_FY22[[#This Row],[25th]]","v":188192.4},{"$f":"(((AAMC_Raw_Data_for_FY22[[#This Row],[Median]]-AAMC_Raw_Data_for_FY22[[#This Row],[25th]])/25)*15) + AAMC_Raw_Data_for_FY22[[#This Row],[25th]]","v":191936.6},{"$f":"(((AAMC_Raw_Data_for_FY22[[#This Row],[Median]]-AAMC_Raw_Data_for_FY22[[#This Row],[25th]])/25)*20) + AAMC_Raw_Data_for_FY22[[#This Row],[25th]]","v":195680.8},199425,{"$f":"(((AAMC_Raw_Data_for_FY22[[#This Row],[75th]]-AAMC_Raw_Data_for_FY22[[#This Row],[Median]])/25)*5) + AAMC_Raw_Data_for_FY22[[#This Row],[Median]]","v":206062.6},{"$f":"(((AAMC_Raw_Data_for_FY22[[#This Row],[75th]]-AAMC_Raw_Data_for_FY22[[#This Row],[Median]])/25)*10) + AAMC_Raw_Data_for_FY22[[#This Row],[Median]]","v":212700.2},{"$f":"(((AAMC_Raw_Data_for_FY22[[#This Row],[75th]]-AAMC_Raw_Data_for_FY22[[#This Row],[Median]])/25)*15) + AAMC_Raw_Data_for_FY22[[#This Row],[Median]]","v":219337.8},{"$f":"(((AAMC_Raw_Data_for_FY22[[#This Row],[75th]]-AAMC_Raw_Data_for_FY22[[#This Row],[Median]])/25)*20) + AAMC_Raw_Data_for_FY22[[#This Row],[Median]]","v":225975.4},232613,{"$f":"(((AAMC_Raw_Data_for_FY22[[#This Row],[75th]]-AAMC_Raw_Data_for_FY22[[#This Row],[Median]])/25)*30) + AAMC_Raw_Data_for_FY22[[#This Row],[Median]]","v":239250.6},{"$f":"(((AAMC_Raw_Data_for_FY22[[#This Row],[75th]]-AAMC_Raw_Data_for_FY22[[#This Row],[Median]])/25)*35) + AAMC_Raw_Data_for_FY22[[#This Row],[Median]]","v":245888.2},{"$f":"(((AAMC_Raw_Data_for_FY22[[#This Row],[75th]]-AAMC_Raw_Data_for_FY22[[#This Row],[Median]])/25)*40) + AAMC_Raw_Data_for_FY22[[#This Row],[Median]]","v":252525.8}]
[{"$f":"AAMC_Raw_Data_for_FY22[[#This Row],[Source]]&AAMC_Raw_Data_for_FY22[[#This Row],[Type]]&AAMC_Raw_Data_for_FY22[[#This Row],[School Subset]]&AAMC_Raw_Data_for_FY22[[#This Row],[Rank]]&AAMC_Raw_Data_for_FY22[[#This Row],[Degree]]&AAMC_Raw_Data_for_FY22[[#This Row],[Department / Specialty]]&\"L\"","v":"AAMCAcademicAllInstructorPhDGeneral Internal MedicineL"},"General Internal Medicine",5,"AAMC","Academic","All","Instructor","PhD","2021-2022",73754,{"$f":"(((AAMC_Raw_Data_for_FY22[[#This Row],[Median]]-AAMC_Raw_Data_for_FY22[[#This Row],[25th]])/25)*5) + AAMC_Raw_Data_for_FY22[[#This Row],[25th]]","v":77784.600000000006},{"$f":"(((AAMC_Raw_Data_for_FY22[[#This Row],[Median]]-AAMC_Raw_Data_for_FY22[[#This Row],[25th]])/25)*10) + AAMC_Raw_Data_for_FY22[[#This Row],[25th]]","v":81815.199999999997},{"$f":"(((AAMC_Raw_Data_for_FY22[[#This Row],[Median]]-AAMC_Raw_Data_for_FY22[[#This Row],[25th]])/25)*15) + AAMC_Raw_Data_for_FY22[[#This Row],[25th]]","v":85845.8},{"$f":"(((AAMC_Raw_Data_for_FY22[[#This Row],[Median]]-AAMC_Raw_Data_for_FY22[[#This Row],[25th]])/25)*20) + AAMC_Raw_Data_for_FY22[[#This Row],[25th]]","v":89876.4},93907,{"$f":"(((AAMC_Raw_Data_for_FY22[[#This Row],[75th]]-AAMC_Raw_Data_for_FY22[[#This Row],[Median]])/25)*5) + AAMC_Raw_Data_for_FY22[[#This Row],[Median]]","v":97259.6},{"$f":"(((AAMC_Raw_Data_for_FY22[[#This Row],[75th]]-AAMC_Raw_Data_for_FY22[[#This Row],[Median]])/25)*10) + AAMC_Raw_Data_for_FY22[[#This Row],[Median]]","v":100612.2},{"$f":"(((AAMC_Raw_Data_for_FY22[[#This Row],[75th]]-AAMC_Raw_Data_for_FY22[[#This Row],[Median]])/25)*15) + AAMC_Raw_Data_for_FY22[[#This Row],[Median]]","v":103964.8},{"$f":"(((AAMC_Raw_Data_for_FY22[[#This Row],[75th]]-AAMC_Raw_Data_for_FY22[[#This Row],[Median]])/25)*20) + AAMC_Raw_Data_for_FY22[[#This Row],[Median]]","v":107317.4},110670,{"$f":"(((AAMC_Raw_Data_for_FY22[[#This Row],[75th]]-AAMC_Raw_Data_for_FY22[[#This Row],[Median]])/25)*30) + AAMC_Raw_Data_for_FY22[[#This Row],[Median]]","v":114022.6},{"$f":"(((AAMC_Raw_Data_for_FY22[[#This Row],[75th]]-AAMC_Raw_Data_for_FY22[[#This Row],[Median]])/25)*35) + AAMC_Raw_Data_for_FY22[[#This Row],[Median]]","v":117375.2},{"$f":"(((AAMC_Raw_Data_for_FY22[[#This Row],[75th]]-AAMC_Raw_Data_for_FY22[[#This Row],[Median]])/25)*40) + AAMC_Raw_Data_for_FY22[[#This Row],[Median]]","v":120727.8}]
[{"$f":"AAMC_Raw_Data_for_FY22[[#This Row],[Source]]&AAMC_Raw_Data_for_FY22[[#This Row],[Type]]&AAMC_Raw_Data_for_FY22[[#This Row],[School Subset]]&AAMC_Raw_Data_for_FY22[[#This Row],[Rank]]&AAMC_Raw_Data_for_FY22[[#This Row],[Degree]]&AAMC_Raw_Data_for_FY22[[#This Row],[Department / Specialty]]&\"L\"","v":"AAMCAcademicAllAssistantPhDGeneral Internal MedicineL"},"General Internal Medicine",4,"AAMC","Academic","All","Assistant","PhD","2021-2022",101963,{"$f":"(((AAMC_Raw_Data_for_FY22[[#This Row],[Median]]-AAMC_Raw_Data_for_FY22[[#This Row],[25th]])/25)*5) + AAMC_Raw_Data_for_FY22[[#This Row],[25th]]","v":104959.8},{"$f":"(((AAMC_Raw_Data_for_FY22[[#This Row],[Median]]-AAMC_Raw_Data_for_FY22[[#This Row],[25th]])/25)*10) + AAMC_Raw_Data_for_FY22[[#This Row],[25th]]","v":107956.6},{"$f":"(((AAMC_Raw_Data_for_FY22[[#This Row],[Median]]-AAMC_Raw_Data_for_FY22[[#This Row],[25th]])/25)*15) + AAMC_Raw_Data_for_FY22[[#This Row],[25th]]","v":110953.4},{"$f":"(((AAMC_Raw_Data_for_FY22[[#This Row],[Median]]-AAMC_Raw_Data_for_FY22[[#This Row],[25th]])/25)*20) + AAMC_Raw_Data_for_FY22[[#This Row],[25th]]","v":113950.2},116947,{"$f":"(((AAMC_Raw_Data_for_FY22[[#This Row],[75th]]-AAMC_Raw_Data_for_FY22[[#This Row],[Median]])/25)*5) + AAMC_Raw_Data_for_FY22[[#This Row],[Median]]","v":121472.2},{"$f":"(((AAMC_Raw_Data_for_FY22[[#This Row],[75th]]-AAMC_Raw_Data_for_FY22[[#This Row],[Median]])/25)*10) + AAMC_Raw_Data_for_FY22[[#This Row],[Median]]","v":125997.4},{"$f":"(((AAMC_Raw_Data_for_FY22[[#This Row],[75th]]-AAMC_Raw_Data_for_FY22[[#This Row],[Median]])/25)*15) + AAMC_Raw_Data_for_FY22[[#This Row],[Median]]","v":130522.6},{"$f":"(((AAMC_Raw_Data_for_FY22[[#This Row],[75th]]-AAMC_Raw_Data_for_FY22[[#This Row],[Median]])/25)*20) + AAMC_Raw_Data_for_FY22[[#This Row],[Median]]","v":135047.79999999999},139573,{"$f":"(((AAMC_Raw_Data_for_FY22[[#This Row],[75th]]-AAMC_Raw_Data_for_FY22[[#This Row],[Median]])/25)*30) + AAMC_Raw_Data_for_FY22[[#This Row],[Median]]","v":144098.20000000001},{"$f":"(((AAMC_Raw_Data_for_FY22[[#This Row],[75th]]-AAMC_Raw_Data_for_FY22[[#This Row],[Median]])/25)*35) + AAMC_Raw_Data_for_FY22[[#This Row],[Median]]","v":148623.4},{"$f":"(((AAMC_Raw_Data_for_FY22[[#This Row],[75th]]-AAMC_Raw_Data_for_FY22[[#This Row],[Median]])/25)*40) + AAMC_Raw_Data_for_FY22[[#This Row],[Median]]","v":153148.6}]
[{"$f":"AAMC_Raw_Data_for_FY22[[#This Row],[Source]]&AAMC_Raw_Data_for_FY22[[#This Row],[Type]]&AAMC_Raw_Data_for_FY22[[#This Row],[School Subset]]&AAMC_Raw_Data_for_FY22[[#This Row],[Rank]]&AAMC_Raw_Data_for_FY22[[#This Row],[Degree]]&AAMC_Raw_Data_for_FY22[[#This Row],[Department / Specialty]]&\"L\"","v":"AAMCAcademicAllAssociatePhDGeneral Internal MedicineL"},"General Internal Medicine",3,"AAMC","Academic","All","Associate","PhD","2021-2022",124750,{"$f":"(((AAMC_Raw_Data_for_FY22[[#This Row],[Median]]-AAMC_Raw_Data_for_FY22[[#This Row],[25th]])/25)*5) + AAMC_Raw_Data_for_FY22[[#This Row],[25th]]","v":129328.2},{"$f":"(((AAMC_Raw_Data_for_FY22[[#This Row],[Median]]-AAMC_Raw_Data_for_FY22[[#This Row],[25th]])/25)*10) + AAMC_Raw_Data_for_FY22[[#This Row],[25th]]","v":133906.4},{"$f":"(((AAMC_Raw_Data_for_FY22[[#This Row],[Median]]-AAMC_Raw_Data_for_FY22[[#This Row],[25th]])/25)*15) + AAMC_Raw_Data_for_FY22[[#This Row],[25th]]","v":138484.6},{"$f":"(((AAMC_Raw_Data_for_FY22[[#This Row],[Median]]-AAMC_Raw_Data_for_FY22[[#This Row],[25th]])/25)*20) + AAMC_Raw_Data_for_FY22[[#This Row],[25th]]","v":143062.79999999999},147641,{"$f":"(((AAMC_Raw_Data_for_FY22[[#This Row],[75th]]-AAMC_Raw_Data_for_FY22[[#This Row],[Median]])/25)*5) + AAMC_Raw_Data_for_FY22[[#This Row],[Median]]","v":154801},{"$f":"(((AAMC_Raw_Data_for_FY22[[#This Row],[75th]]-AAMC_Raw_Data_for_FY22[[#This Row],[Median]])/25)*10) + AAMC_Raw_Data_for_FY22[[#This Row],[Median]]","v":161961},{"$f":"(((AAMC_Raw_Data_for_FY22[[#This Row],[75th]]-AAMC_Raw_Data_for_FY22[[#This Row],[Median]])/25)*15) + AAMC_Raw_Data_for_FY22[[#This Row],[Median]]","v":169121},{"$f":"(((AAMC_Raw_Data_for_FY22[[#This Row],[75th]]-AAMC_Raw_Data_for_FY22[[#This Row],[Median]])/25)*20) + AAMC_Raw_Data_for_FY22[[#This Row],[Median]]","v":176281},183441,{"$f":"(((AAMC_Raw_Data_for_FY22[[#This Row],[75th]]-AAMC_Raw_Data_for_FY22[[#This Row],[Median]])/25)*30) + AAMC_Raw_Data_for_FY22[[#This Row],[Median]]","v":190601},{"$f":"(((AAMC_Raw_Data_for_FY22[[#This Row],[75th]]-AAMC_Raw_Data_for_FY22[[#This Row],[Median]])/25)*35) + AAMC_Raw_Data_for_FY22[[#This Row],[Median]]","v":197761},{"$f":"(((AAMC_Raw_Data_for_FY22[[#This Row],[75th]]-AAMC_Raw_Data_for_FY22[[#This Row],[Median]])/25)*40) + AAMC_Raw_Data_for_FY22[[#This Row],[Median]]","v":204921}]
[{"$f":"AAMC_Raw_Data_for_FY22[[#This Row],[Source]]&AAMC_Raw_Data_for_FY22[[#This Row],[Type]]&AAMC_Raw_Data_for_FY22[[#This Row],[School Subset]]&AAMC_Raw_Data_for_FY22[[#This Row],[Rank]]&AAMC_Raw_Data_for_FY22[[#This Row],[Degree]]&AAMC_Raw_Data_for_FY22[[#This Row],[Department / Specialty]]&\"L\"","v":"AAMCAcademicAllProfessorPhDGeneral Internal MedicineL"},"General Internal Medicine",2,"AAMC","Academic","All","Professor","PhD","2021-2022",185333,{"$f":"(((AAMC_Raw_Data_for_FY22[[#This Row],[Median]]-AAMC_Raw_Data_for_FY22[[#This Row],[25th]])/25)*5) + AAMC_Raw_Data_for_FY22[[#This Row],[25th]]","v":191424},{"$f":"(((AAMC_Raw_Data_for_FY22[[#This Row],[Median]]-AAMC_Raw_Data_for_FY22[[#This Row],[25th]])/25)*10) + AAMC_Raw_Data_for_FY22[[#This Row],[25th]]","v":197515},{"$f":"(((AAMC_Raw_Data_for_FY22[[#This Row],[Median]]-AAMC_Raw_Data_for_FY22[[#This Row],[25th]])/25)*15) + AAMC_Raw_Data_for_FY22[[#This Row],[25th]]","v":203606},{"$f":"(((AAMC_Raw_Data_for_FY22[[#This Row],[Median]]-AAMC_Raw_Data_for_FY22[[#This Row],[25th]])/25)*20) + AAMC_Raw_Data_for_FY22[[#This Row],[25th]]","v":209697},215788,{"$f":"(((AAMC_Raw_Data_for_FY22[[#This Row],[75th]]-AAMC_Raw_Data_for_FY22[[#This Row],[Median]])/25)*5) + AAMC_Raw_Data_for_FY22[[#This Row],[Median]]","v":226485.2},{"$f":"(((AAMC_Raw_Data_for_FY22[[#This Row],[75th]]-AAMC_Raw_Data_for_FY22[[#This Row],[Median]])/25)*10) + AAMC_Raw_Data_for_FY22[[#This Row],[Median]]","v":237182.4},{"$f":"(((AAMC_Raw_Data_for_FY22[[#This Row],[75th]]-AAMC_Raw_Data_for_FY22[[#This Row],[Median]])/25)*15) + AAMC_Raw_Data_for_FY22[[#This Row],[Median]]","v":247879.6},{"$f":"(((AAMC_Raw_Data_for_FY22[[#This Row],[75th]]-AAMC_Raw_Data_for_FY22[[#This Row],[Median]])/25)*20) + AAMC_Raw_Data_for_FY22[[#This Row],[Median]]","v":258576.8},269274,{"$f":"(((AAMC_Raw_Data_for_FY22[[#This Row],[75th]]-AAMC_Raw_Data_for_FY22[[#This Row],[Median]])/25)*30) + AAMC_Raw_Data_for_FY22[[#This Row],[Median]]","v":279971.20000000001},{"$f":"(((AAMC_Raw_Data_for_FY22[[#This Row],[75th]]-AAMC_Raw_Data_for_FY22[[#This Row],[Median]])/25)*35) + AAMC_Raw_Data_for_FY22[[#This Row],[Median]]","v":290668.40000000002},{"$f":"(((AAMC_Raw_Data_for_FY22[[#This Row],[75th]]-AAMC_Raw_Data_for_FY22[[#This Row],[Median]])/25)*40) + AAMC_Raw_Data_for_FY22[[#This Row],[Median]]","v":301365.59999999998}]
[{"$f":"AAMC_Raw_Data_for_FY22[[#This Row],[Source]]&AAMC_Raw_Data_for_FY22[[#This Row],[Type]]&AAMC_Raw_Data_for_FY22[[#This Row],[School Subset]]&AAMC_Raw_Data_for_FY22[[#This Row],[Rank]]&AAMC_Raw_Data_for_FY22[[#This Row],[Degree]]&AAMC_Raw_Data_for_FY22[[#This Row],[Department / Specialty]]&\"L\"","v":"AAMCAcademicAllChiefPhDGeneral Internal MedicineL"},"General Internal Medicine",6,"AAMC","Academic","All","Chief","PhD","2021-2022",null,{"$f":"(((AAMC_Raw_Data_for_FY22[[#This Row],[Median]]-AAMC_Raw_Data_for_FY22[[#This Row],[25th]])/25)*5) + AAMC_Raw_Data_for_FY22[[#This Row],[25th]]","v":0},{"$f":"(((AAMC_Raw_Data_for_FY22[[#This Row],[Median]]-AAMC_Raw_Data_for_FY22[[#This Row],[25th]])/25)*10) + AAMC_Raw_Data_for_FY22[[#This Row],[25th]]","v":0},{"$f":"(((AAMC_Raw_Data_for_FY22[[#This Row],[Median]]-AAMC_Raw_Data_for_FY22[[#This Row],[25th]])/25)*15) + AAMC_Raw_Data_for_FY22[[#This Row],[25th]]","v":0},{"$f":"(((AAMC_Raw_Data_for_FY22[[#This Row],[Median]]-AAMC_Raw_Data_for_FY22[[#This Row],[25th]])/25)*20) + AAMC_Raw_Data_for_FY22[[#This Row],[25th]]","v":0},null,{"$f":"(((AAMC_Raw_Data_for_FY22[[#This Row],[75th]]-AAMC_Raw_Data_for_FY22[[#This Row],[Median]])/25)*5) + AAMC_Raw_Data_for_FY22[[#This Row],[Median]]","v":0},{"$f":"(((AAMC_Raw_Data_for_FY22[[#This Row],[75th]]-AAMC_Raw_Data_for_FY22[[#This Row],[Median]])/25)*10) + AAMC_Raw_Data_for_FY22[[#This Row],[Median]]","v":0},{"$f":"(((AAMC_Raw_Data_for_FY22[[#This Row],[75th]]-AAMC_Raw_Data_for_FY22[[#This Row],[Median]])/25)*15) + AAMC_Raw_Data_for_FY22[[#This Row],[Median]]","v":0},{"$f":"(((AAMC_Raw_Data_for_FY22[[#This Row],[75th]]-AAMC_Raw_Data_for_FY22[[#This Row],[Median]])/25)*20) + AAMC_Raw_Data_for_FY22[[#This Row],[Median]]","v":0},null,{"$f":"(((AAMC_Raw_Data_for_FY22[[#This Row],[75th]]-AAMC_Raw_Data_for_FY22[[#This Row],[Median]])/25)*30) + AAMC_Raw_Data_for_FY22[[#This Row],[Median]]","v":0},{"$f":"(((AAMC_Raw_Data_for_FY22[[#This Row],[75th]]-AAMC_Raw_Data_for_FY22[[#This Row],[Median]])/25)*35) + AAMC_Raw_Data_for_FY22[[#This Row],[Median]]","v":0},{"$f":"(((AAMC_Raw_Data_for_FY22[[#This Row],[75th]]-AAMC_Raw_Data_for_FY22[[#This Row],[Median]])/25)*40) + AAMC_Raw_Data_for_FY22[[#This Row],[Median]]","v":0}]
[{"$f":"AAMC_Raw_Data_for_FY22[[#This Row],[Source]]&AAMC_Raw_Data_for_FY22[[#This Row],[Type]]&AAMC_Raw_Data_for_FY22[[#This Row],[School Subset]]&AAMC_Raw_Data_for_FY22[[#This Row],[Rank]]&AAMC_Raw_Data_for_FY22[[#This Row],[Degree]]&AAMC_Raw_Data_for_FY22[[#This Row],[Department / Specialty]]&\"L\"","v":"AAMCAcademicAllInstructorPhDGeriatrics-Med.L"},"Geriatrics-Med.",5,"AAMC","Academic","All","Instructor","PhD","2021-2022",67500,{"$f":"(((AAMC_Raw_Data_for_FY22[[#This Row],[Median]]-AAMC_Raw_Data_for_FY22[[#This Row],[25th]])/25)*5) + AAMC_Raw_Data_for_FY22[[#This Row],[25th]]","v":69770},{"$f":"(((AAMC_Raw_Data_for_FY22[[#This Row],[Median]]-AAMC_Raw_Data_for_FY22[[#This Row],[25th]])/25)*10) + AAMC_Raw_Data_for_FY22[[#This Row],[25th]]","v":72040},{"$f":"(((AAMC_Raw_Data_for_FY22[[#This Row],[Median]]-AAMC_Raw_Data_for_FY22[[#This Row],[25th]])/25)*15) + AAMC_Raw_Data_for_FY22[[#This Row],[25th]]","v":74310},{"$f":"(((AAMC_Raw_Data_for_FY22[[#This Row],[Median]]-AAMC_Raw_Data_for_FY22[[#This Row],[25th]])/25)*20) + AAMC_Raw_Data_for_FY22[[#This Row],[25th]]","v":76580},78850,{"$f":"(((AAMC_Raw_Data_for_FY22[[#This Row],[75th]]-AAMC_Raw_Data_for_FY22[[#This Row],[Median]])/25)*5) + AAMC_Raw_Data_for_FY22[[#This Row],[Median]]","v":80766.600000000006},{"$f":"(((AAMC_Raw_Data_for_FY22[[#This Row],[75th]]-AAMC_Raw_Data_for_FY22[[#This Row],[Median]])/25)*10) + AAMC_Raw_Data_for_FY22[[#This Row],[Median]]","v":82683.199999999997},{"$f":"(((AAMC_Raw_Data_for_FY22[[#This Row],[75th]]-AAMC_Raw_Data_for_FY22[[#This Row],[Median]])/25)*15) + AAMC_Raw_Data_for_FY22[[#This Row],[Median]]","v":84599.8},{"$f":"(((AAMC_Raw_Data_for_FY22[[#This Row],[75th]]-AAMC_Raw_Data_for_FY22[[#This Row],[Median]])/25)*20) + AAMC_Raw_Data_for_FY22[[#This Row],[Median]]","v":86516.4},88433,{"$f":"(((AAMC_Raw_Data_for_FY22[[#This Row],[75th]]-AAMC_Raw_Data_for_FY22[[#This Row],[Median]])/25)*30) + AAMC_Raw_Data_for_FY22[[#This Row],[Median]]","v":90349.6},{"$f":"(((AAMC_Raw_Data_for_FY22[[#This Row],[75th]]-AAMC_Raw_Data_for_FY22[[#This Row],[Median]])/25)*35) + AAMC_Raw_Data_for_FY22[[#This Row],[Median]]","v":92266.2},{"$f":"(((AAMC_Raw_Data_for_FY22[[#This Row],[75th]]-AAMC_Raw_Data_for_FY22[[#This Row],[Median]])/25)*40) + AAMC_Raw_Data_for_FY22[[#This Row],[Median]]","v":94182.8}]
[{"$f":"AAMC_Raw_Data_for_FY22[[#This Row],[Source]]&AAMC_Raw_Data_for_FY22[[#This Row],[Type]]&AAMC_Raw_Data_for_FY22[[#This Row],[School Subset]]&AAMC_Raw_Data_for_FY22[[#This Row],[Rank]]&AAMC_Raw_Data_for_FY22[[#This Row],[Degree]]&AAMC_Raw_Data_for_FY22[[#This Row],[Department / Specialty]]&\"L\"","v":"AAMCAcademicAllAssistantPhDGeriatrics-Med.L"},"Geriatrics-Med.",4,"AAMC","Academic","All","Assistant","PhD","2021-2022",90100,{"$f":"(((AAMC_Raw_Data_for_FY22[[#This Row],[Median]]-AAMC_Raw_Data_for_FY22[[#This Row],[25th]])/25)*5) + AAMC_Raw_Data_for_FY22[[#This Row],[25th]]","v":93080},{"$f":"(((AAMC_Raw_Data_for_FY22[[#This Row],[Median]]-AAMC_Raw_Data_for_FY22[[#This Row],[25th]])/25)*10) + AAMC_Raw_Data_for_FY22[[#This Row],[25th]]","v":96060},{"$f":"(((AAMC_Raw_Data_for_FY22[[#This Row],[Median]]-AAMC_Raw_Data_for_FY22[[#This Row],[25th]])/25)*15) + AAMC_Raw_Data_for_FY22[[#This Row],[25th]]","v":99040},{"$f":"(((AAMC_Raw_Data_for_FY22[[#This Row],[Median]]-AAMC_Raw_Data_for_FY22[[#This Row],[25th]])/25)*20) + AAMC_Raw_Data_for_FY22[[#This Row],[25th]]","v":102020},105000,{"$f":"(((AAMC_Raw_Data_for_FY22[[#This Row],[75th]]-AAMC_Raw_Data_for_FY22[[#This Row],[Median]])/25)*5) + AAMC_Raw_Data_for_FY22[[#This Row],[Median]]","v":108020},{"$f":"(((AAMC_Raw_Data_for_FY22[[#This Row],[75th]]-AAMC_Raw_Data_for_FY22[[#This Row],[Median]])/25)*10) + AAMC_Raw_Data_for_FY22[[#This Row],[Median]]","v":111040},{"$f":"(((AAMC_Raw_Data_for_FY22[[#This Row],[75th]]-AAMC_Raw_Data_for_FY22[[#This Row],[Median]])/25)*15) + AAMC_Raw_Data_for_FY22[[#This Row],[Median]]","v":114060},{"$f":"(((AAMC_Raw_Data_for_FY22[[#This Row],[75th]]-AAMC_Raw_Data_for_FY22[[#This Row],[Median]])/25)*20) + AAMC_Raw_Data_for_FY22[[#This Row],[Median]]","v":117080},120100,{"$f":"(((AAMC_Raw_Data_for_FY22[[#This Row],[75th]]-AAMC_Raw_Data_for_FY22[[#This Row],[Median]])/25)*30) + AAMC_Raw_Data_for_FY22[[#This Row],[Median]]","v":123120},{"$f":"(((AAMC_Raw_Data_for_FY22[[#This Row],[75th]]-AAMC_Raw_Data_for_FY22[[#This Row],[Median]])/25)*35) + AAMC_Raw_Data_for_FY22[[#This Row],[Median]]","v":126140},{"$f":"(((AAMC_Raw_Data_for_FY22[[#This Row],[75th]]-AAMC_Raw_Data_for_FY22[[#This Row],[Median]])/25)*40) + AAMC_Raw_Data_for_FY22[[#This Row],[Median]]","v":129160}]
[{"$f":"AAMC_Raw_Data_for_FY22[[#This Row],[Source]]&AAMC_Raw_Data_for_FY22[[#This Row],[Type]]&AAMC_Raw_Data_for_FY22[[#This Row],[School Subset]]&AAMC_Raw_Data_for_FY22[[#This Row],[Rank]]&AAMC_Raw_Data_for_FY22[[#This Row],[Degree]]&AAMC_Raw_Data_for_FY22[[#This Row],[Department / Specialty]]&\"L\"","v":"AAMCAcademicAllAssociatePhDGeriatrics-Med.L"},"Geriatrics-Med.",3,"AAMC","Academic","All","Associate","PhD","2021-2022",147964,{"$f":"(((AAMC_Raw_Data_for_FY22[[#This Row],[Median]]-AAMC_Raw_Data_for_FY22[[#This Row],[25th]])/25)*5) + AAMC_Raw_Data_for_FY22[[#This Row],[25th]]","v":149819.79999999999},{"$f":"(((AAMC_Raw_Data_for_FY22[[#This Row],[Median]]-AAMC_Raw_Data_for_FY22[[#This Row],[25th]])/25)*10) + AAMC_Raw_Data_for_FY22[[#This Row],[25th]]","v":151675.6},{"$f":"(((AAMC_Raw_Data_for_FY22[[#This Row],[Median]]-AAMC_Raw_Data_for_FY22[[#This Row],[25th]])/25)*15) + AAMC_Raw_Data_for_FY22[[#This Row],[25th]]","v":153531.4},{"$f":"(((AAMC_Raw_Data_for_FY22[[#This Row],[Median]]-AAMC_Raw_Data_for_FY22[[#This Row],[25th]])/25)*20) + AAMC_Raw_Data_for_FY22[[#This Row],[25th]]","v":155387.20000000001},157243,{"$f":"(((AAMC_Raw_Data_for_FY22[[#This Row],[75th]]-AAMC_Raw_Data_for_FY22[[#This Row],[Median]])/25)*5) + AAMC_Raw_Data_for_FY22[[#This Row],[Median]]","v":159902},{"$f":"(((AAMC_Raw_Data_for_FY22[[#This Row],[75th]]-AAMC_Raw_Data_for_FY22[[#This Row],[Median]])/25)*10) + AAMC_Raw_Data_for_FY22[[#This Row],[Median]]","v":162561},{"$f":"(((AAMC_Raw_Data_for_FY22[[#This Row],[75th]]-AAMC_Raw_Data_for_FY22[[#This Row],[Median]])/25)*15) + AAMC_Raw_Data_for_FY22[[#This Row],[Median]]","v":165220},{"$f":"(((AAMC_Raw_Data_for_FY22[[#This Row],[75th]]-AAMC_Raw_Data_for_FY22[[#This Row],[Median]])/25)*20) + AAMC_Raw_Data_for_FY22[[#This Row],[Median]]","v":167879},170538,{"$f":"(((AAMC_Raw_Data_for_FY22[[#This Row],[75th]]-AAMC_Raw_Data_for_FY22[[#This Row],[Median]])/25)*30) + AAMC_Raw_Data_for_FY22[[#This Row],[Median]]","v":173197},{"$f":"(((AAMC_Raw_Data_for_FY22[[#This Row],[75th]]-AAMC_Raw_Data_for_FY22[[#This Row],[Median]])/25)*35) + AAMC_Raw_Data_for_FY22[[#This Row],[Median]]","v":175856},{"$f":"(((AAMC_Raw_Data_for_FY22[[#This Row],[75th]]-AAMC_Raw_Data_for_FY22[[#This Row],[Median]])/25)*40) + AAMC_Raw_Data_for_FY22[[#This Row],[Median]]","v":178515}]
[{"$f":"AAMC_Raw_Data_for_FY22[[#This Row],[Source]]&AAMC_Raw_Data_for_FY22[[#This Row],[Type]]&AAMC_Raw_Data_for_FY22[[#This Row],[School Subset]]&AAMC_Raw_Data_for_FY22[[#This Row],[Rank]]&AAMC_Raw_Data_for_FY22[[#This Row],[Degree]]&AAMC_Raw_Data_for_FY22[[#This Row],[Department / Specialty]]&\"L\"","v":"AAMCAcademicAllProfessorPhDGeriatrics-Med.L"},"Geriatrics-Med.",2,"AAMC","Academic","All","Professor","PhD","2021-2022",159030,{"$f":"(((AAMC_Raw_Data_for_FY22[[#This Row],[Median]]-AAMC_Raw_Data_for_FY22[[#This Row],[25th]])/25)*5) + AAMC_Raw_Data_for_FY22[[#This Row],[25th]]","v":166759.20000000001},{"$f":"(((AAMC_Raw_Data_for_FY22[[#This Row],[Median]]-AAMC_Raw_Data_for_FY22[[#This Row],[25th]])/25)*10) + AAMC_Raw_Data_for_FY22[[#This Row],[25th]]","v":174488.4},{"$f":"(((AAMC_Raw_Data_for_FY22[[#This Row],[Median]]-AAMC_Raw_Data_for_FY22[[#This Row],[25th]])/25)*15) + AAMC_Raw_Data_for_FY22[[#This Row],[25th]]","v":182217.60000000001},{"$f":"(((AAMC_Raw_Data_for_FY22[[#This Row],[Median]]-AAMC_Raw_Data_for_FY22[[#This Row],[25th]])/25)*20) + AAMC_Raw_Data_for_FY22[[#This Row],[25th]]","v":189946.8},197676,{"$f":"(((AAMC_Raw_Data_for_FY22[[#This Row],[75th]]-AAMC_Raw_Data_for_FY22[[#This Row],[Median]])/25)*5) + AAMC_Raw_Data_for_FY22[[#This Row],[Median]]","v":207819},{"$f":"(((AAMC_Raw_Data_for_FY22[[#This Row],[75th]]-AAMC_Raw_Data_for_FY22[[#This Row],[Median]])/25)*10) + AAMC_Raw_Data_for_FY22[[#This Row],[Median]]","v":217962},{"$f":"(((AAMC_Raw_Data_for_FY22[[#This Row],[75th]]-AAMC_Raw_Data_for_FY22[[#This Row],[Median]])/25)*15) + AAMC_Raw_Data_for_FY22[[#This Row],[Median]]","v":228105},{"$f":"(((AAMC_Raw_Data_for_FY22[[#This Row],[75th]]-AAMC_Raw_Data_for_FY22[[#This Row],[Median]])/25)*20) + AAMC_Raw_Data_for_FY22[[#This Row],[Median]]","v":238248},248391,{"$f":"(((AAMC_Raw_Data_for_FY22[[#This Row],[75th]]-AAMC_Raw_Data_for_FY22[[#This Row],[Median]])/25)*30) + AAMC_Raw_Data_for_FY22[[#This Row],[Median]]","v":258534},{"$f":"(((AAMC_Raw_Data_for_FY22[[#This Row],[75th]]-AAMC_Raw_Data_for_FY22[[#This Row],[Median]])/25)*35) + AAMC_Raw_Data_for_FY22[[#This Row],[Median]]","v":268677},{"$f":"(((AAMC_Raw_Data_for_FY22[[#This Row],[75th]]-AAMC_Raw_Data_for_FY22[[#This Row],[Median]])/25)*40) + AAMC_Raw_Data_for_FY22[[#This Row],[Median]]","v":278820}]
[{"$f":"AAMC_Raw_Data_for_FY22[[#This Row],[Source]]&AAMC_Raw_Data_for_FY22[[#This Row],[Type]]&AAMC_Raw_Data_for_FY22[[#This Row],[School Subset]]&AAMC_Raw_Data_for_FY22[[#This Row],[Rank]]&AAMC_Raw_Data_for_FY22[[#This Row],[Degree]]&AAMC_Raw_Data_for_FY22[[#This Row],[Department / Specialty]]&\"L\"","v":"AAMCAcademicAllInstructorPhDHematology/Oncology-Med.L"},"Hematology/Oncology-Med.",5,"AAMC","Academic","All","Instructor","PhD","2021-2022",72296,{"$f":"(((AAMC_Raw_Data_for_FY22[[#This Row],[Median]]-AAMC_Raw_Data_for_FY22[[#This Row],[25th]])/25)*5) + AAMC_Raw_Data_for_FY22[[#This Row],[25th]]","v":75839.399999999994},{"$f":"(((AAMC_Raw_Data_for_FY22[[#This Row],[Median]]-AAMC_Raw_Data_for_FY22[[#This Row],[25th]])/25)*10) + AAMC_Raw_Data_for_FY22[[#This Row],[25th]]","v":79382.8},{"$f":"(((AAMC_Raw_Data_for_FY22[[#This Row],[Median]]-AAMC_Raw_Data_for_FY22[[#This Row],[25th]])/25)*15) + AAMC_Raw_Data_for_FY22[[#This Row],[25th]]","v":82926.2},{"$f":"(((AAMC_Raw_Data_for_FY22[[#This Row],[Median]]-AAMC_Raw_Data_for_FY22[[#This Row],[25th]])/25)*20) + AAMC_Raw_Data_for_FY22[[#This Row],[25th]]","v":86469.6},90013,{"$f":"(((AAMC_Raw_Data_for_FY22[[#This Row],[75th]]-AAMC_Raw_Data_for_FY22[[#This Row],[Median]])/25)*5) + AAMC_Raw_Data_for_FY22[[#This Row],[Median]]","v":94500.4},{"$f":"(((AAMC_Raw_Data_for_FY22[[#This Row],[75th]]-AAMC_Raw_Data_for_FY22[[#This Row],[Median]])/25)*10) + AAMC_Raw_Data_for_FY22[[#This Row],[Median]]","v":98987.8},{"$f":"(((AAMC_Raw_Data_for_FY22[[#This Row],[75th]]-AAMC_Raw_Data_for_FY22[[#This Row],[Median]])/25)*15) + AAMC_Raw_Data_for_FY22[[#This Row],[Median]]","v":103475.2},{"$f":"(((AAMC_Raw_Data_for_FY22[[#This Row],[75th]]-AAMC_Raw_Data_for_FY22[[#This Row],[Median]])/25)*20) + AAMC_Raw_Data_for_FY22[[#This Row],[Median]]","v":107962.6},112450,{"$f":"(((AAMC_Raw_Data_for_FY22[[#This Row],[75th]]-AAMC_Raw_Data_for_FY22[[#This Row],[Median]])/25)*30) + AAMC_Raw_Data_for_FY22[[#This Row],[Median]]","v":116937.4},{"$f":"(((AAMC_Raw_Data_for_FY22[[#This Row],[75th]]-AAMC_Raw_Data_for_FY22[[#This Row],[Median]])/25)*35) + AAMC_Raw_Data_for_FY22[[#This Row],[Median]]","v":121424.8},{"$f":"(((AAMC_Raw_Data_for_FY22[[#This Row],[75th]]-AAMC_Raw_Data_for_FY22[[#This Row],[Median]])/25)*40) + AAMC_Raw_Data_for_FY22[[#This Row],[Median]]","v":125912.2}]
[{"$f":"AAMC_Raw_Data_for_FY22[[#This Row],[Source]]&AAMC_Raw_Data_for_FY22[[#This Row],[Type]]&AAMC_Raw_Data_for_FY22[[#This Row],[School Subset]]&AAMC_Raw_Data_for_FY22[[#This Row],[Rank]]&AAMC_Raw_Data_for_FY22[[#This Row],[Degree]]&AAMC_Raw_Data_for_FY22[[#This Row],[Department / Specialty]]&\"L\"","v":"AAMCAcademicAllAssistantPhDHematology/Oncology-Med.L"},"Hematology/Oncology-Med.",4,"AAMC","Academic","All","Assistant","PhD","2021-2022",93600,{"$f":"(((AAMC_Raw_Data_for_FY22[[#This Row],[Median]]-AAMC_Raw_Data_for_FY22[[#This Row],[25th]])/25)*5) + AAMC_Raw_Data_for_FY22[[#This Row],[25th]]","v":98880},{"$f":"(((AAMC_Raw_Data_for_FY22[[#This Row],[Median]]-AAMC_Raw_Data_for_FY22[[#This Row],[25th]])/25)*10) + AAMC_Raw_Data_for_FY22[[#This Row],[25th]]","v":104160},{"$f":"(((AAMC_Raw_Data_for_FY22[[#This Row],[Median]]-AAMC_Raw_Data_for_FY22[[#This Row],[25th]])/25)*15) + AAMC_Raw_Data_for_FY22[[#This Row],[25th]]","v":109440},{"$f":"(((AAMC_Raw_Data_for_FY22[[#This Row],[Median]]-AAMC_Raw_Data_for_FY22[[#This Row],[25th]])/25)*20) + AAMC_Raw_Data_for_FY22[[#This Row],[25th]]","v":114720},120000,{"$f":"(((AAMC_Raw_Data_for_FY22[[#This Row],[75th]]-AAMC_Raw_Data_for_FY22[[#This Row],[Median]])/25)*5) + AAMC_Raw_Data_for_FY22[[#This Row],[Median]]","v":123040},{"$f":"(((AAMC_Raw_Data_for_FY22[[#This Row],[75th]]-AAMC_Raw_Data_for_FY22[[#This Row],[Median]])/25)*10) + AAMC_Raw_Data_for_FY22[[#This Row],[Median]]","v":126080},{"$f":"(((AAMC_Raw_Data_for_FY22[[#This Row],[75th]]-AAMC_Raw_Data_for_FY22[[#This Row],[Median]])/25)*15) + AAMC_Raw_Data_for_FY22[[#This Row],[Median]]","v":129120},{"$f":"(((AAMC_Raw_Data_for_FY22[[#This Row],[75th]]-AAMC_Raw_Data_for_FY22[[#This Row],[Median]])/25)*20) + AAMC_Raw_Data_for_FY22[[#This Row],[Median]]","v":132160},135200,{"$f":"(((AAMC_Raw_Data_for_FY22[[#This Row],[75th]]-AAMC_Raw_Data_for_FY22[[#This Row],[Median]])/25)*30) + AAMC_Raw_Data_for_FY22[[#This Row],[Median]]","v":138240},{"$f":"(((AAMC_Raw_Data_for_FY22[[#This Row],[75th]]-AAMC_Raw_Data_for_FY22[[#This Row],[Median]])/25)*35) + AAMC_Raw_Data_for_FY22[[#This Row],[Median]]","v":141280},{"$f":"(((AAMC_Raw_Data_for_FY22[[#This Row],[75th]]-AAMC_Raw_Data_for_FY22[[#This Row],[Median]])/25)*40) + AAMC_Raw_Data_for_FY22[[#This Row],[Median]]","v":144320}]
[{"$f":"AAMC_Raw_Data_for_FY22[[#This Row],[Source]]&AAMC_Raw_Data_for_FY22[[#This Row],[Type]]&AAMC_Raw_Data_for_FY22[[#This Row],[School Subset]]&AAMC_Raw_Data_for_FY22[[#This Row],[Rank]]&AAMC_Raw_Data_for_FY22[[#This Row],[Degree]]&AAMC_Raw_Data_for_FY22[[#This Row],[Department / Specialty]]&\"L\"","v":"AAMCAcademicAllAssociatePhDHematology/Oncology-Med.L"},"Hematology/Oncology-Med.",3,"AAMC","Academic","All","Associate","PhD","2021-2022",126666,{"$f":"(((AAMC_Raw_Data_for_FY22[[#This Row],[Median]]-AAMC_Raw_Data_for_FY22[[#This Row],[25th]])/25)*5) + AAMC_Raw_Data_for_FY22[[#This Row],[25th]]","v":132167.79999999999},{"$f":"(((AAMC_Raw_Data_for_FY22[[#This Row],[Median]]-AAMC_Raw_Data_for_FY22[[#This Row],[25th]])/25)*10) + AAMC_Raw_Data_for_FY22[[#This Row],[25th]]","v":137669.6},{"$f":"(((AAMC_Raw_Data_for_FY22[[#This Row],[Median]]-AAMC_Raw_Data_for_FY22[[#This Row],[25th]])/25)*15) + AAMC_Raw_Data_for_FY22[[#This Row],[25th]]","v":143171.4},{"$f":"(((AAMC_Raw_Data_for_FY22[[#This Row],[Median]]-AAMC_Raw_Data_for_FY22[[#This Row],[25th]])/25)*20) + AAMC_Raw_Data_for_FY22[[#This Row],[25th]]","v":148673.20000000001},154175,{"$f":"(((AAMC_Raw_Data_for_FY22[[#This Row],[75th]]-AAMC_Raw_Data_for_FY22[[#This Row],[Median]])/25)*5) + AAMC_Raw_Data_for_FY22[[#This Row],[Median]]","v":159484.4},{"$f":"(((AAMC_Raw_Data_for_FY22[[#This Row],[75th]]-AAMC_Raw_Data_for_FY22[[#This Row],[Median]])/25)*10) + AAMC_Raw_Data_for_FY22[[#This Row],[Median]]","v":164793.79999999999},{"$f":"(((AAMC_Raw_Data_for_FY22[[#This Row],[75th]]-AAMC_Raw_Data_for_FY22[[#This Row],[Median]])/25)*15) + AAMC_Raw_Data_for_FY22[[#This Row],[Median]]","v":170103.2},{"$f":"(((AAMC_Raw_Data_for_FY22[[#This Row],[75th]]-AAMC_Raw_Data_for_FY22[[#This Row],[Median]])/25)*20) + AAMC_Raw_Data_for_FY22[[#This Row],[Median]]","v":175412.6},180722,{"$f":"(((AAMC_Raw_Data_for_FY22[[#This Row],[75th]]-AAMC_Raw_Data_for_FY22[[#This Row],[Median]])/25)*30) + AAMC_Raw_Data_for_FY22[[#This Row],[Median]]","v":186031.4},{"$f":"(((AAMC_Raw_Data_for_FY22[[#This Row],[75th]]-AAMC_Raw_Data_for_FY22[[#This Row],[Median]])/25)*35) + AAMC_Raw_Data_for_FY22[[#This Row],[Median]]","v":191340.79999999999},{"$f":"(((AAMC_Raw_Data_for_FY22[[#This Row],[75th]]-AAMC_Raw_Data_for_FY22[[#This Row],[Median]])/25)*40) + AAMC_Raw_Data_for_FY22[[#This Row],[Median]]","v":196650.2}]
[{"$f":"AAMC_Raw_Data_for_FY22[[#This Row],[Source]]&AAMC_Raw_Data_for_FY22[[#This Row],[Type]]&AAMC_Raw_Data_for_FY22[[#This Row],[School Subset]]&AAMC_Raw_Data_for_FY22[[#This Row],[Rank]]&AAMC_Raw_Data_for_FY22[[#This Row],[Degree]]&AAMC_Raw_Data_for_FY22[[#This Row],[Department / Specialty]]&\"L\"","v":"AAMCAcademicAllProfessorPhDHematology/Oncology-Med.L"},"Hematology/Oncology-Med.",2,"AAMC","Academic","All","Professor","PhD","2021-2022",180670,{"$f":"(((AAMC_Raw_Data_for_FY22[[#This Row],[Median]]-AAMC_Raw_Data_for_FY22[[#This Row],[25th]])/25)*5) + AAMC_Raw_Data_for_FY22[[#This Row],[25th]]","v":189870.8},{"$f":"(((AAMC_Raw_Data_for_FY22[[#This Row],[Median]]-AAMC_Raw_Data_for_FY22[[#This Row],[25th]])/25)*10) + AAMC_Raw_Data_for_FY22[[#This Row],[25th]]","v":199071.6},{"$f":"(((AAMC_Raw_Data_for_FY22[[#This Row],[Median]]-AAMC_Raw_Data_for_FY22[[#This Row],[25th]])/25)*15) + AAMC_Raw_Data_for_FY22[[#This Row],[25th]]","v":208272.4},{"$f":"(((AAMC_Raw_Data_for_FY22[[#This Row],[Median]]-AAMC_Raw_Data_for_FY22[[#This Row],[25th]])/25)*20) + AAMC_Raw_Data_for_FY22[[#This Row],[25th]]","v":217473.2},226674,{"$f":"(((AAMC_Raw_Data_for_FY22[[#This Row],[75th]]-AAMC_Raw_Data_for_FY22[[#This Row],[Median]])/25)*5) + AAMC_Raw_Data_for_FY22[[#This Row],[Median]]","v":237022.6},{"$f":"(((AAMC_Raw_Data_for_FY22[[#This Row],[75th]]-AAMC_Raw_Data_for_FY22[[#This Row],[Median]])/25)*10) + AAMC_Raw_Data_for_FY22[[#This Row],[Median]]","v":247371.2},{"$f":"(((AAMC_Raw_Data_for_FY22[[#This Row],[75th]]-AAMC_Raw_Data_for_FY22[[#This Row],[Median]])/25)*15) + AAMC_Raw_Data_for_FY22[[#This Row],[Median]]","v":257719.8},{"$f":"(((AAMC_Raw_Data_for_FY22[[#This Row],[75th]]-AAMC_Raw_Data_for_FY22[[#This Row],[Median]])/25)*20) + AAMC_Raw_Data_for_FY22[[#This Row],[Median]]","v":268068.40000000002},278417,{"$f":"(((AAMC_Raw_Data_for_FY22[[#This Row],[75th]]-AAMC_Raw_Data_for_FY22[[#This Row],[Median]])/25)*30) + AAMC_Raw_Data_for_FY22[[#This Row],[Median]]","v":288765.59999999998},{"$f":"(((AAMC_Raw_Data_for_FY22[[#This Row],[75th]]-AAMC_Raw_Data_for_FY22[[#This Row],[Median]])/25)*35) + AAMC_Raw_Data_for_FY22[[#This Row],[Median]]","v":299114.2},{"$f":"(((AAMC_Raw_Data_for_FY22[[#This Row],[75th]]-AAMC_Raw_Data_for_FY22[[#This Row],[Median]])/25)*40) + AAMC_Raw_Data_for_FY22[[#This Row],[Median]]","v":309462.8}]
[{"$f":"AAMC_Raw_Data_for_FY22[[#This Row],[Source]]&AAMC_Raw_Data_for_FY22[[#This Row],[Type]]&AAMC_Raw_Data_for_FY22[[#This Row],[School Subset]]&AAMC_Raw_Data_for_FY22[[#This Row],[Rank]]&AAMC_Raw_Data_for_FY22[[#This Row],[Degree]]&AAMC_Raw_Data_for_FY22[[#This Row],[Department / Specialty]]&\"L\"","v":"AAMCAcademicAllChiefPhDHematology/Oncology-Med.L"},"Hematology/Oncology-Med.",6,"AAMC","Academic","All","Chief","PhD","2021-2022",null,{"$f":"(((AAMC_Raw_Data_for_FY22[[#This Row],[Median]]-AAMC_Raw_Data_for_FY22[[#This Row],[25th]])/25)*5) + AAMC_Raw_Data_for_FY22[[#This Row],[25th]]","v":0},{"$f":"(((AAMC_Raw_Data_for_FY22[[#This Row],[Median]]-AAMC_Raw_Data_for_FY22[[#This Row],[25th]])/25)*10) + AAMC_Raw_Data_for_FY22[[#This Row],[25th]]","v":0},{"$f":"(((AAMC_Raw_Data_for_FY22[[#This Row],[Median]]-AAMC_Raw_Data_for_FY22[[#This Row],[25th]])/25)*15) + AAMC_Raw_Data_for_FY22[[#This Row],[25th]]","v":0},{"$f":"(((AAMC_Raw_Data_for_FY22[[#This Row],[Median]]-AAMC_Raw_Data_for_FY22[[#This Row],[25th]])/25)*20) + AAMC_Raw_Data_for_FY22[[#This Row],[25th]]","v":0},null,{"$f":"(((AAMC_Raw_Data_for_FY22[[#This Row],[75th]]-AAMC_Raw_Data_for_FY22[[#This Row],[Median]])/25)*5) + AAMC_Raw_Data_for_FY22[[#This Row],[Median]]","v":0},{"$f":"(((AAMC_Raw_Data_for_FY22[[#This Row],[75th]]-AAMC_Raw_Data_for_FY22[[#This Row],[Median]])/25)*10) + AAMC_Raw_Data_for_FY22[[#This Row],[Median]]","v":0},{"$f":"(((AAMC_Raw_Data_for_FY22[[#This Row],[75th]]-AAMC_Raw_Data_for_FY22[[#This Row],[Median]])/25)*15) + AAMC_Raw_Data_for_FY22[[#This Row],[Median]]","v":0},{"$f":"(((AAMC_Raw_Data_for_FY22[[#This Row],[75th]]-AAMC_Raw_Data_for_FY22[[#This Row],[Median]])/25)*20) + AAMC_Raw_Data_for_FY22[[#This Row],[Median]]","v":0},null,{"$f":"(((AAMC_Raw_Data_for_FY22[[#This Row],[75th]]-AAMC_Raw_Data_for_FY22[[#This Row],[Median]])/25)*30) + AAMC_Raw_Data_for_FY22[[#This Row],[Median]]","v":0},{"$f":"(((AAMC_Raw_Data_for_FY22[[#This Row],[75th]]-AAMC_Raw_Data_for_FY22[[#This Row],[Median]])/25)*35) + AAMC_Raw_Data_for_FY22[[#This Row],[Median]]","v":0},{"$f":"(((AAMC_Raw_Data_for_FY22[[#This Row],[75th]]-AAMC_Raw_Data_for_FY22[[#This Row],[Median]])/25)*40) + AAMC_Raw_Data_for_FY22[[#This Row],[Median]]","v":0}]
[{"$f":"AAMC_Raw_Data_for_FY22[[#This Row],[Source]]&AAMC_Raw_Data_for_FY22[[#This Row],[Type]]&AAMC_Raw_Data_for_FY22[[#This Row],[School Subset]]&AAMC_Raw_Data_for_FY22[[#This Row],[Rank]]&AAMC_Raw_Data_for_FY22[[#This Row],[Degree]]&AAMC_Raw_Data_for_FY22[[#This Row],[Department / Specialty]]&\"L\"","v":"AAMCAcademicAllChairPhDHematology/Oncology-Med.L"},"Hematology/Oncology-Med.",1,"AAMC","Academic","All","Chair","PhD","2021-2022",null,{"$f":"(((AAMC_Raw_Data_for_FY22[[#This Row],[Median]]-AAMC_Raw_Data_for_FY22[[#This Row],[25th]])/25)*5) + AAMC_Raw_Data_for_FY22[[#This Row],[25th]]","v":0},{"$f":"(((AAMC_Raw_Data_for_FY22[[#This Row],[Median]]-AAMC_Raw_Data_for_FY22[[#This Row],[25th]])/25)*10) + AAMC_Raw_Data_for_FY22[[#This Row],[25th]]","v":0},{"$f":"(((AAMC_Raw_Data_for_FY22[[#This Row],[Median]]-AAMC_Raw_Data_for_FY22[[#This Row],[25th]])/25)*15) + AAMC_Raw_Data_for_FY22[[#This Row],[25th]]","v":0},{"$f":"(((AAMC_Raw_Data_for_FY22[[#This Row],[Median]]-AAMC_Raw_Data_for_FY22[[#This Row],[25th]])/25)*20) + AAMC_Raw_Data_for_FY22[[#This Row],[25th]]","v":0},null,{"$f":"(((AAMC_Raw_Data_for_FY22[[#This Row],[75th]]-AAMC_Raw_Data_for_FY22[[#This Row],[Median]])/25)*5) + AAMC_Raw_Data_for_FY22[[#This Row],[Median]]","v":0},{"$f":"(((AAMC_Raw_Data_for_FY22[[#This Row],[75th]]-AAMC_Raw_Data_for_FY22[[#This Row],[Median]])/25)*10) + AAMC_Raw_Data_for_FY22[[#This Row],[Median]]","v":0},{"$f":"(((AAMC_Raw_Data_for_FY22[[#This Row],[75th]]-AAMC_Raw_Data_for_FY22[[#This Row],[Median]])/25)*15) + AAMC_Raw_Data_for_FY22[[#This Row],[Median]]","v":0},{"$f":"(((AAMC_Raw_Data_for_FY22[[#This Row],[75th]]-AAMC_Raw_Data_for_FY22[[#This Row],[Median]])/25)*20) + AAMC_Raw_Data_for_FY22[[#This Row],[Median]]","v":0},null,{"$f":"(((AAMC_Raw_Data_for_FY22[[#This Row],[75th]]-AAMC_Raw_Data_for_FY22[[#This Row],[Median]])/25)*30) + AAMC_Raw_Data_for_FY22[[#This Row],[Median]]","v":0},{"$f":"(((AAMC_Raw_Data_for_FY22[[#This Row],[75th]]-AAMC_Raw_Data_for_FY22[[#This Row],[Median]])/25)*35) + AAMC_Raw_Data_for_FY22[[#This Row],[Median]]","v":0},{"$f":"(((AAMC_Raw_Data_for_FY22[[#This Row],[75th]]-AAMC_Raw_Data_for_FY22[[#This Row],[Median]])/25)*40) + AAMC_Raw_Data_for_FY22[[#This Row],[Median]]","v":0}]
[{"$f":"AAMC_Raw_Data_for_FY22[[#This Row],[Source]]&AAMC_Raw_Data_for_FY22[[#This Row],[Type]]&AAMC_Raw_Data_for_FY22[[#This Row],[School Subset]]&AAMC_Raw_Data_for_FY22[[#This Row],[Rank]]&AAMC_Raw_Data_for_FY22[[#This Row],[Degree]]&AAMC_Raw_Data_for_FY22[[#This Row],[Department / Specialty]]&\"L\"","v":"AAMCAcademicAllInstructorPhDHospital MedicineL"},"Hospital Medicine",5,"AAMC","Academic","All","Instructor","PhD","2021-2022",null,{"$f":"(((AAMC_Raw_Data_for_FY22[[#This Row],[Median]]-AAMC_Raw_Data_for_FY22[[#This Row],[25th]])/25)*5) + AAMC_Raw_Data_for_FY22[[#This Row],[25th]]","v":0},{"$f":"(((AAMC_Raw_Data_for_FY22[[#This Row],[Median]]-AAMC_Raw_Data_for_FY22[[#This Row],[25th]])/25)*10) + AAMC_Raw_Data_for_FY22[[#This Row],[25th]]","v":0},{"$f":"(((AAMC_Raw_Data_for_FY22[[#This Row],[Median]]-AAMC_Raw_Data_for_FY22[[#This Row],[25th]])/25)*15) + AAMC_Raw_Data_for_FY22[[#This Row],[25th]]","v":0},{"$f":"(((AAMC_Raw_Data_for_FY22[[#This Row],[Median]]-AAMC_Raw_Data_for_FY22[[#This Row],[25th]])/25)*20) + AAMC_Raw_Data_for_FY22[[#This Row],[25th]]","v":0},null,{"$f":"(((AAMC_Raw_Data_for_FY22[[#This Row],[75th]]-AAMC_Raw_Data_for_FY22[[#This Row],[Median]])/25)*5) + AAMC_Raw_Data_for_FY22[[#This Row],[Median]]","v":0},{"$f":"(((AAMC_Raw_Data_for_FY22[[#This Row],[75th]]-AAMC_Raw_Data_for_FY22[[#This Row],[Median]])/25)*10) + AAMC_Raw_Data_for_FY22[[#This Row],[Median]]","v":0},{"$f":"(((AAMC_Raw_Data_for_FY22[[#This Row],[75th]]-AAMC_Raw_Data_for_FY22[[#This Row],[Median]])/25)*15) + AAMC_Raw_Data_for_FY22[[#This Row],[Median]]","v":0},{"$f":"(((AAMC_Raw_Data_for_FY22[[#This Row],[75th]]-AAMC_Raw_Data_for_FY22[[#This Row],[Median]])/25)*20) + AAMC_Raw_Data_for_FY22[[#This Row],[Median]]","v":0},null,{"$f":"(((AAMC_Raw_Data_for_FY22[[#This Row],[75th]]-AAMC_Raw_Data_for_FY22[[#This Row],[Median]])/25)*30) + AAMC_Raw_Data_for_FY22[[#This Row],[Median]]","v":0},{"$f":"(((AAMC_Raw_Data_for_FY22[[#This Row],[75th]]-AAMC_Raw_Data_for_FY22[[#This Row],[Median]])/25)*35) + AAMC_Raw_Data_for_FY22[[#This Row],[Median]]","v":0},{"$f":"(((AAMC_Raw_Data_for_FY22[[#This Row],[75th]]-AAMC_Raw_Data_for_FY22[[#This Row],[Median]])/25)*40) + AAMC_Raw_Data_for_FY22[[#This Row],[Median]]","v":0}]
[{"$f":"AAMC_Raw_Data_for_FY22[[#This Row],[Source]]&AAMC_Raw_Data_for_FY22[[#This Row],[Type]]&AAMC_Raw_Data_for_FY22[[#This Row],[School Subset]]&AAMC_Raw_Data_for_FY22[[#This Row],[Rank]]&AAMC_Raw_Data_for_FY22[[#This Row],[Degree]]&AAMC_Raw_Data_for_FY22[[#This Row],[Department / Specialty]]&\"L\"","v":"AAMCAcademicAllAssistantPhDHospital MedicineL"},"Hospital Medicine",4,"AAMC","Academic","All","Assistant","PhD","2021-2022",117350,{"$f":"(((AAMC_Raw_Data_for_FY22[[#This Row],[Median]]-AAMC_Raw_Data_for_FY22[[#This Row],[25th]])/25)*5) + AAMC_Raw_Data_for_FY22[[#This Row],[25th]]","v":122436.6},{"$f":"(((AAMC_Raw_Data_for_FY22[[#This Row],[Median]]-AAMC_Raw_Data_for_FY22[[#This Row],[25th]])/25)*10) + AAMC_Raw_Data_for_FY22[[#This Row],[25th]]","v":127523.2},{"$f":"(((AAMC_Raw_Data_for_FY22[[#This Row],[Median]]-AAMC_Raw_Data_for_FY22[[#This Row],[25th]])/25)*15) + AAMC_Raw_Data_for_FY22[[#This Row],[25th]]","v":132609.79999999999},{"$f":"(((AAMC_Raw_Data_for_FY22[[#This Row],[Median]]-AAMC_Raw_Data_for_FY22[[#This Row],[25th]])/25)*20) + AAMC_Raw_Data_for_FY22[[#This Row],[25th]]","v":137696.4},142783,{"$f":"(((AAMC_Raw_Data_for_FY22[[#This Row],[75th]]-AAMC_Raw_Data_for_FY22[[#This Row],[Median]])/25)*5) + AAMC_Raw_Data_for_FY22[[#This Row],[Median]]","v":150404},{"$f":"(((AAMC_Raw_Data_for_FY22[[#This Row],[75th]]-AAMC_Raw_Data_for_FY22[[#This Row],[Median]])/25)*10) + AAMC_Raw_Data_for_FY22[[#This Row],[Median]]","v":158025},{"$f":"(((AAMC_Raw_Data_for_FY22[[#This Row],[75th]]-AAMC_Raw_Data_for_FY22[[#This Row],[Median]])/25)*15) + AAMC_Raw_Data_for_FY22[[#This Row],[Median]]","v":165646},{"$f":"(((AAMC_Raw_Data_for_FY22[[#This Row],[75th]]-AAMC_Raw_Data_for_FY22[[#This Row],[Median]])/25)*20) + AAMC_Raw_Data_for_FY22[[#This Row],[Median]]","v":173267},180888,{"$f":"(((AAMC_Raw_Data_for_FY22[[#This Row],[75th]]-AAMC_Raw_Data_for_FY22[[#This Row],[Median]])/25)*30) + AAMC_Raw_Data_for_FY22[[#This Row],[Median]]","v":188509},{"$f":"(((AAMC_Raw_Data_for_FY22[[#This Row],[75th]]-AAMC_Raw_Data_for_FY22[[#This Row],[Median]])/25)*35) + AAMC_Raw_Data_for_FY22[[#This Row],[Median]]","v":196130},{"$f":"(((AAMC_Raw_Data_for_FY22[[#This Row],[75th]]-AAMC_Raw_Data_for_FY22[[#This Row],[Median]])/25)*40) + AAMC_Raw_Data_for_FY22[[#This Row],[Median]]","v":203751}]
[{"$f":"AAMC_Raw_Data_for_FY22[[#This Row],[Source]]&AAMC_Raw_Data_for_FY22[[#This Row],[Type]]&AAMC_Raw_Data_for_FY22[[#This Row],[School Subset]]&AAMC_Raw_Data_for_FY22[[#This Row],[Rank]]&AAMC_Raw_Data_for_FY22[[#This Row],[Degree]]&AAMC_Raw_Data_for_FY22[[#This Row],[Department / Specialty]]&\"L\"","v":"AAMCAcademicAllAssociatePhDHospital MedicineL"},"Hospital Medicine",3,"AAMC","Academic","All","Associate","PhD","2021-2022",null,{"$f":"(((AAMC_Raw_Data_for_FY22[[#This Row],[Median]]-AAMC_Raw_Data_for_FY22[[#This Row],[25th]])/25)*5) + AAMC_Raw_Data_for_FY22[[#This Row],[25th]]","v":0},{"$f":"(((AAMC_Raw_Data_for_FY22[[#This Row],[Median]]-AAMC_Raw_Data_for_FY22[[#This Row],[25th]])/25)*10) + AAMC_Raw_Data_for_FY22[[#This Row],[25th]]","v":0},{"$f":"(((AAMC_Raw_Data_for_FY22[[#This Row],[Median]]-AAMC_Raw_Data_for_FY22[[#This Row],[25th]])/25)*15) + AAMC_Raw_Data_for_FY22[[#This Row],[25th]]","v":0},{"$f":"(((AAMC_Raw_Data_for_FY22[[#This Row],[Median]]-AAMC_Raw_Data_for_FY22[[#This Row],[25th]])/25)*20) + AAMC_Raw_Data_for_FY22[[#This Row],[25th]]","v":0},null,{"$f":"(((AAMC_Raw_Data_for_FY22[[#This Row],[75th]]-AAMC_Raw_Data_for_FY22[[#This Row],[Median]])/25)*5) + AAMC_Raw_Data_for_FY22[[#This Row],[Median]]","v":0},{"$f":"(((AAMC_Raw_Data_for_FY22[[#This Row],[75th]]-AAMC_Raw_Data_for_FY22[[#This Row],[Median]])/25)*10) + AAMC_Raw_Data_for_FY22[[#This Row],[Median]]","v":0},{"$f":"(((AAMC_Raw_Data_for_FY22[[#This Row],[75th]]-AAMC_Raw_Data_for_FY22[[#This Row],[Median]])/25)*15) + AAMC_Raw_Data_for_FY22[[#This Row],[Median]]","v":0},{"$f":"(((AAMC_Raw_Data_for_FY22[[#This Row],[75th]]-AAMC_Raw_Data_for_FY22[[#This Row],[Median]])/25)*20) + AAMC_Raw_Data_for_FY22[[#This Row],[Median]]","v":0},null,{"$f":"(((AAMC_Raw_Data_for_FY22[[#This Row],[75th]]-AAMC_Raw_Data_for_FY22[[#This Row],[Median]])/25)*30) + AAMC_Raw_Data_for_FY22[[#This Row],[Median]]","v":0},{"$f":"(((AAMC_Raw_Data_for_FY22[[#This Row],[75th]]-AAMC_Raw_Data_for_FY22[[#This Row],[Median]])/25)*35) + AAMC_Raw_Data_for_FY22[[#This Row],[Median]]","v":0},{"$f":"(((AAMC_Raw_Data_for_FY22[[#This Row],[75th]]-AAMC_Raw_Data_for_FY22[[#This Row],[Median]])/25)*40) + AAMC_Raw_Data_for_FY22[[#This Row],[Median]]","v":0}]
[{"$f":"AAMC_Raw_Data_for_FY22[[#This Row],[Source]]&AAMC_Raw_Data_for_FY22[[#This Row],[Type]]&AAMC_Raw_Data_for_FY22[[#This Row],[School Subset]]&AAMC_Raw_Data_for_FY22[[#This Row],[Rank]]&AAMC_Raw_Data_for_FY22[[#This Row],[Degree]]&AAMC_Raw_Data_for_FY22[[#This Row],[Department / Specialty]]&\"L\"","v":"AAMCAcademicAllProfessorPhDHospital MedicineL"},"Hospital Medicine",2,"AAMC","Academic","All","Professor","PhD","2021-2022",null,{"$f":"(((AAMC_Raw_Data_for_FY22[[#This Row],[Median]]-AAMC_Raw_Data_for_FY22[[#This Row],[25th]])/25)*5) + AAMC_Raw_Data_for_FY22[[#This Row],[25th]]","v":0},{"$f":"(((AAMC_Raw_Data_for_FY22[[#This Row],[Median]]-AAMC_Raw_Data_for_FY22[[#This Row],[25th]])/25)*10) + AAMC_Raw_Data_for_FY22[[#This Row],[25th]]","v":0},{"$f":"(((AAMC_Raw_Data_for_FY22[[#This Row],[Median]]-AAMC_Raw_Data_for_FY22[[#This Row],[25th]])/25)*15) + AAMC_Raw_Data_for_FY22[[#This Row],[25th]]","v":0},{"$f":"(((AAMC_Raw_Data_for_FY22[[#This Row],[Median]]-AAMC_Raw_Data_for_FY22[[#This Row],[25th]])/25)*20) + AAMC_Raw_Data_for_FY22[[#This Row],[25th]]","v":0},null,{"$f":"(((AAMC_Raw_Data_for_FY22[[#This Row],[75th]]-AAMC_Raw_Data_for_FY22[[#This Row],[Median]])/25)*5) + AAMC_Raw_Data_for_FY22[[#This Row],[Median]]","v":0},{"$f":"(((AAMC_Raw_Data_for_FY22[[#This Row],[75th]]-AAMC_Raw_Data_for_FY22[[#This Row],[Median]])/25)*10) + AAMC_Raw_Data_for_FY22[[#This Row],[Median]]","v":0},{"$f":"(((AAMC_Raw_Data_for_FY22[[#This Row],[75th]]-AAMC_Raw_Data_for_FY22[[#This Row],[Median]])/25)*15) + AAMC_Raw_Data_for_FY22[[#This Row],[Median]]","v":0},{"$f":"(((AAMC_Raw_Data_for_FY22[[#This Row],[75th]]-AAMC_Raw_Data_for_FY22[[#This Row],[Median]])/25)*20) + AAMC_Raw_Data_for_FY22[[#This Row],[Median]]","v":0},null,{"$f":"(((AAMC_Raw_Data_for_FY22[[#This Row],[75th]]-AAMC_Raw_Data_for_FY22[[#This Row],[Median]])/25)*30) + AAMC_Raw_Data_for_FY22[[#This Row],[Median]]","v":0},{"$f":"(((AAMC_Raw_Data_for_FY22[[#This Row],[75th]]-AAMC_Raw_Data_for_FY22[[#This Row],[Median]])/25)*35) + AAMC_Raw_Data_for_FY22[[#This Row],[Median]]","v":0},{"$f":"(((AAMC_Raw_Data_for_FY22[[#This Row],[75th]]-AAMC_Raw_Data_for_FY22[[#This Row],[Median]])/25)*40) + AAMC_Raw_Data_for_FY22[[#This Row],[Median]]","v":0}]
[{"$f":"AAMC_Raw_Data_for_FY22[[#This Row],[Source]]&AAMC_Raw_Data_for_FY22[[#This Row],[Type]]&AAMC_Raw_Data_for_FY22[[#This Row],[School Subset]]&AAMC_Raw_Data_for_FY22[[#This Row],[Rank]]&AAMC_Raw_Data_for_FY22[[#This Row],[Degree]]&AAMC_Raw_Data_for_FY22[[#This Row],[Department / Specialty]]&\"L\"","v":"AAMCAcademicAllInstructorPhDInfectious Disease-Med.L"},"Infectious Disease-Med.",5,"AAMC","Academic","All","Instructor","PhD","2021-2022",62798,{"$f":"(((AAMC_Raw_Data_for_FY22[[#This Row],[Median]]-AAMC_Raw_Data_for_FY22[[#This Row],[25th]])/25)*5) + AAMC_Raw_Data_for_FY22[[#This Row],[25th]]","v":65238.400000000001},{"$f":"(((AAMC_Raw_Data_for_FY22[[#This Row],[Median]]-AAMC_Raw_Data_for_FY22[[#This Row],[25th]])/25)*10) + AAMC_Raw_Data_for_FY22[[#This Row],[25th]]","v":67678.8},{"$f":"(((AAMC_Raw_Data_for_FY22[[#This Row],[Median]]-AAMC_Raw_Data_for_FY22[[#This Row],[25th]])/25)*15) + AAMC_Raw_Data_for_FY22[[#This Row],[25th]]","v":70119.199999999997},{"$f":"(((AAMC_Raw_Data_for_FY22[[#This Row],[Median]]-AAMC_Raw_Data_for_FY22[[#This Row],[25th]])/25)*20) + AAMC_Raw_Data_for_FY22[[#This Row],[25th]]","v":72559.600000000006},75000,{"$f":"(((AAMC_Raw_Data_for_FY22[[#This Row],[75th]]-AAMC_Raw_Data_for_FY22[[#This Row],[Median]])/25)*5) + AAMC_Raw_Data_for_FY22[[#This Row],[Median]]","v":79657.8},{"$f":"(((AAMC_Raw_Data_for_FY22[[#This Row],[75th]]-AAMC_Raw_Data_for_FY22[[#This Row],[Median]])/25)*10) + AAMC_Raw_Data_for_FY22[[#This Row],[Median]]","v":84315.6},{"$f":"(((AAMC_Raw_Data_for_FY22[[#This Row],[75th]]-AAMC_Raw_Data_for_FY22[[#This Row],[Median]])/25)*15) + AAMC_Raw_Data_for_FY22[[#This Row],[Median]]","v":88973.4},{"$f":"(((AAMC_Raw_Data_for_FY22[[#This Row],[75th]]-AAMC_Raw_Data_for_FY22[[#This Row],[Median]])/25)*20) + AAMC_Raw_Data_for_FY22[[#This Row],[Median]]","v":93631.2},98289,{"$f":"(((AAMC_Raw_Data_for_FY22[[#This Row],[75th]]-AAMC_Raw_Data_for_FY22[[#This Row],[Median]])/25)*30) + AAMC_Raw_Data_for_FY22[[#This Row],[Median]]","v":102946.8},{"$f":"(((AAMC_Raw_Data_for_FY22[[#This Row],[75th]]-AAMC_Raw_Data_for_FY22[[#This Row],[Median]])/25)*35) + AAMC_Raw_Data_for_FY22[[#This Row],[Median]]","v":107604.6},{"$f":"(((AAMC_Raw_Data_for_FY22[[#This Row],[75th]]-AAMC_Raw_Data_for_FY22[[#This Row],[Median]])/25)*40) + AAMC_Raw_Data_for_FY22[[#This Row],[Median]]","v":112262.39999999999}]
[{"$f":"AAMC_Raw_Data_for_FY22[[#This Row],[Source]]&AAMC_Raw_Data_for_FY22[[#This Row],[Type]]&AAMC_Raw_Data_for_FY22[[#This Row],[School Subset]]&AAMC_Raw_Data_for_FY22[[#This Row],[Rank]]&AAMC_Raw_Data_for_FY22[[#This Row],[Degree]]&AAMC_Raw_Data_for_FY22[[#This Row],[Department / Specialty]]&\"L\"","v":"AAMCAcademicAllAssistantPhDInfectious Disease-Med.L"},"Infectious Disease-Med.",4,"AAMC","Academic","All","Assistant","PhD","2021-2022",89000,{"$f":"(((AAMC_Raw_Data_for_FY22[[#This Row],[Median]]-AAMC_Raw_Data_for_FY22[[#This Row],[25th]])/25)*5) + AAMC_Raw_Data_for_FY22[[#This Row],[25th]]","v":93800},{"$f":"(((AAMC_Raw_Data_for_FY22[[#This Row],[Median]]-AAMC_Raw_Data_for_FY22[[#This Row],[25th]])/25)*10) + AAMC_Raw_Data_for_FY22[[#This Row],[25th]]","v":98600},{"$f":"(((AAMC_Raw_Data_for_FY22[[#This Row],[Median]]-AAMC_Raw_Data_for_FY22[[#This Row],[25th]])/25)*15) + AAMC_Raw_Data_for_FY22[[#This Row],[25th]]","v":103400},{"$f":"(((AAMC_Raw_Data_for_FY22[[#This Row],[Median]]-AAMC_Raw_Data_for_FY22[[#This Row],[25th]])/25)*20) + AAMC_Raw_Data_for_FY22[[#This Row],[25th]]","v":108200},113000,{"$f":"(((AAMC_Raw_Data_for_FY22[[#This Row],[75th]]-AAMC_Raw_Data_for_FY22[[#This Row],[Median]])/25)*5) + AAMC_Raw_Data_for_FY22[[#This Row],[Median]]","v":115629.6},{"$f":"(((AAMC_Raw_Data_for_FY22[[#This Row],[75th]]-AAMC_Raw_Data_for_FY22[[#This Row],[Median]])/25)*10) + AAMC_Raw_Data_for_FY22[[#This Row],[Median]]","v":118259.2},{"$f":"(((AAMC_Raw_Data_for_FY22[[#This Row],[75th]]-AAMC_Raw_Data_for_FY22[[#This Row],[Median]])/25)*15) + AAMC_Raw_Data_for_FY22[[#This Row],[Median]]","v":120888.8},{"$f":"(((AAMC_Raw_Data_for_FY22[[#This Row],[75th]]-AAMC_Raw_Data_for_FY22[[#This Row],[Median]])/25)*20) + AAMC_Raw_Data_for_FY22[[#This Row],[Median]]","v":123518.39999999999},126148,{"$f":"(((AAMC_Raw_Data_for_FY22[[#This Row],[75th]]-AAMC_Raw_Data_for_FY22[[#This Row],[Median]])/25)*30) + AAMC_Raw_Data_for_FY22[[#This Row],[Median]]","v":128777.60000000001},{"$f":"(((AAMC_Raw_Data_for_FY22[[#This Row],[75th]]-AAMC_Raw_Data_for_FY22[[#This Row],[Median]])/25)*35) + AAMC_Raw_Data_for_FY22[[#This Row],[Median]]","v":131407.20000000001},{"$f":"(((AAMC_Raw_Data_for_FY22[[#This Row],[75th]]-AAMC_Raw_Data_for_FY22[[#This Row],[Median]])/25)*40) + AAMC_Raw_Data_for_FY22[[#This Row],[Median]]","v":134036.79999999999}]
[{"$f":"AAMC_Raw_Data_for_FY22[[#This Row],[Source]]&AAMC_Raw_Data_for_FY22[[#This Row],[Type]]&AAMC_Raw_Data_for_FY22[[#This Row],[School Subset]]&AAMC_Raw_Data_for_FY22[[#This Row],[Rank]]&AAMC_Raw_Data_for_FY22[[#This Row],[Degree]]&AAMC_Raw_Data_for_FY22[[#This Row],[Department / Specialty]]&\"L\"","v":"AAMCAcademicAllAssociatePhDInfectious Disease-Med.L"},"Infectious Disease-Med.",3,"AAMC","Academic","All","Associate","PhD","2021-2022",110931,{"$f":"(((AAMC_Raw_Data_for_FY22[[#This Row],[Median]]-AAMC_Raw_Data_for_FY22[[#This Row],[25th]])/25)*5) + AAMC_Raw_Data_for_FY22[[#This Row],[25th]]","v":117338.8},{"$f":"(((AAMC_Raw_Data_for_FY22[[#This Row],[Median]]-AAMC_Raw_Data_for_FY22[[#This Row],[25th]])/25)*10) + AAMC_Raw_Data_for_FY22[[#This Row],[25th]]","v":123746.6},{"$f":"(((AAMC_Raw_Data_for_FY22[[#This Row],[Median]]-AAMC_Raw_Data_for_FY22[[#This Row],[25th]])/25)*15) + AAMC_Raw_Data_for_FY22[[#This Row],[25th]]","v":130154.4},{"$f":"(((AAMC_Raw_Data_for_FY22[[#This Row],[Median]]-AAMC_Raw_Data_for_FY22[[#This Row],[25th]])/25)*20) + AAMC_Raw_Data_for_FY22[[#This Row],[25th]]","v":136562.20000000001},142970,{"$f":"(((AAMC_Raw_Data_for_FY22[[#This Row],[75th]]-AAMC_Raw_Data_for_FY22[[#This Row],[Median]])/25)*5) + AAMC_Raw_Data_for_FY22[[#This Row],[Median]]","v":145433.60000000001},{"$f":"(((AAMC_Raw_Data_for_FY22[[#This Row],[75th]]-AAMC_Raw_Data_for_FY22[[#This Row],[Median]])/25)*10) + AAMC_Raw_Data_for_FY22[[#This Row],[Median]]","v":147897.20000000001},{"$f":"(((AAMC_Raw_Data_for_FY22[[#This Row],[75th]]-AAMC_Raw_Data_for_FY22[[#This Row],[Median]])/25)*15) + AAMC_Raw_Data_for_FY22[[#This Row],[Median]]","v":150360.79999999999},{"$f":"(((AAMC_Raw_Data_for_FY22[[#This Row],[75th]]-AAMC_Raw_Data_for_FY22[[#This Row],[Median]])/25)*20) + AAMC_Raw_Data_for_FY22[[#This Row],[Median]]","v":152824.4},155288,{"$f":"(((AAMC_Raw_Data_for_FY22[[#This Row],[75th]]-AAMC_Raw_Data_for_FY22[[#This Row],[Median]])/25)*30) + AAMC_Raw_Data_for_FY22[[#This Row],[Median]]","v":157751.6},{"$f":"(((AAMC_Raw_Data_for_FY22[[#This Row],[75th]]-AAMC_Raw_Data_for_FY22[[#This Row],[Median]])/25)*35) + AAMC_Raw_Data_for_FY22[[#This Row],[Median]]","v":160215.20000000001},{"$f":"(((AAMC_Raw_Data_for_FY22[[#This Row],[75th]]-AAMC_Raw_Data_for_FY22[[#This Row],[Median]])/25)*40) + AAMC_Raw_Data_for_FY22[[#This Row],[Median]]","v":162678.79999999999}]
[{"$f":"AAMC_Raw_Data_for_FY22[[#This Row],[Source]]&AAMC_Raw_Data_for_FY22[[#This Row],[Type]]&AAMC_Raw_Data_for_FY22[[#This Row],[School Subset]]&AAMC_Raw_Data_for_FY22[[#This Row],[Rank]]&AAMC_Raw_Data_for_FY22[[#This Row],[Degree]]&AAMC_Raw_Data_for_FY22[[#This Row],[Department / Specialty]]&\"L\"","v":"AAMCAcademicAllProfessorPhDInfectious Disease-Med.L"},"Infectious Disease-Med.",2,"AAMC","Academic","All","Professor","PhD","2021-2022",172924,{"$f":"(((AAMC_Raw_Data_for_FY22[[#This Row],[Median]]-AAMC_Raw_Data_for_FY22[[#This Row],[25th]])/25)*5) + AAMC_Raw_Data_for_FY22[[#This Row],[25th]]","v":180336.6},{"$f":"(((AAMC_Raw_Data_for_FY22[[#This Row],[Median]]-AAMC_Raw_Data_for_FY22[[#This Row],[25th]])/25)*10) + AAMC_Raw_Data_for_FY22[[#This Row],[25th]]","v":187749.2},{"$f":"(((AAMC_Raw_Data_for_FY22[[#This Row],[Median]]-AAMC_Raw_Data_for_FY22[[#This Row],[25th]])/25)*15) + AAMC_Raw_Data_for_FY22[[#This Row],[25th]]","v":195161.8},{"$f":"(((AAMC_Raw_Data_for_FY22[[#This Row],[Median]]-AAMC_Raw_Data_for_FY22[[#This Row],[25th]])/25)*20) + AAMC_Raw_Data_for_FY22[[#This Row],[25th]]","v":202574.4},209987,{"$f":"(((AAMC_Raw_Data_for_FY22[[#This Row],[75th]]-AAMC_Raw_Data_for_FY22[[#This Row],[Median]])/25)*5) + AAMC_Raw_Data_for_FY22[[#This Row],[Median]]","v":215792.4},{"$f":"(((AAMC_Raw_Data_for_FY22[[#This Row],[75th]]-AAMC_Raw_Data_for_FY22[[#This Row],[Median]])/25)*10) + AAMC_Raw_Data_for_FY22[[#This Row],[Median]]","v":221597.8},{"$f":"(((AAMC_Raw_Data_for_FY22[[#This Row],[75th]]-AAMC_Raw_Data_for_FY22[[#This Row],[Median]])/25)*15) + AAMC_Raw_Data_for_FY22[[#This Row],[Median]]","v":227403.2},{"$f":"(((AAMC_Raw_Data_for_FY22[[#This Row],[75th]]-AAMC_Raw_Data_for_FY22[[#This Row],[Median]])/25)*20) + AAMC_Raw_Data_for_FY22[[#This Row],[Median]]","v":233208.6},239014,{"$f":"(((AAMC_Raw_Data_for_FY22[[#This Row],[75th]]-AAMC_Raw_Data_for_FY22[[#This Row],[Median]])/25)*30) + AAMC_Raw_Data_for_FY22[[#This Row],[Median]]","v":244819.4},{"$f":"(((AAMC_Raw_Data_for_FY22[[#This Row],[75th]]-AAMC_Raw_Data_for_FY22[[#This Row],[Median]])/25)*35) + AAMC_Raw_Data_for_FY22[[#This Row],[Median]]","v":250624.8},{"$f":"(((AAMC_Raw_Data_for_FY22[[#This Row],[75th]]-AAMC_Raw_Data_for_FY22[[#This Row],[Median]])/25)*40) + AAMC_Raw_Data_for_FY22[[#This Row],[Median]]","v":256430.2}]
[{"$f":"AAMC_Raw_Data_for_FY22[[#This Row],[Source]]&AAMC_Raw_Data_for_FY22[[#This Row],[Type]]&AAMC_Raw_Data_for_FY22[[#This Row],[School Subset]]&AAMC_Raw_Data_for_FY22[[#This Row],[Rank]]&AAMC_Raw_Data_for_FY22[[#This Row],[Degree]]&AAMC_Raw_Data_for_FY22[[#This Row],[Department / Specialty]]&\"L\"","v":"AAMCAcademicAllInstructorPhDNephrology-Med.L"},"Nephrology-Med.",5,"AAMC","Academic","All","Instructor","PhD","2021-2022",66509,{"$f":"(((AAMC_Raw_Data_for_FY22[[#This Row],[Median]]-AAMC_Raw_Data_for_FY22[[#This Row],[25th]])/25)*5) + AAMC_Raw_Data_for_FY22[[#This Row],[25th]]","v":68407.600000000006},{"$f":"(((AAMC_Raw_Data_for_FY22[[#This Row],[Median]]-AAMC_Raw_Data_for_FY22[[#This Row],[25th]])/25)*10) + AAMC_Raw_Data_for_FY22[[#This Row],[25th]]","v":70306.2},{"$f":"(((AAMC_Raw_Data_for_FY22[[#This Row],[Median]]-AAMC_Raw_Data_for_FY22[[#This Row],[25th]])/25)*15) + AAMC_Raw_Data_for_FY22[[#This Row],[25th]]","v":72204.800000000003},{"$f":"(((AAMC_Raw_Data_for_FY22[[#This Row],[Median]]-AAMC_Raw_Data_for_FY22[[#This Row],[25th]])/25)*20) + AAMC_Raw_Data_for_FY22[[#This Row],[25th]]","v":74103.399999999994},76002,{"$f":"(((AAMC_Raw_Data_for_FY22[[#This Row],[75th]]-AAMC_Raw_Data_for_FY22[[#This Row],[Median]])/25)*5) + AAMC_Raw_Data_for_FY22[[#This Row],[Median]]","v":78207.199999999997},{"$f":"(((AAMC_Raw_Data_for_FY22[[#This Row],[75th]]-AAMC_Raw_Data_for_FY22[[#This Row],[Median]])/25)*10) + AAMC_Raw_Data_for_FY22[[#This Row],[Median]]","v":80412.399999999994},{"$f":"(((AAMC_Raw_Data_for_FY22[[#This Row],[75th]]-AAMC_Raw_Data_for_FY22[[#This Row],[Median]])/25)*15) + AAMC_Raw_Data_for_FY22[[#This Row],[Median]]","v":82617.600000000006},{"$f":"(((AAMC_Raw_Data_for_FY22[[#This Row],[75th]]-AAMC_Raw_Data_for_FY22[[#This Row],[Median]])/25)*20) + AAMC_Raw_Data_for_FY22[[#This Row],[Median]]","v":84822.8},87028,{"$f":"(((AAMC_Raw_Data_for_FY22[[#This Row],[75th]]-AAMC_Raw_Data_for_FY22[[#This Row],[Median]])/25)*30) + AAMC_Raw_Data_for_FY22[[#This Row],[Median]]","v":89233.2},{"$f":"(((AAMC_Raw_Data_for_FY22[[#This Row],[75th]]-AAMC_Raw_Data_for_FY22[[#This Row],[Median]])/25)*35) + AAMC_Raw_Data_for_FY22[[#This Row],[Median]]","v":91438.399999999994},{"$f":"(((AAMC_Raw_Data_for_FY22[[#This Row],[75th]]-AAMC_Raw_Data_for_FY22[[#This Row],[Median]])/25)*40) + AAMC_Raw_Data_for_FY22[[#This Row],[Median]]","v":93643.6}]
[{"$f":"AAMC_Raw_Data_for_FY22[[#This Row],[Source]]&AAMC_Raw_Data_for_FY22[[#This Row],[Type]]&AAMC_Raw_Data_for_FY22[[#This Row],[School Subset]]&AAMC_Raw_Data_for_FY22[[#This Row],[Rank]]&AAMC_Raw_Data_for_FY22[[#This Row],[Degree]]&AAMC_Raw_Data_for_FY22[[#This Row],[Department / Specialty]]&\"L\"","v":"AAMCAcademicAllAssistantPhDNephrology-Med.L"},"Nephrology-Med.",4,"AAMC","Academic","All","Assistant","PhD","2021-2022",76224,{"$f":"(((AAMC_Raw_Data_for_FY22[[#This Row],[Median]]-AAMC_Raw_Data_for_FY22[[#This Row],[25th]])/25)*5) + AAMC_Raw_Data_for_FY22[[#This Row],[25th]]","v":78599.199999999997},{"$f":"(((AAMC_Raw_Data_for_FY22[[#This Row],[Median]]-AAMC_Raw_Data_for_FY22[[#This Row],[25th]])/25)*10) + AAMC_Raw_Data_for_FY22[[#This Row],[25th]]","v":80974.399999999994},{"$f":"(((AAMC_Raw_Data_for_FY22[[#This Row],[Median]]-AAMC_Raw_Data_for_FY22[[#This Row],[25th]])/25)*15) + AAMC_Raw_Data_for_FY22[[#This Row],[25th]]","v":83349.600000000006},{"$f":"(((AAMC_Raw_Data_for_FY22[[#This Row],[Median]]-AAMC_Raw_Data_for_FY22[[#This Row],[25th]])/25)*20) + AAMC_Raw_Data_for_FY22[[#This Row],[25th]]","v":85724.800000000003},88100,{"$f":"(((AAMC_Raw_Data_for_FY22[[#This Row],[75th]]-AAMC_Raw_Data_for_FY22[[#This Row],[Median]])/25)*5) + AAMC_Raw_Data_for_FY22[[#This Row],[Median]]","v":90809.4},{"$f":"(((AAMC_Raw_Data_for_FY22[[#This Row],[75th]]-AAMC_Raw_Data_for_FY22[[#This Row],[Median]])/25)*10) + AAMC_Raw_Data_for_FY22[[#This Row],[Median]]","v":93518.8},{"$f":"(((AAMC_Raw_Data_for_FY22[[#This Row],[75th]]-AAMC_Raw_Data_for_FY22[[#This Row],[Median]])/25)*15) + AAMC_Raw_Data_for_FY22[[#This Row],[Median]]","v":96228.2},{"$f":"(((AAMC_Raw_Data_for_FY22[[#This Row],[75th]]-AAMC_Raw_Data_for_FY22[[#This Row],[Median]])/25)*20) + AAMC_Raw_Data_for_FY22[[#This Row],[Median]]","v":98937.600000000006},101647,{"$f":"(((AAMC_Raw_Data_for_FY22[[#This Row],[75th]]-AAMC_Raw_Data_for_FY22[[#This Row],[Median]])/25)*30) + AAMC_Raw_Data_for_FY22[[#This Row],[Median]]","v":104356.4},{"$f":"(((AAMC_Raw_Data_for_FY22[[#This Row],[75th]]-AAMC_Raw_Data_for_FY22[[#This Row],[Median]])/25)*35) + AAMC_Raw_Data_for_FY22[[#This Row],[Median]]","v":107065.8},{"$f":"(((AAMC_Raw_Data_for_FY22[[#This Row],[75th]]-AAMC_Raw_Data_for_FY22[[#This Row],[Median]])/25)*40) + AAMC_Raw_Data_for_FY22[[#This Row],[Median]]","v":109775.2}]
[{"$f":"AAMC_Raw_Data_for_FY22[[#This Row],[Source]]&AAMC_Raw_Data_for_FY22[[#This Row],[Type]]&AAMC_Raw_Data_for_FY22[[#This Row],[School Subset]]&AAMC_Raw_Data_for_FY22[[#This Row],[Rank]]&AAMC_Raw_Data_for_FY22[[#This Row],[Degree]]&AAMC_Raw_Data_for_FY22[[#This Row],[Department / Specialty]]&\"L\"","v":"AAMCAcademicAllAssociatePhDNephrology-Med.L"},"Nephrology-Med.",3,"AAMC","Academic","All","Associate","PhD","2021-2022",111639,{"$f":"(((AAMC_Raw_Data_for_FY22[[#This Row],[Median]]-AAMC_Raw_Data_for_FY22[[#This Row],[25th]])/25)*5) + AAMC_Raw_Data_for_FY22[[#This Row],[25th]]","v":116869},{"$f":"(((AAMC_Raw_Data_for_FY22[[#This Row],[Median]]-AAMC_Raw_Data_for_FY22[[#This Row],[25th]])/25)*10) + AAMC_Raw_Data_for_FY22[[#This Row],[25th]]","v":122099},{"$f":"(((AAMC_Raw_Data_for_FY22[[#This Row],[Median]]-AAMC_Raw_Data_for_FY22[[#This Row],[25th]])/25)*15) + AAMC_Raw_Data_for_FY22[[#This Row],[25th]]","v":127329},{"$f":"(((AAMC_Raw_Data_for_FY22[[#This Row],[Median]]-AAMC_Raw_Data_for_FY22[[#This Row],[25th]])/25)*20) + AAMC_Raw_Data_for_FY22[[#This Row],[25th]]","v":132559},137789,{"$f":"(((AAMC_Raw_Data_for_FY22[[#This Row],[75th]]-AAMC_Raw_Data_for_FY22[[#This Row],[Median]])/25)*5) + AAMC_Raw_Data_for_FY22[[#This Row],[Median]]","v":141126.79999999999},{"$f":"(((AAMC_Raw_Data_for_FY22[[#This Row],[75th]]-AAMC_Raw_Data_for_FY22[[#This Row],[Median]])/25)*10) + AAMC_Raw_Data_for_FY22[[#This Row],[Median]]","v":144464.6},{"$f":"(((AAMC_Raw_Data_for_FY22[[#This Row],[75th]]-AAMC_Raw_Data_for_FY22[[#This Row],[Median]])/25)*15) + AAMC_Raw_Data_for_FY22[[#This Row],[Median]]","v":147802.4},{"$f":"(((AAMC_Raw_Data_for_FY22[[#This Row],[75th]]-AAMC_Raw_Data_for_FY22[[#This Row],[Median]])/25)*20) + AAMC_Raw_Data_for_FY22[[#This Row],[Median]]","v":151140.20000000001},154478,{"$f":"(((AAMC_Raw_Data_for_FY22[[#This Row],[75th]]-AAMC_Raw_Data_for_FY22[[#This Row],[Median]])/25)*30) + AAMC_Raw_Data_for_FY22[[#This Row],[Median]]","v":157815.79999999999},{"$f":"(((AAMC_Raw_Data_for_FY22[[#This Row],[75th]]-AAMC_Raw_Data_for_FY22[[#This Row],[Median]])/25)*35) + AAMC_Raw_Data_for_FY22[[#This Row],[Median]]","v":161153.60000000001},{"$f":"(((AAMC_Raw_Data_for_FY22[[#This Row],[75th]]-AAMC_Raw_Data_for_FY22[[#This Row],[Median]])/25)*40) + AAMC_Raw_Data_for_FY22[[#This Row],[Median]]","v":164491.4}]
[{"$f":"AAMC_Raw_Data_for_FY22[[#This Row],[Source]]&AAMC_Raw_Data_for_FY22[[#This Row],[Type]]&AAMC_Raw_Data_for_FY22[[#This Row],[School Subset]]&AAMC_Raw_Data_for_FY22[[#This Row],[Rank]]&AAMC_Raw_Data_for_FY22[[#This Row],[Degree]]&AAMC_Raw_Data_for_FY22[[#This Row],[Department / Specialty]]&\"L\"","v":"AAMCAcademicAllProfessorPhDNephrology-Med.L"},"Nephrology-Med.",2,"AAMC","Academic","All","Professor","PhD","2021-2022",162789,{"$f":"(((AAMC_Raw_Data_for_FY22[[#This Row],[Median]]-AAMC_Raw_Data_for_FY22[[#This Row],[25th]])/25)*5) + AAMC_Raw_Data_for_FY22[[#This Row],[25th]]","v":165605.4},{"$f":"(((AAMC_Raw_Data_for_FY22[[#This Row],[Median]]-AAMC_Raw_Data_for_FY22[[#This Row],[25th]])/25)*10) + AAMC_Raw_Data_for_FY22[[#This Row],[25th]]","v":168421.8},{"$f":"(((AAMC_Raw_Data_for_FY22[[#This Row],[Median]]-AAMC_Raw_Data_for_FY22[[#This Row],[25th]])/25)*15) + AAMC_Raw_Data_for_FY22[[#This Row],[25th]]","v":171238.2},{"$f":"(((AAMC_Raw_Data_for_FY22[[#This Row],[Median]]-AAMC_Raw_Data_for_FY22[[#This Row],[25th]])/25)*20) + AAMC_Raw_Data_for_FY22[[#This Row],[25th]]","v":174054.6},176871,{"$f":"(((AAMC_Raw_Data_for_FY22[[#This Row],[75th]]-AAMC_Raw_Data_for_FY22[[#This Row],[Median]])/25)*5) + AAMC_Raw_Data_for_FY22[[#This Row],[Median]]","v":186282},{"$f":"(((AAMC_Raw_Data_for_FY22[[#This Row],[75th]]-AAMC_Raw_Data_for_FY22[[#This Row],[Median]])/25)*10) + AAMC_Raw_Data_for_FY22[[#This Row],[Median]]","v":195693},{"$f":"(((AAMC_Raw_Data_for_FY22[[#This Row],[75th]]-AAMC_Raw_Data_for_FY22[[#This Row],[Median]])/25)*15) + AAMC_Raw_Data_for_FY22[[#This Row],[Median]]","v":205104},{"$f":"(((AAMC_Raw_Data_for_FY22[[#This Row],[75th]]-AAMC_Raw_Data_for_FY22[[#This Row],[Median]])/25)*20) + AAMC_Raw_Data_for_FY22[[#This Row],[Median]]","v":214515},223926,{"$f":"(((AAMC_Raw_Data_for_FY22[[#This Row],[75th]]-AAMC_Raw_Data_for_FY22[[#This Row],[Median]])/25)*30) + AAMC_Raw_Data_for_FY22[[#This Row],[Median]]","v":233337},{"$f":"(((AAMC_Raw_Data_for_FY22[[#This Row],[75th]]-AAMC_Raw_Data_for_FY22[[#This Row],[Median]])/25)*35) + AAMC_Raw_Data_for_FY22[[#This Row],[Median]]","v":242748},{"$f":"(((AAMC_Raw_Data_for_FY22[[#This Row],[75th]]-AAMC_Raw_Data_for_FY22[[#This Row],[Median]])/25)*40) + AAMC_Raw_Data_for_FY22[[#This Row],[Median]]","v":252159}]
[{"$f":"AAMC_Raw_Data_for_FY22[[#This Row],[Source]]&AAMC_Raw_Data_for_FY22[[#This Row],[Type]]&AAMC_Raw_Data_for_FY22[[#This Row],[School Subset]]&AAMC_Raw_Data_for_FY22[[#This Row],[Rank]]&AAMC_Raw_Data_for_FY22[[#This Row],[Degree]]&AAMC_Raw_Data_for_FY22[[#This Row],[Department / Specialty]]&\"L\"","v":"AAMCAcademicAllInstructorPhDPalliative Care-Med.L"},"Palliative Care-Med.",5,"AAMC","Academic","All","Instructor","PhD","2021-2022",null,{"$f":"(((AAMC_Raw_Data_for_FY22[[#This Row],[Median]]-AAMC_Raw_Data_for_FY22[[#This Row],[25th]])/25)*5) + AAMC_Raw_Data_for_FY22[[#This Row],[25th]]","v":0},{"$f":"(((AAMC_Raw_Data_for_FY22[[#This Row],[Median]]-AAMC_Raw_Data_for_FY22[[#This Row],[25th]])/25)*10) + AAMC_Raw_Data_for_FY22[[#This Row],[25th]]","v":0},{"$f":"(((AAMC_Raw_Data_for_FY22[[#This Row],[Median]]-AAMC_Raw_Data_for_FY22[[#This Row],[25th]])/25)*15) + AAMC_Raw_Data_for_FY22[[#This Row],[25th]]","v":0},{"$f":"(((AAMC_Raw_Data_for_FY22[[#This Row],[Median]]-AAMC_Raw_Data_for_FY22[[#This Row],[25th]])/25)*20) + AAMC_Raw_Data_for_FY22[[#This Row],[25th]]","v":0},null,{"$f":"(((AAMC_Raw_Data_for_FY22[[#This Row],[75th]]-AAMC_Raw_Data_for_FY22[[#This Row],[Median]])/25)*5) + AAMC_Raw_Data_for_FY22[[#This Row],[Median]]","v":0},{"$f":"(((AAMC_Raw_Data_for_FY22[[#This Row],[75th]]-AAMC_Raw_Data_for_FY22[[#This Row],[Median]])/25)*10) + AAMC_Raw_Data_for_FY22[[#This Row],[Median]]","v":0},{"$f":"(((AAMC_Raw_Data_for_FY22[[#This Row],[75th]]-AAMC_Raw_Data_for_FY22[[#This Row],[Median]])/25)*15) + AAMC_Raw_Data_for_FY22[[#This Row],[Median]]","v":0},{"$f":"(((AAMC_Raw_Data_for_FY22[[#This Row],[75th]]-AAMC_Raw_Data_for_FY22[[#This Row],[Median]])/25)*20) + AAMC_Raw_Data_for_FY22[[#This Row],[Median]]","v":0},null,{"$f":"(((AAMC_Raw_Data_for_FY22[[#This Row],[75th]]-AAMC_Raw_Data_for_FY22[[#This Row],[Median]])/25)*30) + AAMC_Raw_Data_for_FY22[[#This Row],[Median]]","v":0},{"$f":"(((AAMC_Raw_Data_for_FY22[[#This Row],[75th]]-AAMC_Raw_Data_for_FY22[[#This Row],[Median]])/25)*35) + AAMC_Raw_Data_for_FY22[[#This Row],[Median]]","v":0},{"$f":"(((AAMC_Raw_Data_for_FY22[[#This Row],[75th]]-AAMC_Raw_Data_for_FY22[[#This Row],[Median]])/25)*40) + AAMC_Raw_Data_for_FY22[[#This Row],[Median]]","v":0}]
[{"$f":"AAMC_Raw_Data_for_FY22[[#This Row],[Source]]&AAMC_Raw_Data_for_FY22[[#This Row],[Type]]&AAMC_Raw_Data_for_FY22[[#This Row],[School Subset]]&AAMC_Raw_Data_for_FY22[[#This Row],[Rank]]&AAMC_Raw_Data_for_FY22[[#This Row],[Degree]]&AAMC_Raw_Data_for_FY22[[#This Row],[Department / Specialty]]&\"L\"","v":"AAMCAcademicAllAssociatePhDPalliative Care-Med.L"},"Palliative Care-Med.",3,"AAMC","Academic","All","Associate","PhD","2021-2022",null,{"$f":"(((AAMC_Raw_Data_for_FY22[[#This Row],[Median]]-AAMC_Raw_Data_for_FY22[[#This Row],[25th]])/25)*5) + AAMC_Raw_Data_for_FY22[[#This Row],[25th]]","v":0},{"$f":"(((AAMC_Raw_Data_for_FY22[[#This Row],[Median]]-AAMC_Raw_Data_for_FY22[[#This Row],[25th]])/25)*10) + AAMC_Raw_Data_for_FY22[[#This Row],[25th]]","v":0},{"$f":"(((AAMC_Raw_Data_for_FY22[[#This Row],[Median]]-AAMC_Raw_Data_for_FY22[[#This Row],[25th]])/25)*15) + AAMC_Raw_Data_for_FY22[[#This Row],[25th]]","v":0},{"$f":"(((AAMC_Raw_Data_for_FY22[[#This Row],[Median]]-AAMC_Raw_Data_for_FY22[[#This Row],[25th]])/25)*20) + AAMC_Raw_Data_for_FY22[[#This Row],[25th]]","v":0},null,{"$f":"(((AAMC_Raw_Data_for_FY22[[#This Row],[75th]]-AAMC_Raw_Data_for_FY22[[#This Row],[Median]])/25)*5) + AAMC_Raw_Data_for_FY22[[#This Row],[Median]]","v":0},{"$f":"(((AAMC_Raw_Data_for_FY22[[#This Row],[75th]]-AAMC_Raw_Data_for_FY22[[#This Row],[Median]])/25)*10) + AAMC_Raw_Data_for_FY22[[#This Row],[Median]]","v":0},{"$f":"(((AAMC_Raw_Data_for_FY22[[#This Row],[75th]]-AAMC_Raw_Data_for_FY22[[#This Row],[Median]])/25)*15) + AAMC_Raw_Data_for_FY22[[#This Row],[Median]]","v":0},{"$f":"(((AAMC_Raw_Data_for_FY22[[#This Row],[75th]]-AAMC_Raw_Data_for_FY22[[#This Row],[Median]])/25)*20) + AAMC_Raw_Data_for_FY22[[#This Row],[Median]]","v":0},null,{"$f":"(((AAMC_Raw_Data_for_FY22[[#This Row],[75th]]-AAMC_Raw_Data_for_FY22[[#This Row],[Median]])/25)*30) + AAMC_Raw_Data_for_FY22[[#This Row],[Median]]","v":0},{"$f":"(((AAMC_Raw_Data_for_FY22[[#This Row],[75th]]-AAMC_Raw_Data_for_FY22[[#This Row],[Median]])/25)*35) + AAMC_Raw_Data_for_FY22[[#This Row],[Median]]","v":0},{"$f":"(((AAMC_Raw_Data_for_FY22[[#This Row],[75th]]-AAMC_Raw_Data_for_FY22[[#This Row],[Median]])/25)*40) + AAMC_Raw_Data_for_FY22[[#This Row],[Median]]","v":0}]
[{"$f":"AAMC_Raw_Data_for_FY22[[#This Row],[Source]]&AAMC_Raw_Data_for_FY22[[#This Row],[Type]]&AAMC_Raw_Data_for_FY22[[#This Row],[School Subset]]&AAMC_Raw_Data_for_FY22[[#This Row],[Rank]]&AAMC_Raw_Data_for_FY22[[#This Row],[Degree]]&AAMC_Raw_Data_for_FY22[[#This Row],[Department / Specialty]]&\"L\"","v":"AAMCAcademicAllProfessorPhDPalliative Care-Med.L"},"Palliative Care-Med.",2,"AAMC","Academic","All","Professor","PhD","2021-2022",null,{"$f":"(((AAMC_Raw_Data_for_FY22[[#This Row],[Median]]-AAMC_Raw_Data_for_FY22[[#This Row],[25th]])/25)*5) + AAMC_Raw_Data_for_FY22[[#This Row],[25th]]","v":0},{"$f":"(((AAMC_Raw_Data_for_FY22[[#This Row],[Median]]-AAMC_Raw_Data_for_FY22[[#This Row],[25th]])/25)*10) + AAMC_Raw_Data_for_FY22[[#This Row],[25th]]","v":0},{"$f":"(((AAMC_Raw_Data_for_FY22[[#This Row],[Median]]-AAMC_Raw_Data_for_FY22[[#This Row],[25th]])/25)*15) + AAMC_Raw_Data_for_FY22[[#This Row],[25th]]","v":0},{"$f":"(((AAMC_Raw_Data_for_FY22[[#This Row],[Median]]-AAMC_Raw_Data_for_FY22[[#This Row],[25th]])/25)*20) + AAMC_Raw_Data_for_FY22[[#This Row],[25th]]","v":0},null,{"$f":"(((AAMC_Raw_Data_for_FY22[[#This Row],[75th]]-AAMC_Raw_Data_for_FY22[[#This Row],[Median]])/25)*5) + AAMC_Raw_Data_for_FY22[[#This Row],[Median]]","v":0},{"$f":"(((AAMC_Raw_Data_for_FY22[[#This Row],[75th]]-AAMC_Raw_Data_for_FY22[[#This Row],[Median]])/25)*10) + AAMC_Raw_Data_for_FY22[[#This Row],[Median]]","v":0},{"$f":"(((AAMC_Raw_Data_for_FY22[[#This Row],[75th]]-AAMC_Raw_Data_for_FY22[[#This Row],[Median]])/25)*15) + AAMC_Raw_Data_for_FY22[[#This Row],[Median]]","v":0},{"$f":"(((AAMC_Raw_Data_for_FY22[[#This Row],[75th]]-AAMC_Raw_Data_for_FY22[[#This Row],[Median]])/25)*20) + AAMC_Raw_Data_for_FY22[[#This Row],[Median]]","v":0},null,{"$f":"(((AAMC_Raw_Data_for_FY22[[#This Row],[75th]]-AAMC_Raw_Data_for_FY22[[#This Row],[Median]])/25)*30) + AAMC_Raw_Data_for_FY22[[#This Row],[Median]]","v":0},{"$f":"(((AAMC_Raw_Data_for_FY22[[#This Row],[75th]]-AAMC_Raw_Data_for_FY22[[#This Row],[Median]])/25)*35) + AAMC_Raw_Data_for_FY22[[#This Row],[Median]]","v":0},{"$f":"(((AAMC_Raw_Data_for_FY22[[#This Row],[75th]]-AAMC_Raw_Data_for_FY22[[#This Row],[Median]])/25)*40) + AAMC_Raw_Data_for_FY22[[#This Row],[Median]]","v":0}]
[{"$f":"AAMC_Raw_Data_for_FY22[[#This Row],[Source]]&AAMC_Raw_Data_for_FY22[[#This Row],[Type]]&AAMC_Raw_Data_for_FY22[[#This Row],[School Subset]]&AAMC_Raw_Data_for_FY22[[#This Row],[Rank]]&AAMC_Raw_Data_for_FY22[[#This Row],[Degree]]&AAMC_Raw_Data_for_FY22[[#This Row],[Department / Specialty]]&\"L\"","v":"AAMCAcademicAllInstructorPhDPulmonary-Med.L"},"Pulmonary-Med.",5,"AAMC","Academic","All","Instructor","PhD","2021-2022",59253,{"$f":"(((AAMC_Raw_Data_for_FY22[[#This Row],[Median]]-AAMC_Raw_Data_for_FY22[[#This Row],[25th]])/25)*5) + AAMC_Raw_Data_for_FY22[[#This Row],[25th]]","v":61002.400000000001},{"$f":"(((AAMC_Raw_Data_for_FY22[[#This Row],[Median]]-AAMC_Raw_Data_for_FY22[[#This Row],[25th]])/25)*10) + AAMC_Raw_Data_for_FY22[[#This Row],[25th]]","v":62751.8},{"$f":"(((AAMC_Raw_Data_for_FY22[[#This Row],[Median]]-AAMC_Raw_Data_for_FY22[[#This Row],[25th]])/25)*15) + AAMC_Raw_Data_for_FY22[[#This Row],[25th]]","v":64501.2},{"$f":"(((AAMC_Raw_Data_for_FY22[[#This Row],[Median]]-AAMC_Raw_Data_for_FY22[[#This Row],[25th]])/25)*20) + AAMC_Raw_Data_for_FY22[[#This Row],[25th]]","v":66250.600000000006},68000,{"$f":"(((AAMC_Raw_Data_for_FY22[[#This Row],[75th]]-AAMC_Raw_Data_for_FY22[[#This Row],[Median]])/25)*5) + AAMC_Raw_Data_for_FY22[[#This Row],[Median]]","v":69606.600000000006},{"$f":"(((AAMC_Raw_Data_for_FY22[[#This Row],[75th]]-AAMC_Raw_Data_for_FY22[[#This Row],[Median]])/25)*10) + AAMC_Raw_Data_for_FY22[[#This Row],[Median]]","v":71213.2},{"$f":"(((AAMC_Raw_Data_for_FY22[[#This Row],[75th]]-AAMC_Raw_Data_for_FY22[[#This Row],[Median]])/25)*15) + AAMC_Raw_Data_for_FY22[[#This Row],[Median]]","v":72819.8},{"$f":"(((AAMC_Raw_Data_for_FY22[[#This Row],[75th]]-AAMC_Raw_Data_for_FY22[[#This Row],[Median]])/25)*20) + AAMC_Raw_Data_for_FY22[[#This Row],[Median]]","v":74426.399999999994},76033,{"$f":"(((AAMC_Raw_Data_for_FY22[[#This Row],[75th]]-AAMC_Raw_Data_for_FY22[[#This Row],[Median]])/25)*30) + AAMC_Raw_Data_for_FY22[[#This Row],[Median]]","v":77639.600000000006},{"$f":"(((AAMC_Raw_Data_for_FY22[[#This Row],[75th]]-AAMC_Raw_Data_for_FY22[[#This Row],[Median]])/25)*35) + AAMC_Raw_Data_for_FY22[[#This Row],[Median]]","v":79246.2},{"$f":"(((AAMC_Raw_Data_for_FY22[[#This Row],[75th]]-AAMC_Raw_Data_for_FY22[[#This Row],[Median]])/25)*40) + AAMC_Raw_Data_for_FY22[[#This Row],[Median]]","v":80852.800000000003}]
[{"$f":"AAMC_Raw_Data_for_FY22[[#This Row],[Source]]&AAMC_Raw_Data_for_FY22[[#This Row],[Type]]&AAMC_Raw_Data_for_FY22[[#This Row],[School Subset]]&AAMC_Raw_Data_for_FY22[[#This Row],[Rank]]&AAMC_Raw_Data_for_FY22[[#This Row],[Degree]]&AAMC_Raw_Data_for_FY22[[#This Row],[Department / Specialty]]&\"L\"","v":"AAMCAcademicAllAssistantPhDPulmonary-Med.L"},"Pulmonary-Med.",4,"AAMC","Academic","All","Assistant","PhD","2021-2022",81900,{"$f":"(((AAMC_Raw_Data_for_FY22[[#This Row],[Median]]-AAMC_Raw_Data_for_FY22[[#This Row],[25th]])/25)*5) + AAMC_Raw_Data_for_FY22[[#This Row],[25th]]","v":85091},{"$f":"(((AAMC_Raw_Data_for_FY22[[#This Row],[Median]]-AAMC_Raw_Data_for_FY22[[#This Row],[25th]])/25)*10) + AAMC_Raw_Data_for_FY22[[#This Row],[25th]]","v":88282},{"$f":"(((AAMC_Raw_Data_for_FY22[[#This Row],[Median]]-AAMC_Raw_Data_for_FY22[[#This Row],[25th]])/25)*15) + AAMC_Raw_Data_for_FY22[[#This Row],[25th]]","v":91473},{"$f":"(((AAMC_Raw_Data_for_FY22[[#This Row],[Median]]-AAMC_Raw_Data_for_FY22[[#This Row],[25th]])/25)*20) + AAMC_Raw_Data_for_FY22[[#This Row],[25th]]","v":94664},97855,{"$f":"(((AAMC_Raw_Data_for_FY22[[#This Row],[75th]]-AAMC_Raw_Data_for_FY22[[#This Row],[Median]])/25)*5) + AAMC_Raw_Data_for_FY22[[#This Row],[Median]]","v":101244},{"$f":"(((AAMC_Raw_Data_for_FY22[[#This Row],[75th]]-AAMC_Raw_Data_for_FY22[[#This Row],[Median]])/25)*10) + AAMC_Raw_Data_for_FY22[[#This Row],[Median]]","v":104633},{"$f":"(((AAMC_Raw_Data_for_FY22[[#This Row],[75th]]-AAMC_Raw_Data_for_FY22[[#This Row],[Median]])/25)*15) + AAMC_Raw_Data_for_FY22[[#This Row],[Median]]","v":108022},{"$f":"(((AAMC_Raw_Data_for_FY22[[#This Row],[75th]]-AAMC_Raw_Data_for_FY22[[#This Row],[Median]])/25)*20) + AAMC_Raw_Data_for_FY22[[#This Row],[Median]]","v":111411},114800,{"$f":"(((AAMC_Raw_Data_for_FY22[[#This Row],[75th]]-AAMC_Raw_Data_for_FY22[[#This Row],[Median]])/25)*30) + AAMC_Raw_Data_for_FY22[[#This Row],[Median]]","v":118189},{"$f":"(((AAMC_Raw_Data_for_FY22[[#This Row],[75th]]-AAMC_Raw_Data_for_FY22[[#This Row],[Median]])/25)*35) + AAMC_Raw_Data_for_FY22[[#This Row],[Median]]","v":121578},{"$f":"(((AAMC_Raw_Data_for_FY22[[#This Row],[75th]]-AAMC_Raw_Data_for_FY22[[#This Row],[Median]])/25)*40) + AAMC_Raw_Data_for_FY22[[#This Row],[Median]]","v":124967}]
[{"$f":"AAMC_Raw_Data_for_FY22[[#This Row],[Source]]&AAMC_Raw_Data_for_FY22[[#This Row],[Type]]&AAMC_Raw_Data_for_FY22[[#This Row],[School Subset]]&AAMC_Raw_Data_for_FY22[[#This Row],[Rank]]&AAMC_Raw_Data_for_FY22[[#This Row],[Degree]]&AAMC_Raw_Data_for_FY22[[#This Row],[Department / Specialty]]&\"L\"","v":"AAMCAcademicAllAssociatePhDPulmonary-Med.L"},"Pulmonary-Med.",3,"AAMC","Academic","All","Associate","PhD","2021-2022",108720,{"$f":"(((AAMC_Raw_Data_for_FY22[[#This Row],[Median]]-AAMC_Raw_Data_for_FY22[[#This Row],[25th]])/25)*5) + AAMC_Raw_Data_for_FY22[[#This Row],[25th]]","v":113868.6},{"$f":"(((AAMC_Raw_Data_for_FY22[[#This Row],[Median]]-AAMC_Raw_Data_for_FY22[[#This Row],[25th]])/25)*10) + AAMC_Raw_Data_for_FY22[[#This Row],[25th]]","v":119017.2},{"$f":"(((AAMC_Raw_Data_for_FY22[[#This Row],[Median]]-AAMC_Raw_Data_for_FY22[[#This Row],[25th]])/25)*15) + AAMC_Raw_Data_for_FY22[[#This Row],[25th]]","v":124165.8},{"$f":"(((AAMC_Raw_Data_for_FY22[[#This Row],[Median]]-AAMC_Raw_Data_for_FY22[[#This Row],[25th]])/25)*20) + AAMC_Raw_Data_for_FY22[[#This Row],[25th]]","v":129314.4},134463,{"$f":"(((AAMC_Raw_Data_for_FY22[[#This Row],[75th]]-AAMC_Raw_Data_for_FY22[[#This Row],[Median]])/25)*5) + AAMC_Raw_Data_for_FY22[[#This Row],[Median]]","v":139348.79999999999},{"$f":"(((AAMC_Raw_Data_for_FY22[[#This Row],[75th]]-AAMC_Raw_Data_for_FY22[[#This Row],[Median]])/25)*10) + AAMC_Raw_Data_for_FY22[[#This Row],[Median]]","v":144234.6},{"$f":"(((AAMC_Raw_Data_for_FY22[[#This Row],[75th]]-AAMC_Raw_Data_for_FY22[[#This Row],[Median]])/25)*15) + AAMC_Raw_Data_for_FY22[[#This Row],[Median]]","v":149120.4},{"$f":"(((AAMC_Raw_Data_for_FY22[[#This Row],[75th]]-AAMC_Raw_Data_for_FY22[[#This Row],[Median]])/25)*20) + AAMC_Raw_Data_for_FY22[[#This Row],[Median]]","v":154006.20000000001},158892,{"$f":"(((AAMC_Raw_Data_for_FY22[[#This Row],[75th]]-AAMC_Raw_Data_for_FY22[[#This Row],[Median]])/25)*30) + AAMC_Raw_Data_for_FY22[[#This Row],[Median]]","v":163777.79999999999},{"$f":"(((AAMC_Raw_Data_for_FY22[[#This Row],[75th]]-AAMC_Raw_Data_for_FY22[[#This Row],[Median]])/25)*35) + AAMC_Raw_Data_for_FY22[[#This Row],[Median]]","v":168663.6},{"$f":"(((AAMC_Raw_Data_for_FY22[[#This Row],[75th]]-AAMC_Raw_Data_for_FY22[[#This Row],[Median]])/25)*40) + AAMC_Raw_Data_for_FY22[[#This Row],[Median]]","v":173549.4}]
[{"$f":"AAMC_Raw_Data_for_FY22[[#This Row],[Source]]&AAMC_Raw_Data_for_FY22[[#This Row],[Type]]&AAMC_Raw_Data_for_FY22[[#This Row],[School Subset]]&AAMC_Raw_Data_for_FY22[[#This Row],[Rank]]&AAMC_Raw_Data_for_FY22[[#This Row],[Degree]]&AAMC_Raw_Data_for_FY22[[#This Row],[Department / Specialty]]&\"L\"","v":"AAMCAcademicAllProfessorPhDPulmonary-Med.L"},"Pulmonary-Med.",2,"AAMC","Academic","All","Professor","PhD","2021-2022",158519,{"$f":"(((AAMC_Raw_Data_for_FY22[[#This Row],[Median]]-AAMC_Raw_Data_for_FY22[[#This Row],[25th]])/25)*5) + AAMC_Raw_Data_for_FY22[[#This Row],[25th]]","v":166676.20000000001},{"$f":"(((AAMC_Raw_Data_for_FY22[[#This Row],[Median]]-AAMC_Raw_Data_for_FY22[[#This Row],[25th]])/25)*10) + AAMC_Raw_Data_for_FY22[[#This Row],[25th]]","v":174833.4},{"$f":"(((AAMC_Raw_Data_for_FY22[[#This Row],[Median]]-AAMC_Raw_Data_for_FY22[[#This Row],[25th]])/25)*15) + AAMC_Raw_Data_for_FY22[[#This Row],[25th]]","v":182990.6},{"$f":"(((AAMC_Raw_Data_for_FY22[[#This Row],[Median]]-AAMC_Raw_Data_for_FY22[[#This Row],[25th]])/25)*20) + AAMC_Raw_Data_for_FY22[[#This Row],[25th]]","v":191147.8},199305,{"$f":"(((AAMC_Raw_Data_for_FY22[[#This Row],[75th]]-AAMC_Raw_Data_for_FY22[[#This Row],[Median]])/25)*5) + AAMC_Raw_Data_for_FY22[[#This Row],[Median]]","v":206414.8},{"$f":"(((AAMC_Raw_Data_for_FY22[[#This Row],[75th]]-AAMC_Raw_Data_for_FY22[[#This Row],[Median]])/25)*10) + AAMC_Raw_Data_for_FY22[[#This Row],[Median]]","v":213524.6},{"$f":"(((AAMC_Raw_Data_for_FY22[[#This Row],[75th]]-AAMC_Raw_Data_for_FY22[[#This Row],[Median]])/25)*15) + AAMC_Raw_Data_for_FY22[[#This Row],[Median]]","v":220634.4},{"$f":"(((AAMC_Raw_Data_for_FY22[[#This Row],[75th]]-AAMC_Raw_Data_for_FY22[[#This Row],[Median]])/25)*20) + AAMC_Raw_Data_for_FY22[[#This Row],[Median]]","v":227744.2},234854,{"$f":"(((AAMC_Raw_Data_for_FY22[[#This Row],[75th]]-AAMC_Raw_Data_for_FY22[[#This Row],[Median]])/25)*30) + AAMC_Raw_Data_for_FY22[[#This Row],[Median]]","v":241963.8},{"$f":"(((AAMC_Raw_Data_for_FY22[[#This Row],[75th]]-AAMC_Raw_Data_for_FY22[[#This Row],[Median]])/25)*35) + AAMC_Raw_Data_for_FY22[[#This Row],[Median]]","v":249073.6},{"$f":"(((AAMC_Raw_Data_for_FY22[[#This Row],[75th]]-AAMC_Raw_Data_for_FY22[[#This Row],[Median]])/25)*40) + AAMC_Raw_Data_for_FY22[[#This Row],[Median]]","v":256183.4}]
[{"$f":"AAMC_Raw_Data_for_FY22[[#This Row],[Source]]&AAMC_Raw_Data_for_FY22[[#This Row],[Type]]&AAMC_Raw_Data_for_FY22[[#This Row],[School Subset]]&AAMC_Raw_Data_for_FY22[[#This Row],[Rank]]&AAMC_Raw_Data_for_FY22[[#This Row],[Degree]]&AAMC_Raw_Data_for_FY22[[#This Row],[Department / Specialty]]&\"L\"","v":"AAMCAcademicAllChiefPhDPulmonary-Med.L"},"Pulmonary-Med.",6,"AAMC","Academic","All","Chief","PhD","2021-2022",null,{"$f":"(((AAMC_Raw_Data_for_FY22[[#This Row],[Median]]-AAMC_Raw_Data_for_FY22[[#This Row],[25th]])/25)*5) + AAMC_Raw_Data_for_FY22[[#This Row],[25th]]","v":0},{"$f":"(((AAMC_Raw_Data_for_FY22[[#This Row],[Median]]-AAMC_Raw_Data_for_FY22[[#This Row],[25th]])/25)*10) + AAMC_Raw_Data_for_FY22[[#This Row],[25th]]","v":0},{"$f":"(((AAMC_Raw_Data_for_FY22[[#This Row],[Median]]-AAMC_Raw_Data_for_FY22[[#This Row],[25th]])/25)*15) + AAMC_Raw_Data_for_FY22[[#This Row],[25th]]","v":0},{"$f":"(((AAMC_Raw_Data_for_FY22[[#This Row],[Median]]-AAMC_Raw_Data_for_FY22[[#This Row],[25th]])/25)*20) + AAMC_Raw_Data_for_FY22[[#This Row],[25th]]","v":0},null,{"$f":"(((AAMC_Raw_Data_for_FY22[[#This Row],[75th]]-AAMC_Raw_Data_for_FY22[[#This Row],[Median]])/25)*5) + AAMC_Raw_Data_for_FY22[[#This Row],[Median]]","v":0},{"$f":"(((AAMC_Raw_Data_for_FY22[[#This Row],[75th]]-AAMC_Raw_Data_for_FY22[[#This Row],[Median]])/25)*10) + AAMC_Raw_Data_for_FY22[[#This Row],[Median]]","v":0},{"$f":"(((AAMC_Raw_Data_for_FY22[[#This Row],[75th]]-AAMC_Raw_Data_for_FY22[[#This Row],[Median]])/25)*15) + AAMC_Raw_Data_for_FY22[[#This Row],[Median]]","v":0},{"$f":"(((AAMC_Raw_Data_for_FY22[[#This Row],[75th]]-AAMC_Raw_Data_for_FY22[[#This Row],[Median]])/25)*20) + AAMC_Raw_Data_for_FY22[[#This Row],[Median]]","v":0},null,{"$f":"(((AAMC_Raw_Data_for_FY22[[#This Row],[75th]]-AAMC_Raw_Data_for_FY22[[#This Row],[Median]])/25)*30) + AAMC_Raw_Data_for_FY22[[#This Row],[Median]]","v":0},{"$f":"(((AAMC_Raw_Data_for_FY22[[#This Row],[75th]]-AAMC_Raw_Data_for_FY22[[#This Row],[Median]])/25)*35) + AAMC_Raw_Data_for_FY22[[#This Row],[Median]]","v":0},{"$f":"(((AAMC_Raw_Data_for_FY22[[#This Row],[75th]]-AAMC_Raw_Data_for_FY22[[#This Row],[Median]])/25)*40) + AAMC_Raw_Data_for_FY22[[#This Row],[Median]]","v":0}]
[{"$f":"AAMC_Raw_Data_for_FY22[[#This Row],[Source]]&AAMC_Raw_Data_for_FY22[[#This Row],[Type]]&AAMC_Raw_Data_for_FY22[[#This Row],[School Subset]]&AAMC_Raw_Data_for_FY22[[#This Row],[Rank]]&AAMC_Raw_Data_for_FY22[[#This Row],[Degree]]&AAMC_Raw_Data_for_FY22[[#This Row],[Department / Specialty]]&\"L\"","v":"AAMCAcademicAllInstructorPhDRheumatology-Med.L"},"Rheumatology-Med.",5,"AAMC","Academic","All","Instructor","PhD","2021-2022",61302,{"$f":"(((AAMC_Raw_Data_for_FY22[[#This Row],[Median]]-AAMC_Raw_Data_for_FY22[[#This Row],[25th]])/25)*5) + AAMC_Raw_Data_for_FY22[[#This Row],[25th]]","v":64241.599999999999},{"$f":"(((AAMC_Raw_Data_for_FY22[[#This Row],[Median]]-AAMC_Raw_Data_for_FY22[[#This Row],[25th]])/25)*10) + AAMC_Raw_Data_for_FY22[[#This Row],[25th]]","v":67181.2},{"$f":"(((AAMC_Raw_Data_for_FY22[[#This Row],[Median]]-AAMC_Raw_Data_for_FY22[[#This Row],[25th]])/25)*15) + AAMC_Raw_Data_for_FY22[[#This Row],[25th]]","v":70120.800000000003},{"$f":"(((AAMC_Raw_Data_for_FY22[[#This Row],[Median]]-AAMC_Raw_Data_for_FY22[[#This Row],[25th]])/25)*20) + AAMC_Raw_Data_for_FY22[[#This Row],[25th]]","v":73060.399999999994},76000,{"$f":"(((AAMC_Raw_Data_for_FY22[[#This Row],[75th]]-AAMC_Raw_Data_for_FY22[[#This Row],[Median]])/25)*5) + AAMC_Raw_Data_for_FY22[[#This Row],[Median]]","v":77302.600000000006},{"$f":"(((AAMC_Raw_Data_for_FY22[[#This Row],[75th]]-AAMC_Raw_Data_for_FY22[[#This Row],[Median]])/25)*10) + AAMC_Raw_Data_for_FY22[[#This Row],[Median]]","v":78605.2},{"$f":"(((AAMC_Raw_Data_for_FY22[[#This Row],[75th]]-AAMC_Raw_Data_for_FY22[[#This Row],[Median]])/25)*15) + AAMC_Raw_Data_for_FY22[[#This Row],[Median]]","v":79907.8},{"$f":"(((AAMC_Raw_Data_for_FY22[[#This Row],[75th]]-AAMC_Raw_Data_for_FY22[[#This Row],[Median]])/25)*20) + AAMC_Raw_Data_for_FY22[[#This Row],[Median]]","v":81210.399999999994},82513,{"$f":"(((AAMC_Raw_Data_for_FY22[[#This Row],[75th]]-AAMC_Raw_Data_for_FY22[[#This Row],[Median]])/25)*30) + AAMC_Raw_Data_for_FY22[[#This Row],[Median]]","v":83815.600000000006},{"$f":"(((AAMC_Raw_Data_for_FY22[[#This Row],[75th]]-AAMC_Raw_Data_for_FY22[[#This Row],[Median]])/25)*35) + AAMC_Raw_Data_for_FY22[[#This Row],[Median]]","v":85118.2},{"$f":"(((AAMC_Raw_Data_for_FY22[[#This Row],[75th]]-AAMC_Raw_Data_for_FY22[[#This Row],[Median]])/25)*40) + AAMC_Raw_Data_for_FY22[[#This Row],[Median]]","v":86420.800000000003}]
[{"$f":"AAMC_Raw_Data_for_FY22[[#This Row],[Source]]&AAMC_Raw_Data_for_FY22[[#This Row],[Type]]&AAMC_Raw_Data_for_FY22[[#This Row],[School Subset]]&AAMC_Raw_Data_for_FY22[[#This Row],[Rank]]&AAMC_Raw_Data_for_FY22[[#This Row],[Degree]]&AAMC_Raw_Data_for_FY22[[#This Row],[Department / Specialty]]&\"L\"","v":"AAMCAcademicAllAssistantPhDRheumatology-Med.L"},"Rheumatology-Med.",4,"AAMC","Academic","All","Assistant","PhD","2021-2022",91087,{"$f":"(((AAMC_Raw_Data_for_FY22[[#This Row],[Median]]-AAMC_Raw_Data_for_FY22[[#This Row],[25th]])/25)*5) + AAMC_Raw_Data_for_FY22[[#This Row],[25th]]","v":92482.6},{"$f":"(((AAMC_Raw_Data_for_FY22[[#This Row],[Median]]-AAMC_Raw_Data_for_FY22[[#This Row],[25th]])/25)*10) + AAMC_Raw_Data_for_FY22[[#This Row],[25th]]","v":93878.2},{"$f":"(((AAMC_Raw_Data_for_FY22[[#This Row],[Median]]-AAMC_Raw_Data_for_FY22[[#This Row],[25th]])/25)*15) + AAMC_Raw_Data_for_FY22[[#This Row],[25th]]","v":95273.8},{"$f":"(((AAMC_Raw_Data_for_FY22[[#This Row],[Median]]-AAMC_Raw_Data_for_FY22[[#This Row],[25th]])/25)*20) + AAMC_Raw_Data_for_FY22[[#This Row],[25th]]","v":96669.4},98065,{"$f":"(((AAMC_Raw_Data_for_FY22[[#This Row],[75th]]-AAMC_Raw_Data_for_FY22[[#This Row],[Median]])/25)*5) + AAMC_Raw_Data_for_FY22[[#This Row],[Median]]","v":102873.4},{"$f":"(((AAMC_Raw_Data_for_FY22[[#This Row],[75th]]-AAMC_Raw_Data_for_FY22[[#This Row],[Median]])/25)*10) + AAMC_Raw_Data_for_FY22[[#This Row],[Median]]","v":107681.8},{"$f":"(((AAMC_Raw_Data_for_FY22[[#This Row],[75th]]-AAMC_Raw_Data_for_FY22[[#This Row],[Median]])/25)*15) + AAMC_Raw_Data_for_FY22[[#This Row],[Median]]","v":112490.2},{"$f":"(((AAMC_Raw_Data_for_FY22[[#This Row],[75th]]-AAMC_Raw_Data_for_FY22[[#This Row],[Median]])/25)*20) + AAMC_Raw_Data_for_FY22[[#This Row],[Median]]","v":117298.6},122107,{"$f":"(((AAMC_Raw_Data_for_FY22[[#This Row],[75th]]-AAMC_Raw_Data_for_FY22[[#This Row],[Median]])/25)*30) + AAMC_Raw_Data_for_FY22[[#This Row],[Median]]","v":126915.4},{"$f":"(((AAMC_Raw_Data_for_FY22[[#This Row],[75th]]-AAMC_Raw_Data_for_FY22[[#This Row],[Median]])/25)*35) + AAMC_Raw_Data_for_FY22[[#This Row],[Median]]","v":131723.79999999999},{"$f":"(((AAMC_Raw_Data_for_FY22[[#This Row],[75th]]-AAMC_Raw_Data_for_FY22[[#This Row],[Median]])/25)*40) + AAMC_Raw_Data_for_FY22[[#This Row],[Median]]","v":136532.20000000001}]
[{"$f":"AAMC_Raw_Data_for_FY22[[#This Row],[Source]]&AAMC_Raw_Data_for_FY22[[#This Row],[Type]]&AAMC_Raw_Data_for_FY22[[#This Row],[School Subset]]&AAMC_Raw_Data_for_FY22[[#This Row],[Rank]]&AAMC_Raw_Data_for_FY22[[#This Row],[Degree]]&AAMC_Raw_Data_for_FY22[[#This Row],[Department / Specialty]]&\"L\"","v":"AAMCAcademicAllAssociatePhDRheumatology-Med.L"},"Rheumatology-Med.",3,"AAMC","Academic","All","Associate","PhD","2021-2022",106520,{"$f":"(((AAMC_Raw_Data_for_FY22[[#This Row],[Median]]-AAMC_Raw_Data_for_FY22[[#This Row],[25th]])/25)*5) + AAMC_Raw_Data_for_FY22[[#This Row],[25th]]","v":110885.8},{"$f":"(((AAMC_Raw_Data_for_FY22[[#This Row],[Median]]-AAMC_Raw_Data_for_FY22[[#This Row],[25th]])/25)*10) + AAMC_Raw_Data_for_FY22[[#This Row],[25th]]","v":115251.6},{"$f":"(((AAMC_Raw_Data_for_FY22[[#This Row],[Median]]-AAMC_Raw_Data_for_FY22[[#This Row],[25th]])/25)*15) + AAMC_Raw_Data_for_FY22[[#This Row],[25th]]","v":119617.4},{"$f":"(((AAMC_Raw_Data_for_FY22[[#This Row],[Median]]-AAMC_Raw_Data_for_FY22[[#This Row],[25th]])/25)*20) + AAMC_Raw_Data_for_FY22[[#This Row],[25th]]","v":123983.2},128349,{"$f":"(((AAMC_Raw_Data_for_FY22[[#This Row],[75th]]-AAMC_Raw_Data_for_FY22[[#This Row],[Median]])/25)*5) + AAMC_Raw_Data_for_FY22[[#This Row],[Median]]","v":130174.6},{"$f":"(((AAMC_Raw_Data_for_FY22[[#This Row],[75th]]-AAMC_Raw_Data_for_FY22[[#This Row],[Median]])/25)*10) + AAMC_Raw_Data_for_FY22[[#This Row],[Median]]","v":132000.20000000001},{"$f":"(((AAMC_Raw_Data_for_FY22[[#This Row],[75th]]-AAMC_Raw_Data_for_FY22[[#This Row],[Median]])/25)*15) + AAMC_Raw_Data_for_FY22[[#This Row],[Median]]","v":133825.79999999999},{"$f":"(((AAMC_Raw_Data_for_FY22[[#This Row],[75th]]-AAMC_Raw_Data_for_FY22[[#This Row],[Median]])/25)*20) + AAMC_Raw_Data_for_FY22[[#This Row],[Median]]","v":135651.4},137477,{"$f":"(((AAMC_Raw_Data_for_FY22[[#This Row],[75th]]-AAMC_Raw_Data_for_FY22[[#This Row],[Median]])/25)*30) + AAMC_Raw_Data_for_FY22[[#This Row],[Median]]","v":139302.6},{"$f":"(((AAMC_Raw_Data_for_FY22[[#This Row],[75th]]-AAMC_Raw_Data_for_FY22[[#This Row],[Median]])/25)*35) + AAMC_Raw_Data_for_FY22[[#This Row],[Median]]","v":141128.20000000001},{"$f":"(((AAMC_Raw_Data_for_FY22[[#This Row],[75th]]-AAMC_Raw_Data_for_FY22[[#This Row],[Median]])/25)*40) + AAMC_Raw_Data_for_FY22[[#This Row],[Median]]","v":142953.79999999999}]
[{"$f":"AAMC_Raw_Data_for_FY22[[#This Row],[Source]]&AAMC_Raw_Data_for_FY22[[#This Row],[Type]]&AAMC_Raw_Data_for_FY22[[#This Row],[School Subset]]&AAMC_Raw_Data_for_FY22[[#This Row],[Rank]]&AAMC_Raw_Data_for_FY22[[#This Row],[Degree]]&AAMC_Raw_Data_for_FY22[[#This Row],[Department / Specialty]]&\"L\"","v":"AAMCAcademicAllProfessorPhDRheumatology-Med.L"},"Rheumatology-Med.",2,"AAMC","Academic","All","Professor","PhD","2021-2022",152173,{"$f":"(((AAMC_Raw_Data_for_FY22[[#This Row],[Median]]-AAMC_Raw_Data_for_FY22[[#This Row],[25th]])/25)*5) + AAMC_Raw_Data_for_FY22[[#This Row],[25th]]","v":158049},{"$f":"(((AAMC_Raw_Data_for_FY22[[#This Row],[Median]]-AAMC_Raw_Data_for_FY22[[#This Row],[25th]])/25)*10) + AAMC_Raw_Data_for_FY22[[#This Row],[25th]]","v":163925},{"$f":"(((AAMC_Raw_Data_for_FY22[[#This Row],[Median]]-AAMC_Raw_Data_for_FY22[[#This Row],[25th]])/25)*15) + AAMC_Raw_Data_for_FY22[[#This Row],[25th]]","v":169801},{"$f":"(((AAMC_Raw_Data_for_FY22[[#This Row],[Median]]-AAMC_Raw_Data_for_FY22[[#This Row],[25th]])/25)*20) + AAMC_Raw_Data_for_FY22[[#This Row],[25th]]","v":175677},181553,{"$f":"(((AAMC_Raw_Data_for_FY22[[#This Row],[75th]]-AAMC_Raw_Data_for_FY22[[#This Row],[Median]])/25)*5) + AAMC_Raw_Data_for_FY22[[#This Row],[Median]]","v":191441.2},{"$f":"(((AAMC_Raw_Data_for_FY22[[#This Row],[75th]]-AAMC_Raw_Data_for_FY22[[#This Row],[Median]])/25)*10) + AAMC_Raw_Data_for_FY22[[#This Row],[Median]]","v":201329.4},{"$f":"(((AAMC_Raw_Data_for_FY22[[#This Row],[75th]]-AAMC_Raw_Data_for_FY22[[#This Row],[Median]])/25)*15) + AAMC_Raw_Data_for_FY22[[#This Row],[Median]]","v":211217.6},{"$f":"(((AAMC_Raw_Data_for_FY22[[#This Row],[75th]]-AAMC_Raw_Data_for_FY22[[#This Row],[Median]])/25)*20) + AAMC_Raw_Data_for_FY22[[#This Row],[Median]]","v":221105.8},230994,{"$f":"(((AAMC_Raw_Data_for_FY22[[#This Row],[75th]]-AAMC_Raw_Data_for_FY22[[#This Row],[Median]])/25)*30) + AAMC_Raw_Data_for_FY22[[#This Row],[Median]]","v":240882.2},{"$f":"(((AAMC_Raw_Data_for_FY22[[#This Row],[75th]]-AAMC_Raw_Data_for_FY22[[#This Row],[Median]])/25)*35) + AAMC_Raw_Data_for_FY22[[#This Row],[Median]]","v":250770.40000000002},{"$f":"(((AAMC_Raw_Data_for_FY22[[#This Row],[75th]]-AAMC_Raw_Data_for_FY22[[#This Row],[Median]])/25)*40) + AAMC_Raw_Data_for_FY22[[#This Row],[Median]]","v":260658.6}]
[{"$f":"AAMC_Raw_Data_for_FY22[[#This Row],[Source]]&AAMC_Raw_Data_for_FY22[[#This Row],[Type]]&AAMC_Raw_Data_for_FY22[[#This Row],[School Subset]]&AAMC_Raw_Data_for_FY22[[#This Row],[Rank]]&AAMC_Raw_Data_for_FY22[[#This Row],[Degree]]&AAMC_Raw_Data_for_FY22[[#This Row],[Department / Specialty]]&\"L\"","v":"AAMCAcademicAllChiefPhDRheumatology-Med.L"},"Rheumatology-Med.",6,"AAMC","Academic","All","Chief","PhD","2021-2022",null,{"$f":"(((AAMC_Raw_Data_for_FY22[[#This Row],[Median]]-AAMC_Raw_Data_for_FY22[[#This Row],[25th]])/25)*5) + AAMC_Raw_Data_for_FY22[[#This Row],[25th]]","v":0},{"$f":"(((AAMC_Raw_Data_for_FY22[[#This Row],[Median]]-AAMC_Raw_Data_for_FY22[[#This Row],[25th]])/25)*10) + AAMC_Raw_Data_for_FY22[[#This Row],[25th]]","v":0},{"$f":"(((AAMC_Raw_Data_for_FY22[[#This Row],[Median]]-AAMC_Raw_Data_for_FY22[[#This Row],[25th]])/25)*15) + AAMC_Raw_Data_for_FY22[[#This Row],[25th]]","v":0},{"$f":"(((AAMC_Raw_Data_for_FY22[[#This Row],[Median]]-AAMC_Raw_Data_for_FY22[[#This Row],[25th]])/25)*20) + AAMC_Raw_Data_for_FY22[[#This Row],[25th]]","v":0},null,{"$f":"(((AAMC_Raw_Data_for_FY22[[#This Row],[75th]]-AAMC_Raw_Data_for_FY22[[#This Row],[Median]])/25)*5) + AAMC_Raw_Data_for_FY22[[#This Row],[Median]]","v":0},{"$f":"(((AAMC_Raw_Data_for_FY22[[#This Row],[75th]]-AAMC_Raw_Data_for_FY22[[#This Row],[Median]])/25)*10) + AAMC_Raw_Data_for_FY22[[#This Row],[Median]]","v":0},{"$f":"(((AAMC_Raw_Data_for_FY22[[#This Row],[75th]]-AAMC_Raw_Data_for_FY22[[#This Row],[Median]])/25)*15) + AAMC_Raw_Data_for_FY22[[#This Row],[Median]]","v":0},{"$f":"(((AAMC_Raw_Data_for_FY22[[#This Row],[75th]]-AAMC_Raw_Data_for_FY22[[#This Row],[Median]])/25)*20) + AAMC_Raw_Data_for_FY22[[#This Row],[Median]]","v":0},null,{"$f":"(((AAMC_Raw_Data_for_FY22[[#This Row],[75th]]-AAMC_Raw_Data_for_FY22[[#This Row],[Median]])/25)*30) + AAMC_Raw_Data_for_FY22[[#This Row],[Median]]","v":0},{"$f":"(((AAMC_Raw_Data_for_FY22[[#This Row],[75th]]-AAMC_Raw_Data_for_FY22[[#This Row],[Median]])/25)*35) + AAMC_Raw_Data_for_FY22[[#This Row],[Median]]","v":0},{"$f":"(((AAMC_Raw_Data_for_FY22[[#This Row],[75th]]-AAMC_Raw_Data_for_FY22[[#This Row],[Median]])/25)*40) + AAMC_Raw_Data_for_FY22[[#This Row],[Median]]","v":0}]
[{"$f":"AAMC_Raw_Data_for_FY22[[#This Row],[Source]]&AAMC_Raw_Data_for_FY22[[#This Row],[Type]]&AAMC_Raw_Data_for_FY22[[#This Row],[School Subset]]&AAMC_Raw_Data_for_FY22[[#This Row],[Rank]]&AAMC_Raw_Data_for_FY22[[#This Row],[Degree]]&AAMC_Raw_Data_for_FY22[[#This Row],[Department / Specialty]]&\"L\"","v":"AAMCAcademicAllInstructorPhDOther MedicineL"},"Other Medicine",5,"AAMC","Academic","All","Instructor","PhD","2021-2022",80054,{"$f":"(((AAMC_Raw_Data_for_FY22[[#This Row],[Median]]-AAMC_Raw_Data_for_FY22[[#This Row],[25th]])/25)*5) + AAMC_Raw_Data_for_FY22[[#This Row],[25th]]","v":82166.399999999994},{"$f":"(((AAMC_Raw_Data_for_FY22[[#This Row],[Median]]-AAMC_Raw_Data_for_FY22[[#This Row],[25th]])/25)*10) + AAMC_Raw_Data_for_FY22[[#This Row],[25th]]","v":84278.8},{"$f":"(((AAMC_Raw_Data_for_FY22[[#This Row],[Median]]-AAMC_Raw_Data_for_FY22[[#This Row],[25th]])/25)*15) + AAMC_Raw_Data_for_FY22[[#This Row],[25th]]","v":86391.2},{"$f":"(((AAMC_Raw_Data_for_FY22[[#This Row],[Median]]-AAMC_Raw_Data_for_FY22[[#This Row],[25th]])/25)*20) + AAMC_Raw_Data_for_FY22[[#This Row],[25th]]","v":88503.6},90616,{"$f":"(((AAMC_Raw_Data_for_FY22[[#This Row],[75th]]-AAMC_Raw_Data_for_FY22[[#This Row],[Median]])/25)*5) + AAMC_Raw_Data_for_FY22[[#This Row],[Median]]","v":94188.2},{"$f":"(((AAMC_Raw_Data_for_FY22[[#This Row],[75th]]-AAMC_Raw_Data_for_FY22[[#This Row],[Median]])/25)*10) + AAMC_Raw_Data_for_FY22[[#This Row],[Median]]","v":97760.4},{"$f":"(((AAMC_Raw_Data_for_FY22[[#This Row],[75th]]-AAMC_Raw_Data_for_FY22[[#This Row],[Median]])/25)*15) + AAMC_Raw_Data_for_FY22[[#This Row],[Median]]","v":101332.6},{"$f":"(((AAMC_Raw_Data_for_FY22[[#This Row],[75th]]-AAMC_Raw_Data_for_FY22[[#This Row],[Median]])/25)*20) + AAMC_Raw_Data_for_FY22[[#This Row],[Median]]","v":104904.8},108477,{"$f":"(((AAMC_Raw_Data_for_FY22[[#This Row],[75th]]-AAMC_Raw_Data_for_FY22[[#This Row],[Median]])/25)*30) + AAMC_Raw_Data_for_FY22[[#This Row],[Median]]","v":112049.2},{"$f":"(((AAMC_Raw_Data_for_FY22[[#This Row],[75th]]-AAMC_Raw_Data_for_FY22[[#This Row],[Median]])/25)*35) + AAMC_Raw_Data_for_FY22[[#This Row],[Median]]","v":115621.4},{"$f":"(((AAMC_Raw_Data_for_FY22[[#This Row],[75th]]-AAMC_Raw_Data_for_FY22[[#This Row],[Median]])/25)*40) + AAMC_Raw_Data_for_FY22[[#This Row],[Median]]","v":119193.60000000001}]
[{"$f":"AAMC_Raw_Data_for_FY22[[#This Row],[Source]]&AAMC_Raw_Data_for_FY22[[#This Row],[Type]]&AAMC_Raw_Data_for_FY22[[#This Row],[School Subset]]&AAMC_Raw_Data_for_FY22[[#This Row],[Rank]]&AAMC_Raw_Data_for_FY22[[#This Row],[Degree]]&AAMC_Raw_Data_for_FY22[[#This Row],[Department / Specialty]]&\"L\"","v":"AAMCAcademicAllAssistantPhDOther MedicineL"},"Other Medicine",4,"AAMC","Academic","All","Assistant","PhD","2021-2022",98893,{"$f":"(((AAMC_Raw_Data_for_FY22[[#This Row],[Median]]-AAMC_Raw_Data_for_FY22[[#This Row],[25th]])/25)*5) + AAMC_Raw_Data_for_FY22[[#This Row],[25th]]","v":102371.8},{"$f":"(((AAMC_Raw_Data_for_FY22[[#This Row],[Median]]-AAMC_Raw_Data_for_FY22[[#This Row],[25th]])/25)*10) + AAMC_Raw_Data_for_FY22[[#This Row],[25th]]","v":105850.6},{"$f":"(((AAMC_Raw_Data_for_FY22[[#This Row],[Median]]-AAMC_Raw_Data_for_FY22[[#This Row],[25th]])/25)*15) + AAMC_Raw_Data_for_FY22[[#This Row],[25th]]","v":109329.4},{"$f":"(((AAMC_Raw_Data_for_FY22[[#This Row],[Median]]-AAMC_Raw_Data_for_FY22[[#This Row],[25th]])/25)*20) + AAMC_Raw_Data_for_FY22[[#This Row],[25th]]","v":112808.2},116287,{"$f":"(((AAMC_Raw_Data_for_FY22[[#This Row],[75th]]-AAMC_Raw_Data_for_FY22[[#This Row],[Median]])/25)*5) + AAMC_Raw_Data_for_FY22[[#This Row],[Median]]","v":120430.39999999999},{"$f":"(((AAMC_Raw_Data_for_FY22[[#This Row],[75th]]-AAMC_Raw_Data_for_FY22[[#This Row],[Median]])/25)*10) + AAMC_Raw_Data_for_FY22[[#This Row],[Median]]","v":124573.8},{"$f":"(((AAMC_Raw_Data_for_FY22[[#This Row],[75th]]-AAMC_Raw_Data_for_FY22[[#This Row],[Median]])/25)*15) + AAMC_Raw_Data_for_FY22[[#This Row],[Median]]","v":128717.2},{"$f":"(((AAMC_Raw_Data_for_FY22[[#This Row],[75th]]-AAMC_Raw_Data_for_FY22[[#This Row],[Median]])/25)*20) + AAMC_Raw_Data_for_FY22[[#This Row],[Median]]","v":132860.6},137004,{"$f":"(((AAMC_Raw_Data_for_FY22[[#This Row],[75th]]-AAMC_Raw_Data_for_FY22[[#This Row],[Median]])/25)*30) + AAMC_Raw_Data_for_FY22[[#This Row],[Median]]","v":141147.4},{"$f":"(((AAMC_Raw_Data_for_FY22[[#This Row],[75th]]-AAMC_Raw_Data_for_FY22[[#This Row],[Median]])/25)*35) + AAMC_Raw_Data_for_FY22[[#This Row],[Median]]","v":145290.79999999999},{"$f":"(((AAMC_Raw_Data_for_FY22[[#This Row],[75th]]-AAMC_Raw_Data_for_FY22[[#This Row],[Median]])/25)*40) + AAMC_Raw_Data_for_FY22[[#This Row],[Median]]","v":149434.20000000001}]
[{"$f":"AAMC_Raw_Data_for_FY22[[#This Row],[Source]]&AAMC_Raw_Data_for_FY22[[#This Row],[Type]]&AAMC_Raw_Data_for_FY22[[#This Row],[School Subset]]&AAMC_Raw_Data_for_FY22[[#This Row],[Rank]]&AAMC_Raw_Data_for_FY22[[#This Row],[Degree]]&AAMC_Raw_Data_for_FY22[[#This Row],[Department / Specialty]]&\"L\"","v":"AAMCAcademicAllAssociatePhDOther MedicineL"},"Other Medicine",3,"AAMC","Academic","All","Associate","PhD","2021-2022",125783,{"$f":"(((AAMC_Raw_Data_for_FY22[[#This Row],[Median]]-AAMC_Raw_Data_for_FY22[[#This Row],[25th]])/25)*5) + AAMC_Raw_Data_for_FY22[[#This Row],[25th]]","v":130627.8},{"$f":"(((AAMC_Raw_Data_for_FY22[[#This Row],[Median]]-AAMC_Raw_Data_for_FY22[[#This Row],[25th]])/25)*10) + AAMC_Raw_Data_for_FY22[[#This Row],[25th]]","v":135472.6},{"$f":"(((AAMC_Raw_Data_for_FY22[[#This Row],[Median]]-AAMC_Raw_Data_for_FY22[[#This Row],[25th]])/25)*15) + AAMC_Raw_Data_for_FY22[[#This Row],[25th]]","v":140317.4},{"$f":"(((AAMC_Raw_Data_for_FY22[[#This Row],[Median]]-AAMC_Raw_Data_for_FY22[[#This Row],[25th]])/25)*20) + AAMC_Raw_Data_for_FY22[[#This Row],[25th]]","v":145162.20000000001},150007,{"$f":"(((AAMC_Raw_Data_for_FY22[[#This Row],[75th]]-AAMC_Raw_Data_for_FY22[[#This Row],[Median]])/25)*5) + AAMC_Raw_Data_for_FY22[[#This Row],[Median]]","v":156298},{"$f":"(((AAMC_Raw_Data_for_FY22[[#This Row],[75th]]-AAMC_Raw_Data_for_FY22[[#This Row],[Median]])/25)*10) + AAMC_Raw_Data_for_FY22[[#This Row],[Median]]","v":162589},{"$f":"(((AAMC_Raw_Data_for_FY22[[#This Row],[75th]]-AAMC_Raw_Data_for_FY22[[#This Row],[Median]])/25)*15) + AAMC_Raw_Data_for_FY22[[#This Row],[Median]]","v":168880},{"$f":"(((AAMC_Raw_Data_for_FY22[[#This Row],[75th]]-AAMC_Raw_Data_for_FY22[[#This Row],[Median]])/25)*20) + AAMC_Raw_Data_for_FY22[[#This Row],[Median]]","v":175171},181462,{"$f":"(((AAMC_Raw_Data_for_FY22[[#This Row],[75th]]-AAMC_Raw_Data_for_FY22[[#This Row],[Median]])/25)*30) + AAMC_Raw_Data_for_FY22[[#This Row],[Median]]","v":187753},{"$f":"(((AAMC_Raw_Data_for_FY22[[#This Row],[75th]]-AAMC_Raw_Data_for_FY22[[#This Row],[Median]])/25)*35) + AAMC_Raw_Data_for_FY22[[#This Row],[Median]]","v":194044},{"$f":"(((AAMC_Raw_Data_for_FY22[[#This Row],[75th]]-AAMC_Raw_Data_for_FY22[[#This Row],[Median]])/25)*40) + AAMC_Raw_Data_for_FY22[[#This Row],[Median]]","v":200335}]
[{"$f":"AAMC_Raw_Data_for_FY22[[#This Row],[Source]]&AAMC_Raw_Data_for_FY22[[#This Row],[Type]]&AAMC_Raw_Data_for_FY22[[#This Row],[School Subset]]&AAMC_Raw_Data_for_FY22[[#This Row],[Rank]]&AAMC_Raw_Data_for_FY22[[#This Row],[Degree]]&AAMC_Raw_Data_for_FY22[[#This Row],[Department / Specialty]]&\"L\"","v":"AAMCAcademicAllProfessorPhDOther MedicineL"},"Other Medicine",2,"AAMC","Academic","All","Professor","PhD","2021-2022",186168,{"$f":"(((AAMC_Raw_Data_for_FY22[[#This Row],[Median]]-AAMC_Raw_Data_for_FY22[[#This Row],[25th]])/25)*5) + AAMC_Raw_Data_for_FY22[[#This Row],[25th]]","v":190723.6},{"$f":"(((AAMC_Raw_Data_for_FY22[[#This Row],[Median]]-AAMC_Raw_Data_for_FY22[[#This Row],[25th]])/25)*10) + AAMC_Raw_Data_for_FY22[[#This Row],[25th]]","v":195279.2},{"$f":"(((AAMC_Raw_Data_for_FY22[[#This Row],[Median]]-AAMC_Raw_Data_for_FY22[[#This Row],[25th]])/25)*15) + AAMC_Raw_Data_for_FY22[[#This Row],[25th]]","v":199834.8},{"$f":"(((AAMC_Raw_Data_for_FY22[[#This Row],[Median]]-AAMC_Raw_Data_for_FY22[[#This Row],[25th]])/25)*20) + AAMC_Raw_Data_for_FY22[[#This Row],[25th]]","v":204390.39999999999},208946,{"$f":"(((AAMC_Raw_Data_for_FY22[[#This Row],[75th]]-AAMC_Raw_Data_for_FY22[[#This Row],[Median]])/25)*5) + AAMC_Raw_Data_for_FY22[[#This Row],[Median]]","v":222480.4},{"$f":"(((AAMC_Raw_Data_for_FY22[[#This Row],[75th]]-AAMC_Raw_Data_for_FY22[[#This Row],[Median]])/25)*10) + AAMC_Raw_Data_for_FY22[[#This Row],[Median]]","v":236014.8},{"$f":"(((AAMC_Raw_Data_for_FY22[[#This Row],[75th]]-AAMC_Raw_Data_for_FY22[[#This Row],[Median]])/25)*15) + AAMC_Raw_Data_for_FY22[[#This Row],[Median]]","v":249549.2},{"$f":"(((AAMC_Raw_Data_for_FY22[[#This Row],[75th]]-AAMC_Raw_Data_for_FY22[[#This Row],[Median]])/25)*20) + AAMC_Raw_Data_for_FY22[[#This Row],[Median]]","v":263083.59999999998},276618,{"$f":"(((AAMC_Raw_Data_for_FY22[[#This Row],[75th]]-AAMC_Raw_Data_for_FY22[[#This Row],[Median]])/25)*30) + AAMC_Raw_Data_for_FY22[[#This Row],[Median]]","v":290152.40000000002},{"$f":"(((AAMC_Raw_Data_for_FY22[[#This Row],[75th]]-AAMC_Raw_Data_for_FY22[[#This Row],[Median]])/25)*35) + AAMC_Raw_Data_for_FY22[[#This Row],[Median]]","v":303686.8},{"$f":"(((AAMC_Raw_Data_for_FY22[[#This Row],[75th]]-AAMC_Raw_Data_for_FY22[[#This Row],[Median]])/25)*40) + AAMC_Raw_Data_for_FY22[[#This Row],[Median]]","v":317221.2}]
[{"$f":"AAMC_Raw_Data_for_FY22[[#This Row],[Source]]&AAMC_Raw_Data_for_FY22[[#This Row],[Type]]&AAMC_Raw_Data_for_FY22[[#This Row],[School Subset]]&AAMC_Raw_Data_for_FY22[[#This Row],[Rank]]&AAMC_Raw_Data_for_FY22[[#This Row],[Degree]]&AAMC_Raw_Data_for_FY22[[#This Row],[Department / Specialty]]&\"L\"","v":"AAMCAcademicAllChiefPhDOther MedicineL"},"Other Medicine",6,"AAMC","Academic","All","Chief","PhD","2021-2022",276509,{"$f":"(((AAMC_Raw_Data_for_FY22[[#This Row],[Median]]-AAMC_Raw_Data_for_FY22[[#This Row],[25th]])/25)*5) + AAMC_Raw_Data_for_FY22[[#This Row],[25th]]","v":282017.59999999998},{"$f":"(((AAMC_Raw_Data_for_FY22[[#This Row],[Median]]-AAMC_Raw_Data_for_FY22[[#This Row],[25th]])/25)*10) + AAMC_Raw_Data_for_FY22[[#This Row],[25th]]","v":287526.2},{"$f":"(((AAMC_Raw_Data_for_FY22[[#This Row],[Median]]-AAMC_Raw_Data_for_FY22[[#This Row],[25th]])/25)*15) + AAMC_Raw_Data_for_FY22[[#This Row],[25th]]","v":293034.8},{"$f":"(((AAMC_Raw_Data_for_FY22[[#This Row],[Median]]-AAMC_Raw_Data_for_FY22[[#This Row],[25th]])/25)*20) + AAMC_Raw_Data_for_FY22[[#This Row],[25th]]","v":298543.40000000002},304052,{"$f":"(((AAMC_Raw_Data_for_FY22[[#This Row],[75th]]-AAMC_Raw_Data_for_FY22[[#This Row],[Median]])/25)*5) + AAMC_Raw_Data_for_FY22[[#This Row],[Median]]","v":311639.2},{"$f":"(((AAMC_Raw_Data_for_FY22[[#This Row],[75th]]-AAMC_Raw_Data_for_FY22[[#This Row],[Median]])/25)*10) + AAMC_Raw_Data_for_FY22[[#This Row],[Median]]","v":319226.40000000002},{"$f":"(((AAMC_Raw_Data_for_FY22[[#This Row],[75th]]-AAMC_Raw_Data_for_FY22[[#This Row],[Median]])/25)*15) + AAMC_Raw_Data_for_FY22[[#This Row],[Median]]","v":326813.59999999998},{"$f":"(((AAMC_Raw_Data_for_FY22[[#This Row],[75th]]-AAMC_Raw_Data_for_FY22[[#This Row],[Median]])/25)*20) + AAMC_Raw_Data_for_FY22[[#This Row],[Median]]","v":334400.8},341988,{"$f":"(((AAMC_Raw_Data_for_FY22[[#This Row],[75th]]-AAMC_Raw_Data_for_FY22[[#This Row],[Median]])/25)*30) + AAMC_Raw_Data_for_FY22[[#This Row],[Median]]","v":349575.2},{"$f":"(((AAMC_Raw_Data_for_FY22[[#This Row],[75th]]-AAMC_Raw_Data_for_FY22[[#This Row],[Median]])/25)*35) + AAMC_Raw_Data_for_FY22[[#This Row],[Median]]","v":357162.4},{"$f":"(((AAMC_Raw_Data_for_FY22[[#This Row],[75th]]-AAMC_Raw_Data_for_FY22[[#This Row],[Median]])/25)*40) + AAMC_Raw_Data_for_FY22[[#This Row],[Median]]","v":364749.6}]
[{"$f":"AAMC_Raw_Data_for_FY22[[#This Row],[Source]]&AAMC_Raw_Data_for_FY22[[#This Row],[Type]]&AAMC_Raw_Data_for_FY22[[#This Row],[School Subset]]&AAMC_Raw_Data_for_FY22[[#This Row],[Rank]]&AAMC_Raw_Data_for_FY22[[#This Row],[Degree]]&AAMC_Raw_Data_for_FY22[[#This Row],[Department / Specialty]]&\"L\"","v":"AAMCAcademicAllChairPhDOther MedicineL"},"Other Medicine",1,"AAMC","Academic","All","Chair","PhD","2021-2022",null,{"$f":"(((AAMC_Raw_Data_for_FY22[[#This Row],[Median]]-AAMC_Raw_Data_for_FY22[[#This Row],[25th]])/25)*5) + AAMC_Raw_Data_for_FY22[[#This Row],[25th]]","v":0},{"$f":"(((AAMC_Raw_Data_for_FY22[[#This Row],[Median]]-AAMC_Raw_Data_for_FY22[[#This Row],[25th]])/25)*10) + AAMC_Raw_Data_for_FY22[[#This Row],[25th]]","v":0},{"$f":"(((AAMC_Raw_Data_for_FY22[[#This Row],[Median]]-AAMC_Raw_Data_for_FY22[[#This Row],[25th]])/25)*15) + AAMC_Raw_Data_for_FY22[[#This Row],[25th]]","v":0},{"$f":"(((AAMC_Raw_Data_for_FY22[[#This Row],[Median]]-AAMC_Raw_Data_for_FY22[[#This Row],[25th]])/25)*20) + AAMC_Raw_Data_for_FY22[[#This Row],[25th]]","v":0},null,{"$f":"(((AAMC_Raw_Data_for_FY22[[#This Row],[75th]]-AAMC_Raw_Data_for_FY22[[#This Row],[Median]])/25)*5) + AAMC_Raw_Data_for_FY22[[#This Row],[Median]]","v":0},{"$f":"(((AAMC_Raw_Data_for_FY22[[#This Row],[75th]]-AAMC_Raw_Data_for_FY22[[#This Row],[Median]])/25)*10) + AAMC_Raw_Data_for_FY22[[#This Row],[Median]]","v":0},{"$f":"(((AAMC_Raw_Data_for_FY22[[#This Row],[75th]]-AAMC_Raw_Data_for_FY22[[#This Row],[Median]])/25)*15) + AAMC_Raw_Data_for_FY22[[#This Row],[Median]]","v":0},{"$f":"(((AAMC_Raw_Data_for_FY22[[#This Row],[75th]]-AAMC_Raw_Data_for_FY22[[#This Row],[Median]])/25)*20) + AAMC_Raw_Data_for_FY22[[#This Row],[Median]]","v":0},null,{"$f":"(((AAMC_Raw_Data_for_FY22[[#This Row],[75th]]-AAMC_Raw_Data_for_FY22[[#This Row],[Median]])/25)*30) + AAMC_Raw_Data_for_FY22[[#This Row],[Median]]","v":0},{"$f":"(((AAMC_Raw_Data_for_FY22[[#This Row],[75th]]-AAMC_Raw_Data_for_FY22[[#This Row],[Median]])/25)*35) + AAMC_Raw_Data_for_FY22[[#This Row],[Median]]","v":0},{"$f":"(((AAMC_Raw_Data_for_FY22[[#This Row],[75th]]-AAMC_Raw_Data_for_FY22[[#This Row],[Median]])/25)*40) + AAMC_Raw_Data_for_FY22[[#This Row],[Median]]","v":0}]
[{"$f":"AAMC_Raw_Data_for_FY22[[#This Row],[Source]]&AAMC_Raw_Data_for_FY22[[#This Row],[Type]]&AAMC_Raw_Data_for_FY22[[#This Row],[School Subset]]&AAMC_Raw_Data_for_FY22[[#This Row],[Rank]]&AAMC_Raw_Data_for_FY22[[#This Row],[Degree]]&AAMC_Raw_Data_for_FY22[[#This Row],[Department / Specialty]]&\"L\"","v":"AAMCAcademicAllInstructorPhDOB/GYN TotalL"},"OB/GYN Total",5,"AAMC","Academic","All","Instructor","PhD","2021-2022",66625,{"$f":"(((AAMC_Raw_Data_for_FY22[[#This Row],[Median]]-AAMC_Raw_Data_for_FY22[[#This Row],[25th]])/25)*5) + AAMC_Raw_Data_for_FY22[[#This Row],[25th]]","v":67782.8},{"$f":"(((AAMC_Raw_Data_for_FY22[[#This Row],[Median]]-AAMC_Raw_Data_for_FY22[[#This Row],[25th]])/25)*10) + AAMC_Raw_Data_for_FY22[[#This Row],[25th]]","v":68940.600000000006},{"$f":"(((AAMC_Raw_Data_for_FY22[[#This Row],[Median]]-AAMC_Raw_Data_for_FY22[[#This Row],[25th]])/25)*15) + AAMC_Raw_Data_for_FY22[[#This Row],[25th]]","v":70098.399999999994},{"$f":"(((AAMC_Raw_Data_for_FY22[[#This Row],[Median]]-AAMC_Raw_Data_for_FY22[[#This Row],[25th]])/25)*20) + AAMC_Raw_Data_for_FY22[[#This Row],[25th]]","v":71256.2},72414,{"$f":"(((AAMC_Raw_Data_for_FY22[[#This Row],[75th]]-AAMC_Raw_Data_for_FY22[[#This Row],[Median]])/25)*5) + AAMC_Raw_Data_for_FY22[[#This Row],[Median]]","v":78297.600000000006},{"$f":"(((AAMC_Raw_Data_for_FY22[[#This Row],[75th]]-AAMC_Raw_Data_for_FY22[[#This Row],[Median]])/25)*10) + AAMC_Raw_Data_for_FY22[[#This Row],[Median]]","v":84181.2},{"$f":"(((AAMC_Raw_Data_for_FY22[[#This Row],[75th]]-AAMC_Raw_Data_for_FY22[[#This Row],[Median]])/25)*15) + AAMC_Raw_Data_for_FY22[[#This Row],[Median]]","v":90064.8},{"$f":"(((AAMC_Raw_Data_for_FY22[[#This Row],[75th]]-AAMC_Raw_Data_for_FY22[[#This Row],[Median]])/25)*20) + AAMC_Raw_Data_for_FY22[[#This Row],[Median]]","v":95948.4},101832,{"$f":"(((AAMC_Raw_Data_for_FY22[[#This Row],[75th]]-AAMC_Raw_Data_for_FY22[[#This Row],[Median]])/25)*30) + AAMC_Raw_Data_for_FY22[[#This Row],[Median]]","v":107715.6},{"$f":"(((AAMC_Raw_Data_for_FY22[[#This Row],[75th]]-AAMC_Raw_Data_for_FY22[[#This Row],[Median]])/25)*35) + AAMC_Raw_Data_for_FY22[[#This Row],[Median]]","v":113599.20000000001},{"$f":"(((AAMC_Raw_Data_for_FY22[[#This Row],[75th]]-AAMC_Raw_Data_for_FY22[[#This Row],[Median]])/25)*40) + AAMC_Raw_Data_for_FY22[[#This Row],[Median]]","v":119482.8}]
[{"$f":"AAMC_Raw_Data_for_FY22[[#This Row],[Source]]&AAMC_Raw_Data_for_FY22[[#This Row],[Type]]&AAMC_Raw_Data_for_FY22[[#This Row],[School Subset]]&AAMC_Raw_Data_for_FY22[[#This Row],[Rank]]&AAMC_Raw_Data_for_FY22[[#This Row],[Degree]]&AAMC_Raw_Data_for_FY22[[#This Row],[Department / Specialty]]&\"L\"","v":"AAMCAcademicAllAssistantPhDOB/GYN TotalL"},"OB/GYN Total",4,"AAMC","Academic","All","Assistant","PhD","2021-2022",87780,{"$f":"(((AAMC_Raw_Data_for_FY22[[#This Row],[Median]]-AAMC_Raw_Data_for_FY22[[#This Row],[25th]])/25)*5) + AAMC_Raw_Data_for_FY22[[#This Row],[25th]]","v":92514.8},{"$f":"(((AAMC_Raw_Data_for_FY22[[#This Row],[Median]]-AAMC_Raw_Data_for_FY22[[#This Row],[25th]])/25)*10) + AAMC_Raw_Data_for_FY22[[#This Row],[25th]]","v":97249.600000000006},{"$f":"(((AAMC_Raw_Data_for_FY22[[#This Row],[Median]]-AAMC_Raw_Data_for_FY22[[#This Row],[25th]])/25)*15) + AAMC_Raw_Data_for_FY22[[#This Row],[25th]]","v":101984.4},{"$f":"(((AAMC_Raw_Data_for_FY22[[#This Row],[Median]]-AAMC_Raw_Data_for_FY22[[#This Row],[25th]])/25)*20) + AAMC_Raw_Data_for_FY22[[#This Row],[25th]]","v":106719.2},111454,{"$f":"(((AAMC_Raw_Data_for_FY22[[#This Row],[75th]]-AAMC_Raw_Data_for_FY22[[#This Row],[Median]])/25)*5) + AAMC_Raw_Data_for_FY22[[#This Row],[Median]]","v":115640.8},{"$f":"(((AAMC_Raw_Data_for_FY22[[#This Row],[75th]]-AAMC_Raw_Data_for_FY22[[#This Row],[Median]])/25)*10) + AAMC_Raw_Data_for_FY22[[#This Row],[Median]]","v":119827.6},{"$f":"(((AAMC_Raw_Data_for_FY22[[#This Row],[75th]]-AAMC_Raw_Data_for_FY22[[#This Row],[Median]])/25)*15) + AAMC_Raw_Data_for_FY22[[#This Row],[Median]]","v":124014.39999999999},{"$f":"(((AAMC_Raw_Data_for_FY22[[#This Row],[75th]]-AAMC_Raw_Data_for_FY22[[#This Row],[Median]])/25)*20) + AAMC_Raw_Data_for_FY22[[#This Row],[Median]]","v":128201.2},132388,{"$f":"(((AAMC_Raw_Data_for_FY22[[#This Row],[75th]]-AAMC_Raw_Data_for_FY22[[#This Row],[Median]])/25)*30) + AAMC_Raw_Data_for_FY22[[#This Row],[Median]]","v":136574.79999999999},{"$f":"(((AAMC_Raw_Data_for_FY22[[#This Row],[75th]]-AAMC_Raw_Data_for_FY22[[#This Row],[Median]])/25)*35) + AAMC_Raw_Data_for_FY22[[#This Row],[Median]]","v":140761.60000000001},{"$f":"(((AAMC_Raw_Data_for_FY22[[#This Row],[75th]]-AAMC_Raw_Data_for_FY22[[#This Row],[Median]])/25)*40) + AAMC_Raw_Data_for_FY22[[#This Row],[Median]]","v":144948.4}]
[{"$f":"AAMC_Raw_Data_for_FY22[[#This Row],[Source]]&AAMC_Raw_Data_for_FY22[[#This Row],[Type]]&AAMC_Raw_Data_for_FY22[[#This Row],[School Subset]]&AAMC_Raw_Data_for_FY22[[#This Row],[Rank]]&AAMC_Raw_Data_for_FY22[[#This Row],[Degree]]&AAMC_Raw_Data_for_FY22[[#This Row],[Department / Specialty]]&\"L\"","v":"AAMCAcademicAllAssociatePhDOB/GYN TotalL"},"OB/GYN Total",3,"AAMC","Academic","All","Associate","PhD","2021-2022",131401,{"$f":"(((AAMC_Raw_Data_for_FY22[[#This Row],[Median]]-AAMC_Raw_Data_for_FY22[[#This Row],[25th]])/25)*5) + AAMC_Raw_Data_for_FY22[[#This Row],[25th]]","v":135063.4},{"$f":"(((AAMC_Raw_Data_for_FY22[[#This Row],[Median]]-AAMC_Raw_Data_for_FY22[[#This Row],[25th]])/25)*10) + AAMC_Raw_Data_for_FY22[[#This Row],[25th]]","v":138725.79999999999},{"$f":"(((AAMC_Raw_Data_for_FY22[[#This Row],[Median]]-AAMC_Raw_Data_for_FY22[[#This Row],[25th]])/25)*15) + AAMC_Raw_Data_for_FY22[[#This Row],[25th]]","v":142388.20000000001},{"$f":"(((AAMC_Raw_Data_for_FY22[[#This Row],[Median]]-AAMC_Raw_Data_for_FY22[[#This Row],[25th]])/25)*20) + AAMC_Raw_Data_for_FY22[[#This Row],[25th]]","v":146050.6},149713,{"$f":"(((AAMC_Raw_Data_for_FY22[[#This Row],[75th]]-AAMC_Raw_Data_for_FY22[[#This Row],[Median]])/25)*5) + AAMC_Raw_Data_for_FY22[[#This Row],[Median]]","v":154397},{"$f":"(((AAMC_Raw_Data_for_FY22[[#This Row],[75th]]-AAMC_Raw_Data_for_FY22[[#This Row],[Median]])/25)*10) + AAMC_Raw_Data_for_FY22[[#This Row],[Median]]","v":159081},{"$f":"(((AAMC_Raw_Data_for_FY22[[#This Row],[75th]]-AAMC_Raw_Data_for_FY22[[#This Row],[Median]])/25)*15) + AAMC_Raw_Data_for_FY22[[#This Row],[Median]]","v":163765},{"$f":"(((AAMC_Raw_Data_for_FY22[[#This Row],[75th]]-AAMC_Raw_Data_for_FY22[[#This Row],[Median]])/25)*20) + AAMC_Raw_Data_for_FY22[[#This Row],[Median]]","v":168449},173133,{"$f":"(((AAMC_Raw_Data_for_FY22[[#This Row],[75th]]-AAMC_Raw_Data_for_FY22[[#This Row],[Median]])/25)*30) + AAMC_Raw_Data_for_FY22[[#This Row],[Median]]","v":177817},{"$f":"(((AAMC_Raw_Data_for_FY22[[#This Row],[75th]]-AAMC_Raw_Data_for_FY22[[#This Row],[Median]])/25)*35) + AAMC_Raw_Data_for_FY22[[#This Row],[Median]]","v":182501},{"$f":"(((AAMC_Raw_Data_for_FY22[[#This Row],[75th]]-AAMC_Raw_Data_for_FY22[[#This Row],[Median]])/25)*40) + AAMC_Raw_Data_for_FY22[[#This Row],[Median]]","v":187185}]
[{"$f":"AAMC_Raw_Data_for_FY22[[#This Row],[Source]]&AAMC_Raw_Data_for_FY22[[#This Row],[Type]]&AAMC_Raw_Data_for_FY22[[#This Row],[School Subset]]&AAMC_Raw_Data_for_FY22[[#This Row],[Rank]]&AAMC_Raw_Data_for_FY22[[#This Row],[Degree]]&AAMC_Raw_Data_for_FY22[[#This Row],[Department / Specialty]]&\"L\"","v":"AAMCAcademicAllProfessorPhDOB/GYN TotalL"},"OB/GYN Total",2,"AAMC","Academic","All","Professor","PhD","2021-2022",176881,{"$f":"(((AAMC_Raw_Data_for_FY22[[#This Row],[Median]]-AAMC_Raw_Data_for_FY22[[#This Row],[25th]])/25)*5) + AAMC_Raw_Data_for_FY22[[#This Row],[25th]]","v":183498.6},{"$f":"(((AAMC_Raw_Data_for_FY22[[#This Row],[Median]]-AAMC_Raw_Data_for_FY22[[#This Row],[25th]])/25)*10) + AAMC_Raw_Data_for_FY22[[#This Row],[25th]]","v":190116.2},{"$f":"(((AAMC_Raw_Data_for_FY22[[#This Row],[Median]]-AAMC_Raw_Data_for_FY22[[#This Row],[25th]])/25)*15) + AAMC_Raw_Data_for_FY22[[#This Row],[25th]]","v":196733.8},{"$f":"(((AAMC_Raw_Data_for_FY22[[#This Row],[Median]]-AAMC_Raw_Data_for_FY22[[#This Row],[25th]])/25)*20) + AAMC_Raw_Data_for_FY22[[#This Row],[25th]]","v":203351.4},209969,{"$f":"(((AAMC_Raw_Data_for_FY22[[#This Row],[75th]]-AAMC_Raw_Data_for_FY22[[#This Row],[Median]])/25)*5) + AAMC_Raw_Data_for_FY22[[#This Row],[Median]]","v":221675.6},{"$f":"(((AAMC_Raw_Data_for_FY22[[#This Row],[75th]]-AAMC_Raw_Data_for_FY22[[#This Row],[Median]])/25)*10) + AAMC_Raw_Data_for_FY22[[#This Row],[Median]]","v":233382.2},{"$f":"(((AAMC_Raw_Data_for_FY22[[#This Row],[75th]]-AAMC_Raw_Data_for_FY22[[#This Row],[Median]])/25)*15) + AAMC_Raw_Data_for_FY22[[#This Row],[Median]]","v":245088.8},{"$f":"(((AAMC_Raw_Data_for_FY22[[#This Row],[75th]]-AAMC_Raw_Data_for_FY22[[#This Row],[Median]])/25)*20) + AAMC_Raw_Data_for_FY22[[#This Row],[Median]]","v":256795.4},268502,{"$f":"(((AAMC_Raw_Data_for_FY22[[#This Row],[75th]]-AAMC_Raw_Data_for_FY22[[#This Row],[Median]])/25)*30) + AAMC_Raw_Data_for_FY22[[#This Row],[Median]]","v":280208.59999999998},{"$f":"(((AAMC_Raw_Data_for_FY22[[#This Row],[75th]]-AAMC_Raw_Data_for_FY22[[#This Row],[Median]])/25)*35) + AAMC_Raw_Data_for_FY22[[#This Row],[Median]]","v":291915.2},{"$f":"(((AAMC_Raw_Data_for_FY22[[#This Row],[75th]]-AAMC_Raw_Data_for_FY22[[#This Row],[Median]])/25)*40) + AAMC_Raw_Data_for_FY22[[#This Row],[Median]]","v":303621.8}]
[{"$f":"AAMC_Raw_Data_for_FY22[[#This Row],[Source]]&AAMC_Raw_Data_for_FY22[[#This Row],[Type]]&AAMC_Raw_Data_for_FY22[[#This Row],[School Subset]]&AAMC_Raw_Data_for_FY22[[#This Row],[Rank]]&AAMC_Raw_Data_for_FY22[[#This Row],[Degree]]&AAMC_Raw_Data_for_FY22[[#This Row],[Department / Specialty]]&\"L\"","v":"AAMCAcademicAllChiefPhDOB/GYN TotalL"},"OB/GYN Total",6,"AAMC","Academic","All","Chief","PhD","2021-2022",170876,{"$f":"(((AAMC_Raw_Data_for_FY22[[#This Row],[Median]]-AAMC_Raw_Data_for_FY22[[#This Row],[25th]])/25)*5) + AAMC_Raw_Data_for_FY22[[#This Row],[25th]]","v":179491},{"$f":"(((AAMC_Raw_Data_for_FY22[[#This Row],[Median]]-AAMC_Raw_Data_for_FY22[[#This Row],[25th]])/25)*10) + AAMC_Raw_Data_for_FY22[[#This Row],[25th]]","v":188106},{"$f":"(((AAMC_Raw_Data_for_FY22[[#This Row],[Median]]-AAMC_Raw_Data_for_FY22[[#This Row],[25th]])/25)*15) + AAMC_Raw_Data_for_FY22[[#This Row],[25th]]","v":196721},{"$f":"(((AAMC_Raw_Data_for_FY22[[#This Row],[Median]]-AAMC_Raw_Data_for_FY22[[#This Row],[25th]])/25)*20) + AAMC_Raw_Data_for_FY22[[#This Row],[25th]]","v":205336},213951,{"$f":"(((AAMC_Raw_Data_for_FY22[[#This Row],[75th]]-AAMC_Raw_Data_for_FY22[[#This Row],[Median]])/25)*5) + AAMC_Raw_Data_for_FY22[[#This Row],[Median]]","v":229615.2},{"$f":"(((AAMC_Raw_Data_for_FY22[[#This Row],[75th]]-AAMC_Raw_Data_for_FY22[[#This Row],[Median]])/25)*10) + AAMC_Raw_Data_for_FY22[[#This Row],[Median]]","v":245279.4},{"$f":"(((AAMC_Raw_Data_for_FY22[[#This Row],[75th]]-AAMC_Raw_Data_for_FY22[[#This Row],[Median]])/25)*15) + AAMC_Raw_Data_for_FY22[[#This Row],[Median]]","v":260943.6},{"$f":"(((AAMC_Raw_Data_for_FY22[[#This Row],[75th]]-AAMC_Raw_Data_for_FY22[[#This Row],[Median]])/25)*20) + AAMC_Raw_Data_for_FY22[[#This Row],[Median]]","v":276607.8},292272,{"$f":"(((AAMC_Raw_Data_for_FY22[[#This Row],[75th]]-AAMC_Raw_Data_for_FY22[[#This Row],[Median]])/25)*30) + AAMC_Raw_Data_for_FY22[[#This Row],[Median]]","v":307936.2},{"$f":"(((AAMC_Raw_Data_for_FY22[[#This Row],[75th]]-AAMC_Raw_Data_for_FY22[[#This Row],[Median]])/25)*35) + AAMC_Raw_Data_for_FY22[[#This Row],[Median]]","v":323600.40000000002},{"$f":"(((AAMC_Raw_Data_for_FY22[[#This Row],[75th]]-AAMC_Raw_Data_for_FY22[[#This Row],[Median]])/25)*40) + AAMC_Raw_Data_for_FY22[[#This Row],[Median]]","v":339264.6}]
[{"$f":"AAMC_Raw_Data_for_FY22[[#This Row],[Source]]&AAMC_Raw_Data_for_FY22[[#This Row],[Type]]&AAMC_Raw_Data_for_FY22[[#This Row],[School Subset]]&AAMC_Raw_Data_for_FY22[[#This Row],[Rank]]&AAMC_Raw_Data_for_FY22[[#This Row],[Degree]]&AAMC_Raw_Data_for_FY22[[#This Row],[Department / Specialty]]&\"L\"","v":"AAMCAcademicAllInstructorPhDOB/GYN: GeneralL"},"OB/GYN: General",5,"AAMC","Academic","All","Instructor","PhD","2021-2022",69470,{"$f":"(((AAMC_Raw_Data_for_FY22[[#This Row],[Median]]-AAMC_Raw_Data_for_FY22[[#This Row],[25th]])/25)*5) + AAMC_Raw_Data_for_FY22[[#This Row],[25th]]","v":70957.8},{"$f":"(((AAMC_Raw_Data_for_FY22[[#This Row],[Median]]-AAMC_Raw_Data_for_FY22[[#This Row],[25th]])/25)*10) + AAMC_Raw_Data_for_FY22[[#This Row],[25th]]","v":72445.600000000006},{"$f":"(((AAMC_Raw_Data_for_FY22[[#This Row],[Median]]-AAMC_Raw_Data_for_FY22[[#This Row],[25th]])/25)*15) + AAMC_Raw_Data_for_FY22[[#This Row],[25th]]","v":73933.399999999994},{"$f":"(((AAMC_Raw_Data_for_FY22[[#This Row],[Median]]-AAMC_Raw_Data_for_FY22[[#This Row],[25th]])/25)*20) + AAMC_Raw_Data_for_FY22[[#This Row],[25th]]","v":75421.2},76909,{"$f":"(((AAMC_Raw_Data_for_FY22[[#This Row],[75th]]-AAMC_Raw_Data_for_FY22[[#This Row],[Median]])/25)*5) + AAMC_Raw_Data_for_FY22[[#This Row],[Median]]","v":85205},{"$f":"(((AAMC_Raw_Data_for_FY22[[#This Row],[75th]]-AAMC_Raw_Data_for_FY22[[#This Row],[Median]])/25)*10) + AAMC_Raw_Data_for_FY22[[#This Row],[Median]]","v":93501},{"$f":"(((AAMC_Raw_Data_for_FY22[[#This Row],[75th]]-AAMC_Raw_Data_for_FY22[[#This Row],[Median]])/25)*15) + AAMC_Raw_Data_for_FY22[[#This Row],[Median]]","v":101797},{"$f":"(((AAMC_Raw_Data_for_FY22[[#This Row],[75th]]-AAMC_Raw_Data_for_FY22[[#This Row],[Median]])/25)*20) + AAMC_Raw_Data_for_FY22[[#This Row],[Median]]","v":110093},118389,{"$f":"(((AAMC_Raw_Data_for_FY22[[#This Row],[75th]]-AAMC_Raw_Data_for_FY22[[#This Row],[Median]])/25)*30) + AAMC_Raw_Data_for_FY22[[#This Row],[Median]]","v":126685},{"$f":"(((AAMC_Raw_Data_for_FY22[[#This Row],[75th]]-AAMC_Raw_Data_for_FY22[[#This Row],[Median]])/25)*35) + AAMC_Raw_Data_for_FY22[[#This Row],[Median]]","v":134981},{"$f":"(((AAMC_Raw_Data_for_FY22[[#This Row],[75th]]-AAMC_Raw_Data_for_FY22[[#This Row],[Median]])/25)*40) + AAMC_Raw_Data_for_FY22[[#This Row],[Median]]","v":143277}]
[{"$f":"AAMC_Raw_Data_for_FY22[[#This Row],[Source]]&AAMC_Raw_Data_for_FY22[[#This Row],[Type]]&AAMC_Raw_Data_for_FY22[[#This Row],[School Subset]]&AAMC_Raw_Data_for_FY22[[#This Row],[Rank]]&AAMC_Raw_Data_for_FY22[[#This Row],[Degree]]&AAMC_Raw_Data_for_FY22[[#This Row],[Department / Specialty]]&\"L\"","v":"AAMCAcademicAllAssistantPhDOB/GYN: GeneralL"},"OB/GYN: General",4,"AAMC","Academic","All","Assistant","PhD","2021-2022",91780,{"$f":"(((AAMC_Raw_Data_for_FY22[[#This Row],[Median]]-AAMC_Raw_Data_for_FY22[[#This Row],[25th]])/25)*5) + AAMC_Raw_Data_for_FY22[[#This Row],[25th]]","v":95864},{"$f":"(((AAMC_Raw_Data_for_FY22[[#This Row],[Median]]-AAMC_Raw_Data_for_FY22[[#This Row],[25th]])/25)*10) + AAMC_Raw_Data_for_FY22[[#This Row],[25th]]","v":99948},{"$f":"(((AAMC_Raw_Data_for_FY22[[#This Row],[Median]]-AAMC_Raw_Data_for_FY22[[#This Row],[25th]])/25)*15) + AAMC_Raw_Data_for_FY22[[#This Row],[25th]]","v":104032},{"$f":"(((AAMC_Raw_Data_for_FY22[[#This Row],[Median]]-AAMC_Raw_Data_for_FY22[[#This Row],[25th]])/25)*20) + AAMC_Raw_Data_for_FY22[[#This Row],[25th]]","v":108116},112200,{"$f":"(((AAMC_Raw_Data_for_FY22[[#This Row],[75th]]-AAMC_Raw_Data_for_FY22[[#This Row],[Median]])/25)*5) + AAMC_Raw_Data_for_FY22[[#This Row],[Median]]","v":116037.6},{"$f":"(((AAMC_Raw_Data_for_FY22[[#This Row],[75th]]-AAMC_Raw_Data_for_FY22[[#This Row],[Median]])/25)*10) + AAMC_Raw_Data_for_FY22[[#This Row],[Median]]","v":119875.2},{"$f":"(((AAMC_Raw_Data_for_FY22[[#This Row],[75th]]-AAMC_Raw_Data_for_FY22[[#This Row],[Median]])/25)*15) + AAMC_Raw_Data_for_FY22[[#This Row],[Median]]","v":123712.8},{"$f":"(((AAMC_Raw_Data_for_FY22[[#This Row],[75th]]-AAMC_Raw_Data_for_FY22[[#This Row],[Median]])/25)*20) + AAMC_Raw_Data_for_FY22[[#This Row],[Median]]","v":127550.39999999999},131388,{"$f":"(((AAMC_Raw_Data_for_FY22[[#This Row],[75th]]-AAMC_Raw_Data_for_FY22[[#This Row],[Median]])/25)*30) + AAMC_Raw_Data_for_FY22[[#This Row],[Median]]","v":135225.60000000001},{"$f":"(((AAMC_Raw_Data_for_FY22[[#This Row],[75th]]-AAMC_Raw_Data_for_FY22[[#This Row],[Median]])/25)*35) + AAMC_Raw_Data_for_FY22[[#This Row],[Median]]","v":139063.20000000001},{"$f":"(((AAMC_Raw_Data_for_FY22[[#This Row],[75th]]-AAMC_Raw_Data_for_FY22[[#This Row],[Median]])/25)*40) + AAMC_Raw_Data_for_FY22[[#This Row],[Median]]","v":142900.79999999999}]
[{"$f":"AAMC_Raw_Data_for_FY22[[#This Row],[Source]]&AAMC_Raw_Data_for_FY22[[#This Row],[Type]]&AAMC_Raw_Data_for_FY22[[#This Row],[School Subset]]&AAMC_Raw_Data_for_FY22[[#This Row],[Rank]]&AAMC_Raw_Data_for_FY22[[#This Row],[Degree]]&AAMC_Raw_Data_for_FY22[[#This Row],[Department / Specialty]]&\"L\"","v":"AAMCAcademicAllAssociatePhDOB/GYN: GeneralL"},"OB/GYN: General",3,"AAMC","Academic","All","Associate","PhD","2021-2022",127748,{"$f":"(((AAMC_Raw_Data_for_FY22[[#This Row],[Median]]-AAMC_Raw_Data_for_FY22[[#This Row],[25th]])/25)*5) + AAMC_Raw_Data_for_FY22[[#This Row],[25th]]","v":129720.2},{"$f":"(((AAMC_Raw_Data_for_FY22[[#This Row],[Median]]-AAMC_Raw_Data_for_FY22[[#This Row],[25th]])/25)*10) + AAMC_Raw_Data_for_FY22[[#This Row],[25th]]","v":131692.4},{"$f":"(((AAMC_Raw_Data_for_FY22[[#This Row],[Median]]-AAMC_Raw_Data_for_FY22[[#This Row],[25th]])/25)*15) + AAMC_Raw_Data_for_FY22[[#This Row],[25th]]","v":133664.6},{"$f":"(((AAMC_Raw_Data_for_FY22[[#This Row],[Median]]-AAMC_Raw_Data_for_FY22[[#This Row],[25th]])/25)*20) + AAMC_Raw_Data_for_FY22[[#This Row],[25th]]","v":135636.79999999999},137609,{"$f":"(((AAMC_Raw_Data_for_FY22[[#This Row],[75th]]-AAMC_Raw_Data_for_FY22[[#This Row],[Median]])/25)*5) + AAMC_Raw_Data_for_FY22[[#This Row],[Median]]","v":141075.4},{"$f":"(((AAMC_Raw_Data_for_FY22[[#This Row],[75th]]-AAMC_Raw_Data_for_FY22[[#This Row],[Median]])/25)*10) + AAMC_Raw_Data_for_FY22[[#This Row],[Median]]","v":144541.79999999999},{"$f":"(((AAMC_Raw_Data_for_FY22[[#This Row],[75th]]-AAMC_Raw_Data_for_FY22[[#This Row],[Median]])/25)*15) + AAMC_Raw_Data_for_FY22[[#This Row],[Median]]","v":148008.20000000001},{"$f":"(((AAMC_Raw_Data_for_FY22[[#This Row],[75th]]-AAMC_Raw_Data_for_FY22[[#This Row],[Median]])/25)*20) + AAMC_Raw_Data_for_FY22[[#This Row],[Median]]","v":151474.6},154941,{"$f":"(((AAMC_Raw_Data_for_FY22[[#This Row],[75th]]-AAMC_Raw_Data_for_FY22[[#This Row],[Median]])/25)*30) + AAMC_Raw_Data_for_FY22[[#This Row],[Median]]","v":158407.4},{"$f":"(((AAMC_Raw_Data_for_FY22[[#This Row],[75th]]-AAMC_Raw_Data_for_FY22[[#This Row],[Median]])/25)*35) + AAMC_Raw_Data_for_FY22[[#This Row],[Median]]","v":161873.79999999999},{"$f":"(((AAMC_Raw_Data_for_FY22[[#This Row],[75th]]-AAMC_Raw_Data_for_FY22[[#This Row],[Median]])/25)*40) + AAMC_Raw_Data_for_FY22[[#This Row],[Median]]","v":165340.20000000001}]
[{"$f":"AAMC_Raw_Data_for_FY22[[#This Row],[Source]]&AAMC_Raw_Data_for_FY22[[#This Row],[Type]]&AAMC_Raw_Data_for_FY22[[#This Row],[School Subset]]&AAMC_Raw_Data_for_FY22[[#This Row],[Rank]]&AAMC_Raw_Data_for_FY22[[#This Row],[Degree]]&AAMC_Raw_Data_for_FY22[[#This Row],[Department / Specialty]]&\"L\"","v":"AAMCAcademicAllProfessorPhDOB/GYN: GeneralL"},"OB/GYN: General",2,"AAMC","Academic","All","Professor","PhD","2021-2022",182620,{"$f":"(((AAMC_Raw_Data_for_FY22[[#This Row],[Median]]-AAMC_Raw_Data_for_FY22[[#This Row],[25th]])/25)*5) + AAMC_Raw_Data_for_FY22[[#This Row],[25th]]","v":186541.6},{"$f":"(((AAMC_Raw_Data_for_FY22[[#This Row],[Median]]-AAMC_Raw_Data_for_FY22[[#This Row],[25th]])/25)*10) + AAMC_Raw_Data_for_FY22[[#This Row],[25th]]","v":190463.2},{"$f":"(((AAMC_Raw_Data_for_FY22[[#This Row],[Median]]-AAMC_Raw_Data_for_FY22[[#This Row],[25th]])/25)*15) + AAMC_Raw_Data_for_FY22[[#This Row],[25th]]","v":194384.8},{"$f":"(((AAMC_Raw_Data_for_FY22[[#This Row],[Median]]-AAMC_Raw_Data_for_FY22[[#This Row],[25th]])/25)*20) + AAMC_Raw_Data_for_FY22[[#This Row],[25th]]","v":198306.4},202228,{"$f":"(((AAMC_Raw_Data_for_FY22[[#This Row],[75th]]-AAMC_Raw_Data_for_FY22[[#This Row],[Median]])/25)*5) + AAMC_Raw_Data_for_FY22[[#This Row],[Median]]","v":209966},{"$f":"(((AAMC_Raw_Data_for_FY22[[#This Row],[75th]]-AAMC_Raw_Data_for_FY22[[#This Row],[Median]])/25)*10) + AAMC_Raw_Data_for_FY22[[#This Row],[Median]]","v":217704},{"$f":"(((AAMC_Raw_Data_for_FY22[[#This Row],[75th]]-AAMC_Raw_Data_for_FY22[[#This Row],[Median]])/25)*15) + AAMC_Raw_Data_for_FY22[[#This Row],[Median]]","v":225442},{"$f":"(((AAMC_Raw_Data_for_FY22[[#This Row],[75th]]-AAMC_Raw_Data_for_FY22[[#This Row],[Median]])/25)*20) + AAMC_Raw_Data_for_FY22[[#This Row],[Median]]","v":233180},240918,{"$f":"(((AAMC_Raw_Data_for_FY22[[#This Row],[75th]]-AAMC_Raw_Data_for_FY22[[#This Row],[Median]])/25)*30) + AAMC_Raw_Data_for_FY22[[#This Row],[Median]]","v":248656},{"$f":"(((AAMC_Raw_Data_for_FY22[[#This Row],[75th]]-AAMC_Raw_Data_for_FY22[[#This Row],[Median]])/25)*35) + AAMC_Raw_Data_for_FY22[[#This Row],[Median]]","v":256394},{"$f":"(((AAMC_Raw_Data_for_FY22[[#This Row],[75th]]-AAMC_Raw_Data_for_FY22[[#This Row],[Median]])/25)*40) + AAMC_Raw_Data_for_FY22[[#This Row],[Median]]","v":264132}]
[{"$f":"AAMC_Raw_Data_for_FY22[[#This Row],[Source]]&AAMC_Raw_Data_for_FY22[[#This Row],[Type]]&AAMC_Raw_Data_for_FY22[[#This Row],[School Subset]]&AAMC_Raw_Data_for_FY22[[#This Row],[Rank]]&AAMC_Raw_Data_for_FY22[[#This Row],[Degree]]&AAMC_Raw_Data_for_FY22[[#This Row],[Department / Specialty]]&\"L\"","v":"AAMCAcademicAllAssistantPhDOB/GYN: Gynecologic OncologyL"},"OB/GYN: Gynecologic Oncology",4,"AAMC","Academic","All","Assistant","PhD","2021-2022",null,{"$f":"(((AAMC_Raw_Data_for_FY22[[#This Row],[Median]]-AAMC_Raw_Data_for_FY22[[#This Row],[25th]])/25)*5) + AAMC_Raw_Data_for_FY22[[#This Row],[25th]]","v":0},{"$f":"(((AAMC_Raw_Data_for_FY22[[#This Row],[Median]]-AAMC_Raw_Data_for_FY22[[#This Row],[25th]])/25)*10) + AAMC_Raw_Data_for_FY22[[#This Row],[25th]]","v":0},{"$f":"(((AAMC_Raw_Data_for_FY22[[#This Row],[Median]]-AAMC_Raw_Data_for_FY22[[#This Row],[25th]])/25)*15) + AAMC_Raw_Data_for_FY22[[#This Row],[25th]]","v":0},{"$f":"(((AAMC_Raw_Data_for_FY22[[#This Row],[Median]]-AAMC_Raw_Data_for_FY22[[#This Row],[25th]])/25)*20) + AAMC_Raw_Data_for_FY22[[#This Row],[25th]]","v":0},null,{"$f":"(((AAMC_Raw_Data_for_FY22[[#This Row],[75th]]-AAMC_Raw_Data_for_FY22[[#This Row],[Median]])/25)*5) + AAMC_Raw_Data_for_FY22[[#This Row],[Median]]","v":0},{"$f":"(((AAMC_Raw_Data_for_FY22[[#This Row],[75th]]-AAMC_Raw_Data_for_FY22[[#This Row],[Median]])/25)*10) + AAMC_Raw_Data_for_FY22[[#This Row],[Median]]","v":0},{"$f":"(((AAMC_Raw_Data_for_FY22[[#This Row],[75th]]-AAMC_Raw_Data_for_FY22[[#This Row],[Median]])/25)*15) + AAMC_Raw_Data_for_FY22[[#This Row],[Median]]","v":0},{"$f":"(((AAMC_Raw_Data_for_FY22[[#This Row],[75th]]-AAMC_Raw_Data_for_FY22[[#This Row],[Median]])/25)*20) + AAMC_Raw_Data_for_FY22[[#This Row],[Median]]","v":0},null,{"$f":"(((AAMC_Raw_Data_for_FY22[[#This Row],[75th]]-AAMC_Raw_Data_for_FY22[[#This Row],[Median]])/25)*30) + AAMC_Raw_Data_for_FY22[[#This Row],[Median]]","v":0},{"$f":"(((AAMC_Raw_Data_for_FY22[[#This Row],[75th]]-AAMC_Raw_Data_for_FY22[[#This Row],[Median]])/25)*35) + AAMC_Raw_Data_for_FY22[[#This Row],[Median]]","v":0},{"$f":"(((AAMC_Raw_Data_for_FY22[[#This Row],[75th]]-AAMC_Raw_Data_for_FY22[[#This Row],[Median]])/25)*40) + AAMC_Raw_Data_for_FY22[[#This Row],[Median]]","v":0}]
[{"$f":"AAMC_Raw_Data_for_FY22[[#This Row],[Source]]&AAMC_Raw_Data_for_FY22[[#This Row],[Type]]&AAMC_Raw_Data_for_FY22[[#This Row],[School Subset]]&AAMC_Raw_Data_for_FY22[[#This Row],[Rank]]&AAMC_Raw_Data_for_FY22[[#This Row],[Degree]]&AAMC_Raw_Data_for_FY22[[#This Row],[Department / Specialty]]&\"L\"","v":"AAMCAcademicAllAssociatePhDOB/GYN: Gynecologic OncologyL"},"OB/GYN: Gynecologic Oncology",3,"AAMC","Academic","All","Associate","PhD","2021-2022",null,{"$f":"(((AAMC_Raw_Data_for_FY22[[#This Row],[Median]]-AAMC_Raw_Data_for_FY22[[#This Row],[25th]])/25)*5) + AAMC_Raw_Data_for_FY22[[#This Row],[25th]]","v":0},{"$f":"(((AAMC_Raw_Data_for_FY22[[#This Row],[Median]]-AAMC_Raw_Data_for_FY22[[#This Row],[25th]])/25)*10) + AAMC_Raw_Data_for_FY22[[#This Row],[25th]]","v":0},{"$f":"(((AAMC_Raw_Data_for_FY22[[#This Row],[Median]]-AAMC_Raw_Data_for_FY22[[#This Row],[25th]])/25)*15) + AAMC_Raw_Data_for_FY22[[#This Row],[25th]]","v":0},{"$f":"(((AAMC_Raw_Data_for_FY22[[#This Row],[Median]]-AAMC_Raw_Data_for_FY22[[#This Row],[25th]])/25)*20) + AAMC_Raw_Data_for_FY22[[#This Row],[25th]]","v":0},null,{"$f":"(((AAMC_Raw_Data_for_FY22[[#This Row],[75th]]-AAMC_Raw_Data_for_FY22[[#This Row],[Median]])/25)*5) + AAMC_Raw_Data_for_FY22[[#This Row],[Median]]","v":0},{"$f":"(((AAMC_Raw_Data_for_FY22[[#This Row],[75th]]-AAMC_Raw_Data_for_FY22[[#This Row],[Median]])/25)*10) + AAMC_Raw_Data_for_FY22[[#This Row],[Median]]","v":0},{"$f":"(((AAMC_Raw_Data_for_FY22[[#This Row],[75th]]-AAMC_Raw_Data_for_FY22[[#This Row],[Median]])/25)*15) + AAMC_Raw_Data_for_FY22[[#This Row],[Median]]","v":0},{"$f":"(((AAMC_Raw_Data_for_FY22[[#This Row],[75th]]-AAMC_Raw_Data_for_FY22[[#This Row],[Median]])/25)*20) + AAMC_Raw_Data_for_FY22[[#This Row],[Median]]","v":0},null,{"$f":"(((AAMC_Raw_Data_for_FY22[[#This Row],[75th]]-AAMC_Raw_Data_for_FY22[[#This Row],[Median]])/25)*30) + AAMC_Raw_Data_for_FY22[[#This Row],[Median]]","v":0},{"$f":"(((AAMC_Raw_Data_for_FY22[[#This Row],[75th]]-AAMC_Raw_Data_for_FY22[[#This Row],[Median]])/25)*35) + AAMC_Raw_Data_for_FY22[[#This Row],[Median]]","v":0},{"$f":"(((AAMC_Raw_Data_for_FY22[[#This Row],[75th]]-AAMC_Raw_Data_for_FY22[[#This Row],[Median]])/25)*40) + AAMC_Raw_Data_for_FY22[[#This Row],[Median]]","v":0}]
[{"$f":"AAMC_Raw_Data_for_FY22[[#This Row],[Source]]&AAMC_Raw_Data_for_FY22[[#This Row],[Type]]&AAMC_Raw_Data_for_FY22[[#This Row],[School Subset]]&AAMC_Raw_Data_for_FY22[[#This Row],[Rank]]&AAMC_Raw_Data_for_FY22[[#This Row],[Degree]]&AAMC_Raw_Data_for_FY22[[#This Row],[Department / Specialty]]&\"L\"","v":"AAMCAcademicAllProfessorPhDOB/GYN: Gynecologic OncologyL"},"OB/GYN: Gynecologic Oncology",2,"AAMC","Academic","All","Professor","PhD","2021-2022",null,{"$f":"(((AAMC_Raw_Data_for_FY22[[#This Row],[Median]]-AAMC_Raw_Data_for_FY22[[#This Row],[25th]])/25)*5) + AAMC_Raw_Data_for_FY22[[#This Row],[25th]]","v":0},{"$f":"(((AAMC_Raw_Data_for_FY22[[#This Row],[Median]]-AAMC_Raw_Data_for_FY22[[#This Row],[25th]])/25)*10) + AAMC_Raw_Data_for_FY22[[#This Row],[25th]]","v":0},{"$f":"(((AAMC_Raw_Data_for_FY22[[#This Row],[Median]]-AAMC_Raw_Data_for_FY22[[#This Row],[25th]])/25)*15) + AAMC_Raw_Data_for_FY22[[#This Row],[25th]]","v":0},{"$f":"(((AAMC_Raw_Data_for_FY22[[#This Row],[Median]]-AAMC_Raw_Data_for_FY22[[#This Row],[25th]])/25)*20) + AAMC_Raw_Data_for_FY22[[#This Row],[25th]]","v":0},null,{"$f":"(((AAMC_Raw_Data_for_FY22[[#This Row],[75th]]-AAMC_Raw_Data_for_FY22[[#This Row],[Median]])/25)*5) + AAMC_Raw_Data_for_FY22[[#This Row],[Median]]","v":0},{"$f":"(((AAMC_Raw_Data_for_FY22[[#This Row],[75th]]-AAMC_Raw_Data_for_FY22[[#This Row],[Median]])/25)*10) + AAMC_Raw_Data_for_FY22[[#This Row],[Median]]","v":0},{"$f":"(((AAMC_Raw_Data_for_FY22[[#This Row],[75th]]-AAMC_Raw_Data_for_FY22[[#This Row],[Median]])/25)*15) + AAMC_Raw_Data_for_FY22[[#This Row],[Median]]","v":0},{"$f":"(((AAMC_Raw_Data_for_FY22[[#This Row],[75th]]-AAMC_Raw_Data_for_FY22[[#This Row],[Median]])/25)*20) + AAMC_Raw_Data_for_FY22[[#This Row],[Median]]","v":0},null,{"$f":"(((AAMC_Raw_Data_for_FY22[[#This Row],[75th]]-AAMC_Raw_Data_for_FY22[[#This Row],[Median]])/25)*30) + AAMC_Raw_Data_for_FY22[[#This Row],[Median]]","v":0},{"$f":"(((AAMC_Raw_Data_for_FY22[[#This Row],[75th]]-AAMC_Raw_Data_for_FY22[[#This Row],[Median]])/25)*35) + AAMC_Raw_Data_for_FY22[[#This Row],[Median]]","v":0},{"$f":"(((AAMC_Raw_Data_for_FY22[[#This Row],[75th]]-AAMC_Raw_Data_for_FY22[[#This Row],[Median]])/25)*40) + AAMC_Raw_Data_for_FY22[[#This Row],[Median]]","v":0}]
[{"$f":"AAMC_Raw_Data_for_FY22[[#This Row],[Source]]&AAMC_Raw_Data_for_FY22[[#This Row],[Type]]&AAMC_Raw_Data_for_FY22[[#This Row],[School Subset]]&AAMC_Raw_Data_for_FY22[[#This Row],[Rank]]&AAMC_Raw_Data_for_FY22[[#This Row],[Degree]]&AAMC_Raw_Data_for_FY22[[#This Row],[Department / Specialty]]&\"L\"","v":"AAMCAcademicAllInstructorPhDOB/GYN: Maternal & FetalL"},"OB/GYN: Maternal & Fetal",5,"AAMC","Academic","All","Instructor","PhD","2021-2022",null,{"$f":"(((AAMC_Raw_Data_for_FY22[[#This Row],[Median]]-AAMC_Raw_Data_for_FY22[[#This Row],[25th]])/25)*5) + AAMC_Raw_Data_for_FY22[[#This Row],[25th]]","v":0},{"$f":"(((AAMC_Raw_Data_for_FY22[[#This Row],[Median]]-AAMC_Raw_Data_for_FY22[[#This Row],[25th]])/25)*10) + AAMC_Raw_Data_for_FY22[[#This Row],[25th]]","v":0},{"$f":"(((AAMC_Raw_Data_for_FY22[[#This Row],[Median]]-AAMC_Raw_Data_for_FY22[[#This Row],[25th]])/25)*15) + AAMC_Raw_Data_for_FY22[[#This Row],[25th]]","v":0},{"$f":"(((AAMC_Raw_Data_for_FY22[[#This Row],[Median]]-AAMC_Raw_Data_for_FY22[[#This Row],[25th]])/25)*20) + AAMC_Raw_Data_for_FY22[[#This Row],[25th]]","v":0},null,{"$f":"(((AAMC_Raw_Data_for_FY22[[#This Row],[75th]]-AAMC_Raw_Data_for_FY22[[#This Row],[Median]])/25)*5) + AAMC_Raw_Data_for_FY22[[#This Row],[Median]]","v":0},{"$f":"(((AAMC_Raw_Data_for_FY22[[#This Row],[75th]]-AAMC_Raw_Data_for_FY22[[#This Row],[Median]])/25)*10) + AAMC_Raw_Data_for_FY22[[#This Row],[Median]]","v":0},{"$f":"(((AAMC_Raw_Data_for_FY22[[#This Row],[75th]]-AAMC_Raw_Data_for_FY22[[#This Row],[Median]])/25)*15) + AAMC_Raw_Data_for_FY22[[#This Row],[Median]]","v":0},{"$f":"(((AAMC_Raw_Data_for_FY22[[#This Row],[75th]]-AAMC_Raw_Data_for_FY22[[#This Row],[Median]])/25)*20) + AAMC_Raw_Data_for_FY22[[#This Row],[Median]]","v":0},null,{"$f":"(((AAMC_Raw_Data_for_FY22[[#This Row],[75th]]-AAMC_Raw_Data_for_FY22[[#This Row],[Median]])/25)*30) + AAMC_Raw_Data_for_FY22[[#This Row],[Median]]","v":0},{"$f":"(((AAMC_Raw_Data_for_FY22[[#This Row],[75th]]-AAMC_Raw_Data_for_FY22[[#This Row],[Median]])/25)*35) + AAMC_Raw_Data_for_FY22[[#This Row],[Median]]","v":0},{"$f":"(((AAMC_Raw_Data_for_FY22[[#This Row],[75th]]-AAMC_Raw_Data_for_FY22[[#This Row],[Median]])/25)*40) + AAMC_Raw_Data_for_FY22[[#This Row],[Median]]","v":0}]
[{"$f":"AAMC_Raw_Data_for_FY22[[#This Row],[Source]]&AAMC_Raw_Data_for_FY22[[#This Row],[Type]]&AAMC_Raw_Data_for_FY22[[#This Row],[School Subset]]&AAMC_Raw_Data_for_FY22[[#This Row],[Rank]]&AAMC_Raw_Data_for_FY22[[#This Row],[Degree]]&AAMC_Raw_Data_for_FY22[[#This Row],[Department / Specialty]]&\"L\"","v":"AAMCAcademicAllAssistantPhDOB/GYN: Maternal & FetalL"},"OB/GYN: Maternal & Fetal",4,"AAMC","Academic","All","Assistant","PhD","2021-2022",87605,{"$f":"(((AAMC_Raw_Data_for_FY22[[#This Row],[Median]]-AAMC_Raw_Data_for_FY22[[#This Row],[25th]])/25)*5) + AAMC_Raw_Data_for_FY22[[#This Row],[25th]]","v":91924},{"$f":"(((AAMC_Raw_Data_for_FY22[[#This Row],[Median]]-AAMC_Raw_Data_for_FY22[[#This Row],[25th]])/25)*10) + AAMC_Raw_Data_for_FY22[[#This Row],[25th]]","v":96243},{"$f":"(((AAMC_Raw_Data_for_FY22[[#This Row],[Median]]-AAMC_Raw_Data_for_FY22[[#This Row],[25th]])/25)*15) + AAMC_Raw_Data_for_FY22[[#This Row],[25th]]","v":100562},{"$f":"(((AAMC_Raw_Data_for_FY22[[#This Row],[Median]]-AAMC_Raw_Data_for_FY22[[#This Row],[25th]])/25)*20) + AAMC_Raw_Data_for_FY22[[#This Row],[25th]]","v":104881},109200,{"$f":"(((AAMC_Raw_Data_for_FY22[[#This Row],[75th]]-AAMC_Raw_Data_for_FY22[[#This Row],[Median]])/25)*5) + AAMC_Raw_Data_for_FY22[[#This Row],[Median]]","v":112081.4},{"$f":"(((AAMC_Raw_Data_for_FY22[[#This Row],[75th]]-AAMC_Raw_Data_for_FY22[[#This Row],[Median]])/25)*10) + AAMC_Raw_Data_for_FY22[[#This Row],[Median]]","v":114962.8},{"$f":"(((AAMC_Raw_Data_for_FY22[[#This Row],[75th]]-AAMC_Raw_Data_for_FY22[[#This Row],[Median]])/25)*15) + AAMC_Raw_Data_for_FY22[[#This Row],[Median]]","v":117844.2},{"$f":"(((AAMC_Raw_Data_for_FY22[[#This Row],[75th]]-AAMC_Raw_Data_for_FY22[[#This Row],[Median]])/25)*20) + AAMC_Raw_Data_for_FY22[[#This Row],[Median]]","v":120725.6},123607,{"$f":"(((AAMC_Raw_Data_for_FY22[[#This Row],[75th]]-AAMC_Raw_Data_for_FY22[[#This Row],[Median]])/25)*30) + AAMC_Raw_Data_for_FY22[[#This Row],[Median]]","v":126488.4},{"$f":"(((AAMC_Raw_Data_for_FY22[[#This Row],[75th]]-AAMC_Raw_Data_for_FY22[[#This Row],[Median]])/25)*35) + AAMC_Raw_Data_for_FY22[[#This Row],[Median]]","v":129369.8},{"$f":"(((AAMC_Raw_Data_for_FY22[[#This Row],[75th]]-AAMC_Raw_Data_for_FY22[[#This Row],[Median]])/25)*40) + AAMC_Raw_Data_for_FY22[[#This Row],[Median]]","v":132251.20000000001}]
[{"$f":"AAMC_Raw_Data_for_FY22[[#This Row],[Source]]&AAMC_Raw_Data_for_FY22[[#This Row],[Type]]&AAMC_Raw_Data_for_FY22[[#This Row],[School Subset]]&AAMC_Raw_Data_for_FY22[[#This Row],[Rank]]&AAMC_Raw_Data_for_FY22[[#This Row],[Degree]]&AAMC_Raw_Data_for_FY22[[#This Row],[Department / Specialty]]&\"L\"","v":"AAMCAcademicAllAssociatePhDOB/GYN: Maternal & FetalL"},"OB/GYN: Maternal & Fetal",3,"AAMC","Academic","All","Associate","PhD","2021-2022",126406,{"$f":"(((AAMC_Raw_Data_for_FY22[[#This Row],[Median]]-AAMC_Raw_Data_for_FY22[[#This Row],[25th]])/25)*5) + AAMC_Raw_Data_for_FY22[[#This Row],[25th]]","v":130534.8},{"$f":"(((AAMC_Raw_Data_for_FY22[[#This Row],[Median]]-AAMC_Raw_Data_for_FY22[[#This Row],[25th]])/25)*10) + AAMC_Raw_Data_for_FY22[[#This Row],[25th]]","v":134663.6},{"$f":"(((AAMC_Raw_Data_for_FY22[[#This Row],[Median]]-AAMC_Raw_Data_for_FY22[[#This Row],[25th]])/25)*15) + AAMC_Raw_Data_for_FY22[[#This Row],[25th]]","v":138792.4},{"$f":"(((AAMC_Raw_Data_for_FY22[[#This Row],[Median]]-AAMC_Raw_Data_for_FY22[[#This Row],[25th]])/25)*20) + AAMC_Raw_Data_for_FY22[[#This Row],[25th]]","v":142921.20000000001},147050,{"$f":"(((AAMC_Raw_Data_for_FY22[[#This Row],[75th]]-AAMC_Raw_Data_for_FY22[[#This Row],[Median]])/25)*5) + AAMC_Raw_Data_for_FY22[[#This Row],[Median]]","v":152257.4},{"$f":"(((AAMC_Raw_Data_for_FY22[[#This Row],[75th]]-AAMC_Raw_Data_for_FY22[[#This Row],[Median]])/25)*10) + AAMC_Raw_Data_for_FY22[[#This Row],[Median]]","v":157464.79999999999},{"$f":"(((AAMC_Raw_Data_for_FY22[[#This Row],[75th]]-AAMC_Raw_Data_for_FY22[[#This Row],[Median]])/25)*15) + AAMC_Raw_Data_for_FY22[[#This Row],[Median]]","v":162672.20000000001},{"$f":"(((AAMC_Raw_Data_for_FY22[[#This Row],[75th]]-AAMC_Raw_Data_for_FY22[[#This Row],[Median]])/25)*20) + AAMC_Raw_Data_for_FY22[[#This Row],[Median]]","v":167879.6},173087,{"$f":"(((AAMC_Raw_Data_for_FY22[[#This Row],[75th]]-AAMC_Raw_Data_for_FY22[[#This Row],[Median]])/25)*30) + AAMC_Raw_Data_for_FY22[[#This Row],[Median]]","v":178294.39999999999},{"$f":"(((AAMC_Raw_Data_for_FY22[[#This Row],[75th]]-AAMC_Raw_Data_for_FY22[[#This Row],[Median]])/25)*35) + AAMC_Raw_Data_for_FY22[[#This Row],[Median]]","v":183501.8},{"$f":"(((AAMC_Raw_Data_for_FY22[[#This Row],[75th]]-AAMC_Raw_Data_for_FY22[[#This Row],[Median]])/25)*40) + AAMC_Raw_Data_for_FY22[[#This Row],[Median]]","v":188709.2}]
[{"$f":"AAMC_Raw_Data_for_FY22[[#This Row],[Source]]&AAMC_Raw_Data_for_FY22[[#This Row],[Type]]&AAMC_Raw_Data_for_FY22[[#This Row],[School Subset]]&AAMC_Raw_Data_for_FY22[[#This Row],[Rank]]&AAMC_Raw_Data_for_FY22[[#This Row],[Degree]]&AAMC_Raw_Data_for_FY22[[#This Row],[Department / Specialty]]&\"L\"","v":"AAMCAcademicAllProfessorPhDOB/GYN: Maternal & FetalL"},"OB/GYN: Maternal & Fetal",2,"AAMC","Academic","All","Professor","PhD","2021-2022",172369,{"$f":"(((AAMC_Raw_Data_for_FY22[[#This Row],[Median]]-AAMC_Raw_Data_for_FY22[[#This Row],[25th]])/25)*5) + AAMC_Raw_Data_for_FY22[[#This Row],[25th]]","v":181516.79999999999},{"$f":"(((AAMC_Raw_Data_for_FY22[[#This Row],[Median]]-AAMC_Raw_Data_for_FY22[[#This Row],[25th]])/25)*10) + AAMC_Raw_Data_for_FY22[[#This Row],[25th]]","v":190664.6},{"$f":"(((AAMC_Raw_Data_for_FY22[[#This Row],[Median]]-AAMC_Raw_Data_for_FY22[[#This Row],[25th]])/25)*15) + AAMC_Raw_Data_for_FY22[[#This Row],[25th]]","v":199812.4},{"$f":"(((AAMC_Raw_Data_for_FY22[[#This Row],[Median]]-AAMC_Raw_Data_for_FY22[[#This Row],[25th]])/25)*20) + AAMC_Raw_Data_for_FY22[[#This Row],[25th]]","v":208960.2},218108,{"$f":"(((AAMC_Raw_Data_for_FY22[[#This Row],[75th]]-AAMC_Raw_Data_for_FY22[[#This Row],[Median]])/25)*5) + AAMC_Raw_Data_for_FY22[[#This Row],[Median]]","v":226369.2},{"$f":"(((AAMC_Raw_Data_for_FY22[[#This Row],[75th]]-AAMC_Raw_Data_for_FY22[[#This Row],[Median]])/25)*10) + AAMC_Raw_Data_for_FY22[[#This Row],[Median]]","v":234630.39999999999},{"$f":"(((AAMC_Raw_Data_for_FY22[[#This Row],[75th]]-AAMC_Raw_Data_for_FY22[[#This Row],[Median]])/25)*15) + AAMC_Raw_Data_for_FY22[[#This Row],[Median]]","v":242891.6},{"$f":"(((AAMC_Raw_Data_for_FY22[[#This Row],[75th]]-AAMC_Raw_Data_for_FY22[[#This Row],[Median]])/25)*20) + AAMC_Raw_Data_for_FY22[[#This Row],[Median]]","v":251152.8},259414,{"$f":"(((AAMC_Raw_Data_for_FY22[[#This Row],[75th]]-AAMC_Raw_Data_for_FY22[[#This Row],[Median]])/25)*30) + AAMC_Raw_Data_for_FY22[[#This Row],[Median]]","v":267675.2},{"$f":"(((AAMC_Raw_Data_for_FY22[[#This Row],[75th]]-AAMC_Raw_Data_for_FY22[[#This Row],[Median]])/25)*35) + AAMC_Raw_Data_for_FY22[[#This Row],[Median]]","v":275936.40000000002},{"$f":"(((AAMC_Raw_Data_for_FY22[[#This Row],[75th]]-AAMC_Raw_Data_for_FY22[[#This Row],[Median]])/25)*40) + AAMC_Raw_Data_for_FY22[[#This Row],[Median]]","v":284197.59999999998}]
[{"$f":"AAMC_Raw_Data_for_FY22[[#This Row],[Source]]&AAMC_Raw_Data_for_FY22[[#This Row],[Type]]&AAMC_Raw_Data_for_FY22[[#This Row],[School Subset]]&AAMC_Raw_Data_for_FY22[[#This Row],[Rank]]&AAMC_Raw_Data_for_FY22[[#This Row],[Degree]]&AAMC_Raw_Data_for_FY22[[#This Row],[Department / Specialty]]&\"L\"","v":"AAMCAcademicAllChiefPhDOB/GYN: Maternal & FetalL"},"OB/GYN: Maternal & Fetal",6,"AAMC","Academic","All","Chief","PhD","2021-2022",null,{"$f":"(((AAMC_Raw_Data_for_FY22[[#This Row],[Median]]-AAMC_Raw_Data_for_FY22[[#This Row],[25th]])/25)*5) + AAMC_Raw_Data_for_FY22[[#This Row],[25th]]","v":0},{"$f":"(((AAMC_Raw_Data_for_FY22[[#This Row],[Median]]-AAMC_Raw_Data_for_FY22[[#This Row],[25th]])/25)*10) + AAMC_Raw_Data_for_FY22[[#This Row],[25th]]","v":0},{"$f":"(((AAMC_Raw_Data_for_FY22[[#This Row],[Median]]-AAMC_Raw_Data_for_FY22[[#This Row],[25th]])/25)*15) + AAMC_Raw_Data_for_FY22[[#This Row],[25th]]","v":0},{"$f":"(((AAMC_Raw_Data_for_FY22[[#This Row],[Median]]-AAMC_Raw_Data_for_FY22[[#This Row],[25th]])/25)*20) + AAMC_Raw_Data_for_FY22[[#This Row],[25th]]","v":0},null,{"$f":"(((AAMC_Raw_Data_for_FY22[[#This Row],[75th]]-AAMC_Raw_Data_for_FY22[[#This Row],[Median]])/25)*5) + AAMC_Raw_Data_for_FY22[[#This Row],[Median]]","v":0},{"$f":"(((AAMC_Raw_Data_for_FY22[[#This Row],[75th]]-AAMC_Raw_Data_for_FY22[[#This Row],[Median]])/25)*10) + AAMC_Raw_Data_for_FY22[[#This Row],[Median]]","v":0},{"$f":"(((AAMC_Raw_Data_for_FY22[[#This Row],[75th]]-AAMC_Raw_Data_for_FY22[[#This Row],[Median]])/25)*15) + AAMC_Raw_Data_for_FY22[[#This Row],[Median]]","v":0},{"$f":"(((AAMC_Raw_Data_for_FY22[[#This Row],[75th]]-AAMC_Raw_Data_for_FY22[[#This Row],[Median]])/25)*20) + AAMC_Raw_Data_for_FY22[[#This Row],[Median]]","v":0},null,{"$f":"(((AAMC_Raw_Data_for_FY22[[#This Row],[75th]]-AAMC_Raw_Data_for_FY22[[#This Row],[Median]])/25)*30) + AAMC_Raw_Data_for_FY22[[#This Row],[Median]]","v":0},{"$f":"(((AAMC_Raw_Data_for_FY22[[#This Row],[75th]]-AAMC_Raw_Data_for_FY22[[#This Row],[Median]])/25)*35) + AAMC_Raw_Data_for_FY22[[#This Row],[Median]]","v":0},{"$f":"(((AAMC_Raw_Data_for_FY22[[#This Row],[75th]]-AAMC_Raw_Data_for_FY22[[#This Row],[Median]])/25)*40) + AAMC_Raw_Data_for_FY22[[#This Row],[Median]]","v":0}]
[{"$f":"AAMC_Raw_Data_for_FY22[[#This Row],[Source]]&AAMC_Raw_Data_for_FY22[[#This Row],[Type]]&AAMC_Raw_Data_for_FY22[[#This Row],[School Subset]]&AAMC_Raw_Data_for_FY22[[#This Row],[Rank]]&AAMC_Raw_Data_for_FY22[[#This Row],[Degree]]&AAMC_Raw_Data_for_FY22[[#This Row],[Department / Specialty]]&\"L\"","v":"AAMCAcademicAllInstructorPhDOB/GYN: Reproductive EndocrinologyL"},"OB/GYN: Reproductive Endocrinology",5,"AAMC","Academic","All","Instructor","PhD","2021-2022",null,{"$f":"(((AAMC_Raw_Data_for_FY22[[#This Row],[Median]]-AAMC_Raw_Data_for_FY22[[#This Row],[25th]])/25)*5) + AAMC_Raw_Data_for_FY22[[#This Row],[25th]]","v":0},{"$f":"(((AAMC_Raw_Data_for_FY22[[#This Row],[Median]]-AAMC_Raw_Data_for_FY22[[#This Row],[25th]])/25)*10) + AAMC_Raw_Data_for_FY22[[#This Row],[25th]]","v":0},{"$f":"(((AAMC_Raw_Data_for_FY22[[#This Row],[Median]]-AAMC_Raw_Data_for_FY22[[#This Row],[25th]])/25)*15) + AAMC_Raw_Data_for_FY22[[#This Row],[25th]]","v":0},{"$f":"(((AAMC_Raw_Data_for_FY22[[#This Row],[Median]]-AAMC_Raw_Data_for_FY22[[#This Row],[25th]])/25)*20) + AAMC_Raw_Data_for_FY22[[#This Row],[25th]]","v":0},null,{"$f":"(((AAMC_Raw_Data_for_FY22[[#This Row],[75th]]-AAMC_Raw_Data_for_FY22[[#This Row],[Median]])/25)*5) + AAMC_Raw_Data_for_FY22[[#This Row],[Median]]","v":0},{"$f":"(((AAMC_Raw_Data_for_FY22[[#This Row],[75th]]-AAMC_Raw_Data_for_FY22[[#This Row],[Median]])/25)*10) + AAMC_Raw_Data_for_FY22[[#This Row],[Median]]","v":0},{"$f":"(((AAMC_Raw_Data_for_FY22[[#This Row],[75th]]-AAMC_Raw_Data_for_FY22[[#This Row],[Median]])/25)*15) + AAMC_Raw_Data_for_FY22[[#This Row],[Median]]","v":0},{"$f":"(((AAMC_Raw_Data_for_FY22[[#This Row],[75th]]-AAMC_Raw_Data_for_FY22[[#This Row],[Median]])/25)*20) + AAMC_Raw_Data_for_FY22[[#This Row],[Median]]","v":0},null,{"$f":"(((AAMC_Raw_Data_for_FY22[[#This Row],[75th]]-AAMC_Raw_Data_for_FY22[[#This Row],[Median]])/25)*30) + AAMC_Raw_Data_for_FY22[[#This Row],[Median]]","v":0},{"$f":"(((AAMC_Raw_Data_for_FY22[[#This Row],[75th]]-AAMC_Raw_Data_for_FY22[[#This Row],[Median]])/25)*35) + AAMC_Raw_Data_for_FY22[[#This Row],[Median]]","v":0},{"$f":"(((AAMC_Raw_Data_for_FY22[[#This Row],[75th]]-AAMC_Raw_Data_for_FY22[[#This Row],[Median]])/25)*40) + AAMC_Raw_Data_for_FY22[[#This Row],[Median]]","v":0}]
[{"$f":"AAMC_Raw_Data_for_FY22[[#This Row],[Source]]&AAMC_Raw_Data_for_FY22[[#This Row],[Type]]&AAMC_Raw_Data_for_FY22[[#This Row],[School Subset]]&AAMC_Raw_Data_for_FY22[[#This Row],[Rank]]&AAMC_Raw_Data_for_FY22[[#This Row],[Degree]]&AAMC_Raw_Data_for_FY22[[#This Row],[Department / Specialty]]&\"L\"","v":"AAMCAcademicAllAssistantPhDOB/GYN: Reproductive EndocrinologyL"},"OB/GYN: Reproductive Endocrinology",4,"AAMC","Academic","All","Assistant","PhD","2021-2022",84245,{"$f":"(((AAMC_Raw_Data_for_FY22[[#This Row],[Median]]-AAMC_Raw_Data_for_FY22[[#This Row],[25th]])/25)*5) + AAMC_Raw_Data_for_FY22[[#This Row],[25th]]","v":95372},{"$f":"(((AAMC_Raw_Data_for_FY22[[#This Row],[Median]]-AAMC_Raw_Data_for_FY22[[#This Row],[25th]])/25)*10) + AAMC_Raw_Data_for_FY22[[#This Row],[25th]]","v":106499},{"$f":"(((AAMC_Raw_Data_for_FY22[[#This Row],[Median]]-AAMC_Raw_Data_for_FY22[[#This Row],[25th]])/25)*15) + AAMC_Raw_Data_for_FY22[[#This Row],[25th]]","v":117626},{"$f":"(((AAMC_Raw_Data_for_FY22[[#This Row],[Median]]-AAMC_Raw_Data_for_FY22[[#This Row],[25th]])/25)*20) + AAMC_Raw_Data_for_FY22[[#This Row],[25th]]","v":128753},139880,{"$f":"(((AAMC_Raw_Data_for_FY22[[#This Row],[75th]]-AAMC_Raw_Data_for_FY22[[#This Row],[Median]])/25)*5) + AAMC_Raw_Data_for_FY22[[#This Row],[Median]]","v":149857.20000000001},{"$f":"(((AAMC_Raw_Data_for_FY22[[#This Row],[75th]]-AAMC_Raw_Data_for_FY22[[#This Row],[Median]])/25)*10) + AAMC_Raw_Data_for_FY22[[#This Row],[Median]]","v":159834.4},{"$f":"(((AAMC_Raw_Data_for_FY22[[#This Row],[75th]]-AAMC_Raw_Data_for_FY22[[#This Row],[Median]])/25)*15) + AAMC_Raw_Data_for_FY22[[#This Row],[Median]]","v":169811.6},{"$f":"(((AAMC_Raw_Data_for_FY22[[#This Row],[75th]]-AAMC_Raw_Data_for_FY22[[#This Row],[Median]])/25)*20) + AAMC_Raw_Data_for_FY22[[#This Row],[Median]]","v":179788.79999999999},189766,{"$f":"(((AAMC_Raw_Data_for_FY22[[#This Row],[75th]]-AAMC_Raw_Data_for_FY22[[#This Row],[Median]])/25)*30) + AAMC_Raw_Data_for_FY22[[#This Row],[Median]]","v":199743.2},{"$f":"(((AAMC_Raw_Data_for_FY22[[#This Row],[75th]]-AAMC_Raw_Data_for_FY22[[#This Row],[Median]])/25)*35) + AAMC_Raw_Data_for_FY22[[#This Row],[Median]]","v":209720.40000000002},{"$f":"(((AAMC_Raw_Data_for_FY22[[#This Row],[75th]]-AAMC_Raw_Data_for_FY22[[#This Row],[Median]])/25)*40) + AAMC_Raw_Data_for_FY22[[#This Row],[Median]]","v":219697.6}]
[{"$f":"AAMC_Raw_Data_for_FY22[[#This Row],[Source]]&AAMC_Raw_Data_for_FY22[[#This Row],[Type]]&AAMC_Raw_Data_for_FY22[[#This Row],[School Subset]]&AAMC_Raw_Data_for_FY22[[#This Row],[Rank]]&AAMC_Raw_Data_for_FY22[[#This Row],[Degree]]&AAMC_Raw_Data_for_FY22[[#This Row],[Department / Specialty]]&\"L\"","v":"AAMCAcademicAllAssociatePhDOB/GYN: Reproductive EndocrinologyL"},"OB/GYN: Reproductive Endocrinology",3,"AAMC","Academic","All","Associate","PhD","2021-2022",null,{"$f":"(((AAMC_Raw_Data_for_FY22[[#This Row],[Median]]-AAMC_Raw_Data_for_FY22[[#This Row],[25th]])/25)*5) + AAMC_Raw_Data_for_FY22[[#This Row],[25th]]","v":0},{"$f":"(((AAMC_Raw_Data_for_FY22[[#This Row],[Median]]-AAMC_Raw_Data_for_FY22[[#This Row],[25th]])/25)*10) + AAMC_Raw_Data_for_FY22[[#This Row],[25th]]","v":0},{"$f":"(((AAMC_Raw_Data_for_FY22[[#This Row],[Median]]-AAMC_Raw_Data_for_FY22[[#This Row],[25th]])/25)*15) + AAMC_Raw_Data_for_FY22[[#This Row],[25th]]","v":0},{"$f":"(((AAMC_Raw_Data_for_FY22[[#This Row],[Median]]-AAMC_Raw_Data_for_FY22[[#This Row],[25th]])/25)*20) + AAMC_Raw_Data_for_FY22[[#This Row],[25th]]","v":0},null,{"$f":"(((AAMC_Raw_Data_for_FY22[[#This Row],[75th]]-AAMC_Raw_Data_for_FY22[[#This Row],[Median]])/25)*5) + AAMC_Raw_Data_for_FY22[[#This Row],[Median]]","v":0},{"$f":"(((AAMC_Raw_Data_for_FY22[[#This Row],[75th]]-AAMC_Raw_Data_for_FY22[[#This Row],[Median]])/25)*10) + AAMC_Raw_Data_for_FY22[[#This Row],[Median]]","v":0},{"$f":"(((AAMC_Raw_Data_for_FY22[[#This Row],[75th]]-AAMC_Raw_Data_for_FY22[[#This Row],[Median]])/25)*15) + AAMC_Raw_Data_for_FY22[[#This Row],[Median]]","v":0},{"$f":"(((AAMC_Raw_Data_for_FY22[[#This Row],[75th]]-AAMC_Raw_Data_for_FY22[[#This Row],[Median]])/25)*20) + AAMC_Raw_Data_for_FY22[[#This Row],[Median]]","v":0},null,{"$f":"(((AAMC_Raw_Data_for_FY22[[#This Row],[75th]]-AAMC_Raw_Data_for_FY22[[#This Row],[Median]])/25)*30) + AAMC_Raw_Data_for_FY22[[#This Row],[Median]]","v":0},{"$f":"(((AAMC_Raw_Data_for_FY22[[#This Row],[75th]]-AAMC_Raw_Data_for_FY22[[#This Row],[Median]])/25)*35) + AAMC_Raw_Data_for_FY22[[#This Row],[Median]]","v":0},{"$f":"(((AAMC_Raw_Data_for_FY22[[#This Row],[75th]]-AAMC_Raw_Data_for_FY22[[#This Row],[Median]])/25)*40) + AAMC_Raw_Data_for_FY22[[#This Row],[Median]]","v":0}]
[{"$f":"AAMC_Raw_Data_for_FY22[[#This Row],[Source]]&AAMC_Raw_Data_for_FY22[[#This Row],[Type]]&AAMC_Raw_Data_for_FY22[[#This Row],[School Subset]]&AAMC_Raw_Data_for_FY22[[#This Row],[Rank]]&AAMC_Raw_Data_for_FY22[[#This Row],[Degree]]&AAMC_Raw_Data_for_FY22[[#This Row],[Department / Specialty]]&\"L\"","v":"AAMCAcademicAllProfessorPhDOB/GYN: Reproductive EndocrinologyL"},"OB/GYN: Reproductive Endocrinology",2,"AAMC","Academic","All","Professor","PhD","2021-2022",161637,{"$f":"(((AAMC_Raw_Data_for_FY22[[#This Row],[Median]]-AAMC_Raw_Data_for_FY22[[#This Row],[25th]])/25)*5) + AAMC_Raw_Data_for_FY22[[#This Row],[25th]]","v":180717.4},{"$f":"(((AAMC_Raw_Data_for_FY22[[#This Row],[Median]]-AAMC_Raw_Data_for_FY22[[#This Row],[25th]])/25)*10) + AAMC_Raw_Data_for_FY22[[#This Row],[25th]]","v":199797.8},{"$f":"(((AAMC_Raw_Data_for_FY22[[#This Row],[Median]]-AAMC_Raw_Data_for_FY22[[#This Row],[25th]])/25)*15) + AAMC_Raw_Data_for_FY22[[#This Row],[25th]]","v":218878.2},{"$f":"(((AAMC_Raw_Data_for_FY22[[#This Row],[Median]]-AAMC_Raw_Data_for_FY22[[#This Row],[25th]])/25)*20) + AAMC_Raw_Data_for_FY22[[#This Row],[25th]]","v":237958.6},257039,{"$f":"(((AAMC_Raw_Data_for_FY22[[#This Row],[75th]]-AAMC_Raw_Data_for_FY22[[#This Row],[Median]])/25)*5) + AAMC_Raw_Data_for_FY22[[#This Row],[Median]]","v":277591},{"$f":"(((AAMC_Raw_Data_for_FY22[[#This Row],[75th]]-AAMC_Raw_Data_for_FY22[[#This Row],[Median]])/25)*10) + AAMC_Raw_Data_for_FY22[[#This Row],[Median]]","v":298143},{"$f":"(((AAMC_Raw_Data_for_FY22[[#This Row],[75th]]-AAMC_Raw_Data_for_FY22[[#This Row],[Median]])/25)*15) + AAMC_Raw_Data_for_FY22[[#This Row],[Median]]","v":318695},{"$f":"(((AAMC_Raw_Data_for_FY22[[#This Row],[75th]]-AAMC_Raw_Data_for_FY22[[#This Row],[Median]])/25)*20) + AAMC_Raw_Data_for_FY22[[#This Row],[Median]]","v":339247},359799,{"$f":"(((AAMC_Raw_Data_for_FY22[[#This Row],[75th]]-AAMC_Raw_Data_for_FY22[[#This Row],[Median]])/25)*30) + AAMC_Raw_Data_for_FY22[[#This Row],[Median]]","v":380351},{"$f":"(((AAMC_Raw_Data_for_FY22[[#This Row],[75th]]-AAMC_Raw_Data_for_FY22[[#This Row],[Median]])/25)*35) + AAMC_Raw_Data_for_FY22[[#This Row],[Median]]","v":400903},{"$f":"(((AAMC_Raw_Data_for_FY22[[#This Row],[75th]]-AAMC_Raw_Data_for_FY22[[#This Row],[Median]])/25)*40) + AAMC_Raw_Data_for_FY22[[#This Row],[Median]]","v":421455}]
[{"$f":"AAMC_Raw_Data_for_FY22[[#This Row],[Source]]&AAMC_Raw_Data_for_FY22[[#This Row],[Type]]&AAMC_Raw_Data_for_FY22[[#This Row],[School Subset]]&AAMC_Raw_Data_for_FY22[[#This Row],[Rank]]&AAMC_Raw_Data_for_FY22[[#This Row],[Degree]]&AAMC_Raw_Data_for_FY22[[#This Row],[Department / Specialty]]&\"L\"","v":"AAMCAcademicAllChiefPhDOB/GYN: Reproductive EndocrinologyL"},"OB/GYN: Reproductive Endocrinology",6,"AAMC","Academic","All","Chief","PhD","2021-2022",null,{"$f":"(((AAMC_Raw_Data_for_FY22[[#This Row],[Median]]-AAMC_Raw_Data_for_FY22[[#This Row],[25th]])/25)*5) + AAMC_Raw_Data_for_FY22[[#This Row],[25th]]","v":0},{"$f":"(((AAMC_Raw_Data_for_FY22[[#This Row],[Median]]-AAMC_Raw_Data_for_FY22[[#This Row],[25th]])/25)*10) + AAMC_Raw_Data_for_FY22[[#This Row],[25th]]","v":0},{"$f":"(((AAMC_Raw_Data_for_FY22[[#This Row],[Median]]-AAMC_Raw_Data_for_FY22[[#This Row],[25th]])/25)*15) + AAMC_Raw_Data_for_FY22[[#This Row],[25th]]","v":0},{"$f":"(((AAMC_Raw_Data_for_FY22[[#This Row],[Median]]-AAMC_Raw_Data_for_FY22[[#This Row],[25th]])/25)*20) + AAMC_Raw_Data_for_FY22[[#This Row],[25th]]","v":0},null,{"$f":"(((AAMC_Raw_Data_for_FY22[[#This Row],[75th]]-AAMC_Raw_Data_for_FY22[[#This Row],[Median]])/25)*5) + AAMC_Raw_Data_for_FY22[[#This Row],[Median]]","v":0},{"$f":"(((AAMC_Raw_Data_for_FY22[[#This Row],[75th]]-AAMC_Raw_Data_for_FY22[[#This Row],[Median]])/25)*10) + AAMC_Raw_Data_for_FY22[[#This Row],[Median]]","v":0},{"$f":"(((AAMC_Raw_Data_for_FY22[[#This Row],[75th]]-AAMC_Raw_Data_for_FY22[[#This Row],[Median]])/25)*15) + AAMC_Raw_Data_for_FY22[[#This Row],[Median]]","v":0},{"$f":"(((AAMC_Raw_Data_for_FY22[[#This Row],[75th]]-AAMC_Raw_Data_for_FY22[[#This Row],[Median]])/25)*20) + AAMC_Raw_Data_for_FY22[[#This Row],[Median]]","v":0},null,{"$f":"(((AAMC_Raw_Data_for_FY22[[#This Row],[75th]]-AAMC_Raw_Data_for_FY22[[#This Row],[Median]])/25)*30) + AAMC_Raw_Data_for_FY22[[#This Row],[Median]]","v":0},{"$f":"(((AAMC_Raw_Data_for_FY22[[#This Row],[75th]]-AAMC_Raw_Data_for_FY22[[#This Row],[Median]])/25)*35) + AAMC_Raw_Data_for_FY22[[#This Row],[Median]]","v":0},{"$f":"(((AAMC_Raw_Data_for_FY22[[#This Row],[75th]]-AAMC_Raw_Data_for_FY22[[#This Row],[Median]])/25)*40) + AAMC_Raw_Data_for_FY22[[#This Row],[Median]]","v":0}]
[{"$f":"AAMC_Raw_Data_for_FY22[[#This Row],[Source]]&AAMC_Raw_Data_for_FY22[[#This Row],[Type]]&AAMC_Raw_Data_for_FY22[[#This Row],[School Subset]]&AAMC_Raw_Data_for_FY22[[#This Row],[Rank]]&AAMC_Raw_Data_for_FY22[[#This Row],[Degree]]&AAMC_Raw_Data_for_FY22[[#This Row],[Department / Specialty]]&\"L\"","v":"AAMCAcademicAllInstructorPhDOB/GYN: Other OB/GYNL"},"OB/GYN: Other OB/GYN",5,"AAMC","Academic","All","Instructor","PhD","2021-2022",null,{"$f":"(((AAMC_Raw_Data_for_FY22[[#This Row],[Median]]-AAMC_Raw_Data_for_FY22[[#This Row],[25th]])/25)*5) + AAMC_Raw_Data_for_FY22[[#This Row],[25th]]","v":0},{"$f":"(((AAMC_Raw_Data_for_FY22[[#This Row],[Median]]-AAMC_Raw_Data_for_FY22[[#This Row],[25th]])/25)*10) + AAMC_Raw_Data_for_FY22[[#This Row],[25th]]","v":0},{"$f":"(((AAMC_Raw_Data_for_FY22[[#This Row],[Median]]-AAMC_Raw_Data_for_FY22[[#This Row],[25th]])/25)*15) + AAMC_Raw_Data_for_FY22[[#This Row],[25th]]","v":0},{"$f":"(((AAMC_Raw_Data_for_FY22[[#This Row],[Median]]-AAMC_Raw_Data_for_FY22[[#This Row],[25th]])/25)*20) + AAMC_Raw_Data_for_FY22[[#This Row],[25th]]","v":0},null,{"$f":"(((AAMC_Raw_Data_for_FY22[[#This Row],[75th]]-AAMC_Raw_Data_for_FY22[[#This Row],[Median]])/25)*5) + AAMC_Raw_Data_for_FY22[[#This Row],[Median]]","v":0},{"$f":"(((AAMC_Raw_Data_for_FY22[[#This Row],[75th]]-AAMC_Raw_Data_for_FY22[[#This Row],[Median]])/25)*10) + AAMC_Raw_Data_for_FY22[[#This Row],[Median]]","v":0},{"$f":"(((AAMC_Raw_Data_for_FY22[[#This Row],[75th]]-AAMC_Raw_Data_for_FY22[[#This Row],[Median]])/25)*15) + AAMC_Raw_Data_for_FY22[[#This Row],[Median]]","v":0},{"$f":"(((AAMC_Raw_Data_for_FY22[[#This Row],[75th]]-AAMC_Raw_Data_for_FY22[[#This Row],[Median]])/25)*20) + AAMC_Raw_Data_for_FY22[[#This Row],[Median]]","v":0},null,{"$f":"(((AAMC_Raw_Data_for_FY22[[#This Row],[75th]]-AAMC_Raw_Data_for_FY22[[#This Row],[Median]])/25)*30) + AAMC_Raw_Data_for_FY22[[#This Row],[Median]]","v":0},{"$f":"(((AAMC_Raw_Data_for_FY22[[#This Row],[75th]]-AAMC_Raw_Data_for_FY22[[#This Row],[Median]])/25)*35) + AAMC_Raw_Data_for_FY22[[#This Row],[Median]]","v":0},{"$f":"(((AAMC_Raw_Data_for_FY22[[#This Row],[75th]]-AAMC_Raw_Data_for_FY22[[#This Row],[Median]])/25)*40) + AAMC_Raw_Data_for_FY22[[#This Row],[Median]]","v":0}]
[{"$f":"AAMC_Raw_Data_for_FY22[[#This Row],[Source]]&AAMC_Raw_Data_for_FY22[[#This Row],[Type]]&AAMC_Raw_Data_for_FY22[[#This Row],[School Subset]]&AAMC_Raw_Data_for_FY22[[#This Row],[Rank]]&AAMC_Raw_Data_for_FY22[[#This Row],[Degree]]&AAMC_Raw_Data_for_FY22[[#This Row],[Department / Specialty]]&\"L\"","v":"AAMCAcademicAllAssistantPhDOB/GYN: Other OB/GYNL"},"OB/GYN: Other OB/GYN",4,"AAMC","Academic","All","Assistant","PhD","2021-2022",86250,{"$f":"(((AAMC_Raw_Data_for_FY22[[#This Row],[Median]]-AAMC_Raw_Data_for_FY22[[#This Row],[25th]])/25)*5) + AAMC_Raw_Data_for_FY22[[#This Row],[25th]]","v":90584},{"$f":"(((AAMC_Raw_Data_for_FY22[[#This Row],[Median]]-AAMC_Raw_Data_for_FY22[[#This Row],[25th]])/25)*10) + AAMC_Raw_Data_for_FY22[[#This Row],[25th]]","v":94918},{"$f":"(((AAMC_Raw_Data_for_FY22[[#This Row],[Median]]-AAMC_Raw_Data_for_FY22[[#This Row],[25th]])/25)*15) + AAMC_Raw_Data_for_FY22[[#This Row],[25th]]","v":99252},{"$f":"(((AAMC_Raw_Data_for_FY22[[#This Row],[Median]]-AAMC_Raw_Data_for_FY22[[#This Row],[25th]])/25)*20) + AAMC_Raw_Data_for_FY22[[#This Row],[25th]]","v":103586},107920,{"$f":"(((AAMC_Raw_Data_for_FY22[[#This Row],[75th]]-AAMC_Raw_Data_for_FY22[[#This Row],[Median]])/25)*5) + AAMC_Raw_Data_for_FY22[[#This Row],[Median]]","v":111753.2},{"$f":"(((AAMC_Raw_Data_for_FY22[[#This Row],[75th]]-AAMC_Raw_Data_for_FY22[[#This Row],[Median]])/25)*10) + AAMC_Raw_Data_for_FY22[[#This Row],[Median]]","v":115586.4},{"$f":"(((AAMC_Raw_Data_for_FY22[[#This Row],[75th]]-AAMC_Raw_Data_for_FY22[[#This Row],[Median]])/25)*15) + AAMC_Raw_Data_for_FY22[[#This Row],[Median]]","v":119419.6},{"$f":"(((AAMC_Raw_Data_for_FY22[[#This Row],[75th]]-AAMC_Raw_Data_for_FY22[[#This Row],[Median]])/25)*20) + AAMC_Raw_Data_for_FY22[[#This Row],[Median]]","v":123252.8},127086,{"$f":"(((AAMC_Raw_Data_for_FY22[[#This Row],[75th]]-AAMC_Raw_Data_for_FY22[[#This Row],[Median]])/25)*30) + AAMC_Raw_Data_for_FY22[[#This Row],[Median]]","v":130919.2},{"$f":"(((AAMC_Raw_Data_for_FY22[[#This Row],[75th]]-AAMC_Raw_Data_for_FY22[[#This Row],[Median]])/25)*35) + AAMC_Raw_Data_for_FY22[[#This Row],[Median]]","v":134752.4},{"$f":"(((AAMC_Raw_Data_for_FY22[[#This Row],[75th]]-AAMC_Raw_Data_for_FY22[[#This Row],[Median]])/25)*40) + AAMC_Raw_Data_for_FY22[[#This Row],[Median]]","v":138585.60000000001}]
[{"$f":"AAMC_Raw_Data_for_FY22[[#This Row],[Source]]&AAMC_Raw_Data_for_FY22[[#This Row],[Type]]&AAMC_Raw_Data_for_FY22[[#This Row],[School Subset]]&AAMC_Raw_Data_for_FY22[[#This Row],[Rank]]&AAMC_Raw_Data_for_FY22[[#This Row],[Degree]]&AAMC_Raw_Data_for_FY22[[#This Row],[Department / Specialty]]&\"L\"","v":"AAMCAcademicAllAssociatePhDOB/GYN: Other OB/GYNL"},"OB/GYN: Other OB/GYN",3,"AAMC","Academic","All","Associate","PhD","2021-2022",153829,{"$f":"(((AAMC_Raw_Data_for_FY22[[#This Row],[Median]]-AAMC_Raw_Data_for_FY22[[#This Row],[25th]])/25)*5) + AAMC_Raw_Data_for_FY22[[#This Row],[25th]]","v":156625.60000000001},{"$f":"(((AAMC_Raw_Data_for_FY22[[#This Row],[Median]]-AAMC_Raw_Data_for_FY22[[#This Row],[25th]])/25)*10) + AAMC_Raw_Data_for_FY22[[#This Row],[25th]]","v":159422.20000000001},{"$f":"(((AAMC_Raw_Data_for_FY22[[#This Row],[Median]]-AAMC_Raw_Data_for_FY22[[#This Row],[25th]])/25)*15) + AAMC_Raw_Data_for_FY22[[#This Row],[25th]]","v":162218.79999999999},{"$f":"(((AAMC_Raw_Data_for_FY22[[#This Row],[Median]]-AAMC_Raw_Data_for_FY22[[#This Row],[25th]])/25)*20) + AAMC_Raw_Data_for_FY22[[#This Row],[25th]]","v":165015.4},167812,{"$f":"(((AAMC_Raw_Data_for_FY22[[#This Row],[75th]]-AAMC_Raw_Data_for_FY22[[#This Row],[Median]])/25)*5) + AAMC_Raw_Data_for_FY22[[#This Row],[Median]]","v":170014.8},{"$f":"(((AAMC_Raw_Data_for_FY22[[#This Row],[75th]]-AAMC_Raw_Data_for_FY22[[#This Row],[Median]])/25)*10) + AAMC_Raw_Data_for_FY22[[#This Row],[Median]]","v":172217.60000000001},{"$f":"(((AAMC_Raw_Data_for_FY22[[#This Row],[75th]]-AAMC_Raw_Data_for_FY22[[#This Row],[Median]])/25)*15) + AAMC_Raw_Data_for_FY22[[#This Row],[Median]]","v":174420.4},{"$f":"(((AAMC_Raw_Data_for_FY22[[#This Row],[75th]]-AAMC_Raw_Data_for_FY22[[#This Row],[Median]])/25)*20) + AAMC_Raw_Data_for_FY22[[#This Row],[Median]]","v":176623.2},178826,{"$f":"(((AAMC_Raw_Data_for_FY22[[#This Row],[75th]]-AAMC_Raw_Data_for_FY22[[#This Row],[Median]])/25)*30) + AAMC_Raw_Data_for_FY22[[#This Row],[Median]]","v":181028.8},{"$f":"(((AAMC_Raw_Data_for_FY22[[#This Row],[75th]]-AAMC_Raw_Data_for_FY22[[#This Row],[Median]])/25)*35) + AAMC_Raw_Data_for_FY22[[#This Row],[Median]]","v":183231.6},{"$f":"(((AAMC_Raw_Data_for_FY22[[#This Row],[75th]]-AAMC_Raw_Data_for_FY22[[#This Row],[Median]])/25)*40) + AAMC_Raw_Data_for_FY22[[#This Row],[Median]]","v":185434.4}]
[{"$f":"AAMC_Raw_Data_for_FY22[[#This Row],[Source]]&AAMC_Raw_Data_for_FY22[[#This Row],[Type]]&AAMC_Raw_Data_for_FY22[[#This Row],[School Subset]]&AAMC_Raw_Data_for_FY22[[#This Row],[Rank]]&AAMC_Raw_Data_for_FY22[[#This Row],[Degree]]&AAMC_Raw_Data_for_FY22[[#This Row],[Department / Specialty]]&\"L\"","v":"AAMCAcademicAllProfessorPhDOB/GYN: Other OB/GYNL"},"OB/GYN: Other OB/GYN",2,"AAMC","Academic","All","Professor","PhD","2021-2022",198964,{"$f":"(((AAMC_Raw_Data_for_FY22[[#This Row],[Median]]-AAMC_Raw_Data_for_FY22[[#This Row],[25th]])/25)*5) + AAMC_Raw_Data_for_FY22[[#This Row],[25th]]","v":205694.2},{"$f":"(((AAMC_Raw_Data_for_FY22[[#This Row],[Median]]-AAMC_Raw_Data_for_FY22[[#This Row],[25th]])/25)*10) + AAMC_Raw_Data_for_FY22[[#This Row],[25th]]","v":212424.4},{"$f":"(((AAMC_Raw_Data_for_FY22[[#This Row],[Median]]-AAMC_Raw_Data_for_FY22[[#This Row],[25th]])/25)*15) + AAMC_Raw_Data_for_FY22[[#This Row],[25th]]","v":219154.6},{"$f":"(((AAMC_Raw_Data_for_FY22[[#This Row],[Median]]-AAMC_Raw_Data_for_FY22[[#This Row],[25th]])/25)*20) + AAMC_Raw_Data_for_FY22[[#This Row],[25th]]","v":225884.79999999999},232615,{"$f":"(((AAMC_Raw_Data_for_FY22[[#This Row],[75th]]-AAMC_Raw_Data_for_FY22[[#This Row],[Median]])/25)*5) + AAMC_Raw_Data_for_FY22[[#This Row],[Median]]","v":245513.4},{"$f":"(((AAMC_Raw_Data_for_FY22[[#This Row],[75th]]-AAMC_Raw_Data_for_FY22[[#This Row],[Median]])/25)*10) + AAMC_Raw_Data_for_FY22[[#This Row],[Median]]","v":258411.8},{"$f":"(((AAMC_Raw_Data_for_FY22[[#This Row],[75th]]-AAMC_Raw_Data_for_FY22[[#This Row],[Median]])/25)*15) + AAMC_Raw_Data_for_FY22[[#This Row],[Median]]","v":271310.2},{"$f":"(((AAMC_Raw_Data_for_FY22[[#This Row],[75th]]-AAMC_Raw_Data_for_FY22[[#This Row],[Median]])/25)*20) + AAMC_Raw_Data_for_FY22[[#This Row],[Median]]","v":284208.59999999998},297107,{"$f":"(((AAMC_Raw_Data_for_FY22[[#This Row],[75th]]-AAMC_Raw_Data_for_FY22[[#This Row],[Median]])/25)*30) + AAMC_Raw_Data_for_FY22[[#This Row],[Median]]","v":310005.40000000002},{"$f":"(((AAMC_Raw_Data_for_FY22[[#This Row],[75th]]-AAMC_Raw_Data_for_FY22[[#This Row],[Median]])/25)*35) + AAMC_Raw_Data_for_FY22[[#This Row],[Median]]","v":322903.8},{"$f":"(((AAMC_Raw_Data_for_FY22[[#This Row],[75th]]-AAMC_Raw_Data_for_FY22[[#This Row],[Median]])/25)*40) + AAMC_Raw_Data_for_FY22[[#This Row],[Median]]","v":335802.2}]
[{"$f":"AAMC_Raw_Data_for_FY22[[#This Row],[Source]]&AAMC_Raw_Data_for_FY22[[#This Row],[Type]]&AAMC_Raw_Data_for_FY22[[#This Row],[School Subset]]&AAMC_Raw_Data_for_FY22[[#This Row],[Rank]]&AAMC_Raw_Data_for_FY22[[#This Row],[Degree]]&AAMC_Raw_Data_for_FY22[[#This Row],[Department / Specialty]]&\"L\"","v":"AAMCAcademicAllChiefPhDOB/GYN: Other OB/GYNL"},"OB/GYN: Other OB/GYN",6,"AAMC","Academic","All","Chief","PhD","2021-2022",null,{"$f":"(((AAMC_Raw_Data_for_FY22[[#This Row],[Median]]-AAMC_Raw_Data_for_FY22[[#This Row],[25th]])/25)*5) + AAMC_Raw_Data_for_FY22[[#This Row],[25th]]","v":0},{"$f":"(((AAMC_Raw_Data_for_FY22[[#This Row],[Median]]-AAMC_Raw_Data_for_FY22[[#This Row],[25th]])/25)*10) + AAMC_Raw_Data_for_FY22[[#This Row],[25th]]","v":0},{"$f":"(((AAMC_Raw_Data_for_FY22[[#This Row],[Median]]-AAMC_Raw_Data_for_FY22[[#This Row],[25th]])/25)*15) + AAMC_Raw_Data_for_FY22[[#This Row],[25th]]","v":0},{"$f":"(((AAMC_Raw_Data_for_FY22[[#This Row],[Median]]-AAMC_Raw_Data_for_FY22[[#This Row],[25th]])/25)*20) + AAMC_Raw_Data_for_FY22[[#This Row],[25th]]","v":0},null,{"$f":"(((AAMC_Raw_Data_for_FY22[[#This Row],[75th]]-AAMC_Raw_Data_for_FY22[[#This Row],[Median]])/25)*5) + AAMC_Raw_Data_for_FY22[[#This Row],[Median]]","v":0},{"$f":"(((AAMC_Raw_Data_for_FY22[[#This Row],[75th]]-AAMC_Raw_Data_for_FY22[[#This Row],[Median]])/25)*10) + AAMC_Raw_Data_for_FY22[[#This Row],[Median]]","v":0},{"$f":"(((AAMC_Raw_Data_for_FY22[[#This Row],[75th]]-AAMC_Raw_Data_for_FY22[[#This Row],[Median]])/25)*15) + AAMC_Raw_Data_for_FY22[[#This Row],[Median]]","v":0},{"$f":"(((AAMC_Raw_Data_for_FY22[[#This Row],[75th]]-AAMC_Raw_Data_for_FY22[[#This Row],[Median]])/25)*20) + AAMC_Raw_Data_for_FY22[[#This Row],[Median]]","v":0},null,{"$f":"(((AAMC_Raw_Data_for_FY22[[#This Row],[75th]]-AAMC_Raw_Data_for_FY22[[#This Row],[Median]])/25)*30) + AAMC_Raw_Data_for_FY22[[#This Row],[Median]]","v":0},{"$f":"(((AAMC_Raw_Data_for_FY22[[#This Row],[75th]]-AAMC_Raw_Data_for_FY22[[#This Row],[Median]])/25)*35) + AAMC_Raw_Data_for_FY22[[#This Row],[Median]]","v":0},{"$f":"(((AAMC_Raw_Data_for_FY22[[#This Row],[75th]]-AAMC_Raw_Data_for_FY22[[#This Row],[Median]])/25)*40) + AAMC_Raw_Data_for_FY22[[#This Row],[Median]]","v":0}]
[{"$f":"AAMC_Raw_Data_for_FY22[[#This Row],[Source]]&AAMC_Raw_Data_for_FY22[[#This Row],[Type]]&AAMC_Raw_Data_for_FY22[[#This Row],[School Subset]]&AAMC_Raw_Data_for_FY22[[#This Row],[Rank]]&AAMC_Raw_Data_for_FY22[[#This Row],[Degree]]&AAMC_Raw_Data_for_FY22[[#This Row],[Department / Specialty]]&\"L\"","v":"AAMCAcademicAllInstructorPhDPathology TotalL"},"Pathology Total",5,"AAMC","Academic","All","Instructor","PhD","2021-2022",64576,{"$f":"(((AAMC_Raw_Data_for_FY22[[#This Row],[Median]]-AAMC_Raw_Data_for_FY22[[#This Row],[25th]])/25)*5) + AAMC_Raw_Data_for_FY22[[#This Row],[25th]]","v":66176.399999999994},{"$f":"(((AAMC_Raw_Data_for_FY22[[#This Row],[Median]]-AAMC_Raw_Data_for_FY22[[#This Row],[25th]])/25)*10) + AAMC_Raw_Data_for_FY22[[#This Row],[25th]]","v":67776.800000000003},{"$f":"(((AAMC_Raw_Data_for_FY22[[#This Row],[Median]]-AAMC_Raw_Data_for_FY22[[#This Row],[25th]])/25)*15) + AAMC_Raw_Data_for_FY22[[#This Row],[25th]]","v":69377.2},{"$f":"(((AAMC_Raw_Data_for_FY22[[#This Row],[Median]]-AAMC_Raw_Data_for_FY22[[#This Row],[25th]])/25)*20) + AAMC_Raw_Data_for_FY22[[#This Row],[25th]]","v":70977.600000000006},72578,{"$f":"(((AAMC_Raw_Data_for_FY22[[#This Row],[75th]]-AAMC_Raw_Data_for_FY22[[#This Row],[Median]])/25)*5) + AAMC_Raw_Data_for_FY22[[#This Row],[Median]]","v":74062.399999999994},{"$f":"(((AAMC_Raw_Data_for_FY22[[#This Row],[75th]]-AAMC_Raw_Data_for_FY22[[#This Row],[Median]])/25)*10) + AAMC_Raw_Data_for_FY22[[#This Row],[Median]]","v":75546.8},{"$f":"(((AAMC_Raw_Data_for_FY22[[#This Row],[75th]]-AAMC_Raw_Data_for_FY22[[#This Row],[Median]])/25)*15) + AAMC_Raw_Data_for_FY22[[#This Row],[Median]]","v":77031.199999999997},{"$f":"(((AAMC_Raw_Data_for_FY22[[#This Row],[75th]]-AAMC_Raw_Data_for_FY22[[#This Row],[Median]])/25)*20) + AAMC_Raw_Data_for_FY22[[#This Row],[Median]]","v":78515.600000000006},80000,{"$f":"(((AAMC_Raw_Data_for_FY22[[#This Row],[75th]]-AAMC_Raw_Data_for_FY22[[#This Row],[Median]])/25)*30) + AAMC_Raw_Data_for_FY22[[#This Row],[Median]]","v":81484.399999999994},{"$f":"(((AAMC_Raw_Data_for_FY22[[#This Row],[75th]]-AAMC_Raw_Data_for_FY22[[#This Row],[Median]])/25)*35) + AAMC_Raw_Data_for_FY22[[#This Row],[Median]]","v":82968.800000000003},{"$f":"(((AAMC_Raw_Data_for_FY22[[#This Row],[75th]]-AAMC_Raw_Data_for_FY22[[#This Row],[Median]])/25)*40) + AAMC_Raw_Data_for_FY22[[#This Row],[Median]]","v":84453.2}]
[{"$f":"AAMC_Raw_Data_for_FY22[[#This Row],[Source]]&AAMC_Raw_Data_for_FY22[[#This Row],[Type]]&AAMC_Raw_Data_for_FY22[[#This Row],[School Subset]]&AAMC_Raw_Data_for_FY22[[#This Row],[Rank]]&AAMC_Raw_Data_for_FY22[[#This Row],[Degree]]&AAMC_Raw_Data_for_FY22[[#This Row],[Department / Specialty]]&\"L\"","v":"AAMCAcademicAllAssistantPhDPathology TotalL"},"Pathology Total",4,"AAMC","Academic","All","Assistant","PhD","2021-2022",102652,{"$f":"(((AAMC_Raw_Data_for_FY22[[#This Row],[Median]]-AAMC_Raw_Data_for_FY22[[#This Row],[25th]])/25)*5) + AAMC_Raw_Data_for_FY22[[#This Row],[25th]]","v":108550.39999999999},{"$f":"(((AAMC_Raw_Data_for_FY22[[#This Row],[Median]]-AAMC_Raw_Data_for_FY22[[#This Row],[25th]])/25)*10) + AAMC_Raw_Data_for_FY22[[#This Row],[25th]]","v":114448.8},{"$f":"(((AAMC_Raw_Data_for_FY22[[#This Row],[Median]]-AAMC_Raw_Data_for_FY22[[#This Row],[25th]])/25)*15) + AAMC_Raw_Data_for_FY22[[#This Row],[25th]]","v":120347.2},{"$f":"(((AAMC_Raw_Data_for_FY22[[#This Row],[Median]]-AAMC_Raw_Data_for_FY22[[#This Row],[25th]])/25)*20) + AAMC_Raw_Data_for_FY22[[#This Row],[25th]]","v":126245.6},132144,{"$f":"(((AAMC_Raw_Data_for_FY22[[#This Row],[75th]]-AAMC_Raw_Data_for_FY22[[#This Row],[Median]])/25)*5) + AAMC_Raw_Data_for_FY22[[#This Row],[Median]]","v":138797.6},{"$f":"(((AAMC_Raw_Data_for_FY22[[#This Row],[75th]]-AAMC_Raw_Data_for_FY22[[#This Row],[Median]])/25)*10) + AAMC_Raw_Data_for_FY22[[#This Row],[Median]]","v":145451.20000000001},{"$f":"(((AAMC_Raw_Data_for_FY22[[#This Row],[75th]]-AAMC_Raw_Data_for_FY22[[#This Row],[Median]])/25)*15) + AAMC_Raw_Data_for_FY22[[#This Row],[Median]]","v":152104.79999999999},{"$f":"(((AAMC_Raw_Data_for_FY22[[#This Row],[75th]]-AAMC_Raw_Data_for_FY22[[#This Row],[Median]])/25)*20) + AAMC_Raw_Data_for_FY22[[#This Row],[Median]]","v":158758.39999999999},165412,{"$f":"(((AAMC_Raw_Data_for_FY22[[#This Row],[75th]]-AAMC_Raw_Data_for_FY22[[#This Row],[Median]])/25)*30) + AAMC_Raw_Data_for_FY22[[#This Row],[Median]]","v":172065.6},{"$f":"(((AAMC_Raw_Data_for_FY22[[#This Row],[75th]]-AAMC_Raw_Data_for_FY22[[#This Row],[Median]])/25)*35) + AAMC_Raw_Data_for_FY22[[#This Row],[Median]]","v":178719.2},{"$f":"(((AAMC_Raw_Data_for_FY22[[#This Row],[75th]]-AAMC_Raw_Data_for_FY22[[#This Row],[Median]])/25)*40) + AAMC_Raw_Data_for_FY22[[#This Row],[Median]]","v":185372.79999999999}]
[{"$f":"AAMC_Raw_Data_for_FY22[[#This Row],[Source]]&AAMC_Raw_Data_for_FY22[[#This Row],[Type]]&AAMC_Raw_Data_for_FY22[[#This Row],[School Subset]]&AAMC_Raw_Data_for_FY22[[#This Row],[Rank]]&AAMC_Raw_Data_for_FY22[[#This Row],[Degree]]&AAMC_Raw_Data_for_FY22[[#This Row],[Department / Specialty]]&\"L\"","v":"AAMCAcademicAllAssociatePhDPathology TotalL"},"Pathology Total",3,"AAMC","Academic","All","Associate","PhD","2021-2022",130503,{"$f":"(((AAMC_Raw_Data_for_FY22[[#This Row],[Median]]-AAMC_Raw_Data_for_FY22[[#This Row],[25th]])/25)*5) + AAMC_Raw_Data_for_FY22[[#This Row],[25th]]","v":137233.79999999999},{"$f":"(((AAMC_Raw_Data_for_FY22[[#This Row],[Median]]-AAMC_Raw_Data_for_FY22[[#This Row],[25th]])/25)*10) + AAMC_Raw_Data_for_FY22[[#This Row],[25th]]","v":143964.6},{"$f":"(((AAMC_Raw_Data_for_FY22[[#This Row],[Median]]-AAMC_Raw_Data_for_FY22[[#This Row],[25th]])/25)*15) + AAMC_Raw_Data_for_FY22[[#This Row],[25th]]","v":150695.4},{"$f":"(((AAMC_Raw_Data_for_FY22[[#This Row],[Median]]-AAMC_Raw_Data_for_FY22[[#This Row],[25th]])/25)*20) + AAMC_Raw_Data_for_FY22[[#This Row],[25th]]","v":157426.20000000001},164157,{"$f":"(((AAMC_Raw_Data_for_FY22[[#This Row],[75th]]-AAMC_Raw_Data_for_FY22[[#This Row],[Median]])/25)*5) + AAMC_Raw_Data_for_FY22[[#This Row],[Median]]","v":172835.20000000001},{"$f":"(((AAMC_Raw_Data_for_FY22[[#This Row],[75th]]-AAMC_Raw_Data_for_FY22[[#This Row],[Median]])/25)*10) + AAMC_Raw_Data_for_FY22[[#This Row],[Median]]","v":181513.4},{"$f":"(((AAMC_Raw_Data_for_FY22[[#This Row],[75th]]-AAMC_Raw_Data_for_FY22[[#This Row],[Median]])/25)*15) + AAMC_Raw_Data_for_FY22[[#This Row],[Median]]","v":190191.6},{"$f":"(((AAMC_Raw_Data_for_FY22[[#This Row],[75th]]-AAMC_Raw_Data_for_FY22[[#This Row],[Median]])/25)*20) + AAMC_Raw_Data_for_FY22[[#This Row],[Median]]","v":198869.8},207548,{"$f":"(((AAMC_Raw_Data_for_FY22[[#This Row],[75th]]-AAMC_Raw_Data_for_FY22[[#This Row],[Median]])/25)*30) + AAMC_Raw_Data_for_FY22[[#This Row],[Median]]","v":216226.2},{"$f":"(((AAMC_Raw_Data_for_FY22[[#This Row],[75th]]-AAMC_Raw_Data_for_FY22[[#This Row],[Median]])/25)*35) + AAMC_Raw_Data_for_FY22[[#This Row],[Median]]","v":224904.4},{"$f":"(((AAMC_Raw_Data_for_FY22[[#This Row],[75th]]-AAMC_Raw_Data_for_FY22[[#This Row],[Median]])/25)*40) + AAMC_Raw_Data_for_FY22[[#This Row],[Median]]","v":233582.6}]
[{"$f":"AAMC_Raw_Data_for_FY22[[#This Row],[Source]]&AAMC_Raw_Data_for_FY22[[#This Row],[Type]]&AAMC_Raw_Data_for_FY22[[#This Row],[School Subset]]&AAMC_Raw_Data_for_FY22[[#This Row],[Rank]]&AAMC_Raw_Data_for_FY22[[#This Row],[Degree]]&AAMC_Raw_Data_for_FY22[[#This Row],[Department / Specialty]]&\"L\"","v":"AAMCAcademicAllProfessorPhDPathology TotalL"},"Pathology Total",2,"AAMC","Academic","All","Professor","PhD","2021-2022",189208,{"$f":"(((AAMC_Raw_Data_for_FY22[[#This Row],[Median]]-AAMC_Raw_Data_for_FY22[[#This Row],[25th]])/25)*5) + AAMC_Raw_Data_for_FY22[[#This Row],[25th]]","v":195915},{"$f":"(((AAMC_Raw_Data_for_FY22[[#This Row],[Median]]-AAMC_Raw_Data_for_FY22[[#This Row],[25th]])/25)*10) + AAMC_Raw_Data_for_FY22[[#This Row],[25th]]","v":202622},{"$f":"(((AAMC_Raw_Data_for_FY22[[#This Row],[Median]]-AAMC_Raw_Data_for_FY22[[#This Row],[25th]])/25)*15) + AAMC_Raw_Data_for_FY22[[#This Row],[25th]]","v":209329},{"$f":"(((AAMC_Raw_Data_for_FY22[[#This Row],[Median]]-AAMC_Raw_Data_for_FY22[[#This Row],[25th]])/25)*20) + AAMC_Raw_Data_for_FY22[[#This Row],[25th]]","v":216036},222743,{"$f":"(((AAMC_Raw_Data_for_FY22[[#This Row],[75th]]-AAMC_Raw_Data_for_FY22[[#This Row],[Median]])/25)*5) + AAMC_Raw_Data_for_FY22[[#This Row],[Median]]","v":233829.6},{"$f":"(((AAMC_Raw_Data_for_FY22[[#This Row],[75th]]-AAMC_Raw_Data_for_FY22[[#This Row],[Median]])/25)*10) + AAMC_Raw_Data_for_FY22[[#This Row],[Median]]","v":244916.2},{"$f":"(((AAMC_Raw_Data_for_FY22[[#This Row],[75th]]-AAMC_Raw_Data_for_FY22[[#This Row],[Median]])/25)*15) + AAMC_Raw_Data_for_FY22[[#This Row],[Median]]","v":256002.8},{"$f":"(((AAMC_Raw_Data_for_FY22[[#This Row],[75th]]-AAMC_Raw_Data_for_FY22[[#This Row],[Median]])/25)*20) + AAMC_Raw_Data_for_FY22[[#This Row],[Median]]","v":267089.40000000002},278176,{"$f":"(((AAMC_Raw_Data_for_FY22[[#This Row],[75th]]-AAMC_Raw_Data_for_FY22[[#This Row],[Median]])/25)*30) + AAMC_Raw_Data_for_FY22[[#This Row],[Median]]","v":289262.59999999998},{"$f":"(((AAMC_Raw_Data_for_FY22[[#This Row],[75th]]-AAMC_Raw_Data_for_FY22[[#This Row],[Median]])/25)*35) + AAMC_Raw_Data_for_FY22[[#This Row],[Median]]","v":300349.2},{"$f":"(((AAMC_Raw_Data_for_FY22[[#This Row],[75th]]-AAMC_Raw_Data_for_FY22[[#This Row],[Median]])/25)*40) + AAMC_Raw_Data_for_FY22[[#This Row],[Median]]","v":311435.8}]
[{"$f":"AAMC_Raw_Data_for_FY22[[#This Row],[Source]]&AAMC_Raw_Data_for_FY22[[#This Row],[Type]]&AAMC_Raw_Data_for_FY22[[#This Row],[School Subset]]&AAMC_Raw_Data_for_FY22[[#This Row],[Rank]]&AAMC_Raw_Data_for_FY22[[#This Row],[Degree]]&AAMC_Raw_Data_for_FY22[[#This Row],[Department / Specialty]]&\"L\"","v":"AAMCAcademicAllChiefPhDPathology TotalL"},"Pathology Total",6,"AAMC","Academic","All","Chief","PhD","2021-2022",272842,{"$f":"(((AAMC_Raw_Data_for_FY22[[#This Row],[Median]]-AAMC_Raw_Data_for_FY22[[#This Row],[25th]])/25)*5) + AAMC_Raw_Data_for_FY22[[#This Row],[25th]]","v":286704.40000000002},{"$f":"(((AAMC_Raw_Data_for_FY22[[#This Row],[Median]]-AAMC_Raw_Data_for_FY22[[#This Row],[25th]])/25)*10) + AAMC_Raw_Data_for_FY22[[#This Row],[25th]]","v":300566.8},{"$f":"(((AAMC_Raw_Data_for_FY22[[#This Row],[Median]]-AAMC_Raw_Data_for_FY22[[#This Row],[25th]])/25)*15) + AAMC_Raw_Data_for_FY22[[#This Row],[25th]]","v":314429.2},{"$f":"(((AAMC_Raw_Data_for_FY22[[#This Row],[Median]]-AAMC_Raw_Data_for_FY22[[#This Row],[25th]])/25)*20) + AAMC_Raw_Data_for_FY22[[#This Row],[25th]]","v":328291.59999999998},342154,{"$f":"(((AAMC_Raw_Data_for_FY22[[#This Row],[75th]]-AAMC_Raw_Data_for_FY22[[#This Row],[Median]])/25)*5) + AAMC_Raw_Data_for_FY22[[#This Row],[Median]]","v":349130},{"$f":"(((AAMC_Raw_Data_for_FY22[[#This Row],[75th]]-AAMC_Raw_Data_for_FY22[[#This Row],[Median]])/25)*10) + AAMC_Raw_Data_for_FY22[[#This Row],[Median]]","v":356106},{"$f":"(((AAMC_Raw_Data_for_FY22[[#This Row],[75th]]-AAMC_Raw_Data_for_FY22[[#This Row],[Median]])/25)*15) + AAMC_Raw_Data_for_FY22[[#This Row],[Median]]","v":363082},{"$f":"(((AAMC_Raw_Data_for_FY22[[#This Row],[75th]]-AAMC_Raw_Data_for_FY22[[#This Row],[Median]])/25)*20) + AAMC_Raw_Data_for_FY22[[#This Row],[Median]]","v":370058},377034,{"$f":"(((AAMC_Raw_Data_for_FY22[[#This Row],[75th]]-AAMC_Raw_Data_for_FY22[[#This Row],[Median]])/25)*30) + AAMC_Raw_Data_for_FY22[[#This Row],[Median]]","v":384010},{"$f":"(((AAMC_Raw_Data_for_FY22[[#This Row],[75th]]-AAMC_Raw_Data_for_FY22[[#This Row],[Median]])/25)*35) + AAMC_Raw_Data_for_FY22[[#This Row],[Median]]","v":390986},{"$f":"(((AAMC_Raw_Data_for_FY22[[#This Row],[75th]]-AAMC_Raw_Data_for_FY22[[#This Row],[Median]])/25)*40) + AAMC_Raw_Data_for_FY22[[#This Row],[Median]]","v":397962}]
[{"$f":"AAMC_Raw_Data_for_FY22[[#This Row],[Source]]&AAMC_Raw_Data_for_FY22[[#This Row],[Type]]&AAMC_Raw_Data_for_FY22[[#This Row],[School Subset]]&AAMC_Raw_Data_for_FY22[[#This Row],[Rank]]&AAMC_Raw_Data_for_FY22[[#This Row],[Degree]]&AAMC_Raw_Data_for_FY22[[#This Row],[Department / Specialty]]&\"L\"","v":"AAMCAcademicAllChairPhDPathology TotalL"},"Pathology Total",1,"AAMC","Academic","All","Chair","PhD","2021-2022",294448,{"$f":"(((AAMC_Raw_Data_for_FY22[[#This Row],[Median]]-AAMC_Raw_Data_for_FY22[[#This Row],[25th]])/25)*5) + AAMC_Raw_Data_for_FY22[[#This Row],[25th]]","v":335558.40000000002},{"$f":"(((AAMC_Raw_Data_for_FY22[[#This Row],[Median]]-AAMC_Raw_Data_for_FY22[[#This Row],[25th]])/25)*10) + AAMC_Raw_Data_for_FY22[[#This Row],[25th]]","v":376668.8},{"$f":"(((AAMC_Raw_Data_for_FY22[[#This Row],[Median]]-AAMC_Raw_Data_for_FY22[[#This Row],[25th]])/25)*15) + AAMC_Raw_Data_for_FY22[[#This Row],[25th]]","v":417779.20000000001},{"$f":"(((AAMC_Raw_Data_for_FY22[[#This Row],[Median]]-AAMC_Raw_Data_for_FY22[[#This Row],[25th]])/25)*20) + AAMC_Raw_Data_for_FY22[[#This Row],[25th]]","v":458889.6},500000,{"$f":"(((AAMC_Raw_Data_for_FY22[[#This Row],[75th]]-AAMC_Raw_Data_for_FY22[[#This Row],[Median]])/25)*5) + AAMC_Raw_Data_for_FY22[[#This Row],[Median]]","v":512750},{"$f":"(((AAMC_Raw_Data_for_FY22[[#This Row],[75th]]-AAMC_Raw_Data_for_FY22[[#This Row],[Median]])/25)*10) + AAMC_Raw_Data_for_FY22[[#This Row],[Median]]","v":525500},{"$f":"(((AAMC_Raw_Data_for_FY22[[#This Row],[75th]]-AAMC_Raw_Data_for_FY22[[#This Row],[Median]])/25)*15) + AAMC_Raw_Data_for_FY22[[#This Row],[Median]]","v":538250},{"$f":"(((AAMC_Raw_Data_for_FY22[[#This Row],[75th]]-AAMC_Raw_Data_for_FY22[[#This Row],[Median]])/25)*20) + AAMC_Raw_Data_for_FY22[[#This Row],[Median]]","v":551000},563750,{"$f":"(((AAMC_Raw_Data_for_FY22[[#This Row],[75th]]-AAMC_Raw_Data_for_FY22[[#This Row],[Median]])/25)*30) + AAMC_Raw_Data_for_FY22[[#This Row],[Median]]","v":576500},{"$f":"(((AAMC_Raw_Data_for_FY22[[#This Row],[75th]]-AAMC_Raw_Data_for_FY22[[#This Row],[Median]])/25)*35) + AAMC_Raw_Data_for_FY22[[#This Row],[Median]]","v":589250},{"$f":"(((AAMC_Raw_Data_for_FY22[[#This Row],[75th]]-AAMC_Raw_Data_for_FY22[[#This Row],[Median]])/25)*40) + AAMC_Raw_Data_for_FY22[[#This Row],[Median]]","v":602000}]
[{"$f":"AAMC_Raw_Data_for_FY22[[#This Row],[Source]]&AAMC_Raw_Data_for_FY22[[#This Row],[Type]]&AAMC_Raw_Data_for_FY22[[#This Row],[School Subset]]&AAMC_Raw_Data_for_FY22[[#This Row],[Rank]]&AAMC_Raw_Data_for_FY22[[#This Row],[Degree]]&AAMC_Raw_Data_for_FY22[[#This Row],[Department / Specialty]]&\"L\"","v":"AAMCAcademicAllInstructorPhDPathology: AnatomicL"},"Pathology: Anatomic",5,"AAMC","Academic","All","Instructor","PhD","2021-2022",67238,{"$f":"(((AAMC_Raw_Data_for_FY22[[#This Row],[Median]]-AAMC_Raw_Data_for_FY22[[#This Row],[25th]])/25)*5) + AAMC_Raw_Data_for_FY22[[#This Row],[25th]]","v":68243.199999999997},{"$f":"(((AAMC_Raw_Data_for_FY22[[#This Row],[Median]]-AAMC_Raw_Data_for_FY22[[#This Row],[25th]])/25)*10) + AAMC_Raw_Data_for_FY22[[#This Row],[25th]]","v":69248.399999999994},{"$f":"(((AAMC_Raw_Data_for_FY22[[#This Row],[Median]]-AAMC_Raw_Data_for_FY22[[#This Row],[25th]])/25)*15) + AAMC_Raw_Data_for_FY22[[#This Row],[25th]]","v":70253.600000000006},{"$f":"(((AAMC_Raw_Data_for_FY22[[#This Row],[Median]]-AAMC_Raw_Data_for_FY22[[#This Row],[25th]])/25)*20) + AAMC_Raw_Data_for_FY22[[#This Row],[25th]]","v":71258.8},72264,{"$f":"(((AAMC_Raw_Data_for_FY22[[#This Row],[75th]]-AAMC_Raw_Data_for_FY22[[#This Row],[Median]])/25)*5) + AAMC_Raw_Data_for_FY22[[#This Row],[Median]]","v":75162.2},{"$f":"(((AAMC_Raw_Data_for_FY22[[#This Row],[75th]]-AAMC_Raw_Data_for_FY22[[#This Row],[Median]])/25)*10) + AAMC_Raw_Data_for_FY22[[#This Row],[Median]]","v":78060.399999999994},{"$f":"(((AAMC_Raw_Data_for_FY22[[#This Row],[75th]]-AAMC_Raw_Data_for_FY22[[#This Row],[Median]])/25)*15) + AAMC_Raw_Data_for_FY22[[#This Row],[Median]]","v":80958.600000000006},{"$f":"(((AAMC_Raw_Data_for_FY22[[#This Row],[75th]]-AAMC_Raw_Data_for_FY22[[#This Row],[Median]])/25)*20) + AAMC_Raw_Data_for_FY22[[#This Row],[Median]]","v":83856.800000000003},86755,{"$f":"(((AAMC_Raw_Data_for_FY22[[#This Row],[75th]]-AAMC_Raw_Data_for_FY22[[#This Row],[Median]])/25)*30) + AAMC_Raw_Data_for_FY22[[#This Row],[Median]]","v":89653.2},{"$f":"(((AAMC_Raw_Data_for_FY22[[#This Row],[75th]]-AAMC_Raw_Data_for_FY22[[#This Row],[Median]])/25)*35) + AAMC_Raw_Data_for_FY22[[#This Row],[Median]]","v":92551.4},{"$f":"(((AAMC_Raw_Data_for_FY22[[#This Row],[75th]]-AAMC_Raw_Data_for_FY22[[#This Row],[Median]])/25)*40) + AAMC_Raw_Data_for_FY22[[#This Row],[Median]]","v":95449.600000000006}]
[{"$f":"AAMC_Raw_Data_for_FY22[[#This Row],[Source]]&AAMC_Raw_Data_for_FY22[[#This Row],[Type]]&AAMC_Raw_Data_for_FY22[[#This Row],[School Subset]]&AAMC_Raw_Data_for_FY22[[#This Row],[Rank]]&AAMC_Raw_Data_for_FY22[[#This Row],[Degree]]&AAMC_Raw_Data_for_FY22[[#This Row],[Department / Specialty]]&\"L\"","v":"AAMCAcademicAllAssistantPhDPathology: AnatomicL"},"Pathology: Anatomic",4,"AAMC","Academic","All","Assistant","PhD","2021-2022",110059,{"$f":"(((AAMC_Raw_Data_for_FY22[[#This Row],[Median]]-AAMC_Raw_Data_for_FY22[[#This Row],[25th]])/25)*5) + AAMC_Raw_Data_for_FY22[[#This Row],[25th]]","v":117347.2},{"$f":"(((AAMC_Raw_Data_for_FY22[[#This Row],[Median]]-AAMC_Raw_Data_for_FY22[[#This Row],[25th]])/25)*10) + AAMC_Raw_Data_for_FY22[[#This Row],[25th]]","v":124635.4},{"$f":"(((AAMC_Raw_Data_for_FY22[[#This Row],[Median]]-AAMC_Raw_Data_for_FY22[[#This Row],[25th]])/25)*15) + AAMC_Raw_Data_for_FY22[[#This Row],[25th]]","v":131923.6},{"$f":"(((AAMC_Raw_Data_for_FY22[[#This Row],[Median]]-AAMC_Raw_Data_for_FY22[[#This Row],[25th]])/25)*20) + AAMC_Raw_Data_for_FY22[[#This Row],[25th]]","v":139211.79999999999},146500,{"$f":"(((AAMC_Raw_Data_for_FY22[[#This Row],[75th]]-AAMC_Raw_Data_for_FY22[[#This Row],[Median]])/25)*5) + AAMC_Raw_Data_for_FY22[[#This Row],[Median]]","v":162274},{"$f":"(((AAMC_Raw_Data_for_FY22[[#This Row],[75th]]-AAMC_Raw_Data_for_FY22[[#This Row],[Median]])/25)*10) + AAMC_Raw_Data_for_FY22[[#This Row],[Median]]","v":178048},{"$f":"(((AAMC_Raw_Data_for_FY22[[#This Row],[75th]]-AAMC_Raw_Data_for_FY22[[#This Row],[Median]])/25)*15) + AAMC_Raw_Data_for_FY22[[#This Row],[Median]]","v":193822},{"$f":"(((AAMC_Raw_Data_for_FY22[[#This Row],[75th]]-AAMC_Raw_Data_for_FY22[[#This Row],[Median]])/25)*20) + AAMC_Raw_Data_for_FY22[[#This Row],[Median]]","v":209596},225370,{"$f":"(((AAMC_Raw_Data_for_FY22[[#This Row],[75th]]-AAMC_Raw_Data_for_FY22[[#This Row],[Median]])/25)*30) + AAMC_Raw_Data_for_FY22[[#This Row],[Median]]","v":241144},{"$f":"(((AAMC_Raw_Data_for_FY22[[#This Row],[75th]]-AAMC_Raw_Data_for_FY22[[#This Row],[Median]])/25)*35) + AAMC_Raw_Data_for_FY22[[#This Row],[Median]]","v":256918},{"$f":"(((AAMC_Raw_Data_for_FY22[[#This Row],[75th]]-AAMC_Raw_Data_for_FY22[[#This Row],[Median]])/25)*40) + AAMC_Raw_Data_for_FY22[[#This Row],[Median]]","v":272692}]
[{"$f":"AAMC_Raw_Data_for_FY22[[#This Row],[Source]]&AAMC_Raw_Data_for_FY22[[#This Row],[Type]]&AAMC_Raw_Data_for_FY22[[#This Row],[School Subset]]&AAMC_Raw_Data_for_FY22[[#This Row],[Rank]]&AAMC_Raw_Data_for_FY22[[#This Row],[Degree]]&AAMC_Raw_Data_for_FY22[[#This Row],[Department / Specialty]]&\"L\"","v":"AAMCAcademicAllAssociatePhDPathology: AnatomicL"},"Pathology: Anatomic",3,"AAMC","Academic","All","Associate","PhD","2021-2022",142029,{"$f":"(((AAMC_Raw_Data_for_FY22[[#This Row],[Median]]-AAMC_Raw_Data_for_FY22[[#This Row],[25th]])/25)*5) + AAMC_Raw_Data_for_FY22[[#This Row],[25th]]","v":152250.4},{"$f":"(((AAMC_Raw_Data_for_FY22[[#This Row],[Median]]-AAMC_Raw_Data_for_FY22[[#This Row],[25th]])/25)*10) + AAMC_Raw_Data_for_FY22[[#This Row],[25th]]","v":162471.79999999999},{"$f":"(((AAMC_Raw_Data_for_FY22[[#This Row],[Median]]-AAMC_Raw_Data_for_FY22[[#This Row],[25th]])/25)*15) + AAMC_Raw_Data_for_FY22[[#This Row],[25th]]","v":172693.2},{"$f":"(((AAMC_Raw_Data_for_FY22[[#This Row],[Median]]-AAMC_Raw_Data_for_FY22[[#This Row],[25th]])/25)*20) + AAMC_Raw_Data_for_FY22[[#This Row],[25th]]","v":182914.6},193136,{"$f":"(((AAMC_Raw_Data_for_FY22[[#This Row],[75th]]-AAMC_Raw_Data_for_FY22[[#This Row],[Median]])/25)*5) + AAMC_Raw_Data_for_FY22[[#This Row],[Median]]","v":203613.6},{"$f":"(((AAMC_Raw_Data_for_FY22[[#This Row],[75th]]-AAMC_Raw_Data_for_FY22[[#This Row],[Median]])/25)*10) + AAMC_Raw_Data_for_FY22[[#This Row],[Median]]","v":214091.2},{"$f":"(((AAMC_Raw_Data_for_FY22[[#This Row],[75th]]-AAMC_Raw_Data_for_FY22[[#This Row],[Median]])/25)*15) + AAMC_Raw_Data_for_FY22[[#This Row],[Median]]","v":224568.8},{"$f":"(((AAMC_Raw_Data_for_FY22[[#This Row],[75th]]-AAMC_Raw_Data_for_FY22[[#This Row],[Median]])/25)*20) + AAMC_Raw_Data_for_FY22[[#This Row],[Median]]","v":235046.39999999999},245524,{"$f":"(((AAMC_Raw_Data_for_FY22[[#This Row],[75th]]-AAMC_Raw_Data_for_FY22[[#This Row],[Median]])/25)*30) + AAMC_Raw_Data_for_FY22[[#This Row],[Median]]","v":256001.6},{"$f":"(((AAMC_Raw_Data_for_FY22[[#This Row],[75th]]-AAMC_Raw_Data_for_FY22[[#This Row],[Median]])/25)*35) + AAMC_Raw_Data_for_FY22[[#This Row],[Median]]","v":266479.2},{"$f":"(((AAMC_Raw_Data_for_FY22[[#This Row],[75th]]-AAMC_Raw_Data_for_FY22[[#This Row],[Median]])/25)*40) + AAMC_Raw_Data_for_FY22[[#This Row],[Median]]","v":276956.79999999999}]
[{"$f":"AAMC_Raw_Data_for_FY22[[#This Row],[Source]]&AAMC_Raw_Data_for_FY22[[#This Row],[Type]]&AAMC_Raw_Data_for_FY22[[#This Row],[School Subset]]&AAMC_Raw_Data_for_FY22[[#This Row],[Rank]]&AAMC_Raw_Data_for_FY22[[#This Row],[Degree]]&AAMC_Raw_Data_for_FY22[[#This Row],[Department / Specialty]]&\"L\"","v":"AAMCAcademicAllProfessorPhDPathology: AnatomicL"},"Pathology: Anatomic",2,"AAMC","Academic","All","Professor","PhD","2021-2022",177620,{"$f":"(((AAMC_Raw_Data_for_FY22[[#This Row],[Median]]-AAMC_Raw_Data_for_FY22[[#This Row],[25th]])/25)*5) + AAMC_Raw_Data_for_FY22[[#This Row],[25th]]","v":186611},{"$f":"(((AAMC_Raw_Data_for_FY22[[#This Row],[Median]]-AAMC_Raw_Data_for_FY22[[#This Row],[25th]])/25)*10) + AAMC_Raw_Data_for_FY22[[#This Row],[25th]]","v":195602},{"$f":"(((AAMC_Raw_Data_for_FY22[[#This Row],[Median]]-AAMC_Raw_Data_for_FY22[[#This Row],[25th]])/25)*15) + AAMC_Raw_Data_for_FY22[[#This Row],[25th]]","v":204593},{"$f":"(((AAMC_Raw_Data_for_FY22[[#This Row],[Median]]-AAMC_Raw_Data_for_FY22[[#This Row],[25th]])/25)*20) + AAMC_Raw_Data_for_FY22[[#This Row],[25th]]","v":213584},222575,{"$f":"(((AAMC_Raw_Data_for_FY22[[#This Row],[75th]]-AAMC_Raw_Data_for_FY22[[#This Row],[Median]])/25)*5) + AAMC_Raw_Data_for_FY22[[#This Row],[Median]]","v":238830},{"$f":"(((AAMC_Raw_Data_for_FY22[[#This Row],[75th]]-AAMC_Raw_Data_for_FY22[[#This Row],[Median]])/25)*10) + AAMC_Raw_Data_for_FY22[[#This Row],[Median]]","v":255085},{"$f":"(((AAMC_Raw_Data_for_FY22[[#This Row],[75th]]-AAMC_Raw_Data_for_FY22[[#This Row],[Median]])/25)*15) + AAMC_Raw_Data_for_FY22[[#This Row],[Median]]","v":271340},{"$f":"(((AAMC_Raw_Data_for_FY22[[#This Row],[75th]]-AAMC_Raw_Data_for_FY22[[#This Row],[Median]])/25)*20) + AAMC_Raw_Data_for_FY22[[#This Row],[Median]]","v":287595},303850,{"$f":"(((AAMC_Raw_Data_for_FY22[[#This Row],[75th]]-AAMC_Raw_Data_for_FY22[[#This Row],[Median]])/25)*30) + AAMC_Raw_Data_for_FY22[[#This Row],[Median]]","v":320105},{"$f":"(((AAMC_Raw_Data_for_FY22[[#This Row],[75th]]-AAMC_Raw_Data_for_FY22[[#This Row],[Median]])/25)*35) + AAMC_Raw_Data_for_FY22[[#This Row],[Median]]","v":336360},{"$f":"(((AAMC_Raw_Data_for_FY22[[#This Row],[75th]]-AAMC_Raw_Data_for_FY22[[#This Row],[Median]])/25)*40) + AAMC_Raw_Data_for_FY22[[#This Row],[Median]]","v":352615}]
[{"$f":"AAMC_Raw_Data_for_FY22[[#This Row],[Source]]&AAMC_Raw_Data_for_FY22[[#This Row],[Type]]&AAMC_Raw_Data_for_FY22[[#This Row],[School Subset]]&AAMC_Raw_Data_for_FY22[[#This Row],[Rank]]&AAMC_Raw_Data_for_FY22[[#This Row],[Degree]]&AAMC_Raw_Data_for_FY22[[#This Row],[Department / Specialty]]&\"L\"","v":"AAMCAcademicAllChiefPhDPathology: AnatomicL"},"Pathology: Anatomic",6,"AAMC","Academic","All","Chief","PhD","2021-2022",null,{"$f":"(((AAMC_Raw_Data_for_FY22[[#This Row],[Median]]-AAMC_Raw_Data_for_FY22[[#This Row],[25th]])/25)*5) + AAMC_Raw_Data_for_FY22[[#This Row],[25th]]","v":0},{"$f":"(((AAMC_Raw_Data_for_FY22[[#This Row],[Median]]-AAMC_Raw_Data_for_FY22[[#This Row],[25th]])/25)*10) + AAMC_Raw_Data_for_FY22[[#This Row],[25th]]","v":0},{"$f":"(((AAMC_Raw_Data_for_FY22[[#This Row],[Median]]-AAMC_Raw_Data_for_FY22[[#This Row],[25th]])/25)*15) + AAMC_Raw_Data_for_FY22[[#This Row],[25th]]","v":0},{"$f":"(((AAMC_Raw_Data_for_FY22[[#This Row],[Median]]-AAMC_Raw_Data_for_FY22[[#This Row],[25th]])/25)*20) + AAMC_Raw_Data_for_FY22[[#This Row],[25th]]","v":0},null,{"$f":"(((AAMC_Raw_Data_for_FY22[[#This Row],[75th]]-AAMC_Raw_Data_for_FY22[[#This Row],[Median]])/25)*5) + AAMC_Raw_Data_for_FY22[[#This Row],[Median]]","v":0},{"$f":"(((AAMC_Raw_Data_for_FY22[[#This Row],[75th]]-AAMC_Raw_Data_for_FY22[[#This Row],[Median]])/25)*10) + AAMC_Raw_Data_for_FY22[[#This Row],[Median]]","v":0},{"$f":"(((AAMC_Raw_Data_for_FY22[[#This Row],[75th]]-AAMC_Raw_Data_for_FY22[[#This Row],[Median]])/25)*15) + AAMC_Raw_Data_for_FY22[[#This Row],[Median]]","v":0},{"$f":"(((AAMC_Raw_Data_for_FY22[[#This Row],[75th]]-AAMC_Raw_Data_for_FY22[[#This Row],[Median]])/25)*20) + AAMC_Raw_Data_for_FY22[[#This Row],[Median]]","v":0},null,{"$f":"(((AAMC_Raw_Data_for_FY22[[#This Row],[75th]]-AAMC_Raw_Data_for_FY22[[#This Row],[Median]])/25)*30) + AAMC_Raw_Data_for_FY22[[#This Row],[Median]]","v":0},{"$f":"(((AAMC_Raw_Data_for_FY22[[#This Row],[75th]]-AAMC_Raw_Data_for_FY22[[#This Row],[Median]])/25)*35) + AAMC_Raw_Data_for_FY22[[#This Row],[Median]]","v":0},{"$f":"(((AAMC_Raw_Data_for_FY22[[#This Row],[75th]]-AAMC_Raw_Data_for_FY22[[#This Row],[Median]])/25)*40) + AAMC_Raw_Data_for_FY22[[#This Row],[Median]]","v":0}]
[{"$f":"AAMC_Raw_Data_for_FY22[[#This Row],[Source]]&AAMC_Raw_Data_for_FY22[[#This Row],[Type]]&AAMC_Raw_Data_for_FY22[[#This Row],[School Subset]]&AAMC_Raw_Data_for_FY22[[#This Row],[Rank]]&AAMC_Raw_Data_for_FY22[[#This Row],[Degree]]&AAMC_Raw_Data_for_FY22[[#This Row],[Department / Specialty]]&\"L\"","v":"AAMCAcademicAllChairPhDPathology: AnatomicL"},"Pathology: Anatomic",1,"AAMC","Academic","All","Chair","PhD","2021-2022",null,{"$f":"(((AAMC_Raw_Data_for_FY22[[#This Row],[Median]]-AAMC_Raw_Data_for_FY22[[#This Row],[25th]])/25)*5) + AAMC_Raw_Data_for_FY22[[#This Row],[25th]]","v":0},{"$f":"(((AAMC_Raw_Data_for_FY22[[#This Row],[Median]]-AAMC_Raw_Data_for_FY22[[#This Row],[25th]])/25)*10) + AAMC_Raw_Data_for_FY22[[#This Row],[25th]]","v":0},{"$f":"(((AAMC_Raw_Data_for_FY22[[#This Row],[Median]]-AAMC_Raw_Data_for_FY22[[#This Row],[25th]])/25)*15) + AAMC_Raw_Data_for_FY22[[#This Row],[25th]]","v":0},{"$f":"(((AAMC_Raw_Data_for_FY22[[#This Row],[Median]]-AAMC_Raw_Data_for_FY22[[#This Row],[25th]])/25)*20) + AAMC_Raw_Data_for_FY22[[#This Row],[25th]]","v":0},null,{"$f":"(((AAMC_Raw_Data_for_FY22[[#This Row],[75th]]-AAMC_Raw_Data_for_FY22[[#This Row],[Median]])/25)*5) + AAMC_Raw_Data_for_FY22[[#This Row],[Median]]","v":0},{"$f":"(((AAMC_Raw_Data_for_FY22[[#This Row],[75th]]-AAMC_Raw_Data_for_FY22[[#This Row],[Median]])/25)*10) + AAMC_Raw_Data_for_FY22[[#This Row],[Median]]","v":0},{"$f":"(((AAMC_Raw_Data_for_FY22[[#This Row],[75th]]-AAMC_Raw_Data_for_FY22[[#This Row],[Median]])/25)*15) + AAMC_Raw_Data_for_FY22[[#This Row],[Median]]","v":0},{"$f":"(((AAMC_Raw_Data_for_FY22[[#This Row],[75th]]-AAMC_Raw_Data_for_FY22[[#This Row],[Median]])/25)*20) + AAMC_Raw_Data_for_FY22[[#This Row],[Median]]","v":0},null,{"$f":"(((AAMC_Raw_Data_for_FY22[[#This Row],[75th]]-AAMC_Raw_Data_for_FY22[[#This Row],[Median]])/25)*30) + AAMC_Raw_Data_for_FY22[[#This Row],[Median]]","v":0},{"$f":"(((AAMC_Raw_Data_for_FY22[[#This Row],[75th]]-AAMC_Raw_Data_for_FY22[[#This Row],[Median]])/25)*35) + AAMC_Raw_Data_for_FY22[[#This Row],[Median]]","v":0},{"$f":"(((AAMC_Raw_Data_for_FY22[[#This Row],[75th]]-AAMC_Raw_Data_for_FY22[[#This Row],[Median]])/25)*40) + AAMC_Raw_Data_for_FY22[[#This Row],[Median]]","v":0}]
[{"$f":"AAMC_Raw_Data_for_FY22[[#This Row],[Source]]&AAMC_Raw_Data_for_FY22[[#This Row],[Type]]&AAMC_Raw_Data_for_FY22[[#This Row],[School Subset]]&AAMC_Raw_Data_for_FY22[[#This Row],[Rank]]&AAMC_Raw_Data_for_FY22[[#This Row],[Degree]]&AAMC_Raw_Data_for_FY22[[#This Row],[Department / Specialty]]&\"L\"","v":"AAMCAcademicAllInstructorPhDPathology: ClinicalL"},"Pathology: Clinical",5,"AAMC","Academic","All","Instructor","PhD","2021-2022",64912,{"$f":"(((AAMC_Raw_Data_for_FY22[[#This Row],[Median]]-AAMC_Raw_Data_for_FY22[[#This Row],[25th]])/25)*5) + AAMC_Raw_Data_for_FY22[[#This Row],[25th]]","v":66181.2},{"$f":"(((AAMC_Raw_Data_for_FY22[[#This Row],[Median]]-AAMC_Raw_Data_for_FY22[[#This Row],[25th]])/25)*10) + AAMC_Raw_Data_for_FY22[[#This Row],[25th]]","v":67450.399999999994},{"$f":"(((AAMC_Raw_Data_for_FY22[[#This Row],[Median]]-AAMC_Raw_Data_for_FY22[[#This Row],[25th]])/25)*15) + AAMC_Raw_Data_for_FY22[[#This Row],[25th]]","v":68719.600000000006},{"$f":"(((AAMC_Raw_Data_for_FY22[[#This Row],[Median]]-AAMC_Raw_Data_for_FY22[[#This Row],[25th]])/25)*20) + AAMC_Raw_Data_for_FY22[[#This Row],[25th]]","v":69988.800000000003},71258,{"$f":"(((AAMC_Raw_Data_for_FY22[[#This Row],[75th]]-AAMC_Raw_Data_for_FY22[[#This Row],[Median]])/25)*5) + AAMC_Raw_Data_for_FY22[[#This Row],[Median]]","v":73342.399999999994},{"$f":"(((AAMC_Raw_Data_for_FY22[[#This Row],[75th]]-AAMC_Raw_Data_for_FY22[[#This Row],[Median]])/25)*10) + AAMC_Raw_Data_for_FY22[[#This Row],[Median]]","v":75426.8},{"$f":"(((AAMC_Raw_Data_for_FY22[[#This Row],[75th]]-AAMC_Raw_Data_for_FY22[[#This Row],[Median]])/25)*15) + AAMC_Raw_Data_for_FY22[[#This Row],[Median]]","v":77511.199999999997},{"$f":"(((AAMC_Raw_Data_for_FY22[[#This Row],[75th]]-AAMC_Raw_Data_for_FY22[[#This Row],[Median]])/25)*20) + AAMC_Raw_Data_for_FY22[[#This Row],[Median]]","v":79595.600000000006},81680,{"$f":"(((AAMC_Raw_Data_for_FY22[[#This Row],[75th]]-AAMC_Raw_Data_for_FY22[[#This Row],[Median]])/25)*30) + AAMC_Raw_Data_for_FY22[[#This Row],[Median]]","v":83764.399999999994},{"$f":"(((AAMC_Raw_Data_for_FY22[[#This Row],[75th]]-AAMC_Raw_Data_for_FY22[[#This Row],[Median]])/25)*35) + AAMC_Raw_Data_for_FY22[[#This Row],[Median]]","v":85848.8},{"$f":"(((AAMC_Raw_Data_for_FY22[[#This Row],[75th]]-AAMC_Raw_Data_for_FY22[[#This Row],[Median]])/25)*40) + AAMC_Raw_Data_for_FY22[[#This Row],[Median]]","v":87933.2}]
[{"$f":"AAMC_Raw_Data_for_FY22[[#This Row],[Source]]&AAMC_Raw_Data_for_FY22[[#This Row],[Type]]&AAMC_Raw_Data_for_FY22[[#This Row],[School Subset]]&AAMC_Raw_Data_for_FY22[[#This Row],[Rank]]&AAMC_Raw_Data_for_FY22[[#This Row],[Degree]]&AAMC_Raw_Data_for_FY22[[#This Row],[Department / Specialty]]&\"L\"","v":"AAMCAcademicAllAssistantPhDPathology: ClinicalL"},"Pathology: Clinical",4,"AAMC","Academic","All","Assistant","PhD","2021-2022",135361,{"$f":"(((AAMC_Raw_Data_for_FY22[[#This Row],[Median]]-AAMC_Raw_Data_for_FY22[[#This Row],[25th]])/25)*5) + AAMC_Raw_Data_for_FY22[[#This Row],[25th]]","v":140329.79999999999},{"$f":"(((AAMC_Raw_Data_for_FY22[[#This Row],[Median]]-AAMC_Raw_Data_for_FY22[[#This Row],[25th]])/25)*10) + AAMC_Raw_Data_for_FY22[[#This Row],[25th]]","v":145298.6},{"$f":"(((AAMC_Raw_Data_for_FY22[[#This Row],[Median]]-AAMC_Raw_Data_for_FY22[[#This Row],[25th]])/25)*15) + AAMC_Raw_Data_for_FY22[[#This Row],[25th]]","v":150267.4},{"$f":"(((AAMC_Raw_Data_for_FY22[[#This Row],[Median]]-AAMC_Raw_Data_for_FY22[[#This Row],[25th]])/25)*20) + AAMC_Raw_Data_for_FY22[[#This Row],[25th]]","v":155236.20000000001},160205,{"$f":"(((AAMC_Raw_Data_for_FY22[[#This Row],[75th]]-AAMC_Raw_Data_for_FY22[[#This Row],[Median]])/25)*5) + AAMC_Raw_Data_for_FY22[[#This Row],[Median]]","v":165331.4},{"$f":"(((AAMC_Raw_Data_for_FY22[[#This Row],[75th]]-AAMC_Raw_Data_for_FY22[[#This Row],[Median]])/25)*10) + AAMC_Raw_Data_for_FY22[[#This Row],[Median]]","v":170457.8},{"$f":"(((AAMC_Raw_Data_for_FY22[[#This Row],[75th]]-AAMC_Raw_Data_for_FY22[[#This Row],[Median]])/25)*15) + AAMC_Raw_Data_for_FY22[[#This Row],[Median]]","v":175584.2},{"$f":"(((AAMC_Raw_Data_for_FY22[[#This Row],[75th]]-AAMC_Raw_Data_for_FY22[[#This Row],[Median]])/25)*20) + AAMC_Raw_Data_for_FY22[[#This Row],[Median]]","v":180710.6},185837,{"$f":"(((AAMC_Raw_Data_for_FY22[[#This Row],[75th]]-AAMC_Raw_Data_for_FY22[[#This Row],[Median]])/25)*30) + AAMC_Raw_Data_for_FY22[[#This Row],[Median]]","v":190963.4},{"$f":"(((AAMC_Raw_Data_for_FY22[[#This Row],[75th]]-AAMC_Raw_Data_for_FY22[[#This Row],[Median]])/25)*35) + AAMC_Raw_Data_for_FY22[[#This Row],[Median]]","v":196089.8},{"$f":"(((AAMC_Raw_Data_for_FY22[[#This Row],[75th]]-AAMC_Raw_Data_for_FY22[[#This Row],[Median]])/25)*40) + AAMC_Raw_Data_for_FY22[[#This Row],[Median]]","v":201216.2}]
[{"$f":"AAMC_Raw_Data_for_FY22[[#This Row],[Source]]&AAMC_Raw_Data_for_FY22[[#This Row],[Type]]&AAMC_Raw_Data_for_FY22[[#This Row],[School Subset]]&AAMC_Raw_Data_for_FY22[[#This Row],[Rank]]&AAMC_Raw_Data_for_FY22[[#This Row],[Degree]]&AAMC_Raw_Data_for_FY22[[#This Row],[Department / Specialty]]&\"L\"","v":"AAMCAcademicAllAssociatePhDPathology: ClinicalL"},"Pathology: Clinical",3,"AAMC","Academic","All","Associate","PhD","2021-2022",166790,{"$f":"(((AAMC_Raw_Data_for_FY22[[#This Row],[Median]]-AAMC_Raw_Data_for_FY22[[#This Row],[25th]])/25)*5) + AAMC_Raw_Data_for_FY22[[#This Row],[25th]]","v":173435.6},{"$f":"(((AAMC_Raw_Data_for_FY22[[#This Row],[Median]]-AAMC_Raw_Data_for_FY22[[#This Row],[25th]])/25)*10) + AAMC_Raw_Data_for_FY22[[#This Row],[25th]]","v":180081.2},{"$f":"(((AAMC_Raw_Data_for_FY22[[#This Row],[Median]]-AAMC_Raw_Data_for_FY22[[#This Row],[25th]])/25)*15) + AAMC_Raw_Data_for_FY22[[#This Row],[25th]]","v":186726.8},{"$f":"(((AAMC_Raw_Data_for_FY22[[#This Row],[Median]]-AAMC_Raw_Data_for_FY22[[#This Row],[25th]])/25)*20) + AAMC_Raw_Data_for_FY22[[#This Row],[25th]]","v":193372.4},200018,{"$f":"(((AAMC_Raw_Data_for_FY22[[#This Row],[75th]]-AAMC_Raw_Data_for_FY22[[#This Row],[Median]])/25)*5) + AAMC_Raw_Data_for_FY22[[#This Row],[Median]]","v":208474.4},{"$f":"(((AAMC_Raw_Data_for_FY22[[#This Row],[75th]]-AAMC_Raw_Data_for_FY22[[#This Row],[Median]])/25)*10) + AAMC_Raw_Data_for_FY22[[#This Row],[Median]]","v":216930.8},{"$f":"(((AAMC_Raw_Data_for_FY22[[#This Row],[75th]]-AAMC_Raw_Data_for_FY22[[#This Row],[Median]])/25)*15) + AAMC_Raw_Data_for_FY22[[#This Row],[Median]]","v":225387.2},{"$f":"(((AAMC_Raw_Data_for_FY22[[#This Row],[75th]]-AAMC_Raw_Data_for_FY22[[#This Row],[Median]])/25)*20) + AAMC_Raw_Data_for_FY22[[#This Row],[Median]]","v":233843.6},242300,{"$f":"(((AAMC_Raw_Data_for_FY22[[#This Row],[75th]]-AAMC_Raw_Data_for_FY22[[#This Row],[Median]])/25)*30) + AAMC_Raw_Data_for_FY22[[#This Row],[Median]]","v":250756.4},{"$f":"(((AAMC_Raw_Data_for_FY22[[#This Row],[75th]]-AAMC_Raw_Data_for_FY22[[#This Row],[Median]])/25)*35) + AAMC_Raw_Data_for_FY22[[#This Row],[Median]]","v":259212.79999999999},{"$f":"(((AAMC_Raw_Data_for_FY22[[#This Row],[75th]]-AAMC_Raw_Data_for_FY22[[#This Row],[Median]])/25)*40) + AAMC_Raw_Data_for_FY22[[#This Row],[Median]]","v":267669.2}]
[{"$f":"AAMC_Raw_Data_for_FY22[[#This Row],[Source]]&AAMC_Raw_Data_for_FY22[[#This Row],[Type]]&AAMC_Raw_Data_for_FY22[[#This Row],[School Subset]]&AAMC_Raw_Data_for_FY22[[#This Row],[Rank]]&AAMC_Raw_Data_for_FY22[[#This Row],[Degree]]&AAMC_Raw_Data_for_FY22[[#This Row],[Department / Specialty]]&\"L\"","v":"AAMCAcademicAllProfessorPhDPathology: ClinicalL"},"Pathology: Clinical",2,"AAMC","Academic","All","Professor","PhD","2021-2022",218168,{"$f":"(((AAMC_Raw_Data_for_FY22[[#This Row],[Median]]-AAMC_Raw_Data_for_FY22[[#This Row],[25th]])/25)*5) + AAMC_Raw_Data_for_FY22[[#This Row],[25th]]","v":224780.79999999999},{"$f":"(((AAMC_Raw_Data_for_FY22[[#This Row],[Median]]-AAMC_Raw_Data_for_FY22[[#This Row],[25th]])/25)*10) + AAMC_Raw_Data_for_FY22[[#This Row],[25th]]","v":231393.6},{"$f":"(((AAMC_Raw_Data_for_FY22[[#This Row],[Median]]-AAMC_Raw_Data_for_FY22[[#This Row],[25th]])/25)*15) + AAMC_Raw_Data_for_FY22[[#This Row],[25th]]","v":238006.39999999999},{"$f":"(((AAMC_Raw_Data_for_FY22[[#This Row],[Median]]-AAMC_Raw_Data_for_FY22[[#This Row],[25th]])/25)*20) + AAMC_Raw_Data_for_FY22[[#This Row],[25th]]","v":244619.2},251232,{"$f":"(((AAMC_Raw_Data_for_FY22[[#This Row],[75th]]-AAMC_Raw_Data_for_FY22[[#This Row],[Median]])/25)*5) + AAMC_Raw_Data_for_FY22[[#This Row],[Median]]","v":260024.8},{"$f":"(((AAMC_Raw_Data_for_FY22[[#This Row],[75th]]-AAMC_Raw_Data_for_FY22[[#This Row],[Median]])/25)*10) + AAMC_Raw_Data_for_FY22[[#This Row],[Median]]","v":268817.59999999998},{"$f":"(((AAMC_Raw_Data_for_FY22[[#This Row],[75th]]-AAMC_Raw_Data_for_FY22[[#This Row],[Median]])/25)*15) + AAMC_Raw_Data_for_FY22[[#This Row],[Median]]","v":277610.40000000002},{"$f":"(((AAMC_Raw_Data_for_FY22[[#This Row],[75th]]-AAMC_Raw_Data_for_FY22[[#This Row],[Median]])/25)*20) + AAMC_Raw_Data_for_FY22[[#This Row],[Median]]","v":286403.20000000001},295196,{"$f":"(((AAMC_Raw_Data_for_FY22[[#This Row],[75th]]-AAMC_Raw_Data_for_FY22[[#This Row],[Median]])/25)*30) + AAMC_Raw_Data_for_FY22[[#This Row],[Median]]","v":303988.8},{"$f":"(((AAMC_Raw_Data_for_FY22[[#This Row],[75th]]-AAMC_Raw_Data_for_FY22[[#This Row],[Median]])/25)*35) + AAMC_Raw_Data_for_FY22[[#This Row],[Median]]","v":312781.59999999998},{"$f":"(((AAMC_Raw_Data_for_FY22[[#This Row],[75th]]-AAMC_Raw_Data_for_FY22[[#This Row],[Median]])/25)*40) + AAMC_Raw_Data_for_FY22[[#This Row],[Median]]","v":321574.40000000002}]
[{"$f":"AAMC_Raw_Data_for_FY22[[#This Row],[Source]]&AAMC_Raw_Data_for_FY22[[#This Row],[Type]]&AAMC_Raw_Data_for_FY22[[#This Row],[School Subset]]&AAMC_Raw_Data_for_FY22[[#This Row],[Rank]]&AAMC_Raw_Data_for_FY22[[#This Row],[Degree]]&AAMC_Raw_Data_for_FY22[[#This Row],[Department / Specialty]]&\"L\"","v":"AAMCAcademicAllChiefPhDPathology: ClinicalL"},"Pathology: Clinical",6,"AAMC","Academic","All","Chief","PhD","2021-2022",281928,{"$f":"(((AAMC_Raw_Data_for_FY22[[#This Row],[Median]]-AAMC_Raw_Data_for_FY22[[#This Row],[25th]])/25)*5) + AAMC_Raw_Data_for_FY22[[#This Row],[25th]]","v":296388.59999999998},{"$f":"(((AAMC_Raw_Data_for_FY22[[#This Row],[Median]]-AAMC_Raw_Data_for_FY22[[#This Row],[25th]])/25)*10) + AAMC_Raw_Data_for_FY22[[#This Row],[25th]]","v":310849.2},{"$f":"(((AAMC_Raw_Data_for_FY22[[#This Row],[Median]]-AAMC_Raw_Data_for_FY22[[#This Row],[25th]])/25)*15) + AAMC_Raw_Data_for_FY22[[#This Row],[25th]]","v":325309.8},{"$f":"(((AAMC_Raw_Data_for_FY22[[#This Row],[Median]]-AAMC_Raw_Data_for_FY22[[#This Row],[25th]])/25)*20) + AAMC_Raw_Data_for_FY22[[#This Row],[25th]]","v":339770.4},354231,{"$f":"(((AAMC_Raw_Data_for_FY22[[#This Row],[75th]]-AAMC_Raw_Data_for_FY22[[#This Row],[Median]])/25)*5) + AAMC_Raw_Data_for_FY22[[#This Row],[Median]]","v":355771},{"$f":"(((AAMC_Raw_Data_for_FY22[[#This Row],[75th]]-AAMC_Raw_Data_for_FY22[[#This Row],[Median]])/25)*10) + AAMC_Raw_Data_for_FY22[[#This Row],[Median]]","v":357311},{"$f":"(((AAMC_Raw_Data_for_FY22[[#This Row],[75th]]-AAMC_Raw_Data_for_FY22[[#This Row],[Median]])/25)*15) + AAMC_Raw_Data_for_FY22[[#This Row],[Median]]","v":358851},{"$f":"(((AAMC_Raw_Data_for_FY22[[#This Row],[75th]]-AAMC_Raw_Data_for_FY22[[#This Row],[Median]])/25)*20) + AAMC_Raw_Data_for_FY22[[#This Row],[Median]]","v":360391},361931,{"$f":"(((AAMC_Raw_Data_for_FY22[[#This Row],[75th]]-AAMC_Raw_Data_for_FY22[[#This Row],[Median]])/25)*30) + AAMC_Raw_Data_for_FY22[[#This Row],[Median]]","v":363471},{"$f":"(((AAMC_Raw_Data_for_FY22[[#This Row],[75th]]-AAMC_Raw_Data_for_FY22[[#This Row],[Median]])/25)*35) + AAMC_Raw_Data_for_FY22[[#This Row],[Median]]","v":365011},{"$f":"(((AAMC_Raw_Data_for_FY22[[#This Row],[75th]]-AAMC_Raw_Data_for_FY22[[#This Row],[Median]])/25)*40) + AAMC_Raw_Data_for_FY22[[#This Row],[Median]]","v":366551}]
[{"$f":"AAMC_Raw_Data_for_FY22[[#This Row],[Source]]&AAMC_Raw_Data_for_FY22[[#This Row],[Type]]&AAMC_Raw_Data_for_FY22[[#This Row],[School Subset]]&AAMC_Raw_Data_for_FY22[[#This Row],[Rank]]&AAMC_Raw_Data_for_FY22[[#This Row],[Degree]]&AAMC_Raw_Data_for_FY22[[#This Row],[Department / Specialty]]&\"L\"","v":"AAMCAcademicAllChairPhDPathology: ClinicalL"},"Pathology: Clinical",1,"AAMC","Academic","All","Chair","PhD","2021-2022",null,{"$f":"(((AAMC_Raw_Data_for_FY22[[#This Row],[Median]]-AAMC_Raw_Data_for_FY22[[#This Row],[25th]])/25)*5) + AAMC_Raw_Data_for_FY22[[#This Row],[25th]]","v":0},{"$f":"(((AAMC_Raw_Data_for_FY22[[#This Row],[Median]]-AAMC_Raw_Data_for_FY22[[#This Row],[25th]])/25)*10) + AAMC_Raw_Data_for_FY22[[#This Row],[25th]]","v":0},{"$f":"(((AAMC_Raw_Data_for_FY22[[#This Row],[Median]]-AAMC_Raw_Data_for_FY22[[#This Row],[25th]])/25)*15) + AAMC_Raw_Data_for_FY22[[#This Row],[25th]]","v":0},{"$f":"(((AAMC_Raw_Data_for_FY22[[#This Row],[Median]]-AAMC_Raw_Data_for_FY22[[#This Row],[25th]])/25)*20) + AAMC_Raw_Data_for_FY22[[#This Row],[25th]]","v":0},null,{"$f":"(((AAMC_Raw_Data_for_FY22[[#This Row],[75th]]-AAMC_Raw_Data_for_FY22[[#This Row],[Median]])/25)*5) + AAMC_Raw_Data_for_FY22[[#This Row],[Median]]","v":0},{"$f":"(((AAMC_Raw_Data_for_FY22[[#This Row],[75th]]-AAMC_Raw_Data_for_FY22[[#This Row],[Median]])/25)*10) + AAMC_Raw_Data_for_FY22[[#This Row],[Median]]","v":0},{"$f":"(((AAMC_Raw_Data_for_FY22[[#This Row],[75th]]-AAMC_Raw_Data_for_FY22[[#This Row],[Median]])/25)*15) + AAMC_Raw_Data_for_FY22[[#This Row],[Median]]","v":0},{"$f":"(((AAMC_Raw_Data_for_FY22[[#This Row],[75th]]-AAMC_Raw_Data_for_FY22[[#This Row],[Median]])/25)*20) + AAMC_Raw_Data_for_FY22[[#This Row],[Median]]","v":0},null,{"$f":"(((AAMC_Raw_Data_for_FY22[[#This Row],[75th]]-AAMC_Raw_Data_for_FY22[[#This Row],[Median]])/25)*30) + AAMC_Raw_Data_for_FY22[[#This Row],[Median]]","v":0},{"$f":"(((AAMC_Raw_Data_for_FY22[[#This Row],[75th]]-AAMC_Raw_Data_for_FY22[[#This Row],[Median]])/25)*35) + AAMC_Raw_Data_for_FY22[[#This Row],[Median]]","v":0},{"$f":"(((AAMC_Raw_Data_for_FY22[[#This Row],[75th]]-AAMC_Raw_Data_for_FY22[[#This Row],[Median]])/25)*40) + AAMC_Raw_Data_for_FY22[[#This Row],[Median]]","v":0}]
[{"$f":"AAMC_Raw_Data_for_FY22[[#This Row],[Source]]&AAMC_Raw_Data_for_FY22[[#This Row],[Type]]&AAMC_Raw_Data_for_FY22[[#This Row],[School Subset]]&AAMC_Raw_Data_for_FY22[[#This Row],[Rank]]&AAMC_Raw_Data_for_FY22[[#This Row],[Degree]]&AAMC_Raw_Data_for_FY22[[#This Row],[Department / Specialty]]&\"L\"","v":"AAMCAcademicAllInstructorPhDPathology: Other PathologyL"},"Pathology: Other Pathology",5,"AAMC","Academic","All","Instructor","PhD","2021-2022",63861,{"$f":"(((AAMC_Raw_Data_for_FY22[[#This Row],[Median]]-AAMC_Raw_Data_for_FY22[[#This Row],[25th]])/25)*5) + AAMC_Raw_Data_for_FY22[[#This Row],[25th]]","v":65671.600000000006},{"$f":"(((AAMC_Raw_Data_for_FY22[[#This Row],[Median]]-AAMC_Raw_Data_for_FY22[[#This Row],[25th]])/25)*10) + AAMC_Raw_Data_for_FY22[[#This Row],[25th]]","v":67482.2},{"$f":"(((AAMC_Raw_Data_for_FY22[[#This Row],[Median]]-AAMC_Raw_Data_for_FY22[[#This Row],[25th]])/25)*15) + AAMC_Raw_Data_for_FY22[[#This Row],[25th]]","v":69292.800000000003},{"$f":"(((AAMC_Raw_Data_for_FY22[[#This Row],[Median]]-AAMC_Raw_Data_for_FY22[[#This Row],[25th]])/25)*20) + AAMC_Raw_Data_for_FY22[[#This Row],[25th]]","v":71103.399999999994},72914,{"$f":"(((AAMC_Raw_Data_for_FY22[[#This Row],[75th]]-AAMC_Raw_Data_for_FY22[[#This Row],[Median]])/25)*5) + AAMC_Raw_Data_for_FY22[[#This Row],[Median]]","v":73790.2},{"$f":"(((AAMC_Raw_Data_for_FY22[[#This Row],[75th]]-AAMC_Raw_Data_for_FY22[[#This Row],[Median]])/25)*10) + AAMC_Raw_Data_for_FY22[[#This Row],[Median]]","v":74666.399999999994},{"$f":"(((AAMC_Raw_Data_for_FY22[[#This Row],[75th]]-AAMC_Raw_Data_for_FY22[[#This Row],[Median]])/25)*15) + AAMC_Raw_Data_for_FY22[[#This Row],[Median]]","v":75542.600000000006},{"$f":"(((AAMC_Raw_Data_for_FY22[[#This Row],[75th]]-AAMC_Raw_Data_for_FY22[[#This Row],[Median]])/25)*20) + AAMC_Raw_Data_for_FY22[[#This Row],[Median]]","v":76418.8},77295,{"$f":"(((AAMC_Raw_Data_for_FY22[[#This Row],[75th]]-AAMC_Raw_Data_for_FY22[[#This Row],[Median]])/25)*30) + AAMC_Raw_Data_for_FY22[[#This Row],[Median]]","v":78171.199999999997},{"$f":"(((AAMC_Raw_Data_for_FY22[[#This Row],[75th]]-AAMC_Raw_Data_for_FY22[[#This Row],[Median]])/25)*35) + AAMC_Raw_Data_for_FY22[[#This Row],[Median]]","v":79047.399999999994},{"$f":"(((AAMC_Raw_Data_for_FY22[[#This Row],[75th]]-AAMC_Raw_Data_for_FY22[[#This Row],[Median]])/25)*40) + AAMC_Raw_Data_for_FY22[[#This Row],[Median]]","v":79923.600000000006}]
[{"$f":"AAMC_Raw_Data_for_FY22[[#This Row],[Source]]&AAMC_Raw_Data_for_FY22[[#This Row],[Type]]&AAMC_Raw_Data_for_FY22[[#This Row],[School Subset]]&AAMC_Raw_Data_for_FY22[[#This Row],[Rank]]&AAMC_Raw_Data_for_FY22[[#This Row],[Degree]]&AAMC_Raw_Data_for_FY22[[#This Row],[Department / Specialty]]&\"L\"","v":"AAMCAcademicAllAssistantPhDPathology: Other PathologyL"},"Pathology: Other Pathology",4,"AAMC","Academic","All","Assistant","PhD","2021-2022",95174,{"$f":"(((AAMC_Raw_Data_for_FY22[[#This Row],[Median]]-AAMC_Raw_Data_for_FY22[[#This Row],[25th]])/25)*5) + AAMC_Raw_Data_for_FY22[[#This Row],[25th]]","v":99769.4},{"$f":"(((AAMC_Raw_Data_for_FY22[[#This Row],[Median]]-AAMC_Raw_Data_for_FY22[[#This Row],[25th]])/25)*10) + AAMC_Raw_Data_for_FY22[[#This Row],[25th]]","v":104364.8},{"$f":"(((AAMC_Raw_Data_for_FY22[[#This Row],[Median]]-AAMC_Raw_Data_for_FY22[[#This Row],[25th]])/25)*15) + AAMC_Raw_Data_for_FY22[[#This Row],[25th]]","v":108960.2},{"$f":"(((AAMC_Raw_Data_for_FY22[[#This Row],[Median]]-AAMC_Raw_Data_for_FY22[[#This Row],[25th]])/25)*20) + AAMC_Raw_Data_for_FY22[[#This Row],[25th]]","v":113555.6},118151,{"$f":"(((AAMC_Raw_Data_for_FY22[[#This Row],[75th]]-AAMC_Raw_Data_for_FY22[[#This Row],[Median]])/25)*5) + AAMC_Raw_Data_for_FY22[[#This Row],[Median]]","v":121921.8},{"$f":"(((AAMC_Raw_Data_for_FY22[[#This Row],[75th]]-AAMC_Raw_Data_for_FY22[[#This Row],[Median]])/25)*10) + AAMC_Raw_Data_for_FY22[[#This Row],[Median]]","v":125692.6},{"$f":"(((AAMC_Raw_Data_for_FY22[[#This Row],[75th]]-AAMC_Raw_Data_for_FY22[[#This Row],[Median]])/25)*15) + AAMC_Raw_Data_for_FY22[[#This Row],[Median]]","v":129463.4},{"$f":"(((AAMC_Raw_Data_for_FY22[[#This Row],[75th]]-AAMC_Raw_Data_for_FY22[[#This Row],[Median]])/25)*20) + AAMC_Raw_Data_for_FY22[[#This Row],[Median]]","v":133234.20000000001},137005,{"$f":"(((AAMC_Raw_Data_for_FY22[[#This Row],[75th]]-AAMC_Raw_Data_for_FY22[[#This Row],[Median]])/25)*30) + AAMC_Raw_Data_for_FY22[[#This Row],[Median]]","v":140775.79999999999},{"$f":"(((AAMC_Raw_Data_for_FY22[[#This Row],[75th]]-AAMC_Raw_Data_for_FY22[[#This Row],[Median]])/25)*35) + AAMC_Raw_Data_for_FY22[[#This Row],[Median]]","v":144546.6},{"$f":"(((AAMC_Raw_Data_for_FY22[[#This Row],[75th]]-AAMC_Raw_Data_for_FY22[[#This Row],[Median]])/25)*40) + AAMC_Raw_Data_for_FY22[[#This Row],[Median]]","v":148317.4}]
[{"$f":"AAMC_Raw_Data_for_FY22[[#This Row],[Source]]&AAMC_Raw_Data_for_FY22[[#This Row],[Type]]&AAMC_Raw_Data_for_FY22[[#This Row],[School Subset]]&AAMC_Raw_Data_for_FY22[[#This Row],[Rank]]&AAMC_Raw_Data_for_FY22[[#This Row],[Degree]]&AAMC_Raw_Data_for_FY22[[#This Row],[Department / Specialty]]&\"L\"","v":"AAMCAcademicAllAssociatePhDPathology: Other PathologyL"},"Pathology: Other Pathology",3,"AAMC","Academic","All","Associate","PhD","2021-2022",123206,{"$f":"(((AAMC_Raw_Data_for_FY22[[#This Row],[Median]]-AAMC_Raw_Data_for_FY22[[#This Row],[25th]])/25)*5) + AAMC_Raw_Data_for_FY22[[#This Row],[25th]]","v":127475.6},{"$f":"(((AAMC_Raw_Data_for_FY22[[#This Row],[Median]]-AAMC_Raw_Data_for_FY22[[#This Row],[25th]])/25)*10) + AAMC_Raw_Data_for_FY22[[#This Row],[25th]]","v":131745.20000000001},{"$f":"(((AAMC_Raw_Data_for_FY22[[#This Row],[Median]]-AAMC_Raw_Data_for_FY22[[#This Row],[25th]])/25)*15) + AAMC_Raw_Data_for_FY22[[#This Row],[25th]]","v":136014.79999999999},{"$f":"(((AAMC_Raw_Data_for_FY22[[#This Row],[Median]]-AAMC_Raw_Data_for_FY22[[#This Row],[25th]])/25)*20) + AAMC_Raw_Data_for_FY22[[#This Row],[25th]]","v":140284.4},144554,{"$f":"(((AAMC_Raw_Data_for_FY22[[#This Row],[75th]]-AAMC_Raw_Data_for_FY22[[#This Row],[Median]])/25)*5) + AAMC_Raw_Data_for_FY22[[#This Row],[Median]]","v":150712.6},{"$f":"(((AAMC_Raw_Data_for_FY22[[#This Row],[75th]]-AAMC_Raw_Data_for_FY22[[#This Row],[Median]])/25)*10) + AAMC_Raw_Data_for_FY22[[#This Row],[Median]]","v":156871.20000000001},{"$f":"(((AAMC_Raw_Data_for_FY22[[#This Row],[75th]]-AAMC_Raw_Data_for_FY22[[#This Row],[Median]])/25)*15) + AAMC_Raw_Data_for_FY22[[#This Row],[Median]]","v":163029.79999999999},{"$f":"(((AAMC_Raw_Data_for_FY22[[#This Row],[75th]]-AAMC_Raw_Data_for_FY22[[#This Row],[Median]])/25)*20) + AAMC_Raw_Data_for_FY22[[#This Row],[Median]]","v":169188.4},175347,{"$f":"(((AAMC_Raw_Data_for_FY22[[#This Row],[75th]]-AAMC_Raw_Data_for_FY22[[#This Row],[Median]])/25)*30) + AAMC_Raw_Data_for_FY22[[#This Row],[Median]]","v":181505.6},{"$f":"(((AAMC_Raw_Data_for_FY22[[#This Row],[75th]]-AAMC_Raw_Data_for_FY22[[#This Row],[Median]])/25)*35) + AAMC_Raw_Data_for_FY22[[#This Row],[Median]]","v":187664.2},{"$f":"(((AAMC_Raw_Data_for_FY22[[#This Row],[75th]]-AAMC_Raw_Data_for_FY22[[#This Row],[Median]])/25)*40) + AAMC_Raw_Data_for_FY22[[#This Row],[Median]]","v":193822.8}]
[{"$f":"AAMC_Raw_Data_for_FY22[[#This Row],[Source]]&AAMC_Raw_Data_for_FY22[[#This Row],[Type]]&AAMC_Raw_Data_for_FY22[[#This Row],[School Subset]]&AAMC_Raw_Data_for_FY22[[#This Row],[Rank]]&AAMC_Raw_Data_for_FY22[[#This Row],[Degree]]&AAMC_Raw_Data_for_FY22[[#This Row],[Department / Specialty]]&\"L\"","v":"AAMCAcademicAllProfessorPhDPathology: Other PathologyL"},"Pathology: Other Pathology",2,"AAMC","Academic","All","Professor","PhD","2021-2022",185464,{"$f":"(((AAMC_Raw_Data_for_FY22[[#This Row],[Median]]-AAMC_Raw_Data_for_FY22[[#This Row],[25th]])/25)*5) + AAMC_Raw_Data_for_FY22[[#This Row],[25th]]","v":191288.6},{"$f":"(((AAMC_Raw_Data_for_FY22[[#This Row],[Median]]-AAMC_Raw_Data_for_FY22[[#This Row],[25th]])/25)*10) + AAMC_Raw_Data_for_FY22[[#This Row],[25th]]","v":197113.2},{"$f":"(((AAMC_Raw_Data_for_FY22[[#This Row],[Median]]-AAMC_Raw_Data_for_FY22[[#This Row],[25th]])/25)*15) + AAMC_Raw_Data_for_FY22[[#This Row],[25th]]","v":202937.8},{"$f":"(((AAMC_Raw_Data_for_FY22[[#This Row],[Median]]-AAMC_Raw_Data_for_FY22[[#This Row],[25th]])/25)*20) + AAMC_Raw_Data_for_FY22[[#This Row],[25th]]","v":208762.4},214587,{"$f":"(((AAMC_Raw_Data_for_FY22[[#This Row],[75th]]-AAMC_Raw_Data_for_FY22[[#This Row],[Median]])/25)*5) + AAMC_Raw_Data_for_FY22[[#This Row],[Median]]","v":224025.60000000001},{"$f":"(((AAMC_Raw_Data_for_FY22[[#This Row],[75th]]-AAMC_Raw_Data_for_FY22[[#This Row],[Median]])/25)*10) + AAMC_Raw_Data_for_FY22[[#This Row],[Median]]","v":233464.2},{"$f":"(((AAMC_Raw_Data_for_FY22[[#This Row],[75th]]-AAMC_Raw_Data_for_FY22[[#This Row],[Median]])/25)*15) + AAMC_Raw_Data_for_FY22[[#This Row],[Median]]","v":242902.8},{"$f":"(((AAMC_Raw_Data_for_FY22[[#This Row],[75th]]-AAMC_Raw_Data_for_FY22[[#This Row],[Median]])/25)*20) + AAMC_Raw_Data_for_FY22[[#This Row],[Median]]","v":252341.4},261780,{"$f":"(((AAMC_Raw_Data_for_FY22[[#This Row],[75th]]-AAMC_Raw_Data_for_FY22[[#This Row],[Median]])/25)*30) + AAMC_Raw_Data_for_FY22[[#This Row],[Median]]","v":271218.59999999998},{"$f":"(((AAMC_Raw_Data_for_FY22[[#This Row],[75th]]-AAMC_Raw_Data_for_FY22[[#This Row],[Median]])/25)*35) + AAMC_Raw_Data_for_FY22[[#This Row],[Median]]","v":280657.2},{"$f":"(((AAMC_Raw_Data_for_FY22[[#This Row],[75th]]-AAMC_Raw_Data_for_FY22[[#This Row],[Median]])/25)*40) + AAMC_Raw_Data_for_FY22[[#This Row],[Median]]","v":290095.8}]
[{"$f":"AAMC_Raw_Data_for_FY22[[#This Row],[Source]]&AAMC_Raw_Data_for_FY22[[#This Row],[Type]]&AAMC_Raw_Data_for_FY22[[#This Row],[School Subset]]&AAMC_Raw_Data_for_FY22[[#This Row],[Rank]]&AAMC_Raw_Data_for_FY22[[#This Row],[Degree]]&AAMC_Raw_Data_for_FY22[[#This Row],[Department / Specialty]]&\"L\"","v":"AAMCAcademicAllChiefPhDPathology: Other PathologyL"},"Pathology: Other Pathology",6,"AAMC","Academic","All","Chief","PhD","2021-2022",249855,{"$f":"(((AAMC_Raw_Data_for_FY22[[#This Row],[Median]]-AAMC_Raw_Data_for_FY22[[#This Row],[25th]])/25)*5) + AAMC_Raw_Data_for_FY22[[#This Row],[25th]]","v":262432.59999999998},{"$f":"(((AAMC_Raw_Data_for_FY22[[#This Row],[Median]]-AAMC_Raw_Data_for_FY22[[#This Row],[25th]])/25)*10) + AAMC_Raw_Data_for_FY22[[#This Row],[25th]]","v":275010.2},{"$f":"(((AAMC_Raw_Data_for_FY22[[#This Row],[Median]]-AAMC_Raw_Data_for_FY22[[#This Row],[25th]])/25)*15) + AAMC_Raw_Data_for_FY22[[#This Row],[25th]]","v":287587.8},{"$f":"(((AAMC_Raw_Data_for_FY22[[#This Row],[Median]]-AAMC_Raw_Data_for_FY22[[#This Row],[25th]])/25)*20) + AAMC_Raw_Data_for_FY22[[#This Row],[25th]]","v":300165.40000000002},312743,{"$f":"(((AAMC_Raw_Data_for_FY22[[#This Row],[75th]]-AAMC_Raw_Data_for_FY22[[#This Row],[Median]])/25)*5) + AAMC_Raw_Data_for_FY22[[#This Row],[Median]]","v":332846.8},{"$f":"(((AAMC_Raw_Data_for_FY22[[#This Row],[75th]]-AAMC_Raw_Data_for_FY22[[#This Row],[Median]])/25)*10) + AAMC_Raw_Data_for_FY22[[#This Row],[Median]]","v":352950.6},{"$f":"(((AAMC_Raw_Data_for_FY22[[#This Row],[75th]]-AAMC_Raw_Data_for_FY22[[#This Row],[Median]])/25)*15) + AAMC_Raw_Data_for_FY22[[#This Row],[Median]]","v":373054.4},{"$f":"(((AAMC_Raw_Data_for_FY22[[#This Row],[75th]]-AAMC_Raw_Data_for_FY22[[#This Row],[Median]])/25)*20) + AAMC_Raw_Data_for_FY22[[#This Row],[Median]]","v":393158.2},413262,{"$f":"(((AAMC_Raw_Data_for_FY22[[#This Row],[75th]]-AAMC_Raw_Data_for_FY22[[#This Row],[Median]])/25)*30) + AAMC_Raw_Data_for_FY22[[#This Row],[Median]]","v":433365.8},{"$f":"(((AAMC_Raw_Data_for_FY22[[#This Row],[75th]]-AAMC_Raw_Data_for_FY22[[#This Row],[Median]])/25)*35) + AAMC_Raw_Data_for_FY22[[#This Row],[Median]]","v":453469.6},{"$f":"(((AAMC_Raw_Data_for_FY22[[#This Row],[75th]]-AAMC_Raw_Data_for_FY22[[#This Row],[Median]])/25)*40) + AAMC_Raw_Data_for_FY22[[#This Row],[Median]]","v":473573.4}]
[{"$f":"AAMC_Raw_Data_for_FY22[[#This Row],[Source]]&AAMC_Raw_Data_for_FY22[[#This Row],[Type]]&AAMC_Raw_Data_for_FY22[[#This Row],[School Subset]]&AAMC_Raw_Data_for_FY22[[#This Row],[Rank]]&AAMC_Raw_Data_for_FY22[[#This Row],[Degree]]&AAMC_Raw_Data_for_FY22[[#This Row],[Department / Specialty]]&\"L\"","v":"AAMCAcademicAllChairPhDPathology: Other PathologyL"},"Pathology: Other Pathology",1,"AAMC","Academic","All","Chair","PhD","2021-2022",null,{"$f":"(((AAMC_Raw_Data_for_FY22[[#This Row],[Median]]-AAMC_Raw_Data_for_FY22[[#This Row],[25th]])/25)*5) + AAMC_Raw_Data_for_FY22[[#This Row],[25th]]","v":0},{"$f":"(((AAMC_Raw_Data_for_FY22[[#This Row],[Median]]-AAMC_Raw_Data_for_FY22[[#This Row],[25th]])/25)*10) + AAMC_Raw_Data_for_FY22[[#This Row],[25th]]","v":0},{"$f":"(((AAMC_Raw_Data_for_FY22[[#This Row],[Median]]-AAMC_Raw_Data_for_FY22[[#This Row],[25th]])/25)*15) + AAMC_Raw_Data_for_FY22[[#This Row],[25th]]","v":0},{"$f":"(((AAMC_Raw_Data_for_FY22[[#This Row],[Median]]-AAMC_Raw_Data_for_FY22[[#This Row],[25th]])/25)*20) + AAMC_Raw_Data_for_FY22[[#This Row],[25th]]","v":0},null,{"$f":"(((AAMC_Raw_Data_for_FY22[[#This Row],[75th]]-AAMC_Raw_Data_for_FY22[[#This Row],[Median]])/25)*5) + AAMC_Raw_Data_for_FY22[[#This Row],[Median]]","v":0},{"$f":"(((AAMC_Raw_Data_for_FY22[[#This Row],[75th]]-AAMC_Raw_Data_for_FY22[[#This Row],[Median]])/25)*10) + AAMC_Raw_Data_for_FY22[[#This Row],[Median]]","v":0},{"$f":"(((AAMC_Raw_Data_for_FY22[[#This Row],[75th]]-AAMC_Raw_Data_for_FY22[[#This Row],[Median]])/25)*15) + AAMC_Raw_Data_for_FY22[[#This Row],[Median]]","v":0},{"$f":"(((AAMC_Raw_Data_for_FY22[[#This Row],[75th]]-AAMC_Raw_Data_for_FY22[[#This Row],[Median]])/25)*20) + AAMC_Raw_Data_for_FY22[[#This Row],[Median]]","v":0},null,{"$f":"(((AAMC_Raw_Data_for_FY22[[#This Row],[75th]]-AAMC_Raw_Data_for_FY22[[#This Row],[Median]])/25)*30) + AAMC_Raw_Data_for_FY22[[#This Row],[Median]]","v":0},{"$f":"(((AAMC_Raw_Data_for_FY22[[#This Row],[75th]]-AAMC_Raw_Data_for_FY22[[#This Row],[Median]])/25)*35) + AAMC_Raw_Data_for_FY22[[#This Row],[Median]]","v":0},{"$f":"(((AAMC_Raw_Data_for_FY22[[#This Row],[75th]]-AAMC_Raw_Data_for_FY22[[#This Row],[Median]])/25)*40) + AAMC_Raw_Data_for_FY22[[#This Row],[Median]]","v":0}]
[{"$f":"AAMC_Raw_Data_for_FY22[[#This Row],[Source]]&AAMC_Raw_Data_for_FY22[[#This Row],[Type]]&AAMC_Raw_Data_for_FY22[[#This Row],[School Subset]]&AAMC_Raw_Data_for_FY22[[#This Row],[Rank]]&AAMC_Raw_Data_for_FY22[[#This Row],[Degree]]&AAMC_Raw_Data_for_FY22[[#This Row],[Department / Specialty]]&\"L\"","v":"AAMCAcademicAllInstructorPhDPediatrics TotalL"},"Pediatrics Total",5,"AAMC","Academic","All","Instructor","PhD","2021-2022",75000,{"$f":"(((AAMC_Raw_Data_for_FY22[[#This Row],[Median]]-AAMC_Raw_Data_for_FY22[[#This Row],[25th]])/25)*5) + AAMC_Raw_Data_for_FY22[[#This Row],[25th]]","v":77100},{"$f":"(((AAMC_Raw_Data_for_FY22[[#This Row],[Median]]-AAMC_Raw_Data_for_FY22[[#This Row],[25th]])/25)*10) + AAMC_Raw_Data_for_FY22[[#This Row],[25th]]","v":79200},{"$f":"(((AAMC_Raw_Data_for_FY22[[#This Row],[Median]]-AAMC_Raw_Data_for_FY22[[#This Row],[25th]])/25)*15) + AAMC_Raw_Data_for_FY22[[#This Row],[25th]]","v":81300},{"$f":"(((AAMC_Raw_Data_for_FY22[[#This Row],[Median]]-AAMC_Raw_Data_for_FY22[[#This Row],[25th]])/25)*20) + AAMC_Raw_Data_for_FY22[[#This Row],[25th]]","v":83400},85500,{"$f":"(((AAMC_Raw_Data_for_FY22[[#This Row],[75th]]-AAMC_Raw_Data_for_FY22[[#This Row],[Median]])/25)*5) + AAMC_Raw_Data_for_FY22[[#This Row],[Median]]","v":89899},{"$f":"(((AAMC_Raw_Data_for_FY22[[#This Row],[75th]]-AAMC_Raw_Data_for_FY22[[#This Row],[Median]])/25)*10) + AAMC_Raw_Data_for_FY22[[#This Row],[Median]]","v":94298},{"$f":"(((AAMC_Raw_Data_for_FY22[[#This Row],[75th]]-AAMC_Raw_Data_for_FY22[[#This Row],[Median]])/25)*15) + AAMC_Raw_Data_for_FY22[[#This Row],[Median]]","v":98697},{"$f":"(((AAMC_Raw_Data_for_FY22[[#This Row],[75th]]-AAMC_Raw_Data_for_FY22[[#This Row],[Median]])/25)*20) + AAMC_Raw_Data_for_FY22[[#This Row],[Median]]","v":103096},107495,{"$f":"(((AAMC_Raw_Data_for_FY22[[#This Row],[75th]]-AAMC_Raw_Data_for_FY22[[#This Row],[Median]])/25)*30) + AAMC_Raw_Data_for_FY22[[#This Row],[Median]]","v":111894},{"$f":"(((AAMC_Raw_Data_for_FY22[[#This Row],[75th]]-AAMC_Raw_Data_for_FY22[[#This Row],[Median]])/25)*35) + AAMC_Raw_Data_for_FY22[[#This Row],[Median]]","v":116293},{"$f":"(((AAMC_Raw_Data_for_FY22[[#This Row],[75th]]-AAMC_Raw_Data_for_FY22[[#This Row],[Median]])/25)*40) + AAMC_Raw_Data_for_FY22[[#This Row],[Median]]","v":120692}]
[{"$f":"AAMC_Raw_Data_for_FY22[[#This Row],[Source]]&AAMC_Raw_Data_for_FY22[[#This Row],[Type]]&AAMC_Raw_Data_for_FY22[[#This Row],[School Subset]]&AAMC_Raw_Data_for_FY22[[#This Row],[Rank]]&AAMC_Raw_Data_for_FY22[[#This Row],[Degree]]&AAMC_Raw_Data_for_FY22[[#This Row],[Department / Specialty]]&\"L\"","v":"AAMCAcademicAllAssistantPhDPediatrics TotalL"},"Pediatrics Total",4,"AAMC","Academic","All","Assistant","PhD","2021-2022",96910,{"$f":"(((AAMC_Raw_Data_for_FY22[[#This Row],[Median]]-AAMC_Raw_Data_for_FY22[[#This Row],[25th]])/25)*5) + AAMC_Raw_Data_for_FY22[[#This Row],[25th]]","v":99757.4},{"$f":"(((AAMC_Raw_Data_for_FY22[[#This Row],[Median]]-AAMC_Raw_Data_for_FY22[[#This Row],[25th]])/25)*10) + AAMC_Raw_Data_for_FY22[[#This Row],[25th]]","v":102604.8},{"$f":"(((AAMC_Raw_Data_for_FY22[[#This Row],[Median]]-AAMC_Raw_Data_for_FY22[[#This Row],[25th]])/25)*15) + AAMC_Raw_Data_for_FY22[[#This Row],[25th]]","v":105452.2},{"$f":"(((AAMC_Raw_Data_for_FY22[[#This Row],[Median]]-AAMC_Raw_Data_for_FY22[[#This Row],[25th]])/25)*20) + AAMC_Raw_Data_for_FY22[[#This Row],[25th]]","v":108299.6},111147,{"$f":"(((AAMC_Raw_Data_for_FY22[[#This Row],[75th]]-AAMC_Raw_Data_for_FY22[[#This Row],[Median]])/25)*5) + AAMC_Raw_Data_for_FY22[[#This Row],[Median]]","v":113917.6},{"$f":"(((AAMC_Raw_Data_for_FY22[[#This Row],[75th]]-AAMC_Raw_Data_for_FY22[[#This Row],[Median]])/25)*10) + AAMC_Raw_Data_for_FY22[[#This Row],[Median]]","v":116688.2},{"$f":"(((AAMC_Raw_Data_for_FY22[[#This Row],[75th]]-AAMC_Raw_Data_for_FY22[[#This Row],[Median]])/25)*15) + AAMC_Raw_Data_for_FY22[[#This Row],[Median]]","v":119458.8},{"$f":"(((AAMC_Raw_Data_for_FY22[[#This Row],[75th]]-AAMC_Raw_Data_for_FY22[[#This Row],[Median]])/25)*20) + AAMC_Raw_Data_for_FY22[[#This Row],[Median]]","v":122229.4},125000,{"$f":"(((AAMC_Raw_Data_for_FY22[[#This Row],[75th]]-AAMC_Raw_Data_for_FY22[[#This Row],[Median]])/25)*30) + AAMC_Raw_Data_for_FY22[[#This Row],[Median]]","v":127770.6},{"$f":"(((AAMC_Raw_Data_for_FY22[[#This Row],[75th]]-AAMC_Raw_Data_for_FY22[[#This Row],[Median]])/25)*35) + AAMC_Raw_Data_for_FY22[[#This Row],[Median]]","v":130541.2},{"$f":"(((AAMC_Raw_Data_for_FY22[[#This Row],[75th]]-AAMC_Raw_Data_for_FY22[[#This Row],[Median]])/25)*40) + AAMC_Raw_Data_for_FY22[[#This Row],[Median]]","v":133311.79999999999}]
[{"$f":"AAMC_Raw_Data_for_FY22[[#This Row],[Source]]&AAMC_Raw_Data_for_FY22[[#This Row],[Type]]&AAMC_Raw_Data_for_FY22[[#This Row],[School Subset]]&AAMC_Raw_Data_for_FY22[[#This Row],[Rank]]&AAMC_Raw_Data_for_FY22[[#This Row],[Degree]]&AAMC_Raw_Data_for_FY22[[#This Row],[Department / Specialty]]&\"L\"","v":"AAMCAcademicAllAssociatePhDPediatrics TotalL"},"Pediatrics Total",3,"AAMC","Academic","All","Associate","PhD","2021-2022",124958,{"$f":"(((AAMC_Raw_Data_for_FY22[[#This Row],[Median]]-AAMC_Raw_Data_for_FY22[[#This Row],[25th]])/25)*5) + AAMC_Raw_Data_for_FY22[[#This Row],[25th]]","v":128260.2},{"$f":"(((AAMC_Raw_Data_for_FY22[[#This Row],[Median]]-AAMC_Raw_Data_for_FY22[[#This Row],[25th]])/25)*10) + AAMC_Raw_Data_for_FY22[[#This Row],[25th]]","v":131562.4},{"$f":"(((AAMC_Raw_Data_for_FY22[[#This Row],[Median]]-AAMC_Raw_Data_for_FY22[[#This Row],[25th]])/25)*15) + AAMC_Raw_Data_for_FY22[[#This Row],[25th]]","v":134864.6},{"$f":"(((AAMC_Raw_Data_for_FY22[[#This Row],[Median]]-AAMC_Raw_Data_for_FY22[[#This Row],[25th]])/25)*20) + AAMC_Raw_Data_for_FY22[[#This Row],[25th]]","v":138166.79999999999},141469,{"$f":"(((AAMC_Raw_Data_for_FY22[[#This Row],[75th]]-AAMC_Raw_Data_for_FY22[[#This Row],[Median]])/25)*5) + AAMC_Raw_Data_for_FY22[[#This Row],[Median]]","v":145636.20000000001},{"$f":"(((AAMC_Raw_Data_for_FY22[[#This Row],[75th]]-AAMC_Raw_Data_for_FY22[[#This Row],[Median]])/25)*10) + AAMC_Raw_Data_for_FY22[[#This Row],[Median]]","v":149803.4},{"$f":"(((AAMC_Raw_Data_for_FY22[[#This Row],[75th]]-AAMC_Raw_Data_for_FY22[[#This Row],[Median]])/25)*15) + AAMC_Raw_Data_for_FY22[[#This Row],[Median]]","v":153970.6},{"$f":"(((AAMC_Raw_Data_for_FY22[[#This Row],[75th]]-AAMC_Raw_Data_for_FY22[[#This Row],[Median]])/25)*20) + AAMC_Raw_Data_for_FY22[[#This Row],[Median]]","v":158137.79999999999},162305,{"$f":"(((AAMC_Raw_Data_for_FY22[[#This Row],[75th]]-AAMC_Raw_Data_for_FY22[[#This Row],[Median]])/25)*30) + AAMC_Raw_Data_for_FY22[[#This Row],[Median]]","v":166472.20000000001},{"$f":"(((AAMC_Raw_Data_for_FY22[[#This Row],[75th]]-AAMC_Raw_Data_for_FY22[[#This Row],[Median]])/25)*35) + AAMC_Raw_Data_for_FY22[[#This Row],[Median]]","v":170639.4},{"$f":"(((AAMC_Raw_Data_for_FY22[[#This Row],[75th]]-AAMC_Raw_Data_for_FY22[[#This Row],[Median]])/25)*40) + AAMC_Raw_Data_for_FY22[[#This Row],[Median]]","v":174806.6}]
[{"$f":"AAMC_Raw_Data_for_FY22[[#This Row],[Source]]&AAMC_Raw_Data_for_FY22[[#This Row],[Type]]&AAMC_Raw_Data_for_FY22[[#This Row],[School Subset]]&AAMC_Raw_Data_for_FY22[[#This Row],[Rank]]&AAMC_Raw_Data_for_FY22[[#This Row],[Degree]]&AAMC_Raw_Data_for_FY22[[#This Row],[Department / Specialty]]&\"L\"","v":"AAMCAcademicAllProfessorPhDPediatrics TotalL"},"Pediatrics Total",2,"AAMC","Academic","All","Professor","PhD","2021-2022",180847,{"$f":"(((AAMC_Raw_Data_for_FY22[[#This Row],[Median]]-AAMC_Raw_Data_for_FY22[[#This Row],[25th]])/25)*5) + AAMC_Raw_Data_for_FY22[[#This Row],[25th]]","v":188283},{"$f":"(((AAMC_Raw_Data_for_FY22[[#This Row],[Median]]-AAMC_Raw_Data_for_FY22[[#This Row],[25th]])/25)*10) + AAMC_Raw_Data_for_FY22[[#This Row],[25th]]","v":195719},{"$f":"(((AAMC_Raw_Data_for_FY22[[#This Row],[Median]]-AAMC_Raw_Data_for_FY22[[#This Row],[25th]])/25)*15) + AAMC_Raw_Data_for_FY22[[#This Row],[25th]]","v":203155},{"$f":"(((AAMC_Raw_Data_for_FY22[[#This Row],[Median]]-AAMC_Raw_Data_for_FY22[[#This Row],[25th]])/25)*20) + AAMC_Raw_Data_for_FY22[[#This Row],[25th]]","v":210591},218027,{"$f":"(((AAMC_Raw_Data_for_FY22[[#This Row],[75th]]-AAMC_Raw_Data_for_FY22[[#This Row],[Median]])/25)*5) + AAMC_Raw_Data_for_FY22[[#This Row],[Median]]","v":225563.6},{"$f":"(((AAMC_Raw_Data_for_FY22[[#This Row],[75th]]-AAMC_Raw_Data_for_FY22[[#This Row],[Median]])/25)*10) + AAMC_Raw_Data_for_FY22[[#This Row],[Median]]","v":233100.2},{"$f":"(((AAMC_Raw_Data_for_FY22[[#This Row],[75th]]-AAMC_Raw_Data_for_FY22[[#This Row],[Median]])/25)*15) + AAMC_Raw_Data_for_FY22[[#This Row],[Median]]","v":240636.79999999999},{"$f":"(((AAMC_Raw_Data_for_FY22[[#This Row],[75th]]-AAMC_Raw_Data_for_FY22[[#This Row],[Median]])/25)*20) + AAMC_Raw_Data_for_FY22[[#This Row],[Median]]","v":248173.4},255710,{"$f":"(((AAMC_Raw_Data_for_FY22[[#This Row],[75th]]-AAMC_Raw_Data_for_FY22[[#This Row],[Median]])/25)*30) + AAMC_Raw_Data_for_FY22[[#This Row],[Median]]","v":263246.59999999998},{"$f":"(((AAMC_Raw_Data_for_FY22[[#This Row],[75th]]-AAMC_Raw_Data_for_FY22[[#This Row],[Median]])/25)*35) + AAMC_Raw_Data_for_FY22[[#This Row],[Median]]","v":270783.2},{"$f":"(((AAMC_Raw_Data_for_FY22[[#This Row],[75th]]-AAMC_Raw_Data_for_FY22[[#This Row],[Median]])/25)*40) + AAMC_Raw_Data_for_FY22[[#This Row],[Median]]","v":278319.8}]
[{"$f":"AAMC_Raw_Data_for_FY22[[#This Row],[Source]]&AAMC_Raw_Data_for_FY22[[#This Row],[Type]]&AAMC_Raw_Data_for_FY22[[#This Row],[School Subset]]&AAMC_Raw_Data_for_FY22[[#This Row],[Rank]]&AAMC_Raw_Data_for_FY22[[#This Row],[Degree]]&AAMC_Raw_Data_for_FY22[[#This Row],[Department / Specialty]]&\"L\"","v":"AAMCAcademicAllChiefPhDPediatrics TotalL"},"Pediatrics Total",6,"AAMC","Academic","All","Chief","PhD","2021-2022",199109,{"$f":"(((AAMC_Raw_Data_for_FY22[[#This Row],[Median]]-AAMC_Raw_Data_for_FY22[[#This Row],[25th]])/25)*5) + AAMC_Raw_Data_for_FY22[[#This Row],[25th]]","v":209755.6},{"$f":"(((AAMC_Raw_Data_for_FY22[[#This Row],[Median]]-AAMC_Raw_Data_for_FY22[[#This Row],[25th]])/25)*10) + AAMC_Raw_Data_for_FY22[[#This Row],[25th]]","v":220402.2},{"$f":"(((AAMC_Raw_Data_for_FY22[[#This Row],[Median]]-AAMC_Raw_Data_for_FY22[[#This Row],[25th]])/25)*15) + AAMC_Raw_Data_for_FY22[[#This Row],[25th]]","v":231048.8},{"$f":"(((AAMC_Raw_Data_for_FY22[[#This Row],[Median]]-AAMC_Raw_Data_for_FY22[[#This Row],[25th]])/25)*20) + AAMC_Raw_Data_for_FY22[[#This Row],[25th]]","v":241695.4},252342,{"$f":"(((AAMC_Raw_Data_for_FY22[[#This Row],[75th]]-AAMC_Raw_Data_for_FY22[[#This Row],[Median]])/25)*5) + AAMC_Raw_Data_for_FY22[[#This Row],[Median]]","v":260171.8},{"$f":"(((AAMC_Raw_Data_for_FY22[[#This Row],[75th]]-AAMC_Raw_Data_for_FY22[[#This Row],[Median]])/25)*10) + AAMC_Raw_Data_for_FY22[[#This Row],[Median]]","v":268001.59999999998},{"$f":"(((AAMC_Raw_Data_for_FY22[[#This Row],[75th]]-AAMC_Raw_Data_for_FY22[[#This Row],[Median]])/25)*15) + AAMC_Raw_Data_for_FY22[[#This Row],[Median]]","v":275831.40000000002},{"$f":"(((AAMC_Raw_Data_for_FY22[[#This Row],[75th]]-AAMC_Raw_Data_for_FY22[[#This Row],[Median]])/25)*20) + AAMC_Raw_Data_for_FY22[[#This Row],[Median]]","v":283661.2},291491,{"$f":"(((AAMC_Raw_Data_for_FY22[[#This Row],[75th]]-AAMC_Raw_Data_for_FY22[[#This Row],[Median]])/25)*30) + AAMC_Raw_Data_for_FY22[[#This Row],[Median]]","v":299320.8},{"$f":"(((AAMC_Raw_Data_for_FY22[[#This Row],[75th]]-AAMC_Raw_Data_for_FY22[[#This Row],[Median]])/25)*35) + AAMC_Raw_Data_for_FY22[[#This Row],[Median]]","v":307150.59999999998},{"$f":"(((AAMC_Raw_Data_for_FY22[[#This Row],[75th]]-AAMC_Raw_Data_for_FY22[[#This Row],[Median]])/25)*40) + AAMC_Raw_Data_for_FY22[[#This Row],[Median]]","v":314980.40000000002}]
[{"$f":"AAMC_Raw_Data_for_FY22[[#This Row],[Source]]&AAMC_Raw_Data_for_FY22[[#This Row],[Type]]&AAMC_Raw_Data_for_FY22[[#This Row],[School Subset]]&AAMC_Raw_Data_for_FY22[[#This Row],[Rank]]&AAMC_Raw_Data_for_FY22[[#This Row],[Degree]]&AAMC_Raw_Data_for_FY22[[#This Row],[Department / Specialty]]&\"L\"","v":"AAMCAcademicAllAssistantPhDAdolescent MedicineL"},"Adolescent Medicine",4,"AAMC","Academic","All","Assistant","PhD","2021-2022",102700,{"$f":"(((AAMC_Raw_Data_for_FY22[[#This Row],[Median]]-AAMC_Raw_Data_for_FY22[[#This Row],[25th]])/25)*5) + AAMC_Raw_Data_for_FY22[[#This Row],[25th]]","v":105864.2},{"$f":"(((AAMC_Raw_Data_for_FY22[[#This Row],[Median]]-AAMC_Raw_Data_for_FY22[[#This Row],[25th]])/25)*10) + AAMC_Raw_Data_for_FY22[[#This Row],[25th]]","v":109028.4},{"$f":"(((AAMC_Raw_Data_for_FY22[[#This Row],[Median]]-AAMC_Raw_Data_for_FY22[[#This Row],[25th]])/25)*15) + AAMC_Raw_Data_for_FY22[[#This Row],[25th]]","v":112192.6},{"$f":"(((AAMC_Raw_Data_for_FY22[[#This Row],[Median]]-AAMC_Raw_Data_for_FY22[[#This Row],[25th]])/25)*20) + AAMC_Raw_Data_for_FY22[[#This Row],[25th]]","v":115356.8},118521,{"$f":"(((AAMC_Raw_Data_for_FY22[[#This Row],[75th]]-AAMC_Raw_Data_for_FY22[[#This Row],[Median]])/25)*5) + AAMC_Raw_Data_for_FY22[[#This Row],[Median]]","v":122172.8},{"$f":"(((AAMC_Raw_Data_for_FY22[[#This Row],[75th]]-AAMC_Raw_Data_for_FY22[[#This Row],[Median]])/25)*10) + AAMC_Raw_Data_for_FY22[[#This Row],[Median]]","v":125824.6},{"$f":"(((AAMC_Raw_Data_for_FY22[[#This Row],[75th]]-AAMC_Raw_Data_for_FY22[[#This Row],[Median]])/25)*15) + AAMC_Raw_Data_for_FY22[[#This Row],[Median]]","v":129476.4},{"$f":"(((AAMC_Raw_Data_for_FY22[[#This Row],[75th]]-AAMC_Raw_Data_for_FY22[[#This Row],[Median]])/25)*20) + AAMC_Raw_Data_for_FY22[[#This Row],[Median]]","v":133128.20000000001},136780,{"$f":"(((AAMC_Raw_Data_for_FY22[[#This Row],[75th]]-AAMC_Raw_Data_for_FY22[[#This Row],[Median]])/25)*30) + AAMC_Raw_Data_for_FY22[[#This Row],[Median]]","v":140431.79999999999},{"$f":"(((AAMC_Raw_Data_for_FY22[[#This Row],[75th]]-AAMC_Raw_Data_for_FY22[[#This Row],[Median]])/25)*35) + AAMC_Raw_Data_for_FY22[[#This Row],[Median]]","v":144083.6},{"$f":"(((AAMC_Raw_Data_for_FY22[[#This Row],[75th]]-AAMC_Raw_Data_for_FY22[[#This Row],[Median]])/25)*40) + AAMC_Raw_Data_for_FY22[[#This Row],[Median]]","v":147735.4}]
[{"$f":"AAMC_Raw_Data_for_FY22[[#This Row],[Source]]&AAMC_Raw_Data_for_FY22[[#This Row],[Type]]&AAMC_Raw_Data_for_FY22[[#This Row],[School Subset]]&AAMC_Raw_Data_for_FY22[[#This Row],[Rank]]&AAMC_Raw_Data_for_FY22[[#This Row],[Degree]]&AAMC_Raw_Data_for_FY22[[#This Row],[Department / Specialty]]&\"L\"","v":"AAMCAcademicAllAssociatePhDAdolescent MedicineL"},"Adolescent Medicine",3,"AAMC","Academic","All","Associate","PhD","2021-2022",null,{"$f":"(((AAMC_Raw_Data_for_FY22[[#This Row],[Median]]-AAMC_Raw_Data_for_FY22[[#This Row],[25th]])/25)*5) + AAMC_Raw_Data_for_FY22[[#This Row],[25th]]","v":0},{"$f":"(((AAMC_Raw_Data_for_FY22[[#This Row],[Median]]-AAMC_Raw_Data_for_FY22[[#This Row],[25th]])/25)*10) + AAMC_Raw_Data_for_FY22[[#This Row],[25th]]","v":0},{"$f":"(((AAMC_Raw_Data_for_FY22[[#This Row],[Median]]-AAMC_Raw_Data_for_FY22[[#This Row],[25th]])/25)*15) + AAMC_Raw_Data_for_FY22[[#This Row],[25th]]","v":0},{"$f":"(((AAMC_Raw_Data_for_FY22[[#This Row],[Median]]-AAMC_Raw_Data_for_FY22[[#This Row],[25th]])/25)*20) + AAMC_Raw_Data_for_FY22[[#This Row],[25th]]","v":0},null,{"$f":"(((AAMC_Raw_Data_for_FY22[[#This Row],[75th]]-AAMC_Raw_Data_for_FY22[[#This Row],[Median]])/25)*5) + AAMC_Raw_Data_for_FY22[[#This Row],[Median]]","v":0},{"$f":"(((AAMC_Raw_Data_for_FY22[[#This Row],[75th]]-AAMC_Raw_Data_for_FY22[[#This Row],[Median]])/25)*10) + AAMC_Raw_Data_for_FY22[[#This Row],[Median]]","v":0},{"$f":"(((AAMC_Raw_Data_for_FY22[[#This Row],[75th]]-AAMC_Raw_Data_for_FY22[[#This Row],[Median]])/25)*15) + AAMC_Raw_Data_for_FY22[[#This Row],[Median]]","v":0},{"$f":"(((AAMC_Raw_Data_for_FY22[[#This Row],[75th]]-AAMC_Raw_Data_for_FY22[[#This Row],[Median]])/25)*20) + AAMC_Raw_Data_for_FY22[[#This Row],[Median]]","v":0},null,{"$f":"(((AAMC_Raw_Data_for_FY22[[#This Row],[75th]]-AAMC_Raw_Data_for_FY22[[#This Row],[Median]])/25)*30) + AAMC_Raw_Data_for_FY22[[#This Row],[Median]]","v":0},{"$f":"(((AAMC_Raw_Data_for_FY22[[#This Row],[75th]]-AAMC_Raw_Data_for_FY22[[#This Row],[Median]])/25)*35) + AAMC_Raw_Data_for_FY22[[#This Row],[Median]]","v":0},{"$f":"(((AAMC_Raw_Data_for_FY22[[#This Row],[75th]]-AAMC_Raw_Data_for_FY22[[#This Row],[Median]])/25)*40) + AAMC_Raw_Data_for_FY22[[#This Row],[Median]]","v":0}]
[{"$f":"AAMC_Raw_Data_for_FY22[[#This Row],[Source]]&AAMC_Raw_Data_for_FY22[[#This Row],[Type]]&AAMC_Raw_Data_for_FY22[[#This Row],[School Subset]]&AAMC_Raw_Data_for_FY22[[#This Row],[Rank]]&AAMC_Raw_Data_for_FY22[[#This Row],[Degree]]&AAMC_Raw_Data_for_FY22[[#This Row],[Department / Specialty]]&\"L\"","v":"AAMCAcademicAllProfessorPhDAdolescent MedicineL"},"Adolescent Medicine",2,"AAMC","Academic","All","Professor","PhD","2021-2022",null,{"$f":"(((AAMC_Raw_Data_for_FY22[[#This Row],[Median]]-AAMC_Raw_Data_for_FY22[[#This Row],[25th]])/25)*5) + AAMC_Raw_Data_for_FY22[[#This Row],[25th]]","v":0},{"$f":"(((AAMC_Raw_Data_for_FY22[[#This Row],[Median]]-AAMC_Raw_Data_for_FY22[[#This Row],[25th]])/25)*10) + AAMC_Raw_Data_for_FY22[[#This Row],[25th]]","v":0},{"$f":"(((AAMC_Raw_Data_for_FY22[[#This Row],[Median]]-AAMC_Raw_Data_for_FY22[[#This Row],[25th]])/25)*15) + AAMC_Raw_Data_for_FY22[[#This Row],[25th]]","v":0},{"$f":"(((AAMC_Raw_Data_for_FY22[[#This Row],[Median]]-AAMC_Raw_Data_for_FY22[[#This Row],[25th]])/25)*20) + AAMC_Raw_Data_for_FY22[[#This Row],[25th]]","v":0},null,{"$f":"(((AAMC_Raw_Data_for_FY22[[#This Row],[75th]]-AAMC_Raw_Data_for_FY22[[#This Row],[Median]])/25)*5) + AAMC_Raw_Data_for_FY22[[#This Row],[Median]]","v":0},{"$f":"(((AAMC_Raw_Data_for_FY22[[#This Row],[75th]]-AAMC_Raw_Data_for_FY22[[#This Row],[Median]])/25)*10) + AAMC_Raw_Data_for_FY22[[#This Row],[Median]]","v":0},{"$f":"(((AAMC_Raw_Data_for_FY22[[#This Row],[75th]]-AAMC_Raw_Data_for_FY22[[#This Row],[Median]])/25)*15) + AAMC_Raw_Data_for_FY22[[#This Row],[Median]]","v":0},{"$f":"(((AAMC_Raw_Data_for_FY22[[#This Row],[75th]]-AAMC_Raw_Data_for_FY22[[#This Row],[Median]])/25)*20) + AAMC_Raw_Data_for_FY22[[#This Row],[Median]]","v":0},null,{"$f":"(((AAMC_Raw_Data_for_FY22[[#This Row],[75th]]-AAMC_Raw_Data_for_FY22[[#This Row],[Median]])/25)*30) + AAMC_Raw_Data_for_FY22[[#This Row],[Median]]","v":0},{"$f":"(((AAMC_Raw_Data_for_FY22[[#This Row],[75th]]-AAMC_Raw_Data_for_FY22[[#This Row],[Median]])/25)*35) + AAMC_Raw_Data_for_FY22[[#This Row],[Median]]","v":0},{"$f":"(((AAMC_Raw_Data_for_FY22[[#This Row],[75th]]-AAMC_Raw_Data_for_FY22[[#This Row],[Median]])/25)*40) + AAMC_Raw_Data_for_FY22[[#This Row],[Median]]","v":0}]
[{"$f":"AAMC_Raw_Data_for_FY22[[#This Row],[Source]]&AAMC_Raw_Data_for_FY22[[#This Row],[Type]]&AAMC_Raw_Data_for_FY22[[#This Row],[School Subset]]&AAMC_Raw_Data_for_FY22[[#This Row],[Rank]]&AAMC_Raw_Data_for_FY22[[#This Row],[Degree]]&AAMC_Raw_Data_for_FY22[[#This Row],[Department / Specialty]]&\"L\"","v":"AAMCAcademicAllInstructorPhDAllergy/Immunology-Peds.L"},"Allergy/Immunology-Peds.",5,"AAMC","Academic","All","Instructor","PhD","2021-2022",null,{"$f":"(((AAMC_Raw_Data_for_FY22[[#This Row],[Median]]-AAMC_Raw_Data_for_FY22[[#This Row],[25th]])/25)*5) + AAMC_Raw_Data_for_FY22[[#This Row],[25th]]","v":0},{"$f":"(((AAMC_Raw_Data_for_FY22[[#This Row],[Median]]-AAMC_Raw_Data_for_FY22[[#This Row],[25th]])/25)*10) + AAMC_Raw_Data_for_FY22[[#This Row],[25th]]","v":0},{"$f":"(((AAMC_Raw_Data_for_FY22[[#This Row],[Median]]-AAMC_Raw_Data_for_FY22[[#This Row],[25th]])/25)*15) + AAMC_Raw_Data_for_FY22[[#This Row],[25th]]","v":0},{"$f":"(((AAMC_Raw_Data_for_FY22[[#This Row],[Median]]-AAMC_Raw_Data_for_FY22[[#This Row],[25th]])/25)*20) + AAMC_Raw_Data_for_FY22[[#This Row],[25th]]","v":0},null,{"$f":"(((AAMC_Raw_Data_for_FY22[[#This Row],[75th]]-AAMC_Raw_Data_for_FY22[[#This Row],[Median]])/25)*5) + AAMC_Raw_Data_for_FY22[[#This Row],[Median]]","v":0},{"$f":"(((AAMC_Raw_Data_for_FY22[[#This Row],[75th]]-AAMC_Raw_Data_for_FY22[[#This Row],[Median]])/25)*10) + AAMC_Raw_Data_for_FY22[[#This Row],[Median]]","v":0},{"$f":"(((AAMC_Raw_Data_for_FY22[[#This Row],[75th]]-AAMC_Raw_Data_for_FY22[[#This Row],[Median]])/25)*15) + AAMC_Raw_Data_for_FY22[[#This Row],[Median]]","v":0},{"$f":"(((AAMC_Raw_Data_for_FY22[[#This Row],[75th]]-AAMC_Raw_Data_for_FY22[[#This Row],[Median]])/25)*20) + AAMC_Raw_Data_for_FY22[[#This Row],[Median]]","v":0},null,{"$f":"(((AAMC_Raw_Data_for_FY22[[#This Row],[75th]]-AAMC_Raw_Data_for_FY22[[#This Row],[Median]])/25)*30) + AAMC_Raw_Data_for_FY22[[#This Row],[Median]]","v":0},{"$f":"(((AAMC_Raw_Data_for_FY22[[#This Row],[75th]]-AAMC_Raw_Data_for_FY22[[#This Row],[Median]])/25)*35) + AAMC_Raw_Data_for_FY22[[#This Row],[Median]]","v":0},{"$f":"(((AAMC_Raw_Data_for_FY22[[#This Row],[75th]]-AAMC_Raw_Data_for_FY22[[#This Row],[Median]])/25)*40) + AAMC_Raw_Data_for_FY22[[#This Row],[Median]]","v":0}]
[{"$f":"AAMC_Raw_Data_for_FY22[[#This Row],[Source]]&AAMC_Raw_Data_for_FY22[[#This Row],[Type]]&AAMC_Raw_Data_for_FY22[[#This Row],[School Subset]]&AAMC_Raw_Data_for_FY22[[#This Row],[Rank]]&AAMC_Raw_Data_for_FY22[[#This Row],[Degree]]&AAMC_Raw_Data_for_FY22[[#This Row],[Department / Specialty]]&\"L\"","v":"AAMCAcademicAllAssistantPhDAllergy/Immunology-Peds.L"},"Allergy/Immunology-Peds.",4,"AAMC","Academic","All","Assistant","PhD","2021-2022",101268,{"$f":"(((AAMC_Raw_Data_for_FY22[[#This Row],[Median]]-AAMC_Raw_Data_for_FY22[[#This Row],[25th]])/25)*5) + AAMC_Raw_Data_for_FY22[[#This Row],[25th]]","v":103013.8},{"$f":"(((AAMC_Raw_Data_for_FY22[[#This Row],[Median]]-AAMC_Raw_Data_for_FY22[[#This Row],[25th]])/25)*10) + AAMC_Raw_Data_for_FY22[[#This Row],[25th]]","v":104759.6},{"$f":"(((AAMC_Raw_Data_for_FY22[[#This Row],[Median]]-AAMC_Raw_Data_for_FY22[[#This Row],[25th]])/25)*15) + AAMC_Raw_Data_for_FY22[[#This Row],[25th]]","v":106505.4},{"$f":"(((AAMC_Raw_Data_for_FY22[[#This Row],[Median]]-AAMC_Raw_Data_for_FY22[[#This Row],[25th]])/25)*20) + AAMC_Raw_Data_for_FY22[[#This Row],[25th]]","v":108251.2},109997,{"$f":"(((AAMC_Raw_Data_for_FY22[[#This Row],[75th]]-AAMC_Raw_Data_for_FY22[[#This Row],[Median]])/25)*5) + AAMC_Raw_Data_for_FY22[[#This Row],[Median]]","v":111920.4},{"$f":"(((AAMC_Raw_Data_for_FY22[[#This Row],[75th]]-AAMC_Raw_Data_for_FY22[[#This Row],[Median]])/25)*10) + AAMC_Raw_Data_for_FY22[[#This Row],[Median]]","v":113843.8},{"$f":"(((AAMC_Raw_Data_for_FY22[[#This Row],[75th]]-AAMC_Raw_Data_for_FY22[[#This Row],[Median]])/25)*15) + AAMC_Raw_Data_for_FY22[[#This Row],[Median]]","v":115767.2},{"$f":"(((AAMC_Raw_Data_for_FY22[[#This Row],[75th]]-AAMC_Raw_Data_for_FY22[[#This Row],[Median]])/25)*20) + AAMC_Raw_Data_for_FY22[[#This Row],[Median]]","v":117690.6},119614,{"$f":"(((AAMC_Raw_Data_for_FY22[[#This Row],[75th]]-AAMC_Raw_Data_for_FY22[[#This Row],[Median]])/25)*30) + AAMC_Raw_Data_for_FY22[[#This Row],[Median]]","v":121537.4},{"$f":"(((AAMC_Raw_Data_for_FY22[[#This Row],[75th]]-AAMC_Raw_Data_for_FY22[[#This Row],[Median]])/25)*35) + AAMC_Raw_Data_for_FY22[[#This Row],[Median]]","v":123460.8},{"$f":"(((AAMC_Raw_Data_for_FY22[[#This Row],[75th]]-AAMC_Raw_Data_for_FY22[[#This Row],[Median]])/25)*40) + AAMC_Raw_Data_for_FY22[[#This Row],[Median]]","v":125384.2}]
[{"$f":"AAMC_Raw_Data_for_FY22[[#This Row],[Source]]&AAMC_Raw_Data_for_FY22[[#This Row],[Type]]&AAMC_Raw_Data_for_FY22[[#This Row],[School Subset]]&AAMC_Raw_Data_for_FY22[[#This Row],[Rank]]&AAMC_Raw_Data_for_FY22[[#This Row],[Degree]]&AAMC_Raw_Data_for_FY22[[#This Row],[Department / Specialty]]&\"L\"","v":"AAMCAcademicAllAssociatePhDAllergy/Immunology-Peds.L"},"Allergy/Immunology-Peds.",3,"AAMC","Academic","All","Associate","PhD","2021-2022",131523,{"$f":"(((AAMC_Raw_Data_for_FY22[[#This Row],[Median]]-AAMC_Raw_Data_for_FY22[[#This Row],[25th]])/25)*5) + AAMC_Raw_Data_for_FY22[[#This Row],[25th]]","v":133834.79999999999},{"$f":"(((AAMC_Raw_Data_for_FY22[[#This Row],[Median]]-AAMC_Raw_Data_for_FY22[[#This Row],[25th]])/25)*10) + AAMC_Raw_Data_for_FY22[[#This Row],[25th]]","v":136146.6},{"$f":"(((AAMC_Raw_Data_for_FY22[[#This Row],[Median]]-AAMC_Raw_Data_for_FY22[[#This Row],[25th]])/25)*15) + AAMC_Raw_Data_for_FY22[[#This Row],[25th]]","v":138458.4},{"$f":"(((AAMC_Raw_Data_for_FY22[[#This Row],[Median]]-AAMC_Raw_Data_for_FY22[[#This Row],[25th]])/25)*20) + AAMC_Raw_Data_for_FY22[[#This Row],[25th]]","v":140770.20000000001},143082,{"$f":"(((AAMC_Raw_Data_for_FY22[[#This Row],[75th]]-AAMC_Raw_Data_for_FY22[[#This Row],[Median]])/25)*5) + AAMC_Raw_Data_for_FY22[[#This Row],[Median]]","v":145247.20000000001},{"$f":"(((AAMC_Raw_Data_for_FY22[[#This Row],[75th]]-AAMC_Raw_Data_for_FY22[[#This Row],[Median]])/25)*10) + AAMC_Raw_Data_for_FY22[[#This Row],[Median]]","v":147412.4},{"$f":"(((AAMC_Raw_Data_for_FY22[[#This Row],[75th]]-AAMC_Raw_Data_for_FY22[[#This Row],[Median]])/25)*15) + AAMC_Raw_Data_for_FY22[[#This Row],[Median]]","v":149577.60000000001},{"$f":"(((AAMC_Raw_Data_for_FY22[[#This Row],[75th]]-AAMC_Raw_Data_for_FY22[[#This Row],[Median]])/25)*20) + AAMC_Raw_Data_for_FY22[[#This Row],[Median]]","v":151742.79999999999},153908,{"$f":"(((AAMC_Raw_Data_for_FY22[[#This Row],[75th]]-AAMC_Raw_Data_for_FY22[[#This Row],[Median]])/25)*30) + AAMC_Raw_Data_for_FY22[[#This Row],[Median]]","v":156073.20000000001},{"$f":"(((AAMC_Raw_Data_for_FY22[[#This Row],[75th]]-AAMC_Raw_Data_for_FY22[[#This Row],[Median]])/25)*35) + AAMC_Raw_Data_for_FY22[[#This Row],[Median]]","v":158238.39999999999},{"$f":"(((AAMC_Raw_Data_for_FY22[[#This Row],[75th]]-AAMC_Raw_Data_for_FY22[[#This Row],[Median]])/25)*40) + AAMC_Raw_Data_for_FY22[[#This Row],[Median]]","v":160403.6}]
[{"$f":"AAMC_Raw_Data_for_FY22[[#This Row],[Source]]&AAMC_Raw_Data_for_FY22[[#This Row],[Type]]&AAMC_Raw_Data_for_FY22[[#This Row],[School Subset]]&AAMC_Raw_Data_for_FY22[[#This Row],[Rank]]&AAMC_Raw_Data_for_FY22[[#This Row],[Degree]]&AAMC_Raw_Data_for_FY22[[#This Row],[Department / Specialty]]&\"L\"","v":"AAMCAcademicAllProfessorPhDAllergy/Immunology-Peds.L"},"Allergy/Immunology-Peds.",2,"AAMC","Academic","All","Professor","PhD","2021-2022",200141,{"$f":"(((AAMC_Raw_Data_for_FY22[[#This Row],[Median]]-AAMC_Raw_Data_for_FY22[[#This Row],[25th]])/25)*5) + AAMC_Raw_Data_for_FY22[[#This Row],[25th]]","v":203102.8},{"$f":"(((AAMC_Raw_Data_for_FY22[[#This Row],[Median]]-AAMC_Raw_Data_for_FY22[[#This Row],[25th]])/25)*10) + AAMC_Raw_Data_for_FY22[[#This Row],[25th]]","v":206064.6},{"$f":"(((AAMC_Raw_Data_for_FY22[[#This Row],[Median]]-AAMC_Raw_Data_for_FY22[[#This Row],[25th]])/25)*15) + AAMC_Raw_Data_for_FY22[[#This Row],[25th]]","v":209026.4},{"$f":"(((AAMC_Raw_Data_for_FY22[[#This Row],[Median]]-AAMC_Raw_Data_for_FY22[[#This Row],[25th]])/25)*20) + AAMC_Raw_Data_for_FY22[[#This Row],[25th]]","v":211988.2},214950,{"$f":"(((AAMC_Raw_Data_for_FY22[[#This Row],[75th]]-AAMC_Raw_Data_for_FY22[[#This Row],[Median]])/25)*5) + AAMC_Raw_Data_for_FY22[[#This Row],[Median]]","v":216795.4},{"$f":"(((AAMC_Raw_Data_for_FY22[[#This Row],[75th]]-AAMC_Raw_Data_for_FY22[[#This Row],[Median]])/25)*10) + AAMC_Raw_Data_for_FY22[[#This Row],[Median]]","v":218640.8},{"$f":"(((AAMC_Raw_Data_for_FY22[[#This Row],[75th]]-AAMC_Raw_Data_for_FY22[[#This Row],[Median]])/25)*15) + AAMC_Raw_Data_for_FY22[[#This Row],[Median]]","v":220486.2},{"$f":"(((AAMC_Raw_Data_for_FY22[[#This Row],[75th]]-AAMC_Raw_Data_for_FY22[[#This Row],[Median]])/25)*20) + AAMC_Raw_Data_for_FY22[[#This Row],[Median]]","v":222331.6},224177,{"$f":"(((AAMC_Raw_Data_for_FY22[[#This Row],[75th]]-AAMC_Raw_Data_for_FY22[[#This Row],[Median]])/25)*30) + AAMC_Raw_Data_for_FY22[[#This Row],[Median]]","v":226022.39999999999},{"$f":"(((AAMC_Raw_Data_for_FY22[[#This Row],[75th]]-AAMC_Raw_Data_for_FY22[[#This Row],[Median]])/25)*35) + AAMC_Raw_Data_for_FY22[[#This Row],[Median]]","v":227867.8},{"$f":"(((AAMC_Raw_Data_for_FY22[[#This Row],[75th]]-AAMC_Raw_Data_for_FY22[[#This Row],[Median]])/25)*40) + AAMC_Raw_Data_for_FY22[[#This Row],[Median]]","v":229713.2}]
[{"$f":"AAMC_Raw_Data_for_FY22[[#This Row],[Source]]&AAMC_Raw_Data_for_FY22[[#This Row],[Type]]&AAMC_Raw_Data_for_FY22[[#This Row],[School Subset]]&AAMC_Raw_Data_for_FY22[[#This Row],[Rank]]&AAMC_Raw_Data_for_FY22[[#This Row],[Degree]]&AAMC_Raw_Data_for_FY22[[#This Row],[Department / Specialty]]&\"L\"","v":"AAMCAcademicAllChiefPhDAllergy/Immunology-Peds.L"},"Allergy/Immunology-Peds.",6,"AAMC","Academic","All","Chief","PhD","2021-2022",null,{"$f":"(((AAMC_Raw_Data_for_FY22[[#This Row],[Median]]-AAMC_Raw_Data_for_FY22[[#This Row],[25th]])/25)*5) + AAMC_Raw_Data_for_FY22[[#This Row],[25th]]","v":0},{"$f":"(((AAMC_Raw_Data_for_FY22[[#This Row],[Median]]-AAMC_Raw_Data_for_FY22[[#This Row],[25th]])/25)*10) + AAMC_Raw_Data_for_FY22[[#This Row],[25th]]","v":0},{"$f":"(((AAMC_Raw_Data_for_FY22[[#This Row],[Median]]-AAMC_Raw_Data_for_FY22[[#This Row],[25th]])/25)*15) + AAMC_Raw_Data_for_FY22[[#This Row],[25th]]","v":0},{"$f":"(((AAMC_Raw_Data_for_FY22[[#This Row],[Median]]-AAMC_Raw_Data_for_FY22[[#This Row],[25th]])/25)*20) + AAMC_Raw_Data_for_FY22[[#This Row],[25th]]","v":0},null,{"$f":"(((AAMC_Raw_Data_for_FY22[[#This Row],[75th]]-AAMC_Raw_Data_for_FY22[[#This Row],[Median]])/25)*5) + AAMC_Raw_Data_for_FY22[[#This Row],[Median]]","v":0},{"$f":"(((AAMC_Raw_Data_for_FY22[[#This Row],[75th]]-AAMC_Raw_Data_for_FY22[[#This Row],[Median]])/25)*10) + AAMC_Raw_Data_for_FY22[[#This Row],[Median]]","v":0},{"$f":"(((AAMC_Raw_Data_for_FY22[[#This Row],[75th]]-AAMC_Raw_Data_for_FY22[[#This Row],[Median]])/25)*15) + AAMC_Raw_Data_for_FY22[[#This Row],[Median]]","v":0},{"$f":"(((AAMC_Raw_Data_for_FY22[[#This Row],[75th]]-AAMC_Raw_Data_for_FY22[[#This Row],[Median]])/25)*20) + AAMC_Raw_Data_for_FY22[[#This Row],[Median]]","v":0},null,{"$f":"(((AAMC_Raw_Data_for_FY22[[#This Row],[75th]]-AAMC_Raw_Data_for_FY22[[#This Row],[Median]])/25)*30) + AAMC_Raw_Data_for_FY22[[#This Row],[Median]]","v":0},{"$f":"(((AAMC_Raw_Data_for_FY22[[#This Row],[75th]]-AAMC_Raw_Data_for_FY22[[#This Row],[Median]])/25)*35) + AAMC_Raw_Data_for_FY22[[#This Row],[Median]]","v":0},{"$f":"(((AAMC_Raw_Data_for_FY22[[#This Row],[75th]]-AAMC_Raw_Data_for_FY22[[#This Row],[Median]])/25)*40) + AAMC_Raw_Data_for_FY22[[#This Row],[Median]]","v":0}]
[{"$f":"AAMC_Raw_Data_for_FY22[[#This Row],[Source]]&AAMC_Raw_Data_for_FY22[[#This Row],[Type]]&AAMC_Raw_Data_for_FY22[[#This Row],[School Subset]]&AAMC_Raw_Data_for_FY22[[#This Row],[Rank]]&AAMC_Raw_Data_for_FY22[[#This Row],[Degree]]&AAMC_Raw_Data_for_FY22[[#This Row],[Department / Specialty]]&\"L\"","v":"AAMCAcademicAllInstructorPhDCritical/Intensive Care-Peds.L"},"Critical/Intensive Care-Peds.",5,"AAMC","Academic","All","Instructor","PhD","2021-2022",null,{"$f":"(((AAMC_Raw_Data_for_FY22[[#This Row],[Median]]-AAMC_Raw_Data_for_FY22[[#This Row],[25th]])/25)*5) + AAMC_Raw_Data_for_FY22[[#This Row],[25th]]","v":0},{"$f":"(((AAMC_Raw_Data_for_FY22[[#This Row],[Median]]-AAMC_Raw_Data_for_FY22[[#This Row],[25th]])/25)*10) + AAMC_Raw_Data_for_FY22[[#This Row],[25th]]","v":0},{"$f":"(((AAMC_Raw_Data_for_FY22[[#This Row],[Median]]-AAMC_Raw_Data_for_FY22[[#This Row],[25th]])/25)*15) + AAMC_Raw_Data_for_FY22[[#This Row],[25th]]","v":0},{"$f":"(((AAMC_Raw_Data_for_FY22[[#This Row],[Median]]-AAMC_Raw_Data_for_FY22[[#This Row],[25th]])/25)*20) + AAMC_Raw_Data_for_FY22[[#This Row],[25th]]","v":0},null,{"$f":"(((AAMC_Raw_Data_for_FY22[[#This Row],[75th]]-AAMC_Raw_Data_for_FY22[[#This Row],[Median]])/25)*5) + AAMC_Raw_Data_for_FY22[[#This Row],[Median]]","v":0},{"$f":"(((AAMC_Raw_Data_for_FY22[[#This Row],[75th]]-AAMC_Raw_Data_for_FY22[[#This Row],[Median]])/25)*10) + AAMC_Raw_Data_for_FY22[[#This Row],[Median]]","v":0},{"$f":"(((AAMC_Raw_Data_for_FY22[[#This Row],[75th]]-AAMC_Raw_Data_for_FY22[[#This Row],[Median]])/25)*15) + AAMC_Raw_Data_for_FY22[[#This Row],[Median]]","v":0},{"$f":"(((AAMC_Raw_Data_for_FY22[[#This Row],[75th]]-AAMC_Raw_Data_for_FY22[[#This Row],[Median]])/25)*20) + AAMC_Raw_Data_for_FY22[[#This Row],[Median]]","v":0},null,{"$f":"(((AAMC_Raw_Data_for_FY22[[#This Row],[75th]]-AAMC_Raw_Data_for_FY22[[#This Row],[Median]])/25)*30) + AAMC_Raw_Data_for_FY22[[#This Row],[Median]]","v":0},{"$f":"(((AAMC_Raw_Data_for_FY22[[#This Row],[75th]]-AAMC_Raw_Data_for_FY22[[#This Row],[Median]])/25)*35) + AAMC_Raw_Data_for_FY22[[#This Row],[Median]]","v":0},{"$f":"(((AAMC_Raw_Data_for_FY22[[#This Row],[75th]]-AAMC_Raw_Data_for_FY22[[#This Row],[Median]])/25)*40) + AAMC_Raw_Data_for_FY22[[#This Row],[Median]]","v":0}]
[{"$f":"AAMC_Raw_Data_for_FY22[[#This Row],[Source]]&AAMC_Raw_Data_for_FY22[[#This Row],[Type]]&AAMC_Raw_Data_for_FY22[[#This Row],[School Subset]]&AAMC_Raw_Data_for_FY22[[#This Row],[Rank]]&AAMC_Raw_Data_for_FY22[[#This Row],[Degree]]&AAMC_Raw_Data_for_FY22[[#This Row],[Department / Specialty]]&\"L\"","v":"AAMCAcademicAllAssistantPhDCritical/Intensive Care-Peds.L"},"Critical/Intensive Care-Peds.",4,"AAMC","Academic","All","Assistant","PhD","2021-2022",120500,{"$f":"(((AAMC_Raw_Data_for_FY22[[#This Row],[Median]]-AAMC_Raw_Data_for_FY22[[#This Row],[25th]])/25)*5) + AAMC_Raw_Data_for_FY22[[#This Row],[25th]]","v":125598.8},{"$f":"(((AAMC_Raw_Data_for_FY22[[#This Row],[Median]]-AAMC_Raw_Data_for_FY22[[#This Row],[25th]])/25)*10) + AAMC_Raw_Data_for_FY22[[#This Row],[25th]]","v":130697.60000000001},{"$f":"(((AAMC_Raw_Data_for_FY22[[#This Row],[Median]]-AAMC_Raw_Data_for_FY22[[#This Row],[25th]])/25)*15) + AAMC_Raw_Data_for_FY22[[#This Row],[25th]]","v":135796.4},{"$f":"(((AAMC_Raw_Data_for_FY22[[#This Row],[Median]]-AAMC_Raw_Data_for_FY22[[#This Row],[25th]])/25)*20) + AAMC_Raw_Data_for_FY22[[#This Row],[25th]]","v":140895.20000000001},145994,{"$f":"(((AAMC_Raw_Data_for_FY22[[#This Row],[75th]]-AAMC_Raw_Data_for_FY22[[#This Row],[Median]])/25)*5) + AAMC_Raw_Data_for_FY22[[#This Row],[Median]]","v":158967},{"$f":"(((AAMC_Raw_Data_for_FY22[[#This Row],[75th]]-AAMC_Raw_Data_for_FY22[[#This Row],[Median]])/25)*10) + AAMC_Raw_Data_for_FY22[[#This Row],[Median]]","v":171940},{"$f":"(((AAMC_Raw_Data_for_FY22[[#This Row],[75th]]-AAMC_Raw_Data_for_FY22[[#This Row],[Median]])/25)*15) + AAMC_Raw_Data_for_FY22[[#This Row],[Median]]","v":184913},{"$f":"(((AAMC_Raw_Data_for_FY22[[#This Row],[75th]]-AAMC_Raw_Data_for_FY22[[#This Row],[Median]])/25)*20) + AAMC_Raw_Data_for_FY22[[#This Row],[Median]]","v":197886},210859,{"$f":"(((AAMC_Raw_Data_for_FY22[[#This Row],[75th]]-AAMC_Raw_Data_for_FY22[[#This Row],[Median]])/25)*30) + AAMC_Raw_Data_for_FY22[[#This Row],[Median]]","v":223832},{"$f":"(((AAMC_Raw_Data_for_FY22[[#This Row],[75th]]-AAMC_Raw_Data_for_FY22[[#This Row],[Median]])/25)*35) + AAMC_Raw_Data_for_FY22[[#This Row],[Median]]","v":236805},{"$f":"(((AAMC_Raw_Data_for_FY22[[#This Row],[75th]]-AAMC_Raw_Data_for_FY22[[#This Row],[Median]])/25)*40) + AAMC_Raw_Data_for_FY22[[#This Row],[Median]]","v":249778}]
[{"$f":"AAMC_Raw_Data_for_FY22[[#This Row],[Source]]&AAMC_Raw_Data_for_FY22[[#This Row],[Type]]&AAMC_Raw_Data_for_FY22[[#This Row],[School Subset]]&AAMC_Raw_Data_for_FY22[[#This Row],[Rank]]&AAMC_Raw_Data_for_FY22[[#This Row],[Degree]]&AAMC_Raw_Data_for_FY22[[#This Row],[Department / Specialty]]&\"L\"","v":"AAMCAcademicAllAssociatePhDCritical/Intensive Care-Peds.L"},"Critical/Intensive Care-Peds.",3,"AAMC","Academic","All","Associate","PhD","2021-2022",null,{"$f":"(((AAMC_Raw_Data_for_FY22[[#This Row],[Median]]-AAMC_Raw_Data_for_FY22[[#This Row],[25th]])/25)*5) + AAMC_Raw_Data_for_FY22[[#This Row],[25th]]","v":0},{"$f":"(((AAMC_Raw_Data_for_FY22[[#This Row],[Median]]-AAMC_Raw_Data_for_FY22[[#This Row],[25th]])/25)*10) + AAMC_Raw_Data_for_FY22[[#This Row],[25th]]","v":0},{"$f":"(((AAMC_Raw_Data_for_FY22[[#This Row],[Median]]-AAMC_Raw_Data_for_FY22[[#This Row],[25th]])/25)*15) + AAMC_Raw_Data_for_FY22[[#This Row],[25th]]","v":0},{"$f":"(((AAMC_Raw_Data_for_FY22[[#This Row],[Median]]-AAMC_Raw_Data_for_FY22[[#This Row],[25th]])/25)*20) + AAMC_Raw_Data_for_FY22[[#This Row],[25th]]","v":0},null,{"$f":"(((AAMC_Raw_Data_for_FY22[[#This Row],[75th]]-AAMC_Raw_Data_for_FY22[[#This Row],[Median]])/25)*5) + AAMC_Raw_Data_for_FY22[[#This Row],[Median]]","v":0},{"$f":"(((AAMC_Raw_Data_for_FY22[[#This Row],[75th]]-AAMC_Raw_Data_for_FY22[[#This Row],[Median]])/25)*10) + AAMC_Raw_Data_for_FY22[[#This Row],[Median]]","v":0},{"$f":"(((AAMC_Raw_Data_for_FY22[[#This Row],[75th]]-AAMC_Raw_Data_for_FY22[[#This Row],[Median]])/25)*15) + AAMC_Raw_Data_for_FY22[[#This Row],[Median]]","v":0},{"$f":"(((AAMC_Raw_Data_for_FY22[[#This Row],[75th]]-AAMC_Raw_Data_for_FY22[[#This Row],[Median]])/25)*20) + AAMC_Raw_Data_for_FY22[[#This Row],[Median]]","v":0},null,{"$f":"(((AAMC_Raw_Data_for_FY22[[#This Row],[75th]]-AAMC_Raw_Data_for_FY22[[#This Row],[Median]])/25)*30) + AAMC_Raw_Data_for_FY22[[#This Row],[Median]]","v":0},{"$f":"(((AAMC_Raw_Data_for_FY22[[#This Row],[75th]]-AAMC_Raw_Data_for_FY22[[#This Row],[Median]])/25)*35) + AAMC_Raw_Data_for_FY22[[#This Row],[Median]]","v":0},{"$f":"(((AAMC_Raw_Data_for_FY22[[#This Row],[75th]]-AAMC_Raw_Data_for_FY22[[#This Row],[Median]])/25)*40) + AAMC_Raw_Data_for_FY22[[#This Row],[Median]]","v":0}]
[{"$f":"AAMC_Raw_Data_for_FY22[[#This Row],[Source]]&AAMC_Raw_Data_for_FY22[[#This Row],[Type]]&AAMC_Raw_Data_for_FY22[[#This Row],[School Subset]]&AAMC_Raw_Data_for_FY22[[#This Row],[Rank]]&AAMC_Raw_Data_for_FY22[[#This Row],[Degree]]&AAMC_Raw_Data_for_FY22[[#This Row],[Department / Specialty]]&\"L\"","v":"AAMCAcademicAllProfessorPhDCritical/Intensive Care-Peds.L"},"Critical/Intensive Care-Peds.",2,"AAMC","Academic","All","Professor","PhD","2021-2022",null,{"$f":"(((AAMC_Raw_Data_for_FY22[[#This Row],[Median]]-AAMC_Raw_Data_for_FY22[[#This Row],[25th]])/25)*5) + AAMC_Raw_Data_for_FY22[[#This Row],[25th]]","v":0},{"$f":"(((AAMC_Raw_Data_for_FY22[[#This Row],[Median]]-AAMC_Raw_Data_for_FY22[[#This Row],[25th]])/25)*10) + AAMC_Raw_Data_for_FY22[[#This Row],[25th]]","v":0},{"$f":"(((AAMC_Raw_Data_for_FY22[[#This Row],[Median]]-AAMC_Raw_Data_for_FY22[[#This Row],[25th]])/25)*15) + AAMC_Raw_Data_for_FY22[[#This Row],[25th]]","v":0},{"$f":"(((AAMC_Raw_Data_for_FY22[[#This Row],[Median]]-AAMC_Raw_Data_for_FY22[[#This Row],[25th]])/25)*20) + AAMC_Raw_Data_for_FY22[[#This Row],[25th]]","v":0},null,{"$f":"(((AAMC_Raw_Data_for_FY22[[#This Row],[75th]]-AAMC_Raw_Data_for_FY22[[#This Row],[Median]])/25)*5) + AAMC_Raw_Data_for_FY22[[#This Row],[Median]]","v":0},{"$f":"(((AAMC_Raw_Data_for_FY22[[#This Row],[75th]]-AAMC_Raw_Data_for_FY22[[#This Row],[Median]])/25)*10) + AAMC_Raw_Data_for_FY22[[#This Row],[Median]]","v":0},{"$f":"(((AAMC_Raw_Data_for_FY22[[#This Row],[75th]]-AAMC_Raw_Data_for_FY22[[#This Row],[Median]])/25)*15) + AAMC_Raw_Data_for_FY22[[#This Row],[Median]]","v":0},{"$f":"(((AAMC_Raw_Data_for_FY22[[#This Row],[75th]]-AAMC_Raw_Data_for_FY22[[#This Row],[Median]])/25)*20) + AAMC_Raw_Data_for_FY22[[#This Row],[Median]]","v":0},null,{"$f":"(((AAMC_Raw_Data_for_FY22[[#This Row],[75th]]-AAMC_Raw_Data_for_FY22[[#This Row],[Median]])/25)*30) + AAMC_Raw_Data_for_FY22[[#This Row],[Median]]","v":0},{"$f":"(((AAMC_Raw_Data_for_FY22[[#This Row],[75th]]-AAMC_Raw_Data_for_FY22[[#This Row],[Median]])/25)*35) + AAMC_Raw_Data_for_FY22[[#This Row],[Median]]","v":0},{"$f":"(((AAMC_Raw_Data_for_FY22[[#This Row],[75th]]-AAMC_Raw_Data_for_FY22[[#This Row],[Median]])/25)*40) + AAMC_Raw_Data_for_FY22[[#This Row],[Median]]","v":0}]
[{"$f":"AAMC_Raw_Data_for_FY22[[#This Row],[Source]]&AAMC_Raw_Data_for_FY22[[#This Row],[Type]]&AAMC_Raw_Data_for_FY22[[#This Row],[School Subset]]&AAMC_Raw_Data_for_FY22[[#This Row],[Rank]]&AAMC_Raw_Data_for_FY22[[#This Row],[Degree]]&AAMC_Raw_Data_for_FY22[[#This Row],[Department / Specialty]]&\"L\"","v":"AAMCAcademicAllInstructorPhDDevelopmental-Behavioral PediatricsL"},"Developmental-Behavioral Pediatrics",5,"AAMC","Academic","All","Instructor","PhD","2021-2022",null,{"$f":"(((AAMC_Raw_Data_for_FY22[[#This Row],[Median]]-AAMC_Raw_Data_for_FY22[[#This Row],[25th]])/25)*5) + AAMC_Raw_Data_for_FY22[[#This Row],[25th]]","v":0},{"$f":"(((AAMC_Raw_Data_for_FY22[[#This Row],[Median]]-AAMC_Raw_Data_for_FY22[[#This Row],[25th]])/25)*10) + AAMC_Raw_Data_for_FY22[[#This Row],[25th]]","v":0},{"$f":"(((AAMC_Raw_Data_for_FY22[[#This Row],[Median]]-AAMC_Raw_Data_for_FY22[[#This Row],[25th]])/25)*15) + AAMC_Raw_Data_for_FY22[[#This Row],[25th]]","v":0},{"$f":"(((AAMC_Raw_Data_for_FY22[[#This Row],[Median]]-AAMC_Raw_Data_for_FY22[[#This Row],[25th]])/25)*20) + AAMC_Raw_Data_for_FY22[[#This Row],[25th]]","v":0},null,{"$f":"(((AAMC_Raw_Data_for_FY22[[#This Row],[75th]]-AAMC_Raw_Data_for_FY22[[#This Row],[Median]])/25)*5) + AAMC_Raw_Data_for_FY22[[#This Row],[Median]]","v":0},{"$f":"(((AAMC_Raw_Data_for_FY22[[#This Row],[75th]]-AAMC_Raw_Data_for_FY22[[#This Row],[Median]])/25)*10) + AAMC_Raw_Data_for_FY22[[#This Row],[Median]]","v":0},{"$f":"(((AAMC_Raw_Data_for_FY22[[#This Row],[75th]]-AAMC_Raw_Data_for_FY22[[#This Row],[Median]])/25)*15) + AAMC_Raw_Data_for_FY22[[#This Row],[Median]]","v":0},{"$f":"(((AAMC_Raw_Data_for_FY22[[#This Row],[75th]]-AAMC_Raw_Data_for_FY22[[#This Row],[Median]])/25)*20) + AAMC_Raw_Data_for_FY22[[#This Row],[Median]]","v":0},null,{"$f":"(((AAMC_Raw_Data_for_FY22[[#This Row],[75th]]-AAMC_Raw_Data_for_FY22[[#This Row],[Median]])/25)*30) + AAMC_Raw_Data_for_FY22[[#This Row],[Median]]","v":0},{"$f":"(((AAMC_Raw_Data_for_FY22[[#This Row],[75th]]-AAMC_Raw_Data_for_FY22[[#This Row],[Median]])/25)*35) + AAMC_Raw_Data_for_FY22[[#This Row],[Median]]","v":0},{"$f":"(((AAMC_Raw_Data_for_FY22[[#This Row],[75th]]-AAMC_Raw_Data_for_FY22[[#This Row],[Median]])/25)*40) + AAMC_Raw_Data_for_FY22[[#This Row],[Median]]","v":0}]
[{"$f":"AAMC_Raw_Data_for_FY22[[#This Row],[Source]]&AAMC_Raw_Data_for_FY22[[#This Row],[Type]]&AAMC_Raw_Data_for_FY22[[#This Row],[School Subset]]&AAMC_Raw_Data_for_FY22[[#This Row],[Rank]]&AAMC_Raw_Data_for_FY22[[#This Row],[Degree]]&AAMC_Raw_Data_for_FY22[[#This Row],[Department / Specialty]]&\"L\"","v":"AAMCAcademicAllAssistantPhDDevelopmental-Behavioral PediatricsL"},"Developmental-Behavioral Pediatrics",4,"AAMC","Academic","All","Assistant","PhD","2021-2022",116563,{"$f":"(((AAMC_Raw_Data_for_FY22[[#This Row],[Median]]-AAMC_Raw_Data_for_FY22[[#This Row],[25th]])/25)*5) + AAMC_Raw_Data_for_FY22[[#This Row],[25th]]","v":118057.4},{"$f":"(((AAMC_Raw_Data_for_FY22[[#This Row],[Median]]-AAMC_Raw_Data_for_FY22[[#This Row],[25th]])/25)*10) + AAMC_Raw_Data_for_FY22[[#This Row],[25th]]","v":119551.8},{"$f":"(((AAMC_Raw_Data_for_FY22[[#This Row],[Median]]-AAMC_Raw_Data_for_FY22[[#This Row],[25th]])/25)*15) + AAMC_Raw_Data_for_FY22[[#This Row],[25th]]","v":121046.2},{"$f":"(((AAMC_Raw_Data_for_FY22[[#This Row],[Median]]-AAMC_Raw_Data_for_FY22[[#This Row],[25th]])/25)*20) + AAMC_Raw_Data_for_FY22[[#This Row],[25th]]","v":122540.6},124035,{"$f":"(((AAMC_Raw_Data_for_FY22[[#This Row],[75th]]-AAMC_Raw_Data_for_FY22[[#This Row],[Median]])/25)*5) + AAMC_Raw_Data_for_FY22[[#This Row],[Median]]","v":126175},{"$f":"(((AAMC_Raw_Data_for_FY22[[#This Row],[75th]]-AAMC_Raw_Data_for_FY22[[#This Row],[Median]])/25)*10) + AAMC_Raw_Data_for_FY22[[#This Row],[Median]]","v":128315},{"$f":"(((AAMC_Raw_Data_for_FY22[[#This Row],[75th]]-AAMC_Raw_Data_for_FY22[[#This Row],[Median]])/25)*15) + AAMC_Raw_Data_for_FY22[[#This Row],[Median]]","v":130455},{"$f":"(((AAMC_Raw_Data_for_FY22[[#This Row],[75th]]-AAMC_Raw_Data_for_FY22[[#This Row],[Median]])/25)*20) + AAMC_Raw_Data_for_FY22[[#This Row],[Median]]","v":132595},134735,{"$f":"(((AAMC_Raw_Data_for_FY22[[#This Row],[75th]]-AAMC_Raw_Data_for_FY22[[#This Row],[Median]])/25)*30) + AAMC_Raw_Data_for_FY22[[#This Row],[Median]]","v":136875},{"$f":"(((AAMC_Raw_Data_for_FY22[[#This Row],[75th]]-AAMC_Raw_Data_for_FY22[[#This Row],[Median]])/25)*35) + AAMC_Raw_Data_for_FY22[[#This Row],[Median]]","v":139015},{"$f":"(((AAMC_Raw_Data_for_FY22[[#This Row],[75th]]-AAMC_Raw_Data_for_FY22[[#This Row],[Median]])/25)*40) + AAMC_Raw_Data_for_FY22[[#This Row],[Median]]","v":141155}]
[{"$f":"AAMC_Raw_Data_for_FY22[[#This Row],[Source]]&AAMC_Raw_Data_for_FY22[[#This Row],[Type]]&AAMC_Raw_Data_for_FY22[[#This Row],[School Subset]]&AAMC_Raw_Data_for_FY22[[#This Row],[Rank]]&AAMC_Raw_Data_for_FY22[[#This Row],[Degree]]&AAMC_Raw_Data_for_FY22[[#This Row],[Department / Specialty]]&\"L\"","v":"AAMCAcademicAllAssociatePhDDevelopmental-Behavioral PediatricsL"},"Developmental-Behavioral Pediatrics",3,"AAMC","Academic","All","Associate","PhD","2021-2022",132314,{"$f":"(((AAMC_Raw_Data_for_FY22[[#This Row],[Median]]-AAMC_Raw_Data_for_FY22[[#This Row],[25th]])/25)*5) + AAMC_Raw_Data_for_FY22[[#This Row],[25th]]","v":134231.6},{"$f":"(((AAMC_Raw_Data_for_FY22[[#This Row],[Median]]-AAMC_Raw_Data_for_FY22[[#This Row],[25th]])/25)*10) + AAMC_Raw_Data_for_FY22[[#This Row],[25th]]","v":136149.20000000001},{"$f":"(((AAMC_Raw_Data_for_FY22[[#This Row],[Median]]-AAMC_Raw_Data_for_FY22[[#This Row],[25th]])/25)*15) + AAMC_Raw_Data_for_FY22[[#This Row],[25th]]","v":138066.79999999999},{"$f":"(((AAMC_Raw_Data_for_FY22[[#This Row],[Median]]-AAMC_Raw_Data_for_FY22[[#This Row],[25th]])/25)*20) + AAMC_Raw_Data_for_FY22[[#This Row],[25th]]","v":139984.4},141902,{"$f":"(((AAMC_Raw_Data_for_FY22[[#This Row],[75th]]-AAMC_Raw_Data_for_FY22[[#This Row],[Median]])/25)*5) + AAMC_Raw_Data_for_FY22[[#This Row],[Median]]","v":145765.6},{"$f":"(((AAMC_Raw_Data_for_FY22[[#This Row],[75th]]-AAMC_Raw_Data_for_FY22[[#This Row],[Median]])/25)*10) + AAMC_Raw_Data_for_FY22[[#This Row],[Median]]","v":149629.20000000001},{"$f":"(((AAMC_Raw_Data_for_FY22[[#This Row],[75th]]-AAMC_Raw_Data_for_FY22[[#This Row],[Median]])/25)*15) + AAMC_Raw_Data_for_FY22[[#This Row],[Median]]","v":153492.79999999999},{"$f":"(((AAMC_Raw_Data_for_FY22[[#This Row],[75th]]-AAMC_Raw_Data_for_FY22[[#This Row],[Median]])/25)*20) + AAMC_Raw_Data_for_FY22[[#This Row],[Median]]","v":157356.4},161220,{"$f":"(((AAMC_Raw_Data_for_FY22[[#This Row],[75th]]-AAMC_Raw_Data_for_FY22[[#This Row],[Median]])/25)*30) + AAMC_Raw_Data_for_FY22[[#This Row],[Median]]","v":165083.6},{"$f":"(((AAMC_Raw_Data_for_FY22[[#This Row],[75th]]-AAMC_Raw_Data_for_FY22[[#This Row],[Median]])/25)*35) + AAMC_Raw_Data_for_FY22[[#This Row],[Median]]","v":168947.20000000001},{"$f":"(((AAMC_Raw_Data_for_FY22[[#This Row],[75th]]-AAMC_Raw_Data_for_FY22[[#This Row],[Median]])/25)*40) + AAMC_Raw_Data_for_FY22[[#This Row],[Median]]","v":172810.8}]
[{"$f":"AAMC_Raw_Data_for_FY22[[#This Row],[Source]]&AAMC_Raw_Data_for_FY22[[#This Row],[Type]]&AAMC_Raw_Data_for_FY22[[#This Row],[School Subset]]&AAMC_Raw_Data_for_FY22[[#This Row],[Rank]]&AAMC_Raw_Data_for_FY22[[#This Row],[Degree]]&AAMC_Raw_Data_for_FY22[[#This Row],[Department / Specialty]]&\"L\"","v":"AAMCAcademicAllProfessorPhDDevelopmental-Behavioral PediatricsL"},"Developmental-Behavioral Pediatrics",2,"AAMC","Academic","All","Professor","PhD","2021-2022",156076,{"$f":"(((AAMC_Raw_Data_for_FY22[[#This Row],[Median]]-AAMC_Raw_Data_for_FY22[[#This Row],[25th]])/25)*5) + AAMC_Raw_Data_for_FY22[[#This Row],[25th]]","v":160351},{"$f":"(((AAMC_Raw_Data_for_FY22[[#This Row],[Median]]-AAMC_Raw_Data_for_FY22[[#This Row],[25th]])/25)*10) + AAMC_Raw_Data_for_FY22[[#This Row],[25th]]","v":164626},{"$f":"(((AAMC_Raw_Data_for_FY22[[#This Row],[Median]]-AAMC_Raw_Data_for_FY22[[#This Row],[25th]])/25)*15) + AAMC_Raw_Data_for_FY22[[#This Row],[25th]]","v":168901},{"$f":"(((AAMC_Raw_Data_for_FY22[[#This Row],[Median]]-AAMC_Raw_Data_for_FY22[[#This Row],[25th]])/25)*20) + AAMC_Raw_Data_for_FY22[[#This Row],[25th]]","v":173176},177451,{"$f":"(((AAMC_Raw_Data_for_FY22[[#This Row],[75th]]-AAMC_Raw_Data_for_FY22[[#This Row],[Median]])/25)*5) + AAMC_Raw_Data_for_FY22[[#This Row],[Median]]","v":187574.6},{"$f":"(((AAMC_Raw_Data_for_FY22[[#This Row],[75th]]-AAMC_Raw_Data_for_FY22[[#This Row],[Median]])/25)*10) + AAMC_Raw_Data_for_FY22[[#This Row],[Median]]","v":197698.2},{"$f":"(((AAMC_Raw_Data_for_FY22[[#This Row],[75th]]-AAMC_Raw_Data_for_FY22[[#This Row],[Median]])/25)*15) + AAMC_Raw_Data_for_FY22[[#This Row],[Median]]","v":207821.8},{"$f":"(((AAMC_Raw_Data_for_FY22[[#This Row],[75th]]-AAMC_Raw_Data_for_FY22[[#This Row],[Median]])/25)*20) + AAMC_Raw_Data_for_FY22[[#This Row],[Median]]","v":217945.4},228069,{"$f":"(((AAMC_Raw_Data_for_FY22[[#This Row],[75th]]-AAMC_Raw_Data_for_FY22[[#This Row],[Median]])/25)*30) + AAMC_Raw_Data_for_FY22[[#This Row],[Median]]","v":238192.6},{"$f":"(((AAMC_Raw_Data_for_FY22[[#This Row],[75th]]-AAMC_Raw_Data_for_FY22[[#This Row],[Median]])/25)*35) + AAMC_Raw_Data_for_FY22[[#This Row],[Median]]","v":248316.2},{"$f":"(((AAMC_Raw_Data_for_FY22[[#This Row],[75th]]-AAMC_Raw_Data_for_FY22[[#This Row],[Median]])/25)*40) + AAMC_Raw_Data_for_FY22[[#This Row],[Median]]","v":258439.8}]
[{"$f":"AAMC_Raw_Data_for_FY22[[#This Row],[Source]]&AAMC_Raw_Data_for_FY22[[#This Row],[Type]]&AAMC_Raw_Data_for_FY22[[#This Row],[School Subset]]&AAMC_Raw_Data_for_FY22[[#This Row],[Rank]]&AAMC_Raw_Data_for_FY22[[#This Row],[Degree]]&AAMC_Raw_Data_for_FY22[[#This Row],[Department / Specialty]]&\"L\"","v":"AAMCAcademicAllChiefPhDDevelopmental-Behavioral PediatricsL"},"Developmental-Behavioral Pediatrics",6,"AAMC","Academic","All","Chief","PhD","2021-2022",null,{"$f":"(((AAMC_Raw_Data_for_FY22[[#This Row],[Median]]-AAMC_Raw_Data_for_FY22[[#This Row],[25th]])/25)*5) + AAMC_Raw_Data_for_FY22[[#This Row],[25th]]","v":0},{"$f":"(((AAMC_Raw_Data_for_FY22[[#This Row],[Median]]-AAMC_Raw_Data_for_FY22[[#This Row],[25th]])/25)*10) + AAMC_Raw_Data_for_FY22[[#This Row],[25th]]","v":0},{"$f":"(((AAMC_Raw_Data_for_FY22[[#This Row],[Median]]-AAMC_Raw_Data_for_FY22[[#This Row],[25th]])/25)*15) + AAMC_Raw_Data_for_FY22[[#This Row],[25th]]","v":0},{"$f":"(((AAMC_Raw_Data_for_FY22[[#This Row],[Median]]-AAMC_Raw_Data_for_FY22[[#This Row],[25th]])/25)*20) + AAMC_Raw_Data_for_FY22[[#This Row],[25th]]","v":0},null,{"$f":"(((AAMC_Raw_Data_for_FY22[[#This Row],[75th]]-AAMC_Raw_Data_for_FY22[[#This Row],[Median]])/25)*5) + AAMC_Raw_Data_for_FY22[[#This Row],[Median]]","v":0},{"$f":"(((AAMC_Raw_Data_for_FY22[[#This Row],[75th]]-AAMC_Raw_Data_for_FY22[[#This Row],[Median]])/25)*10) + AAMC_Raw_Data_for_FY22[[#This Row],[Median]]","v":0},{"$f":"(((AAMC_Raw_Data_for_FY22[[#This Row],[75th]]-AAMC_Raw_Data_for_FY22[[#This Row],[Median]])/25)*15) + AAMC_Raw_Data_for_FY22[[#This Row],[Median]]","v":0},{"$f":"(((AAMC_Raw_Data_for_FY22[[#This Row],[75th]]-AAMC_Raw_Data_for_FY22[[#This Row],[Median]])/25)*20) + AAMC_Raw_Data_for_FY22[[#This Row],[Median]]","v":0},null,{"$f":"(((AAMC_Raw_Data_for_FY22[[#This Row],[75th]]-AAMC_Raw_Data_for_FY22[[#This Row],[Median]])/25)*30) + AAMC_Raw_Data_for_FY22[[#This Row],[Median]]","v":0},{"$f":"(((AAMC_Raw_Data_for_FY22[[#This Row],[75th]]-AAMC_Raw_Data_for_FY22[[#This Row],[Median]])/25)*35) + AAMC_Raw_Data_for_FY22[[#This Row],[Median]]","v":0},{"$f":"(((AAMC_Raw_Data_for_FY22[[#This Row],[75th]]-AAMC_Raw_Data_for_FY22[[#This Row],[Median]])/25)*40) + AAMC_Raw_Data_for_FY22[[#This Row],[Median]]","v":0}]
[{"$f":"AAMC_Raw_Data_for_FY22[[#This Row],[Source]]&AAMC_Raw_Data_for_FY22[[#This Row],[Type]]&AAMC_Raw_Data_for_FY22[[#This Row],[School Subset]]&AAMC_Raw_Data_for_FY22[[#This Row],[Rank]]&AAMC_Raw_Data_for_FY22[[#This Row],[Degree]]&AAMC_Raw_Data_for_FY22[[#This Row],[Department / Specialty]]&\"L\"","v":"AAMCAcademicAllInstructorPhDEmergency Medicine-Peds.L"},"Emergency Medicine-Peds.",5,"AAMC","Academic","All","Instructor","PhD","2021-2022",null,{"$f":"(((AAMC_Raw_Data_for_FY22[[#This Row],[Median]]-AAMC_Raw_Data_for_FY22[[#This Row],[25th]])/25)*5) + AAMC_Raw_Data_for_FY22[[#This Row],[25th]]","v":0},{"$f":"(((AAMC_Raw_Data_for_FY22[[#This Row],[Median]]-AAMC_Raw_Data_for_FY22[[#This Row],[25th]])/25)*10) + AAMC_Raw_Data_for_FY22[[#This Row],[25th]]","v":0},{"$f":"(((AAMC_Raw_Data_for_FY22[[#This Row],[Median]]-AAMC_Raw_Data_for_FY22[[#This Row],[25th]])/25)*15) + AAMC_Raw_Data_for_FY22[[#This Row],[25th]]","v":0},{"$f":"(((AAMC_Raw_Data_for_FY22[[#This Row],[Median]]-AAMC_Raw_Data_for_FY22[[#This Row],[25th]])/25)*20) + AAMC_Raw_Data_for_FY22[[#This Row],[25th]]","v":0},null,{"$f":"(((AAMC_Raw_Data_for_FY22[[#This Row],[75th]]-AAMC_Raw_Data_for_FY22[[#This Row],[Median]])/25)*5) + AAMC_Raw_Data_for_FY22[[#This Row],[Median]]","v":0},{"$f":"(((AAMC_Raw_Data_for_FY22[[#This Row],[75th]]-AAMC_Raw_Data_for_FY22[[#This Row],[Median]])/25)*10) + AAMC_Raw_Data_for_FY22[[#This Row],[Median]]","v":0},{"$f":"(((AAMC_Raw_Data_for_FY22[[#This Row],[75th]]-AAMC_Raw_Data_for_FY22[[#This Row],[Median]])/25)*15) + AAMC_Raw_Data_for_FY22[[#This Row],[Median]]","v":0},{"$f":"(((AAMC_Raw_Data_for_FY22[[#This Row],[75th]]-AAMC_Raw_Data_for_FY22[[#This Row],[Median]])/25)*20) + AAMC_Raw_Data_for_FY22[[#This Row],[Median]]","v":0},null,{"$f":"(((AAMC_Raw_Data_for_FY22[[#This Row],[75th]]-AAMC_Raw_Data_for_FY22[[#This Row],[Median]])/25)*30) + AAMC_Raw_Data_for_FY22[[#This Row],[Median]]","v":0},{"$f":"(((AAMC_Raw_Data_for_FY22[[#This Row],[75th]]-AAMC_Raw_Data_for_FY22[[#This Row],[Median]])/25)*35) + AAMC_Raw_Data_for_FY22[[#This Row],[Median]]","v":0},{"$f":"(((AAMC_Raw_Data_for_FY22[[#This Row],[75th]]-AAMC_Raw_Data_for_FY22[[#This Row],[Median]])/25)*40) + AAMC_Raw_Data_for_FY22[[#This Row],[Median]]","v":0}]
[{"$f":"AAMC_Raw_Data_for_FY22[[#This Row],[Source]]&AAMC_Raw_Data_for_FY22[[#This Row],[Type]]&AAMC_Raw_Data_for_FY22[[#This Row],[School Subset]]&AAMC_Raw_Data_for_FY22[[#This Row],[Rank]]&AAMC_Raw_Data_for_FY22[[#This Row],[Degree]]&AAMC_Raw_Data_for_FY22[[#This Row],[Department / Specialty]]&\"L\"","v":"AAMCAcademicAllAssistantPhDEmergency Medicine-Peds.L"},"Emergency Medicine-Peds.",4,"AAMC","Academic","All","Assistant","PhD","2021-2022",null,{"$f":"(((AAMC_Raw_Data_for_FY22[[#This Row],[Median]]-AAMC_Raw_Data_for_FY22[[#This Row],[25th]])/25)*5) + AAMC_Raw_Data_for_FY22[[#This Row],[25th]]","v":0},{"$f":"(((AAMC_Raw_Data_for_FY22[[#This Row],[Median]]-AAMC_Raw_Data_for_FY22[[#This Row],[25th]])/25)*10) + AAMC_Raw_Data_for_FY22[[#This Row],[25th]]","v":0},{"$f":"(((AAMC_Raw_Data_for_FY22[[#This Row],[Median]]-AAMC_Raw_Data_for_FY22[[#This Row],[25th]])/25)*15) + AAMC_Raw_Data_for_FY22[[#This Row],[25th]]","v":0},{"$f":"(((AAMC_Raw_Data_for_FY22[[#This Row],[Median]]-AAMC_Raw_Data_for_FY22[[#This Row],[25th]])/25)*20) + AAMC_Raw_Data_for_FY22[[#This Row],[25th]]","v":0},null,{"$f":"(((AAMC_Raw_Data_for_FY22[[#This Row],[75th]]-AAMC_Raw_Data_for_FY22[[#This Row],[Median]])/25)*5) + AAMC_Raw_Data_for_FY22[[#This Row],[Median]]","v":0},{"$f":"(((AAMC_Raw_Data_for_FY22[[#This Row],[75th]]-AAMC_Raw_Data_for_FY22[[#This Row],[Median]])/25)*10) + AAMC_Raw_Data_for_FY22[[#This Row],[Median]]","v":0},{"$f":"(((AAMC_Raw_Data_for_FY22[[#This Row],[75th]]-AAMC_Raw_Data_for_FY22[[#This Row],[Median]])/25)*15) + AAMC_Raw_Data_for_FY22[[#This Row],[Median]]","v":0},{"$f":"(((AAMC_Raw_Data_for_FY22[[#This Row],[75th]]-AAMC_Raw_Data_for_FY22[[#This Row],[Median]])/25)*20) + AAMC_Raw_Data_for_FY22[[#This Row],[Median]]","v":0},null,{"$f":"(((AAMC_Raw_Data_for_FY22[[#This Row],[75th]]-AAMC_Raw_Data_for_FY22[[#This Row],[Median]])/25)*30) + AAMC_Raw_Data_for_FY22[[#This Row],[Median]]","v":0},{"$f":"(((AAMC_Raw_Data_for_FY22[[#This Row],[75th]]-AAMC_Raw_Data_for_FY22[[#This Row],[Median]])/25)*35) + AAMC_Raw_Data_for_FY22[[#This Row],[Median]]","v":0},{"$f":"(((AAMC_Raw_Data_for_FY22[[#This Row],[75th]]-AAMC_Raw_Data_for_FY22[[#This Row],[Median]])/25)*40) + AAMC_Raw_Data_for_FY22[[#This Row],[Median]]","v":0}]
[{"$f":"AAMC_Raw_Data_for_FY22[[#This Row],[Source]]&AAMC_Raw_Data_for_FY22[[#This Row],[Type]]&AAMC_Raw_Data_for_FY22[[#This Row],[School Subset]]&AAMC_Raw_Data_for_FY22[[#This Row],[Rank]]&AAMC_Raw_Data_for_FY22[[#This Row],[Degree]]&AAMC_Raw_Data_for_FY22[[#This Row],[Department / Specialty]]&\"L\"","v":"AAMCAcademicAllAssociatePhDEmergency Medicine-Peds.L"},"Emergency Medicine-Peds.",3,"AAMC","Academic","All","Associate","PhD","2021-2022",null,{"$f":"(((AAMC_Raw_Data_for_FY22[[#This Row],[Median]]-AAMC_Raw_Data_for_FY22[[#This Row],[25th]])/25)*5) + AAMC_Raw_Data_for_FY22[[#This Row],[25th]]","v":0},{"$f":"(((AAMC_Raw_Data_for_FY22[[#This Row],[Median]]-AAMC_Raw_Data_for_FY22[[#This Row],[25th]])/25)*10) + AAMC_Raw_Data_for_FY22[[#This Row],[25th]]","v":0},{"$f":"(((AAMC_Raw_Data_for_FY22[[#This Row],[Median]]-AAMC_Raw_Data_for_FY22[[#This Row],[25th]])/25)*15) + AAMC_Raw_Data_for_FY22[[#This Row],[25th]]","v":0},{"$f":"(((AAMC_Raw_Data_for_FY22[[#This Row],[Median]]-AAMC_Raw_Data_for_FY22[[#This Row],[25th]])/25)*20) + AAMC_Raw_Data_for_FY22[[#This Row],[25th]]","v":0},null,{"$f":"(((AAMC_Raw_Data_for_FY22[[#This Row],[75th]]-AAMC_Raw_Data_for_FY22[[#This Row],[Median]])/25)*5) + AAMC_Raw_Data_for_FY22[[#This Row],[Median]]","v":0},{"$f":"(((AAMC_Raw_Data_for_FY22[[#This Row],[75th]]-AAMC_Raw_Data_for_FY22[[#This Row],[Median]])/25)*10) + AAMC_Raw_Data_for_FY22[[#This Row],[Median]]","v":0},{"$f":"(((AAMC_Raw_Data_for_FY22[[#This Row],[75th]]-AAMC_Raw_Data_for_FY22[[#This Row],[Median]])/25)*15) + AAMC_Raw_Data_for_FY22[[#This Row],[Median]]","v":0},{"$f":"(((AAMC_Raw_Data_for_FY22[[#This Row],[75th]]-AAMC_Raw_Data_for_FY22[[#This Row],[Median]])/25)*20) + AAMC_Raw_Data_for_FY22[[#This Row],[Median]]","v":0},null,{"$f":"(((AAMC_Raw_Data_for_FY22[[#This Row],[75th]]-AAMC_Raw_Data_for_FY22[[#This Row],[Median]])/25)*30) + AAMC_Raw_Data_for_FY22[[#This Row],[Median]]","v":0},{"$f":"(((AAMC_Raw_Data_for_FY22[[#This Row],[75th]]-AAMC_Raw_Data_for_FY22[[#This Row],[Median]])/25)*35) + AAMC_Raw_Data_for_FY22[[#This Row],[Median]]","v":0},{"$f":"(((AAMC_Raw_Data_for_FY22[[#This Row],[75th]]-AAMC_Raw_Data_for_FY22[[#This Row],[Median]])/25)*40) + AAMC_Raw_Data_for_FY22[[#This Row],[Median]]","v":0}]
[{"$f":"AAMC_Raw_Data_for_FY22[[#This Row],[Source]]&AAMC_Raw_Data_for_FY22[[#This Row],[Type]]&AAMC_Raw_Data_for_FY22[[#This Row],[School Subset]]&AAMC_Raw_Data_for_FY22[[#This Row],[Rank]]&AAMC_Raw_Data_for_FY22[[#This Row],[Degree]]&AAMC_Raw_Data_for_FY22[[#This Row],[Department / Specialty]]&\"L\"","v":"AAMCAcademicAllProfessorPhDEmergency Medicine-Peds.L"},"Emergency Medicine-Peds.",2,"AAMC","Academic","All","Professor","PhD","2021-2022",null,{"$f":"(((AAMC_Raw_Data_for_FY22[[#This Row],[Median]]-AAMC_Raw_Data_for_FY22[[#This Row],[25th]])/25)*5) + AAMC_Raw_Data_for_FY22[[#This Row],[25th]]","v":0},{"$f":"(((AAMC_Raw_Data_for_FY22[[#This Row],[Median]]-AAMC_Raw_Data_for_FY22[[#This Row],[25th]])/25)*10) + AAMC_Raw_Data_for_FY22[[#This Row],[25th]]","v":0},{"$f":"(((AAMC_Raw_Data_for_FY22[[#This Row],[Median]]-AAMC_Raw_Data_for_FY22[[#This Row],[25th]])/25)*15) + AAMC_Raw_Data_for_FY22[[#This Row],[25th]]","v":0},{"$f":"(((AAMC_Raw_Data_for_FY22[[#This Row],[Median]]-AAMC_Raw_Data_for_FY22[[#This Row],[25th]])/25)*20) + AAMC_Raw_Data_for_FY22[[#This Row],[25th]]","v":0},null,{"$f":"(((AAMC_Raw_Data_for_FY22[[#This Row],[75th]]-AAMC_Raw_Data_for_FY22[[#This Row],[Median]])/25)*5) + AAMC_Raw_Data_for_FY22[[#This Row],[Median]]","v":0},{"$f":"(((AAMC_Raw_Data_for_FY22[[#This Row],[75th]]-AAMC_Raw_Data_for_FY22[[#This Row],[Median]])/25)*10) + AAMC_Raw_Data_for_FY22[[#This Row],[Median]]","v":0},{"$f":"(((AAMC_Raw_Data_for_FY22[[#This Row],[75th]]-AAMC_Raw_Data_for_FY22[[#This Row],[Median]])/25)*15) + AAMC_Raw_Data_for_FY22[[#This Row],[Median]]","v":0},{"$f":"(((AAMC_Raw_Data_for_FY22[[#This Row],[75th]]-AAMC_Raw_Data_for_FY22[[#This Row],[Median]])/25)*20) + AAMC_Raw_Data_for_FY22[[#This Row],[Median]]","v":0},null,{"$f":"(((AAMC_Raw_Data_for_FY22[[#This Row],[75th]]-AAMC_Raw_Data_for_FY22[[#This Row],[Median]])/25)*30) + AAMC_Raw_Data_for_FY22[[#This Row],[Median]]","v":0},{"$f":"(((AAMC_Raw_Data_for_FY22[[#This Row],[75th]]-AAMC_Raw_Data_for_FY22[[#This Row],[Median]])/25)*35) + AAMC_Raw_Data_for_FY22[[#This Row],[Median]]","v":0},{"$f":"(((AAMC_Raw_Data_for_FY22[[#This Row],[75th]]-AAMC_Raw_Data_for_FY22[[#This Row],[Median]])/25)*40) + AAMC_Raw_Data_for_FY22[[#This Row],[Median]]","v":0}]
[{"$f":"AAMC_Raw_Data_for_FY22[[#This Row],[Source]]&AAMC_Raw_Data_for_FY22[[#This Row],[Type]]&AAMC_Raw_Data_for_FY22[[#This Row],[School Subset]]&AAMC_Raw_Data_for_FY22[[#This Row],[Rank]]&AAMC_Raw_Data_for_FY22[[#This Row],[Degree]]&AAMC_Raw_Data_for_FY22[[#This Row],[Department / Specialty]]&\"L\"","v":"AAMCAcademicAllInstructorPhDEndocrinology-Peds.L"},"Endocrinology-Peds.",5,"AAMC","Academic","All","Instructor","PhD","2021-2022",null,{"$f":"(((AAMC_Raw_Data_for_FY22[[#This Row],[Median]]-AAMC_Raw_Data_for_FY22[[#This Row],[25th]])/25)*5) + AAMC_Raw_Data_for_FY22[[#This Row],[25th]]","v":0},{"$f":"(((AAMC_Raw_Data_for_FY22[[#This Row],[Median]]-AAMC_Raw_Data_for_FY22[[#This Row],[25th]])/25)*10) + AAMC_Raw_Data_for_FY22[[#This Row],[25th]]","v":0},{"$f":"(((AAMC_Raw_Data_for_FY22[[#This Row],[Median]]-AAMC_Raw_Data_for_FY22[[#This Row],[25th]])/25)*15) + AAMC_Raw_Data_for_FY22[[#This Row],[25th]]","v":0},{"$f":"(((AAMC_Raw_Data_for_FY22[[#This Row],[Median]]-AAMC_Raw_Data_for_FY22[[#This Row],[25th]])/25)*20) + AAMC_Raw_Data_for_FY22[[#This Row],[25th]]","v":0},null,{"$f":"(((AAMC_Raw_Data_for_FY22[[#This Row],[75th]]-AAMC_Raw_Data_for_FY22[[#This Row],[Median]])/25)*5) + AAMC_Raw_Data_for_FY22[[#This Row],[Median]]","v":0},{"$f":"(((AAMC_Raw_Data_for_FY22[[#This Row],[75th]]-AAMC_Raw_Data_for_FY22[[#This Row],[Median]])/25)*10) + AAMC_Raw_Data_for_FY22[[#This Row],[Median]]","v":0},{"$f":"(((AAMC_Raw_Data_for_FY22[[#This Row],[75th]]-AAMC_Raw_Data_for_FY22[[#This Row],[Median]])/25)*15) + AAMC_Raw_Data_for_FY22[[#This Row],[Median]]","v":0},{"$f":"(((AAMC_Raw_Data_for_FY22[[#This Row],[75th]]-AAMC_Raw_Data_for_FY22[[#This Row],[Median]])/25)*20) + AAMC_Raw_Data_for_FY22[[#This Row],[Median]]","v":0},null,{"$f":"(((AAMC_Raw_Data_for_FY22[[#This Row],[75th]]-AAMC_Raw_Data_for_FY22[[#This Row],[Median]])/25)*30) + AAMC_Raw_Data_for_FY22[[#This Row],[Median]]","v":0},{"$f":"(((AAMC_Raw_Data_for_FY22[[#This Row],[75th]]-AAMC_Raw_Data_for_FY22[[#This Row],[Median]])/25)*35) + AAMC_Raw_Data_for_FY22[[#This Row],[Median]]","v":0},{"$f":"(((AAMC_Raw_Data_for_FY22[[#This Row],[75th]]-AAMC_Raw_Data_for_FY22[[#This Row],[Median]])/25)*40) + AAMC_Raw_Data_for_FY22[[#This Row],[Median]]","v":0}]
[{"$f":"AAMC_Raw_Data_for_FY22[[#This Row],[Source]]&AAMC_Raw_Data_for_FY22[[#This Row],[Type]]&AAMC_Raw_Data_for_FY22[[#This Row],[School Subset]]&AAMC_Raw_Data_for_FY22[[#This Row],[Rank]]&AAMC_Raw_Data_for_FY22[[#This Row],[Degree]]&AAMC_Raw_Data_for_FY22[[#This Row],[Department / Specialty]]&\"L\"","v":"AAMCAcademicAllAssistantPhDEndocrinology-Peds.L"},"Endocrinology-Peds.",4,"AAMC","Academic","All","Assistant","PhD","2021-2022",102710,{"$f":"(((AAMC_Raw_Data_for_FY22[[#This Row],[Median]]-AAMC_Raw_Data_for_FY22[[#This Row],[25th]])/25)*5) + AAMC_Raw_Data_for_FY22[[#This Row],[25th]]","v":104626.4},{"$f":"(((AAMC_Raw_Data_for_FY22[[#This Row],[Median]]-AAMC_Raw_Data_for_FY22[[#This Row],[25th]])/25)*10) + AAMC_Raw_Data_for_FY22[[#This Row],[25th]]","v":106542.8},{"$f":"(((AAMC_Raw_Data_for_FY22[[#This Row],[Median]]-AAMC_Raw_Data_for_FY22[[#This Row],[25th]])/25)*15) + AAMC_Raw_Data_for_FY22[[#This Row],[25th]]","v":108459.2},{"$f":"(((AAMC_Raw_Data_for_FY22[[#This Row],[Median]]-AAMC_Raw_Data_for_FY22[[#This Row],[25th]])/25)*20) + AAMC_Raw_Data_for_FY22[[#This Row],[25th]]","v":110375.6},112292,{"$f":"(((AAMC_Raw_Data_for_FY22[[#This Row],[75th]]-AAMC_Raw_Data_for_FY22[[#This Row],[Median]])/25)*5) + AAMC_Raw_Data_for_FY22[[#This Row],[Median]]","v":116676.6},{"$f":"(((AAMC_Raw_Data_for_FY22[[#This Row],[75th]]-AAMC_Raw_Data_for_FY22[[#This Row],[Median]])/25)*10) + AAMC_Raw_Data_for_FY22[[#This Row],[Median]]","v":121061.2},{"$f":"(((AAMC_Raw_Data_for_FY22[[#This Row],[75th]]-AAMC_Raw_Data_for_FY22[[#This Row],[Median]])/25)*15) + AAMC_Raw_Data_for_FY22[[#This Row],[Median]]","v":125445.8},{"$f":"(((AAMC_Raw_Data_for_FY22[[#This Row],[75th]]-AAMC_Raw_Data_for_FY22[[#This Row],[Median]])/25)*20) + AAMC_Raw_Data_for_FY22[[#This Row],[Median]]","v":129830.39999999999},134215,{"$f":"(((AAMC_Raw_Data_for_FY22[[#This Row],[75th]]-AAMC_Raw_Data_for_FY22[[#This Row],[Median]])/25)*30) + AAMC_Raw_Data_for_FY22[[#This Row],[Median]]","v":138599.6},{"$f":"(((AAMC_Raw_Data_for_FY22[[#This Row],[75th]]-AAMC_Raw_Data_for_FY22[[#This Row],[Median]])/25)*35) + AAMC_Raw_Data_for_FY22[[#This Row],[Median]]","v":142984.20000000001},{"$f":"(((AAMC_Raw_Data_for_FY22[[#This Row],[75th]]-AAMC_Raw_Data_for_FY22[[#This Row],[Median]])/25)*40) + AAMC_Raw_Data_for_FY22[[#This Row],[Median]]","v":147368.79999999999}]
[{"$f":"AAMC_Raw_Data_for_FY22[[#This Row],[Source]]&AAMC_Raw_Data_for_FY22[[#This Row],[Type]]&AAMC_Raw_Data_for_FY22[[#This Row],[School Subset]]&AAMC_Raw_Data_for_FY22[[#This Row],[Rank]]&AAMC_Raw_Data_for_FY22[[#This Row],[Degree]]&AAMC_Raw_Data_for_FY22[[#This Row],[Department / Specialty]]&\"L\"","v":"AAMCAcademicAllAssociatePhDEndocrinology-Peds.L"},"Endocrinology-Peds.",3,"AAMC","Academic","All","Associate","PhD","2021-2022",126019,{"$f":"(((AAMC_Raw_Data_for_FY22[[#This Row],[Median]]-AAMC_Raw_Data_for_FY22[[#This Row],[25th]])/25)*5) + AAMC_Raw_Data_for_FY22[[#This Row],[25th]]","v":127159},{"$f":"(((AAMC_Raw_Data_for_FY22[[#This Row],[Median]]-AAMC_Raw_Data_for_FY22[[#This Row],[25th]])/25)*10) + AAMC_Raw_Data_for_FY22[[#This Row],[25th]]","v":128299},{"$f":"(((AAMC_Raw_Data_for_FY22[[#This Row],[Median]]-AAMC_Raw_Data_for_FY22[[#This Row],[25th]])/25)*15) + AAMC_Raw_Data_for_FY22[[#This Row],[25th]]","v":129439},{"$f":"(((AAMC_Raw_Data_for_FY22[[#This Row],[Median]]-AAMC_Raw_Data_for_FY22[[#This Row],[25th]])/25)*20) + AAMC_Raw_Data_for_FY22[[#This Row],[25th]]","v":130579},131719,{"$f":"(((AAMC_Raw_Data_for_FY22[[#This Row],[75th]]-AAMC_Raw_Data_for_FY22[[#This Row],[Median]])/25)*5) + AAMC_Raw_Data_for_FY22[[#This Row],[Median]]","v":134129.79999999999},{"$f":"(((AAMC_Raw_Data_for_FY22[[#This Row],[75th]]-AAMC_Raw_Data_for_FY22[[#This Row],[Median]])/25)*10) + AAMC_Raw_Data_for_FY22[[#This Row],[Median]]","v":136540.6},{"$f":"(((AAMC_Raw_Data_for_FY22[[#This Row],[75th]]-AAMC_Raw_Data_for_FY22[[#This Row],[Median]])/25)*15) + AAMC_Raw_Data_for_FY22[[#This Row],[Median]]","v":138951.4},{"$f":"(((AAMC_Raw_Data_for_FY22[[#This Row],[75th]]-AAMC_Raw_Data_for_FY22[[#This Row],[Median]])/25)*20) + AAMC_Raw_Data_for_FY22[[#This Row],[Median]]","v":141362.20000000001},143773,{"$f":"(((AAMC_Raw_Data_for_FY22[[#This Row],[75th]]-AAMC_Raw_Data_for_FY22[[#This Row],[Median]])/25)*30) + AAMC_Raw_Data_for_FY22[[#This Row],[Median]]","v":146183.79999999999},{"$f":"(((AAMC_Raw_Data_for_FY22[[#This Row],[75th]]-AAMC_Raw_Data_for_FY22[[#This Row],[Median]])/25)*35) + AAMC_Raw_Data_for_FY22[[#This Row],[Median]]","v":148594.6},{"$f":"(((AAMC_Raw_Data_for_FY22[[#This Row],[75th]]-AAMC_Raw_Data_for_FY22[[#This Row],[Median]])/25)*40) + AAMC_Raw_Data_for_FY22[[#This Row],[Median]]","v":151005.4}]
[{"$f":"AAMC_Raw_Data_for_FY22[[#This Row],[Source]]&AAMC_Raw_Data_for_FY22[[#This Row],[Type]]&AAMC_Raw_Data_for_FY22[[#This Row],[School Subset]]&AAMC_Raw_Data_for_FY22[[#This Row],[Rank]]&AAMC_Raw_Data_for_FY22[[#This Row],[Degree]]&AAMC_Raw_Data_for_FY22[[#This Row],[Department / Specialty]]&\"L\"","v":"AAMCAcademicAllProfessorPhDEndocrinology-Peds.L"},"Endocrinology-Peds.",2,"AAMC","Academic","All","Professor","PhD","2021-2022",null,{"$f":"(((AAMC_Raw_Data_for_FY22[[#This Row],[Median]]-AAMC_Raw_Data_for_FY22[[#This Row],[25th]])/25)*5) + AAMC_Raw_Data_for_FY22[[#This Row],[25th]]","v":0},{"$f":"(((AAMC_Raw_Data_for_FY22[[#This Row],[Median]]-AAMC_Raw_Data_for_FY22[[#This Row],[25th]])/25)*10) + AAMC_Raw_Data_for_FY22[[#This Row],[25th]]","v":0},{"$f":"(((AAMC_Raw_Data_for_FY22[[#This Row],[Median]]-AAMC_Raw_Data_for_FY22[[#This Row],[25th]])/25)*15) + AAMC_Raw_Data_for_FY22[[#This Row],[25th]]","v":0},{"$f":"(((AAMC_Raw_Data_for_FY22[[#This Row],[Median]]-AAMC_Raw_Data_for_FY22[[#This Row],[25th]])/25)*20) + AAMC_Raw_Data_for_FY22[[#This Row],[25th]]","v":0},null,{"$f":"(((AAMC_Raw_Data_for_FY22[[#This Row],[75th]]-AAMC_Raw_Data_for_FY22[[#This Row],[Median]])/25)*5) + AAMC_Raw_Data_for_FY22[[#This Row],[Median]]","v":0},{"$f":"(((AAMC_Raw_Data_for_FY22[[#This Row],[75th]]-AAMC_Raw_Data_for_FY22[[#This Row],[Median]])/25)*10) + AAMC_Raw_Data_for_FY22[[#This Row],[Median]]","v":0},{"$f":"(((AAMC_Raw_Data_for_FY22[[#This Row],[75th]]-AAMC_Raw_Data_for_FY22[[#This Row],[Median]])/25)*15) + AAMC_Raw_Data_for_FY22[[#This Row],[Median]]","v":0},{"$f":"(((AAMC_Raw_Data_for_FY22[[#This Row],[75th]]-AAMC_Raw_Data_for_FY22[[#This Row],[Median]])/25)*20) + AAMC_Raw_Data_for_FY22[[#This Row],[Median]]","v":0},null,{"$f":"(((AAMC_Raw_Data_for_FY22[[#This Row],[75th]]-AAMC_Raw_Data_for_FY22[[#This Row],[Median]])/25)*30) + AAMC_Raw_Data_for_FY22[[#This Row],[Median]]","v":0},{"$f":"(((AAMC_Raw_Data_for_FY22[[#This Row],[75th]]-AAMC_Raw_Data_for_FY22[[#This Row],[Median]])/25)*35) + AAMC_Raw_Data_for_FY22[[#This Row],[Median]]","v":0},{"$f":"(((AAMC_Raw_Data_for_FY22[[#This Row],[75th]]-AAMC_Raw_Data_for_FY22[[#This Row],[Median]])/25)*40) + AAMC_Raw_Data_for_FY22[[#This Row],[Median]]","v":0}]
[{"$f":"AAMC_Raw_Data_for_FY22[[#This Row],[Source]]&AAMC_Raw_Data_for_FY22[[#This Row],[Type]]&AAMC_Raw_Data_for_FY22[[#This Row],[School Subset]]&AAMC_Raw_Data_for_FY22[[#This Row],[Rank]]&AAMC_Raw_Data_for_FY22[[#This Row],[Degree]]&AAMC_Raw_Data_for_FY22[[#This Row],[Department / Specialty]]&\"L\"","v":"AAMCAcademicAllChiefPhDEndocrinology-Peds.L"},"Endocrinology-Peds.",6,"AAMC","Academic","All","Chief","PhD","2021-2022",null,{"$f":"(((AAMC_Raw_Data_for_FY22[[#This Row],[Median]]-AAMC_Raw_Data_for_FY22[[#This Row],[25th]])/25)*5) + AAMC_Raw_Data_for_FY22[[#This Row],[25th]]","v":0},{"$f":"(((AAMC_Raw_Data_for_FY22[[#This Row],[Median]]-AAMC_Raw_Data_for_FY22[[#This Row],[25th]])/25)*10) + AAMC_Raw_Data_for_FY22[[#This Row],[25th]]","v":0},{"$f":"(((AAMC_Raw_Data_for_FY22[[#This Row],[Median]]-AAMC_Raw_Data_for_FY22[[#This Row],[25th]])/25)*15) + AAMC_Raw_Data_for_FY22[[#This Row],[25th]]","v":0},{"$f":"(((AAMC_Raw_Data_for_FY22[[#This Row],[Median]]-AAMC_Raw_Data_for_FY22[[#This Row],[25th]])/25)*20) + AAMC_Raw_Data_for_FY22[[#This Row],[25th]]","v":0},null,{"$f":"(((AAMC_Raw_Data_for_FY22[[#This Row],[75th]]-AAMC_Raw_Data_for_FY22[[#This Row],[Median]])/25)*5) + AAMC_Raw_Data_for_FY22[[#This Row],[Median]]","v":0},{"$f":"(((AAMC_Raw_Data_for_FY22[[#This Row],[75th]]-AAMC_Raw_Data_for_FY22[[#This Row],[Median]])/25)*10) + AAMC_Raw_Data_for_FY22[[#This Row],[Median]]","v":0},{"$f":"(((AAMC_Raw_Data_for_FY22[[#This Row],[75th]]-AAMC_Raw_Data_for_FY22[[#This Row],[Median]])/25)*15) + AAMC_Raw_Data_for_FY22[[#This Row],[Median]]","v":0},{"$f":"(((AAMC_Raw_Data_for_FY22[[#This Row],[75th]]-AAMC_Raw_Data_for_FY22[[#This Row],[Median]])/25)*20) + AAMC_Raw_Data_for_FY22[[#This Row],[Median]]","v":0},null,{"$f":"(((AAMC_Raw_Data_for_FY22[[#This Row],[75th]]-AAMC_Raw_Data_for_FY22[[#This Row],[Median]])/25)*30) + AAMC_Raw_Data_for_FY22[[#This Row],[Median]]","v":0},{"$f":"(((AAMC_Raw_Data_for_FY22[[#This Row],[75th]]-AAMC_Raw_Data_for_FY22[[#This Row],[Median]])/25)*35) + AAMC_Raw_Data_for_FY22[[#This Row],[Median]]","v":0},{"$f":"(((AAMC_Raw_Data_for_FY22[[#This Row],[75th]]-AAMC_Raw_Data_for_FY22[[#This Row],[Median]])/25)*40) + AAMC_Raw_Data_for_FY22[[#This Row],[Median]]","v":0}]
[{"$f":"AAMC_Raw_Data_for_FY22[[#This Row],[Source]]&AAMC_Raw_Data_for_FY22[[#This Row],[Type]]&AAMC_Raw_Data_for_FY22[[#This Row],[School Subset]]&AAMC_Raw_Data_for_FY22[[#This Row],[Rank]]&AAMC_Raw_Data_for_FY22[[#This Row],[Degree]]&AAMC_Raw_Data_for_FY22[[#This Row],[Department / Specialty]]&\"L\"","v":"AAMCAcademicAllInstructorPhDGastroenterology-Peds.L"},"Gastroenterology-Peds.",5,"AAMC","Academic","All","Instructor","PhD","2021-2022",null,{"$f":"(((AAMC_Raw_Data_for_FY22[[#This Row],[Median]]-AAMC_Raw_Data_for_FY22[[#This Row],[25th]])/25)*5) + AAMC_Raw_Data_for_FY22[[#This Row],[25th]]","v":0},{"$f":"(((AAMC_Raw_Data_for_FY22[[#This Row],[Median]]-AAMC_Raw_Data_for_FY22[[#This Row],[25th]])/25)*10) + AAMC_Raw_Data_for_FY22[[#This Row],[25th]]","v":0},{"$f":"(((AAMC_Raw_Data_for_FY22[[#This Row],[Median]]-AAMC_Raw_Data_for_FY22[[#This Row],[25th]])/25)*15) + AAMC_Raw_Data_for_FY22[[#This Row],[25th]]","v":0},{"$f":"(((AAMC_Raw_Data_for_FY22[[#This Row],[Median]]-AAMC_Raw_Data_for_FY22[[#This Row],[25th]])/25)*20) + AAMC_Raw_Data_for_FY22[[#This Row],[25th]]","v":0},null,{"$f":"(((AAMC_Raw_Data_for_FY22[[#This Row],[75th]]-AAMC_Raw_Data_for_FY22[[#This Row],[Median]])/25)*5) + AAMC_Raw_Data_for_FY22[[#This Row],[Median]]","v":0},{"$f":"(((AAMC_Raw_Data_for_FY22[[#This Row],[75th]]-AAMC_Raw_Data_for_FY22[[#This Row],[Median]])/25)*10) + AAMC_Raw_Data_for_FY22[[#This Row],[Median]]","v":0},{"$f":"(((AAMC_Raw_Data_for_FY22[[#This Row],[75th]]-AAMC_Raw_Data_for_FY22[[#This Row],[Median]])/25)*15) + AAMC_Raw_Data_for_FY22[[#This Row],[Median]]","v":0},{"$f":"(((AAMC_Raw_Data_for_FY22[[#This Row],[75th]]-AAMC_Raw_Data_for_FY22[[#This Row],[Median]])/25)*20) + AAMC_Raw_Data_for_FY22[[#This Row],[Median]]","v":0},null,{"$f":"(((AAMC_Raw_Data_for_FY22[[#This Row],[75th]]-AAMC_Raw_Data_for_FY22[[#This Row],[Median]])/25)*30) + AAMC_Raw_Data_for_FY22[[#This Row],[Median]]","v":0},{"$f":"(((AAMC_Raw_Data_for_FY22[[#This Row],[75th]]-AAMC_Raw_Data_for_FY22[[#This Row],[Median]])/25)*35) + AAMC_Raw_Data_for_FY22[[#This Row],[Median]]","v":0},{"$f":"(((AAMC_Raw_Data_for_FY22[[#This Row],[75th]]-AAMC_Raw_Data_for_FY22[[#This Row],[Median]])/25)*40) + AAMC_Raw_Data_for_FY22[[#This Row],[Median]]","v":0}]
[{"$f":"AAMC_Raw_Data_for_FY22[[#This Row],[Source]]&AAMC_Raw_Data_for_FY22[[#This Row],[Type]]&AAMC_Raw_Data_for_FY22[[#This Row],[School Subset]]&AAMC_Raw_Data_for_FY22[[#This Row],[Rank]]&AAMC_Raw_Data_for_FY22[[#This Row],[Degree]]&AAMC_Raw_Data_for_FY22[[#This Row],[Department / Specialty]]&\"L\"","v":"AAMCAcademicAllAssistantPhDGastroenterology-Peds.L"},"Gastroenterology-Peds.",4,"AAMC","Academic","All","Assistant","PhD","2021-2022",90674,{"$f":"(((AAMC_Raw_Data_for_FY22[[#This Row],[Median]]-AAMC_Raw_Data_for_FY22[[#This Row],[25th]])/25)*5) + AAMC_Raw_Data_for_FY22[[#This Row],[25th]]","v":95519.2},{"$f":"(((AAMC_Raw_Data_for_FY22[[#This Row],[Median]]-AAMC_Raw_Data_for_FY22[[#This Row],[25th]])/25)*10) + AAMC_Raw_Data_for_FY22[[#This Row],[25th]]","v":100364.4},{"$f":"(((AAMC_Raw_Data_for_FY22[[#This Row],[Median]]-AAMC_Raw_Data_for_FY22[[#This Row],[25th]])/25)*15) + AAMC_Raw_Data_for_FY22[[#This Row],[25th]]","v":105209.60000000001},{"$f":"(((AAMC_Raw_Data_for_FY22[[#This Row],[Median]]-AAMC_Raw_Data_for_FY22[[#This Row],[25th]])/25)*20) + AAMC_Raw_Data_for_FY22[[#This Row],[25th]]","v":110054.8},114900,{"$f":"(((AAMC_Raw_Data_for_FY22[[#This Row],[75th]]-AAMC_Raw_Data_for_FY22[[#This Row],[Median]])/25)*5) + AAMC_Raw_Data_for_FY22[[#This Row],[Median]]","v":119256.2},{"$f":"(((AAMC_Raw_Data_for_FY22[[#This Row],[75th]]-AAMC_Raw_Data_for_FY22[[#This Row],[Median]])/25)*10) + AAMC_Raw_Data_for_FY22[[#This Row],[Median]]","v":123612.4},{"$f":"(((AAMC_Raw_Data_for_FY22[[#This Row],[75th]]-AAMC_Raw_Data_for_FY22[[#This Row],[Median]])/25)*15) + AAMC_Raw_Data_for_FY22[[#This Row],[Median]]","v":127968.6},{"$f":"(((AAMC_Raw_Data_for_FY22[[#This Row],[75th]]-AAMC_Raw_Data_for_FY22[[#This Row],[Median]])/25)*20) + AAMC_Raw_Data_for_FY22[[#This Row],[Median]]","v":132324.79999999999},136681,{"$f":"(((AAMC_Raw_Data_for_FY22[[#This Row],[75th]]-AAMC_Raw_Data_for_FY22[[#This Row],[Median]])/25)*30) + AAMC_Raw_Data_for_FY22[[#This Row],[Median]]","v":141037.20000000001},{"$f":"(((AAMC_Raw_Data_for_FY22[[#This Row],[75th]]-AAMC_Raw_Data_for_FY22[[#This Row],[Median]])/25)*35) + AAMC_Raw_Data_for_FY22[[#This Row],[Median]]","v":145393.4},{"$f":"(((AAMC_Raw_Data_for_FY22[[#This Row],[75th]]-AAMC_Raw_Data_for_FY22[[#This Row],[Median]])/25)*40) + AAMC_Raw_Data_for_FY22[[#This Row],[Median]]","v":149749.6}]
[{"$f":"AAMC_Raw_Data_for_FY22[[#This Row],[Source]]&AAMC_Raw_Data_for_FY22[[#This Row],[Type]]&AAMC_Raw_Data_for_FY22[[#This Row],[School Subset]]&AAMC_Raw_Data_for_FY22[[#This Row],[Rank]]&AAMC_Raw_Data_for_FY22[[#This Row],[Degree]]&AAMC_Raw_Data_for_FY22[[#This Row],[Department / Specialty]]&\"L\"","v":"AAMCAcademicAllAssociatePhDGastroenterology-Peds.L"},"Gastroenterology-Peds.",3,"AAMC","Academic","All","Associate","PhD","2021-2022",127406,{"$f":"(((AAMC_Raw_Data_for_FY22[[#This Row],[Median]]-AAMC_Raw_Data_for_FY22[[#This Row],[25th]])/25)*5) + AAMC_Raw_Data_for_FY22[[#This Row],[25th]]","v":131030},{"$f":"(((AAMC_Raw_Data_for_FY22[[#This Row],[Median]]-AAMC_Raw_Data_for_FY22[[#This Row],[25th]])/25)*10) + AAMC_Raw_Data_for_FY22[[#This Row],[25th]]","v":134654},{"$f":"(((AAMC_Raw_Data_for_FY22[[#This Row],[Median]]-AAMC_Raw_Data_for_FY22[[#This Row],[25th]])/25)*15) + AAMC_Raw_Data_for_FY22[[#This Row],[25th]]","v":138278},{"$f":"(((AAMC_Raw_Data_for_FY22[[#This Row],[Median]]-AAMC_Raw_Data_for_FY22[[#This Row],[25th]])/25)*20) + AAMC_Raw_Data_for_FY22[[#This Row],[25th]]","v":141902},145526,{"$f":"(((AAMC_Raw_Data_for_FY22[[#This Row],[75th]]-AAMC_Raw_Data_for_FY22[[#This Row],[Median]])/25)*5) + AAMC_Raw_Data_for_FY22[[#This Row],[Median]]","v":150052.79999999999},{"$f":"(((AAMC_Raw_Data_for_FY22[[#This Row],[75th]]-AAMC_Raw_Data_for_FY22[[#This Row],[Median]])/25)*10) + AAMC_Raw_Data_for_FY22[[#This Row],[Median]]","v":154579.6},{"$f":"(((AAMC_Raw_Data_for_FY22[[#This Row],[75th]]-AAMC_Raw_Data_for_FY22[[#This Row],[Median]])/25)*15) + AAMC_Raw_Data_for_FY22[[#This Row],[Median]]","v":159106.4},{"$f":"(((AAMC_Raw_Data_for_FY22[[#This Row],[75th]]-AAMC_Raw_Data_for_FY22[[#This Row],[Median]])/25)*20) + AAMC_Raw_Data_for_FY22[[#This Row],[Median]]","v":163633.20000000001},168160,{"$f":"(((AAMC_Raw_Data_for_FY22[[#This Row],[75th]]-AAMC_Raw_Data_for_FY22[[#This Row],[Median]])/25)*30) + AAMC_Raw_Data_for_FY22[[#This Row],[Median]]","v":172686.8},{"$f":"(((AAMC_Raw_Data_for_FY22[[#This Row],[75th]]-AAMC_Raw_Data_for_FY22[[#This Row],[Median]])/25)*35) + AAMC_Raw_Data_for_FY22[[#This Row],[Median]]","v":177213.6},{"$f":"(((AAMC_Raw_Data_for_FY22[[#This Row],[75th]]-AAMC_Raw_Data_for_FY22[[#This Row],[Median]])/25)*40) + AAMC_Raw_Data_for_FY22[[#This Row],[Median]]","v":181740.4}]
[{"$f":"AAMC_Raw_Data_for_FY22[[#This Row],[Source]]&AAMC_Raw_Data_for_FY22[[#This Row],[Type]]&AAMC_Raw_Data_for_FY22[[#This Row],[School Subset]]&AAMC_Raw_Data_for_FY22[[#This Row],[Rank]]&AAMC_Raw_Data_for_FY22[[#This Row],[Degree]]&AAMC_Raw_Data_for_FY22[[#This Row],[Department / Specialty]]&\"L\"","v":"AAMCAcademicAllProfessorPhDGastroenterology-Peds.L"},"Gastroenterology-Peds.",2,"AAMC","Academic","All","Professor","PhD","2021-2022",209674,{"$f":"(((AAMC_Raw_Data_for_FY22[[#This Row],[Median]]-AAMC_Raw_Data_for_FY22[[#This Row],[25th]])/25)*5) + AAMC_Raw_Data_for_FY22[[#This Row],[25th]]","v":211811},{"$f":"(((AAMC_Raw_Data_for_FY22[[#This Row],[Median]]-AAMC_Raw_Data_for_FY22[[#This Row],[25th]])/25)*10) + AAMC_Raw_Data_for_FY22[[#This Row],[25th]]","v":213948},{"$f":"(((AAMC_Raw_Data_for_FY22[[#This Row],[Median]]-AAMC_Raw_Data_for_FY22[[#This Row],[25th]])/25)*15) + AAMC_Raw_Data_for_FY22[[#This Row],[25th]]","v":216085},{"$f":"(((AAMC_Raw_Data_for_FY22[[#This Row],[Median]]-AAMC_Raw_Data_for_FY22[[#This Row],[25th]])/25)*20) + AAMC_Raw_Data_for_FY22[[#This Row],[25th]]","v":218222},220359,{"$f":"(((AAMC_Raw_Data_for_FY22[[#This Row],[75th]]-AAMC_Raw_Data_for_FY22[[#This Row],[Median]])/25)*5) + AAMC_Raw_Data_for_FY22[[#This Row],[Median]]","v":223252},{"$f":"(((AAMC_Raw_Data_for_FY22[[#This Row],[75th]]-AAMC_Raw_Data_for_FY22[[#This Row],[Median]])/25)*10) + AAMC_Raw_Data_for_FY22[[#This Row],[Median]]","v":226145},{"$f":"(((AAMC_Raw_Data_for_FY22[[#This Row],[75th]]-AAMC_Raw_Data_for_FY22[[#This Row],[Median]])/25)*15) + AAMC_Raw_Data_for_FY22[[#This Row],[Median]]","v":229038},{"$f":"(((AAMC_Raw_Data_for_FY22[[#This Row],[75th]]-AAMC_Raw_Data_for_FY22[[#This Row],[Median]])/25)*20) + AAMC_Raw_Data_for_FY22[[#This Row],[Median]]","v":231931},234824,{"$f":"(((AAMC_Raw_Data_for_FY22[[#This Row],[75th]]-AAMC_Raw_Data_for_FY22[[#This Row],[Median]])/25)*30) + AAMC_Raw_Data_for_FY22[[#This Row],[Median]]","v":237717},{"$f":"(((AAMC_Raw_Data_for_FY22[[#This Row],[75th]]-AAMC_Raw_Data_for_FY22[[#This Row],[Median]])/25)*35) + AAMC_Raw_Data_for_FY22[[#This Row],[Median]]","v":240610},{"$f":"(((AAMC_Raw_Data_for_FY22[[#This Row],[75th]]-AAMC_Raw_Data_for_FY22[[#This Row],[Median]])/25)*40) + AAMC_Raw_Data_for_FY22[[#This Row],[Median]]","v":243503}]
[{"$f":"AAMC_Raw_Data_for_FY22[[#This Row],[Source]]&AAMC_Raw_Data_for_FY22[[#This Row],[Type]]&AAMC_Raw_Data_for_FY22[[#This Row],[School Subset]]&AAMC_Raw_Data_for_FY22[[#This Row],[Rank]]&AAMC_Raw_Data_for_FY22[[#This Row],[Degree]]&AAMC_Raw_Data_for_FY22[[#This Row],[Department / Specialty]]&\"L\"","v":"AAMCAcademicAllInstructorPhDGeneral PediatricsL"},"General Pediatrics",5,"AAMC","Academic","All","Instructor","PhD","2021-2022",80101,{"$f":"(((AAMC_Raw_Data_for_FY22[[#This Row],[Median]]-AAMC_Raw_Data_for_FY22[[#This Row],[25th]])/25)*5) + AAMC_Raw_Data_for_FY22[[#This Row],[25th]]","v":81260.600000000006},{"$f":"(((AAMC_Raw_Data_for_FY22[[#This Row],[Median]]-AAMC_Raw_Data_for_FY22[[#This Row],[25th]])/25)*10) + AAMC_Raw_Data_for_FY22[[#This Row],[25th]]","v":82420.2},{"$f":"(((AAMC_Raw_Data_for_FY22[[#This Row],[Median]]-AAMC_Raw_Data_for_FY22[[#This Row],[25th]])/25)*15) + AAMC_Raw_Data_for_FY22[[#This Row],[25th]]","v":83579.8},{"$f":"(((AAMC_Raw_Data_for_FY22[[#This Row],[Median]]-AAMC_Raw_Data_for_FY22[[#This Row],[25th]])/25)*20) + AAMC_Raw_Data_for_FY22[[#This Row],[25th]]","v":84739.4},85899,{"$f":"(((AAMC_Raw_Data_for_FY22[[#This Row],[75th]]-AAMC_Raw_Data_for_FY22[[#This Row],[Median]])/25)*5) + AAMC_Raw_Data_for_FY22[[#This Row],[Median]]","v":87467.8},{"$f":"(((AAMC_Raw_Data_for_FY22[[#This Row],[75th]]-AAMC_Raw_Data_for_FY22[[#This Row],[Median]])/25)*10) + AAMC_Raw_Data_for_FY22[[#This Row],[Median]]","v":89036.6},{"$f":"(((AAMC_Raw_Data_for_FY22[[#This Row],[75th]]-AAMC_Raw_Data_for_FY22[[#This Row],[Median]])/25)*15) + AAMC_Raw_Data_for_FY22[[#This Row],[Median]]","v":90605.4},{"$f":"(((AAMC_Raw_Data_for_FY22[[#This Row],[75th]]-AAMC_Raw_Data_for_FY22[[#This Row],[Median]])/25)*20) + AAMC_Raw_Data_for_FY22[[#This Row],[Median]]","v":92174.2},93743,{"$f":"(((AAMC_Raw_Data_for_FY22[[#This Row],[75th]]-AAMC_Raw_Data_for_FY22[[#This Row],[Median]])/25)*30) + AAMC_Raw_Data_for_FY22[[#This Row],[Median]]","v":95311.8},{"$f":"(((AAMC_Raw_Data_for_FY22[[#This Row],[75th]]-AAMC_Raw_Data_for_FY22[[#This Row],[Median]])/25)*35) + AAMC_Raw_Data_for_FY22[[#This Row],[Median]]","v":96880.6},{"$f":"(((AAMC_Raw_Data_for_FY22[[#This Row],[75th]]-AAMC_Raw_Data_for_FY22[[#This Row],[Median]])/25)*40) + AAMC_Raw_Data_for_FY22[[#This Row],[Median]]","v":98449.4}]
[{"$f":"AAMC_Raw_Data_for_FY22[[#This Row],[Source]]&AAMC_Raw_Data_for_FY22[[#This Row],[Type]]&AAMC_Raw_Data_for_FY22[[#This Row],[School Subset]]&AAMC_Raw_Data_for_FY22[[#This Row],[Rank]]&AAMC_Raw_Data_for_FY22[[#This Row],[Degree]]&AAMC_Raw_Data_for_FY22[[#This Row],[Department / Specialty]]&\"L\"","v":"AAMCAcademicAllAssistantPhDGeneral PediatricsL"},"General Pediatrics",4,"AAMC","Academic","All","Assistant","PhD","2021-2022",97020,{"$f":"(((AAMC_Raw_Data_for_FY22[[#This Row],[Median]]-AAMC_Raw_Data_for_FY22[[#This Row],[25th]])/25)*5) + AAMC_Raw_Data_for_FY22[[#This Row],[25th]]","v":99745},{"$f":"(((AAMC_Raw_Data_for_FY22[[#This Row],[Median]]-AAMC_Raw_Data_for_FY22[[#This Row],[25th]])/25)*10) + AAMC_Raw_Data_for_FY22[[#This Row],[25th]]","v":102470},{"$f":"(((AAMC_Raw_Data_for_FY22[[#This Row],[Median]]-AAMC_Raw_Data_for_FY22[[#This Row],[25th]])/25)*15) + AAMC_Raw_Data_for_FY22[[#This Row],[25th]]","v":105195},{"$f":"(((AAMC_Raw_Data_for_FY22[[#This Row],[Median]]-AAMC_Raw_Data_for_FY22[[#This Row],[25th]])/25)*20) + AAMC_Raw_Data_for_FY22[[#This Row],[25th]]","v":107920},110645,{"$f":"(((AAMC_Raw_Data_for_FY22[[#This Row],[75th]]-AAMC_Raw_Data_for_FY22[[#This Row],[Median]])/25)*5) + AAMC_Raw_Data_for_FY22[[#This Row],[Median]]","v":113240.2},{"$f":"(((AAMC_Raw_Data_for_FY22[[#This Row],[75th]]-AAMC_Raw_Data_for_FY22[[#This Row],[Median]])/25)*10) + AAMC_Raw_Data_for_FY22[[#This Row],[Median]]","v":115835.4},{"$f":"(((AAMC_Raw_Data_for_FY22[[#This Row],[75th]]-AAMC_Raw_Data_for_FY22[[#This Row],[Median]])/25)*15) + AAMC_Raw_Data_for_FY22[[#This Row],[Median]]","v":118430.6},{"$f":"(((AAMC_Raw_Data_for_FY22[[#This Row],[75th]]-AAMC_Raw_Data_for_FY22[[#This Row],[Median]])/25)*20) + AAMC_Raw_Data_for_FY22[[#This Row],[Median]]","v":121025.8},123621,{"$f":"(((AAMC_Raw_Data_for_FY22[[#This Row],[75th]]-AAMC_Raw_Data_for_FY22[[#This Row],[Median]])/25)*30) + AAMC_Raw_Data_for_FY22[[#This Row],[Median]]","v":126216.2},{"$f":"(((AAMC_Raw_Data_for_FY22[[#This Row],[75th]]-AAMC_Raw_Data_for_FY22[[#This Row],[Median]])/25)*35) + AAMC_Raw_Data_for_FY22[[#This Row],[Median]]","v":128811.4},{"$f":"(((AAMC_Raw_Data_for_FY22[[#This Row],[75th]]-AAMC_Raw_Data_for_FY22[[#This Row],[Median]])/25)*40) + AAMC_Raw_Data_for_FY22[[#This Row],[Median]]","v":131406.6}]
[{"$f":"AAMC_Raw_Data_for_FY22[[#This Row],[Source]]&AAMC_Raw_Data_for_FY22[[#This Row],[Type]]&AAMC_Raw_Data_for_FY22[[#This Row],[School Subset]]&AAMC_Raw_Data_for_FY22[[#This Row],[Rank]]&AAMC_Raw_Data_for_FY22[[#This Row],[Degree]]&AAMC_Raw_Data_for_FY22[[#This Row],[Department / Specialty]]&\"L\"","v":"AAMCAcademicAllAssociatePhDGeneral PediatricsL"},"General Pediatrics",3,"AAMC","Academic","All","Associate","PhD","2021-2022",134607,{"$f":"(((AAMC_Raw_Data_for_FY22[[#This Row],[Median]]-AAMC_Raw_Data_for_FY22[[#This Row],[25th]])/25)*5) + AAMC_Raw_Data_for_FY22[[#This Row],[25th]]","v":138090.79999999999},{"$f":"(((AAMC_Raw_Data_for_FY22[[#This Row],[Median]]-AAMC_Raw_Data_for_FY22[[#This Row],[25th]])/25)*10) + AAMC_Raw_Data_for_FY22[[#This Row],[25th]]","v":141574.6},{"$f":"(((AAMC_Raw_Data_for_FY22[[#This Row],[Median]]-AAMC_Raw_Data_for_FY22[[#This Row],[25th]])/25)*15) + AAMC_Raw_Data_for_FY22[[#This Row],[25th]]","v":145058.4},{"$f":"(((AAMC_Raw_Data_for_FY22[[#This Row],[Median]]-AAMC_Raw_Data_for_FY22[[#This Row],[25th]])/25)*20) + AAMC_Raw_Data_for_FY22[[#This Row],[25th]]","v":148542.20000000001},152026,{"$f":"(((AAMC_Raw_Data_for_FY22[[#This Row],[75th]]-AAMC_Raw_Data_for_FY22[[#This Row],[Median]])/25)*5) + AAMC_Raw_Data_for_FY22[[#This Row],[Median]]","v":156897.79999999999},{"$f":"(((AAMC_Raw_Data_for_FY22[[#This Row],[75th]]-AAMC_Raw_Data_for_FY22[[#This Row],[Median]])/25)*10) + AAMC_Raw_Data_for_FY22[[#This Row],[Median]]","v":161769.60000000001},{"$f":"(((AAMC_Raw_Data_for_FY22[[#This Row],[75th]]-AAMC_Raw_Data_for_FY22[[#This Row],[Median]])/25)*15) + AAMC_Raw_Data_for_FY22[[#This Row],[Median]]","v":166641.4},{"$f":"(((AAMC_Raw_Data_for_FY22[[#This Row],[75th]]-AAMC_Raw_Data_for_FY22[[#This Row],[Median]])/25)*20) + AAMC_Raw_Data_for_FY22[[#This Row],[Median]]","v":171513.2},176385,{"$f":"(((AAMC_Raw_Data_for_FY22[[#This Row],[75th]]-AAMC_Raw_Data_for_FY22[[#This Row],[Median]])/25)*30) + AAMC_Raw_Data_for_FY22[[#This Row],[Median]]","v":181256.8},{"$f":"(((AAMC_Raw_Data_for_FY22[[#This Row],[75th]]-AAMC_Raw_Data_for_FY22[[#This Row],[Median]])/25)*35) + AAMC_Raw_Data_for_FY22[[#This Row],[Median]]","v":186128.6},{"$f":"(((AAMC_Raw_Data_for_FY22[[#This Row],[75th]]-AAMC_Raw_Data_for_FY22[[#This Row],[Median]])/25)*40) + AAMC_Raw_Data_for_FY22[[#This Row],[Median]]","v":191000.4}]
[{"$f":"AAMC_Raw_Data_for_FY22[[#This Row],[Source]]&AAMC_Raw_Data_for_FY22[[#This Row],[Type]]&AAMC_Raw_Data_for_FY22[[#This Row],[School Subset]]&AAMC_Raw_Data_for_FY22[[#This Row],[Rank]]&AAMC_Raw_Data_for_FY22[[#This Row],[Degree]]&AAMC_Raw_Data_for_FY22[[#This Row],[Department / Specialty]]&\"L\"","v":"AAMCAcademicAllProfessorPhDGeneral PediatricsL"},"General Pediatrics",2,"AAMC","Academic","All","Professor","PhD","2021-2022",182018,{"$f":"(((AAMC_Raw_Data_for_FY22[[#This Row],[Median]]-AAMC_Raw_Data_for_FY22[[#This Row],[25th]])/25)*5) + AAMC_Raw_Data_for_FY22[[#This Row],[25th]]","v":187561.8},{"$f":"(((AAMC_Raw_Data_for_FY22[[#This Row],[Median]]-AAMC_Raw_Data_for_FY22[[#This Row],[25th]])/25)*10) + AAMC_Raw_Data_for_FY22[[#This Row],[25th]]","v":193105.6},{"$f":"(((AAMC_Raw_Data_for_FY22[[#This Row],[Median]]-AAMC_Raw_Data_for_FY22[[#This Row],[25th]])/25)*15) + AAMC_Raw_Data_for_FY22[[#This Row],[25th]]","v":198649.4},{"$f":"(((AAMC_Raw_Data_for_FY22[[#This Row],[Median]]-AAMC_Raw_Data_for_FY22[[#This Row],[25th]])/25)*20) + AAMC_Raw_Data_for_FY22[[#This Row],[25th]]","v":204193.2},209737,{"$f":"(((AAMC_Raw_Data_for_FY22[[#This Row],[75th]]-AAMC_Raw_Data_for_FY22[[#This Row],[Median]])/25)*5) + AAMC_Raw_Data_for_FY22[[#This Row],[Median]]","v":217080.4},{"$f":"(((AAMC_Raw_Data_for_FY22[[#This Row],[75th]]-AAMC_Raw_Data_for_FY22[[#This Row],[Median]])/25)*10) + AAMC_Raw_Data_for_FY22[[#This Row],[Median]]","v":224423.8},{"$f":"(((AAMC_Raw_Data_for_FY22[[#This Row],[75th]]-AAMC_Raw_Data_for_FY22[[#This Row],[Median]])/25)*15) + AAMC_Raw_Data_for_FY22[[#This Row],[Median]]","v":231767.2},{"$f":"(((AAMC_Raw_Data_for_FY22[[#This Row],[75th]]-AAMC_Raw_Data_for_FY22[[#This Row],[Median]])/25)*20) + AAMC_Raw_Data_for_FY22[[#This Row],[Median]]","v":239110.6},246454,{"$f":"(((AAMC_Raw_Data_for_FY22[[#This Row],[75th]]-AAMC_Raw_Data_for_FY22[[#This Row],[Median]])/25)*30) + AAMC_Raw_Data_for_FY22[[#This Row],[Median]]","v":253797.4},{"$f":"(((AAMC_Raw_Data_for_FY22[[#This Row],[75th]]-AAMC_Raw_Data_for_FY22[[#This Row],[Median]])/25)*35) + AAMC_Raw_Data_for_FY22[[#This Row],[Median]]","v":261140.8},{"$f":"(((AAMC_Raw_Data_for_FY22[[#This Row],[75th]]-AAMC_Raw_Data_for_FY22[[#This Row],[Median]])/25)*40) + AAMC_Raw_Data_for_FY22[[#This Row],[Median]]","v":268484.2}]
[{"$f":"AAMC_Raw_Data_for_FY22[[#This Row],[Source]]&AAMC_Raw_Data_for_FY22[[#This Row],[Type]]&AAMC_Raw_Data_for_FY22[[#This Row],[School Subset]]&AAMC_Raw_Data_for_FY22[[#This Row],[Rank]]&AAMC_Raw_Data_for_FY22[[#This Row],[Degree]]&AAMC_Raw_Data_for_FY22[[#This Row],[Department / Specialty]]&\"L\"","v":"AAMCAcademicAllChiefPhDGeneral PediatricsL"},"General Pediatrics",6,"AAMC","Academic","All","Chief","PhD","2021-2022",null,{"$f":"(((AAMC_Raw_Data_for_FY22[[#This Row],[Median]]-AAMC_Raw_Data_for_FY22[[#This Row],[25th]])/25)*5) + AAMC_Raw_Data_for_FY22[[#This Row],[25th]]","v":0},{"$f":"(((AAMC_Raw_Data_for_FY22[[#This Row],[Median]]-AAMC_Raw_Data_for_FY22[[#This Row],[25th]])/25)*10) + AAMC_Raw_Data_for_FY22[[#This Row],[25th]]","v":0},{"$f":"(((AAMC_Raw_Data_for_FY22[[#This Row],[Median]]-AAMC_Raw_Data_for_FY22[[#This Row],[25th]])/25)*15) + AAMC_Raw_Data_for_FY22[[#This Row],[25th]]","v":0},{"$f":"(((AAMC_Raw_Data_for_FY22[[#This Row],[Median]]-AAMC_Raw_Data_for_FY22[[#This Row],[25th]])/25)*20) + AAMC_Raw_Data_for_FY22[[#This Row],[25th]]","v":0},null,{"$f":"(((AAMC_Raw_Data_for_FY22[[#This Row],[75th]]-AAMC_Raw_Data_for_FY22[[#This Row],[Median]])/25)*5) + AAMC_Raw_Data_for_FY22[[#This Row],[Median]]","v":0},{"$f":"(((AAMC_Raw_Data_for_FY22[[#This Row],[75th]]-AAMC_Raw_Data_for_FY22[[#This Row],[Median]])/25)*10) + AAMC_Raw_Data_for_FY22[[#This Row],[Median]]","v":0},{"$f":"(((AAMC_Raw_Data_for_FY22[[#This Row],[75th]]-AAMC_Raw_Data_for_FY22[[#This Row],[Median]])/25)*15) + AAMC_Raw_Data_for_FY22[[#This Row],[Median]]","v":0},{"$f":"(((AAMC_Raw_Data_for_FY22[[#This Row],[75th]]-AAMC_Raw_Data_for_FY22[[#This Row],[Median]])/25)*20) + AAMC_Raw_Data_for_FY22[[#This Row],[Median]]","v":0},null,{"$f":"(((AAMC_Raw_Data_for_FY22[[#This Row],[75th]]-AAMC_Raw_Data_for_FY22[[#This Row],[Median]])/25)*30) + AAMC_Raw_Data_for_FY22[[#This Row],[Median]]","v":0},{"$f":"(((AAMC_Raw_Data_for_FY22[[#This Row],[75th]]-AAMC_Raw_Data_for_FY22[[#This Row],[Median]])/25)*35) + AAMC_Raw_Data_for_FY22[[#This Row],[Median]]","v":0},{"$f":"(((AAMC_Raw_Data_for_FY22[[#This Row],[75th]]-AAMC_Raw_Data_for_FY22[[#This Row],[Median]])/25)*40) + AAMC_Raw_Data_for_FY22[[#This Row],[Median]]","v":0}]
[{"$f":"AAMC_Raw_Data_for_FY22[[#This Row],[Source]]&AAMC_Raw_Data_for_FY22[[#This Row],[Type]]&AAMC_Raw_Data_for_FY22[[#This Row],[School Subset]]&AAMC_Raw_Data_for_FY22[[#This Row],[Rank]]&AAMC_Raw_Data_for_FY22[[#This Row],[Degree]]&AAMC_Raw_Data_for_FY22[[#This Row],[Department / Specialty]]&\"L\"","v":"AAMCAcademicAllInstructorPhDGenetics-Peds.L"},"Genetics-Peds.",5,"AAMC","Academic","All","Instructor","PhD","2021-2022",75954,{"$f":"(((AAMC_Raw_Data_for_FY22[[#This Row],[Median]]-AAMC_Raw_Data_for_FY22[[#This Row],[25th]])/25)*5) + AAMC_Raw_Data_for_FY22[[#This Row],[25th]]","v":76853.2},{"$f":"(((AAMC_Raw_Data_for_FY22[[#This Row],[Median]]-AAMC_Raw_Data_for_FY22[[#This Row],[25th]])/25)*10) + AAMC_Raw_Data_for_FY22[[#This Row],[25th]]","v":77752.399999999994},{"$f":"(((AAMC_Raw_Data_for_FY22[[#This Row],[Median]]-AAMC_Raw_Data_for_FY22[[#This Row],[25th]])/25)*15) + AAMC_Raw_Data_for_FY22[[#This Row],[25th]]","v":78651.600000000006},{"$f":"(((AAMC_Raw_Data_for_FY22[[#This Row],[Median]]-AAMC_Raw_Data_for_FY22[[#This Row],[25th]])/25)*20) + AAMC_Raw_Data_for_FY22[[#This Row],[25th]]","v":79550.8},80450,{"$f":"(((AAMC_Raw_Data_for_FY22[[#This Row],[75th]]-AAMC_Raw_Data_for_FY22[[#This Row],[Median]])/25)*5) + AAMC_Raw_Data_for_FY22[[#This Row],[Median]]","v":85184.8},{"$f":"(((AAMC_Raw_Data_for_FY22[[#This Row],[75th]]-AAMC_Raw_Data_for_FY22[[#This Row],[Median]])/25)*10) + AAMC_Raw_Data_for_FY22[[#This Row],[Median]]","v":89919.6},{"$f":"(((AAMC_Raw_Data_for_FY22[[#This Row],[75th]]-AAMC_Raw_Data_for_FY22[[#This Row],[Median]])/25)*15) + AAMC_Raw_Data_for_FY22[[#This Row],[Median]]","v":94654.399999999994},{"$f":"(((AAMC_Raw_Data_for_FY22[[#This Row],[75th]]-AAMC_Raw_Data_for_FY22[[#This Row],[Median]])/25)*20) + AAMC_Raw_Data_for_FY22[[#This Row],[Median]]","v":99389.2},104124,{"$f":"(((AAMC_Raw_Data_for_FY22[[#This Row],[75th]]-AAMC_Raw_Data_for_FY22[[#This Row],[Median]])/25)*30) + AAMC_Raw_Data_for_FY22[[#This Row],[Median]]","v":108858.8},{"$f":"(((AAMC_Raw_Data_for_FY22[[#This Row],[75th]]-AAMC_Raw_Data_for_FY22[[#This Row],[Median]])/25)*35) + AAMC_Raw_Data_for_FY22[[#This Row],[Median]]","v":113593.60000000001},{"$f":"(((AAMC_Raw_Data_for_FY22[[#This Row],[75th]]-AAMC_Raw_Data_for_FY22[[#This Row],[Median]])/25)*40) + AAMC_Raw_Data_for_FY22[[#This Row],[Median]]","v":118328.4}]
[{"$f":"AAMC_Raw_Data_for_FY22[[#This Row],[Source]]&AAMC_Raw_Data_for_FY22[[#This Row],[Type]]&AAMC_Raw_Data_for_FY22[[#This Row],[School Subset]]&AAMC_Raw_Data_for_FY22[[#This Row],[Rank]]&AAMC_Raw_Data_for_FY22[[#This Row],[Degree]]&AAMC_Raw_Data_for_FY22[[#This Row],[Department / Specialty]]&\"L\"","v":"AAMCAcademicAllAssistantPhDGenetics-Peds.L"},"Genetics-Peds.",4,"AAMC","Academic","All","Assistant","PhD","2021-2022",95683,{"$f":"(((AAMC_Raw_Data_for_FY22[[#This Row],[Median]]-AAMC_Raw_Data_for_FY22[[#This Row],[25th]])/25)*5) + AAMC_Raw_Data_for_FY22[[#This Row],[25th]]","v":100324.4},{"$f":"(((AAMC_Raw_Data_for_FY22[[#This Row],[Median]]-AAMC_Raw_Data_for_FY22[[#This Row],[25th]])/25)*10) + AAMC_Raw_Data_for_FY22[[#This Row],[25th]]","v":104965.8},{"$f":"(((AAMC_Raw_Data_for_FY22[[#This Row],[Median]]-AAMC_Raw_Data_for_FY22[[#This Row],[25th]])/25)*15) + AAMC_Raw_Data_for_FY22[[#This Row],[25th]]","v":109607.2},{"$f":"(((AAMC_Raw_Data_for_FY22[[#This Row],[Median]]-AAMC_Raw_Data_for_FY22[[#This Row],[25th]])/25)*20) + AAMC_Raw_Data_for_FY22[[#This Row],[25th]]","v":114248.6},118890,{"$f":"(((AAMC_Raw_Data_for_FY22[[#This Row],[75th]]-AAMC_Raw_Data_for_FY22[[#This Row],[Median]])/25)*5) + AAMC_Raw_Data_for_FY22[[#This Row],[Median]]","v":123631.4},{"$f":"(((AAMC_Raw_Data_for_FY22[[#This Row],[75th]]-AAMC_Raw_Data_for_FY22[[#This Row],[Median]])/25)*10) + AAMC_Raw_Data_for_FY22[[#This Row],[Median]]","v":128372.8},{"$f":"(((AAMC_Raw_Data_for_FY22[[#This Row],[75th]]-AAMC_Raw_Data_for_FY22[[#This Row],[Median]])/25)*15) + AAMC_Raw_Data_for_FY22[[#This Row],[Median]]","v":133114.20000000001},{"$f":"(((AAMC_Raw_Data_for_FY22[[#This Row],[75th]]-AAMC_Raw_Data_for_FY22[[#This Row],[Median]])/25)*20) + AAMC_Raw_Data_for_FY22[[#This Row],[Median]]","v":137855.6},142597,{"$f":"(((AAMC_Raw_Data_for_FY22[[#This Row],[75th]]-AAMC_Raw_Data_for_FY22[[#This Row],[Median]])/25)*30) + AAMC_Raw_Data_for_FY22[[#This Row],[Median]]","v":147338.4},{"$f":"(((AAMC_Raw_Data_for_FY22[[#This Row],[75th]]-AAMC_Raw_Data_for_FY22[[#This Row],[Median]])/25)*35) + AAMC_Raw_Data_for_FY22[[#This Row],[Median]]","v":152079.79999999999},{"$f":"(((AAMC_Raw_Data_for_FY22[[#This Row],[75th]]-AAMC_Raw_Data_for_FY22[[#This Row],[Median]])/25)*40) + AAMC_Raw_Data_for_FY22[[#This Row],[Median]]","v":156821.20000000001}]
[{"$f":"AAMC_Raw_Data_for_FY22[[#This Row],[Source]]&AAMC_Raw_Data_for_FY22[[#This Row],[Type]]&AAMC_Raw_Data_for_FY22[[#This Row],[School Subset]]&AAMC_Raw_Data_for_FY22[[#This Row],[Rank]]&AAMC_Raw_Data_for_FY22[[#This Row],[Degree]]&AAMC_Raw_Data_for_FY22[[#This Row],[Department / Specialty]]&\"L\"","v":"AAMCAcademicAllAssociatePhDGenetics-Peds.L"},"Genetics-Peds.",3,"AAMC","Academic","All","Associate","PhD","2021-2022",130176,{"$f":"(((AAMC_Raw_Data_for_FY22[[#This Row],[Median]]-AAMC_Raw_Data_for_FY22[[#This Row],[25th]])/25)*5) + AAMC_Raw_Data_for_FY22[[#This Row],[25th]]","v":133394},{"$f":"(((AAMC_Raw_Data_for_FY22[[#This Row],[Median]]-AAMC_Raw_Data_for_FY22[[#This Row],[25th]])/25)*10) + AAMC_Raw_Data_for_FY22[[#This Row],[25th]]","v":136612},{"$f":"(((AAMC_Raw_Data_for_FY22[[#This Row],[Median]]-AAMC_Raw_Data_for_FY22[[#This Row],[25th]])/25)*15) + AAMC_Raw_Data_for_FY22[[#This Row],[25th]]","v":139830},{"$f":"(((AAMC_Raw_Data_for_FY22[[#This Row],[Median]]-AAMC_Raw_Data_for_FY22[[#This Row],[25th]])/25)*20) + AAMC_Raw_Data_for_FY22[[#This Row],[25th]]","v":143048},146266,{"$f":"(((AAMC_Raw_Data_for_FY22[[#This Row],[75th]]-AAMC_Raw_Data_for_FY22[[#This Row],[Median]])/25)*5) + AAMC_Raw_Data_for_FY22[[#This Row],[Median]]","v":149613.79999999999},{"$f":"(((AAMC_Raw_Data_for_FY22[[#This Row],[75th]]-AAMC_Raw_Data_for_FY22[[#This Row],[Median]])/25)*10) + AAMC_Raw_Data_for_FY22[[#This Row],[Median]]","v":152961.60000000001},{"$f":"(((AAMC_Raw_Data_for_FY22[[#This Row],[75th]]-AAMC_Raw_Data_for_FY22[[#This Row],[Median]])/25)*15) + AAMC_Raw_Data_for_FY22[[#This Row],[Median]]","v":156309.4},{"$f":"(((AAMC_Raw_Data_for_FY22[[#This Row],[75th]]-AAMC_Raw_Data_for_FY22[[#This Row],[Median]])/25)*20) + AAMC_Raw_Data_for_FY22[[#This Row],[Median]]","v":159657.20000000001},163005,{"$f":"(((AAMC_Raw_Data_for_FY22[[#This Row],[75th]]-AAMC_Raw_Data_for_FY22[[#This Row],[Median]])/25)*30) + AAMC_Raw_Data_for_FY22[[#This Row],[Median]]","v":166352.79999999999},{"$f":"(((AAMC_Raw_Data_for_FY22[[#This Row],[75th]]-AAMC_Raw_Data_for_FY22[[#This Row],[Median]])/25)*35) + AAMC_Raw_Data_for_FY22[[#This Row],[Median]]","v":169700.6},{"$f":"(((AAMC_Raw_Data_for_FY22[[#This Row],[75th]]-AAMC_Raw_Data_for_FY22[[#This Row],[Median]])/25)*40) + AAMC_Raw_Data_for_FY22[[#This Row],[Median]]","v":173048.4}]
[{"$f":"AAMC_Raw_Data_for_FY22[[#This Row],[Source]]&AAMC_Raw_Data_for_FY22[[#This Row],[Type]]&AAMC_Raw_Data_for_FY22[[#This Row],[School Subset]]&AAMC_Raw_Data_for_FY22[[#This Row],[Rank]]&AAMC_Raw_Data_for_FY22[[#This Row],[Degree]]&AAMC_Raw_Data_for_FY22[[#This Row],[Department / Specialty]]&\"L\"","v":"AAMCAcademicAllProfessorPhDGenetics-Peds.L"},"Genetics-Peds.",2,"AAMC","Academic","All","Professor","PhD","2021-2022",163163,{"$f":"(((AAMC_Raw_Data_for_FY22[[#This Row],[Median]]-AAMC_Raw_Data_for_FY22[[#This Row],[25th]])/25)*5) + AAMC_Raw_Data_for_FY22[[#This Row],[25th]]","v":175141.2},{"$f":"(((AAMC_Raw_Data_for_FY22[[#This Row],[Median]]-AAMC_Raw_Data_for_FY22[[#This Row],[25th]])/25)*10) + AAMC_Raw_Data_for_FY22[[#This Row],[25th]]","v":187119.4},{"$f":"(((AAMC_Raw_Data_for_FY22[[#This Row],[Median]]-AAMC_Raw_Data_for_FY22[[#This Row],[25th]])/25)*15) + AAMC_Raw_Data_for_FY22[[#This Row],[25th]]","v":199097.60000000001},{"$f":"(((AAMC_Raw_Data_for_FY22[[#This Row],[Median]]-AAMC_Raw_Data_for_FY22[[#This Row],[25th]])/25)*20) + AAMC_Raw_Data_for_FY22[[#This Row],[25th]]","v":211075.8},223054,{"$f":"(((AAMC_Raw_Data_for_FY22[[#This Row],[75th]]-AAMC_Raw_Data_for_FY22[[#This Row],[Median]])/25)*5) + AAMC_Raw_Data_for_FY22[[#This Row],[Median]]","v":236699},{"$f":"(((AAMC_Raw_Data_for_FY22[[#This Row],[75th]]-AAMC_Raw_Data_for_FY22[[#This Row],[Median]])/25)*10) + AAMC_Raw_Data_for_FY22[[#This Row],[Median]]","v":250344},{"$f":"(((AAMC_Raw_Data_for_FY22[[#This Row],[75th]]-AAMC_Raw_Data_for_FY22[[#This Row],[Median]])/25)*15) + AAMC_Raw_Data_for_FY22[[#This Row],[Median]]","v":263989},{"$f":"(((AAMC_Raw_Data_for_FY22[[#This Row],[75th]]-AAMC_Raw_Data_for_FY22[[#This Row],[Median]])/25)*20) + AAMC_Raw_Data_for_FY22[[#This Row],[Median]]","v":277634},291279,{"$f":"(((AAMC_Raw_Data_for_FY22[[#This Row],[75th]]-AAMC_Raw_Data_for_FY22[[#This Row],[Median]])/25)*30) + AAMC_Raw_Data_for_FY22[[#This Row],[Median]]","v":304924},{"$f":"(((AAMC_Raw_Data_for_FY22[[#This Row],[75th]]-AAMC_Raw_Data_for_FY22[[#This Row],[Median]])/25)*35) + AAMC_Raw_Data_for_FY22[[#This Row],[Median]]","v":318569},{"$f":"(((AAMC_Raw_Data_for_FY22[[#This Row],[75th]]-AAMC_Raw_Data_for_FY22[[#This Row],[Median]])/25)*40) + AAMC_Raw_Data_for_FY22[[#This Row],[Median]]","v":332214}]
[{"$f":"AAMC_Raw_Data_for_FY22[[#This Row],[Source]]&AAMC_Raw_Data_for_FY22[[#This Row],[Type]]&AAMC_Raw_Data_for_FY22[[#This Row],[School Subset]]&AAMC_Raw_Data_for_FY22[[#This Row],[Rank]]&AAMC_Raw_Data_for_FY22[[#This Row],[Degree]]&AAMC_Raw_Data_for_FY22[[#This Row],[Department / Specialty]]&\"L\"","v":"AAMCAcademicAllChiefPhDGenetics-Peds.L"},"Genetics-Peds.",6,"AAMC","Academic","All","Chief","PhD","2021-2022",null,{"$f":"(((AAMC_Raw_Data_for_FY22[[#This Row],[Median]]-AAMC_Raw_Data_for_FY22[[#This Row],[25th]])/25)*5) + AAMC_Raw_Data_for_FY22[[#This Row],[25th]]","v":0},{"$f":"(((AAMC_Raw_Data_for_FY22[[#This Row],[Median]]-AAMC_Raw_Data_for_FY22[[#This Row],[25th]])/25)*10) + AAMC_Raw_Data_for_FY22[[#This Row],[25th]]","v":0},{"$f":"(((AAMC_Raw_Data_for_FY22[[#This Row],[Median]]-AAMC_Raw_Data_for_FY22[[#This Row],[25th]])/25)*15) + AAMC_Raw_Data_for_FY22[[#This Row],[25th]]","v":0},{"$f":"(((AAMC_Raw_Data_for_FY22[[#This Row],[Median]]-AAMC_Raw_Data_for_FY22[[#This Row],[25th]])/25)*20) + AAMC_Raw_Data_for_FY22[[#This Row],[25th]]","v":0},null,{"$f":"(((AAMC_Raw_Data_for_FY22[[#This Row],[75th]]-AAMC_Raw_Data_for_FY22[[#This Row],[Median]])/25)*5) + AAMC_Raw_Data_for_FY22[[#This Row],[Median]]","v":0},{"$f":"(((AAMC_Raw_Data_for_FY22[[#This Row],[75th]]-AAMC_Raw_Data_for_FY22[[#This Row],[Median]])/25)*10) + AAMC_Raw_Data_for_FY22[[#This Row],[Median]]","v":0},{"$f":"(((AAMC_Raw_Data_for_FY22[[#This Row],[75th]]-AAMC_Raw_Data_for_FY22[[#This Row],[Median]])/25)*15) + AAMC_Raw_Data_for_FY22[[#This Row],[Median]]","v":0},{"$f":"(((AAMC_Raw_Data_for_FY22[[#This Row],[75th]]-AAMC_Raw_Data_for_FY22[[#This Row],[Median]])/25)*20) + AAMC_Raw_Data_for_FY22[[#This Row],[Median]]","v":0},null,{"$f":"(((AAMC_Raw_Data_for_FY22[[#This Row],[75th]]-AAMC_Raw_Data_for_FY22[[#This Row],[Median]])/25)*30) + AAMC_Raw_Data_for_FY22[[#This Row],[Median]]","v":0},{"$f":"(((AAMC_Raw_Data_for_FY22[[#This Row],[75th]]-AAMC_Raw_Data_for_FY22[[#This Row],[Median]])/25)*35) + AAMC_Raw_Data_for_FY22[[#This Row],[Median]]","v":0},{"$f":"(((AAMC_Raw_Data_for_FY22[[#This Row],[75th]]-AAMC_Raw_Data_for_FY22[[#This Row],[Median]])/25)*40) + AAMC_Raw_Data_for_FY22[[#This Row],[Median]]","v":0}]
[{"$f":"AAMC_Raw_Data_for_FY22[[#This Row],[Source]]&AAMC_Raw_Data_for_FY22[[#This Row],[Type]]&AAMC_Raw_Data_for_FY22[[#This Row],[School Subset]]&AAMC_Raw_Data_for_FY22[[#This Row],[Rank]]&AAMC_Raw_Data_for_FY22[[#This Row],[Degree]]&AAMC_Raw_Data_for_FY22[[#This Row],[Department / Specialty]]&\"L\"","v":"AAMCAcademicAllInstructorPhDHematology/Oncology-Peds.L"},"Hematology/Oncology-Peds.",5,"AAMC","Academic","All","Instructor","PhD","2021-2022",88173,{"$f":"(((AAMC_Raw_Data_for_FY22[[#This Row],[Median]]-AAMC_Raw_Data_for_FY22[[#This Row],[25th]])/25)*5) + AAMC_Raw_Data_for_FY22[[#This Row],[25th]]","v":89578.8},{"$f":"(((AAMC_Raw_Data_for_FY22[[#This Row],[Median]]-AAMC_Raw_Data_for_FY22[[#This Row],[25th]])/25)*10) + AAMC_Raw_Data_for_FY22[[#This Row],[25th]]","v":90984.6},{"$f":"(((AAMC_Raw_Data_for_FY22[[#This Row],[Median]]-AAMC_Raw_Data_for_FY22[[#This Row],[25th]])/25)*15) + AAMC_Raw_Data_for_FY22[[#This Row],[25th]]","v":92390.399999999994},{"$f":"(((AAMC_Raw_Data_for_FY22[[#This Row],[Median]]-AAMC_Raw_Data_for_FY22[[#This Row],[25th]])/25)*20) + AAMC_Raw_Data_for_FY22[[#This Row],[25th]]","v":93796.2},95202,{"$f":"(((AAMC_Raw_Data_for_FY22[[#This Row],[75th]]-AAMC_Raw_Data_for_FY22[[#This Row],[Median]])/25)*5) + AAMC_Raw_Data_for_FY22[[#This Row],[Median]]","v":97511.6},{"$f":"(((AAMC_Raw_Data_for_FY22[[#This Row],[75th]]-AAMC_Raw_Data_for_FY22[[#This Row],[Median]])/25)*10) + AAMC_Raw_Data_for_FY22[[#This Row],[Median]]","v":99821.2},{"$f":"(((AAMC_Raw_Data_for_FY22[[#This Row],[75th]]-AAMC_Raw_Data_for_FY22[[#This Row],[Median]])/25)*15) + AAMC_Raw_Data_for_FY22[[#This Row],[Median]]","v":102130.8},{"$f":"(((AAMC_Raw_Data_for_FY22[[#This Row],[75th]]-AAMC_Raw_Data_for_FY22[[#This Row],[Median]])/25)*20) + AAMC_Raw_Data_for_FY22[[#This Row],[Median]]","v":104440.4},106750,{"$f":"(((AAMC_Raw_Data_for_FY22[[#This Row],[75th]]-AAMC_Raw_Data_for_FY22[[#This Row],[Median]])/25)*30) + AAMC_Raw_Data_for_FY22[[#This Row],[Median]]","v":109059.6},{"$f":"(((AAMC_Raw_Data_for_FY22[[#This Row],[75th]]-AAMC_Raw_Data_for_FY22[[#This Row],[Median]])/25)*35) + AAMC_Raw_Data_for_FY22[[#This Row],[Median]]","v":111369.2},{"$f":"(((AAMC_Raw_Data_for_FY22[[#This Row],[75th]]-AAMC_Raw_Data_for_FY22[[#This Row],[Median]])/25)*40) + AAMC_Raw_Data_for_FY22[[#This Row],[Median]]","v":113678.8}]
[{"$f":"AAMC_Raw_Data_for_FY22[[#This Row],[Source]]&AAMC_Raw_Data_for_FY22[[#This Row],[Type]]&AAMC_Raw_Data_for_FY22[[#This Row],[School Subset]]&AAMC_Raw_Data_for_FY22[[#This Row],[Rank]]&AAMC_Raw_Data_for_FY22[[#This Row],[Degree]]&AAMC_Raw_Data_for_FY22[[#This Row],[Department / Specialty]]&\"L\"","v":"AAMCAcademicAllAssistantPhDHematology/Oncology-Peds.L"},"Hematology/Oncology-Peds.",4,"AAMC","Academic","All","Assistant","PhD","2021-2022",101000,{"$f":"(((AAMC_Raw_Data_for_FY22[[#This Row],[Median]]-AAMC_Raw_Data_for_FY22[[#This Row],[25th]])/25)*5) + AAMC_Raw_Data_for_FY22[[#This Row],[25th]]","v":102834},{"$f":"(((AAMC_Raw_Data_for_FY22[[#This Row],[Median]]-AAMC_Raw_Data_for_FY22[[#This Row],[25th]])/25)*10) + AAMC_Raw_Data_for_FY22[[#This Row],[25th]]","v":104668},{"$f":"(((AAMC_Raw_Data_for_FY22[[#This Row],[Median]]-AAMC_Raw_Data_for_FY22[[#This Row],[25th]])/25)*15) + AAMC_Raw_Data_for_FY22[[#This Row],[25th]]","v":106502},{"$f":"(((AAMC_Raw_Data_for_FY22[[#This Row],[Median]]-AAMC_Raw_Data_for_FY22[[#This Row],[25th]])/25)*20) + AAMC_Raw_Data_for_FY22[[#This Row],[25th]]","v":108336},110170,{"$f":"(((AAMC_Raw_Data_for_FY22[[#This Row],[75th]]-AAMC_Raw_Data_for_FY22[[#This Row],[Median]])/25)*5) + AAMC_Raw_Data_for_FY22[[#This Row],[Median]]","v":112505.2},{"$f":"(((AAMC_Raw_Data_for_FY22[[#This Row],[75th]]-AAMC_Raw_Data_for_FY22[[#This Row],[Median]])/25)*10) + AAMC_Raw_Data_for_FY22[[#This Row],[Median]]","v":114840.4},{"$f":"(((AAMC_Raw_Data_for_FY22[[#This Row],[75th]]-AAMC_Raw_Data_for_FY22[[#This Row],[Median]])/25)*15) + AAMC_Raw_Data_for_FY22[[#This Row],[Median]]","v":117175.6},{"$f":"(((AAMC_Raw_Data_for_FY22[[#This Row],[75th]]-AAMC_Raw_Data_for_FY22[[#This Row],[Median]])/25)*20) + AAMC_Raw_Data_for_FY22[[#This Row],[Median]]","v":119510.8},121846,{"$f":"(((AAMC_Raw_Data_for_FY22[[#This Row],[75th]]-AAMC_Raw_Data_for_FY22[[#This Row],[Median]])/25)*30) + AAMC_Raw_Data_for_FY22[[#This Row],[Median]]","v":124181.2},{"$f":"(((AAMC_Raw_Data_for_FY22[[#This Row],[75th]]-AAMC_Raw_Data_for_FY22[[#This Row],[Median]])/25)*35) + AAMC_Raw_Data_for_FY22[[#This Row],[Median]]","v":126516.4},{"$f":"(((AAMC_Raw_Data_for_FY22[[#This Row],[75th]]-AAMC_Raw_Data_for_FY22[[#This Row],[Median]])/25)*40) + AAMC_Raw_Data_for_FY22[[#This Row],[Median]]","v":128851.6}]
[{"$f":"AAMC_Raw_Data_for_FY22[[#This Row],[Source]]&AAMC_Raw_Data_for_FY22[[#This Row],[Type]]&AAMC_Raw_Data_for_FY22[[#This Row],[School Subset]]&AAMC_Raw_Data_for_FY22[[#This Row],[Rank]]&AAMC_Raw_Data_for_FY22[[#This Row],[Degree]]&AAMC_Raw_Data_for_FY22[[#This Row],[Department / Specialty]]&\"L\"","v":"AAMCAcademicAllAssociatePhDHematology/Oncology-Peds.L"},"Hematology/Oncology-Peds.",3,"AAMC","Academic","All","Associate","PhD","2021-2022",131819,{"$f":"(((AAMC_Raw_Data_for_FY22[[#This Row],[Median]]-AAMC_Raw_Data_for_FY22[[#This Row],[25th]])/25)*5) + AAMC_Raw_Data_for_FY22[[#This Row],[25th]]","v":133452.6},{"$f":"(((AAMC_Raw_Data_for_FY22[[#This Row],[Median]]-AAMC_Raw_Data_for_FY22[[#This Row],[25th]])/25)*10) + AAMC_Raw_Data_for_FY22[[#This Row],[25th]]","v":135086.20000000001},{"$f":"(((AAMC_Raw_Data_for_FY22[[#This Row],[Median]]-AAMC_Raw_Data_for_FY22[[#This Row],[25th]])/25)*15) + AAMC_Raw_Data_for_FY22[[#This Row],[25th]]","v":136719.79999999999},{"$f":"(((AAMC_Raw_Data_for_FY22[[#This Row],[Median]]-AAMC_Raw_Data_for_FY22[[#This Row],[25th]])/25)*20) + AAMC_Raw_Data_for_FY22[[#This Row],[25th]]","v":138353.4},139987,{"$f":"(((AAMC_Raw_Data_for_FY22[[#This Row],[75th]]-AAMC_Raw_Data_for_FY22[[#This Row],[Median]])/25)*5) + AAMC_Raw_Data_for_FY22[[#This Row],[Median]]","v":145009.60000000001},{"$f":"(((AAMC_Raw_Data_for_FY22[[#This Row],[75th]]-AAMC_Raw_Data_for_FY22[[#This Row],[Median]])/25)*10) + AAMC_Raw_Data_for_FY22[[#This Row],[Median]]","v":150032.20000000001},{"$f":"(((AAMC_Raw_Data_for_FY22[[#This Row],[75th]]-AAMC_Raw_Data_for_FY22[[#This Row],[Median]])/25)*15) + AAMC_Raw_Data_for_FY22[[#This Row],[Median]]","v":155054.79999999999},{"$f":"(((AAMC_Raw_Data_for_FY22[[#This Row],[75th]]-AAMC_Raw_Data_for_FY22[[#This Row],[Median]])/25)*20) + AAMC_Raw_Data_for_FY22[[#This Row],[Median]]","v":160077.4},165100,{"$f":"(((AAMC_Raw_Data_for_FY22[[#This Row],[75th]]-AAMC_Raw_Data_for_FY22[[#This Row],[Median]])/25)*30) + AAMC_Raw_Data_for_FY22[[#This Row],[Median]]","v":170122.6},{"$f":"(((AAMC_Raw_Data_for_FY22[[#This Row],[75th]]-AAMC_Raw_Data_for_FY22[[#This Row],[Median]])/25)*35) + AAMC_Raw_Data_for_FY22[[#This Row],[Median]]","v":175145.2},{"$f":"(((AAMC_Raw_Data_for_FY22[[#This Row],[75th]]-AAMC_Raw_Data_for_FY22[[#This Row],[Median]])/25)*40) + AAMC_Raw_Data_for_FY22[[#This Row],[Median]]","v":180167.8}]
[{"$f":"AAMC_Raw_Data_for_FY22[[#This Row],[Source]]&AAMC_Raw_Data_for_FY22[[#This Row],[Type]]&AAMC_Raw_Data_for_FY22[[#This Row],[School Subset]]&AAMC_Raw_Data_for_FY22[[#This Row],[Rank]]&AAMC_Raw_Data_for_FY22[[#This Row],[Degree]]&AAMC_Raw_Data_for_FY22[[#This Row],[Department / Specialty]]&\"L\"","v":"AAMCAcademicAllProfessorPhDHematology/Oncology-Peds.L"},"Hematology/Oncology-Peds.",2,"AAMC","Academic","All","Professor","PhD","2021-2022",214655,{"$f":"(((AAMC_Raw_Data_for_FY22[[#This Row],[Median]]-AAMC_Raw_Data_for_FY22[[#This Row],[25th]])/25)*5) + AAMC_Raw_Data_for_FY22[[#This Row],[25th]]","v":222438.6},{"$f":"(((AAMC_Raw_Data_for_FY22[[#This Row],[Median]]-AAMC_Raw_Data_for_FY22[[#This Row],[25th]])/25)*10) + AAMC_Raw_Data_for_FY22[[#This Row],[25th]]","v":230222.2},{"$f":"(((AAMC_Raw_Data_for_FY22[[#This Row],[Median]]-AAMC_Raw_Data_for_FY22[[#This Row],[25th]])/25)*15) + AAMC_Raw_Data_for_FY22[[#This Row],[25th]]","v":238005.8},{"$f":"(((AAMC_Raw_Data_for_FY22[[#This Row],[Median]]-AAMC_Raw_Data_for_FY22[[#This Row],[25th]])/25)*20) + AAMC_Raw_Data_for_FY22[[#This Row],[25th]]","v":245789.4},253573,{"$f":"(((AAMC_Raw_Data_for_FY22[[#This Row],[75th]]-AAMC_Raw_Data_for_FY22[[#This Row],[Median]])/25)*5) + AAMC_Raw_Data_for_FY22[[#This Row],[Median]]","v":258558.8},{"$f":"(((AAMC_Raw_Data_for_FY22[[#This Row],[75th]]-AAMC_Raw_Data_for_FY22[[#This Row],[Median]])/25)*10) + AAMC_Raw_Data_for_FY22[[#This Row],[Median]]","v":263544.59999999998},{"$f":"(((AAMC_Raw_Data_for_FY22[[#This Row],[75th]]-AAMC_Raw_Data_for_FY22[[#This Row],[Median]])/25)*15) + AAMC_Raw_Data_for_FY22[[#This Row],[Median]]","v":268530.40000000002},{"$f":"(((AAMC_Raw_Data_for_FY22[[#This Row],[75th]]-AAMC_Raw_Data_for_FY22[[#This Row],[Median]])/25)*20) + AAMC_Raw_Data_for_FY22[[#This Row],[Median]]","v":273516.2},278502,{"$f":"(((AAMC_Raw_Data_for_FY22[[#This Row],[75th]]-AAMC_Raw_Data_for_FY22[[#This Row],[Median]])/25)*30) + AAMC_Raw_Data_for_FY22[[#This Row],[Median]]","v":283487.8},{"$f":"(((AAMC_Raw_Data_for_FY22[[#This Row],[75th]]-AAMC_Raw_Data_for_FY22[[#This Row],[Median]])/25)*35) + AAMC_Raw_Data_for_FY22[[#This Row],[Median]]","v":288473.59999999998},{"$f":"(((AAMC_Raw_Data_for_FY22[[#This Row],[75th]]-AAMC_Raw_Data_for_FY22[[#This Row],[Median]])/25)*40) + AAMC_Raw_Data_for_FY22[[#This Row],[Median]]","v":293459.40000000002}]
[{"$f":"AAMC_Raw_Data_for_FY22[[#This Row],[Source]]&AAMC_Raw_Data_for_FY22[[#This Row],[Type]]&AAMC_Raw_Data_for_FY22[[#This Row],[School Subset]]&AAMC_Raw_Data_for_FY22[[#This Row],[Rank]]&AAMC_Raw_Data_for_FY22[[#This Row],[Degree]]&AAMC_Raw_Data_for_FY22[[#This Row],[Department / Specialty]]&\"L\"","v":"AAMCAcademicAllAssistantPhDHospital Medicine-Peds.L"},"Hospital Medicine-Peds.",4,"AAMC","Academic","All","Assistant","PhD","2021-2022",null,{"$f":"(((AAMC_Raw_Data_for_FY22[[#This Row],[Median]]-AAMC_Raw_Data_for_FY22[[#This Row],[25th]])/25)*5) + AAMC_Raw_Data_for_FY22[[#This Row],[25th]]","v":0},{"$f":"(((AAMC_Raw_Data_for_FY22[[#This Row],[Median]]-AAMC_Raw_Data_for_FY22[[#This Row],[25th]])/25)*10) + AAMC_Raw_Data_for_FY22[[#This Row],[25th]]","v":0},{"$f":"(((AAMC_Raw_Data_for_FY22[[#This Row],[Median]]-AAMC_Raw_Data_for_FY22[[#This Row],[25th]])/25)*15) + AAMC_Raw_Data_for_FY22[[#This Row],[25th]]","v":0},{"$f":"(((AAMC_Raw_Data_for_FY22[[#This Row],[Median]]-AAMC_Raw_Data_for_FY22[[#This Row],[25th]])/25)*20) + AAMC_Raw_Data_for_FY22[[#This Row],[25th]]","v":0},null,{"$f":"(((AAMC_Raw_Data_for_FY22[[#This Row],[75th]]-AAMC_Raw_Data_for_FY22[[#This Row],[Median]])/25)*5) + AAMC_Raw_Data_for_FY22[[#This Row],[Median]]","v":0},{"$f":"(((AAMC_Raw_Data_for_FY22[[#This Row],[75th]]-AAMC_Raw_Data_for_FY22[[#This Row],[Median]])/25)*10) + AAMC_Raw_Data_for_FY22[[#This Row],[Median]]","v":0},{"$f":"(((AAMC_Raw_Data_for_FY22[[#This Row],[75th]]-AAMC_Raw_Data_for_FY22[[#This Row],[Median]])/25)*15) + AAMC_Raw_Data_for_FY22[[#This Row],[Median]]","v":0},{"$f":"(((AAMC_Raw_Data_for_FY22[[#This Row],[75th]]-AAMC_Raw_Data_for_FY22[[#This Row],[Median]])/25)*20) + AAMC_Raw_Data_for_FY22[[#This Row],[Median]]","v":0},null,{"$f":"(((AAMC_Raw_Data_for_FY22[[#This Row],[75th]]-AAMC_Raw_Data_for_FY22[[#This Row],[Median]])/25)*30) + AAMC_Raw_Data_for_FY22[[#This Row],[Median]]","v":0},{"$f":"(((AAMC_Raw_Data_for_FY22[[#This Row],[75th]]-AAMC_Raw_Data_for_FY22[[#This Row],[Median]])/25)*35) + AAMC_Raw_Data_for_FY22[[#This Row],[Median]]","v":0},{"$f":"(((AAMC_Raw_Data_for_FY22[[#This Row],[75th]]-AAMC_Raw_Data_for_FY22[[#This Row],[Median]])/25)*40) + AAMC_Raw_Data_for_FY22[[#This Row],[Median]]","v":0}]
[{"$f":"AAMC_Raw_Data_for_FY22[[#This Row],[Source]]&AAMC_Raw_Data_for_FY22[[#This Row],[Type]]&AAMC_Raw_Data_for_FY22[[#This Row],[School Subset]]&AAMC_Raw_Data_for_FY22[[#This Row],[Rank]]&AAMC_Raw_Data_for_FY22[[#This Row],[Degree]]&AAMC_Raw_Data_for_FY22[[#This Row],[Department / Specialty]]&\"L\"","v":"AAMCAcademicAllInstructorPhDInfectious Disease-Peds.L"},"Infectious Disease-Peds.",5,"AAMC","Academic","All","Instructor","PhD","2021-2022",77737,{"$f":"(((AAMC_Raw_Data_for_FY22[[#This Row],[Median]]-AAMC_Raw_Data_for_FY22[[#This Row],[25th]])/25)*5) + AAMC_Raw_Data_for_FY22[[#This Row],[25th]]","v":83189.600000000006},{"$f":"(((AAMC_Raw_Data_for_FY22[[#This Row],[Median]]-AAMC_Raw_Data_for_FY22[[#This Row],[25th]])/25)*10) + AAMC_Raw_Data_for_FY22[[#This Row],[25th]]","v":88642.2},{"$f":"(((AAMC_Raw_Data_for_FY22[[#This Row],[Median]]-AAMC_Raw_Data_for_FY22[[#This Row],[25th]])/25)*15) + AAMC_Raw_Data_for_FY22[[#This Row],[25th]]","v":94094.8},{"$f":"(((AAMC_Raw_Data_for_FY22[[#This Row],[Median]]-AAMC_Raw_Data_for_FY22[[#This Row],[25th]])/25)*20) + AAMC_Raw_Data_for_FY22[[#This Row],[25th]]","v":99547.4},105000,{"$f":"(((AAMC_Raw_Data_for_FY22[[#This Row],[75th]]-AAMC_Raw_Data_for_FY22[[#This Row],[Median]])/25)*5) + AAMC_Raw_Data_for_FY22[[#This Row],[Median]]","v":106333.2},{"$f":"(((AAMC_Raw_Data_for_FY22[[#This Row],[75th]]-AAMC_Raw_Data_for_FY22[[#This Row],[Median]])/25)*10) + AAMC_Raw_Data_for_FY22[[#This Row],[Median]]","v":107666.4},{"$f":"(((AAMC_Raw_Data_for_FY22[[#This Row],[75th]]-AAMC_Raw_Data_for_FY22[[#This Row],[Median]])/25)*15) + AAMC_Raw_Data_for_FY22[[#This Row],[Median]]","v":108999.6},{"$f":"(((AAMC_Raw_Data_for_FY22[[#This Row],[75th]]-AAMC_Raw_Data_for_FY22[[#This Row],[Median]])/25)*20) + AAMC_Raw_Data_for_FY22[[#This Row],[Median]]","v":110332.8},111666,{"$f":"(((AAMC_Raw_Data_for_FY22[[#This Row],[75th]]-AAMC_Raw_Data_for_FY22[[#This Row],[Median]])/25)*30) + AAMC_Raw_Data_for_FY22[[#This Row],[Median]]","v":112999.2},{"$f":"(((AAMC_Raw_Data_for_FY22[[#This Row],[75th]]-AAMC_Raw_Data_for_FY22[[#This Row],[Median]])/25)*35) + AAMC_Raw_Data_for_FY22[[#This Row],[Median]]","v":114332.4},{"$f":"(((AAMC_Raw_Data_for_FY22[[#This Row],[75th]]-AAMC_Raw_Data_for_FY22[[#This Row],[Median]])/25)*40) + AAMC_Raw_Data_for_FY22[[#This Row],[Median]]","v":115665.60000000001}]
[{"$f":"AAMC_Raw_Data_for_FY22[[#This Row],[Source]]&AAMC_Raw_Data_for_FY22[[#This Row],[Type]]&AAMC_Raw_Data_for_FY22[[#This Row],[School Subset]]&AAMC_Raw_Data_for_FY22[[#This Row],[Rank]]&AAMC_Raw_Data_for_FY22[[#This Row],[Degree]]&AAMC_Raw_Data_for_FY22[[#This Row],[Department / Specialty]]&\"L\"","v":"AAMCAcademicAllAssistantPhDInfectious Disease-Peds.L"},"Infectious Disease-Peds.",4,"AAMC","Academic","All","Assistant","PhD","2021-2022",91472,{"$f":"(((AAMC_Raw_Data_for_FY22[[#This Row],[Median]]-AAMC_Raw_Data_for_FY22[[#This Row],[25th]])/25)*5) + AAMC_Raw_Data_for_FY22[[#This Row],[25th]]","v":93844},{"$f":"(((AAMC_Raw_Data_for_FY22[[#This Row],[Median]]-AAMC_Raw_Data_for_FY22[[#This Row],[25th]])/25)*10) + AAMC_Raw_Data_for_FY22[[#This Row],[25th]]","v":96216},{"$f":"(((AAMC_Raw_Data_for_FY22[[#This Row],[Median]]-AAMC_Raw_Data_for_FY22[[#This Row],[25th]])/25)*15) + AAMC_Raw_Data_for_FY22[[#This Row],[25th]]","v":98588},{"$f":"(((AAMC_Raw_Data_for_FY22[[#This Row],[Median]]-AAMC_Raw_Data_for_FY22[[#This Row],[25th]])/25)*20) + AAMC_Raw_Data_for_FY22[[#This Row],[25th]]","v":100960},103332,{"$f":"(((AAMC_Raw_Data_for_FY22[[#This Row],[75th]]-AAMC_Raw_Data_for_FY22[[#This Row],[Median]])/25)*5) + AAMC_Raw_Data_for_FY22[[#This Row],[Median]]","v":107853.8},{"$f":"(((AAMC_Raw_Data_for_FY22[[#This Row],[75th]]-AAMC_Raw_Data_for_FY22[[#This Row],[Median]])/25)*10) + AAMC_Raw_Data_for_FY22[[#This Row],[Median]]","v":112375.6},{"$f":"(((AAMC_Raw_Data_for_FY22[[#This Row],[75th]]-AAMC_Raw_Data_for_FY22[[#This Row],[Median]])/25)*15) + AAMC_Raw_Data_for_FY22[[#This Row],[Median]]","v":116897.4},{"$f":"(((AAMC_Raw_Data_for_FY22[[#This Row],[75th]]-AAMC_Raw_Data_for_FY22[[#This Row],[Median]])/25)*20) + AAMC_Raw_Data_for_FY22[[#This Row],[Median]]","v":121419.2},125941,{"$f":"(((AAMC_Raw_Data_for_FY22[[#This Row],[75th]]-AAMC_Raw_Data_for_FY22[[#This Row],[Median]])/25)*30) + AAMC_Raw_Data_for_FY22[[#This Row],[Median]]","v":130462.8},{"$f":"(((AAMC_Raw_Data_for_FY22[[#This Row],[75th]]-AAMC_Raw_Data_for_FY22[[#This Row],[Median]])/25)*35) + AAMC_Raw_Data_for_FY22[[#This Row],[Median]]","v":134984.6},{"$f":"(((AAMC_Raw_Data_for_FY22[[#This Row],[75th]]-AAMC_Raw_Data_for_FY22[[#This Row],[Median]])/25)*40) + AAMC_Raw_Data_for_FY22[[#This Row],[Median]]","v":139506.4}]
[{"$f":"AAMC_Raw_Data_for_FY22[[#This Row],[Source]]&AAMC_Raw_Data_for_FY22[[#This Row],[Type]]&AAMC_Raw_Data_for_FY22[[#This Row],[School Subset]]&AAMC_Raw_Data_for_FY22[[#This Row],[Rank]]&AAMC_Raw_Data_for_FY22[[#This Row],[Degree]]&AAMC_Raw_Data_for_FY22[[#This Row],[Department / Specialty]]&\"L\"","v":"AAMCAcademicAllAssociatePhDInfectious Disease-Peds.L"},"Infectious Disease-Peds.",3,"AAMC","Academic","All","Associate","PhD","2021-2022",120370,{"$f":"(((AAMC_Raw_Data_for_FY22[[#This Row],[Median]]-AAMC_Raw_Data_for_FY22[[#This Row],[25th]])/25)*5) + AAMC_Raw_Data_for_FY22[[#This Row],[25th]]","v":124639.6},{"$f":"(((AAMC_Raw_Data_for_FY22[[#This Row],[Median]]-AAMC_Raw_Data_for_FY22[[#This Row],[25th]])/25)*10) + AAMC_Raw_Data_for_FY22[[#This Row],[25th]]","v":128909.2},{"$f":"(((AAMC_Raw_Data_for_FY22[[#This Row],[Median]]-AAMC_Raw_Data_for_FY22[[#This Row],[25th]])/25)*15) + AAMC_Raw_Data_for_FY22[[#This Row],[25th]]","v":133178.79999999999},{"$f":"(((AAMC_Raw_Data_for_FY22[[#This Row],[Median]]-AAMC_Raw_Data_for_FY22[[#This Row],[25th]])/25)*20) + AAMC_Raw_Data_for_FY22[[#This Row],[25th]]","v":137448.4},141718,{"$f":"(((AAMC_Raw_Data_for_FY22[[#This Row],[75th]]-AAMC_Raw_Data_for_FY22[[#This Row],[Median]])/25)*5) + AAMC_Raw_Data_for_FY22[[#This Row],[Median]]","v":145215.20000000001},{"$f":"(((AAMC_Raw_Data_for_FY22[[#This Row],[75th]]-AAMC_Raw_Data_for_FY22[[#This Row],[Median]])/25)*10) + AAMC_Raw_Data_for_FY22[[#This Row],[Median]]","v":148712.4},{"$f":"(((AAMC_Raw_Data_for_FY22[[#This Row],[75th]]-AAMC_Raw_Data_for_FY22[[#This Row],[Median]])/25)*15) + AAMC_Raw_Data_for_FY22[[#This Row],[Median]]","v":152209.60000000001},{"$f":"(((AAMC_Raw_Data_for_FY22[[#This Row],[75th]]-AAMC_Raw_Data_for_FY22[[#This Row],[Median]])/25)*20) + AAMC_Raw_Data_for_FY22[[#This Row],[Median]]","v":155706.79999999999},159204,{"$f":"(((AAMC_Raw_Data_for_FY22[[#This Row],[75th]]-AAMC_Raw_Data_for_FY22[[#This Row],[Median]])/25)*30) + AAMC_Raw_Data_for_FY22[[#This Row],[Median]]","v":162701.20000000001},{"$f":"(((AAMC_Raw_Data_for_FY22[[#This Row],[75th]]-AAMC_Raw_Data_for_FY22[[#This Row],[Median]])/25)*35) + AAMC_Raw_Data_for_FY22[[#This Row],[Median]]","v":166198.39999999999},{"$f":"(((AAMC_Raw_Data_for_FY22[[#This Row],[75th]]-AAMC_Raw_Data_for_FY22[[#This Row],[Median]])/25)*40) + AAMC_Raw_Data_for_FY22[[#This Row],[Median]]","v":169695.6}]
[{"$f":"AAMC_Raw_Data_for_FY22[[#This Row],[Source]]&AAMC_Raw_Data_for_FY22[[#This Row],[Type]]&AAMC_Raw_Data_for_FY22[[#This Row],[School Subset]]&AAMC_Raw_Data_for_FY22[[#This Row],[Rank]]&AAMC_Raw_Data_for_FY22[[#This Row],[Degree]]&AAMC_Raw_Data_for_FY22[[#This Row],[Department / Specialty]]&\"L\"","v":"AAMCAcademicAllProfessorPhDInfectious Disease-Peds.L"},"Infectious Disease-Peds.",2,"AAMC","Academic","All","Professor","PhD","2021-2022",188668,{"$f":"(((AAMC_Raw_Data_for_FY22[[#This Row],[Median]]-AAMC_Raw_Data_for_FY22[[#This Row],[25th]])/25)*5) + AAMC_Raw_Data_for_FY22[[#This Row],[25th]]","v":200936},{"$f":"(((AAMC_Raw_Data_for_FY22[[#This Row],[Median]]-AAMC_Raw_Data_for_FY22[[#This Row],[25th]])/25)*10) + AAMC_Raw_Data_for_FY22[[#This Row],[25th]]","v":213204},{"$f":"(((AAMC_Raw_Data_for_FY22[[#This Row],[Median]]-AAMC_Raw_Data_for_FY22[[#This Row],[25th]])/25)*15) + AAMC_Raw_Data_for_FY22[[#This Row],[25th]]","v":225472},{"$f":"(((AAMC_Raw_Data_for_FY22[[#This Row],[Median]]-AAMC_Raw_Data_for_FY22[[#This Row],[25th]])/25)*20) + AAMC_Raw_Data_for_FY22[[#This Row],[25th]]","v":237740},250008,{"$f":"(((AAMC_Raw_Data_for_FY22[[#This Row],[75th]]-AAMC_Raw_Data_for_FY22[[#This Row],[Median]])/25)*5) + AAMC_Raw_Data_for_FY22[[#This Row],[Median]]","v":264193.2},{"$f":"(((AAMC_Raw_Data_for_FY22[[#This Row],[75th]]-AAMC_Raw_Data_for_FY22[[#This Row],[Median]])/25)*10) + AAMC_Raw_Data_for_FY22[[#This Row],[Median]]","v":278378.40000000002},{"$f":"(((AAMC_Raw_Data_for_FY22[[#This Row],[75th]]-AAMC_Raw_Data_for_FY22[[#This Row],[Median]])/25)*15) + AAMC_Raw_Data_for_FY22[[#This Row],[Median]]","v":292563.59999999998},{"$f":"(((AAMC_Raw_Data_for_FY22[[#This Row],[75th]]-AAMC_Raw_Data_for_FY22[[#This Row],[Median]])/25)*20) + AAMC_Raw_Data_for_FY22[[#This Row],[Median]]","v":306748.79999999999},320934,{"$f":"(((AAMC_Raw_Data_for_FY22[[#This Row],[75th]]-AAMC_Raw_Data_for_FY22[[#This Row],[Median]])/25)*30) + AAMC_Raw_Data_for_FY22[[#This Row],[Median]]","v":335119.2},{"$f":"(((AAMC_Raw_Data_for_FY22[[#This Row],[75th]]-AAMC_Raw_Data_for_FY22[[#This Row],[Median]])/25)*35) + AAMC_Raw_Data_for_FY22[[#This Row],[Median]]","v":349304.4},{"$f":"(((AAMC_Raw_Data_for_FY22[[#This Row],[75th]]-AAMC_Raw_Data_for_FY22[[#This Row],[Median]])/25)*40) + AAMC_Raw_Data_for_FY22[[#This Row],[Median]]","v":363489.6}]
[{"$f":"AAMC_Raw_Data_for_FY22[[#This Row],[Source]]&AAMC_Raw_Data_for_FY22[[#This Row],[Type]]&AAMC_Raw_Data_for_FY22[[#This Row],[School Subset]]&AAMC_Raw_Data_for_FY22[[#This Row],[Rank]]&AAMC_Raw_Data_for_FY22[[#This Row],[Degree]]&AAMC_Raw_Data_for_FY22[[#This Row],[Department / Specialty]]&\"L\"","v":"AAMCAcademicAllInstructorPhDNeonatologyL"},"Neonatology",5,"AAMC","Academic","All","Instructor","PhD","2021-2022",null,{"$f":"(((AAMC_Raw_Data_for_FY22[[#This Row],[Median]]-AAMC_Raw_Data_for_FY22[[#This Row],[25th]])/25)*5) + AAMC_Raw_Data_for_FY22[[#This Row],[25th]]","v":0},{"$f":"(((AAMC_Raw_Data_for_FY22[[#This Row],[Median]]-AAMC_Raw_Data_for_FY22[[#This Row],[25th]])/25)*10) + AAMC_Raw_Data_for_FY22[[#This Row],[25th]]","v":0},{"$f":"(((AAMC_Raw_Data_for_FY22[[#This Row],[Median]]-AAMC_Raw_Data_for_FY22[[#This Row],[25th]])/25)*15) + AAMC_Raw_Data_for_FY22[[#This Row],[25th]]","v":0},{"$f":"(((AAMC_Raw_Data_for_FY22[[#This Row],[Median]]-AAMC_Raw_Data_for_FY22[[#This Row],[25th]])/25)*20) + AAMC_Raw_Data_for_FY22[[#This Row],[25th]]","v":0},null,{"$f":"(((AAMC_Raw_Data_for_FY22[[#This Row],[75th]]-AAMC_Raw_Data_for_FY22[[#This Row],[Median]])/25)*5) + AAMC_Raw_Data_for_FY22[[#This Row],[Median]]","v":0},{"$f":"(((AAMC_Raw_Data_for_FY22[[#This Row],[75th]]-AAMC_Raw_Data_for_FY22[[#This Row],[Median]])/25)*10) + AAMC_Raw_Data_for_FY22[[#This Row],[Median]]","v":0},{"$f":"(((AAMC_Raw_Data_for_FY22[[#This Row],[75th]]-AAMC_Raw_Data_for_FY22[[#This Row],[Median]])/25)*15) + AAMC_Raw_Data_for_FY22[[#This Row],[Median]]","v":0},{"$f":"(((AAMC_Raw_Data_for_FY22[[#This Row],[75th]]-AAMC_Raw_Data_for_FY22[[#This Row],[Median]])/25)*20) + AAMC_Raw_Data_for_FY22[[#This Row],[Median]]","v":0},null,{"$f":"(((AAMC_Raw_Data_for_FY22[[#This Row],[75th]]-AAMC_Raw_Data_for_FY22[[#This Row],[Median]])/25)*30) + AAMC_Raw_Data_for_FY22[[#This Row],[Median]]","v":0},{"$f":"(((AAMC_Raw_Data_for_FY22[[#This Row],[75th]]-AAMC_Raw_Data_for_FY22[[#This Row],[Median]])/25)*35) + AAMC_Raw_Data_for_FY22[[#This Row],[Median]]","v":0},{"$f":"(((AAMC_Raw_Data_for_FY22[[#This Row],[75th]]-AAMC_Raw_Data_for_FY22[[#This Row],[Median]])/25)*40) + AAMC_Raw_Data_for_FY22[[#This Row],[Median]]","v":0}]
[{"$f":"AAMC_Raw_Data_for_FY22[[#This Row],[Source]]&AAMC_Raw_Data_for_FY22[[#This Row],[Type]]&AAMC_Raw_Data_for_FY22[[#This Row],[School Subset]]&AAMC_Raw_Data_for_FY22[[#This Row],[Rank]]&AAMC_Raw_Data_for_FY22[[#This Row],[Degree]]&AAMC_Raw_Data_for_FY22[[#This Row],[Department / Specialty]]&\"L\"","v":"AAMCAcademicAllAssistantPhDNeonatologyL"},"Neonatology",4,"AAMC","Academic","All","Assistant","PhD","2021-2022",80575,{"$f":"(((AAMC_Raw_Data_for_FY22[[#This Row],[Median]]-AAMC_Raw_Data_for_FY22[[#This Row],[25th]])/25)*5) + AAMC_Raw_Data_for_FY22[[#This Row],[25th]]","v":85218.2},{"$f":"(((AAMC_Raw_Data_for_FY22[[#This Row],[Median]]-AAMC_Raw_Data_for_FY22[[#This Row],[25th]])/25)*10) + AAMC_Raw_Data_for_FY22[[#This Row],[25th]]","v":89861.4},{"$f":"(((AAMC_Raw_Data_for_FY22[[#This Row],[Median]]-AAMC_Raw_Data_for_FY22[[#This Row],[25th]])/25)*15) + AAMC_Raw_Data_for_FY22[[#This Row],[25th]]","v":94504.6},{"$f":"(((AAMC_Raw_Data_for_FY22[[#This Row],[Median]]-AAMC_Raw_Data_for_FY22[[#This Row],[25th]])/25)*20) + AAMC_Raw_Data_for_FY22[[#This Row],[25th]]","v":99147.8},103791,{"$f":"(((AAMC_Raw_Data_for_FY22[[#This Row],[75th]]-AAMC_Raw_Data_for_FY22[[#This Row],[Median]])/25)*5) + AAMC_Raw_Data_for_FY22[[#This Row],[Median]]","v":106193.8},{"$f":"(((AAMC_Raw_Data_for_FY22[[#This Row],[75th]]-AAMC_Raw_Data_for_FY22[[#This Row],[Median]])/25)*10) + AAMC_Raw_Data_for_FY22[[#This Row],[Median]]","v":108596.6},{"$f":"(((AAMC_Raw_Data_for_FY22[[#This Row],[75th]]-AAMC_Raw_Data_for_FY22[[#This Row],[Median]])/25)*15) + AAMC_Raw_Data_for_FY22[[#This Row],[Median]]","v":110999.4},{"$f":"(((AAMC_Raw_Data_for_FY22[[#This Row],[75th]]-AAMC_Raw_Data_for_FY22[[#This Row],[Median]])/25)*20) + AAMC_Raw_Data_for_FY22[[#This Row],[Median]]","v":113402.2},115805,{"$f":"(((AAMC_Raw_Data_for_FY22[[#This Row],[75th]]-AAMC_Raw_Data_for_FY22[[#This Row],[Median]])/25)*30) + AAMC_Raw_Data_for_FY22[[#This Row],[Median]]","v":118207.8},{"$f":"(((AAMC_Raw_Data_for_FY22[[#This Row],[75th]]-AAMC_Raw_Data_for_FY22[[#This Row],[Median]])/25)*35) + AAMC_Raw_Data_for_FY22[[#This Row],[Median]]","v":120610.6},{"$f":"(((AAMC_Raw_Data_for_FY22[[#This Row],[75th]]-AAMC_Raw_Data_for_FY22[[#This Row],[Median]])/25)*40) + AAMC_Raw_Data_for_FY22[[#This Row],[Median]]","v":123013.4}]
[{"$f":"AAMC_Raw_Data_for_FY22[[#This Row],[Source]]&AAMC_Raw_Data_for_FY22[[#This Row],[Type]]&AAMC_Raw_Data_for_FY22[[#This Row],[School Subset]]&AAMC_Raw_Data_for_FY22[[#This Row],[Rank]]&AAMC_Raw_Data_for_FY22[[#This Row],[Degree]]&AAMC_Raw_Data_for_FY22[[#This Row],[Department / Specialty]]&\"L\"","v":"AAMCAcademicAllAssociatePhDNeonatologyL"},"Neonatology",3,"AAMC","Academic","All","Associate","PhD","2021-2022",116788,{"$f":"(((AAMC_Raw_Data_for_FY22[[#This Row],[Median]]-AAMC_Raw_Data_for_FY22[[#This Row],[25th]])/25)*5) + AAMC_Raw_Data_for_FY22[[#This Row],[25th]]","v":120805.8},{"$f":"(((AAMC_Raw_Data_for_FY22[[#This Row],[Median]]-AAMC_Raw_Data_for_FY22[[#This Row],[25th]])/25)*10) + AAMC_Raw_Data_for_FY22[[#This Row],[25th]]","v":124823.6},{"$f":"(((AAMC_Raw_Data_for_FY22[[#This Row],[Median]]-AAMC_Raw_Data_for_FY22[[#This Row],[25th]])/25)*15) + AAMC_Raw_Data_for_FY22[[#This Row],[25th]]","v":128841.4},{"$f":"(((AAMC_Raw_Data_for_FY22[[#This Row],[Median]]-AAMC_Raw_Data_for_FY22[[#This Row],[25th]])/25)*20) + AAMC_Raw_Data_for_FY22[[#This Row],[25th]]","v":132859.20000000001},136877,{"$f":"(((AAMC_Raw_Data_for_FY22[[#This Row],[75th]]-AAMC_Raw_Data_for_FY22[[#This Row],[Median]])/25)*5) + AAMC_Raw_Data_for_FY22[[#This Row],[Median]]","v":142358.20000000001},{"$f":"(((AAMC_Raw_Data_for_FY22[[#This Row],[75th]]-AAMC_Raw_Data_for_FY22[[#This Row],[Median]])/25)*10) + AAMC_Raw_Data_for_FY22[[#This Row],[Median]]","v":147839.4},{"$f":"(((AAMC_Raw_Data_for_FY22[[#This Row],[75th]]-AAMC_Raw_Data_for_FY22[[#This Row],[Median]])/25)*15) + AAMC_Raw_Data_for_FY22[[#This Row],[Median]]","v":153320.6},{"$f":"(((AAMC_Raw_Data_for_FY22[[#This Row],[75th]]-AAMC_Raw_Data_for_FY22[[#This Row],[Median]])/25)*20) + AAMC_Raw_Data_for_FY22[[#This Row],[Median]]","v":158801.79999999999},164283,{"$f":"(((AAMC_Raw_Data_for_FY22[[#This Row],[75th]]-AAMC_Raw_Data_for_FY22[[#This Row],[Median]])/25)*30) + AAMC_Raw_Data_for_FY22[[#This Row],[Median]]","v":169764.2},{"$f":"(((AAMC_Raw_Data_for_FY22[[#This Row],[75th]]-AAMC_Raw_Data_for_FY22[[#This Row],[Median]])/25)*35) + AAMC_Raw_Data_for_FY22[[#This Row],[Median]]","v":175245.4},{"$f":"(((AAMC_Raw_Data_for_FY22[[#This Row],[75th]]-AAMC_Raw_Data_for_FY22[[#This Row],[Median]])/25)*40) + AAMC_Raw_Data_for_FY22[[#This Row],[Median]]","v":180726.6}]
[{"$f":"AAMC_Raw_Data_for_FY22[[#This Row],[Source]]&AAMC_Raw_Data_for_FY22[[#This Row],[Type]]&AAMC_Raw_Data_for_FY22[[#This Row],[School Subset]]&AAMC_Raw_Data_for_FY22[[#This Row],[Rank]]&AAMC_Raw_Data_for_FY22[[#This Row],[Degree]]&AAMC_Raw_Data_for_FY22[[#This Row],[Department / Specialty]]&\"L\"","v":"AAMCAcademicAllProfessorPhDNeonatologyL"},"Neonatology",2,"AAMC","Academic","All","Professor","PhD","2021-2022",160080,{"$f":"(((AAMC_Raw_Data_for_FY22[[#This Row],[Median]]-AAMC_Raw_Data_for_FY22[[#This Row],[25th]])/25)*5) + AAMC_Raw_Data_for_FY22[[#This Row],[25th]]","v":172747.2},{"$f":"(((AAMC_Raw_Data_for_FY22[[#This Row],[Median]]-AAMC_Raw_Data_for_FY22[[#This Row],[25th]])/25)*10) + AAMC_Raw_Data_for_FY22[[#This Row],[25th]]","v":185414.39999999999},{"$f":"(((AAMC_Raw_Data_for_FY22[[#This Row],[Median]]-AAMC_Raw_Data_for_FY22[[#This Row],[25th]])/25)*15) + AAMC_Raw_Data_for_FY22[[#This Row],[25th]]","v":198081.6},{"$f":"(((AAMC_Raw_Data_for_FY22[[#This Row],[Median]]-AAMC_Raw_Data_for_FY22[[#This Row],[25th]])/25)*20) + AAMC_Raw_Data_for_FY22[[#This Row],[25th]]","v":210748.79999999999},223416,{"$f":"(((AAMC_Raw_Data_for_FY22[[#This Row],[75th]]-AAMC_Raw_Data_for_FY22[[#This Row],[Median]])/25)*5) + AAMC_Raw_Data_for_FY22[[#This Row],[Median]]","v":229296.2},{"$f":"(((AAMC_Raw_Data_for_FY22[[#This Row],[75th]]-AAMC_Raw_Data_for_FY22[[#This Row],[Median]])/25)*10) + AAMC_Raw_Data_for_FY22[[#This Row],[Median]]","v":235176.4},{"$f":"(((AAMC_Raw_Data_for_FY22[[#This Row],[75th]]-AAMC_Raw_Data_for_FY22[[#This Row],[Median]])/25)*15) + AAMC_Raw_Data_for_FY22[[#This Row],[Median]]","v":241056.6},{"$f":"(((AAMC_Raw_Data_for_FY22[[#This Row],[75th]]-AAMC_Raw_Data_for_FY22[[#This Row],[Median]])/25)*20) + AAMC_Raw_Data_for_FY22[[#This Row],[Median]]","v":246936.8},252817,{"$f":"(((AAMC_Raw_Data_for_FY22[[#This Row],[75th]]-AAMC_Raw_Data_for_FY22[[#This Row],[Median]])/25)*30) + AAMC_Raw_Data_for_FY22[[#This Row],[Median]]","v":258697.2},{"$f":"(((AAMC_Raw_Data_for_FY22[[#This Row],[75th]]-AAMC_Raw_Data_for_FY22[[#This Row],[Median]])/25)*35) + AAMC_Raw_Data_for_FY22[[#This Row],[Median]]","v":264577.40000000002},{"$f":"(((AAMC_Raw_Data_for_FY22[[#This Row],[75th]]-AAMC_Raw_Data_for_FY22[[#This Row],[Median]])/25)*40) + AAMC_Raw_Data_for_FY22[[#This Row],[Median]]","v":270457.59999999998}]
[{"$f":"AAMC_Raw_Data_for_FY22[[#This Row],[Source]]&AAMC_Raw_Data_for_FY22[[#This Row],[Type]]&AAMC_Raw_Data_for_FY22[[#This Row],[School Subset]]&AAMC_Raw_Data_for_FY22[[#This Row],[Rank]]&AAMC_Raw_Data_for_FY22[[#This Row],[Degree]]&AAMC_Raw_Data_for_FY22[[#This Row],[Department / Specialty]]&\"L\"","v":"AAMCAcademicAllInstructorPhDNephrology-Peds.L"},"Nephrology-Peds.",5,"AAMC","Academic","All","Instructor","PhD","2021-2022",null,{"$f":"(((AAMC_Raw_Data_for_FY22[[#This Row],[Median]]-AAMC_Raw_Data_for_FY22[[#This Row],[25th]])/25)*5) + AAMC_Raw_Data_for_FY22[[#This Row],[25th]]","v":0},{"$f":"(((AAMC_Raw_Data_for_FY22[[#This Row],[Median]]-AAMC_Raw_Data_for_FY22[[#This Row],[25th]])/25)*10) + AAMC_Raw_Data_for_FY22[[#This Row],[25th]]","v":0},{"$f":"(((AAMC_Raw_Data_for_FY22[[#This Row],[Median]]-AAMC_Raw_Data_for_FY22[[#This Row],[25th]])/25)*15) + AAMC_Raw_Data_for_FY22[[#This Row],[25th]]","v":0},{"$f":"(((AAMC_Raw_Data_for_FY22[[#This Row],[Median]]-AAMC_Raw_Data_for_FY22[[#This Row],[25th]])/25)*20) + AAMC_Raw_Data_for_FY22[[#This Row],[25th]]","v":0},null,{"$f":"(((AAMC_Raw_Data_for_FY22[[#This Row],[75th]]-AAMC_Raw_Data_for_FY22[[#This Row],[Median]])/25)*5) + AAMC_Raw_Data_for_FY22[[#This Row],[Median]]","v":0},{"$f":"(((AAMC_Raw_Data_for_FY22[[#This Row],[75th]]-AAMC_Raw_Data_for_FY22[[#This Row],[Median]])/25)*10) + AAMC_Raw_Data_for_FY22[[#This Row],[Median]]","v":0},{"$f":"(((AAMC_Raw_Data_for_FY22[[#This Row],[75th]]-AAMC_Raw_Data_for_FY22[[#This Row],[Median]])/25)*15) + AAMC_Raw_Data_for_FY22[[#This Row],[Median]]","v":0},{"$f":"(((AAMC_Raw_Data_for_FY22[[#This Row],[75th]]-AAMC_Raw_Data_for_FY22[[#This Row],[Median]])/25)*20) + AAMC_Raw_Data_for_FY22[[#This Row],[Median]]","v":0},null,{"$f":"(((AAMC_Raw_Data_for_FY22[[#This Row],[75th]]-AAMC_Raw_Data_for_FY22[[#This Row],[Median]])/25)*30) + AAMC_Raw_Data_for_FY22[[#This Row],[Median]]","v":0},{"$f":"(((AAMC_Raw_Data_for_FY22[[#This Row],[75th]]-AAMC_Raw_Data_for_FY22[[#This Row],[Median]])/25)*35) + AAMC_Raw_Data_for_FY22[[#This Row],[Median]]","v":0},{"$f":"(((AAMC_Raw_Data_for_FY22[[#This Row],[75th]]-AAMC_Raw_Data_for_FY22[[#This Row],[Median]])/25)*40) + AAMC_Raw_Data_for_FY22[[#This Row],[Median]]","v":0}]
[{"$f":"AAMC_Raw_Data_for_FY22[[#This Row],[Source]]&AAMC_Raw_Data_for_FY22[[#This Row],[Type]]&AAMC_Raw_Data_for_FY22[[#This Row],[School Subset]]&AAMC_Raw_Data_for_FY22[[#This Row],[Rank]]&AAMC_Raw_Data_for_FY22[[#This Row],[Degree]]&AAMC_Raw_Data_for_FY22[[#This Row],[Department / Specialty]]&\"L\"","v":"AAMCAcademicAllAssistantPhDNephrology-Peds.L"},"Nephrology-Peds.",4,"AAMC","Academic","All","Assistant","PhD","2021-2022",80483,{"$f":"(((AAMC_Raw_Data_for_FY22[[#This Row],[Median]]-AAMC_Raw_Data_for_FY22[[#This Row],[25th]])/25)*5) + AAMC_Raw_Data_for_FY22[[#This Row],[25th]]","v":84077.8},{"$f":"(((AAMC_Raw_Data_for_FY22[[#This Row],[Median]]-AAMC_Raw_Data_for_FY22[[#This Row],[25th]])/25)*10) + AAMC_Raw_Data_for_FY22[[#This Row],[25th]]","v":87672.6},{"$f":"(((AAMC_Raw_Data_for_FY22[[#This Row],[Median]]-AAMC_Raw_Data_for_FY22[[#This Row],[25th]])/25)*15) + AAMC_Raw_Data_for_FY22[[#This Row],[25th]]","v":91267.4},{"$f":"(((AAMC_Raw_Data_for_FY22[[#This Row],[Median]]-AAMC_Raw_Data_for_FY22[[#This Row],[25th]])/25)*20) + AAMC_Raw_Data_for_FY22[[#This Row],[25th]]","v":94862.2},98457,{"$f":"(((AAMC_Raw_Data_for_FY22[[#This Row],[75th]]-AAMC_Raw_Data_for_FY22[[#This Row],[Median]])/25)*5) + AAMC_Raw_Data_for_FY22[[#This Row],[Median]]","v":103616.6},{"$f":"(((AAMC_Raw_Data_for_FY22[[#This Row],[75th]]-AAMC_Raw_Data_for_FY22[[#This Row],[Median]])/25)*10) + AAMC_Raw_Data_for_FY22[[#This Row],[Median]]","v":108776.2},{"$f":"(((AAMC_Raw_Data_for_FY22[[#This Row],[75th]]-AAMC_Raw_Data_for_FY22[[#This Row],[Median]])/25)*15) + AAMC_Raw_Data_for_FY22[[#This Row],[Median]]","v":113935.8},{"$f":"(((AAMC_Raw_Data_for_FY22[[#This Row],[75th]]-AAMC_Raw_Data_for_FY22[[#This Row],[Median]])/25)*20) + AAMC_Raw_Data_for_FY22[[#This Row],[Median]]","v":119095.4},124255,{"$f":"(((AAMC_Raw_Data_for_FY22[[#This Row],[75th]]-AAMC_Raw_Data_for_FY22[[#This Row],[Median]])/25)*30) + AAMC_Raw_Data_for_FY22[[#This Row],[Median]]","v":129414.6},{"$f":"(((AAMC_Raw_Data_for_FY22[[#This Row],[75th]]-AAMC_Raw_Data_for_FY22[[#This Row],[Median]])/25)*35) + AAMC_Raw_Data_for_FY22[[#This Row],[Median]]","v":134574.20000000001},{"$f":"(((AAMC_Raw_Data_for_FY22[[#This Row],[75th]]-AAMC_Raw_Data_for_FY22[[#This Row],[Median]])/25)*40) + AAMC_Raw_Data_for_FY22[[#This Row],[Median]]","v":139733.79999999999}]
[{"$f":"AAMC_Raw_Data_for_FY22[[#This Row],[Source]]&AAMC_Raw_Data_for_FY22[[#This Row],[Type]]&AAMC_Raw_Data_for_FY22[[#This Row],[School Subset]]&AAMC_Raw_Data_for_FY22[[#This Row],[Rank]]&AAMC_Raw_Data_for_FY22[[#This Row],[Degree]]&AAMC_Raw_Data_for_FY22[[#This Row],[Department / Specialty]]&\"L\"","v":"AAMCAcademicAllAssociatePhDNephrology-Peds.L"},"Nephrology-Peds.",3,"AAMC","Academic","All","Associate","PhD","2021-2022",null,{"$f":"(((AAMC_Raw_Data_for_FY22[[#This Row],[Median]]-AAMC_Raw_Data_for_FY22[[#This Row],[25th]])/25)*5) + AAMC_Raw_Data_for_FY22[[#This Row],[25th]]","v":0},{"$f":"(((AAMC_Raw_Data_for_FY22[[#This Row],[Median]]-AAMC_Raw_Data_for_FY22[[#This Row],[25th]])/25)*10) + AAMC_Raw_Data_for_FY22[[#This Row],[25th]]","v":0},{"$f":"(((AAMC_Raw_Data_for_FY22[[#This Row],[Median]]-AAMC_Raw_Data_for_FY22[[#This Row],[25th]])/25)*15) + AAMC_Raw_Data_for_FY22[[#This Row],[25th]]","v":0},{"$f":"(((AAMC_Raw_Data_for_FY22[[#This Row],[Median]]-AAMC_Raw_Data_for_FY22[[#This Row],[25th]])/25)*20) + AAMC_Raw_Data_for_FY22[[#This Row],[25th]]","v":0},null,{"$f":"(((AAMC_Raw_Data_for_FY22[[#This Row],[75th]]-AAMC_Raw_Data_for_FY22[[#This Row],[Median]])/25)*5) + AAMC_Raw_Data_for_FY22[[#This Row],[Median]]","v":0},{"$f":"(((AAMC_Raw_Data_for_FY22[[#This Row],[75th]]-AAMC_Raw_Data_for_FY22[[#This Row],[Median]])/25)*10) + AAMC_Raw_Data_for_FY22[[#This Row],[Median]]","v":0},{"$f":"(((AAMC_Raw_Data_for_FY22[[#This Row],[75th]]-AAMC_Raw_Data_for_FY22[[#This Row],[Median]])/25)*15) + AAMC_Raw_Data_for_FY22[[#This Row],[Median]]","v":0},{"$f":"(((AAMC_Raw_Data_for_FY22[[#This Row],[75th]]-AAMC_Raw_Data_for_FY22[[#This Row],[Median]])/25)*20) + AAMC_Raw_Data_for_FY22[[#This Row],[Median]]","v":0},null,{"$f":"(((AAMC_Raw_Data_for_FY22[[#This Row],[75th]]-AAMC_Raw_Data_for_FY22[[#This Row],[Median]])/25)*30) + AAMC_Raw_Data_for_FY22[[#This Row],[Median]]","v":0},{"$f":"(((AAMC_Raw_Data_for_FY22[[#This Row],[75th]]-AAMC_Raw_Data_for_FY22[[#This Row],[Median]])/25)*35) + AAMC_Raw_Data_for_FY22[[#This Row],[Median]]","v":0},{"$f":"(((AAMC_Raw_Data_for_FY22[[#This Row],[75th]]-AAMC_Raw_Data_for_FY22[[#This Row],[Median]])/25)*40) + AAMC_Raw_Data_for_FY22[[#This Row],[Median]]","v":0}]
[{"$f":"AAMC_Raw_Data_for_FY22[[#This Row],[Source]]&AAMC_Raw_Data_for_FY22[[#This Row],[Type]]&AAMC_Raw_Data_for_FY22[[#This Row],[School Subset]]&AAMC_Raw_Data_for_FY22[[#This Row],[Rank]]&AAMC_Raw_Data_for_FY22[[#This Row],[Degree]]&AAMC_Raw_Data_for_FY22[[#This Row],[Department / Specialty]]&\"L\"","v":"AAMCAcademicAllProfessorPhDNephrology-Peds.L"},"Nephrology-Peds.",2,"AAMC","Academic","All","Professor","PhD","2021-2022",null,{"$f":"(((AAMC_Raw_Data_for_FY22[[#This Row],[Median]]-AAMC_Raw_Data_for_FY22[[#This Row],[25th]])/25)*5) + AAMC_Raw_Data_for_FY22[[#This Row],[25th]]","v":0},{"$f":"(((AAMC_Raw_Data_for_FY22[[#This Row],[Median]]-AAMC_Raw_Data_for_FY22[[#This Row],[25th]])/25)*10) + AAMC_Raw_Data_for_FY22[[#This Row],[25th]]","v":0},{"$f":"(((AAMC_Raw_Data_for_FY22[[#This Row],[Median]]-AAMC_Raw_Data_for_FY22[[#This Row],[25th]])/25)*15) + AAMC_Raw_Data_for_FY22[[#This Row],[25th]]","v":0},{"$f":"(((AAMC_Raw_Data_for_FY22[[#This Row],[Median]]-AAMC_Raw_Data_for_FY22[[#This Row],[25th]])/25)*20) + AAMC_Raw_Data_for_FY22[[#This Row],[25th]]","v":0},null,{"$f":"(((AAMC_Raw_Data_for_FY22[[#This Row],[75th]]-AAMC_Raw_Data_for_FY22[[#This Row],[Median]])/25)*5) + AAMC_Raw_Data_for_FY22[[#This Row],[Median]]","v":0},{"$f":"(((AAMC_Raw_Data_for_FY22[[#This Row],[75th]]-AAMC_Raw_Data_for_FY22[[#This Row],[Median]])/25)*10) + AAMC_Raw_Data_for_FY22[[#This Row],[Median]]","v":0},{"$f":"(((AAMC_Raw_Data_for_FY22[[#This Row],[75th]]-AAMC_Raw_Data_for_FY22[[#This Row],[Median]])/25)*15) + AAMC_Raw_Data_for_FY22[[#This Row],[Median]]","v":0},{"$f":"(((AAMC_Raw_Data_for_FY22[[#This Row],[75th]]-AAMC_Raw_Data_for_FY22[[#This Row],[Median]])/25)*20) + AAMC_Raw_Data_for_FY22[[#This Row],[Median]]","v":0},null,{"$f":"(((AAMC_Raw_Data_for_FY22[[#This Row],[75th]]-AAMC_Raw_Data_for_FY22[[#This Row],[Median]])/25)*30) + AAMC_Raw_Data_for_FY22[[#This Row],[Median]]","v":0},{"$f":"(((AAMC_Raw_Data_for_FY22[[#This Row],[75th]]-AAMC_Raw_Data_for_FY22[[#This Row],[Median]])/25)*35) + AAMC_Raw_Data_for_FY22[[#This Row],[Median]]","v":0},{"$f":"(((AAMC_Raw_Data_for_FY22[[#This Row],[75th]]-AAMC_Raw_Data_for_FY22[[#This Row],[Median]])/25)*40) + AAMC_Raw_Data_for_FY22[[#This Row],[Median]]","v":0}]
[{"$f":"AAMC_Raw_Data_for_FY22[[#This Row],[Source]]&AAMC_Raw_Data_for_FY22[[#This Row],[Type]]&AAMC_Raw_Data_for_FY22[[#This Row],[School Subset]]&AAMC_Raw_Data_for_FY22[[#This Row],[Rank]]&AAMC_Raw_Data_for_FY22[[#This Row],[Degree]]&AAMC_Raw_Data_for_FY22[[#This Row],[Department / Specialty]]&\"L\"","v":"AAMCAcademicAllChiefPhDNephrology-Peds.L"},"Nephrology-Peds.",6,"AAMC","Academic","All","Chief","PhD","2021-2022",null,{"$f":"(((AAMC_Raw_Data_for_FY22[[#This Row],[Median]]-AAMC_Raw_Data_for_FY22[[#This Row],[25th]])/25)*5) + AAMC_Raw_Data_for_FY22[[#This Row],[25th]]","v":0},{"$f":"(((AAMC_Raw_Data_for_FY22[[#This Row],[Median]]-AAMC_Raw_Data_for_FY22[[#This Row],[25th]])/25)*10) + AAMC_Raw_Data_for_FY22[[#This Row],[25th]]","v":0},{"$f":"(((AAMC_Raw_Data_for_FY22[[#This Row],[Median]]-AAMC_Raw_Data_for_FY22[[#This Row],[25th]])/25)*15) + AAMC_Raw_Data_for_FY22[[#This Row],[25th]]","v":0},{"$f":"(((AAMC_Raw_Data_for_FY22[[#This Row],[Median]]-AAMC_Raw_Data_for_FY22[[#This Row],[25th]])/25)*20) + AAMC_Raw_Data_for_FY22[[#This Row],[25th]]","v":0},null,{"$f":"(((AAMC_Raw_Data_for_FY22[[#This Row],[75th]]-AAMC_Raw_Data_for_FY22[[#This Row],[Median]])/25)*5) + AAMC_Raw_Data_for_FY22[[#This Row],[Median]]","v":0},{"$f":"(((AAMC_Raw_Data_for_FY22[[#This Row],[75th]]-AAMC_Raw_Data_for_FY22[[#This Row],[Median]])/25)*10) + AAMC_Raw_Data_for_FY22[[#This Row],[Median]]","v":0},{"$f":"(((AAMC_Raw_Data_for_FY22[[#This Row],[75th]]-AAMC_Raw_Data_for_FY22[[#This Row],[Median]])/25)*15) + AAMC_Raw_Data_for_FY22[[#This Row],[Median]]","v":0},{"$f":"(((AAMC_Raw_Data_for_FY22[[#This Row],[75th]]-AAMC_Raw_Data_for_FY22[[#This Row],[Median]])/25)*20) + AAMC_Raw_Data_for_FY22[[#This Row],[Median]]","v":0},null,{"$f":"(((AAMC_Raw_Data_for_FY22[[#This Row],[75th]]-AAMC_Raw_Data_for_FY22[[#This Row],[Median]])/25)*30) + AAMC_Raw_Data_for_FY22[[#This Row],[Median]]","v":0},{"$f":"(((AAMC_Raw_Data_for_FY22[[#This Row],[75th]]-AAMC_Raw_Data_for_FY22[[#This Row],[Median]])/25)*35) + AAMC_Raw_Data_for_FY22[[#This Row],[Median]]","v":0},{"$f":"(((AAMC_Raw_Data_for_FY22[[#This Row],[75th]]-AAMC_Raw_Data_for_FY22[[#This Row],[Median]])/25)*40) + AAMC_Raw_Data_for_FY22[[#This Row],[Median]]","v":0}]
[{"$f":"AAMC_Raw_Data_for_FY22[[#This Row],[Source]]&AAMC_Raw_Data_for_FY22[[#This Row],[Type]]&AAMC_Raw_Data_for_FY22[[#This Row],[School Subset]]&AAMC_Raw_Data_for_FY22[[#This Row],[Rank]]&AAMC_Raw_Data_for_FY22[[#This Row],[Degree]]&AAMC_Raw_Data_for_FY22[[#This Row],[Department / Specialty]]&\"L\"","v":"AAMCAcademicAllInstructorPhDNeurology-Peds.L"},"Neurology-Peds.",5,"AAMC","Academic","All","Instructor","PhD","2021-2022",null,{"$f":"(((AAMC_Raw_Data_for_FY22[[#This Row],[Median]]-AAMC_Raw_Data_for_FY22[[#This Row],[25th]])/25)*5) + AAMC_Raw_Data_for_FY22[[#This Row],[25th]]","v":0},{"$f":"(((AAMC_Raw_Data_for_FY22[[#This Row],[Median]]-AAMC_Raw_Data_for_FY22[[#This Row],[25th]])/25)*10) + AAMC_Raw_Data_for_FY22[[#This Row],[25th]]","v":0},{"$f":"(((AAMC_Raw_Data_for_FY22[[#This Row],[Median]]-AAMC_Raw_Data_for_FY22[[#This Row],[25th]])/25)*15) + AAMC_Raw_Data_for_FY22[[#This Row],[25th]]","v":0},{"$f":"(((AAMC_Raw_Data_for_FY22[[#This Row],[Median]]-AAMC_Raw_Data_for_FY22[[#This Row],[25th]])/25)*20) + AAMC_Raw_Data_for_FY22[[#This Row],[25th]]","v":0},null,{"$f":"(((AAMC_Raw_Data_for_FY22[[#This Row],[75th]]-AAMC_Raw_Data_for_FY22[[#This Row],[Median]])/25)*5) + AAMC_Raw_Data_for_FY22[[#This Row],[Median]]","v":0},{"$f":"(((AAMC_Raw_Data_for_FY22[[#This Row],[75th]]-AAMC_Raw_Data_for_FY22[[#This Row],[Median]])/25)*10) + AAMC_Raw_Data_for_FY22[[#This Row],[Median]]","v":0},{"$f":"(((AAMC_Raw_Data_for_FY22[[#This Row],[75th]]-AAMC_Raw_Data_for_FY22[[#This Row],[Median]])/25)*15) + AAMC_Raw_Data_for_FY22[[#This Row],[Median]]","v":0},{"$f":"(((AAMC_Raw_Data_for_FY22[[#This Row],[75th]]-AAMC_Raw_Data_for_FY22[[#This Row],[Median]])/25)*20) + AAMC_Raw_Data_for_FY22[[#This Row],[Median]]","v":0},null,{"$f":"(((AAMC_Raw_Data_for_FY22[[#This Row],[75th]]-AAMC_Raw_Data_for_FY22[[#This Row],[Median]])/25)*30) + AAMC_Raw_Data_for_FY22[[#This Row],[Median]]","v":0},{"$f":"(((AAMC_Raw_Data_for_FY22[[#This Row],[75th]]-AAMC_Raw_Data_for_FY22[[#This Row],[Median]])/25)*35) + AAMC_Raw_Data_for_FY22[[#This Row],[Median]]","v":0},{"$f":"(((AAMC_Raw_Data_for_FY22[[#This Row],[75th]]-AAMC_Raw_Data_for_FY22[[#This Row],[Median]])/25)*40) + AAMC_Raw_Data_for_FY22[[#This Row],[Median]]","v":0}]
[{"$f":"AAMC_Raw_Data_for_FY22[[#This Row],[Source]]&AAMC_Raw_Data_for_FY22[[#This Row],[Type]]&AAMC_Raw_Data_for_FY22[[#This Row],[School Subset]]&AAMC_Raw_Data_for_FY22[[#This Row],[Rank]]&AAMC_Raw_Data_for_FY22[[#This Row],[Degree]]&AAMC_Raw_Data_for_FY22[[#This Row],[Department / Specialty]]&\"L\"","v":"AAMCAcademicAllAssistantPhDNeurology-Peds.L"},"Neurology-Peds.",4,"AAMC","Academic","All","Assistant","PhD","2021-2022",100446,{"$f":"(((AAMC_Raw_Data_for_FY22[[#This Row],[Median]]-AAMC_Raw_Data_for_FY22[[#This Row],[25th]])/25)*5) + AAMC_Raw_Data_for_FY22[[#This Row],[25th]]","v":103607},{"$f":"(((AAMC_Raw_Data_for_FY22[[#This Row],[Median]]-AAMC_Raw_Data_for_FY22[[#This Row],[25th]])/25)*10) + AAMC_Raw_Data_for_FY22[[#This Row],[25th]]","v":106768},{"$f":"(((AAMC_Raw_Data_for_FY22[[#This Row],[Median]]-AAMC_Raw_Data_for_FY22[[#This Row],[25th]])/25)*15) + AAMC_Raw_Data_for_FY22[[#This Row],[25th]]","v":109929},{"$f":"(((AAMC_Raw_Data_for_FY22[[#This Row],[Median]]-AAMC_Raw_Data_for_FY22[[#This Row],[25th]])/25)*20) + AAMC_Raw_Data_for_FY22[[#This Row],[25th]]","v":113090},116251,{"$f":"(((AAMC_Raw_Data_for_FY22[[#This Row],[75th]]-AAMC_Raw_Data_for_FY22[[#This Row],[Median]])/25)*5) + AAMC_Raw_Data_for_FY22[[#This Row],[Median]]","v":118877},{"$f":"(((AAMC_Raw_Data_for_FY22[[#This Row],[75th]]-AAMC_Raw_Data_for_FY22[[#This Row],[Median]])/25)*10) + AAMC_Raw_Data_for_FY22[[#This Row],[Median]]","v":121503},{"$f":"(((AAMC_Raw_Data_for_FY22[[#This Row],[75th]]-AAMC_Raw_Data_for_FY22[[#This Row],[Median]])/25)*15) + AAMC_Raw_Data_for_FY22[[#This Row],[Median]]","v":124129},{"$f":"(((AAMC_Raw_Data_for_FY22[[#This Row],[75th]]-AAMC_Raw_Data_for_FY22[[#This Row],[Median]])/25)*20) + AAMC_Raw_Data_for_FY22[[#This Row],[Median]]","v":126755},129381,{"$f":"(((AAMC_Raw_Data_for_FY22[[#This Row],[75th]]-AAMC_Raw_Data_for_FY22[[#This Row],[Median]])/25)*30) + AAMC_Raw_Data_for_FY22[[#This Row],[Median]]","v":132007},{"$f":"(((AAMC_Raw_Data_for_FY22[[#This Row],[75th]]-AAMC_Raw_Data_for_FY22[[#This Row],[Median]])/25)*35) + AAMC_Raw_Data_for_FY22[[#This Row],[Median]]","v":134633},{"$f":"(((AAMC_Raw_Data_for_FY22[[#This Row],[75th]]-AAMC_Raw_Data_for_FY22[[#This Row],[Median]])/25)*40) + AAMC_Raw_Data_for_FY22[[#This Row],[Median]]","v":137259}]
[{"$f":"AAMC_Raw_Data_for_FY22[[#This Row],[Source]]&AAMC_Raw_Data_for_FY22[[#This Row],[Type]]&AAMC_Raw_Data_for_FY22[[#This Row],[School Subset]]&AAMC_Raw_Data_for_FY22[[#This Row],[Rank]]&AAMC_Raw_Data_for_FY22[[#This Row],[Degree]]&AAMC_Raw_Data_for_FY22[[#This Row],[Department / Specialty]]&\"L\"","v":"AAMCAcademicAllAssociatePhDNeurology-Peds.L"},"Neurology-Peds.",3,"AAMC","Academic","All","Associate","PhD","2021-2022",123115,{"$f":"(((AAMC_Raw_Data_for_FY22[[#This Row],[Median]]-AAMC_Raw_Data_for_FY22[[#This Row],[25th]])/25)*5) + AAMC_Raw_Data_for_FY22[[#This Row],[25th]]","v":126805},{"$f":"(((AAMC_Raw_Data_for_FY22[[#This Row],[Median]]-AAMC_Raw_Data_for_FY22[[#This Row],[25th]])/25)*10) + AAMC_Raw_Data_for_FY22[[#This Row],[25th]]","v":130495},{"$f":"(((AAMC_Raw_Data_for_FY22[[#This Row],[Median]]-AAMC_Raw_Data_for_FY22[[#This Row],[25th]])/25)*15) + AAMC_Raw_Data_for_FY22[[#This Row],[25th]]","v":134185},{"$f":"(((AAMC_Raw_Data_for_FY22[[#This Row],[Median]]-AAMC_Raw_Data_for_FY22[[#This Row],[25th]])/25)*20) + AAMC_Raw_Data_for_FY22[[#This Row],[25th]]","v":137875},141565,{"$f":"(((AAMC_Raw_Data_for_FY22[[#This Row],[75th]]-AAMC_Raw_Data_for_FY22[[#This Row],[Median]])/25)*5) + AAMC_Raw_Data_for_FY22[[#This Row],[Median]]","v":146845.20000000001},{"$f":"(((AAMC_Raw_Data_for_FY22[[#This Row],[75th]]-AAMC_Raw_Data_for_FY22[[#This Row],[Median]])/25)*10) + AAMC_Raw_Data_for_FY22[[#This Row],[Median]]","v":152125.4},{"$f":"(((AAMC_Raw_Data_for_FY22[[#This Row],[75th]]-AAMC_Raw_Data_for_FY22[[#This Row],[Median]])/25)*15) + AAMC_Raw_Data_for_FY22[[#This Row],[Median]]","v":157405.6},{"$f":"(((AAMC_Raw_Data_for_FY22[[#This Row],[75th]]-AAMC_Raw_Data_for_FY22[[#This Row],[Median]])/25)*20) + AAMC_Raw_Data_for_FY22[[#This Row],[Median]]","v":162685.79999999999},167966,{"$f":"(((AAMC_Raw_Data_for_FY22[[#This Row],[75th]]-AAMC_Raw_Data_for_FY22[[#This Row],[Median]])/25)*30) + AAMC_Raw_Data_for_FY22[[#This Row],[Median]]","v":173246.2},{"$f":"(((AAMC_Raw_Data_for_FY22[[#This Row],[75th]]-AAMC_Raw_Data_for_FY22[[#This Row],[Median]])/25)*35) + AAMC_Raw_Data_for_FY22[[#This Row],[Median]]","v":178526.4},{"$f":"(((AAMC_Raw_Data_for_FY22[[#This Row],[75th]]-AAMC_Raw_Data_for_FY22[[#This Row],[Median]])/25)*40) + AAMC_Raw_Data_for_FY22[[#This Row],[Median]]","v":183806.6}]
[{"$f":"AAMC_Raw_Data_for_FY22[[#This Row],[Source]]&AAMC_Raw_Data_for_FY22[[#This Row],[Type]]&AAMC_Raw_Data_for_FY22[[#This Row],[School Subset]]&AAMC_Raw_Data_for_FY22[[#This Row],[Rank]]&AAMC_Raw_Data_for_FY22[[#This Row],[Degree]]&AAMC_Raw_Data_for_FY22[[#This Row],[Department / Specialty]]&\"L\"","v":"AAMCAcademicAllProfessorPhDNeurology-Peds.L"},"Neurology-Peds.",2,"AAMC","Academic","All","Professor","PhD","2021-2022",187578,{"$f":"(((AAMC_Raw_Data_for_FY22[[#This Row],[Median]]-AAMC_Raw_Data_for_FY22[[#This Row],[25th]])/25)*5) + AAMC_Raw_Data_for_FY22[[#This Row],[25th]]","v":195087.8},{"$f":"(((AAMC_Raw_Data_for_FY22[[#This Row],[Median]]-AAMC_Raw_Data_for_FY22[[#This Row],[25th]])/25)*10) + AAMC_Raw_Data_for_FY22[[#This Row],[25th]]","v":202597.6},{"$f":"(((AAMC_Raw_Data_for_FY22[[#This Row],[Median]]-AAMC_Raw_Data_for_FY22[[#This Row],[25th]])/25)*15) + AAMC_Raw_Data_for_FY22[[#This Row],[25th]]","v":210107.4},{"$f":"(((AAMC_Raw_Data_for_FY22[[#This Row],[Median]]-AAMC_Raw_Data_for_FY22[[#This Row],[25th]])/25)*20) + AAMC_Raw_Data_for_FY22[[#This Row],[25th]]","v":217617.2},225127,{"$f":"(((AAMC_Raw_Data_for_FY22[[#This Row],[75th]]-AAMC_Raw_Data_for_FY22[[#This Row],[Median]])/25)*5) + AAMC_Raw_Data_for_FY22[[#This Row],[Median]]","v":231001.2},{"$f":"(((AAMC_Raw_Data_for_FY22[[#This Row],[75th]]-AAMC_Raw_Data_for_FY22[[#This Row],[Median]])/25)*10) + AAMC_Raw_Data_for_FY22[[#This Row],[Median]]","v":236875.4},{"$f":"(((AAMC_Raw_Data_for_FY22[[#This Row],[75th]]-AAMC_Raw_Data_for_FY22[[#This Row],[Median]])/25)*15) + AAMC_Raw_Data_for_FY22[[#This Row],[Median]]","v":242749.6},{"$f":"(((AAMC_Raw_Data_for_FY22[[#This Row],[75th]]-AAMC_Raw_Data_for_FY22[[#This Row],[Median]])/25)*20) + AAMC_Raw_Data_for_FY22[[#This Row],[Median]]","v":248623.8},254498,{"$f":"(((AAMC_Raw_Data_for_FY22[[#This Row],[75th]]-AAMC_Raw_Data_for_FY22[[#This Row],[Median]])/25)*30) + AAMC_Raw_Data_for_FY22[[#This Row],[Median]]","v":260372.2},{"$f":"(((AAMC_Raw_Data_for_FY22[[#This Row],[75th]]-AAMC_Raw_Data_for_FY22[[#This Row],[Median]])/25)*35) + AAMC_Raw_Data_for_FY22[[#This Row],[Median]]","v":266246.40000000002},{"$f":"(((AAMC_Raw_Data_for_FY22[[#This Row],[75th]]-AAMC_Raw_Data_for_FY22[[#This Row],[Median]])/25)*40) + AAMC_Raw_Data_for_FY22[[#This Row],[Median]]","v":272120.59999999998}]
[{"$f":"AAMC_Raw_Data_for_FY22[[#This Row],[Source]]&AAMC_Raw_Data_for_FY22[[#This Row],[Type]]&AAMC_Raw_Data_for_FY22[[#This Row],[School Subset]]&AAMC_Raw_Data_for_FY22[[#This Row],[Rank]]&AAMC_Raw_Data_for_FY22[[#This Row],[Degree]]&AAMC_Raw_Data_for_FY22[[#This Row],[Department / Specialty]]&\"L\"","v":"AAMCAcademicAllInstructorPhDPediatric CardiologyL"},"Pediatric Cardiology",5,"AAMC","Academic","All","Instructor","PhD","2021-2022",null,{"$f":"(((AAMC_Raw_Data_for_FY22[[#This Row],[Median]]-AAMC_Raw_Data_for_FY22[[#This Row],[25th]])/25)*5) + AAMC_Raw_Data_for_FY22[[#This Row],[25th]]","v":0},{"$f":"(((AAMC_Raw_Data_for_FY22[[#This Row],[Median]]-AAMC_Raw_Data_for_FY22[[#This Row],[25th]])/25)*10) + AAMC_Raw_Data_for_FY22[[#This Row],[25th]]","v":0},{"$f":"(((AAMC_Raw_Data_for_FY22[[#This Row],[Median]]-AAMC_Raw_Data_for_FY22[[#This Row],[25th]])/25)*15) + AAMC_Raw_Data_for_FY22[[#This Row],[25th]]","v":0},{"$f":"(((AAMC_Raw_Data_for_FY22[[#This Row],[Median]]-AAMC_Raw_Data_for_FY22[[#This Row],[25th]])/25)*20) + AAMC_Raw_Data_for_FY22[[#This Row],[25th]]","v":0},null,{"$f":"(((AAMC_Raw_Data_for_FY22[[#This Row],[75th]]-AAMC_Raw_Data_for_FY22[[#This Row],[Median]])/25)*5) + AAMC_Raw_Data_for_FY22[[#This Row],[Median]]","v":0},{"$f":"(((AAMC_Raw_Data_for_FY22[[#This Row],[75th]]-AAMC_Raw_Data_for_FY22[[#This Row],[Median]])/25)*10) + AAMC_Raw_Data_for_FY22[[#This Row],[Median]]","v":0},{"$f":"(((AAMC_Raw_Data_for_FY22[[#This Row],[75th]]-AAMC_Raw_Data_for_FY22[[#This Row],[Median]])/25)*15) + AAMC_Raw_Data_for_FY22[[#This Row],[Median]]","v":0},{"$f":"(((AAMC_Raw_Data_for_FY22[[#This Row],[75th]]-AAMC_Raw_Data_for_FY22[[#This Row],[Median]])/25)*20) + AAMC_Raw_Data_for_FY22[[#This Row],[Median]]","v":0},null,{"$f":"(((AAMC_Raw_Data_for_FY22[[#This Row],[75th]]-AAMC_Raw_Data_for_FY22[[#This Row],[Median]])/25)*30) + AAMC_Raw_Data_for_FY22[[#This Row],[Median]]","v":0},{"$f":"(((AAMC_Raw_Data_for_FY22[[#This Row],[75th]]-AAMC_Raw_Data_for_FY22[[#This Row],[Median]])/25)*35) + AAMC_Raw_Data_for_FY22[[#This Row],[Median]]","v":0},{"$f":"(((AAMC_Raw_Data_for_FY22[[#This Row],[75th]]-AAMC_Raw_Data_for_FY22[[#This Row],[Median]])/25)*40) + AAMC_Raw_Data_for_FY22[[#This Row],[Median]]","v":0}]
[{"$f":"AAMC_Raw_Data_for_FY22[[#This Row],[Source]]&AAMC_Raw_Data_for_FY22[[#This Row],[Type]]&AAMC_Raw_Data_for_FY22[[#This Row],[School Subset]]&AAMC_Raw_Data_for_FY22[[#This Row],[Rank]]&AAMC_Raw_Data_for_FY22[[#This Row],[Degree]]&AAMC_Raw_Data_for_FY22[[#This Row],[Department / Specialty]]&\"L\"","v":"AAMCAcademicAllAssistantPhDPediatric CardiologyL"},"Pediatric Cardiology",4,"AAMC","Academic","All","Assistant","PhD","2021-2022",101665,{"$f":"(((AAMC_Raw_Data_for_FY22[[#This Row],[Median]]-AAMC_Raw_Data_for_FY22[[#This Row],[25th]])/25)*5) + AAMC_Raw_Data_for_FY22[[#This Row],[25th]]","v":104123.4},{"$f":"(((AAMC_Raw_Data_for_FY22[[#This Row],[Median]]-AAMC_Raw_Data_for_FY22[[#This Row],[25th]])/25)*10) + AAMC_Raw_Data_for_FY22[[#This Row],[25th]]","v":106581.8},{"$f":"(((AAMC_Raw_Data_for_FY22[[#This Row],[Median]]-AAMC_Raw_Data_for_FY22[[#This Row],[25th]])/25)*15) + AAMC_Raw_Data_for_FY22[[#This Row],[25th]]","v":109040.2},{"$f":"(((AAMC_Raw_Data_for_FY22[[#This Row],[Median]]-AAMC_Raw_Data_for_FY22[[#This Row],[25th]])/25)*20) + AAMC_Raw_Data_for_FY22[[#This Row],[25th]]","v":111498.6},113957,{"$f":"(((AAMC_Raw_Data_for_FY22[[#This Row],[75th]]-AAMC_Raw_Data_for_FY22[[#This Row],[Median]])/25)*5) + AAMC_Raw_Data_for_FY22[[#This Row],[Median]]","v":116678.8},{"$f":"(((AAMC_Raw_Data_for_FY22[[#This Row],[75th]]-AAMC_Raw_Data_for_FY22[[#This Row],[Median]])/25)*10) + AAMC_Raw_Data_for_FY22[[#This Row],[Median]]","v":119400.6},{"$f":"(((AAMC_Raw_Data_for_FY22[[#This Row],[75th]]-AAMC_Raw_Data_for_FY22[[#This Row],[Median]])/25)*15) + AAMC_Raw_Data_for_FY22[[#This Row],[Median]]","v":122122.4},{"$f":"(((AAMC_Raw_Data_for_FY22[[#This Row],[75th]]-AAMC_Raw_Data_for_FY22[[#This Row],[Median]])/25)*20) + AAMC_Raw_Data_for_FY22[[#This Row],[Median]]","v":124844.2},127566,{"$f":"(((AAMC_Raw_Data_for_FY22[[#This Row],[75th]]-AAMC_Raw_Data_for_FY22[[#This Row],[Median]])/25)*30) + AAMC_Raw_Data_for_FY22[[#This Row],[Median]]","v":130287.8},{"$f":"(((AAMC_Raw_Data_for_FY22[[#This Row],[75th]]-AAMC_Raw_Data_for_FY22[[#This Row],[Median]])/25)*35) + AAMC_Raw_Data_for_FY22[[#This Row],[Median]]","v":133009.60000000001},{"$f":"(((AAMC_Raw_Data_for_FY22[[#This Row],[75th]]-AAMC_Raw_Data_for_FY22[[#This Row],[Median]])/25)*40) + AAMC_Raw_Data_for_FY22[[#This Row],[Median]]","v":135731.4}]
[{"$f":"AAMC_Raw_Data_for_FY22[[#This Row],[Source]]&AAMC_Raw_Data_for_FY22[[#This Row],[Type]]&AAMC_Raw_Data_for_FY22[[#This Row],[School Subset]]&AAMC_Raw_Data_for_FY22[[#This Row],[Rank]]&AAMC_Raw_Data_for_FY22[[#This Row],[Degree]]&AAMC_Raw_Data_for_FY22[[#This Row],[Department / Specialty]]&\"L\"","v":"AAMCAcademicAllAssociatePhDPediatric CardiologyL"},"Pediatric Cardiology",3,"AAMC","Academic","All","Associate","PhD","2021-2022",137842,{"$f":"(((AAMC_Raw_Data_for_FY22[[#This Row],[Median]]-AAMC_Raw_Data_for_FY22[[#This Row],[25th]])/25)*5) + AAMC_Raw_Data_for_FY22[[#This Row],[25th]]","v":141176.6},{"$f":"(((AAMC_Raw_Data_for_FY22[[#This Row],[Median]]-AAMC_Raw_Data_for_FY22[[#This Row],[25th]])/25)*10) + AAMC_Raw_Data_for_FY22[[#This Row],[25th]]","v":144511.20000000001},{"$f":"(((AAMC_Raw_Data_for_FY22[[#This Row],[Median]]-AAMC_Raw_Data_for_FY22[[#This Row],[25th]])/25)*15) + AAMC_Raw_Data_for_FY22[[#This Row],[25th]]","v":147845.79999999999},{"$f":"(((AAMC_Raw_Data_for_FY22[[#This Row],[Median]]-AAMC_Raw_Data_for_FY22[[#This Row],[25th]])/25)*20) + AAMC_Raw_Data_for_FY22[[#This Row],[25th]]","v":151180.4},154515,{"$f":"(((AAMC_Raw_Data_for_FY22[[#This Row],[75th]]-AAMC_Raw_Data_for_FY22[[#This Row],[Median]])/25)*5) + AAMC_Raw_Data_for_FY22[[#This Row],[Median]]","v":164681.20000000001},{"$f":"(((AAMC_Raw_Data_for_FY22[[#This Row],[75th]]-AAMC_Raw_Data_for_FY22[[#This Row],[Median]])/25)*10) + AAMC_Raw_Data_for_FY22[[#This Row],[Median]]","v":174847.4},{"$f":"(((AAMC_Raw_Data_for_FY22[[#This Row],[75th]]-AAMC_Raw_Data_for_FY22[[#This Row],[Median]])/25)*15) + AAMC_Raw_Data_for_FY22[[#This Row],[Median]]","v":185013.6},{"$f":"(((AAMC_Raw_Data_for_FY22[[#This Row],[75th]]-AAMC_Raw_Data_for_FY22[[#This Row],[Median]])/25)*20) + AAMC_Raw_Data_for_FY22[[#This Row],[Median]]","v":195179.8},205346,{"$f":"(((AAMC_Raw_Data_for_FY22[[#This Row],[75th]]-AAMC_Raw_Data_for_FY22[[#This Row],[Median]])/25)*30) + AAMC_Raw_Data_for_FY22[[#This Row],[Median]]","v":215512.2},{"$f":"(((AAMC_Raw_Data_for_FY22[[#This Row],[75th]]-AAMC_Raw_Data_for_FY22[[#This Row],[Median]])/25)*35) + AAMC_Raw_Data_for_FY22[[#This Row],[Median]]","v":225678.4},{"$f":"(((AAMC_Raw_Data_for_FY22[[#This Row],[75th]]-AAMC_Raw_Data_for_FY22[[#This Row],[Median]])/25)*40) + AAMC_Raw_Data_for_FY22[[#This Row],[Median]]","v":235844.6}]
[{"$f":"AAMC_Raw_Data_for_FY22[[#This Row],[Source]]&AAMC_Raw_Data_for_FY22[[#This Row],[Type]]&AAMC_Raw_Data_for_FY22[[#This Row],[School Subset]]&AAMC_Raw_Data_for_FY22[[#This Row],[Rank]]&AAMC_Raw_Data_for_FY22[[#This Row],[Degree]]&AAMC_Raw_Data_for_FY22[[#This Row],[Department / Specialty]]&\"L\"","v":"AAMCAcademicAllProfessorPhDPediatric CardiologyL"},"Pediatric Cardiology",2,"AAMC","Academic","All","Professor","PhD","2021-2022",165776,{"$f":"(((AAMC_Raw_Data_for_FY22[[#This Row],[Median]]-AAMC_Raw_Data_for_FY22[[#This Row],[25th]])/25)*5) + AAMC_Raw_Data_for_FY22[[#This Row],[25th]]","v":174690},{"$f":"(((AAMC_Raw_Data_for_FY22[[#This Row],[Median]]-AAMC_Raw_Data_for_FY22[[#This Row],[25th]])/25)*10) + AAMC_Raw_Data_for_FY22[[#This Row],[25th]]","v":183604},{"$f":"(((AAMC_Raw_Data_for_FY22[[#This Row],[Median]]-AAMC_Raw_Data_for_FY22[[#This Row],[25th]])/25)*15) + AAMC_Raw_Data_for_FY22[[#This Row],[25th]]","v":192518},{"$f":"(((AAMC_Raw_Data_for_FY22[[#This Row],[Median]]-AAMC_Raw_Data_for_FY22[[#This Row],[25th]])/25)*20) + AAMC_Raw_Data_for_FY22[[#This Row],[25th]]","v":201432},210346,{"$f":"(((AAMC_Raw_Data_for_FY22[[#This Row],[75th]]-AAMC_Raw_Data_for_FY22[[#This Row],[Median]])/25)*5) + AAMC_Raw_Data_for_FY22[[#This Row],[Median]]","v":216546.8},{"$f":"(((AAMC_Raw_Data_for_FY22[[#This Row],[75th]]-AAMC_Raw_Data_for_FY22[[#This Row],[Median]])/25)*10) + AAMC_Raw_Data_for_FY22[[#This Row],[Median]]","v":222747.6},{"$f":"(((AAMC_Raw_Data_for_FY22[[#This Row],[75th]]-AAMC_Raw_Data_for_FY22[[#This Row],[Median]])/25)*15) + AAMC_Raw_Data_for_FY22[[#This Row],[Median]]","v":228948.4},{"$f":"(((AAMC_Raw_Data_for_FY22[[#This Row],[75th]]-AAMC_Raw_Data_for_FY22[[#This Row],[Median]])/25)*20) + AAMC_Raw_Data_for_FY22[[#This Row],[Median]]","v":235149.2},241350,{"$f":"(((AAMC_Raw_Data_for_FY22[[#This Row],[75th]]-AAMC_Raw_Data_for_FY22[[#This Row],[Median]])/25)*30) + AAMC_Raw_Data_for_FY22[[#This Row],[Median]]","v":247550.8},{"$f":"(((AAMC_Raw_Data_for_FY22[[#This Row],[75th]]-AAMC_Raw_Data_for_FY22[[#This Row],[Median]])/25)*35) + AAMC_Raw_Data_for_FY22[[#This Row],[Median]]","v":253751.6},{"$f":"(((AAMC_Raw_Data_for_FY22[[#This Row],[75th]]-AAMC_Raw_Data_for_FY22[[#This Row],[Median]])/25)*40) + AAMC_Raw_Data_for_FY22[[#This Row],[Median]]","v":259952.4}]
[{"$f":"AAMC_Raw_Data_for_FY22[[#This Row],[Source]]&AAMC_Raw_Data_for_FY22[[#This Row],[Type]]&AAMC_Raw_Data_for_FY22[[#This Row],[School Subset]]&AAMC_Raw_Data_for_FY22[[#This Row],[Rank]]&AAMC_Raw_Data_for_FY22[[#This Row],[Degree]]&AAMC_Raw_Data_for_FY22[[#This Row],[Department / Specialty]]&\"L\"","v":"AAMCAcademicAllInstructorPhDPsychology-Peds.L"},"Psychology-Peds.",5,"AAMC","Academic","All","Instructor","PhD","2021-2022",null,{"$f":"(((AAMC_Raw_Data_for_FY22[[#This Row],[Median]]-AAMC_Raw_Data_for_FY22[[#This Row],[25th]])/25)*5) + AAMC_Raw_Data_for_FY22[[#This Row],[25th]]","v":0},{"$f":"(((AAMC_Raw_Data_for_FY22[[#This Row],[Median]]-AAMC_Raw_Data_for_FY22[[#This Row],[25th]])/25)*10) + AAMC_Raw_Data_for_FY22[[#This Row],[25th]]","v":0},{"$f":"(((AAMC_Raw_Data_for_FY22[[#This Row],[Median]]-AAMC_Raw_Data_for_FY22[[#This Row],[25th]])/25)*15) + AAMC_Raw_Data_for_FY22[[#This Row],[25th]]","v":0},{"$f":"(((AAMC_Raw_Data_for_FY22[[#This Row],[Median]]-AAMC_Raw_Data_for_FY22[[#This Row],[25th]])/25)*20) + AAMC_Raw_Data_for_FY22[[#This Row],[25th]]","v":0},null,{"$f":"(((AAMC_Raw_Data_for_FY22[[#This Row],[75th]]-AAMC_Raw_Data_for_FY22[[#This Row],[Median]])/25)*5) + AAMC_Raw_Data_for_FY22[[#This Row],[Median]]","v":0},{"$f":"(((AAMC_Raw_Data_for_FY22[[#This Row],[75th]]-AAMC_Raw_Data_for_FY22[[#This Row],[Median]])/25)*10) + AAMC_Raw_Data_for_FY22[[#This Row],[Median]]","v":0},{"$f":"(((AAMC_Raw_Data_for_FY22[[#This Row],[75th]]-AAMC_Raw_Data_for_FY22[[#This Row],[Median]])/25)*15) + AAMC_Raw_Data_for_FY22[[#This Row],[Median]]","v":0},{"$f":"(((AAMC_Raw_Data_for_FY22[[#This Row],[75th]]-AAMC_Raw_Data_for_FY22[[#This Row],[Median]])/25)*20) + AAMC_Raw_Data_for_FY22[[#This Row],[Median]]","v":0},null,{"$f":"(((AAMC_Raw_Data_for_FY22[[#This Row],[75th]]-AAMC_Raw_Data_for_FY22[[#This Row],[Median]])/25)*30) + AAMC_Raw_Data_for_FY22[[#This Row],[Median]]","v":0},{"$f":"(((AAMC_Raw_Data_for_FY22[[#This Row],[75th]]-AAMC_Raw_Data_for_FY22[[#This Row],[Median]])/25)*35) + AAMC_Raw_Data_for_FY22[[#This Row],[Median]]","v":0},{"$f":"(((AAMC_Raw_Data_for_FY22[[#This Row],[75th]]-AAMC_Raw_Data_for_FY22[[#This Row],[Median]])/25)*40) + AAMC_Raw_Data_for_FY22[[#This Row],[Median]]","v":0}]
[{"$f":"AAMC_Raw_Data_for_FY22[[#This Row],[Source]]&AAMC_Raw_Data_for_FY22[[#This Row],[Type]]&AAMC_Raw_Data_for_FY22[[#This Row],[School Subset]]&AAMC_Raw_Data_for_FY22[[#This Row],[Rank]]&AAMC_Raw_Data_for_FY22[[#This Row],[Degree]]&AAMC_Raw_Data_for_FY22[[#This Row],[Department / Specialty]]&\"L\"","v":"AAMCAcademicAllAssistantPhDPsychology-Peds.L"},"Psychology-Peds.",4,"AAMC","Academic","All","Assistant","PhD","2021-2022",100933,{"$f":"(((AAMC_Raw_Data_for_FY22[[#This Row],[Median]]-AAMC_Raw_Data_for_FY22[[#This Row],[25th]])/25)*5) + AAMC_Raw_Data_for_FY22[[#This Row],[25th]]","v":103141.8},{"$f":"(((AAMC_Raw_Data_for_FY22[[#This Row],[Median]]-AAMC_Raw_Data_for_FY22[[#This Row],[25th]])/25)*10) + AAMC_Raw_Data_for_FY22[[#This Row],[25th]]","v":105350.6},{"$f":"(((AAMC_Raw_Data_for_FY22[[#This Row],[Median]]-AAMC_Raw_Data_for_FY22[[#This Row],[25th]])/25)*15) + AAMC_Raw_Data_for_FY22[[#This Row],[25th]]","v":107559.4},{"$f":"(((AAMC_Raw_Data_for_FY22[[#This Row],[Median]]-AAMC_Raw_Data_for_FY22[[#This Row],[25th]])/25)*20) + AAMC_Raw_Data_for_FY22[[#This Row],[25th]]","v":109768.2},111977,{"$f":"(((AAMC_Raw_Data_for_FY22[[#This Row],[75th]]-AAMC_Raw_Data_for_FY22[[#This Row],[Median]])/25)*5) + AAMC_Raw_Data_for_FY22[[#This Row],[Median]]","v":113964.4},{"$f":"(((AAMC_Raw_Data_for_FY22[[#This Row],[75th]]-AAMC_Raw_Data_for_FY22[[#This Row],[Median]])/25)*10) + AAMC_Raw_Data_for_FY22[[#This Row],[Median]]","v":115951.8},{"$f":"(((AAMC_Raw_Data_for_FY22[[#This Row],[75th]]-AAMC_Raw_Data_for_FY22[[#This Row],[Median]])/25)*15) + AAMC_Raw_Data_for_FY22[[#This Row],[Median]]","v":117939.2},{"$f":"(((AAMC_Raw_Data_for_FY22[[#This Row],[75th]]-AAMC_Raw_Data_for_FY22[[#This Row],[Median]])/25)*20) + AAMC_Raw_Data_for_FY22[[#This Row],[Median]]","v":119926.6},121914,{"$f":"(((AAMC_Raw_Data_for_FY22[[#This Row],[75th]]-AAMC_Raw_Data_for_FY22[[#This Row],[Median]])/25)*30) + AAMC_Raw_Data_for_FY22[[#This Row],[Median]]","v":123901.4},{"$f":"(((AAMC_Raw_Data_for_FY22[[#This Row],[75th]]-AAMC_Raw_Data_for_FY22[[#This Row],[Median]])/25)*35) + AAMC_Raw_Data_for_FY22[[#This Row],[Median]]","v":125888.8},{"$f":"(((AAMC_Raw_Data_for_FY22[[#This Row],[75th]]-AAMC_Raw_Data_for_FY22[[#This Row],[Median]])/25)*40) + AAMC_Raw_Data_for_FY22[[#This Row],[Median]]","v":127876.2}]
[{"$f":"AAMC_Raw_Data_for_FY22[[#This Row],[Source]]&AAMC_Raw_Data_for_FY22[[#This Row],[Type]]&AAMC_Raw_Data_for_FY22[[#This Row],[School Subset]]&AAMC_Raw_Data_for_FY22[[#This Row],[Rank]]&AAMC_Raw_Data_for_FY22[[#This Row],[Degree]]&AAMC_Raw_Data_for_FY22[[#This Row],[Department / Specialty]]&\"L\"","v":"AAMCAcademicAllAssociatePhDPsychology-Peds.L"},"Psychology-Peds.",3,"AAMC","Academic","All","Associate","PhD","2021-2022",121737,{"$f":"(((AAMC_Raw_Data_for_FY22[[#This Row],[Median]]-AAMC_Raw_Data_for_FY22[[#This Row],[25th]])/25)*5) + AAMC_Raw_Data_for_FY22[[#This Row],[25th]]","v":124736.4},{"$f":"(((AAMC_Raw_Data_for_FY22[[#This Row],[Median]]-AAMC_Raw_Data_for_FY22[[#This Row],[25th]])/25)*10) + AAMC_Raw_Data_for_FY22[[#This Row],[25th]]","v":127735.8},{"$f":"(((AAMC_Raw_Data_for_FY22[[#This Row],[Median]]-AAMC_Raw_Data_for_FY22[[#This Row],[25th]])/25)*15) + AAMC_Raw_Data_for_FY22[[#This Row],[25th]]","v":130735.2},{"$f":"(((AAMC_Raw_Data_for_FY22[[#This Row],[Median]]-AAMC_Raw_Data_for_FY22[[#This Row],[25th]])/25)*20) + AAMC_Raw_Data_for_FY22[[#This Row],[25th]]","v":133734.6},136734,{"$f":"(((AAMC_Raw_Data_for_FY22[[#This Row],[75th]]-AAMC_Raw_Data_for_FY22[[#This Row],[Median]])/25)*5) + AAMC_Raw_Data_for_FY22[[#This Row],[Median]]","v":139671},{"$f":"(((AAMC_Raw_Data_for_FY22[[#This Row],[75th]]-AAMC_Raw_Data_for_FY22[[#This Row],[Median]])/25)*10) + AAMC_Raw_Data_for_FY22[[#This Row],[Median]]","v":142608},{"$f":"(((AAMC_Raw_Data_for_FY22[[#This Row],[75th]]-AAMC_Raw_Data_for_FY22[[#This Row],[Median]])/25)*15) + AAMC_Raw_Data_for_FY22[[#This Row],[Median]]","v":145545},{"$f":"(((AAMC_Raw_Data_for_FY22[[#This Row],[75th]]-AAMC_Raw_Data_for_FY22[[#This Row],[Median]])/25)*20) + AAMC_Raw_Data_for_FY22[[#This Row],[Median]]","v":148482},151419,{"$f":"(((AAMC_Raw_Data_for_FY22[[#This Row],[75th]]-AAMC_Raw_Data_for_FY22[[#This Row],[Median]])/25)*30) + AAMC_Raw_Data_for_FY22[[#This Row],[Median]]","v":154356},{"$f":"(((AAMC_Raw_Data_for_FY22[[#This Row],[75th]]-AAMC_Raw_Data_for_FY22[[#This Row],[Median]])/25)*35) + AAMC_Raw_Data_for_FY22[[#This Row],[Median]]","v":157293},{"$f":"(((AAMC_Raw_Data_for_FY22[[#This Row],[75th]]-AAMC_Raw_Data_for_FY22[[#This Row],[Median]])/25)*40) + AAMC_Raw_Data_for_FY22[[#This Row],[Median]]","v":160230}]
[{"$f":"AAMC_Raw_Data_for_FY22[[#This Row],[Source]]&AAMC_Raw_Data_for_FY22[[#This Row],[Type]]&AAMC_Raw_Data_for_FY22[[#This Row],[School Subset]]&AAMC_Raw_Data_for_FY22[[#This Row],[Rank]]&AAMC_Raw_Data_for_FY22[[#This Row],[Degree]]&AAMC_Raw_Data_for_FY22[[#This Row],[Department / Specialty]]&\"L\"","v":"AAMCAcademicAllProfessorPhDPsychology-Peds.L"},"Psychology-Peds.",2,"AAMC","Academic","All","Professor","PhD","2021-2022",169442,{"$f":"(((AAMC_Raw_Data_for_FY22[[#This Row],[Median]]-AAMC_Raw_Data_for_FY22[[#This Row],[25th]])/25)*5) + AAMC_Raw_Data_for_FY22[[#This Row],[25th]]","v":175457.2},{"$f":"(((AAMC_Raw_Data_for_FY22[[#This Row],[Median]]-AAMC_Raw_Data_for_FY22[[#This Row],[25th]])/25)*10) + AAMC_Raw_Data_for_FY22[[#This Row],[25th]]","v":181472.4},{"$f":"(((AAMC_Raw_Data_for_FY22[[#This Row],[Median]]-AAMC_Raw_Data_for_FY22[[#This Row],[25th]])/25)*15) + AAMC_Raw_Data_for_FY22[[#This Row],[25th]]","v":187487.6},{"$f":"(((AAMC_Raw_Data_for_FY22[[#This Row],[Median]]-AAMC_Raw_Data_for_FY22[[#This Row],[25th]])/25)*20) + AAMC_Raw_Data_for_FY22[[#This Row],[25th]]","v":193502.8},199518,{"$f":"(((AAMC_Raw_Data_for_FY22[[#This Row],[75th]]-AAMC_Raw_Data_for_FY22[[#This Row],[Median]])/25)*5) + AAMC_Raw_Data_for_FY22[[#This Row],[Median]]","v":207848.6},{"$f":"(((AAMC_Raw_Data_for_FY22[[#This Row],[75th]]-AAMC_Raw_Data_for_FY22[[#This Row],[Median]])/25)*10) + AAMC_Raw_Data_for_FY22[[#This Row],[Median]]","v":216179.20000000001},{"$f":"(((AAMC_Raw_Data_for_FY22[[#This Row],[75th]]-AAMC_Raw_Data_for_FY22[[#This Row],[Median]])/25)*15) + AAMC_Raw_Data_for_FY22[[#This Row],[Median]]","v":224509.8},{"$f":"(((AAMC_Raw_Data_for_FY22[[#This Row],[75th]]-AAMC_Raw_Data_for_FY22[[#This Row],[Median]])/25)*20) + AAMC_Raw_Data_for_FY22[[#This Row],[Median]]","v":232840.4},241171,{"$f":"(((AAMC_Raw_Data_for_FY22[[#This Row],[75th]]-AAMC_Raw_Data_for_FY22[[#This Row],[Median]])/25)*30) + AAMC_Raw_Data_for_FY22[[#This Row],[Median]]","v":249501.6},{"$f":"(((AAMC_Raw_Data_for_FY22[[#This Row],[75th]]-AAMC_Raw_Data_for_FY22[[#This Row],[Median]])/25)*35) + AAMC_Raw_Data_for_FY22[[#This Row],[Median]]","v":257832.2},{"$f":"(((AAMC_Raw_Data_for_FY22[[#This Row],[75th]]-AAMC_Raw_Data_for_FY22[[#This Row],[Median]])/25)*40) + AAMC_Raw_Data_for_FY22[[#This Row],[Median]]","v":266162.8}]
[{"$f":"AAMC_Raw_Data_for_FY22[[#This Row],[Source]]&AAMC_Raw_Data_for_FY22[[#This Row],[Type]]&AAMC_Raw_Data_for_FY22[[#This Row],[School Subset]]&AAMC_Raw_Data_for_FY22[[#This Row],[Rank]]&AAMC_Raw_Data_for_FY22[[#This Row],[Degree]]&AAMC_Raw_Data_for_FY22[[#This Row],[Department / Specialty]]&\"L\"","v":"AAMCAcademicAllChiefPhDPsychology-Peds.L"},"Psychology-Peds.",6,"AAMC","Academic","All","Chief","PhD","2021-2022",null,{"$f":"(((AAMC_Raw_Data_for_FY22[[#This Row],[Median]]-AAMC_Raw_Data_for_FY22[[#This Row],[25th]])/25)*5) + AAMC_Raw_Data_for_FY22[[#This Row],[25th]]","v":0},{"$f":"(((AAMC_Raw_Data_for_FY22[[#This Row],[Median]]-AAMC_Raw_Data_for_FY22[[#This Row],[25th]])/25)*10) + AAMC_Raw_Data_for_FY22[[#This Row],[25th]]","v":0},{"$f":"(((AAMC_Raw_Data_for_FY22[[#This Row],[Median]]-AAMC_Raw_Data_for_FY22[[#This Row],[25th]])/25)*15) + AAMC_Raw_Data_for_FY22[[#This Row],[25th]]","v":0},{"$f":"(((AAMC_Raw_Data_for_FY22[[#This Row],[Median]]-AAMC_Raw_Data_for_FY22[[#This Row],[25th]])/25)*20) + AAMC_Raw_Data_for_FY22[[#This Row],[25th]]","v":0},null,{"$f":"(((AAMC_Raw_Data_for_FY22[[#This Row],[75th]]-AAMC_Raw_Data_for_FY22[[#This Row],[Median]])/25)*5) + AAMC_Raw_Data_for_FY22[[#This Row],[Median]]","v":0},{"$f":"(((AAMC_Raw_Data_for_FY22[[#This Row],[75th]]-AAMC_Raw_Data_for_FY22[[#This Row],[Median]])/25)*10) + AAMC_Raw_Data_for_FY22[[#This Row],[Median]]","v":0},{"$f":"(((AAMC_Raw_Data_for_FY22[[#This Row],[75th]]-AAMC_Raw_Data_for_FY22[[#This Row],[Median]])/25)*15) + AAMC_Raw_Data_for_FY22[[#This Row],[Median]]","v":0},{"$f":"(((AAMC_Raw_Data_for_FY22[[#This Row],[75th]]-AAMC_Raw_Data_for_FY22[[#This Row],[Median]])/25)*20) + AAMC_Raw_Data_for_FY22[[#This Row],[Median]]","v":0},null,{"$f":"(((AAMC_Raw_Data_for_FY22[[#This Row],[75th]]-AAMC_Raw_Data_for_FY22[[#This Row],[Median]])/25)*30) + AAMC_Raw_Data_for_FY22[[#This Row],[Median]]","v":0},{"$f":"(((AAMC_Raw_Data_for_FY22[[#This Row],[75th]]-AAMC_Raw_Data_for_FY22[[#This Row],[Median]])/25)*35) + AAMC_Raw_Data_for_FY22[[#This Row],[Median]]","v":0},{"$f":"(((AAMC_Raw_Data_for_FY22[[#This Row],[75th]]-AAMC_Raw_Data_for_FY22[[#This Row],[Median]])/25)*40) + AAMC_Raw_Data_for_FY22[[#This Row],[Median]]","v":0}]
[{"$f":"AAMC_Raw_Data_for_FY22[[#This Row],[Source]]&AAMC_Raw_Data_for_FY22[[#This Row],[Type]]&AAMC_Raw_Data_for_FY22[[#This Row],[School Subset]]&AAMC_Raw_Data_for_FY22[[#This Row],[Rank]]&AAMC_Raw_Data_for_FY22[[#This Row],[Degree]]&AAMC_Raw_Data_for_FY22[[#This Row],[Department / Specialty]]&\"L\"","v":"AAMCAcademicAllInstructorPhDPulmonary-Peds.L"},"Pulmonary-Peds.",5,"AAMC","Academic","All","Instructor","PhD","2021-2022",null,{"$f":"(((AAMC_Raw_Data_for_FY22[[#This Row],[Median]]-AAMC_Raw_Data_for_FY22[[#This Row],[25th]])/25)*5) + AAMC_Raw_Data_for_FY22[[#This Row],[25th]]","v":0},{"$f":"(((AAMC_Raw_Data_for_FY22[[#This Row],[Median]]-AAMC_Raw_Data_for_FY22[[#This Row],[25th]])/25)*10) + AAMC_Raw_Data_for_FY22[[#This Row],[25th]]","v":0},{"$f":"(((AAMC_Raw_Data_for_FY22[[#This Row],[Median]]-AAMC_Raw_Data_for_FY22[[#This Row],[25th]])/25)*15) + AAMC_Raw_Data_for_FY22[[#This Row],[25th]]","v":0},{"$f":"(((AAMC_Raw_Data_for_FY22[[#This Row],[Median]]-AAMC_Raw_Data_for_FY22[[#This Row],[25th]])/25)*20) + AAMC_Raw_Data_for_FY22[[#This Row],[25th]]","v":0},null,{"$f":"(((AAMC_Raw_Data_for_FY22[[#This Row],[75th]]-AAMC_Raw_Data_for_FY22[[#This Row],[Median]])/25)*5) + AAMC_Raw_Data_for_FY22[[#This Row],[Median]]","v":0},{"$f":"(((AAMC_Raw_Data_for_FY22[[#This Row],[75th]]-AAMC_Raw_Data_for_FY22[[#This Row],[Median]])/25)*10) + AAMC_Raw_Data_for_FY22[[#This Row],[Median]]","v":0},{"$f":"(((AAMC_Raw_Data_for_FY22[[#This Row],[75th]]-AAMC_Raw_Data_for_FY22[[#This Row],[Median]])/25)*15) + AAMC_Raw_Data_for_FY22[[#This Row],[Median]]","v":0},{"$f":"(((AAMC_Raw_Data_for_FY22[[#This Row],[75th]]-AAMC_Raw_Data_for_FY22[[#This Row],[Median]])/25)*20) + AAMC_Raw_Data_for_FY22[[#This Row],[Median]]","v":0},null,{"$f":"(((AAMC_Raw_Data_for_FY22[[#This Row],[75th]]-AAMC_Raw_Data_for_FY22[[#This Row],[Median]])/25)*30) + AAMC_Raw_Data_for_FY22[[#This Row],[Median]]","v":0},{"$f":"(((AAMC_Raw_Data_for_FY22[[#This Row],[75th]]-AAMC_Raw_Data_for_FY22[[#This Row],[Median]])/25)*35) + AAMC_Raw_Data_for_FY22[[#This Row],[Median]]","v":0},{"$f":"(((AAMC_Raw_Data_for_FY22[[#This Row],[75th]]-AAMC_Raw_Data_for_FY22[[#This Row],[Median]])/25)*40) + AAMC_Raw_Data_for_FY22[[#This Row],[Median]]","v":0}]
[{"$f":"AAMC_Raw_Data_for_FY22[[#This Row],[Source]]&AAMC_Raw_Data_for_FY22[[#This Row],[Type]]&AAMC_Raw_Data_for_FY22[[#This Row],[School Subset]]&AAMC_Raw_Data_for_FY22[[#This Row],[Rank]]&AAMC_Raw_Data_for_FY22[[#This Row],[Degree]]&AAMC_Raw_Data_for_FY22[[#This Row],[Department / Specialty]]&\"L\"","v":"AAMCAcademicAllAssistantPhDPulmonary-Peds.L"},"Pulmonary-Peds.",4,"AAMC","Academic","All","Assistant","PhD","2021-2022",78288,{"$f":"(((AAMC_Raw_Data_for_FY22[[#This Row],[Median]]-AAMC_Raw_Data_for_FY22[[#This Row],[25th]])/25)*5) + AAMC_Raw_Data_for_FY22[[#This Row],[25th]]","v":83678.2},{"$f":"(((AAMC_Raw_Data_for_FY22[[#This Row],[Median]]-AAMC_Raw_Data_for_FY22[[#This Row],[25th]])/25)*10) + AAMC_Raw_Data_for_FY22[[#This Row],[25th]]","v":89068.4},{"$f":"(((AAMC_Raw_Data_for_FY22[[#This Row],[Median]]-AAMC_Raw_Data_for_FY22[[#This Row],[25th]])/25)*15) + AAMC_Raw_Data_for_FY22[[#This Row],[25th]]","v":94458.6},{"$f":"(((AAMC_Raw_Data_for_FY22[[#This Row],[Median]]-AAMC_Raw_Data_for_FY22[[#This Row],[25th]])/25)*20) + AAMC_Raw_Data_for_FY22[[#This Row],[25th]]","v":99848.8},105239,{"$f":"(((AAMC_Raw_Data_for_FY22[[#This Row],[75th]]-AAMC_Raw_Data_for_FY22[[#This Row],[Median]])/25)*5) + AAMC_Raw_Data_for_FY22[[#This Row],[Median]]","v":106335.6},{"$f":"(((AAMC_Raw_Data_for_FY22[[#This Row],[75th]]-AAMC_Raw_Data_for_FY22[[#This Row],[Median]])/25)*10) + AAMC_Raw_Data_for_FY22[[#This Row],[Median]]","v":107432.2},{"$f":"(((AAMC_Raw_Data_for_FY22[[#This Row],[75th]]-AAMC_Raw_Data_for_FY22[[#This Row],[Median]])/25)*15) + AAMC_Raw_Data_for_FY22[[#This Row],[Median]]","v":108528.8},{"$f":"(((AAMC_Raw_Data_for_FY22[[#This Row],[75th]]-AAMC_Raw_Data_for_FY22[[#This Row],[Median]])/25)*20) + AAMC_Raw_Data_for_FY22[[#This Row],[Median]]","v":109625.4},110722,{"$f":"(((AAMC_Raw_Data_for_FY22[[#This Row],[75th]]-AAMC_Raw_Data_for_FY22[[#This Row],[Median]])/25)*30) + AAMC_Raw_Data_for_FY22[[#This Row],[Median]]","v":111818.6},{"$f":"(((AAMC_Raw_Data_for_FY22[[#This Row],[75th]]-AAMC_Raw_Data_for_FY22[[#This Row],[Median]])/25)*35) + AAMC_Raw_Data_for_FY22[[#This Row],[Median]]","v":112915.2},{"$f":"(((AAMC_Raw_Data_for_FY22[[#This Row],[75th]]-AAMC_Raw_Data_for_FY22[[#This Row],[Median]])/25)*40) + AAMC_Raw_Data_for_FY22[[#This Row],[Median]]","v":114011.8}]
[{"$f":"AAMC_Raw_Data_for_FY22[[#This Row],[Source]]&AAMC_Raw_Data_for_FY22[[#This Row],[Type]]&AAMC_Raw_Data_for_FY22[[#This Row],[School Subset]]&AAMC_Raw_Data_for_FY22[[#This Row],[Rank]]&AAMC_Raw_Data_for_FY22[[#This Row],[Degree]]&AAMC_Raw_Data_for_FY22[[#This Row],[Department / Specialty]]&\"L\"","v":"AAMCAcademicAllAssociatePhDPulmonary-Peds.L"},"Pulmonary-Peds.",3,"AAMC","Academic","All","Associate","PhD","2021-2022",127114,{"$f":"(((AAMC_Raw_Data_for_FY22[[#This Row],[Median]]-AAMC_Raw_Data_for_FY22[[#This Row],[25th]])/25)*5) + AAMC_Raw_Data_for_FY22[[#This Row],[25th]]","v":132323.20000000001},{"$f":"(((AAMC_Raw_Data_for_FY22[[#This Row],[Median]]-AAMC_Raw_Data_for_FY22[[#This Row],[25th]])/25)*10) + AAMC_Raw_Data_for_FY22[[#This Row],[25th]]","v":137532.4},{"$f":"(((AAMC_Raw_Data_for_FY22[[#This Row],[Median]]-AAMC_Raw_Data_for_FY22[[#This Row],[25th]])/25)*15) + AAMC_Raw_Data_for_FY22[[#This Row],[25th]]","v":142741.6},{"$f":"(((AAMC_Raw_Data_for_FY22[[#This Row],[Median]]-AAMC_Raw_Data_for_FY22[[#This Row],[25th]])/25)*20) + AAMC_Raw_Data_for_FY22[[#This Row],[25th]]","v":147950.79999999999},153160,{"$f":"(((AAMC_Raw_Data_for_FY22[[#This Row],[75th]]-AAMC_Raw_Data_for_FY22[[#This Row],[Median]])/25)*5) + AAMC_Raw_Data_for_FY22[[#This Row],[Median]]","v":158832.79999999999},{"$f":"(((AAMC_Raw_Data_for_FY22[[#This Row],[75th]]-AAMC_Raw_Data_for_FY22[[#This Row],[Median]])/25)*10) + AAMC_Raw_Data_for_FY22[[#This Row],[Median]]","v":164505.60000000001},{"$f":"(((AAMC_Raw_Data_for_FY22[[#This Row],[75th]]-AAMC_Raw_Data_for_FY22[[#This Row],[Median]])/25)*15) + AAMC_Raw_Data_for_FY22[[#This Row],[Median]]","v":170178.4},{"$f":"(((AAMC_Raw_Data_for_FY22[[#This Row],[75th]]-AAMC_Raw_Data_for_FY22[[#This Row],[Median]])/25)*20) + AAMC_Raw_Data_for_FY22[[#This Row],[Median]]","v":175851.2},181524,{"$f":"(((AAMC_Raw_Data_for_FY22[[#This Row],[75th]]-AAMC_Raw_Data_for_FY22[[#This Row],[Median]])/25)*30) + AAMC_Raw_Data_for_FY22[[#This Row],[Median]]","v":187196.79999999999},{"$f":"(((AAMC_Raw_Data_for_FY22[[#This Row],[75th]]-AAMC_Raw_Data_for_FY22[[#This Row],[Median]])/25)*35) + AAMC_Raw_Data_for_FY22[[#This Row],[Median]]","v":192869.6},{"$f":"(((AAMC_Raw_Data_for_FY22[[#This Row],[75th]]-AAMC_Raw_Data_for_FY22[[#This Row],[Median]])/25)*40) + AAMC_Raw_Data_for_FY22[[#This Row],[Median]]","v":198542.4}]
[{"$f":"AAMC_Raw_Data_for_FY22[[#This Row],[Source]]&AAMC_Raw_Data_for_FY22[[#This Row],[Type]]&AAMC_Raw_Data_for_FY22[[#This Row],[School Subset]]&AAMC_Raw_Data_for_FY22[[#This Row],[Rank]]&AAMC_Raw_Data_for_FY22[[#This Row],[Degree]]&AAMC_Raw_Data_for_FY22[[#This Row],[Department / Specialty]]&\"L\"","v":"AAMCAcademicAllProfessorPhDPulmonary-Peds.L"},"Pulmonary-Peds.",2,"AAMC","Academic","All","Professor","PhD","2021-2022",190370,{"$f":"(((AAMC_Raw_Data_for_FY22[[#This Row],[Median]]-AAMC_Raw_Data_for_FY22[[#This Row],[25th]])/25)*5) + AAMC_Raw_Data_for_FY22[[#This Row],[25th]]","v":199376},{"$f":"(((AAMC_Raw_Data_for_FY22[[#This Row],[Median]]-AAMC_Raw_Data_for_FY22[[#This Row],[25th]])/25)*10) + AAMC_Raw_Data_for_FY22[[#This Row],[25th]]","v":208382},{"$f":"(((AAMC_Raw_Data_for_FY22[[#This Row],[Median]]-AAMC_Raw_Data_for_FY22[[#This Row],[25th]])/25)*15) + AAMC_Raw_Data_for_FY22[[#This Row],[25th]]","v":217388},{"$f":"(((AAMC_Raw_Data_for_FY22[[#This Row],[Median]]-AAMC_Raw_Data_for_FY22[[#This Row],[25th]])/25)*20) + AAMC_Raw_Data_for_FY22[[#This Row],[25th]]","v":226394},235400,{"$f":"(((AAMC_Raw_Data_for_FY22[[#This Row],[75th]]-AAMC_Raw_Data_for_FY22[[#This Row],[Median]])/25)*5) + AAMC_Raw_Data_for_FY22[[#This Row],[Median]]","v":238780.79999999999},{"$f":"(((AAMC_Raw_Data_for_FY22[[#This Row],[75th]]-AAMC_Raw_Data_for_FY22[[#This Row],[Median]])/25)*10) + AAMC_Raw_Data_for_FY22[[#This Row],[Median]]","v":242161.6},{"$f":"(((AAMC_Raw_Data_for_FY22[[#This Row],[75th]]-AAMC_Raw_Data_for_FY22[[#This Row],[Median]])/25)*15) + AAMC_Raw_Data_for_FY22[[#This Row],[Median]]","v":245542.39999999999},{"$f":"(((AAMC_Raw_Data_for_FY22[[#This Row],[75th]]-AAMC_Raw_Data_for_FY22[[#This Row],[Median]])/25)*20) + AAMC_Raw_Data_for_FY22[[#This Row],[Median]]","v":248923.2},252304,{"$f":"(((AAMC_Raw_Data_for_FY22[[#This Row],[75th]]-AAMC_Raw_Data_for_FY22[[#This Row],[Median]])/25)*30) + AAMC_Raw_Data_for_FY22[[#This Row],[Median]]","v":255684.8},{"$f":"(((AAMC_Raw_Data_for_FY22[[#This Row],[75th]]-AAMC_Raw_Data_for_FY22[[#This Row],[Median]])/25)*35) + AAMC_Raw_Data_for_FY22[[#This Row],[Median]]","v":259065.60000000001},{"$f":"(((AAMC_Raw_Data_for_FY22[[#This Row],[75th]]-AAMC_Raw_Data_for_FY22[[#This Row],[Median]])/25)*40) + AAMC_Raw_Data_for_FY22[[#This Row],[Median]]","v":262446.40000000002}]
[{"$f":"AAMC_Raw_Data_for_FY22[[#This Row],[Source]]&AAMC_Raw_Data_for_FY22[[#This Row],[Type]]&AAMC_Raw_Data_for_FY22[[#This Row],[School Subset]]&AAMC_Raw_Data_for_FY22[[#This Row],[Rank]]&AAMC_Raw_Data_for_FY22[[#This Row],[Degree]]&AAMC_Raw_Data_for_FY22[[#This Row],[Department / Specialty]]&\"L\"","v":"AAMCAcademicAllAssistantPhDRheumatology-Peds.L"},"Rheumatology-Peds.",4,"AAMC","Academic","All","Assistant","PhD","2021-2022",null,{"$f":"(((AAMC_Raw_Data_for_FY22[[#This Row],[Median]]-AAMC_Raw_Data_for_FY22[[#This Row],[25th]])/25)*5) + AAMC_Raw_Data_for_FY22[[#This Row],[25th]]","v":0},{"$f":"(((AAMC_Raw_Data_for_FY22[[#This Row],[Median]]-AAMC_Raw_Data_for_FY22[[#This Row],[25th]])/25)*10) + AAMC_Raw_Data_for_FY22[[#This Row],[25th]]","v":0},{"$f":"(((AAMC_Raw_Data_for_FY22[[#This Row],[Median]]-AAMC_Raw_Data_for_FY22[[#This Row],[25th]])/25)*15) + AAMC_Raw_Data_for_FY22[[#This Row],[25th]]","v":0},{"$f":"(((AAMC_Raw_Data_for_FY22[[#This Row],[Median]]-AAMC_Raw_Data_for_FY22[[#This Row],[25th]])/25)*20) + AAMC_Raw_Data_for_FY22[[#This Row],[25th]]","v":0},null,{"$f":"(((AAMC_Raw_Data_for_FY22[[#This Row],[75th]]-AAMC_Raw_Data_for_FY22[[#This Row],[Median]])/25)*5) + AAMC_Raw_Data_for_FY22[[#This Row],[Median]]","v":0},{"$f":"(((AAMC_Raw_Data_for_FY22[[#This Row],[75th]]-AAMC_Raw_Data_for_FY22[[#This Row],[Median]])/25)*10) + AAMC_Raw_Data_for_FY22[[#This Row],[Median]]","v":0},{"$f":"(((AAMC_Raw_Data_for_FY22[[#This Row],[75th]]-AAMC_Raw_Data_for_FY22[[#This Row],[Median]])/25)*15) + AAMC_Raw_Data_for_FY22[[#This Row],[Median]]","v":0},{"$f":"(((AAMC_Raw_Data_for_FY22[[#This Row],[75th]]-AAMC_Raw_Data_for_FY22[[#This Row],[Median]])/25)*20) + AAMC_Raw_Data_for_FY22[[#This Row],[Median]]","v":0},null,{"$f":"(((AAMC_Raw_Data_for_FY22[[#This Row],[75th]]-AAMC_Raw_Data_for_FY22[[#This Row],[Median]])/25)*30) + AAMC_Raw_Data_for_FY22[[#This Row],[Median]]","v":0},{"$f":"(((AAMC_Raw_Data_for_FY22[[#This Row],[75th]]-AAMC_Raw_Data_for_FY22[[#This Row],[Median]])/25)*35) + AAMC_Raw_Data_for_FY22[[#This Row],[Median]]","v":0},{"$f":"(((AAMC_Raw_Data_for_FY22[[#This Row],[75th]]-AAMC_Raw_Data_for_FY22[[#This Row],[Median]])/25)*40) + AAMC_Raw_Data_for_FY22[[#This Row],[Median]]","v":0}]
[{"$f":"AAMC_Raw_Data_for_FY22[[#This Row],[Source]]&AAMC_Raw_Data_for_FY22[[#This Row],[Type]]&AAMC_Raw_Data_for_FY22[[#This Row],[School Subset]]&AAMC_Raw_Data_for_FY22[[#This Row],[Rank]]&AAMC_Raw_Data_for_FY22[[#This Row],[Degree]]&AAMC_Raw_Data_for_FY22[[#This Row],[Department / Specialty]]&\"L\"","v":"AAMCAcademicAllAssociatePhDRheumatology-Peds.L"},"Rheumatology-Peds.",3,"AAMC","Academic","All","Associate","PhD","2021-2022",null,{"$f":"(((AAMC_Raw_Data_for_FY22[[#This Row],[Median]]-AAMC_Raw_Data_for_FY22[[#This Row],[25th]])/25)*5) + AAMC_Raw_Data_for_FY22[[#This Row],[25th]]","v":0},{"$f":"(((AAMC_Raw_Data_for_FY22[[#This Row],[Median]]-AAMC_Raw_Data_for_FY22[[#This Row],[25th]])/25)*10) + AAMC_Raw_Data_for_FY22[[#This Row],[25th]]","v":0},{"$f":"(((AAMC_Raw_Data_for_FY22[[#This Row],[Median]]-AAMC_Raw_Data_for_FY22[[#This Row],[25th]])/25)*15) + AAMC_Raw_Data_for_FY22[[#This Row],[25th]]","v":0},{"$f":"(((AAMC_Raw_Data_for_FY22[[#This Row],[Median]]-AAMC_Raw_Data_for_FY22[[#This Row],[25th]])/25)*20) + AAMC_Raw_Data_for_FY22[[#This Row],[25th]]","v":0},null,{"$f":"(((AAMC_Raw_Data_for_FY22[[#This Row],[75th]]-AAMC_Raw_Data_for_FY22[[#This Row],[Median]])/25)*5) + AAMC_Raw_Data_for_FY22[[#This Row],[Median]]","v":0},{"$f":"(((AAMC_Raw_Data_for_FY22[[#This Row],[75th]]-AAMC_Raw_Data_for_FY22[[#This Row],[Median]])/25)*10) + AAMC_Raw_Data_for_FY22[[#This Row],[Median]]","v":0},{"$f":"(((AAMC_Raw_Data_for_FY22[[#This Row],[75th]]-AAMC_Raw_Data_for_FY22[[#This Row],[Median]])/25)*15) + AAMC_Raw_Data_for_FY22[[#This Row],[Median]]","v":0},{"$f":"(((AAMC_Raw_Data_for_FY22[[#This Row],[75th]]-AAMC_Raw_Data_for_FY22[[#This Row],[Median]])/25)*20) + AAMC_Raw_Data_for_FY22[[#This Row],[Median]]","v":0},null,{"$f":"(((AAMC_Raw_Data_for_FY22[[#This Row],[75th]]-AAMC_Raw_Data_for_FY22[[#This Row],[Median]])/25)*30) + AAMC_Raw_Data_for_FY22[[#This Row],[Median]]","v":0},{"$f":"(((AAMC_Raw_Data_for_FY22[[#This Row],[75th]]-AAMC_Raw_Data_for_FY22[[#This Row],[Median]])/25)*35) + AAMC_Raw_Data_for_FY22[[#This Row],[Median]]","v":0},{"$f":"(((AAMC_Raw_Data_for_FY22[[#This Row],[75th]]-AAMC_Raw_Data_for_FY22[[#This Row],[Median]])/25)*40) + AAMC_Raw_Data_for_FY22[[#This Row],[Median]]","v":0}]
[{"$f":"AAMC_Raw_Data_for_FY22[[#This Row],[Source]]&AAMC_Raw_Data_for_FY22[[#This Row],[Type]]&AAMC_Raw_Data_for_FY22[[#This Row],[School Subset]]&AAMC_Raw_Data_for_FY22[[#This Row],[Rank]]&AAMC_Raw_Data_for_FY22[[#This Row],[Degree]]&AAMC_Raw_Data_for_FY22[[#This Row],[Department / Specialty]]&\"L\"","v":"AAMCAcademicAllProfessorPhDRheumatology-Peds.L"},"Rheumatology-Peds.",2,"AAMC","Academic","All","Professor","PhD","2021-2022",null,{"$f":"(((AAMC_Raw_Data_for_FY22[[#This Row],[Median]]-AAMC_Raw_Data_for_FY22[[#This Row],[25th]])/25)*5) + AAMC_Raw_Data_for_FY22[[#This Row],[25th]]","v":0},{"$f":"(((AAMC_Raw_Data_for_FY22[[#This Row],[Median]]-AAMC_Raw_Data_for_FY22[[#This Row],[25th]])/25)*10) + AAMC_Raw_Data_for_FY22[[#This Row],[25th]]","v":0},{"$f":"(((AAMC_Raw_Data_for_FY22[[#This Row],[Median]]-AAMC_Raw_Data_for_FY22[[#This Row],[25th]])/25)*15) + AAMC_Raw_Data_for_FY22[[#This Row],[25th]]","v":0},{"$f":"(((AAMC_Raw_Data_for_FY22[[#This Row],[Median]]-AAMC_Raw_Data_for_FY22[[#This Row],[25th]])/25)*20) + AAMC_Raw_Data_for_FY22[[#This Row],[25th]]","v":0},null,{"$f":"(((AAMC_Raw_Data_for_FY22[[#This Row],[75th]]-AAMC_Raw_Data_for_FY22[[#This Row],[Median]])/25)*5) + AAMC_Raw_Data_for_FY22[[#This Row],[Median]]","v":0},{"$f":"(((AAMC_Raw_Data_for_FY22[[#This Row],[75th]]-AAMC_Raw_Data_for_FY22[[#This Row],[Median]])/25)*10) + AAMC_Raw_Data_for_FY22[[#This Row],[Median]]","v":0},{"$f":"(((AAMC_Raw_Data_for_FY22[[#This Row],[75th]]-AAMC_Raw_Data_for_FY22[[#This Row],[Median]])/25)*15) + AAMC_Raw_Data_for_FY22[[#This Row],[Median]]","v":0},{"$f":"(((AAMC_Raw_Data_for_FY22[[#This Row],[75th]]-AAMC_Raw_Data_for_FY22[[#This Row],[Median]])/25)*20) + AAMC_Raw_Data_for_FY22[[#This Row],[Median]]","v":0},null,{"$f":"(((AAMC_Raw_Data_for_FY22[[#This Row],[75th]]-AAMC_Raw_Data_for_FY22[[#This Row],[Median]])/25)*30) + AAMC_Raw_Data_for_FY22[[#This Row],[Median]]","v":0},{"$f":"(((AAMC_Raw_Data_for_FY22[[#This Row],[75th]]-AAMC_Raw_Data_for_FY22[[#This Row],[Median]])/25)*35) + AAMC_Raw_Data_for_FY22[[#This Row],[Median]]","v":0},{"$f":"(((AAMC_Raw_Data_for_FY22[[#This Row],[75th]]-AAMC_Raw_Data_for_FY22[[#This Row],[Median]])/25)*40) + AAMC_Raw_Data_for_FY22[[#This Row],[Median]]","v":0}]
[{"$f":"AAMC_Raw_Data_for_FY22[[#This Row],[Source]]&AAMC_Raw_Data_for_FY22[[#This Row],[Type]]&AAMC_Raw_Data_for_FY22[[#This Row],[School Subset]]&AAMC_Raw_Data_for_FY22[[#This Row],[Rank]]&AAMC_Raw_Data_for_FY22[[#This Row],[Degree]]&AAMC_Raw_Data_for_FY22[[#This Row],[Department / Specialty]]&\"L\"","v":"AAMCAcademicAllInstructorPhDOther PediatricsL"},"Other Pediatrics",5,"AAMC","Academic","All","Instructor","PhD","2021-2022",73522,{"$f":"(((AAMC_Raw_Data_for_FY22[[#This Row],[Median]]-AAMC_Raw_Data_for_FY22[[#This Row],[25th]])/25)*5) + AAMC_Raw_Data_for_FY22[[#This Row],[25th]]","v":74462.8},{"$f":"(((AAMC_Raw_Data_for_FY22[[#This Row],[Median]]-AAMC_Raw_Data_for_FY22[[#This Row],[25th]])/25)*10) + AAMC_Raw_Data_for_FY22[[#This Row],[25th]]","v":75403.600000000006},{"$f":"(((AAMC_Raw_Data_for_FY22[[#This Row],[Median]]-AAMC_Raw_Data_for_FY22[[#This Row],[25th]])/25)*15) + AAMC_Raw_Data_for_FY22[[#This Row],[25th]]","v":76344.399999999994},{"$f":"(((AAMC_Raw_Data_for_FY22[[#This Row],[Median]]-AAMC_Raw_Data_for_FY22[[#This Row],[25th]])/25)*20) + AAMC_Raw_Data_for_FY22[[#This Row],[25th]]","v":77285.2},78226,{"$f":"(((AAMC_Raw_Data_for_FY22[[#This Row],[75th]]-AAMC_Raw_Data_for_FY22[[#This Row],[Median]])/25)*5) + AAMC_Raw_Data_for_FY22[[#This Row],[Median]]","v":81660.800000000003},{"$f":"(((AAMC_Raw_Data_for_FY22[[#This Row],[75th]]-AAMC_Raw_Data_for_FY22[[#This Row],[Median]])/25)*10) + AAMC_Raw_Data_for_FY22[[#This Row],[Median]]","v":85095.6},{"$f":"(((AAMC_Raw_Data_for_FY22[[#This Row],[75th]]-AAMC_Raw_Data_for_FY22[[#This Row],[Median]])/25)*15) + AAMC_Raw_Data_for_FY22[[#This Row],[Median]]","v":88530.4},{"$f":"(((AAMC_Raw_Data_for_FY22[[#This Row],[75th]]-AAMC_Raw_Data_for_FY22[[#This Row],[Median]])/25)*20) + AAMC_Raw_Data_for_FY22[[#This Row],[Median]]","v":91965.2},95400,{"$f":"(((AAMC_Raw_Data_for_FY22[[#This Row],[75th]]-AAMC_Raw_Data_for_FY22[[#This Row],[Median]])/25)*30) + AAMC_Raw_Data_for_FY22[[#This Row],[Median]]","v":98834.8},{"$f":"(((AAMC_Raw_Data_for_FY22[[#This Row],[75th]]-AAMC_Raw_Data_for_FY22[[#This Row],[Median]])/25)*35) + AAMC_Raw_Data_for_FY22[[#This Row],[Median]]","v":102269.6},{"$f":"(((AAMC_Raw_Data_for_FY22[[#This Row],[75th]]-AAMC_Raw_Data_for_FY22[[#This Row],[Median]])/25)*40) + AAMC_Raw_Data_for_FY22[[#This Row],[Median]]","v":105704.4}]
[{"$f":"AAMC_Raw_Data_for_FY22[[#This Row],[Source]]&AAMC_Raw_Data_for_FY22[[#This Row],[Type]]&AAMC_Raw_Data_for_FY22[[#This Row],[School Subset]]&AAMC_Raw_Data_for_FY22[[#This Row],[Rank]]&AAMC_Raw_Data_for_FY22[[#This Row],[Degree]]&AAMC_Raw_Data_for_FY22[[#This Row],[Department / Specialty]]&\"L\"","v":"AAMCAcademicAllAssistantPhDOther PediatricsL"},"Other Pediatrics",4,"AAMC","Academic","All","Assistant","PhD","2021-2022",95402,{"$f":"(((AAMC_Raw_Data_for_FY22[[#This Row],[Median]]-AAMC_Raw_Data_for_FY22[[#This Row],[25th]])/25)*5) + AAMC_Raw_Data_for_FY22[[#This Row],[25th]]","v":97569.600000000006},{"$f":"(((AAMC_Raw_Data_for_FY22[[#This Row],[Median]]-AAMC_Raw_Data_for_FY22[[#This Row],[25th]])/25)*10) + AAMC_Raw_Data_for_FY22[[#This Row],[25th]]","v":99737.2},{"$f":"(((AAMC_Raw_Data_for_FY22[[#This Row],[Median]]-AAMC_Raw_Data_for_FY22[[#This Row],[25th]])/25)*15) + AAMC_Raw_Data_for_FY22[[#This Row],[25th]]","v":101904.8},{"$f":"(((AAMC_Raw_Data_for_FY22[[#This Row],[Median]]-AAMC_Raw_Data_for_FY22[[#This Row],[25th]])/25)*20) + AAMC_Raw_Data_for_FY22[[#This Row],[25th]]","v":104072.4},106240,{"$f":"(((AAMC_Raw_Data_for_FY22[[#This Row],[75th]]-AAMC_Raw_Data_for_FY22[[#This Row],[Median]])/25)*5) + AAMC_Raw_Data_for_FY22[[#This Row],[Median]]","v":109741.2},{"$f":"(((AAMC_Raw_Data_for_FY22[[#This Row],[75th]]-AAMC_Raw_Data_for_FY22[[#This Row],[Median]])/25)*10) + AAMC_Raw_Data_for_FY22[[#This Row],[Median]]","v":113242.4},{"$f":"(((AAMC_Raw_Data_for_FY22[[#This Row],[75th]]-AAMC_Raw_Data_for_FY22[[#This Row],[Median]])/25)*15) + AAMC_Raw_Data_for_FY22[[#This Row],[Median]]","v":116743.6},{"$f":"(((AAMC_Raw_Data_for_FY22[[#This Row],[75th]]-AAMC_Raw_Data_for_FY22[[#This Row],[Median]])/25)*20) + AAMC_Raw_Data_for_FY22[[#This Row],[Median]]","v":120244.8},123746,{"$f":"(((AAMC_Raw_Data_for_FY22[[#This Row],[75th]]-AAMC_Raw_Data_for_FY22[[#This Row],[Median]])/25)*30) + AAMC_Raw_Data_for_FY22[[#This Row],[Median]]","v":127247.2},{"$f":"(((AAMC_Raw_Data_for_FY22[[#This Row],[75th]]-AAMC_Raw_Data_for_FY22[[#This Row],[Median]])/25)*35) + AAMC_Raw_Data_for_FY22[[#This Row],[Median]]","v":130748.4},{"$f":"(((AAMC_Raw_Data_for_FY22[[#This Row],[75th]]-AAMC_Raw_Data_for_FY22[[#This Row],[Median]])/25)*40) + AAMC_Raw_Data_for_FY22[[#This Row],[Median]]","v":134249.60000000001}]
[{"$f":"AAMC_Raw_Data_for_FY22[[#This Row],[Source]]&AAMC_Raw_Data_for_FY22[[#This Row],[Type]]&AAMC_Raw_Data_for_FY22[[#This Row],[School Subset]]&AAMC_Raw_Data_for_FY22[[#This Row],[Rank]]&AAMC_Raw_Data_for_FY22[[#This Row],[Degree]]&AAMC_Raw_Data_for_FY22[[#This Row],[Department / Specialty]]&\"L\"","v":"AAMCAcademicAllAssociatePhDOther PediatricsL"},"Other Pediatrics",3,"AAMC","Academic","All","Associate","PhD","2021-2022",121301,{"$f":"(((AAMC_Raw_Data_for_FY22[[#This Row],[Median]]-AAMC_Raw_Data_for_FY22[[#This Row],[25th]])/25)*5) + AAMC_Raw_Data_for_FY22[[#This Row],[25th]]","v":124585.4},{"$f":"(((AAMC_Raw_Data_for_FY22[[#This Row],[Median]]-AAMC_Raw_Data_for_FY22[[#This Row],[25th]])/25)*10) + AAMC_Raw_Data_for_FY22[[#This Row],[25th]]","v":127869.8},{"$f":"(((AAMC_Raw_Data_for_FY22[[#This Row],[Median]]-AAMC_Raw_Data_for_FY22[[#This Row],[25th]])/25)*15) + AAMC_Raw_Data_for_FY22[[#This Row],[25th]]","v":131154.20000000001},{"$f":"(((AAMC_Raw_Data_for_FY22[[#This Row],[Median]]-AAMC_Raw_Data_for_FY22[[#This Row],[25th]])/25)*20) + AAMC_Raw_Data_for_FY22[[#This Row],[25th]]","v":134438.6},137723,{"$f":"(((AAMC_Raw_Data_for_FY22[[#This Row],[75th]]-AAMC_Raw_Data_for_FY22[[#This Row],[Median]])/25)*5) + AAMC_Raw_Data_for_FY22[[#This Row],[Median]]","v":142247.20000000001},{"$f":"(((AAMC_Raw_Data_for_FY22[[#This Row],[75th]]-AAMC_Raw_Data_for_FY22[[#This Row],[Median]])/25)*10) + AAMC_Raw_Data_for_FY22[[#This Row],[Median]]","v":146771.4},{"$f":"(((AAMC_Raw_Data_for_FY22[[#This Row],[75th]]-AAMC_Raw_Data_for_FY22[[#This Row],[Median]])/25)*15) + AAMC_Raw_Data_for_FY22[[#This Row],[Median]]","v":151295.6},{"$f":"(((AAMC_Raw_Data_for_FY22[[#This Row],[75th]]-AAMC_Raw_Data_for_FY22[[#This Row],[Median]])/25)*20) + AAMC_Raw_Data_for_FY22[[#This Row],[Median]]","v":155819.79999999999},160344,{"$f":"(((AAMC_Raw_Data_for_FY22[[#This Row],[75th]]-AAMC_Raw_Data_for_FY22[[#This Row],[Median]])/25)*30) + AAMC_Raw_Data_for_FY22[[#This Row],[Median]]","v":164868.20000000001},{"$f":"(((AAMC_Raw_Data_for_FY22[[#This Row],[75th]]-AAMC_Raw_Data_for_FY22[[#This Row],[Median]])/25)*35) + AAMC_Raw_Data_for_FY22[[#This Row],[Median]]","v":169392.4},{"$f":"(((AAMC_Raw_Data_for_FY22[[#This Row],[75th]]-AAMC_Raw_Data_for_FY22[[#This Row],[Median]])/25)*40) + AAMC_Raw_Data_for_FY22[[#This Row],[Median]]","v":173916.6}]
[{"$f":"AAMC_Raw_Data_for_FY22[[#This Row],[Source]]&AAMC_Raw_Data_for_FY22[[#This Row],[Type]]&AAMC_Raw_Data_for_FY22[[#This Row],[School Subset]]&AAMC_Raw_Data_for_FY22[[#This Row],[Rank]]&AAMC_Raw_Data_for_FY22[[#This Row],[Degree]]&AAMC_Raw_Data_for_FY22[[#This Row],[Department / Specialty]]&\"L\"","v":"AAMCAcademicAllProfessorPhDOther PediatricsL"},"Other Pediatrics",2,"AAMC","Academic","All","Professor","PhD","2021-2022",190709,{"$f":"(((AAMC_Raw_Data_for_FY22[[#This Row],[Median]]-AAMC_Raw_Data_for_FY22[[#This Row],[25th]])/25)*5) + AAMC_Raw_Data_for_FY22[[#This Row],[25th]]","v":196198.2},{"$f":"(((AAMC_Raw_Data_for_FY22[[#This Row],[Median]]-AAMC_Raw_Data_for_FY22[[#This Row],[25th]])/25)*10) + AAMC_Raw_Data_for_FY22[[#This Row],[25th]]","v":201687.4},{"$f":"(((AAMC_Raw_Data_for_FY22[[#This Row],[Median]]-AAMC_Raw_Data_for_FY22[[#This Row],[25th]])/25)*15) + AAMC_Raw_Data_for_FY22[[#This Row],[25th]]","v":207176.6},{"$f":"(((AAMC_Raw_Data_for_FY22[[#This Row],[Median]]-AAMC_Raw_Data_for_FY22[[#This Row],[25th]])/25)*20) + AAMC_Raw_Data_for_FY22[[#This Row],[25th]]","v":212665.8},218155,{"$f":"(((AAMC_Raw_Data_for_FY22[[#This Row],[75th]]-AAMC_Raw_Data_for_FY22[[#This Row],[Median]])/25)*5) + AAMC_Raw_Data_for_FY22[[#This Row],[Median]]","v":224588.79999999999},{"$f":"(((AAMC_Raw_Data_for_FY22[[#This Row],[75th]]-AAMC_Raw_Data_for_FY22[[#This Row],[Median]])/25)*10) + AAMC_Raw_Data_for_FY22[[#This Row],[Median]]","v":231022.6},{"$f":"(((AAMC_Raw_Data_for_FY22[[#This Row],[75th]]-AAMC_Raw_Data_for_FY22[[#This Row],[Median]])/25)*15) + AAMC_Raw_Data_for_FY22[[#This Row],[Median]]","v":237456.4},{"$f":"(((AAMC_Raw_Data_for_FY22[[#This Row],[75th]]-AAMC_Raw_Data_for_FY22[[#This Row],[Median]])/25)*20) + AAMC_Raw_Data_for_FY22[[#This Row],[Median]]","v":243890.2},250324,{"$f":"(((AAMC_Raw_Data_for_FY22[[#This Row],[75th]]-AAMC_Raw_Data_for_FY22[[#This Row],[Median]])/25)*30) + AAMC_Raw_Data_for_FY22[[#This Row],[Median]]","v":256757.8},{"$f":"(((AAMC_Raw_Data_for_FY22[[#This Row],[75th]]-AAMC_Raw_Data_for_FY22[[#This Row],[Median]])/25)*35) + AAMC_Raw_Data_for_FY22[[#This Row],[Median]]","v":263191.59999999998},{"$f":"(((AAMC_Raw_Data_for_FY22[[#This Row],[75th]]-AAMC_Raw_Data_for_FY22[[#This Row],[Median]])/25)*40) + AAMC_Raw_Data_for_FY22[[#This Row],[Median]]","v":269625.40000000002}]
[{"$f":"AAMC_Raw_Data_for_FY22[[#This Row],[Source]]&AAMC_Raw_Data_for_FY22[[#This Row],[Type]]&AAMC_Raw_Data_for_FY22[[#This Row],[School Subset]]&AAMC_Raw_Data_for_FY22[[#This Row],[Rank]]&AAMC_Raw_Data_for_FY22[[#This Row],[Degree]]&AAMC_Raw_Data_for_FY22[[#This Row],[Department / Specialty]]&\"L\"","v":"AAMCAcademicAllChiefPhDOther PediatricsL"},"Other Pediatrics",6,"AAMC","Academic","All","Chief","PhD","2021-2022",209039,{"$f":"(((AAMC_Raw_Data_for_FY22[[#This Row],[Median]]-AAMC_Raw_Data_for_FY22[[#This Row],[25th]])/25)*5) + AAMC_Raw_Data_for_FY22[[#This Row],[25th]]","v":217699.6},{"$f":"(((AAMC_Raw_Data_for_FY22[[#This Row],[Median]]-AAMC_Raw_Data_for_FY22[[#This Row],[25th]])/25)*10) + AAMC_Raw_Data_for_FY22[[#This Row],[25th]]","v":226360.2},{"$f":"(((AAMC_Raw_Data_for_FY22[[#This Row],[Median]]-AAMC_Raw_Data_for_FY22[[#This Row],[25th]])/25)*15) + AAMC_Raw_Data_for_FY22[[#This Row],[25th]]","v":235020.79999999999},{"$f":"(((AAMC_Raw_Data_for_FY22[[#This Row],[Median]]-AAMC_Raw_Data_for_FY22[[#This Row],[25th]])/25)*20) + AAMC_Raw_Data_for_FY22[[#This Row],[25th]]","v":243681.4},252342,{"$f":"(((AAMC_Raw_Data_for_FY22[[#This Row],[75th]]-AAMC_Raw_Data_for_FY22[[#This Row],[Median]])/25)*5) + AAMC_Raw_Data_for_FY22[[#This Row],[Median]]","v":277615.40000000002},{"$f":"(((AAMC_Raw_Data_for_FY22[[#This Row],[75th]]-AAMC_Raw_Data_for_FY22[[#This Row],[Median]])/25)*10) + AAMC_Raw_Data_for_FY22[[#This Row],[Median]]","v":302888.8},{"$f":"(((AAMC_Raw_Data_for_FY22[[#This Row],[75th]]-AAMC_Raw_Data_for_FY22[[#This Row],[Median]])/25)*15) + AAMC_Raw_Data_for_FY22[[#This Row],[Median]]","v":328162.2},{"$f":"(((AAMC_Raw_Data_for_FY22[[#This Row],[75th]]-AAMC_Raw_Data_for_FY22[[#This Row],[Median]])/25)*20) + AAMC_Raw_Data_for_FY22[[#This Row],[Median]]","v":353435.6},378709,{"$f":"(((AAMC_Raw_Data_for_FY22[[#This Row],[75th]]-AAMC_Raw_Data_for_FY22[[#This Row],[Median]])/25)*30) + AAMC_Raw_Data_for_FY22[[#This Row],[Median]]","v":403982.4},{"$f":"(((AAMC_Raw_Data_for_FY22[[#This Row],[75th]]-AAMC_Raw_Data_for_FY22[[#This Row],[Median]])/25)*35) + AAMC_Raw_Data_for_FY22[[#This Row],[Median]]","v":429255.80000000005},{"$f":"(((AAMC_Raw_Data_for_FY22[[#This Row],[75th]]-AAMC_Raw_Data_for_FY22[[#This Row],[Median]])/25)*40) + AAMC_Raw_Data_for_FY22[[#This Row],[Median]]","v":454529.2}]
[{"$f":"AAMC_Raw_Data_for_FY22[[#This Row],[Source]]&AAMC_Raw_Data_for_FY22[[#This Row],[Type]]&AAMC_Raw_Data_for_FY22[[#This Row],[School Subset]]&AAMC_Raw_Data_for_FY22[[#This Row],[Rank]]&AAMC_Raw_Data_for_FY22[[#This Row],[Degree]]&AAMC_Raw_Data_for_FY22[[#This Row],[Department / Specialty]]&\"L\"","v":"AAMCAcademicAllInstructorPhDPsychiatry TotalL"},"Psychiatry Total",5,"AAMC","Academic","All","Instructor","PhD","2021-2022",78969,{"$f":"(((AAMC_Raw_Data_for_FY22[[#This Row],[Median]]-AAMC_Raw_Data_for_FY22[[#This Row],[25th]])/25)*5) + AAMC_Raw_Data_for_FY22[[#This Row],[25th]]","v":82092},{"$f":"(((AAMC_Raw_Data_for_FY22[[#This Row],[Median]]-AAMC_Raw_Data_for_FY22[[#This Row],[25th]])/25)*10) + AAMC_Raw_Data_for_FY22[[#This Row],[25th]]","v":85215},{"$f":"(((AAMC_Raw_Data_for_FY22[[#This Row],[Median]]-AAMC_Raw_Data_for_FY22[[#This Row],[25th]])/25)*15) + AAMC_Raw_Data_for_FY22[[#This Row],[25th]]","v":88338},{"$f":"(((AAMC_Raw_Data_for_FY22[[#This Row],[Median]]-AAMC_Raw_Data_for_FY22[[#This Row],[25th]])/25)*20) + AAMC_Raw_Data_for_FY22[[#This Row],[25th]]","v":91461},94584,{"$f":"(((AAMC_Raw_Data_for_FY22[[#This Row],[75th]]-AAMC_Raw_Data_for_FY22[[#This Row],[Median]])/25)*5) + AAMC_Raw_Data_for_FY22[[#This Row],[Median]]","v":99700.800000000003},{"$f":"(((AAMC_Raw_Data_for_FY22[[#This Row],[75th]]-AAMC_Raw_Data_for_FY22[[#This Row],[Median]])/25)*10) + AAMC_Raw_Data_for_FY22[[#This Row],[Median]]","v":104817.60000000001},{"$f":"(((AAMC_Raw_Data_for_FY22[[#This Row],[75th]]-AAMC_Raw_Data_for_FY22[[#This Row],[Median]])/25)*15) + AAMC_Raw_Data_for_FY22[[#This Row],[Median]]","v":109934.39999999999},{"$f":"(((AAMC_Raw_Data_for_FY22[[#This Row],[75th]]-AAMC_Raw_Data_for_FY22[[#This Row],[Median]])/25)*20) + AAMC_Raw_Data_for_FY22[[#This Row],[Median]]","v":115051.2},120168,{"$f":"(((AAMC_Raw_Data_for_FY22[[#This Row],[75th]]-AAMC_Raw_Data_for_FY22[[#This Row],[Median]])/25)*30) + AAMC_Raw_Data_for_FY22[[#This Row],[Median]]","v":125284.8},{"$f":"(((AAMC_Raw_Data_for_FY22[[#This Row],[75th]]-AAMC_Raw_Data_for_FY22[[#This Row],[Median]])/25)*35) + AAMC_Raw_Data_for_FY22[[#This Row],[Median]]","v":130401.60000000001},{"$f":"(((AAMC_Raw_Data_for_FY22[[#This Row],[75th]]-AAMC_Raw_Data_for_FY22[[#This Row],[Median]])/25)*40) + AAMC_Raw_Data_for_FY22[[#This Row],[Median]]","v":135518.39999999999}]
[{"$f":"AAMC_Raw_Data_for_FY22[[#This Row],[Source]]&AAMC_Raw_Data_for_FY22[[#This Row],[Type]]&AAMC_Raw_Data_for_FY22[[#This Row],[School Subset]]&AAMC_Raw_Data_for_FY22[[#This Row],[Rank]]&AAMC_Raw_Data_for_FY22[[#This Row],[Degree]]&AAMC_Raw_Data_for_FY22[[#This Row],[Department / Specialty]]&\"L\"","v":"AAMCAcademicAllAssistantPhDPsychiatry TotalL"},"Psychiatry Total",4,"AAMC","Academic","All","Assistant","PhD","2021-2022",102794,{"$f":"(((AAMC_Raw_Data_for_FY22[[#This Row],[Median]]-AAMC_Raw_Data_for_FY22[[#This Row],[25th]])/25)*5) + AAMC_Raw_Data_for_FY22[[#This Row],[25th]]","v":105013},{"$f":"(((AAMC_Raw_Data_for_FY22[[#This Row],[Median]]-AAMC_Raw_Data_for_FY22[[#This Row],[25th]])/25)*10) + AAMC_Raw_Data_for_FY22[[#This Row],[25th]]","v":107232},{"$f":"(((AAMC_Raw_Data_for_FY22[[#This Row],[Median]]-AAMC_Raw_Data_for_FY22[[#This Row],[25th]])/25)*15) + AAMC_Raw_Data_for_FY22[[#This Row],[25th]]","v":109451},{"$f":"(((AAMC_Raw_Data_for_FY22[[#This Row],[Median]]-AAMC_Raw_Data_for_FY22[[#This Row],[25th]])/25)*20) + AAMC_Raw_Data_for_FY22[[#This Row],[25th]]","v":111670},113889,{"$f":"(((AAMC_Raw_Data_for_FY22[[#This Row],[75th]]-AAMC_Raw_Data_for_FY22[[#This Row],[Median]])/25)*5) + AAMC_Raw_Data_for_FY22[[#This Row],[Median]]","v":116957},{"$f":"(((AAMC_Raw_Data_for_FY22[[#This Row],[75th]]-AAMC_Raw_Data_for_FY22[[#This Row],[Median]])/25)*10) + AAMC_Raw_Data_for_FY22[[#This Row],[Median]]","v":120025},{"$f":"(((AAMC_Raw_Data_for_FY22[[#This Row],[75th]]-AAMC_Raw_Data_for_FY22[[#This Row],[Median]])/25)*15) + AAMC_Raw_Data_for_FY22[[#This Row],[Median]]","v":123093},{"$f":"(((AAMC_Raw_Data_for_FY22[[#This Row],[75th]]-AAMC_Raw_Data_for_FY22[[#This Row],[Median]])/25)*20) + AAMC_Raw_Data_for_FY22[[#This Row],[Median]]","v":126161},129229,{"$f":"(((AAMC_Raw_Data_for_FY22[[#This Row],[75th]]-AAMC_Raw_Data_for_FY22[[#This Row],[Median]])/25)*30) + AAMC_Raw_Data_for_FY22[[#This Row],[Median]]","v":132297},{"$f":"(((AAMC_Raw_Data_for_FY22[[#This Row],[75th]]-AAMC_Raw_Data_for_FY22[[#This Row],[Median]])/25)*35) + AAMC_Raw_Data_for_FY22[[#This Row],[Median]]","v":135365},{"$f":"(((AAMC_Raw_Data_for_FY22[[#This Row],[75th]]-AAMC_Raw_Data_for_FY22[[#This Row],[Median]])/25)*40) + AAMC_Raw_Data_for_FY22[[#This Row],[Median]]","v":138433}]
[{"$f":"AAMC_Raw_Data_for_FY22[[#This Row],[Source]]&AAMC_Raw_Data_for_FY22[[#This Row],[Type]]&AAMC_Raw_Data_for_FY22[[#This Row],[School Subset]]&AAMC_Raw_Data_for_FY22[[#This Row],[Rank]]&AAMC_Raw_Data_for_FY22[[#This Row],[Degree]]&AAMC_Raw_Data_for_FY22[[#This Row],[Department / Specialty]]&\"L\"","v":"AAMCAcademicAllAssociatePhDPsychiatry TotalL"},"Psychiatry Total",3,"AAMC","Academic","All","Associate","PhD","2021-2022",129300,{"$f":"(((AAMC_Raw_Data_for_FY22[[#This Row],[Median]]-AAMC_Raw_Data_for_FY22[[#This Row],[25th]])/25)*5) + AAMC_Raw_Data_for_FY22[[#This Row],[25th]]","v":132577.4},{"$f":"(((AAMC_Raw_Data_for_FY22[[#This Row],[Median]]-AAMC_Raw_Data_for_FY22[[#This Row],[25th]])/25)*10) + AAMC_Raw_Data_for_FY22[[#This Row],[25th]]","v":135854.79999999999},{"$f":"(((AAMC_Raw_Data_for_FY22[[#This Row],[Median]]-AAMC_Raw_Data_for_FY22[[#This Row],[25th]])/25)*15) + AAMC_Raw_Data_for_FY22[[#This Row],[25th]]","v":139132.20000000001},{"$f":"(((AAMC_Raw_Data_for_FY22[[#This Row],[Median]]-AAMC_Raw_Data_for_FY22[[#This Row],[25th]])/25)*20) + AAMC_Raw_Data_for_FY22[[#This Row],[25th]]","v":142409.60000000001},145687,{"$f":"(((AAMC_Raw_Data_for_FY22[[#This Row],[75th]]-AAMC_Raw_Data_for_FY22[[#This Row],[Median]])/25)*5) + AAMC_Raw_Data_for_FY22[[#This Row],[Median]]","v":150549.6},{"$f":"(((AAMC_Raw_Data_for_FY22[[#This Row],[75th]]-AAMC_Raw_Data_for_FY22[[#This Row],[Median]])/25)*10) + AAMC_Raw_Data_for_FY22[[#This Row],[Median]]","v":155412.20000000001},{"$f":"(((AAMC_Raw_Data_for_FY22[[#This Row],[75th]]-AAMC_Raw_Data_for_FY22[[#This Row],[Median]])/25)*15) + AAMC_Raw_Data_for_FY22[[#This Row],[Median]]","v":160274.79999999999},{"$f":"(((AAMC_Raw_Data_for_FY22[[#This Row],[75th]]-AAMC_Raw_Data_for_FY22[[#This Row],[Median]])/25)*20) + AAMC_Raw_Data_for_FY22[[#This Row],[Median]]","v":165137.4},170000,{"$f":"(((AAMC_Raw_Data_for_FY22[[#This Row],[75th]]-AAMC_Raw_Data_for_FY22[[#This Row],[Median]])/25)*30) + AAMC_Raw_Data_for_FY22[[#This Row],[Median]]","v":174862.6},{"$f":"(((AAMC_Raw_Data_for_FY22[[#This Row],[75th]]-AAMC_Raw_Data_for_FY22[[#This Row],[Median]])/25)*35) + AAMC_Raw_Data_for_FY22[[#This Row],[Median]]","v":179725.2},{"$f":"(((AAMC_Raw_Data_for_FY22[[#This Row],[75th]]-AAMC_Raw_Data_for_FY22[[#This Row],[Median]])/25)*40) + AAMC_Raw_Data_for_FY22[[#This Row],[Median]]","v":184587.8}]
[{"$f":"AAMC_Raw_Data_for_FY22[[#This Row],[Source]]&AAMC_Raw_Data_for_FY22[[#This Row],[Type]]&AAMC_Raw_Data_for_FY22[[#This Row],[School Subset]]&AAMC_Raw_Data_for_FY22[[#This Row],[Rank]]&AAMC_Raw_Data_for_FY22[[#This Row],[Degree]]&AAMC_Raw_Data_for_FY22[[#This Row],[Department / Specialty]]&\"L\"","v":"AAMCAcademicAllProfessorPhDPsychiatry TotalL"},"Psychiatry Total",2,"AAMC","Academic","All","Professor","PhD","2021-2022",180289,{"$f":"(((AAMC_Raw_Data_for_FY22[[#This Row],[Median]]-AAMC_Raw_Data_for_FY22[[#This Row],[25th]])/25)*5) + AAMC_Raw_Data_for_FY22[[#This Row],[25th]]","v":186809.4},{"$f":"(((AAMC_Raw_Data_for_FY22[[#This Row],[Median]]-AAMC_Raw_Data_for_FY22[[#This Row],[25th]])/25)*10) + AAMC_Raw_Data_for_FY22[[#This Row],[25th]]","v":193329.8},{"$f":"(((AAMC_Raw_Data_for_FY22[[#This Row],[Median]]-AAMC_Raw_Data_for_FY22[[#This Row],[25th]])/25)*15) + AAMC_Raw_Data_for_FY22[[#This Row],[25th]]","v":199850.2},{"$f":"(((AAMC_Raw_Data_for_FY22[[#This Row],[Median]]-AAMC_Raw_Data_for_FY22[[#This Row],[25th]])/25)*20) + AAMC_Raw_Data_for_FY22[[#This Row],[25th]]","v":206370.6},212891,{"$f":"(((AAMC_Raw_Data_for_FY22[[#This Row],[75th]]-AAMC_Raw_Data_for_FY22[[#This Row],[Median]])/25)*5) + AAMC_Raw_Data_for_FY22[[#This Row],[Median]]","v":222140.2},{"$f":"(((AAMC_Raw_Data_for_FY22[[#This Row],[75th]]-AAMC_Raw_Data_for_FY22[[#This Row],[Median]])/25)*10) + AAMC_Raw_Data_for_FY22[[#This Row],[Median]]","v":231389.4},{"$f":"(((AAMC_Raw_Data_for_FY22[[#This Row],[75th]]-AAMC_Raw_Data_for_FY22[[#This Row],[Median]])/25)*15) + AAMC_Raw_Data_for_FY22[[#This Row],[Median]]","v":240638.6},{"$f":"(((AAMC_Raw_Data_for_FY22[[#This Row],[75th]]-AAMC_Raw_Data_for_FY22[[#This Row],[Median]])/25)*20) + AAMC_Raw_Data_for_FY22[[#This Row],[Median]]","v":249887.8},259137,{"$f":"(((AAMC_Raw_Data_for_FY22[[#This Row],[75th]]-AAMC_Raw_Data_for_FY22[[#This Row],[Median]])/25)*30) + AAMC_Raw_Data_for_FY22[[#This Row],[Median]]","v":268386.2},{"$f":"(((AAMC_Raw_Data_for_FY22[[#This Row],[75th]]-AAMC_Raw_Data_for_FY22[[#This Row],[Median]])/25)*35) + AAMC_Raw_Data_for_FY22[[#This Row],[Median]]","v":277635.40000000002},{"$f":"(((AAMC_Raw_Data_for_FY22[[#This Row],[75th]]-AAMC_Raw_Data_for_FY22[[#This Row],[Median]])/25)*40) + AAMC_Raw_Data_for_FY22[[#This Row],[Median]]","v":286884.59999999998}]
[{"$f":"AAMC_Raw_Data_for_FY22[[#This Row],[Source]]&AAMC_Raw_Data_for_FY22[[#This Row],[Type]]&AAMC_Raw_Data_for_FY22[[#This Row],[School Subset]]&AAMC_Raw_Data_for_FY22[[#This Row],[Rank]]&AAMC_Raw_Data_for_FY22[[#This Row],[Degree]]&AAMC_Raw_Data_for_FY22[[#This Row],[Department / Specialty]]&\"L\"","v":"AAMCAcademicAllChiefPhDPsychiatry TotalL"},"Psychiatry Total",6,"AAMC","Academic","All","Chief","PhD","2021-2022",174637,{"$f":"(((AAMC_Raw_Data_for_FY22[[#This Row],[Median]]-AAMC_Raw_Data_for_FY22[[#This Row],[25th]])/25)*5) + AAMC_Raw_Data_for_FY22[[#This Row],[25th]]","v":185527},{"$f":"(((AAMC_Raw_Data_for_FY22[[#This Row],[Median]]-AAMC_Raw_Data_for_FY22[[#This Row],[25th]])/25)*10) + AAMC_Raw_Data_for_FY22[[#This Row],[25th]]","v":196417},{"$f":"(((AAMC_Raw_Data_for_FY22[[#This Row],[Median]]-AAMC_Raw_Data_for_FY22[[#This Row],[25th]])/25)*15) + AAMC_Raw_Data_for_FY22[[#This Row],[25th]]","v":207307},{"$f":"(((AAMC_Raw_Data_for_FY22[[#This Row],[Median]]-AAMC_Raw_Data_for_FY22[[#This Row],[25th]])/25)*20) + AAMC_Raw_Data_for_FY22[[#This Row],[25th]]","v":218197},229087,{"$f":"(((AAMC_Raw_Data_for_FY22[[#This Row],[75th]]-AAMC_Raw_Data_for_FY22[[#This Row],[Median]])/25)*5) + AAMC_Raw_Data_for_FY22[[#This Row],[Median]]","v":234508.79999999999},{"$f":"(((AAMC_Raw_Data_for_FY22[[#This Row],[75th]]-AAMC_Raw_Data_for_FY22[[#This Row],[Median]])/25)*10) + AAMC_Raw_Data_for_FY22[[#This Row],[Median]]","v":239930.6},{"$f":"(((AAMC_Raw_Data_for_FY22[[#This Row],[75th]]-AAMC_Raw_Data_for_FY22[[#This Row],[Median]])/25)*15) + AAMC_Raw_Data_for_FY22[[#This Row],[Median]]","v":245352.4},{"$f":"(((AAMC_Raw_Data_for_FY22[[#This Row],[75th]]-AAMC_Raw_Data_for_FY22[[#This Row],[Median]])/25)*20) + AAMC_Raw_Data_for_FY22[[#This Row],[Median]]","v":250774.2},256196,{"$f":"(((AAMC_Raw_Data_for_FY22[[#This Row],[75th]]-AAMC_Raw_Data_for_FY22[[#This Row],[Median]])/25)*30) + AAMC_Raw_Data_for_FY22[[#This Row],[Median]]","v":261617.8},{"$f":"(((AAMC_Raw_Data_for_FY22[[#This Row],[75th]]-AAMC_Raw_Data_for_FY22[[#This Row],[Median]])/25)*35) + AAMC_Raw_Data_for_FY22[[#This Row],[Median]]","v":267039.59999999998},{"$f":"(((AAMC_Raw_Data_for_FY22[[#This Row],[75th]]-AAMC_Raw_Data_for_FY22[[#This Row],[Median]])/25)*40) + AAMC_Raw_Data_for_FY22[[#This Row],[Median]]","v":272461.40000000002}]
[{"$f":"AAMC_Raw_Data_for_FY22[[#This Row],[Source]]&AAMC_Raw_Data_for_FY22[[#This Row],[Type]]&AAMC_Raw_Data_for_FY22[[#This Row],[School Subset]]&AAMC_Raw_Data_for_FY22[[#This Row],[Rank]]&AAMC_Raw_Data_for_FY22[[#This Row],[Degree]]&AAMC_Raw_Data_for_FY22[[#This Row],[Department / Specialty]]&\"L\"","v":"AAMCAcademicAllChairPhDPsychiatry TotalL"},"Psychiatry Total",1,"AAMC","Academic","All","Chair","PhD","2021-2022",260695,{"$f":"(((AAMC_Raw_Data_for_FY22[[#This Row],[Median]]-AAMC_Raw_Data_for_FY22[[#This Row],[25th]])/25)*5) + AAMC_Raw_Data_for_FY22[[#This Row],[25th]]","v":263169.40000000002},{"$f":"(((AAMC_Raw_Data_for_FY22[[#This Row],[Median]]-AAMC_Raw_Data_for_FY22[[#This Row],[25th]])/25)*10) + AAMC_Raw_Data_for_FY22[[#This Row],[25th]]","v":265643.8},{"$f":"(((AAMC_Raw_Data_for_FY22[[#This Row],[Median]]-AAMC_Raw_Data_for_FY22[[#This Row],[25th]])/25)*15) + AAMC_Raw_Data_for_FY22[[#This Row],[25th]]","v":268118.2},{"$f":"(((AAMC_Raw_Data_for_FY22[[#This Row],[Median]]-AAMC_Raw_Data_for_FY22[[#This Row],[25th]])/25)*20) + AAMC_Raw_Data_for_FY22[[#This Row],[25th]]","v":270592.59999999998},273067,{"$f":"(((AAMC_Raw_Data_for_FY22[[#This Row],[75th]]-AAMC_Raw_Data_for_FY22[[#This Row],[Median]])/25)*5) + AAMC_Raw_Data_for_FY22[[#This Row],[Median]]","v":286503.59999999998},{"$f":"(((AAMC_Raw_Data_for_FY22[[#This Row],[75th]]-AAMC_Raw_Data_for_FY22[[#This Row],[Median]])/25)*10) + AAMC_Raw_Data_for_FY22[[#This Row],[Median]]","v":299940.2},{"$f":"(((AAMC_Raw_Data_for_FY22[[#This Row],[75th]]-AAMC_Raw_Data_for_FY22[[#This Row],[Median]])/25)*15) + AAMC_Raw_Data_for_FY22[[#This Row],[Median]]","v":313376.8},{"$f":"(((AAMC_Raw_Data_for_FY22[[#This Row],[75th]]-AAMC_Raw_Data_for_FY22[[#This Row],[Median]])/25)*20) + AAMC_Raw_Data_for_FY22[[#This Row],[Median]]","v":326813.40000000002},340250,{"$f":"(((AAMC_Raw_Data_for_FY22[[#This Row],[75th]]-AAMC_Raw_Data_for_FY22[[#This Row],[Median]])/25)*30) + AAMC_Raw_Data_for_FY22[[#This Row],[Median]]","v":353686.6},{"$f":"(((AAMC_Raw_Data_for_FY22[[#This Row],[75th]]-AAMC_Raw_Data_for_FY22[[#This Row],[Median]])/25)*35) + AAMC_Raw_Data_for_FY22[[#This Row],[Median]]","v":367123.20000000001},{"$f":"(((AAMC_Raw_Data_for_FY22[[#This Row],[75th]]-AAMC_Raw_Data_for_FY22[[#This Row],[Median]])/25)*40) + AAMC_Raw_Data_for_FY22[[#This Row],[Median]]","v":380559.8}]
[{"$f":"AAMC_Raw_Data_for_FY22[[#This Row],[Source]]&AAMC_Raw_Data_for_FY22[[#This Row],[Type]]&AAMC_Raw_Data_for_FY22[[#This Row],[School Subset]]&AAMC_Raw_Data_for_FY22[[#This Row],[Rank]]&AAMC_Raw_Data_for_FY22[[#This Row],[Degree]]&AAMC_Raw_Data_for_FY22[[#This Row],[Department / Specialty]]&\"L\"","v":"AAMCAcademicAllInstructorPhDPsychiatry: Child & AdolescentL"},"Psychiatry: Child & Adolescent",5,"AAMC","Academic","All","Instructor","PhD","2021-2022",89050,{"$f":"(((AAMC_Raw_Data_for_FY22[[#This Row],[Median]]-AAMC_Raw_Data_for_FY22[[#This Row],[25th]])/25)*5) + AAMC_Raw_Data_for_FY22[[#This Row],[25th]]","v":89332},{"$f":"(((AAMC_Raw_Data_for_FY22[[#This Row],[Median]]-AAMC_Raw_Data_for_FY22[[#This Row],[25th]])/25)*10) + AAMC_Raw_Data_for_FY22[[#This Row],[25th]]","v":89614},{"$f":"(((AAMC_Raw_Data_for_FY22[[#This Row],[Median]]-AAMC_Raw_Data_for_FY22[[#This Row],[25th]])/25)*15) + AAMC_Raw_Data_for_FY22[[#This Row],[25th]]","v":89896},{"$f":"(((AAMC_Raw_Data_for_FY22[[#This Row],[Median]]-AAMC_Raw_Data_for_FY22[[#This Row],[25th]])/25)*20) + AAMC_Raw_Data_for_FY22[[#This Row],[25th]]","v":90178},90460,{"$f":"(((AAMC_Raw_Data_for_FY22[[#This Row],[75th]]-AAMC_Raw_Data_for_FY22[[#This Row],[Median]])/25)*5) + AAMC_Raw_Data_for_FY22[[#This Row],[Median]]","v":94220.2},{"$f":"(((AAMC_Raw_Data_for_FY22[[#This Row],[75th]]-AAMC_Raw_Data_for_FY22[[#This Row],[Median]])/25)*10) + AAMC_Raw_Data_for_FY22[[#This Row],[Median]]","v":97980.4},{"$f":"(((AAMC_Raw_Data_for_FY22[[#This Row],[75th]]-AAMC_Raw_Data_for_FY22[[#This Row],[Median]])/25)*15) + AAMC_Raw_Data_for_FY22[[#This Row],[Median]]","v":101740.6},{"$f":"(((AAMC_Raw_Data_for_FY22[[#This Row],[75th]]-AAMC_Raw_Data_for_FY22[[#This Row],[Median]])/25)*20) + AAMC_Raw_Data_for_FY22[[#This Row],[Median]]","v":105500.8},109261,{"$f":"(((AAMC_Raw_Data_for_FY22[[#This Row],[75th]]-AAMC_Raw_Data_for_FY22[[#This Row],[Median]])/25)*30) + AAMC_Raw_Data_for_FY22[[#This Row],[Median]]","v":113021.2},{"$f":"(((AAMC_Raw_Data_for_FY22[[#This Row],[75th]]-AAMC_Raw_Data_for_FY22[[#This Row],[Median]])/25)*35) + AAMC_Raw_Data_for_FY22[[#This Row],[Median]]","v":116781.4},{"$f":"(((AAMC_Raw_Data_for_FY22[[#This Row],[75th]]-AAMC_Raw_Data_for_FY22[[#This Row],[Median]])/25)*40) + AAMC_Raw_Data_for_FY22[[#This Row],[Median]]","v":120541.6}]
[{"$f":"AAMC_Raw_Data_for_FY22[[#This Row],[Source]]&AAMC_Raw_Data_for_FY22[[#This Row],[Type]]&AAMC_Raw_Data_for_FY22[[#This Row],[School Subset]]&AAMC_Raw_Data_for_FY22[[#This Row],[Rank]]&AAMC_Raw_Data_for_FY22[[#This Row],[Degree]]&AAMC_Raw_Data_for_FY22[[#This Row],[Department / Specialty]]&\"L\"","v":"AAMCAcademicAllAssistantPhDPsychiatry: Child & AdolescentL"},"Psychiatry: Child & Adolescent",4,"AAMC","Academic","All","Assistant","PhD","2021-2022",108305,{"$f":"(((AAMC_Raw_Data_for_FY22[[#This Row],[Median]]-AAMC_Raw_Data_for_FY22[[#This Row],[25th]])/25)*5) + AAMC_Raw_Data_for_FY22[[#This Row],[25th]]","v":110002.4},{"$f":"(((AAMC_Raw_Data_for_FY22[[#This Row],[Median]]-AAMC_Raw_Data_for_FY22[[#This Row],[25th]])/25)*10) + AAMC_Raw_Data_for_FY22[[#This Row],[25th]]","v":111699.8},{"$f":"(((AAMC_Raw_Data_for_FY22[[#This Row],[Median]]-AAMC_Raw_Data_for_FY22[[#This Row],[25th]])/25)*15) + AAMC_Raw_Data_for_FY22[[#This Row],[25th]]","v":113397.2},{"$f":"(((AAMC_Raw_Data_for_FY22[[#This Row],[Median]]-AAMC_Raw_Data_for_FY22[[#This Row],[25th]])/25)*20) + AAMC_Raw_Data_for_FY22[[#This Row],[25th]]","v":115094.6},116792,{"$f":"(((AAMC_Raw_Data_for_FY22[[#This Row],[75th]]-AAMC_Raw_Data_for_FY22[[#This Row],[Median]])/25)*5) + AAMC_Raw_Data_for_FY22[[#This Row],[Median]]","v":119597.4},{"$f":"(((AAMC_Raw_Data_for_FY22[[#This Row],[75th]]-AAMC_Raw_Data_for_FY22[[#This Row],[Median]])/25)*10) + AAMC_Raw_Data_for_FY22[[#This Row],[Median]]","v":122402.8},{"$f":"(((AAMC_Raw_Data_for_FY22[[#This Row],[75th]]-AAMC_Raw_Data_for_FY22[[#This Row],[Median]])/25)*15) + AAMC_Raw_Data_for_FY22[[#This Row],[Median]]","v":125208.2},{"$f":"(((AAMC_Raw_Data_for_FY22[[#This Row],[75th]]-AAMC_Raw_Data_for_FY22[[#This Row],[Median]])/25)*20) + AAMC_Raw_Data_for_FY22[[#This Row],[Median]]","v":128013.6},130819,{"$f":"(((AAMC_Raw_Data_for_FY22[[#This Row],[75th]]-AAMC_Raw_Data_for_FY22[[#This Row],[Median]])/25)*30) + AAMC_Raw_Data_for_FY22[[#This Row],[Median]]","v":133624.4},{"$f":"(((AAMC_Raw_Data_for_FY22[[#This Row],[75th]]-AAMC_Raw_Data_for_FY22[[#This Row],[Median]])/25)*35) + AAMC_Raw_Data_for_FY22[[#This Row],[Median]]","v":136429.79999999999},{"$f":"(((AAMC_Raw_Data_for_FY22[[#This Row],[75th]]-AAMC_Raw_Data_for_FY22[[#This Row],[Median]])/25)*40) + AAMC_Raw_Data_for_FY22[[#This Row],[Median]]","v":139235.20000000001}]
[{"$f":"AAMC_Raw_Data_for_FY22[[#This Row],[Source]]&AAMC_Raw_Data_for_FY22[[#This Row],[Type]]&AAMC_Raw_Data_for_FY22[[#This Row],[School Subset]]&AAMC_Raw_Data_for_FY22[[#This Row],[Rank]]&AAMC_Raw_Data_for_FY22[[#This Row],[Degree]]&AAMC_Raw_Data_for_FY22[[#This Row],[Department / Specialty]]&\"L\"","v":"AAMCAcademicAllAssociatePhDPsychiatry: Child & AdolescentL"},"Psychiatry: Child & Adolescent",3,"AAMC","Academic","All","Associate","PhD","2021-2022",136513,{"$f":"(((AAMC_Raw_Data_for_FY22[[#This Row],[Median]]-AAMC_Raw_Data_for_FY22[[#This Row],[25th]])/25)*5) + AAMC_Raw_Data_for_FY22[[#This Row],[25th]]","v":139954.79999999999},{"$f":"(((AAMC_Raw_Data_for_FY22[[#This Row],[Median]]-AAMC_Raw_Data_for_FY22[[#This Row],[25th]])/25)*10) + AAMC_Raw_Data_for_FY22[[#This Row],[25th]]","v":143396.6},{"$f":"(((AAMC_Raw_Data_for_FY22[[#This Row],[Median]]-AAMC_Raw_Data_for_FY22[[#This Row],[25th]])/25)*15) + AAMC_Raw_Data_for_FY22[[#This Row],[25th]]","v":146838.39999999999},{"$f":"(((AAMC_Raw_Data_for_FY22[[#This Row],[Median]]-AAMC_Raw_Data_for_FY22[[#This Row],[25th]])/25)*20) + AAMC_Raw_Data_for_FY22[[#This Row],[25th]]","v":150280.20000000001},153722,{"$f":"(((AAMC_Raw_Data_for_FY22[[#This Row],[75th]]-AAMC_Raw_Data_for_FY22[[#This Row],[Median]])/25)*5) + AAMC_Raw_Data_for_FY22[[#This Row],[Median]]","v":156996.6},{"$f":"(((AAMC_Raw_Data_for_FY22[[#This Row],[75th]]-AAMC_Raw_Data_for_FY22[[#This Row],[Median]])/25)*10) + AAMC_Raw_Data_for_FY22[[#This Row],[Median]]","v":160271.20000000001},{"$f":"(((AAMC_Raw_Data_for_FY22[[#This Row],[75th]]-AAMC_Raw_Data_for_FY22[[#This Row],[Median]])/25)*15) + AAMC_Raw_Data_for_FY22[[#This Row],[Median]]","v":163545.79999999999},{"$f":"(((AAMC_Raw_Data_for_FY22[[#This Row],[75th]]-AAMC_Raw_Data_for_FY22[[#This Row],[Median]])/25)*20) + AAMC_Raw_Data_for_FY22[[#This Row],[Median]]","v":166820.4},170095,{"$f":"(((AAMC_Raw_Data_for_FY22[[#This Row],[75th]]-AAMC_Raw_Data_for_FY22[[#This Row],[Median]])/25)*30) + AAMC_Raw_Data_for_FY22[[#This Row],[Median]]","v":173369.60000000001},{"$f":"(((AAMC_Raw_Data_for_FY22[[#This Row],[75th]]-AAMC_Raw_Data_for_FY22[[#This Row],[Median]])/25)*35) + AAMC_Raw_Data_for_FY22[[#This Row],[Median]]","v":176644.2},{"$f":"(((AAMC_Raw_Data_for_FY22[[#This Row],[75th]]-AAMC_Raw_Data_for_FY22[[#This Row],[Median]])/25)*40) + AAMC_Raw_Data_for_FY22[[#This Row],[Median]]","v":179918.8}]
[{"$f":"AAMC_Raw_Data_for_FY22[[#This Row],[Source]]&AAMC_Raw_Data_for_FY22[[#This Row],[Type]]&AAMC_Raw_Data_for_FY22[[#This Row],[School Subset]]&AAMC_Raw_Data_for_FY22[[#This Row],[Rank]]&AAMC_Raw_Data_for_FY22[[#This Row],[Degree]]&AAMC_Raw_Data_for_FY22[[#This Row],[Department / Specialty]]&\"L\"","v":"AAMCAcademicAllProfessorPhDPsychiatry: Child & AdolescentL"},"Psychiatry: Child & Adolescent",2,"AAMC","Academic","All","Professor","PhD","2021-2022",202375,{"$f":"(((AAMC_Raw_Data_for_FY22[[#This Row],[Median]]-AAMC_Raw_Data_for_FY22[[#This Row],[25th]])/25)*5) + AAMC_Raw_Data_for_FY22[[#This Row],[25th]]","v":208280},{"$f":"(((AAMC_Raw_Data_for_FY22[[#This Row],[Median]]-AAMC_Raw_Data_for_FY22[[#This Row],[25th]])/25)*10) + AAMC_Raw_Data_for_FY22[[#This Row],[25th]]","v":214185},{"$f":"(((AAMC_Raw_Data_for_FY22[[#This Row],[Median]]-AAMC_Raw_Data_for_FY22[[#This Row],[25th]])/25)*15) + AAMC_Raw_Data_for_FY22[[#This Row],[25th]]","v":220090},{"$f":"(((AAMC_Raw_Data_for_FY22[[#This Row],[Median]]-AAMC_Raw_Data_for_FY22[[#This Row],[25th]])/25)*20) + AAMC_Raw_Data_for_FY22[[#This Row],[25th]]","v":225995},231900,{"$f":"(((AAMC_Raw_Data_for_FY22[[#This Row],[75th]]-AAMC_Raw_Data_for_FY22[[#This Row],[Median]])/25)*5) + AAMC_Raw_Data_for_FY22[[#This Row],[Median]]","v":239169.8},{"$f":"(((AAMC_Raw_Data_for_FY22[[#This Row],[75th]]-AAMC_Raw_Data_for_FY22[[#This Row],[Median]])/25)*10) + AAMC_Raw_Data_for_FY22[[#This Row],[Median]]","v":246439.6},{"$f":"(((AAMC_Raw_Data_for_FY22[[#This Row],[75th]]-AAMC_Raw_Data_for_FY22[[#This Row],[Median]])/25)*15) + AAMC_Raw_Data_for_FY22[[#This Row],[Median]]","v":253709.4},{"$f":"(((AAMC_Raw_Data_for_FY22[[#This Row],[75th]]-AAMC_Raw_Data_for_FY22[[#This Row],[Median]])/25)*20) + AAMC_Raw_Data_for_FY22[[#This Row],[Median]]","v":260979.20000000001},268249,{"$f":"(((AAMC_Raw_Data_for_FY22[[#This Row],[75th]]-AAMC_Raw_Data_for_FY22[[#This Row],[Median]])/25)*30) + AAMC_Raw_Data_for_FY22[[#This Row],[Median]]","v":275518.8},{"$f":"(((AAMC_Raw_Data_for_FY22[[#This Row],[75th]]-AAMC_Raw_Data_for_FY22[[#This Row],[Median]])/25)*35) + AAMC_Raw_Data_for_FY22[[#This Row],[Median]]","v":282788.59999999998},{"$f":"(((AAMC_Raw_Data_for_FY22[[#This Row],[75th]]-AAMC_Raw_Data_for_FY22[[#This Row],[Median]])/25)*40) + AAMC_Raw_Data_for_FY22[[#This Row],[Median]]","v":290058.40000000002}]
[{"$f":"AAMC_Raw_Data_for_FY22[[#This Row],[Source]]&AAMC_Raw_Data_for_FY22[[#This Row],[Type]]&AAMC_Raw_Data_for_FY22[[#This Row],[School Subset]]&AAMC_Raw_Data_for_FY22[[#This Row],[Rank]]&AAMC_Raw_Data_for_FY22[[#This Row],[Degree]]&AAMC_Raw_Data_for_FY22[[#This Row],[Department / Specialty]]&\"L\"","v":"AAMCAcademicAllChiefPhDPsychiatry: Child & AdolescentL"},"Psychiatry: Child & Adolescent",6,"AAMC","Academic","All","Chief","PhD","2021-2022",null,{"$f":"(((AAMC_Raw_Data_for_FY22[[#This Row],[Median]]-AAMC_Raw_Data_for_FY22[[#This Row],[25th]])/25)*5) + AAMC_Raw_Data_for_FY22[[#This Row],[25th]]","v":0},{"$f":"(((AAMC_Raw_Data_for_FY22[[#This Row],[Median]]-AAMC_Raw_Data_for_FY22[[#This Row],[25th]])/25)*10) + AAMC_Raw_Data_for_FY22[[#This Row],[25th]]","v":0},{"$f":"(((AAMC_Raw_Data_for_FY22[[#This Row],[Median]]-AAMC_Raw_Data_for_FY22[[#This Row],[25th]])/25)*15) + AAMC_Raw_Data_for_FY22[[#This Row],[25th]]","v":0},{"$f":"(((AAMC_Raw_Data_for_FY22[[#This Row],[Median]]-AAMC_Raw_Data_for_FY22[[#This Row],[25th]])/25)*20) + AAMC_Raw_Data_for_FY22[[#This Row],[25th]]","v":0},null,{"$f":"(((AAMC_Raw_Data_for_FY22[[#This Row],[75th]]-AAMC_Raw_Data_for_FY22[[#This Row],[Median]])/25)*5) + AAMC_Raw_Data_for_FY22[[#This Row],[Median]]","v":0},{"$f":"(((AAMC_Raw_Data_for_FY22[[#This Row],[75th]]-AAMC_Raw_Data_for_FY22[[#This Row],[Median]])/25)*10) + AAMC_Raw_Data_for_FY22[[#This Row],[Median]]","v":0},{"$f":"(((AAMC_Raw_Data_for_FY22[[#This Row],[75th]]-AAMC_Raw_Data_for_FY22[[#This Row],[Median]])/25)*15) + AAMC_Raw_Data_for_FY22[[#This Row],[Median]]","v":0},{"$f":"(((AAMC_Raw_Data_for_FY22[[#This Row],[75th]]-AAMC_Raw_Data_for_FY22[[#This Row],[Median]])/25)*20) + AAMC_Raw_Data_for_FY22[[#This Row],[Median]]","v":0},null,{"$f":"(((AAMC_Raw_Data_for_FY22[[#This Row],[75th]]-AAMC_Raw_Data_for_FY22[[#This Row],[Median]])/25)*30) + AAMC_Raw_Data_for_FY22[[#This Row],[Median]]","v":0},{"$f":"(((AAMC_Raw_Data_for_FY22[[#This Row],[75th]]-AAMC_Raw_Data_for_FY22[[#This Row],[Median]])/25)*35) + AAMC_Raw_Data_for_FY22[[#This Row],[Median]]","v":0},{"$f":"(((AAMC_Raw_Data_for_FY22[[#This Row],[75th]]-AAMC_Raw_Data_for_FY22[[#This Row],[Median]])/25)*40) + AAMC_Raw_Data_for_FY22[[#This Row],[Median]]","v":0}]
[{"$f":"AAMC_Raw_Data_for_FY22[[#This Row],[Source]]&AAMC_Raw_Data_for_FY22[[#This Row],[Type]]&AAMC_Raw_Data_for_FY22[[#This Row],[School Subset]]&AAMC_Raw_Data_for_FY22[[#This Row],[Rank]]&AAMC_Raw_Data_for_FY22[[#This Row],[Degree]]&AAMC_Raw_Data_for_FY22[[#This Row],[Department / Specialty]]&\"L\"","v":"AAMCAcademicAllInstructorPhDPsychiatry: GeneralL"},"Psychiatry: General",5,"AAMC","Academic","All","Instructor","PhD","2021-2022",85281,{"$f":"(((AAMC_Raw_Data_for_FY22[[#This Row],[Median]]-AAMC_Raw_Data_for_FY22[[#This Row],[25th]])/25)*5) + AAMC_Raw_Data_for_FY22[[#This Row],[25th]]","v":90051.6},{"$f":"(((AAMC_Raw_Data_for_FY22[[#This Row],[Median]]-AAMC_Raw_Data_for_FY22[[#This Row],[25th]])/25)*10) + AAMC_Raw_Data_for_FY22[[#This Row],[25th]]","v":94822.2},{"$f":"(((AAMC_Raw_Data_for_FY22[[#This Row],[Median]]-AAMC_Raw_Data_for_FY22[[#This Row],[25th]])/25)*15) + AAMC_Raw_Data_for_FY22[[#This Row],[25th]]","v":99592.8},{"$f":"(((AAMC_Raw_Data_for_FY22[[#This Row],[Median]]-AAMC_Raw_Data_for_FY22[[#This Row],[25th]])/25)*20) + AAMC_Raw_Data_for_FY22[[#This Row],[25th]]","v":104363.4},109134,{"$f":"(((AAMC_Raw_Data_for_FY22[[#This Row],[75th]]-AAMC_Raw_Data_for_FY22[[#This Row],[Median]])/25)*5) + AAMC_Raw_Data_for_FY22[[#This Row],[Median]]","v":114055.6},{"$f":"(((AAMC_Raw_Data_for_FY22[[#This Row],[75th]]-AAMC_Raw_Data_for_FY22[[#This Row],[Median]])/25)*10) + AAMC_Raw_Data_for_FY22[[#This Row],[Median]]","v":118977.2},{"$f":"(((AAMC_Raw_Data_for_FY22[[#This Row],[75th]]-AAMC_Raw_Data_for_FY22[[#This Row],[Median]])/25)*15) + AAMC_Raw_Data_for_FY22[[#This Row],[Median]]","v":123898.8},{"$f":"(((AAMC_Raw_Data_for_FY22[[#This Row],[75th]]-AAMC_Raw_Data_for_FY22[[#This Row],[Median]])/25)*20) + AAMC_Raw_Data_for_FY22[[#This Row],[Median]]","v":128820.4},133742,{"$f":"(((AAMC_Raw_Data_for_FY22[[#This Row],[75th]]-AAMC_Raw_Data_for_FY22[[#This Row],[Median]])/25)*30) + AAMC_Raw_Data_for_FY22[[#This Row],[Median]]","v":138663.6},{"$f":"(((AAMC_Raw_Data_for_FY22[[#This Row],[75th]]-AAMC_Raw_Data_for_FY22[[#This Row],[Median]])/25)*35) + AAMC_Raw_Data_for_FY22[[#This Row],[Median]]","v":143585.20000000001},{"$f":"(((AAMC_Raw_Data_for_FY22[[#This Row],[75th]]-AAMC_Raw_Data_for_FY22[[#This Row],[Median]])/25)*40) + AAMC_Raw_Data_for_FY22[[#This Row],[Median]]","v":148506.79999999999}]
[{"$f":"AAMC_Raw_Data_for_FY22[[#This Row],[Source]]&AAMC_Raw_Data_for_FY22[[#This Row],[Type]]&AAMC_Raw_Data_for_FY22[[#This Row],[School Subset]]&AAMC_Raw_Data_for_FY22[[#This Row],[Rank]]&AAMC_Raw_Data_for_FY22[[#This Row],[Degree]]&AAMC_Raw_Data_for_FY22[[#This Row],[Department / Specialty]]&\"L\"","v":"AAMCAcademicAllAssistantPhDPsychiatry: GeneralL"},"Psychiatry: General",4,"AAMC","Academic","All","Assistant","PhD","2021-2022",104019,{"$f":"(((AAMC_Raw_Data_for_FY22[[#This Row],[Median]]-AAMC_Raw_Data_for_FY22[[#This Row],[25th]])/25)*5) + AAMC_Raw_Data_for_FY22[[#This Row],[25th]]","v":105725.6},{"$f":"(((AAMC_Raw_Data_for_FY22[[#This Row],[Median]]-AAMC_Raw_Data_for_FY22[[#This Row],[25th]])/25)*10) + AAMC_Raw_Data_for_FY22[[#This Row],[25th]]","v":107432.2},{"$f":"(((AAMC_Raw_Data_for_FY22[[#This Row],[Median]]-AAMC_Raw_Data_for_FY22[[#This Row],[25th]])/25)*15) + AAMC_Raw_Data_for_FY22[[#This Row],[25th]]","v":109138.8},{"$f":"(((AAMC_Raw_Data_for_FY22[[#This Row],[Median]]-AAMC_Raw_Data_for_FY22[[#This Row],[25th]])/25)*20) + AAMC_Raw_Data_for_FY22[[#This Row],[25th]]","v":110845.4},112552,{"$f":"(((AAMC_Raw_Data_for_FY22[[#This Row],[75th]]-AAMC_Raw_Data_for_FY22[[#This Row],[Median]])/25)*5) + AAMC_Raw_Data_for_FY22[[#This Row],[Median]]","v":115481.8},{"$f":"(((AAMC_Raw_Data_for_FY22[[#This Row],[75th]]-AAMC_Raw_Data_for_FY22[[#This Row],[Median]])/25)*10) + AAMC_Raw_Data_for_FY22[[#This Row],[Median]]","v":118411.6},{"$f":"(((AAMC_Raw_Data_for_FY22[[#This Row],[75th]]-AAMC_Raw_Data_for_FY22[[#This Row],[Median]])/25)*15) + AAMC_Raw_Data_for_FY22[[#This Row],[Median]]","v":121341.4},{"$f":"(((AAMC_Raw_Data_for_FY22[[#This Row],[75th]]-AAMC_Raw_Data_for_FY22[[#This Row],[Median]])/25)*20) + AAMC_Raw_Data_for_FY22[[#This Row],[Median]]","v":124271.2},127201,{"$f":"(((AAMC_Raw_Data_for_FY22[[#This Row],[75th]]-AAMC_Raw_Data_for_FY22[[#This Row],[Median]])/25)*30) + AAMC_Raw_Data_for_FY22[[#This Row],[Median]]","v":130130.8},{"$f":"(((AAMC_Raw_Data_for_FY22[[#This Row],[75th]]-AAMC_Raw_Data_for_FY22[[#This Row],[Median]])/25)*35) + AAMC_Raw_Data_for_FY22[[#This Row],[Median]]","v":133060.6},{"$f":"(((AAMC_Raw_Data_for_FY22[[#This Row],[75th]]-AAMC_Raw_Data_for_FY22[[#This Row],[Median]])/25)*40) + AAMC_Raw_Data_for_FY22[[#This Row],[Median]]","v":135990.39999999999}]
[{"$f":"AAMC_Raw_Data_for_FY22[[#This Row],[Source]]&AAMC_Raw_Data_for_FY22[[#This Row],[Type]]&AAMC_Raw_Data_for_FY22[[#This Row],[School Subset]]&AAMC_Raw_Data_for_FY22[[#This Row],[Rank]]&AAMC_Raw_Data_for_FY22[[#This Row],[Degree]]&AAMC_Raw_Data_for_FY22[[#This Row],[Department / Specialty]]&\"L\"","v":"AAMCAcademicAllAssociatePhDPsychiatry: GeneralL"},"Psychiatry: General",3,"AAMC","Academic","All","Associate","PhD","2021-2022",129916,{"$f":"(((AAMC_Raw_Data_for_FY22[[#This Row],[Median]]-AAMC_Raw_Data_for_FY22[[#This Row],[25th]])/25)*5) + AAMC_Raw_Data_for_FY22[[#This Row],[25th]]","v":132932.79999999999},{"$f":"(((AAMC_Raw_Data_for_FY22[[#This Row],[Median]]-AAMC_Raw_Data_for_FY22[[#This Row],[25th]])/25)*10) + AAMC_Raw_Data_for_FY22[[#This Row],[25th]]","v":135949.6},{"$f":"(((AAMC_Raw_Data_for_FY22[[#This Row],[Median]]-AAMC_Raw_Data_for_FY22[[#This Row],[25th]])/25)*15) + AAMC_Raw_Data_for_FY22[[#This Row],[25th]]","v":138966.39999999999},{"$f":"(((AAMC_Raw_Data_for_FY22[[#This Row],[Median]]-AAMC_Raw_Data_for_FY22[[#This Row],[25th]])/25)*20) + AAMC_Raw_Data_for_FY22[[#This Row],[25th]]","v":141983.20000000001},145000,{"$f":"(((AAMC_Raw_Data_for_FY22[[#This Row],[75th]]-AAMC_Raw_Data_for_FY22[[#This Row],[Median]])/25)*5) + AAMC_Raw_Data_for_FY22[[#This Row],[Median]]","v":149989.79999999999},{"$f":"(((AAMC_Raw_Data_for_FY22[[#This Row],[75th]]-AAMC_Raw_Data_for_FY22[[#This Row],[Median]])/25)*10) + AAMC_Raw_Data_for_FY22[[#This Row],[Median]]","v":154979.6},{"$f":"(((AAMC_Raw_Data_for_FY22[[#This Row],[75th]]-AAMC_Raw_Data_for_FY22[[#This Row],[Median]])/25)*15) + AAMC_Raw_Data_for_FY22[[#This Row],[Median]]","v":159969.4},{"$f":"(((AAMC_Raw_Data_for_FY22[[#This Row],[75th]]-AAMC_Raw_Data_for_FY22[[#This Row],[Median]])/25)*20) + AAMC_Raw_Data_for_FY22[[#This Row],[Median]]","v":164959.20000000001},169949,{"$f":"(((AAMC_Raw_Data_for_FY22[[#This Row],[75th]]-AAMC_Raw_Data_for_FY22[[#This Row],[Median]])/25)*30) + AAMC_Raw_Data_for_FY22[[#This Row],[Median]]","v":174938.8},{"$f":"(((AAMC_Raw_Data_for_FY22[[#This Row],[75th]]-AAMC_Raw_Data_for_FY22[[#This Row],[Median]])/25)*35) + AAMC_Raw_Data_for_FY22[[#This Row],[Median]]","v":179928.6},{"$f":"(((AAMC_Raw_Data_for_FY22[[#This Row],[75th]]-AAMC_Raw_Data_for_FY22[[#This Row],[Median]])/25)*40) + AAMC_Raw_Data_for_FY22[[#This Row],[Median]]","v":184918.39999999999}]
[{"$f":"AAMC_Raw_Data_for_FY22[[#This Row],[Source]]&AAMC_Raw_Data_for_FY22[[#This Row],[Type]]&AAMC_Raw_Data_for_FY22[[#This Row],[School Subset]]&AAMC_Raw_Data_for_FY22[[#This Row],[Rank]]&AAMC_Raw_Data_for_FY22[[#This Row],[Degree]]&AAMC_Raw_Data_for_FY22[[#This Row],[Department / Specialty]]&\"L\"","v":"AAMCAcademicAllProfessorPhDPsychiatry: GeneralL"},"Psychiatry: General",2,"AAMC","Academic","All","Professor","PhD","2021-2022",184844,{"$f":"(((AAMC_Raw_Data_for_FY22[[#This Row],[Median]]-AAMC_Raw_Data_for_FY22[[#This Row],[25th]])/25)*5) + AAMC_Raw_Data_for_FY22[[#This Row],[25th]]","v":191433.4},{"$f":"(((AAMC_Raw_Data_for_FY22[[#This Row],[Median]]-AAMC_Raw_Data_for_FY22[[#This Row],[25th]])/25)*10) + AAMC_Raw_Data_for_FY22[[#This Row],[25th]]","v":198022.8},{"$f":"(((AAMC_Raw_Data_for_FY22[[#This Row],[Median]]-AAMC_Raw_Data_for_FY22[[#This Row],[25th]])/25)*15) + AAMC_Raw_Data_for_FY22[[#This Row],[25th]]","v":204612.2},{"$f":"(((AAMC_Raw_Data_for_FY22[[#This Row],[Median]]-AAMC_Raw_Data_for_FY22[[#This Row],[25th]])/25)*20) + AAMC_Raw_Data_for_FY22[[#This Row],[25th]]","v":211201.6},217791,{"$f":"(((AAMC_Raw_Data_for_FY22[[#This Row],[75th]]-AAMC_Raw_Data_for_FY22[[#This Row],[Median]])/25)*5) + AAMC_Raw_Data_for_FY22[[#This Row],[Median]]","v":228300.6},{"$f":"(((AAMC_Raw_Data_for_FY22[[#This Row],[75th]]-AAMC_Raw_Data_for_FY22[[#This Row],[Median]])/25)*10) + AAMC_Raw_Data_for_FY22[[#This Row],[Median]]","v":238810.2},{"$f":"(((AAMC_Raw_Data_for_FY22[[#This Row],[75th]]-AAMC_Raw_Data_for_FY22[[#This Row],[Median]])/25)*15) + AAMC_Raw_Data_for_FY22[[#This Row],[Median]]","v":249319.8},{"$f":"(((AAMC_Raw_Data_for_FY22[[#This Row],[75th]]-AAMC_Raw_Data_for_FY22[[#This Row],[Median]])/25)*20) + AAMC_Raw_Data_for_FY22[[#This Row],[Median]]","v":259829.4},270339,{"$f":"(((AAMC_Raw_Data_for_FY22[[#This Row],[75th]]-AAMC_Raw_Data_for_FY22[[#This Row],[Median]])/25)*30) + AAMC_Raw_Data_for_FY22[[#This Row],[Median]]","v":280848.59999999998},{"$f":"(((AAMC_Raw_Data_for_FY22[[#This Row],[75th]]-AAMC_Raw_Data_for_FY22[[#This Row],[Median]])/25)*35) + AAMC_Raw_Data_for_FY22[[#This Row],[Median]]","v":291358.2},{"$f":"(((AAMC_Raw_Data_for_FY22[[#This Row],[75th]]-AAMC_Raw_Data_for_FY22[[#This Row],[Median]])/25)*40) + AAMC_Raw_Data_for_FY22[[#This Row],[Median]]","v":301867.8}]
[{"$f":"AAMC_Raw_Data_for_FY22[[#This Row],[Source]]&AAMC_Raw_Data_for_FY22[[#This Row],[Type]]&AAMC_Raw_Data_for_FY22[[#This Row],[School Subset]]&AAMC_Raw_Data_for_FY22[[#This Row],[Rank]]&AAMC_Raw_Data_for_FY22[[#This Row],[Degree]]&AAMC_Raw_Data_for_FY22[[#This Row],[Department / Specialty]]&\"L\"","v":"AAMCAcademicAllChiefPhDPsychiatry: GeneralL"},"Psychiatry: General",6,"AAMC","Academic","All","Chief","PhD","2021-2022",202249,{"$f":"(((AAMC_Raw_Data_for_FY22[[#This Row],[Median]]-AAMC_Raw_Data_for_FY22[[#This Row],[25th]])/25)*5) + AAMC_Raw_Data_for_FY22[[#This Row],[25th]]","v":209799.2},{"$f":"(((AAMC_Raw_Data_for_FY22[[#This Row],[Median]]-AAMC_Raw_Data_for_FY22[[#This Row],[25th]])/25)*10) + AAMC_Raw_Data_for_FY22[[#This Row],[25th]]","v":217349.4},{"$f":"(((AAMC_Raw_Data_for_FY22[[#This Row],[Median]]-AAMC_Raw_Data_for_FY22[[#This Row],[25th]])/25)*15) + AAMC_Raw_Data_for_FY22[[#This Row],[25th]]","v":224899.6},{"$f":"(((AAMC_Raw_Data_for_FY22[[#This Row],[Median]]-AAMC_Raw_Data_for_FY22[[#This Row],[25th]])/25)*20) + AAMC_Raw_Data_for_FY22[[#This Row],[25th]]","v":232449.8},240000,{"$f":"(((AAMC_Raw_Data_for_FY22[[#This Row],[75th]]-AAMC_Raw_Data_for_FY22[[#This Row],[Median]])/25)*5) + AAMC_Raw_Data_for_FY22[[#This Row],[Median]]","v":244636.4},{"$f":"(((AAMC_Raw_Data_for_FY22[[#This Row],[75th]]-AAMC_Raw_Data_for_FY22[[#This Row],[Median]])/25)*10) + AAMC_Raw_Data_for_FY22[[#This Row],[Median]]","v":249272.8},{"$f":"(((AAMC_Raw_Data_for_FY22[[#This Row],[75th]]-AAMC_Raw_Data_for_FY22[[#This Row],[Median]])/25)*15) + AAMC_Raw_Data_for_FY22[[#This Row],[Median]]","v":253909.2},{"$f":"(((AAMC_Raw_Data_for_FY22[[#This Row],[75th]]-AAMC_Raw_Data_for_FY22[[#This Row],[Median]])/25)*20) + AAMC_Raw_Data_for_FY22[[#This Row],[Median]]","v":258545.6},263182,{"$f":"(((AAMC_Raw_Data_for_FY22[[#This Row],[75th]]-AAMC_Raw_Data_for_FY22[[#This Row],[Median]])/25)*30) + AAMC_Raw_Data_for_FY22[[#This Row],[Median]]","v":267818.40000000002},{"$f":"(((AAMC_Raw_Data_for_FY22[[#This Row],[75th]]-AAMC_Raw_Data_for_FY22[[#This Row],[Median]])/25)*35) + AAMC_Raw_Data_for_FY22[[#This Row],[Median]]","v":272454.8},{"$f":"(((AAMC_Raw_Data_for_FY22[[#This Row],[75th]]-AAMC_Raw_Data_for_FY22[[#This Row],[Median]])/25)*40) + AAMC_Raw_Data_for_FY22[[#This Row],[Median]]","v":277091.20000000001}]
[{"$f":"AAMC_Raw_Data_for_FY22[[#This Row],[Source]]&AAMC_Raw_Data_for_FY22[[#This Row],[Type]]&AAMC_Raw_Data_for_FY22[[#This Row],[School Subset]]&AAMC_Raw_Data_for_FY22[[#This Row],[Rank]]&AAMC_Raw_Data_for_FY22[[#This Row],[Degree]]&AAMC_Raw_Data_for_FY22[[#This Row],[Department / Specialty]]&\"L\"","v":"AAMCAcademicAllChairPhDPsychiatry: GeneralL"},"Psychiatry: General",1,"AAMC","Academic","All","Chair","PhD","2021-2022",null,{"$f":"(((AAMC_Raw_Data_for_FY22[[#This Row],[Median]]-AAMC_Raw_Data_for_FY22[[#This Row],[25th]])/25)*5) + AAMC_Raw_Data_for_FY22[[#This Row],[25th]]","v":0},{"$f":"(((AAMC_Raw_Data_for_FY22[[#This Row],[Median]]-AAMC_Raw_Data_for_FY22[[#This Row],[25th]])/25)*10) + AAMC_Raw_Data_for_FY22[[#This Row],[25th]]","v":0},{"$f":"(((AAMC_Raw_Data_for_FY22[[#This Row],[Median]]-AAMC_Raw_Data_for_FY22[[#This Row],[25th]])/25)*15) + AAMC_Raw_Data_for_FY22[[#This Row],[25th]]","v":0},{"$f":"(((AAMC_Raw_Data_for_FY22[[#This Row],[Median]]-AAMC_Raw_Data_for_FY22[[#This Row],[25th]])/25)*20) + AAMC_Raw_Data_for_FY22[[#This Row],[25th]]","v":0},null,{"$f":"(((AAMC_Raw_Data_for_FY22[[#This Row],[75th]]-AAMC_Raw_Data_for_FY22[[#This Row],[Median]])/25)*5) + AAMC_Raw_Data_for_FY22[[#This Row],[Median]]","v":0},{"$f":"(((AAMC_Raw_Data_for_FY22[[#This Row],[75th]]-AAMC_Raw_Data_for_FY22[[#This Row],[Median]])/25)*10) + AAMC_Raw_Data_for_FY22[[#This Row],[Median]]","v":0},{"$f":"(((AAMC_Raw_Data_for_FY22[[#This Row],[75th]]-AAMC_Raw_Data_for_FY22[[#This Row],[Median]])/25)*15) + AAMC_Raw_Data_for_FY22[[#This Row],[Median]]","v":0},{"$f":"(((AAMC_Raw_Data_for_FY22[[#This Row],[75th]]-AAMC_Raw_Data_for_FY22[[#This Row],[Median]])/25)*20) + AAMC_Raw_Data_for_FY22[[#This Row],[Median]]","v":0},null,{"$f":"(((AAMC_Raw_Data_for_FY22[[#This Row],[75th]]-AAMC_Raw_Data_for_FY22[[#This Row],[Median]])/25)*30) + AAMC_Raw_Data_for_FY22[[#This Row],[Median]]","v":0},{"$f":"(((AAMC_Raw_Data_for_FY22[[#This Row],[75th]]-AAMC_Raw_Data_for_FY22[[#This Row],[Median]])/25)*35) + AAMC_Raw_Data_for_FY22[[#This Row],[Median]]","v":0},{"$f":"(((AAMC_Raw_Data_for_FY22[[#This Row],[75th]]-AAMC_Raw_Data_for_FY22[[#This Row],[Median]])/25)*40) + AAMC_Raw_Data_for_FY22[[#This Row],[Median]]","v":0}]
[{"$f":"AAMC_Raw_Data_for_FY22[[#This Row],[Source]]&AAMC_Raw_Data_for_FY22[[#This Row],[Type]]&AAMC_Raw_Data_for_FY22[[#This Row],[School Subset]]&AAMC_Raw_Data_for_FY22[[#This Row],[Rank]]&AAMC_Raw_Data_for_FY22[[#This Row],[Degree]]&AAMC_Raw_Data_for_FY22[[#This Row],[Department / Specialty]]&\"L\"","v":"AAMCAcademicAllInstructorPhDPsychiatry: PsychologyL"},"Psychiatry: Psychology",5,"AAMC","Academic","All","Instructor","PhD","2021-2022",65300,{"$f":"(((AAMC_Raw_Data_for_FY22[[#This Row],[Median]]-AAMC_Raw_Data_for_FY22[[#This Row],[25th]])/25)*5) + AAMC_Raw_Data_for_FY22[[#This Row],[25th]]","v":70330},{"$f":"(((AAMC_Raw_Data_for_FY22[[#This Row],[Median]]-AAMC_Raw_Data_for_FY22[[#This Row],[25th]])/25)*10) + AAMC_Raw_Data_for_FY22[[#This Row],[25th]]","v":75360},{"$f":"(((AAMC_Raw_Data_for_FY22[[#This Row],[Median]]-AAMC_Raw_Data_for_FY22[[#This Row],[25th]])/25)*15) + AAMC_Raw_Data_for_FY22[[#This Row],[25th]]","v":80390},{"$f":"(((AAMC_Raw_Data_for_FY22[[#This Row],[Median]]-AAMC_Raw_Data_for_FY22[[#This Row],[25th]])/25)*20) + AAMC_Raw_Data_for_FY22[[#This Row],[25th]]","v":85420},90450,{"$f":"(((AAMC_Raw_Data_for_FY22[[#This Row],[75th]]-AAMC_Raw_Data_for_FY22[[#This Row],[Median]])/25)*5) + AAMC_Raw_Data_for_FY22[[#This Row],[Median]]","v":92649},{"$f":"(((AAMC_Raw_Data_for_FY22[[#This Row],[75th]]-AAMC_Raw_Data_for_FY22[[#This Row],[Median]])/25)*10) + AAMC_Raw_Data_for_FY22[[#This Row],[Median]]","v":94848},{"$f":"(((AAMC_Raw_Data_for_FY22[[#This Row],[75th]]-AAMC_Raw_Data_for_FY22[[#This Row],[Median]])/25)*15) + AAMC_Raw_Data_for_FY22[[#This Row],[Median]]","v":97047},{"$f":"(((AAMC_Raw_Data_for_FY22[[#This Row],[75th]]-AAMC_Raw_Data_for_FY22[[#This Row],[Median]])/25)*20) + AAMC_Raw_Data_for_FY22[[#This Row],[Median]]","v":99246},101445,{"$f":"(((AAMC_Raw_Data_for_FY22[[#This Row],[75th]]-AAMC_Raw_Data_for_FY22[[#This Row],[Median]])/25)*30) + AAMC_Raw_Data_for_FY22[[#This Row],[Median]]","v":103644},{"$f":"(((AAMC_Raw_Data_for_FY22[[#This Row],[75th]]-AAMC_Raw_Data_for_FY22[[#This Row],[Median]])/25)*35) + AAMC_Raw_Data_for_FY22[[#This Row],[Median]]","v":105843},{"$f":"(((AAMC_Raw_Data_for_FY22[[#This Row],[75th]]-AAMC_Raw_Data_for_FY22[[#This Row],[Median]])/25)*40) + AAMC_Raw_Data_for_FY22[[#This Row],[Median]]","v":108042}]
[{"$f":"AAMC_Raw_Data_for_FY22[[#This Row],[Source]]&AAMC_Raw_Data_for_FY22[[#This Row],[Type]]&AAMC_Raw_Data_for_FY22[[#This Row],[School Subset]]&AAMC_Raw_Data_for_FY22[[#This Row],[Rank]]&AAMC_Raw_Data_for_FY22[[#This Row],[Degree]]&AAMC_Raw_Data_for_FY22[[#This Row],[Department / Specialty]]&\"L\"","v":"AAMCAcademicAllAssistantPhDPsychiatry: PsychologyL"},"Psychiatry: Psychology",4,"AAMC","Academic","All","Assistant","PhD","2021-2022",103358,{"$f":"(((AAMC_Raw_Data_for_FY22[[#This Row],[Median]]-AAMC_Raw_Data_for_FY22[[#This Row],[25th]])/25)*5) + AAMC_Raw_Data_for_FY22[[#This Row],[25th]]","v":105764.8},{"$f":"(((AAMC_Raw_Data_for_FY22[[#This Row],[Median]]-AAMC_Raw_Data_for_FY22[[#This Row],[25th]])/25)*10) + AAMC_Raw_Data_for_FY22[[#This Row],[25th]]","v":108171.6},{"$f":"(((AAMC_Raw_Data_for_FY22[[#This Row],[Median]]-AAMC_Raw_Data_for_FY22[[#This Row],[25th]])/25)*15) + AAMC_Raw_Data_for_FY22[[#This Row],[25th]]","v":110578.4},{"$f":"(((AAMC_Raw_Data_for_FY22[[#This Row],[Median]]-AAMC_Raw_Data_for_FY22[[#This Row],[25th]])/25)*20) + AAMC_Raw_Data_for_FY22[[#This Row],[25th]]","v":112985.2},115392,{"$f":"(((AAMC_Raw_Data_for_FY22[[#This Row],[75th]]-AAMC_Raw_Data_for_FY22[[#This Row],[Median]])/25)*5) + AAMC_Raw_Data_for_FY22[[#This Row],[Median]]","v":118159.4},{"$f":"(((AAMC_Raw_Data_for_FY22[[#This Row],[75th]]-AAMC_Raw_Data_for_FY22[[#This Row],[Median]])/25)*10) + AAMC_Raw_Data_for_FY22[[#This Row],[Median]]","v":120926.8},{"$f":"(((AAMC_Raw_Data_for_FY22[[#This Row],[75th]]-AAMC_Raw_Data_for_FY22[[#This Row],[Median]])/25)*15) + AAMC_Raw_Data_for_FY22[[#This Row],[Median]]","v":123694.2},{"$f":"(((AAMC_Raw_Data_for_FY22[[#This Row],[75th]]-AAMC_Raw_Data_for_FY22[[#This Row],[Median]])/25)*20) + AAMC_Raw_Data_for_FY22[[#This Row],[Median]]","v":126461.6},129229,{"$f":"(((AAMC_Raw_Data_for_FY22[[#This Row],[75th]]-AAMC_Raw_Data_for_FY22[[#This Row],[Median]])/25)*30) + AAMC_Raw_Data_for_FY22[[#This Row],[Median]]","v":131996.4},{"$f":"(((AAMC_Raw_Data_for_FY22[[#This Row],[75th]]-AAMC_Raw_Data_for_FY22[[#This Row],[Median]])/25)*35) + AAMC_Raw_Data_for_FY22[[#This Row],[Median]]","v":134763.79999999999},{"$f":"(((AAMC_Raw_Data_for_FY22[[#This Row],[75th]]-AAMC_Raw_Data_for_FY22[[#This Row],[Median]])/25)*40) + AAMC_Raw_Data_for_FY22[[#This Row],[Median]]","v":137531.20000000001}]
[{"$f":"AAMC_Raw_Data_for_FY22[[#This Row],[Source]]&AAMC_Raw_Data_for_FY22[[#This Row],[Type]]&AAMC_Raw_Data_for_FY22[[#This Row],[School Subset]]&AAMC_Raw_Data_for_FY22[[#This Row],[Rank]]&AAMC_Raw_Data_for_FY22[[#This Row],[Degree]]&AAMC_Raw_Data_for_FY22[[#This Row],[Department / Specialty]]&\"L\"","v":"AAMCAcademicAllAssociatePhDPsychiatry: PsychologyL"},"Psychiatry: Psychology",3,"AAMC","Academic","All","Associate","PhD","2021-2022",130008,{"$f":"(((AAMC_Raw_Data_for_FY22[[#This Row],[Median]]-AAMC_Raw_Data_for_FY22[[#This Row],[25th]])/25)*5) + AAMC_Raw_Data_for_FY22[[#This Row],[25th]]","v":132973.4},{"$f":"(((AAMC_Raw_Data_for_FY22[[#This Row],[Median]]-AAMC_Raw_Data_for_FY22[[#This Row],[25th]])/25)*10) + AAMC_Raw_Data_for_FY22[[#This Row],[25th]]","v":135938.79999999999},{"$f":"(((AAMC_Raw_Data_for_FY22[[#This Row],[Median]]-AAMC_Raw_Data_for_FY22[[#This Row],[25th]])/25)*15) + AAMC_Raw_Data_for_FY22[[#This Row],[25th]]","v":138904.20000000001},{"$f":"(((AAMC_Raw_Data_for_FY22[[#This Row],[Median]]-AAMC_Raw_Data_for_FY22[[#This Row],[25th]])/25)*20) + AAMC_Raw_Data_for_FY22[[#This Row],[25th]]","v":141869.6},144835,{"$f":"(((AAMC_Raw_Data_for_FY22[[#This Row],[75th]]-AAMC_Raw_Data_for_FY22[[#This Row],[Median]])/25)*5) + AAMC_Raw_Data_for_FY22[[#This Row],[Median]]","v":149402.6},{"$f":"(((AAMC_Raw_Data_for_FY22[[#This Row],[75th]]-AAMC_Raw_Data_for_FY22[[#This Row],[Median]])/25)*10) + AAMC_Raw_Data_for_FY22[[#This Row],[Median]]","v":153970.20000000001},{"$f":"(((AAMC_Raw_Data_for_FY22[[#This Row],[75th]]-AAMC_Raw_Data_for_FY22[[#This Row],[Median]])/25)*15) + AAMC_Raw_Data_for_FY22[[#This Row],[Median]]","v":158537.79999999999},{"$f":"(((AAMC_Raw_Data_for_FY22[[#This Row],[75th]]-AAMC_Raw_Data_for_FY22[[#This Row],[Median]])/25)*20) + AAMC_Raw_Data_for_FY22[[#This Row],[Median]]","v":163105.4},167673,{"$f":"(((AAMC_Raw_Data_for_FY22[[#This Row],[75th]]-AAMC_Raw_Data_for_FY22[[#This Row],[Median]])/25)*30) + AAMC_Raw_Data_for_FY22[[#This Row],[Median]]","v":172240.6},{"$f":"(((AAMC_Raw_Data_for_FY22[[#This Row],[75th]]-AAMC_Raw_Data_for_FY22[[#This Row],[Median]])/25)*35) + AAMC_Raw_Data_for_FY22[[#This Row],[Median]]","v":176808.2},{"$f":"(((AAMC_Raw_Data_for_FY22[[#This Row],[75th]]-AAMC_Raw_Data_for_FY22[[#This Row],[Median]])/25)*40) + AAMC_Raw_Data_for_FY22[[#This Row],[Median]]","v":181375.8}]
[{"$f":"AAMC_Raw_Data_for_FY22[[#This Row],[Source]]&AAMC_Raw_Data_for_FY22[[#This Row],[Type]]&AAMC_Raw_Data_for_FY22[[#This Row],[School Subset]]&AAMC_Raw_Data_for_FY22[[#This Row],[Rank]]&AAMC_Raw_Data_for_FY22[[#This Row],[Degree]]&AAMC_Raw_Data_for_FY22[[#This Row],[Department / Specialty]]&\"L\"","v":"AAMCAcademicAllProfessorPhDPsychiatry: PsychologyL"},"Psychiatry: Psychology",2,"AAMC","Academic","All","Professor","PhD","2021-2022",180421,{"$f":"(((AAMC_Raw_Data_for_FY22[[#This Row],[Median]]-AAMC_Raw_Data_for_FY22[[#This Row],[25th]])/25)*5) + AAMC_Raw_Data_for_FY22[[#This Row],[25th]]","v":185509.4},{"$f":"(((AAMC_Raw_Data_for_FY22[[#This Row],[Median]]-AAMC_Raw_Data_for_FY22[[#This Row],[25th]])/25)*10) + AAMC_Raw_Data_for_FY22[[#This Row],[25th]]","v":190597.8},{"$f":"(((AAMC_Raw_Data_for_FY22[[#This Row],[Median]]-AAMC_Raw_Data_for_FY22[[#This Row],[25th]])/25)*15) + AAMC_Raw_Data_for_FY22[[#This Row],[25th]]","v":195686.2},{"$f":"(((AAMC_Raw_Data_for_FY22[[#This Row],[Median]]-AAMC_Raw_Data_for_FY22[[#This Row],[25th]])/25)*20) + AAMC_Raw_Data_for_FY22[[#This Row],[25th]]","v":200774.6},205863,{"$f":"(((AAMC_Raw_Data_for_FY22[[#This Row],[75th]]-AAMC_Raw_Data_for_FY22[[#This Row],[Median]])/25)*5) + AAMC_Raw_Data_for_FY22[[#This Row],[Median]]","v":214711.8},{"$f":"(((AAMC_Raw_Data_for_FY22[[#This Row],[75th]]-AAMC_Raw_Data_for_FY22[[#This Row],[Median]])/25)*10) + AAMC_Raw_Data_for_FY22[[#This Row],[Median]]","v":223560.6},{"$f":"(((AAMC_Raw_Data_for_FY22[[#This Row],[75th]]-AAMC_Raw_Data_for_FY22[[#This Row],[Median]])/25)*15) + AAMC_Raw_Data_for_FY22[[#This Row],[Median]]","v":232409.4},{"$f":"(((AAMC_Raw_Data_for_FY22[[#This Row],[75th]]-AAMC_Raw_Data_for_FY22[[#This Row],[Median]])/25)*20) + AAMC_Raw_Data_for_FY22[[#This Row],[Median]]","v":241258.2},250107,{"$f":"(((AAMC_Raw_Data_for_FY22[[#This Row],[75th]]-AAMC_Raw_Data_for_FY22[[#This Row],[Median]])/25)*30) + AAMC_Raw_Data_for_FY22[[#This Row],[Median]]","v":258955.8},{"$f":"(((AAMC_Raw_Data_for_FY22[[#This Row],[75th]]-AAMC_Raw_Data_for_FY22[[#This Row],[Median]])/25)*35) + AAMC_Raw_Data_for_FY22[[#This Row],[Median]]","v":267804.59999999998},{"$f":"(((AAMC_Raw_Data_for_FY22[[#This Row],[75th]]-AAMC_Raw_Data_for_FY22[[#This Row],[Median]])/25)*40) + AAMC_Raw_Data_for_FY22[[#This Row],[Median]]","v":276653.40000000002}]
[{"$f":"AAMC_Raw_Data_for_FY22[[#This Row],[Source]]&AAMC_Raw_Data_for_FY22[[#This Row],[Type]]&AAMC_Raw_Data_for_FY22[[#This Row],[School Subset]]&AAMC_Raw_Data_for_FY22[[#This Row],[Rank]]&AAMC_Raw_Data_for_FY22[[#This Row],[Degree]]&AAMC_Raw_Data_for_FY22[[#This Row],[Department / Specialty]]&\"L\"","v":"AAMCAcademicAllChiefPhDPsychiatry: PsychologyL"},"Psychiatry: Psychology",6,"AAMC","Academic","All","Chief","PhD","2021-2022",174033,{"$f":"(((AAMC_Raw_Data_for_FY22[[#This Row],[Median]]-AAMC_Raw_Data_for_FY22[[#This Row],[25th]])/25)*5) + AAMC_Raw_Data_for_FY22[[#This Row],[25th]]","v":179580},{"$f":"(((AAMC_Raw_Data_for_FY22[[#This Row],[Median]]-AAMC_Raw_Data_for_FY22[[#This Row],[25th]])/25)*10) + AAMC_Raw_Data_for_FY22[[#This Row],[25th]]","v":185127},{"$f":"(((AAMC_Raw_Data_for_FY22[[#This Row],[Median]]-AAMC_Raw_Data_for_FY22[[#This Row],[25th]])/25)*15) + AAMC_Raw_Data_for_FY22[[#This Row],[25th]]","v":190674},{"$f":"(((AAMC_Raw_Data_for_FY22[[#This Row],[Median]]-AAMC_Raw_Data_for_FY22[[#This Row],[25th]])/25)*20) + AAMC_Raw_Data_for_FY22[[#This Row],[25th]]","v":196221},201768,{"$f":"(((AAMC_Raw_Data_for_FY22[[#This Row],[75th]]-AAMC_Raw_Data_for_FY22[[#This Row],[Median]])/25)*5) + AAMC_Raw_Data_for_FY22[[#This Row],[Median]]","v":207565.8},{"$f":"(((AAMC_Raw_Data_for_FY22[[#This Row],[75th]]-AAMC_Raw_Data_for_FY22[[#This Row],[Median]])/25)*10) + AAMC_Raw_Data_for_FY22[[#This Row],[Median]]","v":213363.6},{"$f":"(((AAMC_Raw_Data_for_FY22[[#This Row],[75th]]-AAMC_Raw_Data_for_FY22[[#This Row],[Median]])/25)*15) + AAMC_Raw_Data_for_FY22[[#This Row],[Median]]","v":219161.4},{"$f":"(((AAMC_Raw_Data_for_FY22[[#This Row],[75th]]-AAMC_Raw_Data_for_FY22[[#This Row],[Median]])/25)*20) + AAMC_Raw_Data_for_FY22[[#This Row],[Median]]","v":224959.2},230757,{"$f":"(((AAMC_Raw_Data_for_FY22[[#This Row],[75th]]-AAMC_Raw_Data_for_FY22[[#This Row],[Median]])/25)*30) + AAMC_Raw_Data_for_FY22[[#This Row],[Median]]","v":236554.8},{"$f":"(((AAMC_Raw_Data_for_FY22[[#This Row],[75th]]-AAMC_Raw_Data_for_FY22[[#This Row],[Median]])/25)*35) + AAMC_Raw_Data_for_FY22[[#This Row],[Median]]","v":242352.6},{"$f":"(((AAMC_Raw_Data_for_FY22[[#This Row],[75th]]-AAMC_Raw_Data_for_FY22[[#This Row],[Median]])/25)*40) + AAMC_Raw_Data_for_FY22[[#This Row],[Median]]","v":248150.39999999999}]
[{"$f":"AAMC_Raw_Data_for_FY22[[#This Row],[Source]]&AAMC_Raw_Data_for_FY22[[#This Row],[Type]]&AAMC_Raw_Data_for_FY22[[#This Row],[School Subset]]&AAMC_Raw_Data_for_FY22[[#This Row],[Rank]]&AAMC_Raw_Data_for_FY22[[#This Row],[Degree]]&AAMC_Raw_Data_for_FY22[[#This Row],[Department / Specialty]]&\"L\"","v":"AAMCAcademicAllChairPhDPsychiatry: PsychologyL"},"Psychiatry: Psychology",1,"AAMC","Academic","All","Chair","PhD","2021-2022",null,{"$f":"(((AAMC_Raw_Data_for_FY22[[#This Row],[Median]]-AAMC_Raw_Data_for_FY22[[#This Row],[25th]])/25)*5) + AAMC_Raw_Data_for_FY22[[#This Row],[25th]]","v":0},{"$f":"(((AAMC_Raw_Data_for_FY22[[#This Row],[Median]]-AAMC_Raw_Data_for_FY22[[#This Row],[25th]])/25)*10) + AAMC_Raw_Data_for_FY22[[#This Row],[25th]]","v":0},{"$f":"(((AAMC_Raw_Data_for_FY22[[#This Row],[Median]]-AAMC_Raw_Data_for_FY22[[#This Row],[25th]])/25)*15) + AAMC_Raw_Data_for_FY22[[#This Row],[25th]]","v":0},{"$f":"(((AAMC_Raw_Data_for_FY22[[#This Row],[Median]]-AAMC_Raw_Data_for_FY22[[#This Row],[25th]])/25)*20) + AAMC_Raw_Data_for_FY22[[#This Row],[25th]]","v":0},null,{"$f":"(((AAMC_Raw_Data_for_FY22[[#This Row],[75th]]-AAMC_Raw_Data_for_FY22[[#This Row],[Median]])/25)*5) + AAMC_Raw_Data_for_FY22[[#This Row],[Median]]","v":0},{"$f":"(((AAMC_Raw_Data_for_FY22[[#This Row],[75th]]-AAMC_Raw_Data_for_FY22[[#This Row],[Median]])/25)*10) + AAMC_Raw_Data_for_FY22[[#This Row],[Median]]","v":0},{"$f":"(((AAMC_Raw_Data_for_FY22[[#This Row],[75th]]-AAMC_Raw_Data_for_FY22[[#This Row],[Median]])/25)*15) + AAMC_Raw_Data_for_FY22[[#This Row],[Median]]","v":0},{"$f":"(((AAMC_Raw_Data_for_FY22[[#This Row],[75th]]-AAMC_Raw_Data_for_FY22[[#This Row],[Median]])/25)*20) + AAMC_Raw_Data_for_FY22[[#This Row],[Median]]","v":0},null,{"$f":"(((AAMC_Raw_Data_for_FY22[[#This Row],[75th]]-AAMC_Raw_Data_for_FY22[[#This Row],[Median]])/25)*30) + AAMC_Raw_Data_for_FY22[[#This Row],[Median]]","v":0},{"$f":"(((AAMC_Raw_Data_for_FY22[[#This Row],[75th]]-AAMC_Raw_Data_for_FY22[[#This Row],[Median]])/25)*35) + AAMC_Raw_Data_for_FY22[[#This Row],[Median]]","v":0},{"$f":"(((AAMC_Raw_Data_for_FY22[[#This Row],[75th]]-AAMC_Raw_Data_for_FY22[[#This Row],[Median]])/25)*40) + AAMC_Raw_Data_for_FY22[[#This Row],[Median]]","v":0}]
[{"$f":"AAMC_Raw_Data_for_FY22[[#This Row],[Source]]&AAMC_Raw_Data_for_FY22[[#This Row],[Type]]&AAMC_Raw_Data_for_FY22[[#This Row],[School Subset]]&AAMC_Raw_Data_for_FY22[[#This Row],[Rank]]&AAMC_Raw_Data_for_FY22[[#This Row],[Degree]]&AAMC_Raw_Data_for_FY22[[#This Row],[Department / Specialty]]&\"L\"","v":"AAMCAcademicAllInstructorPhDPsychiatry: OtherL"},"Psychiatry: Other",5,"AAMC","Academic","All","Instructor","PhD","2021-2022",71955,{"$f":"(((AAMC_Raw_Data_for_FY22[[#This Row],[Median]]-AAMC_Raw_Data_for_FY22[[#This Row],[25th]])/25)*5) + AAMC_Raw_Data_for_FY22[[#This Row],[25th]]","v":75585.8},{"$f":"(((AAMC_Raw_Data_for_FY22[[#This Row],[Median]]-AAMC_Raw_Data_for_FY22[[#This Row],[25th]])/25)*10) + AAMC_Raw_Data_for_FY22[[#This Row],[25th]]","v":79216.600000000006},{"$f":"(((AAMC_Raw_Data_for_FY22[[#This Row],[Median]]-AAMC_Raw_Data_for_FY22[[#This Row],[25th]])/25)*15) + AAMC_Raw_Data_for_FY22[[#This Row],[25th]]","v":82847.399999999994},{"$f":"(((AAMC_Raw_Data_for_FY22[[#This Row],[Median]]-AAMC_Raw_Data_for_FY22[[#This Row],[25th]])/25)*20) + AAMC_Raw_Data_for_FY22[[#This Row],[25th]]","v":86478.2},90109,{"$f":"(((AAMC_Raw_Data_for_FY22[[#This Row],[75th]]-AAMC_Raw_Data_for_FY22[[#This Row],[Median]])/25)*5) + AAMC_Raw_Data_for_FY22[[#This Row],[Median]]","v":95548.6},{"$f":"(((AAMC_Raw_Data_for_FY22[[#This Row],[75th]]-AAMC_Raw_Data_for_FY22[[#This Row],[Median]])/25)*10) + AAMC_Raw_Data_for_FY22[[#This Row],[Median]]","v":100988.2},{"$f":"(((AAMC_Raw_Data_for_FY22[[#This Row],[75th]]-AAMC_Raw_Data_for_FY22[[#This Row],[Median]])/25)*15) + AAMC_Raw_Data_for_FY22[[#This Row],[Median]]","v":106427.8},{"$f":"(((AAMC_Raw_Data_for_FY22[[#This Row],[75th]]-AAMC_Raw_Data_for_FY22[[#This Row],[Median]])/25)*20) + AAMC_Raw_Data_for_FY22[[#This Row],[Median]]","v":111867.4},117307,{"$f":"(((AAMC_Raw_Data_for_FY22[[#This Row],[75th]]-AAMC_Raw_Data_for_FY22[[#This Row],[Median]])/25)*30) + AAMC_Raw_Data_for_FY22[[#This Row],[Median]]","v":122746.6},{"$f":"(((AAMC_Raw_Data_for_FY22[[#This Row],[75th]]-AAMC_Raw_Data_for_FY22[[#This Row],[Median]])/25)*35) + AAMC_Raw_Data_for_FY22[[#This Row],[Median]]","v":128186.20000000001},{"$f":"(((AAMC_Raw_Data_for_FY22[[#This Row],[75th]]-AAMC_Raw_Data_for_FY22[[#This Row],[Median]])/25)*40) + AAMC_Raw_Data_for_FY22[[#This Row],[Median]]","v":133625.79999999999}]
[{"$f":"AAMC_Raw_Data_for_FY22[[#This Row],[Source]]&AAMC_Raw_Data_for_FY22[[#This Row],[Type]]&AAMC_Raw_Data_for_FY22[[#This Row],[School Subset]]&AAMC_Raw_Data_for_FY22[[#This Row],[Rank]]&AAMC_Raw_Data_for_FY22[[#This Row],[Degree]]&AAMC_Raw_Data_for_FY22[[#This Row],[Department / Specialty]]&\"L\"","v":"AAMCAcademicAllAssistantPhDPsychiatry: OtherL"},"Psychiatry: Other",4,"AAMC","Academic","All","Assistant","PhD","2021-2022",95663,{"$f":"(((AAMC_Raw_Data_for_FY22[[#This Row],[Median]]-AAMC_Raw_Data_for_FY22[[#This Row],[25th]])/25)*5) + AAMC_Raw_Data_for_FY22[[#This Row],[25th]]","v":98530.4},{"$f":"(((AAMC_Raw_Data_for_FY22[[#This Row],[Median]]-AAMC_Raw_Data_for_FY22[[#This Row],[25th]])/25)*10) + AAMC_Raw_Data_for_FY22[[#This Row],[25th]]","v":101397.8},{"$f":"(((AAMC_Raw_Data_for_FY22[[#This Row],[Median]]-AAMC_Raw_Data_for_FY22[[#This Row],[25th]])/25)*15) + AAMC_Raw_Data_for_FY22[[#This Row],[25th]]","v":104265.2},{"$f":"(((AAMC_Raw_Data_for_FY22[[#This Row],[Median]]-AAMC_Raw_Data_for_FY22[[#This Row],[25th]])/25)*20) + AAMC_Raw_Data_for_FY22[[#This Row],[25th]]","v":107132.6},110000,{"$f":"(((AAMC_Raw_Data_for_FY22[[#This Row],[75th]]-AAMC_Raw_Data_for_FY22[[#This Row],[Median]])/25)*5) + AAMC_Raw_Data_for_FY22[[#This Row],[Median]]","v":113927.6},{"$f":"(((AAMC_Raw_Data_for_FY22[[#This Row],[75th]]-AAMC_Raw_Data_for_FY22[[#This Row],[Median]])/25)*10) + AAMC_Raw_Data_for_FY22[[#This Row],[Median]]","v":117855.2},{"$f":"(((AAMC_Raw_Data_for_FY22[[#This Row],[75th]]-AAMC_Raw_Data_for_FY22[[#This Row],[Median]])/25)*15) + AAMC_Raw_Data_for_FY22[[#This Row],[Median]]","v":121782.8},{"$f":"(((AAMC_Raw_Data_for_FY22[[#This Row],[75th]]-AAMC_Raw_Data_for_FY22[[#This Row],[Median]])/25)*20) + AAMC_Raw_Data_for_FY22[[#This Row],[Median]]","v":125710.39999999999},129638,{"$f":"(((AAMC_Raw_Data_for_FY22[[#This Row],[75th]]-AAMC_Raw_Data_for_FY22[[#This Row],[Median]])/25)*30) + AAMC_Raw_Data_for_FY22[[#This Row],[Median]]","v":133565.6},{"$f":"(((AAMC_Raw_Data_for_FY22[[#This Row],[75th]]-AAMC_Raw_Data_for_FY22[[#This Row],[Median]])/25)*35) + AAMC_Raw_Data_for_FY22[[#This Row],[Median]]","v":137493.20000000001},{"$f":"(((AAMC_Raw_Data_for_FY22[[#This Row],[75th]]-AAMC_Raw_Data_for_FY22[[#This Row],[Median]])/25)*40) + AAMC_Raw_Data_for_FY22[[#This Row],[Median]]","v":141420.79999999999}]
[{"$f":"AAMC_Raw_Data_for_FY22[[#This Row],[Source]]&AAMC_Raw_Data_for_FY22[[#This Row],[Type]]&AAMC_Raw_Data_for_FY22[[#This Row],[School Subset]]&AAMC_Raw_Data_for_FY22[[#This Row],[Rank]]&AAMC_Raw_Data_for_FY22[[#This Row],[Degree]]&AAMC_Raw_Data_for_FY22[[#This Row],[Department / Specialty]]&\"L\"","v":"AAMCAcademicAllAssociatePhDPsychiatry: OtherL"},"Psychiatry: Other",3,"AAMC","Academic","All","Associate","PhD","2021-2022",116632,{"$f":"(((AAMC_Raw_Data_for_FY22[[#This Row],[Median]]-AAMC_Raw_Data_for_FY22[[#This Row],[25th]])/25)*5) + AAMC_Raw_Data_for_FY22[[#This Row],[25th]]","v":122430.8},{"$f":"(((AAMC_Raw_Data_for_FY22[[#This Row],[Median]]-AAMC_Raw_Data_for_FY22[[#This Row],[25th]])/25)*10) + AAMC_Raw_Data_for_FY22[[#This Row],[25th]]","v":128229.6},{"$f":"(((AAMC_Raw_Data_for_FY22[[#This Row],[Median]]-AAMC_Raw_Data_for_FY22[[#This Row],[25th]])/25)*15) + AAMC_Raw_Data_for_FY22[[#This Row],[25th]]","v":134028.4},{"$f":"(((AAMC_Raw_Data_for_FY22[[#This Row],[Median]]-AAMC_Raw_Data_for_FY22[[#This Row],[25th]])/25)*20) + AAMC_Raw_Data_for_FY22[[#This Row],[25th]]","v":139827.20000000001},145626,{"$f":"(((AAMC_Raw_Data_for_FY22[[#This Row],[75th]]-AAMC_Raw_Data_for_FY22[[#This Row],[Median]])/25)*5) + AAMC_Raw_Data_for_FY22[[#This Row],[Median]]","v":150538.4},{"$f":"(((AAMC_Raw_Data_for_FY22[[#This Row],[75th]]-AAMC_Raw_Data_for_FY22[[#This Row],[Median]])/25)*10) + AAMC_Raw_Data_for_FY22[[#This Row],[Median]]","v":155450.79999999999},{"$f":"(((AAMC_Raw_Data_for_FY22[[#This Row],[75th]]-AAMC_Raw_Data_for_FY22[[#This Row],[Median]])/25)*15) + AAMC_Raw_Data_for_FY22[[#This Row],[Median]]","v":160363.20000000001},{"$f":"(((AAMC_Raw_Data_for_FY22[[#This Row],[75th]]-AAMC_Raw_Data_for_FY22[[#This Row],[Median]])/25)*20) + AAMC_Raw_Data_for_FY22[[#This Row],[Median]]","v":165275.6},170188,{"$f":"(((AAMC_Raw_Data_for_FY22[[#This Row],[75th]]-AAMC_Raw_Data_for_FY22[[#This Row],[Median]])/25)*30) + AAMC_Raw_Data_for_FY22[[#This Row],[Median]]","v":175100.4},{"$f":"(((AAMC_Raw_Data_for_FY22[[#This Row],[75th]]-AAMC_Raw_Data_for_FY22[[#This Row],[Median]])/25)*35) + AAMC_Raw_Data_for_FY22[[#This Row],[Median]]","v":180012.79999999999},{"$f":"(((AAMC_Raw_Data_for_FY22[[#This Row],[75th]]-AAMC_Raw_Data_for_FY22[[#This Row],[Median]])/25)*40) + AAMC_Raw_Data_for_FY22[[#This Row],[Median]]","v":184925.2}]
[{"$f":"AAMC_Raw_Data_for_FY22[[#This Row],[Source]]&AAMC_Raw_Data_for_FY22[[#This Row],[Type]]&AAMC_Raw_Data_for_FY22[[#This Row],[School Subset]]&AAMC_Raw_Data_for_FY22[[#This Row],[Rank]]&AAMC_Raw_Data_for_FY22[[#This Row],[Degree]]&AAMC_Raw_Data_for_FY22[[#This Row],[Department / Specialty]]&\"L\"","v":"AAMCAcademicAllProfessorPhDPsychiatry: OtherL"},"Psychiatry: Other",2,"AAMC","Academic","All","Professor","PhD","2021-2022",163126,{"$f":"(((AAMC_Raw_Data_for_FY22[[#This Row],[Median]]-AAMC_Raw_Data_for_FY22[[#This Row],[25th]])/25)*5) + AAMC_Raw_Data_for_FY22[[#This Row],[25th]]","v":170749},{"$f":"(((AAMC_Raw_Data_for_FY22[[#This Row],[Median]]-AAMC_Raw_Data_for_FY22[[#This Row],[25th]])/25)*10) + AAMC_Raw_Data_for_FY22[[#This Row],[25th]]","v":178372},{"$f":"(((AAMC_Raw_Data_for_FY22[[#This Row],[Median]]-AAMC_Raw_Data_for_FY22[[#This Row],[25th]])/25)*15) + AAMC_Raw_Data_for_FY22[[#This Row],[25th]]","v":185995},{"$f":"(((AAMC_Raw_Data_for_FY22[[#This Row],[Median]]-AAMC_Raw_Data_for_FY22[[#This Row],[25th]])/25)*20) + AAMC_Raw_Data_for_FY22[[#This Row],[25th]]","v":193618},201241,{"$f":"(((AAMC_Raw_Data_for_FY22[[#This Row],[75th]]-AAMC_Raw_Data_for_FY22[[#This Row],[Median]])/25)*5) + AAMC_Raw_Data_for_FY22[[#This Row],[Median]]","v":208593},{"$f":"(((AAMC_Raw_Data_for_FY22[[#This Row],[75th]]-AAMC_Raw_Data_for_FY22[[#This Row],[Median]])/25)*10) + AAMC_Raw_Data_for_FY22[[#This Row],[Median]]","v":215945},{"$f":"(((AAMC_Raw_Data_for_FY22[[#This Row],[75th]]-AAMC_Raw_Data_for_FY22[[#This Row],[Median]])/25)*15) + AAMC_Raw_Data_for_FY22[[#This Row],[Median]]","v":223297},{"$f":"(((AAMC_Raw_Data_for_FY22[[#This Row],[75th]]-AAMC_Raw_Data_for_FY22[[#This Row],[Median]])/25)*20) + AAMC_Raw_Data_for_FY22[[#This Row],[Median]]","v":230649},238001,{"$f":"(((AAMC_Raw_Data_for_FY22[[#This Row],[75th]]-AAMC_Raw_Data_for_FY22[[#This Row],[Median]])/25)*30) + AAMC_Raw_Data_for_FY22[[#This Row],[Median]]","v":245353},{"$f":"(((AAMC_Raw_Data_for_FY22[[#This Row],[75th]]-AAMC_Raw_Data_for_FY22[[#This Row],[Median]])/25)*35) + AAMC_Raw_Data_for_FY22[[#This Row],[Median]]","v":252705},{"$f":"(((AAMC_Raw_Data_for_FY22[[#This Row],[75th]]-AAMC_Raw_Data_for_FY22[[#This Row],[Median]])/25)*40) + AAMC_Raw_Data_for_FY22[[#This Row],[Median]]","v":260057}]
[{"$f":"AAMC_Raw_Data_for_FY22[[#This Row],[Source]]&AAMC_Raw_Data_for_FY22[[#This Row],[Type]]&AAMC_Raw_Data_for_FY22[[#This Row],[School Subset]]&AAMC_Raw_Data_for_FY22[[#This Row],[Rank]]&AAMC_Raw_Data_for_FY22[[#This Row],[Degree]]&AAMC_Raw_Data_for_FY22[[#This Row],[Department / Specialty]]&\"L\"","v":"AAMCAcademicAllChiefPhDPsychiatry: OtherL"},"Psychiatry: Other",6,"AAMC","Academic","All","Chief","PhD","2021-2022",null,{"$f":"(((AAMC_Raw_Data_for_FY22[[#This Row],[Median]]-AAMC_Raw_Data_for_FY22[[#This Row],[25th]])/25)*5) + AAMC_Raw_Data_for_FY22[[#This Row],[25th]]","v":0},{"$f":"(((AAMC_Raw_Data_for_FY22[[#This Row],[Median]]-AAMC_Raw_Data_for_FY22[[#This Row],[25th]])/25)*10) + AAMC_Raw_Data_for_FY22[[#This Row],[25th]]","v":0},{"$f":"(((AAMC_Raw_Data_for_FY22[[#This Row],[Median]]-AAMC_Raw_Data_for_FY22[[#This Row],[25th]])/25)*15) + AAMC_Raw_Data_for_FY22[[#This Row],[25th]]","v":0},{"$f":"(((AAMC_Raw_Data_for_FY22[[#This Row],[Median]]-AAMC_Raw_Data_for_FY22[[#This Row],[25th]])/25)*20) + AAMC_Raw_Data_for_FY22[[#This Row],[25th]]","v":0},null,{"$f":"(((AAMC_Raw_Data_for_FY22[[#This Row],[75th]]-AAMC_Raw_Data_for_FY22[[#This Row],[Median]])/25)*5) + AAMC_Raw_Data_for_FY22[[#This Row],[Median]]","v":0},{"$f":"(((AAMC_Raw_Data_for_FY22[[#This Row],[75th]]-AAMC_Raw_Data_for_FY22[[#This Row],[Median]])/25)*10) + AAMC_Raw_Data_for_FY22[[#This Row],[Median]]","v":0},{"$f":"(((AAMC_Raw_Data_for_FY22[[#This Row],[75th]]-AAMC_Raw_Data_for_FY22[[#This Row],[Median]])/25)*15) + AAMC_Raw_Data_for_FY22[[#This Row],[Median]]","v":0},{"$f":"(((AAMC_Raw_Data_for_FY22[[#This Row],[75th]]-AAMC_Raw_Data_for_FY22[[#This Row],[Median]])/25)*20) + AAMC_Raw_Data_for_FY22[[#This Row],[Median]]","v":0},null,{"$f":"(((AAMC_Raw_Data_for_FY22[[#This Row],[75th]]-AAMC_Raw_Data_for_FY22[[#This Row],[Median]])/25)*30) + AAMC_Raw_Data_for_FY22[[#This Row],[Median]]","v":0},{"$f":"(((AAMC_Raw_Data_for_FY22[[#This Row],[75th]]-AAMC_Raw_Data_for_FY22[[#This Row],[Median]])/25)*35) + AAMC_Raw_Data_for_FY22[[#This Row],[Median]]","v":0},{"$f":"(((AAMC_Raw_Data_for_FY22[[#This Row],[75th]]-AAMC_Raw_Data_for_FY22[[#This Row],[Median]])/25)*40) + AAMC_Raw_Data_for_FY22[[#This Row],[Median]]","v":0}]
[{"$f":"AAMC_Raw_Data_for_FY22[[#This Row],[Source]]&AAMC_Raw_Data_for_FY22[[#This Row],[Type]]&AAMC_Raw_Data_for_FY22[[#This Row],[School Subset]]&AAMC_Raw_Data_for_FY22[[#This Row],[Rank]]&AAMC_Raw_Data_for_FY22[[#This Row],[Degree]]&AAMC_Raw_Data_for_FY22[[#This Row],[Department / Specialty]]&\"L\"","v":"AAMCAcademicAllChairPhDPsychiatry: OtherL"},"Psychiatry: Other",1,"AAMC","Academic","All","Chair","PhD","2021-2022",null,{"$f":"(((AAMC_Raw_Data_for_FY22[[#This Row],[Median]]-AAMC_Raw_Data_for_FY22[[#This Row],[25th]])/25)*5) + AAMC_Raw_Data_for_FY22[[#This Row],[25th]]","v":0},{"$f":"(((AAMC_Raw_Data_for_FY22[[#This Row],[Median]]-AAMC_Raw_Data_for_FY22[[#This Row],[25th]])/25)*10) + AAMC_Raw_Data_for_FY22[[#This Row],[25th]]","v":0},{"$f":"(((AAMC_Raw_Data_for_FY22[[#This Row],[Median]]-AAMC_Raw_Data_for_FY22[[#This Row],[25th]])/25)*15) + AAMC_Raw_Data_for_FY22[[#This Row],[25th]]","v":0},{"$f":"(((AAMC_Raw_Data_for_FY22[[#This Row],[Median]]-AAMC_Raw_Data_for_FY22[[#This Row],[25th]])/25)*20) + AAMC_Raw_Data_for_FY22[[#This Row],[25th]]","v":0},null,{"$f":"(((AAMC_Raw_Data_for_FY22[[#This Row],[75th]]-AAMC_Raw_Data_for_FY22[[#This Row],[Median]])/25)*5) + AAMC_Raw_Data_for_FY22[[#This Row],[Median]]","v":0},{"$f":"(((AAMC_Raw_Data_for_FY22[[#This Row],[75th]]-AAMC_Raw_Data_for_FY22[[#This Row],[Median]])/25)*10) + AAMC_Raw_Data_for_FY22[[#This Row],[Median]]","v":0},{"$f":"(((AAMC_Raw_Data_for_FY22[[#This Row],[75th]]-AAMC_Raw_Data_for_FY22[[#This Row],[Median]])/25)*15) + AAMC_Raw_Data_for_FY22[[#This Row],[Median]]","v":0},{"$f":"(((AAMC_Raw_Data_for_FY22[[#This Row],[75th]]-AAMC_Raw_Data_for_FY22[[#This Row],[Median]])/25)*20) + AAMC_Raw_Data_for_FY22[[#This Row],[Median]]","v":0},null,{"$f":"(((AAMC_Raw_Data_for_FY22[[#This Row],[75th]]-AAMC_Raw_Data_for_FY22[[#This Row],[Median]])/25)*30) + AAMC_Raw_Data_for_FY22[[#This Row],[Median]]","v":0},{"$f":"(((AAMC_Raw_Data_for_FY22[[#This Row],[75th]]-AAMC_Raw_Data_for_FY22[[#This Row],[Median]])/25)*35) + AAMC_Raw_Data_for_FY22[[#This Row],[Median]]","v":0},{"$f":"(((AAMC_Raw_Data_for_FY22[[#This Row],[75th]]-AAMC_Raw_Data_for_FY22[[#This Row],[Median]])/25)*40) + AAMC_Raw_Data_for_FY22[[#This Row],[Median]]","v":0}]
[{"$f":"AAMC_Raw_Data_for_FY22[[#This Row],[Source]]&AAMC_Raw_Data_for_FY22[[#This Row],[Type]]&AAMC_Raw_Data_for_FY22[[#This Row],[School Subset]]&AAMC_Raw_Data_for_FY22[[#This Row],[Rank]]&AAMC_Raw_Data_for_FY22[[#This Row],[Degree]]&AAMC_Raw_Data_for_FY22[[#This Row],[Department / Specialty]]&\"L\"","v":"AAMCAcademicAllInstructorPhDRadiology TotalL"},"Radiology Total",5,"AAMC","Academic","All","Instructor","PhD","2021-2022",66245,{"$f":"(((AAMC_Raw_Data_for_FY22[[#This Row],[Median]]-AAMC_Raw_Data_for_FY22[[#This Row],[25th]])/25)*5) + AAMC_Raw_Data_for_FY22[[#This Row],[25th]]","v":68826},{"$f":"(((AAMC_Raw_Data_for_FY22[[#This Row],[Median]]-AAMC_Raw_Data_for_FY22[[#This Row],[25th]])/25)*10) + AAMC_Raw_Data_for_FY22[[#This Row],[25th]]","v":71407},{"$f":"(((AAMC_Raw_Data_for_FY22[[#This Row],[Median]]-AAMC_Raw_Data_for_FY22[[#This Row],[25th]])/25)*15) + AAMC_Raw_Data_for_FY22[[#This Row],[25th]]","v":73988},{"$f":"(((AAMC_Raw_Data_for_FY22[[#This Row],[Median]]-AAMC_Raw_Data_for_FY22[[#This Row],[25th]])/25)*20) + AAMC_Raw_Data_for_FY22[[#This Row],[25th]]","v":76569},79150,{"$f":"(((AAMC_Raw_Data_for_FY22[[#This Row],[75th]]-AAMC_Raw_Data_for_FY22[[#This Row],[Median]])/25)*5) + AAMC_Raw_Data_for_FY22[[#This Row],[Median]]","v":83384.399999999994},{"$f":"(((AAMC_Raw_Data_for_FY22[[#This Row],[75th]]-AAMC_Raw_Data_for_FY22[[#This Row],[Median]])/25)*10) + AAMC_Raw_Data_for_FY22[[#This Row],[Median]]","v":87618.8},{"$f":"(((AAMC_Raw_Data_for_FY22[[#This Row],[75th]]-AAMC_Raw_Data_for_FY22[[#This Row],[Median]])/25)*15) + AAMC_Raw_Data_for_FY22[[#This Row],[Median]]","v":91853.2},{"$f":"(((AAMC_Raw_Data_for_FY22[[#This Row],[75th]]-AAMC_Raw_Data_for_FY22[[#This Row],[Median]])/25)*20) + AAMC_Raw_Data_for_FY22[[#This Row],[Median]]","v":96087.6},100322,{"$f":"(((AAMC_Raw_Data_for_FY22[[#This Row],[75th]]-AAMC_Raw_Data_for_FY22[[#This Row],[Median]])/25)*30) + AAMC_Raw_Data_for_FY22[[#This Row],[Median]]","v":104556.4},{"$f":"(((AAMC_Raw_Data_for_FY22[[#This Row],[75th]]-AAMC_Raw_Data_for_FY22[[#This Row],[Median]])/25)*35) + AAMC_Raw_Data_for_FY22[[#This Row],[Median]]","v":108790.8},{"$f":"(((AAMC_Raw_Data_for_FY22[[#This Row],[75th]]-AAMC_Raw_Data_for_FY22[[#This Row],[Median]])/25)*40) + AAMC_Raw_Data_for_FY22[[#This Row],[Median]]","v":113025.2}]
[{"$f":"AAMC_Raw_Data_for_FY22[[#This Row],[Source]]&AAMC_Raw_Data_for_FY22[[#This Row],[Type]]&AAMC_Raw_Data_for_FY22[[#This Row],[School Subset]]&AAMC_Raw_Data_for_FY22[[#This Row],[Rank]]&AAMC_Raw_Data_for_FY22[[#This Row],[Degree]]&AAMC_Raw_Data_for_FY22[[#This Row],[Department / Specialty]]&\"L\"","v":"AAMCAcademicAllAssistantPhDRadiology TotalL"},"Radiology Total",4,"AAMC","Academic","All","Assistant","PhD","2021-2022",107922,{"$f":"(((AAMC_Raw_Data_for_FY22[[#This Row],[Median]]-AAMC_Raw_Data_for_FY22[[#This Row],[25th]])/25)*5) + AAMC_Raw_Data_for_FY22[[#This Row],[25th]]","v":116161},{"$f":"(((AAMC_Raw_Data_for_FY22[[#This Row],[Median]]-AAMC_Raw_Data_for_FY22[[#This Row],[25th]])/25)*10) + AAMC_Raw_Data_for_FY22[[#This Row],[25th]]","v":124400},{"$f":"(((AAMC_Raw_Data_for_FY22[[#This Row],[Median]]-AAMC_Raw_Data_for_FY22[[#This Row],[25th]])/25)*15) + AAMC_Raw_Data_for_FY22[[#This Row],[25th]]","v":132639},{"$f":"(((AAMC_Raw_Data_for_FY22[[#This Row],[Median]]-AAMC_Raw_Data_for_FY22[[#This Row],[25th]])/25)*20) + AAMC_Raw_Data_for_FY22[[#This Row],[25th]]","v":140878},149117,{"$f":"(((AAMC_Raw_Data_for_FY22[[#This Row],[75th]]-AAMC_Raw_Data_for_FY22[[#This Row],[Median]])/25)*5) + AAMC_Raw_Data_for_FY22[[#This Row],[Median]]","v":157163.6},{"$f":"(((AAMC_Raw_Data_for_FY22[[#This Row],[75th]]-AAMC_Raw_Data_for_FY22[[#This Row],[Median]])/25)*10) + AAMC_Raw_Data_for_FY22[[#This Row],[Median]]","v":165210.20000000001},{"$f":"(((AAMC_Raw_Data_for_FY22[[#This Row],[75th]]-AAMC_Raw_Data_for_FY22[[#This Row],[Median]])/25)*15) + AAMC_Raw_Data_for_FY22[[#This Row],[Median]]","v":173256.8},{"$f":"(((AAMC_Raw_Data_for_FY22[[#This Row],[75th]]-AAMC_Raw_Data_for_FY22[[#This Row],[Median]])/25)*20) + AAMC_Raw_Data_for_FY22[[#This Row],[Median]]","v":181303.4},189350,{"$f":"(((AAMC_Raw_Data_for_FY22[[#This Row],[75th]]-AAMC_Raw_Data_for_FY22[[#This Row],[Median]])/25)*30) + AAMC_Raw_Data_for_FY22[[#This Row],[Median]]","v":197396.6},{"$f":"(((AAMC_Raw_Data_for_FY22[[#This Row],[75th]]-AAMC_Raw_Data_for_FY22[[#This Row],[Median]])/25)*35) + AAMC_Raw_Data_for_FY22[[#This Row],[Median]]","v":205443.20000000001},{"$f":"(((AAMC_Raw_Data_for_FY22[[#This Row],[75th]]-AAMC_Raw_Data_for_FY22[[#This Row],[Median]])/25)*40) + AAMC_Raw_Data_for_FY22[[#This Row],[Median]]","v":213489.8}]
[{"$f":"AAMC_Raw_Data_for_FY22[[#This Row],[Source]]&AAMC_Raw_Data_for_FY22[[#This Row],[Type]]&AAMC_Raw_Data_for_FY22[[#This Row],[School Subset]]&AAMC_Raw_Data_for_FY22[[#This Row],[Rank]]&AAMC_Raw_Data_for_FY22[[#This Row],[Degree]]&AAMC_Raw_Data_for_FY22[[#This Row],[Department / Specialty]]&\"L\"","v":"AAMCAcademicAllAssociatePhDRadiology TotalL"},"Radiology Total",3,"AAMC","Academic","All","Associate","PhD","2021-2022",150000,{"$f":"(((AAMC_Raw_Data_for_FY22[[#This Row],[Median]]-AAMC_Raw_Data_for_FY22[[#This Row],[25th]])/25)*5) + AAMC_Raw_Data_for_FY22[[#This Row],[25th]]","v":157031.20000000001},{"$f":"(((AAMC_Raw_Data_for_FY22[[#This Row],[Median]]-AAMC_Raw_Data_for_FY22[[#This Row],[25th]])/25)*10) + AAMC_Raw_Data_for_FY22[[#This Row],[25th]]","v":164062.39999999999},{"$f":"(((AAMC_Raw_Data_for_FY22[[#This Row],[Median]]-AAMC_Raw_Data_for_FY22[[#This Row],[25th]])/25)*15) + AAMC_Raw_Data_for_FY22[[#This Row],[25th]]","v":171093.6},{"$f":"(((AAMC_Raw_Data_for_FY22[[#This Row],[Median]]-AAMC_Raw_Data_for_FY22[[#This Row],[25th]])/25)*20) + AAMC_Raw_Data_for_FY22[[#This Row],[25th]]","v":178124.79999999999},185156,{"$f":"(((AAMC_Raw_Data_for_FY22[[#This Row],[75th]]-AAMC_Raw_Data_for_FY22[[#This Row],[Median]])/25)*5) + AAMC_Raw_Data_for_FY22[[#This Row],[Median]]","v":194508.79999999999},{"$f":"(((AAMC_Raw_Data_for_FY22[[#This Row],[75th]]-AAMC_Raw_Data_for_FY22[[#This Row],[Median]])/25)*10) + AAMC_Raw_Data_for_FY22[[#This Row],[Median]]","v":203861.6},{"$f":"(((AAMC_Raw_Data_for_FY22[[#This Row],[75th]]-AAMC_Raw_Data_for_FY22[[#This Row],[Median]])/25)*15) + AAMC_Raw_Data_for_FY22[[#This Row],[Median]]","v":213214.4},{"$f":"(((AAMC_Raw_Data_for_FY22[[#This Row],[75th]]-AAMC_Raw_Data_for_FY22[[#This Row],[Median]])/25)*20) + AAMC_Raw_Data_for_FY22[[#This Row],[Median]]","v":222567.2},231920,{"$f":"(((AAMC_Raw_Data_for_FY22[[#This Row],[75th]]-AAMC_Raw_Data_for_FY22[[#This Row],[Median]])/25)*30) + AAMC_Raw_Data_for_FY22[[#This Row],[Median]]","v":241272.8},{"$f":"(((AAMC_Raw_Data_for_FY22[[#This Row],[75th]]-AAMC_Raw_Data_for_FY22[[#This Row],[Median]])/25)*35) + AAMC_Raw_Data_for_FY22[[#This Row],[Median]]","v":250625.6},{"$f":"(((AAMC_Raw_Data_for_FY22[[#This Row],[75th]]-AAMC_Raw_Data_for_FY22[[#This Row],[Median]])/25)*40) + AAMC_Raw_Data_for_FY22[[#This Row],[Median]]","v":259978.4}]
[{"$f":"AAMC_Raw_Data_for_FY22[[#This Row],[Source]]&AAMC_Raw_Data_for_FY22[[#This Row],[Type]]&AAMC_Raw_Data_for_FY22[[#This Row],[School Subset]]&AAMC_Raw_Data_for_FY22[[#This Row],[Rank]]&AAMC_Raw_Data_for_FY22[[#This Row],[Degree]]&AAMC_Raw_Data_for_FY22[[#This Row],[Department / Specialty]]&\"L\"","v":"AAMCAcademicAllProfessorPhDRadiology TotalL"},"Radiology Total",2,"AAMC","Academic","All","Professor","PhD","2021-2022",192571,{"$f":"(((AAMC_Raw_Data_for_FY22[[#This Row],[Median]]-AAMC_Raw_Data_for_FY22[[#This Row],[25th]])/25)*5) + AAMC_Raw_Data_for_FY22[[#This Row],[25th]]","v":201216.2},{"$f":"(((AAMC_Raw_Data_for_FY22[[#This Row],[Median]]-AAMC_Raw_Data_for_FY22[[#This Row],[25th]])/25)*10) + AAMC_Raw_Data_for_FY22[[#This Row],[25th]]","v":209861.4},{"$f":"(((AAMC_Raw_Data_for_FY22[[#This Row],[Median]]-AAMC_Raw_Data_for_FY22[[#This Row],[25th]])/25)*15) + AAMC_Raw_Data_for_FY22[[#This Row],[25th]]","v":218506.6},{"$f":"(((AAMC_Raw_Data_for_FY22[[#This Row],[Median]]-AAMC_Raw_Data_for_FY22[[#This Row],[25th]])/25)*20) + AAMC_Raw_Data_for_FY22[[#This Row],[25th]]","v":227151.8},235797,{"$f":"(((AAMC_Raw_Data_for_FY22[[#This Row],[75th]]-AAMC_Raw_Data_for_FY22[[#This Row],[Median]])/25)*5) + AAMC_Raw_Data_for_FY22[[#This Row],[Median]]","v":245122.4},{"$f":"(((AAMC_Raw_Data_for_FY22[[#This Row],[75th]]-AAMC_Raw_Data_for_FY22[[#This Row],[Median]])/25)*10) + AAMC_Raw_Data_for_FY22[[#This Row],[Median]]","v":254447.8},{"$f":"(((AAMC_Raw_Data_for_FY22[[#This Row],[75th]]-AAMC_Raw_Data_for_FY22[[#This Row],[Median]])/25)*15) + AAMC_Raw_Data_for_FY22[[#This Row],[Median]]","v":263773.2},{"$f":"(((AAMC_Raw_Data_for_FY22[[#This Row],[75th]]-AAMC_Raw_Data_for_FY22[[#This Row],[Median]])/25)*20) + AAMC_Raw_Data_for_FY22[[#This Row],[Median]]","v":273098.59999999998},282424,{"$f":"(((AAMC_Raw_Data_for_FY22[[#This Row],[75th]]-AAMC_Raw_Data_for_FY22[[#This Row],[Median]])/25)*30) + AAMC_Raw_Data_for_FY22[[#This Row],[Median]]","v":291749.40000000002},{"$f":"(((AAMC_Raw_Data_for_FY22[[#This Row],[75th]]-AAMC_Raw_Data_for_FY22[[#This Row],[Median]])/25)*35) + AAMC_Raw_Data_for_FY22[[#This Row],[Median]]","v":301074.8},{"$f":"(((AAMC_Raw_Data_for_FY22[[#This Row],[75th]]-AAMC_Raw_Data_for_FY22[[#This Row],[Median]])/25)*40) + AAMC_Raw_Data_for_FY22[[#This Row],[Median]]","v":310400.2}]
[{"$f":"AAMC_Raw_Data_for_FY22[[#This Row],[Source]]&AAMC_Raw_Data_for_FY22[[#This Row],[Type]]&AAMC_Raw_Data_for_FY22[[#This Row],[School Subset]]&AAMC_Raw_Data_for_FY22[[#This Row],[Rank]]&AAMC_Raw_Data_for_FY22[[#This Row],[Degree]]&AAMC_Raw_Data_for_FY22[[#This Row],[Department / Specialty]]&\"L\"","v":"AAMCAcademicAllChiefPhDRadiology TotalL"},"Radiology Total",6,"AAMC","Academic","All","Chief","PhD","2021-2022",253752,{"$f":"(((AAMC_Raw_Data_for_FY22[[#This Row],[Median]]-AAMC_Raw_Data_for_FY22[[#This Row],[25th]])/25)*5) + AAMC_Raw_Data_for_FY22[[#This Row],[25th]]","v":264864},{"$f":"(((AAMC_Raw_Data_for_FY22[[#This Row],[Median]]-AAMC_Raw_Data_for_FY22[[#This Row],[25th]])/25)*10) + AAMC_Raw_Data_for_FY22[[#This Row],[25th]]","v":275976},{"$f":"(((AAMC_Raw_Data_for_FY22[[#This Row],[Median]]-AAMC_Raw_Data_for_FY22[[#This Row],[25th]])/25)*15) + AAMC_Raw_Data_for_FY22[[#This Row],[25th]]","v":287088},{"$f":"(((AAMC_Raw_Data_for_FY22[[#This Row],[Median]]-AAMC_Raw_Data_for_FY22[[#This Row],[25th]])/25)*20) + AAMC_Raw_Data_for_FY22[[#This Row],[25th]]","v":298200},309312,{"$f":"(((AAMC_Raw_Data_for_FY22[[#This Row],[75th]]-AAMC_Raw_Data_for_FY22[[#This Row],[Median]])/25)*5) + AAMC_Raw_Data_for_FY22[[#This Row],[Median]]","v":322449.59999999998},{"$f":"(((AAMC_Raw_Data_for_FY22[[#This Row],[75th]]-AAMC_Raw_Data_for_FY22[[#This Row],[Median]])/25)*10) + AAMC_Raw_Data_for_FY22[[#This Row],[Median]]","v":335587.2},{"$f":"(((AAMC_Raw_Data_for_FY22[[#This Row],[75th]]-AAMC_Raw_Data_for_FY22[[#This Row],[Median]])/25)*15) + AAMC_Raw_Data_for_FY22[[#This Row],[Median]]","v":348724.8},{"$f":"(((AAMC_Raw_Data_for_FY22[[#This Row],[75th]]-AAMC_Raw_Data_for_FY22[[#This Row],[Median]])/25)*20) + AAMC_Raw_Data_for_FY22[[#This Row],[Median]]","v":361862.40000000002},375000,{"$f":"(((AAMC_Raw_Data_for_FY22[[#This Row],[75th]]-AAMC_Raw_Data_for_FY22[[#This Row],[Median]])/25)*30) + AAMC_Raw_Data_for_FY22[[#This Row],[Median]]","v":388137.6},{"$f":"(((AAMC_Raw_Data_for_FY22[[#This Row],[75th]]-AAMC_Raw_Data_for_FY22[[#This Row],[Median]])/25)*35) + AAMC_Raw_Data_for_FY22[[#This Row],[Median]]","v":401275.2},{"$f":"(((AAMC_Raw_Data_for_FY22[[#This Row],[75th]]-AAMC_Raw_Data_for_FY22[[#This Row],[Median]])/25)*40) + AAMC_Raw_Data_for_FY22[[#This Row],[Median]]","v":414412.79999999999}]
[{"$f":"AAMC_Raw_Data_for_FY22[[#This Row],[Source]]&AAMC_Raw_Data_for_FY22[[#This Row],[Type]]&AAMC_Raw_Data_for_FY22[[#This Row],[School Subset]]&AAMC_Raw_Data_for_FY22[[#This Row],[Rank]]&AAMC_Raw_Data_for_FY22[[#This Row],[Degree]]&AAMC_Raw_Data_for_FY22[[#This Row],[Department / Specialty]]&\"L\"","v":"AAMCAcademicAllInstructorPhDDiagnostic Radiology TotalL"},"Diagnostic Radiology Total",5,"AAMC","Academic","All","Instructor","PhD","2021-2022",null,{"$f":"(((AAMC_Raw_Data_for_FY22[[#This Row],[Median]]-AAMC_Raw_Data_for_FY22[[#This Row],[25th]])/25)*5) + AAMC_Raw_Data_for_FY22[[#This Row],[25th]]","v":0},{"$f":"(((AAMC_Raw_Data_for_FY22[[#This Row],[Median]]-AAMC_Raw_Data_for_FY22[[#This Row],[25th]])/25)*10) + AAMC_Raw_Data_for_FY22[[#This Row],[25th]]","v":0},{"$f":"(((AAMC_Raw_Data_for_FY22[[#This Row],[Median]]-AAMC_Raw_Data_for_FY22[[#This Row],[25th]])/25)*15) + AAMC_Raw_Data_for_FY22[[#This Row],[25th]]","v":0},{"$f":"(((AAMC_Raw_Data_for_FY22[[#This Row],[Median]]-AAMC_Raw_Data_for_FY22[[#This Row],[25th]])/25)*20) + AAMC_Raw_Data_for_FY22[[#This Row],[25th]]","v":0},null,{"$f":"(((AAMC_Raw_Data_for_FY22[[#This Row],[75th]]-AAMC_Raw_Data_for_FY22[[#This Row],[Median]])/25)*5) + AAMC_Raw_Data_for_FY22[[#This Row],[Median]]","v":0},{"$f":"(((AAMC_Raw_Data_for_FY22[[#This Row],[75th]]-AAMC_Raw_Data_for_FY22[[#This Row],[Median]])/25)*10) + AAMC_Raw_Data_for_FY22[[#This Row],[Median]]","v":0},{"$f":"(((AAMC_Raw_Data_for_FY22[[#This Row],[75th]]-AAMC_Raw_Data_for_FY22[[#This Row],[Median]])/25)*15) + AAMC_Raw_Data_for_FY22[[#This Row],[Median]]","v":0},{"$f":"(((AAMC_Raw_Data_for_FY22[[#This Row],[75th]]-AAMC_Raw_Data_for_FY22[[#This Row],[Median]])/25)*20) + AAMC_Raw_Data_for_FY22[[#This Row],[Median]]","v":0},null,{"$f":"(((AAMC_Raw_Data_for_FY22[[#This Row],[75th]]-AAMC_Raw_Data_for_FY22[[#This Row],[Median]])/25)*30) + AAMC_Raw_Data_for_FY22[[#This Row],[Median]]","v":0},{"$f":"(((AAMC_Raw_Data_for_FY22[[#This Row],[75th]]-AAMC_Raw_Data_for_FY22[[#This Row],[Median]])/25)*35) + AAMC_Raw_Data_for_FY22[[#This Row],[Median]]","v":0},{"$f":"(((AAMC_Raw_Data_for_FY22[[#This Row],[75th]]-AAMC_Raw_Data_for_FY22[[#This Row],[Median]])/25)*40) + AAMC_Raw_Data_for_FY22[[#This Row],[Median]]","v":0}]
[{"$f":"AAMC_Raw_Data_for_FY22[[#This Row],[Source]]&AAMC_Raw_Data_for_FY22[[#This Row],[Type]]&AAMC_Raw_Data_for_FY22[[#This Row],[School Subset]]&AAMC_Raw_Data_for_FY22[[#This Row],[Rank]]&AAMC_Raw_Data_for_FY22[[#This Row],[Degree]]&AAMC_Raw_Data_for_FY22[[#This Row],[Department / Specialty]]&\"L\"","v":"AAMCAcademicAllAssistantPhDDiagnostic Radiology TotalL"},"Diagnostic Radiology Total",4,"AAMC","Academic","All","Assistant","PhD","2021-2022",108763,{"$f":"(((AAMC_Raw_Data_for_FY22[[#This Row],[Median]]-AAMC_Raw_Data_for_FY22[[#This Row],[25th]])/25)*5) + AAMC_Raw_Data_for_FY22[[#This Row],[25th]]","v":112650.4},{"$f":"(((AAMC_Raw_Data_for_FY22[[#This Row],[Median]]-AAMC_Raw_Data_for_FY22[[#This Row],[25th]])/25)*10) + AAMC_Raw_Data_for_FY22[[#This Row],[25th]]","v":116537.8},{"$f":"(((AAMC_Raw_Data_for_FY22[[#This Row],[Median]]-AAMC_Raw_Data_for_FY22[[#This Row],[25th]])/25)*15) + AAMC_Raw_Data_for_FY22[[#This Row],[25th]]","v":120425.2},{"$f":"(((AAMC_Raw_Data_for_FY22[[#This Row],[Median]]-AAMC_Raw_Data_for_FY22[[#This Row],[25th]])/25)*20) + AAMC_Raw_Data_for_FY22[[#This Row],[25th]]","v":124312.6},128200,{"$f":"(((AAMC_Raw_Data_for_FY22[[#This Row],[75th]]-AAMC_Raw_Data_for_FY22[[#This Row],[Median]])/25)*5) + AAMC_Raw_Data_for_FY22[[#This Row],[Median]]","v":130253.6},{"$f":"(((AAMC_Raw_Data_for_FY22[[#This Row],[75th]]-AAMC_Raw_Data_for_FY22[[#This Row],[Median]])/25)*10) + AAMC_Raw_Data_for_FY22[[#This Row],[Median]]","v":132307.20000000001},{"$f":"(((AAMC_Raw_Data_for_FY22[[#This Row],[75th]]-AAMC_Raw_Data_for_FY22[[#This Row],[Median]])/25)*15) + AAMC_Raw_Data_for_FY22[[#This Row],[Median]]","v":134360.79999999999},{"$f":"(((AAMC_Raw_Data_for_FY22[[#This Row],[75th]]-AAMC_Raw_Data_for_FY22[[#This Row],[Median]])/25)*20) + AAMC_Raw_Data_for_FY22[[#This Row],[Median]]","v":136414.39999999999},138468,{"$f":"(((AAMC_Raw_Data_for_FY22[[#This Row],[75th]]-AAMC_Raw_Data_for_FY22[[#This Row],[Median]])/25)*30) + AAMC_Raw_Data_for_FY22[[#This Row],[Median]]","v":140521.60000000001},{"$f":"(((AAMC_Raw_Data_for_FY22[[#This Row],[75th]]-AAMC_Raw_Data_for_FY22[[#This Row],[Median]])/25)*35) + AAMC_Raw_Data_for_FY22[[#This Row],[Median]]","v":142575.20000000001},{"$f":"(((AAMC_Raw_Data_for_FY22[[#This Row],[75th]]-AAMC_Raw_Data_for_FY22[[#This Row],[Median]])/25)*40) + AAMC_Raw_Data_for_FY22[[#This Row],[Median]]","v":144628.79999999999}]
[{"$f":"AAMC_Raw_Data_for_FY22[[#This Row],[Source]]&AAMC_Raw_Data_for_FY22[[#This Row],[Type]]&AAMC_Raw_Data_for_FY22[[#This Row],[School Subset]]&AAMC_Raw_Data_for_FY22[[#This Row],[Rank]]&AAMC_Raw_Data_for_FY22[[#This Row],[Degree]]&AAMC_Raw_Data_for_FY22[[#This Row],[Department / Specialty]]&\"L\"","v":"AAMCAcademicAllAssociatePhDDiagnostic Radiology TotalL"},"Diagnostic Radiology Total",3,"AAMC","Academic","All","Associate","PhD","2021-2022",147886,{"$f":"(((AAMC_Raw_Data_for_FY22[[#This Row],[Median]]-AAMC_Raw_Data_for_FY22[[#This Row],[25th]])/25)*5) + AAMC_Raw_Data_for_FY22[[#This Row],[25th]]","v":151614.6},{"$f":"(((AAMC_Raw_Data_for_FY22[[#This Row],[Median]]-AAMC_Raw_Data_for_FY22[[#This Row],[25th]])/25)*10) + AAMC_Raw_Data_for_FY22[[#This Row],[25th]]","v":155343.20000000001},{"$f":"(((AAMC_Raw_Data_for_FY22[[#This Row],[Median]]-AAMC_Raw_Data_for_FY22[[#This Row],[25th]])/25)*15) + AAMC_Raw_Data_for_FY22[[#This Row],[25th]]","v":159071.79999999999},{"$f":"(((AAMC_Raw_Data_for_FY22[[#This Row],[Median]]-AAMC_Raw_Data_for_FY22[[#This Row],[25th]])/25)*20) + AAMC_Raw_Data_for_FY22[[#This Row],[25th]]","v":162800.4},166529,{"$f":"(((AAMC_Raw_Data_for_FY22[[#This Row],[75th]]-AAMC_Raw_Data_for_FY22[[#This Row],[Median]])/25)*5) + AAMC_Raw_Data_for_FY22[[#This Row],[Median]]","v":171964.6},{"$f":"(((AAMC_Raw_Data_for_FY22[[#This Row],[75th]]-AAMC_Raw_Data_for_FY22[[#This Row],[Median]])/25)*10) + AAMC_Raw_Data_for_FY22[[#This Row],[Median]]","v":177400.2},{"$f":"(((AAMC_Raw_Data_for_FY22[[#This Row],[75th]]-AAMC_Raw_Data_for_FY22[[#This Row],[Median]])/25)*15) + AAMC_Raw_Data_for_FY22[[#This Row],[Median]]","v":182835.8},{"$f":"(((AAMC_Raw_Data_for_FY22[[#This Row],[75th]]-AAMC_Raw_Data_for_FY22[[#This Row],[Median]])/25)*20) + AAMC_Raw_Data_for_FY22[[#This Row],[Median]]","v":188271.4},193707,{"$f":"(((AAMC_Raw_Data_for_FY22[[#This Row],[75th]]-AAMC_Raw_Data_for_FY22[[#This Row],[Median]])/25)*30) + AAMC_Raw_Data_for_FY22[[#This Row],[Median]]","v":199142.6},{"$f":"(((AAMC_Raw_Data_for_FY22[[#This Row],[75th]]-AAMC_Raw_Data_for_FY22[[#This Row],[Median]])/25)*35) + AAMC_Raw_Data_for_FY22[[#This Row],[Median]]","v":204578.2},{"$f":"(((AAMC_Raw_Data_for_FY22[[#This Row],[75th]]-AAMC_Raw_Data_for_FY22[[#This Row],[Median]])/25)*40) + AAMC_Raw_Data_for_FY22[[#This Row],[Median]]","v":210013.8}]
[{"$f":"AAMC_Raw_Data_for_FY22[[#This Row],[Source]]&AAMC_Raw_Data_for_FY22[[#This Row],[Type]]&AAMC_Raw_Data_for_FY22[[#This Row],[School Subset]]&AAMC_Raw_Data_for_FY22[[#This Row],[Rank]]&AAMC_Raw_Data_for_FY22[[#This Row],[Degree]]&AAMC_Raw_Data_for_FY22[[#This Row],[Department / Specialty]]&\"L\"","v":"AAMCAcademicAllProfessorPhDDiagnostic Radiology TotalL"},"Diagnostic Radiology Total",2,"AAMC","Academic","All","Professor","PhD","2021-2022",191475,{"$f":"(((AAMC_Raw_Data_for_FY22[[#This Row],[Median]]-AAMC_Raw_Data_for_FY22[[#This Row],[25th]])/25)*5) + AAMC_Raw_Data_for_FY22[[#This Row],[25th]]","v":196992.2},{"$f":"(((AAMC_Raw_Data_for_FY22[[#This Row],[Median]]-AAMC_Raw_Data_for_FY22[[#This Row],[25th]])/25)*10) + AAMC_Raw_Data_for_FY22[[#This Row],[25th]]","v":202509.4},{"$f":"(((AAMC_Raw_Data_for_FY22[[#This Row],[Median]]-AAMC_Raw_Data_for_FY22[[#This Row],[25th]])/25)*15) + AAMC_Raw_Data_for_FY22[[#This Row],[25th]]","v":208026.6},{"$f":"(((AAMC_Raw_Data_for_FY22[[#This Row],[Median]]-AAMC_Raw_Data_for_FY22[[#This Row],[25th]])/25)*20) + AAMC_Raw_Data_for_FY22[[#This Row],[25th]]","v":213543.8},219061,{"$f":"(((AAMC_Raw_Data_for_FY22[[#This Row],[75th]]-AAMC_Raw_Data_for_FY22[[#This Row],[Median]])/25)*5) + AAMC_Raw_Data_for_FY22[[#This Row],[Median]]","v":230351.6},{"$f":"(((AAMC_Raw_Data_for_FY22[[#This Row],[75th]]-AAMC_Raw_Data_for_FY22[[#This Row],[Median]])/25)*10) + AAMC_Raw_Data_for_FY22[[#This Row],[Median]]","v":241642.2},{"$f":"(((AAMC_Raw_Data_for_FY22[[#This Row],[75th]]-AAMC_Raw_Data_for_FY22[[#This Row],[Median]])/25)*15) + AAMC_Raw_Data_for_FY22[[#This Row],[Median]]","v":252932.8},{"$f":"(((AAMC_Raw_Data_for_FY22[[#This Row],[75th]]-AAMC_Raw_Data_for_FY22[[#This Row],[Median]])/25)*20) + AAMC_Raw_Data_for_FY22[[#This Row],[Median]]","v":264223.40000000002},275514,{"$f":"(((AAMC_Raw_Data_for_FY22[[#This Row],[75th]]-AAMC_Raw_Data_for_FY22[[#This Row],[Median]])/25)*30) + AAMC_Raw_Data_for_FY22[[#This Row],[Median]]","v":286804.59999999998},{"$f":"(((AAMC_Raw_Data_for_FY22[[#This Row],[75th]]-AAMC_Raw_Data_for_FY22[[#This Row],[Median]])/25)*35) + AAMC_Raw_Data_for_FY22[[#This Row],[Median]]","v":298095.2},{"$f":"(((AAMC_Raw_Data_for_FY22[[#This Row],[75th]]-AAMC_Raw_Data_for_FY22[[#This Row],[Median]])/25)*40) + AAMC_Raw_Data_for_FY22[[#This Row],[Median]]","v":309385.8}]
[{"$f":"AAMC_Raw_Data_for_FY22[[#This Row],[Source]]&AAMC_Raw_Data_for_FY22[[#This Row],[Type]]&AAMC_Raw_Data_for_FY22[[#This Row],[School Subset]]&AAMC_Raw_Data_for_FY22[[#This Row],[Rank]]&AAMC_Raw_Data_for_FY22[[#This Row],[Degree]]&AAMC_Raw_Data_for_FY22[[#This Row],[Department / Specialty]]&\"L\"","v":"AAMCAcademicAllChiefPhDDiagnostic Radiology TotalL"},"Diagnostic Radiology Total",6,"AAMC","Academic","All","Chief","PhD","2021-2022",null,{"$f":"(((AAMC_Raw_Data_for_FY22[[#This Row],[Median]]-AAMC_Raw_Data_for_FY22[[#This Row],[25th]])/25)*5) + AAMC_Raw_Data_for_FY22[[#This Row],[25th]]","v":0},{"$f":"(((AAMC_Raw_Data_for_FY22[[#This Row],[Median]]-AAMC_Raw_Data_for_FY22[[#This Row],[25th]])/25)*10) + AAMC_Raw_Data_for_FY22[[#This Row],[25th]]","v":0},{"$f":"(((AAMC_Raw_Data_for_FY22[[#This Row],[Median]]-AAMC_Raw_Data_for_FY22[[#This Row],[25th]])/25)*15) + AAMC_Raw_Data_for_FY22[[#This Row],[25th]]","v":0},{"$f":"(((AAMC_Raw_Data_for_FY22[[#This Row],[Median]]-AAMC_Raw_Data_for_FY22[[#This Row],[25th]])/25)*20) + AAMC_Raw_Data_for_FY22[[#This Row],[25th]]","v":0},null,{"$f":"(((AAMC_Raw_Data_for_FY22[[#This Row],[75th]]-AAMC_Raw_Data_for_FY22[[#This Row],[Median]])/25)*5) + AAMC_Raw_Data_for_FY22[[#This Row],[Median]]","v":0},{"$f":"(((AAMC_Raw_Data_for_FY22[[#This Row],[75th]]-AAMC_Raw_Data_for_FY22[[#This Row],[Median]])/25)*10) + AAMC_Raw_Data_for_FY22[[#This Row],[Median]]","v":0},{"$f":"(((AAMC_Raw_Data_for_FY22[[#This Row],[75th]]-AAMC_Raw_Data_for_FY22[[#This Row],[Median]])/25)*15) + AAMC_Raw_Data_for_FY22[[#This Row],[Median]]","v":0},{"$f":"(((AAMC_Raw_Data_for_FY22[[#This Row],[75th]]-AAMC_Raw_Data_for_FY22[[#This Row],[Median]])/25)*20) + AAMC_Raw_Data_for_FY22[[#This Row],[Median]]","v":0},null,{"$f":"(((AAMC_Raw_Data_for_FY22[[#This Row],[75th]]-AAMC_Raw_Data_for_FY22[[#This Row],[Median]])/25)*30) + AAMC_Raw_Data_for_FY22[[#This Row],[Median]]","v":0},{"$f":"(((AAMC_Raw_Data_for_FY22[[#This Row],[75th]]-AAMC_Raw_Data_for_FY22[[#This Row],[Median]])/25)*35) + AAMC_Raw_Data_for_FY22[[#This Row],[Median]]","v":0},{"$f":"(((AAMC_Raw_Data_for_FY22[[#This Row],[75th]]-AAMC_Raw_Data_for_FY22[[#This Row],[Median]])/25)*40) + AAMC_Raw_Data_for_FY22[[#This Row],[Median]]","v":0}]
[{"$f":"AAMC_Raw_Data_for_FY22[[#This Row],[Source]]&AAMC_Raw_Data_for_FY22[[#This Row],[Type]]&AAMC_Raw_Data_for_FY22[[#This Row],[School Subset]]&AAMC_Raw_Data_for_FY22[[#This Row],[Rank]]&AAMC_Raw_Data_for_FY22[[#This Row],[Degree]]&AAMC_Raw_Data_for_FY22[[#This Row],[Department / Specialty]]&\"L\"","v":"AAMCAcademicAllAssistantPhDDiagnostic Radiology: InterventionalL"},"Diagnostic Radiology: Interventional",4,"AAMC","Academic","All","Assistant","PhD","2021-2022",109250,{"$f":"(((AAMC_Raw_Data_for_FY22[[#This Row],[Median]]-AAMC_Raw_Data_for_FY22[[#This Row],[25th]])/25)*5) + AAMC_Raw_Data_for_FY22[[#This Row],[25th]]","v":111900},{"$f":"(((AAMC_Raw_Data_for_FY22[[#This Row],[Median]]-AAMC_Raw_Data_for_FY22[[#This Row],[25th]])/25)*10) + AAMC_Raw_Data_for_FY22[[#This Row],[25th]]","v":114550},{"$f":"(((AAMC_Raw_Data_for_FY22[[#This Row],[Median]]-AAMC_Raw_Data_for_FY22[[#This Row],[25th]])/25)*15) + AAMC_Raw_Data_for_FY22[[#This Row],[25th]]","v":117200},{"$f":"(((AAMC_Raw_Data_for_FY22[[#This Row],[Median]]-AAMC_Raw_Data_for_FY22[[#This Row],[25th]])/25)*20) + AAMC_Raw_Data_for_FY22[[#This Row],[25th]]","v":119850},122500,{"$f":"(((AAMC_Raw_Data_for_FY22[[#This Row],[75th]]-AAMC_Raw_Data_for_FY22[[#This Row],[Median]])/25)*5) + AAMC_Raw_Data_for_FY22[[#This Row],[Median]]","v":127493.6},{"$f":"(((AAMC_Raw_Data_for_FY22[[#This Row],[75th]]-AAMC_Raw_Data_for_FY22[[#This Row],[Median]])/25)*10) + AAMC_Raw_Data_for_FY22[[#This Row],[Median]]","v":132487.20000000001},{"$f":"(((AAMC_Raw_Data_for_FY22[[#This Row],[75th]]-AAMC_Raw_Data_for_FY22[[#This Row],[Median]])/25)*15) + AAMC_Raw_Data_for_FY22[[#This Row],[Median]]","v":137480.79999999999},{"$f":"(((AAMC_Raw_Data_for_FY22[[#This Row],[75th]]-AAMC_Raw_Data_for_FY22[[#This Row],[Median]])/25)*20) + AAMC_Raw_Data_for_FY22[[#This Row],[Median]]","v":142474.4},147468,{"$f":"(((AAMC_Raw_Data_for_FY22[[#This Row],[75th]]-AAMC_Raw_Data_for_FY22[[#This Row],[Median]])/25)*30) + AAMC_Raw_Data_for_FY22[[#This Row],[Median]]","v":152461.6},{"$f":"(((AAMC_Raw_Data_for_FY22[[#This Row],[75th]]-AAMC_Raw_Data_for_FY22[[#This Row],[Median]])/25)*35) + AAMC_Raw_Data_for_FY22[[#This Row],[Median]]","v":157455.20000000001},{"$f":"(((AAMC_Raw_Data_for_FY22[[#This Row],[75th]]-AAMC_Raw_Data_for_FY22[[#This Row],[Median]])/25)*40) + AAMC_Raw_Data_for_FY22[[#This Row],[Median]]","v":162448.79999999999}]
[{"$f":"AAMC_Raw_Data_for_FY22[[#This Row],[Source]]&AAMC_Raw_Data_for_FY22[[#This Row],[Type]]&AAMC_Raw_Data_for_FY22[[#This Row],[School Subset]]&AAMC_Raw_Data_for_FY22[[#This Row],[Rank]]&AAMC_Raw_Data_for_FY22[[#This Row],[Degree]]&AAMC_Raw_Data_for_FY22[[#This Row],[Department / Specialty]]&\"L\"","v":"AAMCAcademicAllAssociatePhDDiagnostic Radiology: InterventionalL"},"Diagnostic Radiology: Interventional",3,"AAMC","Academic","All","Associate","PhD","2021-2022",null,{"$f":"(((AAMC_Raw_Data_for_FY22[[#This Row],[Median]]-AAMC_Raw_Data_for_FY22[[#This Row],[25th]])/25)*5) + AAMC_Raw_Data_for_FY22[[#This Row],[25th]]","v":0},{"$f":"(((AAMC_Raw_Data_for_FY22[[#This Row],[Median]]-AAMC_Raw_Data_for_FY22[[#This Row],[25th]])/25)*10) + AAMC_Raw_Data_for_FY22[[#This Row],[25th]]","v":0},{"$f":"(((AAMC_Raw_Data_for_FY22[[#This Row],[Median]]-AAMC_Raw_Data_for_FY22[[#This Row],[25th]])/25)*15) + AAMC_Raw_Data_for_FY22[[#This Row],[25th]]","v":0},{"$f":"(((AAMC_Raw_Data_for_FY22[[#This Row],[Median]]-AAMC_Raw_Data_for_FY22[[#This Row],[25th]])/25)*20) + AAMC_Raw_Data_for_FY22[[#This Row],[25th]]","v":0},null,{"$f":"(((AAMC_Raw_Data_for_FY22[[#This Row],[75th]]-AAMC_Raw_Data_for_FY22[[#This Row],[Median]])/25)*5) + AAMC_Raw_Data_for_FY22[[#This Row],[Median]]","v":0},{"$f":"(((AAMC_Raw_Data_for_FY22[[#This Row],[75th]]-AAMC_Raw_Data_for_FY22[[#This Row],[Median]])/25)*10) + AAMC_Raw_Data_for_FY22[[#This Row],[Median]]","v":0},{"$f":"(((AAMC_Raw_Data_for_FY22[[#This Row],[75th]]-AAMC_Raw_Data_for_FY22[[#This Row],[Median]])/25)*15) + AAMC_Raw_Data_for_FY22[[#This Row],[Median]]","v":0},{"$f":"(((AAMC_Raw_Data_for_FY22[[#This Row],[75th]]-AAMC_Raw_Data_for_FY22[[#This Row],[Median]])/25)*20) + AAMC_Raw_Data_for_FY22[[#This Row],[Median]]","v":0},null,{"$f":"(((AAMC_Raw_Data_for_FY22[[#This Row],[75th]]-AAMC_Raw_Data_for_FY22[[#This Row],[Median]])/25)*30) + AAMC_Raw_Data_for_FY22[[#This Row],[Median]]","v":0},{"$f":"(((AAMC_Raw_Data_for_FY22[[#This Row],[75th]]-AAMC_Raw_Data_for_FY22[[#This Row],[Median]])/25)*35) + AAMC_Raw_Data_for_FY22[[#This Row],[Median]]","v":0},{"$f":"(((AAMC_Raw_Data_for_FY22[[#This Row],[75th]]-AAMC_Raw_Data_for_FY22[[#This Row],[Median]])/25)*40) + AAMC_Raw_Data_for_FY22[[#This Row],[Median]]","v":0}]
[{"$f":"AAMC_Raw_Data_for_FY22[[#This Row],[Source]]&AAMC_Raw_Data_for_FY22[[#This Row],[Type]]&AAMC_Raw_Data_for_FY22[[#This Row],[School Subset]]&AAMC_Raw_Data_for_FY22[[#This Row],[Rank]]&AAMC_Raw_Data_for_FY22[[#This Row],[Degree]]&AAMC_Raw_Data_for_FY22[[#This Row],[Department / Specialty]]&\"L\"","v":"AAMCAcademicAllProfessorPhDDiagnostic Radiology: InterventionalL"},"Diagnostic Radiology: Interventional",2,"AAMC","Academic","All","Professor","PhD","2021-2022",null,{"$f":"(((AAMC_Raw_Data_for_FY22[[#This Row],[Median]]-AAMC_Raw_Data_for_FY22[[#This Row],[25th]])/25)*5) + AAMC_Raw_Data_for_FY22[[#This Row],[25th]]","v":0},{"$f":"(((AAMC_Raw_Data_for_FY22[[#This Row],[Median]]-AAMC_Raw_Data_for_FY22[[#This Row],[25th]])/25)*10) + AAMC_Raw_Data_for_FY22[[#This Row],[25th]]","v":0},{"$f":"(((AAMC_Raw_Data_for_FY22[[#This Row],[Median]]-AAMC_Raw_Data_for_FY22[[#This Row],[25th]])/25)*15) + AAMC_Raw_Data_for_FY22[[#This Row],[25th]]","v":0},{"$f":"(((AAMC_Raw_Data_for_FY22[[#This Row],[Median]]-AAMC_Raw_Data_for_FY22[[#This Row],[25th]])/25)*20) + AAMC_Raw_Data_for_FY22[[#This Row],[25th]]","v":0},null,{"$f":"(((AAMC_Raw_Data_for_FY22[[#This Row],[75th]]-AAMC_Raw_Data_for_FY22[[#This Row],[Median]])/25)*5) + AAMC_Raw_Data_for_FY22[[#This Row],[Median]]","v":0},{"$f":"(((AAMC_Raw_Data_for_FY22[[#This Row],[75th]]-AAMC_Raw_Data_for_FY22[[#This Row],[Median]])/25)*10) + AAMC_Raw_Data_for_FY22[[#This Row],[Median]]","v":0},{"$f":"(((AAMC_Raw_Data_for_FY22[[#This Row],[75th]]-AAMC_Raw_Data_for_FY22[[#This Row],[Median]])/25)*15) + AAMC_Raw_Data_for_FY22[[#This Row],[Median]]","v":0},{"$f":"(((AAMC_Raw_Data_for_FY22[[#This Row],[75th]]-AAMC_Raw_Data_for_FY22[[#This Row],[Median]])/25)*20) + AAMC_Raw_Data_for_FY22[[#This Row],[Median]]","v":0},null,{"$f":"(((AAMC_Raw_Data_for_FY22[[#This Row],[75th]]-AAMC_Raw_Data_for_FY22[[#This Row],[Median]])/25)*30) + AAMC_Raw_Data_for_FY22[[#This Row],[Median]]","v":0},{"$f":"(((AAMC_Raw_Data_for_FY22[[#This Row],[75th]]-AAMC_Raw_Data_for_FY22[[#This Row],[Median]])/25)*35) + AAMC_Raw_Data_for_FY22[[#This Row],[Median]]","v":0},{"$f":"(((AAMC_Raw_Data_for_FY22[[#This Row],[75th]]-AAMC_Raw_Data_for_FY22[[#This Row],[Median]])/25)*40) + AAMC_Raw_Data_for_FY22[[#This Row],[Median]]","v":0}]
[{"$f":"AAMC_Raw_Data_for_FY22[[#This Row],[Source]]&AAMC_Raw_Data_for_FY22[[#This Row],[Type]]&AAMC_Raw_Data_for_FY22[[#This Row],[School Subset]]&AAMC_Raw_Data_for_FY22[[#This Row],[Rank]]&AAMC_Raw_Data_for_FY22[[#This Row],[Degree]]&AAMC_Raw_Data_for_FY22[[#This Row],[Department / Specialty]]&\"L\"","v":"AAMCAcademicAllInstructorPhDDiagnostic Radiology: Non-interventionalL"},"Diagnostic Radiology: Non-interventional",5,"AAMC","Academic","All","Instructor","PhD","2021-2022",null,{"$f":"(((AAMC_Raw_Data_for_FY22[[#This Row],[Median]]-AAMC_Raw_Data_for_FY22[[#This Row],[25th]])/25)*5) + AAMC_Raw_Data_for_FY22[[#This Row],[25th]]","v":0},{"$f":"(((AAMC_Raw_Data_for_FY22[[#This Row],[Median]]-AAMC_Raw_Data_for_FY22[[#This Row],[25th]])/25)*10) + AAMC_Raw_Data_for_FY22[[#This Row],[25th]]","v":0},{"$f":"(((AAMC_Raw_Data_for_FY22[[#This Row],[Median]]-AAMC_Raw_Data_for_FY22[[#This Row],[25th]])/25)*15) + AAMC_Raw_Data_for_FY22[[#This Row],[25th]]","v":0},{"$f":"(((AAMC_Raw_Data_for_FY22[[#This Row],[Median]]-AAMC_Raw_Data_for_FY22[[#This Row],[25th]])/25)*20) + AAMC_Raw_Data_for_FY22[[#This Row],[25th]]","v":0},null,{"$f":"(((AAMC_Raw_Data_for_FY22[[#This Row],[75th]]-AAMC_Raw_Data_for_FY22[[#This Row],[Median]])/25)*5) + AAMC_Raw_Data_for_FY22[[#This Row],[Median]]","v":0},{"$f":"(((AAMC_Raw_Data_for_FY22[[#This Row],[75th]]-AAMC_Raw_Data_for_FY22[[#This Row],[Median]])/25)*10) + AAMC_Raw_Data_for_FY22[[#This Row],[Median]]","v":0},{"$f":"(((AAMC_Raw_Data_for_FY22[[#This Row],[75th]]-AAMC_Raw_Data_for_FY22[[#This Row],[Median]])/25)*15) + AAMC_Raw_Data_for_FY22[[#This Row],[Median]]","v":0},{"$f":"(((AAMC_Raw_Data_for_FY22[[#This Row],[75th]]-AAMC_Raw_Data_for_FY22[[#This Row],[Median]])/25)*20) + AAMC_Raw_Data_for_FY22[[#This Row],[Median]]","v":0},null,{"$f":"(((AAMC_Raw_Data_for_FY22[[#This Row],[75th]]-AAMC_Raw_Data_for_FY22[[#This Row],[Median]])/25)*30) + AAMC_Raw_Data_for_FY22[[#This Row],[Median]]","v":0},{"$f":"(((AAMC_Raw_Data_for_FY22[[#This Row],[75th]]-AAMC_Raw_Data_for_FY22[[#This Row],[Median]])/25)*35) + AAMC_Raw_Data_for_FY22[[#This Row],[Median]]","v":0},{"$f":"(((AAMC_Raw_Data_for_FY22[[#This Row],[75th]]-AAMC_Raw_Data_for_FY22[[#This Row],[Median]])/25)*40) + AAMC_Raw_Data_for_FY22[[#This Row],[Median]]","v":0}]
[{"$f":"AAMC_Raw_Data_for_FY22[[#This Row],[Source]]&AAMC_Raw_Data_for_FY22[[#This Row],[Type]]&AAMC_Raw_Data_for_FY22[[#This Row],[School Subset]]&AAMC_Raw_Data_for_FY22[[#This Row],[Rank]]&AAMC_Raw_Data_for_FY22[[#This Row],[Degree]]&AAMC_Raw_Data_for_FY22[[#This Row],[Department / Specialty]]&\"L\"","v":"AAMCAcademicAllAssistantPhDDiagnostic Radiology: Non-interventionalL"},"Diagnostic Radiology: Non-interventional",4,"AAMC","Academic","All","Assistant","PhD","2021-2022",108763,{"$f":"(((AAMC_Raw_Data_for_FY22[[#This Row],[Median]]-AAMC_Raw_Data_for_FY22[[#This Row],[25th]])/25)*5) + AAMC_Raw_Data_for_FY22[[#This Row],[25th]]","v":112650.4},{"$f":"(((AAMC_Raw_Data_for_FY22[[#This Row],[Median]]-AAMC_Raw_Data_for_FY22[[#This Row],[25th]])/25)*10) + AAMC_Raw_Data_for_FY22[[#This Row],[25th]]","v":116537.8},{"$f":"(((AAMC_Raw_Data_for_FY22[[#This Row],[Median]]-AAMC_Raw_Data_for_FY22[[#This Row],[25th]])/25)*15) + AAMC_Raw_Data_for_FY22[[#This Row],[25th]]","v":120425.2},{"$f":"(((AAMC_Raw_Data_for_FY22[[#This Row],[Median]]-AAMC_Raw_Data_for_FY22[[#This Row],[25th]])/25)*20) + AAMC_Raw_Data_for_FY22[[#This Row],[25th]]","v":124312.6},128200,{"$f":"(((AAMC_Raw_Data_for_FY22[[#This Row],[75th]]-AAMC_Raw_Data_for_FY22[[#This Row],[Median]])/25)*5) + AAMC_Raw_Data_for_FY22[[#This Row],[Median]]","v":130253.6},{"$f":"(((AAMC_Raw_Data_for_FY22[[#This Row],[75th]]-AAMC_Raw_Data_for_FY22[[#This Row],[Median]])/25)*10) + AAMC_Raw_Data_for_FY22[[#This Row],[Median]]","v":132307.20000000001},{"$f":"(((AAMC_Raw_Data_for_FY22[[#This Row],[75th]]-AAMC_Raw_Data_for_FY22[[#This Row],[Median]])/25)*15) + AAMC_Raw_Data_for_FY22[[#This Row],[Median]]","v":134360.79999999999},{"$f":"(((AAMC_Raw_Data_for_FY22[[#This Row],[75th]]-AAMC_Raw_Data_for_FY22[[#This Row],[Median]])/25)*20) + AAMC_Raw_Data_for_FY22[[#This Row],[Median]]","v":136414.39999999999},138468,{"$f":"(((AAMC_Raw_Data_for_FY22[[#This Row],[75th]]-AAMC_Raw_Data_for_FY22[[#This Row],[Median]])/25)*30) + AAMC_Raw_Data_for_FY22[[#This Row],[Median]]","v":140521.60000000001},{"$f":"(((AAMC_Raw_Data_for_FY22[[#This Row],[75th]]-AAMC_Raw_Data_for_FY22[[#This Row],[Median]])/25)*35) + AAMC_Raw_Data_for_FY22[[#This Row],[Median]]","v":142575.20000000001},{"$f":"(((AAMC_Raw_Data_for_FY22[[#This Row],[75th]]-AAMC_Raw_Data_for_FY22[[#This Row],[Median]])/25)*40) + AAMC_Raw_Data_for_FY22[[#This Row],[Median]]","v":144628.79999999999}]
[{"$f":"AAMC_Raw_Data_for_FY22[[#This Row],[Source]]&AAMC_Raw_Data_for_FY22[[#This Row],[Type]]&AAMC_Raw_Data_for_FY22[[#This Row],[School Subset]]&AAMC_Raw_Data_for_FY22[[#This Row],[Rank]]&AAMC_Raw_Data_for_FY22[[#This Row],[Degree]]&AAMC_Raw_Data_for_FY22[[#This Row],[Department / Specialty]]&\"L\"","v":"AAMCAcademicAllAssociatePhDDiagnostic Radiology: Non-interventionalL"},"Diagnostic Radiology: Non-interventional",3,"AAMC","Academic","All","Associate","PhD","2021-2022",147407,{"$f":"(((AAMC_Raw_Data_for_FY22[[#This Row],[Median]]-AAMC_Raw_Data_for_FY22[[#This Row],[25th]])/25)*5) + AAMC_Raw_Data_for_FY22[[#This Row],[25th]]","v":151145},{"$f":"(((AAMC_Raw_Data_for_FY22[[#This Row],[Median]]-AAMC_Raw_Data_for_FY22[[#This Row],[25th]])/25)*10) + AAMC_Raw_Data_for_FY22[[#This Row],[25th]]","v":154883},{"$f":"(((AAMC_Raw_Data_for_FY22[[#This Row],[Median]]-AAMC_Raw_Data_for_FY22[[#This Row],[25th]])/25)*15) + AAMC_Raw_Data_for_FY22[[#This Row],[25th]]","v":158621},{"$f":"(((AAMC_Raw_Data_for_FY22[[#This Row],[Median]]-AAMC_Raw_Data_for_FY22[[#This Row],[25th]])/25)*20) + AAMC_Raw_Data_for_FY22[[#This Row],[25th]]","v":162359},166097,{"$f":"(((AAMC_Raw_Data_for_FY22[[#This Row],[75th]]-AAMC_Raw_Data_for_FY22[[#This Row],[Median]])/25)*5) + AAMC_Raw_Data_for_FY22[[#This Row],[Median]]","v":171720},{"$f":"(((AAMC_Raw_Data_for_FY22[[#This Row],[75th]]-AAMC_Raw_Data_for_FY22[[#This Row],[Median]])/25)*10) + AAMC_Raw_Data_for_FY22[[#This Row],[Median]]","v":177343},{"$f":"(((AAMC_Raw_Data_for_FY22[[#This Row],[75th]]-AAMC_Raw_Data_for_FY22[[#This Row],[Median]])/25)*15) + AAMC_Raw_Data_for_FY22[[#This Row],[Median]]","v":182966},{"$f":"(((AAMC_Raw_Data_for_FY22[[#This Row],[75th]]-AAMC_Raw_Data_for_FY22[[#This Row],[Median]])/25)*20) + AAMC_Raw_Data_for_FY22[[#This Row],[Median]]","v":188589},194212,{"$f":"(((AAMC_Raw_Data_for_FY22[[#This Row],[75th]]-AAMC_Raw_Data_for_FY22[[#This Row],[Median]])/25)*30) + AAMC_Raw_Data_for_FY22[[#This Row],[Median]]","v":199835},{"$f":"(((AAMC_Raw_Data_for_FY22[[#This Row],[75th]]-AAMC_Raw_Data_for_FY22[[#This Row],[Median]])/25)*35) + AAMC_Raw_Data_for_FY22[[#This Row],[Median]]","v":205458},{"$f":"(((AAMC_Raw_Data_for_FY22[[#This Row],[75th]]-AAMC_Raw_Data_for_FY22[[#This Row],[Median]])/25)*40) + AAMC_Raw_Data_for_FY22[[#This Row],[Median]]","v":211081}]
[{"$f":"AAMC_Raw_Data_for_FY22[[#This Row],[Source]]&AAMC_Raw_Data_for_FY22[[#This Row],[Type]]&AAMC_Raw_Data_for_FY22[[#This Row],[School Subset]]&AAMC_Raw_Data_for_FY22[[#This Row],[Rank]]&AAMC_Raw_Data_for_FY22[[#This Row],[Degree]]&AAMC_Raw_Data_for_FY22[[#This Row],[Department / Specialty]]&\"L\"","v":"AAMCAcademicAllProfessorPhDDiagnostic Radiology: Non-interventionalL"},"Diagnostic Radiology: Non-interventional",2,"AAMC","Academic","All","Professor","PhD","2021-2022",191475,{"$f":"(((AAMC_Raw_Data_for_FY22[[#This Row],[Median]]-AAMC_Raw_Data_for_FY22[[#This Row],[25th]])/25)*5) + AAMC_Raw_Data_for_FY22[[#This Row],[25th]]","v":196992.2},{"$f":"(((AAMC_Raw_Data_for_FY22[[#This Row],[Median]]-AAMC_Raw_Data_for_FY22[[#This Row],[25th]])/25)*10) + AAMC_Raw_Data_for_FY22[[#This Row],[25th]]","v":202509.4},{"$f":"(((AAMC_Raw_Data_for_FY22[[#This Row],[Median]]-AAMC_Raw_Data_for_FY22[[#This Row],[25th]])/25)*15) + AAMC_Raw_Data_for_FY22[[#This Row],[25th]]","v":208026.6},{"$f":"(((AAMC_Raw_Data_for_FY22[[#This Row],[Median]]-AAMC_Raw_Data_for_FY22[[#This Row],[25th]])/25)*20) + AAMC_Raw_Data_for_FY22[[#This Row],[25th]]","v":213543.8},219061,{"$f":"(((AAMC_Raw_Data_for_FY22[[#This Row],[75th]]-AAMC_Raw_Data_for_FY22[[#This Row],[Median]])/25)*5) + AAMC_Raw_Data_for_FY22[[#This Row],[Median]]","v":231448.8},{"$f":"(((AAMC_Raw_Data_for_FY22[[#This Row],[75th]]-AAMC_Raw_Data_for_FY22[[#This Row],[Median]])/25)*10) + AAMC_Raw_Data_for_FY22[[#This Row],[Median]]","v":243836.6},{"$f":"(((AAMC_Raw_Data_for_FY22[[#This Row],[75th]]-AAMC_Raw_Data_for_FY22[[#This Row],[Median]])/25)*15) + AAMC_Raw_Data_for_FY22[[#This Row],[Median]]","v":256224.4},{"$f":"(((AAMC_Raw_Data_for_FY22[[#This Row],[75th]]-AAMC_Raw_Data_for_FY22[[#This Row],[Median]])/25)*20) + AAMC_Raw_Data_for_FY22[[#This Row],[Median]]","v":268612.2},281000,{"$f":"(((AAMC_Raw_Data_for_FY22[[#This Row],[75th]]-AAMC_Raw_Data_for_FY22[[#This Row],[Median]])/25)*30) + AAMC_Raw_Data_for_FY22[[#This Row],[Median]]","v":293387.8},{"$f":"(((AAMC_Raw_Data_for_FY22[[#This Row],[75th]]-AAMC_Raw_Data_for_FY22[[#This Row],[Median]])/25)*35) + AAMC_Raw_Data_for_FY22[[#This Row],[Median]]","v":305775.59999999998},{"$f":"(((AAMC_Raw_Data_for_FY22[[#This Row],[75th]]-AAMC_Raw_Data_for_FY22[[#This Row],[Median]])/25)*40) + AAMC_Raw_Data_for_FY22[[#This Row],[Median]]","v":318163.40000000002}]
[{"$f":"AAMC_Raw_Data_for_FY22[[#This Row],[Source]]&AAMC_Raw_Data_for_FY22[[#This Row],[Type]]&AAMC_Raw_Data_for_FY22[[#This Row],[School Subset]]&AAMC_Raw_Data_for_FY22[[#This Row],[Rank]]&AAMC_Raw_Data_for_FY22[[#This Row],[Degree]]&AAMC_Raw_Data_for_FY22[[#This Row],[Department / Specialty]]&\"L\"","v":"AAMCAcademicAllChiefPhDDiagnostic Radiology: Non-interventionalL"},"Diagnostic Radiology: Non-interventional",6,"AAMC","Academic","All","Chief","PhD","2021-2022",null,{"$f":"(((AAMC_Raw_Data_for_FY22[[#This Row],[Median]]-AAMC_Raw_Data_for_FY22[[#This Row],[25th]])/25)*5) + AAMC_Raw_Data_for_FY22[[#This Row],[25th]]","v":0},{"$f":"(((AAMC_Raw_Data_for_FY22[[#This Row],[Median]]-AAMC_Raw_Data_for_FY22[[#This Row],[25th]])/25)*10) + AAMC_Raw_Data_for_FY22[[#This Row],[25th]]","v":0},{"$f":"(((AAMC_Raw_Data_for_FY22[[#This Row],[Median]]-AAMC_Raw_Data_for_FY22[[#This Row],[25th]])/25)*15) + AAMC_Raw_Data_for_FY22[[#This Row],[25th]]","v":0},{"$f":"(((AAMC_Raw_Data_for_FY22[[#This Row],[Median]]-AAMC_Raw_Data_for_FY22[[#This Row],[25th]])/25)*20) + AAMC_Raw_Data_for_FY22[[#This Row],[25th]]","v":0},null,{"$f":"(((AAMC_Raw_Data_for_FY22[[#This Row],[75th]]-AAMC_Raw_Data_for_FY22[[#This Row],[Median]])/25)*5) + AAMC_Raw_Data_for_FY22[[#This Row],[Median]]","v":0},{"$f":"(((AAMC_Raw_Data_for_FY22[[#This Row],[75th]]-AAMC_Raw_Data_for_FY22[[#This Row],[Median]])/25)*10) + AAMC_Raw_Data_for_FY22[[#This Row],[Median]]","v":0},{"$f":"(((AAMC_Raw_Data_for_FY22[[#This Row],[75th]]-AAMC_Raw_Data_for_FY22[[#This Row],[Median]])/25)*15) + AAMC_Raw_Data_for_FY22[[#This Row],[Median]]","v":0},{"$f":"(((AAMC_Raw_Data_for_FY22[[#This Row],[75th]]-AAMC_Raw_Data_for_FY22[[#This Row],[Median]])/25)*20) + AAMC_Raw_Data_for_FY22[[#This Row],[Median]]","v":0},null,{"$f":"(((AAMC_Raw_Data_for_FY22[[#This Row],[75th]]-AAMC_Raw_Data_for_FY22[[#This Row],[Median]])/25)*30) + AAMC_Raw_Data_for_FY22[[#This Row],[Median]]","v":0},{"$f":"(((AAMC_Raw_Data_for_FY22[[#This Row],[75th]]-AAMC_Raw_Data_for_FY22[[#This Row],[Median]])/25)*35) + AAMC_Raw_Data_for_FY22[[#This Row],[Median]]","v":0},{"$f":"(((AAMC_Raw_Data_for_FY22[[#This Row],[75th]]-AAMC_Raw_Data_for_FY22[[#This Row],[Median]])/25)*40) + AAMC_Raw_Data_for_FY22[[#This Row],[Median]]","v":0}]
[{"$f":"AAMC_Raw_Data_for_FY22[[#This Row],[Source]]&AAMC_Raw_Data_for_FY22[[#This Row],[Type]]&AAMC_Raw_Data_for_FY22[[#This Row],[School Subset]]&AAMC_Raw_Data_for_FY22[[#This Row],[Rank]]&AAMC_Raw_Data_for_FY22[[#This Row],[Degree]]&AAMC_Raw_Data_for_FY22[[#This Row],[Department / Specialty]]&\"L\"","v":"AAMCAcademicAllAssistantPhDNuclear MedicineL"},"Nuclear Medicine",4,"AAMC","Academic","All","Assistant","PhD","2021-2022",null,{"$f":"(((AAMC_Raw_Data_for_FY22[[#This Row],[Median]]-AAMC_Raw_Data_for_FY22[[#This Row],[25th]])/25)*5) + AAMC_Raw_Data_for_FY22[[#This Row],[25th]]","v":0},{"$f":"(((AAMC_Raw_Data_for_FY22[[#This Row],[Median]]-AAMC_Raw_Data_for_FY22[[#This Row],[25th]])/25)*10) + AAMC_Raw_Data_for_FY22[[#This Row],[25th]]","v":0},{"$f":"(((AAMC_Raw_Data_for_FY22[[#This Row],[Median]]-AAMC_Raw_Data_for_FY22[[#This Row],[25th]])/25)*15) + AAMC_Raw_Data_for_FY22[[#This Row],[25th]]","v":0},{"$f":"(((AAMC_Raw_Data_for_FY22[[#This Row],[Median]]-AAMC_Raw_Data_for_FY22[[#This Row],[25th]])/25)*20) + AAMC_Raw_Data_for_FY22[[#This Row],[25th]]","v":0},null,{"$f":"(((AAMC_Raw_Data_for_FY22[[#This Row],[75th]]-AAMC_Raw_Data_for_FY22[[#This Row],[Median]])/25)*5) + AAMC_Raw_Data_for_FY22[[#This Row],[Median]]","v":0},{"$f":"(((AAMC_Raw_Data_for_FY22[[#This Row],[75th]]-AAMC_Raw_Data_for_FY22[[#This Row],[Median]])/25)*10) + AAMC_Raw_Data_for_FY22[[#This Row],[Median]]","v":0},{"$f":"(((AAMC_Raw_Data_for_FY22[[#This Row],[75th]]-AAMC_Raw_Data_for_FY22[[#This Row],[Median]])/25)*15) + AAMC_Raw_Data_for_FY22[[#This Row],[Median]]","v":0},{"$f":"(((AAMC_Raw_Data_for_FY22[[#This Row],[75th]]-AAMC_Raw_Data_for_FY22[[#This Row],[Median]])/25)*20) + AAMC_Raw_Data_for_FY22[[#This Row],[Median]]","v":0},null,{"$f":"(((AAMC_Raw_Data_for_FY22[[#This Row],[75th]]-AAMC_Raw_Data_for_FY22[[#This Row],[Median]])/25)*30) + AAMC_Raw_Data_for_FY22[[#This Row],[Median]]","v":0},{"$f":"(((AAMC_Raw_Data_for_FY22[[#This Row],[75th]]-AAMC_Raw_Data_for_FY22[[#This Row],[Median]])/25)*35) + AAMC_Raw_Data_for_FY22[[#This Row],[Median]]","v":0},{"$f":"(((AAMC_Raw_Data_for_FY22[[#This Row],[75th]]-AAMC_Raw_Data_for_FY22[[#This Row],[Median]])/25)*40) + AAMC_Raw_Data_for_FY22[[#This Row],[Median]]","v":0}]
[{"$f":"AAMC_Raw_Data_for_FY22[[#This Row],[Source]]&AAMC_Raw_Data_for_FY22[[#This Row],[Type]]&AAMC_Raw_Data_for_FY22[[#This Row],[School Subset]]&AAMC_Raw_Data_for_FY22[[#This Row],[Rank]]&AAMC_Raw_Data_for_FY22[[#This Row],[Degree]]&AAMC_Raw_Data_for_FY22[[#This Row],[Department / Specialty]]&\"L\"","v":"AAMCAcademicAllAssociatePhDNuclear MedicineL"},"Nuclear Medicine",3,"AAMC","Academic","All","Associate","PhD","2021-2022",null,{"$f":"(((AAMC_Raw_Data_for_FY22[[#This Row],[Median]]-AAMC_Raw_Data_for_FY22[[#This Row],[25th]])/25)*5) + AAMC_Raw_Data_for_FY22[[#This Row],[25th]]","v":0},{"$f":"(((AAMC_Raw_Data_for_FY22[[#This Row],[Median]]-AAMC_Raw_Data_for_FY22[[#This Row],[25th]])/25)*10) + AAMC_Raw_Data_for_FY22[[#This Row],[25th]]","v":0},{"$f":"(((AAMC_Raw_Data_for_FY22[[#This Row],[Median]]-AAMC_Raw_Data_for_FY22[[#This Row],[25th]])/25)*15) + AAMC_Raw_Data_for_FY22[[#This Row],[25th]]","v":0},{"$f":"(((AAMC_Raw_Data_for_FY22[[#This Row],[Median]]-AAMC_Raw_Data_for_FY22[[#This Row],[25th]])/25)*20) + AAMC_Raw_Data_for_FY22[[#This Row],[25th]]","v":0},null,{"$f":"(((AAMC_Raw_Data_for_FY22[[#This Row],[75th]]-AAMC_Raw_Data_for_FY22[[#This Row],[Median]])/25)*5) + AAMC_Raw_Data_for_FY22[[#This Row],[Median]]","v":0},{"$f":"(((AAMC_Raw_Data_for_FY22[[#This Row],[75th]]-AAMC_Raw_Data_for_FY22[[#This Row],[Median]])/25)*10) + AAMC_Raw_Data_for_FY22[[#This Row],[Median]]","v":0},{"$f":"(((AAMC_Raw_Data_for_FY22[[#This Row],[75th]]-AAMC_Raw_Data_for_FY22[[#This Row],[Median]])/25)*15) + AAMC_Raw_Data_for_FY22[[#This Row],[Median]]","v":0},{"$f":"(((AAMC_Raw_Data_for_FY22[[#This Row],[75th]]-AAMC_Raw_Data_for_FY22[[#This Row],[Median]])/25)*20) + AAMC_Raw_Data_for_FY22[[#This Row],[Median]]","v":0},null,{"$f":"(((AAMC_Raw_Data_for_FY22[[#This Row],[75th]]-AAMC_Raw_Data_for_FY22[[#This Row],[Median]])/25)*30) + AAMC_Raw_Data_for_FY22[[#This Row],[Median]]","v":0},{"$f":"(((AAMC_Raw_Data_for_FY22[[#This Row],[75th]]-AAMC_Raw_Data_for_FY22[[#This Row],[Median]])/25)*35) + AAMC_Raw_Data_for_FY22[[#This Row],[Median]]","v":0},{"$f":"(((AAMC_Raw_Data_for_FY22[[#This Row],[75th]]-AAMC_Raw_Data_for_FY22[[#This Row],[Median]])/25)*40) + AAMC_Raw_Data_for_FY22[[#This Row],[Median]]","v":0}]
[{"$f":"AAMC_Raw_Data_for_FY22[[#This Row],[Source]]&AAMC_Raw_Data_for_FY22[[#This Row],[Type]]&AAMC_Raw_Data_for_FY22[[#This Row],[School Subset]]&AAMC_Raw_Data_for_FY22[[#This Row],[Rank]]&AAMC_Raw_Data_for_FY22[[#This Row],[Degree]]&AAMC_Raw_Data_for_FY22[[#This Row],[Department / Specialty]]&\"L\"","v":"AAMCAcademicAllProfessorPhDNuclear MedicineL"},"Nuclear Medicine",2,"AAMC","Academic","All","Professor","PhD","2021-2022",null,{"$f":"(((AAMC_Raw_Data_for_FY22[[#This Row],[Median]]-AAMC_Raw_Data_for_FY22[[#This Row],[25th]])/25)*5) + AAMC_Raw_Data_for_FY22[[#This Row],[25th]]","v":0},{"$f":"(((AAMC_Raw_Data_for_FY22[[#This Row],[Median]]-AAMC_Raw_Data_for_FY22[[#This Row],[25th]])/25)*10) + AAMC_Raw_Data_for_FY22[[#This Row],[25th]]","v":0},{"$f":"(((AAMC_Raw_Data_for_FY22[[#This Row],[Median]]-AAMC_Raw_Data_for_FY22[[#This Row],[25th]])/25)*15) + AAMC_Raw_Data_for_FY22[[#This Row],[25th]]","v":0},{"$f":"(((AAMC_Raw_Data_for_FY22[[#This Row],[Median]]-AAMC_Raw_Data_for_FY22[[#This Row],[25th]])/25)*20) + AAMC_Raw_Data_for_FY22[[#This Row],[25th]]","v":0},null,{"$f":"(((AAMC_Raw_Data_for_FY22[[#This Row],[75th]]-AAMC_Raw_Data_for_FY22[[#This Row],[Median]])/25)*5) + AAMC_Raw_Data_for_FY22[[#This Row],[Median]]","v":0},{"$f":"(((AAMC_Raw_Data_for_FY22[[#This Row],[75th]]-AAMC_Raw_Data_for_FY22[[#This Row],[Median]])/25)*10) + AAMC_Raw_Data_for_FY22[[#This Row],[Median]]","v":0},{"$f":"(((AAMC_Raw_Data_for_FY22[[#This Row],[75th]]-AAMC_Raw_Data_for_FY22[[#This Row],[Median]])/25)*15) + AAMC_Raw_Data_for_FY22[[#This Row],[Median]]","v":0},{"$f":"(((AAMC_Raw_Data_for_FY22[[#This Row],[75th]]-AAMC_Raw_Data_for_FY22[[#This Row],[Median]])/25)*20) + AAMC_Raw_Data_for_FY22[[#This Row],[Median]]","v":0},null,{"$f":"(((AAMC_Raw_Data_for_FY22[[#This Row],[75th]]-AAMC_Raw_Data_for_FY22[[#This Row],[Median]])/25)*30) + AAMC_Raw_Data_for_FY22[[#This Row],[Median]]","v":0},{"$f":"(((AAMC_Raw_Data_for_FY22[[#This Row],[75th]]-AAMC_Raw_Data_for_FY22[[#This Row],[Median]])/25)*35) + AAMC_Raw_Data_for_FY22[[#This Row],[Median]]","v":0},{"$f":"(((AAMC_Raw_Data_for_FY22[[#This Row],[75th]]-AAMC_Raw_Data_for_FY22[[#This Row],[Median]])/25)*40) + AAMC_Raw_Data_for_FY22[[#This Row],[Median]]","v":0}]
[{"$f":"AAMC_Raw_Data_for_FY22[[#This Row],[Source]]&AAMC_Raw_Data_for_FY22[[#This Row],[Type]]&AAMC_Raw_Data_for_FY22[[#This Row],[School Subset]]&AAMC_Raw_Data_for_FY22[[#This Row],[Rank]]&AAMC_Raw_Data_for_FY22[[#This Row],[Degree]]&AAMC_Raw_Data_for_FY22[[#This Row],[Department / Specialty]]&\"L\"","v":"AAMCAcademicAllInstructorPhDRadiation OncologyL"},"Radiation Oncology",5,"AAMC","Academic","All","Instructor","PhD","2021-2022",61300,{"$f":"(((AAMC_Raw_Data_for_FY22[[#This Row],[Median]]-AAMC_Raw_Data_for_FY22[[#This Row],[25th]])/25)*5) + AAMC_Raw_Data_for_FY22[[#This Row],[25th]]","v":64454},{"$f":"(((AAMC_Raw_Data_for_FY22[[#This Row],[Median]]-AAMC_Raw_Data_for_FY22[[#This Row],[25th]])/25)*10) + AAMC_Raw_Data_for_FY22[[#This Row],[25th]]","v":67608},{"$f":"(((AAMC_Raw_Data_for_FY22[[#This Row],[Median]]-AAMC_Raw_Data_for_FY22[[#This Row],[25th]])/25)*15) + AAMC_Raw_Data_for_FY22[[#This Row],[25th]]","v":70762},{"$f":"(((AAMC_Raw_Data_for_FY22[[#This Row],[Median]]-AAMC_Raw_Data_for_FY22[[#This Row],[25th]])/25)*20) + AAMC_Raw_Data_for_FY22[[#This Row],[25th]]","v":73916},77070,{"$f":"(((AAMC_Raw_Data_for_FY22[[#This Row],[75th]]-AAMC_Raw_Data_for_FY22[[#This Row],[Median]])/25)*5) + AAMC_Raw_Data_for_FY22[[#This Row],[Median]]","v":81813.2},{"$f":"(((AAMC_Raw_Data_for_FY22[[#This Row],[75th]]-AAMC_Raw_Data_for_FY22[[#This Row],[Median]])/25)*10) + AAMC_Raw_Data_for_FY22[[#This Row],[Median]]","v":86556.4},{"$f":"(((AAMC_Raw_Data_for_FY22[[#This Row],[75th]]-AAMC_Raw_Data_for_FY22[[#This Row],[Median]])/25)*15) + AAMC_Raw_Data_for_FY22[[#This Row],[Median]]","v":91299.6},{"$f":"(((AAMC_Raw_Data_for_FY22[[#This Row],[75th]]-AAMC_Raw_Data_for_FY22[[#This Row],[Median]])/25)*20) + AAMC_Raw_Data_for_FY22[[#This Row],[Median]]","v":96042.8},100786,{"$f":"(((AAMC_Raw_Data_for_FY22[[#This Row],[75th]]-AAMC_Raw_Data_for_FY22[[#This Row],[Median]])/25)*30) + AAMC_Raw_Data_for_FY22[[#This Row],[Median]]","v":105529.2},{"$f":"(((AAMC_Raw_Data_for_FY22[[#This Row],[75th]]-AAMC_Raw_Data_for_FY22[[#This Row],[Median]])/25)*35) + AAMC_Raw_Data_for_FY22[[#This Row],[Median]]","v":110272.4},{"$f":"(((AAMC_Raw_Data_for_FY22[[#This Row],[75th]]-AAMC_Raw_Data_for_FY22[[#This Row],[Median]])/25)*40) + AAMC_Raw_Data_for_FY22[[#This Row],[Median]]","v":115015.6}]
[{"$f":"AAMC_Raw_Data_for_FY22[[#This Row],[Source]]&AAMC_Raw_Data_for_FY22[[#This Row],[Type]]&AAMC_Raw_Data_for_FY22[[#This Row],[School Subset]]&AAMC_Raw_Data_for_FY22[[#This Row],[Rank]]&AAMC_Raw_Data_for_FY22[[#This Row],[Degree]]&AAMC_Raw_Data_for_FY22[[#This Row],[Department / Specialty]]&\"L\"","v":"AAMCAcademicAllAssistantPhDRadiation OncologyL"},"Radiation Oncology",4,"AAMC","Academic","All","Assistant","PhD","2021-2022",150000,{"$f":"(((AAMC_Raw_Data_for_FY22[[#This Row],[Median]]-AAMC_Raw_Data_for_FY22[[#This Row],[25th]])/25)*5) + AAMC_Raw_Data_for_FY22[[#This Row],[25th]]","v":155400},{"$f":"(((AAMC_Raw_Data_for_FY22[[#This Row],[Median]]-AAMC_Raw_Data_for_FY22[[#This Row],[25th]])/25)*10) + AAMC_Raw_Data_for_FY22[[#This Row],[25th]]","v":160800},{"$f":"(((AAMC_Raw_Data_for_FY22[[#This Row],[Median]]-AAMC_Raw_Data_for_FY22[[#This Row],[25th]])/25)*15) + AAMC_Raw_Data_for_FY22[[#This Row],[25th]]","v":166200},{"$f":"(((AAMC_Raw_Data_for_FY22[[#This Row],[Median]]-AAMC_Raw_Data_for_FY22[[#This Row],[25th]])/25)*20) + AAMC_Raw_Data_for_FY22[[#This Row],[25th]]","v":171600},177000,{"$f":"(((AAMC_Raw_Data_for_FY22[[#This Row],[75th]]-AAMC_Raw_Data_for_FY22[[#This Row],[Median]])/25)*5) + AAMC_Raw_Data_for_FY22[[#This Row],[Median]]","v":181983},{"$f":"(((AAMC_Raw_Data_for_FY22[[#This Row],[75th]]-AAMC_Raw_Data_for_FY22[[#This Row],[Median]])/25)*10) + AAMC_Raw_Data_for_FY22[[#This Row],[Median]]","v":186966},{"$f":"(((AAMC_Raw_Data_for_FY22[[#This Row],[75th]]-AAMC_Raw_Data_for_FY22[[#This Row],[Median]])/25)*15) + AAMC_Raw_Data_for_FY22[[#This Row],[Median]]","v":191949},{"$f":"(((AAMC_Raw_Data_for_FY22[[#This Row],[75th]]-AAMC_Raw_Data_for_FY22[[#This Row],[Median]])/25)*20) + AAMC_Raw_Data_for_FY22[[#This Row],[Median]]","v":196932},201915,{"$f":"(((AAMC_Raw_Data_for_FY22[[#This Row],[75th]]-AAMC_Raw_Data_for_FY22[[#This Row],[Median]])/25)*30) + AAMC_Raw_Data_for_FY22[[#This Row],[Median]]","v":206898},{"$f":"(((AAMC_Raw_Data_for_FY22[[#This Row],[75th]]-AAMC_Raw_Data_for_FY22[[#This Row],[Median]])/25)*35) + AAMC_Raw_Data_for_FY22[[#This Row],[Median]]","v":211881},{"$f":"(((AAMC_Raw_Data_for_FY22[[#This Row],[75th]]-AAMC_Raw_Data_for_FY22[[#This Row],[Median]])/25)*40) + AAMC_Raw_Data_for_FY22[[#This Row],[Median]]","v":216864}]
[{"$f":"AAMC_Raw_Data_for_FY22[[#This Row],[Source]]&AAMC_Raw_Data_for_FY22[[#This Row],[Type]]&AAMC_Raw_Data_for_FY22[[#This Row],[School Subset]]&AAMC_Raw_Data_for_FY22[[#This Row],[Rank]]&AAMC_Raw_Data_for_FY22[[#This Row],[Degree]]&AAMC_Raw_Data_for_FY22[[#This Row],[Department / Specialty]]&\"L\"","v":"AAMCAcademicAllAssociatePhDRadiation OncologyL"},"Radiation Oncology",3,"AAMC","Academic","All","Associate","PhD","2021-2022",177364,{"$f":"(((AAMC_Raw_Data_for_FY22[[#This Row],[Median]]-AAMC_Raw_Data_for_FY22[[#This Row],[25th]])/25)*5) + AAMC_Raw_Data_for_FY22[[#This Row],[25th]]","v":186558.2},{"$f":"(((AAMC_Raw_Data_for_FY22[[#This Row],[Median]]-AAMC_Raw_Data_for_FY22[[#This Row],[25th]])/25)*10) + AAMC_Raw_Data_for_FY22[[#This Row],[25th]]","v":195752.4},{"$f":"(((AAMC_Raw_Data_for_FY22[[#This Row],[Median]]-AAMC_Raw_Data_for_FY22[[#This Row],[25th]])/25)*15) + AAMC_Raw_Data_for_FY22[[#This Row],[25th]]","v":204946.6},{"$f":"(((AAMC_Raw_Data_for_FY22[[#This Row],[Median]]-AAMC_Raw_Data_for_FY22[[#This Row],[25th]])/25)*20) + AAMC_Raw_Data_for_FY22[[#This Row],[25th]]","v":214140.79999999999},223335,{"$f":"(((AAMC_Raw_Data_for_FY22[[#This Row],[75th]]-AAMC_Raw_Data_for_FY22[[#This Row],[Median]])/25)*5) + AAMC_Raw_Data_for_FY22[[#This Row],[Median]]","v":228369.2},{"$f":"(((AAMC_Raw_Data_for_FY22[[#This Row],[75th]]-AAMC_Raw_Data_for_FY22[[#This Row],[Median]])/25)*10) + AAMC_Raw_Data_for_FY22[[#This Row],[Median]]","v":233403.4},{"$f":"(((AAMC_Raw_Data_for_FY22[[#This Row],[75th]]-AAMC_Raw_Data_for_FY22[[#This Row],[Median]])/25)*15) + AAMC_Raw_Data_for_FY22[[#This Row],[Median]]","v":238437.6},{"$f":"(((AAMC_Raw_Data_for_FY22[[#This Row],[75th]]-AAMC_Raw_Data_for_FY22[[#This Row],[Median]])/25)*20) + AAMC_Raw_Data_for_FY22[[#This Row],[Median]]","v":243471.8},248506,{"$f":"(((AAMC_Raw_Data_for_FY22[[#This Row],[75th]]-AAMC_Raw_Data_for_FY22[[#This Row],[Median]])/25)*30) + AAMC_Raw_Data_for_FY22[[#This Row],[Median]]","v":253540.2},{"$f":"(((AAMC_Raw_Data_for_FY22[[#This Row],[75th]]-AAMC_Raw_Data_for_FY22[[#This Row],[Median]])/25)*35) + AAMC_Raw_Data_for_FY22[[#This Row],[Median]]","v":258574.4},{"$f":"(((AAMC_Raw_Data_for_FY22[[#This Row],[75th]]-AAMC_Raw_Data_for_FY22[[#This Row],[Median]])/25)*40) + AAMC_Raw_Data_for_FY22[[#This Row],[Median]]","v":263608.59999999998}]
[{"$f":"AAMC_Raw_Data_for_FY22[[#This Row],[Source]]&AAMC_Raw_Data_for_FY22[[#This Row],[Type]]&AAMC_Raw_Data_for_FY22[[#This Row],[School Subset]]&AAMC_Raw_Data_for_FY22[[#This Row],[Rank]]&AAMC_Raw_Data_for_FY22[[#This Row],[Degree]]&AAMC_Raw_Data_for_FY22[[#This Row],[Department / Specialty]]&\"L\"","v":"AAMCAcademicAllProfessorPhDRadiation OncologyL"},"Radiation Oncology",2,"AAMC","Academic","All","Professor","PhD","2021-2022",212758,{"$f":"(((AAMC_Raw_Data_for_FY22[[#This Row],[Median]]-AAMC_Raw_Data_for_FY22[[#This Row],[25th]])/25)*5) + AAMC_Raw_Data_for_FY22[[#This Row],[25th]]","v":221445.8},{"$f":"(((AAMC_Raw_Data_for_FY22[[#This Row],[Median]]-AAMC_Raw_Data_for_FY22[[#This Row],[25th]])/25)*10) + AAMC_Raw_Data_for_FY22[[#This Row],[25th]]","v":230133.6},{"$f":"(((AAMC_Raw_Data_for_FY22[[#This Row],[Median]]-AAMC_Raw_Data_for_FY22[[#This Row],[25th]])/25)*15) + AAMC_Raw_Data_for_FY22[[#This Row],[25th]]","v":238821.4},{"$f":"(((AAMC_Raw_Data_for_FY22[[#This Row],[Median]]-AAMC_Raw_Data_for_FY22[[#This Row],[25th]])/25)*20) + AAMC_Raw_Data_for_FY22[[#This Row],[25th]]","v":247509.2},256197,{"$f":"(((AAMC_Raw_Data_for_FY22[[#This Row],[75th]]-AAMC_Raw_Data_for_FY22[[#This Row],[Median]])/25)*5) + AAMC_Raw_Data_for_FY22[[#This Row],[Median]]","v":264597.2},{"$f":"(((AAMC_Raw_Data_for_FY22[[#This Row],[75th]]-AAMC_Raw_Data_for_FY22[[#This Row],[Median]])/25)*10) + AAMC_Raw_Data_for_FY22[[#This Row],[Median]]","v":272997.40000000002},{"$f":"(((AAMC_Raw_Data_for_FY22[[#This Row],[75th]]-AAMC_Raw_Data_for_FY22[[#This Row],[Median]])/25)*15) + AAMC_Raw_Data_for_FY22[[#This Row],[Median]]","v":281397.59999999998},{"$f":"(((AAMC_Raw_Data_for_FY22[[#This Row],[75th]]-AAMC_Raw_Data_for_FY22[[#This Row],[Median]])/25)*20) + AAMC_Raw_Data_for_FY22[[#This Row],[Median]]","v":289797.8},298198,{"$f":"(((AAMC_Raw_Data_for_FY22[[#This Row],[75th]]-AAMC_Raw_Data_for_FY22[[#This Row],[Median]])/25)*30) + AAMC_Raw_Data_for_FY22[[#This Row],[Median]]","v":306598.2},{"$f":"(((AAMC_Raw_Data_for_FY22[[#This Row],[75th]]-AAMC_Raw_Data_for_FY22[[#This Row],[Median]])/25)*35) + AAMC_Raw_Data_for_FY22[[#This Row],[Median]]","v":314998.40000000002},{"$f":"(((AAMC_Raw_Data_for_FY22[[#This Row],[75th]]-AAMC_Raw_Data_for_FY22[[#This Row],[Median]])/25)*40) + AAMC_Raw_Data_for_FY22[[#This Row],[Median]]","v":323398.59999999998}]
[{"$f":"AAMC_Raw_Data_for_FY22[[#This Row],[Source]]&AAMC_Raw_Data_for_FY22[[#This Row],[Type]]&AAMC_Raw_Data_for_FY22[[#This Row],[School Subset]]&AAMC_Raw_Data_for_FY22[[#This Row],[Rank]]&AAMC_Raw_Data_for_FY22[[#This Row],[Degree]]&AAMC_Raw_Data_for_FY22[[#This Row],[Department / Specialty]]&\"L\"","v":"AAMCAcademicAllChiefPhDRadiation OncologyL"},"Radiation Oncology",6,"AAMC","Academic","All","Chief","PhD","2021-2022",292820,{"$f":"(((AAMC_Raw_Data_for_FY22[[#This Row],[Median]]-AAMC_Raw_Data_for_FY22[[#This Row],[25th]])/25)*5) + AAMC_Raw_Data_for_FY22[[#This Row],[25th]]","v":309091.59999999998},{"$f":"(((AAMC_Raw_Data_for_FY22[[#This Row],[Median]]-AAMC_Raw_Data_for_FY22[[#This Row],[25th]])/25)*10) + AAMC_Raw_Data_for_FY22[[#This Row],[25th]]","v":325363.20000000001},{"$f":"(((AAMC_Raw_Data_for_FY22[[#This Row],[Median]]-AAMC_Raw_Data_for_FY22[[#This Row],[25th]])/25)*15) + AAMC_Raw_Data_for_FY22[[#This Row],[25th]]","v":341634.8},{"$f":"(((AAMC_Raw_Data_for_FY22[[#This Row],[Median]]-AAMC_Raw_Data_for_FY22[[#This Row],[25th]])/25)*20) + AAMC_Raw_Data_for_FY22[[#This Row],[25th]]","v":357906.4},374178,{"$f":"(((AAMC_Raw_Data_for_FY22[[#This Row],[75th]]-AAMC_Raw_Data_for_FY22[[#This Row],[Median]])/25)*5) + AAMC_Raw_Data_for_FY22[[#This Row],[Median]]","v":376913.2},{"$f":"(((AAMC_Raw_Data_for_FY22[[#This Row],[75th]]-AAMC_Raw_Data_for_FY22[[#This Row],[Median]])/25)*10) + AAMC_Raw_Data_for_FY22[[#This Row],[Median]]","v":379648.4},{"$f":"(((AAMC_Raw_Data_for_FY22[[#This Row],[75th]]-AAMC_Raw_Data_for_FY22[[#This Row],[Median]])/25)*15) + AAMC_Raw_Data_for_FY22[[#This Row],[Median]]","v":382383.6},{"$f":"(((AAMC_Raw_Data_for_FY22[[#This Row],[75th]]-AAMC_Raw_Data_for_FY22[[#This Row],[Median]])/25)*20) + AAMC_Raw_Data_for_FY22[[#This Row],[Median]]","v":385118.8},387854,{"$f":"(((AAMC_Raw_Data_for_FY22[[#This Row],[75th]]-AAMC_Raw_Data_for_FY22[[#This Row],[Median]])/25)*30) + AAMC_Raw_Data_for_FY22[[#This Row],[Median]]","v":390589.2},{"$f":"(((AAMC_Raw_Data_for_FY22[[#This Row],[75th]]-AAMC_Raw_Data_for_FY22[[#This Row],[Median]])/25)*35) + AAMC_Raw_Data_for_FY22[[#This Row],[Median]]","v":393324.4},{"$f":"(((AAMC_Raw_Data_for_FY22[[#This Row],[75th]]-AAMC_Raw_Data_for_FY22[[#This Row],[Median]])/25)*40) + AAMC_Raw_Data_for_FY22[[#This Row],[Median]]","v":396059.6}]
[{"$f":"AAMC_Raw_Data_for_FY22[[#This Row],[Source]]&AAMC_Raw_Data_for_FY22[[#This Row],[Type]]&AAMC_Raw_Data_for_FY22[[#This Row],[School Subset]]&AAMC_Raw_Data_for_FY22[[#This Row],[Rank]]&AAMC_Raw_Data_for_FY22[[#This Row],[Degree]]&AAMC_Raw_Data_for_FY22[[#This Row],[Department / Specialty]]&\"L\"","v":"AAMCAcademicAllInstructorPhDOther RadiologyL"},"Other Radiology",5,"AAMC","Academic","All","Instructor","PhD","2021-2022",72314,{"$f":"(((AAMC_Raw_Data_for_FY22[[#This Row],[Median]]-AAMC_Raw_Data_for_FY22[[#This Row],[25th]])/25)*5) + AAMC_Raw_Data_for_FY22[[#This Row],[25th]]","v":73566.2},{"$f":"(((AAMC_Raw_Data_for_FY22[[#This Row],[Median]]-AAMC_Raw_Data_for_FY22[[#This Row],[25th]])/25)*10) + AAMC_Raw_Data_for_FY22[[#This Row],[25th]]","v":74818.399999999994},{"$f":"(((AAMC_Raw_Data_for_FY22[[#This Row],[Median]]-AAMC_Raw_Data_for_FY22[[#This Row],[25th]])/25)*15) + AAMC_Raw_Data_for_FY22[[#This Row],[25th]]","v":76070.600000000006},{"$f":"(((AAMC_Raw_Data_for_FY22[[#This Row],[Median]]-AAMC_Raw_Data_for_FY22[[#This Row],[25th]])/25)*20) + AAMC_Raw_Data_for_FY22[[#This Row],[25th]]","v":77322.8},78575,{"$f":"(((AAMC_Raw_Data_for_FY22[[#This Row],[75th]]-AAMC_Raw_Data_for_FY22[[#This Row],[Median]])/25)*5) + AAMC_Raw_Data_for_FY22[[#This Row],[Median]]","v":82924.399999999994},{"$f":"(((AAMC_Raw_Data_for_FY22[[#This Row],[75th]]-AAMC_Raw_Data_for_FY22[[#This Row],[Median]])/25)*10) + AAMC_Raw_Data_for_FY22[[#This Row],[Median]]","v":87273.8},{"$f":"(((AAMC_Raw_Data_for_FY22[[#This Row],[75th]]-AAMC_Raw_Data_for_FY22[[#This Row],[Median]])/25)*15) + AAMC_Raw_Data_for_FY22[[#This Row],[Median]]","v":91623.2},{"$f":"(((AAMC_Raw_Data_for_FY22[[#This Row],[75th]]-AAMC_Raw_Data_for_FY22[[#This Row],[Median]])/25)*20) + AAMC_Raw_Data_for_FY22[[#This Row],[Median]]","v":95972.6},100322,{"$f":"(((AAMC_Raw_Data_for_FY22[[#This Row],[75th]]-AAMC_Raw_Data_for_FY22[[#This Row],[Median]])/25)*30) + AAMC_Raw_Data_for_FY22[[#This Row],[Median]]","v":104671.4},{"$f":"(((AAMC_Raw_Data_for_FY22[[#This Row],[75th]]-AAMC_Raw_Data_for_FY22[[#This Row],[Median]])/25)*35) + AAMC_Raw_Data_for_FY22[[#This Row],[Median]]","v":109020.8},{"$f":"(((AAMC_Raw_Data_for_FY22[[#This Row],[75th]]-AAMC_Raw_Data_for_FY22[[#This Row],[Median]])/25)*40) + AAMC_Raw_Data_for_FY22[[#This Row],[Median]]","v":113370.2}]
[{"$f":"AAMC_Raw_Data_for_FY22[[#This Row],[Source]]&AAMC_Raw_Data_for_FY22[[#This Row],[Type]]&AAMC_Raw_Data_for_FY22[[#This Row],[School Subset]]&AAMC_Raw_Data_for_FY22[[#This Row],[Rank]]&AAMC_Raw_Data_for_FY22[[#This Row],[Degree]]&AAMC_Raw_Data_for_FY22[[#This Row],[Department / Specialty]]&\"L\"","v":"AAMCAcademicAllAssistantPhDOther RadiologyL"},"Other Radiology",4,"AAMC","Academic","All","Assistant","PhD","2021-2022",97838,{"$f":"(((AAMC_Raw_Data_for_FY22[[#This Row],[Median]]-AAMC_Raw_Data_for_FY22[[#This Row],[25th]])/25)*5) + AAMC_Raw_Data_for_FY22[[#This Row],[25th]]","v":102337.8},{"$f":"(((AAMC_Raw_Data_for_FY22[[#This Row],[Median]]-AAMC_Raw_Data_for_FY22[[#This Row],[25th]])/25)*10) + AAMC_Raw_Data_for_FY22[[#This Row],[25th]]","v":106837.6},{"$f":"(((AAMC_Raw_Data_for_FY22[[#This Row],[Median]]-AAMC_Raw_Data_for_FY22[[#This Row],[25th]])/25)*15) + AAMC_Raw_Data_for_FY22[[#This Row],[25th]]","v":111337.4},{"$f":"(((AAMC_Raw_Data_for_FY22[[#This Row],[Median]]-AAMC_Raw_Data_for_FY22[[#This Row],[25th]])/25)*20) + AAMC_Raw_Data_for_FY22[[#This Row],[25th]]","v":115837.2},120337,{"$f":"(((AAMC_Raw_Data_for_FY22[[#This Row],[75th]]-AAMC_Raw_Data_for_FY22[[#This Row],[Median]])/25)*5) + AAMC_Raw_Data_for_FY22[[#This Row],[Median]]","v":127505.4},{"$f":"(((AAMC_Raw_Data_for_FY22[[#This Row],[75th]]-AAMC_Raw_Data_for_FY22[[#This Row],[Median]])/25)*10) + AAMC_Raw_Data_for_FY22[[#This Row],[Median]]","v":134673.79999999999},{"$f":"(((AAMC_Raw_Data_for_FY22[[#This Row],[75th]]-AAMC_Raw_Data_for_FY22[[#This Row],[Median]])/25)*15) + AAMC_Raw_Data_for_FY22[[#This Row],[Median]]","v":141842.20000000001},{"$f":"(((AAMC_Raw_Data_for_FY22[[#This Row],[75th]]-AAMC_Raw_Data_for_FY22[[#This Row],[Median]])/25)*20) + AAMC_Raw_Data_for_FY22[[#This Row],[Median]]","v":149010.6},156179,{"$f":"(((AAMC_Raw_Data_for_FY22[[#This Row],[75th]]-AAMC_Raw_Data_for_FY22[[#This Row],[Median]])/25)*30) + AAMC_Raw_Data_for_FY22[[#This Row],[Median]]","v":163347.4},{"$f":"(((AAMC_Raw_Data_for_FY22[[#This Row],[75th]]-AAMC_Raw_Data_for_FY22[[#This Row],[Median]])/25)*35) + AAMC_Raw_Data_for_FY22[[#This Row],[Median]]","v":170515.8},{"$f":"(((AAMC_Raw_Data_for_FY22[[#This Row],[75th]]-AAMC_Raw_Data_for_FY22[[#This Row],[Median]])/25)*40) + AAMC_Raw_Data_for_FY22[[#This Row],[Median]]","v":177684.2}]
[{"$f":"AAMC_Raw_Data_for_FY22[[#This Row],[Source]]&AAMC_Raw_Data_for_FY22[[#This Row],[Type]]&AAMC_Raw_Data_for_FY22[[#This Row],[School Subset]]&AAMC_Raw_Data_for_FY22[[#This Row],[Rank]]&AAMC_Raw_Data_for_FY22[[#This Row],[Degree]]&AAMC_Raw_Data_for_FY22[[#This Row],[Department / Specialty]]&\"L\"","v":"AAMCAcademicAllAssociatePhDOther RadiologyL"},"Other Radiology",3,"AAMC","Academic","All","Associate","PhD","2021-2022",132271,{"$f":"(((AAMC_Raw_Data_for_FY22[[#This Row],[Median]]-AAMC_Raw_Data_for_FY22[[#This Row],[25th]])/25)*5) + AAMC_Raw_Data_for_FY22[[#This Row],[25th]]","v":139110.20000000001},{"$f":"(((AAMC_Raw_Data_for_FY22[[#This Row],[Median]]-AAMC_Raw_Data_for_FY22[[#This Row],[25th]])/25)*10) + AAMC_Raw_Data_for_FY22[[#This Row],[25th]]","v":145949.4},{"$f":"(((AAMC_Raw_Data_for_FY22[[#This Row],[Median]]-AAMC_Raw_Data_for_FY22[[#This Row],[25th]])/25)*15) + AAMC_Raw_Data_for_FY22[[#This Row],[25th]]","v":152788.6},{"$f":"(((AAMC_Raw_Data_for_FY22[[#This Row],[Median]]-AAMC_Raw_Data_for_FY22[[#This Row],[25th]])/25)*20) + AAMC_Raw_Data_for_FY22[[#This Row],[25th]]","v":159627.79999999999},166467,{"$f":"(((AAMC_Raw_Data_for_FY22[[#This Row],[75th]]-AAMC_Raw_Data_for_FY22[[#This Row],[Median]])/25)*5) + AAMC_Raw_Data_for_FY22[[#This Row],[Median]]","v":173379.8},{"$f":"(((AAMC_Raw_Data_for_FY22[[#This Row],[75th]]-AAMC_Raw_Data_for_FY22[[#This Row],[Median]])/25)*10) + AAMC_Raw_Data_for_FY22[[#This Row],[Median]]","v":180292.6},{"$f":"(((AAMC_Raw_Data_for_FY22[[#This Row],[75th]]-AAMC_Raw_Data_for_FY22[[#This Row],[Median]])/25)*15) + AAMC_Raw_Data_for_FY22[[#This Row],[Median]]","v":187205.4},{"$f":"(((AAMC_Raw_Data_for_FY22[[#This Row],[75th]]-AAMC_Raw_Data_for_FY22[[#This Row],[Median]])/25)*20) + AAMC_Raw_Data_for_FY22[[#This Row],[Median]]","v":194118.2},201031,{"$f":"(((AAMC_Raw_Data_for_FY22[[#This Row],[75th]]-AAMC_Raw_Data_for_FY22[[#This Row],[Median]])/25)*30) + AAMC_Raw_Data_for_FY22[[#This Row],[Median]]","v":207943.8},{"$f":"(((AAMC_Raw_Data_for_FY22[[#This Row],[75th]]-AAMC_Raw_Data_for_FY22[[#This Row],[Median]])/25)*35) + AAMC_Raw_Data_for_FY22[[#This Row],[Median]]","v":214856.6},{"$f":"(((AAMC_Raw_Data_for_FY22[[#This Row],[75th]]-AAMC_Raw_Data_for_FY22[[#This Row],[Median]])/25)*40) + AAMC_Raw_Data_for_FY22[[#This Row],[Median]]","v":221769.4}]
[{"$f":"AAMC_Raw_Data_for_FY22[[#This Row],[Source]]&AAMC_Raw_Data_for_FY22[[#This Row],[Type]]&AAMC_Raw_Data_for_FY22[[#This Row],[School Subset]]&AAMC_Raw_Data_for_FY22[[#This Row],[Rank]]&AAMC_Raw_Data_for_FY22[[#This Row],[Degree]]&AAMC_Raw_Data_for_FY22[[#This Row],[Department / Specialty]]&\"L\"","v":"AAMCAcademicAllProfessorPhDOther RadiologyL"},"Other Radiology",2,"AAMC","Academic","All","Professor","PhD","2021-2022",180164,{"$f":"(((AAMC_Raw_Data_for_FY22[[#This Row],[Median]]-AAMC_Raw_Data_for_FY22[[#This Row],[25th]])/25)*5) + AAMC_Raw_Data_for_FY22[[#This Row],[25th]]","v":189350.6},{"$f":"(((AAMC_Raw_Data_for_FY22[[#This Row],[Median]]-AAMC_Raw_Data_for_FY22[[#This Row],[25th]])/25)*10) + AAMC_Raw_Data_for_FY22[[#This Row],[25th]]","v":198537.2},{"$f":"(((AAMC_Raw_Data_for_FY22[[#This Row],[Median]]-AAMC_Raw_Data_for_FY22[[#This Row],[25th]])/25)*15) + AAMC_Raw_Data_for_FY22[[#This Row],[25th]]","v":207723.8},{"$f":"(((AAMC_Raw_Data_for_FY22[[#This Row],[Median]]-AAMC_Raw_Data_for_FY22[[#This Row],[25th]])/25)*20) + AAMC_Raw_Data_for_FY22[[#This Row],[25th]]","v":216910.4},226097,{"$f":"(((AAMC_Raw_Data_for_FY22[[#This Row],[75th]]-AAMC_Raw_Data_for_FY22[[#This Row],[Median]])/25)*5) + AAMC_Raw_Data_for_FY22[[#This Row],[Median]]","v":233987.8},{"$f":"(((AAMC_Raw_Data_for_FY22[[#This Row],[75th]]-AAMC_Raw_Data_for_FY22[[#This Row],[Median]])/25)*10) + AAMC_Raw_Data_for_FY22[[#This Row],[Median]]","v":241878.6},{"$f":"(((AAMC_Raw_Data_for_FY22[[#This Row],[75th]]-AAMC_Raw_Data_for_FY22[[#This Row],[Median]])/25)*15) + AAMC_Raw_Data_for_FY22[[#This Row],[Median]]","v":249769.4},{"$f":"(((AAMC_Raw_Data_for_FY22[[#This Row],[75th]]-AAMC_Raw_Data_for_FY22[[#This Row],[Median]])/25)*20) + AAMC_Raw_Data_for_FY22[[#This Row],[Median]]","v":257660.2},265551,{"$f":"(((AAMC_Raw_Data_for_FY22[[#This Row],[75th]]-AAMC_Raw_Data_for_FY22[[#This Row],[Median]])/25)*30) + AAMC_Raw_Data_for_FY22[[#This Row],[Median]]","v":273441.8},{"$f":"(((AAMC_Raw_Data_for_FY22[[#This Row],[75th]]-AAMC_Raw_Data_for_FY22[[#This Row],[Median]])/25)*35) + AAMC_Raw_Data_for_FY22[[#This Row],[Median]]","v":281332.59999999998},{"$f":"(((AAMC_Raw_Data_for_FY22[[#This Row],[75th]]-AAMC_Raw_Data_for_FY22[[#This Row],[Median]])/25)*40) + AAMC_Raw_Data_for_FY22[[#This Row],[Median]]","v":289223.40000000002}]
[{"$f":"AAMC_Raw_Data_for_FY22[[#This Row],[Source]]&AAMC_Raw_Data_for_FY22[[#This Row],[Type]]&AAMC_Raw_Data_for_FY22[[#This Row],[School Subset]]&AAMC_Raw_Data_for_FY22[[#This Row],[Rank]]&AAMC_Raw_Data_for_FY22[[#This Row],[Degree]]&AAMC_Raw_Data_for_FY22[[#This Row],[Department / Specialty]]&\"L\"","v":"AAMCAcademicAllChiefPhDOther RadiologyL"},"Other Radiology",6,"AAMC","Academic","All","Chief","PhD","2021-2022",252784,{"$f":"(((AAMC_Raw_Data_for_FY22[[#This Row],[Median]]-AAMC_Raw_Data_for_FY22[[#This Row],[25th]])/25)*5) + AAMC_Raw_Data_for_FY22[[#This Row],[25th]]","v":261583.4},{"$f":"(((AAMC_Raw_Data_for_FY22[[#This Row],[Median]]-AAMC_Raw_Data_for_FY22[[#This Row],[25th]])/25)*10) + AAMC_Raw_Data_for_FY22[[#This Row],[25th]]","v":270382.8},{"$f":"(((AAMC_Raw_Data_for_FY22[[#This Row],[Median]]-AAMC_Raw_Data_for_FY22[[#This Row],[25th]])/25)*15) + AAMC_Raw_Data_for_FY22[[#This Row],[25th]]","v":279182.2},{"$f":"(((AAMC_Raw_Data_for_FY22[[#This Row],[Median]]-AAMC_Raw_Data_for_FY22[[#This Row],[25th]])/25)*20) + AAMC_Raw_Data_for_FY22[[#This Row],[25th]]","v":287981.59999999998},296781,{"$f":"(((AAMC_Raw_Data_for_FY22[[#This Row],[75th]]-AAMC_Raw_Data_for_FY22[[#This Row],[Median]])/25)*5) + AAMC_Raw_Data_for_FY22[[#This Row],[Median]]","v":302385.40000000002},{"$f":"(((AAMC_Raw_Data_for_FY22[[#This Row],[75th]]-AAMC_Raw_Data_for_FY22[[#This Row],[Median]])/25)*10) + AAMC_Raw_Data_for_FY22[[#This Row],[Median]]","v":307989.8},{"$f":"(((AAMC_Raw_Data_for_FY22[[#This Row],[75th]]-AAMC_Raw_Data_for_FY22[[#This Row],[Median]])/25)*15) + AAMC_Raw_Data_for_FY22[[#This Row],[Median]]","v":313594.2},{"$f":"(((AAMC_Raw_Data_for_FY22[[#This Row],[75th]]-AAMC_Raw_Data_for_FY22[[#This Row],[Median]])/25)*20) + AAMC_Raw_Data_for_FY22[[#This Row],[Median]]","v":319198.59999999998},324803,{"$f":"(((AAMC_Raw_Data_for_FY22[[#This Row],[75th]]-AAMC_Raw_Data_for_FY22[[#This Row],[Median]])/25)*30) + AAMC_Raw_Data_for_FY22[[#This Row],[Median]]","v":330407.40000000002},{"$f":"(((AAMC_Raw_Data_for_FY22[[#This Row],[75th]]-AAMC_Raw_Data_for_FY22[[#This Row],[Median]])/25)*35) + AAMC_Raw_Data_for_FY22[[#This Row],[Median]]","v":336011.8},{"$f":"(((AAMC_Raw_Data_for_FY22[[#This Row],[75th]]-AAMC_Raw_Data_for_FY22[[#This Row],[Median]])/25)*40) + AAMC_Raw_Data_for_FY22[[#This Row],[Median]]","v":341616.2}]
[{"$f":"AAMC_Raw_Data_for_FY22[[#This Row],[Source]]&AAMC_Raw_Data_for_FY22[[#This Row],[Type]]&AAMC_Raw_Data_for_FY22[[#This Row],[School Subset]]&AAMC_Raw_Data_for_FY22[[#This Row],[Rank]]&AAMC_Raw_Data_for_FY22[[#This Row],[Degree]]&AAMC_Raw_Data_for_FY22[[#This Row],[Department / Specialty]]&\"L\"","v":"AAMCAcademicAllInstructorPhDSurgery TotalL"},"Surgery Total",5,"AAMC","Academic","All","Instructor","PhD","2021-2022",67700,{"$f":"(((AAMC_Raw_Data_for_FY22[[#This Row],[Median]]-AAMC_Raw_Data_for_FY22[[#This Row],[25th]])/25)*5) + AAMC_Raw_Data_for_FY22[[#This Row],[25th]]","v":69664.800000000003},{"$f":"(((AAMC_Raw_Data_for_FY22[[#This Row],[Median]]-AAMC_Raw_Data_for_FY22[[#This Row],[25th]])/25)*10) + AAMC_Raw_Data_for_FY22[[#This Row],[25th]]","v":71629.600000000006},{"$f":"(((AAMC_Raw_Data_for_FY22[[#This Row],[Median]]-AAMC_Raw_Data_for_FY22[[#This Row],[25th]])/25)*15) + AAMC_Raw_Data_for_FY22[[#This Row],[25th]]","v":73594.399999999994},{"$f":"(((AAMC_Raw_Data_for_FY22[[#This Row],[Median]]-AAMC_Raw_Data_for_FY22[[#This Row],[25th]])/25)*20) + AAMC_Raw_Data_for_FY22[[#This Row],[25th]]","v":75559.199999999997},77524,{"$f":"(((AAMC_Raw_Data_for_FY22[[#This Row],[75th]]-AAMC_Raw_Data_for_FY22[[#This Row],[Median]])/25)*5) + AAMC_Raw_Data_for_FY22[[#This Row],[Median]]","v":83583.199999999997},{"$f":"(((AAMC_Raw_Data_for_FY22[[#This Row],[75th]]-AAMC_Raw_Data_for_FY22[[#This Row],[Median]])/25)*10) + AAMC_Raw_Data_for_FY22[[#This Row],[Median]]","v":89642.4},{"$f":"(((AAMC_Raw_Data_for_FY22[[#This Row],[75th]]-AAMC_Raw_Data_for_FY22[[#This Row],[Median]])/25)*15) + AAMC_Raw_Data_for_FY22[[#This Row],[Median]]","v":95701.6},{"$f":"(((AAMC_Raw_Data_for_FY22[[#This Row],[75th]]-AAMC_Raw_Data_for_FY22[[#This Row],[Median]])/25)*20) + AAMC_Raw_Data_for_FY22[[#This Row],[Median]]","v":101760.8},107820,{"$f":"(((AAMC_Raw_Data_for_FY22[[#This Row],[75th]]-AAMC_Raw_Data_for_FY22[[#This Row],[Median]])/25)*30) + AAMC_Raw_Data_for_FY22[[#This Row],[Median]]","v":113879.2},{"$f":"(((AAMC_Raw_Data_for_FY22[[#This Row],[75th]]-AAMC_Raw_Data_for_FY22[[#This Row],[Median]])/25)*35) + AAMC_Raw_Data_for_FY22[[#This Row],[Median]]","v":119938.4},{"$f":"(((AAMC_Raw_Data_for_FY22[[#This Row],[75th]]-AAMC_Raw_Data_for_FY22[[#This Row],[Median]])/25)*40) + AAMC_Raw_Data_for_FY22[[#This Row],[Median]]","v":125997.6}]
[{"$f":"AAMC_Raw_Data_for_FY22[[#This Row],[Source]]&AAMC_Raw_Data_for_FY22[[#This Row],[Type]]&AAMC_Raw_Data_for_FY22[[#This Row],[School Subset]]&AAMC_Raw_Data_for_FY22[[#This Row],[Rank]]&AAMC_Raw_Data_for_FY22[[#This Row],[Degree]]&AAMC_Raw_Data_for_FY22[[#This Row],[Department / Specialty]]&\"L\"","v":"AAMCAcademicAllAssistantPhDSurgery TotalL"},"Surgery Total",4,"AAMC","Academic","All","Assistant","PhD","2021-2022",87076,{"$f":"(((AAMC_Raw_Data_for_FY22[[#This Row],[Median]]-AAMC_Raw_Data_for_FY22[[#This Row],[25th]])/25)*5) + AAMC_Raw_Data_for_FY22[[#This Row],[25th]]","v":90734.2},{"$f":"(((AAMC_Raw_Data_for_FY22[[#This Row],[Median]]-AAMC_Raw_Data_for_FY22[[#This Row],[25th]])/25)*10) + AAMC_Raw_Data_for_FY22[[#This Row],[25th]]","v":94392.4},{"$f":"(((AAMC_Raw_Data_for_FY22[[#This Row],[Median]]-AAMC_Raw_Data_for_FY22[[#This Row],[25th]])/25)*15) + AAMC_Raw_Data_for_FY22[[#This Row],[25th]]","v":98050.6},{"$f":"(((AAMC_Raw_Data_for_FY22[[#This Row],[Median]]-AAMC_Raw_Data_for_FY22[[#This Row],[25th]])/25)*20) + AAMC_Raw_Data_for_FY22[[#This Row],[25th]]","v":101708.8},105367,{"$f":"(((AAMC_Raw_Data_for_FY22[[#This Row],[75th]]-AAMC_Raw_Data_for_FY22[[#This Row],[Median]])/25)*5) + AAMC_Raw_Data_for_FY22[[#This Row],[Median]]","v":110237},{"$f":"(((AAMC_Raw_Data_for_FY22[[#This Row],[75th]]-AAMC_Raw_Data_for_FY22[[#This Row],[Median]])/25)*10) + AAMC_Raw_Data_for_FY22[[#This Row],[Median]]","v":115107},{"$f":"(((AAMC_Raw_Data_for_FY22[[#This Row],[75th]]-AAMC_Raw_Data_for_FY22[[#This Row],[Median]])/25)*15) + AAMC_Raw_Data_for_FY22[[#This Row],[Median]]","v":119977},{"$f":"(((AAMC_Raw_Data_for_FY22[[#This Row],[75th]]-AAMC_Raw_Data_for_FY22[[#This Row],[Median]])/25)*20) + AAMC_Raw_Data_for_FY22[[#This Row],[Median]]","v":124847},129717,{"$f":"(((AAMC_Raw_Data_for_FY22[[#This Row],[75th]]-AAMC_Raw_Data_for_FY22[[#This Row],[Median]])/25)*30) + AAMC_Raw_Data_for_FY22[[#This Row],[Median]]","v":134587},{"$f":"(((AAMC_Raw_Data_for_FY22[[#This Row],[75th]]-AAMC_Raw_Data_for_FY22[[#This Row],[Median]])/25)*35) + AAMC_Raw_Data_for_FY22[[#This Row],[Median]]","v":139457},{"$f":"(((AAMC_Raw_Data_for_FY22[[#This Row],[75th]]-AAMC_Raw_Data_for_FY22[[#This Row],[Median]])/25)*40) + AAMC_Raw_Data_for_FY22[[#This Row],[Median]]","v":144327}]
[{"$f":"AAMC_Raw_Data_for_FY22[[#This Row],[Source]]&AAMC_Raw_Data_for_FY22[[#This Row],[Type]]&AAMC_Raw_Data_for_FY22[[#This Row],[School Subset]]&AAMC_Raw_Data_for_FY22[[#This Row],[Rank]]&AAMC_Raw_Data_for_FY22[[#This Row],[Degree]]&AAMC_Raw_Data_for_FY22[[#This Row],[Department / Specialty]]&\"L\"","v":"AAMCAcademicAllAssociatePhDSurgery TotalL"},"Surgery Total",3,"AAMC","Academic","All","Associate","PhD","2021-2022",121693,{"$f":"(((AAMC_Raw_Data_for_FY22[[#This Row],[Median]]-AAMC_Raw_Data_for_FY22[[#This Row],[25th]])/25)*5) + AAMC_Raw_Data_for_FY22[[#This Row],[25th]]","v":125354.4},{"$f":"(((AAMC_Raw_Data_for_FY22[[#This Row],[Median]]-AAMC_Raw_Data_for_FY22[[#This Row],[25th]])/25)*10) + AAMC_Raw_Data_for_FY22[[#This Row],[25th]]","v":129015.8},{"$f":"(((AAMC_Raw_Data_for_FY22[[#This Row],[Median]]-AAMC_Raw_Data_for_FY22[[#This Row],[25th]])/25)*15) + AAMC_Raw_Data_for_FY22[[#This Row],[25th]]","v":132677.20000000001},{"$f":"(((AAMC_Raw_Data_for_FY22[[#This Row],[Median]]-AAMC_Raw_Data_for_FY22[[#This Row],[25th]])/25)*20) + AAMC_Raw_Data_for_FY22[[#This Row],[25th]]","v":136338.6},140000,{"$f":"(((AAMC_Raw_Data_for_FY22[[#This Row],[75th]]-AAMC_Raw_Data_for_FY22[[#This Row],[Median]])/25)*5) + AAMC_Raw_Data_for_FY22[[#This Row],[Median]]","v":146712.20000000001},{"$f":"(((AAMC_Raw_Data_for_FY22[[#This Row],[75th]]-AAMC_Raw_Data_for_FY22[[#This Row],[Median]])/25)*10) + AAMC_Raw_Data_for_FY22[[#This Row],[Median]]","v":153424.4},{"$f":"(((AAMC_Raw_Data_for_FY22[[#This Row],[75th]]-AAMC_Raw_Data_for_FY22[[#This Row],[Median]])/25)*15) + AAMC_Raw_Data_for_FY22[[#This Row],[Median]]","v":160136.6},{"$f":"(((AAMC_Raw_Data_for_FY22[[#This Row],[75th]]-AAMC_Raw_Data_for_FY22[[#This Row],[Median]])/25)*20) + AAMC_Raw_Data_for_FY22[[#This Row],[Median]]","v":166848.79999999999},173561,{"$f":"(((AAMC_Raw_Data_for_FY22[[#This Row],[75th]]-AAMC_Raw_Data_for_FY22[[#This Row],[Median]])/25)*30) + AAMC_Raw_Data_for_FY22[[#This Row],[Median]]","v":180273.2},{"$f":"(((AAMC_Raw_Data_for_FY22[[#This Row],[75th]]-AAMC_Raw_Data_for_FY22[[#This Row],[Median]])/25)*35) + AAMC_Raw_Data_for_FY22[[#This Row],[Median]]","v":186985.4},{"$f":"(((AAMC_Raw_Data_for_FY22[[#This Row],[75th]]-AAMC_Raw_Data_for_FY22[[#This Row],[Median]])/25)*40) + AAMC_Raw_Data_for_FY22[[#This Row],[Median]]","v":193697.6}]
[{"$f":"AAMC_Raw_Data_for_FY22[[#This Row],[Source]]&AAMC_Raw_Data_for_FY22[[#This Row],[Type]]&AAMC_Raw_Data_for_FY22[[#This Row],[School Subset]]&AAMC_Raw_Data_for_FY22[[#This Row],[Rank]]&AAMC_Raw_Data_for_FY22[[#This Row],[Degree]]&AAMC_Raw_Data_for_FY22[[#This Row],[Department / Specialty]]&\"L\"","v":"AAMCAcademicAllProfessorPhDSurgery TotalL"},"Surgery Total",2,"AAMC","Academic","All","Professor","PhD","2021-2022",181600,{"$f":"(((AAMC_Raw_Data_for_FY22[[#This Row],[Median]]-AAMC_Raw_Data_for_FY22[[#This Row],[25th]])/25)*5) + AAMC_Raw_Data_for_FY22[[#This Row],[25th]]","v":189703.4},{"$f":"(((AAMC_Raw_Data_for_FY22[[#This Row],[Median]]-AAMC_Raw_Data_for_FY22[[#This Row],[25th]])/25)*10) + AAMC_Raw_Data_for_FY22[[#This Row],[25th]]","v":197806.8},{"$f":"(((AAMC_Raw_Data_for_FY22[[#This Row],[Median]]-AAMC_Raw_Data_for_FY22[[#This Row],[25th]])/25)*15) + AAMC_Raw_Data_for_FY22[[#This Row],[25th]]","v":205910.2},{"$f":"(((AAMC_Raw_Data_for_FY22[[#This Row],[Median]]-AAMC_Raw_Data_for_FY22[[#This Row],[25th]])/25)*20) + AAMC_Raw_Data_for_FY22[[#This Row],[25th]]","v":214013.6},222117,{"$f":"(((AAMC_Raw_Data_for_FY22[[#This Row],[75th]]-AAMC_Raw_Data_for_FY22[[#This Row],[Median]])/25)*5) + AAMC_Raw_Data_for_FY22[[#This Row],[Median]]","v":231798},{"$f":"(((AAMC_Raw_Data_for_FY22[[#This Row],[75th]]-AAMC_Raw_Data_for_FY22[[#This Row],[Median]])/25)*10) + AAMC_Raw_Data_for_FY22[[#This Row],[Median]]","v":241479},{"$f":"(((AAMC_Raw_Data_for_FY22[[#This Row],[75th]]-AAMC_Raw_Data_for_FY22[[#This Row],[Median]])/25)*15) + AAMC_Raw_Data_for_FY22[[#This Row],[Median]]","v":251160},{"$f":"(((AAMC_Raw_Data_for_FY22[[#This Row],[75th]]-AAMC_Raw_Data_for_FY22[[#This Row],[Median]])/25)*20) + AAMC_Raw_Data_for_FY22[[#This Row],[Median]]","v":260841},270522,{"$f":"(((AAMC_Raw_Data_for_FY22[[#This Row],[75th]]-AAMC_Raw_Data_for_FY22[[#This Row],[Median]])/25)*30) + AAMC_Raw_Data_for_FY22[[#This Row],[Median]]","v":280203},{"$f":"(((AAMC_Raw_Data_for_FY22[[#This Row],[75th]]-AAMC_Raw_Data_for_FY22[[#This Row],[Median]])/25)*35) + AAMC_Raw_Data_for_FY22[[#This Row],[Median]]","v":289884},{"$f":"(((AAMC_Raw_Data_for_FY22[[#This Row],[75th]]-AAMC_Raw_Data_for_FY22[[#This Row],[Median]])/25)*40) + AAMC_Raw_Data_for_FY22[[#This Row],[Median]]","v":299565}]
[{"$f":"AAMC_Raw_Data_for_FY22[[#This Row],[Source]]&AAMC_Raw_Data_for_FY22[[#This Row],[Type]]&AAMC_Raw_Data_for_FY22[[#This Row],[School Subset]]&AAMC_Raw_Data_for_FY22[[#This Row],[Rank]]&AAMC_Raw_Data_for_FY22[[#This Row],[Degree]]&AAMC_Raw_Data_for_FY22[[#This Row],[Department / Specialty]]&\"L\"","v":"AAMCAcademicAllChiefPhDSurgery TotalL"},"Surgery Total",6,"AAMC","Academic","All","Chief","PhD","2021-2022",239385,{"$f":"(((AAMC_Raw_Data_for_FY22[[#This Row],[Median]]-AAMC_Raw_Data_for_FY22[[#This Row],[25th]])/25)*5) + AAMC_Raw_Data_for_FY22[[#This Row],[25th]]","v":254646.2},{"$f":"(((AAMC_Raw_Data_for_FY22[[#This Row],[Median]]-AAMC_Raw_Data_for_FY22[[#This Row],[25th]])/25)*10) + AAMC_Raw_Data_for_FY22[[#This Row],[25th]]","v":269907.40000000002},{"$f":"(((AAMC_Raw_Data_for_FY22[[#This Row],[Median]]-AAMC_Raw_Data_for_FY22[[#This Row],[25th]])/25)*15) + AAMC_Raw_Data_for_FY22[[#This Row],[25th]]","v":285168.59999999998},{"$f":"(((AAMC_Raw_Data_for_FY22[[#This Row],[Median]]-AAMC_Raw_Data_for_FY22[[#This Row],[25th]])/25)*20) + AAMC_Raw_Data_for_FY22[[#This Row],[25th]]","v":300429.8},315691,{"$f":"(((AAMC_Raw_Data_for_FY22[[#This Row],[75th]]-AAMC_Raw_Data_for_FY22[[#This Row],[Median]])/25)*5) + AAMC_Raw_Data_for_FY22[[#This Row],[Median]]","v":340902},{"$f":"(((AAMC_Raw_Data_for_FY22[[#This Row],[75th]]-AAMC_Raw_Data_for_FY22[[#This Row],[Median]])/25)*10) + AAMC_Raw_Data_for_FY22[[#This Row],[Median]]","v":366113},{"$f":"(((AAMC_Raw_Data_for_FY22[[#This Row],[75th]]-AAMC_Raw_Data_for_FY22[[#This Row],[Median]])/25)*15) + AAMC_Raw_Data_for_FY22[[#This Row],[Median]]","v":391324},{"$f":"(((AAMC_Raw_Data_for_FY22[[#This Row],[75th]]-AAMC_Raw_Data_for_FY22[[#This Row],[Median]])/25)*20) + AAMC_Raw_Data_for_FY22[[#This Row],[Median]]","v":416535},441746,{"$f":"(((AAMC_Raw_Data_for_FY22[[#This Row],[75th]]-AAMC_Raw_Data_for_FY22[[#This Row],[Median]])/25)*30) + AAMC_Raw_Data_for_FY22[[#This Row],[Median]]","v":466957},{"$f":"(((AAMC_Raw_Data_for_FY22[[#This Row],[75th]]-AAMC_Raw_Data_for_FY22[[#This Row],[Median]])/25)*35) + AAMC_Raw_Data_for_FY22[[#This Row],[Median]]","v":492168},{"$f":"(((AAMC_Raw_Data_for_FY22[[#This Row],[75th]]-AAMC_Raw_Data_for_FY22[[#This Row],[Median]])/25)*40) + AAMC_Raw_Data_for_FY22[[#This Row],[Median]]","v":517379}]
[{"$f":"AAMC_Raw_Data_for_FY22[[#This Row],[Source]]&AAMC_Raw_Data_for_FY22[[#This Row],[Type]]&AAMC_Raw_Data_for_FY22[[#This Row],[School Subset]]&AAMC_Raw_Data_for_FY22[[#This Row],[Rank]]&AAMC_Raw_Data_for_FY22[[#This Row],[Degree]]&AAMC_Raw_Data_for_FY22[[#This Row],[Department / Specialty]]&\"L\"","v":"AAMCAcademicAllInstructorPhDGeneral SurgeryL"},"General Surgery",5,"AAMC","Academic","All","Instructor","PhD","2021-2022",61500,{"$f":"(((AAMC_Raw_Data_for_FY22[[#This Row],[Median]]-AAMC_Raw_Data_for_FY22[[#This Row],[25th]])/25)*5) + AAMC_Raw_Data_for_FY22[[#This Row],[25th]]","v":61583},{"$f":"(((AAMC_Raw_Data_for_FY22[[#This Row],[Median]]-AAMC_Raw_Data_for_FY22[[#This Row],[25th]])/25)*10) + AAMC_Raw_Data_for_FY22[[#This Row],[25th]]","v":61666},{"$f":"(((AAMC_Raw_Data_for_FY22[[#This Row],[Median]]-AAMC_Raw_Data_for_FY22[[#This Row],[25th]])/25)*15) + AAMC_Raw_Data_for_FY22[[#This Row],[25th]]","v":61749},{"$f":"(((AAMC_Raw_Data_for_FY22[[#This Row],[Median]]-AAMC_Raw_Data_for_FY22[[#This Row],[25th]])/25)*20) + AAMC_Raw_Data_for_FY22[[#This Row],[25th]]","v":61832},61915,{"$f":"(((AAMC_Raw_Data_for_FY22[[#This Row],[75th]]-AAMC_Raw_Data_for_FY22[[#This Row],[Median]])/25)*5) + AAMC_Raw_Data_for_FY22[[#This Row],[Median]]","v":68600},{"$f":"(((AAMC_Raw_Data_for_FY22[[#This Row],[75th]]-AAMC_Raw_Data_for_FY22[[#This Row],[Median]])/25)*10) + AAMC_Raw_Data_for_FY22[[#This Row],[Median]]","v":75285},{"$f":"(((AAMC_Raw_Data_for_FY22[[#This Row],[75th]]-AAMC_Raw_Data_for_FY22[[#This Row],[Median]])/25)*15) + AAMC_Raw_Data_for_FY22[[#This Row],[Median]]","v":81970},{"$f":"(((AAMC_Raw_Data_for_FY22[[#This Row],[75th]]-AAMC_Raw_Data_for_FY22[[#This Row],[Median]])/25)*20) + AAMC_Raw_Data_for_FY22[[#This Row],[Median]]","v":88655},95340,{"$f":"(((AAMC_Raw_Data_for_FY22[[#This Row],[75th]]-AAMC_Raw_Data_for_FY22[[#This Row],[Median]])/25)*30) + AAMC_Raw_Data_for_FY22[[#This Row],[Median]]","v":102025},{"$f":"(((AAMC_Raw_Data_for_FY22[[#This Row],[75th]]-AAMC_Raw_Data_for_FY22[[#This Row],[Median]])/25)*35) + AAMC_Raw_Data_for_FY22[[#This Row],[Median]]","v":108710},{"$f":"(((AAMC_Raw_Data_for_FY22[[#This Row],[75th]]-AAMC_Raw_Data_for_FY22[[#This Row],[Median]])/25)*40) + AAMC_Raw_Data_for_FY22[[#This Row],[Median]]","v":115395}]
[{"$f":"AAMC_Raw_Data_for_FY22[[#This Row],[Source]]&AAMC_Raw_Data_for_FY22[[#This Row],[Type]]&AAMC_Raw_Data_for_FY22[[#This Row],[School Subset]]&AAMC_Raw_Data_for_FY22[[#This Row],[Rank]]&AAMC_Raw_Data_for_FY22[[#This Row],[Degree]]&AAMC_Raw_Data_for_FY22[[#This Row],[Department / Specialty]]&\"L\"","v":"AAMCAcademicAllAssistantPhDGeneral SurgeryL"},"General Surgery",4,"AAMC","Academic","All","Assistant","PhD","2021-2022",72999,{"$f":"(((AAMC_Raw_Data_for_FY22[[#This Row],[Median]]-AAMC_Raw_Data_for_FY22[[#This Row],[25th]])/25)*5) + AAMC_Raw_Data_for_FY22[[#This Row],[25th]]","v":76387.8},{"$f":"(((AAMC_Raw_Data_for_FY22[[#This Row],[Median]]-AAMC_Raw_Data_for_FY22[[#This Row],[25th]])/25)*10) + AAMC_Raw_Data_for_FY22[[#This Row],[25th]]","v":79776.600000000006},{"$f":"(((AAMC_Raw_Data_for_FY22[[#This Row],[Median]]-AAMC_Raw_Data_for_FY22[[#This Row],[25th]])/25)*15) + AAMC_Raw_Data_for_FY22[[#This Row],[25th]]","v":83165.399999999994},{"$f":"(((AAMC_Raw_Data_for_FY22[[#This Row],[Median]]-AAMC_Raw_Data_for_FY22[[#This Row],[25th]])/25)*20) + AAMC_Raw_Data_for_FY22[[#This Row],[25th]]","v":86554.2},89943,{"$f":"(((AAMC_Raw_Data_for_FY22[[#This Row],[75th]]-AAMC_Raw_Data_for_FY22[[#This Row],[Median]])/25)*5) + AAMC_Raw_Data_for_FY22[[#This Row],[Median]]","v":92414.399999999994},{"$f":"(((AAMC_Raw_Data_for_FY22[[#This Row],[75th]]-AAMC_Raw_Data_for_FY22[[#This Row],[Median]])/25)*10) + AAMC_Raw_Data_for_FY22[[#This Row],[Median]]","v":94885.8},{"$f":"(((AAMC_Raw_Data_for_FY22[[#This Row],[75th]]-AAMC_Raw_Data_for_FY22[[#This Row],[Median]])/25)*15) + AAMC_Raw_Data_for_FY22[[#This Row],[Median]]","v":97357.2},{"$f":"(((AAMC_Raw_Data_for_FY22[[#This Row],[75th]]-AAMC_Raw_Data_for_FY22[[#This Row],[Median]])/25)*20) + AAMC_Raw_Data_for_FY22[[#This Row],[Median]]","v":99828.6},102300,{"$f":"(((AAMC_Raw_Data_for_FY22[[#This Row],[75th]]-AAMC_Raw_Data_for_FY22[[#This Row],[Median]])/25)*30) + AAMC_Raw_Data_for_FY22[[#This Row],[Median]]","v":104771.4},{"$f":"(((AAMC_Raw_Data_for_FY22[[#This Row],[75th]]-AAMC_Raw_Data_for_FY22[[#This Row],[Median]])/25)*35) + AAMC_Raw_Data_for_FY22[[#This Row],[Median]]","v":107242.8},{"$f":"(((AAMC_Raw_Data_for_FY22[[#This Row],[75th]]-AAMC_Raw_Data_for_FY22[[#This Row],[Median]])/25)*40) + AAMC_Raw_Data_for_FY22[[#This Row],[Median]]","v":109714.2}]
[{"$f":"AAMC_Raw_Data_for_FY22[[#This Row],[Source]]&AAMC_Raw_Data_for_FY22[[#This Row],[Type]]&AAMC_Raw_Data_for_FY22[[#This Row],[School Subset]]&AAMC_Raw_Data_for_FY22[[#This Row],[Rank]]&AAMC_Raw_Data_for_FY22[[#This Row],[Degree]]&AAMC_Raw_Data_for_FY22[[#This Row],[Department / Specialty]]&\"L\"","v":"AAMCAcademicAllAssociatePhDGeneral SurgeryL"},"General Surgery",3,"AAMC","Academic","All","Associate","PhD","2021-2022",100445,{"$f":"(((AAMC_Raw_Data_for_FY22[[#This Row],[Median]]-AAMC_Raw_Data_for_FY22[[#This Row],[25th]])/25)*5) + AAMC_Raw_Data_for_FY22[[#This Row],[25th]]","v":104356},{"$f":"(((AAMC_Raw_Data_for_FY22[[#This Row],[Median]]-AAMC_Raw_Data_for_FY22[[#This Row],[25th]])/25)*10) + AAMC_Raw_Data_for_FY22[[#This Row],[25th]]","v":108267},{"$f":"(((AAMC_Raw_Data_for_FY22[[#This Row],[Median]]-AAMC_Raw_Data_for_FY22[[#This Row],[25th]])/25)*15) + AAMC_Raw_Data_for_FY22[[#This Row],[25th]]","v":112178},{"$f":"(((AAMC_Raw_Data_for_FY22[[#This Row],[Median]]-AAMC_Raw_Data_for_FY22[[#This Row],[25th]])/25)*20) + AAMC_Raw_Data_for_FY22[[#This Row],[25th]]","v":116089},120000,{"$f":"(((AAMC_Raw_Data_for_FY22[[#This Row],[75th]]-AAMC_Raw_Data_for_FY22[[#This Row],[Median]])/25)*5) + AAMC_Raw_Data_for_FY22[[#This Row],[Median]]","v":127770.6},{"$f":"(((AAMC_Raw_Data_for_FY22[[#This Row],[75th]]-AAMC_Raw_Data_for_FY22[[#This Row],[Median]])/25)*10) + AAMC_Raw_Data_for_FY22[[#This Row],[Median]]","v":135541.20000000001},{"$f":"(((AAMC_Raw_Data_for_FY22[[#This Row],[75th]]-AAMC_Raw_Data_for_FY22[[#This Row],[Median]])/25)*15) + AAMC_Raw_Data_for_FY22[[#This Row],[Median]]","v":143311.79999999999},{"$f":"(((AAMC_Raw_Data_for_FY22[[#This Row],[75th]]-AAMC_Raw_Data_for_FY22[[#This Row],[Median]])/25)*20) + AAMC_Raw_Data_for_FY22[[#This Row],[Median]]","v":151082.4},158853,{"$f":"(((AAMC_Raw_Data_for_FY22[[#This Row],[75th]]-AAMC_Raw_Data_for_FY22[[#This Row],[Median]])/25)*30) + AAMC_Raw_Data_for_FY22[[#This Row],[Median]]","v":166623.6},{"$f":"(((AAMC_Raw_Data_for_FY22[[#This Row],[75th]]-AAMC_Raw_Data_for_FY22[[#This Row],[Median]])/25)*35) + AAMC_Raw_Data_for_FY22[[#This Row],[Median]]","v":174394.2},{"$f":"(((AAMC_Raw_Data_for_FY22[[#This Row],[75th]]-AAMC_Raw_Data_for_FY22[[#This Row],[Median]])/25)*40) + AAMC_Raw_Data_for_FY22[[#This Row],[Median]]","v":182164.8}]
[{"$f":"AAMC_Raw_Data_for_FY22[[#This Row],[Source]]&AAMC_Raw_Data_for_FY22[[#This Row],[Type]]&AAMC_Raw_Data_for_FY22[[#This Row],[School Subset]]&AAMC_Raw_Data_for_FY22[[#This Row],[Rank]]&AAMC_Raw_Data_for_FY22[[#This Row],[Degree]]&AAMC_Raw_Data_for_FY22[[#This Row],[Department / Specialty]]&\"L\"","v":"AAMCAcademicAllProfessorPhDGeneral SurgeryL"},"General Surgery",2,"AAMC","Academic","All","Professor","PhD","2021-2022",187429,{"$f":"(((AAMC_Raw_Data_for_FY22[[#This Row],[Median]]-AAMC_Raw_Data_for_FY22[[#This Row],[25th]])/25)*5) + AAMC_Raw_Data_for_FY22[[#This Row],[25th]]","v":192831.8},{"$f":"(((AAMC_Raw_Data_for_FY22[[#This Row],[Median]]-AAMC_Raw_Data_for_FY22[[#This Row],[25th]])/25)*10) + AAMC_Raw_Data_for_FY22[[#This Row],[25th]]","v":198234.6},{"$f":"(((AAMC_Raw_Data_for_FY22[[#This Row],[Median]]-AAMC_Raw_Data_for_FY22[[#This Row],[25th]])/25)*15) + AAMC_Raw_Data_for_FY22[[#This Row],[25th]]","v":203637.4},{"$f":"(((AAMC_Raw_Data_for_FY22[[#This Row],[Median]]-AAMC_Raw_Data_for_FY22[[#This Row],[25th]])/25)*20) + AAMC_Raw_Data_for_FY22[[#This Row],[25th]]","v":209040.2},214443,{"$f":"(((AAMC_Raw_Data_for_FY22[[#This Row],[75th]]-AAMC_Raw_Data_for_FY22[[#This Row],[Median]])/25)*5) + AAMC_Raw_Data_for_FY22[[#This Row],[Median]]","v":217386.4},{"$f":"(((AAMC_Raw_Data_for_FY22[[#This Row],[75th]]-AAMC_Raw_Data_for_FY22[[#This Row],[Median]])/25)*10) + AAMC_Raw_Data_for_FY22[[#This Row],[Median]]","v":220329.8},{"$f":"(((AAMC_Raw_Data_for_FY22[[#This Row],[75th]]-AAMC_Raw_Data_for_FY22[[#This Row],[Median]])/25)*15) + AAMC_Raw_Data_for_FY22[[#This Row],[Median]]","v":223273.2},{"$f":"(((AAMC_Raw_Data_for_FY22[[#This Row],[75th]]-AAMC_Raw_Data_for_FY22[[#This Row],[Median]])/25)*20) + AAMC_Raw_Data_for_FY22[[#This Row],[Median]]","v":226216.6},229160,{"$f":"(((AAMC_Raw_Data_for_FY22[[#This Row],[75th]]-AAMC_Raw_Data_for_FY22[[#This Row],[Median]])/25)*30) + AAMC_Raw_Data_for_FY22[[#This Row],[Median]]","v":232103.4},{"$f":"(((AAMC_Raw_Data_for_FY22[[#This Row],[75th]]-AAMC_Raw_Data_for_FY22[[#This Row],[Median]])/25)*35) + AAMC_Raw_Data_for_FY22[[#This Row],[Median]]","v":235046.8},{"$f":"(((AAMC_Raw_Data_for_FY22[[#This Row],[75th]]-AAMC_Raw_Data_for_FY22[[#This Row],[Median]])/25)*40) + AAMC_Raw_Data_for_FY22[[#This Row],[Median]]","v":237990.2}]
[{"$f":"AAMC_Raw_Data_for_FY22[[#This Row],[Source]]&AAMC_Raw_Data_for_FY22[[#This Row],[Type]]&AAMC_Raw_Data_for_FY22[[#This Row],[School Subset]]&AAMC_Raw_Data_for_FY22[[#This Row],[Rank]]&AAMC_Raw_Data_for_FY22[[#This Row],[Degree]]&AAMC_Raw_Data_for_FY22[[#This Row],[Department / Specialty]]&\"L\"","v":"AAMCAcademicAllInstructorPhDNeurosurgeryL"},"Neurosurgery",5,"AAMC","Academic","All","Instructor","PhD","2021-2022",71888,{"$f":"(((AAMC_Raw_Data_for_FY22[[#This Row],[Median]]-AAMC_Raw_Data_for_FY22[[#This Row],[25th]])/25)*5) + AAMC_Raw_Data_for_FY22[[#This Row],[25th]]","v":74510.399999999994},{"$f":"(((AAMC_Raw_Data_for_FY22[[#This Row],[Median]]-AAMC_Raw_Data_for_FY22[[#This Row],[25th]])/25)*10) + AAMC_Raw_Data_for_FY22[[#This Row],[25th]]","v":77132.800000000003},{"$f":"(((AAMC_Raw_Data_for_FY22[[#This Row],[Median]]-AAMC_Raw_Data_for_FY22[[#This Row],[25th]])/25)*15) + AAMC_Raw_Data_for_FY22[[#This Row],[25th]]","v":79755.199999999997},{"$f":"(((AAMC_Raw_Data_for_FY22[[#This Row],[Median]]-AAMC_Raw_Data_for_FY22[[#This Row],[25th]])/25)*20) + AAMC_Raw_Data_for_FY22[[#This Row],[25th]]","v":82377.600000000006},85000,{"$f":"(((AAMC_Raw_Data_for_FY22[[#This Row],[75th]]-AAMC_Raw_Data_for_FY22[[#This Row],[Median]])/25)*5) + AAMC_Raw_Data_for_FY22[[#This Row],[Median]]","v":90000},{"$f":"(((AAMC_Raw_Data_for_FY22[[#This Row],[75th]]-AAMC_Raw_Data_for_FY22[[#This Row],[Median]])/25)*10) + AAMC_Raw_Data_for_FY22[[#This Row],[Median]]","v":95000},{"$f":"(((AAMC_Raw_Data_for_FY22[[#This Row],[75th]]-AAMC_Raw_Data_for_FY22[[#This Row],[Median]])/25)*15) + AAMC_Raw_Data_for_FY22[[#This Row],[Median]]","v":100000},{"$f":"(((AAMC_Raw_Data_for_FY22[[#This Row],[75th]]-AAMC_Raw_Data_for_FY22[[#This Row],[Median]])/25)*20) + AAMC_Raw_Data_for_FY22[[#This Row],[Median]]","v":105000},110000,{"$f":"(((AAMC_Raw_Data_for_FY22[[#This Row],[75th]]-AAMC_Raw_Data_for_FY22[[#This Row],[Median]])/25)*30) + AAMC_Raw_Data_for_FY22[[#This Row],[Median]]","v":115000},{"$f":"(((AAMC_Raw_Data_for_FY22[[#This Row],[75th]]-AAMC_Raw_Data_for_FY22[[#This Row],[Median]])/25)*35) + AAMC_Raw_Data_for_FY22[[#This Row],[Median]]","v":120000},{"$f":"(((AAMC_Raw_Data_for_FY22[[#This Row],[75th]]-AAMC_Raw_Data_for_FY22[[#This Row],[Median]])/25)*40) + AAMC_Raw_Data_for_FY22[[#This Row],[Median]]","v":125000}]
[{"$f":"AAMC_Raw_Data_for_FY22[[#This Row],[Source]]&AAMC_Raw_Data_for_FY22[[#This Row],[Type]]&AAMC_Raw_Data_for_FY22[[#This Row],[School Subset]]&AAMC_Raw_Data_for_FY22[[#This Row],[Rank]]&AAMC_Raw_Data_for_FY22[[#This Row],[Degree]]&AAMC_Raw_Data_for_FY22[[#This Row],[Department / Specialty]]&\"L\"","v":"AAMCAcademicAllAssistantPhDNeurosurgeryL"},"Neurosurgery",4,"AAMC","Academic","All","Assistant","PhD","2021-2022",91513,{"$f":"(((AAMC_Raw_Data_for_FY22[[#This Row],[Median]]-AAMC_Raw_Data_for_FY22[[#This Row],[25th]])/25)*5) + AAMC_Raw_Data_for_FY22[[#This Row],[25th]]","v":95211.199999999997},{"$f":"(((AAMC_Raw_Data_for_FY22[[#This Row],[Median]]-AAMC_Raw_Data_for_FY22[[#This Row],[25th]])/25)*10) + AAMC_Raw_Data_for_FY22[[#This Row],[25th]]","v":98909.4},{"$f":"(((AAMC_Raw_Data_for_FY22[[#This Row],[Median]]-AAMC_Raw_Data_for_FY22[[#This Row],[25th]])/25)*15) + AAMC_Raw_Data_for_FY22[[#This Row],[25th]]","v":102607.6},{"$f":"(((AAMC_Raw_Data_for_FY22[[#This Row],[Median]]-AAMC_Raw_Data_for_FY22[[#This Row],[25th]])/25)*20) + AAMC_Raw_Data_for_FY22[[#This Row],[25th]]","v":106305.8},110004,{"$f":"(((AAMC_Raw_Data_for_FY22[[#This Row],[75th]]-AAMC_Raw_Data_for_FY22[[#This Row],[Median]])/25)*5) + AAMC_Raw_Data_for_FY22[[#This Row],[Median]]","v":113210.8},{"$f":"(((AAMC_Raw_Data_for_FY22[[#This Row],[75th]]-AAMC_Raw_Data_for_FY22[[#This Row],[Median]])/25)*10) + AAMC_Raw_Data_for_FY22[[#This Row],[Median]]","v":116417.60000000001},{"$f":"(((AAMC_Raw_Data_for_FY22[[#This Row],[75th]]-AAMC_Raw_Data_for_FY22[[#This Row],[Median]])/25)*15) + AAMC_Raw_Data_for_FY22[[#This Row],[Median]]","v":119624.4},{"$f":"(((AAMC_Raw_Data_for_FY22[[#This Row],[75th]]-AAMC_Raw_Data_for_FY22[[#This Row],[Median]])/25)*20) + AAMC_Raw_Data_for_FY22[[#This Row],[Median]]","v":122831.2},126038,{"$f":"(((AAMC_Raw_Data_for_FY22[[#This Row],[75th]]-AAMC_Raw_Data_for_FY22[[#This Row],[Median]])/25)*30) + AAMC_Raw_Data_for_FY22[[#This Row],[Median]]","v":129244.8},{"$f":"(((AAMC_Raw_Data_for_FY22[[#This Row],[75th]]-AAMC_Raw_Data_for_FY22[[#This Row],[Median]])/25)*35) + AAMC_Raw_Data_for_FY22[[#This Row],[Median]]","v":132451.6},{"$f":"(((AAMC_Raw_Data_for_FY22[[#This Row],[75th]]-AAMC_Raw_Data_for_FY22[[#This Row],[Median]])/25)*40) + AAMC_Raw_Data_for_FY22[[#This Row],[Median]]","v":135658.4}]
[{"$f":"AAMC_Raw_Data_for_FY22[[#This Row],[Source]]&AAMC_Raw_Data_for_FY22[[#This Row],[Type]]&AAMC_Raw_Data_for_FY22[[#This Row],[School Subset]]&AAMC_Raw_Data_for_FY22[[#This Row],[Rank]]&AAMC_Raw_Data_for_FY22[[#This Row],[Degree]]&AAMC_Raw_Data_for_FY22[[#This Row],[Department / Specialty]]&\"L\"","v":"AAMCAcademicAllAssociatePhDNeurosurgeryL"},"Neurosurgery",3,"AAMC","Academic","All","Associate","PhD","2021-2022",128415,{"$f":"(((AAMC_Raw_Data_for_FY22[[#This Row],[Median]]-AAMC_Raw_Data_for_FY22[[#This Row],[25th]])/25)*5) + AAMC_Raw_Data_for_FY22[[#This Row],[25th]]","v":133632},{"$f":"(((AAMC_Raw_Data_for_FY22[[#This Row],[Median]]-AAMC_Raw_Data_for_FY22[[#This Row],[25th]])/25)*10) + AAMC_Raw_Data_for_FY22[[#This Row],[25th]]","v":138849},{"$f":"(((AAMC_Raw_Data_for_FY22[[#This Row],[Median]]-AAMC_Raw_Data_for_FY22[[#This Row],[25th]])/25)*15) + AAMC_Raw_Data_for_FY22[[#This Row],[25th]]","v":144066},{"$f":"(((AAMC_Raw_Data_for_FY22[[#This Row],[Median]]-AAMC_Raw_Data_for_FY22[[#This Row],[25th]])/25)*20) + AAMC_Raw_Data_for_FY22[[#This Row],[25th]]","v":149283},154500,{"$f":"(((AAMC_Raw_Data_for_FY22[[#This Row],[75th]]-AAMC_Raw_Data_for_FY22[[#This Row],[Median]])/25)*5) + AAMC_Raw_Data_for_FY22[[#This Row],[Median]]","v":159193.60000000001},{"$f":"(((AAMC_Raw_Data_for_FY22[[#This Row],[75th]]-AAMC_Raw_Data_for_FY22[[#This Row],[Median]])/25)*10) + AAMC_Raw_Data_for_FY22[[#This Row],[Median]]","v":163887.20000000001},{"$f":"(((AAMC_Raw_Data_for_FY22[[#This Row],[75th]]-AAMC_Raw_Data_for_FY22[[#This Row],[Median]])/25)*15) + AAMC_Raw_Data_for_FY22[[#This Row],[Median]]","v":168580.8},{"$f":"(((AAMC_Raw_Data_for_FY22[[#This Row],[75th]]-AAMC_Raw_Data_for_FY22[[#This Row],[Median]])/25)*20) + AAMC_Raw_Data_for_FY22[[#This Row],[Median]]","v":173274.4},177968,{"$f":"(((AAMC_Raw_Data_for_FY22[[#This Row],[75th]]-AAMC_Raw_Data_for_FY22[[#This Row],[Median]])/25)*30) + AAMC_Raw_Data_for_FY22[[#This Row],[Median]]","v":182661.6},{"$f":"(((AAMC_Raw_Data_for_FY22[[#This Row],[75th]]-AAMC_Raw_Data_for_FY22[[#This Row],[Median]])/25)*35) + AAMC_Raw_Data_for_FY22[[#This Row],[Median]]","v":187355.2},{"$f":"(((AAMC_Raw_Data_for_FY22[[#This Row],[75th]]-AAMC_Raw_Data_for_FY22[[#This Row],[Median]])/25)*40) + AAMC_Raw_Data_for_FY22[[#This Row],[Median]]","v":192048.8}]
[{"$f":"AAMC_Raw_Data_for_FY22[[#This Row],[Source]]&AAMC_Raw_Data_for_FY22[[#This Row],[Type]]&AAMC_Raw_Data_for_FY22[[#This Row],[School Subset]]&AAMC_Raw_Data_for_FY22[[#This Row],[Rank]]&AAMC_Raw_Data_for_FY22[[#This Row],[Degree]]&AAMC_Raw_Data_for_FY22[[#This Row],[Department / Specialty]]&\"L\"","v":"AAMCAcademicAllProfessorPhDNeurosurgeryL"},"Neurosurgery",2,"AAMC","Academic","All","Professor","PhD","2021-2022",172726,{"$f":"(((AAMC_Raw_Data_for_FY22[[#This Row],[Median]]-AAMC_Raw_Data_for_FY22[[#This Row],[25th]])/25)*5) + AAMC_Raw_Data_for_FY22[[#This Row],[25th]]","v":184197.6},{"$f":"(((AAMC_Raw_Data_for_FY22[[#This Row],[Median]]-AAMC_Raw_Data_for_FY22[[#This Row],[25th]])/25)*10) + AAMC_Raw_Data_for_FY22[[#This Row],[25th]]","v":195669.2},{"$f":"(((AAMC_Raw_Data_for_FY22[[#This Row],[Median]]-AAMC_Raw_Data_for_FY22[[#This Row],[25th]])/25)*15) + AAMC_Raw_Data_for_FY22[[#This Row],[25th]]","v":207140.8},{"$f":"(((AAMC_Raw_Data_for_FY22[[#This Row],[Median]]-AAMC_Raw_Data_for_FY22[[#This Row],[25th]])/25)*20) + AAMC_Raw_Data_for_FY22[[#This Row],[25th]]","v":218612.4},230084,{"$f":"(((AAMC_Raw_Data_for_FY22[[#This Row],[75th]]-AAMC_Raw_Data_for_FY22[[#This Row],[Median]])/25)*5) + AAMC_Raw_Data_for_FY22[[#This Row],[Median]]","v":247673.8},{"$f":"(((AAMC_Raw_Data_for_FY22[[#This Row],[75th]]-AAMC_Raw_Data_for_FY22[[#This Row],[Median]])/25)*10) + AAMC_Raw_Data_for_FY22[[#This Row],[Median]]","v":265263.59999999998},{"$f":"(((AAMC_Raw_Data_for_FY22[[#This Row],[75th]]-AAMC_Raw_Data_for_FY22[[#This Row],[Median]])/25)*15) + AAMC_Raw_Data_for_FY22[[#This Row],[Median]]","v":282853.40000000002},{"$f":"(((AAMC_Raw_Data_for_FY22[[#This Row],[75th]]-AAMC_Raw_Data_for_FY22[[#This Row],[Median]])/25)*20) + AAMC_Raw_Data_for_FY22[[#This Row],[Median]]","v":300443.2},318033,{"$f":"(((AAMC_Raw_Data_for_FY22[[#This Row],[75th]]-AAMC_Raw_Data_for_FY22[[#This Row],[Median]])/25)*30) + AAMC_Raw_Data_for_FY22[[#This Row],[Median]]","v":335622.8},{"$f":"(((AAMC_Raw_Data_for_FY22[[#This Row],[75th]]-AAMC_Raw_Data_for_FY22[[#This Row],[Median]])/25)*35) + AAMC_Raw_Data_for_FY22[[#This Row],[Median]]","v":353212.6},{"$f":"(((AAMC_Raw_Data_for_FY22[[#This Row],[75th]]-AAMC_Raw_Data_for_FY22[[#This Row],[Median]])/25)*40) + AAMC_Raw_Data_for_FY22[[#This Row],[Median]]","v":370802.4}]
[{"$f":"AAMC_Raw_Data_for_FY22[[#This Row],[Source]]&AAMC_Raw_Data_for_FY22[[#This Row],[Type]]&AAMC_Raw_Data_for_FY22[[#This Row],[School Subset]]&AAMC_Raw_Data_for_FY22[[#This Row],[Rank]]&AAMC_Raw_Data_for_FY22[[#This Row],[Degree]]&AAMC_Raw_Data_for_FY22[[#This Row],[Department / Specialty]]&\"L\"","v":"AAMCAcademicAllChiefPhDNeurosurgeryL"},"Neurosurgery",6,"AAMC","Academic","All","Chief","PhD","2021-2022",null,{"$f":"(((AAMC_Raw_Data_for_FY22[[#This Row],[Median]]-AAMC_Raw_Data_for_FY22[[#This Row],[25th]])/25)*5) + AAMC_Raw_Data_for_FY22[[#This Row],[25th]]","v":0},{"$f":"(((AAMC_Raw_Data_for_FY22[[#This Row],[Median]]-AAMC_Raw_Data_for_FY22[[#This Row],[25th]])/25)*10) + AAMC_Raw_Data_for_FY22[[#This Row],[25th]]","v":0},{"$f":"(((AAMC_Raw_Data_for_FY22[[#This Row],[Median]]-AAMC_Raw_Data_for_FY22[[#This Row],[25th]])/25)*15) + AAMC_Raw_Data_for_FY22[[#This Row],[25th]]","v":0},{"$f":"(((AAMC_Raw_Data_for_FY22[[#This Row],[Median]]-AAMC_Raw_Data_for_FY22[[#This Row],[25th]])/25)*20) + AAMC_Raw_Data_for_FY22[[#This Row],[25th]]","v":0},null,{"$f":"(((AAMC_Raw_Data_for_FY22[[#This Row],[75th]]-AAMC_Raw_Data_for_FY22[[#This Row],[Median]])/25)*5) + AAMC_Raw_Data_for_FY22[[#This Row],[Median]]","v":0},{"$f":"(((AAMC_Raw_Data_for_FY22[[#This Row],[75th]]-AAMC_Raw_Data_for_FY22[[#This Row],[Median]])/25)*10) + AAMC_Raw_Data_for_FY22[[#This Row],[Median]]","v":0},{"$f":"(((AAMC_Raw_Data_for_FY22[[#This Row],[75th]]-AAMC_Raw_Data_for_FY22[[#This Row],[Median]])/25)*15) + AAMC_Raw_Data_for_FY22[[#This Row],[Median]]","v":0},{"$f":"(((AAMC_Raw_Data_for_FY22[[#This Row],[75th]]-AAMC_Raw_Data_for_FY22[[#This Row],[Median]])/25)*20) + AAMC_Raw_Data_for_FY22[[#This Row],[Median]]","v":0},null,{"$f":"(((AAMC_Raw_Data_for_FY22[[#This Row],[75th]]-AAMC_Raw_Data_for_FY22[[#This Row],[Median]])/25)*30) + AAMC_Raw_Data_for_FY22[[#This Row],[Median]]","v":0},{"$f":"(((AAMC_Raw_Data_for_FY22[[#This Row],[75th]]-AAMC_Raw_Data_for_FY22[[#This Row],[Median]])/25)*35) + AAMC_Raw_Data_for_FY22[[#This Row],[Median]]","v":0},{"$f":"(((AAMC_Raw_Data_for_FY22[[#This Row],[75th]]-AAMC_Raw_Data_for_FY22[[#This Row],[Median]])/25)*40) + AAMC_Raw_Data_for_FY22[[#This Row],[Median]]","v":0}]
[{"$f":"AAMC_Raw_Data_for_FY22[[#This Row],[Source]]&AAMC_Raw_Data_for_FY22[[#This Row],[Type]]&AAMC_Raw_Data_for_FY22[[#This Row],[School Subset]]&AAMC_Raw_Data_for_FY22[[#This Row],[Rank]]&AAMC_Raw_Data_for_FY22[[#This Row],[Degree]]&AAMC_Raw_Data_for_FY22[[#This Row],[Department / Specialty]]&\"L\"","v":"AAMCAcademicAllInstructorPhDOrthopedic Surgery TotalL"},"Orthopedic Surgery Total",5,"AAMC","Academic","All","Instructor","PhD","2021-2022",68000,{"$f":"(((AAMC_Raw_Data_for_FY22[[#This Row],[Median]]-AAMC_Raw_Data_for_FY22[[#This Row],[25th]])/25)*5) + AAMC_Raw_Data_for_FY22[[#This Row],[25th]]","v":69483.399999999994},{"$f":"(((AAMC_Raw_Data_for_FY22[[#This Row],[Median]]-AAMC_Raw_Data_for_FY22[[#This Row],[25th]])/25)*10) + AAMC_Raw_Data_for_FY22[[#This Row],[25th]]","v":70966.8},{"$f":"(((AAMC_Raw_Data_for_FY22[[#This Row],[Median]]-AAMC_Raw_Data_for_FY22[[#This Row],[25th]])/25)*15) + AAMC_Raw_Data_for_FY22[[#This Row],[25th]]","v":72450.2},{"$f":"(((AAMC_Raw_Data_for_FY22[[#This Row],[Median]]-AAMC_Raw_Data_for_FY22[[#This Row],[25th]])/25)*20) + AAMC_Raw_Data_for_FY22[[#This Row],[25th]]","v":73933.600000000006},75417,{"$f":"(((AAMC_Raw_Data_for_FY22[[#This Row],[75th]]-AAMC_Raw_Data_for_FY22[[#This Row],[Median]])/25)*5) + AAMC_Raw_Data_for_FY22[[#This Row],[Median]]","v":79362.2},{"$f":"(((AAMC_Raw_Data_for_FY22[[#This Row],[75th]]-AAMC_Raw_Data_for_FY22[[#This Row],[Median]])/25)*10) + AAMC_Raw_Data_for_FY22[[#This Row],[Median]]","v":83307.399999999994},{"$f":"(((AAMC_Raw_Data_for_FY22[[#This Row],[75th]]-AAMC_Raw_Data_for_FY22[[#This Row],[Median]])/25)*15) + AAMC_Raw_Data_for_FY22[[#This Row],[Median]]","v":87252.6},{"$f":"(((AAMC_Raw_Data_for_FY22[[#This Row],[75th]]-AAMC_Raw_Data_for_FY22[[#This Row],[Median]])/25)*20) + AAMC_Raw_Data_for_FY22[[#This Row],[Median]]","v":91197.8},95143,{"$f":"(((AAMC_Raw_Data_for_FY22[[#This Row],[75th]]-AAMC_Raw_Data_for_FY22[[#This Row],[Median]])/25)*30) + AAMC_Raw_Data_for_FY22[[#This Row],[Median]]","v":99088.2},{"$f":"(((AAMC_Raw_Data_for_FY22[[#This Row],[75th]]-AAMC_Raw_Data_for_FY22[[#This Row],[Median]])/25)*35) + AAMC_Raw_Data_for_FY22[[#This Row],[Median]]","v":103033.4},{"$f":"(((AAMC_Raw_Data_for_FY22[[#This Row],[75th]]-AAMC_Raw_Data_for_FY22[[#This Row],[Median]])/25)*40) + AAMC_Raw_Data_for_FY22[[#This Row],[Median]]","v":106978.6}]
[{"$f":"AAMC_Raw_Data_for_FY22[[#This Row],[Source]]&AAMC_Raw_Data_for_FY22[[#This Row],[Type]]&AAMC_Raw_Data_for_FY22[[#This Row],[School Subset]]&AAMC_Raw_Data_for_FY22[[#This Row],[Rank]]&AAMC_Raw_Data_for_FY22[[#This Row],[Degree]]&AAMC_Raw_Data_for_FY22[[#This Row],[Department / Specialty]]&\"L\"","v":"AAMCAcademicAllAssistantPhDOrthopedic Surgery TotalL"},"Orthopedic Surgery Total",4,"AAMC","Academic","All","Assistant","PhD","2021-2022",94003,{"$f":"(((AAMC_Raw_Data_for_FY22[[#This Row],[Median]]-AAMC_Raw_Data_for_FY22[[#This Row],[25th]])/25)*5) + AAMC_Raw_Data_for_FY22[[#This Row],[25th]]","v":99154},{"$f":"(((AAMC_Raw_Data_for_FY22[[#This Row],[Median]]-AAMC_Raw_Data_for_FY22[[#This Row],[25th]])/25)*10) + AAMC_Raw_Data_for_FY22[[#This Row],[25th]]","v":104305},{"$f":"(((AAMC_Raw_Data_for_FY22[[#This Row],[Median]]-AAMC_Raw_Data_for_FY22[[#This Row],[25th]])/25)*15) + AAMC_Raw_Data_for_FY22[[#This Row],[25th]]","v":109456},{"$f":"(((AAMC_Raw_Data_for_FY22[[#This Row],[Median]]-AAMC_Raw_Data_for_FY22[[#This Row],[25th]])/25)*20) + AAMC_Raw_Data_for_FY22[[#This Row],[25th]]","v":114607},119758,{"$f":"(((AAMC_Raw_Data_for_FY22[[#This Row],[75th]]-AAMC_Raw_Data_for_FY22[[#This Row],[Median]])/25)*5) + AAMC_Raw_Data_for_FY22[[#This Row],[Median]]","v":128830.6},{"$f":"(((AAMC_Raw_Data_for_FY22[[#This Row],[75th]]-AAMC_Raw_Data_for_FY22[[#This Row],[Median]])/25)*10) + AAMC_Raw_Data_for_FY22[[#This Row],[Median]]","v":137903.20000000001},{"$f":"(((AAMC_Raw_Data_for_FY22[[#This Row],[75th]]-AAMC_Raw_Data_for_FY22[[#This Row],[Median]])/25)*15) + AAMC_Raw_Data_for_FY22[[#This Row],[Median]]","v":146975.79999999999},{"$f":"(((AAMC_Raw_Data_for_FY22[[#This Row],[75th]]-AAMC_Raw_Data_for_FY22[[#This Row],[Median]])/25)*20) + AAMC_Raw_Data_for_FY22[[#This Row],[Median]]","v":156048.4},165121,{"$f":"(((AAMC_Raw_Data_for_FY22[[#This Row],[75th]]-AAMC_Raw_Data_for_FY22[[#This Row],[Median]])/25)*30) + AAMC_Raw_Data_for_FY22[[#This Row],[Median]]","v":174193.6},{"$f":"(((AAMC_Raw_Data_for_FY22[[#This Row],[75th]]-AAMC_Raw_Data_for_FY22[[#This Row],[Median]])/25)*35) + AAMC_Raw_Data_for_FY22[[#This Row],[Median]]","v":183266.2},{"$f":"(((AAMC_Raw_Data_for_FY22[[#This Row],[75th]]-AAMC_Raw_Data_for_FY22[[#This Row],[Median]])/25)*40) + AAMC_Raw_Data_for_FY22[[#This Row],[Median]]","v":192338.8}]
[{"$f":"AAMC_Raw_Data_for_FY22[[#This Row],[Source]]&AAMC_Raw_Data_for_FY22[[#This Row],[Type]]&AAMC_Raw_Data_for_FY22[[#This Row],[School Subset]]&AAMC_Raw_Data_for_FY22[[#This Row],[Rank]]&AAMC_Raw_Data_for_FY22[[#This Row],[Degree]]&AAMC_Raw_Data_for_FY22[[#This Row],[Department / Specialty]]&\"L\"","v":"AAMCAcademicAllAssociatePhDOrthopedic Surgery TotalL"},"Orthopedic Surgery Total",3,"AAMC","Academic","All","Associate","PhD","2021-2022",122337,{"$f":"(((AAMC_Raw_Data_for_FY22[[#This Row],[Median]]-AAMC_Raw_Data_for_FY22[[#This Row],[25th]])/25)*5) + AAMC_Raw_Data_for_FY22[[#This Row],[25th]]","v":128769.60000000001},{"$f":"(((AAMC_Raw_Data_for_FY22[[#This Row],[Median]]-AAMC_Raw_Data_for_FY22[[#This Row],[25th]])/25)*10) + AAMC_Raw_Data_for_FY22[[#This Row],[25th]]","v":135202.20000000001},{"$f":"(((AAMC_Raw_Data_for_FY22[[#This Row],[Median]]-AAMC_Raw_Data_for_FY22[[#This Row],[25th]])/25)*15) + AAMC_Raw_Data_for_FY22[[#This Row],[25th]]","v":141634.79999999999},{"$f":"(((AAMC_Raw_Data_for_FY22[[#This Row],[Median]]-AAMC_Raw_Data_for_FY22[[#This Row],[25th]])/25)*20) + AAMC_Raw_Data_for_FY22[[#This Row],[25th]]","v":148067.4},154500,{"$f":"(((AAMC_Raw_Data_for_FY22[[#This Row],[75th]]-AAMC_Raw_Data_for_FY22[[#This Row],[Median]])/25)*5) + AAMC_Raw_Data_for_FY22[[#This Row],[Median]]","v":160385.79999999999},{"$f":"(((AAMC_Raw_Data_for_FY22[[#This Row],[75th]]-AAMC_Raw_Data_for_FY22[[#This Row],[Median]])/25)*10) + AAMC_Raw_Data_for_FY22[[#This Row],[Median]]","v":166271.6},{"$f":"(((AAMC_Raw_Data_for_FY22[[#This Row],[75th]]-AAMC_Raw_Data_for_FY22[[#This Row],[Median]])/25)*15) + AAMC_Raw_Data_for_FY22[[#This Row],[Median]]","v":172157.4},{"$f":"(((AAMC_Raw_Data_for_FY22[[#This Row],[75th]]-AAMC_Raw_Data_for_FY22[[#This Row],[Median]])/25)*20) + AAMC_Raw_Data_for_FY22[[#This Row],[Median]]","v":178043.2},183929,{"$f":"(((AAMC_Raw_Data_for_FY22[[#This Row],[75th]]-AAMC_Raw_Data_for_FY22[[#This Row],[Median]])/25)*30) + AAMC_Raw_Data_for_FY22[[#This Row],[Median]]","v":189814.8},{"$f":"(((AAMC_Raw_Data_for_FY22[[#This Row],[75th]]-AAMC_Raw_Data_for_FY22[[#This Row],[Median]])/25)*35) + AAMC_Raw_Data_for_FY22[[#This Row],[Median]]","v":195700.6},{"$f":"(((AAMC_Raw_Data_for_FY22[[#This Row],[75th]]-AAMC_Raw_Data_for_FY22[[#This Row],[Median]])/25)*40) + AAMC_Raw_Data_for_FY22[[#This Row],[Median]]","v":201586.4}]
[{"$f":"AAMC_Raw_Data_for_FY22[[#This Row],[Source]]&AAMC_Raw_Data_for_FY22[[#This Row],[Type]]&AAMC_Raw_Data_for_FY22[[#This Row],[School Subset]]&AAMC_Raw_Data_for_FY22[[#This Row],[Rank]]&AAMC_Raw_Data_for_FY22[[#This Row],[Degree]]&AAMC_Raw_Data_for_FY22[[#This Row],[Department / Specialty]]&\"L\"","v":"AAMCAcademicAllProfessorPhDOrthopedic Surgery TotalL"},"Orthopedic Surgery Total",2,"AAMC","Academic","All","Professor","PhD","2021-2022",184653,{"$f":"(((AAMC_Raw_Data_for_FY22[[#This Row],[Median]]-AAMC_Raw_Data_for_FY22[[#This Row],[25th]])/25)*5) + AAMC_Raw_Data_for_FY22[[#This Row],[25th]]","v":193924.8},{"$f":"(((AAMC_Raw_Data_for_FY22[[#This Row],[Median]]-AAMC_Raw_Data_for_FY22[[#This Row],[25th]])/25)*10) + AAMC_Raw_Data_for_FY22[[#This Row],[25th]]","v":203196.6},{"$f":"(((AAMC_Raw_Data_for_FY22[[#This Row],[Median]]-AAMC_Raw_Data_for_FY22[[#This Row],[25th]])/25)*15) + AAMC_Raw_Data_for_FY22[[#This Row],[25th]]","v":212468.4},{"$f":"(((AAMC_Raw_Data_for_FY22[[#This Row],[Median]]-AAMC_Raw_Data_for_FY22[[#This Row],[25th]])/25)*20) + AAMC_Raw_Data_for_FY22[[#This Row],[25th]]","v":221740.2},231012,{"$f":"(((AAMC_Raw_Data_for_FY22[[#This Row],[75th]]-AAMC_Raw_Data_for_FY22[[#This Row],[Median]])/25)*5) + AAMC_Raw_Data_for_FY22[[#This Row],[Median]]","v":242016.8},{"$f":"(((AAMC_Raw_Data_for_FY22[[#This Row],[75th]]-AAMC_Raw_Data_for_FY22[[#This Row],[Median]])/25)*10) + AAMC_Raw_Data_for_FY22[[#This Row],[Median]]","v":253021.6},{"$f":"(((AAMC_Raw_Data_for_FY22[[#This Row],[75th]]-AAMC_Raw_Data_for_FY22[[#This Row],[Median]])/25)*15) + AAMC_Raw_Data_for_FY22[[#This Row],[Median]]","v":264026.40000000002},{"$f":"(((AAMC_Raw_Data_for_FY22[[#This Row],[75th]]-AAMC_Raw_Data_for_FY22[[#This Row],[Median]])/25)*20) + AAMC_Raw_Data_for_FY22[[#This Row],[Median]]","v":275031.2},286036,{"$f":"(((AAMC_Raw_Data_for_FY22[[#This Row],[75th]]-AAMC_Raw_Data_for_FY22[[#This Row],[Median]])/25)*30) + AAMC_Raw_Data_for_FY22[[#This Row],[Median]]","v":297040.8},{"$f":"(((AAMC_Raw_Data_for_FY22[[#This Row],[75th]]-AAMC_Raw_Data_for_FY22[[#This Row],[Median]])/25)*35) + AAMC_Raw_Data_for_FY22[[#This Row],[Median]]","v":308045.59999999998},{"$f":"(((AAMC_Raw_Data_for_FY22[[#This Row],[75th]]-AAMC_Raw_Data_for_FY22[[#This Row],[Median]])/25)*40) + AAMC_Raw_Data_for_FY22[[#This Row],[Median]]","v":319050.40000000002}]
[{"$f":"AAMC_Raw_Data_for_FY22[[#This Row],[Source]]&AAMC_Raw_Data_for_FY22[[#This Row],[Type]]&AAMC_Raw_Data_for_FY22[[#This Row],[School Subset]]&AAMC_Raw_Data_for_FY22[[#This Row],[Rank]]&AAMC_Raw_Data_for_FY22[[#This Row],[Degree]]&AAMC_Raw_Data_for_FY22[[#This Row],[Department / Specialty]]&\"L\"","v":"AAMCAcademicAllChiefPhDOrthopedic Surgery TotalL"},"Orthopedic Surgery Total",6,"AAMC","Academic","All","Chief","PhD","2021-2022",null,{"$f":"(((AAMC_Raw_Data_for_FY22[[#This Row],[Median]]-AAMC_Raw_Data_for_FY22[[#This Row],[25th]])/25)*5) + AAMC_Raw_Data_for_FY22[[#This Row],[25th]]","v":0},{"$f":"(((AAMC_Raw_Data_for_FY22[[#This Row],[Median]]-AAMC_Raw_Data_for_FY22[[#This Row],[25th]])/25)*10) + AAMC_Raw_Data_for_FY22[[#This Row],[25th]]","v":0},{"$f":"(((AAMC_Raw_Data_for_FY22[[#This Row],[Median]]-AAMC_Raw_Data_for_FY22[[#This Row],[25th]])/25)*15) + AAMC_Raw_Data_for_FY22[[#This Row],[25th]]","v":0},{"$f":"(((AAMC_Raw_Data_for_FY22[[#This Row],[Median]]-AAMC_Raw_Data_for_FY22[[#This Row],[25th]])/25)*20) + AAMC_Raw_Data_for_FY22[[#This Row],[25th]]","v":0},null,{"$f":"(((AAMC_Raw_Data_for_FY22[[#This Row],[75th]]-AAMC_Raw_Data_for_FY22[[#This Row],[Median]])/25)*5) + AAMC_Raw_Data_for_FY22[[#This Row],[Median]]","v":0},{"$f":"(((AAMC_Raw_Data_for_FY22[[#This Row],[75th]]-AAMC_Raw_Data_for_FY22[[#This Row],[Median]])/25)*10) + AAMC_Raw_Data_for_FY22[[#This Row],[Median]]","v":0},{"$f":"(((AAMC_Raw_Data_for_FY22[[#This Row],[75th]]-AAMC_Raw_Data_for_FY22[[#This Row],[Median]])/25)*15) + AAMC_Raw_Data_for_FY22[[#This Row],[Median]]","v":0},{"$f":"(((AAMC_Raw_Data_for_FY22[[#This Row],[75th]]-AAMC_Raw_Data_for_FY22[[#This Row],[Median]])/25)*20) + AAMC_Raw_Data_for_FY22[[#This Row],[Median]]","v":0},null,{"$f":"(((AAMC_Raw_Data_for_FY22[[#This Row],[75th]]-AAMC_Raw_Data_for_FY22[[#This Row],[Median]])/25)*30) + AAMC_Raw_Data_for_FY22[[#This Row],[Median]]","v":0},{"$f":"(((AAMC_Raw_Data_for_FY22[[#This Row],[75th]]-AAMC_Raw_Data_for_FY22[[#This Row],[Median]])/25)*35) + AAMC_Raw_Data_for_FY22[[#This Row],[Median]]","v":0},{"$f":"(((AAMC_Raw_Data_for_FY22[[#This Row],[75th]]-AAMC_Raw_Data_for_FY22[[#This Row],[Median]])/25)*40) + AAMC_Raw_Data_for_FY22[[#This Row],[Median]]","v":0}]
[{"$f":"AAMC_Raw_Data_for_FY22[[#This Row],[Source]]&AAMC_Raw_Data_for_FY22[[#This Row],[Type]]&AAMC_Raw_Data_for_FY22[[#This Row],[School Subset]]&AAMC_Raw_Data_for_FY22[[#This Row],[Rank]]&AAMC_Raw_Data_for_FY22[[#This Row],[Degree]]&AAMC_Raw_Data_for_FY22[[#This Row],[Department / Specialty]]&\"L\"","v":"AAMCAcademicAllInstructorPhDOrthopedic Surgery: GeneralL"},"Orthopedic Surgery: General",5,"AAMC","Academic","All","Instructor","PhD","2021-2022",68000,{"$f":"(((AAMC_Raw_Data_for_FY22[[#This Row],[Median]]-AAMC_Raw_Data_for_FY22[[#This Row],[25th]])/25)*5) + AAMC_Raw_Data_for_FY22[[#This Row],[25th]]","v":69425.8},{"$f":"(((AAMC_Raw_Data_for_FY22[[#This Row],[Median]]-AAMC_Raw_Data_for_FY22[[#This Row],[25th]])/25)*10) + AAMC_Raw_Data_for_FY22[[#This Row],[25th]]","v":70851.600000000006},{"$f":"(((AAMC_Raw_Data_for_FY22[[#This Row],[Median]]-AAMC_Raw_Data_for_FY22[[#This Row],[25th]])/25)*15) + AAMC_Raw_Data_for_FY22[[#This Row],[25th]]","v":72277.399999999994},{"$f":"(((AAMC_Raw_Data_for_FY22[[#This Row],[Median]]-AAMC_Raw_Data_for_FY22[[#This Row],[25th]])/25)*20) + AAMC_Raw_Data_for_FY22[[#This Row],[25th]]","v":73703.199999999997},75129,{"$f":"(((AAMC_Raw_Data_for_FY22[[#This Row],[75th]]-AAMC_Raw_Data_for_FY22[[#This Row],[Median]])/25)*5) + AAMC_Raw_Data_for_FY22[[#This Row],[Median]]","v":75997.2},{"$f":"(((AAMC_Raw_Data_for_FY22[[#This Row],[75th]]-AAMC_Raw_Data_for_FY22[[#This Row],[Median]])/25)*10) + AAMC_Raw_Data_for_FY22[[#This Row],[Median]]","v":76865.399999999994},{"$f":"(((AAMC_Raw_Data_for_FY22[[#This Row],[75th]]-AAMC_Raw_Data_for_FY22[[#This Row],[Median]])/25)*15) + AAMC_Raw_Data_for_FY22[[#This Row],[Median]]","v":77733.600000000006},{"$f":"(((AAMC_Raw_Data_for_FY22[[#This Row],[75th]]-AAMC_Raw_Data_for_FY22[[#This Row],[Median]])/25)*20) + AAMC_Raw_Data_for_FY22[[#This Row],[Median]]","v":78601.8},79470,{"$f":"(((AAMC_Raw_Data_for_FY22[[#This Row],[75th]]-AAMC_Raw_Data_for_FY22[[#This Row],[Median]])/25)*30) + AAMC_Raw_Data_for_FY22[[#This Row],[Median]]","v":80338.2},{"$f":"(((AAMC_Raw_Data_for_FY22[[#This Row],[75th]]-AAMC_Raw_Data_for_FY22[[#This Row],[Median]])/25)*35) + AAMC_Raw_Data_for_FY22[[#This Row],[Median]]","v":81206.399999999994},{"$f":"(((AAMC_Raw_Data_for_FY22[[#This Row],[75th]]-AAMC_Raw_Data_for_FY22[[#This Row],[Median]])/25)*40) + AAMC_Raw_Data_for_FY22[[#This Row],[Median]]","v":82074.600000000006}]
[{"$f":"AAMC_Raw_Data_for_FY22[[#This Row],[Source]]&AAMC_Raw_Data_for_FY22[[#This Row],[Type]]&AAMC_Raw_Data_for_FY22[[#This Row],[School Subset]]&AAMC_Raw_Data_for_FY22[[#This Row],[Rank]]&AAMC_Raw_Data_for_FY22[[#This Row],[Degree]]&AAMC_Raw_Data_for_FY22[[#This Row],[Department / Specialty]]&\"L\"","v":"AAMCAcademicAllAssistantPhDOrthopedic Surgery: GeneralL"},"Orthopedic Surgery: General",4,"AAMC","Academic","All","Assistant","PhD","2021-2022",97672,{"$f":"(((AAMC_Raw_Data_for_FY22[[#This Row],[Median]]-AAMC_Raw_Data_for_FY22[[#This Row],[25th]])/25)*5) + AAMC_Raw_Data_for_FY22[[#This Row],[25th]]","v":102115.6},{"$f":"(((AAMC_Raw_Data_for_FY22[[#This Row],[Median]]-AAMC_Raw_Data_for_FY22[[#This Row],[25th]])/25)*10) + AAMC_Raw_Data_for_FY22[[#This Row],[25th]]","v":106559.2},{"$f":"(((AAMC_Raw_Data_for_FY22[[#This Row],[Median]]-AAMC_Raw_Data_for_FY22[[#This Row],[25th]])/25)*15) + AAMC_Raw_Data_for_FY22[[#This Row],[25th]]","v":111002.8},{"$f":"(((AAMC_Raw_Data_for_FY22[[#This Row],[Median]]-AAMC_Raw_Data_for_FY22[[#This Row],[25th]])/25)*20) + AAMC_Raw_Data_for_FY22[[#This Row],[25th]]","v":115446.39999999999},119890,{"$f":"(((AAMC_Raw_Data_for_FY22[[#This Row],[75th]]-AAMC_Raw_Data_for_FY22[[#This Row],[Median]])/25)*5) + AAMC_Raw_Data_for_FY22[[#This Row],[Median]]","v":127770.8},{"$f":"(((AAMC_Raw_Data_for_FY22[[#This Row],[75th]]-AAMC_Raw_Data_for_FY22[[#This Row],[Median]])/25)*10) + AAMC_Raw_Data_for_FY22[[#This Row],[Median]]","v":135651.6},{"$f":"(((AAMC_Raw_Data_for_FY22[[#This Row],[75th]]-AAMC_Raw_Data_for_FY22[[#This Row],[Median]])/25)*15) + AAMC_Raw_Data_for_FY22[[#This Row],[Median]]","v":143532.4},{"$f":"(((AAMC_Raw_Data_for_FY22[[#This Row],[75th]]-AAMC_Raw_Data_for_FY22[[#This Row],[Median]])/25)*20) + AAMC_Raw_Data_for_FY22[[#This Row],[Median]]","v":151413.20000000001},159294,{"$f":"(((AAMC_Raw_Data_for_FY22[[#This Row],[75th]]-AAMC_Raw_Data_for_FY22[[#This Row],[Median]])/25)*30) + AAMC_Raw_Data_for_FY22[[#This Row],[Median]]","v":167174.79999999999},{"$f":"(((AAMC_Raw_Data_for_FY22[[#This Row],[75th]]-AAMC_Raw_Data_for_FY22[[#This Row],[Median]])/25)*35) + AAMC_Raw_Data_for_FY22[[#This Row],[Median]]","v":175055.6},{"$f":"(((AAMC_Raw_Data_for_FY22[[#This Row],[75th]]-AAMC_Raw_Data_for_FY22[[#This Row],[Median]])/25)*40) + AAMC_Raw_Data_for_FY22[[#This Row],[Median]]","v":182936.4}]
[{"$f":"AAMC_Raw_Data_for_FY22[[#This Row],[Source]]&AAMC_Raw_Data_for_FY22[[#This Row],[Type]]&AAMC_Raw_Data_for_FY22[[#This Row],[School Subset]]&AAMC_Raw_Data_for_FY22[[#This Row],[Rank]]&AAMC_Raw_Data_for_FY22[[#This Row],[Degree]]&AAMC_Raw_Data_for_FY22[[#This Row],[Department / Specialty]]&\"L\"","v":"AAMCAcademicAllAssociatePhDOrthopedic Surgery: GeneralL"},"Orthopedic Surgery: General",3,"AAMC","Academic","All","Associate","PhD","2021-2022",118405,{"$f":"(((AAMC_Raw_Data_for_FY22[[#This Row],[Median]]-AAMC_Raw_Data_for_FY22[[#This Row],[25th]])/25)*5) + AAMC_Raw_Data_for_FY22[[#This Row],[25th]]","v":123258.4},{"$f":"(((AAMC_Raw_Data_for_FY22[[#This Row],[Median]]-AAMC_Raw_Data_for_FY22[[#This Row],[25th]])/25)*10) + AAMC_Raw_Data_for_FY22[[#This Row],[25th]]","v":128111.8},{"$f":"(((AAMC_Raw_Data_for_FY22[[#This Row],[Median]]-AAMC_Raw_Data_for_FY22[[#This Row],[25th]])/25)*15) + AAMC_Raw_Data_for_FY22[[#This Row],[25th]]","v":132965.20000000001},{"$f":"(((AAMC_Raw_Data_for_FY22[[#This Row],[Median]]-AAMC_Raw_Data_for_FY22[[#This Row],[25th]])/25)*20) + AAMC_Raw_Data_for_FY22[[#This Row],[25th]]","v":137818.6},142672,{"$f":"(((AAMC_Raw_Data_for_FY22[[#This Row],[75th]]-AAMC_Raw_Data_for_FY22[[#This Row],[Median]])/25)*5) + AAMC_Raw_Data_for_FY22[[#This Row],[Median]]","v":148632.6},{"$f":"(((AAMC_Raw_Data_for_FY22[[#This Row],[75th]]-AAMC_Raw_Data_for_FY22[[#This Row],[Median]])/25)*10) + AAMC_Raw_Data_for_FY22[[#This Row],[Median]]","v":154593.20000000001},{"$f":"(((AAMC_Raw_Data_for_FY22[[#This Row],[75th]]-AAMC_Raw_Data_for_FY22[[#This Row],[Median]])/25)*15) + AAMC_Raw_Data_for_FY22[[#This Row],[Median]]","v":160553.79999999999},{"$f":"(((AAMC_Raw_Data_for_FY22[[#This Row],[75th]]-AAMC_Raw_Data_for_FY22[[#This Row],[Median]])/25)*20) + AAMC_Raw_Data_for_FY22[[#This Row],[Median]]","v":166514.4},172475,{"$f":"(((AAMC_Raw_Data_for_FY22[[#This Row],[75th]]-AAMC_Raw_Data_for_FY22[[#This Row],[Median]])/25)*30) + AAMC_Raw_Data_for_FY22[[#This Row],[Median]]","v":178435.6},{"$f":"(((AAMC_Raw_Data_for_FY22[[#This Row],[75th]]-AAMC_Raw_Data_for_FY22[[#This Row],[Median]])/25)*35) + AAMC_Raw_Data_for_FY22[[#This Row],[Median]]","v":184396.2},{"$f":"(((AAMC_Raw_Data_for_FY22[[#This Row],[75th]]-AAMC_Raw_Data_for_FY22[[#This Row],[Median]])/25)*40) + AAMC_Raw_Data_for_FY22[[#This Row],[Median]]","v":190356.8}]
[{"$f":"AAMC_Raw_Data_for_FY22[[#This Row],[Source]]&AAMC_Raw_Data_for_FY22[[#This Row],[Type]]&AAMC_Raw_Data_for_FY22[[#This Row],[School Subset]]&AAMC_Raw_Data_for_FY22[[#This Row],[Rank]]&AAMC_Raw_Data_for_FY22[[#This Row],[Degree]]&AAMC_Raw_Data_for_FY22[[#This Row],[Department / Specialty]]&\"L\"","v":"AAMCAcademicAllProfessorPhDOrthopedic Surgery: GeneralL"},"Orthopedic Surgery: General",2,"AAMC","Academic","All","Professor","PhD","2021-2022",173975,{"$f":"(((AAMC_Raw_Data_for_FY22[[#This Row],[Median]]-AAMC_Raw_Data_for_FY22[[#This Row],[25th]])/25)*5) + AAMC_Raw_Data_for_FY22[[#This Row],[25th]]","v":185769},{"$f":"(((AAMC_Raw_Data_for_FY22[[#This Row],[Median]]-AAMC_Raw_Data_for_FY22[[#This Row],[25th]])/25)*10) + AAMC_Raw_Data_for_FY22[[#This Row],[25th]]","v":197563},{"$f":"(((AAMC_Raw_Data_for_FY22[[#This Row],[Median]]-AAMC_Raw_Data_for_FY22[[#This Row],[25th]])/25)*15) + AAMC_Raw_Data_for_FY22[[#This Row],[25th]]","v":209357},{"$f":"(((AAMC_Raw_Data_for_FY22[[#This Row],[Median]]-AAMC_Raw_Data_for_FY22[[#This Row],[25th]])/25)*20) + AAMC_Raw_Data_for_FY22[[#This Row],[25th]]","v":221151},232945,{"$f":"(((AAMC_Raw_Data_for_FY22[[#This Row],[75th]]-AAMC_Raw_Data_for_FY22[[#This Row],[Median]])/25)*5) + AAMC_Raw_Data_for_FY22[[#This Row],[Median]]","v":243563.2},{"$f":"(((AAMC_Raw_Data_for_FY22[[#This Row],[75th]]-AAMC_Raw_Data_for_FY22[[#This Row],[Median]])/25)*10) + AAMC_Raw_Data_for_FY22[[#This Row],[Median]]","v":254181.4},{"$f":"(((AAMC_Raw_Data_for_FY22[[#This Row],[75th]]-AAMC_Raw_Data_for_FY22[[#This Row],[Median]])/25)*15) + AAMC_Raw_Data_for_FY22[[#This Row],[Median]]","v":264799.59999999998},{"$f":"(((AAMC_Raw_Data_for_FY22[[#This Row],[75th]]-AAMC_Raw_Data_for_FY22[[#This Row],[Median]])/25)*20) + AAMC_Raw_Data_for_FY22[[#This Row],[Median]]","v":275417.8},286036,{"$f":"(((AAMC_Raw_Data_for_FY22[[#This Row],[75th]]-AAMC_Raw_Data_for_FY22[[#This Row],[Median]])/25)*30) + AAMC_Raw_Data_for_FY22[[#This Row],[Median]]","v":296654.2},{"$f":"(((AAMC_Raw_Data_for_FY22[[#This Row],[75th]]-AAMC_Raw_Data_for_FY22[[#This Row],[Median]])/25)*35) + AAMC_Raw_Data_for_FY22[[#This Row],[Median]]","v":307272.40000000002},{"$f":"(((AAMC_Raw_Data_for_FY22[[#This Row],[75th]]-AAMC_Raw_Data_for_FY22[[#This Row],[Median]])/25)*40) + AAMC_Raw_Data_for_FY22[[#This Row],[Median]]","v":317890.59999999998}]
[{"$f":"AAMC_Raw_Data_for_FY22[[#This Row],[Source]]&AAMC_Raw_Data_for_FY22[[#This Row],[Type]]&AAMC_Raw_Data_for_FY22[[#This Row],[School Subset]]&AAMC_Raw_Data_for_FY22[[#This Row],[Rank]]&AAMC_Raw_Data_for_FY22[[#This Row],[Degree]]&AAMC_Raw_Data_for_FY22[[#This Row],[Department / Specialty]]&\"L\"","v":"AAMCAcademicAllChiefPhDOrthopedic Surgery: GeneralL"},"Orthopedic Surgery: General",6,"AAMC","Academic","All","Chief","PhD","2021-2022",null,{"$f":"(((AAMC_Raw_Data_for_FY22[[#This Row],[Median]]-AAMC_Raw_Data_for_FY22[[#This Row],[25th]])/25)*5) + AAMC_Raw_Data_for_FY22[[#This Row],[25th]]","v":0},{"$f":"(((AAMC_Raw_Data_for_FY22[[#This Row],[Median]]-AAMC_Raw_Data_for_FY22[[#This Row],[25th]])/25)*10) + AAMC_Raw_Data_for_FY22[[#This Row],[25th]]","v":0},{"$f":"(((AAMC_Raw_Data_for_FY22[[#This Row],[Median]]-AAMC_Raw_Data_for_FY22[[#This Row],[25th]])/25)*15) + AAMC_Raw_Data_for_FY22[[#This Row],[25th]]","v":0},{"$f":"(((AAMC_Raw_Data_for_FY22[[#This Row],[Median]]-AAMC_Raw_Data_for_FY22[[#This Row],[25th]])/25)*20) + AAMC_Raw_Data_for_FY22[[#This Row],[25th]]","v":0},null,{"$f":"(((AAMC_Raw_Data_for_FY22[[#This Row],[75th]]-AAMC_Raw_Data_for_FY22[[#This Row],[Median]])/25)*5) + AAMC_Raw_Data_for_FY22[[#This Row],[Median]]","v":0},{"$f":"(((AAMC_Raw_Data_for_FY22[[#This Row],[75th]]-AAMC_Raw_Data_for_FY22[[#This Row],[Median]])/25)*10) + AAMC_Raw_Data_for_FY22[[#This Row],[Median]]","v":0},{"$f":"(((AAMC_Raw_Data_for_FY22[[#This Row],[75th]]-AAMC_Raw_Data_for_FY22[[#This Row],[Median]])/25)*15) + AAMC_Raw_Data_for_FY22[[#This Row],[Median]]","v":0},{"$f":"(((AAMC_Raw_Data_for_FY22[[#This Row],[75th]]-AAMC_Raw_Data_for_FY22[[#This Row],[Median]])/25)*20) + AAMC_Raw_Data_for_FY22[[#This Row],[Median]]","v":0},null,{"$f":"(((AAMC_Raw_Data_for_FY22[[#This Row],[75th]]-AAMC_Raw_Data_for_FY22[[#This Row],[Median]])/25)*30) + AAMC_Raw_Data_for_FY22[[#This Row],[Median]]","v":0},{"$f":"(((AAMC_Raw_Data_for_FY22[[#This Row],[75th]]-AAMC_Raw_Data_for_FY22[[#This Row],[Median]])/25)*35) + AAMC_Raw_Data_for_FY22[[#This Row],[Median]]","v":0},{"$f":"(((AAMC_Raw_Data_for_FY22[[#This Row],[75th]]-AAMC_Raw_Data_for_FY22[[#This Row],[Median]])/25)*40) + AAMC_Raw_Data_for_FY22[[#This Row],[Median]]","v":0}]
[{"$f":"AAMC_Raw_Data_for_FY22[[#This Row],[Source]]&AAMC_Raw_Data_for_FY22[[#This Row],[Type]]&AAMC_Raw_Data_for_FY22[[#This Row],[School Subset]]&AAMC_Raw_Data_for_FY22[[#This Row],[Rank]]&AAMC_Raw_Data_for_FY22[[#This Row],[Degree]]&AAMC_Raw_Data_for_FY22[[#This Row],[Department / Specialty]]&\"L\"","v":"AAMCAcademicAllInstructorPhDOrthopedic Surgery: Sports MedicineL"},"Orthopedic Surgery: Sports Medicine",5,"AAMC","Academic","All","Instructor","PhD","2021-2022",null,{"$f":"(((AAMC_Raw_Data_for_FY22[[#This Row],[Median]]-AAMC_Raw_Data_for_FY22[[#This Row],[25th]])/25)*5) + AAMC_Raw_Data_for_FY22[[#This Row],[25th]]","v":0},{"$f":"(((AAMC_Raw_Data_for_FY22[[#This Row],[Median]]-AAMC_Raw_Data_for_FY22[[#This Row],[25th]])/25)*10) + AAMC_Raw_Data_for_FY22[[#This Row],[25th]]","v":0},{"$f":"(((AAMC_Raw_Data_for_FY22[[#This Row],[Median]]-AAMC_Raw_Data_for_FY22[[#This Row],[25th]])/25)*15) + AAMC_Raw_Data_for_FY22[[#This Row],[25th]]","v":0},{"$f":"(((AAMC_Raw_Data_for_FY22[[#This Row],[Median]]-AAMC_Raw_Data_for_FY22[[#This Row],[25th]])/25)*20) + AAMC_Raw_Data_for_FY22[[#This Row],[25th]]","v":0},null,{"$f":"(((AAMC_Raw_Data_for_FY22[[#This Row],[75th]]-AAMC_Raw_Data_for_FY22[[#This Row],[Median]])/25)*5) + AAMC_Raw_Data_for_FY22[[#This Row],[Median]]","v":0},{"$f":"(((AAMC_Raw_Data_for_FY22[[#This Row],[75th]]-AAMC_Raw_Data_for_FY22[[#This Row],[Median]])/25)*10) + AAMC_Raw_Data_for_FY22[[#This Row],[Median]]","v":0},{"$f":"(((AAMC_Raw_Data_for_FY22[[#This Row],[75th]]-AAMC_Raw_Data_for_FY22[[#This Row],[Median]])/25)*15) + AAMC_Raw_Data_for_FY22[[#This Row],[Median]]","v":0},{"$f":"(((AAMC_Raw_Data_for_FY22[[#This Row],[75th]]-AAMC_Raw_Data_for_FY22[[#This Row],[Median]])/25)*20) + AAMC_Raw_Data_for_FY22[[#This Row],[Median]]","v":0},null,{"$f":"(((AAMC_Raw_Data_for_FY22[[#This Row],[75th]]-AAMC_Raw_Data_for_FY22[[#This Row],[Median]])/25)*30) + AAMC_Raw_Data_for_FY22[[#This Row],[Median]]","v":0},{"$f":"(((AAMC_Raw_Data_for_FY22[[#This Row],[75th]]-AAMC_Raw_Data_for_FY22[[#This Row],[Median]])/25)*35) + AAMC_Raw_Data_for_FY22[[#This Row],[Median]]","v":0},{"$f":"(((AAMC_Raw_Data_for_FY22[[#This Row],[75th]]-AAMC_Raw_Data_for_FY22[[#This Row],[Median]])/25)*40) + AAMC_Raw_Data_for_FY22[[#This Row],[Median]]","v":0}]
[{"$f":"AAMC_Raw_Data_for_FY22[[#This Row],[Source]]&AAMC_Raw_Data_for_FY22[[#This Row],[Type]]&AAMC_Raw_Data_for_FY22[[#This Row],[School Subset]]&AAMC_Raw_Data_for_FY22[[#This Row],[Rank]]&AAMC_Raw_Data_for_FY22[[#This Row],[Degree]]&AAMC_Raw_Data_for_FY22[[#This Row],[Department / Specialty]]&\"L\"","v":"AAMCAcademicAllAssistantPhDOrthopedic Surgery: Sports MedicineL"},"Orthopedic Surgery: Sports Medicine",4,"AAMC","Academic","All","Assistant","PhD","2021-2022",null,{"$f":"(((AAMC_Raw_Data_for_FY22[[#This Row],[Median]]-AAMC_Raw_Data_for_FY22[[#This Row],[25th]])/25)*5) + AAMC_Raw_Data_for_FY22[[#This Row],[25th]]","v":0},{"$f":"(((AAMC_Raw_Data_for_FY22[[#This Row],[Median]]-AAMC_Raw_Data_for_FY22[[#This Row],[25th]])/25)*10) + AAMC_Raw_Data_for_FY22[[#This Row],[25th]]","v":0},{"$f":"(((AAMC_Raw_Data_for_FY22[[#This Row],[Median]]-AAMC_Raw_Data_for_FY22[[#This Row],[25th]])/25)*15) + AAMC_Raw_Data_for_FY22[[#This Row],[25th]]","v":0},{"$f":"(((AAMC_Raw_Data_for_FY22[[#This Row],[Median]]-AAMC_Raw_Data_for_FY22[[#This Row],[25th]])/25)*20) + AAMC_Raw_Data_for_FY22[[#This Row],[25th]]","v":0},null,{"$f":"(((AAMC_Raw_Data_for_FY22[[#This Row],[75th]]-AAMC_Raw_Data_for_FY22[[#This Row],[Median]])/25)*5) + AAMC_Raw_Data_for_FY22[[#This Row],[Median]]","v":0},{"$f":"(((AAMC_Raw_Data_for_FY22[[#This Row],[75th]]-AAMC_Raw_Data_for_FY22[[#This Row],[Median]])/25)*10) + AAMC_Raw_Data_for_FY22[[#This Row],[Median]]","v":0},{"$f":"(((AAMC_Raw_Data_for_FY22[[#This Row],[75th]]-AAMC_Raw_Data_for_FY22[[#This Row],[Median]])/25)*15) + AAMC_Raw_Data_for_FY22[[#This Row],[Median]]","v":0},{"$f":"(((AAMC_Raw_Data_for_FY22[[#This Row],[75th]]-AAMC_Raw_Data_for_FY22[[#This Row],[Median]])/25)*20) + AAMC_Raw_Data_for_FY22[[#This Row],[Median]]","v":0},null,{"$f":"(((AAMC_Raw_Data_for_FY22[[#This Row],[75th]]-AAMC_Raw_Data_for_FY22[[#This Row],[Median]])/25)*30) + AAMC_Raw_Data_for_FY22[[#This Row],[Median]]","v":0},{"$f":"(((AAMC_Raw_Data_for_FY22[[#This Row],[75th]]-AAMC_Raw_Data_for_FY22[[#This Row],[Median]])/25)*35) + AAMC_Raw_Data_for_FY22[[#This Row],[Median]]","v":0},{"$f":"(((AAMC_Raw_Data_for_FY22[[#This Row],[75th]]-AAMC_Raw_Data_for_FY22[[#This Row],[Median]])/25)*40) + AAMC_Raw_Data_for_FY22[[#This Row],[Median]]","v":0}]
[{"$f":"AAMC_Raw_Data_for_FY22[[#This Row],[Source]]&AAMC_Raw_Data_for_FY22[[#This Row],[Type]]&AAMC_Raw_Data_for_FY22[[#This Row],[School Subset]]&AAMC_Raw_Data_for_FY22[[#This Row],[Rank]]&AAMC_Raw_Data_for_FY22[[#This Row],[Degree]]&AAMC_Raw_Data_for_FY22[[#This Row],[Department / Specialty]]&\"L\"","v":"AAMCAcademicAllAssistantPhDOrthopedic Surgery: TraumaL"},"Orthopedic Surgery: Trauma",4,"AAMC","Academic","All","Assistant","PhD","2021-2022",null,{"$f":"(((AAMC_Raw_Data_for_FY22[[#This Row],[Median]]-AAMC_Raw_Data_for_FY22[[#This Row],[25th]])/25)*5) + AAMC_Raw_Data_for_FY22[[#This Row],[25th]]","v":0},{"$f":"(((AAMC_Raw_Data_for_FY22[[#This Row],[Median]]-AAMC_Raw_Data_for_FY22[[#This Row],[25th]])/25)*10) + AAMC_Raw_Data_for_FY22[[#This Row],[25th]]","v":0},{"$f":"(((AAMC_Raw_Data_for_FY22[[#This Row],[Median]]-AAMC_Raw_Data_for_FY22[[#This Row],[25th]])/25)*15) + AAMC_Raw_Data_for_FY22[[#This Row],[25th]]","v":0},{"$f":"(((AAMC_Raw_Data_for_FY22[[#This Row],[Median]]-AAMC_Raw_Data_for_FY22[[#This Row],[25th]])/25)*20) + AAMC_Raw_Data_for_FY22[[#This Row],[25th]]","v":0},null,{"$f":"(((AAMC_Raw_Data_for_FY22[[#This Row],[75th]]-AAMC_Raw_Data_for_FY22[[#This Row],[Median]])/25)*5) + AAMC_Raw_Data_for_FY22[[#This Row],[Median]]","v":0},{"$f":"(((AAMC_Raw_Data_for_FY22[[#This Row],[75th]]-AAMC_Raw_Data_for_FY22[[#This Row],[Median]])/25)*10) + AAMC_Raw_Data_for_FY22[[#This Row],[Median]]","v":0},{"$f":"(((AAMC_Raw_Data_for_FY22[[#This Row],[75th]]-AAMC_Raw_Data_for_FY22[[#This Row],[Median]])/25)*15) + AAMC_Raw_Data_for_FY22[[#This Row],[Median]]","v":0},{"$f":"(((AAMC_Raw_Data_for_FY22[[#This Row],[75th]]-AAMC_Raw_Data_for_FY22[[#This Row],[Median]])/25)*20) + AAMC_Raw_Data_for_FY22[[#This Row],[Median]]","v":0},null,{"$f":"(((AAMC_Raw_Data_for_FY22[[#This Row],[75th]]-AAMC_Raw_Data_for_FY22[[#This Row],[Median]])/25)*30) + AAMC_Raw_Data_for_FY22[[#This Row],[Median]]","v":0},{"$f":"(((AAMC_Raw_Data_for_FY22[[#This Row],[75th]]-AAMC_Raw_Data_for_FY22[[#This Row],[Median]])/25)*35) + AAMC_Raw_Data_for_FY22[[#This Row],[Median]]","v":0},{"$f":"(((AAMC_Raw_Data_for_FY22[[#This Row],[75th]]-AAMC_Raw_Data_for_FY22[[#This Row],[Median]])/25)*40) + AAMC_Raw_Data_for_FY22[[#This Row],[Median]]","v":0}]
[{"$f":"AAMC_Raw_Data_for_FY22[[#This Row],[Source]]&AAMC_Raw_Data_for_FY22[[#This Row],[Type]]&AAMC_Raw_Data_for_FY22[[#This Row],[School Subset]]&AAMC_Raw_Data_for_FY22[[#This Row],[Rank]]&AAMC_Raw_Data_for_FY22[[#This Row],[Degree]]&AAMC_Raw_Data_for_FY22[[#This Row],[Department / Specialty]]&\"L\"","v":"AAMCAcademicAllInstructorPhDOrthopedic Surgery: OtherL"},"Orthopedic Surgery: Other",5,"AAMC","Academic","All","Instructor","PhD","2021-2022",null,{"$f":"(((AAMC_Raw_Data_for_FY22[[#This Row],[Median]]-AAMC_Raw_Data_for_FY22[[#This Row],[25th]])/25)*5) + AAMC_Raw_Data_for_FY22[[#This Row],[25th]]","v":0},{"$f":"(((AAMC_Raw_Data_for_FY22[[#This Row],[Median]]-AAMC_Raw_Data_for_FY22[[#This Row],[25th]])/25)*10) + AAMC_Raw_Data_for_FY22[[#This Row],[25th]]","v":0},{"$f":"(((AAMC_Raw_Data_for_FY22[[#This Row],[Median]]-AAMC_Raw_Data_for_FY22[[#This Row],[25th]])/25)*15) + AAMC_Raw_Data_for_FY22[[#This Row],[25th]]","v":0},{"$f":"(((AAMC_Raw_Data_for_FY22[[#This Row],[Median]]-AAMC_Raw_Data_for_FY22[[#This Row],[25th]])/25)*20) + AAMC_Raw_Data_for_FY22[[#This Row],[25th]]","v":0},null,{"$f":"(((AAMC_Raw_Data_for_FY22[[#This Row],[75th]]-AAMC_Raw_Data_for_FY22[[#This Row],[Median]])/25)*5) + AAMC_Raw_Data_for_FY22[[#This Row],[Median]]","v":0},{"$f":"(((AAMC_Raw_Data_for_FY22[[#This Row],[75th]]-AAMC_Raw_Data_for_FY22[[#This Row],[Median]])/25)*10) + AAMC_Raw_Data_for_FY22[[#This Row],[Median]]","v":0},{"$f":"(((AAMC_Raw_Data_for_FY22[[#This Row],[75th]]-AAMC_Raw_Data_for_FY22[[#This Row],[Median]])/25)*15) + AAMC_Raw_Data_for_FY22[[#This Row],[Median]]","v":0},{"$f":"(((AAMC_Raw_Data_for_FY22[[#This Row],[75th]]-AAMC_Raw_Data_for_FY22[[#This Row],[Median]])/25)*20) + AAMC_Raw_Data_for_FY22[[#This Row],[Median]]","v":0},null,{"$f":"(((AAMC_Raw_Data_for_FY22[[#This Row],[75th]]-AAMC_Raw_Data_for_FY22[[#This Row],[Median]])/25)*30) + AAMC_Raw_Data_for_FY22[[#This Row],[Median]]","v":0},{"$f":"(((AAMC_Raw_Data_for_FY22[[#This Row],[75th]]-AAMC_Raw_Data_for_FY22[[#This Row],[Median]])/25)*35) + AAMC_Raw_Data_for_FY22[[#This Row],[Median]]","v":0},{"$f":"(((AAMC_Raw_Data_for_FY22[[#This Row],[75th]]-AAMC_Raw_Data_for_FY22[[#This Row],[Median]])/25)*40) + AAMC_Raw_Data_for_FY22[[#This Row],[Median]]","v":0}]
[{"$f":"AAMC_Raw_Data_for_FY22[[#This Row],[Source]]&AAMC_Raw_Data_for_FY22[[#This Row],[Type]]&AAMC_Raw_Data_for_FY22[[#This Row],[School Subset]]&AAMC_Raw_Data_for_FY22[[#This Row],[Rank]]&AAMC_Raw_Data_for_FY22[[#This Row],[Degree]]&AAMC_Raw_Data_for_FY22[[#This Row],[Department / Specialty]]&\"L\"","v":"AAMCAcademicAllAssistantPhDOrthopedic Surgery: OtherL"},"Orthopedic Surgery: Other",4,"AAMC","Academic","All","Assistant","PhD","2021-2022",90767,{"$f":"(((AAMC_Raw_Data_for_FY22[[#This Row],[Median]]-AAMC_Raw_Data_for_FY22[[#This Row],[25th]])/25)*5) + AAMC_Raw_Data_for_FY22[[#This Row],[25th]]","v":95338.4},{"$f":"(((AAMC_Raw_Data_for_FY22[[#This Row],[Median]]-AAMC_Raw_Data_for_FY22[[#This Row],[25th]])/25)*10) + AAMC_Raw_Data_for_FY22[[#This Row],[25th]]","v":99909.8},{"$f":"(((AAMC_Raw_Data_for_FY22[[#This Row],[Median]]-AAMC_Raw_Data_for_FY22[[#This Row],[25th]])/25)*15) + AAMC_Raw_Data_for_FY22[[#This Row],[25th]]","v":104481.2},{"$f":"(((AAMC_Raw_Data_for_FY22[[#This Row],[Median]]-AAMC_Raw_Data_for_FY22[[#This Row],[25th]])/25)*20) + AAMC_Raw_Data_for_FY22[[#This Row],[25th]]","v":109052.6},113624,{"$f":"(((AAMC_Raw_Data_for_FY22[[#This Row],[75th]]-AAMC_Raw_Data_for_FY22[[#This Row],[Median]])/25)*5) + AAMC_Raw_Data_for_FY22[[#This Row],[Median]]","v":123940.4},{"$f":"(((AAMC_Raw_Data_for_FY22[[#This Row],[75th]]-AAMC_Raw_Data_for_FY22[[#This Row],[Median]])/25)*10) + AAMC_Raw_Data_for_FY22[[#This Row],[Median]]","v":134256.79999999999},{"$f":"(((AAMC_Raw_Data_for_FY22[[#This Row],[75th]]-AAMC_Raw_Data_for_FY22[[#This Row],[Median]])/25)*15) + AAMC_Raw_Data_for_FY22[[#This Row],[Median]]","v":144573.20000000001},{"$f":"(((AAMC_Raw_Data_for_FY22[[#This Row],[75th]]-AAMC_Raw_Data_for_FY22[[#This Row],[Median]])/25)*20) + AAMC_Raw_Data_for_FY22[[#This Row],[Median]]","v":154889.60000000001},165206,{"$f":"(((AAMC_Raw_Data_for_FY22[[#This Row],[75th]]-AAMC_Raw_Data_for_FY22[[#This Row],[Median]])/25)*30) + AAMC_Raw_Data_for_FY22[[#This Row],[Median]]","v":175522.40000000002},{"$f":"(((AAMC_Raw_Data_for_FY22[[#This Row],[75th]]-AAMC_Raw_Data_for_FY22[[#This Row],[Median]])/25)*35) + AAMC_Raw_Data_for_FY22[[#This Row],[Median]]","v":185838.8},{"$f":"(((AAMC_Raw_Data_for_FY22[[#This Row],[75th]]-AAMC_Raw_Data_for_FY22[[#This Row],[Median]])/25)*40) + AAMC_Raw_Data_for_FY22[[#This Row],[Median]]","v":196155.2}]
[{"$f":"AAMC_Raw_Data_for_FY22[[#This Row],[Source]]&AAMC_Raw_Data_for_FY22[[#This Row],[Type]]&AAMC_Raw_Data_for_FY22[[#This Row],[School Subset]]&AAMC_Raw_Data_for_FY22[[#This Row],[Rank]]&AAMC_Raw_Data_for_FY22[[#This Row],[Degree]]&AAMC_Raw_Data_for_FY22[[#This Row],[Department / Specialty]]&\"L\"","v":"AAMCAcademicAllAssociatePhDOrthopedic Surgery: OtherL"},"Orthopedic Surgery: Other",3,"AAMC","Academic","All","Associate","PhD","2021-2022",129785,{"$f":"(((AAMC_Raw_Data_for_FY22[[#This Row],[Median]]-AAMC_Raw_Data_for_FY22[[#This Row],[25th]])/25)*5) + AAMC_Raw_Data_for_FY22[[#This Row],[25th]]","v":135017.60000000001},{"$f":"(((AAMC_Raw_Data_for_FY22[[#This Row],[Median]]-AAMC_Raw_Data_for_FY22[[#This Row],[25th]])/25)*10) + AAMC_Raw_Data_for_FY22[[#This Row],[25th]]","v":140250.20000000001},{"$f":"(((AAMC_Raw_Data_for_FY22[[#This Row],[Median]]-AAMC_Raw_Data_for_FY22[[#This Row],[25th]])/25)*15) + AAMC_Raw_Data_for_FY22[[#This Row],[25th]]","v":145482.79999999999},{"$f":"(((AAMC_Raw_Data_for_FY22[[#This Row],[Median]]-AAMC_Raw_Data_for_FY22[[#This Row],[25th]])/25)*20) + AAMC_Raw_Data_for_FY22[[#This Row],[25th]]","v":150715.4},155948,{"$f":"(((AAMC_Raw_Data_for_FY22[[#This Row],[75th]]-AAMC_Raw_Data_for_FY22[[#This Row],[Median]])/25)*5) + AAMC_Raw_Data_for_FY22[[#This Row],[Median]]","v":165582.79999999999},{"$f":"(((AAMC_Raw_Data_for_FY22[[#This Row],[75th]]-AAMC_Raw_Data_for_FY22[[#This Row],[Median]])/25)*10) + AAMC_Raw_Data_for_FY22[[#This Row],[Median]]","v":175217.6},{"$f":"(((AAMC_Raw_Data_for_FY22[[#This Row],[75th]]-AAMC_Raw_Data_for_FY22[[#This Row],[Median]])/25)*15) + AAMC_Raw_Data_for_FY22[[#This Row],[Median]]","v":184852.4},{"$f":"(((AAMC_Raw_Data_for_FY22[[#This Row],[75th]]-AAMC_Raw_Data_for_FY22[[#This Row],[Median]])/25)*20) + AAMC_Raw_Data_for_FY22[[#This Row],[Median]]","v":194487.2},204122,{"$f":"(((AAMC_Raw_Data_for_FY22[[#This Row],[75th]]-AAMC_Raw_Data_for_FY22[[#This Row],[Median]])/25)*30) + AAMC_Raw_Data_for_FY22[[#This Row],[Median]]","v":213756.79999999999},{"$f":"(((AAMC_Raw_Data_for_FY22[[#This Row],[75th]]-AAMC_Raw_Data_for_FY22[[#This Row],[Median]])/25)*35) + AAMC_Raw_Data_for_FY22[[#This Row],[Median]]","v":223391.6},{"$f":"(((AAMC_Raw_Data_for_FY22[[#This Row],[75th]]-AAMC_Raw_Data_for_FY22[[#This Row],[Median]])/25)*40) + AAMC_Raw_Data_for_FY22[[#This Row],[Median]]","v":233026.4}]
[{"$f":"AAMC_Raw_Data_for_FY22[[#This Row],[Source]]&AAMC_Raw_Data_for_FY22[[#This Row],[Type]]&AAMC_Raw_Data_for_FY22[[#This Row],[School Subset]]&AAMC_Raw_Data_for_FY22[[#This Row],[Rank]]&AAMC_Raw_Data_for_FY22[[#This Row],[Degree]]&AAMC_Raw_Data_for_FY22[[#This Row],[Department / Specialty]]&\"L\"","v":"AAMCAcademicAllProfessorPhDOrthopedic Surgery: OtherL"},"Orthopedic Surgery: Other",2,"AAMC","Academic","All","Professor","PhD","2021-2022",194962,{"$f":"(((AAMC_Raw_Data_for_FY22[[#This Row],[Median]]-AAMC_Raw_Data_for_FY22[[#This Row],[25th]])/25)*5) + AAMC_Raw_Data_for_FY22[[#This Row],[25th]]","v":202134},{"$f":"(((AAMC_Raw_Data_for_FY22[[#This Row],[Median]]-AAMC_Raw_Data_for_FY22[[#This Row],[25th]])/25)*10) + AAMC_Raw_Data_for_FY22[[#This Row],[25th]]","v":209306},{"$f":"(((AAMC_Raw_Data_for_FY22[[#This Row],[Median]]-AAMC_Raw_Data_for_FY22[[#This Row],[25th]])/25)*15) + AAMC_Raw_Data_for_FY22[[#This Row],[25th]]","v":216478},{"$f":"(((AAMC_Raw_Data_for_FY22[[#This Row],[Median]]-AAMC_Raw_Data_for_FY22[[#This Row],[25th]])/25)*20) + AAMC_Raw_Data_for_FY22[[#This Row],[25th]]","v":223650},230822,{"$f":"(((AAMC_Raw_Data_for_FY22[[#This Row],[75th]]-AAMC_Raw_Data_for_FY22[[#This Row],[Median]])/25)*5) + AAMC_Raw_Data_for_FY22[[#This Row],[Median]]","v":240487.6},{"$f":"(((AAMC_Raw_Data_for_FY22[[#This Row],[75th]]-AAMC_Raw_Data_for_FY22[[#This Row],[Median]])/25)*10) + AAMC_Raw_Data_for_FY22[[#This Row],[Median]]","v":250153.2},{"$f":"(((AAMC_Raw_Data_for_FY22[[#This Row],[75th]]-AAMC_Raw_Data_for_FY22[[#This Row],[Median]])/25)*15) + AAMC_Raw_Data_for_FY22[[#This Row],[Median]]","v":259818.8},{"$f":"(((AAMC_Raw_Data_for_FY22[[#This Row],[75th]]-AAMC_Raw_Data_for_FY22[[#This Row],[Median]])/25)*20) + AAMC_Raw_Data_for_FY22[[#This Row],[Median]]","v":269484.40000000002},279150,{"$f":"(((AAMC_Raw_Data_for_FY22[[#This Row],[75th]]-AAMC_Raw_Data_for_FY22[[#This Row],[Median]])/25)*30) + AAMC_Raw_Data_for_FY22[[#This Row],[Median]]","v":288815.59999999998},{"$f":"(((AAMC_Raw_Data_for_FY22[[#This Row],[75th]]-AAMC_Raw_Data_for_FY22[[#This Row],[Median]])/25)*35) + AAMC_Raw_Data_for_FY22[[#This Row],[Median]]","v":298481.2},{"$f":"(((AAMC_Raw_Data_for_FY22[[#This Row],[75th]]-AAMC_Raw_Data_for_FY22[[#This Row],[Median]])/25)*40) + AAMC_Raw_Data_for_FY22[[#This Row],[Median]]","v":308146.8}]
[{"$f":"AAMC_Raw_Data_for_FY22[[#This Row],[Source]]&AAMC_Raw_Data_for_FY22[[#This Row],[Type]]&AAMC_Raw_Data_for_FY22[[#This Row],[School Subset]]&AAMC_Raw_Data_for_FY22[[#This Row],[Rank]]&AAMC_Raw_Data_for_FY22[[#This Row],[Degree]]&AAMC_Raw_Data_for_FY22[[#This Row],[Department / Specialty]]&\"L\"","v":"AAMCAcademicAllInstructorPhDPediatric SurgeryL"},"Pediatric Surgery",5,"AAMC","Academic","All","Instructor","PhD","2021-2022",null,{"$f":"(((AAMC_Raw_Data_for_FY22[[#This Row],[Median]]-AAMC_Raw_Data_for_FY22[[#This Row],[25th]])/25)*5) + AAMC_Raw_Data_for_FY22[[#This Row],[25th]]","v":0},{"$f":"(((AAMC_Raw_Data_for_FY22[[#This Row],[Median]]-AAMC_Raw_Data_for_FY22[[#This Row],[25th]])/25)*10) + AAMC_Raw_Data_for_FY22[[#This Row],[25th]]","v":0},{"$f":"(((AAMC_Raw_Data_for_FY22[[#This Row],[Median]]-AAMC_Raw_Data_for_FY22[[#This Row],[25th]])/25)*15) + AAMC_Raw_Data_for_FY22[[#This Row],[25th]]","v":0},{"$f":"(((AAMC_Raw_Data_for_FY22[[#This Row],[Median]]-AAMC_Raw_Data_for_FY22[[#This Row],[25th]])/25)*20) + AAMC_Raw_Data_for_FY22[[#This Row],[25th]]","v":0},null,{"$f":"(((AAMC_Raw_Data_for_FY22[[#This Row],[75th]]-AAMC_Raw_Data_for_FY22[[#This Row],[Median]])/25)*5) + AAMC_Raw_Data_for_FY22[[#This Row],[Median]]","v":0},{"$f":"(((AAMC_Raw_Data_for_FY22[[#This Row],[75th]]-AAMC_Raw_Data_for_FY22[[#This Row],[Median]])/25)*10) + AAMC_Raw_Data_for_FY22[[#This Row],[Median]]","v":0},{"$f":"(((AAMC_Raw_Data_for_FY22[[#This Row],[75th]]-AAMC_Raw_Data_for_FY22[[#This Row],[Median]])/25)*15) + AAMC_Raw_Data_for_FY22[[#This Row],[Median]]","v":0},{"$f":"(((AAMC_Raw_Data_for_FY22[[#This Row],[75th]]-AAMC_Raw_Data_for_FY22[[#This Row],[Median]])/25)*20) + AAMC_Raw_Data_for_FY22[[#This Row],[Median]]","v":0},null,{"$f":"(((AAMC_Raw_Data_for_FY22[[#This Row],[75th]]-AAMC_Raw_Data_for_FY22[[#This Row],[Median]])/25)*30) + AAMC_Raw_Data_for_FY22[[#This Row],[Median]]","v":0},{"$f":"(((AAMC_Raw_Data_for_FY22[[#This Row],[75th]]-AAMC_Raw_Data_for_FY22[[#This Row],[Median]])/25)*35) + AAMC_Raw_Data_for_FY22[[#This Row],[Median]]","v":0},{"$f":"(((AAMC_Raw_Data_for_FY22[[#This Row],[75th]]-AAMC_Raw_Data_for_FY22[[#This Row],[Median]])/25)*40) + AAMC_Raw_Data_for_FY22[[#This Row],[Median]]","v":0}]
[{"$f":"AAMC_Raw_Data_for_FY22[[#This Row],[Source]]&AAMC_Raw_Data_for_FY22[[#This Row],[Type]]&AAMC_Raw_Data_for_FY22[[#This Row],[School Subset]]&AAMC_Raw_Data_for_FY22[[#This Row],[Rank]]&AAMC_Raw_Data_for_FY22[[#This Row],[Degree]]&AAMC_Raw_Data_for_FY22[[#This Row],[Department / Specialty]]&\"L\"","v":"AAMCAcademicAllAssistantPhDPediatric SurgeryL"},"Pediatric Surgery",4,"AAMC","Academic","All","Assistant","PhD","2021-2022",62739,{"$f":"(((AAMC_Raw_Data_for_FY22[[#This Row],[Median]]-AAMC_Raw_Data_for_FY22[[#This Row],[25th]])/25)*5) + AAMC_Raw_Data_for_FY22[[#This Row],[25th]]","v":64730.400000000001},{"$f":"(((AAMC_Raw_Data_for_FY22[[#This Row],[Median]]-AAMC_Raw_Data_for_FY22[[#This Row],[25th]])/25)*10) + AAMC_Raw_Data_for_FY22[[#This Row],[25th]]","v":66721.8},{"$f":"(((AAMC_Raw_Data_for_FY22[[#This Row],[Median]]-AAMC_Raw_Data_for_FY22[[#This Row],[25th]])/25)*15) + AAMC_Raw_Data_for_FY22[[#This Row],[25th]]","v":68713.2},{"$f":"(((AAMC_Raw_Data_for_FY22[[#This Row],[Median]]-AAMC_Raw_Data_for_FY22[[#This Row],[25th]])/25)*20) + AAMC_Raw_Data_for_FY22[[#This Row],[25th]]","v":70704.600000000006},72696,{"$f":"(((AAMC_Raw_Data_for_FY22[[#This Row],[75th]]-AAMC_Raw_Data_for_FY22[[#This Row],[Median]])/25)*5) + AAMC_Raw_Data_for_FY22[[#This Row],[Median]]","v":77740.399999999994},{"$f":"(((AAMC_Raw_Data_for_FY22[[#This Row],[75th]]-AAMC_Raw_Data_for_FY22[[#This Row],[Median]])/25)*10) + AAMC_Raw_Data_for_FY22[[#This Row],[Median]]","v":82784.800000000003},{"$f":"(((AAMC_Raw_Data_for_FY22[[#This Row],[75th]]-AAMC_Raw_Data_for_FY22[[#This Row],[Median]])/25)*15) + AAMC_Raw_Data_for_FY22[[#This Row],[Median]]","v":87829.2},{"$f":"(((AAMC_Raw_Data_for_FY22[[#This Row],[75th]]-AAMC_Raw_Data_for_FY22[[#This Row],[Median]])/25)*20) + AAMC_Raw_Data_for_FY22[[#This Row],[Median]]","v":92873.600000000006},97918,{"$f":"(((AAMC_Raw_Data_for_FY22[[#This Row],[75th]]-AAMC_Raw_Data_for_FY22[[#This Row],[Median]])/25)*30) + AAMC_Raw_Data_for_FY22[[#This Row],[Median]]","v":102962.4},{"$f":"(((AAMC_Raw_Data_for_FY22[[#This Row],[75th]]-AAMC_Raw_Data_for_FY22[[#This Row],[Median]])/25)*35) + AAMC_Raw_Data_for_FY22[[#This Row],[Median]]","v":108006.8},{"$f":"(((AAMC_Raw_Data_for_FY22[[#This Row],[75th]]-AAMC_Raw_Data_for_FY22[[#This Row],[Median]])/25)*40) + AAMC_Raw_Data_for_FY22[[#This Row],[Median]]","v":113051.2}]
[{"$f":"AAMC_Raw_Data_for_FY22[[#This Row],[Source]]&AAMC_Raw_Data_for_FY22[[#This Row],[Type]]&AAMC_Raw_Data_for_FY22[[#This Row],[School Subset]]&AAMC_Raw_Data_for_FY22[[#This Row],[Rank]]&AAMC_Raw_Data_for_FY22[[#This Row],[Degree]]&AAMC_Raw_Data_for_FY22[[#This Row],[Department / Specialty]]&\"L\"","v":"AAMCAcademicAllAssociatePhDPediatric SurgeryL"},"Pediatric Surgery",3,"AAMC","Academic","All","Associate","PhD","2021-2022",null,{"$f":"(((AAMC_Raw_Data_for_FY22[[#This Row],[Median]]-AAMC_Raw_Data_for_FY22[[#This Row],[25th]])/25)*5) + AAMC_Raw_Data_for_FY22[[#This Row],[25th]]","v":0},{"$f":"(((AAMC_Raw_Data_for_FY22[[#This Row],[Median]]-AAMC_Raw_Data_for_FY22[[#This Row],[25th]])/25)*10) + AAMC_Raw_Data_for_FY22[[#This Row],[25th]]","v":0},{"$f":"(((AAMC_Raw_Data_for_FY22[[#This Row],[Median]]-AAMC_Raw_Data_for_FY22[[#This Row],[25th]])/25)*15) + AAMC_Raw_Data_for_FY22[[#This Row],[25th]]","v":0},{"$f":"(((AAMC_Raw_Data_for_FY22[[#This Row],[Median]]-AAMC_Raw_Data_for_FY22[[#This Row],[25th]])/25)*20) + AAMC_Raw_Data_for_FY22[[#This Row],[25th]]","v":0},null,{"$f":"(((AAMC_Raw_Data_for_FY22[[#This Row],[75th]]-AAMC_Raw_Data_for_FY22[[#This Row],[Median]])/25)*5) + AAMC_Raw_Data_for_FY22[[#This Row],[Median]]","v":0},{"$f":"(((AAMC_Raw_Data_for_FY22[[#This Row],[75th]]-AAMC_Raw_Data_for_FY22[[#This Row],[Median]])/25)*10) + AAMC_Raw_Data_for_FY22[[#This Row],[Median]]","v":0},{"$f":"(((AAMC_Raw_Data_for_FY22[[#This Row],[75th]]-AAMC_Raw_Data_for_FY22[[#This Row],[Median]])/25)*15) + AAMC_Raw_Data_for_FY22[[#This Row],[Median]]","v":0},{"$f":"(((AAMC_Raw_Data_for_FY22[[#This Row],[75th]]-AAMC_Raw_Data_for_FY22[[#This Row],[Median]])/25)*20) + AAMC_Raw_Data_for_FY22[[#This Row],[Median]]","v":0},null,{"$f":"(((AAMC_Raw_Data_for_FY22[[#This Row],[75th]]-AAMC_Raw_Data_for_FY22[[#This Row],[Median]])/25)*30) + AAMC_Raw_Data_for_FY22[[#This Row],[Median]]","v":0},{"$f":"(((AAMC_Raw_Data_for_FY22[[#This Row],[75th]]-AAMC_Raw_Data_for_FY22[[#This Row],[Median]])/25)*35) + AAMC_Raw_Data_for_FY22[[#This Row],[Median]]","v":0},{"$f":"(((AAMC_Raw_Data_for_FY22[[#This Row],[75th]]-AAMC_Raw_Data_for_FY22[[#This Row],[Median]])/25)*40) + AAMC_Raw_Data_for_FY22[[#This Row],[Median]]","v":0}]
[{"$f":"AAMC_Raw_Data_for_FY22[[#This Row],[Source]]&AAMC_Raw_Data_for_FY22[[#This Row],[Type]]&AAMC_Raw_Data_for_FY22[[#This Row],[School Subset]]&AAMC_Raw_Data_for_FY22[[#This Row],[Rank]]&AAMC_Raw_Data_for_FY22[[#This Row],[Degree]]&AAMC_Raw_Data_for_FY22[[#This Row],[Department / Specialty]]&\"L\"","v":"AAMCAcademicAllProfessorPhDPediatric SurgeryL"},"Pediatric Surgery",2,"AAMC","Academic","All","Professor","PhD","2021-2022",null,{"$f":"(((AAMC_Raw_Data_for_FY22[[#This Row],[Median]]-AAMC_Raw_Data_for_FY22[[#This Row],[25th]])/25)*5) + AAMC_Raw_Data_for_FY22[[#This Row],[25th]]","v":0},{"$f":"(((AAMC_Raw_Data_for_FY22[[#This Row],[Median]]-AAMC_Raw_Data_for_FY22[[#This Row],[25th]])/25)*10) + AAMC_Raw_Data_for_FY22[[#This Row],[25th]]","v":0},{"$f":"(((AAMC_Raw_Data_for_FY22[[#This Row],[Median]]-AAMC_Raw_Data_for_FY22[[#This Row],[25th]])/25)*15) + AAMC_Raw_Data_for_FY22[[#This Row],[25th]]","v":0},{"$f":"(((AAMC_Raw_Data_for_FY22[[#This Row],[Median]]-AAMC_Raw_Data_for_FY22[[#This Row],[25th]])/25)*20) + AAMC_Raw_Data_for_FY22[[#This Row],[25th]]","v":0},null,{"$f":"(((AAMC_Raw_Data_for_FY22[[#This Row],[75th]]-AAMC_Raw_Data_for_FY22[[#This Row],[Median]])/25)*5) + AAMC_Raw_Data_for_FY22[[#This Row],[Median]]","v":0},{"$f":"(((AAMC_Raw_Data_for_FY22[[#This Row],[75th]]-AAMC_Raw_Data_for_FY22[[#This Row],[Median]])/25)*10) + AAMC_Raw_Data_for_FY22[[#This Row],[Median]]","v":0},{"$f":"(((AAMC_Raw_Data_for_FY22[[#This Row],[75th]]-AAMC_Raw_Data_for_FY22[[#This Row],[Median]])/25)*15) + AAMC_Raw_Data_for_FY22[[#This Row],[Median]]","v":0},{"$f":"(((AAMC_Raw_Data_for_FY22[[#This Row],[75th]]-AAMC_Raw_Data_for_FY22[[#This Row],[Median]])/25)*20) + AAMC_Raw_Data_for_FY22[[#This Row],[Median]]","v":0},null,{"$f":"(((AAMC_Raw_Data_for_FY22[[#This Row],[75th]]-AAMC_Raw_Data_for_FY22[[#This Row],[Median]])/25)*30) + AAMC_Raw_Data_for_FY22[[#This Row],[Median]]","v":0},{"$f":"(((AAMC_Raw_Data_for_FY22[[#This Row],[75th]]-AAMC_Raw_Data_for_FY22[[#This Row],[Median]])/25)*35) + AAMC_Raw_Data_for_FY22[[#This Row],[Median]]","v":0},{"$f":"(((AAMC_Raw_Data_for_FY22[[#This Row],[75th]]-AAMC_Raw_Data_for_FY22[[#This Row],[Median]])/25)*40) + AAMC_Raw_Data_for_FY22[[#This Row],[Median]]","v":0}]
[{"$f":"AAMC_Raw_Data_for_FY22[[#This Row],[Source]]&AAMC_Raw_Data_for_FY22[[#This Row],[Type]]&AAMC_Raw_Data_for_FY22[[#This Row],[School Subset]]&AAMC_Raw_Data_for_FY22[[#This Row],[Rank]]&AAMC_Raw_Data_for_FY22[[#This Row],[Degree]]&AAMC_Raw_Data_for_FY22[[#This Row],[Department / Specialty]]&\"L\"","v":"AAMCAcademicAllInstructorPhDPlastic SurgeryL"},"Plastic Surgery",5,"AAMC","Academic","All","Instructor","PhD","2021-2022",null,{"$f":"(((AAMC_Raw_Data_for_FY22[[#This Row],[Median]]-AAMC_Raw_Data_for_FY22[[#This Row],[25th]])/25)*5) + AAMC_Raw_Data_for_FY22[[#This Row],[25th]]","v":0},{"$f":"(((AAMC_Raw_Data_for_FY22[[#This Row],[Median]]-AAMC_Raw_Data_for_FY22[[#This Row],[25th]])/25)*10) + AAMC_Raw_Data_for_FY22[[#This Row],[25th]]","v":0},{"$f":"(((AAMC_Raw_Data_for_FY22[[#This Row],[Median]]-AAMC_Raw_Data_for_FY22[[#This Row],[25th]])/25)*15) + AAMC_Raw_Data_for_FY22[[#This Row],[25th]]","v":0},{"$f":"(((AAMC_Raw_Data_for_FY22[[#This Row],[Median]]-AAMC_Raw_Data_for_FY22[[#This Row],[25th]])/25)*20) + AAMC_Raw_Data_for_FY22[[#This Row],[25th]]","v":0},null,{"$f":"(((AAMC_Raw_Data_for_FY22[[#This Row],[75th]]-AAMC_Raw_Data_for_FY22[[#This Row],[Median]])/25)*5) + AAMC_Raw_Data_for_FY22[[#This Row],[Median]]","v":0},{"$f":"(((AAMC_Raw_Data_for_FY22[[#This Row],[75th]]-AAMC_Raw_Data_for_FY22[[#This Row],[Median]])/25)*10) + AAMC_Raw_Data_for_FY22[[#This Row],[Median]]","v":0},{"$f":"(((AAMC_Raw_Data_for_FY22[[#This Row],[75th]]-AAMC_Raw_Data_for_FY22[[#This Row],[Median]])/25)*15) + AAMC_Raw_Data_for_FY22[[#This Row],[Median]]","v":0},{"$f":"(((AAMC_Raw_Data_for_FY22[[#This Row],[75th]]-AAMC_Raw_Data_for_FY22[[#This Row],[Median]])/25)*20) + AAMC_Raw_Data_for_FY22[[#This Row],[Median]]","v":0},null,{"$f":"(((AAMC_Raw_Data_for_FY22[[#This Row],[75th]]-AAMC_Raw_Data_for_FY22[[#This Row],[Median]])/25)*30) + AAMC_Raw_Data_for_FY22[[#This Row],[Median]]","v":0},{"$f":"(((AAMC_Raw_Data_for_FY22[[#This Row],[75th]]-AAMC_Raw_Data_for_FY22[[#This Row],[Median]])/25)*35) + AAMC_Raw_Data_for_FY22[[#This Row],[Median]]","v":0},{"$f":"(((AAMC_Raw_Data_for_FY22[[#This Row],[75th]]-AAMC_Raw_Data_for_FY22[[#This Row],[Median]])/25)*40) + AAMC_Raw_Data_for_FY22[[#This Row],[Median]]","v":0}]
[{"$f":"AAMC_Raw_Data_for_FY22[[#This Row],[Source]]&AAMC_Raw_Data_for_FY22[[#This Row],[Type]]&AAMC_Raw_Data_for_FY22[[#This Row],[School Subset]]&AAMC_Raw_Data_for_FY22[[#This Row],[Rank]]&AAMC_Raw_Data_for_FY22[[#This Row],[Degree]]&AAMC_Raw_Data_for_FY22[[#This Row],[Department / Specialty]]&\"L\"","v":"AAMCAcademicAllAssistantPhDPlastic SurgeryL"},"Plastic Surgery",4,"AAMC","Academic","All","Assistant","PhD","2021-2022",79830,{"$f":"(((AAMC_Raw_Data_for_FY22[[#This Row],[Median]]-AAMC_Raw_Data_for_FY22[[#This Row],[25th]])/25)*5) + AAMC_Raw_Data_for_FY22[[#This Row],[25th]]","v":85222.2},{"$f":"(((AAMC_Raw_Data_for_FY22[[#This Row],[Median]]-AAMC_Raw_Data_for_FY22[[#This Row],[25th]])/25)*10) + AAMC_Raw_Data_for_FY22[[#This Row],[25th]]","v":90614.399999999994},{"$f":"(((AAMC_Raw_Data_for_FY22[[#This Row],[Median]]-AAMC_Raw_Data_for_FY22[[#This Row],[25th]])/25)*15) + AAMC_Raw_Data_for_FY22[[#This Row],[25th]]","v":96006.6},{"$f":"(((AAMC_Raw_Data_for_FY22[[#This Row],[Median]]-AAMC_Raw_Data_for_FY22[[#This Row],[25th]])/25)*20) + AAMC_Raw_Data_for_FY22[[#This Row],[25th]]","v":101398.8},106791,{"$f":"(((AAMC_Raw_Data_for_FY22[[#This Row],[75th]]-AAMC_Raw_Data_for_FY22[[#This Row],[Median]])/25)*5) + AAMC_Raw_Data_for_FY22[[#This Row],[Median]]","v":114603.6},{"$f":"(((AAMC_Raw_Data_for_FY22[[#This Row],[75th]]-AAMC_Raw_Data_for_FY22[[#This Row],[Median]])/25)*10) + AAMC_Raw_Data_for_FY22[[#This Row],[Median]]","v":122416.2},{"$f":"(((AAMC_Raw_Data_for_FY22[[#This Row],[75th]]-AAMC_Raw_Data_for_FY22[[#This Row],[Median]])/25)*15) + AAMC_Raw_Data_for_FY22[[#This Row],[Median]]","v":130228.8},{"$f":"(((AAMC_Raw_Data_for_FY22[[#This Row],[75th]]-AAMC_Raw_Data_for_FY22[[#This Row],[Median]])/25)*20) + AAMC_Raw_Data_for_FY22[[#This Row],[Median]]","v":138041.4},145854,{"$f":"(((AAMC_Raw_Data_for_FY22[[#This Row],[75th]]-AAMC_Raw_Data_for_FY22[[#This Row],[Median]])/25)*30) + AAMC_Raw_Data_for_FY22[[#This Row],[Median]]","v":153666.6},{"$f":"(((AAMC_Raw_Data_for_FY22[[#This Row],[75th]]-AAMC_Raw_Data_for_FY22[[#This Row],[Median]])/25)*35) + AAMC_Raw_Data_for_FY22[[#This Row],[Median]]","v":161479.20000000001},{"$f":"(((AAMC_Raw_Data_for_FY22[[#This Row],[75th]]-AAMC_Raw_Data_for_FY22[[#This Row],[Median]])/25)*40) + AAMC_Raw_Data_for_FY22[[#This Row],[Median]]","v":169291.8}]
[{"$f":"AAMC_Raw_Data_for_FY22[[#This Row],[Source]]&AAMC_Raw_Data_for_FY22[[#This Row],[Type]]&AAMC_Raw_Data_for_FY22[[#This Row],[School Subset]]&AAMC_Raw_Data_for_FY22[[#This Row],[Rank]]&AAMC_Raw_Data_for_FY22[[#This Row],[Degree]]&AAMC_Raw_Data_for_FY22[[#This Row],[Department / Specialty]]&\"L\"","v":"AAMCAcademicAllAssociatePhDPlastic SurgeryL"},"Plastic Surgery",3,"AAMC","Academic","All","Associate","PhD","2021-2022",125498,{"$f":"(((AAMC_Raw_Data_for_FY22[[#This Row],[Median]]-AAMC_Raw_Data_for_FY22[[#This Row],[25th]])/25)*5) + AAMC_Raw_Data_for_FY22[[#This Row],[25th]]","v":127595.2},{"$f":"(((AAMC_Raw_Data_for_FY22[[#This Row],[Median]]-AAMC_Raw_Data_for_FY22[[#This Row],[25th]])/25)*10) + AAMC_Raw_Data_for_FY22[[#This Row],[25th]]","v":129692.4},{"$f":"(((AAMC_Raw_Data_for_FY22[[#This Row],[Median]]-AAMC_Raw_Data_for_FY22[[#This Row],[25th]])/25)*15) + AAMC_Raw_Data_for_FY22[[#This Row],[25th]]","v":131789.6},{"$f":"(((AAMC_Raw_Data_for_FY22[[#This Row],[Median]]-AAMC_Raw_Data_for_FY22[[#This Row],[25th]])/25)*20) + AAMC_Raw_Data_for_FY22[[#This Row],[25th]]","v":133886.79999999999},135984,{"$f":"(((AAMC_Raw_Data_for_FY22[[#This Row],[75th]]-AAMC_Raw_Data_for_FY22[[#This Row],[Median]])/25)*5) + AAMC_Raw_Data_for_FY22[[#This Row],[Median]]","v":137603.79999999999},{"$f":"(((AAMC_Raw_Data_for_FY22[[#This Row],[75th]]-AAMC_Raw_Data_for_FY22[[#This Row],[Median]])/25)*10) + AAMC_Raw_Data_for_FY22[[#This Row],[Median]]","v":139223.6},{"$f":"(((AAMC_Raw_Data_for_FY22[[#This Row],[75th]]-AAMC_Raw_Data_for_FY22[[#This Row],[Median]])/25)*15) + AAMC_Raw_Data_for_FY22[[#This Row],[Median]]","v":140843.4},{"$f":"(((AAMC_Raw_Data_for_FY22[[#This Row],[75th]]-AAMC_Raw_Data_for_FY22[[#This Row],[Median]])/25)*20) + AAMC_Raw_Data_for_FY22[[#This Row],[Median]]","v":142463.20000000001},144083,{"$f":"(((AAMC_Raw_Data_for_FY22[[#This Row],[75th]]-AAMC_Raw_Data_for_FY22[[#This Row],[Median]])/25)*30) + AAMC_Raw_Data_for_FY22[[#This Row],[Median]]","v":145702.79999999999},{"$f":"(((AAMC_Raw_Data_for_FY22[[#This Row],[75th]]-AAMC_Raw_Data_for_FY22[[#This Row],[Median]])/25)*35) + AAMC_Raw_Data_for_FY22[[#This Row],[Median]]","v":147322.6},{"$f":"(((AAMC_Raw_Data_for_FY22[[#This Row],[75th]]-AAMC_Raw_Data_for_FY22[[#This Row],[Median]])/25)*40) + AAMC_Raw_Data_for_FY22[[#This Row],[Median]]","v":148942.39999999999}]
[{"$f":"AAMC_Raw_Data_for_FY22[[#This Row],[Source]]&AAMC_Raw_Data_for_FY22[[#This Row],[Type]]&AAMC_Raw_Data_for_FY22[[#This Row],[School Subset]]&AAMC_Raw_Data_for_FY22[[#This Row],[Rank]]&AAMC_Raw_Data_for_FY22[[#This Row],[Degree]]&AAMC_Raw_Data_for_FY22[[#This Row],[Department / Specialty]]&\"L\"","v":"AAMCAcademicAllProfessorPhDPlastic SurgeryL"},"Plastic Surgery",2,"AAMC","Academic","All","Professor","PhD","2021-2022",null,{"$f":"(((AAMC_Raw_Data_for_FY22[[#This Row],[Median]]-AAMC_Raw_Data_for_FY22[[#This Row],[25th]])/25)*5) + AAMC_Raw_Data_for_FY22[[#This Row],[25th]]","v":0},{"$f":"(((AAMC_Raw_Data_for_FY22[[#This Row],[Median]]-AAMC_Raw_Data_for_FY22[[#This Row],[25th]])/25)*10) + AAMC_Raw_Data_for_FY22[[#This Row],[25th]]","v":0},{"$f":"(((AAMC_Raw_Data_for_FY22[[#This Row],[Median]]-AAMC_Raw_Data_for_FY22[[#This Row],[25th]])/25)*15) + AAMC_Raw_Data_for_FY22[[#This Row],[25th]]","v":0},{"$f":"(((AAMC_Raw_Data_for_FY22[[#This Row],[Median]]-AAMC_Raw_Data_for_FY22[[#This Row],[25th]])/25)*20) + AAMC_Raw_Data_for_FY22[[#This Row],[25th]]","v":0},null,{"$f":"(((AAMC_Raw_Data_for_FY22[[#This Row],[75th]]-AAMC_Raw_Data_for_FY22[[#This Row],[Median]])/25)*5) + AAMC_Raw_Data_for_FY22[[#This Row],[Median]]","v":0},{"$f":"(((AAMC_Raw_Data_for_FY22[[#This Row],[75th]]-AAMC_Raw_Data_for_FY22[[#This Row],[Median]])/25)*10) + AAMC_Raw_Data_for_FY22[[#This Row],[Median]]","v":0},{"$f":"(((AAMC_Raw_Data_for_FY22[[#This Row],[75th]]-AAMC_Raw_Data_for_FY22[[#This Row],[Median]])/25)*15) + AAMC_Raw_Data_for_FY22[[#This Row],[Median]]","v":0},{"$f":"(((AAMC_Raw_Data_for_FY22[[#This Row],[75th]]-AAMC_Raw_Data_for_FY22[[#This Row],[Median]])/25)*20) + AAMC_Raw_Data_for_FY22[[#This Row],[Median]]","v":0},null,{"$f":"(((AAMC_Raw_Data_for_FY22[[#This Row],[75th]]-AAMC_Raw_Data_for_FY22[[#This Row],[Median]])/25)*30) + AAMC_Raw_Data_for_FY22[[#This Row],[Median]]","v":0},{"$f":"(((AAMC_Raw_Data_for_FY22[[#This Row],[75th]]-AAMC_Raw_Data_for_FY22[[#This Row],[Median]])/25)*35) + AAMC_Raw_Data_for_FY22[[#This Row],[Median]]","v":0},{"$f":"(((AAMC_Raw_Data_for_FY22[[#This Row],[75th]]-AAMC_Raw_Data_for_FY22[[#This Row],[Median]])/25)*40) + AAMC_Raw_Data_for_FY22[[#This Row],[Median]]","v":0}]
[{"$f":"AAMC_Raw_Data_for_FY22[[#This Row],[Source]]&AAMC_Raw_Data_for_FY22[[#This Row],[Type]]&AAMC_Raw_Data_for_FY22[[#This Row],[School Subset]]&AAMC_Raw_Data_for_FY22[[#This Row],[Rank]]&AAMC_Raw_Data_for_FY22[[#This Row],[Degree]]&AAMC_Raw_Data_for_FY22[[#This Row],[Department / Specialty]]&\"L\"","v":"AAMCAcademicAllInstructorPhDSurgical OncologyL"},"Surgical Oncology",5,"AAMC","Academic","All","Instructor","PhD","2021-2022",null,{"$f":"(((AAMC_Raw_Data_for_FY22[[#This Row],[Median]]-AAMC_Raw_Data_for_FY22[[#This Row],[25th]])/25)*5) + AAMC_Raw_Data_for_FY22[[#This Row],[25th]]","v":0},{"$f":"(((AAMC_Raw_Data_for_FY22[[#This Row],[Median]]-AAMC_Raw_Data_for_FY22[[#This Row],[25th]])/25)*10) + AAMC_Raw_Data_for_FY22[[#This Row],[25th]]","v":0},{"$f":"(((AAMC_Raw_Data_for_FY22[[#This Row],[Median]]-AAMC_Raw_Data_for_FY22[[#This Row],[25th]])/25)*15) + AAMC_Raw_Data_for_FY22[[#This Row],[25th]]","v":0},{"$f":"(((AAMC_Raw_Data_for_FY22[[#This Row],[Median]]-AAMC_Raw_Data_for_FY22[[#This Row],[25th]])/25)*20) + AAMC_Raw_Data_for_FY22[[#This Row],[25th]]","v":0},null,{"$f":"(((AAMC_Raw_Data_for_FY22[[#This Row],[75th]]-AAMC_Raw_Data_for_FY22[[#This Row],[Median]])/25)*5) + AAMC_Raw_Data_for_FY22[[#This Row],[Median]]","v":0},{"$f":"(((AAMC_Raw_Data_for_FY22[[#This Row],[75th]]-AAMC_Raw_Data_for_FY22[[#This Row],[Median]])/25)*10) + AAMC_Raw_Data_for_FY22[[#This Row],[Median]]","v":0},{"$f":"(((AAMC_Raw_Data_for_FY22[[#This Row],[75th]]-AAMC_Raw_Data_for_FY22[[#This Row],[Median]])/25)*15) + AAMC_Raw_Data_for_FY22[[#This Row],[Median]]","v":0},{"$f":"(((AAMC_Raw_Data_for_FY22[[#This Row],[75th]]-AAMC_Raw_Data_for_FY22[[#This Row],[Median]])/25)*20) + AAMC_Raw_Data_for_FY22[[#This Row],[Median]]","v":0},null,{"$f":"(((AAMC_Raw_Data_for_FY22[[#This Row],[75th]]-AAMC_Raw_Data_for_FY22[[#This Row],[Median]])/25)*30) + AAMC_Raw_Data_for_FY22[[#This Row],[Median]]","v":0},{"$f":"(((AAMC_Raw_Data_for_FY22[[#This Row],[75th]]-AAMC_Raw_Data_for_FY22[[#This Row],[Median]])/25)*35) + AAMC_Raw_Data_for_FY22[[#This Row],[Median]]","v":0},{"$f":"(((AAMC_Raw_Data_for_FY22[[#This Row],[75th]]-AAMC_Raw_Data_for_FY22[[#This Row],[Median]])/25)*40) + AAMC_Raw_Data_for_FY22[[#This Row],[Median]]","v":0}]
[{"$f":"AAMC_Raw_Data_for_FY22[[#This Row],[Source]]&AAMC_Raw_Data_for_FY22[[#This Row],[Type]]&AAMC_Raw_Data_for_FY22[[#This Row],[School Subset]]&AAMC_Raw_Data_for_FY22[[#This Row],[Rank]]&AAMC_Raw_Data_for_FY22[[#This Row],[Degree]]&AAMC_Raw_Data_for_FY22[[#This Row],[Department / Specialty]]&\"L\"","v":"AAMCAcademicAllAssistantPhDSurgical OncologyL"},"Surgical Oncology",4,"AAMC","Academic","All","Assistant","PhD","2021-2022",72477,{"$f":"(((AAMC_Raw_Data_for_FY22[[#This Row],[Median]]-AAMC_Raw_Data_for_FY22[[#This Row],[25th]])/25)*5) + AAMC_Raw_Data_for_FY22[[#This Row],[25th]]","v":76763.600000000006},{"$f":"(((AAMC_Raw_Data_for_FY22[[#This Row],[Median]]-AAMC_Raw_Data_for_FY22[[#This Row],[25th]])/25)*10) + AAMC_Raw_Data_for_FY22[[#This Row],[25th]]","v":81050.2},{"$f":"(((AAMC_Raw_Data_for_FY22[[#This Row],[Median]]-AAMC_Raw_Data_for_FY22[[#This Row],[25th]])/25)*15) + AAMC_Raw_Data_for_FY22[[#This Row],[25th]]","v":85336.8},{"$f":"(((AAMC_Raw_Data_for_FY22[[#This Row],[Median]]-AAMC_Raw_Data_for_FY22[[#This Row],[25th]])/25)*20) + AAMC_Raw_Data_for_FY22[[#This Row],[25th]]","v":89623.4},93910,{"$f":"(((AAMC_Raw_Data_for_FY22[[#This Row],[75th]]-AAMC_Raw_Data_for_FY22[[#This Row],[Median]])/25)*5) + AAMC_Raw_Data_for_FY22[[#This Row],[Median]]","v":96128.4},{"$f":"(((AAMC_Raw_Data_for_FY22[[#This Row],[75th]]-AAMC_Raw_Data_for_FY22[[#This Row],[Median]])/25)*10) + AAMC_Raw_Data_for_FY22[[#This Row],[Median]]","v":98346.8},{"$f":"(((AAMC_Raw_Data_for_FY22[[#This Row],[75th]]-AAMC_Raw_Data_for_FY22[[#This Row],[Median]])/25)*15) + AAMC_Raw_Data_for_FY22[[#This Row],[Median]]","v":100565.2},{"$f":"(((AAMC_Raw_Data_for_FY22[[#This Row],[75th]]-AAMC_Raw_Data_for_FY22[[#This Row],[Median]])/25)*20) + AAMC_Raw_Data_for_FY22[[#This Row],[Median]]","v":102783.6},105002,{"$f":"(((AAMC_Raw_Data_for_FY22[[#This Row],[75th]]-AAMC_Raw_Data_for_FY22[[#This Row],[Median]])/25)*30) + AAMC_Raw_Data_for_FY22[[#This Row],[Median]]","v":107220.4},{"$f":"(((AAMC_Raw_Data_for_FY22[[#This Row],[75th]]-AAMC_Raw_Data_for_FY22[[#This Row],[Median]])/25)*35) + AAMC_Raw_Data_for_FY22[[#This Row],[Median]]","v":109438.8},{"$f":"(((AAMC_Raw_Data_for_FY22[[#This Row],[75th]]-AAMC_Raw_Data_for_FY22[[#This Row],[Median]])/25)*40) + AAMC_Raw_Data_for_FY22[[#This Row],[Median]]","v":111657.2}]
[{"$f":"AAMC_Raw_Data_for_FY22[[#This Row],[Source]]&AAMC_Raw_Data_for_FY22[[#This Row],[Type]]&AAMC_Raw_Data_for_FY22[[#This Row],[School Subset]]&AAMC_Raw_Data_for_FY22[[#This Row],[Rank]]&AAMC_Raw_Data_for_FY22[[#This Row],[Degree]]&AAMC_Raw_Data_for_FY22[[#This Row],[Department / Specialty]]&\"L\"","v":"AAMCAcademicAllAssociatePhDSurgical OncologyL"},"Surgical Oncology",3,"AAMC","Academic","All","Associate","PhD","2021-2022",105041,{"$f":"(((AAMC_Raw_Data_for_FY22[[#This Row],[Median]]-AAMC_Raw_Data_for_FY22[[#This Row],[25th]])/25)*5) + AAMC_Raw_Data_for_FY22[[#This Row],[25th]]","v":108841.4},{"$f":"(((AAMC_Raw_Data_for_FY22[[#This Row],[Median]]-AAMC_Raw_Data_for_FY22[[#This Row],[25th]])/25)*10) + AAMC_Raw_Data_for_FY22[[#This Row],[25th]]","v":112641.8},{"$f":"(((AAMC_Raw_Data_for_FY22[[#This Row],[Median]]-AAMC_Raw_Data_for_FY22[[#This Row],[25th]])/25)*15) + AAMC_Raw_Data_for_FY22[[#This Row],[25th]]","v":116442.2},{"$f":"(((AAMC_Raw_Data_for_FY22[[#This Row],[Median]]-AAMC_Raw_Data_for_FY22[[#This Row],[25th]])/25)*20) + AAMC_Raw_Data_for_FY22[[#This Row],[25th]]","v":120242.6},124043,{"$f":"(((AAMC_Raw_Data_for_FY22[[#This Row],[75th]]-AAMC_Raw_Data_for_FY22[[#This Row],[Median]])/25)*5) + AAMC_Raw_Data_for_FY22[[#This Row],[Median]]","v":126507.6},{"$f":"(((AAMC_Raw_Data_for_FY22[[#This Row],[75th]]-AAMC_Raw_Data_for_FY22[[#This Row],[Median]])/25)*10) + AAMC_Raw_Data_for_FY22[[#This Row],[Median]]","v":128972.2},{"$f":"(((AAMC_Raw_Data_for_FY22[[#This Row],[75th]]-AAMC_Raw_Data_for_FY22[[#This Row],[Median]])/25)*15) + AAMC_Raw_Data_for_FY22[[#This Row],[Median]]","v":131436.79999999999},{"$f":"(((AAMC_Raw_Data_for_FY22[[#This Row],[75th]]-AAMC_Raw_Data_for_FY22[[#This Row],[Median]])/25)*20) + AAMC_Raw_Data_for_FY22[[#This Row],[Median]]","v":133901.4},136366,{"$f":"(((AAMC_Raw_Data_for_FY22[[#This Row],[75th]]-AAMC_Raw_Data_for_FY22[[#This Row],[Median]])/25)*30) + AAMC_Raw_Data_for_FY22[[#This Row],[Median]]","v":138830.6},{"$f":"(((AAMC_Raw_Data_for_FY22[[#This Row],[75th]]-AAMC_Raw_Data_for_FY22[[#This Row],[Median]])/25)*35) + AAMC_Raw_Data_for_FY22[[#This Row],[Median]]","v":141295.20000000001},{"$f":"(((AAMC_Raw_Data_for_FY22[[#This Row],[75th]]-AAMC_Raw_Data_for_FY22[[#This Row],[Median]])/25)*40) + AAMC_Raw_Data_for_FY22[[#This Row],[Median]]","v":143759.79999999999}]
[{"$f":"AAMC_Raw_Data_for_FY22[[#This Row],[Source]]&AAMC_Raw_Data_for_FY22[[#This Row],[Type]]&AAMC_Raw_Data_for_FY22[[#This Row],[School Subset]]&AAMC_Raw_Data_for_FY22[[#This Row],[Rank]]&AAMC_Raw_Data_for_FY22[[#This Row],[Degree]]&AAMC_Raw_Data_for_FY22[[#This Row],[Department / Specialty]]&\"L\"","v":"AAMCAcademicAllProfessorPhDSurgical OncologyL"},"Surgical Oncology",2,"AAMC","Academic","All","Professor","PhD","2021-2022",174015,{"$f":"(((AAMC_Raw_Data_for_FY22[[#This Row],[Median]]-AAMC_Raw_Data_for_FY22[[#This Row],[25th]])/25)*5) + AAMC_Raw_Data_for_FY22[[#This Row],[25th]]","v":182602.2},{"$f":"(((AAMC_Raw_Data_for_FY22[[#This Row],[Median]]-AAMC_Raw_Data_for_FY22[[#This Row],[25th]])/25)*10) + AAMC_Raw_Data_for_FY22[[#This Row],[25th]]","v":191189.4},{"$f":"(((AAMC_Raw_Data_for_FY22[[#This Row],[Median]]-AAMC_Raw_Data_for_FY22[[#This Row],[25th]])/25)*15) + AAMC_Raw_Data_for_FY22[[#This Row],[25th]]","v":199776.6},{"$f":"(((AAMC_Raw_Data_for_FY22[[#This Row],[Median]]-AAMC_Raw_Data_for_FY22[[#This Row],[25th]])/25)*20) + AAMC_Raw_Data_for_FY22[[#This Row],[25th]]","v":208363.8},216951,{"$f":"(((AAMC_Raw_Data_for_FY22[[#This Row],[75th]]-AAMC_Raw_Data_for_FY22[[#This Row],[Median]])/25)*5) + AAMC_Raw_Data_for_FY22[[#This Row],[Median]]","v":222857.2},{"$f":"(((AAMC_Raw_Data_for_FY22[[#This Row],[75th]]-AAMC_Raw_Data_for_FY22[[#This Row],[Median]])/25)*10) + AAMC_Raw_Data_for_FY22[[#This Row],[Median]]","v":228763.4},{"$f":"(((AAMC_Raw_Data_for_FY22[[#This Row],[75th]]-AAMC_Raw_Data_for_FY22[[#This Row],[Median]])/25)*15) + AAMC_Raw_Data_for_FY22[[#This Row],[Median]]","v":234669.6},{"$f":"(((AAMC_Raw_Data_for_FY22[[#This Row],[75th]]-AAMC_Raw_Data_for_FY22[[#This Row],[Median]])/25)*20) + AAMC_Raw_Data_for_FY22[[#This Row],[Median]]","v":240575.8},246482,{"$f":"(((AAMC_Raw_Data_for_FY22[[#This Row],[75th]]-AAMC_Raw_Data_for_FY22[[#This Row],[Median]])/25)*30) + AAMC_Raw_Data_for_FY22[[#This Row],[Median]]","v":252388.2},{"$f":"(((AAMC_Raw_Data_for_FY22[[#This Row],[75th]]-AAMC_Raw_Data_for_FY22[[#This Row],[Median]])/25)*35) + AAMC_Raw_Data_for_FY22[[#This Row],[Median]]","v":258294.39999999999},{"$f":"(((AAMC_Raw_Data_for_FY22[[#This Row],[75th]]-AAMC_Raw_Data_for_FY22[[#This Row],[Median]])/25)*40) + AAMC_Raw_Data_for_FY22[[#This Row],[Median]]","v":264200.59999999998}]
[{"$f":"AAMC_Raw_Data_for_FY22[[#This Row],[Source]]&AAMC_Raw_Data_for_FY22[[#This Row],[Type]]&AAMC_Raw_Data_for_FY22[[#This Row],[School Subset]]&AAMC_Raw_Data_for_FY22[[#This Row],[Rank]]&AAMC_Raw_Data_for_FY22[[#This Row],[Degree]]&AAMC_Raw_Data_for_FY22[[#This Row],[Department / Specialty]]&\"L\"","v":"AAMCAcademicAllInstructorPhDThoracic & Cardiovascular SurgeryL"},"Thoracic & Cardiovascular Surgery",5,"AAMC","Academic","All","Instructor","PhD","2021-2022",null,{"$f":"(((AAMC_Raw_Data_for_FY22[[#This Row],[Median]]-AAMC_Raw_Data_for_FY22[[#This Row],[25th]])/25)*5) + AAMC_Raw_Data_for_FY22[[#This Row],[25th]]","v":0},{"$f":"(((AAMC_Raw_Data_for_FY22[[#This Row],[Median]]-AAMC_Raw_Data_for_FY22[[#This Row],[25th]])/25)*10) + AAMC_Raw_Data_for_FY22[[#This Row],[25th]]","v":0},{"$f":"(((AAMC_Raw_Data_for_FY22[[#This Row],[Median]]-AAMC_Raw_Data_for_FY22[[#This Row],[25th]])/25)*15) + AAMC_Raw_Data_for_FY22[[#This Row],[25th]]","v":0},{"$f":"(((AAMC_Raw_Data_for_FY22[[#This Row],[Median]]-AAMC_Raw_Data_for_FY22[[#This Row],[25th]])/25)*20) + AAMC_Raw_Data_for_FY22[[#This Row],[25th]]","v":0},null,{"$f":"(((AAMC_Raw_Data_for_FY22[[#This Row],[75th]]-AAMC_Raw_Data_for_FY22[[#This Row],[Median]])/25)*5) + AAMC_Raw_Data_for_FY22[[#This Row],[Median]]","v":0},{"$f":"(((AAMC_Raw_Data_for_FY22[[#This Row],[75th]]-AAMC_Raw_Data_for_FY22[[#This Row],[Median]])/25)*10) + AAMC_Raw_Data_for_FY22[[#This Row],[Median]]","v":0},{"$f":"(((AAMC_Raw_Data_for_FY22[[#This Row],[75th]]-AAMC_Raw_Data_for_FY22[[#This Row],[Median]])/25)*15) + AAMC_Raw_Data_for_FY22[[#This Row],[Median]]","v":0},{"$f":"(((AAMC_Raw_Data_for_FY22[[#This Row],[75th]]-AAMC_Raw_Data_for_FY22[[#This Row],[Median]])/25)*20) + AAMC_Raw_Data_for_FY22[[#This Row],[Median]]","v":0},null,{"$f":"(((AAMC_Raw_Data_for_FY22[[#This Row],[75th]]-AAMC_Raw_Data_for_FY22[[#This Row],[Median]])/25)*30) + AAMC_Raw_Data_for_FY22[[#This Row],[Median]]","v":0},{"$f":"(((AAMC_Raw_Data_for_FY22[[#This Row],[75th]]-AAMC_Raw_Data_for_FY22[[#This Row],[Median]])/25)*35) + AAMC_Raw_Data_for_FY22[[#This Row],[Median]]","v":0},{"$f":"(((AAMC_Raw_Data_for_FY22[[#This Row],[75th]]-AAMC_Raw_Data_for_FY22[[#This Row],[Median]])/25)*40) + AAMC_Raw_Data_for_FY22[[#This Row],[Median]]","v":0}]
[{"$f":"AAMC_Raw_Data_for_FY22[[#This Row],[Source]]&AAMC_Raw_Data_for_FY22[[#This Row],[Type]]&AAMC_Raw_Data_for_FY22[[#This Row],[School Subset]]&AAMC_Raw_Data_for_FY22[[#This Row],[Rank]]&AAMC_Raw_Data_for_FY22[[#This Row],[Degree]]&AAMC_Raw_Data_for_FY22[[#This Row],[Department / Specialty]]&\"L\"","v":"AAMCAcademicAllAssistantPhDThoracic & Cardiovascular SurgeryL"},"Thoracic & Cardiovascular Surgery",4,"AAMC","Academic","All","Assistant","PhD","2021-2022",87375,{"$f":"(((AAMC_Raw_Data_for_FY22[[#This Row],[Median]]-AAMC_Raw_Data_for_FY22[[#This Row],[25th]])/25)*5) + AAMC_Raw_Data_for_FY22[[#This Row],[25th]]","v":89280},{"$f":"(((AAMC_Raw_Data_for_FY22[[#This Row],[Median]]-AAMC_Raw_Data_for_FY22[[#This Row],[25th]])/25)*10) + AAMC_Raw_Data_for_FY22[[#This Row],[25th]]","v":91185},{"$f":"(((AAMC_Raw_Data_for_FY22[[#This Row],[Median]]-AAMC_Raw_Data_for_FY22[[#This Row],[25th]])/25)*15) + AAMC_Raw_Data_for_FY22[[#This Row],[25th]]","v":93090},{"$f":"(((AAMC_Raw_Data_for_FY22[[#This Row],[Median]]-AAMC_Raw_Data_for_FY22[[#This Row],[25th]])/25)*20) + AAMC_Raw_Data_for_FY22[[#This Row],[25th]]","v":94995},96900,{"$f":"(((AAMC_Raw_Data_for_FY22[[#This Row],[75th]]-AAMC_Raw_Data_for_FY22[[#This Row],[Median]])/25)*5) + AAMC_Raw_Data_for_FY22[[#This Row],[Median]]","v":102293.8},{"$f":"(((AAMC_Raw_Data_for_FY22[[#This Row],[75th]]-AAMC_Raw_Data_for_FY22[[#This Row],[Median]])/25)*10) + AAMC_Raw_Data_for_FY22[[#This Row],[Median]]","v":107687.6},{"$f":"(((AAMC_Raw_Data_for_FY22[[#This Row],[75th]]-AAMC_Raw_Data_for_FY22[[#This Row],[Median]])/25)*15) + AAMC_Raw_Data_for_FY22[[#This Row],[Median]]","v":113081.4},{"$f":"(((AAMC_Raw_Data_for_FY22[[#This Row],[75th]]-AAMC_Raw_Data_for_FY22[[#This Row],[Median]])/25)*20) + AAMC_Raw_Data_for_FY22[[#This Row],[Median]]","v":118475.2},123869,{"$f":"(((AAMC_Raw_Data_for_FY22[[#This Row],[75th]]-AAMC_Raw_Data_for_FY22[[#This Row],[Median]])/25)*30) + AAMC_Raw_Data_for_FY22[[#This Row],[Median]]","v":129262.8},{"$f":"(((AAMC_Raw_Data_for_FY22[[#This Row],[75th]]-AAMC_Raw_Data_for_FY22[[#This Row],[Median]])/25)*35) + AAMC_Raw_Data_for_FY22[[#This Row],[Median]]","v":134656.6},{"$f":"(((AAMC_Raw_Data_for_FY22[[#This Row],[75th]]-AAMC_Raw_Data_for_FY22[[#This Row],[Median]])/25)*40) + AAMC_Raw_Data_for_FY22[[#This Row],[Median]]","v":140050.4}]
[{"$f":"AAMC_Raw_Data_for_FY22[[#This Row],[Source]]&AAMC_Raw_Data_for_FY22[[#This Row],[Type]]&AAMC_Raw_Data_for_FY22[[#This Row],[School Subset]]&AAMC_Raw_Data_for_FY22[[#This Row],[Rank]]&AAMC_Raw_Data_for_FY22[[#This Row],[Degree]]&AAMC_Raw_Data_for_FY22[[#This Row],[Department / Specialty]]&\"L\"","v":"AAMCAcademicAllAssociatePhDThoracic & Cardiovascular SurgeryL"},"Thoracic & Cardiovascular Surgery",3,"AAMC","Academic","All","Associate","PhD","2021-2022",122933,{"$f":"(((AAMC_Raw_Data_for_FY22[[#This Row],[Median]]-AAMC_Raw_Data_for_FY22[[#This Row],[25th]])/25)*5) + AAMC_Raw_Data_for_FY22[[#This Row],[25th]]","v":126093.6},{"$f":"(((AAMC_Raw_Data_for_FY22[[#This Row],[Median]]-AAMC_Raw_Data_for_FY22[[#This Row],[25th]])/25)*10) + AAMC_Raw_Data_for_FY22[[#This Row],[25th]]","v":129254.2},{"$f":"(((AAMC_Raw_Data_for_FY22[[#This Row],[Median]]-AAMC_Raw_Data_for_FY22[[#This Row],[25th]])/25)*15) + AAMC_Raw_Data_for_FY22[[#This Row],[25th]]","v":132414.79999999999},{"$f":"(((AAMC_Raw_Data_for_FY22[[#This Row],[Median]]-AAMC_Raw_Data_for_FY22[[#This Row],[25th]])/25)*20) + AAMC_Raw_Data_for_FY22[[#This Row],[25th]]","v":135575.4},138736,{"$f":"(((AAMC_Raw_Data_for_FY22[[#This Row],[75th]]-AAMC_Raw_Data_for_FY22[[#This Row],[Median]])/25)*5) + AAMC_Raw_Data_for_FY22[[#This Row],[Median]]","v":141988.79999999999},{"$f":"(((AAMC_Raw_Data_for_FY22[[#This Row],[75th]]-AAMC_Raw_Data_for_FY22[[#This Row],[Median]])/25)*10) + AAMC_Raw_Data_for_FY22[[#This Row],[Median]]","v":145241.60000000001},{"$f":"(((AAMC_Raw_Data_for_FY22[[#This Row],[75th]]-AAMC_Raw_Data_for_FY22[[#This Row],[Median]])/25)*15) + AAMC_Raw_Data_for_FY22[[#This Row],[Median]]","v":148494.39999999999},{"$f":"(((AAMC_Raw_Data_for_FY22[[#This Row],[75th]]-AAMC_Raw_Data_for_FY22[[#This Row],[Median]])/25)*20) + AAMC_Raw_Data_for_FY22[[#This Row],[Median]]","v":151747.20000000001},155000,{"$f":"(((AAMC_Raw_Data_for_FY22[[#This Row],[75th]]-AAMC_Raw_Data_for_FY22[[#This Row],[Median]])/25)*30) + AAMC_Raw_Data_for_FY22[[#This Row],[Median]]","v":158252.79999999999},{"$f":"(((AAMC_Raw_Data_for_FY22[[#This Row],[75th]]-AAMC_Raw_Data_for_FY22[[#This Row],[Median]])/25)*35) + AAMC_Raw_Data_for_FY22[[#This Row],[Median]]","v":161505.60000000001},{"$f":"(((AAMC_Raw_Data_for_FY22[[#This Row],[75th]]-AAMC_Raw_Data_for_FY22[[#This Row],[Median]])/25)*40) + AAMC_Raw_Data_for_FY22[[#This Row],[Median]]","v":164758.39999999999}]
[{"$f":"AAMC_Raw_Data_for_FY22[[#This Row],[Source]]&AAMC_Raw_Data_for_FY22[[#This Row],[Type]]&AAMC_Raw_Data_for_FY22[[#This Row],[School Subset]]&AAMC_Raw_Data_for_FY22[[#This Row],[Rank]]&AAMC_Raw_Data_for_FY22[[#This Row],[Degree]]&AAMC_Raw_Data_for_FY22[[#This Row],[Department / Specialty]]&\"L\"","v":"AAMCAcademicAllProfessorPhDThoracic & Cardiovascular SurgeryL"},"Thoracic & Cardiovascular Surgery",2,"AAMC","Academic","All","Professor","PhD","2021-2022",162735,{"$f":"(((AAMC_Raw_Data_for_FY22[[#This Row],[Median]]-AAMC_Raw_Data_for_FY22[[#This Row],[25th]])/25)*5) + AAMC_Raw_Data_for_FY22[[#This Row],[25th]]","v":172305.6},{"$f":"(((AAMC_Raw_Data_for_FY22[[#This Row],[Median]]-AAMC_Raw_Data_for_FY22[[#This Row],[25th]])/25)*10) + AAMC_Raw_Data_for_FY22[[#This Row],[25th]]","v":181876.2},{"$f":"(((AAMC_Raw_Data_for_FY22[[#This Row],[Median]]-AAMC_Raw_Data_for_FY22[[#This Row],[25th]])/25)*15) + AAMC_Raw_Data_for_FY22[[#This Row],[25th]]","v":191446.8},{"$f":"(((AAMC_Raw_Data_for_FY22[[#This Row],[Median]]-AAMC_Raw_Data_for_FY22[[#This Row],[25th]])/25)*20) + AAMC_Raw_Data_for_FY22[[#This Row],[25th]]","v":201017.4},210588,{"$f":"(((AAMC_Raw_Data_for_FY22[[#This Row],[75th]]-AAMC_Raw_Data_for_FY22[[#This Row],[Median]])/25)*5) + AAMC_Raw_Data_for_FY22[[#This Row],[Median]]","v":216748.6},{"$f":"(((AAMC_Raw_Data_for_FY22[[#This Row],[75th]]-AAMC_Raw_Data_for_FY22[[#This Row],[Median]])/25)*10) + AAMC_Raw_Data_for_FY22[[#This Row],[Median]]","v":222909.2},{"$f":"(((AAMC_Raw_Data_for_FY22[[#This Row],[75th]]-AAMC_Raw_Data_for_FY22[[#This Row],[Median]])/25)*15) + AAMC_Raw_Data_for_FY22[[#This Row],[Median]]","v":229069.8},{"$f":"(((AAMC_Raw_Data_for_FY22[[#This Row],[75th]]-AAMC_Raw_Data_for_FY22[[#This Row],[Median]])/25)*20) + AAMC_Raw_Data_for_FY22[[#This Row],[Median]]","v":235230.4},241391,{"$f":"(((AAMC_Raw_Data_for_FY22[[#This Row],[75th]]-AAMC_Raw_Data_for_FY22[[#This Row],[Median]])/25)*30) + AAMC_Raw_Data_for_FY22[[#This Row],[Median]]","v":247551.6},{"$f":"(((AAMC_Raw_Data_for_FY22[[#This Row],[75th]]-AAMC_Raw_Data_for_FY22[[#This Row],[Median]])/25)*35) + AAMC_Raw_Data_for_FY22[[#This Row],[Median]]","v":253712.2},{"$f":"(((AAMC_Raw_Data_for_FY22[[#This Row],[75th]]-AAMC_Raw_Data_for_FY22[[#This Row],[Median]])/25)*40) + AAMC_Raw_Data_for_FY22[[#This Row],[Median]]","v":259872.8}]
[{"$f":"AAMC_Raw_Data_for_FY22[[#This Row],[Source]]&AAMC_Raw_Data_for_FY22[[#This Row],[Type]]&AAMC_Raw_Data_for_FY22[[#This Row],[School Subset]]&AAMC_Raw_Data_for_FY22[[#This Row],[Rank]]&AAMC_Raw_Data_for_FY22[[#This Row],[Degree]]&AAMC_Raw_Data_for_FY22[[#This Row],[Department / Specialty]]&\"L\"","v":"AAMCAcademicAllInstructorPhDTransplant SurgeryL"},"Transplant Surgery",5,"AAMC","Academic","All","Instructor","PhD","2021-2022",null,{"$f":"(((AAMC_Raw_Data_for_FY22[[#This Row],[Median]]-AAMC_Raw_Data_for_FY22[[#This Row],[25th]])/25)*5) + AAMC_Raw_Data_for_FY22[[#This Row],[25th]]","v":0},{"$f":"(((AAMC_Raw_Data_for_FY22[[#This Row],[Median]]-AAMC_Raw_Data_for_FY22[[#This Row],[25th]])/25)*10) + AAMC_Raw_Data_for_FY22[[#This Row],[25th]]","v":0},{"$f":"(((AAMC_Raw_Data_for_FY22[[#This Row],[Median]]-AAMC_Raw_Data_for_FY22[[#This Row],[25th]])/25)*15) + AAMC_Raw_Data_for_FY22[[#This Row],[25th]]","v":0},{"$f":"(((AAMC_Raw_Data_for_FY22[[#This Row],[Median]]-AAMC_Raw_Data_for_FY22[[#This Row],[25th]])/25)*20) + AAMC_Raw_Data_for_FY22[[#This Row],[25th]]","v":0},null,{"$f":"(((AAMC_Raw_Data_for_FY22[[#This Row],[75th]]-AAMC_Raw_Data_for_FY22[[#This Row],[Median]])/25)*5) + AAMC_Raw_Data_for_FY22[[#This Row],[Median]]","v":0},{"$f":"(((AAMC_Raw_Data_for_FY22[[#This Row],[75th]]-AAMC_Raw_Data_for_FY22[[#This Row],[Median]])/25)*10) + AAMC_Raw_Data_for_FY22[[#This Row],[Median]]","v":0},{"$f":"(((AAMC_Raw_Data_for_FY22[[#This Row],[75th]]-AAMC_Raw_Data_for_FY22[[#This Row],[Median]])/25)*15) + AAMC_Raw_Data_for_FY22[[#This Row],[Median]]","v":0},{"$f":"(((AAMC_Raw_Data_for_FY22[[#This Row],[75th]]-AAMC_Raw_Data_for_FY22[[#This Row],[Median]])/25)*20) + AAMC_Raw_Data_for_FY22[[#This Row],[Median]]","v":0},null,{"$f":"(((AAMC_Raw_Data_for_FY22[[#This Row],[75th]]-AAMC_Raw_Data_for_FY22[[#This Row],[Median]])/25)*30) + AAMC_Raw_Data_for_FY22[[#This Row],[Median]]","v":0},{"$f":"(((AAMC_Raw_Data_for_FY22[[#This Row],[75th]]-AAMC_Raw_Data_for_FY22[[#This Row],[Median]])/25)*35) + AAMC_Raw_Data_for_FY22[[#This Row],[Median]]","v":0},{"$f":"(((AAMC_Raw_Data_for_FY22[[#This Row],[75th]]-AAMC_Raw_Data_for_FY22[[#This Row],[Median]])/25)*40) + AAMC_Raw_Data_for_FY22[[#This Row],[Median]]","v":0}]
[{"$f":"AAMC_Raw_Data_for_FY22[[#This Row],[Source]]&AAMC_Raw_Data_for_FY22[[#This Row],[Type]]&AAMC_Raw_Data_for_FY22[[#This Row],[School Subset]]&AAMC_Raw_Data_for_FY22[[#This Row],[Rank]]&AAMC_Raw_Data_for_FY22[[#This Row],[Degree]]&AAMC_Raw_Data_for_FY22[[#This Row],[Department / Specialty]]&\"L\"","v":"AAMCAcademicAllAssistantPhDTransplant SurgeryL"},"Transplant Surgery",4,"AAMC","Academic","All","Assistant","PhD","2021-2022",84650,{"$f":"(((AAMC_Raw_Data_for_FY22[[#This Row],[Median]]-AAMC_Raw_Data_for_FY22[[#This Row],[25th]])/25)*5) + AAMC_Raw_Data_for_FY22[[#This Row],[25th]]","v":88320},{"$f":"(((AAMC_Raw_Data_for_FY22[[#This Row],[Median]]-AAMC_Raw_Data_for_FY22[[#This Row],[25th]])/25)*10) + AAMC_Raw_Data_for_FY22[[#This Row],[25th]]","v":91990},{"$f":"(((AAMC_Raw_Data_for_FY22[[#This Row],[Median]]-AAMC_Raw_Data_for_FY22[[#This Row],[25th]])/25)*15) + AAMC_Raw_Data_for_FY22[[#This Row],[25th]]","v":95660},{"$f":"(((AAMC_Raw_Data_for_FY22[[#This Row],[Median]]-AAMC_Raw_Data_for_FY22[[#This Row],[25th]])/25)*20) + AAMC_Raw_Data_for_FY22[[#This Row],[25th]]","v":99330},103000,{"$f":"(((AAMC_Raw_Data_for_FY22[[#This Row],[75th]]-AAMC_Raw_Data_for_FY22[[#This Row],[Median]])/25)*5) + AAMC_Raw_Data_for_FY22[[#This Row],[Median]]","v":105771.6},{"$f":"(((AAMC_Raw_Data_for_FY22[[#This Row],[75th]]-AAMC_Raw_Data_for_FY22[[#This Row],[Median]])/25)*10) + AAMC_Raw_Data_for_FY22[[#This Row],[Median]]","v":108543.2},{"$f":"(((AAMC_Raw_Data_for_FY22[[#This Row],[75th]]-AAMC_Raw_Data_for_FY22[[#This Row],[Median]])/25)*15) + AAMC_Raw_Data_for_FY22[[#This Row],[Median]]","v":111314.8},{"$f":"(((AAMC_Raw_Data_for_FY22[[#This Row],[75th]]-AAMC_Raw_Data_for_FY22[[#This Row],[Median]])/25)*20) + AAMC_Raw_Data_for_FY22[[#This Row],[Median]]","v":114086.39999999999},116858,{"$f":"(((AAMC_Raw_Data_for_FY22[[#This Row],[75th]]-AAMC_Raw_Data_for_FY22[[#This Row],[Median]])/25)*30) + AAMC_Raw_Data_for_FY22[[#This Row],[Median]]","v":119629.6},{"$f":"(((AAMC_Raw_Data_for_FY22[[#This Row],[75th]]-AAMC_Raw_Data_for_FY22[[#This Row],[Median]])/25)*35) + AAMC_Raw_Data_for_FY22[[#This Row],[Median]]","v":122401.2},{"$f":"(((AAMC_Raw_Data_for_FY22[[#This Row],[75th]]-AAMC_Raw_Data_for_FY22[[#This Row],[Median]])/25)*40) + AAMC_Raw_Data_for_FY22[[#This Row],[Median]]","v":125172.8}]
[{"$f":"AAMC_Raw_Data_for_FY22[[#This Row],[Source]]&AAMC_Raw_Data_for_FY22[[#This Row],[Type]]&AAMC_Raw_Data_for_FY22[[#This Row],[School Subset]]&AAMC_Raw_Data_for_FY22[[#This Row],[Rank]]&AAMC_Raw_Data_for_FY22[[#This Row],[Degree]]&AAMC_Raw_Data_for_FY22[[#This Row],[Department / Specialty]]&\"L\"","v":"AAMCAcademicAllAssociatePhDTransplant SurgeryL"},"Transplant Surgery",3,"AAMC","Academic","All","Associate","PhD","2021-2022",124010,{"$f":"(((AAMC_Raw_Data_for_FY22[[#This Row],[Median]]-AAMC_Raw_Data_for_FY22[[#This Row],[25th]])/25)*5) + AAMC_Raw_Data_for_FY22[[#This Row],[25th]]","v":126339.2},{"$f":"(((AAMC_Raw_Data_for_FY22[[#This Row],[Median]]-AAMC_Raw_Data_for_FY22[[#This Row],[25th]])/25)*10) + AAMC_Raw_Data_for_FY22[[#This Row],[25th]]","v":128668.4},{"$f":"(((AAMC_Raw_Data_for_FY22[[#This Row],[Median]]-AAMC_Raw_Data_for_FY22[[#This Row],[25th]])/25)*15) + AAMC_Raw_Data_for_FY22[[#This Row],[25th]]","v":130997.6},{"$f":"(((AAMC_Raw_Data_for_FY22[[#This Row],[Median]]-AAMC_Raw_Data_for_FY22[[#This Row],[25th]])/25)*20) + AAMC_Raw_Data_for_FY22[[#This Row],[25th]]","v":133326.79999999999},135656,{"$f":"(((AAMC_Raw_Data_for_FY22[[#This Row],[75th]]-AAMC_Raw_Data_for_FY22[[#This Row],[Median]])/25)*5) + AAMC_Raw_Data_for_FY22[[#This Row],[Median]]","v":140105.60000000001},{"$f":"(((AAMC_Raw_Data_for_FY22[[#This Row],[75th]]-AAMC_Raw_Data_for_FY22[[#This Row],[Median]])/25)*10) + AAMC_Raw_Data_for_FY22[[#This Row],[Median]]","v":144555.20000000001},{"$f":"(((AAMC_Raw_Data_for_FY22[[#This Row],[75th]]-AAMC_Raw_Data_for_FY22[[#This Row],[Median]])/25)*15) + AAMC_Raw_Data_for_FY22[[#This Row],[Median]]","v":149004.79999999999},{"$f":"(((AAMC_Raw_Data_for_FY22[[#This Row],[75th]]-AAMC_Raw_Data_for_FY22[[#This Row],[Median]])/25)*20) + AAMC_Raw_Data_for_FY22[[#This Row],[Median]]","v":153454.39999999999},157904,{"$f":"(((AAMC_Raw_Data_for_FY22[[#This Row],[75th]]-AAMC_Raw_Data_for_FY22[[#This Row],[Median]])/25)*30) + AAMC_Raw_Data_for_FY22[[#This Row],[Median]]","v":162353.60000000001},{"$f":"(((AAMC_Raw_Data_for_FY22[[#This Row],[75th]]-AAMC_Raw_Data_for_FY22[[#This Row],[Median]])/25)*35) + AAMC_Raw_Data_for_FY22[[#This Row],[Median]]","v":166803.20000000001},{"$f":"(((AAMC_Raw_Data_for_FY22[[#This Row],[75th]]-AAMC_Raw_Data_for_FY22[[#This Row],[Median]])/25)*40) + AAMC_Raw_Data_for_FY22[[#This Row],[Median]]","v":171252.8}]
[{"$f":"AAMC_Raw_Data_for_FY22[[#This Row],[Source]]&AAMC_Raw_Data_for_FY22[[#This Row],[Type]]&AAMC_Raw_Data_for_FY22[[#This Row],[School Subset]]&AAMC_Raw_Data_for_FY22[[#This Row],[Rank]]&AAMC_Raw_Data_for_FY22[[#This Row],[Degree]]&AAMC_Raw_Data_for_FY22[[#This Row],[Department / Specialty]]&\"L\"","v":"AAMCAcademicAllProfessorPhDTransplant SurgeryL"},"Transplant Surgery",2,"AAMC","Academic","All","Professor","PhD","2021-2022",204060,{"$f":"(((AAMC_Raw_Data_for_FY22[[#This Row],[Median]]-AAMC_Raw_Data_for_FY22[[#This Row],[25th]])/25)*5) + AAMC_Raw_Data_for_FY22[[#This Row],[25th]]","v":206312.6},{"$f":"(((AAMC_Raw_Data_for_FY22[[#This Row],[Median]]-AAMC_Raw_Data_for_FY22[[#This Row],[25th]])/25)*10) + AAMC_Raw_Data_for_FY22[[#This Row],[25th]]","v":208565.2},{"$f":"(((AAMC_Raw_Data_for_FY22[[#This Row],[Median]]-AAMC_Raw_Data_for_FY22[[#This Row],[25th]])/25)*15) + AAMC_Raw_Data_for_FY22[[#This Row],[25th]]","v":210817.8},{"$f":"(((AAMC_Raw_Data_for_FY22[[#This Row],[Median]]-AAMC_Raw_Data_for_FY22[[#This Row],[25th]])/25)*20) + AAMC_Raw_Data_for_FY22[[#This Row],[25th]]","v":213070.4},215323,{"$f":"(((AAMC_Raw_Data_for_FY22[[#This Row],[75th]]-AAMC_Raw_Data_for_FY22[[#This Row],[Median]])/25)*5) + AAMC_Raw_Data_for_FY22[[#This Row],[Median]]","v":222258.4},{"$f":"(((AAMC_Raw_Data_for_FY22[[#This Row],[75th]]-AAMC_Raw_Data_for_FY22[[#This Row],[Median]])/25)*10) + AAMC_Raw_Data_for_FY22[[#This Row],[Median]]","v":229193.8},{"$f":"(((AAMC_Raw_Data_for_FY22[[#This Row],[75th]]-AAMC_Raw_Data_for_FY22[[#This Row],[Median]])/25)*15) + AAMC_Raw_Data_for_FY22[[#This Row],[Median]]","v":236129.2},{"$f":"(((AAMC_Raw_Data_for_FY22[[#This Row],[75th]]-AAMC_Raw_Data_for_FY22[[#This Row],[Median]])/25)*20) + AAMC_Raw_Data_for_FY22[[#This Row],[Median]]","v":243064.6},250000,{"$f":"(((AAMC_Raw_Data_for_FY22[[#This Row],[75th]]-AAMC_Raw_Data_for_FY22[[#This Row],[Median]])/25)*30) + AAMC_Raw_Data_for_FY22[[#This Row],[Median]]","v":256935.4},{"$f":"(((AAMC_Raw_Data_for_FY22[[#This Row],[75th]]-AAMC_Raw_Data_for_FY22[[#This Row],[Median]])/25)*35) + AAMC_Raw_Data_for_FY22[[#This Row],[Median]]","v":263870.8},{"$f":"(((AAMC_Raw_Data_for_FY22[[#This Row],[75th]]-AAMC_Raw_Data_for_FY22[[#This Row],[Median]])/25)*40) + AAMC_Raw_Data_for_FY22[[#This Row],[Median]]","v":270806.2}]
[{"$f":"AAMC_Raw_Data_for_FY22[[#This Row],[Source]]&AAMC_Raw_Data_for_FY22[[#This Row],[Type]]&AAMC_Raw_Data_for_FY22[[#This Row],[School Subset]]&AAMC_Raw_Data_for_FY22[[#This Row],[Rank]]&AAMC_Raw_Data_for_FY22[[#This Row],[Degree]]&AAMC_Raw_Data_for_FY22[[#This Row],[Department / Specialty]]&\"L\"","v":"AAMCAcademicAllInstructorPhDTrauma/Critical Care SurgeryL"},"Trauma/Critical Care Surgery",5,"AAMC","Academic","All","Instructor","PhD","2021-2022",null,{"$f":"(((AAMC_Raw_Data_for_FY22[[#This Row],[Median]]-AAMC_Raw_Data_for_FY22[[#This Row],[25th]])/25)*5) + AAMC_Raw_Data_for_FY22[[#This Row],[25th]]","v":0},{"$f":"(((AAMC_Raw_Data_for_FY22[[#This Row],[Median]]-AAMC_Raw_Data_for_FY22[[#This Row],[25th]])/25)*10) + AAMC_Raw_Data_for_FY22[[#This Row],[25th]]","v":0},{"$f":"(((AAMC_Raw_Data_for_FY22[[#This Row],[Median]]-AAMC_Raw_Data_for_FY22[[#This Row],[25th]])/25)*15) + AAMC_Raw_Data_for_FY22[[#This Row],[25th]]","v":0},{"$f":"(((AAMC_Raw_Data_for_FY22[[#This Row],[Median]]-AAMC_Raw_Data_for_FY22[[#This Row],[25th]])/25)*20) + AAMC_Raw_Data_for_FY22[[#This Row],[25th]]","v":0},null,{"$f":"(((AAMC_Raw_Data_for_FY22[[#This Row],[75th]]-AAMC_Raw_Data_for_FY22[[#This Row],[Median]])/25)*5) + AAMC_Raw_Data_for_FY22[[#This Row],[Median]]","v":0},{"$f":"(((AAMC_Raw_Data_for_FY22[[#This Row],[75th]]-AAMC_Raw_Data_for_FY22[[#This Row],[Median]])/25)*10) + AAMC_Raw_Data_for_FY22[[#This Row],[Median]]","v":0},{"$f":"(((AAMC_Raw_Data_for_FY22[[#This Row],[75th]]-AAMC_Raw_Data_for_FY22[[#This Row],[Median]])/25)*15) + AAMC_Raw_Data_for_FY22[[#This Row],[Median]]","v":0},{"$f":"(((AAMC_Raw_Data_for_FY22[[#This Row],[75th]]-AAMC_Raw_Data_for_FY22[[#This Row],[Median]])/25)*20) + AAMC_Raw_Data_for_FY22[[#This Row],[Median]]","v":0},null,{"$f":"(((AAMC_Raw_Data_for_FY22[[#This Row],[75th]]-AAMC_Raw_Data_for_FY22[[#This Row],[Median]])/25)*30) + AAMC_Raw_Data_for_FY22[[#This Row],[Median]]","v":0},{"$f":"(((AAMC_Raw_Data_for_FY22[[#This Row],[75th]]-AAMC_Raw_Data_for_FY22[[#This Row],[Median]])/25)*35) + AAMC_Raw_Data_for_FY22[[#This Row],[Median]]","v":0},{"$f":"(((AAMC_Raw_Data_for_FY22[[#This Row],[75th]]-AAMC_Raw_Data_for_FY22[[#This Row],[Median]])/25)*40) + AAMC_Raw_Data_for_FY22[[#This Row],[Median]]","v":0}]
[{"$f":"AAMC_Raw_Data_for_FY22[[#This Row],[Source]]&AAMC_Raw_Data_for_FY22[[#This Row],[Type]]&AAMC_Raw_Data_for_FY22[[#This Row],[School Subset]]&AAMC_Raw_Data_for_FY22[[#This Row],[Rank]]&AAMC_Raw_Data_for_FY22[[#This Row],[Degree]]&AAMC_Raw_Data_for_FY22[[#This Row],[Department / Specialty]]&\"L\"","v":"AAMCAcademicAllAssistantPhDTrauma/Critical Care SurgeryL"},"Trauma/Critical Care Surgery",4,"AAMC","Academic","All","Assistant","PhD","2021-2022",84598,{"$f":"(((AAMC_Raw_Data_for_FY22[[#This Row],[Median]]-AAMC_Raw_Data_for_FY22[[#This Row],[25th]])/25)*5) + AAMC_Raw_Data_for_FY22[[#This Row],[25th]]","v":88485.6},{"$f":"(((AAMC_Raw_Data_for_FY22[[#This Row],[Median]]-AAMC_Raw_Data_for_FY22[[#This Row],[25th]])/25)*10) + AAMC_Raw_Data_for_FY22[[#This Row],[25th]]","v":92373.2},{"$f":"(((AAMC_Raw_Data_for_FY22[[#This Row],[Median]]-AAMC_Raw_Data_for_FY22[[#This Row],[25th]])/25)*15) + AAMC_Raw_Data_for_FY22[[#This Row],[25th]]","v":96260.800000000003},{"$f":"(((AAMC_Raw_Data_for_FY22[[#This Row],[Median]]-AAMC_Raw_Data_for_FY22[[#This Row],[25th]])/25)*20) + AAMC_Raw_Data_for_FY22[[#This Row],[25th]]","v":100148.4},104036,{"$f":"(((AAMC_Raw_Data_for_FY22[[#This Row],[75th]]-AAMC_Raw_Data_for_FY22[[#This Row],[Median]])/25)*5) + AAMC_Raw_Data_for_FY22[[#This Row],[Median]]","v":107374.2},{"$f":"(((AAMC_Raw_Data_for_FY22[[#This Row],[75th]]-AAMC_Raw_Data_for_FY22[[#This Row],[Median]])/25)*10) + AAMC_Raw_Data_for_FY22[[#This Row],[Median]]","v":110712.4},{"$f":"(((AAMC_Raw_Data_for_FY22[[#This Row],[75th]]-AAMC_Raw_Data_for_FY22[[#This Row],[Median]])/25)*15) + AAMC_Raw_Data_for_FY22[[#This Row],[Median]]","v":114050.6},{"$f":"(((AAMC_Raw_Data_for_FY22[[#This Row],[75th]]-AAMC_Raw_Data_for_FY22[[#This Row],[Median]])/25)*20) + AAMC_Raw_Data_for_FY22[[#This Row],[Median]]","v":117388.8},120727,{"$f":"(((AAMC_Raw_Data_for_FY22[[#This Row],[75th]]-AAMC_Raw_Data_for_FY22[[#This Row],[Median]])/25)*30) + AAMC_Raw_Data_for_FY22[[#This Row],[Median]]","v":124065.2},{"$f":"(((AAMC_Raw_Data_for_FY22[[#This Row],[75th]]-AAMC_Raw_Data_for_FY22[[#This Row],[Median]])/25)*35) + AAMC_Raw_Data_for_FY22[[#This Row],[Median]]","v":127403.4},{"$f":"(((AAMC_Raw_Data_for_FY22[[#This Row],[75th]]-AAMC_Raw_Data_for_FY22[[#This Row],[Median]])/25)*40) + AAMC_Raw_Data_for_FY22[[#This Row],[Median]]","v":130741.6}]
[{"$f":"AAMC_Raw_Data_for_FY22[[#This Row],[Source]]&AAMC_Raw_Data_for_FY22[[#This Row],[Type]]&AAMC_Raw_Data_for_FY22[[#This Row],[School Subset]]&AAMC_Raw_Data_for_FY22[[#This Row],[Rank]]&AAMC_Raw_Data_for_FY22[[#This Row],[Degree]]&AAMC_Raw_Data_for_FY22[[#This Row],[Department / Specialty]]&\"L\"","v":"AAMCAcademicAllAssociatePhDTrauma/Critical Care SurgeryL"},"Trauma/Critical Care Surgery",3,"AAMC","Academic","All","Associate","PhD","2021-2022",null,{"$f":"(((AAMC_Raw_Data_for_FY22[[#This Row],[Median]]-AAMC_Raw_Data_for_FY22[[#This Row],[25th]])/25)*5) + AAMC_Raw_Data_for_FY22[[#This Row],[25th]]","v":0},{"$f":"(((AAMC_Raw_Data_for_FY22[[#This Row],[Median]]-AAMC_Raw_Data_for_FY22[[#This Row],[25th]])/25)*10) + AAMC_Raw_Data_for_FY22[[#This Row],[25th]]","v":0},{"$f":"(((AAMC_Raw_Data_for_FY22[[#This Row],[Median]]-AAMC_Raw_Data_for_FY22[[#This Row],[25th]])/25)*15) + AAMC_Raw_Data_for_FY22[[#This Row],[25th]]","v":0},{"$f":"(((AAMC_Raw_Data_for_FY22[[#This Row],[Median]]-AAMC_Raw_Data_for_FY22[[#This Row],[25th]])/25)*20) + AAMC_Raw_Data_for_FY22[[#This Row],[25th]]","v":0},null,{"$f":"(((AAMC_Raw_Data_for_FY22[[#This Row],[75th]]-AAMC_Raw_Data_for_FY22[[#This Row],[Median]])/25)*5) + AAMC_Raw_Data_for_FY22[[#This Row],[Median]]","v":0},{"$f":"(((AAMC_Raw_Data_for_FY22[[#This Row],[75th]]-AAMC_Raw_Data_for_FY22[[#This Row],[Median]])/25)*10) + AAMC_Raw_Data_for_FY22[[#This Row],[Median]]","v":0},{"$f":"(((AAMC_Raw_Data_for_FY22[[#This Row],[75th]]-AAMC_Raw_Data_for_FY22[[#This Row],[Median]])/25)*15) + AAMC_Raw_Data_for_FY22[[#This Row],[Median]]","v":0},{"$f":"(((AAMC_Raw_Data_for_FY22[[#This Row],[75th]]-AAMC_Raw_Data_for_FY22[[#This Row],[Median]])/25)*20) + AAMC_Raw_Data_for_FY22[[#This Row],[Median]]","v":0},null,{"$f":"(((AAMC_Raw_Data_for_FY22[[#This Row],[75th]]-AAMC_Raw_Data_for_FY22[[#This Row],[Median]])/25)*30) + AAMC_Raw_Data_for_FY22[[#This Row],[Median]]","v":0},{"$f":"(((AAMC_Raw_Data_for_FY22[[#This Row],[75th]]-AAMC_Raw_Data_for_FY22[[#This Row],[Median]])/25)*35) + AAMC_Raw_Data_for_FY22[[#This Row],[Median]]","v":0},{"$f":"(((AAMC_Raw_Data_for_FY22[[#This Row],[75th]]-AAMC_Raw_Data_for_FY22[[#This Row],[Median]])/25)*40) + AAMC_Raw_Data_for_FY22[[#This Row],[Median]]","v":0}]
[{"$f":"AAMC_Raw_Data_for_FY22[[#This Row],[Source]]&AAMC_Raw_Data_for_FY22[[#This Row],[Type]]&AAMC_Raw_Data_for_FY22[[#This Row],[School Subset]]&AAMC_Raw_Data_for_FY22[[#This Row],[Rank]]&AAMC_Raw_Data_for_FY22[[#This Row],[Degree]]&AAMC_Raw_Data_for_FY22[[#This Row],[Department / Specialty]]&\"L\"","v":"AAMCAcademicAllProfessorPhDTrauma/Critical Care SurgeryL"},"Trauma/Critical Care Surgery",2,"AAMC","Academic","All","Professor","PhD","2021-2022",116650,{"$f":"(((AAMC_Raw_Data_for_FY22[[#This Row],[Median]]-AAMC_Raw_Data_for_FY22[[#This Row],[25th]])/25)*5) + AAMC_Raw_Data_for_FY22[[#This Row],[25th]]","v":125600},{"$f":"(((AAMC_Raw_Data_for_FY22[[#This Row],[Median]]-AAMC_Raw_Data_for_FY22[[#This Row],[25th]])/25)*10) + AAMC_Raw_Data_for_FY22[[#This Row],[25th]]","v":134550},{"$f":"(((AAMC_Raw_Data_for_FY22[[#This Row],[Median]]-AAMC_Raw_Data_for_FY22[[#This Row],[25th]])/25)*15) + AAMC_Raw_Data_for_FY22[[#This Row],[25th]]","v":143500},{"$f":"(((AAMC_Raw_Data_for_FY22[[#This Row],[Median]]-AAMC_Raw_Data_for_FY22[[#This Row],[25th]])/25)*20) + AAMC_Raw_Data_for_FY22[[#This Row],[25th]]","v":152450},161400,{"$f":"(((AAMC_Raw_Data_for_FY22[[#This Row],[75th]]-AAMC_Raw_Data_for_FY22[[#This Row],[Median]])/25)*5) + AAMC_Raw_Data_for_FY22[[#This Row],[Median]]","v":164871.20000000001},{"$f":"(((AAMC_Raw_Data_for_FY22[[#This Row],[75th]]-AAMC_Raw_Data_for_FY22[[#This Row],[Median]])/25)*10) + AAMC_Raw_Data_for_FY22[[#This Row],[Median]]","v":168342.39999999999},{"$f":"(((AAMC_Raw_Data_for_FY22[[#This Row],[75th]]-AAMC_Raw_Data_for_FY22[[#This Row],[Median]])/25)*15) + AAMC_Raw_Data_for_FY22[[#This Row],[Median]]","v":171813.6},{"$f":"(((AAMC_Raw_Data_for_FY22[[#This Row],[75th]]-AAMC_Raw_Data_for_FY22[[#This Row],[Median]])/25)*20) + AAMC_Raw_Data_for_FY22[[#This Row],[Median]]","v":175284.8},178756,{"$f":"(((AAMC_Raw_Data_for_FY22[[#This Row],[75th]]-AAMC_Raw_Data_for_FY22[[#This Row],[Median]])/25)*30) + AAMC_Raw_Data_for_FY22[[#This Row],[Median]]","v":182227.20000000001},{"$f":"(((AAMC_Raw_Data_for_FY22[[#This Row],[75th]]-AAMC_Raw_Data_for_FY22[[#This Row],[Median]])/25)*35) + AAMC_Raw_Data_for_FY22[[#This Row],[Median]]","v":185698.4},{"$f":"(((AAMC_Raw_Data_for_FY22[[#This Row],[75th]]-AAMC_Raw_Data_for_FY22[[#This Row],[Median]])/25)*40) + AAMC_Raw_Data_for_FY22[[#This Row],[Median]]","v":189169.6}]
[{"$f":"AAMC_Raw_Data_for_FY22[[#This Row],[Source]]&AAMC_Raw_Data_for_FY22[[#This Row],[Type]]&AAMC_Raw_Data_for_FY22[[#This Row],[School Subset]]&AAMC_Raw_Data_for_FY22[[#This Row],[Rank]]&AAMC_Raw_Data_for_FY22[[#This Row],[Degree]]&AAMC_Raw_Data_for_FY22[[#This Row],[Department / Specialty]]&\"L\"","v":"AAMCAcademicAllInstructorPhDUrologyL"},"Urology",5,"AAMC","Academic","All","Instructor","PhD","2021-2022",69288,{"$f":"(((AAMC_Raw_Data_for_FY22[[#This Row],[Median]]-AAMC_Raw_Data_for_FY22[[#This Row],[25th]])/25)*5) + AAMC_Raw_Data_for_FY22[[#This Row],[25th]]","v":70105.8},{"$f":"(((AAMC_Raw_Data_for_FY22[[#This Row],[Median]]-AAMC_Raw_Data_for_FY22[[#This Row],[25th]])/25)*10) + AAMC_Raw_Data_for_FY22[[#This Row],[25th]]","v":70923.600000000006},{"$f":"(((AAMC_Raw_Data_for_FY22[[#This Row],[Median]]-AAMC_Raw_Data_for_FY22[[#This Row],[25th]])/25)*15) + AAMC_Raw_Data_for_FY22[[#This Row],[25th]]","v":71741.399999999994},{"$f":"(((AAMC_Raw_Data_for_FY22[[#This Row],[Median]]-AAMC_Raw_Data_for_FY22[[#This Row],[25th]])/25)*20) + AAMC_Raw_Data_for_FY22[[#This Row],[25th]]","v":72559.199999999997},73377,{"$f":"(((AAMC_Raw_Data_for_FY22[[#This Row],[75th]]-AAMC_Raw_Data_for_FY22[[#This Row],[Median]])/25)*5) + AAMC_Raw_Data_for_FY22[[#This Row],[Median]]","v":77822.600000000006},{"$f":"(((AAMC_Raw_Data_for_FY22[[#This Row],[75th]]-AAMC_Raw_Data_for_FY22[[#This Row],[Median]])/25)*10) + AAMC_Raw_Data_for_FY22[[#This Row],[Median]]","v":82268.2},{"$f":"(((AAMC_Raw_Data_for_FY22[[#This Row],[75th]]-AAMC_Raw_Data_for_FY22[[#This Row],[Median]])/25)*15) + AAMC_Raw_Data_for_FY22[[#This Row],[Median]]","v":86713.8},{"$f":"(((AAMC_Raw_Data_for_FY22[[#This Row],[75th]]-AAMC_Raw_Data_for_FY22[[#This Row],[Median]])/25)*20) + AAMC_Raw_Data_for_FY22[[#This Row],[Median]]","v":91159.4},95605,{"$f":"(((AAMC_Raw_Data_for_FY22[[#This Row],[75th]]-AAMC_Raw_Data_for_FY22[[#This Row],[Median]])/25)*30) + AAMC_Raw_Data_for_FY22[[#This Row],[Median]]","v":100050.6},{"$f":"(((AAMC_Raw_Data_for_FY22[[#This Row],[75th]]-AAMC_Raw_Data_for_FY22[[#This Row],[Median]])/25)*35) + AAMC_Raw_Data_for_FY22[[#This Row],[Median]]","v":104496.2},{"$f":"(((AAMC_Raw_Data_for_FY22[[#This Row],[75th]]-AAMC_Raw_Data_for_FY22[[#This Row],[Median]])/25)*40) + AAMC_Raw_Data_for_FY22[[#This Row],[Median]]","v":108941.8}]
[{"$f":"AAMC_Raw_Data_for_FY22[[#This Row],[Source]]&AAMC_Raw_Data_for_FY22[[#This Row],[Type]]&AAMC_Raw_Data_for_FY22[[#This Row],[School Subset]]&AAMC_Raw_Data_for_FY22[[#This Row],[Rank]]&AAMC_Raw_Data_for_FY22[[#This Row],[Degree]]&AAMC_Raw_Data_for_FY22[[#This Row],[Department / Specialty]]&\"L\"","v":"AAMCAcademicAllAssistantPhDUrologyL"},"Urology",4,"AAMC","Academic","All","Assistant","PhD","2021-2022",88720,{"$f":"(((AAMC_Raw_Data_for_FY22[[#This Row],[Median]]-AAMC_Raw_Data_for_FY22[[#This Row],[25th]])/25)*5) + AAMC_Raw_Data_for_FY22[[#This Row],[25th]]","v":93241.600000000006},{"$f":"(((AAMC_Raw_Data_for_FY22[[#This Row],[Median]]-AAMC_Raw_Data_for_FY22[[#This Row],[25th]])/25)*10) + AAMC_Raw_Data_for_FY22[[#This Row],[25th]]","v":97763.199999999997},{"$f":"(((AAMC_Raw_Data_for_FY22[[#This Row],[Median]]-AAMC_Raw_Data_for_FY22[[#This Row],[25th]])/25)*15) + AAMC_Raw_Data_for_FY22[[#This Row],[25th]]","v":102284.8},{"$f":"(((AAMC_Raw_Data_for_FY22[[#This Row],[Median]]-AAMC_Raw_Data_for_FY22[[#This Row],[25th]])/25)*20) + AAMC_Raw_Data_for_FY22[[#This Row],[25th]]","v":106806.39999999999},111328,{"$f":"(((AAMC_Raw_Data_for_FY22[[#This Row],[75th]]-AAMC_Raw_Data_for_FY22[[#This Row],[Median]])/25)*5) + AAMC_Raw_Data_for_FY22[[#This Row],[Median]]","v":116602.4},{"$f":"(((AAMC_Raw_Data_for_FY22[[#This Row],[75th]]-AAMC_Raw_Data_for_FY22[[#This Row],[Median]])/25)*10) + AAMC_Raw_Data_for_FY22[[#This Row],[Median]]","v":121876.8},{"$f":"(((AAMC_Raw_Data_for_FY22[[#This Row],[75th]]-AAMC_Raw_Data_for_FY22[[#This Row],[Median]])/25)*15) + AAMC_Raw_Data_for_FY22[[#This Row],[Median]]","v":127151.2},{"$f":"(((AAMC_Raw_Data_for_FY22[[#This Row],[75th]]-AAMC_Raw_Data_for_FY22[[#This Row],[Median]])/25)*20) + AAMC_Raw_Data_for_FY22[[#This Row],[Median]]","v":132425.60000000001},137700,{"$f":"(((AAMC_Raw_Data_for_FY22[[#This Row],[75th]]-AAMC_Raw_Data_for_FY22[[#This Row],[Median]])/25)*30) + AAMC_Raw_Data_for_FY22[[#This Row],[Median]]","v":142974.39999999999},{"$f":"(((AAMC_Raw_Data_for_FY22[[#This Row],[75th]]-AAMC_Raw_Data_for_FY22[[#This Row],[Median]])/25)*35) + AAMC_Raw_Data_for_FY22[[#This Row],[Median]]","v":148248.79999999999},{"$f":"(((AAMC_Raw_Data_for_FY22[[#This Row],[75th]]-AAMC_Raw_Data_for_FY22[[#This Row],[Median]])/25)*40) + AAMC_Raw_Data_for_FY22[[#This Row],[Median]]","v":153523.20000000001}]
[{"$f":"AAMC_Raw_Data_for_FY22[[#This Row],[Source]]&AAMC_Raw_Data_for_FY22[[#This Row],[Type]]&AAMC_Raw_Data_for_FY22[[#This Row],[School Subset]]&AAMC_Raw_Data_for_FY22[[#This Row],[Rank]]&AAMC_Raw_Data_for_FY22[[#This Row],[Degree]]&AAMC_Raw_Data_for_FY22[[#This Row],[Department / Specialty]]&\"L\"","v":"AAMCAcademicAllAssociatePhDUrologyL"},"Urology",3,"AAMC","Academic","All","Associate","PhD","2021-2022",126108,{"$f":"(((AAMC_Raw_Data_for_FY22[[#This Row],[Median]]-AAMC_Raw_Data_for_FY22[[#This Row],[25th]])/25)*5) + AAMC_Raw_Data_for_FY22[[#This Row],[25th]]","v":133906},{"$f":"(((AAMC_Raw_Data_for_FY22[[#This Row],[Median]]-AAMC_Raw_Data_for_FY22[[#This Row],[25th]])/25)*10) + AAMC_Raw_Data_for_FY22[[#This Row],[25th]]","v":141704},{"$f":"(((AAMC_Raw_Data_for_FY22[[#This Row],[Median]]-AAMC_Raw_Data_for_FY22[[#This Row],[25th]])/25)*15) + AAMC_Raw_Data_for_FY22[[#This Row],[25th]]","v":149502},{"$f":"(((AAMC_Raw_Data_for_FY22[[#This Row],[Median]]-AAMC_Raw_Data_for_FY22[[#This Row],[25th]])/25)*20) + AAMC_Raw_Data_for_FY22[[#This Row],[25th]]","v":157300},165098,{"$f":"(((AAMC_Raw_Data_for_FY22[[#This Row],[75th]]-AAMC_Raw_Data_for_FY22[[#This Row],[Median]])/25)*5) + AAMC_Raw_Data_for_FY22[[#This Row],[Median]]","v":169276.79999999999},{"$f":"(((AAMC_Raw_Data_for_FY22[[#This Row],[75th]]-AAMC_Raw_Data_for_FY22[[#This Row],[Median]])/25)*10) + AAMC_Raw_Data_for_FY22[[#This Row],[Median]]","v":173455.6},{"$f":"(((AAMC_Raw_Data_for_FY22[[#This Row],[75th]]-AAMC_Raw_Data_for_FY22[[#This Row],[Median]])/25)*15) + AAMC_Raw_Data_for_FY22[[#This Row],[Median]]","v":177634.4},{"$f":"(((AAMC_Raw_Data_for_FY22[[#This Row],[75th]]-AAMC_Raw_Data_for_FY22[[#This Row],[Median]])/25)*20) + AAMC_Raw_Data_for_FY22[[#This Row],[Median]]","v":181813.2},185992,{"$f":"(((AAMC_Raw_Data_for_FY22[[#This Row],[75th]]-AAMC_Raw_Data_for_FY22[[#This Row],[Median]])/25)*30) + AAMC_Raw_Data_for_FY22[[#This Row],[Median]]","v":190170.8},{"$f":"(((AAMC_Raw_Data_for_FY22[[#This Row],[75th]]-AAMC_Raw_Data_for_FY22[[#This Row],[Median]])/25)*35) + AAMC_Raw_Data_for_FY22[[#This Row],[Median]]","v":194349.6},{"$f":"(((AAMC_Raw_Data_for_FY22[[#This Row],[75th]]-AAMC_Raw_Data_for_FY22[[#This Row],[Median]])/25)*40) + AAMC_Raw_Data_for_FY22[[#This Row],[Median]]","v":198528.4}]
[{"$f":"AAMC_Raw_Data_for_FY22[[#This Row],[Source]]&AAMC_Raw_Data_for_FY22[[#This Row],[Type]]&AAMC_Raw_Data_for_FY22[[#This Row],[School Subset]]&AAMC_Raw_Data_for_FY22[[#This Row],[Rank]]&AAMC_Raw_Data_for_FY22[[#This Row],[Degree]]&AAMC_Raw_Data_for_FY22[[#This Row],[Department / Specialty]]&\"L\"","v":"AAMCAcademicAllProfessorPhDUrologyL"},"Urology",2,"AAMC","Academic","All","Professor","PhD","2021-2022",187988,{"$f":"(((AAMC_Raw_Data_for_FY22[[#This Row],[Median]]-AAMC_Raw_Data_for_FY22[[#This Row],[25th]])/25)*5) + AAMC_Raw_Data_for_FY22[[#This Row],[25th]]","v":191789.8},{"$f":"(((AAMC_Raw_Data_for_FY22[[#This Row],[Median]]-AAMC_Raw_Data_for_FY22[[#This Row],[25th]])/25)*10) + AAMC_Raw_Data_for_FY22[[#This Row],[25th]]","v":195591.6},{"$f":"(((AAMC_Raw_Data_for_FY22[[#This Row],[Median]]-AAMC_Raw_Data_for_FY22[[#This Row],[25th]])/25)*15) + AAMC_Raw_Data_for_FY22[[#This Row],[25th]]","v":199393.4},{"$f":"(((AAMC_Raw_Data_for_FY22[[#This Row],[Median]]-AAMC_Raw_Data_for_FY22[[#This Row],[25th]])/25)*20) + AAMC_Raw_Data_for_FY22[[#This Row],[25th]]","v":203195.2},206997,{"$f":"(((AAMC_Raw_Data_for_FY22[[#This Row],[75th]]-AAMC_Raw_Data_for_FY22[[#This Row],[Median]])/25)*5) + AAMC_Raw_Data_for_FY22[[#This Row],[Median]]","v":217589},{"$f":"(((AAMC_Raw_Data_for_FY22[[#This Row],[75th]]-AAMC_Raw_Data_for_FY22[[#This Row],[Median]])/25)*10) + AAMC_Raw_Data_for_FY22[[#This Row],[Median]]","v":228181},{"$f":"(((AAMC_Raw_Data_for_FY22[[#This Row],[75th]]-AAMC_Raw_Data_for_FY22[[#This Row],[Median]])/25)*15) + AAMC_Raw_Data_for_FY22[[#This Row],[Median]]","v":238773},{"$f":"(((AAMC_Raw_Data_for_FY22[[#This Row],[75th]]-AAMC_Raw_Data_for_FY22[[#This Row],[Median]])/25)*20) + AAMC_Raw_Data_for_FY22[[#This Row],[Median]]","v":249365},259957,{"$f":"(((AAMC_Raw_Data_for_FY22[[#This Row],[75th]]-AAMC_Raw_Data_for_FY22[[#This Row],[Median]])/25)*30) + AAMC_Raw_Data_for_FY22[[#This Row],[Median]]","v":270549},{"$f":"(((AAMC_Raw_Data_for_FY22[[#This Row],[75th]]-AAMC_Raw_Data_for_FY22[[#This Row],[Median]])/25)*35) + AAMC_Raw_Data_for_FY22[[#This Row],[Median]]","v":281141},{"$f":"(((AAMC_Raw_Data_for_FY22[[#This Row],[75th]]-AAMC_Raw_Data_for_FY22[[#This Row],[Median]])/25)*40) + AAMC_Raw_Data_for_FY22[[#This Row],[Median]]","v":291733}]
[{"$f":"AAMC_Raw_Data_for_FY22[[#This Row],[Source]]&AAMC_Raw_Data_for_FY22[[#This Row],[Type]]&AAMC_Raw_Data_for_FY22[[#This Row],[School Subset]]&AAMC_Raw_Data_for_FY22[[#This Row],[Rank]]&AAMC_Raw_Data_for_FY22[[#This Row],[Degree]]&AAMC_Raw_Data_for_FY22[[#This Row],[Department / Specialty]]&\"L\"","v":"AAMCAcademicAllInstructorPhDVascular SurgeryL"},"Vascular Surgery",5,"AAMC","Academic","All","Instructor","PhD","2021-2022",null,{"$f":"(((AAMC_Raw_Data_for_FY22[[#This Row],[Median]]-AAMC_Raw_Data_for_FY22[[#This Row],[25th]])/25)*5) + AAMC_Raw_Data_for_FY22[[#This Row],[25th]]","v":0},{"$f":"(((AAMC_Raw_Data_for_FY22[[#This Row],[Median]]-AAMC_Raw_Data_for_FY22[[#This Row],[25th]])/25)*10) + AAMC_Raw_Data_for_FY22[[#This Row],[25th]]","v":0},{"$f":"(((AAMC_Raw_Data_for_FY22[[#This Row],[Median]]-AAMC_Raw_Data_for_FY22[[#This Row],[25th]])/25)*15) + AAMC_Raw_Data_for_FY22[[#This Row],[25th]]","v":0},{"$f":"(((AAMC_Raw_Data_for_FY22[[#This Row],[Median]]-AAMC_Raw_Data_for_FY22[[#This Row],[25th]])/25)*20) + AAMC_Raw_Data_for_FY22[[#This Row],[25th]]","v":0},null,{"$f":"(((AAMC_Raw_Data_for_FY22[[#This Row],[75th]]-AAMC_Raw_Data_for_FY22[[#This Row],[Median]])/25)*5) + AAMC_Raw_Data_for_FY22[[#This Row],[Median]]","v":0},{"$f":"(((AAMC_Raw_Data_for_FY22[[#This Row],[75th]]-AAMC_Raw_Data_for_FY22[[#This Row],[Median]])/25)*10) + AAMC_Raw_Data_for_FY22[[#This Row],[Median]]","v":0},{"$f":"(((AAMC_Raw_Data_for_FY22[[#This Row],[75th]]-AAMC_Raw_Data_for_FY22[[#This Row],[Median]])/25)*15) + AAMC_Raw_Data_for_FY22[[#This Row],[Median]]","v":0},{"$f":"(((AAMC_Raw_Data_for_FY22[[#This Row],[75th]]-AAMC_Raw_Data_for_FY22[[#This Row],[Median]])/25)*20) + AAMC_Raw_Data_for_FY22[[#This Row],[Median]]","v":0},null,{"$f":"(((AAMC_Raw_Data_for_FY22[[#This Row],[75th]]-AAMC_Raw_Data_for_FY22[[#This Row],[Median]])/25)*30) + AAMC_Raw_Data_for_FY22[[#This Row],[Median]]","v":0},{"$f":"(((AAMC_Raw_Data_for_FY22[[#This Row],[75th]]-AAMC_Raw_Data_for_FY22[[#This Row],[Median]])/25)*35) + AAMC_Raw_Data_for_FY22[[#This Row],[Median]]","v":0},{"$f":"(((AAMC_Raw_Data_for_FY22[[#This Row],[75th]]-AAMC_Raw_Data_for_FY22[[#This Row],[Median]])/25)*40) + AAMC_Raw_Data_for_FY22[[#This Row],[Median]]","v":0}]
[{"$f":"AAMC_Raw_Data_for_FY22[[#This Row],[Source]]&AAMC_Raw_Data_for_FY22[[#This Row],[Type]]&AAMC_Raw_Data_for_FY22[[#This Row],[School Subset]]&AAMC_Raw_Data_for_FY22[[#This Row],[Rank]]&AAMC_Raw_Data_for_FY22[[#This Row],[Degree]]&AAMC_Raw_Data_for_FY22[[#This Row],[Department / Specialty]]&\"L\"","v":"AAMCAcademicAllAssistantPhDVascular SurgeryL"},"Vascular Surgery",4,"AAMC","Academic","All","Assistant","PhD","2021-2022",null,{"$f":"(((AAMC_Raw_Data_for_FY22[[#This Row],[Median]]-AAMC_Raw_Data_for_FY22[[#This Row],[25th]])/25)*5) + AAMC_Raw_Data_for_FY22[[#This Row],[25th]]","v":0},{"$f":"(((AAMC_Raw_Data_for_FY22[[#This Row],[Median]]-AAMC_Raw_Data_for_FY22[[#This Row],[25th]])/25)*10) + AAMC_Raw_Data_for_FY22[[#This Row],[25th]]","v":0},{"$f":"(((AAMC_Raw_Data_for_FY22[[#This Row],[Median]]-AAMC_Raw_Data_for_FY22[[#This Row],[25th]])/25)*15) + AAMC_Raw_Data_for_FY22[[#This Row],[25th]]","v":0},{"$f":"(((AAMC_Raw_Data_for_FY22[[#This Row],[Median]]-AAMC_Raw_Data_for_FY22[[#This Row],[25th]])/25)*20) + AAMC_Raw_Data_for_FY22[[#This Row],[25th]]","v":0},null,{"$f":"(((AAMC_Raw_Data_for_FY22[[#This Row],[75th]]-AAMC_Raw_Data_for_FY22[[#This Row],[Median]])/25)*5) + AAMC_Raw_Data_for_FY22[[#This Row],[Median]]","v":0},{"$f":"(((AAMC_Raw_Data_for_FY22[[#This Row],[75th]]-AAMC_Raw_Data_for_FY22[[#This Row],[Median]])/25)*10) + AAMC_Raw_Data_for_FY22[[#This Row],[Median]]","v":0},{"$f":"(((AAMC_Raw_Data_for_FY22[[#This Row],[75th]]-AAMC_Raw_Data_for_FY22[[#This Row],[Median]])/25)*15) + AAMC_Raw_Data_for_FY22[[#This Row],[Median]]","v":0},{"$f":"(((AAMC_Raw_Data_for_FY22[[#This Row],[75th]]-AAMC_Raw_Data_for_FY22[[#This Row],[Median]])/25)*20) + AAMC_Raw_Data_for_FY22[[#This Row],[Median]]","v":0},null,{"$f":"(((AAMC_Raw_Data_for_FY22[[#This Row],[75th]]-AAMC_Raw_Data_for_FY22[[#This Row],[Median]])/25)*30) + AAMC_Raw_Data_for_FY22[[#This Row],[Median]]","v":0},{"$f":"(((AAMC_Raw_Data_for_FY22[[#This Row],[75th]]-AAMC_Raw_Data_for_FY22[[#This Row],[Median]])/25)*35) + AAMC_Raw_Data_for_FY22[[#This Row],[Median]]","v":0},{"$f":"(((AAMC_Raw_Data_for_FY22[[#This Row],[75th]]-AAMC_Raw_Data_for_FY22[[#This Row],[Median]])/25)*40) + AAMC_Raw_Data_for_FY22[[#This Row],[Median]]","v":0}]
[{"$f":"AAMC_Raw_Data_for_FY22[[#This Row],[Source]]&AAMC_Raw_Data_for_FY22[[#This Row],[Type]]&AAMC_Raw_Data_for_FY22[[#This Row],[School Subset]]&AAMC_Raw_Data_for_FY22[[#This Row],[Rank]]&AAMC_Raw_Data_for_FY22[[#This Row],[Degree]]&AAMC_Raw_Data_for_FY22[[#This Row],[Department / Specialty]]&\"L\"","v":"AAMCAcademicAllAssociatePhDVascular SurgeryL"},"Vascular Surgery",3,"AAMC","Academic","All","Associate","PhD","2021-2022",null,{"$f":"(((AAMC_Raw_Data_for_FY22[[#This Row],[Median]]-AAMC_Raw_Data_for_FY22[[#This Row],[25th]])/25)*5) + AAMC_Raw_Data_for_FY22[[#This Row],[25th]]","v":0},{"$f":"(((AAMC_Raw_Data_for_FY22[[#This Row],[Median]]-AAMC_Raw_Data_for_FY22[[#This Row],[25th]])/25)*10) + AAMC_Raw_Data_for_FY22[[#This Row],[25th]]","v":0},{"$f":"(((AAMC_Raw_Data_for_FY22[[#This Row],[Median]]-AAMC_Raw_Data_for_FY22[[#This Row],[25th]])/25)*15) + AAMC_Raw_Data_for_FY22[[#This Row],[25th]]","v":0},{"$f":"(((AAMC_Raw_Data_for_FY22[[#This Row],[Median]]-AAMC_Raw_Data_for_FY22[[#This Row],[25th]])/25)*20) + AAMC_Raw_Data_for_FY22[[#This Row],[25th]]","v":0},null,{"$f":"(((AAMC_Raw_Data_for_FY22[[#This Row],[75th]]-AAMC_Raw_Data_for_FY22[[#This Row],[Median]])/25)*5) + AAMC_Raw_Data_for_FY22[[#This Row],[Median]]","v":0},{"$f":"(((AAMC_Raw_Data_for_FY22[[#This Row],[75th]]-AAMC_Raw_Data_for_FY22[[#This Row],[Median]])/25)*10) + AAMC_Raw_Data_for_FY22[[#This Row],[Median]]","v":0},{"$f":"(((AAMC_Raw_Data_for_FY22[[#This Row],[75th]]-AAMC_Raw_Data_for_FY22[[#This Row],[Median]])/25)*15) + AAMC_Raw_Data_for_FY22[[#This Row],[Median]]","v":0},{"$f":"(((AAMC_Raw_Data_for_FY22[[#This Row],[75th]]-AAMC_Raw_Data_for_FY22[[#This Row],[Median]])/25)*20) + AAMC_Raw_Data_for_FY22[[#This Row],[Median]]","v":0},null,{"$f":"(((AAMC_Raw_Data_for_FY22[[#This Row],[75th]]-AAMC_Raw_Data_for_FY22[[#This Row],[Median]])/25)*30) + AAMC_Raw_Data_for_FY22[[#This Row],[Median]]","v":0},{"$f":"(((AAMC_Raw_Data_for_FY22[[#This Row],[75th]]-AAMC_Raw_Data_for_FY22[[#This Row],[Median]])/25)*35) + AAMC_Raw_Data_for_FY22[[#This Row],[Median]]","v":0},{"$f":"(((AAMC_Raw_Data_for_FY22[[#This Row],[75th]]-AAMC_Raw_Data_for_FY22[[#This Row],[Median]])/25)*40) + AAMC_Raw_Data_for_FY22[[#This Row],[Median]]","v":0}]
[{"$f":"AAMC_Raw_Data_for_FY22[[#This Row],[Source]]&AAMC_Raw_Data_for_FY22[[#This Row],[Type]]&AAMC_Raw_Data_for_FY22[[#This Row],[School Subset]]&AAMC_Raw_Data_for_FY22[[#This Row],[Rank]]&AAMC_Raw_Data_for_FY22[[#This Row],[Degree]]&AAMC_Raw_Data_for_FY22[[#This Row],[Department / Specialty]]&\"L\"","v":"AAMCAcademicAllProfessorPhDVascular SurgeryL"},"Vascular Surgery",2,"AAMC","Academic","All","Professor","PhD","2021-2022",null,{"$f":"(((AAMC_Raw_Data_for_FY22[[#This Row],[Median]]-AAMC_Raw_Data_for_FY22[[#This Row],[25th]])/25)*5) + AAMC_Raw_Data_for_FY22[[#This Row],[25th]]","v":0},{"$f":"(((AAMC_Raw_Data_for_FY22[[#This Row],[Median]]-AAMC_Raw_Data_for_FY22[[#This Row],[25th]])/25)*10) + AAMC_Raw_Data_for_FY22[[#This Row],[25th]]","v":0},{"$f":"(((AAMC_Raw_Data_for_FY22[[#This Row],[Median]]-AAMC_Raw_Data_for_FY22[[#This Row],[25th]])/25)*15) + AAMC_Raw_Data_for_FY22[[#This Row],[25th]]","v":0},{"$f":"(((AAMC_Raw_Data_for_FY22[[#This Row],[Median]]-AAMC_Raw_Data_for_FY22[[#This Row],[25th]])/25)*20) + AAMC_Raw_Data_for_FY22[[#This Row],[25th]]","v":0},null,{"$f":"(((AAMC_Raw_Data_for_FY22[[#This Row],[75th]]-AAMC_Raw_Data_for_FY22[[#This Row],[Median]])/25)*5) + AAMC_Raw_Data_for_FY22[[#This Row],[Median]]","v":0},{"$f":"(((AAMC_Raw_Data_for_FY22[[#This Row],[75th]]-AAMC_Raw_Data_for_FY22[[#This Row],[Median]])/25)*10) + AAMC_Raw_Data_for_FY22[[#This Row],[Median]]","v":0},{"$f":"(((AAMC_Raw_Data_for_FY22[[#This Row],[75th]]-AAMC_Raw_Data_for_FY22[[#This Row],[Median]])/25)*15) + AAMC_Raw_Data_for_FY22[[#This Row],[Median]]","v":0},{"$f":"(((AAMC_Raw_Data_for_FY22[[#This Row],[75th]]-AAMC_Raw_Data_for_FY22[[#This Row],[Median]])/25)*20) + AAMC_Raw_Data_for_FY22[[#This Row],[Median]]","v":0},null,{"$f":"(((AAMC_Raw_Data_for_FY22[[#This Row],[75th]]-AAMC_Raw_Data_for_FY22[[#This Row],[Median]])/25)*30) + AAMC_Raw_Data_for_FY22[[#This Row],[Median]]","v":0},{"$f":"(((AAMC_Raw_Data_for_FY22[[#This Row],[75th]]-AAMC_Raw_Data_for_FY22[[#This Row],[Median]])/25)*35) + AAMC_Raw_Data_for_FY22[[#This Row],[Median]]","v":0},{"$f":"(((AAMC_Raw_Data_for_FY22[[#This Row],[75th]]-AAMC_Raw_Data_for_FY22[[#This Row],[Median]])/25)*40) + AAMC_Raw_Data_for_FY22[[#This Row],[Median]]","v":0}]
[{"$f":"AAMC_Raw_Data_for_FY22[[#This Row],[Source]]&AAMC_Raw_Data_for_FY22[[#This Row],[Type]]&AAMC_Raw_Data_for_FY22[[#This Row],[School Subset]]&AAMC_Raw_Data_for_FY22[[#This Row],[Rank]]&AAMC_Raw_Data_for_FY22[[#This Row],[Degree]]&AAMC_Raw_Data_for_FY22[[#This Row],[Department / Specialty]]&\"L\"","v":"AAMCAcademicAllInstructorPhDOther SurgeryL"},"Other Surgery",5,"AAMC","Academic","All","Instructor","PhD","2021-2022",68960,{"$f":"(((AAMC_Raw_Data_for_FY22[[#This Row],[Median]]-AAMC_Raw_Data_for_FY22[[#This Row],[25th]])/25)*5) + AAMC_Raw_Data_for_FY22[[#This Row],[25th]]","v":70019.199999999997},{"$f":"(((AAMC_Raw_Data_for_FY22[[#This Row],[Median]]-AAMC_Raw_Data_for_FY22[[#This Row],[25th]])/25)*10) + AAMC_Raw_Data_for_FY22[[#This Row],[25th]]","v":71078.399999999994},{"$f":"(((AAMC_Raw_Data_for_FY22[[#This Row],[Median]]-AAMC_Raw_Data_for_FY22[[#This Row],[25th]])/25)*15) + AAMC_Raw_Data_for_FY22[[#This Row],[25th]]","v":72137.600000000006},{"$f":"(((AAMC_Raw_Data_for_FY22[[#This Row],[Median]]-AAMC_Raw_Data_for_FY22[[#This Row],[25th]])/25)*20) + AAMC_Raw_Data_for_FY22[[#This Row],[25th]]","v":73196.800000000003},74256,{"$f":"(((AAMC_Raw_Data_for_FY22[[#This Row],[75th]]-AAMC_Raw_Data_for_FY22[[#This Row],[Median]])/25)*5) + AAMC_Raw_Data_for_FY22[[#This Row],[Median]]","v":81604.800000000003},{"$f":"(((AAMC_Raw_Data_for_FY22[[#This Row],[75th]]-AAMC_Raw_Data_for_FY22[[#This Row],[Median]])/25)*10) + AAMC_Raw_Data_for_FY22[[#This Row],[Median]]","v":88953.600000000006},{"$f":"(((AAMC_Raw_Data_for_FY22[[#This Row],[75th]]-AAMC_Raw_Data_for_FY22[[#This Row],[Median]])/25)*15) + AAMC_Raw_Data_for_FY22[[#This Row],[Median]]","v":96302.399999999994},{"$f":"(((AAMC_Raw_Data_for_FY22[[#This Row],[75th]]-AAMC_Raw_Data_for_FY22[[#This Row],[Median]])/25)*20) + AAMC_Raw_Data_for_FY22[[#This Row],[Median]]","v":103651.2},111000,{"$f":"(((AAMC_Raw_Data_for_FY22[[#This Row],[75th]]-AAMC_Raw_Data_for_FY22[[#This Row],[Median]])/25)*30) + AAMC_Raw_Data_for_FY22[[#This Row],[Median]]","v":118348.8},{"$f":"(((AAMC_Raw_Data_for_FY22[[#This Row],[75th]]-AAMC_Raw_Data_for_FY22[[#This Row],[Median]])/25)*35) + AAMC_Raw_Data_for_FY22[[#This Row],[Median]]","v":125697.60000000001},{"$f":"(((AAMC_Raw_Data_for_FY22[[#This Row],[75th]]-AAMC_Raw_Data_for_FY22[[#This Row],[Median]])/25)*40) + AAMC_Raw_Data_for_FY22[[#This Row],[Median]]","v":133046.39999999999}]
[{"$f":"AAMC_Raw_Data_for_FY22[[#This Row],[Source]]&AAMC_Raw_Data_for_FY22[[#This Row],[Type]]&AAMC_Raw_Data_for_FY22[[#This Row],[School Subset]]&AAMC_Raw_Data_for_FY22[[#This Row],[Rank]]&AAMC_Raw_Data_for_FY22[[#This Row],[Degree]]&AAMC_Raw_Data_for_FY22[[#This Row],[Department / Specialty]]&\"L\"","v":"AAMCAcademicAllAssistantPhDOther SurgeryL"},"Other Surgery",4,"AAMC","Academic","All","Assistant","PhD","2021-2022",90464,{"$f":"(((AAMC_Raw_Data_for_FY22[[#This Row],[Median]]-AAMC_Raw_Data_for_FY22[[#This Row],[25th]])/25)*5) + AAMC_Raw_Data_for_FY22[[#This Row],[25th]]","v":93031.2},{"$f":"(((AAMC_Raw_Data_for_FY22[[#This Row],[Median]]-AAMC_Raw_Data_for_FY22[[#This Row],[25th]])/25)*10) + AAMC_Raw_Data_for_FY22[[#This Row],[25th]]","v":95598.399999999994},{"$f":"(((AAMC_Raw_Data_for_FY22[[#This Row],[Median]]-AAMC_Raw_Data_for_FY22[[#This Row],[25th]])/25)*15) + AAMC_Raw_Data_for_FY22[[#This Row],[25th]]","v":98165.6},{"$f":"(((AAMC_Raw_Data_for_FY22[[#This Row],[Median]]-AAMC_Raw_Data_for_FY22[[#This Row],[25th]])/25)*20) + AAMC_Raw_Data_for_FY22[[#This Row],[25th]]","v":100732.8},103300,{"$f":"(((AAMC_Raw_Data_for_FY22[[#This Row],[75th]]-AAMC_Raw_Data_for_FY22[[#This Row],[Median]])/25)*5) + AAMC_Raw_Data_for_FY22[[#This Row],[Median]]","v":108757.6},{"$f":"(((AAMC_Raw_Data_for_FY22[[#This Row],[75th]]-AAMC_Raw_Data_for_FY22[[#This Row],[Median]])/25)*10) + AAMC_Raw_Data_for_FY22[[#This Row],[Median]]","v":114215.2},{"$f":"(((AAMC_Raw_Data_for_FY22[[#This Row],[75th]]-AAMC_Raw_Data_for_FY22[[#This Row],[Median]])/25)*15) + AAMC_Raw_Data_for_FY22[[#This Row],[Median]]","v":119672.8},{"$f":"(((AAMC_Raw_Data_for_FY22[[#This Row],[75th]]-AAMC_Raw_Data_for_FY22[[#This Row],[Median]])/25)*20) + AAMC_Raw_Data_for_FY22[[#This Row],[Median]]","v":125130.4},130588,{"$f":"(((AAMC_Raw_Data_for_FY22[[#This Row],[75th]]-AAMC_Raw_Data_for_FY22[[#This Row],[Median]])/25)*30) + AAMC_Raw_Data_for_FY22[[#This Row],[Median]]","v":136045.6},{"$f":"(((AAMC_Raw_Data_for_FY22[[#This Row],[75th]]-AAMC_Raw_Data_for_FY22[[#This Row],[Median]])/25)*35) + AAMC_Raw_Data_for_FY22[[#This Row],[Median]]","v":141503.20000000001},{"$f":"(((AAMC_Raw_Data_for_FY22[[#This Row],[75th]]-AAMC_Raw_Data_for_FY22[[#This Row],[Median]])/25)*40) + AAMC_Raw_Data_for_FY22[[#This Row],[Median]]","v":146960.79999999999}]
[{"$f":"AAMC_Raw_Data_for_FY22[[#This Row],[Source]]&AAMC_Raw_Data_for_FY22[[#This Row],[Type]]&AAMC_Raw_Data_for_FY22[[#This Row],[School Subset]]&AAMC_Raw_Data_for_FY22[[#This Row],[Rank]]&AAMC_Raw_Data_for_FY22[[#This Row],[Degree]]&AAMC_Raw_Data_for_FY22[[#This Row],[Department / Specialty]]&\"L\"","v":"AAMCAcademicAllAssociatePhDOther SurgeryL"},"Other Surgery",3,"AAMC","Academic","All","Associate","PhD","2021-2022",126205,{"$f":"(((AAMC_Raw_Data_for_FY22[[#This Row],[Median]]-AAMC_Raw_Data_for_FY22[[#This Row],[25th]])/25)*5) + AAMC_Raw_Data_for_FY22[[#This Row],[25th]]","v":128964},{"$f":"(((AAMC_Raw_Data_for_FY22[[#This Row],[Median]]-AAMC_Raw_Data_for_FY22[[#This Row],[25th]])/25)*10) + AAMC_Raw_Data_for_FY22[[#This Row],[25th]]","v":131723},{"$f":"(((AAMC_Raw_Data_for_FY22[[#This Row],[Median]]-AAMC_Raw_Data_for_FY22[[#This Row],[25th]])/25)*15) + AAMC_Raw_Data_for_FY22[[#This Row],[25th]]","v":134482},{"$f":"(((AAMC_Raw_Data_for_FY22[[#This Row],[Median]]-AAMC_Raw_Data_for_FY22[[#This Row],[25th]])/25)*20) + AAMC_Raw_Data_for_FY22[[#This Row],[25th]]","v":137241},140000,{"$f":"(((AAMC_Raw_Data_for_FY22[[#This Row],[75th]]-AAMC_Raw_Data_for_FY22[[#This Row],[Median]])/25)*5) + AAMC_Raw_Data_for_FY22[[#This Row],[Median]]","v":144440.79999999999},{"$f":"(((AAMC_Raw_Data_for_FY22[[#This Row],[75th]]-AAMC_Raw_Data_for_FY22[[#This Row],[Median]])/25)*10) + AAMC_Raw_Data_for_FY22[[#This Row],[Median]]","v":148881.60000000001},{"$f":"(((AAMC_Raw_Data_for_FY22[[#This Row],[75th]]-AAMC_Raw_Data_for_FY22[[#This Row],[Median]])/25)*15) + AAMC_Raw_Data_for_FY22[[#This Row],[Median]]","v":153322.4},{"$f":"(((AAMC_Raw_Data_for_FY22[[#This Row],[75th]]-AAMC_Raw_Data_for_FY22[[#This Row],[Median]])/25)*20) + AAMC_Raw_Data_for_FY22[[#This Row],[Median]]","v":157763.20000000001},162204,{"$f":"(((AAMC_Raw_Data_for_FY22[[#This Row],[75th]]-AAMC_Raw_Data_for_FY22[[#This Row],[Median]])/25)*30) + AAMC_Raw_Data_for_FY22[[#This Row],[Median]]","v":166644.79999999999},{"$f":"(((AAMC_Raw_Data_for_FY22[[#This Row],[75th]]-AAMC_Raw_Data_for_FY22[[#This Row],[Median]])/25)*35) + AAMC_Raw_Data_for_FY22[[#This Row],[Median]]","v":171085.6},{"$f":"(((AAMC_Raw_Data_for_FY22[[#This Row],[75th]]-AAMC_Raw_Data_for_FY22[[#This Row],[Median]])/25)*40) + AAMC_Raw_Data_for_FY22[[#This Row],[Median]]","v":175526.39999999999}]
[{"$f":"AAMC_Raw_Data_for_FY22[[#This Row],[Source]]&AAMC_Raw_Data_for_FY22[[#This Row],[Type]]&AAMC_Raw_Data_for_FY22[[#This Row],[School Subset]]&AAMC_Raw_Data_for_FY22[[#This Row],[Rank]]&AAMC_Raw_Data_for_FY22[[#This Row],[Degree]]&AAMC_Raw_Data_for_FY22[[#This Row],[Department / Specialty]]&\"L\"","v":"AAMCAcademicAllProfessorPhDOther SurgeryL"},"Other Surgery",2,"AAMC","Academic","All","Professor","PhD","2021-2022",189169,{"$f":"(((AAMC_Raw_Data_for_FY22[[#This Row],[Median]]-AAMC_Raw_Data_for_FY22[[#This Row],[25th]])/25)*5) + AAMC_Raw_Data_for_FY22[[#This Row],[25th]]","v":198974.4},{"$f":"(((AAMC_Raw_Data_for_FY22[[#This Row],[Median]]-AAMC_Raw_Data_for_FY22[[#This Row],[25th]])/25)*10) + AAMC_Raw_Data_for_FY22[[#This Row],[25th]]","v":208779.8},{"$f":"(((AAMC_Raw_Data_for_FY22[[#This Row],[Median]]-AAMC_Raw_Data_for_FY22[[#This Row],[25th]])/25)*15) + AAMC_Raw_Data_for_FY22[[#This Row],[25th]]","v":218585.2},{"$f":"(((AAMC_Raw_Data_for_FY22[[#This Row],[Median]]-AAMC_Raw_Data_for_FY22[[#This Row],[25th]])/25)*20) + AAMC_Raw_Data_for_FY22[[#This Row],[25th]]","v":228390.6},238196,{"$f":"(((AAMC_Raw_Data_for_FY22[[#This Row],[75th]]-AAMC_Raw_Data_for_FY22[[#This Row],[Median]])/25)*5) + AAMC_Raw_Data_for_FY22[[#This Row],[Median]]","v":247366.8},{"$f":"(((AAMC_Raw_Data_for_FY22[[#This Row],[75th]]-AAMC_Raw_Data_for_FY22[[#This Row],[Median]])/25)*10) + AAMC_Raw_Data_for_FY22[[#This Row],[Median]]","v":256537.60000000001},{"$f":"(((AAMC_Raw_Data_for_FY22[[#This Row],[75th]]-AAMC_Raw_Data_for_FY22[[#This Row],[Median]])/25)*15) + AAMC_Raw_Data_for_FY22[[#This Row],[Median]]","v":265708.40000000002},{"$f":"(((AAMC_Raw_Data_for_FY22[[#This Row],[75th]]-AAMC_Raw_Data_for_FY22[[#This Row],[Median]])/25)*20) + AAMC_Raw_Data_for_FY22[[#This Row],[Median]]","v":274879.2},284050,{"$f":"(((AAMC_Raw_Data_for_FY22[[#This Row],[75th]]-AAMC_Raw_Data_for_FY22[[#This Row],[Median]])/25)*30) + AAMC_Raw_Data_for_FY22[[#This Row],[Median]]","v":293220.8},{"$f":"(((AAMC_Raw_Data_for_FY22[[#This Row],[75th]]-AAMC_Raw_Data_for_FY22[[#This Row],[Median]])/25)*35) + AAMC_Raw_Data_for_FY22[[#This Row],[Median]]","v":302391.59999999998},{"$f":"(((AAMC_Raw_Data_for_FY22[[#This Row],[75th]]-AAMC_Raw_Data_for_FY22[[#This Row],[Median]])/25)*40) + AAMC_Raw_Data_for_FY22[[#This Row],[Median]]","v":311562.40000000002}]
[{"$f":"AAMC_Raw_Data_for_FY22[[#This Row],[Source]]&AAMC_Raw_Data_for_FY22[[#This Row],[Type]]&AAMC_Raw_Data_for_FY22[[#This Row],[School Subset]]&AAMC_Raw_Data_for_FY22[[#This Row],[Rank]]&AAMC_Raw_Data_for_FY22[[#This Row],[Degree]]&AAMC_Raw_Data_for_FY22[[#This Row],[Department / Specialty]]&\"L\"","v":"AAMCAcademicAllChiefPhDOther SurgeryL"},"Other Surgery",6,"AAMC","Academic","All","Chief","PhD","2021-2022",null,{"$f":"(((AAMC_Raw_Data_for_FY22[[#This Row],[Median]]-AAMC_Raw_Data_for_FY22[[#This Row],[25th]])/25)*5) + AAMC_Raw_Data_for_FY22[[#This Row],[25th]]","v":0},{"$f":"(((AAMC_Raw_Data_for_FY22[[#This Row],[Median]]-AAMC_Raw_Data_for_FY22[[#This Row],[25th]])/25)*10) + AAMC_Raw_Data_for_FY22[[#This Row],[25th]]","v":0},{"$f":"(((AAMC_Raw_Data_for_FY22[[#This Row],[Median]]-AAMC_Raw_Data_for_FY22[[#This Row],[25th]])/25)*15) + AAMC_Raw_Data_for_FY22[[#This Row],[25th]]","v":0},{"$f":"(((AAMC_Raw_Data_for_FY22[[#This Row],[Median]]-AAMC_Raw_Data_for_FY22[[#This Row],[25th]])/25)*20) + AAMC_Raw_Data_for_FY22[[#This Row],[25th]]","v":0},null,{"$f":"(((AAMC_Raw_Data_for_FY22[[#This Row],[75th]]-AAMC_Raw_Data_for_FY22[[#This Row],[Median]])/25)*5) + AAMC_Raw_Data_for_FY22[[#This Row],[Median]]","v":0},{"$f":"(((AAMC_Raw_Data_for_FY22[[#This Row],[75th]]-AAMC_Raw_Data_for_FY22[[#This Row],[Median]])/25)*10) + AAMC_Raw_Data_for_FY22[[#This Row],[Median]]","v":0},{"$f":"(((AAMC_Raw_Data_for_FY22[[#This Row],[75th]]-AAMC_Raw_Data_for_FY22[[#This Row],[Median]])/25)*15) + AAMC_Raw_Data_for_FY22[[#This Row],[Median]]","v":0},{"$f":"(((AAMC_Raw_Data_for_FY22[[#This Row],[75th]]-AAMC_Raw_Data_for_FY22[[#This Row],[Median]])/25)*20) + AAMC_Raw_Data_for_FY22[[#This Row],[Median]]","v":0},null,{"$f":"(((AAMC_Raw_Data_for_FY22[[#This Row],[75th]]-AAMC_Raw_Data_for_FY22[[#This Row],[Median]])/25)*30) + AAMC_Raw_Data_for_FY22[[#This Row],[Median]]","v":0},{"$f":"(((AAMC_Raw_Data_for_FY22[[#This Row],[75th]]-AAMC_Raw_Data_for_FY22[[#This Row],[Median]])/25)*35) + AAMC_Raw_Data_for_FY22[[#This Row],[Median]]","v":0},{"$f":"(((AAMC_Raw_Data_for_FY22[[#This Row],[75th]]-AAMC_Raw_Data_for_FY22[[#This Row],[Median]])/25)*40) + AAMC_Raw_Data_for_FY22[[#This Row],[Median]]","v":0}]
[{"$f":"AAMC_Raw_Data_for_FY22[[#This Row],[Source]]&AAMC_Raw_Data_for_FY22[[#This Row],[Type]]&AAMC_Raw_Data_for_FY22[[#This Row],[School Subset]]&AAMC_Raw_Data_for_FY22[[#This Row],[Rank]]&AAMC_Raw_Data_for_FY22[[#This Row],[Degree]]&AAMC_Raw_Data_for_FY22[[#This Row],[Department / Specialty]]&\"L\"","v":"AAMCAcademicAllInstructorPhDOther Clinical Science TotalL"},"Other Clinical Science Total",5,"AAMC","Academic","All","Instructor","PhD","2021-2022",74975,{"$f":"(((AAMC_Raw_Data_for_FY22[[#This Row],[Median]]-AAMC_Raw_Data_for_FY22[[#This Row],[25th]])/25)*5) + AAMC_Raw_Data_for_FY22[[#This Row],[25th]]","v":77490},{"$f":"(((AAMC_Raw_Data_for_FY22[[#This Row],[Median]]-AAMC_Raw_Data_for_FY22[[#This Row],[25th]])/25)*10) + AAMC_Raw_Data_for_FY22[[#This Row],[25th]]","v":80005},{"$f":"(((AAMC_Raw_Data_for_FY22[[#This Row],[Median]]-AAMC_Raw_Data_for_FY22[[#This Row],[25th]])/25)*15) + AAMC_Raw_Data_for_FY22[[#This Row],[25th]]","v":82520},{"$f":"(((AAMC_Raw_Data_for_FY22[[#This Row],[Median]]-AAMC_Raw_Data_for_FY22[[#This Row],[25th]])/25)*20) + AAMC_Raw_Data_for_FY22[[#This Row],[25th]]","v":85035},87550,{"$f":"(((AAMC_Raw_Data_for_FY22[[#This Row],[75th]]-AAMC_Raw_Data_for_FY22[[#This Row],[Median]])/25)*5) + AAMC_Raw_Data_for_FY22[[#This Row],[Median]]","v":92695.4},{"$f":"(((AAMC_Raw_Data_for_FY22[[#This Row],[75th]]-AAMC_Raw_Data_for_FY22[[#This Row],[Median]])/25)*10) + AAMC_Raw_Data_for_FY22[[#This Row],[Median]]","v":97840.8},{"$f":"(((AAMC_Raw_Data_for_FY22[[#This Row],[75th]]-AAMC_Raw_Data_for_FY22[[#This Row],[Median]])/25)*15) + AAMC_Raw_Data_for_FY22[[#This Row],[Median]]","v":102986.2},{"$f":"(((AAMC_Raw_Data_for_FY22[[#This Row],[75th]]-AAMC_Raw_Data_for_FY22[[#This Row],[Median]])/25)*20) + AAMC_Raw_Data_for_FY22[[#This Row],[Median]]","v":108131.6},113277,{"$f":"(((AAMC_Raw_Data_for_FY22[[#This Row],[75th]]-AAMC_Raw_Data_for_FY22[[#This Row],[Median]])/25)*30) + AAMC_Raw_Data_for_FY22[[#This Row],[Median]]","v":118422.39999999999},{"$f":"(((AAMC_Raw_Data_for_FY22[[#This Row],[75th]]-AAMC_Raw_Data_for_FY22[[#This Row],[Median]])/25)*35) + AAMC_Raw_Data_for_FY22[[#This Row],[Median]]","v":123567.79999999999},{"$f":"(((AAMC_Raw_Data_for_FY22[[#This Row],[75th]]-AAMC_Raw_Data_for_FY22[[#This Row],[Median]])/25)*40) + AAMC_Raw_Data_for_FY22[[#This Row],[Median]]","v":128713.2}]
[{"$f":"AAMC_Raw_Data_for_FY22[[#This Row],[Source]]&AAMC_Raw_Data_for_FY22[[#This Row],[Type]]&AAMC_Raw_Data_for_FY22[[#This Row],[School Subset]]&AAMC_Raw_Data_for_FY22[[#This Row],[Rank]]&AAMC_Raw_Data_for_FY22[[#This Row],[Degree]]&AAMC_Raw_Data_for_FY22[[#This Row],[Department / Specialty]]&\"L\"","v":"AAMCAcademicAllAssistantPhDOther Clinical Science TotalL"},"Other Clinical Science Total",4,"AAMC","Academic","All","Assistant","PhD","2021-2022",98354,{"$f":"(((AAMC_Raw_Data_for_FY22[[#This Row],[Median]]-AAMC_Raw_Data_for_FY22[[#This Row],[25th]])/25)*5) + AAMC_Raw_Data_for_FY22[[#This Row],[25th]]","v":101683.2},{"$f":"(((AAMC_Raw_Data_for_FY22[[#This Row],[Median]]-AAMC_Raw_Data_for_FY22[[#This Row],[25th]])/25)*10) + AAMC_Raw_Data_for_FY22[[#This Row],[25th]]","v":105012.4},{"$f":"(((AAMC_Raw_Data_for_FY22[[#This Row],[Median]]-AAMC_Raw_Data_for_FY22[[#This Row],[25th]])/25)*15) + AAMC_Raw_Data_for_FY22[[#This Row],[25th]]","v":108341.6},{"$f":"(((AAMC_Raw_Data_for_FY22[[#This Row],[Median]]-AAMC_Raw_Data_for_FY22[[#This Row],[25th]])/25)*20) + AAMC_Raw_Data_for_FY22[[#This Row],[25th]]","v":111670.8},115000,{"$f":"(((AAMC_Raw_Data_for_FY22[[#This Row],[75th]]-AAMC_Raw_Data_for_FY22[[#This Row],[Median]])/25)*5) + AAMC_Raw_Data_for_FY22[[#This Row],[Median]]","v":118964.6},{"$f":"(((AAMC_Raw_Data_for_FY22[[#This Row],[75th]]-AAMC_Raw_Data_for_FY22[[#This Row],[Median]])/25)*10) + AAMC_Raw_Data_for_FY22[[#This Row],[Median]]","v":122929.2},{"$f":"(((AAMC_Raw_Data_for_FY22[[#This Row],[75th]]-AAMC_Raw_Data_for_FY22[[#This Row],[Median]])/25)*15) + AAMC_Raw_Data_for_FY22[[#This Row],[Median]]","v":126893.8},{"$f":"(((AAMC_Raw_Data_for_FY22[[#This Row],[75th]]-AAMC_Raw_Data_for_FY22[[#This Row],[Median]])/25)*20) + AAMC_Raw_Data_for_FY22[[#This Row],[Median]]","v":130858.4},134823,{"$f":"(((AAMC_Raw_Data_for_FY22[[#This Row],[75th]]-AAMC_Raw_Data_for_FY22[[#This Row],[Median]])/25)*30) + AAMC_Raw_Data_for_FY22[[#This Row],[Median]]","v":138787.6},{"$f":"(((AAMC_Raw_Data_for_FY22[[#This Row],[75th]]-AAMC_Raw_Data_for_FY22[[#This Row],[Median]])/25)*35) + AAMC_Raw_Data_for_FY22[[#This Row],[Median]]","v":142752.20000000001},{"$f":"(((AAMC_Raw_Data_for_FY22[[#This Row],[75th]]-AAMC_Raw_Data_for_FY22[[#This Row],[Median]])/25)*40) + AAMC_Raw_Data_for_FY22[[#This Row],[Median]]","v":146716.79999999999}]
[{"$f":"AAMC_Raw_Data_for_FY22[[#This Row],[Source]]&AAMC_Raw_Data_for_FY22[[#This Row],[Type]]&AAMC_Raw_Data_for_FY22[[#This Row],[School Subset]]&AAMC_Raw_Data_for_FY22[[#This Row],[Rank]]&AAMC_Raw_Data_for_FY22[[#This Row],[Degree]]&AAMC_Raw_Data_for_FY22[[#This Row],[Department / Specialty]]&\"L\"","v":"AAMCAcademicAllAssociatePhDOther Clinical Science TotalL"},"Other Clinical Science Total",3,"AAMC","Academic","All","Associate","PhD","2021-2022",121827,{"$f":"(((AAMC_Raw_Data_for_FY22[[#This Row],[Median]]-AAMC_Raw_Data_for_FY22[[#This Row],[25th]])/25)*5) + AAMC_Raw_Data_for_FY22[[#This Row],[25th]]","v":126749.6},{"$f":"(((AAMC_Raw_Data_for_FY22[[#This Row],[Median]]-AAMC_Raw_Data_for_FY22[[#This Row],[25th]])/25)*10) + AAMC_Raw_Data_for_FY22[[#This Row],[25th]]","v":131672.20000000001},{"$f":"(((AAMC_Raw_Data_for_FY22[[#This Row],[Median]]-AAMC_Raw_Data_for_FY22[[#This Row],[25th]])/25)*15) + AAMC_Raw_Data_for_FY22[[#This Row],[25th]]","v":136594.79999999999},{"$f":"(((AAMC_Raw_Data_for_FY22[[#This Row],[Median]]-AAMC_Raw_Data_for_FY22[[#This Row],[25th]])/25)*20) + AAMC_Raw_Data_for_FY22[[#This Row],[25th]]","v":141517.4},146440,{"$f":"(((AAMC_Raw_Data_for_FY22[[#This Row],[75th]]-AAMC_Raw_Data_for_FY22[[#This Row],[Median]])/25)*5) + AAMC_Raw_Data_for_FY22[[#This Row],[Median]]","v":151568},{"$f":"(((AAMC_Raw_Data_for_FY22[[#This Row],[75th]]-AAMC_Raw_Data_for_FY22[[#This Row],[Median]])/25)*10) + AAMC_Raw_Data_for_FY22[[#This Row],[Median]]","v":156696},{"$f":"(((AAMC_Raw_Data_for_FY22[[#This Row],[75th]]-AAMC_Raw_Data_for_FY22[[#This Row],[Median]])/25)*15) + AAMC_Raw_Data_for_FY22[[#This Row],[Median]]","v":161824},{"$f":"(((AAMC_Raw_Data_for_FY22[[#This Row],[75th]]-AAMC_Raw_Data_for_FY22[[#This Row],[Median]])/25)*20) + AAMC_Raw_Data_for_FY22[[#This Row],[Median]]","v":166952},172080,{"$f":"(((AAMC_Raw_Data_for_FY22[[#This Row],[75th]]-AAMC_Raw_Data_for_FY22[[#This Row],[Median]])/25)*30) + AAMC_Raw_Data_for_FY22[[#This Row],[Median]]","v":177208},{"$f":"(((AAMC_Raw_Data_for_FY22[[#This Row],[75th]]-AAMC_Raw_Data_for_FY22[[#This Row],[Median]])/25)*35) + AAMC_Raw_Data_for_FY22[[#This Row],[Median]]","v":182336},{"$f":"(((AAMC_Raw_Data_for_FY22[[#This Row],[75th]]-AAMC_Raw_Data_for_FY22[[#This Row],[Median]])/25)*40) + AAMC_Raw_Data_for_FY22[[#This Row],[Median]]","v":187464}]
[{"$f":"AAMC_Raw_Data_for_FY22[[#This Row],[Source]]&AAMC_Raw_Data_for_FY22[[#This Row],[Type]]&AAMC_Raw_Data_for_FY22[[#This Row],[School Subset]]&AAMC_Raw_Data_for_FY22[[#This Row],[Rank]]&AAMC_Raw_Data_for_FY22[[#This Row],[Degree]]&AAMC_Raw_Data_for_FY22[[#This Row],[Department / Specialty]]&\"L\"","v":"AAMCAcademicAllProfessorPhDOther Clinical Science TotalL"},"Other Clinical Science Total",2,"AAMC","Academic","All","Professor","PhD","2021-2022",175000,{"$f":"(((AAMC_Raw_Data_for_FY22[[#This Row],[Median]]-AAMC_Raw_Data_for_FY22[[#This Row],[25th]])/25)*5) + AAMC_Raw_Data_for_FY22[[#This Row],[25th]]","v":182126},{"$f":"(((AAMC_Raw_Data_for_FY22[[#This Row],[Median]]-AAMC_Raw_Data_for_FY22[[#This Row],[25th]])/25)*10) + AAMC_Raw_Data_for_FY22[[#This Row],[25th]]","v":189252},{"$f":"(((AAMC_Raw_Data_for_FY22[[#This Row],[Median]]-AAMC_Raw_Data_for_FY22[[#This Row],[25th]])/25)*15) + AAMC_Raw_Data_for_FY22[[#This Row],[25th]]","v":196378},{"$f":"(((AAMC_Raw_Data_for_FY22[[#This Row],[Median]]-AAMC_Raw_Data_for_FY22[[#This Row],[25th]])/25)*20) + AAMC_Raw_Data_for_FY22[[#This Row],[25th]]","v":203504},210630,{"$f":"(((AAMC_Raw_Data_for_FY22[[#This Row],[75th]]-AAMC_Raw_Data_for_FY22[[#This Row],[Median]])/25)*5) + AAMC_Raw_Data_for_FY22[[#This Row],[Median]]","v":219235.8},{"$f":"(((AAMC_Raw_Data_for_FY22[[#This Row],[75th]]-AAMC_Raw_Data_for_FY22[[#This Row],[Median]])/25)*10) + AAMC_Raw_Data_for_FY22[[#This Row],[Median]]","v":227841.6},{"$f":"(((AAMC_Raw_Data_for_FY22[[#This Row],[75th]]-AAMC_Raw_Data_for_FY22[[#This Row],[Median]])/25)*15) + AAMC_Raw_Data_for_FY22[[#This Row],[Median]]","v":236447.4},{"$f":"(((AAMC_Raw_Data_for_FY22[[#This Row],[75th]]-AAMC_Raw_Data_for_FY22[[#This Row],[Median]])/25)*20) + AAMC_Raw_Data_for_FY22[[#This Row],[Median]]","v":245053.2},253659,{"$f":"(((AAMC_Raw_Data_for_FY22[[#This Row],[75th]]-AAMC_Raw_Data_for_FY22[[#This Row],[Median]])/25)*30) + AAMC_Raw_Data_for_FY22[[#This Row],[Median]]","v":262264.8},{"$f":"(((AAMC_Raw_Data_for_FY22[[#This Row],[75th]]-AAMC_Raw_Data_for_FY22[[#This Row],[Median]])/25)*35) + AAMC_Raw_Data_for_FY22[[#This Row],[Median]]","v":270870.59999999998},{"$f":"(((AAMC_Raw_Data_for_FY22[[#This Row],[75th]]-AAMC_Raw_Data_for_FY22[[#This Row],[Median]])/25)*40) + AAMC_Raw_Data_for_FY22[[#This Row],[Median]]","v":279476.40000000002}]
[{"$f":"AAMC_Raw_Data_for_FY22[[#This Row],[Source]]&AAMC_Raw_Data_for_FY22[[#This Row],[Type]]&AAMC_Raw_Data_for_FY22[[#This Row],[School Subset]]&AAMC_Raw_Data_for_FY22[[#This Row],[Rank]]&AAMC_Raw_Data_for_FY22[[#This Row],[Degree]]&AAMC_Raw_Data_for_FY22[[#This Row],[Department / Specialty]]&\"L\"","v":"AAMCAcademicAllChiefPhDOther Clinical Science TotalL"},"Other Clinical Science Total",6,"AAMC","Academic","All","Chief","PhD","2021-2022",172155,{"$f":"(((AAMC_Raw_Data_for_FY22[[#This Row],[Median]]-AAMC_Raw_Data_for_FY22[[#This Row],[25th]])/25)*5) + AAMC_Raw_Data_for_FY22[[#This Row],[25th]]","v":179724},{"$f":"(((AAMC_Raw_Data_for_FY22[[#This Row],[Median]]-AAMC_Raw_Data_for_FY22[[#This Row],[25th]])/25)*10) + AAMC_Raw_Data_for_FY22[[#This Row],[25th]]","v":187293},{"$f":"(((AAMC_Raw_Data_for_FY22[[#This Row],[Median]]-AAMC_Raw_Data_for_FY22[[#This Row],[25th]])/25)*15) + AAMC_Raw_Data_for_FY22[[#This Row],[25th]]","v":194862},{"$f":"(((AAMC_Raw_Data_for_FY22[[#This Row],[Median]]-AAMC_Raw_Data_for_FY22[[#This Row],[25th]])/25)*20) + AAMC_Raw_Data_for_FY22[[#This Row],[25th]]","v":202431},210000,{"$f":"(((AAMC_Raw_Data_for_FY22[[#This Row],[75th]]-AAMC_Raw_Data_for_FY22[[#This Row],[Median]])/25)*5) + AAMC_Raw_Data_for_FY22[[#This Row],[Median]]","v":229500},{"$f":"(((AAMC_Raw_Data_for_FY22[[#This Row],[75th]]-AAMC_Raw_Data_for_FY22[[#This Row],[Median]])/25)*10) + AAMC_Raw_Data_for_FY22[[#This Row],[Median]]","v":249000},{"$f":"(((AAMC_Raw_Data_for_FY22[[#This Row],[75th]]-AAMC_Raw_Data_for_FY22[[#This Row],[Median]])/25)*15) + AAMC_Raw_Data_for_FY22[[#This Row],[Median]]","v":268500},{"$f":"(((AAMC_Raw_Data_for_FY22[[#This Row],[75th]]-AAMC_Raw_Data_for_FY22[[#This Row],[Median]])/25)*20) + AAMC_Raw_Data_for_FY22[[#This Row],[Median]]","v":288000},307500,{"$f":"(((AAMC_Raw_Data_for_FY22[[#This Row],[75th]]-AAMC_Raw_Data_for_FY22[[#This Row],[Median]])/25)*30) + AAMC_Raw_Data_for_FY22[[#This Row],[Median]]","v":327000},{"$f":"(((AAMC_Raw_Data_for_FY22[[#This Row],[75th]]-AAMC_Raw_Data_for_FY22[[#This Row],[Median]])/25)*35) + AAMC_Raw_Data_for_FY22[[#This Row],[Median]]","v":346500},{"$f":"(((AAMC_Raw_Data_for_FY22[[#This Row],[75th]]-AAMC_Raw_Data_for_FY22[[#This Row],[Median]])/25)*40) + AAMC_Raw_Data_for_FY22[[#This Row],[Median]]","v":366000}]
[{"$f":"AAMC_Raw_Data_for_FY22[[#This Row],[Source]]&AAMC_Raw_Data_for_FY22[[#This Row],[Type]]&AAMC_Raw_Data_for_FY22[[#This Row],[School Subset]]&AAMC_Raw_Data_for_FY22[[#This Row],[Rank]]&AAMC_Raw_Data_for_FY22[[#This Row],[Degree]]&AAMC_Raw_Data_for_FY22[[#This Row],[Department / Specialty]]&\"L\"","v":"AAMCAcademicAllChairPhDOther Clinical Science TotalL"},"Other Clinical Science Total",1,"AAMC","Academic","All","Chair","PhD","2021-2022",209090,{"$f":"(((AAMC_Raw_Data_for_FY22[[#This Row],[Median]]-AAMC_Raw_Data_for_FY22[[#This Row],[25th]])/25)*5) + AAMC_Raw_Data_for_FY22[[#This Row],[25th]]","v":218604},{"$f":"(((AAMC_Raw_Data_for_FY22[[#This Row],[Median]]-AAMC_Raw_Data_for_FY22[[#This Row],[25th]])/25)*10) + AAMC_Raw_Data_for_FY22[[#This Row],[25th]]","v":228118},{"$f":"(((AAMC_Raw_Data_for_FY22[[#This Row],[Median]]-AAMC_Raw_Data_for_FY22[[#This Row],[25th]])/25)*15) + AAMC_Raw_Data_for_FY22[[#This Row],[25th]]","v":237632},{"$f":"(((AAMC_Raw_Data_for_FY22[[#This Row],[Median]]-AAMC_Raw_Data_for_FY22[[#This Row],[25th]])/25)*20) + AAMC_Raw_Data_for_FY22[[#This Row],[25th]]","v":247146},256660,{"$f":"(((AAMC_Raw_Data_for_FY22[[#This Row],[75th]]-AAMC_Raw_Data_for_FY22[[#This Row],[Median]])/25)*5) + AAMC_Raw_Data_for_FY22[[#This Row],[Median]]","v":266937.59999999998},{"$f":"(((AAMC_Raw_Data_for_FY22[[#This Row],[75th]]-AAMC_Raw_Data_for_FY22[[#This Row],[Median]])/25)*10) + AAMC_Raw_Data_for_FY22[[#This Row],[Median]]","v":277215.2},{"$f":"(((AAMC_Raw_Data_for_FY22[[#This Row],[75th]]-AAMC_Raw_Data_for_FY22[[#This Row],[Median]])/25)*15) + AAMC_Raw_Data_for_FY22[[#This Row],[Median]]","v":287492.8},{"$f":"(((AAMC_Raw_Data_for_FY22[[#This Row],[75th]]-AAMC_Raw_Data_for_FY22[[#This Row],[Median]])/25)*20) + AAMC_Raw_Data_for_FY22[[#This Row],[Median]]","v":297770.40000000002},308048,{"$f":"(((AAMC_Raw_Data_for_FY22[[#This Row],[75th]]-AAMC_Raw_Data_for_FY22[[#This Row],[Median]])/25)*30) + AAMC_Raw_Data_for_FY22[[#This Row],[Median]]","v":318325.59999999998},{"$f":"(((AAMC_Raw_Data_for_FY22[[#This Row],[75th]]-AAMC_Raw_Data_for_FY22[[#This Row],[Median]])/25)*35) + AAMC_Raw_Data_for_FY22[[#This Row],[Median]]","v":328603.2},{"$f":"(((AAMC_Raw_Data_for_FY22[[#This Row],[75th]]-AAMC_Raw_Data_for_FY22[[#This Row],[Median]])/25)*40) + AAMC_Raw_Data_for_FY22[[#This Row],[Median]]","v":338880.8}]
[{"$f":"AAMC_Raw_Data_for_FY22[[#This Row],[Source]]&AAMC_Raw_Data_for_FY22[[#This Row],[Type]]&AAMC_Raw_Data_for_FY22[[#This Row],[School Subset]]&AAMC_Raw_Data_for_FY22[[#This Row],[Rank]]&AAMC_Raw_Data_for_FY22[[#This Row],[Degree]]&AAMC_Raw_Data_for_FY22[[#This Row],[Department / Specialty]]&\"L\"","v":"AAMCAcademicAllInstructorPhDCommunity HealthL"},"Community Health",5,"AAMC","Academic","All","Instructor","PhD","2021-2022",null,{"$f":"(((AAMC_Raw_Data_for_FY22[[#This Row],[Median]]-AAMC_Raw_Data_for_FY22[[#This Row],[25th]])/25)*5) + AAMC_Raw_Data_for_FY22[[#This Row],[25th]]","v":0},{"$f":"(((AAMC_Raw_Data_for_FY22[[#This Row],[Median]]-AAMC_Raw_Data_for_FY22[[#This Row],[25th]])/25)*10) + AAMC_Raw_Data_for_FY22[[#This Row],[25th]]","v":0},{"$f":"(((AAMC_Raw_Data_for_FY22[[#This Row],[Median]]-AAMC_Raw_Data_for_FY22[[#This Row],[25th]])/25)*15) + AAMC_Raw_Data_for_FY22[[#This Row],[25th]]","v":0},{"$f":"(((AAMC_Raw_Data_for_FY22[[#This Row],[Median]]-AAMC_Raw_Data_for_FY22[[#This Row],[25th]])/25)*20) + AAMC_Raw_Data_for_FY22[[#This Row],[25th]]","v":0},null,{"$f":"(((AAMC_Raw_Data_for_FY22[[#This Row],[75th]]-AAMC_Raw_Data_for_FY22[[#This Row],[Median]])/25)*5) + AAMC_Raw_Data_for_FY22[[#This Row],[Median]]","v":0},{"$f":"(((AAMC_Raw_Data_for_FY22[[#This Row],[75th]]-AAMC_Raw_Data_for_FY22[[#This Row],[Median]])/25)*10) + AAMC_Raw_Data_for_FY22[[#This Row],[Median]]","v":0},{"$f":"(((AAMC_Raw_Data_for_FY22[[#This Row],[75th]]-AAMC_Raw_Data_for_FY22[[#This Row],[Median]])/25)*15) + AAMC_Raw_Data_for_FY22[[#This Row],[Median]]","v":0},{"$f":"(((AAMC_Raw_Data_for_FY22[[#This Row],[75th]]-AAMC_Raw_Data_for_FY22[[#This Row],[Median]])/25)*20) + AAMC_Raw_Data_for_FY22[[#This Row],[Median]]","v":0},null,{"$f":"(((AAMC_Raw_Data_for_FY22[[#This Row],[75th]]-AAMC_Raw_Data_for_FY22[[#This Row],[Median]])/25)*30) + AAMC_Raw_Data_for_FY22[[#This Row],[Median]]","v":0},{"$f":"(((AAMC_Raw_Data_for_FY22[[#This Row],[75th]]-AAMC_Raw_Data_for_FY22[[#This Row],[Median]])/25)*35) + AAMC_Raw_Data_for_FY22[[#This Row],[Median]]","v":0},{"$f":"(((AAMC_Raw_Data_for_FY22[[#This Row],[75th]]-AAMC_Raw_Data_for_FY22[[#This Row],[Median]])/25)*40) + AAMC_Raw_Data_for_FY22[[#This Row],[Median]]","v":0}]
[{"$f":"AAMC_Raw_Data_for_FY22[[#This Row],[Source]]&AAMC_Raw_Data_for_FY22[[#This Row],[Type]]&AAMC_Raw_Data_for_FY22[[#This Row],[School Subset]]&AAMC_Raw_Data_for_FY22[[#This Row],[Rank]]&AAMC_Raw_Data_for_FY22[[#This Row],[Degree]]&AAMC_Raw_Data_for_FY22[[#This Row],[Department / Specialty]]&\"L\"","v":"AAMCAcademicAllAssistantPhDCommunity HealthL"},"Community Health",4,"AAMC","Academic","All","Assistant","PhD","2021-2022",99426,{"$f":"(((AAMC_Raw_Data_for_FY22[[#This Row],[Median]]-AAMC_Raw_Data_for_FY22[[#This Row],[25th]])/25)*5) + AAMC_Raw_Data_for_FY22[[#This Row],[25th]]","v":101540.8},{"$f":"(((AAMC_Raw_Data_for_FY22[[#This Row],[Median]]-AAMC_Raw_Data_for_FY22[[#This Row],[25th]])/25)*10) + AAMC_Raw_Data_for_FY22[[#This Row],[25th]]","v":103655.6},{"$f":"(((AAMC_Raw_Data_for_FY22[[#This Row],[Median]]-AAMC_Raw_Data_for_FY22[[#This Row],[25th]])/25)*15) + AAMC_Raw_Data_for_FY22[[#This Row],[25th]]","v":105770.4},{"$f":"(((AAMC_Raw_Data_for_FY22[[#This Row],[Median]]-AAMC_Raw_Data_for_FY22[[#This Row],[25th]])/25)*20) + AAMC_Raw_Data_for_FY22[[#This Row],[25th]]","v":107885.2},110000,{"$f":"(((AAMC_Raw_Data_for_FY22[[#This Row],[75th]]-AAMC_Raw_Data_for_FY22[[#This Row],[Median]])/25)*5) + AAMC_Raw_Data_for_FY22[[#This Row],[Median]]","v":113309},{"$f":"(((AAMC_Raw_Data_for_FY22[[#This Row],[75th]]-AAMC_Raw_Data_for_FY22[[#This Row],[Median]])/25)*10) + AAMC_Raw_Data_for_FY22[[#This Row],[Median]]","v":116618},{"$f":"(((AAMC_Raw_Data_for_FY22[[#This Row],[75th]]-AAMC_Raw_Data_for_FY22[[#This Row],[Median]])/25)*15) + AAMC_Raw_Data_for_FY22[[#This Row],[Median]]","v":119927},{"$f":"(((AAMC_Raw_Data_for_FY22[[#This Row],[75th]]-AAMC_Raw_Data_for_FY22[[#This Row],[Median]])/25)*20) + AAMC_Raw_Data_for_FY22[[#This Row],[Median]]","v":123236},126545,{"$f":"(((AAMC_Raw_Data_for_FY22[[#This Row],[75th]]-AAMC_Raw_Data_for_FY22[[#This Row],[Median]])/25)*30) + AAMC_Raw_Data_for_FY22[[#This Row],[Median]]","v":129854},{"$f":"(((AAMC_Raw_Data_for_FY22[[#This Row],[75th]]-AAMC_Raw_Data_for_FY22[[#This Row],[Median]])/25)*35) + AAMC_Raw_Data_for_FY22[[#This Row],[Median]]","v":133163},{"$f":"(((AAMC_Raw_Data_for_FY22[[#This Row],[75th]]-AAMC_Raw_Data_for_FY22[[#This Row],[Median]])/25)*40) + AAMC_Raw_Data_for_FY22[[#This Row],[Median]]","v":136472}]
[{"$f":"AAMC_Raw_Data_for_FY22[[#This Row],[Source]]&AAMC_Raw_Data_for_FY22[[#This Row],[Type]]&AAMC_Raw_Data_for_FY22[[#This Row],[School Subset]]&AAMC_Raw_Data_for_FY22[[#This Row],[Rank]]&AAMC_Raw_Data_for_FY22[[#This Row],[Degree]]&AAMC_Raw_Data_for_FY22[[#This Row],[Department / Specialty]]&\"L\"","v":"AAMCAcademicAllAssociatePhDCommunity HealthL"},"Community Health",3,"AAMC","Academic","All","Associate","PhD","2021-2022",114601,{"$f":"(((AAMC_Raw_Data_for_FY22[[#This Row],[Median]]-AAMC_Raw_Data_for_FY22[[#This Row],[25th]])/25)*5) + AAMC_Raw_Data_for_FY22[[#This Row],[25th]]","v":118904.6},{"$f":"(((AAMC_Raw_Data_for_FY22[[#This Row],[Median]]-AAMC_Raw_Data_for_FY22[[#This Row],[25th]])/25)*10) + AAMC_Raw_Data_for_FY22[[#This Row],[25th]]","v":123208.2},{"$f":"(((AAMC_Raw_Data_for_FY22[[#This Row],[Median]]-AAMC_Raw_Data_for_FY22[[#This Row],[25th]])/25)*15) + AAMC_Raw_Data_for_FY22[[#This Row],[25th]]","v":127511.8},{"$f":"(((AAMC_Raw_Data_for_FY22[[#This Row],[Median]]-AAMC_Raw_Data_for_FY22[[#This Row],[25th]])/25)*20) + AAMC_Raw_Data_for_FY22[[#This Row],[25th]]","v":131815.4},136119,{"$f":"(((AAMC_Raw_Data_for_FY22[[#This Row],[75th]]-AAMC_Raw_Data_for_FY22[[#This Row],[Median]])/25)*5) + AAMC_Raw_Data_for_FY22[[#This Row],[Median]]","v":140598.79999999999},{"$f":"(((AAMC_Raw_Data_for_FY22[[#This Row],[75th]]-AAMC_Raw_Data_for_FY22[[#This Row],[Median]])/25)*10) + AAMC_Raw_Data_for_FY22[[#This Row],[Median]]","v":145078.6},{"$f":"(((AAMC_Raw_Data_for_FY22[[#This Row],[75th]]-AAMC_Raw_Data_for_FY22[[#This Row],[Median]])/25)*15) + AAMC_Raw_Data_for_FY22[[#This Row],[Median]]","v":149558.39999999999},{"$f":"(((AAMC_Raw_Data_for_FY22[[#This Row],[75th]]-AAMC_Raw_Data_for_FY22[[#This Row],[Median]])/25)*20) + AAMC_Raw_Data_for_FY22[[#This Row],[Median]]","v":154038.20000000001},158518,{"$f":"(((AAMC_Raw_Data_for_FY22[[#This Row],[75th]]-AAMC_Raw_Data_for_FY22[[#This Row],[Median]])/25)*30) + AAMC_Raw_Data_for_FY22[[#This Row],[Median]]","v":162997.79999999999},{"$f":"(((AAMC_Raw_Data_for_FY22[[#This Row],[75th]]-AAMC_Raw_Data_for_FY22[[#This Row],[Median]])/25)*35) + AAMC_Raw_Data_for_FY22[[#This Row],[Median]]","v":167477.6},{"$f":"(((AAMC_Raw_Data_for_FY22[[#This Row],[75th]]-AAMC_Raw_Data_for_FY22[[#This Row],[Median]])/25)*40) + AAMC_Raw_Data_for_FY22[[#This Row],[Median]]","v":171957.4}]
[{"$f":"AAMC_Raw_Data_for_FY22[[#This Row],[Source]]&AAMC_Raw_Data_for_FY22[[#This Row],[Type]]&AAMC_Raw_Data_for_FY22[[#This Row],[School Subset]]&AAMC_Raw_Data_for_FY22[[#This Row],[Rank]]&AAMC_Raw_Data_for_FY22[[#This Row],[Degree]]&AAMC_Raw_Data_for_FY22[[#This Row],[Department / Specialty]]&\"L\"","v":"AAMCAcademicAllProfessorPhDCommunity HealthL"},"Community Health",2,"AAMC","Academic","All","Professor","PhD","2021-2022",174694,{"$f":"(((AAMC_Raw_Data_for_FY22[[#This Row],[Median]]-AAMC_Raw_Data_for_FY22[[#This Row],[25th]])/25)*5) + AAMC_Raw_Data_for_FY22[[#This Row],[25th]]","v":181555.20000000001},{"$f":"(((AAMC_Raw_Data_for_FY22[[#This Row],[Median]]-AAMC_Raw_Data_for_FY22[[#This Row],[25th]])/25)*10) + AAMC_Raw_Data_for_FY22[[#This Row],[25th]]","v":188416.4},{"$f":"(((AAMC_Raw_Data_for_FY22[[#This Row],[Median]]-AAMC_Raw_Data_for_FY22[[#This Row],[25th]])/25)*15) + AAMC_Raw_Data_for_FY22[[#This Row],[25th]]","v":195277.6},{"$f":"(((AAMC_Raw_Data_for_FY22[[#This Row],[Median]]-AAMC_Raw_Data_for_FY22[[#This Row],[25th]])/25)*20) + AAMC_Raw_Data_for_FY22[[#This Row],[25th]]","v":202138.8},209000,{"$f":"(((AAMC_Raw_Data_for_FY22[[#This Row],[75th]]-AAMC_Raw_Data_for_FY22[[#This Row],[Median]])/25)*5) + AAMC_Raw_Data_for_FY22[[#This Row],[Median]]","v":217350.39999999999},{"$f":"(((AAMC_Raw_Data_for_FY22[[#This Row],[75th]]-AAMC_Raw_Data_for_FY22[[#This Row],[Median]])/25)*10) + AAMC_Raw_Data_for_FY22[[#This Row],[Median]]","v":225700.8},{"$f":"(((AAMC_Raw_Data_for_FY22[[#This Row],[75th]]-AAMC_Raw_Data_for_FY22[[#This Row],[Median]])/25)*15) + AAMC_Raw_Data_for_FY22[[#This Row],[Median]]","v":234051.20000000001},{"$f":"(((AAMC_Raw_Data_for_FY22[[#This Row],[75th]]-AAMC_Raw_Data_for_FY22[[#This Row],[Median]])/25)*20) + AAMC_Raw_Data_for_FY22[[#This Row],[Median]]","v":242401.6},250752,{"$f":"(((AAMC_Raw_Data_for_FY22[[#This Row],[75th]]-AAMC_Raw_Data_for_FY22[[#This Row],[Median]])/25)*30) + AAMC_Raw_Data_for_FY22[[#This Row],[Median]]","v":259102.4},{"$f":"(((AAMC_Raw_Data_for_FY22[[#This Row],[75th]]-AAMC_Raw_Data_for_FY22[[#This Row],[Median]])/25)*35) + AAMC_Raw_Data_for_FY22[[#This Row],[Median]]","v":267452.79999999999},{"$f":"(((AAMC_Raw_Data_for_FY22[[#This Row],[75th]]-AAMC_Raw_Data_for_FY22[[#This Row],[Median]])/25)*40) + AAMC_Raw_Data_for_FY22[[#This Row],[Median]]","v":275803.2}]
[{"$f":"AAMC_Raw_Data_for_FY22[[#This Row],[Source]]&AAMC_Raw_Data_for_FY22[[#This Row],[Type]]&AAMC_Raw_Data_for_FY22[[#This Row],[School Subset]]&AAMC_Raw_Data_for_FY22[[#This Row],[Rank]]&AAMC_Raw_Data_for_FY22[[#This Row],[Degree]]&AAMC_Raw_Data_for_FY22[[#This Row],[Department / Specialty]]&\"L\"","v":"AAMCAcademicAllChiefPhDCommunity HealthL"},"Community Health",6,"AAMC","Academic","All","Chief","PhD","2021-2022",null,{"$f":"(((AAMC_Raw_Data_for_FY22[[#This Row],[Median]]-AAMC_Raw_Data_for_FY22[[#This Row],[25th]])/25)*5) + AAMC_Raw_Data_for_FY22[[#This Row],[25th]]","v":0},{"$f":"(((AAMC_Raw_Data_for_FY22[[#This Row],[Median]]-AAMC_Raw_Data_for_FY22[[#This Row],[25th]])/25)*10) + AAMC_Raw_Data_for_FY22[[#This Row],[25th]]","v":0},{"$f":"(((AAMC_Raw_Data_for_FY22[[#This Row],[Median]]-AAMC_Raw_Data_for_FY22[[#This Row],[25th]])/25)*15) + AAMC_Raw_Data_for_FY22[[#This Row],[25th]]","v":0},{"$f":"(((AAMC_Raw_Data_for_FY22[[#This Row],[Median]]-AAMC_Raw_Data_for_FY22[[#This Row],[25th]])/25)*20) + AAMC_Raw_Data_for_FY22[[#This Row],[25th]]","v":0},null,{"$f":"(((AAMC_Raw_Data_for_FY22[[#This Row],[75th]]-AAMC_Raw_Data_for_FY22[[#This Row],[Median]])/25)*5) + AAMC_Raw_Data_for_FY22[[#This Row],[Median]]","v":0},{"$f":"(((AAMC_Raw_Data_for_FY22[[#This Row],[75th]]-AAMC_Raw_Data_for_FY22[[#This Row],[Median]])/25)*10) + AAMC_Raw_Data_for_FY22[[#This Row],[Median]]","v":0},{"$f":"(((AAMC_Raw_Data_for_FY22[[#This Row],[75th]]-AAMC_Raw_Data_for_FY22[[#This Row],[Median]])/25)*15) + AAMC_Raw_Data_for_FY22[[#This Row],[Median]]","v":0},{"$f":"(((AAMC_Raw_Data_for_FY22[[#This Row],[75th]]-AAMC_Raw_Data_for_FY22[[#This Row],[Median]])/25)*20) + AAMC_Raw_Data_for_FY22[[#This Row],[Median]]","v":0},null,{"$f":"(((AAMC_Raw_Data_for_FY22[[#This Row],[75th]]-AAMC_Raw_Data_for_FY22[[#This Row],[Median]])/25)*30) + AAMC_Raw_Data_for_FY22[[#This Row],[Median]]","v":0},{"$f":"(((AAMC_Raw_Data_for_FY22[[#This Row],[75th]]-AAMC_Raw_Data_for_FY22[[#This Row],[Median]])/25)*35) + AAMC_Raw_Data_for_FY22[[#This Row],[Median]]","v":0},{"$f":"(((AAMC_Raw_Data_for_FY22[[#This Row],[75th]]-AAMC_Raw_Data_for_FY22[[#This Row],[Median]])/25)*40) + AAMC_Raw_Data_for_FY22[[#This Row],[Median]]","v":0}]
[{"$f":"AAMC_Raw_Data_for_FY22[[#This Row],[Source]]&AAMC_Raw_Data_for_FY22[[#This Row],[Type]]&AAMC_Raw_Data_for_FY22[[#This Row],[School Subset]]&AAMC_Raw_Data_for_FY22[[#This Row],[Rank]]&AAMC_Raw_Data_for_FY22[[#This Row],[Degree]]&AAMC_Raw_Data_for_FY22[[#This Row],[Department / Specialty]]&\"L\"","v":"AAMCAcademicAllChairPhDCommunity HealthL"},"Community Health",1,"AAMC","Academic","All","Chair","PhD","2021-2022",null,{"$f":"(((AAMC_Raw_Data_for_FY22[[#This Row],[Median]]-AAMC_Raw_Data_for_FY22[[#This Row],[25th]])/25)*5) + AAMC_Raw_Data_for_FY22[[#This Row],[25th]]","v":0},{"$f":"(((AAMC_Raw_Data_for_FY22[[#This Row],[Median]]-AAMC_Raw_Data_for_FY22[[#This Row],[25th]])/25)*10) + AAMC_Raw_Data_for_FY22[[#This Row],[25th]]","v":0},{"$f":"(((AAMC_Raw_Data_for_FY22[[#This Row],[Median]]-AAMC_Raw_Data_for_FY22[[#This Row],[25th]])/25)*15) + AAMC_Raw_Data_for_FY22[[#This Row],[25th]]","v":0},{"$f":"(((AAMC_Raw_Data_for_FY22[[#This Row],[Median]]-AAMC_Raw_Data_for_FY22[[#This Row],[25th]])/25)*20) + AAMC_Raw_Data_for_FY22[[#This Row],[25th]]","v":0},null,{"$f":"(((AAMC_Raw_Data_for_FY22[[#This Row],[75th]]-AAMC_Raw_Data_for_FY22[[#This Row],[Median]])/25)*5) + AAMC_Raw_Data_for_FY22[[#This Row],[Median]]","v":0},{"$f":"(((AAMC_Raw_Data_for_FY22[[#This Row],[75th]]-AAMC_Raw_Data_for_FY22[[#This Row],[Median]])/25)*10) + AAMC_Raw_Data_for_FY22[[#This Row],[Median]]","v":0},{"$f":"(((AAMC_Raw_Data_for_FY22[[#This Row],[75th]]-AAMC_Raw_Data_for_FY22[[#This Row],[Median]])/25)*15) + AAMC_Raw_Data_for_FY22[[#This Row],[Median]]","v":0},{"$f":"(((AAMC_Raw_Data_for_FY22[[#This Row],[75th]]-AAMC_Raw_Data_for_FY22[[#This Row],[Median]])/25)*20) + AAMC_Raw_Data_for_FY22[[#This Row],[Median]]","v":0},null,{"$f":"(((AAMC_Raw_Data_for_FY22[[#This Row],[75th]]-AAMC_Raw_Data_for_FY22[[#This Row],[Median]])/25)*30) + AAMC_Raw_Data_for_FY22[[#This Row],[Median]]","v":0},{"$f":"(((AAMC_Raw_Data_for_FY22[[#This Row],[75th]]-AAMC_Raw_Data_for_FY22[[#This Row],[Median]])/25)*35) + AAMC_Raw_Data_for_FY22[[#This Row],[Median]]","v":0},{"$f":"(((AAMC_Raw_Data_for_FY22[[#This Row],[75th]]-AAMC_Raw_Data_for_FY22[[#This Row],[Median]])/25)*40) + AAMC_Raw_Data_for_FY22[[#This Row],[Median]]","v":0}]
[{"$f":"AAMC_Raw_Data_for_FY22[[#This Row],[Source]]&AAMC_Raw_Data_for_FY22[[#This Row],[Type]]&AAMC_Raw_Data_for_FY22[[#This Row],[School Subset]]&AAMC_Raw_Data_for_FY22[[#This Row],[Rank]]&AAMC_Raw_Data_for_FY22[[#This Row],[Degree]]&AAMC_Raw_Data_for_FY22[[#This Row],[Department / Specialty]]&\"L\"","v":"AAMCAcademicAllInstructorPhDEmergency MedicineL"},"Emergency Medicine",5,"AAMC","Academic","All","Instructor","PhD","2021-2022",95323,{"$f":"(((AAMC_Raw_Data_for_FY22[[#This Row],[Median]]-AAMC_Raw_Data_for_FY22[[#This Row],[25th]])/25)*5) + AAMC_Raw_Data_for_FY22[[#This Row],[25th]]","v":97131.4},{"$f":"(((AAMC_Raw_Data_for_FY22[[#This Row],[Median]]-AAMC_Raw_Data_for_FY22[[#This Row],[25th]])/25)*10) + AAMC_Raw_Data_for_FY22[[#This Row],[25th]]","v":98939.8},{"$f":"(((AAMC_Raw_Data_for_FY22[[#This Row],[Median]]-AAMC_Raw_Data_for_FY22[[#This Row],[25th]])/25)*15) + AAMC_Raw_Data_for_FY22[[#This Row],[25th]]","v":100748.2},{"$f":"(((AAMC_Raw_Data_for_FY22[[#This Row],[Median]]-AAMC_Raw_Data_for_FY22[[#This Row],[25th]])/25)*20) + AAMC_Raw_Data_for_FY22[[#This Row],[25th]]","v":102556.6},104365,{"$f":"(((AAMC_Raw_Data_for_FY22[[#This Row],[75th]]-AAMC_Raw_Data_for_FY22[[#This Row],[Median]])/25)*5) + AAMC_Raw_Data_for_FY22[[#This Row],[Median]]","v":108509},{"$f":"(((AAMC_Raw_Data_for_FY22[[#This Row],[75th]]-AAMC_Raw_Data_for_FY22[[#This Row],[Median]])/25)*10) + AAMC_Raw_Data_for_FY22[[#This Row],[Median]]","v":112653},{"$f":"(((AAMC_Raw_Data_for_FY22[[#This Row],[75th]]-AAMC_Raw_Data_for_FY22[[#This Row],[Median]])/25)*15) + AAMC_Raw_Data_for_FY22[[#This Row],[Median]]","v":116797},{"$f":"(((AAMC_Raw_Data_for_FY22[[#This Row],[75th]]-AAMC_Raw_Data_for_FY22[[#This Row],[Median]])/25)*20) + AAMC_Raw_Data_for_FY22[[#This Row],[Median]]","v":120941},125085,{"$f":"(((AAMC_Raw_Data_for_FY22[[#This Row],[75th]]-AAMC_Raw_Data_for_FY22[[#This Row],[Median]])/25)*30) + AAMC_Raw_Data_for_FY22[[#This Row],[Median]]","v":129229},{"$f":"(((AAMC_Raw_Data_for_FY22[[#This Row],[75th]]-AAMC_Raw_Data_for_FY22[[#This Row],[Median]])/25)*35) + AAMC_Raw_Data_for_FY22[[#This Row],[Median]]","v":133373},{"$f":"(((AAMC_Raw_Data_for_FY22[[#This Row],[75th]]-AAMC_Raw_Data_for_FY22[[#This Row],[Median]])/25)*40) + AAMC_Raw_Data_for_FY22[[#This Row],[Median]]","v":137517}]
[{"$f":"AAMC_Raw_Data_for_FY22[[#This Row],[Source]]&AAMC_Raw_Data_for_FY22[[#This Row],[Type]]&AAMC_Raw_Data_for_FY22[[#This Row],[School Subset]]&AAMC_Raw_Data_for_FY22[[#This Row],[Rank]]&AAMC_Raw_Data_for_FY22[[#This Row],[Degree]]&AAMC_Raw_Data_for_FY22[[#This Row],[Department / Specialty]]&\"L\"","v":"AAMCAcademicAllAssistantPhDEmergency MedicineL"},"Emergency Medicine",4,"AAMC","Academic","All","Assistant","PhD","2021-2022",106256,{"$f":"(((AAMC_Raw_Data_for_FY22[[#This Row],[Median]]-AAMC_Raw_Data_for_FY22[[#This Row],[25th]])/25)*5) + AAMC_Raw_Data_for_FY22[[#This Row],[25th]]","v":111343},{"$f":"(((AAMC_Raw_Data_for_FY22[[#This Row],[Median]]-AAMC_Raw_Data_for_FY22[[#This Row],[25th]])/25)*10) + AAMC_Raw_Data_for_FY22[[#This Row],[25th]]","v":116430},{"$f":"(((AAMC_Raw_Data_for_FY22[[#This Row],[Median]]-AAMC_Raw_Data_for_FY22[[#This Row],[25th]])/25)*15) + AAMC_Raw_Data_for_FY22[[#This Row],[25th]]","v":121517},{"$f":"(((AAMC_Raw_Data_for_FY22[[#This Row],[Median]]-AAMC_Raw_Data_for_FY22[[#This Row],[25th]])/25)*20) + AAMC_Raw_Data_for_FY22[[#This Row],[25th]]","v":126604},131691,{"$f":"(((AAMC_Raw_Data_for_FY22[[#This Row],[75th]]-AAMC_Raw_Data_for_FY22[[#This Row],[Median]])/25)*5) + AAMC_Raw_Data_for_FY22[[#This Row],[Median]]","v":139107.79999999999},{"$f":"(((AAMC_Raw_Data_for_FY22[[#This Row],[75th]]-AAMC_Raw_Data_for_FY22[[#This Row],[Median]])/25)*10) + AAMC_Raw_Data_for_FY22[[#This Row],[Median]]","v":146524.6},{"$f":"(((AAMC_Raw_Data_for_FY22[[#This Row],[75th]]-AAMC_Raw_Data_for_FY22[[#This Row],[Median]])/25)*15) + AAMC_Raw_Data_for_FY22[[#This Row],[Median]]","v":153941.4},{"$f":"(((AAMC_Raw_Data_for_FY22[[#This Row],[75th]]-AAMC_Raw_Data_for_FY22[[#This Row],[Median]])/25)*20) + AAMC_Raw_Data_for_FY22[[#This Row],[Median]]","v":161358.20000000001},168775,{"$f":"(((AAMC_Raw_Data_for_FY22[[#This Row],[75th]]-AAMC_Raw_Data_for_FY22[[#This Row],[Median]])/25)*30) + AAMC_Raw_Data_for_FY22[[#This Row],[Median]]","v":176191.8},{"$f":"(((AAMC_Raw_Data_for_FY22[[#This Row],[75th]]-AAMC_Raw_Data_for_FY22[[#This Row],[Median]])/25)*35) + AAMC_Raw_Data_for_FY22[[#This Row],[Median]]","v":183608.6},{"$f":"(((AAMC_Raw_Data_for_FY22[[#This Row],[75th]]-AAMC_Raw_Data_for_FY22[[#This Row],[Median]])/25)*40) + AAMC_Raw_Data_for_FY22[[#This Row],[Median]]","v":191025.4}]
[{"$f":"AAMC_Raw_Data_for_FY22[[#This Row],[Source]]&AAMC_Raw_Data_for_FY22[[#This Row],[Type]]&AAMC_Raw_Data_for_FY22[[#This Row],[School Subset]]&AAMC_Raw_Data_for_FY22[[#This Row],[Rank]]&AAMC_Raw_Data_for_FY22[[#This Row],[Degree]]&AAMC_Raw_Data_for_FY22[[#This Row],[Department / Specialty]]&\"L\"","v":"AAMCAcademicAllAssociatePhDEmergency MedicineL"},"Emergency Medicine",3,"AAMC","Academic","All","Associate","PhD","2021-2022",130100,{"$f":"(((AAMC_Raw_Data_for_FY22[[#This Row],[Median]]-AAMC_Raw_Data_for_FY22[[#This Row],[25th]])/25)*5) + AAMC_Raw_Data_for_FY22[[#This Row],[25th]]","v":136027.4},{"$f":"(((AAMC_Raw_Data_for_FY22[[#This Row],[Median]]-AAMC_Raw_Data_for_FY22[[#This Row],[25th]])/25)*10) + AAMC_Raw_Data_for_FY22[[#This Row],[25th]]","v":141954.79999999999},{"$f":"(((AAMC_Raw_Data_for_FY22[[#This Row],[Median]]-AAMC_Raw_Data_for_FY22[[#This Row],[25th]])/25)*15) + AAMC_Raw_Data_for_FY22[[#This Row],[25th]]","v":147882.20000000001},{"$f":"(((AAMC_Raw_Data_for_FY22[[#This Row],[Median]]-AAMC_Raw_Data_for_FY22[[#This Row],[25th]])/25)*20) + AAMC_Raw_Data_for_FY22[[#This Row],[25th]]","v":153809.60000000001},159737,{"$f":"(((AAMC_Raw_Data_for_FY22[[#This Row],[75th]]-AAMC_Raw_Data_for_FY22[[#This Row],[Median]])/25)*5) + AAMC_Raw_Data_for_FY22[[#This Row],[Median]]","v":165992.79999999999},{"$f":"(((AAMC_Raw_Data_for_FY22[[#This Row],[75th]]-AAMC_Raw_Data_for_FY22[[#This Row],[Median]])/25)*10) + AAMC_Raw_Data_for_FY22[[#This Row],[Median]]","v":172248.6},{"$f":"(((AAMC_Raw_Data_for_FY22[[#This Row],[75th]]-AAMC_Raw_Data_for_FY22[[#This Row],[Median]])/25)*15) + AAMC_Raw_Data_for_FY22[[#This Row],[Median]]","v":178504.4},{"$f":"(((AAMC_Raw_Data_for_FY22[[#This Row],[75th]]-AAMC_Raw_Data_for_FY22[[#This Row],[Median]])/25)*20) + AAMC_Raw_Data_for_FY22[[#This Row],[Median]]","v":184760.2},191016,{"$f":"(((AAMC_Raw_Data_for_FY22[[#This Row],[75th]]-AAMC_Raw_Data_for_FY22[[#This Row],[Median]])/25)*30) + AAMC_Raw_Data_for_FY22[[#This Row],[Median]]","v":197271.8},{"$f":"(((AAMC_Raw_Data_for_FY22[[#This Row],[75th]]-AAMC_Raw_Data_for_FY22[[#This Row],[Median]])/25)*35) + AAMC_Raw_Data_for_FY22[[#This Row],[Median]]","v":203527.6},{"$f":"(((AAMC_Raw_Data_for_FY22[[#This Row],[75th]]-AAMC_Raw_Data_for_FY22[[#This Row],[Median]])/25)*40) + AAMC_Raw_Data_for_FY22[[#This Row],[Median]]","v":209783.4}]
[{"$f":"AAMC_Raw_Data_for_FY22[[#This Row],[Source]]&AAMC_Raw_Data_for_FY22[[#This Row],[Type]]&AAMC_Raw_Data_for_FY22[[#This Row],[School Subset]]&AAMC_Raw_Data_for_FY22[[#This Row],[Rank]]&AAMC_Raw_Data_for_FY22[[#This Row],[Degree]]&AAMC_Raw_Data_for_FY22[[#This Row],[Department / Specialty]]&\"L\"","v":"AAMCAcademicAllProfessorPhDEmergency MedicineL"},"Emergency Medicine",2,"AAMC","Academic","All","Professor","PhD","2021-2022",185626,{"$f":"(((AAMC_Raw_Data_for_FY22[[#This Row],[Median]]-AAMC_Raw_Data_for_FY22[[#This Row],[25th]])/25)*5) + AAMC_Raw_Data_for_FY22[[#This Row],[25th]]","v":193460.8},{"$f":"(((AAMC_Raw_Data_for_FY22[[#This Row],[Median]]-AAMC_Raw_Data_for_FY22[[#This Row],[25th]])/25)*10) + AAMC_Raw_Data_for_FY22[[#This Row],[25th]]","v":201295.6},{"$f":"(((AAMC_Raw_Data_for_FY22[[#This Row],[Median]]-AAMC_Raw_Data_for_FY22[[#This Row],[25th]])/25)*15) + AAMC_Raw_Data_for_FY22[[#This Row],[25th]]","v":209130.4},{"$f":"(((AAMC_Raw_Data_for_FY22[[#This Row],[Median]]-AAMC_Raw_Data_for_FY22[[#This Row],[25th]])/25)*20) + AAMC_Raw_Data_for_FY22[[#This Row],[25th]]","v":216965.2},224800,{"$f":"(((AAMC_Raw_Data_for_FY22[[#This Row],[75th]]-AAMC_Raw_Data_for_FY22[[#This Row],[Median]])/25)*5) + AAMC_Raw_Data_for_FY22[[#This Row],[Median]]","v":235365},{"$f":"(((AAMC_Raw_Data_for_FY22[[#This Row],[75th]]-AAMC_Raw_Data_for_FY22[[#This Row],[Median]])/25)*10) + AAMC_Raw_Data_for_FY22[[#This Row],[Median]]","v":245930},{"$f":"(((AAMC_Raw_Data_for_FY22[[#This Row],[75th]]-AAMC_Raw_Data_for_FY22[[#This Row],[Median]])/25)*15) + AAMC_Raw_Data_for_FY22[[#This Row],[Median]]","v":256495},{"$f":"(((AAMC_Raw_Data_for_FY22[[#This Row],[75th]]-AAMC_Raw_Data_for_FY22[[#This Row],[Median]])/25)*20) + AAMC_Raw_Data_for_FY22[[#This Row],[Median]]","v":267060},277625,{"$f":"(((AAMC_Raw_Data_for_FY22[[#This Row],[75th]]-AAMC_Raw_Data_for_FY22[[#This Row],[Median]])/25)*30) + AAMC_Raw_Data_for_FY22[[#This Row],[Median]]","v":288190},{"$f":"(((AAMC_Raw_Data_for_FY22[[#This Row],[75th]]-AAMC_Raw_Data_for_FY22[[#This Row],[Median]])/25)*35) + AAMC_Raw_Data_for_FY22[[#This Row],[Median]]","v":298755},{"$f":"(((AAMC_Raw_Data_for_FY22[[#This Row],[75th]]-AAMC_Raw_Data_for_FY22[[#This Row],[Median]])/25)*40) + AAMC_Raw_Data_for_FY22[[#This Row],[Median]]","v":309320}]
[{"$f":"AAMC_Raw_Data_for_FY22[[#This Row],[Source]]&AAMC_Raw_Data_for_FY22[[#This Row],[Type]]&AAMC_Raw_Data_for_FY22[[#This Row],[School Subset]]&AAMC_Raw_Data_for_FY22[[#This Row],[Rank]]&AAMC_Raw_Data_for_FY22[[#This Row],[Degree]]&AAMC_Raw_Data_for_FY22[[#This Row],[Department / Specialty]]&\"L\"","v":"AAMCAcademicAllChiefPhDEmergency MedicineL"},"Emergency Medicine",6,"AAMC","Academic","All","Chief","PhD","2021-2022",null,{"$f":"(((AAMC_Raw_Data_for_FY22[[#This Row],[Median]]-AAMC_Raw_Data_for_FY22[[#This Row],[25th]])/25)*5) + AAMC_Raw_Data_for_FY22[[#This Row],[25th]]","v":0},{"$f":"(((AAMC_Raw_Data_for_FY22[[#This Row],[Median]]-AAMC_Raw_Data_for_FY22[[#This Row],[25th]])/25)*10) + AAMC_Raw_Data_for_FY22[[#This Row],[25th]]","v":0},{"$f":"(((AAMC_Raw_Data_for_FY22[[#This Row],[Median]]-AAMC_Raw_Data_for_FY22[[#This Row],[25th]])/25)*15) + AAMC_Raw_Data_for_FY22[[#This Row],[25th]]","v":0},{"$f":"(((AAMC_Raw_Data_for_FY22[[#This Row],[Median]]-AAMC_Raw_Data_for_FY22[[#This Row],[25th]])/25)*20) + AAMC_Raw_Data_for_FY22[[#This Row],[25th]]","v":0},null,{"$f":"(((AAMC_Raw_Data_for_FY22[[#This Row],[75th]]-AAMC_Raw_Data_for_FY22[[#This Row],[Median]])/25)*5) + AAMC_Raw_Data_for_FY22[[#This Row],[Median]]","v":0},{"$f":"(((AAMC_Raw_Data_for_FY22[[#This Row],[75th]]-AAMC_Raw_Data_for_FY22[[#This Row],[Median]])/25)*10) + AAMC_Raw_Data_for_FY22[[#This Row],[Median]]","v":0},{"$f":"(((AAMC_Raw_Data_for_FY22[[#This Row],[75th]]-AAMC_Raw_Data_for_FY22[[#This Row],[Median]])/25)*15) + AAMC_Raw_Data_for_FY22[[#This Row],[Median]]","v":0},{"$f":"(((AAMC_Raw_Data_for_FY22[[#This Row],[75th]]-AAMC_Raw_Data_for_FY22[[#This Row],[Median]])/25)*20) + AAMC_Raw_Data_for_FY22[[#This Row],[Median]]","v":0},null,{"$f":"(((AAMC_Raw_Data_for_FY22[[#This Row],[75th]]-AAMC_Raw_Data_for_FY22[[#This Row],[Median]])/25)*30) + AAMC_Raw_Data_for_FY22[[#This Row],[Median]]","v":0},{"$f":"(((AAMC_Raw_Data_for_FY22[[#This Row],[75th]]-AAMC_Raw_Data_for_FY22[[#This Row],[Median]])/25)*35) + AAMC_Raw_Data_for_FY22[[#This Row],[Median]]","v":0},{"$f":"(((AAMC_Raw_Data_for_FY22[[#This Row],[75th]]-AAMC_Raw_Data_for_FY22[[#This Row],[Median]])/25)*40) + AAMC_Raw_Data_for_FY22[[#This Row],[Median]]","v":0}]
[{"$f":"AAMC_Raw_Data_for_FY22[[#This Row],[Source]]&AAMC_Raw_Data_for_FY22[[#This Row],[Type]]&AAMC_Raw_Data_for_FY22[[#This Row],[School Subset]]&AAMC_Raw_Data_for_FY22[[#This Row],[Rank]]&AAMC_Raw_Data_for_FY22[[#This Row],[Degree]]&AAMC_Raw_Data_for_FY22[[#This Row],[Department / Specialty]]&\"L\"","v":"AAMCAcademicAllInstructorPhDNeurologyL"},"Neurology",5,"AAMC","Academic","All","Instructor","PhD","2021-2022",70030,{"$f":"(((AAMC_Raw_Data_for_FY22[[#This Row],[Median]]-AAMC_Raw_Data_for_FY22[[#This Row],[25th]])/25)*5) + AAMC_Raw_Data_for_FY22[[#This Row],[25th]]","v":72624},{"$f":"(((AAMC_Raw_Data_for_FY22[[#This Row],[Median]]-AAMC_Raw_Data_for_FY22[[#This Row],[25th]])/25)*10) + AAMC_Raw_Data_for_FY22[[#This Row],[25th]]","v":75218},{"$f":"(((AAMC_Raw_Data_for_FY22[[#This Row],[Median]]-AAMC_Raw_Data_for_FY22[[#This Row],[25th]])/25)*15) + AAMC_Raw_Data_for_FY22[[#This Row],[25th]]","v":77812},{"$f":"(((AAMC_Raw_Data_for_FY22[[#This Row],[Median]]-AAMC_Raw_Data_for_FY22[[#This Row],[25th]])/25)*20) + AAMC_Raw_Data_for_FY22[[#This Row],[25th]]","v":80406},83000,{"$f":"(((AAMC_Raw_Data_for_FY22[[#This Row],[75th]]-AAMC_Raw_Data_for_FY22[[#This Row],[Median]])/25)*5) + AAMC_Raw_Data_for_FY22[[#This Row],[Median]]","v":86094},{"$f":"(((AAMC_Raw_Data_for_FY22[[#This Row],[75th]]-AAMC_Raw_Data_for_FY22[[#This Row],[Median]])/25)*10) + AAMC_Raw_Data_for_FY22[[#This Row],[Median]]","v":89188},{"$f":"(((AAMC_Raw_Data_for_FY22[[#This Row],[75th]]-AAMC_Raw_Data_for_FY22[[#This Row],[Median]])/25)*15) + AAMC_Raw_Data_for_FY22[[#This Row],[Median]]","v":92282},{"$f":"(((AAMC_Raw_Data_for_FY22[[#This Row],[75th]]-AAMC_Raw_Data_for_FY22[[#This Row],[Median]])/25)*20) + AAMC_Raw_Data_for_FY22[[#This Row],[Median]]","v":95376},98470,{"$f":"(((AAMC_Raw_Data_for_FY22[[#This Row],[75th]]-AAMC_Raw_Data_for_FY22[[#This Row],[Median]])/25)*30) + AAMC_Raw_Data_for_FY22[[#This Row],[Median]]","v":101564},{"$f":"(((AAMC_Raw_Data_for_FY22[[#This Row],[75th]]-AAMC_Raw_Data_for_FY22[[#This Row],[Median]])/25)*35) + AAMC_Raw_Data_for_FY22[[#This Row],[Median]]","v":104658},{"$f":"(((AAMC_Raw_Data_for_FY22[[#This Row],[75th]]-AAMC_Raw_Data_for_FY22[[#This Row],[Median]])/25)*40) + AAMC_Raw_Data_for_FY22[[#This Row],[Median]]","v":107752}]
[{"$f":"AAMC_Raw_Data_for_FY22[[#This Row],[Source]]&AAMC_Raw_Data_for_FY22[[#This Row],[Type]]&AAMC_Raw_Data_for_FY22[[#This Row],[School Subset]]&AAMC_Raw_Data_for_FY22[[#This Row],[Rank]]&AAMC_Raw_Data_for_FY22[[#This Row],[Degree]]&AAMC_Raw_Data_for_FY22[[#This Row],[Department / Specialty]]&\"L\"","v":"AAMCAcademicAllAssistantPhDNeurologyL"},"Neurology",4,"AAMC","Academic","All","Assistant","PhD","2021-2022",97895,{"$f":"(((AAMC_Raw_Data_for_FY22[[#This Row],[Median]]-AAMC_Raw_Data_for_FY22[[#This Row],[25th]])/25)*5) + AAMC_Raw_Data_for_FY22[[#This Row],[25th]]","v":101368},{"$f":"(((AAMC_Raw_Data_for_FY22[[#This Row],[Median]]-AAMC_Raw_Data_for_FY22[[#This Row],[25th]])/25)*10) + AAMC_Raw_Data_for_FY22[[#This Row],[25th]]","v":104841},{"$f":"(((AAMC_Raw_Data_for_FY22[[#This Row],[Median]]-AAMC_Raw_Data_for_FY22[[#This Row],[25th]])/25)*15) + AAMC_Raw_Data_for_FY22[[#This Row],[25th]]","v":108314},{"$f":"(((AAMC_Raw_Data_for_FY22[[#This Row],[Median]]-AAMC_Raw_Data_for_FY22[[#This Row],[25th]])/25)*20) + AAMC_Raw_Data_for_FY22[[#This Row],[25th]]","v":111787},115260,{"$f":"(((AAMC_Raw_Data_for_FY22[[#This Row],[75th]]-AAMC_Raw_Data_for_FY22[[#This Row],[Median]])/25)*5) + AAMC_Raw_Data_for_FY22[[#This Row],[Median]]","v":118878.8},{"$f":"(((AAMC_Raw_Data_for_FY22[[#This Row],[75th]]-AAMC_Raw_Data_for_FY22[[#This Row],[Median]])/25)*10) + AAMC_Raw_Data_for_FY22[[#This Row],[Median]]","v":122497.60000000001},{"$f":"(((AAMC_Raw_Data_for_FY22[[#This Row],[75th]]-AAMC_Raw_Data_for_FY22[[#This Row],[Median]])/25)*15) + AAMC_Raw_Data_for_FY22[[#This Row],[Median]]","v":126116.4},{"$f":"(((AAMC_Raw_Data_for_FY22[[#This Row],[75th]]-AAMC_Raw_Data_for_FY22[[#This Row],[Median]])/25)*20) + AAMC_Raw_Data_for_FY22[[#This Row],[Median]]","v":129735.2},133354,{"$f":"(((AAMC_Raw_Data_for_FY22[[#This Row],[75th]]-AAMC_Raw_Data_for_FY22[[#This Row],[Median]])/25)*30) + AAMC_Raw_Data_for_FY22[[#This Row],[Median]]","v":136972.79999999999},{"$f":"(((AAMC_Raw_Data_for_FY22[[#This Row],[75th]]-AAMC_Raw_Data_for_FY22[[#This Row],[Median]])/25)*35) + AAMC_Raw_Data_for_FY22[[#This Row],[Median]]","v":140591.6},{"$f":"(((AAMC_Raw_Data_for_FY22[[#This Row],[75th]]-AAMC_Raw_Data_for_FY22[[#This Row],[Median]])/25)*40) + AAMC_Raw_Data_for_FY22[[#This Row],[Median]]","v":144210.4}]
[{"$f":"AAMC_Raw_Data_for_FY22[[#This Row],[Source]]&AAMC_Raw_Data_for_FY22[[#This Row],[Type]]&AAMC_Raw_Data_for_FY22[[#This Row],[School Subset]]&AAMC_Raw_Data_for_FY22[[#This Row],[Rank]]&AAMC_Raw_Data_for_FY22[[#This Row],[Degree]]&AAMC_Raw_Data_for_FY22[[#This Row],[Department / Specialty]]&\"L\"","v":"AAMCAcademicAllAssociatePhDNeurologyL"},"Neurology",3,"AAMC","Academic","All","Associate","PhD","2021-2022",128588,{"$f":"(((AAMC_Raw_Data_for_FY22[[#This Row],[Median]]-AAMC_Raw_Data_for_FY22[[#This Row],[25th]])/25)*5) + AAMC_Raw_Data_for_FY22[[#This Row],[25th]]","v":133096},{"$f":"(((AAMC_Raw_Data_for_FY22[[#This Row],[Median]]-AAMC_Raw_Data_for_FY22[[#This Row],[25th]])/25)*10) + AAMC_Raw_Data_for_FY22[[#This Row],[25th]]","v":137604},{"$f":"(((AAMC_Raw_Data_for_FY22[[#This Row],[Median]]-AAMC_Raw_Data_for_FY22[[#This Row],[25th]])/25)*15) + AAMC_Raw_Data_for_FY22[[#This Row],[25th]]","v":142112},{"$f":"(((AAMC_Raw_Data_for_FY22[[#This Row],[Median]]-AAMC_Raw_Data_for_FY22[[#This Row],[25th]])/25)*20) + AAMC_Raw_Data_for_FY22[[#This Row],[25th]]","v":146620},151128,{"$f":"(((AAMC_Raw_Data_for_FY22[[#This Row],[75th]]-AAMC_Raw_Data_for_FY22[[#This Row],[Median]])/25)*5) + AAMC_Raw_Data_for_FY22[[#This Row],[Median]]","v":156889.20000000001},{"$f":"(((AAMC_Raw_Data_for_FY22[[#This Row],[75th]]-AAMC_Raw_Data_for_FY22[[#This Row],[Median]])/25)*10) + AAMC_Raw_Data_for_FY22[[#This Row],[Median]]","v":162650.4},{"$f":"(((AAMC_Raw_Data_for_FY22[[#This Row],[75th]]-AAMC_Raw_Data_for_FY22[[#This Row],[Median]])/25)*15) + AAMC_Raw_Data_for_FY22[[#This Row],[Median]]","v":168411.6},{"$f":"(((AAMC_Raw_Data_for_FY22[[#This Row],[75th]]-AAMC_Raw_Data_for_FY22[[#This Row],[Median]])/25)*20) + AAMC_Raw_Data_for_FY22[[#This Row],[Median]]","v":174172.79999999999},179934,{"$f":"(((AAMC_Raw_Data_for_FY22[[#This Row],[75th]]-AAMC_Raw_Data_for_FY22[[#This Row],[Median]])/25)*30) + AAMC_Raw_Data_for_FY22[[#This Row],[Median]]","v":185695.2},{"$f":"(((AAMC_Raw_Data_for_FY22[[#This Row],[75th]]-AAMC_Raw_Data_for_FY22[[#This Row],[Median]])/25)*35) + AAMC_Raw_Data_for_FY22[[#This Row],[Median]]","v":191456.4},{"$f":"(((AAMC_Raw_Data_for_FY22[[#This Row],[75th]]-AAMC_Raw_Data_for_FY22[[#This Row],[Median]])/25)*40) + AAMC_Raw_Data_for_FY22[[#This Row],[Median]]","v":197217.6}]
[{"$f":"AAMC_Raw_Data_for_FY22[[#This Row],[Source]]&AAMC_Raw_Data_for_FY22[[#This Row],[Type]]&AAMC_Raw_Data_for_FY22[[#This Row],[School Subset]]&AAMC_Raw_Data_for_FY22[[#This Row],[Rank]]&AAMC_Raw_Data_for_FY22[[#This Row],[Degree]]&AAMC_Raw_Data_for_FY22[[#This Row],[Department / Specialty]]&\"L\"","v":"AAMCAcademicAllProfessorPhDNeurologyL"},"Neurology",2,"AAMC","Academic","All","Professor","PhD","2021-2022",191000,{"$f":"(((AAMC_Raw_Data_for_FY22[[#This Row],[Median]]-AAMC_Raw_Data_for_FY22[[#This Row],[25th]])/25)*5) + AAMC_Raw_Data_for_FY22[[#This Row],[25th]]","v":197240},{"$f":"(((AAMC_Raw_Data_for_FY22[[#This Row],[Median]]-AAMC_Raw_Data_for_FY22[[#This Row],[25th]])/25)*10) + AAMC_Raw_Data_for_FY22[[#This Row],[25th]]","v":203480},{"$f":"(((AAMC_Raw_Data_for_FY22[[#This Row],[Median]]-AAMC_Raw_Data_for_FY22[[#This Row],[25th]])/25)*15) + AAMC_Raw_Data_for_FY22[[#This Row],[25th]]","v":209720},{"$f":"(((AAMC_Raw_Data_for_FY22[[#This Row],[Median]]-AAMC_Raw_Data_for_FY22[[#This Row],[25th]])/25)*20) + AAMC_Raw_Data_for_FY22[[#This Row],[25th]]","v":215960},222200,{"$f":"(((AAMC_Raw_Data_for_FY22[[#This Row],[75th]]-AAMC_Raw_Data_for_FY22[[#This Row],[Median]])/25)*5) + AAMC_Raw_Data_for_FY22[[#This Row],[Median]]","v":232761.8},{"$f":"(((AAMC_Raw_Data_for_FY22[[#This Row],[75th]]-AAMC_Raw_Data_for_FY22[[#This Row],[Median]])/25)*10) + AAMC_Raw_Data_for_FY22[[#This Row],[Median]]","v":243323.6},{"$f":"(((AAMC_Raw_Data_for_FY22[[#This Row],[75th]]-AAMC_Raw_Data_for_FY22[[#This Row],[Median]])/25)*15) + AAMC_Raw_Data_for_FY22[[#This Row],[Median]]","v":253885.4},{"$f":"(((AAMC_Raw_Data_for_FY22[[#This Row],[75th]]-AAMC_Raw_Data_for_FY22[[#This Row],[Median]])/25)*20) + AAMC_Raw_Data_for_FY22[[#This Row],[Median]]","v":264447.2},275009,{"$f":"(((AAMC_Raw_Data_for_FY22[[#This Row],[75th]]-AAMC_Raw_Data_for_FY22[[#This Row],[Median]])/25)*30) + AAMC_Raw_Data_for_FY22[[#This Row],[Median]]","v":285570.8},{"$f":"(((AAMC_Raw_Data_for_FY22[[#This Row],[75th]]-AAMC_Raw_Data_for_FY22[[#This Row],[Median]])/25)*35) + AAMC_Raw_Data_for_FY22[[#This Row],[Median]]","v":296132.59999999998},{"$f":"(((AAMC_Raw_Data_for_FY22[[#This Row],[75th]]-AAMC_Raw_Data_for_FY22[[#This Row],[Median]])/25)*40) + AAMC_Raw_Data_for_FY22[[#This Row],[Median]]","v":306694.40000000002}]
[{"$f":"AAMC_Raw_Data_for_FY22[[#This Row],[Source]]&AAMC_Raw_Data_for_FY22[[#This Row],[Type]]&AAMC_Raw_Data_for_FY22[[#This Row],[School Subset]]&AAMC_Raw_Data_for_FY22[[#This Row],[Rank]]&AAMC_Raw_Data_for_FY22[[#This Row],[Degree]]&AAMC_Raw_Data_for_FY22[[#This Row],[Department / Specialty]]&\"L\"","v":"AAMCAcademicAllChiefPhDNeurologyL"},"Neurology",6,"AAMC","Academic","All","Chief","PhD","2021-2022",228313,{"$f":"(((AAMC_Raw_Data_for_FY22[[#This Row],[Median]]-AAMC_Raw_Data_for_FY22[[#This Row],[25th]])/25)*5) + AAMC_Raw_Data_for_FY22[[#This Row],[25th]]","v":242650.4},{"$f":"(((AAMC_Raw_Data_for_FY22[[#This Row],[Median]]-AAMC_Raw_Data_for_FY22[[#This Row],[25th]])/25)*10) + AAMC_Raw_Data_for_FY22[[#This Row],[25th]]","v":256987.8},{"$f":"(((AAMC_Raw_Data_for_FY22[[#This Row],[Median]]-AAMC_Raw_Data_for_FY22[[#This Row],[25th]])/25)*15) + AAMC_Raw_Data_for_FY22[[#This Row],[25th]]","v":271325.2},{"$f":"(((AAMC_Raw_Data_for_FY22[[#This Row],[Median]]-AAMC_Raw_Data_for_FY22[[#This Row],[25th]])/25)*20) + AAMC_Raw_Data_for_FY22[[#This Row],[25th]]","v":285662.59999999998},300000,{"$f":"(((AAMC_Raw_Data_for_FY22[[#This Row],[75th]]-AAMC_Raw_Data_for_FY22[[#This Row],[Median]])/25)*5) + AAMC_Raw_Data_for_FY22[[#This Row],[Median]]","v":303323.2},{"$f":"(((AAMC_Raw_Data_for_FY22[[#This Row],[75th]]-AAMC_Raw_Data_for_FY22[[#This Row],[Median]])/25)*10) + AAMC_Raw_Data_for_FY22[[#This Row],[Median]]","v":306646.40000000002},{"$f":"(((AAMC_Raw_Data_for_FY22[[#This Row],[75th]]-AAMC_Raw_Data_for_FY22[[#This Row],[Median]])/25)*15) + AAMC_Raw_Data_for_FY22[[#This Row],[Median]]","v":309969.59999999998},{"$f":"(((AAMC_Raw_Data_for_FY22[[#This Row],[75th]]-AAMC_Raw_Data_for_FY22[[#This Row],[Median]])/25)*20) + AAMC_Raw_Data_for_FY22[[#This Row],[Median]]","v":313292.79999999999},316616,{"$f":"(((AAMC_Raw_Data_for_FY22[[#This Row],[75th]]-AAMC_Raw_Data_for_FY22[[#This Row],[Median]])/25)*30) + AAMC_Raw_Data_for_FY22[[#This Row],[Median]]","v":319939.20000000001},{"$f":"(((AAMC_Raw_Data_for_FY22[[#This Row],[75th]]-AAMC_Raw_Data_for_FY22[[#This Row],[Median]])/25)*35) + AAMC_Raw_Data_for_FY22[[#This Row],[Median]]","v":323262.40000000002},{"$f":"(((AAMC_Raw_Data_for_FY22[[#This Row],[75th]]-AAMC_Raw_Data_for_FY22[[#This Row],[Median]])/25)*40) + AAMC_Raw_Data_for_FY22[[#This Row],[Median]]","v":326585.59999999998}]
[{"$f":"AAMC_Raw_Data_for_FY22[[#This Row],[Source]]&AAMC_Raw_Data_for_FY22[[#This Row],[Type]]&AAMC_Raw_Data_for_FY22[[#This Row],[School Subset]]&AAMC_Raw_Data_for_FY22[[#This Row],[Rank]]&AAMC_Raw_Data_for_FY22[[#This Row],[Degree]]&AAMC_Raw_Data_for_FY22[[#This Row],[Department / Specialty]]&\"L\"","v":"AAMCAcademicAllInstructorPhDOphthalmologyL"},"Ophthalmology",5,"AAMC","Academic","All","Instructor","PhD","2021-2022",82249,{"$f":"(((AAMC_Raw_Data_for_FY22[[#This Row],[Median]]-AAMC_Raw_Data_for_FY22[[#This Row],[25th]])/25)*5) + AAMC_Raw_Data_for_FY22[[#This Row],[25th]]","v":92311.8},{"$f":"(((AAMC_Raw_Data_for_FY22[[#This Row],[Median]]-AAMC_Raw_Data_for_FY22[[#This Row],[25th]])/25)*10) + AAMC_Raw_Data_for_FY22[[#This Row],[25th]]","v":102374.6},{"$f":"(((AAMC_Raw_Data_for_FY22[[#This Row],[Median]]-AAMC_Raw_Data_for_FY22[[#This Row],[25th]])/25)*15) + AAMC_Raw_Data_for_FY22[[#This Row],[25th]]","v":112437.4},{"$f":"(((AAMC_Raw_Data_for_FY22[[#This Row],[Median]]-AAMC_Raw_Data_for_FY22[[#This Row],[25th]])/25)*20) + AAMC_Raw_Data_for_FY22[[#This Row],[25th]]","v":122500.2},132563,{"$f":"(((AAMC_Raw_Data_for_FY22[[#This Row],[75th]]-AAMC_Raw_Data_for_FY22[[#This Row],[Median]])/25)*5) + AAMC_Raw_Data_for_FY22[[#This Row],[Median]]","v":139342.39999999999},{"$f":"(((AAMC_Raw_Data_for_FY22[[#This Row],[75th]]-AAMC_Raw_Data_for_FY22[[#This Row],[Median]])/25)*10) + AAMC_Raw_Data_for_FY22[[#This Row],[Median]]","v":146121.79999999999},{"$f":"(((AAMC_Raw_Data_for_FY22[[#This Row],[75th]]-AAMC_Raw_Data_for_FY22[[#This Row],[Median]])/25)*15) + AAMC_Raw_Data_for_FY22[[#This Row],[Median]]","v":152901.20000000001},{"$f":"(((AAMC_Raw_Data_for_FY22[[#This Row],[75th]]-AAMC_Raw_Data_for_FY22[[#This Row],[Median]])/25)*20) + AAMC_Raw_Data_for_FY22[[#This Row],[Median]]","v":159680.6},166460,{"$f":"(((AAMC_Raw_Data_for_FY22[[#This Row],[75th]]-AAMC_Raw_Data_for_FY22[[#This Row],[Median]])/25)*30) + AAMC_Raw_Data_for_FY22[[#This Row],[Median]]","v":173239.4},{"$f":"(((AAMC_Raw_Data_for_FY22[[#This Row],[75th]]-AAMC_Raw_Data_for_FY22[[#This Row],[Median]])/25)*35) + AAMC_Raw_Data_for_FY22[[#This Row],[Median]]","v":180018.8},{"$f":"(((AAMC_Raw_Data_for_FY22[[#This Row],[75th]]-AAMC_Raw_Data_for_FY22[[#This Row],[Median]])/25)*40) + AAMC_Raw_Data_for_FY22[[#This Row],[Median]]","v":186798.2}]
[{"$f":"AAMC_Raw_Data_for_FY22[[#This Row],[Source]]&AAMC_Raw_Data_for_FY22[[#This Row],[Type]]&AAMC_Raw_Data_for_FY22[[#This Row],[School Subset]]&AAMC_Raw_Data_for_FY22[[#This Row],[Rank]]&AAMC_Raw_Data_for_FY22[[#This Row],[Degree]]&AAMC_Raw_Data_for_FY22[[#This Row],[Department / Specialty]]&\"L\"","v":"AAMCAcademicAllAssistantPhDOphthalmologyL"},"Ophthalmology",4,"AAMC","Academic","All","Assistant","PhD","2021-2022",91712,{"$f":"(((AAMC_Raw_Data_for_FY22[[#This Row],[Median]]-AAMC_Raw_Data_for_FY22[[#This Row],[25th]])/25)*5) + AAMC_Raw_Data_for_FY22[[#This Row],[25th]]","v":96532},{"$f":"(((AAMC_Raw_Data_for_FY22[[#This Row],[Median]]-AAMC_Raw_Data_for_FY22[[#This Row],[25th]])/25)*10) + AAMC_Raw_Data_for_FY22[[#This Row],[25th]]","v":101352},{"$f":"(((AAMC_Raw_Data_for_FY22[[#This Row],[Median]]-AAMC_Raw_Data_for_FY22[[#This Row],[25th]])/25)*15) + AAMC_Raw_Data_for_FY22[[#This Row],[25th]]","v":106172},{"$f":"(((AAMC_Raw_Data_for_FY22[[#This Row],[Median]]-AAMC_Raw_Data_for_FY22[[#This Row],[25th]])/25)*20) + AAMC_Raw_Data_for_FY22[[#This Row],[25th]]","v":110992},115812,{"$f":"(((AAMC_Raw_Data_for_FY22[[#This Row],[75th]]-AAMC_Raw_Data_for_FY22[[#This Row],[Median]])/25)*5) + AAMC_Raw_Data_for_FY22[[#This Row],[Median]]","v":121114},{"$f":"(((AAMC_Raw_Data_for_FY22[[#This Row],[75th]]-AAMC_Raw_Data_for_FY22[[#This Row],[Median]])/25)*10) + AAMC_Raw_Data_for_FY22[[#This Row],[Median]]","v":126416},{"$f":"(((AAMC_Raw_Data_for_FY22[[#This Row],[75th]]-AAMC_Raw_Data_for_FY22[[#This Row],[Median]])/25)*15) + AAMC_Raw_Data_for_FY22[[#This Row],[Median]]","v":131718},{"$f":"(((AAMC_Raw_Data_for_FY22[[#This Row],[75th]]-AAMC_Raw_Data_for_FY22[[#This Row],[Median]])/25)*20) + AAMC_Raw_Data_for_FY22[[#This Row],[Median]]","v":137020},142322,{"$f":"(((AAMC_Raw_Data_for_FY22[[#This Row],[75th]]-AAMC_Raw_Data_for_FY22[[#This Row],[Median]])/25)*30) + AAMC_Raw_Data_for_FY22[[#This Row],[Median]]","v":147624},{"$f":"(((AAMC_Raw_Data_for_FY22[[#This Row],[75th]]-AAMC_Raw_Data_for_FY22[[#This Row],[Median]])/25)*35) + AAMC_Raw_Data_for_FY22[[#This Row],[Median]]","v":152926},{"$f":"(((AAMC_Raw_Data_for_FY22[[#This Row],[75th]]-AAMC_Raw_Data_for_FY22[[#This Row],[Median]])/25)*40) + AAMC_Raw_Data_for_FY22[[#This Row],[Median]]","v":158228}]
[{"$f":"AAMC_Raw_Data_for_FY22[[#This Row],[Source]]&AAMC_Raw_Data_for_FY22[[#This Row],[Type]]&AAMC_Raw_Data_for_FY22[[#This Row],[School Subset]]&AAMC_Raw_Data_for_FY22[[#This Row],[Rank]]&AAMC_Raw_Data_for_FY22[[#This Row],[Degree]]&AAMC_Raw_Data_for_FY22[[#This Row],[Department / Specialty]]&\"L\"","v":"AAMCAcademicAllAssociatePhDOphthalmologyL"},"Ophthalmology",3,"AAMC","Academic","All","Associate","PhD","2021-2022",121432,{"$f":"(((AAMC_Raw_Data_for_FY22[[#This Row],[Median]]-AAMC_Raw_Data_for_FY22[[#This Row],[25th]])/25)*5) + AAMC_Raw_Data_for_FY22[[#This Row],[25th]]","v":126562.4},{"$f":"(((AAMC_Raw_Data_for_FY22[[#This Row],[Median]]-AAMC_Raw_Data_for_FY22[[#This Row],[25th]])/25)*10) + AAMC_Raw_Data_for_FY22[[#This Row],[25th]]","v":131692.79999999999},{"$f":"(((AAMC_Raw_Data_for_FY22[[#This Row],[Median]]-AAMC_Raw_Data_for_FY22[[#This Row],[25th]])/25)*15) + AAMC_Raw_Data_for_FY22[[#This Row],[25th]]","v":136823.20000000001},{"$f":"(((AAMC_Raw_Data_for_FY22[[#This Row],[Median]]-AAMC_Raw_Data_for_FY22[[#This Row],[25th]])/25)*20) + AAMC_Raw_Data_for_FY22[[#This Row],[25th]]","v":141953.60000000001},147084,{"$f":"(((AAMC_Raw_Data_for_FY22[[#This Row],[75th]]-AAMC_Raw_Data_for_FY22[[#This Row],[Median]])/25)*5) + AAMC_Raw_Data_for_FY22[[#This Row],[Median]]","v":152277.4},{"$f":"(((AAMC_Raw_Data_for_FY22[[#This Row],[75th]]-AAMC_Raw_Data_for_FY22[[#This Row],[Median]])/25)*10) + AAMC_Raw_Data_for_FY22[[#This Row],[Median]]","v":157470.79999999999},{"$f":"(((AAMC_Raw_Data_for_FY22[[#This Row],[75th]]-AAMC_Raw_Data_for_FY22[[#This Row],[Median]])/25)*15) + AAMC_Raw_Data_for_FY22[[#This Row],[Median]]","v":162664.20000000001},{"$f":"(((AAMC_Raw_Data_for_FY22[[#This Row],[75th]]-AAMC_Raw_Data_for_FY22[[#This Row],[Median]])/25)*20) + AAMC_Raw_Data_for_FY22[[#This Row],[Median]]","v":167857.6},173051,{"$f":"(((AAMC_Raw_Data_for_FY22[[#This Row],[75th]]-AAMC_Raw_Data_for_FY22[[#This Row],[Median]])/25)*30) + AAMC_Raw_Data_for_FY22[[#This Row],[Median]]","v":178244.4},{"$f":"(((AAMC_Raw_Data_for_FY22[[#This Row],[75th]]-AAMC_Raw_Data_for_FY22[[#This Row],[Median]])/25)*35) + AAMC_Raw_Data_for_FY22[[#This Row],[Median]]","v":183437.8},{"$f":"(((AAMC_Raw_Data_for_FY22[[#This Row],[75th]]-AAMC_Raw_Data_for_FY22[[#This Row],[Median]])/25)*40) + AAMC_Raw_Data_for_FY22[[#This Row],[Median]]","v":188631.2}]
[{"$f":"AAMC_Raw_Data_for_FY22[[#This Row],[Source]]&AAMC_Raw_Data_for_FY22[[#This Row],[Type]]&AAMC_Raw_Data_for_FY22[[#This Row],[School Subset]]&AAMC_Raw_Data_for_FY22[[#This Row],[Rank]]&AAMC_Raw_Data_for_FY22[[#This Row],[Degree]]&AAMC_Raw_Data_for_FY22[[#This Row],[Department / Specialty]]&\"L\"","v":"AAMCAcademicAllProfessorPhDOphthalmologyL"},"Ophthalmology",2,"AAMC","Academic","All","Professor","PhD","2021-2022",181735,{"$f":"(((AAMC_Raw_Data_for_FY22[[#This Row],[Median]]-AAMC_Raw_Data_for_FY22[[#This Row],[25th]])/25)*5) + AAMC_Raw_Data_for_FY22[[#This Row],[25th]]","v":188198.2},{"$f":"(((AAMC_Raw_Data_for_FY22[[#This Row],[Median]]-AAMC_Raw_Data_for_FY22[[#This Row],[25th]])/25)*10) + AAMC_Raw_Data_for_FY22[[#This Row],[25th]]","v":194661.4},{"$f":"(((AAMC_Raw_Data_for_FY22[[#This Row],[Median]]-AAMC_Raw_Data_for_FY22[[#This Row],[25th]])/25)*15) + AAMC_Raw_Data_for_FY22[[#This Row],[25th]]","v":201124.6},{"$f":"(((AAMC_Raw_Data_for_FY22[[#This Row],[Median]]-AAMC_Raw_Data_for_FY22[[#This Row],[25th]])/25)*20) + AAMC_Raw_Data_for_FY22[[#This Row],[25th]]","v":207587.8},214051,{"$f":"(((AAMC_Raw_Data_for_FY22[[#This Row],[75th]]-AAMC_Raw_Data_for_FY22[[#This Row],[Median]])/25)*5) + AAMC_Raw_Data_for_FY22[[#This Row],[Median]]","v":223185.4},{"$f":"(((AAMC_Raw_Data_for_FY22[[#This Row],[75th]]-AAMC_Raw_Data_for_FY22[[#This Row],[Median]])/25)*10) + AAMC_Raw_Data_for_FY22[[#This Row],[Median]]","v":232319.8},{"$f":"(((AAMC_Raw_Data_for_FY22[[#This Row],[75th]]-AAMC_Raw_Data_for_FY22[[#This Row],[Median]])/25)*15) + AAMC_Raw_Data_for_FY22[[#This Row],[Median]]","v":241454.2},{"$f":"(((AAMC_Raw_Data_for_FY22[[#This Row],[75th]]-AAMC_Raw_Data_for_FY22[[#This Row],[Median]])/25)*20) + AAMC_Raw_Data_for_FY22[[#This Row],[Median]]","v":250588.6},259723,{"$f":"(((AAMC_Raw_Data_for_FY22[[#This Row],[75th]]-AAMC_Raw_Data_for_FY22[[#This Row],[Median]])/25)*30) + AAMC_Raw_Data_for_FY22[[#This Row],[Median]]","v":268857.40000000002},{"$f":"(((AAMC_Raw_Data_for_FY22[[#This Row],[75th]]-AAMC_Raw_Data_for_FY22[[#This Row],[Median]])/25)*35) + AAMC_Raw_Data_for_FY22[[#This Row],[Median]]","v":277991.8},{"$f":"(((AAMC_Raw_Data_for_FY22[[#This Row],[75th]]-AAMC_Raw_Data_for_FY22[[#This Row],[Median]])/25)*40) + AAMC_Raw_Data_for_FY22[[#This Row],[Median]]","v":287126.2}]
[{"$f":"AAMC_Raw_Data_for_FY22[[#This Row],[Source]]&AAMC_Raw_Data_for_FY22[[#This Row],[Type]]&AAMC_Raw_Data_for_FY22[[#This Row],[School Subset]]&AAMC_Raw_Data_for_FY22[[#This Row],[Rank]]&AAMC_Raw_Data_for_FY22[[#This Row],[Degree]]&AAMC_Raw_Data_for_FY22[[#This Row],[Department / Specialty]]&\"L\"","v":"AAMCAcademicAllChiefPhDOphthalmologyL"},"Ophthalmology",6,"AAMC","Academic","All","Chief","PhD","2021-2022",null,{"$f":"(((AAMC_Raw_Data_for_FY22[[#This Row],[Median]]-AAMC_Raw_Data_for_FY22[[#This Row],[25th]])/25)*5) + AAMC_Raw_Data_for_FY22[[#This Row],[25th]]","v":0},{"$f":"(((AAMC_Raw_Data_for_FY22[[#This Row],[Median]]-AAMC_Raw_Data_for_FY22[[#This Row],[25th]])/25)*10) + AAMC_Raw_Data_for_FY22[[#This Row],[25th]]","v":0},{"$f":"(((AAMC_Raw_Data_for_FY22[[#This Row],[Median]]-AAMC_Raw_Data_for_FY22[[#This Row],[25th]])/25)*15) + AAMC_Raw_Data_for_FY22[[#This Row],[25th]]","v":0},{"$f":"(((AAMC_Raw_Data_for_FY22[[#This Row],[Median]]-AAMC_Raw_Data_for_FY22[[#This Row],[25th]])/25)*20) + AAMC_Raw_Data_for_FY22[[#This Row],[25th]]","v":0},null,{"$f":"(((AAMC_Raw_Data_for_FY22[[#This Row],[75th]]-AAMC_Raw_Data_for_FY22[[#This Row],[Median]])/25)*5) + AAMC_Raw_Data_for_FY22[[#This Row],[Median]]","v":0},{"$f":"(((AAMC_Raw_Data_for_FY22[[#This Row],[75th]]-AAMC_Raw_Data_for_FY22[[#This Row],[Median]])/25)*10) + AAMC_Raw_Data_for_FY22[[#This Row],[Median]]","v":0},{"$f":"(((AAMC_Raw_Data_for_FY22[[#This Row],[75th]]-AAMC_Raw_Data_for_FY22[[#This Row],[Median]])/25)*15) + AAMC_Raw_Data_for_FY22[[#This Row],[Median]]","v":0},{"$f":"(((AAMC_Raw_Data_for_FY22[[#This Row],[75th]]-AAMC_Raw_Data_for_FY22[[#This Row],[Median]])/25)*20) + AAMC_Raw_Data_for_FY22[[#This Row],[Median]]","v":0},null,{"$f":"(((AAMC_Raw_Data_for_FY22[[#This Row],[75th]]-AAMC_Raw_Data_for_FY22[[#This Row],[Median]])/25)*30) + AAMC_Raw_Data_for_FY22[[#This Row],[Median]]","v":0},{"$f":"(((AAMC_Raw_Data_for_FY22[[#This Row],[75th]]-AAMC_Raw_Data_for_FY22[[#This Row],[Median]])/25)*35) + AAMC_Raw_Data_for_FY22[[#This Row],[Median]]","v":0},{"$f":"(((AAMC_Raw_Data_for_FY22[[#This Row],[75th]]-AAMC_Raw_Data_for_FY22[[#This Row],[Median]])/25)*40) + AAMC_Raw_Data_for_FY22[[#This Row],[Median]]","v":0}]
[{"$f":"AAMC_Raw_Data_for_FY22[[#This Row],[Source]]&AAMC_Raw_Data_for_FY22[[#This Row],[Type]]&AAMC_Raw_Data_for_FY22[[#This Row],[School Subset]]&AAMC_Raw_Data_for_FY22[[#This Row],[Rank]]&AAMC_Raw_Data_for_FY22[[#This Row],[Degree]]&AAMC_Raw_Data_for_FY22[[#This Row],[Department / Specialty]]&\"L\"","v":"AAMCAcademicAllInstructorPhDOtolaryngologyL"},"Otolaryngology",5,"AAMC","Academic","All","Instructor","PhD","2021-2022",75336,{"$f":"(((AAMC_Raw_Data_for_FY22[[#This Row],[Median]]-AAMC_Raw_Data_for_FY22[[#This Row],[25th]])/25)*5) + AAMC_Raw_Data_for_FY22[[#This Row],[25th]]","v":77368.800000000003},{"$f":"(((AAMC_Raw_Data_for_FY22[[#This Row],[Median]]-AAMC_Raw_Data_for_FY22[[#This Row],[25th]])/25)*10) + AAMC_Raw_Data_for_FY22[[#This Row],[25th]]","v":79401.600000000006},{"$f":"(((AAMC_Raw_Data_for_FY22[[#This Row],[Median]]-AAMC_Raw_Data_for_FY22[[#This Row],[25th]])/25)*15) + AAMC_Raw_Data_for_FY22[[#This Row],[25th]]","v":81434.399999999994},{"$f":"(((AAMC_Raw_Data_for_FY22[[#This Row],[Median]]-AAMC_Raw_Data_for_FY22[[#This Row],[25th]])/25)*20) + AAMC_Raw_Data_for_FY22[[#This Row],[25th]]","v":83467.199999999997},85500,{"$f":"(((AAMC_Raw_Data_for_FY22[[#This Row],[75th]]-AAMC_Raw_Data_for_FY22[[#This Row],[Median]])/25)*5) + AAMC_Raw_Data_for_FY22[[#This Row],[Median]]","v":86539.4},{"$f":"(((AAMC_Raw_Data_for_FY22[[#This Row],[75th]]-AAMC_Raw_Data_for_FY22[[#This Row],[Median]])/25)*10) + AAMC_Raw_Data_for_FY22[[#This Row],[Median]]","v":87578.8},{"$f":"(((AAMC_Raw_Data_for_FY22[[#This Row],[75th]]-AAMC_Raw_Data_for_FY22[[#This Row],[Median]])/25)*15) + AAMC_Raw_Data_for_FY22[[#This Row],[Median]]","v":88618.2},{"$f":"(((AAMC_Raw_Data_for_FY22[[#This Row],[75th]]-AAMC_Raw_Data_for_FY22[[#This Row],[Median]])/25)*20) + AAMC_Raw_Data_for_FY22[[#This Row],[Median]]","v":89657.600000000006},90697,{"$f":"(((AAMC_Raw_Data_for_FY22[[#This Row],[75th]]-AAMC_Raw_Data_for_FY22[[#This Row],[Median]])/25)*30) + AAMC_Raw_Data_for_FY22[[#This Row],[Median]]","v":91736.4},{"$f":"(((AAMC_Raw_Data_for_FY22[[#This Row],[75th]]-AAMC_Raw_Data_for_FY22[[#This Row],[Median]])/25)*35) + AAMC_Raw_Data_for_FY22[[#This Row],[Median]]","v":92775.8},{"$f":"(((AAMC_Raw_Data_for_FY22[[#This Row],[75th]]-AAMC_Raw_Data_for_FY22[[#This Row],[Median]])/25)*40) + AAMC_Raw_Data_for_FY22[[#This Row],[Median]]","v":93815.2}]
[{"$f":"AAMC_Raw_Data_for_FY22[[#This Row],[Source]]&AAMC_Raw_Data_for_FY22[[#This Row],[Type]]&AAMC_Raw_Data_for_FY22[[#This Row],[School Subset]]&AAMC_Raw_Data_for_FY22[[#This Row],[Rank]]&AAMC_Raw_Data_for_FY22[[#This Row],[Degree]]&AAMC_Raw_Data_for_FY22[[#This Row],[Department / Specialty]]&\"L\"","v":"AAMCAcademicAllAssistantPhDOtolaryngologyL"},"Otolaryngology",4,"AAMC","Academic","All","Assistant","PhD","2021-2022",93607,{"$f":"(((AAMC_Raw_Data_for_FY22[[#This Row],[Median]]-AAMC_Raw_Data_for_FY22[[#This Row],[25th]])/25)*5) + AAMC_Raw_Data_for_FY22[[#This Row],[25th]]","v":95969},{"$f":"(((AAMC_Raw_Data_for_FY22[[#This Row],[Median]]-AAMC_Raw_Data_for_FY22[[#This Row],[25th]])/25)*10) + AAMC_Raw_Data_for_FY22[[#This Row],[25th]]","v":98331},{"$f":"(((AAMC_Raw_Data_for_FY22[[#This Row],[Median]]-AAMC_Raw_Data_for_FY22[[#This Row],[25th]])/25)*15) + AAMC_Raw_Data_for_FY22[[#This Row],[25th]]","v":100693},{"$f":"(((AAMC_Raw_Data_for_FY22[[#This Row],[Median]]-AAMC_Raw_Data_for_FY22[[#This Row],[25th]])/25)*20) + AAMC_Raw_Data_for_FY22[[#This Row],[25th]]","v":103055},105417,{"$f":"(((AAMC_Raw_Data_for_FY22[[#This Row],[75th]]-AAMC_Raw_Data_for_FY22[[#This Row],[Median]])/25)*5) + AAMC_Raw_Data_for_FY22[[#This Row],[Median]]","v":109695},{"$f":"(((AAMC_Raw_Data_for_FY22[[#This Row],[75th]]-AAMC_Raw_Data_for_FY22[[#This Row],[Median]])/25)*10) + AAMC_Raw_Data_for_FY22[[#This Row],[Median]]","v":113973},{"$f":"(((AAMC_Raw_Data_for_FY22[[#This Row],[75th]]-AAMC_Raw_Data_for_FY22[[#This Row],[Median]])/25)*15) + AAMC_Raw_Data_for_FY22[[#This Row],[Median]]","v":118251},{"$f":"(((AAMC_Raw_Data_for_FY22[[#This Row],[75th]]-AAMC_Raw_Data_for_FY22[[#This Row],[Median]])/25)*20) + AAMC_Raw_Data_for_FY22[[#This Row],[Median]]","v":122529},126807,{"$f":"(((AAMC_Raw_Data_for_FY22[[#This Row],[75th]]-AAMC_Raw_Data_for_FY22[[#This Row],[Median]])/25)*30) + AAMC_Raw_Data_for_FY22[[#This Row],[Median]]","v":131085},{"$f":"(((AAMC_Raw_Data_for_FY22[[#This Row],[75th]]-AAMC_Raw_Data_for_FY22[[#This Row],[Median]])/25)*35) + AAMC_Raw_Data_for_FY22[[#This Row],[Median]]","v":135363},{"$f":"(((AAMC_Raw_Data_for_FY22[[#This Row],[75th]]-AAMC_Raw_Data_for_FY22[[#This Row],[Median]])/25)*40) + AAMC_Raw_Data_for_FY22[[#This Row],[Median]]","v":139641}]
[{"$f":"AAMC_Raw_Data_for_FY22[[#This Row],[Source]]&AAMC_Raw_Data_for_FY22[[#This Row],[Type]]&AAMC_Raw_Data_for_FY22[[#This Row],[School Subset]]&AAMC_Raw_Data_for_FY22[[#This Row],[Rank]]&AAMC_Raw_Data_for_FY22[[#This Row],[Degree]]&AAMC_Raw_Data_for_FY22[[#This Row],[Department / Specialty]]&\"L\"","v":"AAMCAcademicAllAssociatePhDOtolaryngologyL"},"Otolaryngology",3,"AAMC","Academic","All","Associate","PhD","2021-2022",122829,{"$f":"(((AAMC_Raw_Data_for_FY22[[#This Row],[Median]]-AAMC_Raw_Data_for_FY22[[#This Row],[25th]])/25)*5) + AAMC_Raw_Data_for_FY22[[#This Row],[25th]]","v":125307.4},{"$f":"(((AAMC_Raw_Data_for_FY22[[#This Row],[Median]]-AAMC_Raw_Data_for_FY22[[#This Row],[25th]])/25)*10) + AAMC_Raw_Data_for_FY22[[#This Row],[25th]]","v":127785.8},{"$f":"(((AAMC_Raw_Data_for_FY22[[#This Row],[Median]]-AAMC_Raw_Data_for_FY22[[#This Row],[25th]])/25)*15) + AAMC_Raw_Data_for_FY22[[#This Row],[25th]]","v":130264.2},{"$f":"(((AAMC_Raw_Data_for_FY22[[#This Row],[Median]]-AAMC_Raw_Data_for_FY22[[#This Row],[25th]])/25)*20) + AAMC_Raw_Data_for_FY22[[#This Row],[25th]]","v":132742.6},135221,{"$f":"(((AAMC_Raw_Data_for_FY22[[#This Row],[75th]]-AAMC_Raw_Data_for_FY22[[#This Row],[Median]])/25)*5) + AAMC_Raw_Data_for_FY22[[#This Row],[Median]]","v":138687},{"$f":"(((AAMC_Raw_Data_for_FY22[[#This Row],[75th]]-AAMC_Raw_Data_for_FY22[[#This Row],[Median]])/25)*10) + AAMC_Raw_Data_for_FY22[[#This Row],[Median]]","v":142153},{"$f":"(((AAMC_Raw_Data_for_FY22[[#This Row],[75th]]-AAMC_Raw_Data_for_FY22[[#This Row],[Median]])/25)*15) + AAMC_Raw_Data_for_FY22[[#This Row],[Median]]","v":145619},{"$f":"(((AAMC_Raw_Data_for_FY22[[#This Row],[75th]]-AAMC_Raw_Data_for_FY22[[#This Row],[Median]])/25)*20) + AAMC_Raw_Data_for_FY22[[#This Row],[Median]]","v":149085},152551,{"$f":"(((AAMC_Raw_Data_for_FY22[[#This Row],[75th]]-AAMC_Raw_Data_for_FY22[[#This Row],[Median]])/25)*30) + AAMC_Raw_Data_for_FY22[[#This Row],[Median]]","v":156017},{"$f":"(((AAMC_Raw_Data_for_FY22[[#This Row],[75th]]-AAMC_Raw_Data_for_FY22[[#This Row],[Median]])/25)*35) + AAMC_Raw_Data_for_FY22[[#This Row],[Median]]","v":159483},{"$f":"(((AAMC_Raw_Data_for_FY22[[#This Row],[75th]]-AAMC_Raw_Data_for_FY22[[#This Row],[Median]])/25)*40) + AAMC_Raw_Data_for_FY22[[#This Row],[Median]]","v":162949}]
[{"$f":"AAMC_Raw_Data_for_FY22[[#This Row],[Source]]&AAMC_Raw_Data_for_FY22[[#This Row],[Type]]&AAMC_Raw_Data_for_FY22[[#This Row],[School Subset]]&AAMC_Raw_Data_for_FY22[[#This Row],[Rank]]&AAMC_Raw_Data_for_FY22[[#This Row],[Degree]]&AAMC_Raw_Data_for_FY22[[#This Row],[Department / Specialty]]&\"L\"","v":"AAMCAcademicAllProfessorPhDOtolaryngologyL"},"Otolaryngology",2,"AAMC","Academic","All","Professor","PhD","2021-2022",169601,{"$f":"(((AAMC_Raw_Data_for_FY22[[#This Row],[Median]]-AAMC_Raw_Data_for_FY22[[#This Row],[25th]])/25)*5) + AAMC_Raw_Data_for_FY22[[#This Row],[25th]]","v":175540.8},{"$f":"(((AAMC_Raw_Data_for_FY22[[#This Row],[Median]]-AAMC_Raw_Data_for_FY22[[#This Row],[25th]])/25)*10) + AAMC_Raw_Data_for_FY22[[#This Row],[25th]]","v":181480.6},{"$f":"(((AAMC_Raw_Data_for_FY22[[#This Row],[Median]]-AAMC_Raw_Data_for_FY22[[#This Row],[25th]])/25)*15) + AAMC_Raw_Data_for_FY22[[#This Row],[25th]]","v":187420.4},{"$f":"(((AAMC_Raw_Data_for_FY22[[#This Row],[Median]]-AAMC_Raw_Data_for_FY22[[#This Row],[25th]])/25)*20) + AAMC_Raw_Data_for_FY22[[#This Row],[25th]]","v":193360.2},199300,{"$f":"(((AAMC_Raw_Data_for_FY22[[#This Row],[75th]]-AAMC_Raw_Data_for_FY22[[#This Row],[Median]])/25)*5) + AAMC_Raw_Data_for_FY22[[#This Row],[Median]]","v":204632.6},{"$f":"(((AAMC_Raw_Data_for_FY22[[#This Row],[75th]]-AAMC_Raw_Data_for_FY22[[#This Row],[Median]])/25)*10) + AAMC_Raw_Data_for_FY22[[#This Row],[Median]]","v":209965.2},{"$f":"(((AAMC_Raw_Data_for_FY22[[#This Row],[75th]]-AAMC_Raw_Data_for_FY22[[#This Row],[Median]])/25)*15) + AAMC_Raw_Data_for_FY22[[#This Row],[Median]]","v":215297.8},{"$f":"(((AAMC_Raw_Data_for_FY22[[#This Row],[75th]]-AAMC_Raw_Data_for_FY22[[#This Row],[Median]])/25)*20) + AAMC_Raw_Data_for_FY22[[#This Row],[Median]]","v":220630.39999999999},225963,{"$f":"(((AAMC_Raw_Data_for_FY22[[#This Row],[75th]]-AAMC_Raw_Data_for_FY22[[#This Row],[Median]])/25)*30) + AAMC_Raw_Data_for_FY22[[#This Row],[Median]]","v":231295.6},{"$f":"(((AAMC_Raw_Data_for_FY22[[#This Row],[75th]]-AAMC_Raw_Data_for_FY22[[#This Row],[Median]])/25)*35) + AAMC_Raw_Data_for_FY22[[#This Row],[Median]]","v":236628.2},{"$f":"(((AAMC_Raw_Data_for_FY22[[#This Row],[75th]]-AAMC_Raw_Data_for_FY22[[#This Row],[Median]])/25)*40) + AAMC_Raw_Data_for_FY22[[#This Row],[Median]]","v":241960.8}]
[{"$f":"AAMC_Raw_Data_for_FY22[[#This Row],[Source]]&AAMC_Raw_Data_for_FY22[[#This Row],[Type]]&AAMC_Raw_Data_for_FY22[[#This Row],[School Subset]]&AAMC_Raw_Data_for_FY22[[#This Row],[Rank]]&AAMC_Raw_Data_for_FY22[[#This Row],[Degree]]&AAMC_Raw_Data_for_FY22[[#This Row],[Department / Specialty]]&\"L\"","v":"AAMCAcademicAllChiefPhDOtolaryngologyL"},"Otolaryngology",6,"AAMC","Academic","All","Chief","PhD","2021-2022",null,{"$f":"(((AAMC_Raw_Data_for_FY22[[#This Row],[Median]]-AAMC_Raw_Data_for_FY22[[#This Row],[25th]])/25)*5) + AAMC_Raw_Data_for_FY22[[#This Row],[25th]]","v":0},{"$f":"(((AAMC_Raw_Data_for_FY22[[#This Row],[Median]]-AAMC_Raw_Data_for_FY22[[#This Row],[25th]])/25)*10) + AAMC_Raw_Data_for_FY22[[#This Row],[25th]]","v":0},{"$f":"(((AAMC_Raw_Data_for_FY22[[#This Row],[Median]]-AAMC_Raw_Data_for_FY22[[#This Row],[25th]])/25)*15) + AAMC_Raw_Data_for_FY22[[#This Row],[25th]]","v":0},{"$f":"(((AAMC_Raw_Data_for_FY22[[#This Row],[Median]]-AAMC_Raw_Data_for_FY22[[#This Row],[25th]])/25)*20) + AAMC_Raw_Data_for_FY22[[#This Row],[25th]]","v":0},null,{"$f":"(((AAMC_Raw_Data_for_FY22[[#This Row],[75th]]-AAMC_Raw_Data_for_FY22[[#This Row],[Median]])/25)*5) + AAMC_Raw_Data_for_FY22[[#This Row],[Median]]","v":0},{"$f":"(((AAMC_Raw_Data_for_FY22[[#This Row],[75th]]-AAMC_Raw_Data_for_FY22[[#This Row],[Median]])/25)*10) + AAMC_Raw_Data_for_FY22[[#This Row],[Median]]","v":0},{"$f":"(((AAMC_Raw_Data_for_FY22[[#This Row],[75th]]-AAMC_Raw_Data_for_FY22[[#This Row],[Median]])/25)*15) + AAMC_Raw_Data_for_FY22[[#This Row],[Median]]","v":0},{"$f":"(((AAMC_Raw_Data_for_FY22[[#This Row],[75th]]-AAMC_Raw_Data_for_FY22[[#This Row],[Median]])/25)*20) + AAMC_Raw_Data_for_FY22[[#This Row],[Median]]","v":0},null,{"$f":"(((AAMC_Raw_Data_for_FY22[[#This Row],[75th]]-AAMC_Raw_Data_for_FY22[[#This Row],[Median]])/25)*30) + AAMC_Raw_Data_for_FY22[[#This Row],[Median]]","v":0},{"$f":"(((AAMC_Raw_Data_for_FY22[[#This Row],[75th]]-AAMC_Raw_Data_for_FY22[[#This Row],[Median]])/25)*35) + AAMC_Raw_Data_for_FY22[[#This Row],[Median]]","v":0},{"$f":"(((AAMC_Raw_Data_for_FY22[[#This Row],[75th]]-AAMC_Raw_Data_for_FY22[[#This Row],[Median]])/25)*40) + AAMC_Raw_Data_for_FY22[[#This Row],[Median]]","v":0}]
[{"$f":"AAMC_Raw_Data_for_FY22[[#This Row],[Source]]&AAMC_Raw_Data_for_FY22[[#This Row],[Type]]&AAMC_Raw_Data_for_FY22[[#This Row],[School Subset]]&AAMC_Raw_Data_for_FY22[[#This Row],[Rank]]&AAMC_Raw_Data_for_FY22[[#This Row],[Degree]]&AAMC_Raw_Data_for_FY22[[#This Row],[Department / Specialty]]&\"L\"","v":"AAMCAcademicAllChairPhDOtolaryngologyL"},"Otolaryngology",1,"AAMC","Academic","All","Chair","PhD","2021-2022",null,{"$f":"(((AAMC_Raw_Data_for_FY22[[#This Row],[Median]]-AAMC_Raw_Data_for_FY22[[#This Row],[25th]])/25)*5) + AAMC_Raw_Data_for_FY22[[#This Row],[25th]]","v":0},{"$f":"(((AAMC_Raw_Data_for_FY22[[#This Row],[Median]]-AAMC_Raw_Data_for_FY22[[#This Row],[25th]])/25)*10) + AAMC_Raw_Data_for_FY22[[#This Row],[25th]]","v":0},{"$f":"(((AAMC_Raw_Data_for_FY22[[#This Row],[Median]]-AAMC_Raw_Data_for_FY22[[#This Row],[25th]])/25)*15) + AAMC_Raw_Data_for_FY22[[#This Row],[25th]]","v":0},{"$f":"(((AAMC_Raw_Data_for_FY22[[#This Row],[Median]]-AAMC_Raw_Data_for_FY22[[#This Row],[25th]])/25)*20) + AAMC_Raw_Data_for_FY22[[#This Row],[25th]]","v":0},null,{"$f":"(((AAMC_Raw_Data_for_FY22[[#This Row],[75th]]-AAMC_Raw_Data_for_FY22[[#This Row],[Median]])/25)*5) + AAMC_Raw_Data_for_FY22[[#This Row],[Median]]","v":0},{"$f":"(((AAMC_Raw_Data_for_FY22[[#This Row],[75th]]-AAMC_Raw_Data_for_FY22[[#This Row],[Median]])/25)*10) + AAMC_Raw_Data_for_FY22[[#This Row],[Median]]","v":0},{"$f":"(((AAMC_Raw_Data_for_FY22[[#This Row],[75th]]-AAMC_Raw_Data_for_FY22[[#This Row],[Median]])/25)*15) + AAMC_Raw_Data_for_FY22[[#This Row],[Median]]","v":0},{"$f":"(((AAMC_Raw_Data_for_FY22[[#This Row],[75th]]-AAMC_Raw_Data_for_FY22[[#This Row],[Median]])/25)*20) + AAMC_Raw_Data_for_FY22[[#This Row],[Median]]","v":0},null,{"$f":"(((AAMC_Raw_Data_for_FY22[[#This Row],[75th]]-AAMC_Raw_Data_for_FY22[[#This Row],[Median]])/25)*30) + AAMC_Raw_Data_for_FY22[[#This Row],[Median]]","v":0},{"$f":"(((AAMC_Raw_Data_for_FY22[[#This Row],[75th]]-AAMC_Raw_Data_for_FY22[[#This Row],[Median]])/25)*35) + AAMC_Raw_Data_for_FY22[[#This Row],[Median]]","v":0},{"$f":"(((AAMC_Raw_Data_for_FY22[[#This Row],[75th]]-AAMC_Raw_Data_for_FY22[[#This Row],[Median]])/25)*40) + AAMC_Raw_Data_for_FY22[[#This Row],[Median]]","v":0}]
[{"$f":"AAMC_Raw_Data_for_FY22[[#This Row],[Source]]&AAMC_Raw_Data_for_FY22[[#This Row],[Type]]&AAMC_Raw_Data_for_FY22[[#This Row],[School Subset]]&AAMC_Raw_Data_for_FY22[[#This Row],[Rank]]&AAMC_Raw_Data_for_FY22[[#This Row],[Degree]]&AAMC_Raw_Data_for_FY22[[#This Row],[Department / Specialty]]&\"L\"","v":"AAMCAcademicAllInstructorPhDPhysical Medicine & RehabilitationL"},"Physical Medicine & Rehabilitation",5,"AAMC","Academic","All","Instructor","PhD","2021-2022",82662,{"$f":"(((AAMC_Raw_Data_for_FY22[[#This Row],[Median]]-AAMC_Raw_Data_for_FY22[[#This Row],[25th]])/25)*5) + AAMC_Raw_Data_for_FY22[[#This Row],[25th]]","v":85244.800000000003},{"$f":"(((AAMC_Raw_Data_for_FY22[[#This Row],[Median]]-AAMC_Raw_Data_for_FY22[[#This Row],[25th]])/25)*10) + AAMC_Raw_Data_for_FY22[[#This Row],[25th]]","v":87827.6},{"$f":"(((AAMC_Raw_Data_for_FY22[[#This Row],[Median]]-AAMC_Raw_Data_for_FY22[[#This Row],[25th]])/25)*15) + AAMC_Raw_Data_for_FY22[[#This Row],[25th]]","v":90410.4},{"$f":"(((AAMC_Raw_Data_for_FY22[[#This Row],[Median]]-AAMC_Raw_Data_for_FY22[[#This Row],[25th]])/25)*20) + AAMC_Raw_Data_for_FY22[[#This Row],[25th]]","v":92993.2},95576,{"$f":"(((AAMC_Raw_Data_for_FY22[[#This Row],[75th]]-AAMC_Raw_Data_for_FY22[[#This Row],[Median]])/25)*5) + AAMC_Raw_Data_for_FY22[[#This Row],[Median]]","v":99513.4},{"$f":"(((AAMC_Raw_Data_for_FY22[[#This Row],[75th]]-AAMC_Raw_Data_for_FY22[[#This Row],[Median]])/25)*10) + AAMC_Raw_Data_for_FY22[[#This Row],[Median]]","v":103450.8},{"$f":"(((AAMC_Raw_Data_for_FY22[[#This Row],[75th]]-AAMC_Raw_Data_for_FY22[[#This Row],[Median]])/25)*15) + AAMC_Raw_Data_for_FY22[[#This Row],[Median]]","v":107388.2},{"$f":"(((AAMC_Raw_Data_for_FY22[[#This Row],[75th]]-AAMC_Raw_Data_for_FY22[[#This Row],[Median]])/25)*20) + AAMC_Raw_Data_for_FY22[[#This Row],[Median]]","v":111325.6},115263,{"$f":"(((AAMC_Raw_Data_for_FY22[[#This Row],[75th]]-AAMC_Raw_Data_for_FY22[[#This Row],[Median]])/25)*30) + AAMC_Raw_Data_for_FY22[[#This Row],[Median]]","v":119200.4},{"$f":"(((AAMC_Raw_Data_for_FY22[[#This Row],[75th]]-AAMC_Raw_Data_for_FY22[[#This Row],[Median]])/25)*35) + AAMC_Raw_Data_for_FY22[[#This Row],[Median]]","v":123137.8},{"$f":"(((AAMC_Raw_Data_for_FY22[[#This Row],[75th]]-AAMC_Raw_Data_for_FY22[[#This Row],[Median]])/25)*40) + AAMC_Raw_Data_for_FY22[[#This Row],[Median]]","v":127075.2}]
[{"$f":"AAMC_Raw_Data_for_FY22[[#This Row],[Source]]&AAMC_Raw_Data_for_FY22[[#This Row],[Type]]&AAMC_Raw_Data_for_FY22[[#This Row],[School Subset]]&AAMC_Raw_Data_for_FY22[[#This Row],[Rank]]&AAMC_Raw_Data_for_FY22[[#This Row],[Degree]]&AAMC_Raw_Data_for_FY22[[#This Row],[Department / Specialty]]&\"L\"","v":"AAMCAcademicAllAssistantPhDPhysical Medicine & RehabilitationL"},"Physical Medicine & Rehabilitation",4,"AAMC","Academic","All","Assistant","PhD","2021-2022",102748,{"$f":"(((AAMC_Raw_Data_for_FY22[[#This Row],[Median]]-AAMC_Raw_Data_for_FY22[[#This Row],[25th]])/25)*5) + AAMC_Raw_Data_for_FY22[[#This Row],[25th]]","v":104598.39999999999},{"$f":"(((AAMC_Raw_Data_for_FY22[[#This Row],[Median]]-AAMC_Raw_Data_for_FY22[[#This Row],[25th]])/25)*10) + AAMC_Raw_Data_for_FY22[[#This Row],[25th]]","v":106448.8},{"$f":"(((AAMC_Raw_Data_for_FY22[[#This Row],[Median]]-AAMC_Raw_Data_for_FY22[[#This Row],[25th]])/25)*15) + AAMC_Raw_Data_for_FY22[[#This Row],[25th]]","v":108299.2},{"$f":"(((AAMC_Raw_Data_for_FY22[[#This Row],[Median]]-AAMC_Raw_Data_for_FY22[[#This Row],[25th]])/25)*20) + AAMC_Raw_Data_for_FY22[[#This Row],[25th]]","v":110149.6},112000,{"$f":"(((AAMC_Raw_Data_for_FY22[[#This Row],[75th]]-AAMC_Raw_Data_for_FY22[[#This Row],[Median]])/25)*5) + AAMC_Raw_Data_for_FY22[[#This Row],[Median]]","v":114498},{"$f":"(((AAMC_Raw_Data_for_FY22[[#This Row],[75th]]-AAMC_Raw_Data_for_FY22[[#This Row],[Median]])/25)*10) + AAMC_Raw_Data_for_FY22[[#This Row],[Median]]","v":116996},{"$f":"(((AAMC_Raw_Data_for_FY22[[#This Row],[75th]]-AAMC_Raw_Data_for_FY22[[#This Row],[Median]])/25)*15) + AAMC_Raw_Data_for_FY22[[#This Row],[Median]]","v":119494},{"$f":"(((AAMC_Raw_Data_for_FY22[[#This Row],[75th]]-AAMC_Raw_Data_for_FY22[[#This Row],[Median]])/25)*20) + AAMC_Raw_Data_for_FY22[[#This Row],[Median]]","v":121992},124490,{"$f":"(((AAMC_Raw_Data_for_FY22[[#This Row],[75th]]-AAMC_Raw_Data_for_FY22[[#This Row],[Median]])/25)*30) + AAMC_Raw_Data_for_FY22[[#This Row],[Median]]","v":126988},{"$f":"(((AAMC_Raw_Data_for_FY22[[#This Row],[75th]]-AAMC_Raw_Data_for_FY22[[#This Row],[Median]])/25)*35) + AAMC_Raw_Data_for_FY22[[#This Row],[Median]]","v":129486},{"$f":"(((AAMC_Raw_Data_for_FY22[[#This Row],[75th]]-AAMC_Raw_Data_for_FY22[[#This Row],[Median]])/25)*40) + AAMC_Raw_Data_for_FY22[[#This Row],[Median]]","v":131984}]
[{"$f":"AAMC_Raw_Data_for_FY22[[#This Row],[Source]]&AAMC_Raw_Data_for_FY22[[#This Row],[Type]]&AAMC_Raw_Data_for_FY22[[#This Row],[School Subset]]&AAMC_Raw_Data_for_FY22[[#This Row],[Rank]]&AAMC_Raw_Data_for_FY22[[#This Row],[Degree]]&AAMC_Raw_Data_for_FY22[[#This Row],[Department / Specialty]]&\"L\"","v":"AAMCAcademicAllAssociatePhDPhysical Medicine & RehabilitationL"},"Physical Medicine & Rehabilitation",3,"AAMC","Academic","All","Associate","PhD","2021-2022",117084,{"$f":"(((AAMC_Raw_Data_for_FY22[[#This Row],[Median]]-AAMC_Raw_Data_for_FY22[[#This Row],[25th]])/25)*5) + AAMC_Raw_Data_for_FY22[[#This Row],[25th]]","v":119549.8},{"$f":"(((AAMC_Raw_Data_for_FY22[[#This Row],[Median]]-AAMC_Raw_Data_for_FY22[[#This Row],[25th]])/25)*10) + AAMC_Raw_Data_for_FY22[[#This Row],[25th]]","v":122015.6},{"$f":"(((AAMC_Raw_Data_for_FY22[[#This Row],[Median]]-AAMC_Raw_Data_for_FY22[[#This Row],[25th]])/25)*15) + AAMC_Raw_Data_for_FY22[[#This Row],[25th]]","v":124481.4},{"$f":"(((AAMC_Raw_Data_for_FY22[[#This Row],[Median]]-AAMC_Raw_Data_for_FY22[[#This Row],[25th]])/25)*20) + AAMC_Raw_Data_for_FY22[[#This Row],[25th]]","v":126947.2},129413,{"$f":"(((AAMC_Raw_Data_for_FY22[[#This Row],[75th]]-AAMC_Raw_Data_for_FY22[[#This Row],[Median]])/25)*5) + AAMC_Raw_Data_for_FY22[[#This Row],[Median]]","v":135430.39999999999},{"$f":"(((AAMC_Raw_Data_for_FY22[[#This Row],[75th]]-AAMC_Raw_Data_for_FY22[[#This Row],[Median]])/25)*10) + AAMC_Raw_Data_for_FY22[[#This Row],[Median]]","v":141447.79999999999},{"$f":"(((AAMC_Raw_Data_for_FY22[[#This Row],[75th]]-AAMC_Raw_Data_for_FY22[[#This Row],[Median]])/25)*15) + AAMC_Raw_Data_for_FY22[[#This Row],[Median]]","v":147465.20000000001},{"$f":"(((AAMC_Raw_Data_for_FY22[[#This Row],[75th]]-AAMC_Raw_Data_for_FY22[[#This Row],[Median]])/25)*20) + AAMC_Raw_Data_for_FY22[[#This Row],[Median]]","v":153482.6},159500,{"$f":"(((AAMC_Raw_Data_for_FY22[[#This Row],[75th]]-AAMC_Raw_Data_for_FY22[[#This Row],[Median]])/25)*30) + AAMC_Raw_Data_for_FY22[[#This Row],[Median]]","v":165517.4},{"$f":"(((AAMC_Raw_Data_for_FY22[[#This Row],[75th]]-AAMC_Raw_Data_for_FY22[[#This Row],[Median]])/25)*35) + AAMC_Raw_Data_for_FY22[[#This Row],[Median]]","v":171534.8},{"$f":"(((AAMC_Raw_Data_for_FY22[[#This Row],[75th]]-AAMC_Raw_Data_for_FY22[[#This Row],[Median]])/25)*40) + AAMC_Raw_Data_for_FY22[[#This Row],[Median]]","v":177552.2}]
[{"$f":"AAMC_Raw_Data_for_FY22[[#This Row],[Source]]&AAMC_Raw_Data_for_FY22[[#This Row],[Type]]&AAMC_Raw_Data_for_FY22[[#This Row],[School Subset]]&AAMC_Raw_Data_for_FY22[[#This Row],[Rank]]&AAMC_Raw_Data_for_FY22[[#This Row],[Degree]]&AAMC_Raw_Data_for_FY22[[#This Row],[Department / Specialty]]&\"L\"","v":"AAMCAcademicAllProfessorPhDPhysical Medicine & RehabilitationL"},"Physical Medicine & Rehabilitation",2,"AAMC","Academic","All","Professor","PhD","2021-2022",148436,{"$f":"(((AAMC_Raw_Data_for_FY22[[#This Row],[Median]]-AAMC_Raw_Data_for_FY22[[#This Row],[25th]])/25)*5) + AAMC_Raw_Data_for_FY22[[#This Row],[25th]]","v":155421.4},{"$f":"(((AAMC_Raw_Data_for_FY22[[#This Row],[Median]]-AAMC_Raw_Data_for_FY22[[#This Row],[25th]])/25)*10) + AAMC_Raw_Data_for_FY22[[#This Row],[25th]]","v":162406.79999999999},{"$f":"(((AAMC_Raw_Data_for_FY22[[#This Row],[Median]]-AAMC_Raw_Data_for_FY22[[#This Row],[25th]])/25)*15) + AAMC_Raw_Data_for_FY22[[#This Row],[25th]]","v":169392.2},{"$f":"(((AAMC_Raw_Data_for_FY22[[#This Row],[Median]]-AAMC_Raw_Data_for_FY22[[#This Row],[25th]])/25)*20) + AAMC_Raw_Data_for_FY22[[#This Row],[25th]]","v":176377.60000000001},183363,{"$f":"(((AAMC_Raw_Data_for_FY22[[#This Row],[75th]]-AAMC_Raw_Data_for_FY22[[#This Row],[Median]])/25)*5) + AAMC_Raw_Data_for_FY22[[#This Row],[Median]]","v":190784.4},{"$f":"(((AAMC_Raw_Data_for_FY22[[#This Row],[75th]]-AAMC_Raw_Data_for_FY22[[#This Row],[Median]])/25)*10) + AAMC_Raw_Data_for_FY22[[#This Row],[Median]]","v":198205.8},{"$f":"(((AAMC_Raw_Data_for_FY22[[#This Row],[75th]]-AAMC_Raw_Data_for_FY22[[#This Row],[Median]])/25)*15) + AAMC_Raw_Data_for_FY22[[#This Row],[Median]]","v":205627.2},{"$f":"(((AAMC_Raw_Data_for_FY22[[#This Row],[75th]]-AAMC_Raw_Data_for_FY22[[#This Row],[Median]])/25)*20) + AAMC_Raw_Data_for_FY22[[#This Row],[Median]]","v":213048.6},220470,{"$f":"(((AAMC_Raw_Data_for_FY22[[#This Row],[75th]]-AAMC_Raw_Data_for_FY22[[#This Row],[Median]])/25)*30) + AAMC_Raw_Data_for_FY22[[#This Row],[Median]]","v":227891.4},{"$f":"(((AAMC_Raw_Data_for_FY22[[#This Row],[75th]]-AAMC_Raw_Data_for_FY22[[#This Row],[Median]])/25)*35) + AAMC_Raw_Data_for_FY22[[#This Row],[Median]]","v":235312.8},{"$f":"(((AAMC_Raw_Data_for_FY22[[#This Row],[75th]]-AAMC_Raw_Data_for_FY22[[#This Row],[Median]])/25)*40) + AAMC_Raw_Data_for_FY22[[#This Row],[Median]]","v":242734.2}]
[{"$f":"AAMC_Raw_Data_for_FY22[[#This Row],[Source]]&AAMC_Raw_Data_for_FY22[[#This Row],[Type]]&AAMC_Raw_Data_for_FY22[[#This Row],[School Subset]]&AAMC_Raw_Data_for_FY22[[#This Row],[Rank]]&AAMC_Raw_Data_for_FY22[[#This Row],[Degree]]&AAMC_Raw_Data_for_FY22[[#This Row],[Department / Specialty]]&\"L\"","v":"AAMCAcademicAllChiefPhDPhysical Medicine & RehabilitationL"},"Physical Medicine & Rehabilitation",6,"AAMC","Academic","All","Chief","PhD","2021-2022",null,{"$f":"(((AAMC_Raw_Data_for_FY22[[#This Row],[Median]]-AAMC_Raw_Data_for_FY22[[#This Row],[25th]])/25)*5) + AAMC_Raw_Data_for_FY22[[#This Row],[25th]]","v":0},{"$f":"(((AAMC_Raw_Data_for_FY22[[#This Row],[Median]]-AAMC_Raw_Data_for_FY22[[#This Row],[25th]])/25)*10) + AAMC_Raw_Data_for_FY22[[#This Row],[25th]]","v":0},{"$f":"(((AAMC_Raw_Data_for_FY22[[#This Row],[Median]]-AAMC_Raw_Data_for_FY22[[#This Row],[25th]])/25)*15) + AAMC_Raw_Data_for_FY22[[#This Row],[25th]]","v":0},{"$f":"(((AAMC_Raw_Data_for_FY22[[#This Row],[Median]]-AAMC_Raw_Data_for_FY22[[#This Row],[25th]])/25)*20) + AAMC_Raw_Data_for_FY22[[#This Row],[25th]]","v":0},null,{"$f":"(((AAMC_Raw_Data_for_FY22[[#This Row],[75th]]-AAMC_Raw_Data_for_FY22[[#This Row],[Median]])/25)*5) + AAMC_Raw_Data_for_FY22[[#This Row],[Median]]","v":0},{"$f":"(((AAMC_Raw_Data_for_FY22[[#This Row],[75th]]-AAMC_Raw_Data_for_FY22[[#This Row],[Median]])/25)*10) + AAMC_Raw_Data_for_FY22[[#This Row],[Median]]","v":0},{"$f":"(((AAMC_Raw_Data_for_FY22[[#This Row],[75th]]-AAMC_Raw_Data_for_FY22[[#This Row],[Median]])/25)*15) + AAMC_Raw_Data_for_FY22[[#This Row],[Median]]","v":0},{"$f":"(((AAMC_Raw_Data_for_FY22[[#This Row],[75th]]-AAMC_Raw_Data_for_FY22[[#This Row],[Median]])/25)*20) + AAMC_Raw_Data_for_FY22[[#This Row],[Median]]","v":0},null,{"$f":"(((AAMC_Raw_Data_for_FY22[[#This Row],[75th]]-AAMC_Raw_Data_for_FY22[[#This Row],[Median]])/25)*30) + AAMC_Raw_Data_for_FY22[[#This Row],[Median]]","v":0},{"$f":"(((AAMC_Raw_Data_for_FY22[[#This Row],[75th]]-AAMC_Raw_Data_for_FY22[[#This Row],[Median]])/25)*35) + AAMC_Raw_Data_for_FY22[[#This Row],[Median]]","v":0},{"$f":"(((AAMC_Raw_Data_for_FY22[[#This Row],[75th]]-AAMC_Raw_Data_for_FY22[[#This Row],[Median]])/25)*40) + AAMC_Raw_Data_for_FY22[[#This Row],[Median]]","v":0}]
[{"$f":"AAMC_Raw_Data_for_FY22[[#This Row],[Source]]&AAMC_Raw_Data_for_FY22[[#This Row],[Type]]&AAMC_Raw_Data_for_FY22[[#This Row],[School Subset]]&AAMC_Raw_Data_for_FY22[[#This Row],[Rank]]&AAMC_Raw_Data_for_FY22[[#This Row],[Degree]]&AAMC_Raw_Data_for_FY22[[#This Row],[Department / Specialty]]&\"L\"","v":"AAMCAcademicAllChairPhDPhysical Medicine & RehabilitationL"},"Physical Medicine & Rehabilitation",1,"AAMC","Academic","All","Chair","PhD","2021-2022",null,{"$f":"(((AAMC_Raw_Data_for_FY22[[#This Row],[Median]]-AAMC_Raw_Data_for_FY22[[#This Row],[25th]])/25)*5) + AAMC_Raw_Data_for_FY22[[#This Row],[25th]]","v":0},{"$f":"(((AAMC_Raw_Data_for_FY22[[#This Row],[Median]]-AAMC_Raw_Data_for_FY22[[#This Row],[25th]])/25)*10) + AAMC_Raw_Data_for_FY22[[#This Row],[25th]]","v":0},{"$f":"(((AAMC_Raw_Data_for_FY22[[#This Row],[Median]]-AAMC_Raw_Data_for_FY22[[#This Row],[25th]])/25)*15) + AAMC_Raw_Data_for_FY22[[#This Row],[25th]]","v":0},{"$f":"(((AAMC_Raw_Data_for_FY22[[#This Row],[Median]]-AAMC_Raw_Data_for_FY22[[#This Row],[25th]])/25)*20) + AAMC_Raw_Data_for_FY22[[#This Row],[25th]]","v":0},null,{"$f":"(((AAMC_Raw_Data_for_FY22[[#This Row],[75th]]-AAMC_Raw_Data_for_FY22[[#This Row],[Median]])/25)*5) + AAMC_Raw_Data_for_FY22[[#This Row],[Median]]","v":0},{"$f":"(((AAMC_Raw_Data_for_FY22[[#This Row],[75th]]-AAMC_Raw_Data_for_FY22[[#This Row],[Median]])/25)*10) + AAMC_Raw_Data_for_FY22[[#This Row],[Median]]","v":0},{"$f":"(((AAMC_Raw_Data_for_FY22[[#This Row],[75th]]-AAMC_Raw_Data_for_FY22[[#This Row],[Median]])/25)*15) + AAMC_Raw_Data_for_FY22[[#This Row],[Median]]","v":0},{"$f":"(((AAMC_Raw_Data_for_FY22[[#This Row],[75th]]-AAMC_Raw_Data_for_FY22[[#This Row],[Median]])/25)*20) + AAMC_Raw_Data_for_FY22[[#This Row],[Median]]","v":0},null,{"$f":"(((AAMC_Raw_Data_for_FY22[[#This Row],[75th]]-AAMC_Raw_Data_for_FY22[[#This Row],[Median]])/25)*30) + AAMC_Raw_Data_for_FY22[[#This Row],[Median]]","v":0},{"$f":"(((AAMC_Raw_Data_for_FY22[[#This Row],[75th]]-AAMC_Raw_Data_for_FY22[[#This Row],[Median]])/25)*35) + AAMC_Raw_Data_for_FY22[[#This Row],[Median]]","v":0},{"$f":"(((AAMC_Raw_Data_for_FY22[[#This Row],[75th]]-AAMC_Raw_Data_for_FY22[[#This Row],[Median]])/25)*40) + AAMC_Raw_Data_for_FY22[[#This Row],[Median]]","v":0}]
[{"$f":"AAMC_Raw_Data_for_FY22[[#This Row],[Source]]&AAMC_Raw_Data_for_FY22[[#This Row],[Type]]&AAMC_Raw_Data_for_FY22[[#This Row],[School Subset]]&AAMC_Raw_Data_for_FY22[[#This Row],[Rank]]&AAMC_Raw_Data_for_FY22[[#This Row],[Degree]]&AAMC_Raw_Data_for_FY22[[#This Row],[Department / Specialty]]&\"L\"","v":"AAMCAcademicAllInstructorPhDPreventive MedicineL"},"Preventive Medicine",5,"AAMC","Academic","All","Instructor","PhD","2021-2022",null,{"$f":"(((AAMC_Raw_Data_for_FY22[[#This Row],[Median]]-AAMC_Raw_Data_for_FY22[[#This Row],[25th]])/25)*5) + AAMC_Raw_Data_for_FY22[[#This Row],[25th]]","v":0},{"$f":"(((AAMC_Raw_Data_for_FY22[[#This Row],[Median]]-AAMC_Raw_Data_for_FY22[[#This Row],[25th]])/25)*10) + AAMC_Raw_Data_for_FY22[[#This Row],[25th]]","v":0},{"$f":"(((AAMC_Raw_Data_for_FY22[[#This Row],[Median]]-AAMC_Raw_Data_for_FY22[[#This Row],[25th]])/25)*15) + AAMC_Raw_Data_for_FY22[[#This Row],[25th]]","v":0},{"$f":"(((AAMC_Raw_Data_for_FY22[[#This Row],[Median]]-AAMC_Raw_Data_for_FY22[[#This Row],[25th]])/25)*20) + AAMC_Raw_Data_for_FY22[[#This Row],[25th]]","v":0},null,{"$f":"(((AAMC_Raw_Data_for_FY22[[#This Row],[75th]]-AAMC_Raw_Data_for_FY22[[#This Row],[Median]])/25)*5) + AAMC_Raw_Data_for_FY22[[#This Row],[Median]]","v":0},{"$f":"(((AAMC_Raw_Data_for_FY22[[#This Row],[75th]]-AAMC_Raw_Data_for_FY22[[#This Row],[Median]])/25)*10) + AAMC_Raw_Data_for_FY22[[#This Row],[Median]]","v":0},{"$f":"(((AAMC_Raw_Data_for_FY22[[#This Row],[75th]]-AAMC_Raw_Data_for_FY22[[#This Row],[Median]])/25)*15) + AAMC_Raw_Data_for_FY22[[#This Row],[Median]]","v":0},{"$f":"(((AAMC_Raw_Data_for_FY22[[#This Row],[75th]]-AAMC_Raw_Data_for_FY22[[#This Row],[Median]])/25)*20) + AAMC_Raw_Data_for_FY22[[#This Row],[Median]]","v":0},null,{"$f":"(((AAMC_Raw_Data_for_FY22[[#This Row],[75th]]-AAMC_Raw_Data_for_FY22[[#This Row],[Median]])/25)*30) + AAMC_Raw_Data_for_FY22[[#This Row],[Median]]","v":0},{"$f":"(((AAMC_Raw_Data_for_FY22[[#This Row],[75th]]-AAMC_Raw_Data_for_FY22[[#This Row],[Median]])/25)*35) + AAMC_Raw_Data_for_FY22[[#This Row],[Median]]","v":0},{"$f":"(((AAMC_Raw_Data_for_FY22[[#This Row],[75th]]-AAMC_Raw_Data_for_FY22[[#This Row],[Median]])/25)*40) + AAMC_Raw_Data_for_FY22[[#This Row],[Median]]","v":0}]
[{"$f":"AAMC_Raw_Data_for_FY22[[#This Row],[Source]]&AAMC_Raw_Data_for_FY22[[#This Row],[Type]]&AAMC_Raw_Data_for_FY22[[#This Row],[School Subset]]&AAMC_Raw_Data_for_FY22[[#This Row],[Rank]]&AAMC_Raw_Data_for_FY22[[#This Row],[Degree]]&AAMC_Raw_Data_for_FY22[[#This Row],[Department / Specialty]]&\"L\"","v":"AAMCAcademicAllAssistantPhDPreventive MedicineL"},"Preventive Medicine",4,"AAMC","Academic","All","Assistant","PhD","2021-2022",116356,{"$f":"(((AAMC_Raw_Data_for_FY22[[#This Row],[Median]]-AAMC_Raw_Data_for_FY22[[#This Row],[25th]])/25)*5) + AAMC_Raw_Data_for_FY22[[#This Row],[25th]]","v":117536},{"$f":"(((AAMC_Raw_Data_for_FY22[[#This Row],[Median]]-AAMC_Raw_Data_for_FY22[[#This Row],[25th]])/25)*10) + AAMC_Raw_Data_for_FY22[[#This Row],[25th]]","v":118716},{"$f":"(((AAMC_Raw_Data_for_FY22[[#This Row],[Median]]-AAMC_Raw_Data_for_FY22[[#This Row],[25th]])/25)*15) + AAMC_Raw_Data_for_FY22[[#This Row],[25th]]","v":119896},{"$f":"(((AAMC_Raw_Data_for_FY22[[#This Row],[Median]]-AAMC_Raw_Data_for_FY22[[#This Row],[25th]])/25)*20) + AAMC_Raw_Data_for_FY22[[#This Row],[25th]]","v":121076},122256,{"$f":"(((AAMC_Raw_Data_for_FY22[[#This Row],[75th]]-AAMC_Raw_Data_for_FY22[[#This Row],[Median]])/25)*5) + AAMC_Raw_Data_for_FY22[[#This Row],[Median]]","v":124799.8},{"$f":"(((AAMC_Raw_Data_for_FY22[[#This Row],[75th]]-AAMC_Raw_Data_for_FY22[[#This Row],[Median]])/25)*10) + AAMC_Raw_Data_for_FY22[[#This Row],[Median]]","v":127343.6},{"$f":"(((AAMC_Raw_Data_for_FY22[[#This Row],[75th]]-AAMC_Raw_Data_for_FY22[[#This Row],[Median]])/25)*15) + AAMC_Raw_Data_for_FY22[[#This Row],[Median]]","v":129887.4},{"$f":"(((AAMC_Raw_Data_for_FY22[[#This Row],[75th]]-AAMC_Raw_Data_for_FY22[[#This Row],[Median]])/25)*20) + AAMC_Raw_Data_for_FY22[[#This Row],[Median]]","v":132431.20000000001},134975,{"$f":"(((AAMC_Raw_Data_for_FY22[[#This Row],[75th]]-AAMC_Raw_Data_for_FY22[[#This Row],[Median]])/25)*30) + AAMC_Raw_Data_for_FY22[[#This Row],[Median]]","v":137518.79999999999},{"$f":"(((AAMC_Raw_Data_for_FY22[[#This Row],[75th]]-AAMC_Raw_Data_for_FY22[[#This Row],[Median]])/25)*35) + AAMC_Raw_Data_for_FY22[[#This Row],[Median]]","v":140062.6},{"$f":"(((AAMC_Raw_Data_for_FY22[[#This Row],[75th]]-AAMC_Raw_Data_for_FY22[[#This Row],[Median]])/25)*40) + AAMC_Raw_Data_for_FY22[[#This Row],[Median]]","v":142606.39999999999}]
[{"$f":"AAMC_Raw_Data_for_FY22[[#This Row],[Source]]&AAMC_Raw_Data_for_FY22[[#This Row],[Type]]&AAMC_Raw_Data_for_FY22[[#This Row],[School Subset]]&AAMC_Raw_Data_for_FY22[[#This Row],[Rank]]&AAMC_Raw_Data_for_FY22[[#This Row],[Degree]]&AAMC_Raw_Data_for_FY22[[#This Row],[Department / Specialty]]&\"L\"","v":"AAMCAcademicAllAssociatePhDPreventive MedicineL"},"Preventive Medicine",3,"AAMC","Academic","All","Associate","PhD","2021-2022",150672,{"$f":"(((AAMC_Raw_Data_for_FY22[[#This Row],[Median]]-AAMC_Raw_Data_for_FY22[[#This Row],[25th]])/25)*5) + AAMC_Raw_Data_for_FY22[[#This Row],[25th]]","v":153537.60000000001},{"$f":"(((AAMC_Raw_Data_for_FY22[[#This Row],[Median]]-AAMC_Raw_Data_for_FY22[[#This Row],[25th]])/25)*10) + AAMC_Raw_Data_for_FY22[[#This Row],[25th]]","v":156403.20000000001},{"$f":"(((AAMC_Raw_Data_for_FY22[[#This Row],[Median]]-AAMC_Raw_Data_for_FY22[[#This Row],[25th]])/25)*15) + AAMC_Raw_Data_for_FY22[[#This Row],[25th]]","v":159268.79999999999},{"$f":"(((AAMC_Raw_Data_for_FY22[[#This Row],[Median]]-AAMC_Raw_Data_for_FY22[[#This Row],[25th]])/25)*20) + AAMC_Raw_Data_for_FY22[[#This Row],[25th]]","v":162134.39999999999},165000,{"$f":"(((AAMC_Raw_Data_for_FY22[[#This Row],[75th]]-AAMC_Raw_Data_for_FY22[[#This Row],[Median]])/25)*5) + AAMC_Raw_Data_for_FY22[[#This Row],[Median]]","v":168602},{"$f":"(((AAMC_Raw_Data_for_FY22[[#This Row],[75th]]-AAMC_Raw_Data_for_FY22[[#This Row],[Median]])/25)*10) + AAMC_Raw_Data_for_FY22[[#This Row],[Median]]","v":172204},{"$f":"(((AAMC_Raw_Data_for_FY22[[#This Row],[75th]]-AAMC_Raw_Data_for_FY22[[#This Row],[Median]])/25)*15) + AAMC_Raw_Data_for_FY22[[#This Row],[Median]]","v":175806},{"$f":"(((AAMC_Raw_Data_for_FY22[[#This Row],[75th]]-AAMC_Raw_Data_for_FY22[[#This Row],[Median]])/25)*20) + AAMC_Raw_Data_for_FY22[[#This Row],[Median]]","v":179408},183010,{"$f":"(((AAMC_Raw_Data_for_FY22[[#This Row],[75th]]-AAMC_Raw_Data_for_FY22[[#This Row],[Median]])/25)*30) + AAMC_Raw_Data_for_FY22[[#This Row],[Median]]","v":186612},{"$f":"(((AAMC_Raw_Data_for_FY22[[#This Row],[75th]]-AAMC_Raw_Data_for_FY22[[#This Row],[Median]])/25)*35) + AAMC_Raw_Data_for_FY22[[#This Row],[Median]]","v":190214},{"$f":"(((AAMC_Raw_Data_for_FY22[[#This Row],[75th]]-AAMC_Raw_Data_for_FY22[[#This Row],[Median]])/25)*40) + AAMC_Raw_Data_for_FY22[[#This Row],[Median]]","v":193816}]
[{"$f":"AAMC_Raw_Data_for_FY22[[#This Row],[Source]]&AAMC_Raw_Data_for_FY22[[#This Row],[Type]]&AAMC_Raw_Data_for_FY22[[#This Row],[School Subset]]&AAMC_Raw_Data_for_FY22[[#This Row],[Rank]]&AAMC_Raw_Data_for_FY22[[#This Row],[Degree]]&AAMC_Raw_Data_for_FY22[[#This Row],[Department / Specialty]]&\"L\"","v":"AAMCAcademicAllProfessorPhDPreventive MedicineL"},"Preventive Medicine",2,"AAMC","Academic","All","Professor","PhD","2021-2022",184257,{"$f":"(((AAMC_Raw_Data_for_FY22[[#This Row],[Median]]-AAMC_Raw_Data_for_FY22[[#This Row],[25th]])/25)*5) + AAMC_Raw_Data_for_FY22[[#This Row],[25th]]","v":190165},{"$f":"(((AAMC_Raw_Data_for_FY22[[#This Row],[Median]]-AAMC_Raw_Data_for_FY22[[#This Row],[25th]])/25)*10) + AAMC_Raw_Data_for_FY22[[#This Row],[25th]]","v":196073},{"$f":"(((AAMC_Raw_Data_for_FY22[[#This Row],[Median]]-AAMC_Raw_Data_for_FY22[[#This Row],[25th]])/25)*15) + AAMC_Raw_Data_for_FY22[[#This Row],[25th]]","v":201981},{"$f":"(((AAMC_Raw_Data_for_FY22[[#This Row],[Median]]-AAMC_Raw_Data_for_FY22[[#This Row],[25th]])/25)*20) + AAMC_Raw_Data_for_FY22[[#This Row],[25th]]","v":207889},213797,{"$f":"(((AAMC_Raw_Data_for_FY22[[#This Row],[75th]]-AAMC_Raw_Data_for_FY22[[#This Row],[Median]])/25)*5) + AAMC_Raw_Data_for_FY22[[#This Row],[Median]]","v":220307.6},{"$f":"(((AAMC_Raw_Data_for_FY22[[#This Row],[75th]]-AAMC_Raw_Data_for_FY22[[#This Row],[Median]])/25)*10) + AAMC_Raw_Data_for_FY22[[#This Row],[Median]]","v":226818.2},{"$f":"(((AAMC_Raw_Data_for_FY22[[#This Row],[75th]]-AAMC_Raw_Data_for_FY22[[#This Row],[Median]])/25)*15) + AAMC_Raw_Data_for_FY22[[#This Row],[Median]]","v":233328.8},{"$f":"(((AAMC_Raw_Data_for_FY22[[#This Row],[75th]]-AAMC_Raw_Data_for_FY22[[#This Row],[Median]])/25)*20) + AAMC_Raw_Data_for_FY22[[#This Row],[Median]]","v":239839.4},246350,{"$f":"(((AAMC_Raw_Data_for_FY22[[#This Row],[75th]]-AAMC_Raw_Data_for_FY22[[#This Row],[Median]])/25)*30) + AAMC_Raw_Data_for_FY22[[#This Row],[Median]]","v":252860.6},{"$f":"(((AAMC_Raw_Data_for_FY22[[#This Row],[75th]]-AAMC_Raw_Data_for_FY22[[#This Row],[Median]])/25)*35) + AAMC_Raw_Data_for_FY22[[#This Row],[Median]]","v":259371.2},{"$f":"(((AAMC_Raw_Data_for_FY22[[#This Row],[75th]]-AAMC_Raw_Data_for_FY22[[#This Row],[Median]])/25)*40) + AAMC_Raw_Data_for_FY22[[#This Row],[Median]]","v":265881.8}]
[{"$f":"AAMC_Raw_Data_for_FY22[[#This Row],[Source]]&AAMC_Raw_Data_for_FY22[[#This Row],[Type]]&AAMC_Raw_Data_for_FY22[[#This Row],[School Subset]]&AAMC_Raw_Data_for_FY22[[#This Row],[Rank]]&AAMC_Raw_Data_for_FY22[[#This Row],[Degree]]&AAMC_Raw_Data_for_FY22[[#This Row],[Department / Specialty]]&\"L\"","v":"AAMCAcademicAllChiefPhDPreventive MedicineL"},"Preventive Medicine",6,"AAMC","Academic","All","Chief","PhD","2021-2022",null,{"$f":"(((AAMC_Raw_Data_for_FY22[[#This Row],[Median]]-AAMC_Raw_Data_for_FY22[[#This Row],[25th]])/25)*5) + AAMC_Raw_Data_for_FY22[[#This Row],[25th]]","v":0},{"$f":"(((AAMC_Raw_Data_for_FY22[[#This Row],[Median]]-AAMC_Raw_Data_for_FY22[[#This Row],[25th]])/25)*10) + AAMC_Raw_Data_for_FY22[[#This Row],[25th]]","v":0},{"$f":"(((AAMC_Raw_Data_for_FY22[[#This Row],[Median]]-AAMC_Raw_Data_for_FY22[[#This Row],[25th]])/25)*15) + AAMC_Raw_Data_for_FY22[[#This Row],[25th]]","v":0},{"$f":"(((AAMC_Raw_Data_for_FY22[[#This Row],[Median]]-AAMC_Raw_Data_for_FY22[[#This Row],[25th]])/25)*20) + AAMC_Raw_Data_for_FY22[[#This Row],[25th]]","v":0},null,{"$f":"(((AAMC_Raw_Data_for_FY22[[#This Row],[75th]]-AAMC_Raw_Data_for_FY22[[#This Row],[Median]])/25)*5) + AAMC_Raw_Data_for_FY22[[#This Row],[Median]]","v":0},{"$f":"(((AAMC_Raw_Data_for_FY22[[#This Row],[75th]]-AAMC_Raw_Data_for_FY22[[#This Row],[Median]])/25)*10) + AAMC_Raw_Data_for_FY22[[#This Row],[Median]]","v":0},{"$f":"(((AAMC_Raw_Data_for_FY22[[#This Row],[75th]]-AAMC_Raw_Data_for_FY22[[#This Row],[Median]])/25)*15) + AAMC_Raw_Data_for_FY22[[#This Row],[Median]]","v":0},{"$f":"(((AAMC_Raw_Data_for_FY22[[#This Row],[75th]]-AAMC_Raw_Data_for_FY22[[#This Row],[Median]])/25)*20) + AAMC_Raw_Data_for_FY22[[#This Row],[Median]]","v":0},null,{"$f":"(((AAMC_Raw_Data_for_FY22[[#This Row],[75th]]-AAMC_Raw_Data_for_FY22[[#This Row],[Median]])/25)*30) + AAMC_Raw_Data_for_FY22[[#This Row],[Median]]","v":0},{"$f":"(((AAMC_Raw_Data_for_FY22[[#This Row],[75th]]-AAMC_Raw_Data_for_FY22[[#This Row],[Median]])/25)*35) + AAMC_Raw_Data_for_FY22[[#This Row],[Median]]","v":0},{"$f":"(((AAMC_Raw_Data_for_FY22[[#This Row],[75th]]-AAMC_Raw_Data_for_FY22[[#This Row],[Median]])/25)*40) + AAMC_Raw_Data_for_FY22[[#This Row],[Median]]","v":0}]
[{"$f":"AAMC_Raw_Data_for_FY22[[#This Row],[Source]]&AAMC_Raw_Data_for_FY22[[#This Row],[Type]]&AAMC_Raw_Data_for_FY22[[#This Row],[School Subset]]&AAMC_Raw_Data_for_FY22[[#This Row],[Rank]]&AAMC_Raw_Data_for_FY22[[#This Row],[Degree]]&AAMC_Raw_Data_for_FY22[[#This Row],[Department / Specialty]]&\"L\"","v":"AAMCAcademicAllChairPhDPreventive MedicineL"},"Preventive Medicine",1,"AAMC","Academic","All","Chair","PhD","2021-2022",null,{"$f":"(((AAMC_Raw_Data_for_FY22[[#This Row],[Median]]-AAMC_Raw_Data_for_FY22[[#This Row],[25th]])/25)*5) + AAMC_Raw_Data_for_FY22[[#This Row],[25th]]","v":0},{"$f":"(((AAMC_Raw_Data_for_FY22[[#This Row],[Median]]-AAMC_Raw_Data_for_FY22[[#This Row],[25th]])/25)*10) + AAMC_Raw_Data_for_FY22[[#This Row],[25th]]","v":0},{"$f":"(((AAMC_Raw_Data_for_FY22[[#This Row],[Median]]-AAMC_Raw_Data_for_FY22[[#This Row],[25th]])/25)*15) + AAMC_Raw_Data_for_FY22[[#This Row],[25th]]","v":0},{"$f":"(((AAMC_Raw_Data_for_FY22[[#This Row],[Median]]-AAMC_Raw_Data_for_FY22[[#This Row],[25th]])/25)*20) + AAMC_Raw_Data_for_FY22[[#This Row],[25th]]","v":0},null,{"$f":"(((AAMC_Raw_Data_for_FY22[[#This Row],[75th]]-AAMC_Raw_Data_for_FY22[[#This Row],[Median]])/25)*5) + AAMC_Raw_Data_for_FY22[[#This Row],[Median]]","v":0},{"$f":"(((AAMC_Raw_Data_for_FY22[[#This Row],[75th]]-AAMC_Raw_Data_for_FY22[[#This Row],[Median]])/25)*10) + AAMC_Raw_Data_for_FY22[[#This Row],[Median]]","v":0},{"$f":"(((AAMC_Raw_Data_for_FY22[[#This Row],[75th]]-AAMC_Raw_Data_for_FY22[[#This Row],[Median]])/25)*15) + AAMC_Raw_Data_for_FY22[[#This Row],[Median]]","v":0},{"$f":"(((AAMC_Raw_Data_for_FY22[[#This Row],[75th]]-AAMC_Raw_Data_for_FY22[[#This Row],[Median]])/25)*20) + AAMC_Raw_Data_for_FY22[[#This Row],[Median]]","v":0},null,{"$f":"(((AAMC_Raw_Data_for_FY22[[#This Row],[75th]]-AAMC_Raw_Data_for_FY22[[#This Row],[Median]])/25)*30) + AAMC_Raw_Data_for_FY22[[#This Row],[Median]]","v":0},{"$f":"(((AAMC_Raw_Data_for_FY22[[#This Row],[75th]]-AAMC_Raw_Data_for_FY22[[#This Row],[Median]])/25)*35) + AAMC_Raw_Data_for_FY22[[#This Row],[Median]]","v":0},{"$f":"(((AAMC_Raw_Data_for_FY22[[#This Row],[75th]]-AAMC_Raw_Data_for_FY22[[#This Row],[Median]])/25)*40) + AAMC_Raw_Data_for_FY22[[#This Row],[Median]]","v":0}]
[{"$f":"AAMC_Raw_Data_for_FY22[[#This Row],[Source]]&AAMC_Raw_Data_for_FY22[[#This Row],[Type]]&AAMC_Raw_Data_for_FY22[[#This Row],[School Subset]]&AAMC_Raw_Data_for_FY22[[#This Row],[Rank]]&AAMC_Raw_Data_for_FY22[[#This Row],[Degree]]&AAMC_Raw_Data_for_FY22[[#This Row],[Department / Specialty]]&\"L\"","v":"AAMCAcademicAllInstructorPhDOther Clinical SciencesL"},"Other Clinical Sciences",5,"AAMC","Academic","All","Instructor","PhD","2021-2022",76281,{"$f":"(((AAMC_Raw_Data_for_FY22[[#This Row],[Median]]-AAMC_Raw_Data_for_FY22[[#This Row],[25th]])/25)*5) + AAMC_Raw_Data_for_FY22[[#This Row],[25th]]","v":77526.600000000006},{"$f":"(((AAMC_Raw_Data_for_FY22[[#This Row],[Median]]-AAMC_Raw_Data_for_FY22[[#This Row],[25th]])/25)*10) + AAMC_Raw_Data_for_FY22[[#This Row],[25th]]","v":78772.2},{"$f":"(((AAMC_Raw_Data_for_FY22[[#This Row],[Median]]-AAMC_Raw_Data_for_FY22[[#This Row],[25th]])/25)*15) + AAMC_Raw_Data_for_FY22[[#This Row],[25th]]","v":80017.8},{"$f":"(((AAMC_Raw_Data_for_FY22[[#This Row],[Median]]-AAMC_Raw_Data_for_FY22[[#This Row],[25th]])/25)*20) + AAMC_Raw_Data_for_FY22[[#This Row],[25th]]","v":81263.399999999994},82509,{"$f":"(((AAMC_Raw_Data_for_FY22[[#This Row],[75th]]-AAMC_Raw_Data_for_FY22[[#This Row],[Median]])/25)*5) + AAMC_Raw_Data_for_FY22[[#This Row],[Median]]","v":86562},{"$f":"(((AAMC_Raw_Data_for_FY22[[#This Row],[75th]]-AAMC_Raw_Data_for_FY22[[#This Row],[Median]])/25)*10) + AAMC_Raw_Data_for_FY22[[#This Row],[Median]]","v":90615},{"$f":"(((AAMC_Raw_Data_for_FY22[[#This Row],[75th]]-AAMC_Raw_Data_for_FY22[[#This Row],[Median]])/25)*15) + AAMC_Raw_Data_for_FY22[[#This Row],[Median]]","v":94668},{"$f":"(((AAMC_Raw_Data_for_FY22[[#This Row],[75th]]-AAMC_Raw_Data_for_FY22[[#This Row],[Median]])/25)*20) + AAMC_Raw_Data_for_FY22[[#This Row],[Median]]","v":98721},102774,{"$f":"(((AAMC_Raw_Data_for_FY22[[#This Row],[75th]]-AAMC_Raw_Data_for_FY22[[#This Row],[Median]])/25)*30) + AAMC_Raw_Data_for_FY22[[#This Row],[Median]]","v":106827},{"$f":"(((AAMC_Raw_Data_for_FY22[[#This Row],[75th]]-AAMC_Raw_Data_for_FY22[[#This Row],[Median]])/25)*35) + AAMC_Raw_Data_for_FY22[[#This Row],[Median]]","v":110880},{"$f":"(((AAMC_Raw_Data_for_FY22[[#This Row],[75th]]-AAMC_Raw_Data_for_FY22[[#This Row],[Median]])/25)*40) + AAMC_Raw_Data_for_FY22[[#This Row],[Median]]","v":114933}]
[{"$f":"AAMC_Raw_Data_for_FY22[[#This Row],[Source]]&AAMC_Raw_Data_for_FY22[[#This Row],[Type]]&AAMC_Raw_Data_for_FY22[[#This Row],[School Subset]]&AAMC_Raw_Data_for_FY22[[#This Row],[Rank]]&AAMC_Raw_Data_for_FY22[[#This Row],[Degree]]&AAMC_Raw_Data_for_FY22[[#This Row],[Department / Specialty]]&\"L\"","v":"AAMCAcademicAllAssistantPhDOther Clinical SciencesL"},"Other Clinical Sciences",4,"AAMC","Academic","All","Assistant","PhD","2021-2022",95063,{"$f":"(((AAMC_Raw_Data_for_FY22[[#This Row],[Median]]-AAMC_Raw_Data_for_FY22[[#This Row],[25th]])/25)*5) + AAMC_Raw_Data_for_FY22[[#This Row],[25th]]","v":98029.8},{"$f":"(((AAMC_Raw_Data_for_FY22[[#This Row],[Median]]-AAMC_Raw_Data_for_FY22[[#This Row],[25th]])/25)*10) + AAMC_Raw_Data_for_FY22[[#This Row],[25th]]","v":100996.6},{"$f":"(((AAMC_Raw_Data_for_FY22[[#This Row],[Median]]-AAMC_Raw_Data_for_FY22[[#This Row],[25th]])/25)*15) + AAMC_Raw_Data_for_FY22[[#This Row],[25th]]","v":103963.4},{"$f":"(((AAMC_Raw_Data_for_FY22[[#This Row],[Median]]-AAMC_Raw_Data_for_FY22[[#This Row],[25th]])/25)*20) + AAMC_Raw_Data_for_FY22[[#This Row],[25th]]","v":106930.2},109897,{"$f":"(((AAMC_Raw_Data_for_FY22[[#This Row],[75th]]-AAMC_Raw_Data_for_FY22[[#This Row],[Median]])/25)*5) + AAMC_Raw_Data_for_FY22[[#This Row],[Median]]","v":116166.2},{"$f":"(((AAMC_Raw_Data_for_FY22[[#This Row],[75th]]-AAMC_Raw_Data_for_FY22[[#This Row],[Median]])/25)*10) + AAMC_Raw_Data_for_FY22[[#This Row],[Median]]","v":122435.4},{"$f":"(((AAMC_Raw_Data_for_FY22[[#This Row],[75th]]-AAMC_Raw_Data_for_FY22[[#This Row],[Median]])/25)*15) + AAMC_Raw_Data_for_FY22[[#This Row],[Median]]","v":128704.6},{"$f":"(((AAMC_Raw_Data_for_FY22[[#This Row],[75th]]-AAMC_Raw_Data_for_FY22[[#This Row],[Median]])/25)*20) + AAMC_Raw_Data_for_FY22[[#This Row],[Median]]","v":134973.79999999999},141243,{"$f":"(((AAMC_Raw_Data_for_FY22[[#This Row],[75th]]-AAMC_Raw_Data_for_FY22[[#This Row],[Median]])/25)*30) + AAMC_Raw_Data_for_FY22[[#This Row],[Median]]","v":147512.20000000001},{"$f":"(((AAMC_Raw_Data_for_FY22[[#This Row],[75th]]-AAMC_Raw_Data_for_FY22[[#This Row],[Median]])/25)*35) + AAMC_Raw_Data_for_FY22[[#This Row],[Median]]","v":153781.4},{"$f":"(((AAMC_Raw_Data_for_FY22[[#This Row],[75th]]-AAMC_Raw_Data_for_FY22[[#This Row],[Median]])/25)*40) + AAMC_Raw_Data_for_FY22[[#This Row],[Median]]","v":160050.6}]
[{"$f":"AAMC_Raw_Data_for_FY22[[#This Row],[Source]]&AAMC_Raw_Data_for_FY22[[#This Row],[Type]]&AAMC_Raw_Data_for_FY22[[#This Row],[School Subset]]&AAMC_Raw_Data_for_FY22[[#This Row],[Rank]]&AAMC_Raw_Data_for_FY22[[#This Row],[Degree]]&AAMC_Raw_Data_for_FY22[[#This Row],[Department / Specialty]]&\"L\"","v":"AAMCAcademicAllAssociatePhDOther Clinical SciencesL"},"Other Clinical Sciences",3,"AAMC","Academic","All","Associate","PhD","2021-2022",113959,{"$f":"(((AAMC_Raw_Data_for_FY22[[#This Row],[Median]]-AAMC_Raw_Data_for_FY22[[#This Row],[25th]])/25)*5) + AAMC_Raw_Data_for_FY22[[#This Row],[25th]]","v":118374},{"$f":"(((AAMC_Raw_Data_for_FY22[[#This Row],[Median]]-AAMC_Raw_Data_for_FY22[[#This Row],[25th]])/25)*10) + AAMC_Raw_Data_for_FY22[[#This Row],[25th]]","v":122789},{"$f":"(((AAMC_Raw_Data_for_FY22[[#This Row],[Median]]-AAMC_Raw_Data_for_FY22[[#This Row],[25th]])/25)*15) + AAMC_Raw_Data_for_FY22[[#This Row],[25th]]","v":127204},{"$f":"(((AAMC_Raw_Data_for_FY22[[#This Row],[Median]]-AAMC_Raw_Data_for_FY22[[#This Row],[25th]])/25)*20) + AAMC_Raw_Data_for_FY22[[#This Row],[25th]]","v":131619},136034,{"$f":"(((AAMC_Raw_Data_for_FY22[[#This Row],[75th]]-AAMC_Raw_Data_for_FY22[[#This Row],[Median]])/25)*5) + AAMC_Raw_Data_for_FY22[[#This Row],[Median]]","v":141491},{"$f":"(((AAMC_Raw_Data_for_FY22[[#This Row],[75th]]-AAMC_Raw_Data_for_FY22[[#This Row],[Median]])/25)*10) + AAMC_Raw_Data_for_FY22[[#This Row],[Median]]","v":146948},{"$f":"(((AAMC_Raw_Data_for_FY22[[#This Row],[75th]]-AAMC_Raw_Data_for_FY22[[#This Row],[Median]])/25)*15) + AAMC_Raw_Data_for_FY22[[#This Row],[Median]]","v":152405},{"$f":"(((AAMC_Raw_Data_for_FY22[[#This Row],[75th]]-AAMC_Raw_Data_for_FY22[[#This Row],[Median]])/25)*20) + AAMC_Raw_Data_for_FY22[[#This Row],[Median]]","v":157862},163319,{"$f":"(((AAMC_Raw_Data_for_FY22[[#This Row],[75th]]-AAMC_Raw_Data_for_FY22[[#This Row],[Median]])/25)*30) + AAMC_Raw_Data_for_FY22[[#This Row],[Median]]","v":168776},{"$f":"(((AAMC_Raw_Data_for_FY22[[#This Row],[75th]]-AAMC_Raw_Data_for_FY22[[#This Row],[Median]])/25)*35) + AAMC_Raw_Data_for_FY22[[#This Row],[Median]]","v":174233},{"$f":"(((AAMC_Raw_Data_for_FY22[[#This Row],[75th]]-AAMC_Raw_Data_for_FY22[[#This Row],[Median]])/25)*40) + AAMC_Raw_Data_for_FY22[[#This Row],[Median]]","v":179690}]
[{"$f":"AAMC_Raw_Data_for_FY22[[#This Row],[Source]]&AAMC_Raw_Data_for_FY22[[#This Row],[Type]]&AAMC_Raw_Data_for_FY22[[#This Row],[School Subset]]&AAMC_Raw_Data_for_FY22[[#This Row],[Rank]]&AAMC_Raw_Data_for_FY22[[#This Row],[Degree]]&AAMC_Raw_Data_for_FY22[[#This Row],[Department / Specialty]]&\"L\"","v":"AAMCAcademicAllProfessorPhDOther Clinical SciencesL"},"Other Clinical Sciences",2,"AAMC","Academic","All","Professor","PhD","2021-2022",145483,{"$f":"(((AAMC_Raw_Data_for_FY22[[#This Row],[Median]]-AAMC_Raw_Data_for_FY22[[#This Row],[25th]])/25)*5) + AAMC_Raw_Data_for_FY22[[#This Row],[25th]]","v":154704.20000000001},{"$f":"(((AAMC_Raw_Data_for_FY22[[#This Row],[Median]]-AAMC_Raw_Data_for_FY22[[#This Row],[25th]])/25)*10) + AAMC_Raw_Data_for_FY22[[#This Row],[25th]]","v":163925.4},{"$f":"(((AAMC_Raw_Data_for_FY22[[#This Row],[Median]]-AAMC_Raw_Data_for_FY22[[#This Row],[25th]])/25)*15) + AAMC_Raw_Data_for_FY22[[#This Row],[25th]]","v":173146.6},{"$f":"(((AAMC_Raw_Data_for_FY22[[#This Row],[Median]]-AAMC_Raw_Data_for_FY22[[#This Row],[25th]])/25)*20) + AAMC_Raw_Data_for_FY22[[#This Row],[25th]]","v":182367.8},191589,{"$f":"(((AAMC_Raw_Data_for_FY22[[#This Row],[75th]]-AAMC_Raw_Data_for_FY22[[#This Row],[Median]])/25)*5) + AAMC_Raw_Data_for_FY22[[#This Row],[Median]]","v":201445.6},{"$f":"(((AAMC_Raw_Data_for_FY22[[#This Row],[75th]]-AAMC_Raw_Data_for_FY22[[#This Row],[Median]])/25)*10) + AAMC_Raw_Data_for_FY22[[#This Row],[Median]]","v":211302.2},{"$f":"(((AAMC_Raw_Data_for_FY22[[#This Row],[75th]]-AAMC_Raw_Data_for_FY22[[#This Row],[Median]])/25)*15) + AAMC_Raw_Data_for_FY22[[#This Row],[Median]]","v":221158.8},{"$f":"(((AAMC_Raw_Data_for_FY22[[#This Row],[75th]]-AAMC_Raw_Data_for_FY22[[#This Row],[Median]])/25)*20) + AAMC_Raw_Data_for_FY22[[#This Row],[Median]]","v":231015.4},240872,{"$f":"(((AAMC_Raw_Data_for_FY22[[#This Row],[75th]]-AAMC_Raw_Data_for_FY22[[#This Row],[Median]])/25)*30) + AAMC_Raw_Data_for_FY22[[#This Row],[Median]]","v":250728.6},{"$f":"(((AAMC_Raw_Data_for_FY22[[#This Row],[75th]]-AAMC_Raw_Data_for_FY22[[#This Row],[Median]])/25)*35) + AAMC_Raw_Data_for_FY22[[#This Row],[Median]]","v":260585.2},{"$f":"(((AAMC_Raw_Data_for_FY22[[#This Row],[75th]]-AAMC_Raw_Data_for_FY22[[#This Row],[Median]])/25)*40) + AAMC_Raw_Data_for_FY22[[#This Row],[Median]]","v":270441.8}]
[{"$f":"AAMC_Raw_Data_for_FY22[[#This Row],[Source]]&AAMC_Raw_Data_for_FY22[[#This Row],[Type]]&AAMC_Raw_Data_for_FY22[[#This Row],[School Subset]]&AAMC_Raw_Data_for_FY22[[#This Row],[Rank]]&AAMC_Raw_Data_for_FY22[[#This Row],[Degree]]&AAMC_Raw_Data_for_FY22[[#This Row],[Department / Specialty]]&\"L\"","v":"AAMCAcademicAllChiefPhDOther Clinical SciencesL"},"Other Clinical Sciences",6,"AAMC","Academic","All","Chief","PhD","2021-2022",null,{"$f":"(((AAMC_Raw_Data_for_FY22[[#This Row],[Median]]-AAMC_Raw_Data_for_FY22[[#This Row],[25th]])/25)*5) + AAMC_Raw_Data_for_FY22[[#This Row],[25th]]","v":0},{"$f":"(((AAMC_Raw_Data_for_FY22[[#This Row],[Median]]-AAMC_Raw_Data_for_FY22[[#This Row],[25th]])/25)*10) + AAMC_Raw_Data_for_FY22[[#This Row],[25th]]","v":0},{"$f":"(((AAMC_Raw_Data_for_FY22[[#This Row],[Median]]-AAMC_Raw_Data_for_FY22[[#This Row],[25th]])/25)*15) + AAMC_Raw_Data_for_FY22[[#This Row],[25th]]","v":0},{"$f":"(((AAMC_Raw_Data_for_FY22[[#This Row],[Median]]-AAMC_Raw_Data_for_FY22[[#This Row],[25th]])/25)*20) + AAMC_Raw_Data_for_FY22[[#This Row],[25th]]","v":0},null,{"$f":"(((AAMC_Raw_Data_for_FY22[[#This Row],[75th]]-AAMC_Raw_Data_for_FY22[[#This Row],[Median]])/25)*5) + AAMC_Raw_Data_for_FY22[[#This Row],[Median]]","v":0},{"$f":"(((AAMC_Raw_Data_for_FY22[[#This Row],[75th]]-AAMC_Raw_Data_for_FY22[[#This Row],[Median]])/25)*10) + AAMC_Raw_Data_for_FY22[[#This Row],[Median]]","v":0},{"$f":"(((AAMC_Raw_Data_for_FY22[[#This Row],[75th]]-AAMC_Raw_Data_for_FY22[[#This Row],[Median]])/25)*15) + AAMC_Raw_Data_for_FY22[[#This Row],[Median]]","v":0},{"$f":"(((AAMC_Raw_Data_for_FY22[[#This Row],[75th]]-AAMC_Raw_Data_for_FY22[[#This Row],[Median]])/25)*20) + AAMC_Raw_Data_for_FY22[[#This Row],[Median]]","v":0},null,{"$f":"(((AAMC_Raw_Data_for_FY22[[#This Row],[75th]]-AAMC_Raw_Data_for_FY22[[#This Row],[Median]])/25)*30) + AAMC_Raw_Data_for_FY22[[#This Row],[Median]]","v":0},{"$f":"(((AAMC_Raw_Data_for_FY22[[#This Row],[75th]]-AAMC_Raw_Data_for_FY22[[#This Row],[Median]])/25)*35) + AAMC_Raw_Data_for_FY22[[#This Row],[Median]]","v":0},{"$f":"(((AAMC_Raw_Data_for_FY22[[#This Row],[75th]]-AAMC_Raw_Data_for_FY22[[#This Row],[Median]])/25)*40) + AAMC_Raw_Data_for_FY22[[#This Row],[Median]]","v":0}]
[{"$f":"AAMC_Raw_Data_for_FY22[[#This Row],[Source]]&AAMC_Raw_Data_for_FY22[[#This Row],[Type]]&AAMC_Raw_Data_for_FY22[[#This Row],[School Subset]]&AAMC_Raw_Data_for_FY22[[#This Row],[Rank]]&AAMC_Raw_Data_for_FY22[[#This Row],[Degree]]&AAMC_Raw_Data_for_FY22[[#This Row],[Department / Specialty]]&\"L\"","v":"AAMCAcademicAllChairPhDOther Clinical SciencesL"},"Other Clinical Sciences",1,"AAMC","Academic","All","Chair","PhD","2021-2022",null,{"$f":"(((AAMC_Raw_Data_for_FY22[[#This Row],[Median]]-AAMC_Raw_Data_for_FY22[[#This Row],[25th]])/25)*5) + AAMC_Raw_Data_for_FY22[[#This Row],[25th]]","v":0},{"$f":"(((AAMC_Raw_Data_for_FY22[[#This Row],[Median]]-AAMC_Raw_Data_for_FY22[[#This Row],[25th]])/25)*10) + AAMC_Raw_Data_for_FY22[[#This Row],[25th]]","v":0},{"$f":"(((AAMC_Raw_Data_for_FY22[[#This Row],[Median]]-AAMC_Raw_Data_for_FY22[[#This Row],[25th]])/25)*15) + AAMC_Raw_Data_for_FY22[[#This Row],[25th]]","v":0},{"$f":"(((AAMC_Raw_Data_for_FY22[[#This Row],[Median]]-AAMC_Raw_Data_for_FY22[[#This Row],[25th]])/25)*20) + AAMC_Raw_Data_for_FY22[[#This Row],[25th]]","v":0},null,{"$f":"(((AAMC_Raw_Data_for_FY22[[#This Row],[75th]]-AAMC_Raw_Data_for_FY22[[#This Row],[Median]])/25)*5) + AAMC_Raw_Data_for_FY22[[#This Row],[Median]]","v":0},{"$f":"(((AAMC_Raw_Data_for_FY22[[#This Row],[75th]]-AAMC_Raw_Data_for_FY22[[#This Row],[Median]])/25)*10) + AAMC_Raw_Data_for_FY22[[#This Row],[Median]]","v":0},{"$f":"(((AAMC_Raw_Data_for_FY22[[#This Row],[75th]]-AAMC_Raw_Data_for_FY22[[#This Row],[Median]])/25)*15) + AAMC_Raw_Data_for_FY22[[#This Row],[Median]]","v":0},{"$f":"(((AAMC_Raw_Data_for_FY22[[#This Row],[75th]]-AAMC_Raw_Data_for_FY22[[#This Row],[Median]])/25)*20) + AAMC_Raw_Data_for_FY22[[#This Row],[Median]]","v":0},null,{"$f":"(((AAMC_Raw_Data_for_FY22[[#This Row],[75th]]-AAMC_Raw_Data_for_FY22[[#This Row],[Median]])/25)*30) + AAMC_Raw_Data_for_FY22[[#This Row],[Median]]","v":0},{"$f":"(((AAMC_Raw_Data_for_FY22[[#This Row],[75th]]-AAMC_Raw_Data_for_FY22[[#This Row],[Median]])/25)*35) + AAMC_Raw_Data_for_FY22[[#This Row],[Median]]","v":0},{"$f":"(((AAMC_Raw_Data_for_FY22[[#This Row],[75th]]-AAMC_Raw_Data_for_FY22[[#This Row],[Median]])/25)*40) + AAMC_Raw_Data_for_FY22[[#This Row],[Median]]","v":0}]
[{"$f":"AAMC_Raw_Data_for_FY22[[#This Row],[Source]]&AAMC_Raw_Data_for_FY22[[#This Row],[Type]]&AAMC_Raw_Data_for_FY22[[#This Row],[School Subset]]&AAMC_Raw_Data_for_FY22[[#This Row],[Rank]]&AAMC_Raw_Data_for_FY22[[#This Row],[Degree]]&AAMC_Raw_Data_for_FY22[[#This Row],[Department / Specialty]]&\"L\"","v":"AAMCAcademicPrivateInstructorPhDClinical Sciences TotalL"},"Clinical Sciences Total",5,"AAMC","Academic","Private","Instructor","PhD","2021-2022",74234,{"$f":"(((AAMC_Raw_Data_for_FY22[[#This Row],[Median]]-AAMC_Raw_Data_for_FY22[[#This Row],[25th]])/25)*5) + AAMC_Raw_Data_for_FY22[[#This Row],[25th]]","v":77407.199999999997},{"$f":"(((AAMC_Raw_Data_for_FY22[[#This Row],[Median]]-AAMC_Raw_Data_for_FY22[[#This Row],[25th]])/25)*10) + AAMC_Raw_Data_for_FY22[[#This Row],[25th]]","v":80580.399999999994},{"$f":"(((AAMC_Raw_Data_for_FY22[[#This Row],[Median]]-AAMC_Raw_Data_for_FY22[[#This Row],[25th]])/25)*15) + AAMC_Raw_Data_for_FY22[[#This Row],[25th]]","v":83753.600000000006},{"$f":"(((AAMC_Raw_Data_for_FY22[[#This Row],[Median]]-AAMC_Raw_Data_for_FY22[[#This Row],[25th]])/25)*20) + AAMC_Raw_Data_for_FY22[[#This Row],[25th]]","v":86926.8},90100,{"$f":"(((AAMC_Raw_Data_for_FY22[[#This Row],[75th]]-AAMC_Raw_Data_for_FY22[[#This Row],[Median]])/25)*5) + AAMC_Raw_Data_for_FY22[[#This Row],[Median]]","v":94710.2},{"$f":"(((AAMC_Raw_Data_for_FY22[[#This Row],[75th]]-AAMC_Raw_Data_for_FY22[[#This Row],[Median]])/25)*10) + AAMC_Raw_Data_for_FY22[[#This Row],[Median]]","v":99320.4},{"$f":"(((AAMC_Raw_Data_for_FY22[[#This Row],[75th]]-AAMC_Raw_Data_for_FY22[[#This Row],[Median]])/25)*15) + AAMC_Raw_Data_for_FY22[[#This Row],[Median]]","v":103930.6},{"$f":"(((AAMC_Raw_Data_for_FY22[[#This Row],[75th]]-AAMC_Raw_Data_for_FY22[[#This Row],[Median]])/25)*20) + AAMC_Raw_Data_for_FY22[[#This Row],[Median]]","v":108540.8},113151,{"$f":"(((AAMC_Raw_Data_for_FY22[[#This Row],[75th]]-AAMC_Raw_Data_for_FY22[[#This Row],[Median]])/25)*30) + AAMC_Raw_Data_for_FY22[[#This Row],[Median]]","v":117761.2},{"$f":"(((AAMC_Raw_Data_for_FY22[[#This Row],[75th]]-AAMC_Raw_Data_for_FY22[[#This Row],[Median]])/25)*35) + AAMC_Raw_Data_for_FY22[[#This Row],[Median]]","v":122371.4},{"$f":"(((AAMC_Raw_Data_for_FY22[[#This Row],[75th]]-AAMC_Raw_Data_for_FY22[[#This Row],[Median]])/25)*40) + AAMC_Raw_Data_for_FY22[[#This Row],[Median]]","v":126981.6}]
[{"$f":"AAMC_Raw_Data_for_FY22[[#This Row],[Source]]&AAMC_Raw_Data_for_FY22[[#This Row],[Type]]&AAMC_Raw_Data_for_FY22[[#This Row],[School Subset]]&AAMC_Raw_Data_for_FY22[[#This Row],[Rank]]&AAMC_Raw_Data_for_FY22[[#This Row],[Degree]]&AAMC_Raw_Data_for_FY22[[#This Row],[Department / Specialty]]&\"L\"","v":"AAMCAcademicPrivateAssistantPhDClinical Sciences TotalL"},"Clinical Sciences Total",4,"AAMC","Academic","Private","Assistant","PhD","2021-2022",101924,{"$f":"(((AAMC_Raw_Data_for_FY22[[#This Row],[Median]]-AAMC_Raw_Data_for_FY22[[#This Row],[25th]])/25)*5) + AAMC_Raw_Data_for_FY22[[#This Row],[25th]]","v":105539.2},{"$f":"(((AAMC_Raw_Data_for_FY22[[#This Row],[Median]]-AAMC_Raw_Data_for_FY22[[#This Row],[25th]])/25)*10) + AAMC_Raw_Data_for_FY22[[#This Row],[25th]]","v":109154.4},{"$f":"(((AAMC_Raw_Data_for_FY22[[#This Row],[Median]]-AAMC_Raw_Data_for_FY22[[#This Row],[25th]])/25)*15) + AAMC_Raw_Data_for_FY22[[#This Row],[25th]]","v":112769.60000000001},{"$f":"(((AAMC_Raw_Data_for_FY22[[#This Row],[Median]]-AAMC_Raw_Data_for_FY22[[#This Row],[25th]])/25)*20) + AAMC_Raw_Data_for_FY22[[#This Row],[25th]]","v":116384.8},120000,{"$f":"(((AAMC_Raw_Data_for_FY22[[#This Row],[75th]]-AAMC_Raw_Data_for_FY22[[#This Row],[Median]])/25)*5) + AAMC_Raw_Data_for_FY22[[#This Row],[Median]]","v":124367},{"$f":"(((AAMC_Raw_Data_for_FY22[[#This Row],[75th]]-AAMC_Raw_Data_for_FY22[[#This Row],[Median]])/25)*10) + AAMC_Raw_Data_for_FY22[[#This Row],[Median]]","v":128734},{"$f":"(((AAMC_Raw_Data_for_FY22[[#This Row],[75th]]-AAMC_Raw_Data_for_FY22[[#This Row],[Median]])/25)*15) + AAMC_Raw_Data_for_FY22[[#This Row],[Median]]","v":133101},{"$f":"(((AAMC_Raw_Data_for_FY22[[#This Row],[75th]]-AAMC_Raw_Data_for_FY22[[#This Row],[Median]])/25)*20) + AAMC_Raw_Data_for_FY22[[#This Row],[Median]]","v":137468},141835,{"$f":"(((AAMC_Raw_Data_for_FY22[[#This Row],[75th]]-AAMC_Raw_Data_for_FY22[[#This Row],[Median]])/25)*30) + AAMC_Raw_Data_for_FY22[[#This Row],[Median]]","v":146202},{"$f":"(((AAMC_Raw_Data_for_FY22[[#This Row],[75th]]-AAMC_Raw_Data_for_FY22[[#This Row],[Median]])/25)*35) + AAMC_Raw_Data_for_FY22[[#This Row],[Median]]","v":150569},{"$f":"(((AAMC_Raw_Data_for_FY22[[#This Row],[75th]]-AAMC_Raw_Data_for_FY22[[#This Row],[Median]])/25)*40) + AAMC_Raw_Data_for_FY22[[#This Row],[Median]]","v":154936}]
[{"$f":"AAMC_Raw_Data_for_FY22[[#This Row],[Source]]&AAMC_Raw_Data_for_FY22[[#This Row],[Type]]&AAMC_Raw_Data_for_FY22[[#This Row],[School Subset]]&AAMC_Raw_Data_for_FY22[[#This Row],[Rank]]&AAMC_Raw_Data_for_FY22[[#This Row],[Degree]]&AAMC_Raw_Data_for_FY22[[#This Row],[Department / Specialty]]&\"L\"","v":"AAMCAcademicPrivateAssociatePhDClinical Sciences TotalL"},"Clinical Sciences Total",3,"AAMC","Academic","Private","Associate","PhD","2021-2022",132574,{"$f":"(((AAMC_Raw_Data_for_FY22[[#This Row],[Median]]-AAMC_Raw_Data_for_FY22[[#This Row],[25th]])/25)*5) + AAMC_Raw_Data_for_FY22[[#This Row],[25th]]","v":137277},{"$f":"(((AAMC_Raw_Data_for_FY22[[#This Row],[Median]]-AAMC_Raw_Data_for_FY22[[#This Row],[25th]])/25)*10) + AAMC_Raw_Data_for_FY22[[#This Row],[25th]]","v":141980},{"$f":"(((AAMC_Raw_Data_for_FY22[[#This Row],[Median]]-AAMC_Raw_Data_for_FY22[[#This Row],[25th]])/25)*15) + AAMC_Raw_Data_for_FY22[[#This Row],[25th]]","v":146683},{"$f":"(((AAMC_Raw_Data_for_FY22[[#This Row],[Median]]-AAMC_Raw_Data_for_FY22[[#This Row],[25th]])/25)*20) + AAMC_Raw_Data_for_FY22[[#This Row],[25th]]","v":151386},156089,{"$f":"(((AAMC_Raw_Data_for_FY22[[#This Row],[75th]]-AAMC_Raw_Data_for_FY22[[#This Row],[Median]])/25)*5) + AAMC_Raw_Data_for_FY22[[#This Row],[Median]]","v":163086.79999999999},{"$f":"(((AAMC_Raw_Data_for_FY22[[#This Row],[75th]]-AAMC_Raw_Data_for_FY22[[#This Row],[Median]])/25)*10) + AAMC_Raw_Data_for_FY22[[#This Row],[Median]]","v":170084.6},{"$f":"(((AAMC_Raw_Data_for_FY22[[#This Row],[75th]]-AAMC_Raw_Data_for_FY22[[#This Row],[Median]])/25)*15) + AAMC_Raw_Data_for_FY22[[#This Row],[Median]]","v":177082.4},{"$f":"(((AAMC_Raw_Data_for_FY22[[#This Row],[75th]]-AAMC_Raw_Data_for_FY22[[#This Row],[Median]])/25)*20) + AAMC_Raw_Data_for_FY22[[#This Row],[Median]]","v":184080.2},191078,{"$f":"(((AAMC_Raw_Data_for_FY22[[#This Row],[75th]]-AAMC_Raw_Data_for_FY22[[#This Row],[Median]])/25)*30) + AAMC_Raw_Data_for_FY22[[#This Row],[Median]]","v":198075.8},{"$f":"(((AAMC_Raw_Data_for_FY22[[#This Row],[75th]]-AAMC_Raw_Data_for_FY22[[#This Row],[Median]])/25)*35) + AAMC_Raw_Data_for_FY22[[#This Row],[Median]]","v":205073.6},{"$f":"(((AAMC_Raw_Data_for_FY22[[#This Row],[75th]]-AAMC_Raw_Data_for_FY22[[#This Row],[Median]])/25)*40) + AAMC_Raw_Data_for_FY22[[#This Row],[Median]]","v":212071.4}]
[{"$f":"AAMC_Raw_Data_for_FY22[[#This Row],[Source]]&AAMC_Raw_Data_for_FY22[[#This Row],[Type]]&AAMC_Raw_Data_for_FY22[[#This Row],[School Subset]]&AAMC_Raw_Data_for_FY22[[#This Row],[Rank]]&AAMC_Raw_Data_for_FY22[[#This Row],[Degree]]&AAMC_Raw_Data_for_FY22[[#This Row],[Department / Specialty]]&\"L\"","v":"AAMCAcademicPrivateProfessorPhDClinical Sciences TotalL"},"Clinical Sciences Total",2,"AAMC","Academic","Private","Professor","PhD","2021-2022",190275,{"$f":"(((AAMC_Raw_Data_for_FY22[[#This Row],[Median]]-AAMC_Raw_Data_for_FY22[[#This Row],[25th]])/25)*5) + AAMC_Raw_Data_for_FY22[[#This Row],[25th]]","v":198080},{"$f":"(((AAMC_Raw_Data_for_FY22[[#This Row],[Median]]-AAMC_Raw_Data_for_FY22[[#This Row],[25th]])/25)*10) + AAMC_Raw_Data_for_FY22[[#This Row],[25th]]","v":205885},{"$f":"(((AAMC_Raw_Data_for_FY22[[#This Row],[Median]]-AAMC_Raw_Data_for_FY22[[#This Row],[25th]])/25)*15) + AAMC_Raw_Data_for_FY22[[#This Row],[25th]]","v":213690},{"$f":"(((AAMC_Raw_Data_for_FY22[[#This Row],[Median]]-AAMC_Raw_Data_for_FY22[[#This Row],[25th]])/25)*20) + AAMC_Raw_Data_for_FY22[[#This Row],[25th]]","v":221495},229300,{"$f":"(((AAMC_Raw_Data_for_FY22[[#This Row],[75th]]-AAMC_Raw_Data_for_FY22[[#This Row],[Median]])/25)*5) + AAMC_Raw_Data_for_FY22[[#This Row],[Median]]","v":240296},{"$f":"(((AAMC_Raw_Data_for_FY22[[#This Row],[75th]]-AAMC_Raw_Data_for_FY22[[#This Row],[Median]])/25)*10) + AAMC_Raw_Data_for_FY22[[#This Row],[Median]]","v":251292},{"$f":"(((AAMC_Raw_Data_for_FY22[[#This Row],[75th]]-AAMC_Raw_Data_for_FY22[[#This Row],[Median]])/25)*15) + AAMC_Raw_Data_for_FY22[[#This Row],[Median]]","v":262288},{"$f":"(((AAMC_Raw_Data_for_FY22[[#This Row],[75th]]-AAMC_Raw_Data_for_FY22[[#This Row],[Median]])/25)*20) + AAMC_Raw_Data_for_FY22[[#This Row],[Median]]","v":273284},284280,{"$f":"(((AAMC_Raw_Data_for_FY22[[#This Row],[75th]]-AAMC_Raw_Data_for_FY22[[#This Row],[Median]])/25)*30) + AAMC_Raw_Data_for_FY22[[#This Row],[Median]]","v":295276},{"$f":"(((AAMC_Raw_Data_for_FY22[[#This Row],[75th]]-AAMC_Raw_Data_for_FY22[[#This Row],[Median]])/25)*35) + AAMC_Raw_Data_for_FY22[[#This Row],[Median]]","v":306272},{"$f":"(((AAMC_Raw_Data_for_FY22[[#This Row],[75th]]-AAMC_Raw_Data_for_FY22[[#This Row],[Median]])/25)*40) + AAMC_Raw_Data_for_FY22[[#This Row],[Median]]","v":317268}]
[{"$f":"AAMC_Raw_Data_for_FY22[[#This Row],[Source]]&AAMC_Raw_Data_for_FY22[[#This Row],[Type]]&AAMC_Raw_Data_for_FY22[[#This Row],[School Subset]]&AAMC_Raw_Data_for_FY22[[#This Row],[Rank]]&AAMC_Raw_Data_for_FY22[[#This Row],[Degree]]&AAMC_Raw_Data_for_FY22[[#This Row],[Department / Specialty]]&\"L\"","v":"AAMCAcademicPrivateChiefPhDClinical Sciences TotalL"},"Clinical Sciences Total",6,"AAMC","Academic","Private","Chief","PhD","2021-2022",239004,{"$f":"(((AAMC_Raw_Data_for_FY22[[#This Row],[Median]]-AAMC_Raw_Data_for_FY22[[#This Row],[25th]])/25)*5) + AAMC_Raw_Data_for_FY22[[#This Row],[25th]]","v":249233.4},{"$f":"(((AAMC_Raw_Data_for_FY22[[#This Row],[Median]]-AAMC_Raw_Data_for_FY22[[#This Row],[25th]])/25)*10) + AAMC_Raw_Data_for_FY22[[#This Row],[25th]]","v":259462.8},{"$f":"(((AAMC_Raw_Data_for_FY22[[#This Row],[Median]]-AAMC_Raw_Data_for_FY22[[#This Row],[25th]])/25)*15) + AAMC_Raw_Data_for_FY22[[#This Row],[25th]]","v":269692.2},{"$f":"(((AAMC_Raw_Data_for_FY22[[#This Row],[Median]]-AAMC_Raw_Data_for_FY22[[#This Row],[25th]])/25)*20) + AAMC_Raw_Data_for_FY22[[#This Row],[25th]]","v":279921.59999999998},290151,{"$f":"(((AAMC_Raw_Data_for_FY22[[#This Row],[75th]]-AAMC_Raw_Data_for_FY22[[#This Row],[Median]])/25)*5) + AAMC_Raw_Data_for_FY22[[#This Row],[Median]]","v":304678.8},{"$f":"(((AAMC_Raw_Data_for_FY22[[#This Row],[75th]]-AAMC_Raw_Data_for_FY22[[#This Row],[Median]])/25)*10) + AAMC_Raw_Data_for_FY22[[#This Row],[Median]]","v":319206.59999999998},{"$f":"(((AAMC_Raw_Data_for_FY22[[#This Row],[75th]]-AAMC_Raw_Data_for_FY22[[#This Row],[Median]])/25)*15) + AAMC_Raw_Data_for_FY22[[#This Row],[Median]]","v":333734.40000000002},{"$f":"(((AAMC_Raw_Data_for_FY22[[#This Row],[75th]]-AAMC_Raw_Data_for_FY22[[#This Row],[Median]])/25)*20) + AAMC_Raw_Data_for_FY22[[#This Row],[Median]]","v":348262.2},362790,{"$f":"(((AAMC_Raw_Data_for_FY22[[#This Row],[75th]]-AAMC_Raw_Data_for_FY22[[#This Row],[Median]])/25)*30) + AAMC_Raw_Data_for_FY22[[#This Row],[Median]]","v":377317.8},{"$f":"(((AAMC_Raw_Data_for_FY22[[#This Row],[75th]]-AAMC_Raw_Data_for_FY22[[#This Row],[Median]])/25)*35) + AAMC_Raw_Data_for_FY22[[#This Row],[Median]]","v":391845.6},{"$f":"(((AAMC_Raw_Data_for_FY22[[#This Row],[75th]]-AAMC_Raw_Data_for_FY22[[#This Row],[Median]])/25)*40) + AAMC_Raw_Data_for_FY22[[#This Row],[Median]]","v":406373.4}]
[{"$f":"AAMC_Raw_Data_for_FY22[[#This Row],[Source]]&AAMC_Raw_Data_for_FY22[[#This Row],[Type]]&AAMC_Raw_Data_for_FY22[[#This Row],[School Subset]]&AAMC_Raw_Data_for_FY22[[#This Row],[Rank]]&AAMC_Raw_Data_for_FY22[[#This Row],[Degree]]&AAMC_Raw_Data_for_FY22[[#This Row],[Department / Specialty]]&\"L\"","v":"AAMCAcademicPrivateChairPhDClinical Sciences TotalL"},"Clinical Sciences Total",1,"AAMC","Academic","Private","Chair","PhD","2021-2022",259520,{"$f":"(((AAMC_Raw_Data_for_FY22[[#This Row],[Median]]-AAMC_Raw_Data_for_FY22[[#This Row],[25th]])/25)*5) + AAMC_Raw_Data_for_FY22[[#This Row],[25th]]","v":305617.2},{"$f":"(((AAMC_Raw_Data_for_FY22[[#This Row],[Median]]-AAMC_Raw_Data_for_FY22[[#This Row],[25th]])/25)*10) + AAMC_Raw_Data_for_FY22[[#This Row],[25th]]","v":351714.4},{"$f":"(((AAMC_Raw_Data_for_FY22[[#This Row],[Median]]-AAMC_Raw_Data_for_FY22[[#This Row],[25th]])/25)*15) + AAMC_Raw_Data_for_FY22[[#This Row],[25th]]","v":397811.6},{"$f":"(((AAMC_Raw_Data_for_FY22[[#This Row],[Median]]-AAMC_Raw_Data_for_FY22[[#This Row],[25th]])/25)*20) + AAMC_Raw_Data_for_FY22[[#This Row],[25th]]","v":443908.80000000005},490006,{"$f":"(((AAMC_Raw_Data_for_FY22[[#This Row],[75th]]-AAMC_Raw_Data_for_FY22[[#This Row],[Median]])/25)*5) + AAMC_Raw_Data_for_FY22[[#This Row],[Median]]","v":519657},{"$f":"(((AAMC_Raw_Data_for_FY22[[#This Row],[75th]]-AAMC_Raw_Data_for_FY22[[#This Row],[Median]])/25)*10) + AAMC_Raw_Data_for_FY22[[#This Row],[Median]]","v":549308},{"$f":"(((AAMC_Raw_Data_for_FY22[[#This Row],[75th]]-AAMC_Raw_Data_for_FY22[[#This Row],[Median]])/25)*15) + AAMC_Raw_Data_for_FY22[[#This Row],[Median]]","v":578959},{"$f":"(((AAMC_Raw_Data_for_FY22[[#This Row],[75th]]-AAMC_Raw_Data_for_FY22[[#This Row],[Median]])/25)*20) + AAMC_Raw_Data_for_FY22[[#This Row],[Median]]","v":608610},638261,{"$f":"(((AAMC_Raw_Data_for_FY22[[#This Row],[75th]]-AAMC_Raw_Data_for_FY22[[#This Row],[Median]])/25)*30) + AAMC_Raw_Data_for_FY22[[#This Row],[Median]]","v":667912},{"$f":"(((AAMC_Raw_Data_for_FY22[[#This Row],[75th]]-AAMC_Raw_Data_for_FY22[[#This Row],[Median]])/25)*35) + AAMC_Raw_Data_for_FY22[[#This Row],[Median]]","v":697563},{"$f":"(((AAMC_Raw_Data_for_FY22[[#This Row],[75th]]-AAMC_Raw_Data_for_FY22[[#This Row],[Median]])/25)*40) + AAMC_Raw_Data_for_FY22[[#This Row],[Median]]","v":727214}]
[{"$f":"AAMC_Raw_Data_for_FY22[[#This Row],[Source]]&AAMC_Raw_Data_for_FY22[[#This Row],[Type]]&AAMC_Raw_Data_for_FY22[[#This Row],[School Subset]]&AAMC_Raw_Data_for_FY22[[#This Row],[Rank]]&AAMC_Raw_Data_for_FY22[[#This Row],[Degree]]&AAMC_Raw_Data_for_FY22[[#This Row],[Department / Specialty]]&\"L\"","v":"AAMCAcademicPrivateInstructorPhDAnesthesiology TotalL"},"Anesthesiology Total",5,"AAMC","Academic","Private","Instructor","PhD","2021-2022",84850,{"$f":"(((AAMC_Raw_Data_for_FY22[[#This Row],[Median]]-AAMC_Raw_Data_for_FY22[[#This Row],[25th]])/25)*5) + AAMC_Raw_Data_for_FY22[[#This Row],[25th]]","v":87964.6},{"$f":"(((AAMC_Raw_Data_for_FY22[[#This Row],[Median]]-AAMC_Raw_Data_for_FY22[[#This Row],[25th]])/25)*10) + AAMC_Raw_Data_for_FY22[[#This Row],[25th]]","v":91079.2},{"$f":"(((AAMC_Raw_Data_for_FY22[[#This Row],[Median]]-AAMC_Raw_Data_for_FY22[[#This Row],[25th]])/25)*15) + AAMC_Raw_Data_for_FY22[[#This Row],[25th]]","v":94193.8},{"$f":"(((AAMC_Raw_Data_for_FY22[[#This Row],[Median]]-AAMC_Raw_Data_for_FY22[[#This Row],[25th]])/25)*20) + AAMC_Raw_Data_for_FY22[[#This Row],[25th]]","v":97308.4},100423,{"$f":"(((AAMC_Raw_Data_for_FY22[[#This Row],[75th]]-AAMC_Raw_Data_for_FY22[[#This Row],[Median]])/25)*5) + AAMC_Raw_Data_for_FY22[[#This Row],[Median]]","v":113932},{"$f":"(((AAMC_Raw_Data_for_FY22[[#This Row],[75th]]-AAMC_Raw_Data_for_FY22[[#This Row],[Median]])/25)*10) + AAMC_Raw_Data_for_FY22[[#This Row],[Median]]","v":127441},{"$f":"(((AAMC_Raw_Data_for_FY22[[#This Row],[75th]]-AAMC_Raw_Data_for_FY22[[#This Row],[Median]])/25)*15) + AAMC_Raw_Data_for_FY22[[#This Row],[Median]]","v":140950},{"$f":"(((AAMC_Raw_Data_for_FY22[[#This Row],[75th]]-AAMC_Raw_Data_for_FY22[[#This Row],[Median]])/25)*20) + AAMC_Raw_Data_for_FY22[[#This Row],[Median]]","v":154459},167968,{"$f":"(((AAMC_Raw_Data_for_FY22[[#This Row],[75th]]-AAMC_Raw_Data_for_FY22[[#This Row],[Median]])/25)*30) + AAMC_Raw_Data_for_FY22[[#This Row],[Median]]","v":181477},{"$f":"(((AAMC_Raw_Data_for_FY22[[#This Row],[75th]]-AAMC_Raw_Data_for_FY22[[#This Row],[Median]])/25)*35) + AAMC_Raw_Data_for_FY22[[#This Row],[Median]]","v":194986},{"$f":"(((AAMC_Raw_Data_for_FY22[[#This Row],[75th]]-AAMC_Raw_Data_for_FY22[[#This Row],[Median]])/25)*40) + AAMC_Raw_Data_for_FY22[[#This Row],[Median]]","v":208495}]
[{"$f":"AAMC_Raw_Data_for_FY22[[#This Row],[Source]]&AAMC_Raw_Data_for_FY22[[#This Row],[Type]]&AAMC_Raw_Data_for_FY22[[#This Row],[School Subset]]&AAMC_Raw_Data_for_FY22[[#This Row],[Rank]]&AAMC_Raw_Data_for_FY22[[#This Row],[Degree]]&AAMC_Raw_Data_for_FY22[[#This Row],[Department / Specialty]]&\"L\"","v":"AAMCAcademicPrivateAssistantPhDAnesthesiology TotalL"},"Anesthesiology Total",4,"AAMC","Academic","Private","Assistant","PhD","2021-2022",116471,{"$f":"(((AAMC_Raw_Data_for_FY22[[#This Row],[Median]]-AAMC_Raw_Data_for_FY22[[#This Row],[25th]])/25)*5) + AAMC_Raw_Data_for_FY22[[#This Row],[25th]]","v":122247.2},{"$f":"(((AAMC_Raw_Data_for_FY22[[#This Row],[Median]]-AAMC_Raw_Data_for_FY22[[#This Row],[25th]])/25)*10) + AAMC_Raw_Data_for_FY22[[#This Row],[25th]]","v":128023.4},{"$f":"(((AAMC_Raw_Data_for_FY22[[#This Row],[Median]]-AAMC_Raw_Data_for_FY22[[#This Row],[25th]])/25)*15) + AAMC_Raw_Data_for_FY22[[#This Row],[25th]]","v":133799.6},{"$f":"(((AAMC_Raw_Data_for_FY22[[#This Row],[Median]]-AAMC_Raw_Data_for_FY22[[#This Row],[25th]])/25)*20) + AAMC_Raw_Data_for_FY22[[#This Row],[25th]]","v":139575.79999999999},145352,{"$f":"(((AAMC_Raw_Data_for_FY22[[#This Row],[75th]]-AAMC_Raw_Data_for_FY22[[#This Row],[Median]])/25)*5) + AAMC_Raw_Data_for_FY22[[#This Row],[Median]]","v":153607.79999999999},{"$f":"(((AAMC_Raw_Data_for_FY22[[#This Row],[75th]]-AAMC_Raw_Data_for_FY22[[#This Row],[Median]])/25)*10) + AAMC_Raw_Data_for_FY22[[#This Row],[Median]]","v":161863.6},{"$f":"(((AAMC_Raw_Data_for_FY22[[#This Row],[75th]]-AAMC_Raw_Data_for_FY22[[#This Row],[Median]])/25)*15) + AAMC_Raw_Data_for_FY22[[#This Row],[Median]]","v":170119.4},{"$f":"(((AAMC_Raw_Data_for_FY22[[#This Row],[75th]]-AAMC_Raw_Data_for_FY22[[#This Row],[Median]])/25)*20) + AAMC_Raw_Data_for_FY22[[#This Row],[Median]]","v":178375.2},186631,{"$f":"(((AAMC_Raw_Data_for_FY22[[#This Row],[75th]]-AAMC_Raw_Data_for_FY22[[#This Row],[Median]])/25)*30) + AAMC_Raw_Data_for_FY22[[#This Row],[Median]]","v":194886.8},{"$f":"(((AAMC_Raw_Data_for_FY22[[#This Row],[75th]]-AAMC_Raw_Data_for_FY22[[#This Row],[Median]])/25)*35) + AAMC_Raw_Data_for_FY22[[#This Row],[Median]]","v":203142.6},{"$f":"(((AAMC_Raw_Data_for_FY22[[#This Row],[75th]]-AAMC_Raw_Data_for_FY22[[#This Row],[Median]])/25)*40) + AAMC_Raw_Data_for_FY22[[#This Row],[Median]]","v":211398.40000000002}]
[{"$f":"AAMC_Raw_Data_for_FY22[[#This Row],[Source]]&AAMC_Raw_Data_for_FY22[[#This Row],[Type]]&AAMC_Raw_Data_for_FY22[[#This Row],[School Subset]]&AAMC_Raw_Data_for_FY22[[#This Row],[Rank]]&AAMC_Raw_Data_for_FY22[[#This Row],[Degree]]&AAMC_Raw_Data_for_FY22[[#This Row],[Department / Specialty]]&\"L\"","v":"AAMCAcademicPrivateAssociatePhDAnesthesiology TotalL"},"Anesthesiology Total",3,"AAMC","Academic","Private","Associate","PhD","2021-2022",141975,{"$f":"(((AAMC_Raw_Data_for_FY22[[#This Row],[Median]]-AAMC_Raw_Data_for_FY22[[#This Row],[25th]])/25)*5) + AAMC_Raw_Data_for_FY22[[#This Row],[25th]]","v":149497.79999999999},{"$f":"(((AAMC_Raw_Data_for_FY22[[#This Row],[Median]]-AAMC_Raw_Data_for_FY22[[#This Row],[25th]])/25)*10) + AAMC_Raw_Data_for_FY22[[#This Row],[25th]]","v":157020.6},{"$f":"(((AAMC_Raw_Data_for_FY22[[#This Row],[Median]]-AAMC_Raw_Data_for_FY22[[#This Row],[25th]])/25)*15) + AAMC_Raw_Data_for_FY22[[#This Row],[25th]]","v":164543.4},{"$f":"(((AAMC_Raw_Data_for_FY22[[#This Row],[Median]]-AAMC_Raw_Data_for_FY22[[#This Row],[25th]])/25)*20) + AAMC_Raw_Data_for_FY22[[#This Row],[25th]]","v":172066.2},179589,{"$f":"(((AAMC_Raw_Data_for_FY22[[#This Row],[75th]]-AAMC_Raw_Data_for_FY22[[#This Row],[Median]])/25)*5) + AAMC_Raw_Data_for_FY22[[#This Row],[Median]]","v":184235.8},{"$f":"(((AAMC_Raw_Data_for_FY22[[#This Row],[75th]]-AAMC_Raw_Data_for_FY22[[#This Row],[Median]])/25)*10) + AAMC_Raw_Data_for_FY22[[#This Row],[Median]]","v":188882.6},{"$f":"(((AAMC_Raw_Data_for_FY22[[#This Row],[75th]]-AAMC_Raw_Data_for_FY22[[#This Row],[Median]])/25)*15) + AAMC_Raw_Data_for_FY22[[#This Row],[Median]]","v":193529.4},{"$f":"(((AAMC_Raw_Data_for_FY22[[#This Row],[75th]]-AAMC_Raw_Data_for_FY22[[#This Row],[Median]])/25)*20) + AAMC_Raw_Data_for_FY22[[#This Row],[Median]]","v":198176.2},202823,{"$f":"(((AAMC_Raw_Data_for_FY22[[#This Row],[75th]]-AAMC_Raw_Data_for_FY22[[#This Row],[Median]])/25)*30) + AAMC_Raw_Data_for_FY22[[#This Row],[Median]]","v":207469.8},{"$f":"(((AAMC_Raw_Data_for_FY22[[#This Row],[75th]]-AAMC_Raw_Data_for_FY22[[#This Row],[Median]])/25)*35) + AAMC_Raw_Data_for_FY22[[#This Row],[Median]]","v":212116.6},{"$f":"(((AAMC_Raw_Data_for_FY22[[#This Row],[75th]]-AAMC_Raw_Data_for_FY22[[#This Row],[Median]])/25)*40) + AAMC_Raw_Data_for_FY22[[#This Row],[Median]]","v":216763.4}]
[{"$f":"AAMC_Raw_Data_for_FY22[[#This Row],[Source]]&AAMC_Raw_Data_for_FY22[[#This Row],[Type]]&AAMC_Raw_Data_for_FY22[[#This Row],[School Subset]]&AAMC_Raw_Data_for_FY22[[#This Row],[Rank]]&AAMC_Raw_Data_for_FY22[[#This Row],[Degree]]&AAMC_Raw_Data_for_FY22[[#This Row],[Department / Specialty]]&\"L\"","v":"AAMCAcademicPrivateProfessorPhDAnesthesiology TotalL"},"Anesthesiology Total",2,"AAMC","Academic","Private","Professor","PhD","2021-2022",199766,{"$f":"(((AAMC_Raw_Data_for_FY22[[#This Row],[Median]]-AAMC_Raw_Data_for_FY22[[#This Row],[25th]])/25)*5) + AAMC_Raw_Data_for_FY22[[#This Row],[25th]]","v":207121.2},{"$f":"(((AAMC_Raw_Data_for_FY22[[#This Row],[Median]]-AAMC_Raw_Data_for_FY22[[#This Row],[25th]])/25)*10) + AAMC_Raw_Data_for_FY22[[#This Row],[25th]]","v":214476.4},{"$f":"(((AAMC_Raw_Data_for_FY22[[#This Row],[Median]]-AAMC_Raw_Data_for_FY22[[#This Row],[25th]])/25)*15) + AAMC_Raw_Data_for_FY22[[#This Row],[25th]]","v":221831.6},{"$f":"(((AAMC_Raw_Data_for_FY22[[#This Row],[Median]]-AAMC_Raw_Data_for_FY22[[#This Row],[25th]])/25)*20) + AAMC_Raw_Data_for_FY22[[#This Row],[25th]]","v":229186.8},236542,{"$f":"(((AAMC_Raw_Data_for_FY22[[#This Row],[75th]]-AAMC_Raw_Data_for_FY22[[#This Row],[Median]])/25)*5) + AAMC_Raw_Data_for_FY22[[#This Row],[Median]]","v":246920.6},{"$f":"(((AAMC_Raw_Data_for_FY22[[#This Row],[75th]]-AAMC_Raw_Data_for_FY22[[#This Row],[Median]])/25)*10) + AAMC_Raw_Data_for_FY22[[#This Row],[Median]]","v":257299.20000000001},{"$f":"(((AAMC_Raw_Data_for_FY22[[#This Row],[75th]]-AAMC_Raw_Data_for_FY22[[#This Row],[Median]])/25)*15) + AAMC_Raw_Data_for_FY22[[#This Row],[Median]]","v":267677.8},{"$f":"(((AAMC_Raw_Data_for_FY22[[#This Row],[75th]]-AAMC_Raw_Data_for_FY22[[#This Row],[Median]])/25)*20) + AAMC_Raw_Data_for_FY22[[#This Row],[Median]]","v":278056.40000000002},288435,{"$f":"(((AAMC_Raw_Data_for_FY22[[#This Row],[75th]]-AAMC_Raw_Data_for_FY22[[#This Row],[Median]])/25)*30) + AAMC_Raw_Data_for_FY22[[#This Row],[Median]]","v":298813.59999999998},{"$f":"(((AAMC_Raw_Data_for_FY22[[#This Row],[75th]]-AAMC_Raw_Data_for_FY22[[#This Row],[Median]])/25)*35) + AAMC_Raw_Data_for_FY22[[#This Row],[Median]]","v":309192.2},{"$f":"(((AAMC_Raw_Data_for_FY22[[#This Row],[75th]]-AAMC_Raw_Data_for_FY22[[#This Row],[Median]])/25)*40) + AAMC_Raw_Data_for_FY22[[#This Row],[Median]]","v":319570.8}]
[{"$f":"AAMC_Raw_Data_for_FY22[[#This Row],[Source]]&AAMC_Raw_Data_for_FY22[[#This Row],[Type]]&AAMC_Raw_Data_for_FY22[[#This Row],[School Subset]]&AAMC_Raw_Data_for_FY22[[#This Row],[Rank]]&AAMC_Raw_Data_for_FY22[[#This Row],[Degree]]&AAMC_Raw_Data_for_FY22[[#This Row],[Department / Specialty]]&\"L\"","v":"AAMCAcademicPrivateChiefPhDAnesthesiology TotalL"},"Anesthesiology Total",6,"AAMC","Academic","Private","Chief","PhD","2021-2022",null,{"$f":"(((AAMC_Raw_Data_for_FY22[[#This Row],[Median]]-AAMC_Raw_Data_for_FY22[[#This Row],[25th]])/25)*5) + AAMC_Raw_Data_for_FY22[[#This Row],[25th]]","v":0},{"$f":"(((AAMC_Raw_Data_for_FY22[[#This Row],[Median]]-AAMC_Raw_Data_for_FY22[[#This Row],[25th]])/25)*10) + AAMC_Raw_Data_for_FY22[[#This Row],[25th]]","v":0},{"$f":"(((AAMC_Raw_Data_for_FY22[[#This Row],[Median]]-AAMC_Raw_Data_for_FY22[[#This Row],[25th]])/25)*15) + AAMC_Raw_Data_for_FY22[[#This Row],[25th]]","v":0},{"$f":"(((AAMC_Raw_Data_for_FY22[[#This Row],[Median]]-AAMC_Raw_Data_for_FY22[[#This Row],[25th]])/25)*20) + AAMC_Raw_Data_for_FY22[[#This Row],[25th]]","v":0},null,{"$f":"(((AAMC_Raw_Data_for_FY22[[#This Row],[75th]]-AAMC_Raw_Data_for_FY22[[#This Row],[Median]])/25)*5) + AAMC_Raw_Data_for_FY22[[#This Row],[Median]]","v":0},{"$f":"(((AAMC_Raw_Data_for_FY22[[#This Row],[75th]]-AAMC_Raw_Data_for_FY22[[#This Row],[Median]])/25)*10) + AAMC_Raw_Data_for_FY22[[#This Row],[Median]]","v":0},{"$f":"(((AAMC_Raw_Data_for_FY22[[#This Row],[75th]]-AAMC_Raw_Data_for_FY22[[#This Row],[Median]])/25)*15) + AAMC_Raw_Data_for_FY22[[#This Row],[Median]]","v":0},{"$f":"(((AAMC_Raw_Data_for_FY22[[#This Row],[75th]]-AAMC_Raw_Data_for_FY22[[#This Row],[Median]])/25)*20) + AAMC_Raw_Data_for_FY22[[#This Row],[Median]]","v":0},null,{"$f":"(((AAMC_Raw_Data_for_FY22[[#This Row],[75th]]-AAMC_Raw_Data_for_FY22[[#This Row],[Median]])/25)*30) + AAMC_Raw_Data_for_FY22[[#This Row],[Median]]","v":0},{"$f":"(((AAMC_Raw_Data_for_FY22[[#This Row],[75th]]-AAMC_Raw_Data_for_FY22[[#This Row],[Median]])/25)*35) + AAMC_Raw_Data_for_FY22[[#This Row],[Median]]","v":0},{"$f":"(((AAMC_Raw_Data_for_FY22[[#This Row],[75th]]-AAMC_Raw_Data_for_FY22[[#This Row],[Median]])/25)*40) + AAMC_Raw_Data_for_FY22[[#This Row],[Median]]","v":0}]
[{"$f":"AAMC_Raw_Data_for_FY22[[#This Row],[Source]]&AAMC_Raw_Data_for_FY22[[#This Row],[Type]]&AAMC_Raw_Data_for_FY22[[#This Row],[School Subset]]&AAMC_Raw_Data_for_FY22[[#This Row],[Rank]]&AAMC_Raw_Data_for_FY22[[#This Row],[Degree]]&AAMC_Raw_Data_for_FY22[[#This Row],[Department / Specialty]]&\"L\"","v":"AAMCAcademicPrivateChairPhDAnesthesiology TotalL"},"Anesthesiology Total",1,"AAMC","Academic","Private","Chair","PhD","2021-2022",null,{"$f":"(((AAMC_Raw_Data_for_FY22[[#This Row],[Median]]-AAMC_Raw_Data_for_FY22[[#This Row],[25th]])/25)*5) + AAMC_Raw_Data_for_FY22[[#This Row],[25th]]","v":0},{"$f":"(((AAMC_Raw_Data_for_FY22[[#This Row],[Median]]-AAMC_Raw_Data_for_FY22[[#This Row],[25th]])/25)*10) + AAMC_Raw_Data_for_FY22[[#This Row],[25th]]","v":0},{"$f":"(((AAMC_Raw_Data_for_FY22[[#This Row],[Median]]-AAMC_Raw_Data_for_FY22[[#This Row],[25th]])/25)*15) + AAMC_Raw_Data_for_FY22[[#This Row],[25th]]","v":0},{"$f":"(((AAMC_Raw_Data_for_FY22[[#This Row],[Median]]-AAMC_Raw_Data_for_FY22[[#This Row],[25th]])/25)*20) + AAMC_Raw_Data_for_FY22[[#This Row],[25th]]","v":0},null,{"$f":"(((AAMC_Raw_Data_for_FY22[[#This Row],[75th]]-AAMC_Raw_Data_for_FY22[[#This Row],[Median]])/25)*5) + AAMC_Raw_Data_for_FY22[[#This Row],[Median]]","v":0},{"$f":"(((AAMC_Raw_Data_for_FY22[[#This Row],[75th]]-AAMC_Raw_Data_for_FY22[[#This Row],[Median]])/25)*10) + AAMC_Raw_Data_for_FY22[[#This Row],[Median]]","v":0},{"$f":"(((AAMC_Raw_Data_for_FY22[[#This Row],[75th]]-AAMC_Raw_Data_for_FY22[[#This Row],[Median]])/25)*15) + AAMC_Raw_Data_for_FY22[[#This Row],[Median]]","v":0},{"$f":"(((AAMC_Raw_Data_for_FY22[[#This Row],[75th]]-AAMC_Raw_Data_for_FY22[[#This Row],[Median]])/25)*20) + AAMC_Raw_Data_for_FY22[[#This Row],[Median]]","v":0},null,{"$f":"(((AAMC_Raw_Data_for_FY22[[#This Row],[75th]]-AAMC_Raw_Data_for_FY22[[#This Row],[Median]])/25)*30) + AAMC_Raw_Data_for_FY22[[#This Row],[Median]]","v":0},{"$f":"(((AAMC_Raw_Data_for_FY22[[#This Row],[75th]]-AAMC_Raw_Data_for_FY22[[#This Row],[Median]])/25)*35) + AAMC_Raw_Data_for_FY22[[#This Row],[Median]]","v":0},{"$f":"(((AAMC_Raw_Data_for_FY22[[#This Row],[75th]]-AAMC_Raw_Data_for_FY22[[#This Row],[Median]])/25)*40) + AAMC_Raw_Data_for_FY22[[#This Row],[Median]]","v":0}]
[{"$f":"AAMC_Raw_Data_for_FY22[[#This Row],[Source]]&AAMC_Raw_Data_for_FY22[[#This Row],[Type]]&AAMC_Raw_Data_for_FY22[[#This Row],[School Subset]]&AAMC_Raw_Data_for_FY22[[#This Row],[Rank]]&AAMC_Raw_Data_for_FY22[[#This Row],[Degree]]&AAMC_Raw_Data_for_FY22[[#This Row],[Department / Specialty]]&\"L\"","v":"AAMCAcademicPrivateInstructorPhDAnesthesiology: GeneralL"},"Anesthesiology: General",5,"AAMC","Academic","Private","Instructor","PhD","2021-2022",87600,{"$f":"(((AAMC_Raw_Data_for_FY22[[#This Row],[Median]]-AAMC_Raw_Data_for_FY22[[#This Row],[25th]])/25)*5) + AAMC_Raw_Data_for_FY22[[#This Row],[25th]]","v":92100},{"$f":"(((AAMC_Raw_Data_for_FY22[[#This Row],[Median]]-AAMC_Raw_Data_for_FY22[[#This Row],[25th]])/25)*10) + AAMC_Raw_Data_for_FY22[[#This Row],[25th]]","v":96600},{"$f":"(((AAMC_Raw_Data_for_FY22[[#This Row],[Median]]-AAMC_Raw_Data_for_FY22[[#This Row],[25th]])/25)*15) + AAMC_Raw_Data_for_FY22[[#This Row],[25th]]","v":101100},{"$f":"(((AAMC_Raw_Data_for_FY22[[#This Row],[Median]]-AAMC_Raw_Data_for_FY22[[#This Row],[25th]])/25)*20) + AAMC_Raw_Data_for_FY22[[#This Row],[25th]]","v":105600},110100,{"$f":"(((AAMC_Raw_Data_for_FY22[[#This Row],[75th]]-AAMC_Raw_Data_for_FY22[[#This Row],[Median]])/25)*5) + AAMC_Raw_Data_for_FY22[[#This Row],[Median]]","v":122367.4},{"$f":"(((AAMC_Raw_Data_for_FY22[[#This Row],[75th]]-AAMC_Raw_Data_for_FY22[[#This Row],[Median]])/25)*10) + AAMC_Raw_Data_for_FY22[[#This Row],[Median]]","v":134634.79999999999},{"$f":"(((AAMC_Raw_Data_for_FY22[[#This Row],[75th]]-AAMC_Raw_Data_for_FY22[[#This Row],[Median]])/25)*15) + AAMC_Raw_Data_for_FY22[[#This Row],[Median]]","v":146902.20000000001},{"$f":"(((AAMC_Raw_Data_for_FY22[[#This Row],[75th]]-AAMC_Raw_Data_for_FY22[[#This Row],[Median]])/25)*20) + AAMC_Raw_Data_for_FY22[[#This Row],[Median]]","v":159169.60000000001},171437,{"$f":"(((AAMC_Raw_Data_for_FY22[[#This Row],[75th]]-AAMC_Raw_Data_for_FY22[[#This Row],[Median]])/25)*30) + AAMC_Raw_Data_for_FY22[[#This Row],[Median]]","v":183704.4},{"$f":"(((AAMC_Raw_Data_for_FY22[[#This Row],[75th]]-AAMC_Raw_Data_for_FY22[[#This Row],[Median]])/25)*35) + AAMC_Raw_Data_for_FY22[[#This Row],[Median]]","v":195971.8},{"$f":"(((AAMC_Raw_Data_for_FY22[[#This Row],[75th]]-AAMC_Raw_Data_for_FY22[[#This Row],[Median]])/25)*40) + AAMC_Raw_Data_for_FY22[[#This Row],[Median]]","v":208239.2}]
[{"$f":"AAMC_Raw_Data_for_FY22[[#This Row],[Source]]&AAMC_Raw_Data_for_FY22[[#This Row],[Type]]&AAMC_Raw_Data_for_FY22[[#This Row],[School Subset]]&AAMC_Raw_Data_for_FY22[[#This Row],[Rank]]&AAMC_Raw_Data_for_FY22[[#This Row],[Degree]]&AAMC_Raw_Data_for_FY22[[#This Row],[Department / Specialty]]&\"L\"","v":"AAMCAcademicPrivateAssistantPhDAnesthesiology: GeneralL"},"Anesthesiology: General",4,"AAMC","Academic","Private","Assistant","PhD","2021-2022",112779,{"$f":"(((AAMC_Raw_Data_for_FY22[[#This Row],[Median]]-AAMC_Raw_Data_for_FY22[[#This Row],[25th]])/25)*5) + AAMC_Raw_Data_for_FY22[[#This Row],[25th]]","v":119300.4},{"$f":"(((AAMC_Raw_Data_for_FY22[[#This Row],[Median]]-AAMC_Raw_Data_for_FY22[[#This Row],[25th]])/25)*10) + AAMC_Raw_Data_for_FY22[[#This Row],[25th]]","v":125821.8},{"$f":"(((AAMC_Raw_Data_for_FY22[[#This Row],[Median]]-AAMC_Raw_Data_for_FY22[[#This Row],[25th]])/25)*15) + AAMC_Raw_Data_for_FY22[[#This Row],[25th]]","v":132343.20000000001},{"$f":"(((AAMC_Raw_Data_for_FY22[[#This Row],[Median]]-AAMC_Raw_Data_for_FY22[[#This Row],[25th]])/25)*20) + AAMC_Raw_Data_for_FY22[[#This Row],[25th]]","v":138864.6},145386,{"$f":"(((AAMC_Raw_Data_for_FY22[[#This Row],[75th]]-AAMC_Raw_Data_for_FY22[[#This Row],[Median]])/25)*5) + AAMC_Raw_Data_for_FY22[[#This Row],[Median]]","v":155890.79999999999},{"$f":"(((AAMC_Raw_Data_for_FY22[[#This Row],[75th]]-AAMC_Raw_Data_for_FY22[[#This Row],[Median]])/25)*10) + AAMC_Raw_Data_for_FY22[[#This Row],[Median]]","v":166395.6},{"$f":"(((AAMC_Raw_Data_for_FY22[[#This Row],[75th]]-AAMC_Raw_Data_for_FY22[[#This Row],[Median]])/25)*15) + AAMC_Raw_Data_for_FY22[[#This Row],[Median]]","v":176900.4},{"$f":"(((AAMC_Raw_Data_for_FY22[[#This Row],[75th]]-AAMC_Raw_Data_for_FY22[[#This Row],[Median]])/25)*20) + AAMC_Raw_Data_for_FY22[[#This Row],[Median]]","v":187405.2},197910,{"$f":"(((AAMC_Raw_Data_for_FY22[[#This Row],[75th]]-AAMC_Raw_Data_for_FY22[[#This Row],[Median]])/25)*30) + AAMC_Raw_Data_for_FY22[[#This Row],[Median]]","v":208414.8},{"$f":"(((AAMC_Raw_Data_for_FY22[[#This Row],[75th]]-AAMC_Raw_Data_for_FY22[[#This Row],[Median]])/25)*35) + AAMC_Raw_Data_for_FY22[[#This Row],[Median]]","v":218919.6},{"$f":"(((AAMC_Raw_Data_for_FY22[[#This Row],[75th]]-AAMC_Raw_Data_for_FY22[[#This Row],[Median]])/25)*40) + AAMC_Raw_Data_for_FY22[[#This Row],[Median]]","v":229424.4}]
[{"$f":"AAMC_Raw_Data_for_FY22[[#This Row],[Source]]&AAMC_Raw_Data_for_FY22[[#This Row],[Type]]&AAMC_Raw_Data_for_FY22[[#This Row],[School Subset]]&AAMC_Raw_Data_for_FY22[[#This Row],[Rank]]&AAMC_Raw_Data_for_FY22[[#This Row],[Degree]]&AAMC_Raw_Data_for_FY22[[#This Row],[Department / Specialty]]&\"L\"","v":"AAMCAcademicPrivateAssociatePhDAnesthesiology: GeneralL"},"Anesthesiology: General",3,"AAMC","Academic","Private","Associate","PhD","2021-2022",141338,{"$f":"(((AAMC_Raw_Data_for_FY22[[#This Row],[Median]]-AAMC_Raw_Data_for_FY22[[#This Row],[25th]])/25)*5) + AAMC_Raw_Data_for_FY22[[#This Row],[25th]]","v":149423.6},{"$f":"(((AAMC_Raw_Data_for_FY22[[#This Row],[Median]]-AAMC_Raw_Data_for_FY22[[#This Row],[25th]])/25)*10) + AAMC_Raw_Data_for_FY22[[#This Row],[25th]]","v":157509.20000000001},{"$f":"(((AAMC_Raw_Data_for_FY22[[#This Row],[Median]]-AAMC_Raw_Data_for_FY22[[#This Row],[25th]])/25)*15) + AAMC_Raw_Data_for_FY22[[#This Row],[25th]]","v":165594.79999999999},{"$f":"(((AAMC_Raw_Data_for_FY22[[#This Row],[Median]]-AAMC_Raw_Data_for_FY22[[#This Row],[25th]])/25)*20) + AAMC_Raw_Data_for_FY22[[#This Row],[25th]]","v":173680.4},181766,{"$f":"(((AAMC_Raw_Data_for_FY22[[#This Row],[75th]]-AAMC_Raw_Data_for_FY22[[#This Row],[Median]])/25)*5) + AAMC_Raw_Data_for_FY22[[#This Row],[Median]]","v":186910.2},{"$f":"(((AAMC_Raw_Data_for_FY22[[#This Row],[75th]]-AAMC_Raw_Data_for_FY22[[#This Row],[Median]])/25)*10) + AAMC_Raw_Data_for_FY22[[#This Row],[Median]]","v":192054.39999999999},{"$f":"(((AAMC_Raw_Data_for_FY22[[#This Row],[75th]]-AAMC_Raw_Data_for_FY22[[#This Row],[Median]])/25)*15) + AAMC_Raw_Data_for_FY22[[#This Row],[Median]]","v":197198.6},{"$f":"(((AAMC_Raw_Data_for_FY22[[#This Row],[75th]]-AAMC_Raw_Data_for_FY22[[#This Row],[Median]])/25)*20) + AAMC_Raw_Data_for_FY22[[#This Row],[Median]]","v":202342.8},207487,{"$f":"(((AAMC_Raw_Data_for_FY22[[#This Row],[75th]]-AAMC_Raw_Data_for_FY22[[#This Row],[Median]])/25)*30) + AAMC_Raw_Data_for_FY22[[#This Row],[Median]]","v":212631.2},{"$f":"(((AAMC_Raw_Data_for_FY22[[#This Row],[75th]]-AAMC_Raw_Data_for_FY22[[#This Row],[Median]])/25)*35) + AAMC_Raw_Data_for_FY22[[#This Row],[Median]]","v":217775.4},{"$f":"(((AAMC_Raw_Data_for_FY22[[#This Row],[75th]]-AAMC_Raw_Data_for_FY22[[#This Row],[Median]])/25)*40) + AAMC_Raw_Data_for_FY22[[#This Row],[Median]]","v":222919.6}]
[{"$f":"AAMC_Raw_Data_for_FY22[[#This Row],[Source]]&AAMC_Raw_Data_for_FY22[[#This Row],[Type]]&AAMC_Raw_Data_for_FY22[[#This Row],[School Subset]]&AAMC_Raw_Data_for_FY22[[#This Row],[Rank]]&AAMC_Raw_Data_for_FY22[[#This Row],[Degree]]&AAMC_Raw_Data_for_FY22[[#This Row],[Department / Specialty]]&\"L\"","v":"AAMCAcademicPrivateProfessorPhDAnesthesiology: GeneralL"},"Anesthesiology: General",2,"AAMC","Academic","Private","Professor","PhD","2021-2022",206569,{"$f":"(((AAMC_Raw_Data_for_FY22[[#This Row],[Median]]-AAMC_Raw_Data_for_FY22[[#This Row],[25th]])/25)*5) + AAMC_Raw_Data_for_FY22[[#This Row],[25th]]","v":212766.6},{"$f":"(((AAMC_Raw_Data_for_FY22[[#This Row],[Median]]-AAMC_Raw_Data_for_FY22[[#This Row],[25th]])/25)*10) + AAMC_Raw_Data_for_FY22[[#This Row],[25th]]","v":218964.2},{"$f":"(((AAMC_Raw_Data_for_FY22[[#This Row],[Median]]-AAMC_Raw_Data_for_FY22[[#This Row],[25th]])/25)*15) + AAMC_Raw_Data_for_FY22[[#This Row],[25th]]","v":225161.8},{"$f":"(((AAMC_Raw_Data_for_FY22[[#This Row],[Median]]-AAMC_Raw_Data_for_FY22[[#This Row],[25th]])/25)*20) + AAMC_Raw_Data_for_FY22[[#This Row],[25th]]","v":231359.4},237557,{"$f":"(((AAMC_Raw_Data_for_FY22[[#This Row],[75th]]-AAMC_Raw_Data_for_FY22[[#This Row],[Median]])/25)*5) + AAMC_Raw_Data_for_FY22[[#This Row],[Median]]","v":249703.4},{"$f":"(((AAMC_Raw_Data_for_FY22[[#This Row],[75th]]-AAMC_Raw_Data_for_FY22[[#This Row],[Median]])/25)*10) + AAMC_Raw_Data_for_FY22[[#This Row],[Median]]","v":261849.8},{"$f":"(((AAMC_Raw_Data_for_FY22[[#This Row],[75th]]-AAMC_Raw_Data_for_FY22[[#This Row],[Median]])/25)*15) + AAMC_Raw_Data_for_FY22[[#This Row],[Median]]","v":273996.2},{"$f":"(((AAMC_Raw_Data_for_FY22[[#This Row],[75th]]-AAMC_Raw_Data_for_FY22[[#This Row],[Median]])/25)*20) + AAMC_Raw_Data_for_FY22[[#This Row],[Median]]","v":286142.59999999998},298289,{"$f":"(((AAMC_Raw_Data_for_FY22[[#This Row],[75th]]-AAMC_Raw_Data_for_FY22[[#This Row],[Median]])/25)*30) + AAMC_Raw_Data_for_FY22[[#This Row],[Median]]","v":310435.40000000002},{"$f":"(((AAMC_Raw_Data_for_FY22[[#This Row],[75th]]-AAMC_Raw_Data_for_FY22[[#This Row],[Median]])/25)*35) + AAMC_Raw_Data_for_FY22[[#This Row],[Median]]","v":322581.8},{"$f":"(((AAMC_Raw_Data_for_FY22[[#This Row],[75th]]-AAMC_Raw_Data_for_FY22[[#This Row],[Median]])/25)*40) + AAMC_Raw_Data_for_FY22[[#This Row],[Median]]","v":334728.2}]
[{"$f":"AAMC_Raw_Data_for_FY22[[#This Row],[Source]]&AAMC_Raw_Data_for_FY22[[#This Row],[Type]]&AAMC_Raw_Data_for_FY22[[#This Row],[School Subset]]&AAMC_Raw_Data_for_FY22[[#This Row],[Rank]]&AAMC_Raw_Data_for_FY22[[#This Row],[Degree]]&AAMC_Raw_Data_for_FY22[[#This Row],[Department / Specialty]]&\"L\"","v":"AAMCAcademicPrivateChairPhDAnesthesiology: GeneralL"},"Anesthesiology: General",1,"AAMC","Academic","Private","Chair","PhD","2021-2022",null,{"$f":"(((AAMC_Raw_Data_for_FY22[[#This Row],[Median]]-AAMC_Raw_Data_for_FY22[[#This Row],[25th]])/25)*5) + AAMC_Raw_Data_for_FY22[[#This Row],[25th]]","v":0},{"$f":"(((AAMC_Raw_Data_for_FY22[[#This Row],[Median]]-AAMC_Raw_Data_for_FY22[[#This Row],[25th]])/25)*10) + AAMC_Raw_Data_for_FY22[[#This Row],[25th]]","v":0},{"$f":"(((AAMC_Raw_Data_for_FY22[[#This Row],[Median]]-AAMC_Raw_Data_for_FY22[[#This Row],[25th]])/25)*15) + AAMC_Raw_Data_for_FY22[[#This Row],[25th]]","v":0},{"$f":"(((AAMC_Raw_Data_for_FY22[[#This Row],[Median]]-AAMC_Raw_Data_for_FY22[[#This Row],[25th]])/25)*20) + AAMC_Raw_Data_for_FY22[[#This Row],[25th]]","v":0},null,{"$f":"(((AAMC_Raw_Data_for_FY22[[#This Row],[75th]]-AAMC_Raw_Data_for_FY22[[#This Row],[Median]])/25)*5) + AAMC_Raw_Data_for_FY22[[#This Row],[Median]]","v":0},{"$f":"(((AAMC_Raw_Data_for_FY22[[#This Row],[75th]]-AAMC_Raw_Data_for_FY22[[#This Row],[Median]])/25)*10) + AAMC_Raw_Data_for_FY22[[#This Row],[Median]]","v":0},{"$f":"(((AAMC_Raw_Data_for_FY22[[#This Row],[75th]]-AAMC_Raw_Data_for_FY22[[#This Row],[Median]])/25)*15) + AAMC_Raw_Data_for_FY22[[#This Row],[Median]]","v":0},{"$f":"(((AAMC_Raw_Data_for_FY22[[#This Row],[75th]]-AAMC_Raw_Data_for_FY22[[#This Row],[Median]])/25)*20) + AAMC_Raw_Data_for_FY22[[#This Row],[Median]]","v":0},null,{"$f":"(((AAMC_Raw_Data_for_FY22[[#This Row],[75th]]-AAMC_Raw_Data_for_FY22[[#This Row],[Median]])/25)*30) + AAMC_Raw_Data_for_FY22[[#This Row],[Median]]","v":0},{"$f":"(((AAMC_Raw_Data_for_FY22[[#This Row],[75th]]-AAMC_Raw_Data_for_FY22[[#This Row],[Median]])/25)*35) + AAMC_Raw_Data_for_FY22[[#This Row],[Median]]","v":0},{"$f":"(((AAMC_Raw_Data_for_FY22[[#This Row],[75th]]-AAMC_Raw_Data_for_FY22[[#This Row],[Median]])/25)*40) + AAMC_Raw_Data_for_FY22[[#This Row],[Median]]","v":0}]
[{"$f":"AAMC_Raw_Data_for_FY22[[#This Row],[Source]]&AAMC_Raw_Data_for_FY22[[#This Row],[Type]]&AAMC_Raw_Data_for_FY22[[#This Row],[School Subset]]&AAMC_Raw_Data_for_FY22[[#This Row],[Rank]]&AAMC_Raw_Data_for_FY22[[#This Row],[Degree]]&AAMC_Raw_Data_for_FY22[[#This Row],[Department / Specialty]]&\"L\"","v":"AAMCAcademicPrivateInstructorPhDAnesthesiology: Pain ManagementL"},"Anesthesiology: Pain Management",5,"AAMC","Academic","Private","Instructor","PhD","2021-2022",null,{"$f":"(((AAMC_Raw_Data_for_FY22[[#This Row],[Median]]-AAMC_Raw_Data_for_FY22[[#This Row],[25th]])/25)*5) + AAMC_Raw_Data_for_FY22[[#This Row],[25th]]","v":0},{"$f":"(((AAMC_Raw_Data_for_FY22[[#This Row],[Median]]-AAMC_Raw_Data_for_FY22[[#This Row],[25th]])/25)*10) + AAMC_Raw_Data_for_FY22[[#This Row],[25th]]","v":0},{"$f":"(((AAMC_Raw_Data_for_FY22[[#This Row],[Median]]-AAMC_Raw_Data_for_FY22[[#This Row],[25th]])/25)*15) + AAMC_Raw_Data_for_FY22[[#This Row],[25th]]","v":0},{"$f":"(((AAMC_Raw_Data_for_FY22[[#This Row],[Median]]-AAMC_Raw_Data_for_FY22[[#This Row],[25th]])/25)*20) + AAMC_Raw_Data_for_FY22[[#This Row],[25th]]","v":0},null,{"$f":"(((AAMC_Raw_Data_for_FY22[[#This Row],[75th]]-AAMC_Raw_Data_for_FY22[[#This Row],[Median]])/25)*5) + AAMC_Raw_Data_for_FY22[[#This Row],[Median]]","v":0},{"$f":"(((AAMC_Raw_Data_for_FY22[[#This Row],[75th]]-AAMC_Raw_Data_for_FY22[[#This Row],[Median]])/25)*10) + AAMC_Raw_Data_for_FY22[[#This Row],[Median]]","v":0},{"$f":"(((AAMC_Raw_Data_for_FY22[[#This Row],[75th]]-AAMC_Raw_Data_for_FY22[[#This Row],[Median]])/25)*15) + AAMC_Raw_Data_for_FY22[[#This Row],[Median]]","v":0},{"$f":"(((AAMC_Raw_Data_for_FY22[[#This Row],[75th]]-AAMC_Raw_Data_for_FY22[[#This Row],[Median]])/25)*20) + AAMC_Raw_Data_for_FY22[[#This Row],[Median]]","v":0},null,{"$f":"(((AAMC_Raw_Data_for_FY22[[#This Row],[75th]]-AAMC_Raw_Data_for_FY22[[#This Row],[Median]])/25)*30) + AAMC_Raw_Data_for_FY22[[#This Row],[Median]]","v":0},{"$f":"(((AAMC_Raw_Data_for_FY22[[#This Row],[75th]]-AAMC_Raw_Data_for_FY22[[#This Row],[Median]])/25)*35) + AAMC_Raw_Data_for_FY22[[#This Row],[Median]]","v":0},{"$f":"(((AAMC_Raw_Data_for_FY22[[#This Row],[75th]]-AAMC_Raw_Data_for_FY22[[#This Row],[Median]])/25)*40) + AAMC_Raw_Data_for_FY22[[#This Row],[Median]]","v":0}]
[{"$f":"AAMC_Raw_Data_for_FY22[[#This Row],[Source]]&AAMC_Raw_Data_for_FY22[[#This Row],[Type]]&AAMC_Raw_Data_for_FY22[[#This Row],[School Subset]]&AAMC_Raw_Data_for_FY22[[#This Row],[Rank]]&AAMC_Raw_Data_for_FY22[[#This Row],[Degree]]&AAMC_Raw_Data_for_FY22[[#This Row],[Department / Specialty]]&\"L\"","v":"AAMCAcademicPrivateAssistantPhDAnesthesiology: Pain ManagementL"},"Anesthesiology: Pain Management",4,"AAMC","Academic","Private","Assistant","PhD","2021-2022",null,{"$f":"(((AAMC_Raw_Data_for_FY22[[#This Row],[Median]]-AAMC_Raw_Data_for_FY22[[#This Row],[25th]])/25)*5) + AAMC_Raw_Data_for_FY22[[#This Row],[25th]]","v":0},{"$f":"(((AAMC_Raw_Data_for_FY22[[#This Row],[Median]]-AAMC_Raw_Data_for_FY22[[#This Row],[25th]])/25)*10) + AAMC_Raw_Data_for_FY22[[#This Row],[25th]]","v":0},{"$f":"(((AAMC_Raw_Data_for_FY22[[#This Row],[Median]]-AAMC_Raw_Data_for_FY22[[#This Row],[25th]])/25)*15) + AAMC_Raw_Data_for_FY22[[#This Row],[25th]]","v":0},{"$f":"(((AAMC_Raw_Data_for_FY22[[#This Row],[Median]]-AAMC_Raw_Data_for_FY22[[#This Row],[25th]])/25)*20) + AAMC_Raw_Data_for_FY22[[#This Row],[25th]]","v":0},null,{"$f":"(((AAMC_Raw_Data_for_FY22[[#This Row],[75th]]-AAMC_Raw_Data_for_FY22[[#This Row],[Median]])/25)*5) + AAMC_Raw_Data_for_FY22[[#This Row],[Median]]","v":0},{"$f":"(((AAMC_Raw_Data_for_FY22[[#This Row],[75th]]-AAMC_Raw_Data_for_FY22[[#This Row],[Median]])/25)*10) + AAMC_Raw_Data_for_FY22[[#This Row],[Median]]","v":0},{"$f":"(((AAMC_Raw_Data_for_FY22[[#This Row],[75th]]-AAMC_Raw_Data_for_FY22[[#This Row],[Median]])/25)*15) + AAMC_Raw_Data_for_FY22[[#This Row],[Median]]","v":0},{"$f":"(((AAMC_Raw_Data_for_FY22[[#This Row],[75th]]-AAMC_Raw_Data_for_FY22[[#This Row],[Median]])/25)*20) + AAMC_Raw_Data_for_FY22[[#This Row],[Median]]","v":0},null,{"$f":"(((AAMC_Raw_Data_for_FY22[[#This Row],[75th]]-AAMC_Raw_Data_for_FY22[[#This Row],[Median]])/25)*30) + AAMC_Raw_Data_for_FY22[[#This Row],[Median]]","v":0},{"$f":"(((AAMC_Raw_Data_for_FY22[[#This Row],[75th]]-AAMC_Raw_Data_for_FY22[[#This Row],[Median]])/25)*35) + AAMC_Raw_Data_for_FY22[[#This Row],[Median]]","v":0},{"$f":"(((AAMC_Raw_Data_for_FY22[[#This Row],[75th]]-AAMC_Raw_Data_for_FY22[[#This Row],[Median]])/25)*40) + AAMC_Raw_Data_for_FY22[[#This Row],[Median]]","v":0}]
[{"$f":"AAMC_Raw_Data_for_FY22[[#This Row],[Source]]&AAMC_Raw_Data_for_FY22[[#This Row],[Type]]&AAMC_Raw_Data_for_FY22[[#This Row],[School Subset]]&AAMC_Raw_Data_for_FY22[[#This Row],[Rank]]&AAMC_Raw_Data_for_FY22[[#This Row],[Degree]]&AAMC_Raw_Data_for_FY22[[#This Row],[Department / Specialty]]&\"L\"","v":"AAMCAcademicPrivateAssociatePhDAnesthesiology: Pain ManagementL"},"Anesthesiology: Pain Management",3,"AAMC","Academic","Private","Associate","PhD","2021-2022",null,{"$f":"(((AAMC_Raw_Data_for_FY22[[#This Row],[Median]]-AAMC_Raw_Data_for_FY22[[#This Row],[25th]])/25)*5) + AAMC_Raw_Data_for_FY22[[#This Row],[25th]]","v":0},{"$f":"(((AAMC_Raw_Data_for_FY22[[#This Row],[Median]]-AAMC_Raw_Data_for_FY22[[#This Row],[25th]])/25)*10) + AAMC_Raw_Data_for_FY22[[#This Row],[25th]]","v":0},{"$f":"(((AAMC_Raw_Data_for_FY22[[#This Row],[Median]]-AAMC_Raw_Data_for_FY22[[#This Row],[25th]])/25)*15) + AAMC_Raw_Data_for_FY22[[#This Row],[25th]]","v":0},{"$f":"(((AAMC_Raw_Data_for_FY22[[#This Row],[Median]]-AAMC_Raw_Data_for_FY22[[#This Row],[25th]])/25)*20) + AAMC_Raw_Data_for_FY22[[#This Row],[25th]]","v":0},null,{"$f":"(((AAMC_Raw_Data_for_FY22[[#This Row],[75th]]-AAMC_Raw_Data_for_FY22[[#This Row],[Median]])/25)*5) + AAMC_Raw_Data_for_FY22[[#This Row],[Median]]","v":0},{"$f":"(((AAMC_Raw_Data_for_FY22[[#This Row],[75th]]-AAMC_Raw_Data_for_FY22[[#This Row],[Median]])/25)*10) + AAMC_Raw_Data_for_FY22[[#This Row],[Median]]","v":0},{"$f":"(((AAMC_Raw_Data_for_FY22[[#This Row],[75th]]-AAMC_Raw_Data_for_FY22[[#This Row],[Median]])/25)*15) + AAMC_Raw_Data_for_FY22[[#This Row],[Median]]","v":0},{"$f":"(((AAMC_Raw_Data_for_FY22[[#This Row],[75th]]-AAMC_Raw_Data_for_FY22[[#This Row],[Median]])/25)*20) + AAMC_Raw_Data_for_FY22[[#This Row],[Median]]","v":0},null,{"$f":"(((AAMC_Raw_Data_for_FY22[[#This Row],[75th]]-AAMC_Raw_Data_for_FY22[[#This Row],[Median]])/25)*30) + AAMC_Raw_Data_for_FY22[[#This Row],[Median]]","v":0},{"$f":"(((AAMC_Raw_Data_for_FY22[[#This Row],[75th]]-AAMC_Raw_Data_for_FY22[[#This Row],[Median]])/25)*35) + AAMC_Raw_Data_for_FY22[[#This Row],[Median]]","v":0},{"$f":"(((AAMC_Raw_Data_for_FY22[[#This Row],[75th]]-AAMC_Raw_Data_for_FY22[[#This Row],[Median]])/25)*40) + AAMC_Raw_Data_for_FY22[[#This Row],[Median]]","v":0}]
[{"$f":"AAMC_Raw_Data_for_FY22[[#This Row],[Source]]&AAMC_Raw_Data_for_FY22[[#This Row],[Type]]&AAMC_Raw_Data_for_FY22[[#This Row],[School Subset]]&AAMC_Raw_Data_for_FY22[[#This Row],[Rank]]&AAMC_Raw_Data_for_FY22[[#This Row],[Degree]]&AAMC_Raw_Data_for_FY22[[#This Row],[Department / Specialty]]&\"L\"","v":"AAMCAcademicPrivateProfessorPhDAnesthesiology: Pain ManagementL"},"Anesthesiology: Pain Management",2,"AAMC","Academic","Private","Professor","PhD","2021-2022",null,{"$f":"(((AAMC_Raw_Data_for_FY22[[#This Row],[Median]]-AAMC_Raw_Data_for_FY22[[#This Row],[25th]])/25)*5) + AAMC_Raw_Data_for_FY22[[#This Row],[25th]]","v":0},{"$f":"(((AAMC_Raw_Data_for_FY22[[#This Row],[Median]]-AAMC_Raw_Data_for_FY22[[#This Row],[25th]])/25)*10) + AAMC_Raw_Data_for_FY22[[#This Row],[25th]]","v":0},{"$f":"(((AAMC_Raw_Data_for_FY22[[#This Row],[Median]]-AAMC_Raw_Data_for_FY22[[#This Row],[25th]])/25)*15) + AAMC_Raw_Data_for_FY22[[#This Row],[25th]]","v":0},{"$f":"(((AAMC_Raw_Data_for_FY22[[#This Row],[Median]]-AAMC_Raw_Data_for_FY22[[#This Row],[25th]])/25)*20) + AAMC_Raw_Data_for_FY22[[#This Row],[25th]]","v":0},null,{"$f":"(((AAMC_Raw_Data_for_FY22[[#This Row],[75th]]-AAMC_Raw_Data_for_FY22[[#This Row],[Median]])/25)*5) + AAMC_Raw_Data_for_FY22[[#This Row],[Median]]","v":0},{"$f":"(((AAMC_Raw_Data_for_FY22[[#This Row],[75th]]-AAMC_Raw_Data_for_FY22[[#This Row],[Median]])/25)*10) + AAMC_Raw_Data_for_FY22[[#This Row],[Median]]","v":0},{"$f":"(((AAMC_Raw_Data_for_FY22[[#This Row],[75th]]-AAMC_Raw_Data_for_FY22[[#This Row],[Median]])/25)*15) + AAMC_Raw_Data_for_FY22[[#This Row],[Median]]","v":0},{"$f":"(((AAMC_Raw_Data_for_FY22[[#This Row],[75th]]-AAMC_Raw_Data_for_FY22[[#This Row],[Median]])/25)*20) + AAMC_Raw_Data_for_FY22[[#This Row],[Median]]","v":0},null,{"$f":"(((AAMC_Raw_Data_for_FY22[[#This Row],[75th]]-AAMC_Raw_Data_for_FY22[[#This Row],[Median]])/25)*30) + AAMC_Raw_Data_for_FY22[[#This Row],[Median]]","v":0},{"$f":"(((AAMC_Raw_Data_for_FY22[[#This Row],[75th]]-AAMC_Raw_Data_for_FY22[[#This Row],[Median]])/25)*35) + AAMC_Raw_Data_for_FY22[[#This Row],[Median]]","v":0},{"$f":"(((AAMC_Raw_Data_for_FY22[[#This Row],[75th]]-AAMC_Raw_Data_for_FY22[[#This Row],[Median]])/25)*40) + AAMC_Raw_Data_for_FY22[[#This Row],[Median]]","v":0}]
[{"$f":"AAMC_Raw_Data_for_FY22[[#This Row],[Source]]&AAMC_Raw_Data_for_FY22[[#This Row],[Type]]&AAMC_Raw_Data_for_FY22[[#This Row],[School Subset]]&AAMC_Raw_Data_for_FY22[[#This Row],[Rank]]&AAMC_Raw_Data_for_FY22[[#This Row],[Degree]]&AAMC_Raw_Data_for_FY22[[#This Row],[Department / Specialty]]&\"L\"","v":"AAMCAcademicPrivateChiefPhDAnesthesiology: Pain ManagementL"},"Anesthesiology: Pain Management",6,"AAMC","Academic","Private","Chief","PhD","2021-2022",null,{"$f":"(((AAMC_Raw_Data_for_FY22[[#This Row],[Median]]-AAMC_Raw_Data_for_FY22[[#This Row],[25th]])/25)*5) + AAMC_Raw_Data_for_FY22[[#This Row],[25th]]","v":0},{"$f":"(((AAMC_Raw_Data_for_FY22[[#This Row],[Median]]-AAMC_Raw_Data_for_FY22[[#This Row],[25th]])/25)*10) + AAMC_Raw_Data_for_FY22[[#This Row],[25th]]","v":0},{"$f":"(((AAMC_Raw_Data_for_FY22[[#This Row],[Median]]-AAMC_Raw_Data_for_FY22[[#This Row],[25th]])/25)*15) + AAMC_Raw_Data_for_FY22[[#This Row],[25th]]","v":0},{"$f":"(((AAMC_Raw_Data_for_FY22[[#This Row],[Median]]-AAMC_Raw_Data_for_FY22[[#This Row],[25th]])/25)*20) + AAMC_Raw_Data_for_FY22[[#This Row],[25th]]","v":0},null,{"$f":"(((AAMC_Raw_Data_for_FY22[[#This Row],[75th]]-AAMC_Raw_Data_for_FY22[[#This Row],[Median]])/25)*5) + AAMC_Raw_Data_for_FY22[[#This Row],[Median]]","v":0},{"$f":"(((AAMC_Raw_Data_for_FY22[[#This Row],[75th]]-AAMC_Raw_Data_for_FY22[[#This Row],[Median]])/25)*10) + AAMC_Raw_Data_for_FY22[[#This Row],[Median]]","v":0},{"$f":"(((AAMC_Raw_Data_for_FY22[[#This Row],[75th]]-AAMC_Raw_Data_for_FY22[[#This Row],[Median]])/25)*15) + AAMC_Raw_Data_for_FY22[[#This Row],[Median]]","v":0},{"$f":"(((AAMC_Raw_Data_for_FY22[[#This Row],[75th]]-AAMC_Raw_Data_for_FY22[[#This Row],[Median]])/25)*20) + AAMC_Raw_Data_for_FY22[[#This Row],[Median]]","v":0},null,{"$f":"(((AAMC_Raw_Data_for_FY22[[#This Row],[75th]]-AAMC_Raw_Data_for_FY22[[#This Row],[Median]])/25)*30) + AAMC_Raw_Data_for_FY22[[#This Row],[Median]]","v":0},{"$f":"(((AAMC_Raw_Data_for_FY22[[#This Row],[75th]]-AAMC_Raw_Data_for_FY22[[#This Row],[Median]])/25)*35) + AAMC_Raw_Data_for_FY22[[#This Row],[Median]]","v":0},{"$f":"(((AAMC_Raw_Data_for_FY22[[#This Row],[75th]]-AAMC_Raw_Data_for_FY22[[#This Row],[Median]])/25)*40) + AAMC_Raw_Data_for_FY22[[#This Row],[Median]]","v":0}]
[{"$f":"AAMC_Raw_Data_for_FY22[[#This Row],[Source]]&AAMC_Raw_Data_for_FY22[[#This Row],[Type]]&AAMC_Raw_Data_for_FY22[[#This Row],[School Subset]]&AAMC_Raw_Data_for_FY22[[#This Row],[Rank]]&AAMC_Raw_Data_for_FY22[[#This Row],[Degree]]&AAMC_Raw_Data_for_FY22[[#This Row],[Department / Specialty]]&\"L\"","v":"AAMCAcademicPrivateAssistantPhDAnesthesiology: PediatricL"},"Anesthesiology: Pediatric",4,"AAMC","Academic","Private","Assistant","PhD","2021-2022",null,{"$f":"(((AAMC_Raw_Data_for_FY22[[#This Row],[Median]]-AAMC_Raw_Data_for_FY22[[#This Row],[25th]])/25)*5) + AAMC_Raw_Data_for_FY22[[#This Row],[25th]]","v":0},{"$f":"(((AAMC_Raw_Data_for_FY22[[#This Row],[Median]]-AAMC_Raw_Data_for_FY22[[#This Row],[25th]])/25)*10) + AAMC_Raw_Data_for_FY22[[#This Row],[25th]]","v":0},{"$f":"(((AAMC_Raw_Data_for_FY22[[#This Row],[Median]]-AAMC_Raw_Data_for_FY22[[#This Row],[25th]])/25)*15) + AAMC_Raw_Data_for_FY22[[#This Row],[25th]]","v":0},{"$f":"(((AAMC_Raw_Data_for_FY22[[#This Row],[Median]]-AAMC_Raw_Data_for_FY22[[#This Row],[25th]])/25)*20) + AAMC_Raw_Data_for_FY22[[#This Row],[25th]]","v":0},null,{"$f":"(((AAMC_Raw_Data_for_FY22[[#This Row],[75th]]-AAMC_Raw_Data_for_FY22[[#This Row],[Median]])/25)*5) + AAMC_Raw_Data_for_FY22[[#This Row],[Median]]","v":0},{"$f":"(((AAMC_Raw_Data_for_FY22[[#This Row],[75th]]-AAMC_Raw_Data_for_FY22[[#This Row],[Median]])/25)*10) + AAMC_Raw_Data_for_FY22[[#This Row],[Median]]","v":0},{"$f":"(((AAMC_Raw_Data_for_FY22[[#This Row],[75th]]-AAMC_Raw_Data_for_FY22[[#This Row],[Median]])/25)*15) + AAMC_Raw_Data_for_FY22[[#This Row],[Median]]","v":0},{"$f":"(((AAMC_Raw_Data_for_FY22[[#This Row],[75th]]-AAMC_Raw_Data_for_FY22[[#This Row],[Median]])/25)*20) + AAMC_Raw_Data_for_FY22[[#This Row],[Median]]","v":0},null,{"$f":"(((AAMC_Raw_Data_for_FY22[[#This Row],[75th]]-AAMC_Raw_Data_for_FY22[[#This Row],[Median]])/25)*30) + AAMC_Raw_Data_for_FY22[[#This Row],[Median]]","v":0},{"$f":"(((AAMC_Raw_Data_for_FY22[[#This Row],[75th]]-AAMC_Raw_Data_for_FY22[[#This Row],[Median]])/25)*35) + AAMC_Raw_Data_for_FY22[[#This Row],[Median]]","v":0},{"$f":"(((AAMC_Raw_Data_for_FY22[[#This Row],[75th]]-AAMC_Raw_Data_for_FY22[[#This Row],[Median]])/25)*40) + AAMC_Raw_Data_for_FY22[[#This Row],[Median]]","v":0}]
[{"$f":"AAMC_Raw_Data_for_FY22[[#This Row],[Source]]&AAMC_Raw_Data_for_FY22[[#This Row],[Type]]&AAMC_Raw_Data_for_FY22[[#This Row],[School Subset]]&AAMC_Raw_Data_for_FY22[[#This Row],[Rank]]&AAMC_Raw_Data_for_FY22[[#This Row],[Degree]]&AAMC_Raw_Data_for_FY22[[#This Row],[Department / Specialty]]&\"L\"","v":"AAMCAcademicPrivateAssociatePhDAnesthesiology: PediatricL"},"Anesthesiology: Pediatric",3,"AAMC","Academic","Private","Associate","PhD","2021-2022",null,{"$f":"(((AAMC_Raw_Data_for_FY22[[#This Row],[Median]]-AAMC_Raw_Data_for_FY22[[#This Row],[25th]])/25)*5) + AAMC_Raw_Data_for_FY22[[#This Row],[25th]]","v":0},{"$f":"(((AAMC_Raw_Data_for_FY22[[#This Row],[Median]]-AAMC_Raw_Data_for_FY22[[#This Row],[25th]])/25)*10) + AAMC_Raw_Data_for_FY22[[#This Row],[25th]]","v":0},{"$f":"(((AAMC_Raw_Data_for_FY22[[#This Row],[Median]]-AAMC_Raw_Data_for_FY22[[#This Row],[25th]])/25)*15) + AAMC_Raw_Data_for_FY22[[#This Row],[25th]]","v":0},{"$f":"(((AAMC_Raw_Data_for_FY22[[#This Row],[Median]]-AAMC_Raw_Data_for_FY22[[#This Row],[25th]])/25)*20) + AAMC_Raw_Data_for_FY22[[#This Row],[25th]]","v":0},null,{"$f":"(((AAMC_Raw_Data_for_FY22[[#This Row],[75th]]-AAMC_Raw_Data_for_FY22[[#This Row],[Median]])/25)*5) + AAMC_Raw_Data_for_FY22[[#This Row],[Median]]","v":0},{"$f":"(((AAMC_Raw_Data_for_FY22[[#This Row],[75th]]-AAMC_Raw_Data_for_FY22[[#This Row],[Median]])/25)*10) + AAMC_Raw_Data_for_FY22[[#This Row],[Median]]","v":0},{"$f":"(((AAMC_Raw_Data_for_FY22[[#This Row],[75th]]-AAMC_Raw_Data_for_FY22[[#This Row],[Median]])/25)*15) + AAMC_Raw_Data_for_FY22[[#This Row],[Median]]","v":0},{"$f":"(((AAMC_Raw_Data_for_FY22[[#This Row],[75th]]-AAMC_Raw_Data_for_FY22[[#This Row],[Median]])/25)*20) + AAMC_Raw_Data_for_FY22[[#This Row],[Median]]","v":0},null,{"$f":"(((AAMC_Raw_Data_for_FY22[[#This Row],[75th]]-AAMC_Raw_Data_for_FY22[[#This Row],[Median]])/25)*30) + AAMC_Raw_Data_for_FY22[[#This Row],[Median]]","v":0},{"$f":"(((AAMC_Raw_Data_for_FY22[[#This Row],[75th]]-AAMC_Raw_Data_for_FY22[[#This Row],[Median]])/25)*35) + AAMC_Raw_Data_for_FY22[[#This Row],[Median]]","v":0},{"$f":"(((AAMC_Raw_Data_for_FY22[[#This Row],[75th]]-AAMC_Raw_Data_for_FY22[[#This Row],[Median]])/25)*40) + AAMC_Raw_Data_for_FY22[[#This Row],[Median]]","v":0}]
[{"$f":"AAMC_Raw_Data_for_FY22[[#This Row],[Source]]&AAMC_Raw_Data_for_FY22[[#This Row],[Type]]&AAMC_Raw_Data_for_FY22[[#This Row],[School Subset]]&AAMC_Raw_Data_for_FY22[[#This Row],[Rank]]&AAMC_Raw_Data_for_FY22[[#This Row],[Degree]]&AAMC_Raw_Data_for_FY22[[#This Row],[Department / Specialty]]&\"L\"","v":"AAMCAcademicPrivateProfessorPhDAnesthesiology: PediatricL"},"Anesthesiology: Pediatric",2,"AAMC","Academic","Private","Professor","PhD","2021-2022",null,{"$f":"(((AAMC_Raw_Data_for_FY22[[#This Row],[Median]]-AAMC_Raw_Data_for_FY22[[#This Row],[25th]])/25)*5) + AAMC_Raw_Data_for_FY22[[#This Row],[25th]]","v":0},{"$f":"(((AAMC_Raw_Data_for_FY22[[#This Row],[Median]]-AAMC_Raw_Data_for_FY22[[#This Row],[25th]])/25)*10) + AAMC_Raw_Data_for_FY22[[#This Row],[25th]]","v":0},{"$f":"(((AAMC_Raw_Data_for_FY22[[#This Row],[Median]]-AAMC_Raw_Data_for_FY22[[#This Row],[25th]])/25)*15) + AAMC_Raw_Data_for_FY22[[#This Row],[25th]]","v":0},{"$f":"(((AAMC_Raw_Data_for_FY22[[#This Row],[Median]]-AAMC_Raw_Data_for_FY22[[#This Row],[25th]])/25)*20) + AAMC_Raw_Data_for_FY22[[#This Row],[25th]]","v":0},null,{"$f":"(((AAMC_Raw_Data_for_FY22[[#This Row],[75th]]-AAMC_Raw_Data_for_FY22[[#This Row],[Median]])/25)*5) + AAMC_Raw_Data_for_FY22[[#This Row],[Median]]","v":0},{"$f":"(((AAMC_Raw_Data_for_FY22[[#This Row],[75th]]-AAMC_Raw_Data_for_FY22[[#This Row],[Median]])/25)*10) + AAMC_Raw_Data_for_FY22[[#This Row],[Median]]","v":0},{"$f":"(((AAMC_Raw_Data_for_FY22[[#This Row],[75th]]-AAMC_Raw_Data_for_FY22[[#This Row],[Median]])/25)*15) + AAMC_Raw_Data_for_FY22[[#This Row],[Median]]","v":0},{"$f":"(((AAMC_Raw_Data_for_FY22[[#This Row],[75th]]-AAMC_Raw_Data_for_FY22[[#This Row],[Median]])/25)*20) + AAMC_Raw_Data_for_FY22[[#This Row],[Median]]","v":0},null,{"$f":"(((AAMC_Raw_Data_for_FY22[[#This Row],[75th]]-AAMC_Raw_Data_for_FY22[[#This Row],[Median]])/25)*30) + AAMC_Raw_Data_for_FY22[[#This Row],[Median]]","v":0},{"$f":"(((AAMC_Raw_Data_for_FY22[[#This Row],[75th]]-AAMC_Raw_Data_for_FY22[[#This Row],[Median]])/25)*35) + AAMC_Raw_Data_for_FY22[[#This Row],[Median]]","v":0},{"$f":"(((AAMC_Raw_Data_for_FY22[[#This Row],[75th]]-AAMC_Raw_Data_for_FY22[[#This Row],[Median]])/25)*40) + AAMC_Raw_Data_for_FY22[[#This Row],[Median]]","v":0}]
[{"$f":"AAMC_Raw_Data_for_FY22[[#This Row],[Source]]&AAMC_Raw_Data_for_FY22[[#This Row],[Type]]&AAMC_Raw_Data_for_FY22[[#This Row],[School Subset]]&AAMC_Raw_Data_for_FY22[[#This Row],[Rank]]&AAMC_Raw_Data_for_FY22[[#This Row],[Degree]]&AAMC_Raw_Data_for_FY22[[#This Row],[Department / Specialty]]&\"L\"","v":"AAMCAcademicPrivateInstructorPhDDermatology TotalL"},"Dermatology Total",5,"AAMC","Academic","Private","Instructor","PhD","2021-2022",null,{"$f":"(((AAMC_Raw_Data_for_FY22[[#This Row],[Median]]-AAMC_Raw_Data_for_FY22[[#This Row],[25th]])/25)*5) + AAMC_Raw_Data_for_FY22[[#This Row],[25th]]","v":0},{"$f":"(((AAMC_Raw_Data_for_FY22[[#This Row],[Median]]-AAMC_Raw_Data_for_FY22[[#This Row],[25th]])/25)*10) + AAMC_Raw_Data_for_FY22[[#This Row],[25th]]","v":0},{"$f":"(((AAMC_Raw_Data_for_FY22[[#This Row],[Median]]-AAMC_Raw_Data_for_FY22[[#This Row],[25th]])/25)*15) + AAMC_Raw_Data_for_FY22[[#This Row],[25th]]","v":0},{"$f":"(((AAMC_Raw_Data_for_FY22[[#This Row],[Median]]-AAMC_Raw_Data_for_FY22[[#This Row],[25th]])/25)*20) + AAMC_Raw_Data_for_FY22[[#This Row],[25th]]","v":0},null,{"$f":"(((AAMC_Raw_Data_for_FY22[[#This Row],[75th]]-AAMC_Raw_Data_for_FY22[[#This Row],[Median]])/25)*5) + AAMC_Raw_Data_for_FY22[[#This Row],[Median]]","v":0},{"$f":"(((AAMC_Raw_Data_for_FY22[[#This Row],[75th]]-AAMC_Raw_Data_for_FY22[[#This Row],[Median]])/25)*10) + AAMC_Raw_Data_for_FY22[[#This Row],[Median]]","v":0},{"$f":"(((AAMC_Raw_Data_for_FY22[[#This Row],[75th]]-AAMC_Raw_Data_for_FY22[[#This Row],[Median]])/25)*15) + AAMC_Raw_Data_for_FY22[[#This Row],[Median]]","v":0},{"$f":"(((AAMC_Raw_Data_for_FY22[[#This Row],[75th]]-AAMC_Raw_Data_for_FY22[[#This Row],[Median]])/25)*20) + AAMC_Raw_Data_for_FY22[[#This Row],[Median]]","v":0},null,{"$f":"(((AAMC_Raw_Data_for_FY22[[#This Row],[75th]]-AAMC_Raw_Data_for_FY22[[#This Row],[Median]])/25)*30) + AAMC_Raw_Data_for_FY22[[#This Row],[Median]]","v":0},{"$f":"(((AAMC_Raw_Data_for_FY22[[#This Row],[75th]]-AAMC_Raw_Data_for_FY22[[#This Row],[Median]])/25)*35) + AAMC_Raw_Data_for_FY22[[#This Row],[Median]]","v":0},{"$f":"(((AAMC_Raw_Data_for_FY22[[#This Row],[75th]]-AAMC_Raw_Data_for_FY22[[#This Row],[Median]])/25)*40) + AAMC_Raw_Data_for_FY22[[#This Row],[Median]]","v":0}]
[{"$f":"AAMC_Raw_Data_for_FY22[[#This Row],[Source]]&AAMC_Raw_Data_for_FY22[[#This Row],[Type]]&AAMC_Raw_Data_for_FY22[[#This Row],[School Subset]]&AAMC_Raw_Data_for_FY22[[#This Row],[Rank]]&AAMC_Raw_Data_for_FY22[[#This Row],[Degree]]&AAMC_Raw_Data_for_FY22[[#This Row],[Department / Specialty]]&\"L\"","v":"AAMCAcademicPrivateAssistantPhDDermatology TotalL"},"Dermatology Total",4,"AAMC","Academic","Private","Assistant","PhD","2021-2022",93085,{"$f":"(((AAMC_Raw_Data_for_FY22[[#This Row],[Median]]-AAMC_Raw_Data_for_FY22[[#This Row],[25th]])/25)*5) + AAMC_Raw_Data_for_FY22[[#This Row],[25th]]","v":97019.6},{"$f":"(((AAMC_Raw_Data_for_FY22[[#This Row],[Median]]-AAMC_Raw_Data_for_FY22[[#This Row],[25th]])/25)*10) + AAMC_Raw_Data_for_FY22[[#This Row],[25th]]","v":100954.2},{"$f":"(((AAMC_Raw_Data_for_FY22[[#This Row],[Median]]-AAMC_Raw_Data_for_FY22[[#This Row],[25th]])/25)*15) + AAMC_Raw_Data_for_FY22[[#This Row],[25th]]","v":104888.8},{"$f":"(((AAMC_Raw_Data_for_FY22[[#This Row],[Median]]-AAMC_Raw_Data_for_FY22[[#This Row],[25th]])/25)*20) + AAMC_Raw_Data_for_FY22[[#This Row],[25th]]","v":108823.4},112758,{"$f":"(((AAMC_Raw_Data_for_FY22[[#This Row],[75th]]-AAMC_Raw_Data_for_FY22[[#This Row],[Median]])/25)*5) + AAMC_Raw_Data_for_FY22[[#This Row],[Median]]","v":117069.2},{"$f":"(((AAMC_Raw_Data_for_FY22[[#This Row],[75th]]-AAMC_Raw_Data_for_FY22[[#This Row],[Median]])/25)*10) + AAMC_Raw_Data_for_FY22[[#This Row],[Median]]","v":121380.4},{"$f":"(((AAMC_Raw_Data_for_FY22[[#This Row],[75th]]-AAMC_Raw_Data_for_FY22[[#This Row],[Median]])/25)*15) + AAMC_Raw_Data_for_FY22[[#This Row],[Median]]","v":125691.6},{"$f":"(((AAMC_Raw_Data_for_FY22[[#This Row],[75th]]-AAMC_Raw_Data_for_FY22[[#This Row],[Median]])/25)*20) + AAMC_Raw_Data_for_FY22[[#This Row],[Median]]","v":130002.8},134314,{"$f":"(((AAMC_Raw_Data_for_FY22[[#This Row],[75th]]-AAMC_Raw_Data_for_FY22[[#This Row],[Median]])/25)*30) + AAMC_Raw_Data_for_FY22[[#This Row],[Median]]","v":138625.20000000001},{"$f":"(((AAMC_Raw_Data_for_FY22[[#This Row],[75th]]-AAMC_Raw_Data_for_FY22[[#This Row],[Median]])/25)*35) + AAMC_Raw_Data_for_FY22[[#This Row],[Median]]","v":142936.4},{"$f":"(((AAMC_Raw_Data_for_FY22[[#This Row],[75th]]-AAMC_Raw_Data_for_FY22[[#This Row],[Median]])/25)*40) + AAMC_Raw_Data_for_FY22[[#This Row],[Median]]","v":147247.6}]
[{"$f":"AAMC_Raw_Data_for_FY22[[#This Row],[Source]]&AAMC_Raw_Data_for_FY22[[#This Row],[Type]]&AAMC_Raw_Data_for_FY22[[#This Row],[School Subset]]&AAMC_Raw_Data_for_FY22[[#This Row],[Rank]]&AAMC_Raw_Data_for_FY22[[#This Row],[Degree]]&AAMC_Raw_Data_for_FY22[[#This Row],[Department / Specialty]]&\"L\"","v":"AAMCAcademicPrivateAssociatePhDDermatology TotalL"},"Dermatology Total",3,"AAMC","Academic","Private","Associate","PhD","2021-2022",137030,{"$f":"(((AAMC_Raw_Data_for_FY22[[#This Row],[Median]]-AAMC_Raw_Data_for_FY22[[#This Row],[25th]])/25)*5) + AAMC_Raw_Data_for_FY22[[#This Row],[25th]]","v":140278.39999999999},{"$f":"(((AAMC_Raw_Data_for_FY22[[#This Row],[Median]]-AAMC_Raw_Data_for_FY22[[#This Row],[25th]])/25)*10) + AAMC_Raw_Data_for_FY22[[#This Row],[25th]]","v":143526.79999999999},{"$f":"(((AAMC_Raw_Data_for_FY22[[#This Row],[Median]]-AAMC_Raw_Data_for_FY22[[#This Row],[25th]])/25)*15) + AAMC_Raw_Data_for_FY22[[#This Row],[25th]]","v":146775.20000000001},{"$f":"(((AAMC_Raw_Data_for_FY22[[#This Row],[Median]]-AAMC_Raw_Data_for_FY22[[#This Row],[25th]])/25)*20) + AAMC_Raw_Data_for_FY22[[#This Row],[25th]]","v":150023.6},153272,{"$f":"(((AAMC_Raw_Data_for_FY22[[#This Row],[75th]]-AAMC_Raw_Data_for_FY22[[#This Row],[Median]])/25)*5) + AAMC_Raw_Data_for_FY22[[#This Row],[Median]]","v":155253.4},{"$f":"(((AAMC_Raw_Data_for_FY22[[#This Row],[75th]]-AAMC_Raw_Data_for_FY22[[#This Row],[Median]])/25)*10) + AAMC_Raw_Data_for_FY22[[#This Row],[Median]]","v":157234.79999999999},{"$f":"(((AAMC_Raw_Data_for_FY22[[#This Row],[75th]]-AAMC_Raw_Data_for_FY22[[#This Row],[Median]])/25)*15) + AAMC_Raw_Data_for_FY22[[#This Row],[Median]]","v":159216.20000000001},{"$f":"(((AAMC_Raw_Data_for_FY22[[#This Row],[75th]]-AAMC_Raw_Data_for_FY22[[#This Row],[Median]])/25)*20) + AAMC_Raw_Data_for_FY22[[#This Row],[Median]]","v":161197.6},163179,{"$f":"(((AAMC_Raw_Data_for_FY22[[#This Row],[75th]]-AAMC_Raw_Data_for_FY22[[#This Row],[Median]])/25)*30) + AAMC_Raw_Data_for_FY22[[#This Row],[Median]]","v":165160.4},{"$f":"(((AAMC_Raw_Data_for_FY22[[#This Row],[75th]]-AAMC_Raw_Data_for_FY22[[#This Row],[Median]])/25)*35) + AAMC_Raw_Data_for_FY22[[#This Row],[Median]]","v":167141.79999999999},{"$f":"(((AAMC_Raw_Data_for_FY22[[#This Row],[75th]]-AAMC_Raw_Data_for_FY22[[#This Row],[Median]])/25)*40) + AAMC_Raw_Data_for_FY22[[#This Row],[Median]]","v":169123.20000000001}]
[{"$f":"AAMC_Raw_Data_for_FY22[[#This Row],[Source]]&AAMC_Raw_Data_for_FY22[[#This Row],[Type]]&AAMC_Raw_Data_for_FY22[[#This Row],[School Subset]]&AAMC_Raw_Data_for_FY22[[#This Row],[Rank]]&AAMC_Raw_Data_for_FY22[[#This Row],[Degree]]&AAMC_Raw_Data_for_FY22[[#This Row],[Department / Specialty]]&\"L\"","v":"AAMCAcademicPrivateProfessorPhDDermatology TotalL"},"Dermatology Total",2,"AAMC","Academic","Private","Professor","PhD","2021-2022",163770,{"$f":"(((AAMC_Raw_Data_for_FY22[[#This Row],[Median]]-AAMC_Raw_Data_for_FY22[[#This Row],[25th]])/25)*5) + AAMC_Raw_Data_for_FY22[[#This Row],[25th]]","v":169276},{"$f":"(((AAMC_Raw_Data_for_FY22[[#This Row],[Median]]-AAMC_Raw_Data_for_FY22[[#This Row],[25th]])/25)*10) + AAMC_Raw_Data_for_FY22[[#This Row],[25th]]","v":174782},{"$f":"(((AAMC_Raw_Data_for_FY22[[#This Row],[Median]]-AAMC_Raw_Data_for_FY22[[#This Row],[25th]])/25)*15) + AAMC_Raw_Data_for_FY22[[#This Row],[25th]]","v":180288},{"$f":"(((AAMC_Raw_Data_for_FY22[[#This Row],[Median]]-AAMC_Raw_Data_for_FY22[[#This Row],[25th]])/25)*20) + AAMC_Raw_Data_for_FY22[[#This Row],[25th]]","v":185794},191300,{"$f":"(((AAMC_Raw_Data_for_FY22[[#This Row],[75th]]-AAMC_Raw_Data_for_FY22[[#This Row],[Median]])/25)*5) + AAMC_Raw_Data_for_FY22[[#This Row],[Median]]","v":198112},{"$f":"(((AAMC_Raw_Data_for_FY22[[#This Row],[75th]]-AAMC_Raw_Data_for_FY22[[#This Row],[Median]])/25)*10) + AAMC_Raw_Data_for_FY22[[#This Row],[Median]]","v":204924},{"$f":"(((AAMC_Raw_Data_for_FY22[[#This Row],[75th]]-AAMC_Raw_Data_for_FY22[[#This Row],[Median]])/25)*15) + AAMC_Raw_Data_for_FY22[[#This Row],[Median]]","v":211736},{"$f":"(((AAMC_Raw_Data_for_FY22[[#This Row],[75th]]-AAMC_Raw_Data_for_FY22[[#This Row],[Median]])/25)*20) + AAMC_Raw_Data_for_FY22[[#This Row],[Median]]","v":218548},225360,{"$f":"(((AAMC_Raw_Data_for_FY22[[#This Row],[75th]]-AAMC_Raw_Data_for_FY22[[#This Row],[Median]])/25)*30) + AAMC_Raw_Data_for_FY22[[#This Row],[Median]]","v":232172},{"$f":"(((AAMC_Raw_Data_for_FY22[[#This Row],[75th]]-AAMC_Raw_Data_for_FY22[[#This Row],[Median]])/25)*35) + AAMC_Raw_Data_for_FY22[[#This Row],[Median]]","v":238984},{"$f":"(((AAMC_Raw_Data_for_FY22[[#This Row],[75th]]-AAMC_Raw_Data_for_FY22[[#This Row],[Median]])/25)*40) + AAMC_Raw_Data_for_FY22[[#This Row],[Median]]","v":245796}]
[{"$f":"AAMC_Raw_Data_for_FY22[[#This Row],[Source]]&AAMC_Raw_Data_for_FY22[[#This Row],[Type]]&AAMC_Raw_Data_for_FY22[[#This Row],[School Subset]]&AAMC_Raw_Data_for_FY22[[#This Row],[Rank]]&AAMC_Raw_Data_for_FY22[[#This Row],[Degree]]&AAMC_Raw_Data_for_FY22[[#This Row],[Department / Specialty]]&\"L\"","v":"AAMCAcademicPrivateInstructorPhDDermatology (excluding Mohs Surgery)L"},"Dermatology (excluding Mohs Surgery)",5,"AAMC","Academic","Private","Instructor","PhD","2021-2022",null,{"$f":"(((AAMC_Raw_Data_for_FY22[[#This Row],[Median]]-AAMC_Raw_Data_for_FY22[[#This Row],[25th]])/25)*5) + AAMC_Raw_Data_for_FY22[[#This Row],[25th]]","v":0},{"$f":"(((AAMC_Raw_Data_for_FY22[[#This Row],[Median]]-AAMC_Raw_Data_for_FY22[[#This Row],[25th]])/25)*10) + AAMC_Raw_Data_for_FY22[[#This Row],[25th]]","v":0},{"$f":"(((AAMC_Raw_Data_for_FY22[[#This Row],[Median]]-AAMC_Raw_Data_for_FY22[[#This Row],[25th]])/25)*15) + AAMC_Raw_Data_for_FY22[[#This Row],[25th]]","v":0},{"$f":"(((AAMC_Raw_Data_for_FY22[[#This Row],[Median]]-AAMC_Raw_Data_for_FY22[[#This Row],[25th]])/25)*20) + AAMC_Raw_Data_for_FY22[[#This Row],[25th]]","v":0},null,{"$f":"(((AAMC_Raw_Data_for_FY22[[#This Row],[75th]]-AAMC_Raw_Data_for_FY22[[#This Row],[Median]])/25)*5) + AAMC_Raw_Data_for_FY22[[#This Row],[Median]]","v":0},{"$f":"(((AAMC_Raw_Data_for_FY22[[#This Row],[75th]]-AAMC_Raw_Data_for_FY22[[#This Row],[Median]])/25)*10) + AAMC_Raw_Data_for_FY22[[#This Row],[Median]]","v":0},{"$f":"(((AAMC_Raw_Data_for_FY22[[#This Row],[75th]]-AAMC_Raw_Data_for_FY22[[#This Row],[Median]])/25)*15) + AAMC_Raw_Data_for_FY22[[#This Row],[Median]]","v":0},{"$f":"(((AAMC_Raw_Data_for_FY22[[#This Row],[75th]]-AAMC_Raw_Data_for_FY22[[#This Row],[Median]])/25)*20) + AAMC_Raw_Data_for_FY22[[#This Row],[Median]]","v":0},null,{"$f":"(((AAMC_Raw_Data_for_FY22[[#This Row],[75th]]-AAMC_Raw_Data_for_FY22[[#This Row],[Median]])/25)*30) + AAMC_Raw_Data_for_FY22[[#This Row],[Median]]","v":0},{"$f":"(((AAMC_Raw_Data_for_FY22[[#This Row],[75th]]-AAMC_Raw_Data_for_FY22[[#This Row],[Median]])/25)*35) + AAMC_Raw_Data_for_FY22[[#This Row],[Median]]","v":0},{"$f":"(((AAMC_Raw_Data_for_FY22[[#This Row],[75th]]-AAMC_Raw_Data_for_FY22[[#This Row],[Median]])/25)*40) + AAMC_Raw_Data_for_FY22[[#This Row],[Median]]","v":0}]
[{"$f":"AAMC_Raw_Data_for_FY22[[#This Row],[Source]]&AAMC_Raw_Data_for_FY22[[#This Row],[Type]]&AAMC_Raw_Data_for_FY22[[#This Row],[School Subset]]&AAMC_Raw_Data_for_FY22[[#This Row],[Rank]]&AAMC_Raw_Data_for_FY22[[#This Row],[Degree]]&AAMC_Raw_Data_for_FY22[[#This Row],[Department / Specialty]]&\"L\"","v":"AAMCAcademicPrivateAssistantPhDDermatology (excluding Mohs Surgery)L"},"Dermatology (excluding Mohs Surgery)",4,"AAMC","Academic","Private","Assistant","PhD","2021-2022",93085,{"$f":"(((AAMC_Raw_Data_for_FY22[[#This Row],[Median]]-AAMC_Raw_Data_for_FY22[[#This Row],[25th]])/25)*5) + AAMC_Raw_Data_for_FY22[[#This Row],[25th]]","v":97019.6},{"$f":"(((AAMC_Raw_Data_for_FY22[[#This Row],[Median]]-AAMC_Raw_Data_for_FY22[[#This Row],[25th]])/25)*10) + AAMC_Raw_Data_for_FY22[[#This Row],[25th]]","v":100954.2},{"$f":"(((AAMC_Raw_Data_for_FY22[[#This Row],[Median]]-AAMC_Raw_Data_for_FY22[[#This Row],[25th]])/25)*15) + AAMC_Raw_Data_for_FY22[[#This Row],[25th]]","v":104888.8},{"$f":"(((AAMC_Raw_Data_for_FY22[[#This Row],[Median]]-AAMC_Raw_Data_for_FY22[[#This Row],[25th]])/25)*20) + AAMC_Raw_Data_for_FY22[[#This Row],[25th]]","v":108823.4},112758,{"$f":"(((AAMC_Raw_Data_for_FY22[[#This Row],[75th]]-AAMC_Raw_Data_for_FY22[[#This Row],[Median]])/25)*5) + AAMC_Raw_Data_for_FY22[[#This Row],[Median]]","v":117069.2},{"$f":"(((AAMC_Raw_Data_for_FY22[[#This Row],[75th]]-AAMC_Raw_Data_for_FY22[[#This Row],[Median]])/25)*10) + AAMC_Raw_Data_for_FY22[[#This Row],[Median]]","v":121380.4},{"$f":"(((AAMC_Raw_Data_for_FY22[[#This Row],[75th]]-AAMC_Raw_Data_for_FY22[[#This Row],[Median]])/25)*15) + AAMC_Raw_Data_for_FY22[[#This Row],[Median]]","v":125691.6},{"$f":"(((AAMC_Raw_Data_for_FY22[[#This Row],[75th]]-AAMC_Raw_Data_for_FY22[[#This Row],[Median]])/25)*20) + AAMC_Raw_Data_for_FY22[[#This Row],[Median]]","v":130002.8},134314,{"$f":"(((AAMC_Raw_Data_for_FY22[[#This Row],[75th]]-AAMC_Raw_Data_for_FY22[[#This Row],[Median]])/25)*30) + AAMC_Raw_Data_for_FY22[[#This Row],[Median]]","v":138625.20000000001},{"$f":"(((AAMC_Raw_Data_for_FY22[[#This Row],[75th]]-AAMC_Raw_Data_for_FY22[[#This Row],[Median]])/25)*35) + AAMC_Raw_Data_for_FY22[[#This Row],[Median]]","v":142936.4},{"$f":"(((AAMC_Raw_Data_for_FY22[[#This Row],[75th]]-AAMC_Raw_Data_for_FY22[[#This Row],[Median]])/25)*40) + AAMC_Raw_Data_for_FY22[[#This Row],[Median]]","v":147247.6}]
[{"$f":"AAMC_Raw_Data_for_FY22[[#This Row],[Source]]&AAMC_Raw_Data_for_FY22[[#This Row],[Type]]&AAMC_Raw_Data_for_FY22[[#This Row],[School Subset]]&AAMC_Raw_Data_for_FY22[[#This Row],[Rank]]&AAMC_Raw_Data_for_FY22[[#This Row],[Degree]]&AAMC_Raw_Data_for_FY22[[#This Row],[Department / Specialty]]&\"L\"","v":"AAMCAcademicPrivateAssociatePhDDermatology (excluding Mohs Surgery)L"},"Dermatology (excluding Mohs Surgery)",3,"AAMC","Academic","Private","Associate","PhD","2021-2022",137030,{"$f":"(((AAMC_Raw_Data_for_FY22[[#This Row],[Median]]-AAMC_Raw_Data_for_FY22[[#This Row],[25th]])/25)*5) + AAMC_Raw_Data_for_FY22[[#This Row],[25th]]","v":140278.39999999999},{"$f":"(((AAMC_Raw_Data_for_FY22[[#This Row],[Median]]-AAMC_Raw_Data_for_FY22[[#This Row],[25th]])/25)*10) + AAMC_Raw_Data_for_FY22[[#This Row],[25th]]","v":143526.79999999999},{"$f":"(((AAMC_Raw_Data_for_FY22[[#This Row],[Median]]-AAMC_Raw_Data_for_FY22[[#This Row],[25th]])/25)*15) + AAMC_Raw_Data_for_FY22[[#This Row],[25th]]","v":146775.20000000001},{"$f":"(((AAMC_Raw_Data_for_FY22[[#This Row],[Median]]-AAMC_Raw_Data_for_FY22[[#This Row],[25th]])/25)*20) + AAMC_Raw_Data_for_FY22[[#This Row],[25th]]","v":150023.6},153272,{"$f":"(((AAMC_Raw_Data_for_FY22[[#This Row],[75th]]-AAMC_Raw_Data_for_FY22[[#This Row],[Median]])/25)*5) + AAMC_Raw_Data_for_FY22[[#This Row],[Median]]","v":155253.4},{"$f":"(((AAMC_Raw_Data_for_FY22[[#This Row],[75th]]-AAMC_Raw_Data_for_FY22[[#This Row],[Median]])/25)*10) + AAMC_Raw_Data_for_FY22[[#This Row],[Median]]","v":157234.79999999999},{"$f":"(((AAMC_Raw_Data_for_FY22[[#This Row],[75th]]-AAMC_Raw_Data_for_FY22[[#This Row],[Median]])/25)*15) + AAMC_Raw_Data_for_FY22[[#This Row],[Median]]","v":159216.20000000001},{"$f":"(((AAMC_Raw_Data_for_FY22[[#This Row],[75th]]-AAMC_Raw_Data_for_FY22[[#This Row],[Median]])/25)*20) + AAMC_Raw_Data_for_FY22[[#This Row],[Median]]","v":161197.6},163179,{"$f":"(((AAMC_Raw_Data_for_FY22[[#This Row],[75th]]-AAMC_Raw_Data_for_FY22[[#This Row],[Median]])/25)*30) + AAMC_Raw_Data_for_FY22[[#This Row],[Median]]","v":165160.4},{"$f":"(((AAMC_Raw_Data_for_FY22[[#This Row],[75th]]-AAMC_Raw_Data_for_FY22[[#This Row],[Median]])/25)*35) + AAMC_Raw_Data_for_FY22[[#This Row],[Median]]","v":167141.79999999999},{"$f":"(((AAMC_Raw_Data_for_FY22[[#This Row],[75th]]-AAMC_Raw_Data_for_FY22[[#This Row],[Median]])/25)*40) + AAMC_Raw_Data_for_FY22[[#This Row],[Median]]","v":169123.20000000001}]
[{"$f":"AAMC_Raw_Data_for_FY22[[#This Row],[Source]]&AAMC_Raw_Data_for_FY22[[#This Row],[Type]]&AAMC_Raw_Data_for_FY22[[#This Row],[School Subset]]&AAMC_Raw_Data_for_FY22[[#This Row],[Rank]]&AAMC_Raw_Data_for_FY22[[#This Row],[Degree]]&AAMC_Raw_Data_for_FY22[[#This Row],[Department / Specialty]]&\"L\"","v":"AAMCAcademicPrivateProfessorPhDDermatology (excluding Mohs Surgery)L"},"Dermatology (excluding Mohs Surgery)",2,"AAMC","Academic","Private","Professor","PhD","2021-2022",163770,{"$f":"(((AAMC_Raw_Data_for_FY22[[#This Row],[Median]]-AAMC_Raw_Data_for_FY22[[#This Row],[25th]])/25)*5) + AAMC_Raw_Data_for_FY22[[#This Row],[25th]]","v":169276},{"$f":"(((AAMC_Raw_Data_for_FY22[[#This Row],[Median]]-AAMC_Raw_Data_for_FY22[[#This Row],[25th]])/25)*10) + AAMC_Raw_Data_for_FY22[[#This Row],[25th]]","v":174782},{"$f":"(((AAMC_Raw_Data_for_FY22[[#This Row],[Median]]-AAMC_Raw_Data_for_FY22[[#This Row],[25th]])/25)*15) + AAMC_Raw_Data_for_FY22[[#This Row],[25th]]","v":180288},{"$f":"(((AAMC_Raw_Data_for_FY22[[#This Row],[Median]]-AAMC_Raw_Data_for_FY22[[#This Row],[25th]])/25)*20) + AAMC_Raw_Data_for_FY22[[#This Row],[25th]]","v":185794},191300,{"$f":"(((AAMC_Raw_Data_for_FY22[[#This Row],[75th]]-AAMC_Raw_Data_for_FY22[[#This Row],[Median]])/25)*5) + AAMC_Raw_Data_for_FY22[[#This Row],[Median]]","v":198112},{"$f":"(((AAMC_Raw_Data_for_FY22[[#This Row],[75th]]-AAMC_Raw_Data_for_FY22[[#This Row],[Median]])/25)*10) + AAMC_Raw_Data_for_FY22[[#This Row],[Median]]","v":204924},{"$f":"(((AAMC_Raw_Data_for_FY22[[#This Row],[75th]]-AAMC_Raw_Data_for_FY22[[#This Row],[Median]])/25)*15) + AAMC_Raw_Data_for_FY22[[#This Row],[Median]]","v":211736},{"$f":"(((AAMC_Raw_Data_for_FY22[[#This Row],[75th]]-AAMC_Raw_Data_for_FY22[[#This Row],[Median]])/25)*20) + AAMC_Raw_Data_for_FY22[[#This Row],[Median]]","v":218548},225360,{"$f":"(((AAMC_Raw_Data_for_FY22[[#This Row],[75th]]-AAMC_Raw_Data_for_FY22[[#This Row],[Median]])/25)*30) + AAMC_Raw_Data_for_FY22[[#This Row],[Median]]","v":232172},{"$f":"(((AAMC_Raw_Data_for_FY22[[#This Row],[75th]]-AAMC_Raw_Data_for_FY22[[#This Row],[Median]])/25)*35) + AAMC_Raw_Data_for_FY22[[#This Row],[Median]]","v":238984},{"$f":"(((AAMC_Raw_Data_for_FY22[[#This Row],[75th]]-AAMC_Raw_Data_for_FY22[[#This Row],[Median]])/25)*40) + AAMC_Raw_Data_for_FY22[[#This Row],[Median]]","v":245796}]
[{"$f":"AAMC_Raw_Data_for_FY22[[#This Row],[Source]]&AAMC_Raw_Data_for_FY22[[#This Row],[Type]]&AAMC_Raw_Data_for_FY22[[#This Row],[School Subset]]&AAMC_Raw_Data_for_FY22[[#This Row],[Rank]]&AAMC_Raw_Data_for_FY22[[#This Row],[Degree]]&AAMC_Raw_Data_for_FY22[[#This Row],[Department / Specialty]]&\"L\"","v":"AAMCAcademicPrivateInstructorPhDDermatology: Mohs SurgeryL"},"Dermatology: Mohs Surgery",5,"AAMC","Academic","Private","Instructor","PhD","2021-2022",null,{"$f":"(((AAMC_Raw_Data_for_FY22[[#This Row],[Median]]-AAMC_Raw_Data_for_FY22[[#This Row],[25th]])/25)*5) + AAMC_Raw_Data_for_FY22[[#This Row],[25th]]","v":0},{"$f":"(((AAMC_Raw_Data_for_FY22[[#This Row],[Median]]-AAMC_Raw_Data_for_FY22[[#This Row],[25th]])/25)*10) + AAMC_Raw_Data_for_FY22[[#This Row],[25th]]","v":0},{"$f":"(((AAMC_Raw_Data_for_FY22[[#This Row],[Median]]-AAMC_Raw_Data_for_FY22[[#This Row],[25th]])/25)*15) + AAMC_Raw_Data_for_FY22[[#This Row],[25th]]","v":0},{"$f":"(((AAMC_Raw_Data_for_FY22[[#This Row],[Median]]-AAMC_Raw_Data_for_FY22[[#This Row],[25th]])/25)*20) + AAMC_Raw_Data_for_FY22[[#This Row],[25th]]","v":0},null,{"$f":"(((AAMC_Raw_Data_for_FY22[[#This Row],[75th]]-AAMC_Raw_Data_for_FY22[[#This Row],[Median]])/25)*5) + AAMC_Raw_Data_for_FY22[[#This Row],[Median]]","v":0},{"$f":"(((AAMC_Raw_Data_for_FY22[[#This Row],[75th]]-AAMC_Raw_Data_for_FY22[[#This Row],[Median]])/25)*10) + AAMC_Raw_Data_for_FY22[[#This Row],[Median]]","v":0},{"$f":"(((AAMC_Raw_Data_for_FY22[[#This Row],[75th]]-AAMC_Raw_Data_for_FY22[[#This Row],[Median]])/25)*15) + AAMC_Raw_Data_for_FY22[[#This Row],[Median]]","v":0},{"$f":"(((AAMC_Raw_Data_for_FY22[[#This Row],[75th]]-AAMC_Raw_Data_for_FY22[[#This Row],[Median]])/25)*20) + AAMC_Raw_Data_for_FY22[[#This Row],[Median]]","v":0},null,{"$f":"(((AAMC_Raw_Data_for_FY22[[#This Row],[75th]]-AAMC_Raw_Data_for_FY22[[#This Row],[Median]])/25)*30) + AAMC_Raw_Data_for_FY22[[#This Row],[Median]]","v":0},{"$f":"(((AAMC_Raw_Data_for_FY22[[#This Row],[75th]]-AAMC_Raw_Data_for_FY22[[#This Row],[Median]])/25)*35) + AAMC_Raw_Data_for_FY22[[#This Row],[Median]]","v":0},{"$f":"(((AAMC_Raw_Data_for_FY22[[#This Row],[75th]]-AAMC_Raw_Data_for_FY22[[#This Row],[Median]])/25)*40) + AAMC_Raw_Data_for_FY22[[#This Row],[Median]]","v":0}]
[{"$f":"AAMC_Raw_Data_for_FY22[[#This Row],[Source]]&AAMC_Raw_Data_for_FY22[[#This Row],[Type]]&AAMC_Raw_Data_for_FY22[[#This Row],[School Subset]]&AAMC_Raw_Data_for_FY22[[#This Row],[Rank]]&AAMC_Raw_Data_for_FY22[[#This Row],[Degree]]&AAMC_Raw_Data_for_FY22[[#This Row],[Department / Specialty]]&\"L\"","v":"AAMCAcademicPrivateInstructorPhDFamily Medicine TotalL"},"Family Medicine Total",5,"AAMC","Academic","Private","Instructor","PhD","2021-2022",null,{"$f":"(((AAMC_Raw_Data_for_FY22[[#This Row],[Median]]-AAMC_Raw_Data_for_FY22[[#This Row],[25th]])/25)*5) + AAMC_Raw_Data_for_FY22[[#This Row],[25th]]","v":0},{"$f":"(((AAMC_Raw_Data_for_FY22[[#This Row],[Median]]-AAMC_Raw_Data_for_FY22[[#This Row],[25th]])/25)*10) + AAMC_Raw_Data_for_FY22[[#This Row],[25th]]","v":0},{"$f":"(((AAMC_Raw_Data_for_FY22[[#This Row],[Median]]-AAMC_Raw_Data_for_FY22[[#This Row],[25th]])/25)*15) + AAMC_Raw_Data_for_FY22[[#This Row],[25th]]","v":0},{"$f":"(((AAMC_Raw_Data_for_FY22[[#This Row],[Median]]-AAMC_Raw_Data_for_FY22[[#This Row],[25th]])/25)*20) + AAMC_Raw_Data_for_FY22[[#This Row],[25th]]","v":0},null,{"$f":"(((AAMC_Raw_Data_for_FY22[[#This Row],[75th]]-AAMC_Raw_Data_for_FY22[[#This Row],[Median]])/25)*5) + AAMC_Raw_Data_for_FY22[[#This Row],[Median]]","v":0},{"$f":"(((AAMC_Raw_Data_for_FY22[[#This Row],[75th]]-AAMC_Raw_Data_for_FY22[[#This Row],[Median]])/25)*10) + AAMC_Raw_Data_for_FY22[[#This Row],[Median]]","v":0},{"$f":"(((AAMC_Raw_Data_for_FY22[[#This Row],[75th]]-AAMC_Raw_Data_for_FY22[[#This Row],[Median]])/25)*15) + AAMC_Raw_Data_for_FY22[[#This Row],[Median]]","v":0},{"$f":"(((AAMC_Raw_Data_for_FY22[[#This Row],[75th]]-AAMC_Raw_Data_for_FY22[[#This Row],[Median]])/25)*20) + AAMC_Raw_Data_for_FY22[[#This Row],[Median]]","v":0},null,{"$f":"(((AAMC_Raw_Data_for_FY22[[#This Row],[75th]]-AAMC_Raw_Data_for_FY22[[#This Row],[Median]])/25)*30) + AAMC_Raw_Data_for_FY22[[#This Row],[Median]]","v":0},{"$f":"(((AAMC_Raw_Data_for_FY22[[#This Row],[75th]]-AAMC_Raw_Data_for_FY22[[#This Row],[Median]])/25)*35) + AAMC_Raw_Data_for_FY22[[#This Row],[Median]]","v":0},{"$f":"(((AAMC_Raw_Data_for_FY22[[#This Row],[75th]]-AAMC_Raw_Data_for_FY22[[#This Row],[Median]])/25)*40) + AAMC_Raw_Data_for_FY22[[#This Row],[Median]]","v":0}]
[{"$f":"AAMC_Raw_Data_for_FY22[[#This Row],[Source]]&AAMC_Raw_Data_for_FY22[[#This Row],[Type]]&AAMC_Raw_Data_for_FY22[[#This Row],[School Subset]]&AAMC_Raw_Data_for_FY22[[#This Row],[Rank]]&AAMC_Raw_Data_for_FY22[[#This Row],[Degree]]&AAMC_Raw_Data_for_FY22[[#This Row],[Department / Specialty]]&\"L\"","v":"AAMCAcademicPrivateAssistantPhDFamily Medicine TotalL"},"Family Medicine Total",4,"AAMC","Academic","Private","Assistant","PhD","2021-2022",98260,{"$f":"(((AAMC_Raw_Data_for_FY22[[#This Row],[Median]]-AAMC_Raw_Data_for_FY22[[#This Row],[25th]])/25)*5) + AAMC_Raw_Data_for_FY22[[#This Row],[25th]]","v":102608},{"$f":"(((AAMC_Raw_Data_for_FY22[[#This Row],[Median]]-AAMC_Raw_Data_for_FY22[[#This Row],[25th]])/25)*10) + AAMC_Raw_Data_for_FY22[[#This Row],[25th]]","v":106956},{"$f":"(((AAMC_Raw_Data_for_FY22[[#This Row],[Median]]-AAMC_Raw_Data_for_FY22[[#This Row],[25th]])/25)*15) + AAMC_Raw_Data_for_FY22[[#This Row],[25th]]","v":111304},{"$f":"(((AAMC_Raw_Data_for_FY22[[#This Row],[Median]]-AAMC_Raw_Data_for_FY22[[#This Row],[25th]])/25)*20) + AAMC_Raw_Data_for_FY22[[#This Row],[25th]]","v":115652},120000,{"$f":"(((AAMC_Raw_Data_for_FY22[[#This Row],[75th]]-AAMC_Raw_Data_for_FY22[[#This Row],[Median]])/25)*5) + AAMC_Raw_Data_for_FY22[[#This Row],[Median]]","v":121850},{"$f":"(((AAMC_Raw_Data_for_FY22[[#This Row],[75th]]-AAMC_Raw_Data_for_FY22[[#This Row],[Median]])/25)*10) + AAMC_Raw_Data_for_FY22[[#This Row],[Median]]","v":123700},{"$f":"(((AAMC_Raw_Data_for_FY22[[#This Row],[75th]]-AAMC_Raw_Data_for_FY22[[#This Row],[Median]])/25)*15) + AAMC_Raw_Data_for_FY22[[#This Row],[Median]]","v":125550},{"$f":"(((AAMC_Raw_Data_for_FY22[[#This Row],[75th]]-AAMC_Raw_Data_for_FY22[[#This Row],[Median]])/25)*20) + AAMC_Raw_Data_for_FY22[[#This Row],[Median]]","v":127400},129250,{"$f":"(((AAMC_Raw_Data_for_FY22[[#This Row],[75th]]-AAMC_Raw_Data_for_FY22[[#This Row],[Median]])/25)*30) + AAMC_Raw_Data_for_FY22[[#This Row],[Median]]","v":131100},{"$f":"(((AAMC_Raw_Data_for_FY22[[#This Row],[75th]]-AAMC_Raw_Data_for_FY22[[#This Row],[Median]])/25)*35) + AAMC_Raw_Data_for_FY22[[#This Row],[Median]]","v":132950},{"$f":"(((AAMC_Raw_Data_for_FY22[[#This Row],[75th]]-AAMC_Raw_Data_for_FY22[[#This Row],[Median]])/25)*40) + AAMC_Raw_Data_for_FY22[[#This Row],[Median]]","v":134800}]
[{"$f":"AAMC_Raw_Data_for_FY22[[#This Row],[Source]]&AAMC_Raw_Data_for_FY22[[#This Row],[Type]]&AAMC_Raw_Data_for_FY22[[#This Row],[School Subset]]&AAMC_Raw_Data_for_FY22[[#This Row],[Rank]]&AAMC_Raw_Data_for_FY22[[#This Row],[Degree]]&AAMC_Raw_Data_for_FY22[[#This Row],[Department / Specialty]]&\"L\"","v":"AAMCAcademicPrivateAssociatePhDFamily Medicine TotalL"},"Family Medicine Total",3,"AAMC","Academic","Private","Associate","PhD","2021-2022",115000,{"$f":"(((AAMC_Raw_Data_for_FY22[[#This Row],[Median]]-AAMC_Raw_Data_for_FY22[[#This Row],[25th]])/25)*5) + AAMC_Raw_Data_for_FY22[[#This Row],[25th]]","v":118116.4},{"$f":"(((AAMC_Raw_Data_for_FY22[[#This Row],[Median]]-AAMC_Raw_Data_for_FY22[[#This Row],[25th]])/25)*10) + AAMC_Raw_Data_for_FY22[[#This Row],[25th]]","v":121232.8},{"$f":"(((AAMC_Raw_Data_for_FY22[[#This Row],[Median]]-AAMC_Raw_Data_for_FY22[[#This Row],[25th]])/25)*15) + AAMC_Raw_Data_for_FY22[[#This Row],[25th]]","v":124349.2},{"$f":"(((AAMC_Raw_Data_for_FY22[[#This Row],[Median]]-AAMC_Raw_Data_for_FY22[[#This Row],[25th]])/25)*20) + AAMC_Raw_Data_for_FY22[[#This Row],[25th]]","v":127465.60000000001},130582,{"$f":"(((AAMC_Raw_Data_for_FY22[[#This Row],[75th]]-AAMC_Raw_Data_for_FY22[[#This Row],[Median]])/25)*5) + AAMC_Raw_Data_for_FY22[[#This Row],[Median]]","v":141919.79999999999},{"$f":"(((AAMC_Raw_Data_for_FY22[[#This Row],[75th]]-AAMC_Raw_Data_for_FY22[[#This Row],[Median]])/25)*10) + AAMC_Raw_Data_for_FY22[[#This Row],[Median]]","v":153257.60000000001},{"$f":"(((AAMC_Raw_Data_for_FY22[[#This Row],[75th]]-AAMC_Raw_Data_for_FY22[[#This Row],[Median]])/25)*15) + AAMC_Raw_Data_for_FY22[[#This Row],[Median]]","v":164595.4},{"$f":"(((AAMC_Raw_Data_for_FY22[[#This Row],[75th]]-AAMC_Raw_Data_for_FY22[[#This Row],[Median]])/25)*20) + AAMC_Raw_Data_for_FY22[[#This Row],[Median]]","v":175933.2},187271,{"$f":"(((AAMC_Raw_Data_for_FY22[[#This Row],[75th]]-AAMC_Raw_Data_for_FY22[[#This Row],[Median]])/25)*30) + AAMC_Raw_Data_for_FY22[[#This Row],[Median]]","v":198608.8},{"$f":"(((AAMC_Raw_Data_for_FY22[[#This Row],[75th]]-AAMC_Raw_Data_for_FY22[[#This Row],[Median]])/25)*35) + AAMC_Raw_Data_for_FY22[[#This Row],[Median]]","v":209946.59999999998},{"$f":"(((AAMC_Raw_Data_for_FY22[[#This Row],[75th]]-AAMC_Raw_Data_for_FY22[[#This Row],[Median]])/25)*40) + AAMC_Raw_Data_for_FY22[[#This Row],[Median]]","v":221284.4}]
[{"$f":"AAMC_Raw_Data_for_FY22[[#This Row],[Source]]&AAMC_Raw_Data_for_FY22[[#This Row],[Type]]&AAMC_Raw_Data_for_FY22[[#This Row],[School Subset]]&AAMC_Raw_Data_for_FY22[[#This Row],[Rank]]&AAMC_Raw_Data_for_FY22[[#This Row],[Degree]]&AAMC_Raw_Data_for_FY22[[#This Row],[Department / Specialty]]&\"L\"","v":"AAMCAcademicPrivateProfessorPhDFamily Medicine TotalL"},"Family Medicine Total",2,"AAMC","Academic","Private","Professor","PhD","2021-2022",161579,{"$f":"(((AAMC_Raw_Data_for_FY22[[#This Row],[Median]]-AAMC_Raw_Data_for_FY22[[#This Row],[25th]])/25)*5) + AAMC_Raw_Data_for_FY22[[#This Row],[25th]]","v":164080.4},{"$f":"(((AAMC_Raw_Data_for_FY22[[#This Row],[Median]]-AAMC_Raw_Data_for_FY22[[#This Row],[25th]])/25)*10) + AAMC_Raw_Data_for_FY22[[#This Row],[25th]]","v":166581.79999999999},{"$f":"(((AAMC_Raw_Data_for_FY22[[#This Row],[Median]]-AAMC_Raw_Data_for_FY22[[#This Row],[25th]])/25)*15) + AAMC_Raw_Data_for_FY22[[#This Row],[25th]]","v":169083.2},{"$f":"(((AAMC_Raw_Data_for_FY22[[#This Row],[Median]]-AAMC_Raw_Data_for_FY22[[#This Row],[25th]])/25)*20) + AAMC_Raw_Data_for_FY22[[#This Row],[25th]]","v":171584.6},174086,{"$f":"(((AAMC_Raw_Data_for_FY22[[#This Row],[75th]]-AAMC_Raw_Data_for_FY22[[#This Row],[Median]])/25)*5) + AAMC_Raw_Data_for_FY22[[#This Row],[Median]]","v":181987},{"$f":"(((AAMC_Raw_Data_for_FY22[[#This Row],[75th]]-AAMC_Raw_Data_for_FY22[[#This Row],[Median]])/25)*10) + AAMC_Raw_Data_for_FY22[[#This Row],[Median]]","v":189888},{"$f":"(((AAMC_Raw_Data_for_FY22[[#This Row],[75th]]-AAMC_Raw_Data_for_FY22[[#This Row],[Median]])/25)*15) + AAMC_Raw_Data_for_FY22[[#This Row],[Median]]","v":197789},{"$f":"(((AAMC_Raw_Data_for_FY22[[#This Row],[75th]]-AAMC_Raw_Data_for_FY22[[#This Row],[Median]])/25)*20) + AAMC_Raw_Data_for_FY22[[#This Row],[Median]]","v":205690},213591,{"$f":"(((AAMC_Raw_Data_for_FY22[[#This Row],[75th]]-AAMC_Raw_Data_for_FY22[[#This Row],[Median]])/25)*30) + AAMC_Raw_Data_for_FY22[[#This Row],[Median]]","v":221492},{"$f":"(((AAMC_Raw_Data_for_FY22[[#This Row],[75th]]-AAMC_Raw_Data_for_FY22[[#This Row],[Median]])/25)*35) + AAMC_Raw_Data_for_FY22[[#This Row],[Median]]","v":229393},{"$f":"(((AAMC_Raw_Data_for_FY22[[#This Row],[75th]]-AAMC_Raw_Data_for_FY22[[#This Row],[Median]])/25)*40) + AAMC_Raw_Data_for_FY22[[#This Row],[Median]]","v":237294}]
[{"$f":"AAMC_Raw_Data_for_FY22[[#This Row],[Source]]&AAMC_Raw_Data_for_FY22[[#This Row],[Type]]&AAMC_Raw_Data_for_FY22[[#This Row],[School Subset]]&AAMC_Raw_Data_for_FY22[[#This Row],[Rank]]&AAMC_Raw_Data_for_FY22[[#This Row],[Degree]]&AAMC_Raw_Data_for_FY22[[#This Row],[Department / Specialty]]&\"L\"","v":"AAMCAcademicPrivateInstructorPhDFamily Medicine: GeneralL"},"Family Medicine: General",5,"AAMC","Academic","Private","Instructor","PhD","2021-2022",null,{"$f":"(((AAMC_Raw_Data_for_FY22[[#This Row],[Median]]-AAMC_Raw_Data_for_FY22[[#This Row],[25th]])/25)*5) + AAMC_Raw_Data_for_FY22[[#This Row],[25th]]","v":0},{"$f":"(((AAMC_Raw_Data_for_FY22[[#This Row],[Median]]-AAMC_Raw_Data_for_FY22[[#This Row],[25th]])/25)*10) + AAMC_Raw_Data_for_FY22[[#This Row],[25th]]","v":0},{"$f":"(((AAMC_Raw_Data_for_FY22[[#This Row],[Median]]-AAMC_Raw_Data_for_FY22[[#This Row],[25th]])/25)*15) + AAMC_Raw_Data_for_FY22[[#This Row],[25th]]","v":0},{"$f":"(((AAMC_Raw_Data_for_FY22[[#This Row],[Median]]-AAMC_Raw_Data_for_FY22[[#This Row],[25th]])/25)*20) + AAMC_Raw_Data_for_FY22[[#This Row],[25th]]","v":0},null,{"$f":"(((AAMC_Raw_Data_for_FY22[[#This Row],[75th]]-AAMC_Raw_Data_for_FY22[[#This Row],[Median]])/25)*5) + AAMC_Raw_Data_for_FY22[[#This Row],[Median]]","v":0},{"$f":"(((AAMC_Raw_Data_for_FY22[[#This Row],[75th]]-AAMC_Raw_Data_for_FY22[[#This Row],[Median]])/25)*10) + AAMC_Raw_Data_for_FY22[[#This Row],[Median]]","v":0},{"$f":"(((AAMC_Raw_Data_for_FY22[[#This Row],[75th]]-AAMC_Raw_Data_for_FY22[[#This Row],[Median]])/25)*15) + AAMC_Raw_Data_for_FY22[[#This Row],[Median]]","v":0},{"$f":"(((AAMC_Raw_Data_for_FY22[[#This Row],[75th]]-AAMC_Raw_Data_for_FY22[[#This Row],[Median]])/25)*20) + AAMC_Raw_Data_for_FY22[[#This Row],[Median]]","v":0},null,{"$f":"(((AAMC_Raw_Data_for_FY22[[#This Row],[75th]]-AAMC_Raw_Data_for_FY22[[#This Row],[Median]])/25)*30) + AAMC_Raw_Data_for_FY22[[#This Row],[Median]]","v":0},{"$f":"(((AAMC_Raw_Data_for_FY22[[#This Row],[75th]]-AAMC_Raw_Data_for_FY22[[#This Row],[Median]])/25)*35) + AAMC_Raw_Data_for_FY22[[#This Row],[Median]]","v":0},{"$f":"(((AAMC_Raw_Data_for_FY22[[#This Row],[75th]]-AAMC_Raw_Data_for_FY22[[#This Row],[Median]])/25)*40) + AAMC_Raw_Data_for_FY22[[#This Row],[Median]]","v":0}]
[{"$f":"AAMC_Raw_Data_for_FY22[[#This Row],[Source]]&AAMC_Raw_Data_for_FY22[[#This Row],[Type]]&AAMC_Raw_Data_for_FY22[[#This Row],[School Subset]]&AAMC_Raw_Data_for_FY22[[#This Row],[Rank]]&AAMC_Raw_Data_for_FY22[[#This Row],[Degree]]&AAMC_Raw_Data_for_FY22[[#This Row],[Department / Specialty]]&\"L\"","v":"AAMCAcademicPrivateAssistantPhDFamily Medicine: GeneralL"},"Family Medicine: General",4,"AAMC","Academic","Private","Assistant","PhD","2021-2022",95305,{"$f":"(((AAMC_Raw_Data_for_FY22[[#This Row],[Median]]-AAMC_Raw_Data_for_FY22[[#This Row],[25th]])/25)*5) + AAMC_Raw_Data_for_FY22[[#This Row],[25th]]","v":98080},{"$f":"(((AAMC_Raw_Data_for_FY22[[#This Row],[Median]]-AAMC_Raw_Data_for_FY22[[#This Row],[25th]])/25)*10) + AAMC_Raw_Data_for_FY22[[#This Row],[25th]]","v":100855},{"$f":"(((AAMC_Raw_Data_for_FY22[[#This Row],[Median]]-AAMC_Raw_Data_for_FY22[[#This Row],[25th]])/25)*15) + AAMC_Raw_Data_for_FY22[[#This Row],[25th]]","v":103630},{"$f":"(((AAMC_Raw_Data_for_FY22[[#This Row],[Median]]-AAMC_Raw_Data_for_FY22[[#This Row],[25th]])/25)*20) + AAMC_Raw_Data_for_FY22[[#This Row],[25th]]","v":106405},109180,{"$f":"(((AAMC_Raw_Data_for_FY22[[#This Row],[75th]]-AAMC_Raw_Data_for_FY22[[#This Row],[Median]])/25)*5) + AAMC_Raw_Data_for_FY22[[#This Row],[Median]]","v":113104},{"$f":"(((AAMC_Raw_Data_for_FY22[[#This Row],[75th]]-AAMC_Raw_Data_for_FY22[[#This Row],[Median]])/25)*10) + AAMC_Raw_Data_for_FY22[[#This Row],[Median]]","v":117028},{"$f":"(((AAMC_Raw_Data_for_FY22[[#This Row],[75th]]-AAMC_Raw_Data_for_FY22[[#This Row],[Median]])/25)*15) + AAMC_Raw_Data_for_FY22[[#This Row],[Median]]","v":120952},{"$f":"(((AAMC_Raw_Data_for_FY22[[#This Row],[75th]]-AAMC_Raw_Data_for_FY22[[#This Row],[Median]])/25)*20) + AAMC_Raw_Data_for_FY22[[#This Row],[Median]]","v":124876},128800,{"$f":"(((AAMC_Raw_Data_for_FY22[[#This Row],[75th]]-AAMC_Raw_Data_for_FY22[[#This Row],[Median]])/25)*30) + AAMC_Raw_Data_for_FY22[[#This Row],[Median]]","v":132724},{"$f":"(((AAMC_Raw_Data_for_FY22[[#This Row],[75th]]-AAMC_Raw_Data_for_FY22[[#This Row],[Median]])/25)*35) + AAMC_Raw_Data_for_FY22[[#This Row],[Median]]","v":136648},{"$f":"(((AAMC_Raw_Data_for_FY22[[#This Row],[75th]]-AAMC_Raw_Data_for_FY22[[#This Row],[Median]])/25)*40) + AAMC_Raw_Data_for_FY22[[#This Row],[Median]]","v":140572}]
[{"$f":"AAMC_Raw_Data_for_FY22[[#This Row],[Source]]&AAMC_Raw_Data_for_FY22[[#This Row],[Type]]&AAMC_Raw_Data_for_FY22[[#This Row],[School Subset]]&AAMC_Raw_Data_for_FY22[[#This Row],[Rank]]&AAMC_Raw_Data_for_FY22[[#This Row],[Degree]]&AAMC_Raw_Data_for_FY22[[#This Row],[Department / Specialty]]&\"L\"","v":"AAMCAcademicPrivateAssociatePhDFamily Medicine: GeneralL"},"Family Medicine: General",3,"AAMC","Academic","Private","Associate","PhD","2021-2022",118404,{"$f":"(((AAMC_Raw_Data_for_FY22[[#This Row],[Median]]-AAMC_Raw_Data_for_FY22[[#This Row],[25th]])/25)*5) + AAMC_Raw_Data_for_FY22[[#This Row],[25th]]","v":123181.4},{"$f":"(((AAMC_Raw_Data_for_FY22[[#This Row],[Median]]-AAMC_Raw_Data_for_FY22[[#This Row],[25th]])/25)*10) + AAMC_Raw_Data_for_FY22[[#This Row],[25th]]","v":127958.8},{"$f":"(((AAMC_Raw_Data_for_FY22[[#This Row],[Median]]-AAMC_Raw_Data_for_FY22[[#This Row],[25th]])/25)*15) + AAMC_Raw_Data_for_FY22[[#This Row],[25th]]","v":132736.20000000001},{"$f":"(((AAMC_Raw_Data_for_FY22[[#This Row],[Median]]-AAMC_Raw_Data_for_FY22[[#This Row],[25th]])/25)*20) + AAMC_Raw_Data_for_FY22[[#This Row],[25th]]","v":137513.60000000001},142291,{"$f":"(((AAMC_Raw_Data_for_FY22[[#This Row],[75th]]-AAMC_Raw_Data_for_FY22[[#This Row],[Median]])/25)*5) + AAMC_Raw_Data_for_FY22[[#This Row],[Median]]","v":151786.4},{"$f":"(((AAMC_Raw_Data_for_FY22[[#This Row],[75th]]-AAMC_Raw_Data_for_FY22[[#This Row],[Median]])/25)*10) + AAMC_Raw_Data_for_FY22[[#This Row],[Median]]","v":161281.79999999999},{"$f":"(((AAMC_Raw_Data_for_FY22[[#This Row],[75th]]-AAMC_Raw_Data_for_FY22[[#This Row],[Median]])/25)*15) + AAMC_Raw_Data_for_FY22[[#This Row],[Median]]","v":170777.2},{"$f":"(((AAMC_Raw_Data_for_FY22[[#This Row],[75th]]-AAMC_Raw_Data_for_FY22[[#This Row],[Median]])/25)*20) + AAMC_Raw_Data_for_FY22[[#This Row],[Median]]","v":180272.6},189768,{"$f":"(((AAMC_Raw_Data_for_FY22[[#This Row],[75th]]-AAMC_Raw_Data_for_FY22[[#This Row],[Median]])/25)*30) + AAMC_Raw_Data_for_FY22[[#This Row],[Median]]","v":199263.4},{"$f":"(((AAMC_Raw_Data_for_FY22[[#This Row],[75th]]-AAMC_Raw_Data_for_FY22[[#This Row],[Median]])/25)*35) + AAMC_Raw_Data_for_FY22[[#This Row],[Median]]","v":208758.8},{"$f":"(((AAMC_Raw_Data_for_FY22[[#This Row],[75th]]-AAMC_Raw_Data_for_FY22[[#This Row],[Median]])/25)*40) + AAMC_Raw_Data_for_FY22[[#This Row],[Median]]","v":218254.2}]
[{"$f":"AAMC_Raw_Data_for_FY22[[#This Row],[Source]]&AAMC_Raw_Data_for_FY22[[#This Row],[Type]]&AAMC_Raw_Data_for_FY22[[#This Row],[School Subset]]&AAMC_Raw_Data_for_FY22[[#This Row],[Rank]]&AAMC_Raw_Data_for_FY22[[#This Row],[Degree]]&AAMC_Raw_Data_for_FY22[[#This Row],[Department / Specialty]]&\"L\"","v":"AAMCAcademicPrivateProfessorPhDFamily Medicine: GeneralL"},"Family Medicine: General",2,"AAMC","Academic","Private","Professor","PhD","2021-2022",160480,{"$f":"(((AAMC_Raw_Data_for_FY22[[#This Row],[Median]]-AAMC_Raw_Data_for_FY22[[#This Row],[25th]])/25)*5) + AAMC_Raw_Data_for_FY22[[#This Row],[25th]]","v":166101.20000000001},{"$f":"(((AAMC_Raw_Data_for_FY22[[#This Row],[Median]]-AAMC_Raw_Data_for_FY22[[#This Row],[25th]])/25)*10) + AAMC_Raw_Data_for_FY22[[#This Row],[25th]]","v":171722.4},{"$f":"(((AAMC_Raw_Data_for_FY22[[#This Row],[Median]]-AAMC_Raw_Data_for_FY22[[#This Row],[25th]])/25)*15) + AAMC_Raw_Data_for_FY22[[#This Row],[25th]]","v":177343.6},{"$f":"(((AAMC_Raw_Data_for_FY22[[#This Row],[Median]]-AAMC_Raw_Data_for_FY22[[#This Row],[25th]])/25)*20) + AAMC_Raw_Data_for_FY22[[#This Row],[25th]]","v":182964.8},188586,{"$f":"(((AAMC_Raw_Data_for_FY22[[#This Row],[75th]]-AAMC_Raw_Data_for_FY22[[#This Row],[Median]])/25)*5) + AAMC_Raw_Data_for_FY22[[#This Row],[Median]]","v":193587},{"$f":"(((AAMC_Raw_Data_for_FY22[[#This Row],[75th]]-AAMC_Raw_Data_for_FY22[[#This Row],[Median]])/25)*10) + AAMC_Raw_Data_for_FY22[[#This Row],[Median]]","v":198588},{"$f":"(((AAMC_Raw_Data_for_FY22[[#This Row],[75th]]-AAMC_Raw_Data_for_FY22[[#This Row],[Median]])/25)*15) + AAMC_Raw_Data_for_FY22[[#This Row],[Median]]","v":203589},{"$f":"(((AAMC_Raw_Data_for_FY22[[#This Row],[75th]]-AAMC_Raw_Data_for_FY22[[#This Row],[Median]])/25)*20) + AAMC_Raw_Data_for_FY22[[#This Row],[Median]]","v":208590},213591,{"$f":"(((AAMC_Raw_Data_for_FY22[[#This Row],[75th]]-AAMC_Raw_Data_for_FY22[[#This Row],[Median]])/25)*30) + AAMC_Raw_Data_for_FY22[[#This Row],[Median]]","v":218592},{"$f":"(((AAMC_Raw_Data_for_FY22[[#This Row],[75th]]-AAMC_Raw_Data_for_FY22[[#This Row],[Median]])/25)*35) + AAMC_Raw_Data_for_FY22[[#This Row],[Median]]","v":223593},{"$f":"(((AAMC_Raw_Data_for_FY22[[#This Row],[75th]]-AAMC_Raw_Data_for_FY22[[#This Row],[Median]])/25)*40) + AAMC_Raw_Data_for_FY22[[#This Row],[Median]]","v":228594}]
[{"$f":"AAMC_Raw_Data_for_FY22[[#This Row],[Source]]&AAMC_Raw_Data_for_FY22[[#This Row],[Type]]&AAMC_Raw_Data_for_FY22[[#This Row],[School Subset]]&AAMC_Raw_Data_for_FY22[[#This Row],[Rank]]&AAMC_Raw_Data_for_FY22[[#This Row],[Degree]]&AAMC_Raw_Data_for_FY22[[#This Row],[Department / Specialty]]&\"L\"","v":"AAMCAcademicPrivateProfessorPhDFamily Medicine: Sports MedicineL"},"Family Medicine: Sports Medicine",2,"AAMC","Academic","Private","Professor","PhD","2021-2022",null,{"$f":"(((AAMC_Raw_Data_for_FY22[[#This Row],[Median]]-AAMC_Raw_Data_for_FY22[[#This Row],[25th]])/25)*5) + AAMC_Raw_Data_for_FY22[[#This Row],[25th]]","v":0},{"$f":"(((AAMC_Raw_Data_for_FY22[[#This Row],[Median]]-AAMC_Raw_Data_for_FY22[[#This Row],[25th]])/25)*10) + AAMC_Raw_Data_for_FY22[[#This Row],[25th]]","v":0},{"$f":"(((AAMC_Raw_Data_for_FY22[[#This Row],[Median]]-AAMC_Raw_Data_for_FY22[[#This Row],[25th]])/25)*15) + AAMC_Raw_Data_for_FY22[[#This Row],[25th]]","v":0},{"$f":"(((AAMC_Raw_Data_for_FY22[[#This Row],[Median]]-AAMC_Raw_Data_for_FY22[[#This Row],[25th]])/25)*20) + AAMC_Raw_Data_for_FY22[[#This Row],[25th]]","v":0},null,{"$f":"(((AAMC_Raw_Data_for_FY22[[#This Row],[75th]]-AAMC_Raw_Data_for_FY22[[#This Row],[Median]])/25)*5) + AAMC_Raw_Data_for_FY22[[#This Row],[Median]]","v":0},{"$f":"(((AAMC_Raw_Data_for_FY22[[#This Row],[75th]]-AAMC_Raw_Data_for_FY22[[#This Row],[Median]])/25)*10) + AAMC_Raw_Data_for_FY22[[#This Row],[Median]]","v":0},{"$f":"(((AAMC_Raw_Data_for_FY22[[#This Row],[75th]]-AAMC_Raw_Data_for_FY22[[#This Row],[Median]])/25)*15) + AAMC_Raw_Data_for_FY22[[#This Row],[Median]]","v":0},{"$f":"(((AAMC_Raw_Data_for_FY22[[#This Row],[75th]]-AAMC_Raw_Data_for_FY22[[#This Row],[Median]])/25)*20) + AAMC_Raw_Data_for_FY22[[#This Row],[Median]]","v":0},null,{"$f":"(((AAMC_Raw_Data_for_FY22[[#This Row],[75th]]-AAMC_Raw_Data_for_FY22[[#This Row],[Median]])/25)*30) + AAMC_Raw_Data_for_FY22[[#This Row],[Median]]","v":0},{"$f":"(((AAMC_Raw_Data_for_FY22[[#This Row],[75th]]-AAMC_Raw_Data_for_FY22[[#This Row],[Median]])/25)*35) + AAMC_Raw_Data_for_FY22[[#This Row],[Median]]","v":0},{"$f":"(((AAMC_Raw_Data_for_FY22[[#This Row],[75th]]-AAMC_Raw_Data_for_FY22[[#This Row],[Median]])/25)*40) + AAMC_Raw_Data_for_FY22[[#This Row],[Median]]","v":0}]
[{"$f":"AAMC_Raw_Data_for_FY22[[#This Row],[Source]]&AAMC_Raw_Data_for_FY22[[#This Row],[Type]]&AAMC_Raw_Data_for_FY22[[#This Row],[School Subset]]&AAMC_Raw_Data_for_FY22[[#This Row],[Rank]]&AAMC_Raw_Data_for_FY22[[#This Row],[Degree]]&AAMC_Raw_Data_for_FY22[[#This Row],[Department / Specialty]]&\"L\"","v":"AAMCAcademicPrivateInstructorPhDFamily Medicine: OtherL"},"Family Medicine: Other",5,"AAMC","Academic","Private","Instructor","PhD","2021-2022",null,{"$f":"(((AAMC_Raw_Data_for_FY22[[#This Row],[Median]]-AAMC_Raw_Data_for_FY22[[#This Row],[25th]])/25)*5) + AAMC_Raw_Data_for_FY22[[#This Row],[25th]]","v":0},{"$f":"(((AAMC_Raw_Data_for_FY22[[#This Row],[Median]]-AAMC_Raw_Data_for_FY22[[#This Row],[25th]])/25)*10) + AAMC_Raw_Data_for_FY22[[#This Row],[25th]]","v":0},{"$f":"(((AAMC_Raw_Data_for_FY22[[#This Row],[Median]]-AAMC_Raw_Data_for_FY22[[#This Row],[25th]])/25)*15) + AAMC_Raw_Data_for_FY22[[#This Row],[25th]]","v":0},{"$f":"(((AAMC_Raw_Data_for_FY22[[#This Row],[Median]]-AAMC_Raw_Data_for_FY22[[#This Row],[25th]])/25)*20) + AAMC_Raw_Data_for_FY22[[#This Row],[25th]]","v":0},null,{"$f":"(((AAMC_Raw_Data_for_FY22[[#This Row],[75th]]-AAMC_Raw_Data_for_FY22[[#This Row],[Median]])/25)*5) + AAMC_Raw_Data_for_FY22[[#This Row],[Median]]","v":0},{"$f":"(((AAMC_Raw_Data_for_FY22[[#This Row],[75th]]-AAMC_Raw_Data_for_FY22[[#This Row],[Median]])/25)*10) + AAMC_Raw_Data_for_FY22[[#This Row],[Median]]","v":0},{"$f":"(((AAMC_Raw_Data_for_FY22[[#This Row],[75th]]-AAMC_Raw_Data_for_FY22[[#This Row],[Median]])/25)*15) + AAMC_Raw_Data_for_FY22[[#This Row],[Median]]","v":0},{"$f":"(((AAMC_Raw_Data_for_FY22[[#This Row],[75th]]-AAMC_Raw_Data_for_FY22[[#This Row],[Median]])/25)*20) + AAMC_Raw_Data_for_FY22[[#This Row],[Median]]","v":0},null,{"$f":"(((AAMC_Raw_Data_for_FY22[[#This Row],[75th]]-AAMC_Raw_Data_for_FY22[[#This Row],[Median]])/25)*30) + AAMC_Raw_Data_for_FY22[[#This Row],[Median]]","v":0},{"$f":"(((AAMC_Raw_Data_for_FY22[[#This Row],[75th]]-AAMC_Raw_Data_for_FY22[[#This Row],[Median]])/25)*35) + AAMC_Raw_Data_for_FY22[[#This Row],[Median]]","v":0},{"$f":"(((AAMC_Raw_Data_for_FY22[[#This Row],[75th]]-AAMC_Raw_Data_for_FY22[[#This Row],[Median]])/25)*40) + AAMC_Raw_Data_for_FY22[[#This Row],[Median]]","v":0}]
[{"$f":"AAMC_Raw_Data_for_FY22[[#This Row],[Source]]&AAMC_Raw_Data_for_FY22[[#This Row],[Type]]&AAMC_Raw_Data_for_FY22[[#This Row],[School Subset]]&AAMC_Raw_Data_for_FY22[[#This Row],[Rank]]&AAMC_Raw_Data_for_FY22[[#This Row],[Degree]]&AAMC_Raw_Data_for_FY22[[#This Row],[Department / Specialty]]&\"L\"","v":"AAMCAcademicPrivateAssistantPhDFamily Medicine: OtherL"},"Family Medicine: Other",4,"AAMC","Academic","Private","Assistant","PhD","2021-2022",120000,{"$f":"(((AAMC_Raw_Data_for_FY22[[#This Row],[Median]]-AAMC_Raw_Data_for_FY22[[#This Row],[25th]])/25)*5) + AAMC_Raw_Data_for_FY22[[#This Row],[25th]]","v":120755.4},{"$f":"(((AAMC_Raw_Data_for_FY22[[#This Row],[Median]]-AAMC_Raw_Data_for_FY22[[#This Row],[25th]])/25)*10) + AAMC_Raw_Data_for_FY22[[#This Row],[25th]]","v":121510.8},{"$f":"(((AAMC_Raw_Data_for_FY22[[#This Row],[Median]]-AAMC_Raw_Data_for_FY22[[#This Row],[25th]])/25)*15) + AAMC_Raw_Data_for_FY22[[#This Row],[25th]]","v":122266.2},{"$f":"(((AAMC_Raw_Data_for_FY22[[#This Row],[Median]]-AAMC_Raw_Data_for_FY22[[#This Row],[25th]])/25)*20) + AAMC_Raw_Data_for_FY22[[#This Row],[25th]]","v":123021.6},123777,{"$f":"(((AAMC_Raw_Data_for_FY22[[#This Row],[75th]]-AAMC_Raw_Data_for_FY22[[#This Row],[Median]])/25)*5) + AAMC_Raw_Data_for_FY22[[#This Row],[Median]]","v":125976.6},{"$f":"(((AAMC_Raw_Data_for_FY22[[#This Row],[75th]]-AAMC_Raw_Data_for_FY22[[#This Row],[Median]])/25)*10) + AAMC_Raw_Data_for_FY22[[#This Row],[Median]]","v":128176.2},{"$f":"(((AAMC_Raw_Data_for_FY22[[#This Row],[75th]]-AAMC_Raw_Data_for_FY22[[#This Row],[Median]])/25)*15) + AAMC_Raw_Data_for_FY22[[#This Row],[Median]]","v":130375.8},{"$f":"(((AAMC_Raw_Data_for_FY22[[#This Row],[75th]]-AAMC_Raw_Data_for_FY22[[#This Row],[Median]])/25)*20) + AAMC_Raw_Data_for_FY22[[#This Row],[Median]]","v":132575.4},134775,{"$f":"(((AAMC_Raw_Data_for_FY22[[#This Row],[75th]]-AAMC_Raw_Data_for_FY22[[#This Row],[Median]])/25)*30) + AAMC_Raw_Data_for_FY22[[#This Row],[Median]]","v":136974.6},{"$f":"(((AAMC_Raw_Data_for_FY22[[#This Row],[75th]]-AAMC_Raw_Data_for_FY22[[#This Row],[Median]])/25)*35) + AAMC_Raw_Data_for_FY22[[#This Row],[Median]]","v":139174.20000000001},{"$f":"(((AAMC_Raw_Data_for_FY22[[#This Row],[75th]]-AAMC_Raw_Data_for_FY22[[#This Row],[Median]])/25)*40) + AAMC_Raw_Data_for_FY22[[#This Row],[Median]]","v":141373.79999999999}]
[{"$f":"AAMC_Raw_Data_for_FY22[[#This Row],[Source]]&AAMC_Raw_Data_for_FY22[[#This Row],[Type]]&AAMC_Raw_Data_for_FY22[[#This Row],[School Subset]]&AAMC_Raw_Data_for_FY22[[#This Row],[Rank]]&AAMC_Raw_Data_for_FY22[[#This Row],[Degree]]&AAMC_Raw_Data_for_FY22[[#This Row],[Department / Specialty]]&\"L\"","v":"AAMCAcademicPrivateAssociatePhDFamily Medicine: OtherL"},"Family Medicine: Other",3,"AAMC","Academic","Private","Associate","PhD","2021-2022",null,{"$f":"(((AAMC_Raw_Data_for_FY22[[#This Row],[Median]]-AAMC_Raw_Data_for_FY22[[#This Row],[25th]])/25)*5) + AAMC_Raw_Data_for_FY22[[#This Row],[25th]]","v":0},{"$f":"(((AAMC_Raw_Data_for_FY22[[#This Row],[Median]]-AAMC_Raw_Data_for_FY22[[#This Row],[25th]])/25)*10) + AAMC_Raw_Data_for_FY22[[#This Row],[25th]]","v":0},{"$f":"(((AAMC_Raw_Data_for_FY22[[#This Row],[Median]]-AAMC_Raw_Data_for_FY22[[#This Row],[25th]])/25)*15) + AAMC_Raw_Data_for_FY22[[#This Row],[25th]]","v":0},{"$f":"(((AAMC_Raw_Data_for_FY22[[#This Row],[Median]]-AAMC_Raw_Data_for_FY22[[#This Row],[25th]])/25)*20) + AAMC_Raw_Data_for_FY22[[#This Row],[25th]]","v":0},null,{"$f":"(((AAMC_Raw_Data_for_FY22[[#This Row],[75th]]-AAMC_Raw_Data_for_FY22[[#This Row],[Median]])/25)*5) + AAMC_Raw_Data_for_FY22[[#This Row],[Median]]","v":0},{"$f":"(((AAMC_Raw_Data_for_FY22[[#This Row],[75th]]-AAMC_Raw_Data_for_FY22[[#This Row],[Median]])/25)*10) + AAMC_Raw_Data_for_FY22[[#This Row],[Median]]","v":0},{"$f":"(((AAMC_Raw_Data_for_FY22[[#This Row],[75th]]-AAMC_Raw_Data_for_FY22[[#This Row],[Median]])/25)*15) + AAMC_Raw_Data_for_FY22[[#This Row],[Median]]","v":0},{"$f":"(((AAMC_Raw_Data_for_FY22[[#This Row],[75th]]-AAMC_Raw_Data_for_FY22[[#This Row],[Median]])/25)*20) + AAMC_Raw_Data_for_FY22[[#This Row],[Median]]","v":0},null,{"$f":"(((AAMC_Raw_Data_for_FY22[[#This Row],[75th]]-AAMC_Raw_Data_for_FY22[[#This Row],[Median]])/25)*30) + AAMC_Raw_Data_for_FY22[[#This Row],[Median]]","v":0},{"$f":"(((AAMC_Raw_Data_for_FY22[[#This Row],[75th]]-AAMC_Raw_Data_for_FY22[[#This Row],[Median]])/25)*35) + AAMC_Raw_Data_for_FY22[[#This Row],[Median]]","v":0},{"$f":"(((AAMC_Raw_Data_for_FY22[[#This Row],[75th]]-AAMC_Raw_Data_for_FY22[[#This Row],[Median]])/25)*40) + AAMC_Raw_Data_for_FY22[[#This Row],[Median]]","v":0}]
[{"$f":"AAMC_Raw_Data_for_FY22[[#This Row],[Source]]&AAMC_Raw_Data_for_FY22[[#This Row],[Type]]&AAMC_Raw_Data_for_FY22[[#This Row],[School Subset]]&AAMC_Raw_Data_for_FY22[[#This Row],[Rank]]&AAMC_Raw_Data_for_FY22[[#This Row],[Degree]]&AAMC_Raw_Data_for_FY22[[#This Row],[Department / Specialty]]&\"L\"","v":"AAMCAcademicPrivateProfessorPhDFamily Medicine: OtherL"},"Family Medicine: Other",2,"AAMC","Academic","Private","Professor","PhD","2021-2022",null,{"$f":"(((AAMC_Raw_Data_for_FY22[[#This Row],[Median]]-AAMC_Raw_Data_for_FY22[[#This Row],[25th]])/25)*5) + AAMC_Raw_Data_for_FY22[[#This Row],[25th]]","v":0},{"$f":"(((AAMC_Raw_Data_for_FY22[[#This Row],[Median]]-AAMC_Raw_Data_for_FY22[[#This Row],[25th]])/25)*10) + AAMC_Raw_Data_for_FY22[[#This Row],[25th]]","v":0},{"$f":"(((AAMC_Raw_Data_for_FY22[[#This Row],[Median]]-AAMC_Raw_Data_for_FY22[[#This Row],[25th]])/25)*15) + AAMC_Raw_Data_for_FY22[[#This Row],[25th]]","v":0},{"$f":"(((AAMC_Raw_Data_for_FY22[[#This Row],[Median]]-AAMC_Raw_Data_for_FY22[[#This Row],[25th]])/25)*20) + AAMC_Raw_Data_for_FY22[[#This Row],[25th]]","v":0},null,{"$f":"(((AAMC_Raw_Data_for_FY22[[#This Row],[75th]]-AAMC_Raw_Data_for_FY22[[#This Row],[Median]])/25)*5) + AAMC_Raw_Data_for_FY22[[#This Row],[Median]]","v":0},{"$f":"(((AAMC_Raw_Data_for_FY22[[#This Row],[75th]]-AAMC_Raw_Data_for_FY22[[#This Row],[Median]])/25)*10) + AAMC_Raw_Data_for_FY22[[#This Row],[Median]]","v":0},{"$f":"(((AAMC_Raw_Data_for_FY22[[#This Row],[75th]]-AAMC_Raw_Data_for_FY22[[#This Row],[Median]])/25)*15) + AAMC_Raw_Data_for_FY22[[#This Row],[Median]]","v":0},{"$f":"(((AAMC_Raw_Data_for_FY22[[#This Row],[75th]]-AAMC_Raw_Data_for_FY22[[#This Row],[Median]])/25)*20) + AAMC_Raw_Data_for_FY22[[#This Row],[Median]]","v":0},null,{"$f":"(((AAMC_Raw_Data_for_FY22[[#This Row],[75th]]-AAMC_Raw_Data_for_FY22[[#This Row],[Median]])/25)*30) + AAMC_Raw_Data_for_FY22[[#This Row],[Median]]","v":0},{"$f":"(((AAMC_Raw_Data_for_FY22[[#This Row],[75th]]-AAMC_Raw_Data_for_FY22[[#This Row],[Median]])/25)*35) + AAMC_Raw_Data_for_FY22[[#This Row],[Median]]","v":0},{"$f":"(((AAMC_Raw_Data_for_FY22[[#This Row],[75th]]-AAMC_Raw_Data_for_FY22[[#This Row],[Median]])/25)*40) + AAMC_Raw_Data_for_FY22[[#This Row],[Median]]","v":0}]
[{"$f":"AAMC_Raw_Data_for_FY22[[#This Row],[Source]]&AAMC_Raw_Data_for_FY22[[#This Row],[Type]]&AAMC_Raw_Data_for_FY22[[#This Row],[School Subset]]&AAMC_Raw_Data_for_FY22[[#This Row],[Rank]]&AAMC_Raw_Data_for_FY22[[#This Row],[Degree]]&AAMC_Raw_Data_for_FY22[[#This Row],[Department / Specialty]]&\"L\"","v":"AAMCAcademicPrivateInstructorPhDMedicine TotalL"},"Medicine Total",5,"AAMC","Academic","Private","Instructor","PhD","2021-2022",72899,{"$f":"(((AAMC_Raw_Data_for_FY22[[#This Row],[Median]]-AAMC_Raw_Data_for_FY22[[#This Row],[25th]])/25)*5) + AAMC_Raw_Data_for_FY22[[#This Row],[25th]]","v":76339.199999999997},{"$f":"(((AAMC_Raw_Data_for_FY22[[#This Row],[Median]]-AAMC_Raw_Data_for_FY22[[#This Row],[25th]])/25)*10) + AAMC_Raw_Data_for_FY22[[#This Row],[25th]]","v":79779.399999999994},{"$f":"(((AAMC_Raw_Data_for_FY22[[#This Row],[Median]]-AAMC_Raw_Data_for_FY22[[#This Row],[25th]])/25)*15) + AAMC_Raw_Data_for_FY22[[#This Row],[25th]]","v":83219.600000000006},{"$f":"(((AAMC_Raw_Data_for_FY22[[#This Row],[Median]]-AAMC_Raw_Data_for_FY22[[#This Row],[25th]])/25)*20) + AAMC_Raw_Data_for_FY22[[#This Row],[25th]]","v":86659.8},90100,{"$f":"(((AAMC_Raw_Data_for_FY22[[#This Row],[75th]]-AAMC_Raw_Data_for_FY22[[#This Row],[Median]])/25)*5) + AAMC_Raw_Data_for_FY22[[#This Row],[Median]]","v":92905.4},{"$f":"(((AAMC_Raw_Data_for_FY22[[#This Row],[75th]]-AAMC_Raw_Data_for_FY22[[#This Row],[Median]])/25)*10) + AAMC_Raw_Data_for_FY22[[#This Row],[Median]]","v":95710.8},{"$f":"(((AAMC_Raw_Data_for_FY22[[#This Row],[75th]]-AAMC_Raw_Data_for_FY22[[#This Row],[Median]])/25)*15) + AAMC_Raw_Data_for_FY22[[#This Row],[Median]]","v":98516.2},{"$f":"(((AAMC_Raw_Data_for_FY22[[#This Row],[75th]]-AAMC_Raw_Data_for_FY22[[#This Row],[Median]])/25)*20) + AAMC_Raw_Data_for_FY22[[#This Row],[Median]]","v":101321.60000000001},104127,{"$f":"(((AAMC_Raw_Data_for_FY22[[#This Row],[75th]]-AAMC_Raw_Data_for_FY22[[#This Row],[Median]])/25)*30) + AAMC_Raw_Data_for_FY22[[#This Row],[Median]]","v":106932.4},{"$f":"(((AAMC_Raw_Data_for_FY22[[#This Row],[75th]]-AAMC_Raw_Data_for_FY22[[#This Row],[Median]])/25)*35) + AAMC_Raw_Data_for_FY22[[#This Row],[Median]]","v":109737.8},{"$f":"(((AAMC_Raw_Data_for_FY22[[#This Row],[75th]]-AAMC_Raw_Data_for_FY22[[#This Row],[Median]])/25)*40) + AAMC_Raw_Data_for_FY22[[#This Row],[Median]]","v":112543.2}]
[{"$f":"AAMC_Raw_Data_for_FY22[[#This Row],[Source]]&AAMC_Raw_Data_for_FY22[[#This Row],[Type]]&AAMC_Raw_Data_for_FY22[[#This Row],[School Subset]]&AAMC_Raw_Data_for_FY22[[#This Row],[Rank]]&AAMC_Raw_Data_for_FY22[[#This Row],[Degree]]&AAMC_Raw_Data_for_FY22[[#This Row],[Department / Specialty]]&\"L\"","v":"AAMCAcademicPrivateAssistantPhDMedicine TotalL"},"Medicine Total",4,"AAMC","Academic","Private","Assistant","PhD","2021-2022",98000,{"$f":"(((AAMC_Raw_Data_for_FY22[[#This Row],[Median]]-AAMC_Raw_Data_for_FY22[[#This Row],[25th]])/25)*5) + AAMC_Raw_Data_for_FY22[[#This Row],[25th]]","v":102640},{"$f":"(((AAMC_Raw_Data_for_FY22[[#This Row],[Median]]-AAMC_Raw_Data_for_FY22[[#This Row],[25th]])/25)*10) + AAMC_Raw_Data_for_FY22[[#This Row],[25th]]","v":107280},{"$f":"(((AAMC_Raw_Data_for_FY22[[#This Row],[Median]]-AAMC_Raw_Data_for_FY22[[#This Row],[25th]])/25)*15) + AAMC_Raw_Data_for_FY22[[#This Row],[25th]]","v":111920},{"$f":"(((AAMC_Raw_Data_for_FY22[[#This Row],[Median]]-AAMC_Raw_Data_for_FY22[[#This Row],[25th]])/25)*20) + AAMC_Raw_Data_for_FY22[[#This Row],[25th]]","v":116560},121200,{"$f":"(((AAMC_Raw_Data_for_FY22[[#This Row],[75th]]-AAMC_Raw_Data_for_FY22[[#This Row],[Median]])/25)*5) + AAMC_Raw_Data_for_FY22[[#This Row],[Median]]","v":125034.8},{"$f":"(((AAMC_Raw_Data_for_FY22[[#This Row],[75th]]-AAMC_Raw_Data_for_FY22[[#This Row],[Median]])/25)*10) + AAMC_Raw_Data_for_FY22[[#This Row],[Median]]","v":128869.6},{"$f":"(((AAMC_Raw_Data_for_FY22[[#This Row],[75th]]-AAMC_Raw_Data_for_FY22[[#This Row],[Median]])/25)*15) + AAMC_Raw_Data_for_FY22[[#This Row],[Median]]","v":132704.4},{"$f":"(((AAMC_Raw_Data_for_FY22[[#This Row],[75th]]-AAMC_Raw_Data_for_FY22[[#This Row],[Median]])/25)*20) + AAMC_Raw_Data_for_FY22[[#This Row],[Median]]","v":136539.20000000001},140374,{"$f":"(((AAMC_Raw_Data_for_FY22[[#This Row],[75th]]-AAMC_Raw_Data_for_FY22[[#This Row],[Median]])/25)*30) + AAMC_Raw_Data_for_FY22[[#This Row],[Median]]","v":144208.79999999999},{"$f":"(((AAMC_Raw_Data_for_FY22[[#This Row],[75th]]-AAMC_Raw_Data_for_FY22[[#This Row],[Median]])/25)*35) + AAMC_Raw_Data_for_FY22[[#This Row],[Median]]","v":148043.6},{"$f":"(((AAMC_Raw_Data_for_FY22[[#This Row],[75th]]-AAMC_Raw_Data_for_FY22[[#This Row],[Median]])/25)*40) + AAMC_Raw_Data_for_FY22[[#This Row],[Median]]","v":151878.39999999999}]
[{"$f":"AAMC_Raw_Data_for_FY22[[#This Row],[Source]]&AAMC_Raw_Data_for_FY22[[#This Row],[Type]]&AAMC_Raw_Data_for_FY22[[#This Row],[School Subset]]&AAMC_Raw_Data_for_FY22[[#This Row],[Rank]]&AAMC_Raw_Data_for_FY22[[#This Row],[Degree]]&AAMC_Raw_Data_for_FY22[[#This Row],[Department / Specialty]]&\"L\"","v":"AAMCAcademicPrivateAssociatePhDMedicine TotalL"},"Medicine Total",3,"AAMC","Academic","Private","Associate","PhD","2021-2022",128285,{"$f":"(((AAMC_Raw_Data_for_FY22[[#This Row],[Median]]-AAMC_Raw_Data_for_FY22[[#This Row],[25th]])/25)*5) + AAMC_Raw_Data_for_FY22[[#This Row],[25th]]","v":132968},{"$f":"(((AAMC_Raw_Data_for_FY22[[#This Row],[Median]]-AAMC_Raw_Data_for_FY22[[#This Row],[25th]])/25)*10) + AAMC_Raw_Data_for_FY22[[#This Row],[25th]]","v":137651},{"$f":"(((AAMC_Raw_Data_for_FY22[[#This Row],[Median]]-AAMC_Raw_Data_for_FY22[[#This Row],[25th]])/25)*15) + AAMC_Raw_Data_for_FY22[[#This Row],[25th]]","v":142334},{"$f":"(((AAMC_Raw_Data_for_FY22[[#This Row],[Median]]-AAMC_Raw_Data_for_FY22[[#This Row],[25th]])/25)*20) + AAMC_Raw_Data_for_FY22[[#This Row],[25th]]","v":147017},151700,{"$f":"(((AAMC_Raw_Data_for_FY22[[#This Row],[75th]]-AAMC_Raw_Data_for_FY22[[#This Row],[Median]])/25)*5) + AAMC_Raw_Data_for_FY22[[#This Row],[Median]]","v":158499.4},{"$f":"(((AAMC_Raw_Data_for_FY22[[#This Row],[75th]]-AAMC_Raw_Data_for_FY22[[#This Row],[Median]])/25)*10) + AAMC_Raw_Data_for_FY22[[#This Row],[Median]]","v":165298.79999999999},{"$f":"(((AAMC_Raw_Data_for_FY22[[#This Row],[75th]]-AAMC_Raw_Data_for_FY22[[#This Row],[Median]])/25)*15) + AAMC_Raw_Data_for_FY22[[#This Row],[Median]]","v":172098.2},{"$f":"(((AAMC_Raw_Data_for_FY22[[#This Row],[75th]]-AAMC_Raw_Data_for_FY22[[#This Row],[Median]])/25)*20) + AAMC_Raw_Data_for_FY22[[#This Row],[Median]]","v":178897.6},185697,{"$f":"(((AAMC_Raw_Data_for_FY22[[#This Row],[75th]]-AAMC_Raw_Data_for_FY22[[#This Row],[Median]])/25)*30) + AAMC_Raw_Data_for_FY22[[#This Row],[Median]]","v":192496.4},{"$f":"(((AAMC_Raw_Data_for_FY22[[#This Row],[75th]]-AAMC_Raw_Data_for_FY22[[#This Row],[Median]])/25)*35) + AAMC_Raw_Data_for_FY22[[#This Row],[Median]]","v":199295.8},{"$f":"(((AAMC_Raw_Data_for_FY22[[#This Row],[75th]]-AAMC_Raw_Data_for_FY22[[#This Row],[Median]])/25)*40) + AAMC_Raw_Data_for_FY22[[#This Row],[Median]]","v":206095.2}]
[{"$f":"AAMC_Raw_Data_for_FY22[[#This Row],[Source]]&AAMC_Raw_Data_for_FY22[[#This Row],[Type]]&AAMC_Raw_Data_for_FY22[[#This Row],[School Subset]]&AAMC_Raw_Data_for_FY22[[#This Row],[Rank]]&AAMC_Raw_Data_for_FY22[[#This Row],[Degree]]&AAMC_Raw_Data_for_FY22[[#This Row],[Department / Specialty]]&\"L\"","v":"AAMCAcademicPrivateProfessorPhDMedicine TotalL"},"Medicine Total",2,"AAMC","Academic","Private","Professor","PhD","2021-2022",190404,{"$f":"(((AAMC_Raw_Data_for_FY22[[#This Row],[Median]]-AAMC_Raw_Data_for_FY22[[#This Row],[25th]])/25)*5) + AAMC_Raw_Data_for_FY22[[#This Row],[25th]]","v":197353.2},{"$f":"(((AAMC_Raw_Data_for_FY22[[#This Row],[Median]]-AAMC_Raw_Data_for_FY22[[#This Row],[25th]])/25)*10) + AAMC_Raw_Data_for_FY22[[#This Row],[25th]]","v":204302.4},{"$f":"(((AAMC_Raw_Data_for_FY22[[#This Row],[Median]]-AAMC_Raw_Data_for_FY22[[#This Row],[25th]])/25)*15) + AAMC_Raw_Data_for_FY22[[#This Row],[25th]]","v":211251.6},{"$f":"(((AAMC_Raw_Data_for_FY22[[#This Row],[Median]]-AAMC_Raw_Data_for_FY22[[#This Row],[25th]])/25)*20) + AAMC_Raw_Data_for_FY22[[#This Row],[25th]]","v":218200.8},225150,{"$f":"(((AAMC_Raw_Data_for_FY22[[#This Row],[75th]]-AAMC_Raw_Data_for_FY22[[#This Row],[Median]])/25)*5) + AAMC_Raw_Data_for_FY22[[#This Row],[Median]]","v":237179.2},{"$f":"(((AAMC_Raw_Data_for_FY22[[#This Row],[75th]]-AAMC_Raw_Data_for_FY22[[#This Row],[Median]])/25)*10) + AAMC_Raw_Data_for_FY22[[#This Row],[Median]]","v":249208.4},{"$f":"(((AAMC_Raw_Data_for_FY22[[#This Row],[75th]]-AAMC_Raw_Data_for_FY22[[#This Row],[Median]])/25)*15) + AAMC_Raw_Data_for_FY22[[#This Row],[Median]]","v":261237.6},{"$f":"(((AAMC_Raw_Data_for_FY22[[#This Row],[75th]]-AAMC_Raw_Data_for_FY22[[#This Row],[Median]])/25)*20) + AAMC_Raw_Data_for_FY22[[#This Row],[Median]]","v":273266.8},285296,{"$f":"(((AAMC_Raw_Data_for_FY22[[#This Row],[75th]]-AAMC_Raw_Data_for_FY22[[#This Row],[Median]])/25)*30) + AAMC_Raw_Data_for_FY22[[#This Row],[Median]]","v":297325.2},{"$f":"(((AAMC_Raw_Data_for_FY22[[#This Row],[75th]]-AAMC_Raw_Data_for_FY22[[#This Row],[Median]])/25)*35) + AAMC_Raw_Data_for_FY22[[#This Row],[Median]]","v":309354.40000000002},{"$f":"(((AAMC_Raw_Data_for_FY22[[#This Row],[75th]]-AAMC_Raw_Data_for_FY22[[#This Row],[Median]])/25)*40) + AAMC_Raw_Data_for_FY22[[#This Row],[Median]]","v":321383.59999999998}]
[{"$f":"AAMC_Raw_Data_for_FY22[[#This Row],[Source]]&AAMC_Raw_Data_for_FY22[[#This Row],[Type]]&AAMC_Raw_Data_for_FY22[[#This Row],[School Subset]]&AAMC_Raw_Data_for_FY22[[#This Row],[Rank]]&AAMC_Raw_Data_for_FY22[[#This Row],[Degree]]&AAMC_Raw_Data_for_FY22[[#This Row],[Department / Specialty]]&\"L\"","v":"AAMCAcademicPrivateChiefPhDMedicine TotalL"},"Medicine Total",6,"AAMC","Academic","Private","Chief","PhD","2021-2022",247663,{"$f":"(((AAMC_Raw_Data_for_FY22[[#This Row],[Median]]-AAMC_Raw_Data_for_FY22[[#This Row],[25th]])/25)*5) + AAMC_Raw_Data_for_FY22[[#This Row],[25th]]","v":251678.6},{"$f":"(((AAMC_Raw_Data_for_FY22[[#This Row],[Median]]-AAMC_Raw_Data_for_FY22[[#This Row],[25th]])/25)*10) + AAMC_Raw_Data_for_FY22[[#This Row],[25th]]","v":255694.2},{"$f":"(((AAMC_Raw_Data_for_FY22[[#This Row],[Median]]-AAMC_Raw_Data_for_FY22[[#This Row],[25th]])/25)*15) + AAMC_Raw_Data_for_FY22[[#This Row],[25th]]","v":259709.8},{"$f":"(((AAMC_Raw_Data_for_FY22[[#This Row],[Median]]-AAMC_Raw_Data_for_FY22[[#This Row],[25th]])/25)*20) + AAMC_Raw_Data_for_FY22[[#This Row],[25th]]","v":263725.40000000002},267741,{"$f":"(((AAMC_Raw_Data_for_FY22[[#This Row],[75th]]-AAMC_Raw_Data_for_FY22[[#This Row],[Median]])/25)*5) + AAMC_Raw_Data_for_FY22[[#This Row],[Median]]","v":277783.2},{"$f":"(((AAMC_Raw_Data_for_FY22[[#This Row],[75th]]-AAMC_Raw_Data_for_FY22[[#This Row],[Median]])/25)*10) + AAMC_Raw_Data_for_FY22[[#This Row],[Median]]","v":287825.40000000002},{"$f":"(((AAMC_Raw_Data_for_FY22[[#This Row],[75th]]-AAMC_Raw_Data_for_FY22[[#This Row],[Median]])/25)*15) + AAMC_Raw_Data_for_FY22[[#This Row],[Median]]","v":297867.59999999998},{"$f":"(((AAMC_Raw_Data_for_FY22[[#This Row],[75th]]-AAMC_Raw_Data_for_FY22[[#This Row],[Median]])/25)*20) + AAMC_Raw_Data_for_FY22[[#This Row],[Median]]","v":307909.8},317952,{"$f":"(((AAMC_Raw_Data_for_FY22[[#This Row],[75th]]-AAMC_Raw_Data_for_FY22[[#This Row],[Median]])/25)*30) + AAMC_Raw_Data_for_FY22[[#This Row],[Median]]","v":327994.2},{"$f":"(((AAMC_Raw_Data_for_FY22[[#This Row],[75th]]-AAMC_Raw_Data_for_FY22[[#This Row],[Median]])/25)*35) + AAMC_Raw_Data_for_FY22[[#This Row],[Median]]","v":338036.4},{"$f":"(((AAMC_Raw_Data_for_FY22[[#This Row],[75th]]-AAMC_Raw_Data_for_FY22[[#This Row],[Median]])/25)*40) + AAMC_Raw_Data_for_FY22[[#This Row],[Median]]","v":348078.6}]
[{"$f":"AAMC_Raw_Data_for_FY22[[#This Row],[Source]]&AAMC_Raw_Data_for_FY22[[#This Row],[Type]]&AAMC_Raw_Data_for_FY22[[#This Row],[School Subset]]&AAMC_Raw_Data_for_FY22[[#This Row],[Rank]]&AAMC_Raw_Data_for_FY22[[#This Row],[Degree]]&AAMC_Raw_Data_for_FY22[[#This Row],[Department / Specialty]]&\"L\"","v":"AAMCAcademicPrivateChairPhDMedicine TotalL"},"Medicine Total",1,"AAMC","Academic","Private","Chair","PhD","2021-2022",null,{"$f":"(((AAMC_Raw_Data_for_FY22[[#This Row],[Median]]-AAMC_Raw_Data_for_FY22[[#This Row],[25th]])/25)*5) + AAMC_Raw_Data_for_FY22[[#This Row],[25th]]","v":0},{"$f":"(((AAMC_Raw_Data_for_FY22[[#This Row],[Median]]-AAMC_Raw_Data_for_FY22[[#This Row],[25th]])/25)*10) + AAMC_Raw_Data_for_FY22[[#This Row],[25th]]","v":0},{"$f":"(((AAMC_Raw_Data_for_FY22[[#This Row],[Median]]-AAMC_Raw_Data_for_FY22[[#This Row],[25th]])/25)*15) + AAMC_Raw_Data_for_FY22[[#This Row],[25th]]","v":0},{"$f":"(((AAMC_Raw_Data_for_FY22[[#This Row],[Median]]-AAMC_Raw_Data_for_FY22[[#This Row],[25th]])/25)*20) + AAMC_Raw_Data_for_FY22[[#This Row],[25th]]","v":0},null,{"$f":"(((AAMC_Raw_Data_for_FY22[[#This Row],[75th]]-AAMC_Raw_Data_for_FY22[[#This Row],[Median]])/25)*5) + AAMC_Raw_Data_for_FY22[[#This Row],[Median]]","v":0},{"$f":"(((AAMC_Raw_Data_for_FY22[[#This Row],[75th]]-AAMC_Raw_Data_for_FY22[[#This Row],[Median]])/25)*10) + AAMC_Raw_Data_for_FY22[[#This Row],[Median]]","v":0},{"$f":"(((AAMC_Raw_Data_for_FY22[[#This Row],[75th]]-AAMC_Raw_Data_for_FY22[[#This Row],[Median]])/25)*15) + AAMC_Raw_Data_for_FY22[[#This Row],[Median]]","v":0},{"$f":"(((AAMC_Raw_Data_for_FY22[[#This Row],[75th]]-AAMC_Raw_Data_for_FY22[[#This Row],[Median]])/25)*20) + AAMC_Raw_Data_for_FY22[[#This Row],[Median]]","v":0},null,{"$f":"(((AAMC_Raw_Data_for_FY22[[#This Row],[75th]]-AAMC_Raw_Data_for_FY22[[#This Row],[Median]])/25)*30) + AAMC_Raw_Data_for_FY22[[#This Row],[Median]]","v":0},{"$f":"(((AAMC_Raw_Data_for_FY22[[#This Row],[75th]]-AAMC_Raw_Data_for_FY22[[#This Row],[Median]])/25)*35) + AAMC_Raw_Data_for_FY22[[#This Row],[Median]]","v":0},{"$f":"(((AAMC_Raw_Data_for_FY22[[#This Row],[75th]]-AAMC_Raw_Data_for_FY22[[#This Row],[Median]])/25)*40) + AAMC_Raw_Data_for_FY22[[#This Row],[Median]]","v":0}]
[{"$f":"AAMC_Raw_Data_for_FY22[[#This Row],[Source]]&AAMC_Raw_Data_for_FY22[[#This Row],[Type]]&AAMC_Raw_Data_for_FY22[[#This Row],[School Subset]]&AAMC_Raw_Data_for_FY22[[#This Row],[Rank]]&AAMC_Raw_Data_for_FY22[[#This Row],[Degree]]&AAMC_Raw_Data_for_FY22[[#This Row],[Department / Specialty]]&\"L\"","v":"AAMCAcademicPrivateInstructorPhDAllergy/Immunology-Med.L"},"Allergy/Immunology-Med.",5,"AAMC","Academic","Private","Instructor","PhD","2021-2022",66950,{"$f":"(((AAMC_Raw_Data_for_FY22[[#This Row],[Median]]-AAMC_Raw_Data_for_FY22[[#This Row],[25th]])/25)*5) + AAMC_Raw_Data_for_FY22[[#This Row],[25th]]","v":68383.199999999997},{"$f":"(((AAMC_Raw_Data_for_FY22[[#This Row],[Median]]-AAMC_Raw_Data_for_FY22[[#This Row],[25th]])/25)*10) + AAMC_Raw_Data_for_FY22[[#This Row],[25th]]","v":69816.399999999994},{"$f":"(((AAMC_Raw_Data_for_FY22[[#This Row],[Median]]-AAMC_Raw_Data_for_FY22[[#This Row],[25th]])/25)*15) + AAMC_Raw_Data_for_FY22[[#This Row],[25th]]","v":71249.600000000006},{"$f":"(((AAMC_Raw_Data_for_FY22[[#This Row],[Median]]-AAMC_Raw_Data_for_FY22[[#This Row],[25th]])/25)*20) + AAMC_Raw_Data_for_FY22[[#This Row],[25th]]","v":72682.8},74116,{"$f":"(((AAMC_Raw_Data_for_FY22[[#This Row],[75th]]-AAMC_Raw_Data_for_FY22[[#This Row],[Median]])/25)*5) + AAMC_Raw_Data_for_FY22[[#This Row],[Median]]","v":75342.8},{"$f":"(((AAMC_Raw_Data_for_FY22[[#This Row],[75th]]-AAMC_Raw_Data_for_FY22[[#This Row],[Median]])/25)*10) + AAMC_Raw_Data_for_FY22[[#This Row],[Median]]","v":76569.600000000006},{"$f":"(((AAMC_Raw_Data_for_FY22[[#This Row],[75th]]-AAMC_Raw_Data_for_FY22[[#This Row],[Median]])/25)*15) + AAMC_Raw_Data_for_FY22[[#This Row],[Median]]","v":77796.399999999994},{"$f":"(((AAMC_Raw_Data_for_FY22[[#This Row],[75th]]-AAMC_Raw_Data_for_FY22[[#This Row],[Median]])/25)*20) + AAMC_Raw_Data_for_FY22[[#This Row],[Median]]","v":79023.199999999997},80250,{"$f":"(((AAMC_Raw_Data_for_FY22[[#This Row],[75th]]-AAMC_Raw_Data_for_FY22[[#This Row],[Median]])/25)*30) + AAMC_Raw_Data_for_FY22[[#This Row],[Median]]","v":81476.800000000003},{"$f":"(((AAMC_Raw_Data_for_FY22[[#This Row],[75th]]-AAMC_Raw_Data_for_FY22[[#This Row],[Median]])/25)*35) + AAMC_Raw_Data_for_FY22[[#This Row],[Median]]","v":82703.600000000006},{"$f":"(((AAMC_Raw_Data_for_FY22[[#This Row],[75th]]-AAMC_Raw_Data_for_FY22[[#This Row],[Median]])/25)*40) + AAMC_Raw_Data_for_FY22[[#This Row],[Median]]","v":83930.4}]
[{"$f":"AAMC_Raw_Data_for_FY22[[#This Row],[Source]]&AAMC_Raw_Data_for_FY22[[#This Row],[Type]]&AAMC_Raw_Data_for_FY22[[#This Row],[School Subset]]&AAMC_Raw_Data_for_FY22[[#This Row],[Rank]]&AAMC_Raw_Data_for_FY22[[#This Row],[Degree]]&AAMC_Raw_Data_for_FY22[[#This Row],[Department / Specialty]]&\"L\"","v":"AAMCAcademicPrivateAssistantPhDAllergy/Immunology-Med.L"},"Allergy/Immunology-Med.",4,"AAMC","Academic","Private","Assistant","PhD","2021-2022",101812,{"$f":"(((AAMC_Raw_Data_for_FY22[[#This Row],[Median]]-AAMC_Raw_Data_for_FY22[[#This Row],[25th]])/25)*5) + AAMC_Raw_Data_for_FY22[[#This Row],[25th]]","v":105449.60000000001},{"$f":"(((AAMC_Raw_Data_for_FY22[[#This Row],[Median]]-AAMC_Raw_Data_for_FY22[[#This Row],[25th]])/25)*10) + AAMC_Raw_Data_for_FY22[[#This Row],[25th]]","v":109087.2},{"$f":"(((AAMC_Raw_Data_for_FY22[[#This Row],[Median]]-AAMC_Raw_Data_for_FY22[[#This Row],[25th]])/25)*15) + AAMC_Raw_Data_for_FY22[[#This Row],[25th]]","v":112724.8},{"$f":"(((AAMC_Raw_Data_for_FY22[[#This Row],[Median]]-AAMC_Raw_Data_for_FY22[[#This Row],[25th]])/25)*20) + AAMC_Raw_Data_for_FY22[[#This Row],[25th]]","v":116362.4},120000,{"$f":"(((AAMC_Raw_Data_for_FY22[[#This Row],[75th]]-AAMC_Raw_Data_for_FY22[[#This Row],[Median]])/25)*5) + AAMC_Raw_Data_for_FY22[[#This Row],[Median]]","v":123254.8},{"$f":"(((AAMC_Raw_Data_for_FY22[[#This Row],[75th]]-AAMC_Raw_Data_for_FY22[[#This Row],[Median]])/25)*10) + AAMC_Raw_Data_for_FY22[[#This Row],[Median]]","v":126509.6},{"$f":"(((AAMC_Raw_Data_for_FY22[[#This Row],[75th]]-AAMC_Raw_Data_for_FY22[[#This Row],[Median]])/25)*15) + AAMC_Raw_Data_for_FY22[[#This Row],[Median]]","v":129764.4},{"$f":"(((AAMC_Raw_Data_for_FY22[[#This Row],[75th]]-AAMC_Raw_Data_for_FY22[[#This Row],[Median]])/25)*20) + AAMC_Raw_Data_for_FY22[[#This Row],[Median]]","v":133019.20000000001},136274,{"$f":"(((AAMC_Raw_Data_for_FY22[[#This Row],[75th]]-AAMC_Raw_Data_for_FY22[[#This Row],[Median]])/25)*30) + AAMC_Raw_Data_for_FY22[[#This Row],[Median]]","v":139528.79999999999},{"$f":"(((AAMC_Raw_Data_for_FY22[[#This Row],[75th]]-AAMC_Raw_Data_for_FY22[[#This Row],[Median]])/25)*35) + AAMC_Raw_Data_for_FY22[[#This Row],[Median]]","v":142783.6},{"$f":"(((AAMC_Raw_Data_for_FY22[[#This Row],[75th]]-AAMC_Raw_Data_for_FY22[[#This Row],[Median]])/25)*40) + AAMC_Raw_Data_for_FY22[[#This Row],[Median]]","v":146038.39999999999}]
[{"$f":"AAMC_Raw_Data_for_FY22[[#This Row],[Source]]&AAMC_Raw_Data_for_FY22[[#This Row],[Type]]&AAMC_Raw_Data_for_FY22[[#This Row],[School Subset]]&AAMC_Raw_Data_for_FY22[[#This Row],[Rank]]&AAMC_Raw_Data_for_FY22[[#This Row],[Degree]]&AAMC_Raw_Data_for_FY22[[#This Row],[Department / Specialty]]&\"L\"","v":"AAMCAcademicPrivateAssociatePhDAllergy/Immunology-Med.L"},"Allergy/Immunology-Med.",3,"AAMC","Academic","Private","Associate","PhD","2021-2022",133000,{"$f":"(((AAMC_Raw_Data_for_FY22[[#This Row],[Median]]-AAMC_Raw_Data_for_FY22[[#This Row],[25th]])/25)*5) + AAMC_Raw_Data_for_FY22[[#This Row],[25th]]","v":135049.79999999999},{"$f":"(((AAMC_Raw_Data_for_FY22[[#This Row],[Median]]-AAMC_Raw_Data_for_FY22[[#This Row],[25th]])/25)*10) + AAMC_Raw_Data_for_FY22[[#This Row],[25th]]","v":137099.6},{"$f":"(((AAMC_Raw_Data_for_FY22[[#This Row],[Median]]-AAMC_Raw_Data_for_FY22[[#This Row],[25th]])/25)*15) + AAMC_Raw_Data_for_FY22[[#This Row],[25th]]","v":139149.4},{"$f":"(((AAMC_Raw_Data_for_FY22[[#This Row],[Median]]-AAMC_Raw_Data_for_FY22[[#This Row],[25th]])/25)*20) + AAMC_Raw_Data_for_FY22[[#This Row],[25th]]","v":141199.20000000001},143249,{"$f":"(((AAMC_Raw_Data_for_FY22[[#This Row],[75th]]-AAMC_Raw_Data_for_FY22[[#This Row],[Median]])/25)*5) + AAMC_Raw_Data_for_FY22[[#This Row],[Median]]","v":146699.20000000001},{"$f":"(((AAMC_Raw_Data_for_FY22[[#This Row],[75th]]-AAMC_Raw_Data_for_FY22[[#This Row],[Median]])/25)*10) + AAMC_Raw_Data_for_FY22[[#This Row],[Median]]","v":150149.4},{"$f":"(((AAMC_Raw_Data_for_FY22[[#This Row],[75th]]-AAMC_Raw_Data_for_FY22[[#This Row],[Median]])/25)*15) + AAMC_Raw_Data_for_FY22[[#This Row],[Median]]","v":153599.6},{"$f":"(((AAMC_Raw_Data_for_FY22[[#This Row],[75th]]-AAMC_Raw_Data_for_FY22[[#This Row],[Median]])/25)*20) + AAMC_Raw_Data_for_FY22[[#This Row],[Median]]","v":157049.79999999999},160500,{"$f":"(((AAMC_Raw_Data_for_FY22[[#This Row],[75th]]-AAMC_Raw_Data_for_FY22[[#This Row],[Median]])/25)*30) + AAMC_Raw_Data_for_FY22[[#This Row],[Median]]","v":163950.20000000001},{"$f":"(((AAMC_Raw_Data_for_FY22[[#This Row],[75th]]-AAMC_Raw_Data_for_FY22[[#This Row],[Median]])/25)*35) + AAMC_Raw_Data_for_FY22[[#This Row],[Median]]","v":167400.4},{"$f":"(((AAMC_Raw_Data_for_FY22[[#This Row],[75th]]-AAMC_Raw_Data_for_FY22[[#This Row],[Median]])/25)*40) + AAMC_Raw_Data_for_FY22[[#This Row],[Median]]","v":170850.6}]
[{"$f":"AAMC_Raw_Data_for_FY22[[#This Row],[Source]]&AAMC_Raw_Data_for_FY22[[#This Row],[Type]]&AAMC_Raw_Data_for_FY22[[#This Row],[School Subset]]&AAMC_Raw_Data_for_FY22[[#This Row],[Rank]]&AAMC_Raw_Data_for_FY22[[#This Row],[Degree]]&AAMC_Raw_Data_for_FY22[[#This Row],[Department / Specialty]]&\"L\"","v":"AAMCAcademicPrivateProfessorPhDAllergy/Immunology-Med.L"},"Allergy/Immunology-Med.",2,"AAMC","Academic","Private","Professor","PhD","2021-2022",null,{"$f":"(((AAMC_Raw_Data_for_FY22[[#This Row],[Median]]-AAMC_Raw_Data_for_FY22[[#This Row],[25th]])/25)*5) + AAMC_Raw_Data_for_FY22[[#This Row],[25th]]","v":0},{"$f":"(((AAMC_Raw_Data_for_FY22[[#This Row],[Median]]-AAMC_Raw_Data_for_FY22[[#This Row],[25th]])/25)*10) + AAMC_Raw_Data_for_FY22[[#This Row],[25th]]","v":0},{"$f":"(((AAMC_Raw_Data_for_FY22[[#This Row],[Median]]-AAMC_Raw_Data_for_FY22[[#This Row],[25th]])/25)*15) + AAMC_Raw_Data_for_FY22[[#This Row],[25th]]","v":0},{"$f":"(((AAMC_Raw_Data_for_FY22[[#This Row],[Median]]-AAMC_Raw_Data_for_FY22[[#This Row],[25th]])/25)*20) + AAMC_Raw_Data_for_FY22[[#This Row],[25th]]","v":0},null,{"$f":"(((AAMC_Raw_Data_for_FY22[[#This Row],[75th]]-AAMC_Raw_Data_for_FY22[[#This Row],[Median]])/25)*5) + AAMC_Raw_Data_for_FY22[[#This Row],[Median]]","v":0},{"$f":"(((AAMC_Raw_Data_for_FY22[[#This Row],[75th]]-AAMC_Raw_Data_for_FY22[[#This Row],[Median]])/25)*10) + AAMC_Raw_Data_for_FY22[[#This Row],[Median]]","v":0},{"$f":"(((AAMC_Raw_Data_for_FY22[[#This Row],[75th]]-AAMC_Raw_Data_for_FY22[[#This Row],[Median]])/25)*15) + AAMC_Raw_Data_for_FY22[[#This Row],[Median]]","v":0},{"$f":"(((AAMC_Raw_Data_for_FY22[[#This Row],[75th]]-AAMC_Raw_Data_for_FY22[[#This Row],[Median]])/25)*20) + AAMC_Raw_Data_for_FY22[[#This Row],[Median]]","v":0},null,{"$f":"(((AAMC_Raw_Data_for_FY22[[#This Row],[75th]]-AAMC_Raw_Data_for_FY22[[#This Row],[Median]])/25)*30) + AAMC_Raw_Data_for_FY22[[#This Row],[Median]]","v":0},{"$f":"(((AAMC_Raw_Data_for_FY22[[#This Row],[75th]]-AAMC_Raw_Data_for_FY22[[#This Row],[Median]])/25)*35) + AAMC_Raw_Data_for_FY22[[#This Row],[Median]]","v":0},{"$f":"(((AAMC_Raw_Data_for_FY22[[#This Row],[75th]]-AAMC_Raw_Data_for_FY22[[#This Row],[Median]])/25)*40) + AAMC_Raw_Data_for_FY22[[#This Row],[Median]]","v":0}]
[{"$f":"AAMC_Raw_Data_for_FY22[[#This Row],[Source]]&AAMC_Raw_Data_for_FY22[[#This Row],[Type]]&AAMC_Raw_Data_for_FY22[[#This Row],[School Subset]]&AAMC_Raw_Data_for_FY22[[#This Row],[Rank]]&AAMC_Raw_Data_for_FY22[[#This Row],[Degree]]&AAMC_Raw_Data_for_FY22[[#This Row],[Department / Specialty]]&\"L\"","v":"AAMCAcademicPrivateChiefPhDAllergy/Immunology-Med.L"},"Allergy/Immunology-Med.",6,"AAMC","Academic","Private","Chief","PhD","2021-2022",null,{"$f":"(((AAMC_Raw_Data_for_FY22[[#This Row],[Median]]-AAMC_Raw_Data_for_FY22[[#This Row],[25th]])/25)*5) + AAMC_Raw_Data_for_FY22[[#This Row],[25th]]","v":0},{"$f":"(((AAMC_Raw_Data_for_FY22[[#This Row],[Median]]-AAMC_Raw_Data_for_FY22[[#This Row],[25th]])/25)*10) + AAMC_Raw_Data_for_FY22[[#This Row],[25th]]","v":0},{"$f":"(((AAMC_Raw_Data_for_FY22[[#This Row],[Median]]-AAMC_Raw_Data_for_FY22[[#This Row],[25th]])/25)*15) + AAMC_Raw_Data_for_FY22[[#This Row],[25th]]","v":0},{"$f":"(((AAMC_Raw_Data_for_FY22[[#This Row],[Median]]-AAMC_Raw_Data_for_FY22[[#This Row],[25th]])/25)*20) + AAMC_Raw_Data_for_FY22[[#This Row],[25th]]","v":0},null,{"$f":"(((AAMC_Raw_Data_for_FY22[[#This Row],[75th]]-AAMC_Raw_Data_for_FY22[[#This Row],[Median]])/25)*5) + AAMC_Raw_Data_for_FY22[[#This Row],[Median]]","v":0},{"$f":"(((AAMC_Raw_Data_for_FY22[[#This Row],[75th]]-AAMC_Raw_Data_for_FY22[[#This Row],[Median]])/25)*10) + AAMC_Raw_Data_for_FY22[[#This Row],[Median]]","v":0},{"$f":"(((AAMC_Raw_Data_for_FY22[[#This Row],[75th]]-AAMC_Raw_Data_for_FY22[[#This Row],[Median]])/25)*15) + AAMC_Raw_Data_for_FY22[[#This Row],[Median]]","v":0},{"$f":"(((AAMC_Raw_Data_for_FY22[[#This Row],[75th]]-AAMC_Raw_Data_for_FY22[[#This Row],[Median]])/25)*20) + AAMC_Raw_Data_for_FY22[[#This Row],[Median]]","v":0},null,{"$f":"(((AAMC_Raw_Data_for_FY22[[#This Row],[75th]]-AAMC_Raw_Data_for_FY22[[#This Row],[Median]])/25)*30) + AAMC_Raw_Data_for_FY22[[#This Row],[Median]]","v":0},{"$f":"(((AAMC_Raw_Data_for_FY22[[#This Row],[75th]]-AAMC_Raw_Data_for_FY22[[#This Row],[Median]])/25)*35) + AAMC_Raw_Data_for_FY22[[#This Row],[Median]]","v":0},{"$f":"(((AAMC_Raw_Data_for_FY22[[#This Row],[75th]]-AAMC_Raw_Data_for_FY22[[#This Row],[Median]])/25)*40) + AAMC_Raw_Data_for_FY22[[#This Row],[Median]]","v":0}]
[{"$f":"AAMC_Raw_Data_for_FY22[[#This Row],[Source]]&AAMC_Raw_Data_for_FY22[[#This Row],[Type]]&AAMC_Raw_Data_for_FY22[[#This Row],[School Subset]]&AAMC_Raw_Data_for_FY22[[#This Row],[Rank]]&AAMC_Raw_Data_for_FY22[[#This Row],[Degree]]&AAMC_Raw_Data_for_FY22[[#This Row],[Department / Specialty]]&\"L\"","v":"AAMCAcademicPrivateInstructorPhDCardiology TotalL"},"Cardiology Total",5,"AAMC","Academic","Private","Instructor","PhD","2021-2022",74300,{"$f":"(((AAMC_Raw_Data_for_FY22[[#This Row],[Median]]-AAMC_Raw_Data_for_FY22[[#This Row],[25th]])/25)*5) + AAMC_Raw_Data_for_FY22[[#This Row],[25th]]","v":78756.2},{"$f":"(((AAMC_Raw_Data_for_FY22[[#This Row],[Median]]-AAMC_Raw_Data_for_FY22[[#This Row],[25th]])/25)*10) + AAMC_Raw_Data_for_FY22[[#This Row],[25th]]","v":83212.399999999994},{"$f":"(((AAMC_Raw_Data_for_FY22[[#This Row],[Median]]-AAMC_Raw_Data_for_FY22[[#This Row],[25th]])/25)*15) + AAMC_Raw_Data_for_FY22[[#This Row],[25th]]","v":87668.6},{"$f":"(((AAMC_Raw_Data_for_FY22[[#This Row],[Median]]-AAMC_Raw_Data_for_FY22[[#This Row],[25th]])/25)*20) + AAMC_Raw_Data_for_FY22[[#This Row],[25th]]","v":92124.800000000003},96581,{"$f":"(((AAMC_Raw_Data_for_FY22[[#This Row],[75th]]-AAMC_Raw_Data_for_FY22[[#This Row],[Median]])/25)*5) + AAMC_Raw_Data_for_FY22[[#This Row],[Median]]","v":100636.4},{"$f":"(((AAMC_Raw_Data_for_FY22[[#This Row],[75th]]-AAMC_Raw_Data_for_FY22[[#This Row],[Median]])/25)*10) + AAMC_Raw_Data_for_FY22[[#This Row],[Median]]","v":104691.8},{"$f":"(((AAMC_Raw_Data_for_FY22[[#This Row],[75th]]-AAMC_Raw_Data_for_FY22[[#This Row],[Median]])/25)*15) + AAMC_Raw_Data_for_FY22[[#This Row],[Median]]","v":108747.2},{"$f":"(((AAMC_Raw_Data_for_FY22[[#This Row],[75th]]-AAMC_Raw_Data_for_FY22[[#This Row],[Median]])/25)*20) + AAMC_Raw_Data_for_FY22[[#This Row],[Median]]","v":112802.6},116858,{"$f":"(((AAMC_Raw_Data_for_FY22[[#This Row],[75th]]-AAMC_Raw_Data_for_FY22[[#This Row],[Median]])/25)*30) + AAMC_Raw_Data_for_FY22[[#This Row],[Median]]","v":120913.4},{"$f":"(((AAMC_Raw_Data_for_FY22[[#This Row],[75th]]-AAMC_Raw_Data_for_FY22[[#This Row],[Median]])/25)*35) + AAMC_Raw_Data_for_FY22[[#This Row],[Median]]","v":124968.8},{"$f":"(((AAMC_Raw_Data_for_FY22[[#This Row],[75th]]-AAMC_Raw_Data_for_FY22[[#This Row],[Median]])/25)*40) + AAMC_Raw_Data_for_FY22[[#This Row],[Median]]","v":129024.2}]
[{"$f":"AAMC_Raw_Data_for_FY22[[#This Row],[Source]]&AAMC_Raw_Data_for_FY22[[#This Row],[Type]]&AAMC_Raw_Data_for_FY22[[#This Row],[School Subset]]&AAMC_Raw_Data_for_FY22[[#This Row],[Rank]]&AAMC_Raw_Data_for_FY22[[#This Row],[Degree]]&AAMC_Raw_Data_for_FY22[[#This Row],[Department / Specialty]]&\"L\"","v":"AAMCAcademicPrivateAssistantPhDCardiology TotalL"},"Cardiology Total",4,"AAMC","Academic","Private","Assistant","PhD","2021-2022",92500,{"$f":"(((AAMC_Raw_Data_for_FY22[[#This Row],[Median]]-AAMC_Raw_Data_for_FY22[[#This Row],[25th]])/25)*5) + AAMC_Raw_Data_for_FY22[[#This Row],[25th]]","v":98000},{"$f":"(((AAMC_Raw_Data_for_FY22[[#This Row],[Median]]-AAMC_Raw_Data_for_FY22[[#This Row],[25th]])/25)*10) + AAMC_Raw_Data_for_FY22[[#This Row],[25th]]","v":103500},{"$f":"(((AAMC_Raw_Data_for_FY22[[#This Row],[Median]]-AAMC_Raw_Data_for_FY22[[#This Row],[25th]])/25)*15) + AAMC_Raw_Data_for_FY22[[#This Row],[25th]]","v":109000},{"$f":"(((AAMC_Raw_Data_for_FY22[[#This Row],[Median]]-AAMC_Raw_Data_for_FY22[[#This Row],[25th]])/25)*20) + AAMC_Raw_Data_for_FY22[[#This Row],[25th]]","v":114500},120000,{"$f":"(((AAMC_Raw_Data_for_FY22[[#This Row],[75th]]-AAMC_Raw_Data_for_FY22[[#This Row],[Median]])/25)*5) + AAMC_Raw_Data_for_FY22[[#This Row],[Median]]","v":126013},{"$f":"(((AAMC_Raw_Data_for_FY22[[#This Row],[75th]]-AAMC_Raw_Data_for_FY22[[#This Row],[Median]])/25)*10) + AAMC_Raw_Data_for_FY22[[#This Row],[Median]]","v":132026},{"$f":"(((AAMC_Raw_Data_for_FY22[[#This Row],[75th]]-AAMC_Raw_Data_for_FY22[[#This Row],[Median]])/25)*15) + AAMC_Raw_Data_for_FY22[[#This Row],[Median]]","v":138039},{"$f":"(((AAMC_Raw_Data_for_FY22[[#This Row],[75th]]-AAMC_Raw_Data_for_FY22[[#This Row],[Median]])/25)*20) + AAMC_Raw_Data_for_FY22[[#This Row],[Median]]","v":144052},150065,{"$f":"(((AAMC_Raw_Data_for_FY22[[#This Row],[75th]]-AAMC_Raw_Data_for_FY22[[#This Row],[Median]])/25)*30) + AAMC_Raw_Data_for_FY22[[#This Row],[Median]]","v":156078},{"$f":"(((AAMC_Raw_Data_for_FY22[[#This Row],[75th]]-AAMC_Raw_Data_for_FY22[[#This Row],[Median]])/25)*35) + AAMC_Raw_Data_for_FY22[[#This Row],[Median]]","v":162091},{"$f":"(((AAMC_Raw_Data_for_FY22[[#This Row],[75th]]-AAMC_Raw_Data_for_FY22[[#This Row],[Median]])/25)*40) + AAMC_Raw_Data_for_FY22[[#This Row],[Median]]","v":168104}]
[{"$f":"AAMC_Raw_Data_for_FY22[[#This Row],[Source]]&AAMC_Raw_Data_for_FY22[[#This Row],[Type]]&AAMC_Raw_Data_for_FY22[[#This Row],[School Subset]]&AAMC_Raw_Data_for_FY22[[#This Row],[Rank]]&AAMC_Raw_Data_for_FY22[[#This Row],[Degree]]&AAMC_Raw_Data_for_FY22[[#This Row],[Department / Specialty]]&\"L\"","v":"AAMCAcademicPrivateAssociatePhDCardiology TotalL"},"Cardiology Total",3,"AAMC","Academic","Private","Associate","PhD","2021-2022",133278,{"$f":"(((AAMC_Raw_Data_for_FY22[[#This Row],[Median]]-AAMC_Raw_Data_for_FY22[[#This Row],[25th]])/25)*5) + AAMC_Raw_Data_for_FY22[[#This Row],[25th]]","v":138652.4},{"$f":"(((AAMC_Raw_Data_for_FY22[[#This Row],[Median]]-AAMC_Raw_Data_for_FY22[[#This Row],[25th]])/25)*10) + AAMC_Raw_Data_for_FY22[[#This Row],[25th]]","v":144026.79999999999},{"$f":"(((AAMC_Raw_Data_for_FY22[[#This Row],[Median]]-AAMC_Raw_Data_for_FY22[[#This Row],[25th]])/25)*15) + AAMC_Raw_Data_for_FY22[[#This Row],[25th]]","v":149401.20000000001},{"$f":"(((AAMC_Raw_Data_for_FY22[[#This Row],[Median]]-AAMC_Raw_Data_for_FY22[[#This Row],[25th]])/25)*20) + AAMC_Raw_Data_for_FY22[[#This Row],[25th]]","v":154775.6},160150,{"$f":"(((AAMC_Raw_Data_for_FY22[[#This Row],[75th]]-AAMC_Raw_Data_for_FY22[[#This Row],[Median]])/25)*5) + AAMC_Raw_Data_for_FY22[[#This Row],[Median]]","v":167640},{"$f":"(((AAMC_Raw_Data_for_FY22[[#This Row],[75th]]-AAMC_Raw_Data_for_FY22[[#This Row],[Median]])/25)*10) + AAMC_Raw_Data_for_FY22[[#This Row],[Median]]","v":175130},{"$f":"(((AAMC_Raw_Data_for_FY22[[#This Row],[75th]]-AAMC_Raw_Data_for_FY22[[#This Row],[Median]])/25)*15) + AAMC_Raw_Data_for_FY22[[#This Row],[Median]]","v":182620},{"$f":"(((AAMC_Raw_Data_for_FY22[[#This Row],[75th]]-AAMC_Raw_Data_for_FY22[[#This Row],[Median]])/25)*20) + AAMC_Raw_Data_for_FY22[[#This Row],[Median]]","v":190110},197600,{"$f":"(((AAMC_Raw_Data_for_FY22[[#This Row],[75th]]-AAMC_Raw_Data_for_FY22[[#This Row],[Median]])/25)*30) + AAMC_Raw_Data_for_FY22[[#This Row],[Median]]","v":205090},{"$f":"(((AAMC_Raw_Data_for_FY22[[#This Row],[75th]]-AAMC_Raw_Data_for_FY22[[#This Row],[Median]])/25)*35) + AAMC_Raw_Data_for_FY22[[#This Row],[Median]]","v":212580},{"$f":"(((AAMC_Raw_Data_for_FY22[[#This Row],[75th]]-AAMC_Raw_Data_for_FY22[[#This Row],[Median]])/25)*40) + AAMC_Raw_Data_for_FY22[[#This Row],[Median]]","v":220070}]
[{"$f":"AAMC_Raw_Data_for_FY22[[#This Row],[Source]]&AAMC_Raw_Data_for_FY22[[#This Row],[Type]]&AAMC_Raw_Data_for_FY22[[#This Row],[School Subset]]&AAMC_Raw_Data_for_FY22[[#This Row],[Rank]]&AAMC_Raw_Data_for_FY22[[#This Row],[Degree]]&AAMC_Raw_Data_for_FY22[[#This Row],[Department / Specialty]]&\"L\"","v":"AAMCAcademicPrivateProfessorPhDCardiology TotalL"},"Cardiology Total",2,"AAMC","Academic","Private","Professor","PhD","2021-2022",221275,{"$f":"(((AAMC_Raw_Data_for_FY22[[#This Row],[Median]]-AAMC_Raw_Data_for_FY22[[#This Row],[25th]])/25)*5) + AAMC_Raw_Data_for_FY22[[#This Row],[25th]]","v":229388.79999999999},{"$f":"(((AAMC_Raw_Data_for_FY22[[#This Row],[Median]]-AAMC_Raw_Data_for_FY22[[#This Row],[25th]])/25)*10) + AAMC_Raw_Data_for_FY22[[#This Row],[25th]]","v":237502.6},{"$f":"(((AAMC_Raw_Data_for_FY22[[#This Row],[Median]]-AAMC_Raw_Data_for_FY22[[#This Row],[25th]])/25)*15) + AAMC_Raw_Data_for_FY22[[#This Row],[25th]]","v":245616.4},{"$f":"(((AAMC_Raw_Data_for_FY22[[#This Row],[Median]]-AAMC_Raw_Data_for_FY22[[#This Row],[25th]])/25)*20) + AAMC_Raw_Data_for_FY22[[#This Row],[25th]]","v":253730.2},261844,{"$f":"(((AAMC_Raw_Data_for_FY22[[#This Row],[75th]]-AAMC_Raw_Data_for_FY22[[#This Row],[Median]])/25)*5) + AAMC_Raw_Data_for_FY22[[#This Row],[Median]]","v":268134.2},{"$f":"(((AAMC_Raw_Data_for_FY22[[#This Row],[75th]]-AAMC_Raw_Data_for_FY22[[#This Row],[Median]])/25)*10) + AAMC_Raw_Data_for_FY22[[#This Row],[Median]]","v":274424.40000000002},{"$f":"(((AAMC_Raw_Data_for_FY22[[#This Row],[75th]]-AAMC_Raw_Data_for_FY22[[#This Row],[Median]])/25)*15) + AAMC_Raw_Data_for_FY22[[#This Row],[Median]]","v":280714.59999999998},{"$f":"(((AAMC_Raw_Data_for_FY22[[#This Row],[75th]]-AAMC_Raw_Data_for_FY22[[#This Row],[Median]])/25)*20) + AAMC_Raw_Data_for_FY22[[#This Row],[Median]]","v":287004.79999999999},293295,{"$f":"(((AAMC_Raw_Data_for_FY22[[#This Row],[75th]]-AAMC_Raw_Data_for_FY22[[#This Row],[Median]])/25)*30) + AAMC_Raw_Data_for_FY22[[#This Row],[Median]]","v":299585.2},{"$f":"(((AAMC_Raw_Data_for_FY22[[#This Row],[75th]]-AAMC_Raw_Data_for_FY22[[#This Row],[Median]])/25)*35) + AAMC_Raw_Data_for_FY22[[#This Row],[Median]]","v":305875.40000000002},{"$f":"(((AAMC_Raw_Data_for_FY22[[#This Row],[75th]]-AAMC_Raw_Data_for_FY22[[#This Row],[Median]])/25)*40) + AAMC_Raw_Data_for_FY22[[#This Row],[Median]]","v":312165.59999999998}]
[{"$f":"AAMC_Raw_Data_for_FY22[[#This Row],[Source]]&AAMC_Raw_Data_for_FY22[[#This Row],[Type]]&AAMC_Raw_Data_for_FY22[[#This Row],[School Subset]]&AAMC_Raw_Data_for_FY22[[#This Row],[Rank]]&AAMC_Raw_Data_for_FY22[[#This Row],[Degree]]&AAMC_Raw_Data_for_FY22[[#This Row],[Department / Specialty]]&\"L\"","v":"AAMCAcademicPrivateInstructorPhDCardiology: Invasive Interventional-Med.L"},"Cardiology: Invasive Interventional-Med.",5,"AAMC","Academic","Private","Instructor","PhD","2021-2022",null,{"$f":"(((AAMC_Raw_Data_for_FY22[[#This Row],[Median]]-AAMC_Raw_Data_for_FY22[[#This Row],[25th]])/25)*5) + AAMC_Raw_Data_for_FY22[[#This Row],[25th]]","v":0},{"$f":"(((AAMC_Raw_Data_for_FY22[[#This Row],[Median]]-AAMC_Raw_Data_for_FY22[[#This Row],[25th]])/25)*10) + AAMC_Raw_Data_for_FY22[[#This Row],[25th]]","v":0},{"$f":"(((AAMC_Raw_Data_for_FY22[[#This Row],[Median]]-AAMC_Raw_Data_for_FY22[[#This Row],[25th]])/25)*15) + AAMC_Raw_Data_for_FY22[[#This Row],[25th]]","v":0},{"$f":"(((AAMC_Raw_Data_for_FY22[[#This Row],[Median]]-AAMC_Raw_Data_for_FY22[[#This Row],[25th]])/25)*20) + AAMC_Raw_Data_for_FY22[[#This Row],[25th]]","v":0},null,{"$f":"(((AAMC_Raw_Data_for_FY22[[#This Row],[75th]]-AAMC_Raw_Data_for_FY22[[#This Row],[Median]])/25)*5) + AAMC_Raw_Data_for_FY22[[#This Row],[Median]]","v":0},{"$f":"(((AAMC_Raw_Data_for_FY22[[#This Row],[75th]]-AAMC_Raw_Data_for_FY22[[#This Row],[Median]])/25)*10) + AAMC_Raw_Data_for_FY22[[#This Row],[Median]]","v":0},{"$f":"(((AAMC_Raw_Data_for_FY22[[#This Row],[75th]]-AAMC_Raw_Data_for_FY22[[#This Row],[Median]])/25)*15) + AAMC_Raw_Data_for_FY22[[#This Row],[Median]]","v":0},{"$f":"(((AAMC_Raw_Data_for_FY22[[#This Row],[75th]]-AAMC_Raw_Data_for_FY22[[#This Row],[Median]])/25)*20) + AAMC_Raw_Data_for_FY22[[#This Row],[Median]]","v":0},null,{"$f":"(((AAMC_Raw_Data_for_FY22[[#This Row],[75th]]-AAMC_Raw_Data_for_FY22[[#This Row],[Median]])/25)*30) + AAMC_Raw_Data_for_FY22[[#This Row],[Median]]","v":0},{"$f":"(((AAMC_Raw_Data_for_FY22[[#This Row],[75th]]-AAMC_Raw_Data_for_FY22[[#This Row],[Median]])/25)*35) + AAMC_Raw_Data_for_FY22[[#This Row],[Median]]","v":0},{"$f":"(((AAMC_Raw_Data_for_FY22[[#This Row],[75th]]-AAMC_Raw_Data_for_FY22[[#This Row],[Median]])/25)*40) + AAMC_Raw_Data_for_FY22[[#This Row],[Median]]","v":0}]
[{"$f":"AAMC_Raw_Data_for_FY22[[#This Row],[Source]]&AAMC_Raw_Data_for_FY22[[#This Row],[Type]]&AAMC_Raw_Data_for_FY22[[#This Row],[School Subset]]&AAMC_Raw_Data_for_FY22[[#This Row],[Rank]]&AAMC_Raw_Data_for_FY22[[#This Row],[Degree]]&AAMC_Raw_Data_for_FY22[[#This Row],[Department / Specialty]]&\"L\"","v":"AAMCAcademicPrivateAssistantPhDCardiology: Invasive Interventional-Med.L"},"Cardiology: Invasive Interventional-Med.",4,"AAMC","Academic","Private","Assistant","PhD","2021-2022",null,{"$f":"(((AAMC_Raw_Data_for_FY22[[#This Row],[Median]]-AAMC_Raw_Data_for_FY22[[#This Row],[25th]])/25)*5) + AAMC_Raw_Data_for_FY22[[#This Row],[25th]]","v":0},{"$f":"(((AAMC_Raw_Data_for_FY22[[#This Row],[Median]]-AAMC_Raw_Data_for_FY22[[#This Row],[25th]])/25)*10) + AAMC_Raw_Data_for_FY22[[#This Row],[25th]]","v":0},{"$f":"(((AAMC_Raw_Data_for_FY22[[#This Row],[Median]]-AAMC_Raw_Data_for_FY22[[#This Row],[25th]])/25)*15) + AAMC_Raw_Data_for_FY22[[#This Row],[25th]]","v":0},{"$f":"(((AAMC_Raw_Data_for_FY22[[#This Row],[Median]]-AAMC_Raw_Data_for_FY22[[#This Row],[25th]])/25)*20) + AAMC_Raw_Data_for_FY22[[#This Row],[25th]]","v":0},null,{"$f":"(((AAMC_Raw_Data_for_FY22[[#This Row],[75th]]-AAMC_Raw_Data_for_FY22[[#This Row],[Median]])/25)*5) + AAMC_Raw_Data_for_FY22[[#This Row],[Median]]","v":0},{"$f":"(((AAMC_Raw_Data_for_FY22[[#This Row],[75th]]-AAMC_Raw_Data_for_FY22[[#This Row],[Median]])/25)*10) + AAMC_Raw_Data_for_FY22[[#This Row],[Median]]","v":0},{"$f":"(((AAMC_Raw_Data_for_FY22[[#This Row],[75th]]-AAMC_Raw_Data_for_FY22[[#This Row],[Median]])/25)*15) + AAMC_Raw_Data_for_FY22[[#This Row],[Median]]","v":0},{"$f":"(((AAMC_Raw_Data_for_FY22[[#This Row],[75th]]-AAMC_Raw_Data_for_FY22[[#This Row],[Median]])/25)*20) + AAMC_Raw_Data_for_FY22[[#This Row],[Median]]","v":0},null,{"$f":"(((AAMC_Raw_Data_for_FY22[[#This Row],[75th]]-AAMC_Raw_Data_for_FY22[[#This Row],[Median]])/25)*30) + AAMC_Raw_Data_for_FY22[[#This Row],[Median]]","v":0},{"$f":"(((AAMC_Raw_Data_for_FY22[[#This Row],[75th]]-AAMC_Raw_Data_for_FY22[[#This Row],[Median]])/25)*35) + AAMC_Raw_Data_for_FY22[[#This Row],[Median]]","v":0},{"$f":"(((AAMC_Raw_Data_for_FY22[[#This Row],[75th]]-AAMC_Raw_Data_for_FY22[[#This Row],[Median]])/25)*40) + AAMC_Raw_Data_for_FY22[[#This Row],[Median]]","v":0}]
[{"$f":"AAMC_Raw_Data_for_FY22[[#This Row],[Source]]&AAMC_Raw_Data_for_FY22[[#This Row],[Type]]&AAMC_Raw_Data_for_FY22[[#This Row],[School Subset]]&AAMC_Raw_Data_for_FY22[[#This Row],[Rank]]&AAMC_Raw_Data_for_FY22[[#This Row],[Degree]]&AAMC_Raw_Data_for_FY22[[#This Row],[Department / Specialty]]&\"L\"","v":"AAMCAcademicPrivateAssociatePhDCardiology: Invasive Interventional-Med.L"},"Cardiology: Invasive Interventional-Med.",3,"AAMC","Academic","Private","Associate","PhD","2021-2022",null,{"$f":"(((AAMC_Raw_Data_for_FY22[[#This Row],[Median]]-AAMC_Raw_Data_for_FY22[[#This Row],[25th]])/25)*5) + AAMC_Raw_Data_for_FY22[[#This Row],[25th]]","v":0},{"$f":"(((AAMC_Raw_Data_for_FY22[[#This Row],[Median]]-AAMC_Raw_Data_for_FY22[[#This Row],[25th]])/25)*10) + AAMC_Raw_Data_for_FY22[[#This Row],[25th]]","v":0},{"$f":"(((AAMC_Raw_Data_for_FY22[[#This Row],[Median]]-AAMC_Raw_Data_for_FY22[[#This Row],[25th]])/25)*15) + AAMC_Raw_Data_for_FY22[[#This Row],[25th]]","v":0},{"$f":"(((AAMC_Raw_Data_for_FY22[[#This Row],[Median]]-AAMC_Raw_Data_for_FY22[[#This Row],[25th]])/25)*20) + AAMC_Raw_Data_for_FY22[[#This Row],[25th]]","v":0},null,{"$f":"(((AAMC_Raw_Data_for_FY22[[#This Row],[75th]]-AAMC_Raw_Data_for_FY22[[#This Row],[Median]])/25)*5) + AAMC_Raw_Data_for_FY22[[#This Row],[Median]]","v":0},{"$f":"(((AAMC_Raw_Data_for_FY22[[#This Row],[75th]]-AAMC_Raw_Data_for_FY22[[#This Row],[Median]])/25)*10) + AAMC_Raw_Data_for_FY22[[#This Row],[Median]]","v":0},{"$f":"(((AAMC_Raw_Data_for_FY22[[#This Row],[75th]]-AAMC_Raw_Data_for_FY22[[#This Row],[Median]])/25)*15) + AAMC_Raw_Data_for_FY22[[#This Row],[Median]]","v":0},{"$f":"(((AAMC_Raw_Data_for_FY22[[#This Row],[75th]]-AAMC_Raw_Data_for_FY22[[#This Row],[Median]])/25)*20) + AAMC_Raw_Data_for_FY22[[#This Row],[Median]]","v":0},null,{"$f":"(((AAMC_Raw_Data_for_FY22[[#This Row],[75th]]-AAMC_Raw_Data_for_FY22[[#This Row],[Median]])/25)*30) + AAMC_Raw_Data_for_FY22[[#This Row],[Median]]","v":0},{"$f":"(((AAMC_Raw_Data_for_FY22[[#This Row],[75th]]-AAMC_Raw_Data_for_FY22[[#This Row],[Median]])/25)*35) + AAMC_Raw_Data_for_FY22[[#This Row],[Median]]","v":0},{"$f":"(((AAMC_Raw_Data_for_FY22[[#This Row],[75th]]-AAMC_Raw_Data_for_FY22[[#This Row],[Median]])/25)*40) + AAMC_Raw_Data_for_FY22[[#This Row],[Median]]","v":0}]
[{"$f":"AAMC_Raw_Data_for_FY22[[#This Row],[Source]]&AAMC_Raw_Data_for_FY22[[#This Row],[Type]]&AAMC_Raw_Data_for_FY22[[#This Row],[School Subset]]&AAMC_Raw_Data_for_FY22[[#This Row],[Rank]]&AAMC_Raw_Data_for_FY22[[#This Row],[Degree]]&AAMC_Raw_Data_for_FY22[[#This Row],[Department / Specialty]]&\"L\"","v":"AAMCAcademicPrivateProfessorPhDCardiology: Invasive Interventional-Med.L"},"Cardiology: Invasive Interventional-Med.",2,"AAMC","Academic","Private","Professor","PhD","2021-2022",null,{"$f":"(((AAMC_Raw_Data_for_FY22[[#This Row],[Median]]-AAMC_Raw_Data_for_FY22[[#This Row],[25th]])/25)*5) + AAMC_Raw_Data_for_FY22[[#This Row],[25th]]","v":0},{"$f":"(((AAMC_Raw_Data_for_FY22[[#This Row],[Median]]-AAMC_Raw_Data_for_FY22[[#This Row],[25th]])/25)*10) + AAMC_Raw_Data_for_FY22[[#This Row],[25th]]","v":0},{"$f":"(((AAMC_Raw_Data_for_FY22[[#This Row],[Median]]-AAMC_Raw_Data_for_FY22[[#This Row],[25th]])/25)*15) + AAMC_Raw_Data_for_FY22[[#This Row],[25th]]","v":0},{"$f":"(((AAMC_Raw_Data_for_FY22[[#This Row],[Median]]-AAMC_Raw_Data_for_FY22[[#This Row],[25th]])/25)*20) + AAMC_Raw_Data_for_FY22[[#This Row],[25th]]","v":0},null,{"$f":"(((AAMC_Raw_Data_for_FY22[[#This Row],[75th]]-AAMC_Raw_Data_for_FY22[[#This Row],[Median]])/25)*5) + AAMC_Raw_Data_for_FY22[[#This Row],[Median]]","v":0},{"$f":"(((AAMC_Raw_Data_for_FY22[[#This Row],[75th]]-AAMC_Raw_Data_for_FY22[[#This Row],[Median]])/25)*10) + AAMC_Raw_Data_for_FY22[[#This Row],[Median]]","v":0},{"$f":"(((AAMC_Raw_Data_for_FY22[[#This Row],[75th]]-AAMC_Raw_Data_for_FY22[[#This Row],[Median]])/25)*15) + AAMC_Raw_Data_for_FY22[[#This Row],[Median]]","v":0},{"$f":"(((AAMC_Raw_Data_for_FY22[[#This Row],[75th]]-AAMC_Raw_Data_for_FY22[[#This Row],[Median]])/25)*20) + AAMC_Raw_Data_for_FY22[[#This Row],[Median]]","v":0},null,{"$f":"(((AAMC_Raw_Data_for_FY22[[#This Row],[75th]]-AAMC_Raw_Data_for_FY22[[#This Row],[Median]])/25)*30) + AAMC_Raw_Data_for_FY22[[#This Row],[Median]]","v":0},{"$f":"(((AAMC_Raw_Data_for_FY22[[#This Row],[75th]]-AAMC_Raw_Data_for_FY22[[#This Row],[Median]])/25)*35) + AAMC_Raw_Data_for_FY22[[#This Row],[Median]]","v":0},{"$f":"(((AAMC_Raw_Data_for_FY22[[#This Row],[75th]]-AAMC_Raw_Data_for_FY22[[#This Row],[Median]])/25)*40) + AAMC_Raw_Data_for_FY22[[#This Row],[Median]]","v":0}]
[{"$f":"AAMC_Raw_Data_for_FY22[[#This Row],[Source]]&AAMC_Raw_Data_for_FY22[[#This Row],[Type]]&AAMC_Raw_Data_for_FY22[[#This Row],[School Subset]]&AAMC_Raw_Data_for_FY22[[#This Row],[Rank]]&AAMC_Raw_Data_for_FY22[[#This Row],[Degree]]&AAMC_Raw_Data_for_FY22[[#This Row],[Department / Specialty]]&\"L\"","v":"AAMCAcademicPrivateInstructorPhDCardiology: Invasive Non-interventional-Med.L"},"Cardiology: Invasive Non-interventional-Med.",5,"AAMC","Academic","Private","Instructor","PhD","2021-2022",null,{"$f":"(((AAMC_Raw_Data_for_FY22[[#This Row],[Median]]-AAMC_Raw_Data_for_FY22[[#This Row],[25th]])/25)*5) + AAMC_Raw_Data_for_FY22[[#This Row],[25th]]","v":0},{"$f":"(((AAMC_Raw_Data_for_FY22[[#This Row],[Median]]-AAMC_Raw_Data_for_FY22[[#This Row],[25th]])/25)*10) + AAMC_Raw_Data_for_FY22[[#This Row],[25th]]","v":0},{"$f":"(((AAMC_Raw_Data_for_FY22[[#This Row],[Median]]-AAMC_Raw_Data_for_FY22[[#This Row],[25th]])/25)*15) + AAMC_Raw_Data_for_FY22[[#This Row],[25th]]","v":0},{"$f":"(((AAMC_Raw_Data_for_FY22[[#This Row],[Median]]-AAMC_Raw_Data_for_FY22[[#This Row],[25th]])/25)*20) + AAMC_Raw_Data_for_FY22[[#This Row],[25th]]","v":0},null,{"$f":"(((AAMC_Raw_Data_for_FY22[[#This Row],[75th]]-AAMC_Raw_Data_for_FY22[[#This Row],[Median]])/25)*5) + AAMC_Raw_Data_for_FY22[[#This Row],[Median]]","v":0},{"$f":"(((AAMC_Raw_Data_for_FY22[[#This Row],[75th]]-AAMC_Raw_Data_for_FY22[[#This Row],[Median]])/25)*10) + AAMC_Raw_Data_for_FY22[[#This Row],[Median]]","v":0},{"$f":"(((AAMC_Raw_Data_for_FY22[[#This Row],[75th]]-AAMC_Raw_Data_for_FY22[[#This Row],[Median]])/25)*15) + AAMC_Raw_Data_for_FY22[[#This Row],[Median]]","v":0},{"$f":"(((AAMC_Raw_Data_for_FY22[[#This Row],[75th]]-AAMC_Raw_Data_for_FY22[[#This Row],[Median]])/25)*20) + AAMC_Raw_Data_for_FY22[[#This Row],[Median]]","v":0},null,{"$f":"(((AAMC_Raw_Data_for_FY22[[#This Row],[75th]]-AAMC_Raw_Data_for_FY22[[#This Row],[Median]])/25)*30) + AAMC_Raw_Data_for_FY22[[#This Row],[Median]]","v":0},{"$f":"(((AAMC_Raw_Data_for_FY22[[#This Row],[75th]]-AAMC_Raw_Data_for_FY22[[#This Row],[Median]])/25)*35) + AAMC_Raw_Data_for_FY22[[#This Row],[Median]]","v":0},{"$f":"(((AAMC_Raw_Data_for_FY22[[#This Row],[75th]]-AAMC_Raw_Data_for_FY22[[#This Row],[Median]])/25)*40) + AAMC_Raw_Data_for_FY22[[#This Row],[Median]]","v":0}]
[{"$f":"AAMC_Raw_Data_for_FY22[[#This Row],[Source]]&AAMC_Raw_Data_for_FY22[[#This Row],[Type]]&AAMC_Raw_Data_for_FY22[[#This Row],[School Subset]]&AAMC_Raw_Data_for_FY22[[#This Row],[Rank]]&AAMC_Raw_Data_for_FY22[[#This Row],[Degree]]&AAMC_Raw_Data_for_FY22[[#This Row],[Department / Specialty]]&\"L\"","v":"AAMCAcademicPrivateAssistantPhDCardiology: Invasive Non-interventional-Med.L"},"Cardiology: Invasive Non-interventional-Med.",4,"AAMC","Academic","Private","Assistant","PhD","2021-2022",null,{"$f":"(((AAMC_Raw_Data_for_FY22[[#This Row],[Median]]-AAMC_Raw_Data_for_FY22[[#This Row],[25th]])/25)*5) + AAMC_Raw_Data_for_FY22[[#This Row],[25th]]","v":0},{"$f":"(((AAMC_Raw_Data_for_FY22[[#This Row],[Median]]-AAMC_Raw_Data_for_FY22[[#This Row],[25th]])/25)*10) + AAMC_Raw_Data_for_FY22[[#This Row],[25th]]","v":0},{"$f":"(((AAMC_Raw_Data_for_FY22[[#This Row],[Median]]-AAMC_Raw_Data_for_FY22[[#This Row],[25th]])/25)*15) + AAMC_Raw_Data_for_FY22[[#This Row],[25th]]","v":0},{"$f":"(((AAMC_Raw_Data_for_FY22[[#This Row],[Median]]-AAMC_Raw_Data_for_FY22[[#This Row],[25th]])/25)*20) + AAMC_Raw_Data_for_FY22[[#This Row],[25th]]","v":0},null,{"$f":"(((AAMC_Raw_Data_for_FY22[[#This Row],[75th]]-AAMC_Raw_Data_for_FY22[[#This Row],[Median]])/25)*5) + AAMC_Raw_Data_for_FY22[[#This Row],[Median]]","v":0},{"$f":"(((AAMC_Raw_Data_for_FY22[[#This Row],[75th]]-AAMC_Raw_Data_for_FY22[[#This Row],[Median]])/25)*10) + AAMC_Raw_Data_for_FY22[[#This Row],[Median]]","v":0},{"$f":"(((AAMC_Raw_Data_for_FY22[[#This Row],[75th]]-AAMC_Raw_Data_for_FY22[[#This Row],[Median]])/25)*15) + AAMC_Raw_Data_for_FY22[[#This Row],[Median]]","v":0},{"$f":"(((AAMC_Raw_Data_for_FY22[[#This Row],[75th]]-AAMC_Raw_Data_for_FY22[[#This Row],[Median]])/25)*20) + AAMC_Raw_Data_for_FY22[[#This Row],[Median]]","v":0},null,{"$f":"(((AAMC_Raw_Data_for_FY22[[#This Row],[75th]]-AAMC_Raw_Data_for_FY22[[#This Row],[Median]])/25)*30) + AAMC_Raw_Data_for_FY22[[#This Row],[Median]]","v":0},{"$f":"(((AAMC_Raw_Data_for_FY22[[#This Row],[75th]]-AAMC_Raw_Data_for_FY22[[#This Row],[Median]])/25)*35) + AAMC_Raw_Data_for_FY22[[#This Row],[Median]]","v":0},{"$f":"(((AAMC_Raw_Data_for_FY22[[#This Row],[75th]]-AAMC_Raw_Data_for_FY22[[#This Row],[Median]])/25)*40) + AAMC_Raw_Data_for_FY22[[#This Row],[Median]]","v":0}]
[{"$f":"AAMC_Raw_Data_for_FY22[[#This Row],[Source]]&AAMC_Raw_Data_for_FY22[[#This Row],[Type]]&AAMC_Raw_Data_for_FY22[[#This Row],[School Subset]]&AAMC_Raw_Data_for_FY22[[#This Row],[Rank]]&AAMC_Raw_Data_for_FY22[[#This Row],[Degree]]&AAMC_Raw_Data_for_FY22[[#This Row],[Department / Specialty]]&\"L\"","v":"AAMCAcademicPrivateAssociatePhDCardiology: Invasive Non-interventional-Med.L"},"Cardiology: Invasive Non-interventional-Med.",3,"AAMC","Academic","Private","Associate","PhD","2021-2022",null,{"$f":"(((AAMC_Raw_Data_for_FY22[[#This Row],[Median]]-AAMC_Raw_Data_for_FY22[[#This Row],[25th]])/25)*5) + AAMC_Raw_Data_for_FY22[[#This Row],[25th]]","v":0},{"$f":"(((AAMC_Raw_Data_for_FY22[[#This Row],[Median]]-AAMC_Raw_Data_for_FY22[[#This Row],[25th]])/25)*10) + AAMC_Raw_Data_for_FY22[[#This Row],[25th]]","v":0},{"$f":"(((AAMC_Raw_Data_for_FY22[[#This Row],[Median]]-AAMC_Raw_Data_for_FY22[[#This Row],[25th]])/25)*15) + AAMC_Raw_Data_for_FY22[[#This Row],[25th]]","v":0},{"$f":"(((AAMC_Raw_Data_for_FY22[[#This Row],[Median]]-AAMC_Raw_Data_for_FY22[[#This Row],[25th]])/25)*20) + AAMC_Raw_Data_for_FY22[[#This Row],[25th]]","v":0},null,{"$f":"(((AAMC_Raw_Data_for_FY22[[#This Row],[75th]]-AAMC_Raw_Data_for_FY22[[#This Row],[Median]])/25)*5) + AAMC_Raw_Data_for_FY22[[#This Row],[Median]]","v":0},{"$f":"(((AAMC_Raw_Data_for_FY22[[#This Row],[75th]]-AAMC_Raw_Data_for_FY22[[#This Row],[Median]])/25)*10) + AAMC_Raw_Data_for_FY22[[#This Row],[Median]]","v":0},{"$f":"(((AAMC_Raw_Data_for_FY22[[#This Row],[75th]]-AAMC_Raw_Data_for_FY22[[#This Row],[Median]])/25)*15) + AAMC_Raw_Data_for_FY22[[#This Row],[Median]]","v":0},{"$f":"(((AAMC_Raw_Data_for_FY22[[#This Row],[75th]]-AAMC_Raw_Data_for_FY22[[#This Row],[Median]])/25)*20) + AAMC_Raw_Data_for_FY22[[#This Row],[Median]]","v":0},null,{"$f":"(((AAMC_Raw_Data_for_FY22[[#This Row],[75th]]-AAMC_Raw_Data_for_FY22[[#This Row],[Median]])/25)*30) + AAMC_Raw_Data_for_FY22[[#This Row],[Median]]","v":0},{"$f":"(((AAMC_Raw_Data_for_FY22[[#This Row],[75th]]-AAMC_Raw_Data_for_FY22[[#This Row],[Median]])/25)*35) + AAMC_Raw_Data_for_FY22[[#This Row],[Median]]","v":0},{"$f":"(((AAMC_Raw_Data_for_FY22[[#This Row],[75th]]-AAMC_Raw_Data_for_FY22[[#This Row],[Median]])/25)*40) + AAMC_Raw_Data_for_FY22[[#This Row],[Median]]","v":0}]
[{"$f":"AAMC_Raw_Data_for_FY22[[#This Row],[Source]]&AAMC_Raw_Data_for_FY22[[#This Row],[Type]]&AAMC_Raw_Data_for_FY22[[#This Row],[School Subset]]&AAMC_Raw_Data_for_FY22[[#This Row],[Rank]]&AAMC_Raw_Data_for_FY22[[#This Row],[Degree]]&AAMC_Raw_Data_for_FY22[[#This Row],[Department / Specialty]]&\"L\"","v":"AAMCAcademicPrivateProfessorPhDCardiology: Invasive Non-interventional-Med.L"},"Cardiology: Invasive Non-interventional-Med.",2,"AAMC","Academic","Private","Professor","PhD","2021-2022",null,{"$f":"(((AAMC_Raw_Data_for_FY22[[#This Row],[Median]]-AAMC_Raw_Data_for_FY22[[#This Row],[25th]])/25)*5) + AAMC_Raw_Data_for_FY22[[#This Row],[25th]]","v":0},{"$f":"(((AAMC_Raw_Data_for_FY22[[#This Row],[Median]]-AAMC_Raw_Data_for_FY22[[#This Row],[25th]])/25)*10) + AAMC_Raw_Data_for_FY22[[#This Row],[25th]]","v":0},{"$f":"(((AAMC_Raw_Data_for_FY22[[#This Row],[Median]]-AAMC_Raw_Data_for_FY22[[#This Row],[25th]])/25)*15) + AAMC_Raw_Data_for_FY22[[#This Row],[25th]]","v":0},{"$f":"(((AAMC_Raw_Data_for_FY22[[#This Row],[Median]]-AAMC_Raw_Data_for_FY22[[#This Row],[25th]])/25)*20) + AAMC_Raw_Data_for_FY22[[#This Row],[25th]]","v":0},null,{"$f":"(((AAMC_Raw_Data_for_FY22[[#This Row],[75th]]-AAMC_Raw_Data_for_FY22[[#This Row],[Median]])/25)*5) + AAMC_Raw_Data_for_FY22[[#This Row],[Median]]","v":0},{"$f":"(((AAMC_Raw_Data_for_FY22[[#This Row],[75th]]-AAMC_Raw_Data_for_FY22[[#This Row],[Median]])/25)*10) + AAMC_Raw_Data_for_FY22[[#This Row],[Median]]","v":0},{"$f":"(((AAMC_Raw_Data_for_FY22[[#This Row],[75th]]-AAMC_Raw_Data_for_FY22[[#This Row],[Median]])/25)*15) + AAMC_Raw_Data_for_FY22[[#This Row],[Median]]","v":0},{"$f":"(((AAMC_Raw_Data_for_FY22[[#This Row],[75th]]-AAMC_Raw_Data_for_FY22[[#This Row],[Median]])/25)*20) + AAMC_Raw_Data_for_FY22[[#This Row],[Median]]","v":0},null,{"$f":"(((AAMC_Raw_Data_for_FY22[[#This Row],[75th]]-AAMC_Raw_Data_for_FY22[[#This Row],[Median]])/25)*30) + AAMC_Raw_Data_for_FY22[[#This Row],[Median]]","v":0},{"$f":"(((AAMC_Raw_Data_for_FY22[[#This Row],[75th]]-AAMC_Raw_Data_for_FY22[[#This Row],[Median]])/25)*35) + AAMC_Raw_Data_for_FY22[[#This Row],[Median]]","v":0},{"$f":"(((AAMC_Raw_Data_for_FY22[[#This Row],[75th]]-AAMC_Raw_Data_for_FY22[[#This Row],[Median]])/25)*40) + AAMC_Raw_Data_for_FY22[[#This Row],[Median]]","v":0}]
[{"$f":"AAMC_Raw_Data_for_FY22[[#This Row],[Source]]&AAMC_Raw_Data_for_FY22[[#This Row],[Type]]&AAMC_Raw_Data_for_FY22[[#This Row],[School Subset]]&AAMC_Raw_Data_for_FY22[[#This Row],[Rank]]&AAMC_Raw_Data_for_FY22[[#This Row],[Degree]]&AAMC_Raw_Data_for_FY22[[#This Row],[Department / Specialty]]&\"L\"","v":"AAMCAcademicPrivateInstructorPhDCardiology: Non-invasive-Med.L"},"Cardiology: Non-invasive-Med.",5,"AAMC","Academic","Private","Instructor","PhD","2021-2022",70000,{"$f":"(((AAMC_Raw_Data_for_FY22[[#This Row],[Median]]-AAMC_Raw_Data_for_FY22[[#This Row],[25th]])/25)*5) + AAMC_Raw_Data_for_FY22[[#This Row],[25th]]","v":74000},{"$f":"(((AAMC_Raw_Data_for_FY22[[#This Row],[Median]]-AAMC_Raw_Data_for_FY22[[#This Row],[25th]])/25)*10) + AAMC_Raw_Data_for_FY22[[#This Row],[25th]]","v":78000},{"$f":"(((AAMC_Raw_Data_for_FY22[[#This Row],[Median]]-AAMC_Raw_Data_for_FY22[[#This Row],[25th]])/25)*15) + AAMC_Raw_Data_for_FY22[[#This Row],[25th]]","v":82000},{"$f":"(((AAMC_Raw_Data_for_FY22[[#This Row],[Median]]-AAMC_Raw_Data_for_FY22[[#This Row],[25th]])/25)*20) + AAMC_Raw_Data_for_FY22[[#This Row],[25th]]","v":86000},90000,{"$f":"(((AAMC_Raw_Data_for_FY22[[#This Row],[75th]]-AAMC_Raw_Data_for_FY22[[#This Row],[Median]])/25)*5) + AAMC_Raw_Data_for_FY22[[#This Row],[Median]]","v":92832.4},{"$f":"(((AAMC_Raw_Data_for_FY22[[#This Row],[75th]]-AAMC_Raw_Data_for_FY22[[#This Row],[Median]])/25)*10) + AAMC_Raw_Data_for_FY22[[#This Row],[Median]]","v":95664.8},{"$f":"(((AAMC_Raw_Data_for_FY22[[#This Row],[75th]]-AAMC_Raw_Data_for_FY22[[#This Row],[Median]])/25)*15) + AAMC_Raw_Data_for_FY22[[#This Row],[Median]]","v":98497.2},{"$f":"(((AAMC_Raw_Data_for_FY22[[#This Row],[75th]]-AAMC_Raw_Data_for_FY22[[#This Row],[Median]])/25)*20) + AAMC_Raw_Data_for_FY22[[#This Row],[Median]]","v":101329.60000000001},104162,{"$f":"(((AAMC_Raw_Data_for_FY22[[#This Row],[75th]]-AAMC_Raw_Data_for_FY22[[#This Row],[Median]])/25)*30) + AAMC_Raw_Data_for_FY22[[#This Row],[Median]]","v":106994.4},{"$f":"(((AAMC_Raw_Data_for_FY22[[#This Row],[75th]]-AAMC_Raw_Data_for_FY22[[#This Row],[Median]])/25)*35) + AAMC_Raw_Data_for_FY22[[#This Row],[Median]]","v":109826.8},{"$f":"(((AAMC_Raw_Data_for_FY22[[#This Row],[75th]]-AAMC_Raw_Data_for_FY22[[#This Row],[Median]])/25)*40) + AAMC_Raw_Data_for_FY22[[#This Row],[Median]]","v":112659.2}]
[{"$f":"AAMC_Raw_Data_for_FY22[[#This Row],[Source]]&AAMC_Raw_Data_for_FY22[[#This Row],[Type]]&AAMC_Raw_Data_for_FY22[[#This Row],[School Subset]]&AAMC_Raw_Data_for_FY22[[#This Row],[Rank]]&AAMC_Raw_Data_for_FY22[[#This Row],[Degree]]&AAMC_Raw_Data_for_FY22[[#This Row],[Department / Specialty]]&\"L\"","v":"AAMCAcademicPrivateAssistantPhDCardiology: Non-invasive-Med.L"},"Cardiology: Non-invasive-Med.",4,"AAMC","Academic","Private","Assistant","PhD","2021-2022",89153,{"$f":"(((AAMC_Raw_Data_for_FY22[[#This Row],[Median]]-AAMC_Raw_Data_for_FY22[[#This Row],[25th]])/25)*5) + AAMC_Raw_Data_for_FY22[[#This Row],[25th]]","v":92984.8},{"$f":"(((AAMC_Raw_Data_for_FY22[[#This Row],[Median]]-AAMC_Raw_Data_for_FY22[[#This Row],[25th]])/25)*10) + AAMC_Raw_Data_for_FY22[[#This Row],[25th]]","v":96816.6},{"$f":"(((AAMC_Raw_Data_for_FY22[[#This Row],[Median]]-AAMC_Raw_Data_for_FY22[[#This Row],[25th]])/25)*15) + AAMC_Raw_Data_for_FY22[[#This Row],[25th]]","v":100648.4},{"$f":"(((AAMC_Raw_Data_for_FY22[[#This Row],[Median]]-AAMC_Raw_Data_for_FY22[[#This Row],[25th]])/25)*20) + AAMC_Raw_Data_for_FY22[[#This Row],[25th]]","v":104480.2},108312,{"$f":"(((AAMC_Raw_Data_for_FY22[[#This Row],[75th]]-AAMC_Raw_Data_for_FY22[[#This Row],[Median]])/25)*5) + AAMC_Raw_Data_for_FY22[[#This Row],[Median]]","v":113634.2},{"$f":"(((AAMC_Raw_Data_for_FY22[[#This Row],[75th]]-AAMC_Raw_Data_for_FY22[[#This Row],[Median]])/25)*10) + AAMC_Raw_Data_for_FY22[[#This Row],[Median]]","v":118956.4},{"$f":"(((AAMC_Raw_Data_for_FY22[[#This Row],[75th]]-AAMC_Raw_Data_for_FY22[[#This Row],[Median]])/25)*15) + AAMC_Raw_Data_for_FY22[[#This Row],[Median]]","v":124278.6},{"$f":"(((AAMC_Raw_Data_for_FY22[[#This Row],[75th]]-AAMC_Raw_Data_for_FY22[[#This Row],[Median]])/25)*20) + AAMC_Raw_Data_for_FY22[[#This Row],[Median]]","v":129600.8},134923,{"$f":"(((AAMC_Raw_Data_for_FY22[[#This Row],[75th]]-AAMC_Raw_Data_for_FY22[[#This Row],[Median]])/25)*30) + AAMC_Raw_Data_for_FY22[[#This Row],[Median]]","v":140245.20000000001},{"$f":"(((AAMC_Raw_Data_for_FY22[[#This Row],[75th]]-AAMC_Raw_Data_for_FY22[[#This Row],[Median]])/25)*35) + AAMC_Raw_Data_for_FY22[[#This Row],[Median]]","v":145567.4},{"$f":"(((AAMC_Raw_Data_for_FY22[[#This Row],[75th]]-AAMC_Raw_Data_for_FY22[[#This Row],[Median]])/25)*40) + AAMC_Raw_Data_for_FY22[[#This Row],[Median]]","v":150889.60000000001}]
[{"$f":"AAMC_Raw_Data_for_FY22[[#This Row],[Source]]&AAMC_Raw_Data_for_FY22[[#This Row],[Type]]&AAMC_Raw_Data_for_FY22[[#This Row],[School Subset]]&AAMC_Raw_Data_for_FY22[[#This Row],[Rank]]&AAMC_Raw_Data_for_FY22[[#This Row],[Degree]]&AAMC_Raw_Data_for_FY22[[#This Row],[Department / Specialty]]&\"L\"","v":"AAMCAcademicPrivateAssociatePhDCardiology: Non-invasive-Med.L"},"Cardiology: Non-invasive-Med.",3,"AAMC","Academic","Private","Associate","PhD","2021-2022",125250,{"$f":"(((AAMC_Raw_Data_for_FY22[[#This Row],[Median]]-AAMC_Raw_Data_for_FY22[[#This Row],[25th]])/25)*5) + AAMC_Raw_Data_for_FY22[[#This Row],[25th]]","v":130200},{"$f":"(((AAMC_Raw_Data_for_FY22[[#This Row],[Median]]-AAMC_Raw_Data_for_FY22[[#This Row],[25th]])/25)*10) + AAMC_Raw_Data_for_FY22[[#This Row],[25th]]","v":135150},{"$f":"(((AAMC_Raw_Data_for_FY22[[#This Row],[Median]]-AAMC_Raw_Data_for_FY22[[#This Row],[25th]])/25)*15) + AAMC_Raw_Data_for_FY22[[#This Row],[25th]]","v":140100},{"$f":"(((AAMC_Raw_Data_for_FY22[[#This Row],[Median]]-AAMC_Raw_Data_for_FY22[[#This Row],[25th]])/25)*20) + AAMC_Raw_Data_for_FY22[[#This Row],[25th]]","v":145050},150000,{"$f":"(((AAMC_Raw_Data_for_FY22[[#This Row],[75th]]-AAMC_Raw_Data_for_FY22[[#This Row],[Median]])/25)*5) + AAMC_Raw_Data_for_FY22[[#This Row],[Median]]","v":158698.20000000001},{"$f":"(((AAMC_Raw_Data_for_FY22[[#This Row],[75th]]-AAMC_Raw_Data_for_FY22[[#This Row],[Median]])/25)*10) + AAMC_Raw_Data_for_FY22[[#This Row],[Median]]","v":167396.4},{"$f":"(((AAMC_Raw_Data_for_FY22[[#This Row],[75th]]-AAMC_Raw_Data_for_FY22[[#This Row],[Median]])/25)*15) + AAMC_Raw_Data_for_FY22[[#This Row],[Median]]","v":176094.6},{"$f":"(((AAMC_Raw_Data_for_FY22[[#This Row],[75th]]-AAMC_Raw_Data_for_FY22[[#This Row],[Median]])/25)*20) + AAMC_Raw_Data_for_FY22[[#This Row],[Median]]","v":184792.8},193491,{"$f":"(((AAMC_Raw_Data_for_FY22[[#This Row],[75th]]-AAMC_Raw_Data_for_FY22[[#This Row],[Median]])/25)*30) + AAMC_Raw_Data_for_FY22[[#This Row],[Median]]","v":202189.2},{"$f":"(((AAMC_Raw_Data_for_FY22[[#This Row],[75th]]-AAMC_Raw_Data_for_FY22[[#This Row],[Median]])/25)*35) + AAMC_Raw_Data_for_FY22[[#This Row],[Median]]","v":210887.4},{"$f":"(((AAMC_Raw_Data_for_FY22[[#This Row],[75th]]-AAMC_Raw_Data_for_FY22[[#This Row],[Median]])/25)*40) + AAMC_Raw_Data_for_FY22[[#This Row],[Median]]","v":219585.6}]
[{"$f":"AAMC_Raw_Data_for_FY22[[#This Row],[Source]]&AAMC_Raw_Data_for_FY22[[#This Row],[Type]]&AAMC_Raw_Data_for_FY22[[#This Row],[School Subset]]&AAMC_Raw_Data_for_FY22[[#This Row],[Rank]]&AAMC_Raw_Data_for_FY22[[#This Row],[Degree]]&AAMC_Raw_Data_for_FY22[[#This Row],[Department / Specialty]]&\"L\"","v":"AAMCAcademicPrivateProfessorPhDCardiology: Non-invasive-Med.L"},"Cardiology: Non-invasive-Med.",2,"AAMC","Academic","Private","Professor","PhD","2021-2022",209466,{"$f":"(((AAMC_Raw_Data_for_FY22[[#This Row],[Median]]-AAMC_Raw_Data_for_FY22[[#This Row],[25th]])/25)*5) + AAMC_Raw_Data_for_FY22[[#This Row],[25th]]","v":218783.4},{"$f":"(((AAMC_Raw_Data_for_FY22[[#This Row],[Median]]-AAMC_Raw_Data_for_FY22[[#This Row],[25th]])/25)*10) + AAMC_Raw_Data_for_FY22[[#This Row],[25th]]","v":228100.8},{"$f":"(((AAMC_Raw_Data_for_FY22[[#This Row],[Median]]-AAMC_Raw_Data_for_FY22[[#This Row],[25th]])/25)*15) + AAMC_Raw_Data_for_FY22[[#This Row],[25th]]","v":237418.2},{"$f":"(((AAMC_Raw_Data_for_FY22[[#This Row],[Median]]-AAMC_Raw_Data_for_FY22[[#This Row],[25th]])/25)*20) + AAMC_Raw_Data_for_FY22[[#This Row],[25th]]","v":246735.6},256053,{"$f":"(((AAMC_Raw_Data_for_FY22[[#This Row],[75th]]-AAMC_Raw_Data_for_FY22[[#This Row],[Median]])/25)*5) + AAMC_Raw_Data_for_FY22[[#This Row],[Median]]","v":260530.8},{"$f":"(((AAMC_Raw_Data_for_FY22[[#This Row],[75th]]-AAMC_Raw_Data_for_FY22[[#This Row],[Median]])/25)*10) + AAMC_Raw_Data_for_FY22[[#This Row],[Median]]","v":265008.59999999998},{"$f":"(((AAMC_Raw_Data_for_FY22[[#This Row],[75th]]-AAMC_Raw_Data_for_FY22[[#This Row],[Median]])/25)*15) + AAMC_Raw_Data_for_FY22[[#This Row],[Median]]","v":269486.40000000002},{"$f":"(((AAMC_Raw_Data_for_FY22[[#This Row],[75th]]-AAMC_Raw_Data_for_FY22[[#This Row],[Median]])/25)*20) + AAMC_Raw_Data_for_FY22[[#This Row],[Median]]","v":273964.2},278442,{"$f":"(((AAMC_Raw_Data_for_FY22[[#This Row],[75th]]-AAMC_Raw_Data_for_FY22[[#This Row],[Median]])/25)*30) + AAMC_Raw_Data_for_FY22[[#This Row],[Median]]","v":282919.8},{"$f":"(((AAMC_Raw_Data_for_FY22[[#This Row],[75th]]-AAMC_Raw_Data_for_FY22[[#This Row],[Median]])/25)*35) + AAMC_Raw_Data_for_FY22[[#This Row],[Median]]","v":287397.59999999998},{"$f":"(((AAMC_Raw_Data_for_FY22[[#This Row],[75th]]-AAMC_Raw_Data_for_FY22[[#This Row],[Median]])/25)*40) + AAMC_Raw_Data_for_FY22[[#This Row],[Median]]","v":291875.40000000002}]
[{"$f":"AAMC_Raw_Data_for_FY22[[#This Row],[Source]]&AAMC_Raw_Data_for_FY22[[#This Row],[Type]]&AAMC_Raw_Data_for_FY22[[#This Row],[School Subset]]&AAMC_Raw_Data_for_FY22[[#This Row],[Rank]]&AAMC_Raw_Data_for_FY22[[#This Row],[Degree]]&AAMC_Raw_Data_for_FY22[[#This Row],[Department / Specialty]]&\"L\"","v":"AAMCAcademicPrivateAssistantPhDCritical/Intensive Care-Med.L"},"Critical/Intensive Care-Med.",4,"AAMC","Academic","Private","Assistant","PhD","2021-2022",null,{"$f":"(((AAMC_Raw_Data_for_FY22[[#This Row],[Median]]-AAMC_Raw_Data_for_FY22[[#This Row],[25th]])/25)*5) + AAMC_Raw_Data_for_FY22[[#This Row],[25th]]","v":0},{"$f":"(((AAMC_Raw_Data_for_FY22[[#This Row],[Median]]-AAMC_Raw_Data_for_FY22[[#This Row],[25th]])/25)*10) + AAMC_Raw_Data_for_FY22[[#This Row],[25th]]","v":0},{"$f":"(((AAMC_Raw_Data_for_FY22[[#This Row],[Median]]-AAMC_Raw_Data_for_FY22[[#This Row],[25th]])/25)*15) + AAMC_Raw_Data_for_FY22[[#This Row],[25th]]","v":0},{"$f":"(((AAMC_Raw_Data_for_FY22[[#This Row],[Median]]-AAMC_Raw_Data_for_FY22[[#This Row],[25th]])/25)*20) + AAMC_Raw_Data_for_FY22[[#This Row],[25th]]","v":0},null,{"$f":"(((AAMC_Raw_Data_for_FY22[[#This Row],[75th]]-AAMC_Raw_Data_for_FY22[[#This Row],[Median]])/25)*5) + AAMC_Raw_Data_for_FY22[[#This Row],[Median]]","v":0},{"$f":"(((AAMC_Raw_Data_for_FY22[[#This Row],[75th]]-AAMC_Raw_Data_for_FY22[[#This Row],[Median]])/25)*10) + AAMC_Raw_Data_for_FY22[[#This Row],[Median]]","v":0},{"$f":"(((AAMC_Raw_Data_for_FY22[[#This Row],[75th]]-AAMC_Raw_Data_for_FY22[[#This Row],[Median]])/25)*15) + AAMC_Raw_Data_for_FY22[[#This Row],[Median]]","v":0},{"$f":"(((AAMC_Raw_Data_for_FY22[[#This Row],[75th]]-AAMC_Raw_Data_for_FY22[[#This Row],[Median]])/25)*20) + AAMC_Raw_Data_for_FY22[[#This Row],[Median]]","v":0},null,{"$f":"(((AAMC_Raw_Data_for_FY22[[#This Row],[75th]]-AAMC_Raw_Data_for_FY22[[#This Row],[Median]])/25)*30) + AAMC_Raw_Data_for_FY22[[#This Row],[Median]]","v":0},{"$f":"(((AAMC_Raw_Data_for_FY22[[#This Row],[75th]]-AAMC_Raw_Data_for_FY22[[#This Row],[Median]])/25)*35) + AAMC_Raw_Data_for_FY22[[#This Row],[Median]]","v":0},{"$f":"(((AAMC_Raw_Data_for_FY22[[#This Row],[75th]]-AAMC_Raw_Data_for_FY22[[#This Row],[Median]])/25)*40) + AAMC_Raw_Data_for_FY22[[#This Row],[Median]]","v":0}]
[{"$f":"AAMC_Raw_Data_for_FY22[[#This Row],[Source]]&AAMC_Raw_Data_for_FY22[[#This Row],[Type]]&AAMC_Raw_Data_for_FY22[[#This Row],[School Subset]]&AAMC_Raw_Data_for_FY22[[#This Row],[Rank]]&AAMC_Raw_Data_for_FY22[[#This Row],[Degree]]&AAMC_Raw_Data_for_FY22[[#This Row],[Department / Specialty]]&\"L\"","v":"AAMCAcademicPrivateProfessorPhDCritical/Intensive Care-Med.L"},"Critical/Intensive Care-Med.",2,"AAMC","Academic","Private","Professor","PhD","2021-2022",null,{"$f":"(((AAMC_Raw_Data_for_FY22[[#This Row],[Median]]-AAMC_Raw_Data_for_FY22[[#This Row],[25th]])/25)*5) + AAMC_Raw_Data_for_FY22[[#This Row],[25th]]","v":0},{"$f":"(((AAMC_Raw_Data_for_FY22[[#This Row],[Median]]-AAMC_Raw_Data_for_FY22[[#This Row],[25th]])/25)*10) + AAMC_Raw_Data_for_FY22[[#This Row],[25th]]","v":0},{"$f":"(((AAMC_Raw_Data_for_FY22[[#This Row],[Median]]-AAMC_Raw_Data_for_FY22[[#This Row],[25th]])/25)*15) + AAMC_Raw_Data_for_FY22[[#This Row],[25th]]","v":0},{"$f":"(((AAMC_Raw_Data_for_FY22[[#This Row],[Median]]-AAMC_Raw_Data_for_FY22[[#This Row],[25th]])/25)*20) + AAMC_Raw_Data_for_FY22[[#This Row],[25th]]","v":0},null,{"$f":"(((AAMC_Raw_Data_for_FY22[[#This Row],[75th]]-AAMC_Raw_Data_for_FY22[[#This Row],[Median]])/25)*5) + AAMC_Raw_Data_for_FY22[[#This Row],[Median]]","v":0},{"$f":"(((AAMC_Raw_Data_for_FY22[[#This Row],[75th]]-AAMC_Raw_Data_for_FY22[[#This Row],[Median]])/25)*10) + AAMC_Raw_Data_for_FY22[[#This Row],[Median]]","v":0},{"$f":"(((AAMC_Raw_Data_for_FY22[[#This Row],[75th]]-AAMC_Raw_Data_for_FY22[[#This Row],[Median]])/25)*15) + AAMC_Raw_Data_for_FY22[[#This Row],[Median]]","v":0},{"$f":"(((AAMC_Raw_Data_for_FY22[[#This Row],[75th]]-AAMC_Raw_Data_for_FY22[[#This Row],[Median]])/25)*20) + AAMC_Raw_Data_for_FY22[[#This Row],[Median]]","v":0},null,{"$f":"(((AAMC_Raw_Data_for_FY22[[#This Row],[75th]]-AAMC_Raw_Data_for_FY22[[#This Row],[Median]])/25)*30) + AAMC_Raw_Data_for_FY22[[#This Row],[Median]]","v":0},{"$f":"(((AAMC_Raw_Data_for_FY22[[#This Row],[75th]]-AAMC_Raw_Data_for_FY22[[#This Row],[Median]])/25)*35) + AAMC_Raw_Data_for_FY22[[#This Row],[Median]]","v":0},{"$f":"(((AAMC_Raw_Data_for_FY22[[#This Row],[75th]]-AAMC_Raw_Data_for_FY22[[#This Row],[Median]])/25)*40) + AAMC_Raw_Data_for_FY22[[#This Row],[Median]]","v":0}]
[{"$f":"AAMC_Raw_Data_for_FY22[[#This Row],[Source]]&AAMC_Raw_Data_for_FY22[[#This Row],[Type]]&AAMC_Raw_Data_for_FY22[[#This Row],[School Subset]]&AAMC_Raw_Data_for_FY22[[#This Row],[Rank]]&AAMC_Raw_Data_for_FY22[[#This Row],[Degree]]&AAMC_Raw_Data_for_FY22[[#This Row],[Department / Specialty]]&\"L\"","v":"AAMCAcademicPrivateInstructorPhDEndocrinology-Med.L"},"Endocrinology-Med.",5,"AAMC","Academic","Private","Instructor","PhD","2021-2022",82986,{"$f":"(((AAMC_Raw_Data_for_FY22[[#This Row],[Median]]-AAMC_Raw_Data_for_FY22[[#This Row],[25th]])/25)*5) + AAMC_Raw_Data_for_FY22[[#This Row],[25th]]","v":86208.8},{"$f":"(((AAMC_Raw_Data_for_FY22[[#This Row],[Median]]-AAMC_Raw_Data_for_FY22[[#This Row],[25th]])/25)*10) + AAMC_Raw_Data_for_FY22[[#This Row],[25th]]","v":89431.6},{"$f":"(((AAMC_Raw_Data_for_FY22[[#This Row],[Median]]-AAMC_Raw_Data_for_FY22[[#This Row],[25th]])/25)*15) + AAMC_Raw_Data_for_FY22[[#This Row],[25th]]","v":92654.399999999994},{"$f":"(((AAMC_Raw_Data_for_FY22[[#This Row],[Median]]-AAMC_Raw_Data_for_FY22[[#This Row],[25th]])/25)*20) + AAMC_Raw_Data_for_FY22[[#This Row],[25th]]","v":95877.2},99100,{"$f":"(((AAMC_Raw_Data_for_FY22[[#This Row],[75th]]-AAMC_Raw_Data_for_FY22[[#This Row],[Median]])/25)*5) + AAMC_Raw_Data_for_FY22[[#This Row],[Median]]","v":104319.8},{"$f":"(((AAMC_Raw_Data_for_FY22[[#This Row],[75th]]-AAMC_Raw_Data_for_FY22[[#This Row],[Median]])/25)*10) + AAMC_Raw_Data_for_FY22[[#This Row],[Median]]","v":109539.6},{"$f":"(((AAMC_Raw_Data_for_FY22[[#This Row],[75th]]-AAMC_Raw_Data_for_FY22[[#This Row],[Median]])/25)*15) + AAMC_Raw_Data_for_FY22[[#This Row],[Median]]","v":114759.4},{"$f":"(((AAMC_Raw_Data_for_FY22[[#This Row],[75th]]-AAMC_Raw_Data_for_FY22[[#This Row],[Median]])/25)*20) + AAMC_Raw_Data_for_FY22[[#This Row],[Median]]","v":119979.2},125199,{"$f":"(((AAMC_Raw_Data_for_FY22[[#This Row],[75th]]-AAMC_Raw_Data_for_FY22[[#This Row],[Median]])/25)*30) + AAMC_Raw_Data_for_FY22[[#This Row],[Median]]","v":130418.8},{"$f":"(((AAMC_Raw_Data_for_FY22[[#This Row],[75th]]-AAMC_Raw_Data_for_FY22[[#This Row],[Median]])/25)*35) + AAMC_Raw_Data_for_FY22[[#This Row],[Median]]","v":135638.6},{"$f":"(((AAMC_Raw_Data_for_FY22[[#This Row],[75th]]-AAMC_Raw_Data_for_FY22[[#This Row],[Median]])/25)*40) + AAMC_Raw_Data_for_FY22[[#This Row],[Median]]","v":140858.4}]
[{"$f":"AAMC_Raw_Data_for_FY22[[#This Row],[Source]]&AAMC_Raw_Data_for_FY22[[#This Row],[Type]]&AAMC_Raw_Data_for_FY22[[#This Row],[School Subset]]&AAMC_Raw_Data_for_FY22[[#This Row],[Rank]]&AAMC_Raw_Data_for_FY22[[#This Row],[Degree]]&AAMC_Raw_Data_for_FY22[[#This Row],[Department / Specialty]]&\"L\"","v":"AAMCAcademicPrivateAssistantPhDEndocrinology-Med.L"},"Endocrinology-Med.",4,"AAMC","Academic","Private","Assistant","PhD","2021-2022",101559,{"$f":"(((AAMC_Raw_Data_for_FY22[[#This Row],[Median]]-AAMC_Raw_Data_for_FY22[[#This Row],[25th]])/25)*5) + AAMC_Raw_Data_for_FY22[[#This Row],[25th]]","v":106397.8},{"$f":"(((AAMC_Raw_Data_for_FY22[[#This Row],[Median]]-AAMC_Raw_Data_for_FY22[[#This Row],[25th]])/25)*10) + AAMC_Raw_Data_for_FY22[[#This Row],[25th]]","v":111236.6},{"$f":"(((AAMC_Raw_Data_for_FY22[[#This Row],[Median]]-AAMC_Raw_Data_for_FY22[[#This Row],[25th]])/25)*15) + AAMC_Raw_Data_for_FY22[[#This Row],[25th]]","v":116075.4},{"$f":"(((AAMC_Raw_Data_for_FY22[[#This Row],[Median]]-AAMC_Raw_Data_for_FY22[[#This Row],[25th]])/25)*20) + AAMC_Raw_Data_for_FY22[[#This Row],[25th]]","v":120914.2},125753,{"$f":"(((AAMC_Raw_Data_for_FY22[[#This Row],[75th]]-AAMC_Raw_Data_for_FY22[[#This Row],[Median]])/25)*5) + AAMC_Raw_Data_for_FY22[[#This Row],[Median]]","v":130222},{"$f":"(((AAMC_Raw_Data_for_FY22[[#This Row],[75th]]-AAMC_Raw_Data_for_FY22[[#This Row],[Median]])/25)*10) + AAMC_Raw_Data_for_FY22[[#This Row],[Median]]","v":134691},{"$f":"(((AAMC_Raw_Data_for_FY22[[#This Row],[75th]]-AAMC_Raw_Data_for_FY22[[#This Row],[Median]])/25)*15) + AAMC_Raw_Data_for_FY22[[#This Row],[Median]]","v":139160},{"$f":"(((AAMC_Raw_Data_for_FY22[[#This Row],[75th]]-AAMC_Raw_Data_for_FY22[[#This Row],[Median]])/25)*20) + AAMC_Raw_Data_for_FY22[[#This Row],[Median]]","v":143629},148098,{"$f":"(((AAMC_Raw_Data_for_FY22[[#This Row],[75th]]-AAMC_Raw_Data_for_FY22[[#This Row],[Median]])/25)*30) + AAMC_Raw_Data_for_FY22[[#This Row],[Median]]","v":152567},{"$f":"(((AAMC_Raw_Data_for_FY22[[#This Row],[75th]]-AAMC_Raw_Data_for_FY22[[#This Row],[Median]])/25)*35) + AAMC_Raw_Data_for_FY22[[#This Row],[Median]]","v":157036},{"$f":"(((AAMC_Raw_Data_for_FY22[[#This Row],[75th]]-AAMC_Raw_Data_for_FY22[[#This Row],[Median]])/25)*40) + AAMC_Raw_Data_for_FY22[[#This Row],[Median]]","v":161505}]
[{"$f":"AAMC_Raw_Data_for_FY22[[#This Row],[Source]]&AAMC_Raw_Data_for_FY22[[#This Row],[Type]]&AAMC_Raw_Data_for_FY22[[#This Row],[School Subset]]&AAMC_Raw_Data_for_FY22[[#This Row],[Rank]]&AAMC_Raw_Data_for_FY22[[#This Row],[Degree]]&AAMC_Raw_Data_for_FY22[[#This Row],[Department / Specialty]]&\"L\"","v":"AAMCAcademicPrivateAssociatePhDEndocrinology-Med.L"},"Endocrinology-Med.",3,"AAMC","Academic","Private","Associate","PhD","2021-2022",123559,{"$f":"(((AAMC_Raw_Data_for_FY22[[#This Row],[Median]]-AAMC_Raw_Data_for_FY22[[#This Row],[25th]])/25)*5) + AAMC_Raw_Data_for_FY22[[#This Row],[25th]]","v":130015.2},{"$f":"(((AAMC_Raw_Data_for_FY22[[#This Row],[Median]]-AAMC_Raw_Data_for_FY22[[#This Row],[25th]])/25)*10) + AAMC_Raw_Data_for_FY22[[#This Row],[25th]]","v":136471.4},{"$f":"(((AAMC_Raw_Data_for_FY22[[#This Row],[Median]]-AAMC_Raw_Data_for_FY22[[#This Row],[25th]])/25)*15) + AAMC_Raw_Data_for_FY22[[#This Row],[25th]]","v":142927.6},{"$f":"(((AAMC_Raw_Data_for_FY22[[#This Row],[Median]]-AAMC_Raw_Data_for_FY22[[#This Row],[25th]])/25)*20) + AAMC_Raw_Data_for_FY22[[#This Row],[25th]]","v":149383.79999999999},155840,{"$f":"(((AAMC_Raw_Data_for_FY22[[#This Row],[75th]]-AAMC_Raw_Data_for_FY22[[#This Row],[Median]])/25)*5) + AAMC_Raw_Data_for_FY22[[#This Row],[Median]]","v":161672},{"$f":"(((AAMC_Raw_Data_for_FY22[[#This Row],[75th]]-AAMC_Raw_Data_for_FY22[[#This Row],[Median]])/25)*10) + AAMC_Raw_Data_for_FY22[[#This Row],[Median]]","v":167504},{"$f":"(((AAMC_Raw_Data_for_FY22[[#This Row],[75th]]-AAMC_Raw_Data_for_FY22[[#This Row],[Median]])/25)*15) + AAMC_Raw_Data_for_FY22[[#This Row],[Median]]","v":173336},{"$f":"(((AAMC_Raw_Data_for_FY22[[#This Row],[75th]]-AAMC_Raw_Data_for_FY22[[#This Row],[Median]])/25)*20) + AAMC_Raw_Data_for_FY22[[#This Row],[Median]]","v":179168},185000,{"$f":"(((AAMC_Raw_Data_for_FY22[[#This Row],[75th]]-AAMC_Raw_Data_for_FY22[[#This Row],[Median]])/25)*30) + AAMC_Raw_Data_for_FY22[[#This Row],[Median]]","v":190832},{"$f":"(((AAMC_Raw_Data_for_FY22[[#This Row],[75th]]-AAMC_Raw_Data_for_FY22[[#This Row],[Median]])/25)*35) + AAMC_Raw_Data_for_FY22[[#This Row],[Median]]","v":196664},{"$f":"(((AAMC_Raw_Data_for_FY22[[#This Row],[75th]]-AAMC_Raw_Data_for_FY22[[#This Row],[Median]])/25)*40) + AAMC_Raw_Data_for_FY22[[#This Row],[Median]]","v":202496}]
[{"$f":"AAMC_Raw_Data_for_FY22[[#This Row],[Source]]&AAMC_Raw_Data_for_FY22[[#This Row],[Type]]&AAMC_Raw_Data_for_FY22[[#This Row],[School Subset]]&AAMC_Raw_Data_for_FY22[[#This Row],[Rank]]&AAMC_Raw_Data_for_FY22[[#This Row],[Degree]]&AAMC_Raw_Data_for_FY22[[#This Row],[Department / Specialty]]&\"L\"","v":"AAMCAcademicPrivateProfessorPhDEndocrinology-Med.L"},"Endocrinology-Med.",2,"AAMC","Academic","Private","Professor","PhD","2021-2022",186262,{"$f":"(((AAMC_Raw_Data_for_FY22[[#This Row],[Median]]-AAMC_Raw_Data_for_FY22[[#This Row],[25th]])/25)*5) + AAMC_Raw_Data_for_FY22[[#This Row],[25th]]","v":192591.4},{"$f":"(((AAMC_Raw_Data_for_FY22[[#This Row],[Median]]-AAMC_Raw_Data_for_FY22[[#This Row],[25th]])/25)*10) + AAMC_Raw_Data_for_FY22[[#This Row],[25th]]","v":198920.8},{"$f":"(((AAMC_Raw_Data_for_FY22[[#This Row],[Median]]-AAMC_Raw_Data_for_FY22[[#This Row],[25th]])/25)*15) + AAMC_Raw_Data_for_FY22[[#This Row],[25th]]","v":205250.2},{"$f":"(((AAMC_Raw_Data_for_FY22[[#This Row],[Median]]-AAMC_Raw_Data_for_FY22[[#This Row],[25th]])/25)*20) + AAMC_Raw_Data_for_FY22[[#This Row],[25th]]","v":211579.6},217909,{"$f":"(((AAMC_Raw_Data_for_FY22[[#This Row],[75th]]-AAMC_Raw_Data_for_FY22[[#This Row],[Median]])/25)*5) + AAMC_Raw_Data_for_FY22[[#This Row],[Median]]","v":231763.8},{"$f":"(((AAMC_Raw_Data_for_FY22[[#This Row],[75th]]-AAMC_Raw_Data_for_FY22[[#This Row],[Median]])/25)*10) + AAMC_Raw_Data_for_FY22[[#This Row],[Median]]","v":245618.6},{"$f":"(((AAMC_Raw_Data_for_FY22[[#This Row],[75th]]-AAMC_Raw_Data_for_FY22[[#This Row],[Median]])/25)*15) + AAMC_Raw_Data_for_FY22[[#This Row],[Median]]","v":259473.4},{"$f":"(((AAMC_Raw_Data_for_FY22[[#This Row],[75th]]-AAMC_Raw_Data_for_FY22[[#This Row],[Median]])/25)*20) + AAMC_Raw_Data_for_FY22[[#This Row],[Median]]","v":273328.2},287183,{"$f":"(((AAMC_Raw_Data_for_FY22[[#This Row],[75th]]-AAMC_Raw_Data_for_FY22[[#This Row],[Median]])/25)*30) + AAMC_Raw_Data_for_FY22[[#This Row],[Median]]","v":301037.8},{"$f":"(((AAMC_Raw_Data_for_FY22[[#This Row],[75th]]-AAMC_Raw_Data_for_FY22[[#This Row],[Median]])/25)*35) + AAMC_Raw_Data_for_FY22[[#This Row],[Median]]","v":314892.59999999998},{"$f":"(((AAMC_Raw_Data_for_FY22[[#This Row],[75th]]-AAMC_Raw_Data_for_FY22[[#This Row],[Median]])/25)*40) + AAMC_Raw_Data_for_FY22[[#This Row],[Median]]","v":328747.40000000002}]
[{"$f":"AAMC_Raw_Data_for_FY22[[#This Row],[Source]]&AAMC_Raw_Data_for_FY22[[#This Row],[Type]]&AAMC_Raw_Data_for_FY22[[#This Row],[School Subset]]&AAMC_Raw_Data_for_FY22[[#This Row],[Rank]]&AAMC_Raw_Data_for_FY22[[#This Row],[Degree]]&AAMC_Raw_Data_for_FY22[[#This Row],[Department / Specialty]]&\"L\"","v":"AAMCAcademicPrivateInstructorPhDGastroenterology-Med.L"},"Gastroenterology-Med.",5,"AAMC","Academic","Private","Instructor","PhD","2021-2022",69671,{"$f":"(((AAMC_Raw_Data_for_FY22[[#This Row],[Median]]-AAMC_Raw_Data_for_FY22[[#This Row],[25th]])/25)*5) + AAMC_Raw_Data_for_FY22[[#This Row],[25th]]","v":74606.8},{"$f":"(((AAMC_Raw_Data_for_FY22[[#This Row],[Median]]-AAMC_Raw_Data_for_FY22[[#This Row],[25th]])/25)*10) + AAMC_Raw_Data_for_FY22[[#This Row],[25th]]","v":79542.600000000006},{"$f":"(((AAMC_Raw_Data_for_FY22[[#This Row],[Median]]-AAMC_Raw_Data_for_FY22[[#This Row],[25th]])/25)*15) + AAMC_Raw_Data_for_FY22[[#This Row],[25th]]","v":84478.399999999994},{"$f":"(((AAMC_Raw_Data_for_FY22[[#This Row],[Median]]-AAMC_Raw_Data_for_FY22[[#This Row],[25th]])/25)*20) + AAMC_Raw_Data_for_FY22[[#This Row],[25th]]","v":89414.2},94350,{"$f":"(((AAMC_Raw_Data_for_FY22[[#This Row],[75th]]-AAMC_Raw_Data_for_FY22[[#This Row],[Median]])/25)*5) + AAMC_Raw_Data_for_FY22[[#This Row],[Median]]","v":96769},{"$f":"(((AAMC_Raw_Data_for_FY22[[#This Row],[75th]]-AAMC_Raw_Data_for_FY22[[#This Row],[Median]])/25)*10) + AAMC_Raw_Data_for_FY22[[#This Row],[Median]]","v":99188},{"$f":"(((AAMC_Raw_Data_for_FY22[[#This Row],[75th]]-AAMC_Raw_Data_for_FY22[[#This Row],[Median]])/25)*15) + AAMC_Raw_Data_for_FY22[[#This Row],[Median]]","v":101607},{"$f":"(((AAMC_Raw_Data_for_FY22[[#This Row],[75th]]-AAMC_Raw_Data_for_FY22[[#This Row],[Median]])/25)*20) + AAMC_Raw_Data_for_FY22[[#This Row],[Median]]","v":104026},106445,{"$f":"(((AAMC_Raw_Data_for_FY22[[#This Row],[75th]]-AAMC_Raw_Data_for_FY22[[#This Row],[Median]])/25)*30) + AAMC_Raw_Data_for_FY22[[#This Row],[Median]]","v":108864},{"$f":"(((AAMC_Raw_Data_for_FY22[[#This Row],[75th]]-AAMC_Raw_Data_for_FY22[[#This Row],[Median]])/25)*35) + AAMC_Raw_Data_for_FY22[[#This Row],[Median]]","v":111283},{"$f":"(((AAMC_Raw_Data_for_FY22[[#This Row],[75th]]-AAMC_Raw_Data_for_FY22[[#This Row],[Median]])/25)*40) + AAMC_Raw_Data_for_FY22[[#This Row],[Median]]","v":113702}]
[{"$f":"AAMC_Raw_Data_for_FY22[[#This Row],[Source]]&AAMC_Raw_Data_for_FY22[[#This Row],[Type]]&AAMC_Raw_Data_for_FY22[[#This Row],[School Subset]]&AAMC_Raw_Data_for_FY22[[#This Row],[Rank]]&AAMC_Raw_Data_for_FY22[[#This Row],[Degree]]&AAMC_Raw_Data_for_FY22[[#This Row],[Department / Specialty]]&\"L\"","v":"AAMCAcademicPrivateAssistantPhDGastroenterology-Med.L"},"Gastroenterology-Med.",4,"AAMC","Academic","Private","Assistant","PhD","2021-2022",97879,{"$f":"(((AAMC_Raw_Data_for_FY22[[#This Row],[Median]]-AAMC_Raw_Data_for_FY22[[#This Row],[25th]])/25)*5) + AAMC_Raw_Data_for_FY22[[#This Row],[25th]]","v":102333.4},{"$f":"(((AAMC_Raw_Data_for_FY22[[#This Row],[Median]]-AAMC_Raw_Data_for_FY22[[#This Row],[25th]])/25)*10) + AAMC_Raw_Data_for_FY22[[#This Row],[25th]]","v":106787.8},{"$f":"(((AAMC_Raw_Data_for_FY22[[#This Row],[Median]]-AAMC_Raw_Data_for_FY22[[#This Row],[25th]])/25)*15) + AAMC_Raw_Data_for_FY22[[#This Row],[25th]]","v":111242.2},{"$f":"(((AAMC_Raw_Data_for_FY22[[#This Row],[Median]]-AAMC_Raw_Data_for_FY22[[#This Row],[25th]])/25)*20) + AAMC_Raw_Data_for_FY22[[#This Row],[25th]]","v":115696.6},120151,{"$f":"(((AAMC_Raw_Data_for_FY22[[#This Row],[75th]]-AAMC_Raw_Data_for_FY22[[#This Row],[Median]])/25)*5) + AAMC_Raw_Data_for_FY22[[#This Row],[Median]]","v":122163.2},{"$f":"(((AAMC_Raw_Data_for_FY22[[#This Row],[75th]]-AAMC_Raw_Data_for_FY22[[#This Row],[Median]])/25)*10) + AAMC_Raw_Data_for_FY22[[#This Row],[Median]]","v":124175.4},{"$f":"(((AAMC_Raw_Data_for_FY22[[#This Row],[75th]]-AAMC_Raw_Data_for_FY22[[#This Row],[Median]])/25)*15) + AAMC_Raw_Data_for_FY22[[#This Row],[Median]]","v":126187.6},{"$f":"(((AAMC_Raw_Data_for_FY22[[#This Row],[75th]]-AAMC_Raw_Data_for_FY22[[#This Row],[Median]])/25)*20) + AAMC_Raw_Data_for_FY22[[#This Row],[Median]]","v":128199.8},130212,{"$f":"(((AAMC_Raw_Data_for_FY22[[#This Row],[75th]]-AAMC_Raw_Data_for_FY22[[#This Row],[Median]])/25)*30) + AAMC_Raw_Data_for_FY22[[#This Row],[Median]]","v":132224.20000000001},{"$f":"(((AAMC_Raw_Data_for_FY22[[#This Row],[75th]]-AAMC_Raw_Data_for_FY22[[#This Row],[Median]])/25)*35) + AAMC_Raw_Data_for_FY22[[#This Row],[Median]]","v":134236.4},{"$f":"(((AAMC_Raw_Data_for_FY22[[#This Row],[75th]]-AAMC_Raw_Data_for_FY22[[#This Row],[Median]])/25)*40) + AAMC_Raw_Data_for_FY22[[#This Row],[Median]]","v":136248.6}]
[{"$f":"AAMC_Raw_Data_for_FY22[[#This Row],[Source]]&AAMC_Raw_Data_for_FY22[[#This Row],[Type]]&AAMC_Raw_Data_for_FY22[[#This Row],[School Subset]]&AAMC_Raw_Data_for_FY22[[#This Row],[Rank]]&AAMC_Raw_Data_for_FY22[[#This Row],[Degree]]&AAMC_Raw_Data_for_FY22[[#This Row],[Department / Specialty]]&\"L\"","v":"AAMCAcademicPrivateAssociatePhDGastroenterology-Med.L"},"Gastroenterology-Med.",3,"AAMC","Academic","Private","Associate","PhD","2021-2022",122904,{"$f":"(((AAMC_Raw_Data_for_FY22[[#This Row],[Median]]-AAMC_Raw_Data_for_FY22[[#This Row],[25th]])/25)*5) + AAMC_Raw_Data_for_FY22[[#This Row],[25th]]","v":128200.8},{"$f":"(((AAMC_Raw_Data_for_FY22[[#This Row],[Median]]-AAMC_Raw_Data_for_FY22[[#This Row],[25th]])/25)*10) + AAMC_Raw_Data_for_FY22[[#This Row],[25th]]","v":133497.60000000001},{"$f":"(((AAMC_Raw_Data_for_FY22[[#This Row],[Median]]-AAMC_Raw_Data_for_FY22[[#This Row],[25th]])/25)*15) + AAMC_Raw_Data_for_FY22[[#This Row],[25th]]","v":138794.4},{"$f":"(((AAMC_Raw_Data_for_FY22[[#This Row],[Median]]-AAMC_Raw_Data_for_FY22[[#This Row],[25th]])/25)*20) + AAMC_Raw_Data_for_FY22[[#This Row],[25th]]","v":144091.20000000001},149388,{"$f":"(((AAMC_Raw_Data_for_FY22[[#This Row],[75th]]-AAMC_Raw_Data_for_FY22[[#This Row],[Median]])/25)*5) + AAMC_Raw_Data_for_FY22[[#This Row],[Median]]","v":149933.20000000001},{"$f":"(((AAMC_Raw_Data_for_FY22[[#This Row],[75th]]-AAMC_Raw_Data_for_FY22[[#This Row],[Median]])/25)*10) + AAMC_Raw_Data_for_FY22[[#This Row],[Median]]","v":150478.39999999999},{"$f":"(((AAMC_Raw_Data_for_FY22[[#This Row],[75th]]-AAMC_Raw_Data_for_FY22[[#This Row],[Median]])/25)*15) + AAMC_Raw_Data_for_FY22[[#This Row],[Median]]","v":151023.6},{"$f":"(((AAMC_Raw_Data_for_FY22[[#This Row],[75th]]-AAMC_Raw_Data_for_FY22[[#This Row],[Median]])/25)*20) + AAMC_Raw_Data_for_FY22[[#This Row],[Median]]","v":151568.79999999999},152114,{"$f":"(((AAMC_Raw_Data_for_FY22[[#This Row],[75th]]-AAMC_Raw_Data_for_FY22[[#This Row],[Median]])/25)*30) + AAMC_Raw_Data_for_FY22[[#This Row],[Median]]","v":152659.20000000001},{"$f":"(((AAMC_Raw_Data_for_FY22[[#This Row],[75th]]-AAMC_Raw_Data_for_FY22[[#This Row],[Median]])/25)*35) + AAMC_Raw_Data_for_FY22[[#This Row],[Median]]","v":153204.4},{"$f":"(((AAMC_Raw_Data_for_FY22[[#This Row],[75th]]-AAMC_Raw_Data_for_FY22[[#This Row],[Median]])/25)*40) + AAMC_Raw_Data_for_FY22[[#This Row],[Median]]","v":153749.6}]
[{"$f":"AAMC_Raw_Data_for_FY22[[#This Row],[Source]]&AAMC_Raw_Data_for_FY22[[#This Row],[Type]]&AAMC_Raw_Data_for_FY22[[#This Row],[School Subset]]&AAMC_Raw_Data_for_FY22[[#This Row],[Rank]]&AAMC_Raw_Data_for_FY22[[#This Row],[Degree]]&AAMC_Raw_Data_for_FY22[[#This Row],[Department / Specialty]]&\"L\"","v":"AAMCAcademicPrivateProfessorPhDGastroenterology-Med.L"},"Gastroenterology-Med.",2,"AAMC","Academic","Private","Professor","PhD","2021-2022",181594,{"$f":"(((AAMC_Raw_Data_for_FY22[[#This Row],[Median]]-AAMC_Raw_Data_for_FY22[[#This Row],[25th]])/25)*5) + AAMC_Raw_Data_for_FY22[[#This Row],[25th]]","v":187475.20000000001},{"$f":"(((AAMC_Raw_Data_for_FY22[[#This Row],[Median]]-AAMC_Raw_Data_for_FY22[[#This Row],[25th]])/25)*10) + AAMC_Raw_Data_for_FY22[[#This Row],[25th]]","v":193356.4},{"$f":"(((AAMC_Raw_Data_for_FY22[[#This Row],[Median]]-AAMC_Raw_Data_for_FY22[[#This Row],[25th]])/25)*15) + AAMC_Raw_Data_for_FY22[[#This Row],[25th]]","v":199237.6},{"$f":"(((AAMC_Raw_Data_for_FY22[[#This Row],[Median]]-AAMC_Raw_Data_for_FY22[[#This Row],[25th]])/25)*20) + AAMC_Raw_Data_for_FY22[[#This Row],[25th]]","v":205118.8},211000,{"$f":"(((AAMC_Raw_Data_for_FY22[[#This Row],[75th]]-AAMC_Raw_Data_for_FY22[[#This Row],[Median]])/25)*5) + AAMC_Raw_Data_for_FY22[[#This Row],[Median]]","v":220905.2},{"$f":"(((AAMC_Raw_Data_for_FY22[[#This Row],[75th]]-AAMC_Raw_Data_for_FY22[[#This Row],[Median]])/25)*10) + AAMC_Raw_Data_for_FY22[[#This Row],[Median]]","v":230810.4},{"$f":"(((AAMC_Raw_Data_for_FY22[[#This Row],[75th]]-AAMC_Raw_Data_for_FY22[[#This Row],[Median]])/25)*15) + AAMC_Raw_Data_for_FY22[[#This Row],[Median]]","v":240715.6},{"$f":"(((AAMC_Raw_Data_for_FY22[[#This Row],[75th]]-AAMC_Raw_Data_for_FY22[[#This Row],[Median]])/25)*20) + AAMC_Raw_Data_for_FY22[[#This Row],[Median]]","v":250620.79999999999},260526,{"$f":"(((AAMC_Raw_Data_for_FY22[[#This Row],[75th]]-AAMC_Raw_Data_for_FY22[[#This Row],[Median]])/25)*30) + AAMC_Raw_Data_for_FY22[[#This Row],[Median]]","v":270431.2},{"$f":"(((AAMC_Raw_Data_for_FY22[[#This Row],[75th]]-AAMC_Raw_Data_for_FY22[[#This Row],[Median]])/25)*35) + AAMC_Raw_Data_for_FY22[[#This Row],[Median]]","v":280336.40000000002},{"$f":"(((AAMC_Raw_Data_for_FY22[[#This Row],[75th]]-AAMC_Raw_Data_for_FY22[[#This Row],[Median]])/25)*40) + AAMC_Raw_Data_for_FY22[[#This Row],[Median]]","v":290241.59999999998}]
[{"$f":"AAMC_Raw_Data_for_FY22[[#This Row],[Source]]&AAMC_Raw_Data_for_FY22[[#This Row],[Type]]&AAMC_Raw_Data_for_FY22[[#This Row],[School Subset]]&AAMC_Raw_Data_for_FY22[[#This Row],[Rank]]&AAMC_Raw_Data_for_FY22[[#This Row],[Degree]]&AAMC_Raw_Data_for_FY22[[#This Row],[Department / Specialty]]&\"L\"","v":"AAMCAcademicPrivateInstructorPhDGeneral Internal MedicineL"},"General Internal Medicine",5,"AAMC","Academic","Private","Instructor","PhD","2021-2022",null,{"$f":"(((AAMC_Raw_Data_for_FY22[[#This Row],[Median]]-AAMC_Raw_Data_for_FY22[[#This Row],[25th]])/25)*5) + AAMC_Raw_Data_for_FY22[[#This Row],[25th]]","v":0},{"$f":"(((AAMC_Raw_Data_for_FY22[[#This Row],[Median]]-AAMC_Raw_Data_for_FY22[[#This Row],[25th]])/25)*10) + AAMC_Raw_Data_for_FY22[[#This Row],[25th]]","v":0},{"$f":"(((AAMC_Raw_Data_for_FY22[[#This Row],[Median]]-AAMC_Raw_Data_for_FY22[[#This Row],[25th]])/25)*15) + AAMC_Raw_Data_for_FY22[[#This Row],[25th]]","v":0},{"$f":"(((AAMC_Raw_Data_for_FY22[[#This Row],[Median]]-AAMC_Raw_Data_for_FY22[[#This Row],[25th]])/25)*20) + AAMC_Raw_Data_for_FY22[[#This Row],[25th]]","v":0},null,{"$f":"(((AAMC_Raw_Data_for_FY22[[#This Row],[75th]]-AAMC_Raw_Data_for_FY22[[#This Row],[Median]])/25)*5) + AAMC_Raw_Data_for_FY22[[#This Row],[Median]]","v":0},{"$f":"(((AAMC_Raw_Data_for_FY22[[#This Row],[75th]]-AAMC_Raw_Data_for_FY22[[#This Row],[Median]])/25)*10) + AAMC_Raw_Data_for_FY22[[#This Row],[Median]]","v":0},{"$f":"(((AAMC_Raw_Data_for_FY22[[#This Row],[75th]]-AAMC_Raw_Data_for_FY22[[#This Row],[Median]])/25)*15) + AAMC_Raw_Data_for_FY22[[#This Row],[Median]]","v":0},{"$f":"(((AAMC_Raw_Data_for_FY22[[#This Row],[75th]]-AAMC_Raw_Data_for_FY22[[#This Row],[Median]])/25)*20) + AAMC_Raw_Data_for_FY22[[#This Row],[Median]]","v":0},null,{"$f":"(((AAMC_Raw_Data_for_FY22[[#This Row],[75th]]-AAMC_Raw_Data_for_FY22[[#This Row],[Median]])/25)*30) + AAMC_Raw_Data_for_FY22[[#This Row],[Median]]","v":0},{"$f":"(((AAMC_Raw_Data_for_FY22[[#This Row],[75th]]-AAMC_Raw_Data_for_FY22[[#This Row],[Median]])/25)*35) + AAMC_Raw_Data_for_FY22[[#This Row],[Median]]","v":0},{"$f":"(((AAMC_Raw_Data_for_FY22[[#This Row],[75th]]-AAMC_Raw_Data_for_FY22[[#This Row],[Median]])/25)*40) + AAMC_Raw_Data_for_FY22[[#This Row],[Median]]","v":0}]
[{"$f":"AAMC_Raw_Data_for_FY22[[#This Row],[Source]]&AAMC_Raw_Data_for_FY22[[#This Row],[Type]]&AAMC_Raw_Data_for_FY22[[#This Row],[School Subset]]&AAMC_Raw_Data_for_FY22[[#This Row],[Rank]]&AAMC_Raw_Data_for_FY22[[#This Row],[Degree]]&AAMC_Raw_Data_for_FY22[[#This Row],[Department / Specialty]]&\"L\"","v":"AAMCAcademicPrivateAssistantPhDGeneral Internal MedicineL"},"General Internal Medicine",4,"AAMC","Academic","Private","Assistant","PhD","2021-2022",115000,{"$f":"(((AAMC_Raw_Data_for_FY22[[#This Row],[Median]]-AAMC_Raw_Data_for_FY22[[#This Row],[25th]])/25)*5) + AAMC_Raw_Data_for_FY22[[#This Row],[25th]]","v":118520},{"$f":"(((AAMC_Raw_Data_for_FY22[[#This Row],[Median]]-AAMC_Raw_Data_for_FY22[[#This Row],[25th]])/25)*10) + AAMC_Raw_Data_for_FY22[[#This Row],[25th]]","v":122040},{"$f":"(((AAMC_Raw_Data_for_FY22[[#This Row],[Median]]-AAMC_Raw_Data_for_FY22[[#This Row],[25th]])/25)*15) + AAMC_Raw_Data_for_FY22[[#This Row],[25th]]","v":125560},{"$f":"(((AAMC_Raw_Data_for_FY22[[#This Row],[Median]]-AAMC_Raw_Data_for_FY22[[#This Row],[25th]])/25)*20) + AAMC_Raw_Data_for_FY22[[#This Row],[25th]]","v":129080},132600,{"$f":"(((AAMC_Raw_Data_for_FY22[[#This Row],[75th]]-AAMC_Raw_Data_for_FY22[[#This Row],[Median]])/25)*5) + AAMC_Raw_Data_for_FY22[[#This Row],[Median]]","v":137560},{"$f":"(((AAMC_Raw_Data_for_FY22[[#This Row],[75th]]-AAMC_Raw_Data_for_FY22[[#This Row],[Median]])/25)*10) + AAMC_Raw_Data_for_FY22[[#This Row],[Median]]","v":142520},{"$f":"(((AAMC_Raw_Data_for_FY22[[#This Row],[75th]]-AAMC_Raw_Data_for_FY22[[#This Row],[Median]])/25)*15) + AAMC_Raw_Data_for_FY22[[#This Row],[Median]]","v":147480},{"$f":"(((AAMC_Raw_Data_for_FY22[[#This Row],[75th]]-AAMC_Raw_Data_for_FY22[[#This Row],[Median]])/25)*20) + AAMC_Raw_Data_for_FY22[[#This Row],[Median]]","v":152440},157400,{"$f":"(((AAMC_Raw_Data_for_FY22[[#This Row],[75th]]-AAMC_Raw_Data_for_FY22[[#This Row],[Median]])/25)*30) + AAMC_Raw_Data_for_FY22[[#This Row],[Median]]","v":162360},{"$f":"(((AAMC_Raw_Data_for_FY22[[#This Row],[75th]]-AAMC_Raw_Data_for_FY22[[#This Row],[Median]])/25)*35) + AAMC_Raw_Data_for_FY22[[#This Row],[Median]]","v":167320},{"$f":"(((AAMC_Raw_Data_for_FY22[[#This Row],[75th]]-AAMC_Raw_Data_for_FY22[[#This Row],[Median]])/25)*40) + AAMC_Raw_Data_for_FY22[[#This Row],[Median]]","v":172280}]
[{"$f":"AAMC_Raw_Data_for_FY22[[#This Row],[Source]]&AAMC_Raw_Data_for_FY22[[#This Row],[Type]]&AAMC_Raw_Data_for_FY22[[#This Row],[School Subset]]&AAMC_Raw_Data_for_FY22[[#This Row],[Rank]]&AAMC_Raw_Data_for_FY22[[#This Row],[Degree]]&AAMC_Raw_Data_for_FY22[[#This Row],[Department / Specialty]]&\"L\"","v":"AAMCAcademicPrivateAssociatePhDGeneral Internal MedicineL"},"General Internal Medicine",3,"AAMC","Academic","Private","Associate","PhD","2021-2022",141780,{"$f":"(((AAMC_Raw_Data_for_FY22[[#This Row],[Median]]-AAMC_Raw_Data_for_FY22[[#This Row],[25th]])/25)*5) + AAMC_Raw_Data_for_FY22[[#This Row],[25th]]","v":145780.4},{"$f":"(((AAMC_Raw_Data_for_FY22[[#This Row],[Median]]-AAMC_Raw_Data_for_FY22[[#This Row],[25th]])/25)*10) + AAMC_Raw_Data_for_FY22[[#This Row],[25th]]","v":149780.79999999999},{"$f":"(((AAMC_Raw_Data_for_FY22[[#This Row],[Median]]-AAMC_Raw_Data_for_FY22[[#This Row],[25th]])/25)*15) + AAMC_Raw_Data_for_FY22[[#This Row],[25th]]","v":153781.20000000001},{"$f":"(((AAMC_Raw_Data_for_FY22[[#This Row],[Median]]-AAMC_Raw_Data_for_FY22[[#This Row],[25th]])/25)*20) + AAMC_Raw_Data_for_FY22[[#This Row],[25th]]","v":157781.6},161782,{"$f":"(((AAMC_Raw_Data_for_FY22[[#This Row],[75th]]-AAMC_Raw_Data_for_FY22[[#This Row],[Median]])/25)*5) + AAMC_Raw_Data_for_FY22[[#This Row],[Median]]","v":169451.2},{"$f":"(((AAMC_Raw_Data_for_FY22[[#This Row],[75th]]-AAMC_Raw_Data_for_FY22[[#This Row],[Median]])/25)*10) + AAMC_Raw_Data_for_FY22[[#This Row],[Median]]","v":177120.4},{"$f":"(((AAMC_Raw_Data_for_FY22[[#This Row],[75th]]-AAMC_Raw_Data_for_FY22[[#This Row],[Median]])/25)*15) + AAMC_Raw_Data_for_FY22[[#This Row],[Median]]","v":184789.6},{"$f":"(((AAMC_Raw_Data_for_FY22[[#This Row],[75th]]-AAMC_Raw_Data_for_FY22[[#This Row],[Median]])/25)*20) + AAMC_Raw_Data_for_FY22[[#This Row],[Median]]","v":192458.8},200128,{"$f":"(((AAMC_Raw_Data_for_FY22[[#This Row],[75th]]-AAMC_Raw_Data_for_FY22[[#This Row],[Median]])/25)*30) + AAMC_Raw_Data_for_FY22[[#This Row],[Median]]","v":207797.2},{"$f":"(((AAMC_Raw_Data_for_FY22[[#This Row],[75th]]-AAMC_Raw_Data_for_FY22[[#This Row],[Median]])/25)*35) + AAMC_Raw_Data_for_FY22[[#This Row],[Median]]","v":215466.4},{"$f":"(((AAMC_Raw_Data_for_FY22[[#This Row],[75th]]-AAMC_Raw_Data_for_FY22[[#This Row],[Median]])/25)*40) + AAMC_Raw_Data_for_FY22[[#This Row],[Median]]","v":223135.6}]
[{"$f":"AAMC_Raw_Data_for_FY22[[#This Row],[Source]]&AAMC_Raw_Data_for_FY22[[#This Row],[Type]]&AAMC_Raw_Data_for_FY22[[#This Row],[School Subset]]&AAMC_Raw_Data_for_FY22[[#This Row],[Rank]]&AAMC_Raw_Data_for_FY22[[#This Row],[Degree]]&AAMC_Raw_Data_for_FY22[[#This Row],[Department / Specialty]]&\"L\"","v":"AAMCAcademicPrivateProfessorPhDGeneral Internal MedicineL"},"General Internal Medicine",2,"AAMC","Academic","Private","Professor","PhD","2021-2022",171872,{"$f":"(((AAMC_Raw_Data_for_FY22[[#This Row],[Median]]-AAMC_Raw_Data_for_FY22[[#This Row],[25th]])/25)*5) + AAMC_Raw_Data_for_FY22[[#This Row],[25th]]","v":179830.2},{"$f":"(((AAMC_Raw_Data_for_FY22[[#This Row],[Median]]-AAMC_Raw_Data_for_FY22[[#This Row],[25th]])/25)*10) + AAMC_Raw_Data_for_FY22[[#This Row],[25th]]","v":187788.4},{"$f":"(((AAMC_Raw_Data_for_FY22[[#This Row],[Median]]-AAMC_Raw_Data_for_FY22[[#This Row],[25th]])/25)*15) + AAMC_Raw_Data_for_FY22[[#This Row],[25th]]","v":195746.6},{"$f":"(((AAMC_Raw_Data_for_FY22[[#This Row],[Median]]-AAMC_Raw_Data_for_FY22[[#This Row],[25th]])/25)*20) + AAMC_Raw_Data_for_FY22[[#This Row],[25th]]","v":203704.8},211663,{"$f":"(((AAMC_Raw_Data_for_FY22[[#This Row],[75th]]-AAMC_Raw_Data_for_FY22[[#This Row],[Median]])/25)*5) + AAMC_Raw_Data_for_FY22[[#This Row],[Median]]","v":225330.4},{"$f":"(((AAMC_Raw_Data_for_FY22[[#This Row],[75th]]-AAMC_Raw_Data_for_FY22[[#This Row],[Median]])/25)*10) + AAMC_Raw_Data_for_FY22[[#This Row],[Median]]","v":238997.8},{"$f":"(((AAMC_Raw_Data_for_FY22[[#This Row],[75th]]-AAMC_Raw_Data_for_FY22[[#This Row],[Median]])/25)*15) + AAMC_Raw_Data_for_FY22[[#This Row],[Median]]","v":252665.2},{"$f":"(((AAMC_Raw_Data_for_FY22[[#This Row],[75th]]-AAMC_Raw_Data_for_FY22[[#This Row],[Median]])/25)*20) + AAMC_Raw_Data_for_FY22[[#This Row],[Median]]","v":266332.59999999998},280000,{"$f":"(((AAMC_Raw_Data_for_FY22[[#This Row],[75th]]-AAMC_Raw_Data_for_FY22[[#This Row],[Median]])/25)*30) + AAMC_Raw_Data_for_FY22[[#This Row],[Median]]","v":293667.40000000002},{"$f":"(((AAMC_Raw_Data_for_FY22[[#This Row],[75th]]-AAMC_Raw_Data_for_FY22[[#This Row],[Median]])/25)*35) + AAMC_Raw_Data_for_FY22[[#This Row],[Median]]","v":307334.8},{"$f":"(((AAMC_Raw_Data_for_FY22[[#This Row],[75th]]-AAMC_Raw_Data_for_FY22[[#This Row],[Median]])/25)*40) + AAMC_Raw_Data_for_FY22[[#This Row],[Median]]","v":321002.2}]
[{"$f":"AAMC_Raw_Data_for_FY22[[#This Row],[Source]]&AAMC_Raw_Data_for_FY22[[#This Row],[Type]]&AAMC_Raw_Data_for_FY22[[#This Row],[School Subset]]&AAMC_Raw_Data_for_FY22[[#This Row],[Rank]]&AAMC_Raw_Data_for_FY22[[#This Row],[Degree]]&AAMC_Raw_Data_for_FY22[[#This Row],[Department / Specialty]]&\"L\"","v":"AAMCAcademicPrivateInstructorPhDGeriatrics-Med.L"},"Geriatrics-Med.",5,"AAMC","Academic","Private","Instructor","PhD","2021-2022",null,{"$f":"(((AAMC_Raw_Data_for_FY22[[#This Row],[Median]]-AAMC_Raw_Data_for_FY22[[#This Row],[25th]])/25)*5) + AAMC_Raw_Data_for_FY22[[#This Row],[25th]]","v":0},{"$f":"(((AAMC_Raw_Data_for_FY22[[#This Row],[Median]]-AAMC_Raw_Data_for_FY22[[#This Row],[25th]])/25)*10) + AAMC_Raw_Data_for_FY22[[#This Row],[25th]]","v":0},{"$f":"(((AAMC_Raw_Data_for_FY22[[#This Row],[Median]]-AAMC_Raw_Data_for_FY22[[#This Row],[25th]])/25)*15) + AAMC_Raw_Data_for_FY22[[#This Row],[25th]]","v":0},{"$f":"(((AAMC_Raw_Data_for_FY22[[#This Row],[Median]]-AAMC_Raw_Data_for_FY22[[#This Row],[25th]])/25)*20) + AAMC_Raw_Data_for_FY22[[#This Row],[25th]]","v":0},null,{"$f":"(((AAMC_Raw_Data_for_FY22[[#This Row],[75th]]-AAMC_Raw_Data_for_FY22[[#This Row],[Median]])/25)*5) + AAMC_Raw_Data_for_FY22[[#This Row],[Median]]","v":0},{"$f":"(((AAMC_Raw_Data_for_FY22[[#This Row],[75th]]-AAMC_Raw_Data_for_FY22[[#This Row],[Median]])/25)*10) + AAMC_Raw_Data_for_FY22[[#This Row],[Median]]","v":0},{"$f":"(((AAMC_Raw_Data_for_FY22[[#This Row],[75th]]-AAMC_Raw_Data_for_FY22[[#This Row],[Median]])/25)*15) + AAMC_Raw_Data_for_FY22[[#This Row],[Median]]","v":0},{"$f":"(((AAMC_Raw_Data_for_FY22[[#This Row],[75th]]-AAMC_Raw_Data_for_FY22[[#This Row],[Median]])/25)*20) + AAMC_Raw_Data_for_FY22[[#This Row],[Median]]","v":0},null,{"$f":"(((AAMC_Raw_Data_for_FY22[[#This Row],[75th]]-AAMC_Raw_Data_for_FY22[[#This Row],[Median]])/25)*30) + AAMC_Raw_Data_for_FY22[[#This Row],[Median]]","v":0},{"$f":"(((AAMC_Raw_Data_for_FY22[[#This Row],[75th]]-AAMC_Raw_Data_for_FY22[[#This Row],[Median]])/25)*35) + AAMC_Raw_Data_for_FY22[[#This Row],[Median]]","v":0},{"$f":"(((AAMC_Raw_Data_for_FY22[[#This Row],[75th]]-AAMC_Raw_Data_for_FY22[[#This Row],[Median]])/25)*40) + AAMC_Raw_Data_for_FY22[[#This Row],[Median]]","v":0}]
[{"$f":"AAMC_Raw_Data_for_FY22[[#This Row],[Source]]&AAMC_Raw_Data_for_FY22[[#This Row],[Type]]&AAMC_Raw_Data_for_FY22[[#This Row],[School Subset]]&AAMC_Raw_Data_for_FY22[[#This Row],[Rank]]&AAMC_Raw_Data_for_FY22[[#This Row],[Degree]]&AAMC_Raw_Data_for_FY22[[#This Row],[Department / Specialty]]&\"L\"","v":"AAMCAcademicPrivateAssistantPhDGeriatrics-Med.L"},"Geriatrics-Med.",4,"AAMC","Academic","Private","Assistant","PhD","2021-2022",90100,{"$f":"(((AAMC_Raw_Data_for_FY22[[#This Row],[Median]]-AAMC_Raw_Data_for_FY22[[#This Row],[25th]])/25)*5) + AAMC_Raw_Data_for_FY22[[#This Row],[25th]]","v":93720.4},{"$f":"(((AAMC_Raw_Data_for_FY22[[#This Row],[Median]]-AAMC_Raw_Data_for_FY22[[#This Row],[25th]])/25)*10) + AAMC_Raw_Data_for_FY22[[#This Row],[25th]]","v":97340.800000000003},{"$f":"(((AAMC_Raw_Data_for_FY22[[#This Row],[Median]]-AAMC_Raw_Data_for_FY22[[#This Row],[25th]])/25)*15) + AAMC_Raw_Data_for_FY22[[#This Row],[25th]]","v":100961.2},{"$f":"(((AAMC_Raw_Data_for_FY22[[#This Row],[Median]]-AAMC_Raw_Data_for_FY22[[#This Row],[25th]])/25)*20) + AAMC_Raw_Data_for_FY22[[#This Row],[25th]]","v":104581.6},108202,{"$f":"(((AAMC_Raw_Data_for_FY22[[#This Row],[75th]]-AAMC_Raw_Data_for_FY22[[#This Row],[Median]])/25)*5) + AAMC_Raw_Data_for_FY22[[#This Row],[Median]]","v":110212},{"$f":"(((AAMC_Raw_Data_for_FY22[[#This Row],[75th]]-AAMC_Raw_Data_for_FY22[[#This Row],[Median]])/25)*10) + AAMC_Raw_Data_for_FY22[[#This Row],[Median]]","v":112222},{"$f":"(((AAMC_Raw_Data_for_FY22[[#This Row],[75th]]-AAMC_Raw_Data_for_FY22[[#This Row],[Median]])/25)*15) + AAMC_Raw_Data_for_FY22[[#This Row],[Median]]","v":114232},{"$f":"(((AAMC_Raw_Data_for_FY22[[#This Row],[75th]]-AAMC_Raw_Data_for_FY22[[#This Row],[Median]])/25)*20) + AAMC_Raw_Data_for_FY22[[#This Row],[Median]]","v":116242},118252,{"$f":"(((AAMC_Raw_Data_for_FY22[[#This Row],[75th]]-AAMC_Raw_Data_for_FY22[[#This Row],[Median]])/25)*30) + AAMC_Raw_Data_for_FY22[[#This Row],[Median]]","v":120262},{"$f":"(((AAMC_Raw_Data_for_FY22[[#This Row],[75th]]-AAMC_Raw_Data_for_FY22[[#This Row],[Median]])/25)*35) + AAMC_Raw_Data_for_FY22[[#This Row],[Median]]","v":122272},{"$f":"(((AAMC_Raw_Data_for_FY22[[#This Row],[75th]]-AAMC_Raw_Data_for_FY22[[#This Row],[Median]])/25)*40) + AAMC_Raw_Data_for_FY22[[#This Row],[Median]]","v":124282}]
[{"$f":"AAMC_Raw_Data_for_FY22[[#This Row],[Source]]&AAMC_Raw_Data_for_FY22[[#This Row],[Type]]&AAMC_Raw_Data_for_FY22[[#This Row],[School Subset]]&AAMC_Raw_Data_for_FY22[[#This Row],[Rank]]&AAMC_Raw_Data_for_FY22[[#This Row],[Degree]]&AAMC_Raw_Data_for_FY22[[#This Row],[Department / Specialty]]&\"L\"","v":"AAMCAcademicPrivateAssociatePhDGeriatrics-Med.L"},"Geriatrics-Med.",3,"AAMC","Academic","Private","Associate","PhD","2021-2022",146886,{"$f":"(((AAMC_Raw_Data_for_FY22[[#This Row],[Median]]-AAMC_Raw_Data_for_FY22[[#This Row],[25th]])/25)*5) + AAMC_Raw_Data_for_FY22[[#This Row],[25th]]","v":147808.79999999999},{"$f":"(((AAMC_Raw_Data_for_FY22[[#This Row],[Median]]-AAMC_Raw_Data_for_FY22[[#This Row],[25th]])/25)*10) + AAMC_Raw_Data_for_FY22[[#This Row],[25th]]","v":148731.6},{"$f":"(((AAMC_Raw_Data_for_FY22[[#This Row],[Median]]-AAMC_Raw_Data_for_FY22[[#This Row],[25th]])/25)*15) + AAMC_Raw_Data_for_FY22[[#This Row],[25th]]","v":149654.39999999999},{"$f":"(((AAMC_Raw_Data_for_FY22[[#This Row],[Median]]-AAMC_Raw_Data_for_FY22[[#This Row],[25th]])/25)*20) + AAMC_Raw_Data_for_FY22[[#This Row],[25th]]","v":150577.20000000001},151500,{"$f":"(((AAMC_Raw_Data_for_FY22[[#This Row],[75th]]-AAMC_Raw_Data_for_FY22[[#This Row],[Median]])/25)*5) + AAMC_Raw_Data_for_FY22[[#This Row],[Median]]","v":152662},{"$f":"(((AAMC_Raw_Data_for_FY22[[#This Row],[75th]]-AAMC_Raw_Data_for_FY22[[#This Row],[Median]])/25)*10) + AAMC_Raw_Data_for_FY22[[#This Row],[Median]]","v":153824},{"$f":"(((AAMC_Raw_Data_for_FY22[[#This Row],[75th]]-AAMC_Raw_Data_for_FY22[[#This Row],[Median]])/25)*15) + AAMC_Raw_Data_for_FY22[[#This Row],[Median]]","v":154986},{"$f":"(((AAMC_Raw_Data_for_FY22[[#This Row],[75th]]-AAMC_Raw_Data_for_FY22[[#This Row],[Median]])/25)*20) + AAMC_Raw_Data_for_FY22[[#This Row],[Median]]","v":156148},157310,{"$f":"(((AAMC_Raw_Data_for_FY22[[#This Row],[75th]]-AAMC_Raw_Data_for_FY22[[#This Row],[Median]])/25)*30) + AAMC_Raw_Data_for_FY22[[#This Row],[Median]]","v":158472},{"$f":"(((AAMC_Raw_Data_for_FY22[[#This Row],[75th]]-AAMC_Raw_Data_for_FY22[[#This Row],[Median]])/25)*35) + AAMC_Raw_Data_for_FY22[[#This Row],[Median]]","v":159634},{"$f":"(((AAMC_Raw_Data_for_FY22[[#This Row],[75th]]-AAMC_Raw_Data_for_FY22[[#This Row],[Median]])/25)*40) + AAMC_Raw_Data_for_FY22[[#This Row],[Median]]","v":160796}]
[{"$f":"AAMC_Raw_Data_for_FY22[[#This Row],[Source]]&AAMC_Raw_Data_for_FY22[[#This Row],[Type]]&AAMC_Raw_Data_for_FY22[[#This Row],[School Subset]]&AAMC_Raw_Data_for_FY22[[#This Row],[Rank]]&AAMC_Raw_Data_for_FY22[[#This Row],[Degree]]&AAMC_Raw_Data_for_FY22[[#This Row],[Department / Specialty]]&\"L\"","v":"AAMCAcademicPrivateProfessorPhDGeriatrics-Med.L"},"Geriatrics-Med.",2,"AAMC","Academic","Private","Professor","PhD","2021-2022",156236,{"$f":"(((AAMC_Raw_Data_for_FY22[[#This Row],[Median]]-AAMC_Raw_Data_for_FY22[[#This Row],[25th]])/25)*5) + AAMC_Raw_Data_for_FY22[[#This Row],[25th]]","v":164943.6},{"$f":"(((AAMC_Raw_Data_for_FY22[[#This Row],[Median]]-AAMC_Raw_Data_for_FY22[[#This Row],[25th]])/25)*10) + AAMC_Raw_Data_for_FY22[[#This Row],[25th]]","v":173651.20000000001},{"$f":"(((AAMC_Raw_Data_for_FY22[[#This Row],[Median]]-AAMC_Raw_Data_for_FY22[[#This Row],[25th]])/25)*15) + AAMC_Raw_Data_for_FY22[[#This Row],[25th]]","v":182358.8},{"$f":"(((AAMC_Raw_Data_for_FY22[[#This Row],[Median]]-AAMC_Raw_Data_for_FY22[[#This Row],[25th]])/25)*20) + AAMC_Raw_Data_for_FY22[[#This Row],[25th]]","v":191066.4},199774,{"$f":"(((AAMC_Raw_Data_for_FY22[[#This Row],[75th]]-AAMC_Raw_Data_for_FY22[[#This Row],[Median]])/25)*5) + AAMC_Raw_Data_for_FY22[[#This Row],[Median]]","v":211563.4},{"$f":"(((AAMC_Raw_Data_for_FY22[[#This Row],[75th]]-AAMC_Raw_Data_for_FY22[[#This Row],[Median]])/25)*10) + AAMC_Raw_Data_for_FY22[[#This Row],[Median]]","v":223352.8},{"$f":"(((AAMC_Raw_Data_for_FY22[[#This Row],[75th]]-AAMC_Raw_Data_for_FY22[[#This Row],[Median]])/25)*15) + AAMC_Raw_Data_for_FY22[[#This Row],[Median]]","v":235142.2},{"$f":"(((AAMC_Raw_Data_for_FY22[[#This Row],[75th]]-AAMC_Raw_Data_for_FY22[[#This Row],[Median]])/25)*20) + AAMC_Raw_Data_for_FY22[[#This Row],[Median]]","v":246931.6},258721,{"$f":"(((AAMC_Raw_Data_for_FY22[[#This Row],[75th]]-AAMC_Raw_Data_for_FY22[[#This Row],[Median]])/25)*30) + AAMC_Raw_Data_for_FY22[[#This Row],[Median]]","v":270510.40000000002},{"$f":"(((AAMC_Raw_Data_for_FY22[[#This Row],[75th]]-AAMC_Raw_Data_for_FY22[[#This Row],[Median]])/25)*35) + AAMC_Raw_Data_for_FY22[[#This Row],[Median]]","v":282299.8},{"$f":"(((AAMC_Raw_Data_for_FY22[[#This Row],[75th]]-AAMC_Raw_Data_for_FY22[[#This Row],[Median]])/25)*40) + AAMC_Raw_Data_for_FY22[[#This Row],[Median]]","v":294089.2}]
[{"$f":"AAMC_Raw_Data_for_FY22[[#This Row],[Source]]&AAMC_Raw_Data_for_FY22[[#This Row],[Type]]&AAMC_Raw_Data_for_FY22[[#This Row],[School Subset]]&AAMC_Raw_Data_for_FY22[[#This Row],[Rank]]&AAMC_Raw_Data_for_FY22[[#This Row],[Degree]]&AAMC_Raw_Data_for_FY22[[#This Row],[Department / Specialty]]&\"L\"","v":"AAMCAcademicPrivateInstructorPhDHematology/Oncology-Med.L"},"Hematology/Oncology-Med.",5,"AAMC","Academic","Private","Instructor","PhD","2021-2022",80100,{"$f":"(((AAMC_Raw_Data_for_FY22[[#This Row],[Median]]-AAMC_Raw_Data_for_FY22[[#This Row],[25th]])/25)*5) + AAMC_Raw_Data_for_FY22[[#This Row],[25th]]","v":82800},{"$f":"(((AAMC_Raw_Data_for_FY22[[#This Row],[Median]]-AAMC_Raw_Data_for_FY22[[#This Row],[25th]])/25)*10) + AAMC_Raw_Data_for_FY22[[#This Row],[25th]]","v":85500},{"$f":"(((AAMC_Raw_Data_for_FY22[[#This Row],[Median]]-AAMC_Raw_Data_for_FY22[[#This Row],[25th]])/25)*15) + AAMC_Raw_Data_for_FY22[[#This Row],[25th]]","v":88200},{"$f":"(((AAMC_Raw_Data_for_FY22[[#This Row],[Median]]-AAMC_Raw_Data_for_FY22[[#This Row],[25th]])/25)*20) + AAMC_Raw_Data_for_FY22[[#This Row],[25th]]","v":90900},93600,{"$f":"(((AAMC_Raw_Data_for_FY22[[#This Row],[75th]]-AAMC_Raw_Data_for_FY22[[#This Row],[Median]])/25)*5) + AAMC_Raw_Data_for_FY22[[#This Row],[Median]]","v":97540},{"$f":"(((AAMC_Raw_Data_for_FY22[[#This Row],[75th]]-AAMC_Raw_Data_for_FY22[[#This Row],[Median]])/25)*10) + AAMC_Raw_Data_for_FY22[[#This Row],[Median]]","v":101480},{"$f":"(((AAMC_Raw_Data_for_FY22[[#This Row],[75th]]-AAMC_Raw_Data_for_FY22[[#This Row],[Median]])/25)*15) + AAMC_Raw_Data_for_FY22[[#This Row],[Median]]","v":105420},{"$f":"(((AAMC_Raw_Data_for_FY22[[#This Row],[75th]]-AAMC_Raw_Data_for_FY22[[#This Row],[Median]])/25)*20) + AAMC_Raw_Data_for_FY22[[#This Row],[Median]]","v":109360},113300,{"$f":"(((AAMC_Raw_Data_for_FY22[[#This Row],[75th]]-AAMC_Raw_Data_for_FY22[[#This Row],[Median]])/25)*30) + AAMC_Raw_Data_for_FY22[[#This Row],[Median]]","v":117240},{"$f":"(((AAMC_Raw_Data_for_FY22[[#This Row],[75th]]-AAMC_Raw_Data_for_FY22[[#This Row],[Median]])/25)*35) + AAMC_Raw_Data_for_FY22[[#This Row],[Median]]","v":121180},{"$f":"(((AAMC_Raw_Data_for_FY22[[#This Row],[75th]]-AAMC_Raw_Data_for_FY22[[#This Row],[Median]])/25)*40) + AAMC_Raw_Data_for_FY22[[#This Row],[Median]]","v":125120}]
[{"$f":"AAMC_Raw_Data_for_FY22[[#This Row],[Source]]&AAMC_Raw_Data_for_FY22[[#This Row],[Type]]&AAMC_Raw_Data_for_FY22[[#This Row],[School Subset]]&AAMC_Raw_Data_for_FY22[[#This Row],[Rank]]&AAMC_Raw_Data_for_FY22[[#This Row],[Degree]]&AAMC_Raw_Data_for_FY22[[#This Row],[Department / Specialty]]&\"L\"","v":"AAMCAcademicPrivateAssistantPhDHematology/Oncology-Med.L"},"Hematology/Oncology-Med.",4,"AAMC","Academic","Private","Assistant","PhD","2021-2022",105008,{"$f":"(((AAMC_Raw_Data_for_FY22[[#This Row],[Median]]-AAMC_Raw_Data_for_FY22[[#This Row],[25th]])/25)*5) + AAMC_Raw_Data_for_FY22[[#This Row],[25th]]","v":109655.2},{"$f":"(((AAMC_Raw_Data_for_FY22[[#This Row],[Median]]-AAMC_Raw_Data_for_FY22[[#This Row],[25th]])/25)*10) + AAMC_Raw_Data_for_FY22[[#This Row],[25th]]","v":114302.39999999999},{"$f":"(((AAMC_Raw_Data_for_FY22[[#This Row],[Median]]-AAMC_Raw_Data_for_FY22[[#This Row],[25th]])/25)*15) + AAMC_Raw_Data_for_FY22[[#This Row],[25th]]","v":118949.6},{"$f":"(((AAMC_Raw_Data_for_FY22[[#This Row],[Median]]-AAMC_Raw_Data_for_FY22[[#This Row],[25th]])/25)*20) + AAMC_Raw_Data_for_FY22[[#This Row],[25th]]","v":123596.8},128244,{"$f":"(((AAMC_Raw_Data_for_FY22[[#This Row],[75th]]-AAMC_Raw_Data_for_FY22[[#This Row],[Median]])/25)*5) + AAMC_Raw_Data_for_FY22[[#This Row],[Median]]","v":131772.79999999999},{"$f":"(((AAMC_Raw_Data_for_FY22[[#This Row],[75th]]-AAMC_Raw_Data_for_FY22[[#This Row],[Median]])/25)*10) + AAMC_Raw_Data_for_FY22[[#This Row],[Median]]","v":135301.6},{"$f":"(((AAMC_Raw_Data_for_FY22[[#This Row],[75th]]-AAMC_Raw_Data_for_FY22[[#This Row],[Median]])/25)*15) + AAMC_Raw_Data_for_FY22[[#This Row],[Median]]","v":138830.39999999999},{"$f":"(((AAMC_Raw_Data_for_FY22[[#This Row],[75th]]-AAMC_Raw_Data_for_FY22[[#This Row],[Median]])/25)*20) + AAMC_Raw_Data_for_FY22[[#This Row],[Median]]","v":142359.20000000001},145888,{"$f":"(((AAMC_Raw_Data_for_FY22[[#This Row],[75th]]-AAMC_Raw_Data_for_FY22[[#This Row],[Median]])/25)*30) + AAMC_Raw_Data_for_FY22[[#This Row],[Median]]","v":149416.79999999999},{"$f":"(((AAMC_Raw_Data_for_FY22[[#This Row],[75th]]-AAMC_Raw_Data_for_FY22[[#This Row],[Median]])/25)*35) + AAMC_Raw_Data_for_FY22[[#This Row],[Median]]","v":152945.60000000001},{"$f":"(((AAMC_Raw_Data_for_FY22[[#This Row],[75th]]-AAMC_Raw_Data_for_FY22[[#This Row],[Median]])/25)*40) + AAMC_Raw_Data_for_FY22[[#This Row],[Median]]","v":156474.4}]
[{"$f":"AAMC_Raw_Data_for_FY22[[#This Row],[Source]]&AAMC_Raw_Data_for_FY22[[#This Row],[Type]]&AAMC_Raw_Data_for_FY22[[#This Row],[School Subset]]&AAMC_Raw_Data_for_FY22[[#This Row],[Rank]]&AAMC_Raw_Data_for_FY22[[#This Row],[Degree]]&AAMC_Raw_Data_for_FY22[[#This Row],[Department / Specialty]]&\"L\"","v":"AAMCAcademicPrivateAssociatePhDHematology/Oncology-Med.L"},"Hematology/Oncology-Med.",3,"AAMC","Academic","Private","Associate","PhD","2021-2022",147290,{"$f":"(((AAMC_Raw_Data_for_FY22[[#This Row],[Median]]-AAMC_Raw_Data_for_FY22[[#This Row],[25th]])/25)*5) + AAMC_Raw_Data_for_FY22[[#This Row],[25th]]","v":151020.79999999999},{"$f":"(((AAMC_Raw_Data_for_FY22[[#This Row],[Median]]-AAMC_Raw_Data_for_FY22[[#This Row],[25th]])/25)*10) + AAMC_Raw_Data_for_FY22[[#This Row],[25th]]","v":154751.6},{"$f":"(((AAMC_Raw_Data_for_FY22[[#This Row],[Median]]-AAMC_Raw_Data_for_FY22[[#This Row],[25th]])/25)*15) + AAMC_Raw_Data_for_FY22[[#This Row],[25th]]","v":158482.4},{"$f":"(((AAMC_Raw_Data_for_FY22[[#This Row],[Median]]-AAMC_Raw_Data_for_FY22[[#This Row],[25th]])/25)*20) + AAMC_Raw_Data_for_FY22[[#This Row],[25th]]","v":162213.20000000001},165944,{"$f":"(((AAMC_Raw_Data_for_FY22[[#This Row],[75th]]-AAMC_Raw_Data_for_FY22[[#This Row],[Median]])/25)*5) + AAMC_Raw_Data_for_FY22[[#This Row],[Median]]","v":172787},{"$f":"(((AAMC_Raw_Data_for_FY22[[#This Row],[75th]]-AAMC_Raw_Data_for_FY22[[#This Row],[Median]])/25)*10) + AAMC_Raw_Data_for_FY22[[#This Row],[Median]]","v":179630},{"$f":"(((AAMC_Raw_Data_for_FY22[[#This Row],[75th]]-AAMC_Raw_Data_for_FY22[[#This Row],[Median]])/25)*15) + AAMC_Raw_Data_for_FY22[[#This Row],[Median]]","v":186473},{"$f":"(((AAMC_Raw_Data_for_FY22[[#This Row],[75th]]-AAMC_Raw_Data_for_FY22[[#This Row],[Median]])/25)*20) + AAMC_Raw_Data_for_FY22[[#This Row],[Median]]","v":193316},200159,{"$f":"(((AAMC_Raw_Data_for_FY22[[#This Row],[75th]]-AAMC_Raw_Data_for_FY22[[#This Row],[Median]])/25)*30) + AAMC_Raw_Data_for_FY22[[#This Row],[Median]]","v":207002},{"$f":"(((AAMC_Raw_Data_for_FY22[[#This Row],[75th]]-AAMC_Raw_Data_for_FY22[[#This Row],[Median]])/25)*35) + AAMC_Raw_Data_for_FY22[[#This Row],[Median]]","v":213845},{"$f":"(((AAMC_Raw_Data_for_FY22[[#This Row],[75th]]-AAMC_Raw_Data_for_FY22[[#This Row],[Median]])/25)*40) + AAMC_Raw_Data_for_FY22[[#This Row],[Median]]","v":220688}]
[{"$f":"AAMC_Raw_Data_for_FY22[[#This Row],[Source]]&AAMC_Raw_Data_for_FY22[[#This Row],[Type]]&AAMC_Raw_Data_for_FY22[[#This Row],[School Subset]]&AAMC_Raw_Data_for_FY22[[#This Row],[Rank]]&AAMC_Raw_Data_for_FY22[[#This Row],[Degree]]&AAMC_Raw_Data_for_FY22[[#This Row],[Department / Specialty]]&\"L\"","v":"AAMCAcademicPrivateProfessorPhDHematology/Oncology-Med.L"},"Hematology/Oncology-Med.",2,"AAMC","Academic","Private","Professor","PhD","2021-2022",211022,{"$f":"(((AAMC_Raw_Data_for_FY22[[#This Row],[Median]]-AAMC_Raw_Data_for_FY22[[#This Row],[25th]])/25)*5) + AAMC_Raw_Data_for_FY22[[#This Row],[25th]]","v":218127.6},{"$f":"(((AAMC_Raw_Data_for_FY22[[#This Row],[Median]]-AAMC_Raw_Data_for_FY22[[#This Row],[25th]])/25)*10) + AAMC_Raw_Data_for_FY22[[#This Row],[25th]]","v":225233.2},{"$f":"(((AAMC_Raw_Data_for_FY22[[#This Row],[Median]]-AAMC_Raw_Data_for_FY22[[#This Row],[25th]])/25)*15) + AAMC_Raw_Data_for_FY22[[#This Row],[25th]]","v":232338.8},{"$f":"(((AAMC_Raw_Data_for_FY22[[#This Row],[Median]]-AAMC_Raw_Data_for_FY22[[#This Row],[25th]])/25)*20) + AAMC_Raw_Data_for_FY22[[#This Row],[25th]]","v":239444.4},246550,{"$f":"(((AAMC_Raw_Data_for_FY22[[#This Row],[75th]]-AAMC_Raw_Data_for_FY22[[#This Row],[Median]])/25)*5) + AAMC_Raw_Data_for_FY22[[#This Row],[Median]]","v":259156.2},{"$f":"(((AAMC_Raw_Data_for_FY22[[#This Row],[75th]]-AAMC_Raw_Data_for_FY22[[#This Row],[Median]])/25)*10) + AAMC_Raw_Data_for_FY22[[#This Row],[Median]]","v":271762.40000000002},{"$f":"(((AAMC_Raw_Data_for_FY22[[#This Row],[75th]]-AAMC_Raw_Data_for_FY22[[#This Row],[Median]])/25)*15) + AAMC_Raw_Data_for_FY22[[#This Row],[Median]]","v":284368.59999999998},{"$f":"(((AAMC_Raw_Data_for_FY22[[#This Row],[75th]]-AAMC_Raw_Data_for_FY22[[#This Row],[Median]])/25)*20) + AAMC_Raw_Data_for_FY22[[#This Row],[Median]]","v":296974.8},309581,{"$f":"(((AAMC_Raw_Data_for_FY22[[#This Row],[75th]]-AAMC_Raw_Data_for_FY22[[#This Row],[Median]])/25)*30) + AAMC_Raw_Data_for_FY22[[#This Row],[Median]]","v":322187.2},{"$f":"(((AAMC_Raw_Data_for_FY22[[#This Row],[75th]]-AAMC_Raw_Data_for_FY22[[#This Row],[Median]])/25)*35) + AAMC_Raw_Data_for_FY22[[#This Row],[Median]]","v":334793.40000000002},{"$f":"(((AAMC_Raw_Data_for_FY22[[#This Row],[75th]]-AAMC_Raw_Data_for_FY22[[#This Row],[Median]])/25)*40) + AAMC_Raw_Data_for_FY22[[#This Row],[Median]]","v":347399.6}]
[{"$f":"AAMC_Raw_Data_for_FY22[[#This Row],[Source]]&AAMC_Raw_Data_for_FY22[[#This Row],[Type]]&AAMC_Raw_Data_for_FY22[[#This Row],[School Subset]]&AAMC_Raw_Data_for_FY22[[#This Row],[Rank]]&AAMC_Raw_Data_for_FY22[[#This Row],[Degree]]&AAMC_Raw_Data_for_FY22[[#This Row],[Department / Specialty]]&\"L\"","v":"AAMCAcademicPrivateChiefPhDHematology/Oncology-Med.L"},"Hematology/Oncology-Med.",6,"AAMC","Academic","Private","Chief","PhD","2021-2022",null,{"$f":"(((AAMC_Raw_Data_for_FY22[[#This Row],[Median]]-AAMC_Raw_Data_for_FY22[[#This Row],[25th]])/25)*5) + AAMC_Raw_Data_for_FY22[[#This Row],[25th]]","v":0},{"$f":"(((AAMC_Raw_Data_for_FY22[[#This Row],[Median]]-AAMC_Raw_Data_for_FY22[[#This Row],[25th]])/25)*10) + AAMC_Raw_Data_for_FY22[[#This Row],[25th]]","v":0},{"$f":"(((AAMC_Raw_Data_for_FY22[[#This Row],[Median]]-AAMC_Raw_Data_for_FY22[[#This Row],[25th]])/25)*15) + AAMC_Raw_Data_for_FY22[[#This Row],[25th]]","v":0},{"$f":"(((AAMC_Raw_Data_for_FY22[[#This Row],[Median]]-AAMC_Raw_Data_for_FY22[[#This Row],[25th]])/25)*20) + AAMC_Raw_Data_for_FY22[[#This Row],[25th]]","v":0},null,{"$f":"(((AAMC_Raw_Data_for_FY22[[#This Row],[75th]]-AAMC_Raw_Data_for_FY22[[#This Row],[Median]])/25)*5) + AAMC_Raw_Data_for_FY22[[#This Row],[Median]]","v":0},{"$f":"(((AAMC_Raw_Data_for_FY22[[#This Row],[75th]]-AAMC_Raw_Data_for_FY22[[#This Row],[Median]])/25)*10) + AAMC_Raw_Data_for_FY22[[#This Row],[Median]]","v":0},{"$f":"(((AAMC_Raw_Data_for_FY22[[#This Row],[75th]]-AAMC_Raw_Data_for_FY22[[#This Row],[Median]])/25)*15) + AAMC_Raw_Data_for_FY22[[#This Row],[Median]]","v":0},{"$f":"(((AAMC_Raw_Data_for_FY22[[#This Row],[75th]]-AAMC_Raw_Data_for_FY22[[#This Row],[Median]])/25)*20) + AAMC_Raw_Data_for_FY22[[#This Row],[Median]]","v":0},null,{"$f":"(((AAMC_Raw_Data_for_FY22[[#This Row],[75th]]-AAMC_Raw_Data_for_FY22[[#This Row],[Median]])/25)*30) + AAMC_Raw_Data_for_FY22[[#This Row],[Median]]","v":0},{"$f":"(((AAMC_Raw_Data_for_FY22[[#This Row],[75th]]-AAMC_Raw_Data_for_FY22[[#This Row],[Median]])/25)*35) + AAMC_Raw_Data_for_FY22[[#This Row],[Median]]","v":0},{"$f":"(((AAMC_Raw_Data_for_FY22[[#This Row],[75th]]-AAMC_Raw_Data_for_FY22[[#This Row],[Median]])/25)*40) + AAMC_Raw_Data_for_FY22[[#This Row],[Median]]","v":0}]
[{"$f":"AAMC_Raw_Data_for_FY22[[#This Row],[Source]]&AAMC_Raw_Data_for_FY22[[#This Row],[Type]]&AAMC_Raw_Data_for_FY22[[#This Row],[School Subset]]&AAMC_Raw_Data_for_FY22[[#This Row],[Rank]]&AAMC_Raw_Data_for_FY22[[#This Row],[Degree]]&AAMC_Raw_Data_for_FY22[[#This Row],[Department / Specialty]]&\"L\"","v":"AAMCAcademicPrivateChairPhDHematology/Oncology-Med.L"},"Hematology/Oncology-Med.",1,"AAMC","Academic","Private","Chair","PhD","2021-2022",null,{"$f":"(((AAMC_Raw_Data_for_FY22[[#This Row],[Median]]-AAMC_Raw_Data_for_FY22[[#This Row],[25th]])/25)*5) + AAMC_Raw_Data_for_FY22[[#This Row],[25th]]","v":0},{"$f":"(((AAMC_Raw_Data_for_FY22[[#This Row],[Median]]-AAMC_Raw_Data_for_FY22[[#This Row],[25th]])/25)*10) + AAMC_Raw_Data_for_FY22[[#This Row],[25th]]","v":0},{"$f":"(((AAMC_Raw_Data_for_FY22[[#This Row],[Median]]-AAMC_Raw_Data_for_FY22[[#This Row],[25th]])/25)*15) + AAMC_Raw_Data_for_FY22[[#This Row],[25th]]","v":0},{"$f":"(((AAMC_Raw_Data_for_FY22[[#This Row],[Median]]-AAMC_Raw_Data_for_FY22[[#This Row],[25th]])/25)*20) + AAMC_Raw_Data_for_FY22[[#This Row],[25th]]","v":0},null,{"$f":"(((AAMC_Raw_Data_for_FY22[[#This Row],[75th]]-AAMC_Raw_Data_for_FY22[[#This Row],[Median]])/25)*5) + AAMC_Raw_Data_for_FY22[[#This Row],[Median]]","v":0},{"$f":"(((AAMC_Raw_Data_for_FY22[[#This Row],[75th]]-AAMC_Raw_Data_for_FY22[[#This Row],[Median]])/25)*10) + AAMC_Raw_Data_for_FY22[[#This Row],[Median]]","v":0},{"$f":"(((AAMC_Raw_Data_for_FY22[[#This Row],[75th]]-AAMC_Raw_Data_for_FY22[[#This Row],[Median]])/25)*15) + AAMC_Raw_Data_for_FY22[[#This Row],[Median]]","v":0},{"$f":"(((AAMC_Raw_Data_for_FY22[[#This Row],[75th]]-AAMC_Raw_Data_for_FY22[[#This Row],[Median]])/25)*20) + AAMC_Raw_Data_for_FY22[[#This Row],[Median]]","v":0},null,{"$f":"(((AAMC_Raw_Data_for_FY22[[#This Row],[75th]]-AAMC_Raw_Data_for_FY22[[#This Row],[Median]])/25)*30) + AAMC_Raw_Data_for_FY22[[#This Row],[Median]]","v":0},{"$f":"(((AAMC_Raw_Data_for_FY22[[#This Row],[75th]]-AAMC_Raw_Data_for_FY22[[#This Row],[Median]])/25)*35) + AAMC_Raw_Data_for_FY22[[#This Row],[Median]]","v":0},{"$f":"(((AAMC_Raw_Data_for_FY22[[#This Row],[75th]]-AAMC_Raw_Data_for_FY22[[#This Row],[Median]])/25)*40) + AAMC_Raw_Data_for_FY22[[#This Row],[Median]]","v":0}]
[{"$f":"AAMC_Raw_Data_for_FY22[[#This Row],[Source]]&AAMC_Raw_Data_for_FY22[[#This Row],[Type]]&AAMC_Raw_Data_for_FY22[[#This Row],[School Subset]]&AAMC_Raw_Data_for_FY22[[#This Row],[Rank]]&AAMC_Raw_Data_for_FY22[[#This Row],[Degree]]&AAMC_Raw_Data_for_FY22[[#This Row],[Department / Specialty]]&\"L\"","v":"AAMCAcademicPrivateInstructorPhDHospital MedicineL"},"Hospital Medicine",5,"AAMC","Academic","Private","Instructor","PhD","2021-2022",null,{"$f":"(((AAMC_Raw_Data_for_FY22[[#This Row],[Median]]-AAMC_Raw_Data_for_FY22[[#This Row],[25th]])/25)*5) + AAMC_Raw_Data_for_FY22[[#This Row],[25th]]","v":0},{"$f":"(((AAMC_Raw_Data_for_FY22[[#This Row],[Median]]-AAMC_Raw_Data_for_FY22[[#This Row],[25th]])/25)*10) + AAMC_Raw_Data_for_FY22[[#This Row],[25th]]","v":0},{"$f":"(((AAMC_Raw_Data_for_FY22[[#This Row],[Median]]-AAMC_Raw_Data_for_FY22[[#This Row],[25th]])/25)*15) + AAMC_Raw_Data_for_FY22[[#This Row],[25th]]","v":0},{"$f":"(((AAMC_Raw_Data_for_FY22[[#This Row],[Median]]-AAMC_Raw_Data_for_FY22[[#This Row],[25th]])/25)*20) + AAMC_Raw_Data_for_FY22[[#This Row],[25th]]","v":0},null,{"$f":"(((AAMC_Raw_Data_for_FY22[[#This Row],[75th]]-AAMC_Raw_Data_for_FY22[[#This Row],[Median]])/25)*5) + AAMC_Raw_Data_for_FY22[[#This Row],[Median]]","v":0},{"$f":"(((AAMC_Raw_Data_for_FY22[[#This Row],[75th]]-AAMC_Raw_Data_for_FY22[[#This Row],[Median]])/25)*10) + AAMC_Raw_Data_for_FY22[[#This Row],[Median]]","v":0},{"$f":"(((AAMC_Raw_Data_for_FY22[[#This Row],[75th]]-AAMC_Raw_Data_for_FY22[[#This Row],[Median]])/25)*15) + AAMC_Raw_Data_for_FY22[[#This Row],[Median]]","v":0},{"$f":"(((AAMC_Raw_Data_for_FY22[[#This Row],[75th]]-AAMC_Raw_Data_for_FY22[[#This Row],[Median]])/25)*20) + AAMC_Raw_Data_for_FY22[[#This Row],[Median]]","v":0},null,{"$f":"(((AAMC_Raw_Data_for_FY22[[#This Row],[75th]]-AAMC_Raw_Data_for_FY22[[#This Row],[Median]])/25)*30) + AAMC_Raw_Data_for_FY22[[#This Row],[Median]]","v":0},{"$f":"(((AAMC_Raw_Data_for_FY22[[#This Row],[75th]]-AAMC_Raw_Data_for_FY22[[#This Row],[Median]])/25)*35) + AAMC_Raw_Data_for_FY22[[#This Row],[Median]]","v":0},{"$f":"(((AAMC_Raw_Data_for_FY22[[#This Row],[75th]]-AAMC_Raw_Data_for_FY22[[#This Row],[Median]])/25)*40) + AAMC_Raw_Data_for_FY22[[#This Row],[Median]]","v":0}]
[{"$f":"AAMC_Raw_Data_for_FY22[[#This Row],[Source]]&AAMC_Raw_Data_for_FY22[[#This Row],[Type]]&AAMC_Raw_Data_for_FY22[[#This Row],[School Subset]]&AAMC_Raw_Data_for_FY22[[#This Row],[Rank]]&AAMC_Raw_Data_for_FY22[[#This Row],[Degree]]&AAMC_Raw_Data_for_FY22[[#This Row],[Department / Specialty]]&\"L\"","v":"AAMCAcademicPrivateAssistantPhDHospital MedicineL"},"Hospital Medicine",4,"AAMC","Academic","Private","Assistant","PhD","2021-2022",124100,{"$f":"(((AAMC_Raw_Data_for_FY22[[#This Row],[Median]]-AAMC_Raw_Data_for_FY22[[#This Row],[25th]])/25)*5) + AAMC_Raw_Data_for_FY22[[#This Row],[25th]]","v":126560.8},{"$f":"(((AAMC_Raw_Data_for_FY22[[#This Row],[Median]]-AAMC_Raw_Data_for_FY22[[#This Row],[25th]])/25)*10) + AAMC_Raw_Data_for_FY22[[#This Row],[25th]]","v":129021.6},{"$f":"(((AAMC_Raw_Data_for_FY22[[#This Row],[Median]]-AAMC_Raw_Data_for_FY22[[#This Row],[25th]])/25)*15) + AAMC_Raw_Data_for_FY22[[#This Row],[25th]]","v":131482.4},{"$f":"(((AAMC_Raw_Data_for_FY22[[#This Row],[Median]]-AAMC_Raw_Data_for_FY22[[#This Row],[25th]])/25)*20) + AAMC_Raw_Data_for_FY22[[#This Row],[25th]]","v":133943.20000000001},136404,{"$f":"(((AAMC_Raw_Data_for_FY22[[#This Row],[75th]]-AAMC_Raw_Data_for_FY22[[#This Row],[Median]])/25)*5) + AAMC_Raw_Data_for_FY22[[#This Row],[Median]]","v":139776.6},{"$f":"(((AAMC_Raw_Data_for_FY22[[#This Row],[75th]]-AAMC_Raw_Data_for_FY22[[#This Row],[Median]])/25)*10) + AAMC_Raw_Data_for_FY22[[#This Row],[Median]]","v":143149.20000000001},{"$f":"(((AAMC_Raw_Data_for_FY22[[#This Row],[75th]]-AAMC_Raw_Data_for_FY22[[#This Row],[Median]])/25)*15) + AAMC_Raw_Data_for_FY22[[#This Row],[Median]]","v":146521.79999999999},{"$f":"(((AAMC_Raw_Data_for_FY22[[#This Row],[75th]]-AAMC_Raw_Data_for_FY22[[#This Row],[Median]])/25)*20) + AAMC_Raw_Data_for_FY22[[#This Row],[Median]]","v":149894.39999999999},153267,{"$f":"(((AAMC_Raw_Data_for_FY22[[#This Row],[75th]]-AAMC_Raw_Data_for_FY22[[#This Row],[Median]])/25)*30) + AAMC_Raw_Data_for_FY22[[#This Row],[Median]]","v":156639.6},{"$f":"(((AAMC_Raw_Data_for_FY22[[#This Row],[75th]]-AAMC_Raw_Data_for_FY22[[#This Row],[Median]])/25)*35) + AAMC_Raw_Data_for_FY22[[#This Row],[Median]]","v":160012.20000000001},{"$f":"(((AAMC_Raw_Data_for_FY22[[#This Row],[75th]]-AAMC_Raw_Data_for_FY22[[#This Row],[Median]])/25)*40) + AAMC_Raw_Data_for_FY22[[#This Row],[Median]]","v":163384.79999999999}]
[{"$f":"AAMC_Raw_Data_for_FY22[[#This Row],[Source]]&AAMC_Raw_Data_for_FY22[[#This Row],[Type]]&AAMC_Raw_Data_for_FY22[[#This Row],[School Subset]]&AAMC_Raw_Data_for_FY22[[#This Row],[Rank]]&AAMC_Raw_Data_for_FY22[[#This Row],[Degree]]&AAMC_Raw_Data_for_FY22[[#This Row],[Department / Specialty]]&\"L\"","v":"AAMCAcademicPrivateAssociatePhDHospital MedicineL"},"Hospital Medicine",3,"AAMC","Academic","Private","Associate","PhD","2021-2022",null,{"$f":"(((AAMC_Raw_Data_for_FY22[[#This Row],[Median]]-AAMC_Raw_Data_for_FY22[[#This Row],[25th]])/25)*5) + AAMC_Raw_Data_for_FY22[[#This Row],[25th]]","v":0},{"$f":"(((AAMC_Raw_Data_for_FY22[[#This Row],[Median]]-AAMC_Raw_Data_for_FY22[[#This Row],[25th]])/25)*10) + AAMC_Raw_Data_for_FY22[[#This Row],[25th]]","v":0},{"$f":"(((AAMC_Raw_Data_for_FY22[[#This Row],[Median]]-AAMC_Raw_Data_for_FY22[[#This Row],[25th]])/25)*15) + AAMC_Raw_Data_for_FY22[[#This Row],[25th]]","v":0},{"$f":"(((AAMC_Raw_Data_for_FY22[[#This Row],[Median]]-AAMC_Raw_Data_for_FY22[[#This Row],[25th]])/25)*20) + AAMC_Raw_Data_for_FY22[[#This Row],[25th]]","v":0},null,{"$f":"(((AAMC_Raw_Data_for_FY22[[#This Row],[75th]]-AAMC_Raw_Data_for_FY22[[#This Row],[Median]])/25)*5) + AAMC_Raw_Data_for_FY22[[#This Row],[Median]]","v":0},{"$f":"(((AAMC_Raw_Data_for_FY22[[#This Row],[75th]]-AAMC_Raw_Data_for_FY22[[#This Row],[Median]])/25)*10) + AAMC_Raw_Data_for_FY22[[#This Row],[Median]]","v":0},{"$f":"(((AAMC_Raw_Data_for_FY22[[#This Row],[75th]]-AAMC_Raw_Data_for_FY22[[#This Row],[Median]])/25)*15) + AAMC_Raw_Data_for_FY22[[#This Row],[Median]]","v":0},{"$f":"(((AAMC_Raw_Data_for_FY22[[#This Row],[75th]]-AAMC_Raw_Data_for_FY22[[#This Row],[Median]])/25)*20) + AAMC_Raw_Data_for_FY22[[#This Row],[Median]]","v":0},null,{"$f":"(((AAMC_Raw_Data_for_FY22[[#This Row],[75th]]-AAMC_Raw_Data_for_FY22[[#This Row],[Median]])/25)*30) + AAMC_Raw_Data_for_FY22[[#This Row],[Median]]","v":0},{"$f":"(((AAMC_Raw_Data_for_FY22[[#This Row],[75th]]-AAMC_Raw_Data_for_FY22[[#This Row],[Median]])/25)*35) + AAMC_Raw_Data_for_FY22[[#This Row],[Median]]","v":0},{"$f":"(((AAMC_Raw_Data_for_FY22[[#This Row],[75th]]-AAMC_Raw_Data_for_FY22[[#This Row],[Median]])/25)*40) + AAMC_Raw_Data_for_FY22[[#This Row],[Median]]","v":0}]
[{"$f":"AAMC_Raw_Data_for_FY22[[#This Row],[Source]]&AAMC_Raw_Data_for_FY22[[#This Row],[Type]]&AAMC_Raw_Data_for_FY22[[#This Row],[School Subset]]&AAMC_Raw_Data_for_FY22[[#This Row],[Rank]]&AAMC_Raw_Data_for_FY22[[#This Row],[Degree]]&AAMC_Raw_Data_for_FY22[[#This Row],[Department / Specialty]]&\"L\"","v":"AAMCAcademicPrivateProfessorPhDHospital MedicineL"},"Hospital Medicine",2,"AAMC","Academic","Private","Professor","PhD","2021-2022",null,{"$f":"(((AAMC_Raw_Data_for_FY22[[#This Row],[Median]]-AAMC_Raw_Data_for_FY22[[#This Row],[25th]])/25)*5) + AAMC_Raw_Data_for_FY22[[#This Row],[25th]]","v":0},{"$f":"(((AAMC_Raw_Data_for_FY22[[#This Row],[Median]]-AAMC_Raw_Data_for_FY22[[#This Row],[25th]])/25)*10) + AAMC_Raw_Data_for_FY22[[#This Row],[25th]]","v":0},{"$f":"(((AAMC_Raw_Data_for_FY22[[#This Row],[Median]]-AAMC_Raw_Data_for_FY22[[#This Row],[25th]])/25)*15) + AAMC_Raw_Data_for_FY22[[#This Row],[25th]]","v":0},{"$f":"(((AAMC_Raw_Data_for_FY22[[#This Row],[Median]]-AAMC_Raw_Data_for_FY22[[#This Row],[25th]])/25)*20) + AAMC_Raw_Data_for_FY22[[#This Row],[25th]]","v":0},null,{"$f":"(((AAMC_Raw_Data_for_FY22[[#This Row],[75th]]-AAMC_Raw_Data_for_FY22[[#This Row],[Median]])/25)*5) + AAMC_Raw_Data_for_FY22[[#This Row],[Median]]","v":0},{"$f":"(((AAMC_Raw_Data_for_FY22[[#This Row],[75th]]-AAMC_Raw_Data_for_FY22[[#This Row],[Median]])/25)*10) + AAMC_Raw_Data_for_FY22[[#This Row],[Median]]","v":0},{"$f":"(((AAMC_Raw_Data_for_FY22[[#This Row],[75th]]-AAMC_Raw_Data_for_FY22[[#This Row],[Median]])/25)*15) + AAMC_Raw_Data_for_FY22[[#This Row],[Median]]","v":0},{"$f":"(((AAMC_Raw_Data_for_FY22[[#This Row],[75th]]-AAMC_Raw_Data_for_FY22[[#This Row],[Median]])/25)*20) + AAMC_Raw_Data_for_FY22[[#This Row],[Median]]","v":0},null,{"$f":"(((AAMC_Raw_Data_for_FY22[[#This Row],[75th]]-AAMC_Raw_Data_for_FY22[[#This Row],[Median]])/25)*30) + AAMC_Raw_Data_for_FY22[[#This Row],[Median]]","v":0},{"$f":"(((AAMC_Raw_Data_for_FY22[[#This Row],[75th]]-AAMC_Raw_Data_for_FY22[[#This Row],[Median]])/25)*35) + AAMC_Raw_Data_for_FY22[[#This Row],[Median]]","v":0},{"$f":"(((AAMC_Raw_Data_for_FY22[[#This Row],[75th]]-AAMC_Raw_Data_for_FY22[[#This Row],[Median]])/25)*40) + AAMC_Raw_Data_for_FY22[[#This Row],[Median]]","v":0}]
[{"$f":"AAMC_Raw_Data_for_FY22[[#This Row],[Source]]&AAMC_Raw_Data_for_FY22[[#This Row],[Type]]&AAMC_Raw_Data_for_FY22[[#This Row],[School Subset]]&AAMC_Raw_Data_for_FY22[[#This Row],[Rank]]&AAMC_Raw_Data_for_FY22[[#This Row],[Degree]]&AAMC_Raw_Data_for_FY22[[#This Row],[Department / Specialty]]&\"L\"","v":"AAMCAcademicPrivateInstructorPhDInfectious Disease-Med.L"},"Infectious Disease-Med.",5,"AAMC","Academic","Private","Instructor","PhD","2021-2022",null,{"$f":"(((AAMC_Raw_Data_for_FY22[[#This Row],[Median]]-AAMC_Raw_Data_for_FY22[[#This Row],[25th]])/25)*5) + AAMC_Raw_Data_for_FY22[[#This Row],[25th]]","v":0},{"$f":"(((AAMC_Raw_Data_for_FY22[[#This Row],[Median]]-AAMC_Raw_Data_for_FY22[[#This Row],[25th]])/25)*10) + AAMC_Raw_Data_for_FY22[[#This Row],[25th]]","v":0},{"$f":"(((AAMC_Raw_Data_for_FY22[[#This Row],[Median]]-AAMC_Raw_Data_for_FY22[[#This Row],[25th]])/25)*15) + AAMC_Raw_Data_for_FY22[[#This Row],[25th]]","v":0},{"$f":"(((AAMC_Raw_Data_for_FY22[[#This Row],[Median]]-AAMC_Raw_Data_for_FY22[[#This Row],[25th]])/25)*20) + AAMC_Raw_Data_for_FY22[[#This Row],[25th]]","v":0},null,{"$f":"(((AAMC_Raw_Data_for_FY22[[#This Row],[75th]]-AAMC_Raw_Data_for_FY22[[#This Row],[Median]])/25)*5) + AAMC_Raw_Data_for_FY22[[#This Row],[Median]]","v":0},{"$f":"(((AAMC_Raw_Data_for_FY22[[#This Row],[75th]]-AAMC_Raw_Data_for_FY22[[#This Row],[Median]])/25)*10) + AAMC_Raw_Data_for_FY22[[#This Row],[Median]]","v":0},{"$f":"(((AAMC_Raw_Data_for_FY22[[#This Row],[75th]]-AAMC_Raw_Data_for_FY22[[#This Row],[Median]])/25)*15) + AAMC_Raw_Data_for_FY22[[#This Row],[Median]]","v":0},{"$f":"(((AAMC_Raw_Data_for_FY22[[#This Row],[75th]]-AAMC_Raw_Data_for_FY22[[#This Row],[Median]])/25)*20) + AAMC_Raw_Data_for_FY22[[#This Row],[Median]]","v":0},null,{"$f":"(((AAMC_Raw_Data_for_FY22[[#This Row],[75th]]-AAMC_Raw_Data_for_FY22[[#This Row],[Median]])/25)*30) + AAMC_Raw_Data_for_FY22[[#This Row],[Median]]","v":0},{"$f":"(((AAMC_Raw_Data_for_FY22[[#This Row],[75th]]-AAMC_Raw_Data_for_FY22[[#This Row],[Median]])/25)*35) + AAMC_Raw_Data_for_FY22[[#This Row],[Median]]","v":0},{"$f":"(((AAMC_Raw_Data_for_FY22[[#This Row],[75th]]-AAMC_Raw_Data_for_FY22[[#This Row],[Median]])/25)*40) + AAMC_Raw_Data_for_FY22[[#This Row],[Median]]","v":0}]
[{"$f":"AAMC_Raw_Data_for_FY22[[#This Row],[Source]]&AAMC_Raw_Data_for_FY22[[#This Row],[Type]]&AAMC_Raw_Data_for_FY22[[#This Row],[School Subset]]&AAMC_Raw_Data_for_FY22[[#This Row],[Rank]]&AAMC_Raw_Data_for_FY22[[#This Row],[Degree]]&AAMC_Raw_Data_for_FY22[[#This Row],[Department / Specialty]]&\"L\"","v":"AAMCAcademicPrivateAssistantPhDInfectious Disease-Med.L"},"Infectious Disease-Med.",4,"AAMC","Academic","Private","Assistant","PhD","2021-2022",87893,{"$f":"(((AAMC_Raw_Data_for_FY22[[#This Row],[Median]]-AAMC_Raw_Data_for_FY22[[#This Row],[25th]])/25)*5) + AAMC_Raw_Data_for_FY22[[#This Row],[25th]]","v":93958.399999999994},{"$f":"(((AAMC_Raw_Data_for_FY22[[#This Row],[Median]]-AAMC_Raw_Data_for_FY22[[#This Row],[25th]])/25)*10) + AAMC_Raw_Data_for_FY22[[#This Row],[25th]]","v":100023.8},{"$f":"(((AAMC_Raw_Data_for_FY22[[#This Row],[Median]]-AAMC_Raw_Data_for_FY22[[#This Row],[25th]])/25)*15) + AAMC_Raw_Data_for_FY22[[#This Row],[25th]]","v":106089.2},{"$f":"(((AAMC_Raw_Data_for_FY22[[#This Row],[Median]]-AAMC_Raw_Data_for_FY22[[#This Row],[25th]])/25)*20) + AAMC_Raw_Data_for_FY22[[#This Row],[25th]]","v":112154.6},118220,{"$f":"(((AAMC_Raw_Data_for_FY22[[#This Row],[75th]]-AAMC_Raw_Data_for_FY22[[#This Row],[Median]])/25)*5) + AAMC_Raw_Data_for_FY22[[#This Row],[Median]]","v":119829.4},{"$f":"(((AAMC_Raw_Data_for_FY22[[#This Row],[75th]]-AAMC_Raw_Data_for_FY22[[#This Row],[Median]])/25)*10) + AAMC_Raw_Data_for_FY22[[#This Row],[Median]]","v":121438.8},{"$f":"(((AAMC_Raw_Data_for_FY22[[#This Row],[75th]]-AAMC_Raw_Data_for_FY22[[#This Row],[Median]])/25)*15) + AAMC_Raw_Data_for_FY22[[#This Row],[Median]]","v":123048.2},{"$f":"(((AAMC_Raw_Data_for_FY22[[#This Row],[75th]]-AAMC_Raw_Data_for_FY22[[#This Row],[Median]])/25)*20) + AAMC_Raw_Data_for_FY22[[#This Row],[Median]]","v":124657.60000000001},126267,{"$f":"(((AAMC_Raw_Data_for_FY22[[#This Row],[75th]]-AAMC_Raw_Data_for_FY22[[#This Row],[Median]])/25)*30) + AAMC_Raw_Data_for_FY22[[#This Row],[Median]]","v":127876.4},{"$f":"(((AAMC_Raw_Data_for_FY22[[#This Row],[75th]]-AAMC_Raw_Data_for_FY22[[#This Row],[Median]])/25)*35) + AAMC_Raw_Data_for_FY22[[#This Row],[Median]]","v":129485.8},{"$f":"(((AAMC_Raw_Data_for_FY22[[#This Row],[75th]]-AAMC_Raw_Data_for_FY22[[#This Row],[Median]])/25)*40) + AAMC_Raw_Data_for_FY22[[#This Row],[Median]]","v":131095.20000000001}]
[{"$f":"AAMC_Raw_Data_for_FY22[[#This Row],[Source]]&AAMC_Raw_Data_for_FY22[[#This Row],[Type]]&AAMC_Raw_Data_for_FY22[[#This Row],[School Subset]]&AAMC_Raw_Data_for_FY22[[#This Row],[Rank]]&AAMC_Raw_Data_for_FY22[[#This Row],[Degree]]&AAMC_Raw_Data_for_FY22[[#This Row],[Department / Specialty]]&\"L\"","v":"AAMCAcademicPrivateAssociatePhDInfectious Disease-Med.L"},"Infectious Disease-Med.",3,"AAMC","Academic","Private","Associate","PhD","2021-2022",110973,{"$f":"(((AAMC_Raw_Data_for_FY22[[#This Row],[Median]]-AAMC_Raw_Data_for_FY22[[#This Row],[25th]])/25)*5) + AAMC_Raw_Data_for_FY22[[#This Row],[25th]]","v":117170.4},{"$f":"(((AAMC_Raw_Data_for_FY22[[#This Row],[Median]]-AAMC_Raw_Data_for_FY22[[#This Row],[25th]])/25)*10) + AAMC_Raw_Data_for_FY22[[#This Row],[25th]]","v":123367.8},{"$f":"(((AAMC_Raw_Data_for_FY22[[#This Row],[Median]]-AAMC_Raw_Data_for_FY22[[#This Row],[25th]])/25)*15) + AAMC_Raw_Data_for_FY22[[#This Row],[25th]]","v":129565.2},{"$f":"(((AAMC_Raw_Data_for_FY22[[#This Row],[Median]]-AAMC_Raw_Data_for_FY22[[#This Row],[25th]])/25)*20) + AAMC_Raw_Data_for_FY22[[#This Row],[25th]]","v":135762.6},141960,{"$f":"(((AAMC_Raw_Data_for_FY22[[#This Row],[75th]]-AAMC_Raw_Data_for_FY22[[#This Row],[Median]])/25)*5) + AAMC_Raw_Data_for_FY22[[#This Row],[Median]]","v":144475.20000000001},{"$f":"(((AAMC_Raw_Data_for_FY22[[#This Row],[75th]]-AAMC_Raw_Data_for_FY22[[#This Row],[Median]])/25)*10) + AAMC_Raw_Data_for_FY22[[#This Row],[Median]]","v":146990.39999999999},{"$f":"(((AAMC_Raw_Data_for_FY22[[#This Row],[75th]]-AAMC_Raw_Data_for_FY22[[#This Row],[Median]])/25)*15) + AAMC_Raw_Data_for_FY22[[#This Row],[Median]]","v":149505.60000000001},{"$f":"(((AAMC_Raw_Data_for_FY22[[#This Row],[75th]]-AAMC_Raw_Data_for_FY22[[#This Row],[Median]])/25)*20) + AAMC_Raw_Data_for_FY22[[#This Row],[Median]]","v":152020.79999999999},154536,{"$f":"(((AAMC_Raw_Data_for_FY22[[#This Row],[75th]]-AAMC_Raw_Data_for_FY22[[#This Row],[Median]])/25)*30) + AAMC_Raw_Data_for_FY22[[#This Row],[Median]]","v":157051.20000000001},{"$f":"(((AAMC_Raw_Data_for_FY22[[#This Row],[75th]]-AAMC_Raw_Data_for_FY22[[#This Row],[Median]])/25)*35) + AAMC_Raw_Data_for_FY22[[#This Row],[Median]]","v":159566.39999999999},{"$f":"(((AAMC_Raw_Data_for_FY22[[#This Row],[75th]]-AAMC_Raw_Data_for_FY22[[#This Row],[Median]])/25)*40) + AAMC_Raw_Data_for_FY22[[#This Row],[Median]]","v":162081.60000000001}]
[{"$f":"AAMC_Raw_Data_for_FY22[[#This Row],[Source]]&AAMC_Raw_Data_for_FY22[[#This Row],[Type]]&AAMC_Raw_Data_for_FY22[[#This Row],[School Subset]]&AAMC_Raw_Data_for_FY22[[#This Row],[Rank]]&AAMC_Raw_Data_for_FY22[[#This Row],[Degree]]&AAMC_Raw_Data_for_FY22[[#This Row],[Department / Specialty]]&\"L\"","v":"AAMCAcademicPrivateProfessorPhDInfectious Disease-Med.L"},"Infectious Disease-Med.",2,"AAMC","Academic","Private","Professor","PhD","2021-2022",178840,{"$f":"(((AAMC_Raw_Data_for_FY22[[#This Row],[Median]]-AAMC_Raw_Data_for_FY22[[#This Row],[25th]])/25)*5) + AAMC_Raw_Data_for_FY22[[#This Row],[25th]]","v":185069.4},{"$f":"(((AAMC_Raw_Data_for_FY22[[#This Row],[Median]]-AAMC_Raw_Data_for_FY22[[#This Row],[25th]])/25)*10) + AAMC_Raw_Data_for_FY22[[#This Row],[25th]]","v":191298.8},{"$f":"(((AAMC_Raw_Data_for_FY22[[#This Row],[Median]]-AAMC_Raw_Data_for_FY22[[#This Row],[25th]])/25)*15) + AAMC_Raw_Data_for_FY22[[#This Row],[25th]]","v":197528.2},{"$f":"(((AAMC_Raw_Data_for_FY22[[#This Row],[Median]]-AAMC_Raw_Data_for_FY22[[#This Row],[25th]])/25)*20) + AAMC_Raw_Data_for_FY22[[#This Row],[25th]]","v":203757.6},209987,{"$f":"(((AAMC_Raw_Data_for_FY22[[#This Row],[75th]]-AAMC_Raw_Data_for_FY22[[#This Row],[Median]])/25)*5) + AAMC_Raw_Data_for_FY22[[#This Row],[Median]]","v":213884.6},{"$f":"(((AAMC_Raw_Data_for_FY22[[#This Row],[75th]]-AAMC_Raw_Data_for_FY22[[#This Row],[Median]])/25)*10) + AAMC_Raw_Data_for_FY22[[#This Row],[Median]]","v":217782.2},{"$f":"(((AAMC_Raw_Data_for_FY22[[#This Row],[75th]]-AAMC_Raw_Data_for_FY22[[#This Row],[Median]])/25)*15) + AAMC_Raw_Data_for_FY22[[#This Row],[Median]]","v":221679.8},{"$f":"(((AAMC_Raw_Data_for_FY22[[#This Row],[75th]]-AAMC_Raw_Data_for_FY22[[#This Row],[Median]])/25)*20) + AAMC_Raw_Data_for_FY22[[#This Row],[Median]]","v":225577.4},229475,{"$f":"(((AAMC_Raw_Data_for_FY22[[#This Row],[75th]]-AAMC_Raw_Data_for_FY22[[#This Row],[Median]])/25)*30) + AAMC_Raw_Data_for_FY22[[#This Row],[Median]]","v":233372.6},{"$f":"(((AAMC_Raw_Data_for_FY22[[#This Row],[75th]]-AAMC_Raw_Data_for_FY22[[#This Row],[Median]])/25)*35) + AAMC_Raw_Data_for_FY22[[#This Row],[Median]]","v":237270.2},{"$f":"(((AAMC_Raw_Data_for_FY22[[#This Row],[75th]]-AAMC_Raw_Data_for_FY22[[#This Row],[Median]])/25)*40) + AAMC_Raw_Data_for_FY22[[#This Row],[Median]]","v":241167.8}]
[{"$f":"AAMC_Raw_Data_for_FY22[[#This Row],[Source]]&AAMC_Raw_Data_for_FY22[[#This Row],[Type]]&AAMC_Raw_Data_for_FY22[[#This Row],[School Subset]]&AAMC_Raw_Data_for_FY22[[#This Row],[Rank]]&AAMC_Raw_Data_for_FY22[[#This Row],[Degree]]&AAMC_Raw_Data_for_FY22[[#This Row],[Department / Specialty]]&\"L\"","v":"AAMCAcademicPrivateInstructorPhDNephrology-Med.L"},"Nephrology-Med.",5,"AAMC","Academic","Private","Instructor","PhD","2021-2022",null,{"$f":"(((AAMC_Raw_Data_for_FY22[[#This Row],[Median]]-AAMC_Raw_Data_for_FY22[[#This Row],[25th]])/25)*5) + AAMC_Raw_Data_for_FY22[[#This Row],[25th]]","v":0},{"$f":"(((AAMC_Raw_Data_for_FY22[[#This Row],[Median]]-AAMC_Raw_Data_for_FY22[[#This Row],[25th]])/25)*10) + AAMC_Raw_Data_for_FY22[[#This Row],[25th]]","v":0},{"$f":"(((AAMC_Raw_Data_for_FY22[[#This Row],[Median]]-AAMC_Raw_Data_for_FY22[[#This Row],[25th]])/25)*15) + AAMC_Raw_Data_for_FY22[[#This Row],[25th]]","v":0},{"$f":"(((AAMC_Raw_Data_for_FY22[[#This Row],[Median]]-AAMC_Raw_Data_for_FY22[[#This Row],[25th]])/25)*20) + AAMC_Raw_Data_for_FY22[[#This Row],[25th]]","v":0},null,{"$f":"(((AAMC_Raw_Data_for_FY22[[#This Row],[75th]]-AAMC_Raw_Data_for_FY22[[#This Row],[Median]])/25)*5) + AAMC_Raw_Data_for_FY22[[#This Row],[Median]]","v":0},{"$f":"(((AAMC_Raw_Data_for_FY22[[#This Row],[75th]]-AAMC_Raw_Data_for_FY22[[#This Row],[Median]])/25)*10) + AAMC_Raw_Data_for_FY22[[#This Row],[Median]]","v":0},{"$f":"(((AAMC_Raw_Data_for_FY22[[#This Row],[75th]]-AAMC_Raw_Data_for_FY22[[#This Row],[Median]])/25)*15) + AAMC_Raw_Data_for_FY22[[#This Row],[Median]]","v":0},{"$f":"(((AAMC_Raw_Data_for_FY22[[#This Row],[75th]]-AAMC_Raw_Data_for_FY22[[#This Row],[Median]])/25)*20) + AAMC_Raw_Data_for_FY22[[#This Row],[Median]]","v":0},null,{"$f":"(((AAMC_Raw_Data_for_FY22[[#This Row],[75th]]-AAMC_Raw_Data_for_FY22[[#This Row],[Median]])/25)*30) + AAMC_Raw_Data_for_FY22[[#This Row],[Median]]","v":0},{"$f":"(((AAMC_Raw_Data_for_FY22[[#This Row],[75th]]-AAMC_Raw_Data_for_FY22[[#This Row],[Median]])/25)*35) + AAMC_Raw_Data_for_FY22[[#This Row],[Median]]","v":0},{"$f":"(((AAMC_Raw_Data_for_FY22[[#This Row],[75th]]-AAMC_Raw_Data_for_FY22[[#This Row],[Median]])/25)*40) + AAMC_Raw_Data_for_FY22[[#This Row],[Median]]","v":0}]
[{"$f":"AAMC_Raw_Data_for_FY22[[#This Row],[Source]]&AAMC_Raw_Data_for_FY22[[#This Row],[Type]]&AAMC_Raw_Data_for_FY22[[#This Row],[School Subset]]&AAMC_Raw_Data_for_FY22[[#This Row],[Rank]]&AAMC_Raw_Data_for_FY22[[#This Row],[Degree]]&AAMC_Raw_Data_for_FY22[[#This Row],[Department / Specialty]]&\"L\"","v":"AAMCAcademicPrivateAssistantPhDNephrology-Med.L"},"Nephrology-Med.",4,"AAMC","Academic","Private","Assistant","PhD","2021-2022",76441,{"$f":"(((AAMC_Raw_Data_for_FY22[[#This Row],[Median]]-AAMC_Raw_Data_for_FY22[[#This Row],[25th]])/25)*5) + AAMC_Raw_Data_for_FY22[[#This Row],[25th]]","v":80019.399999999994},{"$f":"(((AAMC_Raw_Data_for_FY22[[#This Row],[Median]]-AAMC_Raw_Data_for_FY22[[#This Row],[25th]])/25)*10) + AAMC_Raw_Data_for_FY22[[#This Row],[25th]]","v":83597.8},{"$f":"(((AAMC_Raw_Data_for_FY22[[#This Row],[Median]]-AAMC_Raw_Data_for_FY22[[#This Row],[25th]])/25)*15) + AAMC_Raw_Data_for_FY22[[#This Row],[25th]]","v":87176.2},{"$f":"(((AAMC_Raw_Data_for_FY22[[#This Row],[Median]]-AAMC_Raw_Data_for_FY22[[#This Row],[25th]])/25)*20) + AAMC_Raw_Data_for_FY22[[#This Row],[25th]]","v":90754.6},94333,{"$f":"(((AAMC_Raw_Data_for_FY22[[#This Row],[75th]]-AAMC_Raw_Data_for_FY22[[#This Row],[Median]])/25)*5) + AAMC_Raw_Data_for_FY22[[#This Row],[Median]]","v":96190},{"$f":"(((AAMC_Raw_Data_for_FY22[[#This Row],[75th]]-AAMC_Raw_Data_for_FY22[[#This Row],[Median]])/25)*10) + AAMC_Raw_Data_for_FY22[[#This Row],[Median]]","v":98047},{"$f":"(((AAMC_Raw_Data_for_FY22[[#This Row],[75th]]-AAMC_Raw_Data_for_FY22[[#This Row],[Median]])/25)*15) + AAMC_Raw_Data_for_FY22[[#This Row],[Median]]","v":99904},{"$f":"(((AAMC_Raw_Data_for_FY22[[#This Row],[75th]]-AAMC_Raw_Data_for_FY22[[#This Row],[Median]])/25)*20) + AAMC_Raw_Data_for_FY22[[#This Row],[Median]]","v":101761},103618,{"$f":"(((AAMC_Raw_Data_for_FY22[[#This Row],[75th]]-AAMC_Raw_Data_for_FY22[[#This Row],[Median]])/25)*30) + AAMC_Raw_Data_for_FY22[[#This Row],[Median]]","v":105475},{"$f":"(((AAMC_Raw_Data_for_FY22[[#This Row],[75th]]-AAMC_Raw_Data_for_FY22[[#This Row],[Median]])/25)*35) + AAMC_Raw_Data_for_FY22[[#This Row],[Median]]","v":107332},{"$f":"(((AAMC_Raw_Data_for_FY22[[#This Row],[75th]]-AAMC_Raw_Data_for_FY22[[#This Row],[Median]])/25)*40) + AAMC_Raw_Data_for_FY22[[#This Row],[Median]]","v":109189}]
[{"$f":"AAMC_Raw_Data_for_FY22[[#This Row],[Source]]&AAMC_Raw_Data_for_FY22[[#This Row],[Type]]&AAMC_Raw_Data_for_FY22[[#This Row],[School Subset]]&AAMC_Raw_Data_for_FY22[[#This Row],[Rank]]&AAMC_Raw_Data_for_FY22[[#This Row],[Degree]]&AAMC_Raw_Data_for_FY22[[#This Row],[Department / Specialty]]&\"L\"","v":"AAMCAcademicPrivateAssociatePhDNephrology-Med.L"},"Nephrology-Med.",3,"AAMC","Academic","Private","Associate","PhD","2021-2022",123846,{"$f":"(((AAMC_Raw_Data_for_FY22[[#This Row],[Median]]-AAMC_Raw_Data_for_FY22[[#This Row],[25th]])/25)*5) + AAMC_Raw_Data_for_FY22[[#This Row],[25th]]","v":128064.8},{"$f":"(((AAMC_Raw_Data_for_FY22[[#This Row],[Median]]-AAMC_Raw_Data_for_FY22[[#This Row],[25th]])/25)*10) + AAMC_Raw_Data_for_FY22[[#This Row],[25th]]","v":132283.6},{"$f":"(((AAMC_Raw_Data_for_FY22[[#This Row],[Median]]-AAMC_Raw_Data_for_FY22[[#This Row],[25th]])/25)*15) + AAMC_Raw_Data_for_FY22[[#This Row],[25th]]","v":136502.39999999999},{"$f":"(((AAMC_Raw_Data_for_FY22[[#This Row],[Median]]-AAMC_Raw_Data_for_FY22[[#This Row],[25th]])/25)*20) + AAMC_Raw_Data_for_FY22[[#This Row],[25th]]","v":140721.20000000001},144940,{"$f":"(((AAMC_Raw_Data_for_FY22[[#This Row],[75th]]-AAMC_Raw_Data_for_FY22[[#This Row],[Median]])/25)*5) + AAMC_Raw_Data_for_FY22[[#This Row],[Median]]","v":150952},{"$f":"(((AAMC_Raw_Data_for_FY22[[#This Row],[75th]]-AAMC_Raw_Data_for_FY22[[#This Row],[Median]])/25)*10) + AAMC_Raw_Data_for_FY22[[#This Row],[Median]]","v":156964},{"$f":"(((AAMC_Raw_Data_for_FY22[[#This Row],[75th]]-AAMC_Raw_Data_for_FY22[[#This Row],[Median]])/25)*15) + AAMC_Raw_Data_for_FY22[[#This Row],[Median]]","v":162976},{"$f":"(((AAMC_Raw_Data_for_FY22[[#This Row],[75th]]-AAMC_Raw_Data_for_FY22[[#This Row],[Median]])/25)*20) + AAMC_Raw_Data_for_FY22[[#This Row],[Median]]","v":168988},175000,{"$f":"(((AAMC_Raw_Data_for_FY22[[#This Row],[75th]]-AAMC_Raw_Data_for_FY22[[#This Row],[Median]])/25)*30) + AAMC_Raw_Data_for_FY22[[#This Row],[Median]]","v":181012},{"$f":"(((AAMC_Raw_Data_for_FY22[[#This Row],[75th]]-AAMC_Raw_Data_for_FY22[[#This Row],[Median]])/25)*35) + AAMC_Raw_Data_for_FY22[[#This Row],[Median]]","v":187024},{"$f":"(((AAMC_Raw_Data_for_FY22[[#This Row],[75th]]-AAMC_Raw_Data_for_FY22[[#This Row],[Median]])/25)*40) + AAMC_Raw_Data_for_FY22[[#This Row],[Median]]","v":193036}]
[{"$f":"AAMC_Raw_Data_for_FY22[[#This Row],[Source]]&AAMC_Raw_Data_for_FY22[[#This Row],[Type]]&AAMC_Raw_Data_for_FY22[[#This Row],[School Subset]]&AAMC_Raw_Data_for_FY22[[#This Row],[Rank]]&AAMC_Raw_Data_for_FY22[[#This Row],[Degree]]&AAMC_Raw_Data_for_FY22[[#This Row],[Department / Specialty]]&\"L\"","v":"AAMCAcademicPrivateProfessorPhDNephrology-Med.L"},"Nephrology-Med.",2,"AAMC","Academic","Private","Professor","PhD","2021-2022",168841,{"$f":"(((AAMC_Raw_Data_for_FY22[[#This Row],[Median]]-AAMC_Raw_Data_for_FY22[[#This Row],[25th]])/25)*5) + AAMC_Raw_Data_for_FY22[[#This Row],[25th]]","v":177640.8},{"$f":"(((AAMC_Raw_Data_for_FY22[[#This Row],[Median]]-AAMC_Raw_Data_for_FY22[[#This Row],[25th]])/25)*10) + AAMC_Raw_Data_for_FY22[[#This Row],[25th]]","v":186440.6},{"$f":"(((AAMC_Raw_Data_for_FY22[[#This Row],[Median]]-AAMC_Raw_Data_for_FY22[[#This Row],[25th]])/25)*15) + AAMC_Raw_Data_for_FY22[[#This Row],[25th]]","v":195240.4},{"$f":"(((AAMC_Raw_Data_for_FY22[[#This Row],[Median]]-AAMC_Raw_Data_for_FY22[[#This Row],[25th]])/25)*20) + AAMC_Raw_Data_for_FY22[[#This Row],[25th]]","v":204040.2},212840,{"$f":"(((AAMC_Raw_Data_for_FY22[[#This Row],[75th]]-AAMC_Raw_Data_for_FY22[[#This Row],[Median]])/25)*5) + AAMC_Raw_Data_for_FY22[[#This Row],[Median]]","v":218528.4},{"$f":"(((AAMC_Raw_Data_for_FY22[[#This Row],[75th]]-AAMC_Raw_Data_for_FY22[[#This Row],[Median]])/25)*10) + AAMC_Raw_Data_for_FY22[[#This Row],[Median]]","v":224216.8},{"$f":"(((AAMC_Raw_Data_for_FY22[[#This Row],[75th]]-AAMC_Raw_Data_for_FY22[[#This Row],[Median]])/25)*15) + AAMC_Raw_Data_for_FY22[[#This Row],[Median]]","v":229905.2},{"$f":"(((AAMC_Raw_Data_for_FY22[[#This Row],[75th]]-AAMC_Raw_Data_for_FY22[[#This Row],[Median]])/25)*20) + AAMC_Raw_Data_for_FY22[[#This Row],[Median]]","v":235593.60000000001},241282,{"$f":"(((AAMC_Raw_Data_for_FY22[[#This Row],[75th]]-AAMC_Raw_Data_for_FY22[[#This Row],[Median]])/25)*30) + AAMC_Raw_Data_for_FY22[[#This Row],[Median]]","v":246970.4},{"$f":"(((AAMC_Raw_Data_for_FY22[[#This Row],[75th]]-AAMC_Raw_Data_for_FY22[[#This Row],[Median]])/25)*35) + AAMC_Raw_Data_for_FY22[[#This Row],[Median]]","v":252658.8},{"$f":"(((AAMC_Raw_Data_for_FY22[[#This Row],[75th]]-AAMC_Raw_Data_for_FY22[[#This Row],[Median]])/25)*40) + AAMC_Raw_Data_for_FY22[[#This Row],[Median]]","v":258347.2}]
[{"$f":"AAMC_Raw_Data_for_FY22[[#This Row],[Source]]&AAMC_Raw_Data_for_FY22[[#This Row],[Type]]&AAMC_Raw_Data_for_FY22[[#This Row],[School Subset]]&AAMC_Raw_Data_for_FY22[[#This Row],[Rank]]&AAMC_Raw_Data_for_FY22[[#This Row],[Degree]]&AAMC_Raw_Data_for_FY22[[#This Row],[Department / Specialty]]&\"L\"","v":"AAMCAcademicPrivateAssociatePhDPalliative Care-Med.L"},"Palliative Care-Med.",3,"AAMC","Academic","Private","Associate","PhD","2021-2022",null,{"$f":"(((AAMC_Raw_Data_for_FY22[[#This Row],[Median]]-AAMC_Raw_Data_for_FY22[[#This Row],[25th]])/25)*5) + AAMC_Raw_Data_for_FY22[[#This Row],[25th]]","v":0},{"$f":"(((AAMC_Raw_Data_for_FY22[[#This Row],[Median]]-AAMC_Raw_Data_for_FY22[[#This Row],[25th]])/25)*10) + AAMC_Raw_Data_for_FY22[[#This Row],[25th]]","v":0},{"$f":"(((AAMC_Raw_Data_for_FY22[[#This Row],[Median]]-AAMC_Raw_Data_for_FY22[[#This Row],[25th]])/25)*15) + AAMC_Raw_Data_for_FY22[[#This Row],[25th]]","v":0},{"$f":"(((AAMC_Raw_Data_for_FY22[[#This Row],[Median]]-AAMC_Raw_Data_for_FY22[[#This Row],[25th]])/25)*20) + AAMC_Raw_Data_for_FY22[[#This Row],[25th]]","v":0},null,{"$f":"(((AAMC_Raw_Data_for_FY22[[#This Row],[75th]]-AAMC_Raw_Data_for_FY22[[#This Row],[Median]])/25)*5) + AAMC_Raw_Data_for_FY22[[#This Row],[Median]]","v":0},{"$f":"(((AAMC_Raw_Data_for_FY22[[#This Row],[75th]]-AAMC_Raw_Data_for_FY22[[#This Row],[Median]])/25)*10) + AAMC_Raw_Data_for_FY22[[#This Row],[Median]]","v":0},{"$f":"(((AAMC_Raw_Data_for_FY22[[#This Row],[75th]]-AAMC_Raw_Data_for_FY22[[#This Row],[Median]])/25)*15) + AAMC_Raw_Data_for_FY22[[#This Row],[Median]]","v":0},{"$f":"(((AAMC_Raw_Data_for_FY22[[#This Row],[75th]]-AAMC_Raw_Data_for_FY22[[#This Row],[Median]])/25)*20) + AAMC_Raw_Data_for_FY22[[#This Row],[Median]]","v":0},null,{"$f":"(((AAMC_Raw_Data_for_FY22[[#This Row],[75th]]-AAMC_Raw_Data_for_FY22[[#This Row],[Median]])/25)*30) + AAMC_Raw_Data_for_FY22[[#This Row],[Median]]","v":0},{"$f":"(((AAMC_Raw_Data_for_FY22[[#This Row],[75th]]-AAMC_Raw_Data_for_FY22[[#This Row],[Median]])/25)*35) + AAMC_Raw_Data_for_FY22[[#This Row],[Median]]","v":0},{"$f":"(((AAMC_Raw_Data_for_FY22[[#This Row],[75th]]-AAMC_Raw_Data_for_FY22[[#This Row],[Median]])/25)*40) + AAMC_Raw_Data_for_FY22[[#This Row],[Median]]","v":0}]
[{"$f":"AAMC_Raw_Data_for_FY22[[#This Row],[Source]]&AAMC_Raw_Data_for_FY22[[#This Row],[Type]]&AAMC_Raw_Data_for_FY22[[#This Row],[School Subset]]&AAMC_Raw_Data_for_FY22[[#This Row],[Rank]]&AAMC_Raw_Data_for_FY22[[#This Row],[Degree]]&AAMC_Raw_Data_for_FY22[[#This Row],[Department / Specialty]]&\"L\"","v":"AAMCAcademicPrivateProfessorPhDPalliative Care-Med.L"},"Palliative Care-Med.",2,"AAMC","Academic","Private","Professor","PhD","2021-2022",null,{"$f":"(((AAMC_Raw_Data_for_FY22[[#This Row],[Median]]-AAMC_Raw_Data_for_FY22[[#This Row],[25th]])/25)*5) + AAMC_Raw_Data_for_FY22[[#This Row],[25th]]","v":0},{"$f":"(((AAMC_Raw_Data_for_FY22[[#This Row],[Median]]-AAMC_Raw_Data_for_FY22[[#This Row],[25th]])/25)*10) + AAMC_Raw_Data_for_FY22[[#This Row],[25th]]","v":0},{"$f":"(((AAMC_Raw_Data_for_FY22[[#This Row],[Median]]-AAMC_Raw_Data_for_FY22[[#This Row],[25th]])/25)*15) + AAMC_Raw_Data_for_FY22[[#This Row],[25th]]","v":0},{"$f":"(((AAMC_Raw_Data_for_FY22[[#This Row],[Median]]-AAMC_Raw_Data_for_FY22[[#This Row],[25th]])/25)*20) + AAMC_Raw_Data_for_FY22[[#This Row],[25th]]","v":0},null,{"$f":"(((AAMC_Raw_Data_for_FY22[[#This Row],[75th]]-AAMC_Raw_Data_for_FY22[[#This Row],[Median]])/25)*5) + AAMC_Raw_Data_for_FY22[[#This Row],[Median]]","v":0},{"$f":"(((AAMC_Raw_Data_for_FY22[[#This Row],[75th]]-AAMC_Raw_Data_for_FY22[[#This Row],[Median]])/25)*10) + AAMC_Raw_Data_for_FY22[[#This Row],[Median]]","v":0},{"$f":"(((AAMC_Raw_Data_for_FY22[[#This Row],[75th]]-AAMC_Raw_Data_for_FY22[[#This Row],[Median]])/25)*15) + AAMC_Raw_Data_for_FY22[[#This Row],[Median]]","v":0},{"$f":"(((AAMC_Raw_Data_for_FY22[[#This Row],[75th]]-AAMC_Raw_Data_for_FY22[[#This Row],[Median]])/25)*20) + AAMC_Raw_Data_for_FY22[[#This Row],[Median]]","v":0},null,{"$f":"(((AAMC_Raw_Data_for_FY22[[#This Row],[75th]]-AAMC_Raw_Data_for_FY22[[#This Row],[Median]])/25)*30) + AAMC_Raw_Data_for_FY22[[#This Row],[Median]]","v":0},{"$f":"(((AAMC_Raw_Data_for_FY22[[#This Row],[75th]]-AAMC_Raw_Data_for_FY22[[#This Row],[Median]])/25)*35) + AAMC_Raw_Data_for_FY22[[#This Row],[Median]]","v":0},{"$f":"(((AAMC_Raw_Data_for_FY22[[#This Row],[75th]]-AAMC_Raw_Data_for_FY22[[#This Row],[Median]])/25)*40) + AAMC_Raw_Data_for_FY22[[#This Row],[Median]]","v":0}]
[{"$f":"AAMC_Raw_Data_for_FY22[[#This Row],[Source]]&AAMC_Raw_Data_for_FY22[[#This Row],[Type]]&AAMC_Raw_Data_for_FY22[[#This Row],[School Subset]]&AAMC_Raw_Data_for_FY22[[#This Row],[Rank]]&AAMC_Raw_Data_for_FY22[[#This Row],[Degree]]&AAMC_Raw_Data_for_FY22[[#This Row],[Department / Specialty]]&\"L\"","v":"AAMCAcademicPrivateInstructorPhDPulmonary-Med.L"},"Pulmonary-Med.",5,"AAMC","Academic","Private","Instructor","PhD","2021-2022",70720,{"$f":"(((AAMC_Raw_Data_for_FY22[[#This Row],[Median]]-AAMC_Raw_Data_for_FY22[[#This Row],[25th]])/25)*5) + AAMC_Raw_Data_for_FY22[[#This Row],[25th]]","v":71789.2},{"$f":"(((AAMC_Raw_Data_for_FY22[[#This Row],[Median]]-AAMC_Raw_Data_for_FY22[[#This Row],[25th]])/25)*10) + AAMC_Raw_Data_for_FY22[[#This Row],[25th]]","v":72858.399999999994},{"$f":"(((AAMC_Raw_Data_for_FY22[[#This Row],[Median]]-AAMC_Raw_Data_for_FY22[[#This Row],[25th]])/25)*15) + AAMC_Raw_Data_for_FY22[[#This Row],[25th]]","v":73927.600000000006},{"$f":"(((AAMC_Raw_Data_for_FY22[[#This Row],[Median]]-AAMC_Raw_Data_for_FY22[[#This Row],[25th]])/25)*20) + AAMC_Raw_Data_for_FY22[[#This Row],[25th]]","v":74996.800000000003},76066,{"$f":"(((AAMC_Raw_Data_for_FY22[[#This Row],[75th]]-AAMC_Raw_Data_for_FY22[[#This Row],[Median]])/25)*5) + AAMC_Raw_Data_for_FY22[[#This Row],[Median]]","v":76302.8},{"$f":"(((AAMC_Raw_Data_for_FY22[[#This Row],[75th]]-AAMC_Raw_Data_for_FY22[[#This Row],[Median]])/25)*10) + AAMC_Raw_Data_for_FY22[[#This Row],[Median]]","v":76539.600000000006},{"$f":"(((AAMC_Raw_Data_for_FY22[[#This Row],[75th]]-AAMC_Raw_Data_for_FY22[[#This Row],[Median]])/25)*15) + AAMC_Raw_Data_for_FY22[[#This Row],[Median]]","v":76776.399999999994},{"$f":"(((AAMC_Raw_Data_for_FY22[[#This Row],[75th]]-AAMC_Raw_Data_for_FY22[[#This Row],[Median]])/25)*20) + AAMC_Raw_Data_for_FY22[[#This Row],[Median]]","v":77013.2},77250,{"$f":"(((AAMC_Raw_Data_for_FY22[[#This Row],[75th]]-AAMC_Raw_Data_for_FY22[[#This Row],[Median]])/25)*30) + AAMC_Raw_Data_for_FY22[[#This Row],[Median]]","v":77486.8},{"$f":"(((AAMC_Raw_Data_for_FY22[[#This Row],[75th]]-AAMC_Raw_Data_for_FY22[[#This Row],[Median]])/25)*35) + AAMC_Raw_Data_for_FY22[[#This Row],[Median]]","v":77723.600000000006},{"$f":"(((AAMC_Raw_Data_for_FY22[[#This Row],[75th]]-AAMC_Raw_Data_for_FY22[[#This Row],[Median]])/25)*40) + AAMC_Raw_Data_for_FY22[[#This Row],[Median]]","v":77960.399999999994}]
[{"$f":"AAMC_Raw_Data_for_FY22[[#This Row],[Source]]&AAMC_Raw_Data_for_FY22[[#This Row],[Type]]&AAMC_Raw_Data_for_FY22[[#This Row],[School Subset]]&AAMC_Raw_Data_for_FY22[[#This Row],[Rank]]&AAMC_Raw_Data_for_FY22[[#This Row],[Degree]]&AAMC_Raw_Data_for_FY22[[#This Row],[Department / Specialty]]&\"L\"","v":"AAMCAcademicPrivateAssistantPhDPulmonary-Med.L"},"Pulmonary-Med.",4,"AAMC","Academic","Private","Assistant","PhD","2021-2022",74311,{"$f":"(((AAMC_Raw_Data_for_FY22[[#This Row],[Median]]-AAMC_Raw_Data_for_FY22[[#This Row],[25th]])/25)*5) + AAMC_Raw_Data_for_FY22[[#This Row],[25th]]","v":78928.800000000003},{"$f":"(((AAMC_Raw_Data_for_FY22[[#This Row],[Median]]-AAMC_Raw_Data_for_FY22[[#This Row],[25th]])/25)*10) + AAMC_Raw_Data_for_FY22[[#This Row],[25th]]","v":83546.600000000006},{"$f":"(((AAMC_Raw_Data_for_FY22[[#This Row],[Median]]-AAMC_Raw_Data_for_FY22[[#This Row],[25th]])/25)*15) + AAMC_Raw_Data_for_FY22[[#This Row],[25th]]","v":88164.4},{"$f":"(((AAMC_Raw_Data_for_FY22[[#This Row],[Median]]-AAMC_Raw_Data_for_FY22[[#This Row],[25th]])/25)*20) + AAMC_Raw_Data_for_FY22[[#This Row],[25th]]","v":92782.2},97400,{"$f":"(((AAMC_Raw_Data_for_FY22[[#This Row],[75th]]-AAMC_Raw_Data_for_FY22[[#This Row],[Median]])/25)*5) + AAMC_Raw_Data_for_FY22[[#This Row],[Median]]","v":100001.8},{"$f":"(((AAMC_Raw_Data_for_FY22[[#This Row],[75th]]-AAMC_Raw_Data_for_FY22[[#This Row],[Median]])/25)*10) + AAMC_Raw_Data_for_FY22[[#This Row],[Median]]","v":102603.6},{"$f":"(((AAMC_Raw_Data_for_FY22[[#This Row],[75th]]-AAMC_Raw_Data_for_FY22[[#This Row],[Median]])/25)*15) + AAMC_Raw_Data_for_FY22[[#This Row],[Median]]","v":105205.4},{"$f":"(((AAMC_Raw_Data_for_FY22[[#This Row],[75th]]-AAMC_Raw_Data_for_FY22[[#This Row],[Median]])/25)*20) + AAMC_Raw_Data_for_FY22[[#This Row],[Median]]","v":107807.2},110409,{"$f":"(((AAMC_Raw_Data_for_FY22[[#This Row],[75th]]-AAMC_Raw_Data_for_FY22[[#This Row],[Median]])/25)*30) + AAMC_Raw_Data_for_FY22[[#This Row],[Median]]","v":113010.8},{"$f":"(((AAMC_Raw_Data_for_FY22[[#This Row],[75th]]-AAMC_Raw_Data_for_FY22[[#This Row],[Median]])/25)*35) + AAMC_Raw_Data_for_FY22[[#This Row],[Median]]","v":115612.6},{"$f":"(((AAMC_Raw_Data_for_FY22[[#This Row],[75th]]-AAMC_Raw_Data_for_FY22[[#This Row],[Median]])/25)*40) + AAMC_Raw_Data_for_FY22[[#This Row],[Median]]","v":118214.39999999999}]
[{"$f":"AAMC_Raw_Data_for_FY22[[#This Row],[Source]]&AAMC_Raw_Data_for_FY22[[#This Row],[Type]]&AAMC_Raw_Data_for_FY22[[#This Row],[School Subset]]&AAMC_Raw_Data_for_FY22[[#This Row],[Rank]]&AAMC_Raw_Data_for_FY22[[#This Row],[Degree]]&AAMC_Raw_Data_for_FY22[[#This Row],[Department / Specialty]]&\"L\"","v":"AAMCAcademicPrivateAssociatePhDPulmonary-Med.L"},"Pulmonary-Med.",3,"AAMC","Academic","Private","Associate","PhD","2021-2022",113650,{"$f":"(((AAMC_Raw_Data_for_FY22[[#This Row],[Median]]-AAMC_Raw_Data_for_FY22[[#This Row],[25th]])/25)*5) + AAMC_Raw_Data_for_FY22[[#This Row],[25th]]","v":118746},{"$f":"(((AAMC_Raw_Data_for_FY22[[#This Row],[Median]]-AAMC_Raw_Data_for_FY22[[#This Row],[25th]])/25)*10) + AAMC_Raw_Data_for_FY22[[#This Row],[25th]]","v":123842},{"$f":"(((AAMC_Raw_Data_for_FY22[[#This Row],[Median]]-AAMC_Raw_Data_for_FY22[[#This Row],[25th]])/25)*15) + AAMC_Raw_Data_for_FY22[[#This Row],[25th]]","v":128938},{"$f":"(((AAMC_Raw_Data_for_FY22[[#This Row],[Median]]-AAMC_Raw_Data_for_FY22[[#This Row],[25th]])/25)*20) + AAMC_Raw_Data_for_FY22[[#This Row],[25th]]","v":134034},139130,{"$f":"(((AAMC_Raw_Data_for_FY22[[#This Row],[75th]]-AAMC_Raw_Data_for_FY22[[#This Row],[Median]])/25)*5) + AAMC_Raw_Data_for_FY22[[#This Row],[Median]]","v":143008.20000000001},{"$f":"(((AAMC_Raw_Data_for_FY22[[#This Row],[75th]]-AAMC_Raw_Data_for_FY22[[#This Row],[Median]])/25)*10) + AAMC_Raw_Data_for_FY22[[#This Row],[Median]]","v":146886.39999999999},{"$f":"(((AAMC_Raw_Data_for_FY22[[#This Row],[75th]]-AAMC_Raw_Data_for_FY22[[#This Row],[Median]])/25)*15) + AAMC_Raw_Data_for_FY22[[#This Row],[Median]]","v":150764.6},{"$f":"(((AAMC_Raw_Data_for_FY22[[#This Row],[75th]]-AAMC_Raw_Data_for_FY22[[#This Row],[Median]])/25)*20) + AAMC_Raw_Data_for_FY22[[#This Row],[Median]]","v":154642.79999999999},158521,{"$f":"(((AAMC_Raw_Data_for_FY22[[#This Row],[75th]]-AAMC_Raw_Data_for_FY22[[#This Row],[Median]])/25)*30) + AAMC_Raw_Data_for_FY22[[#This Row],[Median]]","v":162399.20000000001},{"$f":"(((AAMC_Raw_Data_for_FY22[[#This Row],[75th]]-AAMC_Raw_Data_for_FY22[[#This Row],[Median]])/25)*35) + AAMC_Raw_Data_for_FY22[[#This Row],[Median]]","v":166277.4},{"$f":"(((AAMC_Raw_Data_for_FY22[[#This Row],[75th]]-AAMC_Raw_Data_for_FY22[[#This Row],[Median]])/25)*40) + AAMC_Raw_Data_for_FY22[[#This Row],[Median]]","v":170155.6}]
[{"$f":"AAMC_Raw_Data_for_FY22[[#This Row],[Source]]&AAMC_Raw_Data_for_FY22[[#This Row],[Type]]&AAMC_Raw_Data_for_FY22[[#This Row],[School Subset]]&AAMC_Raw_Data_for_FY22[[#This Row],[Rank]]&AAMC_Raw_Data_for_FY22[[#This Row],[Degree]]&AAMC_Raw_Data_for_FY22[[#This Row],[Department / Specialty]]&\"L\"","v":"AAMCAcademicPrivateProfessorPhDPulmonary-Med.L"},"Pulmonary-Med.",2,"AAMC","Academic","Private","Professor","PhD","2021-2022",169834,{"$f":"(((AAMC_Raw_Data_for_FY22[[#This Row],[Median]]-AAMC_Raw_Data_for_FY22[[#This Row],[25th]])/25)*5) + AAMC_Raw_Data_for_FY22[[#This Row],[25th]]","v":180256},{"$f":"(((AAMC_Raw_Data_for_FY22[[#This Row],[Median]]-AAMC_Raw_Data_for_FY22[[#This Row],[25th]])/25)*10) + AAMC_Raw_Data_for_FY22[[#This Row],[25th]]","v":190678},{"$f":"(((AAMC_Raw_Data_for_FY22[[#This Row],[Median]]-AAMC_Raw_Data_for_FY22[[#This Row],[25th]])/25)*15) + AAMC_Raw_Data_for_FY22[[#This Row],[25th]]","v":201100},{"$f":"(((AAMC_Raw_Data_for_FY22[[#This Row],[Median]]-AAMC_Raw_Data_for_FY22[[#This Row],[25th]])/25)*20) + AAMC_Raw_Data_for_FY22[[#This Row],[25th]]","v":211522},221944,{"$f":"(((AAMC_Raw_Data_for_FY22[[#This Row],[75th]]-AAMC_Raw_Data_for_FY22[[#This Row],[Median]])/25)*5) + AAMC_Raw_Data_for_FY22[[#This Row],[Median]]","v":232555.2},{"$f":"(((AAMC_Raw_Data_for_FY22[[#This Row],[75th]]-AAMC_Raw_Data_for_FY22[[#This Row],[Median]])/25)*10) + AAMC_Raw_Data_for_FY22[[#This Row],[Median]]","v":243166.4},{"$f":"(((AAMC_Raw_Data_for_FY22[[#This Row],[75th]]-AAMC_Raw_Data_for_FY22[[#This Row],[Median]])/25)*15) + AAMC_Raw_Data_for_FY22[[#This Row],[Median]]","v":253777.6},{"$f":"(((AAMC_Raw_Data_for_FY22[[#This Row],[75th]]-AAMC_Raw_Data_for_FY22[[#This Row],[Median]])/25)*20) + AAMC_Raw_Data_for_FY22[[#This Row],[Median]]","v":264388.8},275000,{"$f":"(((AAMC_Raw_Data_for_FY22[[#This Row],[75th]]-AAMC_Raw_Data_for_FY22[[#This Row],[Median]])/25)*30) + AAMC_Raw_Data_for_FY22[[#This Row],[Median]]","v":285611.2},{"$f":"(((AAMC_Raw_Data_for_FY22[[#This Row],[75th]]-AAMC_Raw_Data_for_FY22[[#This Row],[Median]])/25)*35) + AAMC_Raw_Data_for_FY22[[#This Row],[Median]]","v":296222.40000000002},{"$f":"(((AAMC_Raw_Data_for_FY22[[#This Row],[75th]]-AAMC_Raw_Data_for_FY22[[#This Row],[Median]])/25)*40) + AAMC_Raw_Data_for_FY22[[#This Row],[Median]]","v":306833.59999999998}]
[{"$f":"AAMC_Raw_Data_for_FY22[[#This Row],[Source]]&AAMC_Raw_Data_for_FY22[[#This Row],[Type]]&AAMC_Raw_Data_for_FY22[[#This Row],[School Subset]]&AAMC_Raw_Data_for_FY22[[#This Row],[Rank]]&AAMC_Raw_Data_for_FY22[[#This Row],[Degree]]&AAMC_Raw_Data_for_FY22[[#This Row],[Department / Specialty]]&\"L\"","v":"AAMCAcademicPrivateChiefPhDPulmonary-Med.L"},"Pulmonary-Med.",6,"AAMC","Academic","Private","Chief","PhD","2021-2022",null,{"$f":"(((AAMC_Raw_Data_for_FY22[[#This Row],[Median]]-AAMC_Raw_Data_for_FY22[[#This Row],[25th]])/25)*5) + AAMC_Raw_Data_for_FY22[[#This Row],[25th]]","v":0},{"$f":"(((AAMC_Raw_Data_for_FY22[[#This Row],[Median]]-AAMC_Raw_Data_for_FY22[[#This Row],[25th]])/25)*10) + AAMC_Raw_Data_for_FY22[[#This Row],[25th]]","v":0},{"$f":"(((AAMC_Raw_Data_for_FY22[[#This Row],[Median]]-AAMC_Raw_Data_for_FY22[[#This Row],[25th]])/25)*15) + AAMC_Raw_Data_for_FY22[[#This Row],[25th]]","v":0},{"$f":"(((AAMC_Raw_Data_for_FY22[[#This Row],[Median]]-AAMC_Raw_Data_for_FY22[[#This Row],[25th]])/25)*20) + AAMC_Raw_Data_for_FY22[[#This Row],[25th]]","v":0},null,{"$f":"(((AAMC_Raw_Data_for_FY22[[#This Row],[75th]]-AAMC_Raw_Data_for_FY22[[#This Row],[Median]])/25)*5) + AAMC_Raw_Data_for_FY22[[#This Row],[Median]]","v":0},{"$f":"(((AAMC_Raw_Data_for_FY22[[#This Row],[75th]]-AAMC_Raw_Data_for_FY22[[#This Row],[Median]])/25)*10) + AAMC_Raw_Data_for_FY22[[#This Row],[Median]]","v":0},{"$f":"(((AAMC_Raw_Data_for_FY22[[#This Row],[75th]]-AAMC_Raw_Data_for_FY22[[#This Row],[Median]])/25)*15) + AAMC_Raw_Data_for_FY22[[#This Row],[Median]]","v":0},{"$f":"(((AAMC_Raw_Data_for_FY22[[#This Row],[75th]]-AAMC_Raw_Data_for_FY22[[#This Row],[Median]])/25)*20) + AAMC_Raw_Data_for_FY22[[#This Row],[Median]]","v":0},null,{"$f":"(((AAMC_Raw_Data_for_FY22[[#This Row],[75th]]-AAMC_Raw_Data_for_FY22[[#This Row],[Median]])/25)*30) + AAMC_Raw_Data_for_FY22[[#This Row],[Median]]","v":0},{"$f":"(((AAMC_Raw_Data_for_FY22[[#This Row],[75th]]-AAMC_Raw_Data_for_FY22[[#This Row],[Median]])/25)*35) + AAMC_Raw_Data_for_FY22[[#This Row],[Median]]","v":0},{"$f":"(((AAMC_Raw_Data_for_FY22[[#This Row],[75th]]-AAMC_Raw_Data_for_FY22[[#This Row],[Median]])/25)*40) + AAMC_Raw_Data_for_FY22[[#This Row],[Median]]","v":0}]
[{"$f":"AAMC_Raw_Data_for_FY22[[#This Row],[Source]]&AAMC_Raw_Data_for_FY22[[#This Row],[Type]]&AAMC_Raw_Data_for_FY22[[#This Row],[School Subset]]&AAMC_Raw_Data_for_FY22[[#This Row],[Rank]]&AAMC_Raw_Data_for_FY22[[#This Row],[Degree]]&AAMC_Raw_Data_for_FY22[[#This Row],[Department / Specialty]]&\"L\"","v":"AAMCAcademicPrivateInstructorPhDRheumatology-Med.L"},"Rheumatology-Med.",5,"AAMC","Academic","Private","Instructor","PhD","2021-2022",null,{"$f":"(((AAMC_Raw_Data_for_FY22[[#This Row],[Median]]-AAMC_Raw_Data_for_FY22[[#This Row],[25th]])/25)*5) + AAMC_Raw_Data_for_FY22[[#This Row],[25th]]","v":0},{"$f":"(((AAMC_Raw_Data_for_FY22[[#This Row],[Median]]-AAMC_Raw_Data_for_FY22[[#This Row],[25th]])/25)*10) + AAMC_Raw_Data_for_FY22[[#This Row],[25th]]","v":0},{"$f":"(((AAMC_Raw_Data_for_FY22[[#This Row],[Median]]-AAMC_Raw_Data_for_FY22[[#This Row],[25th]])/25)*15) + AAMC_Raw_Data_for_FY22[[#This Row],[25th]]","v":0},{"$f":"(((AAMC_Raw_Data_for_FY22[[#This Row],[Median]]-AAMC_Raw_Data_for_FY22[[#This Row],[25th]])/25)*20) + AAMC_Raw_Data_for_FY22[[#This Row],[25th]]","v":0},null,{"$f":"(((AAMC_Raw_Data_for_FY22[[#This Row],[75th]]-AAMC_Raw_Data_for_FY22[[#This Row],[Median]])/25)*5) + AAMC_Raw_Data_for_FY22[[#This Row],[Median]]","v":0},{"$f":"(((AAMC_Raw_Data_for_FY22[[#This Row],[75th]]-AAMC_Raw_Data_for_FY22[[#This Row],[Median]])/25)*10) + AAMC_Raw_Data_for_FY22[[#This Row],[Median]]","v":0},{"$f":"(((AAMC_Raw_Data_for_FY22[[#This Row],[75th]]-AAMC_Raw_Data_for_FY22[[#This Row],[Median]])/25)*15) + AAMC_Raw_Data_for_FY22[[#This Row],[Median]]","v":0},{"$f":"(((AAMC_Raw_Data_for_FY22[[#This Row],[75th]]-AAMC_Raw_Data_for_FY22[[#This Row],[Median]])/25)*20) + AAMC_Raw_Data_for_FY22[[#This Row],[Median]]","v":0},null,{"$f":"(((AAMC_Raw_Data_for_FY22[[#This Row],[75th]]-AAMC_Raw_Data_for_FY22[[#This Row],[Median]])/25)*30) + AAMC_Raw_Data_for_FY22[[#This Row],[Median]]","v":0},{"$f":"(((AAMC_Raw_Data_for_FY22[[#This Row],[75th]]-AAMC_Raw_Data_for_FY22[[#This Row],[Median]])/25)*35) + AAMC_Raw_Data_for_FY22[[#This Row],[Median]]","v":0},{"$f":"(((AAMC_Raw_Data_for_FY22[[#This Row],[75th]]-AAMC_Raw_Data_for_FY22[[#This Row],[Median]])/25)*40) + AAMC_Raw_Data_for_FY22[[#This Row],[Median]]","v":0}]
[{"$f":"AAMC_Raw_Data_for_FY22[[#This Row],[Source]]&AAMC_Raw_Data_for_FY22[[#This Row],[Type]]&AAMC_Raw_Data_for_FY22[[#This Row],[School Subset]]&AAMC_Raw_Data_for_FY22[[#This Row],[Rank]]&AAMC_Raw_Data_for_FY22[[#This Row],[Degree]]&AAMC_Raw_Data_for_FY22[[#This Row],[Department / Specialty]]&\"L\"","v":"AAMCAcademicPrivateAssistantPhDRheumatology-Med.L"},"Rheumatology-Med.",4,"AAMC","Academic","Private","Assistant","PhD","2021-2022",93906,{"$f":"(((AAMC_Raw_Data_for_FY22[[#This Row],[Median]]-AAMC_Raw_Data_for_FY22[[#This Row],[25th]])/25)*5) + AAMC_Raw_Data_for_FY22[[#This Row],[25th]]","v":96352},{"$f":"(((AAMC_Raw_Data_for_FY22[[#This Row],[Median]]-AAMC_Raw_Data_for_FY22[[#This Row],[25th]])/25)*10) + AAMC_Raw_Data_for_FY22[[#This Row],[25th]]","v":98798},{"$f":"(((AAMC_Raw_Data_for_FY22[[#This Row],[Median]]-AAMC_Raw_Data_for_FY22[[#This Row],[25th]])/25)*15) + AAMC_Raw_Data_for_FY22[[#This Row],[25th]]","v":101244},{"$f":"(((AAMC_Raw_Data_for_FY22[[#This Row],[Median]]-AAMC_Raw_Data_for_FY22[[#This Row],[25th]])/25)*20) + AAMC_Raw_Data_for_FY22[[#This Row],[25th]]","v":103690},106136,{"$f":"(((AAMC_Raw_Data_for_FY22[[#This Row],[75th]]-AAMC_Raw_Data_for_FY22[[#This Row],[Median]])/25)*5) + AAMC_Raw_Data_for_FY22[[#This Row],[Median]]","v":109724.8},{"$f":"(((AAMC_Raw_Data_for_FY22[[#This Row],[75th]]-AAMC_Raw_Data_for_FY22[[#This Row],[Median]])/25)*10) + AAMC_Raw_Data_for_FY22[[#This Row],[Median]]","v":113313.60000000001},{"$f":"(((AAMC_Raw_Data_for_FY22[[#This Row],[75th]]-AAMC_Raw_Data_for_FY22[[#This Row],[Median]])/25)*15) + AAMC_Raw_Data_for_FY22[[#This Row],[Median]]","v":116902.39999999999},{"$f":"(((AAMC_Raw_Data_for_FY22[[#This Row],[75th]]-AAMC_Raw_Data_for_FY22[[#This Row],[Median]])/25)*20) + AAMC_Raw_Data_for_FY22[[#This Row],[Median]]","v":120491.2},124080,{"$f":"(((AAMC_Raw_Data_for_FY22[[#This Row],[75th]]-AAMC_Raw_Data_for_FY22[[#This Row],[Median]])/25)*30) + AAMC_Raw_Data_for_FY22[[#This Row],[Median]]","v":127668.8},{"$f":"(((AAMC_Raw_Data_for_FY22[[#This Row],[75th]]-AAMC_Raw_Data_for_FY22[[#This Row],[Median]])/25)*35) + AAMC_Raw_Data_for_FY22[[#This Row],[Median]]","v":131257.60000000001},{"$f":"(((AAMC_Raw_Data_for_FY22[[#This Row],[75th]]-AAMC_Raw_Data_for_FY22[[#This Row],[Median]])/25)*40) + AAMC_Raw_Data_for_FY22[[#This Row],[Median]]","v":134846.39999999999}]
[{"$f":"AAMC_Raw_Data_for_FY22[[#This Row],[Source]]&AAMC_Raw_Data_for_FY22[[#This Row],[Type]]&AAMC_Raw_Data_for_FY22[[#This Row],[School Subset]]&AAMC_Raw_Data_for_FY22[[#This Row],[Rank]]&AAMC_Raw_Data_for_FY22[[#This Row],[Degree]]&AAMC_Raw_Data_for_FY22[[#This Row],[Department / Specialty]]&\"L\"","v":"AAMCAcademicPrivateAssociatePhDRheumatology-Med.L"},"Rheumatology-Med.",3,"AAMC","Academic","Private","Associate","PhD","2021-2022",128661,{"$f":"(((AAMC_Raw_Data_for_FY22[[#This Row],[Median]]-AAMC_Raw_Data_for_FY22[[#This Row],[25th]])/25)*5) + AAMC_Raw_Data_for_FY22[[#This Row],[25th]]","v":129751.4},{"$f":"(((AAMC_Raw_Data_for_FY22[[#This Row],[Median]]-AAMC_Raw_Data_for_FY22[[#This Row],[25th]])/25)*10) + AAMC_Raw_Data_for_FY22[[#This Row],[25th]]","v":130841.8},{"$f":"(((AAMC_Raw_Data_for_FY22[[#This Row],[Median]]-AAMC_Raw_Data_for_FY22[[#This Row],[25th]])/25)*15) + AAMC_Raw_Data_for_FY22[[#This Row],[25th]]","v":131932.20000000001},{"$f":"(((AAMC_Raw_Data_for_FY22[[#This Row],[Median]]-AAMC_Raw_Data_for_FY22[[#This Row],[25th]])/25)*20) + AAMC_Raw_Data_for_FY22[[#This Row],[25th]]","v":133022.6},134113,{"$f":"(((AAMC_Raw_Data_for_FY22[[#This Row],[75th]]-AAMC_Raw_Data_for_FY22[[#This Row],[Median]])/25)*5) + AAMC_Raw_Data_for_FY22[[#This Row],[Median]]","v":135347.6},{"$f":"(((AAMC_Raw_Data_for_FY22[[#This Row],[75th]]-AAMC_Raw_Data_for_FY22[[#This Row],[Median]])/25)*10) + AAMC_Raw_Data_for_FY22[[#This Row],[Median]]","v":136582.20000000001},{"$f":"(((AAMC_Raw_Data_for_FY22[[#This Row],[75th]]-AAMC_Raw_Data_for_FY22[[#This Row],[Median]])/25)*15) + AAMC_Raw_Data_for_FY22[[#This Row],[Median]]","v":137816.79999999999},{"$f":"(((AAMC_Raw_Data_for_FY22[[#This Row],[75th]]-AAMC_Raw_Data_for_FY22[[#This Row],[Median]])/25)*20) + AAMC_Raw_Data_for_FY22[[#This Row],[Median]]","v":139051.4},140286,{"$f":"(((AAMC_Raw_Data_for_FY22[[#This Row],[75th]]-AAMC_Raw_Data_for_FY22[[#This Row],[Median]])/25)*30) + AAMC_Raw_Data_for_FY22[[#This Row],[Median]]","v":141520.6},{"$f":"(((AAMC_Raw_Data_for_FY22[[#This Row],[75th]]-AAMC_Raw_Data_for_FY22[[#This Row],[Median]])/25)*35) + AAMC_Raw_Data_for_FY22[[#This Row],[Median]]","v":142755.20000000001},{"$f":"(((AAMC_Raw_Data_for_FY22[[#This Row],[75th]]-AAMC_Raw_Data_for_FY22[[#This Row],[Median]])/25)*40) + AAMC_Raw_Data_for_FY22[[#This Row],[Median]]","v":143989.79999999999}]
[{"$f":"AAMC_Raw_Data_for_FY22[[#This Row],[Source]]&AAMC_Raw_Data_for_FY22[[#This Row],[Type]]&AAMC_Raw_Data_for_FY22[[#This Row],[School Subset]]&AAMC_Raw_Data_for_FY22[[#This Row],[Rank]]&AAMC_Raw_Data_for_FY22[[#This Row],[Degree]]&AAMC_Raw_Data_for_FY22[[#This Row],[Department / Specialty]]&\"L\"","v":"AAMCAcademicPrivateProfessorPhDRheumatology-Med.L"},"Rheumatology-Med.",2,"AAMC","Academic","Private","Professor","PhD","2021-2022",150807,{"$f":"(((AAMC_Raw_Data_for_FY22[[#This Row],[Median]]-AAMC_Raw_Data_for_FY22[[#This Row],[25th]])/25)*5) + AAMC_Raw_Data_for_FY22[[#This Row],[25th]]","v":153724.79999999999},{"$f":"(((AAMC_Raw_Data_for_FY22[[#This Row],[Median]]-AAMC_Raw_Data_for_FY22[[#This Row],[25th]])/25)*10) + AAMC_Raw_Data_for_FY22[[#This Row],[25th]]","v":156642.6},{"$f":"(((AAMC_Raw_Data_for_FY22[[#This Row],[Median]]-AAMC_Raw_Data_for_FY22[[#This Row],[25th]])/25)*15) + AAMC_Raw_Data_for_FY22[[#This Row],[25th]]","v":159560.4},{"$f":"(((AAMC_Raw_Data_for_FY22[[#This Row],[Median]]-AAMC_Raw_Data_for_FY22[[#This Row],[25th]])/25)*20) + AAMC_Raw_Data_for_FY22[[#This Row],[25th]]","v":162478.20000000001},165396,{"$f":"(((AAMC_Raw_Data_for_FY22[[#This Row],[75th]]-AAMC_Raw_Data_for_FY22[[#This Row],[Median]])/25)*5) + AAMC_Raw_Data_for_FY22[[#This Row],[Median]]","v":175863.8},{"$f":"(((AAMC_Raw_Data_for_FY22[[#This Row],[75th]]-AAMC_Raw_Data_for_FY22[[#This Row],[Median]])/25)*10) + AAMC_Raw_Data_for_FY22[[#This Row],[Median]]","v":186331.6},{"$f":"(((AAMC_Raw_Data_for_FY22[[#This Row],[75th]]-AAMC_Raw_Data_for_FY22[[#This Row],[Median]])/25)*15) + AAMC_Raw_Data_for_FY22[[#This Row],[Median]]","v":196799.4},{"$f":"(((AAMC_Raw_Data_for_FY22[[#This Row],[75th]]-AAMC_Raw_Data_for_FY22[[#This Row],[Median]])/25)*20) + AAMC_Raw_Data_for_FY22[[#This Row],[Median]]","v":207267.20000000001},217735,{"$f":"(((AAMC_Raw_Data_for_FY22[[#This Row],[75th]]-AAMC_Raw_Data_for_FY22[[#This Row],[Median]])/25)*30) + AAMC_Raw_Data_for_FY22[[#This Row],[Median]]","v":228202.8},{"$f":"(((AAMC_Raw_Data_for_FY22[[#This Row],[75th]]-AAMC_Raw_Data_for_FY22[[#This Row],[Median]])/25)*35) + AAMC_Raw_Data_for_FY22[[#This Row],[Median]]","v":238670.59999999998},{"$f":"(((AAMC_Raw_Data_for_FY22[[#This Row],[75th]]-AAMC_Raw_Data_for_FY22[[#This Row],[Median]])/25)*40) + AAMC_Raw_Data_for_FY22[[#This Row],[Median]]","v":249138.4}]
[{"$f":"AAMC_Raw_Data_for_FY22[[#This Row],[Source]]&AAMC_Raw_Data_for_FY22[[#This Row],[Type]]&AAMC_Raw_Data_for_FY22[[#This Row],[School Subset]]&AAMC_Raw_Data_for_FY22[[#This Row],[Rank]]&AAMC_Raw_Data_for_FY22[[#This Row],[Degree]]&AAMC_Raw_Data_for_FY22[[#This Row],[Department / Specialty]]&\"L\"","v":"AAMCAcademicPrivateChiefPhDRheumatology-Med.L"},"Rheumatology-Med.",6,"AAMC","Academic","Private","Chief","PhD","2021-2022",null,{"$f":"(((AAMC_Raw_Data_for_FY22[[#This Row],[Median]]-AAMC_Raw_Data_for_FY22[[#This Row],[25th]])/25)*5) + AAMC_Raw_Data_for_FY22[[#This Row],[25th]]","v":0},{"$f":"(((AAMC_Raw_Data_for_FY22[[#This Row],[Median]]-AAMC_Raw_Data_for_FY22[[#This Row],[25th]])/25)*10) + AAMC_Raw_Data_for_FY22[[#This Row],[25th]]","v":0},{"$f":"(((AAMC_Raw_Data_for_FY22[[#This Row],[Median]]-AAMC_Raw_Data_for_FY22[[#This Row],[25th]])/25)*15) + AAMC_Raw_Data_for_FY22[[#This Row],[25th]]","v":0},{"$f":"(((AAMC_Raw_Data_for_FY22[[#This Row],[Median]]-AAMC_Raw_Data_for_FY22[[#This Row],[25th]])/25)*20) + AAMC_Raw_Data_for_FY22[[#This Row],[25th]]","v":0},null,{"$f":"(((AAMC_Raw_Data_for_FY22[[#This Row],[75th]]-AAMC_Raw_Data_for_FY22[[#This Row],[Median]])/25)*5) + AAMC_Raw_Data_for_FY22[[#This Row],[Median]]","v":0},{"$f":"(((AAMC_Raw_Data_for_FY22[[#This Row],[75th]]-AAMC_Raw_Data_for_FY22[[#This Row],[Median]])/25)*10) + AAMC_Raw_Data_for_FY22[[#This Row],[Median]]","v":0},{"$f":"(((AAMC_Raw_Data_for_FY22[[#This Row],[75th]]-AAMC_Raw_Data_for_FY22[[#This Row],[Median]])/25)*15) + AAMC_Raw_Data_for_FY22[[#This Row],[Median]]","v":0},{"$f":"(((AAMC_Raw_Data_for_FY22[[#This Row],[75th]]-AAMC_Raw_Data_for_FY22[[#This Row],[Median]])/25)*20) + AAMC_Raw_Data_for_FY22[[#This Row],[Median]]","v":0},null,{"$f":"(((AAMC_Raw_Data_for_FY22[[#This Row],[75th]]-AAMC_Raw_Data_for_FY22[[#This Row],[Median]])/25)*30) + AAMC_Raw_Data_for_FY22[[#This Row],[Median]]","v":0},{"$f":"(((AAMC_Raw_Data_for_FY22[[#This Row],[75th]]-AAMC_Raw_Data_for_FY22[[#This Row],[Median]])/25)*35) + AAMC_Raw_Data_for_FY22[[#This Row],[Median]]","v":0},{"$f":"(((AAMC_Raw_Data_for_FY22[[#This Row],[75th]]-AAMC_Raw_Data_for_FY22[[#This Row],[Median]])/25)*40) + AAMC_Raw_Data_for_FY22[[#This Row],[Median]]","v":0}]
[{"$f":"AAMC_Raw_Data_for_FY22[[#This Row],[Source]]&AAMC_Raw_Data_for_FY22[[#This Row],[Type]]&AAMC_Raw_Data_for_FY22[[#This Row],[School Subset]]&AAMC_Raw_Data_for_FY22[[#This Row],[Rank]]&AAMC_Raw_Data_for_FY22[[#This Row],[Degree]]&AAMC_Raw_Data_for_FY22[[#This Row],[Department / Specialty]]&\"L\"","v":"AAMCAcademicPrivateInstructorPhDOther MedicineL"},"Other Medicine",5,"AAMC","Academic","Private","Instructor","PhD","2021-2022",80054,{"$f":"(((AAMC_Raw_Data_for_FY22[[#This Row],[Median]]-AAMC_Raw_Data_for_FY22[[#This Row],[25th]])/25)*5) + AAMC_Raw_Data_for_FY22[[#This Row],[25th]]","v":81905.8},{"$f":"(((AAMC_Raw_Data_for_FY22[[#This Row],[Median]]-AAMC_Raw_Data_for_FY22[[#This Row],[25th]])/25)*10) + AAMC_Raw_Data_for_FY22[[#This Row],[25th]]","v":83757.600000000006},{"$f":"(((AAMC_Raw_Data_for_FY22[[#This Row],[Median]]-AAMC_Raw_Data_for_FY22[[#This Row],[25th]])/25)*15) + AAMC_Raw_Data_for_FY22[[#This Row],[25th]]","v":85609.4},{"$f":"(((AAMC_Raw_Data_for_FY22[[#This Row],[Median]]-AAMC_Raw_Data_for_FY22[[#This Row],[25th]])/25)*20) + AAMC_Raw_Data_for_FY22[[#This Row],[25th]]","v":87461.2},89313,{"$f":"(((AAMC_Raw_Data_for_FY22[[#This Row],[75th]]-AAMC_Raw_Data_for_FY22[[#This Row],[Median]])/25)*5) + AAMC_Raw_Data_for_FY22[[#This Row],[Median]]","v":89931.199999999997},{"$f":"(((AAMC_Raw_Data_for_FY22[[#This Row],[75th]]-AAMC_Raw_Data_for_FY22[[#This Row],[Median]])/25)*10) + AAMC_Raw_Data_for_FY22[[#This Row],[Median]]","v":90549.4},{"$f":"(((AAMC_Raw_Data_for_FY22[[#This Row],[75th]]-AAMC_Raw_Data_for_FY22[[#This Row],[Median]])/25)*15) + AAMC_Raw_Data_for_FY22[[#This Row],[Median]]","v":91167.6},{"$f":"(((AAMC_Raw_Data_for_FY22[[#This Row],[75th]]-AAMC_Raw_Data_for_FY22[[#This Row],[Median]])/25)*20) + AAMC_Raw_Data_for_FY22[[#This Row],[Median]]","v":91785.8},92404,{"$f":"(((AAMC_Raw_Data_for_FY22[[#This Row],[75th]]-AAMC_Raw_Data_for_FY22[[#This Row],[Median]])/25)*30) + AAMC_Raw_Data_for_FY22[[#This Row],[Median]]","v":93022.2},{"$f":"(((AAMC_Raw_Data_for_FY22[[#This Row],[75th]]-AAMC_Raw_Data_for_FY22[[#This Row],[Median]])/25)*35) + AAMC_Raw_Data_for_FY22[[#This Row],[Median]]","v":93640.4},{"$f":"(((AAMC_Raw_Data_for_FY22[[#This Row],[75th]]-AAMC_Raw_Data_for_FY22[[#This Row],[Median]])/25)*40) + AAMC_Raw_Data_for_FY22[[#This Row],[Median]]","v":94258.6}]
[{"$f":"AAMC_Raw_Data_for_FY22[[#This Row],[Source]]&AAMC_Raw_Data_for_FY22[[#This Row],[Type]]&AAMC_Raw_Data_for_FY22[[#This Row],[School Subset]]&AAMC_Raw_Data_for_FY22[[#This Row],[Rank]]&AAMC_Raw_Data_for_FY22[[#This Row],[Degree]]&AAMC_Raw_Data_for_FY22[[#This Row],[Department / Specialty]]&\"L\"","v":"AAMCAcademicPrivateAssistantPhDOther MedicineL"},"Other Medicine",4,"AAMC","Academic","Private","Assistant","PhD","2021-2022",106956,{"$f":"(((AAMC_Raw_Data_for_FY22[[#This Row],[Median]]-AAMC_Raw_Data_for_FY22[[#This Row],[25th]])/25)*5) + AAMC_Raw_Data_for_FY22[[#This Row],[25th]]","v":109767.2},{"$f":"(((AAMC_Raw_Data_for_FY22[[#This Row],[Median]]-AAMC_Raw_Data_for_FY22[[#This Row],[25th]])/25)*10) + AAMC_Raw_Data_for_FY22[[#This Row],[25th]]","v":112578.4},{"$f":"(((AAMC_Raw_Data_for_FY22[[#This Row],[Median]]-AAMC_Raw_Data_for_FY22[[#This Row],[25th]])/25)*15) + AAMC_Raw_Data_for_FY22[[#This Row],[25th]]","v":115389.6},{"$f":"(((AAMC_Raw_Data_for_FY22[[#This Row],[Median]]-AAMC_Raw_Data_for_FY22[[#This Row],[25th]])/25)*20) + AAMC_Raw_Data_for_FY22[[#This Row],[25th]]","v":118200.8},121012,{"$f":"(((AAMC_Raw_Data_for_FY22[[#This Row],[75th]]-AAMC_Raw_Data_for_FY22[[#This Row],[Median]])/25)*5) + AAMC_Raw_Data_for_FY22[[#This Row],[Median]]","v":124210.4},{"$f":"(((AAMC_Raw_Data_for_FY22[[#This Row],[75th]]-AAMC_Raw_Data_for_FY22[[#This Row],[Median]])/25)*10) + AAMC_Raw_Data_for_FY22[[#This Row],[Median]]","v":127408.8},{"$f":"(((AAMC_Raw_Data_for_FY22[[#This Row],[75th]]-AAMC_Raw_Data_for_FY22[[#This Row],[Median]])/25)*15) + AAMC_Raw_Data_for_FY22[[#This Row],[Median]]","v":130607.2},{"$f":"(((AAMC_Raw_Data_for_FY22[[#This Row],[75th]]-AAMC_Raw_Data_for_FY22[[#This Row],[Median]])/25)*20) + AAMC_Raw_Data_for_FY22[[#This Row],[Median]]","v":133805.6},137004,{"$f":"(((AAMC_Raw_Data_for_FY22[[#This Row],[75th]]-AAMC_Raw_Data_for_FY22[[#This Row],[Median]])/25)*30) + AAMC_Raw_Data_for_FY22[[#This Row],[Median]]","v":140202.4},{"$f":"(((AAMC_Raw_Data_for_FY22[[#This Row],[75th]]-AAMC_Raw_Data_for_FY22[[#This Row],[Median]])/25)*35) + AAMC_Raw_Data_for_FY22[[#This Row],[Median]]","v":143400.79999999999},{"$f":"(((AAMC_Raw_Data_for_FY22[[#This Row],[75th]]-AAMC_Raw_Data_for_FY22[[#This Row],[Median]])/25)*40) + AAMC_Raw_Data_for_FY22[[#This Row],[Median]]","v":146599.20000000001}]
[{"$f":"AAMC_Raw_Data_for_FY22[[#This Row],[Source]]&AAMC_Raw_Data_for_FY22[[#This Row],[Type]]&AAMC_Raw_Data_for_FY22[[#This Row],[School Subset]]&AAMC_Raw_Data_for_FY22[[#This Row],[Rank]]&AAMC_Raw_Data_for_FY22[[#This Row],[Degree]]&AAMC_Raw_Data_for_FY22[[#This Row],[Department / Specialty]]&\"L\"","v":"AAMCAcademicPrivateAssociatePhDOther MedicineL"},"Other Medicine",3,"AAMC","Academic","Private","Associate","PhD","2021-2022",127115,{"$f":"(((AAMC_Raw_Data_for_FY22[[#This Row],[Median]]-AAMC_Raw_Data_for_FY22[[#This Row],[25th]])/25)*5) + AAMC_Raw_Data_for_FY22[[#This Row],[25th]]","v":130244.6},{"$f":"(((AAMC_Raw_Data_for_FY22[[#This Row],[Median]]-AAMC_Raw_Data_for_FY22[[#This Row],[25th]])/25)*10) + AAMC_Raw_Data_for_FY22[[#This Row],[25th]]","v":133374.20000000001},{"$f":"(((AAMC_Raw_Data_for_FY22[[#This Row],[Median]]-AAMC_Raw_Data_for_FY22[[#This Row],[25th]])/25)*15) + AAMC_Raw_Data_for_FY22[[#This Row],[25th]]","v":136503.79999999999},{"$f":"(((AAMC_Raw_Data_for_FY22[[#This Row],[Median]]-AAMC_Raw_Data_for_FY22[[#This Row],[25th]])/25)*20) + AAMC_Raw_Data_for_FY22[[#This Row],[25th]]","v":139633.4},142763,{"$f":"(((AAMC_Raw_Data_for_FY22[[#This Row],[75th]]-AAMC_Raw_Data_for_FY22[[#This Row],[Median]])/25)*5) + AAMC_Raw_Data_for_FY22[[#This Row],[Median]]","v":150080.79999999999},{"$f":"(((AAMC_Raw_Data_for_FY22[[#This Row],[75th]]-AAMC_Raw_Data_for_FY22[[#This Row],[Median]])/25)*10) + AAMC_Raw_Data_for_FY22[[#This Row],[Median]]","v":157398.6},{"$f":"(((AAMC_Raw_Data_for_FY22[[#This Row],[75th]]-AAMC_Raw_Data_for_FY22[[#This Row],[Median]])/25)*15) + AAMC_Raw_Data_for_FY22[[#This Row],[Median]]","v":164716.4},{"$f":"(((AAMC_Raw_Data_for_FY22[[#This Row],[75th]]-AAMC_Raw_Data_for_FY22[[#This Row],[Median]])/25)*20) + AAMC_Raw_Data_for_FY22[[#This Row],[Median]]","v":172034.2},179352,{"$f":"(((AAMC_Raw_Data_for_FY22[[#This Row],[75th]]-AAMC_Raw_Data_for_FY22[[#This Row],[Median]])/25)*30) + AAMC_Raw_Data_for_FY22[[#This Row],[Median]]","v":186669.8},{"$f":"(((AAMC_Raw_Data_for_FY22[[#This Row],[75th]]-AAMC_Raw_Data_for_FY22[[#This Row],[Median]])/25)*35) + AAMC_Raw_Data_for_FY22[[#This Row],[Median]]","v":193987.6},{"$f":"(((AAMC_Raw_Data_for_FY22[[#This Row],[75th]]-AAMC_Raw_Data_for_FY22[[#This Row],[Median]])/25)*40) + AAMC_Raw_Data_for_FY22[[#This Row],[Median]]","v":201305.4}]
[{"$f":"AAMC_Raw_Data_for_FY22[[#This Row],[Source]]&AAMC_Raw_Data_for_FY22[[#This Row],[Type]]&AAMC_Raw_Data_for_FY22[[#This Row],[School Subset]]&AAMC_Raw_Data_for_FY22[[#This Row],[Rank]]&AAMC_Raw_Data_for_FY22[[#This Row],[Degree]]&AAMC_Raw_Data_for_FY22[[#This Row],[Department / Specialty]]&\"L\"","v":"AAMCAcademicPrivateProfessorPhDOther MedicineL"},"Other Medicine",2,"AAMC","Academic","Private","Professor","PhD","2021-2022",202563,{"$f":"(((AAMC_Raw_Data_for_FY22[[#This Row],[Median]]-AAMC_Raw_Data_for_FY22[[#This Row],[25th]])/25)*5) + AAMC_Raw_Data_for_FY22[[#This Row],[25th]]","v":208885},{"$f":"(((AAMC_Raw_Data_for_FY22[[#This Row],[Median]]-AAMC_Raw_Data_for_FY22[[#This Row],[25th]])/25)*10) + AAMC_Raw_Data_for_FY22[[#This Row],[25th]]","v":215207},{"$f":"(((AAMC_Raw_Data_for_FY22[[#This Row],[Median]]-AAMC_Raw_Data_for_FY22[[#This Row],[25th]])/25)*15) + AAMC_Raw_Data_for_FY22[[#This Row],[25th]]","v":221529},{"$f":"(((AAMC_Raw_Data_for_FY22[[#This Row],[Median]]-AAMC_Raw_Data_for_FY22[[#This Row],[25th]])/25)*20) + AAMC_Raw_Data_for_FY22[[#This Row],[25th]]","v":227851},234173,{"$f":"(((AAMC_Raw_Data_for_FY22[[#This Row],[75th]]-AAMC_Raw_Data_for_FY22[[#This Row],[Median]])/25)*5) + AAMC_Raw_Data_for_FY22[[#This Row],[Median]]","v":250286.4},{"$f":"(((AAMC_Raw_Data_for_FY22[[#This Row],[75th]]-AAMC_Raw_Data_for_FY22[[#This Row],[Median]])/25)*10) + AAMC_Raw_Data_for_FY22[[#This Row],[Median]]","v":266399.8},{"$f":"(((AAMC_Raw_Data_for_FY22[[#This Row],[75th]]-AAMC_Raw_Data_for_FY22[[#This Row],[Median]])/25)*15) + AAMC_Raw_Data_for_FY22[[#This Row],[Median]]","v":282513.2},{"$f":"(((AAMC_Raw_Data_for_FY22[[#This Row],[75th]]-AAMC_Raw_Data_for_FY22[[#This Row],[Median]])/25)*20) + AAMC_Raw_Data_for_FY22[[#This Row],[Median]]","v":298626.59999999998},314740,{"$f":"(((AAMC_Raw_Data_for_FY22[[#This Row],[75th]]-AAMC_Raw_Data_for_FY22[[#This Row],[Median]])/25)*30) + AAMC_Raw_Data_for_FY22[[#This Row],[Median]]","v":330853.40000000002},{"$f":"(((AAMC_Raw_Data_for_FY22[[#This Row],[75th]]-AAMC_Raw_Data_for_FY22[[#This Row],[Median]])/25)*35) + AAMC_Raw_Data_for_FY22[[#This Row],[Median]]","v":346966.8},{"$f":"(((AAMC_Raw_Data_for_FY22[[#This Row],[75th]]-AAMC_Raw_Data_for_FY22[[#This Row],[Median]])/25)*40) + AAMC_Raw_Data_for_FY22[[#This Row],[Median]]","v":363080.2}]
[{"$f":"AAMC_Raw_Data_for_FY22[[#This Row],[Source]]&AAMC_Raw_Data_for_FY22[[#This Row],[Type]]&AAMC_Raw_Data_for_FY22[[#This Row],[School Subset]]&AAMC_Raw_Data_for_FY22[[#This Row],[Rank]]&AAMC_Raw_Data_for_FY22[[#This Row],[Degree]]&AAMC_Raw_Data_for_FY22[[#This Row],[Department / Specialty]]&\"L\"","v":"AAMCAcademicPrivateChiefPhDOther MedicineL"},"Other Medicine",6,"AAMC","Academic","Private","Chief","PhD","2021-2022",null,{"$f":"(((AAMC_Raw_Data_for_FY22[[#This Row],[Median]]-AAMC_Raw_Data_for_FY22[[#This Row],[25th]])/25)*5) + AAMC_Raw_Data_for_FY22[[#This Row],[25th]]","v":0},{"$f":"(((AAMC_Raw_Data_for_FY22[[#This Row],[Median]]-AAMC_Raw_Data_for_FY22[[#This Row],[25th]])/25)*10) + AAMC_Raw_Data_for_FY22[[#This Row],[25th]]","v":0},{"$f":"(((AAMC_Raw_Data_for_FY22[[#This Row],[Median]]-AAMC_Raw_Data_for_FY22[[#This Row],[25th]])/25)*15) + AAMC_Raw_Data_for_FY22[[#This Row],[25th]]","v":0},{"$f":"(((AAMC_Raw_Data_for_FY22[[#This Row],[Median]]-AAMC_Raw_Data_for_FY22[[#This Row],[25th]])/25)*20) + AAMC_Raw_Data_for_FY22[[#This Row],[25th]]","v":0},null,{"$f":"(((AAMC_Raw_Data_for_FY22[[#This Row],[75th]]-AAMC_Raw_Data_for_FY22[[#This Row],[Median]])/25)*5) + AAMC_Raw_Data_for_FY22[[#This Row],[Median]]","v":0},{"$f":"(((AAMC_Raw_Data_for_FY22[[#This Row],[75th]]-AAMC_Raw_Data_for_FY22[[#This Row],[Median]])/25)*10) + AAMC_Raw_Data_for_FY22[[#This Row],[Median]]","v":0},{"$f":"(((AAMC_Raw_Data_for_FY22[[#This Row],[75th]]-AAMC_Raw_Data_for_FY22[[#This Row],[Median]])/25)*15) + AAMC_Raw_Data_for_FY22[[#This Row],[Median]]","v":0},{"$f":"(((AAMC_Raw_Data_for_FY22[[#This Row],[75th]]-AAMC_Raw_Data_for_FY22[[#This Row],[Median]])/25)*20) + AAMC_Raw_Data_for_FY22[[#This Row],[Median]]","v":0},null,{"$f":"(((AAMC_Raw_Data_for_FY22[[#This Row],[75th]]-AAMC_Raw_Data_for_FY22[[#This Row],[Median]])/25)*30) + AAMC_Raw_Data_for_FY22[[#This Row],[Median]]","v":0},{"$f":"(((AAMC_Raw_Data_for_FY22[[#This Row],[75th]]-AAMC_Raw_Data_for_FY22[[#This Row],[Median]])/25)*35) + AAMC_Raw_Data_for_FY22[[#This Row],[Median]]","v":0},{"$f":"(((AAMC_Raw_Data_for_FY22[[#This Row],[75th]]-AAMC_Raw_Data_for_FY22[[#This Row],[Median]])/25)*40) + AAMC_Raw_Data_for_FY22[[#This Row],[Median]]","v":0}]
[{"$f":"AAMC_Raw_Data_for_FY22[[#This Row],[Source]]&AAMC_Raw_Data_for_FY22[[#This Row],[Type]]&AAMC_Raw_Data_for_FY22[[#This Row],[School Subset]]&AAMC_Raw_Data_for_FY22[[#This Row],[Rank]]&AAMC_Raw_Data_for_FY22[[#This Row],[Degree]]&AAMC_Raw_Data_for_FY22[[#This Row],[Department / Specialty]]&\"L\"","v":"AAMCAcademicPrivateChairPhDOther MedicineL"},"Other Medicine",1,"AAMC","Academic","Private","Chair","PhD","2021-2022",null,{"$f":"(((AAMC_Raw_Data_for_FY22[[#This Row],[Median]]-AAMC_Raw_Data_for_FY22[[#This Row],[25th]])/25)*5) + AAMC_Raw_Data_for_FY22[[#This Row],[25th]]","v":0},{"$f":"(((AAMC_Raw_Data_for_FY22[[#This Row],[Median]]-AAMC_Raw_Data_for_FY22[[#This Row],[25th]])/25)*10) + AAMC_Raw_Data_for_FY22[[#This Row],[25th]]","v":0},{"$f":"(((AAMC_Raw_Data_for_FY22[[#This Row],[Median]]-AAMC_Raw_Data_for_FY22[[#This Row],[25th]])/25)*15) + AAMC_Raw_Data_for_FY22[[#This Row],[25th]]","v":0},{"$f":"(((AAMC_Raw_Data_for_FY22[[#This Row],[Median]]-AAMC_Raw_Data_for_FY22[[#This Row],[25th]])/25)*20) + AAMC_Raw_Data_for_FY22[[#This Row],[25th]]","v":0},null,{"$f":"(((AAMC_Raw_Data_for_FY22[[#This Row],[75th]]-AAMC_Raw_Data_for_FY22[[#This Row],[Median]])/25)*5) + AAMC_Raw_Data_for_FY22[[#This Row],[Median]]","v":0},{"$f":"(((AAMC_Raw_Data_for_FY22[[#This Row],[75th]]-AAMC_Raw_Data_for_FY22[[#This Row],[Median]])/25)*10) + AAMC_Raw_Data_for_FY22[[#This Row],[Median]]","v":0},{"$f":"(((AAMC_Raw_Data_for_FY22[[#This Row],[75th]]-AAMC_Raw_Data_for_FY22[[#This Row],[Median]])/25)*15) + AAMC_Raw_Data_for_FY22[[#This Row],[Median]]","v":0},{"$f":"(((AAMC_Raw_Data_for_FY22[[#This Row],[75th]]-AAMC_Raw_Data_for_FY22[[#This Row],[Median]])/25)*20) + AAMC_Raw_Data_for_FY22[[#This Row],[Median]]","v":0},null,{"$f":"(((AAMC_Raw_Data_for_FY22[[#This Row],[75th]]-AAMC_Raw_Data_for_FY22[[#This Row],[Median]])/25)*30) + AAMC_Raw_Data_for_FY22[[#This Row],[Median]]","v":0},{"$f":"(((AAMC_Raw_Data_for_FY22[[#This Row],[75th]]-AAMC_Raw_Data_for_FY22[[#This Row],[Median]])/25)*35) + AAMC_Raw_Data_for_FY22[[#This Row],[Median]]","v":0},{"$f":"(((AAMC_Raw_Data_for_FY22[[#This Row],[75th]]-AAMC_Raw_Data_for_FY22[[#This Row],[Median]])/25)*40) + AAMC_Raw_Data_for_FY22[[#This Row],[Median]]","v":0}]
[{"$f":"AAMC_Raw_Data_for_FY22[[#This Row],[Source]]&AAMC_Raw_Data_for_FY22[[#This Row],[Type]]&AAMC_Raw_Data_for_FY22[[#This Row],[School Subset]]&AAMC_Raw_Data_for_FY22[[#This Row],[Rank]]&AAMC_Raw_Data_for_FY22[[#This Row],[Degree]]&AAMC_Raw_Data_for_FY22[[#This Row],[Department / Specialty]]&\"L\"","v":"AAMCAcademicPrivateInstructorPhDOB/GYN TotalL"},"OB/GYN Total",5,"AAMC","Academic","Private","Instructor","PhD","2021-2022",null,{"$f":"(((AAMC_Raw_Data_for_FY22[[#This Row],[Median]]-AAMC_Raw_Data_for_FY22[[#This Row],[25th]])/25)*5) + AAMC_Raw_Data_for_FY22[[#This Row],[25th]]","v":0},{"$f":"(((AAMC_Raw_Data_for_FY22[[#This Row],[Median]]-AAMC_Raw_Data_for_FY22[[#This Row],[25th]])/25)*10) + AAMC_Raw_Data_for_FY22[[#This Row],[25th]]","v":0},{"$f":"(((AAMC_Raw_Data_for_FY22[[#This Row],[Median]]-AAMC_Raw_Data_for_FY22[[#This Row],[25th]])/25)*15) + AAMC_Raw_Data_for_FY22[[#This Row],[25th]]","v":0},{"$f":"(((AAMC_Raw_Data_for_FY22[[#This Row],[Median]]-AAMC_Raw_Data_for_FY22[[#This Row],[25th]])/25)*20) + AAMC_Raw_Data_for_FY22[[#This Row],[25th]]","v":0},null,{"$f":"(((AAMC_Raw_Data_for_FY22[[#This Row],[75th]]-AAMC_Raw_Data_for_FY22[[#This Row],[Median]])/25)*5) + AAMC_Raw_Data_for_FY22[[#This Row],[Median]]","v":0},{"$f":"(((AAMC_Raw_Data_for_FY22[[#This Row],[75th]]-AAMC_Raw_Data_for_FY22[[#This Row],[Median]])/25)*10) + AAMC_Raw_Data_for_FY22[[#This Row],[Median]]","v":0},{"$f":"(((AAMC_Raw_Data_for_FY22[[#This Row],[75th]]-AAMC_Raw_Data_for_FY22[[#This Row],[Median]])/25)*15) + AAMC_Raw_Data_for_FY22[[#This Row],[Median]]","v":0},{"$f":"(((AAMC_Raw_Data_for_FY22[[#This Row],[75th]]-AAMC_Raw_Data_for_FY22[[#This Row],[Median]])/25)*20) + AAMC_Raw_Data_for_FY22[[#This Row],[Median]]","v":0},null,{"$f":"(((AAMC_Raw_Data_for_FY22[[#This Row],[75th]]-AAMC_Raw_Data_for_FY22[[#This Row],[Median]])/25)*30) + AAMC_Raw_Data_for_FY22[[#This Row],[Median]]","v":0},{"$f":"(((AAMC_Raw_Data_for_FY22[[#This Row],[75th]]-AAMC_Raw_Data_for_FY22[[#This Row],[Median]])/25)*35) + AAMC_Raw_Data_for_FY22[[#This Row],[Median]]","v":0},{"$f":"(((AAMC_Raw_Data_for_FY22[[#This Row],[75th]]-AAMC_Raw_Data_for_FY22[[#This Row],[Median]])/25)*40) + AAMC_Raw_Data_for_FY22[[#This Row],[Median]]","v":0}]
[{"$f":"AAMC_Raw_Data_for_FY22[[#This Row],[Source]]&AAMC_Raw_Data_for_FY22[[#This Row],[Type]]&AAMC_Raw_Data_for_FY22[[#This Row],[School Subset]]&AAMC_Raw_Data_for_FY22[[#This Row],[Rank]]&AAMC_Raw_Data_for_FY22[[#This Row],[Degree]]&AAMC_Raw_Data_for_FY22[[#This Row],[Department / Specialty]]&\"L\"","v":"AAMCAcademicPrivateAssistantPhDOB/GYN TotalL"},"OB/GYN Total",4,"AAMC","Academic","Private","Assistant","PhD","2021-2022",91304,{"$f":"(((AAMC_Raw_Data_for_FY22[[#This Row],[Median]]-AAMC_Raw_Data_for_FY22[[#This Row],[25th]])/25)*5) + AAMC_Raw_Data_for_FY22[[#This Row],[25th]]","v":97323.199999999997},{"$f":"(((AAMC_Raw_Data_for_FY22[[#This Row],[Median]]-AAMC_Raw_Data_for_FY22[[#This Row],[25th]])/25)*10) + AAMC_Raw_Data_for_FY22[[#This Row],[25th]]","v":103342.39999999999},{"$f":"(((AAMC_Raw_Data_for_FY22[[#This Row],[Median]]-AAMC_Raw_Data_for_FY22[[#This Row],[25th]])/25)*15) + AAMC_Raw_Data_for_FY22[[#This Row],[25th]]","v":109361.60000000001},{"$f":"(((AAMC_Raw_Data_for_FY22[[#This Row],[Median]]-AAMC_Raw_Data_for_FY22[[#This Row],[25th]])/25)*20) + AAMC_Raw_Data_for_FY22[[#This Row],[25th]]","v":115380.8},121400,{"$f":"(((AAMC_Raw_Data_for_FY22[[#This Row],[75th]]-AAMC_Raw_Data_for_FY22[[#This Row],[Median]])/25)*5) + AAMC_Raw_Data_for_FY22[[#This Row],[Median]]","v":130550},{"$f":"(((AAMC_Raw_Data_for_FY22[[#This Row],[75th]]-AAMC_Raw_Data_for_FY22[[#This Row],[Median]])/25)*10) + AAMC_Raw_Data_for_FY22[[#This Row],[Median]]","v":139700},{"$f":"(((AAMC_Raw_Data_for_FY22[[#This Row],[75th]]-AAMC_Raw_Data_for_FY22[[#This Row],[Median]])/25)*15) + AAMC_Raw_Data_for_FY22[[#This Row],[Median]]","v":148850},{"$f":"(((AAMC_Raw_Data_for_FY22[[#This Row],[75th]]-AAMC_Raw_Data_for_FY22[[#This Row],[Median]])/25)*20) + AAMC_Raw_Data_for_FY22[[#This Row],[Median]]","v":158000},167150,{"$f":"(((AAMC_Raw_Data_for_FY22[[#This Row],[75th]]-AAMC_Raw_Data_for_FY22[[#This Row],[Median]])/25)*30) + AAMC_Raw_Data_for_FY22[[#This Row],[Median]]","v":176300},{"$f":"(((AAMC_Raw_Data_for_FY22[[#This Row],[75th]]-AAMC_Raw_Data_for_FY22[[#This Row],[Median]])/25)*35) + AAMC_Raw_Data_for_FY22[[#This Row],[Median]]","v":185450},{"$f":"(((AAMC_Raw_Data_for_FY22[[#This Row],[75th]]-AAMC_Raw_Data_for_FY22[[#This Row],[Median]])/25)*40) + AAMC_Raw_Data_for_FY22[[#This Row],[Median]]","v":194600}]
[{"$f":"AAMC_Raw_Data_for_FY22[[#This Row],[Source]]&AAMC_Raw_Data_for_FY22[[#This Row],[Type]]&AAMC_Raw_Data_for_FY22[[#This Row],[School Subset]]&AAMC_Raw_Data_for_FY22[[#This Row],[Rank]]&AAMC_Raw_Data_for_FY22[[#This Row],[Degree]]&AAMC_Raw_Data_for_FY22[[#This Row],[Department / Specialty]]&\"L\"","v":"AAMCAcademicPrivateAssociatePhDOB/GYN TotalL"},"OB/GYN Total",3,"AAMC","Academic","Private","Associate","PhD","2021-2022",134840,{"$f":"(((AAMC_Raw_Data_for_FY22[[#This Row],[Median]]-AAMC_Raw_Data_for_FY22[[#This Row],[25th]])/25)*5) + AAMC_Raw_Data_for_FY22[[#This Row],[25th]]","v":139840.79999999999},{"$f":"(((AAMC_Raw_Data_for_FY22[[#This Row],[Median]]-AAMC_Raw_Data_for_FY22[[#This Row],[25th]])/25)*10) + AAMC_Raw_Data_for_FY22[[#This Row],[25th]]","v":144841.60000000001},{"$f":"(((AAMC_Raw_Data_for_FY22[[#This Row],[Median]]-AAMC_Raw_Data_for_FY22[[#This Row],[25th]])/25)*15) + AAMC_Raw_Data_for_FY22[[#This Row],[25th]]","v":149842.4},{"$f":"(((AAMC_Raw_Data_for_FY22[[#This Row],[Median]]-AAMC_Raw_Data_for_FY22[[#This Row],[25th]])/25)*20) + AAMC_Raw_Data_for_FY22[[#This Row],[25th]]","v":154843.20000000001},159844,{"$f":"(((AAMC_Raw_Data_for_FY22[[#This Row],[75th]]-AAMC_Raw_Data_for_FY22[[#This Row],[Median]])/25)*5) + AAMC_Raw_Data_for_FY22[[#This Row],[Median]]","v":166505.60000000001},{"$f":"(((AAMC_Raw_Data_for_FY22[[#This Row],[75th]]-AAMC_Raw_Data_for_FY22[[#This Row],[Median]])/25)*10) + AAMC_Raw_Data_for_FY22[[#This Row],[Median]]","v":173167.2},{"$f":"(((AAMC_Raw_Data_for_FY22[[#This Row],[75th]]-AAMC_Raw_Data_for_FY22[[#This Row],[Median]])/25)*15) + AAMC_Raw_Data_for_FY22[[#This Row],[Median]]","v":179828.8},{"$f":"(((AAMC_Raw_Data_for_FY22[[#This Row],[75th]]-AAMC_Raw_Data_for_FY22[[#This Row],[Median]])/25)*20) + AAMC_Raw_Data_for_FY22[[#This Row],[Median]]","v":186490.4},193152,{"$f":"(((AAMC_Raw_Data_for_FY22[[#This Row],[75th]]-AAMC_Raw_Data_for_FY22[[#This Row],[Median]])/25)*30) + AAMC_Raw_Data_for_FY22[[#This Row],[Median]]","v":199813.6},{"$f":"(((AAMC_Raw_Data_for_FY22[[#This Row],[75th]]-AAMC_Raw_Data_for_FY22[[#This Row],[Median]])/25)*35) + AAMC_Raw_Data_for_FY22[[#This Row],[Median]]","v":206475.2},{"$f":"(((AAMC_Raw_Data_for_FY22[[#This Row],[75th]]-AAMC_Raw_Data_for_FY22[[#This Row],[Median]])/25)*40) + AAMC_Raw_Data_for_FY22[[#This Row],[Median]]","v":213136.8}]
[{"$f":"AAMC_Raw_Data_for_FY22[[#This Row],[Source]]&AAMC_Raw_Data_for_FY22[[#This Row],[Type]]&AAMC_Raw_Data_for_FY22[[#This Row],[School Subset]]&AAMC_Raw_Data_for_FY22[[#This Row],[Rank]]&AAMC_Raw_Data_for_FY22[[#This Row],[Degree]]&AAMC_Raw_Data_for_FY22[[#This Row],[Department / Specialty]]&\"L\"","v":"AAMCAcademicPrivateProfessorPhDOB/GYN TotalL"},"OB/GYN Total",2,"AAMC","Academic","Private","Professor","PhD","2021-2022",162754,{"$f":"(((AAMC_Raw_Data_for_FY22[[#This Row],[Median]]-AAMC_Raw_Data_for_FY22[[#This Row],[25th]])/25)*5) + AAMC_Raw_Data_for_FY22[[#This Row],[25th]]","v":175460.8},{"$f":"(((AAMC_Raw_Data_for_FY22[[#This Row],[Median]]-AAMC_Raw_Data_for_FY22[[#This Row],[25th]])/25)*10) + AAMC_Raw_Data_for_FY22[[#This Row],[25th]]","v":188167.6},{"$f":"(((AAMC_Raw_Data_for_FY22[[#This Row],[Median]]-AAMC_Raw_Data_for_FY22[[#This Row],[25th]])/25)*15) + AAMC_Raw_Data_for_FY22[[#This Row],[25th]]","v":200874.4},{"$f":"(((AAMC_Raw_Data_for_FY22[[#This Row],[Median]]-AAMC_Raw_Data_for_FY22[[#This Row],[25th]])/25)*20) + AAMC_Raw_Data_for_FY22[[#This Row],[25th]]","v":213581.2},226288,{"$f":"(((AAMC_Raw_Data_for_FY22[[#This Row],[75th]]-AAMC_Raw_Data_for_FY22[[#This Row],[Median]])/25)*5) + AAMC_Raw_Data_for_FY22[[#This Row],[Median]]","v":244622},{"$f":"(((AAMC_Raw_Data_for_FY22[[#This Row],[75th]]-AAMC_Raw_Data_for_FY22[[#This Row],[Median]])/25)*10) + AAMC_Raw_Data_for_FY22[[#This Row],[Median]]","v":262956},{"$f":"(((AAMC_Raw_Data_for_FY22[[#This Row],[75th]]-AAMC_Raw_Data_for_FY22[[#This Row],[Median]])/25)*15) + AAMC_Raw_Data_for_FY22[[#This Row],[Median]]","v":281290},{"$f":"(((AAMC_Raw_Data_for_FY22[[#This Row],[75th]]-AAMC_Raw_Data_for_FY22[[#This Row],[Median]])/25)*20) + AAMC_Raw_Data_for_FY22[[#This Row],[Median]]","v":299624},317958,{"$f":"(((AAMC_Raw_Data_for_FY22[[#This Row],[75th]]-AAMC_Raw_Data_for_FY22[[#This Row],[Median]])/25)*30) + AAMC_Raw_Data_for_FY22[[#This Row],[Median]]","v":336292},{"$f":"(((AAMC_Raw_Data_for_FY22[[#This Row],[75th]]-AAMC_Raw_Data_for_FY22[[#This Row],[Median]])/25)*35) + AAMC_Raw_Data_for_FY22[[#This Row],[Median]]","v":354626},{"$f":"(((AAMC_Raw_Data_for_FY22[[#This Row],[75th]]-AAMC_Raw_Data_for_FY22[[#This Row],[Median]])/25)*40) + AAMC_Raw_Data_for_FY22[[#This Row],[Median]]","v":372960}]
[{"$f":"AAMC_Raw_Data_for_FY22[[#This Row],[Source]]&AAMC_Raw_Data_for_FY22[[#This Row],[Type]]&AAMC_Raw_Data_for_FY22[[#This Row],[School Subset]]&AAMC_Raw_Data_for_FY22[[#This Row],[Rank]]&AAMC_Raw_Data_for_FY22[[#This Row],[Degree]]&AAMC_Raw_Data_for_FY22[[#This Row],[Department / Specialty]]&\"L\"","v":"AAMCAcademicPrivateChiefPhDOB/GYN TotalL"},"OB/GYN Total",6,"AAMC","Academic","Private","Chief","PhD","2021-2022",null,{"$f":"(((AAMC_Raw_Data_for_FY22[[#This Row],[Median]]-AAMC_Raw_Data_for_FY22[[#This Row],[25th]])/25)*5) + AAMC_Raw_Data_for_FY22[[#This Row],[25th]]","v":0},{"$f":"(((AAMC_Raw_Data_for_FY22[[#This Row],[Median]]-AAMC_Raw_Data_for_FY22[[#This Row],[25th]])/25)*10) + AAMC_Raw_Data_for_FY22[[#This Row],[25th]]","v":0},{"$f":"(((AAMC_Raw_Data_for_FY22[[#This Row],[Median]]-AAMC_Raw_Data_for_FY22[[#This Row],[25th]])/25)*15) + AAMC_Raw_Data_for_FY22[[#This Row],[25th]]","v":0},{"$f":"(((AAMC_Raw_Data_for_FY22[[#This Row],[Median]]-AAMC_Raw_Data_for_FY22[[#This Row],[25th]])/25)*20) + AAMC_Raw_Data_for_FY22[[#This Row],[25th]]","v":0},null,{"$f":"(((AAMC_Raw_Data_for_FY22[[#This Row],[75th]]-AAMC_Raw_Data_for_FY22[[#This Row],[Median]])/25)*5) + AAMC_Raw_Data_for_FY22[[#This Row],[Median]]","v":0},{"$f":"(((AAMC_Raw_Data_for_FY22[[#This Row],[75th]]-AAMC_Raw_Data_for_FY22[[#This Row],[Median]])/25)*10) + AAMC_Raw_Data_for_FY22[[#This Row],[Median]]","v":0},{"$f":"(((AAMC_Raw_Data_for_FY22[[#This Row],[75th]]-AAMC_Raw_Data_for_FY22[[#This Row],[Median]])/25)*15) + AAMC_Raw_Data_for_FY22[[#This Row],[Median]]","v":0},{"$f":"(((AAMC_Raw_Data_for_FY22[[#This Row],[75th]]-AAMC_Raw_Data_for_FY22[[#This Row],[Median]])/25)*20) + AAMC_Raw_Data_for_FY22[[#This Row],[Median]]","v":0},null,{"$f":"(((AAMC_Raw_Data_for_FY22[[#This Row],[75th]]-AAMC_Raw_Data_for_FY22[[#This Row],[Median]])/25)*30) + AAMC_Raw_Data_for_FY22[[#This Row],[Median]]","v":0},{"$f":"(((AAMC_Raw_Data_for_FY22[[#This Row],[75th]]-AAMC_Raw_Data_for_FY22[[#This Row],[Median]])/25)*35) + AAMC_Raw_Data_for_FY22[[#This Row],[Median]]","v":0},{"$f":"(((AAMC_Raw_Data_for_FY22[[#This Row],[75th]]-AAMC_Raw_Data_for_FY22[[#This Row],[Median]])/25)*40) + AAMC_Raw_Data_for_FY22[[#This Row],[Median]]","v":0}]
[{"$f":"AAMC_Raw_Data_for_FY22[[#This Row],[Source]]&AAMC_Raw_Data_for_FY22[[#This Row],[Type]]&AAMC_Raw_Data_for_FY22[[#This Row],[School Subset]]&AAMC_Raw_Data_for_FY22[[#This Row],[Rank]]&AAMC_Raw_Data_for_FY22[[#This Row],[Degree]]&AAMC_Raw_Data_for_FY22[[#This Row],[Department / Specialty]]&\"L\"","v":"AAMCAcademicPrivateInstructorPhDOB/GYN: GeneralL"},"OB/GYN: General",5,"AAMC","Academic","Private","Instructor","PhD","2021-2022",null,{"$f":"(((AAMC_Raw_Data_for_FY22[[#This Row],[Median]]-AAMC_Raw_Data_for_FY22[[#This Row],[25th]])/25)*5) + AAMC_Raw_Data_for_FY22[[#This Row],[25th]]","v":0},{"$f":"(((AAMC_Raw_Data_for_FY22[[#This Row],[Median]]-AAMC_Raw_Data_for_FY22[[#This Row],[25th]])/25)*10) + AAMC_Raw_Data_for_FY22[[#This Row],[25th]]","v":0},{"$f":"(((AAMC_Raw_Data_for_FY22[[#This Row],[Median]]-AAMC_Raw_Data_for_FY22[[#This Row],[25th]])/25)*15) + AAMC_Raw_Data_for_FY22[[#This Row],[25th]]","v":0},{"$f":"(((AAMC_Raw_Data_for_FY22[[#This Row],[Median]]-AAMC_Raw_Data_for_FY22[[#This Row],[25th]])/25)*20) + AAMC_Raw_Data_for_FY22[[#This Row],[25th]]","v":0},null,{"$f":"(((AAMC_Raw_Data_for_FY22[[#This Row],[75th]]-AAMC_Raw_Data_for_FY22[[#This Row],[Median]])/25)*5) + AAMC_Raw_Data_for_FY22[[#This Row],[Median]]","v":0},{"$f":"(((AAMC_Raw_Data_for_FY22[[#This Row],[75th]]-AAMC_Raw_Data_for_FY22[[#This Row],[Median]])/25)*10) + AAMC_Raw_Data_for_FY22[[#This Row],[Median]]","v":0},{"$f":"(((AAMC_Raw_Data_for_FY22[[#This Row],[75th]]-AAMC_Raw_Data_for_FY22[[#This Row],[Median]])/25)*15) + AAMC_Raw_Data_for_FY22[[#This Row],[Median]]","v":0},{"$f":"(((AAMC_Raw_Data_for_FY22[[#This Row],[75th]]-AAMC_Raw_Data_for_FY22[[#This Row],[Median]])/25)*20) + AAMC_Raw_Data_for_FY22[[#This Row],[Median]]","v":0},null,{"$f":"(((AAMC_Raw_Data_for_FY22[[#This Row],[75th]]-AAMC_Raw_Data_for_FY22[[#This Row],[Median]])/25)*30) + AAMC_Raw_Data_for_FY22[[#This Row],[Median]]","v":0},{"$f":"(((AAMC_Raw_Data_for_FY22[[#This Row],[75th]]-AAMC_Raw_Data_for_FY22[[#This Row],[Median]])/25)*35) + AAMC_Raw_Data_for_FY22[[#This Row],[Median]]","v":0},{"$f":"(((AAMC_Raw_Data_for_FY22[[#This Row],[75th]]-AAMC_Raw_Data_for_FY22[[#This Row],[Median]])/25)*40) + AAMC_Raw_Data_for_FY22[[#This Row],[Median]]","v":0}]
[{"$f":"AAMC_Raw_Data_for_FY22[[#This Row],[Source]]&AAMC_Raw_Data_for_FY22[[#This Row],[Type]]&AAMC_Raw_Data_for_FY22[[#This Row],[School Subset]]&AAMC_Raw_Data_for_FY22[[#This Row],[Rank]]&AAMC_Raw_Data_for_FY22[[#This Row],[Degree]]&AAMC_Raw_Data_for_FY22[[#This Row],[Department / Specialty]]&\"L\"","v":"AAMCAcademicPrivateAssistantPhDOB/GYN: GeneralL"},"OB/GYN: General",4,"AAMC","Academic","Private","Assistant","PhD","2021-2022",90792,{"$f":"(((AAMC_Raw_Data_for_FY22[[#This Row],[Median]]-AAMC_Raw_Data_for_FY22[[#This Row],[25th]])/25)*5) + AAMC_Raw_Data_for_FY22[[#This Row],[25th]]","v":96303.6},{"$f":"(((AAMC_Raw_Data_for_FY22[[#This Row],[Median]]-AAMC_Raw_Data_for_FY22[[#This Row],[25th]])/25)*10) + AAMC_Raw_Data_for_FY22[[#This Row],[25th]]","v":101815.2},{"$f":"(((AAMC_Raw_Data_for_FY22[[#This Row],[Median]]-AAMC_Raw_Data_for_FY22[[#This Row],[25th]])/25)*15) + AAMC_Raw_Data_for_FY22[[#This Row],[25th]]","v":107326.8},{"$f":"(((AAMC_Raw_Data_for_FY22[[#This Row],[Median]]-AAMC_Raw_Data_for_FY22[[#This Row],[25th]])/25)*20) + AAMC_Raw_Data_for_FY22[[#This Row],[25th]]","v":112838.39999999999},118350,{"$f":"(((AAMC_Raw_Data_for_FY22[[#This Row],[75th]]-AAMC_Raw_Data_for_FY22[[#This Row],[Median]])/25)*5) + AAMC_Raw_Data_for_FY22[[#This Row],[Median]]","v":125094.8},{"$f":"(((AAMC_Raw_Data_for_FY22[[#This Row],[75th]]-AAMC_Raw_Data_for_FY22[[#This Row],[Median]])/25)*10) + AAMC_Raw_Data_for_FY22[[#This Row],[Median]]","v":131839.6},{"$f":"(((AAMC_Raw_Data_for_FY22[[#This Row],[75th]]-AAMC_Raw_Data_for_FY22[[#This Row],[Median]])/25)*15) + AAMC_Raw_Data_for_FY22[[#This Row],[Median]]","v":138584.4},{"$f":"(((AAMC_Raw_Data_for_FY22[[#This Row],[75th]]-AAMC_Raw_Data_for_FY22[[#This Row],[Median]])/25)*20) + AAMC_Raw_Data_for_FY22[[#This Row],[Median]]","v":145329.20000000001},152074,{"$f":"(((AAMC_Raw_Data_for_FY22[[#This Row],[75th]]-AAMC_Raw_Data_for_FY22[[#This Row],[Median]])/25)*30) + AAMC_Raw_Data_for_FY22[[#This Row],[Median]]","v":158818.79999999999},{"$f":"(((AAMC_Raw_Data_for_FY22[[#This Row],[75th]]-AAMC_Raw_Data_for_FY22[[#This Row],[Median]])/25)*35) + AAMC_Raw_Data_for_FY22[[#This Row],[Median]]","v":165563.6},{"$f":"(((AAMC_Raw_Data_for_FY22[[#This Row],[75th]]-AAMC_Raw_Data_for_FY22[[#This Row],[Median]])/25)*40) + AAMC_Raw_Data_for_FY22[[#This Row],[Median]]","v":172308.4}]
[{"$f":"AAMC_Raw_Data_for_FY22[[#This Row],[Source]]&AAMC_Raw_Data_for_FY22[[#This Row],[Type]]&AAMC_Raw_Data_for_FY22[[#This Row],[School Subset]]&AAMC_Raw_Data_for_FY22[[#This Row],[Rank]]&AAMC_Raw_Data_for_FY22[[#This Row],[Degree]]&AAMC_Raw_Data_for_FY22[[#This Row],[Department / Specialty]]&\"L\"","v":"AAMCAcademicPrivateAssociatePhDOB/GYN: GeneralL"},"OB/GYN: General",3,"AAMC","Academic","Private","Associate","PhD","2021-2022",123564,{"$f":"(((AAMC_Raw_Data_for_FY22[[#This Row],[Median]]-AAMC_Raw_Data_for_FY22[[#This Row],[25th]])/25)*5) + AAMC_Raw_Data_for_FY22[[#This Row],[25th]]","v":128523},{"$f":"(((AAMC_Raw_Data_for_FY22[[#This Row],[Median]]-AAMC_Raw_Data_for_FY22[[#This Row],[25th]])/25)*10) + AAMC_Raw_Data_for_FY22[[#This Row],[25th]]","v":133482},{"$f":"(((AAMC_Raw_Data_for_FY22[[#This Row],[Median]]-AAMC_Raw_Data_for_FY22[[#This Row],[25th]])/25)*15) + AAMC_Raw_Data_for_FY22[[#This Row],[25th]]","v":138441},{"$f":"(((AAMC_Raw_Data_for_FY22[[#This Row],[Median]]-AAMC_Raw_Data_for_FY22[[#This Row],[25th]])/25)*20) + AAMC_Raw_Data_for_FY22[[#This Row],[25th]]","v":143400},148359,{"$f":"(((AAMC_Raw_Data_for_FY22[[#This Row],[75th]]-AAMC_Raw_Data_for_FY22[[#This Row],[Median]])/25)*5) + AAMC_Raw_Data_for_FY22[[#This Row],[Median]]","v":152745.20000000001},{"$f":"(((AAMC_Raw_Data_for_FY22[[#This Row],[75th]]-AAMC_Raw_Data_for_FY22[[#This Row],[Median]])/25)*10) + AAMC_Raw_Data_for_FY22[[#This Row],[Median]]","v":157131.4},{"$f":"(((AAMC_Raw_Data_for_FY22[[#This Row],[75th]]-AAMC_Raw_Data_for_FY22[[#This Row],[Median]])/25)*15) + AAMC_Raw_Data_for_FY22[[#This Row],[Median]]","v":161517.6},{"$f":"(((AAMC_Raw_Data_for_FY22[[#This Row],[75th]]-AAMC_Raw_Data_for_FY22[[#This Row],[Median]])/25)*20) + AAMC_Raw_Data_for_FY22[[#This Row],[Median]]","v":165903.79999999999},170290,{"$f":"(((AAMC_Raw_Data_for_FY22[[#This Row],[75th]]-AAMC_Raw_Data_for_FY22[[#This Row],[Median]])/25)*30) + AAMC_Raw_Data_for_FY22[[#This Row],[Median]]","v":174676.2},{"$f":"(((AAMC_Raw_Data_for_FY22[[#This Row],[75th]]-AAMC_Raw_Data_for_FY22[[#This Row],[Median]])/25)*35) + AAMC_Raw_Data_for_FY22[[#This Row],[Median]]","v":179062.39999999999},{"$f":"(((AAMC_Raw_Data_for_FY22[[#This Row],[75th]]-AAMC_Raw_Data_for_FY22[[#This Row],[Median]])/25)*40) + AAMC_Raw_Data_for_FY22[[#This Row],[Median]]","v":183448.6}]
[{"$f":"AAMC_Raw_Data_for_FY22[[#This Row],[Source]]&AAMC_Raw_Data_for_FY22[[#This Row],[Type]]&AAMC_Raw_Data_for_FY22[[#This Row],[School Subset]]&AAMC_Raw_Data_for_FY22[[#This Row],[Rank]]&AAMC_Raw_Data_for_FY22[[#This Row],[Degree]]&AAMC_Raw_Data_for_FY22[[#This Row],[Department / Specialty]]&\"L\"","v":"AAMCAcademicPrivateProfessorPhDOB/GYN: GeneralL"},"OB/GYN: General",2,"AAMC","Academic","Private","Professor","PhD","2021-2022",null,{"$f":"(((AAMC_Raw_Data_for_FY22[[#This Row],[Median]]-AAMC_Raw_Data_for_FY22[[#This Row],[25th]])/25)*5) + AAMC_Raw_Data_for_FY22[[#This Row],[25th]]","v":0},{"$f":"(((AAMC_Raw_Data_for_FY22[[#This Row],[Median]]-AAMC_Raw_Data_for_FY22[[#This Row],[25th]])/25)*10) + AAMC_Raw_Data_for_FY22[[#This Row],[25th]]","v":0},{"$f":"(((AAMC_Raw_Data_for_FY22[[#This Row],[Median]]-AAMC_Raw_Data_for_FY22[[#This Row],[25th]])/25)*15) + AAMC_Raw_Data_for_FY22[[#This Row],[25th]]","v":0},{"$f":"(((AAMC_Raw_Data_for_FY22[[#This Row],[Median]]-AAMC_Raw_Data_for_FY22[[#This Row],[25th]])/25)*20) + AAMC_Raw_Data_for_FY22[[#This Row],[25th]]","v":0},null,{"$f":"(((AAMC_Raw_Data_for_FY22[[#This Row],[75th]]-AAMC_Raw_Data_for_FY22[[#This Row],[Median]])/25)*5) + AAMC_Raw_Data_for_FY22[[#This Row],[Median]]","v":0},{"$f":"(((AAMC_Raw_Data_for_FY22[[#This Row],[75th]]-AAMC_Raw_Data_for_FY22[[#This Row],[Median]])/25)*10) + AAMC_Raw_Data_for_FY22[[#This Row],[Median]]","v":0},{"$f":"(((AAMC_Raw_Data_for_FY22[[#This Row],[75th]]-AAMC_Raw_Data_for_FY22[[#This Row],[Median]])/25)*15) + AAMC_Raw_Data_for_FY22[[#This Row],[Median]]","v":0},{"$f":"(((AAMC_Raw_Data_for_FY22[[#This Row],[75th]]-AAMC_Raw_Data_for_FY22[[#This Row],[Median]])/25)*20) + AAMC_Raw_Data_for_FY22[[#This Row],[Median]]","v":0},null,{"$f":"(((AAMC_Raw_Data_for_FY22[[#This Row],[75th]]-AAMC_Raw_Data_for_FY22[[#This Row],[Median]])/25)*30) + AAMC_Raw_Data_for_FY22[[#This Row],[Median]]","v":0},{"$f":"(((AAMC_Raw_Data_for_FY22[[#This Row],[75th]]-AAMC_Raw_Data_for_FY22[[#This Row],[Median]])/25)*35) + AAMC_Raw_Data_for_FY22[[#This Row],[Median]]","v":0},{"$f":"(((AAMC_Raw_Data_for_FY22[[#This Row],[75th]]-AAMC_Raw_Data_for_FY22[[#This Row],[Median]])/25)*40) + AAMC_Raw_Data_for_FY22[[#This Row],[Median]]","v":0}]
[{"$f":"AAMC_Raw_Data_for_FY22[[#This Row],[Source]]&AAMC_Raw_Data_for_FY22[[#This Row],[Type]]&AAMC_Raw_Data_for_FY22[[#This Row],[School Subset]]&AAMC_Raw_Data_for_FY22[[#This Row],[Rank]]&AAMC_Raw_Data_for_FY22[[#This Row],[Degree]]&AAMC_Raw_Data_for_FY22[[#This Row],[Department / Specialty]]&\"L\"","v":"AAMCAcademicPrivateAssociatePhDOB/GYN: Gynecologic OncologyL"},"OB/GYN: Gynecologic Oncology",3,"AAMC","Academic","Private","Associate","PhD","2021-2022",null,{"$f":"(((AAMC_Raw_Data_for_FY22[[#This Row],[Median]]-AAMC_Raw_Data_for_FY22[[#This Row],[25th]])/25)*5) + AAMC_Raw_Data_for_FY22[[#This Row],[25th]]","v":0},{"$f":"(((AAMC_Raw_Data_for_FY22[[#This Row],[Median]]-AAMC_Raw_Data_for_FY22[[#This Row],[25th]])/25)*10) + AAMC_Raw_Data_for_FY22[[#This Row],[25th]]","v":0},{"$f":"(((AAMC_Raw_Data_for_FY22[[#This Row],[Median]]-AAMC_Raw_Data_for_FY22[[#This Row],[25th]])/25)*15) + AAMC_Raw_Data_for_FY22[[#This Row],[25th]]","v":0},{"$f":"(((AAMC_Raw_Data_for_FY22[[#This Row],[Median]]-AAMC_Raw_Data_for_FY22[[#This Row],[25th]])/25)*20) + AAMC_Raw_Data_for_FY22[[#This Row],[25th]]","v":0},null,{"$f":"(((AAMC_Raw_Data_for_FY22[[#This Row],[75th]]-AAMC_Raw_Data_for_FY22[[#This Row],[Median]])/25)*5) + AAMC_Raw_Data_for_FY22[[#This Row],[Median]]","v":0},{"$f":"(((AAMC_Raw_Data_for_FY22[[#This Row],[75th]]-AAMC_Raw_Data_for_FY22[[#This Row],[Median]])/25)*10) + AAMC_Raw_Data_for_FY22[[#This Row],[Median]]","v":0},{"$f":"(((AAMC_Raw_Data_for_FY22[[#This Row],[75th]]-AAMC_Raw_Data_for_FY22[[#This Row],[Median]])/25)*15) + AAMC_Raw_Data_for_FY22[[#This Row],[Median]]","v":0},{"$f":"(((AAMC_Raw_Data_for_FY22[[#This Row],[75th]]-AAMC_Raw_Data_for_FY22[[#This Row],[Median]])/25)*20) + AAMC_Raw_Data_for_FY22[[#This Row],[Median]]","v":0},null,{"$f":"(((AAMC_Raw_Data_for_FY22[[#This Row],[75th]]-AAMC_Raw_Data_for_FY22[[#This Row],[Median]])/25)*30) + AAMC_Raw_Data_for_FY22[[#This Row],[Median]]","v":0},{"$f":"(((AAMC_Raw_Data_for_FY22[[#This Row],[75th]]-AAMC_Raw_Data_for_FY22[[#This Row],[Median]])/25)*35) + AAMC_Raw_Data_for_FY22[[#This Row],[Median]]","v":0},{"$f":"(((AAMC_Raw_Data_for_FY22[[#This Row],[75th]]-AAMC_Raw_Data_for_FY22[[#This Row],[Median]])/25)*40) + AAMC_Raw_Data_for_FY22[[#This Row],[Median]]","v":0}]
[{"$f":"AAMC_Raw_Data_for_FY22[[#This Row],[Source]]&AAMC_Raw_Data_for_FY22[[#This Row],[Type]]&AAMC_Raw_Data_for_FY22[[#This Row],[School Subset]]&AAMC_Raw_Data_for_FY22[[#This Row],[Rank]]&AAMC_Raw_Data_for_FY22[[#This Row],[Degree]]&AAMC_Raw_Data_for_FY22[[#This Row],[Department / Specialty]]&\"L\"","v":"AAMCAcademicPrivateAssistantPhDOB/GYN: Maternal & FetalL"},"OB/GYN: Maternal & Fetal",4,"AAMC","Academic","Private","Assistant","PhD","2021-2022",null,{"$f":"(((AAMC_Raw_Data_for_FY22[[#This Row],[Median]]-AAMC_Raw_Data_for_FY22[[#This Row],[25th]])/25)*5) + AAMC_Raw_Data_for_FY22[[#This Row],[25th]]","v":0},{"$f":"(((AAMC_Raw_Data_for_FY22[[#This Row],[Median]]-AAMC_Raw_Data_for_FY22[[#This Row],[25th]])/25)*10) + AAMC_Raw_Data_for_FY22[[#This Row],[25th]]","v":0},{"$f":"(((AAMC_Raw_Data_for_FY22[[#This Row],[Median]]-AAMC_Raw_Data_for_FY22[[#This Row],[25th]])/25)*15) + AAMC_Raw_Data_for_FY22[[#This Row],[25th]]","v":0},{"$f":"(((AAMC_Raw_Data_for_FY22[[#This Row],[Median]]-AAMC_Raw_Data_for_FY22[[#This Row],[25th]])/25)*20) + AAMC_Raw_Data_for_FY22[[#This Row],[25th]]","v":0},null,{"$f":"(((AAMC_Raw_Data_for_FY22[[#This Row],[75th]]-AAMC_Raw_Data_for_FY22[[#This Row],[Median]])/25)*5) + AAMC_Raw_Data_for_FY22[[#This Row],[Median]]","v":0},{"$f":"(((AAMC_Raw_Data_for_FY22[[#This Row],[75th]]-AAMC_Raw_Data_for_FY22[[#This Row],[Median]])/25)*10) + AAMC_Raw_Data_for_FY22[[#This Row],[Median]]","v":0},{"$f":"(((AAMC_Raw_Data_for_FY22[[#This Row],[75th]]-AAMC_Raw_Data_for_FY22[[#This Row],[Median]])/25)*15) + AAMC_Raw_Data_for_FY22[[#This Row],[Median]]","v":0},{"$f":"(((AAMC_Raw_Data_for_FY22[[#This Row],[75th]]-AAMC_Raw_Data_for_FY22[[#This Row],[Median]])/25)*20) + AAMC_Raw_Data_for_FY22[[#This Row],[Median]]","v":0},null,{"$f":"(((AAMC_Raw_Data_for_FY22[[#This Row],[75th]]-AAMC_Raw_Data_for_FY22[[#This Row],[Median]])/25)*30) + AAMC_Raw_Data_for_FY22[[#This Row],[Median]]","v":0},{"$f":"(((AAMC_Raw_Data_for_FY22[[#This Row],[75th]]-AAMC_Raw_Data_for_FY22[[#This Row],[Median]])/25)*35) + AAMC_Raw_Data_for_FY22[[#This Row],[Median]]","v":0},{"$f":"(((AAMC_Raw_Data_for_FY22[[#This Row],[75th]]-AAMC_Raw_Data_for_FY22[[#This Row],[Median]])/25)*40) + AAMC_Raw_Data_for_FY22[[#This Row],[Median]]","v":0}]
[{"$f":"AAMC_Raw_Data_for_FY22[[#This Row],[Source]]&AAMC_Raw_Data_for_FY22[[#This Row],[Type]]&AAMC_Raw_Data_for_FY22[[#This Row],[School Subset]]&AAMC_Raw_Data_for_FY22[[#This Row],[Rank]]&AAMC_Raw_Data_for_FY22[[#This Row],[Degree]]&AAMC_Raw_Data_for_FY22[[#This Row],[Department / Specialty]]&\"L\"","v":"AAMCAcademicPrivateAssociatePhDOB/GYN: Maternal & FetalL"},"OB/GYN: Maternal & Fetal",3,"AAMC","Academic","Private","Associate","PhD","2021-2022",null,{"$f":"(((AAMC_Raw_Data_for_FY22[[#This Row],[Median]]-AAMC_Raw_Data_for_FY22[[#This Row],[25th]])/25)*5) + AAMC_Raw_Data_for_FY22[[#This Row],[25th]]","v":0},{"$f":"(((AAMC_Raw_Data_for_FY22[[#This Row],[Median]]-AAMC_Raw_Data_for_FY22[[#This Row],[25th]])/25)*10) + AAMC_Raw_Data_for_FY22[[#This Row],[25th]]","v":0},{"$f":"(((AAMC_Raw_Data_for_FY22[[#This Row],[Median]]-AAMC_Raw_Data_for_FY22[[#This Row],[25th]])/25)*15) + AAMC_Raw_Data_for_FY22[[#This Row],[25th]]","v":0},{"$f":"(((AAMC_Raw_Data_for_FY22[[#This Row],[Median]]-AAMC_Raw_Data_for_FY22[[#This Row],[25th]])/25)*20) + AAMC_Raw_Data_for_FY22[[#This Row],[25th]]","v":0},null,{"$f":"(((AAMC_Raw_Data_for_FY22[[#This Row],[75th]]-AAMC_Raw_Data_for_FY22[[#This Row],[Median]])/25)*5) + AAMC_Raw_Data_for_FY22[[#This Row],[Median]]","v":0},{"$f":"(((AAMC_Raw_Data_for_FY22[[#This Row],[75th]]-AAMC_Raw_Data_for_FY22[[#This Row],[Median]])/25)*10) + AAMC_Raw_Data_for_FY22[[#This Row],[Median]]","v":0},{"$f":"(((AAMC_Raw_Data_for_FY22[[#This Row],[75th]]-AAMC_Raw_Data_for_FY22[[#This Row],[Median]])/25)*15) + AAMC_Raw_Data_for_FY22[[#This Row],[Median]]","v":0},{"$f":"(((AAMC_Raw_Data_for_FY22[[#This Row],[75th]]-AAMC_Raw_Data_for_FY22[[#This Row],[Median]])/25)*20) + AAMC_Raw_Data_for_FY22[[#This Row],[Median]]","v":0},null,{"$f":"(((AAMC_Raw_Data_for_FY22[[#This Row],[75th]]-AAMC_Raw_Data_for_FY22[[#This Row],[Median]])/25)*30) + AAMC_Raw_Data_for_FY22[[#This Row],[Median]]","v":0},{"$f":"(((AAMC_Raw_Data_for_FY22[[#This Row],[75th]]-AAMC_Raw_Data_for_FY22[[#This Row],[Median]])/25)*35) + AAMC_Raw_Data_for_FY22[[#This Row],[Median]]","v":0},{"$f":"(((AAMC_Raw_Data_for_FY22[[#This Row],[75th]]-AAMC_Raw_Data_for_FY22[[#This Row],[Median]])/25)*40) + AAMC_Raw_Data_for_FY22[[#This Row],[Median]]","v":0}]
[{"$f":"AAMC_Raw_Data_for_FY22[[#This Row],[Source]]&AAMC_Raw_Data_for_FY22[[#This Row],[Type]]&AAMC_Raw_Data_for_FY22[[#This Row],[School Subset]]&AAMC_Raw_Data_for_FY22[[#This Row],[Rank]]&AAMC_Raw_Data_for_FY22[[#This Row],[Degree]]&AAMC_Raw_Data_for_FY22[[#This Row],[Department / Specialty]]&\"L\"","v":"AAMCAcademicPrivateProfessorPhDOB/GYN: Maternal & FetalL"},"OB/GYN: Maternal & Fetal",2,"AAMC","Academic","Private","Professor","PhD","2021-2022",null,{"$f":"(((AAMC_Raw_Data_for_FY22[[#This Row],[Median]]-AAMC_Raw_Data_for_FY22[[#This Row],[25th]])/25)*5) + AAMC_Raw_Data_for_FY22[[#This Row],[25th]]","v":0},{"$f":"(((AAMC_Raw_Data_for_FY22[[#This Row],[Median]]-AAMC_Raw_Data_for_FY22[[#This Row],[25th]])/25)*10) + AAMC_Raw_Data_for_FY22[[#This Row],[25th]]","v":0},{"$f":"(((AAMC_Raw_Data_for_FY22[[#This Row],[Median]]-AAMC_Raw_Data_for_FY22[[#This Row],[25th]])/25)*15) + AAMC_Raw_Data_for_FY22[[#This Row],[25th]]","v":0},{"$f":"(((AAMC_Raw_Data_for_FY22[[#This Row],[Median]]-AAMC_Raw_Data_for_FY22[[#This Row],[25th]])/25)*20) + AAMC_Raw_Data_for_FY22[[#This Row],[25th]]","v":0},null,{"$f":"(((AAMC_Raw_Data_for_FY22[[#This Row],[75th]]-AAMC_Raw_Data_for_FY22[[#This Row],[Median]])/25)*5) + AAMC_Raw_Data_for_FY22[[#This Row],[Median]]","v":0},{"$f":"(((AAMC_Raw_Data_for_FY22[[#This Row],[75th]]-AAMC_Raw_Data_for_FY22[[#This Row],[Median]])/25)*10) + AAMC_Raw_Data_for_FY22[[#This Row],[Median]]","v":0},{"$f":"(((AAMC_Raw_Data_for_FY22[[#This Row],[75th]]-AAMC_Raw_Data_for_FY22[[#This Row],[Median]])/25)*15) + AAMC_Raw_Data_for_FY22[[#This Row],[Median]]","v":0},{"$f":"(((AAMC_Raw_Data_for_FY22[[#This Row],[75th]]-AAMC_Raw_Data_for_FY22[[#This Row],[Median]])/25)*20) + AAMC_Raw_Data_for_FY22[[#This Row],[Median]]","v":0},null,{"$f":"(((AAMC_Raw_Data_for_FY22[[#This Row],[75th]]-AAMC_Raw_Data_for_FY22[[#This Row],[Median]])/25)*30) + AAMC_Raw_Data_for_FY22[[#This Row],[Median]]","v":0},{"$f":"(((AAMC_Raw_Data_for_FY22[[#This Row],[75th]]-AAMC_Raw_Data_for_FY22[[#This Row],[Median]])/25)*35) + AAMC_Raw_Data_for_FY22[[#This Row],[Median]]","v":0},{"$f":"(((AAMC_Raw_Data_for_FY22[[#This Row],[75th]]-AAMC_Raw_Data_for_FY22[[#This Row],[Median]])/25)*40) + AAMC_Raw_Data_for_FY22[[#This Row],[Median]]","v":0}]
[{"$f":"AAMC_Raw_Data_for_FY22[[#This Row],[Source]]&AAMC_Raw_Data_for_FY22[[#This Row],[Type]]&AAMC_Raw_Data_for_FY22[[#This Row],[School Subset]]&AAMC_Raw_Data_for_FY22[[#This Row],[Rank]]&AAMC_Raw_Data_for_FY22[[#This Row],[Degree]]&AAMC_Raw_Data_for_FY22[[#This Row],[Department / Specialty]]&\"L\"","v":"AAMCAcademicPrivateChiefPhDOB/GYN: Maternal & FetalL"},"OB/GYN: Maternal & Fetal",6,"AAMC","Academic","Private","Chief","PhD","2021-2022",null,{"$f":"(((AAMC_Raw_Data_for_FY22[[#This Row],[Median]]-AAMC_Raw_Data_for_FY22[[#This Row],[25th]])/25)*5) + AAMC_Raw_Data_for_FY22[[#This Row],[25th]]","v":0},{"$f":"(((AAMC_Raw_Data_for_FY22[[#This Row],[Median]]-AAMC_Raw_Data_for_FY22[[#This Row],[25th]])/25)*10) + AAMC_Raw_Data_for_FY22[[#This Row],[25th]]","v":0},{"$f":"(((AAMC_Raw_Data_for_FY22[[#This Row],[Median]]-AAMC_Raw_Data_for_FY22[[#This Row],[25th]])/25)*15) + AAMC_Raw_Data_for_FY22[[#This Row],[25th]]","v":0},{"$f":"(((AAMC_Raw_Data_for_FY22[[#This Row],[Median]]-AAMC_Raw_Data_for_FY22[[#This Row],[25th]])/25)*20) + AAMC_Raw_Data_for_FY22[[#This Row],[25th]]","v":0},null,{"$f":"(((AAMC_Raw_Data_for_FY22[[#This Row],[75th]]-AAMC_Raw_Data_for_FY22[[#This Row],[Median]])/25)*5) + AAMC_Raw_Data_for_FY22[[#This Row],[Median]]","v":0},{"$f":"(((AAMC_Raw_Data_for_FY22[[#This Row],[75th]]-AAMC_Raw_Data_for_FY22[[#This Row],[Median]])/25)*10) + AAMC_Raw_Data_for_FY22[[#This Row],[Median]]","v":0},{"$f":"(((AAMC_Raw_Data_for_FY22[[#This Row],[75th]]-AAMC_Raw_Data_for_FY22[[#This Row],[Median]])/25)*15) + AAMC_Raw_Data_for_FY22[[#This Row],[Median]]","v":0},{"$f":"(((AAMC_Raw_Data_for_FY22[[#This Row],[75th]]-AAMC_Raw_Data_for_FY22[[#This Row],[Median]])/25)*20) + AAMC_Raw_Data_for_FY22[[#This Row],[Median]]","v":0},null,{"$f":"(((AAMC_Raw_Data_for_FY22[[#This Row],[75th]]-AAMC_Raw_Data_for_FY22[[#This Row],[Median]])/25)*30) + AAMC_Raw_Data_for_FY22[[#This Row],[Median]]","v":0},{"$f":"(((AAMC_Raw_Data_for_FY22[[#This Row],[75th]]-AAMC_Raw_Data_for_FY22[[#This Row],[Median]])/25)*35) + AAMC_Raw_Data_for_FY22[[#This Row],[Median]]","v":0},{"$f":"(((AAMC_Raw_Data_for_FY22[[#This Row],[75th]]-AAMC_Raw_Data_for_FY22[[#This Row],[Median]])/25)*40) + AAMC_Raw_Data_for_FY22[[#This Row],[Median]]","v":0}]
[{"$f":"AAMC_Raw_Data_for_FY22[[#This Row],[Source]]&AAMC_Raw_Data_for_FY22[[#This Row],[Type]]&AAMC_Raw_Data_for_FY22[[#This Row],[School Subset]]&AAMC_Raw_Data_for_FY22[[#This Row],[Rank]]&AAMC_Raw_Data_for_FY22[[#This Row],[Degree]]&AAMC_Raw_Data_for_FY22[[#This Row],[Department / Specialty]]&\"L\"","v":"AAMCAcademicPrivateAssistantPhDOB/GYN: Reproductive EndocrinologyL"},"OB/GYN: Reproductive Endocrinology",4,"AAMC","Academic","Private","Assistant","PhD","2021-2022",131903,{"$f":"(((AAMC_Raw_Data_for_FY22[[#This Row],[Median]]-AAMC_Raw_Data_for_FY22[[#This Row],[25th]])/25)*5) + AAMC_Raw_Data_for_FY22[[#This Row],[25th]]","v":138882.79999999999},{"$f":"(((AAMC_Raw_Data_for_FY22[[#This Row],[Median]]-AAMC_Raw_Data_for_FY22[[#This Row],[25th]])/25)*10) + AAMC_Raw_Data_for_FY22[[#This Row],[25th]]","v":145862.6},{"$f":"(((AAMC_Raw_Data_for_FY22[[#This Row],[Median]]-AAMC_Raw_Data_for_FY22[[#This Row],[25th]])/25)*15) + AAMC_Raw_Data_for_FY22[[#This Row],[25th]]","v":152842.4},{"$f":"(((AAMC_Raw_Data_for_FY22[[#This Row],[Median]]-AAMC_Raw_Data_for_FY22[[#This Row],[25th]])/25)*20) + AAMC_Raw_Data_for_FY22[[#This Row],[25th]]","v":159822.20000000001},166802,{"$f":"(((AAMC_Raw_Data_for_FY22[[#This Row],[75th]]-AAMC_Raw_Data_for_FY22[[#This Row],[Median]])/25)*5) + AAMC_Raw_Data_for_FY22[[#This Row],[Median]]","v":177701},{"$f":"(((AAMC_Raw_Data_for_FY22[[#This Row],[75th]]-AAMC_Raw_Data_for_FY22[[#This Row],[Median]])/25)*10) + AAMC_Raw_Data_for_FY22[[#This Row],[Median]]","v":188600},{"$f":"(((AAMC_Raw_Data_for_FY22[[#This Row],[75th]]-AAMC_Raw_Data_for_FY22[[#This Row],[Median]])/25)*15) + AAMC_Raw_Data_for_FY22[[#This Row],[Median]]","v":199499},{"$f":"(((AAMC_Raw_Data_for_FY22[[#This Row],[75th]]-AAMC_Raw_Data_for_FY22[[#This Row],[Median]])/25)*20) + AAMC_Raw_Data_for_FY22[[#This Row],[Median]]","v":210398},221297,{"$f":"(((AAMC_Raw_Data_for_FY22[[#This Row],[75th]]-AAMC_Raw_Data_for_FY22[[#This Row],[Median]])/25)*30) + AAMC_Raw_Data_for_FY22[[#This Row],[Median]]","v":232196},{"$f":"(((AAMC_Raw_Data_for_FY22[[#This Row],[75th]]-AAMC_Raw_Data_for_FY22[[#This Row],[Median]])/25)*35) + AAMC_Raw_Data_for_FY22[[#This Row],[Median]]","v":243095},{"$f":"(((AAMC_Raw_Data_for_FY22[[#This Row],[75th]]-AAMC_Raw_Data_for_FY22[[#This Row],[Median]])/25)*40) + AAMC_Raw_Data_for_FY22[[#This Row],[Median]]","v":253994}]
[{"$f":"AAMC_Raw_Data_for_FY22[[#This Row],[Source]]&AAMC_Raw_Data_for_FY22[[#This Row],[Type]]&AAMC_Raw_Data_for_FY22[[#This Row],[School Subset]]&AAMC_Raw_Data_for_FY22[[#This Row],[Rank]]&AAMC_Raw_Data_for_FY22[[#This Row],[Degree]]&AAMC_Raw_Data_for_FY22[[#This Row],[Department / Specialty]]&\"L\"","v":"AAMCAcademicPrivateAssociatePhDOB/GYN: Reproductive EndocrinologyL"},"OB/GYN: Reproductive Endocrinology",3,"AAMC","Academic","Private","Associate","PhD","2021-2022",null,{"$f":"(((AAMC_Raw_Data_for_FY22[[#This Row],[Median]]-AAMC_Raw_Data_for_FY22[[#This Row],[25th]])/25)*5) + AAMC_Raw_Data_for_FY22[[#This Row],[25th]]","v":0},{"$f":"(((AAMC_Raw_Data_for_FY22[[#This Row],[Median]]-AAMC_Raw_Data_for_FY22[[#This Row],[25th]])/25)*10) + AAMC_Raw_Data_for_FY22[[#This Row],[25th]]","v":0},{"$f":"(((AAMC_Raw_Data_for_FY22[[#This Row],[Median]]-AAMC_Raw_Data_for_FY22[[#This Row],[25th]])/25)*15) + AAMC_Raw_Data_for_FY22[[#This Row],[25th]]","v":0},{"$f":"(((AAMC_Raw_Data_for_FY22[[#This Row],[Median]]-AAMC_Raw_Data_for_FY22[[#This Row],[25th]])/25)*20) + AAMC_Raw_Data_for_FY22[[#This Row],[25th]]","v":0},null,{"$f":"(((AAMC_Raw_Data_for_FY22[[#This Row],[75th]]-AAMC_Raw_Data_for_FY22[[#This Row],[Median]])/25)*5) + AAMC_Raw_Data_for_FY22[[#This Row],[Median]]","v":0},{"$f":"(((AAMC_Raw_Data_for_FY22[[#This Row],[75th]]-AAMC_Raw_Data_for_FY22[[#This Row],[Median]])/25)*10) + AAMC_Raw_Data_for_FY22[[#This Row],[Median]]","v":0},{"$f":"(((AAMC_Raw_Data_for_FY22[[#This Row],[75th]]-AAMC_Raw_Data_for_FY22[[#This Row],[Median]])/25)*15) + AAMC_Raw_Data_for_FY22[[#This Row],[Median]]","v":0},{"$f":"(((AAMC_Raw_Data_for_FY22[[#This Row],[75th]]-AAMC_Raw_Data_for_FY22[[#This Row],[Median]])/25)*20) + AAMC_Raw_Data_for_FY22[[#This Row],[Median]]","v":0},null,{"$f":"(((AAMC_Raw_Data_for_FY22[[#This Row],[75th]]-AAMC_Raw_Data_for_FY22[[#This Row],[Median]])/25)*30) + AAMC_Raw_Data_for_FY22[[#This Row],[Median]]","v":0},{"$f":"(((AAMC_Raw_Data_for_FY22[[#This Row],[75th]]-AAMC_Raw_Data_for_FY22[[#This Row],[Median]])/25)*35) + AAMC_Raw_Data_for_FY22[[#This Row],[Median]]","v":0},{"$f":"(((AAMC_Raw_Data_for_FY22[[#This Row],[75th]]-AAMC_Raw_Data_for_FY22[[#This Row],[Median]])/25)*40) + AAMC_Raw_Data_for_FY22[[#This Row],[Median]]","v":0}]
[{"$f":"AAMC_Raw_Data_for_FY22[[#This Row],[Source]]&AAMC_Raw_Data_for_FY22[[#This Row],[Type]]&AAMC_Raw_Data_for_FY22[[#This Row],[School Subset]]&AAMC_Raw_Data_for_FY22[[#This Row],[Rank]]&AAMC_Raw_Data_for_FY22[[#This Row],[Degree]]&AAMC_Raw_Data_for_FY22[[#This Row],[Department / Specialty]]&\"L\"","v":"AAMCAcademicPrivateProfessorPhDOB/GYN: Reproductive EndocrinologyL"},"OB/GYN: Reproductive Endocrinology",2,"AAMC","Academic","Private","Professor","PhD","2021-2022",null,{"$f":"(((AAMC_Raw_Data_for_FY22[[#This Row],[Median]]-AAMC_Raw_Data_for_FY22[[#This Row],[25th]])/25)*5) + AAMC_Raw_Data_for_FY22[[#This Row],[25th]]","v":0},{"$f":"(((AAMC_Raw_Data_for_FY22[[#This Row],[Median]]-AAMC_Raw_Data_for_FY22[[#This Row],[25th]])/25)*10) + AAMC_Raw_Data_for_FY22[[#This Row],[25th]]","v":0},{"$f":"(((AAMC_Raw_Data_for_FY22[[#This Row],[Median]]-AAMC_Raw_Data_for_FY22[[#This Row],[25th]])/25)*15) + AAMC_Raw_Data_for_FY22[[#This Row],[25th]]","v":0},{"$f":"(((AAMC_Raw_Data_for_FY22[[#This Row],[Median]]-AAMC_Raw_Data_for_FY22[[#This Row],[25th]])/25)*20) + AAMC_Raw_Data_for_FY22[[#This Row],[25th]]","v":0},null,{"$f":"(((AAMC_Raw_Data_for_FY22[[#This Row],[75th]]-AAMC_Raw_Data_for_FY22[[#This Row],[Median]])/25)*5) + AAMC_Raw_Data_for_FY22[[#This Row],[Median]]","v":0},{"$f":"(((AAMC_Raw_Data_for_FY22[[#This Row],[75th]]-AAMC_Raw_Data_for_FY22[[#This Row],[Median]])/25)*10) + AAMC_Raw_Data_for_FY22[[#This Row],[Median]]","v":0},{"$f":"(((AAMC_Raw_Data_for_FY22[[#This Row],[75th]]-AAMC_Raw_Data_for_FY22[[#This Row],[Median]])/25)*15) + AAMC_Raw_Data_for_FY22[[#This Row],[Median]]","v":0},{"$f":"(((AAMC_Raw_Data_for_FY22[[#This Row],[75th]]-AAMC_Raw_Data_for_FY22[[#This Row],[Median]])/25)*20) + AAMC_Raw_Data_for_FY22[[#This Row],[Median]]","v":0},null,{"$f":"(((AAMC_Raw_Data_for_FY22[[#This Row],[75th]]-AAMC_Raw_Data_for_FY22[[#This Row],[Median]])/25)*30) + AAMC_Raw_Data_for_FY22[[#This Row],[Median]]","v":0},{"$f":"(((AAMC_Raw_Data_for_FY22[[#This Row],[75th]]-AAMC_Raw_Data_for_FY22[[#This Row],[Median]])/25)*35) + AAMC_Raw_Data_for_FY22[[#This Row],[Median]]","v":0},{"$f":"(((AAMC_Raw_Data_for_FY22[[#This Row],[75th]]-AAMC_Raw_Data_for_FY22[[#This Row],[Median]])/25)*40) + AAMC_Raw_Data_for_FY22[[#This Row],[Median]]","v":0}]
[{"$f":"AAMC_Raw_Data_for_FY22[[#This Row],[Source]]&AAMC_Raw_Data_for_FY22[[#This Row],[Type]]&AAMC_Raw_Data_for_FY22[[#This Row],[School Subset]]&AAMC_Raw_Data_for_FY22[[#This Row],[Rank]]&AAMC_Raw_Data_for_FY22[[#This Row],[Degree]]&AAMC_Raw_Data_for_FY22[[#This Row],[Department / Specialty]]&\"L\"","v":"AAMCAcademicPrivateInstructorPhDOB/GYN: Other OB/GYNL"},"OB/GYN: Other OB/GYN",5,"AAMC","Academic","Private","Instructor","PhD","2021-2022",null,{"$f":"(((AAMC_Raw_Data_for_FY22[[#This Row],[Median]]-AAMC_Raw_Data_for_FY22[[#This Row],[25th]])/25)*5) + AAMC_Raw_Data_for_FY22[[#This Row],[25th]]","v":0},{"$f":"(((AAMC_Raw_Data_for_FY22[[#This Row],[Median]]-AAMC_Raw_Data_for_FY22[[#This Row],[25th]])/25)*10) + AAMC_Raw_Data_for_FY22[[#This Row],[25th]]","v":0},{"$f":"(((AAMC_Raw_Data_for_FY22[[#This Row],[Median]]-AAMC_Raw_Data_for_FY22[[#This Row],[25th]])/25)*15) + AAMC_Raw_Data_for_FY22[[#This Row],[25th]]","v":0},{"$f":"(((AAMC_Raw_Data_for_FY22[[#This Row],[Median]]-AAMC_Raw_Data_for_FY22[[#This Row],[25th]])/25)*20) + AAMC_Raw_Data_for_FY22[[#This Row],[25th]]","v":0},null,{"$f":"(((AAMC_Raw_Data_for_FY22[[#This Row],[75th]]-AAMC_Raw_Data_for_FY22[[#This Row],[Median]])/25)*5) + AAMC_Raw_Data_for_FY22[[#This Row],[Median]]","v":0},{"$f":"(((AAMC_Raw_Data_for_FY22[[#This Row],[75th]]-AAMC_Raw_Data_for_FY22[[#This Row],[Median]])/25)*10) + AAMC_Raw_Data_for_FY22[[#This Row],[Median]]","v":0},{"$f":"(((AAMC_Raw_Data_for_FY22[[#This Row],[75th]]-AAMC_Raw_Data_for_FY22[[#This Row],[Median]])/25)*15) + AAMC_Raw_Data_for_FY22[[#This Row],[Median]]","v":0},{"$f":"(((AAMC_Raw_Data_for_FY22[[#This Row],[75th]]-AAMC_Raw_Data_for_FY22[[#This Row],[Median]])/25)*20) + AAMC_Raw_Data_for_FY22[[#This Row],[Median]]","v":0},null,{"$f":"(((AAMC_Raw_Data_for_FY22[[#This Row],[75th]]-AAMC_Raw_Data_for_FY22[[#This Row],[Median]])/25)*30) + AAMC_Raw_Data_for_FY22[[#This Row],[Median]]","v":0},{"$f":"(((AAMC_Raw_Data_for_FY22[[#This Row],[75th]]-AAMC_Raw_Data_for_FY22[[#This Row],[Median]])/25)*35) + AAMC_Raw_Data_for_FY22[[#This Row],[Median]]","v":0},{"$f":"(((AAMC_Raw_Data_for_FY22[[#This Row],[75th]]-AAMC_Raw_Data_for_FY22[[#This Row],[Median]])/25)*40) + AAMC_Raw_Data_for_FY22[[#This Row],[Median]]","v":0}]
[{"$f":"AAMC_Raw_Data_for_FY22[[#This Row],[Source]]&AAMC_Raw_Data_for_FY22[[#This Row],[Type]]&AAMC_Raw_Data_for_FY22[[#This Row],[School Subset]]&AAMC_Raw_Data_for_FY22[[#This Row],[Rank]]&AAMC_Raw_Data_for_FY22[[#This Row],[Degree]]&AAMC_Raw_Data_for_FY22[[#This Row],[Department / Specialty]]&\"L\"","v":"AAMCAcademicPrivateAssistantPhDOB/GYN: Other OB/GYNL"},"OB/GYN: Other OB/GYN",4,"AAMC","Academic","Private","Assistant","PhD","2021-2022",87114,{"$f":"(((AAMC_Raw_Data_for_FY22[[#This Row],[Median]]-AAMC_Raw_Data_for_FY22[[#This Row],[25th]])/25)*5) + AAMC_Raw_Data_for_FY22[[#This Row],[25th]]","v":91691.199999999997},{"$f":"(((AAMC_Raw_Data_for_FY22[[#This Row],[Median]]-AAMC_Raw_Data_for_FY22[[#This Row],[25th]])/25)*10) + AAMC_Raw_Data_for_FY22[[#This Row],[25th]]","v":96268.4},{"$f":"(((AAMC_Raw_Data_for_FY22[[#This Row],[Median]]-AAMC_Raw_Data_for_FY22[[#This Row],[25th]])/25)*15) + AAMC_Raw_Data_for_FY22[[#This Row],[25th]]","v":100845.6},{"$f":"(((AAMC_Raw_Data_for_FY22[[#This Row],[Median]]-AAMC_Raw_Data_for_FY22[[#This Row],[25th]])/25)*20) + AAMC_Raw_Data_for_FY22[[#This Row],[25th]]","v":105422.8},110000,{"$f":"(((AAMC_Raw_Data_for_FY22[[#This Row],[75th]]-AAMC_Raw_Data_for_FY22[[#This Row],[Median]])/25)*5) + AAMC_Raw_Data_for_FY22[[#This Row],[Median]]","v":117690},{"$f":"(((AAMC_Raw_Data_for_FY22[[#This Row],[75th]]-AAMC_Raw_Data_for_FY22[[#This Row],[Median]])/25)*10) + AAMC_Raw_Data_for_FY22[[#This Row],[Median]]","v":125380},{"$f":"(((AAMC_Raw_Data_for_FY22[[#This Row],[75th]]-AAMC_Raw_Data_for_FY22[[#This Row],[Median]])/25)*15) + AAMC_Raw_Data_for_FY22[[#This Row],[Median]]","v":133070},{"$f":"(((AAMC_Raw_Data_for_FY22[[#This Row],[75th]]-AAMC_Raw_Data_for_FY22[[#This Row],[Median]])/25)*20) + AAMC_Raw_Data_for_FY22[[#This Row],[Median]]","v":140760},148450,{"$f":"(((AAMC_Raw_Data_for_FY22[[#This Row],[75th]]-AAMC_Raw_Data_for_FY22[[#This Row],[Median]])/25)*30) + AAMC_Raw_Data_for_FY22[[#This Row],[Median]]","v":156140},{"$f":"(((AAMC_Raw_Data_for_FY22[[#This Row],[75th]]-AAMC_Raw_Data_for_FY22[[#This Row],[Median]])/25)*35) + AAMC_Raw_Data_for_FY22[[#This Row],[Median]]","v":163830},{"$f":"(((AAMC_Raw_Data_for_FY22[[#This Row],[75th]]-AAMC_Raw_Data_for_FY22[[#This Row],[Median]])/25)*40) + AAMC_Raw_Data_for_FY22[[#This Row],[Median]]","v":171520}]
[{"$f":"AAMC_Raw_Data_for_FY22[[#This Row],[Source]]&AAMC_Raw_Data_for_FY22[[#This Row],[Type]]&AAMC_Raw_Data_for_FY22[[#This Row],[School Subset]]&AAMC_Raw_Data_for_FY22[[#This Row],[Rank]]&AAMC_Raw_Data_for_FY22[[#This Row],[Degree]]&AAMC_Raw_Data_for_FY22[[#This Row],[Department / Specialty]]&\"L\"","v":"AAMCAcademicPrivateAssociatePhDOB/GYN: Other OB/GYNL"},"OB/GYN: Other OB/GYN",3,"AAMC","Academic","Private","Associate","PhD","2021-2022",132884,{"$f":"(((AAMC_Raw_Data_for_FY22[[#This Row],[Median]]-AAMC_Raw_Data_for_FY22[[#This Row],[25th]])/25)*5) + AAMC_Raw_Data_for_FY22[[#This Row],[25th]]","v":138885.20000000001},{"$f":"(((AAMC_Raw_Data_for_FY22[[#This Row],[Median]]-AAMC_Raw_Data_for_FY22[[#This Row],[25th]])/25)*10) + AAMC_Raw_Data_for_FY22[[#This Row],[25th]]","v":144886.39999999999},{"$f":"(((AAMC_Raw_Data_for_FY22[[#This Row],[Median]]-AAMC_Raw_Data_for_FY22[[#This Row],[25th]])/25)*15) + AAMC_Raw_Data_for_FY22[[#This Row],[25th]]","v":150887.6},{"$f":"(((AAMC_Raw_Data_for_FY22[[#This Row],[Median]]-AAMC_Raw_Data_for_FY22[[#This Row],[25th]])/25)*20) + AAMC_Raw_Data_for_FY22[[#This Row],[25th]]","v":156888.79999999999},162890,{"$f":"(((AAMC_Raw_Data_for_FY22[[#This Row],[75th]]-AAMC_Raw_Data_for_FY22[[#This Row],[Median]])/25)*5) + AAMC_Raw_Data_for_FY22[[#This Row],[Median]]","v":166350.20000000001},{"$f":"(((AAMC_Raw_Data_for_FY22[[#This Row],[75th]]-AAMC_Raw_Data_for_FY22[[#This Row],[Median]])/25)*10) + AAMC_Raw_Data_for_FY22[[#This Row],[Median]]","v":169810.4},{"$f":"(((AAMC_Raw_Data_for_FY22[[#This Row],[75th]]-AAMC_Raw_Data_for_FY22[[#This Row],[Median]])/25)*15) + AAMC_Raw_Data_for_FY22[[#This Row],[Median]]","v":173270.6},{"$f":"(((AAMC_Raw_Data_for_FY22[[#This Row],[75th]]-AAMC_Raw_Data_for_FY22[[#This Row],[Median]])/25)*20) + AAMC_Raw_Data_for_FY22[[#This Row],[Median]]","v":176730.8},180191,{"$f":"(((AAMC_Raw_Data_for_FY22[[#This Row],[75th]]-AAMC_Raw_Data_for_FY22[[#This Row],[Median]])/25)*30) + AAMC_Raw_Data_for_FY22[[#This Row],[Median]]","v":183651.20000000001},{"$f":"(((AAMC_Raw_Data_for_FY22[[#This Row],[75th]]-AAMC_Raw_Data_for_FY22[[#This Row],[Median]])/25)*35) + AAMC_Raw_Data_for_FY22[[#This Row],[Median]]","v":187111.4},{"$f":"(((AAMC_Raw_Data_for_FY22[[#This Row],[75th]]-AAMC_Raw_Data_for_FY22[[#This Row],[Median]])/25)*40) + AAMC_Raw_Data_for_FY22[[#This Row],[Median]]","v":190571.6}]
[{"$f":"AAMC_Raw_Data_for_FY22[[#This Row],[Source]]&AAMC_Raw_Data_for_FY22[[#This Row],[Type]]&AAMC_Raw_Data_for_FY22[[#This Row],[School Subset]]&AAMC_Raw_Data_for_FY22[[#This Row],[Rank]]&AAMC_Raw_Data_for_FY22[[#This Row],[Degree]]&AAMC_Raw_Data_for_FY22[[#This Row],[Department / Specialty]]&\"L\"","v":"AAMCAcademicPrivateProfessorPhDOB/GYN: Other OB/GYNL"},"OB/GYN: Other OB/GYN",2,"AAMC","Academic","Private","Professor","PhD","2021-2022",198312,{"$f":"(((AAMC_Raw_Data_for_FY22[[#This Row],[Median]]-AAMC_Raw_Data_for_FY22[[#This Row],[25th]])/25)*5) + AAMC_Raw_Data_for_FY22[[#This Row],[25th]]","v":209034.2},{"$f":"(((AAMC_Raw_Data_for_FY22[[#This Row],[Median]]-AAMC_Raw_Data_for_FY22[[#This Row],[25th]])/25)*10) + AAMC_Raw_Data_for_FY22[[#This Row],[25th]]","v":219756.4},{"$f":"(((AAMC_Raw_Data_for_FY22[[#This Row],[Median]]-AAMC_Raw_Data_for_FY22[[#This Row],[25th]])/25)*15) + AAMC_Raw_Data_for_FY22[[#This Row],[25th]]","v":230478.6},{"$f":"(((AAMC_Raw_Data_for_FY22[[#This Row],[Median]]-AAMC_Raw_Data_for_FY22[[#This Row],[25th]])/25)*20) + AAMC_Raw_Data_for_FY22[[#This Row],[25th]]","v":241200.8},251923,{"$f":"(((AAMC_Raw_Data_for_FY22[[#This Row],[75th]]-AAMC_Raw_Data_for_FY22[[#This Row],[Median]])/25)*5) + AAMC_Raw_Data_for_FY22[[#This Row],[Median]]","v":262508.79999999999},{"$f":"(((AAMC_Raw_Data_for_FY22[[#This Row],[75th]]-AAMC_Raw_Data_for_FY22[[#This Row],[Median]])/25)*10) + AAMC_Raw_Data_for_FY22[[#This Row],[Median]]","v":273094.59999999998},{"$f":"(((AAMC_Raw_Data_for_FY22[[#This Row],[75th]]-AAMC_Raw_Data_for_FY22[[#This Row],[Median]])/25)*15) + AAMC_Raw_Data_for_FY22[[#This Row],[Median]]","v":283680.40000000002},{"$f":"(((AAMC_Raw_Data_for_FY22[[#This Row],[75th]]-AAMC_Raw_Data_for_FY22[[#This Row],[Median]])/25)*20) + AAMC_Raw_Data_for_FY22[[#This Row],[Median]]","v":294266.2},304852,{"$f":"(((AAMC_Raw_Data_for_FY22[[#This Row],[75th]]-AAMC_Raw_Data_for_FY22[[#This Row],[Median]])/25)*30) + AAMC_Raw_Data_for_FY22[[#This Row],[Median]]","v":315437.8},{"$f":"(((AAMC_Raw_Data_for_FY22[[#This Row],[75th]]-AAMC_Raw_Data_for_FY22[[#This Row],[Median]])/25)*35) + AAMC_Raw_Data_for_FY22[[#This Row],[Median]]","v":326023.59999999998},{"$f":"(((AAMC_Raw_Data_for_FY22[[#This Row],[75th]]-AAMC_Raw_Data_for_FY22[[#This Row],[Median]])/25)*40) + AAMC_Raw_Data_for_FY22[[#This Row],[Median]]","v":336609.4}]
[{"$f":"AAMC_Raw_Data_for_FY22[[#This Row],[Source]]&AAMC_Raw_Data_for_FY22[[#This Row],[Type]]&AAMC_Raw_Data_for_FY22[[#This Row],[School Subset]]&AAMC_Raw_Data_for_FY22[[#This Row],[Rank]]&AAMC_Raw_Data_for_FY22[[#This Row],[Degree]]&AAMC_Raw_Data_for_FY22[[#This Row],[Department / Specialty]]&\"L\"","v":"AAMCAcademicPrivateChiefPhDOB/GYN: Other OB/GYNL"},"OB/GYN: Other OB/GYN",6,"AAMC","Academic","Private","Chief","PhD","2021-2022",null,{"$f":"(((AAMC_Raw_Data_for_FY22[[#This Row],[Median]]-AAMC_Raw_Data_for_FY22[[#This Row],[25th]])/25)*5) + AAMC_Raw_Data_for_FY22[[#This Row],[25th]]","v":0},{"$f":"(((AAMC_Raw_Data_for_FY22[[#This Row],[Median]]-AAMC_Raw_Data_for_FY22[[#This Row],[25th]])/25)*10) + AAMC_Raw_Data_for_FY22[[#This Row],[25th]]","v":0},{"$f":"(((AAMC_Raw_Data_for_FY22[[#This Row],[Median]]-AAMC_Raw_Data_for_FY22[[#This Row],[25th]])/25)*15) + AAMC_Raw_Data_for_FY22[[#This Row],[25th]]","v":0},{"$f":"(((AAMC_Raw_Data_for_FY22[[#This Row],[Median]]-AAMC_Raw_Data_for_FY22[[#This Row],[25th]])/25)*20) + AAMC_Raw_Data_for_FY22[[#This Row],[25th]]","v":0},null,{"$f":"(((AAMC_Raw_Data_for_FY22[[#This Row],[75th]]-AAMC_Raw_Data_for_FY22[[#This Row],[Median]])/25)*5) + AAMC_Raw_Data_for_FY22[[#This Row],[Median]]","v":0},{"$f":"(((AAMC_Raw_Data_for_FY22[[#This Row],[75th]]-AAMC_Raw_Data_for_FY22[[#This Row],[Median]])/25)*10) + AAMC_Raw_Data_for_FY22[[#This Row],[Median]]","v":0},{"$f":"(((AAMC_Raw_Data_for_FY22[[#This Row],[75th]]-AAMC_Raw_Data_for_FY22[[#This Row],[Median]])/25)*15) + AAMC_Raw_Data_for_FY22[[#This Row],[Median]]","v":0},{"$f":"(((AAMC_Raw_Data_for_FY22[[#This Row],[75th]]-AAMC_Raw_Data_for_FY22[[#This Row],[Median]])/25)*20) + AAMC_Raw_Data_for_FY22[[#This Row],[Median]]","v":0},null,{"$f":"(((AAMC_Raw_Data_for_FY22[[#This Row],[75th]]-AAMC_Raw_Data_for_FY22[[#This Row],[Median]])/25)*30) + AAMC_Raw_Data_for_FY22[[#This Row],[Median]]","v":0},{"$f":"(((AAMC_Raw_Data_for_FY22[[#This Row],[75th]]-AAMC_Raw_Data_for_FY22[[#This Row],[Median]])/25)*35) + AAMC_Raw_Data_for_FY22[[#This Row],[Median]]","v":0},{"$f":"(((AAMC_Raw_Data_for_FY22[[#This Row],[75th]]-AAMC_Raw_Data_for_FY22[[#This Row],[Median]])/25)*40) + AAMC_Raw_Data_for_FY22[[#This Row],[Median]]","v":0}]
[{"$f":"AAMC_Raw_Data_for_FY22[[#This Row],[Source]]&AAMC_Raw_Data_for_FY22[[#This Row],[Type]]&AAMC_Raw_Data_for_FY22[[#This Row],[School Subset]]&AAMC_Raw_Data_for_FY22[[#This Row],[Rank]]&AAMC_Raw_Data_for_FY22[[#This Row],[Degree]]&AAMC_Raw_Data_for_FY22[[#This Row],[Department / Specialty]]&\"L\"","v":"AAMCAcademicPrivateInstructorPhDPathology TotalL"},"Pathology Total",5,"AAMC","Academic","Private","Instructor","PhD","2021-2022",66119,{"$f":"(((AAMC_Raw_Data_for_FY22[[#This Row],[Median]]-AAMC_Raw_Data_for_FY22[[#This Row],[25th]])/25)*5) + AAMC_Raw_Data_for_FY22[[#This Row],[25th]]","v":67495.199999999997},{"$f":"(((AAMC_Raw_Data_for_FY22[[#This Row],[Median]]-AAMC_Raw_Data_for_FY22[[#This Row],[25th]])/25)*10) + AAMC_Raw_Data_for_FY22[[#This Row],[25th]]","v":68871.399999999994},{"$f":"(((AAMC_Raw_Data_for_FY22[[#This Row],[Median]]-AAMC_Raw_Data_for_FY22[[#This Row],[25th]])/25)*15) + AAMC_Raw_Data_for_FY22[[#This Row],[25th]]","v":70247.600000000006},{"$f":"(((AAMC_Raw_Data_for_FY22[[#This Row],[Median]]-AAMC_Raw_Data_for_FY22[[#This Row],[25th]])/25)*20) + AAMC_Raw_Data_for_FY22[[#This Row],[25th]]","v":71623.8},73000,{"$f":"(((AAMC_Raw_Data_for_FY22[[#This Row],[75th]]-AAMC_Raw_Data_for_FY22[[#This Row],[Median]])/25)*5) + AAMC_Raw_Data_for_FY22[[#This Row],[Median]]","v":74797.8},{"$f":"(((AAMC_Raw_Data_for_FY22[[#This Row],[75th]]-AAMC_Raw_Data_for_FY22[[#This Row],[Median]])/25)*10) + AAMC_Raw_Data_for_FY22[[#This Row],[Median]]","v":76595.600000000006},{"$f":"(((AAMC_Raw_Data_for_FY22[[#This Row],[75th]]-AAMC_Raw_Data_for_FY22[[#This Row],[Median]])/25)*15) + AAMC_Raw_Data_for_FY22[[#This Row],[Median]]","v":78393.399999999994},{"$f":"(((AAMC_Raw_Data_for_FY22[[#This Row],[75th]]-AAMC_Raw_Data_for_FY22[[#This Row],[Median]])/25)*20) + AAMC_Raw_Data_for_FY22[[#This Row],[Median]]","v":80191.199999999997},81989,{"$f":"(((AAMC_Raw_Data_for_FY22[[#This Row],[75th]]-AAMC_Raw_Data_for_FY22[[#This Row],[Median]])/25)*30) + AAMC_Raw_Data_for_FY22[[#This Row],[Median]]","v":83786.8},{"$f":"(((AAMC_Raw_Data_for_FY22[[#This Row],[75th]]-AAMC_Raw_Data_for_FY22[[#This Row],[Median]])/25)*35) + AAMC_Raw_Data_for_FY22[[#This Row],[Median]]","v":85584.6},{"$f":"(((AAMC_Raw_Data_for_FY22[[#This Row],[75th]]-AAMC_Raw_Data_for_FY22[[#This Row],[Median]])/25)*40) + AAMC_Raw_Data_for_FY22[[#This Row],[Median]]","v":87382.399999999994}]
[{"$f":"AAMC_Raw_Data_for_FY22[[#This Row],[Source]]&AAMC_Raw_Data_for_FY22[[#This Row],[Type]]&AAMC_Raw_Data_for_FY22[[#This Row],[School Subset]]&AAMC_Raw_Data_for_FY22[[#This Row],[Rank]]&AAMC_Raw_Data_for_FY22[[#This Row],[Degree]]&AAMC_Raw_Data_for_FY22[[#This Row],[Department / Specialty]]&\"L\"","v":"AAMCAcademicPrivateAssistantPhDPathology TotalL"},"Pathology Total",4,"AAMC","Academic","Private","Assistant","PhD","2021-2022",107757,{"$f":"(((AAMC_Raw_Data_for_FY22[[#This Row],[Median]]-AAMC_Raw_Data_for_FY22[[#This Row],[25th]])/25)*5) + AAMC_Raw_Data_for_FY22[[#This Row],[25th]]","v":113205.6},{"$f":"(((AAMC_Raw_Data_for_FY22[[#This Row],[Median]]-AAMC_Raw_Data_for_FY22[[#This Row],[25th]])/25)*10) + AAMC_Raw_Data_for_FY22[[#This Row],[25th]]","v":118654.2},{"$f":"(((AAMC_Raw_Data_for_FY22[[#This Row],[Median]]-AAMC_Raw_Data_for_FY22[[#This Row],[25th]])/25)*15) + AAMC_Raw_Data_for_FY22[[#This Row],[25th]]","v":124102.8},{"$f":"(((AAMC_Raw_Data_for_FY22[[#This Row],[Median]]-AAMC_Raw_Data_for_FY22[[#This Row],[25th]])/25)*20) + AAMC_Raw_Data_for_FY22[[#This Row],[25th]]","v":129551.4},135000,{"$f":"(((AAMC_Raw_Data_for_FY22[[#This Row],[75th]]-AAMC_Raw_Data_for_FY22[[#This Row],[Median]])/25)*5) + AAMC_Raw_Data_for_FY22[[#This Row],[Median]]","v":141951.4},{"$f":"(((AAMC_Raw_Data_for_FY22[[#This Row],[75th]]-AAMC_Raw_Data_for_FY22[[#This Row],[Median]])/25)*10) + AAMC_Raw_Data_for_FY22[[#This Row],[Median]]","v":148902.79999999999},{"$f":"(((AAMC_Raw_Data_for_FY22[[#This Row],[75th]]-AAMC_Raw_Data_for_FY22[[#This Row],[Median]])/25)*15) + AAMC_Raw_Data_for_FY22[[#This Row],[Median]]","v":155854.20000000001},{"$f":"(((AAMC_Raw_Data_for_FY22[[#This Row],[75th]]-AAMC_Raw_Data_for_FY22[[#This Row],[Median]])/25)*20) + AAMC_Raw_Data_for_FY22[[#This Row],[Median]]","v":162805.6},169757,{"$f":"(((AAMC_Raw_Data_for_FY22[[#This Row],[75th]]-AAMC_Raw_Data_for_FY22[[#This Row],[Median]])/25)*30) + AAMC_Raw_Data_for_FY22[[#This Row],[Median]]","v":176708.4},{"$f":"(((AAMC_Raw_Data_for_FY22[[#This Row],[75th]]-AAMC_Raw_Data_for_FY22[[#This Row],[Median]])/25)*35) + AAMC_Raw_Data_for_FY22[[#This Row],[Median]]","v":183659.8},{"$f":"(((AAMC_Raw_Data_for_FY22[[#This Row],[75th]]-AAMC_Raw_Data_for_FY22[[#This Row],[Median]])/25)*40) + AAMC_Raw_Data_for_FY22[[#This Row],[Median]]","v":190611.20000000001}]
[{"$f":"AAMC_Raw_Data_for_FY22[[#This Row],[Source]]&AAMC_Raw_Data_for_FY22[[#This Row],[Type]]&AAMC_Raw_Data_for_FY22[[#This Row],[School Subset]]&AAMC_Raw_Data_for_FY22[[#This Row],[Rank]]&AAMC_Raw_Data_for_FY22[[#This Row],[Degree]]&AAMC_Raw_Data_for_FY22[[#This Row],[Department / Specialty]]&\"L\"","v":"AAMCAcademicPrivateAssociatePhDPathology TotalL"},"Pathology Total",3,"AAMC","Academic","Private","Associate","PhD","2021-2022",142594,{"$f":"(((AAMC_Raw_Data_for_FY22[[#This Row],[Median]]-AAMC_Raw_Data_for_FY22[[#This Row],[25th]])/25)*5) + AAMC_Raw_Data_for_FY22[[#This Row],[25th]]","v":150448},{"$f":"(((AAMC_Raw_Data_for_FY22[[#This Row],[Median]]-AAMC_Raw_Data_for_FY22[[#This Row],[25th]])/25)*10) + AAMC_Raw_Data_for_FY22[[#This Row],[25th]]","v":158302},{"$f":"(((AAMC_Raw_Data_for_FY22[[#This Row],[Median]]-AAMC_Raw_Data_for_FY22[[#This Row],[25th]])/25)*15) + AAMC_Raw_Data_for_FY22[[#This Row],[25th]]","v":166156},{"$f":"(((AAMC_Raw_Data_for_FY22[[#This Row],[Median]]-AAMC_Raw_Data_for_FY22[[#This Row],[25th]])/25)*20) + AAMC_Raw_Data_for_FY22[[#This Row],[25th]]","v":174010},181864,{"$f":"(((AAMC_Raw_Data_for_FY22[[#This Row],[75th]]-AAMC_Raw_Data_for_FY22[[#This Row],[Median]])/25)*5) + AAMC_Raw_Data_for_FY22[[#This Row],[Median]]","v":189986.8},{"$f":"(((AAMC_Raw_Data_for_FY22[[#This Row],[75th]]-AAMC_Raw_Data_for_FY22[[#This Row],[Median]])/25)*10) + AAMC_Raw_Data_for_FY22[[#This Row],[Median]]","v":198109.6},{"$f":"(((AAMC_Raw_Data_for_FY22[[#This Row],[75th]]-AAMC_Raw_Data_for_FY22[[#This Row],[Median]])/25)*15) + AAMC_Raw_Data_for_FY22[[#This Row],[Median]]","v":206232.4},{"$f":"(((AAMC_Raw_Data_for_FY22[[#This Row],[75th]]-AAMC_Raw_Data_for_FY22[[#This Row],[Median]])/25)*20) + AAMC_Raw_Data_for_FY22[[#This Row],[Median]]","v":214355.20000000001},222478,{"$f":"(((AAMC_Raw_Data_for_FY22[[#This Row],[75th]]-AAMC_Raw_Data_for_FY22[[#This Row],[Median]])/25)*30) + AAMC_Raw_Data_for_FY22[[#This Row],[Median]]","v":230600.8},{"$f":"(((AAMC_Raw_Data_for_FY22[[#This Row],[75th]]-AAMC_Raw_Data_for_FY22[[#This Row],[Median]])/25)*35) + AAMC_Raw_Data_for_FY22[[#This Row],[Median]]","v":238723.6},{"$f":"(((AAMC_Raw_Data_for_FY22[[#This Row],[75th]]-AAMC_Raw_Data_for_FY22[[#This Row],[Median]])/25)*40) + AAMC_Raw_Data_for_FY22[[#This Row],[Median]]","v":246846.4}]
[{"$f":"AAMC_Raw_Data_for_FY22[[#This Row],[Source]]&AAMC_Raw_Data_for_FY22[[#This Row],[Type]]&AAMC_Raw_Data_for_FY22[[#This Row],[School Subset]]&AAMC_Raw_Data_for_FY22[[#This Row],[Rank]]&AAMC_Raw_Data_for_FY22[[#This Row],[Degree]]&AAMC_Raw_Data_for_FY22[[#This Row],[Department / Specialty]]&\"L\"","v":"AAMCAcademicPrivateProfessorPhDPathology TotalL"},"Pathology Total",2,"AAMC","Academic","Private","Professor","PhD","2021-2022",208000,{"$f":"(((AAMC_Raw_Data_for_FY22[[#This Row],[Median]]-AAMC_Raw_Data_for_FY22[[#This Row],[25th]])/25)*5) + AAMC_Raw_Data_for_FY22[[#This Row],[25th]]","v":215400},{"$f":"(((AAMC_Raw_Data_for_FY22[[#This Row],[Median]]-AAMC_Raw_Data_for_FY22[[#This Row],[25th]])/25)*10) + AAMC_Raw_Data_for_FY22[[#This Row],[25th]]","v":222800},{"$f":"(((AAMC_Raw_Data_for_FY22[[#This Row],[Median]]-AAMC_Raw_Data_for_FY22[[#This Row],[25th]])/25)*15) + AAMC_Raw_Data_for_FY22[[#This Row],[25th]]","v":230200},{"$f":"(((AAMC_Raw_Data_for_FY22[[#This Row],[Median]]-AAMC_Raw_Data_for_FY22[[#This Row],[25th]])/25)*20) + AAMC_Raw_Data_for_FY22[[#This Row],[25th]]","v":237600},245000,{"$f":"(((AAMC_Raw_Data_for_FY22[[#This Row],[75th]]-AAMC_Raw_Data_for_FY22[[#This Row],[Median]])/25)*5) + AAMC_Raw_Data_for_FY22[[#This Row],[Median]]","v":257472},{"$f":"(((AAMC_Raw_Data_for_FY22[[#This Row],[75th]]-AAMC_Raw_Data_for_FY22[[#This Row],[Median]])/25)*10) + AAMC_Raw_Data_for_FY22[[#This Row],[Median]]","v":269944},{"$f":"(((AAMC_Raw_Data_for_FY22[[#This Row],[75th]]-AAMC_Raw_Data_for_FY22[[#This Row],[Median]])/25)*15) + AAMC_Raw_Data_for_FY22[[#This Row],[Median]]","v":282416},{"$f":"(((AAMC_Raw_Data_for_FY22[[#This Row],[75th]]-AAMC_Raw_Data_for_FY22[[#This Row],[Median]])/25)*20) + AAMC_Raw_Data_for_FY22[[#This Row],[Median]]","v":294888},307360,{"$f":"(((AAMC_Raw_Data_for_FY22[[#This Row],[75th]]-AAMC_Raw_Data_for_FY22[[#This Row],[Median]])/25)*30) + AAMC_Raw_Data_for_FY22[[#This Row],[Median]]","v":319832},{"$f":"(((AAMC_Raw_Data_for_FY22[[#This Row],[75th]]-AAMC_Raw_Data_for_FY22[[#This Row],[Median]])/25)*35) + AAMC_Raw_Data_for_FY22[[#This Row],[Median]]","v":332304},{"$f":"(((AAMC_Raw_Data_for_FY22[[#This Row],[75th]]-AAMC_Raw_Data_for_FY22[[#This Row],[Median]])/25)*40) + AAMC_Raw_Data_for_FY22[[#This Row],[Median]]","v":344776}]
[{"$f":"AAMC_Raw_Data_for_FY22[[#This Row],[Source]]&AAMC_Raw_Data_for_FY22[[#This Row],[Type]]&AAMC_Raw_Data_for_FY22[[#This Row],[School Subset]]&AAMC_Raw_Data_for_FY22[[#This Row],[Rank]]&AAMC_Raw_Data_for_FY22[[#This Row],[Degree]]&AAMC_Raw_Data_for_FY22[[#This Row],[Department / Specialty]]&\"L\"","v":"AAMCAcademicPrivateChiefPhDPathology TotalL"},"Pathology Total",6,"AAMC","Academic","Private","Chief","PhD","2021-2022",null,{"$f":"(((AAMC_Raw_Data_for_FY22[[#This Row],[Median]]-AAMC_Raw_Data_for_FY22[[#This Row],[25th]])/25)*5) + AAMC_Raw_Data_for_FY22[[#This Row],[25th]]","v":0},{"$f":"(((AAMC_Raw_Data_for_FY22[[#This Row],[Median]]-AAMC_Raw_Data_for_FY22[[#This Row],[25th]])/25)*10) + AAMC_Raw_Data_for_FY22[[#This Row],[25th]]","v":0},{"$f":"(((AAMC_Raw_Data_for_FY22[[#This Row],[Median]]-AAMC_Raw_Data_for_FY22[[#This Row],[25th]])/25)*15) + AAMC_Raw_Data_for_FY22[[#This Row],[25th]]","v":0},{"$f":"(((AAMC_Raw_Data_for_FY22[[#This Row],[Median]]-AAMC_Raw_Data_for_FY22[[#This Row],[25th]])/25)*20) + AAMC_Raw_Data_for_FY22[[#This Row],[25th]]","v":0},null,{"$f":"(((AAMC_Raw_Data_for_FY22[[#This Row],[75th]]-AAMC_Raw_Data_for_FY22[[#This Row],[Median]])/25)*5) + AAMC_Raw_Data_for_FY22[[#This Row],[Median]]","v":0},{"$f":"(((AAMC_Raw_Data_for_FY22[[#This Row],[75th]]-AAMC_Raw_Data_for_FY22[[#This Row],[Median]])/25)*10) + AAMC_Raw_Data_for_FY22[[#This Row],[Median]]","v":0},{"$f":"(((AAMC_Raw_Data_for_FY22[[#This Row],[75th]]-AAMC_Raw_Data_for_FY22[[#This Row],[Median]])/25)*15) + AAMC_Raw_Data_for_FY22[[#This Row],[Median]]","v":0},{"$f":"(((AAMC_Raw_Data_for_FY22[[#This Row],[75th]]-AAMC_Raw_Data_for_FY22[[#This Row],[Median]])/25)*20) + AAMC_Raw_Data_for_FY22[[#This Row],[Median]]","v":0},null,{"$f":"(((AAMC_Raw_Data_for_FY22[[#This Row],[75th]]-AAMC_Raw_Data_for_FY22[[#This Row],[Median]])/25)*30) + AAMC_Raw_Data_for_FY22[[#This Row],[Median]]","v":0},{"$f":"(((AAMC_Raw_Data_for_FY22[[#This Row],[75th]]-AAMC_Raw_Data_for_FY22[[#This Row],[Median]])/25)*35) + AAMC_Raw_Data_for_FY22[[#This Row],[Median]]","v":0},{"$f":"(((AAMC_Raw_Data_for_FY22[[#This Row],[75th]]-AAMC_Raw_Data_for_FY22[[#This Row],[Median]])/25)*40) + AAMC_Raw_Data_for_FY22[[#This Row],[Median]]","v":0}]
[{"$f":"AAMC_Raw_Data_for_FY22[[#This Row],[Source]]&AAMC_Raw_Data_for_FY22[[#This Row],[Type]]&AAMC_Raw_Data_for_FY22[[#This Row],[School Subset]]&AAMC_Raw_Data_for_FY22[[#This Row],[Rank]]&AAMC_Raw_Data_for_FY22[[#This Row],[Degree]]&AAMC_Raw_Data_for_FY22[[#This Row],[Department / Specialty]]&\"L\"","v":"AAMCAcademicPrivateChairPhDPathology TotalL"},"Pathology Total",1,"AAMC","Academic","Private","Chair","PhD","2021-2022",null,{"$f":"(((AAMC_Raw_Data_for_FY22[[#This Row],[Median]]-AAMC_Raw_Data_for_FY22[[#This Row],[25th]])/25)*5) + AAMC_Raw_Data_for_FY22[[#This Row],[25th]]","v":0},{"$f":"(((AAMC_Raw_Data_for_FY22[[#This Row],[Median]]-AAMC_Raw_Data_for_FY22[[#This Row],[25th]])/25)*10) + AAMC_Raw_Data_for_FY22[[#This Row],[25th]]","v":0},{"$f":"(((AAMC_Raw_Data_for_FY22[[#This Row],[Median]]-AAMC_Raw_Data_for_FY22[[#This Row],[25th]])/25)*15) + AAMC_Raw_Data_for_FY22[[#This Row],[25th]]","v":0},{"$f":"(((AAMC_Raw_Data_for_FY22[[#This Row],[Median]]-AAMC_Raw_Data_for_FY22[[#This Row],[25th]])/25)*20) + AAMC_Raw_Data_for_FY22[[#This Row],[25th]]","v":0},null,{"$f":"(((AAMC_Raw_Data_for_FY22[[#This Row],[75th]]-AAMC_Raw_Data_for_FY22[[#This Row],[Median]])/25)*5) + AAMC_Raw_Data_for_FY22[[#This Row],[Median]]","v":0},{"$f":"(((AAMC_Raw_Data_for_FY22[[#This Row],[75th]]-AAMC_Raw_Data_for_FY22[[#This Row],[Median]])/25)*10) + AAMC_Raw_Data_for_FY22[[#This Row],[Median]]","v":0},{"$f":"(((AAMC_Raw_Data_for_FY22[[#This Row],[75th]]-AAMC_Raw_Data_for_FY22[[#This Row],[Median]])/25)*15) + AAMC_Raw_Data_for_FY22[[#This Row],[Median]]","v":0},{"$f":"(((AAMC_Raw_Data_for_FY22[[#This Row],[75th]]-AAMC_Raw_Data_for_FY22[[#This Row],[Median]])/25)*20) + AAMC_Raw_Data_for_FY22[[#This Row],[Median]]","v":0},null,{"$f":"(((AAMC_Raw_Data_for_FY22[[#This Row],[75th]]-AAMC_Raw_Data_for_FY22[[#This Row],[Median]])/25)*30) + AAMC_Raw_Data_for_FY22[[#This Row],[Median]]","v":0},{"$f":"(((AAMC_Raw_Data_for_FY22[[#This Row],[75th]]-AAMC_Raw_Data_for_FY22[[#This Row],[Median]])/25)*35) + AAMC_Raw_Data_for_FY22[[#This Row],[Median]]","v":0},{"$f":"(((AAMC_Raw_Data_for_FY22[[#This Row],[75th]]-AAMC_Raw_Data_for_FY22[[#This Row],[Median]])/25)*40) + AAMC_Raw_Data_for_FY22[[#This Row],[Median]]","v":0}]
[{"$f":"AAMC_Raw_Data_for_FY22[[#This Row],[Source]]&AAMC_Raw_Data_for_FY22[[#This Row],[Type]]&AAMC_Raw_Data_for_FY22[[#This Row],[School Subset]]&AAMC_Raw_Data_for_FY22[[#This Row],[Rank]]&AAMC_Raw_Data_for_FY22[[#This Row],[Degree]]&AAMC_Raw_Data_for_FY22[[#This Row],[Department / Specialty]]&\"L\"","v":"AAMCAcademicPrivateInstructorPhDPathology: AnatomicL"},"Pathology: Anatomic",5,"AAMC","Academic","Private","Instructor","PhD","2021-2022",null,{"$f":"(((AAMC_Raw_Data_for_FY22[[#This Row],[Median]]-AAMC_Raw_Data_for_FY22[[#This Row],[25th]])/25)*5) + AAMC_Raw_Data_for_FY22[[#This Row],[25th]]","v":0},{"$f":"(((AAMC_Raw_Data_for_FY22[[#This Row],[Median]]-AAMC_Raw_Data_for_FY22[[#This Row],[25th]])/25)*10) + AAMC_Raw_Data_for_FY22[[#This Row],[25th]]","v":0},{"$f":"(((AAMC_Raw_Data_for_FY22[[#This Row],[Median]]-AAMC_Raw_Data_for_FY22[[#This Row],[25th]])/25)*15) + AAMC_Raw_Data_for_FY22[[#This Row],[25th]]","v":0},{"$f":"(((AAMC_Raw_Data_for_FY22[[#This Row],[Median]]-AAMC_Raw_Data_for_FY22[[#This Row],[25th]])/25)*20) + AAMC_Raw_Data_for_FY22[[#This Row],[25th]]","v":0},null,{"$f":"(((AAMC_Raw_Data_for_FY22[[#This Row],[75th]]-AAMC_Raw_Data_for_FY22[[#This Row],[Median]])/25)*5) + AAMC_Raw_Data_for_FY22[[#This Row],[Median]]","v":0},{"$f":"(((AAMC_Raw_Data_for_FY22[[#This Row],[75th]]-AAMC_Raw_Data_for_FY22[[#This Row],[Median]])/25)*10) + AAMC_Raw_Data_for_FY22[[#This Row],[Median]]","v":0},{"$f":"(((AAMC_Raw_Data_for_FY22[[#This Row],[75th]]-AAMC_Raw_Data_for_FY22[[#This Row],[Median]])/25)*15) + AAMC_Raw_Data_for_FY22[[#This Row],[Median]]","v":0},{"$f":"(((AAMC_Raw_Data_for_FY22[[#This Row],[75th]]-AAMC_Raw_Data_for_FY22[[#This Row],[Median]])/25)*20) + AAMC_Raw_Data_for_FY22[[#This Row],[Median]]","v":0},null,{"$f":"(((AAMC_Raw_Data_for_FY22[[#This Row],[75th]]-AAMC_Raw_Data_for_FY22[[#This Row],[Median]])/25)*30) + AAMC_Raw_Data_for_FY22[[#This Row],[Median]]","v":0},{"$f":"(((AAMC_Raw_Data_for_FY22[[#This Row],[75th]]-AAMC_Raw_Data_for_FY22[[#This Row],[Median]])/25)*35) + AAMC_Raw_Data_for_FY22[[#This Row],[Median]]","v":0},{"$f":"(((AAMC_Raw_Data_for_FY22[[#This Row],[75th]]-AAMC_Raw_Data_for_FY22[[#This Row],[Median]])/25)*40) + AAMC_Raw_Data_for_FY22[[#This Row],[Median]]","v":0}]
[{"$f":"AAMC_Raw_Data_for_FY22[[#This Row],[Source]]&AAMC_Raw_Data_for_FY22[[#This Row],[Type]]&AAMC_Raw_Data_for_FY22[[#This Row],[School Subset]]&AAMC_Raw_Data_for_FY22[[#This Row],[Rank]]&AAMC_Raw_Data_for_FY22[[#This Row],[Degree]]&AAMC_Raw_Data_for_FY22[[#This Row],[Department / Specialty]]&\"L\"","v":"AAMCAcademicPrivateAssistantPhDPathology: AnatomicL"},"Pathology: Anatomic",4,"AAMC","Academic","Private","Assistant","PhD","2021-2022",107444,{"$f":"(((AAMC_Raw_Data_for_FY22[[#This Row],[Median]]-AAMC_Raw_Data_for_FY22[[#This Row],[25th]])/25)*5) + AAMC_Raw_Data_for_FY22[[#This Row],[25th]]","v":111255.2},{"$f":"(((AAMC_Raw_Data_for_FY22[[#This Row],[Median]]-AAMC_Raw_Data_for_FY22[[#This Row],[25th]])/25)*10) + AAMC_Raw_Data_for_FY22[[#This Row],[25th]]","v":115066.4},{"$f":"(((AAMC_Raw_Data_for_FY22[[#This Row],[Median]]-AAMC_Raw_Data_for_FY22[[#This Row],[25th]])/25)*15) + AAMC_Raw_Data_for_FY22[[#This Row],[25th]]","v":118877.6},{"$f":"(((AAMC_Raw_Data_for_FY22[[#This Row],[Median]]-AAMC_Raw_Data_for_FY22[[#This Row],[25th]])/25)*20) + AAMC_Raw_Data_for_FY22[[#This Row],[25th]]","v":122688.8},126500,{"$f":"(((AAMC_Raw_Data_for_FY22[[#This Row],[75th]]-AAMC_Raw_Data_for_FY22[[#This Row],[Median]])/25)*5) + AAMC_Raw_Data_for_FY22[[#This Row],[Median]]","v":143610},{"$f":"(((AAMC_Raw_Data_for_FY22[[#This Row],[75th]]-AAMC_Raw_Data_for_FY22[[#This Row],[Median]])/25)*10) + AAMC_Raw_Data_for_FY22[[#This Row],[Median]]","v":160720},{"$f":"(((AAMC_Raw_Data_for_FY22[[#This Row],[75th]]-AAMC_Raw_Data_for_FY22[[#This Row],[Median]])/25)*15) + AAMC_Raw_Data_for_FY22[[#This Row],[Median]]","v":177830},{"$f":"(((AAMC_Raw_Data_for_FY22[[#This Row],[75th]]-AAMC_Raw_Data_for_FY22[[#This Row],[Median]])/25)*20) + AAMC_Raw_Data_for_FY22[[#This Row],[Median]]","v":194940},212050,{"$f":"(((AAMC_Raw_Data_for_FY22[[#This Row],[75th]]-AAMC_Raw_Data_for_FY22[[#This Row],[Median]])/25)*30) + AAMC_Raw_Data_for_FY22[[#This Row],[Median]]","v":229160},{"$f":"(((AAMC_Raw_Data_for_FY22[[#This Row],[75th]]-AAMC_Raw_Data_for_FY22[[#This Row],[Median]])/25)*35) + AAMC_Raw_Data_for_FY22[[#This Row],[Median]]","v":246270},{"$f":"(((AAMC_Raw_Data_for_FY22[[#This Row],[75th]]-AAMC_Raw_Data_for_FY22[[#This Row],[Median]])/25)*40) + AAMC_Raw_Data_for_FY22[[#This Row],[Median]]","v":263380}]
[{"$f":"AAMC_Raw_Data_for_FY22[[#This Row],[Source]]&AAMC_Raw_Data_for_FY22[[#This Row],[Type]]&AAMC_Raw_Data_for_FY22[[#This Row],[School Subset]]&AAMC_Raw_Data_for_FY22[[#This Row],[Rank]]&AAMC_Raw_Data_for_FY22[[#This Row],[Degree]]&AAMC_Raw_Data_for_FY22[[#This Row],[Department / Specialty]]&\"L\"","v":"AAMCAcademicPrivateAssociatePhDPathology: AnatomicL"},"Pathology: Anatomic",3,"AAMC","Academic","Private","Associate","PhD","2021-2022",135649,{"$f":"(((AAMC_Raw_Data_for_FY22[[#This Row],[Median]]-AAMC_Raw_Data_for_FY22[[#This Row],[25th]])/25)*5) + AAMC_Raw_Data_for_FY22[[#This Row],[25th]]","v":150081.60000000001},{"$f":"(((AAMC_Raw_Data_for_FY22[[#This Row],[Median]]-AAMC_Raw_Data_for_FY22[[#This Row],[25th]])/25)*10) + AAMC_Raw_Data_for_FY22[[#This Row],[25th]]","v":164514.20000000001},{"$f":"(((AAMC_Raw_Data_for_FY22[[#This Row],[Median]]-AAMC_Raw_Data_for_FY22[[#This Row],[25th]])/25)*15) + AAMC_Raw_Data_for_FY22[[#This Row],[25th]]","v":178946.8},{"$f":"(((AAMC_Raw_Data_for_FY22[[#This Row],[Median]]-AAMC_Raw_Data_for_FY22[[#This Row],[25th]])/25)*20) + AAMC_Raw_Data_for_FY22[[#This Row],[25th]]","v":193379.4},207812,{"$f":"(((AAMC_Raw_Data_for_FY22[[#This Row],[75th]]-AAMC_Raw_Data_for_FY22[[#This Row],[Median]])/25)*5) + AAMC_Raw_Data_for_FY22[[#This Row],[Median]]","v":214549.6},{"$f":"(((AAMC_Raw_Data_for_FY22[[#This Row],[75th]]-AAMC_Raw_Data_for_FY22[[#This Row],[Median]])/25)*10) + AAMC_Raw_Data_for_FY22[[#This Row],[Median]]","v":221287.2},{"$f":"(((AAMC_Raw_Data_for_FY22[[#This Row],[75th]]-AAMC_Raw_Data_for_FY22[[#This Row],[Median]])/25)*15) + AAMC_Raw_Data_for_FY22[[#This Row],[Median]]","v":228024.8},{"$f":"(((AAMC_Raw_Data_for_FY22[[#This Row],[75th]]-AAMC_Raw_Data_for_FY22[[#This Row],[Median]])/25)*20) + AAMC_Raw_Data_for_FY22[[#This Row],[Median]]","v":234762.4},241500,{"$f":"(((AAMC_Raw_Data_for_FY22[[#This Row],[75th]]-AAMC_Raw_Data_for_FY22[[#This Row],[Median]])/25)*30) + AAMC_Raw_Data_for_FY22[[#This Row],[Median]]","v":248237.6},{"$f":"(((AAMC_Raw_Data_for_FY22[[#This Row],[75th]]-AAMC_Raw_Data_for_FY22[[#This Row],[Median]])/25)*35) + AAMC_Raw_Data_for_FY22[[#This Row],[Median]]","v":254975.2},{"$f":"(((AAMC_Raw_Data_for_FY22[[#This Row],[75th]]-AAMC_Raw_Data_for_FY22[[#This Row],[Median]])/25)*40) + AAMC_Raw_Data_for_FY22[[#This Row],[Median]]","v":261712.8}]
[{"$f":"AAMC_Raw_Data_for_FY22[[#This Row],[Source]]&AAMC_Raw_Data_for_FY22[[#This Row],[Type]]&AAMC_Raw_Data_for_FY22[[#This Row],[School Subset]]&AAMC_Raw_Data_for_FY22[[#This Row],[Rank]]&AAMC_Raw_Data_for_FY22[[#This Row],[Degree]]&AAMC_Raw_Data_for_FY22[[#This Row],[Department / Specialty]]&\"L\"","v":"AAMCAcademicPrivateProfessorPhDPathology: AnatomicL"},"Pathology: Anatomic",2,"AAMC","Academic","Private","Professor","PhD","2021-2022",222038,{"$f":"(((AAMC_Raw_Data_for_FY22[[#This Row],[Median]]-AAMC_Raw_Data_for_FY22[[#This Row],[25th]])/25)*5) + AAMC_Raw_Data_for_FY22[[#This Row],[25th]]","v":228797.6},{"$f":"(((AAMC_Raw_Data_for_FY22[[#This Row],[Median]]-AAMC_Raw_Data_for_FY22[[#This Row],[25th]])/25)*10) + AAMC_Raw_Data_for_FY22[[#This Row],[25th]]","v":235557.2},{"$f":"(((AAMC_Raw_Data_for_FY22[[#This Row],[Median]]-AAMC_Raw_Data_for_FY22[[#This Row],[25th]])/25)*15) + AAMC_Raw_Data_for_FY22[[#This Row],[25th]]","v":242316.79999999999},{"$f":"(((AAMC_Raw_Data_for_FY22[[#This Row],[Median]]-AAMC_Raw_Data_for_FY22[[#This Row],[25th]])/25)*20) + AAMC_Raw_Data_for_FY22[[#This Row],[25th]]","v":249076.4},255836,{"$f":"(((AAMC_Raw_Data_for_FY22[[#This Row],[75th]]-AAMC_Raw_Data_for_FY22[[#This Row],[Median]])/25)*5) + AAMC_Raw_Data_for_FY22[[#This Row],[Median]]","v":268826.2},{"$f":"(((AAMC_Raw_Data_for_FY22[[#This Row],[75th]]-AAMC_Raw_Data_for_FY22[[#This Row],[Median]])/25)*10) + AAMC_Raw_Data_for_FY22[[#This Row],[Median]]","v":281816.40000000002},{"$f":"(((AAMC_Raw_Data_for_FY22[[#This Row],[75th]]-AAMC_Raw_Data_for_FY22[[#This Row],[Median]])/25)*15) + AAMC_Raw_Data_for_FY22[[#This Row],[Median]]","v":294806.59999999998},{"$f":"(((AAMC_Raw_Data_for_FY22[[#This Row],[75th]]-AAMC_Raw_Data_for_FY22[[#This Row],[Median]])/25)*20) + AAMC_Raw_Data_for_FY22[[#This Row],[Median]]","v":307796.8},320787,{"$f":"(((AAMC_Raw_Data_for_FY22[[#This Row],[75th]]-AAMC_Raw_Data_for_FY22[[#This Row],[Median]])/25)*30) + AAMC_Raw_Data_for_FY22[[#This Row],[Median]]","v":333777.2},{"$f":"(((AAMC_Raw_Data_for_FY22[[#This Row],[75th]]-AAMC_Raw_Data_for_FY22[[#This Row],[Median]])/25)*35) + AAMC_Raw_Data_for_FY22[[#This Row],[Median]]","v":346767.4},{"$f":"(((AAMC_Raw_Data_for_FY22[[#This Row],[75th]]-AAMC_Raw_Data_for_FY22[[#This Row],[Median]])/25)*40) + AAMC_Raw_Data_for_FY22[[#This Row],[Median]]","v":359757.6}]
[{"$f":"AAMC_Raw_Data_for_FY22[[#This Row],[Source]]&AAMC_Raw_Data_for_FY22[[#This Row],[Type]]&AAMC_Raw_Data_for_FY22[[#This Row],[School Subset]]&AAMC_Raw_Data_for_FY22[[#This Row],[Rank]]&AAMC_Raw_Data_for_FY22[[#This Row],[Degree]]&AAMC_Raw_Data_for_FY22[[#This Row],[Department / Specialty]]&\"L\"","v":"AAMCAcademicPrivateChairPhDPathology: AnatomicL"},"Pathology: Anatomic",1,"AAMC","Academic","Private","Chair","PhD","2021-2022",null,{"$f":"(((AAMC_Raw_Data_for_FY22[[#This Row],[Median]]-AAMC_Raw_Data_for_FY22[[#This Row],[25th]])/25)*5) + AAMC_Raw_Data_for_FY22[[#This Row],[25th]]","v":0},{"$f":"(((AAMC_Raw_Data_for_FY22[[#This Row],[Median]]-AAMC_Raw_Data_for_FY22[[#This Row],[25th]])/25)*10) + AAMC_Raw_Data_for_FY22[[#This Row],[25th]]","v":0},{"$f":"(((AAMC_Raw_Data_for_FY22[[#This Row],[Median]]-AAMC_Raw_Data_for_FY22[[#This Row],[25th]])/25)*15) + AAMC_Raw_Data_for_FY22[[#This Row],[25th]]","v":0},{"$f":"(((AAMC_Raw_Data_for_FY22[[#This Row],[Median]]-AAMC_Raw_Data_for_FY22[[#This Row],[25th]])/25)*20) + AAMC_Raw_Data_for_FY22[[#This Row],[25th]]","v":0},null,{"$f":"(((AAMC_Raw_Data_for_FY22[[#This Row],[75th]]-AAMC_Raw_Data_for_FY22[[#This Row],[Median]])/25)*5) + AAMC_Raw_Data_for_FY22[[#This Row],[Median]]","v":0},{"$f":"(((AAMC_Raw_Data_for_FY22[[#This Row],[75th]]-AAMC_Raw_Data_for_FY22[[#This Row],[Median]])/25)*10) + AAMC_Raw_Data_for_FY22[[#This Row],[Median]]","v":0},{"$f":"(((AAMC_Raw_Data_for_FY22[[#This Row],[75th]]-AAMC_Raw_Data_for_FY22[[#This Row],[Median]])/25)*15) + AAMC_Raw_Data_for_FY22[[#This Row],[Median]]","v":0},{"$f":"(((AAMC_Raw_Data_for_FY22[[#This Row],[75th]]-AAMC_Raw_Data_for_FY22[[#This Row],[Median]])/25)*20) + AAMC_Raw_Data_for_FY22[[#This Row],[Median]]","v":0},null,{"$f":"(((AAMC_Raw_Data_for_FY22[[#This Row],[75th]]-AAMC_Raw_Data_for_FY22[[#This Row],[Median]])/25)*30) + AAMC_Raw_Data_for_FY22[[#This Row],[Median]]","v":0},{"$f":"(((AAMC_Raw_Data_for_FY22[[#This Row],[75th]]-AAMC_Raw_Data_for_FY22[[#This Row],[Median]])/25)*35) + AAMC_Raw_Data_for_FY22[[#This Row],[Median]]","v":0},{"$f":"(((AAMC_Raw_Data_for_FY22[[#This Row],[75th]]-AAMC_Raw_Data_for_FY22[[#This Row],[Median]])/25)*40) + AAMC_Raw_Data_for_FY22[[#This Row],[Median]]","v":0}]
[{"$f":"AAMC_Raw_Data_for_FY22[[#This Row],[Source]]&AAMC_Raw_Data_for_FY22[[#This Row],[Type]]&AAMC_Raw_Data_for_FY22[[#This Row],[School Subset]]&AAMC_Raw_Data_for_FY22[[#This Row],[Rank]]&AAMC_Raw_Data_for_FY22[[#This Row],[Degree]]&AAMC_Raw_Data_for_FY22[[#This Row],[Department / Specialty]]&\"L\"","v":"AAMCAcademicPrivateInstructorPhDPathology: ClinicalL"},"Pathology: Clinical",5,"AAMC","Academic","Private","Instructor","PhD","2021-2022",70525,{"$f":"(((AAMC_Raw_Data_for_FY22[[#This Row],[Median]]-AAMC_Raw_Data_for_FY22[[#This Row],[25th]])/25)*5) + AAMC_Raw_Data_for_FY22[[#This Row],[25th]]","v":71540},{"$f":"(((AAMC_Raw_Data_for_FY22[[#This Row],[Median]]-AAMC_Raw_Data_for_FY22[[#This Row],[25th]])/25)*10) + AAMC_Raw_Data_for_FY22[[#This Row],[25th]]","v":72555},{"$f":"(((AAMC_Raw_Data_for_FY22[[#This Row],[Median]]-AAMC_Raw_Data_for_FY22[[#This Row],[25th]])/25)*15) + AAMC_Raw_Data_for_FY22[[#This Row],[25th]]","v":73570},{"$f":"(((AAMC_Raw_Data_for_FY22[[#This Row],[Median]]-AAMC_Raw_Data_for_FY22[[#This Row],[25th]])/25)*20) + AAMC_Raw_Data_for_FY22[[#This Row],[25th]]","v":74585},75600,{"$f":"(((AAMC_Raw_Data_for_FY22[[#This Row],[75th]]-AAMC_Raw_Data_for_FY22[[#This Row],[Median]])/25)*5) + AAMC_Raw_Data_for_FY22[[#This Row],[Median]]","v":80349.600000000006},{"$f":"(((AAMC_Raw_Data_for_FY22[[#This Row],[75th]]-AAMC_Raw_Data_for_FY22[[#This Row],[Median]])/25)*10) + AAMC_Raw_Data_for_FY22[[#This Row],[Median]]","v":85099.199999999997},{"$f":"(((AAMC_Raw_Data_for_FY22[[#This Row],[75th]]-AAMC_Raw_Data_for_FY22[[#This Row],[Median]])/25)*15) + AAMC_Raw_Data_for_FY22[[#This Row],[Median]]","v":89848.8},{"$f":"(((AAMC_Raw_Data_for_FY22[[#This Row],[75th]]-AAMC_Raw_Data_for_FY22[[#This Row],[Median]])/25)*20) + AAMC_Raw_Data_for_FY22[[#This Row],[Median]]","v":94598.399999999994},99348,{"$f":"(((AAMC_Raw_Data_for_FY22[[#This Row],[75th]]-AAMC_Raw_Data_for_FY22[[#This Row],[Median]])/25)*30) + AAMC_Raw_Data_for_FY22[[#This Row],[Median]]","v":104097.60000000001},{"$f":"(((AAMC_Raw_Data_for_FY22[[#This Row],[75th]]-AAMC_Raw_Data_for_FY22[[#This Row],[Median]])/25)*35) + AAMC_Raw_Data_for_FY22[[#This Row],[Median]]","v":108847.2},{"$f":"(((AAMC_Raw_Data_for_FY22[[#This Row],[75th]]-AAMC_Raw_Data_for_FY22[[#This Row],[Median]])/25)*40) + AAMC_Raw_Data_for_FY22[[#This Row],[Median]]","v":113596.79999999999}]
[{"$f":"AAMC_Raw_Data_for_FY22[[#This Row],[Source]]&AAMC_Raw_Data_for_FY22[[#This Row],[Type]]&AAMC_Raw_Data_for_FY22[[#This Row],[School Subset]]&AAMC_Raw_Data_for_FY22[[#This Row],[Rank]]&AAMC_Raw_Data_for_FY22[[#This Row],[Degree]]&AAMC_Raw_Data_for_FY22[[#This Row],[Department / Specialty]]&\"L\"","v":"AAMCAcademicPrivateAssistantPhDPathology: ClinicalL"},"Pathology: Clinical",4,"AAMC","Academic","Private","Assistant","PhD","2021-2022",135933,{"$f":"(((AAMC_Raw_Data_for_FY22[[#This Row],[Median]]-AAMC_Raw_Data_for_FY22[[#This Row],[25th]])/25)*5) + AAMC_Raw_Data_for_FY22[[#This Row],[25th]]","v":142196.79999999999},{"$f":"(((AAMC_Raw_Data_for_FY22[[#This Row],[Median]]-AAMC_Raw_Data_for_FY22[[#This Row],[25th]])/25)*10) + AAMC_Raw_Data_for_FY22[[#This Row],[25th]]","v":148460.6},{"$f":"(((AAMC_Raw_Data_for_FY22[[#This Row],[Median]]-AAMC_Raw_Data_for_FY22[[#This Row],[25th]])/25)*15) + AAMC_Raw_Data_for_FY22[[#This Row],[25th]]","v":154724.4},{"$f":"(((AAMC_Raw_Data_for_FY22[[#This Row],[Median]]-AAMC_Raw_Data_for_FY22[[#This Row],[25th]])/25)*20) + AAMC_Raw_Data_for_FY22[[#This Row],[25th]]","v":160988.20000000001},167252,{"$f":"(((AAMC_Raw_Data_for_FY22[[#This Row],[75th]]-AAMC_Raw_Data_for_FY22[[#This Row],[Median]])/25)*5) + AAMC_Raw_Data_for_FY22[[#This Row],[Median]]","v":172545},{"$f":"(((AAMC_Raw_Data_for_FY22[[#This Row],[75th]]-AAMC_Raw_Data_for_FY22[[#This Row],[Median]])/25)*10) + AAMC_Raw_Data_for_FY22[[#This Row],[Median]]","v":177838},{"$f":"(((AAMC_Raw_Data_for_FY22[[#This Row],[75th]]-AAMC_Raw_Data_for_FY22[[#This Row],[Median]])/25)*15) + AAMC_Raw_Data_for_FY22[[#This Row],[Median]]","v":183131},{"$f":"(((AAMC_Raw_Data_for_FY22[[#This Row],[75th]]-AAMC_Raw_Data_for_FY22[[#This Row],[Median]])/25)*20) + AAMC_Raw_Data_for_FY22[[#This Row],[Median]]","v":188424},193717,{"$f":"(((AAMC_Raw_Data_for_FY22[[#This Row],[75th]]-AAMC_Raw_Data_for_FY22[[#This Row],[Median]])/25)*30) + AAMC_Raw_Data_for_FY22[[#This Row],[Median]]","v":199010},{"$f":"(((AAMC_Raw_Data_for_FY22[[#This Row],[75th]]-AAMC_Raw_Data_for_FY22[[#This Row],[Median]])/25)*35) + AAMC_Raw_Data_for_FY22[[#This Row],[Median]]","v":204303},{"$f":"(((AAMC_Raw_Data_for_FY22[[#This Row],[75th]]-AAMC_Raw_Data_for_FY22[[#This Row],[Median]])/25)*40) + AAMC_Raw_Data_for_FY22[[#This Row],[Median]]","v":209596}]
[{"$f":"AAMC_Raw_Data_for_FY22[[#This Row],[Source]]&AAMC_Raw_Data_for_FY22[[#This Row],[Type]]&AAMC_Raw_Data_for_FY22[[#This Row],[School Subset]]&AAMC_Raw_Data_for_FY22[[#This Row],[Rank]]&AAMC_Raw_Data_for_FY22[[#This Row],[Degree]]&AAMC_Raw_Data_for_FY22[[#This Row],[Department / Specialty]]&\"L\"","v":"AAMCAcademicPrivateAssociatePhDPathology: ClinicalL"},"Pathology: Clinical",3,"AAMC","Academic","Private","Associate","PhD","2021-2022",181669,{"$f":"(((AAMC_Raw_Data_for_FY22[[#This Row],[Median]]-AAMC_Raw_Data_for_FY22[[#This Row],[25th]])/25)*5) + AAMC_Raw_Data_for_FY22[[#This Row],[25th]]","v":187525.2},{"$f":"(((AAMC_Raw_Data_for_FY22[[#This Row],[Median]]-AAMC_Raw_Data_for_FY22[[#This Row],[25th]])/25)*10) + AAMC_Raw_Data_for_FY22[[#This Row],[25th]]","v":193381.4},{"$f":"(((AAMC_Raw_Data_for_FY22[[#This Row],[Median]]-AAMC_Raw_Data_for_FY22[[#This Row],[25th]])/25)*15) + AAMC_Raw_Data_for_FY22[[#This Row],[25th]]","v":199237.6},{"$f":"(((AAMC_Raw_Data_for_FY22[[#This Row],[Median]]-AAMC_Raw_Data_for_FY22[[#This Row],[25th]])/25)*20) + AAMC_Raw_Data_for_FY22[[#This Row],[25th]]","v":205093.8},210950,{"$f":"(((AAMC_Raw_Data_for_FY22[[#This Row],[75th]]-AAMC_Raw_Data_for_FY22[[#This Row],[Median]])/25)*5) + AAMC_Raw_Data_for_FY22[[#This Row],[Median]]","v":218956.4},{"$f":"(((AAMC_Raw_Data_for_FY22[[#This Row],[75th]]-AAMC_Raw_Data_for_FY22[[#This Row],[Median]])/25)*10) + AAMC_Raw_Data_for_FY22[[#This Row],[Median]]","v":226962.8},{"$f":"(((AAMC_Raw_Data_for_FY22[[#This Row],[75th]]-AAMC_Raw_Data_for_FY22[[#This Row],[Median]])/25)*15) + AAMC_Raw_Data_for_FY22[[#This Row],[Median]]","v":234969.2},{"$f":"(((AAMC_Raw_Data_for_FY22[[#This Row],[75th]]-AAMC_Raw_Data_for_FY22[[#This Row],[Median]])/25)*20) + AAMC_Raw_Data_for_FY22[[#This Row],[Median]]","v":242975.6},250982,{"$f":"(((AAMC_Raw_Data_for_FY22[[#This Row],[75th]]-AAMC_Raw_Data_for_FY22[[#This Row],[Median]])/25)*30) + AAMC_Raw_Data_for_FY22[[#This Row],[Median]]","v":258988.4},{"$f":"(((AAMC_Raw_Data_for_FY22[[#This Row],[75th]]-AAMC_Raw_Data_for_FY22[[#This Row],[Median]])/25)*35) + AAMC_Raw_Data_for_FY22[[#This Row],[Median]]","v":266994.8},{"$f":"(((AAMC_Raw_Data_for_FY22[[#This Row],[75th]]-AAMC_Raw_Data_for_FY22[[#This Row],[Median]])/25)*40) + AAMC_Raw_Data_for_FY22[[#This Row],[Median]]","v":275001.2}]
[{"$f":"AAMC_Raw_Data_for_FY22[[#This Row],[Source]]&AAMC_Raw_Data_for_FY22[[#This Row],[Type]]&AAMC_Raw_Data_for_FY22[[#This Row],[School Subset]]&AAMC_Raw_Data_for_FY22[[#This Row],[Rank]]&AAMC_Raw_Data_for_FY22[[#This Row],[Degree]]&AAMC_Raw_Data_for_FY22[[#This Row],[Department / Specialty]]&\"L\"","v":"AAMCAcademicPrivateProfessorPhDPathology: ClinicalL"},"Pathology: Clinical",2,"AAMC","Academic","Private","Professor","PhD","2021-2022",214205,{"$f":"(((AAMC_Raw_Data_for_FY22[[#This Row],[Median]]-AAMC_Raw_Data_for_FY22[[#This Row],[25th]])/25)*5) + AAMC_Raw_Data_for_FY22[[#This Row],[25th]]","v":220373.6},{"$f":"(((AAMC_Raw_Data_for_FY22[[#This Row],[Median]]-AAMC_Raw_Data_for_FY22[[#This Row],[25th]])/25)*10) + AAMC_Raw_Data_for_FY22[[#This Row],[25th]]","v":226542.2},{"$f":"(((AAMC_Raw_Data_for_FY22[[#This Row],[Median]]-AAMC_Raw_Data_for_FY22[[#This Row],[25th]])/25)*15) + AAMC_Raw_Data_for_FY22[[#This Row],[25th]]","v":232710.8},{"$f":"(((AAMC_Raw_Data_for_FY22[[#This Row],[Median]]-AAMC_Raw_Data_for_FY22[[#This Row],[25th]])/25)*20) + AAMC_Raw_Data_for_FY22[[#This Row],[25th]]","v":238879.4},245048,{"$f":"(((AAMC_Raw_Data_for_FY22[[#This Row],[75th]]-AAMC_Raw_Data_for_FY22[[#This Row],[Median]])/25)*5) + AAMC_Raw_Data_for_FY22[[#This Row],[Median]]","v":255056.4},{"$f":"(((AAMC_Raw_Data_for_FY22[[#This Row],[75th]]-AAMC_Raw_Data_for_FY22[[#This Row],[Median]])/25)*10) + AAMC_Raw_Data_for_FY22[[#This Row],[Median]]","v":265064.8},{"$f":"(((AAMC_Raw_Data_for_FY22[[#This Row],[75th]]-AAMC_Raw_Data_for_FY22[[#This Row],[Median]])/25)*15) + AAMC_Raw_Data_for_FY22[[#This Row],[Median]]","v":275073.2},{"$f":"(((AAMC_Raw_Data_for_FY22[[#This Row],[75th]]-AAMC_Raw_Data_for_FY22[[#This Row],[Median]])/25)*20) + AAMC_Raw_Data_for_FY22[[#This Row],[Median]]","v":285081.59999999998},295090,{"$f":"(((AAMC_Raw_Data_for_FY22[[#This Row],[75th]]-AAMC_Raw_Data_for_FY22[[#This Row],[Median]])/25)*30) + AAMC_Raw_Data_for_FY22[[#This Row],[Median]]","v":305098.40000000002},{"$f":"(((AAMC_Raw_Data_for_FY22[[#This Row],[75th]]-AAMC_Raw_Data_for_FY22[[#This Row],[Median]])/25)*35) + AAMC_Raw_Data_for_FY22[[#This Row],[Median]]","v":315106.8},{"$f":"(((AAMC_Raw_Data_for_FY22[[#This Row],[75th]]-AAMC_Raw_Data_for_FY22[[#This Row],[Median]])/25)*40) + AAMC_Raw_Data_for_FY22[[#This Row],[Median]]","v":325115.2}]
[{"$f":"AAMC_Raw_Data_for_FY22[[#This Row],[Source]]&AAMC_Raw_Data_for_FY22[[#This Row],[Type]]&AAMC_Raw_Data_for_FY22[[#This Row],[School Subset]]&AAMC_Raw_Data_for_FY22[[#This Row],[Rank]]&AAMC_Raw_Data_for_FY22[[#This Row],[Degree]]&AAMC_Raw_Data_for_FY22[[#This Row],[Department / Specialty]]&\"L\"","v":"AAMCAcademicPrivateChiefPhDPathology: ClinicalL"},"Pathology: Clinical",6,"AAMC","Academic","Private","Chief","PhD","2021-2022",null,{"$f":"(((AAMC_Raw_Data_for_FY22[[#This Row],[Median]]-AAMC_Raw_Data_for_FY22[[#This Row],[25th]])/25)*5) + AAMC_Raw_Data_for_FY22[[#This Row],[25th]]","v":0},{"$f":"(((AAMC_Raw_Data_for_FY22[[#This Row],[Median]]-AAMC_Raw_Data_for_FY22[[#This Row],[25th]])/25)*10) + AAMC_Raw_Data_for_FY22[[#This Row],[25th]]","v":0},{"$f":"(((AAMC_Raw_Data_for_FY22[[#This Row],[Median]]-AAMC_Raw_Data_for_FY22[[#This Row],[25th]])/25)*15) + AAMC_Raw_Data_for_FY22[[#This Row],[25th]]","v":0},{"$f":"(((AAMC_Raw_Data_for_FY22[[#This Row],[Median]]-AAMC_Raw_Data_for_FY22[[#This Row],[25th]])/25)*20) + AAMC_Raw_Data_for_FY22[[#This Row],[25th]]","v":0},null,{"$f":"(((AAMC_Raw_Data_for_FY22[[#This Row],[75th]]-AAMC_Raw_Data_for_FY22[[#This Row],[Median]])/25)*5) + AAMC_Raw_Data_for_FY22[[#This Row],[Median]]","v":0},{"$f":"(((AAMC_Raw_Data_for_FY22[[#This Row],[75th]]-AAMC_Raw_Data_for_FY22[[#This Row],[Median]])/25)*10) + AAMC_Raw_Data_for_FY22[[#This Row],[Median]]","v":0},{"$f":"(((AAMC_Raw_Data_for_FY22[[#This Row],[75th]]-AAMC_Raw_Data_for_FY22[[#This Row],[Median]])/25)*15) + AAMC_Raw_Data_for_FY22[[#This Row],[Median]]","v":0},{"$f":"(((AAMC_Raw_Data_for_FY22[[#This Row],[75th]]-AAMC_Raw_Data_for_FY22[[#This Row],[Median]])/25)*20) + AAMC_Raw_Data_for_FY22[[#This Row],[Median]]","v":0},null,{"$f":"(((AAMC_Raw_Data_for_FY22[[#This Row],[75th]]-AAMC_Raw_Data_for_FY22[[#This Row],[Median]])/25)*30) + AAMC_Raw_Data_for_FY22[[#This Row],[Median]]","v":0},{"$f":"(((AAMC_Raw_Data_for_FY22[[#This Row],[75th]]-AAMC_Raw_Data_for_FY22[[#This Row],[Median]])/25)*35) + AAMC_Raw_Data_for_FY22[[#This Row],[Median]]","v":0},{"$f":"(((AAMC_Raw_Data_for_FY22[[#This Row],[75th]]-AAMC_Raw_Data_for_FY22[[#This Row],[Median]])/25)*40) + AAMC_Raw_Data_for_FY22[[#This Row],[Median]]","v":0}]
[{"$f":"AAMC_Raw_Data_for_FY22[[#This Row],[Source]]&AAMC_Raw_Data_for_FY22[[#This Row],[Type]]&AAMC_Raw_Data_for_FY22[[#This Row],[School Subset]]&AAMC_Raw_Data_for_FY22[[#This Row],[Rank]]&AAMC_Raw_Data_for_FY22[[#This Row],[Degree]]&AAMC_Raw_Data_for_FY22[[#This Row],[Department / Specialty]]&\"L\"","v":"AAMCAcademicPrivateInstructorPhDPathology: Other PathologyL"},"Pathology: Other Pathology",5,"AAMC","Academic","Private","Instructor","PhD","2021-2022",70000,{"$f":"(((AAMC_Raw_Data_for_FY22[[#This Row],[Median]]-AAMC_Raw_Data_for_FY22[[#This Row],[25th]])/25)*5) + AAMC_Raw_Data_for_FY22[[#This Row],[25th]]","v":70600},{"$f":"(((AAMC_Raw_Data_for_FY22[[#This Row],[Median]]-AAMC_Raw_Data_for_FY22[[#This Row],[25th]])/25)*10) + AAMC_Raw_Data_for_FY22[[#This Row],[25th]]","v":71200},{"$f":"(((AAMC_Raw_Data_for_FY22[[#This Row],[Median]]-AAMC_Raw_Data_for_FY22[[#This Row],[25th]])/25)*15) + AAMC_Raw_Data_for_FY22[[#This Row],[25th]]","v":71800},{"$f":"(((AAMC_Raw_Data_for_FY22[[#This Row],[Median]]-AAMC_Raw_Data_for_FY22[[#This Row],[25th]])/25)*20) + AAMC_Raw_Data_for_FY22[[#This Row],[25th]]","v":72400},73000,{"$f":"(((AAMC_Raw_Data_for_FY22[[#This Row],[75th]]-AAMC_Raw_Data_for_FY22[[#This Row],[Median]])/25)*5) + AAMC_Raw_Data_for_FY22[[#This Row],[Median]]","v":74300},{"$f":"(((AAMC_Raw_Data_for_FY22[[#This Row],[75th]]-AAMC_Raw_Data_for_FY22[[#This Row],[Median]])/25)*10) + AAMC_Raw_Data_for_FY22[[#This Row],[Median]]","v":75600},{"$f":"(((AAMC_Raw_Data_for_FY22[[#This Row],[75th]]-AAMC_Raw_Data_for_FY22[[#This Row],[Median]])/25)*15) + AAMC_Raw_Data_for_FY22[[#This Row],[Median]]","v":76900},{"$f":"(((AAMC_Raw_Data_for_FY22[[#This Row],[75th]]-AAMC_Raw_Data_for_FY22[[#This Row],[Median]])/25)*20) + AAMC_Raw_Data_for_FY22[[#This Row],[Median]]","v":78200},79500,{"$f":"(((AAMC_Raw_Data_for_FY22[[#This Row],[75th]]-AAMC_Raw_Data_for_FY22[[#This Row],[Median]])/25)*30) + AAMC_Raw_Data_for_FY22[[#This Row],[Median]]","v":80800},{"$f":"(((AAMC_Raw_Data_for_FY22[[#This Row],[75th]]-AAMC_Raw_Data_for_FY22[[#This Row],[Median]])/25)*35) + AAMC_Raw_Data_for_FY22[[#This Row],[Median]]","v":82100},{"$f":"(((AAMC_Raw_Data_for_FY22[[#This Row],[75th]]-AAMC_Raw_Data_for_FY22[[#This Row],[Median]])/25)*40) + AAMC_Raw_Data_for_FY22[[#This Row],[Median]]","v":83400}]
[{"$f":"AAMC_Raw_Data_for_FY22[[#This Row],[Source]]&AAMC_Raw_Data_for_FY22[[#This Row],[Type]]&AAMC_Raw_Data_for_FY22[[#This Row],[School Subset]]&AAMC_Raw_Data_for_FY22[[#This Row],[Rank]]&AAMC_Raw_Data_for_FY22[[#This Row],[Degree]]&AAMC_Raw_Data_for_FY22[[#This Row],[Department / Specialty]]&\"L\"","v":"AAMCAcademicPrivateAssistantPhDPathology: Other PathologyL"},"Pathology: Other Pathology",4,"AAMC","Academic","Private","Assistant","PhD","2021-2022",98463,{"$f":"(((AAMC_Raw_Data_for_FY22[[#This Row],[Median]]-AAMC_Raw_Data_for_FY22[[#This Row],[25th]])/25)*5) + AAMC_Raw_Data_for_FY22[[#This Row],[25th]]","v":103108.8},{"$f":"(((AAMC_Raw_Data_for_FY22[[#This Row],[Median]]-AAMC_Raw_Data_for_FY22[[#This Row],[25th]])/25)*10) + AAMC_Raw_Data_for_FY22[[#This Row],[25th]]","v":107754.6},{"$f":"(((AAMC_Raw_Data_for_FY22[[#This Row],[Median]]-AAMC_Raw_Data_for_FY22[[#This Row],[25th]])/25)*15) + AAMC_Raw_Data_for_FY22[[#This Row],[25th]]","v":112400.4},{"$f":"(((AAMC_Raw_Data_for_FY22[[#This Row],[Median]]-AAMC_Raw_Data_for_FY22[[#This Row],[25th]])/25)*20) + AAMC_Raw_Data_for_FY22[[#This Row],[25th]]","v":117046.2},121692,{"$f":"(((AAMC_Raw_Data_for_FY22[[#This Row],[75th]]-AAMC_Raw_Data_for_FY22[[#This Row],[Median]])/25)*5) + AAMC_Raw_Data_for_FY22[[#This Row],[Median]]","v":125766.2},{"$f":"(((AAMC_Raw_Data_for_FY22[[#This Row],[75th]]-AAMC_Raw_Data_for_FY22[[#This Row],[Median]])/25)*10) + AAMC_Raw_Data_for_FY22[[#This Row],[Median]]","v":129840.4},{"$f":"(((AAMC_Raw_Data_for_FY22[[#This Row],[75th]]-AAMC_Raw_Data_for_FY22[[#This Row],[Median]])/25)*15) + AAMC_Raw_Data_for_FY22[[#This Row],[Median]]","v":133914.6},{"$f":"(((AAMC_Raw_Data_for_FY22[[#This Row],[75th]]-AAMC_Raw_Data_for_FY22[[#This Row],[Median]])/25)*20) + AAMC_Raw_Data_for_FY22[[#This Row],[Median]]","v":137988.79999999999},142063,{"$f":"(((AAMC_Raw_Data_for_FY22[[#This Row],[75th]]-AAMC_Raw_Data_for_FY22[[#This Row],[Median]])/25)*30) + AAMC_Raw_Data_for_FY22[[#This Row],[Median]]","v":146137.20000000001},{"$f":"(((AAMC_Raw_Data_for_FY22[[#This Row],[75th]]-AAMC_Raw_Data_for_FY22[[#This Row],[Median]])/25)*35) + AAMC_Raw_Data_for_FY22[[#This Row],[Median]]","v":150211.4},{"$f":"(((AAMC_Raw_Data_for_FY22[[#This Row],[75th]]-AAMC_Raw_Data_for_FY22[[#This Row],[Median]])/25)*40) + AAMC_Raw_Data_for_FY22[[#This Row],[Median]]","v":154285.6}]
[{"$f":"AAMC_Raw_Data_for_FY22[[#This Row],[Source]]&AAMC_Raw_Data_for_FY22[[#This Row],[Type]]&AAMC_Raw_Data_for_FY22[[#This Row],[School Subset]]&AAMC_Raw_Data_for_FY22[[#This Row],[Rank]]&AAMC_Raw_Data_for_FY22[[#This Row],[Degree]]&AAMC_Raw_Data_for_FY22[[#This Row],[Department / Specialty]]&\"L\"","v":"AAMCAcademicPrivateAssociatePhDPathology: Other PathologyL"},"Pathology: Other Pathology",3,"AAMC","Academic","Private","Associate","PhD","2021-2022",131547,{"$f":"(((AAMC_Raw_Data_for_FY22[[#This Row],[Median]]-AAMC_Raw_Data_for_FY22[[#This Row],[25th]])/25)*5) + AAMC_Raw_Data_for_FY22[[#This Row],[25th]]","v":137715.4},{"$f":"(((AAMC_Raw_Data_for_FY22[[#This Row],[Median]]-AAMC_Raw_Data_for_FY22[[#This Row],[25th]])/25)*10) + AAMC_Raw_Data_for_FY22[[#This Row],[25th]]","v":143883.79999999999},{"$f":"(((AAMC_Raw_Data_for_FY22[[#This Row],[Median]]-AAMC_Raw_Data_for_FY22[[#This Row],[25th]])/25)*15) + AAMC_Raw_Data_for_FY22[[#This Row],[25th]]","v":150052.20000000001},{"$f":"(((AAMC_Raw_Data_for_FY22[[#This Row],[Median]]-AAMC_Raw_Data_for_FY22[[#This Row],[25th]])/25)*20) + AAMC_Raw_Data_for_FY22[[#This Row],[25th]]","v":156220.6},162389,{"$f":"(((AAMC_Raw_Data_for_FY22[[#This Row],[75th]]-AAMC_Raw_Data_for_FY22[[#This Row],[Median]])/25)*5) + AAMC_Raw_Data_for_FY22[[#This Row],[Median]]","v":168894.4},{"$f":"(((AAMC_Raw_Data_for_FY22[[#This Row],[75th]]-AAMC_Raw_Data_for_FY22[[#This Row],[Median]])/25)*10) + AAMC_Raw_Data_for_FY22[[#This Row],[Median]]","v":175399.8},{"$f":"(((AAMC_Raw_Data_for_FY22[[#This Row],[75th]]-AAMC_Raw_Data_for_FY22[[#This Row],[Median]])/25)*15) + AAMC_Raw_Data_for_FY22[[#This Row],[Median]]","v":181905.2},{"$f":"(((AAMC_Raw_Data_for_FY22[[#This Row],[75th]]-AAMC_Raw_Data_for_FY22[[#This Row],[Median]])/25)*20) + AAMC_Raw_Data_for_FY22[[#This Row],[Median]]","v":188410.6},194916,{"$f":"(((AAMC_Raw_Data_for_FY22[[#This Row],[75th]]-AAMC_Raw_Data_for_FY22[[#This Row],[Median]])/25)*30) + AAMC_Raw_Data_for_FY22[[#This Row],[Median]]","v":201421.4},{"$f":"(((AAMC_Raw_Data_for_FY22[[#This Row],[75th]]-AAMC_Raw_Data_for_FY22[[#This Row],[Median]])/25)*35) + AAMC_Raw_Data_for_FY22[[#This Row],[Median]]","v":207926.8},{"$f":"(((AAMC_Raw_Data_for_FY22[[#This Row],[75th]]-AAMC_Raw_Data_for_FY22[[#This Row],[Median]])/25)*40) + AAMC_Raw_Data_for_FY22[[#This Row],[Median]]","v":214432.2}]
[{"$f":"AAMC_Raw_Data_for_FY22[[#This Row],[Source]]&AAMC_Raw_Data_for_FY22[[#This Row],[Type]]&AAMC_Raw_Data_for_FY22[[#This Row],[School Subset]]&AAMC_Raw_Data_for_FY22[[#This Row],[Rank]]&AAMC_Raw_Data_for_FY22[[#This Row],[Degree]]&AAMC_Raw_Data_for_FY22[[#This Row],[Department / Specialty]]&\"L\"","v":"AAMCAcademicPrivateProfessorPhDPathology: Other PathologyL"},"Pathology: Other Pathology",2,"AAMC","Academic","Private","Professor","PhD","2021-2022",193601,{"$f":"(((AAMC_Raw_Data_for_FY22[[#This Row],[Median]]-AAMC_Raw_Data_for_FY22[[#This Row],[25th]])/25)*5) + AAMC_Raw_Data_for_FY22[[#This Row],[25th]]","v":203440.8},{"$f":"(((AAMC_Raw_Data_for_FY22[[#This Row],[Median]]-AAMC_Raw_Data_for_FY22[[#This Row],[25th]])/25)*10) + AAMC_Raw_Data_for_FY22[[#This Row],[25th]]","v":213280.6},{"$f":"(((AAMC_Raw_Data_for_FY22[[#This Row],[Median]]-AAMC_Raw_Data_for_FY22[[#This Row],[25th]])/25)*15) + AAMC_Raw_Data_for_FY22[[#This Row],[25th]]","v":223120.4},{"$f":"(((AAMC_Raw_Data_for_FY22[[#This Row],[Median]]-AAMC_Raw_Data_for_FY22[[#This Row],[25th]])/25)*20) + AAMC_Raw_Data_for_FY22[[#This Row],[25th]]","v":232960.2},242800,{"$f":"(((AAMC_Raw_Data_for_FY22[[#This Row],[75th]]-AAMC_Raw_Data_for_FY22[[#This Row],[Median]])/25)*5) + AAMC_Raw_Data_for_FY22[[#This Row],[Median]]","v":256052.2},{"$f":"(((AAMC_Raw_Data_for_FY22[[#This Row],[75th]]-AAMC_Raw_Data_for_FY22[[#This Row],[Median]])/25)*10) + AAMC_Raw_Data_for_FY22[[#This Row],[Median]]","v":269304.40000000002},{"$f":"(((AAMC_Raw_Data_for_FY22[[#This Row],[75th]]-AAMC_Raw_Data_for_FY22[[#This Row],[Median]])/25)*15) + AAMC_Raw_Data_for_FY22[[#This Row],[Median]]","v":282556.59999999998},{"$f":"(((AAMC_Raw_Data_for_FY22[[#This Row],[75th]]-AAMC_Raw_Data_for_FY22[[#This Row],[Median]])/25)*20) + AAMC_Raw_Data_for_FY22[[#This Row],[Median]]","v":295808.8},309061,{"$f":"(((AAMC_Raw_Data_for_FY22[[#This Row],[75th]]-AAMC_Raw_Data_for_FY22[[#This Row],[Median]])/25)*30) + AAMC_Raw_Data_for_FY22[[#This Row],[Median]]","v":322313.2},{"$f":"(((AAMC_Raw_Data_for_FY22[[#This Row],[75th]]-AAMC_Raw_Data_for_FY22[[#This Row],[Median]])/25)*35) + AAMC_Raw_Data_for_FY22[[#This Row],[Median]]","v":335565.4},{"$f":"(((AAMC_Raw_Data_for_FY22[[#This Row],[75th]]-AAMC_Raw_Data_for_FY22[[#This Row],[Median]])/25)*40) + AAMC_Raw_Data_for_FY22[[#This Row],[Median]]","v":348817.6}]
[{"$f":"AAMC_Raw_Data_for_FY22[[#This Row],[Source]]&AAMC_Raw_Data_for_FY22[[#This Row],[Type]]&AAMC_Raw_Data_for_FY22[[#This Row],[School Subset]]&AAMC_Raw_Data_for_FY22[[#This Row],[Rank]]&AAMC_Raw_Data_for_FY22[[#This Row],[Degree]]&AAMC_Raw_Data_for_FY22[[#This Row],[Department / Specialty]]&\"L\"","v":"AAMCAcademicPrivateChiefPhDPathology: Other PathologyL"},"Pathology: Other Pathology",6,"AAMC","Academic","Private","Chief","PhD","2021-2022",null,{"$f":"(((AAMC_Raw_Data_for_FY22[[#This Row],[Median]]-AAMC_Raw_Data_for_FY22[[#This Row],[25th]])/25)*5) + AAMC_Raw_Data_for_FY22[[#This Row],[25th]]","v":0},{"$f":"(((AAMC_Raw_Data_for_FY22[[#This Row],[Median]]-AAMC_Raw_Data_for_FY22[[#This Row],[25th]])/25)*10) + AAMC_Raw_Data_for_FY22[[#This Row],[25th]]","v":0},{"$f":"(((AAMC_Raw_Data_for_FY22[[#This Row],[Median]]-AAMC_Raw_Data_for_FY22[[#This Row],[25th]])/25)*15) + AAMC_Raw_Data_for_FY22[[#This Row],[25th]]","v":0},{"$f":"(((AAMC_Raw_Data_for_FY22[[#This Row],[Median]]-AAMC_Raw_Data_for_FY22[[#This Row],[25th]])/25)*20) + AAMC_Raw_Data_for_FY22[[#This Row],[25th]]","v":0},null,{"$f":"(((AAMC_Raw_Data_for_FY22[[#This Row],[75th]]-AAMC_Raw_Data_for_FY22[[#This Row],[Median]])/25)*5) + AAMC_Raw_Data_for_FY22[[#This Row],[Median]]","v":0},{"$f":"(((AAMC_Raw_Data_for_FY22[[#This Row],[75th]]-AAMC_Raw_Data_for_FY22[[#This Row],[Median]])/25)*10) + AAMC_Raw_Data_for_FY22[[#This Row],[Median]]","v":0},{"$f":"(((AAMC_Raw_Data_for_FY22[[#This Row],[75th]]-AAMC_Raw_Data_for_FY22[[#This Row],[Median]])/25)*15) + AAMC_Raw_Data_for_FY22[[#This Row],[Median]]","v":0},{"$f":"(((AAMC_Raw_Data_for_FY22[[#This Row],[75th]]-AAMC_Raw_Data_for_FY22[[#This Row],[Median]])/25)*20) + AAMC_Raw_Data_for_FY22[[#This Row],[Median]]","v":0},null,{"$f":"(((AAMC_Raw_Data_for_FY22[[#This Row],[75th]]-AAMC_Raw_Data_for_FY22[[#This Row],[Median]])/25)*30) + AAMC_Raw_Data_for_FY22[[#This Row],[Median]]","v":0},{"$f":"(((AAMC_Raw_Data_for_FY22[[#This Row],[75th]]-AAMC_Raw_Data_for_FY22[[#This Row],[Median]])/25)*35) + AAMC_Raw_Data_for_FY22[[#This Row],[Median]]","v":0},{"$f":"(((AAMC_Raw_Data_for_FY22[[#This Row],[75th]]-AAMC_Raw_Data_for_FY22[[#This Row],[Median]])/25)*40) + AAMC_Raw_Data_for_FY22[[#This Row],[Median]]","v":0}]
[{"$f":"AAMC_Raw_Data_for_FY22[[#This Row],[Source]]&AAMC_Raw_Data_for_FY22[[#This Row],[Type]]&AAMC_Raw_Data_for_FY22[[#This Row],[School Subset]]&AAMC_Raw_Data_for_FY22[[#This Row],[Rank]]&AAMC_Raw_Data_for_FY22[[#This Row],[Degree]]&AAMC_Raw_Data_for_FY22[[#This Row],[Department / Specialty]]&\"L\"","v":"AAMCAcademicPrivateChairPhDPathology: Other PathologyL"},"Pathology: Other Pathology",1,"AAMC","Academic","Private","Chair","PhD","2021-2022",null,{"$f":"(((AAMC_Raw_Data_for_FY22[[#This Row],[Median]]-AAMC_Raw_Data_for_FY22[[#This Row],[25th]])/25)*5) + AAMC_Raw_Data_for_FY22[[#This Row],[25th]]","v":0},{"$f":"(((AAMC_Raw_Data_for_FY22[[#This Row],[Median]]-AAMC_Raw_Data_for_FY22[[#This Row],[25th]])/25)*10) + AAMC_Raw_Data_for_FY22[[#This Row],[25th]]","v":0},{"$f":"(((AAMC_Raw_Data_for_FY22[[#This Row],[Median]]-AAMC_Raw_Data_for_FY22[[#This Row],[25th]])/25)*15) + AAMC_Raw_Data_for_FY22[[#This Row],[25th]]","v":0},{"$f":"(((AAMC_Raw_Data_for_FY22[[#This Row],[Median]]-AAMC_Raw_Data_for_FY22[[#This Row],[25th]])/25)*20) + AAMC_Raw_Data_for_FY22[[#This Row],[25th]]","v":0},null,{"$f":"(((AAMC_Raw_Data_for_FY22[[#This Row],[75th]]-AAMC_Raw_Data_for_FY22[[#This Row],[Median]])/25)*5) + AAMC_Raw_Data_for_FY22[[#This Row],[Median]]","v":0},{"$f":"(((AAMC_Raw_Data_for_FY22[[#This Row],[75th]]-AAMC_Raw_Data_for_FY22[[#This Row],[Median]])/25)*10) + AAMC_Raw_Data_for_FY22[[#This Row],[Median]]","v":0},{"$f":"(((AAMC_Raw_Data_for_FY22[[#This Row],[75th]]-AAMC_Raw_Data_for_FY22[[#This Row],[Median]])/25)*15) + AAMC_Raw_Data_for_FY22[[#This Row],[Median]]","v":0},{"$f":"(((AAMC_Raw_Data_for_FY22[[#This Row],[75th]]-AAMC_Raw_Data_for_FY22[[#This Row],[Median]])/25)*20) + AAMC_Raw_Data_for_FY22[[#This Row],[Median]]","v":0},null,{"$f":"(((AAMC_Raw_Data_for_FY22[[#This Row],[75th]]-AAMC_Raw_Data_for_FY22[[#This Row],[Median]])/25)*30) + AAMC_Raw_Data_for_FY22[[#This Row],[Median]]","v":0},{"$f":"(((AAMC_Raw_Data_for_FY22[[#This Row],[75th]]-AAMC_Raw_Data_for_FY22[[#This Row],[Median]])/25)*35) + AAMC_Raw_Data_for_FY22[[#This Row],[Median]]","v":0},{"$f":"(((AAMC_Raw_Data_for_FY22[[#This Row],[75th]]-AAMC_Raw_Data_for_FY22[[#This Row],[Median]])/25)*40) + AAMC_Raw_Data_for_FY22[[#This Row],[Median]]","v":0}]
[{"$f":"AAMC_Raw_Data_for_FY22[[#This Row],[Source]]&AAMC_Raw_Data_for_FY22[[#This Row],[Type]]&AAMC_Raw_Data_for_FY22[[#This Row],[School Subset]]&AAMC_Raw_Data_for_FY22[[#This Row],[Rank]]&AAMC_Raw_Data_for_FY22[[#This Row],[Degree]]&AAMC_Raw_Data_for_FY22[[#This Row],[Department / Specialty]]&\"L\"","v":"AAMCAcademicPrivateInstructorPhDPediatrics TotalL"},"Pediatrics Total",5,"AAMC","Academic","Private","Instructor","PhD","2021-2022",74609,{"$f":"(((AAMC_Raw_Data_for_FY22[[#This Row],[Median]]-AAMC_Raw_Data_for_FY22[[#This Row],[25th]])/25)*5) + AAMC_Raw_Data_for_FY22[[#This Row],[25th]]","v":75762.399999999994},{"$f":"(((AAMC_Raw_Data_for_FY22[[#This Row],[Median]]-AAMC_Raw_Data_for_FY22[[#This Row],[25th]])/25)*10) + AAMC_Raw_Data_for_FY22[[#This Row],[25th]]","v":76915.8},{"$f":"(((AAMC_Raw_Data_for_FY22[[#This Row],[Median]]-AAMC_Raw_Data_for_FY22[[#This Row],[25th]])/25)*15) + AAMC_Raw_Data_for_FY22[[#This Row],[25th]]","v":78069.2},{"$f":"(((AAMC_Raw_Data_for_FY22[[#This Row],[Median]]-AAMC_Raw_Data_for_FY22[[#This Row],[25th]])/25)*20) + AAMC_Raw_Data_for_FY22[[#This Row],[25th]]","v":79222.600000000006},80376,{"$f":"(((AAMC_Raw_Data_for_FY22[[#This Row],[75th]]-AAMC_Raw_Data_for_FY22[[#This Row],[Median]])/25)*5) + AAMC_Raw_Data_for_FY22[[#This Row],[Median]]","v":84635.6},{"$f":"(((AAMC_Raw_Data_for_FY22[[#This Row],[75th]]-AAMC_Raw_Data_for_FY22[[#This Row],[Median]])/25)*10) + AAMC_Raw_Data_for_FY22[[#This Row],[Median]]","v":88895.2},{"$f":"(((AAMC_Raw_Data_for_FY22[[#This Row],[75th]]-AAMC_Raw_Data_for_FY22[[#This Row],[Median]])/25)*15) + AAMC_Raw_Data_for_FY22[[#This Row],[Median]]","v":93154.8},{"$f":"(((AAMC_Raw_Data_for_FY22[[#This Row],[75th]]-AAMC_Raw_Data_for_FY22[[#This Row],[Median]])/25)*20) + AAMC_Raw_Data_for_FY22[[#This Row],[Median]]","v":97414.399999999994},101674,{"$f":"(((AAMC_Raw_Data_for_FY22[[#This Row],[75th]]-AAMC_Raw_Data_for_FY22[[#This Row],[Median]])/25)*30) + AAMC_Raw_Data_for_FY22[[#This Row],[Median]]","v":105933.6},{"$f":"(((AAMC_Raw_Data_for_FY22[[#This Row],[75th]]-AAMC_Raw_Data_for_FY22[[#This Row],[Median]])/25)*35) + AAMC_Raw_Data_for_FY22[[#This Row],[Median]]","v":110193.2},{"$f":"(((AAMC_Raw_Data_for_FY22[[#This Row],[75th]]-AAMC_Raw_Data_for_FY22[[#This Row],[Median]])/25)*40) + AAMC_Raw_Data_for_FY22[[#This Row],[Median]]","v":114452.79999999999}]
[{"$f":"AAMC_Raw_Data_for_FY22[[#This Row],[Source]]&AAMC_Raw_Data_for_FY22[[#This Row],[Type]]&AAMC_Raw_Data_for_FY22[[#This Row],[School Subset]]&AAMC_Raw_Data_for_FY22[[#This Row],[Rank]]&AAMC_Raw_Data_for_FY22[[#This Row],[Degree]]&AAMC_Raw_Data_for_FY22[[#This Row],[Department / Specialty]]&\"L\"","v":"AAMCAcademicPrivateAssistantPhDPediatrics TotalL"},"Pediatrics Total",4,"AAMC","Academic","Private","Assistant","PhD","2021-2022",100240,{"$f":"(((AAMC_Raw_Data_for_FY22[[#This Row],[Median]]-AAMC_Raw_Data_for_FY22[[#This Row],[25th]])/25)*5) + AAMC_Raw_Data_for_FY22[[#This Row],[25th]]","v":103497.60000000001},{"$f":"(((AAMC_Raw_Data_for_FY22[[#This Row],[Median]]-AAMC_Raw_Data_for_FY22[[#This Row],[25th]])/25)*10) + AAMC_Raw_Data_for_FY22[[#This Row],[25th]]","v":106755.2},{"$f":"(((AAMC_Raw_Data_for_FY22[[#This Row],[Median]]-AAMC_Raw_Data_for_FY22[[#This Row],[25th]])/25)*15) + AAMC_Raw_Data_for_FY22[[#This Row],[25th]]","v":110012.8},{"$f":"(((AAMC_Raw_Data_for_FY22[[#This Row],[Median]]-AAMC_Raw_Data_for_FY22[[#This Row],[25th]])/25)*20) + AAMC_Raw_Data_for_FY22[[#This Row],[25th]]","v":113270.39999999999},116528,{"$f":"(((AAMC_Raw_Data_for_FY22[[#This Row],[75th]]-AAMC_Raw_Data_for_FY22[[#This Row],[Median]])/25)*5) + AAMC_Raw_Data_for_FY22[[#This Row],[Median]]","v":119322.4},{"$f":"(((AAMC_Raw_Data_for_FY22[[#This Row],[75th]]-AAMC_Raw_Data_for_FY22[[#This Row],[Median]])/25)*10) + AAMC_Raw_Data_for_FY22[[#This Row],[Median]]","v":122116.8},{"$f":"(((AAMC_Raw_Data_for_FY22[[#This Row],[75th]]-AAMC_Raw_Data_for_FY22[[#This Row],[Median]])/25)*15) + AAMC_Raw_Data_for_FY22[[#This Row],[Median]]","v":124911.2},{"$f":"(((AAMC_Raw_Data_for_FY22[[#This Row],[75th]]-AAMC_Raw_Data_for_FY22[[#This Row],[Median]])/25)*20) + AAMC_Raw_Data_for_FY22[[#This Row],[Median]]","v":127705.60000000001},130500,{"$f":"(((AAMC_Raw_Data_for_FY22[[#This Row],[75th]]-AAMC_Raw_Data_for_FY22[[#This Row],[Median]])/25)*30) + AAMC_Raw_Data_for_FY22[[#This Row],[Median]]","v":133294.39999999999},{"$f":"(((AAMC_Raw_Data_for_FY22[[#This Row],[75th]]-AAMC_Raw_Data_for_FY22[[#This Row],[Median]])/25)*35) + AAMC_Raw_Data_for_FY22[[#This Row],[Median]]","v":136088.79999999999},{"$f":"(((AAMC_Raw_Data_for_FY22[[#This Row],[75th]]-AAMC_Raw_Data_for_FY22[[#This Row],[Median]])/25)*40) + AAMC_Raw_Data_for_FY22[[#This Row],[Median]]","v":138883.20000000001}]
[{"$f":"AAMC_Raw_Data_for_FY22[[#This Row],[Source]]&AAMC_Raw_Data_for_FY22[[#This Row],[Type]]&AAMC_Raw_Data_for_FY22[[#This Row],[School Subset]]&AAMC_Raw_Data_for_FY22[[#This Row],[Rank]]&AAMC_Raw_Data_for_FY22[[#This Row],[Degree]]&AAMC_Raw_Data_for_FY22[[#This Row],[Department / Specialty]]&\"L\"","v":"AAMCAcademicPrivateAssociatePhDPediatrics TotalL"},"Pediatrics Total",3,"AAMC","Academic","Private","Associate","PhD","2021-2022",134153,{"$f":"(((AAMC_Raw_Data_for_FY22[[#This Row],[Median]]-AAMC_Raw_Data_for_FY22[[#This Row],[25th]])/25)*5) + AAMC_Raw_Data_for_FY22[[#This Row],[25th]]","v":137213.20000000001},{"$f":"(((AAMC_Raw_Data_for_FY22[[#This Row],[Median]]-AAMC_Raw_Data_for_FY22[[#This Row],[25th]])/25)*10) + AAMC_Raw_Data_for_FY22[[#This Row],[25th]]","v":140273.4},{"$f":"(((AAMC_Raw_Data_for_FY22[[#This Row],[Median]]-AAMC_Raw_Data_for_FY22[[#This Row],[25th]])/25)*15) + AAMC_Raw_Data_for_FY22[[#This Row],[25th]]","v":143333.6},{"$f":"(((AAMC_Raw_Data_for_FY22[[#This Row],[Median]]-AAMC_Raw_Data_for_FY22[[#This Row],[25th]])/25)*20) + AAMC_Raw_Data_for_FY22[[#This Row],[25th]]","v":146393.79999999999},149454,{"$f":"(((AAMC_Raw_Data_for_FY22[[#This Row],[75th]]-AAMC_Raw_Data_for_FY22[[#This Row],[Median]])/25)*5) + AAMC_Raw_Data_for_FY22[[#This Row],[Median]]","v":154202.6},{"$f":"(((AAMC_Raw_Data_for_FY22[[#This Row],[75th]]-AAMC_Raw_Data_for_FY22[[#This Row],[Median]])/25)*10) + AAMC_Raw_Data_for_FY22[[#This Row],[Median]]","v":158951.20000000001},{"$f":"(((AAMC_Raw_Data_for_FY22[[#This Row],[75th]]-AAMC_Raw_Data_for_FY22[[#This Row],[Median]])/25)*15) + AAMC_Raw_Data_for_FY22[[#This Row],[Median]]","v":163699.79999999999},{"$f":"(((AAMC_Raw_Data_for_FY22[[#This Row],[75th]]-AAMC_Raw_Data_for_FY22[[#This Row],[Median]])/25)*20) + AAMC_Raw_Data_for_FY22[[#This Row],[Median]]","v":168448.4},173197,{"$f":"(((AAMC_Raw_Data_for_FY22[[#This Row],[75th]]-AAMC_Raw_Data_for_FY22[[#This Row],[Median]])/25)*30) + AAMC_Raw_Data_for_FY22[[#This Row],[Median]]","v":177945.60000000001},{"$f":"(((AAMC_Raw_Data_for_FY22[[#This Row],[75th]]-AAMC_Raw_Data_for_FY22[[#This Row],[Median]])/25)*35) + AAMC_Raw_Data_for_FY22[[#This Row],[Median]]","v":182694.2},{"$f":"(((AAMC_Raw_Data_for_FY22[[#This Row],[75th]]-AAMC_Raw_Data_for_FY22[[#This Row],[Median]])/25)*40) + AAMC_Raw_Data_for_FY22[[#This Row],[Median]]","v":187442.8}]
[{"$f":"AAMC_Raw_Data_for_FY22[[#This Row],[Source]]&AAMC_Raw_Data_for_FY22[[#This Row],[Type]]&AAMC_Raw_Data_for_FY22[[#This Row],[School Subset]]&AAMC_Raw_Data_for_FY22[[#This Row],[Rank]]&AAMC_Raw_Data_for_FY22[[#This Row],[Degree]]&AAMC_Raw_Data_for_FY22[[#This Row],[Department / Specialty]]&\"L\"","v":"AAMCAcademicPrivateProfessorPhDPediatrics TotalL"},"Pediatrics Total",2,"AAMC","Academic","Private","Professor","PhD","2021-2022",198310,{"$f":"(((AAMC_Raw_Data_for_FY22[[#This Row],[Median]]-AAMC_Raw_Data_for_FY22[[#This Row],[25th]])/25)*5) + AAMC_Raw_Data_for_FY22[[#This Row],[25th]]","v":206115.6},{"$f":"(((AAMC_Raw_Data_for_FY22[[#This Row],[Median]]-AAMC_Raw_Data_for_FY22[[#This Row],[25th]])/25)*10) + AAMC_Raw_Data_for_FY22[[#This Row],[25th]]","v":213921.2},{"$f":"(((AAMC_Raw_Data_for_FY22[[#This Row],[Median]]-AAMC_Raw_Data_for_FY22[[#This Row],[25th]])/25)*15) + AAMC_Raw_Data_for_FY22[[#This Row],[25th]]","v":221726.8},{"$f":"(((AAMC_Raw_Data_for_FY22[[#This Row],[Median]]-AAMC_Raw_Data_for_FY22[[#This Row],[25th]])/25)*20) + AAMC_Raw_Data_for_FY22[[#This Row],[25th]]","v":229532.4},237338,{"$f":"(((AAMC_Raw_Data_for_FY22[[#This Row],[75th]]-AAMC_Raw_Data_for_FY22[[#This Row],[Median]])/25)*5) + AAMC_Raw_Data_for_FY22[[#This Row],[Median]]","v":248469},{"$f":"(((AAMC_Raw_Data_for_FY22[[#This Row],[75th]]-AAMC_Raw_Data_for_FY22[[#This Row],[Median]])/25)*10) + AAMC_Raw_Data_for_FY22[[#This Row],[Median]]","v":259600},{"$f":"(((AAMC_Raw_Data_for_FY22[[#This Row],[75th]]-AAMC_Raw_Data_for_FY22[[#This Row],[Median]])/25)*15) + AAMC_Raw_Data_for_FY22[[#This Row],[Median]]","v":270731},{"$f":"(((AAMC_Raw_Data_for_FY22[[#This Row],[75th]]-AAMC_Raw_Data_for_FY22[[#This Row],[Median]])/25)*20) + AAMC_Raw_Data_for_FY22[[#This Row],[Median]]","v":281862},292993,{"$f":"(((AAMC_Raw_Data_for_FY22[[#This Row],[75th]]-AAMC_Raw_Data_for_FY22[[#This Row],[Median]])/25)*30) + AAMC_Raw_Data_for_FY22[[#This Row],[Median]]","v":304124},{"$f":"(((AAMC_Raw_Data_for_FY22[[#This Row],[75th]]-AAMC_Raw_Data_for_FY22[[#This Row],[Median]])/25)*35) + AAMC_Raw_Data_for_FY22[[#This Row],[Median]]","v":315255},{"$f":"(((AAMC_Raw_Data_for_FY22[[#This Row],[75th]]-AAMC_Raw_Data_for_FY22[[#This Row],[Median]])/25)*40) + AAMC_Raw_Data_for_FY22[[#This Row],[Median]]","v":326386}]
[{"$f":"AAMC_Raw_Data_for_FY22[[#This Row],[Source]]&AAMC_Raw_Data_for_FY22[[#This Row],[Type]]&AAMC_Raw_Data_for_FY22[[#This Row],[School Subset]]&AAMC_Raw_Data_for_FY22[[#This Row],[Rank]]&AAMC_Raw_Data_for_FY22[[#This Row],[Degree]]&AAMC_Raw_Data_for_FY22[[#This Row],[Department / Specialty]]&\"L\"","v":"AAMCAcademicPrivateChiefPhDPediatrics TotalL"},"Pediatrics Total",6,"AAMC","Academic","Private","Chief","PhD","2021-2022",266262,{"$f":"(((AAMC_Raw_Data_for_FY22[[#This Row],[Median]]-AAMC_Raw_Data_for_FY22[[#This Row],[25th]])/25)*5) + AAMC_Raw_Data_for_FY22[[#This Row],[25th]]","v":271307.8},{"$f":"(((AAMC_Raw_Data_for_FY22[[#This Row],[Median]]-AAMC_Raw_Data_for_FY22[[#This Row],[25th]])/25)*10) + AAMC_Raw_Data_for_FY22[[#This Row],[25th]]","v":276353.59999999998},{"$f":"(((AAMC_Raw_Data_for_FY22[[#This Row],[Median]]-AAMC_Raw_Data_for_FY22[[#This Row],[25th]])/25)*15) + AAMC_Raw_Data_for_FY22[[#This Row],[25th]]","v":281399.40000000002},{"$f":"(((AAMC_Raw_Data_for_FY22[[#This Row],[Median]]-AAMC_Raw_Data_for_FY22[[#This Row],[25th]])/25)*20) + AAMC_Raw_Data_for_FY22[[#This Row],[25th]]","v":286445.2},291491,{"$f":"(((AAMC_Raw_Data_for_FY22[[#This Row],[75th]]-AAMC_Raw_Data_for_FY22[[#This Row],[Median]])/25)*5) + AAMC_Raw_Data_for_FY22[[#This Row],[Median]]","v":305750.8},{"$f":"(((AAMC_Raw_Data_for_FY22[[#This Row],[75th]]-AAMC_Raw_Data_for_FY22[[#This Row],[Median]])/25)*10) + AAMC_Raw_Data_for_FY22[[#This Row],[Median]]","v":320010.59999999998},{"$f":"(((AAMC_Raw_Data_for_FY22[[#This Row],[75th]]-AAMC_Raw_Data_for_FY22[[#This Row],[Median]])/25)*15) + AAMC_Raw_Data_for_FY22[[#This Row],[Median]]","v":334270.40000000002},{"$f":"(((AAMC_Raw_Data_for_FY22[[#This Row],[75th]]-AAMC_Raw_Data_for_FY22[[#This Row],[Median]])/25)*20) + AAMC_Raw_Data_for_FY22[[#This Row],[Median]]","v":348530.2},362790,{"$f":"(((AAMC_Raw_Data_for_FY22[[#This Row],[75th]]-AAMC_Raw_Data_for_FY22[[#This Row],[Median]])/25)*30) + AAMC_Raw_Data_for_FY22[[#This Row],[Median]]","v":377049.8},{"$f":"(((AAMC_Raw_Data_for_FY22[[#This Row],[75th]]-AAMC_Raw_Data_for_FY22[[#This Row],[Median]])/25)*35) + AAMC_Raw_Data_for_FY22[[#This Row],[Median]]","v":391309.6},{"$f":"(((AAMC_Raw_Data_for_FY22[[#This Row],[75th]]-AAMC_Raw_Data_for_FY22[[#This Row],[Median]])/25)*40) + AAMC_Raw_Data_for_FY22[[#This Row],[Median]]","v":405569.4}]
[{"$f":"AAMC_Raw_Data_for_FY22[[#This Row],[Source]]&AAMC_Raw_Data_for_FY22[[#This Row],[Type]]&AAMC_Raw_Data_for_FY22[[#This Row],[School Subset]]&AAMC_Raw_Data_for_FY22[[#This Row],[Rank]]&AAMC_Raw_Data_for_FY22[[#This Row],[Degree]]&AAMC_Raw_Data_for_FY22[[#This Row],[Department / Specialty]]&\"L\"","v":"AAMCAcademicPrivateAssistantPhDAdolescent MedicineL"},"Adolescent Medicine",4,"AAMC","Academic","Private","Assistant","PhD","2021-2022",102412,{"$f":"(((AAMC_Raw_Data_for_FY22[[#This Row],[Median]]-AAMC_Raw_Data_for_FY22[[#This Row],[25th]])/25)*5) + AAMC_Raw_Data_for_FY22[[#This Row],[25th]]","v":105972.8},{"$f":"(((AAMC_Raw_Data_for_FY22[[#This Row],[Median]]-AAMC_Raw_Data_for_FY22[[#This Row],[25th]])/25)*10) + AAMC_Raw_Data_for_FY22[[#This Row],[25th]]","v":109533.6},{"$f":"(((AAMC_Raw_Data_for_FY22[[#This Row],[Median]]-AAMC_Raw_Data_for_FY22[[#This Row],[25th]])/25)*15) + AAMC_Raw_Data_for_FY22[[#This Row],[25th]]","v":113094.39999999999},{"$f":"(((AAMC_Raw_Data_for_FY22[[#This Row],[Median]]-AAMC_Raw_Data_for_FY22[[#This Row],[25th]])/25)*20) + AAMC_Raw_Data_for_FY22[[#This Row],[25th]]","v":116655.2},120216,{"$f":"(((AAMC_Raw_Data_for_FY22[[#This Row],[75th]]-AAMC_Raw_Data_for_FY22[[#This Row],[Median]])/25)*5) + AAMC_Raw_Data_for_FY22[[#This Row],[Median]]","v":126071.6},{"$f":"(((AAMC_Raw_Data_for_FY22[[#This Row],[75th]]-AAMC_Raw_Data_for_FY22[[#This Row],[Median]])/25)*10) + AAMC_Raw_Data_for_FY22[[#This Row],[Median]]","v":131927.20000000001},{"$f":"(((AAMC_Raw_Data_for_FY22[[#This Row],[75th]]-AAMC_Raw_Data_for_FY22[[#This Row],[Median]])/25)*15) + AAMC_Raw_Data_for_FY22[[#This Row],[Median]]","v":137782.79999999999},{"$f":"(((AAMC_Raw_Data_for_FY22[[#This Row],[75th]]-AAMC_Raw_Data_for_FY22[[#This Row],[Median]])/25)*20) + AAMC_Raw_Data_for_FY22[[#This Row],[Median]]","v":143638.39999999999},149494,{"$f":"(((AAMC_Raw_Data_for_FY22[[#This Row],[75th]]-AAMC_Raw_Data_for_FY22[[#This Row],[Median]])/25)*30) + AAMC_Raw_Data_for_FY22[[#This Row],[Median]]","v":155349.6},{"$f":"(((AAMC_Raw_Data_for_FY22[[#This Row],[75th]]-AAMC_Raw_Data_for_FY22[[#This Row],[Median]])/25)*35) + AAMC_Raw_Data_for_FY22[[#This Row],[Median]]","v":161205.20000000001},{"$f":"(((AAMC_Raw_Data_for_FY22[[#This Row],[75th]]-AAMC_Raw_Data_for_FY22[[#This Row],[Median]])/25)*40) + AAMC_Raw_Data_for_FY22[[#This Row],[Median]]","v":167060.79999999999}]
[{"$f":"AAMC_Raw_Data_for_FY22[[#This Row],[Source]]&AAMC_Raw_Data_for_FY22[[#This Row],[Type]]&AAMC_Raw_Data_for_FY22[[#This Row],[School Subset]]&AAMC_Raw_Data_for_FY22[[#This Row],[Rank]]&AAMC_Raw_Data_for_FY22[[#This Row],[Degree]]&AAMC_Raw_Data_for_FY22[[#This Row],[Department / Specialty]]&\"L\"","v":"AAMCAcademicPrivateAssociatePhDAdolescent MedicineL"},"Adolescent Medicine",3,"AAMC","Academic","Private","Associate","PhD","2021-2022",null,{"$f":"(((AAMC_Raw_Data_for_FY22[[#This Row],[Median]]-AAMC_Raw_Data_for_FY22[[#This Row],[25th]])/25)*5) + AAMC_Raw_Data_for_FY22[[#This Row],[25th]]","v":0},{"$f":"(((AAMC_Raw_Data_for_FY22[[#This Row],[Median]]-AAMC_Raw_Data_for_FY22[[#This Row],[25th]])/25)*10) + AAMC_Raw_Data_for_FY22[[#This Row],[25th]]","v":0},{"$f":"(((AAMC_Raw_Data_for_FY22[[#This Row],[Median]]-AAMC_Raw_Data_for_FY22[[#This Row],[25th]])/25)*15) + AAMC_Raw_Data_for_FY22[[#This Row],[25th]]","v":0},{"$f":"(((AAMC_Raw_Data_for_FY22[[#This Row],[Median]]-AAMC_Raw_Data_for_FY22[[#This Row],[25th]])/25)*20) + AAMC_Raw_Data_for_FY22[[#This Row],[25th]]","v":0},null,{"$f":"(((AAMC_Raw_Data_for_FY22[[#This Row],[75th]]-AAMC_Raw_Data_for_FY22[[#This Row],[Median]])/25)*5) + AAMC_Raw_Data_for_FY22[[#This Row],[Median]]","v":0},{"$f":"(((AAMC_Raw_Data_for_FY22[[#This Row],[75th]]-AAMC_Raw_Data_for_FY22[[#This Row],[Median]])/25)*10) + AAMC_Raw_Data_for_FY22[[#This Row],[Median]]","v":0},{"$f":"(((AAMC_Raw_Data_for_FY22[[#This Row],[75th]]-AAMC_Raw_Data_for_FY22[[#This Row],[Median]])/25)*15) + AAMC_Raw_Data_for_FY22[[#This Row],[Median]]","v":0},{"$f":"(((AAMC_Raw_Data_for_FY22[[#This Row],[75th]]-AAMC_Raw_Data_for_FY22[[#This Row],[Median]])/25)*20) + AAMC_Raw_Data_for_FY22[[#This Row],[Median]]","v":0},null,{"$f":"(((AAMC_Raw_Data_for_FY22[[#This Row],[75th]]-AAMC_Raw_Data_for_FY22[[#This Row],[Median]])/25)*30) + AAMC_Raw_Data_for_FY22[[#This Row],[Median]]","v":0},{"$f":"(((AAMC_Raw_Data_for_FY22[[#This Row],[75th]]-AAMC_Raw_Data_for_FY22[[#This Row],[Median]])/25)*35) + AAMC_Raw_Data_for_FY22[[#This Row],[Median]]","v":0},{"$f":"(((AAMC_Raw_Data_for_FY22[[#This Row],[75th]]-AAMC_Raw_Data_for_FY22[[#This Row],[Median]])/25)*40) + AAMC_Raw_Data_for_FY22[[#This Row],[Median]]","v":0}]
[{"$f":"AAMC_Raw_Data_for_FY22[[#This Row],[Source]]&AAMC_Raw_Data_for_FY22[[#This Row],[Type]]&AAMC_Raw_Data_for_FY22[[#This Row],[School Subset]]&AAMC_Raw_Data_for_FY22[[#This Row],[Rank]]&AAMC_Raw_Data_for_FY22[[#This Row],[Degree]]&AAMC_Raw_Data_for_FY22[[#This Row],[Department / Specialty]]&\"L\"","v":"AAMCAcademicPrivateProfessorPhDAdolescent MedicineL"},"Adolescent Medicine",2,"AAMC","Academic","Private","Professor","PhD","2021-2022",null,{"$f":"(((AAMC_Raw_Data_for_FY22[[#This Row],[Median]]-AAMC_Raw_Data_for_FY22[[#This Row],[25th]])/25)*5) + AAMC_Raw_Data_for_FY22[[#This Row],[25th]]","v":0},{"$f":"(((AAMC_Raw_Data_for_FY22[[#This Row],[Median]]-AAMC_Raw_Data_for_FY22[[#This Row],[25th]])/25)*10) + AAMC_Raw_Data_for_FY22[[#This Row],[25th]]","v":0},{"$f":"(((AAMC_Raw_Data_for_FY22[[#This Row],[Median]]-AAMC_Raw_Data_for_FY22[[#This Row],[25th]])/25)*15) + AAMC_Raw_Data_for_FY22[[#This Row],[25th]]","v":0},{"$f":"(((AAMC_Raw_Data_for_FY22[[#This Row],[Median]]-AAMC_Raw_Data_for_FY22[[#This Row],[25th]])/25)*20) + AAMC_Raw_Data_for_FY22[[#This Row],[25th]]","v":0},null,{"$f":"(((AAMC_Raw_Data_for_FY22[[#This Row],[75th]]-AAMC_Raw_Data_for_FY22[[#This Row],[Median]])/25)*5) + AAMC_Raw_Data_for_FY22[[#This Row],[Median]]","v":0},{"$f":"(((AAMC_Raw_Data_for_FY22[[#This Row],[75th]]-AAMC_Raw_Data_for_FY22[[#This Row],[Median]])/25)*10) + AAMC_Raw_Data_for_FY22[[#This Row],[Median]]","v":0},{"$f":"(((AAMC_Raw_Data_for_FY22[[#This Row],[75th]]-AAMC_Raw_Data_for_FY22[[#This Row],[Median]])/25)*15) + AAMC_Raw_Data_for_FY22[[#This Row],[Median]]","v":0},{"$f":"(((AAMC_Raw_Data_for_FY22[[#This Row],[75th]]-AAMC_Raw_Data_for_FY22[[#This Row],[Median]])/25)*20) + AAMC_Raw_Data_for_FY22[[#This Row],[Median]]","v":0},null,{"$f":"(((AAMC_Raw_Data_for_FY22[[#This Row],[75th]]-AAMC_Raw_Data_for_FY22[[#This Row],[Median]])/25)*30) + AAMC_Raw_Data_for_FY22[[#This Row],[Median]]","v":0},{"$f":"(((AAMC_Raw_Data_for_FY22[[#This Row],[75th]]-AAMC_Raw_Data_for_FY22[[#This Row],[Median]])/25)*35) + AAMC_Raw_Data_for_FY22[[#This Row],[Median]]","v":0},{"$f":"(((AAMC_Raw_Data_for_FY22[[#This Row],[75th]]-AAMC_Raw_Data_for_FY22[[#This Row],[Median]])/25)*40) + AAMC_Raw_Data_for_FY22[[#This Row],[Median]]","v":0}]
[{"$f":"AAMC_Raw_Data_for_FY22[[#This Row],[Source]]&AAMC_Raw_Data_for_FY22[[#This Row],[Type]]&AAMC_Raw_Data_for_FY22[[#This Row],[School Subset]]&AAMC_Raw_Data_for_FY22[[#This Row],[Rank]]&AAMC_Raw_Data_for_FY22[[#This Row],[Degree]]&AAMC_Raw_Data_for_FY22[[#This Row],[Department / Specialty]]&\"L\"","v":"AAMCAcademicPrivateInstructorPhDAllergy/Immunology-Peds.L"},"Allergy/Immunology-Peds.",5,"AAMC","Academic","Private","Instructor","PhD","2021-2022",null,{"$f":"(((AAMC_Raw_Data_for_FY22[[#This Row],[Median]]-AAMC_Raw_Data_for_FY22[[#This Row],[25th]])/25)*5) + AAMC_Raw_Data_for_FY22[[#This Row],[25th]]","v":0},{"$f":"(((AAMC_Raw_Data_for_FY22[[#This Row],[Median]]-AAMC_Raw_Data_for_FY22[[#This Row],[25th]])/25)*10) + AAMC_Raw_Data_for_FY22[[#This Row],[25th]]","v":0},{"$f":"(((AAMC_Raw_Data_for_FY22[[#This Row],[Median]]-AAMC_Raw_Data_for_FY22[[#This Row],[25th]])/25)*15) + AAMC_Raw_Data_for_FY22[[#This Row],[25th]]","v":0},{"$f":"(((AAMC_Raw_Data_for_FY22[[#This Row],[Median]]-AAMC_Raw_Data_for_FY22[[#This Row],[25th]])/25)*20) + AAMC_Raw_Data_for_FY22[[#This Row],[25th]]","v":0},null,{"$f":"(((AAMC_Raw_Data_for_FY22[[#This Row],[75th]]-AAMC_Raw_Data_for_FY22[[#This Row],[Median]])/25)*5) + AAMC_Raw_Data_for_FY22[[#This Row],[Median]]","v":0},{"$f":"(((AAMC_Raw_Data_for_FY22[[#This Row],[75th]]-AAMC_Raw_Data_for_FY22[[#This Row],[Median]])/25)*10) + AAMC_Raw_Data_for_FY22[[#This Row],[Median]]","v":0},{"$f":"(((AAMC_Raw_Data_for_FY22[[#This Row],[75th]]-AAMC_Raw_Data_for_FY22[[#This Row],[Median]])/25)*15) + AAMC_Raw_Data_for_FY22[[#This Row],[Median]]","v":0},{"$f":"(((AAMC_Raw_Data_for_FY22[[#This Row],[75th]]-AAMC_Raw_Data_for_FY22[[#This Row],[Median]])/25)*20) + AAMC_Raw_Data_for_FY22[[#This Row],[Median]]","v":0},null,{"$f":"(((AAMC_Raw_Data_for_FY22[[#This Row],[75th]]-AAMC_Raw_Data_for_FY22[[#This Row],[Median]])/25)*30) + AAMC_Raw_Data_for_FY22[[#This Row],[Median]]","v":0},{"$f":"(((AAMC_Raw_Data_for_FY22[[#This Row],[75th]]-AAMC_Raw_Data_for_FY22[[#This Row],[Median]])/25)*35) + AAMC_Raw_Data_for_FY22[[#This Row],[Median]]","v":0},{"$f":"(((AAMC_Raw_Data_for_FY22[[#This Row],[75th]]-AAMC_Raw_Data_for_FY22[[#This Row],[Median]])/25)*40) + AAMC_Raw_Data_for_FY22[[#This Row],[Median]]","v":0}]
[{"$f":"AAMC_Raw_Data_for_FY22[[#This Row],[Source]]&AAMC_Raw_Data_for_FY22[[#This Row],[Type]]&AAMC_Raw_Data_for_FY22[[#This Row],[School Subset]]&AAMC_Raw_Data_for_FY22[[#This Row],[Rank]]&AAMC_Raw_Data_for_FY22[[#This Row],[Degree]]&AAMC_Raw_Data_for_FY22[[#This Row],[Department / Specialty]]&\"L\"","v":"AAMCAcademicPrivateAssistantPhDAllergy/Immunology-Peds.L"},"Allergy/Immunology-Peds.",4,"AAMC","Academic","Private","Assistant","PhD","2021-2022",103277,{"$f":"(((AAMC_Raw_Data_for_FY22[[#This Row],[Median]]-AAMC_Raw_Data_for_FY22[[#This Row],[25th]])/25)*5) + AAMC_Raw_Data_for_FY22[[#This Row],[25th]]","v":104621},{"$f":"(((AAMC_Raw_Data_for_FY22[[#This Row],[Median]]-AAMC_Raw_Data_for_FY22[[#This Row],[25th]])/25)*10) + AAMC_Raw_Data_for_FY22[[#This Row],[25th]]","v":105965},{"$f":"(((AAMC_Raw_Data_for_FY22[[#This Row],[Median]]-AAMC_Raw_Data_for_FY22[[#This Row],[25th]])/25)*15) + AAMC_Raw_Data_for_FY22[[#This Row],[25th]]","v":107309},{"$f":"(((AAMC_Raw_Data_for_FY22[[#This Row],[Median]]-AAMC_Raw_Data_for_FY22[[#This Row],[25th]])/25)*20) + AAMC_Raw_Data_for_FY22[[#This Row],[25th]]","v":108653},109997,{"$f":"(((AAMC_Raw_Data_for_FY22[[#This Row],[75th]]-AAMC_Raw_Data_for_FY22[[#This Row],[Median]])/25)*5) + AAMC_Raw_Data_for_FY22[[#This Row],[Median]]","v":116017.60000000001},{"$f":"(((AAMC_Raw_Data_for_FY22[[#This Row],[75th]]-AAMC_Raw_Data_for_FY22[[#This Row],[Median]])/25)*10) + AAMC_Raw_Data_for_FY22[[#This Row],[Median]]","v":122038.2},{"$f":"(((AAMC_Raw_Data_for_FY22[[#This Row],[75th]]-AAMC_Raw_Data_for_FY22[[#This Row],[Median]])/25)*15) + AAMC_Raw_Data_for_FY22[[#This Row],[Median]]","v":128058.8},{"$f":"(((AAMC_Raw_Data_for_FY22[[#This Row],[75th]]-AAMC_Raw_Data_for_FY22[[#This Row],[Median]])/25)*20) + AAMC_Raw_Data_for_FY22[[#This Row],[Median]]","v":134079.4},140100,{"$f":"(((AAMC_Raw_Data_for_FY22[[#This Row],[75th]]-AAMC_Raw_Data_for_FY22[[#This Row],[Median]])/25)*30) + AAMC_Raw_Data_for_FY22[[#This Row],[Median]]","v":146120.6},{"$f":"(((AAMC_Raw_Data_for_FY22[[#This Row],[75th]]-AAMC_Raw_Data_for_FY22[[#This Row],[Median]])/25)*35) + AAMC_Raw_Data_for_FY22[[#This Row],[Median]]","v":152141.20000000001},{"$f":"(((AAMC_Raw_Data_for_FY22[[#This Row],[75th]]-AAMC_Raw_Data_for_FY22[[#This Row],[Median]])/25)*40) + AAMC_Raw_Data_for_FY22[[#This Row],[Median]]","v":158161.79999999999}]
[{"$f":"AAMC_Raw_Data_for_FY22[[#This Row],[Source]]&AAMC_Raw_Data_for_FY22[[#This Row],[Type]]&AAMC_Raw_Data_for_FY22[[#This Row],[School Subset]]&AAMC_Raw_Data_for_FY22[[#This Row],[Rank]]&AAMC_Raw_Data_for_FY22[[#This Row],[Degree]]&AAMC_Raw_Data_for_FY22[[#This Row],[Department / Specialty]]&\"L\"","v":"AAMCAcademicPrivateAssociatePhDAllergy/Immunology-Peds.L"},"Allergy/Immunology-Peds.",3,"AAMC","Academic","Private","Associate","PhD","2021-2022",null,{"$f":"(((AAMC_Raw_Data_for_FY22[[#This Row],[Median]]-AAMC_Raw_Data_for_FY22[[#This Row],[25th]])/25)*5) + AAMC_Raw_Data_for_FY22[[#This Row],[25th]]","v":0},{"$f":"(((AAMC_Raw_Data_for_FY22[[#This Row],[Median]]-AAMC_Raw_Data_for_FY22[[#This Row],[25th]])/25)*10) + AAMC_Raw_Data_for_FY22[[#This Row],[25th]]","v":0},{"$f":"(((AAMC_Raw_Data_for_FY22[[#This Row],[Median]]-AAMC_Raw_Data_for_FY22[[#This Row],[25th]])/25)*15) + AAMC_Raw_Data_for_FY22[[#This Row],[25th]]","v":0},{"$f":"(((AAMC_Raw_Data_for_FY22[[#This Row],[Median]]-AAMC_Raw_Data_for_FY22[[#This Row],[25th]])/25)*20) + AAMC_Raw_Data_for_FY22[[#This Row],[25th]]","v":0},null,{"$f":"(((AAMC_Raw_Data_for_FY22[[#This Row],[75th]]-AAMC_Raw_Data_for_FY22[[#This Row],[Median]])/25)*5) + AAMC_Raw_Data_for_FY22[[#This Row],[Median]]","v":0},{"$f":"(((AAMC_Raw_Data_for_FY22[[#This Row],[75th]]-AAMC_Raw_Data_for_FY22[[#This Row],[Median]])/25)*10) + AAMC_Raw_Data_for_FY22[[#This Row],[Median]]","v":0},{"$f":"(((AAMC_Raw_Data_for_FY22[[#This Row],[75th]]-AAMC_Raw_Data_for_FY22[[#This Row],[Median]])/25)*15) + AAMC_Raw_Data_for_FY22[[#This Row],[Median]]","v":0},{"$f":"(((AAMC_Raw_Data_for_FY22[[#This Row],[75th]]-AAMC_Raw_Data_for_FY22[[#This Row],[Median]])/25)*20) + AAMC_Raw_Data_for_FY22[[#This Row],[Median]]","v":0},null,{"$f":"(((AAMC_Raw_Data_for_FY22[[#This Row],[75th]]-AAMC_Raw_Data_for_FY22[[#This Row],[Median]])/25)*30) + AAMC_Raw_Data_for_FY22[[#This Row],[Median]]","v":0},{"$f":"(((AAMC_Raw_Data_for_FY22[[#This Row],[75th]]-AAMC_Raw_Data_for_FY22[[#This Row],[Median]])/25)*35) + AAMC_Raw_Data_for_FY22[[#This Row],[Median]]","v":0},{"$f":"(((AAMC_Raw_Data_for_FY22[[#This Row],[75th]]-AAMC_Raw_Data_for_FY22[[#This Row],[Median]])/25)*40) + AAMC_Raw_Data_for_FY22[[#This Row],[Median]]","v":0}]
[{"$f":"AAMC_Raw_Data_for_FY22[[#This Row],[Source]]&AAMC_Raw_Data_for_FY22[[#This Row],[Type]]&AAMC_Raw_Data_for_FY22[[#This Row],[School Subset]]&AAMC_Raw_Data_for_FY22[[#This Row],[Rank]]&AAMC_Raw_Data_for_FY22[[#This Row],[Degree]]&AAMC_Raw_Data_for_FY22[[#This Row],[Department / Specialty]]&\"L\"","v":"AAMCAcademicPrivateProfessorPhDAllergy/Immunology-Peds.L"},"Allergy/Immunology-Peds.",2,"AAMC","Academic","Private","Professor","PhD","2021-2022",null,{"$f":"(((AAMC_Raw_Data_for_FY22[[#This Row],[Median]]-AAMC_Raw_Data_for_FY22[[#This Row],[25th]])/25)*5) + AAMC_Raw_Data_for_FY22[[#This Row],[25th]]","v":0},{"$f":"(((AAMC_Raw_Data_for_FY22[[#This Row],[Median]]-AAMC_Raw_Data_for_FY22[[#This Row],[25th]])/25)*10) + AAMC_Raw_Data_for_FY22[[#This Row],[25th]]","v":0},{"$f":"(((AAMC_Raw_Data_for_FY22[[#This Row],[Median]]-AAMC_Raw_Data_for_FY22[[#This Row],[25th]])/25)*15) + AAMC_Raw_Data_for_FY22[[#This Row],[25th]]","v":0},{"$f":"(((AAMC_Raw_Data_for_FY22[[#This Row],[Median]]-AAMC_Raw_Data_for_FY22[[#This Row],[25th]])/25)*20) + AAMC_Raw_Data_for_FY22[[#This Row],[25th]]","v":0},null,{"$f":"(((AAMC_Raw_Data_for_FY22[[#This Row],[75th]]-AAMC_Raw_Data_for_FY22[[#This Row],[Median]])/25)*5) + AAMC_Raw_Data_for_FY22[[#This Row],[Median]]","v":0},{"$f":"(((AAMC_Raw_Data_for_FY22[[#This Row],[75th]]-AAMC_Raw_Data_for_FY22[[#This Row],[Median]])/25)*10) + AAMC_Raw_Data_for_FY22[[#This Row],[Median]]","v":0},{"$f":"(((AAMC_Raw_Data_for_FY22[[#This Row],[75th]]-AAMC_Raw_Data_for_FY22[[#This Row],[Median]])/25)*15) + AAMC_Raw_Data_for_FY22[[#This Row],[Median]]","v":0},{"$f":"(((AAMC_Raw_Data_for_FY22[[#This Row],[75th]]-AAMC_Raw_Data_for_FY22[[#This Row],[Median]])/25)*20) + AAMC_Raw_Data_for_FY22[[#This Row],[Median]]","v":0},null,{"$f":"(((AAMC_Raw_Data_for_FY22[[#This Row],[75th]]-AAMC_Raw_Data_for_FY22[[#This Row],[Median]])/25)*30) + AAMC_Raw_Data_for_FY22[[#This Row],[Median]]","v":0},{"$f":"(((AAMC_Raw_Data_for_FY22[[#This Row],[75th]]-AAMC_Raw_Data_for_FY22[[#This Row],[Median]])/25)*35) + AAMC_Raw_Data_for_FY22[[#This Row],[Median]]","v":0},{"$f":"(((AAMC_Raw_Data_for_FY22[[#This Row],[75th]]-AAMC_Raw_Data_for_FY22[[#This Row],[Median]])/25)*40) + AAMC_Raw_Data_for_FY22[[#This Row],[Median]]","v":0}]
[{"$f":"AAMC_Raw_Data_for_FY22[[#This Row],[Source]]&AAMC_Raw_Data_for_FY22[[#This Row],[Type]]&AAMC_Raw_Data_for_FY22[[#This Row],[School Subset]]&AAMC_Raw_Data_for_FY22[[#This Row],[Rank]]&AAMC_Raw_Data_for_FY22[[#This Row],[Degree]]&AAMC_Raw_Data_for_FY22[[#This Row],[Department / Specialty]]&\"L\"","v":"AAMCAcademicPrivateInstructorPhDCritical/Intensive Care-Peds.L"},"Critical/Intensive Care-Peds.",5,"AAMC","Academic","Private","Instructor","PhD","2021-2022",null,{"$f":"(((AAMC_Raw_Data_for_FY22[[#This Row],[Median]]-AAMC_Raw_Data_for_FY22[[#This Row],[25th]])/25)*5) + AAMC_Raw_Data_for_FY22[[#This Row],[25th]]","v":0},{"$f":"(((AAMC_Raw_Data_for_FY22[[#This Row],[Median]]-AAMC_Raw_Data_for_FY22[[#This Row],[25th]])/25)*10) + AAMC_Raw_Data_for_FY22[[#This Row],[25th]]","v":0},{"$f":"(((AAMC_Raw_Data_for_FY22[[#This Row],[Median]]-AAMC_Raw_Data_for_FY22[[#This Row],[25th]])/25)*15) + AAMC_Raw_Data_for_FY22[[#This Row],[25th]]","v":0},{"$f":"(((AAMC_Raw_Data_for_FY22[[#This Row],[Median]]-AAMC_Raw_Data_for_FY22[[#This Row],[25th]])/25)*20) + AAMC_Raw_Data_for_FY22[[#This Row],[25th]]","v":0},null,{"$f":"(((AAMC_Raw_Data_for_FY22[[#This Row],[75th]]-AAMC_Raw_Data_for_FY22[[#This Row],[Median]])/25)*5) + AAMC_Raw_Data_for_FY22[[#This Row],[Median]]","v":0},{"$f":"(((AAMC_Raw_Data_for_FY22[[#This Row],[75th]]-AAMC_Raw_Data_for_FY22[[#This Row],[Median]])/25)*10) + AAMC_Raw_Data_for_FY22[[#This Row],[Median]]","v":0},{"$f":"(((AAMC_Raw_Data_for_FY22[[#This Row],[75th]]-AAMC_Raw_Data_for_FY22[[#This Row],[Median]])/25)*15) + AAMC_Raw_Data_for_FY22[[#This Row],[Median]]","v":0},{"$f":"(((AAMC_Raw_Data_for_FY22[[#This Row],[75th]]-AAMC_Raw_Data_for_FY22[[#This Row],[Median]])/25)*20) + AAMC_Raw_Data_for_FY22[[#This Row],[Median]]","v":0},null,{"$f":"(((AAMC_Raw_Data_for_FY22[[#This Row],[75th]]-AAMC_Raw_Data_for_FY22[[#This Row],[Median]])/25)*30) + AAMC_Raw_Data_for_FY22[[#This Row],[Median]]","v":0},{"$f":"(((AAMC_Raw_Data_for_FY22[[#This Row],[75th]]-AAMC_Raw_Data_for_FY22[[#This Row],[Median]])/25)*35) + AAMC_Raw_Data_for_FY22[[#This Row],[Median]]","v":0},{"$f":"(((AAMC_Raw_Data_for_FY22[[#This Row],[75th]]-AAMC_Raw_Data_for_FY22[[#This Row],[Median]])/25)*40) + AAMC_Raw_Data_for_FY22[[#This Row],[Median]]","v":0}]
[{"$f":"AAMC_Raw_Data_for_FY22[[#This Row],[Source]]&AAMC_Raw_Data_for_FY22[[#This Row],[Type]]&AAMC_Raw_Data_for_FY22[[#This Row],[School Subset]]&AAMC_Raw_Data_for_FY22[[#This Row],[Rank]]&AAMC_Raw_Data_for_FY22[[#This Row],[Degree]]&AAMC_Raw_Data_for_FY22[[#This Row],[Department / Specialty]]&\"L\"","v":"AAMCAcademicPrivateAssistantPhDCritical/Intensive Care-Peds.L"},"Critical/Intensive Care-Peds.",4,"AAMC","Academic","Private","Assistant","PhD","2021-2022",null,{"$f":"(((AAMC_Raw_Data_for_FY22[[#This Row],[Median]]-AAMC_Raw_Data_for_FY22[[#This Row],[25th]])/25)*5) + AAMC_Raw_Data_for_FY22[[#This Row],[25th]]","v":0},{"$f":"(((AAMC_Raw_Data_for_FY22[[#This Row],[Median]]-AAMC_Raw_Data_for_FY22[[#This Row],[25th]])/25)*10) + AAMC_Raw_Data_for_FY22[[#This Row],[25th]]","v":0},{"$f":"(((AAMC_Raw_Data_for_FY22[[#This Row],[Median]]-AAMC_Raw_Data_for_FY22[[#This Row],[25th]])/25)*15) + AAMC_Raw_Data_for_FY22[[#This Row],[25th]]","v":0},{"$f":"(((AAMC_Raw_Data_for_FY22[[#This Row],[Median]]-AAMC_Raw_Data_for_FY22[[#This Row],[25th]])/25)*20) + AAMC_Raw_Data_for_FY22[[#This Row],[25th]]","v":0},null,{"$f":"(((AAMC_Raw_Data_for_FY22[[#This Row],[75th]]-AAMC_Raw_Data_for_FY22[[#This Row],[Median]])/25)*5) + AAMC_Raw_Data_for_FY22[[#This Row],[Median]]","v":0},{"$f":"(((AAMC_Raw_Data_for_FY22[[#This Row],[75th]]-AAMC_Raw_Data_for_FY22[[#This Row],[Median]])/25)*10) + AAMC_Raw_Data_for_FY22[[#This Row],[Median]]","v":0},{"$f":"(((AAMC_Raw_Data_for_FY22[[#This Row],[75th]]-AAMC_Raw_Data_for_FY22[[#This Row],[Median]])/25)*15) + AAMC_Raw_Data_for_FY22[[#This Row],[Median]]","v":0},{"$f":"(((AAMC_Raw_Data_for_FY22[[#This Row],[75th]]-AAMC_Raw_Data_for_FY22[[#This Row],[Median]])/25)*20) + AAMC_Raw_Data_for_FY22[[#This Row],[Median]]","v":0},null,{"$f":"(((AAMC_Raw_Data_for_FY22[[#This Row],[75th]]-AAMC_Raw_Data_for_FY22[[#This Row],[Median]])/25)*30) + AAMC_Raw_Data_for_FY22[[#This Row],[Median]]","v":0},{"$f":"(((AAMC_Raw_Data_for_FY22[[#This Row],[75th]]-AAMC_Raw_Data_for_FY22[[#This Row],[Median]])/25)*35) + AAMC_Raw_Data_for_FY22[[#This Row],[Median]]","v":0},{"$f":"(((AAMC_Raw_Data_for_FY22[[#This Row],[75th]]-AAMC_Raw_Data_for_FY22[[#This Row],[Median]])/25)*40) + AAMC_Raw_Data_for_FY22[[#This Row],[Median]]","v":0}]
[{"$f":"AAMC_Raw_Data_for_FY22[[#This Row],[Source]]&AAMC_Raw_Data_for_FY22[[#This Row],[Type]]&AAMC_Raw_Data_for_FY22[[#This Row],[School Subset]]&AAMC_Raw_Data_for_FY22[[#This Row],[Rank]]&AAMC_Raw_Data_for_FY22[[#This Row],[Degree]]&AAMC_Raw_Data_for_FY22[[#This Row],[Department / Specialty]]&\"L\"","v":"AAMCAcademicPrivateAssociatePhDCritical/Intensive Care-Peds.L"},"Critical/Intensive Care-Peds.",3,"AAMC","Academic","Private","Associate","PhD","2021-2022",null,{"$f":"(((AAMC_Raw_Data_for_FY22[[#This Row],[Median]]-AAMC_Raw_Data_for_FY22[[#This Row],[25th]])/25)*5) + AAMC_Raw_Data_for_FY22[[#This Row],[25th]]","v":0},{"$f":"(((AAMC_Raw_Data_for_FY22[[#This Row],[Median]]-AAMC_Raw_Data_for_FY22[[#This Row],[25th]])/25)*10) + AAMC_Raw_Data_for_FY22[[#This Row],[25th]]","v":0},{"$f":"(((AAMC_Raw_Data_for_FY22[[#This Row],[Median]]-AAMC_Raw_Data_for_FY22[[#This Row],[25th]])/25)*15) + AAMC_Raw_Data_for_FY22[[#This Row],[25th]]","v":0},{"$f":"(((AAMC_Raw_Data_for_FY22[[#This Row],[Median]]-AAMC_Raw_Data_for_FY22[[#This Row],[25th]])/25)*20) + AAMC_Raw_Data_for_FY22[[#This Row],[25th]]","v":0},null,{"$f":"(((AAMC_Raw_Data_for_FY22[[#This Row],[75th]]-AAMC_Raw_Data_for_FY22[[#This Row],[Median]])/25)*5) + AAMC_Raw_Data_for_FY22[[#This Row],[Median]]","v":0},{"$f":"(((AAMC_Raw_Data_for_FY22[[#This Row],[75th]]-AAMC_Raw_Data_for_FY22[[#This Row],[Median]])/25)*10) + AAMC_Raw_Data_for_FY22[[#This Row],[Median]]","v":0},{"$f":"(((AAMC_Raw_Data_for_FY22[[#This Row],[75th]]-AAMC_Raw_Data_for_FY22[[#This Row],[Median]])/25)*15) + AAMC_Raw_Data_for_FY22[[#This Row],[Median]]","v":0},{"$f":"(((AAMC_Raw_Data_for_FY22[[#This Row],[75th]]-AAMC_Raw_Data_for_FY22[[#This Row],[Median]])/25)*20) + AAMC_Raw_Data_for_FY22[[#This Row],[Median]]","v":0},null,{"$f":"(((AAMC_Raw_Data_for_FY22[[#This Row],[75th]]-AAMC_Raw_Data_for_FY22[[#This Row],[Median]])/25)*30) + AAMC_Raw_Data_for_FY22[[#This Row],[Median]]","v":0},{"$f":"(((AAMC_Raw_Data_for_FY22[[#This Row],[75th]]-AAMC_Raw_Data_for_FY22[[#This Row],[Median]])/25)*35) + AAMC_Raw_Data_for_FY22[[#This Row],[Median]]","v":0},{"$f":"(((AAMC_Raw_Data_for_FY22[[#This Row],[75th]]-AAMC_Raw_Data_for_FY22[[#This Row],[Median]])/25)*40) + AAMC_Raw_Data_for_FY22[[#This Row],[Median]]","v":0}]
[{"$f":"AAMC_Raw_Data_for_FY22[[#This Row],[Source]]&AAMC_Raw_Data_for_FY22[[#This Row],[Type]]&AAMC_Raw_Data_for_FY22[[#This Row],[School Subset]]&AAMC_Raw_Data_for_FY22[[#This Row],[Rank]]&AAMC_Raw_Data_for_FY22[[#This Row],[Degree]]&AAMC_Raw_Data_for_FY22[[#This Row],[Department / Specialty]]&\"L\"","v":"AAMCAcademicPrivateProfessorPhDCritical/Intensive Care-Peds.L"},"Critical/Intensive Care-Peds.",2,"AAMC","Academic","Private","Professor","PhD","2021-2022",null,{"$f":"(((AAMC_Raw_Data_for_FY22[[#This Row],[Median]]-AAMC_Raw_Data_for_FY22[[#This Row],[25th]])/25)*5) + AAMC_Raw_Data_for_FY22[[#This Row],[25th]]","v":0},{"$f":"(((AAMC_Raw_Data_for_FY22[[#This Row],[Median]]-AAMC_Raw_Data_for_FY22[[#This Row],[25th]])/25)*10) + AAMC_Raw_Data_for_FY22[[#This Row],[25th]]","v":0},{"$f":"(((AAMC_Raw_Data_for_FY22[[#This Row],[Median]]-AAMC_Raw_Data_for_FY22[[#This Row],[25th]])/25)*15) + AAMC_Raw_Data_for_FY22[[#This Row],[25th]]","v":0},{"$f":"(((AAMC_Raw_Data_for_FY22[[#This Row],[Median]]-AAMC_Raw_Data_for_FY22[[#This Row],[25th]])/25)*20) + AAMC_Raw_Data_for_FY22[[#This Row],[25th]]","v":0},null,{"$f":"(((AAMC_Raw_Data_for_FY22[[#This Row],[75th]]-AAMC_Raw_Data_for_FY22[[#This Row],[Median]])/25)*5) + AAMC_Raw_Data_for_FY22[[#This Row],[Median]]","v":0},{"$f":"(((AAMC_Raw_Data_for_FY22[[#This Row],[75th]]-AAMC_Raw_Data_for_FY22[[#This Row],[Median]])/25)*10) + AAMC_Raw_Data_for_FY22[[#This Row],[Median]]","v":0},{"$f":"(((AAMC_Raw_Data_for_FY22[[#This Row],[75th]]-AAMC_Raw_Data_for_FY22[[#This Row],[Median]])/25)*15) + AAMC_Raw_Data_for_FY22[[#This Row],[Median]]","v":0},{"$f":"(((AAMC_Raw_Data_for_FY22[[#This Row],[75th]]-AAMC_Raw_Data_for_FY22[[#This Row],[Median]])/25)*20) + AAMC_Raw_Data_for_FY22[[#This Row],[Median]]","v":0},null,{"$f":"(((AAMC_Raw_Data_for_FY22[[#This Row],[75th]]-AAMC_Raw_Data_for_FY22[[#This Row],[Median]])/25)*30) + AAMC_Raw_Data_for_FY22[[#This Row],[Median]]","v":0},{"$f":"(((AAMC_Raw_Data_for_FY22[[#This Row],[75th]]-AAMC_Raw_Data_for_FY22[[#This Row],[Median]])/25)*35) + AAMC_Raw_Data_for_FY22[[#This Row],[Median]]","v":0},{"$f":"(((AAMC_Raw_Data_for_FY22[[#This Row],[75th]]-AAMC_Raw_Data_for_FY22[[#This Row],[Median]])/25)*40) + AAMC_Raw_Data_for_FY22[[#This Row],[Median]]","v":0}]
[{"$f":"AAMC_Raw_Data_for_FY22[[#This Row],[Source]]&AAMC_Raw_Data_for_FY22[[#This Row],[Type]]&AAMC_Raw_Data_for_FY22[[#This Row],[School Subset]]&AAMC_Raw_Data_for_FY22[[#This Row],[Rank]]&AAMC_Raw_Data_for_FY22[[#This Row],[Degree]]&AAMC_Raw_Data_for_FY22[[#This Row],[Department / Specialty]]&\"L\"","v":"AAMCAcademicPrivateInstructorPhDDevelopmental-Behavioral PediatricsL"},"Developmental-Behavioral Pediatrics",5,"AAMC","Academic","Private","Instructor","PhD","2021-2022",null,{"$f":"(((AAMC_Raw_Data_for_FY22[[#This Row],[Median]]-AAMC_Raw_Data_for_FY22[[#This Row],[25th]])/25)*5) + AAMC_Raw_Data_for_FY22[[#This Row],[25th]]","v":0},{"$f":"(((AAMC_Raw_Data_for_FY22[[#This Row],[Median]]-AAMC_Raw_Data_for_FY22[[#This Row],[25th]])/25)*10) + AAMC_Raw_Data_for_FY22[[#This Row],[25th]]","v":0},{"$f":"(((AAMC_Raw_Data_for_FY22[[#This Row],[Median]]-AAMC_Raw_Data_for_FY22[[#This Row],[25th]])/25)*15) + AAMC_Raw_Data_for_FY22[[#This Row],[25th]]","v":0},{"$f":"(((AAMC_Raw_Data_for_FY22[[#This Row],[Median]]-AAMC_Raw_Data_for_FY22[[#This Row],[25th]])/25)*20) + AAMC_Raw_Data_for_FY22[[#This Row],[25th]]","v":0},null,{"$f":"(((AAMC_Raw_Data_for_FY22[[#This Row],[75th]]-AAMC_Raw_Data_for_FY22[[#This Row],[Median]])/25)*5) + AAMC_Raw_Data_for_FY22[[#This Row],[Median]]","v":0},{"$f":"(((AAMC_Raw_Data_for_FY22[[#This Row],[75th]]-AAMC_Raw_Data_for_FY22[[#This Row],[Median]])/25)*10) + AAMC_Raw_Data_for_FY22[[#This Row],[Median]]","v":0},{"$f":"(((AAMC_Raw_Data_for_FY22[[#This Row],[75th]]-AAMC_Raw_Data_for_FY22[[#This Row],[Median]])/25)*15) + AAMC_Raw_Data_for_FY22[[#This Row],[Median]]","v":0},{"$f":"(((AAMC_Raw_Data_for_FY22[[#This Row],[75th]]-AAMC_Raw_Data_for_FY22[[#This Row],[Median]])/25)*20) + AAMC_Raw_Data_for_FY22[[#This Row],[Median]]","v":0},null,{"$f":"(((AAMC_Raw_Data_for_FY22[[#This Row],[75th]]-AAMC_Raw_Data_for_FY22[[#This Row],[Median]])/25)*30) + AAMC_Raw_Data_for_FY22[[#This Row],[Median]]","v":0},{"$f":"(((AAMC_Raw_Data_for_FY22[[#This Row],[75th]]-AAMC_Raw_Data_for_FY22[[#This Row],[Median]])/25)*35) + AAMC_Raw_Data_for_FY22[[#This Row],[Median]]","v":0},{"$f":"(((AAMC_Raw_Data_for_FY22[[#This Row],[75th]]-AAMC_Raw_Data_for_FY22[[#This Row],[Median]])/25)*40) + AAMC_Raw_Data_for_FY22[[#This Row],[Median]]","v":0}]
[{"$f":"AAMC_Raw_Data_for_FY22[[#This Row],[Source]]&AAMC_Raw_Data_for_FY22[[#This Row],[Type]]&AAMC_Raw_Data_for_FY22[[#This Row],[School Subset]]&AAMC_Raw_Data_for_FY22[[#This Row],[Rank]]&AAMC_Raw_Data_for_FY22[[#This Row],[Degree]]&AAMC_Raw_Data_for_FY22[[#This Row],[Department / Specialty]]&\"L\"","v":"AAMCAcademicPrivateAssistantPhDDevelopmental-Behavioral PediatricsL"},"Developmental-Behavioral Pediatrics",4,"AAMC","Academic","Private","Assistant","PhD","2021-2022",116563,{"$f":"(((AAMC_Raw_Data_for_FY22[[#This Row],[Median]]-AAMC_Raw_Data_for_FY22[[#This Row],[25th]])/25)*5) + AAMC_Raw_Data_for_FY22[[#This Row],[25th]]","v":117880.4},{"$f":"(((AAMC_Raw_Data_for_FY22[[#This Row],[Median]]-AAMC_Raw_Data_for_FY22[[#This Row],[25th]])/25)*10) + AAMC_Raw_Data_for_FY22[[#This Row],[25th]]","v":119197.8},{"$f":"(((AAMC_Raw_Data_for_FY22[[#This Row],[Median]]-AAMC_Raw_Data_for_FY22[[#This Row],[25th]])/25)*15) + AAMC_Raw_Data_for_FY22[[#This Row],[25th]]","v":120515.2},{"$f":"(((AAMC_Raw_Data_for_FY22[[#This Row],[Median]]-AAMC_Raw_Data_for_FY22[[#This Row],[25th]])/25)*20) + AAMC_Raw_Data_for_FY22[[#This Row],[25th]]","v":121832.6},123150,{"$f":"(((AAMC_Raw_Data_for_FY22[[#This Row],[75th]]-AAMC_Raw_Data_for_FY22[[#This Row],[Median]])/25)*5) + AAMC_Raw_Data_for_FY22[[#This Row],[Median]]","v":124390},{"$f":"(((AAMC_Raw_Data_for_FY22[[#This Row],[75th]]-AAMC_Raw_Data_for_FY22[[#This Row],[Median]])/25)*10) + AAMC_Raw_Data_for_FY22[[#This Row],[Median]]","v":125630},{"$f":"(((AAMC_Raw_Data_for_FY22[[#This Row],[75th]]-AAMC_Raw_Data_for_FY22[[#This Row],[Median]])/25)*15) + AAMC_Raw_Data_for_FY22[[#This Row],[Median]]","v":126870},{"$f":"(((AAMC_Raw_Data_for_FY22[[#This Row],[75th]]-AAMC_Raw_Data_for_FY22[[#This Row],[Median]])/25)*20) + AAMC_Raw_Data_for_FY22[[#This Row],[Median]]","v":128110},129350,{"$f":"(((AAMC_Raw_Data_for_FY22[[#This Row],[75th]]-AAMC_Raw_Data_for_FY22[[#This Row],[Median]])/25)*30) + AAMC_Raw_Data_for_FY22[[#This Row],[Median]]","v":130590},{"$f":"(((AAMC_Raw_Data_for_FY22[[#This Row],[75th]]-AAMC_Raw_Data_for_FY22[[#This Row],[Median]])/25)*35) + AAMC_Raw_Data_for_FY22[[#This Row],[Median]]","v":131830},{"$f":"(((AAMC_Raw_Data_for_FY22[[#This Row],[75th]]-AAMC_Raw_Data_for_FY22[[#This Row],[Median]])/25)*40) + AAMC_Raw_Data_for_FY22[[#This Row],[Median]]","v":133070}]
[{"$f":"AAMC_Raw_Data_for_FY22[[#This Row],[Source]]&AAMC_Raw_Data_for_FY22[[#This Row],[Type]]&AAMC_Raw_Data_for_FY22[[#This Row],[School Subset]]&AAMC_Raw_Data_for_FY22[[#This Row],[Rank]]&AAMC_Raw_Data_for_FY22[[#This Row],[Degree]]&AAMC_Raw_Data_for_FY22[[#This Row],[Department / Specialty]]&\"L\"","v":"AAMCAcademicPrivateAssociatePhDDevelopmental-Behavioral PediatricsL"},"Developmental-Behavioral Pediatrics",3,"AAMC","Academic","Private","Associate","PhD","2021-2022",null,{"$f":"(((AAMC_Raw_Data_for_FY22[[#This Row],[Median]]-AAMC_Raw_Data_for_FY22[[#This Row],[25th]])/25)*5) + AAMC_Raw_Data_for_FY22[[#This Row],[25th]]","v":0},{"$f":"(((AAMC_Raw_Data_for_FY22[[#This Row],[Median]]-AAMC_Raw_Data_for_FY22[[#This Row],[25th]])/25)*10) + AAMC_Raw_Data_for_FY22[[#This Row],[25th]]","v":0},{"$f":"(((AAMC_Raw_Data_for_FY22[[#This Row],[Median]]-AAMC_Raw_Data_for_FY22[[#This Row],[25th]])/25)*15) + AAMC_Raw_Data_for_FY22[[#This Row],[25th]]","v":0},{"$f":"(((AAMC_Raw_Data_for_FY22[[#This Row],[Median]]-AAMC_Raw_Data_for_FY22[[#This Row],[25th]])/25)*20) + AAMC_Raw_Data_for_FY22[[#This Row],[25th]]","v":0},null,{"$f":"(((AAMC_Raw_Data_for_FY22[[#This Row],[75th]]-AAMC_Raw_Data_for_FY22[[#This Row],[Median]])/25)*5) + AAMC_Raw_Data_for_FY22[[#This Row],[Median]]","v":0},{"$f":"(((AAMC_Raw_Data_for_FY22[[#This Row],[75th]]-AAMC_Raw_Data_for_FY22[[#This Row],[Median]])/25)*10) + AAMC_Raw_Data_for_FY22[[#This Row],[Median]]","v":0},{"$f":"(((AAMC_Raw_Data_for_FY22[[#This Row],[75th]]-AAMC_Raw_Data_for_FY22[[#This Row],[Median]])/25)*15) + AAMC_Raw_Data_for_FY22[[#This Row],[Median]]","v":0},{"$f":"(((AAMC_Raw_Data_for_FY22[[#This Row],[75th]]-AAMC_Raw_Data_for_FY22[[#This Row],[Median]])/25)*20) + AAMC_Raw_Data_for_FY22[[#This Row],[Median]]","v":0},null,{"$f":"(((AAMC_Raw_Data_for_FY22[[#This Row],[75th]]-AAMC_Raw_Data_for_FY22[[#This Row],[Median]])/25)*30) + AAMC_Raw_Data_for_FY22[[#This Row],[Median]]","v":0},{"$f":"(((AAMC_Raw_Data_for_FY22[[#This Row],[75th]]-AAMC_Raw_Data_for_FY22[[#This Row],[Median]])/25)*35) + AAMC_Raw_Data_for_FY22[[#This Row],[Median]]","v":0},{"$f":"(((AAMC_Raw_Data_for_FY22[[#This Row],[75th]]-AAMC_Raw_Data_for_FY22[[#This Row],[Median]])/25)*40) + AAMC_Raw_Data_for_FY22[[#This Row],[Median]]","v":0}]
[{"$f":"AAMC_Raw_Data_for_FY22[[#This Row],[Source]]&AAMC_Raw_Data_for_FY22[[#This Row],[Type]]&AAMC_Raw_Data_for_FY22[[#This Row],[School Subset]]&AAMC_Raw_Data_for_FY22[[#This Row],[Rank]]&AAMC_Raw_Data_for_FY22[[#This Row],[Degree]]&AAMC_Raw_Data_for_FY22[[#This Row],[Department / Specialty]]&\"L\"","v":"AAMCAcademicPrivateProfessorPhDDevelopmental-Behavioral PediatricsL"},"Developmental-Behavioral Pediatrics",2,"AAMC","Academic","Private","Professor","PhD","2021-2022",null,{"$f":"(((AAMC_Raw_Data_for_FY22[[#This Row],[Median]]-AAMC_Raw_Data_for_FY22[[#This Row],[25th]])/25)*5) + AAMC_Raw_Data_for_FY22[[#This Row],[25th]]","v":0},{"$f":"(((AAMC_Raw_Data_for_FY22[[#This Row],[Median]]-AAMC_Raw_Data_for_FY22[[#This Row],[25th]])/25)*10) + AAMC_Raw_Data_for_FY22[[#This Row],[25th]]","v":0},{"$f":"(((AAMC_Raw_Data_for_FY22[[#This Row],[Median]]-AAMC_Raw_Data_for_FY22[[#This Row],[25th]])/25)*15) + AAMC_Raw_Data_for_FY22[[#This Row],[25th]]","v":0},{"$f":"(((AAMC_Raw_Data_for_FY22[[#This Row],[Median]]-AAMC_Raw_Data_for_FY22[[#This Row],[25th]])/25)*20) + AAMC_Raw_Data_for_FY22[[#This Row],[25th]]","v":0},null,{"$f":"(((AAMC_Raw_Data_for_FY22[[#This Row],[75th]]-AAMC_Raw_Data_for_FY22[[#This Row],[Median]])/25)*5) + AAMC_Raw_Data_for_FY22[[#This Row],[Median]]","v":0},{"$f":"(((AAMC_Raw_Data_for_FY22[[#This Row],[75th]]-AAMC_Raw_Data_for_FY22[[#This Row],[Median]])/25)*10) + AAMC_Raw_Data_for_FY22[[#This Row],[Median]]","v":0},{"$f":"(((AAMC_Raw_Data_for_FY22[[#This Row],[75th]]-AAMC_Raw_Data_for_FY22[[#This Row],[Median]])/25)*15) + AAMC_Raw_Data_for_FY22[[#This Row],[Median]]","v":0},{"$f":"(((AAMC_Raw_Data_for_FY22[[#This Row],[75th]]-AAMC_Raw_Data_for_FY22[[#This Row],[Median]])/25)*20) + AAMC_Raw_Data_for_FY22[[#This Row],[Median]]","v":0},null,{"$f":"(((AAMC_Raw_Data_for_FY22[[#This Row],[75th]]-AAMC_Raw_Data_for_FY22[[#This Row],[Median]])/25)*30) + AAMC_Raw_Data_for_FY22[[#This Row],[Median]]","v":0},{"$f":"(((AAMC_Raw_Data_for_FY22[[#This Row],[75th]]-AAMC_Raw_Data_for_FY22[[#This Row],[Median]])/25)*35) + AAMC_Raw_Data_for_FY22[[#This Row],[Median]]","v":0},{"$f":"(((AAMC_Raw_Data_for_FY22[[#This Row],[75th]]-AAMC_Raw_Data_for_FY22[[#This Row],[Median]])/25)*40) + AAMC_Raw_Data_for_FY22[[#This Row],[Median]]","v":0}]
[{"$f":"AAMC_Raw_Data_for_FY22[[#This Row],[Source]]&AAMC_Raw_Data_for_FY22[[#This Row],[Type]]&AAMC_Raw_Data_for_FY22[[#This Row],[School Subset]]&AAMC_Raw_Data_for_FY22[[#This Row],[Rank]]&AAMC_Raw_Data_for_FY22[[#This Row],[Degree]]&AAMC_Raw_Data_for_FY22[[#This Row],[Department / Specialty]]&\"L\"","v":"AAMCAcademicPrivateChiefPhDDevelopmental-Behavioral PediatricsL"},"Developmental-Behavioral Pediatrics",6,"AAMC","Academic","Private","Chief","PhD","2021-2022",null,{"$f":"(((AAMC_Raw_Data_for_FY22[[#This Row],[Median]]-AAMC_Raw_Data_for_FY22[[#This Row],[25th]])/25)*5) + AAMC_Raw_Data_for_FY22[[#This Row],[25th]]","v":0},{"$f":"(((AAMC_Raw_Data_for_FY22[[#This Row],[Median]]-AAMC_Raw_Data_for_FY22[[#This Row],[25th]])/25)*10) + AAMC_Raw_Data_for_FY22[[#This Row],[25th]]","v":0},{"$f":"(((AAMC_Raw_Data_for_FY22[[#This Row],[Median]]-AAMC_Raw_Data_for_FY22[[#This Row],[25th]])/25)*15) + AAMC_Raw_Data_for_FY22[[#This Row],[25th]]","v":0},{"$f":"(((AAMC_Raw_Data_for_FY22[[#This Row],[Median]]-AAMC_Raw_Data_for_FY22[[#This Row],[25th]])/25)*20) + AAMC_Raw_Data_for_FY22[[#This Row],[25th]]","v":0},null,{"$f":"(((AAMC_Raw_Data_for_FY22[[#This Row],[75th]]-AAMC_Raw_Data_for_FY22[[#This Row],[Median]])/25)*5) + AAMC_Raw_Data_for_FY22[[#This Row],[Median]]","v":0},{"$f":"(((AAMC_Raw_Data_for_FY22[[#This Row],[75th]]-AAMC_Raw_Data_for_FY22[[#This Row],[Median]])/25)*10) + AAMC_Raw_Data_for_FY22[[#This Row],[Median]]","v":0},{"$f":"(((AAMC_Raw_Data_for_FY22[[#This Row],[75th]]-AAMC_Raw_Data_for_FY22[[#This Row],[Median]])/25)*15) + AAMC_Raw_Data_for_FY22[[#This Row],[Median]]","v":0},{"$f":"(((AAMC_Raw_Data_for_FY22[[#This Row],[75th]]-AAMC_Raw_Data_for_FY22[[#This Row],[Median]])/25)*20) + AAMC_Raw_Data_for_FY22[[#This Row],[Median]]","v":0},null,{"$f":"(((AAMC_Raw_Data_for_FY22[[#This Row],[75th]]-AAMC_Raw_Data_for_FY22[[#This Row],[Median]])/25)*30) + AAMC_Raw_Data_for_FY22[[#This Row],[Median]]","v":0},{"$f":"(((AAMC_Raw_Data_for_FY22[[#This Row],[75th]]-AAMC_Raw_Data_for_FY22[[#This Row],[Median]])/25)*35) + AAMC_Raw_Data_for_FY22[[#This Row],[Median]]","v":0},{"$f":"(((AAMC_Raw_Data_for_FY22[[#This Row],[75th]]-AAMC_Raw_Data_for_FY22[[#This Row],[Median]])/25)*40) + AAMC_Raw_Data_for_FY22[[#This Row],[Median]]","v":0}]
[{"$f":"AAMC_Raw_Data_for_FY22[[#This Row],[Source]]&AAMC_Raw_Data_for_FY22[[#This Row],[Type]]&AAMC_Raw_Data_for_FY22[[#This Row],[School Subset]]&AAMC_Raw_Data_for_FY22[[#This Row],[Rank]]&AAMC_Raw_Data_for_FY22[[#This Row],[Degree]]&AAMC_Raw_Data_for_FY22[[#This Row],[Department / Specialty]]&\"L\"","v":"AAMCAcademicPrivateAssistantPhDEmergency Medicine-Peds.L"},"Emergency Medicine-Peds.",4,"AAMC","Academic","Private","Assistant","PhD","2021-2022",null,{"$f":"(((AAMC_Raw_Data_for_FY22[[#This Row],[Median]]-AAMC_Raw_Data_for_FY22[[#This Row],[25th]])/25)*5) + AAMC_Raw_Data_for_FY22[[#This Row],[25th]]","v":0},{"$f":"(((AAMC_Raw_Data_for_FY22[[#This Row],[Median]]-AAMC_Raw_Data_for_FY22[[#This Row],[25th]])/25)*10) + AAMC_Raw_Data_for_FY22[[#This Row],[25th]]","v":0},{"$f":"(((AAMC_Raw_Data_for_FY22[[#This Row],[Median]]-AAMC_Raw_Data_for_FY22[[#This Row],[25th]])/25)*15) + AAMC_Raw_Data_for_FY22[[#This Row],[25th]]","v":0},{"$f":"(((AAMC_Raw_Data_for_FY22[[#This Row],[Median]]-AAMC_Raw_Data_for_FY22[[#This Row],[25th]])/25)*20) + AAMC_Raw_Data_for_FY22[[#This Row],[25th]]","v":0},null,{"$f":"(((AAMC_Raw_Data_for_FY22[[#This Row],[75th]]-AAMC_Raw_Data_for_FY22[[#This Row],[Median]])/25)*5) + AAMC_Raw_Data_for_FY22[[#This Row],[Median]]","v":0},{"$f":"(((AAMC_Raw_Data_for_FY22[[#This Row],[75th]]-AAMC_Raw_Data_for_FY22[[#This Row],[Median]])/25)*10) + AAMC_Raw_Data_for_FY22[[#This Row],[Median]]","v":0},{"$f":"(((AAMC_Raw_Data_for_FY22[[#This Row],[75th]]-AAMC_Raw_Data_for_FY22[[#This Row],[Median]])/25)*15) + AAMC_Raw_Data_for_FY22[[#This Row],[Median]]","v":0},{"$f":"(((AAMC_Raw_Data_for_FY22[[#This Row],[75th]]-AAMC_Raw_Data_for_FY22[[#This Row],[Median]])/25)*20) + AAMC_Raw_Data_for_FY22[[#This Row],[Median]]","v":0},null,{"$f":"(((AAMC_Raw_Data_for_FY22[[#This Row],[75th]]-AAMC_Raw_Data_for_FY22[[#This Row],[Median]])/25)*30) + AAMC_Raw_Data_for_FY22[[#This Row],[Median]]","v":0},{"$f":"(((AAMC_Raw_Data_for_FY22[[#This Row],[75th]]-AAMC_Raw_Data_for_FY22[[#This Row],[Median]])/25)*35) + AAMC_Raw_Data_for_FY22[[#This Row],[Median]]","v":0},{"$f":"(((AAMC_Raw_Data_for_FY22[[#This Row],[75th]]-AAMC_Raw_Data_for_FY22[[#This Row],[Median]])/25)*40) + AAMC_Raw_Data_for_FY22[[#This Row],[Median]]","v":0}]
[{"$f":"AAMC_Raw_Data_for_FY22[[#This Row],[Source]]&AAMC_Raw_Data_for_FY22[[#This Row],[Type]]&AAMC_Raw_Data_for_FY22[[#This Row],[School Subset]]&AAMC_Raw_Data_for_FY22[[#This Row],[Rank]]&AAMC_Raw_Data_for_FY22[[#This Row],[Degree]]&AAMC_Raw_Data_for_FY22[[#This Row],[Department / Specialty]]&\"L\"","v":"AAMCAcademicPrivateAssociatePhDEmergency Medicine-Peds.L"},"Emergency Medicine-Peds.",3,"AAMC","Academic","Private","Associate","PhD","2021-2022",null,{"$f":"(((AAMC_Raw_Data_for_FY22[[#This Row],[Median]]-AAMC_Raw_Data_for_FY22[[#This Row],[25th]])/25)*5) + AAMC_Raw_Data_for_FY22[[#This Row],[25th]]","v":0},{"$f":"(((AAMC_Raw_Data_for_FY22[[#This Row],[Median]]-AAMC_Raw_Data_for_FY22[[#This Row],[25th]])/25)*10) + AAMC_Raw_Data_for_FY22[[#This Row],[25th]]","v":0},{"$f":"(((AAMC_Raw_Data_for_FY22[[#This Row],[Median]]-AAMC_Raw_Data_for_FY22[[#This Row],[25th]])/25)*15) + AAMC_Raw_Data_for_FY22[[#This Row],[25th]]","v":0},{"$f":"(((AAMC_Raw_Data_for_FY22[[#This Row],[Median]]-AAMC_Raw_Data_for_FY22[[#This Row],[25th]])/25)*20) + AAMC_Raw_Data_for_FY22[[#This Row],[25th]]","v":0},null,{"$f":"(((AAMC_Raw_Data_for_FY22[[#This Row],[75th]]-AAMC_Raw_Data_for_FY22[[#This Row],[Median]])/25)*5) + AAMC_Raw_Data_for_FY22[[#This Row],[Median]]","v":0},{"$f":"(((AAMC_Raw_Data_for_FY22[[#This Row],[75th]]-AAMC_Raw_Data_for_FY22[[#This Row],[Median]])/25)*10) + AAMC_Raw_Data_for_FY22[[#This Row],[Median]]","v":0},{"$f":"(((AAMC_Raw_Data_for_FY22[[#This Row],[75th]]-AAMC_Raw_Data_for_FY22[[#This Row],[Median]])/25)*15) + AAMC_Raw_Data_for_FY22[[#This Row],[Median]]","v":0},{"$f":"(((AAMC_Raw_Data_for_FY22[[#This Row],[75th]]-AAMC_Raw_Data_for_FY22[[#This Row],[Median]])/25)*20) + AAMC_Raw_Data_for_FY22[[#This Row],[Median]]","v":0},null,{"$f":"(((AAMC_Raw_Data_for_FY22[[#This Row],[75th]]-AAMC_Raw_Data_for_FY22[[#This Row],[Median]])/25)*30) + AAMC_Raw_Data_for_FY22[[#This Row],[Median]]","v":0},{"$f":"(((AAMC_Raw_Data_for_FY22[[#This Row],[75th]]-AAMC_Raw_Data_for_FY22[[#This Row],[Median]])/25)*35) + AAMC_Raw_Data_for_FY22[[#This Row],[Median]]","v":0},{"$f":"(((AAMC_Raw_Data_for_FY22[[#This Row],[75th]]-AAMC_Raw_Data_for_FY22[[#This Row],[Median]])/25)*40) + AAMC_Raw_Data_for_FY22[[#This Row],[Median]]","v":0}]
[{"$f":"AAMC_Raw_Data_for_FY22[[#This Row],[Source]]&AAMC_Raw_Data_for_FY22[[#This Row],[Type]]&AAMC_Raw_Data_for_FY22[[#This Row],[School Subset]]&AAMC_Raw_Data_for_FY22[[#This Row],[Rank]]&AAMC_Raw_Data_for_FY22[[#This Row],[Degree]]&AAMC_Raw_Data_for_FY22[[#This Row],[Department / Specialty]]&\"L\"","v":"AAMCAcademicPrivateProfessorPhDEmergency Medicine-Peds.L"},"Emergency Medicine-Peds.",2,"AAMC","Academic","Private","Professor","PhD","2021-2022",null,{"$f":"(((AAMC_Raw_Data_for_FY22[[#This Row],[Median]]-AAMC_Raw_Data_for_FY22[[#This Row],[25th]])/25)*5) + AAMC_Raw_Data_for_FY22[[#This Row],[25th]]","v":0},{"$f":"(((AAMC_Raw_Data_for_FY22[[#This Row],[Median]]-AAMC_Raw_Data_for_FY22[[#This Row],[25th]])/25)*10) + AAMC_Raw_Data_for_FY22[[#This Row],[25th]]","v":0},{"$f":"(((AAMC_Raw_Data_for_FY22[[#This Row],[Median]]-AAMC_Raw_Data_for_FY22[[#This Row],[25th]])/25)*15) + AAMC_Raw_Data_for_FY22[[#This Row],[25th]]","v":0},{"$f":"(((AAMC_Raw_Data_for_FY22[[#This Row],[Median]]-AAMC_Raw_Data_for_FY22[[#This Row],[25th]])/25)*20) + AAMC_Raw_Data_for_FY22[[#This Row],[25th]]","v":0},null,{"$f":"(((AAMC_Raw_Data_for_FY22[[#This Row],[75th]]-AAMC_Raw_Data_for_FY22[[#This Row],[Median]])/25)*5) + AAMC_Raw_Data_for_FY22[[#This Row],[Median]]","v":0},{"$f":"(((AAMC_Raw_Data_for_FY22[[#This Row],[75th]]-AAMC_Raw_Data_for_FY22[[#This Row],[Median]])/25)*10) + AAMC_Raw_Data_for_FY22[[#This Row],[Median]]","v":0},{"$f":"(((AAMC_Raw_Data_for_FY22[[#This Row],[75th]]-AAMC_Raw_Data_for_FY22[[#This Row],[Median]])/25)*15) + AAMC_Raw_Data_for_FY22[[#This Row],[Median]]","v":0},{"$f":"(((AAMC_Raw_Data_for_FY22[[#This Row],[75th]]-AAMC_Raw_Data_for_FY22[[#This Row],[Median]])/25)*20) + AAMC_Raw_Data_for_FY22[[#This Row],[Median]]","v":0},null,{"$f":"(((AAMC_Raw_Data_for_FY22[[#This Row],[75th]]-AAMC_Raw_Data_for_FY22[[#This Row],[Median]])/25)*30) + AAMC_Raw_Data_for_FY22[[#This Row],[Median]]","v":0},{"$f":"(((AAMC_Raw_Data_for_FY22[[#This Row],[75th]]-AAMC_Raw_Data_for_FY22[[#This Row],[Median]])/25)*35) + AAMC_Raw_Data_for_FY22[[#This Row],[Median]]","v":0},{"$f":"(((AAMC_Raw_Data_for_FY22[[#This Row],[75th]]-AAMC_Raw_Data_for_FY22[[#This Row],[Median]])/25)*40) + AAMC_Raw_Data_for_FY22[[#This Row],[Median]]","v":0}]
[{"$f":"AAMC_Raw_Data_for_FY22[[#This Row],[Source]]&AAMC_Raw_Data_for_FY22[[#This Row],[Type]]&AAMC_Raw_Data_for_FY22[[#This Row],[School Subset]]&AAMC_Raw_Data_for_FY22[[#This Row],[Rank]]&AAMC_Raw_Data_for_FY22[[#This Row],[Degree]]&AAMC_Raw_Data_for_FY22[[#This Row],[Department / Specialty]]&\"L\"","v":"AAMCAcademicPrivateInstructorPhDEndocrinology-Peds.L"},"Endocrinology-Peds.",5,"AAMC","Academic","Private","Instructor","PhD","2021-2022",null,{"$f":"(((AAMC_Raw_Data_for_FY22[[#This Row],[Median]]-AAMC_Raw_Data_for_FY22[[#This Row],[25th]])/25)*5) + AAMC_Raw_Data_for_FY22[[#This Row],[25th]]","v":0},{"$f":"(((AAMC_Raw_Data_for_FY22[[#This Row],[Median]]-AAMC_Raw_Data_for_FY22[[#This Row],[25th]])/25)*10) + AAMC_Raw_Data_for_FY22[[#This Row],[25th]]","v":0},{"$f":"(((AAMC_Raw_Data_for_FY22[[#This Row],[Median]]-AAMC_Raw_Data_for_FY22[[#This Row],[25th]])/25)*15) + AAMC_Raw_Data_for_FY22[[#This Row],[25th]]","v":0},{"$f":"(((AAMC_Raw_Data_for_FY22[[#This Row],[Median]]-AAMC_Raw_Data_for_FY22[[#This Row],[25th]])/25)*20) + AAMC_Raw_Data_for_FY22[[#This Row],[25th]]","v":0},null,{"$f":"(((AAMC_Raw_Data_for_FY22[[#This Row],[75th]]-AAMC_Raw_Data_for_FY22[[#This Row],[Median]])/25)*5) + AAMC_Raw_Data_for_FY22[[#This Row],[Median]]","v":0},{"$f":"(((AAMC_Raw_Data_for_FY22[[#This Row],[75th]]-AAMC_Raw_Data_for_FY22[[#This Row],[Median]])/25)*10) + AAMC_Raw_Data_for_FY22[[#This Row],[Median]]","v":0},{"$f":"(((AAMC_Raw_Data_for_FY22[[#This Row],[75th]]-AAMC_Raw_Data_for_FY22[[#This Row],[Median]])/25)*15) + AAMC_Raw_Data_for_FY22[[#This Row],[Median]]","v":0},{"$f":"(((AAMC_Raw_Data_for_FY22[[#This Row],[75th]]-AAMC_Raw_Data_for_FY22[[#This Row],[Median]])/25)*20) + AAMC_Raw_Data_for_FY22[[#This Row],[Median]]","v":0},null,{"$f":"(((AAMC_Raw_Data_for_FY22[[#This Row],[75th]]-AAMC_Raw_Data_for_FY22[[#This Row],[Median]])/25)*30) + AAMC_Raw_Data_for_FY22[[#This Row],[Median]]","v":0},{"$f":"(((AAMC_Raw_Data_for_FY22[[#This Row],[75th]]-AAMC_Raw_Data_for_FY22[[#This Row],[Median]])/25)*35) + AAMC_Raw_Data_for_FY22[[#This Row],[Median]]","v":0},{"$f":"(((AAMC_Raw_Data_for_FY22[[#This Row],[75th]]-AAMC_Raw_Data_for_FY22[[#This Row],[Median]])/25)*40) + AAMC_Raw_Data_for_FY22[[#This Row],[Median]]","v":0}]
[{"$f":"AAMC_Raw_Data_for_FY22[[#This Row],[Source]]&AAMC_Raw_Data_for_FY22[[#This Row],[Type]]&AAMC_Raw_Data_for_FY22[[#This Row],[School Subset]]&AAMC_Raw_Data_for_FY22[[#This Row],[Rank]]&AAMC_Raw_Data_for_FY22[[#This Row],[Degree]]&AAMC_Raw_Data_for_FY22[[#This Row],[Department / Specialty]]&\"L\"","v":"AAMCAcademicPrivateAssistantPhDEndocrinology-Peds.L"},"Endocrinology-Peds.",4,"AAMC","Academic","Private","Assistant","PhD","2021-2022",121444,{"$f":"(((AAMC_Raw_Data_for_FY22[[#This Row],[Median]]-AAMC_Raw_Data_for_FY22[[#This Row],[25th]])/25)*5) + AAMC_Raw_Data_for_FY22[[#This Row],[25th]]","v":124011.4},{"$f":"(((AAMC_Raw_Data_for_FY22[[#This Row],[Median]]-AAMC_Raw_Data_for_FY22[[#This Row],[25th]])/25)*10) + AAMC_Raw_Data_for_FY22[[#This Row],[25th]]","v":126578.8},{"$f":"(((AAMC_Raw_Data_for_FY22[[#This Row],[Median]]-AAMC_Raw_Data_for_FY22[[#This Row],[25th]])/25)*15) + AAMC_Raw_Data_for_FY22[[#This Row],[25th]]","v":129146.2},{"$f":"(((AAMC_Raw_Data_for_FY22[[#This Row],[Median]]-AAMC_Raw_Data_for_FY22[[#This Row],[25th]])/25)*20) + AAMC_Raw_Data_for_FY22[[#This Row],[25th]]","v":131713.60000000001},134281,{"$f":"(((AAMC_Raw_Data_for_FY22[[#This Row],[75th]]-AAMC_Raw_Data_for_FY22[[#This Row],[Median]])/25)*5) + AAMC_Raw_Data_for_FY22[[#This Row],[Median]]","v":137784.6},{"$f":"(((AAMC_Raw_Data_for_FY22[[#This Row],[75th]]-AAMC_Raw_Data_for_FY22[[#This Row],[Median]])/25)*10) + AAMC_Raw_Data_for_FY22[[#This Row],[Median]]","v":141288.20000000001},{"$f":"(((AAMC_Raw_Data_for_FY22[[#This Row],[75th]]-AAMC_Raw_Data_for_FY22[[#This Row],[Median]])/25)*15) + AAMC_Raw_Data_for_FY22[[#This Row],[Median]]","v":144791.79999999999},{"$f":"(((AAMC_Raw_Data_for_FY22[[#This Row],[75th]]-AAMC_Raw_Data_for_FY22[[#This Row],[Median]])/25)*20) + AAMC_Raw_Data_for_FY22[[#This Row],[Median]]","v":148295.4},151799,{"$f":"(((AAMC_Raw_Data_for_FY22[[#This Row],[75th]]-AAMC_Raw_Data_for_FY22[[#This Row],[Median]])/25)*30) + AAMC_Raw_Data_for_FY22[[#This Row],[Median]]","v":155302.6},{"$f":"(((AAMC_Raw_Data_for_FY22[[#This Row],[75th]]-AAMC_Raw_Data_for_FY22[[#This Row],[Median]])/25)*35) + AAMC_Raw_Data_for_FY22[[#This Row],[Median]]","v":158806.20000000001},{"$f":"(((AAMC_Raw_Data_for_FY22[[#This Row],[75th]]-AAMC_Raw_Data_for_FY22[[#This Row],[Median]])/25)*40) + AAMC_Raw_Data_for_FY22[[#This Row],[Median]]","v":162309.79999999999}]
[{"$f":"AAMC_Raw_Data_for_FY22[[#This Row],[Source]]&AAMC_Raw_Data_for_FY22[[#This Row],[Type]]&AAMC_Raw_Data_for_FY22[[#This Row],[School Subset]]&AAMC_Raw_Data_for_FY22[[#This Row],[Rank]]&AAMC_Raw_Data_for_FY22[[#This Row],[Degree]]&AAMC_Raw_Data_for_FY22[[#This Row],[Department / Specialty]]&\"L\"","v":"AAMCAcademicPrivateAssociatePhDEndocrinology-Peds.L"},"Endocrinology-Peds.",3,"AAMC","Academic","Private","Associate","PhD","2021-2022",null,{"$f":"(((AAMC_Raw_Data_for_FY22[[#This Row],[Median]]-AAMC_Raw_Data_for_FY22[[#This Row],[25th]])/25)*5) + AAMC_Raw_Data_for_FY22[[#This Row],[25th]]","v":0},{"$f":"(((AAMC_Raw_Data_for_FY22[[#This Row],[Median]]-AAMC_Raw_Data_for_FY22[[#This Row],[25th]])/25)*10) + AAMC_Raw_Data_for_FY22[[#This Row],[25th]]","v":0},{"$f":"(((AAMC_Raw_Data_for_FY22[[#This Row],[Median]]-AAMC_Raw_Data_for_FY22[[#This Row],[25th]])/25)*15) + AAMC_Raw_Data_for_FY22[[#This Row],[25th]]","v":0},{"$f":"(((AAMC_Raw_Data_for_FY22[[#This Row],[Median]]-AAMC_Raw_Data_for_FY22[[#This Row],[25th]])/25)*20) + AAMC_Raw_Data_for_FY22[[#This Row],[25th]]","v":0},null,{"$f":"(((AAMC_Raw_Data_for_FY22[[#This Row],[75th]]-AAMC_Raw_Data_for_FY22[[#This Row],[Median]])/25)*5) + AAMC_Raw_Data_for_FY22[[#This Row],[Median]]","v":0},{"$f":"(((AAMC_Raw_Data_for_FY22[[#This Row],[75th]]-AAMC_Raw_Data_for_FY22[[#This Row],[Median]])/25)*10) + AAMC_Raw_Data_for_FY22[[#This Row],[Median]]","v":0},{"$f":"(((AAMC_Raw_Data_for_FY22[[#This Row],[75th]]-AAMC_Raw_Data_for_FY22[[#This Row],[Median]])/25)*15) + AAMC_Raw_Data_for_FY22[[#This Row],[Median]]","v":0},{"$f":"(((AAMC_Raw_Data_for_FY22[[#This Row],[75th]]-AAMC_Raw_Data_for_FY22[[#This Row],[Median]])/25)*20) + AAMC_Raw_Data_for_FY22[[#This Row],[Median]]","v":0},null,{"$f":"(((AAMC_Raw_Data_for_FY22[[#This Row],[75th]]-AAMC_Raw_Data_for_FY22[[#This Row],[Median]])/25)*30) + AAMC_Raw_Data_for_FY22[[#This Row],[Median]]","v":0},{"$f":"(((AAMC_Raw_Data_for_FY22[[#This Row],[75th]]-AAMC_Raw_Data_for_FY22[[#This Row],[Median]])/25)*35) + AAMC_Raw_Data_for_FY22[[#This Row],[Median]]","v":0},{"$f":"(((AAMC_Raw_Data_for_FY22[[#This Row],[75th]]-AAMC_Raw_Data_for_FY22[[#This Row],[Median]])/25)*40) + AAMC_Raw_Data_for_FY22[[#This Row],[Median]]","v":0}]
[{"$f":"AAMC_Raw_Data_for_FY22[[#This Row],[Source]]&AAMC_Raw_Data_for_FY22[[#This Row],[Type]]&AAMC_Raw_Data_for_FY22[[#This Row],[School Subset]]&AAMC_Raw_Data_for_FY22[[#This Row],[Rank]]&AAMC_Raw_Data_for_FY22[[#This Row],[Degree]]&AAMC_Raw_Data_for_FY22[[#This Row],[Department / Specialty]]&\"L\"","v":"AAMCAcademicPrivateProfessorPhDEndocrinology-Peds.L"},"Endocrinology-Peds.",2,"AAMC","Academic","Private","Professor","PhD","2021-2022",null,{"$f":"(((AAMC_Raw_Data_for_FY22[[#This Row],[Median]]-AAMC_Raw_Data_for_FY22[[#This Row],[25th]])/25)*5) + AAMC_Raw_Data_for_FY22[[#This Row],[25th]]","v":0},{"$f":"(((AAMC_Raw_Data_for_FY22[[#This Row],[Median]]-AAMC_Raw_Data_for_FY22[[#This Row],[25th]])/25)*10) + AAMC_Raw_Data_for_FY22[[#This Row],[25th]]","v":0},{"$f":"(((AAMC_Raw_Data_for_FY22[[#This Row],[Median]]-AAMC_Raw_Data_for_FY22[[#This Row],[25th]])/25)*15) + AAMC_Raw_Data_for_FY22[[#This Row],[25th]]","v":0},{"$f":"(((AAMC_Raw_Data_for_FY22[[#This Row],[Median]]-AAMC_Raw_Data_for_FY22[[#This Row],[25th]])/25)*20) + AAMC_Raw_Data_for_FY22[[#This Row],[25th]]","v":0},null,{"$f":"(((AAMC_Raw_Data_for_FY22[[#This Row],[75th]]-AAMC_Raw_Data_for_FY22[[#This Row],[Median]])/25)*5) + AAMC_Raw_Data_for_FY22[[#This Row],[Median]]","v":0},{"$f":"(((AAMC_Raw_Data_for_FY22[[#This Row],[75th]]-AAMC_Raw_Data_for_FY22[[#This Row],[Median]])/25)*10) + AAMC_Raw_Data_for_FY22[[#This Row],[Median]]","v":0},{"$f":"(((AAMC_Raw_Data_for_FY22[[#This Row],[75th]]-AAMC_Raw_Data_for_FY22[[#This Row],[Median]])/25)*15) + AAMC_Raw_Data_for_FY22[[#This Row],[Median]]","v":0},{"$f":"(((AAMC_Raw_Data_for_FY22[[#This Row],[75th]]-AAMC_Raw_Data_for_FY22[[#This Row],[Median]])/25)*20) + AAMC_Raw_Data_for_FY22[[#This Row],[Median]]","v":0},null,{"$f":"(((AAMC_Raw_Data_for_FY22[[#This Row],[75th]]-AAMC_Raw_Data_for_FY22[[#This Row],[Median]])/25)*30) + AAMC_Raw_Data_for_FY22[[#This Row],[Median]]","v":0},{"$f":"(((AAMC_Raw_Data_for_FY22[[#This Row],[75th]]-AAMC_Raw_Data_for_FY22[[#This Row],[Median]])/25)*35) + AAMC_Raw_Data_for_FY22[[#This Row],[Median]]","v":0},{"$f":"(((AAMC_Raw_Data_for_FY22[[#This Row],[75th]]-AAMC_Raw_Data_for_FY22[[#This Row],[Median]])/25)*40) + AAMC_Raw_Data_for_FY22[[#This Row],[Median]]","v":0}]
[{"$f":"AAMC_Raw_Data_for_FY22[[#This Row],[Source]]&AAMC_Raw_Data_for_FY22[[#This Row],[Type]]&AAMC_Raw_Data_for_FY22[[#This Row],[School Subset]]&AAMC_Raw_Data_for_FY22[[#This Row],[Rank]]&AAMC_Raw_Data_for_FY22[[#This Row],[Degree]]&AAMC_Raw_Data_for_FY22[[#This Row],[Department / Specialty]]&\"L\"","v":"AAMCAcademicPrivateInstructorPhDGastroenterology-Peds.L"},"Gastroenterology-Peds.",5,"AAMC","Academic","Private","Instructor","PhD","2021-2022",null,{"$f":"(((AAMC_Raw_Data_for_FY22[[#This Row],[Median]]-AAMC_Raw_Data_for_FY22[[#This Row],[25th]])/25)*5) + AAMC_Raw_Data_for_FY22[[#This Row],[25th]]","v":0},{"$f":"(((AAMC_Raw_Data_for_FY22[[#This Row],[Median]]-AAMC_Raw_Data_for_FY22[[#This Row],[25th]])/25)*10) + AAMC_Raw_Data_for_FY22[[#This Row],[25th]]","v":0},{"$f":"(((AAMC_Raw_Data_for_FY22[[#This Row],[Median]]-AAMC_Raw_Data_for_FY22[[#This Row],[25th]])/25)*15) + AAMC_Raw_Data_for_FY22[[#This Row],[25th]]","v":0},{"$f":"(((AAMC_Raw_Data_for_FY22[[#This Row],[Median]]-AAMC_Raw_Data_for_FY22[[#This Row],[25th]])/25)*20) + AAMC_Raw_Data_for_FY22[[#This Row],[25th]]","v":0},null,{"$f":"(((AAMC_Raw_Data_for_FY22[[#This Row],[75th]]-AAMC_Raw_Data_for_FY22[[#This Row],[Median]])/25)*5) + AAMC_Raw_Data_for_FY22[[#This Row],[Median]]","v":0},{"$f":"(((AAMC_Raw_Data_for_FY22[[#This Row],[75th]]-AAMC_Raw_Data_for_FY22[[#This Row],[Median]])/25)*10) + AAMC_Raw_Data_for_FY22[[#This Row],[Median]]","v":0},{"$f":"(((AAMC_Raw_Data_for_FY22[[#This Row],[75th]]-AAMC_Raw_Data_for_FY22[[#This Row],[Median]])/25)*15) + AAMC_Raw_Data_for_FY22[[#This Row],[Median]]","v":0},{"$f":"(((AAMC_Raw_Data_for_FY22[[#This Row],[75th]]-AAMC_Raw_Data_for_FY22[[#This Row],[Median]])/25)*20) + AAMC_Raw_Data_for_FY22[[#This Row],[Median]]","v":0},null,{"$f":"(((AAMC_Raw_Data_for_FY22[[#This Row],[75th]]-AAMC_Raw_Data_for_FY22[[#This Row],[Median]])/25)*30) + AAMC_Raw_Data_for_FY22[[#This Row],[Median]]","v":0},{"$f":"(((AAMC_Raw_Data_for_FY22[[#This Row],[75th]]-AAMC_Raw_Data_for_FY22[[#This Row],[Median]])/25)*35) + AAMC_Raw_Data_for_FY22[[#This Row],[Median]]","v":0},{"$f":"(((AAMC_Raw_Data_for_FY22[[#This Row],[75th]]-AAMC_Raw_Data_for_FY22[[#This Row],[Median]])/25)*40) + AAMC_Raw_Data_for_FY22[[#This Row],[Median]]","v":0}]
[{"$f":"AAMC_Raw_Data_for_FY22[[#This Row],[Source]]&AAMC_Raw_Data_for_FY22[[#This Row],[Type]]&AAMC_Raw_Data_for_FY22[[#This Row],[School Subset]]&AAMC_Raw_Data_for_FY22[[#This Row],[Rank]]&AAMC_Raw_Data_for_FY22[[#This Row],[Degree]]&AAMC_Raw_Data_for_FY22[[#This Row],[Department / Specialty]]&\"L\"","v":"AAMCAcademicPrivateAssistantPhDGastroenterology-Peds.L"},"Gastroenterology-Peds.",4,"AAMC","Academic","Private","Assistant","PhD","2021-2022",94013,{"$f":"(((AAMC_Raw_Data_for_FY22[[#This Row],[Median]]-AAMC_Raw_Data_for_FY22[[#This Row],[25th]])/25)*5) + AAMC_Raw_Data_for_FY22[[#This Row],[25th]]","v":99505.4},{"$f":"(((AAMC_Raw_Data_for_FY22[[#This Row],[Median]]-AAMC_Raw_Data_for_FY22[[#This Row],[25th]])/25)*10) + AAMC_Raw_Data_for_FY22[[#This Row],[25th]]","v":104997.8},{"$f":"(((AAMC_Raw_Data_for_FY22[[#This Row],[Median]]-AAMC_Raw_Data_for_FY22[[#This Row],[25th]])/25)*15) + AAMC_Raw_Data_for_FY22[[#This Row],[25th]]","v":110490.2},{"$f":"(((AAMC_Raw_Data_for_FY22[[#This Row],[Median]]-AAMC_Raw_Data_for_FY22[[#This Row],[25th]])/25)*20) + AAMC_Raw_Data_for_FY22[[#This Row],[25th]]","v":115982.6},121475,{"$f":"(((AAMC_Raw_Data_for_FY22[[#This Row],[75th]]-AAMC_Raw_Data_for_FY22[[#This Row],[Median]])/25)*5) + AAMC_Raw_Data_for_FY22[[#This Row],[Median]]","v":125770.6},{"$f":"(((AAMC_Raw_Data_for_FY22[[#This Row],[75th]]-AAMC_Raw_Data_for_FY22[[#This Row],[Median]])/25)*10) + AAMC_Raw_Data_for_FY22[[#This Row],[Median]]","v":130066.2},{"$f":"(((AAMC_Raw_Data_for_FY22[[#This Row],[75th]]-AAMC_Raw_Data_for_FY22[[#This Row],[Median]])/25)*15) + AAMC_Raw_Data_for_FY22[[#This Row],[Median]]","v":134361.79999999999},{"$f":"(((AAMC_Raw_Data_for_FY22[[#This Row],[75th]]-AAMC_Raw_Data_for_FY22[[#This Row],[Median]])/25)*20) + AAMC_Raw_Data_for_FY22[[#This Row],[Median]]","v":138657.4},142953,{"$f":"(((AAMC_Raw_Data_for_FY22[[#This Row],[75th]]-AAMC_Raw_Data_for_FY22[[#This Row],[Median]])/25)*30) + AAMC_Raw_Data_for_FY22[[#This Row],[Median]]","v":147248.6},{"$f":"(((AAMC_Raw_Data_for_FY22[[#This Row],[75th]]-AAMC_Raw_Data_for_FY22[[#This Row],[Median]])/25)*35) + AAMC_Raw_Data_for_FY22[[#This Row],[Median]]","v":151544.20000000001},{"$f":"(((AAMC_Raw_Data_for_FY22[[#This Row],[75th]]-AAMC_Raw_Data_for_FY22[[#This Row],[Median]])/25)*40) + AAMC_Raw_Data_for_FY22[[#This Row],[Median]]","v":155839.79999999999}]
[{"$f":"AAMC_Raw_Data_for_FY22[[#This Row],[Source]]&AAMC_Raw_Data_for_FY22[[#This Row],[Type]]&AAMC_Raw_Data_for_FY22[[#This Row],[School Subset]]&AAMC_Raw_Data_for_FY22[[#This Row],[Rank]]&AAMC_Raw_Data_for_FY22[[#This Row],[Degree]]&AAMC_Raw_Data_for_FY22[[#This Row],[Department / Specialty]]&\"L\"","v":"AAMCAcademicPrivateAssociatePhDGastroenterology-Peds.L"},"Gastroenterology-Peds.",3,"AAMC","Academic","Private","Associate","PhD","2021-2022",null,{"$f":"(((AAMC_Raw_Data_for_FY22[[#This Row],[Median]]-AAMC_Raw_Data_for_FY22[[#This Row],[25th]])/25)*5) + AAMC_Raw_Data_for_FY22[[#This Row],[25th]]","v":0},{"$f":"(((AAMC_Raw_Data_for_FY22[[#This Row],[Median]]-AAMC_Raw_Data_for_FY22[[#This Row],[25th]])/25)*10) + AAMC_Raw_Data_for_FY22[[#This Row],[25th]]","v":0},{"$f":"(((AAMC_Raw_Data_for_FY22[[#This Row],[Median]]-AAMC_Raw_Data_for_FY22[[#This Row],[25th]])/25)*15) + AAMC_Raw_Data_for_FY22[[#This Row],[25th]]","v":0},{"$f":"(((AAMC_Raw_Data_for_FY22[[#This Row],[Median]]-AAMC_Raw_Data_for_FY22[[#This Row],[25th]])/25)*20) + AAMC_Raw_Data_for_FY22[[#This Row],[25th]]","v":0},null,{"$f":"(((AAMC_Raw_Data_for_FY22[[#This Row],[75th]]-AAMC_Raw_Data_for_FY22[[#This Row],[Median]])/25)*5) + AAMC_Raw_Data_for_FY22[[#This Row],[Median]]","v":0},{"$f":"(((AAMC_Raw_Data_for_FY22[[#This Row],[75th]]-AAMC_Raw_Data_for_FY22[[#This Row],[Median]])/25)*10) + AAMC_Raw_Data_for_FY22[[#This Row],[Median]]","v":0},{"$f":"(((AAMC_Raw_Data_for_FY22[[#This Row],[75th]]-AAMC_Raw_Data_for_FY22[[#This Row],[Median]])/25)*15) + AAMC_Raw_Data_for_FY22[[#This Row],[Median]]","v":0},{"$f":"(((AAMC_Raw_Data_for_FY22[[#This Row],[75th]]-AAMC_Raw_Data_for_FY22[[#This Row],[Median]])/25)*20) + AAMC_Raw_Data_for_FY22[[#This Row],[Median]]","v":0},null,{"$f":"(((AAMC_Raw_Data_for_FY22[[#This Row],[75th]]-AAMC_Raw_Data_for_FY22[[#This Row],[Median]])/25)*30) + AAMC_Raw_Data_for_FY22[[#This Row],[Median]]","v":0},{"$f":"(((AAMC_Raw_Data_for_FY22[[#This Row],[75th]]-AAMC_Raw_Data_for_FY22[[#This Row],[Median]])/25)*35) + AAMC_Raw_Data_for_FY22[[#This Row],[Median]]","v":0},{"$f":"(((AAMC_Raw_Data_for_FY22[[#This Row],[75th]]-AAMC_Raw_Data_for_FY22[[#This Row],[Median]])/25)*40) + AAMC_Raw_Data_for_FY22[[#This Row],[Median]]","v":0}]
[{"$f":"AAMC_Raw_Data_for_FY22[[#This Row],[Source]]&AAMC_Raw_Data_for_FY22[[#This Row],[Type]]&AAMC_Raw_Data_for_FY22[[#This Row],[School Subset]]&AAMC_Raw_Data_for_FY22[[#This Row],[Rank]]&AAMC_Raw_Data_for_FY22[[#This Row],[Degree]]&AAMC_Raw_Data_for_FY22[[#This Row],[Department / Specialty]]&\"L\"","v":"AAMCAcademicPrivateProfessorPhDGastroenterology-Peds.L"},"Gastroenterology-Peds.",2,"AAMC","Academic","Private","Professor","PhD","2021-2022",null,{"$f":"(((AAMC_Raw_Data_for_FY22[[#This Row],[Median]]-AAMC_Raw_Data_for_FY22[[#This Row],[25th]])/25)*5) + AAMC_Raw_Data_for_FY22[[#This Row],[25th]]","v":0},{"$f":"(((AAMC_Raw_Data_for_FY22[[#This Row],[Median]]-AAMC_Raw_Data_for_FY22[[#This Row],[25th]])/25)*10) + AAMC_Raw_Data_for_FY22[[#This Row],[25th]]","v":0},{"$f":"(((AAMC_Raw_Data_for_FY22[[#This Row],[Median]]-AAMC_Raw_Data_for_FY22[[#This Row],[25th]])/25)*15) + AAMC_Raw_Data_for_FY22[[#This Row],[25th]]","v":0},{"$f":"(((AAMC_Raw_Data_for_FY22[[#This Row],[Median]]-AAMC_Raw_Data_for_FY22[[#This Row],[25th]])/25)*20) + AAMC_Raw_Data_for_FY22[[#This Row],[25th]]","v":0},null,{"$f":"(((AAMC_Raw_Data_for_FY22[[#This Row],[75th]]-AAMC_Raw_Data_for_FY22[[#This Row],[Median]])/25)*5) + AAMC_Raw_Data_for_FY22[[#This Row],[Median]]","v":0},{"$f":"(((AAMC_Raw_Data_for_FY22[[#This Row],[75th]]-AAMC_Raw_Data_for_FY22[[#This Row],[Median]])/25)*10) + AAMC_Raw_Data_for_FY22[[#This Row],[Median]]","v":0},{"$f":"(((AAMC_Raw_Data_for_FY22[[#This Row],[75th]]-AAMC_Raw_Data_for_FY22[[#This Row],[Median]])/25)*15) + AAMC_Raw_Data_for_FY22[[#This Row],[Median]]","v":0},{"$f":"(((AAMC_Raw_Data_for_FY22[[#This Row],[75th]]-AAMC_Raw_Data_for_FY22[[#This Row],[Median]])/25)*20) + AAMC_Raw_Data_for_FY22[[#This Row],[Median]]","v":0},null,{"$f":"(((AAMC_Raw_Data_for_FY22[[#This Row],[75th]]-AAMC_Raw_Data_for_FY22[[#This Row],[Median]])/25)*30) + AAMC_Raw_Data_for_FY22[[#This Row],[Median]]","v":0},{"$f":"(((AAMC_Raw_Data_for_FY22[[#This Row],[75th]]-AAMC_Raw_Data_for_FY22[[#This Row],[Median]])/25)*35) + AAMC_Raw_Data_for_FY22[[#This Row],[Median]]","v":0},{"$f":"(((AAMC_Raw_Data_for_FY22[[#This Row],[75th]]-AAMC_Raw_Data_for_FY22[[#This Row],[Median]])/25)*40) + AAMC_Raw_Data_for_FY22[[#This Row],[Median]]","v":0}]
[{"$f":"AAMC_Raw_Data_for_FY22[[#This Row],[Source]]&AAMC_Raw_Data_for_FY22[[#This Row],[Type]]&AAMC_Raw_Data_for_FY22[[#This Row],[School Subset]]&AAMC_Raw_Data_for_FY22[[#This Row],[Rank]]&AAMC_Raw_Data_for_FY22[[#This Row],[Degree]]&AAMC_Raw_Data_for_FY22[[#This Row],[Department / Specialty]]&\"L\"","v":"AAMCAcademicPrivateInstructorPhDGeneral PediatricsL"},"General Pediatrics",5,"AAMC","Academic","Private","Instructor","PhD","2021-2022",null,{"$f":"(((AAMC_Raw_Data_for_FY22[[#This Row],[Median]]-AAMC_Raw_Data_for_FY22[[#This Row],[25th]])/25)*5) + AAMC_Raw_Data_for_FY22[[#This Row],[25th]]","v":0},{"$f":"(((AAMC_Raw_Data_for_FY22[[#This Row],[Median]]-AAMC_Raw_Data_for_FY22[[#This Row],[25th]])/25)*10) + AAMC_Raw_Data_for_FY22[[#This Row],[25th]]","v":0},{"$f":"(((AAMC_Raw_Data_for_FY22[[#This Row],[Median]]-AAMC_Raw_Data_for_FY22[[#This Row],[25th]])/25)*15) + AAMC_Raw_Data_for_FY22[[#This Row],[25th]]","v":0},{"$f":"(((AAMC_Raw_Data_for_FY22[[#This Row],[Median]]-AAMC_Raw_Data_for_FY22[[#This Row],[25th]])/25)*20) + AAMC_Raw_Data_for_FY22[[#This Row],[25th]]","v":0},null,{"$f":"(((AAMC_Raw_Data_for_FY22[[#This Row],[75th]]-AAMC_Raw_Data_for_FY22[[#This Row],[Median]])/25)*5) + AAMC_Raw_Data_for_FY22[[#This Row],[Median]]","v":0},{"$f":"(((AAMC_Raw_Data_for_FY22[[#This Row],[75th]]-AAMC_Raw_Data_for_FY22[[#This Row],[Median]])/25)*10) + AAMC_Raw_Data_for_FY22[[#This Row],[Median]]","v":0},{"$f":"(((AAMC_Raw_Data_for_FY22[[#This Row],[75th]]-AAMC_Raw_Data_for_FY22[[#This Row],[Median]])/25)*15) + AAMC_Raw_Data_for_FY22[[#This Row],[Median]]","v":0},{"$f":"(((AAMC_Raw_Data_for_FY22[[#This Row],[75th]]-AAMC_Raw_Data_for_FY22[[#This Row],[Median]])/25)*20) + AAMC_Raw_Data_for_FY22[[#This Row],[Median]]","v":0},null,{"$f":"(((AAMC_Raw_Data_for_FY22[[#This Row],[75th]]-AAMC_Raw_Data_for_FY22[[#This Row],[Median]])/25)*30) + AAMC_Raw_Data_for_FY22[[#This Row],[Median]]","v":0},{"$f":"(((AAMC_Raw_Data_for_FY22[[#This Row],[75th]]-AAMC_Raw_Data_for_FY22[[#This Row],[Median]])/25)*35) + AAMC_Raw_Data_for_FY22[[#This Row],[Median]]","v":0},{"$f":"(((AAMC_Raw_Data_for_FY22[[#This Row],[75th]]-AAMC_Raw_Data_for_FY22[[#This Row],[Median]])/25)*40) + AAMC_Raw_Data_for_FY22[[#This Row],[Median]]","v":0}]
[{"$f":"AAMC_Raw_Data_for_FY22[[#This Row],[Source]]&AAMC_Raw_Data_for_FY22[[#This Row],[Type]]&AAMC_Raw_Data_for_FY22[[#This Row],[School Subset]]&AAMC_Raw_Data_for_FY22[[#This Row],[Rank]]&AAMC_Raw_Data_for_FY22[[#This Row],[Degree]]&AAMC_Raw_Data_for_FY22[[#This Row],[Department / Specialty]]&\"L\"","v":"AAMCAcademicPrivateAssistantPhDGeneral PediatricsL"},"General Pediatrics",4,"AAMC","Academic","Private","Assistant","PhD","2021-2022",103383,{"$f":"(((AAMC_Raw_Data_for_FY22[[#This Row],[Median]]-AAMC_Raw_Data_for_FY22[[#This Row],[25th]])/25)*5) + AAMC_Raw_Data_for_FY22[[#This Row],[25th]]","v":105674.4},{"$f":"(((AAMC_Raw_Data_for_FY22[[#This Row],[Median]]-AAMC_Raw_Data_for_FY22[[#This Row],[25th]])/25)*10) + AAMC_Raw_Data_for_FY22[[#This Row],[25th]]","v":107965.8},{"$f":"(((AAMC_Raw_Data_for_FY22[[#This Row],[Median]]-AAMC_Raw_Data_for_FY22[[#This Row],[25th]])/25)*15) + AAMC_Raw_Data_for_FY22[[#This Row],[25th]]","v":110257.2},{"$f":"(((AAMC_Raw_Data_for_FY22[[#This Row],[Median]]-AAMC_Raw_Data_for_FY22[[#This Row],[25th]])/25)*20) + AAMC_Raw_Data_for_FY22[[#This Row],[25th]]","v":112548.6},114840,{"$f":"(((AAMC_Raw_Data_for_FY22[[#This Row],[75th]]-AAMC_Raw_Data_for_FY22[[#This Row],[Median]])/25)*5) + AAMC_Raw_Data_for_FY22[[#This Row],[Median]]","v":117532.8},{"$f":"(((AAMC_Raw_Data_for_FY22[[#This Row],[75th]]-AAMC_Raw_Data_for_FY22[[#This Row],[Median]])/25)*10) + AAMC_Raw_Data_for_FY22[[#This Row],[Median]]","v":120225.60000000001},{"$f":"(((AAMC_Raw_Data_for_FY22[[#This Row],[75th]]-AAMC_Raw_Data_for_FY22[[#This Row],[Median]])/25)*15) + AAMC_Raw_Data_for_FY22[[#This Row],[Median]]","v":122918.39999999999},{"$f":"(((AAMC_Raw_Data_for_FY22[[#This Row],[75th]]-AAMC_Raw_Data_for_FY22[[#This Row],[Median]])/25)*20) + AAMC_Raw_Data_for_FY22[[#This Row],[Median]]","v":125611.2},128304,{"$f":"(((AAMC_Raw_Data_for_FY22[[#This Row],[75th]]-AAMC_Raw_Data_for_FY22[[#This Row],[Median]])/25)*30) + AAMC_Raw_Data_for_FY22[[#This Row],[Median]]","v":130996.8},{"$f":"(((AAMC_Raw_Data_for_FY22[[#This Row],[75th]]-AAMC_Raw_Data_for_FY22[[#This Row],[Median]])/25)*35) + AAMC_Raw_Data_for_FY22[[#This Row],[Median]]","v":133689.60000000001},{"$f":"(((AAMC_Raw_Data_for_FY22[[#This Row],[75th]]-AAMC_Raw_Data_for_FY22[[#This Row],[Median]])/25)*40) + AAMC_Raw_Data_for_FY22[[#This Row],[Median]]","v":136382.39999999999}]
[{"$f":"AAMC_Raw_Data_for_FY22[[#This Row],[Source]]&AAMC_Raw_Data_for_FY22[[#This Row],[Type]]&AAMC_Raw_Data_for_FY22[[#This Row],[School Subset]]&AAMC_Raw_Data_for_FY22[[#This Row],[Rank]]&AAMC_Raw_Data_for_FY22[[#This Row],[Degree]]&AAMC_Raw_Data_for_FY22[[#This Row],[Department / Specialty]]&\"L\"","v":"AAMCAcademicPrivateAssociatePhDGeneral PediatricsL"},"General Pediatrics",3,"AAMC","Academic","Private","Associate","PhD","2021-2022",137321,{"$f":"(((AAMC_Raw_Data_for_FY22[[#This Row],[Median]]-AAMC_Raw_Data_for_FY22[[#This Row],[25th]])/25)*5) + AAMC_Raw_Data_for_FY22[[#This Row],[25th]]","v":141055.20000000001},{"$f":"(((AAMC_Raw_Data_for_FY22[[#This Row],[Median]]-AAMC_Raw_Data_for_FY22[[#This Row],[25th]])/25)*10) + AAMC_Raw_Data_for_FY22[[#This Row],[25th]]","v":144789.4},{"$f":"(((AAMC_Raw_Data_for_FY22[[#This Row],[Median]]-AAMC_Raw_Data_for_FY22[[#This Row],[25th]])/25)*15) + AAMC_Raw_Data_for_FY22[[#This Row],[25th]]","v":148523.6},{"$f":"(((AAMC_Raw_Data_for_FY22[[#This Row],[Median]]-AAMC_Raw_Data_for_FY22[[#This Row],[25th]])/25)*20) + AAMC_Raw_Data_for_FY22[[#This Row],[25th]]","v":152257.79999999999},155992,{"$f":"(((AAMC_Raw_Data_for_FY22[[#This Row],[75th]]-AAMC_Raw_Data_for_FY22[[#This Row],[Median]])/25)*5) + AAMC_Raw_Data_for_FY22[[#This Row],[Median]]","v":160451},{"$f":"(((AAMC_Raw_Data_for_FY22[[#This Row],[75th]]-AAMC_Raw_Data_for_FY22[[#This Row],[Median]])/25)*10) + AAMC_Raw_Data_for_FY22[[#This Row],[Median]]","v":164910},{"$f":"(((AAMC_Raw_Data_for_FY22[[#This Row],[75th]]-AAMC_Raw_Data_for_FY22[[#This Row],[Median]])/25)*15) + AAMC_Raw_Data_for_FY22[[#This Row],[Median]]","v":169369},{"$f":"(((AAMC_Raw_Data_for_FY22[[#This Row],[75th]]-AAMC_Raw_Data_for_FY22[[#This Row],[Median]])/25)*20) + AAMC_Raw_Data_for_FY22[[#This Row],[Median]]","v":173828},178287,{"$f":"(((AAMC_Raw_Data_for_FY22[[#This Row],[75th]]-AAMC_Raw_Data_for_FY22[[#This Row],[Median]])/25)*30) + AAMC_Raw_Data_for_FY22[[#This Row],[Median]]","v":182746},{"$f":"(((AAMC_Raw_Data_for_FY22[[#This Row],[75th]]-AAMC_Raw_Data_for_FY22[[#This Row],[Median]])/25)*35) + AAMC_Raw_Data_for_FY22[[#This Row],[Median]]","v":187205},{"$f":"(((AAMC_Raw_Data_for_FY22[[#This Row],[75th]]-AAMC_Raw_Data_for_FY22[[#This Row],[Median]])/25)*40) + AAMC_Raw_Data_for_FY22[[#This Row],[Median]]","v":191664}]
[{"$f":"AAMC_Raw_Data_for_FY22[[#This Row],[Source]]&AAMC_Raw_Data_for_FY22[[#This Row],[Type]]&AAMC_Raw_Data_for_FY22[[#This Row],[School Subset]]&AAMC_Raw_Data_for_FY22[[#This Row],[Rank]]&AAMC_Raw_Data_for_FY22[[#This Row],[Degree]]&AAMC_Raw_Data_for_FY22[[#This Row],[Department / Specialty]]&\"L\"","v":"AAMCAcademicPrivateProfessorPhDGeneral PediatricsL"},"General Pediatrics",2,"AAMC","Academic","Private","Professor","PhD","2021-2022",180137,{"$f":"(((AAMC_Raw_Data_for_FY22[[#This Row],[Median]]-AAMC_Raw_Data_for_FY22[[#This Row],[25th]])/25)*5) + AAMC_Raw_Data_for_FY22[[#This Row],[25th]]","v":190513.2},{"$f":"(((AAMC_Raw_Data_for_FY22[[#This Row],[Median]]-AAMC_Raw_Data_for_FY22[[#This Row],[25th]])/25)*10) + AAMC_Raw_Data_for_FY22[[#This Row],[25th]]","v":200889.4},{"$f":"(((AAMC_Raw_Data_for_FY22[[#This Row],[Median]]-AAMC_Raw_Data_for_FY22[[#This Row],[25th]])/25)*15) + AAMC_Raw_Data_for_FY22[[#This Row],[25th]]","v":211265.6},{"$f":"(((AAMC_Raw_Data_for_FY22[[#This Row],[Median]]-AAMC_Raw_Data_for_FY22[[#This Row],[25th]])/25)*20) + AAMC_Raw_Data_for_FY22[[#This Row],[25th]]","v":221641.8},232018,{"$f":"(((AAMC_Raw_Data_for_FY22[[#This Row],[75th]]-AAMC_Raw_Data_for_FY22[[#This Row],[Median]])/25)*5) + AAMC_Raw_Data_for_FY22[[#This Row],[Median]]","v":244169.4},{"$f":"(((AAMC_Raw_Data_for_FY22[[#This Row],[75th]]-AAMC_Raw_Data_for_FY22[[#This Row],[Median]])/25)*10) + AAMC_Raw_Data_for_FY22[[#This Row],[Median]]","v":256320.8},{"$f":"(((AAMC_Raw_Data_for_FY22[[#This Row],[75th]]-AAMC_Raw_Data_for_FY22[[#This Row],[Median]])/25)*15) + AAMC_Raw_Data_for_FY22[[#This Row],[Median]]","v":268472.2},{"$f":"(((AAMC_Raw_Data_for_FY22[[#This Row],[75th]]-AAMC_Raw_Data_for_FY22[[#This Row],[Median]])/25)*20) + AAMC_Raw_Data_for_FY22[[#This Row],[Median]]","v":280623.59999999998},292775,{"$f":"(((AAMC_Raw_Data_for_FY22[[#This Row],[75th]]-AAMC_Raw_Data_for_FY22[[#This Row],[Median]])/25)*30) + AAMC_Raw_Data_for_FY22[[#This Row],[Median]]","v":304926.40000000002},{"$f":"(((AAMC_Raw_Data_for_FY22[[#This Row],[75th]]-AAMC_Raw_Data_for_FY22[[#This Row],[Median]])/25)*35) + AAMC_Raw_Data_for_FY22[[#This Row],[Median]]","v":317077.8},{"$f":"(((AAMC_Raw_Data_for_FY22[[#This Row],[75th]]-AAMC_Raw_Data_for_FY22[[#This Row],[Median]])/25)*40) + AAMC_Raw_Data_for_FY22[[#This Row],[Median]]","v":329229.2}]
[{"$f":"AAMC_Raw_Data_for_FY22[[#This Row],[Source]]&AAMC_Raw_Data_for_FY22[[#This Row],[Type]]&AAMC_Raw_Data_for_FY22[[#This Row],[School Subset]]&AAMC_Raw_Data_for_FY22[[#This Row],[Rank]]&AAMC_Raw_Data_for_FY22[[#This Row],[Degree]]&AAMC_Raw_Data_for_FY22[[#This Row],[Department / Specialty]]&\"L\"","v":"AAMCAcademicPrivateChiefPhDGeneral PediatricsL"},"General Pediatrics",6,"AAMC","Academic","Private","Chief","PhD","2021-2022",null,{"$f":"(((AAMC_Raw_Data_for_FY22[[#This Row],[Median]]-AAMC_Raw_Data_for_FY22[[#This Row],[25th]])/25)*5) + AAMC_Raw_Data_for_FY22[[#This Row],[25th]]","v":0},{"$f":"(((AAMC_Raw_Data_for_FY22[[#This Row],[Median]]-AAMC_Raw_Data_for_FY22[[#This Row],[25th]])/25)*10) + AAMC_Raw_Data_for_FY22[[#This Row],[25th]]","v":0},{"$f":"(((AAMC_Raw_Data_for_FY22[[#This Row],[Median]]-AAMC_Raw_Data_for_FY22[[#This Row],[25th]])/25)*15) + AAMC_Raw_Data_for_FY22[[#This Row],[25th]]","v":0},{"$f":"(((AAMC_Raw_Data_for_FY22[[#This Row],[Median]]-AAMC_Raw_Data_for_FY22[[#This Row],[25th]])/25)*20) + AAMC_Raw_Data_for_FY22[[#This Row],[25th]]","v":0},null,{"$f":"(((AAMC_Raw_Data_for_FY22[[#This Row],[75th]]-AAMC_Raw_Data_for_FY22[[#This Row],[Median]])/25)*5) + AAMC_Raw_Data_for_FY22[[#This Row],[Median]]","v":0},{"$f":"(((AAMC_Raw_Data_for_FY22[[#This Row],[75th]]-AAMC_Raw_Data_for_FY22[[#This Row],[Median]])/25)*10) + AAMC_Raw_Data_for_FY22[[#This Row],[Median]]","v":0},{"$f":"(((AAMC_Raw_Data_for_FY22[[#This Row],[75th]]-AAMC_Raw_Data_for_FY22[[#This Row],[Median]])/25)*15) + AAMC_Raw_Data_for_FY22[[#This Row],[Median]]","v":0},{"$f":"(((AAMC_Raw_Data_for_FY22[[#This Row],[75th]]-AAMC_Raw_Data_for_FY22[[#This Row],[Median]])/25)*20) + AAMC_Raw_Data_for_FY22[[#This Row],[Median]]","v":0},null,{"$f":"(((AAMC_Raw_Data_for_FY22[[#This Row],[75th]]-AAMC_Raw_Data_for_FY22[[#This Row],[Median]])/25)*30) + AAMC_Raw_Data_for_FY22[[#This Row],[Median]]","v":0},{"$f":"(((AAMC_Raw_Data_for_FY22[[#This Row],[75th]]-AAMC_Raw_Data_for_FY22[[#This Row],[Median]])/25)*35) + AAMC_Raw_Data_for_FY22[[#This Row],[Median]]","v":0},{"$f":"(((AAMC_Raw_Data_for_FY22[[#This Row],[75th]]-AAMC_Raw_Data_for_FY22[[#This Row],[Median]])/25)*40) + AAMC_Raw_Data_for_FY22[[#This Row],[Median]]","v":0}]
[{"$f":"AAMC_Raw_Data_for_FY22[[#This Row],[Source]]&AAMC_Raw_Data_for_FY22[[#This Row],[Type]]&AAMC_Raw_Data_for_FY22[[#This Row],[School Subset]]&AAMC_Raw_Data_for_FY22[[#This Row],[Rank]]&AAMC_Raw_Data_for_FY22[[#This Row],[Degree]]&AAMC_Raw_Data_for_FY22[[#This Row],[Department / Specialty]]&\"L\"","v":"AAMCAcademicPrivateInstructorPhDGenetics-Peds.L"},"Genetics-Peds.",5,"AAMC","Academic","Private","Instructor","PhD","2021-2022",null,{"$f":"(((AAMC_Raw_Data_for_FY22[[#This Row],[Median]]-AAMC_Raw_Data_for_FY22[[#This Row],[25th]])/25)*5) + AAMC_Raw_Data_for_FY22[[#This Row],[25th]]","v":0},{"$f":"(((AAMC_Raw_Data_for_FY22[[#This Row],[Median]]-AAMC_Raw_Data_for_FY22[[#This Row],[25th]])/25)*10) + AAMC_Raw_Data_for_FY22[[#This Row],[25th]]","v":0},{"$f":"(((AAMC_Raw_Data_for_FY22[[#This Row],[Median]]-AAMC_Raw_Data_for_FY22[[#This Row],[25th]])/25)*15) + AAMC_Raw_Data_for_FY22[[#This Row],[25th]]","v":0},{"$f":"(((AAMC_Raw_Data_for_FY22[[#This Row],[Median]]-AAMC_Raw_Data_for_FY22[[#This Row],[25th]])/25)*20) + AAMC_Raw_Data_for_FY22[[#This Row],[25th]]","v":0},null,{"$f":"(((AAMC_Raw_Data_for_FY22[[#This Row],[75th]]-AAMC_Raw_Data_for_FY22[[#This Row],[Median]])/25)*5) + AAMC_Raw_Data_for_FY22[[#This Row],[Median]]","v":0},{"$f":"(((AAMC_Raw_Data_for_FY22[[#This Row],[75th]]-AAMC_Raw_Data_for_FY22[[#This Row],[Median]])/25)*10) + AAMC_Raw_Data_for_FY22[[#This Row],[Median]]","v":0},{"$f":"(((AAMC_Raw_Data_for_FY22[[#This Row],[75th]]-AAMC_Raw_Data_for_FY22[[#This Row],[Median]])/25)*15) + AAMC_Raw_Data_for_FY22[[#This Row],[Median]]","v":0},{"$f":"(((AAMC_Raw_Data_for_FY22[[#This Row],[75th]]-AAMC_Raw_Data_for_FY22[[#This Row],[Median]])/25)*20) + AAMC_Raw_Data_for_FY22[[#This Row],[Median]]","v":0},null,{"$f":"(((AAMC_Raw_Data_for_FY22[[#This Row],[75th]]-AAMC_Raw_Data_for_FY22[[#This Row],[Median]])/25)*30) + AAMC_Raw_Data_for_FY22[[#This Row],[Median]]","v":0},{"$f":"(((AAMC_Raw_Data_for_FY22[[#This Row],[75th]]-AAMC_Raw_Data_for_FY22[[#This Row],[Median]])/25)*35) + AAMC_Raw_Data_for_FY22[[#This Row],[Median]]","v":0},{"$f":"(((AAMC_Raw_Data_for_FY22[[#This Row],[75th]]-AAMC_Raw_Data_for_FY22[[#This Row],[Median]])/25)*40) + AAMC_Raw_Data_for_FY22[[#This Row],[Median]]","v":0}]
[{"$f":"AAMC_Raw_Data_for_FY22[[#This Row],[Source]]&AAMC_Raw_Data_for_FY22[[#This Row],[Type]]&AAMC_Raw_Data_for_FY22[[#This Row],[School Subset]]&AAMC_Raw_Data_for_FY22[[#This Row],[Rank]]&AAMC_Raw_Data_for_FY22[[#This Row],[Degree]]&AAMC_Raw_Data_for_FY22[[#This Row],[Department / Specialty]]&\"L\"","v":"AAMCAcademicPrivateAssistantPhDGenetics-Peds.L"},"Genetics-Peds.",4,"AAMC","Academic","Private","Assistant","PhD","2021-2022",89402,{"$f":"(((AAMC_Raw_Data_for_FY22[[#This Row],[Median]]-AAMC_Raw_Data_for_FY22[[#This Row],[25th]])/25)*5) + AAMC_Raw_Data_for_FY22[[#This Row],[25th]]","v":90658.2},{"$f":"(((AAMC_Raw_Data_for_FY22[[#This Row],[Median]]-AAMC_Raw_Data_for_FY22[[#This Row],[25th]])/25)*10) + AAMC_Raw_Data_for_FY22[[#This Row],[25th]]","v":91914.4},{"$f":"(((AAMC_Raw_Data_for_FY22[[#This Row],[Median]]-AAMC_Raw_Data_for_FY22[[#This Row],[25th]])/25)*15) + AAMC_Raw_Data_for_FY22[[#This Row],[25th]]","v":93170.6},{"$f":"(((AAMC_Raw_Data_for_FY22[[#This Row],[Median]]-AAMC_Raw_Data_for_FY22[[#This Row],[25th]])/25)*20) + AAMC_Raw_Data_for_FY22[[#This Row],[25th]]","v":94426.8},95683,{"$f":"(((AAMC_Raw_Data_for_FY22[[#This Row],[75th]]-AAMC_Raw_Data_for_FY22[[#This Row],[Median]])/25)*5) + AAMC_Raw_Data_for_FY22[[#This Row],[Median]]","v":101776.4},{"$f":"(((AAMC_Raw_Data_for_FY22[[#This Row],[75th]]-AAMC_Raw_Data_for_FY22[[#This Row],[Median]])/25)*10) + AAMC_Raw_Data_for_FY22[[#This Row],[Median]]","v":107869.8},{"$f":"(((AAMC_Raw_Data_for_FY22[[#This Row],[75th]]-AAMC_Raw_Data_for_FY22[[#This Row],[Median]])/25)*15) + AAMC_Raw_Data_for_FY22[[#This Row],[Median]]","v":113963.2},{"$f":"(((AAMC_Raw_Data_for_FY22[[#This Row],[75th]]-AAMC_Raw_Data_for_FY22[[#This Row],[Median]])/25)*20) + AAMC_Raw_Data_for_FY22[[#This Row],[Median]]","v":120056.6},126150,{"$f":"(((AAMC_Raw_Data_for_FY22[[#This Row],[75th]]-AAMC_Raw_Data_for_FY22[[#This Row],[Median]])/25)*30) + AAMC_Raw_Data_for_FY22[[#This Row],[Median]]","v":132243.4},{"$f":"(((AAMC_Raw_Data_for_FY22[[#This Row],[75th]]-AAMC_Raw_Data_for_FY22[[#This Row],[Median]])/25)*35) + AAMC_Raw_Data_for_FY22[[#This Row],[Median]]","v":138336.79999999999},{"$f":"(((AAMC_Raw_Data_for_FY22[[#This Row],[75th]]-AAMC_Raw_Data_for_FY22[[#This Row],[Median]])/25)*40) + AAMC_Raw_Data_for_FY22[[#This Row],[Median]]","v":144430.20000000001}]
[{"$f":"AAMC_Raw_Data_for_FY22[[#This Row],[Source]]&AAMC_Raw_Data_for_FY22[[#This Row],[Type]]&AAMC_Raw_Data_for_FY22[[#This Row],[School Subset]]&AAMC_Raw_Data_for_FY22[[#This Row],[Rank]]&AAMC_Raw_Data_for_FY22[[#This Row],[Degree]]&AAMC_Raw_Data_for_FY22[[#This Row],[Department / Specialty]]&\"L\"","v":"AAMCAcademicPrivateAssociatePhDGenetics-Peds.L"},"Genetics-Peds.",3,"AAMC","Academic","Private","Associate","PhD","2021-2022",null,{"$f":"(((AAMC_Raw_Data_for_FY22[[#This Row],[Median]]-AAMC_Raw_Data_for_FY22[[#This Row],[25th]])/25)*5) + AAMC_Raw_Data_for_FY22[[#This Row],[25th]]","v":0},{"$f":"(((AAMC_Raw_Data_for_FY22[[#This Row],[Median]]-AAMC_Raw_Data_for_FY22[[#This Row],[25th]])/25)*10) + AAMC_Raw_Data_for_FY22[[#This Row],[25th]]","v":0},{"$f":"(((AAMC_Raw_Data_for_FY22[[#This Row],[Median]]-AAMC_Raw_Data_for_FY22[[#This Row],[25th]])/25)*15) + AAMC_Raw_Data_for_FY22[[#This Row],[25th]]","v":0},{"$f":"(((AAMC_Raw_Data_for_FY22[[#This Row],[Median]]-AAMC_Raw_Data_for_FY22[[#This Row],[25th]])/25)*20) + AAMC_Raw_Data_for_FY22[[#This Row],[25th]]","v":0},null,{"$f":"(((AAMC_Raw_Data_for_FY22[[#This Row],[75th]]-AAMC_Raw_Data_for_FY22[[#This Row],[Median]])/25)*5) + AAMC_Raw_Data_for_FY22[[#This Row],[Median]]","v":0},{"$f":"(((AAMC_Raw_Data_for_FY22[[#This Row],[75th]]-AAMC_Raw_Data_for_FY22[[#This Row],[Median]])/25)*10) + AAMC_Raw_Data_for_FY22[[#This Row],[Median]]","v":0},{"$f":"(((AAMC_Raw_Data_for_FY22[[#This Row],[75th]]-AAMC_Raw_Data_for_FY22[[#This Row],[Median]])/25)*15) + AAMC_Raw_Data_for_FY22[[#This Row],[Median]]","v":0},{"$f":"(((AAMC_Raw_Data_for_FY22[[#This Row],[75th]]-AAMC_Raw_Data_for_FY22[[#This Row],[Median]])/25)*20) + AAMC_Raw_Data_for_FY22[[#This Row],[Median]]","v":0},null,{"$f":"(((AAMC_Raw_Data_for_FY22[[#This Row],[75th]]-AAMC_Raw_Data_for_FY22[[#This Row],[Median]])/25)*30) + AAMC_Raw_Data_for_FY22[[#This Row],[Median]]","v":0},{"$f":"(((AAMC_Raw_Data_for_FY22[[#This Row],[75th]]-AAMC_Raw_Data_for_FY22[[#This Row],[Median]])/25)*35) + AAMC_Raw_Data_for_FY22[[#This Row],[Median]]","v":0},{"$f":"(((AAMC_Raw_Data_for_FY22[[#This Row],[75th]]-AAMC_Raw_Data_for_FY22[[#This Row],[Median]])/25)*40) + AAMC_Raw_Data_for_FY22[[#This Row],[Median]]","v":0}]
[{"$f":"AAMC_Raw_Data_for_FY22[[#This Row],[Source]]&AAMC_Raw_Data_for_FY22[[#This Row],[Type]]&AAMC_Raw_Data_for_FY22[[#This Row],[School Subset]]&AAMC_Raw_Data_for_FY22[[#This Row],[Rank]]&AAMC_Raw_Data_for_FY22[[#This Row],[Degree]]&AAMC_Raw_Data_for_FY22[[#This Row],[Department / Specialty]]&\"L\"","v":"AAMCAcademicPrivateProfessorPhDGenetics-Peds.L"},"Genetics-Peds.",2,"AAMC","Academic","Private","Professor","PhD","2021-2022",204635,{"$f":"(((AAMC_Raw_Data_for_FY22[[#This Row],[Median]]-AAMC_Raw_Data_for_FY22[[#This Row],[25th]])/25)*5) + AAMC_Raw_Data_for_FY22[[#This Row],[25th]]","v":210262.39999999999},{"$f":"(((AAMC_Raw_Data_for_FY22[[#This Row],[Median]]-AAMC_Raw_Data_for_FY22[[#This Row],[25th]])/25)*10) + AAMC_Raw_Data_for_FY22[[#This Row],[25th]]","v":215889.8},{"$f":"(((AAMC_Raw_Data_for_FY22[[#This Row],[Median]]-AAMC_Raw_Data_for_FY22[[#This Row],[25th]])/25)*15) + AAMC_Raw_Data_for_FY22[[#This Row],[25th]]","v":221517.2},{"$f":"(((AAMC_Raw_Data_for_FY22[[#This Row],[Median]]-AAMC_Raw_Data_for_FY22[[#This Row],[25th]])/25)*20) + AAMC_Raw_Data_for_FY22[[#This Row],[25th]]","v":227144.6},232772,{"$f":"(((AAMC_Raw_Data_for_FY22[[#This Row],[75th]]-AAMC_Raw_Data_for_FY22[[#This Row],[Median]])/25)*5) + AAMC_Raw_Data_for_FY22[[#This Row],[Median]]","v":243174.2},{"$f":"(((AAMC_Raw_Data_for_FY22[[#This Row],[75th]]-AAMC_Raw_Data_for_FY22[[#This Row],[Median]])/25)*10) + AAMC_Raw_Data_for_FY22[[#This Row],[Median]]","v":253576.4},{"$f":"(((AAMC_Raw_Data_for_FY22[[#This Row],[75th]]-AAMC_Raw_Data_for_FY22[[#This Row],[Median]])/25)*15) + AAMC_Raw_Data_for_FY22[[#This Row],[Median]]","v":263978.59999999998},{"$f":"(((AAMC_Raw_Data_for_FY22[[#This Row],[75th]]-AAMC_Raw_Data_for_FY22[[#This Row],[Median]])/25)*20) + AAMC_Raw_Data_for_FY22[[#This Row],[Median]]","v":274380.79999999999},284783,{"$f":"(((AAMC_Raw_Data_for_FY22[[#This Row],[75th]]-AAMC_Raw_Data_for_FY22[[#This Row],[Median]])/25)*30) + AAMC_Raw_Data_for_FY22[[#This Row],[Median]]","v":295185.2},{"$f":"(((AAMC_Raw_Data_for_FY22[[#This Row],[75th]]-AAMC_Raw_Data_for_FY22[[#This Row],[Median]])/25)*35) + AAMC_Raw_Data_for_FY22[[#This Row],[Median]]","v":305587.40000000002},{"$f":"(((AAMC_Raw_Data_for_FY22[[#This Row],[75th]]-AAMC_Raw_Data_for_FY22[[#This Row],[Median]])/25)*40) + AAMC_Raw_Data_for_FY22[[#This Row],[Median]]","v":315989.59999999998}]
[{"$f":"AAMC_Raw_Data_for_FY22[[#This Row],[Source]]&AAMC_Raw_Data_for_FY22[[#This Row],[Type]]&AAMC_Raw_Data_for_FY22[[#This Row],[School Subset]]&AAMC_Raw_Data_for_FY22[[#This Row],[Rank]]&AAMC_Raw_Data_for_FY22[[#This Row],[Degree]]&AAMC_Raw_Data_for_FY22[[#This Row],[Department / Specialty]]&\"L\"","v":"AAMCAcademicPrivateInstructorPhDHematology/Oncology-Peds.L"},"Hematology/Oncology-Peds.",5,"AAMC","Academic","Private","Instructor","PhD","2021-2022",null,{"$f":"(((AAMC_Raw_Data_for_FY22[[#This Row],[Median]]-AAMC_Raw_Data_for_FY22[[#This Row],[25th]])/25)*5) + AAMC_Raw_Data_for_FY22[[#This Row],[25th]]","v":0},{"$f":"(((AAMC_Raw_Data_for_FY22[[#This Row],[Median]]-AAMC_Raw_Data_for_FY22[[#This Row],[25th]])/25)*10) + AAMC_Raw_Data_for_FY22[[#This Row],[25th]]","v":0},{"$f":"(((AAMC_Raw_Data_for_FY22[[#This Row],[Median]]-AAMC_Raw_Data_for_FY22[[#This Row],[25th]])/25)*15) + AAMC_Raw_Data_for_FY22[[#This Row],[25th]]","v":0},{"$f":"(((AAMC_Raw_Data_for_FY22[[#This Row],[Median]]-AAMC_Raw_Data_for_FY22[[#This Row],[25th]])/25)*20) + AAMC_Raw_Data_for_FY22[[#This Row],[25th]]","v":0},null,{"$f":"(((AAMC_Raw_Data_for_FY22[[#This Row],[75th]]-AAMC_Raw_Data_for_FY22[[#This Row],[Median]])/25)*5) + AAMC_Raw_Data_for_FY22[[#This Row],[Median]]","v":0},{"$f":"(((AAMC_Raw_Data_for_FY22[[#This Row],[75th]]-AAMC_Raw_Data_for_FY22[[#This Row],[Median]])/25)*10) + AAMC_Raw_Data_for_FY22[[#This Row],[Median]]","v":0},{"$f":"(((AAMC_Raw_Data_for_FY22[[#This Row],[75th]]-AAMC_Raw_Data_for_FY22[[#This Row],[Median]])/25)*15) + AAMC_Raw_Data_for_FY22[[#This Row],[Median]]","v":0},{"$f":"(((AAMC_Raw_Data_for_FY22[[#This Row],[75th]]-AAMC_Raw_Data_for_FY22[[#This Row],[Median]])/25)*20) + AAMC_Raw_Data_for_FY22[[#This Row],[Median]]","v":0},null,{"$f":"(((AAMC_Raw_Data_for_FY22[[#This Row],[75th]]-AAMC_Raw_Data_for_FY22[[#This Row],[Median]])/25)*30) + AAMC_Raw_Data_for_FY22[[#This Row],[Median]]","v":0},{"$f":"(((AAMC_Raw_Data_for_FY22[[#This Row],[75th]]-AAMC_Raw_Data_for_FY22[[#This Row],[Median]])/25)*35) + AAMC_Raw_Data_for_FY22[[#This Row],[Median]]","v":0},{"$f":"(((AAMC_Raw_Data_for_FY22[[#This Row],[75th]]-AAMC_Raw_Data_for_FY22[[#This Row],[Median]])/25)*40) + AAMC_Raw_Data_for_FY22[[#This Row],[Median]]","v":0}]
[{"$f":"AAMC_Raw_Data_for_FY22[[#This Row],[Source]]&AAMC_Raw_Data_for_FY22[[#This Row],[Type]]&AAMC_Raw_Data_for_FY22[[#This Row],[School Subset]]&AAMC_Raw_Data_for_FY22[[#This Row],[Rank]]&AAMC_Raw_Data_for_FY22[[#This Row],[Degree]]&AAMC_Raw_Data_for_FY22[[#This Row],[Department / Specialty]]&\"L\"","v":"AAMCAcademicPrivateAssistantPhDHematology/Oncology-Peds.L"},"Hematology/Oncology-Peds.",4,"AAMC","Academic","Private","Assistant","PhD","2021-2022",101042,{"$f":"(((AAMC_Raw_Data_for_FY22[[#This Row],[Median]]-AAMC_Raw_Data_for_FY22[[#This Row],[25th]])/25)*5) + AAMC_Raw_Data_for_FY22[[#This Row],[25th]]","v":102353.4},{"$f":"(((AAMC_Raw_Data_for_FY22[[#This Row],[Median]]-AAMC_Raw_Data_for_FY22[[#This Row],[25th]])/25)*10) + AAMC_Raw_Data_for_FY22[[#This Row],[25th]]","v":103664.8},{"$f":"(((AAMC_Raw_Data_for_FY22[[#This Row],[Median]]-AAMC_Raw_Data_for_FY22[[#This Row],[25th]])/25)*15) + AAMC_Raw_Data_for_FY22[[#This Row],[25th]]","v":104976.2},{"$f":"(((AAMC_Raw_Data_for_FY22[[#This Row],[Median]]-AAMC_Raw_Data_for_FY22[[#This Row],[25th]])/25)*20) + AAMC_Raw_Data_for_FY22[[#This Row],[25th]]","v":106287.6},107599,{"$f":"(((AAMC_Raw_Data_for_FY22[[#This Row],[75th]]-AAMC_Raw_Data_for_FY22[[#This Row],[Median]])/25)*5) + AAMC_Raw_Data_for_FY22[[#This Row],[Median]]","v":111080.4},{"$f":"(((AAMC_Raw_Data_for_FY22[[#This Row],[75th]]-AAMC_Raw_Data_for_FY22[[#This Row],[Median]])/25)*10) + AAMC_Raw_Data_for_FY22[[#This Row],[Median]]","v":114561.8},{"$f":"(((AAMC_Raw_Data_for_FY22[[#This Row],[75th]]-AAMC_Raw_Data_for_FY22[[#This Row],[Median]])/25)*15) + AAMC_Raw_Data_for_FY22[[#This Row],[Median]]","v":118043.2},{"$f":"(((AAMC_Raw_Data_for_FY22[[#This Row],[75th]]-AAMC_Raw_Data_for_FY22[[#This Row],[Median]])/25)*20) + AAMC_Raw_Data_for_FY22[[#This Row],[Median]]","v":121524.6},125006,{"$f":"(((AAMC_Raw_Data_for_FY22[[#This Row],[75th]]-AAMC_Raw_Data_for_FY22[[#This Row],[Median]])/25)*30) + AAMC_Raw_Data_for_FY22[[#This Row],[Median]]","v":128487.4},{"$f":"(((AAMC_Raw_Data_for_FY22[[#This Row],[75th]]-AAMC_Raw_Data_for_FY22[[#This Row],[Median]])/25)*35) + AAMC_Raw_Data_for_FY22[[#This Row],[Median]]","v":131968.79999999999},{"$f":"(((AAMC_Raw_Data_for_FY22[[#This Row],[75th]]-AAMC_Raw_Data_for_FY22[[#This Row],[Median]])/25)*40) + AAMC_Raw_Data_for_FY22[[#This Row],[Median]]","v":135450.20000000001}]
[{"$f":"AAMC_Raw_Data_for_FY22[[#This Row],[Source]]&AAMC_Raw_Data_for_FY22[[#This Row],[Type]]&AAMC_Raw_Data_for_FY22[[#This Row],[School Subset]]&AAMC_Raw_Data_for_FY22[[#This Row],[Rank]]&AAMC_Raw_Data_for_FY22[[#This Row],[Degree]]&AAMC_Raw_Data_for_FY22[[#This Row],[Department / Specialty]]&\"L\"","v":"AAMCAcademicPrivateAssociatePhDHematology/Oncology-Peds.L"},"Hematology/Oncology-Peds.",3,"AAMC","Academic","Private","Associate","PhD","2021-2022",138090,{"$f":"(((AAMC_Raw_Data_for_FY22[[#This Row],[Median]]-AAMC_Raw_Data_for_FY22[[#This Row],[25th]])/25)*5) + AAMC_Raw_Data_for_FY22[[#This Row],[25th]]","v":143262.79999999999},{"$f":"(((AAMC_Raw_Data_for_FY22[[#This Row],[Median]]-AAMC_Raw_Data_for_FY22[[#This Row],[25th]])/25)*10) + AAMC_Raw_Data_for_FY22[[#This Row],[25th]]","v":148435.6},{"$f":"(((AAMC_Raw_Data_for_FY22[[#This Row],[Median]]-AAMC_Raw_Data_for_FY22[[#This Row],[25th]])/25)*15) + AAMC_Raw_Data_for_FY22[[#This Row],[25th]]","v":153608.4},{"$f":"(((AAMC_Raw_Data_for_FY22[[#This Row],[Median]]-AAMC_Raw_Data_for_FY22[[#This Row],[25th]])/25)*20) + AAMC_Raw_Data_for_FY22[[#This Row],[25th]]","v":158781.20000000001},163954,{"$f":"(((AAMC_Raw_Data_for_FY22[[#This Row],[75th]]-AAMC_Raw_Data_for_FY22[[#This Row],[Median]])/25)*5) + AAMC_Raw_Data_for_FY22[[#This Row],[Median]]","v":172084.6},{"$f":"(((AAMC_Raw_Data_for_FY22[[#This Row],[75th]]-AAMC_Raw_Data_for_FY22[[#This Row],[Median]])/25)*10) + AAMC_Raw_Data_for_FY22[[#This Row],[Median]]","v":180215.2},{"$f":"(((AAMC_Raw_Data_for_FY22[[#This Row],[75th]]-AAMC_Raw_Data_for_FY22[[#This Row],[Median]])/25)*15) + AAMC_Raw_Data_for_FY22[[#This Row],[Median]]","v":188345.8},{"$f":"(((AAMC_Raw_Data_for_FY22[[#This Row],[75th]]-AAMC_Raw_Data_for_FY22[[#This Row],[Median]])/25)*20) + AAMC_Raw_Data_for_FY22[[#This Row],[Median]]","v":196476.4},204607,{"$f":"(((AAMC_Raw_Data_for_FY22[[#This Row],[75th]]-AAMC_Raw_Data_for_FY22[[#This Row],[Median]])/25)*30) + AAMC_Raw_Data_for_FY22[[#This Row],[Median]]","v":212737.6},{"$f":"(((AAMC_Raw_Data_for_FY22[[#This Row],[75th]]-AAMC_Raw_Data_for_FY22[[#This Row],[Median]])/25)*35) + AAMC_Raw_Data_for_FY22[[#This Row],[Median]]","v":220868.2},{"$f":"(((AAMC_Raw_Data_for_FY22[[#This Row],[75th]]-AAMC_Raw_Data_for_FY22[[#This Row],[Median]])/25)*40) + AAMC_Raw_Data_for_FY22[[#This Row],[Median]]","v":228998.8}]
[{"$f":"AAMC_Raw_Data_for_FY22[[#This Row],[Source]]&AAMC_Raw_Data_for_FY22[[#This Row],[Type]]&AAMC_Raw_Data_for_FY22[[#This Row],[School Subset]]&AAMC_Raw_Data_for_FY22[[#This Row],[Rank]]&AAMC_Raw_Data_for_FY22[[#This Row],[Degree]]&AAMC_Raw_Data_for_FY22[[#This Row],[Department / Specialty]]&\"L\"","v":"AAMCAcademicPrivateProfessorPhDHematology/Oncology-Peds.L"},"Hematology/Oncology-Peds.",2,"AAMC","Academic","Private","Professor","PhD","2021-2022",234184,{"$f":"(((AAMC_Raw_Data_for_FY22[[#This Row],[Median]]-AAMC_Raw_Data_for_FY22[[#This Row],[25th]])/25)*5) + AAMC_Raw_Data_for_FY22[[#This Row],[25th]]","v":240301.8},{"$f":"(((AAMC_Raw_Data_for_FY22[[#This Row],[Median]]-AAMC_Raw_Data_for_FY22[[#This Row],[25th]])/25)*10) + AAMC_Raw_Data_for_FY22[[#This Row],[25th]]","v":246419.6},{"$f":"(((AAMC_Raw_Data_for_FY22[[#This Row],[Median]]-AAMC_Raw_Data_for_FY22[[#This Row],[25th]])/25)*15) + AAMC_Raw_Data_for_FY22[[#This Row],[25th]]","v":252537.4},{"$f":"(((AAMC_Raw_Data_for_FY22[[#This Row],[Median]]-AAMC_Raw_Data_for_FY22[[#This Row],[25th]])/25)*20) + AAMC_Raw_Data_for_FY22[[#This Row],[25th]]","v":258655.2},264773,{"$f":"(((AAMC_Raw_Data_for_FY22[[#This Row],[75th]]-AAMC_Raw_Data_for_FY22[[#This Row],[Median]])/25)*5) + AAMC_Raw_Data_for_FY22[[#This Row],[Median]]","v":273136.8},{"$f":"(((AAMC_Raw_Data_for_FY22[[#This Row],[75th]]-AAMC_Raw_Data_for_FY22[[#This Row],[Median]])/25)*10) + AAMC_Raw_Data_for_FY22[[#This Row],[Median]]","v":281500.59999999998},{"$f":"(((AAMC_Raw_Data_for_FY22[[#This Row],[75th]]-AAMC_Raw_Data_for_FY22[[#This Row],[Median]])/25)*15) + AAMC_Raw_Data_for_FY22[[#This Row],[Median]]","v":289864.40000000002},{"$f":"(((AAMC_Raw_Data_for_FY22[[#This Row],[75th]]-AAMC_Raw_Data_for_FY22[[#This Row],[Median]])/25)*20) + AAMC_Raw_Data_for_FY22[[#This Row],[Median]]","v":298228.2},306592,{"$f":"(((AAMC_Raw_Data_for_FY22[[#This Row],[75th]]-AAMC_Raw_Data_for_FY22[[#This Row],[Median]])/25)*30) + AAMC_Raw_Data_for_FY22[[#This Row],[Median]]","v":314955.8},{"$f":"(((AAMC_Raw_Data_for_FY22[[#This Row],[75th]]-AAMC_Raw_Data_for_FY22[[#This Row],[Median]])/25)*35) + AAMC_Raw_Data_for_FY22[[#This Row],[Median]]","v":323319.59999999998},{"$f":"(((AAMC_Raw_Data_for_FY22[[#This Row],[75th]]-AAMC_Raw_Data_for_FY22[[#This Row],[Median]])/25)*40) + AAMC_Raw_Data_for_FY22[[#This Row],[Median]]","v":331683.40000000002}]
[{"$f":"AAMC_Raw_Data_for_FY22[[#This Row],[Source]]&AAMC_Raw_Data_for_FY22[[#This Row],[Type]]&AAMC_Raw_Data_for_FY22[[#This Row],[School Subset]]&AAMC_Raw_Data_for_FY22[[#This Row],[Rank]]&AAMC_Raw_Data_for_FY22[[#This Row],[Degree]]&AAMC_Raw_Data_for_FY22[[#This Row],[Department / Specialty]]&\"L\"","v":"AAMCAcademicPrivateAssistantPhDHospital Medicine-Peds.L"},"Hospital Medicine-Peds.",4,"AAMC","Academic","Private","Assistant","PhD","2021-2022",null,{"$f":"(((AAMC_Raw_Data_for_FY22[[#This Row],[Median]]-AAMC_Raw_Data_for_FY22[[#This Row],[25th]])/25)*5) + AAMC_Raw_Data_for_FY22[[#This Row],[25th]]","v":0},{"$f":"(((AAMC_Raw_Data_for_FY22[[#This Row],[Median]]-AAMC_Raw_Data_for_FY22[[#This Row],[25th]])/25)*10) + AAMC_Raw_Data_for_FY22[[#This Row],[25th]]","v":0},{"$f":"(((AAMC_Raw_Data_for_FY22[[#This Row],[Median]]-AAMC_Raw_Data_for_FY22[[#This Row],[25th]])/25)*15) + AAMC_Raw_Data_for_FY22[[#This Row],[25th]]","v":0},{"$f":"(((AAMC_Raw_Data_for_FY22[[#This Row],[Median]]-AAMC_Raw_Data_for_FY22[[#This Row],[25th]])/25)*20) + AAMC_Raw_Data_for_FY22[[#This Row],[25th]]","v":0},null,{"$f":"(((AAMC_Raw_Data_for_FY22[[#This Row],[75th]]-AAMC_Raw_Data_for_FY22[[#This Row],[Median]])/25)*5) + AAMC_Raw_Data_for_FY22[[#This Row],[Median]]","v":0},{"$f":"(((AAMC_Raw_Data_for_FY22[[#This Row],[75th]]-AAMC_Raw_Data_for_FY22[[#This Row],[Median]])/25)*10) + AAMC_Raw_Data_for_FY22[[#This Row],[Median]]","v":0},{"$f":"(((AAMC_Raw_Data_for_FY22[[#This Row],[75th]]-AAMC_Raw_Data_for_FY22[[#This Row],[Median]])/25)*15) + AAMC_Raw_Data_for_FY22[[#This Row],[Median]]","v":0},{"$f":"(((AAMC_Raw_Data_for_FY22[[#This Row],[75th]]-AAMC_Raw_Data_for_FY22[[#This Row],[Median]])/25)*20) + AAMC_Raw_Data_for_FY22[[#This Row],[Median]]","v":0},null,{"$f":"(((AAMC_Raw_Data_for_FY22[[#This Row],[75th]]-AAMC_Raw_Data_for_FY22[[#This Row],[Median]])/25)*30) + AAMC_Raw_Data_for_FY22[[#This Row],[Median]]","v":0},{"$f":"(((AAMC_Raw_Data_for_FY22[[#This Row],[75th]]-AAMC_Raw_Data_for_FY22[[#This Row],[Median]])/25)*35) + AAMC_Raw_Data_for_FY22[[#This Row],[Median]]","v":0},{"$f":"(((AAMC_Raw_Data_for_FY22[[#This Row],[75th]]-AAMC_Raw_Data_for_FY22[[#This Row],[Median]])/25)*40) + AAMC_Raw_Data_for_FY22[[#This Row],[Median]]","v":0}]
[{"$f":"AAMC_Raw_Data_for_FY22[[#This Row],[Source]]&AAMC_Raw_Data_for_FY22[[#This Row],[Type]]&AAMC_Raw_Data_for_FY22[[#This Row],[School Subset]]&AAMC_Raw_Data_for_FY22[[#This Row],[Rank]]&AAMC_Raw_Data_for_FY22[[#This Row],[Degree]]&AAMC_Raw_Data_for_FY22[[#This Row],[Department / Specialty]]&\"L\"","v":"AAMCAcademicPrivateInstructorPhDInfectious Disease-Peds.L"},"Infectious Disease-Peds.",5,"AAMC","Academic","Private","Instructor","PhD","2021-2022",null,{"$f":"(((AAMC_Raw_Data_for_FY22[[#This Row],[Median]]-AAMC_Raw_Data_for_FY22[[#This Row],[25th]])/25)*5) + AAMC_Raw_Data_for_FY22[[#This Row],[25th]]","v":0},{"$f":"(((AAMC_Raw_Data_for_FY22[[#This Row],[Median]]-AAMC_Raw_Data_for_FY22[[#This Row],[25th]])/25)*10) + AAMC_Raw_Data_for_FY22[[#This Row],[25th]]","v":0},{"$f":"(((AAMC_Raw_Data_for_FY22[[#This Row],[Median]]-AAMC_Raw_Data_for_FY22[[#This Row],[25th]])/25)*15) + AAMC_Raw_Data_for_FY22[[#This Row],[25th]]","v":0},{"$f":"(((AAMC_Raw_Data_for_FY22[[#This Row],[Median]]-AAMC_Raw_Data_for_FY22[[#This Row],[25th]])/25)*20) + AAMC_Raw_Data_for_FY22[[#This Row],[25th]]","v":0},null,{"$f":"(((AAMC_Raw_Data_for_FY22[[#This Row],[75th]]-AAMC_Raw_Data_for_FY22[[#This Row],[Median]])/25)*5) + AAMC_Raw_Data_for_FY22[[#This Row],[Median]]","v":0},{"$f":"(((AAMC_Raw_Data_for_FY22[[#This Row],[75th]]-AAMC_Raw_Data_for_FY22[[#This Row],[Median]])/25)*10) + AAMC_Raw_Data_for_FY22[[#This Row],[Median]]","v":0},{"$f":"(((AAMC_Raw_Data_for_FY22[[#This Row],[75th]]-AAMC_Raw_Data_for_FY22[[#This Row],[Median]])/25)*15) + AAMC_Raw_Data_for_FY22[[#This Row],[Median]]","v":0},{"$f":"(((AAMC_Raw_Data_for_FY22[[#This Row],[75th]]-AAMC_Raw_Data_for_FY22[[#This Row],[Median]])/25)*20) + AAMC_Raw_Data_for_FY22[[#This Row],[Median]]","v":0},null,{"$f":"(((AAMC_Raw_Data_for_FY22[[#This Row],[75th]]-AAMC_Raw_Data_for_FY22[[#This Row],[Median]])/25)*30) + AAMC_Raw_Data_for_FY22[[#This Row],[Median]]","v":0},{"$f":"(((AAMC_Raw_Data_for_FY22[[#This Row],[75th]]-AAMC_Raw_Data_for_FY22[[#This Row],[Median]])/25)*35) + AAMC_Raw_Data_for_FY22[[#This Row],[Median]]","v":0},{"$f":"(((AAMC_Raw_Data_for_FY22[[#This Row],[75th]]-AAMC_Raw_Data_for_FY22[[#This Row],[Median]])/25)*40) + AAMC_Raw_Data_for_FY22[[#This Row],[Median]]","v":0}]
[{"$f":"AAMC_Raw_Data_for_FY22[[#This Row],[Source]]&AAMC_Raw_Data_for_FY22[[#This Row],[Type]]&AAMC_Raw_Data_for_FY22[[#This Row],[School Subset]]&AAMC_Raw_Data_for_FY22[[#This Row],[Rank]]&AAMC_Raw_Data_for_FY22[[#This Row],[Degree]]&AAMC_Raw_Data_for_FY22[[#This Row],[Department / Specialty]]&\"L\"","v":"AAMCAcademicPrivateAssistantPhDInfectious Disease-Peds.L"},"Infectious Disease-Peds.",4,"AAMC","Academic","Private","Assistant","PhD","2021-2022",95297,{"$f":"(((AAMC_Raw_Data_for_FY22[[#This Row],[Median]]-AAMC_Raw_Data_for_FY22[[#This Row],[25th]])/25)*5) + AAMC_Raw_Data_for_FY22[[#This Row],[25th]]","v":96293.2},{"$f":"(((AAMC_Raw_Data_for_FY22[[#This Row],[Median]]-AAMC_Raw_Data_for_FY22[[#This Row],[25th]])/25)*10) + AAMC_Raw_Data_for_FY22[[#This Row],[25th]]","v":97289.4},{"$f":"(((AAMC_Raw_Data_for_FY22[[#This Row],[Median]]-AAMC_Raw_Data_for_FY22[[#This Row],[25th]])/25)*15) + AAMC_Raw_Data_for_FY22[[#This Row],[25th]]","v":98285.6},{"$f":"(((AAMC_Raw_Data_for_FY22[[#This Row],[Median]]-AAMC_Raw_Data_for_FY22[[#This Row],[25th]])/25)*20) + AAMC_Raw_Data_for_FY22[[#This Row],[25th]]","v":99281.8},100278,{"$f":"(((AAMC_Raw_Data_for_FY22[[#This Row],[75th]]-AAMC_Raw_Data_for_FY22[[#This Row],[Median]])/25)*5) + AAMC_Raw_Data_for_FY22[[#This Row],[Median]]","v":103467.6},{"$f":"(((AAMC_Raw_Data_for_FY22[[#This Row],[75th]]-AAMC_Raw_Data_for_FY22[[#This Row],[Median]])/25)*10) + AAMC_Raw_Data_for_FY22[[#This Row],[Median]]","v":106657.2},{"$f":"(((AAMC_Raw_Data_for_FY22[[#This Row],[75th]]-AAMC_Raw_Data_for_FY22[[#This Row],[Median]])/25)*15) + AAMC_Raw_Data_for_FY22[[#This Row],[Median]]","v":109846.8},{"$f":"(((AAMC_Raw_Data_for_FY22[[#This Row],[75th]]-AAMC_Raw_Data_for_FY22[[#This Row],[Median]])/25)*20) + AAMC_Raw_Data_for_FY22[[#This Row],[Median]]","v":113036.4},116226,{"$f":"(((AAMC_Raw_Data_for_FY22[[#This Row],[75th]]-AAMC_Raw_Data_for_FY22[[#This Row],[Median]])/25)*30) + AAMC_Raw_Data_for_FY22[[#This Row],[Median]]","v":119415.6},{"$f":"(((AAMC_Raw_Data_for_FY22[[#This Row],[75th]]-AAMC_Raw_Data_for_FY22[[#This Row],[Median]])/25)*35) + AAMC_Raw_Data_for_FY22[[#This Row],[Median]]","v":122605.2},{"$f":"(((AAMC_Raw_Data_for_FY22[[#This Row],[75th]]-AAMC_Raw_Data_for_FY22[[#This Row],[Median]])/25)*40) + AAMC_Raw_Data_for_FY22[[#This Row],[Median]]","v":125794.8}]
[{"$f":"AAMC_Raw_Data_for_FY22[[#This Row],[Source]]&AAMC_Raw_Data_for_FY22[[#This Row],[Type]]&AAMC_Raw_Data_for_FY22[[#This Row],[School Subset]]&AAMC_Raw_Data_for_FY22[[#This Row],[Rank]]&AAMC_Raw_Data_for_FY22[[#This Row],[Degree]]&AAMC_Raw_Data_for_FY22[[#This Row],[Department / Specialty]]&\"L\"","v":"AAMCAcademicPrivateAssociatePhDInfectious Disease-Peds.L"},"Infectious Disease-Peds.",3,"AAMC","Academic","Private","Associate","PhD","2021-2022",125612,{"$f":"(((AAMC_Raw_Data_for_FY22[[#This Row],[Median]]-AAMC_Raw_Data_for_FY22[[#This Row],[25th]])/25)*5) + AAMC_Raw_Data_for_FY22[[#This Row],[25th]]","v":129122.2},{"$f":"(((AAMC_Raw_Data_for_FY22[[#This Row],[Median]]-AAMC_Raw_Data_for_FY22[[#This Row],[25th]])/25)*10) + AAMC_Raw_Data_for_FY22[[#This Row],[25th]]","v":132632.4},{"$f":"(((AAMC_Raw_Data_for_FY22[[#This Row],[Median]]-AAMC_Raw_Data_for_FY22[[#This Row],[25th]])/25)*15) + AAMC_Raw_Data_for_FY22[[#This Row],[25th]]","v":136142.6},{"$f":"(((AAMC_Raw_Data_for_FY22[[#This Row],[Median]]-AAMC_Raw_Data_for_FY22[[#This Row],[25th]])/25)*20) + AAMC_Raw_Data_for_FY22[[#This Row],[25th]]","v":139652.79999999999},143163,{"$f":"(((AAMC_Raw_Data_for_FY22[[#This Row],[75th]]-AAMC_Raw_Data_for_FY22[[#This Row],[Median]])/25)*5) + AAMC_Raw_Data_for_FY22[[#This Row],[Median]]","v":144441.20000000001},{"$f":"(((AAMC_Raw_Data_for_FY22[[#This Row],[75th]]-AAMC_Raw_Data_for_FY22[[#This Row],[Median]])/25)*10) + AAMC_Raw_Data_for_FY22[[#This Row],[Median]]","v":145719.4},{"$f":"(((AAMC_Raw_Data_for_FY22[[#This Row],[75th]]-AAMC_Raw_Data_for_FY22[[#This Row],[Median]])/25)*15) + AAMC_Raw_Data_for_FY22[[#This Row],[Median]]","v":146997.6},{"$f":"(((AAMC_Raw_Data_for_FY22[[#This Row],[75th]]-AAMC_Raw_Data_for_FY22[[#This Row],[Median]])/25)*20) + AAMC_Raw_Data_for_FY22[[#This Row],[Median]]","v":148275.79999999999},149554,{"$f":"(((AAMC_Raw_Data_for_FY22[[#This Row],[75th]]-AAMC_Raw_Data_for_FY22[[#This Row],[Median]])/25)*30) + AAMC_Raw_Data_for_FY22[[#This Row],[Median]]","v":150832.20000000001},{"$f":"(((AAMC_Raw_Data_for_FY22[[#This Row],[75th]]-AAMC_Raw_Data_for_FY22[[#This Row],[Median]])/25)*35) + AAMC_Raw_Data_for_FY22[[#This Row],[Median]]","v":152110.39999999999},{"$f":"(((AAMC_Raw_Data_for_FY22[[#This Row],[75th]]-AAMC_Raw_Data_for_FY22[[#This Row],[Median]])/25)*40) + AAMC_Raw_Data_for_FY22[[#This Row],[Median]]","v":153388.6}]
[{"$f":"AAMC_Raw_Data_for_FY22[[#This Row],[Source]]&AAMC_Raw_Data_for_FY22[[#This Row],[Type]]&AAMC_Raw_Data_for_FY22[[#This Row],[School Subset]]&AAMC_Raw_Data_for_FY22[[#This Row],[Rank]]&AAMC_Raw_Data_for_FY22[[#This Row],[Degree]]&AAMC_Raw_Data_for_FY22[[#This Row],[Department / Specialty]]&\"L\"","v":"AAMCAcademicPrivateProfessorPhDInfectious Disease-Peds.L"},"Infectious Disease-Peds.",2,"AAMC","Academic","Private","Professor","PhD","2021-2022",null,{"$f":"(((AAMC_Raw_Data_for_FY22[[#This Row],[Median]]-AAMC_Raw_Data_for_FY22[[#This Row],[25th]])/25)*5) + AAMC_Raw_Data_for_FY22[[#This Row],[25th]]","v":0},{"$f":"(((AAMC_Raw_Data_for_FY22[[#This Row],[Median]]-AAMC_Raw_Data_for_FY22[[#This Row],[25th]])/25)*10) + AAMC_Raw_Data_for_FY22[[#This Row],[25th]]","v":0},{"$f":"(((AAMC_Raw_Data_for_FY22[[#This Row],[Median]]-AAMC_Raw_Data_for_FY22[[#This Row],[25th]])/25)*15) + AAMC_Raw_Data_for_FY22[[#This Row],[25th]]","v":0},{"$f":"(((AAMC_Raw_Data_for_FY22[[#This Row],[Median]]-AAMC_Raw_Data_for_FY22[[#This Row],[25th]])/25)*20) + AAMC_Raw_Data_for_FY22[[#This Row],[25th]]","v":0},null,{"$f":"(((AAMC_Raw_Data_for_FY22[[#This Row],[75th]]-AAMC_Raw_Data_for_FY22[[#This Row],[Median]])/25)*5) + AAMC_Raw_Data_for_FY22[[#This Row],[Median]]","v":0},{"$f":"(((AAMC_Raw_Data_for_FY22[[#This Row],[75th]]-AAMC_Raw_Data_for_FY22[[#This Row],[Median]])/25)*10) + AAMC_Raw_Data_for_FY22[[#This Row],[Median]]","v":0},{"$f":"(((AAMC_Raw_Data_for_FY22[[#This Row],[75th]]-AAMC_Raw_Data_for_FY22[[#This Row],[Median]])/25)*15) + AAMC_Raw_Data_for_FY22[[#This Row],[Median]]","v":0},{"$f":"(((AAMC_Raw_Data_for_FY22[[#This Row],[75th]]-AAMC_Raw_Data_for_FY22[[#This Row],[Median]])/25)*20) + AAMC_Raw_Data_for_FY22[[#This Row],[Median]]","v":0},null,{"$f":"(((AAMC_Raw_Data_for_FY22[[#This Row],[75th]]-AAMC_Raw_Data_for_FY22[[#This Row],[Median]])/25)*30) + AAMC_Raw_Data_for_FY22[[#This Row],[Median]]","v":0},{"$f":"(((AAMC_Raw_Data_for_FY22[[#This Row],[75th]]-AAMC_Raw_Data_for_FY22[[#This Row],[Median]])/25)*35) + AAMC_Raw_Data_for_FY22[[#This Row],[Median]]","v":0},{"$f":"(((AAMC_Raw_Data_for_FY22[[#This Row],[75th]]-AAMC_Raw_Data_for_FY22[[#This Row],[Median]])/25)*40) + AAMC_Raw_Data_for_FY22[[#This Row],[Median]]","v":0}]
[{"$f":"AAMC_Raw_Data_for_FY22[[#This Row],[Source]]&AAMC_Raw_Data_for_FY22[[#This Row],[Type]]&AAMC_Raw_Data_for_FY22[[#This Row],[School Subset]]&AAMC_Raw_Data_for_FY22[[#This Row],[Rank]]&AAMC_Raw_Data_for_FY22[[#This Row],[Degree]]&AAMC_Raw_Data_for_FY22[[#This Row],[Department / Specialty]]&\"L\"","v":"AAMCAcademicPrivateInstructorPhDNeonatologyL"},"Neonatology",5,"AAMC","Academic","Private","Instructor","PhD","2021-2022",null,{"$f":"(((AAMC_Raw_Data_for_FY22[[#This Row],[Median]]-AAMC_Raw_Data_for_FY22[[#This Row],[25th]])/25)*5) + AAMC_Raw_Data_for_FY22[[#This Row],[25th]]","v":0},{"$f":"(((AAMC_Raw_Data_for_FY22[[#This Row],[Median]]-AAMC_Raw_Data_for_FY22[[#This Row],[25th]])/25)*10) + AAMC_Raw_Data_for_FY22[[#This Row],[25th]]","v":0},{"$f":"(((AAMC_Raw_Data_for_FY22[[#This Row],[Median]]-AAMC_Raw_Data_for_FY22[[#This Row],[25th]])/25)*15) + AAMC_Raw_Data_for_FY22[[#This Row],[25th]]","v":0},{"$f":"(((AAMC_Raw_Data_for_FY22[[#This Row],[Median]]-AAMC_Raw_Data_for_FY22[[#This Row],[25th]])/25)*20) + AAMC_Raw_Data_for_FY22[[#This Row],[25th]]","v":0},null,{"$f":"(((AAMC_Raw_Data_for_FY22[[#This Row],[75th]]-AAMC_Raw_Data_for_FY22[[#This Row],[Median]])/25)*5) + AAMC_Raw_Data_for_FY22[[#This Row],[Median]]","v":0},{"$f":"(((AAMC_Raw_Data_for_FY22[[#This Row],[75th]]-AAMC_Raw_Data_for_FY22[[#This Row],[Median]])/25)*10) + AAMC_Raw_Data_for_FY22[[#This Row],[Median]]","v":0},{"$f":"(((AAMC_Raw_Data_for_FY22[[#This Row],[75th]]-AAMC_Raw_Data_for_FY22[[#This Row],[Median]])/25)*15) + AAMC_Raw_Data_for_FY22[[#This Row],[Median]]","v":0},{"$f":"(((AAMC_Raw_Data_for_FY22[[#This Row],[75th]]-AAMC_Raw_Data_for_FY22[[#This Row],[Median]])/25)*20) + AAMC_Raw_Data_for_FY22[[#This Row],[Median]]","v":0},null,{"$f":"(((AAMC_Raw_Data_for_FY22[[#This Row],[75th]]-AAMC_Raw_Data_for_FY22[[#This Row],[Median]])/25)*30) + AAMC_Raw_Data_for_FY22[[#This Row],[Median]]","v":0},{"$f":"(((AAMC_Raw_Data_for_FY22[[#This Row],[75th]]-AAMC_Raw_Data_for_FY22[[#This Row],[Median]])/25)*35) + AAMC_Raw_Data_for_FY22[[#This Row],[Median]]","v":0},{"$f":"(((AAMC_Raw_Data_for_FY22[[#This Row],[75th]]-AAMC_Raw_Data_for_FY22[[#This Row],[Median]])/25)*40) + AAMC_Raw_Data_for_FY22[[#This Row],[Median]]","v":0}]
[{"$f":"AAMC_Raw_Data_for_FY22[[#This Row],[Source]]&AAMC_Raw_Data_for_FY22[[#This Row],[Type]]&AAMC_Raw_Data_for_FY22[[#This Row],[School Subset]]&AAMC_Raw_Data_for_FY22[[#This Row],[Rank]]&AAMC_Raw_Data_for_FY22[[#This Row],[Degree]]&AAMC_Raw_Data_for_FY22[[#This Row],[Department / Specialty]]&\"L\"","v":"AAMCAcademicPrivateAssistantPhDNeonatologyL"},"Neonatology",4,"AAMC","Academic","Private","Assistant","PhD","2021-2022",83524,{"$f":"(((AAMC_Raw_Data_for_FY22[[#This Row],[Median]]-AAMC_Raw_Data_for_FY22[[#This Row],[25th]])/25)*5) + AAMC_Raw_Data_for_FY22[[#This Row],[25th]]","v":89360.6},{"$f":"(((AAMC_Raw_Data_for_FY22[[#This Row],[Median]]-AAMC_Raw_Data_for_FY22[[#This Row],[25th]])/25)*10) + AAMC_Raw_Data_for_FY22[[#This Row],[25th]]","v":95197.2},{"$f":"(((AAMC_Raw_Data_for_FY22[[#This Row],[Median]]-AAMC_Raw_Data_for_FY22[[#This Row],[25th]])/25)*15) + AAMC_Raw_Data_for_FY22[[#This Row],[25th]]","v":101033.8},{"$f":"(((AAMC_Raw_Data_for_FY22[[#This Row],[Median]]-AAMC_Raw_Data_for_FY22[[#This Row],[25th]])/25)*20) + AAMC_Raw_Data_for_FY22[[#This Row],[25th]]","v":106870.39999999999},112707,{"$f":"(((AAMC_Raw_Data_for_FY22[[#This Row],[75th]]-AAMC_Raw_Data_for_FY22[[#This Row],[Median]])/25)*5) + AAMC_Raw_Data_for_FY22[[#This Row],[Median]]","v":118491},{"$f":"(((AAMC_Raw_Data_for_FY22[[#This Row],[75th]]-AAMC_Raw_Data_for_FY22[[#This Row],[Median]])/25)*10) + AAMC_Raw_Data_for_FY22[[#This Row],[Median]]","v":124275},{"$f":"(((AAMC_Raw_Data_for_FY22[[#This Row],[75th]]-AAMC_Raw_Data_for_FY22[[#This Row],[Median]])/25)*15) + AAMC_Raw_Data_for_FY22[[#This Row],[Median]]","v":130059},{"$f":"(((AAMC_Raw_Data_for_FY22[[#This Row],[75th]]-AAMC_Raw_Data_for_FY22[[#This Row],[Median]])/25)*20) + AAMC_Raw_Data_for_FY22[[#This Row],[Median]]","v":135843},141627,{"$f":"(((AAMC_Raw_Data_for_FY22[[#This Row],[75th]]-AAMC_Raw_Data_for_FY22[[#This Row],[Median]])/25)*30) + AAMC_Raw_Data_for_FY22[[#This Row],[Median]]","v":147411},{"$f":"(((AAMC_Raw_Data_for_FY22[[#This Row],[75th]]-AAMC_Raw_Data_for_FY22[[#This Row],[Median]])/25)*35) + AAMC_Raw_Data_for_FY22[[#This Row],[Median]]","v":153195},{"$f":"(((AAMC_Raw_Data_for_FY22[[#This Row],[75th]]-AAMC_Raw_Data_for_FY22[[#This Row],[Median]])/25)*40) + AAMC_Raw_Data_for_FY22[[#This Row],[Median]]","v":158979}]
[{"$f":"AAMC_Raw_Data_for_FY22[[#This Row],[Source]]&AAMC_Raw_Data_for_FY22[[#This Row],[Type]]&AAMC_Raw_Data_for_FY22[[#This Row],[School Subset]]&AAMC_Raw_Data_for_FY22[[#This Row],[Rank]]&AAMC_Raw_Data_for_FY22[[#This Row],[Degree]]&AAMC_Raw_Data_for_FY22[[#This Row],[Department / Specialty]]&\"L\"","v":"AAMCAcademicPrivateAssociatePhDNeonatologyL"},"Neonatology",3,"AAMC","Academic","Private","Associate","PhD","2021-2022",130110,{"$f":"(((AAMC_Raw_Data_for_FY22[[#This Row],[Median]]-AAMC_Raw_Data_for_FY22[[#This Row],[25th]])/25)*5) + AAMC_Raw_Data_for_FY22[[#This Row],[25th]]","v":134356.79999999999},{"$f":"(((AAMC_Raw_Data_for_FY22[[#This Row],[Median]]-AAMC_Raw_Data_for_FY22[[#This Row],[25th]])/25)*10) + AAMC_Raw_Data_for_FY22[[#This Row],[25th]]","v":138603.6},{"$f":"(((AAMC_Raw_Data_for_FY22[[#This Row],[Median]]-AAMC_Raw_Data_for_FY22[[#This Row],[25th]])/25)*15) + AAMC_Raw_Data_for_FY22[[#This Row],[25th]]","v":142850.4},{"$f":"(((AAMC_Raw_Data_for_FY22[[#This Row],[Median]]-AAMC_Raw_Data_for_FY22[[#This Row],[25th]])/25)*20) + AAMC_Raw_Data_for_FY22[[#This Row],[25th]]","v":147097.20000000001},151344,{"$f":"(((AAMC_Raw_Data_for_FY22[[#This Row],[75th]]-AAMC_Raw_Data_for_FY22[[#This Row],[Median]])/25)*5) + AAMC_Raw_Data_for_FY22[[#This Row],[Median]]","v":158327.4},{"$f":"(((AAMC_Raw_Data_for_FY22[[#This Row],[75th]]-AAMC_Raw_Data_for_FY22[[#This Row],[Median]])/25)*10) + AAMC_Raw_Data_for_FY22[[#This Row],[Median]]","v":165310.79999999999},{"$f":"(((AAMC_Raw_Data_for_FY22[[#This Row],[75th]]-AAMC_Raw_Data_for_FY22[[#This Row],[Median]])/25)*15) + AAMC_Raw_Data_for_FY22[[#This Row],[Median]]","v":172294.2},{"$f":"(((AAMC_Raw_Data_for_FY22[[#This Row],[75th]]-AAMC_Raw_Data_for_FY22[[#This Row],[Median]])/25)*20) + AAMC_Raw_Data_for_FY22[[#This Row],[Median]]","v":179277.6},186261,{"$f":"(((AAMC_Raw_Data_for_FY22[[#This Row],[75th]]-AAMC_Raw_Data_for_FY22[[#This Row],[Median]])/25)*30) + AAMC_Raw_Data_for_FY22[[#This Row],[Median]]","v":193244.4},{"$f":"(((AAMC_Raw_Data_for_FY22[[#This Row],[75th]]-AAMC_Raw_Data_for_FY22[[#This Row],[Median]])/25)*35) + AAMC_Raw_Data_for_FY22[[#This Row],[Median]]","v":200227.8},{"$f":"(((AAMC_Raw_Data_for_FY22[[#This Row],[75th]]-AAMC_Raw_Data_for_FY22[[#This Row],[Median]])/25)*40) + AAMC_Raw_Data_for_FY22[[#This Row],[Median]]","v":207211.2}]
[{"$f":"AAMC_Raw_Data_for_FY22[[#This Row],[Source]]&AAMC_Raw_Data_for_FY22[[#This Row],[Type]]&AAMC_Raw_Data_for_FY22[[#This Row],[School Subset]]&AAMC_Raw_Data_for_FY22[[#This Row],[Rank]]&AAMC_Raw_Data_for_FY22[[#This Row],[Degree]]&AAMC_Raw_Data_for_FY22[[#This Row],[Department / Specialty]]&\"L\"","v":"AAMCAcademicPrivateProfessorPhDNeonatologyL"},"Neonatology",2,"AAMC","Academic","Private","Professor","PhD","2021-2022",150948,{"$f":"(((AAMC_Raw_Data_for_FY22[[#This Row],[Median]]-AAMC_Raw_Data_for_FY22[[#This Row],[25th]])/25)*5) + AAMC_Raw_Data_for_FY22[[#This Row],[25th]]","v":163861.20000000001},{"$f":"(((AAMC_Raw_Data_for_FY22[[#This Row],[Median]]-AAMC_Raw_Data_for_FY22[[#This Row],[25th]])/25)*10) + AAMC_Raw_Data_for_FY22[[#This Row],[25th]]","v":176774.39999999999},{"$f":"(((AAMC_Raw_Data_for_FY22[[#This Row],[Median]]-AAMC_Raw_Data_for_FY22[[#This Row],[25th]])/25)*15) + AAMC_Raw_Data_for_FY22[[#This Row],[25th]]","v":189687.6},{"$f":"(((AAMC_Raw_Data_for_FY22[[#This Row],[Median]]-AAMC_Raw_Data_for_FY22[[#This Row],[25th]])/25)*20) + AAMC_Raw_Data_for_FY22[[#This Row],[25th]]","v":202600.8},215514,{"$f":"(((AAMC_Raw_Data_for_FY22[[#This Row],[75th]]-AAMC_Raw_Data_for_FY22[[#This Row],[Median]])/25)*5) + AAMC_Raw_Data_for_FY22[[#This Row],[Median]]","v":221424.8},{"$f":"(((AAMC_Raw_Data_for_FY22[[#This Row],[75th]]-AAMC_Raw_Data_for_FY22[[#This Row],[Median]])/25)*10) + AAMC_Raw_Data_for_FY22[[#This Row],[Median]]","v":227335.6},{"$f":"(((AAMC_Raw_Data_for_FY22[[#This Row],[75th]]-AAMC_Raw_Data_for_FY22[[#This Row],[Median]])/25)*15) + AAMC_Raw_Data_for_FY22[[#This Row],[Median]]","v":233246.4},{"$f":"(((AAMC_Raw_Data_for_FY22[[#This Row],[75th]]-AAMC_Raw_Data_for_FY22[[#This Row],[Median]])/25)*20) + AAMC_Raw_Data_for_FY22[[#This Row],[Median]]","v":239157.2},245068,{"$f":"(((AAMC_Raw_Data_for_FY22[[#This Row],[75th]]-AAMC_Raw_Data_for_FY22[[#This Row],[Median]])/25)*30) + AAMC_Raw_Data_for_FY22[[#This Row],[Median]]","v":250978.8},{"$f":"(((AAMC_Raw_Data_for_FY22[[#This Row],[75th]]-AAMC_Raw_Data_for_FY22[[#This Row],[Median]])/25)*35) + AAMC_Raw_Data_for_FY22[[#This Row],[Median]]","v":256889.60000000001},{"$f":"(((AAMC_Raw_Data_for_FY22[[#This Row],[75th]]-AAMC_Raw_Data_for_FY22[[#This Row],[Median]])/25)*40) + AAMC_Raw_Data_for_FY22[[#This Row],[Median]]","v":262800.40000000002}]
[{"$f":"AAMC_Raw_Data_for_FY22[[#This Row],[Source]]&AAMC_Raw_Data_for_FY22[[#This Row],[Type]]&AAMC_Raw_Data_for_FY22[[#This Row],[School Subset]]&AAMC_Raw_Data_for_FY22[[#This Row],[Rank]]&AAMC_Raw_Data_for_FY22[[#This Row],[Degree]]&AAMC_Raw_Data_for_FY22[[#This Row],[Department / Specialty]]&\"L\"","v":"AAMCAcademicPrivateAssistantPhDNephrology-Peds.L"},"Nephrology-Peds.",4,"AAMC","Academic","Private","Assistant","PhD","2021-2022",null,{"$f":"(((AAMC_Raw_Data_for_FY22[[#This Row],[Median]]-AAMC_Raw_Data_for_FY22[[#This Row],[25th]])/25)*5) + AAMC_Raw_Data_for_FY22[[#This Row],[25th]]","v":0},{"$f":"(((AAMC_Raw_Data_for_FY22[[#This Row],[Median]]-AAMC_Raw_Data_for_FY22[[#This Row],[25th]])/25)*10) + AAMC_Raw_Data_for_FY22[[#This Row],[25th]]","v":0},{"$f":"(((AAMC_Raw_Data_for_FY22[[#This Row],[Median]]-AAMC_Raw_Data_for_FY22[[#This Row],[25th]])/25)*15) + AAMC_Raw_Data_for_FY22[[#This Row],[25th]]","v":0},{"$f":"(((AAMC_Raw_Data_for_FY22[[#This Row],[Median]]-AAMC_Raw_Data_for_FY22[[#This Row],[25th]])/25)*20) + AAMC_Raw_Data_for_FY22[[#This Row],[25th]]","v":0},null,{"$f":"(((AAMC_Raw_Data_for_FY22[[#This Row],[75th]]-AAMC_Raw_Data_for_FY22[[#This Row],[Median]])/25)*5) + AAMC_Raw_Data_for_FY22[[#This Row],[Median]]","v":0},{"$f":"(((AAMC_Raw_Data_for_FY22[[#This Row],[75th]]-AAMC_Raw_Data_for_FY22[[#This Row],[Median]])/25)*10) + AAMC_Raw_Data_for_FY22[[#This Row],[Median]]","v":0},{"$f":"(((AAMC_Raw_Data_for_FY22[[#This Row],[75th]]-AAMC_Raw_Data_for_FY22[[#This Row],[Median]])/25)*15) + AAMC_Raw_Data_for_FY22[[#This Row],[Median]]","v":0},{"$f":"(((AAMC_Raw_Data_for_FY22[[#This Row],[75th]]-AAMC_Raw_Data_for_FY22[[#This Row],[Median]])/25)*20) + AAMC_Raw_Data_for_FY22[[#This Row],[Median]]","v":0},null,{"$f":"(((AAMC_Raw_Data_for_FY22[[#This Row],[75th]]-AAMC_Raw_Data_for_FY22[[#This Row],[Median]])/25)*30) + AAMC_Raw_Data_for_FY22[[#This Row],[Median]]","v":0},{"$f":"(((AAMC_Raw_Data_for_FY22[[#This Row],[75th]]-AAMC_Raw_Data_for_FY22[[#This Row],[Median]])/25)*35) + AAMC_Raw_Data_for_FY22[[#This Row],[Median]]","v":0},{"$f":"(((AAMC_Raw_Data_for_FY22[[#This Row],[75th]]-AAMC_Raw_Data_for_FY22[[#This Row],[Median]])/25)*40) + AAMC_Raw_Data_for_FY22[[#This Row],[Median]]","v":0}]
[{"$f":"AAMC_Raw_Data_for_FY22[[#This Row],[Source]]&AAMC_Raw_Data_for_FY22[[#This Row],[Type]]&AAMC_Raw_Data_for_FY22[[#This Row],[School Subset]]&AAMC_Raw_Data_for_FY22[[#This Row],[Rank]]&AAMC_Raw_Data_for_FY22[[#This Row],[Degree]]&AAMC_Raw_Data_for_FY22[[#This Row],[Department / Specialty]]&\"L\"","v":"AAMCAcademicPrivateAssociatePhDNephrology-Peds.L"},"Nephrology-Peds.",3,"AAMC","Academic","Private","Associate","PhD","2021-2022",null,{"$f":"(((AAMC_Raw_Data_for_FY22[[#This Row],[Median]]-AAMC_Raw_Data_for_FY22[[#This Row],[25th]])/25)*5) + AAMC_Raw_Data_for_FY22[[#This Row],[25th]]","v":0},{"$f":"(((AAMC_Raw_Data_for_FY22[[#This Row],[Median]]-AAMC_Raw_Data_for_FY22[[#This Row],[25th]])/25)*10) + AAMC_Raw_Data_for_FY22[[#This Row],[25th]]","v":0},{"$f":"(((AAMC_Raw_Data_for_FY22[[#This Row],[Median]]-AAMC_Raw_Data_for_FY22[[#This Row],[25th]])/25)*15) + AAMC_Raw_Data_for_FY22[[#This Row],[25th]]","v":0},{"$f":"(((AAMC_Raw_Data_for_FY22[[#This Row],[Median]]-AAMC_Raw_Data_for_FY22[[#This Row],[25th]])/25)*20) + AAMC_Raw_Data_for_FY22[[#This Row],[25th]]","v":0},null,{"$f":"(((AAMC_Raw_Data_for_FY22[[#This Row],[75th]]-AAMC_Raw_Data_for_FY22[[#This Row],[Median]])/25)*5) + AAMC_Raw_Data_for_FY22[[#This Row],[Median]]","v":0},{"$f":"(((AAMC_Raw_Data_for_FY22[[#This Row],[75th]]-AAMC_Raw_Data_for_FY22[[#This Row],[Median]])/25)*10) + AAMC_Raw_Data_for_FY22[[#This Row],[Median]]","v":0},{"$f":"(((AAMC_Raw_Data_for_FY22[[#This Row],[75th]]-AAMC_Raw_Data_for_FY22[[#This Row],[Median]])/25)*15) + AAMC_Raw_Data_for_FY22[[#This Row],[Median]]","v":0},{"$f":"(((AAMC_Raw_Data_for_FY22[[#This Row],[75th]]-AAMC_Raw_Data_for_FY22[[#This Row],[Median]])/25)*20) + AAMC_Raw_Data_for_FY22[[#This Row],[Median]]","v":0},null,{"$f":"(((AAMC_Raw_Data_for_FY22[[#This Row],[75th]]-AAMC_Raw_Data_for_FY22[[#This Row],[Median]])/25)*30) + AAMC_Raw_Data_for_FY22[[#This Row],[Median]]","v":0},{"$f":"(((AAMC_Raw_Data_for_FY22[[#This Row],[75th]]-AAMC_Raw_Data_for_FY22[[#This Row],[Median]])/25)*35) + AAMC_Raw_Data_for_FY22[[#This Row],[Median]]","v":0},{"$f":"(((AAMC_Raw_Data_for_FY22[[#This Row],[75th]]-AAMC_Raw_Data_for_FY22[[#This Row],[Median]])/25)*40) + AAMC_Raw_Data_for_FY22[[#This Row],[Median]]","v":0}]
[{"$f":"AAMC_Raw_Data_for_FY22[[#This Row],[Source]]&AAMC_Raw_Data_for_FY22[[#This Row],[Type]]&AAMC_Raw_Data_for_FY22[[#This Row],[School Subset]]&AAMC_Raw_Data_for_FY22[[#This Row],[Rank]]&AAMC_Raw_Data_for_FY22[[#This Row],[Degree]]&AAMC_Raw_Data_for_FY22[[#This Row],[Department / Specialty]]&\"L\"","v":"AAMCAcademicPrivateChiefPhDNephrology-Peds.L"},"Nephrology-Peds.",6,"AAMC","Academic","Private","Chief","PhD","2021-2022",null,{"$f":"(((AAMC_Raw_Data_for_FY22[[#This Row],[Median]]-AAMC_Raw_Data_for_FY22[[#This Row],[25th]])/25)*5) + AAMC_Raw_Data_for_FY22[[#This Row],[25th]]","v":0},{"$f":"(((AAMC_Raw_Data_for_FY22[[#This Row],[Median]]-AAMC_Raw_Data_for_FY22[[#This Row],[25th]])/25)*10) + AAMC_Raw_Data_for_FY22[[#This Row],[25th]]","v":0},{"$f":"(((AAMC_Raw_Data_for_FY22[[#This Row],[Median]]-AAMC_Raw_Data_for_FY22[[#This Row],[25th]])/25)*15) + AAMC_Raw_Data_for_FY22[[#This Row],[25th]]","v":0},{"$f":"(((AAMC_Raw_Data_for_FY22[[#This Row],[Median]]-AAMC_Raw_Data_for_FY22[[#This Row],[25th]])/25)*20) + AAMC_Raw_Data_for_FY22[[#This Row],[25th]]","v":0},null,{"$f":"(((AAMC_Raw_Data_for_FY22[[#This Row],[75th]]-AAMC_Raw_Data_for_FY22[[#This Row],[Median]])/25)*5) + AAMC_Raw_Data_for_FY22[[#This Row],[Median]]","v":0},{"$f":"(((AAMC_Raw_Data_for_FY22[[#This Row],[75th]]-AAMC_Raw_Data_for_FY22[[#This Row],[Median]])/25)*10) + AAMC_Raw_Data_for_FY22[[#This Row],[Median]]","v":0},{"$f":"(((AAMC_Raw_Data_for_FY22[[#This Row],[75th]]-AAMC_Raw_Data_for_FY22[[#This Row],[Median]])/25)*15) + AAMC_Raw_Data_for_FY22[[#This Row],[Median]]","v":0},{"$f":"(((AAMC_Raw_Data_for_FY22[[#This Row],[75th]]-AAMC_Raw_Data_for_FY22[[#This Row],[Median]])/25)*20) + AAMC_Raw_Data_for_FY22[[#This Row],[Median]]","v":0},null,{"$f":"(((AAMC_Raw_Data_for_FY22[[#This Row],[75th]]-AAMC_Raw_Data_for_FY22[[#This Row],[Median]])/25)*30) + AAMC_Raw_Data_for_FY22[[#This Row],[Median]]","v":0},{"$f":"(((AAMC_Raw_Data_for_FY22[[#This Row],[75th]]-AAMC_Raw_Data_for_FY22[[#This Row],[Median]])/25)*35) + AAMC_Raw_Data_for_FY22[[#This Row],[Median]]","v":0},{"$f":"(((AAMC_Raw_Data_for_FY22[[#This Row],[75th]]-AAMC_Raw_Data_for_FY22[[#This Row],[Median]])/25)*40) + AAMC_Raw_Data_for_FY22[[#This Row],[Median]]","v":0}]
[{"$f":"AAMC_Raw_Data_for_FY22[[#This Row],[Source]]&AAMC_Raw_Data_for_FY22[[#This Row],[Type]]&AAMC_Raw_Data_for_FY22[[#This Row],[School Subset]]&AAMC_Raw_Data_for_FY22[[#This Row],[Rank]]&AAMC_Raw_Data_for_FY22[[#This Row],[Degree]]&AAMC_Raw_Data_for_FY22[[#This Row],[Department / Specialty]]&\"L\"","v":"AAMCAcademicPrivateInstructorPhDNeurology-Peds.L"},"Neurology-Peds.",5,"AAMC","Academic","Private","Instructor","PhD","2021-2022",null,{"$f":"(((AAMC_Raw_Data_for_FY22[[#This Row],[Median]]-AAMC_Raw_Data_for_FY22[[#This Row],[25th]])/25)*5) + AAMC_Raw_Data_for_FY22[[#This Row],[25th]]","v":0},{"$f":"(((AAMC_Raw_Data_for_FY22[[#This Row],[Median]]-AAMC_Raw_Data_for_FY22[[#This Row],[25th]])/25)*10) + AAMC_Raw_Data_for_FY22[[#This Row],[25th]]","v":0},{"$f":"(((AAMC_Raw_Data_for_FY22[[#This Row],[Median]]-AAMC_Raw_Data_for_FY22[[#This Row],[25th]])/25)*15) + AAMC_Raw_Data_for_FY22[[#This Row],[25th]]","v":0},{"$f":"(((AAMC_Raw_Data_for_FY22[[#This Row],[Median]]-AAMC_Raw_Data_for_FY22[[#This Row],[25th]])/25)*20) + AAMC_Raw_Data_for_FY22[[#This Row],[25th]]","v":0},null,{"$f":"(((AAMC_Raw_Data_for_FY22[[#This Row],[75th]]-AAMC_Raw_Data_for_FY22[[#This Row],[Median]])/25)*5) + AAMC_Raw_Data_for_FY22[[#This Row],[Median]]","v":0},{"$f":"(((AAMC_Raw_Data_for_FY22[[#This Row],[75th]]-AAMC_Raw_Data_for_FY22[[#This Row],[Median]])/25)*10) + AAMC_Raw_Data_for_FY22[[#This Row],[Median]]","v":0},{"$f":"(((AAMC_Raw_Data_for_FY22[[#This Row],[75th]]-AAMC_Raw_Data_for_FY22[[#This Row],[Median]])/25)*15) + AAMC_Raw_Data_for_FY22[[#This Row],[Median]]","v":0},{"$f":"(((AAMC_Raw_Data_for_FY22[[#This Row],[75th]]-AAMC_Raw_Data_for_FY22[[#This Row],[Median]])/25)*20) + AAMC_Raw_Data_for_FY22[[#This Row],[Median]]","v":0},null,{"$f":"(((AAMC_Raw_Data_for_FY22[[#This Row],[75th]]-AAMC_Raw_Data_for_FY22[[#This Row],[Median]])/25)*30) + AAMC_Raw_Data_for_FY22[[#This Row],[Median]]","v":0},{"$f":"(((AAMC_Raw_Data_for_FY22[[#This Row],[75th]]-AAMC_Raw_Data_for_FY22[[#This Row],[Median]])/25)*35) + AAMC_Raw_Data_for_FY22[[#This Row],[Median]]","v":0},{"$f":"(((AAMC_Raw_Data_for_FY22[[#This Row],[75th]]-AAMC_Raw_Data_for_FY22[[#This Row],[Median]])/25)*40) + AAMC_Raw_Data_for_FY22[[#This Row],[Median]]","v":0}]
[{"$f":"AAMC_Raw_Data_for_FY22[[#This Row],[Source]]&AAMC_Raw_Data_for_FY22[[#This Row],[Type]]&AAMC_Raw_Data_for_FY22[[#This Row],[School Subset]]&AAMC_Raw_Data_for_FY22[[#This Row],[Rank]]&AAMC_Raw_Data_for_FY22[[#This Row],[Degree]]&AAMC_Raw_Data_for_FY22[[#This Row],[Department / Specialty]]&\"L\"","v":"AAMCAcademicPrivateAssistantPhDNeurology-Peds.L"},"Neurology-Peds.",4,"AAMC","Academic","Private","Assistant","PhD","2021-2022",102670,{"$f":"(((AAMC_Raw_Data_for_FY22[[#This Row],[Median]]-AAMC_Raw_Data_for_FY22[[#This Row],[25th]])/25)*5) + AAMC_Raw_Data_for_FY22[[#This Row],[25th]]","v":106261.6},{"$f":"(((AAMC_Raw_Data_for_FY22[[#This Row],[Median]]-AAMC_Raw_Data_for_FY22[[#This Row],[25th]])/25)*10) + AAMC_Raw_Data_for_FY22[[#This Row],[25th]]","v":109853.2},{"$f":"(((AAMC_Raw_Data_for_FY22[[#This Row],[Median]]-AAMC_Raw_Data_for_FY22[[#This Row],[25th]])/25)*15) + AAMC_Raw_Data_for_FY22[[#This Row],[25th]]","v":113444.8},{"$f":"(((AAMC_Raw_Data_for_FY22[[#This Row],[Median]]-AAMC_Raw_Data_for_FY22[[#This Row],[25th]])/25)*20) + AAMC_Raw_Data_for_FY22[[#This Row],[25th]]","v":117036.4},120628,{"$f":"(((AAMC_Raw_Data_for_FY22[[#This Row],[75th]]-AAMC_Raw_Data_for_FY22[[#This Row],[Median]])/25)*5) + AAMC_Raw_Data_for_FY22[[#This Row],[Median]]","v":124875},{"$f":"(((AAMC_Raw_Data_for_FY22[[#This Row],[75th]]-AAMC_Raw_Data_for_FY22[[#This Row],[Median]])/25)*10) + AAMC_Raw_Data_for_FY22[[#This Row],[Median]]","v":129122},{"$f":"(((AAMC_Raw_Data_for_FY22[[#This Row],[75th]]-AAMC_Raw_Data_for_FY22[[#This Row],[Median]])/25)*15) + AAMC_Raw_Data_for_FY22[[#This Row],[Median]]","v":133369},{"$f":"(((AAMC_Raw_Data_for_FY22[[#This Row],[75th]]-AAMC_Raw_Data_for_FY22[[#This Row],[Median]])/25)*20) + AAMC_Raw_Data_for_FY22[[#This Row],[Median]]","v":137616},141863,{"$f":"(((AAMC_Raw_Data_for_FY22[[#This Row],[75th]]-AAMC_Raw_Data_for_FY22[[#This Row],[Median]])/25)*30) + AAMC_Raw_Data_for_FY22[[#This Row],[Median]]","v":146110},{"$f":"(((AAMC_Raw_Data_for_FY22[[#This Row],[75th]]-AAMC_Raw_Data_for_FY22[[#This Row],[Median]])/25)*35) + AAMC_Raw_Data_for_FY22[[#This Row],[Median]]","v":150357},{"$f":"(((AAMC_Raw_Data_for_FY22[[#This Row],[75th]]-AAMC_Raw_Data_for_FY22[[#This Row],[Median]])/25)*40) + AAMC_Raw_Data_for_FY22[[#This Row],[Median]]","v":154604}]
[{"$f":"AAMC_Raw_Data_for_FY22[[#This Row],[Source]]&AAMC_Raw_Data_for_FY22[[#This Row],[Type]]&AAMC_Raw_Data_for_FY22[[#This Row],[School Subset]]&AAMC_Raw_Data_for_FY22[[#This Row],[Rank]]&AAMC_Raw_Data_for_FY22[[#This Row],[Degree]]&AAMC_Raw_Data_for_FY22[[#This Row],[Department / Specialty]]&\"L\"","v":"AAMCAcademicPrivateAssociatePhDNeurology-Peds.L"},"Neurology-Peds.",3,"AAMC","Academic","Private","Associate","PhD","2021-2022",116925,{"$f":"(((AAMC_Raw_Data_for_FY22[[#This Row],[Median]]-AAMC_Raw_Data_for_FY22[[#This Row],[25th]])/25)*5) + AAMC_Raw_Data_for_FY22[[#This Row],[25th]]","v":118916.6},{"$f":"(((AAMC_Raw_Data_for_FY22[[#This Row],[Median]]-AAMC_Raw_Data_for_FY22[[#This Row],[25th]])/25)*10) + AAMC_Raw_Data_for_FY22[[#This Row],[25th]]","v":120908.2},{"$f":"(((AAMC_Raw_Data_for_FY22[[#This Row],[Median]]-AAMC_Raw_Data_for_FY22[[#This Row],[25th]])/25)*15) + AAMC_Raw_Data_for_FY22[[#This Row],[25th]]","v":122899.8},{"$f":"(((AAMC_Raw_Data_for_FY22[[#This Row],[Median]]-AAMC_Raw_Data_for_FY22[[#This Row],[25th]])/25)*20) + AAMC_Raw_Data_for_FY22[[#This Row],[25th]]","v":124891.4},126883,{"$f":"(((AAMC_Raw_Data_for_FY22[[#This Row],[75th]]-AAMC_Raw_Data_for_FY22[[#This Row],[Median]])/25)*5) + AAMC_Raw_Data_for_FY22[[#This Row],[Median]]","v":134068.4},{"$f":"(((AAMC_Raw_Data_for_FY22[[#This Row],[75th]]-AAMC_Raw_Data_for_FY22[[#This Row],[Median]])/25)*10) + AAMC_Raw_Data_for_FY22[[#This Row],[Median]]","v":141253.79999999999},{"$f":"(((AAMC_Raw_Data_for_FY22[[#This Row],[75th]]-AAMC_Raw_Data_for_FY22[[#This Row],[Median]])/25)*15) + AAMC_Raw_Data_for_FY22[[#This Row],[Median]]","v":148439.20000000001},{"$f":"(((AAMC_Raw_Data_for_FY22[[#This Row],[75th]]-AAMC_Raw_Data_for_FY22[[#This Row],[Median]])/25)*20) + AAMC_Raw_Data_for_FY22[[#This Row],[Median]]","v":155624.6},162810,{"$f":"(((AAMC_Raw_Data_for_FY22[[#This Row],[75th]]-AAMC_Raw_Data_for_FY22[[#This Row],[Median]])/25)*30) + AAMC_Raw_Data_for_FY22[[#This Row],[Median]]","v":169995.4},{"$f":"(((AAMC_Raw_Data_for_FY22[[#This Row],[75th]]-AAMC_Raw_Data_for_FY22[[#This Row],[Median]])/25)*35) + AAMC_Raw_Data_for_FY22[[#This Row],[Median]]","v":177180.79999999999},{"$f":"(((AAMC_Raw_Data_for_FY22[[#This Row],[75th]]-AAMC_Raw_Data_for_FY22[[#This Row],[Median]])/25)*40) + AAMC_Raw_Data_for_FY22[[#This Row],[Median]]","v":184366.2}]
[{"$f":"AAMC_Raw_Data_for_FY22[[#This Row],[Source]]&AAMC_Raw_Data_for_FY22[[#This Row],[Type]]&AAMC_Raw_Data_for_FY22[[#This Row],[School Subset]]&AAMC_Raw_Data_for_FY22[[#This Row],[Rank]]&AAMC_Raw_Data_for_FY22[[#This Row],[Degree]]&AAMC_Raw_Data_for_FY22[[#This Row],[Department / Specialty]]&\"L\"","v":"AAMCAcademicPrivateProfessorPhDNeurology-Peds.L"},"Neurology-Peds.",2,"AAMC","Academic","Private","Professor","PhD","2021-2022",176937,{"$f":"(((AAMC_Raw_Data_for_FY22[[#This Row],[Median]]-AAMC_Raw_Data_for_FY22[[#This Row],[25th]])/25)*5) + AAMC_Raw_Data_for_FY22[[#This Row],[25th]]","v":188434.4},{"$f":"(((AAMC_Raw_Data_for_FY22[[#This Row],[Median]]-AAMC_Raw_Data_for_FY22[[#This Row],[25th]])/25)*10) + AAMC_Raw_Data_for_FY22[[#This Row],[25th]]","v":199931.8},{"$f":"(((AAMC_Raw_Data_for_FY22[[#This Row],[Median]]-AAMC_Raw_Data_for_FY22[[#This Row],[25th]])/25)*15) + AAMC_Raw_Data_for_FY22[[#This Row],[25th]]","v":211429.2},{"$f":"(((AAMC_Raw_Data_for_FY22[[#This Row],[Median]]-AAMC_Raw_Data_for_FY22[[#This Row],[25th]])/25)*20) + AAMC_Raw_Data_for_FY22[[#This Row],[25th]]","v":222926.6},234424,{"$f":"(((AAMC_Raw_Data_for_FY22[[#This Row],[75th]]-AAMC_Raw_Data_for_FY22[[#This Row],[Median]])/25)*5) + AAMC_Raw_Data_for_FY22[[#This Row],[Median]]","v":237665.8},{"$f":"(((AAMC_Raw_Data_for_FY22[[#This Row],[75th]]-AAMC_Raw_Data_for_FY22[[#This Row],[Median]])/25)*10) + AAMC_Raw_Data_for_FY22[[#This Row],[Median]]","v":240907.6},{"$f":"(((AAMC_Raw_Data_for_FY22[[#This Row],[75th]]-AAMC_Raw_Data_for_FY22[[#This Row],[Median]])/25)*15) + AAMC_Raw_Data_for_FY22[[#This Row],[Median]]","v":244149.4},{"$f":"(((AAMC_Raw_Data_for_FY22[[#This Row],[75th]]-AAMC_Raw_Data_for_FY22[[#This Row],[Median]])/25)*20) + AAMC_Raw_Data_for_FY22[[#This Row],[Median]]","v":247391.2},250633,{"$f":"(((AAMC_Raw_Data_for_FY22[[#This Row],[75th]]-AAMC_Raw_Data_for_FY22[[#This Row],[Median]])/25)*30) + AAMC_Raw_Data_for_FY22[[#This Row],[Median]]","v":253874.8},{"$f":"(((AAMC_Raw_Data_for_FY22[[#This Row],[75th]]-AAMC_Raw_Data_for_FY22[[#This Row],[Median]])/25)*35) + AAMC_Raw_Data_for_FY22[[#This Row],[Median]]","v":257116.6},{"$f":"(((AAMC_Raw_Data_for_FY22[[#This Row],[75th]]-AAMC_Raw_Data_for_FY22[[#This Row],[Median]])/25)*40) + AAMC_Raw_Data_for_FY22[[#This Row],[Median]]","v":260358.39999999999}]
[{"$f":"AAMC_Raw_Data_for_FY22[[#This Row],[Source]]&AAMC_Raw_Data_for_FY22[[#This Row],[Type]]&AAMC_Raw_Data_for_FY22[[#This Row],[School Subset]]&AAMC_Raw_Data_for_FY22[[#This Row],[Rank]]&AAMC_Raw_Data_for_FY22[[#This Row],[Degree]]&AAMC_Raw_Data_for_FY22[[#This Row],[Department / Specialty]]&\"L\"","v":"AAMCAcademicPrivateInstructorPhDPediatric CardiologyL"},"Pediatric Cardiology",5,"AAMC","Academic","Private","Instructor","PhD","2021-2022",null,{"$f":"(((AAMC_Raw_Data_for_FY22[[#This Row],[Median]]-AAMC_Raw_Data_for_FY22[[#This Row],[25th]])/25)*5) + AAMC_Raw_Data_for_FY22[[#This Row],[25th]]","v":0},{"$f":"(((AAMC_Raw_Data_for_FY22[[#This Row],[Median]]-AAMC_Raw_Data_for_FY22[[#This Row],[25th]])/25)*10) + AAMC_Raw_Data_for_FY22[[#This Row],[25th]]","v":0},{"$f":"(((AAMC_Raw_Data_for_FY22[[#This Row],[Median]]-AAMC_Raw_Data_for_FY22[[#This Row],[25th]])/25)*15) + AAMC_Raw_Data_for_FY22[[#This Row],[25th]]","v":0},{"$f":"(((AAMC_Raw_Data_for_FY22[[#This Row],[Median]]-AAMC_Raw_Data_for_FY22[[#This Row],[25th]])/25)*20) + AAMC_Raw_Data_for_FY22[[#This Row],[25th]]","v":0},null,{"$f":"(((AAMC_Raw_Data_for_FY22[[#This Row],[75th]]-AAMC_Raw_Data_for_FY22[[#This Row],[Median]])/25)*5) + AAMC_Raw_Data_for_FY22[[#This Row],[Median]]","v":0},{"$f":"(((AAMC_Raw_Data_for_FY22[[#This Row],[75th]]-AAMC_Raw_Data_for_FY22[[#This Row],[Median]])/25)*10) + AAMC_Raw_Data_for_FY22[[#This Row],[Median]]","v":0},{"$f":"(((AAMC_Raw_Data_for_FY22[[#This Row],[75th]]-AAMC_Raw_Data_for_FY22[[#This Row],[Median]])/25)*15) + AAMC_Raw_Data_for_FY22[[#This Row],[Median]]","v":0},{"$f":"(((AAMC_Raw_Data_for_FY22[[#This Row],[75th]]-AAMC_Raw_Data_for_FY22[[#This Row],[Median]])/25)*20) + AAMC_Raw_Data_for_FY22[[#This Row],[Median]]","v":0},null,{"$f":"(((AAMC_Raw_Data_for_FY22[[#This Row],[75th]]-AAMC_Raw_Data_for_FY22[[#This Row],[Median]])/25)*30) + AAMC_Raw_Data_for_FY22[[#This Row],[Median]]","v":0},{"$f":"(((AAMC_Raw_Data_for_FY22[[#This Row],[75th]]-AAMC_Raw_Data_for_FY22[[#This Row],[Median]])/25)*35) + AAMC_Raw_Data_for_FY22[[#This Row],[Median]]","v":0},{"$f":"(((AAMC_Raw_Data_for_FY22[[#This Row],[75th]]-AAMC_Raw_Data_for_FY22[[#This Row],[Median]])/25)*40) + AAMC_Raw_Data_for_FY22[[#This Row],[Median]]","v":0}]
[{"$f":"AAMC_Raw_Data_for_FY22[[#This Row],[Source]]&AAMC_Raw_Data_for_FY22[[#This Row],[Type]]&AAMC_Raw_Data_for_FY22[[#This Row],[School Subset]]&AAMC_Raw_Data_for_FY22[[#This Row],[Rank]]&AAMC_Raw_Data_for_FY22[[#This Row],[Degree]]&AAMC_Raw_Data_for_FY22[[#This Row],[Department / Specialty]]&\"L\"","v":"AAMCAcademicPrivateAssistantPhDPediatric CardiologyL"},"Pediatric Cardiology",4,"AAMC","Academic","Private","Assistant","PhD","2021-2022",120360,{"$f":"(((AAMC_Raw_Data_for_FY22[[#This Row],[Median]]-AAMC_Raw_Data_for_FY22[[#This Row],[25th]])/25)*5) + AAMC_Raw_Data_for_FY22[[#This Row],[25th]]","v":121390.2},{"$f":"(((AAMC_Raw_Data_for_FY22[[#This Row],[Median]]-AAMC_Raw_Data_for_FY22[[#This Row],[25th]])/25)*10) + AAMC_Raw_Data_for_FY22[[#This Row],[25th]]","v":122420.4},{"$f":"(((AAMC_Raw_Data_for_FY22[[#This Row],[Median]]-AAMC_Raw_Data_for_FY22[[#This Row],[25th]])/25)*15) + AAMC_Raw_Data_for_FY22[[#This Row],[25th]]","v":123450.6},{"$f":"(((AAMC_Raw_Data_for_FY22[[#This Row],[Median]]-AAMC_Raw_Data_for_FY22[[#This Row],[25th]])/25)*20) + AAMC_Raw_Data_for_FY22[[#This Row],[25th]]","v":124480.8},125511,{"$f":"(((AAMC_Raw_Data_for_FY22[[#This Row],[75th]]-AAMC_Raw_Data_for_FY22[[#This Row],[Median]])/25)*5) + AAMC_Raw_Data_for_FY22[[#This Row],[Median]]","v":127682.8},{"$f":"(((AAMC_Raw_Data_for_FY22[[#This Row],[75th]]-AAMC_Raw_Data_for_FY22[[#This Row],[Median]])/25)*10) + AAMC_Raw_Data_for_FY22[[#This Row],[Median]]","v":129854.6},{"$f":"(((AAMC_Raw_Data_for_FY22[[#This Row],[75th]]-AAMC_Raw_Data_for_FY22[[#This Row],[Median]])/25)*15) + AAMC_Raw_Data_for_FY22[[#This Row],[Median]]","v":132026.4},{"$f":"(((AAMC_Raw_Data_for_FY22[[#This Row],[75th]]-AAMC_Raw_Data_for_FY22[[#This Row],[Median]])/25)*20) + AAMC_Raw_Data_for_FY22[[#This Row],[Median]]","v":134198.20000000001},136370,{"$f":"(((AAMC_Raw_Data_for_FY22[[#This Row],[75th]]-AAMC_Raw_Data_for_FY22[[#This Row],[Median]])/25)*30) + AAMC_Raw_Data_for_FY22[[#This Row],[Median]]","v":138541.79999999999},{"$f":"(((AAMC_Raw_Data_for_FY22[[#This Row],[75th]]-AAMC_Raw_Data_for_FY22[[#This Row],[Median]])/25)*35) + AAMC_Raw_Data_for_FY22[[#This Row],[Median]]","v":140713.60000000001},{"$f":"(((AAMC_Raw_Data_for_FY22[[#This Row],[75th]]-AAMC_Raw_Data_for_FY22[[#This Row],[Median]])/25)*40) + AAMC_Raw_Data_for_FY22[[#This Row],[Median]]","v":142885.4}]
[{"$f":"AAMC_Raw_Data_for_FY22[[#This Row],[Source]]&AAMC_Raw_Data_for_FY22[[#This Row],[Type]]&AAMC_Raw_Data_for_FY22[[#This Row],[School Subset]]&AAMC_Raw_Data_for_FY22[[#This Row],[Rank]]&AAMC_Raw_Data_for_FY22[[#This Row],[Degree]]&AAMC_Raw_Data_for_FY22[[#This Row],[Department / Specialty]]&\"L\"","v":"AAMCAcademicPrivateAssociatePhDPediatric CardiologyL"},"Pediatric Cardiology",3,"AAMC","Academic","Private","Associate","PhD","2021-2022",155947,{"$f":"(((AAMC_Raw_Data_for_FY22[[#This Row],[Median]]-AAMC_Raw_Data_for_FY22[[#This Row],[25th]])/25)*5) + AAMC_Raw_Data_for_FY22[[#This Row],[25th]]","v":165276.6},{"$f":"(((AAMC_Raw_Data_for_FY22[[#This Row],[Median]]-AAMC_Raw_Data_for_FY22[[#This Row],[25th]])/25)*10) + AAMC_Raw_Data_for_FY22[[#This Row],[25th]]","v":174606.2},{"$f":"(((AAMC_Raw_Data_for_FY22[[#This Row],[Median]]-AAMC_Raw_Data_for_FY22[[#This Row],[25th]])/25)*15) + AAMC_Raw_Data_for_FY22[[#This Row],[25th]]","v":183935.8},{"$f":"(((AAMC_Raw_Data_for_FY22[[#This Row],[Median]]-AAMC_Raw_Data_for_FY22[[#This Row],[25th]])/25)*20) + AAMC_Raw_Data_for_FY22[[#This Row],[25th]]","v":193265.4},202595,{"$f":"(((AAMC_Raw_Data_for_FY22[[#This Row],[75th]]-AAMC_Raw_Data_for_FY22[[#This Row],[Median]])/25)*5) + AAMC_Raw_Data_for_FY22[[#This Row],[Median]]","v":203703.4},{"$f":"(((AAMC_Raw_Data_for_FY22[[#This Row],[75th]]-AAMC_Raw_Data_for_FY22[[#This Row],[Median]])/25)*10) + AAMC_Raw_Data_for_FY22[[#This Row],[Median]]","v":204811.8},{"$f":"(((AAMC_Raw_Data_for_FY22[[#This Row],[75th]]-AAMC_Raw_Data_for_FY22[[#This Row],[Median]])/25)*15) + AAMC_Raw_Data_for_FY22[[#This Row],[Median]]","v":205920.2},{"$f":"(((AAMC_Raw_Data_for_FY22[[#This Row],[75th]]-AAMC_Raw_Data_for_FY22[[#This Row],[Median]])/25)*20) + AAMC_Raw_Data_for_FY22[[#This Row],[Median]]","v":207028.6},208137,{"$f":"(((AAMC_Raw_Data_for_FY22[[#This Row],[75th]]-AAMC_Raw_Data_for_FY22[[#This Row],[Median]])/25)*30) + AAMC_Raw_Data_for_FY22[[#This Row],[Median]]","v":209245.4},{"$f":"(((AAMC_Raw_Data_for_FY22[[#This Row],[75th]]-AAMC_Raw_Data_for_FY22[[#This Row],[Median]])/25)*35) + AAMC_Raw_Data_for_FY22[[#This Row],[Median]]","v":210353.8},{"$f":"(((AAMC_Raw_Data_for_FY22[[#This Row],[75th]]-AAMC_Raw_Data_for_FY22[[#This Row],[Median]])/25)*40) + AAMC_Raw_Data_for_FY22[[#This Row],[Median]]","v":211462.2}]
[{"$f":"AAMC_Raw_Data_for_FY22[[#This Row],[Source]]&AAMC_Raw_Data_for_FY22[[#This Row],[Type]]&AAMC_Raw_Data_for_FY22[[#This Row],[School Subset]]&AAMC_Raw_Data_for_FY22[[#This Row],[Rank]]&AAMC_Raw_Data_for_FY22[[#This Row],[Degree]]&AAMC_Raw_Data_for_FY22[[#This Row],[Department / Specialty]]&\"L\"","v":"AAMCAcademicPrivateProfessorPhDPediatric CardiologyL"},"Pediatric Cardiology",2,"AAMC","Academic","Private","Professor","PhD","2021-2022",null,{"$f":"(((AAMC_Raw_Data_for_FY22[[#This Row],[Median]]-AAMC_Raw_Data_for_FY22[[#This Row],[25th]])/25)*5) + AAMC_Raw_Data_for_FY22[[#This Row],[25th]]","v":0},{"$f":"(((AAMC_Raw_Data_for_FY22[[#This Row],[Median]]-AAMC_Raw_Data_for_FY22[[#This Row],[25th]])/25)*10) + AAMC_Raw_Data_for_FY22[[#This Row],[25th]]","v":0},{"$f":"(((AAMC_Raw_Data_for_FY22[[#This Row],[Median]]-AAMC_Raw_Data_for_FY22[[#This Row],[25th]])/25)*15) + AAMC_Raw_Data_for_FY22[[#This Row],[25th]]","v":0},{"$f":"(((AAMC_Raw_Data_for_FY22[[#This Row],[Median]]-AAMC_Raw_Data_for_FY22[[#This Row],[25th]])/25)*20) + AAMC_Raw_Data_for_FY22[[#This Row],[25th]]","v":0},null,{"$f":"(((AAMC_Raw_Data_for_FY22[[#This Row],[75th]]-AAMC_Raw_Data_for_FY22[[#This Row],[Median]])/25)*5) + AAMC_Raw_Data_for_FY22[[#This Row],[Median]]","v":0},{"$f":"(((AAMC_Raw_Data_for_FY22[[#This Row],[75th]]-AAMC_Raw_Data_for_FY22[[#This Row],[Median]])/25)*10) + AAMC_Raw_Data_for_FY22[[#This Row],[Median]]","v":0},{"$f":"(((AAMC_Raw_Data_for_FY22[[#This Row],[75th]]-AAMC_Raw_Data_for_FY22[[#This Row],[Median]])/25)*15) + AAMC_Raw_Data_for_FY22[[#This Row],[Median]]","v":0},{"$f":"(((AAMC_Raw_Data_for_FY22[[#This Row],[75th]]-AAMC_Raw_Data_for_FY22[[#This Row],[Median]])/25)*20) + AAMC_Raw_Data_for_FY22[[#This Row],[Median]]","v":0},null,{"$f":"(((AAMC_Raw_Data_for_FY22[[#This Row],[75th]]-AAMC_Raw_Data_for_FY22[[#This Row],[Median]])/25)*30) + AAMC_Raw_Data_for_FY22[[#This Row],[Median]]","v":0},{"$f":"(((AAMC_Raw_Data_for_FY22[[#This Row],[75th]]-AAMC_Raw_Data_for_FY22[[#This Row],[Median]])/25)*35) + AAMC_Raw_Data_for_FY22[[#This Row],[Median]]","v":0},{"$f":"(((AAMC_Raw_Data_for_FY22[[#This Row],[75th]]-AAMC_Raw_Data_for_FY22[[#This Row],[Median]])/25)*40) + AAMC_Raw_Data_for_FY22[[#This Row],[Median]]","v":0}]
[{"$f":"AAMC_Raw_Data_for_FY22[[#This Row],[Source]]&AAMC_Raw_Data_for_FY22[[#This Row],[Type]]&AAMC_Raw_Data_for_FY22[[#This Row],[School Subset]]&AAMC_Raw_Data_for_FY22[[#This Row],[Rank]]&AAMC_Raw_Data_for_FY22[[#This Row],[Degree]]&AAMC_Raw_Data_for_FY22[[#This Row],[Department / Specialty]]&\"L\"","v":"AAMCAcademicPrivateInstructorPhDPsychology-Peds.L"},"Psychology-Peds.",5,"AAMC","Academic","Private","Instructor","PhD","2021-2022",null,{"$f":"(((AAMC_Raw_Data_for_FY22[[#This Row],[Median]]-AAMC_Raw_Data_for_FY22[[#This Row],[25th]])/25)*5) + AAMC_Raw_Data_for_FY22[[#This Row],[25th]]","v":0},{"$f":"(((AAMC_Raw_Data_for_FY22[[#This Row],[Median]]-AAMC_Raw_Data_for_FY22[[#This Row],[25th]])/25)*10) + AAMC_Raw_Data_for_FY22[[#This Row],[25th]]","v":0},{"$f":"(((AAMC_Raw_Data_for_FY22[[#This Row],[Median]]-AAMC_Raw_Data_for_FY22[[#This Row],[25th]])/25)*15) + AAMC_Raw_Data_for_FY22[[#This Row],[25th]]","v":0},{"$f":"(((AAMC_Raw_Data_for_FY22[[#This Row],[Median]]-AAMC_Raw_Data_for_FY22[[#This Row],[25th]])/25)*20) + AAMC_Raw_Data_for_FY22[[#This Row],[25th]]","v":0},null,{"$f":"(((AAMC_Raw_Data_for_FY22[[#This Row],[75th]]-AAMC_Raw_Data_for_FY22[[#This Row],[Median]])/25)*5) + AAMC_Raw_Data_for_FY22[[#This Row],[Median]]","v":0},{"$f":"(((AAMC_Raw_Data_for_FY22[[#This Row],[75th]]-AAMC_Raw_Data_for_FY22[[#This Row],[Median]])/25)*10) + AAMC_Raw_Data_for_FY22[[#This Row],[Median]]","v":0},{"$f":"(((AAMC_Raw_Data_for_FY22[[#This Row],[75th]]-AAMC_Raw_Data_for_FY22[[#This Row],[Median]])/25)*15) + AAMC_Raw_Data_for_FY22[[#This Row],[Median]]","v":0},{"$f":"(((AAMC_Raw_Data_for_FY22[[#This Row],[75th]]-AAMC_Raw_Data_for_FY22[[#This Row],[Median]])/25)*20) + AAMC_Raw_Data_for_FY22[[#This Row],[Median]]","v":0},null,{"$f":"(((AAMC_Raw_Data_for_FY22[[#This Row],[75th]]-AAMC_Raw_Data_for_FY22[[#This Row],[Median]])/25)*30) + AAMC_Raw_Data_for_FY22[[#This Row],[Median]]","v":0},{"$f":"(((AAMC_Raw_Data_for_FY22[[#This Row],[75th]]-AAMC_Raw_Data_for_FY22[[#This Row],[Median]])/25)*35) + AAMC_Raw_Data_for_FY22[[#This Row],[Median]]","v":0},{"$f":"(((AAMC_Raw_Data_for_FY22[[#This Row],[75th]]-AAMC_Raw_Data_for_FY22[[#This Row],[Median]])/25)*40) + AAMC_Raw_Data_for_FY22[[#This Row],[Median]]","v":0}]
[{"$f":"AAMC_Raw_Data_for_FY22[[#This Row],[Source]]&AAMC_Raw_Data_for_FY22[[#This Row],[Type]]&AAMC_Raw_Data_for_FY22[[#This Row],[School Subset]]&AAMC_Raw_Data_for_FY22[[#This Row],[Rank]]&AAMC_Raw_Data_for_FY22[[#This Row],[Degree]]&AAMC_Raw_Data_for_FY22[[#This Row],[Department / Specialty]]&\"L\"","v":"AAMCAcademicPrivateAssistantPhDPsychology-Peds.L"},"Psychology-Peds.",4,"AAMC","Academic","Private","Assistant","PhD","2021-2022",111300,{"$f":"(((AAMC_Raw_Data_for_FY22[[#This Row],[Median]]-AAMC_Raw_Data_for_FY22[[#This Row],[25th]])/25)*5) + AAMC_Raw_Data_for_FY22[[#This Row],[25th]]","v":112414.6},{"$f":"(((AAMC_Raw_Data_for_FY22[[#This Row],[Median]]-AAMC_Raw_Data_for_FY22[[#This Row],[25th]])/25)*10) + AAMC_Raw_Data_for_FY22[[#This Row],[25th]]","v":113529.2},{"$f":"(((AAMC_Raw_Data_for_FY22[[#This Row],[Median]]-AAMC_Raw_Data_for_FY22[[#This Row],[25th]])/25)*15) + AAMC_Raw_Data_for_FY22[[#This Row],[25th]]","v":114643.8},{"$f":"(((AAMC_Raw_Data_for_FY22[[#This Row],[Median]]-AAMC_Raw_Data_for_FY22[[#This Row],[25th]])/25)*20) + AAMC_Raw_Data_for_FY22[[#This Row],[25th]]","v":115758.39999999999},116873,{"$f":"(((AAMC_Raw_Data_for_FY22[[#This Row],[75th]]-AAMC_Raw_Data_for_FY22[[#This Row],[Median]])/25)*5) + AAMC_Raw_Data_for_FY22[[#This Row],[Median]]","v":118310.6},{"$f":"(((AAMC_Raw_Data_for_FY22[[#This Row],[75th]]-AAMC_Raw_Data_for_FY22[[#This Row],[Median]])/25)*10) + AAMC_Raw_Data_for_FY22[[#This Row],[Median]]","v":119748.2},{"$f":"(((AAMC_Raw_Data_for_FY22[[#This Row],[75th]]-AAMC_Raw_Data_for_FY22[[#This Row],[Median]])/25)*15) + AAMC_Raw_Data_for_FY22[[#This Row],[Median]]","v":121185.8},{"$f":"(((AAMC_Raw_Data_for_FY22[[#This Row],[75th]]-AAMC_Raw_Data_for_FY22[[#This Row],[Median]])/25)*20) + AAMC_Raw_Data_for_FY22[[#This Row],[Median]]","v":122623.4},124061,{"$f":"(((AAMC_Raw_Data_for_FY22[[#This Row],[75th]]-AAMC_Raw_Data_for_FY22[[#This Row],[Median]])/25)*30) + AAMC_Raw_Data_for_FY22[[#This Row],[Median]]","v":125498.6},{"$f":"(((AAMC_Raw_Data_for_FY22[[#This Row],[75th]]-AAMC_Raw_Data_for_FY22[[#This Row],[Median]])/25)*35) + AAMC_Raw_Data_for_FY22[[#This Row],[Median]]","v":126936.2},{"$f":"(((AAMC_Raw_Data_for_FY22[[#This Row],[75th]]-AAMC_Raw_Data_for_FY22[[#This Row],[Median]])/25)*40) + AAMC_Raw_Data_for_FY22[[#This Row],[Median]]","v":128373.8}]
[{"$f":"AAMC_Raw_Data_for_FY22[[#This Row],[Source]]&AAMC_Raw_Data_for_FY22[[#This Row],[Type]]&AAMC_Raw_Data_for_FY22[[#This Row],[School Subset]]&AAMC_Raw_Data_for_FY22[[#This Row],[Rank]]&AAMC_Raw_Data_for_FY22[[#This Row],[Degree]]&AAMC_Raw_Data_for_FY22[[#This Row],[Department / Specialty]]&\"L\"","v":"AAMCAcademicPrivateAssociatePhDPsychology-Peds.L"},"Psychology-Peds.",3,"AAMC","Academic","Private","Associate","PhD","2021-2022",130700,{"$f":"(((AAMC_Raw_Data_for_FY22[[#This Row],[Median]]-AAMC_Raw_Data_for_FY22[[#This Row],[25th]])/25)*5) + AAMC_Raw_Data_for_FY22[[#This Row],[25th]]","v":133471},{"$f":"(((AAMC_Raw_Data_for_FY22[[#This Row],[Median]]-AAMC_Raw_Data_for_FY22[[#This Row],[25th]])/25)*10) + AAMC_Raw_Data_for_FY22[[#This Row],[25th]]","v":136242},{"$f":"(((AAMC_Raw_Data_for_FY22[[#This Row],[Median]]-AAMC_Raw_Data_for_FY22[[#This Row],[25th]])/25)*15) + AAMC_Raw_Data_for_FY22[[#This Row],[25th]]","v":139013},{"$f":"(((AAMC_Raw_Data_for_FY22[[#This Row],[Median]]-AAMC_Raw_Data_for_FY22[[#This Row],[25th]])/25)*20) + AAMC_Raw_Data_for_FY22[[#This Row],[25th]]","v":141784},144555,{"$f":"(((AAMC_Raw_Data_for_FY22[[#This Row],[75th]]-AAMC_Raw_Data_for_FY22[[#This Row],[Median]])/25)*5) + AAMC_Raw_Data_for_FY22[[#This Row],[Median]]","v":147685},{"$f":"(((AAMC_Raw_Data_for_FY22[[#This Row],[75th]]-AAMC_Raw_Data_for_FY22[[#This Row],[Median]])/25)*10) + AAMC_Raw_Data_for_FY22[[#This Row],[Median]]","v":150815},{"$f":"(((AAMC_Raw_Data_for_FY22[[#This Row],[75th]]-AAMC_Raw_Data_for_FY22[[#This Row],[Median]])/25)*15) + AAMC_Raw_Data_for_FY22[[#This Row],[Median]]","v":153945},{"$f":"(((AAMC_Raw_Data_for_FY22[[#This Row],[75th]]-AAMC_Raw_Data_for_FY22[[#This Row],[Median]])/25)*20) + AAMC_Raw_Data_for_FY22[[#This Row],[Median]]","v":157075},160205,{"$f":"(((AAMC_Raw_Data_for_FY22[[#This Row],[75th]]-AAMC_Raw_Data_for_FY22[[#This Row],[Median]])/25)*30) + AAMC_Raw_Data_for_FY22[[#This Row],[Median]]","v":163335},{"$f":"(((AAMC_Raw_Data_for_FY22[[#This Row],[75th]]-AAMC_Raw_Data_for_FY22[[#This Row],[Median]])/25)*35) + AAMC_Raw_Data_for_FY22[[#This Row],[Median]]","v":166465},{"$f":"(((AAMC_Raw_Data_for_FY22[[#This Row],[75th]]-AAMC_Raw_Data_for_FY22[[#This Row],[Median]])/25)*40) + AAMC_Raw_Data_for_FY22[[#This Row],[Median]]","v":169595}]
[{"$f":"AAMC_Raw_Data_for_FY22[[#This Row],[Source]]&AAMC_Raw_Data_for_FY22[[#This Row],[Type]]&AAMC_Raw_Data_for_FY22[[#This Row],[School Subset]]&AAMC_Raw_Data_for_FY22[[#This Row],[Rank]]&AAMC_Raw_Data_for_FY22[[#This Row],[Degree]]&AAMC_Raw_Data_for_FY22[[#This Row],[Department / Specialty]]&\"L\"","v":"AAMCAcademicPrivateProfessorPhDPsychology-Peds.L"},"Psychology-Peds.",2,"AAMC","Academic","Private","Professor","PhD","2021-2022",203869,{"$f":"(((AAMC_Raw_Data_for_FY22[[#This Row],[Median]]-AAMC_Raw_Data_for_FY22[[#This Row],[25th]])/25)*5) + AAMC_Raw_Data_for_FY22[[#This Row],[25th]]","v":211054.2},{"$f":"(((AAMC_Raw_Data_for_FY22[[#This Row],[Median]]-AAMC_Raw_Data_for_FY22[[#This Row],[25th]])/25)*10) + AAMC_Raw_Data_for_FY22[[#This Row],[25th]]","v":218239.4},{"$f":"(((AAMC_Raw_Data_for_FY22[[#This Row],[Median]]-AAMC_Raw_Data_for_FY22[[#This Row],[25th]])/25)*15) + AAMC_Raw_Data_for_FY22[[#This Row],[25th]]","v":225424.6},{"$f":"(((AAMC_Raw_Data_for_FY22[[#This Row],[Median]]-AAMC_Raw_Data_for_FY22[[#This Row],[25th]])/25)*20) + AAMC_Raw_Data_for_FY22[[#This Row],[25th]]","v":232609.8},239795,{"$f":"(((AAMC_Raw_Data_for_FY22[[#This Row],[75th]]-AAMC_Raw_Data_for_FY22[[#This Row],[Median]])/25)*5) + AAMC_Raw_Data_for_FY22[[#This Row],[Median]]","v":243410},{"$f":"(((AAMC_Raw_Data_for_FY22[[#This Row],[75th]]-AAMC_Raw_Data_for_FY22[[#This Row],[Median]])/25)*10) + AAMC_Raw_Data_for_FY22[[#This Row],[Median]]","v":247025},{"$f":"(((AAMC_Raw_Data_for_FY22[[#This Row],[75th]]-AAMC_Raw_Data_for_FY22[[#This Row],[Median]])/25)*15) + AAMC_Raw_Data_for_FY22[[#This Row],[Median]]","v":250640},{"$f":"(((AAMC_Raw_Data_for_FY22[[#This Row],[75th]]-AAMC_Raw_Data_for_FY22[[#This Row],[Median]])/25)*20) + AAMC_Raw_Data_for_FY22[[#This Row],[Median]]","v":254255},257870,{"$f":"(((AAMC_Raw_Data_for_FY22[[#This Row],[75th]]-AAMC_Raw_Data_for_FY22[[#This Row],[Median]])/25)*30) + AAMC_Raw_Data_for_FY22[[#This Row],[Median]]","v":261485},{"$f":"(((AAMC_Raw_Data_for_FY22[[#This Row],[75th]]-AAMC_Raw_Data_for_FY22[[#This Row],[Median]])/25)*35) + AAMC_Raw_Data_for_FY22[[#This Row],[Median]]","v":265100},{"$f":"(((AAMC_Raw_Data_for_FY22[[#This Row],[75th]]-AAMC_Raw_Data_for_FY22[[#This Row],[Median]])/25)*40) + AAMC_Raw_Data_for_FY22[[#This Row],[Median]]","v":268715}]
[{"$f":"AAMC_Raw_Data_for_FY22[[#This Row],[Source]]&AAMC_Raw_Data_for_FY22[[#This Row],[Type]]&AAMC_Raw_Data_for_FY22[[#This Row],[School Subset]]&AAMC_Raw_Data_for_FY22[[#This Row],[Rank]]&AAMC_Raw_Data_for_FY22[[#This Row],[Degree]]&AAMC_Raw_Data_for_FY22[[#This Row],[Department / Specialty]]&\"L\"","v":"AAMCAcademicPrivateChiefPhDPsychology-Peds.L"},"Psychology-Peds.",6,"AAMC","Academic","Private","Chief","PhD","2021-2022",null,{"$f":"(((AAMC_Raw_Data_for_FY22[[#This Row],[Median]]-AAMC_Raw_Data_for_FY22[[#This Row],[25th]])/25)*5) + AAMC_Raw_Data_for_FY22[[#This Row],[25th]]","v":0},{"$f":"(((AAMC_Raw_Data_for_FY22[[#This Row],[Median]]-AAMC_Raw_Data_for_FY22[[#This Row],[25th]])/25)*10) + AAMC_Raw_Data_for_FY22[[#This Row],[25th]]","v":0},{"$f":"(((AAMC_Raw_Data_for_FY22[[#This Row],[Median]]-AAMC_Raw_Data_for_FY22[[#This Row],[25th]])/25)*15) + AAMC_Raw_Data_for_FY22[[#This Row],[25th]]","v":0},{"$f":"(((AAMC_Raw_Data_for_FY22[[#This Row],[Median]]-AAMC_Raw_Data_for_FY22[[#This Row],[25th]])/25)*20) + AAMC_Raw_Data_for_FY22[[#This Row],[25th]]","v":0},null,{"$f":"(((AAMC_Raw_Data_for_FY22[[#This Row],[75th]]-AAMC_Raw_Data_for_FY22[[#This Row],[Median]])/25)*5) + AAMC_Raw_Data_for_FY22[[#This Row],[Median]]","v":0},{"$f":"(((AAMC_Raw_Data_for_FY22[[#This Row],[75th]]-AAMC_Raw_Data_for_FY22[[#This Row],[Median]])/25)*10) + AAMC_Raw_Data_for_FY22[[#This Row],[Median]]","v":0},{"$f":"(((AAMC_Raw_Data_for_FY22[[#This Row],[75th]]-AAMC_Raw_Data_for_FY22[[#This Row],[Median]])/25)*15) + AAMC_Raw_Data_for_FY22[[#This Row],[Median]]","v":0},{"$f":"(((AAMC_Raw_Data_for_FY22[[#This Row],[75th]]-AAMC_Raw_Data_for_FY22[[#This Row],[Median]])/25)*20) + AAMC_Raw_Data_for_FY22[[#This Row],[Median]]","v":0},null,{"$f":"(((AAMC_Raw_Data_for_FY22[[#This Row],[75th]]-AAMC_Raw_Data_for_FY22[[#This Row],[Median]])/25)*30) + AAMC_Raw_Data_for_FY22[[#This Row],[Median]]","v":0},{"$f":"(((AAMC_Raw_Data_for_FY22[[#This Row],[75th]]-AAMC_Raw_Data_for_FY22[[#This Row],[Median]])/25)*35) + AAMC_Raw_Data_for_FY22[[#This Row],[Median]]","v":0},{"$f":"(((AAMC_Raw_Data_for_FY22[[#This Row],[75th]]-AAMC_Raw_Data_for_FY22[[#This Row],[Median]])/25)*40) + AAMC_Raw_Data_for_FY22[[#This Row],[Median]]","v":0}]
[{"$f":"AAMC_Raw_Data_for_FY22[[#This Row],[Source]]&AAMC_Raw_Data_for_FY22[[#This Row],[Type]]&AAMC_Raw_Data_for_FY22[[#This Row],[School Subset]]&AAMC_Raw_Data_for_FY22[[#This Row],[Rank]]&AAMC_Raw_Data_for_FY22[[#This Row],[Degree]]&AAMC_Raw_Data_for_FY22[[#This Row],[Department / Specialty]]&\"L\"","v":"AAMCAcademicPrivateAssistantPhDPulmonary-Peds.L"},"Pulmonary-Peds.",4,"AAMC","Academic","Private","Assistant","PhD","2021-2022",null,{"$f":"(((AAMC_Raw_Data_for_FY22[[#This Row],[Median]]-AAMC_Raw_Data_for_FY22[[#This Row],[25th]])/25)*5) + AAMC_Raw_Data_for_FY22[[#This Row],[25th]]","v":0},{"$f":"(((AAMC_Raw_Data_for_FY22[[#This Row],[Median]]-AAMC_Raw_Data_for_FY22[[#This Row],[25th]])/25)*10) + AAMC_Raw_Data_for_FY22[[#This Row],[25th]]","v":0},{"$f":"(((AAMC_Raw_Data_for_FY22[[#This Row],[Median]]-AAMC_Raw_Data_for_FY22[[#This Row],[25th]])/25)*15) + AAMC_Raw_Data_for_FY22[[#This Row],[25th]]","v":0},{"$f":"(((AAMC_Raw_Data_for_FY22[[#This Row],[Median]]-AAMC_Raw_Data_for_FY22[[#This Row],[25th]])/25)*20) + AAMC_Raw_Data_for_FY22[[#This Row],[25th]]","v":0},null,{"$f":"(((AAMC_Raw_Data_for_FY22[[#This Row],[75th]]-AAMC_Raw_Data_for_FY22[[#This Row],[Median]])/25)*5) + AAMC_Raw_Data_for_FY22[[#This Row],[Median]]","v":0},{"$f":"(((AAMC_Raw_Data_for_FY22[[#This Row],[75th]]-AAMC_Raw_Data_for_FY22[[#This Row],[Median]])/25)*10) + AAMC_Raw_Data_for_FY22[[#This Row],[Median]]","v":0},{"$f":"(((AAMC_Raw_Data_for_FY22[[#This Row],[75th]]-AAMC_Raw_Data_for_FY22[[#This Row],[Median]])/25)*15) + AAMC_Raw_Data_for_FY22[[#This Row],[Median]]","v":0},{"$f":"(((AAMC_Raw_Data_for_FY22[[#This Row],[75th]]-AAMC_Raw_Data_for_FY22[[#This Row],[Median]])/25)*20) + AAMC_Raw_Data_for_FY22[[#This Row],[Median]]","v":0},null,{"$f":"(((AAMC_Raw_Data_for_FY22[[#This Row],[75th]]-AAMC_Raw_Data_for_FY22[[#This Row],[Median]])/25)*30) + AAMC_Raw_Data_for_FY22[[#This Row],[Median]]","v":0},{"$f":"(((AAMC_Raw_Data_for_FY22[[#This Row],[75th]]-AAMC_Raw_Data_for_FY22[[#This Row],[Median]])/25)*35) + AAMC_Raw_Data_for_FY22[[#This Row],[Median]]","v":0},{"$f":"(((AAMC_Raw_Data_for_FY22[[#This Row],[75th]]-AAMC_Raw_Data_for_FY22[[#This Row],[Median]])/25)*40) + AAMC_Raw_Data_for_FY22[[#This Row],[Median]]","v":0}]
[{"$f":"AAMC_Raw_Data_for_FY22[[#This Row],[Source]]&AAMC_Raw_Data_for_FY22[[#This Row],[Type]]&AAMC_Raw_Data_for_FY22[[#This Row],[School Subset]]&AAMC_Raw_Data_for_FY22[[#This Row],[Rank]]&AAMC_Raw_Data_for_FY22[[#This Row],[Degree]]&AAMC_Raw_Data_for_FY22[[#This Row],[Department / Specialty]]&\"L\"","v":"AAMCAcademicPrivateAssociatePhDPulmonary-Peds.L"},"Pulmonary-Peds.",3,"AAMC","Academic","Private","Associate","PhD","2021-2022",null,{"$f":"(((AAMC_Raw_Data_for_FY22[[#This Row],[Median]]-AAMC_Raw_Data_for_FY22[[#This Row],[25th]])/25)*5) + AAMC_Raw_Data_for_FY22[[#This Row],[25th]]","v":0},{"$f":"(((AAMC_Raw_Data_for_FY22[[#This Row],[Median]]-AAMC_Raw_Data_for_FY22[[#This Row],[25th]])/25)*10) + AAMC_Raw_Data_for_FY22[[#This Row],[25th]]","v":0},{"$f":"(((AAMC_Raw_Data_for_FY22[[#This Row],[Median]]-AAMC_Raw_Data_for_FY22[[#This Row],[25th]])/25)*15) + AAMC_Raw_Data_for_FY22[[#This Row],[25th]]","v":0},{"$f":"(((AAMC_Raw_Data_for_FY22[[#This Row],[Median]]-AAMC_Raw_Data_for_FY22[[#This Row],[25th]])/25)*20) + AAMC_Raw_Data_for_FY22[[#This Row],[25th]]","v":0},null,{"$f":"(((AAMC_Raw_Data_for_FY22[[#This Row],[75th]]-AAMC_Raw_Data_for_FY22[[#This Row],[Median]])/25)*5) + AAMC_Raw_Data_for_FY22[[#This Row],[Median]]","v":0},{"$f":"(((AAMC_Raw_Data_for_FY22[[#This Row],[75th]]-AAMC_Raw_Data_for_FY22[[#This Row],[Median]])/25)*10) + AAMC_Raw_Data_for_FY22[[#This Row],[Median]]","v":0},{"$f":"(((AAMC_Raw_Data_for_FY22[[#This Row],[75th]]-AAMC_Raw_Data_for_FY22[[#This Row],[Median]])/25)*15) + AAMC_Raw_Data_for_FY22[[#This Row],[Median]]","v":0},{"$f":"(((AAMC_Raw_Data_for_FY22[[#This Row],[75th]]-AAMC_Raw_Data_for_FY22[[#This Row],[Median]])/25)*20) + AAMC_Raw_Data_for_FY22[[#This Row],[Median]]","v":0},null,{"$f":"(((AAMC_Raw_Data_for_FY22[[#This Row],[75th]]-AAMC_Raw_Data_for_FY22[[#This Row],[Median]])/25)*30) + AAMC_Raw_Data_for_FY22[[#This Row],[Median]]","v":0},{"$f":"(((AAMC_Raw_Data_for_FY22[[#This Row],[75th]]-AAMC_Raw_Data_for_FY22[[#This Row],[Median]])/25)*35) + AAMC_Raw_Data_for_FY22[[#This Row],[Median]]","v":0},{"$f":"(((AAMC_Raw_Data_for_FY22[[#This Row],[75th]]-AAMC_Raw_Data_for_FY22[[#This Row],[Median]])/25)*40) + AAMC_Raw_Data_for_FY22[[#This Row],[Median]]","v":0}]
[{"$f":"AAMC_Raw_Data_for_FY22[[#This Row],[Source]]&AAMC_Raw_Data_for_FY22[[#This Row],[Type]]&AAMC_Raw_Data_for_FY22[[#This Row],[School Subset]]&AAMC_Raw_Data_for_FY22[[#This Row],[Rank]]&AAMC_Raw_Data_for_FY22[[#This Row],[Degree]]&AAMC_Raw_Data_for_FY22[[#This Row],[Department / Specialty]]&\"L\"","v":"AAMCAcademicPrivateProfessorPhDPulmonary-Peds.L"},"Pulmonary-Peds.",2,"AAMC","Academic","Private","Professor","PhD","2021-2022",null,{"$f":"(((AAMC_Raw_Data_for_FY22[[#This Row],[Median]]-AAMC_Raw_Data_for_FY22[[#This Row],[25th]])/25)*5) + AAMC_Raw_Data_for_FY22[[#This Row],[25th]]","v":0},{"$f":"(((AAMC_Raw_Data_for_FY22[[#This Row],[Median]]-AAMC_Raw_Data_for_FY22[[#This Row],[25th]])/25)*10) + AAMC_Raw_Data_for_FY22[[#This Row],[25th]]","v":0},{"$f":"(((AAMC_Raw_Data_for_FY22[[#This Row],[Median]]-AAMC_Raw_Data_for_FY22[[#This Row],[25th]])/25)*15) + AAMC_Raw_Data_for_FY22[[#This Row],[25th]]","v":0},{"$f":"(((AAMC_Raw_Data_for_FY22[[#This Row],[Median]]-AAMC_Raw_Data_for_FY22[[#This Row],[25th]])/25)*20) + AAMC_Raw_Data_for_FY22[[#This Row],[25th]]","v":0},null,{"$f":"(((AAMC_Raw_Data_for_FY22[[#This Row],[75th]]-AAMC_Raw_Data_for_FY22[[#This Row],[Median]])/25)*5) + AAMC_Raw_Data_for_FY22[[#This Row],[Median]]","v":0},{"$f":"(((AAMC_Raw_Data_for_FY22[[#This Row],[75th]]-AAMC_Raw_Data_for_FY22[[#This Row],[Median]])/25)*10) + AAMC_Raw_Data_for_FY22[[#This Row],[Median]]","v":0},{"$f":"(((AAMC_Raw_Data_for_FY22[[#This Row],[75th]]-AAMC_Raw_Data_for_FY22[[#This Row],[Median]])/25)*15) + AAMC_Raw_Data_for_FY22[[#This Row],[Median]]","v":0},{"$f":"(((AAMC_Raw_Data_for_FY22[[#This Row],[75th]]-AAMC_Raw_Data_for_FY22[[#This Row],[Median]])/25)*20) + AAMC_Raw_Data_for_FY22[[#This Row],[Median]]","v":0},null,{"$f":"(((AAMC_Raw_Data_for_FY22[[#This Row],[75th]]-AAMC_Raw_Data_for_FY22[[#This Row],[Median]])/25)*30) + AAMC_Raw_Data_for_FY22[[#This Row],[Median]]","v":0},{"$f":"(((AAMC_Raw_Data_for_FY22[[#This Row],[75th]]-AAMC_Raw_Data_for_FY22[[#This Row],[Median]])/25)*35) + AAMC_Raw_Data_for_FY22[[#This Row],[Median]]","v":0},{"$f":"(((AAMC_Raw_Data_for_FY22[[#This Row],[75th]]-AAMC_Raw_Data_for_FY22[[#This Row],[Median]])/25)*40) + AAMC_Raw_Data_for_FY22[[#This Row],[Median]]","v":0}]
[{"$f":"AAMC_Raw_Data_for_FY22[[#This Row],[Source]]&AAMC_Raw_Data_for_FY22[[#This Row],[Type]]&AAMC_Raw_Data_for_FY22[[#This Row],[School Subset]]&AAMC_Raw_Data_for_FY22[[#This Row],[Rank]]&AAMC_Raw_Data_for_FY22[[#This Row],[Degree]]&AAMC_Raw_Data_for_FY22[[#This Row],[Department / Specialty]]&\"L\"","v":"AAMCAcademicPrivateAssistantPhDRheumatology-Peds.L"},"Rheumatology-Peds.",4,"AAMC","Academic","Private","Assistant","PhD","2021-2022",null,{"$f":"(((AAMC_Raw_Data_for_FY22[[#This Row],[Median]]-AAMC_Raw_Data_for_FY22[[#This Row],[25th]])/25)*5) + AAMC_Raw_Data_for_FY22[[#This Row],[25th]]","v":0},{"$f":"(((AAMC_Raw_Data_for_FY22[[#This Row],[Median]]-AAMC_Raw_Data_for_FY22[[#This Row],[25th]])/25)*10) + AAMC_Raw_Data_for_FY22[[#This Row],[25th]]","v":0},{"$f":"(((AAMC_Raw_Data_for_FY22[[#This Row],[Median]]-AAMC_Raw_Data_for_FY22[[#This Row],[25th]])/25)*15) + AAMC_Raw_Data_for_FY22[[#This Row],[25th]]","v":0},{"$f":"(((AAMC_Raw_Data_for_FY22[[#This Row],[Median]]-AAMC_Raw_Data_for_FY22[[#This Row],[25th]])/25)*20) + AAMC_Raw_Data_for_FY22[[#This Row],[25th]]","v":0},null,{"$f":"(((AAMC_Raw_Data_for_FY22[[#This Row],[75th]]-AAMC_Raw_Data_for_FY22[[#This Row],[Median]])/25)*5) + AAMC_Raw_Data_for_FY22[[#This Row],[Median]]","v":0},{"$f":"(((AAMC_Raw_Data_for_FY22[[#This Row],[75th]]-AAMC_Raw_Data_for_FY22[[#This Row],[Median]])/25)*10) + AAMC_Raw_Data_for_FY22[[#This Row],[Median]]","v":0},{"$f":"(((AAMC_Raw_Data_for_FY22[[#This Row],[75th]]-AAMC_Raw_Data_for_FY22[[#This Row],[Median]])/25)*15) + AAMC_Raw_Data_for_FY22[[#This Row],[Median]]","v":0},{"$f":"(((AAMC_Raw_Data_for_FY22[[#This Row],[75th]]-AAMC_Raw_Data_for_FY22[[#This Row],[Median]])/25)*20) + AAMC_Raw_Data_for_FY22[[#This Row],[Median]]","v":0},null,{"$f":"(((AAMC_Raw_Data_for_FY22[[#This Row],[75th]]-AAMC_Raw_Data_for_FY22[[#This Row],[Median]])/25)*30) + AAMC_Raw_Data_for_FY22[[#This Row],[Median]]","v":0},{"$f":"(((AAMC_Raw_Data_for_FY22[[#This Row],[75th]]-AAMC_Raw_Data_for_FY22[[#This Row],[Median]])/25)*35) + AAMC_Raw_Data_for_FY22[[#This Row],[Median]]","v":0},{"$f":"(((AAMC_Raw_Data_for_FY22[[#This Row],[75th]]-AAMC_Raw_Data_for_FY22[[#This Row],[Median]])/25)*40) + AAMC_Raw_Data_for_FY22[[#This Row],[Median]]","v":0}]
[{"$f":"AAMC_Raw_Data_for_FY22[[#This Row],[Source]]&AAMC_Raw_Data_for_FY22[[#This Row],[Type]]&AAMC_Raw_Data_for_FY22[[#This Row],[School Subset]]&AAMC_Raw_Data_for_FY22[[#This Row],[Rank]]&AAMC_Raw_Data_for_FY22[[#This Row],[Degree]]&AAMC_Raw_Data_for_FY22[[#This Row],[Department / Specialty]]&\"L\"","v":"AAMCAcademicPrivateAssociatePhDRheumatology-Peds.L"},"Rheumatology-Peds.",3,"AAMC","Academic","Private","Associate","PhD","2021-2022",null,{"$f":"(((AAMC_Raw_Data_for_FY22[[#This Row],[Median]]-AAMC_Raw_Data_for_FY22[[#This Row],[25th]])/25)*5) + AAMC_Raw_Data_for_FY22[[#This Row],[25th]]","v":0},{"$f":"(((AAMC_Raw_Data_for_FY22[[#This Row],[Median]]-AAMC_Raw_Data_for_FY22[[#This Row],[25th]])/25)*10) + AAMC_Raw_Data_for_FY22[[#This Row],[25th]]","v":0},{"$f":"(((AAMC_Raw_Data_for_FY22[[#This Row],[Median]]-AAMC_Raw_Data_for_FY22[[#This Row],[25th]])/25)*15) + AAMC_Raw_Data_for_FY22[[#This Row],[25th]]","v":0},{"$f":"(((AAMC_Raw_Data_for_FY22[[#This Row],[Median]]-AAMC_Raw_Data_for_FY22[[#This Row],[25th]])/25)*20) + AAMC_Raw_Data_for_FY22[[#This Row],[25th]]","v":0},null,{"$f":"(((AAMC_Raw_Data_for_FY22[[#This Row],[75th]]-AAMC_Raw_Data_for_FY22[[#This Row],[Median]])/25)*5) + AAMC_Raw_Data_for_FY22[[#This Row],[Median]]","v":0},{"$f":"(((AAMC_Raw_Data_for_FY22[[#This Row],[75th]]-AAMC_Raw_Data_for_FY22[[#This Row],[Median]])/25)*10) + AAMC_Raw_Data_for_FY22[[#This Row],[Median]]","v":0},{"$f":"(((AAMC_Raw_Data_for_FY22[[#This Row],[75th]]-AAMC_Raw_Data_for_FY22[[#This Row],[Median]])/25)*15) + AAMC_Raw_Data_for_FY22[[#This Row],[Median]]","v":0},{"$f":"(((AAMC_Raw_Data_for_FY22[[#This Row],[75th]]-AAMC_Raw_Data_for_FY22[[#This Row],[Median]])/25)*20) + AAMC_Raw_Data_for_FY22[[#This Row],[Median]]","v":0},null,{"$f":"(((AAMC_Raw_Data_for_FY22[[#This Row],[75th]]-AAMC_Raw_Data_for_FY22[[#This Row],[Median]])/25)*30) + AAMC_Raw_Data_for_FY22[[#This Row],[Median]]","v":0},{"$f":"(((AAMC_Raw_Data_for_FY22[[#This Row],[75th]]-AAMC_Raw_Data_for_FY22[[#This Row],[Median]])/25)*35) + AAMC_Raw_Data_for_FY22[[#This Row],[Median]]","v":0},{"$f":"(((AAMC_Raw_Data_for_FY22[[#This Row],[75th]]-AAMC_Raw_Data_for_FY22[[#This Row],[Median]])/25)*40) + AAMC_Raw_Data_for_FY22[[#This Row],[Median]]","v":0}]
[{"$f":"AAMC_Raw_Data_for_FY22[[#This Row],[Source]]&AAMC_Raw_Data_for_FY22[[#This Row],[Type]]&AAMC_Raw_Data_for_FY22[[#This Row],[School Subset]]&AAMC_Raw_Data_for_FY22[[#This Row],[Rank]]&AAMC_Raw_Data_for_FY22[[#This Row],[Degree]]&AAMC_Raw_Data_for_FY22[[#This Row],[Department / Specialty]]&\"L\"","v":"AAMCAcademicPrivateProfessorPhDRheumatology-Peds.L"},"Rheumatology-Peds.",2,"AAMC","Academic","Private","Professor","PhD","2021-2022",null,{"$f":"(((AAMC_Raw_Data_for_FY22[[#This Row],[Median]]-AAMC_Raw_Data_for_FY22[[#This Row],[25th]])/25)*5) + AAMC_Raw_Data_for_FY22[[#This Row],[25th]]","v":0},{"$f":"(((AAMC_Raw_Data_for_FY22[[#This Row],[Median]]-AAMC_Raw_Data_for_FY22[[#This Row],[25th]])/25)*10) + AAMC_Raw_Data_for_FY22[[#This Row],[25th]]","v":0},{"$f":"(((AAMC_Raw_Data_for_FY22[[#This Row],[Median]]-AAMC_Raw_Data_for_FY22[[#This Row],[25th]])/25)*15) + AAMC_Raw_Data_for_FY22[[#This Row],[25th]]","v":0},{"$f":"(((AAMC_Raw_Data_for_FY22[[#This Row],[Median]]-AAMC_Raw_Data_for_FY22[[#This Row],[25th]])/25)*20) + AAMC_Raw_Data_for_FY22[[#This Row],[25th]]","v":0},null,{"$f":"(((AAMC_Raw_Data_for_FY22[[#This Row],[75th]]-AAMC_Raw_Data_for_FY22[[#This Row],[Median]])/25)*5) + AAMC_Raw_Data_for_FY22[[#This Row],[Median]]","v":0},{"$f":"(((AAMC_Raw_Data_for_FY22[[#This Row],[75th]]-AAMC_Raw_Data_for_FY22[[#This Row],[Median]])/25)*10) + AAMC_Raw_Data_for_FY22[[#This Row],[Median]]","v":0},{"$f":"(((AAMC_Raw_Data_for_FY22[[#This Row],[75th]]-AAMC_Raw_Data_for_FY22[[#This Row],[Median]])/25)*15) + AAMC_Raw_Data_for_FY22[[#This Row],[Median]]","v":0},{"$f":"(((AAMC_Raw_Data_for_FY22[[#This Row],[75th]]-AAMC_Raw_Data_for_FY22[[#This Row],[Median]])/25)*20) + AAMC_Raw_Data_for_FY22[[#This Row],[Median]]","v":0},null,{"$f":"(((AAMC_Raw_Data_for_FY22[[#This Row],[75th]]-AAMC_Raw_Data_for_FY22[[#This Row],[Median]])/25)*30) + AAMC_Raw_Data_for_FY22[[#This Row],[Median]]","v":0},{"$f":"(((AAMC_Raw_Data_for_FY22[[#This Row],[75th]]-AAMC_Raw_Data_for_FY22[[#This Row],[Median]])/25)*35) + AAMC_Raw_Data_for_FY22[[#This Row],[Median]]","v":0},{"$f":"(((AAMC_Raw_Data_for_FY22[[#This Row],[75th]]-AAMC_Raw_Data_for_FY22[[#This Row],[Median]])/25)*40) + AAMC_Raw_Data_for_FY22[[#This Row],[Median]]","v":0}]
[{"$f":"AAMC_Raw_Data_for_FY22[[#This Row],[Source]]&AAMC_Raw_Data_for_FY22[[#This Row],[Type]]&AAMC_Raw_Data_for_FY22[[#This Row],[School Subset]]&AAMC_Raw_Data_for_FY22[[#This Row],[Rank]]&AAMC_Raw_Data_for_FY22[[#This Row],[Degree]]&AAMC_Raw_Data_for_FY22[[#This Row],[Department / Specialty]]&\"L\"","v":"AAMCAcademicPrivateInstructorPhDOther PediatricsL"},"Other Pediatrics",5,"AAMC","Academic","Private","Instructor","PhD","2021-2022",null,{"$f":"(((AAMC_Raw_Data_for_FY22[[#This Row],[Median]]-AAMC_Raw_Data_for_FY22[[#This Row],[25th]])/25)*5) + AAMC_Raw_Data_for_FY22[[#This Row],[25th]]","v":0},{"$f":"(((AAMC_Raw_Data_for_FY22[[#This Row],[Median]]-AAMC_Raw_Data_for_FY22[[#This Row],[25th]])/25)*10) + AAMC_Raw_Data_for_FY22[[#This Row],[25th]]","v":0},{"$f":"(((AAMC_Raw_Data_for_FY22[[#This Row],[Median]]-AAMC_Raw_Data_for_FY22[[#This Row],[25th]])/25)*15) + AAMC_Raw_Data_for_FY22[[#This Row],[25th]]","v":0},{"$f":"(((AAMC_Raw_Data_for_FY22[[#This Row],[Median]]-AAMC_Raw_Data_for_FY22[[#This Row],[25th]])/25)*20) + AAMC_Raw_Data_for_FY22[[#This Row],[25th]]","v":0},null,{"$f":"(((AAMC_Raw_Data_for_FY22[[#This Row],[75th]]-AAMC_Raw_Data_for_FY22[[#This Row],[Median]])/25)*5) + AAMC_Raw_Data_for_FY22[[#This Row],[Median]]","v":0},{"$f":"(((AAMC_Raw_Data_for_FY22[[#This Row],[75th]]-AAMC_Raw_Data_for_FY22[[#This Row],[Median]])/25)*10) + AAMC_Raw_Data_for_FY22[[#This Row],[Median]]","v":0},{"$f":"(((AAMC_Raw_Data_for_FY22[[#This Row],[75th]]-AAMC_Raw_Data_for_FY22[[#This Row],[Median]])/25)*15) + AAMC_Raw_Data_for_FY22[[#This Row],[Median]]","v":0},{"$f":"(((AAMC_Raw_Data_for_FY22[[#This Row],[75th]]-AAMC_Raw_Data_for_FY22[[#This Row],[Median]])/25)*20) + AAMC_Raw_Data_for_FY22[[#This Row],[Median]]","v":0},null,{"$f":"(((AAMC_Raw_Data_for_FY22[[#This Row],[75th]]-AAMC_Raw_Data_for_FY22[[#This Row],[Median]])/25)*30) + AAMC_Raw_Data_for_FY22[[#This Row],[Median]]","v":0},{"$f":"(((AAMC_Raw_Data_for_FY22[[#This Row],[75th]]-AAMC_Raw_Data_for_FY22[[#This Row],[Median]])/25)*35) + AAMC_Raw_Data_for_FY22[[#This Row],[Median]]","v":0},{"$f":"(((AAMC_Raw_Data_for_FY22[[#This Row],[75th]]-AAMC_Raw_Data_for_FY22[[#This Row],[Median]])/25)*40) + AAMC_Raw_Data_for_FY22[[#This Row],[Median]]","v":0}]
[{"$f":"AAMC_Raw_Data_for_FY22[[#This Row],[Source]]&AAMC_Raw_Data_for_FY22[[#This Row],[Type]]&AAMC_Raw_Data_for_FY22[[#This Row],[School Subset]]&AAMC_Raw_Data_for_FY22[[#This Row],[Rank]]&AAMC_Raw_Data_for_FY22[[#This Row],[Degree]]&AAMC_Raw_Data_for_FY22[[#This Row],[Department / Specialty]]&\"L\"","v":"AAMCAcademicPrivateAssistantPhDOther PediatricsL"},"Other Pediatrics",4,"AAMC","Academic","Private","Assistant","PhD","2021-2022",97002,{"$f":"(((AAMC_Raw_Data_for_FY22[[#This Row],[Median]]-AAMC_Raw_Data_for_FY22[[#This Row],[25th]])/25)*5) + AAMC_Raw_Data_for_FY22[[#This Row],[25th]]","v":101132.4},{"$f":"(((AAMC_Raw_Data_for_FY22[[#This Row],[Median]]-AAMC_Raw_Data_for_FY22[[#This Row],[25th]])/25)*10) + AAMC_Raw_Data_for_FY22[[#This Row],[25th]]","v":105262.8},{"$f":"(((AAMC_Raw_Data_for_FY22[[#This Row],[Median]]-AAMC_Raw_Data_for_FY22[[#This Row],[25th]])/25)*15) + AAMC_Raw_Data_for_FY22[[#This Row],[25th]]","v":109393.2},{"$f":"(((AAMC_Raw_Data_for_FY22[[#This Row],[Median]]-AAMC_Raw_Data_for_FY22[[#This Row],[25th]])/25)*20) + AAMC_Raw_Data_for_FY22[[#This Row],[25th]]","v":113523.6},117654,{"$f":"(((AAMC_Raw_Data_for_FY22[[#This Row],[75th]]-AAMC_Raw_Data_for_FY22[[#This Row],[Median]])/25)*5) + AAMC_Raw_Data_for_FY22[[#This Row],[Median]]","v":119723.2},{"$f":"(((AAMC_Raw_Data_for_FY22[[#This Row],[75th]]-AAMC_Raw_Data_for_FY22[[#This Row],[Median]])/25)*10) + AAMC_Raw_Data_for_FY22[[#This Row],[Median]]","v":121792.4},{"$f":"(((AAMC_Raw_Data_for_FY22[[#This Row],[75th]]-AAMC_Raw_Data_for_FY22[[#This Row],[Median]])/25)*15) + AAMC_Raw_Data_for_FY22[[#This Row],[Median]]","v":123861.6},{"$f":"(((AAMC_Raw_Data_for_FY22[[#This Row],[75th]]-AAMC_Raw_Data_for_FY22[[#This Row],[Median]])/25)*20) + AAMC_Raw_Data_for_FY22[[#This Row],[Median]]","v":125930.8},128000,{"$f":"(((AAMC_Raw_Data_for_FY22[[#This Row],[75th]]-AAMC_Raw_Data_for_FY22[[#This Row],[Median]])/25)*30) + AAMC_Raw_Data_for_FY22[[#This Row],[Median]]","v":130069.2},{"$f":"(((AAMC_Raw_Data_for_FY22[[#This Row],[75th]]-AAMC_Raw_Data_for_FY22[[#This Row],[Median]])/25)*35) + AAMC_Raw_Data_for_FY22[[#This Row],[Median]]","v":132138.4},{"$f":"(((AAMC_Raw_Data_for_FY22[[#This Row],[75th]]-AAMC_Raw_Data_for_FY22[[#This Row],[Median]])/25)*40) + AAMC_Raw_Data_for_FY22[[#This Row],[Median]]","v":134207.6}]
[{"$f":"AAMC_Raw_Data_for_FY22[[#This Row],[Source]]&AAMC_Raw_Data_for_FY22[[#This Row],[Type]]&AAMC_Raw_Data_for_FY22[[#This Row],[School Subset]]&AAMC_Raw_Data_for_FY22[[#This Row],[Rank]]&AAMC_Raw_Data_for_FY22[[#This Row],[Degree]]&AAMC_Raw_Data_for_FY22[[#This Row],[Department / Specialty]]&\"L\"","v":"AAMCAcademicPrivateAssociatePhDOther PediatricsL"},"Other Pediatrics",3,"AAMC","Academic","Private","Associate","PhD","2021-2022",142638,{"$f":"(((AAMC_Raw_Data_for_FY22[[#This Row],[Median]]-AAMC_Raw_Data_for_FY22[[#This Row],[25th]])/25)*5) + AAMC_Raw_Data_for_FY22[[#This Row],[25th]]","v":144045.4},{"$f":"(((AAMC_Raw_Data_for_FY22[[#This Row],[Median]]-AAMC_Raw_Data_for_FY22[[#This Row],[25th]])/25)*10) + AAMC_Raw_Data_for_FY22[[#This Row],[25th]]","v":145452.79999999999},{"$f":"(((AAMC_Raw_Data_for_FY22[[#This Row],[Median]]-AAMC_Raw_Data_for_FY22[[#This Row],[25th]])/25)*15) + AAMC_Raw_Data_for_FY22[[#This Row],[25th]]","v":146860.20000000001},{"$f":"(((AAMC_Raw_Data_for_FY22[[#This Row],[Median]]-AAMC_Raw_Data_for_FY22[[#This Row],[25th]])/25)*20) + AAMC_Raw_Data_for_FY22[[#This Row],[25th]]","v":148267.6},149675,{"$f":"(((AAMC_Raw_Data_for_FY22[[#This Row],[75th]]-AAMC_Raw_Data_for_FY22[[#This Row],[Median]])/25)*5) + AAMC_Raw_Data_for_FY22[[#This Row],[Median]]","v":153080.79999999999},{"$f":"(((AAMC_Raw_Data_for_FY22[[#This Row],[75th]]-AAMC_Raw_Data_for_FY22[[#This Row],[Median]])/25)*10) + AAMC_Raw_Data_for_FY22[[#This Row],[Median]]","v":156486.6},{"$f":"(((AAMC_Raw_Data_for_FY22[[#This Row],[75th]]-AAMC_Raw_Data_for_FY22[[#This Row],[Median]])/25)*15) + AAMC_Raw_Data_for_FY22[[#This Row],[Median]]","v":159892.4},{"$f":"(((AAMC_Raw_Data_for_FY22[[#This Row],[75th]]-AAMC_Raw_Data_for_FY22[[#This Row],[Median]])/25)*20) + AAMC_Raw_Data_for_FY22[[#This Row],[Median]]","v":163298.20000000001},166704,{"$f":"(((AAMC_Raw_Data_for_FY22[[#This Row],[75th]]-AAMC_Raw_Data_for_FY22[[#This Row],[Median]])/25)*30) + AAMC_Raw_Data_for_FY22[[#This Row],[Median]]","v":170109.8},{"$f":"(((AAMC_Raw_Data_for_FY22[[#This Row],[75th]]-AAMC_Raw_Data_for_FY22[[#This Row],[Median]])/25)*35) + AAMC_Raw_Data_for_FY22[[#This Row],[Median]]","v":173515.6},{"$f":"(((AAMC_Raw_Data_for_FY22[[#This Row],[75th]]-AAMC_Raw_Data_for_FY22[[#This Row],[Median]])/25)*40) + AAMC_Raw_Data_for_FY22[[#This Row],[Median]]","v":176921.4}]
[{"$f":"AAMC_Raw_Data_for_FY22[[#This Row],[Source]]&AAMC_Raw_Data_for_FY22[[#This Row],[Type]]&AAMC_Raw_Data_for_FY22[[#This Row],[School Subset]]&AAMC_Raw_Data_for_FY22[[#This Row],[Rank]]&AAMC_Raw_Data_for_FY22[[#This Row],[Degree]]&AAMC_Raw_Data_for_FY22[[#This Row],[Department / Specialty]]&\"L\"","v":"AAMCAcademicPrivateProfessorPhDOther PediatricsL"},"Other Pediatrics",2,"AAMC","Academic","Private","Professor","PhD","2021-2022",217936,{"$f":"(((AAMC_Raw_Data_for_FY22[[#This Row],[Median]]-AAMC_Raw_Data_for_FY22[[#This Row],[25th]])/25)*5) + AAMC_Raw_Data_for_FY22[[#This Row],[25th]]","v":222419.4},{"$f":"(((AAMC_Raw_Data_for_FY22[[#This Row],[Median]]-AAMC_Raw_Data_for_FY22[[#This Row],[25th]])/25)*10) + AAMC_Raw_Data_for_FY22[[#This Row],[25th]]","v":226902.8},{"$f":"(((AAMC_Raw_Data_for_FY22[[#This Row],[Median]]-AAMC_Raw_Data_for_FY22[[#This Row],[25th]])/25)*15) + AAMC_Raw_Data_for_FY22[[#This Row],[25th]]","v":231386.2},{"$f":"(((AAMC_Raw_Data_for_FY22[[#This Row],[Median]]-AAMC_Raw_Data_for_FY22[[#This Row],[25th]])/25)*20) + AAMC_Raw_Data_for_FY22[[#This Row],[25th]]","v":235869.6},240353,{"$f":"(((AAMC_Raw_Data_for_FY22[[#This Row],[75th]]-AAMC_Raw_Data_for_FY22[[#This Row],[Median]])/25)*5) + AAMC_Raw_Data_for_FY22[[#This Row],[Median]]","v":248751.4},{"$f":"(((AAMC_Raw_Data_for_FY22[[#This Row],[75th]]-AAMC_Raw_Data_for_FY22[[#This Row],[Median]])/25)*10) + AAMC_Raw_Data_for_FY22[[#This Row],[Median]]","v":257149.8},{"$f":"(((AAMC_Raw_Data_for_FY22[[#This Row],[75th]]-AAMC_Raw_Data_for_FY22[[#This Row],[Median]])/25)*15) + AAMC_Raw_Data_for_FY22[[#This Row],[Median]]","v":265548.2},{"$f":"(((AAMC_Raw_Data_for_FY22[[#This Row],[75th]]-AAMC_Raw_Data_for_FY22[[#This Row],[Median]])/25)*20) + AAMC_Raw_Data_for_FY22[[#This Row],[Median]]","v":273946.59999999998},282345,{"$f":"(((AAMC_Raw_Data_for_FY22[[#This Row],[75th]]-AAMC_Raw_Data_for_FY22[[#This Row],[Median]])/25)*30) + AAMC_Raw_Data_for_FY22[[#This Row],[Median]]","v":290743.40000000002},{"$f":"(((AAMC_Raw_Data_for_FY22[[#This Row],[75th]]-AAMC_Raw_Data_for_FY22[[#This Row],[Median]])/25)*35) + AAMC_Raw_Data_for_FY22[[#This Row],[Median]]","v":299141.8},{"$f":"(((AAMC_Raw_Data_for_FY22[[#This Row],[75th]]-AAMC_Raw_Data_for_FY22[[#This Row],[Median]])/25)*40) + AAMC_Raw_Data_for_FY22[[#This Row],[Median]]","v":307540.2}]
[{"$f":"AAMC_Raw_Data_for_FY22[[#This Row],[Source]]&AAMC_Raw_Data_for_FY22[[#This Row],[Type]]&AAMC_Raw_Data_for_FY22[[#This Row],[School Subset]]&AAMC_Raw_Data_for_FY22[[#This Row],[Rank]]&AAMC_Raw_Data_for_FY22[[#This Row],[Degree]]&AAMC_Raw_Data_for_FY22[[#This Row],[Department / Specialty]]&\"L\"","v":"AAMCAcademicPrivateChiefPhDOther PediatricsL"},"Other Pediatrics",6,"AAMC","Academic","Private","Chief","PhD","2021-2022",null,{"$f":"(((AAMC_Raw_Data_for_FY22[[#This Row],[Median]]-AAMC_Raw_Data_for_FY22[[#This Row],[25th]])/25)*5) + AAMC_Raw_Data_for_FY22[[#This Row],[25th]]","v":0},{"$f":"(((AAMC_Raw_Data_for_FY22[[#This Row],[Median]]-AAMC_Raw_Data_for_FY22[[#This Row],[25th]])/25)*10) + AAMC_Raw_Data_for_FY22[[#This Row],[25th]]","v":0},{"$f":"(((AAMC_Raw_Data_for_FY22[[#This Row],[Median]]-AAMC_Raw_Data_for_FY22[[#This Row],[25th]])/25)*15) + AAMC_Raw_Data_for_FY22[[#This Row],[25th]]","v":0},{"$f":"(((AAMC_Raw_Data_for_FY22[[#This Row],[Median]]-AAMC_Raw_Data_for_FY22[[#This Row],[25th]])/25)*20) + AAMC_Raw_Data_for_FY22[[#This Row],[25th]]","v":0},null,{"$f":"(((AAMC_Raw_Data_for_FY22[[#This Row],[75th]]-AAMC_Raw_Data_for_FY22[[#This Row],[Median]])/25)*5) + AAMC_Raw_Data_for_FY22[[#This Row],[Median]]","v":0},{"$f":"(((AAMC_Raw_Data_for_FY22[[#This Row],[75th]]-AAMC_Raw_Data_for_FY22[[#This Row],[Median]])/25)*10) + AAMC_Raw_Data_for_FY22[[#This Row],[Median]]","v":0},{"$f":"(((AAMC_Raw_Data_for_FY22[[#This Row],[75th]]-AAMC_Raw_Data_for_FY22[[#This Row],[Median]])/25)*15) + AAMC_Raw_Data_for_FY22[[#This Row],[Median]]","v":0},{"$f":"(((AAMC_Raw_Data_for_FY22[[#This Row],[75th]]-AAMC_Raw_Data_for_FY22[[#This Row],[Median]])/25)*20) + AAMC_Raw_Data_for_FY22[[#This Row],[Median]]","v":0},null,{"$f":"(((AAMC_Raw_Data_for_FY22[[#This Row],[75th]]-AAMC_Raw_Data_for_FY22[[#This Row],[Median]])/25)*30) + AAMC_Raw_Data_for_FY22[[#This Row],[Median]]","v":0},{"$f":"(((AAMC_Raw_Data_for_FY22[[#This Row],[75th]]-AAMC_Raw_Data_for_FY22[[#This Row],[Median]])/25)*35) + AAMC_Raw_Data_for_FY22[[#This Row],[Median]]","v":0},{"$f":"(((AAMC_Raw_Data_for_FY22[[#This Row],[75th]]-AAMC_Raw_Data_for_FY22[[#This Row],[Median]])/25)*40) + AAMC_Raw_Data_for_FY22[[#This Row],[Median]]","v":0}]
[{"$f":"AAMC_Raw_Data_for_FY22[[#This Row],[Source]]&AAMC_Raw_Data_for_FY22[[#This Row],[Type]]&AAMC_Raw_Data_for_FY22[[#This Row],[School Subset]]&AAMC_Raw_Data_for_FY22[[#This Row],[Rank]]&AAMC_Raw_Data_for_FY22[[#This Row],[Degree]]&AAMC_Raw_Data_for_FY22[[#This Row],[Department / Specialty]]&\"L\"","v":"AAMCAcademicPrivateInstructorPhDPsychiatry TotalL"},"Psychiatry Total",5,"AAMC","Academic","Private","Instructor","PhD","2021-2022",85000,{"$f":"(((AAMC_Raw_Data_for_FY22[[#This Row],[Median]]-AAMC_Raw_Data_for_FY22[[#This Row],[25th]])/25)*5) + AAMC_Raw_Data_for_FY22[[#This Row],[25th]]","v":89326.8},{"$f":"(((AAMC_Raw_Data_for_FY22[[#This Row],[Median]]-AAMC_Raw_Data_for_FY22[[#This Row],[25th]])/25)*10) + AAMC_Raw_Data_for_FY22[[#This Row],[25th]]","v":93653.6},{"$f":"(((AAMC_Raw_Data_for_FY22[[#This Row],[Median]]-AAMC_Raw_Data_for_FY22[[#This Row],[25th]])/25)*15) + AAMC_Raw_Data_for_FY22[[#This Row],[25th]]","v":97980.4},{"$f":"(((AAMC_Raw_Data_for_FY22[[#This Row],[Median]]-AAMC_Raw_Data_for_FY22[[#This Row],[25th]])/25)*20) + AAMC_Raw_Data_for_FY22[[#This Row],[25th]]","v":102307.2},106634,{"$f":"(((AAMC_Raw_Data_for_FY22[[#This Row],[75th]]-AAMC_Raw_Data_for_FY22[[#This Row],[Median]])/25)*5) + AAMC_Raw_Data_for_FY22[[#This Row],[Median]]","v":111595.8},{"$f":"(((AAMC_Raw_Data_for_FY22[[#This Row],[75th]]-AAMC_Raw_Data_for_FY22[[#This Row],[Median]])/25)*10) + AAMC_Raw_Data_for_FY22[[#This Row],[Median]]","v":116557.6},{"$f":"(((AAMC_Raw_Data_for_FY22[[#This Row],[75th]]-AAMC_Raw_Data_for_FY22[[#This Row],[Median]])/25)*15) + AAMC_Raw_Data_for_FY22[[#This Row],[Median]]","v":121519.4},{"$f":"(((AAMC_Raw_Data_for_FY22[[#This Row],[75th]]-AAMC_Raw_Data_for_FY22[[#This Row],[Median]])/25)*20) + AAMC_Raw_Data_for_FY22[[#This Row],[Median]]","v":126481.2},131443,{"$f":"(((AAMC_Raw_Data_for_FY22[[#This Row],[75th]]-AAMC_Raw_Data_for_FY22[[#This Row],[Median]])/25)*30) + AAMC_Raw_Data_for_FY22[[#This Row],[Median]]","v":136404.79999999999},{"$f":"(((AAMC_Raw_Data_for_FY22[[#This Row],[75th]]-AAMC_Raw_Data_for_FY22[[#This Row],[Median]])/25)*35) + AAMC_Raw_Data_for_FY22[[#This Row],[Median]]","v":141366.6},{"$f":"(((AAMC_Raw_Data_for_FY22[[#This Row],[75th]]-AAMC_Raw_Data_for_FY22[[#This Row],[Median]])/25)*40) + AAMC_Raw_Data_for_FY22[[#This Row],[Median]]","v":146328.4}]
[{"$f":"AAMC_Raw_Data_for_FY22[[#This Row],[Source]]&AAMC_Raw_Data_for_FY22[[#This Row],[Type]]&AAMC_Raw_Data_for_FY22[[#This Row],[School Subset]]&AAMC_Raw_Data_for_FY22[[#This Row],[Rank]]&AAMC_Raw_Data_for_FY22[[#This Row],[Degree]]&AAMC_Raw_Data_for_FY22[[#This Row],[Department / Specialty]]&\"L\"","v":"AAMCAcademicPrivateAssistantPhDPsychiatry TotalL"},"Psychiatry Total",4,"AAMC","Academic","Private","Assistant","PhD","2021-2022",106000,{"$f":"(((AAMC_Raw_Data_for_FY22[[#This Row],[Median]]-AAMC_Raw_Data_for_FY22[[#This Row],[25th]])/25)*5) + AAMC_Raw_Data_for_FY22[[#This Row],[25th]]","v":108000},{"$f":"(((AAMC_Raw_Data_for_FY22[[#This Row],[Median]]-AAMC_Raw_Data_for_FY22[[#This Row],[25th]])/25)*10) + AAMC_Raw_Data_for_FY22[[#This Row],[25th]]","v":110000},{"$f":"(((AAMC_Raw_Data_for_FY22[[#This Row],[Median]]-AAMC_Raw_Data_for_FY22[[#This Row],[25th]])/25)*15) + AAMC_Raw_Data_for_FY22[[#This Row],[25th]]","v":112000},{"$f":"(((AAMC_Raw_Data_for_FY22[[#This Row],[Median]]-AAMC_Raw_Data_for_FY22[[#This Row],[25th]])/25)*20) + AAMC_Raw_Data_for_FY22[[#This Row],[25th]]","v":114000},116000,{"$f":"(((AAMC_Raw_Data_for_FY22[[#This Row],[75th]]-AAMC_Raw_Data_for_FY22[[#This Row],[Median]])/25)*5) + AAMC_Raw_Data_for_FY22[[#This Row],[Median]]","v":119373.6},{"$f":"(((AAMC_Raw_Data_for_FY22[[#This Row],[75th]]-AAMC_Raw_Data_for_FY22[[#This Row],[Median]])/25)*10) + AAMC_Raw_Data_for_FY22[[#This Row],[Median]]","v":122747.2},{"$f":"(((AAMC_Raw_Data_for_FY22[[#This Row],[75th]]-AAMC_Raw_Data_for_FY22[[#This Row],[Median]])/25)*15) + AAMC_Raw_Data_for_FY22[[#This Row],[Median]]","v":126120.8},{"$f":"(((AAMC_Raw_Data_for_FY22[[#This Row],[75th]]-AAMC_Raw_Data_for_FY22[[#This Row],[Median]])/25)*20) + AAMC_Raw_Data_for_FY22[[#This Row],[Median]]","v":129494.39999999999},132868,{"$f":"(((AAMC_Raw_Data_for_FY22[[#This Row],[75th]]-AAMC_Raw_Data_for_FY22[[#This Row],[Median]])/25)*30) + AAMC_Raw_Data_for_FY22[[#This Row],[Median]]","v":136241.60000000001},{"$f":"(((AAMC_Raw_Data_for_FY22[[#This Row],[75th]]-AAMC_Raw_Data_for_FY22[[#This Row],[Median]])/25)*35) + AAMC_Raw_Data_for_FY22[[#This Row],[Median]]","v":139615.20000000001},{"$f":"(((AAMC_Raw_Data_for_FY22[[#This Row],[75th]]-AAMC_Raw_Data_for_FY22[[#This Row],[Median]])/25)*40) + AAMC_Raw_Data_for_FY22[[#This Row],[Median]]","v":142988.79999999999}]
[{"$f":"AAMC_Raw_Data_for_FY22[[#This Row],[Source]]&AAMC_Raw_Data_for_FY22[[#This Row],[Type]]&AAMC_Raw_Data_for_FY22[[#This Row],[School Subset]]&AAMC_Raw_Data_for_FY22[[#This Row],[Rank]]&AAMC_Raw_Data_for_FY22[[#This Row],[Degree]]&AAMC_Raw_Data_for_FY22[[#This Row],[Department / Specialty]]&\"L\"","v":"AAMCAcademicPrivateAssociatePhDPsychiatry TotalL"},"Psychiatry Total",3,"AAMC","Academic","Private","Associate","PhD","2021-2022",135024,{"$f":"(((AAMC_Raw_Data_for_FY22[[#This Row],[Median]]-AAMC_Raw_Data_for_FY22[[#This Row],[25th]])/25)*5) + AAMC_Raw_Data_for_FY22[[#This Row],[25th]]","v":138241},{"$f":"(((AAMC_Raw_Data_for_FY22[[#This Row],[Median]]-AAMC_Raw_Data_for_FY22[[#This Row],[25th]])/25)*10) + AAMC_Raw_Data_for_FY22[[#This Row],[25th]]","v":141458},{"$f":"(((AAMC_Raw_Data_for_FY22[[#This Row],[Median]]-AAMC_Raw_Data_for_FY22[[#This Row],[25th]])/25)*15) + AAMC_Raw_Data_for_FY22[[#This Row],[25th]]","v":144675},{"$f":"(((AAMC_Raw_Data_for_FY22[[#This Row],[Median]]-AAMC_Raw_Data_for_FY22[[#This Row],[25th]])/25)*20) + AAMC_Raw_Data_for_FY22[[#This Row],[25th]]","v":147892},151109,{"$f":"(((AAMC_Raw_Data_for_FY22[[#This Row],[75th]]-AAMC_Raw_Data_for_FY22[[#This Row],[Median]])/25)*5) + AAMC_Raw_Data_for_FY22[[#This Row],[Median]]","v":156415.20000000001},{"$f":"(((AAMC_Raw_Data_for_FY22[[#This Row],[75th]]-AAMC_Raw_Data_for_FY22[[#This Row],[Median]])/25)*10) + AAMC_Raw_Data_for_FY22[[#This Row],[Median]]","v":161721.4},{"$f":"(((AAMC_Raw_Data_for_FY22[[#This Row],[75th]]-AAMC_Raw_Data_for_FY22[[#This Row],[Median]])/25)*15) + AAMC_Raw_Data_for_FY22[[#This Row],[Median]]","v":167027.6},{"$f":"(((AAMC_Raw_Data_for_FY22[[#This Row],[75th]]-AAMC_Raw_Data_for_FY22[[#This Row],[Median]])/25)*20) + AAMC_Raw_Data_for_FY22[[#This Row],[Median]]","v":172333.8},177640,{"$f":"(((AAMC_Raw_Data_for_FY22[[#This Row],[75th]]-AAMC_Raw_Data_for_FY22[[#This Row],[Median]])/25)*30) + AAMC_Raw_Data_for_FY22[[#This Row],[Median]]","v":182946.2},{"$f":"(((AAMC_Raw_Data_for_FY22[[#This Row],[75th]]-AAMC_Raw_Data_for_FY22[[#This Row],[Median]])/25)*35) + AAMC_Raw_Data_for_FY22[[#This Row],[Median]]","v":188252.4},{"$f":"(((AAMC_Raw_Data_for_FY22[[#This Row],[75th]]-AAMC_Raw_Data_for_FY22[[#This Row],[Median]])/25)*40) + AAMC_Raw_Data_for_FY22[[#This Row],[Median]]","v":193558.6}]
[{"$f":"AAMC_Raw_Data_for_FY22[[#This Row],[Source]]&AAMC_Raw_Data_for_FY22[[#This Row],[Type]]&AAMC_Raw_Data_for_FY22[[#This Row],[School Subset]]&AAMC_Raw_Data_for_FY22[[#This Row],[Rank]]&AAMC_Raw_Data_for_FY22[[#This Row],[Degree]]&AAMC_Raw_Data_for_FY22[[#This Row],[Department / Specialty]]&\"L\"","v":"AAMCAcademicPrivateProfessorPhDPsychiatry TotalL"},"Psychiatry Total",2,"AAMC","Academic","Private","Professor","PhD","2021-2022",185401,{"$f":"(((AAMC_Raw_Data_for_FY22[[#This Row],[Median]]-AAMC_Raw_Data_for_FY22[[#This Row],[25th]])/25)*5) + AAMC_Raw_Data_for_FY22[[#This Row],[25th]]","v":193000},{"$f":"(((AAMC_Raw_Data_for_FY22[[#This Row],[Median]]-AAMC_Raw_Data_for_FY22[[#This Row],[25th]])/25)*10) + AAMC_Raw_Data_for_FY22[[#This Row],[25th]]","v":200599},{"$f":"(((AAMC_Raw_Data_for_FY22[[#This Row],[Median]]-AAMC_Raw_Data_for_FY22[[#This Row],[25th]])/25)*15) + AAMC_Raw_Data_for_FY22[[#This Row],[25th]]","v":208198},{"$f":"(((AAMC_Raw_Data_for_FY22[[#This Row],[Median]]-AAMC_Raw_Data_for_FY22[[#This Row],[25th]])/25)*20) + AAMC_Raw_Data_for_FY22[[#This Row],[25th]]","v":215797},223396,{"$f":"(((AAMC_Raw_Data_for_FY22[[#This Row],[75th]]-AAMC_Raw_Data_for_FY22[[#This Row],[Median]])/25)*5) + AAMC_Raw_Data_for_FY22[[#This Row],[Median]]","v":230864.8},{"$f":"(((AAMC_Raw_Data_for_FY22[[#This Row],[75th]]-AAMC_Raw_Data_for_FY22[[#This Row],[Median]])/25)*10) + AAMC_Raw_Data_for_FY22[[#This Row],[Median]]","v":238333.6},{"$f":"(((AAMC_Raw_Data_for_FY22[[#This Row],[75th]]-AAMC_Raw_Data_for_FY22[[#This Row],[Median]])/25)*15) + AAMC_Raw_Data_for_FY22[[#This Row],[Median]]","v":245802.4},{"$f":"(((AAMC_Raw_Data_for_FY22[[#This Row],[75th]]-AAMC_Raw_Data_for_FY22[[#This Row],[Median]])/25)*20) + AAMC_Raw_Data_for_FY22[[#This Row],[Median]]","v":253271.2},260740,{"$f":"(((AAMC_Raw_Data_for_FY22[[#This Row],[75th]]-AAMC_Raw_Data_for_FY22[[#This Row],[Median]])/25)*30) + AAMC_Raw_Data_for_FY22[[#This Row],[Median]]","v":268208.8},{"$f":"(((AAMC_Raw_Data_for_FY22[[#This Row],[75th]]-AAMC_Raw_Data_for_FY22[[#This Row],[Median]])/25)*35) + AAMC_Raw_Data_for_FY22[[#This Row],[Median]]","v":275677.59999999998},{"$f":"(((AAMC_Raw_Data_for_FY22[[#This Row],[75th]]-AAMC_Raw_Data_for_FY22[[#This Row],[Median]])/25)*40) + AAMC_Raw_Data_for_FY22[[#This Row],[Median]]","v":283146.40000000002}]
[{"$f":"AAMC_Raw_Data_for_FY22[[#This Row],[Source]]&AAMC_Raw_Data_for_FY22[[#This Row],[Type]]&AAMC_Raw_Data_for_FY22[[#This Row],[School Subset]]&AAMC_Raw_Data_for_FY22[[#This Row],[Rank]]&AAMC_Raw_Data_for_FY22[[#This Row],[Degree]]&AAMC_Raw_Data_for_FY22[[#This Row],[Department / Specialty]]&\"L\"","v":"AAMCAcademicPrivateChiefPhDPsychiatry TotalL"},"Psychiatry Total",6,"AAMC","Academic","Private","Chief","PhD","2021-2022",null,{"$f":"(((AAMC_Raw_Data_for_FY22[[#This Row],[Median]]-AAMC_Raw_Data_for_FY22[[#This Row],[25th]])/25)*5) + AAMC_Raw_Data_for_FY22[[#This Row],[25th]]","v":0},{"$f":"(((AAMC_Raw_Data_for_FY22[[#This Row],[Median]]-AAMC_Raw_Data_for_FY22[[#This Row],[25th]])/25)*10) + AAMC_Raw_Data_for_FY22[[#This Row],[25th]]","v":0},{"$f":"(((AAMC_Raw_Data_for_FY22[[#This Row],[Median]]-AAMC_Raw_Data_for_FY22[[#This Row],[25th]])/25)*15) + AAMC_Raw_Data_for_FY22[[#This Row],[25th]]","v":0},{"$f":"(((AAMC_Raw_Data_for_FY22[[#This Row],[Median]]-AAMC_Raw_Data_for_FY22[[#This Row],[25th]])/25)*20) + AAMC_Raw_Data_for_FY22[[#This Row],[25th]]","v":0},null,{"$f":"(((AAMC_Raw_Data_for_FY22[[#This Row],[75th]]-AAMC_Raw_Data_for_FY22[[#This Row],[Median]])/25)*5) + AAMC_Raw_Data_for_FY22[[#This Row],[Median]]","v":0},{"$f":"(((AAMC_Raw_Data_for_FY22[[#This Row],[75th]]-AAMC_Raw_Data_for_FY22[[#This Row],[Median]])/25)*10) + AAMC_Raw_Data_for_FY22[[#This Row],[Median]]","v":0},{"$f":"(((AAMC_Raw_Data_for_FY22[[#This Row],[75th]]-AAMC_Raw_Data_for_FY22[[#This Row],[Median]])/25)*15) + AAMC_Raw_Data_for_FY22[[#This Row],[Median]]","v":0},{"$f":"(((AAMC_Raw_Data_for_FY22[[#This Row],[75th]]-AAMC_Raw_Data_for_FY22[[#This Row],[Median]])/25)*20) + AAMC_Raw_Data_for_FY22[[#This Row],[Median]]","v":0},null,{"$f":"(((AAMC_Raw_Data_for_FY22[[#This Row],[75th]]-AAMC_Raw_Data_for_FY22[[#This Row],[Median]])/25)*30) + AAMC_Raw_Data_for_FY22[[#This Row],[Median]]","v":0},{"$f":"(((AAMC_Raw_Data_for_FY22[[#This Row],[75th]]-AAMC_Raw_Data_for_FY22[[#This Row],[Median]])/25)*35) + AAMC_Raw_Data_for_FY22[[#This Row],[Median]]","v":0},{"$f":"(((AAMC_Raw_Data_for_FY22[[#This Row],[75th]]-AAMC_Raw_Data_for_FY22[[#This Row],[Median]])/25)*40) + AAMC_Raw_Data_for_FY22[[#This Row],[Median]]","v":0}]
[{"$f":"AAMC_Raw_Data_for_FY22[[#This Row],[Source]]&AAMC_Raw_Data_for_FY22[[#This Row],[Type]]&AAMC_Raw_Data_for_FY22[[#This Row],[School Subset]]&AAMC_Raw_Data_for_FY22[[#This Row],[Rank]]&AAMC_Raw_Data_for_FY22[[#This Row],[Degree]]&AAMC_Raw_Data_for_FY22[[#This Row],[Department / Specialty]]&\"L\"","v":"AAMCAcademicPrivateInstructorPhDPsychiatry: Child & AdolescentL"},"Psychiatry: Child & Adolescent",5,"AAMC","Academic","Private","Instructor","PhD","2021-2022",null,{"$f":"(((AAMC_Raw_Data_for_FY22[[#This Row],[Median]]-AAMC_Raw_Data_for_FY22[[#This Row],[25th]])/25)*5) + AAMC_Raw_Data_for_FY22[[#This Row],[25th]]","v":0},{"$f":"(((AAMC_Raw_Data_for_FY22[[#This Row],[Median]]-AAMC_Raw_Data_for_FY22[[#This Row],[25th]])/25)*10) + AAMC_Raw_Data_for_FY22[[#This Row],[25th]]","v":0},{"$f":"(((AAMC_Raw_Data_for_FY22[[#This Row],[Median]]-AAMC_Raw_Data_for_FY22[[#This Row],[25th]])/25)*15) + AAMC_Raw_Data_for_FY22[[#This Row],[25th]]","v":0},{"$f":"(((AAMC_Raw_Data_for_FY22[[#This Row],[Median]]-AAMC_Raw_Data_for_FY22[[#This Row],[25th]])/25)*20) + AAMC_Raw_Data_for_FY22[[#This Row],[25th]]","v":0},null,{"$f":"(((AAMC_Raw_Data_for_FY22[[#This Row],[75th]]-AAMC_Raw_Data_for_FY22[[#This Row],[Median]])/25)*5) + AAMC_Raw_Data_for_FY22[[#This Row],[Median]]","v":0},{"$f":"(((AAMC_Raw_Data_for_FY22[[#This Row],[75th]]-AAMC_Raw_Data_for_FY22[[#This Row],[Median]])/25)*10) + AAMC_Raw_Data_for_FY22[[#This Row],[Median]]","v":0},{"$f":"(((AAMC_Raw_Data_for_FY22[[#This Row],[75th]]-AAMC_Raw_Data_for_FY22[[#This Row],[Median]])/25)*15) + AAMC_Raw_Data_for_FY22[[#This Row],[Median]]","v":0},{"$f":"(((AAMC_Raw_Data_for_FY22[[#This Row],[75th]]-AAMC_Raw_Data_for_FY22[[#This Row],[Median]])/25)*20) + AAMC_Raw_Data_for_FY22[[#This Row],[Median]]","v":0},null,{"$f":"(((AAMC_Raw_Data_for_FY22[[#This Row],[75th]]-AAMC_Raw_Data_for_FY22[[#This Row],[Median]])/25)*30) + AAMC_Raw_Data_for_FY22[[#This Row],[Median]]","v":0},{"$f":"(((AAMC_Raw_Data_for_FY22[[#This Row],[75th]]-AAMC_Raw_Data_for_FY22[[#This Row],[Median]])/25)*35) + AAMC_Raw_Data_for_FY22[[#This Row],[Median]]","v":0},{"$f":"(((AAMC_Raw_Data_for_FY22[[#This Row],[75th]]-AAMC_Raw_Data_for_FY22[[#This Row],[Median]])/25)*40) + AAMC_Raw_Data_for_FY22[[#This Row],[Median]]","v":0}]
[{"$f":"AAMC_Raw_Data_for_FY22[[#This Row],[Source]]&AAMC_Raw_Data_for_FY22[[#This Row],[Type]]&AAMC_Raw_Data_for_FY22[[#This Row],[School Subset]]&AAMC_Raw_Data_for_FY22[[#This Row],[Rank]]&AAMC_Raw_Data_for_FY22[[#This Row],[Degree]]&AAMC_Raw_Data_for_FY22[[#This Row],[Department / Specialty]]&\"L\"","v":"AAMCAcademicPrivateAssistantPhDPsychiatry: Child & AdolescentL"},"Psychiatry: Child & Adolescent",4,"AAMC","Academic","Private","Assistant","PhD","2021-2022",109559,{"$f":"(((AAMC_Raw_Data_for_FY22[[#This Row],[Median]]-AAMC_Raw_Data_for_FY22[[#This Row],[25th]])/25)*5) + AAMC_Raw_Data_for_FY22[[#This Row],[25th]]","v":111109.2},{"$f":"(((AAMC_Raw_Data_for_FY22[[#This Row],[Median]]-AAMC_Raw_Data_for_FY22[[#This Row],[25th]])/25)*10) + AAMC_Raw_Data_for_FY22[[#This Row],[25th]]","v":112659.4},{"$f":"(((AAMC_Raw_Data_for_FY22[[#This Row],[Median]]-AAMC_Raw_Data_for_FY22[[#This Row],[25th]])/25)*15) + AAMC_Raw_Data_for_FY22[[#This Row],[25th]]","v":114209.60000000001},{"$f":"(((AAMC_Raw_Data_for_FY22[[#This Row],[Median]]-AAMC_Raw_Data_for_FY22[[#This Row],[25th]])/25)*20) + AAMC_Raw_Data_for_FY22[[#This Row],[25th]]","v":115759.8},117310,{"$f":"(((AAMC_Raw_Data_for_FY22[[#This Row],[75th]]-AAMC_Raw_Data_for_FY22[[#This Row],[Median]])/25)*5) + AAMC_Raw_Data_for_FY22[[#This Row],[Median]]","v":120125.6},{"$f":"(((AAMC_Raw_Data_for_FY22[[#This Row],[75th]]-AAMC_Raw_Data_for_FY22[[#This Row],[Median]])/25)*10) + AAMC_Raw_Data_for_FY22[[#This Row],[Median]]","v":122941.2},{"$f":"(((AAMC_Raw_Data_for_FY22[[#This Row],[75th]]-AAMC_Raw_Data_for_FY22[[#This Row],[Median]])/25)*15) + AAMC_Raw_Data_for_FY22[[#This Row],[Median]]","v":125756.8},{"$f":"(((AAMC_Raw_Data_for_FY22[[#This Row],[75th]]-AAMC_Raw_Data_for_FY22[[#This Row],[Median]])/25)*20) + AAMC_Raw_Data_for_FY22[[#This Row],[Median]]","v":128572.4},131388,{"$f":"(((AAMC_Raw_Data_for_FY22[[#This Row],[75th]]-AAMC_Raw_Data_for_FY22[[#This Row],[Median]])/25)*30) + AAMC_Raw_Data_for_FY22[[#This Row],[Median]]","v":134203.6},{"$f":"(((AAMC_Raw_Data_for_FY22[[#This Row],[75th]]-AAMC_Raw_Data_for_FY22[[#This Row],[Median]])/25)*35) + AAMC_Raw_Data_for_FY22[[#This Row],[Median]]","v":137019.20000000001},{"$f":"(((AAMC_Raw_Data_for_FY22[[#This Row],[75th]]-AAMC_Raw_Data_for_FY22[[#This Row],[Median]])/25)*40) + AAMC_Raw_Data_for_FY22[[#This Row],[Median]]","v":139834.79999999999}]
[{"$f":"AAMC_Raw_Data_for_FY22[[#This Row],[Source]]&AAMC_Raw_Data_for_FY22[[#This Row],[Type]]&AAMC_Raw_Data_for_FY22[[#This Row],[School Subset]]&AAMC_Raw_Data_for_FY22[[#This Row],[Rank]]&AAMC_Raw_Data_for_FY22[[#This Row],[Degree]]&AAMC_Raw_Data_for_FY22[[#This Row],[Department / Specialty]]&\"L\"","v":"AAMCAcademicPrivateAssociatePhDPsychiatry: Child & AdolescentL"},"Psychiatry: Child & Adolescent",3,"AAMC","Academic","Private","Associate","PhD","2021-2022",136998,{"$f":"(((AAMC_Raw_Data_for_FY22[[#This Row],[Median]]-AAMC_Raw_Data_for_FY22[[#This Row],[25th]])/25)*5) + AAMC_Raw_Data_for_FY22[[#This Row],[25th]]","v":140621},{"$f":"(((AAMC_Raw_Data_for_FY22[[#This Row],[Median]]-AAMC_Raw_Data_for_FY22[[#This Row],[25th]])/25)*10) + AAMC_Raw_Data_for_FY22[[#This Row],[25th]]","v":144244},{"$f":"(((AAMC_Raw_Data_for_FY22[[#This Row],[Median]]-AAMC_Raw_Data_for_FY22[[#This Row],[25th]])/25)*15) + AAMC_Raw_Data_for_FY22[[#This Row],[25th]]","v":147867},{"$f":"(((AAMC_Raw_Data_for_FY22[[#This Row],[Median]]-AAMC_Raw_Data_for_FY22[[#This Row],[25th]])/25)*20) + AAMC_Raw_Data_for_FY22[[#This Row],[25th]]","v":151490},155113,{"$f":"(((AAMC_Raw_Data_for_FY22[[#This Row],[75th]]-AAMC_Raw_Data_for_FY22[[#This Row],[Median]])/25)*5) + AAMC_Raw_Data_for_FY22[[#This Row],[Median]]","v":161327.6},{"$f":"(((AAMC_Raw_Data_for_FY22[[#This Row],[75th]]-AAMC_Raw_Data_for_FY22[[#This Row],[Median]])/25)*10) + AAMC_Raw_Data_for_FY22[[#This Row],[Median]]","v":167542.20000000001},{"$f":"(((AAMC_Raw_Data_for_FY22[[#This Row],[75th]]-AAMC_Raw_Data_for_FY22[[#This Row],[Median]])/25)*15) + AAMC_Raw_Data_for_FY22[[#This Row],[Median]]","v":173756.79999999999},{"$f":"(((AAMC_Raw_Data_for_FY22[[#This Row],[75th]]-AAMC_Raw_Data_for_FY22[[#This Row],[Median]])/25)*20) + AAMC_Raw_Data_for_FY22[[#This Row],[Median]]","v":179971.4},186186,{"$f":"(((AAMC_Raw_Data_for_FY22[[#This Row],[75th]]-AAMC_Raw_Data_for_FY22[[#This Row],[Median]])/25)*30) + AAMC_Raw_Data_for_FY22[[#This Row],[Median]]","v":192400.6},{"$f":"(((AAMC_Raw_Data_for_FY22[[#This Row],[75th]]-AAMC_Raw_Data_for_FY22[[#This Row],[Median]])/25)*35) + AAMC_Raw_Data_for_FY22[[#This Row],[Median]]","v":198615.2},{"$f":"(((AAMC_Raw_Data_for_FY22[[#This Row],[75th]]-AAMC_Raw_Data_for_FY22[[#This Row],[Median]])/25)*40) + AAMC_Raw_Data_for_FY22[[#This Row],[Median]]","v":204829.8}]
[{"$f":"AAMC_Raw_Data_for_FY22[[#This Row],[Source]]&AAMC_Raw_Data_for_FY22[[#This Row],[Type]]&AAMC_Raw_Data_for_FY22[[#This Row],[School Subset]]&AAMC_Raw_Data_for_FY22[[#This Row],[Rank]]&AAMC_Raw_Data_for_FY22[[#This Row],[Degree]]&AAMC_Raw_Data_for_FY22[[#This Row],[Department / Specialty]]&\"L\"","v":"AAMCAcademicPrivateProfessorPhDPsychiatry: Child & AdolescentL"},"Psychiatry: Child & Adolescent",2,"AAMC","Academic","Private","Professor","PhD","2021-2022",210160,{"$f":"(((AAMC_Raw_Data_for_FY22[[#This Row],[Median]]-AAMC_Raw_Data_for_FY22[[#This Row],[25th]])/25)*5) + AAMC_Raw_Data_for_FY22[[#This Row],[25th]]","v":216088},{"$f":"(((AAMC_Raw_Data_for_FY22[[#This Row],[Median]]-AAMC_Raw_Data_for_FY22[[#This Row],[25th]])/25)*10) + AAMC_Raw_Data_for_FY22[[#This Row],[25th]]","v":222016},{"$f":"(((AAMC_Raw_Data_for_FY22[[#This Row],[Median]]-AAMC_Raw_Data_for_FY22[[#This Row],[25th]])/25)*15) + AAMC_Raw_Data_for_FY22[[#This Row],[25th]]","v":227944},{"$f":"(((AAMC_Raw_Data_for_FY22[[#This Row],[Median]]-AAMC_Raw_Data_for_FY22[[#This Row],[25th]])/25)*20) + AAMC_Raw_Data_for_FY22[[#This Row],[25th]]","v":233872},239800,{"$f":"(((AAMC_Raw_Data_for_FY22[[#This Row],[75th]]-AAMC_Raw_Data_for_FY22[[#This Row],[Median]])/25)*5) + AAMC_Raw_Data_for_FY22[[#This Row],[Median]]","v":243840},{"$f":"(((AAMC_Raw_Data_for_FY22[[#This Row],[75th]]-AAMC_Raw_Data_for_FY22[[#This Row],[Median]])/25)*10) + AAMC_Raw_Data_for_FY22[[#This Row],[Median]]","v":247880},{"$f":"(((AAMC_Raw_Data_for_FY22[[#This Row],[75th]]-AAMC_Raw_Data_for_FY22[[#This Row],[Median]])/25)*15) + AAMC_Raw_Data_for_FY22[[#This Row],[Median]]","v":251920},{"$f":"(((AAMC_Raw_Data_for_FY22[[#This Row],[75th]]-AAMC_Raw_Data_for_FY22[[#This Row],[Median]])/25)*20) + AAMC_Raw_Data_for_FY22[[#This Row],[Median]]","v":255960},260000,{"$f":"(((AAMC_Raw_Data_for_FY22[[#This Row],[75th]]-AAMC_Raw_Data_for_FY22[[#This Row],[Median]])/25)*30) + AAMC_Raw_Data_for_FY22[[#This Row],[Median]]","v":264040},{"$f":"(((AAMC_Raw_Data_for_FY22[[#This Row],[75th]]-AAMC_Raw_Data_for_FY22[[#This Row],[Median]])/25)*35) + AAMC_Raw_Data_for_FY22[[#This Row],[Median]]","v":268080},{"$f":"(((AAMC_Raw_Data_for_FY22[[#This Row],[75th]]-AAMC_Raw_Data_for_FY22[[#This Row],[Median]])/25)*40) + AAMC_Raw_Data_for_FY22[[#This Row],[Median]]","v":272120}]
[{"$f":"AAMC_Raw_Data_for_FY22[[#This Row],[Source]]&AAMC_Raw_Data_for_FY22[[#This Row],[Type]]&AAMC_Raw_Data_for_FY22[[#This Row],[School Subset]]&AAMC_Raw_Data_for_FY22[[#This Row],[Rank]]&AAMC_Raw_Data_for_FY22[[#This Row],[Degree]]&AAMC_Raw_Data_for_FY22[[#This Row],[Department / Specialty]]&\"L\"","v":"AAMCAcademicPrivateInstructorPhDPsychiatry: GeneralL"},"Psychiatry: General",5,"AAMC","Academic","Private","Instructor","PhD","2021-2022",90186,{"$f":"(((AAMC_Raw_Data_for_FY22[[#This Row],[Median]]-AAMC_Raw_Data_for_FY22[[#This Row],[25th]])/25)*5) + AAMC_Raw_Data_for_FY22[[#This Row],[25th]]","v":95709.6},{"$f":"(((AAMC_Raw_Data_for_FY22[[#This Row],[Median]]-AAMC_Raw_Data_for_FY22[[#This Row],[25th]])/25)*10) + AAMC_Raw_Data_for_FY22[[#This Row],[25th]]","v":101233.2},{"$f":"(((AAMC_Raw_Data_for_FY22[[#This Row],[Median]]-AAMC_Raw_Data_for_FY22[[#This Row],[25th]])/25)*15) + AAMC_Raw_Data_for_FY22[[#This Row],[25th]]","v":106756.8},{"$f":"(((AAMC_Raw_Data_for_FY22[[#This Row],[Median]]-AAMC_Raw_Data_for_FY22[[#This Row],[25th]])/25)*20) + AAMC_Raw_Data_for_FY22[[#This Row],[25th]]","v":112280.4},117804,{"$f":"(((AAMC_Raw_Data_for_FY22[[#This Row],[75th]]-AAMC_Raw_Data_for_FY22[[#This Row],[Median]])/25)*5) + AAMC_Raw_Data_for_FY22[[#This Row],[Median]]","v":122745.8},{"$f":"(((AAMC_Raw_Data_for_FY22[[#This Row],[75th]]-AAMC_Raw_Data_for_FY22[[#This Row],[Median]])/25)*10) + AAMC_Raw_Data_for_FY22[[#This Row],[Median]]","v":127687.6},{"$f":"(((AAMC_Raw_Data_for_FY22[[#This Row],[75th]]-AAMC_Raw_Data_for_FY22[[#This Row],[Median]])/25)*15) + AAMC_Raw_Data_for_FY22[[#This Row],[Median]]","v":132629.4},{"$f":"(((AAMC_Raw_Data_for_FY22[[#This Row],[75th]]-AAMC_Raw_Data_for_FY22[[#This Row],[Median]])/25)*20) + AAMC_Raw_Data_for_FY22[[#This Row],[Median]]","v":137571.20000000001},142513,{"$f":"(((AAMC_Raw_Data_for_FY22[[#This Row],[75th]]-AAMC_Raw_Data_for_FY22[[#This Row],[Median]])/25)*30) + AAMC_Raw_Data_for_FY22[[#This Row],[Median]]","v":147454.79999999999},{"$f":"(((AAMC_Raw_Data_for_FY22[[#This Row],[75th]]-AAMC_Raw_Data_for_FY22[[#This Row],[Median]])/25)*35) + AAMC_Raw_Data_for_FY22[[#This Row],[Median]]","v":152396.6},{"$f":"(((AAMC_Raw_Data_for_FY22[[#This Row],[75th]]-AAMC_Raw_Data_for_FY22[[#This Row],[Median]])/25)*40) + AAMC_Raw_Data_for_FY22[[#This Row],[Median]]","v":157338.4}]
[{"$f":"AAMC_Raw_Data_for_FY22[[#This Row],[Source]]&AAMC_Raw_Data_for_FY22[[#This Row],[Type]]&AAMC_Raw_Data_for_FY22[[#This Row],[School Subset]]&AAMC_Raw_Data_for_FY22[[#This Row],[Rank]]&AAMC_Raw_Data_for_FY22[[#This Row],[Degree]]&AAMC_Raw_Data_for_FY22[[#This Row],[Department / Specialty]]&\"L\"","v":"AAMCAcademicPrivateAssistantPhDPsychiatry: GeneralL"},"Psychiatry: General",4,"AAMC","Academic","Private","Assistant","PhD","2021-2022",107000,{"$f":"(((AAMC_Raw_Data_for_FY22[[#This Row],[Median]]-AAMC_Raw_Data_for_FY22[[#This Row],[25th]])/25)*5) + AAMC_Raw_Data_for_FY22[[#This Row],[25th]]","v":108240},{"$f":"(((AAMC_Raw_Data_for_FY22[[#This Row],[Median]]-AAMC_Raw_Data_for_FY22[[#This Row],[25th]])/25)*10) + AAMC_Raw_Data_for_FY22[[#This Row],[25th]]","v":109480},{"$f":"(((AAMC_Raw_Data_for_FY22[[#This Row],[Median]]-AAMC_Raw_Data_for_FY22[[#This Row],[25th]])/25)*15) + AAMC_Raw_Data_for_FY22[[#This Row],[25th]]","v":110720},{"$f":"(((AAMC_Raw_Data_for_FY22[[#This Row],[Median]]-AAMC_Raw_Data_for_FY22[[#This Row],[25th]])/25)*20) + AAMC_Raw_Data_for_FY22[[#This Row],[25th]]","v":111960},113200,{"$f":"(((AAMC_Raw_Data_for_FY22[[#This Row],[75th]]-AAMC_Raw_Data_for_FY22[[#This Row],[Median]])/25)*5) + AAMC_Raw_Data_for_FY22[[#This Row],[Median]]","v":117346.4},{"$f":"(((AAMC_Raw_Data_for_FY22[[#This Row],[75th]]-AAMC_Raw_Data_for_FY22[[#This Row],[Median]])/25)*10) + AAMC_Raw_Data_for_FY22[[#This Row],[Median]]","v":121492.8},{"$f":"(((AAMC_Raw_Data_for_FY22[[#This Row],[75th]]-AAMC_Raw_Data_for_FY22[[#This Row],[Median]])/25)*15) + AAMC_Raw_Data_for_FY22[[#This Row],[Median]]","v":125639.2},{"$f":"(((AAMC_Raw_Data_for_FY22[[#This Row],[75th]]-AAMC_Raw_Data_for_FY22[[#This Row],[Median]])/25)*20) + AAMC_Raw_Data_for_FY22[[#This Row],[Median]]","v":129785.60000000001},133932,{"$f":"(((AAMC_Raw_Data_for_FY22[[#This Row],[75th]]-AAMC_Raw_Data_for_FY22[[#This Row],[Median]])/25)*30) + AAMC_Raw_Data_for_FY22[[#This Row],[Median]]","v":138078.39999999999},{"$f":"(((AAMC_Raw_Data_for_FY22[[#This Row],[75th]]-AAMC_Raw_Data_for_FY22[[#This Row],[Median]])/25)*35) + AAMC_Raw_Data_for_FY22[[#This Row],[Median]]","v":142224.79999999999},{"$f":"(((AAMC_Raw_Data_for_FY22[[#This Row],[75th]]-AAMC_Raw_Data_for_FY22[[#This Row],[Median]])/25)*40) + AAMC_Raw_Data_for_FY22[[#This Row],[Median]]","v":146371.20000000001}]
[{"$f":"AAMC_Raw_Data_for_FY22[[#This Row],[Source]]&AAMC_Raw_Data_for_FY22[[#This Row],[Type]]&AAMC_Raw_Data_for_FY22[[#This Row],[School Subset]]&AAMC_Raw_Data_for_FY22[[#This Row],[Rank]]&AAMC_Raw_Data_for_FY22[[#This Row],[Degree]]&AAMC_Raw_Data_for_FY22[[#This Row],[Department / Specialty]]&\"L\"","v":"AAMCAcademicPrivateAssociatePhDPsychiatry: GeneralL"},"Psychiatry: General",3,"AAMC","Academic","Private","Associate","PhD","2021-2022",140607,{"$f":"(((AAMC_Raw_Data_for_FY22[[#This Row],[Median]]-AAMC_Raw_Data_for_FY22[[#This Row],[25th]])/25)*5) + AAMC_Raw_Data_for_FY22[[#This Row],[25th]]","v":143380.6},{"$f":"(((AAMC_Raw_Data_for_FY22[[#This Row],[Median]]-AAMC_Raw_Data_for_FY22[[#This Row],[25th]])/25)*10) + AAMC_Raw_Data_for_FY22[[#This Row],[25th]]","v":146154.20000000001},{"$f":"(((AAMC_Raw_Data_for_FY22[[#This Row],[Median]]-AAMC_Raw_Data_for_FY22[[#This Row],[25th]])/25)*15) + AAMC_Raw_Data_for_FY22[[#This Row],[25th]]","v":148927.79999999999},{"$f":"(((AAMC_Raw_Data_for_FY22[[#This Row],[Median]]-AAMC_Raw_Data_for_FY22[[#This Row],[25th]])/25)*20) + AAMC_Raw_Data_for_FY22[[#This Row],[25th]]","v":151701.4},154475,{"$f":"(((AAMC_Raw_Data_for_FY22[[#This Row],[75th]]-AAMC_Raw_Data_for_FY22[[#This Row],[Median]])/25)*5) + AAMC_Raw_Data_for_FY22[[#This Row],[Median]]","v":159630},{"$f":"(((AAMC_Raw_Data_for_FY22[[#This Row],[75th]]-AAMC_Raw_Data_for_FY22[[#This Row],[Median]])/25)*10) + AAMC_Raw_Data_for_FY22[[#This Row],[Median]]","v":164785},{"$f":"(((AAMC_Raw_Data_for_FY22[[#This Row],[75th]]-AAMC_Raw_Data_for_FY22[[#This Row],[Median]])/25)*15) + AAMC_Raw_Data_for_FY22[[#This Row],[Median]]","v":169940},{"$f":"(((AAMC_Raw_Data_for_FY22[[#This Row],[75th]]-AAMC_Raw_Data_for_FY22[[#This Row],[Median]])/25)*20) + AAMC_Raw_Data_for_FY22[[#This Row],[Median]]","v":175095},180250,{"$f":"(((AAMC_Raw_Data_for_FY22[[#This Row],[75th]]-AAMC_Raw_Data_for_FY22[[#This Row],[Median]])/25)*30) + AAMC_Raw_Data_for_FY22[[#This Row],[Median]]","v":185405},{"$f":"(((AAMC_Raw_Data_for_FY22[[#This Row],[75th]]-AAMC_Raw_Data_for_FY22[[#This Row],[Median]])/25)*35) + AAMC_Raw_Data_for_FY22[[#This Row],[Median]]","v":190560},{"$f":"(((AAMC_Raw_Data_for_FY22[[#This Row],[75th]]-AAMC_Raw_Data_for_FY22[[#This Row],[Median]])/25)*40) + AAMC_Raw_Data_for_FY22[[#This Row],[Median]]","v":195715}]
[{"$f":"AAMC_Raw_Data_for_FY22[[#This Row],[Source]]&AAMC_Raw_Data_for_FY22[[#This Row],[Type]]&AAMC_Raw_Data_for_FY22[[#This Row],[School Subset]]&AAMC_Raw_Data_for_FY22[[#This Row],[Rank]]&AAMC_Raw_Data_for_FY22[[#This Row],[Degree]]&AAMC_Raw_Data_for_FY22[[#This Row],[Department / Specialty]]&\"L\"","v":"AAMCAcademicPrivateProfessorPhDPsychiatry: GeneralL"},"Psychiatry: General",2,"AAMC","Academic","Private","Professor","PhD","2021-2022",199227,{"$f":"(((AAMC_Raw_Data_for_FY22[[#This Row],[Median]]-AAMC_Raw_Data_for_FY22[[#This Row],[25th]])/25)*5) + AAMC_Raw_Data_for_FY22[[#This Row],[25th]]","v":205946},{"$f":"(((AAMC_Raw_Data_for_FY22[[#This Row],[Median]]-AAMC_Raw_Data_for_FY22[[#This Row],[25th]])/25)*10) + AAMC_Raw_Data_for_FY22[[#This Row],[25th]]","v":212665},{"$f":"(((AAMC_Raw_Data_for_FY22[[#This Row],[Median]]-AAMC_Raw_Data_for_FY22[[#This Row],[25th]])/25)*15) + AAMC_Raw_Data_for_FY22[[#This Row],[25th]]","v":219384},{"$f":"(((AAMC_Raw_Data_for_FY22[[#This Row],[Median]]-AAMC_Raw_Data_for_FY22[[#This Row],[25th]])/25)*20) + AAMC_Raw_Data_for_FY22[[#This Row],[25th]]","v":226103},232822,{"$f":"(((AAMC_Raw_Data_for_FY22[[#This Row],[75th]]-AAMC_Raw_Data_for_FY22[[#This Row],[Median]])/25)*5) + AAMC_Raw_Data_for_FY22[[#This Row],[Median]]","v":242937.60000000001},{"$f":"(((AAMC_Raw_Data_for_FY22[[#This Row],[75th]]-AAMC_Raw_Data_for_FY22[[#This Row],[Median]])/25)*10) + AAMC_Raw_Data_for_FY22[[#This Row],[Median]]","v":253053.2},{"$f":"(((AAMC_Raw_Data_for_FY22[[#This Row],[75th]]-AAMC_Raw_Data_for_FY22[[#This Row],[Median]])/25)*15) + AAMC_Raw_Data_for_FY22[[#This Row],[Median]]","v":263168.8},{"$f":"(((AAMC_Raw_Data_for_FY22[[#This Row],[75th]]-AAMC_Raw_Data_for_FY22[[#This Row],[Median]])/25)*20) + AAMC_Raw_Data_for_FY22[[#This Row],[Median]]","v":273284.40000000002},283400,{"$f":"(((AAMC_Raw_Data_for_FY22[[#This Row],[75th]]-AAMC_Raw_Data_for_FY22[[#This Row],[Median]])/25)*30) + AAMC_Raw_Data_for_FY22[[#This Row],[Median]]","v":293515.59999999998},{"$f":"(((AAMC_Raw_Data_for_FY22[[#This Row],[75th]]-AAMC_Raw_Data_for_FY22[[#This Row],[Median]])/25)*35) + AAMC_Raw_Data_for_FY22[[#This Row],[Median]]","v":303631.2},{"$f":"(((AAMC_Raw_Data_for_FY22[[#This Row],[75th]]-AAMC_Raw_Data_for_FY22[[#This Row],[Median]])/25)*40) + AAMC_Raw_Data_for_FY22[[#This Row],[Median]]","v":313746.8}]
[{"$f":"AAMC_Raw_Data_for_FY22[[#This Row],[Source]]&AAMC_Raw_Data_for_FY22[[#This Row],[Type]]&AAMC_Raw_Data_for_FY22[[#This Row],[School Subset]]&AAMC_Raw_Data_for_FY22[[#This Row],[Rank]]&AAMC_Raw_Data_for_FY22[[#This Row],[Degree]]&AAMC_Raw_Data_for_FY22[[#This Row],[Department / Specialty]]&\"L\"","v":"AAMCAcademicPrivateChiefPhDPsychiatry: GeneralL"},"Psychiatry: General",6,"AAMC","Academic","Private","Chief","PhD","2021-2022",null,{"$f":"(((AAMC_Raw_Data_for_FY22[[#This Row],[Median]]-AAMC_Raw_Data_for_FY22[[#This Row],[25th]])/25)*5) + AAMC_Raw_Data_for_FY22[[#This Row],[25th]]","v":0},{"$f":"(((AAMC_Raw_Data_for_FY22[[#This Row],[Median]]-AAMC_Raw_Data_for_FY22[[#This Row],[25th]])/25)*10) + AAMC_Raw_Data_for_FY22[[#This Row],[25th]]","v":0},{"$f":"(((AAMC_Raw_Data_for_FY22[[#This Row],[Median]]-AAMC_Raw_Data_for_FY22[[#This Row],[25th]])/25)*15) + AAMC_Raw_Data_for_FY22[[#This Row],[25th]]","v":0},{"$f":"(((AAMC_Raw_Data_for_FY22[[#This Row],[Median]]-AAMC_Raw_Data_for_FY22[[#This Row],[25th]])/25)*20) + AAMC_Raw_Data_for_FY22[[#This Row],[25th]]","v":0},null,{"$f":"(((AAMC_Raw_Data_for_FY22[[#This Row],[75th]]-AAMC_Raw_Data_for_FY22[[#This Row],[Median]])/25)*5) + AAMC_Raw_Data_for_FY22[[#This Row],[Median]]","v":0},{"$f":"(((AAMC_Raw_Data_for_FY22[[#This Row],[75th]]-AAMC_Raw_Data_for_FY22[[#This Row],[Median]])/25)*10) + AAMC_Raw_Data_for_FY22[[#This Row],[Median]]","v":0},{"$f":"(((AAMC_Raw_Data_for_FY22[[#This Row],[75th]]-AAMC_Raw_Data_for_FY22[[#This Row],[Median]])/25)*15) + AAMC_Raw_Data_for_FY22[[#This Row],[Median]]","v":0},{"$f":"(((AAMC_Raw_Data_for_FY22[[#This Row],[75th]]-AAMC_Raw_Data_for_FY22[[#This Row],[Median]])/25)*20) + AAMC_Raw_Data_for_FY22[[#This Row],[Median]]","v":0},null,{"$f":"(((AAMC_Raw_Data_for_FY22[[#This Row],[75th]]-AAMC_Raw_Data_for_FY22[[#This Row],[Median]])/25)*30) + AAMC_Raw_Data_for_FY22[[#This Row],[Median]]","v":0},{"$f":"(((AAMC_Raw_Data_for_FY22[[#This Row],[75th]]-AAMC_Raw_Data_for_FY22[[#This Row],[Median]])/25)*35) + AAMC_Raw_Data_for_FY22[[#This Row],[Median]]","v":0},{"$f":"(((AAMC_Raw_Data_for_FY22[[#This Row],[75th]]-AAMC_Raw_Data_for_FY22[[#This Row],[Median]])/25)*40) + AAMC_Raw_Data_for_FY22[[#This Row],[Median]]","v":0}]
[{"$f":"AAMC_Raw_Data_for_FY22[[#This Row],[Source]]&AAMC_Raw_Data_for_FY22[[#This Row],[Type]]&AAMC_Raw_Data_for_FY22[[#This Row],[School Subset]]&AAMC_Raw_Data_for_FY22[[#This Row],[Rank]]&AAMC_Raw_Data_for_FY22[[#This Row],[Degree]]&AAMC_Raw_Data_for_FY22[[#This Row],[Department / Specialty]]&\"L\"","v":"AAMCAcademicPrivateInstructorPhDPsychiatry: PsychologyL"},"Psychiatry: Psychology",5,"AAMC","Academic","Private","Instructor","PhD","2021-2022",49264,{"$f":"(((AAMC_Raw_Data_for_FY22[[#This Row],[Median]]-AAMC_Raw_Data_for_FY22[[#This Row],[25th]])/25)*5) + AAMC_Raw_Data_for_FY22[[#This Row],[25th]]","v":52516.2},{"$f":"(((AAMC_Raw_Data_for_FY22[[#This Row],[Median]]-AAMC_Raw_Data_for_FY22[[#This Row],[25th]])/25)*10) + AAMC_Raw_Data_for_FY22[[#This Row],[25th]]","v":55768.4},{"$f":"(((AAMC_Raw_Data_for_FY22[[#This Row],[Median]]-AAMC_Raw_Data_for_FY22[[#This Row],[25th]])/25)*15) + AAMC_Raw_Data_for_FY22[[#This Row],[25th]]","v":59020.6},{"$f":"(((AAMC_Raw_Data_for_FY22[[#This Row],[Median]]-AAMC_Raw_Data_for_FY22[[#This Row],[25th]])/25)*20) + AAMC_Raw_Data_for_FY22[[#This Row],[25th]]","v":62272.800000000003},65525,{"$f":"(((AAMC_Raw_Data_for_FY22[[#This Row],[75th]]-AAMC_Raw_Data_for_FY22[[#This Row],[Median]])/25)*5) + AAMC_Raw_Data_for_FY22[[#This Row],[Median]]","v":69383.199999999997},{"$f":"(((AAMC_Raw_Data_for_FY22[[#This Row],[75th]]-AAMC_Raw_Data_for_FY22[[#This Row],[Median]])/25)*10) + AAMC_Raw_Data_for_FY22[[#This Row],[Median]]","v":73241.399999999994},{"$f":"(((AAMC_Raw_Data_for_FY22[[#This Row],[75th]]-AAMC_Raw_Data_for_FY22[[#This Row],[Median]])/25)*15) + AAMC_Raw_Data_for_FY22[[#This Row],[Median]]","v":77099.600000000006},{"$f":"(((AAMC_Raw_Data_for_FY22[[#This Row],[75th]]-AAMC_Raw_Data_for_FY22[[#This Row],[Median]])/25)*20) + AAMC_Raw_Data_for_FY22[[#This Row],[Median]]","v":80957.8},84816,{"$f":"(((AAMC_Raw_Data_for_FY22[[#This Row],[75th]]-AAMC_Raw_Data_for_FY22[[#This Row],[Median]])/25)*30) + AAMC_Raw_Data_for_FY22[[#This Row],[Median]]","v":88674.2},{"$f":"(((AAMC_Raw_Data_for_FY22[[#This Row],[75th]]-AAMC_Raw_Data_for_FY22[[#This Row],[Median]])/25)*35) + AAMC_Raw_Data_for_FY22[[#This Row],[Median]]","v":92532.4},{"$f":"(((AAMC_Raw_Data_for_FY22[[#This Row],[75th]]-AAMC_Raw_Data_for_FY22[[#This Row],[Median]])/25)*40) + AAMC_Raw_Data_for_FY22[[#This Row],[Median]]","v":96390.6}]
[{"$f":"AAMC_Raw_Data_for_FY22[[#This Row],[Source]]&AAMC_Raw_Data_for_FY22[[#This Row],[Type]]&AAMC_Raw_Data_for_FY22[[#This Row],[School Subset]]&AAMC_Raw_Data_for_FY22[[#This Row],[Rank]]&AAMC_Raw_Data_for_FY22[[#This Row],[Degree]]&AAMC_Raw_Data_for_FY22[[#This Row],[Department / Specialty]]&\"L\"","v":"AAMCAcademicPrivateAssistantPhDPsychiatry: PsychologyL"},"Psychiatry: Psychology",4,"AAMC","Academic","Private","Assistant","PhD","2021-2022",106225,{"$f":"(((AAMC_Raw_Data_for_FY22[[#This Row],[Median]]-AAMC_Raw_Data_for_FY22[[#This Row],[25th]])/25)*5) + AAMC_Raw_Data_for_FY22[[#This Row],[25th]]","v":108672.6},{"$f":"(((AAMC_Raw_Data_for_FY22[[#This Row],[Median]]-AAMC_Raw_Data_for_FY22[[#This Row],[25th]])/25)*10) + AAMC_Raw_Data_for_FY22[[#This Row],[25th]]","v":111120.2},{"$f":"(((AAMC_Raw_Data_for_FY22[[#This Row],[Median]]-AAMC_Raw_Data_for_FY22[[#This Row],[25th]])/25)*15) + AAMC_Raw_Data_for_FY22[[#This Row],[25th]]","v":113567.8},{"$f":"(((AAMC_Raw_Data_for_FY22[[#This Row],[Median]]-AAMC_Raw_Data_for_FY22[[#This Row],[25th]])/25)*20) + AAMC_Raw_Data_for_FY22[[#This Row],[25th]]","v":116015.4},118463,{"$f":"(((AAMC_Raw_Data_for_FY22[[#This Row],[75th]]-AAMC_Raw_Data_for_FY22[[#This Row],[Median]])/25)*5) + AAMC_Raw_Data_for_FY22[[#This Row],[Median]]","v":121253.6},{"$f":"(((AAMC_Raw_Data_for_FY22[[#This Row],[75th]]-AAMC_Raw_Data_for_FY22[[#This Row],[Median]])/25)*10) + AAMC_Raw_Data_for_FY22[[#This Row],[Median]]","v":124044.2},{"$f":"(((AAMC_Raw_Data_for_FY22[[#This Row],[75th]]-AAMC_Raw_Data_for_FY22[[#This Row],[Median]])/25)*15) + AAMC_Raw_Data_for_FY22[[#This Row],[Median]]","v":126834.8},{"$f":"(((AAMC_Raw_Data_for_FY22[[#This Row],[75th]]-AAMC_Raw_Data_for_FY22[[#This Row],[Median]])/25)*20) + AAMC_Raw_Data_for_FY22[[#This Row],[Median]]","v":129625.4},132416,{"$f":"(((AAMC_Raw_Data_for_FY22[[#This Row],[75th]]-AAMC_Raw_Data_for_FY22[[#This Row],[Median]])/25)*30) + AAMC_Raw_Data_for_FY22[[#This Row],[Median]]","v":135206.6},{"$f":"(((AAMC_Raw_Data_for_FY22[[#This Row],[75th]]-AAMC_Raw_Data_for_FY22[[#This Row],[Median]])/25)*35) + AAMC_Raw_Data_for_FY22[[#This Row],[Median]]","v":137997.20000000001},{"$f":"(((AAMC_Raw_Data_for_FY22[[#This Row],[75th]]-AAMC_Raw_Data_for_FY22[[#This Row],[Median]])/25)*40) + AAMC_Raw_Data_for_FY22[[#This Row],[Median]]","v":140787.79999999999}]
[{"$f":"AAMC_Raw_Data_for_FY22[[#This Row],[Source]]&AAMC_Raw_Data_for_FY22[[#This Row],[Type]]&AAMC_Raw_Data_for_FY22[[#This Row],[School Subset]]&AAMC_Raw_Data_for_FY22[[#This Row],[Rank]]&AAMC_Raw_Data_for_FY22[[#This Row],[Degree]]&AAMC_Raw_Data_for_FY22[[#This Row],[Department / Specialty]]&\"L\"","v":"AAMCAcademicPrivateAssociatePhDPsychiatry: PsychologyL"},"Psychiatry: Psychology",3,"AAMC","Academic","Private","Associate","PhD","2021-2022",131916,{"$f":"(((AAMC_Raw_Data_for_FY22[[#This Row],[Median]]-AAMC_Raw_Data_for_FY22[[#This Row],[25th]])/25)*5) + AAMC_Raw_Data_for_FY22[[#This Row],[25th]]","v":134900.4},{"$f":"(((AAMC_Raw_Data_for_FY22[[#This Row],[Median]]-AAMC_Raw_Data_for_FY22[[#This Row],[25th]])/25)*10) + AAMC_Raw_Data_for_FY22[[#This Row],[25th]]","v":137884.79999999999},{"$f":"(((AAMC_Raw_Data_for_FY22[[#This Row],[Median]]-AAMC_Raw_Data_for_FY22[[#This Row],[25th]])/25)*15) + AAMC_Raw_Data_for_FY22[[#This Row],[25th]]","v":140869.20000000001},{"$f":"(((AAMC_Raw_Data_for_FY22[[#This Row],[Median]]-AAMC_Raw_Data_for_FY22[[#This Row],[25th]])/25)*20) + AAMC_Raw_Data_for_FY22[[#This Row],[25th]]","v":143853.6},146838,{"$f":"(((AAMC_Raw_Data_for_FY22[[#This Row],[75th]]-AAMC_Raw_Data_for_FY22[[#This Row],[Median]])/25)*5) + AAMC_Raw_Data_for_FY22[[#This Row],[Median]]","v":152657.4},{"$f":"(((AAMC_Raw_Data_for_FY22[[#This Row],[75th]]-AAMC_Raw_Data_for_FY22[[#This Row],[Median]])/25)*10) + AAMC_Raw_Data_for_FY22[[#This Row],[Median]]","v":158476.79999999999},{"$f":"(((AAMC_Raw_Data_for_FY22[[#This Row],[75th]]-AAMC_Raw_Data_for_FY22[[#This Row],[Median]])/25)*15) + AAMC_Raw_Data_for_FY22[[#This Row],[Median]]","v":164296.20000000001},{"$f":"(((AAMC_Raw_Data_for_FY22[[#This Row],[75th]]-AAMC_Raw_Data_for_FY22[[#This Row],[Median]])/25)*20) + AAMC_Raw_Data_for_FY22[[#This Row],[Median]]","v":170115.6},175935,{"$f":"(((AAMC_Raw_Data_for_FY22[[#This Row],[75th]]-AAMC_Raw_Data_for_FY22[[#This Row],[Median]])/25)*30) + AAMC_Raw_Data_for_FY22[[#This Row],[Median]]","v":181754.4},{"$f":"(((AAMC_Raw_Data_for_FY22[[#This Row],[75th]]-AAMC_Raw_Data_for_FY22[[#This Row],[Median]])/25)*35) + AAMC_Raw_Data_for_FY22[[#This Row],[Median]]","v":187573.8},{"$f":"(((AAMC_Raw_Data_for_FY22[[#This Row],[75th]]-AAMC_Raw_Data_for_FY22[[#This Row],[Median]])/25)*40) + AAMC_Raw_Data_for_FY22[[#This Row],[Median]]","v":193393.2}]
[{"$f":"AAMC_Raw_Data_for_FY22[[#This Row],[Source]]&AAMC_Raw_Data_for_FY22[[#This Row],[Type]]&AAMC_Raw_Data_for_FY22[[#This Row],[School Subset]]&AAMC_Raw_Data_for_FY22[[#This Row],[Rank]]&AAMC_Raw_Data_for_FY22[[#This Row],[Degree]]&AAMC_Raw_Data_for_FY22[[#This Row],[Department / Specialty]]&\"L\"","v":"AAMCAcademicPrivateProfessorPhDPsychiatry: PsychologyL"},"Psychiatry: Psychology",2,"AAMC","Academic","Private","Professor","PhD","2021-2022",184585,{"$f":"(((AAMC_Raw_Data_for_FY22[[#This Row],[Median]]-AAMC_Raw_Data_for_FY22[[#This Row],[25th]])/25)*5) + AAMC_Raw_Data_for_FY22[[#This Row],[25th]]","v":192144},{"$f":"(((AAMC_Raw_Data_for_FY22[[#This Row],[Median]]-AAMC_Raw_Data_for_FY22[[#This Row],[25th]])/25)*10) + AAMC_Raw_Data_for_FY22[[#This Row],[25th]]","v":199703},{"$f":"(((AAMC_Raw_Data_for_FY22[[#This Row],[Median]]-AAMC_Raw_Data_for_FY22[[#This Row],[25th]])/25)*15) + AAMC_Raw_Data_for_FY22[[#This Row],[25th]]","v":207262},{"$f":"(((AAMC_Raw_Data_for_FY22[[#This Row],[Median]]-AAMC_Raw_Data_for_FY22[[#This Row],[25th]])/25)*20) + AAMC_Raw_Data_for_FY22[[#This Row],[25th]]","v":214821},222380,{"$f":"(((AAMC_Raw_Data_for_FY22[[#This Row],[75th]]-AAMC_Raw_Data_for_FY22[[#This Row],[Median]])/25)*5) + AAMC_Raw_Data_for_FY22[[#This Row],[Median]]","v":229827.6},{"$f":"(((AAMC_Raw_Data_for_FY22[[#This Row],[75th]]-AAMC_Raw_Data_for_FY22[[#This Row],[Median]])/25)*10) + AAMC_Raw_Data_for_FY22[[#This Row],[Median]]","v":237275.2},{"$f":"(((AAMC_Raw_Data_for_FY22[[#This Row],[75th]]-AAMC_Raw_Data_for_FY22[[#This Row],[Median]])/25)*15) + AAMC_Raw_Data_for_FY22[[#This Row],[Median]]","v":244722.8},{"$f":"(((AAMC_Raw_Data_for_FY22[[#This Row],[75th]]-AAMC_Raw_Data_for_FY22[[#This Row],[Median]])/25)*20) + AAMC_Raw_Data_for_FY22[[#This Row],[Median]]","v":252170.4},259618,{"$f":"(((AAMC_Raw_Data_for_FY22[[#This Row],[75th]]-AAMC_Raw_Data_for_FY22[[#This Row],[Median]])/25)*30) + AAMC_Raw_Data_for_FY22[[#This Row],[Median]]","v":267065.59999999998},{"$f":"(((AAMC_Raw_Data_for_FY22[[#This Row],[75th]]-AAMC_Raw_Data_for_FY22[[#This Row],[Median]])/25)*35) + AAMC_Raw_Data_for_FY22[[#This Row],[Median]]","v":274513.2},{"$f":"(((AAMC_Raw_Data_for_FY22[[#This Row],[75th]]-AAMC_Raw_Data_for_FY22[[#This Row],[Median]])/25)*40) + AAMC_Raw_Data_for_FY22[[#This Row],[Median]]","v":281960.8}]
[{"$f":"AAMC_Raw_Data_for_FY22[[#This Row],[Source]]&AAMC_Raw_Data_for_FY22[[#This Row],[Type]]&AAMC_Raw_Data_for_FY22[[#This Row],[School Subset]]&AAMC_Raw_Data_for_FY22[[#This Row],[Rank]]&AAMC_Raw_Data_for_FY22[[#This Row],[Degree]]&AAMC_Raw_Data_for_FY22[[#This Row],[Department / Specialty]]&\"L\"","v":"AAMCAcademicPrivateChiefPhDPsychiatry: PsychologyL"},"Psychiatry: Psychology",6,"AAMC","Academic","Private","Chief","PhD","2021-2022",null,{"$f":"(((AAMC_Raw_Data_for_FY22[[#This Row],[Median]]-AAMC_Raw_Data_for_FY22[[#This Row],[25th]])/25)*5) + AAMC_Raw_Data_for_FY22[[#This Row],[25th]]","v":0},{"$f":"(((AAMC_Raw_Data_for_FY22[[#This Row],[Median]]-AAMC_Raw_Data_for_FY22[[#This Row],[25th]])/25)*10) + AAMC_Raw_Data_for_FY22[[#This Row],[25th]]","v":0},{"$f":"(((AAMC_Raw_Data_for_FY22[[#This Row],[Median]]-AAMC_Raw_Data_for_FY22[[#This Row],[25th]])/25)*15) + AAMC_Raw_Data_for_FY22[[#This Row],[25th]]","v":0},{"$f":"(((AAMC_Raw_Data_for_FY22[[#This Row],[Median]]-AAMC_Raw_Data_for_FY22[[#This Row],[25th]])/25)*20) + AAMC_Raw_Data_for_FY22[[#This Row],[25th]]","v":0},null,{"$f":"(((AAMC_Raw_Data_for_FY22[[#This Row],[75th]]-AAMC_Raw_Data_for_FY22[[#This Row],[Median]])/25)*5) + AAMC_Raw_Data_for_FY22[[#This Row],[Median]]","v":0},{"$f":"(((AAMC_Raw_Data_for_FY22[[#This Row],[75th]]-AAMC_Raw_Data_for_FY22[[#This Row],[Median]])/25)*10) + AAMC_Raw_Data_for_FY22[[#This Row],[Median]]","v":0},{"$f":"(((AAMC_Raw_Data_for_FY22[[#This Row],[75th]]-AAMC_Raw_Data_for_FY22[[#This Row],[Median]])/25)*15) + AAMC_Raw_Data_for_FY22[[#This Row],[Median]]","v":0},{"$f":"(((AAMC_Raw_Data_for_FY22[[#This Row],[75th]]-AAMC_Raw_Data_for_FY22[[#This Row],[Median]])/25)*20) + AAMC_Raw_Data_for_FY22[[#This Row],[Median]]","v":0},null,{"$f":"(((AAMC_Raw_Data_for_FY22[[#This Row],[75th]]-AAMC_Raw_Data_for_FY22[[#This Row],[Median]])/25)*30) + AAMC_Raw_Data_for_FY22[[#This Row],[Median]]","v":0},{"$f":"(((AAMC_Raw_Data_for_FY22[[#This Row],[75th]]-AAMC_Raw_Data_for_FY22[[#This Row],[Median]])/25)*35) + AAMC_Raw_Data_for_FY22[[#This Row],[Median]]","v":0},{"$f":"(((AAMC_Raw_Data_for_FY22[[#This Row],[75th]]-AAMC_Raw_Data_for_FY22[[#This Row],[Median]])/25)*40) + AAMC_Raw_Data_for_FY22[[#This Row],[Median]]","v":0}]
[{"$f":"AAMC_Raw_Data_for_FY22[[#This Row],[Source]]&AAMC_Raw_Data_for_FY22[[#This Row],[Type]]&AAMC_Raw_Data_for_FY22[[#This Row],[School Subset]]&AAMC_Raw_Data_for_FY22[[#This Row],[Rank]]&AAMC_Raw_Data_for_FY22[[#This Row],[Degree]]&AAMC_Raw_Data_for_FY22[[#This Row],[Department / Specialty]]&\"L\"","v":"AAMCAcademicPrivateInstructorPhDPsychiatry: OtherL"},"Psychiatry: Other",5,"AAMC","Academic","Private","Instructor","PhD","2021-2022",88763,{"$f":"(((AAMC_Raw_Data_for_FY22[[#This Row],[Median]]-AAMC_Raw_Data_for_FY22[[#This Row],[25th]])/25)*5) + AAMC_Raw_Data_for_FY22[[#This Row],[25th]]","v":93513.4},{"$f":"(((AAMC_Raw_Data_for_FY22[[#This Row],[Median]]-AAMC_Raw_Data_for_FY22[[#This Row],[25th]])/25)*10) + AAMC_Raw_Data_for_FY22[[#This Row],[25th]]","v":98263.8},{"$f":"(((AAMC_Raw_Data_for_FY22[[#This Row],[Median]]-AAMC_Raw_Data_for_FY22[[#This Row],[25th]])/25)*15) + AAMC_Raw_Data_for_FY22[[#This Row],[25th]]","v":103014.2},{"$f":"(((AAMC_Raw_Data_for_FY22[[#This Row],[Median]]-AAMC_Raw_Data_for_FY22[[#This Row],[25th]])/25)*20) + AAMC_Raw_Data_for_FY22[[#This Row],[25th]]","v":107764.6},112515,{"$f":"(((AAMC_Raw_Data_for_FY22[[#This Row],[75th]]-AAMC_Raw_Data_for_FY22[[#This Row],[Median]])/25)*5) + AAMC_Raw_Data_for_FY22[[#This Row],[Median]]","v":115405.6},{"$f":"(((AAMC_Raw_Data_for_FY22[[#This Row],[75th]]-AAMC_Raw_Data_for_FY22[[#This Row],[Median]])/25)*10) + AAMC_Raw_Data_for_FY22[[#This Row],[Median]]","v":118296.2},{"$f":"(((AAMC_Raw_Data_for_FY22[[#This Row],[75th]]-AAMC_Raw_Data_for_FY22[[#This Row],[Median]])/25)*15) + AAMC_Raw_Data_for_FY22[[#This Row],[Median]]","v":121186.8},{"$f":"(((AAMC_Raw_Data_for_FY22[[#This Row],[75th]]-AAMC_Raw_Data_for_FY22[[#This Row],[Median]])/25)*20) + AAMC_Raw_Data_for_FY22[[#This Row],[Median]]","v":124077.4},126968,{"$f":"(((AAMC_Raw_Data_for_FY22[[#This Row],[75th]]-AAMC_Raw_Data_for_FY22[[#This Row],[Median]])/25)*30) + AAMC_Raw_Data_for_FY22[[#This Row],[Median]]","v":129858.6},{"$f":"(((AAMC_Raw_Data_for_FY22[[#This Row],[75th]]-AAMC_Raw_Data_for_FY22[[#This Row],[Median]])/25)*35) + AAMC_Raw_Data_for_FY22[[#This Row],[Median]]","v":132749.20000000001},{"$f":"(((AAMC_Raw_Data_for_FY22[[#This Row],[75th]]-AAMC_Raw_Data_for_FY22[[#This Row],[Median]])/25)*40) + AAMC_Raw_Data_for_FY22[[#This Row],[Median]]","v":135639.79999999999}]
[{"$f":"AAMC_Raw_Data_for_FY22[[#This Row],[Source]]&AAMC_Raw_Data_for_FY22[[#This Row],[Type]]&AAMC_Raw_Data_for_FY22[[#This Row],[School Subset]]&AAMC_Raw_Data_for_FY22[[#This Row],[Rank]]&AAMC_Raw_Data_for_FY22[[#This Row],[Degree]]&AAMC_Raw_Data_for_FY22[[#This Row],[Department / Specialty]]&\"L\"","v":"AAMCAcademicPrivateAssistantPhDPsychiatry: OtherL"},"Psychiatry: Other",4,"AAMC","Academic","Private","Assistant","PhD","2021-2022",98241,{"$f":"(((AAMC_Raw_Data_for_FY22[[#This Row],[Median]]-AAMC_Raw_Data_for_FY22[[#This Row],[25th]])/25)*5) + AAMC_Raw_Data_for_FY22[[#This Row],[25th]]","v":100988.4},{"$f":"(((AAMC_Raw_Data_for_FY22[[#This Row],[Median]]-AAMC_Raw_Data_for_FY22[[#This Row],[25th]])/25)*10) + AAMC_Raw_Data_for_FY22[[#This Row],[25th]]","v":103735.8},{"$f":"(((AAMC_Raw_Data_for_FY22[[#This Row],[Median]]-AAMC_Raw_Data_for_FY22[[#This Row],[25th]])/25)*15) + AAMC_Raw_Data_for_FY22[[#This Row],[25th]]","v":106483.2},{"$f":"(((AAMC_Raw_Data_for_FY22[[#This Row],[Median]]-AAMC_Raw_Data_for_FY22[[#This Row],[25th]])/25)*20) + AAMC_Raw_Data_for_FY22[[#This Row],[25th]]","v":109230.6},111978,{"$f":"(((AAMC_Raw_Data_for_FY22[[#This Row],[75th]]-AAMC_Raw_Data_for_FY22[[#This Row],[Median]])/25)*5) + AAMC_Raw_Data_for_FY22[[#This Row],[Median]]","v":117218.2},{"$f":"(((AAMC_Raw_Data_for_FY22[[#This Row],[75th]]-AAMC_Raw_Data_for_FY22[[#This Row],[Median]])/25)*10) + AAMC_Raw_Data_for_FY22[[#This Row],[Median]]","v":122458.4},{"$f":"(((AAMC_Raw_Data_for_FY22[[#This Row],[75th]]-AAMC_Raw_Data_for_FY22[[#This Row],[Median]])/25)*15) + AAMC_Raw_Data_for_FY22[[#This Row],[Median]]","v":127698.6},{"$f":"(((AAMC_Raw_Data_for_FY22[[#This Row],[75th]]-AAMC_Raw_Data_for_FY22[[#This Row],[Median]])/25)*20) + AAMC_Raw_Data_for_FY22[[#This Row],[Median]]","v":132938.79999999999},138179,{"$f":"(((AAMC_Raw_Data_for_FY22[[#This Row],[75th]]-AAMC_Raw_Data_for_FY22[[#This Row],[Median]])/25)*30) + AAMC_Raw_Data_for_FY22[[#This Row],[Median]]","v":143419.20000000001},{"$f":"(((AAMC_Raw_Data_for_FY22[[#This Row],[75th]]-AAMC_Raw_Data_for_FY22[[#This Row],[Median]])/25)*35) + AAMC_Raw_Data_for_FY22[[#This Row],[Median]]","v":148659.4},{"$f":"(((AAMC_Raw_Data_for_FY22[[#This Row],[75th]]-AAMC_Raw_Data_for_FY22[[#This Row],[Median]])/25)*40) + AAMC_Raw_Data_for_FY22[[#This Row],[Median]]","v":153899.6}]
[{"$f":"AAMC_Raw_Data_for_FY22[[#This Row],[Source]]&AAMC_Raw_Data_for_FY22[[#This Row],[Type]]&AAMC_Raw_Data_for_FY22[[#This Row],[School Subset]]&AAMC_Raw_Data_for_FY22[[#This Row],[Rank]]&AAMC_Raw_Data_for_FY22[[#This Row],[Degree]]&AAMC_Raw_Data_for_FY22[[#This Row],[Department / Specialty]]&\"L\"","v":"AAMCAcademicPrivateAssociatePhDPsychiatry: OtherL"},"Psychiatry: Other",3,"AAMC","Academic","Private","Associate","PhD","2021-2022",113761,{"$f":"(((AAMC_Raw_Data_for_FY22[[#This Row],[Median]]-AAMC_Raw_Data_for_FY22[[#This Row],[25th]])/25)*5) + AAMC_Raw_Data_for_FY22[[#This Row],[25th]]","v":120946.4},{"$f":"(((AAMC_Raw_Data_for_FY22[[#This Row],[Median]]-AAMC_Raw_Data_for_FY22[[#This Row],[25th]])/25)*10) + AAMC_Raw_Data_for_FY22[[#This Row],[25th]]","v":128131.8},{"$f":"(((AAMC_Raw_Data_for_FY22[[#This Row],[Median]]-AAMC_Raw_Data_for_FY22[[#This Row],[25th]])/25)*15) + AAMC_Raw_Data_for_FY22[[#This Row],[25th]]","v":135317.20000000001},{"$f":"(((AAMC_Raw_Data_for_FY22[[#This Row],[Median]]-AAMC_Raw_Data_for_FY22[[#This Row],[25th]])/25)*20) + AAMC_Raw_Data_for_FY22[[#This Row],[25th]]","v":142502.6},149688,{"$f":"(((AAMC_Raw_Data_for_FY22[[#This Row],[75th]]-AAMC_Raw_Data_for_FY22[[#This Row],[Median]])/25)*5) + AAMC_Raw_Data_for_FY22[[#This Row],[Median]]","v":154635.79999999999},{"$f":"(((AAMC_Raw_Data_for_FY22[[#This Row],[75th]]-AAMC_Raw_Data_for_FY22[[#This Row],[Median]])/25)*10) + AAMC_Raw_Data_for_FY22[[#This Row],[Median]]","v":159583.6},{"$f":"(((AAMC_Raw_Data_for_FY22[[#This Row],[75th]]-AAMC_Raw_Data_for_FY22[[#This Row],[Median]])/25)*15) + AAMC_Raw_Data_for_FY22[[#This Row],[Median]]","v":164531.4},{"$f":"(((AAMC_Raw_Data_for_FY22[[#This Row],[75th]]-AAMC_Raw_Data_for_FY22[[#This Row],[Median]])/25)*20) + AAMC_Raw_Data_for_FY22[[#This Row],[Median]]","v":169479.2},174427,{"$f":"(((AAMC_Raw_Data_for_FY22[[#This Row],[75th]]-AAMC_Raw_Data_for_FY22[[#This Row],[Median]])/25)*30) + AAMC_Raw_Data_for_FY22[[#This Row],[Median]]","v":179374.8},{"$f":"(((AAMC_Raw_Data_for_FY22[[#This Row],[75th]]-AAMC_Raw_Data_for_FY22[[#This Row],[Median]])/25)*35) + AAMC_Raw_Data_for_FY22[[#This Row],[Median]]","v":184322.6},{"$f":"(((AAMC_Raw_Data_for_FY22[[#This Row],[75th]]-AAMC_Raw_Data_for_FY22[[#This Row],[Median]])/25)*40) + AAMC_Raw_Data_for_FY22[[#This Row],[Median]]","v":189270.39999999999}]
[{"$f":"AAMC_Raw_Data_for_FY22[[#This Row],[Source]]&AAMC_Raw_Data_for_FY22[[#This Row],[Type]]&AAMC_Raw_Data_for_FY22[[#This Row],[School Subset]]&AAMC_Raw_Data_for_FY22[[#This Row],[Rank]]&AAMC_Raw_Data_for_FY22[[#This Row],[Degree]]&AAMC_Raw_Data_for_FY22[[#This Row],[Department / Specialty]]&\"L\"","v":"AAMCAcademicPrivateProfessorPhDPsychiatry: OtherL"},"Psychiatry: Other",2,"AAMC","Academic","Private","Professor","PhD","2021-2022",138970,{"$f":"(((AAMC_Raw_Data_for_FY22[[#This Row],[Median]]-AAMC_Raw_Data_for_FY22[[#This Row],[25th]])/25)*5) + AAMC_Raw_Data_for_FY22[[#This Row],[25th]]","v":150532},{"$f":"(((AAMC_Raw_Data_for_FY22[[#This Row],[Median]]-AAMC_Raw_Data_for_FY22[[#This Row],[25th]])/25)*10) + AAMC_Raw_Data_for_FY22[[#This Row],[25th]]","v":162094},{"$f":"(((AAMC_Raw_Data_for_FY22[[#This Row],[Median]]-AAMC_Raw_Data_for_FY22[[#This Row],[25th]])/25)*15) + AAMC_Raw_Data_for_FY22[[#This Row],[25th]]","v":173656},{"$f":"(((AAMC_Raw_Data_for_FY22[[#This Row],[Median]]-AAMC_Raw_Data_for_FY22[[#This Row],[25th]])/25)*20) + AAMC_Raw_Data_for_FY22[[#This Row],[25th]]","v":185218},196780,{"$f":"(((AAMC_Raw_Data_for_FY22[[#This Row],[75th]]-AAMC_Raw_Data_for_FY22[[#This Row],[Median]])/25)*5) + AAMC_Raw_Data_for_FY22[[#This Row],[Median]]","v":203987.6},{"$f":"(((AAMC_Raw_Data_for_FY22[[#This Row],[75th]]-AAMC_Raw_Data_for_FY22[[#This Row],[Median]])/25)*10) + AAMC_Raw_Data_for_FY22[[#This Row],[Median]]","v":211195.2},{"$f":"(((AAMC_Raw_Data_for_FY22[[#This Row],[75th]]-AAMC_Raw_Data_for_FY22[[#This Row],[Median]])/25)*15) + AAMC_Raw_Data_for_FY22[[#This Row],[Median]]","v":218402.8},{"$f":"(((AAMC_Raw_Data_for_FY22[[#This Row],[75th]]-AAMC_Raw_Data_for_FY22[[#This Row],[Median]])/25)*20) + AAMC_Raw_Data_for_FY22[[#This Row],[Median]]","v":225610.4},232818,{"$f":"(((AAMC_Raw_Data_for_FY22[[#This Row],[75th]]-AAMC_Raw_Data_for_FY22[[#This Row],[Median]])/25)*30) + AAMC_Raw_Data_for_FY22[[#This Row],[Median]]","v":240025.60000000001},{"$f":"(((AAMC_Raw_Data_for_FY22[[#This Row],[75th]]-AAMC_Raw_Data_for_FY22[[#This Row],[Median]])/25)*35) + AAMC_Raw_Data_for_FY22[[#This Row],[Median]]","v":247233.2},{"$f":"(((AAMC_Raw_Data_for_FY22[[#This Row],[75th]]-AAMC_Raw_Data_for_FY22[[#This Row],[Median]])/25)*40) + AAMC_Raw_Data_for_FY22[[#This Row],[Median]]","v":254440.8}]
[{"$f":"AAMC_Raw_Data_for_FY22[[#This Row],[Source]]&AAMC_Raw_Data_for_FY22[[#This Row],[Type]]&AAMC_Raw_Data_for_FY22[[#This Row],[School Subset]]&AAMC_Raw_Data_for_FY22[[#This Row],[Rank]]&AAMC_Raw_Data_for_FY22[[#This Row],[Degree]]&AAMC_Raw_Data_for_FY22[[#This Row],[Department / Specialty]]&\"L\"","v":"AAMCAcademicPrivateChiefPhDPsychiatry: OtherL"},"Psychiatry: Other",6,"AAMC","Academic","Private","Chief","PhD","2021-2022",null,{"$f":"(((AAMC_Raw_Data_for_FY22[[#This Row],[Median]]-AAMC_Raw_Data_for_FY22[[#This Row],[25th]])/25)*5) + AAMC_Raw_Data_for_FY22[[#This Row],[25th]]","v":0},{"$f":"(((AAMC_Raw_Data_for_FY22[[#This Row],[Median]]-AAMC_Raw_Data_for_FY22[[#This Row],[25th]])/25)*10) + AAMC_Raw_Data_for_FY22[[#This Row],[25th]]","v":0},{"$f":"(((AAMC_Raw_Data_for_FY22[[#This Row],[Median]]-AAMC_Raw_Data_for_FY22[[#This Row],[25th]])/25)*15) + AAMC_Raw_Data_for_FY22[[#This Row],[25th]]","v":0},{"$f":"(((AAMC_Raw_Data_for_FY22[[#This Row],[Median]]-AAMC_Raw_Data_for_FY22[[#This Row],[25th]])/25)*20) + AAMC_Raw_Data_for_FY22[[#This Row],[25th]]","v":0},null,{"$f":"(((AAMC_Raw_Data_for_FY22[[#This Row],[75th]]-AAMC_Raw_Data_for_FY22[[#This Row],[Median]])/25)*5) + AAMC_Raw_Data_for_FY22[[#This Row],[Median]]","v":0},{"$f":"(((AAMC_Raw_Data_for_FY22[[#This Row],[75th]]-AAMC_Raw_Data_for_FY22[[#This Row],[Median]])/25)*10) + AAMC_Raw_Data_for_FY22[[#This Row],[Median]]","v":0},{"$f":"(((AAMC_Raw_Data_for_FY22[[#This Row],[75th]]-AAMC_Raw_Data_for_FY22[[#This Row],[Median]])/25)*15) + AAMC_Raw_Data_for_FY22[[#This Row],[Median]]","v":0},{"$f":"(((AAMC_Raw_Data_for_FY22[[#This Row],[75th]]-AAMC_Raw_Data_for_FY22[[#This Row],[Median]])/25)*20) + AAMC_Raw_Data_for_FY22[[#This Row],[Median]]","v":0},null,{"$f":"(((AAMC_Raw_Data_for_FY22[[#This Row],[75th]]-AAMC_Raw_Data_for_FY22[[#This Row],[Median]])/25)*30) + AAMC_Raw_Data_for_FY22[[#This Row],[Median]]","v":0},{"$f":"(((AAMC_Raw_Data_for_FY22[[#This Row],[75th]]-AAMC_Raw_Data_for_FY22[[#This Row],[Median]])/25)*35) + AAMC_Raw_Data_for_FY22[[#This Row],[Median]]","v":0},{"$f":"(((AAMC_Raw_Data_for_FY22[[#This Row],[75th]]-AAMC_Raw_Data_for_FY22[[#This Row],[Median]])/25)*40) + AAMC_Raw_Data_for_FY22[[#This Row],[Median]]","v":0}]
[{"$f":"AAMC_Raw_Data_for_FY22[[#This Row],[Source]]&AAMC_Raw_Data_for_FY22[[#This Row],[Type]]&AAMC_Raw_Data_for_FY22[[#This Row],[School Subset]]&AAMC_Raw_Data_for_FY22[[#This Row],[Rank]]&AAMC_Raw_Data_for_FY22[[#This Row],[Degree]]&AAMC_Raw_Data_for_FY22[[#This Row],[Department / Specialty]]&\"L\"","v":"AAMCAcademicPrivateInstructorPhDRadiology TotalL"},"Radiology Total",5,"AAMC","Academic","Private","Instructor","PhD","2021-2022",73950,{"$f":"(((AAMC_Raw_Data_for_FY22[[#This Row],[Median]]-AAMC_Raw_Data_for_FY22[[#This Row],[25th]])/25)*5) + AAMC_Raw_Data_for_FY22[[#This Row],[25th]]","v":76992},{"$f":"(((AAMC_Raw_Data_for_FY22[[#This Row],[Median]]-AAMC_Raw_Data_for_FY22[[#This Row],[25th]])/25)*10) + AAMC_Raw_Data_for_FY22[[#This Row],[25th]]","v":80034},{"$f":"(((AAMC_Raw_Data_for_FY22[[#This Row],[Median]]-AAMC_Raw_Data_for_FY22[[#This Row],[25th]])/25)*15) + AAMC_Raw_Data_for_FY22[[#This Row],[25th]]","v":83076},{"$f":"(((AAMC_Raw_Data_for_FY22[[#This Row],[Median]]-AAMC_Raw_Data_for_FY22[[#This Row],[25th]])/25)*20) + AAMC_Raw_Data_for_FY22[[#This Row],[25th]]","v":86118},89160,{"$f":"(((AAMC_Raw_Data_for_FY22[[#This Row],[75th]]-AAMC_Raw_Data_for_FY22[[#This Row],[Median]])/25)*5) + AAMC_Raw_Data_for_FY22[[#This Row],[Median]]","v":91912.6},{"$f":"(((AAMC_Raw_Data_for_FY22[[#This Row],[75th]]-AAMC_Raw_Data_for_FY22[[#This Row],[Median]])/25)*10) + AAMC_Raw_Data_for_FY22[[#This Row],[Median]]","v":94665.2},{"$f":"(((AAMC_Raw_Data_for_FY22[[#This Row],[75th]]-AAMC_Raw_Data_for_FY22[[#This Row],[Median]])/25)*15) + AAMC_Raw_Data_for_FY22[[#This Row],[Median]]","v":97417.8},{"$f":"(((AAMC_Raw_Data_for_FY22[[#This Row],[75th]]-AAMC_Raw_Data_for_FY22[[#This Row],[Median]])/25)*20) + AAMC_Raw_Data_for_FY22[[#This Row],[Median]]","v":100170.4},102923,{"$f":"(((AAMC_Raw_Data_for_FY22[[#This Row],[75th]]-AAMC_Raw_Data_for_FY22[[#This Row],[Median]])/25)*30) + AAMC_Raw_Data_for_FY22[[#This Row],[Median]]","v":105675.6},{"$f":"(((AAMC_Raw_Data_for_FY22[[#This Row],[75th]]-AAMC_Raw_Data_for_FY22[[#This Row],[Median]])/25)*35) + AAMC_Raw_Data_for_FY22[[#This Row],[Median]]","v":108428.2},{"$f":"(((AAMC_Raw_Data_for_FY22[[#This Row],[75th]]-AAMC_Raw_Data_for_FY22[[#This Row],[Median]])/25)*40) + AAMC_Raw_Data_for_FY22[[#This Row],[Median]]","v":111180.8}]
[{"$f":"AAMC_Raw_Data_for_FY22[[#This Row],[Source]]&AAMC_Raw_Data_for_FY22[[#This Row],[Type]]&AAMC_Raw_Data_for_FY22[[#This Row],[School Subset]]&AAMC_Raw_Data_for_FY22[[#This Row],[Rank]]&AAMC_Raw_Data_for_FY22[[#This Row],[Degree]]&AAMC_Raw_Data_for_FY22[[#This Row],[Department / Specialty]]&\"L\"","v":"AAMCAcademicPrivateAssistantPhDRadiology TotalL"},"Radiology Total",4,"AAMC","Academic","Private","Assistant","PhD","2021-2022",106704,{"$f":"(((AAMC_Raw_Data_for_FY22[[#This Row],[Median]]-AAMC_Raw_Data_for_FY22[[#This Row],[25th]])/25)*5) + AAMC_Raw_Data_for_FY22[[#This Row],[25th]]","v":112981.8},{"$f":"(((AAMC_Raw_Data_for_FY22[[#This Row],[Median]]-AAMC_Raw_Data_for_FY22[[#This Row],[25th]])/25)*10) + AAMC_Raw_Data_for_FY22[[#This Row],[25th]]","v":119259.6},{"$f":"(((AAMC_Raw_Data_for_FY22[[#This Row],[Median]]-AAMC_Raw_Data_for_FY22[[#This Row],[25th]])/25)*15) + AAMC_Raw_Data_for_FY22[[#This Row],[25th]]","v":125537.4},{"$f":"(((AAMC_Raw_Data_for_FY22[[#This Row],[Median]]-AAMC_Raw_Data_for_FY22[[#This Row],[25th]])/25)*20) + AAMC_Raw_Data_for_FY22[[#This Row],[25th]]","v":131815.20000000001},138093,{"$f":"(((AAMC_Raw_Data_for_FY22[[#This Row],[75th]]-AAMC_Raw_Data_for_FY22[[#This Row],[Median]])/25)*5) + AAMC_Raw_Data_for_FY22[[#This Row],[Median]]","v":148474.4},{"$f":"(((AAMC_Raw_Data_for_FY22[[#This Row],[75th]]-AAMC_Raw_Data_for_FY22[[#This Row],[Median]])/25)*10) + AAMC_Raw_Data_for_FY22[[#This Row],[Median]]","v":158855.79999999999},{"$f":"(((AAMC_Raw_Data_for_FY22[[#This Row],[75th]]-AAMC_Raw_Data_for_FY22[[#This Row],[Median]])/25)*15) + AAMC_Raw_Data_for_FY22[[#This Row],[Median]]","v":169237.2},{"$f":"(((AAMC_Raw_Data_for_FY22[[#This Row],[75th]]-AAMC_Raw_Data_for_FY22[[#This Row],[Median]])/25)*20) + AAMC_Raw_Data_for_FY22[[#This Row],[Median]]","v":179618.6},190000,{"$f":"(((AAMC_Raw_Data_for_FY22[[#This Row],[75th]]-AAMC_Raw_Data_for_FY22[[#This Row],[Median]])/25)*30) + AAMC_Raw_Data_for_FY22[[#This Row],[Median]]","v":200381.40000000002},{"$f":"(((AAMC_Raw_Data_for_FY22[[#This Row],[75th]]-AAMC_Raw_Data_for_FY22[[#This Row],[Median]])/25)*35) + AAMC_Raw_Data_for_FY22[[#This Row],[Median]]","v":210762.8},{"$f":"(((AAMC_Raw_Data_for_FY22[[#This Row],[75th]]-AAMC_Raw_Data_for_FY22[[#This Row],[Median]])/25)*40) + AAMC_Raw_Data_for_FY22[[#This Row],[Median]]","v":221144.2}]
[{"$f":"AAMC_Raw_Data_for_FY22[[#This Row],[Source]]&AAMC_Raw_Data_for_FY22[[#This Row],[Type]]&AAMC_Raw_Data_for_FY22[[#This Row],[School Subset]]&AAMC_Raw_Data_for_FY22[[#This Row],[Rank]]&AAMC_Raw_Data_for_FY22[[#This Row],[Degree]]&AAMC_Raw_Data_for_FY22[[#This Row],[Department / Specialty]]&\"L\"","v":"AAMCAcademicPrivateAssociatePhDRadiology TotalL"},"Radiology Total",3,"AAMC","Academic","Private","Associate","PhD","2021-2022",150000,{"$f":"(((AAMC_Raw_Data_for_FY22[[#This Row],[Median]]-AAMC_Raw_Data_for_FY22[[#This Row],[25th]])/25)*5) + AAMC_Raw_Data_for_FY22[[#This Row],[25th]]","v":156616.79999999999},{"$f":"(((AAMC_Raw_Data_for_FY22[[#This Row],[Median]]-AAMC_Raw_Data_for_FY22[[#This Row],[25th]])/25)*10) + AAMC_Raw_Data_for_FY22[[#This Row],[25th]]","v":163233.60000000001},{"$f":"(((AAMC_Raw_Data_for_FY22[[#This Row],[Median]]-AAMC_Raw_Data_for_FY22[[#This Row],[25th]])/25)*15) + AAMC_Raw_Data_for_FY22[[#This Row],[25th]]","v":169850.4},{"$f":"(((AAMC_Raw_Data_for_FY22[[#This Row],[Median]]-AAMC_Raw_Data_for_FY22[[#This Row],[25th]])/25)*20) + AAMC_Raw_Data_for_FY22[[#This Row],[25th]]","v":176467.20000000001},183084,{"$f":"(((AAMC_Raw_Data_for_FY22[[#This Row],[75th]]-AAMC_Raw_Data_for_FY22[[#This Row],[Median]])/25)*5) + AAMC_Raw_Data_for_FY22[[#This Row],[Median]]","v":193487.2},{"$f":"(((AAMC_Raw_Data_for_FY22[[#This Row],[75th]]-AAMC_Raw_Data_for_FY22[[#This Row],[Median]])/25)*10) + AAMC_Raw_Data_for_FY22[[#This Row],[Median]]","v":203890.4},{"$f":"(((AAMC_Raw_Data_for_FY22[[#This Row],[75th]]-AAMC_Raw_Data_for_FY22[[#This Row],[Median]])/25)*15) + AAMC_Raw_Data_for_FY22[[#This Row],[Median]]","v":214293.6},{"$f":"(((AAMC_Raw_Data_for_FY22[[#This Row],[75th]]-AAMC_Raw_Data_for_FY22[[#This Row],[Median]])/25)*20) + AAMC_Raw_Data_for_FY22[[#This Row],[Median]]","v":224696.8},235100,{"$f":"(((AAMC_Raw_Data_for_FY22[[#This Row],[75th]]-AAMC_Raw_Data_for_FY22[[#This Row],[Median]])/25)*30) + AAMC_Raw_Data_for_FY22[[#This Row],[Median]]","v":245503.2},{"$f":"(((AAMC_Raw_Data_for_FY22[[#This Row],[75th]]-AAMC_Raw_Data_for_FY22[[#This Row],[Median]])/25)*35) + AAMC_Raw_Data_for_FY22[[#This Row],[Median]]","v":255906.4},{"$f":"(((AAMC_Raw_Data_for_FY22[[#This Row],[75th]]-AAMC_Raw_Data_for_FY22[[#This Row],[Median]])/25)*40) + AAMC_Raw_Data_for_FY22[[#This Row],[Median]]","v":266309.59999999998}]
[{"$f":"AAMC_Raw_Data_for_FY22[[#This Row],[Source]]&AAMC_Raw_Data_for_FY22[[#This Row],[Type]]&AAMC_Raw_Data_for_FY22[[#This Row],[School Subset]]&AAMC_Raw_Data_for_FY22[[#This Row],[Rank]]&AAMC_Raw_Data_for_FY22[[#This Row],[Degree]]&AAMC_Raw_Data_for_FY22[[#This Row],[Department / Specialty]]&\"L\"","v":"AAMCAcademicPrivateProfessorPhDRadiology TotalL"},"Radiology Total",2,"AAMC","Academic","Private","Professor","PhD","2021-2022",195942,{"$f":"(((AAMC_Raw_Data_for_FY22[[#This Row],[Median]]-AAMC_Raw_Data_for_FY22[[#This Row],[25th]])/25)*5) + AAMC_Raw_Data_for_FY22[[#This Row],[25th]]","v":204173.6},{"$f":"(((AAMC_Raw_Data_for_FY22[[#This Row],[Median]]-AAMC_Raw_Data_for_FY22[[#This Row],[25th]])/25)*10) + AAMC_Raw_Data_for_FY22[[#This Row],[25th]]","v":212405.2},{"$f":"(((AAMC_Raw_Data_for_FY22[[#This Row],[Median]]-AAMC_Raw_Data_for_FY22[[#This Row],[25th]])/25)*15) + AAMC_Raw_Data_for_FY22[[#This Row],[25th]]","v":220636.79999999999},{"$f":"(((AAMC_Raw_Data_for_FY22[[#This Row],[Median]]-AAMC_Raw_Data_for_FY22[[#This Row],[25th]])/25)*20) + AAMC_Raw_Data_for_FY22[[#This Row],[25th]]","v":228868.4},237100,{"$f":"(((AAMC_Raw_Data_for_FY22[[#This Row],[75th]]-AAMC_Raw_Data_for_FY22[[#This Row],[Median]])/25)*5) + AAMC_Raw_Data_for_FY22[[#This Row],[Median]]","v":247942.39999999999},{"$f":"(((AAMC_Raw_Data_for_FY22[[#This Row],[75th]]-AAMC_Raw_Data_for_FY22[[#This Row],[Median]])/25)*10) + AAMC_Raw_Data_for_FY22[[#This Row],[Median]]","v":258784.8},{"$f":"(((AAMC_Raw_Data_for_FY22[[#This Row],[75th]]-AAMC_Raw_Data_for_FY22[[#This Row],[Median]])/25)*15) + AAMC_Raw_Data_for_FY22[[#This Row],[Median]]","v":269627.2},{"$f":"(((AAMC_Raw_Data_for_FY22[[#This Row],[75th]]-AAMC_Raw_Data_for_FY22[[#This Row],[Median]])/25)*20) + AAMC_Raw_Data_for_FY22[[#This Row],[Median]]","v":280469.59999999998},291312,{"$f":"(((AAMC_Raw_Data_for_FY22[[#This Row],[75th]]-AAMC_Raw_Data_for_FY22[[#This Row],[Median]])/25)*30) + AAMC_Raw_Data_for_FY22[[#This Row],[Median]]","v":302154.40000000002},{"$f":"(((AAMC_Raw_Data_for_FY22[[#This Row],[75th]]-AAMC_Raw_Data_for_FY22[[#This Row],[Median]])/25)*35) + AAMC_Raw_Data_for_FY22[[#This Row],[Median]]","v":312996.8},{"$f":"(((AAMC_Raw_Data_for_FY22[[#This Row],[75th]]-AAMC_Raw_Data_for_FY22[[#This Row],[Median]])/25)*40) + AAMC_Raw_Data_for_FY22[[#This Row],[Median]]","v":323839.2}]
[{"$f":"AAMC_Raw_Data_for_FY22[[#This Row],[Source]]&AAMC_Raw_Data_for_FY22[[#This Row],[Type]]&AAMC_Raw_Data_for_FY22[[#This Row],[School Subset]]&AAMC_Raw_Data_for_FY22[[#This Row],[Rank]]&AAMC_Raw_Data_for_FY22[[#This Row],[Degree]]&AAMC_Raw_Data_for_FY22[[#This Row],[Department / Specialty]]&\"L\"","v":"AAMCAcademicPrivateChiefPhDRadiology TotalL"},"Radiology Total",6,"AAMC","Academic","Private","Chief","PhD","2021-2022",260333,{"$f":"(((AAMC_Raw_Data_for_FY22[[#This Row],[Median]]-AAMC_Raw_Data_for_FY22[[#This Row],[25th]])/25)*5) + AAMC_Raw_Data_for_FY22[[#This Row],[25th]]","v":267622.59999999998},{"$f":"(((AAMC_Raw_Data_for_FY22[[#This Row],[Median]]-AAMC_Raw_Data_for_FY22[[#This Row],[25th]])/25)*10) + AAMC_Raw_Data_for_FY22[[#This Row],[25th]]","v":274912.2},{"$f":"(((AAMC_Raw_Data_for_FY22[[#This Row],[Median]]-AAMC_Raw_Data_for_FY22[[#This Row],[25th]])/25)*15) + AAMC_Raw_Data_for_FY22[[#This Row],[25th]]","v":282201.8},{"$f":"(((AAMC_Raw_Data_for_FY22[[#This Row],[Median]]-AAMC_Raw_Data_for_FY22[[#This Row],[25th]])/25)*20) + AAMC_Raw_Data_for_FY22[[#This Row],[25th]]","v":289491.40000000002},296781,{"$f":"(((AAMC_Raw_Data_for_FY22[[#This Row],[75th]]-AAMC_Raw_Data_for_FY22[[#This Row],[Median]])/25)*5) + AAMC_Raw_Data_for_FY22[[#This Row],[Median]]","v":313599.8},{"$f":"(((AAMC_Raw_Data_for_FY22[[#This Row],[75th]]-AAMC_Raw_Data_for_FY22[[#This Row],[Median]])/25)*10) + AAMC_Raw_Data_for_FY22[[#This Row],[Median]]","v":330418.59999999998},{"$f":"(((AAMC_Raw_Data_for_FY22[[#This Row],[75th]]-AAMC_Raw_Data_for_FY22[[#This Row],[Median]])/25)*15) + AAMC_Raw_Data_for_FY22[[#This Row],[Median]]","v":347237.4},{"$f":"(((AAMC_Raw_Data_for_FY22[[#This Row],[75th]]-AAMC_Raw_Data_for_FY22[[#This Row],[Median]])/25)*20) + AAMC_Raw_Data_for_FY22[[#This Row],[Median]]","v":364056.2},380875,{"$f":"(((AAMC_Raw_Data_for_FY22[[#This Row],[75th]]-AAMC_Raw_Data_for_FY22[[#This Row],[Median]])/25)*30) + AAMC_Raw_Data_for_FY22[[#This Row],[Median]]","v":397693.8},{"$f":"(((AAMC_Raw_Data_for_FY22[[#This Row],[75th]]-AAMC_Raw_Data_for_FY22[[#This Row],[Median]])/25)*35) + AAMC_Raw_Data_for_FY22[[#This Row],[Median]]","v":414512.6},{"$f":"(((AAMC_Raw_Data_for_FY22[[#This Row],[75th]]-AAMC_Raw_Data_for_FY22[[#This Row],[Median]])/25)*40) + AAMC_Raw_Data_for_FY22[[#This Row],[Median]]","v":431331.4}]
[{"$f":"AAMC_Raw_Data_for_FY22[[#This Row],[Source]]&AAMC_Raw_Data_for_FY22[[#This Row],[Type]]&AAMC_Raw_Data_for_FY22[[#This Row],[School Subset]]&AAMC_Raw_Data_for_FY22[[#This Row],[Rank]]&AAMC_Raw_Data_for_FY22[[#This Row],[Degree]]&AAMC_Raw_Data_for_FY22[[#This Row],[Department / Specialty]]&\"L\"","v":"AAMCAcademicPrivateInstructorPhDDiagnostic Radiology TotalL"},"Diagnostic Radiology Total",5,"AAMC","Academic","Private","Instructor","PhD","2021-2022",null,{"$f":"(((AAMC_Raw_Data_for_FY22[[#This Row],[Median]]-AAMC_Raw_Data_for_FY22[[#This Row],[25th]])/25)*5) + AAMC_Raw_Data_for_FY22[[#This Row],[25th]]","v":0},{"$f":"(((AAMC_Raw_Data_for_FY22[[#This Row],[Median]]-AAMC_Raw_Data_for_FY22[[#This Row],[25th]])/25)*10) + AAMC_Raw_Data_for_FY22[[#This Row],[25th]]","v":0},{"$f":"(((AAMC_Raw_Data_for_FY22[[#This Row],[Median]]-AAMC_Raw_Data_for_FY22[[#This Row],[25th]])/25)*15) + AAMC_Raw_Data_for_FY22[[#This Row],[25th]]","v":0},{"$f":"(((AAMC_Raw_Data_for_FY22[[#This Row],[Median]]-AAMC_Raw_Data_for_FY22[[#This Row],[25th]])/25)*20) + AAMC_Raw_Data_for_FY22[[#This Row],[25th]]","v":0},null,{"$f":"(((AAMC_Raw_Data_for_FY22[[#This Row],[75th]]-AAMC_Raw_Data_for_FY22[[#This Row],[Median]])/25)*5) + AAMC_Raw_Data_for_FY22[[#This Row],[Median]]","v":0},{"$f":"(((AAMC_Raw_Data_for_FY22[[#This Row],[75th]]-AAMC_Raw_Data_for_FY22[[#This Row],[Median]])/25)*10) + AAMC_Raw_Data_for_FY22[[#This Row],[Median]]","v":0},{"$f":"(((AAMC_Raw_Data_for_FY22[[#This Row],[75th]]-AAMC_Raw_Data_for_FY22[[#This Row],[Median]])/25)*15) + AAMC_Raw_Data_for_FY22[[#This Row],[Median]]","v":0},{"$f":"(((AAMC_Raw_Data_for_FY22[[#This Row],[75th]]-AAMC_Raw_Data_for_FY22[[#This Row],[Median]])/25)*20) + AAMC_Raw_Data_for_FY22[[#This Row],[Median]]","v":0},null,{"$f":"(((AAMC_Raw_Data_for_FY22[[#This Row],[75th]]-AAMC_Raw_Data_for_FY22[[#This Row],[Median]])/25)*30) + AAMC_Raw_Data_for_FY22[[#This Row],[Median]]","v":0},{"$f":"(((AAMC_Raw_Data_for_FY22[[#This Row],[75th]]-AAMC_Raw_Data_for_FY22[[#This Row],[Median]])/25)*35) + AAMC_Raw_Data_for_FY22[[#This Row],[Median]]","v":0},{"$f":"(((AAMC_Raw_Data_for_FY22[[#This Row],[75th]]-AAMC_Raw_Data_for_FY22[[#This Row],[Median]])/25)*40) + AAMC_Raw_Data_for_FY22[[#This Row],[Median]]","v":0}]
[{"$f":"AAMC_Raw_Data_for_FY22[[#This Row],[Source]]&AAMC_Raw_Data_for_FY22[[#This Row],[Type]]&AAMC_Raw_Data_for_FY22[[#This Row],[School Subset]]&AAMC_Raw_Data_for_FY22[[#This Row],[Rank]]&AAMC_Raw_Data_for_FY22[[#This Row],[Degree]]&AAMC_Raw_Data_for_FY22[[#This Row],[Department / Specialty]]&\"L\"","v":"AAMCAcademicPrivateAssistantPhDDiagnostic Radiology TotalL"},"Diagnostic Radiology Total",4,"AAMC","Academic","Private","Assistant","PhD","2021-2022",106005,{"$f":"(((AAMC_Raw_Data_for_FY22[[#This Row],[Median]]-AAMC_Raw_Data_for_FY22[[#This Row],[25th]])/25)*5) + AAMC_Raw_Data_for_FY22[[#This Row],[25th]]","v":110444},{"$f":"(((AAMC_Raw_Data_for_FY22[[#This Row],[Median]]-AAMC_Raw_Data_for_FY22[[#This Row],[25th]])/25)*10) + AAMC_Raw_Data_for_FY22[[#This Row],[25th]]","v":114883},{"$f":"(((AAMC_Raw_Data_for_FY22[[#This Row],[Median]]-AAMC_Raw_Data_for_FY22[[#This Row],[25th]])/25)*15) + AAMC_Raw_Data_for_FY22[[#This Row],[25th]]","v":119322},{"$f":"(((AAMC_Raw_Data_for_FY22[[#This Row],[Median]]-AAMC_Raw_Data_for_FY22[[#This Row],[25th]])/25)*20) + AAMC_Raw_Data_for_FY22[[#This Row],[25th]]","v":123761},128200,{"$f":"(((AAMC_Raw_Data_for_FY22[[#This Row],[75th]]-AAMC_Raw_Data_for_FY22[[#This Row],[Median]])/25)*5) + AAMC_Raw_Data_for_FY22[[#This Row],[Median]]","v":129350.8},{"$f":"(((AAMC_Raw_Data_for_FY22[[#This Row],[75th]]-AAMC_Raw_Data_for_FY22[[#This Row],[Median]])/25)*10) + AAMC_Raw_Data_for_FY22[[#This Row],[Median]]","v":130501.6},{"$f":"(((AAMC_Raw_Data_for_FY22[[#This Row],[75th]]-AAMC_Raw_Data_for_FY22[[#This Row],[Median]])/25)*15) + AAMC_Raw_Data_for_FY22[[#This Row],[Median]]","v":131652.4},{"$f":"(((AAMC_Raw_Data_for_FY22[[#This Row],[75th]]-AAMC_Raw_Data_for_FY22[[#This Row],[Median]])/25)*20) + AAMC_Raw_Data_for_FY22[[#This Row],[Median]]","v":132803.20000000001},133954,{"$f":"(((AAMC_Raw_Data_for_FY22[[#This Row],[75th]]-AAMC_Raw_Data_for_FY22[[#This Row],[Median]])/25)*30) + AAMC_Raw_Data_for_FY22[[#This Row],[Median]]","v":135104.79999999999},{"$f":"(((AAMC_Raw_Data_for_FY22[[#This Row],[75th]]-AAMC_Raw_Data_for_FY22[[#This Row],[Median]])/25)*35) + AAMC_Raw_Data_for_FY22[[#This Row],[Median]]","v":136255.6},{"$f":"(((AAMC_Raw_Data_for_FY22[[#This Row],[75th]]-AAMC_Raw_Data_for_FY22[[#This Row],[Median]])/25)*40) + AAMC_Raw_Data_for_FY22[[#This Row],[Median]]","v":137406.39999999999}]
[{"$f":"AAMC_Raw_Data_for_FY22[[#This Row],[Source]]&AAMC_Raw_Data_for_FY22[[#This Row],[Type]]&AAMC_Raw_Data_for_FY22[[#This Row],[School Subset]]&AAMC_Raw_Data_for_FY22[[#This Row],[Rank]]&AAMC_Raw_Data_for_FY22[[#This Row],[Degree]]&AAMC_Raw_Data_for_FY22[[#This Row],[Department / Specialty]]&\"L\"","v":"AAMCAcademicPrivateAssociatePhDDiagnostic Radiology TotalL"},"Diagnostic Radiology Total",3,"AAMC","Academic","Private","Associate","PhD","2021-2022",148613,{"$f":"(((AAMC_Raw_Data_for_FY22[[#This Row],[Median]]-AAMC_Raw_Data_for_FY22[[#This Row],[25th]])/25)*5) + AAMC_Raw_Data_for_FY22[[#This Row],[25th]]","v":151963.4},{"$f":"(((AAMC_Raw_Data_for_FY22[[#This Row],[Median]]-AAMC_Raw_Data_for_FY22[[#This Row],[25th]])/25)*10) + AAMC_Raw_Data_for_FY22[[#This Row],[25th]]","v":155313.79999999999},{"$f":"(((AAMC_Raw_Data_for_FY22[[#This Row],[Median]]-AAMC_Raw_Data_for_FY22[[#This Row],[25th]])/25)*15) + AAMC_Raw_Data_for_FY22[[#This Row],[25th]]","v":158664.20000000001},{"$f":"(((AAMC_Raw_Data_for_FY22[[#This Row],[Median]]-AAMC_Raw_Data_for_FY22[[#This Row],[25th]])/25)*20) + AAMC_Raw_Data_for_FY22[[#This Row],[25th]]","v":162014.6},165365,{"$f":"(((AAMC_Raw_Data_for_FY22[[#This Row],[75th]]-AAMC_Raw_Data_for_FY22[[#This Row],[Median]])/25)*5) + AAMC_Raw_Data_for_FY22[[#This Row],[Median]]","v":170199.8},{"$f":"(((AAMC_Raw_Data_for_FY22[[#This Row],[75th]]-AAMC_Raw_Data_for_FY22[[#This Row],[Median]])/25)*10) + AAMC_Raw_Data_for_FY22[[#This Row],[Median]]","v":175034.6},{"$f":"(((AAMC_Raw_Data_for_FY22[[#This Row],[75th]]-AAMC_Raw_Data_for_FY22[[#This Row],[Median]])/25)*15) + AAMC_Raw_Data_for_FY22[[#This Row],[Median]]","v":179869.4},{"$f":"(((AAMC_Raw_Data_for_FY22[[#This Row],[75th]]-AAMC_Raw_Data_for_FY22[[#This Row],[Median]])/25)*20) + AAMC_Raw_Data_for_FY22[[#This Row],[Median]]","v":184704.2},189539,{"$f":"(((AAMC_Raw_Data_for_FY22[[#This Row],[75th]]-AAMC_Raw_Data_for_FY22[[#This Row],[Median]])/25)*30) + AAMC_Raw_Data_for_FY22[[#This Row],[Median]]","v":194373.8},{"$f":"(((AAMC_Raw_Data_for_FY22[[#This Row],[75th]]-AAMC_Raw_Data_for_FY22[[#This Row],[Median]])/25)*35) + AAMC_Raw_Data_for_FY22[[#This Row],[Median]]","v":199208.6},{"$f":"(((AAMC_Raw_Data_for_FY22[[#This Row],[75th]]-AAMC_Raw_Data_for_FY22[[#This Row],[Median]])/25)*40) + AAMC_Raw_Data_for_FY22[[#This Row],[Median]]","v":204043.4}]
[{"$f":"AAMC_Raw_Data_for_FY22[[#This Row],[Source]]&AAMC_Raw_Data_for_FY22[[#This Row],[Type]]&AAMC_Raw_Data_for_FY22[[#This Row],[School Subset]]&AAMC_Raw_Data_for_FY22[[#This Row],[Rank]]&AAMC_Raw_Data_for_FY22[[#This Row],[Degree]]&AAMC_Raw_Data_for_FY22[[#This Row],[Department / Specialty]]&\"L\"","v":"AAMCAcademicPrivateProfessorPhDDiagnostic Radiology TotalL"},"Diagnostic Radiology Total",2,"AAMC","Academic","Private","Professor","PhD","2021-2022",195078,{"$f":"(((AAMC_Raw_Data_for_FY22[[#This Row],[Median]]-AAMC_Raw_Data_for_FY22[[#This Row],[25th]])/25)*5) + AAMC_Raw_Data_for_FY22[[#This Row],[25th]]","v":201167.4},{"$f":"(((AAMC_Raw_Data_for_FY22[[#This Row],[Median]]-AAMC_Raw_Data_for_FY22[[#This Row],[25th]])/25)*10) + AAMC_Raw_Data_for_FY22[[#This Row],[25th]]","v":207256.8},{"$f":"(((AAMC_Raw_Data_for_FY22[[#This Row],[Median]]-AAMC_Raw_Data_for_FY22[[#This Row],[25th]])/25)*15) + AAMC_Raw_Data_for_FY22[[#This Row],[25th]]","v":213346.2},{"$f":"(((AAMC_Raw_Data_for_FY22[[#This Row],[Median]]-AAMC_Raw_Data_for_FY22[[#This Row],[25th]])/25)*20) + AAMC_Raw_Data_for_FY22[[#This Row],[25th]]","v":219435.6},225525,{"$f":"(((AAMC_Raw_Data_for_FY22[[#This Row],[75th]]-AAMC_Raw_Data_for_FY22[[#This Row],[Median]])/25)*5) + AAMC_Raw_Data_for_FY22[[#This Row],[Median]]","v":235963.2},{"$f":"(((AAMC_Raw_Data_for_FY22[[#This Row],[75th]]-AAMC_Raw_Data_for_FY22[[#This Row],[Median]])/25)*10) + AAMC_Raw_Data_for_FY22[[#This Row],[Median]]","v":246401.4},{"$f":"(((AAMC_Raw_Data_for_FY22[[#This Row],[75th]]-AAMC_Raw_Data_for_FY22[[#This Row],[Median]])/25)*15) + AAMC_Raw_Data_for_FY22[[#This Row],[Median]]","v":256839.6},{"$f":"(((AAMC_Raw_Data_for_FY22[[#This Row],[75th]]-AAMC_Raw_Data_for_FY22[[#This Row],[Median]])/25)*20) + AAMC_Raw_Data_for_FY22[[#This Row],[Median]]","v":267277.8},277716,{"$f":"(((AAMC_Raw_Data_for_FY22[[#This Row],[75th]]-AAMC_Raw_Data_for_FY22[[#This Row],[Median]])/25)*30) + AAMC_Raw_Data_for_FY22[[#This Row],[Median]]","v":288154.2},{"$f":"(((AAMC_Raw_Data_for_FY22[[#This Row],[75th]]-AAMC_Raw_Data_for_FY22[[#This Row],[Median]])/25)*35) + AAMC_Raw_Data_for_FY22[[#This Row],[Median]]","v":298592.40000000002},{"$f":"(((AAMC_Raw_Data_for_FY22[[#This Row],[75th]]-AAMC_Raw_Data_for_FY22[[#This Row],[Median]])/25)*40) + AAMC_Raw_Data_for_FY22[[#This Row],[Median]]","v":309030.59999999998}]
[{"$f":"AAMC_Raw_Data_for_FY22[[#This Row],[Source]]&AAMC_Raw_Data_for_FY22[[#This Row],[Type]]&AAMC_Raw_Data_for_FY22[[#This Row],[School Subset]]&AAMC_Raw_Data_for_FY22[[#This Row],[Rank]]&AAMC_Raw_Data_for_FY22[[#This Row],[Degree]]&AAMC_Raw_Data_for_FY22[[#This Row],[Department / Specialty]]&\"L\"","v":"AAMCAcademicPrivateChiefPhDDiagnostic Radiology TotalL"},"Diagnostic Radiology Total",6,"AAMC","Academic","Private","Chief","PhD","2021-2022",null,{"$f":"(((AAMC_Raw_Data_for_FY22[[#This Row],[Median]]-AAMC_Raw_Data_for_FY22[[#This Row],[25th]])/25)*5) + AAMC_Raw_Data_for_FY22[[#This Row],[25th]]","v":0},{"$f":"(((AAMC_Raw_Data_for_FY22[[#This Row],[Median]]-AAMC_Raw_Data_for_FY22[[#This Row],[25th]])/25)*10) + AAMC_Raw_Data_for_FY22[[#This Row],[25th]]","v":0},{"$f":"(((AAMC_Raw_Data_for_FY22[[#This Row],[Median]]-AAMC_Raw_Data_for_FY22[[#This Row],[25th]])/25)*15) + AAMC_Raw_Data_for_FY22[[#This Row],[25th]]","v":0},{"$f":"(((AAMC_Raw_Data_for_FY22[[#This Row],[Median]]-AAMC_Raw_Data_for_FY22[[#This Row],[25th]])/25)*20) + AAMC_Raw_Data_for_FY22[[#This Row],[25th]]","v":0},null,{"$f":"(((AAMC_Raw_Data_for_FY22[[#This Row],[75th]]-AAMC_Raw_Data_for_FY22[[#This Row],[Median]])/25)*5) + AAMC_Raw_Data_for_FY22[[#This Row],[Median]]","v":0},{"$f":"(((AAMC_Raw_Data_for_FY22[[#This Row],[75th]]-AAMC_Raw_Data_for_FY22[[#This Row],[Median]])/25)*10) + AAMC_Raw_Data_for_FY22[[#This Row],[Median]]","v":0},{"$f":"(((AAMC_Raw_Data_for_FY22[[#This Row],[75th]]-AAMC_Raw_Data_for_FY22[[#This Row],[Median]])/25)*15) + AAMC_Raw_Data_for_FY22[[#This Row],[Median]]","v":0},{"$f":"(((AAMC_Raw_Data_for_FY22[[#This Row],[75th]]-AAMC_Raw_Data_for_FY22[[#This Row],[Median]])/25)*20) + AAMC_Raw_Data_for_FY22[[#This Row],[Median]]","v":0},null,{"$f":"(((AAMC_Raw_Data_for_FY22[[#This Row],[75th]]-AAMC_Raw_Data_for_FY22[[#This Row],[Median]])/25)*30) + AAMC_Raw_Data_for_FY22[[#This Row],[Median]]","v":0},{"$f":"(((AAMC_Raw_Data_for_FY22[[#This Row],[75th]]-AAMC_Raw_Data_for_FY22[[#This Row],[Median]])/25)*35) + AAMC_Raw_Data_for_FY22[[#This Row],[Median]]","v":0},{"$f":"(((AAMC_Raw_Data_for_FY22[[#This Row],[75th]]-AAMC_Raw_Data_for_FY22[[#This Row],[Median]])/25)*40) + AAMC_Raw_Data_for_FY22[[#This Row],[Median]]","v":0}]
[{"$f":"AAMC_Raw_Data_for_FY22[[#This Row],[Source]]&AAMC_Raw_Data_for_FY22[[#This Row],[Type]]&AAMC_Raw_Data_for_FY22[[#This Row],[School Subset]]&AAMC_Raw_Data_for_FY22[[#This Row],[Rank]]&AAMC_Raw_Data_for_FY22[[#This Row],[Degree]]&AAMC_Raw_Data_for_FY22[[#This Row],[Department / Specialty]]&\"L\"","v":"AAMCAcademicPrivateAssistantPhDDiagnostic Radiology: InterventionalL"},"Diagnostic Radiology: Interventional",4,"AAMC","Academic","Private","Assistant","PhD","2021-2022",null,{"$f":"(((AAMC_Raw_Data_for_FY22[[#This Row],[Median]]-AAMC_Raw_Data_for_FY22[[#This Row],[25th]])/25)*5) + AAMC_Raw_Data_for_FY22[[#This Row],[25th]]","v":0},{"$f":"(((AAMC_Raw_Data_for_FY22[[#This Row],[Median]]-AAMC_Raw_Data_for_FY22[[#This Row],[25th]])/25)*10) + AAMC_Raw_Data_for_FY22[[#This Row],[25th]]","v":0},{"$f":"(((AAMC_Raw_Data_for_FY22[[#This Row],[Median]]-AAMC_Raw_Data_for_FY22[[#This Row],[25th]])/25)*15) + AAMC_Raw_Data_for_FY22[[#This Row],[25th]]","v":0},{"$f":"(((AAMC_Raw_Data_for_FY22[[#This Row],[Median]]-AAMC_Raw_Data_for_FY22[[#This Row],[25th]])/25)*20) + AAMC_Raw_Data_for_FY22[[#This Row],[25th]]","v":0},null,{"$f":"(((AAMC_Raw_Data_for_FY22[[#This Row],[75th]]-AAMC_Raw_Data_for_FY22[[#This Row],[Median]])/25)*5) + AAMC_Raw_Data_for_FY22[[#This Row],[Median]]","v":0},{"$f":"(((AAMC_Raw_Data_for_FY22[[#This Row],[75th]]-AAMC_Raw_Data_for_FY22[[#This Row],[Median]])/25)*10) + AAMC_Raw_Data_for_FY22[[#This Row],[Median]]","v":0},{"$f":"(((AAMC_Raw_Data_for_FY22[[#This Row],[75th]]-AAMC_Raw_Data_for_FY22[[#This Row],[Median]])/25)*15) + AAMC_Raw_Data_for_FY22[[#This Row],[Median]]","v":0},{"$f":"(((AAMC_Raw_Data_for_FY22[[#This Row],[75th]]-AAMC_Raw_Data_for_FY22[[#This Row],[Median]])/25)*20) + AAMC_Raw_Data_for_FY22[[#This Row],[Median]]","v":0},null,{"$f":"(((AAMC_Raw_Data_for_FY22[[#This Row],[75th]]-AAMC_Raw_Data_for_FY22[[#This Row],[Median]])/25)*30) + AAMC_Raw_Data_for_FY22[[#This Row],[Median]]","v":0},{"$f":"(((AAMC_Raw_Data_for_FY22[[#This Row],[75th]]-AAMC_Raw_Data_for_FY22[[#This Row],[Median]])/25)*35) + AAMC_Raw_Data_for_FY22[[#This Row],[Median]]","v":0},{"$f":"(((AAMC_Raw_Data_for_FY22[[#This Row],[75th]]-AAMC_Raw_Data_for_FY22[[#This Row],[Median]])/25)*40) + AAMC_Raw_Data_for_FY22[[#This Row],[Median]]","v":0}]
[{"$f":"AAMC_Raw_Data_for_FY22[[#This Row],[Source]]&AAMC_Raw_Data_for_FY22[[#This Row],[Type]]&AAMC_Raw_Data_for_FY22[[#This Row],[School Subset]]&AAMC_Raw_Data_for_FY22[[#This Row],[Rank]]&AAMC_Raw_Data_for_FY22[[#This Row],[Degree]]&AAMC_Raw_Data_for_FY22[[#This Row],[Department / Specialty]]&\"L\"","v":"AAMCAcademicPrivateAssociatePhDDiagnostic Radiology: InterventionalL"},"Diagnostic Radiology: Interventional",3,"AAMC","Academic","Private","Associate","PhD","2021-2022",null,{"$f":"(((AAMC_Raw_Data_for_FY22[[#This Row],[Median]]-AAMC_Raw_Data_for_FY22[[#This Row],[25th]])/25)*5) + AAMC_Raw_Data_for_FY22[[#This Row],[25th]]","v":0},{"$f":"(((AAMC_Raw_Data_for_FY22[[#This Row],[Median]]-AAMC_Raw_Data_for_FY22[[#This Row],[25th]])/25)*10) + AAMC_Raw_Data_for_FY22[[#This Row],[25th]]","v":0},{"$f":"(((AAMC_Raw_Data_for_FY22[[#This Row],[Median]]-AAMC_Raw_Data_for_FY22[[#This Row],[25th]])/25)*15) + AAMC_Raw_Data_for_FY22[[#This Row],[25th]]","v":0},{"$f":"(((AAMC_Raw_Data_for_FY22[[#This Row],[Median]]-AAMC_Raw_Data_for_FY22[[#This Row],[25th]])/25)*20) + AAMC_Raw_Data_for_FY22[[#This Row],[25th]]","v":0},null,{"$f":"(((AAMC_Raw_Data_for_FY22[[#This Row],[75th]]-AAMC_Raw_Data_for_FY22[[#This Row],[Median]])/25)*5) + AAMC_Raw_Data_for_FY22[[#This Row],[Median]]","v":0},{"$f":"(((AAMC_Raw_Data_for_FY22[[#This Row],[75th]]-AAMC_Raw_Data_for_FY22[[#This Row],[Median]])/25)*10) + AAMC_Raw_Data_for_FY22[[#This Row],[Median]]","v":0},{"$f":"(((AAMC_Raw_Data_for_FY22[[#This Row],[75th]]-AAMC_Raw_Data_for_FY22[[#This Row],[Median]])/25)*15) + AAMC_Raw_Data_for_FY22[[#This Row],[Median]]","v":0},{"$f":"(((AAMC_Raw_Data_for_FY22[[#This Row],[75th]]-AAMC_Raw_Data_for_FY22[[#This Row],[Median]])/25)*20) + AAMC_Raw_Data_for_FY22[[#This Row],[Median]]","v":0},null,{"$f":"(((AAMC_Raw_Data_for_FY22[[#This Row],[75th]]-AAMC_Raw_Data_for_FY22[[#This Row],[Median]])/25)*30) + AAMC_Raw_Data_for_FY22[[#This Row],[Median]]","v":0},{"$f":"(((AAMC_Raw_Data_for_FY22[[#This Row],[75th]]-AAMC_Raw_Data_for_FY22[[#This Row],[Median]])/25)*35) + AAMC_Raw_Data_for_FY22[[#This Row],[Median]]","v":0},{"$f":"(((AAMC_Raw_Data_for_FY22[[#This Row],[75th]]-AAMC_Raw_Data_for_FY22[[#This Row],[Median]])/25)*40) + AAMC_Raw_Data_for_FY22[[#This Row],[Median]]","v":0}]
[{"$f":"AAMC_Raw_Data_for_FY22[[#This Row],[Source]]&AAMC_Raw_Data_for_FY22[[#This Row],[Type]]&AAMC_Raw_Data_for_FY22[[#This Row],[School Subset]]&AAMC_Raw_Data_for_FY22[[#This Row],[Rank]]&AAMC_Raw_Data_for_FY22[[#This Row],[Degree]]&AAMC_Raw_Data_for_FY22[[#This Row],[Department / Specialty]]&\"L\"","v":"AAMCAcademicPrivateInstructorPhDDiagnostic Radiology: Non-interventionalL"},"Diagnostic Radiology: Non-interventional",5,"AAMC","Academic","Private","Instructor","PhD","2021-2022",null,{"$f":"(((AAMC_Raw_Data_for_FY22[[#This Row],[Median]]-AAMC_Raw_Data_for_FY22[[#This Row],[25th]])/25)*5) + AAMC_Raw_Data_for_FY22[[#This Row],[25th]]","v":0},{"$f":"(((AAMC_Raw_Data_for_FY22[[#This Row],[Median]]-AAMC_Raw_Data_for_FY22[[#This Row],[25th]])/25)*10) + AAMC_Raw_Data_for_FY22[[#This Row],[25th]]","v":0},{"$f":"(((AAMC_Raw_Data_for_FY22[[#This Row],[Median]]-AAMC_Raw_Data_for_FY22[[#This Row],[25th]])/25)*15) + AAMC_Raw_Data_for_FY22[[#This Row],[25th]]","v":0},{"$f":"(((AAMC_Raw_Data_for_FY22[[#This Row],[Median]]-AAMC_Raw_Data_for_FY22[[#This Row],[25th]])/25)*20) + AAMC_Raw_Data_for_FY22[[#This Row],[25th]]","v":0},null,{"$f":"(((AAMC_Raw_Data_for_FY22[[#This Row],[75th]]-AAMC_Raw_Data_for_FY22[[#This Row],[Median]])/25)*5) + AAMC_Raw_Data_for_FY22[[#This Row],[Median]]","v":0},{"$f":"(((AAMC_Raw_Data_for_FY22[[#This Row],[75th]]-AAMC_Raw_Data_for_FY22[[#This Row],[Median]])/25)*10) + AAMC_Raw_Data_for_FY22[[#This Row],[Median]]","v":0},{"$f":"(((AAMC_Raw_Data_for_FY22[[#This Row],[75th]]-AAMC_Raw_Data_for_FY22[[#This Row],[Median]])/25)*15) + AAMC_Raw_Data_for_FY22[[#This Row],[Median]]","v":0},{"$f":"(((AAMC_Raw_Data_for_FY22[[#This Row],[75th]]-AAMC_Raw_Data_for_FY22[[#This Row],[Median]])/25)*20) + AAMC_Raw_Data_for_FY22[[#This Row],[Median]]","v":0},null,{"$f":"(((AAMC_Raw_Data_for_FY22[[#This Row],[75th]]-AAMC_Raw_Data_for_FY22[[#This Row],[Median]])/25)*30) + AAMC_Raw_Data_for_FY22[[#This Row],[Median]]","v":0},{"$f":"(((AAMC_Raw_Data_for_FY22[[#This Row],[75th]]-AAMC_Raw_Data_for_FY22[[#This Row],[Median]])/25)*35) + AAMC_Raw_Data_for_FY22[[#This Row],[Median]]","v":0},{"$f":"(((AAMC_Raw_Data_for_FY22[[#This Row],[75th]]-AAMC_Raw_Data_for_FY22[[#This Row],[Median]])/25)*40) + AAMC_Raw_Data_for_FY22[[#This Row],[Median]]","v":0}]
[{"$f":"AAMC_Raw_Data_for_FY22[[#This Row],[Source]]&AAMC_Raw_Data_for_FY22[[#This Row],[Type]]&AAMC_Raw_Data_for_FY22[[#This Row],[School Subset]]&AAMC_Raw_Data_for_FY22[[#This Row],[Rank]]&AAMC_Raw_Data_for_FY22[[#This Row],[Degree]]&AAMC_Raw_Data_for_FY22[[#This Row],[Department / Specialty]]&\"L\"","v":"AAMCAcademicPrivateAssistantPhDDiagnostic Radiology: Non-interventionalL"},"Diagnostic Radiology: Non-interventional",4,"AAMC","Academic","Private","Assistant","PhD","2021-2022",105435,{"$f":"(((AAMC_Raw_Data_for_FY22[[#This Row],[Median]]-AAMC_Raw_Data_for_FY22[[#This Row],[25th]])/25)*5) + AAMC_Raw_Data_for_FY22[[#This Row],[25th]]","v":109988},{"$f":"(((AAMC_Raw_Data_for_FY22[[#This Row],[Median]]-AAMC_Raw_Data_for_FY22[[#This Row],[25th]])/25)*10) + AAMC_Raw_Data_for_FY22[[#This Row],[25th]]","v":114541},{"$f":"(((AAMC_Raw_Data_for_FY22[[#This Row],[Median]]-AAMC_Raw_Data_for_FY22[[#This Row],[25th]])/25)*15) + AAMC_Raw_Data_for_FY22[[#This Row],[25th]]","v":119094},{"$f":"(((AAMC_Raw_Data_for_FY22[[#This Row],[Median]]-AAMC_Raw_Data_for_FY22[[#This Row],[25th]])/25)*20) + AAMC_Raw_Data_for_FY22[[#This Row],[25th]]","v":123647},128200,{"$f":"(((AAMC_Raw_Data_for_FY22[[#This Row],[75th]]-AAMC_Raw_Data_for_FY22[[#This Row],[Median]])/25)*5) + AAMC_Raw_Data_for_FY22[[#This Row],[Median]]","v":129313},{"$f":"(((AAMC_Raw_Data_for_FY22[[#This Row],[75th]]-AAMC_Raw_Data_for_FY22[[#This Row],[Median]])/25)*10) + AAMC_Raw_Data_for_FY22[[#This Row],[Median]]","v":130426},{"$f":"(((AAMC_Raw_Data_for_FY22[[#This Row],[75th]]-AAMC_Raw_Data_for_FY22[[#This Row],[Median]])/25)*15) + AAMC_Raw_Data_for_FY22[[#This Row],[Median]]","v":131539},{"$f":"(((AAMC_Raw_Data_for_FY22[[#This Row],[75th]]-AAMC_Raw_Data_for_FY22[[#This Row],[Median]])/25)*20) + AAMC_Raw_Data_for_FY22[[#This Row],[Median]]","v":132652},133765,{"$f":"(((AAMC_Raw_Data_for_FY22[[#This Row],[75th]]-AAMC_Raw_Data_for_FY22[[#This Row],[Median]])/25)*30) + AAMC_Raw_Data_for_FY22[[#This Row],[Median]]","v":134878},{"$f":"(((AAMC_Raw_Data_for_FY22[[#This Row],[75th]]-AAMC_Raw_Data_for_FY22[[#This Row],[Median]])/25)*35) + AAMC_Raw_Data_for_FY22[[#This Row],[Median]]","v":135991},{"$f":"(((AAMC_Raw_Data_for_FY22[[#This Row],[75th]]-AAMC_Raw_Data_for_FY22[[#This Row],[Median]])/25)*40) + AAMC_Raw_Data_for_FY22[[#This Row],[Median]]","v":137104}]
[{"$f":"AAMC_Raw_Data_for_FY22[[#This Row],[Source]]&AAMC_Raw_Data_for_FY22[[#This Row],[Type]]&AAMC_Raw_Data_for_FY22[[#This Row],[School Subset]]&AAMC_Raw_Data_for_FY22[[#This Row],[Rank]]&AAMC_Raw_Data_for_FY22[[#This Row],[Degree]]&AAMC_Raw_Data_for_FY22[[#This Row],[Department / Specialty]]&\"L\"","v":"AAMCAcademicPrivateAssociatePhDDiagnostic Radiology: Non-interventionalL"},"Diagnostic Radiology: Non-interventional",3,"AAMC","Academic","Private","Associate","PhD","2021-2022",148484,{"$f":"(((AAMC_Raw_Data_for_FY22[[#This Row],[Median]]-AAMC_Raw_Data_for_FY22[[#This Row],[25th]])/25)*5) + AAMC_Raw_Data_for_FY22[[#This Row],[25th]]","v":151787.20000000001},{"$f":"(((AAMC_Raw_Data_for_FY22[[#This Row],[Median]]-AAMC_Raw_Data_for_FY22[[#This Row],[25th]])/25)*10) + AAMC_Raw_Data_for_FY22[[#This Row],[25th]]","v":155090.4},{"$f":"(((AAMC_Raw_Data_for_FY22[[#This Row],[Median]]-AAMC_Raw_Data_for_FY22[[#This Row],[25th]])/25)*15) + AAMC_Raw_Data_for_FY22[[#This Row],[25th]]","v":158393.60000000001},{"$f":"(((AAMC_Raw_Data_for_FY22[[#This Row],[Median]]-AAMC_Raw_Data_for_FY22[[#This Row],[25th]])/25)*20) + AAMC_Raw_Data_for_FY22[[#This Row],[25th]]","v":161696.79999999999},165000,{"$f":"(((AAMC_Raw_Data_for_FY22[[#This Row],[75th]]-AAMC_Raw_Data_for_FY22[[#This Row],[Median]])/25)*5) + AAMC_Raw_Data_for_FY22[[#This Row],[Median]]","v":169400},{"$f":"(((AAMC_Raw_Data_for_FY22[[#This Row],[75th]]-AAMC_Raw_Data_for_FY22[[#This Row],[Median]])/25)*10) + AAMC_Raw_Data_for_FY22[[#This Row],[Median]]","v":173800},{"$f":"(((AAMC_Raw_Data_for_FY22[[#This Row],[75th]]-AAMC_Raw_Data_for_FY22[[#This Row],[Median]])/25)*15) + AAMC_Raw_Data_for_FY22[[#This Row],[Median]]","v":178200},{"$f":"(((AAMC_Raw_Data_for_FY22[[#This Row],[75th]]-AAMC_Raw_Data_for_FY22[[#This Row],[Median]])/25)*20) + AAMC_Raw_Data_for_FY22[[#This Row],[Median]]","v":182600},187000,{"$f":"(((AAMC_Raw_Data_for_FY22[[#This Row],[75th]]-AAMC_Raw_Data_for_FY22[[#This Row],[Median]])/25)*30) + AAMC_Raw_Data_for_FY22[[#This Row],[Median]]","v":191400},{"$f":"(((AAMC_Raw_Data_for_FY22[[#This Row],[75th]]-AAMC_Raw_Data_for_FY22[[#This Row],[Median]])/25)*35) + AAMC_Raw_Data_for_FY22[[#This Row],[Median]]","v":195800},{"$f":"(((AAMC_Raw_Data_for_FY22[[#This Row],[75th]]-AAMC_Raw_Data_for_FY22[[#This Row],[Median]])/25)*40) + AAMC_Raw_Data_for_FY22[[#This Row],[Median]]","v":200200}]
[{"$f":"AAMC_Raw_Data_for_FY22[[#This Row],[Source]]&AAMC_Raw_Data_for_FY22[[#This Row],[Type]]&AAMC_Raw_Data_for_FY22[[#This Row],[School Subset]]&AAMC_Raw_Data_for_FY22[[#This Row],[Rank]]&AAMC_Raw_Data_for_FY22[[#This Row],[Degree]]&AAMC_Raw_Data_for_FY22[[#This Row],[Department / Specialty]]&\"L\"","v":"AAMCAcademicPrivateProfessorPhDDiagnostic Radiology: Non-interventionalL"},"Diagnostic Radiology: Non-interventional",2,"AAMC","Academic","Private","Professor","PhD","2021-2022",195078,{"$f":"(((AAMC_Raw_Data_for_FY22[[#This Row],[Median]]-AAMC_Raw_Data_for_FY22[[#This Row],[25th]])/25)*5) + AAMC_Raw_Data_for_FY22[[#This Row],[25th]]","v":201167.4},{"$f":"(((AAMC_Raw_Data_for_FY22[[#This Row],[Median]]-AAMC_Raw_Data_for_FY22[[#This Row],[25th]])/25)*10) + AAMC_Raw_Data_for_FY22[[#This Row],[25th]]","v":207256.8},{"$f":"(((AAMC_Raw_Data_for_FY22[[#This Row],[Median]]-AAMC_Raw_Data_for_FY22[[#This Row],[25th]])/25)*15) + AAMC_Raw_Data_for_FY22[[#This Row],[25th]]","v":213346.2},{"$f":"(((AAMC_Raw_Data_for_FY22[[#This Row],[Median]]-AAMC_Raw_Data_for_FY22[[#This Row],[25th]])/25)*20) + AAMC_Raw_Data_for_FY22[[#This Row],[25th]]","v":219435.6},225525,{"$f":"(((AAMC_Raw_Data_for_FY22[[#This Row],[75th]]-AAMC_Raw_Data_for_FY22[[#This Row],[Median]])/25)*5) + AAMC_Raw_Data_for_FY22[[#This Row],[Median]]","v":235963.2},{"$f":"(((AAMC_Raw_Data_for_FY22[[#This Row],[75th]]-AAMC_Raw_Data_for_FY22[[#This Row],[Median]])/25)*10) + AAMC_Raw_Data_for_FY22[[#This Row],[Median]]","v":246401.4},{"$f":"(((AAMC_Raw_Data_for_FY22[[#This Row],[75th]]-AAMC_Raw_Data_for_FY22[[#This Row],[Median]])/25)*15) + AAMC_Raw_Data_for_FY22[[#This Row],[Median]]","v":256839.6},{"$f":"(((AAMC_Raw_Data_for_FY22[[#This Row],[75th]]-AAMC_Raw_Data_for_FY22[[#This Row],[Median]])/25)*20) + AAMC_Raw_Data_for_FY22[[#This Row],[Median]]","v":267277.8},277716,{"$f":"(((AAMC_Raw_Data_for_FY22[[#This Row],[75th]]-AAMC_Raw_Data_for_FY22[[#This Row],[Median]])/25)*30) + AAMC_Raw_Data_for_FY22[[#This Row],[Median]]","v":288154.2},{"$f":"(((AAMC_Raw_Data_for_FY22[[#This Row],[75th]]-AAMC_Raw_Data_for_FY22[[#This Row],[Median]])/25)*35) + AAMC_Raw_Data_for_FY22[[#This Row],[Median]]","v":298592.40000000002},{"$f":"(((AAMC_Raw_Data_for_FY22[[#This Row],[75th]]-AAMC_Raw_Data_for_FY22[[#This Row],[Median]])/25)*40) + AAMC_Raw_Data_for_FY22[[#This Row],[Median]]","v":309030.59999999998}]
[{"$f":"AAMC_Raw_Data_for_FY22[[#This Row],[Source]]&AAMC_Raw_Data_for_FY22[[#This Row],[Type]]&AAMC_Raw_Data_for_FY22[[#This Row],[School Subset]]&AAMC_Raw_Data_for_FY22[[#This Row],[Rank]]&AAMC_Raw_Data_for_FY22[[#This Row],[Degree]]&AAMC_Raw_Data_for_FY22[[#This Row],[Department / Specialty]]&\"L\"","v":"AAMCAcademicPrivateChiefPhDDiagnostic Radiology: Non-interventionalL"},"Diagnostic Radiology: Non-interventional",6,"AAMC","Academic","Private","Chief","PhD","2021-2022",null,{"$f":"(((AAMC_Raw_Data_for_FY22[[#This Row],[Median]]-AAMC_Raw_Data_for_FY22[[#This Row],[25th]])/25)*5) + AAMC_Raw_Data_for_FY22[[#This Row],[25th]]","v":0},{"$f":"(((AAMC_Raw_Data_for_FY22[[#This Row],[Median]]-AAMC_Raw_Data_for_FY22[[#This Row],[25th]])/25)*10) + AAMC_Raw_Data_for_FY22[[#This Row],[25th]]","v":0},{"$f":"(((AAMC_Raw_Data_for_FY22[[#This Row],[Median]]-AAMC_Raw_Data_for_FY22[[#This Row],[25th]])/25)*15) + AAMC_Raw_Data_for_FY22[[#This Row],[25th]]","v":0},{"$f":"(((AAMC_Raw_Data_for_FY22[[#This Row],[Median]]-AAMC_Raw_Data_for_FY22[[#This Row],[25th]])/25)*20) + AAMC_Raw_Data_for_FY22[[#This Row],[25th]]","v":0},null,{"$f":"(((AAMC_Raw_Data_for_FY22[[#This Row],[75th]]-AAMC_Raw_Data_for_FY22[[#This Row],[Median]])/25)*5) + AAMC_Raw_Data_for_FY22[[#This Row],[Median]]","v":0},{"$f":"(((AAMC_Raw_Data_for_FY22[[#This Row],[75th]]-AAMC_Raw_Data_for_FY22[[#This Row],[Median]])/25)*10) + AAMC_Raw_Data_for_FY22[[#This Row],[Median]]","v":0},{"$f":"(((AAMC_Raw_Data_for_FY22[[#This Row],[75th]]-AAMC_Raw_Data_for_FY22[[#This Row],[Median]])/25)*15) + AAMC_Raw_Data_for_FY22[[#This Row],[Median]]","v":0},{"$f":"(((AAMC_Raw_Data_for_FY22[[#This Row],[75th]]-AAMC_Raw_Data_for_FY22[[#This Row],[Median]])/25)*20) + AAMC_Raw_Data_for_FY22[[#This Row],[Median]]","v":0},null,{"$f":"(((AAMC_Raw_Data_for_FY22[[#This Row],[75th]]-AAMC_Raw_Data_for_FY22[[#This Row],[Median]])/25)*30) + AAMC_Raw_Data_for_FY22[[#This Row],[Median]]","v":0},{"$f":"(((AAMC_Raw_Data_for_FY22[[#This Row],[75th]]-AAMC_Raw_Data_for_FY22[[#This Row],[Median]])/25)*35) + AAMC_Raw_Data_for_FY22[[#This Row],[Median]]","v":0},{"$f":"(((AAMC_Raw_Data_for_FY22[[#This Row],[75th]]-AAMC_Raw_Data_for_FY22[[#This Row],[Median]])/25)*40) + AAMC_Raw_Data_for_FY22[[#This Row],[Median]]","v":0}]
[{"$f":"AAMC_Raw_Data_for_FY22[[#This Row],[Source]]&AAMC_Raw_Data_for_FY22[[#This Row],[Type]]&AAMC_Raw_Data_for_FY22[[#This Row],[School Subset]]&AAMC_Raw_Data_for_FY22[[#This Row],[Rank]]&AAMC_Raw_Data_for_FY22[[#This Row],[Degree]]&AAMC_Raw_Data_for_FY22[[#This Row],[Department / Specialty]]&\"L\"","v":"AAMCAcademicPrivateAssociatePhDNuclear MedicineL"},"Nuclear Medicine",3,"AAMC","Academic","Private","Associate","PhD","2021-2022",null,{"$f":"(((AAMC_Raw_Data_for_FY22[[#This Row],[Median]]-AAMC_Raw_Data_for_FY22[[#This Row],[25th]])/25)*5) + AAMC_Raw_Data_for_FY22[[#This Row],[25th]]","v":0},{"$f":"(((AAMC_Raw_Data_for_FY22[[#This Row],[Median]]-AAMC_Raw_Data_for_FY22[[#This Row],[25th]])/25)*10) + AAMC_Raw_Data_for_FY22[[#This Row],[25th]]","v":0},{"$f":"(((AAMC_Raw_Data_for_FY22[[#This Row],[Median]]-AAMC_Raw_Data_for_FY22[[#This Row],[25th]])/25)*15) + AAMC_Raw_Data_for_FY22[[#This Row],[25th]]","v":0},{"$f":"(((AAMC_Raw_Data_for_FY22[[#This Row],[Median]]-AAMC_Raw_Data_for_FY22[[#This Row],[25th]])/25)*20) + AAMC_Raw_Data_for_FY22[[#This Row],[25th]]","v":0},null,{"$f":"(((AAMC_Raw_Data_for_FY22[[#This Row],[75th]]-AAMC_Raw_Data_for_FY22[[#This Row],[Median]])/25)*5) + AAMC_Raw_Data_for_FY22[[#This Row],[Median]]","v":0},{"$f":"(((AAMC_Raw_Data_for_FY22[[#This Row],[75th]]-AAMC_Raw_Data_for_FY22[[#This Row],[Median]])/25)*10) + AAMC_Raw_Data_for_FY22[[#This Row],[Median]]","v":0},{"$f":"(((AAMC_Raw_Data_for_FY22[[#This Row],[75th]]-AAMC_Raw_Data_for_FY22[[#This Row],[Median]])/25)*15) + AAMC_Raw_Data_for_FY22[[#This Row],[Median]]","v":0},{"$f":"(((AAMC_Raw_Data_for_FY22[[#This Row],[75th]]-AAMC_Raw_Data_for_FY22[[#This Row],[Median]])/25)*20) + AAMC_Raw_Data_for_FY22[[#This Row],[Median]]","v":0},null,{"$f":"(((AAMC_Raw_Data_for_FY22[[#This Row],[75th]]-AAMC_Raw_Data_for_FY22[[#This Row],[Median]])/25)*30) + AAMC_Raw_Data_for_FY22[[#This Row],[Median]]","v":0},{"$f":"(((AAMC_Raw_Data_for_FY22[[#This Row],[75th]]-AAMC_Raw_Data_for_FY22[[#This Row],[Median]])/25)*35) + AAMC_Raw_Data_for_FY22[[#This Row],[Median]]","v":0},{"$f":"(((AAMC_Raw_Data_for_FY22[[#This Row],[75th]]-AAMC_Raw_Data_for_FY22[[#This Row],[Median]])/25)*40) + AAMC_Raw_Data_for_FY22[[#This Row],[Median]]","v":0}]
[{"$f":"AAMC_Raw_Data_for_FY22[[#This Row],[Source]]&AAMC_Raw_Data_for_FY22[[#This Row],[Type]]&AAMC_Raw_Data_for_FY22[[#This Row],[School Subset]]&AAMC_Raw_Data_for_FY22[[#This Row],[Rank]]&AAMC_Raw_Data_for_FY22[[#This Row],[Degree]]&AAMC_Raw_Data_for_FY22[[#This Row],[Department / Specialty]]&\"L\"","v":"AAMCAcademicPrivateInstructorPhDRadiation OncologyL"},"Radiation Oncology",5,"AAMC","Academic","Private","Instructor","PhD","2021-2022",95120,{"$f":"(((AAMC_Raw_Data_for_FY22[[#This Row],[Median]]-AAMC_Raw_Data_for_FY22[[#This Row],[25th]])/25)*5) + AAMC_Raw_Data_for_FY22[[#This Row],[25th]]","v":101506.6},{"$f":"(((AAMC_Raw_Data_for_FY22[[#This Row],[Median]]-AAMC_Raw_Data_for_FY22[[#This Row],[25th]])/25)*10) + AAMC_Raw_Data_for_FY22[[#This Row],[25th]]","v":107893.2},{"$f":"(((AAMC_Raw_Data_for_FY22[[#This Row],[Median]]-AAMC_Raw_Data_for_FY22[[#This Row],[25th]])/25)*15) + AAMC_Raw_Data_for_FY22[[#This Row],[25th]]","v":114279.8},{"$f":"(((AAMC_Raw_Data_for_FY22[[#This Row],[Median]]-AAMC_Raw_Data_for_FY22[[#This Row],[25th]])/25)*20) + AAMC_Raw_Data_for_FY22[[#This Row],[25th]]","v":120666.4},127053,{"$f":"(((AAMC_Raw_Data_for_FY22[[#This Row],[75th]]-AAMC_Raw_Data_for_FY22[[#This Row],[Median]])/25)*5) + AAMC_Raw_Data_for_FY22[[#This Row],[Median]]","v":137537.60000000001},{"$f":"(((AAMC_Raw_Data_for_FY22[[#This Row],[75th]]-AAMC_Raw_Data_for_FY22[[#This Row],[Median]])/25)*10) + AAMC_Raw_Data_for_FY22[[#This Row],[Median]]","v":148022.20000000001},{"$f":"(((AAMC_Raw_Data_for_FY22[[#This Row],[75th]]-AAMC_Raw_Data_for_FY22[[#This Row],[Median]])/25)*15) + AAMC_Raw_Data_for_FY22[[#This Row],[Median]]","v":158506.79999999999},{"$f":"(((AAMC_Raw_Data_for_FY22[[#This Row],[75th]]-AAMC_Raw_Data_for_FY22[[#This Row],[Median]])/25)*20) + AAMC_Raw_Data_for_FY22[[#This Row],[Median]]","v":168991.4},179476,{"$f":"(((AAMC_Raw_Data_for_FY22[[#This Row],[75th]]-AAMC_Raw_Data_for_FY22[[#This Row],[Median]])/25)*30) + AAMC_Raw_Data_for_FY22[[#This Row],[Median]]","v":189960.6},{"$f":"(((AAMC_Raw_Data_for_FY22[[#This Row],[75th]]-AAMC_Raw_Data_for_FY22[[#This Row],[Median]])/25)*35) + AAMC_Raw_Data_for_FY22[[#This Row],[Median]]","v":200445.2},{"$f":"(((AAMC_Raw_Data_for_FY22[[#This Row],[75th]]-AAMC_Raw_Data_for_FY22[[#This Row],[Median]])/25)*40) + AAMC_Raw_Data_for_FY22[[#This Row],[Median]]","v":210929.8}]
[{"$f":"AAMC_Raw_Data_for_FY22[[#This Row],[Source]]&AAMC_Raw_Data_for_FY22[[#This Row],[Type]]&AAMC_Raw_Data_for_FY22[[#This Row],[School Subset]]&AAMC_Raw_Data_for_FY22[[#This Row],[Rank]]&AAMC_Raw_Data_for_FY22[[#This Row],[Degree]]&AAMC_Raw_Data_for_FY22[[#This Row],[Department / Specialty]]&\"L\"","v":"AAMCAcademicPrivateAssistantPhDRadiation OncologyL"},"Radiation Oncology",4,"AAMC","Academic","Private","Assistant","PhD","2021-2022",159650,{"$f":"(((AAMC_Raw_Data_for_FY22[[#This Row],[Median]]-AAMC_Raw_Data_for_FY22[[#This Row],[25th]])/25)*5) + AAMC_Raw_Data_for_FY22[[#This Row],[25th]]","v":165720},{"$f":"(((AAMC_Raw_Data_for_FY22[[#This Row],[Median]]-AAMC_Raw_Data_for_FY22[[#This Row],[25th]])/25)*10) + AAMC_Raw_Data_for_FY22[[#This Row],[25th]]","v":171790},{"$f":"(((AAMC_Raw_Data_for_FY22[[#This Row],[Median]]-AAMC_Raw_Data_for_FY22[[#This Row],[25th]])/25)*15) + AAMC_Raw_Data_for_FY22[[#This Row],[25th]]","v":177860},{"$f":"(((AAMC_Raw_Data_for_FY22[[#This Row],[Median]]-AAMC_Raw_Data_for_FY22[[#This Row],[25th]])/25)*20) + AAMC_Raw_Data_for_FY22[[#This Row],[25th]]","v":183930},190000,{"$f":"(((AAMC_Raw_Data_for_FY22[[#This Row],[75th]]-AAMC_Raw_Data_for_FY22[[#This Row],[Median]])/25)*5) + AAMC_Raw_Data_for_FY22[[#This Row],[Median]]","v":195074.6},{"$f":"(((AAMC_Raw_Data_for_FY22[[#This Row],[75th]]-AAMC_Raw_Data_for_FY22[[#This Row],[Median]])/25)*10) + AAMC_Raw_Data_for_FY22[[#This Row],[Median]]","v":200149.2},{"$f":"(((AAMC_Raw_Data_for_FY22[[#This Row],[75th]]-AAMC_Raw_Data_for_FY22[[#This Row],[Median]])/25)*15) + AAMC_Raw_Data_for_FY22[[#This Row],[Median]]","v":205223.8},{"$f":"(((AAMC_Raw_Data_for_FY22[[#This Row],[75th]]-AAMC_Raw_Data_for_FY22[[#This Row],[Median]])/25)*20) + AAMC_Raw_Data_for_FY22[[#This Row],[Median]]","v":210298.4},215373,{"$f":"(((AAMC_Raw_Data_for_FY22[[#This Row],[75th]]-AAMC_Raw_Data_for_FY22[[#This Row],[Median]])/25)*30) + AAMC_Raw_Data_for_FY22[[#This Row],[Median]]","v":220447.6},{"$f":"(((AAMC_Raw_Data_for_FY22[[#This Row],[75th]]-AAMC_Raw_Data_for_FY22[[#This Row],[Median]])/25)*35) + AAMC_Raw_Data_for_FY22[[#This Row],[Median]]","v":225522.2},{"$f":"(((AAMC_Raw_Data_for_FY22[[#This Row],[75th]]-AAMC_Raw_Data_for_FY22[[#This Row],[Median]])/25)*40) + AAMC_Raw_Data_for_FY22[[#This Row],[Median]]","v":230596.8}]
[{"$f":"AAMC_Raw_Data_for_FY22[[#This Row],[Source]]&AAMC_Raw_Data_for_FY22[[#This Row],[Type]]&AAMC_Raw_Data_for_FY22[[#This Row],[School Subset]]&AAMC_Raw_Data_for_FY22[[#This Row],[Rank]]&AAMC_Raw_Data_for_FY22[[#This Row],[Degree]]&AAMC_Raw_Data_for_FY22[[#This Row],[Department / Specialty]]&\"L\"","v":"AAMCAcademicPrivateAssociatePhDRadiation OncologyL"},"Radiation Oncology",3,"AAMC","Academic","Private","Associate","PhD","2021-2022",164800,{"$f":"(((AAMC_Raw_Data_for_FY22[[#This Row],[Median]]-AAMC_Raw_Data_for_FY22[[#This Row],[25th]])/25)*5) + AAMC_Raw_Data_for_FY22[[#This Row],[25th]]","v":177234},{"$f":"(((AAMC_Raw_Data_for_FY22[[#This Row],[Median]]-AAMC_Raw_Data_for_FY22[[#This Row],[25th]])/25)*10) + AAMC_Raw_Data_for_FY22[[#This Row],[25th]]","v":189668},{"$f":"(((AAMC_Raw_Data_for_FY22[[#This Row],[Median]]-AAMC_Raw_Data_for_FY22[[#This Row],[25th]])/25)*15) + AAMC_Raw_Data_for_FY22[[#This Row],[25th]]","v":202102},{"$f":"(((AAMC_Raw_Data_for_FY22[[#This Row],[Median]]-AAMC_Raw_Data_for_FY22[[#This Row],[25th]])/25)*20) + AAMC_Raw_Data_for_FY22[[#This Row],[25th]]","v":214536},226970,{"$f":"(((AAMC_Raw_Data_for_FY22[[#This Row],[75th]]-AAMC_Raw_Data_for_FY22[[#This Row],[Median]])/25)*5) + AAMC_Raw_Data_for_FY22[[#This Row],[Median]]","v":235916.79999999999},{"$f":"(((AAMC_Raw_Data_for_FY22[[#This Row],[75th]]-AAMC_Raw_Data_for_FY22[[#This Row],[Median]])/25)*10) + AAMC_Raw_Data_for_FY22[[#This Row],[Median]]","v":244863.6},{"$f":"(((AAMC_Raw_Data_for_FY22[[#This Row],[75th]]-AAMC_Raw_Data_for_FY22[[#This Row],[Median]])/25)*15) + AAMC_Raw_Data_for_FY22[[#This Row],[Median]]","v":253810.4},{"$f":"(((AAMC_Raw_Data_for_FY22[[#This Row],[75th]]-AAMC_Raw_Data_for_FY22[[#This Row],[Median]])/25)*20) + AAMC_Raw_Data_for_FY22[[#This Row],[Median]]","v":262757.2},271704,{"$f":"(((AAMC_Raw_Data_for_FY22[[#This Row],[75th]]-AAMC_Raw_Data_for_FY22[[#This Row],[Median]])/25)*30) + AAMC_Raw_Data_for_FY22[[#This Row],[Median]]","v":280650.8},{"$f":"(((AAMC_Raw_Data_for_FY22[[#This Row],[75th]]-AAMC_Raw_Data_for_FY22[[#This Row],[Median]])/25)*35) + AAMC_Raw_Data_for_FY22[[#This Row],[Median]]","v":289597.59999999998},{"$f":"(((AAMC_Raw_Data_for_FY22[[#This Row],[75th]]-AAMC_Raw_Data_for_FY22[[#This Row],[Median]])/25)*40) + AAMC_Raw_Data_for_FY22[[#This Row],[Median]]","v":298544.40000000002}]
[{"$f":"AAMC_Raw_Data_for_FY22[[#This Row],[Source]]&AAMC_Raw_Data_for_FY22[[#This Row],[Type]]&AAMC_Raw_Data_for_FY22[[#This Row],[School Subset]]&AAMC_Raw_Data_for_FY22[[#This Row],[Rank]]&AAMC_Raw_Data_for_FY22[[#This Row],[Degree]]&AAMC_Raw_Data_for_FY22[[#This Row],[Department / Specialty]]&\"L\"","v":"AAMCAcademicPrivateProfessorPhDRadiation OncologyL"},"Radiation Oncology",2,"AAMC","Academic","Private","Professor","PhD","2021-2022",201860,{"$f":"(((AAMC_Raw_Data_for_FY22[[#This Row],[Median]]-AAMC_Raw_Data_for_FY22[[#This Row],[25th]])/25)*5) + AAMC_Raw_Data_for_FY22[[#This Row],[25th]]","v":212516.2},{"$f":"(((AAMC_Raw_Data_for_FY22[[#This Row],[Median]]-AAMC_Raw_Data_for_FY22[[#This Row],[25th]])/25)*10) + AAMC_Raw_Data_for_FY22[[#This Row],[25th]]","v":223172.4},{"$f":"(((AAMC_Raw_Data_for_FY22[[#This Row],[Median]]-AAMC_Raw_Data_for_FY22[[#This Row],[25th]])/25)*15) + AAMC_Raw_Data_for_FY22[[#This Row],[25th]]","v":233828.6},{"$f":"(((AAMC_Raw_Data_for_FY22[[#This Row],[Median]]-AAMC_Raw_Data_for_FY22[[#This Row],[25th]])/25)*20) + AAMC_Raw_Data_for_FY22[[#This Row],[25th]]","v":244484.8},255141,{"$f":"(((AAMC_Raw_Data_for_FY22[[#This Row],[75th]]-AAMC_Raw_Data_for_FY22[[#This Row],[Median]])/25)*5) + AAMC_Raw_Data_for_FY22[[#This Row],[Median]]","v":263912.8},{"$f":"(((AAMC_Raw_Data_for_FY22[[#This Row],[75th]]-AAMC_Raw_Data_for_FY22[[#This Row],[Median]])/25)*10) + AAMC_Raw_Data_for_FY22[[#This Row],[Median]]","v":272684.59999999998},{"$f":"(((AAMC_Raw_Data_for_FY22[[#This Row],[75th]]-AAMC_Raw_Data_for_FY22[[#This Row],[Median]])/25)*15) + AAMC_Raw_Data_for_FY22[[#This Row],[Median]]","v":281456.40000000002},{"$f":"(((AAMC_Raw_Data_for_FY22[[#This Row],[75th]]-AAMC_Raw_Data_for_FY22[[#This Row],[Median]])/25)*20) + AAMC_Raw_Data_for_FY22[[#This Row],[Median]]","v":290228.2},299000,{"$f":"(((AAMC_Raw_Data_for_FY22[[#This Row],[75th]]-AAMC_Raw_Data_for_FY22[[#This Row],[Median]])/25)*30) + AAMC_Raw_Data_for_FY22[[#This Row],[Median]]","v":307771.8},{"$f":"(((AAMC_Raw_Data_for_FY22[[#This Row],[75th]]-AAMC_Raw_Data_for_FY22[[#This Row],[Median]])/25)*35) + AAMC_Raw_Data_for_FY22[[#This Row],[Median]]","v":316543.59999999998},{"$f":"(((AAMC_Raw_Data_for_FY22[[#This Row],[75th]]-AAMC_Raw_Data_for_FY22[[#This Row],[Median]])/25)*40) + AAMC_Raw_Data_for_FY22[[#This Row],[Median]]","v":325315.40000000002}]
[{"$f":"AAMC_Raw_Data_for_FY22[[#This Row],[Source]]&AAMC_Raw_Data_for_FY22[[#This Row],[Type]]&AAMC_Raw_Data_for_FY22[[#This Row],[School Subset]]&AAMC_Raw_Data_for_FY22[[#This Row],[Rank]]&AAMC_Raw_Data_for_FY22[[#This Row],[Degree]]&AAMC_Raw_Data_for_FY22[[#This Row],[Department / Specialty]]&\"L\"","v":"AAMCAcademicPrivateChiefPhDRadiation OncologyL"},"Radiation Oncology",6,"AAMC","Academic","Private","Chief","PhD","2021-2022",276940,{"$f":"(((AAMC_Raw_Data_for_FY22[[#This Row],[Median]]-AAMC_Raw_Data_for_FY22[[#This Row],[25th]])/25)*5) + AAMC_Raw_Data_for_FY22[[#This Row],[25th]]","v":289128},{"$f":"(((AAMC_Raw_Data_for_FY22[[#This Row],[Median]]-AAMC_Raw_Data_for_FY22[[#This Row],[25th]])/25)*10) + AAMC_Raw_Data_for_FY22[[#This Row],[25th]]","v":301316},{"$f":"(((AAMC_Raw_Data_for_FY22[[#This Row],[Median]]-AAMC_Raw_Data_for_FY22[[#This Row],[25th]])/25)*15) + AAMC_Raw_Data_for_FY22[[#This Row],[25th]]","v":313504},{"$f":"(((AAMC_Raw_Data_for_FY22[[#This Row],[Median]]-AAMC_Raw_Data_for_FY22[[#This Row],[25th]])/25)*20) + AAMC_Raw_Data_for_FY22[[#This Row],[25th]]","v":325692},337880,{"$f":"(((AAMC_Raw_Data_for_FY22[[#This Row],[75th]]-AAMC_Raw_Data_for_FY22[[#This Row],[Median]])/25)*5) + AAMC_Raw_Data_for_FY22[[#This Row],[Median]]","v":349349},{"$f":"(((AAMC_Raw_Data_for_FY22[[#This Row],[75th]]-AAMC_Raw_Data_for_FY22[[#This Row],[Median]])/25)*10) + AAMC_Raw_Data_for_FY22[[#This Row],[Median]]","v":360818},{"$f":"(((AAMC_Raw_Data_for_FY22[[#This Row],[75th]]-AAMC_Raw_Data_for_FY22[[#This Row],[Median]])/25)*15) + AAMC_Raw_Data_for_FY22[[#This Row],[Median]]","v":372287},{"$f":"(((AAMC_Raw_Data_for_FY22[[#This Row],[75th]]-AAMC_Raw_Data_for_FY22[[#This Row],[Median]])/25)*20) + AAMC_Raw_Data_for_FY22[[#This Row],[Median]]","v":383756},395225,{"$f":"(((AAMC_Raw_Data_for_FY22[[#This Row],[75th]]-AAMC_Raw_Data_for_FY22[[#This Row],[Median]])/25)*30) + AAMC_Raw_Data_for_FY22[[#This Row],[Median]]","v":406694},{"$f":"(((AAMC_Raw_Data_for_FY22[[#This Row],[75th]]-AAMC_Raw_Data_for_FY22[[#This Row],[Median]])/25)*35) + AAMC_Raw_Data_for_FY22[[#This Row],[Median]]","v":418163},{"$f":"(((AAMC_Raw_Data_for_FY22[[#This Row],[75th]]-AAMC_Raw_Data_for_FY22[[#This Row],[Median]])/25)*40) + AAMC_Raw_Data_for_FY22[[#This Row],[Median]]","v":429632}]
[{"$f":"AAMC_Raw_Data_for_FY22[[#This Row],[Source]]&AAMC_Raw_Data_for_FY22[[#This Row],[Type]]&AAMC_Raw_Data_for_FY22[[#This Row],[School Subset]]&AAMC_Raw_Data_for_FY22[[#This Row],[Rank]]&AAMC_Raw_Data_for_FY22[[#This Row],[Degree]]&AAMC_Raw_Data_for_FY22[[#This Row],[Department / Specialty]]&\"L\"","v":"AAMCAcademicPrivateInstructorPhDOther RadiologyL"},"Other Radiology",5,"AAMC","Academic","Private","Instructor","PhD","2021-2022",73425,{"$f":"(((AAMC_Raw_Data_for_FY22[[#This Row],[Median]]-AAMC_Raw_Data_for_FY22[[#This Row],[25th]])/25)*5) + AAMC_Raw_Data_for_FY22[[#This Row],[25th]]","v":75031.399999999994},{"$f":"(((AAMC_Raw_Data_for_FY22[[#This Row],[Median]]-AAMC_Raw_Data_for_FY22[[#This Row],[25th]])/25)*10) + AAMC_Raw_Data_for_FY22[[#This Row],[25th]]","v":76637.8},{"$f":"(((AAMC_Raw_Data_for_FY22[[#This Row],[Median]]-AAMC_Raw_Data_for_FY22[[#This Row],[25th]])/25)*15) + AAMC_Raw_Data_for_FY22[[#This Row],[25th]]","v":78244.2},{"$f":"(((AAMC_Raw_Data_for_FY22[[#This Row],[Median]]-AAMC_Raw_Data_for_FY22[[#This Row],[25th]])/25)*20) + AAMC_Raw_Data_for_FY22[[#This Row],[25th]]","v":79850.600000000006},81457,{"$f":"(((AAMC_Raw_Data_for_FY22[[#This Row],[75th]]-AAMC_Raw_Data_for_FY22[[#This Row],[Median]])/25)*5) + AAMC_Raw_Data_for_FY22[[#This Row],[Median]]","v":85230},{"$f":"(((AAMC_Raw_Data_for_FY22[[#This Row],[75th]]-AAMC_Raw_Data_for_FY22[[#This Row],[Median]])/25)*10) + AAMC_Raw_Data_for_FY22[[#This Row],[Median]]","v":89003},{"$f":"(((AAMC_Raw_Data_for_FY22[[#This Row],[75th]]-AAMC_Raw_Data_for_FY22[[#This Row],[Median]])/25)*15) + AAMC_Raw_Data_for_FY22[[#This Row],[Median]]","v":92776},{"$f":"(((AAMC_Raw_Data_for_FY22[[#This Row],[75th]]-AAMC_Raw_Data_for_FY22[[#This Row],[Median]])/25)*20) + AAMC_Raw_Data_for_FY22[[#This Row],[Median]]","v":96549},100322,{"$f":"(((AAMC_Raw_Data_for_FY22[[#This Row],[75th]]-AAMC_Raw_Data_for_FY22[[#This Row],[Median]])/25)*30) + AAMC_Raw_Data_for_FY22[[#This Row],[Median]]","v":104095},{"$f":"(((AAMC_Raw_Data_for_FY22[[#This Row],[75th]]-AAMC_Raw_Data_for_FY22[[#This Row],[Median]])/25)*35) + AAMC_Raw_Data_for_FY22[[#This Row],[Median]]","v":107868},{"$f":"(((AAMC_Raw_Data_for_FY22[[#This Row],[75th]]-AAMC_Raw_Data_for_FY22[[#This Row],[Median]])/25)*40) + AAMC_Raw_Data_for_FY22[[#This Row],[Median]]","v":111641}]
[{"$f":"AAMC_Raw_Data_for_FY22[[#This Row],[Source]]&AAMC_Raw_Data_for_FY22[[#This Row],[Type]]&AAMC_Raw_Data_for_FY22[[#This Row],[School Subset]]&AAMC_Raw_Data_for_FY22[[#This Row],[Rank]]&AAMC_Raw_Data_for_FY22[[#This Row],[Degree]]&AAMC_Raw_Data_for_FY22[[#This Row],[Department / Specialty]]&\"L\"","v":"AAMCAcademicPrivateAssistantPhDOther RadiologyL"},"Other Radiology",4,"AAMC","Academic","Private","Assistant","PhD","2021-2022",94660,{"$f":"(((AAMC_Raw_Data_for_FY22[[#This Row],[Median]]-AAMC_Raw_Data_for_FY22[[#This Row],[25th]])/25)*5) + AAMC_Raw_Data_for_FY22[[#This Row],[25th]]","v":99048},{"$f":"(((AAMC_Raw_Data_for_FY22[[#This Row],[Median]]-AAMC_Raw_Data_for_FY22[[#This Row],[25th]])/25)*10) + AAMC_Raw_Data_for_FY22[[#This Row],[25th]]","v":103436},{"$f":"(((AAMC_Raw_Data_for_FY22[[#This Row],[Median]]-AAMC_Raw_Data_for_FY22[[#This Row],[25th]])/25)*15) + AAMC_Raw_Data_for_FY22[[#This Row],[25th]]","v":107824},{"$f":"(((AAMC_Raw_Data_for_FY22[[#This Row],[Median]]-AAMC_Raw_Data_for_FY22[[#This Row],[25th]])/25)*20) + AAMC_Raw_Data_for_FY22[[#This Row],[25th]]","v":112212},116600,{"$f":"(((AAMC_Raw_Data_for_FY22[[#This Row],[75th]]-AAMC_Raw_Data_for_FY22[[#This Row],[Median]])/25)*5) + AAMC_Raw_Data_for_FY22[[#This Row],[Median]]","v":122280},{"$f":"(((AAMC_Raw_Data_for_FY22[[#This Row],[75th]]-AAMC_Raw_Data_for_FY22[[#This Row],[Median]])/25)*10) + AAMC_Raw_Data_for_FY22[[#This Row],[Median]]","v":127960},{"$f":"(((AAMC_Raw_Data_for_FY22[[#This Row],[75th]]-AAMC_Raw_Data_for_FY22[[#This Row],[Median]])/25)*15) + AAMC_Raw_Data_for_FY22[[#This Row],[Median]]","v":133640},{"$f":"(((AAMC_Raw_Data_for_FY22[[#This Row],[75th]]-AAMC_Raw_Data_for_FY22[[#This Row],[Median]])/25)*20) + AAMC_Raw_Data_for_FY22[[#This Row],[Median]]","v":139320},145000,{"$f":"(((AAMC_Raw_Data_for_FY22[[#This Row],[75th]]-AAMC_Raw_Data_for_FY22[[#This Row],[Median]])/25)*30) + AAMC_Raw_Data_for_FY22[[#This Row],[Median]]","v":150680},{"$f":"(((AAMC_Raw_Data_for_FY22[[#This Row],[75th]]-AAMC_Raw_Data_for_FY22[[#This Row],[Median]])/25)*35) + AAMC_Raw_Data_for_FY22[[#This Row],[Median]]","v":156360},{"$f":"(((AAMC_Raw_Data_for_FY22[[#This Row],[75th]]-AAMC_Raw_Data_for_FY22[[#This Row],[Median]])/25)*40) + AAMC_Raw_Data_for_FY22[[#This Row],[Median]]","v":162040}]
[{"$f":"AAMC_Raw_Data_for_FY22[[#This Row],[Source]]&AAMC_Raw_Data_for_FY22[[#This Row],[Type]]&AAMC_Raw_Data_for_FY22[[#This Row],[School Subset]]&AAMC_Raw_Data_for_FY22[[#This Row],[Rank]]&AAMC_Raw_Data_for_FY22[[#This Row],[Degree]]&AAMC_Raw_Data_for_FY22[[#This Row],[Department / Specialty]]&\"L\"","v":"AAMCAcademicPrivateAssociatePhDOther RadiologyL"},"Other Radiology",3,"AAMC","Academic","Private","Associate","PhD","2021-2022",130835,{"$f":"(((AAMC_Raw_Data_for_FY22[[#This Row],[Median]]-AAMC_Raw_Data_for_FY22[[#This Row],[25th]])/25)*5) + AAMC_Raw_Data_for_FY22[[#This Row],[25th]]","v":138419},{"$f":"(((AAMC_Raw_Data_for_FY22[[#This Row],[Median]]-AAMC_Raw_Data_for_FY22[[#This Row],[25th]])/25)*10) + AAMC_Raw_Data_for_FY22[[#This Row],[25th]]","v":146003},{"$f":"(((AAMC_Raw_Data_for_FY22[[#This Row],[Median]]-AAMC_Raw_Data_for_FY22[[#This Row],[25th]])/25)*15) + AAMC_Raw_Data_for_FY22[[#This Row],[25th]]","v":153587},{"$f":"(((AAMC_Raw_Data_for_FY22[[#This Row],[Median]]-AAMC_Raw_Data_for_FY22[[#This Row],[25th]])/25)*20) + AAMC_Raw_Data_for_FY22[[#This Row],[25th]]","v":161171},168755,{"$f":"(((AAMC_Raw_Data_for_FY22[[#This Row],[75th]]-AAMC_Raw_Data_for_FY22[[#This Row],[Median]])/25)*5) + AAMC_Raw_Data_for_FY22[[#This Row],[Median]]","v":176004},{"$f":"(((AAMC_Raw_Data_for_FY22[[#This Row],[75th]]-AAMC_Raw_Data_for_FY22[[#This Row],[Median]])/25)*10) + AAMC_Raw_Data_for_FY22[[#This Row],[Median]]","v":183253},{"$f":"(((AAMC_Raw_Data_for_FY22[[#This Row],[75th]]-AAMC_Raw_Data_for_FY22[[#This Row],[Median]])/25)*15) + AAMC_Raw_Data_for_FY22[[#This Row],[Median]]","v":190502},{"$f":"(((AAMC_Raw_Data_for_FY22[[#This Row],[75th]]-AAMC_Raw_Data_for_FY22[[#This Row],[Median]])/25)*20) + AAMC_Raw_Data_for_FY22[[#This Row],[Median]]","v":197751},205000,{"$f":"(((AAMC_Raw_Data_for_FY22[[#This Row],[75th]]-AAMC_Raw_Data_for_FY22[[#This Row],[Median]])/25)*30) + AAMC_Raw_Data_for_FY22[[#This Row],[Median]]","v":212249},{"$f":"(((AAMC_Raw_Data_for_FY22[[#This Row],[75th]]-AAMC_Raw_Data_for_FY22[[#This Row],[Median]])/25)*35) + AAMC_Raw_Data_for_FY22[[#This Row],[Median]]","v":219498},{"$f":"(((AAMC_Raw_Data_for_FY22[[#This Row],[75th]]-AAMC_Raw_Data_for_FY22[[#This Row],[Median]])/25)*40) + AAMC_Raw_Data_for_FY22[[#This Row],[Median]]","v":226747}]
[{"$f":"AAMC_Raw_Data_for_FY22[[#This Row],[Source]]&AAMC_Raw_Data_for_FY22[[#This Row],[Type]]&AAMC_Raw_Data_for_FY22[[#This Row],[School Subset]]&AAMC_Raw_Data_for_FY22[[#This Row],[Rank]]&AAMC_Raw_Data_for_FY22[[#This Row],[Degree]]&AAMC_Raw_Data_for_FY22[[#This Row],[Department / Specialty]]&\"L\"","v":"AAMCAcademicPrivateProfessorPhDOther RadiologyL"},"Other Radiology",2,"AAMC","Academic","Private","Professor","PhD","2021-2022",196411,{"$f":"(((AAMC_Raw_Data_for_FY22[[#This Row],[Median]]-AAMC_Raw_Data_for_FY22[[#This Row],[25th]])/25)*5) + AAMC_Raw_Data_for_FY22[[#This Row],[25th]]","v":204341.2},{"$f":"(((AAMC_Raw_Data_for_FY22[[#This Row],[Median]]-AAMC_Raw_Data_for_FY22[[#This Row],[25th]])/25)*10) + AAMC_Raw_Data_for_FY22[[#This Row],[25th]]","v":212271.4},{"$f":"(((AAMC_Raw_Data_for_FY22[[#This Row],[Median]]-AAMC_Raw_Data_for_FY22[[#This Row],[25th]])/25)*15) + AAMC_Raw_Data_for_FY22[[#This Row],[25th]]","v":220201.60000000001},{"$f":"(((AAMC_Raw_Data_for_FY22[[#This Row],[Median]]-AAMC_Raw_Data_for_FY22[[#This Row],[25th]])/25)*20) + AAMC_Raw_Data_for_FY22[[#This Row],[25th]]","v":228131.8},236062,{"$f":"(((AAMC_Raw_Data_for_FY22[[#This Row],[75th]]-AAMC_Raw_Data_for_FY22[[#This Row],[Median]])/25)*5) + AAMC_Raw_Data_for_FY22[[#This Row],[Median]]","v":247302.8},{"$f":"(((AAMC_Raw_Data_for_FY22[[#This Row],[75th]]-AAMC_Raw_Data_for_FY22[[#This Row],[Median]])/25)*10) + AAMC_Raw_Data_for_FY22[[#This Row],[Median]]","v":258543.6},{"$f":"(((AAMC_Raw_Data_for_FY22[[#This Row],[75th]]-AAMC_Raw_Data_for_FY22[[#This Row],[Median]])/25)*15) + AAMC_Raw_Data_for_FY22[[#This Row],[Median]]","v":269784.40000000002},{"$f":"(((AAMC_Raw_Data_for_FY22[[#This Row],[75th]]-AAMC_Raw_Data_for_FY22[[#This Row],[Median]])/25)*20) + AAMC_Raw_Data_for_FY22[[#This Row],[Median]]","v":281025.2},292266,{"$f":"(((AAMC_Raw_Data_for_FY22[[#This Row],[75th]]-AAMC_Raw_Data_for_FY22[[#This Row],[Median]])/25)*30) + AAMC_Raw_Data_for_FY22[[#This Row],[Median]]","v":303506.8},{"$f":"(((AAMC_Raw_Data_for_FY22[[#This Row],[75th]]-AAMC_Raw_Data_for_FY22[[#This Row],[Median]])/25)*35) + AAMC_Raw_Data_for_FY22[[#This Row],[Median]]","v":314747.59999999998},{"$f":"(((AAMC_Raw_Data_for_FY22[[#This Row],[75th]]-AAMC_Raw_Data_for_FY22[[#This Row],[Median]])/25)*40) + AAMC_Raw_Data_for_FY22[[#This Row],[Median]]","v":325988.40000000002}]
[{"$f":"AAMC_Raw_Data_for_FY22[[#This Row],[Source]]&AAMC_Raw_Data_for_FY22[[#This Row],[Type]]&AAMC_Raw_Data_for_FY22[[#This Row],[School Subset]]&AAMC_Raw_Data_for_FY22[[#This Row],[Rank]]&AAMC_Raw_Data_for_FY22[[#This Row],[Degree]]&AAMC_Raw_Data_for_FY22[[#This Row],[Department / Specialty]]&\"L\"","v":"AAMCAcademicPrivateChiefPhDOther RadiologyL"},"Other Radiology",6,"AAMC","Academic","Private","Chief","PhD","2021-2022",null,{"$f":"(((AAMC_Raw_Data_for_FY22[[#This Row],[Median]]-AAMC_Raw_Data_for_FY22[[#This Row],[25th]])/25)*5) + AAMC_Raw_Data_for_FY22[[#This Row],[25th]]","v":0},{"$f":"(((AAMC_Raw_Data_for_FY22[[#This Row],[Median]]-AAMC_Raw_Data_for_FY22[[#This Row],[25th]])/25)*10) + AAMC_Raw_Data_for_FY22[[#This Row],[25th]]","v":0},{"$f":"(((AAMC_Raw_Data_for_FY22[[#This Row],[Median]]-AAMC_Raw_Data_for_FY22[[#This Row],[25th]])/25)*15) + AAMC_Raw_Data_for_FY22[[#This Row],[25th]]","v":0},{"$f":"(((AAMC_Raw_Data_for_FY22[[#This Row],[Median]]-AAMC_Raw_Data_for_FY22[[#This Row],[25th]])/25)*20) + AAMC_Raw_Data_for_FY22[[#This Row],[25th]]","v":0},null,{"$f":"(((AAMC_Raw_Data_for_FY22[[#This Row],[75th]]-AAMC_Raw_Data_for_FY22[[#This Row],[Median]])/25)*5) + AAMC_Raw_Data_for_FY22[[#This Row],[Median]]","v":0},{"$f":"(((AAMC_Raw_Data_for_FY22[[#This Row],[75th]]-AAMC_Raw_Data_for_FY22[[#This Row],[Median]])/25)*10) + AAMC_Raw_Data_for_FY22[[#This Row],[Median]]","v":0},{"$f":"(((AAMC_Raw_Data_for_FY22[[#This Row],[75th]]-AAMC_Raw_Data_for_FY22[[#This Row],[Median]])/25)*15) + AAMC_Raw_Data_for_FY22[[#This Row],[Median]]","v":0},{"$f":"(((AAMC_Raw_Data_for_FY22[[#This Row],[75th]]-AAMC_Raw_Data_for_FY22[[#This Row],[Median]])/25)*20) + AAMC_Raw_Data_for_FY22[[#This Row],[Median]]","v":0},null,{"$f":"(((AAMC_Raw_Data_for_FY22[[#This Row],[75th]]-AAMC_Raw_Data_for_FY22[[#This Row],[Median]])/25)*30) + AAMC_Raw_Data_for_FY22[[#This Row],[Median]]","v":0},{"$f":"(((AAMC_Raw_Data_for_FY22[[#This Row],[75th]]-AAMC_Raw_Data_for_FY22[[#This Row],[Median]])/25)*35) + AAMC_Raw_Data_for_FY22[[#This Row],[Median]]","v":0},{"$f":"(((AAMC_Raw_Data_for_FY22[[#This Row],[75th]]-AAMC_Raw_Data_for_FY22[[#This Row],[Median]])/25)*40) + AAMC_Raw_Data_for_FY22[[#This Row],[Median]]","v":0}]
[{"$f":"AAMC_Raw_Data_for_FY22[[#This Row],[Source]]&AAMC_Raw_Data_for_FY22[[#This Row],[Type]]&AAMC_Raw_Data_for_FY22[[#This Row],[School Subset]]&AAMC_Raw_Data_for_FY22[[#This Row],[Rank]]&AAMC_Raw_Data_for_FY22[[#This Row],[Degree]]&AAMC_Raw_Data_for_FY22[[#This Row],[Department / Specialty]]&\"L\"","v":"AAMCAcademicPrivateInstructorPhDSurgery TotalL"},"Surgery Total",5,"AAMC","Academic","Private","Instructor","PhD","2021-2022",68000,{"$f":"(((AAMC_Raw_Data_for_FY22[[#This Row],[Median]]-AAMC_Raw_Data_for_FY22[[#This Row],[25th]])/25)*5) + AAMC_Raw_Data_for_FY22[[#This Row],[25th]]","v":69400},{"$f":"(((AAMC_Raw_Data_for_FY22[[#This Row],[Median]]-AAMC_Raw_Data_for_FY22[[#This Row],[25th]])/25)*10) + AAMC_Raw_Data_for_FY22[[#This Row],[25th]]","v":70800},{"$f":"(((AAMC_Raw_Data_for_FY22[[#This Row],[Median]]-AAMC_Raw_Data_for_FY22[[#This Row],[25th]])/25)*15) + AAMC_Raw_Data_for_FY22[[#This Row],[25th]]","v":72200},{"$f":"(((AAMC_Raw_Data_for_FY22[[#This Row],[Median]]-AAMC_Raw_Data_for_FY22[[#This Row],[25th]])/25)*20) + AAMC_Raw_Data_for_FY22[[#This Row],[25th]]","v":73600},75000,{"$f":"(((AAMC_Raw_Data_for_FY22[[#This Row],[75th]]-AAMC_Raw_Data_for_FY22[[#This Row],[Median]])/25)*5) + AAMC_Raw_Data_for_FY22[[#This Row],[Median]]","v":80600},{"$f":"(((AAMC_Raw_Data_for_FY22[[#This Row],[75th]]-AAMC_Raw_Data_for_FY22[[#This Row],[Median]])/25)*10) + AAMC_Raw_Data_for_FY22[[#This Row],[Median]]","v":86200},{"$f":"(((AAMC_Raw_Data_for_FY22[[#This Row],[75th]]-AAMC_Raw_Data_for_FY22[[#This Row],[Median]])/25)*15) + AAMC_Raw_Data_for_FY22[[#This Row],[Median]]","v":91800},{"$f":"(((AAMC_Raw_Data_for_FY22[[#This Row],[75th]]-AAMC_Raw_Data_for_FY22[[#This Row],[Median]])/25)*20) + AAMC_Raw_Data_for_FY22[[#This Row],[Median]]","v":97400},103000,{"$f":"(((AAMC_Raw_Data_for_FY22[[#This Row],[75th]]-AAMC_Raw_Data_for_FY22[[#This Row],[Median]])/25)*30) + AAMC_Raw_Data_for_FY22[[#This Row],[Median]]","v":108600},{"$f":"(((AAMC_Raw_Data_for_FY22[[#This Row],[75th]]-AAMC_Raw_Data_for_FY22[[#This Row],[Median]])/25)*35) + AAMC_Raw_Data_for_FY22[[#This Row],[Median]]","v":114200},{"$f":"(((AAMC_Raw_Data_for_FY22[[#This Row],[75th]]-AAMC_Raw_Data_for_FY22[[#This Row],[Median]])/25)*40) + AAMC_Raw_Data_for_FY22[[#This Row],[Median]]","v":119800}]
[{"$f":"AAMC_Raw_Data_for_FY22[[#This Row],[Source]]&AAMC_Raw_Data_for_FY22[[#This Row],[Type]]&AAMC_Raw_Data_for_FY22[[#This Row],[School Subset]]&AAMC_Raw_Data_for_FY22[[#This Row],[Rank]]&AAMC_Raw_Data_for_FY22[[#This Row],[Degree]]&AAMC_Raw_Data_for_FY22[[#This Row],[Department / Specialty]]&\"L\"","v":"AAMCAcademicPrivateAssistantPhDSurgery TotalL"},"Surgery Total",4,"AAMC","Academic","Private","Assistant","PhD","2021-2022",88766,{"$f":"(((AAMC_Raw_Data_for_FY22[[#This Row],[Median]]-AAMC_Raw_Data_for_FY22[[#This Row],[25th]])/25)*5) + AAMC_Raw_Data_for_FY22[[#This Row],[25th]]","v":93278.399999999994},{"$f":"(((AAMC_Raw_Data_for_FY22[[#This Row],[Median]]-AAMC_Raw_Data_for_FY22[[#This Row],[25th]])/25)*10) + AAMC_Raw_Data_for_FY22[[#This Row],[25th]]","v":97790.8},{"$f":"(((AAMC_Raw_Data_for_FY22[[#This Row],[Median]]-AAMC_Raw_Data_for_FY22[[#This Row],[25th]])/25)*15) + AAMC_Raw_Data_for_FY22[[#This Row],[25th]]","v":102303.2},{"$f":"(((AAMC_Raw_Data_for_FY22[[#This Row],[Median]]-AAMC_Raw_Data_for_FY22[[#This Row],[25th]])/25)*20) + AAMC_Raw_Data_for_FY22[[#This Row],[25th]]","v":106815.6},111328,{"$f":"(((AAMC_Raw_Data_for_FY22[[#This Row],[75th]]-AAMC_Raw_Data_for_FY22[[#This Row],[Median]])/25)*5) + AAMC_Raw_Data_for_FY22[[#This Row],[Median]]","v":116209.2},{"$f":"(((AAMC_Raw_Data_for_FY22[[#This Row],[75th]]-AAMC_Raw_Data_for_FY22[[#This Row],[Median]])/25)*10) + AAMC_Raw_Data_for_FY22[[#This Row],[Median]]","v":121090.4},{"$f":"(((AAMC_Raw_Data_for_FY22[[#This Row],[75th]]-AAMC_Raw_Data_for_FY22[[#This Row],[Median]])/25)*15) + AAMC_Raw_Data_for_FY22[[#This Row],[Median]]","v":125971.6},{"$f":"(((AAMC_Raw_Data_for_FY22[[#This Row],[75th]]-AAMC_Raw_Data_for_FY22[[#This Row],[Median]])/25)*20) + AAMC_Raw_Data_for_FY22[[#This Row],[Median]]","v":130852.8},135734,{"$f":"(((AAMC_Raw_Data_for_FY22[[#This Row],[75th]]-AAMC_Raw_Data_for_FY22[[#This Row],[Median]])/25)*30) + AAMC_Raw_Data_for_FY22[[#This Row],[Median]]","v":140615.20000000001},{"$f":"(((AAMC_Raw_Data_for_FY22[[#This Row],[75th]]-AAMC_Raw_Data_for_FY22[[#This Row],[Median]])/25)*35) + AAMC_Raw_Data_for_FY22[[#This Row],[Median]]","v":145496.4},{"$f":"(((AAMC_Raw_Data_for_FY22[[#This Row],[75th]]-AAMC_Raw_Data_for_FY22[[#This Row],[Median]])/25)*40) + AAMC_Raw_Data_for_FY22[[#This Row],[Median]]","v":150377.60000000001}]
[{"$f":"AAMC_Raw_Data_for_FY22[[#This Row],[Source]]&AAMC_Raw_Data_for_FY22[[#This Row],[Type]]&AAMC_Raw_Data_for_FY22[[#This Row],[School Subset]]&AAMC_Raw_Data_for_FY22[[#This Row],[Rank]]&AAMC_Raw_Data_for_FY22[[#This Row],[Degree]]&AAMC_Raw_Data_for_FY22[[#This Row],[Department / Specialty]]&\"L\"","v":"AAMCAcademicPrivateAssociatePhDSurgery TotalL"},"Surgery Total",3,"AAMC","Academic","Private","Associate","PhD","2021-2022",128616,{"$f":"(((AAMC_Raw_Data_for_FY22[[#This Row],[Median]]-AAMC_Raw_Data_for_FY22[[#This Row],[25th]])/25)*5) + AAMC_Raw_Data_for_FY22[[#This Row],[25th]]","v":133434.20000000001},{"$f":"(((AAMC_Raw_Data_for_FY22[[#This Row],[Median]]-AAMC_Raw_Data_for_FY22[[#This Row],[25th]])/25)*10) + AAMC_Raw_Data_for_FY22[[#This Row],[25th]]","v":138252.4},{"$f":"(((AAMC_Raw_Data_for_FY22[[#This Row],[Median]]-AAMC_Raw_Data_for_FY22[[#This Row],[25th]])/25)*15) + AAMC_Raw_Data_for_FY22[[#This Row],[25th]]","v":143070.6},{"$f":"(((AAMC_Raw_Data_for_FY22[[#This Row],[Median]]-AAMC_Raw_Data_for_FY22[[#This Row],[25th]])/25)*20) + AAMC_Raw_Data_for_FY22[[#This Row],[25th]]","v":147888.79999999999},152707,{"$f":"(((AAMC_Raw_Data_for_FY22[[#This Row],[75th]]-AAMC_Raw_Data_for_FY22[[#This Row],[Median]])/25)*5) + AAMC_Raw_Data_for_FY22[[#This Row],[Median]]","v":159185.4},{"$f":"(((AAMC_Raw_Data_for_FY22[[#This Row],[75th]]-AAMC_Raw_Data_for_FY22[[#This Row],[Median]])/25)*10) + AAMC_Raw_Data_for_FY22[[#This Row],[Median]]","v":165663.79999999999},{"$f":"(((AAMC_Raw_Data_for_FY22[[#This Row],[75th]]-AAMC_Raw_Data_for_FY22[[#This Row],[Median]])/25)*15) + AAMC_Raw_Data_for_FY22[[#This Row],[Median]]","v":172142.2},{"$f":"(((AAMC_Raw_Data_for_FY22[[#This Row],[75th]]-AAMC_Raw_Data_for_FY22[[#This Row],[Median]])/25)*20) + AAMC_Raw_Data_for_FY22[[#This Row],[Median]]","v":178620.6},185099,{"$f":"(((AAMC_Raw_Data_for_FY22[[#This Row],[75th]]-AAMC_Raw_Data_for_FY22[[#This Row],[Median]])/25)*30) + AAMC_Raw_Data_for_FY22[[#This Row],[Median]]","v":191577.4},{"$f":"(((AAMC_Raw_Data_for_FY22[[#This Row],[75th]]-AAMC_Raw_Data_for_FY22[[#This Row],[Median]])/25)*35) + AAMC_Raw_Data_for_FY22[[#This Row],[Median]]","v":198055.8},{"$f":"(((AAMC_Raw_Data_for_FY22[[#This Row],[75th]]-AAMC_Raw_Data_for_FY22[[#This Row],[Median]])/25)*40) + AAMC_Raw_Data_for_FY22[[#This Row],[Median]]","v":204534.2}]
[{"$f":"AAMC_Raw_Data_for_FY22[[#This Row],[Source]]&AAMC_Raw_Data_for_FY22[[#This Row],[Type]]&AAMC_Raw_Data_for_FY22[[#This Row],[School Subset]]&AAMC_Raw_Data_for_FY22[[#This Row],[Rank]]&AAMC_Raw_Data_for_FY22[[#This Row],[Degree]]&AAMC_Raw_Data_for_FY22[[#This Row],[Department / Specialty]]&\"L\"","v":"AAMCAcademicPrivateProfessorPhDSurgery TotalL"},"Surgery Total",2,"AAMC","Academic","Private","Professor","PhD","2021-2022",194544,{"$f":"(((AAMC_Raw_Data_for_FY22[[#This Row],[Median]]-AAMC_Raw_Data_for_FY22[[#This Row],[25th]])/25)*5) + AAMC_Raw_Data_for_FY22[[#This Row],[25th]]","v":202974.4},{"$f":"(((AAMC_Raw_Data_for_FY22[[#This Row],[Median]]-AAMC_Raw_Data_for_FY22[[#This Row],[25th]])/25)*10) + AAMC_Raw_Data_for_FY22[[#This Row],[25th]]","v":211404.79999999999},{"$f":"(((AAMC_Raw_Data_for_FY22[[#This Row],[Median]]-AAMC_Raw_Data_for_FY22[[#This Row],[25th]])/25)*15) + AAMC_Raw_Data_for_FY22[[#This Row],[25th]]","v":219835.2},{"$f":"(((AAMC_Raw_Data_for_FY22[[#This Row],[Median]]-AAMC_Raw_Data_for_FY22[[#This Row],[25th]])/25)*20) + AAMC_Raw_Data_for_FY22[[#This Row],[25th]]","v":228265.60000000001},236696,{"$f":"(((AAMC_Raw_Data_for_FY22[[#This Row],[75th]]-AAMC_Raw_Data_for_FY22[[#This Row],[Median]])/25)*5) + AAMC_Raw_Data_for_FY22[[#This Row],[Median]]","v":247520.8},{"$f":"(((AAMC_Raw_Data_for_FY22[[#This Row],[75th]]-AAMC_Raw_Data_for_FY22[[#This Row],[Median]])/25)*10) + AAMC_Raw_Data_for_FY22[[#This Row],[Median]]","v":258345.60000000001},{"$f":"(((AAMC_Raw_Data_for_FY22[[#This Row],[75th]]-AAMC_Raw_Data_for_FY22[[#This Row],[Median]])/25)*15) + AAMC_Raw_Data_for_FY22[[#This Row],[Median]]","v":269170.40000000002},{"$f":"(((AAMC_Raw_Data_for_FY22[[#This Row],[75th]]-AAMC_Raw_Data_for_FY22[[#This Row],[Median]])/25)*20) + AAMC_Raw_Data_for_FY22[[#This Row],[Median]]","v":279995.2},290820,{"$f":"(((AAMC_Raw_Data_for_FY22[[#This Row],[75th]]-AAMC_Raw_Data_for_FY22[[#This Row],[Median]])/25)*30) + AAMC_Raw_Data_for_FY22[[#This Row],[Median]]","v":301644.79999999999},{"$f":"(((AAMC_Raw_Data_for_FY22[[#This Row],[75th]]-AAMC_Raw_Data_for_FY22[[#This Row],[Median]])/25)*35) + AAMC_Raw_Data_for_FY22[[#This Row],[Median]]","v":312469.59999999998},{"$f":"(((AAMC_Raw_Data_for_FY22[[#This Row],[75th]]-AAMC_Raw_Data_for_FY22[[#This Row],[Median]])/25)*40) + AAMC_Raw_Data_for_FY22[[#This Row],[Median]]","v":323294.40000000002}]
[{"$f":"AAMC_Raw_Data_for_FY22[[#This Row],[Source]]&AAMC_Raw_Data_for_FY22[[#This Row],[Type]]&AAMC_Raw_Data_for_FY22[[#This Row],[School Subset]]&AAMC_Raw_Data_for_FY22[[#This Row],[Rank]]&AAMC_Raw_Data_for_FY22[[#This Row],[Degree]]&AAMC_Raw_Data_for_FY22[[#This Row],[Department / Specialty]]&\"L\"","v":"AAMCAcademicPrivateChiefPhDSurgery TotalL"},"Surgery Total",6,"AAMC","Academic","Private","Chief","PhD","2021-2022",null,{"$f":"(((AAMC_Raw_Data_for_FY22[[#This Row],[Median]]-AAMC_Raw_Data_for_FY22[[#This Row],[25th]])/25)*5) + AAMC_Raw_Data_for_FY22[[#This Row],[25th]]","v":0},{"$f":"(((AAMC_Raw_Data_for_FY22[[#This Row],[Median]]-AAMC_Raw_Data_for_FY22[[#This Row],[25th]])/25)*10) + AAMC_Raw_Data_for_FY22[[#This Row],[25th]]","v":0},{"$f":"(((AAMC_Raw_Data_for_FY22[[#This Row],[Median]]-AAMC_Raw_Data_for_FY22[[#This Row],[25th]])/25)*15) + AAMC_Raw_Data_for_FY22[[#This Row],[25th]]","v":0},{"$f":"(((AAMC_Raw_Data_for_FY22[[#This Row],[Median]]-AAMC_Raw_Data_for_FY22[[#This Row],[25th]])/25)*20) + AAMC_Raw_Data_for_FY22[[#This Row],[25th]]","v":0},null,{"$f":"(((AAMC_Raw_Data_for_FY22[[#This Row],[75th]]-AAMC_Raw_Data_for_FY22[[#This Row],[Median]])/25)*5) + AAMC_Raw_Data_for_FY22[[#This Row],[Median]]","v":0},{"$f":"(((AAMC_Raw_Data_for_FY22[[#This Row],[75th]]-AAMC_Raw_Data_for_FY22[[#This Row],[Median]])/25)*10) + AAMC_Raw_Data_for_FY22[[#This Row],[Median]]","v":0},{"$f":"(((AAMC_Raw_Data_for_FY22[[#This Row],[75th]]-AAMC_Raw_Data_for_FY22[[#This Row],[Median]])/25)*15) + AAMC_Raw_Data_for_FY22[[#This Row],[Median]]","v":0},{"$f":"(((AAMC_Raw_Data_for_FY22[[#This Row],[75th]]-AAMC_Raw_Data_for_FY22[[#This Row],[Median]])/25)*20) + AAMC_Raw_Data_for_FY22[[#This Row],[Median]]","v":0},null,{"$f":"(((AAMC_Raw_Data_for_FY22[[#This Row],[75th]]-AAMC_Raw_Data_for_FY22[[#This Row],[Median]])/25)*30) + AAMC_Raw_Data_for_FY22[[#This Row],[Median]]","v":0},{"$f":"(((AAMC_Raw_Data_for_FY22[[#This Row],[75th]]-AAMC_Raw_Data_for_FY22[[#This Row],[Median]])/25)*35) + AAMC_Raw_Data_for_FY22[[#This Row],[Median]]","v":0},{"$f":"(((AAMC_Raw_Data_for_FY22[[#This Row],[75th]]-AAMC_Raw_Data_for_FY22[[#This Row],[Median]])/25)*40) + AAMC_Raw_Data_for_FY22[[#This Row],[Median]]","v":0}]
[{"$f":"AAMC_Raw_Data_for_FY22[[#This Row],[Source]]&AAMC_Raw_Data_for_FY22[[#This Row],[Type]]&AAMC_Raw_Data_for_FY22[[#This Row],[School Subset]]&AAMC_Raw_Data_for_FY22[[#This Row],[Rank]]&AAMC_Raw_Data_for_FY22[[#This Row],[Degree]]&AAMC_Raw_Data_for_FY22[[#This Row],[Department / Specialty]]&\"L\"","v":"AAMCAcademicPrivateInstructorPhDGeneral SurgeryL"},"General Surgery",5,"AAMC","Academic","Private","Instructor","PhD","2021-2022",null,{"$f":"(((AAMC_Raw_Data_for_FY22[[#This Row],[Median]]-AAMC_Raw_Data_for_FY22[[#This Row],[25th]])/25)*5) + AAMC_Raw_Data_for_FY22[[#This Row],[25th]]","v":0},{"$f":"(((AAMC_Raw_Data_for_FY22[[#This Row],[Median]]-AAMC_Raw_Data_for_FY22[[#This Row],[25th]])/25)*10) + AAMC_Raw_Data_for_FY22[[#This Row],[25th]]","v":0},{"$f":"(((AAMC_Raw_Data_for_FY22[[#This Row],[Median]]-AAMC_Raw_Data_for_FY22[[#This Row],[25th]])/25)*15) + AAMC_Raw_Data_for_FY22[[#This Row],[25th]]","v":0},{"$f":"(((AAMC_Raw_Data_for_FY22[[#This Row],[Median]]-AAMC_Raw_Data_for_FY22[[#This Row],[25th]])/25)*20) + AAMC_Raw_Data_for_FY22[[#This Row],[25th]]","v":0},null,{"$f":"(((AAMC_Raw_Data_for_FY22[[#This Row],[75th]]-AAMC_Raw_Data_for_FY22[[#This Row],[Median]])/25)*5) + AAMC_Raw_Data_for_FY22[[#This Row],[Median]]","v":0},{"$f":"(((AAMC_Raw_Data_for_FY22[[#This Row],[75th]]-AAMC_Raw_Data_for_FY22[[#This Row],[Median]])/25)*10) + AAMC_Raw_Data_for_FY22[[#This Row],[Median]]","v":0},{"$f":"(((AAMC_Raw_Data_for_FY22[[#This Row],[75th]]-AAMC_Raw_Data_for_FY22[[#This Row],[Median]])/25)*15) + AAMC_Raw_Data_for_FY22[[#This Row],[Median]]","v":0},{"$f":"(((AAMC_Raw_Data_for_FY22[[#This Row],[75th]]-AAMC_Raw_Data_for_FY22[[#This Row],[Median]])/25)*20) + AAMC_Raw_Data_for_FY22[[#This Row],[Median]]","v":0},null,{"$f":"(((AAMC_Raw_Data_for_FY22[[#This Row],[75th]]-AAMC_Raw_Data_for_FY22[[#This Row],[Median]])/25)*30) + AAMC_Raw_Data_for_FY22[[#This Row],[Median]]","v":0},{"$f":"(((AAMC_Raw_Data_for_FY22[[#This Row],[75th]]-AAMC_Raw_Data_for_FY22[[#This Row],[Median]])/25)*35) + AAMC_Raw_Data_for_FY22[[#This Row],[Median]]","v":0},{"$f":"(((AAMC_Raw_Data_for_FY22[[#This Row],[75th]]-AAMC_Raw_Data_for_FY22[[#This Row],[Median]])/25)*40) + AAMC_Raw_Data_for_FY22[[#This Row],[Median]]","v":0}]
[{"$f":"AAMC_Raw_Data_for_FY22[[#This Row],[Source]]&AAMC_Raw_Data_for_FY22[[#This Row],[Type]]&AAMC_Raw_Data_for_FY22[[#This Row],[School Subset]]&AAMC_Raw_Data_for_FY22[[#This Row],[Rank]]&AAMC_Raw_Data_for_FY22[[#This Row],[Degree]]&AAMC_Raw_Data_for_FY22[[#This Row],[Department / Specialty]]&\"L\"","v":"AAMCAcademicPrivateAssistantPhDGeneral SurgeryL"},"General Surgery",4,"AAMC","Academic","Private","Assistant","PhD","2021-2022",74415,{"$f":"(((AAMC_Raw_Data_for_FY22[[#This Row],[Median]]-AAMC_Raw_Data_for_FY22[[#This Row],[25th]])/25)*5) + AAMC_Raw_Data_for_FY22[[#This Row],[25th]]","v":77332},{"$f":"(((AAMC_Raw_Data_for_FY22[[#This Row],[Median]]-AAMC_Raw_Data_for_FY22[[#This Row],[25th]])/25)*10) + AAMC_Raw_Data_for_FY22[[#This Row],[25th]]","v":80249},{"$f":"(((AAMC_Raw_Data_for_FY22[[#This Row],[Median]]-AAMC_Raw_Data_for_FY22[[#This Row],[25th]])/25)*15) + AAMC_Raw_Data_for_FY22[[#This Row],[25th]]","v":83166},{"$f":"(((AAMC_Raw_Data_for_FY22[[#This Row],[Median]]-AAMC_Raw_Data_for_FY22[[#This Row],[25th]])/25)*20) + AAMC_Raw_Data_for_FY22[[#This Row],[25th]]","v":86083},89000,{"$f":"(((AAMC_Raw_Data_for_FY22[[#This Row],[75th]]-AAMC_Raw_Data_for_FY22[[#This Row],[Median]])/25)*5) + AAMC_Raw_Data_for_FY22[[#This Row],[Median]]","v":92200},{"$f":"(((AAMC_Raw_Data_for_FY22[[#This Row],[75th]]-AAMC_Raw_Data_for_FY22[[#This Row],[Median]])/25)*10) + AAMC_Raw_Data_for_FY22[[#This Row],[Median]]","v":95400},{"$f":"(((AAMC_Raw_Data_for_FY22[[#This Row],[75th]]-AAMC_Raw_Data_for_FY22[[#This Row],[Median]])/25)*15) + AAMC_Raw_Data_for_FY22[[#This Row],[Median]]","v":98600},{"$f":"(((AAMC_Raw_Data_for_FY22[[#This Row],[75th]]-AAMC_Raw_Data_for_FY22[[#This Row],[Median]])/25)*20) + AAMC_Raw_Data_for_FY22[[#This Row],[Median]]","v":101800},105000,{"$f":"(((AAMC_Raw_Data_for_FY22[[#This Row],[75th]]-AAMC_Raw_Data_for_FY22[[#This Row],[Median]])/25)*30) + AAMC_Raw_Data_for_FY22[[#This Row],[Median]]","v":108200},{"$f":"(((AAMC_Raw_Data_for_FY22[[#This Row],[75th]]-AAMC_Raw_Data_for_FY22[[#This Row],[Median]])/25)*35) + AAMC_Raw_Data_for_FY22[[#This Row],[Median]]","v":111400},{"$f":"(((AAMC_Raw_Data_for_FY22[[#This Row],[75th]]-AAMC_Raw_Data_for_FY22[[#This Row],[Median]])/25)*40) + AAMC_Raw_Data_for_FY22[[#This Row],[Median]]","v":114600}]
[{"$f":"AAMC_Raw_Data_for_FY22[[#This Row],[Source]]&AAMC_Raw_Data_for_FY22[[#This Row],[Type]]&AAMC_Raw_Data_for_FY22[[#This Row],[School Subset]]&AAMC_Raw_Data_for_FY22[[#This Row],[Rank]]&AAMC_Raw_Data_for_FY22[[#This Row],[Degree]]&AAMC_Raw_Data_for_FY22[[#This Row],[Department / Specialty]]&\"L\"","v":"AAMCAcademicPrivateAssociatePhDGeneral SurgeryL"},"General Surgery",3,"AAMC","Academic","Private","Associate","PhD","2021-2022",155925,{"$f":"(((AAMC_Raw_Data_for_FY22[[#This Row],[Median]]-AAMC_Raw_Data_for_FY22[[#This Row],[25th]])/25)*5) + AAMC_Raw_Data_for_FY22[[#This Row],[25th]]","v":171400},{"$f":"(((AAMC_Raw_Data_for_FY22[[#This Row],[Median]]-AAMC_Raw_Data_for_FY22[[#This Row],[25th]])/25)*10) + AAMC_Raw_Data_for_FY22[[#This Row],[25th]]","v":186875},{"$f":"(((AAMC_Raw_Data_for_FY22[[#This Row],[Median]]-AAMC_Raw_Data_for_FY22[[#This Row],[25th]])/25)*15) + AAMC_Raw_Data_for_FY22[[#This Row],[25th]]","v":202350},{"$f":"(((AAMC_Raw_Data_for_FY22[[#This Row],[Median]]-AAMC_Raw_Data_for_FY22[[#This Row],[25th]])/25)*20) + AAMC_Raw_Data_for_FY22[[#This Row],[25th]]","v":217825},233300,{"$f":"(((AAMC_Raw_Data_for_FY22[[#This Row],[75th]]-AAMC_Raw_Data_for_FY22[[#This Row],[Median]])/25)*5) + AAMC_Raw_Data_for_FY22[[#This Row],[Median]]","v":235727.4},{"$f":"(((AAMC_Raw_Data_for_FY22[[#This Row],[75th]]-AAMC_Raw_Data_for_FY22[[#This Row],[Median]])/25)*10) + AAMC_Raw_Data_for_FY22[[#This Row],[Median]]","v":238154.8},{"$f":"(((AAMC_Raw_Data_for_FY22[[#This Row],[75th]]-AAMC_Raw_Data_for_FY22[[#This Row],[Median]])/25)*15) + AAMC_Raw_Data_for_FY22[[#This Row],[Median]]","v":240582.2},{"$f":"(((AAMC_Raw_Data_for_FY22[[#This Row],[75th]]-AAMC_Raw_Data_for_FY22[[#This Row],[Median]])/25)*20) + AAMC_Raw_Data_for_FY22[[#This Row],[Median]]","v":243009.6},245437,{"$f":"(((AAMC_Raw_Data_for_FY22[[#This Row],[75th]]-AAMC_Raw_Data_for_FY22[[#This Row],[Median]])/25)*30) + AAMC_Raw_Data_for_FY22[[#This Row],[Median]]","v":247864.4},{"$f":"(((AAMC_Raw_Data_for_FY22[[#This Row],[75th]]-AAMC_Raw_Data_for_FY22[[#This Row],[Median]])/25)*35) + AAMC_Raw_Data_for_FY22[[#This Row],[Median]]","v":250291.8},{"$f":"(((AAMC_Raw_Data_for_FY22[[#This Row],[75th]]-AAMC_Raw_Data_for_FY22[[#This Row],[Median]])/25)*40) + AAMC_Raw_Data_for_FY22[[#This Row],[Median]]","v":252719.2}]
[{"$f":"AAMC_Raw_Data_for_FY22[[#This Row],[Source]]&AAMC_Raw_Data_for_FY22[[#This Row],[Type]]&AAMC_Raw_Data_for_FY22[[#This Row],[School Subset]]&AAMC_Raw_Data_for_FY22[[#This Row],[Rank]]&AAMC_Raw_Data_for_FY22[[#This Row],[Degree]]&AAMC_Raw_Data_for_FY22[[#This Row],[Department / Specialty]]&\"L\"","v":"AAMCAcademicPrivateProfessorPhDGeneral SurgeryL"},"General Surgery",2,"AAMC","Academic","Private","Professor","PhD","2021-2022",207285,{"$f":"(((AAMC_Raw_Data_for_FY22[[#This Row],[Median]]-AAMC_Raw_Data_for_FY22[[#This Row],[25th]])/25)*5) + AAMC_Raw_Data_for_FY22[[#This Row],[25th]]","v":209953.2},{"$f":"(((AAMC_Raw_Data_for_FY22[[#This Row],[Median]]-AAMC_Raw_Data_for_FY22[[#This Row],[25th]])/25)*10) + AAMC_Raw_Data_for_FY22[[#This Row],[25th]]","v":212621.4},{"$f":"(((AAMC_Raw_Data_for_FY22[[#This Row],[Median]]-AAMC_Raw_Data_for_FY22[[#This Row],[25th]])/25)*15) + AAMC_Raw_Data_for_FY22[[#This Row],[25th]]","v":215289.60000000001},{"$f":"(((AAMC_Raw_Data_for_FY22[[#This Row],[Median]]-AAMC_Raw_Data_for_FY22[[#This Row],[25th]])/25)*20) + AAMC_Raw_Data_for_FY22[[#This Row],[25th]]","v":217957.8},220626,{"$f":"(((AAMC_Raw_Data_for_FY22[[#This Row],[75th]]-AAMC_Raw_Data_for_FY22[[#This Row],[Median]])/25)*5) + AAMC_Raw_Data_for_FY22[[#This Row],[Median]]","v":231112.8},{"$f":"(((AAMC_Raw_Data_for_FY22[[#This Row],[75th]]-AAMC_Raw_Data_for_FY22[[#This Row],[Median]])/25)*10) + AAMC_Raw_Data_for_FY22[[#This Row],[Median]]","v":241599.6},{"$f":"(((AAMC_Raw_Data_for_FY22[[#This Row],[75th]]-AAMC_Raw_Data_for_FY22[[#This Row],[Median]])/25)*15) + AAMC_Raw_Data_for_FY22[[#This Row],[Median]]","v":252086.39999999999},{"$f":"(((AAMC_Raw_Data_for_FY22[[#This Row],[75th]]-AAMC_Raw_Data_for_FY22[[#This Row],[Median]])/25)*20) + AAMC_Raw_Data_for_FY22[[#This Row],[Median]]","v":262573.2},273060,{"$f":"(((AAMC_Raw_Data_for_FY22[[#This Row],[75th]]-AAMC_Raw_Data_for_FY22[[#This Row],[Median]])/25)*30) + AAMC_Raw_Data_for_FY22[[#This Row],[Median]]","v":283546.8},{"$f":"(((AAMC_Raw_Data_for_FY22[[#This Row],[75th]]-AAMC_Raw_Data_for_FY22[[#This Row],[Median]])/25)*35) + AAMC_Raw_Data_for_FY22[[#This Row],[Median]]","v":294033.59999999998},{"$f":"(((AAMC_Raw_Data_for_FY22[[#This Row],[75th]]-AAMC_Raw_Data_for_FY22[[#This Row],[Median]])/25)*40) + AAMC_Raw_Data_for_FY22[[#This Row],[Median]]","v":304520.40000000002}]
[{"$f":"AAMC_Raw_Data_for_FY22[[#This Row],[Source]]&AAMC_Raw_Data_for_FY22[[#This Row],[Type]]&AAMC_Raw_Data_for_FY22[[#This Row],[School Subset]]&AAMC_Raw_Data_for_FY22[[#This Row],[Rank]]&AAMC_Raw_Data_for_FY22[[#This Row],[Degree]]&AAMC_Raw_Data_for_FY22[[#This Row],[Department / Specialty]]&\"L\"","v":"AAMCAcademicPrivateInstructorPhDNeurosurgeryL"},"Neurosurgery",5,"AAMC","Academic","Private","Instructor","PhD","2021-2022",73482,{"$f":"(((AAMC_Raw_Data_for_FY22[[#This Row],[Median]]-AAMC_Raw_Data_for_FY22[[#This Row],[25th]])/25)*5) + AAMC_Raw_Data_for_FY22[[#This Row],[25th]]","v":75785.600000000006},{"$f":"(((AAMC_Raw_Data_for_FY22[[#This Row],[Median]]-AAMC_Raw_Data_for_FY22[[#This Row],[25th]])/25)*10) + AAMC_Raw_Data_for_FY22[[#This Row],[25th]]","v":78089.2},{"$f":"(((AAMC_Raw_Data_for_FY22[[#This Row],[Median]]-AAMC_Raw_Data_for_FY22[[#This Row],[25th]])/25)*15) + AAMC_Raw_Data_for_FY22[[#This Row],[25th]]","v":80392.800000000003},{"$f":"(((AAMC_Raw_Data_for_FY22[[#This Row],[Median]]-AAMC_Raw_Data_for_FY22[[#This Row],[25th]])/25)*20) + AAMC_Raw_Data_for_FY22[[#This Row],[25th]]","v":82696.399999999994},85000,{"$f":"(((AAMC_Raw_Data_for_FY22[[#This Row],[75th]]-AAMC_Raw_Data_for_FY22[[#This Row],[Median]])/25)*5) + AAMC_Raw_Data_for_FY22[[#This Row],[Median]]","v":90519.8},{"$f":"(((AAMC_Raw_Data_for_FY22[[#This Row],[75th]]-AAMC_Raw_Data_for_FY22[[#This Row],[Median]])/25)*10) + AAMC_Raw_Data_for_FY22[[#This Row],[Median]]","v":96039.6},{"$f":"(((AAMC_Raw_Data_for_FY22[[#This Row],[75th]]-AAMC_Raw_Data_for_FY22[[#This Row],[Median]])/25)*15) + AAMC_Raw_Data_for_FY22[[#This Row],[Median]]","v":101559.4},{"$f":"(((AAMC_Raw_Data_for_FY22[[#This Row],[75th]]-AAMC_Raw_Data_for_FY22[[#This Row],[Median]])/25)*20) + AAMC_Raw_Data_for_FY22[[#This Row],[Median]]","v":107079.2},112599,{"$f":"(((AAMC_Raw_Data_for_FY22[[#This Row],[75th]]-AAMC_Raw_Data_for_FY22[[#This Row],[Median]])/25)*30) + AAMC_Raw_Data_for_FY22[[#This Row],[Median]]","v":118118.8},{"$f":"(((AAMC_Raw_Data_for_FY22[[#This Row],[75th]]-AAMC_Raw_Data_for_FY22[[#This Row],[Median]])/25)*35) + AAMC_Raw_Data_for_FY22[[#This Row],[Median]]","v":123638.6},{"$f":"(((AAMC_Raw_Data_for_FY22[[#This Row],[75th]]-AAMC_Raw_Data_for_FY22[[#This Row],[Median]])/25)*40) + AAMC_Raw_Data_for_FY22[[#This Row],[Median]]","v":129158.39999999999}]
[{"$f":"AAMC_Raw_Data_for_FY22[[#This Row],[Source]]&AAMC_Raw_Data_for_FY22[[#This Row],[Type]]&AAMC_Raw_Data_for_FY22[[#This Row],[School Subset]]&AAMC_Raw_Data_for_FY22[[#This Row],[Rank]]&AAMC_Raw_Data_for_FY22[[#This Row],[Degree]]&AAMC_Raw_Data_for_FY22[[#This Row],[Department / Specialty]]&\"L\"","v":"AAMCAcademicPrivateAssistantPhDNeurosurgeryL"},"Neurosurgery",4,"AAMC","Academic","Private","Assistant","PhD","2021-2022",101884,{"$f":"(((AAMC_Raw_Data_for_FY22[[#This Row],[Median]]-AAMC_Raw_Data_for_FY22[[#This Row],[25th]])/25)*5) + AAMC_Raw_Data_for_FY22[[#This Row],[25th]]","v":105657.2},{"$f":"(((AAMC_Raw_Data_for_FY22[[#This Row],[Median]]-AAMC_Raw_Data_for_FY22[[#This Row],[25th]])/25)*10) + AAMC_Raw_Data_for_FY22[[#This Row],[25th]]","v":109430.39999999999},{"$f":"(((AAMC_Raw_Data_for_FY22[[#This Row],[Median]]-AAMC_Raw_Data_for_FY22[[#This Row],[25th]])/25)*15) + AAMC_Raw_Data_for_FY22[[#This Row],[25th]]","v":113203.6},{"$f":"(((AAMC_Raw_Data_for_FY22[[#This Row],[Median]]-AAMC_Raw_Data_for_FY22[[#This Row],[25th]])/25)*20) + AAMC_Raw_Data_for_FY22[[#This Row],[25th]]","v":116976.8},120750,{"$f":"(((AAMC_Raw_Data_for_FY22[[#This Row],[75th]]-AAMC_Raw_Data_for_FY22[[#This Row],[Median]])/25)*5) + AAMC_Raw_Data_for_FY22[[#This Row],[Median]]","v":122662.6},{"$f":"(((AAMC_Raw_Data_for_FY22[[#This Row],[75th]]-AAMC_Raw_Data_for_FY22[[#This Row],[Median]])/25)*10) + AAMC_Raw_Data_for_FY22[[#This Row],[Median]]","v":124575.2},{"$f":"(((AAMC_Raw_Data_for_FY22[[#This Row],[75th]]-AAMC_Raw_Data_for_FY22[[#This Row],[Median]])/25)*15) + AAMC_Raw_Data_for_FY22[[#This Row],[Median]]","v":126487.8},{"$f":"(((AAMC_Raw_Data_for_FY22[[#This Row],[75th]]-AAMC_Raw_Data_for_FY22[[#This Row],[Median]])/25)*20) + AAMC_Raw_Data_for_FY22[[#This Row],[Median]]","v":128400.4},130313,{"$f":"(((AAMC_Raw_Data_for_FY22[[#This Row],[75th]]-AAMC_Raw_Data_for_FY22[[#This Row],[Median]])/25)*30) + AAMC_Raw_Data_for_FY22[[#This Row],[Median]]","v":132225.60000000001},{"$f":"(((AAMC_Raw_Data_for_FY22[[#This Row],[75th]]-AAMC_Raw_Data_for_FY22[[#This Row],[Median]])/25)*35) + AAMC_Raw_Data_for_FY22[[#This Row],[Median]]","v":134138.20000000001},{"$f":"(((AAMC_Raw_Data_for_FY22[[#This Row],[75th]]-AAMC_Raw_Data_for_FY22[[#This Row],[Median]])/25)*40) + AAMC_Raw_Data_for_FY22[[#This Row],[Median]]","v":136050.79999999999}]
[{"$f":"AAMC_Raw_Data_for_FY22[[#This Row],[Source]]&AAMC_Raw_Data_for_FY22[[#This Row],[Type]]&AAMC_Raw_Data_for_FY22[[#This Row],[School Subset]]&AAMC_Raw_Data_for_FY22[[#This Row],[Rank]]&AAMC_Raw_Data_for_FY22[[#This Row],[Degree]]&AAMC_Raw_Data_for_FY22[[#This Row],[Department / Specialty]]&\"L\"","v":"AAMCAcademicPrivateAssociatePhDNeurosurgeryL"},"Neurosurgery",3,"AAMC","Academic","Private","Associate","PhD","2021-2022",138627,{"$f":"(((AAMC_Raw_Data_for_FY22[[#This Row],[Median]]-AAMC_Raw_Data_for_FY22[[#This Row],[25th]])/25)*5) + AAMC_Raw_Data_for_FY22[[#This Row],[25th]]","v":145901.6},{"$f":"(((AAMC_Raw_Data_for_FY22[[#This Row],[Median]]-AAMC_Raw_Data_for_FY22[[#This Row],[25th]])/25)*10) + AAMC_Raw_Data_for_FY22[[#This Row],[25th]]","v":153176.20000000001},{"$f":"(((AAMC_Raw_Data_for_FY22[[#This Row],[Median]]-AAMC_Raw_Data_for_FY22[[#This Row],[25th]])/25)*15) + AAMC_Raw_Data_for_FY22[[#This Row],[25th]]","v":160450.79999999999},{"$f":"(((AAMC_Raw_Data_for_FY22[[#This Row],[Median]]-AAMC_Raw_Data_for_FY22[[#This Row],[25th]])/25)*20) + AAMC_Raw_Data_for_FY22[[#This Row],[25th]]","v":167725.4},175000,{"$f":"(((AAMC_Raw_Data_for_FY22[[#This Row],[75th]]-AAMC_Raw_Data_for_FY22[[#This Row],[Median]])/25)*5) + AAMC_Raw_Data_for_FY22[[#This Row],[Median]]","v":179283},{"$f":"(((AAMC_Raw_Data_for_FY22[[#This Row],[75th]]-AAMC_Raw_Data_for_FY22[[#This Row],[Median]])/25)*10) + AAMC_Raw_Data_for_FY22[[#This Row],[Median]]","v":183566},{"$f":"(((AAMC_Raw_Data_for_FY22[[#This Row],[75th]]-AAMC_Raw_Data_for_FY22[[#This Row],[Median]])/25)*15) + AAMC_Raw_Data_for_FY22[[#This Row],[Median]]","v":187849},{"$f":"(((AAMC_Raw_Data_for_FY22[[#This Row],[75th]]-AAMC_Raw_Data_for_FY22[[#This Row],[Median]])/25)*20) + AAMC_Raw_Data_for_FY22[[#This Row],[Median]]","v":192132},196415,{"$f":"(((AAMC_Raw_Data_for_FY22[[#This Row],[75th]]-AAMC_Raw_Data_for_FY22[[#This Row],[Median]])/25)*30) + AAMC_Raw_Data_for_FY22[[#This Row],[Median]]","v":200698},{"$f":"(((AAMC_Raw_Data_for_FY22[[#This Row],[75th]]-AAMC_Raw_Data_for_FY22[[#This Row],[Median]])/25)*35) + AAMC_Raw_Data_for_FY22[[#This Row],[Median]]","v":204981},{"$f":"(((AAMC_Raw_Data_for_FY22[[#This Row],[75th]]-AAMC_Raw_Data_for_FY22[[#This Row],[Median]])/25)*40) + AAMC_Raw_Data_for_FY22[[#This Row],[Median]]","v":209264}]
[{"$f":"AAMC_Raw_Data_for_FY22[[#This Row],[Source]]&AAMC_Raw_Data_for_FY22[[#This Row],[Type]]&AAMC_Raw_Data_for_FY22[[#This Row],[School Subset]]&AAMC_Raw_Data_for_FY22[[#This Row],[Rank]]&AAMC_Raw_Data_for_FY22[[#This Row],[Degree]]&AAMC_Raw_Data_for_FY22[[#This Row],[Department / Specialty]]&\"L\"","v":"AAMCAcademicPrivateProfessorPhDNeurosurgeryL"},"Neurosurgery",2,"AAMC","Academic","Private","Professor","PhD","2021-2022",231660,{"$f":"(((AAMC_Raw_Data_for_FY22[[#This Row],[Median]]-AAMC_Raw_Data_for_FY22[[#This Row],[25th]])/25)*5) + AAMC_Raw_Data_for_FY22[[#This Row],[25th]]","v":239495.6},{"$f":"(((AAMC_Raw_Data_for_FY22[[#This Row],[Median]]-AAMC_Raw_Data_for_FY22[[#This Row],[25th]])/25)*10) + AAMC_Raw_Data_for_FY22[[#This Row],[25th]]","v":247331.20000000001},{"$f":"(((AAMC_Raw_Data_for_FY22[[#This Row],[Median]]-AAMC_Raw_Data_for_FY22[[#This Row],[25th]])/25)*15) + AAMC_Raw_Data_for_FY22[[#This Row],[25th]]","v":255166.8},{"$f":"(((AAMC_Raw_Data_for_FY22[[#This Row],[Median]]-AAMC_Raw_Data_for_FY22[[#This Row],[25th]])/25)*20) + AAMC_Raw_Data_for_FY22[[#This Row],[25th]]","v":263002.40000000002},270838,{"$f":"(((AAMC_Raw_Data_for_FY22[[#This Row],[75th]]-AAMC_Raw_Data_for_FY22[[#This Row],[Median]])/25)*5) + AAMC_Raw_Data_for_FY22[[#This Row],[Median]]","v":279970.40000000002},{"$f":"(((AAMC_Raw_Data_for_FY22[[#This Row],[75th]]-AAMC_Raw_Data_for_FY22[[#This Row],[Median]])/25)*10) + AAMC_Raw_Data_for_FY22[[#This Row],[Median]]","v":289102.8},{"$f":"(((AAMC_Raw_Data_for_FY22[[#This Row],[75th]]-AAMC_Raw_Data_for_FY22[[#This Row],[Median]])/25)*15) + AAMC_Raw_Data_for_FY22[[#This Row],[Median]]","v":298235.2},{"$f":"(((AAMC_Raw_Data_for_FY22[[#This Row],[75th]]-AAMC_Raw_Data_for_FY22[[#This Row],[Median]])/25)*20) + AAMC_Raw_Data_for_FY22[[#This Row],[Median]]","v":307367.59999999998},316500,{"$f":"(((AAMC_Raw_Data_for_FY22[[#This Row],[75th]]-AAMC_Raw_Data_for_FY22[[#This Row],[Median]])/25)*30) + AAMC_Raw_Data_for_FY22[[#This Row],[Median]]","v":325632.40000000002},{"$f":"(((AAMC_Raw_Data_for_FY22[[#This Row],[75th]]-AAMC_Raw_Data_for_FY22[[#This Row],[Median]])/25)*35) + AAMC_Raw_Data_for_FY22[[#This Row],[Median]]","v":334764.79999999999},{"$f":"(((AAMC_Raw_Data_for_FY22[[#This Row],[75th]]-AAMC_Raw_Data_for_FY22[[#This Row],[Median]])/25)*40) + AAMC_Raw_Data_for_FY22[[#This Row],[Median]]","v":343897.2}]
[{"$f":"AAMC_Raw_Data_for_FY22[[#This Row],[Source]]&AAMC_Raw_Data_for_FY22[[#This Row],[Type]]&AAMC_Raw_Data_for_FY22[[#This Row],[School Subset]]&AAMC_Raw_Data_for_FY22[[#This Row],[Rank]]&AAMC_Raw_Data_for_FY22[[#This Row],[Degree]]&AAMC_Raw_Data_for_FY22[[#This Row],[Department / Specialty]]&\"L\"","v":"AAMCAcademicPrivateChiefPhDNeurosurgeryL"},"Neurosurgery",6,"AAMC","Academic","Private","Chief","PhD","2021-2022",null,{"$f":"(((AAMC_Raw_Data_for_FY22[[#This Row],[Median]]-AAMC_Raw_Data_for_FY22[[#This Row],[25th]])/25)*5) + AAMC_Raw_Data_for_FY22[[#This Row],[25th]]","v":0},{"$f":"(((AAMC_Raw_Data_for_FY22[[#This Row],[Median]]-AAMC_Raw_Data_for_FY22[[#This Row],[25th]])/25)*10) + AAMC_Raw_Data_for_FY22[[#This Row],[25th]]","v":0},{"$f":"(((AAMC_Raw_Data_for_FY22[[#This Row],[Median]]-AAMC_Raw_Data_for_FY22[[#This Row],[25th]])/25)*15) + AAMC_Raw_Data_for_FY22[[#This Row],[25th]]","v":0},{"$f":"(((AAMC_Raw_Data_for_FY22[[#This Row],[Median]]-AAMC_Raw_Data_for_FY22[[#This Row],[25th]])/25)*20) + AAMC_Raw_Data_for_FY22[[#This Row],[25th]]","v":0},null,{"$f":"(((AAMC_Raw_Data_for_FY22[[#This Row],[75th]]-AAMC_Raw_Data_for_FY22[[#This Row],[Median]])/25)*5) + AAMC_Raw_Data_for_FY22[[#This Row],[Median]]","v":0},{"$f":"(((AAMC_Raw_Data_for_FY22[[#This Row],[75th]]-AAMC_Raw_Data_for_FY22[[#This Row],[Median]])/25)*10) + AAMC_Raw_Data_for_FY22[[#This Row],[Median]]","v":0},{"$f":"(((AAMC_Raw_Data_for_FY22[[#This Row],[75th]]-AAMC_Raw_Data_for_FY22[[#This Row],[Median]])/25)*15) + AAMC_Raw_Data_for_FY22[[#This Row],[Median]]","v":0},{"$f":"(((AAMC_Raw_Data_for_FY22[[#This Row],[75th]]-AAMC_Raw_Data_for_FY22[[#This Row],[Median]])/25)*20) + AAMC_Raw_Data_for_FY22[[#This Row],[Median]]","v":0},null,{"$f":"(((AAMC_Raw_Data_for_FY22[[#This Row],[75th]]-AAMC_Raw_Data_for_FY22[[#This Row],[Median]])/25)*30) + AAMC_Raw_Data_for_FY22[[#This Row],[Median]]","v":0},{"$f":"(((AAMC_Raw_Data_for_FY22[[#This Row],[75th]]-AAMC_Raw_Data_for_FY22[[#This Row],[Median]])/25)*35) + AAMC_Raw_Data_for_FY22[[#This Row],[Median]]","v":0},{"$f":"(((AAMC_Raw_Data_for_FY22[[#This Row],[75th]]-AAMC_Raw_Data_for_FY22[[#This Row],[Median]])/25)*40) + AAMC_Raw_Data_for_FY22[[#This Row],[Median]]","v":0}]
[{"$f":"AAMC_Raw_Data_for_FY22[[#This Row],[Source]]&AAMC_Raw_Data_for_FY22[[#This Row],[Type]]&AAMC_Raw_Data_for_FY22[[#This Row],[School Subset]]&AAMC_Raw_Data_for_FY22[[#This Row],[Rank]]&AAMC_Raw_Data_for_FY22[[#This Row],[Degree]]&AAMC_Raw_Data_for_FY22[[#This Row],[Department / Specialty]]&\"L\"","v":"AAMCAcademicPrivateInstructorPhDOrthopedic Surgery TotalL"},"Orthopedic Surgery Total",5,"AAMC","Academic","Private","Instructor","PhD","2021-2022",66673,{"$f":"(((AAMC_Raw_Data_for_FY22[[#This Row],[Median]]-AAMC_Raw_Data_for_FY22[[#This Row],[25th]])/25)*5) + AAMC_Raw_Data_for_FY22[[#This Row],[25th]]","v":66938.399999999994},{"$f":"(((AAMC_Raw_Data_for_FY22[[#This Row],[Median]]-AAMC_Raw_Data_for_FY22[[#This Row],[25th]])/25)*10) + AAMC_Raw_Data_for_FY22[[#This Row],[25th]]","v":67203.8},{"$f":"(((AAMC_Raw_Data_for_FY22[[#This Row],[Median]]-AAMC_Raw_Data_for_FY22[[#This Row],[25th]])/25)*15) + AAMC_Raw_Data_for_FY22[[#This Row],[25th]]","v":67469.2},{"$f":"(((AAMC_Raw_Data_for_FY22[[#This Row],[Median]]-AAMC_Raw_Data_for_FY22[[#This Row],[25th]])/25)*20) + AAMC_Raw_Data_for_FY22[[#This Row],[25th]]","v":67734.600000000006},68000,{"$f":"(((AAMC_Raw_Data_for_FY22[[#This Row],[75th]]-AAMC_Raw_Data_for_FY22[[#This Row],[Median]])/25)*5) + AAMC_Raw_Data_for_FY22[[#This Row],[Median]]","v":69664},{"$f":"(((AAMC_Raw_Data_for_FY22[[#This Row],[75th]]-AAMC_Raw_Data_for_FY22[[#This Row],[Median]])/25)*10) + AAMC_Raw_Data_for_FY22[[#This Row],[Median]]","v":71328},{"$f":"(((AAMC_Raw_Data_for_FY22[[#This Row],[75th]]-AAMC_Raw_Data_for_FY22[[#This Row],[Median]])/25)*15) + AAMC_Raw_Data_for_FY22[[#This Row],[Median]]","v":72992},{"$f":"(((AAMC_Raw_Data_for_FY22[[#This Row],[75th]]-AAMC_Raw_Data_for_FY22[[#This Row],[Median]])/25)*20) + AAMC_Raw_Data_for_FY22[[#This Row],[Median]]","v":74656},76320,{"$f":"(((AAMC_Raw_Data_for_FY22[[#This Row],[75th]]-AAMC_Raw_Data_for_FY22[[#This Row],[Median]])/25)*30) + AAMC_Raw_Data_for_FY22[[#This Row],[Median]]","v":77984},{"$f":"(((AAMC_Raw_Data_for_FY22[[#This Row],[75th]]-AAMC_Raw_Data_for_FY22[[#This Row],[Median]])/25)*35) + AAMC_Raw_Data_for_FY22[[#This Row],[Median]]","v":79648},{"$f":"(((AAMC_Raw_Data_for_FY22[[#This Row],[75th]]-AAMC_Raw_Data_for_FY22[[#This Row],[Median]])/25)*40) + AAMC_Raw_Data_for_FY22[[#This Row],[Median]]","v":81312}]
[{"$f":"AAMC_Raw_Data_for_FY22[[#This Row],[Source]]&AAMC_Raw_Data_for_FY22[[#This Row],[Type]]&AAMC_Raw_Data_for_FY22[[#This Row],[School Subset]]&AAMC_Raw_Data_for_FY22[[#This Row],[Rank]]&AAMC_Raw_Data_for_FY22[[#This Row],[Degree]]&AAMC_Raw_Data_for_FY22[[#This Row],[Department / Specialty]]&\"L\"","v":"AAMCAcademicPrivateAssistantPhDOrthopedic Surgery TotalL"},"Orthopedic Surgery Total",4,"AAMC","Academic","Private","Assistant","PhD","2021-2022",91315,{"$f":"(((AAMC_Raw_Data_for_FY22[[#This Row],[Median]]-AAMC_Raw_Data_for_FY22[[#This Row],[25th]])/25)*5) + AAMC_Raw_Data_for_FY22[[#This Row],[25th]]","v":96452},{"$f":"(((AAMC_Raw_Data_for_FY22[[#This Row],[Median]]-AAMC_Raw_Data_for_FY22[[#This Row],[25th]])/25)*10) + AAMC_Raw_Data_for_FY22[[#This Row],[25th]]","v":101589},{"$f":"(((AAMC_Raw_Data_for_FY22[[#This Row],[Median]]-AAMC_Raw_Data_for_FY22[[#This Row],[25th]])/25)*15) + AAMC_Raw_Data_for_FY22[[#This Row],[25th]]","v":106726},{"$f":"(((AAMC_Raw_Data_for_FY22[[#This Row],[Median]]-AAMC_Raw_Data_for_FY22[[#This Row],[25th]])/25)*20) + AAMC_Raw_Data_for_FY22[[#This Row],[25th]]","v":111863},117000,{"$f":"(((AAMC_Raw_Data_for_FY22[[#This Row],[75th]]-AAMC_Raw_Data_for_FY22[[#This Row],[Median]])/25)*5) + AAMC_Raw_Data_for_FY22[[#This Row],[Median]]","v":127342.6},{"$f":"(((AAMC_Raw_Data_for_FY22[[#This Row],[75th]]-AAMC_Raw_Data_for_FY22[[#This Row],[Median]])/25)*10) + AAMC_Raw_Data_for_FY22[[#This Row],[Median]]","v":137685.20000000001},{"$f":"(((AAMC_Raw_Data_for_FY22[[#This Row],[75th]]-AAMC_Raw_Data_for_FY22[[#This Row],[Median]])/25)*15) + AAMC_Raw_Data_for_FY22[[#This Row],[Median]]","v":148027.79999999999},{"$f":"(((AAMC_Raw_Data_for_FY22[[#This Row],[75th]]-AAMC_Raw_Data_for_FY22[[#This Row],[Median]])/25)*20) + AAMC_Raw_Data_for_FY22[[#This Row],[Median]]","v":158370.4},168713,{"$f":"(((AAMC_Raw_Data_for_FY22[[#This Row],[75th]]-AAMC_Raw_Data_for_FY22[[#This Row],[Median]])/25)*30) + AAMC_Raw_Data_for_FY22[[#This Row],[Median]]","v":179055.6},{"$f":"(((AAMC_Raw_Data_for_FY22[[#This Row],[75th]]-AAMC_Raw_Data_for_FY22[[#This Row],[Median]])/25)*35) + AAMC_Raw_Data_for_FY22[[#This Row],[Median]]","v":189398.2},{"$f":"(((AAMC_Raw_Data_for_FY22[[#This Row],[75th]]-AAMC_Raw_Data_for_FY22[[#This Row],[Median]])/25)*40) + AAMC_Raw_Data_for_FY22[[#This Row],[Median]]","v":199740.79999999999}]
[{"$f":"AAMC_Raw_Data_for_FY22[[#This Row],[Source]]&AAMC_Raw_Data_for_FY22[[#This Row],[Type]]&AAMC_Raw_Data_for_FY22[[#This Row],[School Subset]]&AAMC_Raw_Data_for_FY22[[#This Row],[Rank]]&AAMC_Raw_Data_for_FY22[[#This Row],[Degree]]&AAMC_Raw_Data_for_FY22[[#This Row],[Department / Specialty]]&\"L\"","v":"AAMCAcademicPrivateAssociatePhDOrthopedic Surgery TotalL"},"Orthopedic Surgery Total",3,"AAMC","Academic","Private","Associate","PhD","2021-2022",125369,{"$f":"(((AAMC_Raw_Data_for_FY22[[#This Row],[Median]]-AAMC_Raw_Data_for_FY22[[#This Row],[25th]])/25)*5) + AAMC_Raw_Data_for_FY22[[#This Row],[25th]]","v":130626},{"$f":"(((AAMC_Raw_Data_for_FY22[[#This Row],[Median]]-AAMC_Raw_Data_for_FY22[[#This Row],[25th]])/25)*10) + AAMC_Raw_Data_for_FY22[[#This Row],[25th]]","v":135883},{"$f":"(((AAMC_Raw_Data_for_FY22[[#This Row],[Median]]-AAMC_Raw_Data_for_FY22[[#This Row],[25th]])/25)*15) + AAMC_Raw_Data_for_FY22[[#This Row],[25th]]","v":141140},{"$f":"(((AAMC_Raw_Data_for_FY22[[#This Row],[Median]]-AAMC_Raw_Data_for_FY22[[#This Row],[25th]])/25)*20) + AAMC_Raw_Data_for_FY22[[#This Row],[25th]]","v":146397},151654,{"$f":"(((AAMC_Raw_Data_for_FY22[[#This Row],[75th]]-AAMC_Raw_Data_for_FY22[[#This Row],[Median]])/25)*5) + AAMC_Raw_Data_for_FY22[[#This Row],[Median]]","v":157327},{"$f":"(((AAMC_Raw_Data_for_FY22[[#This Row],[75th]]-AAMC_Raw_Data_for_FY22[[#This Row],[Median]])/25)*10) + AAMC_Raw_Data_for_FY22[[#This Row],[Median]]","v":163000},{"$f":"(((AAMC_Raw_Data_for_FY22[[#This Row],[75th]]-AAMC_Raw_Data_for_FY22[[#This Row],[Median]])/25)*15) + AAMC_Raw_Data_for_FY22[[#This Row],[Median]]","v":168673},{"$f":"(((AAMC_Raw_Data_for_FY22[[#This Row],[75th]]-AAMC_Raw_Data_for_FY22[[#This Row],[Median]])/25)*20) + AAMC_Raw_Data_for_FY22[[#This Row],[Median]]","v":174346},180019,{"$f":"(((AAMC_Raw_Data_for_FY22[[#This Row],[75th]]-AAMC_Raw_Data_for_FY22[[#This Row],[Median]])/25)*30) + AAMC_Raw_Data_for_FY22[[#This Row],[Median]]","v":185692},{"$f":"(((AAMC_Raw_Data_for_FY22[[#This Row],[75th]]-AAMC_Raw_Data_for_FY22[[#This Row],[Median]])/25)*35) + AAMC_Raw_Data_for_FY22[[#This Row],[Median]]","v":191365},{"$f":"(((AAMC_Raw_Data_for_FY22[[#This Row],[75th]]-AAMC_Raw_Data_for_FY22[[#This Row],[Median]])/25)*40) + AAMC_Raw_Data_for_FY22[[#This Row],[Median]]","v":197038}]
[{"$f":"AAMC_Raw_Data_for_FY22[[#This Row],[Source]]&AAMC_Raw_Data_for_FY22[[#This Row],[Type]]&AAMC_Raw_Data_for_FY22[[#This Row],[School Subset]]&AAMC_Raw_Data_for_FY22[[#This Row],[Rank]]&AAMC_Raw_Data_for_FY22[[#This Row],[Degree]]&AAMC_Raw_Data_for_FY22[[#This Row],[Department / Specialty]]&\"L\"","v":"AAMCAcademicPrivateProfessorPhDOrthopedic Surgery TotalL"},"Orthopedic Surgery Total",2,"AAMC","Academic","Private","Professor","PhD","2021-2022",203576,{"$f":"(((AAMC_Raw_Data_for_FY22[[#This Row],[Median]]-AAMC_Raw_Data_for_FY22[[#This Row],[25th]])/25)*5) + AAMC_Raw_Data_for_FY22[[#This Row],[25th]]","v":212560.4},{"$f":"(((AAMC_Raw_Data_for_FY22[[#This Row],[Median]]-AAMC_Raw_Data_for_FY22[[#This Row],[25th]])/25)*10) + AAMC_Raw_Data_for_FY22[[#This Row],[25th]]","v":221544.8},{"$f":"(((AAMC_Raw_Data_for_FY22[[#This Row],[Median]]-AAMC_Raw_Data_for_FY22[[#This Row],[25th]])/25)*15) + AAMC_Raw_Data_for_FY22[[#This Row],[25th]]","v":230529.2},{"$f":"(((AAMC_Raw_Data_for_FY22[[#This Row],[Median]]-AAMC_Raw_Data_for_FY22[[#This Row],[25th]])/25)*20) + AAMC_Raw_Data_for_FY22[[#This Row],[25th]]","v":239513.60000000001},248498,{"$f":"(((AAMC_Raw_Data_for_FY22[[#This Row],[75th]]-AAMC_Raw_Data_for_FY22[[#This Row],[Median]])/25)*5) + AAMC_Raw_Data_for_FY22[[#This Row],[Median]]","v":259252.4},{"$f":"(((AAMC_Raw_Data_for_FY22[[#This Row],[75th]]-AAMC_Raw_Data_for_FY22[[#This Row],[Median]])/25)*10) + AAMC_Raw_Data_for_FY22[[#This Row],[Median]]","v":270006.8},{"$f":"(((AAMC_Raw_Data_for_FY22[[#This Row],[75th]]-AAMC_Raw_Data_for_FY22[[#This Row],[Median]])/25)*15) + AAMC_Raw_Data_for_FY22[[#This Row],[Median]]","v":280761.2},{"$f":"(((AAMC_Raw_Data_for_FY22[[#This Row],[75th]]-AAMC_Raw_Data_for_FY22[[#This Row],[Median]])/25)*20) + AAMC_Raw_Data_for_FY22[[#This Row],[Median]]","v":291515.59999999998},302270,{"$f":"(((AAMC_Raw_Data_for_FY22[[#This Row],[75th]]-AAMC_Raw_Data_for_FY22[[#This Row],[Median]])/25)*30) + AAMC_Raw_Data_for_FY22[[#This Row],[Median]]","v":313024.40000000002},{"$f":"(((AAMC_Raw_Data_for_FY22[[#This Row],[75th]]-AAMC_Raw_Data_for_FY22[[#This Row],[Median]])/25)*35) + AAMC_Raw_Data_for_FY22[[#This Row],[Median]]","v":323778.8},{"$f":"(((AAMC_Raw_Data_for_FY22[[#This Row],[75th]]-AAMC_Raw_Data_for_FY22[[#This Row],[Median]])/25)*40) + AAMC_Raw_Data_for_FY22[[#This Row],[Median]]","v":334533.2}]
[{"$f":"AAMC_Raw_Data_for_FY22[[#This Row],[Source]]&AAMC_Raw_Data_for_FY22[[#This Row],[Type]]&AAMC_Raw_Data_for_FY22[[#This Row],[School Subset]]&AAMC_Raw_Data_for_FY22[[#This Row],[Rank]]&AAMC_Raw_Data_for_FY22[[#This Row],[Degree]]&AAMC_Raw_Data_for_FY22[[#This Row],[Department / Specialty]]&\"L\"","v":"AAMCAcademicPrivateChiefPhDOrthopedic Surgery TotalL"},"Orthopedic Surgery Total",6,"AAMC","Academic","Private","Chief","PhD","2021-2022",null,{"$f":"(((AAMC_Raw_Data_for_FY22[[#This Row],[Median]]-AAMC_Raw_Data_for_FY22[[#This Row],[25th]])/25)*5) + AAMC_Raw_Data_for_FY22[[#This Row],[25th]]","v":0},{"$f":"(((AAMC_Raw_Data_for_FY22[[#This Row],[Median]]-AAMC_Raw_Data_for_FY22[[#This Row],[25th]])/25)*10) + AAMC_Raw_Data_for_FY22[[#This Row],[25th]]","v":0},{"$f":"(((AAMC_Raw_Data_for_FY22[[#This Row],[Median]]-AAMC_Raw_Data_for_FY22[[#This Row],[25th]])/25)*15) + AAMC_Raw_Data_for_FY22[[#This Row],[25th]]","v":0},{"$f":"(((AAMC_Raw_Data_for_FY22[[#This Row],[Median]]-AAMC_Raw_Data_for_FY22[[#This Row],[25th]])/25)*20) + AAMC_Raw_Data_for_FY22[[#This Row],[25th]]","v":0},null,{"$f":"(((AAMC_Raw_Data_for_FY22[[#This Row],[75th]]-AAMC_Raw_Data_for_FY22[[#This Row],[Median]])/25)*5) + AAMC_Raw_Data_for_FY22[[#This Row],[Median]]","v":0},{"$f":"(((AAMC_Raw_Data_for_FY22[[#This Row],[75th]]-AAMC_Raw_Data_for_FY22[[#This Row],[Median]])/25)*10) + AAMC_Raw_Data_for_FY22[[#This Row],[Median]]","v":0},{"$f":"(((AAMC_Raw_Data_for_FY22[[#This Row],[75th]]-AAMC_Raw_Data_for_FY22[[#This Row],[Median]])/25)*15) + AAMC_Raw_Data_for_FY22[[#This Row],[Median]]","v":0},{"$f":"(((AAMC_Raw_Data_for_FY22[[#This Row],[75th]]-AAMC_Raw_Data_for_FY22[[#This Row],[Median]])/25)*20) + AAMC_Raw_Data_for_FY22[[#This Row],[Median]]","v":0},null,{"$f":"(((AAMC_Raw_Data_for_FY22[[#This Row],[75th]]-AAMC_Raw_Data_for_FY22[[#This Row],[Median]])/25)*30) + AAMC_Raw_Data_for_FY22[[#This Row],[Median]]","v":0},{"$f":"(((AAMC_Raw_Data_for_FY22[[#This Row],[75th]]-AAMC_Raw_Data_for_FY22[[#This Row],[Median]])/25)*35) + AAMC_Raw_Data_for_FY22[[#This Row],[Median]]","v":0},{"$f":"(((AAMC_Raw_Data_for_FY22[[#This Row],[75th]]-AAMC_Raw_Data_for_FY22[[#This Row],[Median]])/25)*40) + AAMC_Raw_Data_for_FY22[[#This Row],[Median]]","v":0}]
[{"$f":"AAMC_Raw_Data_for_FY22[[#This Row],[Source]]&AAMC_Raw_Data_for_FY22[[#This Row],[Type]]&AAMC_Raw_Data_for_FY22[[#This Row],[School Subset]]&AAMC_Raw_Data_for_FY22[[#This Row],[Rank]]&AAMC_Raw_Data_for_FY22[[#This Row],[Degree]]&AAMC_Raw_Data_for_FY22[[#This Row],[Department / Specialty]]&\"L\"","v":"AAMCAcademicPrivateInstructorPhDOrthopedic Surgery: GeneralL"},"Orthopedic Surgery: General",5,"AAMC","Academic","Private","Instructor","PhD","2021-2022",null,{"$f":"(((AAMC_Raw_Data_for_FY22[[#This Row],[Median]]-AAMC_Raw_Data_for_FY22[[#This Row],[25th]])/25)*5) + AAMC_Raw_Data_for_FY22[[#This Row],[25th]]","v":0},{"$f":"(((AAMC_Raw_Data_for_FY22[[#This Row],[Median]]-AAMC_Raw_Data_for_FY22[[#This Row],[25th]])/25)*10) + AAMC_Raw_Data_for_FY22[[#This Row],[25th]]","v":0},{"$f":"(((AAMC_Raw_Data_for_FY22[[#This Row],[Median]]-AAMC_Raw_Data_for_FY22[[#This Row],[25th]])/25)*15) + AAMC_Raw_Data_for_FY22[[#This Row],[25th]]","v":0},{"$f":"(((AAMC_Raw_Data_for_FY22[[#This Row],[Median]]-AAMC_Raw_Data_for_FY22[[#This Row],[25th]])/25)*20) + AAMC_Raw_Data_for_FY22[[#This Row],[25th]]","v":0},null,{"$f":"(((AAMC_Raw_Data_for_FY22[[#This Row],[75th]]-AAMC_Raw_Data_for_FY22[[#This Row],[Median]])/25)*5) + AAMC_Raw_Data_for_FY22[[#This Row],[Median]]","v":0},{"$f":"(((AAMC_Raw_Data_for_FY22[[#This Row],[75th]]-AAMC_Raw_Data_for_FY22[[#This Row],[Median]])/25)*10) + AAMC_Raw_Data_for_FY22[[#This Row],[Median]]","v":0},{"$f":"(((AAMC_Raw_Data_for_FY22[[#This Row],[75th]]-AAMC_Raw_Data_for_FY22[[#This Row],[Median]])/25)*15) + AAMC_Raw_Data_for_FY22[[#This Row],[Median]]","v":0},{"$f":"(((AAMC_Raw_Data_for_FY22[[#This Row],[75th]]-AAMC_Raw_Data_for_FY22[[#This Row],[Median]])/25)*20) + AAMC_Raw_Data_for_FY22[[#This Row],[Median]]","v":0},null,{"$f":"(((AAMC_Raw_Data_for_FY22[[#This Row],[75th]]-AAMC_Raw_Data_for_FY22[[#This Row],[Median]])/25)*30) + AAMC_Raw_Data_for_FY22[[#This Row],[Median]]","v":0},{"$f":"(((AAMC_Raw_Data_for_FY22[[#This Row],[75th]]-AAMC_Raw_Data_for_FY22[[#This Row],[Median]])/25)*35) + AAMC_Raw_Data_for_FY22[[#This Row],[Median]]","v":0},{"$f":"(((AAMC_Raw_Data_for_FY22[[#This Row],[75th]]-AAMC_Raw_Data_for_FY22[[#This Row],[Median]])/25)*40) + AAMC_Raw_Data_for_FY22[[#This Row],[Median]]","v":0}]
[{"$f":"AAMC_Raw_Data_for_FY22[[#This Row],[Source]]&AAMC_Raw_Data_for_FY22[[#This Row],[Type]]&AAMC_Raw_Data_for_FY22[[#This Row],[School Subset]]&AAMC_Raw_Data_for_FY22[[#This Row],[Rank]]&AAMC_Raw_Data_for_FY22[[#This Row],[Degree]]&AAMC_Raw_Data_for_FY22[[#This Row],[Department / Specialty]]&\"L\"","v":"AAMCAcademicPrivateAssistantPhDOrthopedic Surgery: GeneralL"},"Orthopedic Surgery: General",4,"AAMC","Academic","Private","Assistant","PhD","2021-2022",113320,{"$f":"(((AAMC_Raw_Data_for_FY22[[#This Row],[Median]]-AAMC_Raw_Data_for_FY22[[#This Row],[25th]])/25)*5) + AAMC_Raw_Data_for_FY22[[#This Row],[25th]]","v":118056},{"$f":"(((AAMC_Raw_Data_for_FY22[[#This Row],[Median]]-AAMC_Raw_Data_for_FY22[[#This Row],[25th]])/25)*10) + AAMC_Raw_Data_for_FY22[[#This Row],[25th]]","v":122792},{"$f":"(((AAMC_Raw_Data_for_FY22[[#This Row],[Median]]-AAMC_Raw_Data_for_FY22[[#This Row],[25th]])/25)*15) + AAMC_Raw_Data_for_FY22[[#This Row],[25th]]","v":127528},{"$f":"(((AAMC_Raw_Data_for_FY22[[#This Row],[Median]]-AAMC_Raw_Data_for_FY22[[#This Row],[25th]])/25)*20) + AAMC_Raw_Data_for_FY22[[#This Row],[25th]]","v":132264},137000,{"$f":"(((AAMC_Raw_Data_for_FY22[[#This Row],[75th]]-AAMC_Raw_Data_for_FY22[[#This Row],[Median]])/25)*5) + AAMC_Raw_Data_for_FY22[[#This Row],[Median]]","v":143952},{"$f":"(((AAMC_Raw_Data_for_FY22[[#This Row],[75th]]-AAMC_Raw_Data_for_FY22[[#This Row],[Median]])/25)*10) + AAMC_Raw_Data_for_FY22[[#This Row],[Median]]","v":150904},{"$f":"(((AAMC_Raw_Data_for_FY22[[#This Row],[75th]]-AAMC_Raw_Data_for_FY22[[#This Row],[Median]])/25)*15) + AAMC_Raw_Data_for_FY22[[#This Row],[Median]]","v":157856},{"$f":"(((AAMC_Raw_Data_for_FY22[[#This Row],[75th]]-AAMC_Raw_Data_for_FY22[[#This Row],[Median]])/25)*20) + AAMC_Raw_Data_for_FY22[[#This Row],[Median]]","v":164808},171760,{"$f":"(((AAMC_Raw_Data_for_FY22[[#This Row],[75th]]-AAMC_Raw_Data_for_FY22[[#This Row],[Median]])/25)*30) + AAMC_Raw_Data_for_FY22[[#This Row],[Median]]","v":178712},{"$f":"(((AAMC_Raw_Data_for_FY22[[#This Row],[75th]]-AAMC_Raw_Data_for_FY22[[#This Row],[Median]])/25)*35) + AAMC_Raw_Data_for_FY22[[#This Row],[Median]]","v":185664},{"$f":"(((AAMC_Raw_Data_for_FY22[[#This Row],[75th]]-AAMC_Raw_Data_for_FY22[[#This Row],[Median]])/25)*40) + AAMC_Raw_Data_for_FY22[[#This Row],[Median]]","v":192616}]
[{"$f":"AAMC_Raw_Data_for_FY22[[#This Row],[Source]]&AAMC_Raw_Data_for_FY22[[#This Row],[Type]]&AAMC_Raw_Data_for_FY22[[#This Row],[School Subset]]&AAMC_Raw_Data_for_FY22[[#This Row],[Rank]]&AAMC_Raw_Data_for_FY22[[#This Row],[Degree]]&AAMC_Raw_Data_for_FY22[[#This Row],[Department / Specialty]]&\"L\"","v":"AAMCAcademicPrivateAssociatePhDOrthopedic Surgery: GeneralL"},"Orthopedic Surgery: General",3,"AAMC","Academic","Private","Associate","PhD","2021-2022",124309,{"$f":"(((AAMC_Raw_Data_for_FY22[[#This Row],[Median]]-AAMC_Raw_Data_for_FY22[[#This Row],[25th]])/25)*5) + AAMC_Raw_Data_for_FY22[[#This Row],[25th]]","v":129645.4},{"$f":"(((AAMC_Raw_Data_for_FY22[[#This Row],[Median]]-AAMC_Raw_Data_for_FY22[[#This Row],[25th]])/25)*10) + AAMC_Raw_Data_for_FY22[[#This Row],[25th]]","v":134981.79999999999},{"$f":"(((AAMC_Raw_Data_for_FY22[[#This Row],[Median]]-AAMC_Raw_Data_for_FY22[[#This Row],[25th]])/25)*15) + AAMC_Raw_Data_for_FY22[[#This Row],[25th]]","v":140318.20000000001},{"$f":"(((AAMC_Raw_Data_for_FY22[[#This Row],[Median]]-AAMC_Raw_Data_for_FY22[[#This Row],[25th]])/25)*20) + AAMC_Raw_Data_for_FY22[[#This Row],[25th]]","v":145654.6},150991,{"$f":"(((AAMC_Raw_Data_for_FY22[[#This Row],[75th]]-AAMC_Raw_Data_for_FY22[[#This Row],[Median]])/25)*5) + AAMC_Raw_Data_for_FY22[[#This Row],[Median]]","v":155449},{"$f":"(((AAMC_Raw_Data_for_FY22[[#This Row],[75th]]-AAMC_Raw_Data_for_FY22[[#This Row],[Median]])/25)*10) + AAMC_Raw_Data_for_FY22[[#This Row],[Median]]","v":159907},{"$f":"(((AAMC_Raw_Data_for_FY22[[#This Row],[75th]]-AAMC_Raw_Data_for_FY22[[#This Row],[Median]])/25)*15) + AAMC_Raw_Data_for_FY22[[#This Row],[Median]]","v":164365},{"$f":"(((AAMC_Raw_Data_for_FY22[[#This Row],[75th]]-AAMC_Raw_Data_for_FY22[[#This Row],[Median]])/25)*20) + AAMC_Raw_Data_for_FY22[[#This Row],[Median]]","v":168823},173281,{"$f":"(((AAMC_Raw_Data_for_FY22[[#This Row],[75th]]-AAMC_Raw_Data_for_FY22[[#This Row],[Median]])/25)*30) + AAMC_Raw_Data_for_FY22[[#This Row],[Median]]","v":177739},{"$f":"(((AAMC_Raw_Data_for_FY22[[#This Row],[75th]]-AAMC_Raw_Data_for_FY22[[#This Row],[Median]])/25)*35) + AAMC_Raw_Data_for_FY22[[#This Row],[Median]]","v":182197},{"$f":"(((AAMC_Raw_Data_for_FY22[[#This Row],[75th]]-AAMC_Raw_Data_for_FY22[[#This Row],[Median]])/25)*40) + AAMC_Raw_Data_for_FY22[[#This Row],[Median]]","v":186655}]
[{"$f":"AAMC_Raw_Data_for_FY22[[#This Row],[Source]]&AAMC_Raw_Data_for_FY22[[#This Row],[Type]]&AAMC_Raw_Data_for_FY22[[#This Row],[School Subset]]&AAMC_Raw_Data_for_FY22[[#This Row],[Rank]]&AAMC_Raw_Data_for_FY22[[#This Row],[Degree]]&AAMC_Raw_Data_for_FY22[[#This Row],[Department / Specialty]]&\"L\"","v":"AAMCAcademicPrivateProfessorPhDOrthopedic Surgery: GeneralL"},"Orthopedic Surgery: General",2,"AAMC","Academic","Private","Professor","PhD","2021-2022",214017,{"$f":"(((AAMC_Raw_Data_for_FY22[[#This Row],[Median]]-AAMC_Raw_Data_for_FY22[[#This Row],[25th]])/25)*5) + AAMC_Raw_Data_for_FY22[[#This Row],[25th]]","v":219213.6},{"$f":"(((AAMC_Raw_Data_for_FY22[[#This Row],[Median]]-AAMC_Raw_Data_for_FY22[[#This Row],[25th]])/25)*10) + AAMC_Raw_Data_for_FY22[[#This Row],[25th]]","v":224410.2},{"$f":"(((AAMC_Raw_Data_for_FY22[[#This Row],[Median]]-AAMC_Raw_Data_for_FY22[[#This Row],[25th]])/25)*15) + AAMC_Raw_Data_for_FY22[[#This Row],[25th]]","v":229606.8},{"$f":"(((AAMC_Raw_Data_for_FY22[[#This Row],[Median]]-AAMC_Raw_Data_for_FY22[[#This Row],[25th]])/25)*20) + AAMC_Raw_Data_for_FY22[[#This Row],[25th]]","v":234803.4},240000,{"$f":"(((AAMC_Raw_Data_for_FY22[[#This Row],[75th]]-AAMC_Raw_Data_for_FY22[[#This Row],[Median]])/25)*5) + AAMC_Raw_Data_for_FY22[[#This Row],[Median]]","v":252018.2},{"$f":"(((AAMC_Raw_Data_for_FY22[[#This Row],[75th]]-AAMC_Raw_Data_for_FY22[[#This Row],[Median]])/25)*10) + AAMC_Raw_Data_for_FY22[[#This Row],[Median]]","v":264036.40000000002},{"$f":"(((AAMC_Raw_Data_for_FY22[[#This Row],[75th]]-AAMC_Raw_Data_for_FY22[[#This Row],[Median]])/25)*15) + AAMC_Raw_Data_for_FY22[[#This Row],[Median]]","v":276054.59999999998},{"$f":"(((AAMC_Raw_Data_for_FY22[[#This Row],[75th]]-AAMC_Raw_Data_for_FY22[[#This Row],[Median]])/25)*20) + AAMC_Raw_Data_for_FY22[[#This Row],[Median]]","v":288072.8},300091,{"$f":"(((AAMC_Raw_Data_for_FY22[[#This Row],[75th]]-AAMC_Raw_Data_for_FY22[[#This Row],[Median]])/25)*30) + AAMC_Raw_Data_for_FY22[[#This Row],[Median]]","v":312109.2},{"$f":"(((AAMC_Raw_Data_for_FY22[[#This Row],[75th]]-AAMC_Raw_Data_for_FY22[[#This Row],[Median]])/25)*35) + AAMC_Raw_Data_for_FY22[[#This Row],[Median]]","v":324127.40000000002},{"$f":"(((AAMC_Raw_Data_for_FY22[[#This Row],[75th]]-AAMC_Raw_Data_for_FY22[[#This Row],[Median]])/25)*40) + AAMC_Raw_Data_for_FY22[[#This Row],[Median]]","v":336145.6}]
[{"$f":"AAMC_Raw_Data_for_FY22[[#This Row],[Source]]&AAMC_Raw_Data_for_FY22[[#This Row],[Type]]&AAMC_Raw_Data_for_FY22[[#This Row],[School Subset]]&AAMC_Raw_Data_for_FY22[[#This Row],[Rank]]&AAMC_Raw_Data_for_FY22[[#This Row],[Degree]]&AAMC_Raw_Data_for_FY22[[#This Row],[Department / Specialty]]&\"L\"","v":"AAMCAcademicPrivateChiefPhDOrthopedic Surgery: GeneralL"},"Orthopedic Surgery: General",6,"AAMC","Academic","Private","Chief","PhD","2021-2022",null,{"$f":"(((AAMC_Raw_Data_for_FY22[[#This Row],[Median]]-AAMC_Raw_Data_for_FY22[[#This Row],[25th]])/25)*5) + AAMC_Raw_Data_for_FY22[[#This Row],[25th]]","v":0},{"$f":"(((AAMC_Raw_Data_for_FY22[[#This Row],[Median]]-AAMC_Raw_Data_for_FY22[[#This Row],[25th]])/25)*10) + AAMC_Raw_Data_for_FY22[[#This Row],[25th]]","v":0},{"$f":"(((AAMC_Raw_Data_for_FY22[[#This Row],[Median]]-AAMC_Raw_Data_for_FY22[[#This Row],[25th]])/25)*15) + AAMC_Raw_Data_for_FY22[[#This Row],[25th]]","v":0},{"$f":"(((AAMC_Raw_Data_for_FY22[[#This Row],[Median]]-AAMC_Raw_Data_for_FY22[[#This Row],[25th]])/25)*20) + AAMC_Raw_Data_for_FY22[[#This Row],[25th]]","v":0},null,{"$f":"(((AAMC_Raw_Data_for_FY22[[#This Row],[75th]]-AAMC_Raw_Data_for_FY22[[#This Row],[Median]])/25)*5) + AAMC_Raw_Data_for_FY22[[#This Row],[Median]]","v":0},{"$f":"(((AAMC_Raw_Data_for_FY22[[#This Row],[75th]]-AAMC_Raw_Data_for_FY22[[#This Row],[Median]])/25)*10) + AAMC_Raw_Data_for_FY22[[#This Row],[Median]]","v":0},{"$f":"(((AAMC_Raw_Data_for_FY22[[#This Row],[75th]]-AAMC_Raw_Data_for_FY22[[#This Row],[Median]])/25)*15) + AAMC_Raw_Data_for_FY22[[#This Row],[Median]]","v":0},{"$f":"(((AAMC_Raw_Data_for_FY22[[#This Row],[75th]]-AAMC_Raw_Data_for_FY22[[#This Row],[Median]])/25)*20) + AAMC_Raw_Data_for_FY22[[#This Row],[Median]]","v":0},null,{"$f":"(((AAMC_Raw_Data_for_FY22[[#This Row],[75th]]-AAMC_Raw_Data_for_FY22[[#This Row],[Median]])/25)*30) + AAMC_Raw_Data_for_FY22[[#This Row],[Median]]","v":0},{"$f":"(((AAMC_Raw_Data_for_FY22[[#This Row],[75th]]-AAMC_Raw_Data_for_FY22[[#This Row],[Median]])/25)*35) + AAMC_Raw_Data_for_FY22[[#This Row],[Median]]","v":0},{"$f":"(((AAMC_Raw_Data_for_FY22[[#This Row],[75th]]-AAMC_Raw_Data_for_FY22[[#This Row],[Median]])/25)*40) + AAMC_Raw_Data_for_FY22[[#This Row],[Median]]","v":0}]
[{"$f":"AAMC_Raw_Data_for_FY22[[#This Row],[Source]]&AAMC_Raw_Data_for_FY22[[#This Row],[Type]]&AAMC_Raw_Data_for_FY22[[#This Row],[School Subset]]&AAMC_Raw_Data_for_FY22[[#This Row],[Rank]]&AAMC_Raw_Data_for_FY22[[#This Row],[Degree]]&AAMC_Raw_Data_for_FY22[[#This Row],[Department / Specialty]]&\"L\"","v":"AAMCAcademicPrivateAssistantPhDOrthopedic Surgery: Sports MedicineL"},"Orthopedic Surgery: Sports Medicine",4,"AAMC","Academic","Private","Assistant","PhD","2021-2022",null,{"$f":"(((AAMC_Raw_Data_for_FY22[[#This Row],[Median]]-AAMC_Raw_Data_for_FY22[[#This Row],[25th]])/25)*5) + AAMC_Raw_Data_for_FY22[[#This Row],[25th]]","v":0},{"$f":"(((AAMC_Raw_Data_for_FY22[[#This Row],[Median]]-AAMC_Raw_Data_for_FY22[[#This Row],[25th]])/25)*10) + AAMC_Raw_Data_for_FY22[[#This Row],[25th]]","v":0},{"$f":"(((AAMC_Raw_Data_for_FY22[[#This Row],[Median]]-AAMC_Raw_Data_for_FY22[[#This Row],[25th]])/25)*15) + AAMC_Raw_Data_for_FY22[[#This Row],[25th]]","v":0},{"$f":"(((AAMC_Raw_Data_for_FY22[[#This Row],[Median]]-AAMC_Raw_Data_for_FY22[[#This Row],[25th]])/25)*20) + AAMC_Raw_Data_for_FY22[[#This Row],[25th]]","v":0},null,{"$f":"(((AAMC_Raw_Data_for_FY22[[#This Row],[75th]]-AAMC_Raw_Data_for_FY22[[#This Row],[Median]])/25)*5) + AAMC_Raw_Data_for_FY22[[#This Row],[Median]]","v":0},{"$f":"(((AAMC_Raw_Data_for_FY22[[#This Row],[75th]]-AAMC_Raw_Data_for_FY22[[#This Row],[Median]])/25)*10) + AAMC_Raw_Data_for_FY22[[#This Row],[Median]]","v":0},{"$f":"(((AAMC_Raw_Data_for_FY22[[#This Row],[75th]]-AAMC_Raw_Data_for_FY22[[#This Row],[Median]])/25)*15) + AAMC_Raw_Data_for_FY22[[#This Row],[Median]]","v":0},{"$f":"(((AAMC_Raw_Data_for_FY22[[#This Row],[75th]]-AAMC_Raw_Data_for_FY22[[#This Row],[Median]])/25)*20) + AAMC_Raw_Data_for_FY22[[#This Row],[Median]]","v":0},null,{"$f":"(((AAMC_Raw_Data_for_FY22[[#This Row],[75th]]-AAMC_Raw_Data_for_FY22[[#This Row],[Median]])/25)*30) + AAMC_Raw_Data_for_FY22[[#This Row],[Median]]","v":0},{"$f":"(((AAMC_Raw_Data_for_FY22[[#This Row],[75th]]-AAMC_Raw_Data_for_FY22[[#This Row],[Median]])/25)*35) + AAMC_Raw_Data_for_FY22[[#This Row],[Median]]","v":0},{"$f":"(((AAMC_Raw_Data_for_FY22[[#This Row],[75th]]-AAMC_Raw_Data_for_FY22[[#This Row],[Median]])/25)*40) + AAMC_Raw_Data_for_FY22[[#This Row],[Median]]","v":0}]
[{"$f":"AAMC_Raw_Data_for_FY22[[#This Row],[Source]]&AAMC_Raw_Data_for_FY22[[#This Row],[Type]]&AAMC_Raw_Data_for_FY22[[#This Row],[School Subset]]&AAMC_Raw_Data_for_FY22[[#This Row],[Rank]]&AAMC_Raw_Data_for_FY22[[#This Row],[Degree]]&AAMC_Raw_Data_for_FY22[[#This Row],[Department / Specialty]]&\"L\"","v":"AAMCAcademicPrivateAssistantPhDOrthopedic Surgery: TraumaL"},"Orthopedic Surgery: Trauma",4,"AAMC","Academic","Private","Assistant","PhD","2021-2022",null,{"$f":"(((AAMC_Raw_Data_for_FY22[[#This Row],[Median]]-AAMC_Raw_Data_for_FY22[[#This Row],[25th]])/25)*5) + AAMC_Raw_Data_for_FY22[[#This Row],[25th]]","v":0},{"$f":"(((AAMC_Raw_Data_for_FY22[[#This Row],[Median]]-AAMC_Raw_Data_for_FY22[[#This Row],[25th]])/25)*10) + AAMC_Raw_Data_for_FY22[[#This Row],[25th]]","v":0},{"$f":"(((AAMC_Raw_Data_for_FY22[[#This Row],[Median]]-AAMC_Raw_Data_for_FY22[[#This Row],[25th]])/25)*15) + AAMC_Raw_Data_for_FY22[[#This Row],[25th]]","v":0},{"$f":"(((AAMC_Raw_Data_for_FY22[[#This Row],[Median]]-AAMC_Raw_Data_for_FY22[[#This Row],[25th]])/25)*20) + AAMC_Raw_Data_for_FY22[[#This Row],[25th]]","v":0},null,{"$f":"(((AAMC_Raw_Data_for_FY22[[#This Row],[75th]]-AAMC_Raw_Data_for_FY22[[#This Row],[Median]])/25)*5) + AAMC_Raw_Data_for_FY22[[#This Row],[Median]]","v":0},{"$f":"(((AAMC_Raw_Data_for_FY22[[#This Row],[75th]]-AAMC_Raw_Data_for_FY22[[#This Row],[Median]])/25)*10) + AAMC_Raw_Data_for_FY22[[#This Row],[Median]]","v":0},{"$f":"(((AAMC_Raw_Data_for_FY22[[#This Row],[75th]]-AAMC_Raw_Data_for_FY22[[#This Row],[Median]])/25)*15) + AAMC_Raw_Data_for_FY22[[#This Row],[Median]]","v":0},{"$f":"(((AAMC_Raw_Data_for_FY22[[#This Row],[75th]]-AAMC_Raw_Data_for_FY22[[#This Row],[Median]])/25)*20) + AAMC_Raw_Data_for_FY22[[#This Row],[Median]]","v":0},null,{"$f":"(((AAMC_Raw_Data_for_FY22[[#This Row],[75th]]-AAMC_Raw_Data_for_FY22[[#This Row],[Median]])/25)*30) + AAMC_Raw_Data_for_FY22[[#This Row],[Median]]","v":0},{"$f":"(((AAMC_Raw_Data_for_FY22[[#This Row],[75th]]-AAMC_Raw_Data_for_FY22[[#This Row],[Median]])/25)*35) + AAMC_Raw_Data_for_FY22[[#This Row],[Median]]","v":0},{"$f":"(((AAMC_Raw_Data_for_FY22[[#This Row],[75th]]-AAMC_Raw_Data_for_FY22[[#This Row],[Median]])/25)*40) + AAMC_Raw_Data_for_FY22[[#This Row],[Median]]","v":0}]
[{"$f":"AAMC_Raw_Data_for_FY22[[#This Row],[Source]]&AAMC_Raw_Data_for_FY22[[#This Row],[Type]]&AAMC_Raw_Data_for_FY22[[#This Row],[School Subset]]&AAMC_Raw_Data_for_FY22[[#This Row],[Rank]]&AAMC_Raw_Data_for_FY22[[#This Row],[Degree]]&AAMC_Raw_Data_for_FY22[[#This Row],[Department / Specialty]]&\"L\"","v":"AAMCAcademicPrivateInstructorPhDOrthopedic Surgery: OtherL"},"Orthopedic Surgery: Other",5,"AAMC","Academic","Private","Instructor","PhD","2021-2022",null,{"$f":"(((AAMC_Raw_Data_for_FY22[[#This Row],[Median]]-AAMC_Raw_Data_for_FY22[[#This Row],[25th]])/25)*5) + AAMC_Raw_Data_for_FY22[[#This Row],[25th]]","v":0},{"$f":"(((AAMC_Raw_Data_for_FY22[[#This Row],[Median]]-AAMC_Raw_Data_for_FY22[[#This Row],[25th]])/25)*10) + AAMC_Raw_Data_for_FY22[[#This Row],[25th]]","v":0},{"$f":"(((AAMC_Raw_Data_for_FY22[[#This Row],[Median]]-AAMC_Raw_Data_for_FY22[[#This Row],[25th]])/25)*15) + AAMC_Raw_Data_for_FY22[[#This Row],[25th]]","v":0},{"$f":"(((AAMC_Raw_Data_for_FY22[[#This Row],[Median]]-AAMC_Raw_Data_for_FY22[[#This Row],[25th]])/25)*20) + AAMC_Raw_Data_for_FY22[[#This Row],[25th]]","v":0},null,{"$f":"(((AAMC_Raw_Data_for_FY22[[#This Row],[75th]]-AAMC_Raw_Data_for_FY22[[#This Row],[Median]])/25)*5) + AAMC_Raw_Data_for_FY22[[#This Row],[Median]]","v":0},{"$f":"(((AAMC_Raw_Data_for_FY22[[#This Row],[75th]]-AAMC_Raw_Data_for_FY22[[#This Row],[Median]])/25)*10) + AAMC_Raw_Data_for_FY22[[#This Row],[Median]]","v":0},{"$f":"(((AAMC_Raw_Data_for_FY22[[#This Row],[75th]]-AAMC_Raw_Data_for_FY22[[#This Row],[Median]])/25)*15) + AAMC_Raw_Data_for_FY22[[#This Row],[Median]]","v":0},{"$f":"(((AAMC_Raw_Data_for_FY22[[#This Row],[75th]]-AAMC_Raw_Data_for_FY22[[#This Row],[Median]])/25)*20) + AAMC_Raw_Data_for_FY22[[#This Row],[Median]]","v":0},null,{"$f":"(((AAMC_Raw_Data_for_FY22[[#This Row],[75th]]-AAMC_Raw_Data_for_FY22[[#This Row],[Median]])/25)*30) + AAMC_Raw_Data_for_FY22[[#This Row],[Median]]","v":0},{"$f":"(((AAMC_Raw_Data_for_FY22[[#This Row],[75th]]-AAMC_Raw_Data_for_FY22[[#This Row],[Median]])/25)*35) + AAMC_Raw_Data_for_FY22[[#This Row],[Median]]","v":0},{"$f":"(((AAMC_Raw_Data_for_FY22[[#This Row],[75th]]-AAMC_Raw_Data_for_FY22[[#This Row],[Median]])/25)*40) + AAMC_Raw_Data_for_FY22[[#This Row],[Median]]","v":0}]
[{"$f":"AAMC_Raw_Data_for_FY22[[#This Row],[Source]]&AAMC_Raw_Data_for_FY22[[#This Row],[Type]]&AAMC_Raw_Data_for_FY22[[#This Row],[School Subset]]&AAMC_Raw_Data_for_FY22[[#This Row],[Rank]]&AAMC_Raw_Data_for_FY22[[#This Row],[Degree]]&AAMC_Raw_Data_for_FY22[[#This Row],[Department / Specialty]]&\"L\"","v":"AAMCAcademicPrivateAssistantPhDOrthopedic Surgery: OtherL"},"Orthopedic Surgery: Other",4,"AAMC","Academic","Private","Assistant","PhD","2021-2022",90575,{"$f":"(((AAMC_Raw_Data_for_FY22[[#This Row],[Median]]-AAMC_Raw_Data_for_FY22[[#This Row],[25th]])/25)*5) + AAMC_Raw_Data_for_FY22[[#This Row],[25th]]","v":92998},{"$f":"(((AAMC_Raw_Data_for_FY22[[#This Row],[Median]]-AAMC_Raw_Data_for_FY22[[#This Row],[25th]])/25)*10) + AAMC_Raw_Data_for_FY22[[#This Row],[25th]]","v":95421},{"$f":"(((AAMC_Raw_Data_for_FY22[[#This Row],[Median]]-AAMC_Raw_Data_for_FY22[[#This Row],[25th]])/25)*15) + AAMC_Raw_Data_for_FY22[[#This Row],[25th]]","v":97844},{"$f":"(((AAMC_Raw_Data_for_FY22[[#This Row],[Median]]-AAMC_Raw_Data_for_FY22[[#This Row],[25th]])/25)*20) + AAMC_Raw_Data_for_FY22[[#This Row],[25th]]","v":100267},102690,{"$f":"(((AAMC_Raw_Data_for_FY22[[#This Row],[75th]]-AAMC_Raw_Data_for_FY22[[#This Row],[Median]])/25)*5) + AAMC_Raw_Data_for_FY22[[#This Row],[Median]]","v":107337},{"$f":"(((AAMC_Raw_Data_for_FY22[[#This Row],[75th]]-AAMC_Raw_Data_for_FY22[[#This Row],[Median]])/25)*10) + AAMC_Raw_Data_for_FY22[[#This Row],[Median]]","v":111984},{"$f":"(((AAMC_Raw_Data_for_FY22[[#This Row],[75th]]-AAMC_Raw_Data_for_FY22[[#This Row],[Median]])/25)*15) + AAMC_Raw_Data_for_FY22[[#This Row],[Median]]","v":116631},{"$f":"(((AAMC_Raw_Data_for_FY22[[#This Row],[75th]]-AAMC_Raw_Data_for_FY22[[#This Row],[Median]])/25)*20) + AAMC_Raw_Data_for_FY22[[#This Row],[Median]]","v":121278},125925,{"$f":"(((AAMC_Raw_Data_for_FY22[[#This Row],[75th]]-AAMC_Raw_Data_for_FY22[[#This Row],[Median]])/25)*30) + AAMC_Raw_Data_for_FY22[[#This Row],[Median]]","v":130572},{"$f":"(((AAMC_Raw_Data_for_FY22[[#This Row],[75th]]-AAMC_Raw_Data_for_FY22[[#This Row],[Median]])/25)*35) + AAMC_Raw_Data_for_FY22[[#This Row],[Median]]","v":135219},{"$f":"(((AAMC_Raw_Data_for_FY22[[#This Row],[75th]]-AAMC_Raw_Data_for_FY22[[#This Row],[Median]])/25)*40) + AAMC_Raw_Data_for_FY22[[#This Row],[Median]]","v":139866}]
[{"$f":"AAMC_Raw_Data_for_FY22[[#This Row],[Source]]&AAMC_Raw_Data_for_FY22[[#This Row],[Type]]&AAMC_Raw_Data_for_FY22[[#This Row],[School Subset]]&AAMC_Raw_Data_for_FY22[[#This Row],[Rank]]&AAMC_Raw_Data_for_FY22[[#This Row],[Degree]]&AAMC_Raw_Data_for_FY22[[#This Row],[Department / Specialty]]&\"L\"","v":"AAMCAcademicPrivateAssociatePhDOrthopedic Surgery: OtherL"},"Orthopedic Surgery: Other",3,"AAMC","Academic","Private","Associate","PhD","2021-2022",127682,{"$f":"(((AAMC_Raw_Data_for_FY22[[#This Row],[Median]]-AAMC_Raw_Data_for_FY22[[#This Row],[25th]])/25)*5) + AAMC_Raw_Data_for_FY22[[#This Row],[25th]]","v":132745},{"$f":"(((AAMC_Raw_Data_for_FY22[[#This Row],[Median]]-AAMC_Raw_Data_for_FY22[[#This Row],[25th]])/25)*10) + AAMC_Raw_Data_for_FY22[[#This Row],[25th]]","v":137808},{"$f":"(((AAMC_Raw_Data_for_FY22[[#This Row],[Median]]-AAMC_Raw_Data_for_FY22[[#This Row],[25th]])/25)*15) + AAMC_Raw_Data_for_FY22[[#This Row],[25th]]","v":142871},{"$f":"(((AAMC_Raw_Data_for_FY22[[#This Row],[Median]]-AAMC_Raw_Data_for_FY22[[#This Row],[25th]])/25)*20) + AAMC_Raw_Data_for_FY22[[#This Row],[25th]]","v":147934},152997,{"$f":"(((AAMC_Raw_Data_for_FY22[[#This Row],[75th]]-AAMC_Raw_Data_for_FY22[[#This Row],[Median]])/25)*5) + AAMC_Raw_Data_for_FY22[[#This Row],[Median]]","v":158863.20000000001},{"$f":"(((AAMC_Raw_Data_for_FY22[[#This Row],[75th]]-AAMC_Raw_Data_for_FY22[[#This Row],[Median]])/25)*10) + AAMC_Raw_Data_for_FY22[[#This Row],[Median]]","v":164729.4},{"$f":"(((AAMC_Raw_Data_for_FY22[[#This Row],[75th]]-AAMC_Raw_Data_for_FY22[[#This Row],[Median]])/25)*15) + AAMC_Raw_Data_for_FY22[[#This Row],[Median]]","v":170595.6},{"$f":"(((AAMC_Raw_Data_for_FY22[[#This Row],[75th]]-AAMC_Raw_Data_for_FY22[[#This Row],[Median]])/25)*20) + AAMC_Raw_Data_for_FY22[[#This Row],[Median]]","v":176461.8},182328,{"$f":"(((AAMC_Raw_Data_for_FY22[[#This Row],[75th]]-AAMC_Raw_Data_for_FY22[[#This Row],[Median]])/25)*30) + AAMC_Raw_Data_for_FY22[[#This Row],[Median]]","v":188194.2},{"$f":"(((AAMC_Raw_Data_for_FY22[[#This Row],[75th]]-AAMC_Raw_Data_for_FY22[[#This Row],[Median]])/25)*35) + AAMC_Raw_Data_for_FY22[[#This Row],[Median]]","v":194060.4},{"$f":"(((AAMC_Raw_Data_for_FY22[[#This Row],[75th]]-AAMC_Raw_Data_for_FY22[[#This Row],[Median]])/25)*40) + AAMC_Raw_Data_for_FY22[[#This Row],[Median]]","v":199926.6}]
[{"$f":"AAMC_Raw_Data_for_FY22[[#This Row],[Source]]&AAMC_Raw_Data_for_FY22[[#This Row],[Type]]&AAMC_Raw_Data_for_FY22[[#This Row],[School Subset]]&AAMC_Raw_Data_for_FY22[[#This Row],[Rank]]&AAMC_Raw_Data_for_FY22[[#This Row],[Degree]]&AAMC_Raw_Data_for_FY22[[#This Row],[Department / Specialty]]&\"L\"","v":"AAMCAcademicPrivateProfessorPhDOrthopedic Surgery: OtherL"},"Orthopedic Surgery: Other",2,"AAMC","Academic","Private","Professor","PhD","2021-2022",199451,{"$f":"(((AAMC_Raw_Data_for_FY22[[#This Row],[Median]]-AAMC_Raw_Data_for_FY22[[#This Row],[25th]])/25)*5) + AAMC_Raw_Data_for_FY22[[#This Row],[25th]]","v":209953.4},{"$f":"(((AAMC_Raw_Data_for_FY22[[#This Row],[Median]]-AAMC_Raw_Data_for_FY22[[#This Row],[25th]])/25)*10) + AAMC_Raw_Data_for_FY22[[#This Row],[25th]]","v":220455.8},{"$f":"(((AAMC_Raw_Data_for_FY22[[#This Row],[Median]]-AAMC_Raw_Data_for_FY22[[#This Row],[25th]])/25)*15) + AAMC_Raw_Data_for_FY22[[#This Row],[25th]]","v":230958.2},{"$f":"(((AAMC_Raw_Data_for_FY22[[#This Row],[Median]]-AAMC_Raw_Data_for_FY22[[#This Row],[25th]])/25)*20) + AAMC_Raw_Data_for_FY22[[#This Row],[25th]]","v":241460.6},251963,{"$f":"(((AAMC_Raw_Data_for_FY22[[#This Row],[75th]]-AAMC_Raw_Data_for_FY22[[#This Row],[Median]])/25)*5) + AAMC_Raw_Data_for_FY22[[#This Row],[Median]]","v":260521},{"$f":"(((AAMC_Raw_Data_for_FY22[[#This Row],[75th]]-AAMC_Raw_Data_for_FY22[[#This Row],[Median]])/25)*10) + AAMC_Raw_Data_for_FY22[[#This Row],[Median]]","v":269079},{"$f":"(((AAMC_Raw_Data_for_FY22[[#This Row],[75th]]-AAMC_Raw_Data_for_FY22[[#This Row],[Median]])/25)*15) + AAMC_Raw_Data_for_FY22[[#This Row],[Median]]","v":277637},{"$f":"(((AAMC_Raw_Data_for_FY22[[#This Row],[75th]]-AAMC_Raw_Data_for_FY22[[#This Row],[Median]])/25)*20) + AAMC_Raw_Data_for_FY22[[#This Row],[Median]]","v":286195},294753,{"$f":"(((AAMC_Raw_Data_for_FY22[[#This Row],[75th]]-AAMC_Raw_Data_for_FY22[[#This Row],[Median]])/25)*30) + AAMC_Raw_Data_for_FY22[[#This Row],[Median]]","v":303311},{"$f":"(((AAMC_Raw_Data_for_FY22[[#This Row],[75th]]-AAMC_Raw_Data_for_FY22[[#This Row],[Median]])/25)*35) + AAMC_Raw_Data_for_FY22[[#This Row],[Median]]","v":311869},{"$f":"(((AAMC_Raw_Data_for_FY22[[#This Row],[75th]]-AAMC_Raw_Data_for_FY22[[#This Row],[Median]])/25)*40) + AAMC_Raw_Data_for_FY22[[#This Row],[Median]]","v":320427}]
[{"$f":"AAMC_Raw_Data_for_FY22[[#This Row],[Source]]&AAMC_Raw_Data_for_FY22[[#This Row],[Type]]&AAMC_Raw_Data_for_FY22[[#This Row],[School Subset]]&AAMC_Raw_Data_for_FY22[[#This Row],[Rank]]&AAMC_Raw_Data_for_FY22[[#This Row],[Degree]]&AAMC_Raw_Data_for_FY22[[#This Row],[Department / Specialty]]&\"L\"","v":"AAMCAcademicPrivateInstructorPhDPediatric SurgeryL"},"Pediatric Surgery",5,"AAMC","Academic","Private","Instructor","PhD","2021-2022",null,{"$f":"(((AAMC_Raw_Data_for_FY22[[#This Row],[Median]]-AAMC_Raw_Data_for_FY22[[#This Row],[25th]])/25)*5) + AAMC_Raw_Data_for_FY22[[#This Row],[25th]]","v":0},{"$f":"(((AAMC_Raw_Data_for_FY22[[#This Row],[Median]]-AAMC_Raw_Data_for_FY22[[#This Row],[25th]])/25)*10) + AAMC_Raw_Data_for_FY22[[#This Row],[25th]]","v":0},{"$f":"(((AAMC_Raw_Data_for_FY22[[#This Row],[Median]]-AAMC_Raw_Data_for_FY22[[#This Row],[25th]])/25)*15) + AAMC_Raw_Data_for_FY22[[#This Row],[25th]]","v":0},{"$f":"(((AAMC_Raw_Data_for_FY22[[#This Row],[Median]]-AAMC_Raw_Data_for_FY22[[#This Row],[25th]])/25)*20) + AAMC_Raw_Data_for_FY22[[#This Row],[25th]]","v":0},null,{"$f":"(((AAMC_Raw_Data_for_FY22[[#This Row],[75th]]-AAMC_Raw_Data_for_FY22[[#This Row],[Median]])/25)*5) + AAMC_Raw_Data_for_FY22[[#This Row],[Median]]","v":0},{"$f":"(((AAMC_Raw_Data_for_FY22[[#This Row],[75th]]-AAMC_Raw_Data_for_FY22[[#This Row],[Median]])/25)*10) + AAMC_Raw_Data_for_FY22[[#This Row],[Median]]","v":0},{"$f":"(((AAMC_Raw_Data_for_FY22[[#This Row],[75th]]-AAMC_Raw_Data_for_FY22[[#This Row],[Median]])/25)*15) + AAMC_Raw_Data_for_FY22[[#This Row],[Median]]","v":0},{"$f":"(((AAMC_Raw_Data_for_FY22[[#This Row],[75th]]-AAMC_Raw_Data_for_FY22[[#This Row],[Median]])/25)*20) + AAMC_Raw_Data_for_FY22[[#This Row],[Median]]","v":0},null,{"$f":"(((AAMC_Raw_Data_for_FY22[[#This Row],[75th]]-AAMC_Raw_Data_for_FY22[[#This Row],[Median]])/25)*30) + AAMC_Raw_Data_for_FY22[[#This Row],[Median]]","v":0},{"$f":"(((AAMC_Raw_Data_for_FY22[[#This Row],[75th]]-AAMC_Raw_Data_for_FY22[[#This Row],[Median]])/25)*35) + AAMC_Raw_Data_for_FY22[[#This Row],[Median]]","v":0},{"$f":"(((AAMC_Raw_Data_for_FY22[[#This Row],[75th]]-AAMC_Raw_Data_for_FY22[[#This Row],[Median]])/25)*40) + AAMC_Raw_Data_for_FY22[[#This Row],[Median]]","v":0}]
[{"$f":"AAMC_Raw_Data_for_FY22[[#This Row],[Source]]&AAMC_Raw_Data_for_FY22[[#This Row],[Type]]&AAMC_Raw_Data_for_FY22[[#This Row],[School Subset]]&AAMC_Raw_Data_for_FY22[[#This Row],[Rank]]&AAMC_Raw_Data_for_FY22[[#This Row],[Degree]]&AAMC_Raw_Data_for_FY22[[#This Row],[Department / Specialty]]&\"L\"","v":"AAMCAcademicPrivateAssistantPhDPediatric SurgeryL"},"Pediatric Surgery",4,"AAMC","Academic","Private","Assistant","PhD","2021-2022",67046,{"$f":"(((AAMC_Raw_Data_for_FY22[[#This Row],[Median]]-AAMC_Raw_Data_for_FY22[[#This Row],[25th]])/25)*5) + AAMC_Raw_Data_for_FY22[[#This Row],[25th]]","v":70382.399999999994},{"$f":"(((AAMC_Raw_Data_for_FY22[[#This Row],[Median]]-AAMC_Raw_Data_for_FY22[[#This Row],[25th]])/25)*10) + AAMC_Raw_Data_for_FY22[[#This Row],[25th]]","v":73718.8},{"$f":"(((AAMC_Raw_Data_for_FY22[[#This Row],[Median]]-AAMC_Raw_Data_for_FY22[[#This Row],[25th]])/25)*15) + AAMC_Raw_Data_for_FY22[[#This Row],[25th]]","v":77055.199999999997},{"$f":"(((AAMC_Raw_Data_for_FY22[[#This Row],[Median]]-AAMC_Raw_Data_for_FY22[[#This Row],[25th]])/25)*20) + AAMC_Raw_Data_for_FY22[[#This Row],[25th]]","v":80391.600000000006},83728,{"$f":"(((AAMC_Raw_Data_for_FY22[[#This Row],[75th]]-AAMC_Raw_Data_for_FY22[[#This Row],[Median]])/25)*5) + AAMC_Raw_Data_for_FY22[[#This Row],[Median]]","v":86885.2},{"$f":"(((AAMC_Raw_Data_for_FY22[[#This Row],[75th]]-AAMC_Raw_Data_for_FY22[[#This Row],[Median]])/25)*10) + AAMC_Raw_Data_for_FY22[[#This Row],[Median]]","v":90042.4},{"$f":"(((AAMC_Raw_Data_for_FY22[[#This Row],[75th]]-AAMC_Raw_Data_for_FY22[[#This Row],[Median]])/25)*15) + AAMC_Raw_Data_for_FY22[[#This Row],[Median]]","v":93199.6},{"$f":"(((AAMC_Raw_Data_for_FY22[[#This Row],[75th]]-AAMC_Raw_Data_for_FY22[[#This Row],[Median]])/25)*20) + AAMC_Raw_Data_for_FY22[[#This Row],[Median]]","v":96356.800000000003},99514,{"$f":"(((AAMC_Raw_Data_for_FY22[[#This Row],[75th]]-AAMC_Raw_Data_for_FY22[[#This Row],[Median]])/25)*30) + AAMC_Raw_Data_for_FY22[[#This Row],[Median]]","v":102671.2},{"$f":"(((AAMC_Raw_Data_for_FY22[[#This Row],[75th]]-AAMC_Raw_Data_for_FY22[[#This Row],[Median]])/25)*35) + AAMC_Raw_Data_for_FY22[[#This Row],[Median]]","v":105828.4},{"$f":"(((AAMC_Raw_Data_for_FY22[[#This Row],[75th]]-AAMC_Raw_Data_for_FY22[[#This Row],[Median]])/25)*40) + AAMC_Raw_Data_for_FY22[[#This Row],[Median]]","v":108985.60000000001}]
[{"$f":"AAMC_Raw_Data_for_FY22[[#This Row],[Source]]&AAMC_Raw_Data_for_FY22[[#This Row],[Type]]&AAMC_Raw_Data_for_FY22[[#This Row],[School Subset]]&AAMC_Raw_Data_for_FY22[[#This Row],[Rank]]&AAMC_Raw_Data_for_FY22[[#This Row],[Degree]]&AAMC_Raw_Data_for_FY22[[#This Row],[Department / Specialty]]&\"L\"","v":"AAMCAcademicPrivateAssociatePhDPediatric SurgeryL"},"Pediatric Surgery",3,"AAMC","Academic","Private","Associate","PhD","2021-2022",null,{"$f":"(((AAMC_Raw_Data_for_FY22[[#This Row],[Median]]-AAMC_Raw_Data_for_FY22[[#This Row],[25th]])/25)*5) + AAMC_Raw_Data_for_FY22[[#This Row],[25th]]","v":0},{"$f":"(((AAMC_Raw_Data_for_FY22[[#This Row],[Median]]-AAMC_Raw_Data_for_FY22[[#This Row],[25th]])/25)*10) + AAMC_Raw_Data_for_FY22[[#This Row],[25th]]","v":0},{"$f":"(((AAMC_Raw_Data_for_FY22[[#This Row],[Median]]-AAMC_Raw_Data_for_FY22[[#This Row],[25th]])/25)*15) + AAMC_Raw_Data_for_FY22[[#This Row],[25th]]","v":0},{"$f":"(((AAMC_Raw_Data_for_FY22[[#This Row],[Median]]-AAMC_Raw_Data_for_FY22[[#This Row],[25th]])/25)*20) + AAMC_Raw_Data_for_FY22[[#This Row],[25th]]","v":0},null,{"$f":"(((AAMC_Raw_Data_for_FY22[[#This Row],[75th]]-AAMC_Raw_Data_for_FY22[[#This Row],[Median]])/25)*5) + AAMC_Raw_Data_for_FY22[[#This Row],[Median]]","v":0},{"$f":"(((AAMC_Raw_Data_for_FY22[[#This Row],[75th]]-AAMC_Raw_Data_for_FY22[[#This Row],[Median]])/25)*10) + AAMC_Raw_Data_for_FY22[[#This Row],[Median]]","v":0},{"$f":"(((AAMC_Raw_Data_for_FY22[[#This Row],[75th]]-AAMC_Raw_Data_for_FY22[[#This Row],[Median]])/25)*15) + AAMC_Raw_Data_for_FY22[[#This Row],[Median]]","v":0},{"$f":"(((AAMC_Raw_Data_for_FY22[[#This Row],[75th]]-AAMC_Raw_Data_for_FY22[[#This Row],[Median]])/25)*20) + AAMC_Raw_Data_for_FY22[[#This Row],[Median]]","v":0},null,{"$f":"(((AAMC_Raw_Data_for_FY22[[#This Row],[75th]]-AAMC_Raw_Data_for_FY22[[#This Row],[Median]])/25)*30) + AAMC_Raw_Data_for_FY22[[#This Row],[Median]]","v":0},{"$f":"(((AAMC_Raw_Data_for_FY22[[#This Row],[75th]]-AAMC_Raw_Data_for_FY22[[#This Row],[Median]])/25)*35) + AAMC_Raw_Data_for_FY22[[#This Row],[Median]]","v":0},{"$f":"(((AAMC_Raw_Data_for_FY22[[#This Row],[75th]]-AAMC_Raw_Data_for_FY22[[#This Row],[Median]])/25)*40) + AAMC_Raw_Data_for_FY22[[#This Row],[Median]]","v":0}]
[{"$f":"AAMC_Raw_Data_for_FY22[[#This Row],[Source]]&AAMC_Raw_Data_for_FY22[[#This Row],[Type]]&AAMC_Raw_Data_for_FY22[[#This Row],[School Subset]]&AAMC_Raw_Data_for_FY22[[#This Row],[Rank]]&AAMC_Raw_Data_for_FY22[[#This Row],[Degree]]&AAMC_Raw_Data_for_FY22[[#This Row],[Department / Specialty]]&\"L\"","v":"AAMCAcademicPrivateInstructorPhDPlastic SurgeryL"},"Plastic Surgery",5,"AAMC","Academic","Private","Instructor","PhD","2021-2022",null,{"$f":"(((AAMC_Raw_Data_for_FY22[[#This Row],[Median]]-AAMC_Raw_Data_for_FY22[[#This Row],[25th]])/25)*5) + AAMC_Raw_Data_for_FY22[[#This Row],[25th]]","v":0},{"$f":"(((AAMC_Raw_Data_for_FY22[[#This Row],[Median]]-AAMC_Raw_Data_for_FY22[[#This Row],[25th]])/25)*10) + AAMC_Raw_Data_for_FY22[[#This Row],[25th]]","v":0},{"$f":"(((AAMC_Raw_Data_for_FY22[[#This Row],[Median]]-AAMC_Raw_Data_for_FY22[[#This Row],[25th]])/25)*15) + AAMC_Raw_Data_for_FY22[[#This Row],[25th]]","v":0},{"$f":"(((AAMC_Raw_Data_for_FY22[[#This Row],[Median]]-AAMC_Raw_Data_for_FY22[[#This Row],[25th]])/25)*20) + AAMC_Raw_Data_for_FY22[[#This Row],[25th]]","v":0},null,{"$f":"(((AAMC_Raw_Data_for_FY22[[#This Row],[75th]]-AAMC_Raw_Data_for_FY22[[#This Row],[Median]])/25)*5) + AAMC_Raw_Data_for_FY22[[#This Row],[Median]]","v":0},{"$f":"(((AAMC_Raw_Data_for_FY22[[#This Row],[75th]]-AAMC_Raw_Data_for_FY22[[#This Row],[Median]])/25)*10) + AAMC_Raw_Data_for_FY22[[#This Row],[Median]]","v":0},{"$f":"(((AAMC_Raw_Data_for_FY22[[#This Row],[75th]]-AAMC_Raw_Data_for_FY22[[#This Row],[Median]])/25)*15) + AAMC_Raw_Data_for_FY22[[#This Row],[Median]]","v":0},{"$f":"(((AAMC_Raw_Data_for_FY22[[#This Row],[75th]]-AAMC_Raw_Data_for_FY22[[#This Row],[Median]])/25)*20) + AAMC_Raw_Data_for_FY22[[#This Row],[Median]]","v":0},null,{"$f":"(((AAMC_Raw_Data_for_FY22[[#This Row],[75th]]-AAMC_Raw_Data_for_FY22[[#This Row],[Median]])/25)*30) + AAMC_Raw_Data_for_FY22[[#This Row],[Median]]","v":0},{"$f":"(((AAMC_Raw_Data_for_FY22[[#This Row],[75th]]-AAMC_Raw_Data_for_FY22[[#This Row],[Median]])/25)*35) + AAMC_Raw_Data_for_FY22[[#This Row],[Median]]","v":0},{"$f":"(((AAMC_Raw_Data_for_FY22[[#This Row],[75th]]-AAMC_Raw_Data_for_FY22[[#This Row],[Median]])/25)*40) + AAMC_Raw_Data_for_FY22[[#This Row],[Median]]","v":0}]
[{"$f":"AAMC_Raw_Data_for_FY22[[#This Row],[Source]]&AAMC_Raw_Data_for_FY22[[#This Row],[Type]]&AAMC_Raw_Data_for_FY22[[#This Row],[School Subset]]&AAMC_Raw_Data_for_FY22[[#This Row],[Rank]]&AAMC_Raw_Data_for_FY22[[#This Row],[Degree]]&AAMC_Raw_Data_for_FY22[[#This Row],[Department / Specialty]]&\"L\"","v":"AAMCAcademicPrivateAssistantPhDPlastic SurgeryL"},"Plastic Surgery",4,"AAMC","Academic","Private","Assistant","PhD","2021-2022",101043,{"$f":"(((AAMC_Raw_Data_for_FY22[[#This Row],[Median]]-AAMC_Raw_Data_for_FY22[[#This Row],[25th]])/25)*5) + AAMC_Raw_Data_for_FY22[[#This Row],[25th]]","v":102742.39999999999},{"$f":"(((AAMC_Raw_Data_for_FY22[[#This Row],[Median]]-AAMC_Raw_Data_for_FY22[[#This Row],[25th]])/25)*10) + AAMC_Raw_Data_for_FY22[[#This Row],[25th]]","v":104441.8},{"$f":"(((AAMC_Raw_Data_for_FY22[[#This Row],[Median]]-AAMC_Raw_Data_for_FY22[[#This Row],[25th]])/25)*15) + AAMC_Raw_Data_for_FY22[[#This Row],[25th]]","v":106141.2},{"$f":"(((AAMC_Raw_Data_for_FY22[[#This Row],[Median]]-AAMC_Raw_Data_for_FY22[[#This Row],[25th]])/25)*20) + AAMC_Raw_Data_for_FY22[[#This Row],[25th]]","v":107840.6},109540,{"$f":"(((AAMC_Raw_Data_for_FY22[[#This Row],[75th]]-AAMC_Raw_Data_for_FY22[[#This Row],[Median]])/25)*5) + AAMC_Raw_Data_for_FY22[[#This Row],[Median]]","v":116213.8},{"$f":"(((AAMC_Raw_Data_for_FY22[[#This Row],[75th]]-AAMC_Raw_Data_for_FY22[[#This Row],[Median]])/25)*10) + AAMC_Raw_Data_for_FY22[[#This Row],[Median]]","v":122887.6},{"$f":"(((AAMC_Raw_Data_for_FY22[[#This Row],[75th]]-AAMC_Raw_Data_for_FY22[[#This Row],[Median]])/25)*15) + AAMC_Raw_Data_for_FY22[[#This Row],[Median]]","v":129561.4},{"$f":"(((AAMC_Raw_Data_for_FY22[[#This Row],[75th]]-AAMC_Raw_Data_for_FY22[[#This Row],[Median]])/25)*20) + AAMC_Raw_Data_for_FY22[[#This Row],[Median]]","v":136235.20000000001},142909,{"$f":"(((AAMC_Raw_Data_for_FY22[[#This Row],[75th]]-AAMC_Raw_Data_for_FY22[[#This Row],[Median]])/25)*30) + AAMC_Raw_Data_for_FY22[[#This Row],[Median]]","v":149582.79999999999},{"$f":"(((AAMC_Raw_Data_for_FY22[[#This Row],[75th]]-AAMC_Raw_Data_for_FY22[[#This Row],[Median]])/25)*35) + AAMC_Raw_Data_for_FY22[[#This Row],[Median]]","v":156256.6},{"$f":"(((AAMC_Raw_Data_for_FY22[[#This Row],[75th]]-AAMC_Raw_Data_for_FY22[[#This Row],[Median]])/25)*40) + AAMC_Raw_Data_for_FY22[[#This Row],[Median]]","v":162930.4}]
[{"$f":"AAMC_Raw_Data_for_FY22[[#This Row],[Source]]&AAMC_Raw_Data_for_FY22[[#This Row],[Type]]&AAMC_Raw_Data_for_FY22[[#This Row],[School Subset]]&AAMC_Raw_Data_for_FY22[[#This Row],[Rank]]&AAMC_Raw_Data_for_FY22[[#This Row],[Degree]]&AAMC_Raw_Data_for_FY22[[#This Row],[Department / Specialty]]&\"L\"","v":"AAMCAcademicPrivateAssociatePhDPlastic SurgeryL"},"Plastic Surgery",3,"AAMC","Academic","Private","Associate","PhD","2021-2022",null,{"$f":"(((AAMC_Raw_Data_for_FY22[[#This Row],[Median]]-AAMC_Raw_Data_for_FY22[[#This Row],[25th]])/25)*5) + AAMC_Raw_Data_for_FY22[[#This Row],[25th]]","v":0},{"$f":"(((AAMC_Raw_Data_for_FY22[[#This Row],[Median]]-AAMC_Raw_Data_for_FY22[[#This Row],[25th]])/25)*10) + AAMC_Raw_Data_for_FY22[[#This Row],[25th]]","v":0},{"$f":"(((AAMC_Raw_Data_for_FY22[[#This Row],[Median]]-AAMC_Raw_Data_for_FY22[[#This Row],[25th]])/25)*15) + AAMC_Raw_Data_for_FY22[[#This Row],[25th]]","v":0},{"$f":"(((AAMC_Raw_Data_for_FY22[[#This Row],[Median]]-AAMC_Raw_Data_for_FY22[[#This Row],[25th]])/25)*20) + AAMC_Raw_Data_for_FY22[[#This Row],[25th]]","v":0},null,{"$f":"(((AAMC_Raw_Data_for_FY22[[#This Row],[75th]]-AAMC_Raw_Data_for_FY22[[#This Row],[Median]])/25)*5) + AAMC_Raw_Data_for_FY22[[#This Row],[Median]]","v":0},{"$f":"(((AAMC_Raw_Data_for_FY22[[#This Row],[75th]]-AAMC_Raw_Data_for_FY22[[#This Row],[Median]])/25)*10) + AAMC_Raw_Data_for_FY22[[#This Row],[Median]]","v":0},{"$f":"(((AAMC_Raw_Data_for_FY22[[#This Row],[75th]]-AAMC_Raw_Data_for_FY22[[#This Row],[Median]])/25)*15) + AAMC_Raw_Data_for_FY22[[#This Row],[Median]]","v":0},{"$f":"(((AAMC_Raw_Data_for_FY22[[#This Row],[75th]]-AAMC_Raw_Data_for_FY22[[#This Row],[Median]])/25)*20) + AAMC_Raw_Data_for_FY22[[#This Row],[Median]]","v":0},null,{"$f":"(((AAMC_Raw_Data_for_FY22[[#This Row],[75th]]-AAMC_Raw_Data_for_FY22[[#This Row],[Median]])/25)*30) + AAMC_Raw_Data_for_FY22[[#This Row],[Median]]","v":0},{"$f":"(((AAMC_Raw_Data_for_FY22[[#This Row],[75th]]-AAMC_Raw_Data_for_FY22[[#This Row],[Median]])/25)*35) + AAMC_Raw_Data_for_FY22[[#This Row],[Median]]","v":0},{"$f":"(((AAMC_Raw_Data_for_FY22[[#This Row],[75th]]-AAMC_Raw_Data_for_FY22[[#This Row],[Median]])/25)*40) + AAMC_Raw_Data_for_FY22[[#This Row],[Median]]","v":0}]
[{"$f":"AAMC_Raw_Data_for_FY22[[#This Row],[Source]]&AAMC_Raw_Data_for_FY22[[#This Row],[Type]]&AAMC_Raw_Data_for_FY22[[#This Row],[School Subset]]&AAMC_Raw_Data_for_FY22[[#This Row],[Rank]]&AAMC_Raw_Data_for_FY22[[#This Row],[Degree]]&AAMC_Raw_Data_for_FY22[[#This Row],[Department / Specialty]]&\"L\"","v":"AAMCAcademicPrivateProfessorPhDPlastic SurgeryL"},"Plastic Surgery",2,"AAMC","Academic","Private","Professor","PhD","2021-2022",null,{"$f":"(((AAMC_Raw_Data_for_FY22[[#This Row],[Median]]-AAMC_Raw_Data_for_FY22[[#This Row],[25th]])/25)*5) + AAMC_Raw_Data_for_FY22[[#This Row],[25th]]","v":0},{"$f":"(((AAMC_Raw_Data_for_FY22[[#This Row],[Median]]-AAMC_Raw_Data_for_FY22[[#This Row],[25th]])/25)*10) + AAMC_Raw_Data_for_FY22[[#This Row],[25th]]","v":0},{"$f":"(((AAMC_Raw_Data_for_FY22[[#This Row],[Median]]-AAMC_Raw_Data_for_FY22[[#This Row],[25th]])/25)*15) + AAMC_Raw_Data_for_FY22[[#This Row],[25th]]","v":0},{"$f":"(((AAMC_Raw_Data_for_FY22[[#This Row],[Median]]-AAMC_Raw_Data_for_FY22[[#This Row],[25th]])/25)*20) + AAMC_Raw_Data_for_FY22[[#This Row],[25th]]","v":0},null,{"$f":"(((AAMC_Raw_Data_for_FY22[[#This Row],[75th]]-AAMC_Raw_Data_for_FY22[[#This Row],[Median]])/25)*5) + AAMC_Raw_Data_for_FY22[[#This Row],[Median]]","v":0},{"$f":"(((AAMC_Raw_Data_for_FY22[[#This Row],[75th]]-AAMC_Raw_Data_for_FY22[[#This Row],[Median]])/25)*10) + AAMC_Raw_Data_for_FY22[[#This Row],[Median]]","v":0},{"$f":"(((AAMC_Raw_Data_for_FY22[[#This Row],[75th]]-AAMC_Raw_Data_for_FY22[[#This Row],[Median]])/25)*15) + AAMC_Raw_Data_for_FY22[[#This Row],[Median]]","v":0},{"$f":"(((AAMC_Raw_Data_for_FY22[[#This Row],[75th]]-AAMC_Raw_Data_for_FY22[[#This Row],[Median]])/25)*20) + AAMC_Raw_Data_for_FY22[[#This Row],[Median]]","v":0},null,{"$f":"(((AAMC_Raw_Data_for_FY22[[#This Row],[75th]]-AAMC_Raw_Data_for_FY22[[#This Row],[Median]])/25)*30) + AAMC_Raw_Data_for_FY22[[#This Row],[Median]]","v":0},{"$f":"(((AAMC_Raw_Data_for_FY22[[#This Row],[75th]]-AAMC_Raw_Data_for_FY22[[#This Row],[Median]])/25)*35) + AAMC_Raw_Data_for_FY22[[#This Row],[Median]]","v":0},{"$f":"(((AAMC_Raw_Data_for_FY22[[#This Row],[75th]]-AAMC_Raw_Data_for_FY22[[#This Row],[Median]])/25)*40) + AAMC_Raw_Data_for_FY22[[#This Row],[Median]]","v":0}]
[{"$f":"AAMC_Raw_Data_for_FY22[[#This Row],[Source]]&AAMC_Raw_Data_for_FY22[[#This Row],[Type]]&AAMC_Raw_Data_for_FY22[[#This Row],[School Subset]]&AAMC_Raw_Data_for_FY22[[#This Row],[Rank]]&AAMC_Raw_Data_for_FY22[[#This Row],[Degree]]&AAMC_Raw_Data_for_FY22[[#This Row],[Department / Specialty]]&\"L\"","v":"AAMCAcademicPrivateInstructorPhDSurgical OncologyL"},"Surgical Oncology",5,"AAMC","Academic","Private","Instructor","PhD","2021-2022",null,{"$f":"(((AAMC_Raw_Data_for_FY22[[#This Row],[Median]]-AAMC_Raw_Data_for_FY22[[#This Row],[25th]])/25)*5) + AAMC_Raw_Data_for_FY22[[#This Row],[25th]]","v":0},{"$f":"(((AAMC_Raw_Data_for_FY22[[#This Row],[Median]]-AAMC_Raw_Data_for_FY22[[#This Row],[25th]])/25)*10) + AAMC_Raw_Data_for_FY22[[#This Row],[25th]]","v":0},{"$f":"(((AAMC_Raw_Data_for_FY22[[#This Row],[Median]]-AAMC_Raw_Data_for_FY22[[#This Row],[25th]])/25)*15) + AAMC_Raw_Data_for_FY22[[#This Row],[25th]]","v":0},{"$f":"(((AAMC_Raw_Data_for_FY22[[#This Row],[Median]]-AAMC_Raw_Data_for_FY22[[#This Row],[25th]])/25)*20) + AAMC_Raw_Data_for_FY22[[#This Row],[25th]]","v":0},null,{"$f":"(((AAMC_Raw_Data_for_FY22[[#This Row],[75th]]-AAMC_Raw_Data_for_FY22[[#This Row],[Median]])/25)*5) + AAMC_Raw_Data_for_FY22[[#This Row],[Median]]","v":0},{"$f":"(((AAMC_Raw_Data_for_FY22[[#This Row],[75th]]-AAMC_Raw_Data_for_FY22[[#This Row],[Median]])/25)*10) + AAMC_Raw_Data_for_FY22[[#This Row],[Median]]","v":0},{"$f":"(((AAMC_Raw_Data_for_FY22[[#This Row],[75th]]-AAMC_Raw_Data_for_FY22[[#This Row],[Median]])/25)*15) + AAMC_Raw_Data_for_FY22[[#This Row],[Median]]","v":0},{"$f":"(((AAMC_Raw_Data_for_FY22[[#This Row],[75th]]-AAMC_Raw_Data_for_FY22[[#This Row],[Median]])/25)*20) + AAMC_Raw_Data_for_FY22[[#This Row],[Median]]","v":0},null,{"$f":"(((AAMC_Raw_Data_for_FY22[[#This Row],[75th]]-AAMC_Raw_Data_for_FY22[[#This Row],[Median]])/25)*30) + AAMC_Raw_Data_for_FY22[[#This Row],[Median]]","v":0},{"$f":"(((AAMC_Raw_Data_for_FY22[[#This Row],[75th]]-AAMC_Raw_Data_for_FY22[[#This Row],[Median]])/25)*35) + AAMC_Raw_Data_for_FY22[[#This Row],[Median]]","v":0},{"$f":"(((AAMC_Raw_Data_for_FY22[[#This Row],[75th]]-AAMC_Raw_Data_for_FY22[[#This Row],[Median]])/25)*40) + AAMC_Raw_Data_for_FY22[[#This Row],[Median]]","v":0}]
[{"$f":"AAMC_Raw_Data_for_FY22[[#This Row],[Source]]&AAMC_Raw_Data_for_FY22[[#This Row],[Type]]&AAMC_Raw_Data_for_FY22[[#This Row],[School Subset]]&AAMC_Raw_Data_for_FY22[[#This Row],[Rank]]&AAMC_Raw_Data_for_FY22[[#This Row],[Degree]]&AAMC_Raw_Data_for_FY22[[#This Row],[Department / Specialty]]&\"L\"","v":"AAMCAcademicPrivateAssistantPhDSurgical OncologyL"},"Surgical Oncology",4,"AAMC","Academic","Private","Assistant","PhD","2021-2022",85314,{"$f":"(((AAMC_Raw_Data_for_FY22[[#This Row],[Median]]-AAMC_Raw_Data_for_FY22[[#This Row],[25th]])/25)*5) + AAMC_Raw_Data_for_FY22[[#This Row],[25th]]","v":87808.8},{"$f":"(((AAMC_Raw_Data_for_FY22[[#This Row],[Median]]-AAMC_Raw_Data_for_FY22[[#This Row],[25th]])/25)*10) + AAMC_Raw_Data_for_FY22[[#This Row],[25th]]","v":90303.6},{"$f":"(((AAMC_Raw_Data_for_FY22[[#This Row],[Median]]-AAMC_Raw_Data_for_FY22[[#This Row],[25th]])/25)*15) + AAMC_Raw_Data_for_FY22[[#This Row],[25th]]","v":92798.399999999994},{"$f":"(((AAMC_Raw_Data_for_FY22[[#This Row],[Median]]-AAMC_Raw_Data_for_FY22[[#This Row],[25th]])/25)*20) + AAMC_Raw_Data_for_FY22[[#This Row],[25th]]","v":95293.2},97788,{"$f":"(((AAMC_Raw_Data_for_FY22[[#This Row],[75th]]-AAMC_Raw_Data_for_FY22[[#This Row],[Median]])/25)*5) + AAMC_Raw_Data_for_FY22[[#This Row],[Median]]","v":101517.8},{"$f":"(((AAMC_Raw_Data_for_FY22[[#This Row],[75th]]-AAMC_Raw_Data_for_FY22[[#This Row],[Median]])/25)*10) + AAMC_Raw_Data_for_FY22[[#This Row],[Median]]","v":105247.6},{"$f":"(((AAMC_Raw_Data_for_FY22[[#This Row],[75th]]-AAMC_Raw_Data_for_FY22[[#This Row],[Median]])/25)*15) + AAMC_Raw_Data_for_FY22[[#This Row],[Median]]","v":108977.4},{"$f":"(((AAMC_Raw_Data_for_FY22[[#This Row],[75th]]-AAMC_Raw_Data_for_FY22[[#This Row],[Median]])/25)*20) + AAMC_Raw_Data_for_FY22[[#This Row],[Median]]","v":112707.2},116437,{"$f":"(((AAMC_Raw_Data_for_FY22[[#This Row],[75th]]-AAMC_Raw_Data_for_FY22[[#This Row],[Median]])/25)*30) + AAMC_Raw_Data_for_FY22[[#This Row],[Median]]","v":120166.8},{"$f":"(((AAMC_Raw_Data_for_FY22[[#This Row],[75th]]-AAMC_Raw_Data_for_FY22[[#This Row],[Median]])/25)*35) + AAMC_Raw_Data_for_FY22[[#This Row],[Median]]","v":123896.6},{"$f":"(((AAMC_Raw_Data_for_FY22[[#This Row],[75th]]-AAMC_Raw_Data_for_FY22[[#This Row],[Median]])/25)*40) + AAMC_Raw_Data_for_FY22[[#This Row],[Median]]","v":127626.4}]
[{"$f":"AAMC_Raw_Data_for_FY22[[#This Row],[Source]]&AAMC_Raw_Data_for_FY22[[#This Row],[Type]]&AAMC_Raw_Data_for_FY22[[#This Row],[School Subset]]&AAMC_Raw_Data_for_FY22[[#This Row],[Rank]]&AAMC_Raw_Data_for_FY22[[#This Row],[Degree]]&AAMC_Raw_Data_for_FY22[[#This Row],[Department / Specialty]]&\"L\"","v":"AAMCAcademicPrivateAssociatePhDSurgical OncologyL"},"Surgical Oncology",3,"AAMC","Academic","Private","Associate","PhD","2021-2022",null,{"$f":"(((AAMC_Raw_Data_for_FY22[[#This Row],[Median]]-AAMC_Raw_Data_for_FY22[[#This Row],[25th]])/25)*5) + AAMC_Raw_Data_for_FY22[[#This Row],[25th]]","v":0},{"$f":"(((AAMC_Raw_Data_for_FY22[[#This Row],[Median]]-AAMC_Raw_Data_for_FY22[[#This Row],[25th]])/25)*10) + AAMC_Raw_Data_for_FY22[[#This Row],[25th]]","v":0},{"$f":"(((AAMC_Raw_Data_for_FY22[[#This Row],[Median]]-AAMC_Raw_Data_for_FY22[[#This Row],[25th]])/25)*15) + AAMC_Raw_Data_for_FY22[[#This Row],[25th]]","v":0},{"$f":"(((AAMC_Raw_Data_for_FY22[[#This Row],[Median]]-AAMC_Raw_Data_for_FY22[[#This Row],[25th]])/25)*20) + AAMC_Raw_Data_for_FY22[[#This Row],[25th]]","v":0},null,{"$f":"(((AAMC_Raw_Data_for_FY22[[#This Row],[75th]]-AAMC_Raw_Data_for_FY22[[#This Row],[Median]])/25)*5) + AAMC_Raw_Data_for_FY22[[#This Row],[Median]]","v":0},{"$f":"(((AAMC_Raw_Data_for_FY22[[#This Row],[75th]]-AAMC_Raw_Data_for_FY22[[#This Row],[Median]])/25)*10) + AAMC_Raw_Data_for_FY22[[#This Row],[Median]]","v":0},{"$f":"(((AAMC_Raw_Data_for_FY22[[#This Row],[75th]]-AAMC_Raw_Data_for_FY22[[#This Row],[Median]])/25)*15) + AAMC_Raw_Data_for_FY22[[#This Row],[Median]]","v":0},{"$f":"(((AAMC_Raw_Data_for_FY22[[#This Row],[75th]]-AAMC_Raw_Data_for_FY22[[#This Row],[Median]])/25)*20) + AAMC_Raw_Data_for_FY22[[#This Row],[Median]]","v":0},null,{"$f":"(((AAMC_Raw_Data_for_FY22[[#This Row],[75th]]-AAMC_Raw_Data_for_FY22[[#This Row],[Median]])/25)*30) + AAMC_Raw_Data_for_FY22[[#This Row],[Median]]","v":0},{"$f":"(((AAMC_Raw_Data_for_FY22[[#This Row],[75th]]-AAMC_Raw_Data_for_FY22[[#This Row],[Median]])/25)*35) + AAMC_Raw_Data_for_FY22[[#This Row],[Median]]","v":0},{"$f":"(((AAMC_Raw_Data_for_FY22[[#This Row],[75th]]-AAMC_Raw_Data_for_FY22[[#This Row],[Median]])/25)*40) + AAMC_Raw_Data_for_FY22[[#This Row],[Median]]","v":0}]
[{"$f":"AAMC_Raw_Data_for_FY22[[#This Row],[Source]]&AAMC_Raw_Data_for_FY22[[#This Row],[Type]]&AAMC_Raw_Data_for_FY22[[#This Row],[School Subset]]&AAMC_Raw_Data_for_FY22[[#This Row],[Rank]]&AAMC_Raw_Data_for_FY22[[#This Row],[Degree]]&AAMC_Raw_Data_for_FY22[[#This Row],[Department / Specialty]]&\"L\"","v":"AAMCAcademicPrivateProfessorPhDSurgical OncologyL"},"Surgical Oncology",2,"AAMC","Academic","Private","Professor","PhD","2021-2022",128949,{"$f":"(((AAMC_Raw_Data_for_FY22[[#This Row],[Median]]-AAMC_Raw_Data_for_FY22[[#This Row],[25th]])/25)*5) + AAMC_Raw_Data_for_FY22[[#This Row],[25th]]","v":140966.6},{"$f":"(((AAMC_Raw_Data_for_FY22[[#This Row],[Median]]-AAMC_Raw_Data_for_FY22[[#This Row],[25th]])/25)*10) + AAMC_Raw_Data_for_FY22[[#This Row],[25th]]","v":152984.20000000001},{"$f":"(((AAMC_Raw_Data_for_FY22[[#This Row],[Median]]-AAMC_Raw_Data_for_FY22[[#This Row],[25th]])/25)*15) + AAMC_Raw_Data_for_FY22[[#This Row],[25th]]","v":165001.79999999999},{"$f":"(((AAMC_Raw_Data_for_FY22[[#This Row],[Median]]-AAMC_Raw_Data_for_FY22[[#This Row],[25th]])/25)*20) + AAMC_Raw_Data_for_FY22[[#This Row],[25th]]","v":177019.4},189037,{"$f":"(((AAMC_Raw_Data_for_FY22[[#This Row],[75th]]-AAMC_Raw_Data_for_FY22[[#This Row],[Median]])/25)*5) + AAMC_Raw_Data_for_FY22[[#This Row],[Median]]","v":200479.6},{"$f":"(((AAMC_Raw_Data_for_FY22[[#This Row],[75th]]-AAMC_Raw_Data_for_FY22[[#This Row],[Median]])/25)*10) + AAMC_Raw_Data_for_FY22[[#This Row],[Median]]","v":211922.2},{"$f":"(((AAMC_Raw_Data_for_FY22[[#This Row],[75th]]-AAMC_Raw_Data_for_FY22[[#This Row],[Median]])/25)*15) + AAMC_Raw_Data_for_FY22[[#This Row],[Median]]","v":223364.8},{"$f":"(((AAMC_Raw_Data_for_FY22[[#This Row],[75th]]-AAMC_Raw_Data_for_FY22[[#This Row],[Median]])/25)*20) + AAMC_Raw_Data_for_FY22[[#This Row],[Median]]","v":234807.4},246250,{"$f":"(((AAMC_Raw_Data_for_FY22[[#This Row],[75th]]-AAMC_Raw_Data_for_FY22[[#This Row],[Median]])/25)*30) + AAMC_Raw_Data_for_FY22[[#This Row],[Median]]","v":257692.6},{"$f":"(((AAMC_Raw_Data_for_FY22[[#This Row],[75th]]-AAMC_Raw_Data_for_FY22[[#This Row],[Median]])/25)*35) + AAMC_Raw_Data_for_FY22[[#This Row],[Median]]","v":269135.2},{"$f":"(((AAMC_Raw_Data_for_FY22[[#This Row],[75th]]-AAMC_Raw_Data_for_FY22[[#This Row],[Median]])/25)*40) + AAMC_Raw_Data_for_FY22[[#This Row],[Median]]","v":280577.8}]
[{"$f":"AAMC_Raw_Data_for_FY22[[#This Row],[Source]]&AAMC_Raw_Data_for_FY22[[#This Row],[Type]]&AAMC_Raw_Data_for_FY22[[#This Row],[School Subset]]&AAMC_Raw_Data_for_FY22[[#This Row],[Rank]]&AAMC_Raw_Data_for_FY22[[#This Row],[Degree]]&AAMC_Raw_Data_for_FY22[[#This Row],[Department / Specialty]]&\"L\"","v":"AAMCAcademicPrivateInstructorPhDThoracic & Cardiovascular SurgeryL"},"Thoracic & Cardiovascular Surgery",5,"AAMC","Academic","Private","Instructor","PhD","2021-2022",null,{"$f":"(((AAMC_Raw_Data_for_FY22[[#This Row],[Median]]-AAMC_Raw_Data_for_FY22[[#This Row],[25th]])/25)*5) + AAMC_Raw_Data_for_FY22[[#This Row],[25th]]","v":0},{"$f":"(((AAMC_Raw_Data_for_FY22[[#This Row],[Median]]-AAMC_Raw_Data_for_FY22[[#This Row],[25th]])/25)*10) + AAMC_Raw_Data_for_FY22[[#This Row],[25th]]","v":0},{"$f":"(((AAMC_Raw_Data_for_FY22[[#This Row],[Median]]-AAMC_Raw_Data_for_FY22[[#This Row],[25th]])/25)*15) + AAMC_Raw_Data_for_FY22[[#This Row],[25th]]","v":0},{"$f":"(((AAMC_Raw_Data_for_FY22[[#This Row],[Median]]-AAMC_Raw_Data_for_FY22[[#This Row],[25th]])/25)*20) + AAMC_Raw_Data_for_FY22[[#This Row],[25th]]","v":0},null,{"$f":"(((AAMC_Raw_Data_for_FY22[[#This Row],[75th]]-AAMC_Raw_Data_for_FY22[[#This Row],[Median]])/25)*5) + AAMC_Raw_Data_for_FY22[[#This Row],[Median]]","v":0},{"$f":"(((AAMC_Raw_Data_for_FY22[[#This Row],[75th]]-AAMC_Raw_Data_for_FY22[[#This Row],[Median]])/25)*10) + AAMC_Raw_Data_for_FY22[[#This Row],[Median]]","v":0},{"$f":"(((AAMC_Raw_Data_for_FY22[[#This Row],[75th]]-AAMC_Raw_Data_for_FY22[[#This Row],[Median]])/25)*15) + AAMC_Raw_Data_for_FY22[[#This Row],[Median]]","v":0},{"$f":"(((AAMC_Raw_Data_for_FY22[[#This Row],[75th]]-AAMC_Raw_Data_for_FY22[[#This Row],[Median]])/25)*20) + AAMC_Raw_Data_for_FY22[[#This Row],[Median]]","v":0},null,{"$f":"(((AAMC_Raw_Data_for_FY22[[#This Row],[75th]]-AAMC_Raw_Data_for_FY22[[#This Row],[Median]])/25)*30) + AAMC_Raw_Data_for_FY22[[#This Row],[Median]]","v":0},{"$f":"(((AAMC_Raw_Data_for_FY22[[#This Row],[75th]]-AAMC_Raw_Data_for_FY22[[#This Row],[Median]])/25)*35) + AAMC_Raw_Data_for_FY22[[#This Row],[Median]]","v":0},{"$f":"(((AAMC_Raw_Data_for_FY22[[#This Row],[75th]]-AAMC_Raw_Data_for_FY22[[#This Row],[Median]])/25)*40) + AAMC_Raw_Data_for_FY22[[#This Row],[Median]]","v":0}]
[{"$f":"AAMC_Raw_Data_for_FY22[[#This Row],[Source]]&AAMC_Raw_Data_for_FY22[[#This Row],[Type]]&AAMC_Raw_Data_for_FY22[[#This Row],[School Subset]]&AAMC_Raw_Data_for_FY22[[#This Row],[Rank]]&AAMC_Raw_Data_for_FY22[[#This Row],[Degree]]&AAMC_Raw_Data_for_FY22[[#This Row],[Department / Specialty]]&\"L\"","v":"AAMCAcademicPrivateAssistantPhDThoracic & Cardiovascular SurgeryL"},"Thoracic & Cardiovascular Surgery",4,"AAMC","Academic","Private","Assistant","PhD","2021-2022",70205,{"$f":"(((AAMC_Raw_Data_for_FY22[[#This Row],[Median]]-AAMC_Raw_Data_for_FY22[[#This Row],[25th]])/25)*5) + AAMC_Raw_Data_for_FY22[[#This Row],[25th]]","v":75038.2},{"$f":"(((AAMC_Raw_Data_for_FY22[[#This Row],[Median]]-AAMC_Raw_Data_for_FY22[[#This Row],[25th]])/25)*10) + AAMC_Raw_Data_for_FY22[[#This Row],[25th]]","v":79871.399999999994},{"$f":"(((AAMC_Raw_Data_for_FY22[[#This Row],[Median]]-AAMC_Raw_Data_for_FY22[[#This Row],[25th]])/25)*15) + AAMC_Raw_Data_for_FY22[[#This Row],[25th]]","v":84704.6},{"$f":"(((AAMC_Raw_Data_for_FY22[[#This Row],[Median]]-AAMC_Raw_Data_for_FY22[[#This Row],[25th]])/25)*20) + AAMC_Raw_Data_for_FY22[[#This Row],[25th]]","v":89537.8},94371,{"$f":"(((AAMC_Raw_Data_for_FY22[[#This Row],[75th]]-AAMC_Raw_Data_for_FY22[[#This Row],[Median]])/25)*5) + AAMC_Raw_Data_for_FY22[[#This Row],[Median]]","v":101372.6},{"$f":"(((AAMC_Raw_Data_for_FY22[[#This Row],[75th]]-AAMC_Raw_Data_for_FY22[[#This Row],[Median]])/25)*10) + AAMC_Raw_Data_for_FY22[[#This Row],[Median]]","v":108374.2},{"$f":"(((AAMC_Raw_Data_for_FY22[[#This Row],[75th]]-AAMC_Raw_Data_for_FY22[[#This Row],[Median]])/25)*15) + AAMC_Raw_Data_for_FY22[[#This Row],[Median]]","v":115375.8},{"$f":"(((AAMC_Raw_Data_for_FY22[[#This Row],[75th]]-AAMC_Raw_Data_for_FY22[[#This Row],[Median]])/25)*20) + AAMC_Raw_Data_for_FY22[[#This Row],[Median]]","v":122377.4},129379,{"$f":"(((AAMC_Raw_Data_for_FY22[[#This Row],[75th]]-AAMC_Raw_Data_for_FY22[[#This Row],[Median]])/25)*30) + AAMC_Raw_Data_for_FY22[[#This Row],[Median]]","v":136380.6},{"$f":"(((AAMC_Raw_Data_for_FY22[[#This Row],[75th]]-AAMC_Raw_Data_for_FY22[[#This Row],[Median]])/25)*35) + AAMC_Raw_Data_for_FY22[[#This Row],[Median]]","v":143382.20000000001},{"$f":"(((AAMC_Raw_Data_for_FY22[[#This Row],[75th]]-AAMC_Raw_Data_for_FY22[[#This Row],[Median]])/25)*40) + AAMC_Raw_Data_for_FY22[[#This Row],[Median]]","v":150383.79999999999}]
[{"$f":"AAMC_Raw_Data_for_FY22[[#This Row],[Source]]&AAMC_Raw_Data_for_FY22[[#This Row],[Type]]&AAMC_Raw_Data_for_FY22[[#This Row],[School Subset]]&AAMC_Raw_Data_for_FY22[[#This Row],[Rank]]&AAMC_Raw_Data_for_FY22[[#This Row],[Degree]]&AAMC_Raw_Data_for_FY22[[#This Row],[Department / Specialty]]&\"L\"","v":"AAMCAcademicPrivateAssociatePhDThoracic & Cardiovascular SurgeryL"},"Thoracic & Cardiovascular Surgery",3,"AAMC","Academic","Private","Associate","PhD","2021-2022",116020,{"$f":"(((AAMC_Raw_Data_for_FY22[[#This Row],[Median]]-AAMC_Raw_Data_for_FY22[[#This Row],[25th]])/25)*5) + AAMC_Raw_Data_for_FY22[[#This Row],[25th]]","v":119716},{"$f":"(((AAMC_Raw_Data_for_FY22[[#This Row],[Median]]-AAMC_Raw_Data_for_FY22[[#This Row],[25th]])/25)*10) + AAMC_Raw_Data_for_FY22[[#This Row],[25th]]","v":123412},{"$f":"(((AAMC_Raw_Data_for_FY22[[#This Row],[Median]]-AAMC_Raw_Data_for_FY22[[#This Row],[25th]])/25)*15) + AAMC_Raw_Data_for_FY22[[#This Row],[25th]]","v":127108},{"$f":"(((AAMC_Raw_Data_for_FY22[[#This Row],[Median]]-AAMC_Raw_Data_for_FY22[[#This Row],[25th]])/25)*20) + AAMC_Raw_Data_for_FY22[[#This Row],[25th]]","v":130804},134500,{"$f":"(((AAMC_Raw_Data_for_FY22[[#This Row],[75th]]-AAMC_Raw_Data_for_FY22[[#This Row],[Median]])/25)*5) + AAMC_Raw_Data_for_FY22[[#This Row],[Median]]","v":138107.20000000001},{"$f":"(((AAMC_Raw_Data_for_FY22[[#This Row],[75th]]-AAMC_Raw_Data_for_FY22[[#This Row],[Median]])/25)*10) + AAMC_Raw_Data_for_FY22[[#This Row],[Median]]","v":141714.4},{"$f":"(((AAMC_Raw_Data_for_FY22[[#This Row],[75th]]-AAMC_Raw_Data_for_FY22[[#This Row],[Median]])/25)*15) + AAMC_Raw_Data_for_FY22[[#This Row],[Median]]","v":145321.60000000001},{"$f":"(((AAMC_Raw_Data_for_FY22[[#This Row],[75th]]-AAMC_Raw_Data_for_FY22[[#This Row],[Median]])/25)*20) + AAMC_Raw_Data_for_FY22[[#This Row],[Median]]","v":148928.79999999999},152536,{"$f":"(((AAMC_Raw_Data_for_FY22[[#This Row],[75th]]-AAMC_Raw_Data_for_FY22[[#This Row],[Median]])/25)*30) + AAMC_Raw_Data_for_FY22[[#This Row],[Median]]","v":156143.20000000001},{"$f":"(((AAMC_Raw_Data_for_FY22[[#This Row],[75th]]-AAMC_Raw_Data_for_FY22[[#This Row],[Median]])/25)*35) + AAMC_Raw_Data_for_FY22[[#This Row],[Median]]","v":159750.39999999999},{"$f":"(((AAMC_Raw_Data_for_FY22[[#This Row],[75th]]-AAMC_Raw_Data_for_FY22[[#This Row],[Median]])/25)*40) + AAMC_Raw_Data_for_FY22[[#This Row],[Median]]","v":163357.6}]
[{"$f":"AAMC_Raw_Data_for_FY22[[#This Row],[Source]]&AAMC_Raw_Data_for_FY22[[#This Row],[Type]]&AAMC_Raw_Data_for_FY22[[#This Row],[School Subset]]&AAMC_Raw_Data_for_FY22[[#This Row],[Rank]]&AAMC_Raw_Data_for_FY22[[#This Row],[Degree]]&AAMC_Raw_Data_for_FY22[[#This Row],[Department / Specialty]]&\"L\"","v":"AAMCAcademicPrivateProfessorPhDThoracic & Cardiovascular SurgeryL"},"Thoracic & Cardiovascular Surgery",2,"AAMC","Academic","Private","Professor","PhD","2021-2022",167059,{"$f":"(((AAMC_Raw_Data_for_FY22[[#This Row],[Median]]-AAMC_Raw_Data_for_FY22[[#This Row],[25th]])/25)*5) + AAMC_Raw_Data_for_FY22[[#This Row],[25th]]","v":175882.4},{"$f":"(((AAMC_Raw_Data_for_FY22[[#This Row],[Median]]-AAMC_Raw_Data_for_FY22[[#This Row],[25th]])/25)*10) + AAMC_Raw_Data_for_FY22[[#This Row],[25th]]","v":184705.8},{"$f":"(((AAMC_Raw_Data_for_FY22[[#This Row],[Median]]-AAMC_Raw_Data_for_FY22[[#This Row],[25th]])/25)*15) + AAMC_Raw_Data_for_FY22[[#This Row],[25th]]","v":193529.2},{"$f":"(((AAMC_Raw_Data_for_FY22[[#This Row],[Median]]-AAMC_Raw_Data_for_FY22[[#This Row],[25th]])/25)*20) + AAMC_Raw_Data_for_FY22[[#This Row],[25th]]","v":202352.6},211176,{"$f":"(((AAMC_Raw_Data_for_FY22[[#This Row],[75th]]-AAMC_Raw_Data_for_FY22[[#This Row],[Median]])/25)*5) + AAMC_Raw_Data_for_FY22[[#This Row],[Median]]","v":223424.6},{"$f":"(((AAMC_Raw_Data_for_FY22[[#This Row],[75th]]-AAMC_Raw_Data_for_FY22[[#This Row],[Median]])/25)*10) + AAMC_Raw_Data_for_FY22[[#This Row],[Median]]","v":235673.2},{"$f":"(((AAMC_Raw_Data_for_FY22[[#This Row],[75th]]-AAMC_Raw_Data_for_FY22[[#This Row],[Median]])/25)*15) + AAMC_Raw_Data_for_FY22[[#This Row],[Median]]","v":247921.8},{"$f":"(((AAMC_Raw_Data_for_FY22[[#This Row],[75th]]-AAMC_Raw_Data_for_FY22[[#This Row],[Median]])/25)*20) + AAMC_Raw_Data_for_FY22[[#This Row],[Median]]","v":260170.4},272419,{"$f":"(((AAMC_Raw_Data_for_FY22[[#This Row],[75th]]-AAMC_Raw_Data_for_FY22[[#This Row],[Median]])/25)*30) + AAMC_Raw_Data_for_FY22[[#This Row],[Median]]","v":284667.59999999998},{"$f":"(((AAMC_Raw_Data_for_FY22[[#This Row],[75th]]-AAMC_Raw_Data_for_FY22[[#This Row],[Median]])/25)*35) + AAMC_Raw_Data_for_FY22[[#This Row],[Median]]","v":296916.2},{"$f":"(((AAMC_Raw_Data_for_FY22[[#This Row],[75th]]-AAMC_Raw_Data_for_FY22[[#This Row],[Median]])/25)*40) + AAMC_Raw_Data_for_FY22[[#This Row],[Median]]","v":309164.79999999999}]
[{"$f":"AAMC_Raw_Data_for_FY22[[#This Row],[Source]]&AAMC_Raw_Data_for_FY22[[#This Row],[Type]]&AAMC_Raw_Data_for_FY22[[#This Row],[School Subset]]&AAMC_Raw_Data_for_FY22[[#This Row],[Rank]]&AAMC_Raw_Data_for_FY22[[#This Row],[Degree]]&AAMC_Raw_Data_for_FY22[[#This Row],[Department / Specialty]]&\"L\"","v":"AAMCAcademicPrivateInstructorPhDTransplant SurgeryL"},"Transplant Surgery",5,"AAMC","Academic","Private","Instructor","PhD","2021-2022",null,{"$f":"(((AAMC_Raw_Data_for_FY22[[#This Row],[Median]]-AAMC_Raw_Data_for_FY22[[#This Row],[25th]])/25)*5) + AAMC_Raw_Data_for_FY22[[#This Row],[25th]]","v":0},{"$f":"(((AAMC_Raw_Data_for_FY22[[#This Row],[Median]]-AAMC_Raw_Data_for_FY22[[#This Row],[25th]])/25)*10) + AAMC_Raw_Data_for_FY22[[#This Row],[25th]]","v":0},{"$f":"(((AAMC_Raw_Data_for_FY22[[#This Row],[Median]]-AAMC_Raw_Data_for_FY22[[#This Row],[25th]])/25)*15) + AAMC_Raw_Data_for_FY22[[#This Row],[25th]]","v":0},{"$f":"(((AAMC_Raw_Data_for_FY22[[#This Row],[Median]]-AAMC_Raw_Data_for_FY22[[#This Row],[25th]])/25)*20) + AAMC_Raw_Data_for_FY22[[#This Row],[25th]]","v":0},null,{"$f":"(((AAMC_Raw_Data_for_FY22[[#This Row],[75th]]-AAMC_Raw_Data_for_FY22[[#This Row],[Median]])/25)*5) + AAMC_Raw_Data_for_FY22[[#This Row],[Median]]","v":0},{"$f":"(((AAMC_Raw_Data_for_FY22[[#This Row],[75th]]-AAMC_Raw_Data_for_FY22[[#This Row],[Median]])/25)*10) + AAMC_Raw_Data_for_FY22[[#This Row],[Median]]","v":0},{"$f":"(((AAMC_Raw_Data_for_FY22[[#This Row],[75th]]-AAMC_Raw_Data_for_FY22[[#This Row],[Median]])/25)*15) + AAMC_Raw_Data_for_FY22[[#This Row],[Median]]","v":0},{"$f":"(((AAMC_Raw_Data_for_FY22[[#This Row],[75th]]-AAMC_Raw_Data_for_FY22[[#This Row],[Median]])/25)*20) + AAMC_Raw_Data_for_FY22[[#This Row],[Median]]","v":0},null,{"$f":"(((AAMC_Raw_Data_for_FY22[[#This Row],[75th]]-AAMC_Raw_Data_for_FY22[[#This Row],[Median]])/25)*30) + AAMC_Raw_Data_for_FY22[[#This Row],[Median]]","v":0},{"$f":"(((AAMC_Raw_Data_for_FY22[[#This Row],[75th]]-AAMC_Raw_Data_for_FY22[[#This Row],[Median]])/25)*35) + AAMC_Raw_Data_for_FY22[[#This Row],[Median]]","v":0},{"$f":"(((AAMC_Raw_Data_for_FY22[[#This Row],[75th]]-AAMC_Raw_Data_for_FY22[[#This Row],[Median]])/25)*40) + AAMC_Raw_Data_for_FY22[[#This Row],[Median]]","v":0}]
[{"$f":"AAMC_Raw_Data_for_FY22[[#This Row],[Source]]&AAMC_Raw_Data_for_FY22[[#This Row],[Type]]&AAMC_Raw_Data_for_FY22[[#This Row],[School Subset]]&AAMC_Raw_Data_for_FY22[[#This Row],[Rank]]&AAMC_Raw_Data_for_FY22[[#This Row],[Degree]]&AAMC_Raw_Data_for_FY22[[#This Row],[Department / Specialty]]&\"L\"","v":"AAMCAcademicPrivateAssistantPhDTransplant SurgeryL"},"Transplant Surgery",4,"AAMC","Academic","Private","Assistant","PhD","2021-2022",84650,{"$f":"(((AAMC_Raw_Data_for_FY22[[#This Row],[Median]]-AAMC_Raw_Data_for_FY22[[#This Row],[25th]])/25)*5) + AAMC_Raw_Data_for_FY22[[#This Row],[25th]]","v":88943.2},{"$f":"(((AAMC_Raw_Data_for_FY22[[#This Row],[Median]]-AAMC_Raw_Data_for_FY22[[#This Row],[25th]])/25)*10) + AAMC_Raw_Data_for_FY22[[#This Row],[25th]]","v":93236.4},{"$f":"(((AAMC_Raw_Data_for_FY22[[#This Row],[Median]]-AAMC_Raw_Data_for_FY22[[#This Row],[25th]])/25)*15) + AAMC_Raw_Data_for_FY22[[#This Row],[25th]]","v":97529.600000000006},{"$f":"(((AAMC_Raw_Data_for_FY22[[#This Row],[Median]]-AAMC_Raw_Data_for_FY22[[#This Row],[25th]])/25)*20) + AAMC_Raw_Data_for_FY22[[#This Row],[25th]]","v":101822.8},106116,{"$f":"(((AAMC_Raw_Data_for_FY22[[#This Row],[75th]]-AAMC_Raw_Data_for_FY22[[#This Row],[Median]])/25)*5) + AAMC_Raw_Data_for_FY22[[#This Row],[Median]]","v":109322.8},{"$f":"(((AAMC_Raw_Data_for_FY22[[#This Row],[75th]]-AAMC_Raw_Data_for_FY22[[#This Row],[Median]])/25)*10) + AAMC_Raw_Data_for_FY22[[#This Row],[Median]]","v":112529.60000000001},{"$f":"(((AAMC_Raw_Data_for_FY22[[#This Row],[75th]]-AAMC_Raw_Data_for_FY22[[#This Row],[Median]])/25)*15) + AAMC_Raw_Data_for_FY22[[#This Row],[Median]]","v":115736.4},{"$f":"(((AAMC_Raw_Data_for_FY22[[#This Row],[75th]]-AAMC_Raw_Data_for_FY22[[#This Row],[Median]])/25)*20) + AAMC_Raw_Data_for_FY22[[#This Row],[Median]]","v":118943.2},122150,{"$f":"(((AAMC_Raw_Data_for_FY22[[#This Row],[75th]]-AAMC_Raw_Data_for_FY22[[#This Row],[Median]])/25)*30) + AAMC_Raw_Data_for_FY22[[#This Row],[Median]]","v":125356.8},{"$f":"(((AAMC_Raw_Data_for_FY22[[#This Row],[75th]]-AAMC_Raw_Data_for_FY22[[#This Row],[Median]])/25)*35) + AAMC_Raw_Data_for_FY22[[#This Row],[Median]]","v":128563.6},{"$f":"(((AAMC_Raw_Data_for_FY22[[#This Row],[75th]]-AAMC_Raw_Data_for_FY22[[#This Row],[Median]])/25)*40) + AAMC_Raw_Data_for_FY22[[#This Row],[Median]]","v":131770.4}]
[{"$f":"AAMC_Raw_Data_for_FY22[[#This Row],[Source]]&AAMC_Raw_Data_for_FY22[[#This Row],[Type]]&AAMC_Raw_Data_for_FY22[[#This Row],[School Subset]]&AAMC_Raw_Data_for_FY22[[#This Row],[Rank]]&AAMC_Raw_Data_for_FY22[[#This Row],[Degree]]&AAMC_Raw_Data_for_FY22[[#This Row],[Department / Specialty]]&\"L\"","v":"AAMCAcademicPrivateAssociatePhDTransplant SurgeryL"},"Transplant Surgery",3,"AAMC","Academic","Private","Associate","PhD","2021-2022",null,{"$f":"(((AAMC_Raw_Data_for_FY22[[#This Row],[Median]]-AAMC_Raw_Data_for_FY22[[#This Row],[25th]])/25)*5) + AAMC_Raw_Data_for_FY22[[#This Row],[25th]]","v":0},{"$f":"(((AAMC_Raw_Data_for_FY22[[#This Row],[Median]]-AAMC_Raw_Data_for_FY22[[#This Row],[25th]])/25)*10) + AAMC_Raw_Data_for_FY22[[#This Row],[25th]]","v":0},{"$f":"(((AAMC_Raw_Data_for_FY22[[#This Row],[Median]]-AAMC_Raw_Data_for_FY22[[#This Row],[25th]])/25)*15) + AAMC_Raw_Data_for_FY22[[#This Row],[25th]]","v":0},{"$f":"(((AAMC_Raw_Data_for_FY22[[#This Row],[Median]]-AAMC_Raw_Data_for_FY22[[#This Row],[25th]])/25)*20) + AAMC_Raw_Data_for_FY22[[#This Row],[25th]]","v":0},null,{"$f":"(((AAMC_Raw_Data_for_FY22[[#This Row],[75th]]-AAMC_Raw_Data_for_FY22[[#This Row],[Median]])/25)*5) + AAMC_Raw_Data_for_FY22[[#This Row],[Median]]","v":0},{"$f":"(((AAMC_Raw_Data_for_FY22[[#This Row],[75th]]-AAMC_Raw_Data_for_FY22[[#This Row],[Median]])/25)*10) + AAMC_Raw_Data_for_FY22[[#This Row],[Median]]","v":0},{"$f":"(((AAMC_Raw_Data_for_FY22[[#This Row],[75th]]-AAMC_Raw_Data_for_FY22[[#This Row],[Median]])/25)*15) + AAMC_Raw_Data_for_FY22[[#This Row],[Median]]","v":0},{"$f":"(((AAMC_Raw_Data_for_FY22[[#This Row],[75th]]-AAMC_Raw_Data_for_FY22[[#This Row],[Median]])/25)*20) + AAMC_Raw_Data_for_FY22[[#This Row],[Median]]","v":0},null,{"$f":"(((AAMC_Raw_Data_for_FY22[[#This Row],[75th]]-AAMC_Raw_Data_for_FY22[[#This Row],[Median]])/25)*30) + AAMC_Raw_Data_for_FY22[[#This Row],[Median]]","v":0},{"$f":"(((AAMC_Raw_Data_for_FY22[[#This Row],[75th]]-AAMC_Raw_Data_for_FY22[[#This Row],[Median]])/25)*35) + AAMC_Raw_Data_for_FY22[[#This Row],[Median]]","v":0},{"$f":"(((AAMC_Raw_Data_for_FY22[[#This Row],[75th]]-AAMC_Raw_Data_for_FY22[[#This Row],[Median]])/25)*40) + AAMC_Raw_Data_for_FY22[[#This Row],[Median]]","v":0}]
[{"$f":"AAMC_Raw_Data_for_FY22[[#This Row],[Source]]&AAMC_Raw_Data_for_FY22[[#This Row],[Type]]&AAMC_Raw_Data_for_FY22[[#This Row],[School Subset]]&AAMC_Raw_Data_for_FY22[[#This Row],[Rank]]&AAMC_Raw_Data_for_FY22[[#This Row],[Degree]]&AAMC_Raw_Data_for_FY22[[#This Row],[Department / Specialty]]&\"L\"","v":"AAMCAcademicPrivateProfessorPhDTransplant SurgeryL"},"Transplant Surgery",2,"AAMC","Academic","Private","Professor","PhD","2021-2022",214246,{"$f":"(((AAMC_Raw_Data_for_FY22[[#This Row],[Median]]-AAMC_Raw_Data_for_FY22[[#This Row],[25th]])/25)*5) + AAMC_Raw_Data_for_FY22[[#This Row],[25th]]","v":214740.6},{"$f":"(((AAMC_Raw_Data_for_FY22[[#This Row],[Median]]-AAMC_Raw_Data_for_FY22[[#This Row],[25th]])/25)*10) + AAMC_Raw_Data_for_FY22[[#This Row],[25th]]","v":215235.20000000001},{"$f":"(((AAMC_Raw_Data_for_FY22[[#This Row],[Median]]-AAMC_Raw_Data_for_FY22[[#This Row],[25th]])/25)*15) + AAMC_Raw_Data_for_FY22[[#This Row],[25th]]","v":215729.8},{"$f":"(((AAMC_Raw_Data_for_FY22[[#This Row],[Median]]-AAMC_Raw_Data_for_FY22[[#This Row],[25th]])/25)*20) + AAMC_Raw_Data_for_FY22[[#This Row],[25th]]","v":216224.4},216719,{"$f":"(((AAMC_Raw_Data_for_FY22[[#This Row],[75th]]-AAMC_Raw_Data_for_FY22[[#This Row],[Median]])/25)*5) + AAMC_Raw_Data_for_FY22[[#This Row],[Median]]","v":221942.2},{"$f":"(((AAMC_Raw_Data_for_FY22[[#This Row],[75th]]-AAMC_Raw_Data_for_FY22[[#This Row],[Median]])/25)*10) + AAMC_Raw_Data_for_FY22[[#This Row],[Median]]","v":227165.4},{"$f":"(((AAMC_Raw_Data_for_FY22[[#This Row],[75th]]-AAMC_Raw_Data_for_FY22[[#This Row],[Median]])/25)*15) + AAMC_Raw_Data_for_FY22[[#This Row],[Median]]","v":232388.6},{"$f":"(((AAMC_Raw_Data_for_FY22[[#This Row],[75th]]-AAMC_Raw_Data_for_FY22[[#This Row],[Median]])/25)*20) + AAMC_Raw_Data_for_FY22[[#This Row],[Median]]","v":237611.8},242835,{"$f":"(((AAMC_Raw_Data_for_FY22[[#This Row],[75th]]-AAMC_Raw_Data_for_FY22[[#This Row],[Median]])/25)*30) + AAMC_Raw_Data_for_FY22[[#This Row],[Median]]","v":248058.2},{"$f":"(((AAMC_Raw_Data_for_FY22[[#This Row],[75th]]-AAMC_Raw_Data_for_FY22[[#This Row],[Median]])/25)*35) + AAMC_Raw_Data_for_FY22[[#This Row],[Median]]","v":253281.4},{"$f":"(((AAMC_Raw_Data_for_FY22[[#This Row],[75th]]-AAMC_Raw_Data_for_FY22[[#This Row],[Median]])/25)*40) + AAMC_Raw_Data_for_FY22[[#This Row],[Median]]","v":258504.6}]
[{"$f":"AAMC_Raw_Data_for_FY22[[#This Row],[Source]]&AAMC_Raw_Data_for_FY22[[#This Row],[Type]]&AAMC_Raw_Data_for_FY22[[#This Row],[School Subset]]&AAMC_Raw_Data_for_FY22[[#This Row],[Rank]]&AAMC_Raw_Data_for_FY22[[#This Row],[Degree]]&AAMC_Raw_Data_for_FY22[[#This Row],[Department / Specialty]]&\"L\"","v":"AAMCAcademicPrivateAssistantPhDTrauma/Critical Care SurgeryL"},"Trauma/Critical Care Surgery",4,"AAMC","Academic","Private","Assistant","PhD","2021-2022",null,{"$f":"(((AAMC_Raw_Data_for_FY22[[#This Row],[Median]]-AAMC_Raw_Data_for_FY22[[#This Row],[25th]])/25)*5) + AAMC_Raw_Data_for_FY22[[#This Row],[25th]]","v":0},{"$f":"(((AAMC_Raw_Data_for_FY22[[#This Row],[Median]]-AAMC_Raw_Data_for_FY22[[#This Row],[25th]])/25)*10) + AAMC_Raw_Data_for_FY22[[#This Row],[25th]]","v":0},{"$f":"(((AAMC_Raw_Data_for_FY22[[#This Row],[Median]]-AAMC_Raw_Data_for_FY22[[#This Row],[25th]])/25)*15) + AAMC_Raw_Data_for_FY22[[#This Row],[25th]]","v":0},{"$f":"(((AAMC_Raw_Data_for_FY22[[#This Row],[Median]]-AAMC_Raw_Data_for_FY22[[#This Row],[25th]])/25)*20) + AAMC_Raw_Data_for_FY22[[#This Row],[25th]]","v":0},null,{"$f":"(((AAMC_Raw_Data_for_FY22[[#This Row],[75th]]-AAMC_Raw_Data_for_FY22[[#This Row],[Median]])/25)*5) + AAMC_Raw_Data_for_FY22[[#This Row],[Median]]","v":0},{"$f":"(((AAMC_Raw_Data_for_FY22[[#This Row],[75th]]-AAMC_Raw_Data_for_FY22[[#This Row],[Median]])/25)*10) + AAMC_Raw_Data_for_FY22[[#This Row],[Median]]","v":0},{"$f":"(((AAMC_Raw_Data_for_FY22[[#This Row],[75th]]-AAMC_Raw_Data_for_FY22[[#This Row],[Median]])/25)*15) + AAMC_Raw_Data_for_FY22[[#This Row],[Median]]","v":0},{"$f":"(((AAMC_Raw_Data_for_FY22[[#This Row],[75th]]-AAMC_Raw_Data_for_FY22[[#This Row],[Median]])/25)*20) + AAMC_Raw_Data_for_FY22[[#This Row],[Median]]","v":0},null,{"$f":"(((AAMC_Raw_Data_for_FY22[[#This Row],[75th]]-AAMC_Raw_Data_for_FY22[[#This Row],[Median]])/25)*30) + AAMC_Raw_Data_for_FY22[[#This Row],[Median]]","v":0},{"$f":"(((AAMC_Raw_Data_for_FY22[[#This Row],[75th]]-AAMC_Raw_Data_for_FY22[[#This Row],[Median]])/25)*35) + AAMC_Raw_Data_for_FY22[[#This Row],[Median]]","v":0},{"$f":"(((AAMC_Raw_Data_for_FY22[[#This Row],[75th]]-AAMC_Raw_Data_for_FY22[[#This Row],[Median]])/25)*40) + AAMC_Raw_Data_for_FY22[[#This Row],[Median]]","v":0}]
[{"$f":"AAMC_Raw_Data_for_FY22[[#This Row],[Source]]&AAMC_Raw_Data_for_FY22[[#This Row],[Type]]&AAMC_Raw_Data_for_FY22[[#This Row],[School Subset]]&AAMC_Raw_Data_for_FY22[[#This Row],[Rank]]&AAMC_Raw_Data_for_FY22[[#This Row],[Degree]]&AAMC_Raw_Data_for_FY22[[#This Row],[Department / Specialty]]&\"L\"","v":"AAMCAcademicPrivateProfessorPhDTrauma/Critical Care SurgeryL"},"Trauma/Critical Care Surgery",2,"AAMC","Academic","Private","Professor","PhD","2021-2022",null,{"$f":"(((AAMC_Raw_Data_for_FY22[[#This Row],[Median]]-AAMC_Raw_Data_for_FY22[[#This Row],[25th]])/25)*5) + AAMC_Raw_Data_for_FY22[[#This Row],[25th]]","v":0},{"$f":"(((AAMC_Raw_Data_for_FY22[[#This Row],[Median]]-AAMC_Raw_Data_for_FY22[[#This Row],[25th]])/25)*10) + AAMC_Raw_Data_for_FY22[[#This Row],[25th]]","v":0},{"$f":"(((AAMC_Raw_Data_for_FY22[[#This Row],[Median]]-AAMC_Raw_Data_for_FY22[[#This Row],[25th]])/25)*15) + AAMC_Raw_Data_for_FY22[[#This Row],[25th]]","v":0},{"$f":"(((AAMC_Raw_Data_for_FY22[[#This Row],[Median]]-AAMC_Raw_Data_for_FY22[[#This Row],[25th]])/25)*20) + AAMC_Raw_Data_for_FY22[[#This Row],[25th]]","v":0},null,{"$f":"(((AAMC_Raw_Data_for_FY22[[#This Row],[75th]]-AAMC_Raw_Data_for_FY22[[#This Row],[Median]])/25)*5) + AAMC_Raw_Data_for_FY22[[#This Row],[Median]]","v":0},{"$f":"(((AAMC_Raw_Data_for_FY22[[#This Row],[75th]]-AAMC_Raw_Data_for_FY22[[#This Row],[Median]])/25)*10) + AAMC_Raw_Data_for_FY22[[#This Row],[Median]]","v":0},{"$f":"(((AAMC_Raw_Data_for_FY22[[#This Row],[75th]]-AAMC_Raw_Data_for_FY22[[#This Row],[Median]])/25)*15) + AAMC_Raw_Data_for_FY22[[#This Row],[Median]]","v":0},{"$f":"(((AAMC_Raw_Data_for_FY22[[#This Row],[75th]]-AAMC_Raw_Data_for_FY22[[#This Row],[Median]])/25)*20) + AAMC_Raw_Data_for_FY22[[#This Row],[Median]]","v":0},null,{"$f":"(((AAMC_Raw_Data_for_FY22[[#This Row],[75th]]-AAMC_Raw_Data_for_FY22[[#This Row],[Median]])/25)*30) + AAMC_Raw_Data_for_FY22[[#This Row],[Median]]","v":0},{"$f":"(((AAMC_Raw_Data_for_FY22[[#This Row],[75th]]-AAMC_Raw_Data_for_FY22[[#This Row],[Median]])/25)*35) + AAMC_Raw_Data_for_FY22[[#This Row],[Median]]","v":0},{"$f":"(((AAMC_Raw_Data_for_FY22[[#This Row],[75th]]-AAMC_Raw_Data_for_FY22[[#This Row],[Median]])/25)*40) + AAMC_Raw_Data_for_FY22[[#This Row],[Median]]","v":0}]
[{"$f":"AAMC_Raw_Data_for_FY22[[#This Row],[Source]]&AAMC_Raw_Data_for_FY22[[#This Row],[Type]]&AAMC_Raw_Data_for_FY22[[#This Row],[School Subset]]&AAMC_Raw_Data_for_FY22[[#This Row],[Rank]]&AAMC_Raw_Data_for_FY22[[#This Row],[Degree]]&AAMC_Raw_Data_for_FY22[[#This Row],[Department / Specialty]]&\"L\"","v":"AAMCAcademicPrivateInstructorPhDUrologyL"},"Urology",5,"AAMC","Academic","Private","Instructor","PhD","2021-2022",70000,{"$f":"(((AAMC_Raw_Data_for_FY22[[#This Row],[Median]]-AAMC_Raw_Data_for_FY22[[#This Row],[25th]])/25)*5) + AAMC_Raw_Data_for_FY22[[#This Row],[25th]]","v":70675.399999999994},{"$f":"(((AAMC_Raw_Data_for_FY22[[#This Row],[Median]]-AAMC_Raw_Data_for_FY22[[#This Row],[25th]])/25)*10) + AAMC_Raw_Data_for_FY22[[#This Row],[25th]]","v":71350.8},{"$f":"(((AAMC_Raw_Data_for_FY22[[#This Row],[Median]]-AAMC_Raw_Data_for_FY22[[#This Row],[25th]])/25)*15) + AAMC_Raw_Data_for_FY22[[#This Row],[25th]]","v":72026.2},{"$f":"(((AAMC_Raw_Data_for_FY22[[#This Row],[Median]]-AAMC_Raw_Data_for_FY22[[#This Row],[25th]])/25)*20) + AAMC_Raw_Data_for_FY22[[#This Row],[25th]]","v":72701.600000000006},73377,{"$f":"(((AAMC_Raw_Data_for_FY22[[#This Row],[75th]]-AAMC_Raw_Data_for_FY22[[#This Row],[Median]])/25)*5) + AAMC_Raw_Data_for_FY22[[#This Row],[Median]]","v":79511.600000000006},{"$f":"(((AAMC_Raw_Data_for_FY22[[#This Row],[75th]]-AAMC_Raw_Data_for_FY22[[#This Row],[Median]])/25)*10) + AAMC_Raw_Data_for_FY22[[#This Row],[Median]]","v":85646.2},{"$f":"(((AAMC_Raw_Data_for_FY22[[#This Row],[75th]]-AAMC_Raw_Data_for_FY22[[#This Row],[Median]])/25)*15) + AAMC_Raw_Data_for_FY22[[#This Row],[Median]]","v":91780.800000000003},{"$f":"(((AAMC_Raw_Data_for_FY22[[#This Row],[75th]]-AAMC_Raw_Data_for_FY22[[#This Row],[Median]])/25)*20) + AAMC_Raw_Data_for_FY22[[#This Row],[Median]]","v":97915.4},104050,{"$f":"(((AAMC_Raw_Data_for_FY22[[#This Row],[75th]]-AAMC_Raw_Data_for_FY22[[#This Row],[Median]])/25)*30) + AAMC_Raw_Data_for_FY22[[#This Row],[Median]]","v":110184.6},{"$f":"(((AAMC_Raw_Data_for_FY22[[#This Row],[75th]]-AAMC_Raw_Data_for_FY22[[#This Row],[Median]])/25)*35) + AAMC_Raw_Data_for_FY22[[#This Row],[Median]]","v":116319.20000000001},{"$f":"(((AAMC_Raw_Data_for_FY22[[#This Row],[75th]]-AAMC_Raw_Data_for_FY22[[#This Row],[Median]])/25)*40) + AAMC_Raw_Data_for_FY22[[#This Row],[Median]]","v":122453.8}]
[{"$f":"AAMC_Raw_Data_for_FY22[[#This Row],[Source]]&AAMC_Raw_Data_for_FY22[[#This Row],[Type]]&AAMC_Raw_Data_for_FY22[[#This Row],[School Subset]]&AAMC_Raw_Data_for_FY22[[#This Row],[Rank]]&AAMC_Raw_Data_for_FY22[[#This Row],[Degree]]&AAMC_Raw_Data_for_FY22[[#This Row],[Department / Specialty]]&\"L\"","v":"AAMCAcademicPrivateAssistantPhDUrologyL"},"Urology",4,"AAMC","Academic","Private","Assistant","PhD","2021-2022",88336,{"$f":"(((AAMC_Raw_Data_for_FY22[[#This Row],[Median]]-AAMC_Raw_Data_for_FY22[[#This Row],[25th]])/25)*5) + AAMC_Raw_Data_for_FY22[[#This Row],[25th]]","v":93301.4},{"$f":"(((AAMC_Raw_Data_for_FY22[[#This Row],[Median]]-AAMC_Raw_Data_for_FY22[[#This Row],[25th]])/25)*10) + AAMC_Raw_Data_for_FY22[[#This Row],[25th]]","v":98266.8},{"$f":"(((AAMC_Raw_Data_for_FY22[[#This Row],[Median]]-AAMC_Raw_Data_for_FY22[[#This Row],[25th]])/25)*15) + AAMC_Raw_Data_for_FY22[[#This Row],[25th]]","v":103232.2},{"$f":"(((AAMC_Raw_Data_for_FY22[[#This Row],[Median]]-AAMC_Raw_Data_for_FY22[[#This Row],[25th]])/25)*20) + AAMC_Raw_Data_for_FY22[[#This Row],[25th]]","v":108197.6},113163,{"$f":"(((AAMC_Raw_Data_for_FY22[[#This Row],[75th]]-AAMC_Raw_Data_for_FY22[[#This Row],[Median]])/25)*5) + AAMC_Raw_Data_for_FY22[[#This Row],[Median]]","v":119926},{"$f":"(((AAMC_Raw_Data_for_FY22[[#This Row],[75th]]-AAMC_Raw_Data_for_FY22[[#This Row],[Median]])/25)*10) + AAMC_Raw_Data_for_FY22[[#This Row],[Median]]","v":126689},{"$f":"(((AAMC_Raw_Data_for_FY22[[#This Row],[75th]]-AAMC_Raw_Data_for_FY22[[#This Row],[Median]])/25)*15) + AAMC_Raw_Data_for_FY22[[#This Row],[Median]]","v":133452},{"$f":"(((AAMC_Raw_Data_for_FY22[[#This Row],[75th]]-AAMC_Raw_Data_for_FY22[[#This Row],[Median]])/25)*20) + AAMC_Raw_Data_for_FY22[[#This Row],[Median]]","v":140215},146978,{"$f":"(((AAMC_Raw_Data_for_FY22[[#This Row],[75th]]-AAMC_Raw_Data_for_FY22[[#This Row],[Median]])/25)*30) + AAMC_Raw_Data_for_FY22[[#This Row],[Median]]","v":153741},{"$f":"(((AAMC_Raw_Data_for_FY22[[#This Row],[75th]]-AAMC_Raw_Data_for_FY22[[#This Row],[Median]])/25)*35) + AAMC_Raw_Data_for_FY22[[#This Row],[Median]]","v":160504},{"$f":"(((AAMC_Raw_Data_for_FY22[[#This Row],[75th]]-AAMC_Raw_Data_for_FY22[[#This Row],[Median]])/25)*40) + AAMC_Raw_Data_for_FY22[[#This Row],[Median]]","v":167267}]
[{"$f":"AAMC_Raw_Data_for_FY22[[#This Row],[Source]]&AAMC_Raw_Data_for_FY22[[#This Row],[Type]]&AAMC_Raw_Data_for_FY22[[#This Row],[School Subset]]&AAMC_Raw_Data_for_FY22[[#This Row],[Rank]]&AAMC_Raw_Data_for_FY22[[#This Row],[Degree]]&AAMC_Raw_Data_for_FY22[[#This Row],[Department / Specialty]]&\"L\"","v":"AAMCAcademicPrivateAssociatePhDUrologyL"},"Urology",3,"AAMC","Academic","Private","Associate","PhD","2021-2022",165098,{"$f":"(((AAMC_Raw_Data_for_FY22[[#This Row],[Median]]-AAMC_Raw_Data_for_FY22[[#This Row],[25th]])/25)*5) + AAMC_Raw_Data_for_FY22[[#This Row],[25th]]","v":168078.4},{"$f":"(((AAMC_Raw_Data_for_FY22[[#This Row],[Median]]-AAMC_Raw_Data_for_FY22[[#This Row],[25th]])/25)*10) + AAMC_Raw_Data_for_FY22[[#This Row],[25th]]","v":171058.8},{"$f":"(((AAMC_Raw_Data_for_FY22[[#This Row],[Median]]-AAMC_Raw_Data_for_FY22[[#This Row],[25th]])/25)*15) + AAMC_Raw_Data_for_FY22[[#This Row],[25th]]","v":174039.2},{"$f":"(((AAMC_Raw_Data_for_FY22[[#This Row],[Median]]-AAMC_Raw_Data_for_FY22[[#This Row],[25th]])/25)*20) + AAMC_Raw_Data_for_FY22[[#This Row],[25th]]","v":177019.6},180000,{"$f":"(((AAMC_Raw_Data_for_FY22[[#This Row],[75th]]-AAMC_Raw_Data_for_FY22[[#This Row],[Median]])/25)*5) + AAMC_Raw_Data_for_FY22[[#This Row],[Median]]","v":180799.4},{"$f":"(((AAMC_Raw_Data_for_FY22[[#This Row],[75th]]-AAMC_Raw_Data_for_FY22[[#This Row],[Median]])/25)*10) + AAMC_Raw_Data_for_FY22[[#This Row],[Median]]","v":181598.8},{"$f":"(((AAMC_Raw_Data_for_FY22[[#This Row],[75th]]-AAMC_Raw_Data_for_FY22[[#This Row],[Median]])/25)*15) + AAMC_Raw_Data_for_FY22[[#This Row],[Median]]","v":182398.2},{"$f":"(((AAMC_Raw_Data_for_FY22[[#This Row],[75th]]-AAMC_Raw_Data_for_FY22[[#This Row],[Median]])/25)*20) + AAMC_Raw_Data_for_FY22[[#This Row],[Median]]","v":183197.6},183997,{"$f":"(((AAMC_Raw_Data_for_FY22[[#This Row],[75th]]-AAMC_Raw_Data_for_FY22[[#This Row],[Median]])/25)*30) + AAMC_Raw_Data_for_FY22[[#This Row],[Median]]","v":184796.4},{"$f":"(((AAMC_Raw_Data_for_FY22[[#This Row],[75th]]-AAMC_Raw_Data_for_FY22[[#This Row],[Median]])/25)*35) + AAMC_Raw_Data_for_FY22[[#This Row],[Median]]","v":185595.8},{"$f":"(((AAMC_Raw_Data_for_FY22[[#This Row],[75th]]-AAMC_Raw_Data_for_FY22[[#This Row],[Median]])/25)*40) + AAMC_Raw_Data_for_FY22[[#This Row],[Median]]","v":186395.2}]
[{"$f":"AAMC_Raw_Data_for_FY22[[#This Row],[Source]]&AAMC_Raw_Data_for_FY22[[#This Row],[Type]]&AAMC_Raw_Data_for_FY22[[#This Row],[School Subset]]&AAMC_Raw_Data_for_FY22[[#This Row],[Rank]]&AAMC_Raw_Data_for_FY22[[#This Row],[Degree]]&AAMC_Raw_Data_for_FY22[[#This Row],[Department / Specialty]]&\"L\"","v":"AAMCAcademicPrivateProfessorPhDUrologyL"},"Urology",2,"AAMC","Academic","Private","Professor","PhD","2021-2022",193367,{"$f":"(((AAMC_Raw_Data_for_FY22[[#This Row],[Median]]-AAMC_Raw_Data_for_FY22[[#This Row],[25th]])/25)*5) + AAMC_Raw_Data_for_FY22[[#This Row],[25th]]","v":200353.2},{"$f":"(((AAMC_Raw_Data_for_FY22[[#This Row],[Median]]-AAMC_Raw_Data_for_FY22[[#This Row],[25th]])/25)*10) + AAMC_Raw_Data_for_FY22[[#This Row],[25th]]","v":207339.4},{"$f":"(((AAMC_Raw_Data_for_FY22[[#This Row],[Median]]-AAMC_Raw_Data_for_FY22[[#This Row],[25th]])/25)*15) + AAMC_Raw_Data_for_FY22[[#This Row],[25th]]","v":214325.6},{"$f":"(((AAMC_Raw_Data_for_FY22[[#This Row],[Median]]-AAMC_Raw_Data_for_FY22[[#This Row],[25th]])/25)*20) + AAMC_Raw_Data_for_FY22[[#This Row],[25th]]","v":221311.8},228298,{"$f":"(((AAMC_Raw_Data_for_FY22[[#This Row],[75th]]-AAMC_Raw_Data_for_FY22[[#This Row],[Median]])/25)*5) + AAMC_Raw_Data_for_FY22[[#This Row],[Median]]","v":235364},{"$f":"(((AAMC_Raw_Data_for_FY22[[#This Row],[75th]]-AAMC_Raw_Data_for_FY22[[#This Row],[Median]])/25)*10) + AAMC_Raw_Data_for_FY22[[#This Row],[Median]]","v":242430},{"$f":"(((AAMC_Raw_Data_for_FY22[[#This Row],[75th]]-AAMC_Raw_Data_for_FY22[[#This Row],[Median]])/25)*15) + AAMC_Raw_Data_for_FY22[[#This Row],[Median]]","v":249496},{"$f":"(((AAMC_Raw_Data_for_FY22[[#This Row],[75th]]-AAMC_Raw_Data_for_FY22[[#This Row],[Median]])/25)*20) + AAMC_Raw_Data_for_FY22[[#This Row],[Median]]","v":256562},263628,{"$f":"(((AAMC_Raw_Data_for_FY22[[#This Row],[75th]]-AAMC_Raw_Data_for_FY22[[#This Row],[Median]])/25)*30) + AAMC_Raw_Data_for_FY22[[#This Row],[Median]]","v":270694},{"$f":"(((AAMC_Raw_Data_for_FY22[[#This Row],[75th]]-AAMC_Raw_Data_for_FY22[[#This Row],[Median]])/25)*35) + AAMC_Raw_Data_for_FY22[[#This Row],[Median]]","v":277760},{"$f":"(((AAMC_Raw_Data_for_FY22[[#This Row],[75th]]-AAMC_Raw_Data_for_FY22[[#This Row],[Median]])/25)*40) + AAMC_Raw_Data_for_FY22[[#This Row],[Median]]","v":284826}]
[{"$f":"AAMC_Raw_Data_for_FY22[[#This Row],[Source]]&AAMC_Raw_Data_for_FY22[[#This Row],[Type]]&AAMC_Raw_Data_for_FY22[[#This Row],[School Subset]]&AAMC_Raw_Data_for_FY22[[#This Row],[Rank]]&AAMC_Raw_Data_for_FY22[[#This Row],[Degree]]&AAMC_Raw_Data_for_FY22[[#This Row],[Department / Specialty]]&\"L\"","v":"AAMCAcademicPrivateInstructorPhDVascular SurgeryL"},"Vascular Surgery",5,"AAMC","Academic","Private","Instructor","PhD","2021-2022",null,{"$f":"(((AAMC_Raw_Data_for_FY22[[#This Row],[Median]]-AAMC_Raw_Data_for_FY22[[#This Row],[25th]])/25)*5) + AAMC_Raw_Data_for_FY22[[#This Row],[25th]]","v":0},{"$f":"(((AAMC_Raw_Data_for_FY22[[#This Row],[Median]]-AAMC_Raw_Data_for_FY22[[#This Row],[25th]])/25)*10) + AAMC_Raw_Data_for_FY22[[#This Row],[25th]]","v":0},{"$f":"(((AAMC_Raw_Data_for_FY22[[#This Row],[Median]]-AAMC_Raw_Data_for_FY22[[#This Row],[25th]])/25)*15) + AAMC_Raw_Data_for_FY22[[#This Row],[25th]]","v":0},{"$f":"(((AAMC_Raw_Data_for_FY22[[#This Row],[Median]]-AAMC_Raw_Data_for_FY22[[#This Row],[25th]])/25)*20) + AAMC_Raw_Data_for_FY22[[#This Row],[25th]]","v":0},null,{"$f":"(((AAMC_Raw_Data_for_FY22[[#This Row],[75th]]-AAMC_Raw_Data_for_FY22[[#This Row],[Median]])/25)*5) + AAMC_Raw_Data_for_FY22[[#This Row],[Median]]","v":0},{"$f":"(((AAMC_Raw_Data_for_FY22[[#This Row],[75th]]-AAMC_Raw_Data_for_FY22[[#This Row],[Median]])/25)*10) + AAMC_Raw_Data_for_FY22[[#This Row],[Median]]","v":0},{"$f":"(((AAMC_Raw_Data_for_FY22[[#This Row],[75th]]-AAMC_Raw_Data_for_FY22[[#This Row],[Median]])/25)*15) + AAMC_Raw_Data_for_FY22[[#This Row],[Median]]","v":0},{"$f":"(((AAMC_Raw_Data_for_FY22[[#This Row],[75th]]-AAMC_Raw_Data_for_FY22[[#This Row],[Median]])/25)*20) + AAMC_Raw_Data_for_FY22[[#This Row],[Median]]","v":0},null,{"$f":"(((AAMC_Raw_Data_for_FY22[[#This Row],[75th]]-AAMC_Raw_Data_for_FY22[[#This Row],[Median]])/25)*30) + AAMC_Raw_Data_for_FY22[[#This Row],[Median]]","v":0},{"$f":"(((AAMC_Raw_Data_for_FY22[[#This Row],[75th]]-AAMC_Raw_Data_for_FY22[[#This Row],[Median]])/25)*35) + AAMC_Raw_Data_for_FY22[[#This Row],[Median]]","v":0},{"$f":"(((AAMC_Raw_Data_for_FY22[[#This Row],[75th]]-AAMC_Raw_Data_for_FY22[[#This Row],[Median]])/25)*40) + AAMC_Raw_Data_for_FY22[[#This Row],[Median]]","v":0}]
[{"$f":"AAMC_Raw_Data_for_FY22[[#This Row],[Source]]&AAMC_Raw_Data_for_FY22[[#This Row],[Type]]&AAMC_Raw_Data_for_FY22[[#This Row],[School Subset]]&AAMC_Raw_Data_for_FY22[[#This Row],[Rank]]&AAMC_Raw_Data_for_FY22[[#This Row],[Degree]]&AAMC_Raw_Data_for_FY22[[#This Row],[Department / Specialty]]&\"L\"","v":"AAMCAcademicPrivateAssistantPhDVascular SurgeryL"},"Vascular Surgery",4,"AAMC","Academic","Private","Assistant","PhD","2021-2022",null,{"$f":"(((AAMC_Raw_Data_for_FY22[[#This Row],[Median]]-AAMC_Raw_Data_for_FY22[[#This Row],[25th]])/25)*5) + AAMC_Raw_Data_for_FY22[[#This Row],[25th]]","v":0},{"$f":"(((AAMC_Raw_Data_for_FY22[[#This Row],[Median]]-AAMC_Raw_Data_for_FY22[[#This Row],[25th]])/25)*10) + AAMC_Raw_Data_for_FY22[[#This Row],[25th]]","v":0},{"$f":"(((AAMC_Raw_Data_for_FY22[[#This Row],[Median]]-AAMC_Raw_Data_for_FY22[[#This Row],[25th]])/25)*15) + AAMC_Raw_Data_for_FY22[[#This Row],[25th]]","v":0},{"$f":"(((AAMC_Raw_Data_for_FY22[[#This Row],[Median]]-AAMC_Raw_Data_for_FY22[[#This Row],[25th]])/25)*20) + AAMC_Raw_Data_for_FY22[[#This Row],[25th]]","v":0},null,{"$f":"(((AAMC_Raw_Data_for_FY22[[#This Row],[75th]]-AAMC_Raw_Data_for_FY22[[#This Row],[Median]])/25)*5) + AAMC_Raw_Data_for_FY22[[#This Row],[Median]]","v":0},{"$f":"(((AAMC_Raw_Data_for_FY22[[#This Row],[75th]]-AAMC_Raw_Data_for_FY22[[#This Row],[Median]])/25)*10) + AAMC_Raw_Data_for_FY22[[#This Row],[Median]]","v":0},{"$f":"(((AAMC_Raw_Data_for_FY22[[#This Row],[75th]]-AAMC_Raw_Data_for_FY22[[#This Row],[Median]])/25)*15) + AAMC_Raw_Data_for_FY22[[#This Row],[Median]]","v":0},{"$f":"(((AAMC_Raw_Data_for_FY22[[#This Row],[75th]]-AAMC_Raw_Data_for_FY22[[#This Row],[Median]])/25)*20) + AAMC_Raw_Data_for_FY22[[#This Row],[Median]]","v":0},null,{"$f":"(((AAMC_Raw_Data_for_FY22[[#This Row],[75th]]-AAMC_Raw_Data_for_FY22[[#This Row],[Median]])/25)*30) + AAMC_Raw_Data_for_FY22[[#This Row],[Median]]","v":0},{"$f":"(((AAMC_Raw_Data_for_FY22[[#This Row],[75th]]-AAMC_Raw_Data_for_FY22[[#This Row],[Median]])/25)*35) + AAMC_Raw_Data_for_FY22[[#This Row],[Median]]","v":0},{"$f":"(((AAMC_Raw_Data_for_FY22[[#This Row],[75th]]-AAMC_Raw_Data_for_FY22[[#This Row],[Median]])/25)*40) + AAMC_Raw_Data_for_FY22[[#This Row],[Median]]","v":0}]
[{"$f":"AAMC_Raw_Data_for_FY22[[#This Row],[Source]]&AAMC_Raw_Data_for_FY22[[#This Row],[Type]]&AAMC_Raw_Data_for_FY22[[#This Row],[School Subset]]&AAMC_Raw_Data_for_FY22[[#This Row],[Rank]]&AAMC_Raw_Data_for_FY22[[#This Row],[Degree]]&AAMC_Raw_Data_for_FY22[[#This Row],[Department / Specialty]]&\"L\"","v":"AAMCAcademicPrivateAssociatePhDVascular SurgeryL"},"Vascular Surgery",3,"AAMC","Academic","Private","Associate","PhD","2021-2022",null,{"$f":"(((AAMC_Raw_Data_for_FY22[[#This Row],[Median]]-AAMC_Raw_Data_for_FY22[[#This Row],[25th]])/25)*5) + AAMC_Raw_Data_for_FY22[[#This Row],[25th]]","v":0},{"$f":"(((AAMC_Raw_Data_for_FY22[[#This Row],[Median]]-AAMC_Raw_Data_for_FY22[[#This Row],[25th]])/25)*10) + AAMC_Raw_Data_for_FY22[[#This Row],[25th]]","v":0},{"$f":"(((AAMC_Raw_Data_for_FY22[[#This Row],[Median]]-AAMC_Raw_Data_for_FY22[[#This Row],[25th]])/25)*15) + AAMC_Raw_Data_for_FY22[[#This Row],[25th]]","v":0},{"$f":"(((AAMC_Raw_Data_for_FY22[[#This Row],[Median]]-AAMC_Raw_Data_for_FY22[[#This Row],[25th]])/25)*20) + AAMC_Raw_Data_for_FY22[[#This Row],[25th]]","v":0},null,{"$f":"(((AAMC_Raw_Data_for_FY22[[#This Row],[75th]]-AAMC_Raw_Data_for_FY22[[#This Row],[Median]])/25)*5) + AAMC_Raw_Data_for_FY22[[#This Row],[Median]]","v":0},{"$f":"(((AAMC_Raw_Data_for_FY22[[#This Row],[75th]]-AAMC_Raw_Data_for_FY22[[#This Row],[Median]])/25)*10) + AAMC_Raw_Data_for_FY22[[#This Row],[Median]]","v":0},{"$f":"(((AAMC_Raw_Data_for_FY22[[#This Row],[75th]]-AAMC_Raw_Data_for_FY22[[#This Row],[Median]])/25)*15) + AAMC_Raw_Data_for_FY22[[#This Row],[Median]]","v":0},{"$f":"(((AAMC_Raw_Data_for_FY22[[#This Row],[75th]]-AAMC_Raw_Data_for_FY22[[#This Row],[Median]])/25)*20) + AAMC_Raw_Data_for_FY22[[#This Row],[Median]]","v":0},null,{"$f":"(((AAMC_Raw_Data_for_FY22[[#This Row],[75th]]-AAMC_Raw_Data_for_FY22[[#This Row],[Median]])/25)*30) + AAMC_Raw_Data_for_FY22[[#This Row],[Median]]","v":0},{"$f":"(((AAMC_Raw_Data_for_FY22[[#This Row],[75th]]-AAMC_Raw_Data_for_FY22[[#This Row],[Median]])/25)*35) + AAMC_Raw_Data_for_FY22[[#This Row],[Median]]","v":0},{"$f":"(((AAMC_Raw_Data_for_FY22[[#This Row],[75th]]-AAMC_Raw_Data_for_FY22[[#This Row],[Median]])/25)*40) + AAMC_Raw_Data_for_FY22[[#This Row],[Median]]","v":0}]
[{"$f":"AAMC_Raw_Data_for_FY22[[#This Row],[Source]]&AAMC_Raw_Data_for_FY22[[#This Row],[Type]]&AAMC_Raw_Data_for_FY22[[#This Row],[School Subset]]&AAMC_Raw_Data_for_FY22[[#This Row],[Rank]]&AAMC_Raw_Data_for_FY22[[#This Row],[Degree]]&AAMC_Raw_Data_for_FY22[[#This Row],[Department / Specialty]]&\"L\"","v":"AAMCAcademicPrivateProfessorPhDVascular SurgeryL"},"Vascular Surgery",2,"AAMC","Academic","Private","Professor","PhD","2021-2022",null,{"$f":"(((AAMC_Raw_Data_for_FY22[[#This Row],[Median]]-AAMC_Raw_Data_for_FY22[[#This Row],[25th]])/25)*5) + AAMC_Raw_Data_for_FY22[[#This Row],[25th]]","v":0},{"$f":"(((AAMC_Raw_Data_for_FY22[[#This Row],[Median]]-AAMC_Raw_Data_for_FY22[[#This Row],[25th]])/25)*10) + AAMC_Raw_Data_for_FY22[[#This Row],[25th]]","v":0},{"$f":"(((AAMC_Raw_Data_for_FY22[[#This Row],[Median]]-AAMC_Raw_Data_for_FY22[[#This Row],[25th]])/25)*15) + AAMC_Raw_Data_for_FY22[[#This Row],[25th]]","v":0},{"$f":"(((AAMC_Raw_Data_for_FY22[[#This Row],[Median]]-AAMC_Raw_Data_for_FY22[[#This Row],[25th]])/25)*20) + AAMC_Raw_Data_for_FY22[[#This Row],[25th]]","v":0},null,{"$f":"(((AAMC_Raw_Data_for_FY22[[#This Row],[75th]]-AAMC_Raw_Data_for_FY22[[#This Row],[Median]])/25)*5) + AAMC_Raw_Data_for_FY22[[#This Row],[Median]]","v":0},{"$f":"(((AAMC_Raw_Data_for_FY22[[#This Row],[75th]]-AAMC_Raw_Data_for_FY22[[#This Row],[Median]])/25)*10) + AAMC_Raw_Data_for_FY22[[#This Row],[Median]]","v":0},{"$f":"(((AAMC_Raw_Data_for_FY22[[#This Row],[75th]]-AAMC_Raw_Data_for_FY22[[#This Row],[Median]])/25)*15) + AAMC_Raw_Data_for_FY22[[#This Row],[Median]]","v":0},{"$f":"(((AAMC_Raw_Data_for_FY22[[#This Row],[75th]]-AAMC_Raw_Data_for_FY22[[#This Row],[Median]])/25)*20) + AAMC_Raw_Data_for_FY22[[#This Row],[Median]]","v":0},null,{"$f":"(((AAMC_Raw_Data_for_FY22[[#This Row],[75th]]-AAMC_Raw_Data_for_FY22[[#This Row],[Median]])/25)*30) + AAMC_Raw_Data_for_FY22[[#This Row],[Median]]","v":0},{"$f":"(((AAMC_Raw_Data_for_FY22[[#This Row],[75th]]-AAMC_Raw_Data_for_FY22[[#This Row],[Median]])/25)*35) + AAMC_Raw_Data_for_FY22[[#This Row],[Median]]","v":0},{"$f":"(((AAMC_Raw_Data_for_FY22[[#This Row],[75th]]-AAMC_Raw_Data_for_FY22[[#This Row],[Median]])/25)*40) + AAMC_Raw_Data_for_FY22[[#This Row],[Median]]","v":0}]
[{"$f":"AAMC_Raw_Data_for_FY22[[#This Row],[Source]]&AAMC_Raw_Data_for_FY22[[#This Row],[Type]]&AAMC_Raw_Data_for_FY22[[#This Row],[School Subset]]&AAMC_Raw_Data_for_FY22[[#This Row],[Rank]]&AAMC_Raw_Data_for_FY22[[#This Row],[Degree]]&AAMC_Raw_Data_for_FY22[[#This Row],[Department / Specialty]]&\"L\"","v":"AAMCAcademicPrivateInstructorPhDOther SurgeryL"},"Other Surgery",5,"AAMC","Academic","Private","Instructor","PhD","2021-2022",70614,{"$f":"(((AAMC_Raw_Data_for_FY22[[#This Row],[Median]]-AAMC_Raw_Data_for_FY22[[#This Row],[25th]])/25)*5) + AAMC_Raw_Data_for_FY22[[#This Row],[25th]]","v":74891.199999999997},{"$f":"(((AAMC_Raw_Data_for_FY22[[#This Row],[Median]]-AAMC_Raw_Data_for_FY22[[#This Row],[25th]])/25)*10) + AAMC_Raw_Data_for_FY22[[#This Row],[25th]]","v":79168.399999999994},{"$f":"(((AAMC_Raw_Data_for_FY22[[#This Row],[Median]]-AAMC_Raw_Data_for_FY22[[#This Row],[25th]])/25)*15) + AAMC_Raw_Data_for_FY22[[#This Row],[25th]]","v":83445.600000000006},{"$f":"(((AAMC_Raw_Data_for_FY22[[#This Row],[Median]]-AAMC_Raw_Data_for_FY22[[#This Row],[25th]])/25)*20) + AAMC_Raw_Data_for_FY22[[#This Row],[25th]]","v":87722.8},92000,{"$f":"(((AAMC_Raw_Data_for_FY22[[#This Row],[75th]]-AAMC_Raw_Data_for_FY22[[#This Row],[Median]])/25)*5) + AAMC_Raw_Data_for_FY22[[#This Row],[Median]]","v":99600},{"$f":"(((AAMC_Raw_Data_for_FY22[[#This Row],[75th]]-AAMC_Raw_Data_for_FY22[[#This Row],[Median]])/25)*10) + AAMC_Raw_Data_for_FY22[[#This Row],[Median]]","v":107200},{"$f":"(((AAMC_Raw_Data_for_FY22[[#This Row],[75th]]-AAMC_Raw_Data_for_FY22[[#This Row],[Median]])/25)*15) + AAMC_Raw_Data_for_FY22[[#This Row],[Median]]","v":114800},{"$f":"(((AAMC_Raw_Data_for_FY22[[#This Row],[75th]]-AAMC_Raw_Data_for_FY22[[#This Row],[Median]])/25)*20) + AAMC_Raw_Data_for_FY22[[#This Row],[Median]]","v":122400},130000,{"$f":"(((AAMC_Raw_Data_for_FY22[[#This Row],[75th]]-AAMC_Raw_Data_for_FY22[[#This Row],[Median]])/25)*30) + AAMC_Raw_Data_for_FY22[[#This Row],[Median]]","v":137600},{"$f":"(((AAMC_Raw_Data_for_FY22[[#This Row],[75th]]-AAMC_Raw_Data_for_FY22[[#This Row],[Median]])/25)*35) + AAMC_Raw_Data_for_FY22[[#This Row],[Median]]","v":145200},{"$f":"(((AAMC_Raw_Data_for_FY22[[#This Row],[75th]]-AAMC_Raw_Data_for_FY22[[#This Row],[Median]])/25)*40) + AAMC_Raw_Data_for_FY22[[#This Row],[Median]]","v":152800}]
[{"$f":"AAMC_Raw_Data_for_FY22[[#This Row],[Source]]&AAMC_Raw_Data_for_FY22[[#This Row],[Type]]&AAMC_Raw_Data_for_FY22[[#This Row],[School Subset]]&AAMC_Raw_Data_for_FY22[[#This Row],[Rank]]&AAMC_Raw_Data_for_FY22[[#This Row],[Degree]]&AAMC_Raw_Data_for_FY22[[#This Row],[Department / Specialty]]&\"L\"","v":"AAMCAcademicPrivateAssistantPhDOther SurgeryL"},"Other Surgery",4,"AAMC","Academic","Private","Assistant","PhD","2021-2022",81867,{"$f":"(((AAMC_Raw_Data_for_FY22[[#This Row],[Median]]-AAMC_Raw_Data_for_FY22[[#This Row],[25th]])/25)*5) + AAMC_Raw_Data_for_FY22[[#This Row],[25th]]","v":85819.8},{"$f":"(((AAMC_Raw_Data_for_FY22[[#This Row],[Median]]-AAMC_Raw_Data_for_FY22[[#This Row],[25th]])/25)*10) + AAMC_Raw_Data_for_FY22[[#This Row],[25th]]","v":89772.6},{"$f":"(((AAMC_Raw_Data_for_FY22[[#This Row],[Median]]-AAMC_Raw_Data_for_FY22[[#This Row],[25th]])/25)*15) + AAMC_Raw_Data_for_FY22[[#This Row],[25th]]","v":93725.4},{"$f":"(((AAMC_Raw_Data_for_FY22[[#This Row],[Median]]-AAMC_Raw_Data_for_FY22[[#This Row],[25th]])/25)*20) + AAMC_Raw_Data_for_FY22[[#This Row],[25th]]","v":97678.2},101631,{"$f":"(((AAMC_Raw_Data_for_FY22[[#This Row],[75th]]-AAMC_Raw_Data_for_FY22[[#This Row],[Median]])/25)*5) + AAMC_Raw_Data_for_FY22[[#This Row],[Median]]","v":106157},{"$f":"(((AAMC_Raw_Data_for_FY22[[#This Row],[75th]]-AAMC_Raw_Data_for_FY22[[#This Row],[Median]])/25)*10) + AAMC_Raw_Data_for_FY22[[#This Row],[Median]]","v":110683},{"$f":"(((AAMC_Raw_Data_for_FY22[[#This Row],[75th]]-AAMC_Raw_Data_for_FY22[[#This Row],[Median]])/25)*15) + AAMC_Raw_Data_for_FY22[[#This Row],[Median]]","v":115209},{"$f":"(((AAMC_Raw_Data_for_FY22[[#This Row],[75th]]-AAMC_Raw_Data_for_FY22[[#This Row],[Median]])/25)*20) + AAMC_Raw_Data_for_FY22[[#This Row],[Median]]","v":119735},124261,{"$f":"(((AAMC_Raw_Data_for_FY22[[#This Row],[75th]]-AAMC_Raw_Data_for_FY22[[#This Row],[Median]])/25)*30) + AAMC_Raw_Data_for_FY22[[#This Row],[Median]]","v":128787},{"$f":"(((AAMC_Raw_Data_for_FY22[[#This Row],[75th]]-AAMC_Raw_Data_for_FY22[[#This Row],[Median]])/25)*35) + AAMC_Raw_Data_for_FY22[[#This Row],[Median]]","v":133313},{"$f":"(((AAMC_Raw_Data_for_FY22[[#This Row],[75th]]-AAMC_Raw_Data_for_FY22[[#This Row],[Median]])/25)*40) + AAMC_Raw_Data_for_FY22[[#This Row],[Median]]","v":137839}]
[{"$f":"AAMC_Raw_Data_for_FY22[[#This Row],[Source]]&AAMC_Raw_Data_for_FY22[[#This Row],[Type]]&AAMC_Raw_Data_for_FY22[[#This Row],[School Subset]]&AAMC_Raw_Data_for_FY22[[#This Row],[Rank]]&AAMC_Raw_Data_for_FY22[[#This Row],[Degree]]&AAMC_Raw_Data_for_FY22[[#This Row],[Department / Specialty]]&\"L\"","v":"AAMCAcademicPrivateAssociatePhDOther SurgeryL"},"Other Surgery",3,"AAMC","Academic","Private","Associate","PhD","2021-2022",125785,{"$f":"(((AAMC_Raw_Data_for_FY22[[#This Row],[Median]]-AAMC_Raw_Data_for_FY22[[#This Row],[25th]])/25)*5) + AAMC_Raw_Data_for_FY22[[#This Row],[25th]]","v":129494},{"$f":"(((AAMC_Raw_Data_for_FY22[[#This Row],[Median]]-AAMC_Raw_Data_for_FY22[[#This Row],[25th]])/25)*10) + AAMC_Raw_Data_for_FY22[[#This Row],[25th]]","v":133203},{"$f":"(((AAMC_Raw_Data_for_FY22[[#This Row],[Median]]-AAMC_Raw_Data_for_FY22[[#This Row],[25th]])/25)*15) + AAMC_Raw_Data_for_FY22[[#This Row],[25th]]","v":136912},{"$f":"(((AAMC_Raw_Data_for_FY22[[#This Row],[Median]]-AAMC_Raw_Data_for_FY22[[#This Row],[25th]])/25)*20) + AAMC_Raw_Data_for_FY22[[#This Row],[25th]]","v":140621},144330,{"$f":"(((AAMC_Raw_Data_for_FY22[[#This Row],[75th]]-AAMC_Raw_Data_for_FY22[[#This Row],[Median]])/25)*5) + AAMC_Raw_Data_for_FY22[[#This Row],[Median]]","v":149575},{"$f":"(((AAMC_Raw_Data_for_FY22[[#This Row],[75th]]-AAMC_Raw_Data_for_FY22[[#This Row],[Median]])/25)*10) + AAMC_Raw_Data_for_FY22[[#This Row],[Median]]","v":154820},{"$f":"(((AAMC_Raw_Data_for_FY22[[#This Row],[75th]]-AAMC_Raw_Data_for_FY22[[#This Row],[Median]])/25)*15) + AAMC_Raw_Data_for_FY22[[#This Row],[Median]]","v":160065},{"$f":"(((AAMC_Raw_Data_for_FY22[[#This Row],[75th]]-AAMC_Raw_Data_for_FY22[[#This Row],[Median]])/25)*20) + AAMC_Raw_Data_for_FY22[[#This Row],[Median]]","v":165310},170555,{"$f":"(((AAMC_Raw_Data_for_FY22[[#This Row],[75th]]-AAMC_Raw_Data_for_FY22[[#This Row],[Median]])/25)*30) + AAMC_Raw_Data_for_FY22[[#This Row],[Median]]","v":175800},{"$f":"(((AAMC_Raw_Data_for_FY22[[#This Row],[75th]]-AAMC_Raw_Data_for_FY22[[#This Row],[Median]])/25)*35) + AAMC_Raw_Data_for_FY22[[#This Row],[Median]]","v":181045},{"$f":"(((AAMC_Raw_Data_for_FY22[[#This Row],[75th]]-AAMC_Raw_Data_for_FY22[[#This Row],[Median]])/25)*40) + AAMC_Raw_Data_for_FY22[[#This Row],[Median]]","v":186290}]
[{"$f":"AAMC_Raw_Data_for_FY22[[#This Row],[Source]]&AAMC_Raw_Data_for_FY22[[#This Row],[Type]]&AAMC_Raw_Data_for_FY22[[#This Row],[School Subset]]&AAMC_Raw_Data_for_FY22[[#This Row],[Rank]]&AAMC_Raw_Data_for_FY22[[#This Row],[Degree]]&AAMC_Raw_Data_for_FY22[[#This Row],[Department / Specialty]]&\"L\"","v":"AAMCAcademicPrivateProfessorPhDOther SurgeryL"},"Other Surgery",2,"AAMC","Academic","Private","Professor","PhD","2021-2022",179333,{"$f":"(((AAMC_Raw_Data_for_FY22[[#This Row],[Median]]-AAMC_Raw_Data_for_FY22[[#This Row],[25th]])/25)*5) + AAMC_Raw_Data_for_FY22[[#This Row],[25th]]","v":189054.6},{"$f":"(((AAMC_Raw_Data_for_FY22[[#This Row],[Median]]-AAMC_Raw_Data_for_FY22[[#This Row],[25th]])/25)*10) + AAMC_Raw_Data_for_FY22[[#This Row],[25th]]","v":198776.2},{"$f":"(((AAMC_Raw_Data_for_FY22[[#This Row],[Median]]-AAMC_Raw_Data_for_FY22[[#This Row],[25th]])/25)*15) + AAMC_Raw_Data_for_FY22[[#This Row],[25th]]","v":208497.8},{"$f":"(((AAMC_Raw_Data_for_FY22[[#This Row],[Median]]-AAMC_Raw_Data_for_FY22[[#This Row],[25th]])/25)*20) + AAMC_Raw_Data_for_FY22[[#This Row],[25th]]","v":218219.4},227941,{"$f":"(((AAMC_Raw_Data_for_FY22[[#This Row],[75th]]-AAMC_Raw_Data_for_FY22[[#This Row],[Median]])/25)*5) + AAMC_Raw_Data_for_FY22[[#This Row],[Median]]","v":243269.4},{"$f":"(((AAMC_Raw_Data_for_FY22[[#This Row],[75th]]-AAMC_Raw_Data_for_FY22[[#This Row],[Median]])/25)*10) + AAMC_Raw_Data_for_FY22[[#This Row],[Median]]","v":258597.8},{"$f":"(((AAMC_Raw_Data_for_FY22[[#This Row],[75th]]-AAMC_Raw_Data_for_FY22[[#This Row],[Median]])/25)*15) + AAMC_Raw_Data_for_FY22[[#This Row],[Median]]","v":273926.2},{"$f":"(((AAMC_Raw_Data_for_FY22[[#This Row],[75th]]-AAMC_Raw_Data_for_FY22[[#This Row],[Median]])/25)*20) + AAMC_Raw_Data_for_FY22[[#This Row],[Median]]","v":289254.59999999998},304583,{"$f":"(((AAMC_Raw_Data_for_FY22[[#This Row],[75th]]-AAMC_Raw_Data_for_FY22[[#This Row],[Median]])/25)*30) + AAMC_Raw_Data_for_FY22[[#This Row],[Median]]","v":319911.40000000002},{"$f":"(((AAMC_Raw_Data_for_FY22[[#This Row],[75th]]-AAMC_Raw_Data_for_FY22[[#This Row],[Median]])/25)*35) + AAMC_Raw_Data_for_FY22[[#This Row],[Median]]","v":335239.8},{"$f":"(((AAMC_Raw_Data_for_FY22[[#This Row],[75th]]-AAMC_Raw_Data_for_FY22[[#This Row],[Median]])/25)*40) + AAMC_Raw_Data_for_FY22[[#This Row],[Median]]","v":350568.2}]
[{"$f":"AAMC_Raw_Data_for_FY22[[#This Row],[Source]]&AAMC_Raw_Data_for_FY22[[#This Row],[Type]]&AAMC_Raw_Data_for_FY22[[#This Row],[School Subset]]&AAMC_Raw_Data_for_FY22[[#This Row],[Rank]]&AAMC_Raw_Data_for_FY22[[#This Row],[Degree]]&AAMC_Raw_Data_for_FY22[[#This Row],[Department / Specialty]]&\"L\"","v":"AAMCAcademicPrivateChiefPhDOther SurgeryL"},"Other Surgery",6,"AAMC","Academic","Private","Chief","PhD","2021-2022",null,{"$f":"(((AAMC_Raw_Data_for_FY22[[#This Row],[Median]]-AAMC_Raw_Data_for_FY22[[#This Row],[25th]])/25)*5) + AAMC_Raw_Data_for_FY22[[#This Row],[25th]]","v":0},{"$f":"(((AAMC_Raw_Data_for_FY22[[#This Row],[Median]]-AAMC_Raw_Data_for_FY22[[#This Row],[25th]])/25)*10) + AAMC_Raw_Data_for_FY22[[#This Row],[25th]]","v":0},{"$f":"(((AAMC_Raw_Data_for_FY22[[#This Row],[Median]]-AAMC_Raw_Data_for_FY22[[#This Row],[25th]])/25)*15) + AAMC_Raw_Data_for_FY22[[#This Row],[25th]]","v":0},{"$f":"(((AAMC_Raw_Data_for_FY22[[#This Row],[Median]]-AAMC_Raw_Data_for_FY22[[#This Row],[25th]])/25)*20) + AAMC_Raw_Data_for_FY22[[#This Row],[25th]]","v":0},null,{"$f":"(((AAMC_Raw_Data_for_FY22[[#This Row],[75th]]-AAMC_Raw_Data_for_FY22[[#This Row],[Median]])/25)*5) + AAMC_Raw_Data_for_FY22[[#This Row],[Median]]","v":0},{"$f":"(((AAMC_Raw_Data_for_FY22[[#This Row],[75th]]-AAMC_Raw_Data_for_FY22[[#This Row],[Median]])/25)*10) + AAMC_Raw_Data_for_FY22[[#This Row],[Median]]","v":0},{"$f":"(((AAMC_Raw_Data_for_FY22[[#This Row],[75th]]-AAMC_Raw_Data_for_FY22[[#This Row],[Median]])/25)*15) + AAMC_Raw_Data_for_FY22[[#This Row],[Median]]","v":0},{"$f":"(((AAMC_Raw_Data_for_FY22[[#This Row],[75th]]-AAMC_Raw_Data_for_FY22[[#This Row],[Median]])/25)*20) + AAMC_Raw_Data_for_FY22[[#This Row],[Median]]","v":0},null,{"$f":"(((AAMC_Raw_Data_for_FY22[[#This Row],[75th]]-AAMC_Raw_Data_for_FY22[[#This Row],[Median]])/25)*30) + AAMC_Raw_Data_for_FY22[[#This Row],[Median]]","v":0},{"$f":"(((AAMC_Raw_Data_for_FY22[[#This Row],[75th]]-AAMC_Raw_Data_for_FY22[[#This Row],[Median]])/25)*35) + AAMC_Raw_Data_for_FY22[[#This Row],[Median]]","v":0},{"$f":"(((AAMC_Raw_Data_for_FY22[[#This Row],[75th]]-AAMC_Raw_Data_for_FY22[[#This Row],[Median]])/25)*40) + AAMC_Raw_Data_for_FY22[[#This Row],[Median]]","v":0}]
[{"$f":"AAMC_Raw_Data_for_FY22[[#This Row],[Source]]&AAMC_Raw_Data_for_FY22[[#This Row],[Type]]&AAMC_Raw_Data_for_FY22[[#This Row],[School Subset]]&AAMC_Raw_Data_for_FY22[[#This Row],[Rank]]&AAMC_Raw_Data_for_FY22[[#This Row],[Degree]]&AAMC_Raw_Data_for_FY22[[#This Row],[Department / Specialty]]&\"L\"","v":"AAMCAcademicPrivateInstructorPhDOther Clinical Science TotalL"},"Other Clinical Science Total",5,"AAMC","Academic","Private","Instructor","PhD","2021-2022",77126,{"$f":"(((AAMC_Raw_Data_for_FY22[[#This Row],[Median]]-AAMC_Raw_Data_for_FY22[[#This Row],[25th]])/25)*5) + AAMC_Raw_Data_for_FY22[[#This Row],[25th]]","v":80067.399999999994},{"$f":"(((AAMC_Raw_Data_for_FY22[[#This Row],[Median]]-AAMC_Raw_Data_for_FY22[[#This Row],[25th]])/25)*10) + AAMC_Raw_Data_for_FY22[[#This Row],[25th]]","v":83008.800000000003},{"$f":"(((AAMC_Raw_Data_for_FY22[[#This Row],[Median]]-AAMC_Raw_Data_for_FY22[[#This Row],[25th]])/25)*15) + AAMC_Raw_Data_for_FY22[[#This Row],[25th]]","v":85950.2},{"$f":"(((AAMC_Raw_Data_for_FY22[[#This Row],[Median]]-AAMC_Raw_Data_for_FY22[[#This Row],[25th]])/25)*20) + AAMC_Raw_Data_for_FY22[[#This Row],[25th]]","v":88891.6},91833,{"$f":"(((AAMC_Raw_Data_for_FY22[[#This Row],[75th]]-AAMC_Raw_Data_for_FY22[[#This Row],[Median]])/25)*5) + AAMC_Raw_Data_for_FY22[[#This Row],[Median]]","v":96507.6},{"$f":"(((AAMC_Raw_Data_for_FY22[[#This Row],[75th]]-AAMC_Raw_Data_for_FY22[[#This Row],[Median]])/25)*10) + AAMC_Raw_Data_for_FY22[[#This Row],[Median]]","v":101182.2},{"$f":"(((AAMC_Raw_Data_for_FY22[[#This Row],[75th]]-AAMC_Raw_Data_for_FY22[[#This Row],[Median]])/25)*15) + AAMC_Raw_Data_for_FY22[[#This Row],[Median]]","v":105856.8},{"$f":"(((AAMC_Raw_Data_for_FY22[[#This Row],[75th]]-AAMC_Raw_Data_for_FY22[[#This Row],[Median]])/25)*20) + AAMC_Raw_Data_for_FY22[[#This Row],[Median]]","v":110531.4},115206,{"$f":"(((AAMC_Raw_Data_for_FY22[[#This Row],[75th]]-AAMC_Raw_Data_for_FY22[[#This Row],[Median]])/25)*30) + AAMC_Raw_Data_for_FY22[[#This Row],[Median]]","v":119880.6},{"$f":"(((AAMC_Raw_Data_for_FY22[[#This Row],[75th]]-AAMC_Raw_Data_for_FY22[[#This Row],[Median]])/25)*35) + AAMC_Raw_Data_for_FY22[[#This Row],[Median]]","v":124555.2},{"$f":"(((AAMC_Raw_Data_for_FY22[[#This Row],[75th]]-AAMC_Raw_Data_for_FY22[[#This Row],[Median]])/25)*40) + AAMC_Raw_Data_for_FY22[[#This Row],[Median]]","v":129229.79999999999}]
[{"$f":"AAMC_Raw_Data_for_FY22[[#This Row],[Source]]&AAMC_Raw_Data_for_FY22[[#This Row],[Type]]&AAMC_Raw_Data_for_FY22[[#This Row],[School Subset]]&AAMC_Raw_Data_for_FY22[[#This Row],[Rank]]&AAMC_Raw_Data_for_FY22[[#This Row],[Degree]]&AAMC_Raw_Data_for_FY22[[#This Row],[Department / Specialty]]&\"L\"","v":"AAMCAcademicPrivateAssistantPhDOther Clinical Science TotalL"},"Other Clinical Science Total",4,"AAMC","Academic","Private","Assistant","PhD","2021-2022",102099,{"$f":"(((AAMC_Raw_Data_for_FY22[[#This Row],[Median]]-AAMC_Raw_Data_for_FY22[[#This Row],[25th]])/25)*5) + AAMC_Raw_Data_for_FY22[[#This Row],[25th]]","v":105456},{"$f":"(((AAMC_Raw_Data_for_FY22[[#This Row],[Median]]-AAMC_Raw_Data_for_FY22[[#This Row],[25th]])/25)*10) + AAMC_Raw_Data_for_FY22[[#This Row],[25th]]","v":108813},{"$f":"(((AAMC_Raw_Data_for_FY22[[#This Row],[Median]]-AAMC_Raw_Data_for_FY22[[#This Row],[25th]])/25)*15) + AAMC_Raw_Data_for_FY22[[#This Row],[25th]]","v":112170},{"$f":"(((AAMC_Raw_Data_for_FY22[[#This Row],[Median]]-AAMC_Raw_Data_for_FY22[[#This Row],[25th]])/25)*20) + AAMC_Raw_Data_for_FY22[[#This Row],[25th]]","v":115527},118884,{"$f":"(((AAMC_Raw_Data_for_FY22[[#This Row],[75th]]-AAMC_Raw_Data_for_FY22[[#This Row],[Median]])/25)*5) + AAMC_Raw_Data_for_FY22[[#This Row],[Median]]","v":122637.2},{"$f":"(((AAMC_Raw_Data_for_FY22[[#This Row],[75th]]-AAMC_Raw_Data_for_FY22[[#This Row],[Median]])/25)*10) + AAMC_Raw_Data_for_FY22[[#This Row],[Median]]","v":126390.39999999999},{"$f":"(((AAMC_Raw_Data_for_FY22[[#This Row],[75th]]-AAMC_Raw_Data_for_FY22[[#This Row],[Median]])/25)*15) + AAMC_Raw_Data_for_FY22[[#This Row],[Median]]","v":130143.6},{"$f":"(((AAMC_Raw_Data_for_FY22[[#This Row],[75th]]-AAMC_Raw_Data_for_FY22[[#This Row],[Median]])/25)*20) + AAMC_Raw_Data_for_FY22[[#This Row],[Median]]","v":133896.79999999999},137650,{"$f":"(((AAMC_Raw_Data_for_FY22[[#This Row],[75th]]-AAMC_Raw_Data_for_FY22[[#This Row],[Median]])/25)*30) + AAMC_Raw_Data_for_FY22[[#This Row],[Median]]","v":141403.20000000001},{"$f":"(((AAMC_Raw_Data_for_FY22[[#This Row],[75th]]-AAMC_Raw_Data_for_FY22[[#This Row],[Median]])/25)*35) + AAMC_Raw_Data_for_FY22[[#This Row],[Median]]","v":145156.4},{"$f":"(((AAMC_Raw_Data_for_FY22[[#This Row],[75th]]-AAMC_Raw_Data_for_FY22[[#This Row],[Median]])/25)*40) + AAMC_Raw_Data_for_FY22[[#This Row],[Median]]","v":148909.6}]
[{"$f":"AAMC_Raw_Data_for_FY22[[#This Row],[Source]]&AAMC_Raw_Data_for_FY22[[#This Row],[Type]]&AAMC_Raw_Data_for_FY22[[#This Row],[School Subset]]&AAMC_Raw_Data_for_FY22[[#This Row],[Rank]]&AAMC_Raw_Data_for_FY22[[#This Row],[Degree]]&AAMC_Raw_Data_for_FY22[[#This Row],[Department / Specialty]]&\"L\"","v":"AAMCAcademicPrivateAssociatePhDOther Clinical Science TotalL"},"Other Clinical Science Total",3,"AAMC","Academic","Private","Associate","PhD","2021-2022",127097,{"$f":"(((AAMC_Raw_Data_for_FY22[[#This Row],[Median]]-AAMC_Raw_Data_for_FY22[[#This Row],[25th]])/25)*5) + AAMC_Raw_Data_for_FY22[[#This Row],[25th]]","v":132243.79999999999},{"$f":"(((AAMC_Raw_Data_for_FY22[[#This Row],[Median]]-AAMC_Raw_Data_for_FY22[[#This Row],[25th]])/25)*10) + AAMC_Raw_Data_for_FY22[[#This Row],[25th]]","v":137390.6},{"$f":"(((AAMC_Raw_Data_for_FY22[[#This Row],[Median]]-AAMC_Raw_Data_for_FY22[[#This Row],[25th]])/25)*15) + AAMC_Raw_Data_for_FY22[[#This Row],[25th]]","v":142537.4},{"$f":"(((AAMC_Raw_Data_for_FY22[[#This Row],[Median]]-AAMC_Raw_Data_for_FY22[[#This Row],[25th]])/25)*20) + AAMC_Raw_Data_for_FY22[[#This Row],[25th]]","v":147684.20000000001},152831,{"$f":"(((AAMC_Raw_Data_for_FY22[[#This Row],[75th]]-AAMC_Raw_Data_for_FY22[[#This Row],[Median]])/25)*5) + AAMC_Raw_Data_for_FY22[[#This Row],[Median]]","v":158193.20000000001},{"$f":"(((AAMC_Raw_Data_for_FY22[[#This Row],[75th]]-AAMC_Raw_Data_for_FY22[[#This Row],[Median]])/25)*10) + AAMC_Raw_Data_for_FY22[[#This Row],[Median]]","v":163555.4},{"$f":"(((AAMC_Raw_Data_for_FY22[[#This Row],[75th]]-AAMC_Raw_Data_for_FY22[[#This Row],[Median]])/25)*15) + AAMC_Raw_Data_for_FY22[[#This Row],[Median]]","v":168917.6},{"$f":"(((AAMC_Raw_Data_for_FY22[[#This Row],[75th]]-AAMC_Raw_Data_for_FY22[[#This Row],[Median]])/25)*20) + AAMC_Raw_Data_for_FY22[[#This Row],[Median]]","v":174279.8},179642,{"$f":"(((AAMC_Raw_Data_for_FY22[[#This Row],[75th]]-AAMC_Raw_Data_for_FY22[[#This Row],[Median]])/25)*30) + AAMC_Raw_Data_for_FY22[[#This Row],[Median]]","v":185004.2},{"$f":"(((AAMC_Raw_Data_for_FY22[[#This Row],[75th]]-AAMC_Raw_Data_for_FY22[[#This Row],[Median]])/25)*35) + AAMC_Raw_Data_for_FY22[[#This Row],[Median]]","v":190366.4},{"$f":"(((AAMC_Raw_Data_for_FY22[[#This Row],[75th]]-AAMC_Raw_Data_for_FY22[[#This Row],[Median]])/25)*40) + AAMC_Raw_Data_for_FY22[[#This Row],[Median]]","v":195728.6}]
[{"$f":"AAMC_Raw_Data_for_FY22[[#This Row],[Source]]&AAMC_Raw_Data_for_FY22[[#This Row],[Type]]&AAMC_Raw_Data_for_FY22[[#This Row],[School Subset]]&AAMC_Raw_Data_for_FY22[[#This Row],[Rank]]&AAMC_Raw_Data_for_FY22[[#This Row],[Degree]]&AAMC_Raw_Data_for_FY22[[#This Row],[Department / Specialty]]&\"L\"","v":"AAMCAcademicPrivateProfessorPhDOther Clinical Science TotalL"},"Other Clinical Science Total",2,"AAMC","Academic","Private","Professor","PhD","2021-2022",182367,{"$f":"(((AAMC_Raw_Data_for_FY22[[#This Row],[Median]]-AAMC_Raw_Data_for_FY22[[#This Row],[25th]])/25)*5) + AAMC_Raw_Data_for_FY22[[#This Row],[25th]]","v":189148},{"$f":"(((AAMC_Raw_Data_for_FY22[[#This Row],[Median]]-AAMC_Raw_Data_for_FY22[[#This Row],[25th]])/25)*10) + AAMC_Raw_Data_for_FY22[[#This Row],[25th]]","v":195929},{"$f":"(((AAMC_Raw_Data_for_FY22[[#This Row],[Median]]-AAMC_Raw_Data_for_FY22[[#This Row],[25th]])/25)*15) + AAMC_Raw_Data_for_FY22[[#This Row],[25th]]","v":202710},{"$f":"(((AAMC_Raw_Data_for_FY22[[#This Row],[Median]]-AAMC_Raw_Data_for_FY22[[#This Row],[25th]])/25)*20) + AAMC_Raw_Data_for_FY22[[#This Row],[25th]]","v":209491},216272,{"$f":"(((AAMC_Raw_Data_for_FY22[[#This Row],[75th]]-AAMC_Raw_Data_for_FY22[[#This Row],[Median]])/25)*5) + AAMC_Raw_Data_for_FY22[[#This Row],[Median]]","v":226547.6},{"$f":"(((AAMC_Raw_Data_for_FY22[[#This Row],[75th]]-AAMC_Raw_Data_for_FY22[[#This Row],[Median]])/25)*10) + AAMC_Raw_Data_for_FY22[[#This Row],[Median]]","v":236823.2},{"$f":"(((AAMC_Raw_Data_for_FY22[[#This Row],[75th]]-AAMC_Raw_Data_for_FY22[[#This Row],[Median]])/25)*15) + AAMC_Raw_Data_for_FY22[[#This Row],[Median]]","v":247098.8},{"$f":"(((AAMC_Raw_Data_for_FY22[[#This Row],[75th]]-AAMC_Raw_Data_for_FY22[[#This Row],[Median]])/25)*20) + AAMC_Raw_Data_for_FY22[[#This Row],[Median]]","v":257374.4},267650,{"$f":"(((AAMC_Raw_Data_for_FY22[[#This Row],[75th]]-AAMC_Raw_Data_for_FY22[[#This Row],[Median]])/25)*30) + AAMC_Raw_Data_for_FY22[[#This Row],[Median]]","v":277925.59999999998},{"$f":"(((AAMC_Raw_Data_for_FY22[[#This Row],[75th]]-AAMC_Raw_Data_for_FY22[[#This Row],[Median]])/25)*35) + AAMC_Raw_Data_for_FY22[[#This Row],[Median]]","v":288201.2},{"$f":"(((AAMC_Raw_Data_for_FY22[[#This Row],[75th]]-AAMC_Raw_Data_for_FY22[[#This Row],[Median]])/25)*40) + AAMC_Raw_Data_for_FY22[[#This Row],[Median]]","v":298476.79999999999}]
[{"$f":"AAMC_Raw_Data_for_FY22[[#This Row],[Source]]&AAMC_Raw_Data_for_FY22[[#This Row],[Type]]&AAMC_Raw_Data_for_FY22[[#This Row],[School Subset]]&AAMC_Raw_Data_for_FY22[[#This Row],[Rank]]&AAMC_Raw_Data_for_FY22[[#This Row],[Degree]]&AAMC_Raw_Data_for_FY22[[#This Row],[Department / Specialty]]&\"L\"","v":"AAMCAcademicPrivateChiefPhDOther Clinical Science TotalL"},"Other Clinical Science Total",6,"AAMC","Academic","Private","Chief","PhD","2021-2022",166400,{"$f":"(((AAMC_Raw_Data_for_FY22[[#This Row],[Median]]-AAMC_Raw_Data_for_FY22[[#This Row],[25th]])/25)*5) + AAMC_Raw_Data_for_FY22[[#This Row],[25th]]","v":175596},{"$f":"(((AAMC_Raw_Data_for_FY22[[#This Row],[Median]]-AAMC_Raw_Data_for_FY22[[#This Row],[25th]])/25)*10) + AAMC_Raw_Data_for_FY22[[#This Row],[25th]]","v":184792},{"$f":"(((AAMC_Raw_Data_for_FY22[[#This Row],[Median]]-AAMC_Raw_Data_for_FY22[[#This Row],[25th]])/25)*15) + AAMC_Raw_Data_for_FY22[[#This Row],[25th]]","v":193988},{"$f":"(((AAMC_Raw_Data_for_FY22[[#This Row],[Median]]-AAMC_Raw_Data_for_FY22[[#This Row],[25th]])/25)*20) + AAMC_Raw_Data_for_FY22[[#This Row],[25th]]","v":203184},212380,{"$f":"(((AAMC_Raw_Data_for_FY22[[#This Row],[75th]]-AAMC_Raw_Data_for_FY22[[#This Row],[Median]])/25)*5) + AAMC_Raw_Data_for_FY22[[#This Row],[Median]]","v":243678.6},{"$f":"(((AAMC_Raw_Data_for_FY22[[#This Row],[75th]]-AAMC_Raw_Data_for_FY22[[#This Row],[Median]])/25)*10) + AAMC_Raw_Data_for_FY22[[#This Row],[Median]]","v":274977.2},{"$f":"(((AAMC_Raw_Data_for_FY22[[#This Row],[75th]]-AAMC_Raw_Data_for_FY22[[#This Row],[Median]])/25)*15) + AAMC_Raw_Data_for_FY22[[#This Row],[Median]]","v":306275.8},{"$f":"(((AAMC_Raw_Data_for_FY22[[#This Row],[75th]]-AAMC_Raw_Data_for_FY22[[#This Row],[Median]])/25)*20) + AAMC_Raw_Data_for_FY22[[#This Row],[Median]]","v":337574.40000000002},368873,{"$f":"(((AAMC_Raw_Data_for_FY22[[#This Row],[75th]]-AAMC_Raw_Data_for_FY22[[#This Row],[Median]])/25)*30) + AAMC_Raw_Data_for_FY22[[#This Row],[Median]]","v":400171.6},{"$f":"(((AAMC_Raw_Data_for_FY22[[#This Row],[75th]]-AAMC_Raw_Data_for_FY22[[#This Row],[Median]])/25)*35) + AAMC_Raw_Data_for_FY22[[#This Row],[Median]]","v":431470.2},{"$f":"(((AAMC_Raw_Data_for_FY22[[#This Row],[75th]]-AAMC_Raw_Data_for_FY22[[#This Row],[Median]])/25)*40) + AAMC_Raw_Data_for_FY22[[#This Row],[Median]]","v":462768.80000000005}]
[{"$f":"AAMC_Raw_Data_for_FY22[[#This Row],[Source]]&AAMC_Raw_Data_for_FY22[[#This Row],[Type]]&AAMC_Raw_Data_for_FY22[[#This Row],[School Subset]]&AAMC_Raw_Data_for_FY22[[#This Row],[Rank]]&AAMC_Raw_Data_for_FY22[[#This Row],[Degree]]&AAMC_Raw_Data_for_FY22[[#This Row],[Department / Specialty]]&\"L\"","v":"AAMCAcademicPrivateChairPhDOther Clinical Science TotalL"},"Other Clinical Science Total",1,"AAMC","Academic","Private","Chair","PhD","2021-2022",245413,{"$f":"(((AAMC_Raw_Data_for_FY22[[#This Row],[Median]]-AAMC_Raw_Data_for_FY22[[#This Row],[25th]])/25)*5) + AAMC_Raw_Data_for_FY22[[#This Row],[25th]]","v":250679},{"$f":"(((AAMC_Raw_Data_for_FY22[[#This Row],[Median]]-AAMC_Raw_Data_for_FY22[[#This Row],[25th]])/25)*10) + AAMC_Raw_Data_for_FY22[[#This Row],[25th]]","v":255945},{"$f":"(((AAMC_Raw_Data_for_FY22[[#This Row],[Median]]-AAMC_Raw_Data_for_FY22[[#This Row],[25th]])/25)*15) + AAMC_Raw_Data_for_FY22[[#This Row],[25th]]","v":261211},{"$f":"(((AAMC_Raw_Data_for_FY22[[#This Row],[Median]]-AAMC_Raw_Data_for_FY22[[#This Row],[25th]])/25)*20) + AAMC_Raw_Data_for_FY22[[#This Row],[25th]]","v":266477},271743,{"$f":"(((AAMC_Raw_Data_for_FY22[[#This Row],[75th]]-AAMC_Raw_Data_for_FY22[[#This Row],[Median]])/25)*5) + AAMC_Raw_Data_for_FY22[[#This Row],[Median]]","v":287223.40000000002},{"$f":"(((AAMC_Raw_Data_for_FY22[[#This Row],[75th]]-AAMC_Raw_Data_for_FY22[[#This Row],[Median]])/25)*10) + AAMC_Raw_Data_for_FY22[[#This Row],[Median]]","v":302703.8},{"$f":"(((AAMC_Raw_Data_for_FY22[[#This Row],[75th]]-AAMC_Raw_Data_for_FY22[[#This Row],[Median]])/25)*15) + AAMC_Raw_Data_for_FY22[[#This Row],[Median]]","v":318184.2},{"$f":"(((AAMC_Raw_Data_for_FY22[[#This Row],[75th]]-AAMC_Raw_Data_for_FY22[[#This Row],[Median]])/25)*20) + AAMC_Raw_Data_for_FY22[[#This Row],[Median]]","v":333664.59999999998},349145,{"$f":"(((AAMC_Raw_Data_for_FY22[[#This Row],[75th]]-AAMC_Raw_Data_for_FY22[[#This Row],[Median]])/25)*30) + AAMC_Raw_Data_for_FY22[[#This Row],[Median]]","v":364625.4},{"$f":"(((AAMC_Raw_Data_for_FY22[[#This Row],[75th]]-AAMC_Raw_Data_for_FY22[[#This Row],[Median]])/25)*35) + AAMC_Raw_Data_for_FY22[[#This Row],[Median]]","v":380105.8},{"$f":"(((AAMC_Raw_Data_for_FY22[[#This Row],[75th]]-AAMC_Raw_Data_for_FY22[[#This Row],[Median]])/25)*40) + AAMC_Raw_Data_for_FY22[[#This Row],[Median]]","v":395586.2}]
[{"$f":"AAMC_Raw_Data_for_FY22[[#This Row],[Source]]&AAMC_Raw_Data_for_FY22[[#This Row],[Type]]&AAMC_Raw_Data_for_FY22[[#This Row],[School Subset]]&AAMC_Raw_Data_for_FY22[[#This Row],[Rank]]&AAMC_Raw_Data_for_FY22[[#This Row],[Degree]]&AAMC_Raw_Data_for_FY22[[#This Row],[Department / Specialty]]&\"L\"","v":"AAMCAcademicPrivateInstructorPhDCommunity HealthL"},"Community Health",5,"AAMC","Academic","Private","Instructor","PhD","2021-2022",null,{"$f":"(((AAMC_Raw_Data_for_FY22[[#This Row],[Median]]-AAMC_Raw_Data_for_FY22[[#This Row],[25th]])/25)*5) + AAMC_Raw_Data_for_FY22[[#This Row],[25th]]","v":0},{"$f":"(((AAMC_Raw_Data_for_FY22[[#This Row],[Median]]-AAMC_Raw_Data_for_FY22[[#This Row],[25th]])/25)*10) + AAMC_Raw_Data_for_FY22[[#This Row],[25th]]","v":0},{"$f":"(((AAMC_Raw_Data_for_FY22[[#This Row],[Median]]-AAMC_Raw_Data_for_FY22[[#This Row],[25th]])/25)*15) + AAMC_Raw_Data_for_FY22[[#This Row],[25th]]","v":0},{"$f":"(((AAMC_Raw_Data_for_FY22[[#This Row],[Median]]-AAMC_Raw_Data_for_FY22[[#This Row],[25th]])/25)*20) + AAMC_Raw_Data_for_FY22[[#This Row],[25th]]","v":0},null,{"$f":"(((AAMC_Raw_Data_for_FY22[[#This Row],[75th]]-AAMC_Raw_Data_for_FY22[[#This Row],[Median]])/25)*5) + AAMC_Raw_Data_for_FY22[[#This Row],[Median]]","v":0},{"$f":"(((AAMC_Raw_Data_for_FY22[[#This Row],[75th]]-AAMC_Raw_Data_for_FY22[[#This Row],[Median]])/25)*10) + AAMC_Raw_Data_for_FY22[[#This Row],[Median]]","v":0},{"$f":"(((AAMC_Raw_Data_for_FY22[[#This Row],[75th]]-AAMC_Raw_Data_for_FY22[[#This Row],[Median]])/25)*15) + AAMC_Raw_Data_for_FY22[[#This Row],[Median]]","v":0},{"$f":"(((AAMC_Raw_Data_for_FY22[[#This Row],[75th]]-AAMC_Raw_Data_for_FY22[[#This Row],[Median]])/25)*20) + AAMC_Raw_Data_for_FY22[[#This Row],[Median]]","v":0},null,{"$f":"(((AAMC_Raw_Data_for_FY22[[#This Row],[75th]]-AAMC_Raw_Data_for_FY22[[#This Row],[Median]])/25)*30) + AAMC_Raw_Data_for_FY22[[#This Row],[Median]]","v":0},{"$f":"(((AAMC_Raw_Data_for_FY22[[#This Row],[75th]]-AAMC_Raw_Data_for_FY22[[#This Row],[Median]])/25)*35) + AAMC_Raw_Data_for_FY22[[#This Row],[Median]]","v":0},{"$f":"(((AAMC_Raw_Data_for_FY22[[#This Row],[75th]]-AAMC_Raw_Data_for_FY22[[#This Row],[Median]])/25)*40) + AAMC_Raw_Data_for_FY22[[#This Row],[Median]]","v":0}]
[{"$f":"AAMC_Raw_Data_for_FY22[[#This Row],[Source]]&AAMC_Raw_Data_for_FY22[[#This Row],[Type]]&AAMC_Raw_Data_for_FY22[[#This Row],[School Subset]]&AAMC_Raw_Data_for_FY22[[#This Row],[Rank]]&AAMC_Raw_Data_for_FY22[[#This Row],[Degree]]&AAMC_Raw_Data_for_FY22[[#This Row],[Department / Specialty]]&\"L\"","v":"AAMCAcademicPrivateAssistantPhDCommunity HealthL"},"Community Health",4,"AAMC","Academic","Private","Assistant","PhD","2021-2022",104759,{"$f":"(((AAMC_Raw_Data_for_FY22[[#This Row],[Median]]-AAMC_Raw_Data_for_FY22[[#This Row],[25th]])/25)*5) + AAMC_Raw_Data_for_FY22[[#This Row],[25th]]","v":108363.8},{"$f":"(((AAMC_Raw_Data_for_FY22[[#This Row],[Median]]-AAMC_Raw_Data_for_FY22[[#This Row],[25th]])/25)*10) + AAMC_Raw_Data_for_FY22[[#This Row],[25th]]","v":111968.6},{"$f":"(((AAMC_Raw_Data_for_FY22[[#This Row],[Median]]-AAMC_Raw_Data_for_FY22[[#This Row],[25th]])/25)*15) + AAMC_Raw_Data_for_FY22[[#This Row],[25th]]","v":115573.4},{"$f":"(((AAMC_Raw_Data_for_FY22[[#This Row],[Median]]-AAMC_Raw_Data_for_FY22[[#This Row],[25th]])/25)*20) + AAMC_Raw_Data_for_FY22[[#This Row],[25th]]","v":119178.2},122783,{"$f":"(((AAMC_Raw_Data_for_FY22[[#This Row],[75th]]-AAMC_Raw_Data_for_FY22[[#This Row],[Median]])/25)*5) + AAMC_Raw_Data_for_FY22[[#This Row],[Median]]","v":124197.2},{"$f":"(((AAMC_Raw_Data_for_FY22[[#This Row],[75th]]-AAMC_Raw_Data_for_FY22[[#This Row],[Median]])/25)*10) + AAMC_Raw_Data_for_FY22[[#This Row],[Median]]","v":125611.4},{"$f":"(((AAMC_Raw_Data_for_FY22[[#This Row],[75th]]-AAMC_Raw_Data_for_FY22[[#This Row],[Median]])/25)*15) + AAMC_Raw_Data_for_FY22[[#This Row],[Median]]","v":127025.60000000001},{"$f":"(((AAMC_Raw_Data_for_FY22[[#This Row],[75th]]-AAMC_Raw_Data_for_FY22[[#This Row],[Median]])/25)*20) + AAMC_Raw_Data_for_FY22[[#This Row],[Median]]","v":128439.8},129854,{"$f":"(((AAMC_Raw_Data_for_FY22[[#This Row],[75th]]-AAMC_Raw_Data_for_FY22[[#This Row],[Median]])/25)*30) + AAMC_Raw_Data_for_FY22[[#This Row],[Median]]","v":131268.20000000001},{"$f":"(((AAMC_Raw_Data_for_FY22[[#This Row],[75th]]-AAMC_Raw_Data_for_FY22[[#This Row],[Median]])/25)*35) + AAMC_Raw_Data_for_FY22[[#This Row],[Median]]","v":132682.4},{"$f":"(((AAMC_Raw_Data_for_FY22[[#This Row],[75th]]-AAMC_Raw_Data_for_FY22[[#This Row],[Median]])/25)*40) + AAMC_Raw_Data_for_FY22[[#This Row],[Median]]","v":134096.6}]
[{"$f":"AAMC_Raw_Data_for_FY22[[#This Row],[Source]]&AAMC_Raw_Data_for_FY22[[#This Row],[Type]]&AAMC_Raw_Data_for_FY22[[#This Row],[School Subset]]&AAMC_Raw_Data_for_FY22[[#This Row],[Rank]]&AAMC_Raw_Data_for_FY22[[#This Row],[Degree]]&AAMC_Raw_Data_for_FY22[[#This Row],[Department / Specialty]]&\"L\"","v":"AAMCAcademicPrivateAssociatePhDCommunity HealthL"},"Community Health",3,"AAMC","Academic","Private","Associate","PhD","2021-2022",105400,{"$f":"(((AAMC_Raw_Data_for_FY22[[#This Row],[Median]]-AAMC_Raw_Data_for_FY22[[#This Row],[25th]])/25)*5) + AAMC_Raw_Data_for_FY22[[#This Row],[25th]]","v":109377.60000000001},{"$f":"(((AAMC_Raw_Data_for_FY22[[#This Row],[Median]]-AAMC_Raw_Data_for_FY22[[#This Row],[25th]])/25)*10) + AAMC_Raw_Data_for_FY22[[#This Row],[25th]]","v":113355.2},{"$f":"(((AAMC_Raw_Data_for_FY22[[#This Row],[Median]]-AAMC_Raw_Data_for_FY22[[#This Row],[25th]])/25)*15) + AAMC_Raw_Data_for_FY22[[#This Row],[25th]]","v":117332.8},{"$f":"(((AAMC_Raw_Data_for_FY22[[#This Row],[Median]]-AAMC_Raw_Data_for_FY22[[#This Row],[25th]])/25)*20) + AAMC_Raw_Data_for_FY22[[#This Row],[25th]]","v":121310.39999999999},125288,{"$f":"(((AAMC_Raw_Data_for_FY22[[#This Row],[75th]]-AAMC_Raw_Data_for_FY22[[#This Row],[Median]])/25)*5) + AAMC_Raw_Data_for_FY22[[#This Row],[Median]]","v":131641.79999999999},{"$f":"(((AAMC_Raw_Data_for_FY22[[#This Row],[75th]]-AAMC_Raw_Data_for_FY22[[#This Row],[Median]])/25)*10) + AAMC_Raw_Data_for_FY22[[#This Row],[Median]]","v":137995.6},{"$f":"(((AAMC_Raw_Data_for_FY22[[#This Row],[75th]]-AAMC_Raw_Data_for_FY22[[#This Row],[Median]])/25)*15) + AAMC_Raw_Data_for_FY22[[#This Row],[Median]]","v":144349.4},{"$f":"(((AAMC_Raw_Data_for_FY22[[#This Row],[75th]]-AAMC_Raw_Data_for_FY22[[#This Row],[Median]])/25)*20) + AAMC_Raw_Data_for_FY22[[#This Row],[Median]]","v":150703.20000000001},157057,{"$f":"(((AAMC_Raw_Data_for_FY22[[#This Row],[75th]]-AAMC_Raw_Data_for_FY22[[#This Row],[Median]])/25)*30) + AAMC_Raw_Data_for_FY22[[#This Row],[Median]]","v":163410.79999999999},{"$f":"(((AAMC_Raw_Data_for_FY22[[#This Row],[75th]]-AAMC_Raw_Data_for_FY22[[#This Row],[Median]])/25)*35) + AAMC_Raw_Data_for_FY22[[#This Row],[Median]]","v":169764.6},{"$f":"(((AAMC_Raw_Data_for_FY22[[#This Row],[75th]]-AAMC_Raw_Data_for_FY22[[#This Row],[Median]])/25)*40) + AAMC_Raw_Data_for_FY22[[#This Row],[Median]]","v":176118.39999999999}]
[{"$f":"AAMC_Raw_Data_for_FY22[[#This Row],[Source]]&AAMC_Raw_Data_for_FY22[[#This Row],[Type]]&AAMC_Raw_Data_for_FY22[[#This Row],[School Subset]]&AAMC_Raw_Data_for_FY22[[#This Row],[Rank]]&AAMC_Raw_Data_for_FY22[[#This Row],[Degree]]&AAMC_Raw_Data_for_FY22[[#This Row],[Department / Specialty]]&\"L\"","v":"AAMCAcademicPrivateProfessorPhDCommunity HealthL"},"Community Health",2,"AAMC","Academic","Private","Professor","PhD","2021-2022",177337,{"$f":"(((AAMC_Raw_Data_for_FY22[[#This Row],[Median]]-AAMC_Raw_Data_for_FY22[[#This Row],[25th]])/25)*5) + AAMC_Raw_Data_for_FY22[[#This Row],[25th]]","v":182699.6},{"$f":"(((AAMC_Raw_Data_for_FY22[[#This Row],[Median]]-AAMC_Raw_Data_for_FY22[[#This Row],[25th]])/25)*10) + AAMC_Raw_Data_for_FY22[[#This Row],[25th]]","v":188062.2},{"$f":"(((AAMC_Raw_Data_for_FY22[[#This Row],[Median]]-AAMC_Raw_Data_for_FY22[[#This Row],[25th]])/25)*15) + AAMC_Raw_Data_for_FY22[[#This Row],[25th]]","v":193424.8},{"$f":"(((AAMC_Raw_Data_for_FY22[[#This Row],[Median]]-AAMC_Raw_Data_for_FY22[[#This Row],[25th]])/25)*20) + AAMC_Raw_Data_for_FY22[[#This Row],[25th]]","v":198787.4},204150,{"$f":"(((AAMC_Raw_Data_for_FY22[[#This Row],[75th]]-AAMC_Raw_Data_for_FY22[[#This Row],[Median]])/25)*5) + AAMC_Raw_Data_for_FY22[[#This Row],[Median]]","v":210710},{"$f":"(((AAMC_Raw_Data_for_FY22[[#This Row],[75th]]-AAMC_Raw_Data_for_FY22[[#This Row],[Median]])/25)*10) + AAMC_Raw_Data_for_FY22[[#This Row],[Median]]","v":217270},{"$f":"(((AAMC_Raw_Data_for_FY22[[#This Row],[75th]]-AAMC_Raw_Data_for_FY22[[#This Row],[Median]])/25)*15) + AAMC_Raw_Data_for_FY22[[#This Row],[Median]]","v":223830},{"$f":"(((AAMC_Raw_Data_for_FY22[[#This Row],[75th]]-AAMC_Raw_Data_for_FY22[[#This Row],[Median]])/25)*20) + AAMC_Raw_Data_for_FY22[[#This Row],[Median]]","v":230390},236950,{"$f":"(((AAMC_Raw_Data_for_FY22[[#This Row],[75th]]-AAMC_Raw_Data_for_FY22[[#This Row],[Median]])/25)*30) + AAMC_Raw_Data_for_FY22[[#This Row],[Median]]","v":243510},{"$f":"(((AAMC_Raw_Data_for_FY22[[#This Row],[75th]]-AAMC_Raw_Data_for_FY22[[#This Row],[Median]])/25)*35) + AAMC_Raw_Data_for_FY22[[#This Row],[Median]]","v":250070},{"$f":"(((AAMC_Raw_Data_for_FY22[[#This Row],[75th]]-AAMC_Raw_Data_for_FY22[[#This Row],[Median]])/25)*40) + AAMC_Raw_Data_for_FY22[[#This Row],[Median]]","v":256630}]
[{"$f":"AAMC_Raw_Data_for_FY22[[#This Row],[Source]]&AAMC_Raw_Data_for_FY22[[#This Row],[Type]]&AAMC_Raw_Data_for_FY22[[#This Row],[School Subset]]&AAMC_Raw_Data_for_FY22[[#This Row],[Rank]]&AAMC_Raw_Data_for_FY22[[#This Row],[Degree]]&AAMC_Raw_Data_for_FY22[[#This Row],[Department / Specialty]]&\"L\"","v":"AAMCAcademicPrivateInstructorPhDEmergency MedicineL"},"Emergency Medicine",5,"AAMC","Academic","Private","Instructor","PhD","2021-2022",null,{"$f":"(((AAMC_Raw_Data_for_FY22[[#This Row],[Median]]-AAMC_Raw_Data_for_FY22[[#This Row],[25th]])/25)*5) + AAMC_Raw_Data_for_FY22[[#This Row],[25th]]","v":0},{"$f":"(((AAMC_Raw_Data_for_FY22[[#This Row],[Median]]-AAMC_Raw_Data_for_FY22[[#This Row],[25th]])/25)*10) + AAMC_Raw_Data_for_FY22[[#This Row],[25th]]","v":0},{"$f":"(((AAMC_Raw_Data_for_FY22[[#This Row],[Median]]-AAMC_Raw_Data_for_FY22[[#This Row],[25th]])/25)*15) + AAMC_Raw_Data_for_FY22[[#This Row],[25th]]","v":0},{"$f":"(((AAMC_Raw_Data_for_FY22[[#This Row],[Median]]-AAMC_Raw_Data_for_FY22[[#This Row],[25th]])/25)*20) + AAMC_Raw_Data_for_FY22[[#This Row],[25th]]","v":0},null,{"$f":"(((AAMC_Raw_Data_for_FY22[[#This Row],[75th]]-AAMC_Raw_Data_for_FY22[[#This Row],[Median]])/25)*5) + AAMC_Raw_Data_for_FY22[[#This Row],[Median]]","v":0},{"$f":"(((AAMC_Raw_Data_for_FY22[[#This Row],[75th]]-AAMC_Raw_Data_for_FY22[[#This Row],[Median]])/25)*10) + AAMC_Raw_Data_for_FY22[[#This Row],[Median]]","v":0},{"$f":"(((AAMC_Raw_Data_for_FY22[[#This Row],[75th]]-AAMC_Raw_Data_for_FY22[[#This Row],[Median]])/25)*15) + AAMC_Raw_Data_for_FY22[[#This Row],[Median]]","v":0},{"$f":"(((AAMC_Raw_Data_for_FY22[[#This Row],[75th]]-AAMC_Raw_Data_for_FY22[[#This Row],[Median]])/25)*20) + AAMC_Raw_Data_for_FY22[[#This Row],[Median]]","v":0},null,{"$f":"(((AAMC_Raw_Data_for_FY22[[#This Row],[75th]]-AAMC_Raw_Data_for_FY22[[#This Row],[Median]])/25)*30) + AAMC_Raw_Data_for_FY22[[#This Row],[Median]]","v":0},{"$f":"(((AAMC_Raw_Data_for_FY22[[#This Row],[75th]]-AAMC_Raw_Data_for_FY22[[#This Row],[Median]])/25)*35) + AAMC_Raw_Data_for_FY22[[#This Row],[Median]]","v":0},{"$f":"(((AAMC_Raw_Data_for_FY22[[#This Row],[75th]]-AAMC_Raw_Data_for_FY22[[#This Row],[Median]])/25)*40) + AAMC_Raw_Data_for_FY22[[#This Row],[Median]]","v":0}]
[{"$f":"AAMC_Raw_Data_for_FY22[[#This Row],[Source]]&AAMC_Raw_Data_for_FY22[[#This Row],[Type]]&AAMC_Raw_Data_for_FY22[[#This Row],[School Subset]]&AAMC_Raw_Data_for_FY22[[#This Row],[Rank]]&AAMC_Raw_Data_for_FY22[[#This Row],[Degree]]&AAMC_Raw_Data_for_FY22[[#This Row],[Department / Specialty]]&\"L\"","v":"AAMCAcademicPrivateAssistantPhDEmergency MedicineL"},"Emergency Medicine",4,"AAMC","Academic","Private","Assistant","PhD","2021-2022",119752,{"$f":"(((AAMC_Raw_Data_for_FY22[[#This Row],[Median]]-AAMC_Raw_Data_for_FY22[[#This Row],[25th]])/25)*5) + AAMC_Raw_Data_for_FY22[[#This Row],[25th]]","v":125077.4},{"$f":"(((AAMC_Raw_Data_for_FY22[[#This Row],[Median]]-AAMC_Raw_Data_for_FY22[[#This Row],[25th]])/25)*10) + AAMC_Raw_Data_for_FY22[[#This Row],[25th]]","v":130402.8},{"$f":"(((AAMC_Raw_Data_for_FY22[[#This Row],[Median]]-AAMC_Raw_Data_for_FY22[[#This Row],[25th]])/25)*15) + AAMC_Raw_Data_for_FY22[[#This Row],[25th]]","v":135728.20000000001},{"$f":"(((AAMC_Raw_Data_for_FY22[[#This Row],[Median]]-AAMC_Raw_Data_for_FY22[[#This Row],[25th]])/25)*20) + AAMC_Raw_Data_for_FY22[[#This Row],[25th]]","v":141053.6},146379,{"$f":"(((AAMC_Raw_Data_for_FY22[[#This Row],[75th]]-AAMC_Raw_Data_for_FY22[[#This Row],[Median]])/25)*5) + AAMC_Raw_Data_for_FY22[[#This Row],[Median]]","v":169822.4},{"$f":"(((AAMC_Raw_Data_for_FY22[[#This Row],[75th]]-AAMC_Raw_Data_for_FY22[[#This Row],[Median]])/25)*10) + AAMC_Raw_Data_for_FY22[[#This Row],[Median]]","v":193265.8},{"$f":"(((AAMC_Raw_Data_for_FY22[[#This Row],[75th]]-AAMC_Raw_Data_for_FY22[[#This Row],[Median]])/25)*15) + AAMC_Raw_Data_for_FY22[[#This Row],[Median]]","v":216709.2},{"$f":"(((AAMC_Raw_Data_for_FY22[[#This Row],[75th]]-AAMC_Raw_Data_for_FY22[[#This Row],[Median]])/25)*20) + AAMC_Raw_Data_for_FY22[[#This Row],[Median]]","v":240152.6},263596,{"$f":"(((AAMC_Raw_Data_for_FY22[[#This Row],[75th]]-AAMC_Raw_Data_for_FY22[[#This Row],[Median]])/25)*30) + AAMC_Raw_Data_for_FY22[[#This Row],[Median]]","v":287039.40000000002},{"$f":"(((AAMC_Raw_Data_for_FY22[[#This Row],[75th]]-AAMC_Raw_Data_for_FY22[[#This Row],[Median]])/25)*35) + AAMC_Raw_Data_for_FY22[[#This Row],[Median]]","v":310482.80000000005},{"$f":"(((AAMC_Raw_Data_for_FY22[[#This Row],[75th]]-AAMC_Raw_Data_for_FY22[[#This Row],[Median]])/25)*40) + AAMC_Raw_Data_for_FY22[[#This Row],[Median]]","v":333926.2}]
[{"$f":"AAMC_Raw_Data_for_FY22[[#This Row],[Source]]&AAMC_Raw_Data_for_FY22[[#This Row],[Type]]&AAMC_Raw_Data_for_FY22[[#This Row],[School Subset]]&AAMC_Raw_Data_for_FY22[[#This Row],[Rank]]&AAMC_Raw_Data_for_FY22[[#This Row],[Degree]]&AAMC_Raw_Data_for_FY22[[#This Row],[Department / Specialty]]&\"L\"","v":"AAMCAcademicPrivateAssociatePhDEmergency MedicineL"},"Emergency Medicine",3,"AAMC","Academic","Private","Associate","PhD","2021-2022",133518,{"$f":"(((AAMC_Raw_Data_for_FY22[[#This Row],[Median]]-AAMC_Raw_Data_for_FY22[[#This Row],[25th]])/25)*5) + AAMC_Raw_Data_for_FY22[[#This Row],[25th]]","v":142870.6},{"$f":"(((AAMC_Raw_Data_for_FY22[[#This Row],[Median]]-AAMC_Raw_Data_for_FY22[[#This Row],[25th]])/25)*10) + AAMC_Raw_Data_for_FY22[[#This Row],[25th]]","v":152223.20000000001},{"$f":"(((AAMC_Raw_Data_for_FY22[[#This Row],[Median]]-AAMC_Raw_Data_for_FY22[[#This Row],[25th]])/25)*15) + AAMC_Raw_Data_for_FY22[[#This Row],[25th]]","v":161575.79999999999},{"$f":"(((AAMC_Raw_Data_for_FY22[[#This Row],[Median]]-AAMC_Raw_Data_for_FY22[[#This Row],[25th]])/25)*20) + AAMC_Raw_Data_for_FY22[[#This Row],[25th]]","v":170928.4},180281,{"$f":"(((AAMC_Raw_Data_for_FY22[[#This Row],[75th]]-AAMC_Raw_Data_for_FY22[[#This Row],[Median]])/25)*5) + AAMC_Raw_Data_for_FY22[[#This Row],[Median]]","v":184163.8},{"$f":"(((AAMC_Raw_Data_for_FY22[[#This Row],[75th]]-AAMC_Raw_Data_for_FY22[[#This Row],[Median]])/25)*10) + AAMC_Raw_Data_for_FY22[[#This Row],[Median]]","v":188046.6},{"$f":"(((AAMC_Raw_Data_for_FY22[[#This Row],[75th]]-AAMC_Raw_Data_for_FY22[[#This Row],[Median]])/25)*15) + AAMC_Raw_Data_for_FY22[[#This Row],[Median]]","v":191929.4},{"$f":"(((AAMC_Raw_Data_for_FY22[[#This Row],[75th]]-AAMC_Raw_Data_for_FY22[[#This Row],[Median]])/25)*20) + AAMC_Raw_Data_for_FY22[[#This Row],[Median]]","v":195812.2},199695,{"$f":"(((AAMC_Raw_Data_for_FY22[[#This Row],[75th]]-AAMC_Raw_Data_for_FY22[[#This Row],[Median]])/25)*30) + AAMC_Raw_Data_for_FY22[[#This Row],[Median]]","v":203577.8},{"$f":"(((AAMC_Raw_Data_for_FY22[[#This Row],[75th]]-AAMC_Raw_Data_for_FY22[[#This Row],[Median]])/25)*35) + AAMC_Raw_Data_for_FY22[[#This Row],[Median]]","v":207460.6},{"$f":"(((AAMC_Raw_Data_for_FY22[[#This Row],[75th]]-AAMC_Raw_Data_for_FY22[[#This Row],[Median]])/25)*40) + AAMC_Raw_Data_for_FY22[[#This Row],[Median]]","v":211343.4}]
[{"$f":"AAMC_Raw_Data_for_FY22[[#This Row],[Source]]&AAMC_Raw_Data_for_FY22[[#This Row],[Type]]&AAMC_Raw_Data_for_FY22[[#This Row],[School Subset]]&AAMC_Raw_Data_for_FY22[[#This Row],[Rank]]&AAMC_Raw_Data_for_FY22[[#This Row],[Degree]]&AAMC_Raw_Data_for_FY22[[#This Row],[Department / Specialty]]&\"L\"","v":"AAMCAcademicPrivateProfessorPhDEmergency MedicineL"},"Emergency Medicine",2,"AAMC","Academic","Private","Professor","PhD","2021-2022",198429,{"$f":"(((AAMC_Raw_Data_for_FY22[[#This Row],[Median]]-AAMC_Raw_Data_for_FY22[[#This Row],[25th]])/25)*5) + AAMC_Raw_Data_for_FY22[[#This Row],[25th]]","v":209163.8},{"$f":"(((AAMC_Raw_Data_for_FY22[[#This Row],[Median]]-AAMC_Raw_Data_for_FY22[[#This Row],[25th]])/25)*10) + AAMC_Raw_Data_for_FY22[[#This Row],[25th]]","v":219898.6},{"$f":"(((AAMC_Raw_Data_for_FY22[[#This Row],[Median]]-AAMC_Raw_Data_for_FY22[[#This Row],[25th]])/25)*15) + AAMC_Raw_Data_for_FY22[[#This Row],[25th]]","v":230633.4},{"$f":"(((AAMC_Raw_Data_for_FY22[[#This Row],[Median]]-AAMC_Raw_Data_for_FY22[[#This Row],[25th]])/25)*20) + AAMC_Raw_Data_for_FY22[[#This Row],[25th]]","v":241368.2},252103,{"$f":"(((AAMC_Raw_Data_for_FY22[[#This Row],[75th]]-AAMC_Raw_Data_for_FY22[[#This Row],[Median]])/25)*5) + AAMC_Raw_Data_for_FY22[[#This Row],[Median]]","v":277435.59999999998},{"$f":"(((AAMC_Raw_Data_for_FY22[[#This Row],[75th]]-AAMC_Raw_Data_for_FY22[[#This Row],[Median]])/25)*10) + AAMC_Raw_Data_for_FY22[[#This Row],[Median]]","v":302768.2},{"$f":"(((AAMC_Raw_Data_for_FY22[[#This Row],[75th]]-AAMC_Raw_Data_for_FY22[[#This Row],[Median]])/25)*15) + AAMC_Raw_Data_for_FY22[[#This Row],[Median]]","v":328100.8},{"$f":"(((AAMC_Raw_Data_for_FY22[[#This Row],[75th]]-AAMC_Raw_Data_for_FY22[[#This Row],[Median]])/25)*20) + AAMC_Raw_Data_for_FY22[[#This Row],[Median]]","v":353433.4},378766,{"$f":"(((AAMC_Raw_Data_for_FY22[[#This Row],[75th]]-AAMC_Raw_Data_for_FY22[[#This Row],[Median]])/25)*30) + AAMC_Raw_Data_for_FY22[[#This Row],[Median]]","v":404098.6},{"$f":"(((AAMC_Raw_Data_for_FY22[[#This Row],[75th]]-AAMC_Raw_Data_for_FY22[[#This Row],[Median]])/25)*35) + AAMC_Raw_Data_for_FY22[[#This Row],[Median]]","v":429431.2},{"$f":"(((AAMC_Raw_Data_for_FY22[[#This Row],[75th]]-AAMC_Raw_Data_for_FY22[[#This Row],[Median]])/25)*40) + AAMC_Raw_Data_for_FY22[[#This Row],[Median]]","v":454763.80000000005}]
[{"$f":"AAMC_Raw_Data_for_FY22[[#This Row],[Source]]&AAMC_Raw_Data_for_FY22[[#This Row],[Type]]&AAMC_Raw_Data_for_FY22[[#This Row],[School Subset]]&AAMC_Raw_Data_for_FY22[[#This Row],[Rank]]&AAMC_Raw_Data_for_FY22[[#This Row],[Degree]]&AAMC_Raw_Data_for_FY22[[#This Row],[Department / Specialty]]&\"L\"","v":"AAMCAcademicPrivateChiefPhDEmergency MedicineL"},"Emergency Medicine",6,"AAMC","Academic","Private","Chief","PhD","2021-2022",null,{"$f":"(((AAMC_Raw_Data_for_FY22[[#This Row],[Median]]-AAMC_Raw_Data_for_FY22[[#This Row],[25th]])/25)*5) + AAMC_Raw_Data_for_FY22[[#This Row],[25th]]","v":0},{"$f":"(((AAMC_Raw_Data_for_FY22[[#This Row],[Median]]-AAMC_Raw_Data_for_FY22[[#This Row],[25th]])/25)*10) + AAMC_Raw_Data_for_FY22[[#This Row],[25th]]","v":0},{"$f":"(((AAMC_Raw_Data_for_FY22[[#This Row],[Median]]-AAMC_Raw_Data_for_FY22[[#This Row],[25th]])/25)*15) + AAMC_Raw_Data_for_FY22[[#This Row],[25th]]","v":0},{"$f":"(((AAMC_Raw_Data_for_FY22[[#This Row],[Median]]-AAMC_Raw_Data_for_FY22[[#This Row],[25th]])/25)*20) + AAMC_Raw_Data_for_FY22[[#This Row],[25th]]","v":0},null,{"$f":"(((AAMC_Raw_Data_for_FY22[[#This Row],[75th]]-AAMC_Raw_Data_for_FY22[[#This Row],[Median]])/25)*5) + AAMC_Raw_Data_for_FY22[[#This Row],[Median]]","v":0},{"$f":"(((AAMC_Raw_Data_for_FY22[[#This Row],[75th]]-AAMC_Raw_Data_for_FY22[[#This Row],[Median]])/25)*10) + AAMC_Raw_Data_for_FY22[[#This Row],[Median]]","v":0},{"$f":"(((AAMC_Raw_Data_for_FY22[[#This Row],[75th]]-AAMC_Raw_Data_for_FY22[[#This Row],[Median]])/25)*15) + AAMC_Raw_Data_for_FY22[[#This Row],[Median]]","v":0},{"$f":"(((AAMC_Raw_Data_for_FY22[[#This Row],[75th]]-AAMC_Raw_Data_for_FY22[[#This Row],[Median]])/25)*20) + AAMC_Raw_Data_for_FY22[[#This Row],[Median]]","v":0},null,{"$f":"(((AAMC_Raw_Data_for_FY22[[#This Row],[75th]]-AAMC_Raw_Data_for_FY22[[#This Row],[Median]])/25)*30) + AAMC_Raw_Data_for_FY22[[#This Row],[Median]]","v":0},{"$f":"(((AAMC_Raw_Data_for_FY22[[#This Row],[75th]]-AAMC_Raw_Data_for_FY22[[#This Row],[Median]])/25)*35) + AAMC_Raw_Data_for_FY22[[#This Row],[Median]]","v":0},{"$f":"(((AAMC_Raw_Data_for_FY22[[#This Row],[75th]]-AAMC_Raw_Data_for_FY22[[#This Row],[Median]])/25)*40) + AAMC_Raw_Data_for_FY22[[#This Row],[Median]]","v":0}]
[{"$f":"AAMC_Raw_Data_for_FY22[[#This Row],[Source]]&AAMC_Raw_Data_for_FY22[[#This Row],[Type]]&AAMC_Raw_Data_for_FY22[[#This Row],[School Subset]]&AAMC_Raw_Data_for_FY22[[#This Row],[Rank]]&AAMC_Raw_Data_for_FY22[[#This Row],[Degree]]&AAMC_Raw_Data_for_FY22[[#This Row],[Department / Specialty]]&\"L\"","v":"AAMCAcademicPrivateInstructorPhDNeurologyL"},"Neurology",5,"AAMC","Academic","Private","Instructor","PhD","2021-2022",77000,{"$f":"(((AAMC_Raw_Data_for_FY22[[#This Row],[Median]]-AAMC_Raw_Data_for_FY22[[#This Row],[25th]])/25)*5) + AAMC_Raw_Data_for_FY22[[#This Row],[25th]]","v":78386},{"$f":"(((AAMC_Raw_Data_for_FY22[[#This Row],[Median]]-AAMC_Raw_Data_for_FY22[[#This Row],[25th]])/25)*10) + AAMC_Raw_Data_for_FY22[[#This Row],[25th]]","v":79772},{"$f":"(((AAMC_Raw_Data_for_FY22[[#This Row],[Median]]-AAMC_Raw_Data_for_FY22[[#This Row],[25th]])/25)*15) + AAMC_Raw_Data_for_FY22[[#This Row],[25th]]","v":81158},{"$f":"(((AAMC_Raw_Data_for_FY22[[#This Row],[Median]]-AAMC_Raw_Data_for_FY22[[#This Row],[25th]])/25)*20) + AAMC_Raw_Data_for_FY22[[#This Row],[25th]]","v":82544},83930,{"$f":"(((AAMC_Raw_Data_for_FY22[[#This Row],[75th]]-AAMC_Raw_Data_for_FY22[[#This Row],[Median]])/25)*5) + AAMC_Raw_Data_for_FY22[[#This Row],[Median]]","v":86784},{"$f":"(((AAMC_Raw_Data_for_FY22[[#This Row],[75th]]-AAMC_Raw_Data_for_FY22[[#This Row],[Median]])/25)*10) + AAMC_Raw_Data_for_FY22[[#This Row],[Median]]","v":89638},{"$f":"(((AAMC_Raw_Data_for_FY22[[#This Row],[75th]]-AAMC_Raw_Data_for_FY22[[#This Row],[Median]])/25)*15) + AAMC_Raw_Data_for_FY22[[#This Row],[Median]]","v":92492},{"$f":"(((AAMC_Raw_Data_for_FY22[[#This Row],[75th]]-AAMC_Raw_Data_for_FY22[[#This Row],[Median]])/25)*20) + AAMC_Raw_Data_for_FY22[[#This Row],[Median]]","v":95346},98200,{"$f":"(((AAMC_Raw_Data_for_FY22[[#This Row],[75th]]-AAMC_Raw_Data_for_FY22[[#This Row],[Median]])/25)*30) + AAMC_Raw_Data_for_FY22[[#This Row],[Median]]","v":101054},{"$f":"(((AAMC_Raw_Data_for_FY22[[#This Row],[75th]]-AAMC_Raw_Data_for_FY22[[#This Row],[Median]])/25)*35) + AAMC_Raw_Data_for_FY22[[#This Row],[Median]]","v":103908},{"$f":"(((AAMC_Raw_Data_for_FY22[[#This Row],[75th]]-AAMC_Raw_Data_for_FY22[[#This Row],[Median]])/25)*40) + AAMC_Raw_Data_for_FY22[[#This Row],[Median]]","v":106762}]
[{"$f":"AAMC_Raw_Data_for_FY22[[#This Row],[Source]]&AAMC_Raw_Data_for_FY22[[#This Row],[Type]]&AAMC_Raw_Data_for_FY22[[#This Row],[School Subset]]&AAMC_Raw_Data_for_FY22[[#This Row],[Rank]]&AAMC_Raw_Data_for_FY22[[#This Row],[Degree]]&AAMC_Raw_Data_for_FY22[[#This Row],[Department / Specialty]]&\"L\"","v":"AAMCAcademicPrivateAssistantPhDNeurologyL"},"Neurology",4,"AAMC","Academic","Private","Assistant","PhD","2021-2022",97889,{"$f":"(((AAMC_Raw_Data_for_FY22[[#This Row],[Median]]-AAMC_Raw_Data_for_FY22[[#This Row],[25th]])/25)*5) + AAMC_Raw_Data_for_FY22[[#This Row],[25th]]","v":101769},{"$f":"(((AAMC_Raw_Data_for_FY22[[#This Row],[Median]]-AAMC_Raw_Data_for_FY22[[#This Row],[25th]])/25)*10) + AAMC_Raw_Data_for_FY22[[#This Row],[25th]]","v":105649},{"$f":"(((AAMC_Raw_Data_for_FY22[[#This Row],[Median]]-AAMC_Raw_Data_for_FY22[[#This Row],[25th]])/25)*15) + AAMC_Raw_Data_for_FY22[[#This Row],[25th]]","v":109529},{"$f":"(((AAMC_Raw_Data_for_FY22[[#This Row],[Median]]-AAMC_Raw_Data_for_FY22[[#This Row],[25th]])/25)*20) + AAMC_Raw_Data_for_FY22[[#This Row],[25th]]","v":113409},117289,{"$f":"(((AAMC_Raw_Data_for_FY22[[#This Row],[75th]]-AAMC_Raw_Data_for_FY22[[#This Row],[Median]])/25)*5) + AAMC_Raw_Data_for_FY22[[#This Row],[Median]]","v":121290.6},{"$f":"(((AAMC_Raw_Data_for_FY22[[#This Row],[75th]]-AAMC_Raw_Data_for_FY22[[#This Row],[Median]])/25)*10) + AAMC_Raw_Data_for_FY22[[#This Row],[Median]]","v":125292.2},{"$f":"(((AAMC_Raw_Data_for_FY22[[#This Row],[75th]]-AAMC_Raw_Data_for_FY22[[#This Row],[Median]])/25)*15) + AAMC_Raw_Data_for_FY22[[#This Row],[Median]]","v":129293.8},{"$f":"(((AAMC_Raw_Data_for_FY22[[#This Row],[75th]]-AAMC_Raw_Data_for_FY22[[#This Row],[Median]])/25)*20) + AAMC_Raw_Data_for_FY22[[#This Row],[Median]]","v":133295.4},137297,{"$f":"(((AAMC_Raw_Data_for_FY22[[#This Row],[75th]]-AAMC_Raw_Data_for_FY22[[#This Row],[Median]])/25)*30) + AAMC_Raw_Data_for_FY22[[#This Row],[Median]]","v":141298.6},{"$f":"(((AAMC_Raw_Data_for_FY22[[#This Row],[75th]]-AAMC_Raw_Data_for_FY22[[#This Row],[Median]])/25)*35) + AAMC_Raw_Data_for_FY22[[#This Row],[Median]]","v":145300.20000000001},{"$f":"(((AAMC_Raw_Data_for_FY22[[#This Row],[75th]]-AAMC_Raw_Data_for_FY22[[#This Row],[Median]])/25)*40) + AAMC_Raw_Data_for_FY22[[#This Row],[Median]]","v":149301.79999999999}]
[{"$f":"AAMC_Raw_Data_for_FY22[[#This Row],[Source]]&AAMC_Raw_Data_for_FY22[[#This Row],[Type]]&AAMC_Raw_Data_for_FY22[[#This Row],[School Subset]]&AAMC_Raw_Data_for_FY22[[#This Row],[Rank]]&AAMC_Raw_Data_for_FY22[[#This Row],[Degree]]&AAMC_Raw_Data_for_FY22[[#This Row],[Department / Specialty]]&\"L\"","v":"AAMCAcademicPrivateAssociatePhDNeurologyL"},"Neurology",3,"AAMC","Academic","Private","Associate","PhD","2021-2022",132157,{"$f":"(((AAMC_Raw_Data_for_FY22[[#This Row],[Median]]-AAMC_Raw_Data_for_FY22[[#This Row],[25th]])/25)*5) + AAMC_Raw_Data_for_FY22[[#This Row],[25th]]","v":136453},{"$f":"(((AAMC_Raw_Data_for_FY22[[#This Row],[Median]]-AAMC_Raw_Data_for_FY22[[#This Row],[25th]])/25)*10) + AAMC_Raw_Data_for_FY22[[#This Row],[25th]]","v":140749},{"$f":"(((AAMC_Raw_Data_for_FY22[[#This Row],[Median]]-AAMC_Raw_Data_for_FY22[[#This Row],[25th]])/25)*15) + AAMC_Raw_Data_for_FY22[[#This Row],[25th]]","v":145045},{"$f":"(((AAMC_Raw_Data_for_FY22[[#This Row],[Median]]-AAMC_Raw_Data_for_FY22[[#This Row],[25th]])/25)*20) + AAMC_Raw_Data_for_FY22[[#This Row],[25th]]","v":149341},153637,{"$f":"(((AAMC_Raw_Data_for_FY22[[#This Row],[75th]]-AAMC_Raw_Data_for_FY22[[#This Row],[Median]])/25)*5) + AAMC_Raw_Data_for_FY22[[#This Row],[Median]]","v":158960.4},{"$f":"(((AAMC_Raw_Data_for_FY22[[#This Row],[75th]]-AAMC_Raw_Data_for_FY22[[#This Row],[Median]])/25)*10) + AAMC_Raw_Data_for_FY22[[#This Row],[Median]]","v":164283.79999999999},{"$f":"(((AAMC_Raw_Data_for_FY22[[#This Row],[75th]]-AAMC_Raw_Data_for_FY22[[#This Row],[Median]])/25)*15) + AAMC_Raw_Data_for_FY22[[#This Row],[Median]]","v":169607.2},{"$f":"(((AAMC_Raw_Data_for_FY22[[#This Row],[75th]]-AAMC_Raw_Data_for_FY22[[#This Row],[Median]])/25)*20) + AAMC_Raw_Data_for_FY22[[#This Row],[Median]]","v":174930.6},180254,{"$f":"(((AAMC_Raw_Data_for_FY22[[#This Row],[75th]]-AAMC_Raw_Data_for_FY22[[#This Row],[Median]])/25)*30) + AAMC_Raw_Data_for_FY22[[#This Row],[Median]]","v":185577.4},{"$f":"(((AAMC_Raw_Data_for_FY22[[#This Row],[75th]]-AAMC_Raw_Data_for_FY22[[#This Row],[Median]])/25)*35) + AAMC_Raw_Data_for_FY22[[#This Row],[Median]]","v":190900.8},{"$f":"(((AAMC_Raw_Data_for_FY22[[#This Row],[75th]]-AAMC_Raw_Data_for_FY22[[#This Row],[Median]])/25)*40) + AAMC_Raw_Data_for_FY22[[#This Row],[Median]]","v":196224.2}]
[{"$f":"AAMC_Raw_Data_for_FY22[[#This Row],[Source]]&AAMC_Raw_Data_for_FY22[[#This Row],[Type]]&AAMC_Raw_Data_for_FY22[[#This Row],[School Subset]]&AAMC_Raw_Data_for_FY22[[#This Row],[Rank]]&AAMC_Raw_Data_for_FY22[[#This Row],[Degree]]&AAMC_Raw_Data_for_FY22[[#This Row],[Department / Specialty]]&\"L\"","v":"AAMCAcademicPrivateProfessorPhDNeurologyL"},"Neurology",2,"AAMC","Academic","Private","Professor","PhD","2021-2022",198478,{"$f":"(((AAMC_Raw_Data_for_FY22[[#This Row],[Median]]-AAMC_Raw_Data_for_FY22[[#This Row],[25th]])/25)*5) + AAMC_Raw_Data_for_FY22[[#This Row],[25th]]","v":204380.79999999999},{"$f":"(((AAMC_Raw_Data_for_FY22[[#This Row],[Median]]-AAMC_Raw_Data_for_FY22[[#This Row],[25th]])/25)*10) + AAMC_Raw_Data_for_FY22[[#This Row],[25th]]","v":210283.6},{"$f":"(((AAMC_Raw_Data_for_FY22[[#This Row],[Median]]-AAMC_Raw_Data_for_FY22[[#This Row],[25th]])/25)*15) + AAMC_Raw_Data_for_FY22[[#This Row],[25th]]","v":216186.4},{"$f":"(((AAMC_Raw_Data_for_FY22[[#This Row],[Median]]-AAMC_Raw_Data_for_FY22[[#This Row],[25th]])/25)*20) + AAMC_Raw_Data_for_FY22[[#This Row],[25th]]","v":222089.2},227992,{"$f":"(((AAMC_Raw_Data_for_FY22[[#This Row],[75th]]-AAMC_Raw_Data_for_FY22[[#This Row],[Median]])/25)*5) + AAMC_Raw_Data_for_FY22[[#This Row],[Median]]","v":236291.6},{"$f":"(((AAMC_Raw_Data_for_FY22[[#This Row],[75th]]-AAMC_Raw_Data_for_FY22[[#This Row],[Median]])/25)*10) + AAMC_Raw_Data_for_FY22[[#This Row],[Median]]","v":244591.2},{"$f":"(((AAMC_Raw_Data_for_FY22[[#This Row],[75th]]-AAMC_Raw_Data_for_FY22[[#This Row],[Median]])/25)*15) + AAMC_Raw_Data_for_FY22[[#This Row],[Median]]","v":252890.8},{"$f":"(((AAMC_Raw_Data_for_FY22[[#This Row],[75th]]-AAMC_Raw_Data_for_FY22[[#This Row],[Median]])/25)*20) + AAMC_Raw_Data_for_FY22[[#This Row],[Median]]","v":261190.39999999999},269490,{"$f":"(((AAMC_Raw_Data_for_FY22[[#This Row],[75th]]-AAMC_Raw_Data_for_FY22[[#This Row],[Median]])/25)*30) + AAMC_Raw_Data_for_FY22[[#This Row],[Median]]","v":277789.59999999998},{"$f":"(((AAMC_Raw_Data_for_FY22[[#This Row],[75th]]-AAMC_Raw_Data_for_FY22[[#This Row],[Median]])/25)*35) + AAMC_Raw_Data_for_FY22[[#This Row],[Median]]","v":286089.2},{"$f":"(((AAMC_Raw_Data_for_FY22[[#This Row],[75th]]-AAMC_Raw_Data_for_FY22[[#This Row],[Median]])/25)*40) + AAMC_Raw_Data_for_FY22[[#This Row],[Median]]","v":294388.8}]
[{"$f":"AAMC_Raw_Data_for_FY22[[#This Row],[Source]]&AAMC_Raw_Data_for_FY22[[#This Row],[Type]]&AAMC_Raw_Data_for_FY22[[#This Row],[School Subset]]&AAMC_Raw_Data_for_FY22[[#This Row],[Rank]]&AAMC_Raw_Data_for_FY22[[#This Row],[Degree]]&AAMC_Raw_Data_for_FY22[[#This Row],[Department / Specialty]]&\"L\"","v":"AAMCAcademicPrivateChiefPhDNeurologyL"},"Neurology",6,"AAMC","Academic","Private","Chief","PhD","2021-2022",null,{"$f":"(((AAMC_Raw_Data_for_FY22[[#This Row],[Median]]-AAMC_Raw_Data_for_FY22[[#This Row],[25th]])/25)*5) + AAMC_Raw_Data_for_FY22[[#This Row],[25th]]","v":0},{"$f":"(((AAMC_Raw_Data_for_FY22[[#This Row],[Median]]-AAMC_Raw_Data_for_FY22[[#This Row],[25th]])/25)*10) + AAMC_Raw_Data_for_FY22[[#This Row],[25th]]","v":0},{"$f":"(((AAMC_Raw_Data_for_FY22[[#This Row],[Median]]-AAMC_Raw_Data_for_FY22[[#This Row],[25th]])/25)*15) + AAMC_Raw_Data_for_FY22[[#This Row],[25th]]","v":0},{"$f":"(((AAMC_Raw_Data_for_FY22[[#This Row],[Median]]-AAMC_Raw_Data_for_FY22[[#This Row],[25th]])/25)*20) + AAMC_Raw_Data_for_FY22[[#This Row],[25th]]","v":0},null,{"$f":"(((AAMC_Raw_Data_for_FY22[[#This Row],[75th]]-AAMC_Raw_Data_for_FY22[[#This Row],[Median]])/25)*5) + AAMC_Raw_Data_for_FY22[[#This Row],[Median]]","v":0},{"$f":"(((AAMC_Raw_Data_for_FY22[[#This Row],[75th]]-AAMC_Raw_Data_for_FY22[[#This Row],[Median]])/25)*10) + AAMC_Raw_Data_for_FY22[[#This Row],[Median]]","v":0},{"$f":"(((AAMC_Raw_Data_for_FY22[[#This Row],[75th]]-AAMC_Raw_Data_for_FY22[[#This Row],[Median]])/25)*15) + AAMC_Raw_Data_for_FY22[[#This Row],[Median]]","v":0},{"$f":"(((AAMC_Raw_Data_for_FY22[[#This Row],[75th]]-AAMC_Raw_Data_for_FY22[[#This Row],[Median]])/25)*20) + AAMC_Raw_Data_for_FY22[[#This Row],[Median]]","v":0},null,{"$f":"(((AAMC_Raw_Data_for_FY22[[#This Row],[75th]]-AAMC_Raw_Data_for_FY22[[#This Row],[Median]])/25)*30) + AAMC_Raw_Data_for_FY22[[#This Row],[Median]]","v":0},{"$f":"(((AAMC_Raw_Data_for_FY22[[#This Row],[75th]]-AAMC_Raw_Data_for_FY22[[#This Row],[Median]])/25)*35) + AAMC_Raw_Data_for_FY22[[#This Row],[Median]]","v":0},{"$f":"(((AAMC_Raw_Data_for_FY22[[#This Row],[75th]]-AAMC_Raw_Data_for_FY22[[#This Row],[Median]])/25)*40) + AAMC_Raw_Data_for_FY22[[#This Row],[Median]]","v":0}]
[{"$f":"AAMC_Raw_Data_for_FY22[[#This Row],[Source]]&AAMC_Raw_Data_for_FY22[[#This Row],[Type]]&AAMC_Raw_Data_for_FY22[[#This Row],[School Subset]]&AAMC_Raw_Data_for_FY22[[#This Row],[Rank]]&AAMC_Raw_Data_for_FY22[[#This Row],[Degree]]&AAMC_Raw_Data_for_FY22[[#This Row],[Department / Specialty]]&\"L\"","v":"AAMCAcademicPrivateInstructorPhDOphthalmologyL"},"Ophthalmology",5,"AAMC","Academic","Private","Instructor","PhD","2021-2022",115589,{"$f":"(((AAMC_Raw_Data_for_FY22[[#This Row],[Median]]-AAMC_Raw_Data_for_FY22[[#This Row],[25th]])/25)*5) + AAMC_Raw_Data_for_FY22[[#This Row],[25th]]","v":122896.4},{"$f":"(((AAMC_Raw_Data_for_FY22[[#This Row],[Median]]-AAMC_Raw_Data_for_FY22[[#This Row],[25th]])/25)*10) + AAMC_Raw_Data_for_FY22[[#This Row],[25th]]","v":130203.8},{"$f":"(((AAMC_Raw_Data_for_FY22[[#This Row],[Median]]-AAMC_Raw_Data_for_FY22[[#This Row],[25th]])/25)*15) + AAMC_Raw_Data_for_FY22[[#This Row],[25th]]","v":137511.20000000001},{"$f":"(((AAMC_Raw_Data_for_FY22[[#This Row],[Median]]-AAMC_Raw_Data_for_FY22[[#This Row],[25th]])/25)*20) + AAMC_Raw_Data_for_FY22[[#This Row],[25th]]","v":144818.6},152126,{"$f":"(((AAMC_Raw_Data_for_FY22[[#This Row],[75th]]-AAMC_Raw_Data_for_FY22[[#This Row],[Median]])/25)*5) + AAMC_Raw_Data_for_FY22[[#This Row],[Median]]","v":155676.6},{"$f":"(((AAMC_Raw_Data_for_FY22[[#This Row],[75th]]-AAMC_Raw_Data_for_FY22[[#This Row],[Median]])/25)*10) + AAMC_Raw_Data_for_FY22[[#This Row],[Median]]","v":159227.20000000001},{"$f":"(((AAMC_Raw_Data_for_FY22[[#This Row],[75th]]-AAMC_Raw_Data_for_FY22[[#This Row],[Median]])/25)*15) + AAMC_Raw_Data_for_FY22[[#This Row],[Median]]","v":162777.79999999999},{"$f":"(((AAMC_Raw_Data_for_FY22[[#This Row],[75th]]-AAMC_Raw_Data_for_FY22[[#This Row],[Median]])/25)*20) + AAMC_Raw_Data_for_FY22[[#This Row],[Median]]","v":166328.4},169879,{"$f":"(((AAMC_Raw_Data_for_FY22[[#This Row],[75th]]-AAMC_Raw_Data_for_FY22[[#This Row],[Median]])/25)*30) + AAMC_Raw_Data_for_FY22[[#This Row],[Median]]","v":173429.6},{"$f":"(((AAMC_Raw_Data_for_FY22[[#This Row],[75th]]-AAMC_Raw_Data_for_FY22[[#This Row],[Median]])/25)*35) + AAMC_Raw_Data_for_FY22[[#This Row],[Median]]","v":176980.2},{"$f":"(((AAMC_Raw_Data_for_FY22[[#This Row],[75th]]-AAMC_Raw_Data_for_FY22[[#This Row],[Median]])/25)*40) + AAMC_Raw_Data_for_FY22[[#This Row],[Median]]","v":180530.8}]
[{"$f":"AAMC_Raw_Data_for_FY22[[#This Row],[Source]]&AAMC_Raw_Data_for_FY22[[#This Row],[Type]]&AAMC_Raw_Data_for_FY22[[#This Row],[School Subset]]&AAMC_Raw_Data_for_FY22[[#This Row],[Rank]]&AAMC_Raw_Data_for_FY22[[#This Row],[Degree]]&AAMC_Raw_Data_for_FY22[[#This Row],[Department / Specialty]]&\"L\"","v":"AAMCAcademicPrivateAssistantPhDOphthalmologyL"},"Ophthalmology",4,"AAMC","Academic","Private","Assistant","PhD","2021-2022",96962,{"$f":"(((AAMC_Raw_Data_for_FY22[[#This Row],[Median]]-AAMC_Raw_Data_for_FY22[[#This Row],[25th]])/25)*5) + AAMC_Raw_Data_for_FY22[[#This Row],[25th]]","v":102569.60000000001},{"$f":"(((AAMC_Raw_Data_for_FY22[[#This Row],[Median]]-AAMC_Raw_Data_for_FY22[[#This Row],[25th]])/25)*10) + AAMC_Raw_Data_for_FY22[[#This Row],[25th]]","v":108177.2},{"$f":"(((AAMC_Raw_Data_for_FY22[[#This Row],[Median]]-AAMC_Raw_Data_for_FY22[[#This Row],[25th]])/25)*15) + AAMC_Raw_Data_for_FY22[[#This Row],[25th]]","v":113784.8},{"$f":"(((AAMC_Raw_Data_for_FY22[[#This Row],[Median]]-AAMC_Raw_Data_for_FY22[[#This Row],[25th]])/25)*20) + AAMC_Raw_Data_for_FY22[[#This Row],[25th]]","v":119392.4},125000,{"$f":"(((AAMC_Raw_Data_for_FY22[[#This Row],[75th]]-AAMC_Raw_Data_for_FY22[[#This Row],[Median]])/25)*5) + AAMC_Raw_Data_for_FY22[[#This Row],[Median]]","v":128697.8},{"$f":"(((AAMC_Raw_Data_for_FY22[[#This Row],[75th]]-AAMC_Raw_Data_for_FY22[[#This Row],[Median]])/25)*10) + AAMC_Raw_Data_for_FY22[[#This Row],[Median]]","v":132395.6},{"$f":"(((AAMC_Raw_Data_for_FY22[[#This Row],[75th]]-AAMC_Raw_Data_for_FY22[[#This Row],[Median]])/25)*15) + AAMC_Raw_Data_for_FY22[[#This Row],[Median]]","v":136093.4},{"$f":"(((AAMC_Raw_Data_for_FY22[[#This Row],[75th]]-AAMC_Raw_Data_for_FY22[[#This Row],[Median]])/25)*20) + AAMC_Raw_Data_for_FY22[[#This Row],[Median]]","v":139791.20000000001},143489,{"$f":"(((AAMC_Raw_Data_for_FY22[[#This Row],[75th]]-AAMC_Raw_Data_for_FY22[[#This Row],[Median]])/25)*30) + AAMC_Raw_Data_for_FY22[[#This Row],[Median]]","v":147186.79999999999},{"$f":"(((AAMC_Raw_Data_for_FY22[[#This Row],[75th]]-AAMC_Raw_Data_for_FY22[[#This Row],[Median]])/25)*35) + AAMC_Raw_Data_for_FY22[[#This Row],[Median]]","v":150884.6},{"$f":"(((AAMC_Raw_Data_for_FY22[[#This Row],[75th]]-AAMC_Raw_Data_for_FY22[[#This Row],[Median]])/25)*40) + AAMC_Raw_Data_for_FY22[[#This Row],[Median]]","v":154582.39999999999}]
[{"$f":"AAMC_Raw_Data_for_FY22[[#This Row],[Source]]&AAMC_Raw_Data_for_FY22[[#This Row],[Type]]&AAMC_Raw_Data_for_FY22[[#This Row],[School Subset]]&AAMC_Raw_Data_for_FY22[[#This Row],[Rank]]&AAMC_Raw_Data_for_FY22[[#This Row],[Degree]]&AAMC_Raw_Data_for_FY22[[#This Row],[Department / Specialty]]&\"L\"","v":"AAMCAcademicPrivateAssociatePhDOphthalmologyL"},"Ophthalmology",3,"AAMC","Academic","Private","Associate","PhD","2021-2022",114088,{"$f":"(((AAMC_Raw_Data_for_FY22[[#This Row],[Median]]-AAMC_Raw_Data_for_FY22[[#This Row],[25th]])/25)*5) + AAMC_Raw_Data_for_FY22[[#This Row],[25th]]","v":120265.2},{"$f":"(((AAMC_Raw_Data_for_FY22[[#This Row],[Median]]-AAMC_Raw_Data_for_FY22[[#This Row],[25th]])/25)*10) + AAMC_Raw_Data_for_FY22[[#This Row],[25th]]","v":126442.4},{"$f":"(((AAMC_Raw_Data_for_FY22[[#This Row],[Median]]-AAMC_Raw_Data_for_FY22[[#This Row],[25th]])/25)*15) + AAMC_Raw_Data_for_FY22[[#This Row],[25th]]","v":132619.6},{"$f":"(((AAMC_Raw_Data_for_FY22[[#This Row],[Median]]-AAMC_Raw_Data_for_FY22[[#This Row],[25th]])/25)*20) + AAMC_Raw_Data_for_FY22[[#This Row],[25th]]","v":138796.79999999999},144974,{"$f":"(((AAMC_Raw_Data_for_FY22[[#This Row],[75th]]-AAMC_Raw_Data_for_FY22[[#This Row],[Median]])/25)*5) + AAMC_Raw_Data_for_FY22[[#This Row],[Median]]","v":151186.20000000001},{"$f":"(((AAMC_Raw_Data_for_FY22[[#This Row],[75th]]-AAMC_Raw_Data_for_FY22[[#This Row],[Median]])/25)*10) + AAMC_Raw_Data_for_FY22[[#This Row],[Median]]","v":157398.39999999999},{"$f":"(((AAMC_Raw_Data_for_FY22[[#This Row],[75th]]-AAMC_Raw_Data_for_FY22[[#This Row],[Median]])/25)*15) + AAMC_Raw_Data_for_FY22[[#This Row],[Median]]","v":163610.6},{"$f":"(((AAMC_Raw_Data_for_FY22[[#This Row],[75th]]-AAMC_Raw_Data_for_FY22[[#This Row],[Median]])/25)*20) + AAMC_Raw_Data_for_FY22[[#This Row],[Median]]","v":169822.8},176035,{"$f":"(((AAMC_Raw_Data_for_FY22[[#This Row],[75th]]-AAMC_Raw_Data_for_FY22[[#This Row],[Median]])/25)*30) + AAMC_Raw_Data_for_FY22[[#This Row],[Median]]","v":182247.2},{"$f":"(((AAMC_Raw_Data_for_FY22[[#This Row],[75th]]-AAMC_Raw_Data_for_FY22[[#This Row],[Median]])/25)*35) + AAMC_Raw_Data_for_FY22[[#This Row],[Median]]","v":188459.4},{"$f":"(((AAMC_Raw_Data_for_FY22[[#This Row],[75th]]-AAMC_Raw_Data_for_FY22[[#This Row],[Median]])/25)*40) + AAMC_Raw_Data_for_FY22[[#This Row],[Median]]","v":194671.6}]
[{"$f":"AAMC_Raw_Data_for_FY22[[#This Row],[Source]]&AAMC_Raw_Data_for_FY22[[#This Row],[Type]]&AAMC_Raw_Data_for_FY22[[#This Row],[School Subset]]&AAMC_Raw_Data_for_FY22[[#This Row],[Rank]]&AAMC_Raw_Data_for_FY22[[#This Row],[Degree]]&AAMC_Raw_Data_for_FY22[[#This Row],[Department / Specialty]]&\"L\"","v":"AAMCAcademicPrivateProfessorPhDOphthalmologyL"},"Ophthalmology",2,"AAMC","Academic","Private","Professor","PhD","2021-2022",189583,{"$f":"(((AAMC_Raw_Data_for_FY22[[#This Row],[Median]]-AAMC_Raw_Data_for_FY22[[#This Row],[25th]])/25)*5) + AAMC_Raw_Data_for_FY22[[#This Row],[25th]]","v":194886},{"$f":"(((AAMC_Raw_Data_for_FY22[[#This Row],[Median]]-AAMC_Raw_Data_for_FY22[[#This Row],[25th]])/25)*10) + AAMC_Raw_Data_for_FY22[[#This Row],[25th]]","v":200189},{"$f":"(((AAMC_Raw_Data_for_FY22[[#This Row],[Median]]-AAMC_Raw_Data_for_FY22[[#This Row],[25th]])/25)*15) + AAMC_Raw_Data_for_FY22[[#This Row],[25th]]","v":205492},{"$f":"(((AAMC_Raw_Data_for_FY22[[#This Row],[Median]]-AAMC_Raw_Data_for_FY22[[#This Row],[25th]])/25)*20) + AAMC_Raw_Data_for_FY22[[#This Row],[25th]]","v":210795},216098,{"$f":"(((AAMC_Raw_Data_for_FY22[[#This Row],[75th]]-AAMC_Raw_Data_for_FY22[[#This Row],[Median]])/25)*5) + AAMC_Raw_Data_for_FY22[[#This Row],[Median]]","v":225974.2},{"$f":"(((AAMC_Raw_Data_for_FY22[[#This Row],[75th]]-AAMC_Raw_Data_for_FY22[[#This Row],[Median]])/25)*10) + AAMC_Raw_Data_for_FY22[[#This Row],[Median]]","v":235850.4},{"$f":"(((AAMC_Raw_Data_for_FY22[[#This Row],[75th]]-AAMC_Raw_Data_for_FY22[[#This Row],[Median]])/25)*15) + AAMC_Raw_Data_for_FY22[[#This Row],[Median]]","v":245726.6},{"$f":"(((AAMC_Raw_Data_for_FY22[[#This Row],[75th]]-AAMC_Raw_Data_for_FY22[[#This Row],[Median]])/25)*20) + AAMC_Raw_Data_for_FY22[[#This Row],[Median]]","v":255602.8},265479,{"$f":"(((AAMC_Raw_Data_for_FY22[[#This Row],[75th]]-AAMC_Raw_Data_for_FY22[[#This Row],[Median]])/25)*30) + AAMC_Raw_Data_for_FY22[[#This Row],[Median]]","v":275355.2},{"$f":"(((AAMC_Raw_Data_for_FY22[[#This Row],[75th]]-AAMC_Raw_Data_for_FY22[[#This Row],[Median]])/25)*35) + AAMC_Raw_Data_for_FY22[[#This Row],[Median]]","v":285231.40000000002},{"$f":"(((AAMC_Raw_Data_for_FY22[[#This Row],[75th]]-AAMC_Raw_Data_for_FY22[[#This Row],[Median]])/25)*40) + AAMC_Raw_Data_for_FY22[[#This Row],[Median]]","v":295107.59999999998}]
[{"$f":"AAMC_Raw_Data_for_FY22[[#This Row],[Source]]&AAMC_Raw_Data_for_FY22[[#This Row],[Type]]&AAMC_Raw_Data_for_FY22[[#This Row],[School Subset]]&AAMC_Raw_Data_for_FY22[[#This Row],[Rank]]&AAMC_Raw_Data_for_FY22[[#This Row],[Degree]]&AAMC_Raw_Data_for_FY22[[#This Row],[Department / Specialty]]&\"L\"","v":"AAMCAcademicPrivateInstructorPhDOtolaryngologyL"},"Otolaryngology",5,"AAMC","Academic","Private","Instructor","PhD","2021-2022",null,{"$f":"(((AAMC_Raw_Data_for_FY22[[#This Row],[Median]]-AAMC_Raw_Data_for_FY22[[#This Row],[25th]])/25)*5) + AAMC_Raw_Data_for_FY22[[#This Row],[25th]]","v":0},{"$f":"(((AAMC_Raw_Data_for_FY22[[#This Row],[Median]]-AAMC_Raw_Data_for_FY22[[#This Row],[25th]])/25)*10) + AAMC_Raw_Data_for_FY22[[#This Row],[25th]]","v":0},{"$f":"(((AAMC_Raw_Data_for_FY22[[#This Row],[Median]]-AAMC_Raw_Data_for_FY22[[#This Row],[25th]])/25)*15) + AAMC_Raw_Data_for_FY22[[#This Row],[25th]]","v":0},{"$f":"(((AAMC_Raw_Data_for_FY22[[#This Row],[Median]]-AAMC_Raw_Data_for_FY22[[#This Row],[25th]])/25)*20) + AAMC_Raw_Data_for_FY22[[#This Row],[25th]]","v":0},null,{"$f":"(((AAMC_Raw_Data_for_FY22[[#This Row],[75th]]-AAMC_Raw_Data_for_FY22[[#This Row],[Median]])/25)*5) + AAMC_Raw_Data_for_FY22[[#This Row],[Median]]","v":0},{"$f":"(((AAMC_Raw_Data_for_FY22[[#This Row],[75th]]-AAMC_Raw_Data_for_FY22[[#This Row],[Median]])/25)*10) + AAMC_Raw_Data_for_FY22[[#This Row],[Median]]","v":0},{"$f":"(((AAMC_Raw_Data_for_FY22[[#This Row],[75th]]-AAMC_Raw_Data_for_FY22[[#This Row],[Median]])/25)*15) + AAMC_Raw_Data_for_FY22[[#This Row],[Median]]","v":0},{"$f":"(((AAMC_Raw_Data_for_FY22[[#This Row],[75th]]-AAMC_Raw_Data_for_FY22[[#This Row],[Median]])/25)*20) + AAMC_Raw_Data_for_FY22[[#This Row],[Median]]","v":0},null,{"$f":"(((AAMC_Raw_Data_for_FY22[[#This Row],[75th]]-AAMC_Raw_Data_for_FY22[[#This Row],[Median]])/25)*30) + AAMC_Raw_Data_for_FY22[[#This Row],[Median]]","v":0},{"$f":"(((AAMC_Raw_Data_for_FY22[[#This Row],[75th]]-AAMC_Raw_Data_for_FY22[[#This Row],[Median]])/25)*35) + AAMC_Raw_Data_for_FY22[[#This Row],[Median]]","v":0},{"$f":"(((AAMC_Raw_Data_for_FY22[[#This Row],[75th]]-AAMC_Raw_Data_for_FY22[[#This Row],[Median]])/25)*40) + AAMC_Raw_Data_for_FY22[[#This Row],[Median]]","v":0}]
[{"$f":"AAMC_Raw_Data_for_FY22[[#This Row],[Source]]&AAMC_Raw_Data_for_FY22[[#This Row],[Type]]&AAMC_Raw_Data_for_FY22[[#This Row],[School Subset]]&AAMC_Raw_Data_for_FY22[[#This Row],[Rank]]&AAMC_Raw_Data_for_FY22[[#This Row],[Degree]]&AAMC_Raw_Data_for_FY22[[#This Row],[Department / Specialty]]&\"L\"","v":"AAMCAcademicPrivateAssistantPhDOtolaryngologyL"},"Otolaryngology",4,"AAMC","Academic","Private","Assistant","PhD","2021-2022",95000,{"$f":"(((AAMC_Raw_Data_for_FY22[[#This Row],[Median]]-AAMC_Raw_Data_for_FY22[[#This Row],[25th]])/25)*5) + AAMC_Raw_Data_for_FY22[[#This Row],[25th]]","v":97166.6},{"$f":"(((AAMC_Raw_Data_for_FY22[[#This Row],[Median]]-AAMC_Raw_Data_for_FY22[[#This Row],[25th]])/25)*10) + AAMC_Raw_Data_for_FY22[[#This Row],[25th]]","v":99333.2},{"$f":"(((AAMC_Raw_Data_for_FY22[[#This Row],[Median]]-AAMC_Raw_Data_for_FY22[[#This Row],[25th]])/25)*15) + AAMC_Raw_Data_for_FY22[[#This Row],[25th]]","v":101499.8},{"$f":"(((AAMC_Raw_Data_for_FY22[[#This Row],[Median]]-AAMC_Raw_Data_for_FY22[[#This Row],[25th]])/25)*20) + AAMC_Raw_Data_for_FY22[[#This Row],[25th]]","v":103666.4},105833,{"$f":"(((AAMC_Raw_Data_for_FY22[[#This Row],[75th]]-AAMC_Raw_Data_for_FY22[[#This Row],[Median]])/25)*5) + AAMC_Raw_Data_for_FY22[[#This Row],[Median]]","v":110637.2},{"$f":"(((AAMC_Raw_Data_for_FY22[[#This Row],[75th]]-AAMC_Raw_Data_for_FY22[[#This Row],[Median]])/25)*10) + AAMC_Raw_Data_for_FY22[[#This Row],[Median]]","v":115441.4},{"$f":"(((AAMC_Raw_Data_for_FY22[[#This Row],[75th]]-AAMC_Raw_Data_for_FY22[[#This Row],[Median]])/25)*15) + AAMC_Raw_Data_for_FY22[[#This Row],[Median]]","v":120245.6},{"$f":"(((AAMC_Raw_Data_for_FY22[[#This Row],[75th]]-AAMC_Raw_Data_for_FY22[[#This Row],[Median]])/25)*20) + AAMC_Raw_Data_for_FY22[[#This Row],[Median]]","v":125049.8},129854,{"$f":"(((AAMC_Raw_Data_for_FY22[[#This Row],[75th]]-AAMC_Raw_Data_for_FY22[[#This Row],[Median]])/25)*30) + AAMC_Raw_Data_for_FY22[[#This Row],[Median]]","v":134658.20000000001},{"$f":"(((AAMC_Raw_Data_for_FY22[[#This Row],[75th]]-AAMC_Raw_Data_for_FY22[[#This Row],[Median]])/25)*35) + AAMC_Raw_Data_for_FY22[[#This Row],[Median]]","v":139462.39999999999},{"$f":"(((AAMC_Raw_Data_for_FY22[[#This Row],[75th]]-AAMC_Raw_Data_for_FY22[[#This Row],[Median]])/25)*40) + AAMC_Raw_Data_for_FY22[[#This Row],[Median]]","v":144266.6}]
[{"$f":"AAMC_Raw_Data_for_FY22[[#This Row],[Source]]&AAMC_Raw_Data_for_FY22[[#This Row],[Type]]&AAMC_Raw_Data_for_FY22[[#This Row],[School Subset]]&AAMC_Raw_Data_for_FY22[[#This Row],[Rank]]&AAMC_Raw_Data_for_FY22[[#This Row],[Degree]]&AAMC_Raw_Data_for_FY22[[#This Row],[Department / Specialty]]&\"L\"","v":"AAMCAcademicPrivateAssociatePhDOtolaryngologyL"},"Otolaryngology",3,"AAMC","Academic","Private","Associate","PhD","2021-2022",126604,{"$f":"(((AAMC_Raw_Data_for_FY22[[#This Row],[Median]]-AAMC_Raw_Data_for_FY22[[#This Row],[25th]])/25)*5) + AAMC_Raw_Data_for_FY22[[#This Row],[25th]]","v":128268.2},{"$f":"(((AAMC_Raw_Data_for_FY22[[#This Row],[Median]]-AAMC_Raw_Data_for_FY22[[#This Row],[25th]])/25)*10) + AAMC_Raw_Data_for_FY22[[#This Row],[25th]]","v":129932.4},{"$f":"(((AAMC_Raw_Data_for_FY22[[#This Row],[Median]]-AAMC_Raw_Data_for_FY22[[#This Row],[25th]])/25)*15) + AAMC_Raw_Data_for_FY22[[#This Row],[25th]]","v":131596.6},{"$f":"(((AAMC_Raw_Data_for_FY22[[#This Row],[Median]]-AAMC_Raw_Data_for_FY22[[#This Row],[25th]])/25)*20) + AAMC_Raw_Data_for_FY22[[#This Row],[25th]]","v":133260.79999999999},134925,{"$f":"(((AAMC_Raw_Data_for_FY22[[#This Row],[75th]]-AAMC_Raw_Data_for_FY22[[#This Row],[Median]])/25)*5) + AAMC_Raw_Data_for_FY22[[#This Row],[Median]]","v":139000.20000000001},{"$f":"(((AAMC_Raw_Data_for_FY22[[#This Row],[75th]]-AAMC_Raw_Data_for_FY22[[#This Row],[Median]])/25)*10) + AAMC_Raw_Data_for_FY22[[#This Row],[Median]]","v":143075.4},{"$f":"(((AAMC_Raw_Data_for_FY22[[#This Row],[75th]]-AAMC_Raw_Data_for_FY22[[#This Row],[Median]])/25)*15) + AAMC_Raw_Data_for_FY22[[#This Row],[Median]]","v":147150.6},{"$f":"(((AAMC_Raw_Data_for_FY22[[#This Row],[75th]]-AAMC_Raw_Data_for_FY22[[#This Row],[Median]])/25)*20) + AAMC_Raw_Data_for_FY22[[#This Row],[Median]]","v":151225.79999999999},155301,{"$f":"(((AAMC_Raw_Data_for_FY22[[#This Row],[75th]]-AAMC_Raw_Data_for_FY22[[#This Row],[Median]])/25)*30) + AAMC_Raw_Data_for_FY22[[#This Row],[Median]]","v":159376.20000000001},{"$f":"(((AAMC_Raw_Data_for_FY22[[#This Row],[75th]]-AAMC_Raw_Data_for_FY22[[#This Row],[Median]])/25)*35) + AAMC_Raw_Data_for_FY22[[#This Row],[Median]]","v":163451.4},{"$f":"(((AAMC_Raw_Data_for_FY22[[#This Row],[75th]]-AAMC_Raw_Data_for_FY22[[#This Row],[Median]])/25)*40) + AAMC_Raw_Data_for_FY22[[#This Row],[Median]]","v":167526.6}]
[{"$f":"AAMC_Raw_Data_for_FY22[[#This Row],[Source]]&AAMC_Raw_Data_for_FY22[[#This Row],[Type]]&AAMC_Raw_Data_for_FY22[[#This Row],[School Subset]]&AAMC_Raw_Data_for_FY22[[#This Row],[Rank]]&AAMC_Raw_Data_for_FY22[[#This Row],[Degree]]&AAMC_Raw_Data_for_FY22[[#This Row],[Department / Specialty]]&\"L\"","v":"AAMCAcademicPrivateProfessorPhDOtolaryngologyL"},"Otolaryngology",2,"AAMC","Academic","Private","Professor","PhD","2021-2022",180789,{"$f":"(((AAMC_Raw_Data_for_FY22[[#This Row],[Median]]-AAMC_Raw_Data_for_FY22[[#This Row],[25th]])/25)*5) + AAMC_Raw_Data_for_FY22[[#This Row],[25th]]","v":185030.6},{"$f":"(((AAMC_Raw_Data_for_FY22[[#This Row],[Median]]-AAMC_Raw_Data_for_FY22[[#This Row],[25th]])/25)*10) + AAMC_Raw_Data_for_FY22[[#This Row],[25th]]","v":189272.2},{"$f":"(((AAMC_Raw_Data_for_FY22[[#This Row],[Median]]-AAMC_Raw_Data_for_FY22[[#This Row],[25th]])/25)*15) + AAMC_Raw_Data_for_FY22[[#This Row],[25th]]","v":193513.8},{"$f":"(((AAMC_Raw_Data_for_FY22[[#This Row],[Median]]-AAMC_Raw_Data_for_FY22[[#This Row],[25th]])/25)*20) + AAMC_Raw_Data_for_FY22[[#This Row],[25th]]","v":197755.4},201997,{"$f":"(((AAMC_Raw_Data_for_FY22[[#This Row],[75th]]-AAMC_Raw_Data_for_FY22[[#This Row],[Median]])/25)*5) + AAMC_Raw_Data_for_FY22[[#This Row],[Median]]","v":217748.8},{"$f":"(((AAMC_Raw_Data_for_FY22[[#This Row],[75th]]-AAMC_Raw_Data_for_FY22[[#This Row],[Median]])/25)*10) + AAMC_Raw_Data_for_FY22[[#This Row],[Median]]","v":233500.6},{"$f":"(((AAMC_Raw_Data_for_FY22[[#This Row],[75th]]-AAMC_Raw_Data_for_FY22[[#This Row],[Median]])/25)*15) + AAMC_Raw_Data_for_FY22[[#This Row],[Median]]","v":249252.4},{"$f":"(((AAMC_Raw_Data_for_FY22[[#This Row],[75th]]-AAMC_Raw_Data_for_FY22[[#This Row],[Median]])/25)*20) + AAMC_Raw_Data_for_FY22[[#This Row],[Median]]","v":265004.2},280756,{"$f":"(((AAMC_Raw_Data_for_FY22[[#This Row],[75th]]-AAMC_Raw_Data_for_FY22[[#This Row],[Median]])/25)*30) + AAMC_Raw_Data_for_FY22[[#This Row],[Median]]","v":296507.8},{"$f":"(((AAMC_Raw_Data_for_FY22[[#This Row],[75th]]-AAMC_Raw_Data_for_FY22[[#This Row],[Median]])/25)*35) + AAMC_Raw_Data_for_FY22[[#This Row],[Median]]","v":312259.59999999998},{"$f":"(((AAMC_Raw_Data_for_FY22[[#This Row],[75th]]-AAMC_Raw_Data_for_FY22[[#This Row],[Median]])/25)*40) + AAMC_Raw_Data_for_FY22[[#This Row],[Median]]","v":328011.40000000002}]
[{"$f":"AAMC_Raw_Data_for_FY22[[#This Row],[Source]]&AAMC_Raw_Data_for_FY22[[#This Row],[Type]]&AAMC_Raw_Data_for_FY22[[#This Row],[School Subset]]&AAMC_Raw_Data_for_FY22[[#This Row],[Rank]]&AAMC_Raw_Data_for_FY22[[#This Row],[Degree]]&AAMC_Raw_Data_for_FY22[[#This Row],[Department / Specialty]]&\"L\"","v":"AAMCAcademicPrivateChiefPhDOtolaryngologyL"},"Otolaryngology",6,"AAMC","Academic","Private","Chief","PhD","2021-2022",null,{"$f":"(((AAMC_Raw_Data_for_FY22[[#This Row],[Median]]-AAMC_Raw_Data_for_FY22[[#This Row],[25th]])/25)*5) + AAMC_Raw_Data_for_FY22[[#This Row],[25th]]","v":0},{"$f":"(((AAMC_Raw_Data_for_FY22[[#This Row],[Median]]-AAMC_Raw_Data_for_FY22[[#This Row],[25th]])/25)*10) + AAMC_Raw_Data_for_FY22[[#This Row],[25th]]","v":0},{"$f":"(((AAMC_Raw_Data_for_FY22[[#This Row],[Median]]-AAMC_Raw_Data_for_FY22[[#This Row],[25th]])/25)*15) + AAMC_Raw_Data_for_FY22[[#This Row],[25th]]","v":0},{"$f":"(((AAMC_Raw_Data_for_FY22[[#This Row],[Median]]-AAMC_Raw_Data_for_FY22[[#This Row],[25th]])/25)*20) + AAMC_Raw_Data_for_FY22[[#This Row],[25th]]","v":0},null,{"$f":"(((AAMC_Raw_Data_for_FY22[[#This Row],[75th]]-AAMC_Raw_Data_for_FY22[[#This Row],[Median]])/25)*5) + AAMC_Raw_Data_for_FY22[[#This Row],[Median]]","v":0},{"$f":"(((AAMC_Raw_Data_for_FY22[[#This Row],[75th]]-AAMC_Raw_Data_for_FY22[[#This Row],[Median]])/25)*10) + AAMC_Raw_Data_for_FY22[[#This Row],[Median]]","v":0},{"$f":"(((AAMC_Raw_Data_for_FY22[[#This Row],[75th]]-AAMC_Raw_Data_for_FY22[[#This Row],[Median]])/25)*15) + AAMC_Raw_Data_for_FY22[[#This Row],[Median]]","v":0},{"$f":"(((AAMC_Raw_Data_for_FY22[[#This Row],[75th]]-AAMC_Raw_Data_for_FY22[[#This Row],[Median]])/25)*20) + AAMC_Raw_Data_for_FY22[[#This Row],[Median]]","v":0},null,{"$f":"(((AAMC_Raw_Data_for_FY22[[#This Row],[75th]]-AAMC_Raw_Data_for_FY22[[#This Row],[Median]])/25)*30) + AAMC_Raw_Data_for_FY22[[#This Row],[Median]]","v":0},{"$f":"(((AAMC_Raw_Data_for_FY22[[#This Row],[75th]]-AAMC_Raw_Data_for_FY22[[#This Row],[Median]])/25)*35) + AAMC_Raw_Data_for_FY22[[#This Row],[Median]]","v":0},{"$f":"(((AAMC_Raw_Data_for_FY22[[#This Row],[75th]]-AAMC_Raw_Data_for_FY22[[#This Row],[Median]])/25)*40) + AAMC_Raw_Data_for_FY22[[#This Row],[Median]]","v":0}]
[{"$f":"AAMC_Raw_Data_for_FY22[[#This Row],[Source]]&AAMC_Raw_Data_for_FY22[[#This Row],[Type]]&AAMC_Raw_Data_for_FY22[[#This Row],[School Subset]]&AAMC_Raw_Data_for_FY22[[#This Row],[Rank]]&AAMC_Raw_Data_for_FY22[[#This Row],[Degree]]&AAMC_Raw_Data_for_FY22[[#This Row],[Department / Specialty]]&\"L\"","v":"AAMCAcademicPrivateInstructorPhDPhysical Medicine & RehabilitationL"},"Physical Medicine & Rehabilitation",5,"AAMC","Academic","Private","Instructor","PhD","2021-2022",null,{"$f":"(((AAMC_Raw_Data_for_FY22[[#This Row],[Median]]-AAMC_Raw_Data_for_FY22[[#This Row],[25th]])/25)*5) + AAMC_Raw_Data_for_FY22[[#This Row],[25th]]","v":0},{"$f":"(((AAMC_Raw_Data_for_FY22[[#This Row],[Median]]-AAMC_Raw_Data_for_FY22[[#This Row],[25th]])/25)*10) + AAMC_Raw_Data_for_FY22[[#This Row],[25th]]","v":0},{"$f":"(((AAMC_Raw_Data_for_FY22[[#This Row],[Median]]-AAMC_Raw_Data_for_FY22[[#This Row],[25th]])/25)*15) + AAMC_Raw_Data_for_FY22[[#This Row],[25th]]","v":0},{"$f":"(((AAMC_Raw_Data_for_FY22[[#This Row],[Median]]-AAMC_Raw_Data_for_FY22[[#This Row],[25th]])/25)*20) + AAMC_Raw_Data_for_FY22[[#This Row],[25th]]","v":0},null,{"$f":"(((AAMC_Raw_Data_for_FY22[[#This Row],[75th]]-AAMC_Raw_Data_for_FY22[[#This Row],[Median]])/25)*5) + AAMC_Raw_Data_for_FY22[[#This Row],[Median]]","v":0},{"$f":"(((AAMC_Raw_Data_for_FY22[[#This Row],[75th]]-AAMC_Raw_Data_for_FY22[[#This Row],[Median]])/25)*10) + AAMC_Raw_Data_for_FY22[[#This Row],[Median]]","v":0},{"$f":"(((AAMC_Raw_Data_for_FY22[[#This Row],[75th]]-AAMC_Raw_Data_for_FY22[[#This Row],[Median]])/25)*15) + AAMC_Raw_Data_for_FY22[[#This Row],[Median]]","v":0},{"$f":"(((AAMC_Raw_Data_for_FY22[[#This Row],[75th]]-AAMC_Raw_Data_for_FY22[[#This Row],[Median]])/25)*20) + AAMC_Raw_Data_for_FY22[[#This Row],[Median]]","v":0},null,{"$f":"(((AAMC_Raw_Data_for_FY22[[#This Row],[75th]]-AAMC_Raw_Data_for_FY22[[#This Row],[Median]])/25)*30) + AAMC_Raw_Data_for_FY22[[#This Row],[Median]]","v":0},{"$f":"(((AAMC_Raw_Data_for_FY22[[#This Row],[75th]]-AAMC_Raw_Data_for_FY22[[#This Row],[Median]])/25)*35) + AAMC_Raw_Data_for_FY22[[#This Row],[Median]]","v":0},{"$f":"(((AAMC_Raw_Data_for_FY22[[#This Row],[75th]]-AAMC_Raw_Data_for_FY22[[#This Row],[Median]])/25)*40) + AAMC_Raw_Data_for_FY22[[#This Row],[Median]]","v":0}]
[{"$f":"AAMC_Raw_Data_for_FY22[[#This Row],[Source]]&AAMC_Raw_Data_for_FY22[[#This Row],[Type]]&AAMC_Raw_Data_for_FY22[[#This Row],[School Subset]]&AAMC_Raw_Data_for_FY22[[#This Row],[Rank]]&AAMC_Raw_Data_for_FY22[[#This Row],[Degree]]&AAMC_Raw_Data_for_FY22[[#This Row],[Department / Specialty]]&\"L\"","v":"AAMCAcademicPrivateAssistantPhDPhysical Medicine & RehabilitationL"},"Physical Medicine & Rehabilitation",4,"AAMC","Academic","Private","Assistant","PhD","2021-2022",101248,{"$f":"(((AAMC_Raw_Data_for_FY22[[#This Row],[Median]]-AAMC_Raw_Data_for_FY22[[#This Row],[25th]])/25)*5) + AAMC_Raw_Data_for_FY22[[#This Row],[25th]]","v":103219.4},{"$f":"(((AAMC_Raw_Data_for_FY22[[#This Row],[Median]]-AAMC_Raw_Data_for_FY22[[#This Row],[25th]])/25)*10) + AAMC_Raw_Data_for_FY22[[#This Row],[25th]]","v":105190.8},{"$f":"(((AAMC_Raw_Data_for_FY22[[#This Row],[Median]]-AAMC_Raw_Data_for_FY22[[#This Row],[25th]])/25)*15) + AAMC_Raw_Data_for_FY22[[#This Row],[25th]]","v":107162.2},{"$f":"(((AAMC_Raw_Data_for_FY22[[#This Row],[Median]]-AAMC_Raw_Data_for_FY22[[#This Row],[25th]])/25)*20) + AAMC_Raw_Data_for_FY22[[#This Row],[25th]]","v":109133.6},111105,{"$f":"(((AAMC_Raw_Data_for_FY22[[#This Row],[75th]]-AAMC_Raw_Data_for_FY22[[#This Row],[Median]])/25)*5) + AAMC_Raw_Data_for_FY22[[#This Row],[Median]]","v":113224.2},{"$f":"(((AAMC_Raw_Data_for_FY22[[#This Row],[75th]]-AAMC_Raw_Data_for_FY22[[#This Row],[Median]])/25)*10) + AAMC_Raw_Data_for_FY22[[#This Row],[Median]]","v":115343.4},{"$f":"(((AAMC_Raw_Data_for_FY22[[#This Row],[75th]]-AAMC_Raw_Data_for_FY22[[#This Row],[Median]])/25)*15) + AAMC_Raw_Data_for_FY22[[#This Row],[Median]]","v":117462.6},{"$f":"(((AAMC_Raw_Data_for_FY22[[#This Row],[75th]]-AAMC_Raw_Data_for_FY22[[#This Row],[Median]])/25)*20) + AAMC_Raw_Data_for_FY22[[#This Row],[Median]]","v":119581.8},121701,{"$f":"(((AAMC_Raw_Data_for_FY22[[#This Row],[75th]]-AAMC_Raw_Data_for_FY22[[#This Row],[Median]])/25)*30) + AAMC_Raw_Data_for_FY22[[#This Row],[Median]]","v":123820.2},{"$f":"(((AAMC_Raw_Data_for_FY22[[#This Row],[75th]]-AAMC_Raw_Data_for_FY22[[#This Row],[Median]])/25)*35) + AAMC_Raw_Data_for_FY22[[#This Row],[Median]]","v":125939.4},{"$f":"(((AAMC_Raw_Data_for_FY22[[#This Row],[75th]]-AAMC_Raw_Data_for_FY22[[#This Row],[Median]])/25)*40) + AAMC_Raw_Data_for_FY22[[#This Row],[Median]]","v":128058.6}]
[{"$f":"AAMC_Raw_Data_for_FY22[[#This Row],[Source]]&AAMC_Raw_Data_for_FY22[[#This Row],[Type]]&AAMC_Raw_Data_for_FY22[[#This Row],[School Subset]]&AAMC_Raw_Data_for_FY22[[#This Row],[Rank]]&AAMC_Raw_Data_for_FY22[[#This Row],[Degree]]&AAMC_Raw_Data_for_FY22[[#This Row],[Department / Specialty]]&\"L\"","v":"AAMCAcademicPrivateAssociatePhDPhysical Medicine & RehabilitationL"},"Physical Medicine & Rehabilitation",3,"AAMC","Academic","Private","Associate","PhD","2021-2022",125250,{"$f":"(((AAMC_Raw_Data_for_FY22[[#This Row],[Median]]-AAMC_Raw_Data_for_FY22[[#This Row],[25th]])/25)*5) + AAMC_Raw_Data_for_FY22[[#This Row],[25th]]","v":126603.6},{"$f":"(((AAMC_Raw_Data_for_FY22[[#This Row],[Median]]-AAMC_Raw_Data_for_FY22[[#This Row],[25th]])/25)*10) + AAMC_Raw_Data_for_FY22[[#This Row],[25th]]","v":127957.2},{"$f":"(((AAMC_Raw_Data_for_FY22[[#This Row],[Median]]-AAMC_Raw_Data_for_FY22[[#This Row],[25th]])/25)*15) + AAMC_Raw_Data_for_FY22[[#This Row],[25th]]","v":129310.8},{"$f":"(((AAMC_Raw_Data_for_FY22[[#This Row],[Median]]-AAMC_Raw_Data_for_FY22[[#This Row],[25th]])/25)*20) + AAMC_Raw_Data_for_FY22[[#This Row],[25th]]","v":130664.4},132018,{"$f":"(((AAMC_Raw_Data_for_FY22[[#This Row],[75th]]-AAMC_Raw_Data_for_FY22[[#This Row],[Median]])/25)*5) + AAMC_Raw_Data_for_FY22[[#This Row],[Median]]","v":138485.20000000001},{"$f":"(((AAMC_Raw_Data_for_FY22[[#This Row],[75th]]-AAMC_Raw_Data_for_FY22[[#This Row],[Median]])/25)*10) + AAMC_Raw_Data_for_FY22[[#This Row],[Median]]","v":144952.4},{"$f":"(((AAMC_Raw_Data_for_FY22[[#This Row],[75th]]-AAMC_Raw_Data_for_FY22[[#This Row],[Median]])/25)*15) + AAMC_Raw_Data_for_FY22[[#This Row],[Median]]","v":151419.6},{"$f":"(((AAMC_Raw_Data_for_FY22[[#This Row],[75th]]-AAMC_Raw_Data_for_FY22[[#This Row],[Median]])/25)*20) + AAMC_Raw_Data_for_FY22[[#This Row],[Median]]","v":157886.79999999999},164354,{"$f":"(((AAMC_Raw_Data_for_FY22[[#This Row],[75th]]-AAMC_Raw_Data_for_FY22[[#This Row],[Median]])/25)*30) + AAMC_Raw_Data_for_FY22[[#This Row],[Median]]","v":170821.2},{"$f":"(((AAMC_Raw_Data_for_FY22[[#This Row],[75th]]-AAMC_Raw_Data_for_FY22[[#This Row],[Median]])/25)*35) + AAMC_Raw_Data_for_FY22[[#This Row],[Median]]","v":177288.4},{"$f":"(((AAMC_Raw_Data_for_FY22[[#This Row],[75th]]-AAMC_Raw_Data_for_FY22[[#This Row],[Median]])/25)*40) + AAMC_Raw_Data_for_FY22[[#This Row],[Median]]","v":183755.6}]
[{"$f":"AAMC_Raw_Data_for_FY22[[#This Row],[Source]]&AAMC_Raw_Data_for_FY22[[#This Row],[Type]]&AAMC_Raw_Data_for_FY22[[#This Row],[School Subset]]&AAMC_Raw_Data_for_FY22[[#This Row],[Rank]]&AAMC_Raw_Data_for_FY22[[#This Row],[Degree]]&AAMC_Raw_Data_for_FY22[[#This Row],[Department / Specialty]]&\"L\"","v":"AAMCAcademicPrivateProfessorPhDPhysical Medicine & RehabilitationL"},"Physical Medicine & Rehabilitation",2,"AAMC","Academic","Private","Professor","PhD","2021-2022",141000,{"$f":"(((AAMC_Raw_Data_for_FY22[[#This Row],[Median]]-AAMC_Raw_Data_for_FY22[[#This Row],[25th]])/25)*5) + AAMC_Raw_Data_for_FY22[[#This Row],[25th]]","v":144982.6},{"$f":"(((AAMC_Raw_Data_for_FY22[[#This Row],[Median]]-AAMC_Raw_Data_for_FY22[[#This Row],[25th]])/25)*10) + AAMC_Raw_Data_for_FY22[[#This Row],[25th]]","v":148965.20000000001},{"$f":"(((AAMC_Raw_Data_for_FY22[[#This Row],[Median]]-AAMC_Raw_Data_for_FY22[[#This Row],[25th]])/25)*15) + AAMC_Raw_Data_for_FY22[[#This Row],[25th]]","v":152947.79999999999},{"$f":"(((AAMC_Raw_Data_for_FY22[[#This Row],[Median]]-AAMC_Raw_Data_for_FY22[[#This Row],[25th]])/25)*20) + AAMC_Raw_Data_for_FY22[[#This Row],[25th]]","v":156930.4},160913,{"$f":"(((AAMC_Raw_Data_for_FY22[[#This Row],[75th]]-AAMC_Raw_Data_for_FY22[[#This Row],[Median]])/25)*5) + AAMC_Raw_Data_for_FY22[[#This Row],[Median]]","v":172791.4},{"$f":"(((AAMC_Raw_Data_for_FY22[[#This Row],[75th]]-AAMC_Raw_Data_for_FY22[[#This Row],[Median]])/25)*10) + AAMC_Raw_Data_for_FY22[[#This Row],[Median]]","v":184669.8},{"$f":"(((AAMC_Raw_Data_for_FY22[[#This Row],[75th]]-AAMC_Raw_Data_for_FY22[[#This Row],[Median]])/25)*15) + AAMC_Raw_Data_for_FY22[[#This Row],[Median]]","v":196548.2},{"$f":"(((AAMC_Raw_Data_for_FY22[[#This Row],[75th]]-AAMC_Raw_Data_for_FY22[[#This Row],[Median]])/25)*20) + AAMC_Raw_Data_for_FY22[[#This Row],[Median]]","v":208426.6},220305,{"$f":"(((AAMC_Raw_Data_for_FY22[[#This Row],[75th]]-AAMC_Raw_Data_for_FY22[[#This Row],[Median]])/25)*30) + AAMC_Raw_Data_for_FY22[[#This Row],[Median]]","v":232183.4},{"$f":"(((AAMC_Raw_Data_for_FY22[[#This Row],[75th]]-AAMC_Raw_Data_for_FY22[[#This Row],[Median]])/25)*35) + AAMC_Raw_Data_for_FY22[[#This Row],[Median]]","v":244061.8},{"$f":"(((AAMC_Raw_Data_for_FY22[[#This Row],[75th]]-AAMC_Raw_Data_for_FY22[[#This Row],[Median]])/25)*40) + AAMC_Raw_Data_for_FY22[[#This Row],[Median]]","v":255940.2}]
[{"$f":"AAMC_Raw_Data_for_FY22[[#This Row],[Source]]&AAMC_Raw_Data_for_FY22[[#This Row],[Type]]&AAMC_Raw_Data_for_FY22[[#This Row],[School Subset]]&AAMC_Raw_Data_for_FY22[[#This Row],[Rank]]&AAMC_Raw_Data_for_FY22[[#This Row],[Degree]]&AAMC_Raw_Data_for_FY22[[#This Row],[Department / Specialty]]&\"L\"","v":"AAMCAcademicPrivateChiefPhDPhysical Medicine & RehabilitationL"},"Physical Medicine & Rehabilitation",6,"AAMC","Academic","Private","Chief","PhD","2021-2022",null,{"$f":"(((AAMC_Raw_Data_for_FY22[[#This Row],[Median]]-AAMC_Raw_Data_for_FY22[[#This Row],[25th]])/25)*5) + AAMC_Raw_Data_for_FY22[[#This Row],[25th]]","v":0},{"$f":"(((AAMC_Raw_Data_for_FY22[[#This Row],[Median]]-AAMC_Raw_Data_for_FY22[[#This Row],[25th]])/25)*10) + AAMC_Raw_Data_for_FY22[[#This Row],[25th]]","v":0},{"$f":"(((AAMC_Raw_Data_for_FY22[[#This Row],[Median]]-AAMC_Raw_Data_for_FY22[[#This Row],[25th]])/25)*15) + AAMC_Raw_Data_for_FY22[[#This Row],[25th]]","v":0},{"$f":"(((AAMC_Raw_Data_for_FY22[[#This Row],[Median]]-AAMC_Raw_Data_for_FY22[[#This Row],[25th]])/25)*20) + AAMC_Raw_Data_for_FY22[[#This Row],[25th]]","v":0},null,{"$f":"(((AAMC_Raw_Data_for_FY22[[#This Row],[75th]]-AAMC_Raw_Data_for_FY22[[#This Row],[Median]])/25)*5) + AAMC_Raw_Data_for_FY22[[#This Row],[Median]]","v":0},{"$f":"(((AAMC_Raw_Data_for_FY22[[#This Row],[75th]]-AAMC_Raw_Data_for_FY22[[#This Row],[Median]])/25)*10) + AAMC_Raw_Data_for_FY22[[#This Row],[Median]]","v":0},{"$f":"(((AAMC_Raw_Data_for_FY22[[#This Row],[75th]]-AAMC_Raw_Data_for_FY22[[#This Row],[Median]])/25)*15) + AAMC_Raw_Data_for_FY22[[#This Row],[Median]]","v":0},{"$f":"(((AAMC_Raw_Data_for_FY22[[#This Row],[75th]]-AAMC_Raw_Data_for_FY22[[#This Row],[Median]])/25)*20) + AAMC_Raw_Data_for_FY22[[#This Row],[Median]]","v":0},null,{"$f":"(((AAMC_Raw_Data_for_FY22[[#This Row],[75th]]-AAMC_Raw_Data_for_FY22[[#This Row],[Median]])/25)*30) + AAMC_Raw_Data_for_FY22[[#This Row],[Median]]","v":0},{"$f":"(((AAMC_Raw_Data_for_FY22[[#This Row],[75th]]-AAMC_Raw_Data_for_FY22[[#This Row],[Median]])/25)*35) + AAMC_Raw_Data_for_FY22[[#This Row],[Median]]","v":0},{"$f":"(((AAMC_Raw_Data_for_FY22[[#This Row],[75th]]-AAMC_Raw_Data_for_FY22[[#This Row],[Median]])/25)*40) + AAMC_Raw_Data_for_FY22[[#This Row],[Median]]","v":0}]
[{"$f":"AAMC_Raw_Data_for_FY22[[#This Row],[Source]]&AAMC_Raw_Data_for_FY22[[#This Row],[Type]]&AAMC_Raw_Data_for_FY22[[#This Row],[School Subset]]&AAMC_Raw_Data_for_FY22[[#This Row],[Rank]]&AAMC_Raw_Data_for_FY22[[#This Row],[Degree]]&AAMC_Raw_Data_for_FY22[[#This Row],[Department / Specialty]]&\"L\"","v":"AAMCAcademicPrivateChairPhDPhysical Medicine & RehabilitationL"},"Physical Medicine & Rehabilitation",1,"AAMC","Academic","Private","Chair","PhD","2021-2022",null,{"$f":"(((AAMC_Raw_Data_for_FY22[[#This Row],[Median]]-AAMC_Raw_Data_for_FY22[[#This Row],[25th]])/25)*5) + AAMC_Raw_Data_for_FY22[[#This Row],[25th]]","v":0},{"$f":"(((AAMC_Raw_Data_for_FY22[[#This Row],[Median]]-AAMC_Raw_Data_for_FY22[[#This Row],[25th]])/25)*10) + AAMC_Raw_Data_for_FY22[[#This Row],[25th]]","v":0},{"$f":"(((AAMC_Raw_Data_for_FY22[[#This Row],[Median]]-AAMC_Raw_Data_for_FY22[[#This Row],[25th]])/25)*15) + AAMC_Raw_Data_for_FY22[[#This Row],[25th]]","v":0},{"$f":"(((AAMC_Raw_Data_for_FY22[[#This Row],[Median]]-AAMC_Raw_Data_for_FY22[[#This Row],[25th]])/25)*20) + AAMC_Raw_Data_for_FY22[[#This Row],[25th]]","v":0},null,{"$f":"(((AAMC_Raw_Data_for_FY22[[#This Row],[75th]]-AAMC_Raw_Data_for_FY22[[#This Row],[Median]])/25)*5) + AAMC_Raw_Data_for_FY22[[#This Row],[Median]]","v":0},{"$f":"(((AAMC_Raw_Data_for_FY22[[#This Row],[75th]]-AAMC_Raw_Data_for_FY22[[#This Row],[Median]])/25)*10) + AAMC_Raw_Data_for_FY22[[#This Row],[Median]]","v":0},{"$f":"(((AAMC_Raw_Data_for_FY22[[#This Row],[75th]]-AAMC_Raw_Data_for_FY22[[#This Row],[Median]])/25)*15) + AAMC_Raw_Data_for_FY22[[#This Row],[Median]]","v":0},{"$f":"(((AAMC_Raw_Data_for_FY22[[#This Row],[75th]]-AAMC_Raw_Data_for_FY22[[#This Row],[Median]])/25)*20) + AAMC_Raw_Data_for_FY22[[#This Row],[Median]]","v":0},null,{"$f":"(((AAMC_Raw_Data_for_FY22[[#This Row],[75th]]-AAMC_Raw_Data_for_FY22[[#This Row],[Median]])/25)*30) + AAMC_Raw_Data_for_FY22[[#This Row],[Median]]","v":0},{"$f":"(((AAMC_Raw_Data_for_FY22[[#This Row],[75th]]-AAMC_Raw_Data_for_FY22[[#This Row],[Median]])/25)*35) + AAMC_Raw_Data_for_FY22[[#This Row],[Median]]","v":0},{"$f":"(((AAMC_Raw_Data_for_FY22[[#This Row],[75th]]-AAMC_Raw_Data_for_FY22[[#This Row],[Median]])/25)*40) + AAMC_Raw_Data_for_FY22[[#This Row],[Median]]","v":0}]
[{"$f":"AAMC_Raw_Data_for_FY22[[#This Row],[Source]]&AAMC_Raw_Data_for_FY22[[#This Row],[Type]]&AAMC_Raw_Data_for_FY22[[#This Row],[School Subset]]&AAMC_Raw_Data_for_FY22[[#This Row],[Rank]]&AAMC_Raw_Data_for_FY22[[#This Row],[Degree]]&AAMC_Raw_Data_for_FY22[[#This Row],[Department / Specialty]]&\"L\"","v":"AAMCAcademicPrivateInstructorPhDPreventive MedicineL"},"Preventive Medicine",5,"AAMC","Academic","Private","Instructor","PhD","2021-2022",null,{"$f":"(((AAMC_Raw_Data_for_FY22[[#This Row],[Median]]-AAMC_Raw_Data_for_FY22[[#This Row],[25th]])/25)*5) + AAMC_Raw_Data_for_FY22[[#This Row],[25th]]","v":0},{"$f":"(((AAMC_Raw_Data_for_FY22[[#This Row],[Median]]-AAMC_Raw_Data_for_FY22[[#This Row],[25th]])/25)*10) + AAMC_Raw_Data_for_FY22[[#This Row],[25th]]","v":0},{"$f":"(((AAMC_Raw_Data_for_FY22[[#This Row],[Median]]-AAMC_Raw_Data_for_FY22[[#This Row],[25th]])/25)*15) + AAMC_Raw_Data_for_FY22[[#This Row],[25th]]","v":0},{"$f":"(((AAMC_Raw_Data_for_FY22[[#This Row],[Median]]-AAMC_Raw_Data_for_FY22[[#This Row],[25th]])/25)*20) + AAMC_Raw_Data_for_FY22[[#This Row],[25th]]","v":0},null,{"$f":"(((AAMC_Raw_Data_for_FY22[[#This Row],[75th]]-AAMC_Raw_Data_for_FY22[[#This Row],[Median]])/25)*5) + AAMC_Raw_Data_for_FY22[[#This Row],[Median]]","v":0},{"$f":"(((AAMC_Raw_Data_for_FY22[[#This Row],[75th]]-AAMC_Raw_Data_for_FY22[[#This Row],[Median]])/25)*10) + AAMC_Raw_Data_for_FY22[[#This Row],[Median]]","v":0},{"$f":"(((AAMC_Raw_Data_for_FY22[[#This Row],[75th]]-AAMC_Raw_Data_for_FY22[[#This Row],[Median]])/25)*15) + AAMC_Raw_Data_for_FY22[[#This Row],[Median]]","v":0},{"$f":"(((AAMC_Raw_Data_for_FY22[[#This Row],[75th]]-AAMC_Raw_Data_for_FY22[[#This Row],[Median]])/25)*20) + AAMC_Raw_Data_for_FY22[[#This Row],[Median]]","v":0},null,{"$f":"(((AAMC_Raw_Data_for_FY22[[#This Row],[75th]]-AAMC_Raw_Data_for_FY22[[#This Row],[Median]])/25)*30) + AAMC_Raw_Data_for_FY22[[#This Row],[Median]]","v":0},{"$f":"(((AAMC_Raw_Data_for_FY22[[#This Row],[75th]]-AAMC_Raw_Data_for_FY22[[#This Row],[Median]])/25)*35) + AAMC_Raw_Data_for_FY22[[#This Row],[Median]]","v":0},{"$f":"(((AAMC_Raw_Data_for_FY22[[#This Row],[75th]]-AAMC_Raw_Data_for_FY22[[#This Row],[Median]])/25)*40) + AAMC_Raw_Data_for_FY22[[#This Row],[Median]]","v":0}]
[{"$f":"AAMC_Raw_Data_for_FY22[[#This Row],[Source]]&AAMC_Raw_Data_for_FY22[[#This Row],[Type]]&AAMC_Raw_Data_for_FY22[[#This Row],[School Subset]]&AAMC_Raw_Data_for_FY22[[#This Row],[Rank]]&AAMC_Raw_Data_for_FY22[[#This Row],[Degree]]&AAMC_Raw_Data_for_FY22[[#This Row],[Department / Specialty]]&\"L\"","v":"AAMCAcademicPrivateAssistantPhDPreventive MedicineL"},"Preventive Medicine",4,"AAMC","Academic","Private","Assistant","PhD","2021-2022",118978,{"$f":"(((AAMC_Raw_Data_for_FY22[[#This Row],[Median]]-AAMC_Raw_Data_for_FY22[[#This Row],[25th]])/25)*5) + AAMC_Raw_Data_for_FY22[[#This Row],[25th]]","v":120610.6},{"$f":"(((AAMC_Raw_Data_for_FY22[[#This Row],[Median]]-AAMC_Raw_Data_for_FY22[[#This Row],[25th]])/25)*10) + AAMC_Raw_Data_for_FY22[[#This Row],[25th]]","v":122243.2},{"$f":"(((AAMC_Raw_Data_for_FY22[[#This Row],[Median]]-AAMC_Raw_Data_for_FY22[[#This Row],[25th]])/25)*15) + AAMC_Raw_Data_for_FY22[[#This Row],[25th]]","v":123875.8},{"$f":"(((AAMC_Raw_Data_for_FY22[[#This Row],[Median]]-AAMC_Raw_Data_for_FY22[[#This Row],[25th]])/25)*20) + AAMC_Raw_Data_for_FY22[[#This Row],[25th]]","v":125508.4},127141,{"$f":"(((AAMC_Raw_Data_for_FY22[[#This Row],[75th]]-AAMC_Raw_Data_for_FY22[[#This Row],[Median]])/25)*5) + AAMC_Raw_Data_for_FY22[[#This Row],[Median]]","v":129712.8},{"$f":"(((AAMC_Raw_Data_for_FY22[[#This Row],[75th]]-AAMC_Raw_Data_for_FY22[[#This Row],[Median]])/25)*10) + AAMC_Raw_Data_for_FY22[[#This Row],[Median]]","v":132284.6},{"$f":"(((AAMC_Raw_Data_for_FY22[[#This Row],[75th]]-AAMC_Raw_Data_for_FY22[[#This Row],[Median]])/25)*15) + AAMC_Raw_Data_for_FY22[[#This Row],[Median]]","v":134856.4},{"$f":"(((AAMC_Raw_Data_for_FY22[[#This Row],[75th]]-AAMC_Raw_Data_for_FY22[[#This Row],[Median]])/25)*20) + AAMC_Raw_Data_for_FY22[[#This Row],[Median]]","v":137428.20000000001},140000,{"$f":"(((AAMC_Raw_Data_for_FY22[[#This Row],[75th]]-AAMC_Raw_Data_for_FY22[[#This Row],[Median]])/25)*30) + AAMC_Raw_Data_for_FY22[[#This Row],[Median]]","v":142571.79999999999},{"$f":"(((AAMC_Raw_Data_for_FY22[[#This Row],[75th]]-AAMC_Raw_Data_for_FY22[[#This Row],[Median]])/25)*35) + AAMC_Raw_Data_for_FY22[[#This Row],[Median]]","v":145143.6},{"$f":"(((AAMC_Raw_Data_for_FY22[[#This Row],[75th]]-AAMC_Raw_Data_for_FY22[[#This Row],[Median]])/25)*40) + AAMC_Raw_Data_for_FY22[[#This Row],[Median]]","v":147715.4}]
[{"$f":"AAMC_Raw_Data_for_FY22[[#This Row],[Source]]&AAMC_Raw_Data_for_FY22[[#This Row],[Type]]&AAMC_Raw_Data_for_FY22[[#This Row],[School Subset]]&AAMC_Raw_Data_for_FY22[[#This Row],[Rank]]&AAMC_Raw_Data_for_FY22[[#This Row],[Degree]]&AAMC_Raw_Data_for_FY22[[#This Row],[Department / Specialty]]&\"L\"","v":"AAMCAcademicPrivateAssociatePhDPreventive MedicineL"},"Preventive Medicine",3,"AAMC","Academic","Private","Associate","PhD","2021-2022",154224,{"$f":"(((AAMC_Raw_Data_for_FY22[[#This Row],[Median]]-AAMC_Raw_Data_for_FY22[[#This Row],[25th]])/25)*5) + AAMC_Raw_Data_for_FY22[[#This Row],[25th]]","v":156379.20000000001},{"$f":"(((AAMC_Raw_Data_for_FY22[[#This Row],[Median]]-AAMC_Raw_Data_for_FY22[[#This Row],[25th]])/25)*10) + AAMC_Raw_Data_for_FY22[[#This Row],[25th]]","v":158534.39999999999},{"$f":"(((AAMC_Raw_Data_for_FY22[[#This Row],[Median]]-AAMC_Raw_Data_for_FY22[[#This Row],[25th]])/25)*15) + AAMC_Raw_Data_for_FY22[[#This Row],[25th]]","v":160689.60000000001},{"$f":"(((AAMC_Raw_Data_for_FY22[[#This Row],[Median]]-AAMC_Raw_Data_for_FY22[[#This Row],[25th]])/25)*20) + AAMC_Raw_Data_for_FY22[[#This Row],[25th]]","v":162844.79999999999},165000,{"$f":"(((AAMC_Raw_Data_for_FY22[[#This Row],[75th]]-AAMC_Raw_Data_for_FY22[[#This Row],[Median]])/25)*5) + AAMC_Raw_Data_for_FY22[[#This Row],[Median]]","v":169153.8},{"$f":"(((AAMC_Raw_Data_for_FY22[[#This Row],[75th]]-AAMC_Raw_Data_for_FY22[[#This Row],[Median]])/25)*10) + AAMC_Raw_Data_for_FY22[[#This Row],[Median]]","v":173307.6},{"$f":"(((AAMC_Raw_Data_for_FY22[[#This Row],[75th]]-AAMC_Raw_Data_for_FY22[[#This Row],[Median]])/25)*15) + AAMC_Raw_Data_for_FY22[[#This Row],[Median]]","v":177461.4},{"$f":"(((AAMC_Raw_Data_for_FY22[[#This Row],[75th]]-AAMC_Raw_Data_for_FY22[[#This Row],[Median]])/25)*20) + AAMC_Raw_Data_for_FY22[[#This Row],[Median]]","v":181615.2},185769,{"$f":"(((AAMC_Raw_Data_for_FY22[[#This Row],[75th]]-AAMC_Raw_Data_for_FY22[[#This Row],[Median]])/25)*30) + AAMC_Raw_Data_for_FY22[[#This Row],[Median]]","v":189922.8},{"$f":"(((AAMC_Raw_Data_for_FY22[[#This Row],[75th]]-AAMC_Raw_Data_for_FY22[[#This Row],[Median]])/25)*35) + AAMC_Raw_Data_for_FY22[[#This Row],[Median]]","v":194076.6},{"$f":"(((AAMC_Raw_Data_for_FY22[[#This Row],[75th]]-AAMC_Raw_Data_for_FY22[[#This Row],[Median]])/25)*40) + AAMC_Raw_Data_for_FY22[[#This Row],[Median]]","v":198230.39999999999}]
[{"$f":"AAMC_Raw_Data_for_FY22[[#This Row],[Source]]&AAMC_Raw_Data_for_FY22[[#This Row],[Type]]&AAMC_Raw_Data_for_FY22[[#This Row],[School Subset]]&AAMC_Raw_Data_for_FY22[[#This Row],[Rank]]&AAMC_Raw_Data_for_FY22[[#This Row],[Degree]]&AAMC_Raw_Data_for_FY22[[#This Row],[Department / Specialty]]&\"L\"","v":"AAMCAcademicPrivateProfessorPhDPreventive MedicineL"},"Preventive Medicine",2,"AAMC","Academic","Private","Professor","PhD","2021-2022",199306,{"$f":"(((AAMC_Raw_Data_for_FY22[[#This Row],[Median]]-AAMC_Raw_Data_for_FY22[[#This Row],[25th]])/25)*5) + AAMC_Raw_Data_for_FY22[[#This Row],[25th]]","v":203558.2},{"$f":"(((AAMC_Raw_Data_for_FY22[[#This Row],[Median]]-AAMC_Raw_Data_for_FY22[[#This Row],[25th]])/25)*10) + AAMC_Raw_Data_for_FY22[[#This Row],[25th]]","v":207810.4},{"$f":"(((AAMC_Raw_Data_for_FY22[[#This Row],[Median]]-AAMC_Raw_Data_for_FY22[[#This Row],[25th]])/25)*15) + AAMC_Raw_Data_for_FY22[[#This Row],[25th]]","v":212062.6},{"$f":"(((AAMC_Raw_Data_for_FY22[[#This Row],[Median]]-AAMC_Raw_Data_for_FY22[[#This Row],[25th]])/25)*20) + AAMC_Raw_Data_for_FY22[[#This Row],[25th]]","v":216314.8},220567,{"$f":"(((AAMC_Raw_Data_for_FY22[[#This Row],[75th]]-AAMC_Raw_Data_for_FY22[[#This Row],[Median]])/25)*5) + AAMC_Raw_Data_for_FY22[[#This Row],[Median]]","v":235164},{"$f":"(((AAMC_Raw_Data_for_FY22[[#This Row],[75th]]-AAMC_Raw_Data_for_FY22[[#This Row],[Median]])/25)*10) + AAMC_Raw_Data_for_FY22[[#This Row],[Median]]","v":249761},{"$f":"(((AAMC_Raw_Data_for_FY22[[#This Row],[75th]]-AAMC_Raw_Data_for_FY22[[#This Row],[Median]])/25)*15) + AAMC_Raw_Data_for_FY22[[#This Row],[Median]]","v":264358},{"$f":"(((AAMC_Raw_Data_for_FY22[[#This Row],[75th]]-AAMC_Raw_Data_for_FY22[[#This Row],[Median]])/25)*20) + AAMC_Raw_Data_for_FY22[[#This Row],[Median]]","v":278955},293552,{"$f":"(((AAMC_Raw_Data_for_FY22[[#This Row],[75th]]-AAMC_Raw_Data_for_FY22[[#This Row],[Median]])/25)*30) + AAMC_Raw_Data_for_FY22[[#This Row],[Median]]","v":308149},{"$f":"(((AAMC_Raw_Data_for_FY22[[#This Row],[75th]]-AAMC_Raw_Data_for_FY22[[#This Row],[Median]])/25)*35) + AAMC_Raw_Data_for_FY22[[#This Row],[Median]]","v":322746},{"$f":"(((AAMC_Raw_Data_for_FY22[[#This Row],[75th]]-AAMC_Raw_Data_for_FY22[[#This Row],[Median]])/25)*40) + AAMC_Raw_Data_for_FY22[[#This Row],[Median]]","v":337343}]
[{"$f":"AAMC_Raw_Data_for_FY22[[#This Row],[Source]]&AAMC_Raw_Data_for_FY22[[#This Row],[Type]]&AAMC_Raw_Data_for_FY22[[#This Row],[School Subset]]&AAMC_Raw_Data_for_FY22[[#This Row],[Rank]]&AAMC_Raw_Data_for_FY22[[#This Row],[Degree]]&AAMC_Raw_Data_for_FY22[[#This Row],[Department / Specialty]]&\"L\"","v":"AAMCAcademicPrivateChiefPhDPreventive MedicineL"},"Preventive Medicine",6,"AAMC","Academic","Private","Chief","PhD","2021-2022",null,{"$f":"(((AAMC_Raw_Data_for_FY22[[#This Row],[Median]]-AAMC_Raw_Data_for_FY22[[#This Row],[25th]])/25)*5) + AAMC_Raw_Data_for_FY22[[#This Row],[25th]]","v":0},{"$f":"(((AAMC_Raw_Data_for_FY22[[#This Row],[Median]]-AAMC_Raw_Data_for_FY22[[#This Row],[25th]])/25)*10) + AAMC_Raw_Data_for_FY22[[#This Row],[25th]]","v":0},{"$f":"(((AAMC_Raw_Data_for_FY22[[#This Row],[Median]]-AAMC_Raw_Data_for_FY22[[#This Row],[25th]])/25)*15) + AAMC_Raw_Data_for_FY22[[#This Row],[25th]]","v":0},{"$f":"(((AAMC_Raw_Data_for_FY22[[#This Row],[Median]]-AAMC_Raw_Data_for_FY22[[#This Row],[25th]])/25)*20) + AAMC_Raw_Data_for_FY22[[#This Row],[25th]]","v":0},null,{"$f":"(((AAMC_Raw_Data_for_FY22[[#This Row],[75th]]-AAMC_Raw_Data_for_FY22[[#This Row],[Median]])/25)*5) + AAMC_Raw_Data_for_FY22[[#This Row],[Median]]","v":0},{"$f":"(((AAMC_Raw_Data_for_FY22[[#This Row],[75th]]-AAMC_Raw_Data_for_FY22[[#This Row],[Median]])/25)*10) + AAMC_Raw_Data_for_FY22[[#This Row],[Median]]","v":0},{"$f":"(((AAMC_Raw_Data_for_FY22[[#This Row],[75th]]-AAMC_Raw_Data_for_FY22[[#This Row],[Median]])/25)*15) + AAMC_Raw_Data_for_FY22[[#This Row],[Median]]","v":0},{"$f":"(((AAMC_Raw_Data_for_FY22[[#This Row],[75th]]-AAMC_Raw_Data_for_FY22[[#This Row],[Median]])/25)*20) + AAMC_Raw_Data_for_FY22[[#This Row],[Median]]","v":0},null,{"$f":"(((AAMC_Raw_Data_for_FY22[[#This Row],[75th]]-AAMC_Raw_Data_for_FY22[[#This Row],[Median]])/25)*30) + AAMC_Raw_Data_for_FY22[[#This Row],[Median]]","v":0},{"$f":"(((AAMC_Raw_Data_for_FY22[[#This Row],[75th]]-AAMC_Raw_Data_for_FY22[[#This Row],[Median]])/25)*35) + AAMC_Raw_Data_for_FY22[[#This Row],[Median]]","v":0},{"$f":"(((AAMC_Raw_Data_for_FY22[[#This Row],[75th]]-AAMC_Raw_Data_for_FY22[[#This Row],[Median]])/25)*40) + AAMC_Raw_Data_for_FY22[[#This Row],[Median]]","v":0}]
[{"$f":"AAMC_Raw_Data_for_FY22[[#This Row],[Source]]&AAMC_Raw_Data_for_FY22[[#This Row],[Type]]&AAMC_Raw_Data_for_FY22[[#This Row],[School Subset]]&AAMC_Raw_Data_for_FY22[[#This Row],[Rank]]&AAMC_Raw_Data_for_FY22[[#This Row],[Degree]]&AAMC_Raw_Data_for_FY22[[#This Row],[Department / Specialty]]&\"L\"","v":"AAMCAcademicPrivateChairPhDPreventive MedicineL"},"Preventive Medicine",1,"AAMC","Academic","Private","Chair","PhD","2021-2022",null,{"$f":"(((AAMC_Raw_Data_for_FY22[[#This Row],[Median]]-AAMC_Raw_Data_for_FY22[[#This Row],[25th]])/25)*5) + AAMC_Raw_Data_for_FY22[[#This Row],[25th]]","v":0},{"$f":"(((AAMC_Raw_Data_for_FY22[[#This Row],[Median]]-AAMC_Raw_Data_for_FY22[[#This Row],[25th]])/25)*10) + AAMC_Raw_Data_for_FY22[[#This Row],[25th]]","v":0},{"$f":"(((AAMC_Raw_Data_for_FY22[[#This Row],[Median]]-AAMC_Raw_Data_for_FY22[[#This Row],[25th]])/25)*15) + AAMC_Raw_Data_for_FY22[[#This Row],[25th]]","v":0},{"$f":"(((AAMC_Raw_Data_for_FY22[[#This Row],[Median]]-AAMC_Raw_Data_for_FY22[[#This Row],[25th]])/25)*20) + AAMC_Raw_Data_for_FY22[[#This Row],[25th]]","v":0},null,{"$f":"(((AAMC_Raw_Data_for_FY22[[#This Row],[75th]]-AAMC_Raw_Data_for_FY22[[#This Row],[Median]])/25)*5) + AAMC_Raw_Data_for_FY22[[#This Row],[Median]]","v":0},{"$f":"(((AAMC_Raw_Data_for_FY22[[#This Row],[75th]]-AAMC_Raw_Data_for_FY22[[#This Row],[Median]])/25)*10) + AAMC_Raw_Data_for_FY22[[#This Row],[Median]]","v":0},{"$f":"(((AAMC_Raw_Data_for_FY22[[#This Row],[75th]]-AAMC_Raw_Data_for_FY22[[#This Row],[Median]])/25)*15) + AAMC_Raw_Data_for_FY22[[#This Row],[Median]]","v":0},{"$f":"(((AAMC_Raw_Data_for_FY22[[#This Row],[75th]]-AAMC_Raw_Data_for_FY22[[#This Row],[Median]])/25)*20) + AAMC_Raw_Data_for_FY22[[#This Row],[Median]]","v":0},null,{"$f":"(((AAMC_Raw_Data_for_FY22[[#This Row],[75th]]-AAMC_Raw_Data_for_FY22[[#This Row],[Median]])/25)*30) + AAMC_Raw_Data_for_FY22[[#This Row],[Median]]","v":0},{"$f":"(((AAMC_Raw_Data_for_FY22[[#This Row],[75th]]-AAMC_Raw_Data_for_FY22[[#This Row],[Median]])/25)*35) + AAMC_Raw_Data_for_FY22[[#This Row],[Median]]","v":0},{"$f":"(((AAMC_Raw_Data_for_FY22[[#This Row],[75th]]-AAMC_Raw_Data_for_FY22[[#This Row],[Median]])/25)*40) + AAMC_Raw_Data_for_FY22[[#This Row],[Median]]","v":0}]
[{"$f":"AAMC_Raw_Data_for_FY22[[#This Row],[Source]]&AAMC_Raw_Data_for_FY22[[#This Row],[Type]]&AAMC_Raw_Data_for_FY22[[#This Row],[School Subset]]&AAMC_Raw_Data_for_FY22[[#This Row],[Rank]]&AAMC_Raw_Data_for_FY22[[#This Row],[Degree]]&AAMC_Raw_Data_for_FY22[[#This Row],[Department / Specialty]]&\"L\"","v":"AAMCAcademicPrivateInstructorPhDOther Clinical SciencesL"},"Other Clinical Sciences",5,"AAMC","Academic","Private","Instructor","PhD","2021-2022",null,{"$f":"(((AAMC_Raw_Data_for_FY22[[#This Row],[Median]]-AAMC_Raw_Data_for_FY22[[#This Row],[25th]])/25)*5) + AAMC_Raw_Data_for_FY22[[#This Row],[25th]]","v":0},{"$f":"(((AAMC_Raw_Data_for_FY22[[#This Row],[Median]]-AAMC_Raw_Data_for_FY22[[#This Row],[25th]])/25)*10) + AAMC_Raw_Data_for_FY22[[#This Row],[25th]]","v":0},{"$f":"(((AAMC_Raw_Data_for_FY22[[#This Row],[Median]]-AAMC_Raw_Data_for_FY22[[#This Row],[25th]])/25)*15) + AAMC_Raw_Data_for_FY22[[#This Row],[25th]]","v":0},{"$f":"(((AAMC_Raw_Data_for_FY22[[#This Row],[Median]]-AAMC_Raw_Data_for_FY22[[#This Row],[25th]])/25)*20) + AAMC_Raw_Data_for_FY22[[#This Row],[25th]]","v":0},null,{"$f":"(((AAMC_Raw_Data_for_FY22[[#This Row],[75th]]-AAMC_Raw_Data_for_FY22[[#This Row],[Median]])/25)*5) + AAMC_Raw_Data_for_FY22[[#This Row],[Median]]","v":0},{"$f":"(((AAMC_Raw_Data_for_FY22[[#This Row],[75th]]-AAMC_Raw_Data_for_FY22[[#This Row],[Median]])/25)*10) + AAMC_Raw_Data_for_FY22[[#This Row],[Median]]","v":0},{"$f":"(((AAMC_Raw_Data_for_FY22[[#This Row],[75th]]-AAMC_Raw_Data_for_FY22[[#This Row],[Median]])/25)*15) + AAMC_Raw_Data_for_FY22[[#This Row],[Median]]","v":0},{"$f":"(((AAMC_Raw_Data_for_FY22[[#This Row],[75th]]-AAMC_Raw_Data_for_FY22[[#This Row],[Median]])/25)*20) + AAMC_Raw_Data_for_FY22[[#This Row],[Median]]","v":0},null,{"$f":"(((AAMC_Raw_Data_for_FY22[[#This Row],[75th]]-AAMC_Raw_Data_for_FY22[[#This Row],[Median]])/25)*30) + AAMC_Raw_Data_for_FY22[[#This Row],[Median]]","v":0},{"$f":"(((AAMC_Raw_Data_for_FY22[[#This Row],[75th]]-AAMC_Raw_Data_for_FY22[[#This Row],[Median]])/25)*35) + AAMC_Raw_Data_for_FY22[[#This Row],[Median]]","v":0},{"$f":"(((AAMC_Raw_Data_for_FY22[[#This Row],[75th]]-AAMC_Raw_Data_for_FY22[[#This Row],[Median]])/25)*40) + AAMC_Raw_Data_for_FY22[[#This Row],[Median]]","v":0}]
[{"$f":"AAMC_Raw_Data_for_FY22[[#This Row],[Source]]&AAMC_Raw_Data_for_FY22[[#This Row],[Type]]&AAMC_Raw_Data_for_FY22[[#This Row],[School Subset]]&AAMC_Raw_Data_for_FY22[[#This Row],[Rank]]&AAMC_Raw_Data_for_FY22[[#This Row],[Degree]]&AAMC_Raw_Data_for_FY22[[#This Row],[Department / Specialty]]&\"L\"","v":"AAMCAcademicPrivateAssistantPhDOther Clinical SciencesL"},"Other Clinical Sciences",4,"AAMC","Academic","Private","Assistant","PhD","2021-2022",109729,{"$f":"(((AAMC_Raw_Data_for_FY22[[#This Row],[Median]]-AAMC_Raw_Data_for_FY22[[#This Row],[25th]])/25)*5) + AAMC_Raw_Data_for_FY22[[#This Row],[25th]]","v":112184.2},{"$f":"(((AAMC_Raw_Data_for_FY22[[#This Row],[Median]]-AAMC_Raw_Data_for_FY22[[#This Row],[25th]])/25)*10) + AAMC_Raw_Data_for_FY22[[#This Row],[25th]]","v":114639.4},{"$f":"(((AAMC_Raw_Data_for_FY22[[#This Row],[Median]]-AAMC_Raw_Data_for_FY22[[#This Row],[25th]])/25)*15) + AAMC_Raw_Data_for_FY22[[#This Row],[25th]]","v":117094.6},{"$f":"(((AAMC_Raw_Data_for_FY22[[#This Row],[Median]]-AAMC_Raw_Data_for_FY22[[#This Row],[25th]])/25)*20) + AAMC_Raw_Data_for_FY22[[#This Row],[25th]]","v":119549.8},122005,{"$f":"(((AAMC_Raw_Data_for_FY22[[#This Row],[75th]]-AAMC_Raw_Data_for_FY22[[#This Row],[Median]])/25)*5) + AAMC_Raw_Data_for_FY22[[#This Row],[Median]]","v":126557},{"$f":"(((AAMC_Raw_Data_for_FY22[[#This Row],[75th]]-AAMC_Raw_Data_for_FY22[[#This Row],[Median]])/25)*10) + AAMC_Raw_Data_for_FY22[[#This Row],[Median]]","v":131109},{"$f":"(((AAMC_Raw_Data_for_FY22[[#This Row],[75th]]-AAMC_Raw_Data_for_FY22[[#This Row],[Median]])/25)*15) + AAMC_Raw_Data_for_FY22[[#This Row],[Median]]","v":135661},{"$f":"(((AAMC_Raw_Data_for_FY22[[#This Row],[75th]]-AAMC_Raw_Data_for_FY22[[#This Row],[Median]])/25)*20) + AAMC_Raw_Data_for_FY22[[#This Row],[Median]]","v":140213},144765,{"$f":"(((AAMC_Raw_Data_for_FY22[[#This Row],[75th]]-AAMC_Raw_Data_for_FY22[[#This Row],[Median]])/25)*30) + AAMC_Raw_Data_for_FY22[[#This Row],[Median]]","v":149317},{"$f":"(((AAMC_Raw_Data_for_FY22[[#This Row],[75th]]-AAMC_Raw_Data_for_FY22[[#This Row],[Median]])/25)*35) + AAMC_Raw_Data_for_FY22[[#This Row],[Median]]","v":153869},{"$f":"(((AAMC_Raw_Data_for_FY22[[#This Row],[75th]]-AAMC_Raw_Data_for_FY22[[#This Row],[Median]])/25)*40) + AAMC_Raw_Data_for_FY22[[#This Row],[Median]]","v":158421}]
[{"$f":"AAMC_Raw_Data_for_FY22[[#This Row],[Source]]&AAMC_Raw_Data_for_FY22[[#This Row],[Type]]&AAMC_Raw_Data_for_FY22[[#This Row],[School Subset]]&AAMC_Raw_Data_for_FY22[[#This Row],[Rank]]&AAMC_Raw_Data_for_FY22[[#This Row],[Degree]]&AAMC_Raw_Data_for_FY22[[#This Row],[Department / Specialty]]&\"L\"","v":"AAMCAcademicPrivateAssociatePhDOther Clinical SciencesL"},"Other Clinical Sciences",3,"AAMC","Academic","Private","Associate","PhD","2021-2022",141765,{"$f":"(((AAMC_Raw_Data_for_FY22[[#This Row],[Median]]-AAMC_Raw_Data_for_FY22[[#This Row],[25th]])/25)*5) + AAMC_Raw_Data_for_FY22[[#This Row],[25th]]","v":145925.4},{"$f":"(((AAMC_Raw_Data_for_FY22[[#This Row],[Median]]-AAMC_Raw_Data_for_FY22[[#This Row],[25th]])/25)*10) + AAMC_Raw_Data_for_FY22[[#This Row],[25th]]","v":150085.79999999999},{"$f":"(((AAMC_Raw_Data_for_FY22[[#This Row],[Median]]-AAMC_Raw_Data_for_FY22[[#This Row],[25th]])/25)*15) + AAMC_Raw_Data_for_FY22[[#This Row],[25th]]","v":154246.20000000001},{"$f":"(((AAMC_Raw_Data_for_FY22[[#This Row],[Median]]-AAMC_Raw_Data_for_FY22[[#This Row],[25th]])/25)*20) + AAMC_Raw_Data_for_FY22[[#This Row],[25th]]","v":158406.6},162567,{"$f":"(((AAMC_Raw_Data_for_FY22[[#This Row],[75th]]-AAMC_Raw_Data_for_FY22[[#This Row],[Median]])/25)*5) + AAMC_Raw_Data_for_FY22[[#This Row],[Median]]","v":165831.6},{"$f":"(((AAMC_Raw_Data_for_FY22[[#This Row],[75th]]-AAMC_Raw_Data_for_FY22[[#This Row],[Median]])/25)*10) + AAMC_Raw_Data_for_FY22[[#This Row],[Median]]","v":169096.2},{"$f":"(((AAMC_Raw_Data_for_FY22[[#This Row],[75th]]-AAMC_Raw_Data_for_FY22[[#This Row],[Median]])/25)*15) + AAMC_Raw_Data_for_FY22[[#This Row],[Median]]","v":172360.8},{"$f":"(((AAMC_Raw_Data_for_FY22[[#This Row],[75th]]-AAMC_Raw_Data_for_FY22[[#This Row],[Median]])/25)*20) + AAMC_Raw_Data_for_FY22[[#This Row],[Median]]","v":175625.4},178890,{"$f":"(((AAMC_Raw_Data_for_FY22[[#This Row],[75th]]-AAMC_Raw_Data_for_FY22[[#This Row],[Median]])/25)*30) + AAMC_Raw_Data_for_FY22[[#This Row],[Median]]","v":182154.6},{"$f":"(((AAMC_Raw_Data_for_FY22[[#This Row],[75th]]-AAMC_Raw_Data_for_FY22[[#This Row],[Median]])/25)*35) + AAMC_Raw_Data_for_FY22[[#This Row],[Median]]","v":185419.2},{"$f":"(((AAMC_Raw_Data_for_FY22[[#This Row],[75th]]-AAMC_Raw_Data_for_FY22[[#This Row],[Median]])/25)*40) + AAMC_Raw_Data_for_FY22[[#This Row],[Median]]","v":188683.8}]
[{"$f":"AAMC_Raw_Data_for_FY22[[#This Row],[Source]]&AAMC_Raw_Data_for_FY22[[#This Row],[Type]]&AAMC_Raw_Data_for_FY22[[#This Row],[School Subset]]&AAMC_Raw_Data_for_FY22[[#This Row],[Rank]]&AAMC_Raw_Data_for_FY22[[#This Row],[Degree]]&AAMC_Raw_Data_for_FY22[[#This Row],[Department / Specialty]]&\"L\"","v":"AAMCAcademicPrivateProfessorPhDOther Clinical SciencesL"},"Other Clinical Sciences",2,"AAMC","Academic","Private","Professor","PhD","2021-2022",189981,{"$f":"(((AAMC_Raw_Data_for_FY22[[#This Row],[Median]]-AAMC_Raw_Data_for_FY22[[#This Row],[25th]])/25)*5) + AAMC_Raw_Data_for_FY22[[#This Row],[25th]]","v":194724.2},{"$f":"(((AAMC_Raw_Data_for_FY22[[#This Row],[Median]]-AAMC_Raw_Data_for_FY22[[#This Row],[25th]])/25)*10) + AAMC_Raw_Data_for_FY22[[#This Row],[25th]]","v":199467.4},{"$f":"(((AAMC_Raw_Data_for_FY22[[#This Row],[Median]]-AAMC_Raw_Data_for_FY22[[#This Row],[25th]])/25)*15) + AAMC_Raw_Data_for_FY22[[#This Row],[25th]]","v":204210.6},{"$f":"(((AAMC_Raw_Data_for_FY22[[#This Row],[Median]]-AAMC_Raw_Data_for_FY22[[#This Row],[25th]])/25)*20) + AAMC_Raw_Data_for_FY22[[#This Row],[25th]]","v":208953.8},213697,{"$f":"(((AAMC_Raw_Data_for_FY22[[#This Row],[75th]]-AAMC_Raw_Data_for_FY22[[#This Row],[Median]])/25)*5) + AAMC_Raw_Data_for_FY22[[#This Row],[Median]]","v":223887.8},{"$f":"(((AAMC_Raw_Data_for_FY22[[#This Row],[75th]]-AAMC_Raw_Data_for_FY22[[#This Row],[Median]])/25)*10) + AAMC_Raw_Data_for_FY22[[#This Row],[Median]]","v":234078.6},{"$f":"(((AAMC_Raw_Data_for_FY22[[#This Row],[75th]]-AAMC_Raw_Data_for_FY22[[#This Row],[Median]])/25)*15) + AAMC_Raw_Data_for_FY22[[#This Row],[Median]]","v":244269.4},{"$f":"(((AAMC_Raw_Data_for_FY22[[#This Row],[75th]]-AAMC_Raw_Data_for_FY22[[#This Row],[Median]])/25)*20) + AAMC_Raw_Data_for_FY22[[#This Row],[Median]]","v":254460.2},264651,{"$f":"(((AAMC_Raw_Data_for_FY22[[#This Row],[75th]]-AAMC_Raw_Data_for_FY22[[#This Row],[Median]])/25)*30) + AAMC_Raw_Data_for_FY22[[#This Row],[Median]]","v":274841.8},{"$f":"(((AAMC_Raw_Data_for_FY22[[#This Row],[75th]]-AAMC_Raw_Data_for_FY22[[#This Row],[Median]])/25)*35) + AAMC_Raw_Data_for_FY22[[#This Row],[Median]]","v":285032.59999999998},{"$f":"(((AAMC_Raw_Data_for_FY22[[#This Row],[75th]]-AAMC_Raw_Data_for_FY22[[#This Row],[Median]])/25)*40) + AAMC_Raw_Data_for_FY22[[#This Row],[Median]]","v":295223.40000000002}]
[{"$f":"AAMC_Raw_Data_for_FY22[[#This Row],[Source]]&AAMC_Raw_Data_for_FY22[[#This Row],[Type]]&AAMC_Raw_Data_for_FY22[[#This Row],[School Subset]]&AAMC_Raw_Data_for_FY22[[#This Row],[Rank]]&AAMC_Raw_Data_for_FY22[[#This Row],[Degree]]&AAMC_Raw_Data_for_FY22[[#This Row],[Department / Specialty]]&\"L\"","v":"AAMCAcademicPrivateChairPhDOther Clinical SciencesL"},"Other Clinical Sciences",1,"AAMC","Academic","Private","Chair","PhD","2021-2022",null,{"$f":"(((AAMC_Raw_Data_for_FY22[[#This Row],[Median]]-AAMC_Raw_Data_for_FY22[[#This Row],[25th]])/25)*5) + AAMC_Raw_Data_for_FY22[[#This Row],[25th]]","v":0},{"$f":"(((AAMC_Raw_Data_for_FY22[[#This Row],[Median]]-AAMC_Raw_Data_for_FY22[[#This Row],[25th]])/25)*10) + AAMC_Raw_Data_for_FY22[[#This Row],[25th]]","v":0},{"$f":"(((AAMC_Raw_Data_for_FY22[[#This Row],[Median]]-AAMC_Raw_Data_for_FY22[[#This Row],[25th]])/25)*15) + AAMC_Raw_Data_for_FY22[[#This Row],[25th]]","v":0},{"$f":"(((AAMC_Raw_Data_for_FY22[[#This Row],[Median]]-AAMC_Raw_Data_for_FY22[[#This Row],[25th]])/25)*20) + AAMC_Raw_Data_for_FY22[[#This Row],[25th]]","v":0},null,{"$f":"(((AAMC_Raw_Data_for_FY22[[#This Row],[75th]]-AAMC_Raw_Data_for_FY22[[#This Row],[Median]])/25)*5) + AAMC_Raw_Data_for_FY22[[#This Row],[Median]]","v":0},{"$f":"(((AAMC_Raw_Data_for_FY22[[#This Row],[75th]]-AAMC_Raw_Data_for_FY22[[#This Row],[Median]])/25)*10) + AAMC_Raw_Data_for_FY22[[#This Row],[Median]]","v":0},{"$f":"(((AAMC_Raw_Data_for_FY22[[#This Row],[75th]]-AAMC_Raw_Data_for_FY22[[#This Row],[Median]])/25)*15) + AAMC_Raw_Data_for_FY22[[#This Row],[Median]]","v":0},{"$f":"(((AAMC_Raw_Data_for_FY22[[#This Row],[75th]]-AAMC_Raw_Data_for_FY22[[#This Row],[Median]])/25)*20) + AAMC_Raw_Data_for_FY22[[#This Row],[Median]]","v":0},null,{"$f":"(((AAMC_Raw_Data_for_FY22[[#This Row],[75th]]-AAMC_Raw_Data_for_FY22[[#This Row],[Median]])/25)*30) + AAMC_Raw_Data_for_FY22[[#This Row],[Median]]","v":0},{"$f":"(((AAMC_Raw_Data_for_FY22[[#This Row],[75th]]-AAMC_Raw_Data_for_FY22[[#This Row],[Median]])/25)*35) + AAMC_Raw_Data_for_FY22[[#This Row],[Median]]","v":0},{"$f":"(((AAMC_Raw_Data_for_FY22[[#This Row],[75th]]-AAMC_Raw_Data_for_FY22[[#This Row],[Median]])/25)*40) + AAMC_Raw_Data_for_FY22[[#This Row],[Median]]","v":0}]
[{"$f":"AAMC_Raw_Data_for_FY22[[#This Row],[Source]]&AAMC_Raw_Data_for_FY22[[#This Row],[Type]]&AAMC_Raw_Data_for_FY22[[#This Row],[School Subset]]&AAMC_Raw_Data_for_FY22[[#This Row],[Rank]]&AAMC_Raw_Data_for_FY22[[#This Row],[Degree]]&AAMC_Raw_Data_for_FY22[[#This Row],[Department / Specialty]]&\"L\"","v":"AAMCAcademicPublicInstructorPhDClinical Sciences TotalL"},"Clinical Sciences Total",5,"AAMC","Academic","Public","Instructor","PhD","2021-2022",65973,{"$f":"(((AAMC_Raw_Data_for_FY22[[#This Row],[Median]]-AAMC_Raw_Data_for_FY22[[#This Row],[25th]])/25)*5) + AAMC_Raw_Data_for_FY22[[#This Row],[25th]]","v":68525.8},{"$f":"(((AAMC_Raw_Data_for_FY22[[#This Row],[Median]]-AAMC_Raw_Data_for_FY22[[#This Row],[25th]])/25)*10) + AAMC_Raw_Data_for_FY22[[#This Row],[25th]]","v":71078.600000000006},{"$f":"(((AAMC_Raw_Data_for_FY22[[#This Row],[Median]]-AAMC_Raw_Data_for_FY22[[#This Row],[25th]])/25)*15) + AAMC_Raw_Data_for_FY22[[#This Row],[25th]]","v":73631.399999999994},{"$f":"(((AAMC_Raw_Data_for_FY22[[#This Row],[Median]]-AAMC_Raw_Data_for_FY22[[#This Row],[25th]])/25)*20) + AAMC_Raw_Data_for_FY22[[#This Row],[25th]]","v":76184.2},78737,{"$f":"(((AAMC_Raw_Data_for_FY22[[#This Row],[75th]]-AAMC_Raw_Data_for_FY22[[#This Row],[Median]])/25)*5) + AAMC_Raw_Data_for_FY22[[#This Row],[Median]]","v":83591.600000000006},{"$f":"(((AAMC_Raw_Data_for_FY22[[#This Row],[75th]]-AAMC_Raw_Data_for_FY22[[#This Row],[Median]])/25)*10) + AAMC_Raw_Data_for_FY22[[#This Row],[Median]]","v":88446.2},{"$f":"(((AAMC_Raw_Data_for_FY22[[#This Row],[75th]]-AAMC_Raw_Data_for_FY22[[#This Row],[Median]])/25)*15) + AAMC_Raw_Data_for_FY22[[#This Row],[Median]]","v":93300.800000000003},{"$f":"(((AAMC_Raw_Data_for_FY22[[#This Row],[75th]]-AAMC_Raw_Data_for_FY22[[#This Row],[Median]])/25)*20) + AAMC_Raw_Data_for_FY22[[#This Row],[Median]]","v":98155.4},103010,{"$f":"(((AAMC_Raw_Data_for_FY22[[#This Row],[75th]]-AAMC_Raw_Data_for_FY22[[#This Row],[Median]])/25)*30) + AAMC_Raw_Data_for_FY22[[#This Row],[Median]]","v":107864.6},{"$f":"(((AAMC_Raw_Data_for_FY22[[#This Row],[75th]]-AAMC_Raw_Data_for_FY22[[#This Row],[Median]])/25)*35) + AAMC_Raw_Data_for_FY22[[#This Row],[Median]]","v":112719.2},{"$f":"(((AAMC_Raw_Data_for_FY22[[#This Row],[75th]]-AAMC_Raw_Data_for_FY22[[#This Row],[Median]])/25)*40) + AAMC_Raw_Data_for_FY22[[#This Row],[Median]]","v":117573.79999999999}]
[{"$f":"AAMC_Raw_Data_for_FY22[[#This Row],[Source]]&AAMC_Raw_Data_for_FY22[[#This Row],[Type]]&AAMC_Raw_Data_for_FY22[[#This Row],[School Subset]]&AAMC_Raw_Data_for_FY22[[#This Row],[Rank]]&AAMC_Raw_Data_for_FY22[[#This Row],[Degree]]&AAMC_Raw_Data_for_FY22[[#This Row],[Department / Specialty]]&\"L\"","v":"AAMCAcademicPublicAssistantPhDClinical Sciences TotalL"},"Clinical Sciences Total",4,"AAMC","Academic","Public","Assistant","PhD","2021-2022",95000,{"$f":"(((AAMC_Raw_Data_for_FY22[[#This Row],[Median]]-AAMC_Raw_Data_for_FY22[[#This Row],[25th]])/25)*5) + AAMC_Raw_Data_for_FY22[[#This Row],[25th]]","v":98017},{"$f":"(((AAMC_Raw_Data_for_FY22[[#This Row],[Median]]-AAMC_Raw_Data_for_FY22[[#This Row],[25th]])/25)*10) + AAMC_Raw_Data_for_FY22[[#This Row],[25th]]","v":101034},{"$f":"(((AAMC_Raw_Data_for_FY22[[#This Row],[Median]]-AAMC_Raw_Data_for_FY22[[#This Row],[25th]])/25)*15) + AAMC_Raw_Data_for_FY22[[#This Row],[25th]]","v":104051},{"$f":"(((AAMC_Raw_Data_for_FY22[[#This Row],[Median]]-AAMC_Raw_Data_for_FY22[[#This Row],[25th]])/25)*20) + AAMC_Raw_Data_for_FY22[[#This Row],[25th]]","v":107068},110085,{"$f":"(((AAMC_Raw_Data_for_FY22[[#This Row],[75th]]-AAMC_Raw_Data_for_FY22[[#This Row],[Median]])/25)*5) + AAMC_Raw_Data_for_FY22[[#This Row],[Median]]","v":114068},{"$f":"(((AAMC_Raw_Data_for_FY22[[#This Row],[75th]]-AAMC_Raw_Data_for_FY22[[#This Row],[Median]])/25)*10) + AAMC_Raw_Data_for_FY22[[#This Row],[Median]]","v":118051},{"$f":"(((AAMC_Raw_Data_for_FY22[[#This Row],[75th]]-AAMC_Raw_Data_for_FY22[[#This Row],[Median]])/25)*15) + AAMC_Raw_Data_for_FY22[[#This Row],[Median]]","v":122034},{"$f":"(((AAMC_Raw_Data_for_FY22[[#This Row],[75th]]-AAMC_Raw_Data_for_FY22[[#This Row],[Median]])/25)*20) + AAMC_Raw_Data_for_FY22[[#This Row],[Median]]","v":126017},130000,{"$f":"(((AAMC_Raw_Data_for_FY22[[#This Row],[75th]]-AAMC_Raw_Data_for_FY22[[#This Row],[Median]])/25)*30) + AAMC_Raw_Data_for_FY22[[#This Row],[Median]]","v":133983},{"$f":"(((AAMC_Raw_Data_for_FY22[[#This Row],[75th]]-AAMC_Raw_Data_for_FY22[[#This Row],[Median]])/25)*35) + AAMC_Raw_Data_for_FY22[[#This Row],[Median]]","v":137966},{"$f":"(((AAMC_Raw_Data_for_FY22[[#This Row],[75th]]-AAMC_Raw_Data_for_FY22[[#This Row],[Median]])/25)*40) + AAMC_Raw_Data_for_FY22[[#This Row],[Median]]","v":141949}]
[{"$f":"AAMC_Raw_Data_for_FY22[[#This Row],[Source]]&AAMC_Raw_Data_for_FY22[[#This Row],[Type]]&AAMC_Raw_Data_for_FY22[[#This Row],[School Subset]]&AAMC_Raw_Data_for_FY22[[#This Row],[Rank]]&AAMC_Raw_Data_for_FY22[[#This Row],[Degree]]&AAMC_Raw_Data_for_FY22[[#This Row],[Department / Specialty]]&\"L\"","v":"AAMCAcademicPublicAssociatePhDClinical Sciences TotalL"},"Clinical Sciences Total",3,"AAMC","Academic","Public","Associate","PhD","2021-2022",120750,{"$f":"(((AAMC_Raw_Data_for_FY22[[#This Row],[Median]]-AAMC_Raw_Data_for_FY22[[#This Row],[25th]])/25)*5) + AAMC_Raw_Data_for_FY22[[#This Row],[25th]]","v":124916.6},{"$f":"(((AAMC_Raw_Data_for_FY22[[#This Row],[Median]]-AAMC_Raw_Data_for_FY22[[#This Row],[25th]])/25)*10) + AAMC_Raw_Data_for_FY22[[#This Row],[25th]]","v":129083.2},{"$f":"(((AAMC_Raw_Data_for_FY22[[#This Row],[Median]]-AAMC_Raw_Data_for_FY22[[#This Row],[25th]])/25)*15) + AAMC_Raw_Data_for_FY22[[#This Row],[25th]]","v":133249.79999999999},{"$f":"(((AAMC_Raw_Data_for_FY22[[#This Row],[Median]]-AAMC_Raw_Data_for_FY22[[#This Row],[25th]])/25)*20) + AAMC_Raw_Data_for_FY22[[#This Row],[25th]]","v":137416.4},141583,{"$f":"(((AAMC_Raw_Data_for_FY22[[#This Row],[75th]]-AAMC_Raw_Data_for_FY22[[#This Row],[Median]])/25)*5) + AAMC_Raw_Data_for_FY22[[#This Row],[Median]]","v":146778.79999999999},{"$f":"(((AAMC_Raw_Data_for_FY22[[#This Row],[75th]]-AAMC_Raw_Data_for_FY22[[#This Row],[Median]])/25)*10) + AAMC_Raw_Data_for_FY22[[#This Row],[Median]]","v":151974.6},{"$f":"(((AAMC_Raw_Data_for_FY22[[#This Row],[75th]]-AAMC_Raw_Data_for_FY22[[#This Row],[Median]])/25)*15) + AAMC_Raw_Data_for_FY22[[#This Row],[Median]]","v":157170.4},{"$f":"(((AAMC_Raw_Data_for_FY22[[#This Row],[75th]]-AAMC_Raw_Data_for_FY22[[#This Row],[Median]])/25)*20) + AAMC_Raw_Data_for_FY22[[#This Row],[Median]]","v":162366.20000000001},167562,{"$f":"(((AAMC_Raw_Data_for_FY22[[#This Row],[75th]]-AAMC_Raw_Data_for_FY22[[#This Row],[Median]])/25)*30) + AAMC_Raw_Data_for_FY22[[#This Row],[Median]]","v":172757.8},{"$f":"(((AAMC_Raw_Data_for_FY22[[#This Row],[75th]]-AAMC_Raw_Data_for_FY22[[#This Row],[Median]])/25)*35) + AAMC_Raw_Data_for_FY22[[#This Row],[Median]]","v":177953.6},{"$f":"(((AAMC_Raw_Data_for_FY22[[#This Row],[75th]]-AAMC_Raw_Data_for_FY22[[#This Row],[Median]])/25)*40) + AAMC_Raw_Data_for_FY22[[#This Row],[Median]]","v":183149.4}]
[{"$f":"AAMC_Raw_Data_for_FY22[[#This Row],[Source]]&AAMC_Raw_Data_for_FY22[[#This Row],[Type]]&AAMC_Raw_Data_for_FY22[[#This Row],[School Subset]]&AAMC_Raw_Data_for_FY22[[#This Row],[Rank]]&AAMC_Raw_Data_for_FY22[[#This Row],[Degree]]&AAMC_Raw_Data_for_FY22[[#This Row],[Department / Specialty]]&\"L\"","v":"AAMCAcademicPublicProfessorPhDClinical Sciences TotalL"},"Clinical Sciences Total",2,"AAMC","Academic","Public","Professor","PhD","2021-2022",174129,{"$f":"(((AAMC_Raw_Data_for_FY22[[#This Row],[Median]]-AAMC_Raw_Data_for_FY22[[#This Row],[25th]])/25)*5) + AAMC_Raw_Data_for_FY22[[#This Row],[25th]]","v":180994.8},{"$f":"(((AAMC_Raw_Data_for_FY22[[#This Row],[Median]]-AAMC_Raw_Data_for_FY22[[#This Row],[25th]])/25)*10) + AAMC_Raw_Data_for_FY22[[#This Row],[25th]]","v":187860.6},{"$f":"(((AAMC_Raw_Data_for_FY22[[#This Row],[Median]]-AAMC_Raw_Data_for_FY22[[#This Row],[25th]])/25)*15) + AAMC_Raw_Data_for_FY22[[#This Row],[25th]]","v":194726.39999999999},{"$f":"(((AAMC_Raw_Data_for_FY22[[#This Row],[Median]]-AAMC_Raw_Data_for_FY22[[#This Row],[25th]])/25)*20) + AAMC_Raw_Data_for_FY22[[#This Row],[25th]]","v":201592.2},208458,{"$f":"(((AAMC_Raw_Data_for_FY22[[#This Row],[75th]]-AAMC_Raw_Data_for_FY22[[#This Row],[Median]])/25)*5) + AAMC_Raw_Data_for_FY22[[#This Row],[Median]]","v":217597.8},{"$f":"(((AAMC_Raw_Data_for_FY22[[#This Row],[75th]]-AAMC_Raw_Data_for_FY22[[#This Row],[Median]])/25)*10) + AAMC_Raw_Data_for_FY22[[#This Row],[Median]]","v":226737.6},{"$f":"(((AAMC_Raw_Data_for_FY22[[#This Row],[75th]]-AAMC_Raw_Data_for_FY22[[#This Row],[Median]])/25)*15) + AAMC_Raw_Data_for_FY22[[#This Row],[Median]]","v":235877.4},{"$f":"(((AAMC_Raw_Data_for_FY22[[#This Row],[75th]]-AAMC_Raw_Data_for_FY22[[#This Row],[Median]])/25)*20) + AAMC_Raw_Data_for_FY22[[#This Row],[Median]]","v":245017.2},254157,{"$f":"(((AAMC_Raw_Data_for_FY22[[#This Row],[75th]]-AAMC_Raw_Data_for_FY22[[#This Row],[Median]])/25)*30) + AAMC_Raw_Data_for_FY22[[#This Row],[Median]]","v":263296.8},{"$f":"(((AAMC_Raw_Data_for_FY22[[#This Row],[75th]]-AAMC_Raw_Data_for_FY22[[#This Row],[Median]])/25)*35) + AAMC_Raw_Data_for_FY22[[#This Row],[Median]]","v":272436.59999999998},{"$f":"(((AAMC_Raw_Data_for_FY22[[#This Row],[75th]]-AAMC_Raw_Data_for_FY22[[#This Row],[Median]])/25)*40) + AAMC_Raw_Data_for_FY22[[#This Row],[Median]]","v":281576.40000000002}]
[{"$f":"AAMC_Raw_Data_for_FY22[[#This Row],[Source]]&AAMC_Raw_Data_for_FY22[[#This Row],[Type]]&AAMC_Raw_Data_for_FY22[[#This Row],[School Subset]]&AAMC_Raw_Data_for_FY22[[#This Row],[Rank]]&AAMC_Raw_Data_for_FY22[[#This Row],[Degree]]&AAMC_Raw_Data_for_FY22[[#This Row],[Department / Specialty]]&\"L\"","v":"AAMCAcademicPublicChiefPhDClinical Sciences TotalL"},"Clinical Sciences Total",6,"AAMC","Academic","Public","Chief","PhD","2021-2022",193226,{"$f":"(((AAMC_Raw_Data_for_FY22[[#This Row],[Median]]-AAMC_Raw_Data_for_FY22[[#This Row],[25th]])/25)*5) + AAMC_Raw_Data_for_FY22[[#This Row],[25th]]","v":205073},{"$f":"(((AAMC_Raw_Data_for_FY22[[#This Row],[Median]]-AAMC_Raw_Data_for_FY22[[#This Row],[25th]])/25)*10) + AAMC_Raw_Data_for_FY22[[#This Row],[25th]]","v":216920},{"$f":"(((AAMC_Raw_Data_for_FY22[[#This Row],[Median]]-AAMC_Raw_Data_for_FY22[[#This Row],[25th]])/25)*15) + AAMC_Raw_Data_for_FY22[[#This Row],[25th]]","v":228767},{"$f":"(((AAMC_Raw_Data_for_FY22[[#This Row],[Median]]-AAMC_Raw_Data_for_FY22[[#This Row],[25th]])/25)*20) + AAMC_Raw_Data_for_FY22[[#This Row],[25th]]","v":240614},252461,{"$f":"(((AAMC_Raw_Data_for_FY22[[#This Row],[75th]]-AAMC_Raw_Data_for_FY22[[#This Row],[Median]])/25)*5) + AAMC_Raw_Data_for_FY22[[#This Row],[Median]]","v":266391.2},{"$f":"(((AAMC_Raw_Data_for_FY22[[#This Row],[75th]]-AAMC_Raw_Data_for_FY22[[#This Row],[Median]])/25)*10) + AAMC_Raw_Data_for_FY22[[#This Row],[Median]]","v":280321.40000000002},{"$f":"(((AAMC_Raw_Data_for_FY22[[#This Row],[75th]]-AAMC_Raw_Data_for_FY22[[#This Row],[Median]])/25)*15) + AAMC_Raw_Data_for_FY22[[#This Row],[Median]]","v":294251.59999999998},{"$f":"(((AAMC_Raw_Data_for_FY22[[#This Row],[75th]]-AAMC_Raw_Data_for_FY22[[#This Row],[Median]])/25)*20) + AAMC_Raw_Data_for_FY22[[#This Row],[Median]]","v":308181.8},322112,{"$f":"(((AAMC_Raw_Data_for_FY22[[#This Row],[75th]]-AAMC_Raw_Data_for_FY22[[#This Row],[Median]])/25)*30) + AAMC_Raw_Data_for_FY22[[#This Row],[Median]]","v":336042.2},{"$f":"(((AAMC_Raw_Data_for_FY22[[#This Row],[75th]]-AAMC_Raw_Data_for_FY22[[#This Row],[Median]])/25)*35) + AAMC_Raw_Data_for_FY22[[#This Row],[Median]]","v":349972.4},{"$f":"(((AAMC_Raw_Data_for_FY22[[#This Row],[75th]]-AAMC_Raw_Data_for_FY22[[#This Row],[Median]])/25)*40) + AAMC_Raw_Data_for_FY22[[#This Row],[Median]]","v":363902.6}]
[{"$f":"AAMC_Raw_Data_for_FY22[[#This Row],[Source]]&AAMC_Raw_Data_for_FY22[[#This Row],[Type]]&AAMC_Raw_Data_for_FY22[[#This Row],[School Subset]]&AAMC_Raw_Data_for_FY22[[#This Row],[Rank]]&AAMC_Raw_Data_for_FY22[[#This Row],[Degree]]&AAMC_Raw_Data_for_FY22[[#This Row],[Department / Specialty]]&\"L\"","v":"AAMCAcademicPublicChairPhDClinical Sciences TotalL"},"Clinical Sciences Total",1,"AAMC","Academic","Public","Chair","PhD","2021-2022",214277,{"$f":"(((AAMC_Raw_Data_for_FY22[[#This Row],[Median]]-AAMC_Raw_Data_for_FY22[[#This Row],[25th]])/25)*5) + AAMC_Raw_Data_for_FY22[[#This Row],[25th]]","v":226035},{"$f":"(((AAMC_Raw_Data_for_FY22[[#This Row],[Median]]-AAMC_Raw_Data_for_FY22[[#This Row],[25th]])/25)*10) + AAMC_Raw_Data_for_FY22[[#This Row],[25th]]","v":237793},{"$f":"(((AAMC_Raw_Data_for_FY22[[#This Row],[Median]]-AAMC_Raw_Data_for_FY22[[#This Row],[25th]])/25)*15) + AAMC_Raw_Data_for_FY22[[#This Row],[25th]]","v":249551},{"$f":"(((AAMC_Raw_Data_for_FY22[[#This Row],[Median]]-AAMC_Raw_Data_for_FY22[[#This Row],[25th]])/25)*20) + AAMC_Raw_Data_for_FY22[[#This Row],[25th]]","v":261309},273067,{"$f":"(((AAMC_Raw_Data_for_FY22[[#This Row],[75th]]-AAMC_Raw_Data_for_FY22[[#This Row],[Median]])/25)*5) + AAMC_Raw_Data_for_FY22[[#This Row],[Median]]","v":289739.8},{"$f":"(((AAMC_Raw_Data_for_FY22[[#This Row],[75th]]-AAMC_Raw_Data_for_FY22[[#This Row],[Median]])/25)*10) + AAMC_Raw_Data_for_FY22[[#This Row],[Median]]","v":306412.59999999998},{"$f":"(((AAMC_Raw_Data_for_FY22[[#This Row],[75th]]-AAMC_Raw_Data_for_FY22[[#This Row],[Median]])/25)*15) + AAMC_Raw_Data_for_FY22[[#This Row],[Median]]","v":323085.40000000002},{"$f":"(((AAMC_Raw_Data_for_FY22[[#This Row],[75th]]-AAMC_Raw_Data_for_FY22[[#This Row],[Median]])/25)*20) + AAMC_Raw_Data_for_FY22[[#This Row],[Median]]","v":339758.2},356431,{"$f":"(((AAMC_Raw_Data_for_FY22[[#This Row],[75th]]-AAMC_Raw_Data_for_FY22[[#This Row],[Median]])/25)*30) + AAMC_Raw_Data_for_FY22[[#This Row],[Median]]","v":373103.8},{"$f":"(((AAMC_Raw_Data_for_FY22[[#This Row],[75th]]-AAMC_Raw_Data_for_FY22[[#This Row],[Median]])/25)*35) + AAMC_Raw_Data_for_FY22[[#This Row],[Median]]","v":389776.6},{"$f":"(((AAMC_Raw_Data_for_FY22[[#This Row],[75th]]-AAMC_Raw_Data_for_FY22[[#This Row],[Median]])/25)*40) + AAMC_Raw_Data_for_FY22[[#This Row],[Median]]","v":406449.4}]
[{"$f":"AAMC_Raw_Data_for_FY22[[#This Row],[Source]]&AAMC_Raw_Data_for_FY22[[#This Row],[Type]]&AAMC_Raw_Data_for_FY22[[#This Row],[School Subset]]&AAMC_Raw_Data_for_FY22[[#This Row],[Rank]]&AAMC_Raw_Data_for_FY22[[#This Row],[Degree]]&AAMC_Raw_Data_for_FY22[[#This Row],[Department / Specialty]]&\"L\"","v":"AAMCAcademicPublicInstructorPhDAnesthesiology TotalL"},"Anesthesiology Total",5,"AAMC","Academic","Public","Instructor","PhD","2021-2022",68718,{"$f":"(((AAMC_Raw_Data_for_FY22[[#This Row],[Median]]-AAMC_Raw_Data_for_FY22[[#This Row],[25th]])/25)*5) + AAMC_Raw_Data_for_FY22[[#This Row],[25th]]","v":72727.8},{"$f":"(((AAMC_Raw_Data_for_FY22[[#This Row],[Median]]-AAMC_Raw_Data_for_FY22[[#This Row],[25th]])/25)*10) + AAMC_Raw_Data_for_FY22[[#This Row],[25th]]","v":76737.600000000006},{"$f":"(((AAMC_Raw_Data_for_FY22[[#This Row],[Median]]-AAMC_Raw_Data_for_FY22[[#This Row],[25th]])/25)*15) + AAMC_Raw_Data_for_FY22[[#This Row],[25th]]","v":80747.399999999994},{"$f":"(((AAMC_Raw_Data_for_FY22[[#This Row],[Median]]-AAMC_Raw_Data_for_FY22[[#This Row],[25th]])/25)*20) + AAMC_Raw_Data_for_FY22[[#This Row],[25th]]","v":84757.2},88767,{"$f":"(((AAMC_Raw_Data_for_FY22[[#This Row],[75th]]-AAMC_Raw_Data_for_FY22[[#This Row],[Median]])/25)*5) + AAMC_Raw_Data_for_FY22[[#This Row],[Median]]","v":106648},{"$f":"(((AAMC_Raw_Data_for_FY22[[#This Row],[75th]]-AAMC_Raw_Data_for_FY22[[#This Row],[Median]])/25)*10) + AAMC_Raw_Data_for_FY22[[#This Row],[Median]]","v":124529},{"$f":"(((AAMC_Raw_Data_for_FY22[[#This Row],[75th]]-AAMC_Raw_Data_for_FY22[[#This Row],[Median]])/25)*15) + AAMC_Raw_Data_for_FY22[[#This Row],[Median]]","v":142410},{"$f":"(((AAMC_Raw_Data_for_FY22[[#This Row],[75th]]-AAMC_Raw_Data_for_FY22[[#This Row],[Median]])/25)*20) + AAMC_Raw_Data_for_FY22[[#This Row],[Median]]","v":160291},178172,{"$f":"(((AAMC_Raw_Data_for_FY22[[#This Row],[75th]]-AAMC_Raw_Data_for_FY22[[#This Row],[Median]])/25)*30) + AAMC_Raw_Data_for_FY22[[#This Row],[Median]]","v":196053},{"$f":"(((AAMC_Raw_Data_for_FY22[[#This Row],[75th]]-AAMC_Raw_Data_for_FY22[[#This Row],[Median]])/25)*35) + AAMC_Raw_Data_for_FY22[[#This Row],[Median]]","v":213934},{"$f":"(((AAMC_Raw_Data_for_FY22[[#This Row],[75th]]-AAMC_Raw_Data_for_FY22[[#This Row],[Median]])/25)*40) + AAMC_Raw_Data_for_FY22[[#This Row],[Median]]","v":231815}]
[{"$f":"AAMC_Raw_Data_for_FY22[[#This Row],[Source]]&AAMC_Raw_Data_for_FY22[[#This Row],[Type]]&AAMC_Raw_Data_for_FY22[[#This Row],[School Subset]]&AAMC_Raw_Data_for_FY22[[#This Row],[Rank]]&AAMC_Raw_Data_for_FY22[[#This Row],[Degree]]&AAMC_Raw_Data_for_FY22[[#This Row],[Department / Specialty]]&\"L\"","v":"AAMCAcademicPublicAssistantPhDAnesthesiology TotalL"},"Anesthesiology Total",4,"AAMC","Academic","Public","Assistant","PhD","2021-2022",97839,{"$f":"(((AAMC_Raw_Data_for_FY22[[#This Row],[Median]]-AAMC_Raw_Data_for_FY22[[#This Row],[25th]])/25)*5) + AAMC_Raw_Data_for_FY22[[#This Row],[25th]]","v":101003},{"$f":"(((AAMC_Raw_Data_for_FY22[[#This Row],[Median]]-AAMC_Raw_Data_for_FY22[[#This Row],[25th]])/25)*10) + AAMC_Raw_Data_for_FY22[[#This Row],[25th]]","v":104167},{"$f":"(((AAMC_Raw_Data_for_FY22[[#This Row],[Median]]-AAMC_Raw_Data_for_FY22[[#This Row],[25th]])/25)*15) + AAMC_Raw_Data_for_FY22[[#This Row],[25th]]","v":107331},{"$f":"(((AAMC_Raw_Data_for_FY22[[#This Row],[Median]]-AAMC_Raw_Data_for_FY22[[#This Row],[25th]])/25)*20) + AAMC_Raw_Data_for_FY22[[#This Row],[25th]]","v":110495},113659,{"$f":"(((AAMC_Raw_Data_for_FY22[[#This Row],[75th]]-AAMC_Raw_Data_for_FY22[[#This Row],[Median]])/25)*5) + AAMC_Raw_Data_for_FY22[[#This Row],[Median]]","v":116711.8},{"$f":"(((AAMC_Raw_Data_for_FY22[[#This Row],[75th]]-AAMC_Raw_Data_for_FY22[[#This Row],[Median]])/25)*10) + AAMC_Raw_Data_for_FY22[[#This Row],[Median]]","v":119764.6},{"$f":"(((AAMC_Raw_Data_for_FY22[[#This Row],[75th]]-AAMC_Raw_Data_for_FY22[[#This Row],[Median]])/25)*15) + AAMC_Raw_Data_for_FY22[[#This Row],[Median]]","v":122817.4},{"$f":"(((AAMC_Raw_Data_for_FY22[[#This Row],[75th]]-AAMC_Raw_Data_for_FY22[[#This Row],[Median]])/25)*20) + AAMC_Raw_Data_for_FY22[[#This Row],[Median]]","v":125870.2},128923,{"$f":"(((AAMC_Raw_Data_for_FY22[[#This Row],[75th]]-AAMC_Raw_Data_for_FY22[[#This Row],[Median]])/25)*30) + AAMC_Raw_Data_for_FY22[[#This Row],[Median]]","v":131975.79999999999},{"$f":"(((AAMC_Raw_Data_for_FY22[[#This Row],[75th]]-AAMC_Raw_Data_for_FY22[[#This Row],[Median]])/25)*35) + AAMC_Raw_Data_for_FY22[[#This Row],[Median]]","v":135028.6},{"$f":"(((AAMC_Raw_Data_for_FY22[[#This Row],[75th]]-AAMC_Raw_Data_for_FY22[[#This Row],[Median]])/25)*40) + AAMC_Raw_Data_for_FY22[[#This Row],[Median]]","v":138081.4}]
[{"$f":"AAMC_Raw_Data_for_FY22[[#This Row],[Source]]&AAMC_Raw_Data_for_FY22[[#This Row],[Type]]&AAMC_Raw_Data_for_FY22[[#This Row],[School Subset]]&AAMC_Raw_Data_for_FY22[[#This Row],[Rank]]&AAMC_Raw_Data_for_FY22[[#This Row],[Degree]]&AAMC_Raw_Data_for_FY22[[#This Row],[Department / Specialty]]&\"L\"","v":"AAMCAcademicPublicAssociatePhDAnesthesiology TotalL"},"Anesthesiology Total",3,"AAMC","Academic","Public","Associate","PhD","2021-2022",136927,{"$f":"(((AAMC_Raw_Data_for_FY22[[#This Row],[Median]]-AAMC_Raw_Data_for_FY22[[#This Row],[25th]])/25)*5) + AAMC_Raw_Data_for_FY22[[#This Row],[25th]]","v":139561.60000000001},{"$f":"(((AAMC_Raw_Data_for_FY22[[#This Row],[Median]]-AAMC_Raw_Data_for_FY22[[#This Row],[25th]])/25)*10) + AAMC_Raw_Data_for_FY22[[#This Row],[25th]]","v":142196.20000000001},{"$f":"(((AAMC_Raw_Data_for_FY22[[#This Row],[Median]]-AAMC_Raw_Data_for_FY22[[#This Row],[25th]])/25)*15) + AAMC_Raw_Data_for_FY22[[#This Row],[25th]]","v":144830.79999999999},{"$f":"(((AAMC_Raw_Data_for_FY22[[#This Row],[Median]]-AAMC_Raw_Data_for_FY22[[#This Row],[25th]])/25)*20) + AAMC_Raw_Data_for_FY22[[#This Row],[25th]]","v":147465.4},150100,{"$f":"(((AAMC_Raw_Data_for_FY22[[#This Row],[75th]]-AAMC_Raw_Data_for_FY22[[#This Row],[Median]])/25)*5) + AAMC_Raw_Data_for_FY22[[#This Row],[Median]]","v":153089.4},{"$f":"(((AAMC_Raw_Data_for_FY22[[#This Row],[75th]]-AAMC_Raw_Data_for_FY22[[#This Row],[Median]])/25)*10) + AAMC_Raw_Data_for_FY22[[#This Row],[Median]]","v":156078.79999999999},{"$f":"(((AAMC_Raw_Data_for_FY22[[#This Row],[75th]]-AAMC_Raw_Data_for_FY22[[#This Row],[Median]])/25)*15) + AAMC_Raw_Data_for_FY22[[#This Row],[Median]]","v":159068.20000000001},{"$f":"(((AAMC_Raw_Data_for_FY22[[#This Row],[75th]]-AAMC_Raw_Data_for_FY22[[#This Row],[Median]])/25)*20) + AAMC_Raw_Data_for_FY22[[#This Row],[Median]]","v":162057.60000000001},165047,{"$f":"(((AAMC_Raw_Data_for_FY22[[#This Row],[75th]]-AAMC_Raw_Data_for_FY22[[#This Row],[Median]])/25)*30) + AAMC_Raw_Data_for_FY22[[#This Row],[Median]]","v":168036.4},{"$f":"(((AAMC_Raw_Data_for_FY22[[#This Row],[75th]]-AAMC_Raw_Data_for_FY22[[#This Row],[Median]])/25)*35) + AAMC_Raw_Data_for_FY22[[#This Row],[Median]]","v":171025.8},{"$f":"(((AAMC_Raw_Data_for_FY22[[#This Row],[75th]]-AAMC_Raw_Data_for_FY22[[#This Row],[Median]])/25)*40) + AAMC_Raw_Data_for_FY22[[#This Row],[Median]]","v":174015.2}]
[{"$f":"AAMC_Raw_Data_for_FY22[[#This Row],[Source]]&AAMC_Raw_Data_for_FY22[[#This Row],[Type]]&AAMC_Raw_Data_for_FY22[[#This Row],[School Subset]]&AAMC_Raw_Data_for_FY22[[#This Row],[Rank]]&AAMC_Raw_Data_for_FY22[[#This Row],[Degree]]&AAMC_Raw_Data_for_FY22[[#This Row],[Department / Specialty]]&\"L\"","v":"AAMCAcademicPublicProfessorPhDAnesthesiology TotalL"},"Anesthesiology Total",2,"AAMC","Academic","Public","Professor","PhD","2021-2022",196125,{"$f":"(((AAMC_Raw_Data_for_FY22[[#This Row],[Median]]-AAMC_Raw_Data_for_FY22[[#This Row],[25th]])/25)*5) + AAMC_Raw_Data_for_FY22[[#This Row],[25th]]","v":200794.2},{"$f":"(((AAMC_Raw_Data_for_FY22[[#This Row],[Median]]-AAMC_Raw_Data_for_FY22[[#This Row],[25th]])/25)*10) + AAMC_Raw_Data_for_FY22[[#This Row],[25th]]","v":205463.4},{"$f":"(((AAMC_Raw_Data_for_FY22[[#This Row],[Median]]-AAMC_Raw_Data_for_FY22[[#This Row],[25th]])/25)*15) + AAMC_Raw_Data_for_FY22[[#This Row],[25th]]","v":210132.6},{"$f":"(((AAMC_Raw_Data_for_FY22[[#This Row],[Median]]-AAMC_Raw_Data_for_FY22[[#This Row],[25th]])/25)*20) + AAMC_Raw_Data_for_FY22[[#This Row],[25th]]","v":214801.8},219471,{"$f":"(((AAMC_Raw_Data_for_FY22[[#This Row],[75th]]-AAMC_Raw_Data_for_FY22[[#This Row],[Median]])/25)*5) + AAMC_Raw_Data_for_FY22[[#This Row],[Median]]","v":227774.2},{"$f":"(((AAMC_Raw_Data_for_FY22[[#This Row],[75th]]-AAMC_Raw_Data_for_FY22[[#This Row],[Median]])/25)*10) + AAMC_Raw_Data_for_FY22[[#This Row],[Median]]","v":236077.4},{"$f":"(((AAMC_Raw_Data_for_FY22[[#This Row],[75th]]-AAMC_Raw_Data_for_FY22[[#This Row],[Median]])/25)*15) + AAMC_Raw_Data_for_FY22[[#This Row],[Median]]","v":244380.6},{"$f":"(((AAMC_Raw_Data_for_FY22[[#This Row],[75th]]-AAMC_Raw_Data_for_FY22[[#This Row],[Median]])/25)*20) + AAMC_Raw_Data_for_FY22[[#This Row],[Median]]","v":252683.8},260987,{"$f":"(((AAMC_Raw_Data_for_FY22[[#This Row],[75th]]-AAMC_Raw_Data_for_FY22[[#This Row],[Median]])/25)*30) + AAMC_Raw_Data_for_FY22[[#This Row],[Median]]","v":269290.2},{"$f":"(((AAMC_Raw_Data_for_FY22[[#This Row],[75th]]-AAMC_Raw_Data_for_FY22[[#This Row],[Median]])/25)*35) + AAMC_Raw_Data_for_FY22[[#This Row],[Median]]","v":277593.40000000002},{"$f":"(((AAMC_Raw_Data_for_FY22[[#This Row],[75th]]-AAMC_Raw_Data_for_FY22[[#This Row],[Median]])/25)*40) + AAMC_Raw_Data_for_FY22[[#This Row],[Median]]","v":285896.59999999998}]
[{"$f":"AAMC_Raw_Data_for_FY22[[#This Row],[Source]]&AAMC_Raw_Data_for_FY22[[#This Row],[Type]]&AAMC_Raw_Data_for_FY22[[#This Row],[School Subset]]&AAMC_Raw_Data_for_FY22[[#This Row],[Rank]]&AAMC_Raw_Data_for_FY22[[#This Row],[Degree]]&AAMC_Raw_Data_for_FY22[[#This Row],[Department / Specialty]]&\"L\"","v":"AAMCAcademicPublicChiefPhDAnesthesiology TotalL"},"Anesthesiology Total",6,"AAMC","Academic","Public","Chief","PhD","2021-2022",null,{"$f":"(((AAMC_Raw_Data_for_FY22[[#This Row],[Median]]-AAMC_Raw_Data_for_FY22[[#This Row],[25th]])/25)*5) + AAMC_Raw_Data_for_FY22[[#This Row],[25th]]","v":0},{"$f":"(((AAMC_Raw_Data_for_FY22[[#This Row],[Median]]-AAMC_Raw_Data_for_FY22[[#This Row],[25th]])/25)*10) + AAMC_Raw_Data_for_FY22[[#This Row],[25th]]","v":0},{"$f":"(((AAMC_Raw_Data_for_FY22[[#This Row],[Median]]-AAMC_Raw_Data_for_FY22[[#This Row],[25th]])/25)*15) + AAMC_Raw_Data_for_FY22[[#This Row],[25th]]","v":0},{"$f":"(((AAMC_Raw_Data_for_FY22[[#This Row],[Median]]-AAMC_Raw_Data_for_FY22[[#This Row],[25th]])/25)*20) + AAMC_Raw_Data_for_FY22[[#This Row],[25th]]","v":0},null,{"$f":"(((AAMC_Raw_Data_for_FY22[[#This Row],[75th]]-AAMC_Raw_Data_for_FY22[[#This Row],[Median]])/25)*5) + AAMC_Raw_Data_for_FY22[[#This Row],[Median]]","v":0},{"$f":"(((AAMC_Raw_Data_for_FY22[[#This Row],[75th]]-AAMC_Raw_Data_for_FY22[[#This Row],[Median]])/25)*10) + AAMC_Raw_Data_for_FY22[[#This Row],[Median]]","v":0},{"$f":"(((AAMC_Raw_Data_for_FY22[[#This Row],[75th]]-AAMC_Raw_Data_for_FY22[[#This Row],[Median]])/25)*15) + AAMC_Raw_Data_for_FY22[[#This Row],[Median]]","v":0},{"$f":"(((AAMC_Raw_Data_for_FY22[[#This Row],[75th]]-AAMC_Raw_Data_for_FY22[[#This Row],[Median]])/25)*20) + AAMC_Raw_Data_for_FY22[[#This Row],[Median]]","v":0},null,{"$f":"(((AAMC_Raw_Data_for_FY22[[#This Row],[75th]]-AAMC_Raw_Data_for_FY22[[#This Row],[Median]])/25)*30) + AAMC_Raw_Data_for_FY22[[#This Row],[Median]]","v":0},{"$f":"(((AAMC_Raw_Data_for_FY22[[#This Row],[75th]]-AAMC_Raw_Data_for_FY22[[#This Row],[Median]])/25)*35) + AAMC_Raw_Data_for_FY22[[#This Row],[Median]]","v":0},{"$f":"(((AAMC_Raw_Data_for_FY22[[#This Row],[75th]]-AAMC_Raw_Data_for_FY22[[#This Row],[Median]])/25)*40) + AAMC_Raw_Data_for_FY22[[#This Row],[Median]]","v":0}]
[{"$f":"AAMC_Raw_Data_for_FY22[[#This Row],[Source]]&AAMC_Raw_Data_for_FY22[[#This Row],[Type]]&AAMC_Raw_Data_for_FY22[[#This Row],[School Subset]]&AAMC_Raw_Data_for_FY22[[#This Row],[Rank]]&AAMC_Raw_Data_for_FY22[[#This Row],[Degree]]&AAMC_Raw_Data_for_FY22[[#This Row],[Department / Specialty]]&\"L\"","v":"AAMCAcademicPublicInstructorPhDAnesthesiology: GeneralL"},"Anesthesiology: General",5,"AAMC","Academic","Public","Instructor","PhD","2021-2022",68291,{"$f":"(((AAMC_Raw_Data_for_FY22[[#This Row],[Median]]-AAMC_Raw_Data_for_FY22[[#This Row],[25th]])/25)*5) + AAMC_Raw_Data_for_FY22[[#This Row],[25th]]","v":70864},{"$f":"(((AAMC_Raw_Data_for_FY22[[#This Row],[Median]]-AAMC_Raw_Data_for_FY22[[#This Row],[25th]])/25)*10) + AAMC_Raw_Data_for_FY22[[#This Row],[25th]]","v":73437},{"$f":"(((AAMC_Raw_Data_for_FY22[[#This Row],[Median]]-AAMC_Raw_Data_for_FY22[[#This Row],[25th]])/25)*15) + AAMC_Raw_Data_for_FY22[[#This Row],[25th]]","v":76010},{"$f":"(((AAMC_Raw_Data_for_FY22[[#This Row],[Median]]-AAMC_Raw_Data_for_FY22[[#This Row],[25th]])/25)*20) + AAMC_Raw_Data_for_FY22[[#This Row],[25th]]","v":78583},81156,{"$f":"(((AAMC_Raw_Data_for_FY22[[#This Row],[75th]]-AAMC_Raw_Data_for_FY22[[#This Row],[Median]])/25)*5) + AAMC_Raw_Data_for_FY22[[#This Row],[Median]]","v":101233.60000000001},{"$f":"(((AAMC_Raw_Data_for_FY22[[#This Row],[75th]]-AAMC_Raw_Data_for_FY22[[#This Row],[Median]])/25)*10) + AAMC_Raw_Data_for_FY22[[#This Row],[Median]]","v":121311.2},{"$f":"(((AAMC_Raw_Data_for_FY22[[#This Row],[75th]]-AAMC_Raw_Data_for_FY22[[#This Row],[Median]])/25)*15) + AAMC_Raw_Data_for_FY22[[#This Row],[Median]]","v":141388.79999999999},{"$f":"(((AAMC_Raw_Data_for_FY22[[#This Row],[75th]]-AAMC_Raw_Data_for_FY22[[#This Row],[Median]])/25)*20) + AAMC_Raw_Data_for_FY22[[#This Row],[Median]]","v":161466.4},181544,{"$f":"(((AAMC_Raw_Data_for_FY22[[#This Row],[75th]]-AAMC_Raw_Data_for_FY22[[#This Row],[Median]])/25)*30) + AAMC_Raw_Data_for_FY22[[#This Row],[Median]]","v":201621.6},{"$f":"(((AAMC_Raw_Data_for_FY22[[#This Row],[75th]]-AAMC_Raw_Data_for_FY22[[#This Row],[Median]])/25)*35) + AAMC_Raw_Data_for_FY22[[#This Row],[Median]]","v":221699.20000000001},{"$f":"(((AAMC_Raw_Data_for_FY22[[#This Row],[75th]]-AAMC_Raw_Data_for_FY22[[#This Row],[Median]])/25)*40) + AAMC_Raw_Data_for_FY22[[#This Row],[Median]]","v":241776.8}]
[{"$f":"AAMC_Raw_Data_for_FY22[[#This Row],[Source]]&AAMC_Raw_Data_for_FY22[[#This Row],[Type]]&AAMC_Raw_Data_for_FY22[[#This Row],[School Subset]]&AAMC_Raw_Data_for_FY22[[#This Row],[Rank]]&AAMC_Raw_Data_for_FY22[[#This Row],[Degree]]&AAMC_Raw_Data_for_FY22[[#This Row],[Department / Specialty]]&\"L\"","v":"AAMCAcademicPublicAssistantPhDAnesthesiology: GeneralL"},"Anesthesiology: General",4,"AAMC","Academic","Public","Assistant","PhD","2021-2022",96844,{"$f":"(((AAMC_Raw_Data_for_FY22[[#This Row],[Median]]-AAMC_Raw_Data_for_FY22[[#This Row],[25th]])/25)*5) + AAMC_Raw_Data_for_FY22[[#This Row],[25th]]","v":99771.6},{"$f":"(((AAMC_Raw_Data_for_FY22[[#This Row],[Median]]-AAMC_Raw_Data_for_FY22[[#This Row],[25th]])/25)*10) + AAMC_Raw_Data_for_FY22[[#This Row],[25th]]","v":102699.2},{"$f":"(((AAMC_Raw_Data_for_FY22[[#This Row],[Median]]-AAMC_Raw_Data_for_FY22[[#This Row],[25th]])/25)*15) + AAMC_Raw_Data_for_FY22[[#This Row],[25th]]","v":105626.8},{"$f":"(((AAMC_Raw_Data_for_FY22[[#This Row],[Median]]-AAMC_Raw_Data_for_FY22[[#This Row],[25th]])/25)*20) + AAMC_Raw_Data_for_FY22[[#This Row],[25th]]","v":108554.4},111482,{"$f":"(((AAMC_Raw_Data_for_FY22[[#This Row],[75th]]-AAMC_Raw_Data_for_FY22[[#This Row],[Median]])/25)*5) + AAMC_Raw_Data_for_FY22[[#This Row],[Median]]","v":115675.6},{"$f":"(((AAMC_Raw_Data_for_FY22[[#This Row],[75th]]-AAMC_Raw_Data_for_FY22[[#This Row],[Median]])/25)*10) + AAMC_Raw_Data_for_FY22[[#This Row],[Median]]","v":119869.2},{"$f":"(((AAMC_Raw_Data_for_FY22[[#This Row],[75th]]-AAMC_Raw_Data_for_FY22[[#This Row],[Median]])/25)*15) + AAMC_Raw_Data_for_FY22[[#This Row],[Median]]","v":124062.8},{"$f":"(((AAMC_Raw_Data_for_FY22[[#This Row],[75th]]-AAMC_Raw_Data_for_FY22[[#This Row],[Median]])/25)*20) + AAMC_Raw_Data_for_FY22[[#This Row],[Median]]","v":128256.4},132450,{"$f":"(((AAMC_Raw_Data_for_FY22[[#This Row],[75th]]-AAMC_Raw_Data_for_FY22[[#This Row],[Median]])/25)*30) + AAMC_Raw_Data_for_FY22[[#This Row],[Median]]","v":136643.6},{"$f":"(((AAMC_Raw_Data_for_FY22[[#This Row],[75th]]-AAMC_Raw_Data_for_FY22[[#This Row],[Median]])/25)*35) + AAMC_Raw_Data_for_FY22[[#This Row],[Median]]","v":140837.20000000001},{"$f":"(((AAMC_Raw_Data_for_FY22[[#This Row],[75th]]-AAMC_Raw_Data_for_FY22[[#This Row],[Median]])/25)*40) + AAMC_Raw_Data_for_FY22[[#This Row],[Median]]","v":145030.79999999999}]
[{"$f":"AAMC_Raw_Data_for_FY22[[#This Row],[Source]]&AAMC_Raw_Data_for_FY22[[#This Row],[Type]]&AAMC_Raw_Data_for_FY22[[#This Row],[School Subset]]&AAMC_Raw_Data_for_FY22[[#This Row],[Rank]]&AAMC_Raw_Data_for_FY22[[#This Row],[Degree]]&AAMC_Raw_Data_for_FY22[[#This Row],[Department / Specialty]]&\"L\"","v":"AAMCAcademicPublicAssociatePhDAnesthesiology: GeneralL"},"Anesthesiology: General",3,"AAMC","Academic","Public","Associate","PhD","2021-2022",136160,{"$f":"(((AAMC_Raw_Data_for_FY22[[#This Row],[Median]]-AAMC_Raw_Data_for_FY22[[#This Row],[25th]])/25)*5) + AAMC_Raw_Data_for_FY22[[#This Row],[25th]]","v":138675.79999999999},{"$f":"(((AAMC_Raw_Data_for_FY22[[#This Row],[Median]]-AAMC_Raw_Data_for_FY22[[#This Row],[25th]])/25)*10) + AAMC_Raw_Data_for_FY22[[#This Row],[25th]]","v":141191.6},{"$f":"(((AAMC_Raw_Data_for_FY22[[#This Row],[Median]]-AAMC_Raw_Data_for_FY22[[#This Row],[25th]])/25)*15) + AAMC_Raw_Data_for_FY22[[#This Row],[25th]]","v":143707.4},{"$f":"(((AAMC_Raw_Data_for_FY22[[#This Row],[Median]]-AAMC_Raw_Data_for_FY22[[#This Row],[25th]])/25)*20) + AAMC_Raw_Data_for_FY22[[#This Row],[25th]]","v":146223.20000000001},148739,{"$f":"(((AAMC_Raw_Data_for_FY22[[#This Row],[75th]]-AAMC_Raw_Data_for_FY22[[#This Row],[Median]])/25)*5) + AAMC_Raw_Data_for_FY22[[#This Row],[Median]]","v":151896.20000000001},{"$f":"(((AAMC_Raw_Data_for_FY22[[#This Row],[75th]]-AAMC_Raw_Data_for_FY22[[#This Row],[Median]])/25)*10) + AAMC_Raw_Data_for_FY22[[#This Row],[Median]]","v":155053.4},{"$f":"(((AAMC_Raw_Data_for_FY22[[#This Row],[75th]]-AAMC_Raw_Data_for_FY22[[#This Row],[Median]])/25)*15) + AAMC_Raw_Data_for_FY22[[#This Row],[Median]]","v":158210.6},{"$f":"(((AAMC_Raw_Data_for_FY22[[#This Row],[75th]]-AAMC_Raw_Data_for_FY22[[#This Row],[Median]])/25)*20) + AAMC_Raw_Data_for_FY22[[#This Row],[Median]]","v":161367.79999999999},164525,{"$f":"(((AAMC_Raw_Data_for_FY22[[#This Row],[75th]]-AAMC_Raw_Data_for_FY22[[#This Row],[Median]])/25)*30) + AAMC_Raw_Data_for_FY22[[#This Row],[Median]]","v":167682.20000000001},{"$f":"(((AAMC_Raw_Data_for_FY22[[#This Row],[75th]]-AAMC_Raw_Data_for_FY22[[#This Row],[Median]])/25)*35) + AAMC_Raw_Data_for_FY22[[#This Row],[Median]]","v":170839.4},{"$f":"(((AAMC_Raw_Data_for_FY22[[#This Row],[75th]]-AAMC_Raw_Data_for_FY22[[#This Row],[Median]])/25)*40) + AAMC_Raw_Data_for_FY22[[#This Row],[Median]]","v":173996.6}]
[{"$f":"AAMC_Raw_Data_for_FY22[[#This Row],[Source]]&AAMC_Raw_Data_for_FY22[[#This Row],[Type]]&AAMC_Raw_Data_for_FY22[[#This Row],[School Subset]]&AAMC_Raw_Data_for_FY22[[#This Row],[Rank]]&AAMC_Raw_Data_for_FY22[[#This Row],[Degree]]&AAMC_Raw_Data_for_FY22[[#This Row],[Department / Specialty]]&\"L\"","v":"AAMCAcademicPublicProfessorPhDAnesthesiology: GeneralL"},"Anesthesiology: General",2,"AAMC","Academic","Public","Professor","PhD","2021-2022",196452,{"$f":"(((AAMC_Raw_Data_for_FY22[[#This Row],[Median]]-AAMC_Raw_Data_for_FY22[[#This Row],[25th]])/25)*5) + AAMC_Raw_Data_for_FY22[[#This Row],[25th]]","v":201055.8},{"$f":"(((AAMC_Raw_Data_for_FY22[[#This Row],[Median]]-AAMC_Raw_Data_for_FY22[[#This Row],[25th]])/25)*10) + AAMC_Raw_Data_for_FY22[[#This Row],[25th]]","v":205659.6},{"$f":"(((AAMC_Raw_Data_for_FY22[[#This Row],[Median]]-AAMC_Raw_Data_for_FY22[[#This Row],[25th]])/25)*15) + AAMC_Raw_Data_for_FY22[[#This Row],[25th]]","v":210263.4},{"$f":"(((AAMC_Raw_Data_for_FY22[[#This Row],[Median]]-AAMC_Raw_Data_for_FY22[[#This Row],[25th]])/25)*20) + AAMC_Raw_Data_for_FY22[[#This Row],[25th]]","v":214867.20000000001},219471,{"$f":"(((AAMC_Raw_Data_for_FY22[[#This Row],[75th]]-AAMC_Raw_Data_for_FY22[[#This Row],[Median]])/25)*5) + AAMC_Raw_Data_for_FY22[[#This Row],[Median]]","v":229401.8},{"$f":"(((AAMC_Raw_Data_for_FY22[[#This Row],[75th]]-AAMC_Raw_Data_for_FY22[[#This Row],[Median]])/25)*10) + AAMC_Raw_Data_for_FY22[[#This Row],[Median]]","v":239332.6},{"$f":"(((AAMC_Raw_Data_for_FY22[[#This Row],[75th]]-AAMC_Raw_Data_for_FY22[[#This Row],[Median]])/25)*15) + AAMC_Raw_Data_for_FY22[[#This Row],[Median]]","v":249263.4},{"$f":"(((AAMC_Raw_Data_for_FY22[[#This Row],[75th]]-AAMC_Raw_Data_for_FY22[[#This Row],[Median]])/25)*20) + AAMC_Raw_Data_for_FY22[[#This Row],[Median]]","v":259194.2},269125,{"$f":"(((AAMC_Raw_Data_for_FY22[[#This Row],[75th]]-AAMC_Raw_Data_for_FY22[[#This Row],[Median]])/25)*30) + AAMC_Raw_Data_for_FY22[[#This Row],[Median]]","v":279055.8},{"$f":"(((AAMC_Raw_Data_for_FY22[[#This Row],[75th]]-AAMC_Raw_Data_for_FY22[[#This Row],[Median]])/25)*35) + AAMC_Raw_Data_for_FY22[[#This Row],[Median]]","v":288986.59999999998},{"$f":"(((AAMC_Raw_Data_for_FY22[[#This Row],[75th]]-AAMC_Raw_Data_for_FY22[[#This Row],[Median]])/25)*40) + AAMC_Raw_Data_for_FY22[[#This Row],[Median]]","v":298917.40000000002}]
[{"$f":"AAMC_Raw_Data_for_FY22[[#This Row],[Source]]&AAMC_Raw_Data_for_FY22[[#This Row],[Type]]&AAMC_Raw_Data_for_FY22[[#This Row],[School Subset]]&AAMC_Raw_Data_for_FY22[[#This Row],[Rank]]&AAMC_Raw_Data_for_FY22[[#This Row],[Degree]]&AAMC_Raw_Data_for_FY22[[#This Row],[Department / Specialty]]&\"L\"","v":"AAMCAcademicPublicChiefPhDAnesthesiology: GeneralL"},"Anesthesiology: General",6,"AAMC","Academic","Public","Chief","PhD","2021-2022",null,{"$f":"(((AAMC_Raw_Data_for_FY22[[#This Row],[Median]]-AAMC_Raw_Data_for_FY22[[#This Row],[25th]])/25)*5) + AAMC_Raw_Data_for_FY22[[#This Row],[25th]]","v":0},{"$f":"(((AAMC_Raw_Data_for_FY22[[#This Row],[Median]]-AAMC_Raw_Data_for_FY22[[#This Row],[25th]])/25)*10) + AAMC_Raw_Data_for_FY22[[#This Row],[25th]]","v":0},{"$f":"(((AAMC_Raw_Data_for_FY22[[#This Row],[Median]]-AAMC_Raw_Data_for_FY22[[#This Row],[25th]])/25)*15) + AAMC_Raw_Data_for_FY22[[#This Row],[25th]]","v":0},{"$f":"(((AAMC_Raw_Data_for_FY22[[#This Row],[Median]]-AAMC_Raw_Data_for_FY22[[#This Row],[25th]])/25)*20) + AAMC_Raw_Data_for_FY22[[#This Row],[25th]]","v":0},null,{"$f":"(((AAMC_Raw_Data_for_FY22[[#This Row],[75th]]-AAMC_Raw_Data_for_FY22[[#This Row],[Median]])/25)*5) + AAMC_Raw_Data_for_FY22[[#This Row],[Median]]","v":0},{"$f":"(((AAMC_Raw_Data_for_FY22[[#This Row],[75th]]-AAMC_Raw_Data_for_FY22[[#This Row],[Median]])/25)*10) + AAMC_Raw_Data_for_FY22[[#This Row],[Median]]","v":0},{"$f":"(((AAMC_Raw_Data_for_FY22[[#This Row],[75th]]-AAMC_Raw_Data_for_FY22[[#This Row],[Median]])/25)*15) + AAMC_Raw_Data_for_FY22[[#This Row],[Median]]","v":0},{"$f":"(((AAMC_Raw_Data_for_FY22[[#This Row],[75th]]-AAMC_Raw_Data_for_FY22[[#This Row],[Median]])/25)*20) + AAMC_Raw_Data_for_FY22[[#This Row],[Median]]","v":0},null,{"$f":"(((AAMC_Raw_Data_for_FY22[[#This Row],[75th]]-AAMC_Raw_Data_for_FY22[[#This Row],[Median]])/25)*30) + AAMC_Raw_Data_for_FY22[[#This Row],[Median]]","v":0},{"$f":"(((AAMC_Raw_Data_for_FY22[[#This Row],[75th]]-AAMC_Raw_Data_for_FY22[[#This Row],[Median]])/25)*35) + AAMC_Raw_Data_for_FY22[[#This Row],[Median]]","v":0},{"$f":"(((AAMC_Raw_Data_for_FY22[[#This Row],[75th]]-AAMC_Raw_Data_for_FY22[[#This Row],[Median]])/25)*40) + AAMC_Raw_Data_for_FY22[[#This Row],[Median]]","v":0}]
[{"$f":"AAMC_Raw_Data_for_FY22[[#This Row],[Source]]&AAMC_Raw_Data_for_FY22[[#This Row],[Type]]&AAMC_Raw_Data_for_FY22[[#This Row],[School Subset]]&AAMC_Raw_Data_for_FY22[[#This Row],[Rank]]&AAMC_Raw_Data_for_FY22[[#This Row],[Degree]]&AAMC_Raw_Data_for_FY22[[#This Row],[Department / Specialty]]&\"L\"","v":"AAMCAcademicPublicInstructorPhDAnesthesiology: Pain ManagementL"},"Anesthesiology: Pain Management",5,"AAMC","Academic","Public","Instructor","PhD","2021-2022",null,{"$f":"(((AAMC_Raw_Data_for_FY22[[#This Row],[Median]]-AAMC_Raw_Data_for_FY22[[#This Row],[25th]])/25)*5) + AAMC_Raw_Data_for_FY22[[#This Row],[25th]]","v":0},{"$f":"(((AAMC_Raw_Data_for_FY22[[#This Row],[Median]]-AAMC_Raw_Data_for_FY22[[#This Row],[25th]])/25)*10) + AAMC_Raw_Data_for_FY22[[#This Row],[25th]]","v":0},{"$f":"(((AAMC_Raw_Data_for_FY22[[#This Row],[Median]]-AAMC_Raw_Data_for_FY22[[#This Row],[25th]])/25)*15) + AAMC_Raw_Data_for_FY22[[#This Row],[25th]]","v":0},{"$f":"(((AAMC_Raw_Data_for_FY22[[#This Row],[Median]]-AAMC_Raw_Data_for_FY22[[#This Row],[25th]])/25)*20) + AAMC_Raw_Data_for_FY22[[#This Row],[25th]]","v":0},null,{"$f":"(((AAMC_Raw_Data_for_FY22[[#This Row],[75th]]-AAMC_Raw_Data_for_FY22[[#This Row],[Median]])/25)*5) + AAMC_Raw_Data_for_FY22[[#This Row],[Median]]","v":0},{"$f":"(((AAMC_Raw_Data_for_FY22[[#This Row],[75th]]-AAMC_Raw_Data_for_FY22[[#This Row],[Median]])/25)*10) + AAMC_Raw_Data_for_FY22[[#This Row],[Median]]","v":0},{"$f":"(((AAMC_Raw_Data_for_FY22[[#This Row],[75th]]-AAMC_Raw_Data_for_FY22[[#This Row],[Median]])/25)*15) + AAMC_Raw_Data_for_FY22[[#This Row],[Median]]","v":0},{"$f":"(((AAMC_Raw_Data_for_FY22[[#This Row],[75th]]-AAMC_Raw_Data_for_FY22[[#This Row],[Median]])/25)*20) + AAMC_Raw_Data_for_FY22[[#This Row],[Median]]","v":0},null,{"$f":"(((AAMC_Raw_Data_for_FY22[[#This Row],[75th]]-AAMC_Raw_Data_for_FY22[[#This Row],[Median]])/25)*30) + AAMC_Raw_Data_for_FY22[[#This Row],[Median]]","v":0},{"$f":"(((AAMC_Raw_Data_for_FY22[[#This Row],[75th]]-AAMC_Raw_Data_for_FY22[[#This Row],[Median]])/25)*35) + AAMC_Raw_Data_for_FY22[[#This Row],[Median]]","v":0},{"$f":"(((AAMC_Raw_Data_for_FY22[[#This Row],[75th]]-AAMC_Raw_Data_for_FY22[[#This Row],[Median]])/25)*40) + AAMC_Raw_Data_for_FY22[[#This Row],[Median]]","v":0}]
[{"$f":"AAMC_Raw_Data_for_FY22[[#This Row],[Source]]&AAMC_Raw_Data_for_FY22[[#This Row],[Type]]&AAMC_Raw_Data_for_FY22[[#This Row],[School Subset]]&AAMC_Raw_Data_for_FY22[[#This Row],[Rank]]&AAMC_Raw_Data_for_FY22[[#This Row],[Degree]]&AAMC_Raw_Data_for_FY22[[#This Row],[Department / Specialty]]&\"L\"","v":"AAMCAcademicPublicAssistantPhDAnesthesiology: Pain ManagementL"},"Anesthesiology: Pain Management",4,"AAMC","Academic","Public","Assistant","PhD","2021-2022",null,{"$f":"(((AAMC_Raw_Data_for_FY22[[#This Row],[Median]]-AAMC_Raw_Data_for_FY22[[#This Row],[25th]])/25)*5) + AAMC_Raw_Data_for_FY22[[#This Row],[25th]]","v":0},{"$f":"(((AAMC_Raw_Data_for_FY22[[#This Row],[Median]]-AAMC_Raw_Data_for_FY22[[#This Row],[25th]])/25)*10) + AAMC_Raw_Data_for_FY22[[#This Row],[25th]]","v":0},{"$f":"(((AAMC_Raw_Data_for_FY22[[#This Row],[Median]]-AAMC_Raw_Data_for_FY22[[#This Row],[25th]])/25)*15) + AAMC_Raw_Data_for_FY22[[#This Row],[25th]]","v":0},{"$f":"(((AAMC_Raw_Data_for_FY22[[#This Row],[Median]]-AAMC_Raw_Data_for_FY22[[#This Row],[25th]])/25)*20) + AAMC_Raw_Data_for_FY22[[#This Row],[25th]]","v":0},null,{"$f":"(((AAMC_Raw_Data_for_FY22[[#This Row],[75th]]-AAMC_Raw_Data_for_FY22[[#This Row],[Median]])/25)*5) + AAMC_Raw_Data_for_FY22[[#This Row],[Median]]","v":0},{"$f":"(((AAMC_Raw_Data_for_FY22[[#This Row],[75th]]-AAMC_Raw_Data_for_FY22[[#This Row],[Median]])/25)*10) + AAMC_Raw_Data_for_FY22[[#This Row],[Median]]","v":0},{"$f":"(((AAMC_Raw_Data_for_FY22[[#This Row],[75th]]-AAMC_Raw_Data_for_FY22[[#This Row],[Median]])/25)*15) + AAMC_Raw_Data_for_FY22[[#This Row],[Median]]","v":0},{"$f":"(((AAMC_Raw_Data_for_FY22[[#This Row],[75th]]-AAMC_Raw_Data_for_FY22[[#This Row],[Median]])/25)*20) + AAMC_Raw_Data_for_FY22[[#This Row],[Median]]","v":0},null,{"$f":"(((AAMC_Raw_Data_for_FY22[[#This Row],[75th]]-AAMC_Raw_Data_for_FY22[[#This Row],[Median]])/25)*30) + AAMC_Raw_Data_for_FY22[[#This Row],[Median]]","v":0},{"$f":"(((AAMC_Raw_Data_for_FY22[[#This Row],[75th]]-AAMC_Raw_Data_for_FY22[[#This Row],[Median]])/25)*35) + AAMC_Raw_Data_for_FY22[[#This Row],[Median]]","v":0},{"$f":"(((AAMC_Raw_Data_for_FY22[[#This Row],[75th]]-AAMC_Raw_Data_for_FY22[[#This Row],[Median]])/25)*40) + AAMC_Raw_Data_for_FY22[[#This Row],[Median]]","v":0}]
[{"$f":"AAMC_Raw_Data_for_FY22[[#This Row],[Source]]&AAMC_Raw_Data_for_FY22[[#This Row],[Type]]&AAMC_Raw_Data_for_FY22[[#This Row],[School Subset]]&AAMC_Raw_Data_for_FY22[[#This Row],[Rank]]&AAMC_Raw_Data_for_FY22[[#This Row],[Degree]]&AAMC_Raw_Data_for_FY22[[#This Row],[Department / Specialty]]&\"L\"","v":"AAMCAcademicPublicAssociatePhDAnesthesiology: Pain ManagementL"},"Anesthesiology: Pain Management",3,"AAMC","Academic","Public","Associate","PhD","2021-2022",null,{"$f":"(((AAMC_Raw_Data_for_FY22[[#This Row],[Median]]-AAMC_Raw_Data_for_FY22[[#This Row],[25th]])/25)*5) + AAMC_Raw_Data_for_FY22[[#This Row],[25th]]","v":0},{"$f":"(((AAMC_Raw_Data_for_FY22[[#This Row],[Median]]-AAMC_Raw_Data_for_FY22[[#This Row],[25th]])/25)*10) + AAMC_Raw_Data_for_FY22[[#This Row],[25th]]","v":0},{"$f":"(((AAMC_Raw_Data_for_FY22[[#This Row],[Median]]-AAMC_Raw_Data_for_FY22[[#This Row],[25th]])/25)*15) + AAMC_Raw_Data_for_FY22[[#This Row],[25th]]","v":0},{"$f":"(((AAMC_Raw_Data_for_FY22[[#This Row],[Median]]-AAMC_Raw_Data_for_FY22[[#This Row],[25th]])/25)*20) + AAMC_Raw_Data_for_FY22[[#This Row],[25th]]","v":0},null,{"$f":"(((AAMC_Raw_Data_for_FY22[[#This Row],[75th]]-AAMC_Raw_Data_for_FY22[[#This Row],[Median]])/25)*5) + AAMC_Raw_Data_for_FY22[[#This Row],[Median]]","v":0},{"$f":"(((AAMC_Raw_Data_for_FY22[[#This Row],[75th]]-AAMC_Raw_Data_for_FY22[[#This Row],[Median]])/25)*10) + AAMC_Raw_Data_for_FY22[[#This Row],[Median]]","v":0},{"$f":"(((AAMC_Raw_Data_for_FY22[[#This Row],[75th]]-AAMC_Raw_Data_for_FY22[[#This Row],[Median]])/25)*15) + AAMC_Raw_Data_for_FY22[[#This Row],[Median]]","v":0},{"$f":"(((AAMC_Raw_Data_for_FY22[[#This Row],[75th]]-AAMC_Raw_Data_for_FY22[[#This Row],[Median]])/25)*20) + AAMC_Raw_Data_for_FY22[[#This Row],[Median]]","v":0},null,{"$f":"(((AAMC_Raw_Data_for_FY22[[#This Row],[75th]]-AAMC_Raw_Data_for_FY22[[#This Row],[Median]])/25)*30) + AAMC_Raw_Data_for_FY22[[#This Row],[Median]]","v":0},{"$f":"(((AAMC_Raw_Data_for_FY22[[#This Row],[75th]]-AAMC_Raw_Data_for_FY22[[#This Row],[Median]])/25)*35) + AAMC_Raw_Data_for_FY22[[#This Row],[Median]]","v":0},{"$f":"(((AAMC_Raw_Data_for_FY22[[#This Row],[75th]]-AAMC_Raw_Data_for_FY22[[#This Row],[Median]])/25)*40) + AAMC_Raw_Data_for_FY22[[#This Row],[Median]]","v":0}]
[{"$f":"AAMC_Raw_Data_for_FY22[[#This Row],[Source]]&AAMC_Raw_Data_for_FY22[[#This Row],[Type]]&AAMC_Raw_Data_for_FY22[[#This Row],[School Subset]]&AAMC_Raw_Data_for_FY22[[#This Row],[Rank]]&AAMC_Raw_Data_for_FY22[[#This Row],[Degree]]&AAMC_Raw_Data_for_FY22[[#This Row],[Department / Specialty]]&\"L\"","v":"AAMCAcademicPublicProfessorPhDAnesthesiology: Pain ManagementL"},"Anesthesiology: Pain Management",2,"AAMC","Academic","Public","Professor","PhD","2021-2022",null,{"$f":"(((AAMC_Raw_Data_for_FY22[[#This Row],[Median]]-AAMC_Raw_Data_for_FY22[[#This Row],[25th]])/25)*5) + AAMC_Raw_Data_for_FY22[[#This Row],[25th]]","v":0},{"$f":"(((AAMC_Raw_Data_for_FY22[[#This Row],[Median]]-AAMC_Raw_Data_for_FY22[[#This Row],[25th]])/25)*10) + AAMC_Raw_Data_for_FY22[[#This Row],[25th]]","v":0},{"$f":"(((AAMC_Raw_Data_for_FY22[[#This Row],[Median]]-AAMC_Raw_Data_for_FY22[[#This Row],[25th]])/25)*15) + AAMC_Raw_Data_for_FY22[[#This Row],[25th]]","v":0},{"$f":"(((AAMC_Raw_Data_for_FY22[[#This Row],[Median]]-AAMC_Raw_Data_for_FY22[[#This Row],[25th]])/25)*20) + AAMC_Raw_Data_for_FY22[[#This Row],[25th]]","v":0},null,{"$f":"(((AAMC_Raw_Data_for_FY22[[#This Row],[75th]]-AAMC_Raw_Data_for_FY22[[#This Row],[Median]])/25)*5) + AAMC_Raw_Data_for_FY22[[#This Row],[Median]]","v":0},{"$f":"(((AAMC_Raw_Data_for_FY22[[#This Row],[75th]]-AAMC_Raw_Data_for_FY22[[#This Row],[Median]])/25)*10) + AAMC_Raw_Data_for_FY22[[#This Row],[Median]]","v":0},{"$f":"(((AAMC_Raw_Data_for_FY22[[#This Row],[75th]]-AAMC_Raw_Data_for_FY22[[#This Row],[Median]])/25)*15) + AAMC_Raw_Data_for_FY22[[#This Row],[Median]]","v":0},{"$f":"(((AAMC_Raw_Data_for_FY22[[#This Row],[75th]]-AAMC_Raw_Data_for_FY22[[#This Row],[Median]])/25)*20) + AAMC_Raw_Data_for_FY22[[#This Row],[Median]]","v":0},null,{"$f":"(((AAMC_Raw_Data_for_FY22[[#This Row],[75th]]-AAMC_Raw_Data_for_FY22[[#This Row],[Median]])/25)*30) + AAMC_Raw_Data_for_FY22[[#This Row],[Median]]","v":0},{"$f":"(((AAMC_Raw_Data_for_FY22[[#This Row],[75th]]-AAMC_Raw_Data_for_FY22[[#This Row],[Median]])/25)*35) + AAMC_Raw_Data_for_FY22[[#This Row],[Median]]","v":0},{"$f":"(((AAMC_Raw_Data_for_FY22[[#This Row],[75th]]-AAMC_Raw_Data_for_FY22[[#This Row],[Median]])/25)*40) + AAMC_Raw_Data_for_FY22[[#This Row],[Median]]","v":0}]
[{"$f":"AAMC_Raw_Data_for_FY22[[#This Row],[Source]]&AAMC_Raw_Data_for_FY22[[#This Row],[Type]]&AAMC_Raw_Data_for_FY22[[#This Row],[School Subset]]&AAMC_Raw_Data_for_FY22[[#This Row],[Rank]]&AAMC_Raw_Data_for_FY22[[#This Row],[Degree]]&AAMC_Raw_Data_for_FY22[[#This Row],[Department / Specialty]]&\"L\"","v":"AAMCAcademicPublicInstructorPhDDermatology TotalL"},"Dermatology Total",5,"AAMC","Academic","Public","Instructor","PhD","2021-2022",null,{"$f":"(((AAMC_Raw_Data_for_FY22[[#This Row],[Median]]-AAMC_Raw_Data_for_FY22[[#This Row],[25th]])/25)*5) + AAMC_Raw_Data_for_FY22[[#This Row],[25th]]","v":0},{"$f":"(((AAMC_Raw_Data_for_FY22[[#This Row],[Median]]-AAMC_Raw_Data_for_FY22[[#This Row],[25th]])/25)*10) + AAMC_Raw_Data_for_FY22[[#This Row],[25th]]","v":0},{"$f":"(((AAMC_Raw_Data_for_FY22[[#This Row],[Median]]-AAMC_Raw_Data_for_FY22[[#This Row],[25th]])/25)*15) + AAMC_Raw_Data_for_FY22[[#This Row],[25th]]","v":0},{"$f":"(((AAMC_Raw_Data_for_FY22[[#This Row],[Median]]-AAMC_Raw_Data_for_FY22[[#This Row],[25th]])/25)*20) + AAMC_Raw_Data_for_FY22[[#This Row],[25th]]","v":0},null,{"$f":"(((AAMC_Raw_Data_for_FY22[[#This Row],[75th]]-AAMC_Raw_Data_for_FY22[[#This Row],[Median]])/25)*5) + AAMC_Raw_Data_for_FY22[[#This Row],[Median]]","v":0},{"$f":"(((AAMC_Raw_Data_for_FY22[[#This Row],[75th]]-AAMC_Raw_Data_for_FY22[[#This Row],[Median]])/25)*10) + AAMC_Raw_Data_for_FY22[[#This Row],[Median]]","v":0},{"$f":"(((AAMC_Raw_Data_for_FY22[[#This Row],[75th]]-AAMC_Raw_Data_for_FY22[[#This Row],[Median]])/25)*15) + AAMC_Raw_Data_for_FY22[[#This Row],[Median]]","v":0},{"$f":"(((AAMC_Raw_Data_for_FY22[[#This Row],[75th]]-AAMC_Raw_Data_for_FY22[[#This Row],[Median]])/25)*20) + AAMC_Raw_Data_for_FY22[[#This Row],[Median]]","v":0},null,{"$f":"(((AAMC_Raw_Data_for_FY22[[#This Row],[75th]]-AAMC_Raw_Data_for_FY22[[#This Row],[Median]])/25)*30) + AAMC_Raw_Data_for_FY22[[#This Row],[Median]]","v":0},{"$f":"(((AAMC_Raw_Data_for_FY22[[#This Row],[75th]]-AAMC_Raw_Data_for_FY22[[#This Row],[Median]])/25)*35) + AAMC_Raw_Data_for_FY22[[#This Row],[Median]]","v":0},{"$f":"(((AAMC_Raw_Data_for_FY22[[#This Row],[75th]]-AAMC_Raw_Data_for_FY22[[#This Row],[Median]])/25)*40) + AAMC_Raw_Data_for_FY22[[#This Row],[Median]]","v":0}]
[{"$f":"AAMC_Raw_Data_for_FY22[[#This Row],[Source]]&AAMC_Raw_Data_for_FY22[[#This Row],[Type]]&AAMC_Raw_Data_for_FY22[[#This Row],[School Subset]]&AAMC_Raw_Data_for_FY22[[#This Row],[Rank]]&AAMC_Raw_Data_for_FY22[[#This Row],[Degree]]&AAMC_Raw_Data_for_FY22[[#This Row],[Department / Specialty]]&\"L\"","v":"AAMCAcademicPublicAssistantPhDDermatology TotalL"},"Dermatology Total",4,"AAMC","Academic","Public","Assistant","PhD","2021-2022",71052,{"$f":"(((AAMC_Raw_Data_for_FY22[[#This Row],[Median]]-AAMC_Raw_Data_for_FY22[[#This Row],[25th]])/25)*5) + AAMC_Raw_Data_for_FY22[[#This Row],[25th]]","v":74504},{"$f":"(((AAMC_Raw_Data_for_FY22[[#This Row],[Median]]-AAMC_Raw_Data_for_FY22[[#This Row],[25th]])/25)*10) + AAMC_Raw_Data_for_FY22[[#This Row],[25th]]","v":77956},{"$f":"(((AAMC_Raw_Data_for_FY22[[#This Row],[Median]]-AAMC_Raw_Data_for_FY22[[#This Row],[25th]])/25)*15) + AAMC_Raw_Data_for_FY22[[#This Row],[25th]]","v":81408},{"$f":"(((AAMC_Raw_Data_for_FY22[[#This Row],[Median]]-AAMC_Raw_Data_for_FY22[[#This Row],[25th]])/25)*20) + AAMC_Raw_Data_for_FY22[[#This Row],[25th]]","v":84860},88312,{"$f":"(((AAMC_Raw_Data_for_FY22[[#This Row],[75th]]-AAMC_Raw_Data_for_FY22[[#This Row],[Median]])/25)*5) + AAMC_Raw_Data_for_FY22[[#This Row],[Median]]","v":94551.2},{"$f":"(((AAMC_Raw_Data_for_FY22[[#This Row],[75th]]-AAMC_Raw_Data_for_FY22[[#This Row],[Median]])/25)*10) + AAMC_Raw_Data_for_FY22[[#This Row],[Median]]","v":100790.39999999999},{"$f":"(((AAMC_Raw_Data_for_FY22[[#This Row],[75th]]-AAMC_Raw_Data_for_FY22[[#This Row],[Median]])/25)*15) + AAMC_Raw_Data_for_FY22[[#This Row],[Median]]","v":107029.6},{"$f":"(((AAMC_Raw_Data_for_FY22[[#This Row],[75th]]-AAMC_Raw_Data_for_FY22[[#This Row],[Median]])/25)*20) + AAMC_Raw_Data_for_FY22[[#This Row],[Median]]","v":113268.8},119508,{"$f":"(((AAMC_Raw_Data_for_FY22[[#This Row],[75th]]-AAMC_Raw_Data_for_FY22[[#This Row],[Median]])/25)*30) + AAMC_Raw_Data_for_FY22[[#This Row],[Median]]","v":125747.2},{"$f":"(((AAMC_Raw_Data_for_FY22[[#This Row],[75th]]-AAMC_Raw_Data_for_FY22[[#This Row],[Median]])/25)*35) + AAMC_Raw_Data_for_FY22[[#This Row],[Median]]","v":131986.4},{"$f":"(((AAMC_Raw_Data_for_FY22[[#This Row],[75th]]-AAMC_Raw_Data_for_FY22[[#This Row],[Median]])/25)*40) + AAMC_Raw_Data_for_FY22[[#This Row],[Median]]","v":138225.60000000001}]
[{"$f":"AAMC_Raw_Data_for_FY22[[#This Row],[Source]]&AAMC_Raw_Data_for_FY22[[#This Row],[Type]]&AAMC_Raw_Data_for_FY22[[#This Row],[School Subset]]&AAMC_Raw_Data_for_FY22[[#This Row],[Rank]]&AAMC_Raw_Data_for_FY22[[#This Row],[Degree]]&AAMC_Raw_Data_for_FY22[[#This Row],[Department / Specialty]]&\"L\"","v":"AAMCAcademicPublicAssociatePhDDermatology TotalL"},"Dermatology Total",3,"AAMC","Academic","Public","Associate","PhD","2021-2022",121663,{"$f":"(((AAMC_Raw_Data_for_FY22[[#This Row],[Median]]-AAMC_Raw_Data_for_FY22[[#This Row],[25th]])/25)*5) + AAMC_Raw_Data_for_FY22[[#This Row],[25th]]","v":124050.8},{"$f":"(((AAMC_Raw_Data_for_FY22[[#This Row],[Median]]-AAMC_Raw_Data_for_FY22[[#This Row],[25th]])/25)*10) + AAMC_Raw_Data_for_FY22[[#This Row],[25th]]","v":126438.6},{"$f":"(((AAMC_Raw_Data_for_FY22[[#This Row],[Median]]-AAMC_Raw_Data_for_FY22[[#This Row],[25th]])/25)*15) + AAMC_Raw_Data_for_FY22[[#This Row],[25th]]","v":128826.4},{"$f":"(((AAMC_Raw_Data_for_FY22[[#This Row],[Median]]-AAMC_Raw_Data_for_FY22[[#This Row],[25th]])/25)*20) + AAMC_Raw_Data_for_FY22[[#This Row],[25th]]","v":131214.20000000001},133602,{"$f":"(((AAMC_Raw_Data_for_FY22[[#This Row],[75th]]-AAMC_Raw_Data_for_FY22[[#This Row],[Median]])/25)*5) + AAMC_Raw_Data_for_FY22[[#This Row],[Median]]","v":136651.79999999999},{"$f":"(((AAMC_Raw_Data_for_FY22[[#This Row],[75th]]-AAMC_Raw_Data_for_FY22[[#This Row],[Median]])/25)*10) + AAMC_Raw_Data_for_FY22[[#This Row],[Median]]","v":139701.6},{"$f":"(((AAMC_Raw_Data_for_FY22[[#This Row],[75th]]-AAMC_Raw_Data_for_FY22[[#This Row],[Median]])/25)*15) + AAMC_Raw_Data_for_FY22[[#This Row],[Median]]","v":142751.4},{"$f":"(((AAMC_Raw_Data_for_FY22[[#This Row],[75th]]-AAMC_Raw_Data_for_FY22[[#This Row],[Median]])/25)*20) + AAMC_Raw_Data_for_FY22[[#This Row],[Median]]","v":145801.20000000001},148851,{"$f":"(((AAMC_Raw_Data_for_FY22[[#This Row],[75th]]-AAMC_Raw_Data_for_FY22[[#This Row],[Median]])/25)*30) + AAMC_Raw_Data_for_FY22[[#This Row],[Median]]","v":151900.79999999999},{"$f":"(((AAMC_Raw_Data_for_FY22[[#This Row],[75th]]-AAMC_Raw_Data_for_FY22[[#This Row],[Median]])/25)*35) + AAMC_Raw_Data_for_FY22[[#This Row],[Median]]","v":154950.6},{"$f":"(((AAMC_Raw_Data_for_FY22[[#This Row],[75th]]-AAMC_Raw_Data_for_FY22[[#This Row],[Median]])/25)*40) + AAMC_Raw_Data_for_FY22[[#This Row],[Median]]","v":158000.4}]
[{"$f":"AAMC_Raw_Data_for_FY22[[#This Row],[Source]]&AAMC_Raw_Data_for_FY22[[#This Row],[Type]]&AAMC_Raw_Data_for_FY22[[#This Row],[School Subset]]&AAMC_Raw_Data_for_FY22[[#This Row],[Rank]]&AAMC_Raw_Data_for_FY22[[#This Row],[Degree]]&AAMC_Raw_Data_for_FY22[[#This Row],[Department / Specialty]]&\"L\"","v":"AAMCAcademicPublicProfessorPhDDermatology TotalL"},"Dermatology Total",2,"AAMC","Academic","Public","Professor","PhD","2021-2022",137650,{"$f":"(((AAMC_Raw_Data_for_FY22[[#This Row],[Median]]-AAMC_Raw_Data_for_FY22[[#This Row],[25th]])/25)*5) + AAMC_Raw_Data_for_FY22[[#This Row],[25th]]","v":148606.6},{"$f":"(((AAMC_Raw_Data_for_FY22[[#This Row],[Median]]-AAMC_Raw_Data_for_FY22[[#This Row],[25th]])/25)*10) + AAMC_Raw_Data_for_FY22[[#This Row],[25th]]","v":159563.20000000001},{"$f":"(((AAMC_Raw_Data_for_FY22[[#This Row],[Median]]-AAMC_Raw_Data_for_FY22[[#This Row],[25th]])/25)*15) + AAMC_Raw_Data_for_FY22[[#This Row],[25th]]","v":170519.8},{"$f":"(((AAMC_Raw_Data_for_FY22[[#This Row],[Median]]-AAMC_Raw_Data_for_FY22[[#This Row],[25th]])/25)*20) + AAMC_Raw_Data_for_FY22[[#This Row],[25th]]","v":181476.4},192433,{"$f":"(((AAMC_Raw_Data_for_FY22[[#This Row],[75th]]-AAMC_Raw_Data_for_FY22[[#This Row],[Median]])/25)*5) + AAMC_Raw_Data_for_FY22[[#This Row],[Median]]","v":199639.6},{"$f":"(((AAMC_Raw_Data_for_FY22[[#This Row],[75th]]-AAMC_Raw_Data_for_FY22[[#This Row],[Median]])/25)*10) + AAMC_Raw_Data_for_FY22[[#This Row],[Median]]","v":206846.2},{"$f":"(((AAMC_Raw_Data_for_FY22[[#This Row],[75th]]-AAMC_Raw_Data_for_FY22[[#This Row],[Median]])/25)*15) + AAMC_Raw_Data_for_FY22[[#This Row],[Median]]","v":214052.8},{"$f":"(((AAMC_Raw_Data_for_FY22[[#This Row],[75th]]-AAMC_Raw_Data_for_FY22[[#This Row],[Median]])/25)*20) + AAMC_Raw_Data_for_FY22[[#This Row],[Median]]","v":221259.4},228466,{"$f":"(((AAMC_Raw_Data_for_FY22[[#This Row],[75th]]-AAMC_Raw_Data_for_FY22[[#This Row],[Median]])/25)*30) + AAMC_Raw_Data_for_FY22[[#This Row],[Median]]","v":235672.6},{"$f":"(((AAMC_Raw_Data_for_FY22[[#This Row],[75th]]-AAMC_Raw_Data_for_FY22[[#This Row],[Median]])/25)*35) + AAMC_Raw_Data_for_FY22[[#This Row],[Median]]","v":242879.2},{"$f":"(((AAMC_Raw_Data_for_FY22[[#This Row],[75th]]-AAMC_Raw_Data_for_FY22[[#This Row],[Median]])/25)*40) + AAMC_Raw_Data_for_FY22[[#This Row],[Median]]","v":250085.8}]
[{"$f":"AAMC_Raw_Data_for_FY22[[#This Row],[Source]]&AAMC_Raw_Data_for_FY22[[#This Row],[Type]]&AAMC_Raw_Data_for_FY22[[#This Row],[School Subset]]&AAMC_Raw_Data_for_FY22[[#This Row],[Rank]]&AAMC_Raw_Data_for_FY22[[#This Row],[Degree]]&AAMC_Raw_Data_for_FY22[[#This Row],[Department / Specialty]]&\"L\"","v":"AAMCAcademicPublicInstructorPhDDermatology (excluding Mohs Surgery)L"},"Dermatology (excluding Mohs Surgery)",5,"AAMC","Academic","Public","Instructor","PhD","2021-2022",null,{"$f":"(((AAMC_Raw_Data_for_FY22[[#This Row],[Median]]-AAMC_Raw_Data_for_FY22[[#This Row],[25th]])/25)*5) + AAMC_Raw_Data_for_FY22[[#This Row],[25th]]","v":0},{"$f":"(((AAMC_Raw_Data_for_FY22[[#This Row],[Median]]-AAMC_Raw_Data_for_FY22[[#This Row],[25th]])/25)*10) + AAMC_Raw_Data_for_FY22[[#This Row],[25th]]","v":0},{"$f":"(((AAMC_Raw_Data_for_FY22[[#This Row],[Median]]-AAMC_Raw_Data_for_FY22[[#This Row],[25th]])/25)*15) + AAMC_Raw_Data_for_FY22[[#This Row],[25th]]","v":0},{"$f":"(((AAMC_Raw_Data_for_FY22[[#This Row],[Median]]-AAMC_Raw_Data_for_FY22[[#This Row],[25th]])/25)*20) + AAMC_Raw_Data_for_FY22[[#This Row],[25th]]","v":0},null,{"$f":"(((AAMC_Raw_Data_for_FY22[[#This Row],[75th]]-AAMC_Raw_Data_for_FY22[[#This Row],[Median]])/25)*5) + AAMC_Raw_Data_for_FY22[[#This Row],[Median]]","v":0},{"$f":"(((AAMC_Raw_Data_for_FY22[[#This Row],[75th]]-AAMC_Raw_Data_for_FY22[[#This Row],[Median]])/25)*10) + AAMC_Raw_Data_for_FY22[[#This Row],[Median]]","v":0},{"$f":"(((AAMC_Raw_Data_for_FY22[[#This Row],[75th]]-AAMC_Raw_Data_for_FY22[[#This Row],[Median]])/25)*15) + AAMC_Raw_Data_for_FY22[[#This Row],[Median]]","v":0},{"$f":"(((AAMC_Raw_Data_for_FY22[[#This Row],[75th]]-AAMC_Raw_Data_for_FY22[[#This Row],[Median]])/25)*20) + AAMC_Raw_Data_for_FY22[[#This Row],[Median]]","v":0},null,{"$f":"(((AAMC_Raw_Data_for_FY22[[#This Row],[75th]]-AAMC_Raw_Data_for_FY22[[#This Row],[Median]])/25)*30) + AAMC_Raw_Data_for_FY22[[#This Row],[Median]]","v":0},{"$f":"(((AAMC_Raw_Data_for_FY22[[#This Row],[75th]]-AAMC_Raw_Data_for_FY22[[#This Row],[Median]])/25)*35) + AAMC_Raw_Data_for_FY22[[#This Row],[Median]]","v":0},{"$f":"(((AAMC_Raw_Data_for_FY22[[#This Row],[75th]]-AAMC_Raw_Data_for_FY22[[#This Row],[Median]])/25)*40) + AAMC_Raw_Data_for_FY22[[#This Row],[Median]]","v":0}]
[{"$f":"AAMC_Raw_Data_for_FY22[[#This Row],[Source]]&AAMC_Raw_Data_for_FY22[[#This Row],[Type]]&AAMC_Raw_Data_for_FY22[[#This Row],[School Subset]]&AAMC_Raw_Data_for_FY22[[#This Row],[Rank]]&AAMC_Raw_Data_for_FY22[[#This Row],[Degree]]&AAMC_Raw_Data_for_FY22[[#This Row],[Department / Specialty]]&\"L\"","v":"AAMCAcademicPublicAssistantPhDDermatology (excluding Mohs Surgery)L"},"Dermatology (excluding Mohs Surgery)",4,"AAMC","Academic","Public","Assistant","PhD","2021-2022",71052,{"$f":"(((AAMC_Raw_Data_for_FY22[[#This Row],[Median]]-AAMC_Raw_Data_for_FY22[[#This Row],[25th]])/25)*5) + AAMC_Raw_Data_for_FY22[[#This Row],[25th]]","v":74504},{"$f":"(((AAMC_Raw_Data_for_FY22[[#This Row],[Median]]-AAMC_Raw_Data_for_FY22[[#This Row],[25th]])/25)*10) + AAMC_Raw_Data_for_FY22[[#This Row],[25th]]","v":77956},{"$f":"(((AAMC_Raw_Data_for_FY22[[#This Row],[Median]]-AAMC_Raw_Data_for_FY22[[#This Row],[25th]])/25)*15) + AAMC_Raw_Data_for_FY22[[#This Row],[25th]]","v":81408},{"$f":"(((AAMC_Raw_Data_for_FY22[[#This Row],[Median]]-AAMC_Raw_Data_for_FY22[[#This Row],[25th]])/25)*20) + AAMC_Raw_Data_for_FY22[[#This Row],[25th]]","v":84860},88312,{"$f":"(((AAMC_Raw_Data_for_FY22[[#This Row],[75th]]-AAMC_Raw_Data_for_FY22[[#This Row],[Median]])/25)*5) + AAMC_Raw_Data_for_FY22[[#This Row],[Median]]","v":94551.2},{"$f":"(((AAMC_Raw_Data_for_FY22[[#This Row],[75th]]-AAMC_Raw_Data_for_FY22[[#This Row],[Median]])/25)*10) + AAMC_Raw_Data_for_FY22[[#This Row],[Median]]","v":100790.39999999999},{"$f":"(((AAMC_Raw_Data_for_FY22[[#This Row],[75th]]-AAMC_Raw_Data_for_FY22[[#This Row],[Median]])/25)*15) + AAMC_Raw_Data_for_FY22[[#This Row],[Median]]","v":107029.6},{"$f":"(((AAMC_Raw_Data_for_FY22[[#This Row],[75th]]-AAMC_Raw_Data_for_FY22[[#This Row],[Median]])/25)*20) + AAMC_Raw_Data_for_FY22[[#This Row],[Median]]","v":113268.8},119508,{"$f":"(((AAMC_Raw_Data_for_FY22[[#This Row],[75th]]-AAMC_Raw_Data_for_FY22[[#This Row],[Median]])/25)*30) + AAMC_Raw_Data_for_FY22[[#This Row],[Median]]","v":125747.2},{"$f":"(((AAMC_Raw_Data_for_FY22[[#This Row],[75th]]-AAMC_Raw_Data_for_FY22[[#This Row],[Median]])/25)*35) + AAMC_Raw_Data_for_FY22[[#This Row],[Median]]","v":131986.4},{"$f":"(((AAMC_Raw_Data_for_FY22[[#This Row],[75th]]-AAMC_Raw_Data_for_FY22[[#This Row],[Median]])/25)*40) + AAMC_Raw_Data_for_FY22[[#This Row],[Median]]","v":138225.60000000001}]
[{"$f":"AAMC_Raw_Data_for_FY22[[#This Row],[Source]]&AAMC_Raw_Data_for_FY22[[#This Row],[Type]]&AAMC_Raw_Data_for_FY22[[#This Row],[School Subset]]&AAMC_Raw_Data_for_FY22[[#This Row],[Rank]]&AAMC_Raw_Data_for_FY22[[#This Row],[Degree]]&AAMC_Raw_Data_for_FY22[[#This Row],[Department / Specialty]]&\"L\"","v":"AAMCAcademicPublicAssociatePhDDermatology (excluding Mohs Surgery)L"},"Dermatology (excluding Mohs Surgery)",3,"AAMC","Academic","Public","Associate","PhD","2021-2022",121663,{"$f":"(((AAMC_Raw_Data_for_FY22[[#This Row],[Median]]-AAMC_Raw_Data_for_FY22[[#This Row],[25th]])/25)*5) + AAMC_Raw_Data_for_FY22[[#This Row],[25th]]","v":124050.8},{"$f":"(((AAMC_Raw_Data_for_FY22[[#This Row],[Median]]-AAMC_Raw_Data_for_FY22[[#This Row],[25th]])/25)*10) + AAMC_Raw_Data_for_FY22[[#This Row],[25th]]","v":126438.6},{"$f":"(((AAMC_Raw_Data_for_FY22[[#This Row],[Median]]-AAMC_Raw_Data_for_FY22[[#This Row],[25th]])/25)*15) + AAMC_Raw_Data_for_FY22[[#This Row],[25th]]","v":128826.4},{"$f":"(((AAMC_Raw_Data_for_FY22[[#This Row],[Median]]-AAMC_Raw_Data_for_FY22[[#This Row],[25th]])/25)*20) + AAMC_Raw_Data_for_FY22[[#This Row],[25th]]","v":131214.20000000001},133602,{"$f":"(((AAMC_Raw_Data_for_FY22[[#This Row],[75th]]-AAMC_Raw_Data_for_FY22[[#This Row],[Median]])/25)*5) + AAMC_Raw_Data_for_FY22[[#This Row],[Median]]","v":136651.79999999999},{"$f":"(((AAMC_Raw_Data_for_FY22[[#This Row],[75th]]-AAMC_Raw_Data_for_FY22[[#This Row],[Median]])/25)*10) + AAMC_Raw_Data_for_FY22[[#This Row],[Median]]","v":139701.6},{"$f":"(((AAMC_Raw_Data_for_FY22[[#This Row],[75th]]-AAMC_Raw_Data_for_FY22[[#This Row],[Median]])/25)*15) + AAMC_Raw_Data_for_FY22[[#This Row],[Median]]","v":142751.4},{"$f":"(((AAMC_Raw_Data_for_FY22[[#This Row],[75th]]-AAMC_Raw_Data_for_FY22[[#This Row],[Median]])/25)*20) + AAMC_Raw_Data_for_FY22[[#This Row],[Median]]","v":145801.20000000001},148851,{"$f":"(((AAMC_Raw_Data_for_FY22[[#This Row],[75th]]-AAMC_Raw_Data_for_FY22[[#This Row],[Median]])/25)*30) + AAMC_Raw_Data_for_FY22[[#This Row],[Median]]","v":151900.79999999999},{"$f":"(((AAMC_Raw_Data_for_FY22[[#This Row],[75th]]-AAMC_Raw_Data_for_FY22[[#This Row],[Median]])/25)*35) + AAMC_Raw_Data_for_FY22[[#This Row],[Median]]","v":154950.6},{"$f":"(((AAMC_Raw_Data_for_FY22[[#This Row],[75th]]-AAMC_Raw_Data_for_FY22[[#This Row],[Median]])/25)*40) + AAMC_Raw_Data_for_FY22[[#This Row],[Median]]","v":158000.4}]
[{"$f":"AAMC_Raw_Data_for_FY22[[#This Row],[Source]]&AAMC_Raw_Data_for_FY22[[#This Row],[Type]]&AAMC_Raw_Data_for_FY22[[#This Row],[School Subset]]&AAMC_Raw_Data_for_FY22[[#This Row],[Rank]]&AAMC_Raw_Data_for_FY22[[#This Row],[Degree]]&AAMC_Raw_Data_for_FY22[[#This Row],[Department / Specialty]]&\"L\"","v":"AAMCAcademicPublicProfessorPhDDermatology (excluding Mohs Surgery)L"},"Dermatology (excluding Mohs Surgery)",2,"AAMC","Academic","Public","Professor","PhD","2021-2022",137650,{"$f":"(((AAMC_Raw_Data_for_FY22[[#This Row],[Median]]-AAMC_Raw_Data_for_FY22[[#This Row],[25th]])/25)*5) + AAMC_Raw_Data_for_FY22[[#This Row],[25th]]","v":148606.6},{"$f":"(((AAMC_Raw_Data_for_FY22[[#This Row],[Median]]-AAMC_Raw_Data_for_FY22[[#This Row],[25th]])/25)*10) + AAMC_Raw_Data_for_FY22[[#This Row],[25th]]","v":159563.20000000001},{"$f":"(((AAMC_Raw_Data_for_FY22[[#This Row],[Median]]-AAMC_Raw_Data_for_FY22[[#This Row],[25th]])/25)*15) + AAMC_Raw_Data_for_FY22[[#This Row],[25th]]","v":170519.8},{"$f":"(((AAMC_Raw_Data_for_FY22[[#This Row],[Median]]-AAMC_Raw_Data_for_FY22[[#This Row],[25th]])/25)*20) + AAMC_Raw_Data_for_FY22[[#This Row],[25th]]","v":181476.4},192433,{"$f":"(((AAMC_Raw_Data_for_FY22[[#This Row],[75th]]-AAMC_Raw_Data_for_FY22[[#This Row],[Median]])/25)*5) + AAMC_Raw_Data_for_FY22[[#This Row],[Median]]","v":199639.6},{"$f":"(((AAMC_Raw_Data_for_FY22[[#This Row],[75th]]-AAMC_Raw_Data_for_FY22[[#This Row],[Median]])/25)*10) + AAMC_Raw_Data_for_FY22[[#This Row],[Median]]","v":206846.2},{"$f":"(((AAMC_Raw_Data_for_FY22[[#This Row],[75th]]-AAMC_Raw_Data_for_FY22[[#This Row],[Median]])/25)*15) + AAMC_Raw_Data_for_FY22[[#This Row],[Median]]","v":214052.8},{"$f":"(((AAMC_Raw_Data_for_FY22[[#This Row],[75th]]-AAMC_Raw_Data_for_FY22[[#This Row],[Median]])/25)*20) + AAMC_Raw_Data_for_FY22[[#This Row],[Median]]","v":221259.4},228466,{"$f":"(((AAMC_Raw_Data_for_FY22[[#This Row],[75th]]-AAMC_Raw_Data_for_FY22[[#This Row],[Median]])/25)*30) + AAMC_Raw_Data_for_FY22[[#This Row],[Median]]","v":235672.6},{"$f":"(((AAMC_Raw_Data_for_FY22[[#This Row],[75th]]-AAMC_Raw_Data_for_FY22[[#This Row],[Median]])/25)*35) + AAMC_Raw_Data_for_FY22[[#This Row],[Median]]","v":242879.2},{"$f":"(((AAMC_Raw_Data_for_FY22[[#This Row],[75th]]-AAMC_Raw_Data_for_FY22[[#This Row],[Median]])/25)*40) + AAMC_Raw_Data_for_FY22[[#This Row],[Median]]","v":250085.8}]
[{"$f":"AAMC_Raw_Data_for_FY22[[#This Row],[Source]]&AAMC_Raw_Data_for_FY22[[#This Row],[Type]]&AAMC_Raw_Data_for_FY22[[#This Row],[School Subset]]&AAMC_Raw_Data_for_FY22[[#This Row],[Rank]]&AAMC_Raw_Data_for_FY22[[#This Row],[Degree]]&AAMC_Raw_Data_for_FY22[[#This Row],[Department / Specialty]]&\"L\"","v":"AAMCAcademicPublicInstructorPhDFamily Medicine TotalL"},"Family Medicine Total",5,"AAMC","Academic","Public","Instructor","PhD","2021-2022",null,{"$f":"(((AAMC_Raw_Data_for_FY22[[#This Row],[Median]]-AAMC_Raw_Data_for_FY22[[#This Row],[25th]])/25)*5) + AAMC_Raw_Data_for_FY22[[#This Row],[25th]]","v":0},{"$f":"(((AAMC_Raw_Data_for_FY22[[#This Row],[Median]]-AAMC_Raw_Data_for_FY22[[#This Row],[25th]])/25)*10) + AAMC_Raw_Data_for_FY22[[#This Row],[25th]]","v":0},{"$f":"(((AAMC_Raw_Data_for_FY22[[#This Row],[Median]]-AAMC_Raw_Data_for_FY22[[#This Row],[25th]])/25)*15) + AAMC_Raw_Data_for_FY22[[#This Row],[25th]]","v":0},{"$f":"(((AAMC_Raw_Data_for_FY22[[#This Row],[Median]]-AAMC_Raw_Data_for_FY22[[#This Row],[25th]])/25)*20) + AAMC_Raw_Data_for_FY22[[#This Row],[25th]]","v":0},null,{"$f":"(((AAMC_Raw_Data_for_FY22[[#This Row],[75th]]-AAMC_Raw_Data_for_FY22[[#This Row],[Median]])/25)*5) + AAMC_Raw_Data_for_FY22[[#This Row],[Median]]","v":0},{"$f":"(((AAMC_Raw_Data_for_FY22[[#This Row],[75th]]-AAMC_Raw_Data_for_FY22[[#This Row],[Median]])/25)*10) + AAMC_Raw_Data_for_FY22[[#This Row],[Median]]","v":0},{"$f":"(((AAMC_Raw_Data_for_FY22[[#This Row],[75th]]-AAMC_Raw_Data_for_FY22[[#This Row],[Median]])/25)*15) + AAMC_Raw_Data_for_FY22[[#This Row],[Median]]","v":0},{"$f":"(((AAMC_Raw_Data_for_FY22[[#This Row],[75th]]-AAMC_Raw_Data_for_FY22[[#This Row],[Median]])/25)*20) + AAMC_Raw_Data_for_FY22[[#This Row],[Median]]","v":0},null,{"$f":"(((AAMC_Raw_Data_for_FY22[[#This Row],[75th]]-AAMC_Raw_Data_for_FY22[[#This Row],[Median]])/25)*30) + AAMC_Raw_Data_for_FY22[[#This Row],[Median]]","v":0},{"$f":"(((AAMC_Raw_Data_for_FY22[[#This Row],[75th]]-AAMC_Raw_Data_for_FY22[[#This Row],[Median]])/25)*35) + AAMC_Raw_Data_for_FY22[[#This Row],[Median]]","v":0},{"$f":"(((AAMC_Raw_Data_for_FY22[[#This Row],[75th]]-AAMC_Raw_Data_for_FY22[[#This Row],[Median]])/25)*40) + AAMC_Raw_Data_for_FY22[[#This Row],[Median]]","v":0}]
[{"$f":"AAMC_Raw_Data_for_FY22[[#This Row],[Source]]&AAMC_Raw_Data_for_FY22[[#This Row],[Type]]&AAMC_Raw_Data_for_FY22[[#This Row],[School Subset]]&AAMC_Raw_Data_for_FY22[[#This Row],[Rank]]&AAMC_Raw_Data_for_FY22[[#This Row],[Degree]]&AAMC_Raw_Data_for_FY22[[#This Row],[Department / Specialty]]&\"L\"","v":"AAMCAcademicPublicAssistantPhDFamily Medicine TotalL"},"Family Medicine Total",4,"AAMC","Academic","Public","Assistant","PhD","2021-2022",99244,{"$f":"(((AAMC_Raw_Data_for_FY22[[#This Row],[Median]]-AAMC_Raw_Data_for_FY22[[#This Row],[25th]])/25)*5) + AAMC_Raw_Data_for_FY22[[#This Row],[25th]]","v":101398.39999999999},{"$f":"(((AAMC_Raw_Data_for_FY22[[#This Row],[Median]]-AAMC_Raw_Data_for_FY22[[#This Row],[25th]])/25)*10) + AAMC_Raw_Data_for_FY22[[#This Row],[25th]]","v":103552.8},{"$f":"(((AAMC_Raw_Data_for_FY22[[#This Row],[Median]]-AAMC_Raw_Data_for_FY22[[#This Row],[25th]])/25)*15) + AAMC_Raw_Data_for_FY22[[#This Row],[25th]]","v":105707.2},{"$f":"(((AAMC_Raw_Data_for_FY22[[#This Row],[Median]]-AAMC_Raw_Data_for_FY22[[#This Row],[25th]])/25)*20) + AAMC_Raw_Data_for_FY22[[#This Row],[25th]]","v":107861.6},110016,{"$f":"(((AAMC_Raw_Data_for_FY22[[#This Row],[75th]]-AAMC_Raw_Data_for_FY22[[#This Row],[Median]])/25)*5) + AAMC_Raw_Data_for_FY22[[#This Row],[Median]]","v":113607.8},{"$f":"(((AAMC_Raw_Data_for_FY22[[#This Row],[75th]]-AAMC_Raw_Data_for_FY22[[#This Row],[Median]])/25)*10) + AAMC_Raw_Data_for_FY22[[#This Row],[Median]]","v":117199.6},{"$f":"(((AAMC_Raw_Data_for_FY22[[#This Row],[75th]]-AAMC_Raw_Data_for_FY22[[#This Row],[Median]])/25)*15) + AAMC_Raw_Data_for_FY22[[#This Row],[Median]]","v":120791.4},{"$f":"(((AAMC_Raw_Data_for_FY22[[#This Row],[75th]]-AAMC_Raw_Data_for_FY22[[#This Row],[Median]])/25)*20) + AAMC_Raw_Data_for_FY22[[#This Row],[Median]]","v":124383.2},127975,{"$f":"(((AAMC_Raw_Data_for_FY22[[#This Row],[75th]]-AAMC_Raw_Data_for_FY22[[#This Row],[Median]])/25)*30) + AAMC_Raw_Data_for_FY22[[#This Row],[Median]]","v":131566.79999999999},{"$f":"(((AAMC_Raw_Data_for_FY22[[#This Row],[75th]]-AAMC_Raw_Data_for_FY22[[#This Row],[Median]])/25)*35) + AAMC_Raw_Data_for_FY22[[#This Row],[Median]]","v":135158.6},{"$f":"(((AAMC_Raw_Data_for_FY22[[#This Row],[75th]]-AAMC_Raw_Data_for_FY22[[#This Row],[Median]])/25)*40) + AAMC_Raw_Data_for_FY22[[#This Row],[Median]]","v":138750.39999999999}]
[{"$f":"AAMC_Raw_Data_for_FY22[[#This Row],[Source]]&AAMC_Raw_Data_for_FY22[[#This Row],[Type]]&AAMC_Raw_Data_for_FY22[[#This Row],[School Subset]]&AAMC_Raw_Data_for_FY22[[#This Row],[Rank]]&AAMC_Raw_Data_for_FY22[[#This Row],[Degree]]&AAMC_Raw_Data_for_FY22[[#This Row],[Department / Specialty]]&\"L\"","v":"AAMCAcademicPublicAssociatePhDFamily Medicine TotalL"},"Family Medicine Total",3,"AAMC","Academic","Public","Associate","PhD","2021-2022",121221,{"$f":"(((AAMC_Raw_Data_for_FY22[[#This Row],[Median]]-AAMC_Raw_Data_for_FY22[[#This Row],[25th]])/25)*5) + AAMC_Raw_Data_for_FY22[[#This Row],[25th]]","v":123376.8},{"$f":"(((AAMC_Raw_Data_for_FY22[[#This Row],[Median]]-AAMC_Raw_Data_for_FY22[[#This Row],[25th]])/25)*10) + AAMC_Raw_Data_for_FY22[[#This Row],[25th]]","v":125532.6},{"$f":"(((AAMC_Raw_Data_for_FY22[[#This Row],[Median]]-AAMC_Raw_Data_for_FY22[[#This Row],[25th]])/25)*15) + AAMC_Raw_Data_for_FY22[[#This Row],[25th]]","v":127688.4},{"$f":"(((AAMC_Raw_Data_for_FY22[[#This Row],[Median]]-AAMC_Raw_Data_for_FY22[[#This Row],[25th]])/25)*20) + AAMC_Raw_Data_for_FY22[[#This Row],[25th]]","v":129844.2},132000,{"$f":"(((AAMC_Raw_Data_for_FY22[[#This Row],[75th]]-AAMC_Raw_Data_for_FY22[[#This Row],[Median]])/25)*5) + AAMC_Raw_Data_for_FY22[[#This Row],[Median]]","v":134427.79999999999},{"$f":"(((AAMC_Raw_Data_for_FY22[[#This Row],[75th]]-AAMC_Raw_Data_for_FY22[[#This Row],[Median]])/25)*10) + AAMC_Raw_Data_for_FY22[[#This Row],[Median]]","v":136855.6},{"$f":"(((AAMC_Raw_Data_for_FY22[[#This Row],[75th]]-AAMC_Raw_Data_for_FY22[[#This Row],[Median]])/25)*15) + AAMC_Raw_Data_for_FY22[[#This Row],[Median]]","v":139283.4},{"$f":"(((AAMC_Raw_Data_for_FY22[[#This Row],[75th]]-AAMC_Raw_Data_for_FY22[[#This Row],[Median]])/25)*20) + AAMC_Raw_Data_for_FY22[[#This Row],[Median]]","v":141711.20000000001},144139,{"$f":"(((AAMC_Raw_Data_for_FY22[[#This Row],[75th]]-AAMC_Raw_Data_for_FY22[[#This Row],[Median]])/25)*30) + AAMC_Raw_Data_for_FY22[[#This Row],[Median]]","v":146566.79999999999},{"$f":"(((AAMC_Raw_Data_for_FY22[[#This Row],[75th]]-AAMC_Raw_Data_for_FY22[[#This Row],[Median]])/25)*35) + AAMC_Raw_Data_for_FY22[[#This Row],[Median]]","v":148994.6},{"$f":"(((AAMC_Raw_Data_for_FY22[[#This Row],[75th]]-AAMC_Raw_Data_for_FY22[[#This Row],[Median]])/25)*40) + AAMC_Raw_Data_for_FY22[[#This Row],[Median]]","v":151422.39999999999}]
[{"$f":"AAMC_Raw_Data_for_FY22[[#This Row],[Source]]&AAMC_Raw_Data_for_FY22[[#This Row],[Type]]&AAMC_Raw_Data_for_FY22[[#This Row],[School Subset]]&AAMC_Raw_Data_for_FY22[[#This Row],[Rank]]&AAMC_Raw_Data_for_FY22[[#This Row],[Degree]]&AAMC_Raw_Data_for_FY22[[#This Row],[Department / Specialty]]&\"L\"","v":"AAMCAcademicPublicProfessorPhDFamily Medicine TotalL"},"Family Medicine Total",2,"AAMC","Academic","Public","Professor","PhD","2021-2022",166991,{"$f":"(((AAMC_Raw_Data_for_FY22[[#This Row],[Median]]-AAMC_Raw_Data_for_FY22[[#This Row],[25th]])/25)*5) + AAMC_Raw_Data_for_FY22[[#This Row],[25th]]","v":171714.2},{"$f":"(((AAMC_Raw_Data_for_FY22[[#This Row],[Median]]-AAMC_Raw_Data_for_FY22[[#This Row],[25th]])/25)*10) + AAMC_Raw_Data_for_FY22[[#This Row],[25th]]","v":176437.4},{"$f":"(((AAMC_Raw_Data_for_FY22[[#This Row],[Median]]-AAMC_Raw_Data_for_FY22[[#This Row],[25th]])/25)*15) + AAMC_Raw_Data_for_FY22[[#This Row],[25th]]","v":181160.6},{"$f":"(((AAMC_Raw_Data_for_FY22[[#This Row],[Median]]-AAMC_Raw_Data_for_FY22[[#This Row],[25th]])/25)*20) + AAMC_Raw_Data_for_FY22[[#This Row],[25th]]","v":185883.8},190607,{"$f":"(((AAMC_Raw_Data_for_FY22[[#This Row],[75th]]-AAMC_Raw_Data_for_FY22[[#This Row],[Median]])/25)*5) + AAMC_Raw_Data_for_FY22[[#This Row],[Median]]","v":196812.6},{"$f":"(((AAMC_Raw_Data_for_FY22[[#This Row],[75th]]-AAMC_Raw_Data_for_FY22[[#This Row],[Median]])/25)*10) + AAMC_Raw_Data_for_FY22[[#This Row],[Median]]","v":203018.2},{"$f":"(((AAMC_Raw_Data_for_FY22[[#This Row],[75th]]-AAMC_Raw_Data_for_FY22[[#This Row],[Median]])/25)*15) + AAMC_Raw_Data_for_FY22[[#This Row],[Median]]","v":209223.8},{"$f":"(((AAMC_Raw_Data_for_FY22[[#This Row],[75th]]-AAMC_Raw_Data_for_FY22[[#This Row],[Median]])/25)*20) + AAMC_Raw_Data_for_FY22[[#This Row],[Median]]","v":215429.4},221635,{"$f":"(((AAMC_Raw_Data_for_FY22[[#This Row],[75th]]-AAMC_Raw_Data_for_FY22[[#This Row],[Median]])/25)*30) + AAMC_Raw_Data_for_FY22[[#This Row],[Median]]","v":227840.6},{"$f":"(((AAMC_Raw_Data_for_FY22[[#This Row],[75th]]-AAMC_Raw_Data_for_FY22[[#This Row],[Median]])/25)*35) + AAMC_Raw_Data_for_FY22[[#This Row],[Median]]","v":234046.2},{"$f":"(((AAMC_Raw_Data_for_FY22[[#This Row],[75th]]-AAMC_Raw_Data_for_FY22[[#This Row],[Median]])/25)*40) + AAMC_Raw_Data_for_FY22[[#This Row],[Median]]","v":240251.8}]
[{"$f":"AAMC_Raw_Data_for_FY22[[#This Row],[Source]]&AAMC_Raw_Data_for_FY22[[#This Row],[Type]]&AAMC_Raw_Data_for_FY22[[#This Row],[School Subset]]&AAMC_Raw_Data_for_FY22[[#This Row],[Rank]]&AAMC_Raw_Data_for_FY22[[#This Row],[Degree]]&AAMC_Raw_Data_for_FY22[[#This Row],[Department / Specialty]]&\"L\"","v":"AAMCAcademicPublicChiefPhDFamily Medicine TotalL"},"Family Medicine Total",6,"AAMC","Academic","Public","Chief","PhD","2021-2022",null,{"$f":"(((AAMC_Raw_Data_for_FY22[[#This Row],[Median]]-AAMC_Raw_Data_for_FY22[[#This Row],[25th]])/25)*5) + AAMC_Raw_Data_for_FY22[[#This Row],[25th]]","v":0},{"$f":"(((AAMC_Raw_Data_for_FY22[[#This Row],[Median]]-AAMC_Raw_Data_for_FY22[[#This Row],[25th]])/25)*10) + AAMC_Raw_Data_for_FY22[[#This Row],[25th]]","v":0},{"$f":"(((AAMC_Raw_Data_for_FY22[[#This Row],[Median]]-AAMC_Raw_Data_for_FY22[[#This Row],[25th]])/25)*15) + AAMC_Raw_Data_for_FY22[[#This Row],[25th]]","v":0},{"$f":"(((AAMC_Raw_Data_for_FY22[[#This Row],[Median]]-AAMC_Raw_Data_for_FY22[[#This Row],[25th]])/25)*20) + AAMC_Raw_Data_for_FY22[[#This Row],[25th]]","v":0},null,{"$f":"(((AAMC_Raw_Data_for_FY22[[#This Row],[75th]]-AAMC_Raw_Data_for_FY22[[#This Row],[Median]])/25)*5) + AAMC_Raw_Data_for_FY22[[#This Row],[Median]]","v":0},{"$f":"(((AAMC_Raw_Data_for_FY22[[#This Row],[75th]]-AAMC_Raw_Data_for_FY22[[#This Row],[Median]])/25)*10) + AAMC_Raw_Data_for_FY22[[#This Row],[Median]]","v":0},{"$f":"(((AAMC_Raw_Data_for_FY22[[#This Row],[75th]]-AAMC_Raw_Data_for_FY22[[#This Row],[Median]])/25)*15) + AAMC_Raw_Data_for_FY22[[#This Row],[Median]]","v":0},{"$f":"(((AAMC_Raw_Data_for_FY22[[#This Row],[75th]]-AAMC_Raw_Data_for_FY22[[#This Row],[Median]])/25)*20) + AAMC_Raw_Data_for_FY22[[#This Row],[Median]]","v":0},null,{"$f":"(((AAMC_Raw_Data_for_FY22[[#This Row],[75th]]-AAMC_Raw_Data_for_FY22[[#This Row],[Median]])/25)*30) + AAMC_Raw_Data_for_FY22[[#This Row],[Median]]","v":0},{"$f":"(((AAMC_Raw_Data_for_FY22[[#This Row],[75th]]-AAMC_Raw_Data_for_FY22[[#This Row],[Median]])/25)*35) + AAMC_Raw_Data_for_FY22[[#This Row],[Median]]","v":0},{"$f":"(((AAMC_Raw_Data_for_FY22[[#This Row],[75th]]-AAMC_Raw_Data_for_FY22[[#This Row],[Median]])/25)*40) + AAMC_Raw_Data_for_FY22[[#This Row],[Median]]","v":0}]
[{"$f":"AAMC_Raw_Data_for_FY22[[#This Row],[Source]]&AAMC_Raw_Data_for_FY22[[#This Row],[Type]]&AAMC_Raw_Data_for_FY22[[#This Row],[School Subset]]&AAMC_Raw_Data_for_FY22[[#This Row],[Rank]]&AAMC_Raw_Data_for_FY22[[#This Row],[Degree]]&AAMC_Raw_Data_for_FY22[[#This Row],[Department / Specialty]]&\"L\"","v":"AAMCAcademicPublicChairPhDFamily Medicine TotalL"},"Family Medicine Total",1,"AAMC","Academic","Public","Chair","PhD","2021-2022",null,{"$f":"(((AAMC_Raw_Data_for_FY22[[#This Row],[Median]]-AAMC_Raw_Data_for_FY22[[#This Row],[25th]])/25)*5) + AAMC_Raw_Data_for_FY22[[#This Row],[25th]]","v":0},{"$f":"(((AAMC_Raw_Data_for_FY22[[#This Row],[Median]]-AAMC_Raw_Data_for_FY22[[#This Row],[25th]])/25)*10) + AAMC_Raw_Data_for_FY22[[#This Row],[25th]]","v":0},{"$f":"(((AAMC_Raw_Data_for_FY22[[#This Row],[Median]]-AAMC_Raw_Data_for_FY22[[#This Row],[25th]])/25)*15) + AAMC_Raw_Data_for_FY22[[#This Row],[25th]]","v":0},{"$f":"(((AAMC_Raw_Data_for_FY22[[#This Row],[Median]]-AAMC_Raw_Data_for_FY22[[#This Row],[25th]])/25)*20) + AAMC_Raw_Data_for_FY22[[#This Row],[25th]]","v":0},null,{"$f":"(((AAMC_Raw_Data_for_FY22[[#This Row],[75th]]-AAMC_Raw_Data_for_FY22[[#This Row],[Median]])/25)*5) + AAMC_Raw_Data_for_FY22[[#This Row],[Median]]","v":0},{"$f":"(((AAMC_Raw_Data_for_FY22[[#This Row],[75th]]-AAMC_Raw_Data_for_FY22[[#This Row],[Median]])/25)*10) + AAMC_Raw_Data_for_FY22[[#This Row],[Median]]","v":0},{"$f":"(((AAMC_Raw_Data_for_FY22[[#This Row],[75th]]-AAMC_Raw_Data_for_FY22[[#This Row],[Median]])/25)*15) + AAMC_Raw_Data_for_FY22[[#This Row],[Median]]","v":0},{"$f":"(((AAMC_Raw_Data_for_FY22[[#This Row],[75th]]-AAMC_Raw_Data_for_FY22[[#This Row],[Median]])/25)*20) + AAMC_Raw_Data_for_FY22[[#This Row],[Median]]","v":0},null,{"$f":"(((AAMC_Raw_Data_for_FY22[[#This Row],[75th]]-AAMC_Raw_Data_for_FY22[[#This Row],[Median]])/25)*30) + AAMC_Raw_Data_for_FY22[[#This Row],[Median]]","v":0},{"$f":"(((AAMC_Raw_Data_for_FY22[[#This Row],[75th]]-AAMC_Raw_Data_for_FY22[[#This Row],[Median]])/25)*35) + AAMC_Raw_Data_for_FY22[[#This Row],[Median]]","v":0},{"$f":"(((AAMC_Raw_Data_for_FY22[[#This Row],[75th]]-AAMC_Raw_Data_for_FY22[[#This Row],[Median]])/25)*40) + AAMC_Raw_Data_for_FY22[[#This Row],[Median]]","v":0}]
[{"$f":"AAMC_Raw_Data_for_FY22[[#This Row],[Source]]&AAMC_Raw_Data_for_FY22[[#This Row],[Type]]&AAMC_Raw_Data_for_FY22[[#This Row],[School Subset]]&AAMC_Raw_Data_for_FY22[[#This Row],[Rank]]&AAMC_Raw_Data_for_FY22[[#This Row],[Degree]]&AAMC_Raw_Data_for_FY22[[#This Row],[Department / Specialty]]&\"L\"","v":"AAMCAcademicPublicAssistantPhDFamily Medicine: GeneralL"},"Family Medicine: General",4,"AAMC","Academic","Public","Assistant","PhD","2021-2022",103342,{"$f":"(((AAMC_Raw_Data_for_FY22[[#This Row],[Median]]-AAMC_Raw_Data_for_FY22[[#This Row],[25th]])/25)*5) + AAMC_Raw_Data_for_FY22[[#This Row],[25th]]","v":105162.8},{"$f":"(((AAMC_Raw_Data_for_FY22[[#This Row],[Median]]-AAMC_Raw_Data_for_FY22[[#This Row],[25th]])/25)*10) + AAMC_Raw_Data_for_FY22[[#This Row],[25th]]","v":106983.6},{"$f":"(((AAMC_Raw_Data_for_FY22[[#This Row],[Median]]-AAMC_Raw_Data_for_FY22[[#This Row],[25th]])/25)*15) + AAMC_Raw_Data_for_FY22[[#This Row],[25th]]","v":108804.4},{"$f":"(((AAMC_Raw_Data_for_FY22[[#This Row],[Median]]-AAMC_Raw_Data_for_FY22[[#This Row],[25th]])/25)*20) + AAMC_Raw_Data_for_FY22[[#This Row],[25th]]","v":110625.2},112446,{"$f":"(((AAMC_Raw_Data_for_FY22[[#This Row],[75th]]-AAMC_Raw_Data_for_FY22[[#This Row],[Median]])/25)*5) + AAMC_Raw_Data_for_FY22[[#This Row],[Median]]","v":115870},{"$f":"(((AAMC_Raw_Data_for_FY22[[#This Row],[75th]]-AAMC_Raw_Data_for_FY22[[#This Row],[Median]])/25)*10) + AAMC_Raw_Data_for_FY22[[#This Row],[Median]]","v":119294},{"$f":"(((AAMC_Raw_Data_for_FY22[[#This Row],[75th]]-AAMC_Raw_Data_for_FY22[[#This Row],[Median]])/25)*15) + AAMC_Raw_Data_for_FY22[[#This Row],[Median]]","v":122718},{"$f":"(((AAMC_Raw_Data_for_FY22[[#This Row],[75th]]-AAMC_Raw_Data_for_FY22[[#This Row],[Median]])/25)*20) + AAMC_Raw_Data_for_FY22[[#This Row],[Median]]","v":126142},129566,{"$f":"(((AAMC_Raw_Data_for_FY22[[#This Row],[75th]]-AAMC_Raw_Data_for_FY22[[#This Row],[Median]])/25)*30) + AAMC_Raw_Data_for_FY22[[#This Row],[Median]]","v":132990},{"$f":"(((AAMC_Raw_Data_for_FY22[[#This Row],[75th]]-AAMC_Raw_Data_for_FY22[[#This Row],[Median]])/25)*35) + AAMC_Raw_Data_for_FY22[[#This Row],[Median]]","v":136414},{"$f":"(((AAMC_Raw_Data_for_FY22[[#This Row],[75th]]-AAMC_Raw_Data_for_FY22[[#This Row],[Median]])/25)*40) + AAMC_Raw_Data_for_FY22[[#This Row],[Median]]","v":139838}]
[{"$f":"AAMC_Raw_Data_for_FY22[[#This Row],[Source]]&AAMC_Raw_Data_for_FY22[[#This Row],[Type]]&AAMC_Raw_Data_for_FY22[[#This Row],[School Subset]]&AAMC_Raw_Data_for_FY22[[#This Row],[Rank]]&AAMC_Raw_Data_for_FY22[[#This Row],[Degree]]&AAMC_Raw_Data_for_FY22[[#This Row],[Department / Specialty]]&\"L\"","v":"AAMCAcademicPublicAssociatePhDFamily Medicine: GeneralL"},"Family Medicine: General",3,"AAMC","Academic","Public","Associate","PhD","2021-2022",121097,{"$f":"(((AAMC_Raw_Data_for_FY22[[#This Row],[Median]]-AAMC_Raw_Data_for_FY22[[#This Row],[25th]])/25)*5) + AAMC_Raw_Data_for_FY22[[#This Row],[25th]]","v":123375.2},{"$f":"(((AAMC_Raw_Data_for_FY22[[#This Row],[Median]]-AAMC_Raw_Data_for_FY22[[#This Row],[25th]])/25)*10) + AAMC_Raw_Data_for_FY22[[#This Row],[25th]]","v":125653.4},{"$f":"(((AAMC_Raw_Data_for_FY22[[#This Row],[Median]]-AAMC_Raw_Data_for_FY22[[#This Row],[25th]])/25)*15) + AAMC_Raw_Data_for_FY22[[#This Row],[25th]]","v":127931.6},{"$f":"(((AAMC_Raw_Data_for_FY22[[#This Row],[Median]]-AAMC_Raw_Data_for_FY22[[#This Row],[25th]])/25)*20) + AAMC_Raw_Data_for_FY22[[#This Row],[25th]]","v":130209.8},132488,{"$f":"(((AAMC_Raw_Data_for_FY22[[#This Row],[75th]]-AAMC_Raw_Data_for_FY22[[#This Row],[Median]])/25)*5) + AAMC_Raw_Data_for_FY22[[#This Row],[Median]]","v":134690.6},{"$f":"(((AAMC_Raw_Data_for_FY22[[#This Row],[75th]]-AAMC_Raw_Data_for_FY22[[#This Row],[Median]])/25)*10) + AAMC_Raw_Data_for_FY22[[#This Row],[Median]]","v":136893.20000000001},{"$f":"(((AAMC_Raw_Data_for_FY22[[#This Row],[75th]]-AAMC_Raw_Data_for_FY22[[#This Row],[Median]])/25)*15) + AAMC_Raw_Data_for_FY22[[#This Row],[Median]]","v":139095.79999999999},{"$f":"(((AAMC_Raw_Data_for_FY22[[#This Row],[75th]]-AAMC_Raw_Data_for_FY22[[#This Row],[Median]])/25)*20) + AAMC_Raw_Data_for_FY22[[#This Row],[Median]]","v":141298.4},143501,{"$f":"(((AAMC_Raw_Data_for_FY22[[#This Row],[75th]]-AAMC_Raw_Data_for_FY22[[#This Row],[Median]])/25)*30) + AAMC_Raw_Data_for_FY22[[#This Row],[Median]]","v":145703.6},{"$f":"(((AAMC_Raw_Data_for_FY22[[#This Row],[75th]]-AAMC_Raw_Data_for_FY22[[#This Row],[Median]])/25)*35) + AAMC_Raw_Data_for_FY22[[#This Row],[Median]]","v":147906.20000000001},{"$f":"(((AAMC_Raw_Data_for_FY22[[#This Row],[75th]]-AAMC_Raw_Data_for_FY22[[#This Row],[Median]])/25)*40) + AAMC_Raw_Data_for_FY22[[#This Row],[Median]]","v":150108.79999999999}]
[{"$f":"AAMC_Raw_Data_for_FY22[[#This Row],[Source]]&AAMC_Raw_Data_for_FY22[[#This Row],[Type]]&AAMC_Raw_Data_for_FY22[[#This Row],[School Subset]]&AAMC_Raw_Data_for_FY22[[#This Row],[Rank]]&AAMC_Raw_Data_for_FY22[[#This Row],[Degree]]&AAMC_Raw_Data_for_FY22[[#This Row],[Department / Specialty]]&\"L\"","v":"AAMCAcademicPublicProfessorPhDFamily Medicine: GeneralL"},"Family Medicine: General",2,"AAMC","Academic","Public","Professor","PhD","2021-2022",164756,{"$f":"(((AAMC_Raw_Data_for_FY22[[#This Row],[Median]]-AAMC_Raw_Data_for_FY22[[#This Row],[25th]])/25)*5) + AAMC_Raw_Data_for_FY22[[#This Row],[25th]]","v":168804.8},{"$f":"(((AAMC_Raw_Data_for_FY22[[#This Row],[Median]]-AAMC_Raw_Data_for_FY22[[#This Row],[25th]])/25)*10) + AAMC_Raw_Data_for_FY22[[#This Row],[25th]]","v":172853.6},{"$f":"(((AAMC_Raw_Data_for_FY22[[#This Row],[Median]]-AAMC_Raw_Data_for_FY22[[#This Row],[25th]])/25)*15) + AAMC_Raw_Data_for_FY22[[#This Row],[25th]]","v":176902.39999999999},{"$f":"(((AAMC_Raw_Data_for_FY22[[#This Row],[Median]]-AAMC_Raw_Data_for_FY22[[#This Row],[25th]])/25)*20) + AAMC_Raw_Data_for_FY22[[#This Row],[25th]]","v":180951.2},185000,{"$f":"(((AAMC_Raw_Data_for_FY22[[#This Row],[75th]]-AAMC_Raw_Data_for_FY22[[#This Row],[Median]])/25)*5) + AAMC_Raw_Data_for_FY22[[#This Row],[Median]]","v":190951.2},{"$f":"(((AAMC_Raw_Data_for_FY22[[#This Row],[75th]]-AAMC_Raw_Data_for_FY22[[#This Row],[Median]])/25)*10) + AAMC_Raw_Data_for_FY22[[#This Row],[Median]]","v":196902.39999999999},{"$f":"(((AAMC_Raw_Data_for_FY22[[#This Row],[75th]]-AAMC_Raw_Data_for_FY22[[#This Row],[Median]])/25)*15) + AAMC_Raw_Data_for_FY22[[#This Row],[Median]]","v":202853.6},{"$f":"(((AAMC_Raw_Data_for_FY22[[#This Row],[75th]]-AAMC_Raw_Data_for_FY22[[#This Row],[Median]])/25)*20) + AAMC_Raw_Data_for_FY22[[#This Row],[Median]]","v":208804.8},214756,{"$f":"(((AAMC_Raw_Data_for_FY22[[#This Row],[75th]]-AAMC_Raw_Data_for_FY22[[#This Row],[Median]])/25)*30) + AAMC_Raw_Data_for_FY22[[#This Row],[Median]]","v":220707.20000000001},{"$f":"(((AAMC_Raw_Data_for_FY22[[#This Row],[75th]]-AAMC_Raw_Data_for_FY22[[#This Row],[Median]])/25)*35) + AAMC_Raw_Data_for_FY22[[#This Row],[Median]]","v":226658.4},{"$f":"(((AAMC_Raw_Data_for_FY22[[#This Row],[75th]]-AAMC_Raw_Data_for_FY22[[#This Row],[Median]])/25)*40) + AAMC_Raw_Data_for_FY22[[#This Row],[Median]]","v":232609.6}]
[{"$f":"AAMC_Raw_Data_for_FY22[[#This Row],[Source]]&AAMC_Raw_Data_for_FY22[[#This Row],[Type]]&AAMC_Raw_Data_for_FY22[[#This Row],[School Subset]]&AAMC_Raw_Data_for_FY22[[#This Row],[Rank]]&AAMC_Raw_Data_for_FY22[[#This Row],[Degree]]&AAMC_Raw_Data_for_FY22[[#This Row],[Department / Specialty]]&\"L\"","v":"AAMCAcademicPublicChiefPhDFamily Medicine: GeneralL"},"Family Medicine: General",6,"AAMC","Academic","Public","Chief","PhD","2021-2022",null,{"$f":"(((AAMC_Raw_Data_for_FY22[[#This Row],[Median]]-AAMC_Raw_Data_for_FY22[[#This Row],[25th]])/25)*5) + AAMC_Raw_Data_for_FY22[[#This Row],[25th]]","v":0},{"$f":"(((AAMC_Raw_Data_for_FY22[[#This Row],[Median]]-AAMC_Raw_Data_for_FY22[[#This Row],[25th]])/25)*10) + AAMC_Raw_Data_for_FY22[[#This Row],[25th]]","v":0},{"$f":"(((AAMC_Raw_Data_for_FY22[[#This Row],[Median]]-AAMC_Raw_Data_for_FY22[[#This Row],[25th]])/25)*15) + AAMC_Raw_Data_for_FY22[[#This Row],[25th]]","v":0},{"$f":"(((AAMC_Raw_Data_for_FY22[[#This Row],[Median]]-AAMC_Raw_Data_for_FY22[[#This Row],[25th]])/25)*20) + AAMC_Raw_Data_for_FY22[[#This Row],[25th]]","v":0},null,{"$f":"(((AAMC_Raw_Data_for_FY22[[#This Row],[75th]]-AAMC_Raw_Data_for_FY22[[#This Row],[Median]])/25)*5) + AAMC_Raw_Data_for_FY22[[#This Row],[Median]]","v":0},{"$f":"(((AAMC_Raw_Data_for_FY22[[#This Row],[75th]]-AAMC_Raw_Data_for_FY22[[#This Row],[Median]])/25)*10) + AAMC_Raw_Data_for_FY22[[#This Row],[Median]]","v":0},{"$f":"(((AAMC_Raw_Data_for_FY22[[#This Row],[75th]]-AAMC_Raw_Data_for_FY22[[#This Row],[Median]])/25)*15) + AAMC_Raw_Data_for_FY22[[#This Row],[Median]]","v":0},{"$f":"(((AAMC_Raw_Data_for_FY22[[#This Row],[75th]]-AAMC_Raw_Data_for_FY22[[#This Row],[Median]])/25)*20) + AAMC_Raw_Data_for_FY22[[#This Row],[Median]]","v":0},null,{"$f":"(((AAMC_Raw_Data_for_FY22[[#This Row],[75th]]-AAMC_Raw_Data_for_FY22[[#This Row],[Median]])/25)*30) + AAMC_Raw_Data_for_FY22[[#This Row],[Median]]","v":0},{"$f":"(((AAMC_Raw_Data_for_FY22[[#This Row],[75th]]-AAMC_Raw_Data_for_FY22[[#This Row],[Median]])/25)*35) + AAMC_Raw_Data_for_FY22[[#This Row],[Median]]","v":0},{"$f":"(((AAMC_Raw_Data_for_FY22[[#This Row],[75th]]-AAMC_Raw_Data_for_FY22[[#This Row],[Median]])/25)*40) + AAMC_Raw_Data_for_FY22[[#This Row],[Median]]","v":0}]
[{"$f":"AAMC_Raw_Data_for_FY22[[#This Row],[Source]]&AAMC_Raw_Data_for_FY22[[#This Row],[Type]]&AAMC_Raw_Data_for_FY22[[#This Row],[School Subset]]&AAMC_Raw_Data_for_FY22[[#This Row],[Rank]]&AAMC_Raw_Data_for_FY22[[#This Row],[Degree]]&AAMC_Raw_Data_for_FY22[[#This Row],[Department / Specialty]]&\"L\"","v":"AAMCAcademicPublicChairPhDFamily Medicine: GeneralL"},"Family Medicine: General",1,"AAMC","Academic","Public","Chair","PhD","2021-2022",null,{"$f":"(((AAMC_Raw_Data_for_FY22[[#This Row],[Median]]-AAMC_Raw_Data_for_FY22[[#This Row],[25th]])/25)*5) + AAMC_Raw_Data_for_FY22[[#This Row],[25th]]","v":0},{"$f":"(((AAMC_Raw_Data_for_FY22[[#This Row],[Median]]-AAMC_Raw_Data_for_FY22[[#This Row],[25th]])/25)*10) + AAMC_Raw_Data_for_FY22[[#This Row],[25th]]","v":0},{"$f":"(((AAMC_Raw_Data_for_FY22[[#This Row],[Median]]-AAMC_Raw_Data_for_FY22[[#This Row],[25th]])/25)*15) + AAMC_Raw_Data_for_FY22[[#This Row],[25th]]","v":0},{"$f":"(((AAMC_Raw_Data_for_FY22[[#This Row],[Median]]-AAMC_Raw_Data_for_FY22[[#This Row],[25th]])/25)*20) + AAMC_Raw_Data_for_FY22[[#This Row],[25th]]","v":0},null,{"$f":"(((AAMC_Raw_Data_for_FY22[[#This Row],[75th]]-AAMC_Raw_Data_for_FY22[[#This Row],[Median]])/25)*5) + AAMC_Raw_Data_for_FY22[[#This Row],[Median]]","v":0},{"$f":"(((AAMC_Raw_Data_for_FY22[[#This Row],[75th]]-AAMC_Raw_Data_for_FY22[[#This Row],[Median]])/25)*10) + AAMC_Raw_Data_for_FY22[[#This Row],[Median]]","v":0},{"$f":"(((AAMC_Raw_Data_for_FY22[[#This Row],[75th]]-AAMC_Raw_Data_for_FY22[[#This Row],[Median]])/25)*15) + AAMC_Raw_Data_for_FY22[[#This Row],[Median]]","v":0},{"$f":"(((AAMC_Raw_Data_for_FY22[[#This Row],[75th]]-AAMC_Raw_Data_for_FY22[[#This Row],[Median]])/25)*20) + AAMC_Raw_Data_for_FY22[[#This Row],[Median]]","v":0},null,{"$f":"(((AAMC_Raw_Data_for_FY22[[#This Row],[75th]]-AAMC_Raw_Data_for_FY22[[#This Row],[Median]])/25)*30) + AAMC_Raw_Data_for_FY22[[#This Row],[Median]]","v":0},{"$f":"(((AAMC_Raw_Data_for_FY22[[#This Row],[75th]]-AAMC_Raw_Data_for_FY22[[#This Row],[Median]])/25)*35) + AAMC_Raw_Data_for_FY22[[#This Row],[Median]]","v":0},{"$f":"(((AAMC_Raw_Data_for_FY22[[#This Row],[75th]]-AAMC_Raw_Data_for_FY22[[#This Row],[Median]])/25)*40) + AAMC_Raw_Data_for_FY22[[#This Row],[Median]]","v":0}]
[{"$f":"AAMC_Raw_Data_for_FY22[[#This Row],[Source]]&AAMC_Raw_Data_for_FY22[[#This Row],[Type]]&AAMC_Raw_Data_for_FY22[[#This Row],[School Subset]]&AAMC_Raw_Data_for_FY22[[#This Row],[Rank]]&AAMC_Raw_Data_for_FY22[[#This Row],[Degree]]&AAMC_Raw_Data_for_FY22[[#This Row],[Department / Specialty]]&\"L\"","v":"AAMCAcademicPublicProfessorPhDFamily Medicine: Sports MedicineL"},"Family Medicine: Sports Medicine",2,"AAMC","Academic","Public","Professor","PhD","2021-2022",null,{"$f":"(((AAMC_Raw_Data_for_FY22[[#This Row],[Median]]-AAMC_Raw_Data_for_FY22[[#This Row],[25th]])/25)*5) + AAMC_Raw_Data_for_FY22[[#This Row],[25th]]","v":0},{"$f":"(((AAMC_Raw_Data_for_FY22[[#This Row],[Median]]-AAMC_Raw_Data_for_FY22[[#This Row],[25th]])/25)*10) + AAMC_Raw_Data_for_FY22[[#This Row],[25th]]","v":0},{"$f":"(((AAMC_Raw_Data_for_FY22[[#This Row],[Median]]-AAMC_Raw_Data_for_FY22[[#This Row],[25th]])/25)*15) + AAMC_Raw_Data_for_FY22[[#This Row],[25th]]","v":0},{"$f":"(((AAMC_Raw_Data_for_FY22[[#This Row],[Median]]-AAMC_Raw_Data_for_FY22[[#This Row],[25th]])/25)*20) + AAMC_Raw_Data_for_FY22[[#This Row],[25th]]","v":0},null,{"$f":"(((AAMC_Raw_Data_for_FY22[[#This Row],[75th]]-AAMC_Raw_Data_for_FY22[[#This Row],[Median]])/25)*5) + AAMC_Raw_Data_for_FY22[[#This Row],[Median]]","v":0},{"$f":"(((AAMC_Raw_Data_for_FY22[[#This Row],[75th]]-AAMC_Raw_Data_for_FY22[[#This Row],[Median]])/25)*10) + AAMC_Raw_Data_for_FY22[[#This Row],[Median]]","v":0},{"$f":"(((AAMC_Raw_Data_for_FY22[[#This Row],[75th]]-AAMC_Raw_Data_for_FY22[[#This Row],[Median]])/25)*15) + AAMC_Raw_Data_for_FY22[[#This Row],[Median]]","v":0},{"$f":"(((AAMC_Raw_Data_for_FY22[[#This Row],[75th]]-AAMC_Raw_Data_for_FY22[[#This Row],[Median]])/25)*20) + AAMC_Raw_Data_for_FY22[[#This Row],[Median]]","v":0},null,{"$f":"(((AAMC_Raw_Data_for_FY22[[#This Row],[75th]]-AAMC_Raw_Data_for_FY22[[#This Row],[Median]])/25)*30) + AAMC_Raw_Data_for_FY22[[#This Row],[Median]]","v":0},{"$f":"(((AAMC_Raw_Data_for_FY22[[#This Row],[75th]]-AAMC_Raw_Data_for_FY22[[#This Row],[Median]])/25)*35) + AAMC_Raw_Data_for_FY22[[#This Row],[Median]]","v":0},{"$f":"(((AAMC_Raw_Data_for_FY22[[#This Row],[75th]]-AAMC_Raw_Data_for_FY22[[#This Row],[Median]])/25)*40) + AAMC_Raw_Data_for_FY22[[#This Row],[Median]]","v":0}]
[{"$f":"AAMC_Raw_Data_for_FY22[[#This Row],[Source]]&AAMC_Raw_Data_for_FY22[[#This Row],[Type]]&AAMC_Raw_Data_for_FY22[[#This Row],[School Subset]]&AAMC_Raw_Data_for_FY22[[#This Row],[Rank]]&AAMC_Raw_Data_for_FY22[[#This Row],[Degree]]&AAMC_Raw_Data_for_FY22[[#This Row],[Department / Specialty]]&\"L\"","v":"AAMCAcademicPublicInstructorPhDFamily Medicine: OtherL"},"Family Medicine: Other",5,"AAMC","Academic","Public","Instructor","PhD","2021-2022",null,{"$f":"(((AAMC_Raw_Data_for_FY22[[#This Row],[Median]]-AAMC_Raw_Data_for_FY22[[#This Row],[25th]])/25)*5) + AAMC_Raw_Data_for_FY22[[#This Row],[25th]]","v":0},{"$f":"(((AAMC_Raw_Data_for_FY22[[#This Row],[Median]]-AAMC_Raw_Data_for_FY22[[#This Row],[25th]])/25)*10) + AAMC_Raw_Data_for_FY22[[#This Row],[25th]]","v":0},{"$f":"(((AAMC_Raw_Data_for_FY22[[#This Row],[Median]]-AAMC_Raw_Data_for_FY22[[#This Row],[25th]])/25)*15) + AAMC_Raw_Data_for_FY22[[#This Row],[25th]]","v":0},{"$f":"(((AAMC_Raw_Data_for_FY22[[#This Row],[Median]]-AAMC_Raw_Data_for_FY22[[#This Row],[25th]])/25)*20) + AAMC_Raw_Data_for_FY22[[#This Row],[25th]]","v":0},null,{"$f":"(((AAMC_Raw_Data_for_FY22[[#This Row],[75th]]-AAMC_Raw_Data_for_FY22[[#This Row],[Median]])/25)*5) + AAMC_Raw_Data_for_FY22[[#This Row],[Median]]","v":0},{"$f":"(((AAMC_Raw_Data_for_FY22[[#This Row],[75th]]-AAMC_Raw_Data_for_FY22[[#This Row],[Median]])/25)*10) + AAMC_Raw_Data_for_FY22[[#This Row],[Median]]","v":0},{"$f":"(((AAMC_Raw_Data_for_FY22[[#This Row],[75th]]-AAMC_Raw_Data_for_FY22[[#This Row],[Median]])/25)*15) + AAMC_Raw_Data_for_FY22[[#This Row],[Median]]","v":0},{"$f":"(((AAMC_Raw_Data_for_FY22[[#This Row],[75th]]-AAMC_Raw_Data_for_FY22[[#This Row],[Median]])/25)*20) + AAMC_Raw_Data_for_FY22[[#This Row],[Median]]","v":0},null,{"$f":"(((AAMC_Raw_Data_for_FY22[[#This Row],[75th]]-AAMC_Raw_Data_for_FY22[[#This Row],[Median]])/25)*30) + AAMC_Raw_Data_for_FY22[[#This Row],[Median]]","v":0},{"$f":"(((AAMC_Raw_Data_for_FY22[[#This Row],[75th]]-AAMC_Raw_Data_for_FY22[[#This Row],[Median]])/25)*35) + AAMC_Raw_Data_for_FY22[[#This Row],[Median]]","v":0},{"$f":"(((AAMC_Raw_Data_for_FY22[[#This Row],[75th]]-AAMC_Raw_Data_for_FY22[[#This Row],[Median]])/25)*40) + AAMC_Raw_Data_for_FY22[[#This Row],[Median]]","v":0}]
[{"$f":"AAMC_Raw_Data_for_FY22[[#This Row],[Source]]&AAMC_Raw_Data_for_FY22[[#This Row],[Type]]&AAMC_Raw_Data_for_FY22[[#This Row],[School Subset]]&AAMC_Raw_Data_for_FY22[[#This Row],[Rank]]&AAMC_Raw_Data_for_FY22[[#This Row],[Degree]]&AAMC_Raw_Data_for_FY22[[#This Row],[Department / Specialty]]&\"L\"","v":"AAMCAcademicPublicAssistantPhDFamily Medicine: OtherL"},"Family Medicine: Other",4,"AAMC","Academic","Public","Assistant","PhD","2021-2022",97093,{"$f":"(((AAMC_Raw_Data_for_FY22[[#This Row],[Median]]-AAMC_Raw_Data_for_FY22[[#This Row],[25th]])/25)*5) + AAMC_Raw_Data_for_FY22[[#This Row],[25th]]","v":99174.399999999994},{"$f":"(((AAMC_Raw_Data_for_FY22[[#This Row],[Median]]-AAMC_Raw_Data_for_FY22[[#This Row],[25th]])/25)*10) + AAMC_Raw_Data_for_FY22[[#This Row],[25th]]","v":101255.8},{"$f":"(((AAMC_Raw_Data_for_FY22[[#This Row],[Median]]-AAMC_Raw_Data_for_FY22[[#This Row],[25th]])/25)*15) + AAMC_Raw_Data_for_FY22[[#This Row],[25th]]","v":103337.2},{"$f":"(((AAMC_Raw_Data_for_FY22[[#This Row],[Median]]-AAMC_Raw_Data_for_FY22[[#This Row],[25th]])/25)*20) + AAMC_Raw_Data_for_FY22[[#This Row],[25th]]","v":105418.6},107500,{"$f":"(((AAMC_Raw_Data_for_FY22[[#This Row],[75th]]-AAMC_Raw_Data_for_FY22[[#This Row],[Median]])/25)*5) + AAMC_Raw_Data_for_FY22[[#This Row],[Median]]","v":109219},{"$f":"(((AAMC_Raw_Data_for_FY22[[#This Row],[75th]]-AAMC_Raw_Data_for_FY22[[#This Row],[Median]])/25)*10) + AAMC_Raw_Data_for_FY22[[#This Row],[Median]]","v":110938},{"$f":"(((AAMC_Raw_Data_for_FY22[[#This Row],[75th]]-AAMC_Raw_Data_for_FY22[[#This Row],[Median]])/25)*15) + AAMC_Raw_Data_for_FY22[[#This Row],[Median]]","v":112657},{"$f":"(((AAMC_Raw_Data_for_FY22[[#This Row],[75th]]-AAMC_Raw_Data_for_FY22[[#This Row],[Median]])/25)*20) + AAMC_Raw_Data_for_FY22[[#This Row],[Median]]","v":114376},116095,{"$f":"(((AAMC_Raw_Data_for_FY22[[#This Row],[75th]]-AAMC_Raw_Data_for_FY22[[#This Row],[Median]])/25)*30) + AAMC_Raw_Data_for_FY22[[#This Row],[Median]]","v":117814},{"$f":"(((AAMC_Raw_Data_for_FY22[[#This Row],[75th]]-AAMC_Raw_Data_for_FY22[[#This Row],[Median]])/25)*35) + AAMC_Raw_Data_for_FY22[[#This Row],[Median]]","v":119533},{"$f":"(((AAMC_Raw_Data_for_FY22[[#This Row],[75th]]-AAMC_Raw_Data_for_FY22[[#This Row],[Median]])/25)*40) + AAMC_Raw_Data_for_FY22[[#This Row],[Median]]","v":121252}]
[{"$f":"AAMC_Raw_Data_for_FY22[[#This Row],[Source]]&AAMC_Raw_Data_for_FY22[[#This Row],[Type]]&AAMC_Raw_Data_for_FY22[[#This Row],[School Subset]]&AAMC_Raw_Data_for_FY22[[#This Row],[Rank]]&AAMC_Raw_Data_for_FY22[[#This Row],[Degree]]&AAMC_Raw_Data_for_FY22[[#This Row],[Department / Specialty]]&\"L\"","v":"AAMCAcademicPublicAssociatePhDFamily Medicine: OtherL"},"Family Medicine: Other",3,"AAMC","Academic","Public","Associate","PhD","2021-2022",122000,{"$f":"(((AAMC_Raw_Data_for_FY22[[#This Row],[Median]]-AAMC_Raw_Data_for_FY22[[#This Row],[25th]])/25)*5) + AAMC_Raw_Data_for_FY22[[#This Row],[25th]]","v":123389.4},{"$f":"(((AAMC_Raw_Data_for_FY22[[#This Row],[Median]]-AAMC_Raw_Data_for_FY22[[#This Row],[25th]])/25)*10) + AAMC_Raw_Data_for_FY22[[#This Row],[25th]]","v":124778.8},{"$f":"(((AAMC_Raw_Data_for_FY22[[#This Row],[Median]]-AAMC_Raw_Data_for_FY22[[#This Row],[25th]])/25)*15) + AAMC_Raw_Data_for_FY22[[#This Row],[25th]]","v":126168.2},{"$f":"(((AAMC_Raw_Data_for_FY22[[#This Row],[Median]]-AAMC_Raw_Data_for_FY22[[#This Row],[25th]])/25)*20) + AAMC_Raw_Data_for_FY22[[#This Row],[25th]]","v":127557.6},128947,{"$f":"(((AAMC_Raw_Data_for_FY22[[#This Row],[75th]]-AAMC_Raw_Data_for_FY22[[#This Row],[Median]])/25)*5) + AAMC_Raw_Data_for_FY22[[#This Row],[Median]]","v":131889.20000000001},{"$f":"(((AAMC_Raw_Data_for_FY22[[#This Row],[75th]]-AAMC_Raw_Data_for_FY22[[#This Row],[Median]])/25)*10) + AAMC_Raw_Data_for_FY22[[#This Row],[Median]]","v":134831.4},{"$f":"(((AAMC_Raw_Data_for_FY22[[#This Row],[75th]]-AAMC_Raw_Data_for_FY22[[#This Row],[Median]])/25)*15) + AAMC_Raw_Data_for_FY22[[#This Row],[Median]]","v":137773.6},{"$f":"(((AAMC_Raw_Data_for_FY22[[#This Row],[75th]]-AAMC_Raw_Data_for_FY22[[#This Row],[Median]])/25)*20) + AAMC_Raw_Data_for_FY22[[#This Row],[Median]]","v":140715.79999999999},143658,{"$f":"(((AAMC_Raw_Data_for_FY22[[#This Row],[75th]]-AAMC_Raw_Data_for_FY22[[#This Row],[Median]])/25)*30) + AAMC_Raw_Data_for_FY22[[#This Row],[Median]]","v":146600.20000000001},{"$f":"(((AAMC_Raw_Data_for_FY22[[#This Row],[75th]]-AAMC_Raw_Data_for_FY22[[#This Row],[Median]])/25)*35) + AAMC_Raw_Data_for_FY22[[#This Row],[Median]]","v":149542.39999999999},{"$f":"(((AAMC_Raw_Data_for_FY22[[#This Row],[75th]]-AAMC_Raw_Data_for_FY22[[#This Row],[Median]])/25)*40) + AAMC_Raw_Data_for_FY22[[#This Row],[Median]]","v":152484.6}]
[{"$f":"AAMC_Raw_Data_for_FY22[[#This Row],[Source]]&AAMC_Raw_Data_for_FY22[[#This Row],[Type]]&AAMC_Raw_Data_for_FY22[[#This Row],[School Subset]]&AAMC_Raw_Data_for_FY22[[#This Row],[Rank]]&AAMC_Raw_Data_for_FY22[[#This Row],[Degree]]&AAMC_Raw_Data_for_FY22[[#This Row],[Department / Specialty]]&\"L\"","v":"AAMCAcademicPublicProfessorPhDFamily Medicine: OtherL"},"Family Medicine: Other",2,"AAMC","Academic","Public","Professor","PhD","2021-2022",188436,{"$f":"(((AAMC_Raw_Data_for_FY22[[#This Row],[Median]]-AAMC_Raw_Data_for_FY22[[#This Row],[25th]])/25)*5) + AAMC_Raw_Data_for_FY22[[#This Row],[25th]]","v":195512},{"$f":"(((AAMC_Raw_Data_for_FY22[[#This Row],[Median]]-AAMC_Raw_Data_for_FY22[[#This Row],[25th]])/25)*10) + AAMC_Raw_Data_for_FY22[[#This Row],[25th]]","v":202588},{"$f":"(((AAMC_Raw_Data_for_FY22[[#This Row],[Median]]-AAMC_Raw_Data_for_FY22[[#This Row],[25th]])/25)*15) + AAMC_Raw_Data_for_FY22[[#This Row],[25th]]","v":209664},{"$f":"(((AAMC_Raw_Data_for_FY22[[#This Row],[Median]]-AAMC_Raw_Data_for_FY22[[#This Row],[25th]])/25)*20) + AAMC_Raw_Data_for_FY22[[#This Row],[25th]]","v":216740},223816,{"$f":"(((AAMC_Raw_Data_for_FY22[[#This Row],[75th]]-AAMC_Raw_Data_for_FY22[[#This Row],[Median]])/25)*5) + AAMC_Raw_Data_for_FY22[[#This Row],[Median]]","v":231848.2},{"$f":"(((AAMC_Raw_Data_for_FY22[[#This Row],[75th]]-AAMC_Raw_Data_for_FY22[[#This Row],[Median]])/25)*10) + AAMC_Raw_Data_for_FY22[[#This Row],[Median]]","v":239880.4},{"$f":"(((AAMC_Raw_Data_for_FY22[[#This Row],[75th]]-AAMC_Raw_Data_for_FY22[[#This Row],[Median]])/25)*15) + AAMC_Raw_Data_for_FY22[[#This Row],[Median]]","v":247912.6},{"$f":"(((AAMC_Raw_Data_for_FY22[[#This Row],[75th]]-AAMC_Raw_Data_for_FY22[[#This Row],[Median]])/25)*20) + AAMC_Raw_Data_for_FY22[[#This Row],[Median]]","v":255944.8},263977,{"$f":"(((AAMC_Raw_Data_for_FY22[[#This Row],[75th]]-AAMC_Raw_Data_for_FY22[[#This Row],[Median]])/25)*30) + AAMC_Raw_Data_for_FY22[[#This Row],[Median]]","v":272009.2},{"$f":"(((AAMC_Raw_Data_for_FY22[[#This Row],[75th]]-AAMC_Raw_Data_for_FY22[[#This Row],[Median]])/25)*35) + AAMC_Raw_Data_for_FY22[[#This Row],[Median]]","v":280041.40000000002},{"$f":"(((AAMC_Raw_Data_for_FY22[[#This Row],[75th]]-AAMC_Raw_Data_for_FY22[[#This Row],[Median]])/25)*40) + AAMC_Raw_Data_for_FY22[[#This Row],[Median]]","v":288073.59999999998}]
[{"$f":"AAMC_Raw_Data_for_FY22[[#This Row],[Source]]&AAMC_Raw_Data_for_FY22[[#This Row],[Type]]&AAMC_Raw_Data_for_FY22[[#This Row],[School Subset]]&AAMC_Raw_Data_for_FY22[[#This Row],[Rank]]&AAMC_Raw_Data_for_FY22[[#This Row],[Degree]]&AAMC_Raw_Data_for_FY22[[#This Row],[Department / Specialty]]&\"L\"","v":"AAMCAcademicPublicChairPhDFamily Medicine: OtherL"},"Family Medicine: Other",1,"AAMC","Academic","Public","Chair","PhD","2021-2022",null,{"$f":"(((AAMC_Raw_Data_for_FY22[[#This Row],[Median]]-AAMC_Raw_Data_for_FY22[[#This Row],[25th]])/25)*5) + AAMC_Raw_Data_for_FY22[[#This Row],[25th]]","v":0},{"$f":"(((AAMC_Raw_Data_for_FY22[[#This Row],[Median]]-AAMC_Raw_Data_for_FY22[[#This Row],[25th]])/25)*10) + AAMC_Raw_Data_for_FY22[[#This Row],[25th]]","v":0},{"$f":"(((AAMC_Raw_Data_for_FY22[[#This Row],[Median]]-AAMC_Raw_Data_for_FY22[[#This Row],[25th]])/25)*15) + AAMC_Raw_Data_for_FY22[[#This Row],[25th]]","v":0},{"$f":"(((AAMC_Raw_Data_for_FY22[[#This Row],[Median]]-AAMC_Raw_Data_for_FY22[[#This Row],[25th]])/25)*20) + AAMC_Raw_Data_for_FY22[[#This Row],[25th]]","v":0},null,{"$f":"(((AAMC_Raw_Data_for_FY22[[#This Row],[75th]]-AAMC_Raw_Data_for_FY22[[#This Row],[Median]])/25)*5) + AAMC_Raw_Data_for_FY22[[#This Row],[Median]]","v":0},{"$f":"(((AAMC_Raw_Data_for_FY22[[#This Row],[75th]]-AAMC_Raw_Data_for_FY22[[#This Row],[Median]])/25)*10) + AAMC_Raw_Data_for_FY22[[#This Row],[Median]]","v":0},{"$f":"(((AAMC_Raw_Data_for_FY22[[#This Row],[75th]]-AAMC_Raw_Data_for_FY22[[#This Row],[Median]])/25)*15) + AAMC_Raw_Data_for_FY22[[#This Row],[Median]]","v":0},{"$f":"(((AAMC_Raw_Data_for_FY22[[#This Row],[75th]]-AAMC_Raw_Data_for_FY22[[#This Row],[Median]])/25)*20) + AAMC_Raw_Data_for_FY22[[#This Row],[Median]]","v":0},null,{"$f":"(((AAMC_Raw_Data_for_FY22[[#This Row],[75th]]-AAMC_Raw_Data_for_FY22[[#This Row],[Median]])/25)*30) + AAMC_Raw_Data_for_FY22[[#This Row],[Median]]","v":0},{"$f":"(((AAMC_Raw_Data_for_FY22[[#This Row],[75th]]-AAMC_Raw_Data_for_FY22[[#This Row],[Median]])/25)*35) + AAMC_Raw_Data_for_FY22[[#This Row],[Median]]","v":0},{"$f":"(((AAMC_Raw_Data_for_FY22[[#This Row],[75th]]-AAMC_Raw_Data_for_FY22[[#This Row],[Median]])/25)*40) + AAMC_Raw_Data_for_FY22[[#This Row],[Median]]","v":0}]
[{"$f":"AAMC_Raw_Data_for_FY22[[#This Row],[Source]]&AAMC_Raw_Data_for_FY22[[#This Row],[Type]]&AAMC_Raw_Data_for_FY22[[#This Row],[School Subset]]&AAMC_Raw_Data_for_FY22[[#This Row],[Rank]]&AAMC_Raw_Data_for_FY22[[#This Row],[Degree]]&AAMC_Raw_Data_for_FY22[[#This Row],[Department / Specialty]]&\"L\"","v":"AAMCAcademicPublicInstructorPhDMedicine TotalL"},"Medicine Total",5,"AAMC","Academic","Public","Instructor","PhD","2021-2022",61988,{"$f":"(((AAMC_Raw_Data_for_FY22[[#This Row],[Median]]-AAMC_Raw_Data_for_FY22[[#This Row],[25th]])/25)*5) + AAMC_Raw_Data_for_FY22[[#This Row],[25th]]","v":64501.8},{"$f":"(((AAMC_Raw_Data_for_FY22[[#This Row],[Median]]-AAMC_Raw_Data_for_FY22[[#This Row],[25th]])/25)*10) + AAMC_Raw_Data_for_FY22[[#This Row],[25th]]","v":67015.600000000006},{"$f":"(((AAMC_Raw_Data_for_FY22[[#This Row],[Median]]-AAMC_Raw_Data_for_FY22[[#This Row],[25th]])/25)*15) + AAMC_Raw_Data_for_FY22[[#This Row],[25th]]","v":69529.399999999994},{"$f":"(((AAMC_Raw_Data_for_FY22[[#This Row],[Median]]-AAMC_Raw_Data_for_FY22[[#This Row],[25th]])/25)*20) + AAMC_Raw_Data_for_FY22[[#This Row],[25th]]","v":72043.199999999997},74557,{"$f":"(((AAMC_Raw_Data_for_FY22[[#This Row],[75th]]-AAMC_Raw_Data_for_FY22[[#This Row],[Median]])/25)*5) + AAMC_Raw_Data_for_FY22[[#This Row],[Median]]","v":77701.399999999994},{"$f":"(((AAMC_Raw_Data_for_FY22[[#This Row],[75th]]-AAMC_Raw_Data_for_FY22[[#This Row],[Median]])/25)*10) + AAMC_Raw_Data_for_FY22[[#This Row],[Median]]","v":80845.8},{"$f":"(((AAMC_Raw_Data_for_FY22[[#This Row],[75th]]-AAMC_Raw_Data_for_FY22[[#This Row],[Median]])/25)*15) + AAMC_Raw_Data_for_FY22[[#This Row],[Median]]","v":83990.2},{"$f":"(((AAMC_Raw_Data_for_FY22[[#This Row],[75th]]-AAMC_Raw_Data_for_FY22[[#This Row],[Median]])/25)*20) + AAMC_Raw_Data_for_FY22[[#This Row],[Median]]","v":87134.6},90279,{"$f":"(((AAMC_Raw_Data_for_FY22[[#This Row],[75th]]-AAMC_Raw_Data_for_FY22[[#This Row],[Median]])/25)*30) + AAMC_Raw_Data_for_FY22[[#This Row],[Median]]","v":93423.4},{"$f":"(((AAMC_Raw_Data_for_FY22[[#This Row],[75th]]-AAMC_Raw_Data_for_FY22[[#This Row],[Median]])/25)*35) + AAMC_Raw_Data_for_FY22[[#This Row],[Median]]","v":96567.8},{"$f":"(((AAMC_Raw_Data_for_FY22[[#This Row],[75th]]-AAMC_Raw_Data_for_FY22[[#This Row],[Median]])/25)*40) + AAMC_Raw_Data_for_FY22[[#This Row],[Median]]","v":99712.2}]
[{"$f":"AAMC_Raw_Data_for_FY22[[#This Row],[Source]]&AAMC_Raw_Data_for_FY22[[#This Row],[Type]]&AAMC_Raw_Data_for_FY22[[#This Row],[School Subset]]&AAMC_Raw_Data_for_FY22[[#This Row],[Rank]]&AAMC_Raw_Data_for_FY22[[#This Row],[Degree]]&AAMC_Raw_Data_for_FY22[[#This Row],[Department / Specialty]]&\"L\"","v":"AAMCAcademicPublicAssistantPhDMedicine TotalL"},"Medicine Total",4,"AAMC","Academic","Public","Assistant","PhD","2021-2022",85143,{"$f":"(((AAMC_Raw_Data_for_FY22[[#This Row],[Median]]-AAMC_Raw_Data_for_FY22[[#This Row],[25th]])/25)*5) + AAMC_Raw_Data_for_FY22[[#This Row],[25th]]","v":88794},{"$f":"(((AAMC_Raw_Data_for_FY22[[#This Row],[Median]]-AAMC_Raw_Data_for_FY22[[#This Row],[25th]])/25)*10) + AAMC_Raw_Data_for_FY22[[#This Row],[25th]]","v":92445},{"$f":"(((AAMC_Raw_Data_for_FY22[[#This Row],[Median]]-AAMC_Raw_Data_for_FY22[[#This Row],[25th]])/25)*15) + AAMC_Raw_Data_for_FY22[[#This Row],[25th]]","v":96096},{"$f":"(((AAMC_Raw_Data_for_FY22[[#This Row],[Median]]-AAMC_Raw_Data_for_FY22[[#This Row],[25th]])/25)*20) + AAMC_Raw_Data_for_FY22[[#This Row],[25th]]","v":99747},103398,{"$f":"(((AAMC_Raw_Data_for_FY22[[#This Row],[75th]]-AAMC_Raw_Data_for_FY22[[#This Row],[Median]])/25)*5) + AAMC_Raw_Data_for_FY22[[#This Row],[Median]]","v":107256.2},{"$f":"(((AAMC_Raw_Data_for_FY22[[#This Row],[75th]]-AAMC_Raw_Data_for_FY22[[#This Row],[Median]])/25)*10) + AAMC_Raw_Data_for_FY22[[#This Row],[Median]]","v":111114.4},{"$f":"(((AAMC_Raw_Data_for_FY22[[#This Row],[75th]]-AAMC_Raw_Data_for_FY22[[#This Row],[Median]])/25)*15) + AAMC_Raw_Data_for_FY22[[#This Row],[Median]]","v":114972.6},{"$f":"(((AAMC_Raw_Data_for_FY22[[#This Row],[75th]]-AAMC_Raw_Data_for_FY22[[#This Row],[Median]])/25)*20) + AAMC_Raw_Data_for_FY22[[#This Row],[Median]]","v":118830.8},122689,{"$f":"(((AAMC_Raw_Data_for_FY22[[#This Row],[75th]]-AAMC_Raw_Data_for_FY22[[#This Row],[Median]])/25)*30) + AAMC_Raw_Data_for_FY22[[#This Row],[Median]]","v":126547.2},{"$f":"(((AAMC_Raw_Data_for_FY22[[#This Row],[75th]]-AAMC_Raw_Data_for_FY22[[#This Row],[Median]])/25)*35) + AAMC_Raw_Data_for_FY22[[#This Row],[Median]]","v":130405.4},{"$f":"(((AAMC_Raw_Data_for_FY22[[#This Row],[75th]]-AAMC_Raw_Data_for_FY22[[#This Row],[Median]])/25)*40) + AAMC_Raw_Data_for_FY22[[#This Row],[Median]]","v":134263.6}]
[{"$f":"AAMC_Raw_Data_for_FY22[[#This Row],[Source]]&AAMC_Raw_Data_for_FY22[[#This Row],[Type]]&AAMC_Raw_Data_for_FY22[[#This Row],[School Subset]]&AAMC_Raw_Data_for_FY22[[#This Row],[Rank]]&AAMC_Raw_Data_for_FY22[[#This Row],[Degree]]&AAMC_Raw_Data_for_FY22[[#This Row],[Department / Specialty]]&\"L\"","v":"AAMCAcademicPublicAssociatePhDMedicine TotalL"},"Medicine Total",3,"AAMC","Academic","Public","Associate","PhD","2021-2022",111792,{"$f":"(((AAMC_Raw_Data_for_FY22[[#This Row],[Median]]-AAMC_Raw_Data_for_FY22[[#This Row],[25th]])/25)*5) + AAMC_Raw_Data_for_FY22[[#This Row],[25th]]","v":116588},{"$f":"(((AAMC_Raw_Data_for_FY22[[#This Row],[Median]]-AAMC_Raw_Data_for_FY22[[#This Row],[25th]])/25)*10) + AAMC_Raw_Data_for_FY22[[#This Row],[25th]]","v":121384},{"$f":"(((AAMC_Raw_Data_for_FY22[[#This Row],[Median]]-AAMC_Raw_Data_for_FY22[[#This Row],[25th]])/25)*15) + AAMC_Raw_Data_for_FY22[[#This Row],[25th]]","v":126180},{"$f":"(((AAMC_Raw_Data_for_FY22[[#This Row],[Median]]-AAMC_Raw_Data_for_FY22[[#This Row],[25th]])/25)*20) + AAMC_Raw_Data_for_FY22[[#This Row],[25th]]","v":130976},135772,{"$f":"(((AAMC_Raw_Data_for_FY22[[#This Row],[75th]]-AAMC_Raw_Data_for_FY22[[#This Row],[Median]])/25)*5) + AAMC_Raw_Data_for_FY22[[#This Row],[Median]]","v":140618.20000000001},{"$f":"(((AAMC_Raw_Data_for_FY22[[#This Row],[75th]]-AAMC_Raw_Data_for_FY22[[#This Row],[Median]])/25)*10) + AAMC_Raw_Data_for_FY22[[#This Row],[Median]]","v":145464.4},{"$f":"(((AAMC_Raw_Data_for_FY22[[#This Row],[75th]]-AAMC_Raw_Data_for_FY22[[#This Row],[Median]])/25)*15) + AAMC_Raw_Data_for_FY22[[#This Row],[Median]]","v":150310.6},{"$f":"(((AAMC_Raw_Data_for_FY22[[#This Row],[75th]]-AAMC_Raw_Data_for_FY22[[#This Row],[Median]])/25)*20) + AAMC_Raw_Data_for_FY22[[#This Row],[Median]]","v":155156.79999999999},160003,{"$f":"(((AAMC_Raw_Data_for_FY22[[#This Row],[75th]]-AAMC_Raw_Data_for_FY22[[#This Row],[Median]])/25)*30) + AAMC_Raw_Data_for_FY22[[#This Row],[Median]]","v":164849.20000000001},{"$f":"(((AAMC_Raw_Data_for_FY22[[#This Row],[75th]]-AAMC_Raw_Data_for_FY22[[#This Row],[Median]])/25)*35) + AAMC_Raw_Data_for_FY22[[#This Row],[Median]]","v":169695.4},{"$f":"(((AAMC_Raw_Data_for_FY22[[#This Row],[75th]]-AAMC_Raw_Data_for_FY22[[#This Row],[Median]])/25)*40) + AAMC_Raw_Data_for_FY22[[#This Row],[Median]]","v":174541.6}]
[{"$f":"AAMC_Raw_Data_for_FY22[[#This Row],[Source]]&AAMC_Raw_Data_for_FY22[[#This Row],[Type]]&AAMC_Raw_Data_for_FY22[[#This Row],[School Subset]]&AAMC_Raw_Data_for_FY22[[#This Row],[Rank]]&AAMC_Raw_Data_for_FY22[[#This Row],[Degree]]&AAMC_Raw_Data_for_FY22[[#This Row],[Department / Specialty]]&\"L\"","v":"AAMCAcademicPublicProfessorPhDMedicine TotalL"},"Medicine Total",2,"AAMC","Academic","Public","Professor","PhD","2021-2022",164493,{"$f":"(((AAMC_Raw_Data_for_FY22[[#This Row],[Median]]-AAMC_Raw_Data_for_FY22[[#This Row],[25th]])/25)*5) + AAMC_Raw_Data_for_FY22[[#This Row],[25th]]","v":172222},{"$f":"(((AAMC_Raw_Data_for_FY22[[#This Row],[Median]]-AAMC_Raw_Data_for_FY22[[#This Row],[25th]])/25)*10) + AAMC_Raw_Data_for_FY22[[#This Row],[25th]]","v":179951},{"$f":"(((AAMC_Raw_Data_for_FY22[[#This Row],[Median]]-AAMC_Raw_Data_for_FY22[[#This Row],[25th]])/25)*15) + AAMC_Raw_Data_for_FY22[[#This Row],[25th]]","v":187680},{"$f":"(((AAMC_Raw_Data_for_FY22[[#This Row],[Median]]-AAMC_Raw_Data_for_FY22[[#This Row],[25th]])/25)*20) + AAMC_Raw_Data_for_FY22[[#This Row],[25th]]","v":195409},203138,{"$f":"(((AAMC_Raw_Data_for_FY22[[#This Row],[75th]]-AAMC_Raw_Data_for_FY22[[#This Row],[Median]])/25)*5) + AAMC_Raw_Data_for_FY22[[#This Row],[Median]]","v":212483.20000000001},{"$f":"(((AAMC_Raw_Data_for_FY22[[#This Row],[75th]]-AAMC_Raw_Data_for_FY22[[#This Row],[Median]])/25)*10) + AAMC_Raw_Data_for_FY22[[#This Row],[Median]]","v":221828.4},{"$f":"(((AAMC_Raw_Data_for_FY22[[#This Row],[75th]]-AAMC_Raw_Data_for_FY22[[#This Row],[Median]])/25)*15) + AAMC_Raw_Data_for_FY22[[#This Row],[Median]]","v":231173.6},{"$f":"(((AAMC_Raw_Data_for_FY22[[#This Row],[75th]]-AAMC_Raw_Data_for_FY22[[#This Row],[Median]])/25)*20) + AAMC_Raw_Data_for_FY22[[#This Row],[Median]]","v":240518.8},249864,{"$f":"(((AAMC_Raw_Data_for_FY22[[#This Row],[75th]]-AAMC_Raw_Data_for_FY22[[#This Row],[Median]])/25)*30) + AAMC_Raw_Data_for_FY22[[#This Row],[Median]]","v":259209.2},{"$f":"(((AAMC_Raw_Data_for_FY22[[#This Row],[75th]]-AAMC_Raw_Data_for_FY22[[#This Row],[Median]])/25)*35) + AAMC_Raw_Data_for_FY22[[#This Row],[Median]]","v":268554.40000000002},{"$f":"(((AAMC_Raw_Data_for_FY22[[#This Row],[75th]]-AAMC_Raw_Data_for_FY22[[#This Row],[Median]])/25)*40) + AAMC_Raw_Data_for_FY22[[#This Row],[Median]]","v":277899.59999999998}]
[{"$f":"AAMC_Raw_Data_for_FY22[[#This Row],[Source]]&AAMC_Raw_Data_for_FY22[[#This Row],[Type]]&AAMC_Raw_Data_for_FY22[[#This Row],[School Subset]]&AAMC_Raw_Data_for_FY22[[#This Row],[Rank]]&AAMC_Raw_Data_for_FY22[[#This Row],[Degree]]&AAMC_Raw_Data_for_FY22[[#This Row],[Department / Specialty]]&\"L\"","v":"AAMCAcademicPublicChiefPhDMedicine TotalL"},"Medicine Total",6,"AAMC","Academic","Public","Chief","PhD","2021-2022",267561,{"$f":"(((AAMC_Raw_Data_for_FY22[[#This Row],[Median]]-AAMC_Raw_Data_for_FY22[[#This Row],[25th]])/25)*5) + AAMC_Raw_Data_for_FY22[[#This Row],[25th]]","v":274029.2},{"$f":"(((AAMC_Raw_Data_for_FY22[[#This Row],[Median]]-AAMC_Raw_Data_for_FY22[[#This Row],[25th]])/25)*10) + AAMC_Raw_Data_for_FY22[[#This Row],[25th]]","v":280497.40000000002},{"$f":"(((AAMC_Raw_Data_for_FY22[[#This Row],[Median]]-AAMC_Raw_Data_for_FY22[[#This Row],[25th]])/25)*15) + AAMC_Raw_Data_for_FY22[[#This Row],[25th]]","v":286965.59999999998},{"$f":"(((AAMC_Raw_Data_for_FY22[[#This Row],[Median]]-AAMC_Raw_Data_for_FY22[[#This Row],[25th]])/25)*20) + AAMC_Raw_Data_for_FY22[[#This Row],[25th]]","v":293433.8},299902,{"$f":"(((AAMC_Raw_Data_for_FY22[[#This Row],[75th]]-AAMC_Raw_Data_for_FY22[[#This Row],[Median]])/25)*5) + AAMC_Raw_Data_for_FY22[[#This Row],[Median]]","v":306547},{"$f":"(((AAMC_Raw_Data_for_FY22[[#This Row],[75th]]-AAMC_Raw_Data_for_FY22[[#This Row],[Median]])/25)*10) + AAMC_Raw_Data_for_FY22[[#This Row],[Median]]","v":313192},{"$f":"(((AAMC_Raw_Data_for_FY22[[#This Row],[75th]]-AAMC_Raw_Data_for_FY22[[#This Row],[Median]])/25)*15) + AAMC_Raw_Data_for_FY22[[#This Row],[Median]]","v":319837},{"$f":"(((AAMC_Raw_Data_for_FY22[[#This Row],[75th]]-AAMC_Raw_Data_for_FY22[[#This Row],[Median]])/25)*20) + AAMC_Raw_Data_for_FY22[[#This Row],[Median]]","v":326482},333127,{"$f":"(((AAMC_Raw_Data_for_FY22[[#This Row],[75th]]-AAMC_Raw_Data_for_FY22[[#This Row],[Median]])/25)*30) + AAMC_Raw_Data_for_FY22[[#This Row],[Median]]","v":339772},{"$f":"(((AAMC_Raw_Data_for_FY22[[#This Row],[75th]]-AAMC_Raw_Data_for_FY22[[#This Row],[Median]])/25)*35) + AAMC_Raw_Data_for_FY22[[#This Row],[Median]]","v":346417},{"$f":"(((AAMC_Raw_Data_for_FY22[[#This Row],[75th]]-AAMC_Raw_Data_for_FY22[[#This Row],[Median]])/25)*40) + AAMC_Raw_Data_for_FY22[[#This Row],[Median]]","v":353062}]
[{"$f":"AAMC_Raw_Data_for_FY22[[#This Row],[Source]]&AAMC_Raw_Data_for_FY22[[#This Row],[Type]]&AAMC_Raw_Data_for_FY22[[#This Row],[School Subset]]&AAMC_Raw_Data_for_FY22[[#This Row],[Rank]]&AAMC_Raw_Data_for_FY22[[#This Row],[Degree]]&AAMC_Raw_Data_for_FY22[[#This Row],[Department / Specialty]]&\"L\"","v":"AAMCAcademicPublicChairPhDMedicine TotalL"},"Medicine Total",1,"AAMC","Academic","Public","Chair","PhD","2021-2022",356431,{"$f":"(((AAMC_Raw_Data_for_FY22[[#This Row],[Median]]-AAMC_Raw_Data_for_FY22[[#This Row],[25th]])/25)*5) + AAMC_Raw_Data_for_FY22[[#This Row],[25th]]","v":368475.8},{"$f":"(((AAMC_Raw_Data_for_FY22[[#This Row],[Median]]-AAMC_Raw_Data_for_FY22[[#This Row],[25th]])/25)*10) + AAMC_Raw_Data_for_FY22[[#This Row],[25th]]","v":380520.6},{"$f":"(((AAMC_Raw_Data_for_FY22[[#This Row],[Median]]-AAMC_Raw_Data_for_FY22[[#This Row],[25th]])/25)*15) + AAMC_Raw_Data_for_FY22[[#This Row],[25th]]","v":392565.4},{"$f":"(((AAMC_Raw_Data_for_FY22[[#This Row],[Median]]-AAMC_Raw_Data_for_FY22[[#This Row],[25th]])/25)*20) + AAMC_Raw_Data_for_FY22[[#This Row],[25th]]","v":404610.2},416655,{"$f":"(((AAMC_Raw_Data_for_FY22[[#This Row],[75th]]-AAMC_Raw_Data_for_FY22[[#This Row],[Median]])/25)*5) + AAMC_Raw_Data_for_FY22[[#This Row],[Median]]","v":417703},{"$f":"(((AAMC_Raw_Data_for_FY22[[#This Row],[75th]]-AAMC_Raw_Data_for_FY22[[#This Row],[Median]])/25)*10) + AAMC_Raw_Data_for_FY22[[#This Row],[Median]]","v":418751},{"$f":"(((AAMC_Raw_Data_for_FY22[[#This Row],[75th]]-AAMC_Raw_Data_for_FY22[[#This Row],[Median]])/25)*15) + AAMC_Raw_Data_for_FY22[[#This Row],[Median]]","v":419799},{"$f":"(((AAMC_Raw_Data_for_FY22[[#This Row],[75th]]-AAMC_Raw_Data_for_FY22[[#This Row],[Median]])/25)*20) + AAMC_Raw_Data_for_FY22[[#This Row],[Median]]","v":420847},421895,{"$f":"(((AAMC_Raw_Data_for_FY22[[#This Row],[75th]]-AAMC_Raw_Data_for_FY22[[#This Row],[Median]])/25)*30) + AAMC_Raw_Data_for_FY22[[#This Row],[Median]]","v":422943},{"$f":"(((AAMC_Raw_Data_for_FY22[[#This Row],[75th]]-AAMC_Raw_Data_for_FY22[[#This Row],[Median]])/25)*35) + AAMC_Raw_Data_for_FY22[[#This Row],[Median]]","v":423991},{"$f":"(((AAMC_Raw_Data_for_FY22[[#This Row],[75th]]-AAMC_Raw_Data_for_FY22[[#This Row],[Median]])/25)*40) + AAMC_Raw_Data_for_FY22[[#This Row],[Median]]","v":425039}]
[{"$f":"AAMC_Raw_Data_for_FY22[[#This Row],[Source]]&AAMC_Raw_Data_for_FY22[[#This Row],[Type]]&AAMC_Raw_Data_for_FY22[[#This Row],[School Subset]]&AAMC_Raw_Data_for_FY22[[#This Row],[Rank]]&AAMC_Raw_Data_for_FY22[[#This Row],[Degree]]&AAMC_Raw_Data_for_FY22[[#This Row],[Department / Specialty]]&\"L\"","v":"AAMCAcademicPublicInstructorPhDAllergy/Immunology-Med.L"},"Allergy/Immunology-Med.",5,"AAMC","Academic","Public","Instructor","PhD","2021-2022",null,{"$f":"(((AAMC_Raw_Data_for_FY22[[#This Row],[Median]]-AAMC_Raw_Data_for_FY22[[#This Row],[25th]])/25)*5) + AAMC_Raw_Data_for_FY22[[#This Row],[25th]]","v":0},{"$f":"(((AAMC_Raw_Data_for_FY22[[#This Row],[Median]]-AAMC_Raw_Data_for_FY22[[#This Row],[25th]])/25)*10) + AAMC_Raw_Data_for_FY22[[#This Row],[25th]]","v":0},{"$f":"(((AAMC_Raw_Data_for_FY22[[#This Row],[Median]]-AAMC_Raw_Data_for_FY22[[#This Row],[25th]])/25)*15) + AAMC_Raw_Data_for_FY22[[#This Row],[25th]]","v":0},{"$f":"(((AAMC_Raw_Data_for_FY22[[#This Row],[Median]]-AAMC_Raw_Data_for_FY22[[#This Row],[25th]])/25)*20) + AAMC_Raw_Data_for_FY22[[#This Row],[25th]]","v":0},null,{"$f":"(((AAMC_Raw_Data_for_FY22[[#This Row],[75th]]-AAMC_Raw_Data_for_FY22[[#This Row],[Median]])/25)*5) + AAMC_Raw_Data_for_FY22[[#This Row],[Median]]","v":0},{"$f":"(((AAMC_Raw_Data_for_FY22[[#This Row],[75th]]-AAMC_Raw_Data_for_FY22[[#This Row],[Median]])/25)*10) + AAMC_Raw_Data_for_FY22[[#This Row],[Median]]","v":0},{"$f":"(((AAMC_Raw_Data_for_FY22[[#This Row],[75th]]-AAMC_Raw_Data_for_FY22[[#This Row],[Median]])/25)*15) + AAMC_Raw_Data_for_FY22[[#This Row],[Median]]","v":0},{"$f":"(((AAMC_Raw_Data_for_FY22[[#This Row],[75th]]-AAMC_Raw_Data_for_FY22[[#This Row],[Median]])/25)*20) + AAMC_Raw_Data_for_FY22[[#This Row],[Median]]","v":0},null,{"$f":"(((AAMC_Raw_Data_for_FY22[[#This Row],[75th]]-AAMC_Raw_Data_for_FY22[[#This Row],[Median]])/25)*30) + AAMC_Raw_Data_for_FY22[[#This Row],[Median]]","v":0},{"$f":"(((AAMC_Raw_Data_for_FY22[[#This Row],[75th]]-AAMC_Raw_Data_for_FY22[[#This Row],[Median]])/25)*35) + AAMC_Raw_Data_for_FY22[[#This Row],[Median]]","v":0},{"$f":"(((AAMC_Raw_Data_for_FY22[[#This Row],[75th]]-AAMC_Raw_Data_for_FY22[[#This Row],[Median]])/25)*40) + AAMC_Raw_Data_for_FY22[[#This Row],[Median]]","v":0}]
[{"$f":"AAMC_Raw_Data_for_FY22[[#This Row],[Source]]&AAMC_Raw_Data_for_FY22[[#This Row],[Type]]&AAMC_Raw_Data_for_FY22[[#This Row],[School Subset]]&AAMC_Raw_Data_for_FY22[[#This Row],[Rank]]&AAMC_Raw_Data_for_FY22[[#This Row],[Degree]]&AAMC_Raw_Data_for_FY22[[#This Row],[Department / Specialty]]&\"L\"","v":"AAMCAcademicPublicAssistantPhDAllergy/Immunology-Med.L"},"Allergy/Immunology-Med.",4,"AAMC","Academic","Public","Assistant","PhD","2021-2022",85924,{"$f":"(((AAMC_Raw_Data_for_FY22[[#This Row],[Median]]-AAMC_Raw_Data_for_FY22[[#This Row],[25th]])/25)*5) + AAMC_Raw_Data_for_FY22[[#This Row],[25th]]","v":90258.8},{"$f":"(((AAMC_Raw_Data_for_FY22[[#This Row],[Median]]-AAMC_Raw_Data_for_FY22[[#This Row],[25th]])/25)*10) + AAMC_Raw_Data_for_FY22[[#This Row],[25th]]","v":94593.600000000006},{"$f":"(((AAMC_Raw_Data_for_FY22[[#This Row],[Median]]-AAMC_Raw_Data_for_FY22[[#This Row],[25th]])/25)*15) + AAMC_Raw_Data_for_FY22[[#This Row],[25th]]","v":98928.4},{"$f":"(((AAMC_Raw_Data_for_FY22[[#This Row],[Median]]-AAMC_Raw_Data_for_FY22[[#This Row],[25th]])/25)*20) + AAMC_Raw_Data_for_FY22[[#This Row],[25th]]","v":103263.2},107598,{"$f":"(((AAMC_Raw_Data_for_FY22[[#This Row],[75th]]-AAMC_Raw_Data_for_FY22[[#This Row],[Median]])/25)*5) + AAMC_Raw_Data_for_FY22[[#This Row],[Median]]","v":108013.4},{"$f":"(((AAMC_Raw_Data_for_FY22[[#This Row],[75th]]-AAMC_Raw_Data_for_FY22[[#This Row],[Median]])/25)*10) + AAMC_Raw_Data_for_FY22[[#This Row],[Median]]","v":108428.8},{"$f":"(((AAMC_Raw_Data_for_FY22[[#This Row],[75th]]-AAMC_Raw_Data_for_FY22[[#This Row],[Median]])/25)*15) + AAMC_Raw_Data_for_FY22[[#This Row],[Median]]","v":108844.2},{"$f":"(((AAMC_Raw_Data_for_FY22[[#This Row],[75th]]-AAMC_Raw_Data_for_FY22[[#This Row],[Median]])/25)*20) + AAMC_Raw_Data_for_FY22[[#This Row],[Median]]","v":109259.6},109675,{"$f":"(((AAMC_Raw_Data_for_FY22[[#This Row],[75th]]-AAMC_Raw_Data_for_FY22[[#This Row],[Median]])/25)*30) + AAMC_Raw_Data_for_FY22[[#This Row],[Median]]","v":110090.4},{"$f":"(((AAMC_Raw_Data_for_FY22[[#This Row],[75th]]-AAMC_Raw_Data_for_FY22[[#This Row],[Median]])/25)*35) + AAMC_Raw_Data_for_FY22[[#This Row],[Median]]","v":110505.8},{"$f":"(((AAMC_Raw_Data_for_FY22[[#This Row],[75th]]-AAMC_Raw_Data_for_FY22[[#This Row],[Median]])/25)*40) + AAMC_Raw_Data_for_FY22[[#This Row],[Median]]","v":110921.2}]
[{"$f":"AAMC_Raw_Data_for_FY22[[#This Row],[Source]]&AAMC_Raw_Data_for_FY22[[#This Row],[Type]]&AAMC_Raw_Data_for_FY22[[#This Row],[School Subset]]&AAMC_Raw_Data_for_FY22[[#This Row],[Rank]]&AAMC_Raw_Data_for_FY22[[#This Row],[Degree]]&AAMC_Raw_Data_for_FY22[[#This Row],[Department / Specialty]]&\"L\"","v":"AAMCAcademicPublicAssociatePhDAllergy/Immunology-Med.L"},"Allergy/Immunology-Med.",3,"AAMC","Academic","Public","Associate","PhD","2021-2022",null,{"$f":"(((AAMC_Raw_Data_for_FY22[[#This Row],[Median]]-AAMC_Raw_Data_for_FY22[[#This Row],[25th]])/25)*5) + AAMC_Raw_Data_for_FY22[[#This Row],[25th]]","v":0},{"$f":"(((AAMC_Raw_Data_for_FY22[[#This Row],[Median]]-AAMC_Raw_Data_for_FY22[[#This Row],[25th]])/25)*10) + AAMC_Raw_Data_for_FY22[[#This Row],[25th]]","v":0},{"$f":"(((AAMC_Raw_Data_for_FY22[[#This Row],[Median]]-AAMC_Raw_Data_for_FY22[[#This Row],[25th]])/25)*15) + AAMC_Raw_Data_for_FY22[[#This Row],[25th]]","v":0},{"$f":"(((AAMC_Raw_Data_for_FY22[[#This Row],[Median]]-AAMC_Raw_Data_for_FY22[[#This Row],[25th]])/25)*20) + AAMC_Raw_Data_for_FY22[[#This Row],[25th]]","v":0},null,{"$f":"(((AAMC_Raw_Data_for_FY22[[#This Row],[75th]]-AAMC_Raw_Data_for_FY22[[#This Row],[Median]])/25)*5) + AAMC_Raw_Data_for_FY22[[#This Row],[Median]]","v":0},{"$f":"(((AAMC_Raw_Data_for_FY22[[#This Row],[75th]]-AAMC_Raw_Data_for_FY22[[#This Row],[Median]])/25)*10) + AAMC_Raw_Data_for_FY22[[#This Row],[Median]]","v":0},{"$f":"(((AAMC_Raw_Data_for_FY22[[#This Row],[75th]]-AAMC_Raw_Data_for_FY22[[#This Row],[Median]])/25)*15) + AAMC_Raw_Data_for_FY22[[#This Row],[Median]]","v":0},{"$f":"(((AAMC_Raw_Data_for_FY22[[#This Row],[75th]]-AAMC_Raw_Data_for_FY22[[#This Row],[Median]])/25)*20) + AAMC_Raw_Data_for_FY22[[#This Row],[Median]]","v":0},null,{"$f":"(((AAMC_Raw_Data_for_FY22[[#This Row],[75th]]-AAMC_Raw_Data_for_FY22[[#This Row],[Median]])/25)*30) + AAMC_Raw_Data_for_FY22[[#This Row],[Median]]","v":0},{"$f":"(((AAMC_Raw_Data_for_FY22[[#This Row],[75th]]-AAMC_Raw_Data_for_FY22[[#This Row],[Median]])/25)*35) + AAMC_Raw_Data_for_FY22[[#This Row],[Median]]","v":0},{"$f":"(((AAMC_Raw_Data_for_FY22[[#This Row],[75th]]-AAMC_Raw_Data_for_FY22[[#This Row],[Median]])/25)*40) + AAMC_Raw_Data_for_FY22[[#This Row],[Median]]","v":0}]
[{"$f":"AAMC_Raw_Data_for_FY22[[#This Row],[Source]]&AAMC_Raw_Data_for_FY22[[#This Row],[Type]]&AAMC_Raw_Data_for_FY22[[#This Row],[School Subset]]&AAMC_Raw_Data_for_FY22[[#This Row],[Rank]]&AAMC_Raw_Data_for_FY22[[#This Row],[Degree]]&AAMC_Raw_Data_for_FY22[[#This Row],[Department / Specialty]]&\"L\"","v":"AAMCAcademicPublicProfessorPhDAllergy/Immunology-Med.L"},"Allergy/Immunology-Med.",2,"AAMC","Academic","Public","Professor","PhD","2021-2022",137623,{"$f":"(((AAMC_Raw_Data_for_FY22[[#This Row],[Median]]-AAMC_Raw_Data_for_FY22[[#This Row],[25th]])/25)*5) + AAMC_Raw_Data_for_FY22[[#This Row],[25th]]","v":142364.6},{"$f":"(((AAMC_Raw_Data_for_FY22[[#This Row],[Median]]-AAMC_Raw_Data_for_FY22[[#This Row],[25th]])/25)*10) + AAMC_Raw_Data_for_FY22[[#This Row],[25th]]","v":147106.20000000001},{"$f":"(((AAMC_Raw_Data_for_FY22[[#This Row],[Median]]-AAMC_Raw_Data_for_FY22[[#This Row],[25th]])/25)*15) + AAMC_Raw_Data_for_FY22[[#This Row],[25th]]","v":151847.79999999999},{"$f":"(((AAMC_Raw_Data_for_FY22[[#This Row],[Median]]-AAMC_Raw_Data_for_FY22[[#This Row],[25th]])/25)*20) + AAMC_Raw_Data_for_FY22[[#This Row],[25th]]","v":156589.4},161331,{"$f":"(((AAMC_Raw_Data_for_FY22[[#This Row],[75th]]-AAMC_Raw_Data_for_FY22[[#This Row],[Median]])/25)*5) + AAMC_Raw_Data_for_FY22[[#This Row],[Median]]","v":167491.79999999999},{"$f":"(((AAMC_Raw_Data_for_FY22[[#This Row],[75th]]-AAMC_Raw_Data_for_FY22[[#This Row],[Median]])/25)*10) + AAMC_Raw_Data_for_FY22[[#This Row],[Median]]","v":173652.6},{"$f":"(((AAMC_Raw_Data_for_FY22[[#This Row],[75th]]-AAMC_Raw_Data_for_FY22[[#This Row],[Median]])/25)*15) + AAMC_Raw_Data_for_FY22[[#This Row],[Median]]","v":179813.4},{"$f":"(((AAMC_Raw_Data_for_FY22[[#This Row],[75th]]-AAMC_Raw_Data_for_FY22[[#This Row],[Median]])/25)*20) + AAMC_Raw_Data_for_FY22[[#This Row],[Median]]","v":185974.2},192135,{"$f":"(((AAMC_Raw_Data_for_FY22[[#This Row],[75th]]-AAMC_Raw_Data_for_FY22[[#This Row],[Median]])/25)*30) + AAMC_Raw_Data_for_FY22[[#This Row],[Median]]","v":198295.8},{"$f":"(((AAMC_Raw_Data_for_FY22[[#This Row],[75th]]-AAMC_Raw_Data_for_FY22[[#This Row],[Median]])/25)*35) + AAMC_Raw_Data_for_FY22[[#This Row],[Median]]","v":204456.6},{"$f":"(((AAMC_Raw_Data_for_FY22[[#This Row],[75th]]-AAMC_Raw_Data_for_FY22[[#This Row],[Median]])/25)*40) + AAMC_Raw_Data_for_FY22[[#This Row],[Median]]","v":210617.4}]
[{"$f":"AAMC_Raw_Data_for_FY22[[#This Row],[Source]]&AAMC_Raw_Data_for_FY22[[#This Row],[Type]]&AAMC_Raw_Data_for_FY22[[#This Row],[School Subset]]&AAMC_Raw_Data_for_FY22[[#This Row],[Rank]]&AAMC_Raw_Data_for_FY22[[#This Row],[Degree]]&AAMC_Raw_Data_for_FY22[[#This Row],[Department / Specialty]]&\"L\"","v":"AAMCAcademicPublicChairPhDAllergy/Immunology-Med.L"},"Allergy/Immunology-Med.",1,"AAMC","Academic","Public","Chair","PhD","2021-2022",null,{"$f":"(((AAMC_Raw_Data_for_FY22[[#This Row],[Median]]-AAMC_Raw_Data_for_FY22[[#This Row],[25th]])/25)*5) + AAMC_Raw_Data_for_FY22[[#This Row],[25th]]","v":0},{"$f":"(((AAMC_Raw_Data_for_FY22[[#This Row],[Median]]-AAMC_Raw_Data_for_FY22[[#This Row],[25th]])/25)*10) + AAMC_Raw_Data_for_FY22[[#This Row],[25th]]","v":0},{"$f":"(((AAMC_Raw_Data_for_FY22[[#This Row],[Median]]-AAMC_Raw_Data_for_FY22[[#This Row],[25th]])/25)*15) + AAMC_Raw_Data_for_FY22[[#This Row],[25th]]","v":0},{"$f":"(((AAMC_Raw_Data_for_FY22[[#This Row],[Median]]-AAMC_Raw_Data_for_FY22[[#This Row],[25th]])/25)*20) + AAMC_Raw_Data_for_FY22[[#This Row],[25th]]","v":0},null,{"$f":"(((AAMC_Raw_Data_for_FY22[[#This Row],[75th]]-AAMC_Raw_Data_for_FY22[[#This Row],[Median]])/25)*5) + AAMC_Raw_Data_for_FY22[[#This Row],[Median]]","v":0},{"$f":"(((AAMC_Raw_Data_for_FY22[[#This Row],[75th]]-AAMC_Raw_Data_for_FY22[[#This Row],[Median]])/25)*10) + AAMC_Raw_Data_for_FY22[[#This Row],[Median]]","v":0},{"$f":"(((AAMC_Raw_Data_for_FY22[[#This Row],[75th]]-AAMC_Raw_Data_for_FY22[[#This Row],[Median]])/25)*15) + AAMC_Raw_Data_for_FY22[[#This Row],[Median]]","v":0},{"$f":"(((AAMC_Raw_Data_for_FY22[[#This Row],[75th]]-AAMC_Raw_Data_for_FY22[[#This Row],[Median]])/25)*20) + AAMC_Raw_Data_for_FY22[[#This Row],[Median]]","v":0},null,{"$f":"(((AAMC_Raw_Data_for_FY22[[#This Row],[75th]]-AAMC_Raw_Data_for_FY22[[#This Row],[Median]])/25)*30) + AAMC_Raw_Data_for_FY22[[#This Row],[Median]]","v":0},{"$f":"(((AAMC_Raw_Data_for_FY22[[#This Row],[75th]]-AAMC_Raw_Data_for_FY22[[#This Row],[Median]])/25)*35) + AAMC_Raw_Data_for_FY22[[#This Row],[Median]]","v":0},{"$f":"(((AAMC_Raw_Data_for_FY22[[#This Row],[75th]]-AAMC_Raw_Data_for_FY22[[#This Row],[Median]])/25)*40) + AAMC_Raw_Data_for_FY22[[#This Row],[Median]]","v":0}]
[{"$f":"AAMC_Raw_Data_for_FY22[[#This Row],[Source]]&AAMC_Raw_Data_for_FY22[[#This Row],[Type]]&AAMC_Raw_Data_for_FY22[[#This Row],[School Subset]]&AAMC_Raw_Data_for_FY22[[#This Row],[Rank]]&AAMC_Raw_Data_for_FY22[[#This Row],[Degree]]&AAMC_Raw_Data_for_FY22[[#This Row],[Department / Specialty]]&\"L\"","v":"AAMCAcademicPublicInstructorPhDCardiology TotalL"},"Cardiology Total",5,"AAMC","Academic","Public","Instructor","PhD","2021-2022",59774,{"$f":"(((AAMC_Raw_Data_for_FY22[[#This Row],[Median]]-AAMC_Raw_Data_for_FY22[[#This Row],[25th]])/25)*5) + AAMC_Raw_Data_for_FY22[[#This Row],[25th]]","v":60239.199999999997},{"$f":"(((AAMC_Raw_Data_for_FY22[[#This Row],[Median]]-AAMC_Raw_Data_for_FY22[[#This Row],[25th]])/25)*10) + AAMC_Raw_Data_for_FY22[[#This Row],[25th]]","v":60704.4},{"$f":"(((AAMC_Raw_Data_for_FY22[[#This Row],[Median]]-AAMC_Raw_Data_for_FY22[[#This Row],[25th]])/25)*15) + AAMC_Raw_Data_for_FY22[[#This Row],[25th]]","v":61169.599999999999},{"$f":"(((AAMC_Raw_Data_for_FY22[[#This Row],[Median]]-AAMC_Raw_Data_for_FY22[[#This Row],[25th]])/25)*20) + AAMC_Raw_Data_for_FY22[[#This Row],[25th]]","v":61634.8},62100,{"$f":"(((AAMC_Raw_Data_for_FY22[[#This Row],[75th]]-AAMC_Raw_Data_for_FY22[[#This Row],[Median]])/25)*5) + AAMC_Raw_Data_for_FY22[[#This Row],[Median]]","v":66899.8},{"$f":"(((AAMC_Raw_Data_for_FY22[[#This Row],[75th]]-AAMC_Raw_Data_for_FY22[[#This Row],[Median]])/25)*10) + AAMC_Raw_Data_for_FY22[[#This Row],[Median]]","v":71699.600000000006},{"$f":"(((AAMC_Raw_Data_for_FY22[[#This Row],[75th]]-AAMC_Raw_Data_for_FY22[[#This Row],[Median]])/25)*15) + AAMC_Raw_Data_for_FY22[[#This Row],[Median]]","v":76499.399999999994},{"$f":"(((AAMC_Raw_Data_for_FY22[[#This Row],[75th]]-AAMC_Raw_Data_for_FY22[[#This Row],[Median]])/25)*20) + AAMC_Raw_Data_for_FY22[[#This Row],[Median]]","v":81299.199999999997},86099,{"$f":"(((AAMC_Raw_Data_for_FY22[[#This Row],[75th]]-AAMC_Raw_Data_for_FY22[[#This Row],[Median]])/25)*30) + AAMC_Raw_Data_for_FY22[[#This Row],[Median]]","v":90898.8},{"$f":"(((AAMC_Raw_Data_for_FY22[[#This Row],[75th]]-AAMC_Raw_Data_for_FY22[[#This Row],[Median]])/25)*35) + AAMC_Raw_Data_for_FY22[[#This Row],[Median]]","v":95698.6},{"$f":"(((AAMC_Raw_Data_for_FY22[[#This Row],[75th]]-AAMC_Raw_Data_for_FY22[[#This Row],[Median]])/25)*40) + AAMC_Raw_Data_for_FY22[[#This Row],[Median]]","v":100498.4}]
[{"$f":"AAMC_Raw_Data_for_FY22[[#This Row],[Source]]&AAMC_Raw_Data_for_FY22[[#This Row],[Type]]&AAMC_Raw_Data_for_FY22[[#This Row],[School Subset]]&AAMC_Raw_Data_for_FY22[[#This Row],[Rank]]&AAMC_Raw_Data_for_FY22[[#This Row],[Degree]]&AAMC_Raw_Data_for_FY22[[#This Row],[Department / Specialty]]&\"L\"","v":"AAMCAcademicPublicAssistantPhDCardiology TotalL"},"Cardiology Total",4,"AAMC","Academic","Public","Assistant","PhD","2021-2022",80000,{"$f":"(((AAMC_Raw_Data_for_FY22[[#This Row],[Median]]-AAMC_Raw_Data_for_FY22[[#This Row],[25th]])/25)*5) + AAMC_Raw_Data_for_FY22[[#This Row],[25th]]","v":84531.4},{"$f":"(((AAMC_Raw_Data_for_FY22[[#This Row],[Median]]-AAMC_Raw_Data_for_FY22[[#This Row],[25th]])/25)*10) + AAMC_Raw_Data_for_FY22[[#This Row],[25th]]","v":89062.8},{"$f":"(((AAMC_Raw_Data_for_FY22[[#This Row],[Median]]-AAMC_Raw_Data_for_FY22[[#This Row],[25th]])/25)*15) + AAMC_Raw_Data_for_FY22[[#This Row],[25th]]","v":93594.2},{"$f":"(((AAMC_Raw_Data_for_FY22[[#This Row],[Median]]-AAMC_Raw_Data_for_FY22[[#This Row],[25th]])/25)*20) + AAMC_Raw_Data_for_FY22[[#This Row],[25th]]","v":98125.6},102657,{"$f":"(((AAMC_Raw_Data_for_FY22[[#This Row],[75th]]-AAMC_Raw_Data_for_FY22[[#This Row],[Median]])/25)*5) + AAMC_Raw_Data_for_FY22[[#This Row],[Median]]","v":106576.8},{"$f":"(((AAMC_Raw_Data_for_FY22[[#This Row],[75th]]-AAMC_Raw_Data_for_FY22[[#This Row],[Median]])/25)*10) + AAMC_Raw_Data_for_FY22[[#This Row],[Median]]","v":110496.6},{"$f":"(((AAMC_Raw_Data_for_FY22[[#This Row],[75th]]-AAMC_Raw_Data_for_FY22[[#This Row],[Median]])/25)*15) + AAMC_Raw_Data_for_FY22[[#This Row],[Median]]","v":114416.4},{"$f":"(((AAMC_Raw_Data_for_FY22[[#This Row],[75th]]-AAMC_Raw_Data_for_FY22[[#This Row],[Median]])/25)*20) + AAMC_Raw_Data_for_FY22[[#This Row],[Median]]","v":118336.2},122256,{"$f":"(((AAMC_Raw_Data_for_FY22[[#This Row],[75th]]-AAMC_Raw_Data_for_FY22[[#This Row],[Median]])/25)*30) + AAMC_Raw_Data_for_FY22[[#This Row],[Median]]","v":126175.8},{"$f":"(((AAMC_Raw_Data_for_FY22[[#This Row],[75th]]-AAMC_Raw_Data_for_FY22[[#This Row],[Median]])/25)*35) + AAMC_Raw_Data_for_FY22[[#This Row],[Median]]","v":130095.6},{"$f":"(((AAMC_Raw_Data_for_FY22[[#This Row],[75th]]-AAMC_Raw_Data_for_FY22[[#This Row],[Median]])/25)*40) + AAMC_Raw_Data_for_FY22[[#This Row],[Median]]","v":134015.4}]
[{"$f":"AAMC_Raw_Data_for_FY22[[#This Row],[Source]]&AAMC_Raw_Data_for_FY22[[#This Row],[Type]]&AAMC_Raw_Data_for_FY22[[#This Row],[School Subset]]&AAMC_Raw_Data_for_FY22[[#This Row],[Rank]]&AAMC_Raw_Data_for_FY22[[#This Row],[Degree]]&AAMC_Raw_Data_for_FY22[[#This Row],[Department / Specialty]]&\"L\"","v":"AAMCAcademicPublicAssociatePhDCardiology TotalL"},"Cardiology Total",3,"AAMC","Academic","Public","Associate","PhD","2021-2022",111911,{"$f":"(((AAMC_Raw_Data_for_FY22[[#This Row],[Median]]-AAMC_Raw_Data_for_FY22[[#This Row],[25th]])/25)*5) + AAMC_Raw_Data_for_FY22[[#This Row],[25th]]","v":115185},{"$f":"(((AAMC_Raw_Data_for_FY22[[#This Row],[Median]]-AAMC_Raw_Data_for_FY22[[#This Row],[25th]])/25)*10) + AAMC_Raw_Data_for_FY22[[#This Row],[25th]]","v":118459},{"$f":"(((AAMC_Raw_Data_for_FY22[[#This Row],[Median]]-AAMC_Raw_Data_for_FY22[[#This Row],[25th]])/25)*15) + AAMC_Raw_Data_for_FY22[[#This Row],[25th]]","v":121733},{"$f":"(((AAMC_Raw_Data_for_FY22[[#This Row],[Median]]-AAMC_Raw_Data_for_FY22[[#This Row],[25th]])/25)*20) + AAMC_Raw_Data_for_FY22[[#This Row],[25th]]","v":125007},128281,{"$f":"(((AAMC_Raw_Data_for_FY22[[#This Row],[75th]]-AAMC_Raw_Data_for_FY22[[#This Row],[Median]])/25)*5) + AAMC_Raw_Data_for_FY22[[#This Row],[Median]]","v":132524.79999999999},{"$f":"(((AAMC_Raw_Data_for_FY22[[#This Row],[75th]]-AAMC_Raw_Data_for_FY22[[#This Row],[Median]])/25)*10) + AAMC_Raw_Data_for_FY22[[#This Row],[Median]]","v":136768.6},{"$f":"(((AAMC_Raw_Data_for_FY22[[#This Row],[75th]]-AAMC_Raw_Data_for_FY22[[#This Row],[Median]])/25)*15) + AAMC_Raw_Data_for_FY22[[#This Row],[Median]]","v":141012.4},{"$f":"(((AAMC_Raw_Data_for_FY22[[#This Row],[75th]]-AAMC_Raw_Data_for_FY22[[#This Row],[Median]])/25)*20) + AAMC_Raw_Data_for_FY22[[#This Row],[Median]]","v":145256.20000000001},149500,{"$f":"(((AAMC_Raw_Data_for_FY22[[#This Row],[75th]]-AAMC_Raw_Data_for_FY22[[#This Row],[Median]])/25)*30) + AAMC_Raw_Data_for_FY22[[#This Row],[Median]]","v":153743.79999999999},{"$f":"(((AAMC_Raw_Data_for_FY22[[#This Row],[75th]]-AAMC_Raw_Data_for_FY22[[#This Row],[Median]])/25)*35) + AAMC_Raw_Data_for_FY22[[#This Row],[Median]]","v":157987.6},{"$f":"(((AAMC_Raw_Data_for_FY22[[#This Row],[75th]]-AAMC_Raw_Data_for_FY22[[#This Row],[Median]])/25)*40) + AAMC_Raw_Data_for_FY22[[#This Row],[Median]]","v":162231.4}]
[{"$f":"AAMC_Raw_Data_for_FY22[[#This Row],[Source]]&AAMC_Raw_Data_for_FY22[[#This Row],[Type]]&AAMC_Raw_Data_for_FY22[[#This Row],[School Subset]]&AAMC_Raw_Data_for_FY22[[#This Row],[Rank]]&AAMC_Raw_Data_for_FY22[[#This Row],[Degree]]&AAMC_Raw_Data_for_FY22[[#This Row],[Department / Specialty]]&\"L\"","v":"AAMCAcademicPublicProfessorPhDCardiology TotalL"},"Cardiology Total",2,"AAMC","Academic","Public","Professor","PhD","2021-2022",171805,{"$f":"(((AAMC_Raw_Data_for_FY22[[#This Row],[Median]]-AAMC_Raw_Data_for_FY22[[#This Row],[25th]])/25)*5) + AAMC_Raw_Data_for_FY22[[#This Row],[25th]]","v":179719},{"$f":"(((AAMC_Raw_Data_for_FY22[[#This Row],[Median]]-AAMC_Raw_Data_for_FY22[[#This Row],[25th]])/25)*10) + AAMC_Raw_Data_for_FY22[[#This Row],[25th]]","v":187633},{"$f":"(((AAMC_Raw_Data_for_FY22[[#This Row],[Median]]-AAMC_Raw_Data_for_FY22[[#This Row],[25th]])/25)*15) + AAMC_Raw_Data_for_FY22[[#This Row],[25th]]","v":195547},{"$f":"(((AAMC_Raw_Data_for_FY22[[#This Row],[Median]]-AAMC_Raw_Data_for_FY22[[#This Row],[25th]])/25)*20) + AAMC_Raw_Data_for_FY22[[#This Row],[25th]]","v":203461},211375,{"$f":"(((AAMC_Raw_Data_for_FY22[[#This Row],[75th]]-AAMC_Raw_Data_for_FY22[[#This Row],[Median]])/25)*5) + AAMC_Raw_Data_for_FY22[[#This Row],[Median]]","v":222546.2},{"$f":"(((AAMC_Raw_Data_for_FY22[[#This Row],[75th]]-AAMC_Raw_Data_for_FY22[[#This Row],[Median]])/25)*10) + AAMC_Raw_Data_for_FY22[[#This Row],[Median]]","v":233717.4},{"$f":"(((AAMC_Raw_Data_for_FY22[[#This Row],[75th]]-AAMC_Raw_Data_for_FY22[[#This Row],[Median]])/25)*15) + AAMC_Raw_Data_for_FY22[[#This Row],[Median]]","v":244888.6},{"$f":"(((AAMC_Raw_Data_for_FY22[[#This Row],[75th]]-AAMC_Raw_Data_for_FY22[[#This Row],[Median]])/25)*20) + AAMC_Raw_Data_for_FY22[[#This Row],[Median]]","v":256059.8},267231,{"$f":"(((AAMC_Raw_Data_for_FY22[[#This Row],[75th]]-AAMC_Raw_Data_for_FY22[[#This Row],[Median]])/25)*30) + AAMC_Raw_Data_for_FY22[[#This Row],[Median]]","v":278402.2},{"$f":"(((AAMC_Raw_Data_for_FY22[[#This Row],[75th]]-AAMC_Raw_Data_for_FY22[[#This Row],[Median]])/25)*35) + AAMC_Raw_Data_for_FY22[[#This Row],[Median]]","v":289573.40000000002},{"$f":"(((AAMC_Raw_Data_for_FY22[[#This Row],[75th]]-AAMC_Raw_Data_for_FY22[[#This Row],[Median]])/25)*40) + AAMC_Raw_Data_for_FY22[[#This Row],[Median]]","v":300744.59999999998}]
[{"$f":"AAMC_Raw_Data_for_FY22[[#This Row],[Source]]&AAMC_Raw_Data_for_FY22[[#This Row],[Type]]&AAMC_Raw_Data_for_FY22[[#This Row],[School Subset]]&AAMC_Raw_Data_for_FY22[[#This Row],[Rank]]&AAMC_Raw_Data_for_FY22[[#This Row],[Degree]]&AAMC_Raw_Data_for_FY22[[#This Row],[Department / Specialty]]&\"L\"","v":"AAMCAcademicPublicInstructorPhDCardiology: Invasive Interventional-Med.L"},"Cardiology: Invasive Interventional-Med.",5,"AAMC","Academic","Public","Instructor","PhD","2021-2022",null,{"$f":"(((AAMC_Raw_Data_for_FY22[[#This Row],[Median]]-AAMC_Raw_Data_for_FY22[[#This Row],[25th]])/25)*5) + AAMC_Raw_Data_for_FY22[[#This Row],[25th]]","v":0},{"$f":"(((AAMC_Raw_Data_for_FY22[[#This Row],[Median]]-AAMC_Raw_Data_for_FY22[[#This Row],[25th]])/25)*10) + AAMC_Raw_Data_for_FY22[[#This Row],[25th]]","v":0},{"$f":"(((AAMC_Raw_Data_for_FY22[[#This Row],[Median]]-AAMC_Raw_Data_for_FY22[[#This Row],[25th]])/25)*15) + AAMC_Raw_Data_for_FY22[[#This Row],[25th]]","v":0},{"$f":"(((AAMC_Raw_Data_for_FY22[[#This Row],[Median]]-AAMC_Raw_Data_for_FY22[[#This Row],[25th]])/25)*20) + AAMC_Raw_Data_for_FY22[[#This Row],[25th]]","v":0},null,{"$f":"(((AAMC_Raw_Data_for_FY22[[#This Row],[75th]]-AAMC_Raw_Data_for_FY22[[#This Row],[Median]])/25)*5) + AAMC_Raw_Data_for_FY22[[#This Row],[Median]]","v":0},{"$f":"(((AAMC_Raw_Data_for_FY22[[#This Row],[75th]]-AAMC_Raw_Data_for_FY22[[#This Row],[Median]])/25)*10) + AAMC_Raw_Data_for_FY22[[#This Row],[Median]]","v":0},{"$f":"(((AAMC_Raw_Data_for_FY22[[#This Row],[75th]]-AAMC_Raw_Data_for_FY22[[#This Row],[Median]])/25)*15) + AAMC_Raw_Data_for_FY22[[#This Row],[Median]]","v":0},{"$f":"(((AAMC_Raw_Data_for_FY22[[#This Row],[75th]]-AAMC_Raw_Data_for_FY22[[#This Row],[Median]])/25)*20) + AAMC_Raw_Data_for_FY22[[#This Row],[Median]]","v":0},null,{"$f":"(((AAMC_Raw_Data_for_FY22[[#This Row],[75th]]-AAMC_Raw_Data_for_FY22[[#This Row],[Median]])/25)*30) + AAMC_Raw_Data_for_FY22[[#This Row],[Median]]","v":0},{"$f":"(((AAMC_Raw_Data_for_FY22[[#This Row],[75th]]-AAMC_Raw_Data_for_FY22[[#This Row],[Median]])/25)*35) + AAMC_Raw_Data_for_FY22[[#This Row],[Median]]","v":0},{"$f":"(((AAMC_Raw_Data_for_FY22[[#This Row],[75th]]-AAMC_Raw_Data_for_FY22[[#This Row],[Median]])/25)*40) + AAMC_Raw_Data_for_FY22[[#This Row],[Median]]","v":0}]
[{"$f":"AAMC_Raw_Data_for_FY22[[#This Row],[Source]]&AAMC_Raw_Data_for_FY22[[#This Row],[Type]]&AAMC_Raw_Data_for_FY22[[#This Row],[School Subset]]&AAMC_Raw_Data_for_FY22[[#This Row],[Rank]]&AAMC_Raw_Data_for_FY22[[#This Row],[Degree]]&AAMC_Raw_Data_for_FY22[[#This Row],[Department / Specialty]]&\"L\"","v":"AAMCAcademicPublicAssistantPhDCardiology: Invasive Interventional-Med.L"},"Cardiology: Invasive Interventional-Med.",4,"AAMC","Academic","Public","Assistant","PhD","2021-2022",null,{"$f":"(((AAMC_Raw_Data_for_FY22[[#This Row],[Median]]-AAMC_Raw_Data_for_FY22[[#This Row],[25th]])/25)*5) + AAMC_Raw_Data_for_FY22[[#This Row],[25th]]","v":0},{"$f":"(((AAMC_Raw_Data_for_FY22[[#This Row],[Median]]-AAMC_Raw_Data_for_FY22[[#This Row],[25th]])/25)*10) + AAMC_Raw_Data_for_FY22[[#This Row],[25th]]","v":0},{"$f":"(((AAMC_Raw_Data_for_FY22[[#This Row],[Median]]-AAMC_Raw_Data_for_FY22[[#This Row],[25th]])/25)*15) + AAMC_Raw_Data_for_FY22[[#This Row],[25th]]","v":0},{"$f":"(((AAMC_Raw_Data_for_FY22[[#This Row],[Median]]-AAMC_Raw_Data_for_FY22[[#This Row],[25th]])/25)*20) + AAMC_Raw_Data_for_FY22[[#This Row],[25th]]","v":0},null,{"$f":"(((AAMC_Raw_Data_for_FY22[[#This Row],[75th]]-AAMC_Raw_Data_for_FY22[[#This Row],[Median]])/25)*5) + AAMC_Raw_Data_for_FY22[[#This Row],[Median]]","v":0},{"$f":"(((AAMC_Raw_Data_for_FY22[[#This Row],[75th]]-AAMC_Raw_Data_for_FY22[[#This Row],[Median]])/25)*10) + AAMC_Raw_Data_for_FY22[[#This Row],[Median]]","v":0},{"$f":"(((AAMC_Raw_Data_for_FY22[[#This Row],[75th]]-AAMC_Raw_Data_for_FY22[[#This Row],[Median]])/25)*15) + AAMC_Raw_Data_for_FY22[[#This Row],[Median]]","v":0},{"$f":"(((AAMC_Raw_Data_for_FY22[[#This Row],[75th]]-AAMC_Raw_Data_for_FY22[[#This Row],[Median]])/25)*20) + AAMC_Raw_Data_for_FY22[[#This Row],[Median]]","v":0},null,{"$f":"(((AAMC_Raw_Data_for_FY22[[#This Row],[75th]]-AAMC_Raw_Data_for_FY22[[#This Row],[Median]])/25)*30) + AAMC_Raw_Data_for_FY22[[#This Row],[Median]]","v":0},{"$f":"(((AAMC_Raw_Data_for_FY22[[#This Row],[75th]]-AAMC_Raw_Data_for_FY22[[#This Row],[Median]])/25)*35) + AAMC_Raw_Data_for_FY22[[#This Row],[Median]]","v":0},{"$f":"(((AAMC_Raw_Data_for_FY22[[#This Row],[75th]]-AAMC_Raw_Data_for_FY22[[#This Row],[Median]])/25)*40) + AAMC_Raw_Data_for_FY22[[#This Row],[Median]]","v":0}]
[{"$f":"AAMC_Raw_Data_for_FY22[[#This Row],[Source]]&AAMC_Raw_Data_for_FY22[[#This Row],[Type]]&AAMC_Raw_Data_for_FY22[[#This Row],[School Subset]]&AAMC_Raw_Data_for_FY22[[#This Row],[Rank]]&AAMC_Raw_Data_for_FY22[[#This Row],[Degree]]&AAMC_Raw_Data_for_FY22[[#This Row],[Department / Specialty]]&\"L\"","v":"AAMCAcademicPublicAssociatePhDCardiology: Invasive Interventional-Med.L"},"Cardiology: Invasive Interventional-Med.",3,"AAMC","Academic","Public","Associate","PhD","2021-2022",null,{"$f":"(((AAMC_Raw_Data_for_FY22[[#This Row],[Median]]-AAMC_Raw_Data_for_FY22[[#This Row],[25th]])/25)*5) + AAMC_Raw_Data_for_FY22[[#This Row],[25th]]","v":0},{"$f":"(((AAMC_Raw_Data_for_FY22[[#This Row],[Median]]-AAMC_Raw_Data_for_FY22[[#This Row],[25th]])/25)*10) + AAMC_Raw_Data_for_FY22[[#This Row],[25th]]","v":0},{"$f":"(((AAMC_Raw_Data_for_FY22[[#This Row],[Median]]-AAMC_Raw_Data_for_FY22[[#This Row],[25th]])/25)*15) + AAMC_Raw_Data_for_FY22[[#This Row],[25th]]","v":0},{"$f":"(((AAMC_Raw_Data_for_FY22[[#This Row],[Median]]-AAMC_Raw_Data_for_FY22[[#This Row],[25th]])/25)*20) + AAMC_Raw_Data_for_FY22[[#This Row],[25th]]","v":0},null,{"$f":"(((AAMC_Raw_Data_for_FY22[[#This Row],[75th]]-AAMC_Raw_Data_for_FY22[[#This Row],[Median]])/25)*5) + AAMC_Raw_Data_for_FY22[[#This Row],[Median]]","v":0},{"$f":"(((AAMC_Raw_Data_for_FY22[[#This Row],[75th]]-AAMC_Raw_Data_for_FY22[[#This Row],[Median]])/25)*10) + AAMC_Raw_Data_for_FY22[[#This Row],[Median]]","v":0},{"$f":"(((AAMC_Raw_Data_for_FY22[[#This Row],[75th]]-AAMC_Raw_Data_for_FY22[[#This Row],[Median]])/25)*15) + AAMC_Raw_Data_for_FY22[[#This Row],[Median]]","v":0},{"$f":"(((AAMC_Raw_Data_for_FY22[[#This Row],[75th]]-AAMC_Raw_Data_for_FY22[[#This Row],[Median]])/25)*20) + AAMC_Raw_Data_for_FY22[[#This Row],[Median]]","v":0},null,{"$f":"(((AAMC_Raw_Data_for_FY22[[#This Row],[75th]]-AAMC_Raw_Data_for_FY22[[#This Row],[Median]])/25)*30) + AAMC_Raw_Data_for_FY22[[#This Row],[Median]]","v":0},{"$f":"(((AAMC_Raw_Data_for_FY22[[#This Row],[75th]]-AAMC_Raw_Data_for_FY22[[#This Row],[Median]])/25)*35) + AAMC_Raw_Data_for_FY22[[#This Row],[Median]]","v":0},{"$f":"(((AAMC_Raw_Data_for_FY22[[#This Row],[75th]]-AAMC_Raw_Data_for_FY22[[#This Row],[Median]])/25)*40) + AAMC_Raw_Data_for_FY22[[#This Row],[Median]]","v":0}]
[{"$f":"AAMC_Raw_Data_for_FY22[[#This Row],[Source]]&AAMC_Raw_Data_for_FY22[[#This Row],[Type]]&AAMC_Raw_Data_for_FY22[[#This Row],[School Subset]]&AAMC_Raw_Data_for_FY22[[#This Row],[Rank]]&AAMC_Raw_Data_for_FY22[[#This Row],[Degree]]&AAMC_Raw_Data_for_FY22[[#This Row],[Department / Specialty]]&\"L\"","v":"AAMCAcademicPublicProfessorPhDCardiology: Invasive Interventional-Med.L"},"Cardiology: Invasive Interventional-Med.",2,"AAMC","Academic","Public","Professor","PhD","2021-2022",null,{"$f":"(((AAMC_Raw_Data_for_FY22[[#This Row],[Median]]-AAMC_Raw_Data_for_FY22[[#This Row],[25th]])/25)*5) + AAMC_Raw_Data_for_FY22[[#This Row],[25th]]","v":0},{"$f":"(((AAMC_Raw_Data_for_FY22[[#This Row],[Median]]-AAMC_Raw_Data_for_FY22[[#This Row],[25th]])/25)*10) + AAMC_Raw_Data_for_FY22[[#This Row],[25th]]","v":0},{"$f":"(((AAMC_Raw_Data_for_FY22[[#This Row],[Median]]-AAMC_Raw_Data_for_FY22[[#This Row],[25th]])/25)*15) + AAMC_Raw_Data_for_FY22[[#This Row],[25th]]","v":0},{"$f":"(((AAMC_Raw_Data_for_FY22[[#This Row],[Median]]-AAMC_Raw_Data_for_FY22[[#This Row],[25th]])/25)*20) + AAMC_Raw_Data_for_FY22[[#This Row],[25th]]","v":0},null,{"$f":"(((AAMC_Raw_Data_for_FY22[[#This Row],[75th]]-AAMC_Raw_Data_for_FY22[[#This Row],[Median]])/25)*5) + AAMC_Raw_Data_for_FY22[[#This Row],[Median]]","v":0},{"$f":"(((AAMC_Raw_Data_for_FY22[[#This Row],[75th]]-AAMC_Raw_Data_for_FY22[[#This Row],[Median]])/25)*10) + AAMC_Raw_Data_for_FY22[[#This Row],[Median]]","v":0},{"$f":"(((AAMC_Raw_Data_for_FY22[[#This Row],[75th]]-AAMC_Raw_Data_for_FY22[[#This Row],[Median]])/25)*15) + AAMC_Raw_Data_for_FY22[[#This Row],[Median]]","v":0},{"$f":"(((AAMC_Raw_Data_for_FY22[[#This Row],[75th]]-AAMC_Raw_Data_for_FY22[[#This Row],[Median]])/25)*20) + AAMC_Raw_Data_for_FY22[[#This Row],[Median]]","v":0},null,{"$f":"(((AAMC_Raw_Data_for_FY22[[#This Row],[75th]]-AAMC_Raw_Data_for_FY22[[#This Row],[Median]])/25)*30) + AAMC_Raw_Data_for_FY22[[#This Row],[Median]]","v":0},{"$f":"(((AAMC_Raw_Data_for_FY22[[#This Row],[75th]]-AAMC_Raw_Data_for_FY22[[#This Row],[Median]])/25)*35) + AAMC_Raw_Data_for_FY22[[#This Row],[Median]]","v":0},{"$f":"(((AAMC_Raw_Data_for_FY22[[#This Row],[75th]]-AAMC_Raw_Data_for_FY22[[#This Row],[Median]])/25)*40) + AAMC_Raw_Data_for_FY22[[#This Row],[Median]]","v":0}]
[{"$f":"AAMC_Raw_Data_for_FY22[[#This Row],[Source]]&AAMC_Raw_Data_for_FY22[[#This Row],[Type]]&AAMC_Raw_Data_for_FY22[[#This Row],[School Subset]]&AAMC_Raw_Data_for_FY22[[#This Row],[Rank]]&AAMC_Raw_Data_for_FY22[[#This Row],[Degree]]&AAMC_Raw_Data_for_FY22[[#This Row],[Department / Specialty]]&\"L\"","v":"AAMCAcademicPublicAssociatePhDCardiology: Invasive Non-interventional-Med.L"},"Cardiology: Invasive Non-interventional-Med.",3,"AAMC","Academic","Public","Associate","PhD","2021-2022",null,{"$f":"(((AAMC_Raw_Data_for_FY22[[#This Row],[Median]]-AAMC_Raw_Data_for_FY22[[#This Row],[25th]])/25)*5) + AAMC_Raw_Data_for_FY22[[#This Row],[25th]]","v":0},{"$f":"(((AAMC_Raw_Data_for_FY22[[#This Row],[Median]]-AAMC_Raw_Data_for_FY22[[#This Row],[25th]])/25)*10) + AAMC_Raw_Data_for_FY22[[#This Row],[25th]]","v":0},{"$f":"(((AAMC_Raw_Data_for_FY22[[#This Row],[Median]]-AAMC_Raw_Data_for_FY22[[#This Row],[25th]])/25)*15) + AAMC_Raw_Data_for_FY22[[#This Row],[25th]]","v":0},{"$f":"(((AAMC_Raw_Data_for_FY22[[#This Row],[Median]]-AAMC_Raw_Data_for_FY22[[#This Row],[25th]])/25)*20) + AAMC_Raw_Data_for_FY22[[#This Row],[25th]]","v":0},null,{"$f":"(((AAMC_Raw_Data_for_FY22[[#This Row],[75th]]-AAMC_Raw_Data_for_FY22[[#This Row],[Median]])/25)*5) + AAMC_Raw_Data_for_FY22[[#This Row],[Median]]","v":0},{"$f":"(((AAMC_Raw_Data_for_FY22[[#This Row],[75th]]-AAMC_Raw_Data_for_FY22[[#This Row],[Median]])/25)*10) + AAMC_Raw_Data_for_FY22[[#This Row],[Median]]","v":0},{"$f":"(((AAMC_Raw_Data_for_FY22[[#This Row],[75th]]-AAMC_Raw_Data_for_FY22[[#This Row],[Median]])/25)*15) + AAMC_Raw_Data_for_FY22[[#This Row],[Median]]","v":0},{"$f":"(((AAMC_Raw_Data_for_FY22[[#This Row],[75th]]-AAMC_Raw_Data_for_FY22[[#This Row],[Median]])/25)*20) + AAMC_Raw_Data_for_FY22[[#This Row],[Median]]","v":0},null,{"$f":"(((AAMC_Raw_Data_for_FY22[[#This Row],[75th]]-AAMC_Raw_Data_for_FY22[[#This Row],[Median]])/25)*30) + AAMC_Raw_Data_for_FY22[[#This Row],[Median]]","v":0},{"$f":"(((AAMC_Raw_Data_for_FY22[[#This Row],[75th]]-AAMC_Raw_Data_for_FY22[[#This Row],[Median]])/25)*35) + AAMC_Raw_Data_for_FY22[[#This Row],[Median]]","v":0},{"$f":"(((AAMC_Raw_Data_for_FY22[[#This Row],[75th]]-AAMC_Raw_Data_for_FY22[[#This Row],[Median]])/25)*40) + AAMC_Raw_Data_for_FY22[[#This Row],[Median]]","v":0}]
[{"$f":"AAMC_Raw_Data_for_FY22[[#This Row],[Source]]&AAMC_Raw_Data_for_FY22[[#This Row],[Type]]&AAMC_Raw_Data_for_FY22[[#This Row],[School Subset]]&AAMC_Raw_Data_for_FY22[[#This Row],[Rank]]&AAMC_Raw_Data_for_FY22[[#This Row],[Degree]]&AAMC_Raw_Data_for_FY22[[#This Row],[Department / Specialty]]&\"L\"","v":"AAMCAcademicPublicProfessorPhDCardiology: Invasive Non-interventional-Med.L"},"Cardiology: Invasive Non-interventional-Med.",2,"AAMC","Academic","Public","Professor","PhD","2021-2022",null,{"$f":"(((AAMC_Raw_Data_for_FY22[[#This Row],[Median]]-AAMC_Raw_Data_for_FY22[[#This Row],[25th]])/25)*5) + AAMC_Raw_Data_for_FY22[[#This Row],[25th]]","v":0},{"$f":"(((AAMC_Raw_Data_for_FY22[[#This Row],[Median]]-AAMC_Raw_Data_for_FY22[[#This Row],[25th]])/25)*10) + AAMC_Raw_Data_for_FY22[[#This Row],[25th]]","v":0},{"$f":"(((AAMC_Raw_Data_for_FY22[[#This Row],[Median]]-AAMC_Raw_Data_for_FY22[[#This Row],[25th]])/25)*15) + AAMC_Raw_Data_for_FY22[[#This Row],[25th]]","v":0},{"$f":"(((AAMC_Raw_Data_for_FY22[[#This Row],[Median]]-AAMC_Raw_Data_for_FY22[[#This Row],[25th]])/25)*20) + AAMC_Raw_Data_for_FY22[[#This Row],[25th]]","v":0},null,{"$f":"(((AAMC_Raw_Data_for_FY22[[#This Row],[75th]]-AAMC_Raw_Data_for_FY22[[#This Row],[Median]])/25)*5) + AAMC_Raw_Data_for_FY22[[#This Row],[Median]]","v":0},{"$f":"(((AAMC_Raw_Data_for_FY22[[#This Row],[75th]]-AAMC_Raw_Data_for_FY22[[#This Row],[Median]])/25)*10) + AAMC_Raw_Data_for_FY22[[#This Row],[Median]]","v":0},{"$f":"(((AAMC_Raw_Data_for_FY22[[#This Row],[75th]]-AAMC_Raw_Data_for_FY22[[#This Row],[Median]])/25)*15) + AAMC_Raw_Data_for_FY22[[#This Row],[Median]]","v":0},{"$f":"(((AAMC_Raw_Data_for_FY22[[#This Row],[75th]]-AAMC_Raw_Data_for_FY22[[#This Row],[Median]])/25)*20) + AAMC_Raw_Data_for_FY22[[#This Row],[Median]]","v":0},null,{"$f":"(((AAMC_Raw_Data_for_FY22[[#This Row],[75th]]-AAMC_Raw_Data_for_FY22[[#This Row],[Median]])/25)*30) + AAMC_Raw_Data_for_FY22[[#This Row],[Median]]","v":0},{"$f":"(((AAMC_Raw_Data_for_FY22[[#This Row],[75th]]-AAMC_Raw_Data_for_FY22[[#This Row],[Median]])/25)*35) + AAMC_Raw_Data_for_FY22[[#This Row],[Median]]","v":0},{"$f":"(((AAMC_Raw_Data_for_FY22[[#This Row],[75th]]-AAMC_Raw_Data_for_FY22[[#This Row],[Median]])/25)*40) + AAMC_Raw_Data_for_FY22[[#This Row],[Median]]","v":0}]
[{"$f":"AAMC_Raw_Data_for_FY22[[#This Row],[Source]]&AAMC_Raw_Data_for_FY22[[#This Row],[Type]]&AAMC_Raw_Data_for_FY22[[#This Row],[School Subset]]&AAMC_Raw_Data_for_FY22[[#This Row],[Rank]]&AAMC_Raw_Data_for_FY22[[#This Row],[Degree]]&AAMC_Raw_Data_for_FY22[[#This Row],[Department / Specialty]]&\"L\"","v":"AAMCAcademicPublicInstructorPhDCardiology: Non-invasive-Med.L"},"Cardiology: Non-invasive-Med.",5,"AAMC","Academic","Public","Instructor","PhD","2021-2022",60000,{"$f":"(((AAMC_Raw_Data_for_FY22[[#This Row],[Median]]-AAMC_Raw_Data_for_FY22[[#This Row],[25th]])/25)*5) + AAMC_Raw_Data_for_FY22[[#This Row],[25th]]","v":60420},{"$f":"(((AAMC_Raw_Data_for_FY22[[#This Row],[Median]]-AAMC_Raw_Data_for_FY22[[#This Row],[25th]])/25)*10) + AAMC_Raw_Data_for_FY22[[#This Row],[25th]]","v":60840},{"$f":"(((AAMC_Raw_Data_for_FY22[[#This Row],[Median]]-AAMC_Raw_Data_for_FY22[[#This Row],[25th]])/25)*15) + AAMC_Raw_Data_for_FY22[[#This Row],[25th]]","v":61260},{"$f":"(((AAMC_Raw_Data_for_FY22[[#This Row],[Median]]-AAMC_Raw_Data_for_FY22[[#This Row],[25th]])/25)*20) + AAMC_Raw_Data_for_FY22[[#This Row],[25th]]","v":61680},62100,{"$f":"(((AAMC_Raw_Data_for_FY22[[#This Row],[75th]]-AAMC_Raw_Data_for_FY22[[#This Row],[Median]])/25)*5) + AAMC_Raw_Data_for_FY22[[#This Row],[Median]]","v":64680},{"$f":"(((AAMC_Raw_Data_for_FY22[[#This Row],[75th]]-AAMC_Raw_Data_for_FY22[[#This Row],[Median]])/25)*10) + AAMC_Raw_Data_for_FY22[[#This Row],[Median]]","v":67260},{"$f":"(((AAMC_Raw_Data_for_FY22[[#This Row],[75th]]-AAMC_Raw_Data_for_FY22[[#This Row],[Median]])/25)*15) + AAMC_Raw_Data_for_FY22[[#This Row],[Median]]","v":69840},{"$f":"(((AAMC_Raw_Data_for_FY22[[#This Row],[75th]]-AAMC_Raw_Data_for_FY22[[#This Row],[Median]])/25)*20) + AAMC_Raw_Data_for_FY22[[#This Row],[Median]]","v":72420},75000,{"$f":"(((AAMC_Raw_Data_for_FY22[[#This Row],[75th]]-AAMC_Raw_Data_for_FY22[[#This Row],[Median]])/25)*30) + AAMC_Raw_Data_for_FY22[[#This Row],[Median]]","v":77580},{"$f":"(((AAMC_Raw_Data_for_FY22[[#This Row],[75th]]-AAMC_Raw_Data_for_FY22[[#This Row],[Median]])/25)*35) + AAMC_Raw_Data_for_FY22[[#This Row],[Median]]","v":80160},{"$f":"(((AAMC_Raw_Data_for_FY22[[#This Row],[75th]]-AAMC_Raw_Data_for_FY22[[#This Row],[Median]])/25)*40) + AAMC_Raw_Data_for_FY22[[#This Row],[Median]]","v":82740}]
[{"$f":"AAMC_Raw_Data_for_FY22[[#This Row],[Source]]&AAMC_Raw_Data_for_FY22[[#This Row],[Type]]&AAMC_Raw_Data_for_FY22[[#This Row],[School Subset]]&AAMC_Raw_Data_for_FY22[[#This Row],[Rank]]&AAMC_Raw_Data_for_FY22[[#This Row],[Degree]]&AAMC_Raw_Data_for_FY22[[#This Row],[Department / Specialty]]&\"L\"","v":"AAMCAcademicPublicAssistantPhDCardiology: Non-invasive-Med.L"},"Cardiology: Non-invasive-Med.",4,"AAMC","Academic","Public","Assistant","PhD","2021-2022",77515,{"$f":"(((AAMC_Raw_Data_for_FY22[[#This Row],[Median]]-AAMC_Raw_Data_for_FY22[[#This Row],[25th]])/25)*5) + AAMC_Raw_Data_for_FY22[[#This Row],[25th]]","v":82539},{"$f":"(((AAMC_Raw_Data_for_FY22[[#This Row],[Median]]-AAMC_Raw_Data_for_FY22[[#This Row],[25th]])/25)*10) + AAMC_Raw_Data_for_FY22[[#This Row],[25th]]","v":87563},{"$f":"(((AAMC_Raw_Data_for_FY22[[#This Row],[Median]]-AAMC_Raw_Data_for_FY22[[#This Row],[25th]])/25)*15) + AAMC_Raw_Data_for_FY22[[#This Row],[25th]]","v":92587},{"$f":"(((AAMC_Raw_Data_for_FY22[[#This Row],[Median]]-AAMC_Raw_Data_for_FY22[[#This Row],[25th]])/25)*20) + AAMC_Raw_Data_for_FY22[[#This Row],[25th]]","v":97611},102635,{"$f":"(((AAMC_Raw_Data_for_FY22[[#This Row],[75th]]-AAMC_Raw_Data_for_FY22[[#This Row],[Median]])/25)*5) + AAMC_Raw_Data_for_FY22[[#This Row],[Median]]","v":106115.6},{"$f":"(((AAMC_Raw_Data_for_FY22[[#This Row],[75th]]-AAMC_Raw_Data_for_FY22[[#This Row],[Median]])/25)*10) + AAMC_Raw_Data_for_FY22[[#This Row],[Median]]","v":109596.2},{"$f":"(((AAMC_Raw_Data_for_FY22[[#This Row],[75th]]-AAMC_Raw_Data_for_FY22[[#This Row],[Median]])/25)*15) + AAMC_Raw_Data_for_FY22[[#This Row],[Median]]","v":113076.8},{"$f":"(((AAMC_Raw_Data_for_FY22[[#This Row],[75th]]-AAMC_Raw_Data_for_FY22[[#This Row],[Median]])/25)*20) + AAMC_Raw_Data_for_FY22[[#This Row],[Median]]","v":116557.4},120038,{"$f":"(((AAMC_Raw_Data_for_FY22[[#This Row],[75th]]-AAMC_Raw_Data_for_FY22[[#This Row],[Median]])/25)*30) + AAMC_Raw_Data_for_FY22[[#This Row],[Median]]","v":123518.6},{"$f":"(((AAMC_Raw_Data_for_FY22[[#This Row],[75th]]-AAMC_Raw_Data_for_FY22[[#This Row],[Median]])/25)*35) + AAMC_Raw_Data_for_FY22[[#This Row],[Median]]","v":126999.2},{"$f":"(((AAMC_Raw_Data_for_FY22[[#This Row],[75th]]-AAMC_Raw_Data_for_FY22[[#This Row],[Median]])/25)*40) + AAMC_Raw_Data_for_FY22[[#This Row],[Median]]","v":130479.8}]
[{"$f":"AAMC_Raw_Data_for_FY22[[#This Row],[Source]]&AAMC_Raw_Data_for_FY22[[#This Row],[Type]]&AAMC_Raw_Data_for_FY22[[#This Row],[School Subset]]&AAMC_Raw_Data_for_FY22[[#This Row],[Rank]]&AAMC_Raw_Data_for_FY22[[#This Row],[Degree]]&AAMC_Raw_Data_for_FY22[[#This Row],[Department / Specialty]]&\"L\"","v":"AAMCAcademicPublicAssociatePhDCardiology: Non-invasive-Med.L"},"Cardiology: Non-invasive-Med.",3,"AAMC","Academic","Public","Associate","PhD","2021-2022",110460,{"$f":"(((AAMC_Raw_Data_for_FY22[[#This Row],[Median]]-AAMC_Raw_Data_for_FY22[[#This Row],[25th]])/25)*5) + AAMC_Raw_Data_for_FY22[[#This Row],[25th]]","v":112719.8},{"$f":"(((AAMC_Raw_Data_for_FY22[[#This Row],[Median]]-AAMC_Raw_Data_for_FY22[[#This Row],[25th]])/25)*10) + AAMC_Raw_Data_for_FY22[[#This Row],[25th]]","v":114979.6},{"$f":"(((AAMC_Raw_Data_for_FY22[[#This Row],[Median]]-AAMC_Raw_Data_for_FY22[[#This Row],[25th]])/25)*15) + AAMC_Raw_Data_for_FY22[[#This Row],[25th]]","v":117239.4},{"$f":"(((AAMC_Raw_Data_for_FY22[[#This Row],[Median]]-AAMC_Raw_Data_for_FY22[[#This Row],[25th]])/25)*20) + AAMC_Raw_Data_for_FY22[[#This Row],[25th]]","v":119499.2},121759,{"$f":"(((AAMC_Raw_Data_for_FY22[[#This Row],[75th]]-AAMC_Raw_Data_for_FY22[[#This Row],[Median]])/25)*5) + AAMC_Raw_Data_for_FY22[[#This Row],[Median]]","v":127107.2},{"$f":"(((AAMC_Raw_Data_for_FY22[[#This Row],[75th]]-AAMC_Raw_Data_for_FY22[[#This Row],[Median]])/25)*10) + AAMC_Raw_Data_for_FY22[[#This Row],[Median]]","v":132455.4},{"$f":"(((AAMC_Raw_Data_for_FY22[[#This Row],[75th]]-AAMC_Raw_Data_for_FY22[[#This Row],[Median]])/25)*15) + AAMC_Raw_Data_for_FY22[[#This Row],[Median]]","v":137803.6},{"$f":"(((AAMC_Raw_Data_for_FY22[[#This Row],[75th]]-AAMC_Raw_Data_for_FY22[[#This Row],[Median]])/25)*20) + AAMC_Raw_Data_for_FY22[[#This Row],[Median]]","v":143151.79999999999},148500,{"$f":"(((AAMC_Raw_Data_for_FY22[[#This Row],[75th]]-AAMC_Raw_Data_for_FY22[[#This Row],[Median]])/25)*30) + AAMC_Raw_Data_for_FY22[[#This Row],[Median]]","v":153848.20000000001},{"$f":"(((AAMC_Raw_Data_for_FY22[[#This Row],[75th]]-AAMC_Raw_Data_for_FY22[[#This Row],[Median]])/25)*35) + AAMC_Raw_Data_for_FY22[[#This Row],[Median]]","v":159196.4},{"$f":"(((AAMC_Raw_Data_for_FY22[[#This Row],[75th]]-AAMC_Raw_Data_for_FY22[[#This Row],[Median]])/25)*40) + AAMC_Raw_Data_for_FY22[[#This Row],[Median]]","v":164544.6}]
[{"$f":"AAMC_Raw_Data_for_FY22[[#This Row],[Source]]&AAMC_Raw_Data_for_FY22[[#This Row],[Type]]&AAMC_Raw_Data_for_FY22[[#This Row],[School Subset]]&AAMC_Raw_Data_for_FY22[[#This Row],[Rank]]&AAMC_Raw_Data_for_FY22[[#This Row],[Degree]]&AAMC_Raw_Data_for_FY22[[#This Row],[Department / Specialty]]&\"L\"","v":"AAMCAcademicPublicProfessorPhDCardiology: Non-invasive-Med.L"},"Cardiology: Non-invasive-Med.",2,"AAMC","Academic","Public","Professor","PhD","2021-2022",171726,{"$f":"(((AAMC_Raw_Data_for_FY22[[#This Row],[Median]]-AAMC_Raw_Data_for_FY22[[#This Row],[25th]])/25)*5) + AAMC_Raw_Data_for_FY22[[#This Row],[25th]]","v":180936.6},{"$f":"(((AAMC_Raw_Data_for_FY22[[#This Row],[Median]]-AAMC_Raw_Data_for_FY22[[#This Row],[25th]])/25)*10) + AAMC_Raw_Data_for_FY22[[#This Row],[25th]]","v":190147.20000000001},{"$f":"(((AAMC_Raw_Data_for_FY22[[#This Row],[Median]]-AAMC_Raw_Data_for_FY22[[#This Row],[25th]])/25)*15) + AAMC_Raw_Data_for_FY22[[#This Row],[25th]]","v":199357.8},{"$f":"(((AAMC_Raw_Data_for_FY22[[#This Row],[Median]]-AAMC_Raw_Data_for_FY22[[#This Row],[25th]])/25)*20) + AAMC_Raw_Data_for_FY22[[#This Row],[25th]]","v":208568.4},217779,{"$f":"(((AAMC_Raw_Data_for_FY22[[#This Row],[75th]]-AAMC_Raw_Data_for_FY22[[#This Row],[Median]])/25)*5) + AAMC_Raw_Data_for_FY22[[#This Row],[Median]]","v":228523.2},{"$f":"(((AAMC_Raw_Data_for_FY22[[#This Row],[75th]]-AAMC_Raw_Data_for_FY22[[#This Row],[Median]])/25)*10) + AAMC_Raw_Data_for_FY22[[#This Row],[Median]]","v":239267.4},{"$f":"(((AAMC_Raw_Data_for_FY22[[#This Row],[75th]]-AAMC_Raw_Data_for_FY22[[#This Row],[Median]])/25)*15) + AAMC_Raw_Data_for_FY22[[#This Row],[Median]]","v":250011.6},{"$f":"(((AAMC_Raw_Data_for_FY22[[#This Row],[75th]]-AAMC_Raw_Data_for_FY22[[#This Row],[Median]])/25)*20) + AAMC_Raw_Data_for_FY22[[#This Row],[Median]]","v":260755.8},271500,{"$f":"(((AAMC_Raw_Data_for_FY22[[#This Row],[75th]]-AAMC_Raw_Data_for_FY22[[#This Row],[Median]])/25)*30) + AAMC_Raw_Data_for_FY22[[#This Row],[Median]]","v":282244.2},{"$f":"(((AAMC_Raw_Data_for_FY22[[#This Row],[75th]]-AAMC_Raw_Data_for_FY22[[#This Row],[Median]])/25)*35) + AAMC_Raw_Data_for_FY22[[#This Row],[Median]]","v":292988.40000000002},{"$f":"(((AAMC_Raw_Data_for_FY22[[#This Row],[75th]]-AAMC_Raw_Data_for_FY22[[#This Row],[Median]])/25)*40) + AAMC_Raw_Data_for_FY22[[#This Row],[Median]]","v":303732.59999999998}]
[{"$f":"AAMC_Raw_Data_for_FY22[[#This Row],[Source]]&AAMC_Raw_Data_for_FY22[[#This Row],[Type]]&AAMC_Raw_Data_for_FY22[[#This Row],[School Subset]]&AAMC_Raw_Data_for_FY22[[#This Row],[Rank]]&AAMC_Raw_Data_for_FY22[[#This Row],[Degree]]&AAMC_Raw_Data_for_FY22[[#This Row],[Department / Specialty]]&\"L\"","v":"AAMCAcademicPublicAssistantPhDCritical/Intensive Care-Med.L"},"Critical/Intensive Care-Med.",4,"AAMC","Academic","Public","Assistant","PhD","2021-2022",null,{"$f":"(((AAMC_Raw_Data_for_FY22[[#This Row],[Median]]-AAMC_Raw_Data_for_FY22[[#This Row],[25th]])/25)*5) + AAMC_Raw_Data_for_FY22[[#This Row],[25th]]","v":0},{"$f":"(((AAMC_Raw_Data_for_FY22[[#This Row],[Median]]-AAMC_Raw_Data_for_FY22[[#This Row],[25th]])/25)*10) + AAMC_Raw_Data_for_FY22[[#This Row],[25th]]","v":0},{"$f":"(((AAMC_Raw_Data_for_FY22[[#This Row],[Median]]-AAMC_Raw_Data_for_FY22[[#This Row],[25th]])/25)*15) + AAMC_Raw_Data_for_FY22[[#This Row],[25th]]","v":0},{"$f":"(((AAMC_Raw_Data_for_FY22[[#This Row],[Median]]-AAMC_Raw_Data_for_FY22[[#This Row],[25th]])/25)*20) + AAMC_Raw_Data_for_FY22[[#This Row],[25th]]","v":0},null,{"$f":"(((AAMC_Raw_Data_for_FY22[[#This Row],[75th]]-AAMC_Raw_Data_for_FY22[[#This Row],[Median]])/25)*5) + AAMC_Raw_Data_for_FY22[[#This Row],[Median]]","v":0},{"$f":"(((AAMC_Raw_Data_for_FY22[[#This Row],[75th]]-AAMC_Raw_Data_for_FY22[[#This Row],[Median]])/25)*10) + AAMC_Raw_Data_for_FY22[[#This Row],[Median]]","v":0},{"$f":"(((AAMC_Raw_Data_for_FY22[[#This Row],[75th]]-AAMC_Raw_Data_for_FY22[[#This Row],[Median]])/25)*15) + AAMC_Raw_Data_for_FY22[[#This Row],[Median]]","v":0},{"$f":"(((AAMC_Raw_Data_for_FY22[[#This Row],[75th]]-AAMC_Raw_Data_for_FY22[[#This Row],[Median]])/25)*20) + AAMC_Raw_Data_for_FY22[[#This Row],[Median]]","v":0},null,{"$f":"(((AAMC_Raw_Data_for_FY22[[#This Row],[75th]]-AAMC_Raw_Data_for_FY22[[#This Row],[Median]])/25)*30) + AAMC_Raw_Data_for_FY22[[#This Row],[Median]]","v":0},{"$f":"(((AAMC_Raw_Data_for_FY22[[#This Row],[75th]]-AAMC_Raw_Data_for_FY22[[#This Row],[Median]])/25)*35) + AAMC_Raw_Data_for_FY22[[#This Row],[Median]]","v":0},{"$f":"(((AAMC_Raw_Data_for_FY22[[#This Row],[75th]]-AAMC_Raw_Data_for_FY22[[#This Row],[Median]])/25)*40) + AAMC_Raw_Data_for_FY22[[#This Row],[Median]]","v":0}]
[{"$f":"AAMC_Raw_Data_for_FY22[[#This Row],[Source]]&AAMC_Raw_Data_for_FY22[[#This Row],[Type]]&AAMC_Raw_Data_for_FY22[[#This Row],[School Subset]]&AAMC_Raw_Data_for_FY22[[#This Row],[Rank]]&AAMC_Raw_Data_for_FY22[[#This Row],[Degree]]&AAMC_Raw_Data_for_FY22[[#This Row],[Department / Specialty]]&\"L\"","v":"AAMCAcademicPublicProfessorPhDCritical/Intensive Care-Med.L"},"Critical/Intensive Care-Med.",2,"AAMC","Academic","Public","Professor","PhD","2021-2022",null,{"$f":"(((AAMC_Raw_Data_for_FY22[[#This Row],[Median]]-AAMC_Raw_Data_for_FY22[[#This Row],[25th]])/25)*5) + AAMC_Raw_Data_for_FY22[[#This Row],[25th]]","v":0},{"$f":"(((AAMC_Raw_Data_for_FY22[[#This Row],[Median]]-AAMC_Raw_Data_for_FY22[[#This Row],[25th]])/25)*10) + AAMC_Raw_Data_for_FY22[[#This Row],[25th]]","v":0},{"$f":"(((AAMC_Raw_Data_for_FY22[[#This Row],[Median]]-AAMC_Raw_Data_for_FY22[[#This Row],[25th]])/25)*15) + AAMC_Raw_Data_for_FY22[[#This Row],[25th]]","v":0},{"$f":"(((AAMC_Raw_Data_for_FY22[[#This Row],[Median]]-AAMC_Raw_Data_for_FY22[[#This Row],[25th]])/25)*20) + AAMC_Raw_Data_for_FY22[[#This Row],[25th]]","v":0},null,{"$f":"(((AAMC_Raw_Data_for_FY22[[#This Row],[75th]]-AAMC_Raw_Data_for_FY22[[#This Row],[Median]])/25)*5) + AAMC_Raw_Data_for_FY22[[#This Row],[Median]]","v":0},{"$f":"(((AAMC_Raw_Data_for_FY22[[#This Row],[75th]]-AAMC_Raw_Data_for_FY22[[#This Row],[Median]])/25)*10) + AAMC_Raw_Data_for_FY22[[#This Row],[Median]]","v":0},{"$f":"(((AAMC_Raw_Data_for_FY22[[#This Row],[75th]]-AAMC_Raw_Data_for_FY22[[#This Row],[Median]])/25)*15) + AAMC_Raw_Data_for_FY22[[#This Row],[Median]]","v":0},{"$f":"(((AAMC_Raw_Data_for_FY22[[#This Row],[75th]]-AAMC_Raw_Data_for_FY22[[#This Row],[Median]])/25)*20) + AAMC_Raw_Data_for_FY22[[#This Row],[Median]]","v":0},null,{"$f":"(((AAMC_Raw_Data_for_FY22[[#This Row],[75th]]-AAMC_Raw_Data_for_FY22[[#This Row],[Median]])/25)*30) + AAMC_Raw_Data_for_FY22[[#This Row],[Median]]","v":0},{"$f":"(((AAMC_Raw_Data_for_FY22[[#This Row],[75th]]-AAMC_Raw_Data_for_FY22[[#This Row],[Median]])/25)*35) + AAMC_Raw_Data_for_FY22[[#This Row],[Median]]","v":0},{"$f":"(((AAMC_Raw_Data_for_FY22[[#This Row],[75th]]-AAMC_Raw_Data_for_FY22[[#This Row],[Median]])/25)*40) + AAMC_Raw_Data_for_FY22[[#This Row],[Median]]","v":0}]
[{"$f":"AAMC_Raw_Data_for_FY22[[#This Row],[Source]]&AAMC_Raw_Data_for_FY22[[#This Row],[Type]]&AAMC_Raw_Data_for_FY22[[#This Row],[School Subset]]&AAMC_Raw_Data_for_FY22[[#This Row],[Rank]]&AAMC_Raw_Data_for_FY22[[#This Row],[Degree]]&AAMC_Raw_Data_for_FY22[[#This Row],[Department / Specialty]]&\"L\"","v":"AAMCAcademicPublicInstructorPhDEndocrinology-Med.L"},"Endocrinology-Med.",5,"AAMC","Academic","Public","Instructor","PhD","2021-2022",60994,{"$f":"(((AAMC_Raw_Data_for_FY22[[#This Row],[Median]]-AAMC_Raw_Data_for_FY22[[#This Row],[25th]])/25)*5) + AAMC_Raw_Data_for_FY22[[#This Row],[25th]]","v":62057.599999999999},{"$f":"(((AAMC_Raw_Data_for_FY22[[#This Row],[Median]]-AAMC_Raw_Data_for_FY22[[#This Row],[25th]])/25)*10) + AAMC_Raw_Data_for_FY22[[#This Row],[25th]]","v":63121.2},{"$f":"(((AAMC_Raw_Data_for_FY22[[#This Row],[Median]]-AAMC_Raw_Data_for_FY22[[#This Row],[25th]])/25)*15) + AAMC_Raw_Data_for_FY22[[#This Row],[25th]]","v":64184.800000000003},{"$f":"(((AAMC_Raw_Data_for_FY22[[#This Row],[Median]]-AAMC_Raw_Data_for_FY22[[#This Row],[25th]])/25)*20) + AAMC_Raw_Data_for_FY22[[#This Row],[25th]]","v":65248.4},66312,{"$f":"(((AAMC_Raw_Data_for_FY22[[#This Row],[75th]]-AAMC_Raw_Data_for_FY22[[#This Row],[Median]])/25)*5) + AAMC_Raw_Data_for_FY22[[#This Row],[Median]]","v":69894.8},{"$f":"(((AAMC_Raw_Data_for_FY22[[#This Row],[75th]]-AAMC_Raw_Data_for_FY22[[#This Row],[Median]])/25)*10) + AAMC_Raw_Data_for_FY22[[#This Row],[Median]]","v":73477.600000000006},{"$f":"(((AAMC_Raw_Data_for_FY22[[#This Row],[75th]]-AAMC_Raw_Data_for_FY22[[#This Row],[Median]])/25)*15) + AAMC_Raw_Data_for_FY22[[#This Row],[Median]]","v":77060.399999999994},{"$f":"(((AAMC_Raw_Data_for_FY22[[#This Row],[75th]]-AAMC_Raw_Data_for_FY22[[#This Row],[Median]])/25)*20) + AAMC_Raw_Data_for_FY22[[#This Row],[Median]]","v":80643.199999999997},84226,{"$f":"(((AAMC_Raw_Data_for_FY22[[#This Row],[75th]]-AAMC_Raw_Data_for_FY22[[#This Row],[Median]])/25)*30) + AAMC_Raw_Data_for_FY22[[#This Row],[Median]]","v":87808.8},{"$f":"(((AAMC_Raw_Data_for_FY22[[#This Row],[75th]]-AAMC_Raw_Data_for_FY22[[#This Row],[Median]])/25)*35) + AAMC_Raw_Data_for_FY22[[#This Row],[Median]]","v":91391.6},{"$f":"(((AAMC_Raw_Data_for_FY22[[#This Row],[75th]]-AAMC_Raw_Data_for_FY22[[#This Row],[Median]])/25)*40) + AAMC_Raw_Data_for_FY22[[#This Row],[Median]]","v":94974.399999999994}]
[{"$f":"AAMC_Raw_Data_for_FY22[[#This Row],[Source]]&AAMC_Raw_Data_for_FY22[[#This Row],[Type]]&AAMC_Raw_Data_for_FY22[[#This Row],[School Subset]]&AAMC_Raw_Data_for_FY22[[#This Row],[Rank]]&AAMC_Raw_Data_for_FY22[[#This Row],[Degree]]&AAMC_Raw_Data_for_FY22[[#This Row],[Department / Specialty]]&\"L\"","v":"AAMCAcademicPublicAssistantPhDEndocrinology-Med.L"},"Endocrinology-Med.",4,"AAMC","Academic","Public","Assistant","PhD","2021-2022",80589,{"$f":"(((AAMC_Raw_Data_for_FY22[[#This Row],[Median]]-AAMC_Raw_Data_for_FY22[[#This Row],[25th]])/25)*5) + AAMC_Raw_Data_for_FY22[[#This Row],[25th]]","v":83847.399999999994},{"$f":"(((AAMC_Raw_Data_for_FY22[[#This Row],[Median]]-AAMC_Raw_Data_for_FY22[[#This Row],[25th]])/25)*10) + AAMC_Raw_Data_for_FY22[[#This Row],[25th]]","v":87105.8},{"$f":"(((AAMC_Raw_Data_for_FY22[[#This Row],[Median]]-AAMC_Raw_Data_for_FY22[[#This Row],[25th]])/25)*15) + AAMC_Raw_Data_for_FY22[[#This Row],[25th]]","v":90364.2},{"$f":"(((AAMC_Raw_Data_for_FY22[[#This Row],[Median]]-AAMC_Raw_Data_for_FY22[[#This Row],[25th]])/25)*20) + AAMC_Raw_Data_for_FY22[[#This Row],[25th]]","v":93622.6},96881,{"$f":"(((AAMC_Raw_Data_for_FY22[[#This Row],[75th]]-AAMC_Raw_Data_for_FY22[[#This Row],[Median]])/25)*5) + AAMC_Raw_Data_for_FY22[[#This Row],[Median]]","v":101142.8},{"$f":"(((AAMC_Raw_Data_for_FY22[[#This Row],[75th]]-AAMC_Raw_Data_for_FY22[[#This Row],[Median]])/25)*10) + AAMC_Raw_Data_for_FY22[[#This Row],[Median]]","v":105404.6},{"$f":"(((AAMC_Raw_Data_for_FY22[[#This Row],[75th]]-AAMC_Raw_Data_for_FY22[[#This Row],[Median]])/25)*15) + AAMC_Raw_Data_for_FY22[[#This Row],[Median]]","v":109666.4},{"$f":"(((AAMC_Raw_Data_for_FY22[[#This Row],[75th]]-AAMC_Raw_Data_for_FY22[[#This Row],[Median]])/25)*20) + AAMC_Raw_Data_for_FY22[[#This Row],[Median]]","v":113928.2},118190,{"$f":"(((AAMC_Raw_Data_for_FY22[[#This Row],[75th]]-AAMC_Raw_Data_for_FY22[[#This Row],[Median]])/25)*30) + AAMC_Raw_Data_for_FY22[[#This Row],[Median]]","v":122451.8},{"$f":"(((AAMC_Raw_Data_for_FY22[[#This Row],[75th]]-AAMC_Raw_Data_for_FY22[[#This Row],[Median]])/25)*35) + AAMC_Raw_Data_for_FY22[[#This Row],[Median]]","v":126713.60000000001},{"$f":"(((AAMC_Raw_Data_for_FY22[[#This Row],[75th]]-AAMC_Raw_Data_for_FY22[[#This Row],[Median]])/25)*40) + AAMC_Raw_Data_for_FY22[[#This Row],[Median]]","v":130975.4}]
[{"$f":"AAMC_Raw_Data_for_FY22[[#This Row],[Source]]&AAMC_Raw_Data_for_FY22[[#This Row],[Type]]&AAMC_Raw_Data_for_FY22[[#This Row],[School Subset]]&AAMC_Raw_Data_for_FY22[[#This Row],[Rank]]&AAMC_Raw_Data_for_FY22[[#This Row],[Degree]]&AAMC_Raw_Data_for_FY22[[#This Row],[Department / Specialty]]&\"L\"","v":"AAMCAcademicPublicAssociatePhDEndocrinology-Med.L"},"Endocrinology-Med.",3,"AAMC","Academic","Public","Associate","PhD","2021-2022",108758,{"$f":"(((AAMC_Raw_Data_for_FY22[[#This Row],[Median]]-AAMC_Raw_Data_for_FY22[[#This Row],[25th]])/25)*5) + AAMC_Raw_Data_for_FY22[[#This Row],[25th]]","v":113680.8},{"$f":"(((AAMC_Raw_Data_for_FY22[[#This Row],[Median]]-AAMC_Raw_Data_for_FY22[[#This Row],[25th]])/25)*10) + AAMC_Raw_Data_for_FY22[[#This Row],[25th]]","v":118603.6},{"$f":"(((AAMC_Raw_Data_for_FY22[[#This Row],[Median]]-AAMC_Raw_Data_for_FY22[[#This Row],[25th]])/25)*15) + AAMC_Raw_Data_for_FY22[[#This Row],[25th]]","v":123526.39999999999},{"$f":"(((AAMC_Raw_Data_for_FY22[[#This Row],[Median]]-AAMC_Raw_Data_for_FY22[[#This Row],[25th]])/25)*20) + AAMC_Raw_Data_for_FY22[[#This Row],[25th]]","v":128449.2},133372,{"$f":"(((AAMC_Raw_Data_for_FY22[[#This Row],[75th]]-AAMC_Raw_Data_for_FY22[[#This Row],[Median]])/25)*5) + AAMC_Raw_Data_for_FY22[[#This Row],[Median]]","v":137268.20000000001},{"$f":"(((AAMC_Raw_Data_for_FY22[[#This Row],[75th]]-AAMC_Raw_Data_for_FY22[[#This Row],[Median]])/25)*10) + AAMC_Raw_Data_for_FY22[[#This Row],[Median]]","v":141164.4},{"$f":"(((AAMC_Raw_Data_for_FY22[[#This Row],[75th]]-AAMC_Raw_Data_for_FY22[[#This Row],[Median]])/25)*15) + AAMC_Raw_Data_for_FY22[[#This Row],[Median]]","v":145060.6},{"$f":"(((AAMC_Raw_Data_for_FY22[[#This Row],[75th]]-AAMC_Raw_Data_for_FY22[[#This Row],[Median]])/25)*20) + AAMC_Raw_Data_for_FY22[[#This Row],[Median]]","v":148956.79999999999},152853,{"$f":"(((AAMC_Raw_Data_for_FY22[[#This Row],[75th]]-AAMC_Raw_Data_for_FY22[[#This Row],[Median]])/25)*30) + AAMC_Raw_Data_for_FY22[[#This Row],[Median]]","v":156749.20000000001},{"$f":"(((AAMC_Raw_Data_for_FY22[[#This Row],[75th]]-AAMC_Raw_Data_for_FY22[[#This Row],[Median]])/25)*35) + AAMC_Raw_Data_for_FY22[[#This Row],[Median]]","v":160645.4},{"$f":"(((AAMC_Raw_Data_for_FY22[[#This Row],[75th]]-AAMC_Raw_Data_for_FY22[[#This Row],[Median]])/25)*40) + AAMC_Raw_Data_for_FY22[[#This Row],[Median]]","v":164541.6}]
[{"$f":"AAMC_Raw_Data_for_FY22[[#This Row],[Source]]&AAMC_Raw_Data_for_FY22[[#This Row],[Type]]&AAMC_Raw_Data_for_FY22[[#This Row],[School Subset]]&AAMC_Raw_Data_for_FY22[[#This Row],[Rank]]&AAMC_Raw_Data_for_FY22[[#This Row],[Degree]]&AAMC_Raw_Data_for_FY22[[#This Row],[Department / Specialty]]&\"L\"","v":"AAMCAcademicPublicProfessorPhDEndocrinology-Med.L"},"Endocrinology-Med.",2,"AAMC","Academic","Public","Professor","PhD","2021-2022",149448,{"$f":"(((AAMC_Raw_Data_for_FY22[[#This Row],[Median]]-AAMC_Raw_Data_for_FY22[[#This Row],[25th]])/25)*5) + AAMC_Raw_Data_for_FY22[[#This Row],[25th]]","v":156918.39999999999},{"$f":"(((AAMC_Raw_Data_for_FY22[[#This Row],[Median]]-AAMC_Raw_Data_for_FY22[[#This Row],[25th]])/25)*10) + AAMC_Raw_Data_for_FY22[[#This Row],[25th]]","v":164388.79999999999},{"$f":"(((AAMC_Raw_Data_for_FY22[[#This Row],[Median]]-AAMC_Raw_Data_for_FY22[[#This Row],[25th]])/25)*15) + AAMC_Raw_Data_for_FY22[[#This Row],[25th]]","v":171859.20000000001},{"$f":"(((AAMC_Raw_Data_for_FY22[[#This Row],[Median]]-AAMC_Raw_Data_for_FY22[[#This Row],[25th]])/25)*20) + AAMC_Raw_Data_for_FY22[[#This Row],[25th]]","v":179329.6},186800,{"$f":"(((AAMC_Raw_Data_for_FY22[[#This Row],[75th]]-AAMC_Raw_Data_for_FY22[[#This Row],[Median]])/25)*5) + AAMC_Raw_Data_for_FY22[[#This Row],[Median]]","v":196660},{"$f":"(((AAMC_Raw_Data_for_FY22[[#This Row],[75th]]-AAMC_Raw_Data_for_FY22[[#This Row],[Median]])/25)*10) + AAMC_Raw_Data_for_FY22[[#This Row],[Median]]","v":206520},{"$f":"(((AAMC_Raw_Data_for_FY22[[#This Row],[75th]]-AAMC_Raw_Data_for_FY22[[#This Row],[Median]])/25)*15) + AAMC_Raw_Data_for_FY22[[#This Row],[Median]]","v":216380},{"$f":"(((AAMC_Raw_Data_for_FY22[[#This Row],[75th]]-AAMC_Raw_Data_for_FY22[[#This Row],[Median]])/25)*20) + AAMC_Raw_Data_for_FY22[[#This Row],[Median]]","v":226240},236100,{"$f":"(((AAMC_Raw_Data_for_FY22[[#This Row],[75th]]-AAMC_Raw_Data_for_FY22[[#This Row],[Median]])/25)*30) + AAMC_Raw_Data_for_FY22[[#This Row],[Median]]","v":245960},{"$f":"(((AAMC_Raw_Data_for_FY22[[#This Row],[75th]]-AAMC_Raw_Data_for_FY22[[#This Row],[Median]])/25)*35) + AAMC_Raw_Data_for_FY22[[#This Row],[Median]]","v":255820},{"$f":"(((AAMC_Raw_Data_for_FY22[[#This Row],[75th]]-AAMC_Raw_Data_for_FY22[[#This Row],[Median]])/25)*40) + AAMC_Raw_Data_for_FY22[[#This Row],[Median]]","v":265680}]
[{"$f":"AAMC_Raw_Data_for_FY22[[#This Row],[Source]]&AAMC_Raw_Data_for_FY22[[#This Row],[Type]]&AAMC_Raw_Data_for_FY22[[#This Row],[School Subset]]&AAMC_Raw_Data_for_FY22[[#This Row],[Rank]]&AAMC_Raw_Data_for_FY22[[#This Row],[Degree]]&AAMC_Raw_Data_for_FY22[[#This Row],[Department / Specialty]]&\"L\"","v":"AAMCAcademicPublicChiefPhDEndocrinology-Med.L"},"Endocrinology-Med.",6,"AAMC","Academic","Public","Chief","PhD","2021-2022",null,{"$f":"(((AAMC_Raw_Data_for_FY22[[#This Row],[Median]]-AAMC_Raw_Data_for_FY22[[#This Row],[25th]])/25)*5) + AAMC_Raw_Data_for_FY22[[#This Row],[25th]]","v":0},{"$f":"(((AAMC_Raw_Data_for_FY22[[#This Row],[Median]]-AAMC_Raw_Data_for_FY22[[#This Row],[25th]])/25)*10) + AAMC_Raw_Data_for_FY22[[#This Row],[25th]]","v":0},{"$f":"(((AAMC_Raw_Data_for_FY22[[#This Row],[Median]]-AAMC_Raw_Data_for_FY22[[#This Row],[25th]])/25)*15) + AAMC_Raw_Data_for_FY22[[#This Row],[25th]]","v":0},{"$f":"(((AAMC_Raw_Data_for_FY22[[#This Row],[Median]]-AAMC_Raw_Data_for_FY22[[#This Row],[25th]])/25)*20) + AAMC_Raw_Data_for_FY22[[#This Row],[25th]]","v":0},null,{"$f":"(((AAMC_Raw_Data_for_FY22[[#This Row],[75th]]-AAMC_Raw_Data_for_FY22[[#This Row],[Median]])/25)*5) + AAMC_Raw_Data_for_FY22[[#This Row],[Median]]","v":0},{"$f":"(((AAMC_Raw_Data_for_FY22[[#This Row],[75th]]-AAMC_Raw_Data_for_FY22[[#This Row],[Median]])/25)*10) + AAMC_Raw_Data_for_FY22[[#This Row],[Median]]","v":0},{"$f":"(((AAMC_Raw_Data_for_FY22[[#This Row],[75th]]-AAMC_Raw_Data_for_FY22[[#This Row],[Median]])/25)*15) + AAMC_Raw_Data_for_FY22[[#This Row],[Median]]","v":0},{"$f":"(((AAMC_Raw_Data_for_FY22[[#This Row],[75th]]-AAMC_Raw_Data_for_FY22[[#This Row],[Median]])/25)*20) + AAMC_Raw_Data_for_FY22[[#This Row],[Median]]","v":0},null,{"$f":"(((AAMC_Raw_Data_for_FY22[[#This Row],[75th]]-AAMC_Raw_Data_for_FY22[[#This Row],[Median]])/25)*30) + AAMC_Raw_Data_for_FY22[[#This Row],[Median]]","v":0},{"$f":"(((AAMC_Raw_Data_for_FY22[[#This Row],[75th]]-AAMC_Raw_Data_for_FY22[[#This Row],[Median]])/25)*35) + AAMC_Raw_Data_for_FY22[[#This Row],[Median]]","v":0},{"$f":"(((AAMC_Raw_Data_for_FY22[[#This Row],[75th]]-AAMC_Raw_Data_for_FY22[[#This Row],[Median]])/25)*40) + AAMC_Raw_Data_for_FY22[[#This Row],[Median]]","v":0}]
[{"$f":"AAMC_Raw_Data_for_FY22[[#This Row],[Source]]&AAMC_Raw_Data_for_FY22[[#This Row],[Type]]&AAMC_Raw_Data_for_FY22[[#This Row],[School Subset]]&AAMC_Raw_Data_for_FY22[[#This Row],[Rank]]&AAMC_Raw_Data_for_FY22[[#This Row],[Degree]]&AAMC_Raw_Data_for_FY22[[#This Row],[Department / Specialty]]&\"L\"","v":"AAMCAcademicPublicInstructorPhDGastroenterology-Med.L"},"Gastroenterology-Med.",5,"AAMC","Academic","Public","Instructor","PhD","2021-2022",70918,{"$f":"(((AAMC_Raw_Data_for_FY22[[#This Row],[Median]]-AAMC_Raw_Data_for_FY22[[#This Row],[25th]])/25)*5) + AAMC_Raw_Data_for_FY22[[#This Row],[25th]]","v":72427.8},{"$f":"(((AAMC_Raw_Data_for_FY22[[#This Row],[Median]]-AAMC_Raw_Data_for_FY22[[#This Row],[25th]])/25)*10) + AAMC_Raw_Data_for_FY22[[#This Row],[25th]]","v":73937.600000000006},{"$f":"(((AAMC_Raw_Data_for_FY22[[#This Row],[Median]]-AAMC_Raw_Data_for_FY22[[#This Row],[25th]])/25)*15) + AAMC_Raw_Data_for_FY22[[#This Row],[25th]]","v":75447.399999999994},{"$f":"(((AAMC_Raw_Data_for_FY22[[#This Row],[Median]]-AAMC_Raw_Data_for_FY22[[#This Row],[25th]])/25)*20) + AAMC_Raw_Data_for_FY22[[#This Row],[25th]]","v":76957.2},78467,{"$f":"(((AAMC_Raw_Data_for_FY22[[#This Row],[75th]]-AAMC_Raw_Data_for_FY22[[#This Row],[Median]])/25)*5) + AAMC_Raw_Data_for_FY22[[#This Row],[Median]]","v":81440.800000000003},{"$f":"(((AAMC_Raw_Data_for_FY22[[#This Row],[75th]]-AAMC_Raw_Data_for_FY22[[#This Row],[Median]])/25)*10) + AAMC_Raw_Data_for_FY22[[#This Row],[Median]]","v":84414.6},{"$f":"(((AAMC_Raw_Data_for_FY22[[#This Row],[75th]]-AAMC_Raw_Data_for_FY22[[#This Row],[Median]])/25)*15) + AAMC_Raw_Data_for_FY22[[#This Row],[Median]]","v":87388.4},{"$f":"(((AAMC_Raw_Data_for_FY22[[#This Row],[75th]]-AAMC_Raw_Data_for_FY22[[#This Row],[Median]])/25)*20) + AAMC_Raw_Data_for_FY22[[#This Row],[Median]]","v":90362.2},93336,{"$f":"(((AAMC_Raw_Data_for_FY22[[#This Row],[75th]]-AAMC_Raw_Data_for_FY22[[#This Row],[Median]])/25)*30) + AAMC_Raw_Data_for_FY22[[#This Row],[Median]]","v":96309.8},{"$f":"(((AAMC_Raw_Data_for_FY22[[#This Row],[75th]]-AAMC_Raw_Data_for_FY22[[#This Row],[Median]])/25)*35) + AAMC_Raw_Data_for_FY22[[#This Row],[Median]]","v":99283.6},{"$f":"(((AAMC_Raw_Data_for_FY22[[#This Row],[75th]]-AAMC_Raw_Data_for_FY22[[#This Row],[Median]])/25)*40) + AAMC_Raw_Data_for_FY22[[#This Row],[Median]]","v":102257.4}]
[{"$f":"AAMC_Raw_Data_for_FY22[[#This Row],[Source]]&AAMC_Raw_Data_for_FY22[[#This Row],[Type]]&AAMC_Raw_Data_for_FY22[[#This Row],[School Subset]]&AAMC_Raw_Data_for_FY22[[#This Row],[Rank]]&AAMC_Raw_Data_for_FY22[[#This Row],[Degree]]&AAMC_Raw_Data_for_FY22[[#This Row],[Department / Specialty]]&\"L\"","v":"AAMCAcademicPublicAssistantPhDGastroenterology-Med.L"},"Gastroenterology-Med.",4,"AAMC","Academic","Public","Assistant","PhD","2021-2022",69010,{"$f":"(((AAMC_Raw_Data_for_FY22[[#This Row],[Median]]-AAMC_Raw_Data_for_FY22[[#This Row],[25th]])/25)*5) + AAMC_Raw_Data_for_FY22[[#This Row],[25th]]","v":74776.2},{"$f":"(((AAMC_Raw_Data_for_FY22[[#This Row],[Median]]-AAMC_Raw_Data_for_FY22[[#This Row],[25th]])/25)*10) + AAMC_Raw_Data_for_FY22[[#This Row],[25th]]","v":80542.399999999994},{"$f":"(((AAMC_Raw_Data_for_FY22[[#This Row],[Median]]-AAMC_Raw_Data_for_FY22[[#This Row],[25th]])/25)*15) + AAMC_Raw_Data_for_FY22[[#This Row],[25th]]","v":86308.6},{"$f":"(((AAMC_Raw_Data_for_FY22[[#This Row],[Median]]-AAMC_Raw_Data_for_FY22[[#This Row],[25th]])/25)*20) + AAMC_Raw_Data_for_FY22[[#This Row],[25th]]","v":92074.8},97841,{"$f":"(((AAMC_Raw_Data_for_FY22[[#This Row],[75th]]-AAMC_Raw_Data_for_FY22[[#This Row],[Median]])/25)*5) + AAMC_Raw_Data_for_FY22[[#This Row],[Median]]","v":101392.8},{"$f":"(((AAMC_Raw_Data_for_FY22[[#This Row],[75th]]-AAMC_Raw_Data_for_FY22[[#This Row],[Median]])/25)*10) + AAMC_Raw_Data_for_FY22[[#This Row],[Median]]","v":104944.6},{"$f":"(((AAMC_Raw_Data_for_FY22[[#This Row],[75th]]-AAMC_Raw_Data_for_FY22[[#This Row],[Median]])/25)*15) + AAMC_Raw_Data_for_FY22[[#This Row],[Median]]","v":108496.4},{"$f":"(((AAMC_Raw_Data_for_FY22[[#This Row],[75th]]-AAMC_Raw_Data_for_FY22[[#This Row],[Median]])/25)*20) + AAMC_Raw_Data_for_FY22[[#This Row],[Median]]","v":112048.2},115600,{"$f":"(((AAMC_Raw_Data_for_FY22[[#This Row],[75th]]-AAMC_Raw_Data_for_FY22[[#This Row],[Median]])/25)*30) + AAMC_Raw_Data_for_FY22[[#This Row],[Median]]","v":119151.8},{"$f":"(((AAMC_Raw_Data_for_FY22[[#This Row],[75th]]-AAMC_Raw_Data_for_FY22[[#This Row],[Median]])/25)*35) + AAMC_Raw_Data_for_FY22[[#This Row],[Median]]","v":122703.6},{"$f":"(((AAMC_Raw_Data_for_FY22[[#This Row],[75th]]-AAMC_Raw_Data_for_FY22[[#This Row],[Median]])/25)*40) + AAMC_Raw_Data_for_FY22[[#This Row],[Median]]","v":126255.4}]
[{"$f":"AAMC_Raw_Data_for_FY22[[#This Row],[Source]]&AAMC_Raw_Data_for_FY22[[#This Row],[Type]]&AAMC_Raw_Data_for_FY22[[#This Row],[School Subset]]&AAMC_Raw_Data_for_FY22[[#This Row],[Rank]]&AAMC_Raw_Data_for_FY22[[#This Row],[Degree]]&AAMC_Raw_Data_for_FY22[[#This Row],[Department / Specialty]]&\"L\"","v":"AAMCAcademicPublicAssociatePhDGastroenterology-Med.L"},"Gastroenterology-Med.",3,"AAMC","Academic","Public","Associate","PhD","2021-2022",105468,{"$f":"(((AAMC_Raw_Data_for_FY22[[#This Row],[Median]]-AAMC_Raw_Data_for_FY22[[#This Row],[25th]])/25)*5) + AAMC_Raw_Data_for_FY22[[#This Row],[25th]]","v":108128.4},{"$f":"(((AAMC_Raw_Data_for_FY22[[#This Row],[Median]]-AAMC_Raw_Data_for_FY22[[#This Row],[25th]])/25)*10) + AAMC_Raw_Data_for_FY22[[#This Row],[25th]]","v":110788.8},{"$f":"(((AAMC_Raw_Data_for_FY22[[#This Row],[Median]]-AAMC_Raw_Data_for_FY22[[#This Row],[25th]])/25)*15) + AAMC_Raw_Data_for_FY22[[#This Row],[25th]]","v":113449.2},{"$f":"(((AAMC_Raw_Data_for_FY22[[#This Row],[Median]]-AAMC_Raw_Data_for_FY22[[#This Row],[25th]])/25)*20) + AAMC_Raw_Data_for_FY22[[#This Row],[25th]]","v":116109.6},118770,{"$f":"(((AAMC_Raw_Data_for_FY22[[#This Row],[75th]]-AAMC_Raw_Data_for_FY22[[#This Row],[Median]])/25)*5) + AAMC_Raw_Data_for_FY22[[#This Row],[Median]]","v":123561.8},{"$f":"(((AAMC_Raw_Data_for_FY22[[#This Row],[75th]]-AAMC_Raw_Data_for_FY22[[#This Row],[Median]])/25)*10) + AAMC_Raw_Data_for_FY22[[#This Row],[Median]]","v":128353.60000000001},{"$f":"(((AAMC_Raw_Data_for_FY22[[#This Row],[75th]]-AAMC_Raw_Data_for_FY22[[#This Row],[Median]])/25)*15) + AAMC_Raw_Data_for_FY22[[#This Row],[Median]]","v":133145.4},{"$f":"(((AAMC_Raw_Data_for_FY22[[#This Row],[75th]]-AAMC_Raw_Data_for_FY22[[#This Row],[Median]])/25)*20) + AAMC_Raw_Data_for_FY22[[#This Row],[Median]]","v":137937.20000000001},142729,{"$f":"(((AAMC_Raw_Data_for_FY22[[#This Row],[75th]]-AAMC_Raw_Data_for_FY22[[#This Row],[Median]])/25)*30) + AAMC_Raw_Data_for_FY22[[#This Row],[Median]]","v":147520.79999999999},{"$f":"(((AAMC_Raw_Data_for_FY22[[#This Row],[75th]]-AAMC_Raw_Data_for_FY22[[#This Row],[Median]])/25)*35) + AAMC_Raw_Data_for_FY22[[#This Row],[Median]]","v":152312.6},{"$f":"(((AAMC_Raw_Data_for_FY22[[#This Row],[75th]]-AAMC_Raw_Data_for_FY22[[#This Row],[Median]])/25)*40) + AAMC_Raw_Data_for_FY22[[#This Row],[Median]]","v":157104.4}]
[{"$f":"AAMC_Raw_Data_for_FY22[[#This Row],[Source]]&AAMC_Raw_Data_for_FY22[[#This Row],[Type]]&AAMC_Raw_Data_for_FY22[[#This Row],[School Subset]]&AAMC_Raw_Data_for_FY22[[#This Row],[Rank]]&AAMC_Raw_Data_for_FY22[[#This Row],[Degree]]&AAMC_Raw_Data_for_FY22[[#This Row],[Department / Specialty]]&\"L\"","v":"AAMCAcademicPublicProfessorPhDGastroenterology-Med.L"},"Gastroenterology-Med.",2,"AAMC","Academic","Public","Professor","PhD","2021-2022",180636,{"$f":"(((AAMC_Raw_Data_for_FY22[[#This Row],[Median]]-AAMC_Raw_Data_for_FY22[[#This Row],[25th]])/25)*5) + AAMC_Raw_Data_for_FY22[[#This Row],[25th]]","v":183913.8},{"$f":"(((AAMC_Raw_Data_for_FY22[[#This Row],[Median]]-AAMC_Raw_Data_for_FY22[[#This Row],[25th]])/25)*10) + AAMC_Raw_Data_for_FY22[[#This Row],[25th]]","v":187191.6},{"$f":"(((AAMC_Raw_Data_for_FY22[[#This Row],[Median]]-AAMC_Raw_Data_for_FY22[[#This Row],[25th]])/25)*15) + AAMC_Raw_Data_for_FY22[[#This Row],[25th]]","v":190469.4},{"$f":"(((AAMC_Raw_Data_for_FY22[[#This Row],[Median]]-AAMC_Raw_Data_for_FY22[[#This Row],[25th]])/25)*20) + AAMC_Raw_Data_for_FY22[[#This Row],[25th]]","v":193747.20000000001},197025,{"$f":"(((AAMC_Raw_Data_for_FY22[[#This Row],[75th]]-AAMC_Raw_Data_for_FY22[[#This Row],[Median]])/25)*5) + AAMC_Raw_Data_for_FY22[[#This Row],[Median]]","v":201777.4},{"$f":"(((AAMC_Raw_Data_for_FY22[[#This Row],[75th]]-AAMC_Raw_Data_for_FY22[[#This Row],[Median]])/25)*10) + AAMC_Raw_Data_for_FY22[[#This Row],[Median]]","v":206529.8},{"$f":"(((AAMC_Raw_Data_for_FY22[[#This Row],[75th]]-AAMC_Raw_Data_for_FY22[[#This Row],[Median]])/25)*15) + AAMC_Raw_Data_for_FY22[[#This Row],[Median]]","v":211282.2},{"$f":"(((AAMC_Raw_Data_for_FY22[[#This Row],[75th]]-AAMC_Raw_Data_for_FY22[[#This Row],[Median]])/25)*20) + AAMC_Raw_Data_for_FY22[[#This Row],[Median]]","v":216034.6},220787,{"$f":"(((AAMC_Raw_Data_for_FY22[[#This Row],[75th]]-AAMC_Raw_Data_for_FY22[[#This Row],[Median]])/25)*30) + AAMC_Raw_Data_for_FY22[[#This Row],[Median]]","v":225539.4},{"$f":"(((AAMC_Raw_Data_for_FY22[[#This Row],[75th]]-AAMC_Raw_Data_for_FY22[[#This Row],[Median]])/25)*35) + AAMC_Raw_Data_for_FY22[[#This Row],[Median]]","v":230291.8},{"$f":"(((AAMC_Raw_Data_for_FY22[[#This Row],[75th]]-AAMC_Raw_Data_for_FY22[[#This Row],[Median]])/25)*40) + AAMC_Raw_Data_for_FY22[[#This Row],[Median]]","v":235044.2}]
[{"$f":"AAMC_Raw_Data_for_FY22[[#This Row],[Source]]&AAMC_Raw_Data_for_FY22[[#This Row],[Type]]&AAMC_Raw_Data_for_FY22[[#This Row],[School Subset]]&AAMC_Raw_Data_for_FY22[[#This Row],[Rank]]&AAMC_Raw_Data_for_FY22[[#This Row],[Degree]]&AAMC_Raw_Data_for_FY22[[#This Row],[Department / Specialty]]&\"L\"","v":"AAMCAcademicPublicInstructorPhDGeneral Internal MedicineL"},"General Internal Medicine",5,"AAMC","Academic","Public","Instructor","PhD","2021-2022",68000,{"$f":"(((AAMC_Raw_Data_for_FY22[[#This Row],[Median]]-AAMC_Raw_Data_for_FY22[[#This Row],[25th]])/25)*5) + AAMC_Raw_Data_for_FY22[[#This Row],[25th]]","v":72902.8},{"$f":"(((AAMC_Raw_Data_for_FY22[[#This Row],[Median]]-AAMC_Raw_Data_for_FY22[[#This Row],[25th]])/25)*10) + AAMC_Raw_Data_for_FY22[[#This Row],[25th]]","v":77805.600000000006},{"$f":"(((AAMC_Raw_Data_for_FY22[[#This Row],[Median]]-AAMC_Raw_Data_for_FY22[[#This Row],[25th]])/25)*15) + AAMC_Raw_Data_for_FY22[[#This Row],[25th]]","v":82708.399999999994},{"$f":"(((AAMC_Raw_Data_for_FY22[[#This Row],[Median]]-AAMC_Raw_Data_for_FY22[[#This Row],[25th]])/25)*20) + AAMC_Raw_Data_for_FY22[[#This Row],[25th]]","v":87611.199999999997},92514,{"$f":"(((AAMC_Raw_Data_for_FY22[[#This Row],[75th]]-AAMC_Raw_Data_for_FY22[[#This Row],[Median]])/25)*5) + AAMC_Raw_Data_for_FY22[[#This Row],[Median]]","v":94957},{"$f":"(((AAMC_Raw_Data_for_FY22[[#This Row],[75th]]-AAMC_Raw_Data_for_FY22[[#This Row],[Median]])/25)*10) + AAMC_Raw_Data_for_FY22[[#This Row],[Median]]","v":97400},{"$f":"(((AAMC_Raw_Data_for_FY22[[#This Row],[75th]]-AAMC_Raw_Data_for_FY22[[#This Row],[Median]])/25)*15) + AAMC_Raw_Data_for_FY22[[#This Row],[Median]]","v":99843},{"$f":"(((AAMC_Raw_Data_for_FY22[[#This Row],[75th]]-AAMC_Raw_Data_for_FY22[[#This Row],[Median]])/25)*20) + AAMC_Raw_Data_for_FY22[[#This Row],[Median]]","v":102286},104729,{"$f":"(((AAMC_Raw_Data_for_FY22[[#This Row],[75th]]-AAMC_Raw_Data_for_FY22[[#This Row],[Median]])/25)*30) + AAMC_Raw_Data_for_FY22[[#This Row],[Median]]","v":107172},{"$f":"(((AAMC_Raw_Data_for_FY22[[#This Row],[75th]]-AAMC_Raw_Data_for_FY22[[#This Row],[Median]])/25)*35) + AAMC_Raw_Data_for_FY22[[#This Row],[Median]]","v":109615},{"$f":"(((AAMC_Raw_Data_for_FY22[[#This Row],[75th]]-AAMC_Raw_Data_for_FY22[[#This Row],[Median]])/25)*40) + AAMC_Raw_Data_for_FY22[[#This Row],[Median]]","v":112058}]
[{"$f":"AAMC_Raw_Data_for_FY22[[#This Row],[Source]]&AAMC_Raw_Data_for_FY22[[#This Row],[Type]]&AAMC_Raw_Data_for_FY22[[#This Row],[School Subset]]&AAMC_Raw_Data_for_FY22[[#This Row],[Rank]]&AAMC_Raw_Data_for_FY22[[#This Row],[Degree]]&AAMC_Raw_Data_for_FY22[[#This Row],[Department / Specialty]]&\"L\"","v":"AAMCAcademicPublicAssistantPhDGeneral Internal MedicineL"},"General Internal Medicine",4,"AAMC","Academic","Public","Assistant","PhD","2021-2022",94655,{"$f":"(((AAMC_Raw_Data_for_FY22[[#This Row],[Median]]-AAMC_Raw_Data_for_FY22[[#This Row],[25th]])/25)*5) + AAMC_Raw_Data_for_FY22[[#This Row],[25th]]","v":97851},{"$f":"(((AAMC_Raw_Data_for_FY22[[#This Row],[Median]]-AAMC_Raw_Data_for_FY22[[#This Row],[25th]])/25)*10) + AAMC_Raw_Data_for_FY22[[#This Row],[25th]]","v":101047},{"$f":"(((AAMC_Raw_Data_for_FY22[[#This Row],[Median]]-AAMC_Raw_Data_for_FY22[[#This Row],[25th]])/25)*15) + AAMC_Raw_Data_for_FY22[[#This Row],[25th]]","v":104243},{"$f":"(((AAMC_Raw_Data_for_FY22[[#This Row],[Median]]-AAMC_Raw_Data_for_FY22[[#This Row],[25th]])/25)*20) + AAMC_Raw_Data_for_FY22[[#This Row],[25th]]","v":107439},110635,{"$f":"(((AAMC_Raw_Data_for_FY22[[#This Row],[75th]]-AAMC_Raw_Data_for_FY22[[#This Row],[Median]])/25)*5) + AAMC_Raw_Data_for_FY22[[#This Row],[Median]]","v":113602.8},{"$f":"(((AAMC_Raw_Data_for_FY22[[#This Row],[75th]]-AAMC_Raw_Data_for_FY22[[#This Row],[Median]])/25)*10) + AAMC_Raw_Data_for_FY22[[#This Row],[Median]]","v":116570.6},{"$f":"(((AAMC_Raw_Data_for_FY22[[#This Row],[75th]]-AAMC_Raw_Data_for_FY22[[#This Row],[Median]])/25)*15) + AAMC_Raw_Data_for_FY22[[#This Row],[Median]]","v":119538.4},{"$f":"(((AAMC_Raw_Data_for_FY22[[#This Row],[75th]]-AAMC_Raw_Data_for_FY22[[#This Row],[Median]])/25)*20) + AAMC_Raw_Data_for_FY22[[#This Row],[Median]]","v":122506.2},125474,{"$f":"(((AAMC_Raw_Data_for_FY22[[#This Row],[75th]]-AAMC_Raw_Data_for_FY22[[#This Row],[Median]])/25)*30) + AAMC_Raw_Data_for_FY22[[#This Row],[Median]]","v":128441.8},{"$f":"(((AAMC_Raw_Data_for_FY22[[#This Row],[75th]]-AAMC_Raw_Data_for_FY22[[#This Row],[Median]])/25)*35) + AAMC_Raw_Data_for_FY22[[#This Row],[Median]]","v":131409.60000000001},{"$f":"(((AAMC_Raw_Data_for_FY22[[#This Row],[75th]]-AAMC_Raw_Data_for_FY22[[#This Row],[Median]])/25)*40) + AAMC_Raw_Data_for_FY22[[#This Row],[Median]]","v":134377.4}]
[{"$f":"AAMC_Raw_Data_for_FY22[[#This Row],[Source]]&AAMC_Raw_Data_for_FY22[[#This Row],[Type]]&AAMC_Raw_Data_for_FY22[[#This Row],[School Subset]]&AAMC_Raw_Data_for_FY22[[#This Row],[Rank]]&AAMC_Raw_Data_for_FY22[[#This Row],[Degree]]&AAMC_Raw_Data_for_FY22[[#This Row],[Department / Specialty]]&\"L\"","v":"AAMCAcademicPublicAssociatePhDGeneral Internal MedicineL"},"General Internal Medicine",3,"AAMC","Academic","Public","Associate","PhD","2021-2022",115960,{"$f":"(((AAMC_Raw_Data_for_FY22[[#This Row],[Median]]-AAMC_Raw_Data_for_FY22[[#This Row],[25th]])/25)*5) + AAMC_Raw_Data_for_FY22[[#This Row],[25th]]","v":120878},{"$f":"(((AAMC_Raw_Data_for_FY22[[#This Row],[Median]]-AAMC_Raw_Data_for_FY22[[#This Row],[25th]])/25)*10) + AAMC_Raw_Data_for_FY22[[#This Row],[25th]]","v":125796},{"$f":"(((AAMC_Raw_Data_for_FY22[[#This Row],[Median]]-AAMC_Raw_Data_for_FY22[[#This Row],[25th]])/25)*15) + AAMC_Raw_Data_for_FY22[[#This Row],[25th]]","v":130714},{"$f":"(((AAMC_Raw_Data_for_FY22[[#This Row],[Median]]-AAMC_Raw_Data_for_FY22[[#This Row],[25th]])/25)*20) + AAMC_Raw_Data_for_FY22[[#This Row],[25th]]","v":135632},140550,{"$f":"(((AAMC_Raw_Data_for_FY22[[#This Row],[75th]]-AAMC_Raw_Data_for_FY22[[#This Row],[Median]])/25)*5) + AAMC_Raw_Data_for_FY22[[#This Row],[Median]]","v":145561},{"$f":"(((AAMC_Raw_Data_for_FY22[[#This Row],[75th]]-AAMC_Raw_Data_for_FY22[[#This Row],[Median]])/25)*10) + AAMC_Raw_Data_for_FY22[[#This Row],[Median]]","v":150572},{"$f":"(((AAMC_Raw_Data_for_FY22[[#This Row],[75th]]-AAMC_Raw_Data_for_FY22[[#This Row],[Median]])/25)*15) + AAMC_Raw_Data_for_FY22[[#This Row],[Median]]","v":155583},{"$f":"(((AAMC_Raw_Data_for_FY22[[#This Row],[75th]]-AAMC_Raw_Data_for_FY22[[#This Row],[Median]])/25)*20) + AAMC_Raw_Data_for_FY22[[#This Row],[Median]]","v":160594},165605,{"$f":"(((AAMC_Raw_Data_for_FY22[[#This Row],[75th]]-AAMC_Raw_Data_for_FY22[[#This Row],[Median]])/25)*30) + AAMC_Raw_Data_for_FY22[[#This Row],[Median]]","v":170616},{"$f":"(((AAMC_Raw_Data_for_FY22[[#This Row],[75th]]-AAMC_Raw_Data_for_FY22[[#This Row],[Median]])/25)*35) + AAMC_Raw_Data_for_FY22[[#This Row],[Median]]","v":175627},{"$f":"(((AAMC_Raw_Data_for_FY22[[#This Row],[75th]]-AAMC_Raw_Data_for_FY22[[#This Row],[Median]])/25)*40) + AAMC_Raw_Data_for_FY22[[#This Row],[Median]]","v":180638}]
[{"$f":"AAMC_Raw_Data_for_FY22[[#This Row],[Source]]&AAMC_Raw_Data_for_FY22[[#This Row],[Type]]&AAMC_Raw_Data_for_FY22[[#This Row],[School Subset]]&AAMC_Raw_Data_for_FY22[[#This Row],[Rank]]&AAMC_Raw_Data_for_FY22[[#This Row],[Degree]]&AAMC_Raw_Data_for_FY22[[#This Row],[Department / Specialty]]&\"L\"","v":"AAMCAcademicPublicProfessorPhDGeneral Internal MedicineL"},"General Internal Medicine",2,"AAMC","Academic","Public","Professor","PhD","2021-2022",192403,{"$f":"(((AAMC_Raw_Data_for_FY22[[#This Row],[Median]]-AAMC_Raw_Data_for_FY22[[#This Row],[25th]])/25)*5) + AAMC_Raw_Data_for_FY22[[#This Row],[25th]]","v":197937.4},{"$f":"(((AAMC_Raw_Data_for_FY22[[#This Row],[Median]]-AAMC_Raw_Data_for_FY22[[#This Row],[25th]])/25)*10) + AAMC_Raw_Data_for_FY22[[#This Row],[25th]]","v":203471.8},{"$f":"(((AAMC_Raw_Data_for_FY22[[#This Row],[Median]]-AAMC_Raw_Data_for_FY22[[#This Row],[25th]])/25)*15) + AAMC_Raw_Data_for_FY22[[#This Row],[25th]]","v":209006.2},{"$f":"(((AAMC_Raw_Data_for_FY22[[#This Row],[Median]]-AAMC_Raw_Data_for_FY22[[#This Row],[25th]])/25)*20) + AAMC_Raw_Data_for_FY22[[#This Row],[25th]]","v":214540.6},220075,{"$f":"(((AAMC_Raw_Data_for_FY22[[#This Row],[75th]]-AAMC_Raw_Data_for_FY22[[#This Row],[Median]])/25)*5) + AAMC_Raw_Data_for_FY22[[#This Row],[Median]]","v":229630.8},{"$f":"(((AAMC_Raw_Data_for_FY22[[#This Row],[75th]]-AAMC_Raw_Data_for_FY22[[#This Row],[Median]])/25)*10) + AAMC_Raw_Data_for_FY22[[#This Row],[Median]]","v":239186.6},{"$f":"(((AAMC_Raw_Data_for_FY22[[#This Row],[75th]]-AAMC_Raw_Data_for_FY22[[#This Row],[Median]])/25)*15) + AAMC_Raw_Data_for_FY22[[#This Row],[Median]]","v":248742.39999999999},{"$f":"(((AAMC_Raw_Data_for_FY22[[#This Row],[75th]]-AAMC_Raw_Data_for_FY22[[#This Row],[Median]])/25)*20) + AAMC_Raw_Data_for_FY22[[#This Row],[Median]]","v":258298.2},267854,{"$f":"(((AAMC_Raw_Data_for_FY22[[#This Row],[75th]]-AAMC_Raw_Data_for_FY22[[#This Row],[Median]])/25)*30) + AAMC_Raw_Data_for_FY22[[#This Row],[Median]]","v":277409.8},{"$f":"(((AAMC_Raw_Data_for_FY22[[#This Row],[75th]]-AAMC_Raw_Data_for_FY22[[#This Row],[Median]])/25)*35) + AAMC_Raw_Data_for_FY22[[#This Row],[Median]]","v":286965.59999999998},{"$f":"(((AAMC_Raw_Data_for_FY22[[#This Row],[75th]]-AAMC_Raw_Data_for_FY22[[#This Row],[Median]])/25)*40) + AAMC_Raw_Data_for_FY22[[#This Row],[Median]]","v":296521.40000000002}]
[{"$f":"AAMC_Raw_Data_for_FY22[[#This Row],[Source]]&AAMC_Raw_Data_for_FY22[[#This Row],[Type]]&AAMC_Raw_Data_for_FY22[[#This Row],[School Subset]]&AAMC_Raw_Data_for_FY22[[#This Row],[Rank]]&AAMC_Raw_Data_for_FY22[[#This Row],[Degree]]&AAMC_Raw_Data_for_FY22[[#This Row],[Department / Specialty]]&\"L\"","v":"AAMCAcademicPublicChiefPhDGeneral Internal MedicineL"},"General Internal Medicine",6,"AAMC","Academic","Public","Chief","PhD","2021-2022",null,{"$f":"(((AAMC_Raw_Data_for_FY22[[#This Row],[Median]]-AAMC_Raw_Data_for_FY22[[#This Row],[25th]])/25)*5) + AAMC_Raw_Data_for_FY22[[#This Row],[25th]]","v":0},{"$f":"(((AAMC_Raw_Data_for_FY22[[#This Row],[Median]]-AAMC_Raw_Data_for_FY22[[#This Row],[25th]])/25)*10) + AAMC_Raw_Data_for_FY22[[#This Row],[25th]]","v":0},{"$f":"(((AAMC_Raw_Data_for_FY22[[#This Row],[Median]]-AAMC_Raw_Data_for_FY22[[#This Row],[25th]])/25)*15) + AAMC_Raw_Data_for_FY22[[#This Row],[25th]]","v":0},{"$f":"(((AAMC_Raw_Data_for_FY22[[#This Row],[Median]]-AAMC_Raw_Data_for_FY22[[#This Row],[25th]])/25)*20) + AAMC_Raw_Data_for_FY22[[#This Row],[25th]]","v":0},null,{"$f":"(((AAMC_Raw_Data_for_FY22[[#This Row],[75th]]-AAMC_Raw_Data_for_FY22[[#This Row],[Median]])/25)*5) + AAMC_Raw_Data_for_FY22[[#This Row],[Median]]","v":0},{"$f":"(((AAMC_Raw_Data_for_FY22[[#This Row],[75th]]-AAMC_Raw_Data_for_FY22[[#This Row],[Median]])/25)*10) + AAMC_Raw_Data_for_FY22[[#This Row],[Median]]","v":0},{"$f":"(((AAMC_Raw_Data_for_FY22[[#This Row],[75th]]-AAMC_Raw_Data_for_FY22[[#This Row],[Median]])/25)*15) + AAMC_Raw_Data_for_FY22[[#This Row],[Median]]","v":0},{"$f":"(((AAMC_Raw_Data_for_FY22[[#This Row],[75th]]-AAMC_Raw_Data_for_FY22[[#This Row],[Median]])/25)*20) + AAMC_Raw_Data_for_FY22[[#This Row],[Median]]","v":0},null,{"$f":"(((AAMC_Raw_Data_for_FY22[[#This Row],[75th]]-AAMC_Raw_Data_for_FY22[[#This Row],[Median]])/25)*30) + AAMC_Raw_Data_for_FY22[[#This Row],[Median]]","v":0},{"$f":"(((AAMC_Raw_Data_for_FY22[[#This Row],[75th]]-AAMC_Raw_Data_for_FY22[[#This Row],[Median]])/25)*35) + AAMC_Raw_Data_for_FY22[[#This Row],[Median]]","v":0},{"$f":"(((AAMC_Raw_Data_for_FY22[[#This Row],[75th]]-AAMC_Raw_Data_for_FY22[[#This Row],[Median]])/25)*40) + AAMC_Raw_Data_for_FY22[[#This Row],[Median]]","v":0}]
[{"$f":"AAMC_Raw_Data_for_FY22[[#This Row],[Source]]&AAMC_Raw_Data_for_FY22[[#This Row],[Type]]&AAMC_Raw_Data_for_FY22[[#This Row],[School Subset]]&AAMC_Raw_Data_for_FY22[[#This Row],[Rank]]&AAMC_Raw_Data_for_FY22[[#This Row],[Degree]]&AAMC_Raw_Data_for_FY22[[#This Row],[Department / Specialty]]&\"L\"","v":"AAMCAcademicPublicInstructorPhDGeriatrics-Med.L"},"Geriatrics-Med.",5,"AAMC","Academic","Public","Instructor","PhD","2021-2022",null,{"$f":"(((AAMC_Raw_Data_for_FY22[[#This Row],[Median]]-AAMC_Raw_Data_for_FY22[[#This Row],[25th]])/25)*5) + AAMC_Raw_Data_for_FY22[[#This Row],[25th]]","v":0},{"$f":"(((AAMC_Raw_Data_for_FY22[[#This Row],[Median]]-AAMC_Raw_Data_for_FY22[[#This Row],[25th]])/25)*10) + AAMC_Raw_Data_for_FY22[[#This Row],[25th]]","v":0},{"$f":"(((AAMC_Raw_Data_for_FY22[[#This Row],[Median]]-AAMC_Raw_Data_for_FY22[[#This Row],[25th]])/25)*15) + AAMC_Raw_Data_for_FY22[[#This Row],[25th]]","v":0},{"$f":"(((AAMC_Raw_Data_for_FY22[[#This Row],[Median]]-AAMC_Raw_Data_for_FY22[[#This Row],[25th]])/25)*20) + AAMC_Raw_Data_for_FY22[[#This Row],[25th]]","v":0},null,{"$f":"(((AAMC_Raw_Data_for_FY22[[#This Row],[75th]]-AAMC_Raw_Data_for_FY22[[#This Row],[Median]])/25)*5) + AAMC_Raw_Data_for_FY22[[#This Row],[Median]]","v":0},{"$f":"(((AAMC_Raw_Data_for_FY22[[#This Row],[75th]]-AAMC_Raw_Data_for_FY22[[#This Row],[Median]])/25)*10) + AAMC_Raw_Data_for_FY22[[#This Row],[Median]]","v":0},{"$f":"(((AAMC_Raw_Data_for_FY22[[#This Row],[75th]]-AAMC_Raw_Data_for_FY22[[#This Row],[Median]])/25)*15) + AAMC_Raw_Data_for_FY22[[#This Row],[Median]]","v":0},{"$f":"(((AAMC_Raw_Data_for_FY22[[#This Row],[75th]]-AAMC_Raw_Data_for_FY22[[#This Row],[Median]])/25)*20) + AAMC_Raw_Data_for_FY22[[#This Row],[Median]]","v":0},null,{"$f":"(((AAMC_Raw_Data_for_FY22[[#This Row],[75th]]-AAMC_Raw_Data_for_FY22[[#This Row],[Median]])/25)*30) + AAMC_Raw_Data_for_FY22[[#This Row],[Median]]","v":0},{"$f":"(((AAMC_Raw_Data_for_FY22[[#This Row],[75th]]-AAMC_Raw_Data_for_FY22[[#This Row],[Median]])/25)*35) + AAMC_Raw_Data_for_FY22[[#This Row],[Median]]","v":0},{"$f":"(((AAMC_Raw_Data_for_FY22[[#This Row],[75th]]-AAMC_Raw_Data_for_FY22[[#This Row],[Median]])/25)*40) + AAMC_Raw_Data_for_FY22[[#This Row],[Median]]","v":0}]
[{"$f":"AAMC_Raw_Data_for_FY22[[#This Row],[Source]]&AAMC_Raw_Data_for_FY22[[#This Row],[Type]]&AAMC_Raw_Data_for_FY22[[#This Row],[School Subset]]&AAMC_Raw_Data_for_FY22[[#This Row],[Rank]]&AAMC_Raw_Data_for_FY22[[#This Row],[Degree]]&AAMC_Raw_Data_for_FY22[[#This Row],[Department / Specialty]]&\"L\"","v":"AAMCAcademicPublicAssistantPhDGeriatrics-Med.L"},"Geriatrics-Med.",4,"AAMC","Academic","Public","Assistant","PhD","2021-2022",90913,{"$f":"(((AAMC_Raw_Data_for_FY22[[#This Row],[Median]]-AAMC_Raw_Data_for_FY22[[#This Row],[25th]])/25)*5) + AAMC_Raw_Data_for_FY22[[#This Row],[25th]]","v":92982.8},{"$f":"(((AAMC_Raw_Data_for_FY22[[#This Row],[Median]]-AAMC_Raw_Data_for_FY22[[#This Row],[25th]])/25)*10) + AAMC_Raw_Data_for_FY22[[#This Row],[25th]]","v":95052.6},{"$f":"(((AAMC_Raw_Data_for_FY22[[#This Row],[Median]]-AAMC_Raw_Data_for_FY22[[#This Row],[25th]])/25)*15) + AAMC_Raw_Data_for_FY22[[#This Row],[25th]]","v":97122.4},{"$f":"(((AAMC_Raw_Data_for_FY22[[#This Row],[Median]]-AAMC_Raw_Data_for_FY22[[#This Row],[25th]])/25)*20) + AAMC_Raw_Data_for_FY22[[#This Row],[25th]]","v":99192.2},101262,{"$f":"(((AAMC_Raw_Data_for_FY22[[#This Row],[75th]]-AAMC_Raw_Data_for_FY22[[#This Row],[Median]])/25)*5) + AAMC_Raw_Data_for_FY22[[#This Row],[Median]]","v":105919.2},{"$f":"(((AAMC_Raw_Data_for_FY22[[#This Row],[75th]]-AAMC_Raw_Data_for_FY22[[#This Row],[Median]])/25)*10) + AAMC_Raw_Data_for_FY22[[#This Row],[Median]]","v":110576.4},{"$f":"(((AAMC_Raw_Data_for_FY22[[#This Row],[75th]]-AAMC_Raw_Data_for_FY22[[#This Row],[Median]])/25)*15) + AAMC_Raw_Data_for_FY22[[#This Row],[Median]]","v":115233.60000000001},{"$f":"(((AAMC_Raw_Data_for_FY22[[#This Row],[75th]]-AAMC_Raw_Data_for_FY22[[#This Row],[Median]])/25)*20) + AAMC_Raw_Data_for_FY22[[#This Row],[Median]]","v":119890.8},124548,{"$f":"(((AAMC_Raw_Data_for_FY22[[#This Row],[75th]]-AAMC_Raw_Data_for_FY22[[#This Row],[Median]])/25)*30) + AAMC_Raw_Data_for_FY22[[#This Row],[Median]]","v":129205.2},{"$f":"(((AAMC_Raw_Data_for_FY22[[#This Row],[75th]]-AAMC_Raw_Data_for_FY22[[#This Row],[Median]])/25)*35) + AAMC_Raw_Data_for_FY22[[#This Row],[Median]]","v":133862.39999999999},{"$f":"(((AAMC_Raw_Data_for_FY22[[#This Row],[75th]]-AAMC_Raw_Data_for_FY22[[#This Row],[Median]])/25)*40) + AAMC_Raw_Data_for_FY22[[#This Row],[Median]]","v":138519.6}]
[{"$f":"AAMC_Raw_Data_for_FY22[[#This Row],[Source]]&AAMC_Raw_Data_for_FY22[[#This Row],[Type]]&AAMC_Raw_Data_for_FY22[[#This Row],[School Subset]]&AAMC_Raw_Data_for_FY22[[#This Row],[Rank]]&AAMC_Raw_Data_for_FY22[[#This Row],[Degree]]&AAMC_Raw_Data_for_FY22[[#This Row],[Department / Specialty]]&\"L\"","v":"AAMCAcademicPublicAssociatePhDGeriatrics-Med.L"},"Geriatrics-Med.",3,"AAMC","Academic","Public","Associate","PhD","2021-2022",150000,{"$f":"(((AAMC_Raw_Data_for_FY22[[#This Row],[Median]]-AAMC_Raw_Data_for_FY22[[#This Row],[25th]])/25)*5) + AAMC_Raw_Data_for_FY22[[#This Row],[25th]]","v":152766.6},{"$f":"(((AAMC_Raw_Data_for_FY22[[#This Row],[Median]]-AAMC_Raw_Data_for_FY22[[#This Row],[25th]])/25)*10) + AAMC_Raw_Data_for_FY22[[#This Row],[25th]]","v":155533.20000000001},{"$f":"(((AAMC_Raw_Data_for_FY22[[#This Row],[Median]]-AAMC_Raw_Data_for_FY22[[#This Row],[25th]])/25)*15) + AAMC_Raw_Data_for_FY22[[#This Row],[25th]]","v":158299.79999999999},{"$f":"(((AAMC_Raw_Data_for_FY22[[#This Row],[Median]]-AAMC_Raw_Data_for_FY22[[#This Row],[25th]])/25)*20) + AAMC_Raw_Data_for_FY22[[#This Row],[25th]]","v":161066.4},163833,{"$f":"(((AAMC_Raw_Data_for_FY22[[#This Row],[75th]]-AAMC_Raw_Data_for_FY22[[#This Row],[Median]])/25)*5) + AAMC_Raw_Data_for_FY22[[#This Row],[Median]]","v":167734.39999999999},{"$f":"(((AAMC_Raw_Data_for_FY22[[#This Row],[75th]]-AAMC_Raw_Data_for_FY22[[#This Row],[Median]])/25)*10) + AAMC_Raw_Data_for_FY22[[#This Row],[Median]]","v":171635.8},{"$f":"(((AAMC_Raw_Data_for_FY22[[#This Row],[75th]]-AAMC_Raw_Data_for_FY22[[#This Row],[Median]])/25)*15) + AAMC_Raw_Data_for_FY22[[#This Row],[Median]]","v":175537.2},{"$f":"(((AAMC_Raw_Data_for_FY22[[#This Row],[75th]]-AAMC_Raw_Data_for_FY22[[#This Row],[Median]])/25)*20) + AAMC_Raw_Data_for_FY22[[#This Row],[Median]]","v":179438.6},183340,{"$f":"(((AAMC_Raw_Data_for_FY22[[#This Row],[75th]]-AAMC_Raw_Data_for_FY22[[#This Row],[Median]])/25)*30) + AAMC_Raw_Data_for_FY22[[#This Row],[Median]]","v":187241.4},{"$f":"(((AAMC_Raw_Data_for_FY22[[#This Row],[75th]]-AAMC_Raw_Data_for_FY22[[#This Row],[Median]])/25)*35) + AAMC_Raw_Data_for_FY22[[#This Row],[Median]]","v":191142.8},{"$f":"(((AAMC_Raw_Data_for_FY22[[#This Row],[75th]]-AAMC_Raw_Data_for_FY22[[#This Row],[Median]])/25)*40) + AAMC_Raw_Data_for_FY22[[#This Row],[Median]]","v":195044.2}]
[{"$f":"AAMC_Raw_Data_for_FY22[[#This Row],[Source]]&AAMC_Raw_Data_for_FY22[[#This Row],[Type]]&AAMC_Raw_Data_for_FY22[[#This Row],[School Subset]]&AAMC_Raw_Data_for_FY22[[#This Row],[Rank]]&AAMC_Raw_Data_for_FY22[[#This Row],[Degree]]&AAMC_Raw_Data_for_FY22[[#This Row],[Department / Specialty]]&\"L\"","v":"AAMCAcademicPublicProfessorPhDGeriatrics-Med.L"},"Geriatrics-Med.",2,"AAMC","Academic","Public","Professor","PhD","2021-2022",175331,{"$f":"(((AAMC_Raw_Data_for_FY22[[#This Row],[Median]]-AAMC_Raw_Data_for_FY22[[#This Row],[25th]])/25)*5) + AAMC_Raw_Data_for_FY22[[#This Row],[25th]]","v":179800},{"$f":"(((AAMC_Raw_Data_for_FY22[[#This Row],[Median]]-AAMC_Raw_Data_for_FY22[[#This Row],[25th]])/25)*10) + AAMC_Raw_Data_for_FY22[[#This Row],[25th]]","v":184269},{"$f":"(((AAMC_Raw_Data_for_FY22[[#This Row],[Median]]-AAMC_Raw_Data_for_FY22[[#This Row],[25th]])/25)*15) + AAMC_Raw_Data_for_FY22[[#This Row],[25th]]","v":188738},{"$f":"(((AAMC_Raw_Data_for_FY22[[#This Row],[Median]]-AAMC_Raw_Data_for_FY22[[#This Row],[25th]])/25)*20) + AAMC_Raw_Data_for_FY22[[#This Row],[25th]]","v":193207},197676,{"$f":"(((AAMC_Raw_Data_for_FY22[[#This Row],[75th]]-AAMC_Raw_Data_for_FY22[[#This Row],[Median]])/25)*5) + AAMC_Raw_Data_for_FY22[[#This Row],[Median]]","v":206128},{"$f":"(((AAMC_Raw_Data_for_FY22[[#This Row],[75th]]-AAMC_Raw_Data_for_FY22[[#This Row],[Median]])/25)*10) + AAMC_Raw_Data_for_FY22[[#This Row],[Median]]","v":214580},{"$f":"(((AAMC_Raw_Data_for_FY22[[#This Row],[75th]]-AAMC_Raw_Data_for_FY22[[#This Row],[Median]])/25)*15) + AAMC_Raw_Data_for_FY22[[#This Row],[Median]]","v":223032},{"$f":"(((AAMC_Raw_Data_for_FY22[[#This Row],[75th]]-AAMC_Raw_Data_for_FY22[[#This Row],[Median]])/25)*20) + AAMC_Raw_Data_for_FY22[[#This Row],[Median]]","v":231484},239936,{"$f":"(((AAMC_Raw_Data_for_FY22[[#This Row],[75th]]-AAMC_Raw_Data_for_FY22[[#This Row],[Median]])/25)*30) + AAMC_Raw_Data_for_FY22[[#This Row],[Median]]","v":248388},{"$f":"(((AAMC_Raw_Data_for_FY22[[#This Row],[75th]]-AAMC_Raw_Data_for_FY22[[#This Row],[Median]])/25)*35) + AAMC_Raw_Data_for_FY22[[#This Row],[Median]]","v":256840},{"$f":"(((AAMC_Raw_Data_for_FY22[[#This Row],[75th]]-AAMC_Raw_Data_for_FY22[[#This Row],[Median]])/25)*40) + AAMC_Raw_Data_for_FY22[[#This Row],[Median]]","v":265292}]
[{"$f":"AAMC_Raw_Data_for_FY22[[#This Row],[Source]]&AAMC_Raw_Data_for_FY22[[#This Row],[Type]]&AAMC_Raw_Data_for_FY22[[#This Row],[School Subset]]&AAMC_Raw_Data_for_FY22[[#This Row],[Rank]]&AAMC_Raw_Data_for_FY22[[#This Row],[Degree]]&AAMC_Raw_Data_for_FY22[[#This Row],[Department / Specialty]]&\"L\"","v":"AAMCAcademicPublicInstructorPhDHematology/Oncology-Med.L"},"Hematology/Oncology-Med.",5,"AAMC","Academic","Public","Instructor","PhD","2021-2022",61153,{"$f":"(((AAMC_Raw_Data_for_FY22[[#This Row],[Median]]-AAMC_Raw_Data_for_FY22[[#This Row],[25th]])/25)*5) + AAMC_Raw_Data_for_FY22[[#This Row],[25th]]","v":62639.199999999997},{"$f":"(((AAMC_Raw_Data_for_FY22[[#This Row],[Median]]-AAMC_Raw_Data_for_FY22[[#This Row],[25th]])/25)*10) + AAMC_Raw_Data_for_FY22[[#This Row],[25th]]","v":64125.4},{"$f":"(((AAMC_Raw_Data_for_FY22[[#This Row],[Median]]-AAMC_Raw_Data_for_FY22[[#This Row],[25th]])/25)*15) + AAMC_Raw_Data_for_FY22[[#This Row],[25th]]","v":65611.600000000006},{"$f":"(((AAMC_Raw_Data_for_FY22[[#This Row],[Median]]-AAMC_Raw_Data_for_FY22[[#This Row],[25th]])/25)*20) + AAMC_Raw_Data_for_FY22[[#This Row],[25th]]","v":67097.8},68584,{"$f":"(((AAMC_Raw_Data_for_FY22[[#This Row],[75th]]-AAMC_Raw_Data_for_FY22[[#This Row],[Median]])/25)*5) + AAMC_Raw_Data_for_FY22[[#This Row],[Median]]","v":72367.199999999997},{"$f":"(((AAMC_Raw_Data_for_FY22[[#This Row],[75th]]-AAMC_Raw_Data_for_FY22[[#This Row],[Median]])/25)*10) + AAMC_Raw_Data_for_FY22[[#This Row],[Median]]","v":76150.399999999994},{"$f":"(((AAMC_Raw_Data_for_FY22[[#This Row],[75th]]-AAMC_Raw_Data_for_FY22[[#This Row],[Median]])/25)*15) + AAMC_Raw_Data_for_FY22[[#This Row],[Median]]","v":79933.600000000006},{"$f":"(((AAMC_Raw_Data_for_FY22[[#This Row],[75th]]-AAMC_Raw_Data_for_FY22[[#This Row],[Median]])/25)*20) + AAMC_Raw_Data_for_FY22[[#This Row],[Median]]","v":83716.800000000003},87500,{"$f":"(((AAMC_Raw_Data_for_FY22[[#This Row],[75th]]-AAMC_Raw_Data_for_FY22[[#This Row],[Median]])/25)*30) + AAMC_Raw_Data_for_FY22[[#This Row],[Median]]","v":91283.199999999997},{"$f":"(((AAMC_Raw_Data_for_FY22[[#This Row],[75th]]-AAMC_Raw_Data_for_FY22[[#This Row],[Median]])/25)*35) + AAMC_Raw_Data_for_FY22[[#This Row],[Median]]","v":95066.4},{"$f":"(((AAMC_Raw_Data_for_FY22[[#This Row],[75th]]-AAMC_Raw_Data_for_FY22[[#This Row],[Median]])/25)*40) + AAMC_Raw_Data_for_FY22[[#This Row],[Median]]","v":98849.600000000006}]
[{"$f":"AAMC_Raw_Data_for_FY22[[#This Row],[Source]]&AAMC_Raw_Data_for_FY22[[#This Row],[Type]]&AAMC_Raw_Data_for_FY22[[#This Row],[School Subset]]&AAMC_Raw_Data_for_FY22[[#This Row],[Rank]]&AAMC_Raw_Data_for_FY22[[#This Row],[Degree]]&AAMC_Raw_Data_for_FY22[[#This Row],[Department / Specialty]]&\"L\"","v":"AAMCAcademicPublicAssistantPhDHematology/Oncology-Med.L"},"Hematology/Oncology-Med.",4,"AAMC","Academic","Public","Assistant","PhD","2021-2022",82705,{"$f":"(((AAMC_Raw_Data_for_FY22[[#This Row],[Median]]-AAMC_Raw_Data_for_FY22[[#This Row],[25th]])/25)*5) + AAMC_Raw_Data_for_FY22[[#This Row],[25th]]","v":87164},{"$f":"(((AAMC_Raw_Data_for_FY22[[#This Row],[Median]]-AAMC_Raw_Data_for_FY22[[#This Row],[25th]])/25)*10) + AAMC_Raw_Data_for_FY22[[#This Row],[25th]]","v":91623},{"$f":"(((AAMC_Raw_Data_for_FY22[[#This Row],[Median]]-AAMC_Raw_Data_for_FY22[[#This Row],[25th]])/25)*15) + AAMC_Raw_Data_for_FY22[[#This Row],[25th]]","v":96082},{"$f":"(((AAMC_Raw_Data_for_FY22[[#This Row],[Median]]-AAMC_Raw_Data_for_FY22[[#This Row],[25th]])/25)*20) + AAMC_Raw_Data_for_FY22[[#This Row],[25th]]","v":100541},105000,{"$f":"(((AAMC_Raw_Data_for_FY22[[#This Row],[75th]]-AAMC_Raw_Data_for_FY22[[#This Row],[Median]])/25)*5) + AAMC_Raw_Data_for_FY22[[#This Row],[Median]]","v":109358.8},{"$f":"(((AAMC_Raw_Data_for_FY22[[#This Row],[75th]]-AAMC_Raw_Data_for_FY22[[#This Row],[Median]])/25)*10) + AAMC_Raw_Data_for_FY22[[#This Row],[Median]]","v":113717.6},{"$f":"(((AAMC_Raw_Data_for_FY22[[#This Row],[75th]]-AAMC_Raw_Data_for_FY22[[#This Row],[Median]])/25)*15) + AAMC_Raw_Data_for_FY22[[#This Row],[Median]]","v":118076.4},{"$f":"(((AAMC_Raw_Data_for_FY22[[#This Row],[75th]]-AAMC_Raw_Data_for_FY22[[#This Row],[Median]])/25)*20) + AAMC_Raw_Data_for_FY22[[#This Row],[Median]]","v":122435.2},126794,{"$f":"(((AAMC_Raw_Data_for_FY22[[#This Row],[75th]]-AAMC_Raw_Data_for_FY22[[#This Row],[Median]])/25)*30) + AAMC_Raw_Data_for_FY22[[#This Row],[Median]]","v":131152.79999999999},{"$f":"(((AAMC_Raw_Data_for_FY22[[#This Row],[75th]]-AAMC_Raw_Data_for_FY22[[#This Row],[Median]])/25)*35) + AAMC_Raw_Data_for_FY22[[#This Row],[Median]]","v":135511.6},{"$f":"(((AAMC_Raw_Data_for_FY22[[#This Row],[75th]]-AAMC_Raw_Data_for_FY22[[#This Row],[Median]])/25)*40) + AAMC_Raw_Data_for_FY22[[#This Row],[Median]]","v":139870.39999999999}]
[{"$f":"AAMC_Raw_Data_for_FY22[[#This Row],[Source]]&AAMC_Raw_Data_for_FY22[[#This Row],[Type]]&AAMC_Raw_Data_for_FY22[[#This Row],[School Subset]]&AAMC_Raw_Data_for_FY22[[#This Row],[Rank]]&AAMC_Raw_Data_for_FY22[[#This Row],[Degree]]&AAMC_Raw_Data_for_FY22[[#This Row],[Department / Specialty]]&\"L\"","v":"AAMCAcademicPublicAssociatePhDHematology/Oncology-Med.L"},"Hematology/Oncology-Med.",3,"AAMC","Academic","Public","Associate","PhD","2021-2022",110658,{"$f":"(((AAMC_Raw_Data_for_FY22[[#This Row],[Median]]-AAMC_Raw_Data_for_FY22[[#This Row],[25th]])/25)*5) + AAMC_Raw_Data_for_FY22[[#This Row],[25th]]","v":116526.39999999999},{"$f":"(((AAMC_Raw_Data_for_FY22[[#This Row],[Median]]-AAMC_Raw_Data_for_FY22[[#This Row],[25th]])/25)*10) + AAMC_Raw_Data_for_FY22[[#This Row],[25th]]","v":122394.8},{"$f":"(((AAMC_Raw_Data_for_FY22[[#This Row],[Median]]-AAMC_Raw_Data_for_FY22[[#This Row],[25th]])/25)*15) + AAMC_Raw_Data_for_FY22[[#This Row],[25th]]","v":128263.2},{"$f":"(((AAMC_Raw_Data_for_FY22[[#This Row],[Median]]-AAMC_Raw_Data_for_FY22[[#This Row],[25th]])/25)*20) + AAMC_Raw_Data_for_FY22[[#This Row],[25th]]","v":134131.6},140000,{"$f":"(((AAMC_Raw_Data_for_FY22[[#This Row],[75th]]-AAMC_Raw_Data_for_FY22[[#This Row],[Median]])/25)*5) + AAMC_Raw_Data_for_FY22[[#This Row],[Median]]","v":144537.79999999999},{"$f":"(((AAMC_Raw_Data_for_FY22[[#This Row],[75th]]-AAMC_Raw_Data_for_FY22[[#This Row],[Median]])/25)*10) + AAMC_Raw_Data_for_FY22[[#This Row],[Median]]","v":149075.6},{"$f":"(((AAMC_Raw_Data_for_FY22[[#This Row],[75th]]-AAMC_Raw_Data_for_FY22[[#This Row],[Median]])/25)*15) + AAMC_Raw_Data_for_FY22[[#This Row],[Median]]","v":153613.4},{"$f":"(((AAMC_Raw_Data_for_FY22[[#This Row],[75th]]-AAMC_Raw_Data_for_FY22[[#This Row],[Median]])/25)*20) + AAMC_Raw_Data_for_FY22[[#This Row],[Median]]","v":158151.20000000001},162689,{"$f":"(((AAMC_Raw_Data_for_FY22[[#This Row],[75th]]-AAMC_Raw_Data_for_FY22[[#This Row],[Median]])/25)*30) + AAMC_Raw_Data_for_FY22[[#This Row],[Median]]","v":167226.79999999999},{"$f":"(((AAMC_Raw_Data_for_FY22[[#This Row],[75th]]-AAMC_Raw_Data_for_FY22[[#This Row],[Median]])/25)*35) + AAMC_Raw_Data_for_FY22[[#This Row],[Median]]","v":171764.6},{"$f":"(((AAMC_Raw_Data_for_FY22[[#This Row],[75th]]-AAMC_Raw_Data_for_FY22[[#This Row],[Median]])/25)*40) + AAMC_Raw_Data_for_FY22[[#This Row],[Median]]","v":176302.4}]
[{"$f":"AAMC_Raw_Data_for_FY22[[#This Row],[Source]]&AAMC_Raw_Data_for_FY22[[#This Row],[Type]]&AAMC_Raw_Data_for_FY22[[#This Row],[School Subset]]&AAMC_Raw_Data_for_FY22[[#This Row],[Rank]]&AAMC_Raw_Data_for_FY22[[#This Row],[Degree]]&AAMC_Raw_Data_for_FY22[[#This Row],[Department / Specialty]]&\"L\"","v":"AAMCAcademicPublicProfessorPhDHematology/Oncology-Med.L"},"Hematology/Oncology-Med.",2,"AAMC","Academic","Public","Professor","PhD","2021-2022",162696,{"$f":"(((AAMC_Raw_Data_for_FY22[[#This Row],[Median]]-AAMC_Raw_Data_for_FY22[[#This Row],[25th]])/25)*5) + AAMC_Raw_Data_for_FY22[[#This Row],[25th]]","v":172120.4},{"$f":"(((AAMC_Raw_Data_for_FY22[[#This Row],[Median]]-AAMC_Raw_Data_for_FY22[[#This Row],[25th]])/25)*10) + AAMC_Raw_Data_for_FY22[[#This Row],[25th]]","v":181544.8},{"$f":"(((AAMC_Raw_Data_for_FY22[[#This Row],[Median]]-AAMC_Raw_Data_for_FY22[[#This Row],[25th]])/25)*15) + AAMC_Raw_Data_for_FY22[[#This Row],[25th]]","v":190969.2},{"$f":"(((AAMC_Raw_Data_for_FY22[[#This Row],[Median]]-AAMC_Raw_Data_for_FY22[[#This Row],[25th]])/25)*20) + AAMC_Raw_Data_for_FY22[[#This Row],[25th]]","v":200393.60000000001},209818,{"$f":"(((AAMC_Raw_Data_for_FY22[[#This Row],[75th]]-AAMC_Raw_Data_for_FY22[[#This Row],[Median]])/25)*5) + AAMC_Raw_Data_for_FY22[[#This Row],[Median]]","v":218170},{"$f":"(((AAMC_Raw_Data_for_FY22[[#This Row],[75th]]-AAMC_Raw_Data_for_FY22[[#This Row],[Median]])/25)*10) + AAMC_Raw_Data_for_FY22[[#This Row],[Median]]","v":226522},{"$f":"(((AAMC_Raw_Data_for_FY22[[#This Row],[75th]]-AAMC_Raw_Data_for_FY22[[#This Row],[Median]])/25)*15) + AAMC_Raw_Data_for_FY22[[#This Row],[Median]]","v":234874},{"$f":"(((AAMC_Raw_Data_for_FY22[[#This Row],[75th]]-AAMC_Raw_Data_for_FY22[[#This Row],[Median]])/25)*20) + AAMC_Raw_Data_for_FY22[[#This Row],[Median]]","v":243226},251578,{"$f":"(((AAMC_Raw_Data_for_FY22[[#This Row],[75th]]-AAMC_Raw_Data_for_FY22[[#This Row],[Median]])/25)*30) + AAMC_Raw_Data_for_FY22[[#This Row],[Median]]","v":259930},{"$f":"(((AAMC_Raw_Data_for_FY22[[#This Row],[75th]]-AAMC_Raw_Data_for_FY22[[#This Row],[Median]])/25)*35) + AAMC_Raw_Data_for_FY22[[#This Row],[Median]]","v":268282},{"$f":"(((AAMC_Raw_Data_for_FY22[[#This Row],[75th]]-AAMC_Raw_Data_for_FY22[[#This Row],[Median]])/25)*40) + AAMC_Raw_Data_for_FY22[[#This Row],[Median]]","v":276634}]
[{"$f":"AAMC_Raw_Data_for_FY22[[#This Row],[Source]]&AAMC_Raw_Data_for_FY22[[#This Row],[Type]]&AAMC_Raw_Data_for_FY22[[#This Row],[School Subset]]&AAMC_Raw_Data_for_FY22[[#This Row],[Rank]]&AAMC_Raw_Data_for_FY22[[#This Row],[Degree]]&AAMC_Raw_Data_for_FY22[[#This Row],[Department / Specialty]]&\"L\"","v":"AAMCAcademicPublicChiefPhDHematology/Oncology-Med.L"},"Hematology/Oncology-Med.",6,"AAMC","Academic","Public","Chief","PhD","2021-2022",null,{"$f":"(((AAMC_Raw_Data_for_FY22[[#This Row],[Median]]-AAMC_Raw_Data_for_FY22[[#This Row],[25th]])/25)*5) + AAMC_Raw_Data_for_FY22[[#This Row],[25th]]","v":0},{"$f":"(((AAMC_Raw_Data_for_FY22[[#This Row],[Median]]-AAMC_Raw_Data_for_FY22[[#This Row],[25th]])/25)*10) + AAMC_Raw_Data_for_FY22[[#This Row],[25th]]","v":0},{"$f":"(((AAMC_Raw_Data_for_FY22[[#This Row],[Median]]-AAMC_Raw_Data_for_FY22[[#This Row],[25th]])/25)*15) + AAMC_Raw_Data_for_FY22[[#This Row],[25th]]","v":0},{"$f":"(((AAMC_Raw_Data_for_FY22[[#This Row],[Median]]-AAMC_Raw_Data_for_FY22[[#This Row],[25th]])/25)*20) + AAMC_Raw_Data_for_FY22[[#This Row],[25th]]","v":0},null,{"$f":"(((AAMC_Raw_Data_for_FY22[[#This Row],[75th]]-AAMC_Raw_Data_for_FY22[[#This Row],[Median]])/25)*5) + AAMC_Raw_Data_for_FY22[[#This Row],[Median]]","v":0},{"$f":"(((AAMC_Raw_Data_for_FY22[[#This Row],[75th]]-AAMC_Raw_Data_for_FY22[[#This Row],[Median]])/25)*10) + AAMC_Raw_Data_for_FY22[[#This Row],[Median]]","v":0},{"$f":"(((AAMC_Raw_Data_for_FY22[[#This Row],[75th]]-AAMC_Raw_Data_for_FY22[[#This Row],[Median]])/25)*15) + AAMC_Raw_Data_for_FY22[[#This Row],[Median]]","v":0},{"$f":"(((AAMC_Raw_Data_for_FY22[[#This Row],[75th]]-AAMC_Raw_Data_for_FY22[[#This Row],[Median]])/25)*20) + AAMC_Raw_Data_for_FY22[[#This Row],[Median]]","v":0},null,{"$f":"(((AAMC_Raw_Data_for_FY22[[#This Row],[75th]]-AAMC_Raw_Data_for_FY22[[#This Row],[Median]])/25)*30) + AAMC_Raw_Data_for_FY22[[#This Row],[Median]]","v":0},{"$f":"(((AAMC_Raw_Data_for_FY22[[#This Row],[75th]]-AAMC_Raw_Data_for_FY22[[#This Row],[Median]])/25)*35) + AAMC_Raw_Data_for_FY22[[#This Row],[Median]]","v":0},{"$f":"(((AAMC_Raw_Data_for_FY22[[#This Row],[75th]]-AAMC_Raw_Data_for_FY22[[#This Row],[Median]])/25)*40) + AAMC_Raw_Data_for_FY22[[#This Row],[Median]]","v":0}]
[{"$f":"AAMC_Raw_Data_for_FY22[[#This Row],[Source]]&AAMC_Raw_Data_for_FY22[[#This Row],[Type]]&AAMC_Raw_Data_for_FY22[[#This Row],[School Subset]]&AAMC_Raw_Data_for_FY22[[#This Row],[Rank]]&AAMC_Raw_Data_for_FY22[[#This Row],[Degree]]&AAMC_Raw_Data_for_FY22[[#This Row],[Department / Specialty]]&\"L\"","v":"AAMCAcademicPublicChairPhDHematology/Oncology-Med.L"},"Hematology/Oncology-Med.",1,"AAMC","Academic","Public","Chair","PhD","2021-2022",null,{"$f":"(((AAMC_Raw_Data_for_FY22[[#This Row],[Median]]-AAMC_Raw_Data_for_FY22[[#This Row],[25th]])/25)*5) + AAMC_Raw_Data_for_FY22[[#This Row],[25th]]","v":0},{"$f":"(((AAMC_Raw_Data_for_FY22[[#This Row],[Median]]-AAMC_Raw_Data_for_FY22[[#This Row],[25th]])/25)*10) + AAMC_Raw_Data_for_FY22[[#This Row],[25th]]","v":0},{"$f":"(((AAMC_Raw_Data_for_FY22[[#This Row],[Median]]-AAMC_Raw_Data_for_FY22[[#This Row],[25th]])/25)*15) + AAMC_Raw_Data_for_FY22[[#This Row],[25th]]","v":0},{"$f":"(((AAMC_Raw_Data_for_FY22[[#This Row],[Median]]-AAMC_Raw_Data_for_FY22[[#This Row],[25th]])/25)*20) + AAMC_Raw_Data_for_FY22[[#This Row],[25th]]","v":0},null,{"$f":"(((AAMC_Raw_Data_for_FY22[[#This Row],[75th]]-AAMC_Raw_Data_for_FY22[[#This Row],[Median]])/25)*5) + AAMC_Raw_Data_for_FY22[[#This Row],[Median]]","v":0},{"$f":"(((AAMC_Raw_Data_for_FY22[[#This Row],[75th]]-AAMC_Raw_Data_for_FY22[[#This Row],[Median]])/25)*10) + AAMC_Raw_Data_for_FY22[[#This Row],[Median]]","v":0},{"$f":"(((AAMC_Raw_Data_for_FY22[[#This Row],[75th]]-AAMC_Raw_Data_for_FY22[[#This Row],[Median]])/25)*15) + AAMC_Raw_Data_for_FY22[[#This Row],[Median]]","v":0},{"$f":"(((AAMC_Raw_Data_for_FY22[[#This Row],[75th]]-AAMC_Raw_Data_for_FY22[[#This Row],[Median]])/25)*20) + AAMC_Raw_Data_for_FY22[[#This Row],[Median]]","v":0},null,{"$f":"(((AAMC_Raw_Data_for_FY22[[#This Row],[75th]]-AAMC_Raw_Data_for_FY22[[#This Row],[Median]])/25)*30) + AAMC_Raw_Data_for_FY22[[#This Row],[Median]]","v":0},{"$f":"(((AAMC_Raw_Data_for_FY22[[#This Row],[75th]]-AAMC_Raw_Data_for_FY22[[#This Row],[Median]])/25)*35) + AAMC_Raw_Data_for_FY22[[#This Row],[Median]]","v":0},{"$f":"(((AAMC_Raw_Data_for_FY22[[#This Row],[75th]]-AAMC_Raw_Data_for_FY22[[#This Row],[Median]])/25)*40) + AAMC_Raw_Data_for_FY22[[#This Row],[Median]]","v":0}]
[{"$f":"AAMC_Raw_Data_for_FY22[[#This Row],[Source]]&AAMC_Raw_Data_for_FY22[[#This Row],[Type]]&AAMC_Raw_Data_for_FY22[[#This Row],[School Subset]]&AAMC_Raw_Data_for_FY22[[#This Row],[Rank]]&AAMC_Raw_Data_for_FY22[[#This Row],[Degree]]&AAMC_Raw_Data_for_FY22[[#This Row],[Department / Specialty]]&\"L\"","v":"AAMCAcademicPublicInstructorPhDHospital MedicineL"},"Hospital Medicine",5,"AAMC","Academic","Public","Instructor","PhD","2021-2022",null,{"$f":"(((AAMC_Raw_Data_for_FY22[[#This Row],[Median]]-AAMC_Raw_Data_for_FY22[[#This Row],[25th]])/25)*5) + AAMC_Raw_Data_for_FY22[[#This Row],[25th]]","v":0},{"$f":"(((AAMC_Raw_Data_for_FY22[[#This Row],[Median]]-AAMC_Raw_Data_for_FY22[[#This Row],[25th]])/25)*10) + AAMC_Raw_Data_for_FY22[[#This Row],[25th]]","v":0},{"$f":"(((AAMC_Raw_Data_for_FY22[[#This Row],[Median]]-AAMC_Raw_Data_for_FY22[[#This Row],[25th]])/25)*15) + AAMC_Raw_Data_for_FY22[[#This Row],[25th]]","v":0},{"$f":"(((AAMC_Raw_Data_for_FY22[[#This Row],[Median]]-AAMC_Raw_Data_for_FY22[[#This Row],[25th]])/25)*20) + AAMC_Raw_Data_for_FY22[[#This Row],[25th]]","v":0},null,{"$f":"(((AAMC_Raw_Data_for_FY22[[#This Row],[75th]]-AAMC_Raw_Data_for_FY22[[#This Row],[Median]])/25)*5) + AAMC_Raw_Data_for_FY22[[#This Row],[Median]]","v":0},{"$f":"(((AAMC_Raw_Data_for_FY22[[#This Row],[75th]]-AAMC_Raw_Data_for_FY22[[#This Row],[Median]])/25)*10) + AAMC_Raw_Data_for_FY22[[#This Row],[Median]]","v":0},{"$f":"(((AAMC_Raw_Data_for_FY22[[#This Row],[75th]]-AAMC_Raw_Data_for_FY22[[#This Row],[Median]])/25)*15) + AAMC_Raw_Data_for_FY22[[#This Row],[Median]]","v":0},{"$f":"(((AAMC_Raw_Data_for_FY22[[#This Row],[75th]]-AAMC_Raw_Data_for_FY22[[#This Row],[Median]])/25)*20) + AAMC_Raw_Data_for_FY22[[#This Row],[Median]]","v":0},null,{"$f":"(((AAMC_Raw_Data_for_FY22[[#This Row],[75th]]-AAMC_Raw_Data_for_FY22[[#This Row],[Median]])/25)*30) + AAMC_Raw_Data_for_FY22[[#This Row],[Median]]","v":0},{"$f":"(((AAMC_Raw_Data_for_FY22[[#This Row],[75th]]-AAMC_Raw_Data_for_FY22[[#This Row],[Median]])/25)*35) + AAMC_Raw_Data_for_FY22[[#This Row],[Median]]","v":0},{"$f":"(((AAMC_Raw_Data_for_FY22[[#This Row],[75th]]-AAMC_Raw_Data_for_FY22[[#This Row],[Median]])/25)*40) + AAMC_Raw_Data_for_FY22[[#This Row],[Median]]","v":0}]
[{"$f":"AAMC_Raw_Data_for_FY22[[#This Row],[Source]]&AAMC_Raw_Data_for_FY22[[#This Row],[Type]]&AAMC_Raw_Data_for_FY22[[#This Row],[School Subset]]&AAMC_Raw_Data_for_FY22[[#This Row],[Rank]]&AAMC_Raw_Data_for_FY22[[#This Row],[Degree]]&AAMC_Raw_Data_for_FY22[[#This Row],[Department / Specialty]]&\"L\"","v":"AAMCAcademicPublicAssistantPhDHospital MedicineL"},"Hospital Medicine",4,"AAMC","Academic","Public","Assistant","PhD","2021-2022",115100,{"$f":"(((AAMC_Raw_Data_for_FY22[[#This Row],[Median]]-AAMC_Raw_Data_for_FY22[[#This Row],[25th]])/25)*5) + AAMC_Raw_Data_for_FY22[[#This Row],[25th]]","v":125929.8},{"$f":"(((AAMC_Raw_Data_for_FY22[[#This Row],[Median]]-AAMC_Raw_Data_for_FY22[[#This Row],[25th]])/25)*10) + AAMC_Raw_Data_for_FY22[[#This Row],[25th]]","v":136759.6},{"$f":"(((AAMC_Raw_Data_for_FY22[[#This Row],[Median]]-AAMC_Raw_Data_for_FY22[[#This Row],[25th]])/25)*15) + AAMC_Raw_Data_for_FY22[[#This Row],[25th]]","v":147589.4},{"$f":"(((AAMC_Raw_Data_for_FY22[[#This Row],[Median]]-AAMC_Raw_Data_for_FY22[[#This Row],[25th]])/25)*20) + AAMC_Raw_Data_for_FY22[[#This Row],[25th]]","v":158419.20000000001},169249,{"$f":"(((AAMC_Raw_Data_for_FY22[[#This Row],[75th]]-AAMC_Raw_Data_for_FY22[[#This Row],[Median]])/25)*5) + AAMC_Raw_Data_for_FY22[[#This Row],[Median]]","v":178324.2},{"$f":"(((AAMC_Raw_Data_for_FY22[[#This Row],[75th]]-AAMC_Raw_Data_for_FY22[[#This Row],[Median]])/25)*10) + AAMC_Raw_Data_for_FY22[[#This Row],[Median]]","v":187399.4},{"$f":"(((AAMC_Raw_Data_for_FY22[[#This Row],[75th]]-AAMC_Raw_Data_for_FY22[[#This Row],[Median]])/25)*15) + AAMC_Raw_Data_for_FY22[[#This Row],[Median]]","v":196474.6},{"$f":"(((AAMC_Raw_Data_for_FY22[[#This Row],[75th]]-AAMC_Raw_Data_for_FY22[[#This Row],[Median]])/25)*20) + AAMC_Raw_Data_for_FY22[[#This Row],[Median]]","v":205549.8},214625,{"$f":"(((AAMC_Raw_Data_for_FY22[[#This Row],[75th]]-AAMC_Raw_Data_for_FY22[[#This Row],[Median]])/25)*30) + AAMC_Raw_Data_for_FY22[[#This Row],[Median]]","v":223700.2},{"$f":"(((AAMC_Raw_Data_for_FY22[[#This Row],[75th]]-AAMC_Raw_Data_for_FY22[[#This Row],[Median]])/25)*35) + AAMC_Raw_Data_for_FY22[[#This Row],[Median]]","v":232775.4},{"$f":"(((AAMC_Raw_Data_for_FY22[[#This Row],[75th]]-AAMC_Raw_Data_for_FY22[[#This Row],[Median]])/25)*40) + AAMC_Raw_Data_for_FY22[[#This Row],[Median]]","v":241850.6}]
[{"$f":"AAMC_Raw_Data_for_FY22[[#This Row],[Source]]&AAMC_Raw_Data_for_FY22[[#This Row],[Type]]&AAMC_Raw_Data_for_FY22[[#This Row],[School Subset]]&AAMC_Raw_Data_for_FY22[[#This Row],[Rank]]&AAMC_Raw_Data_for_FY22[[#This Row],[Degree]]&AAMC_Raw_Data_for_FY22[[#This Row],[Department / Specialty]]&\"L\"","v":"AAMCAcademicPublicAssociatePhDHospital MedicineL"},"Hospital Medicine",3,"AAMC","Academic","Public","Associate","PhD","2021-2022",null,{"$f":"(((AAMC_Raw_Data_for_FY22[[#This Row],[Median]]-AAMC_Raw_Data_for_FY22[[#This Row],[25th]])/25)*5) + AAMC_Raw_Data_for_FY22[[#This Row],[25th]]","v":0},{"$f":"(((AAMC_Raw_Data_for_FY22[[#This Row],[Median]]-AAMC_Raw_Data_for_FY22[[#This Row],[25th]])/25)*10) + AAMC_Raw_Data_for_FY22[[#This Row],[25th]]","v":0},{"$f":"(((AAMC_Raw_Data_for_FY22[[#This Row],[Median]]-AAMC_Raw_Data_for_FY22[[#This Row],[25th]])/25)*15) + AAMC_Raw_Data_for_FY22[[#This Row],[25th]]","v":0},{"$f":"(((AAMC_Raw_Data_for_FY22[[#This Row],[Median]]-AAMC_Raw_Data_for_FY22[[#This Row],[25th]])/25)*20) + AAMC_Raw_Data_for_FY22[[#This Row],[25th]]","v":0},null,{"$f":"(((AAMC_Raw_Data_for_FY22[[#This Row],[75th]]-AAMC_Raw_Data_for_FY22[[#This Row],[Median]])/25)*5) + AAMC_Raw_Data_for_FY22[[#This Row],[Median]]","v":0},{"$f":"(((AAMC_Raw_Data_for_FY22[[#This Row],[75th]]-AAMC_Raw_Data_for_FY22[[#This Row],[Median]])/25)*10) + AAMC_Raw_Data_for_FY22[[#This Row],[Median]]","v":0},{"$f":"(((AAMC_Raw_Data_for_FY22[[#This Row],[75th]]-AAMC_Raw_Data_for_FY22[[#This Row],[Median]])/25)*15) + AAMC_Raw_Data_for_FY22[[#This Row],[Median]]","v":0},{"$f":"(((AAMC_Raw_Data_for_FY22[[#This Row],[75th]]-AAMC_Raw_Data_for_FY22[[#This Row],[Median]])/25)*20) + AAMC_Raw_Data_for_FY22[[#This Row],[Median]]","v":0},null,{"$f":"(((AAMC_Raw_Data_for_FY22[[#This Row],[75th]]-AAMC_Raw_Data_for_FY22[[#This Row],[Median]])/25)*30) + AAMC_Raw_Data_for_FY22[[#This Row],[Median]]","v":0},{"$f":"(((AAMC_Raw_Data_for_FY22[[#This Row],[75th]]-AAMC_Raw_Data_for_FY22[[#This Row],[Median]])/25)*35) + AAMC_Raw_Data_for_FY22[[#This Row],[Median]]","v":0},{"$f":"(((AAMC_Raw_Data_for_FY22[[#This Row],[75th]]-AAMC_Raw_Data_for_FY22[[#This Row],[Median]])/25)*40) + AAMC_Raw_Data_for_FY22[[#This Row],[Median]]","v":0}]
[{"$f":"AAMC_Raw_Data_for_FY22[[#This Row],[Source]]&AAMC_Raw_Data_for_FY22[[#This Row],[Type]]&AAMC_Raw_Data_for_FY22[[#This Row],[School Subset]]&AAMC_Raw_Data_for_FY22[[#This Row],[Rank]]&AAMC_Raw_Data_for_FY22[[#This Row],[Degree]]&AAMC_Raw_Data_for_FY22[[#This Row],[Department / Specialty]]&\"L\"","v":"AAMCAcademicPublicProfessorPhDHospital MedicineL"},"Hospital Medicine",2,"AAMC","Academic","Public","Professor","PhD","2021-2022",null,{"$f":"(((AAMC_Raw_Data_for_FY22[[#This Row],[Median]]-AAMC_Raw_Data_for_FY22[[#This Row],[25th]])/25)*5) + AAMC_Raw_Data_for_FY22[[#This Row],[25th]]","v":0},{"$f":"(((AAMC_Raw_Data_for_FY22[[#This Row],[Median]]-AAMC_Raw_Data_for_FY22[[#This Row],[25th]])/25)*10) + AAMC_Raw_Data_for_FY22[[#This Row],[25th]]","v":0},{"$f":"(((AAMC_Raw_Data_for_FY22[[#This Row],[Median]]-AAMC_Raw_Data_for_FY22[[#This Row],[25th]])/25)*15) + AAMC_Raw_Data_for_FY22[[#This Row],[25th]]","v":0},{"$f":"(((AAMC_Raw_Data_for_FY22[[#This Row],[Median]]-AAMC_Raw_Data_for_FY22[[#This Row],[25th]])/25)*20) + AAMC_Raw_Data_for_FY22[[#This Row],[25th]]","v":0},null,{"$f":"(((AAMC_Raw_Data_for_FY22[[#This Row],[75th]]-AAMC_Raw_Data_for_FY22[[#This Row],[Median]])/25)*5) + AAMC_Raw_Data_for_FY22[[#This Row],[Median]]","v":0},{"$f":"(((AAMC_Raw_Data_for_FY22[[#This Row],[75th]]-AAMC_Raw_Data_for_FY22[[#This Row],[Median]])/25)*10) + AAMC_Raw_Data_for_FY22[[#This Row],[Median]]","v":0},{"$f":"(((AAMC_Raw_Data_for_FY22[[#This Row],[75th]]-AAMC_Raw_Data_for_FY22[[#This Row],[Median]])/25)*15) + AAMC_Raw_Data_for_FY22[[#This Row],[Median]]","v":0},{"$f":"(((AAMC_Raw_Data_for_FY22[[#This Row],[75th]]-AAMC_Raw_Data_for_FY22[[#This Row],[Median]])/25)*20) + AAMC_Raw_Data_for_FY22[[#This Row],[Median]]","v":0},null,{"$f":"(((AAMC_Raw_Data_for_FY22[[#This Row],[75th]]-AAMC_Raw_Data_for_FY22[[#This Row],[Median]])/25)*30) + AAMC_Raw_Data_for_FY22[[#This Row],[Median]]","v":0},{"$f":"(((AAMC_Raw_Data_for_FY22[[#This Row],[75th]]-AAMC_Raw_Data_for_FY22[[#This Row],[Median]])/25)*35) + AAMC_Raw_Data_for_FY22[[#This Row],[Median]]","v":0},{"$f":"(((AAMC_Raw_Data_for_FY22[[#This Row],[75th]]-AAMC_Raw_Data_for_FY22[[#This Row],[Median]])/25)*40) + AAMC_Raw_Data_for_FY22[[#This Row],[Median]]","v":0}]
[{"$f":"AAMC_Raw_Data_for_FY22[[#This Row],[Source]]&AAMC_Raw_Data_for_FY22[[#This Row],[Type]]&AAMC_Raw_Data_for_FY22[[#This Row],[School Subset]]&AAMC_Raw_Data_for_FY22[[#This Row],[Rank]]&AAMC_Raw_Data_for_FY22[[#This Row],[Degree]]&AAMC_Raw_Data_for_FY22[[#This Row],[Department / Specialty]]&\"L\"","v":"AAMCAcademicPublicInstructorPhDInfectious Disease-Med.L"},"Infectious Disease-Med.",5,"AAMC","Academic","Public","Instructor","PhD","2021-2022",null,{"$f":"(((AAMC_Raw_Data_for_FY22[[#This Row],[Median]]-AAMC_Raw_Data_for_FY22[[#This Row],[25th]])/25)*5) + AAMC_Raw_Data_for_FY22[[#This Row],[25th]]","v":0},{"$f":"(((AAMC_Raw_Data_for_FY22[[#This Row],[Median]]-AAMC_Raw_Data_for_FY22[[#This Row],[25th]])/25)*10) + AAMC_Raw_Data_for_FY22[[#This Row],[25th]]","v":0},{"$f":"(((AAMC_Raw_Data_for_FY22[[#This Row],[Median]]-AAMC_Raw_Data_for_FY22[[#This Row],[25th]])/25)*15) + AAMC_Raw_Data_for_FY22[[#This Row],[25th]]","v":0},{"$f":"(((AAMC_Raw_Data_for_FY22[[#This Row],[Median]]-AAMC_Raw_Data_for_FY22[[#This Row],[25th]])/25)*20) + AAMC_Raw_Data_for_FY22[[#This Row],[25th]]","v":0},null,{"$f":"(((AAMC_Raw_Data_for_FY22[[#This Row],[75th]]-AAMC_Raw_Data_for_FY22[[#This Row],[Median]])/25)*5) + AAMC_Raw_Data_for_FY22[[#This Row],[Median]]","v":0},{"$f":"(((AAMC_Raw_Data_for_FY22[[#This Row],[75th]]-AAMC_Raw_Data_for_FY22[[#This Row],[Median]])/25)*10) + AAMC_Raw_Data_for_FY22[[#This Row],[Median]]","v":0},{"$f":"(((AAMC_Raw_Data_for_FY22[[#This Row],[75th]]-AAMC_Raw_Data_for_FY22[[#This Row],[Median]])/25)*15) + AAMC_Raw_Data_for_FY22[[#This Row],[Median]]","v":0},{"$f":"(((AAMC_Raw_Data_for_FY22[[#This Row],[75th]]-AAMC_Raw_Data_for_FY22[[#This Row],[Median]])/25)*20) + AAMC_Raw_Data_for_FY22[[#This Row],[Median]]","v":0},null,{"$f":"(((AAMC_Raw_Data_for_FY22[[#This Row],[75th]]-AAMC_Raw_Data_for_FY22[[#This Row],[Median]])/25)*30) + AAMC_Raw_Data_for_FY22[[#This Row],[Median]]","v":0},{"$f":"(((AAMC_Raw_Data_for_FY22[[#This Row],[75th]]-AAMC_Raw_Data_for_FY22[[#This Row],[Median]])/25)*35) + AAMC_Raw_Data_for_FY22[[#This Row],[Median]]","v":0},{"$f":"(((AAMC_Raw_Data_for_FY22[[#This Row],[75th]]-AAMC_Raw_Data_for_FY22[[#This Row],[Median]])/25)*40) + AAMC_Raw_Data_for_FY22[[#This Row],[Median]]","v":0}]
[{"$f":"AAMC_Raw_Data_for_FY22[[#This Row],[Source]]&AAMC_Raw_Data_for_FY22[[#This Row],[Type]]&AAMC_Raw_Data_for_FY22[[#This Row],[School Subset]]&AAMC_Raw_Data_for_FY22[[#This Row],[Rank]]&AAMC_Raw_Data_for_FY22[[#This Row],[Degree]]&AAMC_Raw_Data_for_FY22[[#This Row],[Department / Specialty]]&\"L\"","v":"AAMCAcademicPublicAssistantPhDInfectious Disease-Med.L"},"Infectious Disease-Med.",4,"AAMC","Academic","Public","Assistant","PhD","2021-2022",89750,{"$f":"(((AAMC_Raw_Data_for_FY22[[#This Row],[Median]]-AAMC_Raw_Data_for_FY22[[#This Row],[25th]])/25)*5) + AAMC_Raw_Data_for_FY22[[#This Row],[25th]]","v":93235.199999999997},{"$f":"(((AAMC_Raw_Data_for_FY22[[#This Row],[Median]]-AAMC_Raw_Data_for_FY22[[#This Row],[25th]])/25)*10) + AAMC_Raw_Data_for_FY22[[#This Row],[25th]]","v":96720.4},{"$f":"(((AAMC_Raw_Data_for_FY22[[#This Row],[Median]]-AAMC_Raw_Data_for_FY22[[#This Row],[25th]])/25)*15) + AAMC_Raw_Data_for_FY22[[#This Row],[25th]]","v":100205.6},{"$f":"(((AAMC_Raw_Data_for_FY22[[#This Row],[Median]]-AAMC_Raw_Data_for_FY22[[#This Row],[25th]])/25)*20) + AAMC_Raw_Data_for_FY22[[#This Row],[25th]]","v":103690.8},107176,{"$f":"(((AAMC_Raw_Data_for_FY22[[#This Row],[75th]]-AAMC_Raw_Data_for_FY22[[#This Row],[Median]])/25)*5) + AAMC_Raw_Data_for_FY22[[#This Row],[Median]]","v":110383.2},{"$f":"(((AAMC_Raw_Data_for_FY22[[#This Row],[75th]]-AAMC_Raw_Data_for_FY22[[#This Row],[Median]])/25)*10) + AAMC_Raw_Data_for_FY22[[#This Row],[Median]]","v":113590.39999999999},{"$f":"(((AAMC_Raw_Data_for_FY22[[#This Row],[75th]]-AAMC_Raw_Data_for_FY22[[#This Row],[Median]])/25)*15) + AAMC_Raw_Data_for_FY22[[#This Row],[Median]]","v":116797.6},{"$f":"(((AAMC_Raw_Data_for_FY22[[#This Row],[75th]]-AAMC_Raw_Data_for_FY22[[#This Row],[Median]])/25)*20) + AAMC_Raw_Data_for_FY22[[#This Row],[Median]]","v":120004.8},123212,{"$f":"(((AAMC_Raw_Data_for_FY22[[#This Row],[75th]]-AAMC_Raw_Data_for_FY22[[#This Row],[Median]])/25)*30) + AAMC_Raw_Data_for_FY22[[#This Row],[Median]]","v":126419.2},{"$f":"(((AAMC_Raw_Data_for_FY22[[#This Row],[75th]]-AAMC_Raw_Data_for_FY22[[#This Row],[Median]])/25)*35) + AAMC_Raw_Data_for_FY22[[#This Row],[Median]]","v":129626.4},{"$f":"(((AAMC_Raw_Data_for_FY22[[#This Row],[75th]]-AAMC_Raw_Data_for_FY22[[#This Row],[Median]])/25)*40) + AAMC_Raw_Data_for_FY22[[#This Row],[Median]]","v":132833.60000000001}]
[{"$f":"AAMC_Raw_Data_for_FY22[[#This Row],[Source]]&AAMC_Raw_Data_for_FY22[[#This Row],[Type]]&AAMC_Raw_Data_for_FY22[[#This Row],[School Subset]]&AAMC_Raw_Data_for_FY22[[#This Row],[Rank]]&AAMC_Raw_Data_for_FY22[[#This Row],[Degree]]&AAMC_Raw_Data_for_FY22[[#This Row],[Department / Specialty]]&\"L\"","v":"AAMCAcademicPublicAssociatePhDInfectious Disease-Med.L"},"Infectious Disease-Med.",3,"AAMC","Academic","Public","Associate","PhD","2021-2022",110913,{"$f":"(((AAMC_Raw_Data_for_FY22[[#This Row],[Median]]-AAMC_Raw_Data_for_FY22[[#This Row],[25th]])/25)*5) + AAMC_Raw_Data_for_FY22[[#This Row],[25th]]","v":117526.39999999999},{"$f":"(((AAMC_Raw_Data_for_FY22[[#This Row],[Median]]-AAMC_Raw_Data_for_FY22[[#This Row],[25th]])/25)*10) + AAMC_Raw_Data_for_FY22[[#This Row],[25th]]","v":124139.8},{"$f":"(((AAMC_Raw_Data_for_FY22[[#This Row],[Median]]-AAMC_Raw_Data_for_FY22[[#This Row],[25th]])/25)*15) + AAMC_Raw_Data_for_FY22[[#This Row],[25th]]","v":130753.2},{"$f":"(((AAMC_Raw_Data_for_FY22[[#This Row],[Median]]-AAMC_Raw_Data_for_FY22[[#This Row],[25th]])/25)*20) + AAMC_Raw_Data_for_FY22[[#This Row],[25th]]","v":137366.6},143980,{"$f":"(((AAMC_Raw_Data_for_FY22[[#This Row],[75th]]-AAMC_Raw_Data_for_FY22[[#This Row],[Median]])/25)*5) + AAMC_Raw_Data_for_FY22[[#This Row],[Median]]","v":146241.60000000001},{"$f":"(((AAMC_Raw_Data_for_FY22[[#This Row],[75th]]-AAMC_Raw_Data_for_FY22[[#This Row],[Median]])/25)*10) + AAMC_Raw_Data_for_FY22[[#This Row],[Median]]","v":148503.20000000001},{"$f":"(((AAMC_Raw_Data_for_FY22[[#This Row],[75th]]-AAMC_Raw_Data_for_FY22[[#This Row],[Median]])/25)*15) + AAMC_Raw_Data_for_FY22[[#This Row],[Median]]","v":150764.79999999999},{"$f":"(((AAMC_Raw_Data_for_FY22[[#This Row],[75th]]-AAMC_Raw_Data_for_FY22[[#This Row],[Median]])/25)*20) + AAMC_Raw_Data_for_FY22[[#This Row],[Median]]","v":153026.4},155288,{"$f":"(((AAMC_Raw_Data_for_FY22[[#This Row],[75th]]-AAMC_Raw_Data_for_FY22[[#This Row],[Median]])/25)*30) + AAMC_Raw_Data_for_FY22[[#This Row],[Median]]","v":157549.6},{"$f":"(((AAMC_Raw_Data_for_FY22[[#This Row],[75th]]-AAMC_Raw_Data_for_FY22[[#This Row],[Median]])/25)*35) + AAMC_Raw_Data_for_FY22[[#This Row],[Median]]","v":159811.20000000001},{"$f":"(((AAMC_Raw_Data_for_FY22[[#This Row],[75th]]-AAMC_Raw_Data_for_FY22[[#This Row],[Median]])/25)*40) + AAMC_Raw_Data_for_FY22[[#This Row],[Median]]","v":162072.79999999999}]
[{"$f":"AAMC_Raw_Data_for_FY22[[#This Row],[Source]]&AAMC_Raw_Data_for_FY22[[#This Row],[Type]]&AAMC_Raw_Data_for_FY22[[#This Row],[School Subset]]&AAMC_Raw_Data_for_FY22[[#This Row],[Rank]]&AAMC_Raw_Data_for_FY22[[#This Row],[Degree]]&AAMC_Raw_Data_for_FY22[[#This Row],[Department / Specialty]]&\"L\"","v":"AAMCAcademicPublicProfessorPhDInfectious Disease-Med.L"},"Infectious Disease-Med.",2,"AAMC","Academic","Public","Professor","PhD","2021-2022",168037,{"$f":"(((AAMC_Raw_Data_for_FY22[[#This Row],[Median]]-AAMC_Raw_Data_for_FY22[[#This Row],[25th]])/25)*5) + AAMC_Raw_Data_for_FY22[[#This Row],[25th]]","v":176599.8},{"$f":"(((AAMC_Raw_Data_for_FY22[[#This Row],[Median]]-AAMC_Raw_Data_for_FY22[[#This Row],[25th]])/25)*10) + AAMC_Raw_Data_for_FY22[[#This Row],[25th]]","v":185162.6},{"$f":"(((AAMC_Raw_Data_for_FY22[[#This Row],[Median]]-AAMC_Raw_Data_for_FY22[[#This Row],[25th]])/25)*15) + AAMC_Raw_Data_for_FY22[[#This Row],[25th]]","v":193725.4},{"$f":"(((AAMC_Raw_Data_for_FY22[[#This Row],[Median]]-AAMC_Raw_Data_for_FY22[[#This Row],[25th]])/25)*20) + AAMC_Raw_Data_for_FY22[[#This Row],[25th]]","v":202288.2},210851,{"$f":"(((AAMC_Raw_Data_for_FY22[[#This Row],[75th]]-AAMC_Raw_Data_for_FY22[[#This Row],[Median]])/25)*5) + AAMC_Raw_Data_for_FY22[[#This Row],[Median]]","v":218196.2},{"$f":"(((AAMC_Raw_Data_for_FY22[[#This Row],[75th]]-AAMC_Raw_Data_for_FY22[[#This Row],[Median]])/25)*10) + AAMC_Raw_Data_for_FY22[[#This Row],[Median]]","v":225541.4},{"$f":"(((AAMC_Raw_Data_for_FY22[[#This Row],[75th]]-AAMC_Raw_Data_for_FY22[[#This Row],[Median]])/25)*15) + AAMC_Raw_Data_for_FY22[[#This Row],[Median]]","v":232886.6},{"$f":"(((AAMC_Raw_Data_for_FY22[[#This Row],[75th]]-AAMC_Raw_Data_for_FY22[[#This Row],[Median]])/25)*20) + AAMC_Raw_Data_for_FY22[[#This Row],[Median]]","v":240231.8},247577,{"$f":"(((AAMC_Raw_Data_for_FY22[[#This Row],[75th]]-AAMC_Raw_Data_for_FY22[[#This Row],[Median]])/25)*30) + AAMC_Raw_Data_for_FY22[[#This Row],[Median]]","v":254922.2},{"$f":"(((AAMC_Raw_Data_for_FY22[[#This Row],[75th]]-AAMC_Raw_Data_for_FY22[[#This Row],[Median]])/25)*35) + AAMC_Raw_Data_for_FY22[[#This Row],[Median]]","v":262267.40000000002},{"$f":"(((AAMC_Raw_Data_for_FY22[[#This Row],[75th]]-AAMC_Raw_Data_for_FY22[[#This Row],[Median]])/25)*40) + AAMC_Raw_Data_for_FY22[[#This Row],[Median]]","v":269612.59999999998}]
[{"$f":"AAMC_Raw_Data_for_FY22[[#This Row],[Source]]&AAMC_Raw_Data_for_FY22[[#This Row],[Type]]&AAMC_Raw_Data_for_FY22[[#This Row],[School Subset]]&AAMC_Raw_Data_for_FY22[[#This Row],[Rank]]&AAMC_Raw_Data_for_FY22[[#This Row],[Degree]]&AAMC_Raw_Data_for_FY22[[#This Row],[Department / Specialty]]&\"L\"","v":"AAMCAcademicPublicInstructorPhDNephrology-Med.L"},"Nephrology-Med.",5,"AAMC","Academic","Public","Instructor","PhD","2021-2022",68214,{"$f":"(((AAMC_Raw_Data_for_FY22[[#This Row],[Median]]-AAMC_Raw_Data_for_FY22[[#This Row],[25th]])/25)*5) + AAMC_Raw_Data_for_FY22[[#This Row],[25th]]","v":69771.600000000006},{"$f":"(((AAMC_Raw_Data_for_FY22[[#This Row],[Median]]-AAMC_Raw_Data_for_FY22[[#This Row],[25th]])/25)*10) + AAMC_Raw_Data_for_FY22[[#This Row],[25th]]","v":71329.2},{"$f":"(((AAMC_Raw_Data_for_FY22[[#This Row],[Median]]-AAMC_Raw_Data_for_FY22[[#This Row],[25th]])/25)*15) + AAMC_Raw_Data_for_FY22[[#This Row],[25th]]","v":72886.8},{"$f":"(((AAMC_Raw_Data_for_FY22[[#This Row],[Median]]-AAMC_Raw_Data_for_FY22[[#This Row],[25th]])/25)*20) + AAMC_Raw_Data_for_FY22[[#This Row],[25th]]","v":74444.399999999994},76002,{"$f":"(((AAMC_Raw_Data_for_FY22[[#This Row],[75th]]-AAMC_Raw_Data_for_FY22[[#This Row],[Median]])/25)*5) + AAMC_Raw_Data_for_FY22[[#This Row],[Median]]","v":77581.2},{"$f":"(((AAMC_Raw_Data_for_FY22[[#This Row],[75th]]-AAMC_Raw_Data_for_FY22[[#This Row],[Median]])/25)*10) + AAMC_Raw_Data_for_FY22[[#This Row],[Median]]","v":79160.399999999994},{"$f":"(((AAMC_Raw_Data_for_FY22[[#This Row],[75th]]-AAMC_Raw_Data_for_FY22[[#This Row],[Median]])/25)*15) + AAMC_Raw_Data_for_FY22[[#This Row],[Median]]","v":80739.600000000006},{"$f":"(((AAMC_Raw_Data_for_FY22[[#This Row],[75th]]-AAMC_Raw_Data_for_FY22[[#This Row],[Median]])/25)*20) + AAMC_Raw_Data_for_FY22[[#This Row],[Median]]","v":82318.8},83898,{"$f":"(((AAMC_Raw_Data_for_FY22[[#This Row],[75th]]-AAMC_Raw_Data_for_FY22[[#This Row],[Median]])/25)*30) + AAMC_Raw_Data_for_FY22[[#This Row],[Median]]","v":85477.2},{"$f":"(((AAMC_Raw_Data_for_FY22[[#This Row],[75th]]-AAMC_Raw_Data_for_FY22[[#This Row],[Median]])/25)*35) + AAMC_Raw_Data_for_FY22[[#This Row],[Median]]","v":87056.4},{"$f":"(((AAMC_Raw_Data_for_FY22[[#This Row],[75th]]-AAMC_Raw_Data_for_FY22[[#This Row],[Median]])/25)*40) + AAMC_Raw_Data_for_FY22[[#This Row],[Median]]","v":88635.6}]
[{"$f":"AAMC_Raw_Data_for_FY22[[#This Row],[Source]]&AAMC_Raw_Data_for_FY22[[#This Row],[Type]]&AAMC_Raw_Data_for_FY22[[#This Row],[School Subset]]&AAMC_Raw_Data_for_FY22[[#This Row],[Rank]]&AAMC_Raw_Data_for_FY22[[#This Row],[Degree]]&AAMC_Raw_Data_for_FY22[[#This Row],[Department / Specialty]]&\"L\"","v":"AAMCAcademicPublicAssistantPhDNephrology-Med.L"},"Nephrology-Med.",4,"AAMC","Academic","Public","Assistant","PhD","2021-2022",76224,{"$f":"(((AAMC_Raw_Data_for_FY22[[#This Row],[Median]]-AAMC_Raw_Data_for_FY22[[#This Row],[25th]])/25)*5) + AAMC_Raw_Data_for_FY22[[#This Row],[25th]]","v":78154.600000000006},{"$f":"(((AAMC_Raw_Data_for_FY22[[#This Row],[Median]]-AAMC_Raw_Data_for_FY22[[#This Row],[25th]])/25)*10) + AAMC_Raw_Data_for_FY22[[#This Row],[25th]]","v":80085.2},{"$f":"(((AAMC_Raw_Data_for_FY22[[#This Row],[Median]]-AAMC_Raw_Data_for_FY22[[#This Row],[25th]])/25)*15) + AAMC_Raw_Data_for_FY22[[#This Row],[25th]]","v":82015.8},{"$f":"(((AAMC_Raw_Data_for_FY22[[#This Row],[Median]]-AAMC_Raw_Data_for_FY22[[#This Row],[25th]])/25)*20) + AAMC_Raw_Data_for_FY22[[#This Row],[25th]]","v":83946.4},85877,{"$f":"(((AAMC_Raw_Data_for_FY22[[#This Row],[75th]]-AAMC_Raw_Data_for_FY22[[#This Row],[Median]])/25)*5) + AAMC_Raw_Data_for_FY22[[#This Row],[Median]]","v":88984.4},{"$f":"(((AAMC_Raw_Data_for_FY22[[#This Row],[75th]]-AAMC_Raw_Data_for_FY22[[#This Row],[Median]])/25)*10) + AAMC_Raw_Data_for_FY22[[#This Row],[Median]]","v":92091.8},{"$f":"(((AAMC_Raw_Data_for_FY22[[#This Row],[75th]]-AAMC_Raw_Data_for_FY22[[#This Row],[Median]])/25)*15) + AAMC_Raw_Data_for_FY22[[#This Row],[Median]]","v":95199.2},{"$f":"(((AAMC_Raw_Data_for_FY22[[#This Row],[75th]]-AAMC_Raw_Data_for_FY22[[#This Row],[Median]])/25)*20) + AAMC_Raw_Data_for_FY22[[#This Row],[Median]]","v":98306.6},101414,{"$f":"(((AAMC_Raw_Data_for_FY22[[#This Row],[75th]]-AAMC_Raw_Data_for_FY22[[#This Row],[Median]])/25)*30) + AAMC_Raw_Data_for_FY22[[#This Row],[Median]]","v":104521.4},{"$f":"(((AAMC_Raw_Data_for_FY22[[#This Row],[75th]]-AAMC_Raw_Data_for_FY22[[#This Row],[Median]])/25)*35) + AAMC_Raw_Data_for_FY22[[#This Row],[Median]]","v":107628.8},{"$f":"(((AAMC_Raw_Data_for_FY22[[#This Row],[75th]]-AAMC_Raw_Data_for_FY22[[#This Row],[Median]])/25)*40) + AAMC_Raw_Data_for_FY22[[#This Row],[Median]]","v":110736.2}]
[{"$f":"AAMC_Raw_Data_for_FY22[[#This Row],[Source]]&AAMC_Raw_Data_for_FY22[[#This Row],[Type]]&AAMC_Raw_Data_for_FY22[[#This Row],[School Subset]]&AAMC_Raw_Data_for_FY22[[#This Row],[Rank]]&AAMC_Raw_Data_for_FY22[[#This Row],[Degree]]&AAMC_Raw_Data_for_FY22[[#This Row],[Department / Specialty]]&\"L\"","v":"AAMCAcademicPublicAssociatePhDNephrology-Med.L"},"Nephrology-Med.",3,"AAMC","Academic","Public","Associate","PhD","2021-2022",105686,{"$f":"(((AAMC_Raw_Data_for_FY22[[#This Row],[Median]]-AAMC_Raw_Data_for_FY22[[#This Row],[25th]])/25)*5) + AAMC_Raw_Data_for_FY22[[#This Row],[25th]]","v":112048.8},{"$f":"(((AAMC_Raw_Data_for_FY22[[#This Row],[Median]]-AAMC_Raw_Data_for_FY22[[#This Row],[25th]])/25)*10) + AAMC_Raw_Data_for_FY22[[#This Row],[25th]]","v":118411.6},{"$f":"(((AAMC_Raw_Data_for_FY22[[#This Row],[Median]]-AAMC_Raw_Data_for_FY22[[#This Row],[25th]])/25)*15) + AAMC_Raw_Data_for_FY22[[#This Row],[25th]]","v":124774.39999999999},{"$f":"(((AAMC_Raw_Data_for_FY22[[#This Row],[Median]]-AAMC_Raw_Data_for_FY22[[#This Row],[25th]])/25)*20) + AAMC_Raw_Data_for_FY22[[#This Row],[25th]]","v":131137.20000000001},137500,{"$f":"(((AAMC_Raw_Data_for_FY22[[#This Row],[75th]]-AAMC_Raw_Data_for_FY22[[#This Row],[Median]])/25)*5) + AAMC_Raw_Data_for_FY22[[#This Row],[Median]]","v":139547.20000000001},{"$f":"(((AAMC_Raw_Data_for_FY22[[#This Row],[75th]]-AAMC_Raw_Data_for_FY22[[#This Row],[Median]])/25)*10) + AAMC_Raw_Data_for_FY22[[#This Row],[Median]]","v":141594.4},{"$f":"(((AAMC_Raw_Data_for_FY22[[#This Row],[75th]]-AAMC_Raw_Data_for_FY22[[#This Row],[Median]])/25)*15) + AAMC_Raw_Data_for_FY22[[#This Row],[Median]]","v":143641.60000000001},{"$f":"(((AAMC_Raw_Data_for_FY22[[#This Row],[75th]]-AAMC_Raw_Data_for_FY22[[#This Row],[Median]])/25)*20) + AAMC_Raw_Data_for_FY22[[#This Row],[Median]]","v":145688.79999999999},147736,{"$f":"(((AAMC_Raw_Data_for_FY22[[#This Row],[75th]]-AAMC_Raw_Data_for_FY22[[#This Row],[Median]])/25)*30) + AAMC_Raw_Data_for_FY22[[#This Row],[Median]]","v":149783.20000000001},{"$f":"(((AAMC_Raw_Data_for_FY22[[#This Row],[75th]]-AAMC_Raw_Data_for_FY22[[#This Row],[Median]])/25)*35) + AAMC_Raw_Data_for_FY22[[#This Row],[Median]]","v":151830.39999999999},{"$f":"(((AAMC_Raw_Data_for_FY22[[#This Row],[75th]]-AAMC_Raw_Data_for_FY22[[#This Row],[Median]])/25)*40) + AAMC_Raw_Data_for_FY22[[#This Row],[Median]]","v":153877.6}]
[{"$f":"AAMC_Raw_Data_for_FY22[[#This Row],[Source]]&AAMC_Raw_Data_for_FY22[[#This Row],[Type]]&AAMC_Raw_Data_for_FY22[[#This Row],[School Subset]]&AAMC_Raw_Data_for_FY22[[#This Row],[Rank]]&AAMC_Raw_Data_for_FY22[[#This Row],[Degree]]&AAMC_Raw_Data_for_FY22[[#This Row],[Department / Specialty]]&\"L\"","v":"AAMCAcademicPublicProfessorPhDNephrology-Med.L"},"Nephrology-Med.",2,"AAMC","Academic","Public","Professor","PhD","2021-2022",155052,{"$f":"(((AAMC_Raw_Data_for_FY22[[#This Row],[Median]]-AAMC_Raw_Data_for_FY22[[#This Row],[25th]])/25)*5) + AAMC_Raw_Data_for_FY22[[#This Row],[25th]]","v":157591},{"$f":"(((AAMC_Raw_Data_for_FY22[[#This Row],[Median]]-AAMC_Raw_Data_for_FY22[[#This Row],[25th]])/25)*10) + AAMC_Raw_Data_for_FY22[[#This Row],[25th]]","v":160130},{"$f":"(((AAMC_Raw_Data_for_FY22[[#This Row],[Median]]-AAMC_Raw_Data_for_FY22[[#This Row],[25th]])/25)*15) + AAMC_Raw_Data_for_FY22[[#This Row],[25th]]","v":162669},{"$f":"(((AAMC_Raw_Data_for_FY22[[#This Row],[Median]]-AAMC_Raw_Data_for_FY22[[#This Row],[25th]])/25)*20) + AAMC_Raw_Data_for_FY22[[#This Row],[25th]]","v":165208},167747,{"$f":"(((AAMC_Raw_Data_for_FY22[[#This Row],[75th]]-AAMC_Raw_Data_for_FY22[[#This Row],[Median]])/25)*5) + AAMC_Raw_Data_for_FY22[[#This Row],[Median]]","v":176272},{"$f":"(((AAMC_Raw_Data_for_FY22[[#This Row],[75th]]-AAMC_Raw_Data_for_FY22[[#This Row],[Median]])/25)*10) + AAMC_Raw_Data_for_FY22[[#This Row],[Median]]","v":184797},{"$f":"(((AAMC_Raw_Data_for_FY22[[#This Row],[75th]]-AAMC_Raw_Data_for_FY22[[#This Row],[Median]])/25)*15) + AAMC_Raw_Data_for_FY22[[#This Row],[Median]]","v":193322},{"$f":"(((AAMC_Raw_Data_for_FY22[[#This Row],[75th]]-AAMC_Raw_Data_for_FY22[[#This Row],[Median]])/25)*20) + AAMC_Raw_Data_for_FY22[[#This Row],[Median]]","v":201847},210372,{"$f":"(((AAMC_Raw_Data_for_FY22[[#This Row],[75th]]-AAMC_Raw_Data_for_FY22[[#This Row],[Median]])/25)*30) + AAMC_Raw_Data_for_FY22[[#This Row],[Median]]","v":218897},{"$f":"(((AAMC_Raw_Data_for_FY22[[#This Row],[75th]]-AAMC_Raw_Data_for_FY22[[#This Row],[Median]])/25)*35) + AAMC_Raw_Data_for_FY22[[#This Row],[Median]]","v":227422},{"$f":"(((AAMC_Raw_Data_for_FY22[[#This Row],[75th]]-AAMC_Raw_Data_for_FY22[[#This Row],[Median]])/25)*40) + AAMC_Raw_Data_for_FY22[[#This Row],[Median]]","v":235947}]
[{"$f":"AAMC_Raw_Data_for_FY22[[#This Row],[Source]]&AAMC_Raw_Data_for_FY22[[#This Row],[Type]]&AAMC_Raw_Data_for_FY22[[#This Row],[School Subset]]&AAMC_Raw_Data_for_FY22[[#This Row],[Rank]]&AAMC_Raw_Data_for_FY22[[#This Row],[Degree]]&AAMC_Raw_Data_for_FY22[[#This Row],[Department / Specialty]]&\"L\"","v":"AAMCAcademicPublicInstructorPhDPalliative Care-Med.L"},"Palliative Care-Med.",5,"AAMC","Academic","Public","Instructor","PhD","2021-2022",null,{"$f":"(((AAMC_Raw_Data_for_FY22[[#This Row],[Median]]-AAMC_Raw_Data_for_FY22[[#This Row],[25th]])/25)*5) + AAMC_Raw_Data_for_FY22[[#This Row],[25th]]","v":0},{"$f":"(((AAMC_Raw_Data_for_FY22[[#This Row],[Median]]-AAMC_Raw_Data_for_FY22[[#This Row],[25th]])/25)*10) + AAMC_Raw_Data_for_FY22[[#This Row],[25th]]","v":0},{"$f":"(((AAMC_Raw_Data_for_FY22[[#This Row],[Median]]-AAMC_Raw_Data_for_FY22[[#This Row],[25th]])/25)*15) + AAMC_Raw_Data_for_FY22[[#This Row],[25th]]","v":0},{"$f":"(((AAMC_Raw_Data_for_FY22[[#This Row],[Median]]-AAMC_Raw_Data_for_FY22[[#This Row],[25th]])/25)*20) + AAMC_Raw_Data_for_FY22[[#This Row],[25th]]","v":0},null,{"$f":"(((AAMC_Raw_Data_for_FY22[[#This Row],[75th]]-AAMC_Raw_Data_for_FY22[[#This Row],[Median]])/25)*5) + AAMC_Raw_Data_for_FY22[[#This Row],[Median]]","v":0},{"$f":"(((AAMC_Raw_Data_for_FY22[[#This Row],[75th]]-AAMC_Raw_Data_for_FY22[[#This Row],[Median]])/25)*10) + AAMC_Raw_Data_for_FY22[[#This Row],[Median]]","v":0},{"$f":"(((AAMC_Raw_Data_for_FY22[[#This Row],[75th]]-AAMC_Raw_Data_for_FY22[[#This Row],[Median]])/25)*15) + AAMC_Raw_Data_for_FY22[[#This Row],[Median]]","v":0},{"$f":"(((AAMC_Raw_Data_for_FY22[[#This Row],[75th]]-AAMC_Raw_Data_for_FY22[[#This Row],[Median]])/25)*20) + AAMC_Raw_Data_for_FY22[[#This Row],[Median]]","v":0},null,{"$f":"(((AAMC_Raw_Data_for_FY22[[#This Row],[75th]]-AAMC_Raw_Data_for_FY22[[#This Row],[Median]])/25)*30) + AAMC_Raw_Data_for_FY22[[#This Row],[Median]]","v":0},{"$f":"(((AAMC_Raw_Data_for_FY22[[#This Row],[75th]]-AAMC_Raw_Data_for_FY22[[#This Row],[Median]])/25)*35) + AAMC_Raw_Data_for_FY22[[#This Row],[Median]]","v":0},{"$f":"(((AAMC_Raw_Data_for_FY22[[#This Row],[75th]]-AAMC_Raw_Data_for_FY22[[#This Row],[Median]])/25)*40) + AAMC_Raw_Data_for_FY22[[#This Row],[Median]]","v":0}]
[{"$f":"AAMC_Raw_Data_for_FY22[[#This Row],[Source]]&AAMC_Raw_Data_for_FY22[[#This Row],[Type]]&AAMC_Raw_Data_for_FY22[[#This Row],[School Subset]]&AAMC_Raw_Data_for_FY22[[#This Row],[Rank]]&AAMC_Raw_Data_for_FY22[[#This Row],[Degree]]&AAMC_Raw_Data_for_FY22[[#This Row],[Department / Specialty]]&\"L\"","v":"AAMCAcademicPublicAssociatePhDPalliative Care-Med.L"},"Palliative Care-Med.",3,"AAMC","Academic","Public","Associate","PhD","2021-2022",null,{"$f":"(((AAMC_Raw_Data_for_FY22[[#This Row],[Median]]-AAMC_Raw_Data_for_FY22[[#This Row],[25th]])/25)*5) + AAMC_Raw_Data_for_FY22[[#This Row],[25th]]","v":0},{"$f":"(((AAMC_Raw_Data_for_FY22[[#This Row],[Median]]-AAMC_Raw_Data_for_FY22[[#This Row],[25th]])/25)*10) + AAMC_Raw_Data_for_FY22[[#This Row],[25th]]","v":0},{"$f":"(((AAMC_Raw_Data_for_FY22[[#This Row],[Median]]-AAMC_Raw_Data_for_FY22[[#This Row],[25th]])/25)*15) + AAMC_Raw_Data_for_FY22[[#This Row],[25th]]","v":0},{"$f":"(((AAMC_Raw_Data_for_FY22[[#This Row],[Median]]-AAMC_Raw_Data_for_FY22[[#This Row],[25th]])/25)*20) + AAMC_Raw_Data_for_FY22[[#This Row],[25th]]","v":0},null,{"$f":"(((AAMC_Raw_Data_for_FY22[[#This Row],[75th]]-AAMC_Raw_Data_for_FY22[[#This Row],[Median]])/25)*5) + AAMC_Raw_Data_for_FY22[[#This Row],[Median]]","v":0},{"$f":"(((AAMC_Raw_Data_for_FY22[[#This Row],[75th]]-AAMC_Raw_Data_for_FY22[[#This Row],[Median]])/25)*10) + AAMC_Raw_Data_for_FY22[[#This Row],[Median]]","v":0},{"$f":"(((AAMC_Raw_Data_for_FY22[[#This Row],[75th]]-AAMC_Raw_Data_for_FY22[[#This Row],[Median]])/25)*15) + AAMC_Raw_Data_for_FY22[[#This Row],[Median]]","v":0},{"$f":"(((AAMC_Raw_Data_for_FY22[[#This Row],[75th]]-AAMC_Raw_Data_for_FY22[[#This Row],[Median]])/25)*20) + AAMC_Raw_Data_for_FY22[[#This Row],[Median]]","v":0},null,{"$f":"(((AAMC_Raw_Data_for_FY22[[#This Row],[75th]]-AAMC_Raw_Data_for_FY22[[#This Row],[Median]])/25)*30) + AAMC_Raw_Data_for_FY22[[#This Row],[Median]]","v":0},{"$f":"(((AAMC_Raw_Data_for_FY22[[#This Row],[75th]]-AAMC_Raw_Data_for_FY22[[#This Row],[Median]])/25)*35) + AAMC_Raw_Data_for_FY22[[#This Row],[Median]]","v":0},{"$f":"(((AAMC_Raw_Data_for_FY22[[#This Row],[75th]]-AAMC_Raw_Data_for_FY22[[#This Row],[Median]])/25)*40) + AAMC_Raw_Data_for_FY22[[#This Row],[Median]]","v":0}]
[{"$f":"AAMC_Raw_Data_for_FY22[[#This Row],[Source]]&AAMC_Raw_Data_for_FY22[[#This Row],[Type]]&AAMC_Raw_Data_for_FY22[[#This Row],[School Subset]]&AAMC_Raw_Data_for_FY22[[#This Row],[Rank]]&AAMC_Raw_Data_for_FY22[[#This Row],[Degree]]&AAMC_Raw_Data_for_FY22[[#This Row],[Department / Specialty]]&\"L\"","v":"AAMCAcademicPublicInstructorPhDPulmonary-Med.L"},"Pulmonary-Med.",5,"AAMC","Academic","Public","Instructor","PhD","2021-2022",58329,{"$f":"(((AAMC_Raw_Data_for_FY22[[#This Row],[Median]]-AAMC_Raw_Data_for_FY22[[#This Row],[25th]])/25)*5) + AAMC_Raw_Data_for_FY22[[#This Row],[25th]]","v":58763.199999999997},{"$f":"(((AAMC_Raw_Data_for_FY22[[#This Row],[Median]]-AAMC_Raw_Data_for_FY22[[#This Row],[25th]])/25)*10) + AAMC_Raw_Data_for_FY22[[#This Row],[25th]]","v":59197.4},{"$f":"(((AAMC_Raw_Data_for_FY22[[#This Row],[Median]]-AAMC_Raw_Data_for_FY22[[#This Row],[25th]])/25)*15) + AAMC_Raw_Data_for_FY22[[#This Row],[25th]]","v":59631.6},{"$f":"(((AAMC_Raw_Data_for_FY22[[#This Row],[Median]]-AAMC_Raw_Data_for_FY22[[#This Row],[25th]])/25)*20) + AAMC_Raw_Data_for_FY22[[#This Row],[25th]]","v":60065.8},60500,{"$f":"(((AAMC_Raw_Data_for_FY22[[#This Row],[75th]]-AAMC_Raw_Data_for_FY22[[#This Row],[Median]])/25)*5) + AAMC_Raw_Data_for_FY22[[#This Row],[Median]]","v":61800},{"$f":"(((AAMC_Raw_Data_for_FY22[[#This Row],[75th]]-AAMC_Raw_Data_for_FY22[[#This Row],[Median]])/25)*10) + AAMC_Raw_Data_for_FY22[[#This Row],[Median]]","v":63100},{"$f":"(((AAMC_Raw_Data_for_FY22[[#This Row],[75th]]-AAMC_Raw_Data_for_FY22[[#This Row],[Median]])/25)*15) + AAMC_Raw_Data_for_FY22[[#This Row],[Median]]","v":64400},{"$f":"(((AAMC_Raw_Data_for_FY22[[#This Row],[75th]]-AAMC_Raw_Data_for_FY22[[#This Row],[Median]])/25)*20) + AAMC_Raw_Data_for_FY22[[#This Row],[Median]]","v":65700},67000,{"$f":"(((AAMC_Raw_Data_for_FY22[[#This Row],[75th]]-AAMC_Raw_Data_for_FY22[[#This Row],[Median]])/25)*30) + AAMC_Raw_Data_for_FY22[[#This Row],[Median]]","v":68300},{"$f":"(((AAMC_Raw_Data_for_FY22[[#This Row],[75th]]-AAMC_Raw_Data_for_FY22[[#This Row],[Median]])/25)*35) + AAMC_Raw_Data_for_FY22[[#This Row],[Median]]","v":69600},{"$f":"(((AAMC_Raw_Data_for_FY22[[#This Row],[75th]]-AAMC_Raw_Data_for_FY22[[#This Row],[Median]])/25)*40) + AAMC_Raw_Data_for_FY22[[#This Row],[Median]]","v":70900}]
[{"$f":"AAMC_Raw_Data_for_FY22[[#This Row],[Source]]&AAMC_Raw_Data_for_FY22[[#This Row],[Type]]&AAMC_Raw_Data_for_FY22[[#This Row],[School Subset]]&AAMC_Raw_Data_for_FY22[[#This Row],[Rank]]&AAMC_Raw_Data_for_FY22[[#This Row],[Degree]]&AAMC_Raw_Data_for_FY22[[#This Row],[Department / Specialty]]&\"L\"","v":"AAMCAcademicPublicAssistantPhDPulmonary-Med.L"},"Pulmonary-Med.",4,"AAMC","Academic","Public","Assistant","PhD","2021-2022",82740,{"$f":"(((AAMC_Raw_Data_for_FY22[[#This Row],[Median]]-AAMC_Raw_Data_for_FY22[[#This Row],[25th]])/25)*5) + AAMC_Raw_Data_for_FY22[[#This Row],[25th]]","v":86157.2},{"$f":"(((AAMC_Raw_Data_for_FY22[[#This Row],[Median]]-AAMC_Raw_Data_for_FY22[[#This Row],[25th]])/25)*10) + AAMC_Raw_Data_for_FY22[[#This Row],[25th]]","v":89574.399999999994},{"$f":"(((AAMC_Raw_Data_for_FY22[[#This Row],[Median]]-AAMC_Raw_Data_for_FY22[[#This Row],[25th]])/25)*15) + AAMC_Raw_Data_for_FY22[[#This Row],[25th]]","v":92991.6},{"$f":"(((AAMC_Raw_Data_for_FY22[[#This Row],[Median]]-AAMC_Raw_Data_for_FY22[[#This Row],[25th]])/25)*20) + AAMC_Raw_Data_for_FY22[[#This Row],[25th]]","v":96408.8},99826,{"$f":"(((AAMC_Raw_Data_for_FY22[[#This Row],[75th]]-AAMC_Raw_Data_for_FY22[[#This Row],[Median]])/25)*5) + AAMC_Raw_Data_for_FY22[[#This Row],[Median]]","v":102820.8},{"$f":"(((AAMC_Raw_Data_for_FY22[[#This Row],[75th]]-AAMC_Raw_Data_for_FY22[[#This Row],[Median]])/25)*10) + AAMC_Raw_Data_for_FY22[[#This Row],[Median]]","v":105815.6},{"$f":"(((AAMC_Raw_Data_for_FY22[[#This Row],[75th]]-AAMC_Raw_Data_for_FY22[[#This Row],[Median]])/25)*15) + AAMC_Raw_Data_for_FY22[[#This Row],[Median]]","v":108810.4},{"$f":"(((AAMC_Raw_Data_for_FY22[[#This Row],[75th]]-AAMC_Raw_Data_for_FY22[[#This Row],[Median]])/25)*20) + AAMC_Raw_Data_for_FY22[[#This Row],[Median]]","v":111805.2},114800,{"$f":"(((AAMC_Raw_Data_for_FY22[[#This Row],[75th]]-AAMC_Raw_Data_for_FY22[[#This Row],[Median]])/25)*30) + AAMC_Raw_Data_for_FY22[[#This Row],[Median]]","v":117794.8},{"$f":"(((AAMC_Raw_Data_for_FY22[[#This Row],[75th]]-AAMC_Raw_Data_for_FY22[[#This Row],[Median]])/25)*35) + AAMC_Raw_Data_for_FY22[[#This Row],[Median]]","v":120789.6},{"$f":"(((AAMC_Raw_Data_for_FY22[[#This Row],[75th]]-AAMC_Raw_Data_for_FY22[[#This Row],[Median]])/25)*40) + AAMC_Raw_Data_for_FY22[[#This Row],[Median]]","v":123784.4}]
[{"$f":"AAMC_Raw_Data_for_FY22[[#This Row],[Source]]&AAMC_Raw_Data_for_FY22[[#This Row],[Type]]&AAMC_Raw_Data_for_FY22[[#This Row],[School Subset]]&AAMC_Raw_Data_for_FY22[[#This Row],[Rank]]&AAMC_Raw_Data_for_FY22[[#This Row],[Degree]]&AAMC_Raw_Data_for_FY22[[#This Row],[Department / Specialty]]&\"L\"","v":"AAMCAcademicPublicAssociatePhDPulmonary-Med.L"},"Pulmonary-Med.",3,"AAMC","Academic","Public","Associate","PhD","2021-2022",107750,{"$f":"(((AAMC_Raw_Data_for_FY22[[#This Row],[Median]]-AAMC_Raw_Data_for_FY22[[#This Row],[25th]])/25)*5) + AAMC_Raw_Data_for_FY22[[#This Row],[25th]]","v":111122},{"$f":"(((AAMC_Raw_Data_for_FY22[[#This Row],[Median]]-AAMC_Raw_Data_for_FY22[[#This Row],[25th]])/25)*10) + AAMC_Raw_Data_for_FY22[[#This Row],[25th]]","v":114494},{"$f":"(((AAMC_Raw_Data_for_FY22[[#This Row],[Median]]-AAMC_Raw_Data_for_FY22[[#This Row],[25th]])/25)*15) + AAMC_Raw_Data_for_FY22[[#This Row],[25th]]","v":117866},{"$f":"(((AAMC_Raw_Data_for_FY22[[#This Row],[Median]]-AAMC_Raw_Data_for_FY22[[#This Row],[25th]])/25)*20) + AAMC_Raw_Data_for_FY22[[#This Row],[25th]]","v":121238},124610,{"$f":"(((AAMC_Raw_Data_for_FY22[[#This Row],[75th]]-AAMC_Raw_Data_for_FY22[[#This Row],[Median]])/25)*5) + AAMC_Raw_Data_for_FY22[[#This Row],[Median]]","v":131438.6},{"$f":"(((AAMC_Raw_Data_for_FY22[[#This Row],[75th]]-AAMC_Raw_Data_for_FY22[[#This Row],[Median]])/25)*10) + AAMC_Raw_Data_for_FY22[[#This Row],[Median]]","v":138267.20000000001},{"$f":"(((AAMC_Raw_Data_for_FY22[[#This Row],[75th]]-AAMC_Raw_Data_for_FY22[[#This Row],[Median]])/25)*15) + AAMC_Raw_Data_for_FY22[[#This Row],[Median]]","v":145095.79999999999},{"$f":"(((AAMC_Raw_Data_for_FY22[[#This Row],[75th]]-AAMC_Raw_Data_for_FY22[[#This Row],[Median]])/25)*20) + AAMC_Raw_Data_for_FY22[[#This Row],[Median]]","v":151924.4},158753,{"$f":"(((AAMC_Raw_Data_for_FY22[[#This Row],[75th]]-AAMC_Raw_Data_for_FY22[[#This Row],[Median]])/25)*30) + AAMC_Raw_Data_for_FY22[[#This Row],[Median]]","v":165581.6},{"$f":"(((AAMC_Raw_Data_for_FY22[[#This Row],[75th]]-AAMC_Raw_Data_for_FY22[[#This Row],[Median]])/25)*35) + AAMC_Raw_Data_for_FY22[[#This Row],[Median]]","v":172410.2},{"$f":"(((AAMC_Raw_Data_for_FY22[[#This Row],[75th]]-AAMC_Raw_Data_for_FY22[[#This Row],[Median]])/25)*40) + AAMC_Raw_Data_for_FY22[[#This Row],[Median]]","v":179238.8}]
[{"$f":"AAMC_Raw_Data_for_FY22[[#This Row],[Source]]&AAMC_Raw_Data_for_FY22[[#This Row],[Type]]&AAMC_Raw_Data_for_FY22[[#This Row],[School Subset]]&AAMC_Raw_Data_for_FY22[[#This Row],[Rank]]&AAMC_Raw_Data_for_FY22[[#This Row],[Degree]]&AAMC_Raw_Data_for_FY22[[#This Row],[Department / Specialty]]&\"L\"","v":"AAMCAcademicPublicProfessorPhDPulmonary-Med.L"},"Pulmonary-Med.",2,"AAMC","Academic","Public","Professor","PhD","2021-2022",149263,{"$f":"(((AAMC_Raw_Data_for_FY22[[#This Row],[Median]]-AAMC_Raw_Data_for_FY22[[#This Row],[25th]])/25)*5) + AAMC_Raw_Data_for_FY22[[#This Row],[25th]]","v":155001.60000000001},{"$f":"(((AAMC_Raw_Data_for_FY22[[#This Row],[Median]]-AAMC_Raw_Data_for_FY22[[#This Row],[25th]])/25)*10) + AAMC_Raw_Data_for_FY22[[#This Row],[25th]]","v":160740.20000000001},{"$f":"(((AAMC_Raw_Data_for_FY22[[#This Row],[Median]]-AAMC_Raw_Data_for_FY22[[#This Row],[25th]])/25)*15) + AAMC_Raw_Data_for_FY22[[#This Row],[25th]]","v":166478.79999999999},{"$f":"(((AAMC_Raw_Data_for_FY22[[#This Row],[Median]]-AAMC_Raw_Data_for_FY22[[#This Row],[25th]])/25)*20) + AAMC_Raw_Data_for_FY22[[#This Row],[25th]]","v":172217.4},177956,{"$f":"(((AAMC_Raw_Data_for_FY22[[#This Row],[75th]]-AAMC_Raw_Data_for_FY22[[#This Row],[Median]])/25)*5) + AAMC_Raw_Data_for_FY22[[#This Row],[Median]]","v":187014.8},{"$f":"(((AAMC_Raw_Data_for_FY22[[#This Row],[75th]]-AAMC_Raw_Data_for_FY22[[#This Row],[Median]])/25)*10) + AAMC_Raw_Data_for_FY22[[#This Row],[Median]]","v":196073.60000000001},{"$f":"(((AAMC_Raw_Data_for_FY22[[#This Row],[75th]]-AAMC_Raw_Data_for_FY22[[#This Row],[Median]])/25)*15) + AAMC_Raw_Data_for_FY22[[#This Row],[Median]]","v":205132.4},{"$f":"(((AAMC_Raw_Data_for_FY22[[#This Row],[75th]]-AAMC_Raw_Data_for_FY22[[#This Row],[Median]])/25)*20) + AAMC_Raw_Data_for_FY22[[#This Row],[Median]]","v":214191.2},223250,{"$f":"(((AAMC_Raw_Data_for_FY22[[#This Row],[75th]]-AAMC_Raw_Data_for_FY22[[#This Row],[Median]])/25)*30) + AAMC_Raw_Data_for_FY22[[#This Row],[Median]]","v":232308.8},{"$f":"(((AAMC_Raw_Data_for_FY22[[#This Row],[75th]]-AAMC_Raw_Data_for_FY22[[#This Row],[Median]])/25)*35) + AAMC_Raw_Data_for_FY22[[#This Row],[Median]]","v":241367.6},{"$f":"(((AAMC_Raw_Data_for_FY22[[#This Row],[75th]]-AAMC_Raw_Data_for_FY22[[#This Row],[Median]])/25)*40) + AAMC_Raw_Data_for_FY22[[#This Row],[Median]]","v":250426.4}]
[{"$f":"AAMC_Raw_Data_for_FY22[[#This Row],[Source]]&AAMC_Raw_Data_for_FY22[[#This Row],[Type]]&AAMC_Raw_Data_for_FY22[[#This Row],[School Subset]]&AAMC_Raw_Data_for_FY22[[#This Row],[Rank]]&AAMC_Raw_Data_for_FY22[[#This Row],[Degree]]&AAMC_Raw_Data_for_FY22[[#This Row],[Department / Specialty]]&\"L\"","v":"AAMCAcademicPublicInstructorPhDRheumatology-Med.L"},"Rheumatology-Med.",5,"AAMC","Academic","Public","Instructor","PhD","2021-2022",null,{"$f":"(((AAMC_Raw_Data_for_FY22[[#This Row],[Median]]-AAMC_Raw_Data_for_FY22[[#This Row],[25th]])/25)*5) + AAMC_Raw_Data_for_FY22[[#This Row],[25th]]","v":0},{"$f":"(((AAMC_Raw_Data_for_FY22[[#This Row],[Median]]-AAMC_Raw_Data_for_FY22[[#This Row],[25th]])/25)*10) + AAMC_Raw_Data_for_FY22[[#This Row],[25th]]","v":0},{"$f":"(((AAMC_Raw_Data_for_FY22[[#This Row],[Median]]-AAMC_Raw_Data_for_FY22[[#This Row],[25th]])/25)*15) + AAMC_Raw_Data_for_FY22[[#This Row],[25th]]","v":0},{"$f":"(((AAMC_Raw_Data_for_FY22[[#This Row],[Median]]-AAMC_Raw_Data_for_FY22[[#This Row],[25th]])/25)*20) + AAMC_Raw_Data_for_FY22[[#This Row],[25th]]","v":0},null,{"$f":"(((AAMC_Raw_Data_for_FY22[[#This Row],[75th]]-AAMC_Raw_Data_for_FY22[[#This Row],[Median]])/25)*5) + AAMC_Raw_Data_for_FY22[[#This Row],[Median]]","v":0},{"$f":"(((AAMC_Raw_Data_for_FY22[[#This Row],[75th]]-AAMC_Raw_Data_for_FY22[[#This Row],[Median]])/25)*10) + AAMC_Raw_Data_for_FY22[[#This Row],[Median]]","v":0},{"$f":"(((AAMC_Raw_Data_for_FY22[[#This Row],[75th]]-AAMC_Raw_Data_for_FY22[[#This Row],[Median]])/25)*15) + AAMC_Raw_Data_for_FY22[[#This Row],[Median]]","v":0},{"$f":"(((AAMC_Raw_Data_for_FY22[[#This Row],[75th]]-AAMC_Raw_Data_for_FY22[[#This Row],[Median]])/25)*20) + AAMC_Raw_Data_for_FY22[[#This Row],[Median]]","v":0},null,{"$f":"(((AAMC_Raw_Data_for_FY22[[#This Row],[75th]]-AAMC_Raw_Data_for_FY22[[#This Row],[Median]])/25)*30) + AAMC_Raw_Data_for_FY22[[#This Row],[Median]]","v":0},{"$f":"(((AAMC_Raw_Data_for_FY22[[#This Row],[75th]]-AAMC_Raw_Data_for_FY22[[#This Row],[Median]])/25)*35) + AAMC_Raw_Data_for_FY22[[#This Row],[Median]]","v":0},{"$f":"(((AAMC_Raw_Data_for_FY22[[#This Row],[75th]]-AAMC_Raw_Data_for_FY22[[#This Row],[Median]])/25)*40) + AAMC_Raw_Data_for_FY22[[#This Row],[Median]]","v":0}]
[{"$f":"AAMC_Raw_Data_for_FY22[[#This Row],[Source]]&AAMC_Raw_Data_for_FY22[[#This Row],[Type]]&AAMC_Raw_Data_for_FY22[[#This Row],[School Subset]]&AAMC_Raw_Data_for_FY22[[#This Row],[Rank]]&AAMC_Raw_Data_for_FY22[[#This Row],[Degree]]&AAMC_Raw_Data_for_FY22[[#This Row],[Department / Specialty]]&\"L\"","v":"AAMCAcademicPublicAssistantPhDRheumatology-Med.L"},"Rheumatology-Med.",4,"AAMC","Academic","Public","Assistant","PhD","2021-2022",86592,{"$f":"(((AAMC_Raw_Data_for_FY22[[#This Row],[Median]]-AAMC_Raw_Data_for_FY22[[#This Row],[25th]])/25)*5) + AAMC_Raw_Data_for_FY22[[#This Row],[25th]]","v":87928.6},{"$f":"(((AAMC_Raw_Data_for_FY22[[#This Row],[Median]]-AAMC_Raw_Data_for_FY22[[#This Row],[25th]])/25)*10) + AAMC_Raw_Data_for_FY22[[#This Row],[25th]]","v":89265.2},{"$f":"(((AAMC_Raw_Data_for_FY22[[#This Row],[Median]]-AAMC_Raw_Data_for_FY22[[#This Row],[25th]])/25)*15) + AAMC_Raw_Data_for_FY22[[#This Row],[25th]]","v":90601.8},{"$f":"(((AAMC_Raw_Data_for_FY22[[#This Row],[Median]]-AAMC_Raw_Data_for_FY22[[#This Row],[25th]])/25)*20) + AAMC_Raw_Data_for_FY22[[#This Row],[25th]]","v":91938.4},93275,{"$f":"(((AAMC_Raw_Data_for_FY22[[#This Row],[75th]]-AAMC_Raw_Data_for_FY22[[#This Row],[Median]])/25)*5) + AAMC_Raw_Data_for_FY22[[#This Row],[Median]]","v":95387.8},{"$f":"(((AAMC_Raw_Data_for_FY22[[#This Row],[75th]]-AAMC_Raw_Data_for_FY22[[#This Row],[Median]])/25)*10) + AAMC_Raw_Data_for_FY22[[#This Row],[Median]]","v":97500.6},{"$f":"(((AAMC_Raw_Data_for_FY22[[#This Row],[75th]]-AAMC_Raw_Data_for_FY22[[#This Row],[Median]])/25)*15) + AAMC_Raw_Data_for_FY22[[#This Row],[Median]]","v":99613.4},{"$f":"(((AAMC_Raw_Data_for_FY22[[#This Row],[75th]]-AAMC_Raw_Data_for_FY22[[#This Row],[Median]])/25)*20) + AAMC_Raw_Data_for_FY22[[#This Row],[Median]]","v":101726.2},103839,{"$f":"(((AAMC_Raw_Data_for_FY22[[#This Row],[75th]]-AAMC_Raw_Data_for_FY22[[#This Row],[Median]])/25)*30) + AAMC_Raw_Data_for_FY22[[#This Row],[Median]]","v":105951.8},{"$f":"(((AAMC_Raw_Data_for_FY22[[#This Row],[75th]]-AAMC_Raw_Data_for_FY22[[#This Row],[Median]])/25)*35) + AAMC_Raw_Data_for_FY22[[#This Row],[Median]]","v":108064.6},{"$f":"(((AAMC_Raw_Data_for_FY22[[#This Row],[75th]]-AAMC_Raw_Data_for_FY22[[#This Row],[Median]])/25)*40) + AAMC_Raw_Data_for_FY22[[#This Row],[Median]]","v":110177.4}]
[{"$f":"AAMC_Raw_Data_for_FY22[[#This Row],[Source]]&AAMC_Raw_Data_for_FY22[[#This Row],[Type]]&AAMC_Raw_Data_for_FY22[[#This Row],[School Subset]]&AAMC_Raw_Data_for_FY22[[#This Row],[Rank]]&AAMC_Raw_Data_for_FY22[[#This Row],[Degree]]&AAMC_Raw_Data_for_FY22[[#This Row],[Department / Specialty]]&\"L\"","v":"AAMCAcademicPublicAssociatePhDRheumatology-Med.L"},"Rheumatology-Med.",3,"AAMC","Academic","Public","Associate","PhD","2021-2022",98964,{"$f":"(((AAMC_Raw_Data_for_FY22[[#This Row],[Median]]-AAMC_Raw_Data_for_FY22[[#This Row],[25th]])/25)*5) + AAMC_Raw_Data_for_FY22[[#This Row],[25th]]","v":101781},{"$f":"(((AAMC_Raw_Data_for_FY22[[#This Row],[Median]]-AAMC_Raw_Data_for_FY22[[#This Row],[25th]])/25)*10) + AAMC_Raw_Data_for_FY22[[#This Row],[25th]]","v":104598},{"$f":"(((AAMC_Raw_Data_for_FY22[[#This Row],[Median]]-AAMC_Raw_Data_for_FY22[[#This Row],[25th]])/25)*15) + AAMC_Raw_Data_for_FY22[[#This Row],[25th]]","v":107415},{"$f":"(((AAMC_Raw_Data_for_FY22[[#This Row],[Median]]-AAMC_Raw_Data_for_FY22[[#This Row],[25th]])/25)*20) + AAMC_Raw_Data_for_FY22[[#This Row],[25th]]","v":110232},113049,{"$f":"(((AAMC_Raw_Data_for_FY22[[#This Row],[75th]]-AAMC_Raw_Data_for_FY22[[#This Row],[Median]])/25)*5) + AAMC_Raw_Data_for_FY22[[#This Row],[Median]]","v":117797},{"$f":"(((AAMC_Raw_Data_for_FY22[[#This Row],[75th]]-AAMC_Raw_Data_for_FY22[[#This Row],[Median]])/25)*10) + AAMC_Raw_Data_for_FY22[[#This Row],[Median]]","v":122545},{"$f":"(((AAMC_Raw_Data_for_FY22[[#This Row],[75th]]-AAMC_Raw_Data_for_FY22[[#This Row],[Median]])/25)*15) + AAMC_Raw_Data_for_FY22[[#This Row],[Median]]","v":127293},{"$f":"(((AAMC_Raw_Data_for_FY22[[#This Row],[75th]]-AAMC_Raw_Data_for_FY22[[#This Row],[Median]])/25)*20) + AAMC_Raw_Data_for_FY22[[#This Row],[Median]]","v":132041},136789,{"$f":"(((AAMC_Raw_Data_for_FY22[[#This Row],[75th]]-AAMC_Raw_Data_for_FY22[[#This Row],[Median]])/25)*30) + AAMC_Raw_Data_for_FY22[[#This Row],[Median]]","v":141537},{"$f":"(((AAMC_Raw_Data_for_FY22[[#This Row],[75th]]-AAMC_Raw_Data_for_FY22[[#This Row],[Median]])/25)*35) + AAMC_Raw_Data_for_FY22[[#This Row],[Median]]","v":146285},{"$f":"(((AAMC_Raw_Data_for_FY22[[#This Row],[75th]]-AAMC_Raw_Data_for_FY22[[#This Row],[Median]])/25)*40) + AAMC_Raw_Data_for_FY22[[#This Row],[Median]]","v":151033}]
[{"$f":"AAMC_Raw_Data_for_FY22[[#This Row],[Source]]&AAMC_Raw_Data_for_FY22[[#This Row],[Type]]&AAMC_Raw_Data_for_FY22[[#This Row],[School Subset]]&AAMC_Raw_Data_for_FY22[[#This Row],[Rank]]&AAMC_Raw_Data_for_FY22[[#This Row],[Degree]]&AAMC_Raw_Data_for_FY22[[#This Row],[Department / Specialty]]&\"L\"","v":"AAMCAcademicPublicProfessorPhDRheumatology-Med.L"},"Rheumatology-Med.",2,"AAMC","Academic","Public","Professor","PhD","2021-2022",167302,{"$f":"(((AAMC_Raw_Data_for_FY22[[#This Row],[Median]]-AAMC_Raw_Data_for_FY22[[#This Row],[25th]])/25)*5) + AAMC_Raw_Data_for_FY22[[#This Row],[25th]]","v":170774},{"$f":"(((AAMC_Raw_Data_for_FY22[[#This Row],[Median]]-AAMC_Raw_Data_for_FY22[[#This Row],[25th]])/25)*10) + AAMC_Raw_Data_for_FY22[[#This Row],[25th]]","v":174246},{"$f":"(((AAMC_Raw_Data_for_FY22[[#This Row],[Median]]-AAMC_Raw_Data_for_FY22[[#This Row],[25th]])/25)*15) + AAMC_Raw_Data_for_FY22[[#This Row],[25th]]","v":177718},{"$f":"(((AAMC_Raw_Data_for_FY22[[#This Row],[Median]]-AAMC_Raw_Data_for_FY22[[#This Row],[25th]])/25)*20) + AAMC_Raw_Data_for_FY22[[#This Row],[25th]]","v":181190},184662,{"$f":"(((AAMC_Raw_Data_for_FY22[[#This Row],[75th]]-AAMC_Raw_Data_for_FY22[[#This Row],[Median]])/25)*5) + AAMC_Raw_Data_for_FY22[[#This Row],[Median]]","v":194573.8},{"$f":"(((AAMC_Raw_Data_for_FY22[[#This Row],[75th]]-AAMC_Raw_Data_for_FY22[[#This Row],[Median]])/25)*10) + AAMC_Raw_Data_for_FY22[[#This Row],[Median]]","v":204485.6},{"$f":"(((AAMC_Raw_Data_for_FY22[[#This Row],[75th]]-AAMC_Raw_Data_for_FY22[[#This Row],[Median]])/25)*15) + AAMC_Raw_Data_for_FY22[[#This Row],[Median]]","v":214397.4},{"$f":"(((AAMC_Raw_Data_for_FY22[[#This Row],[75th]]-AAMC_Raw_Data_for_FY22[[#This Row],[Median]])/25)*20) + AAMC_Raw_Data_for_FY22[[#This Row],[Median]]","v":224309.2},234221,{"$f":"(((AAMC_Raw_Data_for_FY22[[#This Row],[75th]]-AAMC_Raw_Data_for_FY22[[#This Row],[Median]])/25)*30) + AAMC_Raw_Data_for_FY22[[#This Row],[Median]]","v":244132.8},{"$f":"(((AAMC_Raw_Data_for_FY22[[#This Row],[75th]]-AAMC_Raw_Data_for_FY22[[#This Row],[Median]])/25)*35) + AAMC_Raw_Data_for_FY22[[#This Row],[Median]]","v":254044.59999999998},{"$f":"(((AAMC_Raw_Data_for_FY22[[#This Row],[75th]]-AAMC_Raw_Data_for_FY22[[#This Row],[Median]])/25)*40) + AAMC_Raw_Data_for_FY22[[#This Row],[Median]]","v":263956.40000000002}]
[{"$f":"AAMC_Raw_Data_for_FY22[[#This Row],[Source]]&AAMC_Raw_Data_for_FY22[[#This Row],[Type]]&AAMC_Raw_Data_for_FY22[[#This Row],[School Subset]]&AAMC_Raw_Data_for_FY22[[#This Row],[Rank]]&AAMC_Raw_Data_for_FY22[[#This Row],[Degree]]&AAMC_Raw_Data_for_FY22[[#This Row],[Department / Specialty]]&\"L\"","v":"AAMCAcademicPublicInstructorPhDOther MedicineL"},"Other Medicine",5,"AAMC","Academic","Public","Instructor","PhD","2021-2022",null,{"$f":"(((AAMC_Raw_Data_for_FY22[[#This Row],[Median]]-AAMC_Raw_Data_for_FY22[[#This Row],[25th]])/25)*5) + AAMC_Raw_Data_for_FY22[[#This Row],[25th]]","v":0},{"$f":"(((AAMC_Raw_Data_for_FY22[[#This Row],[Median]]-AAMC_Raw_Data_for_FY22[[#This Row],[25th]])/25)*10) + AAMC_Raw_Data_for_FY22[[#This Row],[25th]]","v":0},{"$f":"(((AAMC_Raw_Data_for_FY22[[#This Row],[Median]]-AAMC_Raw_Data_for_FY22[[#This Row],[25th]])/25)*15) + AAMC_Raw_Data_for_FY22[[#This Row],[25th]]","v":0},{"$f":"(((AAMC_Raw_Data_for_FY22[[#This Row],[Median]]-AAMC_Raw_Data_for_FY22[[#This Row],[25th]])/25)*20) + AAMC_Raw_Data_for_FY22[[#This Row],[25th]]","v":0},null,{"$f":"(((AAMC_Raw_Data_for_FY22[[#This Row],[75th]]-AAMC_Raw_Data_for_FY22[[#This Row],[Median]])/25)*5) + AAMC_Raw_Data_for_FY22[[#This Row],[Median]]","v":0},{"$f":"(((AAMC_Raw_Data_for_FY22[[#This Row],[75th]]-AAMC_Raw_Data_for_FY22[[#This Row],[Median]])/25)*10) + AAMC_Raw_Data_for_FY22[[#This Row],[Median]]","v":0},{"$f":"(((AAMC_Raw_Data_for_FY22[[#This Row],[75th]]-AAMC_Raw_Data_for_FY22[[#This Row],[Median]])/25)*15) + AAMC_Raw_Data_for_FY22[[#This Row],[Median]]","v":0},{"$f":"(((AAMC_Raw_Data_for_FY22[[#This Row],[75th]]-AAMC_Raw_Data_for_FY22[[#This Row],[Median]])/25)*20) + AAMC_Raw_Data_for_FY22[[#This Row],[Median]]","v":0},null,{"$f":"(((AAMC_Raw_Data_for_FY22[[#This Row],[75th]]-AAMC_Raw_Data_for_FY22[[#This Row],[Median]])/25)*30) + AAMC_Raw_Data_for_FY22[[#This Row],[Median]]","v":0},{"$f":"(((AAMC_Raw_Data_for_FY22[[#This Row],[75th]]-AAMC_Raw_Data_for_FY22[[#This Row],[Median]])/25)*35) + AAMC_Raw_Data_for_FY22[[#This Row],[Median]]","v":0},{"$f":"(((AAMC_Raw_Data_for_FY22[[#This Row],[75th]]-AAMC_Raw_Data_for_FY22[[#This Row],[Median]])/25)*40) + AAMC_Raw_Data_for_FY22[[#This Row],[Median]]","v":0}]
[{"$f":"AAMC_Raw_Data_for_FY22[[#This Row],[Source]]&AAMC_Raw_Data_for_FY22[[#This Row],[Type]]&AAMC_Raw_Data_for_FY22[[#This Row],[School Subset]]&AAMC_Raw_Data_for_FY22[[#This Row],[Rank]]&AAMC_Raw_Data_for_FY22[[#This Row],[Degree]]&AAMC_Raw_Data_for_FY22[[#This Row],[Department / Specialty]]&\"L\"","v":"AAMCAcademicPublicAssistantPhDOther MedicineL"},"Other Medicine",4,"AAMC","Academic","Public","Assistant","PhD","2021-2022",97191,{"$f":"(((AAMC_Raw_Data_for_FY22[[#This Row],[Median]]-AAMC_Raw_Data_for_FY22[[#This Row],[25th]])/25)*5) + AAMC_Raw_Data_for_FY22[[#This Row],[25th]]","v":100366},{"$f":"(((AAMC_Raw_Data_for_FY22[[#This Row],[Median]]-AAMC_Raw_Data_for_FY22[[#This Row],[25th]])/25)*10) + AAMC_Raw_Data_for_FY22[[#This Row],[25th]]","v":103541},{"$f":"(((AAMC_Raw_Data_for_FY22[[#This Row],[Median]]-AAMC_Raw_Data_for_FY22[[#This Row],[25th]])/25)*15) + AAMC_Raw_Data_for_FY22[[#This Row],[25th]]","v":106716},{"$f":"(((AAMC_Raw_Data_for_FY22[[#This Row],[Median]]-AAMC_Raw_Data_for_FY22[[#This Row],[25th]])/25)*20) + AAMC_Raw_Data_for_FY22[[#This Row],[25th]]","v":109891},113066,{"$f":"(((AAMC_Raw_Data_for_FY22[[#This Row],[75th]]-AAMC_Raw_Data_for_FY22[[#This Row],[Median]])/25)*5) + AAMC_Raw_Data_for_FY22[[#This Row],[Median]]","v":117796.8},{"$f":"(((AAMC_Raw_Data_for_FY22[[#This Row],[75th]]-AAMC_Raw_Data_for_FY22[[#This Row],[Median]])/25)*10) + AAMC_Raw_Data_for_FY22[[#This Row],[Median]]","v":122527.6},{"$f":"(((AAMC_Raw_Data_for_FY22[[#This Row],[75th]]-AAMC_Raw_Data_for_FY22[[#This Row],[Median]])/25)*15) + AAMC_Raw_Data_for_FY22[[#This Row],[Median]]","v":127258.4},{"$f":"(((AAMC_Raw_Data_for_FY22[[#This Row],[75th]]-AAMC_Raw_Data_for_FY22[[#This Row],[Median]])/25)*20) + AAMC_Raw_Data_for_FY22[[#This Row],[Median]]","v":131989.20000000001},136720,{"$f":"(((AAMC_Raw_Data_for_FY22[[#This Row],[75th]]-AAMC_Raw_Data_for_FY22[[#This Row],[Median]])/25)*30) + AAMC_Raw_Data_for_FY22[[#This Row],[Median]]","v":141450.79999999999},{"$f":"(((AAMC_Raw_Data_for_FY22[[#This Row],[75th]]-AAMC_Raw_Data_for_FY22[[#This Row],[Median]])/25)*35) + AAMC_Raw_Data_for_FY22[[#This Row],[Median]]","v":146181.6},{"$f":"(((AAMC_Raw_Data_for_FY22[[#This Row],[75th]]-AAMC_Raw_Data_for_FY22[[#This Row],[Median]])/25)*40) + AAMC_Raw_Data_for_FY22[[#This Row],[Median]]","v":150912.4}]
[{"$f":"AAMC_Raw_Data_for_FY22[[#This Row],[Source]]&AAMC_Raw_Data_for_FY22[[#This Row],[Type]]&AAMC_Raw_Data_for_FY22[[#This Row],[School Subset]]&AAMC_Raw_Data_for_FY22[[#This Row],[Rank]]&AAMC_Raw_Data_for_FY22[[#This Row],[Degree]]&AAMC_Raw_Data_for_FY22[[#This Row],[Department / Specialty]]&\"L\"","v":"AAMCAcademicPublicAssociatePhDOther MedicineL"},"Other Medicine",3,"AAMC","Academic","Public","Associate","PhD","2021-2022",125319,{"$f":"(((AAMC_Raw_Data_for_FY22[[#This Row],[Median]]-AAMC_Raw_Data_for_FY22[[#This Row],[25th]])/25)*5) + AAMC_Raw_Data_for_FY22[[#This Row],[25th]]","v":131073.60000000001},{"$f":"(((AAMC_Raw_Data_for_FY22[[#This Row],[Median]]-AAMC_Raw_Data_for_FY22[[#This Row],[25th]])/25)*10) + AAMC_Raw_Data_for_FY22[[#This Row],[25th]]","v":136828.20000000001},{"$f":"(((AAMC_Raw_Data_for_FY22[[#This Row],[Median]]-AAMC_Raw_Data_for_FY22[[#This Row],[25th]])/25)*15) + AAMC_Raw_Data_for_FY22[[#This Row],[25th]]","v":142582.79999999999},{"$f":"(((AAMC_Raw_Data_for_FY22[[#This Row],[Median]]-AAMC_Raw_Data_for_FY22[[#This Row],[25th]])/25)*20) + AAMC_Raw_Data_for_FY22[[#This Row],[25th]]","v":148337.4},154092,{"$f":"(((AAMC_Raw_Data_for_FY22[[#This Row],[75th]]-AAMC_Raw_Data_for_FY22[[#This Row],[Median]])/25)*5) + AAMC_Raw_Data_for_FY22[[#This Row],[Median]]","v":159795},{"$f":"(((AAMC_Raw_Data_for_FY22[[#This Row],[75th]]-AAMC_Raw_Data_for_FY22[[#This Row],[Median]])/25)*10) + AAMC_Raw_Data_for_FY22[[#This Row],[Median]]","v":165498},{"$f":"(((AAMC_Raw_Data_for_FY22[[#This Row],[75th]]-AAMC_Raw_Data_for_FY22[[#This Row],[Median]])/25)*15) + AAMC_Raw_Data_for_FY22[[#This Row],[Median]]","v":171201},{"$f":"(((AAMC_Raw_Data_for_FY22[[#This Row],[75th]]-AAMC_Raw_Data_for_FY22[[#This Row],[Median]])/25)*20) + AAMC_Raw_Data_for_FY22[[#This Row],[Median]]","v":176904},182607,{"$f":"(((AAMC_Raw_Data_for_FY22[[#This Row],[75th]]-AAMC_Raw_Data_for_FY22[[#This Row],[Median]])/25)*30) + AAMC_Raw_Data_for_FY22[[#This Row],[Median]]","v":188310},{"$f":"(((AAMC_Raw_Data_for_FY22[[#This Row],[75th]]-AAMC_Raw_Data_for_FY22[[#This Row],[Median]])/25)*35) + AAMC_Raw_Data_for_FY22[[#This Row],[Median]]","v":194013},{"$f":"(((AAMC_Raw_Data_for_FY22[[#This Row],[75th]]-AAMC_Raw_Data_for_FY22[[#This Row],[Median]])/25)*40) + AAMC_Raw_Data_for_FY22[[#This Row],[Median]]","v":199716}]
[{"$f":"AAMC_Raw_Data_for_FY22[[#This Row],[Source]]&AAMC_Raw_Data_for_FY22[[#This Row],[Type]]&AAMC_Raw_Data_for_FY22[[#This Row],[School Subset]]&AAMC_Raw_Data_for_FY22[[#This Row],[Rank]]&AAMC_Raw_Data_for_FY22[[#This Row],[Degree]]&AAMC_Raw_Data_for_FY22[[#This Row],[Department / Specialty]]&\"L\"","v":"AAMCAcademicPublicProfessorPhDOther MedicineL"},"Other Medicine",2,"AAMC","Academic","Public","Professor","PhD","2021-2022",181886,{"$f":"(((AAMC_Raw_Data_for_FY22[[#This Row],[Median]]-AAMC_Raw_Data_for_FY22[[#This Row],[25th]])/25)*5) + AAMC_Raw_Data_for_FY22[[#This Row],[25th]]","v":186937},{"$f":"(((AAMC_Raw_Data_for_FY22[[#This Row],[Median]]-AAMC_Raw_Data_for_FY22[[#This Row],[25th]])/25)*10) + AAMC_Raw_Data_for_FY22[[#This Row],[25th]]","v":191988},{"$f":"(((AAMC_Raw_Data_for_FY22[[#This Row],[Median]]-AAMC_Raw_Data_for_FY22[[#This Row],[25th]])/25)*15) + AAMC_Raw_Data_for_FY22[[#This Row],[25th]]","v":197039},{"$f":"(((AAMC_Raw_Data_for_FY22[[#This Row],[Median]]-AAMC_Raw_Data_for_FY22[[#This Row],[25th]])/25)*20) + AAMC_Raw_Data_for_FY22[[#This Row],[25th]]","v":202090},207141,{"$f":"(((AAMC_Raw_Data_for_FY22[[#This Row],[75th]]-AAMC_Raw_Data_for_FY22[[#This Row],[Median]])/25)*5) + AAMC_Raw_Data_for_FY22[[#This Row],[Median]]","v":219311.8},{"$f":"(((AAMC_Raw_Data_for_FY22[[#This Row],[75th]]-AAMC_Raw_Data_for_FY22[[#This Row],[Median]])/25)*10) + AAMC_Raw_Data_for_FY22[[#This Row],[Median]]","v":231482.6},{"$f":"(((AAMC_Raw_Data_for_FY22[[#This Row],[75th]]-AAMC_Raw_Data_for_FY22[[#This Row],[Median]])/25)*15) + AAMC_Raw_Data_for_FY22[[#This Row],[Median]]","v":243653.4},{"$f":"(((AAMC_Raw_Data_for_FY22[[#This Row],[75th]]-AAMC_Raw_Data_for_FY22[[#This Row],[Median]])/25)*20) + AAMC_Raw_Data_for_FY22[[#This Row],[Median]]","v":255824.2},267995,{"$f":"(((AAMC_Raw_Data_for_FY22[[#This Row],[75th]]-AAMC_Raw_Data_for_FY22[[#This Row],[Median]])/25)*30) + AAMC_Raw_Data_for_FY22[[#This Row],[Median]]","v":280165.8},{"$f":"(((AAMC_Raw_Data_for_FY22[[#This Row],[75th]]-AAMC_Raw_Data_for_FY22[[#This Row],[Median]])/25)*35) + AAMC_Raw_Data_for_FY22[[#This Row],[Median]]","v":292336.59999999998},{"$f":"(((AAMC_Raw_Data_for_FY22[[#This Row],[75th]]-AAMC_Raw_Data_for_FY22[[#This Row],[Median]])/25)*40) + AAMC_Raw_Data_for_FY22[[#This Row],[Median]]","v":304507.40000000002}]
[{"$f":"AAMC_Raw_Data_for_FY22[[#This Row],[Source]]&AAMC_Raw_Data_for_FY22[[#This Row],[Type]]&AAMC_Raw_Data_for_FY22[[#This Row],[School Subset]]&AAMC_Raw_Data_for_FY22[[#This Row],[Rank]]&AAMC_Raw_Data_for_FY22[[#This Row],[Degree]]&AAMC_Raw_Data_for_FY22[[#This Row],[Department / Specialty]]&\"L\"","v":"AAMCAcademicPublicChiefPhDOther MedicineL"},"Other Medicine",6,"AAMC","Academic","Public","Chief","PhD","2021-2022",null,{"$f":"(((AAMC_Raw_Data_for_FY22[[#This Row],[Median]]-AAMC_Raw_Data_for_FY22[[#This Row],[25th]])/25)*5) + AAMC_Raw_Data_for_FY22[[#This Row],[25th]]","v":0},{"$f":"(((AAMC_Raw_Data_for_FY22[[#This Row],[Median]]-AAMC_Raw_Data_for_FY22[[#This Row],[25th]])/25)*10) + AAMC_Raw_Data_for_FY22[[#This Row],[25th]]","v":0},{"$f":"(((AAMC_Raw_Data_for_FY22[[#This Row],[Median]]-AAMC_Raw_Data_for_FY22[[#This Row],[25th]])/25)*15) + AAMC_Raw_Data_for_FY22[[#This Row],[25th]]","v":0},{"$f":"(((AAMC_Raw_Data_for_FY22[[#This Row],[Median]]-AAMC_Raw_Data_for_FY22[[#This Row],[25th]])/25)*20) + AAMC_Raw_Data_for_FY22[[#This Row],[25th]]","v":0},null,{"$f":"(((AAMC_Raw_Data_for_FY22[[#This Row],[75th]]-AAMC_Raw_Data_for_FY22[[#This Row],[Median]])/25)*5) + AAMC_Raw_Data_for_FY22[[#This Row],[Median]]","v":0},{"$f":"(((AAMC_Raw_Data_for_FY22[[#This Row],[75th]]-AAMC_Raw_Data_for_FY22[[#This Row],[Median]])/25)*10) + AAMC_Raw_Data_for_FY22[[#This Row],[Median]]","v":0},{"$f":"(((AAMC_Raw_Data_for_FY22[[#This Row],[75th]]-AAMC_Raw_Data_for_FY22[[#This Row],[Median]])/25)*15) + AAMC_Raw_Data_for_FY22[[#This Row],[Median]]","v":0},{"$f":"(((AAMC_Raw_Data_for_FY22[[#This Row],[75th]]-AAMC_Raw_Data_for_FY22[[#This Row],[Median]])/25)*20) + AAMC_Raw_Data_for_FY22[[#This Row],[Median]]","v":0},null,{"$f":"(((AAMC_Raw_Data_for_FY22[[#This Row],[75th]]-AAMC_Raw_Data_for_FY22[[#This Row],[Median]])/25)*30) + AAMC_Raw_Data_for_FY22[[#This Row],[Median]]","v":0},{"$f":"(((AAMC_Raw_Data_for_FY22[[#This Row],[75th]]-AAMC_Raw_Data_for_FY22[[#This Row],[Median]])/25)*35) + AAMC_Raw_Data_for_FY22[[#This Row],[Median]]","v":0},{"$f":"(((AAMC_Raw_Data_for_FY22[[#This Row],[75th]]-AAMC_Raw_Data_for_FY22[[#This Row],[Median]])/25)*40) + AAMC_Raw_Data_for_FY22[[#This Row],[Median]]","v":0}]
[{"$f":"AAMC_Raw_Data_for_FY22[[#This Row],[Source]]&AAMC_Raw_Data_for_FY22[[#This Row],[Type]]&AAMC_Raw_Data_for_FY22[[#This Row],[School Subset]]&AAMC_Raw_Data_for_FY22[[#This Row],[Rank]]&AAMC_Raw_Data_for_FY22[[#This Row],[Degree]]&AAMC_Raw_Data_for_FY22[[#This Row],[Department / Specialty]]&\"L\"","v":"AAMCAcademicPublicChairPhDOther MedicineL"},"Other Medicine",1,"AAMC","Academic","Public","Chair","PhD","2021-2022",null,{"$f":"(((AAMC_Raw_Data_for_FY22[[#This Row],[Median]]-AAMC_Raw_Data_for_FY22[[#This Row],[25th]])/25)*5) + AAMC_Raw_Data_for_FY22[[#This Row],[25th]]","v":0},{"$f":"(((AAMC_Raw_Data_for_FY22[[#This Row],[Median]]-AAMC_Raw_Data_for_FY22[[#This Row],[25th]])/25)*10) + AAMC_Raw_Data_for_FY22[[#This Row],[25th]]","v":0},{"$f":"(((AAMC_Raw_Data_for_FY22[[#This Row],[Median]]-AAMC_Raw_Data_for_FY22[[#This Row],[25th]])/25)*15) + AAMC_Raw_Data_for_FY22[[#This Row],[25th]]","v":0},{"$f":"(((AAMC_Raw_Data_for_FY22[[#This Row],[Median]]-AAMC_Raw_Data_for_FY22[[#This Row],[25th]])/25)*20) + AAMC_Raw_Data_for_FY22[[#This Row],[25th]]","v":0},null,{"$f":"(((AAMC_Raw_Data_for_FY22[[#This Row],[75th]]-AAMC_Raw_Data_for_FY22[[#This Row],[Median]])/25)*5) + AAMC_Raw_Data_for_FY22[[#This Row],[Median]]","v":0},{"$f":"(((AAMC_Raw_Data_for_FY22[[#This Row],[75th]]-AAMC_Raw_Data_for_FY22[[#This Row],[Median]])/25)*10) + AAMC_Raw_Data_for_FY22[[#This Row],[Median]]","v":0},{"$f":"(((AAMC_Raw_Data_for_FY22[[#This Row],[75th]]-AAMC_Raw_Data_for_FY22[[#This Row],[Median]])/25)*15) + AAMC_Raw_Data_for_FY22[[#This Row],[Median]]","v":0},{"$f":"(((AAMC_Raw_Data_for_FY22[[#This Row],[75th]]-AAMC_Raw_Data_for_FY22[[#This Row],[Median]])/25)*20) + AAMC_Raw_Data_for_FY22[[#This Row],[Median]]","v":0},null,{"$f":"(((AAMC_Raw_Data_for_FY22[[#This Row],[75th]]-AAMC_Raw_Data_for_FY22[[#This Row],[Median]])/25)*30) + AAMC_Raw_Data_for_FY22[[#This Row],[Median]]","v":0},{"$f":"(((AAMC_Raw_Data_for_FY22[[#This Row],[75th]]-AAMC_Raw_Data_for_FY22[[#This Row],[Median]])/25)*35) + AAMC_Raw_Data_for_FY22[[#This Row],[Median]]","v":0},{"$f":"(((AAMC_Raw_Data_for_FY22[[#This Row],[75th]]-AAMC_Raw_Data_for_FY22[[#This Row],[Median]])/25)*40) + AAMC_Raw_Data_for_FY22[[#This Row],[Median]]","v":0}]
[{"$f":"AAMC_Raw_Data_for_FY22[[#This Row],[Source]]&AAMC_Raw_Data_for_FY22[[#This Row],[Type]]&AAMC_Raw_Data_for_FY22[[#This Row],[School Subset]]&AAMC_Raw_Data_for_FY22[[#This Row],[Rank]]&AAMC_Raw_Data_for_FY22[[#This Row],[Degree]]&AAMC_Raw_Data_for_FY22[[#This Row],[Department / Specialty]]&\"L\"","v":"AAMCAcademicPublicInstructorPhDOB/GYN TotalL"},"OB/GYN Total",5,"AAMC","Academic","Public","Instructor","PhD","2021-2022",66219,{"$f":"(((AAMC_Raw_Data_for_FY22[[#This Row],[Median]]-AAMC_Raw_Data_for_FY22[[#This Row],[25th]])/25)*5) + AAMC_Raw_Data_for_FY22[[#This Row],[25th]]","v":66841.2},{"$f":"(((AAMC_Raw_Data_for_FY22[[#This Row],[Median]]-AAMC_Raw_Data_for_FY22[[#This Row],[25th]])/25)*10) + AAMC_Raw_Data_for_FY22[[#This Row],[25th]]","v":67463.399999999994},{"$f":"(((AAMC_Raw_Data_for_FY22[[#This Row],[Median]]-AAMC_Raw_Data_for_FY22[[#This Row],[25th]])/25)*15) + AAMC_Raw_Data_for_FY22[[#This Row],[25th]]","v":68085.600000000006},{"$f":"(((AAMC_Raw_Data_for_FY22[[#This Row],[Median]]-AAMC_Raw_Data_for_FY22[[#This Row],[25th]])/25)*20) + AAMC_Raw_Data_for_FY22[[#This Row],[25th]]","v":68707.8},69330,{"$f":"(((AAMC_Raw_Data_for_FY22[[#This Row],[75th]]-AAMC_Raw_Data_for_FY22[[#This Row],[Median]])/25)*5) + AAMC_Raw_Data_for_FY22[[#This Row],[Median]]","v":75976.800000000003},{"$f":"(((AAMC_Raw_Data_for_FY22[[#This Row],[75th]]-AAMC_Raw_Data_for_FY22[[#This Row],[Median]])/25)*10) + AAMC_Raw_Data_for_FY22[[#This Row],[Median]]","v":82623.600000000006},{"$f":"(((AAMC_Raw_Data_for_FY22[[#This Row],[75th]]-AAMC_Raw_Data_for_FY22[[#This Row],[Median]])/25)*15) + AAMC_Raw_Data_for_FY22[[#This Row],[Median]]","v":89270.399999999994},{"$f":"(((AAMC_Raw_Data_for_FY22[[#This Row],[75th]]-AAMC_Raw_Data_for_FY22[[#This Row],[Median]])/25)*20) + AAMC_Raw_Data_for_FY22[[#This Row],[Median]]","v":95917.2},102564,{"$f":"(((AAMC_Raw_Data_for_FY22[[#This Row],[75th]]-AAMC_Raw_Data_for_FY22[[#This Row],[Median]])/25)*30) + AAMC_Raw_Data_for_FY22[[#This Row],[Median]]","v":109210.79999999999},{"$f":"(((AAMC_Raw_Data_for_FY22[[#This Row],[75th]]-AAMC_Raw_Data_for_FY22[[#This Row],[Median]])/25)*35) + AAMC_Raw_Data_for_FY22[[#This Row],[Median]]","v":115857.60000000001},{"$f":"(((AAMC_Raw_Data_for_FY22[[#This Row],[75th]]-AAMC_Raw_Data_for_FY22[[#This Row],[Median]])/25)*40) + AAMC_Raw_Data_for_FY22[[#This Row],[Median]]","v":122504.4}]
[{"$f":"AAMC_Raw_Data_for_FY22[[#This Row],[Source]]&AAMC_Raw_Data_for_FY22[[#This Row],[Type]]&AAMC_Raw_Data_for_FY22[[#This Row],[School Subset]]&AAMC_Raw_Data_for_FY22[[#This Row],[Rank]]&AAMC_Raw_Data_for_FY22[[#This Row],[Degree]]&AAMC_Raw_Data_for_FY22[[#This Row],[Department / Specialty]]&\"L\"","v":"AAMCAcademicPublicAssistantPhDOB/GYN TotalL"},"OB/GYN Total",4,"AAMC","Academic","Public","Assistant","PhD","2021-2022",85362,{"$f":"(((AAMC_Raw_Data_for_FY22[[#This Row],[Median]]-AAMC_Raw_Data_for_FY22[[#This Row],[25th]])/25)*5) + AAMC_Raw_Data_for_FY22[[#This Row],[25th]]","v":90209.600000000006},{"$f":"(((AAMC_Raw_Data_for_FY22[[#This Row],[Median]]-AAMC_Raw_Data_for_FY22[[#This Row],[25th]])/25)*10) + AAMC_Raw_Data_for_FY22[[#This Row],[25th]]","v":95057.2},{"$f":"(((AAMC_Raw_Data_for_FY22[[#This Row],[Median]]-AAMC_Raw_Data_for_FY22[[#This Row],[25th]])/25)*15) + AAMC_Raw_Data_for_FY22[[#This Row],[25th]]","v":99904.8},{"$f":"(((AAMC_Raw_Data_for_FY22[[#This Row],[Median]]-AAMC_Raw_Data_for_FY22[[#This Row],[25th]])/25)*20) + AAMC_Raw_Data_for_FY22[[#This Row],[25th]]","v":104752.4},109600,{"$f":"(((AAMC_Raw_Data_for_FY22[[#This Row],[75th]]-AAMC_Raw_Data_for_FY22[[#This Row],[Median]])/25)*5) + AAMC_Raw_Data_for_FY22[[#This Row],[Median]]","v":113006.8},{"$f":"(((AAMC_Raw_Data_for_FY22[[#This Row],[75th]]-AAMC_Raw_Data_for_FY22[[#This Row],[Median]])/25)*10) + AAMC_Raw_Data_for_FY22[[#This Row],[Median]]","v":116413.6},{"$f":"(((AAMC_Raw_Data_for_FY22[[#This Row],[75th]]-AAMC_Raw_Data_for_FY22[[#This Row],[Median]])/25)*15) + AAMC_Raw_Data_for_FY22[[#This Row],[Median]]","v":119820.4},{"$f":"(((AAMC_Raw_Data_for_FY22[[#This Row],[75th]]-AAMC_Raw_Data_for_FY22[[#This Row],[Median]])/25)*20) + AAMC_Raw_Data_for_FY22[[#This Row],[Median]]","v":123227.2},126634,{"$f":"(((AAMC_Raw_Data_for_FY22[[#This Row],[75th]]-AAMC_Raw_Data_for_FY22[[#This Row],[Median]])/25)*30) + AAMC_Raw_Data_for_FY22[[#This Row],[Median]]","v":130040.8},{"$f":"(((AAMC_Raw_Data_for_FY22[[#This Row],[75th]]-AAMC_Raw_Data_for_FY22[[#This Row],[Median]])/25)*35) + AAMC_Raw_Data_for_FY22[[#This Row],[Median]]","v":133447.6},{"$f":"(((AAMC_Raw_Data_for_FY22[[#This Row],[75th]]-AAMC_Raw_Data_for_FY22[[#This Row],[Median]])/25)*40) + AAMC_Raw_Data_for_FY22[[#This Row],[Median]]","v":136854.39999999999}]
[{"$f":"AAMC_Raw_Data_for_FY22[[#This Row],[Source]]&AAMC_Raw_Data_for_FY22[[#This Row],[Type]]&AAMC_Raw_Data_for_FY22[[#This Row],[School Subset]]&AAMC_Raw_Data_for_FY22[[#This Row],[Rank]]&AAMC_Raw_Data_for_FY22[[#This Row],[Degree]]&AAMC_Raw_Data_for_FY22[[#This Row],[Department / Specialty]]&\"L\"","v":"AAMCAcademicPublicAssociatePhDOB/GYN TotalL"},"OB/GYN Total",3,"AAMC","Academic","Public","Associate","PhD","2021-2022",129350,{"$f":"(((AAMC_Raw_Data_for_FY22[[#This Row],[Median]]-AAMC_Raw_Data_for_FY22[[#This Row],[25th]])/25)*5) + AAMC_Raw_Data_for_FY22[[#This Row],[25th]]","v":132048.4},{"$f":"(((AAMC_Raw_Data_for_FY22[[#This Row],[Median]]-AAMC_Raw_Data_for_FY22[[#This Row],[25th]])/25)*10) + AAMC_Raw_Data_for_FY22[[#This Row],[25th]]","v":134746.79999999999},{"$f":"(((AAMC_Raw_Data_for_FY22[[#This Row],[Median]]-AAMC_Raw_Data_for_FY22[[#This Row],[25th]])/25)*15) + AAMC_Raw_Data_for_FY22[[#This Row],[25th]]","v":137445.20000000001},{"$f":"(((AAMC_Raw_Data_for_FY22[[#This Row],[Median]]-AAMC_Raw_Data_for_FY22[[#This Row],[25th]])/25)*20) + AAMC_Raw_Data_for_FY22[[#This Row],[25th]]","v":140143.6},142842,{"$f":"(((AAMC_Raw_Data_for_FY22[[#This Row],[75th]]-AAMC_Raw_Data_for_FY22[[#This Row],[Median]])/25)*5) + AAMC_Raw_Data_for_FY22[[#This Row],[Median]]","v":147686.39999999999},{"$f":"(((AAMC_Raw_Data_for_FY22[[#This Row],[75th]]-AAMC_Raw_Data_for_FY22[[#This Row],[Median]])/25)*10) + AAMC_Raw_Data_for_FY22[[#This Row],[Median]]","v":152530.79999999999},{"$f":"(((AAMC_Raw_Data_for_FY22[[#This Row],[75th]]-AAMC_Raw_Data_for_FY22[[#This Row],[Median]])/25)*15) + AAMC_Raw_Data_for_FY22[[#This Row],[Median]]","v":157375.20000000001},{"$f":"(((AAMC_Raw_Data_for_FY22[[#This Row],[75th]]-AAMC_Raw_Data_for_FY22[[#This Row],[Median]])/25)*20) + AAMC_Raw_Data_for_FY22[[#This Row],[Median]]","v":162219.6},167064,{"$f":"(((AAMC_Raw_Data_for_FY22[[#This Row],[75th]]-AAMC_Raw_Data_for_FY22[[#This Row],[Median]])/25)*30) + AAMC_Raw_Data_for_FY22[[#This Row],[Median]]","v":171908.4},{"$f":"(((AAMC_Raw_Data_for_FY22[[#This Row],[75th]]-AAMC_Raw_Data_for_FY22[[#This Row],[Median]])/25)*35) + AAMC_Raw_Data_for_FY22[[#This Row],[Median]]","v":176752.8},{"$f":"(((AAMC_Raw_Data_for_FY22[[#This Row],[75th]]-AAMC_Raw_Data_for_FY22[[#This Row],[Median]])/25)*40) + AAMC_Raw_Data_for_FY22[[#This Row],[Median]]","v":181597.2}]
[{"$f":"AAMC_Raw_Data_for_FY22[[#This Row],[Source]]&AAMC_Raw_Data_for_FY22[[#This Row],[Type]]&AAMC_Raw_Data_for_FY22[[#This Row],[School Subset]]&AAMC_Raw_Data_for_FY22[[#This Row],[Rank]]&AAMC_Raw_Data_for_FY22[[#This Row],[Degree]]&AAMC_Raw_Data_for_FY22[[#This Row],[Department / Specialty]]&\"L\"","v":"AAMCAcademicPublicProfessorPhDOB/GYN TotalL"},"OB/GYN Total",2,"AAMC","Academic","Public","Professor","PhD","2021-2022",182550,{"$f":"(((AAMC_Raw_Data_for_FY22[[#This Row],[Median]]-AAMC_Raw_Data_for_FY22[[#This Row],[25th]])/25)*5) + AAMC_Raw_Data_for_FY22[[#This Row],[25th]]","v":187943},{"$f":"(((AAMC_Raw_Data_for_FY22[[#This Row],[Median]]-AAMC_Raw_Data_for_FY22[[#This Row],[25th]])/25)*10) + AAMC_Raw_Data_for_FY22[[#This Row],[25th]]","v":193336},{"$f":"(((AAMC_Raw_Data_for_FY22[[#This Row],[Median]]-AAMC_Raw_Data_for_FY22[[#This Row],[25th]])/25)*15) + AAMC_Raw_Data_for_FY22[[#This Row],[25th]]","v":198729},{"$f":"(((AAMC_Raw_Data_for_FY22[[#This Row],[Median]]-AAMC_Raw_Data_for_FY22[[#This Row],[25th]])/25)*20) + AAMC_Raw_Data_for_FY22[[#This Row],[25th]]","v":204122},209515,{"$f":"(((AAMC_Raw_Data_for_FY22[[#This Row],[75th]]-AAMC_Raw_Data_for_FY22[[#This Row],[Median]])/25)*5) + AAMC_Raw_Data_for_FY22[[#This Row],[Median]]","v":218360.4},{"$f":"(((AAMC_Raw_Data_for_FY22[[#This Row],[75th]]-AAMC_Raw_Data_for_FY22[[#This Row],[Median]])/25)*10) + AAMC_Raw_Data_for_FY22[[#This Row],[Median]]","v":227205.8},{"$f":"(((AAMC_Raw_Data_for_FY22[[#This Row],[75th]]-AAMC_Raw_Data_for_FY22[[#This Row],[Median]])/25)*15) + AAMC_Raw_Data_for_FY22[[#This Row],[Median]]","v":236051.20000000001},{"$f":"(((AAMC_Raw_Data_for_FY22[[#This Row],[75th]]-AAMC_Raw_Data_for_FY22[[#This Row],[Median]])/25)*20) + AAMC_Raw_Data_for_FY22[[#This Row],[Median]]","v":244896.6},253742,{"$f":"(((AAMC_Raw_Data_for_FY22[[#This Row],[75th]]-AAMC_Raw_Data_for_FY22[[#This Row],[Median]])/25)*30) + AAMC_Raw_Data_for_FY22[[#This Row],[Median]]","v":262587.40000000002},{"$f":"(((AAMC_Raw_Data_for_FY22[[#This Row],[75th]]-AAMC_Raw_Data_for_FY22[[#This Row],[Median]])/25)*35) + AAMC_Raw_Data_for_FY22[[#This Row],[Median]]","v":271432.8},{"$f":"(((AAMC_Raw_Data_for_FY22[[#This Row],[75th]]-AAMC_Raw_Data_for_FY22[[#This Row],[Median]])/25)*40) + AAMC_Raw_Data_for_FY22[[#This Row],[Median]]","v":280278.2}]
[{"$f":"AAMC_Raw_Data_for_FY22[[#This Row],[Source]]&AAMC_Raw_Data_for_FY22[[#This Row],[Type]]&AAMC_Raw_Data_for_FY22[[#This Row],[School Subset]]&AAMC_Raw_Data_for_FY22[[#This Row],[Rank]]&AAMC_Raw_Data_for_FY22[[#This Row],[Degree]]&AAMC_Raw_Data_for_FY22[[#This Row],[Department / Specialty]]&\"L\"","v":"AAMCAcademicPublicChiefPhDOB/GYN TotalL"},"OB/GYN Total",6,"AAMC","Academic","Public","Chief","PhD","2021-2022",null,{"$f":"(((AAMC_Raw_Data_for_FY22[[#This Row],[Median]]-AAMC_Raw_Data_for_FY22[[#This Row],[25th]])/25)*5) + AAMC_Raw_Data_for_FY22[[#This Row],[25th]]","v":0},{"$f":"(((AAMC_Raw_Data_for_FY22[[#This Row],[Median]]-AAMC_Raw_Data_for_FY22[[#This Row],[25th]])/25)*10) + AAMC_Raw_Data_for_FY22[[#This Row],[25th]]","v":0},{"$f":"(((AAMC_Raw_Data_for_FY22[[#This Row],[Median]]-AAMC_Raw_Data_for_FY22[[#This Row],[25th]])/25)*15) + AAMC_Raw_Data_for_FY22[[#This Row],[25th]]","v":0},{"$f":"(((AAMC_Raw_Data_for_FY22[[#This Row],[Median]]-AAMC_Raw_Data_for_FY22[[#This Row],[25th]])/25)*20) + AAMC_Raw_Data_for_FY22[[#This Row],[25th]]","v":0},null,{"$f":"(((AAMC_Raw_Data_for_FY22[[#This Row],[75th]]-AAMC_Raw_Data_for_FY22[[#This Row],[Median]])/25)*5) + AAMC_Raw_Data_for_FY22[[#This Row],[Median]]","v":0},{"$f":"(((AAMC_Raw_Data_for_FY22[[#This Row],[75th]]-AAMC_Raw_Data_for_FY22[[#This Row],[Median]])/25)*10) + AAMC_Raw_Data_for_FY22[[#This Row],[Median]]","v":0},{"$f":"(((AAMC_Raw_Data_for_FY22[[#This Row],[75th]]-AAMC_Raw_Data_for_FY22[[#This Row],[Median]])/25)*15) + AAMC_Raw_Data_for_FY22[[#This Row],[Median]]","v":0},{"$f":"(((AAMC_Raw_Data_for_FY22[[#This Row],[75th]]-AAMC_Raw_Data_for_FY22[[#This Row],[Median]])/25)*20) + AAMC_Raw_Data_for_FY22[[#This Row],[Median]]","v":0},null,{"$f":"(((AAMC_Raw_Data_for_FY22[[#This Row],[75th]]-AAMC_Raw_Data_for_FY22[[#This Row],[Median]])/25)*30) + AAMC_Raw_Data_for_FY22[[#This Row],[Median]]","v":0},{"$f":"(((AAMC_Raw_Data_for_FY22[[#This Row],[75th]]-AAMC_Raw_Data_for_FY22[[#This Row],[Median]])/25)*35) + AAMC_Raw_Data_for_FY22[[#This Row],[Median]]","v":0},{"$f":"(((AAMC_Raw_Data_for_FY22[[#This Row],[75th]]-AAMC_Raw_Data_for_FY22[[#This Row],[Median]])/25)*40) + AAMC_Raw_Data_for_FY22[[#This Row],[Median]]","v":0}]
[{"$f":"AAMC_Raw_Data_for_FY22[[#This Row],[Source]]&AAMC_Raw_Data_for_FY22[[#This Row],[Type]]&AAMC_Raw_Data_for_FY22[[#This Row],[School Subset]]&AAMC_Raw_Data_for_FY22[[#This Row],[Rank]]&AAMC_Raw_Data_for_FY22[[#This Row],[Degree]]&AAMC_Raw_Data_for_FY22[[#This Row],[Department / Specialty]]&\"L\"","v":"AAMCAcademicPublicInstructorPhDOB/GYN: GeneralL"},"OB/GYN: General",5,"AAMC","Academic","Public","Instructor","PhD","2021-2022",null,{"$f":"(((AAMC_Raw_Data_for_FY22[[#This Row],[Median]]-AAMC_Raw_Data_for_FY22[[#This Row],[25th]])/25)*5) + AAMC_Raw_Data_for_FY22[[#This Row],[25th]]","v":0},{"$f":"(((AAMC_Raw_Data_for_FY22[[#This Row],[Median]]-AAMC_Raw_Data_for_FY22[[#This Row],[25th]])/25)*10) + AAMC_Raw_Data_for_FY22[[#This Row],[25th]]","v":0},{"$f":"(((AAMC_Raw_Data_for_FY22[[#This Row],[Median]]-AAMC_Raw_Data_for_FY22[[#This Row],[25th]])/25)*15) + AAMC_Raw_Data_for_FY22[[#This Row],[25th]]","v":0},{"$f":"(((AAMC_Raw_Data_for_FY22[[#This Row],[Median]]-AAMC_Raw_Data_for_FY22[[#This Row],[25th]])/25)*20) + AAMC_Raw_Data_for_FY22[[#This Row],[25th]]","v":0},null,{"$f":"(((AAMC_Raw_Data_for_FY22[[#This Row],[75th]]-AAMC_Raw_Data_for_FY22[[#This Row],[Median]])/25)*5) + AAMC_Raw_Data_for_FY22[[#This Row],[Median]]","v":0},{"$f":"(((AAMC_Raw_Data_for_FY22[[#This Row],[75th]]-AAMC_Raw_Data_for_FY22[[#This Row],[Median]])/25)*10) + AAMC_Raw_Data_for_FY22[[#This Row],[Median]]","v":0},{"$f":"(((AAMC_Raw_Data_for_FY22[[#This Row],[75th]]-AAMC_Raw_Data_for_FY22[[#This Row],[Median]])/25)*15) + AAMC_Raw_Data_for_FY22[[#This Row],[Median]]","v":0},{"$f":"(((AAMC_Raw_Data_for_FY22[[#This Row],[75th]]-AAMC_Raw_Data_for_FY22[[#This Row],[Median]])/25)*20) + AAMC_Raw_Data_for_FY22[[#This Row],[Median]]","v":0},null,{"$f":"(((AAMC_Raw_Data_for_FY22[[#This Row],[75th]]-AAMC_Raw_Data_for_FY22[[#This Row],[Median]])/25)*30) + AAMC_Raw_Data_for_FY22[[#This Row],[Median]]","v":0},{"$f":"(((AAMC_Raw_Data_for_FY22[[#This Row],[75th]]-AAMC_Raw_Data_for_FY22[[#This Row],[Median]])/25)*35) + AAMC_Raw_Data_for_FY22[[#This Row],[Median]]","v":0},{"$f":"(((AAMC_Raw_Data_for_FY22[[#This Row],[75th]]-AAMC_Raw_Data_for_FY22[[#This Row],[Median]])/25)*40) + AAMC_Raw_Data_for_FY22[[#This Row],[Median]]","v":0}]
[{"$f":"AAMC_Raw_Data_for_FY22[[#This Row],[Source]]&AAMC_Raw_Data_for_FY22[[#This Row],[Type]]&AAMC_Raw_Data_for_FY22[[#This Row],[School Subset]]&AAMC_Raw_Data_for_FY22[[#This Row],[Rank]]&AAMC_Raw_Data_for_FY22[[#This Row],[Degree]]&AAMC_Raw_Data_for_FY22[[#This Row],[Department / Specialty]]&\"L\"","v":"AAMCAcademicPublicAssistantPhDOB/GYN: GeneralL"},"OB/GYN: General",4,"AAMC","Academic","Public","Assistant","PhD","2021-2022",99467,{"$f":"(((AAMC_Raw_Data_for_FY22[[#This Row],[Median]]-AAMC_Raw_Data_for_FY22[[#This Row],[25th]])/25)*5) + AAMC_Raw_Data_for_FY22[[#This Row],[25th]]","v":101927.4},{"$f":"(((AAMC_Raw_Data_for_FY22[[#This Row],[Median]]-AAMC_Raw_Data_for_FY22[[#This Row],[25th]])/25)*10) + AAMC_Raw_Data_for_FY22[[#This Row],[25th]]","v":104387.8},{"$f":"(((AAMC_Raw_Data_for_FY22[[#This Row],[Median]]-AAMC_Raw_Data_for_FY22[[#This Row],[25th]])/25)*15) + AAMC_Raw_Data_for_FY22[[#This Row],[25th]]","v":106848.2},{"$f":"(((AAMC_Raw_Data_for_FY22[[#This Row],[Median]]-AAMC_Raw_Data_for_FY22[[#This Row],[25th]])/25)*20) + AAMC_Raw_Data_for_FY22[[#This Row],[25th]]","v":109308.6},111769,{"$f":"(((AAMC_Raw_Data_for_FY22[[#This Row],[75th]]-AAMC_Raw_Data_for_FY22[[#This Row],[Median]])/25)*5) + AAMC_Raw_Data_for_FY22[[#This Row],[Median]]","v":115167.6},{"$f":"(((AAMC_Raw_Data_for_FY22[[#This Row],[75th]]-AAMC_Raw_Data_for_FY22[[#This Row],[Median]])/25)*10) + AAMC_Raw_Data_for_FY22[[#This Row],[Median]]","v":118566.2},{"$f":"(((AAMC_Raw_Data_for_FY22[[#This Row],[75th]]-AAMC_Raw_Data_for_FY22[[#This Row],[Median]])/25)*15) + AAMC_Raw_Data_for_FY22[[#This Row],[Median]]","v":121964.8},{"$f":"(((AAMC_Raw_Data_for_FY22[[#This Row],[75th]]-AAMC_Raw_Data_for_FY22[[#This Row],[Median]])/25)*20) + AAMC_Raw_Data_for_FY22[[#This Row],[Median]]","v":125363.4},128762,{"$f":"(((AAMC_Raw_Data_for_FY22[[#This Row],[75th]]-AAMC_Raw_Data_for_FY22[[#This Row],[Median]])/25)*30) + AAMC_Raw_Data_for_FY22[[#This Row],[Median]]","v":132160.6},{"$f":"(((AAMC_Raw_Data_for_FY22[[#This Row],[75th]]-AAMC_Raw_Data_for_FY22[[#This Row],[Median]])/25)*35) + AAMC_Raw_Data_for_FY22[[#This Row],[Median]]","v":135559.20000000001},{"$f":"(((AAMC_Raw_Data_for_FY22[[#This Row],[75th]]-AAMC_Raw_Data_for_FY22[[#This Row],[Median]])/25)*40) + AAMC_Raw_Data_for_FY22[[#This Row],[Median]]","v":138957.79999999999}]
[{"$f":"AAMC_Raw_Data_for_FY22[[#This Row],[Source]]&AAMC_Raw_Data_for_FY22[[#This Row],[Type]]&AAMC_Raw_Data_for_FY22[[#This Row],[School Subset]]&AAMC_Raw_Data_for_FY22[[#This Row],[Rank]]&AAMC_Raw_Data_for_FY22[[#This Row],[Degree]]&AAMC_Raw_Data_for_FY22[[#This Row],[Department / Specialty]]&\"L\"","v":"AAMCAcademicPublicAssociatePhDOB/GYN: GeneralL"},"OB/GYN: General",3,"AAMC","Academic","Public","Associate","PhD","2021-2022",128156,{"$f":"(((AAMC_Raw_Data_for_FY22[[#This Row],[Median]]-AAMC_Raw_Data_for_FY22[[#This Row],[25th]])/25)*5) + AAMC_Raw_Data_for_FY22[[#This Row],[25th]]","v":130046.6},{"$f":"(((AAMC_Raw_Data_for_FY22[[#This Row],[Median]]-AAMC_Raw_Data_for_FY22[[#This Row],[25th]])/25)*10) + AAMC_Raw_Data_for_FY22[[#This Row],[25th]]","v":131937.20000000001},{"$f":"(((AAMC_Raw_Data_for_FY22[[#This Row],[Median]]-AAMC_Raw_Data_for_FY22[[#This Row],[25th]])/25)*15) + AAMC_Raw_Data_for_FY22[[#This Row],[25th]]","v":133827.79999999999},{"$f":"(((AAMC_Raw_Data_for_FY22[[#This Row],[Median]]-AAMC_Raw_Data_for_FY22[[#This Row],[25th]])/25)*20) + AAMC_Raw_Data_for_FY22[[#This Row],[25th]]","v":135718.39999999999},137609,{"$f":"(((AAMC_Raw_Data_for_FY22[[#This Row],[75th]]-AAMC_Raw_Data_for_FY22[[#This Row],[Median]])/25)*5) + AAMC_Raw_Data_for_FY22[[#This Row],[Median]]","v":140182.20000000001},{"$f":"(((AAMC_Raw_Data_for_FY22[[#This Row],[75th]]-AAMC_Raw_Data_for_FY22[[#This Row],[Median]])/25)*10) + AAMC_Raw_Data_for_FY22[[#This Row],[Median]]","v":142755.4},{"$f":"(((AAMC_Raw_Data_for_FY22[[#This Row],[75th]]-AAMC_Raw_Data_for_FY22[[#This Row],[Median]])/25)*15) + AAMC_Raw_Data_for_FY22[[#This Row],[Median]]","v":145328.6},{"$f":"(((AAMC_Raw_Data_for_FY22[[#This Row],[75th]]-AAMC_Raw_Data_for_FY22[[#This Row],[Median]])/25)*20) + AAMC_Raw_Data_for_FY22[[#This Row],[Median]]","v":147901.79999999999},150475,{"$f":"(((AAMC_Raw_Data_for_FY22[[#This Row],[75th]]-AAMC_Raw_Data_for_FY22[[#This Row],[Median]])/25)*30) + AAMC_Raw_Data_for_FY22[[#This Row],[Median]]","v":153048.20000000001},{"$f":"(((AAMC_Raw_Data_for_FY22[[#This Row],[75th]]-AAMC_Raw_Data_for_FY22[[#This Row],[Median]])/25)*35) + AAMC_Raw_Data_for_FY22[[#This Row],[Median]]","v":155621.4},{"$f":"(((AAMC_Raw_Data_for_FY22[[#This Row],[75th]]-AAMC_Raw_Data_for_FY22[[#This Row],[Median]])/25)*40) + AAMC_Raw_Data_for_FY22[[#This Row],[Median]]","v":158194.6}]
[{"$f":"AAMC_Raw_Data_for_FY22[[#This Row],[Source]]&AAMC_Raw_Data_for_FY22[[#This Row],[Type]]&AAMC_Raw_Data_for_FY22[[#This Row],[School Subset]]&AAMC_Raw_Data_for_FY22[[#This Row],[Rank]]&AAMC_Raw_Data_for_FY22[[#This Row],[Degree]]&AAMC_Raw_Data_for_FY22[[#This Row],[Department / Specialty]]&\"L\"","v":"AAMCAcademicPublicProfessorPhDOB/GYN: GeneralL"},"OB/GYN: General",2,"AAMC","Academic","Public","Professor","PhD","2021-2022",182828,{"$f":"(((AAMC_Raw_Data_for_FY22[[#This Row],[Median]]-AAMC_Raw_Data_for_FY22[[#This Row],[25th]])/25)*5) + AAMC_Raw_Data_for_FY22[[#This Row],[25th]]","v":187168.6},{"$f":"(((AAMC_Raw_Data_for_FY22[[#This Row],[Median]]-AAMC_Raw_Data_for_FY22[[#This Row],[25th]])/25)*10) + AAMC_Raw_Data_for_FY22[[#This Row],[25th]]","v":191509.2},{"$f":"(((AAMC_Raw_Data_for_FY22[[#This Row],[Median]]-AAMC_Raw_Data_for_FY22[[#This Row],[25th]])/25)*15) + AAMC_Raw_Data_for_FY22[[#This Row],[25th]]","v":195849.8},{"$f":"(((AAMC_Raw_Data_for_FY22[[#This Row],[Median]]-AAMC_Raw_Data_for_FY22[[#This Row],[25th]])/25)*20) + AAMC_Raw_Data_for_FY22[[#This Row],[25th]]","v":200190.4},204531,{"$f":"(((AAMC_Raw_Data_for_FY22[[#This Row],[75th]]-AAMC_Raw_Data_for_FY22[[#This Row],[Median]])/25)*5) + AAMC_Raw_Data_for_FY22[[#This Row],[Median]]","v":211081.2},{"$f":"(((AAMC_Raw_Data_for_FY22[[#This Row],[75th]]-AAMC_Raw_Data_for_FY22[[#This Row],[Median]])/25)*10) + AAMC_Raw_Data_for_FY22[[#This Row],[Median]]","v":217631.4},{"$f":"(((AAMC_Raw_Data_for_FY22[[#This Row],[75th]]-AAMC_Raw_Data_for_FY22[[#This Row],[Median]])/25)*15) + AAMC_Raw_Data_for_FY22[[#This Row],[Median]]","v":224181.6},{"$f":"(((AAMC_Raw_Data_for_FY22[[#This Row],[75th]]-AAMC_Raw_Data_for_FY22[[#This Row],[Median]])/25)*20) + AAMC_Raw_Data_for_FY22[[#This Row],[Median]]","v":230731.8},237282,{"$f":"(((AAMC_Raw_Data_for_FY22[[#This Row],[75th]]-AAMC_Raw_Data_for_FY22[[#This Row],[Median]])/25)*30) + AAMC_Raw_Data_for_FY22[[#This Row],[Median]]","v":243832.2},{"$f":"(((AAMC_Raw_Data_for_FY22[[#This Row],[75th]]-AAMC_Raw_Data_for_FY22[[#This Row],[Median]])/25)*35) + AAMC_Raw_Data_for_FY22[[#This Row],[Median]]","v":250382.4},{"$f":"(((AAMC_Raw_Data_for_FY22[[#This Row],[75th]]-AAMC_Raw_Data_for_FY22[[#This Row],[Median]])/25)*40) + AAMC_Raw_Data_for_FY22[[#This Row],[Median]]","v":256932.6}]
[{"$f":"AAMC_Raw_Data_for_FY22[[#This Row],[Source]]&AAMC_Raw_Data_for_FY22[[#This Row],[Type]]&AAMC_Raw_Data_for_FY22[[#This Row],[School Subset]]&AAMC_Raw_Data_for_FY22[[#This Row],[Rank]]&AAMC_Raw_Data_for_FY22[[#This Row],[Degree]]&AAMC_Raw_Data_for_FY22[[#This Row],[Department / Specialty]]&\"L\"","v":"AAMCAcademicPublicAssistantPhDOB/GYN: Gynecologic OncologyL"},"OB/GYN: Gynecologic Oncology",4,"AAMC","Academic","Public","Assistant","PhD","2021-2022",null,{"$f":"(((AAMC_Raw_Data_for_FY22[[#This Row],[Median]]-AAMC_Raw_Data_for_FY22[[#This Row],[25th]])/25)*5) + AAMC_Raw_Data_for_FY22[[#This Row],[25th]]","v":0},{"$f":"(((AAMC_Raw_Data_for_FY22[[#This Row],[Median]]-AAMC_Raw_Data_for_FY22[[#This Row],[25th]])/25)*10) + AAMC_Raw_Data_for_FY22[[#This Row],[25th]]","v":0},{"$f":"(((AAMC_Raw_Data_for_FY22[[#This Row],[Median]]-AAMC_Raw_Data_for_FY22[[#This Row],[25th]])/25)*15) + AAMC_Raw_Data_for_FY22[[#This Row],[25th]]","v":0},{"$f":"(((AAMC_Raw_Data_for_FY22[[#This Row],[Median]]-AAMC_Raw_Data_for_FY22[[#This Row],[25th]])/25)*20) + AAMC_Raw_Data_for_FY22[[#This Row],[25th]]","v":0},null,{"$f":"(((AAMC_Raw_Data_for_FY22[[#This Row],[75th]]-AAMC_Raw_Data_for_FY22[[#This Row],[Median]])/25)*5) + AAMC_Raw_Data_for_FY22[[#This Row],[Median]]","v":0},{"$f":"(((AAMC_Raw_Data_for_FY22[[#This Row],[75th]]-AAMC_Raw_Data_for_FY22[[#This Row],[Median]])/25)*10) + AAMC_Raw_Data_for_FY22[[#This Row],[Median]]","v":0},{"$f":"(((AAMC_Raw_Data_for_FY22[[#This Row],[75th]]-AAMC_Raw_Data_for_FY22[[#This Row],[Median]])/25)*15) + AAMC_Raw_Data_for_FY22[[#This Row],[Median]]","v":0},{"$f":"(((AAMC_Raw_Data_for_FY22[[#This Row],[75th]]-AAMC_Raw_Data_for_FY22[[#This Row],[Median]])/25)*20) + AAMC_Raw_Data_for_FY22[[#This Row],[Median]]","v":0},null,{"$f":"(((AAMC_Raw_Data_for_FY22[[#This Row],[75th]]-AAMC_Raw_Data_for_FY22[[#This Row],[Median]])/25)*30) + AAMC_Raw_Data_for_FY22[[#This Row],[Median]]","v":0},{"$f":"(((AAMC_Raw_Data_for_FY22[[#This Row],[75th]]-AAMC_Raw_Data_for_FY22[[#This Row],[Median]])/25)*35) + AAMC_Raw_Data_for_FY22[[#This Row],[Median]]","v":0},{"$f":"(((AAMC_Raw_Data_for_FY22[[#This Row],[75th]]-AAMC_Raw_Data_for_FY22[[#This Row],[Median]])/25)*40) + AAMC_Raw_Data_for_FY22[[#This Row],[Median]]","v":0}]
[{"$f":"AAMC_Raw_Data_for_FY22[[#This Row],[Source]]&AAMC_Raw_Data_for_FY22[[#This Row],[Type]]&AAMC_Raw_Data_for_FY22[[#This Row],[School Subset]]&AAMC_Raw_Data_for_FY22[[#This Row],[Rank]]&AAMC_Raw_Data_for_FY22[[#This Row],[Degree]]&AAMC_Raw_Data_for_FY22[[#This Row],[Department / Specialty]]&\"L\"","v":"AAMCAcademicPublicProfessorPhDOB/GYN: Gynecologic OncologyL"},"OB/GYN: Gynecologic Oncology",2,"AAMC","Academic","Public","Professor","PhD","2021-2022",null,{"$f":"(((AAMC_Raw_Data_for_FY22[[#This Row],[Median]]-AAMC_Raw_Data_for_FY22[[#This Row],[25th]])/25)*5) + AAMC_Raw_Data_for_FY22[[#This Row],[25th]]","v":0},{"$f":"(((AAMC_Raw_Data_for_FY22[[#This Row],[Median]]-AAMC_Raw_Data_for_FY22[[#This Row],[25th]])/25)*10) + AAMC_Raw_Data_for_FY22[[#This Row],[25th]]","v":0},{"$f":"(((AAMC_Raw_Data_for_FY22[[#This Row],[Median]]-AAMC_Raw_Data_for_FY22[[#This Row],[25th]])/25)*15) + AAMC_Raw_Data_for_FY22[[#This Row],[25th]]","v":0},{"$f":"(((AAMC_Raw_Data_for_FY22[[#This Row],[Median]]-AAMC_Raw_Data_for_FY22[[#This Row],[25th]])/25)*20) + AAMC_Raw_Data_for_FY22[[#This Row],[25th]]","v":0},null,{"$f":"(((AAMC_Raw_Data_for_FY22[[#This Row],[75th]]-AAMC_Raw_Data_for_FY22[[#This Row],[Median]])/25)*5) + AAMC_Raw_Data_for_FY22[[#This Row],[Median]]","v":0},{"$f":"(((AAMC_Raw_Data_for_FY22[[#This Row],[75th]]-AAMC_Raw_Data_for_FY22[[#This Row],[Median]])/25)*10) + AAMC_Raw_Data_for_FY22[[#This Row],[Median]]","v":0},{"$f":"(((AAMC_Raw_Data_for_FY22[[#This Row],[75th]]-AAMC_Raw_Data_for_FY22[[#This Row],[Median]])/25)*15) + AAMC_Raw_Data_for_FY22[[#This Row],[Median]]","v":0},{"$f":"(((AAMC_Raw_Data_for_FY22[[#This Row],[75th]]-AAMC_Raw_Data_for_FY22[[#This Row],[Median]])/25)*20) + AAMC_Raw_Data_for_FY22[[#This Row],[Median]]","v":0},null,{"$f":"(((AAMC_Raw_Data_for_FY22[[#This Row],[75th]]-AAMC_Raw_Data_for_FY22[[#This Row],[Median]])/25)*30) + AAMC_Raw_Data_for_FY22[[#This Row],[Median]]","v":0},{"$f":"(((AAMC_Raw_Data_for_FY22[[#This Row],[75th]]-AAMC_Raw_Data_for_FY22[[#This Row],[Median]])/25)*35) + AAMC_Raw_Data_for_FY22[[#This Row],[Median]]","v":0},{"$f":"(((AAMC_Raw_Data_for_FY22[[#This Row],[75th]]-AAMC_Raw_Data_for_FY22[[#This Row],[Median]])/25)*40) + AAMC_Raw_Data_for_FY22[[#This Row],[Median]]","v":0}]
[{"$f":"AAMC_Raw_Data_for_FY22[[#This Row],[Source]]&AAMC_Raw_Data_for_FY22[[#This Row],[Type]]&AAMC_Raw_Data_for_FY22[[#This Row],[School Subset]]&AAMC_Raw_Data_for_FY22[[#This Row],[Rank]]&AAMC_Raw_Data_for_FY22[[#This Row],[Degree]]&AAMC_Raw_Data_for_FY22[[#This Row],[Department / Specialty]]&\"L\"","v":"AAMCAcademicPublicInstructorPhDOB/GYN: Maternal & FetalL"},"OB/GYN: Maternal & Fetal",5,"AAMC","Academic","Public","Instructor","PhD","2021-2022",null,{"$f":"(((AAMC_Raw_Data_for_FY22[[#This Row],[Median]]-AAMC_Raw_Data_for_FY22[[#This Row],[25th]])/25)*5) + AAMC_Raw_Data_for_FY22[[#This Row],[25th]]","v":0},{"$f":"(((AAMC_Raw_Data_for_FY22[[#This Row],[Median]]-AAMC_Raw_Data_for_FY22[[#This Row],[25th]])/25)*10) + AAMC_Raw_Data_for_FY22[[#This Row],[25th]]","v":0},{"$f":"(((AAMC_Raw_Data_for_FY22[[#This Row],[Median]]-AAMC_Raw_Data_for_FY22[[#This Row],[25th]])/25)*15) + AAMC_Raw_Data_for_FY22[[#This Row],[25th]]","v":0},{"$f":"(((AAMC_Raw_Data_for_FY22[[#This Row],[Median]]-AAMC_Raw_Data_for_FY22[[#This Row],[25th]])/25)*20) + AAMC_Raw_Data_for_FY22[[#This Row],[25th]]","v":0},null,{"$f":"(((AAMC_Raw_Data_for_FY22[[#This Row],[75th]]-AAMC_Raw_Data_for_FY22[[#This Row],[Median]])/25)*5) + AAMC_Raw_Data_for_FY22[[#This Row],[Median]]","v":0},{"$f":"(((AAMC_Raw_Data_for_FY22[[#This Row],[75th]]-AAMC_Raw_Data_for_FY22[[#This Row],[Median]])/25)*10) + AAMC_Raw_Data_for_FY22[[#This Row],[Median]]","v":0},{"$f":"(((AAMC_Raw_Data_for_FY22[[#This Row],[75th]]-AAMC_Raw_Data_for_FY22[[#This Row],[Median]])/25)*15) + AAMC_Raw_Data_for_FY22[[#This Row],[Median]]","v":0},{"$f":"(((AAMC_Raw_Data_for_FY22[[#This Row],[75th]]-AAMC_Raw_Data_for_FY22[[#This Row],[Median]])/25)*20) + AAMC_Raw_Data_for_FY22[[#This Row],[Median]]","v":0},null,{"$f":"(((AAMC_Raw_Data_for_FY22[[#This Row],[75th]]-AAMC_Raw_Data_for_FY22[[#This Row],[Median]])/25)*30) + AAMC_Raw_Data_for_FY22[[#This Row],[Median]]","v":0},{"$f":"(((AAMC_Raw_Data_for_FY22[[#This Row],[75th]]-AAMC_Raw_Data_for_FY22[[#This Row],[Median]])/25)*35) + AAMC_Raw_Data_for_FY22[[#This Row],[Median]]","v":0},{"$f":"(((AAMC_Raw_Data_for_FY22[[#This Row],[75th]]-AAMC_Raw_Data_for_FY22[[#This Row],[Median]])/25)*40) + AAMC_Raw_Data_for_FY22[[#This Row],[Median]]","v":0}]
[{"$f":"AAMC_Raw_Data_for_FY22[[#This Row],[Source]]&AAMC_Raw_Data_for_FY22[[#This Row],[Type]]&AAMC_Raw_Data_for_FY22[[#This Row],[School Subset]]&AAMC_Raw_Data_for_FY22[[#This Row],[Rank]]&AAMC_Raw_Data_for_FY22[[#This Row],[Degree]]&AAMC_Raw_Data_for_FY22[[#This Row],[Department / Specialty]]&\"L\"","v":"AAMCAcademicPublicAssistantPhDOB/GYN: Maternal & FetalL"},"OB/GYN: Maternal & Fetal",4,"AAMC","Academic","Public","Assistant","PhD","2021-2022",79296,{"$f":"(((AAMC_Raw_Data_for_FY22[[#This Row],[Median]]-AAMC_Raw_Data_for_FY22[[#This Row],[25th]])/25)*5) + AAMC_Raw_Data_for_FY22[[#This Row],[25th]]","v":83832.800000000003},{"$f":"(((AAMC_Raw_Data_for_FY22[[#This Row],[Median]]-AAMC_Raw_Data_for_FY22[[#This Row],[25th]])/25)*10) + AAMC_Raw_Data_for_FY22[[#This Row],[25th]]","v":88369.600000000006},{"$f":"(((AAMC_Raw_Data_for_FY22[[#This Row],[Median]]-AAMC_Raw_Data_for_FY22[[#This Row],[25th]])/25)*15) + AAMC_Raw_Data_for_FY22[[#This Row],[25th]]","v":92906.4},{"$f":"(((AAMC_Raw_Data_for_FY22[[#This Row],[Median]]-AAMC_Raw_Data_for_FY22[[#This Row],[25th]])/25)*20) + AAMC_Raw_Data_for_FY22[[#This Row],[25th]]","v":97443.199999999997},101980,{"$f":"(((AAMC_Raw_Data_for_FY22[[#This Row],[75th]]-AAMC_Raw_Data_for_FY22[[#This Row],[Median]])/25)*5) + AAMC_Raw_Data_for_FY22[[#This Row],[Median]]","v":105650.2},{"$f":"(((AAMC_Raw_Data_for_FY22[[#This Row],[75th]]-AAMC_Raw_Data_for_FY22[[#This Row],[Median]])/25)*10) + AAMC_Raw_Data_for_FY22[[#This Row],[Median]]","v":109320.4},{"$f":"(((AAMC_Raw_Data_for_FY22[[#This Row],[75th]]-AAMC_Raw_Data_for_FY22[[#This Row],[Median]])/25)*15) + AAMC_Raw_Data_for_FY22[[#This Row],[Median]]","v":112990.6},{"$f":"(((AAMC_Raw_Data_for_FY22[[#This Row],[75th]]-AAMC_Raw_Data_for_FY22[[#This Row],[Median]])/25)*20) + AAMC_Raw_Data_for_FY22[[#This Row],[Median]]","v":116660.8},120331,{"$f":"(((AAMC_Raw_Data_for_FY22[[#This Row],[75th]]-AAMC_Raw_Data_for_FY22[[#This Row],[Median]])/25)*30) + AAMC_Raw_Data_for_FY22[[#This Row],[Median]]","v":124001.2},{"$f":"(((AAMC_Raw_Data_for_FY22[[#This Row],[75th]]-AAMC_Raw_Data_for_FY22[[#This Row],[Median]])/25)*35) + AAMC_Raw_Data_for_FY22[[#This Row],[Median]]","v":127671.4},{"$f":"(((AAMC_Raw_Data_for_FY22[[#This Row],[75th]]-AAMC_Raw_Data_for_FY22[[#This Row],[Median]])/25)*40) + AAMC_Raw_Data_for_FY22[[#This Row],[Median]]","v":131341.6}]
[{"$f":"AAMC_Raw_Data_for_FY22[[#This Row],[Source]]&AAMC_Raw_Data_for_FY22[[#This Row],[Type]]&AAMC_Raw_Data_for_FY22[[#This Row],[School Subset]]&AAMC_Raw_Data_for_FY22[[#This Row],[Rank]]&AAMC_Raw_Data_for_FY22[[#This Row],[Degree]]&AAMC_Raw_Data_for_FY22[[#This Row],[Department / Specialty]]&\"L\"","v":"AAMCAcademicPublicAssociatePhDOB/GYN: Maternal & FetalL"},"OB/GYN: Maternal & Fetal",3,"AAMC","Academic","Public","Associate","PhD","2021-2022",null,{"$f":"(((AAMC_Raw_Data_for_FY22[[#This Row],[Median]]-AAMC_Raw_Data_for_FY22[[#This Row],[25th]])/25)*5) + AAMC_Raw_Data_for_FY22[[#This Row],[25th]]","v":0},{"$f":"(((AAMC_Raw_Data_for_FY22[[#This Row],[Median]]-AAMC_Raw_Data_for_FY22[[#This Row],[25th]])/25)*10) + AAMC_Raw_Data_for_FY22[[#This Row],[25th]]","v":0},{"$f":"(((AAMC_Raw_Data_for_FY22[[#This Row],[Median]]-AAMC_Raw_Data_for_FY22[[#This Row],[25th]])/25)*15) + AAMC_Raw_Data_for_FY22[[#This Row],[25th]]","v":0},{"$f":"(((AAMC_Raw_Data_for_FY22[[#This Row],[Median]]-AAMC_Raw_Data_for_FY22[[#This Row],[25th]])/25)*20) + AAMC_Raw_Data_for_FY22[[#This Row],[25th]]","v":0},null,{"$f":"(((AAMC_Raw_Data_for_FY22[[#This Row],[75th]]-AAMC_Raw_Data_for_FY22[[#This Row],[Median]])/25)*5) + AAMC_Raw_Data_for_FY22[[#This Row],[Median]]","v":0},{"$f":"(((AAMC_Raw_Data_for_FY22[[#This Row],[75th]]-AAMC_Raw_Data_for_FY22[[#This Row],[Median]])/25)*10) + AAMC_Raw_Data_for_FY22[[#This Row],[Median]]","v":0},{"$f":"(((AAMC_Raw_Data_for_FY22[[#This Row],[75th]]-AAMC_Raw_Data_for_FY22[[#This Row],[Median]])/25)*15) + AAMC_Raw_Data_for_FY22[[#This Row],[Median]]","v":0},{"$f":"(((AAMC_Raw_Data_for_FY22[[#This Row],[75th]]-AAMC_Raw_Data_for_FY22[[#This Row],[Median]])/25)*20) + AAMC_Raw_Data_for_FY22[[#This Row],[Median]]","v":0},null,{"$f":"(((AAMC_Raw_Data_for_FY22[[#This Row],[75th]]-AAMC_Raw_Data_for_FY22[[#This Row],[Median]])/25)*30) + AAMC_Raw_Data_for_FY22[[#This Row],[Median]]","v":0},{"$f":"(((AAMC_Raw_Data_for_FY22[[#This Row],[75th]]-AAMC_Raw_Data_for_FY22[[#This Row],[Median]])/25)*35) + AAMC_Raw_Data_for_FY22[[#This Row],[Median]]","v":0},{"$f":"(((AAMC_Raw_Data_for_FY22[[#This Row],[75th]]-AAMC_Raw_Data_for_FY22[[#This Row],[Median]])/25)*40) + AAMC_Raw_Data_for_FY22[[#This Row],[Median]]","v":0}]
[{"$f":"AAMC_Raw_Data_for_FY22[[#This Row],[Source]]&AAMC_Raw_Data_for_FY22[[#This Row],[Type]]&AAMC_Raw_Data_for_FY22[[#This Row],[School Subset]]&AAMC_Raw_Data_for_FY22[[#This Row],[Rank]]&AAMC_Raw_Data_for_FY22[[#This Row],[Degree]]&AAMC_Raw_Data_for_FY22[[#This Row],[Department / Specialty]]&\"L\"","v":"AAMCAcademicPublicProfessorPhDOB/GYN: Maternal & FetalL"},"OB/GYN: Maternal & Fetal",2,"AAMC","Academic","Public","Professor","PhD","2021-2022",180800,{"$f":"(((AAMC_Raw_Data_for_FY22[[#This Row],[Median]]-AAMC_Raw_Data_for_FY22[[#This Row],[25th]])/25)*5) + AAMC_Raw_Data_for_FY22[[#This Row],[25th]]","v":189622},{"$f":"(((AAMC_Raw_Data_for_FY22[[#This Row],[Median]]-AAMC_Raw_Data_for_FY22[[#This Row],[25th]])/25)*10) + AAMC_Raw_Data_for_FY22[[#This Row],[25th]]","v":198444},{"$f":"(((AAMC_Raw_Data_for_FY22[[#This Row],[Median]]-AAMC_Raw_Data_for_FY22[[#This Row],[25th]])/25)*15) + AAMC_Raw_Data_for_FY22[[#This Row],[25th]]","v":207266},{"$f":"(((AAMC_Raw_Data_for_FY22[[#This Row],[Median]]-AAMC_Raw_Data_for_FY22[[#This Row],[25th]])/25)*20) + AAMC_Raw_Data_for_FY22[[#This Row],[25th]]","v":216088},224910,{"$f":"(((AAMC_Raw_Data_for_FY22[[#This Row],[75th]]-AAMC_Raw_Data_for_FY22[[#This Row],[Median]])/25)*5) + AAMC_Raw_Data_for_FY22[[#This Row],[Median]]","v":233928},{"$f":"(((AAMC_Raw_Data_for_FY22[[#This Row],[75th]]-AAMC_Raw_Data_for_FY22[[#This Row],[Median]])/25)*10) + AAMC_Raw_Data_for_FY22[[#This Row],[Median]]","v":242946},{"$f":"(((AAMC_Raw_Data_for_FY22[[#This Row],[75th]]-AAMC_Raw_Data_for_FY22[[#This Row],[Median]])/25)*15) + AAMC_Raw_Data_for_FY22[[#This Row],[Median]]","v":251964},{"$f":"(((AAMC_Raw_Data_for_FY22[[#This Row],[75th]]-AAMC_Raw_Data_for_FY22[[#This Row],[Median]])/25)*20) + AAMC_Raw_Data_for_FY22[[#This Row],[Median]]","v":260982},270000,{"$f":"(((AAMC_Raw_Data_for_FY22[[#This Row],[75th]]-AAMC_Raw_Data_for_FY22[[#This Row],[Median]])/25)*30) + AAMC_Raw_Data_for_FY22[[#This Row],[Median]]","v":279018},{"$f":"(((AAMC_Raw_Data_for_FY22[[#This Row],[75th]]-AAMC_Raw_Data_for_FY22[[#This Row],[Median]])/25)*35) + AAMC_Raw_Data_for_FY22[[#This Row],[Median]]","v":288036},{"$f":"(((AAMC_Raw_Data_for_FY22[[#This Row],[75th]]-AAMC_Raw_Data_for_FY22[[#This Row],[Median]])/25)*40) + AAMC_Raw_Data_for_FY22[[#This Row],[Median]]","v":297054}]
[{"$f":"AAMC_Raw_Data_for_FY22[[#This Row],[Source]]&AAMC_Raw_Data_for_FY22[[#This Row],[Type]]&AAMC_Raw_Data_for_FY22[[#This Row],[School Subset]]&AAMC_Raw_Data_for_FY22[[#This Row],[Rank]]&AAMC_Raw_Data_for_FY22[[#This Row],[Degree]]&AAMC_Raw_Data_for_FY22[[#This Row],[Department / Specialty]]&\"L\"","v":"AAMCAcademicPublicInstructorPhDOB/GYN: Reproductive EndocrinologyL"},"OB/GYN: Reproductive Endocrinology",5,"AAMC","Academic","Public","Instructor","PhD","2021-2022",null,{"$f":"(((AAMC_Raw_Data_for_FY22[[#This Row],[Median]]-AAMC_Raw_Data_for_FY22[[#This Row],[25th]])/25)*5) + AAMC_Raw_Data_for_FY22[[#This Row],[25th]]","v":0},{"$f":"(((AAMC_Raw_Data_for_FY22[[#This Row],[Median]]-AAMC_Raw_Data_for_FY22[[#This Row],[25th]])/25)*10) + AAMC_Raw_Data_for_FY22[[#This Row],[25th]]","v":0},{"$f":"(((AAMC_Raw_Data_for_FY22[[#This Row],[Median]]-AAMC_Raw_Data_for_FY22[[#This Row],[25th]])/25)*15) + AAMC_Raw_Data_for_FY22[[#This Row],[25th]]","v":0},{"$f":"(((AAMC_Raw_Data_for_FY22[[#This Row],[Median]]-AAMC_Raw_Data_for_FY22[[#This Row],[25th]])/25)*20) + AAMC_Raw_Data_for_FY22[[#This Row],[25th]]","v":0},null,{"$f":"(((AAMC_Raw_Data_for_FY22[[#This Row],[75th]]-AAMC_Raw_Data_for_FY22[[#This Row],[Median]])/25)*5) + AAMC_Raw_Data_for_FY22[[#This Row],[Median]]","v":0},{"$f":"(((AAMC_Raw_Data_for_FY22[[#This Row],[75th]]-AAMC_Raw_Data_for_FY22[[#This Row],[Median]])/25)*10) + AAMC_Raw_Data_for_FY22[[#This Row],[Median]]","v":0},{"$f":"(((AAMC_Raw_Data_for_FY22[[#This Row],[75th]]-AAMC_Raw_Data_for_FY22[[#This Row],[Median]])/25)*15) + AAMC_Raw_Data_for_FY22[[#This Row],[Median]]","v":0},{"$f":"(((AAMC_Raw_Data_for_FY22[[#This Row],[75th]]-AAMC_Raw_Data_for_FY22[[#This Row],[Median]])/25)*20) + AAMC_Raw_Data_for_FY22[[#This Row],[Median]]","v":0},null,{"$f":"(((AAMC_Raw_Data_for_FY22[[#This Row],[75th]]-AAMC_Raw_Data_for_FY22[[#This Row],[Median]])/25)*30) + AAMC_Raw_Data_for_FY22[[#This Row],[Median]]","v":0},{"$f":"(((AAMC_Raw_Data_for_FY22[[#This Row],[75th]]-AAMC_Raw_Data_for_FY22[[#This Row],[Median]])/25)*35) + AAMC_Raw_Data_for_FY22[[#This Row],[Median]]","v":0},{"$f":"(((AAMC_Raw_Data_for_FY22[[#This Row],[75th]]-AAMC_Raw_Data_for_FY22[[#This Row],[Median]])/25)*40) + AAMC_Raw_Data_for_FY22[[#This Row],[Median]]","v":0}]
[{"$f":"AAMC_Raw_Data_for_FY22[[#This Row],[Source]]&AAMC_Raw_Data_for_FY22[[#This Row],[Type]]&AAMC_Raw_Data_for_FY22[[#This Row],[School Subset]]&AAMC_Raw_Data_for_FY22[[#This Row],[Rank]]&AAMC_Raw_Data_for_FY22[[#This Row],[Degree]]&AAMC_Raw_Data_for_FY22[[#This Row],[Department / Specialty]]&\"L\"","v":"AAMCAcademicPublicAssistantPhDOB/GYN: Reproductive EndocrinologyL"},"OB/GYN: Reproductive Endocrinology",4,"AAMC","Academic","Public","Assistant","PhD","2021-2022",null,{"$f":"(((AAMC_Raw_Data_for_FY22[[#This Row],[Median]]-AAMC_Raw_Data_for_FY22[[#This Row],[25th]])/25)*5) + AAMC_Raw_Data_for_FY22[[#This Row],[25th]]","v":0},{"$f":"(((AAMC_Raw_Data_for_FY22[[#This Row],[Median]]-AAMC_Raw_Data_for_FY22[[#This Row],[25th]])/25)*10) + AAMC_Raw_Data_for_FY22[[#This Row],[25th]]","v":0},{"$f":"(((AAMC_Raw_Data_for_FY22[[#This Row],[Median]]-AAMC_Raw_Data_for_FY22[[#This Row],[25th]])/25)*15) + AAMC_Raw_Data_for_FY22[[#This Row],[25th]]","v":0},{"$f":"(((AAMC_Raw_Data_for_FY22[[#This Row],[Median]]-AAMC_Raw_Data_for_FY22[[#This Row],[25th]])/25)*20) + AAMC_Raw_Data_for_FY22[[#This Row],[25th]]","v":0},null,{"$f":"(((AAMC_Raw_Data_for_FY22[[#This Row],[75th]]-AAMC_Raw_Data_for_FY22[[#This Row],[Median]])/25)*5) + AAMC_Raw_Data_for_FY22[[#This Row],[Median]]","v":0},{"$f":"(((AAMC_Raw_Data_for_FY22[[#This Row],[75th]]-AAMC_Raw_Data_for_FY22[[#This Row],[Median]])/25)*10) + AAMC_Raw_Data_for_FY22[[#This Row],[Median]]","v":0},{"$f":"(((AAMC_Raw_Data_for_FY22[[#This Row],[75th]]-AAMC_Raw_Data_for_FY22[[#This Row],[Median]])/25)*15) + AAMC_Raw_Data_for_FY22[[#This Row],[Median]]","v":0},{"$f":"(((AAMC_Raw_Data_for_FY22[[#This Row],[75th]]-AAMC_Raw_Data_for_FY22[[#This Row],[Median]])/25)*20) + AAMC_Raw_Data_for_FY22[[#This Row],[Median]]","v":0},null,{"$f":"(((AAMC_Raw_Data_for_FY22[[#This Row],[75th]]-AAMC_Raw_Data_for_FY22[[#This Row],[Median]])/25)*30) + AAMC_Raw_Data_for_FY22[[#This Row],[Median]]","v":0},{"$f":"(((AAMC_Raw_Data_for_FY22[[#This Row],[75th]]-AAMC_Raw_Data_for_FY22[[#This Row],[Median]])/25)*35) + AAMC_Raw_Data_for_FY22[[#This Row],[Median]]","v":0},{"$f":"(((AAMC_Raw_Data_for_FY22[[#This Row],[75th]]-AAMC_Raw_Data_for_FY22[[#This Row],[Median]])/25)*40) + AAMC_Raw_Data_for_FY22[[#This Row],[Median]]","v":0}]
[{"$f":"AAMC_Raw_Data_for_FY22[[#This Row],[Source]]&AAMC_Raw_Data_for_FY22[[#This Row],[Type]]&AAMC_Raw_Data_for_FY22[[#This Row],[School Subset]]&AAMC_Raw_Data_for_FY22[[#This Row],[Rank]]&AAMC_Raw_Data_for_FY22[[#This Row],[Degree]]&AAMC_Raw_Data_for_FY22[[#This Row],[Department / Specialty]]&\"L\"","v":"AAMCAcademicPublicProfessorPhDOB/GYN: Reproductive EndocrinologyL"},"OB/GYN: Reproductive Endocrinology",2,"AAMC","Academic","Public","Professor","PhD","2021-2022",null,{"$f":"(((AAMC_Raw_Data_for_FY22[[#This Row],[Median]]-AAMC_Raw_Data_for_FY22[[#This Row],[25th]])/25)*5) + AAMC_Raw_Data_for_FY22[[#This Row],[25th]]","v":0},{"$f":"(((AAMC_Raw_Data_for_FY22[[#This Row],[Median]]-AAMC_Raw_Data_for_FY22[[#This Row],[25th]])/25)*10) + AAMC_Raw_Data_for_FY22[[#This Row],[25th]]","v":0},{"$f":"(((AAMC_Raw_Data_for_FY22[[#This Row],[Median]]-AAMC_Raw_Data_for_FY22[[#This Row],[25th]])/25)*15) + AAMC_Raw_Data_for_FY22[[#This Row],[25th]]","v":0},{"$f":"(((AAMC_Raw_Data_for_FY22[[#This Row],[Median]]-AAMC_Raw_Data_for_FY22[[#This Row],[25th]])/25)*20) + AAMC_Raw_Data_for_FY22[[#This Row],[25th]]","v":0},null,{"$f":"(((AAMC_Raw_Data_for_FY22[[#This Row],[75th]]-AAMC_Raw_Data_for_FY22[[#This Row],[Median]])/25)*5) + AAMC_Raw_Data_for_FY22[[#This Row],[Median]]","v":0},{"$f":"(((AAMC_Raw_Data_for_FY22[[#This Row],[75th]]-AAMC_Raw_Data_for_FY22[[#This Row],[Median]])/25)*10) + AAMC_Raw_Data_for_FY22[[#This Row],[Median]]","v":0},{"$f":"(((AAMC_Raw_Data_for_FY22[[#This Row],[75th]]-AAMC_Raw_Data_for_FY22[[#This Row],[Median]])/25)*15) + AAMC_Raw_Data_for_FY22[[#This Row],[Median]]","v":0},{"$f":"(((AAMC_Raw_Data_for_FY22[[#This Row],[75th]]-AAMC_Raw_Data_for_FY22[[#This Row],[Median]])/25)*20) + AAMC_Raw_Data_for_FY22[[#This Row],[Median]]","v":0},null,{"$f":"(((AAMC_Raw_Data_for_FY22[[#This Row],[75th]]-AAMC_Raw_Data_for_FY22[[#This Row],[Median]])/25)*30) + AAMC_Raw_Data_for_FY22[[#This Row],[Median]]","v":0},{"$f":"(((AAMC_Raw_Data_for_FY22[[#This Row],[75th]]-AAMC_Raw_Data_for_FY22[[#This Row],[Median]])/25)*35) + AAMC_Raw_Data_for_FY22[[#This Row],[Median]]","v":0},{"$f":"(((AAMC_Raw_Data_for_FY22[[#This Row],[75th]]-AAMC_Raw_Data_for_FY22[[#This Row],[Median]])/25)*40) + AAMC_Raw_Data_for_FY22[[#This Row],[Median]]","v":0}]
[{"$f":"AAMC_Raw_Data_for_FY22[[#This Row],[Source]]&AAMC_Raw_Data_for_FY22[[#This Row],[Type]]&AAMC_Raw_Data_for_FY22[[#This Row],[School Subset]]&AAMC_Raw_Data_for_FY22[[#This Row],[Rank]]&AAMC_Raw_Data_for_FY22[[#This Row],[Degree]]&AAMC_Raw_Data_for_FY22[[#This Row],[Department / Specialty]]&\"L\"","v":"AAMCAcademicPublicChiefPhDOB/GYN: Reproductive EndocrinologyL"},"OB/GYN: Reproductive Endocrinology",6,"AAMC","Academic","Public","Chief","PhD","2021-2022",null,{"$f":"(((AAMC_Raw_Data_for_FY22[[#This Row],[Median]]-AAMC_Raw_Data_for_FY22[[#This Row],[25th]])/25)*5) + AAMC_Raw_Data_for_FY22[[#This Row],[25th]]","v":0},{"$f":"(((AAMC_Raw_Data_for_FY22[[#This Row],[Median]]-AAMC_Raw_Data_for_FY22[[#This Row],[25th]])/25)*10) + AAMC_Raw_Data_for_FY22[[#This Row],[25th]]","v":0},{"$f":"(((AAMC_Raw_Data_for_FY22[[#This Row],[Median]]-AAMC_Raw_Data_for_FY22[[#This Row],[25th]])/25)*15) + AAMC_Raw_Data_for_FY22[[#This Row],[25th]]","v":0},{"$f":"(((AAMC_Raw_Data_for_FY22[[#This Row],[Median]]-AAMC_Raw_Data_for_FY22[[#This Row],[25th]])/25)*20) + AAMC_Raw_Data_for_FY22[[#This Row],[25th]]","v":0},null,{"$f":"(((AAMC_Raw_Data_for_FY22[[#This Row],[75th]]-AAMC_Raw_Data_for_FY22[[#This Row],[Median]])/25)*5) + AAMC_Raw_Data_for_FY22[[#This Row],[Median]]","v":0},{"$f":"(((AAMC_Raw_Data_for_FY22[[#This Row],[75th]]-AAMC_Raw_Data_for_FY22[[#This Row],[Median]])/25)*10) + AAMC_Raw_Data_for_FY22[[#This Row],[Median]]","v":0},{"$f":"(((AAMC_Raw_Data_for_FY22[[#This Row],[75th]]-AAMC_Raw_Data_for_FY22[[#This Row],[Median]])/25)*15) + AAMC_Raw_Data_for_FY22[[#This Row],[Median]]","v":0},{"$f":"(((AAMC_Raw_Data_for_FY22[[#This Row],[75th]]-AAMC_Raw_Data_for_FY22[[#This Row],[Median]])/25)*20) + AAMC_Raw_Data_for_FY22[[#This Row],[Median]]","v":0},null,{"$f":"(((AAMC_Raw_Data_for_FY22[[#This Row],[75th]]-AAMC_Raw_Data_for_FY22[[#This Row],[Median]])/25)*30) + AAMC_Raw_Data_for_FY22[[#This Row],[Median]]","v":0},{"$f":"(((AAMC_Raw_Data_for_FY22[[#This Row],[75th]]-AAMC_Raw_Data_for_FY22[[#This Row],[Median]])/25)*35) + AAMC_Raw_Data_for_FY22[[#This Row],[Median]]","v":0},{"$f":"(((AAMC_Raw_Data_for_FY22[[#This Row],[75th]]-AAMC_Raw_Data_for_FY22[[#This Row],[Median]])/25)*40) + AAMC_Raw_Data_for_FY22[[#This Row],[Median]]","v":0}]
[{"$f":"AAMC_Raw_Data_for_FY22[[#This Row],[Source]]&AAMC_Raw_Data_for_FY22[[#This Row],[Type]]&AAMC_Raw_Data_for_FY22[[#This Row],[School Subset]]&AAMC_Raw_Data_for_FY22[[#This Row],[Rank]]&AAMC_Raw_Data_for_FY22[[#This Row],[Degree]]&AAMC_Raw_Data_for_FY22[[#This Row],[Department / Specialty]]&\"L\"","v":"AAMCAcademicPublicInstructorPhDOB/GYN: Other OB/GYNL"},"OB/GYN: Other OB/GYN",5,"AAMC","Academic","Public","Instructor","PhD","2021-2022",null,{"$f":"(((AAMC_Raw_Data_for_FY22[[#This Row],[Median]]-AAMC_Raw_Data_for_FY22[[#This Row],[25th]])/25)*5) + AAMC_Raw_Data_for_FY22[[#This Row],[25th]]","v":0},{"$f":"(((AAMC_Raw_Data_for_FY22[[#This Row],[Median]]-AAMC_Raw_Data_for_FY22[[#This Row],[25th]])/25)*10) + AAMC_Raw_Data_for_FY22[[#This Row],[25th]]","v":0},{"$f":"(((AAMC_Raw_Data_for_FY22[[#This Row],[Median]]-AAMC_Raw_Data_for_FY22[[#This Row],[25th]])/25)*15) + AAMC_Raw_Data_for_FY22[[#This Row],[25th]]","v":0},{"$f":"(((AAMC_Raw_Data_for_FY22[[#This Row],[Median]]-AAMC_Raw_Data_for_FY22[[#This Row],[25th]])/25)*20) + AAMC_Raw_Data_for_FY22[[#This Row],[25th]]","v":0},null,{"$f":"(((AAMC_Raw_Data_for_FY22[[#This Row],[75th]]-AAMC_Raw_Data_for_FY22[[#This Row],[Median]])/25)*5) + AAMC_Raw_Data_for_FY22[[#This Row],[Median]]","v":0},{"$f":"(((AAMC_Raw_Data_for_FY22[[#This Row],[75th]]-AAMC_Raw_Data_for_FY22[[#This Row],[Median]])/25)*10) + AAMC_Raw_Data_for_FY22[[#This Row],[Median]]","v":0},{"$f":"(((AAMC_Raw_Data_for_FY22[[#This Row],[75th]]-AAMC_Raw_Data_for_FY22[[#This Row],[Median]])/25)*15) + AAMC_Raw_Data_for_FY22[[#This Row],[Median]]","v":0},{"$f":"(((AAMC_Raw_Data_for_FY22[[#This Row],[75th]]-AAMC_Raw_Data_for_FY22[[#This Row],[Median]])/25)*20) + AAMC_Raw_Data_for_FY22[[#This Row],[Median]]","v":0},null,{"$f":"(((AAMC_Raw_Data_for_FY22[[#This Row],[75th]]-AAMC_Raw_Data_for_FY22[[#This Row],[Median]])/25)*30) + AAMC_Raw_Data_for_FY22[[#This Row],[Median]]","v":0},{"$f":"(((AAMC_Raw_Data_for_FY22[[#This Row],[75th]]-AAMC_Raw_Data_for_FY22[[#This Row],[Median]])/25)*35) + AAMC_Raw_Data_for_FY22[[#This Row],[Median]]","v":0},{"$f":"(((AAMC_Raw_Data_for_FY22[[#This Row],[75th]]-AAMC_Raw_Data_for_FY22[[#This Row],[Median]])/25)*40) + AAMC_Raw_Data_for_FY22[[#This Row],[Median]]","v":0}]
[{"$f":"AAMC_Raw_Data_for_FY22[[#This Row],[Source]]&AAMC_Raw_Data_for_FY22[[#This Row],[Type]]&AAMC_Raw_Data_for_FY22[[#This Row],[School Subset]]&AAMC_Raw_Data_for_FY22[[#This Row],[Rank]]&AAMC_Raw_Data_for_FY22[[#This Row],[Degree]]&AAMC_Raw_Data_for_FY22[[#This Row],[Department / Specialty]]&\"L\"","v":"AAMCAcademicPublicAssistantPhDOB/GYN: Other OB/GYNL"},"OB/GYN: Other OB/GYN",4,"AAMC","Academic","Public","Assistant","PhD","2021-2022",85884,{"$f":"(((AAMC_Raw_Data_for_FY22[[#This Row],[Median]]-AAMC_Raw_Data_for_FY22[[#This Row],[25th]])/25)*5) + AAMC_Raw_Data_for_FY22[[#This Row],[25th]]","v":90209.2},{"$f":"(((AAMC_Raw_Data_for_FY22[[#This Row],[Median]]-AAMC_Raw_Data_for_FY22[[#This Row],[25th]])/25)*10) + AAMC_Raw_Data_for_FY22[[#This Row],[25th]]","v":94534.399999999994},{"$f":"(((AAMC_Raw_Data_for_FY22[[#This Row],[Median]]-AAMC_Raw_Data_for_FY22[[#This Row],[25th]])/25)*15) + AAMC_Raw_Data_for_FY22[[#This Row],[25th]]","v":98859.6},{"$f":"(((AAMC_Raw_Data_for_FY22[[#This Row],[Median]]-AAMC_Raw_Data_for_FY22[[#This Row],[25th]])/25)*20) + AAMC_Raw_Data_for_FY22[[#This Row],[25th]]","v":103184.8},107510,{"$f":"(((AAMC_Raw_Data_for_FY22[[#This Row],[75th]]-AAMC_Raw_Data_for_FY22[[#This Row],[Median]])/25)*5) + AAMC_Raw_Data_for_FY22[[#This Row],[Median]]","v":110932},{"$f":"(((AAMC_Raw_Data_for_FY22[[#This Row],[75th]]-AAMC_Raw_Data_for_FY22[[#This Row],[Median]])/25)*10) + AAMC_Raw_Data_for_FY22[[#This Row],[Median]]","v":114354},{"$f":"(((AAMC_Raw_Data_for_FY22[[#This Row],[75th]]-AAMC_Raw_Data_for_FY22[[#This Row],[Median]])/25)*15) + AAMC_Raw_Data_for_FY22[[#This Row],[Median]]","v":117776},{"$f":"(((AAMC_Raw_Data_for_FY22[[#This Row],[75th]]-AAMC_Raw_Data_for_FY22[[#This Row],[Median]])/25)*20) + AAMC_Raw_Data_for_FY22[[#This Row],[Median]]","v":121198},124620,{"$f":"(((AAMC_Raw_Data_for_FY22[[#This Row],[75th]]-AAMC_Raw_Data_for_FY22[[#This Row],[Median]])/25)*30) + AAMC_Raw_Data_for_FY22[[#This Row],[Median]]","v":128042},{"$f":"(((AAMC_Raw_Data_for_FY22[[#This Row],[75th]]-AAMC_Raw_Data_for_FY22[[#This Row],[Median]])/25)*35) + AAMC_Raw_Data_for_FY22[[#This Row],[Median]]","v":131464},{"$f":"(((AAMC_Raw_Data_for_FY22[[#This Row],[75th]]-AAMC_Raw_Data_for_FY22[[#This Row],[Median]])/25)*40) + AAMC_Raw_Data_for_FY22[[#This Row],[Median]]","v":134886}]
[{"$f":"AAMC_Raw_Data_for_FY22[[#This Row],[Source]]&AAMC_Raw_Data_for_FY22[[#This Row],[Type]]&AAMC_Raw_Data_for_FY22[[#This Row],[School Subset]]&AAMC_Raw_Data_for_FY22[[#This Row],[Rank]]&AAMC_Raw_Data_for_FY22[[#This Row],[Degree]]&AAMC_Raw_Data_for_FY22[[#This Row],[Department / Specialty]]&\"L\"","v":"AAMCAcademicPublicAssociatePhDOB/GYN: Other OB/GYNL"},"OB/GYN: Other OB/GYN",3,"AAMC","Academic","Public","Associate","PhD","2021-2022",null,{"$f":"(((AAMC_Raw_Data_for_FY22[[#This Row],[Median]]-AAMC_Raw_Data_for_FY22[[#This Row],[25th]])/25)*5) + AAMC_Raw_Data_for_FY22[[#This Row],[25th]]","v":0},{"$f":"(((AAMC_Raw_Data_for_FY22[[#This Row],[Median]]-AAMC_Raw_Data_for_FY22[[#This Row],[25th]])/25)*10) + AAMC_Raw_Data_for_FY22[[#This Row],[25th]]","v":0},{"$f":"(((AAMC_Raw_Data_for_FY22[[#This Row],[Median]]-AAMC_Raw_Data_for_FY22[[#This Row],[25th]])/25)*15) + AAMC_Raw_Data_for_FY22[[#This Row],[25th]]","v":0},{"$f":"(((AAMC_Raw_Data_for_FY22[[#This Row],[Median]]-AAMC_Raw_Data_for_FY22[[#This Row],[25th]])/25)*20) + AAMC_Raw_Data_for_FY22[[#This Row],[25th]]","v":0},null,{"$f":"(((AAMC_Raw_Data_for_FY22[[#This Row],[75th]]-AAMC_Raw_Data_for_FY22[[#This Row],[Median]])/25)*5) + AAMC_Raw_Data_for_FY22[[#This Row],[Median]]","v":0},{"$f":"(((AAMC_Raw_Data_for_FY22[[#This Row],[75th]]-AAMC_Raw_Data_for_FY22[[#This Row],[Median]])/25)*10) + AAMC_Raw_Data_for_FY22[[#This Row],[Median]]","v":0},{"$f":"(((AAMC_Raw_Data_for_FY22[[#This Row],[75th]]-AAMC_Raw_Data_for_FY22[[#This Row],[Median]])/25)*15) + AAMC_Raw_Data_for_FY22[[#This Row],[Median]]","v":0},{"$f":"(((AAMC_Raw_Data_for_FY22[[#This Row],[75th]]-AAMC_Raw_Data_for_FY22[[#This Row],[Median]])/25)*20) + AAMC_Raw_Data_for_FY22[[#This Row],[Median]]","v":0},null,{"$f":"(((AAMC_Raw_Data_for_FY22[[#This Row],[75th]]-AAMC_Raw_Data_for_FY22[[#This Row],[Median]])/25)*30) + AAMC_Raw_Data_for_FY22[[#This Row],[Median]]","v":0},{"$f":"(((AAMC_Raw_Data_for_FY22[[#This Row],[75th]]-AAMC_Raw_Data_for_FY22[[#This Row],[Median]])/25)*35) + AAMC_Raw_Data_for_FY22[[#This Row],[Median]]","v":0},{"$f":"(((AAMC_Raw_Data_for_FY22[[#This Row],[75th]]-AAMC_Raw_Data_for_FY22[[#This Row],[Median]])/25)*40) + AAMC_Raw_Data_for_FY22[[#This Row],[Median]]","v":0}]
[{"$f":"AAMC_Raw_Data_for_FY22[[#This Row],[Source]]&AAMC_Raw_Data_for_FY22[[#This Row],[Type]]&AAMC_Raw_Data_for_FY22[[#This Row],[School Subset]]&AAMC_Raw_Data_for_FY22[[#This Row],[Rank]]&AAMC_Raw_Data_for_FY22[[#This Row],[Degree]]&AAMC_Raw_Data_for_FY22[[#This Row],[Department / Specialty]]&\"L\"","v":"AAMCAcademicPublicProfessorPhDOB/GYN: Other OB/GYNL"},"OB/GYN: Other OB/GYN",2,"AAMC","Academic","Public","Professor","PhD","2021-2022",199576,{"$f":"(((AAMC_Raw_Data_for_FY22[[#This Row],[Median]]-AAMC_Raw_Data_for_FY22[[#This Row],[25th]])/25)*5) + AAMC_Raw_Data_for_FY22[[#This Row],[25th]]","v":202882.6},{"$f":"(((AAMC_Raw_Data_for_FY22[[#This Row],[Median]]-AAMC_Raw_Data_for_FY22[[#This Row],[25th]])/25)*10) + AAMC_Raw_Data_for_FY22[[#This Row],[25th]]","v":206189.2},{"$f":"(((AAMC_Raw_Data_for_FY22[[#This Row],[Median]]-AAMC_Raw_Data_for_FY22[[#This Row],[25th]])/25)*15) + AAMC_Raw_Data_for_FY22[[#This Row],[25th]]","v":209495.8},{"$f":"(((AAMC_Raw_Data_for_FY22[[#This Row],[Median]]-AAMC_Raw_Data_for_FY22[[#This Row],[25th]])/25)*20) + AAMC_Raw_Data_for_FY22[[#This Row],[25th]]","v":212802.4},216109,{"$f":"(((AAMC_Raw_Data_for_FY22[[#This Row],[75th]]-AAMC_Raw_Data_for_FY22[[#This Row],[Median]])/25)*5) + AAMC_Raw_Data_for_FY22[[#This Row],[Median]]","v":228705.8},{"$f":"(((AAMC_Raw_Data_for_FY22[[#This Row],[75th]]-AAMC_Raw_Data_for_FY22[[#This Row],[Median]])/25)*10) + AAMC_Raw_Data_for_FY22[[#This Row],[Median]]","v":241302.6},{"$f":"(((AAMC_Raw_Data_for_FY22[[#This Row],[75th]]-AAMC_Raw_Data_for_FY22[[#This Row],[Median]])/25)*15) + AAMC_Raw_Data_for_FY22[[#This Row],[Median]]","v":253899.4},{"$f":"(((AAMC_Raw_Data_for_FY22[[#This Row],[75th]]-AAMC_Raw_Data_for_FY22[[#This Row],[Median]])/25)*20) + AAMC_Raw_Data_for_FY22[[#This Row],[Median]]","v":266496.2},279093,{"$f":"(((AAMC_Raw_Data_for_FY22[[#This Row],[75th]]-AAMC_Raw_Data_for_FY22[[#This Row],[Median]])/25)*30) + AAMC_Raw_Data_for_FY22[[#This Row],[Median]]","v":291689.8},{"$f":"(((AAMC_Raw_Data_for_FY22[[#This Row],[75th]]-AAMC_Raw_Data_for_FY22[[#This Row],[Median]])/25)*35) + AAMC_Raw_Data_for_FY22[[#This Row],[Median]]","v":304286.59999999998},{"$f":"(((AAMC_Raw_Data_for_FY22[[#This Row],[75th]]-AAMC_Raw_Data_for_FY22[[#This Row],[Median]])/25)*40) + AAMC_Raw_Data_for_FY22[[#This Row],[Median]]","v":316883.40000000002}]
[{"$f":"AAMC_Raw_Data_for_FY22[[#This Row],[Source]]&AAMC_Raw_Data_for_FY22[[#This Row],[Type]]&AAMC_Raw_Data_for_FY22[[#This Row],[School Subset]]&AAMC_Raw_Data_for_FY22[[#This Row],[Rank]]&AAMC_Raw_Data_for_FY22[[#This Row],[Degree]]&AAMC_Raw_Data_for_FY22[[#This Row],[Department / Specialty]]&\"L\"","v":"AAMCAcademicPublicChiefPhDOB/GYN: Other OB/GYNL"},"OB/GYN: Other OB/GYN",6,"AAMC","Academic","Public","Chief","PhD","2021-2022",null,{"$f":"(((AAMC_Raw_Data_for_FY22[[#This Row],[Median]]-AAMC_Raw_Data_for_FY22[[#This Row],[25th]])/25)*5) + AAMC_Raw_Data_for_FY22[[#This Row],[25th]]","v":0},{"$f":"(((AAMC_Raw_Data_for_FY22[[#This Row],[Median]]-AAMC_Raw_Data_for_FY22[[#This Row],[25th]])/25)*10) + AAMC_Raw_Data_for_FY22[[#This Row],[25th]]","v":0},{"$f":"(((AAMC_Raw_Data_for_FY22[[#This Row],[Median]]-AAMC_Raw_Data_for_FY22[[#This Row],[25th]])/25)*15) + AAMC_Raw_Data_for_FY22[[#This Row],[25th]]","v":0},{"$f":"(((AAMC_Raw_Data_for_FY22[[#This Row],[Median]]-AAMC_Raw_Data_for_FY22[[#This Row],[25th]])/25)*20) + AAMC_Raw_Data_for_FY22[[#This Row],[25th]]","v":0},null,{"$f":"(((AAMC_Raw_Data_for_FY22[[#This Row],[75th]]-AAMC_Raw_Data_for_FY22[[#This Row],[Median]])/25)*5) + AAMC_Raw_Data_for_FY22[[#This Row],[Median]]","v":0},{"$f":"(((AAMC_Raw_Data_for_FY22[[#This Row],[75th]]-AAMC_Raw_Data_for_FY22[[#This Row],[Median]])/25)*10) + AAMC_Raw_Data_for_FY22[[#This Row],[Median]]","v":0},{"$f":"(((AAMC_Raw_Data_for_FY22[[#This Row],[75th]]-AAMC_Raw_Data_for_FY22[[#This Row],[Median]])/25)*15) + AAMC_Raw_Data_for_FY22[[#This Row],[Median]]","v":0},{"$f":"(((AAMC_Raw_Data_for_FY22[[#This Row],[75th]]-AAMC_Raw_Data_for_FY22[[#This Row],[Median]])/25)*20) + AAMC_Raw_Data_for_FY22[[#This Row],[Median]]","v":0},null,{"$f":"(((AAMC_Raw_Data_for_FY22[[#This Row],[75th]]-AAMC_Raw_Data_for_FY22[[#This Row],[Median]])/25)*30) + AAMC_Raw_Data_for_FY22[[#This Row],[Median]]","v":0},{"$f":"(((AAMC_Raw_Data_for_FY22[[#This Row],[75th]]-AAMC_Raw_Data_for_FY22[[#This Row],[Median]])/25)*35) + AAMC_Raw_Data_for_FY22[[#This Row],[Median]]","v":0},{"$f":"(((AAMC_Raw_Data_for_FY22[[#This Row],[75th]]-AAMC_Raw_Data_for_FY22[[#This Row],[Median]])/25)*40) + AAMC_Raw_Data_for_FY22[[#This Row],[Median]]","v":0}]
[{"$f":"AAMC_Raw_Data_for_FY22[[#This Row],[Source]]&AAMC_Raw_Data_for_FY22[[#This Row],[Type]]&AAMC_Raw_Data_for_FY22[[#This Row],[School Subset]]&AAMC_Raw_Data_for_FY22[[#This Row],[Rank]]&AAMC_Raw_Data_for_FY22[[#This Row],[Degree]]&AAMC_Raw_Data_for_FY22[[#This Row],[Department / Specialty]]&\"L\"","v":"AAMCAcademicPublicInstructorPhDPathology TotalL"},"Pathology Total",5,"AAMC","Academic","Public","Instructor","PhD","2021-2022",64201,{"$f":"(((AAMC_Raw_Data_for_FY22[[#This Row],[Median]]-AAMC_Raw_Data_for_FY22[[#This Row],[25th]])/25)*5) + AAMC_Raw_Data_for_FY22[[#This Row],[25th]]","v":65666},{"$f":"(((AAMC_Raw_Data_for_FY22[[#This Row],[Median]]-AAMC_Raw_Data_for_FY22[[#This Row],[25th]])/25)*10) + AAMC_Raw_Data_for_FY22[[#This Row],[25th]]","v":67131},{"$f":"(((AAMC_Raw_Data_for_FY22[[#This Row],[Median]]-AAMC_Raw_Data_for_FY22[[#This Row],[25th]])/25)*15) + AAMC_Raw_Data_for_FY22[[#This Row],[25th]]","v":68596},{"$f":"(((AAMC_Raw_Data_for_FY22[[#This Row],[Median]]-AAMC_Raw_Data_for_FY22[[#This Row],[25th]])/25)*20) + AAMC_Raw_Data_for_FY22[[#This Row],[25th]]","v":70061},71526,{"$f":"(((AAMC_Raw_Data_for_FY22[[#This Row],[75th]]-AAMC_Raw_Data_for_FY22[[#This Row],[Median]])/25)*5) + AAMC_Raw_Data_for_FY22[[#This Row],[Median]]","v":72696.399999999994},{"$f":"(((AAMC_Raw_Data_for_FY22[[#This Row],[75th]]-AAMC_Raw_Data_for_FY22[[#This Row],[Median]])/25)*10) + AAMC_Raw_Data_for_FY22[[#This Row],[Median]]","v":73866.8},{"$f":"(((AAMC_Raw_Data_for_FY22[[#This Row],[75th]]-AAMC_Raw_Data_for_FY22[[#This Row],[Median]])/25)*15) + AAMC_Raw_Data_for_FY22[[#This Row],[Median]]","v":75037.2},{"$f":"(((AAMC_Raw_Data_for_FY22[[#This Row],[75th]]-AAMC_Raw_Data_for_FY22[[#This Row],[Median]])/25)*20) + AAMC_Raw_Data_for_FY22[[#This Row],[Median]]","v":76207.600000000006},77378,{"$f":"(((AAMC_Raw_Data_for_FY22[[#This Row],[75th]]-AAMC_Raw_Data_for_FY22[[#This Row],[Median]])/25)*30) + AAMC_Raw_Data_for_FY22[[#This Row],[Median]]","v":78548.399999999994},{"$f":"(((AAMC_Raw_Data_for_FY22[[#This Row],[75th]]-AAMC_Raw_Data_for_FY22[[#This Row],[Median]])/25)*35) + AAMC_Raw_Data_for_FY22[[#This Row],[Median]]","v":79718.8},{"$f":"(((AAMC_Raw_Data_for_FY22[[#This Row],[75th]]-AAMC_Raw_Data_for_FY22[[#This Row],[Median]])/25)*40) + AAMC_Raw_Data_for_FY22[[#This Row],[Median]]","v":80889.2}]
[{"$f":"AAMC_Raw_Data_for_FY22[[#This Row],[Source]]&AAMC_Raw_Data_for_FY22[[#This Row],[Type]]&AAMC_Raw_Data_for_FY22[[#This Row],[School Subset]]&AAMC_Raw_Data_for_FY22[[#This Row],[Rank]]&AAMC_Raw_Data_for_FY22[[#This Row],[Degree]]&AAMC_Raw_Data_for_FY22[[#This Row],[Department / Specialty]]&\"L\"","v":"AAMCAcademicPublicAssistantPhDPathology TotalL"},"Pathology Total",4,"AAMC","Academic","Public","Assistant","PhD","2021-2022",97240,{"$f":"(((AAMC_Raw_Data_for_FY22[[#This Row],[Median]]-AAMC_Raw_Data_for_FY22[[#This Row],[25th]])/25)*5) + AAMC_Raw_Data_for_FY22[[#This Row],[25th]]","v":103547},{"$f":"(((AAMC_Raw_Data_for_FY22[[#This Row],[Median]]-AAMC_Raw_Data_for_FY22[[#This Row],[25th]])/25)*10) + AAMC_Raw_Data_for_FY22[[#This Row],[25th]]","v":109854},{"$f":"(((AAMC_Raw_Data_for_FY22[[#This Row],[Median]]-AAMC_Raw_Data_for_FY22[[#This Row],[25th]])/25)*15) + AAMC_Raw_Data_for_FY22[[#This Row],[25th]]","v":116161},{"$f":"(((AAMC_Raw_Data_for_FY22[[#This Row],[Median]]-AAMC_Raw_Data_for_FY22[[#This Row],[25th]])/25)*20) + AAMC_Raw_Data_for_FY22[[#This Row],[25th]]","v":122468},128775,{"$f":"(((AAMC_Raw_Data_for_FY22[[#This Row],[75th]]-AAMC_Raw_Data_for_FY22[[#This Row],[Median]])/25)*5) + AAMC_Raw_Data_for_FY22[[#This Row],[Median]]","v":135020},{"$f":"(((AAMC_Raw_Data_for_FY22[[#This Row],[75th]]-AAMC_Raw_Data_for_FY22[[#This Row],[Median]])/25)*10) + AAMC_Raw_Data_for_FY22[[#This Row],[Median]]","v":141265},{"$f":"(((AAMC_Raw_Data_for_FY22[[#This Row],[75th]]-AAMC_Raw_Data_for_FY22[[#This Row],[Median]])/25)*15) + AAMC_Raw_Data_for_FY22[[#This Row],[Median]]","v":147510},{"$f":"(((AAMC_Raw_Data_for_FY22[[#This Row],[75th]]-AAMC_Raw_Data_for_FY22[[#This Row],[Median]])/25)*20) + AAMC_Raw_Data_for_FY22[[#This Row],[Median]]","v":153755},160000,{"$f":"(((AAMC_Raw_Data_for_FY22[[#This Row],[75th]]-AAMC_Raw_Data_for_FY22[[#This Row],[Median]])/25)*30) + AAMC_Raw_Data_for_FY22[[#This Row],[Median]]","v":166245},{"$f":"(((AAMC_Raw_Data_for_FY22[[#This Row],[75th]]-AAMC_Raw_Data_for_FY22[[#This Row],[Median]])/25)*35) + AAMC_Raw_Data_for_FY22[[#This Row],[Median]]","v":172490},{"$f":"(((AAMC_Raw_Data_for_FY22[[#This Row],[75th]]-AAMC_Raw_Data_for_FY22[[#This Row],[Median]])/25)*40) + AAMC_Raw_Data_for_FY22[[#This Row],[Median]]","v":178735}]
[{"$f":"AAMC_Raw_Data_for_FY22[[#This Row],[Source]]&AAMC_Raw_Data_for_FY22[[#This Row],[Type]]&AAMC_Raw_Data_for_FY22[[#This Row],[School Subset]]&AAMC_Raw_Data_for_FY22[[#This Row],[Rank]]&AAMC_Raw_Data_for_FY22[[#This Row],[Degree]]&AAMC_Raw_Data_for_FY22[[#This Row],[Department / Specialty]]&\"L\"","v":"AAMCAcademicPublicAssociatePhDPathology TotalL"},"Pathology Total",3,"AAMC","Academic","Public","Associate","PhD","2021-2022",118549,{"$f":"(((AAMC_Raw_Data_for_FY22[[#This Row],[Median]]-AAMC_Raw_Data_for_FY22[[#This Row],[25th]])/25)*5) + AAMC_Raw_Data_for_FY22[[#This Row],[25th]]","v":124839.2},{"$f":"(((AAMC_Raw_Data_for_FY22[[#This Row],[Median]]-AAMC_Raw_Data_for_FY22[[#This Row],[25th]])/25)*10) + AAMC_Raw_Data_for_FY22[[#This Row],[25th]]","v":131129.4},{"$f":"(((AAMC_Raw_Data_for_FY22[[#This Row],[Median]]-AAMC_Raw_Data_for_FY22[[#This Row],[25th]])/25)*15) + AAMC_Raw_Data_for_FY22[[#This Row],[25th]]","v":137419.6},{"$f":"(((AAMC_Raw_Data_for_FY22[[#This Row],[Median]]-AAMC_Raw_Data_for_FY22[[#This Row],[25th]])/25)*20) + AAMC_Raw_Data_for_FY22[[#This Row],[25th]]","v":143709.79999999999},150000,{"$f":"(((AAMC_Raw_Data_for_FY22[[#This Row],[75th]]-AAMC_Raw_Data_for_FY22[[#This Row],[Median]])/25)*5) + AAMC_Raw_Data_for_FY22[[#This Row],[Median]]","v":158294.39999999999},{"$f":"(((AAMC_Raw_Data_for_FY22[[#This Row],[75th]]-AAMC_Raw_Data_for_FY22[[#This Row],[Median]])/25)*10) + AAMC_Raw_Data_for_FY22[[#This Row],[Median]]","v":166588.79999999999},{"$f":"(((AAMC_Raw_Data_for_FY22[[#This Row],[75th]]-AAMC_Raw_Data_for_FY22[[#This Row],[Median]])/25)*15) + AAMC_Raw_Data_for_FY22[[#This Row],[Median]]","v":174883.20000000001},{"$f":"(((AAMC_Raw_Data_for_FY22[[#This Row],[75th]]-AAMC_Raw_Data_for_FY22[[#This Row],[Median]])/25)*20) + AAMC_Raw_Data_for_FY22[[#This Row],[Median]]","v":183177.60000000001},191472,{"$f":"(((AAMC_Raw_Data_for_FY22[[#This Row],[75th]]-AAMC_Raw_Data_for_FY22[[#This Row],[Median]])/25)*30) + AAMC_Raw_Data_for_FY22[[#This Row],[Median]]","v":199766.39999999999},{"$f":"(((AAMC_Raw_Data_for_FY22[[#This Row],[75th]]-AAMC_Raw_Data_for_FY22[[#This Row],[Median]])/25)*35) + AAMC_Raw_Data_for_FY22[[#This Row],[Median]]","v":208060.79999999999},{"$f":"(((AAMC_Raw_Data_for_FY22[[#This Row],[75th]]-AAMC_Raw_Data_for_FY22[[#This Row],[Median]])/25)*40) + AAMC_Raw_Data_for_FY22[[#This Row],[Median]]","v":216355.20000000001}]
[{"$f":"AAMC_Raw_Data_for_FY22[[#This Row],[Source]]&AAMC_Raw_Data_for_FY22[[#This Row],[Type]]&AAMC_Raw_Data_for_FY22[[#This Row],[School Subset]]&AAMC_Raw_Data_for_FY22[[#This Row],[Rank]]&AAMC_Raw_Data_for_FY22[[#This Row],[Degree]]&AAMC_Raw_Data_for_FY22[[#This Row],[Department / Specialty]]&\"L\"","v":"AAMCAcademicPublicProfessorPhDPathology TotalL"},"Pathology Total",2,"AAMC","Academic","Public","Professor","PhD","2021-2022",181222,{"$f":"(((AAMC_Raw_Data_for_FY22[[#This Row],[Median]]-AAMC_Raw_Data_for_FY22[[#This Row],[25th]])/25)*5) + AAMC_Raw_Data_for_FY22[[#This Row],[25th]]","v":187207.6},{"$f":"(((AAMC_Raw_Data_for_FY22[[#This Row],[Median]]-AAMC_Raw_Data_for_FY22[[#This Row],[25th]])/25)*10) + AAMC_Raw_Data_for_FY22[[#This Row],[25th]]","v":193193.2},{"$f":"(((AAMC_Raw_Data_for_FY22[[#This Row],[Median]]-AAMC_Raw_Data_for_FY22[[#This Row],[25th]])/25)*15) + AAMC_Raw_Data_for_FY22[[#This Row],[25th]]","v":199178.8},{"$f":"(((AAMC_Raw_Data_for_FY22[[#This Row],[Median]]-AAMC_Raw_Data_for_FY22[[#This Row],[25th]])/25)*20) + AAMC_Raw_Data_for_FY22[[#This Row],[25th]]","v":205164.4},211150,{"$f":"(((AAMC_Raw_Data_for_FY22[[#This Row],[75th]]-AAMC_Raw_Data_for_FY22[[#This Row],[Median]])/25)*5) + AAMC_Raw_Data_for_FY22[[#This Row],[Median]]","v":220229.2},{"$f":"(((AAMC_Raw_Data_for_FY22[[#This Row],[75th]]-AAMC_Raw_Data_for_FY22[[#This Row],[Median]])/25)*10) + AAMC_Raw_Data_for_FY22[[#This Row],[Median]]","v":229308.4},{"$f":"(((AAMC_Raw_Data_for_FY22[[#This Row],[75th]]-AAMC_Raw_Data_for_FY22[[#This Row],[Median]])/25)*15) + AAMC_Raw_Data_for_FY22[[#This Row],[Median]]","v":238387.6},{"$f":"(((AAMC_Raw_Data_for_FY22[[#This Row],[75th]]-AAMC_Raw_Data_for_FY22[[#This Row],[Median]])/25)*20) + AAMC_Raw_Data_for_FY22[[#This Row],[Median]]","v":247466.8},256546,{"$f":"(((AAMC_Raw_Data_for_FY22[[#This Row],[75th]]-AAMC_Raw_Data_for_FY22[[#This Row],[Median]])/25)*30) + AAMC_Raw_Data_for_FY22[[#This Row],[Median]]","v":265625.2},{"$f":"(((AAMC_Raw_Data_for_FY22[[#This Row],[75th]]-AAMC_Raw_Data_for_FY22[[#This Row],[Median]])/25)*35) + AAMC_Raw_Data_for_FY22[[#This Row],[Median]]","v":274704.40000000002},{"$f":"(((AAMC_Raw_Data_for_FY22[[#This Row],[75th]]-AAMC_Raw_Data_for_FY22[[#This Row],[Median]])/25)*40) + AAMC_Raw_Data_for_FY22[[#This Row],[Median]]","v":283783.59999999998}]
[{"$f":"AAMC_Raw_Data_for_FY22[[#This Row],[Source]]&AAMC_Raw_Data_for_FY22[[#This Row],[Type]]&AAMC_Raw_Data_for_FY22[[#This Row],[School Subset]]&AAMC_Raw_Data_for_FY22[[#This Row],[Rank]]&AAMC_Raw_Data_for_FY22[[#This Row],[Degree]]&AAMC_Raw_Data_for_FY22[[#This Row],[Department / Specialty]]&\"L\"","v":"AAMCAcademicPublicChiefPhDPathology TotalL"},"Pathology Total",6,"AAMC","Academic","Public","Chief","PhD","2021-2022",272842,{"$f":"(((AAMC_Raw_Data_for_FY22[[#This Row],[Median]]-AAMC_Raw_Data_for_FY22[[#This Row],[25th]])/25)*5) + AAMC_Raw_Data_for_FY22[[#This Row],[25th]]","v":282753.8},{"$f":"(((AAMC_Raw_Data_for_FY22[[#This Row],[Median]]-AAMC_Raw_Data_for_FY22[[#This Row],[25th]])/25)*10) + AAMC_Raw_Data_for_FY22[[#This Row],[25th]]","v":292665.59999999998},{"$f":"(((AAMC_Raw_Data_for_FY22[[#This Row],[Median]]-AAMC_Raw_Data_for_FY22[[#This Row],[25th]])/25)*15) + AAMC_Raw_Data_for_FY22[[#This Row],[25th]]","v":302577.40000000002},{"$f":"(((AAMC_Raw_Data_for_FY22[[#This Row],[Median]]-AAMC_Raw_Data_for_FY22[[#This Row],[25th]])/25)*20) + AAMC_Raw_Data_for_FY22[[#This Row],[25th]]","v":312489.2},322401,{"$f":"(((AAMC_Raw_Data_for_FY22[[#This Row],[75th]]-AAMC_Raw_Data_for_FY22[[#This Row],[Median]])/25)*5) + AAMC_Raw_Data_for_FY22[[#This Row],[Median]]","v":342789},{"$f":"(((AAMC_Raw_Data_for_FY22[[#This Row],[75th]]-AAMC_Raw_Data_for_FY22[[#This Row],[Median]])/25)*10) + AAMC_Raw_Data_for_FY22[[#This Row],[Median]]","v":363177},{"$f":"(((AAMC_Raw_Data_for_FY22[[#This Row],[75th]]-AAMC_Raw_Data_for_FY22[[#This Row],[Median]])/25)*15) + AAMC_Raw_Data_for_FY22[[#This Row],[Median]]","v":383565},{"$f":"(((AAMC_Raw_Data_for_FY22[[#This Row],[75th]]-AAMC_Raw_Data_for_FY22[[#This Row],[Median]])/25)*20) + AAMC_Raw_Data_for_FY22[[#This Row],[Median]]","v":403953},424341,{"$f":"(((AAMC_Raw_Data_for_FY22[[#This Row],[75th]]-AAMC_Raw_Data_for_FY22[[#This Row],[Median]])/25)*30) + AAMC_Raw_Data_for_FY22[[#This Row],[Median]]","v":444729},{"$f":"(((AAMC_Raw_Data_for_FY22[[#This Row],[75th]]-AAMC_Raw_Data_for_FY22[[#This Row],[Median]])/25)*35) + AAMC_Raw_Data_for_FY22[[#This Row],[Median]]","v":465117},{"$f":"(((AAMC_Raw_Data_for_FY22[[#This Row],[75th]]-AAMC_Raw_Data_for_FY22[[#This Row],[Median]])/25)*40) + AAMC_Raw_Data_for_FY22[[#This Row],[Median]]","v":485505}]
[{"$f":"AAMC_Raw_Data_for_FY22[[#This Row],[Source]]&AAMC_Raw_Data_for_FY22[[#This Row],[Type]]&AAMC_Raw_Data_for_FY22[[#This Row],[School Subset]]&AAMC_Raw_Data_for_FY22[[#This Row],[Rank]]&AAMC_Raw_Data_for_FY22[[#This Row],[Degree]]&AAMC_Raw_Data_for_FY22[[#This Row],[Department / Specialty]]&\"L\"","v":"AAMCAcademicPublicChairPhDPathology TotalL"},"Pathology Total",1,"AAMC","Academic","Public","Chair","PhD","2021-2022",null,{"$f":"(((AAMC_Raw_Data_for_FY22[[#This Row],[Median]]-AAMC_Raw_Data_for_FY22[[#This Row],[25th]])/25)*5) + AAMC_Raw_Data_for_FY22[[#This Row],[25th]]","v":0},{"$f":"(((AAMC_Raw_Data_for_FY22[[#This Row],[Median]]-AAMC_Raw_Data_for_FY22[[#This Row],[25th]])/25)*10) + AAMC_Raw_Data_for_FY22[[#This Row],[25th]]","v":0},{"$f":"(((AAMC_Raw_Data_for_FY22[[#This Row],[Median]]-AAMC_Raw_Data_for_FY22[[#This Row],[25th]])/25)*15) + AAMC_Raw_Data_for_FY22[[#This Row],[25th]]","v":0},{"$f":"(((AAMC_Raw_Data_for_FY22[[#This Row],[Median]]-AAMC_Raw_Data_for_FY22[[#This Row],[25th]])/25)*20) + AAMC_Raw_Data_for_FY22[[#This Row],[25th]]","v":0},null,{"$f":"(((AAMC_Raw_Data_for_FY22[[#This Row],[75th]]-AAMC_Raw_Data_for_FY22[[#This Row],[Median]])/25)*5) + AAMC_Raw_Data_for_FY22[[#This Row],[Median]]","v":0},{"$f":"(((AAMC_Raw_Data_for_FY22[[#This Row],[75th]]-AAMC_Raw_Data_for_FY22[[#This Row],[Median]])/25)*10) + AAMC_Raw_Data_for_FY22[[#This Row],[Median]]","v":0},{"$f":"(((AAMC_Raw_Data_for_FY22[[#This Row],[75th]]-AAMC_Raw_Data_for_FY22[[#This Row],[Median]])/25)*15) + AAMC_Raw_Data_for_FY22[[#This Row],[Median]]","v":0},{"$f":"(((AAMC_Raw_Data_for_FY22[[#This Row],[75th]]-AAMC_Raw_Data_for_FY22[[#This Row],[Median]])/25)*20) + AAMC_Raw_Data_for_FY22[[#This Row],[Median]]","v":0},null,{"$f":"(((AAMC_Raw_Data_for_FY22[[#This Row],[75th]]-AAMC_Raw_Data_for_FY22[[#This Row],[Median]])/25)*30) + AAMC_Raw_Data_for_FY22[[#This Row],[Median]]","v":0},{"$f":"(((AAMC_Raw_Data_for_FY22[[#This Row],[75th]]-AAMC_Raw_Data_for_FY22[[#This Row],[Median]])/25)*35) + AAMC_Raw_Data_for_FY22[[#This Row],[Median]]","v":0},{"$f":"(((AAMC_Raw_Data_for_FY22[[#This Row],[75th]]-AAMC_Raw_Data_for_FY22[[#This Row],[Median]])/25)*40) + AAMC_Raw_Data_for_FY22[[#This Row],[Median]]","v":0}]
[{"$f":"AAMC_Raw_Data_for_FY22[[#This Row],[Source]]&AAMC_Raw_Data_for_FY22[[#This Row],[Type]]&AAMC_Raw_Data_for_FY22[[#This Row],[School Subset]]&AAMC_Raw_Data_for_FY22[[#This Row],[Rank]]&AAMC_Raw_Data_for_FY22[[#This Row],[Degree]]&AAMC_Raw_Data_for_FY22[[#This Row],[Department / Specialty]]&\"L\"","v":"AAMCAcademicPublicInstructorPhDPathology: AnatomicL"},"Pathology: Anatomic",5,"AAMC","Academic","Public","Instructor","PhD","2021-2022",null,{"$f":"(((AAMC_Raw_Data_for_FY22[[#This Row],[Median]]-AAMC_Raw_Data_for_FY22[[#This Row],[25th]])/25)*5) + AAMC_Raw_Data_for_FY22[[#This Row],[25th]]","v":0},{"$f":"(((AAMC_Raw_Data_for_FY22[[#This Row],[Median]]-AAMC_Raw_Data_for_FY22[[#This Row],[25th]])/25)*10) + AAMC_Raw_Data_for_FY22[[#This Row],[25th]]","v":0},{"$f":"(((AAMC_Raw_Data_for_FY22[[#This Row],[Median]]-AAMC_Raw_Data_for_FY22[[#This Row],[25th]])/25)*15) + AAMC_Raw_Data_for_FY22[[#This Row],[25th]]","v":0},{"$f":"(((AAMC_Raw_Data_for_FY22[[#This Row],[Median]]-AAMC_Raw_Data_for_FY22[[#This Row],[25th]])/25)*20) + AAMC_Raw_Data_for_FY22[[#This Row],[25th]]","v":0},null,{"$f":"(((AAMC_Raw_Data_for_FY22[[#This Row],[75th]]-AAMC_Raw_Data_for_FY22[[#This Row],[Median]])/25)*5) + AAMC_Raw_Data_for_FY22[[#This Row],[Median]]","v":0},{"$f":"(((AAMC_Raw_Data_for_FY22[[#This Row],[75th]]-AAMC_Raw_Data_for_FY22[[#This Row],[Median]])/25)*10) + AAMC_Raw_Data_for_FY22[[#This Row],[Median]]","v":0},{"$f":"(((AAMC_Raw_Data_for_FY22[[#This Row],[75th]]-AAMC_Raw_Data_for_FY22[[#This Row],[Median]])/25)*15) + AAMC_Raw_Data_for_FY22[[#This Row],[Median]]","v":0},{"$f":"(((AAMC_Raw_Data_for_FY22[[#This Row],[75th]]-AAMC_Raw_Data_for_FY22[[#This Row],[Median]])/25)*20) + AAMC_Raw_Data_for_FY22[[#This Row],[Median]]","v":0},null,{"$f":"(((AAMC_Raw_Data_for_FY22[[#This Row],[75th]]-AAMC_Raw_Data_for_FY22[[#This Row],[Median]])/25)*30) + AAMC_Raw_Data_for_FY22[[#This Row],[Median]]","v":0},{"$f":"(((AAMC_Raw_Data_for_FY22[[#This Row],[75th]]-AAMC_Raw_Data_for_FY22[[#This Row],[Median]])/25)*35) + AAMC_Raw_Data_for_FY22[[#This Row],[Median]]","v":0},{"$f":"(((AAMC_Raw_Data_for_FY22[[#This Row],[75th]]-AAMC_Raw_Data_for_FY22[[#This Row],[Median]])/25)*40) + AAMC_Raw_Data_for_FY22[[#This Row],[Median]]","v":0}]
[{"$f":"AAMC_Raw_Data_for_FY22[[#This Row],[Source]]&AAMC_Raw_Data_for_FY22[[#This Row],[Type]]&AAMC_Raw_Data_for_FY22[[#This Row],[School Subset]]&AAMC_Raw_Data_for_FY22[[#This Row],[Rank]]&AAMC_Raw_Data_for_FY22[[#This Row],[Degree]]&AAMC_Raw_Data_for_FY22[[#This Row],[Department / Specialty]]&\"L\"","v":"AAMCAcademicPublicAssistantPhDPathology: AnatomicL"},"Pathology: Anatomic",4,"AAMC","Academic","Public","Assistant","PhD","2021-2022",117909,{"$f":"(((AAMC_Raw_Data_for_FY22[[#This Row],[Median]]-AAMC_Raw_Data_for_FY22[[#This Row],[25th]])/25)*5) + AAMC_Raw_Data_for_FY22[[#This Row],[25th]]","v":124441.60000000001},{"$f":"(((AAMC_Raw_Data_for_FY22[[#This Row],[Median]]-AAMC_Raw_Data_for_FY22[[#This Row],[25th]])/25)*10) + AAMC_Raw_Data_for_FY22[[#This Row],[25th]]","v":130974.2},{"$f":"(((AAMC_Raw_Data_for_FY22[[#This Row],[Median]]-AAMC_Raw_Data_for_FY22[[#This Row],[25th]])/25)*15) + AAMC_Raw_Data_for_FY22[[#This Row],[25th]]","v":137506.79999999999},{"$f":"(((AAMC_Raw_Data_for_FY22[[#This Row],[Median]]-AAMC_Raw_Data_for_FY22[[#This Row],[25th]])/25)*20) + AAMC_Raw_Data_for_FY22[[#This Row],[25th]]","v":144039.4},150572,{"$f":"(((AAMC_Raw_Data_for_FY22[[#This Row],[75th]]-AAMC_Raw_Data_for_FY22[[#This Row],[Median]])/25)*5) + AAMC_Raw_Data_for_FY22[[#This Row],[Median]]","v":167204.6},{"$f":"(((AAMC_Raw_Data_for_FY22[[#This Row],[75th]]-AAMC_Raw_Data_for_FY22[[#This Row],[Median]])/25)*10) + AAMC_Raw_Data_for_FY22[[#This Row],[Median]]","v":183837.2},{"$f":"(((AAMC_Raw_Data_for_FY22[[#This Row],[75th]]-AAMC_Raw_Data_for_FY22[[#This Row],[Median]])/25)*15) + AAMC_Raw_Data_for_FY22[[#This Row],[Median]]","v":200469.8},{"$f":"(((AAMC_Raw_Data_for_FY22[[#This Row],[75th]]-AAMC_Raw_Data_for_FY22[[#This Row],[Median]])/25)*20) + AAMC_Raw_Data_for_FY22[[#This Row],[Median]]","v":217102.4},233735,{"$f":"(((AAMC_Raw_Data_for_FY22[[#This Row],[75th]]-AAMC_Raw_Data_for_FY22[[#This Row],[Median]])/25)*30) + AAMC_Raw_Data_for_FY22[[#This Row],[Median]]","v":250367.6},{"$f":"(((AAMC_Raw_Data_for_FY22[[#This Row],[75th]]-AAMC_Raw_Data_for_FY22[[#This Row],[Median]])/25)*35) + AAMC_Raw_Data_for_FY22[[#This Row],[Median]]","v":267000.2},{"$f":"(((AAMC_Raw_Data_for_FY22[[#This Row],[75th]]-AAMC_Raw_Data_for_FY22[[#This Row],[Median]])/25)*40) + AAMC_Raw_Data_for_FY22[[#This Row],[Median]]","v":283632.8}]
[{"$f":"AAMC_Raw_Data_for_FY22[[#This Row],[Source]]&AAMC_Raw_Data_for_FY22[[#This Row],[Type]]&AAMC_Raw_Data_for_FY22[[#This Row],[School Subset]]&AAMC_Raw_Data_for_FY22[[#This Row],[Rank]]&AAMC_Raw_Data_for_FY22[[#This Row],[Degree]]&AAMC_Raw_Data_for_FY22[[#This Row],[Department / Specialty]]&\"L\"","v":"AAMCAcademicPublicAssociatePhDPathology: AnatomicL"},"Pathology: Anatomic",3,"AAMC","Academic","Public","Associate","PhD","2021-2022",155879,{"$f":"(((AAMC_Raw_Data_for_FY22[[#This Row],[Median]]-AAMC_Raw_Data_for_FY22[[#This Row],[25th]])/25)*5) + AAMC_Raw_Data_for_FY22[[#This Row],[25th]]","v":158245.4},{"$f":"(((AAMC_Raw_Data_for_FY22[[#This Row],[Median]]-AAMC_Raw_Data_for_FY22[[#This Row],[25th]])/25)*10) + AAMC_Raw_Data_for_FY22[[#This Row],[25th]]","v":160611.79999999999},{"$f":"(((AAMC_Raw_Data_for_FY22[[#This Row],[Median]]-AAMC_Raw_Data_for_FY22[[#This Row],[25th]])/25)*15) + AAMC_Raw_Data_for_FY22[[#This Row],[25th]]","v":162978.20000000001},{"$f":"(((AAMC_Raw_Data_for_FY22[[#This Row],[Median]]-AAMC_Raw_Data_for_FY22[[#This Row],[25th]])/25)*20) + AAMC_Raw_Data_for_FY22[[#This Row],[25th]]","v":165344.6},167711,{"$f":"(((AAMC_Raw_Data_for_FY22[[#This Row],[75th]]-AAMC_Raw_Data_for_FY22[[#This Row],[Median]])/25)*5) + AAMC_Raw_Data_for_FY22[[#This Row],[Median]]","v":181185},{"$f":"(((AAMC_Raw_Data_for_FY22[[#This Row],[75th]]-AAMC_Raw_Data_for_FY22[[#This Row],[Median]])/25)*10) + AAMC_Raw_Data_for_FY22[[#This Row],[Median]]","v":194659},{"$f":"(((AAMC_Raw_Data_for_FY22[[#This Row],[75th]]-AAMC_Raw_Data_for_FY22[[#This Row],[Median]])/25)*15) + AAMC_Raw_Data_for_FY22[[#This Row],[Median]]","v":208133},{"$f":"(((AAMC_Raw_Data_for_FY22[[#This Row],[75th]]-AAMC_Raw_Data_for_FY22[[#This Row],[Median]])/25)*20) + AAMC_Raw_Data_for_FY22[[#This Row],[Median]]","v":221607},235081,{"$f":"(((AAMC_Raw_Data_for_FY22[[#This Row],[75th]]-AAMC_Raw_Data_for_FY22[[#This Row],[Median]])/25)*30) + AAMC_Raw_Data_for_FY22[[#This Row],[Median]]","v":248555},{"$f":"(((AAMC_Raw_Data_for_FY22[[#This Row],[75th]]-AAMC_Raw_Data_for_FY22[[#This Row],[Median]])/25)*35) + AAMC_Raw_Data_for_FY22[[#This Row],[Median]]","v":262029},{"$f":"(((AAMC_Raw_Data_for_FY22[[#This Row],[75th]]-AAMC_Raw_Data_for_FY22[[#This Row],[Median]])/25)*40) + AAMC_Raw_Data_for_FY22[[#This Row],[Median]]","v":275503}]
[{"$f":"AAMC_Raw_Data_for_FY22[[#This Row],[Source]]&AAMC_Raw_Data_for_FY22[[#This Row],[Type]]&AAMC_Raw_Data_for_FY22[[#This Row],[School Subset]]&AAMC_Raw_Data_for_FY22[[#This Row],[Rank]]&AAMC_Raw_Data_for_FY22[[#This Row],[Degree]]&AAMC_Raw_Data_for_FY22[[#This Row],[Department / Specialty]]&\"L\"","v":"AAMCAcademicPublicProfessorPhDPathology: AnatomicL"},"Pathology: Anatomic",2,"AAMC","Academic","Public","Professor","PhD","2021-2022",158196,{"$f":"(((AAMC_Raw_Data_for_FY22[[#This Row],[Median]]-AAMC_Raw_Data_for_FY22[[#This Row],[25th]])/25)*5) + AAMC_Raw_Data_for_FY22[[#This Row],[25th]]","v":167107.6},{"$f":"(((AAMC_Raw_Data_for_FY22[[#This Row],[Median]]-AAMC_Raw_Data_for_FY22[[#This Row],[25th]])/25)*10) + AAMC_Raw_Data_for_FY22[[#This Row],[25th]]","v":176019.20000000001},{"$f":"(((AAMC_Raw_Data_for_FY22[[#This Row],[Median]]-AAMC_Raw_Data_for_FY22[[#This Row],[25th]])/25)*15) + AAMC_Raw_Data_for_FY22[[#This Row],[25th]]","v":184930.8},{"$f":"(((AAMC_Raw_Data_for_FY22[[#This Row],[Median]]-AAMC_Raw_Data_for_FY22[[#This Row],[25th]])/25)*20) + AAMC_Raw_Data_for_FY22[[#This Row],[25th]]","v":193842.4},202754,{"$f":"(((AAMC_Raw_Data_for_FY22[[#This Row],[75th]]-AAMC_Raw_Data_for_FY22[[#This Row],[Median]])/25)*5) + AAMC_Raw_Data_for_FY22[[#This Row],[Median]]","v":211649.2},{"$f":"(((AAMC_Raw_Data_for_FY22[[#This Row],[75th]]-AAMC_Raw_Data_for_FY22[[#This Row],[Median]])/25)*10) + AAMC_Raw_Data_for_FY22[[#This Row],[Median]]","v":220544.4},{"$f":"(((AAMC_Raw_Data_for_FY22[[#This Row],[75th]]-AAMC_Raw_Data_for_FY22[[#This Row],[Median]])/25)*15) + AAMC_Raw_Data_for_FY22[[#This Row],[Median]]","v":229439.6},{"$f":"(((AAMC_Raw_Data_for_FY22[[#This Row],[75th]]-AAMC_Raw_Data_for_FY22[[#This Row],[Median]])/25)*20) + AAMC_Raw_Data_for_FY22[[#This Row],[Median]]","v":238334.8},247230,{"$f":"(((AAMC_Raw_Data_for_FY22[[#This Row],[75th]]-AAMC_Raw_Data_for_FY22[[#This Row],[Median]])/25)*30) + AAMC_Raw_Data_for_FY22[[#This Row],[Median]]","v":256125.2},{"$f":"(((AAMC_Raw_Data_for_FY22[[#This Row],[75th]]-AAMC_Raw_Data_for_FY22[[#This Row],[Median]])/25)*35) + AAMC_Raw_Data_for_FY22[[#This Row],[Median]]","v":265020.40000000002},{"$f":"(((AAMC_Raw_Data_for_FY22[[#This Row],[75th]]-AAMC_Raw_Data_for_FY22[[#This Row],[Median]])/25)*40) + AAMC_Raw_Data_for_FY22[[#This Row],[Median]]","v":273915.59999999998}]
[{"$f":"AAMC_Raw_Data_for_FY22[[#This Row],[Source]]&AAMC_Raw_Data_for_FY22[[#This Row],[Type]]&AAMC_Raw_Data_for_FY22[[#This Row],[School Subset]]&AAMC_Raw_Data_for_FY22[[#This Row],[Rank]]&AAMC_Raw_Data_for_FY22[[#This Row],[Degree]]&AAMC_Raw_Data_for_FY22[[#This Row],[Department / Specialty]]&\"L\"","v":"AAMCAcademicPublicChiefPhDPathology: AnatomicL"},"Pathology: Anatomic",6,"AAMC","Academic","Public","Chief","PhD","2021-2022",null,{"$f":"(((AAMC_Raw_Data_for_FY22[[#This Row],[Median]]-AAMC_Raw_Data_for_FY22[[#This Row],[25th]])/25)*5) + AAMC_Raw_Data_for_FY22[[#This Row],[25th]]","v":0},{"$f":"(((AAMC_Raw_Data_for_FY22[[#This Row],[Median]]-AAMC_Raw_Data_for_FY22[[#This Row],[25th]])/25)*10) + AAMC_Raw_Data_for_FY22[[#This Row],[25th]]","v":0},{"$f":"(((AAMC_Raw_Data_for_FY22[[#This Row],[Median]]-AAMC_Raw_Data_for_FY22[[#This Row],[25th]])/25)*15) + AAMC_Raw_Data_for_FY22[[#This Row],[25th]]","v":0},{"$f":"(((AAMC_Raw_Data_for_FY22[[#This Row],[Median]]-AAMC_Raw_Data_for_FY22[[#This Row],[25th]])/25)*20) + AAMC_Raw_Data_for_FY22[[#This Row],[25th]]","v":0},null,{"$f":"(((AAMC_Raw_Data_for_FY22[[#This Row],[75th]]-AAMC_Raw_Data_for_FY22[[#This Row],[Median]])/25)*5) + AAMC_Raw_Data_for_FY22[[#This Row],[Median]]","v":0},{"$f":"(((AAMC_Raw_Data_for_FY22[[#This Row],[75th]]-AAMC_Raw_Data_for_FY22[[#This Row],[Median]])/25)*10) + AAMC_Raw_Data_for_FY22[[#This Row],[Median]]","v":0},{"$f":"(((AAMC_Raw_Data_for_FY22[[#This Row],[75th]]-AAMC_Raw_Data_for_FY22[[#This Row],[Median]])/25)*15) + AAMC_Raw_Data_for_FY22[[#This Row],[Median]]","v":0},{"$f":"(((AAMC_Raw_Data_for_FY22[[#This Row],[75th]]-AAMC_Raw_Data_for_FY22[[#This Row],[Median]])/25)*20) + AAMC_Raw_Data_for_FY22[[#This Row],[Median]]","v":0},null,{"$f":"(((AAMC_Raw_Data_for_FY22[[#This Row],[75th]]-AAMC_Raw_Data_for_FY22[[#This Row],[Median]])/25)*30) + AAMC_Raw_Data_for_FY22[[#This Row],[Median]]","v":0},{"$f":"(((AAMC_Raw_Data_for_FY22[[#This Row],[75th]]-AAMC_Raw_Data_for_FY22[[#This Row],[Median]])/25)*35) + AAMC_Raw_Data_for_FY22[[#This Row],[Median]]","v":0},{"$f":"(((AAMC_Raw_Data_for_FY22[[#This Row],[75th]]-AAMC_Raw_Data_for_FY22[[#This Row],[Median]])/25)*40) + AAMC_Raw_Data_for_FY22[[#This Row],[Median]]","v":0}]
[{"$f":"AAMC_Raw_Data_for_FY22[[#This Row],[Source]]&AAMC_Raw_Data_for_FY22[[#This Row],[Type]]&AAMC_Raw_Data_for_FY22[[#This Row],[School Subset]]&AAMC_Raw_Data_for_FY22[[#This Row],[Rank]]&AAMC_Raw_Data_for_FY22[[#This Row],[Degree]]&AAMC_Raw_Data_for_FY22[[#This Row],[Department / Specialty]]&\"L\"","v":"AAMCAcademicPublicInstructorPhDPathology: ClinicalL"},"Pathology: Clinical",5,"AAMC","Academic","Public","Instructor","PhD","2021-2022",null,{"$f":"(((AAMC_Raw_Data_for_FY22[[#This Row],[Median]]-AAMC_Raw_Data_for_FY22[[#This Row],[25th]])/25)*5) + AAMC_Raw_Data_for_FY22[[#This Row],[25th]]","v":0},{"$f":"(((AAMC_Raw_Data_for_FY22[[#This Row],[Median]]-AAMC_Raw_Data_for_FY22[[#This Row],[25th]])/25)*10) + AAMC_Raw_Data_for_FY22[[#This Row],[25th]]","v":0},{"$f":"(((AAMC_Raw_Data_for_FY22[[#This Row],[Median]]-AAMC_Raw_Data_for_FY22[[#This Row],[25th]])/25)*15) + AAMC_Raw_Data_for_FY22[[#This Row],[25th]]","v":0},{"$f":"(((AAMC_Raw_Data_for_FY22[[#This Row],[Median]]-AAMC_Raw_Data_for_FY22[[#This Row],[25th]])/25)*20) + AAMC_Raw_Data_for_FY22[[#This Row],[25th]]","v":0},null,{"$f":"(((AAMC_Raw_Data_for_FY22[[#This Row],[75th]]-AAMC_Raw_Data_for_FY22[[#This Row],[Median]])/25)*5) + AAMC_Raw_Data_for_FY22[[#This Row],[Median]]","v":0},{"$f":"(((AAMC_Raw_Data_for_FY22[[#This Row],[75th]]-AAMC_Raw_Data_for_FY22[[#This Row],[Median]])/25)*10) + AAMC_Raw_Data_for_FY22[[#This Row],[Median]]","v":0},{"$f":"(((AAMC_Raw_Data_for_FY22[[#This Row],[75th]]-AAMC_Raw_Data_for_FY22[[#This Row],[Median]])/25)*15) + AAMC_Raw_Data_for_FY22[[#This Row],[Median]]","v":0},{"$f":"(((AAMC_Raw_Data_for_FY22[[#This Row],[75th]]-AAMC_Raw_Data_for_FY22[[#This Row],[Median]])/25)*20) + AAMC_Raw_Data_for_FY22[[#This Row],[Median]]","v":0},null,{"$f":"(((AAMC_Raw_Data_for_FY22[[#This Row],[75th]]-AAMC_Raw_Data_for_FY22[[#This Row],[Median]])/25)*30) + AAMC_Raw_Data_for_FY22[[#This Row],[Median]]","v":0},{"$f":"(((AAMC_Raw_Data_for_FY22[[#This Row],[75th]]-AAMC_Raw_Data_for_FY22[[#This Row],[Median]])/25)*35) + AAMC_Raw_Data_for_FY22[[#This Row],[Median]]","v":0},{"$f":"(((AAMC_Raw_Data_for_FY22[[#This Row],[75th]]-AAMC_Raw_Data_for_FY22[[#This Row],[Median]])/25)*40) + AAMC_Raw_Data_for_FY22[[#This Row],[Median]]","v":0}]
[{"$f":"AAMC_Raw_Data_for_FY22[[#This Row],[Source]]&AAMC_Raw_Data_for_FY22[[#This Row],[Type]]&AAMC_Raw_Data_for_FY22[[#This Row],[School Subset]]&AAMC_Raw_Data_for_FY22[[#This Row],[Rank]]&AAMC_Raw_Data_for_FY22[[#This Row],[Degree]]&AAMC_Raw_Data_for_FY22[[#This Row],[Department / Specialty]]&\"L\"","v":"AAMCAcademicPublicAssistantPhDPathology: ClinicalL"},"Pathology: Clinical",4,"AAMC","Academic","Public","Assistant","PhD","2021-2022",130808,{"$f":"(((AAMC_Raw_Data_for_FY22[[#This Row],[Median]]-AAMC_Raw_Data_for_FY22[[#This Row],[25th]])/25)*5) + AAMC_Raw_Data_for_FY22[[#This Row],[25th]]","v":135350.39999999999},{"$f":"(((AAMC_Raw_Data_for_FY22[[#This Row],[Median]]-AAMC_Raw_Data_for_FY22[[#This Row],[25th]])/25)*10) + AAMC_Raw_Data_for_FY22[[#This Row],[25th]]","v":139892.79999999999},{"$f":"(((AAMC_Raw_Data_for_FY22[[#This Row],[Median]]-AAMC_Raw_Data_for_FY22[[#This Row],[25th]])/25)*15) + AAMC_Raw_Data_for_FY22[[#This Row],[25th]]","v":144435.20000000001},{"$f":"(((AAMC_Raw_Data_for_FY22[[#This Row],[Median]]-AAMC_Raw_Data_for_FY22[[#This Row],[25th]])/25)*20) + AAMC_Raw_Data_for_FY22[[#This Row],[25th]]","v":148977.60000000001},153520,{"$f":"(((AAMC_Raw_Data_for_FY22[[#This Row],[75th]]-AAMC_Raw_Data_for_FY22[[#This Row],[Median]])/25)*5) + AAMC_Raw_Data_for_FY22[[#This Row],[Median]]","v":158662.39999999999},{"$f":"(((AAMC_Raw_Data_for_FY22[[#This Row],[75th]]-AAMC_Raw_Data_for_FY22[[#This Row],[Median]])/25)*10) + AAMC_Raw_Data_for_FY22[[#This Row],[Median]]","v":163804.79999999999},{"$f":"(((AAMC_Raw_Data_for_FY22[[#This Row],[75th]]-AAMC_Raw_Data_for_FY22[[#This Row],[Median]])/25)*15) + AAMC_Raw_Data_for_FY22[[#This Row],[Median]]","v":168947.20000000001},{"$f":"(((AAMC_Raw_Data_for_FY22[[#This Row],[75th]]-AAMC_Raw_Data_for_FY22[[#This Row],[Median]])/25)*20) + AAMC_Raw_Data_for_FY22[[#This Row],[Median]]","v":174089.60000000001},179232,{"$f":"(((AAMC_Raw_Data_for_FY22[[#This Row],[75th]]-AAMC_Raw_Data_for_FY22[[#This Row],[Median]])/25)*30) + AAMC_Raw_Data_for_FY22[[#This Row],[Median]]","v":184374.39999999999},{"$f":"(((AAMC_Raw_Data_for_FY22[[#This Row],[75th]]-AAMC_Raw_Data_for_FY22[[#This Row],[Median]])/25)*35) + AAMC_Raw_Data_for_FY22[[#This Row],[Median]]","v":189516.79999999999},{"$f":"(((AAMC_Raw_Data_for_FY22[[#This Row],[75th]]-AAMC_Raw_Data_for_FY22[[#This Row],[Median]])/25)*40) + AAMC_Raw_Data_for_FY22[[#This Row],[Median]]","v":194659.20000000001}]
[{"$f":"AAMC_Raw_Data_for_FY22[[#This Row],[Source]]&AAMC_Raw_Data_for_FY22[[#This Row],[Type]]&AAMC_Raw_Data_for_FY22[[#This Row],[School Subset]]&AAMC_Raw_Data_for_FY22[[#This Row],[Rank]]&AAMC_Raw_Data_for_FY22[[#This Row],[Degree]]&AAMC_Raw_Data_for_FY22[[#This Row],[Department / Specialty]]&\"L\"","v":"AAMCAcademicPublicAssociatePhDPathology: ClinicalL"},"Pathology: Clinical",3,"AAMC","Academic","Public","Associate","PhD","2021-2022",148063,{"$f":"(((AAMC_Raw_Data_for_FY22[[#This Row],[Median]]-AAMC_Raw_Data_for_FY22[[#This Row],[25th]])/25)*5) + AAMC_Raw_Data_for_FY22[[#This Row],[25th]]","v":157868.20000000001},{"$f":"(((AAMC_Raw_Data_for_FY22[[#This Row],[Median]]-AAMC_Raw_Data_for_FY22[[#This Row],[25th]])/25)*10) + AAMC_Raw_Data_for_FY22[[#This Row],[25th]]","v":167673.4},{"$f":"(((AAMC_Raw_Data_for_FY22[[#This Row],[Median]]-AAMC_Raw_Data_for_FY22[[#This Row],[25th]])/25)*15) + AAMC_Raw_Data_for_FY22[[#This Row],[25th]]","v":177478.6},{"$f":"(((AAMC_Raw_Data_for_FY22[[#This Row],[Median]]-AAMC_Raw_Data_for_FY22[[#This Row],[25th]])/25)*20) + AAMC_Raw_Data_for_FY22[[#This Row],[25th]]","v":187283.8},197089,{"$f":"(((AAMC_Raw_Data_for_FY22[[#This Row],[75th]]-AAMC_Raw_Data_for_FY22[[#This Row],[Median]])/25)*5) + AAMC_Raw_Data_for_FY22[[#This Row],[Median]]","v":204105},{"$f":"(((AAMC_Raw_Data_for_FY22[[#This Row],[75th]]-AAMC_Raw_Data_for_FY22[[#This Row],[Median]])/25)*10) + AAMC_Raw_Data_for_FY22[[#This Row],[Median]]","v":211121},{"$f":"(((AAMC_Raw_Data_for_FY22[[#This Row],[75th]]-AAMC_Raw_Data_for_FY22[[#This Row],[Median]])/25)*15) + AAMC_Raw_Data_for_FY22[[#This Row],[Median]]","v":218137},{"$f":"(((AAMC_Raw_Data_for_FY22[[#This Row],[75th]]-AAMC_Raw_Data_for_FY22[[#This Row],[Median]])/25)*20) + AAMC_Raw_Data_for_FY22[[#This Row],[Median]]","v":225153},232169,{"$f":"(((AAMC_Raw_Data_for_FY22[[#This Row],[75th]]-AAMC_Raw_Data_for_FY22[[#This Row],[Median]])/25)*30) + AAMC_Raw_Data_for_FY22[[#This Row],[Median]]","v":239185},{"$f":"(((AAMC_Raw_Data_for_FY22[[#This Row],[75th]]-AAMC_Raw_Data_for_FY22[[#This Row],[Median]])/25)*35) + AAMC_Raw_Data_for_FY22[[#This Row],[Median]]","v":246201},{"$f":"(((AAMC_Raw_Data_for_FY22[[#This Row],[75th]]-AAMC_Raw_Data_for_FY22[[#This Row],[Median]])/25)*40) + AAMC_Raw_Data_for_FY22[[#This Row],[Median]]","v":253217}]
[{"$f":"AAMC_Raw_Data_for_FY22[[#This Row],[Source]]&AAMC_Raw_Data_for_FY22[[#This Row],[Type]]&AAMC_Raw_Data_for_FY22[[#This Row],[School Subset]]&AAMC_Raw_Data_for_FY22[[#This Row],[Rank]]&AAMC_Raw_Data_for_FY22[[#This Row],[Degree]]&AAMC_Raw_Data_for_FY22[[#This Row],[Department / Specialty]]&\"L\"","v":"AAMCAcademicPublicProfessorPhDPathology: ClinicalL"},"Pathology: Clinical",2,"AAMC","Academic","Public","Professor","PhD","2021-2022",219760,{"$f":"(((AAMC_Raw_Data_for_FY22[[#This Row],[Median]]-AAMC_Raw_Data_for_FY22[[#This Row],[25th]])/25)*5) + AAMC_Raw_Data_for_FY22[[#This Row],[25th]]","v":227275.6},{"$f":"(((AAMC_Raw_Data_for_FY22[[#This Row],[Median]]-AAMC_Raw_Data_for_FY22[[#This Row],[25th]])/25)*10) + AAMC_Raw_Data_for_FY22[[#This Row],[25th]]","v":234791.2},{"$f":"(((AAMC_Raw_Data_for_FY22[[#This Row],[Median]]-AAMC_Raw_Data_for_FY22[[#This Row],[25th]])/25)*15) + AAMC_Raw_Data_for_FY22[[#This Row],[25th]]","v":242306.8},{"$f":"(((AAMC_Raw_Data_for_FY22[[#This Row],[Median]]-AAMC_Raw_Data_for_FY22[[#This Row],[25th]])/25)*20) + AAMC_Raw_Data_for_FY22[[#This Row],[25th]]","v":249822.4},257338,{"$f":"(((AAMC_Raw_Data_for_FY22[[#This Row],[75th]]-AAMC_Raw_Data_for_FY22[[#This Row],[Median]])/25)*5) + AAMC_Raw_Data_for_FY22[[#This Row],[Median]]","v":266185.2},{"$f":"(((AAMC_Raw_Data_for_FY22[[#This Row],[75th]]-AAMC_Raw_Data_for_FY22[[#This Row],[Median]])/25)*10) + AAMC_Raw_Data_for_FY22[[#This Row],[Median]]","v":275032.40000000002},{"$f":"(((AAMC_Raw_Data_for_FY22[[#This Row],[75th]]-AAMC_Raw_Data_for_FY22[[#This Row],[Median]])/25)*15) + AAMC_Raw_Data_for_FY22[[#This Row],[Median]]","v":283879.59999999998},{"$f":"(((AAMC_Raw_Data_for_FY22[[#This Row],[75th]]-AAMC_Raw_Data_for_FY22[[#This Row],[Median]])/25)*20) + AAMC_Raw_Data_for_FY22[[#This Row],[Median]]","v":292726.8},301574,{"$f":"(((AAMC_Raw_Data_for_FY22[[#This Row],[75th]]-AAMC_Raw_Data_for_FY22[[#This Row],[Median]])/25)*30) + AAMC_Raw_Data_for_FY22[[#This Row],[Median]]","v":310421.2},{"$f":"(((AAMC_Raw_Data_for_FY22[[#This Row],[75th]]-AAMC_Raw_Data_for_FY22[[#This Row],[Median]])/25)*35) + AAMC_Raw_Data_for_FY22[[#This Row],[Median]]","v":319268.40000000002},{"$f":"(((AAMC_Raw_Data_for_FY22[[#This Row],[75th]]-AAMC_Raw_Data_for_FY22[[#This Row],[Median]])/25)*40) + AAMC_Raw_Data_for_FY22[[#This Row],[Median]]","v":328115.59999999998}]
[{"$f":"AAMC_Raw_Data_for_FY22[[#This Row],[Source]]&AAMC_Raw_Data_for_FY22[[#This Row],[Type]]&AAMC_Raw_Data_for_FY22[[#This Row],[School Subset]]&AAMC_Raw_Data_for_FY22[[#This Row],[Rank]]&AAMC_Raw_Data_for_FY22[[#This Row],[Degree]]&AAMC_Raw_Data_for_FY22[[#This Row],[Department / Specialty]]&\"L\"","v":"AAMCAcademicPublicChiefPhDPathology: ClinicalL"},"Pathology: Clinical",6,"AAMC","Academic","Public","Chief","PhD","2021-2022",null,{"$f":"(((AAMC_Raw_Data_for_FY22[[#This Row],[Median]]-AAMC_Raw_Data_for_FY22[[#This Row],[25th]])/25)*5) + AAMC_Raw_Data_for_FY22[[#This Row],[25th]]","v":0},{"$f":"(((AAMC_Raw_Data_for_FY22[[#This Row],[Median]]-AAMC_Raw_Data_for_FY22[[#This Row],[25th]])/25)*10) + AAMC_Raw_Data_for_FY22[[#This Row],[25th]]","v":0},{"$f":"(((AAMC_Raw_Data_for_FY22[[#This Row],[Median]]-AAMC_Raw_Data_for_FY22[[#This Row],[25th]])/25)*15) + AAMC_Raw_Data_for_FY22[[#This Row],[25th]]","v":0},{"$f":"(((AAMC_Raw_Data_for_FY22[[#This Row],[Median]]-AAMC_Raw_Data_for_FY22[[#This Row],[25th]])/25)*20) + AAMC_Raw_Data_for_FY22[[#This Row],[25th]]","v":0},null,{"$f":"(((AAMC_Raw_Data_for_FY22[[#This Row],[75th]]-AAMC_Raw_Data_for_FY22[[#This Row],[Median]])/25)*5) + AAMC_Raw_Data_for_FY22[[#This Row],[Median]]","v":0},{"$f":"(((AAMC_Raw_Data_for_FY22[[#This Row],[75th]]-AAMC_Raw_Data_for_FY22[[#This Row],[Median]])/25)*10) + AAMC_Raw_Data_for_FY22[[#This Row],[Median]]","v":0},{"$f":"(((AAMC_Raw_Data_for_FY22[[#This Row],[75th]]-AAMC_Raw_Data_for_FY22[[#This Row],[Median]])/25)*15) + AAMC_Raw_Data_for_FY22[[#This Row],[Median]]","v":0},{"$f":"(((AAMC_Raw_Data_for_FY22[[#This Row],[75th]]-AAMC_Raw_Data_for_FY22[[#This Row],[Median]])/25)*20) + AAMC_Raw_Data_for_FY22[[#This Row],[Median]]","v":0},null,{"$f":"(((AAMC_Raw_Data_for_FY22[[#This Row],[75th]]-AAMC_Raw_Data_for_FY22[[#This Row],[Median]])/25)*30) + AAMC_Raw_Data_for_FY22[[#This Row],[Median]]","v":0},{"$f":"(((AAMC_Raw_Data_for_FY22[[#This Row],[75th]]-AAMC_Raw_Data_for_FY22[[#This Row],[Median]])/25)*35) + AAMC_Raw_Data_for_FY22[[#This Row],[Median]]","v":0},{"$f":"(((AAMC_Raw_Data_for_FY22[[#This Row],[75th]]-AAMC_Raw_Data_for_FY22[[#This Row],[Median]])/25)*40) + AAMC_Raw_Data_for_FY22[[#This Row],[Median]]","v":0}]
[{"$f":"AAMC_Raw_Data_for_FY22[[#This Row],[Source]]&AAMC_Raw_Data_for_FY22[[#This Row],[Type]]&AAMC_Raw_Data_for_FY22[[#This Row],[School Subset]]&AAMC_Raw_Data_for_FY22[[#This Row],[Rank]]&AAMC_Raw_Data_for_FY22[[#This Row],[Degree]]&AAMC_Raw_Data_for_FY22[[#This Row],[Department / Specialty]]&\"L\"","v":"AAMCAcademicPublicChairPhDPathology: ClinicalL"},"Pathology: Clinical",1,"AAMC","Academic","Public","Chair","PhD","2021-2022",null,{"$f":"(((AAMC_Raw_Data_for_FY22[[#This Row],[Median]]-AAMC_Raw_Data_for_FY22[[#This Row],[25th]])/25)*5) + AAMC_Raw_Data_for_FY22[[#This Row],[25th]]","v":0},{"$f":"(((AAMC_Raw_Data_for_FY22[[#This Row],[Median]]-AAMC_Raw_Data_for_FY22[[#This Row],[25th]])/25)*10) + AAMC_Raw_Data_for_FY22[[#This Row],[25th]]","v":0},{"$f":"(((AAMC_Raw_Data_for_FY22[[#This Row],[Median]]-AAMC_Raw_Data_for_FY22[[#This Row],[25th]])/25)*15) + AAMC_Raw_Data_for_FY22[[#This Row],[25th]]","v":0},{"$f":"(((AAMC_Raw_Data_for_FY22[[#This Row],[Median]]-AAMC_Raw_Data_for_FY22[[#This Row],[25th]])/25)*20) + AAMC_Raw_Data_for_FY22[[#This Row],[25th]]","v":0},null,{"$f":"(((AAMC_Raw_Data_for_FY22[[#This Row],[75th]]-AAMC_Raw_Data_for_FY22[[#This Row],[Median]])/25)*5) + AAMC_Raw_Data_for_FY22[[#This Row],[Median]]","v":0},{"$f":"(((AAMC_Raw_Data_for_FY22[[#This Row],[75th]]-AAMC_Raw_Data_for_FY22[[#This Row],[Median]])/25)*10) + AAMC_Raw_Data_for_FY22[[#This Row],[Median]]","v":0},{"$f":"(((AAMC_Raw_Data_for_FY22[[#This Row],[75th]]-AAMC_Raw_Data_for_FY22[[#This Row],[Median]])/25)*15) + AAMC_Raw_Data_for_FY22[[#This Row],[Median]]","v":0},{"$f":"(((AAMC_Raw_Data_for_FY22[[#This Row],[75th]]-AAMC_Raw_Data_for_FY22[[#This Row],[Median]])/25)*20) + AAMC_Raw_Data_for_FY22[[#This Row],[Median]]","v":0},null,{"$f":"(((AAMC_Raw_Data_for_FY22[[#This Row],[75th]]-AAMC_Raw_Data_for_FY22[[#This Row],[Median]])/25)*30) + AAMC_Raw_Data_for_FY22[[#This Row],[Median]]","v":0},{"$f":"(((AAMC_Raw_Data_for_FY22[[#This Row],[75th]]-AAMC_Raw_Data_for_FY22[[#This Row],[Median]])/25)*35) + AAMC_Raw_Data_for_FY22[[#This Row],[Median]]","v":0},{"$f":"(((AAMC_Raw_Data_for_FY22[[#This Row],[75th]]-AAMC_Raw_Data_for_FY22[[#This Row],[Median]])/25)*40) + AAMC_Raw_Data_for_FY22[[#This Row],[Median]]","v":0}]
[{"$f":"AAMC_Raw_Data_for_FY22[[#This Row],[Source]]&AAMC_Raw_Data_for_FY22[[#This Row],[Type]]&AAMC_Raw_Data_for_FY22[[#This Row],[School Subset]]&AAMC_Raw_Data_for_FY22[[#This Row],[Rank]]&AAMC_Raw_Data_for_FY22[[#This Row],[Degree]]&AAMC_Raw_Data_for_FY22[[#This Row],[Department / Specialty]]&\"L\"","v":"AAMCAcademicPublicInstructorPhDPathology: Other PathologyL"},"Pathology: Other Pathology",5,"AAMC","Academic","Public","Instructor","PhD","2021-2022",63403,{"$f":"(((AAMC_Raw_Data_for_FY22[[#This Row],[Median]]-AAMC_Raw_Data_for_FY22[[#This Row],[25th]])/25)*5) + AAMC_Raw_Data_for_FY22[[#This Row],[25th]]","v":65288},{"$f":"(((AAMC_Raw_Data_for_FY22[[#This Row],[Median]]-AAMC_Raw_Data_for_FY22[[#This Row],[25th]])/25)*10) + AAMC_Raw_Data_for_FY22[[#This Row],[25th]]","v":67173},{"$f":"(((AAMC_Raw_Data_for_FY22[[#This Row],[Median]]-AAMC_Raw_Data_for_FY22[[#This Row],[25th]])/25)*15) + AAMC_Raw_Data_for_FY22[[#This Row],[25th]]","v":69058},{"$f":"(((AAMC_Raw_Data_for_FY22[[#This Row],[Median]]-AAMC_Raw_Data_for_FY22[[#This Row],[25th]])/25)*20) + AAMC_Raw_Data_for_FY22[[#This Row],[25th]]","v":70943},72828,{"$f":"(((AAMC_Raw_Data_for_FY22[[#This Row],[75th]]-AAMC_Raw_Data_for_FY22[[#This Row],[Median]])/25)*5) + AAMC_Raw_Data_for_FY22[[#This Row],[Median]]","v":73418.399999999994},{"$f":"(((AAMC_Raw_Data_for_FY22[[#This Row],[75th]]-AAMC_Raw_Data_for_FY22[[#This Row],[Median]])/25)*10) + AAMC_Raw_Data_for_FY22[[#This Row],[Median]]","v":74008.800000000003},{"$f":"(((AAMC_Raw_Data_for_FY22[[#This Row],[75th]]-AAMC_Raw_Data_for_FY22[[#This Row],[Median]])/25)*15) + AAMC_Raw_Data_for_FY22[[#This Row],[Median]]","v":74599.199999999997},{"$f":"(((AAMC_Raw_Data_for_FY22[[#This Row],[75th]]-AAMC_Raw_Data_for_FY22[[#This Row],[Median]])/25)*20) + AAMC_Raw_Data_for_FY22[[#This Row],[Median]]","v":75189.600000000006},75780,{"$f":"(((AAMC_Raw_Data_for_FY22[[#This Row],[75th]]-AAMC_Raw_Data_for_FY22[[#This Row],[Median]])/25)*30) + AAMC_Raw_Data_for_FY22[[#This Row],[Median]]","v":76370.399999999994},{"$f":"(((AAMC_Raw_Data_for_FY22[[#This Row],[75th]]-AAMC_Raw_Data_for_FY22[[#This Row],[Median]])/25)*35) + AAMC_Raw_Data_for_FY22[[#This Row],[Median]]","v":76960.800000000003},{"$f":"(((AAMC_Raw_Data_for_FY22[[#This Row],[75th]]-AAMC_Raw_Data_for_FY22[[#This Row],[Median]])/25)*40) + AAMC_Raw_Data_for_FY22[[#This Row],[Median]]","v":77551.199999999997}]
[{"$f":"AAMC_Raw_Data_for_FY22[[#This Row],[Source]]&AAMC_Raw_Data_for_FY22[[#This Row],[Type]]&AAMC_Raw_Data_for_FY22[[#This Row],[School Subset]]&AAMC_Raw_Data_for_FY22[[#This Row],[Rank]]&AAMC_Raw_Data_for_FY22[[#This Row],[Degree]]&AAMC_Raw_Data_for_FY22[[#This Row],[Department / Specialty]]&\"L\"","v":"AAMCAcademicPublicAssistantPhDPathology: Other PathologyL"},"Pathology: Other Pathology",4,"AAMC","Academic","Public","Assistant","PhD","2021-2022",91967,{"$f":"(((AAMC_Raw_Data_for_FY22[[#This Row],[Median]]-AAMC_Raw_Data_for_FY22[[#This Row],[25th]])/25)*5) + AAMC_Raw_Data_for_FY22[[#This Row],[25th]]","v":96070.8},{"$f":"(((AAMC_Raw_Data_for_FY22[[#This Row],[Median]]-AAMC_Raw_Data_for_FY22[[#This Row],[25th]])/25)*10) + AAMC_Raw_Data_for_FY22[[#This Row],[25th]]","v":100174.6},{"$f":"(((AAMC_Raw_Data_for_FY22[[#This Row],[Median]]-AAMC_Raw_Data_for_FY22[[#This Row],[25th]])/25)*15) + AAMC_Raw_Data_for_FY22[[#This Row],[25th]]","v":104278.39999999999},{"$f":"(((AAMC_Raw_Data_for_FY22[[#This Row],[Median]]-AAMC_Raw_Data_for_FY22[[#This Row],[25th]])/25)*20) + AAMC_Raw_Data_for_FY22[[#This Row],[25th]]","v":108382.2},112486,{"$f":"(((AAMC_Raw_Data_for_FY22[[#This Row],[75th]]-AAMC_Raw_Data_for_FY22[[#This Row],[Median]])/25)*5) + AAMC_Raw_Data_for_FY22[[#This Row],[Median]]","v":116510.39999999999},{"$f":"(((AAMC_Raw_Data_for_FY22[[#This Row],[75th]]-AAMC_Raw_Data_for_FY22[[#This Row],[Median]])/25)*10) + AAMC_Raw_Data_for_FY22[[#This Row],[Median]]","v":120534.8},{"$f":"(((AAMC_Raw_Data_for_FY22[[#This Row],[75th]]-AAMC_Raw_Data_for_FY22[[#This Row],[Median]])/25)*15) + AAMC_Raw_Data_for_FY22[[#This Row],[Median]]","v":124559.2},{"$f":"(((AAMC_Raw_Data_for_FY22[[#This Row],[75th]]-AAMC_Raw_Data_for_FY22[[#This Row],[Median]])/25)*20) + AAMC_Raw_Data_for_FY22[[#This Row],[Median]]","v":128583.6},132608,{"$f":"(((AAMC_Raw_Data_for_FY22[[#This Row],[75th]]-AAMC_Raw_Data_for_FY22[[#This Row],[Median]])/25)*30) + AAMC_Raw_Data_for_FY22[[#This Row],[Median]]","v":136632.4},{"$f":"(((AAMC_Raw_Data_for_FY22[[#This Row],[75th]]-AAMC_Raw_Data_for_FY22[[#This Row],[Median]])/25)*35) + AAMC_Raw_Data_for_FY22[[#This Row],[Median]]","v":140656.79999999999},{"$f":"(((AAMC_Raw_Data_for_FY22[[#This Row],[75th]]-AAMC_Raw_Data_for_FY22[[#This Row],[Median]])/25)*40) + AAMC_Raw_Data_for_FY22[[#This Row],[Median]]","v":144681.20000000001}]
[{"$f":"AAMC_Raw_Data_for_FY22[[#This Row],[Source]]&AAMC_Raw_Data_for_FY22[[#This Row],[Type]]&AAMC_Raw_Data_for_FY22[[#This Row],[School Subset]]&AAMC_Raw_Data_for_FY22[[#This Row],[Rank]]&AAMC_Raw_Data_for_FY22[[#This Row],[Degree]]&AAMC_Raw_Data_for_FY22[[#This Row],[Department / Specialty]]&\"L\"","v":"AAMCAcademicPublicAssociatePhDPathology: Other PathologyL"},"Pathology: Other Pathology",3,"AAMC","Academic","Public","Associate","PhD","2021-2022",110524,{"$f":"(((AAMC_Raw_Data_for_FY22[[#This Row],[Median]]-AAMC_Raw_Data_for_FY22[[#This Row],[25th]])/25)*5) + AAMC_Raw_Data_for_FY22[[#This Row],[25th]]","v":115171.4},{"$f":"(((AAMC_Raw_Data_for_FY22[[#This Row],[Median]]-AAMC_Raw_Data_for_FY22[[#This Row],[25th]])/25)*10) + AAMC_Raw_Data_for_FY22[[#This Row],[25th]]","v":119818.8},{"$f":"(((AAMC_Raw_Data_for_FY22[[#This Row],[Median]]-AAMC_Raw_Data_for_FY22[[#This Row],[25th]])/25)*15) + AAMC_Raw_Data_for_FY22[[#This Row],[25th]]","v":124466.2},{"$f":"(((AAMC_Raw_Data_for_FY22[[#This Row],[Median]]-AAMC_Raw_Data_for_FY22[[#This Row],[25th]])/25)*20) + AAMC_Raw_Data_for_FY22[[#This Row],[25th]]","v":129113.60000000001},133761,{"$f":"(((AAMC_Raw_Data_for_FY22[[#This Row],[75th]]-AAMC_Raw_Data_for_FY22[[#This Row],[Median]])/25)*5) + AAMC_Raw_Data_for_FY22[[#This Row],[Median]]","v":137494.79999999999},{"$f":"(((AAMC_Raw_Data_for_FY22[[#This Row],[75th]]-AAMC_Raw_Data_for_FY22[[#This Row],[Median]])/25)*10) + AAMC_Raw_Data_for_FY22[[#This Row],[Median]]","v":141228.6},{"$f":"(((AAMC_Raw_Data_for_FY22[[#This Row],[75th]]-AAMC_Raw_Data_for_FY22[[#This Row],[Median]])/25)*15) + AAMC_Raw_Data_for_FY22[[#This Row],[Median]]","v":144962.4},{"$f":"(((AAMC_Raw_Data_for_FY22[[#This Row],[75th]]-AAMC_Raw_Data_for_FY22[[#This Row],[Median]])/25)*20) + AAMC_Raw_Data_for_FY22[[#This Row],[Median]]","v":148696.20000000001},152430,{"$f":"(((AAMC_Raw_Data_for_FY22[[#This Row],[75th]]-AAMC_Raw_Data_for_FY22[[#This Row],[Median]])/25)*30) + AAMC_Raw_Data_for_FY22[[#This Row],[Median]]","v":156163.79999999999},{"$f":"(((AAMC_Raw_Data_for_FY22[[#This Row],[75th]]-AAMC_Raw_Data_for_FY22[[#This Row],[Median]])/25)*35) + AAMC_Raw_Data_for_FY22[[#This Row],[Median]]","v":159897.60000000001},{"$f":"(((AAMC_Raw_Data_for_FY22[[#This Row],[75th]]-AAMC_Raw_Data_for_FY22[[#This Row],[Median]])/25)*40) + AAMC_Raw_Data_for_FY22[[#This Row],[Median]]","v":163631.4}]
[{"$f":"AAMC_Raw_Data_for_FY22[[#This Row],[Source]]&AAMC_Raw_Data_for_FY22[[#This Row],[Type]]&AAMC_Raw_Data_for_FY22[[#This Row],[School Subset]]&AAMC_Raw_Data_for_FY22[[#This Row],[Rank]]&AAMC_Raw_Data_for_FY22[[#This Row],[Degree]]&AAMC_Raw_Data_for_FY22[[#This Row],[Department / Specialty]]&\"L\"","v":"AAMCAcademicPublicProfessorPhDPathology: Other PathologyL"},"Pathology: Other Pathology",2,"AAMC","Academic","Public","Professor","PhD","2021-2022",180037,{"$f":"(((AAMC_Raw_Data_for_FY22[[#This Row],[Median]]-AAMC_Raw_Data_for_FY22[[#This Row],[25th]])/25)*5) + AAMC_Raw_Data_for_FY22[[#This Row],[25th]]","v":184538.6},{"$f":"(((AAMC_Raw_Data_for_FY22[[#This Row],[Median]]-AAMC_Raw_Data_for_FY22[[#This Row],[25th]])/25)*10) + AAMC_Raw_Data_for_FY22[[#This Row],[25th]]","v":189040.2},{"$f":"(((AAMC_Raw_Data_for_FY22[[#This Row],[Median]]-AAMC_Raw_Data_for_FY22[[#This Row],[25th]])/25)*15) + AAMC_Raw_Data_for_FY22[[#This Row],[25th]]","v":193541.8},{"$f":"(((AAMC_Raw_Data_for_FY22[[#This Row],[Median]]-AAMC_Raw_Data_for_FY22[[#This Row],[25th]])/25)*20) + AAMC_Raw_Data_for_FY22[[#This Row],[25th]]","v":198043.4},202545,{"$f":"(((AAMC_Raw_Data_for_FY22[[#This Row],[75th]]-AAMC_Raw_Data_for_FY22[[#This Row],[Median]])/25)*5) + AAMC_Raw_Data_for_FY22[[#This Row],[Median]]","v":209214},{"$f":"(((AAMC_Raw_Data_for_FY22[[#This Row],[75th]]-AAMC_Raw_Data_for_FY22[[#This Row],[Median]])/25)*10) + AAMC_Raw_Data_for_FY22[[#This Row],[Median]]","v":215883},{"$f":"(((AAMC_Raw_Data_for_FY22[[#This Row],[75th]]-AAMC_Raw_Data_for_FY22[[#This Row],[Median]])/25)*15) + AAMC_Raw_Data_for_FY22[[#This Row],[Median]]","v":222552},{"$f":"(((AAMC_Raw_Data_for_FY22[[#This Row],[75th]]-AAMC_Raw_Data_for_FY22[[#This Row],[Median]])/25)*20) + AAMC_Raw_Data_for_FY22[[#This Row],[Median]]","v":229221},235890,{"$f":"(((AAMC_Raw_Data_for_FY22[[#This Row],[75th]]-AAMC_Raw_Data_for_FY22[[#This Row],[Median]])/25)*30) + AAMC_Raw_Data_for_FY22[[#This Row],[Median]]","v":242559},{"$f":"(((AAMC_Raw_Data_for_FY22[[#This Row],[75th]]-AAMC_Raw_Data_for_FY22[[#This Row],[Median]])/25)*35) + AAMC_Raw_Data_for_FY22[[#This Row],[Median]]","v":249228},{"$f":"(((AAMC_Raw_Data_for_FY22[[#This Row],[75th]]-AAMC_Raw_Data_for_FY22[[#This Row],[Median]])/25)*40) + AAMC_Raw_Data_for_FY22[[#This Row],[Median]]","v":255897}]
[{"$f":"AAMC_Raw_Data_for_FY22[[#This Row],[Source]]&AAMC_Raw_Data_for_FY22[[#This Row],[Type]]&AAMC_Raw_Data_for_FY22[[#This Row],[School Subset]]&AAMC_Raw_Data_for_FY22[[#This Row],[Rank]]&AAMC_Raw_Data_for_FY22[[#This Row],[Degree]]&AAMC_Raw_Data_for_FY22[[#This Row],[Department / Specialty]]&\"L\"","v":"AAMCAcademicPublicChiefPhDPathology: Other PathologyL"},"Pathology: Other Pathology",6,"AAMC","Academic","Public","Chief","PhD","2021-2022",null,{"$f":"(((AAMC_Raw_Data_for_FY22[[#This Row],[Median]]-AAMC_Raw_Data_for_FY22[[#This Row],[25th]])/25)*5) + AAMC_Raw_Data_for_FY22[[#This Row],[25th]]","v":0},{"$f":"(((AAMC_Raw_Data_for_FY22[[#This Row],[Median]]-AAMC_Raw_Data_for_FY22[[#This Row],[25th]])/25)*10) + AAMC_Raw_Data_for_FY22[[#This Row],[25th]]","v":0},{"$f":"(((AAMC_Raw_Data_for_FY22[[#This Row],[Median]]-AAMC_Raw_Data_for_FY22[[#This Row],[25th]])/25)*15) + AAMC_Raw_Data_for_FY22[[#This Row],[25th]]","v":0},{"$f":"(((AAMC_Raw_Data_for_FY22[[#This Row],[Median]]-AAMC_Raw_Data_for_FY22[[#This Row],[25th]])/25)*20) + AAMC_Raw_Data_for_FY22[[#This Row],[25th]]","v":0},null,{"$f":"(((AAMC_Raw_Data_for_FY22[[#This Row],[75th]]-AAMC_Raw_Data_for_FY22[[#This Row],[Median]])/25)*5) + AAMC_Raw_Data_for_FY22[[#This Row],[Median]]","v":0},{"$f":"(((AAMC_Raw_Data_for_FY22[[#This Row],[75th]]-AAMC_Raw_Data_for_FY22[[#This Row],[Median]])/25)*10) + AAMC_Raw_Data_for_FY22[[#This Row],[Median]]","v":0},{"$f":"(((AAMC_Raw_Data_for_FY22[[#This Row],[75th]]-AAMC_Raw_Data_for_FY22[[#This Row],[Median]])/25)*15) + AAMC_Raw_Data_for_FY22[[#This Row],[Median]]","v":0},{"$f":"(((AAMC_Raw_Data_for_FY22[[#This Row],[75th]]-AAMC_Raw_Data_for_FY22[[#This Row],[Median]])/25)*20) + AAMC_Raw_Data_for_FY22[[#This Row],[Median]]","v":0},null,{"$f":"(((AAMC_Raw_Data_for_FY22[[#This Row],[75th]]-AAMC_Raw_Data_for_FY22[[#This Row],[Median]])/25)*30) + AAMC_Raw_Data_for_FY22[[#This Row],[Median]]","v":0},{"$f":"(((AAMC_Raw_Data_for_FY22[[#This Row],[75th]]-AAMC_Raw_Data_for_FY22[[#This Row],[Median]])/25)*35) + AAMC_Raw_Data_for_FY22[[#This Row],[Median]]","v":0},{"$f":"(((AAMC_Raw_Data_for_FY22[[#This Row],[75th]]-AAMC_Raw_Data_for_FY22[[#This Row],[Median]])/25)*40) + AAMC_Raw_Data_for_FY22[[#This Row],[Median]]","v":0}]
[{"$f":"AAMC_Raw_Data_for_FY22[[#This Row],[Source]]&AAMC_Raw_Data_for_FY22[[#This Row],[Type]]&AAMC_Raw_Data_for_FY22[[#This Row],[School Subset]]&AAMC_Raw_Data_for_FY22[[#This Row],[Rank]]&AAMC_Raw_Data_for_FY22[[#This Row],[Degree]]&AAMC_Raw_Data_for_FY22[[#This Row],[Department / Specialty]]&\"L\"","v":"AAMCAcademicPublicChairPhDPathology: Other PathologyL"},"Pathology: Other Pathology",1,"AAMC","Academic","Public","Chair","PhD","2021-2022",null,{"$f":"(((AAMC_Raw_Data_for_FY22[[#This Row],[Median]]-AAMC_Raw_Data_for_FY22[[#This Row],[25th]])/25)*5) + AAMC_Raw_Data_for_FY22[[#This Row],[25th]]","v":0},{"$f":"(((AAMC_Raw_Data_for_FY22[[#This Row],[Median]]-AAMC_Raw_Data_for_FY22[[#This Row],[25th]])/25)*10) + AAMC_Raw_Data_for_FY22[[#This Row],[25th]]","v":0},{"$f":"(((AAMC_Raw_Data_for_FY22[[#This Row],[Median]]-AAMC_Raw_Data_for_FY22[[#This Row],[25th]])/25)*15) + AAMC_Raw_Data_for_FY22[[#This Row],[25th]]","v":0},{"$f":"(((AAMC_Raw_Data_for_FY22[[#This Row],[Median]]-AAMC_Raw_Data_for_FY22[[#This Row],[25th]])/25)*20) + AAMC_Raw_Data_for_FY22[[#This Row],[25th]]","v":0},null,{"$f":"(((AAMC_Raw_Data_for_FY22[[#This Row],[75th]]-AAMC_Raw_Data_for_FY22[[#This Row],[Median]])/25)*5) + AAMC_Raw_Data_for_FY22[[#This Row],[Median]]","v":0},{"$f":"(((AAMC_Raw_Data_for_FY22[[#This Row],[75th]]-AAMC_Raw_Data_for_FY22[[#This Row],[Median]])/25)*10) + AAMC_Raw_Data_for_FY22[[#This Row],[Median]]","v":0},{"$f":"(((AAMC_Raw_Data_for_FY22[[#This Row],[75th]]-AAMC_Raw_Data_for_FY22[[#This Row],[Median]])/25)*15) + AAMC_Raw_Data_for_FY22[[#This Row],[Median]]","v":0},{"$f":"(((AAMC_Raw_Data_for_FY22[[#This Row],[75th]]-AAMC_Raw_Data_for_FY22[[#This Row],[Median]])/25)*20) + AAMC_Raw_Data_for_FY22[[#This Row],[Median]]","v":0},null,{"$f":"(((AAMC_Raw_Data_for_FY22[[#This Row],[75th]]-AAMC_Raw_Data_for_FY22[[#This Row],[Median]])/25)*30) + AAMC_Raw_Data_for_FY22[[#This Row],[Median]]","v":0},{"$f":"(((AAMC_Raw_Data_for_FY22[[#This Row],[75th]]-AAMC_Raw_Data_for_FY22[[#This Row],[Median]])/25)*35) + AAMC_Raw_Data_for_FY22[[#This Row],[Median]]","v":0},{"$f":"(((AAMC_Raw_Data_for_FY22[[#This Row],[75th]]-AAMC_Raw_Data_for_FY22[[#This Row],[Median]])/25)*40) + AAMC_Raw_Data_for_FY22[[#This Row],[Median]]","v":0}]
[{"$f":"AAMC_Raw_Data_for_FY22[[#This Row],[Source]]&AAMC_Raw_Data_for_FY22[[#This Row],[Type]]&AAMC_Raw_Data_for_FY22[[#This Row],[School Subset]]&AAMC_Raw_Data_for_FY22[[#This Row],[Rank]]&AAMC_Raw_Data_for_FY22[[#This Row],[Degree]]&AAMC_Raw_Data_for_FY22[[#This Row],[Department / Specialty]]&\"L\"","v":"AAMCAcademicPublicInstructorPhDPediatrics TotalL"},"Pediatrics Total",5,"AAMC","Academic","Public","Instructor","PhD","2021-2022",75639,{"$f":"(((AAMC_Raw_Data_for_FY22[[#This Row],[Median]]-AAMC_Raw_Data_for_FY22[[#This Row],[25th]])/25)*5) + AAMC_Raw_Data_for_FY22[[#This Row],[25th]]","v":79852.600000000006},{"$f":"(((AAMC_Raw_Data_for_FY22[[#This Row],[Median]]-AAMC_Raw_Data_for_FY22[[#This Row],[25th]])/25)*10) + AAMC_Raw_Data_for_FY22[[#This Row],[25th]]","v":84066.2},{"$f":"(((AAMC_Raw_Data_for_FY22[[#This Row],[Median]]-AAMC_Raw_Data_for_FY22[[#This Row],[25th]])/25)*15) + AAMC_Raw_Data_for_FY22[[#This Row],[25th]]","v":88279.8},{"$f":"(((AAMC_Raw_Data_for_FY22[[#This Row],[Median]]-AAMC_Raw_Data_for_FY22[[#This Row],[25th]])/25)*20) + AAMC_Raw_Data_for_FY22[[#This Row],[25th]]","v":92493.4},96707,{"$f":"(((AAMC_Raw_Data_for_FY22[[#This Row],[75th]]-AAMC_Raw_Data_for_FY22[[#This Row],[Median]])/25)*5) + AAMC_Raw_Data_for_FY22[[#This Row],[Median]]","v":100401},{"$f":"(((AAMC_Raw_Data_for_FY22[[#This Row],[75th]]-AAMC_Raw_Data_for_FY22[[#This Row],[Median]])/25)*10) + AAMC_Raw_Data_for_FY22[[#This Row],[Median]]","v":104095},{"$f":"(((AAMC_Raw_Data_for_FY22[[#This Row],[75th]]-AAMC_Raw_Data_for_FY22[[#This Row],[Median]])/25)*15) + AAMC_Raw_Data_for_FY22[[#This Row],[Median]]","v":107789},{"$f":"(((AAMC_Raw_Data_for_FY22[[#This Row],[75th]]-AAMC_Raw_Data_for_FY22[[#This Row],[Median]])/25)*20) + AAMC_Raw_Data_for_FY22[[#This Row],[Median]]","v":111483},115177,{"$f":"(((AAMC_Raw_Data_for_FY22[[#This Row],[75th]]-AAMC_Raw_Data_for_FY22[[#This Row],[Median]])/25)*30) + AAMC_Raw_Data_for_FY22[[#This Row],[Median]]","v":118871},{"$f":"(((AAMC_Raw_Data_for_FY22[[#This Row],[75th]]-AAMC_Raw_Data_for_FY22[[#This Row],[Median]])/25)*35) + AAMC_Raw_Data_for_FY22[[#This Row],[Median]]","v":122565},{"$f":"(((AAMC_Raw_Data_for_FY22[[#This Row],[75th]]-AAMC_Raw_Data_for_FY22[[#This Row],[Median]])/25)*40) + AAMC_Raw_Data_for_FY22[[#This Row],[Median]]","v":126259}]
[{"$f":"AAMC_Raw_Data_for_FY22[[#This Row],[Source]]&AAMC_Raw_Data_for_FY22[[#This Row],[Type]]&AAMC_Raw_Data_for_FY22[[#This Row],[School Subset]]&AAMC_Raw_Data_for_FY22[[#This Row],[Rank]]&AAMC_Raw_Data_for_FY22[[#This Row],[Degree]]&AAMC_Raw_Data_for_FY22[[#This Row],[Department / Specialty]]&\"L\"","v":"AAMCAcademicPublicAssistantPhDPediatrics TotalL"},"Pediatrics Total",4,"AAMC","Academic","Public","Assistant","PhD","2021-2022",95347,{"$f":"(((AAMC_Raw_Data_for_FY22[[#This Row],[Median]]-AAMC_Raw_Data_for_FY22[[#This Row],[25th]])/25)*5) + AAMC_Raw_Data_for_FY22[[#This Row],[25th]]","v":97510},{"$f":"(((AAMC_Raw_Data_for_FY22[[#This Row],[Median]]-AAMC_Raw_Data_for_FY22[[#This Row],[25th]])/25)*10) + AAMC_Raw_Data_for_FY22[[#This Row],[25th]]","v":99673},{"$f":"(((AAMC_Raw_Data_for_FY22[[#This Row],[Median]]-AAMC_Raw_Data_for_FY22[[#This Row],[25th]])/25)*15) + AAMC_Raw_Data_for_FY22[[#This Row],[25th]]","v":101836},{"$f":"(((AAMC_Raw_Data_for_FY22[[#This Row],[Median]]-AAMC_Raw_Data_for_FY22[[#This Row],[25th]])/25)*20) + AAMC_Raw_Data_for_FY22[[#This Row],[25th]]","v":103999},106162,{"$f":"(((AAMC_Raw_Data_for_FY22[[#This Row],[75th]]-AAMC_Raw_Data_for_FY22[[#This Row],[Median]])/25)*5) + AAMC_Raw_Data_for_FY22[[#This Row],[Median]]","v":109021},{"$f":"(((AAMC_Raw_Data_for_FY22[[#This Row],[75th]]-AAMC_Raw_Data_for_FY22[[#This Row],[Median]])/25)*10) + AAMC_Raw_Data_for_FY22[[#This Row],[Median]]","v":111880},{"$f":"(((AAMC_Raw_Data_for_FY22[[#This Row],[75th]]-AAMC_Raw_Data_for_FY22[[#This Row],[Median]])/25)*15) + AAMC_Raw_Data_for_FY22[[#This Row],[Median]]","v":114739},{"$f":"(((AAMC_Raw_Data_for_FY22[[#This Row],[75th]]-AAMC_Raw_Data_for_FY22[[#This Row],[Median]])/25)*20) + AAMC_Raw_Data_for_FY22[[#This Row],[Median]]","v":117598},120457,{"$f":"(((AAMC_Raw_Data_for_FY22[[#This Row],[75th]]-AAMC_Raw_Data_for_FY22[[#This Row],[Median]])/25)*30) + AAMC_Raw_Data_for_FY22[[#This Row],[Median]]","v":123316},{"$f":"(((AAMC_Raw_Data_for_FY22[[#This Row],[75th]]-AAMC_Raw_Data_for_FY22[[#This Row],[Median]])/25)*35) + AAMC_Raw_Data_for_FY22[[#This Row],[Median]]","v":126175},{"$f":"(((AAMC_Raw_Data_for_FY22[[#This Row],[75th]]-AAMC_Raw_Data_for_FY22[[#This Row],[Median]])/25)*40) + AAMC_Raw_Data_for_FY22[[#This Row],[Median]]","v":129034}]
[{"$f":"AAMC_Raw_Data_for_FY22[[#This Row],[Source]]&AAMC_Raw_Data_for_FY22[[#This Row],[Type]]&AAMC_Raw_Data_for_FY22[[#This Row],[School Subset]]&AAMC_Raw_Data_for_FY22[[#This Row],[Rank]]&AAMC_Raw_Data_for_FY22[[#This Row],[Degree]]&AAMC_Raw_Data_for_FY22[[#This Row],[Department / Specialty]]&\"L\"","v":"AAMCAcademicPublicAssociatePhDPediatrics TotalL"},"Pediatrics Total",3,"AAMC","Academic","Public","Associate","PhD","2021-2022",121931,{"$f":"(((AAMC_Raw_Data_for_FY22[[#This Row],[Median]]-AAMC_Raw_Data_for_FY22[[#This Row],[25th]])/25)*5) + AAMC_Raw_Data_for_FY22[[#This Row],[25th]]","v":124469},{"$f":"(((AAMC_Raw_Data_for_FY22[[#This Row],[Median]]-AAMC_Raw_Data_for_FY22[[#This Row],[25th]])/25)*10) + AAMC_Raw_Data_for_FY22[[#This Row],[25th]]","v":127007},{"$f":"(((AAMC_Raw_Data_for_FY22[[#This Row],[Median]]-AAMC_Raw_Data_for_FY22[[#This Row],[25th]])/25)*15) + AAMC_Raw_Data_for_FY22[[#This Row],[25th]]","v":129545},{"$f":"(((AAMC_Raw_Data_for_FY22[[#This Row],[Median]]-AAMC_Raw_Data_for_FY22[[#This Row],[25th]])/25)*20) + AAMC_Raw_Data_for_FY22[[#This Row],[25th]]","v":132083},134621,{"$f":"(((AAMC_Raw_Data_for_FY22[[#This Row],[75th]]-AAMC_Raw_Data_for_FY22[[#This Row],[Median]])/25)*5) + AAMC_Raw_Data_for_FY22[[#This Row],[Median]]","v":139107.4},{"$f":"(((AAMC_Raw_Data_for_FY22[[#This Row],[75th]]-AAMC_Raw_Data_for_FY22[[#This Row],[Median]])/25)*10) + AAMC_Raw_Data_for_FY22[[#This Row],[Median]]","v":143593.79999999999},{"$f":"(((AAMC_Raw_Data_for_FY22[[#This Row],[75th]]-AAMC_Raw_Data_for_FY22[[#This Row],[Median]])/25)*15) + AAMC_Raw_Data_for_FY22[[#This Row],[Median]]","v":148080.20000000001},{"$f":"(((AAMC_Raw_Data_for_FY22[[#This Row],[75th]]-AAMC_Raw_Data_for_FY22[[#This Row],[Median]])/25)*20) + AAMC_Raw_Data_for_FY22[[#This Row],[Median]]","v":152566.6},157053,{"$f":"(((AAMC_Raw_Data_for_FY22[[#This Row],[75th]]-AAMC_Raw_Data_for_FY22[[#This Row],[Median]])/25)*30) + AAMC_Raw_Data_for_FY22[[#This Row],[Median]]","v":161539.4},{"$f":"(((AAMC_Raw_Data_for_FY22[[#This Row],[75th]]-AAMC_Raw_Data_for_FY22[[#This Row],[Median]])/25)*35) + AAMC_Raw_Data_for_FY22[[#This Row],[Median]]","v":166025.79999999999},{"$f":"(((AAMC_Raw_Data_for_FY22[[#This Row],[75th]]-AAMC_Raw_Data_for_FY22[[#This Row],[Median]])/25)*40) + AAMC_Raw_Data_for_FY22[[#This Row],[Median]]","v":170512.2}]
[{"$f":"AAMC_Raw_Data_for_FY22[[#This Row],[Source]]&AAMC_Raw_Data_for_FY22[[#This Row],[Type]]&AAMC_Raw_Data_for_FY22[[#This Row],[School Subset]]&AAMC_Raw_Data_for_FY22[[#This Row],[Rank]]&AAMC_Raw_Data_for_FY22[[#This Row],[Degree]]&AAMC_Raw_Data_for_FY22[[#This Row],[Department / Specialty]]&\"L\"","v":"AAMCAcademicPublicProfessorPhDPediatrics TotalL"},"Pediatrics Total",2,"AAMC","Academic","Public","Professor","PhD","2021-2022",175100,{"$f":"(((AAMC_Raw_Data_for_FY22[[#This Row],[Median]]-AAMC_Raw_Data_for_FY22[[#This Row],[25th]])/25)*5) + AAMC_Raw_Data_for_FY22[[#This Row],[25th]]","v":181693.6},{"$f":"(((AAMC_Raw_Data_for_FY22[[#This Row],[Median]]-AAMC_Raw_Data_for_FY22[[#This Row],[25th]])/25)*10) + AAMC_Raw_Data_for_FY22[[#This Row],[25th]]","v":188287.2},{"$f":"(((AAMC_Raw_Data_for_FY22[[#This Row],[Median]]-AAMC_Raw_Data_for_FY22[[#This Row],[25th]])/25)*15) + AAMC_Raw_Data_for_FY22[[#This Row],[25th]]","v":194880.8},{"$f":"(((AAMC_Raw_Data_for_FY22[[#This Row],[Median]]-AAMC_Raw_Data_for_FY22[[#This Row],[25th]])/25)*20) + AAMC_Raw_Data_for_FY22[[#This Row],[25th]]","v":201474.4},208068,{"$f":"(((AAMC_Raw_Data_for_FY22[[#This Row],[75th]]-AAMC_Raw_Data_for_FY22[[#This Row],[Median]])/25)*5) + AAMC_Raw_Data_for_FY22[[#This Row],[Median]]","v":215126.39999999999},{"$f":"(((AAMC_Raw_Data_for_FY22[[#This Row],[75th]]-AAMC_Raw_Data_for_FY22[[#This Row],[Median]])/25)*10) + AAMC_Raw_Data_for_FY22[[#This Row],[Median]]","v":222184.8},{"$f":"(((AAMC_Raw_Data_for_FY22[[#This Row],[75th]]-AAMC_Raw_Data_for_FY22[[#This Row],[Median]])/25)*15) + AAMC_Raw_Data_for_FY22[[#This Row],[Median]]","v":229243.2},{"$f":"(((AAMC_Raw_Data_for_FY22[[#This Row],[75th]]-AAMC_Raw_Data_for_FY22[[#This Row],[Median]])/25)*20) + AAMC_Raw_Data_for_FY22[[#This Row],[Median]]","v":236301.6},243360,{"$f":"(((AAMC_Raw_Data_for_FY22[[#This Row],[75th]]-AAMC_Raw_Data_for_FY22[[#This Row],[Median]])/25)*30) + AAMC_Raw_Data_for_FY22[[#This Row],[Median]]","v":250418.4},{"$f":"(((AAMC_Raw_Data_for_FY22[[#This Row],[75th]]-AAMC_Raw_Data_for_FY22[[#This Row],[Median]])/25)*35) + AAMC_Raw_Data_for_FY22[[#This Row],[Median]]","v":257476.8},{"$f":"(((AAMC_Raw_Data_for_FY22[[#This Row],[75th]]-AAMC_Raw_Data_for_FY22[[#This Row],[Median]])/25)*40) + AAMC_Raw_Data_for_FY22[[#This Row],[Median]]","v":264535.2}]
[{"$f":"AAMC_Raw_Data_for_FY22[[#This Row],[Source]]&AAMC_Raw_Data_for_FY22[[#This Row],[Type]]&AAMC_Raw_Data_for_FY22[[#This Row],[School Subset]]&AAMC_Raw_Data_for_FY22[[#This Row],[Rank]]&AAMC_Raw_Data_for_FY22[[#This Row],[Degree]]&AAMC_Raw_Data_for_FY22[[#This Row],[Department / Specialty]]&\"L\"","v":"AAMCAcademicPublicChiefPhDPediatrics TotalL"},"Pediatrics Total",6,"AAMC","Academic","Public","Chief","PhD","2021-2022",197563,{"$f":"(((AAMC_Raw_Data_for_FY22[[#This Row],[Median]]-AAMC_Raw_Data_for_FY22[[#This Row],[25th]])/25)*5) + AAMC_Raw_Data_for_FY22[[#This Row],[25th]]","v":207442},{"$f":"(((AAMC_Raw_Data_for_FY22[[#This Row],[Median]]-AAMC_Raw_Data_for_FY22[[#This Row],[25th]])/25)*10) + AAMC_Raw_Data_for_FY22[[#This Row],[25th]]","v":217321},{"$f":"(((AAMC_Raw_Data_for_FY22[[#This Row],[Median]]-AAMC_Raw_Data_for_FY22[[#This Row],[25th]])/25)*15) + AAMC_Raw_Data_for_FY22[[#This Row],[25th]]","v":227200},{"$f":"(((AAMC_Raw_Data_for_FY22[[#This Row],[Median]]-AAMC_Raw_Data_for_FY22[[#This Row],[25th]])/25)*20) + AAMC_Raw_Data_for_FY22[[#This Row],[25th]]","v":237079},246958,{"$f":"(((AAMC_Raw_Data_for_FY22[[#This Row],[75th]]-AAMC_Raw_Data_for_FY22[[#This Row],[Median]])/25)*5) + AAMC_Raw_Data_for_FY22[[#This Row],[Median]]","v":254492.4},{"$f":"(((AAMC_Raw_Data_for_FY22[[#This Row],[75th]]-AAMC_Raw_Data_for_FY22[[#This Row],[Median]])/25)*10) + AAMC_Raw_Data_for_FY22[[#This Row],[Median]]","v":262026.8},{"$f":"(((AAMC_Raw_Data_for_FY22[[#This Row],[75th]]-AAMC_Raw_Data_for_FY22[[#This Row],[Median]])/25)*15) + AAMC_Raw_Data_for_FY22[[#This Row],[Median]]","v":269561.2},{"$f":"(((AAMC_Raw_Data_for_FY22[[#This Row],[75th]]-AAMC_Raw_Data_for_FY22[[#This Row],[Median]])/25)*20) + AAMC_Raw_Data_for_FY22[[#This Row],[Median]]","v":277095.59999999998},284630,{"$f":"(((AAMC_Raw_Data_for_FY22[[#This Row],[75th]]-AAMC_Raw_Data_for_FY22[[#This Row],[Median]])/25)*30) + AAMC_Raw_Data_for_FY22[[#This Row],[Median]]","v":292164.40000000002},{"$f":"(((AAMC_Raw_Data_for_FY22[[#This Row],[75th]]-AAMC_Raw_Data_for_FY22[[#This Row],[Median]])/25)*35) + AAMC_Raw_Data_for_FY22[[#This Row],[Median]]","v":299698.8},{"$f":"(((AAMC_Raw_Data_for_FY22[[#This Row],[75th]]-AAMC_Raw_Data_for_FY22[[#This Row],[Median]])/25)*40) + AAMC_Raw_Data_for_FY22[[#This Row],[Median]]","v":307233.2}]
[{"$f":"AAMC_Raw_Data_for_FY22[[#This Row],[Source]]&AAMC_Raw_Data_for_FY22[[#This Row],[Type]]&AAMC_Raw_Data_for_FY22[[#This Row],[School Subset]]&AAMC_Raw_Data_for_FY22[[#This Row],[Rank]]&AAMC_Raw_Data_for_FY22[[#This Row],[Degree]]&AAMC_Raw_Data_for_FY22[[#This Row],[Department / Specialty]]&\"L\"","v":"AAMCAcademicPublicAssistantPhDAdolescent MedicineL"},"Adolescent Medicine",4,"AAMC","Academic","Public","Assistant","PhD","2021-2022",null,{"$f":"(((AAMC_Raw_Data_for_FY22[[#This Row],[Median]]-AAMC_Raw_Data_for_FY22[[#This Row],[25th]])/25)*5) + AAMC_Raw_Data_for_FY22[[#This Row],[25th]]","v":0},{"$f":"(((AAMC_Raw_Data_for_FY22[[#This Row],[Median]]-AAMC_Raw_Data_for_FY22[[#This Row],[25th]])/25)*10) + AAMC_Raw_Data_for_FY22[[#This Row],[25th]]","v":0},{"$f":"(((AAMC_Raw_Data_for_FY22[[#This Row],[Median]]-AAMC_Raw_Data_for_FY22[[#This Row],[25th]])/25)*15) + AAMC_Raw_Data_for_FY22[[#This Row],[25th]]","v":0},{"$f":"(((AAMC_Raw_Data_for_FY22[[#This Row],[Median]]-AAMC_Raw_Data_for_FY22[[#This Row],[25th]])/25)*20) + AAMC_Raw_Data_for_FY22[[#This Row],[25th]]","v":0},null,{"$f":"(((AAMC_Raw_Data_for_FY22[[#This Row],[75th]]-AAMC_Raw_Data_for_FY22[[#This Row],[Median]])/25)*5) + AAMC_Raw_Data_for_FY22[[#This Row],[Median]]","v":0},{"$f":"(((AAMC_Raw_Data_for_FY22[[#This Row],[75th]]-AAMC_Raw_Data_for_FY22[[#This Row],[Median]])/25)*10) + AAMC_Raw_Data_for_FY22[[#This Row],[Median]]","v":0},{"$f":"(((AAMC_Raw_Data_for_FY22[[#This Row],[75th]]-AAMC_Raw_Data_for_FY22[[#This Row],[Median]])/25)*15) + AAMC_Raw_Data_for_FY22[[#This Row],[Median]]","v":0},{"$f":"(((AAMC_Raw_Data_for_FY22[[#This Row],[75th]]-AAMC_Raw_Data_for_FY22[[#This Row],[Median]])/25)*20) + AAMC_Raw_Data_for_FY22[[#This Row],[Median]]","v":0},null,{"$f":"(((AAMC_Raw_Data_for_FY22[[#This Row],[75th]]-AAMC_Raw_Data_for_FY22[[#This Row],[Median]])/25)*30) + AAMC_Raw_Data_for_FY22[[#This Row],[Median]]","v":0},{"$f":"(((AAMC_Raw_Data_for_FY22[[#This Row],[75th]]-AAMC_Raw_Data_for_FY22[[#This Row],[Median]])/25)*35) + AAMC_Raw_Data_for_FY22[[#This Row],[Median]]","v":0},{"$f":"(((AAMC_Raw_Data_for_FY22[[#This Row],[75th]]-AAMC_Raw_Data_for_FY22[[#This Row],[Median]])/25)*40) + AAMC_Raw_Data_for_FY22[[#This Row],[Median]]","v":0}]
[{"$f":"AAMC_Raw_Data_for_FY22[[#This Row],[Source]]&AAMC_Raw_Data_for_FY22[[#This Row],[Type]]&AAMC_Raw_Data_for_FY22[[#This Row],[School Subset]]&AAMC_Raw_Data_for_FY22[[#This Row],[Rank]]&AAMC_Raw_Data_for_FY22[[#This Row],[Degree]]&AAMC_Raw_Data_for_FY22[[#This Row],[Department / Specialty]]&\"L\"","v":"AAMCAcademicPublicAssociatePhDAdolescent MedicineL"},"Adolescent Medicine",3,"AAMC","Academic","Public","Associate","PhD","2021-2022",null,{"$f":"(((AAMC_Raw_Data_for_FY22[[#This Row],[Median]]-AAMC_Raw_Data_for_FY22[[#This Row],[25th]])/25)*5) + AAMC_Raw_Data_for_FY22[[#This Row],[25th]]","v":0},{"$f":"(((AAMC_Raw_Data_for_FY22[[#This Row],[Median]]-AAMC_Raw_Data_for_FY22[[#This Row],[25th]])/25)*10) + AAMC_Raw_Data_for_FY22[[#This Row],[25th]]","v":0},{"$f":"(((AAMC_Raw_Data_for_FY22[[#This Row],[Median]]-AAMC_Raw_Data_for_FY22[[#This Row],[25th]])/25)*15) + AAMC_Raw_Data_for_FY22[[#This Row],[25th]]","v":0},{"$f":"(((AAMC_Raw_Data_for_FY22[[#This Row],[Median]]-AAMC_Raw_Data_for_FY22[[#This Row],[25th]])/25)*20) + AAMC_Raw_Data_for_FY22[[#This Row],[25th]]","v":0},null,{"$f":"(((AAMC_Raw_Data_for_FY22[[#This Row],[75th]]-AAMC_Raw_Data_for_FY22[[#This Row],[Median]])/25)*5) + AAMC_Raw_Data_for_FY22[[#This Row],[Median]]","v":0},{"$f":"(((AAMC_Raw_Data_for_FY22[[#This Row],[75th]]-AAMC_Raw_Data_for_FY22[[#This Row],[Median]])/25)*10) + AAMC_Raw_Data_for_FY22[[#This Row],[Median]]","v":0},{"$f":"(((AAMC_Raw_Data_for_FY22[[#This Row],[75th]]-AAMC_Raw_Data_for_FY22[[#This Row],[Median]])/25)*15) + AAMC_Raw_Data_for_FY22[[#This Row],[Median]]","v":0},{"$f":"(((AAMC_Raw_Data_for_FY22[[#This Row],[75th]]-AAMC_Raw_Data_for_FY22[[#This Row],[Median]])/25)*20) + AAMC_Raw_Data_for_FY22[[#This Row],[Median]]","v":0},null,{"$f":"(((AAMC_Raw_Data_for_FY22[[#This Row],[75th]]-AAMC_Raw_Data_for_FY22[[#This Row],[Median]])/25)*30) + AAMC_Raw_Data_for_FY22[[#This Row],[Median]]","v":0},{"$f":"(((AAMC_Raw_Data_for_FY22[[#This Row],[75th]]-AAMC_Raw_Data_for_FY22[[#This Row],[Median]])/25)*35) + AAMC_Raw_Data_for_FY22[[#This Row],[Median]]","v":0},{"$f":"(((AAMC_Raw_Data_for_FY22[[#This Row],[75th]]-AAMC_Raw_Data_for_FY22[[#This Row],[Median]])/25)*40) + AAMC_Raw_Data_for_FY22[[#This Row],[Median]]","v":0}]
[{"$f":"AAMC_Raw_Data_for_FY22[[#This Row],[Source]]&AAMC_Raw_Data_for_FY22[[#This Row],[Type]]&AAMC_Raw_Data_for_FY22[[#This Row],[School Subset]]&AAMC_Raw_Data_for_FY22[[#This Row],[Rank]]&AAMC_Raw_Data_for_FY22[[#This Row],[Degree]]&AAMC_Raw_Data_for_FY22[[#This Row],[Department / Specialty]]&\"L\"","v":"AAMCAcademicPublicProfessorPhDAdolescent MedicineL"},"Adolescent Medicine",2,"AAMC","Academic","Public","Professor","PhD","2021-2022",null,{"$f":"(((AAMC_Raw_Data_for_FY22[[#This Row],[Median]]-AAMC_Raw_Data_for_FY22[[#This Row],[25th]])/25)*5) + AAMC_Raw_Data_for_FY22[[#This Row],[25th]]","v":0},{"$f":"(((AAMC_Raw_Data_for_FY22[[#This Row],[Median]]-AAMC_Raw_Data_for_FY22[[#This Row],[25th]])/25)*10) + AAMC_Raw_Data_for_FY22[[#This Row],[25th]]","v":0},{"$f":"(((AAMC_Raw_Data_for_FY22[[#This Row],[Median]]-AAMC_Raw_Data_for_FY22[[#This Row],[25th]])/25)*15) + AAMC_Raw_Data_for_FY22[[#This Row],[25th]]","v":0},{"$f":"(((AAMC_Raw_Data_for_FY22[[#This Row],[Median]]-AAMC_Raw_Data_for_FY22[[#This Row],[25th]])/25)*20) + AAMC_Raw_Data_for_FY22[[#This Row],[25th]]","v":0},null,{"$f":"(((AAMC_Raw_Data_for_FY22[[#This Row],[75th]]-AAMC_Raw_Data_for_FY22[[#This Row],[Median]])/25)*5) + AAMC_Raw_Data_for_FY22[[#This Row],[Median]]","v":0},{"$f":"(((AAMC_Raw_Data_for_FY22[[#This Row],[75th]]-AAMC_Raw_Data_for_FY22[[#This Row],[Median]])/25)*10) + AAMC_Raw_Data_for_FY22[[#This Row],[Median]]","v":0},{"$f":"(((AAMC_Raw_Data_for_FY22[[#This Row],[75th]]-AAMC_Raw_Data_for_FY22[[#This Row],[Median]])/25)*15) + AAMC_Raw_Data_for_FY22[[#This Row],[Median]]","v":0},{"$f":"(((AAMC_Raw_Data_for_FY22[[#This Row],[75th]]-AAMC_Raw_Data_for_FY22[[#This Row],[Median]])/25)*20) + AAMC_Raw_Data_for_FY22[[#This Row],[Median]]","v":0},null,{"$f":"(((AAMC_Raw_Data_for_FY22[[#This Row],[75th]]-AAMC_Raw_Data_for_FY22[[#This Row],[Median]])/25)*30) + AAMC_Raw_Data_for_FY22[[#This Row],[Median]]","v":0},{"$f":"(((AAMC_Raw_Data_for_FY22[[#This Row],[75th]]-AAMC_Raw_Data_for_FY22[[#This Row],[Median]])/25)*35) + AAMC_Raw_Data_for_FY22[[#This Row],[Median]]","v":0},{"$f":"(((AAMC_Raw_Data_for_FY22[[#This Row],[75th]]-AAMC_Raw_Data_for_FY22[[#This Row],[Median]])/25)*40) + AAMC_Raw_Data_for_FY22[[#This Row],[Median]]","v":0}]
[{"$f":"AAMC_Raw_Data_for_FY22[[#This Row],[Source]]&AAMC_Raw_Data_for_FY22[[#This Row],[Type]]&AAMC_Raw_Data_for_FY22[[#This Row],[School Subset]]&AAMC_Raw_Data_for_FY22[[#This Row],[Rank]]&AAMC_Raw_Data_for_FY22[[#This Row],[Degree]]&AAMC_Raw_Data_for_FY22[[#This Row],[Department / Specialty]]&\"L\"","v":"AAMCAcademicPublicAssistantPhDAllergy/Immunology-Peds.L"},"Allergy/Immunology-Peds.",4,"AAMC","Academic","Public","Assistant","PhD","2021-2022",100541,{"$f":"(((AAMC_Raw_Data_for_FY22[[#This Row],[Median]]-AAMC_Raw_Data_for_FY22[[#This Row],[25th]])/25)*5) + AAMC_Raw_Data_for_FY22[[#This Row],[25th]]","v":102288.6},{"$f":"(((AAMC_Raw_Data_for_FY22[[#This Row],[Median]]-AAMC_Raw_Data_for_FY22[[#This Row],[25th]])/25)*10) + AAMC_Raw_Data_for_FY22[[#This Row],[25th]]","v":104036.2},{"$f":"(((AAMC_Raw_Data_for_FY22[[#This Row],[Median]]-AAMC_Raw_Data_for_FY22[[#This Row],[25th]])/25)*15) + AAMC_Raw_Data_for_FY22[[#This Row],[25th]]","v":105783.8},{"$f":"(((AAMC_Raw_Data_for_FY22[[#This Row],[Median]]-AAMC_Raw_Data_for_FY22[[#This Row],[25th]])/25)*20) + AAMC_Raw_Data_for_FY22[[#This Row],[25th]]","v":107531.4},109279,{"$f":"(((AAMC_Raw_Data_for_FY22[[#This Row],[75th]]-AAMC_Raw_Data_for_FY22[[#This Row],[Median]])/25)*5) + AAMC_Raw_Data_for_FY22[[#This Row],[Median]]","v":111191.6},{"$f":"(((AAMC_Raw_Data_for_FY22[[#This Row],[75th]]-AAMC_Raw_Data_for_FY22[[#This Row],[Median]])/25)*10) + AAMC_Raw_Data_for_FY22[[#This Row],[Median]]","v":113104.2},{"$f":"(((AAMC_Raw_Data_for_FY22[[#This Row],[75th]]-AAMC_Raw_Data_for_FY22[[#This Row],[Median]])/25)*15) + AAMC_Raw_Data_for_FY22[[#This Row],[Median]]","v":115016.8},{"$f":"(((AAMC_Raw_Data_for_FY22[[#This Row],[75th]]-AAMC_Raw_Data_for_FY22[[#This Row],[Median]])/25)*20) + AAMC_Raw_Data_for_FY22[[#This Row],[Median]]","v":116929.4},118842,{"$f":"(((AAMC_Raw_Data_for_FY22[[#This Row],[75th]]-AAMC_Raw_Data_for_FY22[[#This Row],[Median]])/25)*30) + AAMC_Raw_Data_for_FY22[[#This Row],[Median]]","v":120754.6},{"$f":"(((AAMC_Raw_Data_for_FY22[[#This Row],[75th]]-AAMC_Raw_Data_for_FY22[[#This Row],[Median]])/25)*35) + AAMC_Raw_Data_for_FY22[[#This Row],[Median]]","v":122667.2},{"$f":"(((AAMC_Raw_Data_for_FY22[[#This Row],[75th]]-AAMC_Raw_Data_for_FY22[[#This Row],[Median]])/25)*40) + AAMC_Raw_Data_for_FY22[[#This Row],[Median]]","v":124579.8}]
[{"$f":"AAMC_Raw_Data_for_FY22[[#This Row],[Source]]&AAMC_Raw_Data_for_FY22[[#This Row],[Type]]&AAMC_Raw_Data_for_FY22[[#This Row],[School Subset]]&AAMC_Raw_Data_for_FY22[[#This Row],[Rank]]&AAMC_Raw_Data_for_FY22[[#This Row],[Degree]]&AAMC_Raw_Data_for_FY22[[#This Row],[Department / Specialty]]&\"L\"","v":"AAMCAcademicPublicAssociatePhDAllergy/Immunology-Peds.L"},"Allergy/Immunology-Peds.",3,"AAMC","Academic","Public","Associate","PhD","2021-2022",132193,{"$f":"(((AAMC_Raw_Data_for_FY22[[#This Row],[Median]]-AAMC_Raw_Data_for_FY22[[#This Row],[25th]])/25)*5) + AAMC_Raw_Data_for_FY22[[#This Row],[25th]]","v":134287.79999999999},{"$f":"(((AAMC_Raw_Data_for_FY22[[#This Row],[Median]]-AAMC_Raw_Data_for_FY22[[#This Row],[25th]])/25)*10) + AAMC_Raw_Data_for_FY22[[#This Row],[25th]]","v":136382.6},{"$f":"(((AAMC_Raw_Data_for_FY22[[#This Row],[Median]]-AAMC_Raw_Data_for_FY22[[#This Row],[25th]])/25)*15) + AAMC_Raw_Data_for_FY22[[#This Row],[25th]]","v":138477.4},{"$f":"(((AAMC_Raw_Data_for_FY22[[#This Row],[Median]]-AAMC_Raw_Data_for_FY22[[#This Row],[25th]])/25)*20) + AAMC_Raw_Data_for_FY22[[#This Row],[25th]]","v":140572.20000000001},142667,{"$f":"(((AAMC_Raw_Data_for_FY22[[#This Row],[75th]]-AAMC_Raw_Data_for_FY22[[#This Row],[Median]])/25)*5) + AAMC_Raw_Data_for_FY22[[#This Row],[Median]]","v":143916.20000000001},{"$f":"(((AAMC_Raw_Data_for_FY22[[#This Row],[75th]]-AAMC_Raw_Data_for_FY22[[#This Row],[Median]])/25)*10) + AAMC_Raw_Data_for_FY22[[#This Row],[Median]]","v":145165.4},{"$f":"(((AAMC_Raw_Data_for_FY22[[#This Row],[75th]]-AAMC_Raw_Data_for_FY22[[#This Row],[Median]])/25)*15) + AAMC_Raw_Data_for_FY22[[#This Row],[Median]]","v":146414.6},{"$f":"(((AAMC_Raw_Data_for_FY22[[#This Row],[75th]]-AAMC_Raw_Data_for_FY22[[#This Row],[Median]])/25)*20) + AAMC_Raw_Data_for_FY22[[#This Row],[Median]]","v":147663.79999999999},148913,{"$f":"(((AAMC_Raw_Data_for_FY22[[#This Row],[75th]]-AAMC_Raw_Data_for_FY22[[#This Row],[Median]])/25)*30) + AAMC_Raw_Data_for_FY22[[#This Row],[Median]]","v":150162.20000000001},{"$f":"(((AAMC_Raw_Data_for_FY22[[#This Row],[75th]]-AAMC_Raw_Data_for_FY22[[#This Row],[Median]])/25)*35) + AAMC_Raw_Data_for_FY22[[#This Row],[Median]]","v":151411.4},{"$f":"(((AAMC_Raw_Data_for_FY22[[#This Row],[75th]]-AAMC_Raw_Data_for_FY22[[#This Row],[Median]])/25)*40) + AAMC_Raw_Data_for_FY22[[#This Row],[Median]]","v":152660.6}]
[{"$f":"AAMC_Raw_Data_for_FY22[[#This Row],[Source]]&AAMC_Raw_Data_for_FY22[[#This Row],[Type]]&AAMC_Raw_Data_for_FY22[[#This Row],[School Subset]]&AAMC_Raw_Data_for_FY22[[#This Row],[Rank]]&AAMC_Raw_Data_for_FY22[[#This Row],[Degree]]&AAMC_Raw_Data_for_FY22[[#This Row],[Department / Specialty]]&\"L\"","v":"AAMCAcademicPublicProfessorPhDAllergy/Immunology-Peds.L"},"Allergy/Immunology-Peds.",2,"AAMC","Academic","Public","Professor","PhD","2021-2022",null,{"$f":"(((AAMC_Raw_Data_for_FY22[[#This Row],[Median]]-AAMC_Raw_Data_for_FY22[[#This Row],[25th]])/25)*5) + AAMC_Raw_Data_for_FY22[[#This Row],[25th]]","v":0},{"$f":"(((AAMC_Raw_Data_for_FY22[[#This Row],[Median]]-AAMC_Raw_Data_for_FY22[[#This Row],[25th]])/25)*10) + AAMC_Raw_Data_for_FY22[[#This Row],[25th]]","v":0},{"$f":"(((AAMC_Raw_Data_for_FY22[[#This Row],[Median]]-AAMC_Raw_Data_for_FY22[[#This Row],[25th]])/25)*15) + AAMC_Raw_Data_for_FY22[[#This Row],[25th]]","v":0},{"$f":"(((AAMC_Raw_Data_for_FY22[[#This Row],[Median]]-AAMC_Raw_Data_for_FY22[[#This Row],[25th]])/25)*20) + AAMC_Raw_Data_for_FY22[[#This Row],[25th]]","v":0},null,{"$f":"(((AAMC_Raw_Data_for_FY22[[#This Row],[75th]]-AAMC_Raw_Data_for_FY22[[#This Row],[Median]])/25)*5) + AAMC_Raw_Data_for_FY22[[#This Row],[Median]]","v":0},{"$f":"(((AAMC_Raw_Data_for_FY22[[#This Row],[75th]]-AAMC_Raw_Data_for_FY22[[#This Row],[Median]])/25)*10) + AAMC_Raw_Data_for_FY22[[#This Row],[Median]]","v":0},{"$f":"(((AAMC_Raw_Data_for_FY22[[#This Row],[75th]]-AAMC_Raw_Data_for_FY22[[#This Row],[Median]])/25)*15) + AAMC_Raw_Data_for_FY22[[#This Row],[Median]]","v":0},{"$f":"(((AAMC_Raw_Data_for_FY22[[#This Row],[75th]]-AAMC_Raw_Data_for_FY22[[#This Row],[Median]])/25)*20) + AAMC_Raw_Data_for_FY22[[#This Row],[Median]]","v":0},null,{"$f":"(((AAMC_Raw_Data_for_FY22[[#This Row],[75th]]-AAMC_Raw_Data_for_FY22[[#This Row],[Median]])/25)*30) + AAMC_Raw_Data_for_FY22[[#This Row],[Median]]","v":0},{"$f":"(((AAMC_Raw_Data_for_FY22[[#This Row],[75th]]-AAMC_Raw_Data_for_FY22[[#This Row],[Median]])/25)*35) + AAMC_Raw_Data_for_FY22[[#This Row],[Median]]","v":0},{"$f":"(((AAMC_Raw_Data_for_FY22[[#This Row],[75th]]-AAMC_Raw_Data_for_FY22[[#This Row],[Median]])/25)*40) + AAMC_Raw_Data_for_FY22[[#This Row],[Median]]","v":0}]
[{"$f":"AAMC_Raw_Data_for_FY22[[#This Row],[Source]]&AAMC_Raw_Data_for_FY22[[#This Row],[Type]]&AAMC_Raw_Data_for_FY22[[#This Row],[School Subset]]&AAMC_Raw_Data_for_FY22[[#This Row],[Rank]]&AAMC_Raw_Data_for_FY22[[#This Row],[Degree]]&AAMC_Raw_Data_for_FY22[[#This Row],[Department / Specialty]]&\"L\"","v":"AAMCAcademicPublicChiefPhDAllergy/Immunology-Peds.L"},"Allergy/Immunology-Peds.",6,"AAMC","Academic","Public","Chief","PhD","2021-2022",null,{"$f":"(((AAMC_Raw_Data_for_FY22[[#This Row],[Median]]-AAMC_Raw_Data_for_FY22[[#This Row],[25th]])/25)*5) + AAMC_Raw_Data_for_FY22[[#This Row],[25th]]","v":0},{"$f":"(((AAMC_Raw_Data_for_FY22[[#This Row],[Median]]-AAMC_Raw_Data_for_FY22[[#This Row],[25th]])/25)*10) + AAMC_Raw_Data_for_FY22[[#This Row],[25th]]","v":0},{"$f":"(((AAMC_Raw_Data_for_FY22[[#This Row],[Median]]-AAMC_Raw_Data_for_FY22[[#This Row],[25th]])/25)*15) + AAMC_Raw_Data_for_FY22[[#This Row],[25th]]","v":0},{"$f":"(((AAMC_Raw_Data_for_FY22[[#This Row],[Median]]-AAMC_Raw_Data_for_FY22[[#This Row],[25th]])/25)*20) + AAMC_Raw_Data_for_FY22[[#This Row],[25th]]","v":0},null,{"$f":"(((AAMC_Raw_Data_for_FY22[[#This Row],[75th]]-AAMC_Raw_Data_for_FY22[[#This Row],[Median]])/25)*5) + AAMC_Raw_Data_for_FY22[[#This Row],[Median]]","v":0},{"$f":"(((AAMC_Raw_Data_for_FY22[[#This Row],[75th]]-AAMC_Raw_Data_for_FY22[[#This Row],[Median]])/25)*10) + AAMC_Raw_Data_for_FY22[[#This Row],[Median]]","v":0},{"$f":"(((AAMC_Raw_Data_for_FY22[[#This Row],[75th]]-AAMC_Raw_Data_for_FY22[[#This Row],[Median]])/25)*15) + AAMC_Raw_Data_for_FY22[[#This Row],[Median]]","v":0},{"$f":"(((AAMC_Raw_Data_for_FY22[[#This Row],[75th]]-AAMC_Raw_Data_for_FY22[[#This Row],[Median]])/25)*20) + AAMC_Raw_Data_for_FY22[[#This Row],[Median]]","v":0},null,{"$f":"(((AAMC_Raw_Data_for_FY22[[#This Row],[75th]]-AAMC_Raw_Data_for_FY22[[#This Row],[Median]])/25)*30) + AAMC_Raw_Data_for_FY22[[#This Row],[Median]]","v":0},{"$f":"(((AAMC_Raw_Data_for_FY22[[#This Row],[75th]]-AAMC_Raw_Data_for_FY22[[#This Row],[Median]])/25)*35) + AAMC_Raw_Data_for_FY22[[#This Row],[Median]]","v":0},{"$f":"(((AAMC_Raw_Data_for_FY22[[#This Row],[75th]]-AAMC_Raw_Data_for_FY22[[#This Row],[Median]])/25)*40) + AAMC_Raw_Data_for_FY22[[#This Row],[Median]]","v":0}]
[{"$f":"AAMC_Raw_Data_for_FY22[[#This Row],[Source]]&AAMC_Raw_Data_for_FY22[[#This Row],[Type]]&AAMC_Raw_Data_for_FY22[[#This Row],[School Subset]]&AAMC_Raw_Data_for_FY22[[#This Row],[Rank]]&AAMC_Raw_Data_for_FY22[[#This Row],[Degree]]&AAMC_Raw_Data_for_FY22[[#This Row],[Department / Specialty]]&\"L\"","v":"AAMCAcademicPublicInstructorPhDCritical/Intensive Care-Peds.L"},"Critical/Intensive Care-Peds.",5,"AAMC","Academic","Public","Instructor","PhD","2021-2022",null,{"$f":"(((AAMC_Raw_Data_for_FY22[[#This Row],[Median]]-AAMC_Raw_Data_for_FY22[[#This Row],[25th]])/25)*5) + AAMC_Raw_Data_for_FY22[[#This Row],[25th]]","v":0},{"$f":"(((AAMC_Raw_Data_for_FY22[[#This Row],[Median]]-AAMC_Raw_Data_for_FY22[[#This Row],[25th]])/25)*10) + AAMC_Raw_Data_for_FY22[[#This Row],[25th]]","v":0},{"$f":"(((AAMC_Raw_Data_for_FY22[[#This Row],[Median]]-AAMC_Raw_Data_for_FY22[[#This Row],[25th]])/25)*15) + AAMC_Raw_Data_for_FY22[[#This Row],[25th]]","v":0},{"$f":"(((AAMC_Raw_Data_for_FY22[[#This Row],[Median]]-AAMC_Raw_Data_for_FY22[[#This Row],[25th]])/25)*20) + AAMC_Raw_Data_for_FY22[[#This Row],[25th]]","v":0},null,{"$f":"(((AAMC_Raw_Data_for_FY22[[#This Row],[75th]]-AAMC_Raw_Data_for_FY22[[#This Row],[Median]])/25)*5) + AAMC_Raw_Data_for_FY22[[#This Row],[Median]]","v":0},{"$f":"(((AAMC_Raw_Data_for_FY22[[#This Row],[75th]]-AAMC_Raw_Data_for_FY22[[#This Row],[Median]])/25)*10) + AAMC_Raw_Data_for_FY22[[#This Row],[Median]]","v":0},{"$f":"(((AAMC_Raw_Data_for_FY22[[#This Row],[75th]]-AAMC_Raw_Data_for_FY22[[#This Row],[Median]])/25)*15) + AAMC_Raw_Data_for_FY22[[#This Row],[Median]]","v":0},{"$f":"(((AAMC_Raw_Data_for_FY22[[#This Row],[75th]]-AAMC_Raw_Data_for_FY22[[#This Row],[Median]])/25)*20) + AAMC_Raw_Data_for_FY22[[#This Row],[Median]]","v":0},null,{"$f":"(((AAMC_Raw_Data_for_FY22[[#This Row],[75th]]-AAMC_Raw_Data_for_FY22[[#This Row],[Median]])/25)*30) + AAMC_Raw_Data_for_FY22[[#This Row],[Median]]","v":0},{"$f":"(((AAMC_Raw_Data_for_FY22[[#This Row],[75th]]-AAMC_Raw_Data_for_FY22[[#This Row],[Median]])/25)*35) + AAMC_Raw_Data_for_FY22[[#This Row],[Median]]","v":0},{"$f":"(((AAMC_Raw_Data_for_FY22[[#This Row],[75th]]-AAMC_Raw_Data_for_FY22[[#This Row],[Median]])/25)*40) + AAMC_Raw_Data_for_FY22[[#This Row],[Median]]","v":0}]
[{"$f":"AAMC_Raw_Data_for_FY22[[#This Row],[Source]]&AAMC_Raw_Data_for_FY22[[#This Row],[Type]]&AAMC_Raw_Data_for_FY22[[#This Row],[School Subset]]&AAMC_Raw_Data_for_FY22[[#This Row],[Rank]]&AAMC_Raw_Data_for_FY22[[#This Row],[Degree]]&AAMC_Raw_Data_for_FY22[[#This Row],[Department / Specialty]]&\"L\"","v":"AAMCAcademicPublicAssistantPhDCritical/Intensive Care-Peds.L"},"Critical/Intensive Care-Peds.",4,"AAMC","Academic","Public","Assistant","PhD","2021-2022",122750,{"$f":"(((AAMC_Raw_Data_for_FY22[[#This Row],[Median]]-AAMC_Raw_Data_for_FY22[[#This Row],[25th]])/25)*5) + AAMC_Raw_Data_for_FY22[[#This Row],[25th]]","v":124108.6},{"$f":"(((AAMC_Raw_Data_for_FY22[[#This Row],[Median]]-AAMC_Raw_Data_for_FY22[[#This Row],[25th]])/25)*10) + AAMC_Raw_Data_for_FY22[[#This Row],[25th]]","v":125467.2},{"$f":"(((AAMC_Raw_Data_for_FY22[[#This Row],[Median]]-AAMC_Raw_Data_for_FY22[[#This Row],[25th]])/25)*15) + AAMC_Raw_Data_for_FY22[[#This Row],[25th]]","v":126825.8},{"$f":"(((AAMC_Raw_Data_for_FY22[[#This Row],[Median]]-AAMC_Raw_Data_for_FY22[[#This Row],[25th]])/25)*20) + AAMC_Raw_Data_for_FY22[[#This Row],[25th]]","v":128184.4},129543,{"$f":"(((AAMC_Raw_Data_for_FY22[[#This Row],[75th]]-AAMC_Raw_Data_for_FY22[[#This Row],[Median]])/25)*5) + AAMC_Raw_Data_for_FY22[[#This Row],[Median]]","v":145806.20000000001},{"$f":"(((AAMC_Raw_Data_for_FY22[[#This Row],[75th]]-AAMC_Raw_Data_for_FY22[[#This Row],[Median]])/25)*10) + AAMC_Raw_Data_for_FY22[[#This Row],[Median]]","v":162069.4},{"$f":"(((AAMC_Raw_Data_for_FY22[[#This Row],[75th]]-AAMC_Raw_Data_for_FY22[[#This Row],[Median]])/25)*15) + AAMC_Raw_Data_for_FY22[[#This Row],[Median]]","v":178332.6},{"$f":"(((AAMC_Raw_Data_for_FY22[[#This Row],[75th]]-AAMC_Raw_Data_for_FY22[[#This Row],[Median]])/25)*20) + AAMC_Raw_Data_for_FY22[[#This Row],[Median]]","v":194595.8},210859,{"$f":"(((AAMC_Raw_Data_for_FY22[[#This Row],[75th]]-AAMC_Raw_Data_for_FY22[[#This Row],[Median]])/25)*30) + AAMC_Raw_Data_for_FY22[[#This Row],[Median]]","v":227122.2},{"$f":"(((AAMC_Raw_Data_for_FY22[[#This Row],[75th]]-AAMC_Raw_Data_for_FY22[[#This Row],[Median]])/25)*35) + AAMC_Raw_Data_for_FY22[[#This Row],[Median]]","v":243385.4},{"$f":"(((AAMC_Raw_Data_for_FY22[[#This Row],[75th]]-AAMC_Raw_Data_for_FY22[[#This Row],[Median]])/25)*40) + AAMC_Raw_Data_for_FY22[[#This Row],[Median]]","v":259648.59999999998}]
[{"$f":"AAMC_Raw_Data_for_FY22[[#This Row],[Source]]&AAMC_Raw_Data_for_FY22[[#This Row],[Type]]&AAMC_Raw_Data_for_FY22[[#This Row],[School Subset]]&AAMC_Raw_Data_for_FY22[[#This Row],[Rank]]&AAMC_Raw_Data_for_FY22[[#This Row],[Degree]]&AAMC_Raw_Data_for_FY22[[#This Row],[Department / Specialty]]&\"L\"","v":"AAMCAcademicPublicAssociatePhDCritical/Intensive Care-Peds.L"},"Critical/Intensive Care-Peds.",3,"AAMC","Academic","Public","Associate","PhD","2021-2022",null,{"$f":"(((AAMC_Raw_Data_for_FY22[[#This Row],[Median]]-AAMC_Raw_Data_for_FY22[[#This Row],[25th]])/25)*5) + AAMC_Raw_Data_for_FY22[[#This Row],[25th]]","v":0},{"$f":"(((AAMC_Raw_Data_for_FY22[[#This Row],[Median]]-AAMC_Raw_Data_for_FY22[[#This Row],[25th]])/25)*10) + AAMC_Raw_Data_for_FY22[[#This Row],[25th]]","v":0},{"$f":"(((AAMC_Raw_Data_for_FY22[[#This Row],[Median]]-AAMC_Raw_Data_for_FY22[[#This Row],[25th]])/25)*15) + AAMC_Raw_Data_for_FY22[[#This Row],[25th]]","v":0},{"$f":"(((AAMC_Raw_Data_for_FY22[[#This Row],[Median]]-AAMC_Raw_Data_for_FY22[[#This Row],[25th]])/25)*20) + AAMC_Raw_Data_for_FY22[[#This Row],[25th]]","v":0},null,{"$f":"(((AAMC_Raw_Data_for_FY22[[#This Row],[75th]]-AAMC_Raw_Data_for_FY22[[#This Row],[Median]])/25)*5) + AAMC_Raw_Data_for_FY22[[#This Row],[Median]]","v":0},{"$f":"(((AAMC_Raw_Data_for_FY22[[#This Row],[75th]]-AAMC_Raw_Data_for_FY22[[#This Row],[Median]])/25)*10) + AAMC_Raw_Data_for_FY22[[#This Row],[Median]]","v":0},{"$f":"(((AAMC_Raw_Data_for_FY22[[#This Row],[75th]]-AAMC_Raw_Data_for_FY22[[#This Row],[Median]])/25)*15) + AAMC_Raw_Data_for_FY22[[#This Row],[Median]]","v":0},{"$f":"(((AAMC_Raw_Data_for_FY22[[#This Row],[75th]]-AAMC_Raw_Data_for_FY22[[#This Row],[Median]])/25)*20) + AAMC_Raw_Data_for_FY22[[#This Row],[Median]]","v":0},null,{"$f":"(((AAMC_Raw_Data_for_FY22[[#This Row],[75th]]-AAMC_Raw_Data_for_FY22[[#This Row],[Median]])/25)*30) + AAMC_Raw_Data_for_FY22[[#This Row],[Median]]","v":0},{"$f":"(((AAMC_Raw_Data_for_FY22[[#This Row],[75th]]-AAMC_Raw_Data_for_FY22[[#This Row],[Median]])/25)*35) + AAMC_Raw_Data_for_FY22[[#This Row],[Median]]","v":0},{"$f":"(((AAMC_Raw_Data_for_FY22[[#This Row],[75th]]-AAMC_Raw_Data_for_FY22[[#This Row],[Median]])/25)*40) + AAMC_Raw_Data_for_FY22[[#This Row],[Median]]","v":0}]
[{"$f":"AAMC_Raw_Data_for_FY22[[#This Row],[Source]]&AAMC_Raw_Data_for_FY22[[#This Row],[Type]]&AAMC_Raw_Data_for_FY22[[#This Row],[School Subset]]&AAMC_Raw_Data_for_FY22[[#This Row],[Rank]]&AAMC_Raw_Data_for_FY22[[#This Row],[Degree]]&AAMC_Raw_Data_for_FY22[[#This Row],[Department / Specialty]]&\"L\"","v":"AAMCAcademicPublicProfessorPhDCritical/Intensive Care-Peds.L"},"Critical/Intensive Care-Peds.",2,"AAMC","Academic","Public","Professor","PhD","2021-2022",null,{"$f":"(((AAMC_Raw_Data_for_FY22[[#This Row],[Median]]-AAMC_Raw_Data_for_FY22[[#This Row],[25th]])/25)*5) + AAMC_Raw_Data_for_FY22[[#This Row],[25th]]","v":0},{"$f":"(((AAMC_Raw_Data_for_FY22[[#This Row],[Median]]-AAMC_Raw_Data_for_FY22[[#This Row],[25th]])/25)*10) + AAMC_Raw_Data_for_FY22[[#This Row],[25th]]","v":0},{"$f":"(((AAMC_Raw_Data_for_FY22[[#This Row],[Median]]-AAMC_Raw_Data_for_FY22[[#This Row],[25th]])/25)*15) + AAMC_Raw_Data_for_FY22[[#This Row],[25th]]","v":0},{"$f":"(((AAMC_Raw_Data_for_FY22[[#This Row],[Median]]-AAMC_Raw_Data_for_FY22[[#This Row],[25th]])/25)*20) + AAMC_Raw_Data_for_FY22[[#This Row],[25th]]","v":0},null,{"$f":"(((AAMC_Raw_Data_for_FY22[[#This Row],[75th]]-AAMC_Raw_Data_for_FY22[[#This Row],[Median]])/25)*5) + AAMC_Raw_Data_for_FY22[[#This Row],[Median]]","v":0},{"$f":"(((AAMC_Raw_Data_for_FY22[[#This Row],[75th]]-AAMC_Raw_Data_for_FY22[[#This Row],[Median]])/25)*10) + AAMC_Raw_Data_for_FY22[[#This Row],[Median]]","v":0},{"$f":"(((AAMC_Raw_Data_for_FY22[[#This Row],[75th]]-AAMC_Raw_Data_for_FY22[[#This Row],[Median]])/25)*15) + AAMC_Raw_Data_for_FY22[[#This Row],[Median]]","v":0},{"$f":"(((AAMC_Raw_Data_for_FY22[[#This Row],[75th]]-AAMC_Raw_Data_for_FY22[[#This Row],[Median]])/25)*20) + AAMC_Raw_Data_for_FY22[[#This Row],[Median]]","v":0},null,{"$f":"(((AAMC_Raw_Data_for_FY22[[#This Row],[75th]]-AAMC_Raw_Data_for_FY22[[#This Row],[Median]])/25)*30) + AAMC_Raw_Data_for_FY22[[#This Row],[Median]]","v":0},{"$f":"(((AAMC_Raw_Data_for_FY22[[#This Row],[75th]]-AAMC_Raw_Data_for_FY22[[#This Row],[Median]])/25)*35) + AAMC_Raw_Data_for_FY22[[#This Row],[Median]]","v":0},{"$f":"(((AAMC_Raw_Data_for_FY22[[#This Row],[75th]]-AAMC_Raw_Data_for_FY22[[#This Row],[Median]])/25)*40) + AAMC_Raw_Data_for_FY22[[#This Row],[Median]]","v":0}]
[{"$f":"AAMC_Raw_Data_for_FY22[[#This Row],[Source]]&AAMC_Raw_Data_for_FY22[[#This Row],[Type]]&AAMC_Raw_Data_for_FY22[[#This Row],[School Subset]]&AAMC_Raw_Data_for_FY22[[#This Row],[Rank]]&AAMC_Raw_Data_for_FY22[[#This Row],[Degree]]&AAMC_Raw_Data_for_FY22[[#This Row],[Department / Specialty]]&\"L\"","v":"AAMCAcademicPublicInstructorPhDDevelopmental-Behavioral PediatricsL"},"Developmental-Behavioral Pediatrics",5,"AAMC","Academic","Public","Instructor","PhD","2021-2022",null,{"$f":"(((AAMC_Raw_Data_for_FY22[[#This Row],[Median]]-AAMC_Raw_Data_for_FY22[[#This Row],[25th]])/25)*5) + AAMC_Raw_Data_for_FY22[[#This Row],[25th]]","v":0},{"$f":"(((AAMC_Raw_Data_for_FY22[[#This Row],[Median]]-AAMC_Raw_Data_for_FY22[[#This Row],[25th]])/25)*10) + AAMC_Raw_Data_for_FY22[[#This Row],[25th]]","v":0},{"$f":"(((AAMC_Raw_Data_for_FY22[[#This Row],[Median]]-AAMC_Raw_Data_for_FY22[[#This Row],[25th]])/25)*15) + AAMC_Raw_Data_for_FY22[[#This Row],[25th]]","v":0},{"$f":"(((AAMC_Raw_Data_for_FY22[[#This Row],[Median]]-AAMC_Raw_Data_for_FY22[[#This Row],[25th]])/25)*20) + AAMC_Raw_Data_for_FY22[[#This Row],[25th]]","v":0},null,{"$f":"(((AAMC_Raw_Data_for_FY22[[#This Row],[75th]]-AAMC_Raw_Data_for_FY22[[#This Row],[Median]])/25)*5) + AAMC_Raw_Data_for_FY22[[#This Row],[Median]]","v":0},{"$f":"(((AAMC_Raw_Data_for_FY22[[#This Row],[75th]]-AAMC_Raw_Data_for_FY22[[#This Row],[Median]])/25)*10) + AAMC_Raw_Data_for_FY22[[#This Row],[Median]]","v":0},{"$f":"(((AAMC_Raw_Data_for_FY22[[#This Row],[75th]]-AAMC_Raw_Data_for_FY22[[#This Row],[Median]])/25)*15) + AAMC_Raw_Data_for_FY22[[#This Row],[Median]]","v":0},{"$f":"(((AAMC_Raw_Data_for_FY22[[#This Row],[75th]]-AAMC_Raw_Data_for_FY22[[#This Row],[Median]])/25)*20) + AAMC_Raw_Data_for_FY22[[#This Row],[Median]]","v":0},null,{"$f":"(((AAMC_Raw_Data_for_FY22[[#This Row],[75th]]-AAMC_Raw_Data_for_FY22[[#This Row],[Median]])/25)*30) + AAMC_Raw_Data_for_FY22[[#This Row],[Median]]","v":0},{"$f":"(((AAMC_Raw_Data_for_FY22[[#This Row],[75th]]-AAMC_Raw_Data_for_FY22[[#This Row],[Median]])/25)*35) + AAMC_Raw_Data_for_FY22[[#This Row],[Median]]","v":0},{"$f":"(((AAMC_Raw_Data_for_FY22[[#This Row],[75th]]-AAMC_Raw_Data_for_FY22[[#This Row],[Median]])/25)*40) + AAMC_Raw_Data_for_FY22[[#This Row],[Median]]","v":0}]
[{"$f":"AAMC_Raw_Data_for_FY22[[#This Row],[Source]]&AAMC_Raw_Data_for_FY22[[#This Row],[Type]]&AAMC_Raw_Data_for_FY22[[#This Row],[School Subset]]&AAMC_Raw_Data_for_FY22[[#This Row],[Rank]]&AAMC_Raw_Data_for_FY22[[#This Row],[Degree]]&AAMC_Raw_Data_for_FY22[[#This Row],[Department / Specialty]]&\"L\"","v":"AAMCAcademicPublicAssistantPhDDevelopmental-Behavioral PediatricsL"},"Developmental-Behavioral Pediatrics",4,"AAMC","Academic","Public","Assistant","PhD","2021-2022",null,{"$f":"(((AAMC_Raw_Data_for_FY22[[#This Row],[Median]]-AAMC_Raw_Data_for_FY22[[#This Row],[25th]])/25)*5) + AAMC_Raw_Data_for_FY22[[#This Row],[25th]]","v":0},{"$f":"(((AAMC_Raw_Data_for_FY22[[#This Row],[Median]]-AAMC_Raw_Data_for_FY22[[#This Row],[25th]])/25)*10) + AAMC_Raw_Data_for_FY22[[#This Row],[25th]]","v":0},{"$f":"(((AAMC_Raw_Data_for_FY22[[#This Row],[Median]]-AAMC_Raw_Data_for_FY22[[#This Row],[25th]])/25)*15) + AAMC_Raw_Data_for_FY22[[#This Row],[25th]]","v":0},{"$f":"(((AAMC_Raw_Data_for_FY22[[#This Row],[Median]]-AAMC_Raw_Data_for_FY22[[#This Row],[25th]])/25)*20) + AAMC_Raw_Data_for_FY22[[#This Row],[25th]]","v":0},null,{"$f":"(((AAMC_Raw_Data_for_FY22[[#This Row],[75th]]-AAMC_Raw_Data_for_FY22[[#This Row],[Median]])/25)*5) + AAMC_Raw_Data_for_FY22[[#This Row],[Median]]","v":0},{"$f":"(((AAMC_Raw_Data_for_FY22[[#This Row],[75th]]-AAMC_Raw_Data_for_FY22[[#This Row],[Median]])/25)*10) + AAMC_Raw_Data_for_FY22[[#This Row],[Median]]","v":0},{"$f":"(((AAMC_Raw_Data_for_FY22[[#This Row],[75th]]-AAMC_Raw_Data_for_FY22[[#This Row],[Median]])/25)*15) + AAMC_Raw_Data_for_FY22[[#This Row],[Median]]","v":0},{"$f":"(((AAMC_Raw_Data_for_FY22[[#This Row],[75th]]-AAMC_Raw_Data_for_FY22[[#This Row],[Median]])/25)*20) + AAMC_Raw_Data_for_FY22[[#This Row],[Median]]","v":0},null,{"$f":"(((AAMC_Raw_Data_for_FY22[[#This Row],[75th]]-AAMC_Raw_Data_for_FY22[[#This Row],[Median]])/25)*30) + AAMC_Raw_Data_for_FY22[[#This Row],[Median]]","v":0},{"$f":"(((AAMC_Raw_Data_for_FY22[[#This Row],[75th]]-AAMC_Raw_Data_for_FY22[[#This Row],[Median]])/25)*35) + AAMC_Raw_Data_for_FY22[[#This Row],[Median]]","v":0},{"$f":"(((AAMC_Raw_Data_for_FY22[[#This Row],[75th]]-AAMC_Raw_Data_for_FY22[[#This Row],[Median]])/25)*40) + AAMC_Raw_Data_for_FY22[[#This Row],[Median]]","v":0}]
[{"$f":"AAMC_Raw_Data_for_FY22[[#This Row],[Source]]&AAMC_Raw_Data_for_FY22[[#This Row],[Type]]&AAMC_Raw_Data_for_FY22[[#This Row],[School Subset]]&AAMC_Raw_Data_for_FY22[[#This Row],[Rank]]&AAMC_Raw_Data_for_FY22[[#This Row],[Degree]]&AAMC_Raw_Data_for_FY22[[#This Row],[Department / Specialty]]&\"L\"","v":"AAMCAcademicPublicAssociatePhDDevelopmental-Behavioral PediatricsL"},"Developmental-Behavioral Pediatrics",3,"AAMC","Academic","Public","Associate","PhD","2021-2022",131054,{"$f":"(((AAMC_Raw_Data_for_FY22[[#This Row],[Median]]-AAMC_Raw_Data_for_FY22[[#This Row],[25th]])/25)*5) + AAMC_Raw_Data_for_FY22[[#This Row],[25th]]","v":135696},{"$f":"(((AAMC_Raw_Data_for_FY22[[#This Row],[Median]]-AAMC_Raw_Data_for_FY22[[#This Row],[25th]])/25)*10) + AAMC_Raw_Data_for_FY22[[#This Row],[25th]]","v":140338},{"$f":"(((AAMC_Raw_Data_for_FY22[[#This Row],[Median]]-AAMC_Raw_Data_for_FY22[[#This Row],[25th]])/25)*15) + AAMC_Raw_Data_for_FY22[[#This Row],[25th]]","v":144980},{"$f":"(((AAMC_Raw_Data_for_FY22[[#This Row],[Median]]-AAMC_Raw_Data_for_FY22[[#This Row],[25th]])/25)*20) + AAMC_Raw_Data_for_FY22[[#This Row],[25th]]","v":149622},154264,{"$f":"(((AAMC_Raw_Data_for_FY22[[#This Row],[75th]]-AAMC_Raw_Data_for_FY22[[#This Row],[Median]])/25)*5) + AAMC_Raw_Data_for_FY22[[#This Row],[Median]]","v":157191.4},{"$f":"(((AAMC_Raw_Data_for_FY22[[#This Row],[75th]]-AAMC_Raw_Data_for_FY22[[#This Row],[Median]])/25)*10) + AAMC_Raw_Data_for_FY22[[#This Row],[Median]]","v":160118.79999999999},{"$f":"(((AAMC_Raw_Data_for_FY22[[#This Row],[75th]]-AAMC_Raw_Data_for_FY22[[#This Row],[Median]])/25)*15) + AAMC_Raw_Data_for_FY22[[#This Row],[Median]]","v":163046.20000000001},{"$f":"(((AAMC_Raw_Data_for_FY22[[#This Row],[75th]]-AAMC_Raw_Data_for_FY22[[#This Row],[Median]])/25)*20) + AAMC_Raw_Data_for_FY22[[#This Row],[Median]]","v":165973.6},168901,{"$f":"(((AAMC_Raw_Data_for_FY22[[#This Row],[75th]]-AAMC_Raw_Data_for_FY22[[#This Row],[Median]])/25)*30) + AAMC_Raw_Data_for_FY22[[#This Row],[Median]]","v":171828.4},{"$f":"(((AAMC_Raw_Data_for_FY22[[#This Row],[75th]]-AAMC_Raw_Data_for_FY22[[#This Row],[Median]])/25)*35) + AAMC_Raw_Data_for_FY22[[#This Row],[Median]]","v":174755.8},{"$f":"(((AAMC_Raw_Data_for_FY22[[#This Row],[75th]]-AAMC_Raw_Data_for_FY22[[#This Row],[Median]])/25)*40) + AAMC_Raw_Data_for_FY22[[#This Row],[Median]]","v":177683.20000000001}]
[{"$f":"AAMC_Raw_Data_for_FY22[[#This Row],[Source]]&AAMC_Raw_Data_for_FY22[[#This Row],[Type]]&AAMC_Raw_Data_for_FY22[[#This Row],[School Subset]]&AAMC_Raw_Data_for_FY22[[#This Row],[Rank]]&AAMC_Raw_Data_for_FY22[[#This Row],[Degree]]&AAMC_Raw_Data_for_FY22[[#This Row],[Department / Specialty]]&\"L\"","v":"AAMCAcademicPublicProfessorPhDDevelopmental-Behavioral PediatricsL"},"Developmental-Behavioral Pediatrics",2,"AAMC","Academic","Public","Professor","PhD","2021-2022",null,{"$f":"(((AAMC_Raw_Data_for_FY22[[#This Row],[Median]]-AAMC_Raw_Data_for_FY22[[#This Row],[25th]])/25)*5) + AAMC_Raw_Data_for_FY22[[#This Row],[25th]]","v":0},{"$f":"(((AAMC_Raw_Data_for_FY22[[#This Row],[Median]]-AAMC_Raw_Data_for_FY22[[#This Row],[25th]])/25)*10) + AAMC_Raw_Data_for_FY22[[#This Row],[25th]]","v":0},{"$f":"(((AAMC_Raw_Data_for_FY22[[#This Row],[Median]]-AAMC_Raw_Data_for_FY22[[#This Row],[25th]])/25)*15) + AAMC_Raw_Data_for_FY22[[#This Row],[25th]]","v":0},{"$f":"(((AAMC_Raw_Data_for_FY22[[#This Row],[Median]]-AAMC_Raw_Data_for_FY22[[#This Row],[25th]])/25)*20) + AAMC_Raw_Data_for_FY22[[#This Row],[25th]]","v":0},null,{"$f":"(((AAMC_Raw_Data_for_FY22[[#This Row],[75th]]-AAMC_Raw_Data_for_FY22[[#This Row],[Median]])/25)*5) + AAMC_Raw_Data_for_FY22[[#This Row],[Median]]","v":0},{"$f":"(((AAMC_Raw_Data_for_FY22[[#This Row],[75th]]-AAMC_Raw_Data_for_FY22[[#This Row],[Median]])/25)*10) + AAMC_Raw_Data_for_FY22[[#This Row],[Median]]","v":0},{"$f":"(((AAMC_Raw_Data_for_FY22[[#This Row],[75th]]-AAMC_Raw_Data_for_FY22[[#This Row],[Median]])/25)*15) + AAMC_Raw_Data_for_FY22[[#This Row],[Median]]","v":0},{"$f":"(((AAMC_Raw_Data_for_FY22[[#This Row],[75th]]-AAMC_Raw_Data_for_FY22[[#This Row],[Median]])/25)*20) + AAMC_Raw_Data_for_FY22[[#This Row],[Median]]","v":0},null,{"$f":"(((AAMC_Raw_Data_for_FY22[[#This Row],[75th]]-AAMC_Raw_Data_for_FY22[[#This Row],[Median]])/25)*30) + AAMC_Raw_Data_for_FY22[[#This Row],[Median]]","v":0},{"$f":"(((AAMC_Raw_Data_for_FY22[[#This Row],[75th]]-AAMC_Raw_Data_for_FY22[[#This Row],[Median]])/25)*35) + AAMC_Raw_Data_for_FY22[[#This Row],[Median]]","v":0},{"$f":"(((AAMC_Raw_Data_for_FY22[[#This Row],[75th]]-AAMC_Raw_Data_for_FY22[[#This Row],[Median]])/25)*40) + AAMC_Raw_Data_for_FY22[[#This Row],[Median]]","v":0}]
[{"$f":"AAMC_Raw_Data_for_FY22[[#This Row],[Source]]&AAMC_Raw_Data_for_FY22[[#This Row],[Type]]&AAMC_Raw_Data_for_FY22[[#This Row],[School Subset]]&AAMC_Raw_Data_for_FY22[[#This Row],[Rank]]&AAMC_Raw_Data_for_FY22[[#This Row],[Degree]]&AAMC_Raw_Data_for_FY22[[#This Row],[Department / Specialty]]&\"L\"","v":"AAMCAcademicPublicInstructorPhDEmergency Medicine-Peds.L"},"Emergency Medicine-Peds.",5,"AAMC","Academic","Public","Instructor","PhD","2021-2022",null,{"$f":"(((AAMC_Raw_Data_for_FY22[[#This Row],[Median]]-AAMC_Raw_Data_for_FY22[[#This Row],[25th]])/25)*5) + AAMC_Raw_Data_for_FY22[[#This Row],[25th]]","v":0},{"$f":"(((AAMC_Raw_Data_for_FY22[[#This Row],[Median]]-AAMC_Raw_Data_for_FY22[[#This Row],[25th]])/25)*10) + AAMC_Raw_Data_for_FY22[[#This Row],[25th]]","v":0},{"$f":"(((AAMC_Raw_Data_for_FY22[[#This Row],[Median]]-AAMC_Raw_Data_for_FY22[[#This Row],[25th]])/25)*15) + AAMC_Raw_Data_for_FY22[[#This Row],[25th]]","v":0},{"$f":"(((AAMC_Raw_Data_for_FY22[[#This Row],[Median]]-AAMC_Raw_Data_for_FY22[[#This Row],[25th]])/25)*20) + AAMC_Raw_Data_for_FY22[[#This Row],[25th]]","v":0},null,{"$f":"(((AAMC_Raw_Data_for_FY22[[#This Row],[75th]]-AAMC_Raw_Data_for_FY22[[#This Row],[Median]])/25)*5) + AAMC_Raw_Data_for_FY22[[#This Row],[Median]]","v":0},{"$f":"(((AAMC_Raw_Data_for_FY22[[#This Row],[75th]]-AAMC_Raw_Data_for_FY22[[#This Row],[Median]])/25)*10) + AAMC_Raw_Data_for_FY22[[#This Row],[Median]]","v":0},{"$f":"(((AAMC_Raw_Data_for_FY22[[#This Row],[75th]]-AAMC_Raw_Data_for_FY22[[#This Row],[Median]])/25)*15) + AAMC_Raw_Data_for_FY22[[#This Row],[Median]]","v":0},{"$f":"(((AAMC_Raw_Data_for_FY22[[#This Row],[75th]]-AAMC_Raw_Data_for_FY22[[#This Row],[Median]])/25)*20) + AAMC_Raw_Data_for_FY22[[#This Row],[Median]]","v":0},null,{"$f":"(((AAMC_Raw_Data_for_FY22[[#This Row],[75th]]-AAMC_Raw_Data_for_FY22[[#This Row],[Median]])/25)*30) + AAMC_Raw_Data_for_FY22[[#This Row],[Median]]","v":0},{"$f":"(((AAMC_Raw_Data_for_FY22[[#This Row],[75th]]-AAMC_Raw_Data_for_FY22[[#This Row],[Median]])/25)*35) + AAMC_Raw_Data_for_FY22[[#This Row],[Median]]","v":0},{"$f":"(((AAMC_Raw_Data_for_FY22[[#This Row],[75th]]-AAMC_Raw_Data_for_FY22[[#This Row],[Median]])/25)*40) + AAMC_Raw_Data_for_FY22[[#This Row],[Median]]","v":0}]
[{"$f":"AAMC_Raw_Data_for_FY22[[#This Row],[Source]]&AAMC_Raw_Data_for_FY22[[#This Row],[Type]]&AAMC_Raw_Data_for_FY22[[#This Row],[School Subset]]&AAMC_Raw_Data_for_FY22[[#This Row],[Rank]]&AAMC_Raw_Data_for_FY22[[#This Row],[Degree]]&AAMC_Raw_Data_for_FY22[[#This Row],[Department / Specialty]]&\"L\"","v":"AAMCAcademicPublicAssistantPhDEmergency Medicine-Peds.L"},"Emergency Medicine-Peds.",4,"AAMC","Academic","Public","Assistant","PhD","2021-2022",null,{"$f":"(((AAMC_Raw_Data_for_FY22[[#This Row],[Median]]-AAMC_Raw_Data_for_FY22[[#This Row],[25th]])/25)*5) + AAMC_Raw_Data_for_FY22[[#This Row],[25th]]","v":0},{"$f":"(((AAMC_Raw_Data_for_FY22[[#This Row],[Median]]-AAMC_Raw_Data_for_FY22[[#This Row],[25th]])/25)*10) + AAMC_Raw_Data_for_FY22[[#This Row],[25th]]","v":0},{"$f":"(((AAMC_Raw_Data_for_FY22[[#This Row],[Median]]-AAMC_Raw_Data_for_FY22[[#This Row],[25th]])/25)*15) + AAMC_Raw_Data_for_FY22[[#This Row],[25th]]","v":0},{"$f":"(((AAMC_Raw_Data_for_FY22[[#This Row],[Median]]-AAMC_Raw_Data_for_FY22[[#This Row],[25th]])/25)*20) + AAMC_Raw_Data_for_FY22[[#This Row],[25th]]","v":0},null,{"$f":"(((AAMC_Raw_Data_for_FY22[[#This Row],[75th]]-AAMC_Raw_Data_for_FY22[[#This Row],[Median]])/25)*5) + AAMC_Raw_Data_for_FY22[[#This Row],[Median]]","v":0},{"$f":"(((AAMC_Raw_Data_for_FY22[[#This Row],[75th]]-AAMC_Raw_Data_for_FY22[[#This Row],[Median]])/25)*10) + AAMC_Raw_Data_for_FY22[[#This Row],[Median]]","v":0},{"$f":"(((AAMC_Raw_Data_for_FY22[[#This Row],[75th]]-AAMC_Raw_Data_for_FY22[[#This Row],[Median]])/25)*15) + AAMC_Raw_Data_for_FY22[[#This Row],[Median]]","v":0},{"$f":"(((AAMC_Raw_Data_for_FY22[[#This Row],[75th]]-AAMC_Raw_Data_for_FY22[[#This Row],[Median]])/25)*20) + AAMC_Raw_Data_for_FY22[[#This Row],[Median]]","v":0},null,{"$f":"(((AAMC_Raw_Data_for_FY22[[#This Row],[75th]]-AAMC_Raw_Data_for_FY22[[#This Row],[Median]])/25)*30) + AAMC_Raw_Data_for_FY22[[#This Row],[Median]]","v":0},{"$f":"(((AAMC_Raw_Data_for_FY22[[#This Row],[75th]]-AAMC_Raw_Data_for_FY22[[#This Row],[Median]])/25)*35) + AAMC_Raw_Data_for_FY22[[#This Row],[Median]]","v":0},{"$f":"(((AAMC_Raw_Data_for_FY22[[#This Row],[75th]]-AAMC_Raw_Data_for_FY22[[#This Row],[Median]])/25)*40) + AAMC_Raw_Data_for_FY22[[#This Row],[Median]]","v":0}]
[{"$f":"AAMC_Raw_Data_for_FY22[[#This Row],[Source]]&AAMC_Raw_Data_for_FY22[[#This Row],[Type]]&AAMC_Raw_Data_for_FY22[[#This Row],[School Subset]]&AAMC_Raw_Data_for_FY22[[#This Row],[Rank]]&AAMC_Raw_Data_for_FY22[[#This Row],[Degree]]&AAMC_Raw_Data_for_FY22[[#This Row],[Department / Specialty]]&\"L\"","v":"AAMCAcademicPublicAssociatePhDEmergency Medicine-Peds.L"},"Emergency Medicine-Peds.",3,"AAMC","Academic","Public","Associate","PhD","2021-2022",null,{"$f":"(((AAMC_Raw_Data_for_FY22[[#This Row],[Median]]-AAMC_Raw_Data_for_FY22[[#This Row],[25th]])/25)*5) + AAMC_Raw_Data_for_FY22[[#This Row],[25th]]","v":0},{"$f":"(((AAMC_Raw_Data_for_FY22[[#This Row],[Median]]-AAMC_Raw_Data_for_FY22[[#This Row],[25th]])/25)*10) + AAMC_Raw_Data_for_FY22[[#This Row],[25th]]","v":0},{"$f":"(((AAMC_Raw_Data_for_FY22[[#This Row],[Median]]-AAMC_Raw_Data_for_FY22[[#This Row],[25th]])/25)*15) + AAMC_Raw_Data_for_FY22[[#This Row],[25th]]","v":0},{"$f":"(((AAMC_Raw_Data_for_FY22[[#This Row],[Median]]-AAMC_Raw_Data_for_FY22[[#This Row],[25th]])/25)*20) + AAMC_Raw_Data_for_FY22[[#This Row],[25th]]","v":0},null,{"$f":"(((AAMC_Raw_Data_for_FY22[[#This Row],[75th]]-AAMC_Raw_Data_for_FY22[[#This Row],[Median]])/25)*5) + AAMC_Raw_Data_for_FY22[[#This Row],[Median]]","v":0},{"$f":"(((AAMC_Raw_Data_for_FY22[[#This Row],[75th]]-AAMC_Raw_Data_for_FY22[[#This Row],[Median]])/25)*10) + AAMC_Raw_Data_for_FY22[[#This Row],[Median]]","v":0},{"$f":"(((AAMC_Raw_Data_for_FY22[[#This Row],[75th]]-AAMC_Raw_Data_for_FY22[[#This Row],[Median]])/25)*15) + AAMC_Raw_Data_for_FY22[[#This Row],[Median]]","v":0},{"$f":"(((AAMC_Raw_Data_for_FY22[[#This Row],[75th]]-AAMC_Raw_Data_for_FY22[[#This Row],[Median]])/25)*20) + AAMC_Raw_Data_for_FY22[[#This Row],[Median]]","v":0},null,{"$f":"(((AAMC_Raw_Data_for_FY22[[#This Row],[75th]]-AAMC_Raw_Data_for_FY22[[#This Row],[Median]])/25)*30) + AAMC_Raw_Data_for_FY22[[#This Row],[Median]]","v":0},{"$f":"(((AAMC_Raw_Data_for_FY22[[#This Row],[75th]]-AAMC_Raw_Data_for_FY22[[#This Row],[Median]])/25)*35) + AAMC_Raw_Data_for_FY22[[#This Row],[Median]]","v":0},{"$f":"(((AAMC_Raw_Data_for_FY22[[#This Row],[75th]]-AAMC_Raw_Data_for_FY22[[#This Row],[Median]])/25)*40) + AAMC_Raw_Data_for_FY22[[#This Row],[Median]]","v":0}]
[{"$f":"AAMC_Raw_Data_for_FY22[[#This Row],[Source]]&AAMC_Raw_Data_for_FY22[[#This Row],[Type]]&AAMC_Raw_Data_for_FY22[[#This Row],[School Subset]]&AAMC_Raw_Data_for_FY22[[#This Row],[Rank]]&AAMC_Raw_Data_for_FY22[[#This Row],[Degree]]&AAMC_Raw_Data_for_FY22[[#This Row],[Department / Specialty]]&\"L\"","v":"AAMCAcademicPublicProfessorPhDEmergency Medicine-Peds.L"},"Emergency Medicine-Peds.",2,"AAMC","Academic","Public","Professor","PhD","2021-2022",null,{"$f":"(((AAMC_Raw_Data_for_FY22[[#This Row],[Median]]-AAMC_Raw_Data_for_FY22[[#This Row],[25th]])/25)*5) + AAMC_Raw_Data_for_FY22[[#This Row],[25th]]","v":0},{"$f":"(((AAMC_Raw_Data_for_FY22[[#This Row],[Median]]-AAMC_Raw_Data_for_FY22[[#This Row],[25th]])/25)*10) + AAMC_Raw_Data_for_FY22[[#This Row],[25th]]","v":0},{"$f":"(((AAMC_Raw_Data_for_FY22[[#This Row],[Median]]-AAMC_Raw_Data_for_FY22[[#This Row],[25th]])/25)*15) + AAMC_Raw_Data_for_FY22[[#This Row],[25th]]","v":0},{"$f":"(((AAMC_Raw_Data_for_FY22[[#This Row],[Median]]-AAMC_Raw_Data_for_FY22[[#This Row],[25th]])/25)*20) + AAMC_Raw_Data_for_FY22[[#This Row],[25th]]","v":0},null,{"$f":"(((AAMC_Raw_Data_for_FY22[[#This Row],[75th]]-AAMC_Raw_Data_for_FY22[[#This Row],[Median]])/25)*5) + AAMC_Raw_Data_for_FY22[[#This Row],[Median]]","v":0},{"$f":"(((AAMC_Raw_Data_for_FY22[[#This Row],[75th]]-AAMC_Raw_Data_for_FY22[[#This Row],[Median]])/25)*10) + AAMC_Raw_Data_for_FY22[[#This Row],[Median]]","v":0},{"$f":"(((AAMC_Raw_Data_for_FY22[[#This Row],[75th]]-AAMC_Raw_Data_for_FY22[[#This Row],[Median]])/25)*15) + AAMC_Raw_Data_for_FY22[[#This Row],[Median]]","v":0},{"$f":"(((AAMC_Raw_Data_for_FY22[[#This Row],[75th]]-AAMC_Raw_Data_for_FY22[[#This Row],[Median]])/25)*20) + AAMC_Raw_Data_for_FY22[[#This Row],[Median]]","v":0},null,{"$f":"(((AAMC_Raw_Data_for_FY22[[#This Row],[75th]]-AAMC_Raw_Data_for_FY22[[#This Row],[Median]])/25)*30) + AAMC_Raw_Data_for_FY22[[#This Row],[Median]]","v":0},{"$f":"(((AAMC_Raw_Data_for_FY22[[#This Row],[75th]]-AAMC_Raw_Data_for_FY22[[#This Row],[Median]])/25)*35) + AAMC_Raw_Data_for_FY22[[#This Row],[Median]]","v":0},{"$f":"(((AAMC_Raw_Data_for_FY22[[#This Row],[75th]]-AAMC_Raw_Data_for_FY22[[#This Row],[Median]])/25)*40) + AAMC_Raw_Data_for_FY22[[#This Row],[Median]]","v":0}]
[{"$f":"AAMC_Raw_Data_for_FY22[[#This Row],[Source]]&AAMC_Raw_Data_for_FY22[[#This Row],[Type]]&AAMC_Raw_Data_for_FY22[[#This Row],[School Subset]]&AAMC_Raw_Data_for_FY22[[#This Row],[Rank]]&AAMC_Raw_Data_for_FY22[[#This Row],[Degree]]&AAMC_Raw_Data_for_FY22[[#This Row],[Department / Specialty]]&\"L\"","v":"AAMCAcademicPublicAssistantPhDEndocrinology-Peds.L"},"Endocrinology-Peds.",4,"AAMC","Academic","Public","Assistant","PhD","2021-2022",83478,{"$f":"(((AAMC_Raw_Data_for_FY22[[#This Row],[Median]]-AAMC_Raw_Data_for_FY22[[#This Row],[25th]])/25)*5) + AAMC_Raw_Data_for_FY22[[#This Row],[25th]]","v":89112.4},{"$f":"(((AAMC_Raw_Data_for_FY22[[#This Row],[Median]]-AAMC_Raw_Data_for_FY22[[#This Row],[25th]])/25)*10) + AAMC_Raw_Data_for_FY22[[#This Row],[25th]]","v":94746.8},{"$f":"(((AAMC_Raw_Data_for_FY22[[#This Row],[Median]]-AAMC_Raw_Data_for_FY22[[#This Row],[25th]])/25)*15) + AAMC_Raw_Data_for_FY22[[#This Row],[25th]]","v":100381.2},{"$f":"(((AAMC_Raw_Data_for_FY22[[#This Row],[Median]]-AAMC_Raw_Data_for_FY22[[#This Row],[25th]])/25)*20) + AAMC_Raw_Data_for_FY22[[#This Row],[25th]]","v":106015.6},111650,{"$f":"(((AAMC_Raw_Data_for_FY22[[#This Row],[75th]]-AAMC_Raw_Data_for_FY22[[#This Row],[Median]])/25)*5) + AAMC_Raw_Data_for_FY22[[#This Row],[Median]]","v":111797.8},{"$f":"(((AAMC_Raw_Data_for_FY22[[#This Row],[75th]]-AAMC_Raw_Data_for_FY22[[#This Row],[Median]])/25)*10) + AAMC_Raw_Data_for_FY22[[#This Row],[Median]]","v":111945.60000000001},{"$f":"(((AAMC_Raw_Data_for_FY22[[#This Row],[75th]]-AAMC_Raw_Data_for_FY22[[#This Row],[Median]])/25)*15) + AAMC_Raw_Data_for_FY22[[#This Row],[Median]]","v":112093.4},{"$f":"(((AAMC_Raw_Data_for_FY22[[#This Row],[75th]]-AAMC_Raw_Data_for_FY22[[#This Row],[Median]])/25)*20) + AAMC_Raw_Data_for_FY22[[#This Row],[Median]]","v":112241.2},112389,{"$f":"(((AAMC_Raw_Data_for_FY22[[#This Row],[75th]]-AAMC_Raw_Data_for_FY22[[#This Row],[Median]])/25)*30) + AAMC_Raw_Data_for_FY22[[#This Row],[Median]]","v":112536.8},{"$f":"(((AAMC_Raw_Data_for_FY22[[#This Row],[75th]]-AAMC_Raw_Data_for_FY22[[#This Row],[Median]])/25)*35) + AAMC_Raw_Data_for_FY22[[#This Row],[Median]]","v":112684.6},{"$f":"(((AAMC_Raw_Data_for_FY22[[#This Row],[75th]]-AAMC_Raw_Data_for_FY22[[#This Row],[Median]])/25)*40) + AAMC_Raw_Data_for_FY22[[#This Row],[Median]]","v":112832.4}]
[{"$f":"AAMC_Raw_Data_for_FY22[[#This Row],[Source]]&AAMC_Raw_Data_for_FY22[[#This Row],[Type]]&AAMC_Raw_Data_for_FY22[[#This Row],[School Subset]]&AAMC_Raw_Data_for_FY22[[#This Row],[Rank]]&AAMC_Raw_Data_for_FY22[[#This Row],[Degree]]&AAMC_Raw_Data_for_FY22[[#This Row],[Department / Specialty]]&\"L\"","v":"AAMCAcademicPublicAssociatePhDEndocrinology-Peds.L"},"Endocrinology-Peds.",3,"AAMC","Academic","Public","Associate","PhD","2021-2022",null,{"$f":"(((AAMC_Raw_Data_for_FY22[[#This Row],[Median]]-AAMC_Raw_Data_for_FY22[[#This Row],[25th]])/25)*5) + AAMC_Raw_Data_for_FY22[[#This Row],[25th]]","v":0},{"$f":"(((AAMC_Raw_Data_for_FY22[[#This Row],[Median]]-AAMC_Raw_Data_for_FY22[[#This Row],[25th]])/25)*10) + AAMC_Raw_Data_for_FY22[[#This Row],[25th]]","v":0},{"$f":"(((AAMC_Raw_Data_for_FY22[[#This Row],[Median]]-AAMC_Raw_Data_for_FY22[[#This Row],[25th]])/25)*15) + AAMC_Raw_Data_for_FY22[[#This Row],[25th]]","v":0},{"$f":"(((AAMC_Raw_Data_for_FY22[[#This Row],[Median]]-AAMC_Raw_Data_for_FY22[[#This Row],[25th]])/25)*20) + AAMC_Raw_Data_for_FY22[[#This Row],[25th]]","v":0},null,{"$f":"(((AAMC_Raw_Data_for_FY22[[#This Row],[75th]]-AAMC_Raw_Data_for_FY22[[#This Row],[Median]])/25)*5) + AAMC_Raw_Data_for_FY22[[#This Row],[Median]]","v":0},{"$f":"(((AAMC_Raw_Data_for_FY22[[#This Row],[75th]]-AAMC_Raw_Data_for_FY22[[#This Row],[Median]])/25)*10) + AAMC_Raw_Data_for_FY22[[#This Row],[Median]]","v":0},{"$f":"(((AAMC_Raw_Data_for_FY22[[#This Row],[75th]]-AAMC_Raw_Data_for_FY22[[#This Row],[Median]])/25)*15) + AAMC_Raw_Data_for_FY22[[#This Row],[Median]]","v":0},{"$f":"(((AAMC_Raw_Data_for_FY22[[#This Row],[75th]]-AAMC_Raw_Data_for_FY22[[#This Row],[Median]])/25)*20) + AAMC_Raw_Data_for_FY22[[#This Row],[Median]]","v":0},null,{"$f":"(((AAMC_Raw_Data_for_FY22[[#This Row],[75th]]-AAMC_Raw_Data_for_FY22[[#This Row],[Median]])/25)*30) + AAMC_Raw_Data_for_FY22[[#This Row],[Median]]","v":0},{"$f":"(((AAMC_Raw_Data_for_FY22[[#This Row],[75th]]-AAMC_Raw_Data_for_FY22[[#This Row],[Median]])/25)*35) + AAMC_Raw_Data_for_FY22[[#This Row],[Median]]","v":0},{"$f":"(((AAMC_Raw_Data_for_FY22[[#This Row],[75th]]-AAMC_Raw_Data_for_FY22[[#This Row],[Median]])/25)*40) + AAMC_Raw_Data_for_FY22[[#This Row],[Median]]","v":0}]
[{"$f":"AAMC_Raw_Data_for_FY22[[#This Row],[Source]]&AAMC_Raw_Data_for_FY22[[#This Row],[Type]]&AAMC_Raw_Data_for_FY22[[#This Row],[School Subset]]&AAMC_Raw_Data_for_FY22[[#This Row],[Rank]]&AAMC_Raw_Data_for_FY22[[#This Row],[Degree]]&AAMC_Raw_Data_for_FY22[[#This Row],[Department / Specialty]]&\"L\"","v":"AAMCAcademicPublicProfessorPhDEndocrinology-Peds.L"},"Endocrinology-Peds.",2,"AAMC","Academic","Public","Professor","PhD","2021-2022",null,{"$f":"(((AAMC_Raw_Data_for_FY22[[#This Row],[Median]]-AAMC_Raw_Data_for_FY22[[#This Row],[25th]])/25)*5) + AAMC_Raw_Data_for_FY22[[#This Row],[25th]]","v":0},{"$f":"(((AAMC_Raw_Data_for_FY22[[#This Row],[Median]]-AAMC_Raw_Data_for_FY22[[#This Row],[25th]])/25)*10) + AAMC_Raw_Data_for_FY22[[#This Row],[25th]]","v":0},{"$f":"(((AAMC_Raw_Data_for_FY22[[#This Row],[Median]]-AAMC_Raw_Data_for_FY22[[#This Row],[25th]])/25)*15) + AAMC_Raw_Data_for_FY22[[#This Row],[25th]]","v":0},{"$f":"(((AAMC_Raw_Data_for_FY22[[#This Row],[Median]]-AAMC_Raw_Data_for_FY22[[#This Row],[25th]])/25)*20) + AAMC_Raw_Data_for_FY22[[#This Row],[25th]]","v":0},null,{"$f":"(((AAMC_Raw_Data_for_FY22[[#This Row],[75th]]-AAMC_Raw_Data_for_FY22[[#This Row],[Median]])/25)*5) + AAMC_Raw_Data_for_FY22[[#This Row],[Median]]","v":0},{"$f":"(((AAMC_Raw_Data_for_FY22[[#This Row],[75th]]-AAMC_Raw_Data_for_FY22[[#This Row],[Median]])/25)*10) + AAMC_Raw_Data_for_FY22[[#This Row],[Median]]","v":0},{"$f":"(((AAMC_Raw_Data_for_FY22[[#This Row],[75th]]-AAMC_Raw_Data_for_FY22[[#This Row],[Median]])/25)*15) + AAMC_Raw_Data_for_FY22[[#This Row],[Median]]","v":0},{"$f":"(((AAMC_Raw_Data_for_FY22[[#This Row],[75th]]-AAMC_Raw_Data_for_FY22[[#This Row],[Median]])/25)*20) + AAMC_Raw_Data_for_FY22[[#This Row],[Median]]","v":0},null,{"$f":"(((AAMC_Raw_Data_for_FY22[[#This Row],[75th]]-AAMC_Raw_Data_for_FY22[[#This Row],[Median]])/25)*30) + AAMC_Raw_Data_for_FY22[[#This Row],[Median]]","v":0},{"$f":"(((AAMC_Raw_Data_for_FY22[[#This Row],[75th]]-AAMC_Raw_Data_for_FY22[[#This Row],[Median]])/25)*35) + AAMC_Raw_Data_for_FY22[[#This Row],[Median]]","v":0},{"$f":"(((AAMC_Raw_Data_for_FY22[[#This Row],[75th]]-AAMC_Raw_Data_for_FY22[[#This Row],[Median]])/25)*40) + AAMC_Raw_Data_for_FY22[[#This Row],[Median]]","v":0}]
[{"$f":"AAMC_Raw_Data_for_FY22[[#This Row],[Source]]&AAMC_Raw_Data_for_FY22[[#This Row],[Type]]&AAMC_Raw_Data_for_FY22[[#This Row],[School Subset]]&AAMC_Raw_Data_for_FY22[[#This Row],[Rank]]&AAMC_Raw_Data_for_FY22[[#This Row],[Degree]]&AAMC_Raw_Data_for_FY22[[#This Row],[Department / Specialty]]&\"L\"","v":"AAMCAcademicPublicChiefPhDEndocrinology-Peds.L"},"Endocrinology-Peds.",6,"AAMC","Academic","Public","Chief","PhD","2021-2022",null,{"$f":"(((AAMC_Raw_Data_for_FY22[[#This Row],[Median]]-AAMC_Raw_Data_for_FY22[[#This Row],[25th]])/25)*5) + AAMC_Raw_Data_for_FY22[[#This Row],[25th]]","v":0},{"$f":"(((AAMC_Raw_Data_for_FY22[[#This Row],[Median]]-AAMC_Raw_Data_for_FY22[[#This Row],[25th]])/25)*10) + AAMC_Raw_Data_for_FY22[[#This Row],[25th]]","v":0},{"$f":"(((AAMC_Raw_Data_for_FY22[[#This Row],[Median]]-AAMC_Raw_Data_for_FY22[[#This Row],[25th]])/25)*15) + AAMC_Raw_Data_for_FY22[[#This Row],[25th]]","v":0},{"$f":"(((AAMC_Raw_Data_for_FY22[[#This Row],[Median]]-AAMC_Raw_Data_for_FY22[[#This Row],[25th]])/25)*20) + AAMC_Raw_Data_for_FY22[[#This Row],[25th]]","v":0},null,{"$f":"(((AAMC_Raw_Data_for_FY22[[#This Row],[75th]]-AAMC_Raw_Data_for_FY22[[#This Row],[Median]])/25)*5) + AAMC_Raw_Data_for_FY22[[#This Row],[Median]]","v":0},{"$f":"(((AAMC_Raw_Data_for_FY22[[#This Row],[75th]]-AAMC_Raw_Data_for_FY22[[#This Row],[Median]])/25)*10) + AAMC_Raw_Data_for_FY22[[#This Row],[Median]]","v":0},{"$f":"(((AAMC_Raw_Data_for_FY22[[#This Row],[75th]]-AAMC_Raw_Data_for_FY22[[#This Row],[Median]])/25)*15) + AAMC_Raw_Data_for_FY22[[#This Row],[Median]]","v":0},{"$f":"(((AAMC_Raw_Data_for_FY22[[#This Row],[75th]]-AAMC_Raw_Data_for_FY22[[#This Row],[Median]])/25)*20) + AAMC_Raw_Data_for_FY22[[#This Row],[Median]]","v":0},null,{"$f":"(((AAMC_Raw_Data_for_FY22[[#This Row],[75th]]-AAMC_Raw_Data_for_FY22[[#This Row],[Median]])/25)*30) + AAMC_Raw_Data_for_FY22[[#This Row],[Median]]","v":0},{"$f":"(((AAMC_Raw_Data_for_FY22[[#This Row],[75th]]-AAMC_Raw_Data_for_FY22[[#This Row],[Median]])/25)*35) + AAMC_Raw_Data_for_FY22[[#This Row],[Median]]","v":0},{"$f":"(((AAMC_Raw_Data_for_FY22[[#This Row],[75th]]-AAMC_Raw_Data_for_FY22[[#This Row],[Median]])/25)*40) + AAMC_Raw_Data_for_FY22[[#This Row],[Median]]","v":0}]
[{"$f":"AAMC_Raw_Data_for_FY22[[#This Row],[Source]]&AAMC_Raw_Data_for_FY22[[#This Row],[Type]]&AAMC_Raw_Data_for_FY22[[#This Row],[School Subset]]&AAMC_Raw_Data_for_FY22[[#This Row],[Rank]]&AAMC_Raw_Data_for_FY22[[#This Row],[Degree]]&AAMC_Raw_Data_for_FY22[[#This Row],[Department / Specialty]]&\"L\"","v":"AAMCAcademicPublicAssistantPhDGastroenterology-Peds.L"},"Gastroenterology-Peds.",4,"AAMC","Academic","Public","Assistant","PhD","2021-2022",91275,{"$f":"(((AAMC_Raw_Data_for_FY22[[#This Row],[Median]]-AAMC_Raw_Data_for_FY22[[#This Row],[25th]])/25)*5) + AAMC_Raw_Data_for_FY22[[#This Row],[25th]]","v":94323.6},{"$f":"(((AAMC_Raw_Data_for_FY22[[#This Row],[Median]]-AAMC_Raw_Data_for_FY22[[#This Row],[25th]])/25)*10) + AAMC_Raw_Data_for_FY22[[#This Row],[25th]]","v":97372.2},{"$f":"(((AAMC_Raw_Data_for_FY22[[#This Row],[Median]]-AAMC_Raw_Data_for_FY22[[#This Row],[25th]])/25)*15) + AAMC_Raw_Data_for_FY22[[#This Row],[25th]]","v":100420.8},{"$f":"(((AAMC_Raw_Data_for_FY22[[#This Row],[Median]]-AAMC_Raw_Data_for_FY22[[#This Row],[25th]])/25)*20) + AAMC_Raw_Data_for_FY22[[#This Row],[25th]]","v":103469.4},106518,{"$f":"(((AAMC_Raw_Data_for_FY22[[#This Row],[75th]]-AAMC_Raw_Data_for_FY22[[#This Row],[Median]])/25)*5) + AAMC_Raw_Data_for_FY22[[#This Row],[Median]]","v":107836.2},{"$f":"(((AAMC_Raw_Data_for_FY22[[#This Row],[75th]]-AAMC_Raw_Data_for_FY22[[#This Row],[Median]])/25)*10) + AAMC_Raw_Data_for_FY22[[#This Row],[Median]]","v":109154.4},{"$f":"(((AAMC_Raw_Data_for_FY22[[#This Row],[75th]]-AAMC_Raw_Data_for_FY22[[#This Row],[Median]])/25)*15) + AAMC_Raw_Data_for_FY22[[#This Row],[Median]]","v":110472.6},{"$f":"(((AAMC_Raw_Data_for_FY22[[#This Row],[75th]]-AAMC_Raw_Data_for_FY22[[#This Row],[Median]])/25)*20) + AAMC_Raw_Data_for_FY22[[#This Row],[Median]]","v":111790.8},113109,{"$f":"(((AAMC_Raw_Data_for_FY22[[#This Row],[75th]]-AAMC_Raw_Data_for_FY22[[#This Row],[Median]])/25)*30) + AAMC_Raw_Data_for_FY22[[#This Row],[Median]]","v":114427.2},{"$f":"(((AAMC_Raw_Data_for_FY22[[#This Row],[75th]]-AAMC_Raw_Data_for_FY22[[#This Row],[Median]])/25)*35) + AAMC_Raw_Data_for_FY22[[#This Row],[Median]]","v":115745.4},{"$f":"(((AAMC_Raw_Data_for_FY22[[#This Row],[75th]]-AAMC_Raw_Data_for_FY22[[#This Row],[Median]])/25)*40) + AAMC_Raw_Data_for_FY22[[#This Row],[Median]]","v":117063.6}]
[{"$f":"AAMC_Raw_Data_for_FY22[[#This Row],[Source]]&AAMC_Raw_Data_for_FY22[[#This Row],[Type]]&AAMC_Raw_Data_for_FY22[[#This Row],[School Subset]]&AAMC_Raw_Data_for_FY22[[#This Row],[Rank]]&AAMC_Raw_Data_for_FY22[[#This Row],[Degree]]&AAMC_Raw_Data_for_FY22[[#This Row],[Department / Specialty]]&\"L\"","v":"AAMCAcademicPublicAssociatePhDGastroenterology-Peds.L"},"Gastroenterology-Peds.",3,"AAMC","Academic","Public","Associate","PhD","2021-2022",120056,{"$f":"(((AAMC_Raw_Data_for_FY22[[#This Row],[Median]]-AAMC_Raw_Data_for_FY22[[#This Row],[25th]])/25)*5) + AAMC_Raw_Data_for_FY22[[#This Row],[25th]]","v":121678.8},{"$f":"(((AAMC_Raw_Data_for_FY22[[#This Row],[Median]]-AAMC_Raw_Data_for_FY22[[#This Row],[25th]])/25)*10) + AAMC_Raw_Data_for_FY22[[#This Row],[25th]]","v":123301.6},{"$f":"(((AAMC_Raw_Data_for_FY22[[#This Row],[Median]]-AAMC_Raw_Data_for_FY22[[#This Row],[25th]])/25)*15) + AAMC_Raw_Data_for_FY22[[#This Row],[25th]]","v":124924.4},{"$f":"(((AAMC_Raw_Data_for_FY22[[#This Row],[Median]]-AAMC_Raw_Data_for_FY22[[#This Row],[25th]])/25)*20) + AAMC_Raw_Data_for_FY22[[#This Row],[25th]]","v":126547.2},128170,{"$f":"(((AAMC_Raw_Data_for_FY22[[#This Row],[75th]]-AAMC_Raw_Data_for_FY22[[#This Row],[Median]])/25)*5) + AAMC_Raw_Data_for_FY22[[#This Row],[Median]]","v":133571.20000000001},{"$f":"(((AAMC_Raw_Data_for_FY22[[#This Row],[75th]]-AAMC_Raw_Data_for_FY22[[#This Row],[Median]])/25)*10) + AAMC_Raw_Data_for_FY22[[#This Row],[Median]]","v":138972.4},{"$f":"(((AAMC_Raw_Data_for_FY22[[#This Row],[75th]]-AAMC_Raw_Data_for_FY22[[#This Row],[Median]])/25)*15) + AAMC_Raw_Data_for_FY22[[#This Row],[Median]]","v":144373.6},{"$f":"(((AAMC_Raw_Data_for_FY22[[#This Row],[75th]]-AAMC_Raw_Data_for_FY22[[#This Row],[Median]])/25)*20) + AAMC_Raw_Data_for_FY22[[#This Row],[Median]]","v":149774.79999999999},155176,{"$f":"(((AAMC_Raw_Data_for_FY22[[#This Row],[75th]]-AAMC_Raw_Data_for_FY22[[#This Row],[Median]])/25)*30) + AAMC_Raw_Data_for_FY22[[#This Row],[Median]]","v":160577.20000000001},{"$f":"(((AAMC_Raw_Data_for_FY22[[#This Row],[75th]]-AAMC_Raw_Data_for_FY22[[#This Row],[Median]])/25)*35) + AAMC_Raw_Data_for_FY22[[#This Row],[Median]]","v":165978.4},{"$f":"(((AAMC_Raw_Data_for_FY22[[#This Row],[75th]]-AAMC_Raw_Data_for_FY22[[#This Row],[Median]])/25)*40) + AAMC_Raw_Data_for_FY22[[#This Row],[Median]]","v":171379.6}]
[{"$f":"AAMC_Raw_Data_for_FY22[[#This Row],[Source]]&AAMC_Raw_Data_for_FY22[[#This Row],[Type]]&AAMC_Raw_Data_for_FY22[[#This Row],[School Subset]]&AAMC_Raw_Data_for_FY22[[#This Row],[Rank]]&AAMC_Raw_Data_for_FY22[[#This Row],[Degree]]&AAMC_Raw_Data_for_FY22[[#This Row],[Department / Specialty]]&\"L\"","v":"AAMCAcademicPublicProfessorPhDGastroenterology-Peds.L"},"Gastroenterology-Peds.",2,"AAMC","Academic","Public","Professor","PhD","2021-2022",null,{"$f":"(((AAMC_Raw_Data_for_FY22[[#This Row],[Median]]-AAMC_Raw_Data_for_FY22[[#This Row],[25th]])/25)*5) + AAMC_Raw_Data_for_FY22[[#This Row],[25th]]","v":0},{"$f":"(((AAMC_Raw_Data_for_FY22[[#This Row],[Median]]-AAMC_Raw_Data_for_FY22[[#This Row],[25th]])/25)*10) + AAMC_Raw_Data_for_FY22[[#This Row],[25th]]","v":0},{"$f":"(((AAMC_Raw_Data_for_FY22[[#This Row],[Median]]-AAMC_Raw_Data_for_FY22[[#This Row],[25th]])/25)*15) + AAMC_Raw_Data_for_FY22[[#This Row],[25th]]","v":0},{"$f":"(((AAMC_Raw_Data_for_FY22[[#This Row],[Median]]-AAMC_Raw_Data_for_FY22[[#This Row],[25th]])/25)*20) + AAMC_Raw_Data_for_FY22[[#This Row],[25th]]","v":0},null,{"$f":"(((AAMC_Raw_Data_for_FY22[[#This Row],[75th]]-AAMC_Raw_Data_for_FY22[[#This Row],[Median]])/25)*5) + AAMC_Raw_Data_for_FY22[[#This Row],[Median]]","v":0},{"$f":"(((AAMC_Raw_Data_for_FY22[[#This Row],[75th]]-AAMC_Raw_Data_for_FY22[[#This Row],[Median]])/25)*10) + AAMC_Raw_Data_for_FY22[[#This Row],[Median]]","v":0},{"$f":"(((AAMC_Raw_Data_for_FY22[[#This Row],[75th]]-AAMC_Raw_Data_for_FY22[[#This Row],[Median]])/25)*15) + AAMC_Raw_Data_for_FY22[[#This Row],[Median]]","v":0},{"$f":"(((AAMC_Raw_Data_for_FY22[[#This Row],[75th]]-AAMC_Raw_Data_for_FY22[[#This Row],[Median]])/25)*20) + AAMC_Raw_Data_for_FY22[[#This Row],[Median]]","v":0},null,{"$f":"(((AAMC_Raw_Data_for_FY22[[#This Row],[75th]]-AAMC_Raw_Data_for_FY22[[#This Row],[Median]])/25)*30) + AAMC_Raw_Data_for_FY22[[#This Row],[Median]]","v":0},{"$f":"(((AAMC_Raw_Data_for_FY22[[#This Row],[75th]]-AAMC_Raw_Data_for_FY22[[#This Row],[Median]])/25)*35) + AAMC_Raw_Data_for_FY22[[#This Row],[Median]]","v":0},{"$f":"(((AAMC_Raw_Data_for_FY22[[#This Row],[75th]]-AAMC_Raw_Data_for_FY22[[#This Row],[Median]])/25)*40) + AAMC_Raw_Data_for_FY22[[#This Row],[Median]]","v":0}]
[{"$f":"AAMC_Raw_Data_for_FY22[[#This Row],[Source]]&AAMC_Raw_Data_for_FY22[[#This Row],[Type]]&AAMC_Raw_Data_for_FY22[[#This Row],[School Subset]]&AAMC_Raw_Data_for_FY22[[#This Row],[Rank]]&AAMC_Raw_Data_for_FY22[[#This Row],[Degree]]&AAMC_Raw_Data_for_FY22[[#This Row],[Department / Specialty]]&\"L\"","v":"AAMCAcademicPublicInstructorPhDGeneral PediatricsL"},"General Pediatrics",5,"AAMC","Academic","Public","Instructor","PhD","2021-2022",null,{"$f":"(((AAMC_Raw_Data_for_FY22[[#This Row],[Median]]-AAMC_Raw_Data_for_FY22[[#This Row],[25th]])/25)*5) + AAMC_Raw_Data_for_FY22[[#This Row],[25th]]","v":0},{"$f":"(((AAMC_Raw_Data_for_FY22[[#This Row],[Median]]-AAMC_Raw_Data_for_FY22[[#This Row],[25th]])/25)*10) + AAMC_Raw_Data_for_FY22[[#This Row],[25th]]","v":0},{"$f":"(((AAMC_Raw_Data_for_FY22[[#This Row],[Median]]-AAMC_Raw_Data_for_FY22[[#This Row],[25th]])/25)*15) + AAMC_Raw_Data_for_FY22[[#This Row],[25th]]","v":0},{"$f":"(((AAMC_Raw_Data_for_FY22[[#This Row],[Median]]-AAMC_Raw_Data_for_FY22[[#This Row],[25th]])/25)*20) + AAMC_Raw_Data_for_FY22[[#This Row],[25th]]","v":0},null,{"$f":"(((AAMC_Raw_Data_for_FY22[[#This Row],[75th]]-AAMC_Raw_Data_for_FY22[[#This Row],[Median]])/25)*5) + AAMC_Raw_Data_for_FY22[[#This Row],[Median]]","v":0},{"$f":"(((AAMC_Raw_Data_for_FY22[[#This Row],[75th]]-AAMC_Raw_Data_for_FY22[[#This Row],[Median]])/25)*10) + AAMC_Raw_Data_for_FY22[[#This Row],[Median]]","v":0},{"$f":"(((AAMC_Raw_Data_for_FY22[[#This Row],[75th]]-AAMC_Raw_Data_for_FY22[[#This Row],[Median]])/25)*15) + AAMC_Raw_Data_for_FY22[[#This Row],[Median]]","v":0},{"$f":"(((AAMC_Raw_Data_for_FY22[[#This Row],[75th]]-AAMC_Raw_Data_for_FY22[[#This Row],[Median]])/25)*20) + AAMC_Raw_Data_for_FY22[[#This Row],[Median]]","v":0},null,{"$f":"(((AAMC_Raw_Data_for_FY22[[#This Row],[75th]]-AAMC_Raw_Data_for_FY22[[#This Row],[Median]])/25)*30) + AAMC_Raw_Data_for_FY22[[#This Row],[Median]]","v":0},{"$f":"(((AAMC_Raw_Data_for_FY22[[#This Row],[75th]]-AAMC_Raw_Data_for_FY22[[#This Row],[Median]])/25)*35) + AAMC_Raw_Data_for_FY22[[#This Row],[Median]]","v":0},{"$f":"(((AAMC_Raw_Data_for_FY22[[#This Row],[75th]]-AAMC_Raw_Data_for_FY22[[#This Row],[Median]])/25)*40) + AAMC_Raw_Data_for_FY22[[#This Row],[Median]]","v":0}]
[{"$f":"AAMC_Raw_Data_for_FY22[[#This Row],[Source]]&AAMC_Raw_Data_for_FY22[[#This Row],[Type]]&AAMC_Raw_Data_for_FY22[[#This Row],[School Subset]]&AAMC_Raw_Data_for_FY22[[#This Row],[Rank]]&AAMC_Raw_Data_for_FY22[[#This Row],[Degree]]&AAMC_Raw_Data_for_FY22[[#This Row],[Department / Specialty]]&\"L\"","v":"AAMCAcademicPublicAssistantPhDGeneral PediatricsL"},"General Pediatrics",4,"AAMC","Academic","Public","Assistant","PhD","2021-2022",93171,{"$f":"(((AAMC_Raw_Data_for_FY22[[#This Row],[Median]]-AAMC_Raw_Data_for_FY22[[#This Row],[25th]])/25)*5) + AAMC_Raw_Data_for_FY22[[#This Row],[25th]]","v":95604.800000000003},{"$f":"(((AAMC_Raw_Data_for_FY22[[#This Row],[Median]]-AAMC_Raw_Data_for_FY22[[#This Row],[25th]])/25)*10) + AAMC_Raw_Data_for_FY22[[#This Row],[25th]]","v":98038.6},{"$f":"(((AAMC_Raw_Data_for_FY22[[#This Row],[Median]]-AAMC_Raw_Data_for_FY22[[#This Row],[25th]])/25)*15) + AAMC_Raw_Data_for_FY22[[#This Row],[25th]]","v":100472.4},{"$f":"(((AAMC_Raw_Data_for_FY22[[#This Row],[Median]]-AAMC_Raw_Data_for_FY22[[#This Row],[25th]])/25)*20) + AAMC_Raw_Data_for_FY22[[#This Row],[25th]]","v":102906.2},105340,{"$f":"(((AAMC_Raw_Data_for_FY22[[#This Row],[75th]]-AAMC_Raw_Data_for_FY22[[#This Row],[Median]])/25)*5) + AAMC_Raw_Data_for_FY22[[#This Row],[Median]]","v":108575},{"$f":"(((AAMC_Raw_Data_for_FY22[[#This Row],[75th]]-AAMC_Raw_Data_for_FY22[[#This Row],[Median]])/25)*10) + AAMC_Raw_Data_for_FY22[[#This Row],[Median]]","v":111810},{"$f":"(((AAMC_Raw_Data_for_FY22[[#This Row],[75th]]-AAMC_Raw_Data_for_FY22[[#This Row],[Median]])/25)*15) + AAMC_Raw_Data_for_FY22[[#This Row],[Median]]","v":115045},{"$f":"(((AAMC_Raw_Data_for_FY22[[#This Row],[75th]]-AAMC_Raw_Data_for_FY22[[#This Row],[Median]])/25)*20) + AAMC_Raw_Data_for_FY22[[#This Row],[Median]]","v":118280},121515,{"$f":"(((AAMC_Raw_Data_for_FY22[[#This Row],[75th]]-AAMC_Raw_Data_for_FY22[[#This Row],[Median]])/25)*30) + AAMC_Raw_Data_for_FY22[[#This Row],[Median]]","v":124750},{"$f":"(((AAMC_Raw_Data_for_FY22[[#This Row],[75th]]-AAMC_Raw_Data_for_FY22[[#This Row],[Median]])/25)*35) + AAMC_Raw_Data_for_FY22[[#This Row],[Median]]","v":127985},{"$f":"(((AAMC_Raw_Data_for_FY22[[#This Row],[75th]]-AAMC_Raw_Data_for_FY22[[#This Row],[Median]])/25)*40) + AAMC_Raw_Data_for_FY22[[#This Row],[Median]]","v":131220}]
[{"$f":"AAMC_Raw_Data_for_FY22[[#This Row],[Source]]&AAMC_Raw_Data_for_FY22[[#This Row],[Type]]&AAMC_Raw_Data_for_FY22[[#This Row],[School Subset]]&AAMC_Raw_Data_for_FY22[[#This Row],[Rank]]&AAMC_Raw_Data_for_FY22[[#This Row],[Degree]]&AAMC_Raw_Data_for_FY22[[#This Row],[Department / Specialty]]&\"L\"","v":"AAMCAcademicPublicAssociatePhDGeneral PediatricsL"},"General Pediatrics",3,"AAMC","Academic","Public","Associate","PhD","2021-2022",134607,{"$f":"(((AAMC_Raw_Data_for_FY22[[#This Row],[Median]]-AAMC_Raw_Data_for_FY22[[#This Row],[25th]])/25)*5) + AAMC_Raw_Data_for_FY22[[#This Row],[25th]]","v":137195},{"$f":"(((AAMC_Raw_Data_for_FY22[[#This Row],[Median]]-AAMC_Raw_Data_for_FY22[[#This Row],[25th]])/25)*10) + AAMC_Raw_Data_for_FY22[[#This Row],[25th]]","v":139783},{"$f":"(((AAMC_Raw_Data_for_FY22[[#This Row],[Median]]-AAMC_Raw_Data_for_FY22[[#This Row],[25th]])/25)*15) + AAMC_Raw_Data_for_FY22[[#This Row],[25th]]","v":142371},{"$f":"(((AAMC_Raw_Data_for_FY22[[#This Row],[Median]]-AAMC_Raw_Data_for_FY22[[#This Row],[25th]])/25)*20) + AAMC_Raw_Data_for_FY22[[#This Row],[25th]]","v":144959},147547,{"$f":"(((AAMC_Raw_Data_for_FY22[[#This Row],[75th]]-AAMC_Raw_Data_for_FY22[[#This Row],[Median]])/25)*5) + AAMC_Raw_Data_for_FY22[[#This Row],[Median]]","v":152855.79999999999},{"$f":"(((AAMC_Raw_Data_for_FY22[[#This Row],[75th]]-AAMC_Raw_Data_for_FY22[[#This Row],[Median]])/25)*10) + AAMC_Raw_Data_for_FY22[[#This Row],[Median]]","v":158164.6},{"$f":"(((AAMC_Raw_Data_for_FY22[[#This Row],[75th]]-AAMC_Raw_Data_for_FY22[[#This Row],[Median]])/25)*15) + AAMC_Raw_Data_for_FY22[[#This Row],[Median]]","v":163473.4},{"$f":"(((AAMC_Raw_Data_for_FY22[[#This Row],[75th]]-AAMC_Raw_Data_for_FY22[[#This Row],[Median]])/25)*20) + AAMC_Raw_Data_for_FY22[[#This Row],[Median]]","v":168782.2},174091,{"$f":"(((AAMC_Raw_Data_for_FY22[[#This Row],[75th]]-AAMC_Raw_Data_for_FY22[[#This Row],[Median]])/25)*30) + AAMC_Raw_Data_for_FY22[[#This Row],[Median]]","v":179399.8},{"$f":"(((AAMC_Raw_Data_for_FY22[[#This Row],[75th]]-AAMC_Raw_Data_for_FY22[[#This Row],[Median]])/25)*35) + AAMC_Raw_Data_for_FY22[[#This Row],[Median]]","v":184708.6},{"$f":"(((AAMC_Raw_Data_for_FY22[[#This Row],[75th]]-AAMC_Raw_Data_for_FY22[[#This Row],[Median]])/25)*40) + AAMC_Raw_Data_for_FY22[[#This Row],[Median]]","v":190017.4}]
[{"$f":"AAMC_Raw_Data_for_FY22[[#This Row],[Source]]&AAMC_Raw_Data_for_FY22[[#This Row],[Type]]&AAMC_Raw_Data_for_FY22[[#This Row],[School Subset]]&AAMC_Raw_Data_for_FY22[[#This Row],[Rank]]&AAMC_Raw_Data_for_FY22[[#This Row],[Degree]]&AAMC_Raw_Data_for_FY22[[#This Row],[Department / Specialty]]&\"L\"","v":"AAMCAcademicPublicProfessorPhDGeneral PediatricsL"},"General Pediatrics",2,"AAMC","Academic","Public","Professor","PhD","2021-2022",182018,{"$f":"(((AAMC_Raw_Data_for_FY22[[#This Row],[Median]]-AAMC_Raw_Data_for_FY22[[#This Row],[25th]])/25)*5) + AAMC_Raw_Data_for_FY22[[#This Row],[25th]]","v":187091.20000000001},{"$f":"(((AAMC_Raw_Data_for_FY22[[#This Row],[Median]]-AAMC_Raw_Data_for_FY22[[#This Row],[25th]])/25)*10) + AAMC_Raw_Data_for_FY22[[#This Row],[25th]]","v":192164.4},{"$f":"(((AAMC_Raw_Data_for_FY22[[#This Row],[Median]]-AAMC_Raw_Data_for_FY22[[#This Row],[25th]])/25)*15) + AAMC_Raw_Data_for_FY22[[#This Row],[25th]]","v":197237.6},{"$f":"(((AAMC_Raw_Data_for_FY22[[#This Row],[Median]]-AAMC_Raw_Data_for_FY22[[#This Row],[25th]])/25)*20) + AAMC_Raw_Data_for_FY22[[#This Row],[25th]]","v":202310.8},207384,{"$f":"(((AAMC_Raw_Data_for_FY22[[#This Row],[75th]]-AAMC_Raw_Data_for_FY22[[#This Row],[Median]])/25)*5) + AAMC_Raw_Data_for_FY22[[#This Row],[Median]]","v":211889.2},{"$f":"(((AAMC_Raw_Data_for_FY22[[#This Row],[75th]]-AAMC_Raw_Data_for_FY22[[#This Row],[Median]])/25)*10) + AAMC_Raw_Data_for_FY22[[#This Row],[Median]]","v":216394.4},{"$f":"(((AAMC_Raw_Data_for_FY22[[#This Row],[75th]]-AAMC_Raw_Data_for_FY22[[#This Row],[Median]])/25)*15) + AAMC_Raw_Data_for_FY22[[#This Row],[Median]]","v":220899.6},{"$f":"(((AAMC_Raw_Data_for_FY22[[#This Row],[75th]]-AAMC_Raw_Data_for_FY22[[#This Row],[Median]])/25)*20) + AAMC_Raw_Data_for_FY22[[#This Row],[Median]]","v":225404.79999999999},229910,{"$f":"(((AAMC_Raw_Data_for_FY22[[#This Row],[75th]]-AAMC_Raw_Data_for_FY22[[#This Row],[Median]])/25)*30) + AAMC_Raw_Data_for_FY22[[#This Row],[Median]]","v":234415.2},{"$f":"(((AAMC_Raw_Data_for_FY22[[#This Row],[75th]]-AAMC_Raw_Data_for_FY22[[#This Row],[Median]])/25)*35) + AAMC_Raw_Data_for_FY22[[#This Row],[Median]]","v":238920.4},{"$f":"(((AAMC_Raw_Data_for_FY22[[#This Row],[75th]]-AAMC_Raw_Data_for_FY22[[#This Row],[Median]])/25)*40) + AAMC_Raw_Data_for_FY22[[#This Row],[Median]]","v":243425.6}]
[{"$f":"AAMC_Raw_Data_for_FY22[[#This Row],[Source]]&AAMC_Raw_Data_for_FY22[[#This Row],[Type]]&AAMC_Raw_Data_for_FY22[[#This Row],[School Subset]]&AAMC_Raw_Data_for_FY22[[#This Row],[Rank]]&AAMC_Raw_Data_for_FY22[[#This Row],[Degree]]&AAMC_Raw_Data_for_FY22[[#This Row],[Department / Specialty]]&\"L\"","v":"AAMCAcademicPublicChiefPhDGeneral PediatricsL"},"General Pediatrics",6,"AAMC","Academic","Public","Chief","PhD","2021-2022",null,{"$f":"(((AAMC_Raw_Data_for_FY22[[#This Row],[Median]]-AAMC_Raw_Data_for_FY22[[#This Row],[25th]])/25)*5) + AAMC_Raw_Data_for_FY22[[#This Row],[25th]]","v":0},{"$f":"(((AAMC_Raw_Data_for_FY22[[#This Row],[Median]]-AAMC_Raw_Data_for_FY22[[#This Row],[25th]])/25)*10) + AAMC_Raw_Data_for_FY22[[#This Row],[25th]]","v":0},{"$f":"(((AAMC_Raw_Data_for_FY22[[#This Row],[Median]]-AAMC_Raw_Data_for_FY22[[#This Row],[25th]])/25)*15) + AAMC_Raw_Data_for_FY22[[#This Row],[25th]]","v":0},{"$f":"(((AAMC_Raw_Data_for_FY22[[#This Row],[Median]]-AAMC_Raw_Data_for_FY22[[#This Row],[25th]])/25)*20) + AAMC_Raw_Data_for_FY22[[#This Row],[25th]]","v":0},null,{"$f":"(((AAMC_Raw_Data_for_FY22[[#This Row],[75th]]-AAMC_Raw_Data_for_FY22[[#This Row],[Median]])/25)*5) + AAMC_Raw_Data_for_FY22[[#This Row],[Median]]","v":0},{"$f":"(((AAMC_Raw_Data_for_FY22[[#This Row],[75th]]-AAMC_Raw_Data_for_FY22[[#This Row],[Median]])/25)*10) + AAMC_Raw_Data_for_FY22[[#This Row],[Median]]","v":0},{"$f":"(((AAMC_Raw_Data_for_FY22[[#This Row],[75th]]-AAMC_Raw_Data_for_FY22[[#This Row],[Median]])/25)*15) + AAMC_Raw_Data_for_FY22[[#This Row],[Median]]","v":0},{"$f":"(((AAMC_Raw_Data_for_FY22[[#This Row],[75th]]-AAMC_Raw_Data_for_FY22[[#This Row],[Median]])/25)*20) + AAMC_Raw_Data_for_FY22[[#This Row],[Median]]","v":0},null,{"$f":"(((AAMC_Raw_Data_for_FY22[[#This Row],[75th]]-AAMC_Raw_Data_for_FY22[[#This Row],[Median]])/25)*30) + AAMC_Raw_Data_for_FY22[[#This Row],[Median]]","v":0},{"$f":"(((AAMC_Raw_Data_for_FY22[[#This Row],[75th]]-AAMC_Raw_Data_for_FY22[[#This Row],[Median]])/25)*35) + AAMC_Raw_Data_for_FY22[[#This Row],[Median]]","v":0},{"$f":"(((AAMC_Raw_Data_for_FY22[[#This Row],[75th]]-AAMC_Raw_Data_for_FY22[[#This Row],[Median]])/25)*40) + AAMC_Raw_Data_for_FY22[[#This Row],[Median]]","v":0}]
[{"$f":"AAMC_Raw_Data_for_FY22[[#This Row],[Source]]&AAMC_Raw_Data_for_FY22[[#This Row],[Type]]&AAMC_Raw_Data_for_FY22[[#This Row],[School Subset]]&AAMC_Raw_Data_for_FY22[[#This Row],[Rank]]&AAMC_Raw_Data_for_FY22[[#This Row],[Degree]]&AAMC_Raw_Data_for_FY22[[#This Row],[Department / Specialty]]&\"L\"","v":"AAMCAcademicPublicInstructorPhDGenetics-Peds.L"},"Genetics-Peds.",5,"AAMC","Academic","Public","Instructor","PhD","2021-2022",null,{"$f":"(((AAMC_Raw_Data_for_FY22[[#This Row],[Median]]-AAMC_Raw_Data_for_FY22[[#This Row],[25th]])/25)*5) + AAMC_Raw_Data_for_FY22[[#This Row],[25th]]","v":0},{"$f":"(((AAMC_Raw_Data_for_FY22[[#This Row],[Median]]-AAMC_Raw_Data_for_FY22[[#This Row],[25th]])/25)*10) + AAMC_Raw_Data_for_FY22[[#This Row],[25th]]","v":0},{"$f":"(((AAMC_Raw_Data_for_FY22[[#This Row],[Median]]-AAMC_Raw_Data_for_FY22[[#This Row],[25th]])/25)*15) + AAMC_Raw_Data_for_FY22[[#This Row],[25th]]","v":0},{"$f":"(((AAMC_Raw_Data_for_FY22[[#This Row],[Median]]-AAMC_Raw_Data_for_FY22[[#This Row],[25th]])/25)*20) + AAMC_Raw_Data_for_FY22[[#This Row],[25th]]","v":0},null,{"$f":"(((AAMC_Raw_Data_for_FY22[[#This Row],[75th]]-AAMC_Raw_Data_for_FY22[[#This Row],[Median]])/25)*5) + AAMC_Raw_Data_for_FY22[[#This Row],[Median]]","v":0},{"$f":"(((AAMC_Raw_Data_for_FY22[[#This Row],[75th]]-AAMC_Raw_Data_for_FY22[[#This Row],[Median]])/25)*10) + AAMC_Raw_Data_for_FY22[[#This Row],[Median]]","v":0},{"$f":"(((AAMC_Raw_Data_for_FY22[[#This Row],[75th]]-AAMC_Raw_Data_for_FY22[[#This Row],[Median]])/25)*15) + AAMC_Raw_Data_for_FY22[[#This Row],[Median]]","v":0},{"$f":"(((AAMC_Raw_Data_for_FY22[[#This Row],[75th]]-AAMC_Raw_Data_for_FY22[[#This Row],[Median]])/25)*20) + AAMC_Raw_Data_for_FY22[[#This Row],[Median]]","v":0},null,{"$f":"(((AAMC_Raw_Data_for_FY22[[#This Row],[75th]]-AAMC_Raw_Data_for_FY22[[#This Row],[Median]])/25)*30) + AAMC_Raw_Data_for_FY22[[#This Row],[Median]]","v":0},{"$f":"(((AAMC_Raw_Data_for_FY22[[#This Row],[75th]]-AAMC_Raw_Data_for_FY22[[#This Row],[Median]])/25)*35) + AAMC_Raw_Data_for_FY22[[#This Row],[Median]]","v":0},{"$f":"(((AAMC_Raw_Data_for_FY22[[#This Row],[75th]]-AAMC_Raw_Data_for_FY22[[#This Row],[Median]])/25)*40) + AAMC_Raw_Data_for_FY22[[#This Row],[Median]]","v":0}]
[{"$f":"AAMC_Raw_Data_for_FY22[[#This Row],[Source]]&AAMC_Raw_Data_for_FY22[[#This Row],[Type]]&AAMC_Raw_Data_for_FY22[[#This Row],[School Subset]]&AAMC_Raw_Data_for_FY22[[#This Row],[Rank]]&AAMC_Raw_Data_for_FY22[[#This Row],[Degree]]&AAMC_Raw_Data_for_FY22[[#This Row],[Department / Specialty]]&\"L\"","v":"AAMCAcademicPublicAssistantPhDGenetics-Peds.L"},"Genetics-Peds.",4,"AAMC","Academic","Public","Assistant","PhD","2021-2022",113617,{"$f":"(((AAMC_Raw_Data_for_FY22[[#This Row],[Median]]-AAMC_Raw_Data_for_FY22[[#This Row],[25th]])/25)*5) + AAMC_Raw_Data_for_FY22[[#This Row],[25th]]","v":115409.60000000001},{"$f":"(((AAMC_Raw_Data_for_FY22[[#This Row],[Median]]-AAMC_Raw_Data_for_FY22[[#This Row],[25th]])/25)*10) + AAMC_Raw_Data_for_FY22[[#This Row],[25th]]","v":117202.2},{"$f":"(((AAMC_Raw_Data_for_FY22[[#This Row],[Median]]-AAMC_Raw_Data_for_FY22[[#This Row],[25th]])/25)*15) + AAMC_Raw_Data_for_FY22[[#This Row],[25th]]","v":118994.8},{"$f":"(((AAMC_Raw_Data_for_FY22[[#This Row],[Median]]-AAMC_Raw_Data_for_FY22[[#This Row],[25th]])/25)*20) + AAMC_Raw_Data_for_FY22[[#This Row],[25th]]","v":120787.4},122580,{"$f":"(((AAMC_Raw_Data_for_FY22[[#This Row],[75th]]-AAMC_Raw_Data_for_FY22[[#This Row],[Median]])/25)*5) + AAMC_Raw_Data_for_FY22[[#This Row],[Median]]","v":129065},{"$f":"(((AAMC_Raw_Data_for_FY22[[#This Row],[75th]]-AAMC_Raw_Data_for_FY22[[#This Row],[Median]])/25)*10) + AAMC_Raw_Data_for_FY22[[#This Row],[Median]]","v":135550},{"$f":"(((AAMC_Raw_Data_for_FY22[[#This Row],[75th]]-AAMC_Raw_Data_for_FY22[[#This Row],[Median]])/25)*15) + AAMC_Raw_Data_for_FY22[[#This Row],[Median]]","v":142035},{"$f":"(((AAMC_Raw_Data_for_FY22[[#This Row],[75th]]-AAMC_Raw_Data_for_FY22[[#This Row],[Median]])/25)*20) + AAMC_Raw_Data_for_FY22[[#This Row],[Median]]","v":148520},155005,{"$f":"(((AAMC_Raw_Data_for_FY22[[#This Row],[75th]]-AAMC_Raw_Data_for_FY22[[#This Row],[Median]])/25)*30) + AAMC_Raw_Data_for_FY22[[#This Row],[Median]]","v":161490},{"$f":"(((AAMC_Raw_Data_for_FY22[[#This Row],[75th]]-AAMC_Raw_Data_for_FY22[[#This Row],[Median]])/25)*35) + AAMC_Raw_Data_for_FY22[[#This Row],[Median]]","v":167975},{"$f":"(((AAMC_Raw_Data_for_FY22[[#This Row],[75th]]-AAMC_Raw_Data_for_FY22[[#This Row],[Median]])/25)*40) + AAMC_Raw_Data_for_FY22[[#This Row],[Median]]","v":174460}]
[{"$f":"AAMC_Raw_Data_for_FY22[[#This Row],[Source]]&AAMC_Raw_Data_for_FY22[[#This Row],[Type]]&AAMC_Raw_Data_for_FY22[[#This Row],[School Subset]]&AAMC_Raw_Data_for_FY22[[#This Row],[Rank]]&AAMC_Raw_Data_for_FY22[[#This Row],[Degree]]&AAMC_Raw_Data_for_FY22[[#This Row],[Department / Specialty]]&\"L\"","v":"AAMCAcademicPublicAssociatePhDGenetics-Peds.L"},"Genetics-Peds.",3,"AAMC","Academic","Public","Associate","PhD","2021-2022",122363,{"$f":"(((AAMC_Raw_Data_for_FY22[[#This Row],[Median]]-AAMC_Raw_Data_for_FY22[[#This Row],[25th]])/25)*5) + AAMC_Raw_Data_for_FY22[[#This Row],[25th]]","v":128410},{"$f":"(((AAMC_Raw_Data_for_FY22[[#This Row],[Median]]-AAMC_Raw_Data_for_FY22[[#This Row],[25th]])/25)*10) + AAMC_Raw_Data_for_FY22[[#This Row],[25th]]","v":134457},{"$f":"(((AAMC_Raw_Data_for_FY22[[#This Row],[Median]]-AAMC_Raw_Data_for_FY22[[#This Row],[25th]])/25)*15) + AAMC_Raw_Data_for_FY22[[#This Row],[25th]]","v":140504},{"$f":"(((AAMC_Raw_Data_for_FY22[[#This Row],[Median]]-AAMC_Raw_Data_for_FY22[[#This Row],[25th]])/25)*20) + AAMC_Raw_Data_for_FY22[[#This Row],[25th]]","v":146551},152598,{"$f":"(((AAMC_Raw_Data_for_FY22[[#This Row],[75th]]-AAMC_Raw_Data_for_FY22[[#This Row],[Median]])/25)*5) + AAMC_Raw_Data_for_FY22[[#This Row],[Median]]","v":154418},{"$f":"(((AAMC_Raw_Data_for_FY22[[#This Row],[75th]]-AAMC_Raw_Data_for_FY22[[#This Row],[Median]])/25)*10) + AAMC_Raw_Data_for_FY22[[#This Row],[Median]]","v":156238},{"$f":"(((AAMC_Raw_Data_for_FY22[[#This Row],[75th]]-AAMC_Raw_Data_for_FY22[[#This Row],[Median]])/25)*15) + AAMC_Raw_Data_for_FY22[[#This Row],[Median]]","v":158058},{"$f":"(((AAMC_Raw_Data_for_FY22[[#This Row],[75th]]-AAMC_Raw_Data_for_FY22[[#This Row],[Median]])/25)*20) + AAMC_Raw_Data_for_FY22[[#This Row],[Median]]","v":159878},161698,{"$f":"(((AAMC_Raw_Data_for_FY22[[#This Row],[75th]]-AAMC_Raw_Data_for_FY22[[#This Row],[Median]])/25)*30) + AAMC_Raw_Data_for_FY22[[#This Row],[Median]]","v":163518},{"$f":"(((AAMC_Raw_Data_for_FY22[[#This Row],[75th]]-AAMC_Raw_Data_for_FY22[[#This Row],[Median]])/25)*35) + AAMC_Raw_Data_for_FY22[[#This Row],[Median]]","v":165338},{"$f":"(((AAMC_Raw_Data_for_FY22[[#This Row],[75th]]-AAMC_Raw_Data_for_FY22[[#This Row],[Median]])/25)*40) + AAMC_Raw_Data_for_FY22[[#This Row],[Median]]","v":167158}]
[{"$f":"AAMC_Raw_Data_for_FY22[[#This Row],[Source]]&AAMC_Raw_Data_for_FY22[[#This Row],[Type]]&AAMC_Raw_Data_for_FY22[[#This Row],[School Subset]]&AAMC_Raw_Data_for_FY22[[#This Row],[Rank]]&AAMC_Raw_Data_for_FY22[[#This Row],[Degree]]&AAMC_Raw_Data_for_FY22[[#This Row],[Department / Specialty]]&\"L\"","v":"AAMCAcademicPublicProfessorPhDGenetics-Peds.L"},"Genetics-Peds.",2,"AAMC","Academic","Public","Professor","PhD","2021-2022",154525,{"$f":"(((AAMC_Raw_Data_for_FY22[[#This Row],[Median]]-AAMC_Raw_Data_for_FY22[[#This Row],[25th]])/25)*5) + AAMC_Raw_Data_for_FY22[[#This Row],[25th]]","v":166709.20000000001},{"$f":"(((AAMC_Raw_Data_for_FY22[[#This Row],[Median]]-AAMC_Raw_Data_for_FY22[[#This Row],[25th]])/25)*10) + AAMC_Raw_Data_for_FY22[[#This Row],[25th]]","v":178893.4},{"$f":"(((AAMC_Raw_Data_for_FY22[[#This Row],[Median]]-AAMC_Raw_Data_for_FY22[[#This Row],[25th]])/25)*15) + AAMC_Raw_Data_for_FY22[[#This Row],[25th]]","v":191077.6},{"$f":"(((AAMC_Raw_Data_for_FY22[[#This Row],[Median]]-AAMC_Raw_Data_for_FY22[[#This Row],[25th]])/25)*20) + AAMC_Raw_Data_for_FY22[[#This Row],[25th]]","v":203261.8},215446,{"$f":"(((AAMC_Raw_Data_for_FY22[[#This Row],[75th]]-AAMC_Raw_Data_for_FY22[[#This Row],[Median]])/25)*5) + AAMC_Raw_Data_for_FY22[[#This Row],[Median]]","v":227473.6},{"$f":"(((AAMC_Raw_Data_for_FY22[[#This Row],[75th]]-AAMC_Raw_Data_for_FY22[[#This Row],[Median]])/25)*10) + AAMC_Raw_Data_for_FY22[[#This Row],[Median]]","v":239501.2},{"$f":"(((AAMC_Raw_Data_for_FY22[[#This Row],[75th]]-AAMC_Raw_Data_for_FY22[[#This Row],[Median]])/25)*15) + AAMC_Raw_Data_for_FY22[[#This Row],[Median]]","v":251528.8},{"$f":"(((AAMC_Raw_Data_for_FY22[[#This Row],[75th]]-AAMC_Raw_Data_for_FY22[[#This Row],[Median]])/25)*20) + AAMC_Raw_Data_for_FY22[[#This Row],[Median]]","v":263556.40000000002},275584,{"$f":"(((AAMC_Raw_Data_for_FY22[[#This Row],[75th]]-AAMC_Raw_Data_for_FY22[[#This Row],[Median]])/25)*30) + AAMC_Raw_Data_for_FY22[[#This Row],[Median]]","v":287611.59999999998},{"$f":"(((AAMC_Raw_Data_for_FY22[[#This Row],[75th]]-AAMC_Raw_Data_for_FY22[[#This Row],[Median]])/25)*35) + AAMC_Raw_Data_for_FY22[[#This Row],[Median]]","v":299639.2},{"$f":"(((AAMC_Raw_Data_for_FY22[[#This Row],[75th]]-AAMC_Raw_Data_for_FY22[[#This Row],[Median]])/25)*40) + AAMC_Raw_Data_for_FY22[[#This Row],[Median]]","v":311666.8}]
[{"$f":"AAMC_Raw_Data_for_FY22[[#This Row],[Source]]&AAMC_Raw_Data_for_FY22[[#This Row],[Type]]&AAMC_Raw_Data_for_FY22[[#This Row],[School Subset]]&AAMC_Raw_Data_for_FY22[[#This Row],[Rank]]&AAMC_Raw_Data_for_FY22[[#This Row],[Degree]]&AAMC_Raw_Data_for_FY22[[#This Row],[Department / Specialty]]&\"L\"","v":"AAMCAcademicPublicChiefPhDGenetics-Peds.L"},"Genetics-Peds.",6,"AAMC","Academic","Public","Chief","PhD","2021-2022",null,{"$f":"(((AAMC_Raw_Data_for_FY22[[#This Row],[Median]]-AAMC_Raw_Data_for_FY22[[#This Row],[25th]])/25)*5) + AAMC_Raw_Data_for_FY22[[#This Row],[25th]]","v":0},{"$f":"(((AAMC_Raw_Data_for_FY22[[#This Row],[Median]]-AAMC_Raw_Data_for_FY22[[#This Row],[25th]])/25)*10) + AAMC_Raw_Data_for_FY22[[#This Row],[25th]]","v":0},{"$f":"(((AAMC_Raw_Data_for_FY22[[#This Row],[Median]]-AAMC_Raw_Data_for_FY22[[#This Row],[25th]])/25)*15) + AAMC_Raw_Data_for_FY22[[#This Row],[25th]]","v":0},{"$f":"(((AAMC_Raw_Data_for_FY22[[#This Row],[Median]]-AAMC_Raw_Data_for_FY22[[#This Row],[25th]])/25)*20) + AAMC_Raw_Data_for_FY22[[#This Row],[25th]]","v":0},null,{"$f":"(((AAMC_Raw_Data_for_FY22[[#This Row],[75th]]-AAMC_Raw_Data_for_FY22[[#This Row],[Median]])/25)*5) + AAMC_Raw_Data_for_FY22[[#This Row],[Median]]","v":0},{"$f":"(((AAMC_Raw_Data_for_FY22[[#This Row],[75th]]-AAMC_Raw_Data_for_FY22[[#This Row],[Median]])/25)*10) + AAMC_Raw_Data_for_FY22[[#This Row],[Median]]","v":0},{"$f":"(((AAMC_Raw_Data_for_FY22[[#This Row],[75th]]-AAMC_Raw_Data_for_FY22[[#This Row],[Median]])/25)*15) + AAMC_Raw_Data_for_FY22[[#This Row],[Median]]","v":0},{"$f":"(((AAMC_Raw_Data_for_FY22[[#This Row],[75th]]-AAMC_Raw_Data_for_FY22[[#This Row],[Median]])/25)*20) + AAMC_Raw_Data_for_FY22[[#This Row],[Median]]","v":0},null,{"$f":"(((AAMC_Raw_Data_for_FY22[[#This Row],[75th]]-AAMC_Raw_Data_for_FY22[[#This Row],[Median]])/25)*30) + AAMC_Raw_Data_for_FY22[[#This Row],[Median]]","v":0},{"$f":"(((AAMC_Raw_Data_for_FY22[[#This Row],[75th]]-AAMC_Raw_Data_for_FY22[[#This Row],[Median]])/25)*35) + AAMC_Raw_Data_for_FY22[[#This Row],[Median]]","v":0},{"$f":"(((AAMC_Raw_Data_for_FY22[[#This Row],[75th]]-AAMC_Raw_Data_for_FY22[[#This Row],[Median]])/25)*40) + AAMC_Raw_Data_for_FY22[[#This Row],[Median]]","v":0}]
[{"$f":"AAMC_Raw_Data_for_FY22[[#This Row],[Source]]&AAMC_Raw_Data_for_FY22[[#This Row],[Type]]&AAMC_Raw_Data_for_FY22[[#This Row],[School Subset]]&AAMC_Raw_Data_for_FY22[[#This Row],[Rank]]&AAMC_Raw_Data_for_FY22[[#This Row],[Degree]]&AAMC_Raw_Data_for_FY22[[#This Row],[Department / Specialty]]&\"L\"","v":"AAMCAcademicPublicInstructorPhDHematology/Oncology-Peds.L"},"Hematology/Oncology-Peds.",5,"AAMC","Academic","Public","Instructor","PhD","2021-2022",null,{"$f":"(((AAMC_Raw_Data_for_FY22[[#This Row],[Median]]-AAMC_Raw_Data_for_FY22[[#This Row],[25th]])/25)*5) + AAMC_Raw_Data_for_FY22[[#This Row],[25th]]","v":0},{"$f":"(((AAMC_Raw_Data_for_FY22[[#This Row],[Median]]-AAMC_Raw_Data_for_FY22[[#This Row],[25th]])/25)*10) + AAMC_Raw_Data_for_FY22[[#This Row],[25th]]","v":0},{"$f":"(((AAMC_Raw_Data_for_FY22[[#This Row],[Median]]-AAMC_Raw_Data_for_FY22[[#This Row],[25th]])/25)*15) + AAMC_Raw_Data_for_FY22[[#This Row],[25th]]","v":0},{"$f":"(((AAMC_Raw_Data_for_FY22[[#This Row],[Median]]-AAMC_Raw_Data_for_FY22[[#This Row],[25th]])/25)*20) + AAMC_Raw_Data_for_FY22[[#This Row],[25th]]","v":0},null,{"$f":"(((AAMC_Raw_Data_for_FY22[[#This Row],[75th]]-AAMC_Raw_Data_for_FY22[[#This Row],[Median]])/25)*5) + AAMC_Raw_Data_for_FY22[[#This Row],[Median]]","v":0},{"$f":"(((AAMC_Raw_Data_for_FY22[[#This Row],[75th]]-AAMC_Raw_Data_for_FY22[[#This Row],[Median]])/25)*10) + AAMC_Raw_Data_for_FY22[[#This Row],[Median]]","v":0},{"$f":"(((AAMC_Raw_Data_for_FY22[[#This Row],[75th]]-AAMC_Raw_Data_for_FY22[[#This Row],[Median]])/25)*15) + AAMC_Raw_Data_for_FY22[[#This Row],[Median]]","v":0},{"$f":"(((AAMC_Raw_Data_for_FY22[[#This Row],[75th]]-AAMC_Raw_Data_for_FY22[[#This Row],[Median]])/25)*20) + AAMC_Raw_Data_for_FY22[[#This Row],[Median]]","v":0},null,{"$f":"(((AAMC_Raw_Data_for_FY22[[#This Row],[75th]]-AAMC_Raw_Data_for_FY22[[#This Row],[Median]])/25)*30) + AAMC_Raw_Data_for_FY22[[#This Row],[Median]]","v":0},{"$f":"(((AAMC_Raw_Data_for_FY22[[#This Row],[75th]]-AAMC_Raw_Data_for_FY22[[#This Row],[Median]])/25)*35) + AAMC_Raw_Data_for_FY22[[#This Row],[Median]]","v":0},{"$f":"(((AAMC_Raw_Data_for_FY22[[#This Row],[75th]]-AAMC_Raw_Data_for_FY22[[#This Row],[Median]])/25)*40) + AAMC_Raw_Data_for_FY22[[#This Row],[Median]]","v":0}]
[{"$f":"AAMC_Raw_Data_for_FY22[[#This Row],[Source]]&AAMC_Raw_Data_for_FY22[[#This Row],[Type]]&AAMC_Raw_Data_for_FY22[[#This Row],[School Subset]]&AAMC_Raw_Data_for_FY22[[#This Row],[Rank]]&AAMC_Raw_Data_for_FY22[[#This Row],[Degree]]&AAMC_Raw_Data_for_FY22[[#This Row],[Department / Specialty]]&\"L\"","v":"AAMCAcademicPublicAssistantPhDHematology/Oncology-Peds.L"},"Hematology/Oncology-Peds.",4,"AAMC","Academic","Public","Assistant","PhD","2021-2022",101000,{"$f":"(((AAMC_Raw_Data_for_FY22[[#This Row],[Median]]-AAMC_Raw_Data_for_FY22[[#This Row],[25th]])/25)*5) + AAMC_Raw_Data_for_FY22[[#This Row],[25th]]","v":103051.8},{"$f":"(((AAMC_Raw_Data_for_FY22[[#This Row],[Median]]-AAMC_Raw_Data_for_FY22[[#This Row],[25th]])/25)*10) + AAMC_Raw_Data_for_FY22[[#This Row],[25th]]","v":105103.6},{"$f":"(((AAMC_Raw_Data_for_FY22[[#This Row],[Median]]-AAMC_Raw_Data_for_FY22[[#This Row],[25th]])/25)*15) + AAMC_Raw_Data_for_FY22[[#This Row],[25th]]","v":107155.4},{"$f":"(((AAMC_Raw_Data_for_FY22[[#This Row],[Median]]-AAMC_Raw_Data_for_FY22[[#This Row],[25th]])/25)*20) + AAMC_Raw_Data_for_FY22[[#This Row],[25th]]","v":109207.2},111259,{"$f":"(((AAMC_Raw_Data_for_FY22[[#This Row],[75th]]-AAMC_Raw_Data_for_FY22[[#This Row],[Median]])/25)*5) + AAMC_Raw_Data_for_FY22[[#This Row],[Median]]","v":113220.4},{"$f":"(((AAMC_Raw_Data_for_FY22[[#This Row],[75th]]-AAMC_Raw_Data_for_FY22[[#This Row],[Median]])/25)*10) + AAMC_Raw_Data_for_FY22[[#This Row],[Median]]","v":115181.8},{"$f":"(((AAMC_Raw_Data_for_FY22[[#This Row],[75th]]-AAMC_Raw_Data_for_FY22[[#This Row],[Median]])/25)*15) + AAMC_Raw_Data_for_FY22[[#This Row],[Median]]","v":117143.2},{"$f":"(((AAMC_Raw_Data_for_FY22[[#This Row],[75th]]-AAMC_Raw_Data_for_FY22[[#This Row],[Median]])/25)*20) + AAMC_Raw_Data_for_FY22[[#This Row],[Median]]","v":119104.6},121066,{"$f":"(((AAMC_Raw_Data_for_FY22[[#This Row],[75th]]-AAMC_Raw_Data_for_FY22[[#This Row],[Median]])/25)*30) + AAMC_Raw_Data_for_FY22[[#This Row],[Median]]","v":123027.4},{"$f":"(((AAMC_Raw_Data_for_FY22[[#This Row],[75th]]-AAMC_Raw_Data_for_FY22[[#This Row],[Median]])/25)*35) + AAMC_Raw_Data_for_FY22[[#This Row],[Median]]","v":124988.8},{"$f":"(((AAMC_Raw_Data_for_FY22[[#This Row],[75th]]-AAMC_Raw_Data_for_FY22[[#This Row],[Median]])/25)*40) + AAMC_Raw_Data_for_FY22[[#This Row],[Median]]","v":126950.2}]
[{"$f":"AAMC_Raw_Data_for_FY22[[#This Row],[Source]]&AAMC_Raw_Data_for_FY22[[#This Row],[Type]]&AAMC_Raw_Data_for_FY22[[#This Row],[School Subset]]&AAMC_Raw_Data_for_FY22[[#This Row],[Rank]]&AAMC_Raw_Data_for_FY22[[#This Row],[Degree]]&AAMC_Raw_Data_for_FY22[[#This Row],[Department / Specialty]]&\"L\"","v":"AAMCAcademicPublicAssociatePhDHematology/Oncology-Peds.L"},"Hematology/Oncology-Peds.",3,"AAMC","Academic","Public","Associate","PhD","2021-2022",128577,{"$f":"(((AAMC_Raw_Data_for_FY22[[#This Row],[Median]]-AAMC_Raw_Data_for_FY22[[#This Row],[25th]])/25)*5) + AAMC_Raw_Data_for_FY22[[#This Row],[25th]]","v":129783.8},{"$f":"(((AAMC_Raw_Data_for_FY22[[#This Row],[Median]]-AAMC_Raw_Data_for_FY22[[#This Row],[25th]])/25)*10) + AAMC_Raw_Data_for_FY22[[#This Row],[25th]]","v":130990.6},{"$f":"(((AAMC_Raw_Data_for_FY22[[#This Row],[Median]]-AAMC_Raw_Data_for_FY22[[#This Row],[25th]])/25)*15) + AAMC_Raw_Data_for_FY22[[#This Row],[25th]]","v":132197.4},{"$f":"(((AAMC_Raw_Data_for_FY22[[#This Row],[Median]]-AAMC_Raw_Data_for_FY22[[#This Row],[25th]])/25)*20) + AAMC_Raw_Data_for_FY22[[#This Row],[25th]]","v":133404.20000000001},134611,{"$f":"(((AAMC_Raw_Data_for_FY22[[#This Row],[75th]]-AAMC_Raw_Data_for_FY22[[#This Row],[Median]])/25)*5) + AAMC_Raw_Data_for_FY22[[#This Row],[Median]]","v":137223},{"$f":"(((AAMC_Raw_Data_for_FY22[[#This Row],[75th]]-AAMC_Raw_Data_for_FY22[[#This Row],[Median]])/25)*10) + AAMC_Raw_Data_for_FY22[[#This Row],[Median]]","v":139835},{"$f":"(((AAMC_Raw_Data_for_FY22[[#This Row],[75th]]-AAMC_Raw_Data_for_FY22[[#This Row],[Median]])/25)*15) + AAMC_Raw_Data_for_FY22[[#This Row],[Median]]","v":142447},{"$f":"(((AAMC_Raw_Data_for_FY22[[#This Row],[75th]]-AAMC_Raw_Data_for_FY22[[#This Row],[Median]])/25)*20) + AAMC_Raw_Data_for_FY22[[#This Row],[Median]]","v":145059},147671,{"$f":"(((AAMC_Raw_Data_for_FY22[[#This Row],[75th]]-AAMC_Raw_Data_for_FY22[[#This Row],[Median]])/25)*30) + AAMC_Raw_Data_for_FY22[[#This Row],[Median]]","v":150283},{"$f":"(((AAMC_Raw_Data_for_FY22[[#This Row],[75th]]-AAMC_Raw_Data_for_FY22[[#This Row],[Median]])/25)*35) + AAMC_Raw_Data_for_FY22[[#This Row],[Median]]","v":152895},{"$f":"(((AAMC_Raw_Data_for_FY22[[#This Row],[75th]]-AAMC_Raw_Data_for_FY22[[#This Row],[Median]])/25)*40) + AAMC_Raw_Data_for_FY22[[#This Row],[Median]]","v":155507}]
[{"$f":"AAMC_Raw_Data_for_FY22[[#This Row],[Source]]&AAMC_Raw_Data_for_FY22[[#This Row],[Type]]&AAMC_Raw_Data_for_FY22[[#This Row],[School Subset]]&AAMC_Raw_Data_for_FY22[[#This Row],[Rank]]&AAMC_Raw_Data_for_FY22[[#This Row],[Degree]]&AAMC_Raw_Data_for_FY22[[#This Row],[Department / Specialty]]&\"L\"","v":"AAMCAcademicPublicProfessorPhDHematology/Oncology-Peds.L"},"Hematology/Oncology-Peds.",2,"AAMC","Academic","Public","Professor","PhD","2021-2022",182240,{"$f":"(((AAMC_Raw_Data_for_FY22[[#This Row],[Median]]-AAMC_Raw_Data_for_FY22[[#This Row],[25th]])/25)*5) + AAMC_Raw_Data_for_FY22[[#This Row],[25th]]","v":193093},{"$f":"(((AAMC_Raw_Data_for_FY22[[#This Row],[Median]]-AAMC_Raw_Data_for_FY22[[#This Row],[25th]])/25)*10) + AAMC_Raw_Data_for_FY22[[#This Row],[25th]]","v":203946},{"$f":"(((AAMC_Raw_Data_for_FY22[[#This Row],[Median]]-AAMC_Raw_Data_for_FY22[[#This Row],[25th]])/25)*15) + AAMC_Raw_Data_for_FY22[[#This Row],[25th]]","v":214799},{"$f":"(((AAMC_Raw_Data_for_FY22[[#This Row],[Median]]-AAMC_Raw_Data_for_FY22[[#This Row],[25th]])/25)*20) + AAMC_Raw_Data_for_FY22[[#This Row],[25th]]","v":225652},236505,{"$f":"(((AAMC_Raw_Data_for_FY22[[#This Row],[75th]]-AAMC_Raw_Data_for_FY22[[#This Row],[Median]])/25)*5) + AAMC_Raw_Data_for_FY22[[#This Row],[Median]]","v":243389},{"$f":"(((AAMC_Raw_Data_for_FY22[[#This Row],[75th]]-AAMC_Raw_Data_for_FY22[[#This Row],[Median]])/25)*10) + AAMC_Raw_Data_for_FY22[[#This Row],[Median]]","v":250273},{"$f":"(((AAMC_Raw_Data_for_FY22[[#This Row],[75th]]-AAMC_Raw_Data_for_FY22[[#This Row],[Median]])/25)*15) + AAMC_Raw_Data_for_FY22[[#This Row],[Median]]","v":257157},{"$f":"(((AAMC_Raw_Data_for_FY22[[#This Row],[75th]]-AAMC_Raw_Data_for_FY22[[#This Row],[Median]])/25)*20) + AAMC_Raw_Data_for_FY22[[#This Row],[Median]]","v":264041},270925,{"$f":"(((AAMC_Raw_Data_for_FY22[[#This Row],[75th]]-AAMC_Raw_Data_for_FY22[[#This Row],[Median]])/25)*30) + AAMC_Raw_Data_for_FY22[[#This Row],[Median]]","v":277809},{"$f":"(((AAMC_Raw_Data_for_FY22[[#This Row],[75th]]-AAMC_Raw_Data_for_FY22[[#This Row],[Median]])/25)*35) + AAMC_Raw_Data_for_FY22[[#This Row],[Median]]","v":284693},{"$f":"(((AAMC_Raw_Data_for_FY22[[#This Row],[75th]]-AAMC_Raw_Data_for_FY22[[#This Row],[Median]])/25)*40) + AAMC_Raw_Data_for_FY22[[#This Row],[Median]]","v":291577}]
[{"$f":"AAMC_Raw_Data_for_FY22[[#This Row],[Source]]&AAMC_Raw_Data_for_FY22[[#This Row],[Type]]&AAMC_Raw_Data_for_FY22[[#This Row],[School Subset]]&AAMC_Raw_Data_for_FY22[[#This Row],[Rank]]&AAMC_Raw_Data_for_FY22[[#This Row],[Degree]]&AAMC_Raw_Data_for_FY22[[#This Row],[Department / Specialty]]&\"L\"","v":"AAMCAcademicPublicAssistantPhDHospital Medicine-Peds.L"},"Hospital Medicine-Peds.",4,"AAMC","Academic","Public","Assistant","PhD","2021-2022",null,{"$f":"(((AAMC_Raw_Data_for_FY22[[#This Row],[Median]]-AAMC_Raw_Data_for_FY22[[#This Row],[25th]])/25)*5) + AAMC_Raw_Data_for_FY22[[#This Row],[25th]]","v":0},{"$f":"(((AAMC_Raw_Data_for_FY22[[#This Row],[Median]]-AAMC_Raw_Data_for_FY22[[#This Row],[25th]])/25)*10) + AAMC_Raw_Data_for_FY22[[#This Row],[25th]]","v":0},{"$f":"(((AAMC_Raw_Data_for_FY22[[#This Row],[Median]]-AAMC_Raw_Data_for_FY22[[#This Row],[25th]])/25)*15) + AAMC_Raw_Data_for_FY22[[#This Row],[25th]]","v":0},{"$f":"(((AAMC_Raw_Data_for_FY22[[#This Row],[Median]]-AAMC_Raw_Data_for_FY22[[#This Row],[25th]])/25)*20) + AAMC_Raw_Data_for_FY22[[#This Row],[25th]]","v":0},null,{"$f":"(((AAMC_Raw_Data_for_FY22[[#This Row],[75th]]-AAMC_Raw_Data_for_FY22[[#This Row],[Median]])/25)*5) + AAMC_Raw_Data_for_FY22[[#This Row],[Median]]","v":0},{"$f":"(((AAMC_Raw_Data_for_FY22[[#This Row],[75th]]-AAMC_Raw_Data_for_FY22[[#This Row],[Median]])/25)*10) + AAMC_Raw_Data_for_FY22[[#This Row],[Median]]","v":0},{"$f":"(((AAMC_Raw_Data_for_FY22[[#This Row],[75th]]-AAMC_Raw_Data_for_FY22[[#This Row],[Median]])/25)*15) + AAMC_Raw_Data_for_FY22[[#This Row],[Median]]","v":0},{"$f":"(((AAMC_Raw_Data_for_FY22[[#This Row],[75th]]-AAMC_Raw_Data_for_FY22[[#This Row],[Median]])/25)*20) + AAMC_Raw_Data_for_FY22[[#This Row],[Median]]","v":0},null,{"$f":"(((AAMC_Raw_Data_for_FY22[[#This Row],[75th]]-AAMC_Raw_Data_for_FY22[[#This Row],[Median]])/25)*30) + AAMC_Raw_Data_for_FY22[[#This Row],[Median]]","v":0},{"$f":"(((AAMC_Raw_Data_for_FY22[[#This Row],[75th]]-AAMC_Raw_Data_for_FY22[[#This Row],[Median]])/25)*35) + AAMC_Raw_Data_for_FY22[[#This Row],[Median]]","v":0},{"$f":"(((AAMC_Raw_Data_for_FY22[[#This Row],[75th]]-AAMC_Raw_Data_for_FY22[[#This Row],[Median]])/25)*40) + AAMC_Raw_Data_for_FY22[[#This Row],[Median]]","v":0}]
[{"$f":"AAMC_Raw_Data_for_FY22[[#This Row],[Source]]&AAMC_Raw_Data_for_FY22[[#This Row],[Type]]&AAMC_Raw_Data_for_FY22[[#This Row],[School Subset]]&AAMC_Raw_Data_for_FY22[[#This Row],[Rank]]&AAMC_Raw_Data_for_FY22[[#This Row],[Degree]]&AAMC_Raw_Data_for_FY22[[#This Row],[Department / Specialty]]&\"L\"","v":"AAMCAcademicPublicInstructorPhDInfectious Disease-Peds.L"},"Infectious Disease-Peds.",5,"AAMC","Academic","Public","Instructor","PhD","2021-2022",null,{"$f":"(((AAMC_Raw_Data_for_FY22[[#This Row],[Median]]-AAMC_Raw_Data_for_FY22[[#This Row],[25th]])/25)*5) + AAMC_Raw_Data_for_FY22[[#This Row],[25th]]","v":0},{"$f":"(((AAMC_Raw_Data_for_FY22[[#This Row],[Median]]-AAMC_Raw_Data_for_FY22[[#This Row],[25th]])/25)*10) + AAMC_Raw_Data_for_FY22[[#This Row],[25th]]","v":0},{"$f":"(((AAMC_Raw_Data_for_FY22[[#This Row],[Median]]-AAMC_Raw_Data_for_FY22[[#This Row],[25th]])/25)*15) + AAMC_Raw_Data_for_FY22[[#This Row],[25th]]","v":0},{"$f":"(((AAMC_Raw_Data_for_FY22[[#This Row],[Median]]-AAMC_Raw_Data_for_FY22[[#This Row],[25th]])/25)*20) + AAMC_Raw_Data_for_FY22[[#This Row],[25th]]","v":0},null,{"$f":"(((AAMC_Raw_Data_for_FY22[[#This Row],[75th]]-AAMC_Raw_Data_for_FY22[[#This Row],[Median]])/25)*5) + AAMC_Raw_Data_for_FY22[[#This Row],[Median]]","v":0},{"$f":"(((AAMC_Raw_Data_for_FY22[[#This Row],[75th]]-AAMC_Raw_Data_for_FY22[[#This Row],[Median]])/25)*10) + AAMC_Raw_Data_for_FY22[[#This Row],[Median]]","v":0},{"$f":"(((AAMC_Raw_Data_for_FY22[[#This Row],[75th]]-AAMC_Raw_Data_for_FY22[[#This Row],[Median]])/25)*15) + AAMC_Raw_Data_for_FY22[[#This Row],[Median]]","v":0},{"$f":"(((AAMC_Raw_Data_for_FY22[[#This Row],[75th]]-AAMC_Raw_Data_for_FY22[[#This Row],[Median]])/25)*20) + AAMC_Raw_Data_for_FY22[[#This Row],[Median]]","v":0},null,{"$f":"(((AAMC_Raw_Data_for_FY22[[#This Row],[75th]]-AAMC_Raw_Data_for_FY22[[#This Row],[Median]])/25)*30) + AAMC_Raw_Data_for_FY22[[#This Row],[Median]]","v":0},{"$f":"(((AAMC_Raw_Data_for_FY22[[#This Row],[75th]]-AAMC_Raw_Data_for_FY22[[#This Row],[Median]])/25)*35) + AAMC_Raw_Data_for_FY22[[#This Row],[Median]]","v":0},{"$f":"(((AAMC_Raw_Data_for_FY22[[#This Row],[75th]]-AAMC_Raw_Data_for_FY22[[#This Row],[Median]])/25)*40) + AAMC_Raw_Data_for_FY22[[#This Row],[Median]]","v":0}]
[{"$f":"AAMC_Raw_Data_for_FY22[[#This Row],[Source]]&AAMC_Raw_Data_for_FY22[[#This Row],[Type]]&AAMC_Raw_Data_for_FY22[[#This Row],[School Subset]]&AAMC_Raw_Data_for_FY22[[#This Row],[Rank]]&AAMC_Raw_Data_for_FY22[[#This Row],[Degree]]&AAMC_Raw_Data_for_FY22[[#This Row],[Department / Specialty]]&\"L\"","v":"AAMCAcademicPublicAssistantPhDInfectious Disease-Peds.L"},"Infectious Disease-Peds.",4,"AAMC","Academic","Public","Assistant","PhD","2021-2022",86001,{"$f":"(((AAMC_Raw_Data_for_FY22[[#This Row],[Median]]-AAMC_Raw_Data_for_FY22[[#This Row],[25th]])/25)*5) + AAMC_Raw_Data_for_FY22[[#This Row],[25th]]","v":90653.4},{"$f":"(((AAMC_Raw_Data_for_FY22[[#This Row],[Median]]-AAMC_Raw_Data_for_FY22[[#This Row],[25th]])/25)*10) + AAMC_Raw_Data_for_FY22[[#This Row],[25th]]","v":95305.8},{"$f":"(((AAMC_Raw_Data_for_FY22[[#This Row],[Median]]-AAMC_Raw_Data_for_FY22[[#This Row],[25th]])/25)*15) + AAMC_Raw_Data_for_FY22[[#This Row],[25th]]","v":99958.2},{"$f":"(((AAMC_Raw_Data_for_FY22[[#This Row],[Median]]-AAMC_Raw_Data_for_FY22[[#This Row],[25th]])/25)*20) + AAMC_Raw_Data_for_FY22[[#This Row],[25th]]","v":104610.6},109263,{"$f":"(((AAMC_Raw_Data_for_FY22[[#This Row],[75th]]-AAMC_Raw_Data_for_FY22[[#This Row],[Median]])/25)*5) + AAMC_Raw_Data_for_FY22[[#This Row],[Median]]","v":113703.6},{"$f":"(((AAMC_Raw_Data_for_FY22[[#This Row],[75th]]-AAMC_Raw_Data_for_FY22[[#This Row],[Median]])/25)*10) + AAMC_Raw_Data_for_FY22[[#This Row],[Median]]","v":118144.2},{"$f":"(((AAMC_Raw_Data_for_FY22[[#This Row],[75th]]-AAMC_Raw_Data_for_FY22[[#This Row],[Median]])/25)*15) + AAMC_Raw_Data_for_FY22[[#This Row],[Median]]","v":122584.8},{"$f":"(((AAMC_Raw_Data_for_FY22[[#This Row],[75th]]-AAMC_Raw_Data_for_FY22[[#This Row],[Median]])/25)*20) + AAMC_Raw_Data_for_FY22[[#This Row],[Median]]","v":127025.4},131466,{"$f":"(((AAMC_Raw_Data_for_FY22[[#This Row],[75th]]-AAMC_Raw_Data_for_FY22[[#This Row],[Median]])/25)*30) + AAMC_Raw_Data_for_FY22[[#This Row],[Median]]","v":135906.6},{"$f":"(((AAMC_Raw_Data_for_FY22[[#This Row],[75th]]-AAMC_Raw_Data_for_FY22[[#This Row],[Median]])/25)*35) + AAMC_Raw_Data_for_FY22[[#This Row],[Median]]","v":140347.20000000001},{"$f":"(((AAMC_Raw_Data_for_FY22[[#This Row],[75th]]-AAMC_Raw_Data_for_FY22[[#This Row],[Median]])/25)*40) + AAMC_Raw_Data_for_FY22[[#This Row],[Median]]","v":144787.79999999999}]
[{"$f":"AAMC_Raw_Data_for_FY22[[#This Row],[Source]]&AAMC_Raw_Data_for_FY22[[#This Row],[Type]]&AAMC_Raw_Data_for_FY22[[#This Row],[School Subset]]&AAMC_Raw_Data_for_FY22[[#This Row],[Rank]]&AAMC_Raw_Data_for_FY22[[#This Row],[Degree]]&AAMC_Raw_Data_for_FY22[[#This Row],[Department / Specialty]]&\"L\"","v":"AAMCAcademicPublicAssociatePhDInfectious Disease-Peds.L"},"Infectious Disease-Peds.",3,"AAMC","Academic","Public","Associate","PhD","2021-2022",120370,{"$f":"(((AAMC_Raw_Data_for_FY22[[#This Row],[Median]]-AAMC_Raw_Data_for_FY22[[#This Row],[25th]])/25)*5) + AAMC_Raw_Data_for_FY22[[#This Row],[25th]]","v":122423.8},{"$f":"(((AAMC_Raw_Data_for_FY22[[#This Row],[Median]]-AAMC_Raw_Data_for_FY22[[#This Row],[25th]])/25)*10) + AAMC_Raw_Data_for_FY22[[#This Row],[25th]]","v":124477.6},{"$f":"(((AAMC_Raw_Data_for_FY22[[#This Row],[Median]]-AAMC_Raw_Data_for_FY22[[#This Row],[25th]])/25)*15) + AAMC_Raw_Data_for_FY22[[#This Row],[25th]]","v":126531.4},{"$f":"(((AAMC_Raw_Data_for_FY22[[#This Row],[Median]]-AAMC_Raw_Data_for_FY22[[#This Row],[25th]])/25)*20) + AAMC_Raw_Data_for_FY22[[#This Row],[25th]]","v":128585.2},130639,{"$f":"(((AAMC_Raw_Data_for_FY22[[#This Row],[75th]]-AAMC_Raw_Data_for_FY22[[#This Row],[Median]])/25)*5) + AAMC_Raw_Data_for_FY22[[#This Row],[Median]]","v":136352},{"$f":"(((AAMC_Raw_Data_for_FY22[[#This Row],[75th]]-AAMC_Raw_Data_for_FY22[[#This Row],[Median]])/25)*10) + AAMC_Raw_Data_for_FY22[[#This Row],[Median]]","v":142065},{"$f":"(((AAMC_Raw_Data_for_FY22[[#This Row],[75th]]-AAMC_Raw_Data_for_FY22[[#This Row],[Median]])/25)*15) + AAMC_Raw_Data_for_FY22[[#This Row],[Median]]","v":147778},{"$f":"(((AAMC_Raw_Data_for_FY22[[#This Row],[75th]]-AAMC_Raw_Data_for_FY22[[#This Row],[Median]])/25)*20) + AAMC_Raw_Data_for_FY22[[#This Row],[Median]]","v":153491},159204,{"$f":"(((AAMC_Raw_Data_for_FY22[[#This Row],[75th]]-AAMC_Raw_Data_for_FY22[[#This Row],[Median]])/25)*30) + AAMC_Raw_Data_for_FY22[[#This Row],[Median]]","v":164917},{"$f":"(((AAMC_Raw_Data_for_FY22[[#This Row],[75th]]-AAMC_Raw_Data_for_FY22[[#This Row],[Median]])/25)*35) + AAMC_Raw_Data_for_FY22[[#This Row],[Median]]","v":170630},{"$f":"(((AAMC_Raw_Data_for_FY22[[#This Row],[75th]]-AAMC_Raw_Data_for_FY22[[#This Row],[Median]])/25)*40) + AAMC_Raw_Data_for_FY22[[#This Row],[Median]]","v":176343}]
[{"$f":"AAMC_Raw_Data_for_FY22[[#This Row],[Source]]&AAMC_Raw_Data_for_FY22[[#This Row],[Type]]&AAMC_Raw_Data_for_FY22[[#This Row],[School Subset]]&AAMC_Raw_Data_for_FY22[[#This Row],[Rank]]&AAMC_Raw_Data_for_FY22[[#This Row],[Degree]]&AAMC_Raw_Data_for_FY22[[#This Row],[Department / Specialty]]&\"L\"","v":"AAMCAcademicPublicProfessorPhDInfectious Disease-Peds.L"},"Infectious Disease-Peds.",2,"AAMC","Academic","Public","Professor","PhD","2021-2022",184830,{"$f":"(((AAMC_Raw_Data_for_FY22[[#This Row],[Median]]-AAMC_Raw_Data_for_FY22[[#This Row],[25th]])/25)*5) + AAMC_Raw_Data_for_FY22[[#This Row],[25th]]","v":189329.6},{"$f":"(((AAMC_Raw_Data_for_FY22[[#This Row],[Median]]-AAMC_Raw_Data_for_FY22[[#This Row],[25th]])/25)*10) + AAMC_Raw_Data_for_FY22[[#This Row],[25th]]","v":193829.2},{"$f":"(((AAMC_Raw_Data_for_FY22[[#This Row],[Median]]-AAMC_Raw_Data_for_FY22[[#This Row],[25th]])/25)*15) + AAMC_Raw_Data_for_FY22[[#This Row],[25th]]","v":198328.8},{"$f":"(((AAMC_Raw_Data_for_FY22[[#This Row],[Median]]-AAMC_Raw_Data_for_FY22[[#This Row],[25th]])/25)*20) + AAMC_Raw_Data_for_FY22[[#This Row],[25th]]","v":202828.4},207328,{"$f":"(((AAMC_Raw_Data_for_FY22[[#This Row],[75th]]-AAMC_Raw_Data_for_FY22[[#This Row],[Median]])/25)*5) + AAMC_Raw_Data_for_FY22[[#This Row],[Median]]","v":224287},{"$f":"(((AAMC_Raw_Data_for_FY22[[#This Row],[75th]]-AAMC_Raw_Data_for_FY22[[#This Row],[Median]])/25)*10) + AAMC_Raw_Data_for_FY22[[#This Row],[Median]]","v":241246},{"$f":"(((AAMC_Raw_Data_for_FY22[[#This Row],[75th]]-AAMC_Raw_Data_for_FY22[[#This Row],[Median]])/25)*15) + AAMC_Raw_Data_for_FY22[[#This Row],[Median]]","v":258205},{"$f":"(((AAMC_Raw_Data_for_FY22[[#This Row],[75th]]-AAMC_Raw_Data_for_FY22[[#This Row],[Median]])/25)*20) + AAMC_Raw_Data_for_FY22[[#This Row],[Median]]","v":275164},292123,{"$f":"(((AAMC_Raw_Data_for_FY22[[#This Row],[75th]]-AAMC_Raw_Data_for_FY22[[#This Row],[Median]])/25)*30) + AAMC_Raw_Data_for_FY22[[#This Row],[Median]]","v":309082},{"$f":"(((AAMC_Raw_Data_for_FY22[[#This Row],[75th]]-AAMC_Raw_Data_for_FY22[[#This Row],[Median]])/25)*35) + AAMC_Raw_Data_for_FY22[[#This Row],[Median]]","v":326041},{"$f":"(((AAMC_Raw_Data_for_FY22[[#This Row],[75th]]-AAMC_Raw_Data_for_FY22[[#This Row],[Median]])/25)*40) + AAMC_Raw_Data_for_FY22[[#This Row],[Median]]","v":343000}]
[{"$f":"AAMC_Raw_Data_for_FY22[[#This Row],[Source]]&AAMC_Raw_Data_for_FY22[[#This Row],[Type]]&AAMC_Raw_Data_for_FY22[[#This Row],[School Subset]]&AAMC_Raw_Data_for_FY22[[#This Row],[Rank]]&AAMC_Raw_Data_for_FY22[[#This Row],[Degree]]&AAMC_Raw_Data_for_FY22[[#This Row],[Department / Specialty]]&\"L\"","v":"AAMCAcademicPublicInstructorPhDNeonatologyL"},"Neonatology",5,"AAMC","Academic","Public","Instructor","PhD","2021-2022",null,{"$f":"(((AAMC_Raw_Data_for_FY22[[#This Row],[Median]]-AAMC_Raw_Data_for_FY22[[#This Row],[25th]])/25)*5) + AAMC_Raw_Data_for_FY22[[#This Row],[25th]]","v":0},{"$f":"(((AAMC_Raw_Data_for_FY22[[#This Row],[Median]]-AAMC_Raw_Data_for_FY22[[#This Row],[25th]])/25)*10) + AAMC_Raw_Data_for_FY22[[#This Row],[25th]]","v":0},{"$f":"(((AAMC_Raw_Data_for_FY22[[#This Row],[Median]]-AAMC_Raw_Data_for_FY22[[#This Row],[25th]])/25)*15) + AAMC_Raw_Data_for_FY22[[#This Row],[25th]]","v":0},{"$f":"(((AAMC_Raw_Data_for_FY22[[#This Row],[Median]]-AAMC_Raw_Data_for_FY22[[#This Row],[25th]])/25)*20) + AAMC_Raw_Data_for_FY22[[#This Row],[25th]]","v":0},null,{"$f":"(((AAMC_Raw_Data_for_FY22[[#This Row],[75th]]-AAMC_Raw_Data_for_FY22[[#This Row],[Median]])/25)*5) + AAMC_Raw_Data_for_FY22[[#This Row],[Median]]","v":0},{"$f":"(((AAMC_Raw_Data_for_FY22[[#This Row],[75th]]-AAMC_Raw_Data_for_FY22[[#This Row],[Median]])/25)*10) + AAMC_Raw_Data_for_FY22[[#This Row],[Median]]","v":0},{"$f":"(((AAMC_Raw_Data_for_FY22[[#This Row],[75th]]-AAMC_Raw_Data_for_FY22[[#This Row],[Median]])/25)*15) + AAMC_Raw_Data_for_FY22[[#This Row],[Median]]","v":0},{"$f":"(((AAMC_Raw_Data_for_FY22[[#This Row],[75th]]-AAMC_Raw_Data_for_FY22[[#This Row],[Median]])/25)*20) + AAMC_Raw_Data_for_FY22[[#This Row],[Median]]","v":0},null,{"$f":"(((AAMC_Raw_Data_for_FY22[[#This Row],[75th]]-AAMC_Raw_Data_for_FY22[[#This Row],[Median]])/25)*30) + AAMC_Raw_Data_for_FY22[[#This Row],[Median]]","v":0},{"$f":"(((AAMC_Raw_Data_for_FY22[[#This Row],[75th]]-AAMC_Raw_Data_for_FY22[[#This Row],[Median]])/25)*35) + AAMC_Raw_Data_for_FY22[[#This Row],[Median]]","v":0},{"$f":"(((AAMC_Raw_Data_for_FY22[[#This Row],[75th]]-AAMC_Raw_Data_for_FY22[[#This Row],[Median]])/25)*40) + AAMC_Raw_Data_for_FY22[[#This Row],[Median]]","v":0}]
[{"$f":"AAMC_Raw_Data_for_FY22[[#This Row],[Source]]&AAMC_Raw_Data_for_FY22[[#This Row],[Type]]&AAMC_Raw_Data_for_FY22[[#This Row],[School Subset]]&AAMC_Raw_Data_for_FY22[[#This Row],[Rank]]&AAMC_Raw_Data_for_FY22[[#This Row],[Degree]]&AAMC_Raw_Data_for_FY22[[#This Row],[Department / Specialty]]&\"L\"","v":"AAMCAcademicPublicAssistantPhDNeonatologyL"},"Neonatology",4,"AAMC","Academic","Public","Assistant","PhD","2021-2022",81050,{"$f":"(((AAMC_Raw_Data_for_FY22[[#This Row],[Median]]-AAMC_Raw_Data_for_FY22[[#This Row],[25th]])/25)*5) + AAMC_Raw_Data_for_FY22[[#This Row],[25th]]","v":84413.4},{"$f":"(((AAMC_Raw_Data_for_FY22[[#This Row],[Median]]-AAMC_Raw_Data_for_FY22[[#This Row],[25th]])/25)*10) + AAMC_Raw_Data_for_FY22[[#This Row],[25th]]","v":87776.8},{"$f":"(((AAMC_Raw_Data_for_FY22[[#This Row],[Median]]-AAMC_Raw_Data_for_FY22[[#This Row],[25th]])/25)*15) + AAMC_Raw_Data_for_FY22[[#This Row],[25th]]","v":91140.2},{"$f":"(((AAMC_Raw_Data_for_FY22[[#This Row],[Median]]-AAMC_Raw_Data_for_FY22[[#This Row],[25th]])/25)*20) + AAMC_Raw_Data_for_FY22[[#This Row],[25th]]","v":94503.6},97867,{"$f":"(((AAMC_Raw_Data_for_FY22[[#This Row],[75th]]-AAMC_Raw_Data_for_FY22[[#This Row],[Median]])/25)*5) + AAMC_Raw_Data_for_FY22[[#This Row],[Median]]","v":100212.4},{"$f":"(((AAMC_Raw_Data_for_FY22[[#This Row],[75th]]-AAMC_Raw_Data_for_FY22[[#This Row],[Median]])/25)*10) + AAMC_Raw_Data_for_FY22[[#This Row],[Median]]","v":102557.8},{"$f":"(((AAMC_Raw_Data_for_FY22[[#This Row],[75th]]-AAMC_Raw_Data_for_FY22[[#This Row],[Median]])/25)*15) + AAMC_Raw_Data_for_FY22[[#This Row],[Median]]","v":104903.2},{"$f":"(((AAMC_Raw_Data_for_FY22[[#This Row],[75th]]-AAMC_Raw_Data_for_FY22[[#This Row],[Median]])/25)*20) + AAMC_Raw_Data_for_FY22[[#This Row],[Median]]","v":107248.6},109594,{"$f":"(((AAMC_Raw_Data_for_FY22[[#This Row],[75th]]-AAMC_Raw_Data_for_FY22[[#This Row],[Median]])/25)*30) + AAMC_Raw_Data_for_FY22[[#This Row],[Median]]","v":111939.4},{"$f":"(((AAMC_Raw_Data_for_FY22[[#This Row],[75th]]-AAMC_Raw_Data_for_FY22[[#This Row],[Median]])/25)*35) + AAMC_Raw_Data_for_FY22[[#This Row],[Median]]","v":114284.8},{"$f":"(((AAMC_Raw_Data_for_FY22[[#This Row],[75th]]-AAMC_Raw_Data_for_FY22[[#This Row],[Median]])/25)*40) + AAMC_Raw_Data_for_FY22[[#This Row],[Median]]","v":116630.2}]
[{"$f":"AAMC_Raw_Data_for_FY22[[#This Row],[Source]]&AAMC_Raw_Data_for_FY22[[#This Row],[Type]]&AAMC_Raw_Data_for_FY22[[#This Row],[School Subset]]&AAMC_Raw_Data_for_FY22[[#This Row],[Rank]]&AAMC_Raw_Data_for_FY22[[#This Row],[Degree]]&AAMC_Raw_Data_for_FY22[[#This Row],[Department / Specialty]]&\"L\"","v":"AAMCAcademicPublicAssociatePhDNeonatologyL"},"Neonatology",3,"AAMC","Academic","Public","Associate","PhD","2021-2022",115763,{"$f":"(((AAMC_Raw_Data_for_FY22[[#This Row],[Median]]-AAMC_Raw_Data_for_FY22[[#This Row],[25th]])/25)*5) + AAMC_Raw_Data_for_FY22[[#This Row],[25th]]","v":119523.2},{"$f":"(((AAMC_Raw_Data_for_FY22[[#This Row],[Median]]-AAMC_Raw_Data_for_FY22[[#This Row],[25th]])/25)*10) + AAMC_Raw_Data_for_FY22[[#This Row],[25th]]","v":123283.4},{"$f":"(((AAMC_Raw_Data_for_FY22[[#This Row],[Median]]-AAMC_Raw_Data_for_FY22[[#This Row],[25th]])/25)*15) + AAMC_Raw_Data_for_FY22[[#This Row],[25th]]","v":127043.6},{"$f":"(((AAMC_Raw_Data_for_FY22[[#This Row],[Median]]-AAMC_Raw_Data_for_FY22[[#This Row],[25th]])/25)*20) + AAMC_Raw_Data_for_FY22[[#This Row],[25th]]","v":130803.8},134564,{"$f":"(((AAMC_Raw_Data_for_FY22[[#This Row],[75th]]-AAMC_Raw_Data_for_FY22[[#This Row],[Median]])/25)*5) + AAMC_Raw_Data_for_FY22[[#This Row],[Median]]","v":139872.6},{"$f":"(((AAMC_Raw_Data_for_FY22[[#This Row],[75th]]-AAMC_Raw_Data_for_FY22[[#This Row],[Median]])/25)*10) + AAMC_Raw_Data_for_FY22[[#This Row],[Median]]","v":145181.20000000001},{"$f":"(((AAMC_Raw_Data_for_FY22[[#This Row],[75th]]-AAMC_Raw_Data_for_FY22[[#This Row],[Median]])/25)*15) + AAMC_Raw_Data_for_FY22[[#This Row],[Median]]","v":150489.79999999999},{"$f":"(((AAMC_Raw_Data_for_FY22[[#This Row],[75th]]-AAMC_Raw_Data_for_FY22[[#This Row],[Median]])/25)*20) + AAMC_Raw_Data_for_FY22[[#This Row],[Median]]","v":155798.39999999999},161107,{"$f":"(((AAMC_Raw_Data_for_FY22[[#This Row],[75th]]-AAMC_Raw_Data_for_FY22[[#This Row],[Median]])/25)*30) + AAMC_Raw_Data_for_FY22[[#This Row],[Median]]","v":166415.6},{"$f":"(((AAMC_Raw_Data_for_FY22[[#This Row],[75th]]-AAMC_Raw_Data_for_FY22[[#This Row],[Median]])/25)*35) + AAMC_Raw_Data_for_FY22[[#This Row],[Median]]","v":171724.2},{"$f":"(((AAMC_Raw_Data_for_FY22[[#This Row],[75th]]-AAMC_Raw_Data_for_FY22[[#This Row],[Median]])/25)*40) + AAMC_Raw_Data_for_FY22[[#This Row],[Median]]","v":177032.8}]
[{"$f":"AAMC_Raw_Data_for_FY22[[#This Row],[Source]]&AAMC_Raw_Data_for_FY22[[#This Row],[Type]]&AAMC_Raw_Data_for_FY22[[#This Row],[School Subset]]&AAMC_Raw_Data_for_FY22[[#This Row],[Rank]]&AAMC_Raw_Data_for_FY22[[#This Row],[Degree]]&AAMC_Raw_Data_for_FY22[[#This Row],[Department / Specialty]]&\"L\"","v":"AAMCAcademicPublicProfessorPhDNeonatologyL"},"Neonatology",2,"AAMC","Academic","Public","Professor","PhD","2021-2022",195458,{"$f":"(((AAMC_Raw_Data_for_FY22[[#This Row],[Median]]-AAMC_Raw_Data_for_FY22[[#This Row],[25th]])/25)*5) + AAMC_Raw_Data_for_FY22[[#This Row],[25th]]","v":201402.6},{"$f":"(((AAMC_Raw_Data_for_FY22[[#This Row],[Median]]-AAMC_Raw_Data_for_FY22[[#This Row],[25th]])/25)*10) + AAMC_Raw_Data_for_FY22[[#This Row],[25th]]","v":207347.20000000001},{"$f":"(((AAMC_Raw_Data_for_FY22[[#This Row],[Median]]-AAMC_Raw_Data_for_FY22[[#This Row],[25th]])/25)*15) + AAMC_Raw_Data_for_FY22[[#This Row],[25th]]","v":213291.8},{"$f":"(((AAMC_Raw_Data_for_FY22[[#This Row],[Median]]-AAMC_Raw_Data_for_FY22[[#This Row],[25th]])/25)*20) + AAMC_Raw_Data_for_FY22[[#This Row],[25th]]","v":219236.4},225181,{"$f":"(((AAMC_Raw_Data_for_FY22[[#This Row],[75th]]-AAMC_Raw_Data_for_FY22[[#This Row],[Median]])/25)*5) + AAMC_Raw_Data_for_FY22[[#This Row],[Median]]","v":231224.8},{"$f":"(((AAMC_Raw_Data_for_FY22[[#This Row],[75th]]-AAMC_Raw_Data_for_FY22[[#This Row],[Median]])/25)*10) + AAMC_Raw_Data_for_FY22[[#This Row],[Median]]","v":237268.6},{"$f":"(((AAMC_Raw_Data_for_FY22[[#This Row],[75th]]-AAMC_Raw_Data_for_FY22[[#This Row],[Median]])/25)*15) + AAMC_Raw_Data_for_FY22[[#This Row],[Median]]","v":243312.4},{"$f":"(((AAMC_Raw_Data_for_FY22[[#This Row],[75th]]-AAMC_Raw_Data_for_FY22[[#This Row],[Median]])/25)*20) + AAMC_Raw_Data_for_FY22[[#This Row],[Median]]","v":249356.2},255400,{"$f":"(((AAMC_Raw_Data_for_FY22[[#This Row],[75th]]-AAMC_Raw_Data_for_FY22[[#This Row],[Median]])/25)*30) + AAMC_Raw_Data_for_FY22[[#This Row],[Median]]","v":261443.8},{"$f":"(((AAMC_Raw_Data_for_FY22[[#This Row],[75th]]-AAMC_Raw_Data_for_FY22[[#This Row],[Median]])/25)*35) + AAMC_Raw_Data_for_FY22[[#This Row],[Median]]","v":267487.59999999998},{"$f":"(((AAMC_Raw_Data_for_FY22[[#This Row],[75th]]-AAMC_Raw_Data_for_FY22[[#This Row],[Median]])/25)*40) + AAMC_Raw_Data_for_FY22[[#This Row],[Median]]","v":273531.40000000002}]
[{"$f":"AAMC_Raw_Data_for_FY22[[#This Row],[Source]]&AAMC_Raw_Data_for_FY22[[#This Row],[Type]]&AAMC_Raw_Data_for_FY22[[#This Row],[School Subset]]&AAMC_Raw_Data_for_FY22[[#This Row],[Rank]]&AAMC_Raw_Data_for_FY22[[#This Row],[Degree]]&AAMC_Raw_Data_for_FY22[[#This Row],[Department / Specialty]]&\"L\"","v":"AAMCAcademicPublicInstructorPhDNephrology-Peds.L"},"Nephrology-Peds.",5,"AAMC","Academic","Public","Instructor","PhD","2021-2022",null,{"$f":"(((AAMC_Raw_Data_for_FY22[[#This Row],[Median]]-AAMC_Raw_Data_for_FY22[[#This Row],[25th]])/25)*5) + AAMC_Raw_Data_for_FY22[[#This Row],[25th]]","v":0},{"$f":"(((AAMC_Raw_Data_for_FY22[[#This Row],[Median]]-AAMC_Raw_Data_for_FY22[[#This Row],[25th]])/25)*10) + AAMC_Raw_Data_for_FY22[[#This Row],[25th]]","v":0},{"$f":"(((AAMC_Raw_Data_for_FY22[[#This Row],[Median]]-AAMC_Raw_Data_for_FY22[[#This Row],[25th]])/25)*15) + AAMC_Raw_Data_for_FY22[[#This Row],[25th]]","v":0},{"$f":"(((AAMC_Raw_Data_for_FY22[[#This Row],[Median]]-AAMC_Raw_Data_for_FY22[[#This Row],[25th]])/25)*20) + AAMC_Raw_Data_for_FY22[[#This Row],[25th]]","v":0},null,{"$f":"(((AAMC_Raw_Data_for_FY22[[#This Row],[75th]]-AAMC_Raw_Data_for_FY22[[#This Row],[Median]])/25)*5) + AAMC_Raw_Data_for_FY22[[#This Row],[Median]]","v":0},{"$f":"(((AAMC_Raw_Data_for_FY22[[#This Row],[75th]]-AAMC_Raw_Data_for_FY22[[#This Row],[Median]])/25)*10) + AAMC_Raw_Data_for_FY22[[#This Row],[Median]]","v":0},{"$f":"(((AAMC_Raw_Data_for_FY22[[#This Row],[75th]]-AAMC_Raw_Data_for_FY22[[#This Row],[Median]])/25)*15) + AAMC_Raw_Data_for_FY22[[#This Row],[Median]]","v":0},{"$f":"(((AAMC_Raw_Data_for_FY22[[#This Row],[75th]]-AAMC_Raw_Data_for_FY22[[#This Row],[Median]])/25)*20) + AAMC_Raw_Data_for_FY22[[#This Row],[Median]]","v":0},null,{"$f":"(((AAMC_Raw_Data_for_FY22[[#This Row],[75th]]-AAMC_Raw_Data_for_FY22[[#This Row],[Median]])/25)*30) + AAMC_Raw_Data_for_FY22[[#This Row],[Median]]","v":0},{"$f":"(((AAMC_Raw_Data_for_FY22[[#This Row],[75th]]-AAMC_Raw_Data_for_FY22[[#This Row],[Median]])/25)*35) + AAMC_Raw_Data_for_FY22[[#This Row],[Median]]","v":0},{"$f":"(((AAMC_Raw_Data_for_FY22[[#This Row],[75th]]-AAMC_Raw_Data_for_FY22[[#This Row],[Median]])/25)*40) + AAMC_Raw_Data_for_FY22[[#This Row],[Median]]","v":0}]
[{"$f":"AAMC_Raw_Data_for_FY22[[#This Row],[Source]]&AAMC_Raw_Data_for_FY22[[#This Row],[Type]]&AAMC_Raw_Data_for_FY22[[#This Row],[School Subset]]&AAMC_Raw_Data_for_FY22[[#This Row],[Rank]]&AAMC_Raw_Data_for_FY22[[#This Row],[Degree]]&AAMC_Raw_Data_for_FY22[[#This Row],[Department / Specialty]]&\"L\"","v":"AAMCAcademicPublicAssistantPhDNephrology-Peds.L"},"Nephrology-Peds.",4,"AAMC","Academic","Public","Assistant","PhD","2021-2022",null,{"$f":"(((AAMC_Raw_Data_for_FY22[[#This Row],[Median]]-AAMC_Raw_Data_for_FY22[[#This Row],[25th]])/25)*5) + AAMC_Raw_Data_for_FY22[[#This Row],[25th]]","v":0},{"$f":"(((AAMC_Raw_Data_for_FY22[[#This Row],[Median]]-AAMC_Raw_Data_for_FY22[[#This Row],[25th]])/25)*10) + AAMC_Raw_Data_for_FY22[[#This Row],[25th]]","v":0},{"$f":"(((AAMC_Raw_Data_for_FY22[[#This Row],[Median]]-AAMC_Raw_Data_for_FY22[[#This Row],[25th]])/25)*15) + AAMC_Raw_Data_for_FY22[[#This Row],[25th]]","v":0},{"$f":"(((AAMC_Raw_Data_for_FY22[[#This Row],[Median]]-AAMC_Raw_Data_for_FY22[[#This Row],[25th]])/25)*20) + AAMC_Raw_Data_for_FY22[[#This Row],[25th]]","v":0},null,{"$f":"(((AAMC_Raw_Data_for_FY22[[#This Row],[75th]]-AAMC_Raw_Data_for_FY22[[#This Row],[Median]])/25)*5) + AAMC_Raw_Data_for_FY22[[#This Row],[Median]]","v":0},{"$f":"(((AAMC_Raw_Data_for_FY22[[#This Row],[75th]]-AAMC_Raw_Data_for_FY22[[#This Row],[Median]])/25)*10) + AAMC_Raw_Data_for_FY22[[#This Row],[Median]]","v":0},{"$f":"(((AAMC_Raw_Data_for_FY22[[#This Row],[75th]]-AAMC_Raw_Data_for_FY22[[#This Row],[Median]])/25)*15) + AAMC_Raw_Data_for_FY22[[#This Row],[Median]]","v":0},{"$f":"(((AAMC_Raw_Data_for_FY22[[#This Row],[75th]]-AAMC_Raw_Data_for_FY22[[#This Row],[Median]])/25)*20) + AAMC_Raw_Data_for_FY22[[#This Row],[Median]]","v":0},null,{"$f":"(((AAMC_Raw_Data_for_FY22[[#This Row],[75th]]-AAMC_Raw_Data_for_FY22[[#This Row],[Median]])/25)*30) + AAMC_Raw_Data_for_FY22[[#This Row],[Median]]","v":0},{"$f":"(((AAMC_Raw_Data_for_FY22[[#This Row],[75th]]-AAMC_Raw_Data_for_FY22[[#This Row],[Median]])/25)*35) + AAMC_Raw_Data_for_FY22[[#This Row],[Median]]","v":0},{"$f":"(((AAMC_Raw_Data_for_FY22[[#This Row],[75th]]-AAMC_Raw_Data_for_FY22[[#This Row],[Median]])/25)*40) + AAMC_Raw_Data_for_FY22[[#This Row],[Median]]","v":0}]
[{"$f":"AAMC_Raw_Data_for_FY22[[#This Row],[Source]]&AAMC_Raw_Data_for_FY22[[#This Row],[Type]]&AAMC_Raw_Data_for_FY22[[#This Row],[School Subset]]&AAMC_Raw_Data_for_FY22[[#This Row],[Rank]]&AAMC_Raw_Data_for_FY22[[#This Row],[Degree]]&AAMC_Raw_Data_for_FY22[[#This Row],[Department / Specialty]]&\"L\"","v":"AAMCAcademicPublicAssociatePhDNephrology-Peds.L"},"Nephrology-Peds.",3,"AAMC","Academic","Public","Associate","PhD","2021-2022",null,{"$f":"(((AAMC_Raw_Data_for_FY22[[#This Row],[Median]]-AAMC_Raw_Data_for_FY22[[#This Row],[25th]])/25)*5) + AAMC_Raw_Data_for_FY22[[#This Row],[25th]]","v":0},{"$f":"(((AAMC_Raw_Data_for_FY22[[#This Row],[Median]]-AAMC_Raw_Data_for_FY22[[#This Row],[25th]])/25)*10) + AAMC_Raw_Data_for_FY22[[#This Row],[25th]]","v":0},{"$f":"(((AAMC_Raw_Data_for_FY22[[#This Row],[Median]]-AAMC_Raw_Data_for_FY22[[#This Row],[25th]])/25)*15) + AAMC_Raw_Data_for_FY22[[#This Row],[25th]]","v":0},{"$f":"(((AAMC_Raw_Data_for_FY22[[#This Row],[Median]]-AAMC_Raw_Data_for_FY22[[#This Row],[25th]])/25)*20) + AAMC_Raw_Data_for_FY22[[#This Row],[25th]]","v":0},null,{"$f":"(((AAMC_Raw_Data_for_FY22[[#This Row],[75th]]-AAMC_Raw_Data_for_FY22[[#This Row],[Median]])/25)*5) + AAMC_Raw_Data_for_FY22[[#This Row],[Median]]","v":0},{"$f":"(((AAMC_Raw_Data_for_FY22[[#This Row],[75th]]-AAMC_Raw_Data_for_FY22[[#This Row],[Median]])/25)*10) + AAMC_Raw_Data_for_FY22[[#This Row],[Median]]","v":0},{"$f":"(((AAMC_Raw_Data_for_FY22[[#This Row],[75th]]-AAMC_Raw_Data_for_FY22[[#This Row],[Median]])/25)*15) + AAMC_Raw_Data_for_FY22[[#This Row],[Median]]","v":0},{"$f":"(((AAMC_Raw_Data_for_FY22[[#This Row],[75th]]-AAMC_Raw_Data_for_FY22[[#This Row],[Median]])/25)*20) + AAMC_Raw_Data_for_FY22[[#This Row],[Median]]","v":0},null,{"$f":"(((AAMC_Raw_Data_for_FY22[[#This Row],[75th]]-AAMC_Raw_Data_for_FY22[[#This Row],[Median]])/25)*30) + AAMC_Raw_Data_for_FY22[[#This Row],[Median]]","v":0},{"$f":"(((AAMC_Raw_Data_for_FY22[[#This Row],[75th]]-AAMC_Raw_Data_for_FY22[[#This Row],[Median]])/25)*35) + AAMC_Raw_Data_for_FY22[[#This Row],[Median]]","v":0},{"$f":"(((AAMC_Raw_Data_for_FY22[[#This Row],[75th]]-AAMC_Raw_Data_for_FY22[[#This Row],[Median]])/25)*40) + AAMC_Raw_Data_for_FY22[[#This Row],[Median]]","v":0}]
[{"$f":"AAMC_Raw_Data_for_FY22[[#This Row],[Source]]&AAMC_Raw_Data_for_FY22[[#This Row],[Type]]&AAMC_Raw_Data_for_FY22[[#This Row],[School Subset]]&AAMC_Raw_Data_for_FY22[[#This Row],[Rank]]&AAMC_Raw_Data_for_FY22[[#This Row],[Degree]]&AAMC_Raw_Data_for_FY22[[#This Row],[Department / Specialty]]&\"L\"","v":"AAMCAcademicPublicProfessorPhDNephrology-Peds.L"},"Nephrology-Peds.",2,"AAMC","Academic","Public","Professor","PhD","2021-2022",null,{"$f":"(((AAMC_Raw_Data_for_FY22[[#This Row],[Median]]-AAMC_Raw_Data_for_FY22[[#This Row],[25th]])/25)*5) + AAMC_Raw_Data_for_FY22[[#This Row],[25th]]","v":0},{"$f":"(((AAMC_Raw_Data_for_FY22[[#This Row],[Median]]-AAMC_Raw_Data_for_FY22[[#This Row],[25th]])/25)*10) + AAMC_Raw_Data_for_FY22[[#This Row],[25th]]","v":0},{"$f":"(((AAMC_Raw_Data_for_FY22[[#This Row],[Median]]-AAMC_Raw_Data_for_FY22[[#This Row],[25th]])/25)*15) + AAMC_Raw_Data_for_FY22[[#This Row],[25th]]","v":0},{"$f":"(((AAMC_Raw_Data_for_FY22[[#This Row],[Median]]-AAMC_Raw_Data_for_FY22[[#This Row],[25th]])/25)*20) + AAMC_Raw_Data_for_FY22[[#This Row],[25th]]","v":0},null,{"$f":"(((AAMC_Raw_Data_for_FY22[[#This Row],[75th]]-AAMC_Raw_Data_for_FY22[[#This Row],[Median]])/25)*5) + AAMC_Raw_Data_for_FY22[[#This Row],[Median]]","v":0},{"$f":"(((AAMC_Raw_Data_for_FY22[[#This Row],[75th]]-AAMC_Raw_Data_for_FY22[[#This Row],[Median]])/25)*10) + AAMC_Raw_Data_for_FY22[[#This Row],[Median]]","v":0},{"$f":"(((AAMC_Raw_Data_for_FY22[[#This Row],[75th]]-AAMC_Raw_Data_for_FY22[[#This Row],[Median]])/25)*15) + AAMC_Raw_Data_for_FY22[[#This Row],[Median]]","v":0},{"$f":"(((AAMC_Raw_Data_for_FY22[[#This Row],[75th]]-AAMC_Raw_Data_for_FY22[[#This Row],[Median]])/25)*20) + AAMC_Raw_Data_for_FY22[[#This Row],[Median]]","v":0},null,{"$f":"(((AAMC_Raw_Data_for_FY22[[#This Row],[75th]]-AAMC_Raw_Data_for_FY22[[#This Row],[Median]])/25)*30) + AAMC_Raw_Data_for_FY22[[#This Row],[Median]]","v":0},{"$f":"(((AAMC_Raw_Data_for_FY22[[#This Row],[75th]]-AAMC_Raw_Data_for_FY22[[#This Row],[Median]])/25)*35) + AAMC_Raw_Data_for_FY22[[#This Row],[Median]]","v":0},{"$f":"(((AAMC_Raw_Data_for_FY22[[#This Row],[75th]]-AAMC_Raw_Data_for_FY22[[#This Row],[Median]])/25)*40) + AAMC_Raw_Data_for_FY22[[#This Row],[Median]]","v":0}]
[{"$f":"AAMC_Raw_Data_for_FY22[[#This Row],[Source]]&AAMC_Raw_Data_for_FY22[[#This Row],[Type]]&AAMC_Raw_Data_for_FY22[[#This Row],[School Subset]]&AAMC_Raw_Data_for_FY22[[#This Row],[Rank]]&AAMC_Raw_Data_for_FY22[[#This Row],[Degree]]&AAMC_Raw_Data_for_FY22[[#This Row],[Department / Specialty]]&\"L\"","v":"AAMCAcademicPublicInstructorPhDNeurology-Peds.L"},"Neurology-Peds.",5,"AAMC","Academic","Public","Instructor","PhD","2021-2022",null,{"$f":"(((AAMC_Raw_Data_for_FY22[[#This Row],[Median]]-AAMC_Raw_Data_for_FY22[[#This Row],[25th]])/25)*5) + AAMC_Raw_Data_for_FY22[[#This Row],[25th]]","v":0},{"$f":"(((AAMC_Raw_Data_for_FY22[[#This Row],[Median]]-AAMC_Raw_Data_for_FY22[[#This Row],[25th]])/25)*10) + AAMC_Raw_Data_for_FY22[[#This Row],[25th]]","v":0},{"$f":"(((AAMC_Raw_Data_for_FY22[[#This Row],[Median]]-AAMC_Raw_Data_for_FY22[[#This Row],[25th]])/25)*15) + AAMC_Raw_Data_for_FY22[[#This Row],[25th]]","v":0},{"$f":"(((AAMC_Raw_Data_for_FY22[[#This Row],[Median]]-AAMC_Raw_Data_for_FY22[[#This Row],[25th]])/25)*20) + AAMC_Raw_Data_for_FY22[[#This Row],[25th]]","v":0},null,{"$f":"(((AAMC_Raw_Data_for_FY22[[#This Row],[75th]]-AAMC_Raw_Data_for_FY22[[#This Row],[Median]])/25)*5) + AAMC_Raw_Data_for_FY22[[#This Row],[Median]]","v":0},{"$f":"(((AAMC_Raw_Data_for_FY22[[#This Row],[75th]]-AAMC_Raw_Data_for_FY22[[#This Row],[Median]])/25)*10) + AAMC_Raw_Data_for_FY22[[#This Row],[Median]]","v":0},{"$f":"(((AAMC_Raw_Data_for_FY22[[#This Row],[75th]]-AAMC_Raw_Data_for_FY22[[#This Row],[Median]])/25)*15) + AAMC_Raw_Data_for_FY22[[#This Row],[Median]]","v":0},{"$f":"(((AAMC_Raw_Data_for_FY22[[#This Row],[75th]]-AAMC_Raw_Data_for_FY22[[#This Row],[Median]])/25)*20) + AAMC_Raw_Data_for_FY22[[#This Row],[Median]]","v":0},null,{"$f":"(((AAMC_Raw_Data_for_FY22[[#This Row],[75th]]-AAMC_Raw_Data_for_FY22[[#This Row],[Median]])/25)*30) + AAMC_Raw_Data_for_FY22[[#This Row],[Median]]","v":0},{"$f":"(((AAMC_Raw_Data_for_FY22[[#This Row],[75th]]-AAMC_Raw_Data_for_FY22[[#This Row],[Median]])/25)*35) + AAMC_Raw_Data_for_FY22[[#This Row],[Median]]","v":0},{"$f":"(((AAMC_Raw_Data_for_FY22[[#This Row],[75th]]-AAMC_Raw_Data_for_FY22[[#This Row],[Median]])/25)*40) + AAMC_Raw_Data_for_FY22[[#This Row],[Median]]","v":0}]
[{"$f":"AAMC_Raw_Data_for_FY22[[#This Row],[Source]]&AAMC_Raw_Data_for_FY22[[#This Row],[Type]]&AAMC_Raw_Data_for_FY22[[#This Row],[School Subset]]&AAMC_Raw_Data_for_FY22[[#This Row],[Rank]]&AAMC_Raw_Data_for_FY22[[#This Row],[Degree]]&AAMC_Raw_Data_for_FY22[[#This Row],[Department / Specialty]]&\"L\"","v":"AAMCAcademicPublicAssistantPhDNeurology-Peds.L"},"Neurology-Peds.",4,"AAMC","Academic","Public","Assistant","PhD","2021-2022",100006,{"$f":"(((AAMC_Raw_Data_for_FY22[[#This Row],[Median]]-AAMC_Raw_Data_for_FY22[[#This Row],[25th]])/25)*5) + AAMC_Raw_Data_for_FY22[[#This Row],[25th]]","v":102373.4},{"$f":"(((AAMC_Raw_Data_for_FY22[[#This Row],[Median]]-AAMC_Raw_Data_for_FY22[[#This Row],[25th]])/25)*10) + AAMC_Raw_Data_for_FY22[[#This Row],[25th]]","v":104740.8},{"$f":"(((AAMC_Raw_Data_for_FY22[[#This Row],[Median]]-AAMC_Raw_Data_for_FY22[[#This Row],[25th]])/25)*15) + AAMC_Raw_Data_for_FY22[[#This Row],[25th]]","v":107108.2},{"$f":"(((AAMC_Raw_Data_for_FY22[[#This Row],[Median]]-AAMC_Raw_Data_for_FY22[[#This Row],[25th]])/25)*20) + AAMC_Raw_Data_for_FY22[[#This Row],[25th]]","v":109475.6},111843,{"$f":"(((AAMC_Raw_Data_for_FY22[[#This Row],[75th]]-AAMC_Raw_Data_for_FY22[[#This Row],[Median]])/25)*5) + AAMC_Raw_Data_for_FY22[[#This Row],[Median]]","v":115100.4},{"$f":"(((AAMC_Raw_Data_for_FY22[[#This Row],[75th]]-AAMC_Raw_Data_for_FY22[[#This Row],[Median]])/25)*10) + AAMC_Raw_Data_for_FY22[[#This Row],[Median]]","v":118357.8},{"$f":"(((AAMC_Raw_Data_for_FY22[[#This Row],[75th]]-AAMC_Raw_Data_for_FY22[[#This Row],[Median]])/25)*15) + AAMC_Raw_Data_for_FY22[[#This Row],[Median]]","v":121615.2},{"$f":"(((AAMC_Raw_Data_for_FY22[[#This Row],[75th]]-AAMC_Raw_Data_for_FY22[[#This Row],[Median]])/25)*20) + AAMC_Raw_Data_for_FY22[[#This Row],[Median]]","v":124872.6},128130,{"$f":"(((AAMC_Raw_Data_for_FY22[[#This Row],[75th]]-AAMC_Raw_Data_for_FY22[[#This Row],[Median]])/25)*30) + AAMC_Raw_Data_for_FY22[[#This Row],[Median]]","v":131387.4},{"$f":"(((AAMC_Raw_Data_for_FY22[[#This Row],[75th]]-AAMC_Raw_Data_for_FY22[[#This Row],[Median]])/25)*35) + AAMC_Raw_Data_for_FY22[[#This Row],[Median]]","v":134644.79999999999},{"$f":"(((AAMC_Raw_Data_for_FY22[[#This Row],[75th]]-AAMC_Raw_Data_for_FY22[[#This Row],[Median]])/25)*40) + AAMC_Raw_Data_for_FY22[[#This Row],[Median]]","v":137902.20000000001}]
[{"$f":"AAMC_Raw_Data_for_FY22[[#This Row],[Source]]&AAMC_Raw_Data_for_FY22[[#This Row],[Type]]&AAMC_Raw_Data_for_FY22[[#This Row],[School Subset]]&AAMC_Raw_Data_for_FY22[[#This Row],[Rank]]&AAMC_Raw_Data_for_FY22[[#This Row],[Degree]]&AAMC_Raw_Data_for_FY22[[#This Row],[Department / Specialty]]&\"L\"","v":"AAMCAcademicPublicAssociatePhDNeurology-Peds.L"},"Neurology-Peds.",3,"AAMC","Academic","Public","Associate","PhD","2021-2022",135243,{"$f":"(((AAMC_Raw_Data_for_FY22[[#This Row],[Median]]-AAMC_Raw_Data_for_FY22[[#This Row],[25th]])/25)*5) + AAMC_Raw_Data_for_FY22[[#This Row],[25th]]","v":137860},{"$f":"(((AAMC_Raw_Data_for_FY22[[#This Row],[Median]]-AAMC_Raw_Data_for_FY22[[#This Row],[25th]])/25)*10) + AAMC_Raw_Data_for_FY22[[#This Row],[25th]]","v":140477},{"$f":"(((AAMC_Raw_Data_for_FY22[[#This Row],[Median]]-AAMC_Raw_Data_for_FY22[[#This Row],[25th]])/25)*15) + AAMC_Raw_Data_for_FY22[[#This Row],[25th]]","v":143094},{"$f":"(((AAMC_Raw_Data_for_FY22[[#This Row],[Median]]-AAMC_Raw_Data_for_FY22[[#This Row],[25th]])/25)*20) + AAMC_Raw_Data_for_FY22[[#This Row],[25th]]","v":145711},148328,{"$f":"(((AAMC_Raw_Data_for_FY22[[#This Row],[75th]]-AAMC_Raw_Data_for_FY22[[#This Row],[Median]])/25)*5) + AAMC_Raw_Data_for_FY22[[#This Row],[Median]]","v":152542},{"$f":"(((AAMC_Raw_Data_for_FY22[[#This Row],[75th]]-AAMC_Raw_Data_for_FY22[[#This Row],[Median]])/25)*10) + AAMC_Raw_Data_for_FY22[[#This Row],[Median]]","v":156756},{"$f":"(((AAMC_Raw_Data_for_FY22[[#This Row],[75th]]-AAMC_Raw_Data_for_FY22[[#This Row],[Median]])/25)*15) + AAMC_Raw_Data_for_FY22[[#This Row],[Median]]","v":160970},{"$f":"(((AAMC_Raw_Data_for_FY22[[#This Row],[75th]]-AAMC_Raw_Data_for_FY22[[#This Row],[Median]])/25)*20) + AAMC_Raw_Data_for_FY22[[#This Row],[Median]]","v":165184},169398,{"$f":"(((AAMC_Raw_Data_for_FY22[[#This Row],[75th]]-AAMC_Raw_Data_for_FY22[[#This Row],[Median]])/25)*30) + AAMC_Raw_Data_for_FY22[[#This Row],[Median]]","v":173612},{"$f":"(((AAMC_Raw_Data_for_FY22[[#This Row],[75th]]-AAMC_Raw_Data_for_FY22[[#This Row],[Median]])/25)*35) + AAMC_Raw_Data_for_FY22[[#This Row],[Median]]","v":177826},{"$f":"(((AAMC_Raw_Data_for_FY22[[#This Row],[75th]]-AAMC_Raw_Data_for_FY22[[#This Row],[Median]])/25)*40) + AAMC_Raw_Data_for_FY22[[#This Row],[Median]]","v":182040}]
[{"$f":"AAMC_Raw_Data_for_FY22[[#This Row],[Source]]&AAMC_Raw_Data_for_FY22[[#This Row],[Type]]&AAMC_Raw_Data_for_FY22[[#This Row],[School Subset]]&AAMC_Raw_Data_for_FY22[[#This Row],[Rank]]&AAMC_Raw_Data_for_FY22[[#This Row],[Degree]]&AAMC_Raw_Data_for_FY22[[#This Row],[Department / Specialty]]&\"L\"","v":"AAMCAcademicPublicProfessorPhDNeurology-Peds.L"},"Neurology-Peds.",2,"AAMC","Academic","Public","Professor","PhD","2021-2022",null,{"$f":"(((AAMC_Raw_Data_for_FY22[[#This Row],[Median]]-AAMC_Raw_Data_for_FY22[[#This Row],[25th]])/25)*5) + AAMC_Raw_Data_for_FY22[[#This Row],[25th]]","v":0},{"$f":"(((AAMC_Raw_Data_for_FY22[[#This Row],[Median]]-AAMC_Raw_Data_for_FY22[[#This Row],[25th]])/25)*10) + AAMC_Raw_Data_for_FY22[[#This Row],[25th]]","v":0},{"$f":"(((AAMC_Raw_Data_for_FY22[[#This Row],[Median]]-AAMC_Raw_Data_for_FY22[[#This Row],[25th]])/25)*15) + AAMC_Raw_Data_for_FY22[[#This Row],[25th]]","v":0},{"$f":"(((AAMC_Raw_Data_for_FY22[[#This Row],[Median]]-AAMC_Raw_Data_for_FY22[[#This Row],[25th]])/25)*20) + AAMC_Raw_Data_for_FY22[[#This Row],[25th]]","v":0},null,{"$f":"(((AAMC_Raw_Data_for_FY22[[#This Row],[75th]]-AAMC_Raw_Data_for_FY22[[#This Row],[Median]])/25)*5) + AAMC_Raw_Data_for_FY22[[#This Row],[Median]]","v":0},{"$f":"(((AAMC_Raw_Data_for_FY22[[#This Row],[75th]]-AAMC_Raw_Data_for_FY22[[#This Row],[Median]])/25)*10) + AAMC_Raw_Data_for_FY22[[#This Row],[Median]]","v":0},{"$f":"(((AAMC_Raw_Data_for_FY22[[#This Row],[75th]]-AAMC_Raw_Data_for_FY22[[#This Row],[Median]])/25)*15) + AAMC_Raw_Data_for_FY22[[#This Row],[Median]]","v":0},{"$f":"(((AAMC_Raw_Data_for_FY22[[#This Row],[75th]]-AAMC_Raw_Data_for_FY22[[#This Row],[Median]])/25)*20) + AAMC_Raw_Data_for_FY22[[#This Row],[Median]]","v":0},null,{"$f":"(((AAMC_Raw_Data_for_FY22[[#This Row],[75th]]-AAMC_Raw_Data_for_FY22[[#This Row],[Median]])/25)*30) + AAMC_Raw_Data_for_FY22[[#This Row],[Median]]","v":0},{"$f":"(((AAMC_Raw_Data_for_FY22[[#This Row],[75th]]-AAMC_Raw_Data_for_FY22[[#This Row],[Median]])/25)*35) + AAMC_Raw_Data_for_FY22[[#This Row],[Median]]","v":0},{"$f":"(((AAMC_Raw_Data_for_FY22[[#This Row],[75th]]-AAMC_Raw_Data_for_FY22[[#This Row],[Median]])/25)*40) + AAMC_Raw_Data_for_FY22[[#This Row],[Median]]","v":0}]
[{"$f":"AAMC_Raw_Data_for_FY22[[#This Row],[Source]]&AAMC_Raw_Data_for_FY22[[#This Row],[Type]]&AAMC_Raw_Data_for_FY22[[#This Row],[School Subset]]&AAMC_Raw_Data_for_FY22[[#This Row],[Rank]]&AAMC_Raw_Data_for_FY22[[#This Row],[Degree]]&AAMC_Raw_Data_for_FY22[[#This Row],[Department / Specialty]]&\"L\"","v":"AAMCAcademicPublicInstructorPhDPediatric CardiologyL"},"Pediatric Cardiology",5,"AAMC","Academic","Public","Instructor","PhD","2021-2022",null,{"$f":"(((AAMC_Raw_Data_for_FY22[[#This Row],[Median]]-AAMC_Raw_Data_for_FY22[[#This Row],[25th]])/25)*5) + AAMC_Raw_Data_for_FY22[[#This Row],[25th]]","v":0},{"$f":"(((AAMC_Raw_Data_for_FY22[[#This Row],[Median]]-AAMC_Raw_Data_for_FY22[[#This Row],[25th]])/25)*10) + AAMC_Raw_Data_for_FY22[[#This Row],[25th]]","v":0},{"$f":"(((AAMC_Raw_Data_for_FY22[[#This Row],[Median]]-AAMC_Raw_Data_for_FY22[[#This Row],[25th]])/25)*15) + AAMC_Raw_Data_for_FY22[[#This Row],[25th]]","v":0},{"$f":"(((AAMC_Raw_Data_for_FY22[[#This Row],[Median]]-AAMC_Raw_Data_for_FY22[[#This Row],[25th]])/25)*20) + AAMC_Raw_Data_for_FY22[[#This Row],[25th]]","v":0},null,{"$f":"(((AAMC_Raw_Data_for_FY22[[#This Row],[75th]]-AAMC_Raw_Data_for_FY22[[#This Row],[Median]])/25)*5) + AAMC_Raw_Data_for_FY22[[#This Row],[Median]]","v":0},{"$f":"(((AAMC_Raw_Data_for_FY22[[#This Row],[75th]]-AAMC_Raw_Data_for_FY22[[#This Row],[Median]])/25)*10) + AAMC_Raw_Data_for_FY22[[#This Row],[Median]]","v":0},{"$f":"(((AAMC_Raw_Data_for_FY22[[#This Row],[75th]]-AAMC_Raw_Data_for_FY22[[#This Row],[Median]])/25)*15) + AAMC_Raw_Data_for_FY22[[#This Row],[Median]]","v":0},{"$f":"(((AAMC_Raw_Data_for_FY22[[#This Row],[75th]]-AAMC_Raw_Data_for_FY22[[#This Row],[Median]])/25)*20) + AAMC_Raw_Data_for_FY22[[#This Row],[Median]]","v":0},null,{"$f":"(((AAMC_Raw_Data_for_FY22[[#This Row],[75th]]-AAMC_Raw_Data_for_FY22[[#This Row],[Median]])/25)*30) + AAMC_Raw_Data_for_FY22[[#This Row],[Median]]","v":0},{"$f":"(((AAMC_Raw_Data_for_FY22[[#This Row],[75th]]-AAMC_Raw_Data_for_FY22[[#This Row],[Median]])/25)*35) + AAMC_Raw_Data_for_FY22[[#This Row],[Median]]","v":0},{"$f":"(((AAMC_Raw_Data_for_FY22[[#This Row],[75th]]-AAMC_Raw_Data_for_FY22[[#This Row],[Median]])/25)*40) + AAMC_Raw_Data_for_FY22[[#This Row],[Median]]","v":0}]
[{"$f":"AAMC_Raw_Data_for_FY22[[#This Row],[Source]]&AAMC_Raw_Data_for_FY22[[#This Row],[Type]]&AAMC_Raw_Data_for_FY22[[#This Row],[School Subset]]&AAMC_Raw_Data_for_FY22[[#This Row],[Rank]]&AAMC_Raw_Data_for_FY22[[#This Row],[Degree]]&AAMC_Raw_Data_for_FY22[[#This Row],[Department / Specialty]]&\"L\"","v":"AAMCAcademicPublicAssistantPhDPediatric CardiologyL"},"Pediatric Cardiology",4,"AAMC","Academic","Public","Assistant","PhD","2021-2022",null,{"$f":"(((AAMC_Raw_Data_for_FY22[[#This Row],[Median]]-AAMC_Raw_Data_for_FY22[[#This Row],[25th]])/25)*5) + AAMC_Raw_Data_for_FY22[[#This Row],[25th]]","v":0},{"$f":"(((AAMC_Raw_Data_for_FY22[[#This Row],[Median]]-AAMC_Raw_Data_for_FY22[[#This Row],[25th]])/25)*10) + AAMC_Raw_Data_for_FY22[[#This Row],[25th]]","v":0},{"$f":"(((AAMC_Raw_Data_for_FY22[[#This Row],[Median]]-AAMC_Raw_Data_for_FY22[[#This Row],[25th]])/25)*15) + AAMC_Raw_Data_for_FY22[[#This Row],[25th]]","v":0},{"$f":"(((AAMC_Raw_Data_for_FY22[[#This Row],[Median]]-AAMC_Raw_Data_for_FY22[[#This Row],[25th]])/25)*20) + AAMC_Raw_Data_for_FY22[[#This Row],[25th]]","v":0},null,{"$f":"(((AAMC_Raw_Data_for_FY22[[#This Row],[75th]]-AAMC_Raw_Data_for_FY22[[#This Row],[Median]])/25)*5) + AAMC_Raw_Data_for_FY22[[#This Row],[Median]]","v":0},{"$f":"(((AAMC_Raw_Data_for_FY22[[#This Row],[75th]]-AAMC_Raw_Data_for_FY22[[#This Row],[Median]])/25)*10) + AAMC_Raw_Data_for_FY22[[#This Row],[Median]]","v":0},{"$f":"(((AAMC_Raw_Data_for_FY22[[#This Row],[75th]]-AAMC_Raw_Data_for_FY22[[#This Row],[Median]])/25)*15) + AAMC_Raw_Data_for_FY22[[#This Row],[Median]]","v":0},{"$f":"(((AAMC_Raw_Data_for_FY22[[#This Row],[75th]]-AAMC_Raw_Data_for_FY22[[#This Row],[Median]])/25)*20) + AAMC_Raw_Data_for_FY22[[#This Row],[Median]]","v":0},null,{"$f":"(((AAMC_Raw_Data_for_FY22[[#This Row],[75th]]-AAMC_Raw_Data_for_FY22[[#This Row],[Median]])/25)*30) + AAMC_Raw_Data_for_FY22[[#This Row],[Median]]","v":0},{"$f":"(((AAMC_Raw_Data_for_FY22[[#This Row],[75th]]-AAMC_Raw_Data_for_FY22[[#This Row],[Median]])/25)*35) + AAMC_Raw_Data_for_FY22[[#This Row],[Median]]","v":0},{"$f":"(((AAMC_Raw_Data_for_FY22[[#This Row],[75th]]-AAMC_Raw_Data_for_FY22[[#This Row],[Median]])/25)*40) + AAMC_Raw_Data_for_FY22[[#This Row],[Median]]","v":0}]
[{"$f":"AAMC_Raw_Data_for_FY22[[#This Row],[Source]]&AAMC_Raw_Data_for_FY22[[#This Row],[Type]]&AAMC_Raw_Data_for_FY22[[#This Row],[School Subset]]&AAMC_Raw_Data_for_FY22[[#This Row],[Rank]]&AAMC_Raw_Data_for_FY22[[#This Row],[Degree]]&AAMC_Raw_Data_for_FY22[[#This Row],[Department / Specialty]]&\"L\"","v":"AAMCAcademicPublicAssociatePhDPediatric CardiologyL"},"Pediatric Cardiology",3,"AAMC","Academic","Public","Associate","PhD","2021-2022",null,{"$f":"(((AAMC_Raw_Data_for_FY22[[#This Row],[Median]]-AAMC_Raw_Data_for_FY22[[#This Row],[25th]])/25)*5) + AAMC_Raw_Data_for_FY22[[#This Row],[25th]]","v":0},{"$f":"(((AAMC_Raw_Data_for_FY22[[#This Row],[Median]]-AAMC_Raw_Data_for_FY22[[#This Row],[25th]])/25)*10) + AAMC_Raw_Data_for_FY22[[#This Row],[25th]]","v":0},{"$f":"(((AAMC_Raw_Data_for_FY22[[#This Row],[Median]]-AAMC_Raw_Data_for_FY22[[#This Row],[25th]])/25)*15) + AAMC_Raw_Data_for_FY22[[#This Row],[25th]]","v":0},{"$f":"(((AAMC_Raw_Data_for_FY22[[#This Row],[Median]]-AAMC_Raw_Data_for_FY22[[#This Row],[25th]])/25)*20) + AAMC_Raw_Data_for_FY22[[#This Row],[25th]]","v":0},null,{"$f":"(((AAMC_Raw_Data_for_FY22[[#This Row],[75th]]-AAMC_Raw_Data_for_FY22[[#This Row],[Median]])/25)*5) + AAMC_Raw_Data_for_FY22[[#This Row],[Median]]","v":0},{"$f":"(((AAMC_Raw_Data_for_FY22[[#This Row],[75th]]-AAMC_Raw_Data_for_FY22[[#This Row],[Median]])/25)*10) + AAMC_Raw_Data_for_FY22[[#This Row],[Median]]","v":0},{"$f":"(((AAMC_Raw_Data_for_FY22[[#This Row],[75th]]-AAMC_Raw_Data_for_FY22[[#This Row],[Median]])/25)*15) + AAMC_Raw_Data_for_FY22[[#This Row],[Median]]","v":0},{"$f":"(((AAMC_Raw_Data_for_FY22[[#This Row],[75th]]-AAMC_Raw_Data_for_FY22[[#This Row],[Median]])/25)*20) + AAMC_Raw_Data_for_FY22[[#This Row],[Median]]","v":0},null,{"$f":"(((AAMC_Raw_Data_for_FY22[[#This Row],[75th]]-AAMC_Raw_Data_for_FY22[[#This Row],[Median]])/25)*30) + AAMC_Raw_Data_for_FY22[[#This Row],[Median]]","v":0},{"$f":"(((AAMC_Raw_Data_for_FY22[[#This Row],[75th]]-AAMC_Raw_Data_for_FY22[[#This Row],[Median]])/25)*35) + AAMC_Raw_Data_for_FY22[[#This Row],[Median]]","v":0},{"$f":"(((AAMC_Raw_Data_for_FY22[[#This Row],[75th]]-AAMC_Raw_Data_for_FY22[[#This Row],[Median]])/25)*40) + AAMC_Raw_Data_for_FY22[[#This Row],[Median]]","v":0}]
[{"$f":"AAMC_Raw_Data_for_FY22[[#This Row],[Source]]&AAMC_Raw_Data_for_FY22[[#This Row],[Type]]&AAMC_Raw_Data_for_FY22[[#This Row],[School Subset]]&AAMC_Raw_Data_for_FY22[[#This Row],[Rank]]&AAMC_Raw_Data_for_FY22[[#This Row],[Degree]]&AAMC_Raw_Data_for_FY22[[#This Row],[Department / Specialty]]&\"L\"","v":"AAMCAcademicPublicProfessorPhDPediatric CardiologyL"},"Pediatric Cardiology",2,"AAMC","Academic","Public","Professor","PhD","2021-2022",null,{"$f":"(((AAMC_Raw_Data_for_FY22[[#This Row],[Median]]-AAMC_Raw_Data_for_FY22[[#This Row],[25th]])/25)*5) + AAMC_Raw_Data_for_FY22[[#This Row],[25th]]","v":0},{"$f":"(((AAMC_Raw_Data_for_FY22[[#This Row],[Median]]-AAMC_Raw_Data_for_FY22[[#This Row],[25th]])/25)*10) + AAMC_Raw_Data_for_FY22[[#This Row],[25th]]","v":0},{"$f":"(((AAMC_Raw_Data_for_FY22[[#This Row],[Median]]-AAMC_Raw_Data_for_FY22[[#This Row],[25th]])/25)*15) + AAMC_Raw_Data_for_FY22[[#This Row],[25th]]","v":0},{"$f":"(((AAMC_Raw_Data_for_FY22[[#This Row],[Median]]-AAMC_Raw_Data_for_FY22[[#This Row],[25th]])/25)*20) + AAMC_Raw_Data_for_FY22[[#This Row],[25th]]","v":0},null,{"$f":"(((AAMC_Raw_Data_for_FY22[[#This Row],[75th]]-AAMC_Raw_Data_for_FY22[[#This Row],[Median]])/25)*5) + AAMC_Raw_Data_for_FY22[[#This Row],[Median]]","v":0},{"$f":"(((AAMC_Raw_Data_for_FY22[[#This Row],[75th]]-AAMC_Raw_Data_for_FY22[[#This Row],[Median]])/25)*10) + AAMC_Raw_Data_for_FY22[[#This Row],[Median]]","v":0},{"$f":"(((AAMC_Raw_Data_for_FY22[[#This Row],[75th]]-AAMC_Raw_Data_for_FY22[[#This Row],[Median]])/25)*15) + AAMC_Raw_Data_for_FY22[[#This Row],[Median]]","v":0},{"$f":"(((AAMC_Raw_Data_for_FY22[[#This Row],[75th]]-AAMC_Raw_Data_for_FY22[[#This Row],[Median]])/25)*20) + AAMC_Raw_Data_for_FY22[[#This Row],[Median]]","v":0},null,{"$f":"(((AAMC_Raw_Data_for_FY22[[#This Row],[75th]]-AAMC_Raw_Data_for_FY22[[#This Row],[Median]])/25)*30) + AAMC_Raw_Data_for_FY22[[#This Row],[Median]]","v":0},{"$f":"(((AAMC_Raw_Data_for_FY22[[#This Row],[75th]]-AAMC_Raw_Data_for_FY22[[#This Row],[Median]])/25)*35) + AAMC_Raw_Data_for_FY22[[#This Row],[Median]]","v":0},{"$f":"(((AAMC_Raw_Data_for_FY22[[#This Row],[75th]]-AAMC_Raw_Data_for_FY22[[#This Row],[Median]])/25)*40) + AAMC_Raw_Data_for_FY22[[#This Row],[Median]]","v":0}]
[{"$f":"AAMC_Raw_Data_for_FY22[[#This Row],[Source]]&AAMC_Raw_Data_for_FY22[[#This Row],[Type]]&AAMC_Raw_Data_for_FY22[[#This Row],[School Subset]]&AAMC_Raw_Data_for_FY22[[#This Row],[Rank]]&AAMC_Raw_Data_for_FY22[[#This Row],[Degree]]&AAMC_Raw_Data_for_FY22[[#This Row],[Department / Specialty]]&\"L\"","v":"AAMCAcademicPublicInstructorPhDPsychology-Peds.L"},"Psychology-Peds.",5,"AAMC","Academic","Public","Instructor","PhD","2021-2022",null,{"$f":"(((AAMC_Raw_Data_for_FY22[[#This Row],[Median]]-AAMC_Raw_Data_for_FY22[[#This Row],[25th]])/25)*5) + AAMC_Raw_Data_for_FY22[[#This Row],[25th]]","v":0},{"$f":"(((AAMC_Raw_Data_for_FY22[[#This Row],[Median]]-AAMC_Raw_Data_for_FY22[[#This Row],[25th]])/25)*10) + AAMC_Raw_Data_for_FY22[[#This Row],[25th]]","v":0},{"$f":"(((AAMC_Raw_Data_for_FY22[[#This Row],[Median]]-AAMC_Raw_Data_for_FY22[[#This Row],[25th]])/25)*15) + AAMC_Raw_Data_for_FY22[[#This Row],[25th]]","v":0},{"$f":"(((AAMC_Raw_Data_for_FY22[[#This Row],[Median]]-AAMC_Raw_Data_for_FY22[[#This Row],[25th]])/25)*20) + AAMC_Raw_Data_for_FY22[[#This Row],[25th]]","v":0},null,{"$f":"(((AAMC_Raw_Data_for_FY22[[#This Row],[75th]]-AAMC_Raw_Data_for_FY22[[#This Row],[Median]])/25)*5) + AAMC_Raw_Data_for_FY22[[#This Row],[Median]]","v":0},{"$f":"(((AAMC_Raw_Data_for_FY22[[#This Row],[75th]]-AAMC_Raw_Data_for_FY22[[#This Row],[Median]])/25)*10) + AAMC_Raw_Data_for_FY22[[#This Row],[Median]]","v":0},{"$f":"(((AAMC_Raw_Data_for_FY22[[#This Row],[75th]]-AAMC_Raw_Data_for_FY22[[#This Row],[Median]])/25)*15) + AAMC_Raw_Data_for_FY22[[#This Row],[Median]]","v":0},{"$f":"(((AAMC_Raw_Data_for_FY22[[#This Row],[75th]]-AAMC_Raw_Data_for_FY22[[#This Row],[Median]])/25)*20) + AAMC_Raw_Data_for_FY22[[#This Row],[Median]]","v":0},null,{"$f":"(((AAMC_Raw_Data_for_FY22[[#This Row],[75th]]-AAMC_Raw_Data_for_FY22[[#This Row],[Median]])/25)*30) + AAMC_Raw_Data_for_FY22[[#This Row],[Median]]","v":0},{"$f":"(((AAMC_Raw_Data_for_FY22[[#This Row],[75th]]-AAMC_Raw_Data_for_FY22[[#This Row],[Median]])/25)*35) + AAMC_Raw_Data_for_FY22[[#This Row],[Median]]","v":0},{"$f":"(((AAMC_Raw_Data_for_FY22[[#This Row],[75th]]-AAMC_Raw_Data_for_FY22[[#This Row],[Median]])/25)*40) + AAMC_Raw_Data_for_FY22[[#This Row],[Median]]","v":0}]
[{"$f":"AAMC_Raw_Data_for_FY22[[#This Row],[Source]]&AAMC_Raw_Data_for_FY22[[#This Row],[Type]]&AAMC_Raw_Data_for_FY22[[#This Row],[School Subset]]&AAMC_Raw_Data_for_FY22[[#This Row],[Rank]]&AAMC_Raw_Data_for_FY22[[#This Row],[Degree]]&AAMC_Raw_Data_for_FY22[[#This Row],[Department / Specialty]]&\"L\"","v":"AAMCAcademicPublicAssistantPhDPsychology-Peds.L"},"Psychology-Peds.",4,"AAMC","Academic","Public","Assistant","PhD","2021-2022",95910,{"$f":"(((AAMC_Raw_Data_for_FY22[[#This Row],[Median]]-AAMC_Raw_Data_for_FY22[[#This Row],[25th]])/25)*5) + AAMC_Raw_Data_for_FY22[[#This Row],[25th]]","v":97426.6},{"$f":"(((AAMC_Raw_Data_for_FY22[[#This Row],[Median]]-AAMC_Raw_Data_for_FY22[[#This Row],[25th]])/25)*10) + AAMC_Raw_Data_for_FY22[[#This Row],[25th]]","v":98943.2},{"$f":"(((AAMC_Raw_Data_for_FY22[[#This Row],[Median]]-AAMC_Raw_Data_for_FY22[[#This Row],[25th]])/25)*15) + AAMC_Raw_Data_for_FY22[[#This Row],[25th]]","v":100459.8},{"$f":"(((AAMC_Raw_Data_for_FY22[[#This Row],[Median]]-AAMC_Raw_Data_for_FY22[[#This Row],[25th]])/25)*20) + AAMC_Raw_Data_for_FY22[[#This Row],[25th]]","v":101976.4},103493,{"$f":"(((AAMC_Raw_Data_for_FY22[[#This Row],[75th]]-AAMC_Raw_Data_for_FY22[[#This Row],[Median]])/25)*5) + AAMC_Raw_Data_for_FY22[[#This Row],[Median]]","v":106006.8},{"$f":"(((AAMC_Raw_Data_for_FY22[[#This Row],[75th]]-AAMC_Raw_Data_for_FY22[[#This Row],[Median]])/25)*10) + AAMC_Raw_Data_for_FY22[[#This Row],[Median]]","v":108520.6},{"$f":"(((AAMC_Raw_Data_for_FY22[[#This Row],[75th]]-AAMC_Raw_Data_for_FY22[[#This Row],[Median]])/25)*15) + AAMC_Raw_Data_for_FY22[[#This Row],[Median]]","v":111034.4},{"$f":"(((AAMC_Raw_Data_for_FY22[[#This Row],[75th]]-AAMC_Raw_Data_for_FY22[[#This Row],[Median]])/25)*20) + AAMC_Raw_Data_for_FY22[[#This Row],[Median]]","v":113548.2},116062,{"$f":"(((AAMC_Raw_Data_for_FY22[[#This Row],[75th]]-AAMC_Raw_Data_for_FY22[[#This Row],[Median]])/25)*30) + AAMC_Raw_Data_for_FY22[[#This Row],[Median]]","v":118575.8},{"$f":"(((AAMC_Raw_Data_for_FY22[[#This Row],[75th]]-AAMC_Raw_Data_for_FY22[[#This Row],[Median]])/25)*35) + AAMC_Raw_Data_for_FY22[[#This Row],[Median]]","v":121089.60000000001},{"$f":"(((AAMC_Raw_Data_for_FY22[[#This Row],[75th]]-AAMC_Raw_Data_for_FY22[[#This Row],[Median]])/25)*40) + AAMC_Raw_Data_for_FY22[[#This Row],[Median]]","v":123603.4}]
[{"$f":"AAMC_Raw_Data_for_FY22[[#This Row],[Source]]&AAMC_Raw_Data_for_FY22[[#This Row],[Type]]&AAMC_Raw_Data_for_FY22[[#This Row],[School Subset]]&AAMC_Raw_Data_for_FY22[[#This Row],[Rank]]&AAMC_Raw_Data_for_FY22[[#This Row],[Degree]]&AAMC_Raw_Data_for_FY22[[#This Row],[Department / Specialty]]&\"L\"","v":"AAMCAcademicPublicAssociatePhDPsychology-Peds.L"},"Psychology-Peds.",3,"AAMC","Academic","Public","Associate","PhD","2021-2022",118663,{"$f":"(((AAMC_Raw_Data_for_FY22[[#This Row],[Median]]-AAMC_Raw_Data_for_FY22[[#This Row],[25th]])/25)*5) + AAMC_Raw_Data_for_FY22[[#This Row],[25th]]","v":120576.8},{"$f":"(((AAMC_Raw_Data_for_FY22[[#This Row],[Median]]-AAMC_Raw_Data_for_FY22[[#This Row],[25th]])/25)*10) + AAMC_Raw_Data_for_FY22[[#This Row],[25th]]","v":122490.6},{"$f":"(((AAMC_Raw_Data_for_FY22[[#This Row],[Median]]-AAMC_Raw_Data_for_FY22[[#This Row],[25th]])/25)*15) + AAMC_Raw_Data_for_FY22[[#This Row],[25th]]","v":124404.4},{"$f":"(((AAMC_Raw_Data_for_FY22[[#This Row],[Median]]-AAMC_Raw_Data_for_FY22[[#This Row],[25th]])/25)*20) + AAMC_Raw_Data_for_FY22[[#This Row],[25th]]","v":126318.2},128232,{"$f":"(((AAMC_Raw_Data_for_FY22[[#This Row],[75th]]-AAMC_Raw_Data_for_FY22[[#This Row],[Median]])/25)*5) + AAMC_Raw_Data_for_FY22[[#This Row],[Median]]","v":131171.6},{"$f":"(((AAMC_Raw_Data_for_FY22[[#This Row],[75th]]-AAMC_Raw_Data_for_FY22[[#This Row],[Median]])/25)*10) + AAMC_Raw_Data_for_FY22[[#This Row],[Median]]","v":134111.20000000001},{"$f":"(((AAMC_Raw_Data_for_FY22[[#This Row],[75th]]-AAMC_Raw_Data_for_FY22[[#This Row],[Median]])/25)*15) + AAMC_Raw_Data_for_FY22[[#This Row],[Median]]","v":137050.79999999999},{"$f":"(((AAMC_Raw_Data_for_FY22[[#This Row],[75th]]-AAMC_Raw_Data_for_FY22[[#This Row],[Median]])/25)*20) + AAMC_Raw_Data_for_FY22[[#This Row],[Median]]","v":139990.39999999999},142930,{"$f":"(((AAMC_Raw_Data_for_FY22[[#This Row],[75th]]-AAMC_Raw_Data_for_FY22[[#This Row],[Median]])/25)*30) + AAMC_Raw_Data_for_FY22[[#This Row],[Median]]","v":145869.6},{"$f":"(((AAMC_Raw_Data_for_FY22[[#This Row],[75th]]-AAMC_Raw_Data_for_FY22[[#This Row],[Median]])/25)*35) + AAMC_Raw_Data_for_FY22[[#This Row],[Median]]","v":148809.20000000001},{"$f":"(((AAMC_Raw_Data_for_FY22[[#This Row],[75th]]-AAMC_Raw_Data_for_FY22[[#This Row],[Median]])/25)*40) + AAMC_Raw_Data_for_FY22[[#This Row],[Median]]","v":151748.79999999999}]
[{"$f":"AAMC_Raw_Data_for_FY22[[#This Row],[Source]]&AAMC_Raw_Data_for_FY22[[#This Row],[Type]]&AAMC_Raw_Data_for_FY22[[#This Row],[School Subset]]&AAMC_Raw_Data_for_FY22[[#This Row],[Rank]]&AAMC_Raw_Data_for_FY22[[#This Row],[Degree]]&AAMC_Raw_Data_for_FY22[[#This Row],[Department / Specialty]]&\"L\"","v":"AAMCAcademicPublicProfessorPhDPsychology-Peds.L"},"Psychology-Peds.",2,"AAMC","Academic","Public","Professor","PhD","2021-2022",160156,{"$f":"(((AAMC_Raw_Data_for_FY22[[#This Row],[Median]]-AAMC_Raw_Data_for_FY22[[#This Row],[25th]])/25)*5) + AAMC_Raw_Data_for_FY22[[#This Row],[25th]]","v":164796.6},{"$f":"(((AAMC_Raw_Data_for_FY22[[#This Row],[Median]]-AAMC_Raw_Data_for_FY22[[#This Row],[25th]])/25)*10) + AAMC_Raw_Data_for_FY22[[#This Row],[25th]]","v":169437.2},{"$f":"(((AAMC_Raw_Data_for_FY22[[#This Row],[Median]]-AAMC_Raw_Data_for_FY22[[#This Row],[25th]])/25)*15) + AAMC_Raw_Data_for_FY22[[#This Row],[25th]]","v":174077.8},{"$f":"(((AAMC_Raw_Data_for_FY22[[#This Row],[Median]]-AAMC_Raw_Data_for_FY22[[#This Row],[25th]])/25)*20) + AAMC_Raw_Data_for_FY22[[#This Row],[25th]]","v":178718.4},183359,{"$f":"(((AAMC_Raw_Data_for_FY22[[#This Row],[75th]]-AAMC_Raw_Data_for_FY22[[#This Row],[Median]])/25)*5) + AAMC_Raw_Data_for_FY22[[#This Row],[Median]]","v":186751.2},{"$f":"(((AAMC_Raw_Data_for_FY22[[#This Row],[75th]]-AAMC_Raw_Data_for_FY22[[#This Row],[Median]])/25)*10) + AAMC_Raw_Data_for_FY22[[#This Row],[Median]]","v":190143.4},{"$f":"(((AAMC_Raw_Data_for_FY22[[#This Row],[75th]]-AAMC_Raw_Data_for_FY22[[#This Row],[Median]])/25)*15) + AAMC_Raw_Data_for_FY22[[#This Row],[Median]]","v":193535.6},{"$f":"(((AAMC_Raw_Data_for_FY22[[#This Row],[75th]]-AAMC_Raw_Data_for_FY22[[#This Row],[Median]])/25)*20) + AAMC_Raw_Data_for_FY22[[#This Row],[Median]]","v":196927.8},200320,{"$f":"(((AAMC_Raw_Data_for_FY22[[#This Row],[75th]]-AAMC_Raw_Data_for_FY22[[#This Row],[Median]])/25)*30) + AAMC_Raw_Data_for_FY22[[#This Row],[Median]]","v":203712.2},{"$f":"(((AAMC_Raw_Data_for_FY22[[#This Row],[75th]]-AAMC_Raw_Data_for_FY22[[#This Row],[Median]])/25)*35) + AAMC_Raw_Data_for_FY22[[#This Row],[Median]]","v":207104.4},{"$f":"(((AAMC_Raw_Data_for_FY22[[#This Row],[75th]]-AAMC_Raw_Data_for_FY22[[#This Row],[Median]])/25)*40) + AAMC_Raw_Data_for_FY22[[#This Row],[Median]]","v":210496.6}]
[{"$f":"AAMC_Raw_Data_for_FY22[[#This Row],[Source]]&AAMC_Raw_Data_for_FY22[[#This Row],[Type]]&AAMC_Raw_Data_for_FY22[[#This Row],[School Subset]]&AAMC_Raw_Data_for_FY22[[#This Row],[Rank]]&AAMC_Raw_Data_for_FY22[[#This Row],[Degree]]&AAMC_Raw_Data_for_FY22[[#This Row],[Department / Specialty]]&\"L\"","v":"AAMCAcademicPublicChiefPhDPsychology-Peds.L"},"Psychology-Peds.",6,"AAMC","Academic","Public","Chief","PhD","2021-2022",null,{"$f":"(((AAMC_Raw_Data_for_FY22[[#This Row],[Median]]-AAMC_Raw_Data_for_FY22[[#This Row],[25th]])/25)*5) + AAMC_Raw_Data_for_FY22[[#This Row],[25th]]","v":0},{"$f":"(((AAMC_Raw_Data_for_FY22[[#This Row],[Median]]-AAMC_Raw_Data_for_FY22[[#This Row],[25th]])/25)*10) + AAMC_Raw_Data_for_FY22[[#This Row],[25th]]","v":0},{"$f":"(((AAMC_Raw_Data_for_FY22[[#This Row],[Median]]-AAMC_Raw_Data_for_FY22[[#This Row],[25th]])/25)*15) + AAMC_Raw_Data_for_FY22[[#This Row],[25th]]","v":0},{"$f":"(((AAMC_Raw_Data_for_FY22[[#This Row],[Median]]-AAMC_Raw_Data_for_FY22[[#This Row],[25th]])/25)*20) + AAMC_Raw_Data_for_FY22[[#This Row],[25th]]","v":0},null,{"$f":"(((AAMC_Raw_Data_for_FY22[[#This Row],[75th]]-AAMC_Raw_Data_for_FY22[[#This Row],[Median]])/25)*5) + AAMC_Raw_Data_for_FY22[[#This Row],[Median]]","v":0},{"$f":"(((AAMC_Raw_Data_for_FY22[[#This Row],[75th]]-AAMC_Raw_Data_for_FY22[[#This Row],[Median]])/25)*10) + AAMC_Raw_Data_for_FY22[[#This Row],[Median]]","v":0},{"$f":"(((AAMC_Raw_Data_for_FY22[[#This Row],[75th]]-AAMC_Raw_Data_for_FY22[[#This Row],[Median]])/25)*15) + AAMC_Raw_Data_for_FY22[[#This Row],[Median]]","v":0},{"$f":"(((AAMC_Raw_Data_for_FY22[[#This Row],[75th]]-AAMC_Raw_Data_for_FY22[[#This Row],[Median]])/25)*20) + AAMC_Raw_Data_for_FY22[[#This Row],[Median]]","v":0},null,{"$f":"(((AAMC_Raw_Data_for_FY22[[#This Row],[75th]]-AAMC_Raw_Data_for_FY22[[#This Row],[Median]])/25)*30) + AAMC_Raw_Data_for_FY22[[#This Row],[Median]]","v":0},{"$f":"(((AAMC_Raw_Data_for_FY22[[#This Row],[75th]]-AAMC_Raw_Data_for_FY22[[#This Row],[Median]])/25)*35) + AAMC_Raw_Data_for_FY22[[#This Row],[Median]]","v":0},{"$f":"(((AAMC_Raw_Data_for_FY22[[#This Row],[75th]]-AAMC_Raw_Data_for_FY22[[#This Row],[Median]])/25)*40) + AAMC_Raw_Data_for_FY22[[#This Row],[Median]]","v":0}]
[{"$f":"AAMC_Raw_Data_for_FY22[[#This Row],[Source]]&AAMC_Raw_Data_for_FY22[[#This Row],[Type]]&AAMC_Raw_Data_for_FY22[[#This Row],[School Subset]]&AAMC_Raw_Data_for_FY22[[#This Row],[Rank]]&AAMC_Raw_Data_for_FY22[[#This Row],[Degree]]&AAMC_Raw_Data_for_FY22[[#This Row],[Department / Specialty]]&\"L\"","v":"AAMCAcademicPublicInstructorPhDPulmonary-Peds.L"},"Pulmonary-Peds.",5,"AAMC","Academic","Public","Instructor","PhD","2021-2022",null,{"$f":"(((AAMC_Raw_Data_for_FY22[[#This Row],[Median]]-AAMC_Raw_Data_for_FY22[[#This Row],[25th]])/25)*5) + AAMC_Raw_Data_for_FY22[[#This Row],[25th]]","v":0},{"$f":"(((AAMC_Raw_Data_for_FY22[[#This Row],[Median]]-AAMC_Raw_Data_for_FY22[[#This Row],[25th]])/25)*10) + AAMC_Raw_Data_for_FY22[[#This Row],[25th]]","v":0},{"$f":"(((AAMC_Raw_Data_for_FY22[[#This Row],[Median]]-AAMC_Raw_Data_for_FY22[[#This Row],[25th]])/25)*15) + AAMC_Raw_Data_for_FY22[[#This Row],[25th]]","v":0},{"$f":"(((AAMC_Raw_Data_for_FY22[[#This Row],[Median]]-AAMC_Raw_Data_for_FY22[[#This Row],[25th]])/25)*20) + AAMC_Raw_Data_for_FY22[[#This Row],[25th]]","v":0},null,{"$f":"(((AAMC_Raw_Data_for_FY22[[#This Row],[75th]]-AAMC_Raw_Data_for_FY22[[#This Row],[Median]])/25)*5) + AAMC_Raw_Data_for_FY22[[#This Row],[Median]]","v":0},{"$f":"(((AAMC_Raw_Data_for_FY22[[#This Row],[75th]]-AAMC_Raw_Data_for_FY22[[#This Row],[Median]])/25)*10) + AAMC_Raw_Data_for_FY22[[#This Row],[Median]]","v":0},{"$f":"(((AAMC_Raw_Data_for_FY22[[#This Row],[75th]]-AAMC_Raw_Data_for_FY22[[#This Row],[Median]])/25)*15) + AAMC_Raw_Data_for_FY22[[#This Row],[Median]]","v":0},{"$f":"(((AAMC_Raw_Data_for_FY22[[#This Row],[75th]]-AAMC_Raw_Data_for_FY22[[#This Row],[Median]])/25)*20) + AAMC_Raw_Data_for_FY22[[#This Row],[Median]]","v":0},null,{"$f":"(((AAMC_Raw_Data_for_FY22[[#This Row],[75th]]-AAMC_Raw_Data_for_FY22[[#This Row],[Median]])/25)*30) + AAMC_Raw_Data_for_FY22[[#This Row],[Median]]","v":0},{"$f":"(((AAMC_Raw_Data_for_FY22[[#This Row],[75th]]-AAMC_Raw_Data_for_FY22[[#This Row],[Median]])/25)*35) + AAMC_Raw_Data_for_FY22[[#This Row],[Median]]","v":0},{"$f":"(((AAMC_Raw_Data_for_FY22[[#This Row],[75th]]-AAMC_Raw_Data_for_FY22[[#This Row],[Median]])/25)*40) + AAMC_Raw_Data_for_FY22[[#This Row],[Median]]","v":0}]
[{"$f":"AAMC_Raw_Data_for_FY22[[#This Row],[Source]]&AAMC_Raw_Data_for_FY22[[#This Row],[Type]]&AAMC_Raw_Data_for_FY22[[#This Row],[School Subset]]&AAMC_Raw_Data_for_FY22[[#This Row],[Rank]]&AAMC_Raw_Data_for_FY22[[#This Row],[Degree]]&AAMC_Raw_Data_for_FY22[[#This Row],[Department / Specialty]]&\"L\"","v":"AAMCAcademicPublicAssistantPhDPulmonary-Peds.L"},"Pulmonary-Peds.",4,"AAMC","Academic","Public","Assistant","PhD","2021-2022",92700,{"$f":"(((AAMC_Raw_Data_for_FY22[[#This Row],[Median]]-AAMC_Raw_Data_for_FY22[[#This Row],[25th]])/25)*5) + AAMC_Raw_Data_for_FY22[[#This Row],[25th]]","v":95575.6},{"$f":"(((AAMC_Raw_Data_for_FY22[[#This Row],[Median]]-AAMC_Raw_Data_for_FY22[[#This Row],[25th]])/25)*10) + AAMC_Raw_Data_for_FY22[[#This Row],[25th]]","v":98451.199999999997},{"$f":"(((AAMC_Raw_Data_for_FY22[[#This Row],[Median]]-AAMC_Raw_Data_for_FY22[[#This Row],[25th]])/25)*15) + AAMC_Raw_Data_for_FY22[[#This Row],[25th]]","v":101326.8},{"$f":"(((AAMC_Raw_Data_for_FY22[[#This Row],[Median]]-AAMC_Raw_Data_for_FY22[[#This Row],[25th]])/25)*20) + AAMC_Raw_Data_for_FY22[[#This Row],[25th]]","v":104202.4},107078,{"$f":"(((AAMC_Raw_Data_for_FY22[[#This Row],[75th]]-AAMC_Raw_Data_for_FY22[[#This Row],[Median]])/25)*5) + AAMC_Raw_Data_for_FY22[[#This Row],[Median]]","v":107855},{"$f":"(((AAMC_Raw_Data_for_FY22[[#This Row],[75th]]-AAMC_Raw_Data_for_FY22[[#This Row],[Median]])/25)*10) + AAMC_Raw_Data_for_FY22[[#This Row],[Median]]","v":108632},{"$f":"(((AAMC_Raw_Data_for_FY22[[#This Row],[75th]]-AAMC_Raw_Data_for_FY22[[#This Row],[Median]])/25)*15) + AAMC_Raw_Data_for_FY22[[#This Row],[Median]]","v":109409},{"$f":"(((AAMC_Raw_Data_for_FY22[[#This Row],[75th]]-AAMC_Raw_Data_for_FY22[[#This Row],[Median]])/25)*20) + AAMC_Raw_Data_for_FY22[[#This Row],[Median]]","v":110186},110963,{"$f":"(((AAMC_Raw_Data_for_FY22[[#This Row],[75th]]-AAMC_Raw_Data_for_FY22[[#This Row],[Median]])/25)*30) + AAMC_Raw_Data_for_FY22[[#This Row],[Median]]","v":111740},{"$f":"(((AAMC_Raw_Data_for_FY22[[#This Row],[75th]]-AAMC_Raw_Data_for_FY22[[#This Row],[Median]])/25)*35) + AAMC_Raw_Data_for_FY22[[#This Row],[Median]]","v":112517},{"$f":"(((AAMC_Raw_Data_for_FY22[[#This Row],[75th]]-AAMC_Raw_Data_for_FY22[[#This Row],[Median]])/25)*40) + AAMC_Raw_Data_for_FY22[[#This Row],[Median]]","v":113294}]
[{"$f":"AAMC_Raw_Data_for_FY22[[#This Row],[Source]]&AAMC_Raw_Data_for_FY22[[#This Row],[Type]]&AAMC_Raw_Data_for_FY22[[#This Row],[School Subset]]&AAMC_Raw_Data_for_FY22[[#This Row],[Rank]]&AAMC_Raw_Data_for_FY22[[#This Row],[Degree]]&AAMC_Raw_Data_for_FY22[[#This Row],[Department / Specialty]]&\"L\"","v":"AAMCAcademicPublicAssociatePhDPulmonary-Peds.L"},"Pulmonary-Peds.",3,"AAMC","Academic","Public","Associate","PhD","2021-2022",127327,{"$f":"(((AAMC_Raw_Data_for_FY22[[#This Row],[Median]]-AAMC_Raw_Data_for_FY22[[#This Row],[25th]])/25)*5) + AAMC_Raw_Data_for_FY22[[#This Row],[25th]]","v":133047},{"$f":"(((AAMC_Raw_Data_for_FY22[[#This Row],[Median]]-AAMC_Raw_Data_for_FY22[[#This Row],[25th]])/25)*10) + AAMC_Raw_Data_for_FY22[[#This Row],[25th]]","v":138767},{"$f":"(((AAMC_Raw_Data_for_FY22[[#This Row],[Median]]-AAMC_Raw_Data_for_FY22[[#This Row],[25th]])/25)*15) + AAMC_Raw_Data_for_FY22[[#This Row],[25th]]","v":144487},{"$f":"(((AAMC_Raw_Data_for_FY22[[#This Row],[Median]]-AAMC_Raw_Data_for_FY22[[#This Row],[25th]])/25)*20) + AAMC_Raw_Data_for_FY22[[#This Row],[25th]]","v":150207},155927,{"$f":"(((AAMC_Raw_Data_for_FY22[[#This Row],[75th]]-AAMC_Raw_Data_for_FY22[[#This Row],[Median]])/25)*5) + AAMC_Raw_Data_for_FY22[[#This Row],[Median]]","v":164075.6},{"$f":"(((AAMC_Raw_Data_for_FY22[[#This Row],[75th]]-AAMC_Raw_Data_for_FY22[[#This Row],[Median]])/25)*10) + AAMC_Raw_Data_for_FY22[[#This Row],[Median]]","v":172224.2},{"$f":"(((AAMC_Raw_Data_for_FY22[[#This Row],[75th]]-AAMC_Raw_Data_for_FY22[[#This Row],[Median]])/25)*15) + AAMC_Raw_Data_for_FY22[[#This Row],[Median]]","v":180372.8},{"$f":"(((AAMC_Raw_Data_for_FY22[[#This Row],[75th]]-AAMC_Raw_Data_for_FY22[[#This Row],[Median]])/25)*20) + AAMC_Raw_Data_for_FY22[[#This Row],[Median]]","v":188521.4},196670,{"$f":"(((AAMC_Raw_Data_for_FY22[[#This Row],[75th]]-AAMC_Raw_Data_for_FY22[[#This Row],[Median]])/25)*30) + AAMC_Raw_Data_for_FY22[[#This Row],[Median]]","v":204818.6},{"$f":"(((AAMC_Raw_Data_for_FY22[[#This Row],[75th]]-AAMC_Raw_Data_for_FY22[[#This Row],[Median]])/25)*35) + AAMC_Raw_Data_for_FY22[[#This Row],[Median]]","v":212967.2},{"$f":"(((AAMC_Raw_Data_for_FY22[[#This Row],[75th]]-AAMC_Raw_Data_for_FY22[[#This Row],[Median]])/25)*40) + AAMC_Raw_Data_for_FY22[[#This Row],[Median]]","v":221115.8}]
[{"$f":"AAMC_Raw_Data_for_FY22[[#This Row],[Source]]&AAMC_Raw_Data_for_FY22[[#This Row],[Type]]&AAMC_Raw_Data_for_FY22[[#This Row],[School Subset]]&AAMC_Raw_Data_for_FY22[[#This Row],[Rank]]&AAMC_Raw_Data_for_FY22[[#This Row],[Degree]]&AAMC_Raw_Data_for_FY22[[#This Row],[Department / Specialty]]&\"L\"","v":"AAMCAcademicPublicProfessorPhDPulmonary-Peds.L"},"Pulmonary-Peds.",2,"AAMC","Academic","Public","Professor","PhD","2021-2022",224162,{"$f":"(((AAMC_Raw_Data_for_FY22[[#This Row],[Median]]-AAMC_Raw_Data_for_FY22[[#This Row],[25th]])/25)*5) + AAMC_Raw_Data_for_FY22[[#This Row],[25th]]","v":227995.6},{"$f":"(((AAMC_Raw_Data_for_FY22[[#This Row],[Median]]-AAMC_Raw_Data_for_FY22[[#This Row],[25th]])/25)*10) + AAMC_Raw_Data_for_FY22[[#This Row],[25th]]","v":231829.2},{"$f":"(((AAMC_Raw_Data_for_FY22[[#This Row],[Median]]-AAMC_Raw_Data_for_FY22[[#This Row],[25th]])/25)*15) + AAMC_Raw_Data_for_FY22[[#This Row],[25th]]","v":235662.8},{"$f":"(((AAMC_Raw_Data_for_FY22[[#This Row],[Median]]-AAMC_Raw_Data_for_FY22[[#This Row],[25th]])/25)*20) + AAMC_Raw_Data_for_FY22[[#This Row],[25th]]","v":239496.4},243330,{"$f":"(((AAMC_Raw_Data_for_FY22[[#This Row],[75th]]-AAMC_Raw_Data_for_FY22[[#This Row],[Median]])/25)*5) + AAMC_Raw_Data_for_FY22[[#This Row],[Median]]","v":246978.8},{"$f":"(((AAMC_Raw_Data_for_FY22[[#This Row],[75th]]-AAMC_Raw_Data_for_FY22[[#This Row],[Median]])/25)*10) + AAMC_Raw_Data_for_FY22[[#This Row],[Median]]","v":250627.6},{"$f":"(((AAMC_Raw_Data_for_FY22[[#This Row],[75th]]-AAMC_Raw_Data_for_FY22[[#This Row],[Median]])/25)*15) + AAMC_Raw_Data_for_FY22[[#This Row],[Median]]","v":254276.4},{"$f":"(((AAMC_Raw_Data_for_FY22[[#This Row],[75th]]-AAMC_Raw_Data_for_FY22[[#This Row],[Median]])/25)*20) + AAMC_Raw_Data_for_FY22[[#This Row],[Median]]","v":257925.2},261574,{"$f":"(((AAMC_Raw_Data_for_FY22[[#This Row],[75th]]-AAMC_Raw_Data_for_FY22[[#This Row],[Median]])/25)*30) + AAMC_Raw_Data_for_FY22[[#This Row],[Median]]","v":265222.8},{"$f":"(((AAMC_Raw_Data_for_FY22[[#This Row],[75th]]-AAMC_Raw_Data_for_FY22[[#This Row],[Median]])/25)*35) + AAMC_Raw_Data_for_FY22[[#This Row],[Median]]","v":268871.59999999998},{"$f":"(((AAMC_Raw_Data_for_FY22[[#This Row],[75th]]-AAMC_Raw_Data_for_FY22[[#This Row],[Median]])/25)*40) + AAMC_Raw_Data_for_FY22[[#This Row],[Median]]","v":272520.40000000002}]
[{"$f":"AAMC_Raw_Data_for_FY22[[#This Row],[Source]]&AAMC_Raw_Data_for_FY22[[#This Row],[Type]]&AAMC_Raw_Data_for_FY22[[#This Row],[School Subset]]&AAMC_Raw_Data_for_FY22[[#This Row],[Rank]]&AAMC_Raw_Data_for_FY22[[#This Row],[Degree]]&AAMC_Raw_Data_for_FY22[[#This Row],[Department / Specialty]]&\"L\"","v":"AAMCAcademicPublicAssistantPhDRheumatology-Peds.L"},"Rheumatology-Peds.",4,"AAMC","Academic","Public","Assistant","PhD","2021-2022",null,{"$f":"(((AAMC_Raw_Data_for_FY22[[#This Row],[Median]]-AAMC_Raw_Data_for_FY22[[#This Row],[25th]])/25)*5) + AAMC_Raw_Data_for_FY22[[#This Row],[25th]]","v":0},{"$f":"(((AAMC_Raw_Data_for_FY22[[#This Row],[Median]]-AAMC_Raw_Data_for_FY22[[#This Row],[25th]])/25)*10) + AAMC_Raw_Data_for_FY22[[#This Row],[25th]]","v":0},{"$f":"(((AAMC_Raw_Data_for_FY22[[#This Row],[Median]]-AAMC_Raw_Data_for_FY22[[#This Row],[25th]])/25)*15) + AAMC_Raw_Data_for_FY22[[#This Row],[25th]]","v":0},{"$f":"(((AAMC_Raw_Data_for_FY22[[#This Row],[Median]]-AAMC_Raw_Data_for_FY22[[#This Row],[25th]])/25)*20) + AAMC_Raw_Data_for_FY22[[#This Row],[25th]]","v":0},null,{"$f":"(((AAMC_Raw_Data_for_FY22[[#This Row],[75th]]-AAMC_Raw_Data_for_FY22[[#This Row],[Median]])/25)*5) + AAMC_Raw_Data_for_FY22[[#This Row],[Median]]","v":0},{"$f":"(((AAMC_Raw_Data_for_FY22[[#This Row],[75th]]-AAMC_Raw_Data_for_FY22[[#This Row],[Median]])/25)*10) + AAMC_Raw_Data_for_FY22[[#This Row],[Median]]","v":0},{"$f":"(((AAMC_Raw_Data_for_FY22[[#This Row],[75th]]-AAMC_Raw_Data_for_FY22[[#This Row],[Median]])/25)*15) + AAMC_Raw_Data_for_FY22[[#This Row],[Median]]","v":0},{"$f":"(((AAMC_Raw_Data_for_FY22[[#This Row],[75th]]-AAMC_Raw_Data_for_FY22[[#This Row],[Median]])/25)*20) + AAMC_Raw_Data_for_FY22[[#This Row],[Median]]","v":0},null,{"$f":"(((AAMC_Raw_Data_for_FY22[[#This Row],[75th]]-AAMC_Raw_Data_for_FY22[[#This Row],[Median]])/25)*30) + AAMC_Raw_Data_for_FY22[[#This Row],[Median]]","v":0},{"$f":"(((AAMC_Raw_Data_for_FY22[[#This Row],[75th]]-AAMC_Raw_Data_for_FY22[[#This Row],[Median]])/25)*35) + AAMC_Raw_Data_for_FY22[[#This Row],[Median]]","v":0},{"$f":"(((AAMC_Raw_Data_for_FY22[[#This Row],[75th]]-AAMC_Raw_Data_for_FY22[[#This Row],[Median]])/25)*40) + AAMC_Raw_Data_for_FY22[[#This Row],[Median]]","v":0}]
[{"$f":"AAMC_Raw_Data_for_FY22[[#This Row],[Source]]&AAMC_Raw_Data_for_FY22[[#This Row],[Type]]&AAMC_Raw_Data_for_FY22[[#This Row],[School Subset]]&AAMC_Raw_Data_for_FY22[[#This Row],[Rank]]&AAMC_Raw_Data_for_FY22[[#This Row],[Degree]]&AAMC_Raw_Data_for_FY22[[#This Row],[Department / Specialty]]&\"L\"","v":"AAMCAcademicPublicAssociatePhDRheumatology-Peds.L"},"Rheumatology-Peds.",3,"AAMC","Academic","Public","Associate","PhD","2021-2022",null,{"$f":"(((AAMC_Raw_Data_for_FY22[[#This Row],[Median]]-AAMC_Raw_Data_for_FY22[[#This Row],[25th]])/25)*5) + AAMC_Raw_Data_for_FY22[[#This Row],[25th]]","v":0},{"$f":"(((AAMC_Raw_Data_for_FY22[[#This Row],[Median]]-AAMC_Raw_Data_for_FY22[[#This Row],[25th]])/25)*10) + AAMC_Raw_Data_for_FY22[[#This Row],[25th]]","v":0},{"$f":"(((AAMC_Raw_Data_for_FY22[[#This Row],[Median]]-AAMC_Raw_Data_for_FY22[[#This Row],[25th]])/25)*15) + AAMC_Raw_Data_for_FY22[[#This Row],[25th]]","v":0},{"$f":"(((AAMC_Raw_Data_for_FY22[[#This Row],[Median]]-AAMC_Raw_Data_for_FY22[[#This Row],[25th]])/25)*20) + AAMC_Raw_Data_for_FY22[[#This Row],[25th]]","v":0},null,{"$f":"(((AAMC_Raw_Data_for_FY22[[#This Row],[75th]]-AAMC_Raw_Data_for_FY22[[#This Row],[Median]])/25)*5) + AAMC_Raw_Data_for_FY22[[#This Row],[Median]]","v":0},{"$f":"(((AAMC_Raw_Data_for_FY22[[#This Row],[75th]]-AAMC_Raw_Data_for_FY22[[#This Row],[Median]])/25)*10) + AAMC_Raw_Data_for_FY22[[#This Row],[Median]]","v":0},{"$f":"(((AAMC_Raw_Data_for_FY22[[#This Row],[75th]]-AAMC_Raw_Data_for_FY22[[#This Row],[Median]])/25)*15) + AAMC_Raw_Data_for_FY22[[#This Row],[Median]]","v":0},{"$f":"(((AAMC_Raw_Data_for_FY22[[#This Row],[75th]]-AAMC_Raw_Data_for_FY22[[#This Row],[Median]])/25)*20) + AAMC_Raw_Data_for_FY22[[#This Row],[Median]]","v":0},null,{"$f":"(((AAMC_Raw_Data_for_FY22[[#This Row],[75th]]-AAMC_Raw_Data_for_FY22[[#This Row],[Median]])/25)*30) + AAMC_Raw_Data_for_FY22[[#This Row],[Median]]","v":0},{"$f":"(((AAMC_Raw_Data_for_FY22[[#This Row],[75th]]-AAMC_Raw_Data_for_FY22[[#This Row],[Median]])/25)*35) + AAMC_Raw_Data_for_FY22[[#This Row],[Median]]","v":0},{"$f":"(((AAMC_Raw_Data_for_FY22[[#This Row],[75th]]-AAMC_Raw_Data_for_FY22[[#This Row],[Median]])/25)*40) + AAMC_Raw_Data_for_FY22[[#This Row],[Median]]","v":0}]
[{"$f":"AAMC_Raw_Data_for_FY22[[#This Row],[Source]]&AAMC_Raw_Data_for_FY22[[#This Row],[Type]]&AAMC_Raw_Data_for_FY22[[#This Row],[School Subset]]&AAMC_Raw_Data_for_FY22[[#This Row],[Rank]]&AAMC_Raw_Data_for_FY22[[#This Row],[Degree]]&AAMC_Raw_Data_for_FY22[[#This Row],[Department / Specialty]]&\"L\"","v":"AAMCAcademicPublicProfessorPhDRheumatology-Peds.L"},"Rheumatology-Peds.",2,"AAMC","Academic","Public","Professor","PhD","2021-2022",null,{"$f":"(((AAMC_Raw_Data_for_FY22[[#This Row],[Median]]-AAMC_Raw_Data_for_FY22[[#This Row],[25th]])/25)*5) + AAMC_Raw_Data_for_FY22[[#This Row],[25th]]","v":0},{"$f":"(((AAMC_Raw_Data_for_FY22[[#This Row],[Median]]-AAMC_Raw_Data_for_FY22[[#This Row],[25th]])/25)*10) + AAMC_Raw_Data_for_FY22[[#This Row],[25th]]","v":0},{"$f":"(((AAMC_Raw_Data_for_FY22[[#This Row],[Median]]-AAMC_Raw_Data_for_FY22[[#This Row],[25th]])/25)*15) + AAMC_Raw_Data_for_FY22[[#This Row],[25th]]","v":0},{"$f":"(((AAMC_Raw_Data_for_FY22[[#This Row],[Median]]-AAMC_Raw_Data_for_FY22[[#This Row],[25th]])/25)*20) + AAMC_Raw_Data_for_FY22[[#This Row],[25th]]","v":0},null,{"$f":"(((AAMC_Raw_Data_for_FY22[[#This Row],[75th]]-AAMC_Raw_Data_for_FY22[[#This Row],[Median]])/25)*5) + AAMC_Raw_Data_for_FY22[[#This Row],[Median]]","v":0},{"$f":"(((AAMC_Raw_Data_for_FY22[[#This Row],[75th]]-AAMC_Raw_Data_for_FY22[[#This Row],[Median]])/25)*10) + AAMC_Raw_Data_for_FY22[[#This Row],[Median]]","v":0},{"$f":"(((AAMC_Raw_Data_for_FY22[[#This Row],[75th]]-AAMC_Raw_Data_for_FY22[[#This Row],[Median]])/25)*15) + AAMC_Raw_Data_for_FY22[[#This Row],[Median]]","v":0},{"$f":"(((AAMC_Raw_Data_for_FY22[[#This Row],[75th]]-AAMC_Raw_Data_for_FY22[[#This Row],[Median]])/25)*20) + AAMC_Raw_Data_for_FY22[[#This Row],[Median]]","v":0},null,{"$f":"(((AAMC_Raw_Data_for_FY22[[#This Row],[75th]]-AAMC_Raw_Data_for_FY22[[#This Row],[Median]])/25)*30) + AAMC_Raw_Data_for_FY22[[#This Row],[Median]]","v":0},{"$f":"(((AAMC_Raw_Data_for_FY22[[#This Row],[75th]]-AAMC_Raw_Data_for_FY22[[#This Row],[Median]])/25)*35) + AAMC_Raw_Data_for_FY22[[#This Row],[Median]]","v":0},{"$f":"(((AAMC_Raw_Data_for_FY22[[#This Row],[75th]]-AAMC_Raw_Data_for_FY22[[#This Row],[Median]])/25)*40) + AAMC_Raw_Data_for_FY22[[#This Row],[Median]]","v":0}]
[{"$f":"AAMC_Raw_Data_for_FY22[[#This Row],[Source]]&AAMC_Raw_Data_for_FY22[[#This Row],[Type]]&AAMC_Raw_Data_for_FY22[[#This Row],[School Subset]]&AAMC_Raw_Data_for_FY22[[#This Row],[Rank]]&AAMC_Raw_Data_for_FY22[[#This Row],[Degree]]&AAMC_Raw_Data_for_FY22[[#This Row],[Department / Specialty]]&\"L\"","v":"AAMCAcademicPublicInstructorPhDOther PediatricsL"},"Other Pediatrics",5,"AAMC","Academic","Public","Instructor","PhD","2021-2022",null,{"$f":"(((AAMC_Raw_Data_for_FY22[[#This Row],[Median]]-AAMC_Raw_Data_for_FY22[[#This Row],[25th]])/25)*5) + AAMC_Raw_Data_for_FY22[[#This Row],[25th]]","v":0},{"$f":"(((AAMC_Raw_Data_for_FY22[[#This Row],[Median]]-AAMC_Raw_Data_for_FY22[[#This Row],[25th]])/25)*10) + AAMC_Raw_Data_for_FY22[[#This Row],[25th]]","v":0},{"$f":"(((AAMC_Raw_Data_for_FY22[[#This Row],[Median]]-AAMC_Raw_Data_for_FY22[[#This Row],[25th]])/25)*15) + AAMC_Raw_Data_for_FY22[[#This Row],[25th]]","v":0},{"$f":"(((AAMC_Raw_Data_for_FY22[[#This Row],[Median]]-AAMC_Raw_Data_for_FY22[[#This Row],[25th]])/25)*20) + AAMC_Raw_Data_for_FY22[[#This Row],[25th]]","v":0},null,{"$f":"(((AAMC_Raw_Data_for_FY22[[#This Row],[75th]]-AAMC_Raw_Data_for_FY22[[#This Row],[Median]])/25)*5) + AAMC_Raw_Data_for_FY22[[#This Row],[Median]]","v":0},{"$f":"(((AAMC_Raw_Data_for_FY22[[#This Row],[75th]]-AAMC_Raw_Data_for_FY22[[#This Row],[Median]])/25)*10) + AAMC_Raw_Data_for_FY22[[#This Row],[Median]]","v":0},{"$f":"(((AAMC_Raw_Data_for_FY22[[#This Row],[75th]]-AAMC_Raw_Data_for_FY22[[#This Row],[Median]])/25)*15) + AAMC_Raw_Data_for_FY22[[#This Row],[Median]]","v":0},{"$f":"(((AAMC_Raw_Data_for_FY22[[#This Row],[75th]]-AAMC_Raw_Data_for_FY22[[#This Row],[Median]])/25)*20) + AAMC_Raw_Data_for_FY22[[#This Row],[Median]]","v":0},null,{"$f":"(((AAMC_Raw_Data_for_FY22[[#This Row],[75th]]-AAMC_Raw_Data_for_FY22[[#This Row],[Median]])/25)*30) + AAMC_Raw_Data_for_FY22[[#This Row],[Median]]","v":0},{"$f":"(((AAMC_Raw_Data_for_FY22[[#This Row],[75th]]-AAMC_Raw_Data_for_FY22[[#This Row],[Median]])/25)*35) + AAMC_Raw_Data_for_FY22[[#This Row],[Median]]","v":0},{"$f":"(((AAMC_Raw_Data_for_FY22[[#This Row],[75th]]-AAMC_Raw_Data_for_FY22[[#This Row],[Median]])/25)*40) + AAMC_Raw_Data_for_FY22[[#This Row],[Median]]","v":0}]
[{"$f":"AAMC_Raw_Data_for_FY22[[#This Row],[Source]]&AAMC_Raw_Data_for_FY22[[#This Row],[Type]]&AAMC_Raw_Data_for_FY22[[#This Row],[School Subset]]&AAMC_Raw_Data_for_FY22[[#This Row],[Rank]]&AAMC_Raw_Data_for_FY22[[#This Row],[Degree]]&AAMC_Raw_Data_for_FY22[[#This Row],[Department / Specialty]]&\"L\"","v":"AAMCAcademicPublicAssistantPhDOther PediatricsL"},"Other Pediatrics",4,"AAMC","Academic","Public","Assistant","PhD","2021-2022",95347,{"$f":"(((AAMC_Raw_Data_for_FY22[[#This Row],[Median]]-AAMC_Raw_Data_for_FY22[[#This Row],[25th]])/25)*5) + AAMC_Raw_Data_for_FY22[[#This Row],[25th]]","v":96774},{"$f":"(((AAMC_Raw_Data_for_FY22[[#This Row],[Median]]-AAMC_Raw_Data_for_FY22[[#This Row],[25th]])/25)*10) + AAMC_Raw_Data_for_FY22[[#This Row],[25th]]","v":98201},{"$f":"(((AAMC_Raw_Data_for_FY22[[#This Row],[Median]]-AAMC_Raw_Data_for_FY22[[#This Row],[25th]])/25)*15) + AAMC_Raw_Data_for_FY22[[#This Row],[25th]]","v":99628},{"$f":"(((AAMC_Raw_Data_for_FY22[[#This Row],[Median]]-AAMC_Raw_Data_for_FY22[[#This Row],[25th]])/25)*20) + AAMC_Raw_Data_for_FY22[[#This Row],[25th]]","v":101055},102482,{"$f":"(((AAMC_Raw_Data_for_FY22[[#This Row],[75th]]-AAMC_Raw_Data_for_FY22[[#This Row],[Median]])/25)*5) + AAMC_Raw_Data_for_FY22[[#This Row],[Median]]","v":105016.2},{"$f":"(((AAMC_Raw_Data_for_FY22[[#This Row],[75th]]-AAMC_Raw_Data_for_FY22[[#This Row],[Median]])/25)*10) + AAMC_Raw_Data_for_FY22[[#This Row],[Median]]","v":107550.39999999999},{"$f":"(((AAMC_Raw_Data_for_FY22[[#This Row],[75th]]-AAMC_Raw_Data_for_FY22[[#This Row],[Median]])/25)*15) + AAMC_Raw_Data_for_FY22[[#This Row],[Median]]","v":110084.6},{"$f":"(((AAMC_Raw_Data_for_FY22[[#This Row],[75th]]-AAMC_Raw_Data_for_FY22[[#This Row],[Median]])/25)*20) + AAMC_Raw_Data_for_FY22[[#This Row],[Median]]","v":112618.8},115153,{"$f":"(((AAMC_Raw_Data_for_FY22[[#This Row],[75th]]-AAMC_Raw_Data_for_FY22[[#This Row],[Median]])/25)*30) + AAMC_Raw_Data_for_FY22[[#This Row],[Median]]","v":117687.2},{"$f":"(((AAMC_Raw_Data_for_FY22[[#This Row],[75th]]-AAMC_Raw_Data_for_FY22[[#This Row],[Median]])/25)*35) + AAMC_Raw_Data_for_FY22[[#This Row],[Median]]","v":120221.4},{"$f":"(((AAMC_Raw_Data_for_FY22[[#This Row],[75th]]-AAMC_Raw_Data_for_FY22[[#This Row],[Median]])/25)*40) + AAMC_Raw_Data_for_FY22[[#This Row],[Median]]","v":122755.6}]
[{"$f":"AAMC_Raw_Data_for_FY22[[#This Row],[Source]]&AAMC_Raw_Data_for_FY22[[#This Row],[Type]]&AAMC_Raw_Data_for_FY22[[#This Row],[School Subset]]&AAMC_Raw_Data_for_FY22[[#This Row],[Rank]]&AAMC_Raw_Data_for_FY22[[#This Row],[Degree]]&AAMC_Raw_Data_for_FY22[[#This Row],[Department / Specialty]]&\"L\"","v":"AAMCAcademicPublicAssociatePhDOther PediatricsL"},"Other Pediatrics",3,"AAMC","Academic","Public","Associate","PhD","2021-2022",119340,{"$f":"(((AAMC_Raw_Data_for_FY22[[#This Row],[Median]]-AAMC_Raw_Data_for_FY22[[#This Row],[25th]])/25)*5) + AAMC_Raw_Data_for_FY22[[#This Row],[25th]]","v":121048.4},{"$f":"(((AAMC_Raw_Data_for_FY22[[#This Row],[Median]]-AAMC_Raw_Data_for_FY22[[#This Row],[25th]])/25)*10) + AAMC_Raw_Data_for_FY22[[#This Row],[25th]]","v":122756.8},{"$f":"(((AAMC_Raw_Data_for_FY22[[#This Row],[Median]]-AAMC_Raw_Data_for_FY22[[#This Row],[25th]])/25)*15) + AAMC_Raw_Data_for_FY22[[#This Row],[25th]]","v":124465.2},{"$f":"(((AAMC_Raw_Data_for_FY22[[#This Row],[Median]]-AAMC_Raw_Data_for_FY22[[#This Row],[25th]])/25)*20) + AAMC_Raw_Data_for_FY22[[#This Row],[25th]]","v":126173.6},127882,{"$f":"(((AAMC_Raw_Data_for_FY22[[#This Row],[75th]]-AAMC_Raw_Data_for_FY22[[#This Row],[Median]])/25)*5) + AAMC_Raw_Data_for_FY22[[#This Row],[Median]]","v":133146},{"$f":"(((AAMC_Raw_Data_for_FY22[[#This Row],[75th]]-AAMC_Raw_Data_for_FY22[[#This Row],[Median]])/25)*10) + AAMC_Raw_Data_for_FY22[[#This Row],[Median]]","v":138410},{"$f":"(((AAMC_Raw_Data_for_FY22[[#This Row],[75th]]-AAMC_Raw_Data_for_FY22[[#This Row],[Median]])/25)*15) + AAMC_Raw_Data_for_FY22[[#This Row],[Median]]","v":143674},{"$f":"(((AAMC_Raw_Data_for_FY22[[#This Row],[75th]]-AAMC_Raw_Data_for_FY22[[#This Row],[Median]])/25)*20) + AAMC_Raw_Data_for_FY22[[#This Row],[Median]]","v":148938},154202,{"$f":"(((AAMC_Raw_Data_for_FY22[[#This Row],[75th]]-AAMC_Raw_Data_for_FY22[[#This Row],[Median]])/25)*30) + AAMC_Raw_Data_for_FY22[[#This Row],[Median]]","v":159466},{"$f":"(((AAMC_Raw_Data_for_FY22[[#This Row],[75th]]-AAMC_Raw_Data_for_FY22[[#This Row],[Median]])/25)*35) + AAMC_Raw_Data_for_FY22[[#This Row],[Median]]","v":164730},{"$f":"(((AAMC_Raw_Data_for_FY22[[#This Row],[75th]]-AAMC_Raw_Data_for_FY22[[#This Row],[Median]])/25)*40) + AAMC_Raw_Data_for_FY22[[#This Row],[Median]]","v":169994}]
[{"$f":"AAMC_Raw_Data_for_FY22[[#This Row],[Source]]&AAMC_Raw_Data_for_FY22[[#This Row],[Type]]&AAMC_Raw_Data_for_FY22[[#This Row],[School Subset]]&AAMC_Raw_Data_for_FY22[[#This Row],[Rank]]&AAMC_Raw_Data_for_FY22[[#This Row],[Degree]]&AAMC_Raw_Data_for_FY22[[#This Row],[Department / Specialty]]&\"L\"","v":"AAMCAcademicPublicProfessorPhDOther PediatricsL"},"Other Pediatrics",2,"AAMC","Academic","Public","Professor","PhD","2021-2022",177715,{"$f":"(((AAMC_Raw_Data_for_FY22[[#This Row],[Median]]-AAMC_Raw_Data_for_FY22[[#This Row],[25th]])/25)*5) + AAMC_Raw_Data_for_FY22[[#This Row],[25th]]","v":183906},{"$f":"(((AAMC_Raw_Data_for_FY22[[#This Row],[Median]]-AAMC_Raw_Data_for_FY22[[#This Row],[25th]])/25)*10) + AAMC_Raw_Data_for_FY22[[#This Row],[25th]]","v":190097},{"$f":"(((AAMC_Raw_Data_for_FY22[[#This Row],[Median]]-AAMC_Raw_Data_for_FY22[[#This Row],[25th]])/25)*15) + AAMC_Raw_Data_for_FY22[[#This Row],[25th]]","v":196288},{"$f":"(((AAMC_Raw_Data_for_FY22[[#This Row],[Median]]-AAMC_Raw_Data_for_FY22[[#This Row],[25th]])/25)*20) + AAMC_Raw_Data_for_FY22[[#This Row],[25th]]","v":202479},208670,{"$f":"(((AAMC_Raw_Data_for_FY22[[#This Row],[75th]]-AAMC_Raw_Data_for_FY22[[#This Row],[Median]])/25)*5) + AAMC_Raw_Data_for_FY22[[#This Row],[Median]]","v":214792.6},{"$f":"(((AAMC_Raw_Data_for_FY22[[#This Row],[75th]]-AAMC_Raw_Data_for_FY22[[#This Row],[Median]])/25)*10) + AAMC_Raw_Data_for_FY22[[#This Row],[Median]]","v":220915.20000000001},{"$f":"(((AAMC_Raw_Data_for_FY22[[#This Row],[75th]]-AAMC_Raw_Data_for_FY22[[#This Row],[Median]])/25)*15) + AAMC_Raw_Data_for_FY22[[#This Row],[Median]]","v":227037.8},{"$f":"(((AAMC_Raw_Data_for_FY22[[#This Row],[75th]]-AAMC_Raw_Data_for_FY22[[#This Row],[Median]])/25)*20) + AAMC_Raw_Data_for_FY22[[#This Row],[Median]]","v":233160.4},239283,{"$f":"(((AAMC_Raw_Data_for_FY22[[#This Row],[75th]]-AAMC_Raw_Data_for_FY22[[#This Row],[Median]])/25)*30) + AAMC_Raw_Data_for_FY22[[#This Row],[Median]]","v":245405.6},{"$f":"(((AAMC_Raw_Data_for_FY22[[#This Row],[75th]]-AAMC_Raw_Data_for_FY22[[#This Row],[Median]])/25)*35) + AAMC_Raw_Data_for_FY22[[#This Row],[Median]]","v":251528.2},{"$f":"(((AAMC_Raw_Data_for_FY22[[#This Row],[75th]]-AAMC_Raw_Data_for_FY22[[#This Row],[Median]])/25)*40) + AAMC_Raw_Data_for_FY22[[#This Row],[Median]]","v":257650.8}]
[{"$f":"AAMC_Raw_Data_for_FY22[[#This Row],[Source]]&AAMC_Raw_Data_for_FY22[[#This Row],[Type]]&AAMC_Raw_Data_for_FY22[[#This Row],[School Subset]]&AAMC_Raw_Data_for_FY22[[#This Row],[Rank]]&AAMC_Raw_Data_for_FY22[[#This Row],[Degree]]&AAMC_Raw_Data_for_FY22[[#This Row],[Department / Specialty]]&\"L\"","v":"AAMCAcademicPublicChiefPhDOther PediatricsL"},"Other Pediatrics",6,"AAMC","Academic","Public","Chief","PhD","2021-2022",null,{"$f":"(((AAMC_Raw_Data_for_FY22[[#This Row],[Median]]-AAMC_Raw_Data_for_FY22[[#This Row],[25th]])/25)*5) + AAMC_Raw_Data_for_FY22[[#This Row],[25th]]","v":0},{"$f":"(((AAMC_Raw_Data_for_FY22[[#This Row],[Median]]-AAMC_Raw_Data_for_FY22[[#This Row],[25th]])/25)*10) + AAMC_Raw_Data_for_FY22[[#This Row],[25th]]","v":0},{"$f":"(((AAMC_Raw_Data_for_FY22[[#This Row],[Median]]-AAMC_Raw_Data_for_FY22[[#This Row],[25th]])/25)*15) + AAMC_Raw_Data_for_FY22[[#This Row],[25th]]","v":0},{"$f":"(((AAMC_Raw_Data_for_FY22[[#This Row],[Median]]-AAMC_Raw_Data_for_FY22[[#This Row],[25th]])/25)*20) + AAMC_Raw_Data_for_FY22[[#This Row],[25th]]","v":0},null,{"$f":"(((AAMC_Raw_Data_for_FY22[[#This Row],[75th]]-AAMC_Raw_Data_for_FY22[[#This Row],[Median]])/25)*5) + AAMC_Raw_Data_for_FY22[[#This Row],[Median]]","v":0},{"$f":"(((AAMC_Raw_Data_for_FY22[[#This Row],[75th]]-AAMC_Raw_Data_for_FY22[[#This Row],[Median]])/25)*10) + AAMC_Raw_Data_for_FY22[[#This Row],[Median]]","v":0},{"$f":"(((AAMC_Raw_Data_for_FY22[[#This Row],[75th]]-AAMC_Raw_Data_for_FY22[[#This Row],[Median]])/25)*15) + AAMC_Raw_Data_for_FY22[[#This Row],[Median]]","v":0},{"$f":"(((AAMC_Raw_Data_for_FY22[[#This Row],[75th]]-AAMC_Raw_Data_for_FY22[[#This Row],[Median]])/25)*20) + AAMC_Raw_Data_for_FY22[[#This Row],[Median]]","v":0},null,{"$f":"(((AAMC_Raw_Data_for_FY22[[#This Row],[75th]]-AAMC_Raw_Data_for_FY22[[#This Row],[Median]])/25)*30) + AAMC_Raw_Data_for_FY22[[#This Row],[Median]]","v":0},{"$f":"(((AAMC_Raw_Data_for_FY22[[#This Row],[75th]]-AAMC_Raw_Data_for_FY22[[#This Row],[Median]])/25)*35) + AAMC_Raw_Data_for_FY22[[#This Row],[Median]]","v":0},{"$f":"(((AAMC_Raw_Data_for_FY22[[#This Row],[75th]]-AAMC_Raw_Data_for_FY22[[#This Row],[Median]])/25)*40) + AAMC_Raw_Data_for_FY22[[#This Row],[Median]]","v":0}]
[{"$f":"AAMC_Raw_Data_for_FY22[[#This Row],[Source]]&AAMC_Raw_Data_for_FY22[[#This Row],[Type]]&AAMC_Raw_Data_for_FY22[[#This Row],[School Subset]]&AAMC_Raw_Data_for_FY22[[#This Row],[Rank]]&AAMC_Raw_Data_for_FY22[[#This Row],[Degree]]&AAMC_Raw_Data_for_FY22[[#This Row],[Department / Specialty]]&\"L\"","v":"AAMCAcademicPublicInstructorPhDPsychiatry TotalL"},"Psychiatry Total",5,"AAMC","Academic","Public","Instructor","PhD","2021-2022",70916,{"$f":"(((AAMC_Raw_Data_for_FY22[[#This Row],[Median]]-AAMC_Raw_Data_for_FY22[[#This Row],[25th]])/25)*5) + AAMC_Raw_Data_for_FY22[[#This Row],[25th]]","v":74757.8},{"$f":"(((AAMC_Raw_Data_for_FY22[[#This Row],[Median]]-AAMC_Raw_Data_for_FY22[[#This Row],[25th]])/25)*10) + AAMC_Raw_Data_for_FY22[[#This Row],[25th]]","v":78599.600000000006},{"$f":"(((AAMC_Raw_Data_for_FY22[[#This Row],[Median]]-AAMC_Raw_Data_for_FY22[[#This Row],[25th]])/25)*15) + AAMC_Raw_Data_for_FY22[[#This Row],[25th]]","v":82441.399999999994},{"$f":"(((AAMC_Raw_Data_for_FY22[[#This Row],[Median]]-AAMC_Raw_Data_for_FY22[[#This Row],[25th]])/25)*20) + AAMC_Raw_Data_for_FY22[[#This Row],[25th]]","v":86283.199999999997},90125,{"$f":"(((AAMC_Raw_Data_for_FY22[[#This Row],[75th]]-AAMC_Raw_Data_for_FY22[[#This Row],[Median]])/25)*5) + AAMC_Raw_Data_for_FY22[[#This Row],[Median]]","v":92314},{"$f":"(((AAMC_Raw_Data_for_FY22[[#This Row],[75th]]-AAMC_Raw_Data_for_FY22[[#This Row],[Median]])/25)*10) + AAMC_Raw_Data_for_FY22[[#This Row],[Median]]","v":94503},{"$f":"(((AAMC_Raw_Data_for_FY22[[#This Row],[75th]]-AAMC_Raw_Data_for_FY22[[#This Row],[Median]])/25)*15) + AAMC_Raw_Data_for_FY22[[#This Row],[Median]]","v":96692},{"$f":"(((AAMC_Raw_Data_for_FY22[[#This Row],[75th]]-AAMC_Raw_Data_for_FY22[[#This Row],[Median]])/25)*20) + AAMC_Raw_Data_for_FY22[[#This Row],[Median]]","v":98881},101070,{"$f":"(((AAMC_Raw_Data_for_FY22[[#This Row],[75th]]-AAMC_Raw_Data_for_FY22[[#This Row],[Median]])/25)*30) + AAMC_Raw_Data_for_FY22[[#This Row],[Median]]","v":103259},{"$f":"(((AAMC_Raw_Data_for_FY22[[#This Row],[75th]]-AAMC_Raw_Data_for_FY22[[#This Row],[Median]])/25)*35) + AAMC_Raw_Data_for_FY22[[#This Row],[Median]]","v":105448},{"$f":"(((AAMC_Raw_Data_for_FY22[[#This Row],[75th]]-AAMC_Raw_Data_for_FY22[[#This Row],[Median]])/25)*40) + AAMC_Raw_Data_for_FY22[[#This Row],[Median]]","v":107637}]
[{"$f":"AAMC_Raw_Data_for_FY22[[#This Row],[Source]]&AAMC_Raw_Data_for_FY22[[#This Row],[Type]]&AAMC_Raw_Data_for_FY22[[#This Row],[School Subset]]&AAMC_Raw_Data_for_FY22[[#This Row],[Rank]]&AAMC_Raw_Data_for_FY22[[#This Row],[Degree]]&AAMC_Raw_Data_for_FY22[[#This Row],[Department / Specialty]]&\"L\"","v":"AAMCAcademicPublicAssistantPhDPsychiatry TotalL"},"Psychiatry Total",4,"AAMC","Academic","Public","Assistant","PhD","2021-2022",99776,{"$f":"(((AAMC_Raw_Data_for_FY22[[#This Row],[Median]]-AAMC_Raw_Data_for_FY22[[#This Row],[25th]])/25)*5) + AAMC_Raw_Data_for_FY22[[#This Row],[25th]]","v":102193.60000000001},{"$f":"(((AAMC_Raw_Data_for_FY22[[#This Row],[Median]]-AAMC_Raw_Data_for_FY22[[#This Row],[25th]])/25)*10) + AAMC_Raw_Data_for_FY22[[#This Row],[25th]]","v":104611.2},{"$f":"(((AAMC_Raw_Data_for_FY22[[#This Row],[Median]]-AAMC_Raw_Data_for_FY22[[#This Row],[25th]])/25)*15) + AAMC_Raw_Data_for_FY22[[#This Row],[25th]]","v":107028.8},{"$f":"(((AAMC_Raw_Data_for_FY22[[#This Row],[Median]]-AAMC_Raw_Data_for_FY22[[#This Row],[25th]])/25)*20) + AAMC_Raw_Data_for_FY22[[#This Row],[25th]]","v":109446.39999999999},111864,{"$f":"(((AAMC_Raw_Data_for_FY22[[#This Row],[75th]]-AAMC_Raw_Data_for_FY22[[#This Row],[Median]])/25)*5) + AAMC_Raw_Data_for_FY22[[#This Row],[Median]]","v":114631.8},{"$f":"(((AAMC_Raw_Data_for_FY22[[#This Row],[75th]]-AAMC_Raw_Data_for_FY22[[#This Row],[Median]])/25)*10) + AAMC_Raw_Data_for_FY22[[#This Row],[Median]]","v":117399.6},{"$f":"(((AAMC_Raw_Data_for_FY22[[#This Row],[75th]]-AAMC_Raw_Data_for_FY22[[#This Row],[Median]])/25)*15) + AAMC_Raw_Data_for_FY22[[#This Row],[Median]]","v":120167.4},{"$f":"(((AAMC_Raw_Data_for_FY22[[#This Row],[75th]]-AAMC_Raw_Data_for_FY22[[#This Row],[Median]])/25)*20) + AAMC_Raw_Data_for_FY22[[#This Row],[Median]]","v":122935.2},125703,{"$f":"(((AAMC_Raw_Data_for_FY22[[#This Row],[75th]]-AAMC_Raw_Data_for_FY22[[#This Row],[Median]])/25)*30) + AAMC_Raw_Data_for_FY22[[#This Row],[Median]]","v":128470.8},{"$f":"(((AAMC_Raw_Data_for_FY22[[#This Row],[75th]]-AAMC_Raw_Data_for_FY22[[#This Row],[Median]])/25)*35) + AAMC_Raw_Data_for_FY22[[#This Row],[Median]]","v":131238.6},{"$f":"(((AAMC_Raw_Data_for_FY22[[#This Row],[75th]]-AAMC_Raw_Data_for_FY22[[#This Row],[Median]])/25)*40) + AAMC_Raw_Data_for_FY22[[#This Row],[Median]]","v":134006.39999999999}]
[{"$f":"AAMC_Raw_Data_for_FY22[[#This Row],[Source]]&AAMC_Raw_Data_for_FY22[[#This Row],[Type]]&AAMC_Raw_Data_for_FY22[[#This Row],[School Subset]]&AAMC_Raw_Data_for_FY22[[#This Row],[Rank]]&AAMC_Raw_Data_for_FY22[[#This Row],[Degree]]&AAMC_Raw_Data_for_FY22[[#This Row],[Department / Specialty]]&\"L\"","v":"AAMCAcademicPublicAssociatePhDPsychiatry TotalL"},"Psychiatry Total",3,"AAMC","Academic","Public","Associate","PhD","2021-2022",122738,{"$f":"(((AAMC_Raw_Data_for_FY22[[#This Row],[Median]]-AAMC_Raw_Data_for_FY22[[#This Row],[25th]])/25)*5) + AAMC_Raw_Data_for_FY22[[#This Row],[25th]]","v":126311.4},{"$f":"(((AAMC_Raw_Data_for_FY22[[#This Row],[Median]]-AAMC_Raw_Data_for_FY22[[#This Row],[25th]])/25)*10) + AAMC_Raw_Data_for_FY22[[#This Row],[25th]]","v":129884.8},{"$f":"(((AAMC_Raw_Data_for_FY22[[#This Row],[Median]]-AAMC_Raw_Data_for_FY22[[#This Row],[25th]])/25)*15) + AAMC_Raw_Data_for_FY22[[#This Row],[25th]]","v":133458.20000000001},{"$f":"(((AAMC_Raw_Data_for_FY22[[#This Row],[Median]]-AAMC_Raw_Data_for_FY22[[#This Row],[25th]])/25)*20) + AAMC_Raw_Data_for_FY22[[#This Row],[25th]]","v":137031.6},140605,{"$f":"(((AAMC_Raw_Data_for_FY22[[#This Row],[75th]]-AAMC_Raw_Data_for_FY22[[#This Row],[Median]])/25)*5) + AAMC_Raw_Data_for_FY22[[#This Row],[Median]]","v":145010.79999999999},{"$f":"(((AAMC_Raw_Data_for_FY22[[#This Row],[75th]]-AAMC_Raw_Data_for_FY22[[#This Row],[Median]])/25)*10) + AAMC_Raw_Data_for_FY22[[#This Row],[Median]]","v":149416.6},{"$f":"(((AAMC_Raw_Data_for_FY22[[#This Row],[75th]]-AAMC_Raw_Data_for_FY22[[#This Row],[Median]])/25)*15) + AAMC_Raw_Data_for_FY22[[#This Row],[Median]]","v":153822.39999999999},{"$f":"(((AAMC_Raw_Data_for_FY22[[#This Row],[75th]]-AAMC_Raw_Data_for_FY22[[#This Row],[Median]])/25)*20) + AAMC_Raw_Data_for_FY22[[#This Row],[Median]]","v":158228.20000000001},162634,{"$f":"(((AAMC_Raw_Data_for_FY22[[#This Row],[75th]]-AAMC_Raw_Data_for_FY22[[#This Row],[Median]])/25)*30) + AAMC_Raw_Data_for_FY22[[#This Row],[Median]]","v":167039.79999999999},{"$f":"(((AAMC_Raw_Data_for_FY22[[#This Row],[75th]]-AAMC_Raw_Data_for_FY22[[#This Row],[Median]])/25)*35) + AAMC_Raw_Data_for_FY22[[#This Row],[Median]]","v":171445.6},{"$f":"(((AAMC_Raw_Data_for_FY22[[#This Row],[75th]]-AAMC_Raw_Data_for_FY22[[#This Row],[Median]])/25)*40) + AAMC_Raw_Data_for_FY22[[#This Row],[Median]]","v":175851.4}]
[{"$f":"AAMC_Raw_Data_for_FY22[[#This Row],[Source]]&AAMC_Raw_Data_for_FY22[[#This Row],[Type]]&AAMC_Raw_Data_for_FY22[[#This Row],[School Subset]]&AAMC_Raw_Data_for_FY22[[#This Row],[Rank]]&AAMC_Raw_Data_for_FY22[[#This Row],[Degree]]&AAMC_Raw_Data_for_FY22[[#This Row],[Department / Specialty]]&\"L\"","v":"AAMCAcademicPublicProfessorPhDPsychiatry TotalL"},"Psychiatry Total",2,"AAMC","Academic","Public","Professor","PhD","2021-2022",176180,{"$f":"(((AAMC_Raw_Data_for_FY22[[#This Row],[Median]]-AAMC_Raw_Data_for_FY22[[#This Row],[25th]])/25)*5) + AAMC_Raw_Data_for_FY22[[#This Row],[25th]]","v":181951.6},{"$f":"(((AAMC_Raw_Data_for_FY22[[#This Row],[Median]]-AAMC_Raw_Data_for_FY22[[#This Row],[25th]])/25)*10) + AAMC_Raw_Data_for_FY22[[#This Row],[25th]]","v":187723.2},{"$f":"(((AAMC_Raw_Data_for_FY22[[#This Row],[Median]]-AAMC_Raw_Data_for_FY22[[#This Row],[25th]])/25)*15) + AAMC_Raw_Data_for_FY22[[#This Row],[25th]]","v":193494.8},{"$f":"(((AAMC_Raw_Data_for_FY22[[#This Row],[Median]]-AAMC_Raw_Data_for_FY22[[#This Row],[25th]])/25)*20) + AAMC_Raw_Data_for_FY22[[#This Row],[25th]]","v":199266.4},205038,{"$f":"(((AAMC_Raw_Data_for_FY22[[#This Row],[75th]]-AAMC_Raw_Data_for_FY22[[#This Row],[Median]])/25)*5) + AAMC_Raw_Data_for_FY22[[#This Row],[Median]]","v":214203.4},{"$f":"(((AAMC_Raw_Data_for_FY22[[#This Row],[75th]]-AAMC_Raw_Data_for_FY22[[#This Row],[Median]])/25)*10) + AAMC_Raw_Data_for_FY22[[#This Row],[Median]]","v":223368.8},{"$f":"(((AAMC_Raw_Data_for_FY22[[#This Row],[75th]]-AAMC_Raw_Data_for_FY22[[#This Row],[Median]])/25)*15) + AAMC_Raw_Data_for_FY22[[#This Row],[Median]]","v":232534.2},{"$f":"(((AAMC_Raw_Data_for_FY22[[#This Row],[75th]]-AAMC_Raw_Data_for_FY22[[#This Row],[Median]])/25)*20) + AAMC_Raw_Data_for_FY22[[#This Row],[Median]]","v":241699.6},250865,{"$f":"(((AAMC_Raw_Data_for_FY22[[#This Row],[75th]]-AAMC_Raw_Data_for_FY22[[#This Row],[Median]])/25)*30) + AAMC_Raw_Data_for_FY22[[#This Row],[Median]]","v":260030.4},{"$f":"(((AAMC_Raw_Data_for_FY22[[#This Row],[75th]]-AAMC_Raw_Data_for_FY22[[#This Row],[Median]])/25)*35) + AAMC_Raw_Data_for_FY22[[#This Row],[Median]]","v":269195.8},{"$f":"(((AAMC_Raw_Data_for_FY22[[#This Row],[75th]]-AAMC_Raw_Data_for_FY22[[#This Row],[Median]])/25)*40) + AAMC_Raw_Data_for_FY22[[#This Row],[Median]]","v":278361.2}]
[{"$f":"AAMC_Raw_Data_for_FY22[[#This Row],[Source]]&AAMC_Raw_Data_for_FY22[[#This Row],[Type]]&AAMC_Raw_Data_for_FY22[[#This Row],[School Subset]]&AAMC_Raw_Data_for_FY22[[#This Row],[Rank]]&AAMC_Raw_Data_for_FY22[[#This Row],[Degree]]&AAMC_Raw_Data_for_FY22[[#This Row],[Department / Specialty]]&\"L\"","v":"AAMCAcademicPublicChiefPhDPsychiatry TotalL"},"Psychiatry Total",6,"AAMC","Academic","Public","Chief","PhD","2021-2022",174362,{"$f":"(((AAMC_Raw_Data_for_FY22[[#This Row],[Median]]-AAMC_Raw_Data_for_FY22[[#This Row],[25th]])/25)*5) + AAMC_Raw_Data_for_FY22[[#This Row],[25th]]","v":181822.2},{"$f":"(((AAMC_Raw_Data_for_FY22[[#This Row],[Median]]-AAMC_Raw_Data_for_FY22[[#This Row],[25th]])/25)*10) + AAMC_Raw_Data_for_FY22[[#This Row],[25th]]","v":189282.4},{"$f":"(((AAMC_Raw_Data_for_FY22[[#This Row],[Median]]-AAMC_Raw_Data_for_FY22[[#This Row],[25th]])/25)*15) + AAMC_Raw_Data_for_FY22[[#This Row],[25th]]","v":196742.6},{"$f":"(((AAMC_Raw_Data_for_FY22[[#This Row],[Median]]-AAMC_Raw_Data_for_FY22[[#This Row],[25th]])/25)*20) + AAMC_Raw_Data_for_FY22[[#This Row],[25th]]","v":204202.8},211663,{"$f":"(((AAMC_Raw_Data_for_FY22[[#This Row],[75th]]-AAMC_Raw_Data_for_FY22[[#This Row],[Median]])/25)*5) + AAMC_Raw_Data_for_FY22[[#This Row],[Median]]","v":221248.6},{"$f":"(((AAMC_Raw_Data_for_FY22[[#This Row],[75th]]-AAMC_Raw_Data_for_FY22[[#This Row],[Median]])/25)*10) + AAMC_Raw_Data_for_FY22[[#This Row],[Median]]","v":230834.2},{"$f":"(((AAMC_Raw_Data_for_FY22[[#This Row],[75th]]-AAMC_Raw_Data_for_FY22[[#This Row],[Median]])/25)*15) + AAMC_Raw_Data_for_FY22[[#This Row],[Median]]","v":240419.8},{"$f":"(((AAMC_Raw_Data_for_FY22[[#This Row],[75th]]-AAMC_Raw_Data_for_FY22[[#This Row],[Median]])/25)*20) + AAMC_Raw_Data_for_FY22[[#This Row],[Median]]","v":250005.4},259591,{"$f":"(((AAMC_Raw_Data_for_FY22[[#This Row],[75th]]-AAMC_Raw_Data_for_FY22[[#This Row],[Median]])/25)*30) + AAMC_Raw_Data_for_FY22[[#This Row],[Median]]","v":269176.59999999998},{"$f":"(((AAMC_Raw_Data_for_FY22[[#This Row],[75th]]-AAMC_Raw_Data_for_FY22[[#This Row],[Median]])/25)*35) + AAMC_Raw_Data_for_FY22[[#This Row],[Median]]","v":278762.2},{"$f":"(((AAMC_Raw_Data_for_FY22[[#This Row],[75th]]-AAMC_Raw_Data_for_FY22[[#This Row],[Median]])/25)*40) + AAMC_Raw_Data_for_FY22[[#This Row],[Median]]","v":288347.8}]
[{"$f":"AAMC_Raw_Data_for_FY22[[#This Row],[Source]]&AAMC_Raw_Data_for_FY22[[#This Row],[Type]]&AAMC_Raw_Data_for_FY22[[#This Row],[School Subset]]&AAMC_Raw_Data_for_FY22[[#This Row],[Rank]]&AAMC_Raw_Data_for_FY22[[#This Row],[Degree]]&AAMC_Raw_Data_for_FY22[[#This Row],[Department / Specialty]]&\"L\"","v":"AAMCAcademicPublicChairPhDPsychiatry TotalL"},"Psychiatry Total",1,"AAMC","Academic","Public","Chair","PhD","2021-2022",260695,{"$f":"(((AAMC_Raw_Data_for_FY22[[#This Row],[Median]]-AAMC_Raw_Data_for_FY22[[#This Row],[25th]])/25)*5) + AAMC_Raw_Data_for_FY22[[#This Row],[25th]]","v":263169.40000000002},{"$f":"(((AAMC_Raw_Data_for_FY22[[#This Row],[Median]]-AAMC_Raw_Data_for_FY22[[#This Row],[25th]])/25)*10) + AAMC_Raw_Data_for_FY22[[#This Row],[25th]]","v":265643.8},{"$f":"(((AAMC_Raw_Data_for_FY22[[#This Row],[Median]]-AAMC_Raw_Data_for_FY22[[#This Row],[25th]])/25)*15) + AAMC_Raw_Data_for_FY22[[#This Row],[25th]]","v":268118.2},{"$f":"(((AAMC_Raw_Data_for_FY22[[#This Row],[Median]]-AAMC_Raw_Data_for_FY22[[#This Row],[25th]])/25)*20) + AAMC_Raw_Data_for_FY22[[#This Row],[25th]]","v":270592.59999999998},273067,{"$f":"(((AAMC_Raw_Data_for_FY22[[#This Row],[75th]]-AAMC_Raw_Data_for_FY22[[#This Row],[Median]])/25)*5) + AAMC_Raw_Data_for_FY22[[#This Row],[Median]]","v":286503.59999999998},{"$f":"(((AAMC_Raw_Data_for_FY22[[#This Row],[75th]]-AAMC_Raw_Data_for_FY22[[#This Row],[Median]])/25)*10) + AAMC_Raw_Data_for_FY22[[#This Row],[Median]]","v":299940.2},{"$f":"(((AAMC_Raw_Data_for_FY22[[#This Row],[75th]]-AAMC_Raw_Data_for_FY22[[#This Row],[Median]])/25)*15) + AAMC_Raw_Data_for_FY22[[#This Row],[Median]]","v":313376.8},{"$f":"(((AAMC_Raw_Data_for_FY22[[#This Row],[75th]]-AAMC_Raw_Data_for_FY22[[#This Row],[Median]])/25)*20) + AAMC_Raw_Data_for_FY22[[#This Row],[Median]]","v":326813.40000000002},340250,{"$f":"(((AAMC_Raw_Data_for_FY22[[#This Row],[75th]]-AAMC_Raw_Data_for_FY22[[#This Row],[Median]])/25)*30) + AAMC_Raw_Data_for_FY22[[#This Row],[Median]]","v":353686.6},{"$f":"(((AAMC_Raw_Data_for_FY22[[#This Row],[75th]]-AAMC_Raw_Data_for_FY22[[#This Row],[Median]])/25)*35) + AAMC_Raw_Data_for_FY22[[#This Row],[Median]]","v":367123.20000000001},{"$f":"(((AAMC_Raw_Data_for_FY22[[#This Row],[75th]]-AAMC_Raw_Data_for_FY22[[#This Row],[Median]])/25)*40) + AAMC_Raw_Data_for_FY22[[#This Row],[Median]]","v":380559.8}]
[{"$f":"AAMC_Raw_Data_for_FY22[[#This Row],[Source]]&AAMC_Raw_Data_for_FY22[[#This Row],[Type]]&AAMC_Raw_Data_for_FY22[[#This Row],[School Subset]]&AAMC_Raw_Data_for_FY22[[#This Row],[Rank]]&AAMC_Raw_Data_for_FY22[[#This Row],[Degree]]&AAMC_Raw_Data_for_FY22[[#This Row],[Department / Specialty]]&\"L\"","v":"AAMCAcademicPublicInstructorPhDPsychiatry: Child & AdolescentL"},"Psychiatry: Child & Adolescent",5,"AAMC","Academic","Public","Instructor","PhD","2021-2022",null,{"$f":"(((AAMC_Raw_Data_for_FY22[[#This Row],[Median]]-AAMC_Raw_Data_for_FY22[[#This Row],[25th]])/25)*5) + AAMC_Raw_Data_for_FY22[[#This Row],[25th]]","v":0},{"$f":"(((AAMC_Raw_Data_for_FY22[[#This Row],[Median]]-AAMC_Raw_Data_for_FY22[[#This Row],[25th]])/25)*10) + AAMC_Raw_Data_for_FY22[[#This Row],[25th]]","v":0},{"$f":"(((AAMC_Raw_Data_for_FY22[[#This Row],[Median]]-AAMC_Raw_Data_for_FY22[[#This Row],[25th]])/25)*15) + AAMC_Raw_Data_for_FY22[[#This Row],[25th]]","v":0},{"$f":"(((AAMC_Raw_Data_for_FY22[[#This Row],[Median]]-AAMC_Raw_Data_for_FY22[[#This Row],[25th]])/25)*20) + AAMC_Raw_Data_for_FY22[[#This Row],[25th]]","v":0},null,{"$f":"(((AAMC_Raw_Data_for_FY22[[#This Row],[75th]]-AAMC_Raw_Data_for_FY22[[#This Row],[Median]])/25)*5) + AAMC_Raw_Data_for_FY22[[#This Row],[Median]]","v":0},{"$f":"(((AAMC_Raw_Data_for_FY22[[#This Row],[75th]]-AAMC_Raw_Data_for_FY22[[#This Row],[Median]])/25)*10) + AAMC_Raw_Data_for_FY22[[#This Row],[Median]]","v":0},{"$f":"(((AAMC_Raw_Data_for_FY22[[#This Row],[75th]]-AAMC_Raw_Data_for_FY22[[#This Row],[Median]])/25)*15) + AAMC_Raw_Data_for_FY22[[#This Row],[Median]]","v":0},{"$f":"(((AAMC_Raw_Data_for_FY22[[#This Row],[75th]]-AAMC_Raw_Data_for_FY22[[#This Row],[Median]])/25)*20) + AAMC_Raw_Data_for_FY22[[#This Row],[Median]]","v":0},null,{"$f":"(((AAMC_Raw_Data_for_FY22[[#This Row],[75th]]-AAMC_Raw_Data_for_FY22[[#This Row],[Median]])/25)*30) + AAMC_Raw_Data_for_FY22[[#This Row],[Median]]","v":0},{"$f":"(((AAMC_Raw_Data_for_FY22[[#This Row],[75th]]-AAMC_Raw_Data_for_FY22[[#This Row],[Median]])/25)*35) + AAMC_Raw_Data_for_FY22[[#This Row],[Median]]","v":0},{"$f":"(((AAMC_Raw_Data_for_FY22[[#This Row],[75th]]-AAMC_Raw_Data_for_FY22[[#This Row],[Median]])/25)*40) + AAMC_Raw_Data_for_FY22[[#This Row],[Median]]","v":0}]
[{"$f":"AAMC_Raw_Data_for_FY22[[#This Row],[Source]]&AAMC_Raw_Data_for_FY22[[#This Row],[Type]]&AAMC_Raw_Data_for_FY22[[#This Row],[School Subset]]&AAMC_Raw_Data_for_FY22[[#This Row],[Rank]]&AAMC_Raw_Data_for_FY22[[#This Row],[Degree]]&AAMC_Raw_Data_for_FY22[[#This Row],[Department / Specialty]]&\"L\"","v":"AAMCAcademicPublicAssistantPhDPsychiatry: Child & AdolescentL"},"Psychiatry: Child & Adolescent",4,"AAMC","Academic","Public","Assistant","PhD","2021-2022",107093,{"$f":"(((AAMC_Raw_Data_for_FY22[[#This Row],[Median]]-AAMC_Raw_Data_for_FY22[[#This Row],[25th]])/25)*5) + AAMC_Raw_Data_for_FY22[[#This Row],[25th]]","v":108240},{"$f":"(((AAMC_Raw_Data_for_FY22[[#This Row],[Median]]-AAMC_Raw_Data_for_FY22[[#This Row],[25th]])/25)*10) + AAMC_Raw_Data_for_FY22[[#This Row],[25th]]","v":109387},{"$f":"(((AAMC_Raw_Data_for_FY22[[#This Row],[Median]]-AAMC_Raw_Data_for_FY22[[#This Row],[25th]])/25)*15) + AAMC_Raw_Data_for_FY22[[#This Row],[25th]]","v":110534},{"$f":"(((AAMC_Raw_Data_for_FY22[[#This Row],[Median]]-AAMC_Raw_Data_for_FY22[[#This Row],[25th]])/25)*20) + AAMC_Raw_Data_for_FY22[[#This Row],[25th]]","v":111681},112828,{"$f":"(((AAMC_Raw_Data_for_FY22[[#This Row],[75th]]-AAMC_Raw_Data_for_FY22[[#This Row],[Median]])/25)*5) + AAMC_Raw_Data_for_FY22[[#This Row],[Median]]","v":116139.8},{"$f":"(((AAMC_Raw_Data_for_FY22[[#This Row],[75th]]-AAMC_Raw_Data_for_FY22[[#This Row],[Median]])/25)*10) + AAMC_Raw_Data_for_FY22[[#This Row],[Median]]","v":119451.6},{"$f":"(((AAMC_Raw_Data_for_FY22[[#This Row],[75th]]-AAMC_Raw_Data_for_FY22[[#This Row],[Median]])/25)*15) + AAMC_Raw_Data_for_FY22[[#This Row],[Median]]","v":122763.4},{"$f":"(((AAMC_Raw_Data_for_FY22[[#This Row],[75th]]-AAMC_Raw_Data_for_FY22[[#This Row],[Median]])/25)*20) + AAMC_Raw_Data_for_FY22[[#This Row],[Median]]","v":126075.2},129387,{"$f":"(((AAMC_Raw_Data_for_FY22[[#This Row],[75th]]-AAMC_Raw_Data_for_FY22[[#This Row],[Median]])/25)*30) + AAMC_Raw_Data_for_FY22[[#This Row],[Median]]","v":132698.79999999999},{"$f":"(((AAMC_Raw_Data_for_FY22[[#This Row],[75th]]-AAMC_Raw_Data_for_FY22[[#This Row],[Median]])/25)*35) + AAMC_Raw_Data_for_FY22[[#This Row],[Median]]","v":136010.6},{"$f":"(((AAMC_Raw_Data_for_FY22[[#This Row],[75th]]-AAMC_Raw_Data_for_FY22[[#This Row],[Median]])/25)*40) + AAMC_Raw_Data_for_FY22[[#This Row],[Median]]","v":139322.4}]
[{"$f":"AAMC_Raw_Data_for_FY22[[#This Row],[Source]]&AAMC_Raw_Data_for_FY22[[#This Row],[Type]]&AAMC_Raw_Data_for_FY22[[#This Row],[School Subset]]&AAMC_Raw_Data_for_FY22[[#This Row],[Rank]]&AAMC_Raw_Data_for_FY22[[#This Row],[Degree]]&AAMC_Raw_Data_for_FY22[[#This Row],[Department / Specialty]]&\"L\"","v":"AAMCAcademicPublicAssociatePhDPsychiatry: Child & AdolescentL"},"Psychiatry: Child & Adolescent",3,"AAMC","Academic","Public","Associate","PhD","2021-2022",129029,{"$f":"(((AAMC_Raw_Data_for_FY22[[#This Row],[Median]]-AAMC_Raw_Data_for_FY22[[#This Row],[25th]])/25)*5) + AAMC_Raw_Data_for_FY22[[#This Row],[25th]]","v":133623.4},{"$f":"(((AAMC_Raw_Data_for_FY22[[#This Row],[Median]]-AAMC_Raw_Data_for_FY22[[#This Row],[25th]])/25)*10) + AAMC_Raw_Data_for_FY22[[#This Row],[25th]]","v":138217.79999999999},{"$f":"(((AAMC_Raw_Data_for_FY22[[#This Row],[Median]]-AAMC_Raw_Data_for_FY22[[#This Row],[25th]])/25)*15) + AAMC_Raw_Data_for_FY22[[#This Row],[25th]]","v":142812.20000000001},{"$f":"(((AAMC_Raw_Data_for_FY22[[#This Row],[Median]]-AAMC_Raw_Data_for_FY22[[#This Row],[25th]])/25)*20) + AAMC_Raw_Data_for_FY22[[#This Row],[25th]]","v":147406.6},152001,{"$f":"(((AAMC_Raw_Data_for_FY22[[#This Row],[75th]]-AAMC_Raw_Data_for_FY22[[#This Row],[Median]])/25)*5) + AAMC_Raw_Data_for_FY22[[#This Row],[Median]]","v":154748.4},{"$f":"(((AAMC_Raw_Data_for_FY22[[#This Row],[75th]]-AAMC_Raw_Data_for_FY22[[#This Row],[Median]])/25)*10) + AAMC_Raw_Data_for_FY22[[#This Row],[Median]]","v":157495.79999999999},{"$f":"(((AAMC_Raw_Data_for_FY22[[#This Row],[75th]]-AAMC_Raw_Data_for_FY22[[#This Row],[Median]])/25)*15) + AAMC_Raw_Data_for_FY22[[#This Row],[Median]]","v":160243.20000000001},{"$f":"(((AAMC_Raw_Data_for_FY22[[#This Row],[75th]]-AAMC_Raw_Data_for_FY22[[#This Row],[Median]])/25)*20) + AAMC_Raw_Data_for_FY22[[#This Row],[Median]]","v":162990.6},165738,{"$f":"(((AAMC_Raw_Data_for_FY22[[#This Row],[75th]]-AAMC_Raw_Data_for_FY22[[#This Row],[Median]])/25)*30) + AAMC_Raw_Data_for_FY22[[#This Row],[Median]]","v":168485.4},{"$f":"(((AAMC_Raw_Data_for_FY22[[#This Row],[75th]]-AAMC_Raw_Data_for_FY22[[#This Row],[Median]])/25)*35) + AAMC_Raw_Data_for_FY22[[#This Row],[Median]]","v":171232.8},{"$f":"(((AAMC_Raw_Data_for_FY22[[#This Row],[75th]]-AAMC_Raw_Data_for_FY22[[#This Row],[Median]])/25)*40) + AAMC_Raw_Data_for_FY22[[#This Row],[Median]]","v":173980.2}]
[{"$f":"AAMC_Raw_Data_for_FY22[[#This Row],[Source]]&AAMC_Raw_Data_for_FY22[[#This Row],[Type]]&AAMC_Raw_Data_for_FY22[[#This Row],[School Subset]]&AAMC_Raw_Data_for_FY22[[#This Row],[Rank]]&AAMC_Raw_Data_for_FY22[[#This Row],[Degree]]&AAMC_Raw_Data_for_FY22[[#This Row],[Department / Specialty]]&\"L\"","v":"AAMCAcademicPublicProfessorPhDPsychiatry: Child & AdolescentL"},"Psychiatry: Child & Adolescent",2,"AAMC","Academic","Public","Professor","PhD","2021-2022",202188,{"$f":"(((AAMC_Raw_Data_for_FY22[[#This Row],[Median]]-AAMC_Raw_Data_for_FY22[[#This Row],[25th]])/25)*5) + AAMC_Raw_Data_for_FY22[[#This Row],[25th]]","v":206714.8},{"$f":"(((AAMC_Raw_Data_for_FY22[[#This Row],[Median]]-AAMC_Raw_Data_for_FY22[[#This Row],[25th]])/25)*10) + AAMC_Raw_Data_for_FY22[[#This Row],[25th]]","v":211241.60000000001},{"$f":"(((AAMC_Raw_Data_for_FY22[[#This Row],[Median]]-AAMC_Raw_Data_for_FY22[[#This Row],[25th]])/25)*15) + AAMC_Raw_Data_for_FY22[[#This Row],[25th]]","v":215768.4},{"$f":"(((AAMC_Raw_Data_for_FY22[[#This Row],[Median]]-AAMC_Raw_Data_for_FY22[[#This Row],[25th]])/25)*20) + AAMC_Raw_Data_for_FY22[[#This Row],[25th]]","v":220295.2},224822,{"$f":"(((AAMC_Raw_Data_for_FY22[[#This Row],[75th]]-AAMC_Raw_Data_for_FY22[[#This Row],[Median]])/25)*5) + AAMC_Raw_Data_for_FY22[[#This Row],[Median]]","v":235983.6},{"$f":"(((AAMC_Raw_Data_for_FY22[[#This Row],[75th]]-AAMC_Raw_Data_for_FY22[[#This Row],[Median]])/25)*10) + AAMC_Raw_Data_for_FY22[[#This Row],[Median]]","v":247145.2},{"$f":"(((AAMC_Raw_Data_for_FY22[[#This Row],[75th]]-AAMC_Raw_Data_for_FY22[[#This Row],[Median]])/25)*15) + AAMC_Raw_Data_for_FY22[[#This Row],[Median]]","v":258306.8},{"$f":"(((AAMC_Raw_Data_for_FY22[[#This Row],[75th]]-AAMC_Raw_Data_for_FY22[[#This Row],[Median]])/25)*20) + AAMC_Raw_Data_for_FY22[[#This Row],[Median]]","v":269468.40000000002},280630,{"$f":"(((AAMC_Raw_Data_for_FY22[[#This Row],[75th]]-AAMC_Raw_Data_for_FY22[[#This Row],[Median]])/25)*30) + AAMC_Raw_Data_for_FY22[[#This Row],[Median]]","v":291791.59999999998},{"$f":"(((AAMC_Raw_Data_for_FY22[[#This Row],[75th]]-AAMC_Raw_Data_for_FY22[[#This Row],[Median]])/25)*35) + AAMC_Raw_Data_for_FY22[[#This Row],[Median]]","v":302953.2},{"$f":"(((AAMC_Raw_Data_for_FY22[[#This Row],[75th]]-AAMC_Raw_Data_for_FY22[[#This Row],[Median]])/25)*40) + AAMC_Raw_Data_for_FY22[[#This Row],[Median]]","v":314114.8}]
[{"$f":"AAMC_Raw_Data_for_FY22[[#This Row],[Source]]&AAMC_Raw_Data_for_FY22[[#This Row],[Type]]&AAMC_Raw_Data_for_FY22[[#This Row],[School Subset]]&AAMC_Raw_Data_for_FY22[[#This Row],[Rank]]&AAMC_Raw_Data_for_FY22[[#This Row],[Degree]]&AAMC_Raw_Data_for_FY22[[#This Row],[Department / Specialty]]&\"L\"","v":"AAMCAcademicPublicChiefPhDPsychiatry: Child & AdolescentL"},"Psychiatry: Child & Adolescent",6,"AAMC","Academic","Public","Chief","PhD","2021-2022",null,{"$f":"(((AAMC_Raw_Data_for_FY22[[#This Row],[Median]]-AAMC_Raw_Data_for_FY22[[#This Row],[25th]])/25)*5) + AAMC_Raw_Data_for_FY22[[#This Row],[25th]]","v":0},{"$f":"(((AAMC_Raw_Data_for_FY22[[#This Row],[Median]]-AAMC_Raw_Data_for_FY22[[#This Row],[25th]])/25)*10) + AAMC_Raw_Data_for_FY22[[#This Row],[25th]]","v":0},{"$f":"(((AAMC_Raw_Data_for_FY22[[#This Row],[Median]]-AAMC_Raw_Data_for_FY22[[#This Row],[25th]])/25)*15) + AAMC_Raw_Data_for_FY22[[#This Row],[25th]]","v":0},{"$f":"(((AAMC_Raw_Data_for_FY22[[#This Row],[Median]]-AAMC_Raw_Data_for_FY22[[#This Row],[25th]])/25)*20) + AAMC_Raw_Data_for_FY22[[#This Row],[25th]]","v":0},null,{"$f":"(((AAMC_Raw_Data_for_FY22[[#This Row],[75th]]-AAMC_Raw_Data_for_FY22[[#This Row],[Median]])/25)*5) + AAMC_Raw_Data_for_FY22[[#This Row],[Median]]","v":0},{"$f":"(((AAMC_Raw_Data_for_FY22[[#This Row],[75th]]-AAMC_Raw_Data_for_FY22[[#This Row],[Median]])/25)*10) + AAMC_Raw_Data_for_FY22[[#This Row],[Median]]","v":0},{"$f":"(((AAMC_Raw_Data_for_FY22[[#This Row],[75th]]-AAMC_Raw_Data_for_FY22[[#This Row],[Median]])/25)*15) + AAMC_Raw_Data_for_FY22[[#This Row],[Median]]","v":0},{"$f":"(((AAMC_Raw_Data_for_FY22[[#This Row],[75th]]-AAMC_Raw_Data_for_FY22[[#This Row],[Median]])/25)*20) + AAMC_Raw_Data_for_FY22[[#This Row],[Median]]","v":0},null,{"$f":"(((AAMC_Raw_Data_for_FY22[[#This Row],[75th]]-AAMC_Raw_Data_for_FY22[[#This Row],[Median]])/25)*30) + AAMC_Raw_Data_for_FY22[[#This Row],[Median]]","v":0},{"$f":"(((AAMC_Raw_Data_for_FY22[[#This Row],[75th]]-AAMC_Raw_Data_for_FY22[[#This Row],[Median]])/25)*35) + AAMC_Raw_Data_for_FY22[[#This Row],[Median]]","v":0},{"$f":"(((AAMC_Raw_Data_for_FY22[[#This Row],[75th]]-AAMC_Raw_Data_for_FY22[[#This Row],[Median]])/25)*40) + AAMC_Raw_Data_for_FY22[[#This Row],[Median]]","v":0}]
[{"$f":"AAMC_Raw_Data_for_FY22[[#This Row],[Source]]&AAMC_Raw_Data_for_FY22[[#This Row],[Type]]&AAMC_Raw_Data_for_FY22[[#This Row],[School Subset]]&AAMC_Raw_Data_for_FY22[[#This Row],[Rank]]&AAMC_Raw_Data_for_FY22[[#This Row],[Degree]]&AAMC_Raw_Data_for_FY22[[#This Row],[Department / Specialty]]&\"L\"","v":"AAMCAcademicPublicInstructorPhDPsychiatry: GeneralL"},"Psychiatry: General",5,"AAMC","Academic","Public","Instructor","PhD","2021-2022",67410,{"$f":"(((AAMC_Raw_Data_for_FY22[[#This Row],[Median]]-AAMC_Raw_Data_for_FY22[[#This Row],[25th]])/25)*5) + AAMC_Raw_Data_for_FY22[[#This Row],[25th]]","v":69261.600000000006},{"$f":"(((AAMC_Raw_Data_for_FY22[[#This Row],[Median]]-AAMC_Raw_Data_for_FY22[[#This Row],[25th]])/25)*10) + AAMC_Raw_Data_for_FY22[[#This Row],[25th]]","v":71113.2},{"$f":"(((AAMC_Raw_Data_for_FY22[[#This Row],[Median]]-AAMC_Raw_Data_for_FY22[[#This Row],[25th]])/25)*15) + AAMC_Raw_Data_for_FY22[[#This Row],[25th]]","v":72964.800000000003},{"$f":"(((AAMC_Raw_Data_for_FY22[[#This Row],[Median]]-AAMC_Raw_Data_for_FY22[[#This Row],[25th]])/25)*20) + AAMC_Raw_Data_for_FY22[[#This Row],[25th]]","v":74816.399999999994},76668,{"$f":"(((AAMC_Raw_Data_for_FY22[[#This Row],[75th]]-AAMC_Raw_Data_for_FY22[[#This Row],[Median]])/25)*5) + AAMC_Raw_Data_for_FY22[[#This Row],[Median]]","v":79599.399999999994},{"$f":"(((AAMC_Raw_Data_for_FY22[[#This Row],[75th]]-AAMC_Raw_Data_for_FY22[[#This Row],[Median]])/25)*10) + AAMC_Raw_Data_for_FY22[[#This Row],[Median]]","v":82530.8},{"$f":"(((AAMC_Raw_Data_for_FY22[[#This Row],[75th]]-AAMC_Raw_Data_for_FY22[[#This Row],[Median]])/25)*15) + AAMC_Raw_Data_for_FY22[[#This Row],[Median]]","v":85462.2},{"$f":"(((AAMC_Raw_Data_for_FY22[[#This Row],[75th]]-AAMC_Raw_Data_for_FY22[[#This Row],[Median]])/25)*20) + AAMC_Raw_Data_for_FY22[[#This Row],[Median]]","v":88393.600000000006},91325,{"$f":"(((AAMC_Raw_Data_for_FY22[[#This Row],[75th]]-AAMC_Raw_Data_for_FY22[[#This Row],[Median]])/25)*30) + AAMC_Raw_Data_for_FY22[[#This Row],[Median]]","v":94256.4},{"$f":"(((AAMC_Raw_Data_for_FY22[[#This Row],[75th]]-AAMC_Raw_Data_for_FY22[[#This Row],[Median]])/25)*35) + AAMC_Raw_Data_for_FY22[[#This Row],[Median]]","v":97187.8},{"$f":"(((AAMC_Raw_Data_for_FY22[[#This Row],[75th]]-AAMC_Raw_Data_for_FY22[[#This Row],[Median]])/25)*40) + AAMC_Raw_Data_for_FY22[[#This Row],[Median]]","v":100119.2}]
[{"$f":"AAMC_Raw_Data_for_FY22[[#This Row],[Source]]&AAMC_Raw_Data_for_FY22[[#This Row],[Type]]&AAMC_Raw_Data_for_FY22[[#This Row],[School Subset]]&AAMC_Raw_Data_for_FY22[[#This Row],[Rank]]&AAMC_Raw_Data_for_FY22[[#This Row],[Degree]]&AAMC_Raw_Data_for_FY22[[#This Row],[Department / Specialty]]&\"L\"","v":"AAMCAcademicPublicAssistantPhDPsychiatry: GeneralL"},"Psychiatry: General",4,"AAMC","Academic","Public","Assistant","PhD","2021-2022",101827,{"$f":"(((AAMC_Raw_Data_for_FY22[[#This Row],[Median]]-AAMC_Raw_Data_for_FY22[[#This Row],[25th]])/25)*5) + AAMC_Raw_Data_for_FY22[[#This Row],[25th]]","v":103715},{"$f":"(((AAMC_Raw_Data_for_FY22[[#This Row],[Median]]-AAMC_Raw_Data_for_FY22[[#This Row],[25th]])/25)*10) + AAMC_Raw_Data_for_FY22[[#This Row],[25th]]","v":105603},{"$f":"(((AAMC_Raw_Data_for_FY22[[#This Row],[Median]]-AAMC_Raw_Data_for_FY22[[#This Row],[25th]])/25)*15) + AAMC_Raw_Data_for_FY22[[#This Row],[25th]]","v":107491},{"$f":"(((AAMC_Raw_Data_for_FY22[[#This Row],[Median]]-AAMC_Raw_Data_for_FY22[[#This Row],[25th]])/25)*20) + AAMC_Raw_Data_for_FY22[[#This Row],[25th]]","v":109379},111267,{"$f":"(((AAMC_Raw_Data_for_FY22[[#This Row],[75th]]-AAMC_Raw_Data_for_FY22[[#This Row],[Median]])/25)*5) + AAMC_Raw_Data_for_FY22[[#This Row],[Median]]","v":113916.6},{"$f":"(((AAMC_Raw_Data_for_FY22[[#This Row],[75th]]-AAMC_Raw_Data_for_FY22[[#This Row],[Median]])/25)*10) + AAMC_Raw_Data_for_FY22[[#This Row],[Median]]","v":116566.2},{"$f":"(((AAMC_Raw_Data_for_FY22[[#This Row],[75th]]-AAMC_Raw_Data_for_FY22[[#This Row],[Median]])/25)*15) + AAMC_Raw_Data_for_FY22[[#This Row],[Median]]","v":119215.8},{"$f":"(((AAMC_Raw_Data_for_FY22[[#This Row],[75th]]-AAMC_Raw_Data_for_FY22[[#This Row],[Median]])/25)*20) + AAMC_Raw_Data_for_FY22[[#This Row],[Median]]","v":121865.4},124515,{"$f":"(((AAMC_Raw_Data_for_FY22[[#This Row],[75th]]-AAMC_Raw_Data_for_FY22[[#This Row],[Median]])/25)*30) + AAMC_Raw_Data_for_FY22[[#This Row],[Median]]","v":127164.6},{"$f":"(((AAMC_Raw_Data_for_FY22[[#This Row],[75th]]-AAMC_Raw_Data_for_FY22[[#This Row],[Median]])/25)*35) + AAMC_Raw_Data_for_FY22[[#This Row],[Median]]","v":129814.2},{"$f":"(((AAMC_Raw_Data_for_FY22[[#This Row],[75th]]-AAMC_Raw_Data_for_FY22[[#This Row],[Median]])/25)*40) + AAMC_Raw_Data_for_FY22[[#This Row],[Median]]","v":132463.79999999999}]
[{"$f":"AAMC_Raw_Data_for_FY22[[#This Row],[Source]]&AAMC_Raw_Data_for_FY22[[#This Row],[Type]]&AAMC_Raw_Data_for_FY22[[#This Row],[School Subset]]&AAMC_Raw_Data_for_FY22[[#This Row],[Rank]]&AAMC_Raw_Data_for_FY22[[#This Row],[Degree]]&AAMC_Raw_Data_for_FY22[[#This Row],[Department / Specialty]]&\"L\"","v":"AAMCAcademicPublicAssociatePhDPsychiatry: GeneralL"},"Psychiatry: General",3,"AAMC","Academic","Public","Associate","PhD","2021-2022",120883,{"$f":"(((AAMC_Raw_Data_for_FY22[[#This Row],[Median]]-AAMC_Raw_Data_for_FY22[[#This Row],[25th]])/25)*5) + AAMC_Raw_Data_for_FY22[[#This Row],[25th]]","v":124694.8},{"$f":"(((AAMC_Raw_Data_for_FY22[[#This Row],[Median]]-AAMC_Raw_Data_for_FY22[[#This Row],[25th]])/25)*10) + AAMC_Raw_Data_for_FY22[[#This Row],[25th]]","v":128506.6},{"$f":"(((AAMC_Raw_Data_for_FY22[[#This Row],[Median]]-AAMC_Raw_Data_for_FY22[[#This Row],[25th]])/25)*15) + AAMC_Raw_Data_for_FY22[[#This Row],[25th]]","v":132318.39999999999},{"$f":"(((AAMC_Raw_Data_for_FY22[[#This Row],[Median]]-AAMC_Raw_Data_for_FY22[[#This Row],[25th]])/25)*20) + AAMC_Raw_Data_for_FY22[[#This Row],[25th]]","v":136130.20000000001},139942,{"$f":"(((AAMC_Raw_Data_for_FY22[[#This Row],[75th]]-AAMC_Raw_Data_for_FY22[[#This Row],[Median]])/25)*5) + AAMC_Raw_Data_for_FY22[[#This Row],[Median]]","v":144303},{"$f":"(((AAMC_Raw_Data_for_FY22[[#This Row],[75th]]-AAMC_Raw_Data_for_FY22[[#This Row],[Median]])/25)*10) + AAMC_Raw_Data_for_FY22[[#This Row],[Median]]","v":148664},{"$f":"(((AAMC_Raw_Data_for_FY22[[#This Row],[75th]]-AAMC_Raw_Data_for_FY22[[#This Row],[Median]])/25)*15) + AAMC_Raw_Data_for_FY22[[#This Row],[Median]]","v":153025},{"$f":"(((AAMC_Raw_Data_for_FY22[[#This Row],[75th]]-AAMC_Raw_Data_for_FY22[[#This Row],[Median]])/25)*20) + AAMC_Raw_Data_for_FY22[[#This Row],[Median]]","v":157386},161747,{"$f":"(((AAMC_Raw_Data_for_FY22[[#This Row],[75th]]-AAMC_Raw_Data_for_FY22[[#This Row],[Median]])/25)*30) + AAMC_Raw_Data_for_FY22[[#This Row],[Median]]","v":166108},{"$f":"(((AAMC_Raw_Data_for_FY22[[#This Row],[75th]]-AAMC_Raw_Data_for_FY22[[#This Row],[Median]])/25)*35) + AAMC_Raw_Data_for_FY22[[#This Row],[Median]]","v":170469},{"$f":"(((AAMC_Raw_Data_for_FY22[[#This Row],[75th]]-AAMC_Raw_Data_for_FY22[[#This Row],[Median]])/25)*40) + AAMC_Raw_Data_for_FY22[[#This Row],[Median]]","v":174830}]
[{"$f":"AAMC_Raw_Data_for_FY22[[#This Row],[Source]]&AAMC_Raw_Data_for_FY22[[#This Row],[Type]]&AAMC_Raw_Data_for_FY22[[#This Row],[School Subset]]&AAMC_Raw_Data_for_FY22[[#This Row],[Rank]]&AAMC_Raw_Data_for_FY22[[#This Row],[Degree]]&AAMC_Raw_Data_for_FY22[[#This Row],[Department / Specialty]]&\"L\"","v":"AAMCAcademicPublicProfessorPhDPsychiatry: GeneralL"},"Psychiatry: General",2,"AAMC","Academic","Public","Professor","PhD","2021-2022",179200,{"$f":"(((AAMC_Raw_Data_for_FY22[[#This Row],[Median]]-AAMC_Raw_Data_for_FY22[[#This Row],[25th]])/25)*5) + AAMC_Raw_Data_for_FY22[[#This Row],[25th]]","v":185069.6},{"$f":"(((AAMC_Raw_Data_for_FY22[[#This Row],[Median]]-AAMC_Raw_Data_for_FY22[[#This Row],[25th]])/25)*10) + AAMC_Raw_Data_for_FY22[[#This Row],[25th]]","v":190939.2},{"$f":"(((AAMC_Raw_Data_for_FY22[[#This Row],[Median]]-AAMC_Raw_Data_for_FY22[[#This Row],[25th]])/25)*15) + AAMC_Raw_Data_for_FY22[[#This Row],[25th]]","v":196808.8},{"$f":"(((AAMC_Raw_Data_for_FY22[[#This Row],[Median]]-AAMC_Raw_Data_for_FY22[[#This Row],[25th]])/25)*20) + AAMC_Raw_Data_for_FY22[[#This Row],[25th]]","v":202678.39999999999},208548,{"$f":"(((AAMC_Raw_Data_for_FY22[[#This Row],[75th]]-AAMC_Raw_Data_for_FY22[[#This Row],[Median]])/25)*5) + AAMC_Raw_Data_for_FY22[[#This Row],[Median]]","v":219033.4},{"$f":"(((AAMC_Raw_Data_for_FY22[[#This Row],[75th]]-AAMC_Raw_Data_for_FY22[[#This Row],[Median]])/25)*10) + AAMC_Raw_Data_for_FY22[[#This Row],[Median]]","v":229518.8},{"$f":"(((AAMC_Raw_Data_for_FY22[[#This Row],[75th]]-AAMC_Raw_Data_for_FY22[[#This Row],[Median]])/25)*15) + AAMC_Raw_Data_for_FY22[[#This Row],[Median]]","v":240004.2},{"$f":"(((AAMC_Raw_Data_for_FY22[[#This Row],[75th]]-AAMC_Raw_Data_for_FY22[[#This Row],[Median]])/25)*20) + AAMC_Raw_Data_for_FY22[[#This Row],[Median]]","v":250489.60000000001},260975,{"$f":"(((AAMC_Raw_Data_for_FY22[[#This Row],[75th]]-AAMC_Raw_Data_for_FY22[[#This Row],[Median]])/25)*30) + AAMC_Raw_Data_for_FY22[[#This Row],[Median]]","v":271460.40000000002},{"$f":"(((AAMC_Raw_Data_for_FY22[[#This Row],[75th]]-AAMC_Raw_Data_for_FY22[[#This Row],[Median]])/25)*35) + AAMC_Raw_Data_for_FY22[[#This Row],[Median]]","v":281945.8},{"$f":"(((AAMC_Raw_Data_for_FY22[[#This Row],[75th]]-AAMC_Raw_Data_for_FY22[[#This Row],[Median]])/25)*40) + AAMC_Raw_Data_for_FY22[[#This Row],[Median]]","v":292431.2}]
[{"$f":"AAMC_Raw_Data_for_FY22[[#This Row],[Source]]&AAMC_Raw_Data_for_FY22[[#This Row],[Type]]&AAMC_Raw_Data_for_FY22[[#This Row],[School Subset]]&AAMC_Raw_Data_for_FY22[[#This Row],[Rank]]&AAMC_Raw_Data_for_FY22[[#This Row],[Degree]]&AAMC_Raw_Data_for_FY22[[#This Row],[Department / Specialty]]&\"L\"","v":"AAMCAcademicPublicChiefPhDPsychiatry: GeneralL"},"Psychiatry: General",6,"AAMC","Academic","Public","Chief","PhD","2021-2022",188168,{"$f":"(((AAMC_Raw_Data_for_FY22[[#This Row],[Median]]-AAMC_Raw_Data_for_FY22[[#This Row],[25th]])/25)*5) + AAMC_Raw_Data_for_FY22[[#This Row],[25th]]","v":199874.2},{"$f":"(((AAMC_Raw_Data_for_FY22[[#This Row],[Median]]-AAMC_Raw_Data_for_FY22[[#This Row],[25th]])/25)*10) + AAMC_Raw_Data_for_FY22[[#This Row],[25th]]","v":211580.4},{"$f":"(((AAMC_Raw_Data_for_FY22[[#This Row],[Median]]-AAMC_Raw_Data_for_FY22[[#This Row],[25th]])/25)*15) + AAMC_Raw_Data_for_FY22[[#This Row],[25th]]","v":223286.6},{"$f":"(((AAMC_Raw_Data_for_FY22[[#This Row],[Median]]-AAMC_Raw_Data_for_FY22[[#This Row],[25th]])/25)*20) + AAMC_Raw_Data_for_FY22[[#This Row],[25th]]","v":234992.8},246699,{"$f":"(((AAMC_Raw_Data_for_FY22[[#This Row],[75th]]-AAMC_Raw_Data_for_FY22[[#This Row],[Median]])/25)*5) + AAMC_Raw_Data_for_FY22[[#This Row],[Median]]","v":250015.2},{"$f":"(((AAMC_Raw_Data_for_FY22[[#This Row],[75th]]-AAMC_Raw_Data_for_FY22[[#This Row],[Median]])/25)*10) + AAMC_Raw_Data_for_FY22[[#This Row],[Median]]","v":253331.4},{"$f":"(((AAMC_Raw_Data_for_FY22[[#This Row],[75th]]-AAMC_Raw_Data_for_FY22[[#This Row],[Median]])/25)*15) + AAMC_Raw_Data_for_FY22[[#This Row],[Median]]","v":256647.6},{"$f":"(((AAMC_Raw_Data_for_FY22[[#This Row],[75th]]-AAMC_Raw_Data_for_FY22[[#This Row],[Median]])/25)*20) + AAMC_Raw_Data_for_FY22[[#This Row],[Median]]","v":259963.8},263280,{"$f":"(((AAMC_Raw_Data_for_FY22[[#This Row],[75th]]-AAMC_Raw_Data_for_FY22[[#This Row],[Median]])/25)*30) + AAMC_Raw_Data_for_FY22[[#This Row],[Median]]","v":266596.2},{"$f":"(((AAMC_Raw_Data_for_FY22[[#This Row],[75th]]-AAMC_Raw_Data_for_FY22[[#This Row],[Median]])/25)*35) + AAMC_Raw_Data_for_FY22[[#This Row],[Median]]","v":269912.40000000002},{"$f":"(((AAMC_Raw_Data_for_FY22[[#This Row],[75th]]-AAMC_Raw_Data_for_FY22[[#This Row],[Median]])/25)*40) + AAMC_Raw_Data_for_FY22[[#This Row],[Median]]","v":273228.59999999998}]
[{"$f":"AAMC_Raw_Data_for_FY22[[#This Row],[Source]]&AAMC_Raw_Data_for_FY22[[#This Row],[Type]]&AAMC_Raw_Data_for_FY22[[#This Row],[School Subset]]&AAMC_Raw_Data_for_FY22[[#This Row],[Rank]]&AAMC_Raw_Data_for_FY22[[#This Row],[Degree]]&AAMC_Raw_Data_for_FY22[[#This Row],[Department / Specialty]]&\"L\"","v":"AAMCAcademicPublicChairPhDPsychiatry: GeneralL"},"Psychiatry: General",1,"AAMC","Academic","Public","Chair","PhD","2021-2022",null,{"$f":"(((AAMC_Raw_Data_for_FY22[[#This Row],[Median]]-AAMC_Raw_Data_for_FY22[[#This Row],[25th]])/25)*5) + AAMC_Raw_Data_for_FY22[[#This Row],[25th]]","v":0},{"$f":"(((AAMC_Raw_Data_for_FY22[[#This Row],[Median]]-AAMC_Raw_Data_for_FY22[[#This Row],[25th]])/25)*10) + AAMC_Raw_Data_for_FY22[[#This Row],[25th]]","v":0},{"$f":"(((AAMC_Raw_Data_for_FY22[[#This Row],[Median]]-AAMC_Raw_Data_for_FY22[[#This Row],[25th]])/25)*15) + AAMC_Raw_Data_for_FY22[[#This Row],[25th]]","v":0},{"$f":"(((AAMC_Raw_Data_for_FY22[[#This Row],[Median]]-AAMC_Raw_Data_for_FY22[[#This Row],[25th]])/25)*20) + AAMC_Raw_Data_for_FY22[[#This Row],[25th]]","v":0},null,{"$f":"(((AAMC_Raw_Data_for_FY22[[#This Row],[75th]]-AAMC_Raw_Data_for_FY22[[#This Row],[Median]])/25)*5) + AAMC_Raw_Data_for_FY22[[#This Row],[Median]]","v":0},{"$f":"(((AAMC_Raw_Data_for_FY22[[#This Row],[75th]]-AAMC_Raw_Data_for_FY22[[#This Row],[Median]])/25)*10) + AAMC_Raw_Data_for_FY22[[#This Row],[Median]]","v":0},{"$f":"(((AAMC_Raw_Data_for_FY22[[#This Row],[75th]]-AAMC_Raw_Data_for_FY22[[#This Row],[Median]])/25)*15) + AAMC_Raw_Data_for_FY22[[#This Row],[Median]]","v":0},{"$f":"(((AAMC_Raw_Data_for_FY22[[#This Row],[75th]]-AAMC_Raw_Data_for_FY22[[#This Row],[Median]])/25)*20) + AAMC_Raw_Data_for_FY22[[#This Row],[Median]]","v":0},null,{"$f":"(((AAMC_Raw_Data_for_FY22[[#This Row],[75th]]-AAMC_Raw_Data_for_FY22[[#This Row],[Median]])/25)*30) + AAMC_Raw_Data_for_FY22[[#This Row],[Median]]","v":0},{"$f":"(((AAMC_Raw_Data_for_FY22[[#This Row],[75th]]-AAMC_Raw_Data_for_FY22[[#This Row],[Median]])/25)*35) + AAMC_Raw_Data_for_FY22[[#This Row],[Median]]","v":0},{"$f":"(((AAMC_Raw_Data_for_FY22[[#This Row],[75th]]-AAMC_Raw_Data_for_FY22[[#This Row],[Median]])/25)*40) + AAMC_Raw_Data_for_FY22[[#This Row],[Median]]","v":0}]
[{"$f":"AAMC_Raw_Data_for_FY22[[#This Row],[Source]]&AAMC_Raw_Data_for_FY22[[#This Row],[Type]]&AAMC_Raw_Data_for_FY22[[#This Row],[School Subset]]&AAMC_Raw_Data_for_FY22[[#This Row],[Rank]]&AAMC_Raw_Data_for_FY22[[#This Row],[Degree]]&AAMC_Raw_Data_for_FY22[[#This Row],[Department / Specialty]]&\"L\"","v":"AAMCAcademicPublicInstructorPhDPsychiatry: PsychologyL"},"Psychiatry: Psychology",5,"AAMC","Academic","Public","Instructor","PhD","2021-2022",90613,{"$f":"(((AAMC_Raw_Data_for_FY22[[#This Row],[Median]]-AAMC_Raw_Data_for_FY22[[#This Row],[25th]])/25)*5) + AAMC_Raw_Data_for_FY22[[#This Row],[25th]]","v":91414},{"$f":"(((AAMC_Raw_Data_for_FY22[[#This Row],[Median]]-AAMC_Raw_Data_for_FY22[[#This Row],[25th]])/25)*10) + AAMC_Raw_Data_for_FY22[[#This Row],[25th]]","v":92215},{"$f":"(((AAMC_Raw_Data_for_FY22[[#This Row],[Median]]-AAMC_Raw_Data_for_FY22[[#This Row],[25th]])/25)*15) + AAMC_Raw_Data_for_FY22[[#This Row],[25th]]","v":93016},{"$f":"(((AAMC_Raw_Data_for_FY22[[#This Row],[Median]]-AAMC_Raw_Data_for_FY22[[#This Row],[25th]])/25)*20) + AAMC_Raw_Data_for_FY22[[#This Row],[25th]]","v":93817},94618,{"$f":"(((AAMC_Raw_Data_for_FY22[[#This Row],[75th]]-AAMC_Raw_Data_for_FY22[[#This Row],[Median]])/25)*5) + AAMC_Raw_Data_for_FY22[[#This Row],[Median]]","v":96297},{"$f":"(((AAMC_Raw_Data_for_FY22[[#This Row],[75th]]-AAMC_Raw_Data_for_FY22[[#This Row],[Median]])/25)*10) + AAMC_Raw_Data_for_FY22[[#This Row],[Median]]","v":97976},{"$f":"(((AAMC_Raw_Data_for_FY22[[#This Row],[75th]]-AAMC_Raw_Data_for_FY22[[#This Row],[Median]])/25)*15) + AAMC_Raw_Data_for_FY22[[#This Row],[Median]]","v":99655},{"$f":"(((AAMC_Raw_Data_for_FY22[[#This Row],[75th]]-AAMC_Raw_Data_for_FY22[[#This Row],[Median]])/25)*20) + AAMC_Raw_Data_for_FY22[[#This Row],[Median]]","v":101334},103013,{"$f":"(((AAMC_Raw_Data_for_FY22[[#This Row],[75th]]-AAMC_Raw_Data_for_FY22[[#This Row],[Median]])/25)*30) + AAMC_Raw_Data_for_FY22[[#This Row],[Median]]","v":104692},{"$f":"(((AAMC_Raw_Data_for_FY22[[#This Row],[75th]]-AAMC_Raw_Data_for_FY22[[#This Row],[Median]])/25)*35) + AAMC_Raw_Data_for_FY22[[#This Row],[Median]]","v":106371},{"$f":"(((AAMC_Raw_Data_for_FY22[[#This Row],[75th]]-AAMC_Raw_Data_for_FY22[[#This Row],[Median]])/25)*40) + AAMC_Raw_Data_for_FY22[[#This Row],[Median]]","v":108050}]
[{"$f":"AAMC_Raw_Data_for_FY22[[#This Row],[Source]]&AAMC_Raw_Data_for_FY22[[#This Row],[Type]]&AAMC_Raw_Data_for_FY22[[#This Row],[School Subset]]&AAMC_Raw_Data_for_FY22[[#This Row],[Rank]]&AAMC_Raw_Data_for_FY22[[#This Row],[Degree]]&AAMC_Raw_Data_for_FY22[[#This Row],[Department / Specialty]]&\"L\"","v":"AAMCAcademicPublicAssistantPhDPsychiatry: PsychologyL"},"Psychiatry: Psychology",4,"AAMC","Academic","Public","Assistant","PhD","2021-2022",100650,{"$f":"(((AAMC_Raw_Data_for_FY22[[#This Row],[Median]]-AAMC_Raw_Data_for_FY22[[#This Row],[25th]])/25)*5) + AAMC_Raw_Data_for_FY22[[#This Row],[25th]]","v":103066.6},{"$f":"(((AAMC_Raw_Data_for_FY22[[#This Row],[Median]]-AAMC_Raw_Data_for_FY22[[#This Row],[25th]])/25)*10) + AAMC_Raw_Data_for_FY22[[#This Row],[25th]]","v":105483.2},{"$f":"(((AAMC_Raw_Data_for_FY22[[#This Row],[Median]]-AAMC_Raw_Data_for_FY22[[#This Row],[25th]])/25)*15) + AAMC_Raw_Data_for_FY22[[#This Row],[25th]]","v":107899.8},{"$f":"(((AAMC_Raw_Data_for_FY22[[#This Row],[Median]]-AAMC_Raw_Data_for_FY22[[#This Row],[25th]])/25)*20) + AAMC_Raw_Data_for_FY22[[#This Row],[25th]]","v":110316.4},112733,{"$f":"(((AAMC_Raw_Data_for_FY22[[#This Row],[75th]]-AAMC_Raw_Data_for_FY22[[#This Row],[Median]])/25)*5) + AAMC_Raw_Data_for_FY22[[#This Row],[Median]]","v":115453.8},{"$f":"(((AAMC_Raw_Data_for_FY22[[#This Row],[75th]]-AAMC_Raw_Data_for_FY22[[#This Row],[Median]])/25)*10) + AAMC_Raw_Data_for_FY22[[#This Row],[Median]]","v":118174.6},{"$f":"(((AAMC_Raw_Data_for_FY22[[#This Row],[75th]]-AAMC_Raw_Data_for_FY22[[#This Row],[Median]])/25)*15) + AAMC_Raw_Data_for_FY22[[#This Row],[Median]]","v":120895.4},{"$f":"(((AAMC_Raw_Data_for_FY22[[#This Row],[75th]]-AAMC_Raw_Data_for_FY22[[#This Row],[Median]])/25)*20) + AAMC_Raw_Data_for_FY22[[#This Row],[Median]]","v":123616.2},126337,{"$f":"(((AAMC_Raw_Data_for_FY22[[#This Row],[75th]]-AAMC_Raw_Data_for_FY22[[#This Row],[Median]])/25)*30) + AAMC_Raw_Data_for_FY22[[#This Row],[Median]]","v":129057.8},{"$f":"(((AAMC_Raw_Data_for_FY22[[#This Row],[75th]]-AAMC_Raw_Data_for_FY22[[#This Row],[Median]])/25)*35) + AAMC_Raw_Data_for_FY22[[#This Row],[Median]]","v":131778.6},{"$f":"(((AAMC_Raw_Data_for_FY22[[#This Row],[75th]]-AAMC_Raw_Data_for_FY22[[#This Row],[Median]])/25)*40) + AAMC_Raw_Data_for_FY22[[#This Row],[Median]]","v":134499.4}]
[{"$f":"AAMC_Raw_Data_for_FY22[[#This Row],[Source]]&AAMC_Raw_Data_for_FY22[[#This Row],[Type]]&AAMC_Raw_Data_for_FY22[[#This Row],[School Subset]]&AAMC_Raw_Data_for_FY22[[#This Row],[Rank]]&AAMC_Raw_Data_for_FY22[[#This Row],[Degree]]&AAMC_Raw_Data_for_FY22[[#This Row],[Department / Specialty]]&\"L\"","v":"AAMCAcademicPublicAssociatePhDPsychiatry: PsychologyL"},"Psychiatry: Psychology",3,"AAMC","Academic","Public","Associate","PhD","2021-2022",126870,{"$f":"(((AAMC_Raw_Data_for_FY22[[#This Row],[Median]]-AAMC_Raw_Data_for_FY22[[#This Row],[25th]])/25)*5) + AAMC_Raw_Data_for_FY22[[#This Row],[25th]]","v":129338.4},{"$f":"(((AAMC_Raw_Data_for_FY22[[#This Row],[Median]]-AAMC_Raw_Data_for_FY22[[#This Row],[25th]])/25)*10) + AAMC_Raw_Data_for_FY22[[#This Row],[25th]]","v":131806.79999999999},{"$f":"(((AAMC_Raw_Data_for_FY22[[#This Row],[Median]]-AAMC_Raw_Data_for_FY22[[#This Row],[25th]])/25)*15) + AAMC_Raw_Data_for_FY22[[#This Row],[25th]]","v":134275.20000000001},{"$f":"(((AAMC_Raw_Data_for_FY22[[#This Row],[Median]]-AAMC_Raw_Data_for_FY22[[#This Row],[25th]])/25)*20) + AAMC_Raw_Data_for_FY22[[#This Row],[25th]]","v":136743.6},139212,{"$f":"(((AAMC_Raw_Data_for_FY22[[#This Row],[75th]]-AAMC_Raw_Data_for_FY22[[#This Row],[Median]])/25)*5) + AAMC_Raw_Data_for_FY22[[#This Row],[Median]]","v":143422},{"$f":"(((AAMC_Raw_Data_for_FY22[[#This Row],[75th]]-AAMC_Raw_Data_for_FY22[[#This Row],[Median]])/25)*10) + AAMC_Raw_Data_for_FY22[[#This Row],[Median]]","v":147632},{"$f":"(((AAMC_Raw_Data_for_FY22[[#This Row],[75th]]-AAMC_Raw_Data_for_FY22[[#This Row],[Median]])/25)*15) + AAMC_Raw_Data_for_FY22[[#This Row],[Median]]","v":151842},{"$f":"(((AAMC_Raw_Data_for_FY22[[#This Row],[75th]]-AAMC_Raw_Data_for_FY22[[#This Row],[Median]])/25)*20) + AAMC_Raw_Data_for_FY22[[#This Row],[Median]]","v":156052},160262,{"$f":"(((AAMC_Raw_Data_for_FY22[[#This Row],[75th]]-AAMC_Raw_Data_for_FY22[[#This Row],[Median]])/25)*30) + AAMC_Raw_Data_for_FY22[[#This Row],[Median]]","v":164472},{"$f":"(((AAMC_Raw_Data_for_FY22[[#This Row],[75th]]-AAMC_Raw_Data_for_FY22[[#This Row],[Median]])/25)*35) + AAMC_Raw_Data_for_FY22[[#This Row],[Median]]","v":168682},{"$f":"(((AAMC_Raw_Data_for_FY22[[#This Row],[75th]]-AAMC_Raw_Data_for_FY22[[#This Row],[Median]])/25)*40) + AAMC_Raw_Data_for_FY22[[#This Row],[Median]]","v":172892}]
[{"$f":"AAMC_Raw_Data_for_FY22[[#This Row],[Source]]&AAMC_Raw_Data_for_FY22[[#This Row],[Type]]&AAMC_Raw_Data_for_FY22[[#This Row],[School Subset]]&AAMC_Raw_Data_for_FY22[[#This Row],[Rank]]&AAMC_Raw_Data_for_FY22[[#This Row],[Degree]]&AAMC_Raw_Data_for_FY22[[#This Row],[Department / Specialty]]&\"L\"","v":"AAMCAcademicPublicProfessorPhDPsychiatry: PsychologyL"},"Psychiatry: Psychology",2,"AAMC","Academic","Public","Professor","PhD","2021-2022",169905,{"$f":"(((AAMC_Raw_Data_for_FY22[[#This Row],[Median]]-AAMC_Raw_Data_for_FY22[[#This Row],[25th]])/25)*5) + AAMC_Raw_Data_for_FY22[[#This Row],[25th]]","v":175760.6},{"$f":"(((AAMC_Raw_Data_for_FY22[[#This Row],[Median]]-AAMC_Raw_Data_for_FY22[[#This Row],[25th]])/25)*10) + AAMC_Raw_Data_for_FY22[[#This Row],[25th]]","v":181616.2},{"$f":"(((AAMC_Raw_Data_for_FY22[[#This Row],[Median]]-AAMC_Raw_Data_for_FY22[[#This Row],[25th]])/25)*15) + AAMC_Raw_Data_for_FY22[[#This Row],[25th]]","v":187471.8},{"$f":"(((AAMC_Raw_Data_for_FY22[[#This Row],[Median]]-AAMC_Raw_Data_for_FY22[[#This Row],[25th]])/25)*20) + AAMC_Raw_Data_for_FY22[[#This Row],[25th]]","v":193327.4},199183,{"$f":"(((AAMC_Raw_Data_for_FY22[[#This Row],[75th]]-AAMC_Raw_Data_for_FY22[[#This Row],[Median]])/25)*5) + AAMC_Raw_Data_for_FY22[[#This Row],[Median]]","v":205066.2},{"$f":"(((AAMC_Raw_Data_for_FY22[[#This Row],[75th]]-AAMC_Raw_Data_for_FY22[[#This Row],[Median]])/25)*10) + AAMC_Raw_Data_for_FY22[[#This Row],[Median]]","v":210949.4},{"$f":"(((AAMC_Raw_Data_for_FY22[[#This Row],[75th]]-AAMC_Raw_Data_for_FY22[[#This Row],[Median]])/25)*15) + AAMC_Raw_Data_for_FY22[[#This Row],[Median]]","v":216832.6},{"$f":"(((AAMC_Raw_Data_for_FY22[[#This Row],[75th]]-AAMC_Raw_Data_for_FY22[[#This Row],[Median]])/25)*20) + AAMC_Raw_Data_for_FY22[[#This Row],[Median]]","v":222715.8},228599,{"$f":"(((AAMC_Raw_Data_for_FY22[[#This Row],[75th]]-AAMC_Raw_Data_for_FY22[[#This Row],[Median]])/25)*30) + AAMC_Raw_Data_for_FY22[[#This Row],[Median]]","v":234482.2},{"$f":"(((AAMC_Raw_Data_for_FY22[[#This Row],[75th]]-AAMC_Raw_Data_for_FY22[[#This Row],[Median]])/25)*35) + AAMC_Raw_Data_for_FY22[[#This Row],[Median]]","v":240365.4},{"$f":"(((AAMC_Raw_Data_for_FY22[[#This Row],[75th]]-AAMC_Raw_Data_for_FY22[[#This Row],[Median]])/25)*40) + AAMC_Raw_Data_for_FY22[[#This Row],[Median]]","v":246248.6}]
[{"$f":"AAMC_Raw_Data_for_FY22[[#This Row],[Source]]&AAMC_Raw_Data_for_FY22[[#This Row],[Type]]&AAMC_Raw_Data_for_FY22[[#This Row],[School Subset]]&AAMC_Raw_Data_for_FY22[[#This Row],[Rank]]&AAMC_Raw_Data_for_FY22[[#This Row],[Degree]]&AAMC_Raw_Data_for_FY22[[#This Row],[Department / Specialty]]&\"L\"","v":"AAMCAcademicPublicChiefPhDPsychiatry: PsychologyL"},"Psychiatry: Psychology",6,"AAMC","Academic","Public","Chief","PhD","2021-2022",175188,{"$f":"(((AAMC_Raw_Data_for_FY22[[#This Row],[Median]]-AAMC_Raw_Data_for_FY22[[#This Row],[25th]])/25)*5) + AAMC_Raw_Data_for_FY22[[#This Row],[25th]]","v":179857.6},{"$f":"(((AAMC_Raw_Data_for_FY22[[#This Row],[Median]]-AAMC_Raw_Data_for_FY22[[#This Row],[25th]])/25)*10) + AAMC_Raw_Data_for_FY22[[#This Row],[25th]]","v":184527.2},{"$f":"(((AAMC_Raw_Data_for_FY22[[#This Row],[Median]]-AAMC_Raw_Data_for_FY22[[#This Row],[25th]])/25)*15) + AAMC_Raw_Data_for_FY22[[#This Row],[25th]]","v":189196.79999999999},{"$f":"(((AAMC_Raw_Data_for_FY22[[#This Row],[Median]]-AAMC_Raw_Data_for_FY22[[#This Row],[25th]])/25)*20) + AAMC_Raw_Data_for_FY22[[#This Row],[25th]]","v":193866.4},198536,{"$f":"(((AAMC_Raw_Data_for_FY22[[#This Row],[75th]]-AAMC_Raw_Data_for_FY22[[#This Row],[Median]])/25)*5) + AAMC_Raw_Data_for_FY22[[#This Row],[Median]]","v":202493.8},{"$f":"(((AAMC_Raw_Data_for_FY22[[#This Row],[75th]]-AAMC_Raw_Data_for_FY22[[#This Row],[Median]])/25)*10) + AAMC_Raw_Data_for_FY22[[#This Row],[Median]]","v":206451.6},{"$f":"(((AAMC_Raw_Data_for_FY22[[#This Row],[75th]]-AAMC_Raw_Data_for_FY22[[#This Row],[Median]])/25)*15) + AAMC_Raw_Data_for_FY22[[#This Row],[Median]]","v":210409.4},{"$f":"(((AAMC_Raw_Data_for_FY22[[#This Row],[75th]]-AAMC_Raw_Data_for_FY22[[#This Row],[Median]])/25)*20) + AAMC_Raw_Data_for_FY22[[#This Row],[Median]]","v":214367.2},218325,{"$f":"(((AAMC_Raw_Data_for_FY22[[#This Row],[75th]]-AAMC_Raw_Data_for_FY22[[#This Row],[Median]])/25)*30) + AAMC_Raw_Data_for_FY22[[#This Row],[Median]]","v":222282.8},{"$f":"(((AAMC_Raw_Data_for_FY22[[#This Row],[75th]]-AAMC_Raw_Data_for_FY22[[#This Row],[Median]])/25)*35) + AAMC_Raw_Data_for_FY22[[#This Row],[Median]]","v":226240.6},{"$f":"(((AAMC_Raw_Data_for_FY22[[#This Row],[75th]]-AAMC_Raw_Data_for_FY22[[#This Row],[Median]])/25)*40) + AAMC_Raw_Data_for_FY22[[#This Row],[Median]]","v":230198.39999999999}]
[{"$f":"AAMC_Raw_Data_for_FY22[[#This Row],[Source]]&AAMC_Raw_Data_for_FY22[[#This Row],[Type]]&AAMC_Raw_Data_for_FY22[[#This Row],[School Subset]]&AAMC_Raw_Data_for_FY22[[#This Row],[Rank]]&AAMC_Raw_Data_for_FY22[[#This Row],[Degree]]&AAMC_Raw_Data_for_FY22[[#This Row],[Department / Specialty]]&\"L\"","v":"AAMCAcademicPublicChairPhDPsychiatry: PsychologyL"},"Psychiatry: Psychology",1,"AAMC","Academic","Public","Chair","PhD","2021-2022",null,{"$f":"(((AAMC_Raw_Data_for_FY22[[#This Row],[Median]]-AAMC_Raw_Data_for_FY22[[#This Row],[25th]])/25)*5) + AAMC_Raw_Data_for_FY22[[#This Row],[25th]]","v":0},{"$f":"(((AAMC_Raw_Data_for_FY22[[#This Row],[Median]]-AAMC_Raw_Data_for_FY22[[#This Row],[25th]])/25)*10) + AAMC_Raw_Data_for_FY22[[#This Row],[25th]]","v":0},{"$f":"(((AAMC_Raw_Data_for_FY22[[#This Row],[Median]]-AAMC_Raw_Data_for_FY22[[#This Row],[25th]])/25)*15) + AAMC_Raw_Data_for_FY22[[#This Row],[25th]]","v":0},{"$f":"(((AAMC_Raw_Data_for_FY22[[#This Row],[Median]]-AAMC_Raw_Data_for_FY22[[#This Row],[25th]])/25)*20) + AAMC_Raw_Data_for_FY22[[#This Row],[25th]]","v":0},null,{"$f":"(((AAMC_Raw_Data_for_FY22[[#This Row],[75th]]-AAMC_Raw_Data_for_FY22[[#This Row],[Median]])/25)*5) + AAMC_Raw_Data_for_FY22[[#This Row],[Median]]","v":0},{"$f":"(((AAMC_Raw_Data_for_FY22[[#This Row],[75th]]-AAMC_Raw_Data_for_FY22[[#This Row],[Median]])/25)*10) + AAMC_Raw_Data_for_FY22[[#This Row],[Median]]","v":0},{"$f":"(((AAMC_Raw_Data_for_FY22[[#This Row],[75th]]-AAMC_Raw_Data_for_FY22[[#This Row],[Median]])/25)*15) + AAMC_Raw_Data_for_FY22[[#This Row],[Median]]","v":0},{"$f":"(((AAMC_Raw_Data_for_FY22[[#This Row],[75th]]-AAMC_Raw_Data_for_FY22[[#This Row],[Median]])/25)*20) + AAMC_Raw_Data_for_FY22[[#This Row],[Median]]","v":0},null,{"$f":"(((AAMC_Raw_Data_for_FY22[[#This Row],[75th]]-AAMC_Raw_Data_for_FY22[[#This Row],[Median]])/25)*30) + AAMC_Raw_Data_for_FY22[[#This Row],[Median]]","v":0},{"$f":"(((AAMC_Raw_Data_for_FY22[[#This Row],[75th]]-AAMC_Raw_Data_for_FY22[[#This Row],[Median]])/25)*35) + AAMC_Raw_Data_for_FY22[[#This Row],[Median]]","v":0},{"$f":"(((AAMC_Raw_Data_for_FY22[[#This Row],[75th]]-AAMC_Raw_Data_for_FY22[[#This Row],[Median]])/25)*40) + AAMC_Raw_Data_for_FY22[[#This Row],[Median]]","v":0}]
[{"$f":"AAMC_Raw_Data_for_FY22[[#This Row],[Source]]&AAMC_Raw_Data_for_FY22[[#This Row],[Type]]&AAMC_Raw_Data_for_FY22[[#This Row],[School Subset]]&AAMC_Raw_Data_for_FY22[[#This Row],[Rank]]&AAMC_Raw_Data_for_FY22[[#This Row],[Degree]]&AAMC_Raw_Data_for_FY22[[#This Row],[Department / Specialty]]&\"L\"","v":"AAMCAcademicPublicInstructorPhDPsychiatry: OtherL"},"Psychiatry: Other",5,"AAMC","Academic","Public","Instructor","PhD","2021-2022",65469,{"$f":"(((AAMC_Raw_Data_for_FY22[[#This Row],[Median]]-AAMC_Raw_Data_for_FY22[[#This Row],[25th]])/25)*5) + AAMC_Raw_Data_for_FY22[[#This Row],[25th]]","v":66879.8},{"$f":"(((AAMC_Raw_Data_for_FY22[[#This Row],[Median]]-AAMC_Raw_Data_for_FY22[[#This Row],[25th]])/25)*10) + AAMC_Raw_Data_for_FY22[[#This Row],[25th]]","v":68290.600000000006},{"$f":"(((AAMC_Raw_Data_for_FY22[[#This Row],[Median]]-AAMC_Raw_Data_for_FY22[[#This Row],[25th]])/25)*15) + AAMC_Raw_Data_for_FY22[[#This Row],[25th]]","v":69701.399999999994},{"$f":"(((AAMC_Raw_Data_for_FY22[[#This Row],[Median]]-AAMC_Raw_Data_for_FY22[[#This Row],[25th]])/25)*20) + AAMC_Raw_Data_for_FY22[[#This Row],[25th]]","v":71112.2},72523,{"$f":"(((AAMC_Raw_Data_for_FY22[[#This Row],[75th]]-AAMC_Raw_Data_for_FY22[[#This Row],[Median]])/25)*5) + AAMC_Raw_Data_for_FY22[[#This Row],[Median]]","v":73845.399999999994},{"$f":"(((AAMC_Raw_Data_for_FY22[[#This Row],[75th]]-AAMC_Raw_Data_for_FY22[[#This Row],[Median]])/25)*10) + AAMC_Raw_Data_for_FY22[[#This Row],[Median]]","v":75167.8},{"$f":"(((AAMC_Raw_Data_for_FY22[[#This Row],[75th]]-AAMC_Raw_Data_for_FY22[[#This Row],[Median]])/25)*15) + AAMC_Raw_Data_for_FY22[[#This Row],[Median]]","v":76490.2},{"$f":"(((AAMC_Raw_Data_for_FY22[[#This Row],[75th]]-AAMC_Raw_Data_for_FY22[[#This Row],[Median]])/25)*20) + AAMC_Raw_Data_for_FY22[[#This Row],[Median]]","v":77812.600000000006},79135,{"$f":"(((AAMC_Raw_Data_for_FY22[[#This Row],[75th]]-AAMC_Raw_Data_for_FY22[[#This Row],[Median]])/25)*30) + AAMC_Raw_Data_for_FY22[[#This Row],[Median]]","v":80457.399999999994},{"$f":"(((AAMC_Raw_Data_for_FY22[[#This Row],[75th]]-AAMC_Raw_Data_for_FY22[[#This Row],[Median]])/25)*35) + AAMC_Raw_Data_for_FY22[[#This Row],[Median]]","v":81779.8},{"$f":"(((AAMC_Raw_Data_for_FY22[[#This Row],[75th]]-AAMC_Raw_Data_for_FY22[[#This Row],[Median]])/25)*40) + AAMC_Raw_Data_for_FY22[[#This Row],[Median]]","v":83102.2}]
[{"$f":"AAMC_Raw_Data_for_FY22[[#This Row],[Source]]&AAMC_Raw_Data_for_FY22[[#This Row],[Type]]&AAMC_Raw_Data_for_FY22[[#This Row],[School Subset]]&AAMC_Raw_Data_for_FY22[[#This Row],[Rank]]&AAMC_Raw_Data_for_FY22[[#This Row],[Degree]]&AAMC_Raw_Data_for_FY22[[#This Row],[Department / Specialty]]&\"L\"","v":"AAMCAcademicPublicAssistantPhDPsychiatry: OtherL"},"Psychiatry: Other",4,"AAMC","Academic","Public","Assistant","PhD","2021-2022",88677,{"$f":"(((AAMC_Raw_Data_for_FY22[[#This Row],[Median]]-AAMC_Raw_Data_for_FY22[[#This Row],[25th]])/25)*5) + AAMC_Raw_Data_for_FY22[[#This Row],[25th]]","v":91986.2},{"$f":"(((AAMC_Raw_Data_for_FY22[[#This Row],[Median]]-AAMC_Raw_Data_for_FY22[[#This Row],[25th]])/25)*10) + AAMC_Raw_Data_for_FY22[[#This Row],[25th]]","v":95295.4},{"$f":"(((AAMC_Raw_Data_for_FY22[[#This Row],[Median]]-AAMC_Raw_Data_for_FY22[[#This Row],[25th]])/25)*15) + AAMC_Raw_Data_for_FY22[[#This Row],[25th]]","v":98604.6},{"$f":"(((AAMC_Raw_Data_for_FY22[[#This Row],[Median]]-AAMC_Raw_Data_for_FY22[[#This Row],[25th]])/25)*20) + AAMC_Raw_Data_for_FY22[[#This Row],[25th]]","v":101913.8},105223,{"$f":"(((AAMC_Raw_Data_for_FY22[[#This Row],[75th]]-AAMC_Raw_Data_for_FY22[[#This Row],[Median]])/25)*5) + AAMC_Raw_Data_for_FY22[[#This Row],[Median]]","v":108100.4},{"$f":"(((AAMC_Raw_Data_for_FY22[[#This Row],[75th]]-AAMC_Raw_Data_for_FY22[[#This Row],[Median]])/25)*10) + AAMC_Raw_Data_for_FY22[[#This Row],[Median]]","v":110977.8},{"$f":"(((AAMC_Raw_Data_for_FY22[[#This Row],[75th]]-AAMC_Raw_Data_for_FY22[[#This Row],[Median]])/25)*15) + AAMC_Raw_Data_for_FY22[[#This Row],[Median]]","v":113855.2},{"$f":"(((AAMC_Raw_Data_for_FY22[[#This Row],[75th]]-AAMC_Raw_Data_for_FY22[[#This Row],[Median]])/25)*20) + AAMC_Raw_Data_for_FY22[[#This Row],[Median]]","v":116732.6},119610,{"$f":"(((AAMC_Raw_Data_for_FY22[[#This Row],[75th]]-AAMC_Raw_Data_for_FY22[[#This Row],[Median]])/25)*30) + AAMC_Raw_Data_for_FY22[[#This Row],[Median]]","v":122487.4},{"$f":"(((AAMC_Raw_Data_for_FY22[[#This Row],[75th]]-AAMC_Raw_Data_for_FY22[[#This Row],[Median]])/25)*35) + AAMC_Raw_Data_for_FY22[[#This Row],[Median]]","v":125364.8},{"$f":"(((AAMC_Raw_Data_for_FY22[[#This Row],[75th]]-AAMC_Raw_Data_for_FY22[[#This Row],[Median]])/25)*40) + AAMC_Raw_Data_for_FY22[[#This Row],[Median]]","v":128242.2}]
[{"$f":"AAMC_Raw_Data_for_FY22[[#This Row],[Source]]&AAMC_Raw_Data_for_FY22[[#This Row],[Type]]&AAMC_Raw_Data_for_FY22[[#This Row],[School Subset]]&AAMC_Raw_Data_for_FY22[[#This Row],[Rank]]&AAMC_Raw_Data_for_FY22[[#This Row],[Degree]]&AAMC_Raw_Data_for_FY22[[#This Row],[Department / Specialty]]&\"L\"","v":"AAMCAcademicPublicAssociatePhDPsychiatry: OtherL"},"Psychiatry: Other",3,"AAMC","Academic","Public","Associate","PhD","2021-2022",117263,{"$f":"(((AAMC_Raw_Data_for_FY22[[#This Row],[Median]]-AAMC_Raw_Data_for_FY22[[#This Row],[25th]])/25)*5) + AAMC_Raw_Data_for_FY22[[#This Row],[25th]]","v":121771},{"$f":"(((AAMC_Raw_Data_for_FY22[[#This Row],[Median]]-AAMC_Raw_Data_for_FY22[[#This Row],[25th]])/25)*10) + AAMC_Raw_Data_for_FY22[[#This Row],[25th]]","v":126279},{"$f":"(((AAMC_Raw_Data_for_FY22[[#This Row],[Median]]-AAMC_Raw_Data_for_FY22[[#This Row],[25th]])/25)*15) + AAMC_Raw_Data_for_FY22[[#This Row],[25th]]","v":130787},{"$f":"(((AAMC_Raw_Data_for_FY22[[#This Row],[Median]]-AAMC_Raw_Data_for_FY22[[#This Row],[25th]])/25)*20) + AAMC_Raw_Data_for_FY22[[#This Row],[25th]]","v":135295},139803,{"$f":"(((AAMC_Raw_Data_for_FY22[[#This Row],[75th]]-AAMC_Raw_Data_for_FY22[[#This Row],[Median]])/25)*5) + AAMC_Raw_Data_for_FY22[[#This Row],[Median]]","v":145842.4},{"$f":"(((AAMC_Raw_Data_for_FY22[[#This Row],[75th]]-AAMC_Raw_Data_for_FY22[[#This Row],[Median]])/25)*10) + AAMC_Raw_Data_for_FY22[[#This Row],[Median]]","v":151881.79999999999},{"$f":"(((AAMC_Raw_Data_for_FY22[[#This Row],[75th]]-AAMC_Raw_Data_for_FY22[[#This Row],[Median]])/25)*15) + AAMC_Raw_Data_for_FY22[[#This Row],[Median]]","v":157921.20000000001},{"$f":"(((AAMC_Raw_Data_for_FY22[[#This Row],[75th]]-AAMC_Raw_Data_for_FY22[[#This Row],[Median]])/25)*20) + AAMC_Raw_Data_for_FY22[[#This Row],[Median]]","v":163960.6},170000,{"$f":"(((AAMC_Raw_Data_for_FY22[[#This Row],[75th]]-AAMC_Raw_Data_for_FY22[[#This Row],[Median]])/25)*30) + AAMC_Raw_Data_for_FY22[[#This Row],[Median]]","v":176039.4},{"$f":"(((AAMC_Raw_Data_for_FY22[[#This Row],[75th]]-AAMC_Raw_Data_for_FY22[[#This Row],[Median]])/25)*35) + AAMC_Raw_Data_for_FY22[[#This Row],[Median]]","v":182078.8},{"$f":"(((AAMC_Raw_Data_for_FY22[[#This Row],[75th]]-AAMC_Raw_Data_for_FY22[[#This Row],[Median]])/25)*40) + AAMC_Raw_Data_for_FY22[[#This Row],[Median]]","v":188118.2}]
[{"$f":"AAMC_Raw_Data_for_FY22[[#This Row],[Source]]&AAMC_Raw_Data_for_FY22[[#This Row],[Type]]&AAMC_Raw_Data_for_FY22[[#This Row],[School Subset]]&AAMC_Raw_Data_for_FY22[[#This Row],[Rank]]&AAMC_Raw_Data_for_FY22[[#This Row],[Degree]]&AAMC_Raw_Data_for_FY22[[#This Row],[Department / Specialty]]&\"L\"","v":"AAMCAcademicPublicProfessorPhDPsychiatry: OtherL"},"Psychiatry: Other",2,"AAMC","Academic","Public","Professor","PhD","2021-2022",167213,{"$f":"(((AAMC_Raw_Data_for_FY22[[#This Row],[Median]]-AAMC_Raw_Data_for_FY22[[#This Row],[25th]])/25)*5) + AAMC_Raw_Data_for_FY22[[#This Row],[25th]]","v":174355.4},{"$f":"(((AAMC_Raw_Data_for_FY22[[#This Row],[Median]]-AAMC_Raw_Data_for_FY22[[#This Row],[25th]])/25)*10) + AAMC_Raw_Data_for_FY22[[#This Row],[25th]]","v":181497.8},{"$f":"(((AAMC_Raw_Data_for_FY22[[#This Row],[Median]]-AAMC_Raw_Data_for_FY22[[#This Row],[25th]])/25)*15) + AAMC_Raw_Data_for_FY22[[#This Row],[25th]]","v":188640.2},{"$f":"(((AAMC_Raw_Data_for_FY22[[#This Row],[Median]]-AAMC_Raw_Data_for_FY22[[#This Row],[25th]])/25)*20) + AAMC_Raw_Data_for_FY22[[#This Row],[25th]]","v":195782.6},202925,{"$f":"(((AAMC_Raw_Data_for_FY22[[#This Row],[75th]]-AAMC_Raw_Data_for_FY22[[#This Row],[Median]])/25)*5) + AAMC_Raw_Data_for_FY22[[#This Row],[Median]]","v":210715},{"$f":"(((AAMC_Raw_Data_for_FY22[[#This Row],[75th]]-AAMC_Raw_Data_for_FY22[[#This Row],[Median]])/25)*10) + AAMC_Raw_Data_for_FY22[[#This Row],[Median]]","v":218505},{"$f":"(((AAMC_Raw_Data_for_FY22[[#This Row],[75th]]-AAMC_Raw_Data_for_FY22[[#This Row],[Median]])/25)*15) + AAMC_Raw_Data_for_FY22[[#This Row],[Median]]","v":226295},{"$f":"(((AAMC_Raw_Data_for_FY22[[#This Row],[75th]]-AAMC_Raw_Data_for_FY22[[#This Row],[Median]])/25)*20) + AAMC_Raw_Data_for_FY22[[#This Row],[Median]]","v":234085},241875,{"$f":"(((AAMC_Raw_Data_for_FY22[[#This Row],[75th]]-AAMC_Raw_Data_for_FY22[[#This Row],[Median]])/25)*30) + AAMC_Raw_Data_for_FY22[[#This Row],[Median]]","v":249665},{"$f":"(((AAMC_Raw_Data_for_FY22[[#This Row],[75th]]-AAMC_Raw_Data_for_FY22[[#This Row],[Median]])/25)*35) + AAMC_Raw_Data_for_FY22[[#This Row],[Median]]","v":257455},{"$f":"(((AAMC_Raw_Data_for_FY22[[#This Row],[75th]]-AAMC_Raw_Data_for_FY22[[#This Row],[Median]])/25)*40) + AAMC_Raw_Data_for_FY22[[#This Row],[Median]]","v":265245}]
[{"$f":"AAMC_Raw_Data_for_FY22[[#This Row],[Source]]&AAMC_Raw_Data_for_FY22[[#This Row],[Type]]&AAMC_Raw_Data_for_FY22[[#This Row],[School Subset]]&AAMC_Raw_Data_for_FY22[[#This Row],[Rank]]&AAMC_Raw_Data_for_FY22[[#This Row],[Degree]]&AAMC_Raw_Data_for_FY22[[#This Row],[Department / Specialty]]&\"L\"","v":"AAMCAcademicPublicChiefPhDPsychiatry: OtherL"},"Psychiatry: Other",6,"AAMC","Academic","Public","Chief","PhD","2021-2022",null,{"$f":"(((AAMC_Raw_Data_for_FY22[[#This Row],[Median]]-AAMC_Raw_Data_for_FY22[[#This Row],[25th]])/25)*5) + AAMC_Raw_Data_for_FY22[[#This Row],[25th]]","v":0},{"$f":"(((AAMC_Raw_Data_for_FY22[[#This Row],[Median]]-AAMC_Raw_Data_for_FY22[[#This Row],[25th]])/25)*10) + AAMC_Raw_Data_for_FY22[[#This Row],[25th]]","v":0},{"$f":"(((AAMC_Raw_Data_for_FY22[[#This Row],[Median]]-AAMC_Raw_Data_for_FY22[[#This Row],[25th]])/25)*15) + AAMC_Raw_Data_for_FY22[[#This Row],[25th]]","v":0},{"$f":"(((AAMC_Raw_Data_for_FY22[[#This Row],[Median]]-AAMC_Raw_Data_for_FY22[[#This Row],[25th]])/25)*20) + AAMC_Raw_Data_for_FY22[[#This Row],[25th]]","v":0},null,{"$f":"(((AAMC_Raw_Data_for_FY22[[#This Row],[75th]]-AAMC_Raw_Data_for_FY22[[#This Row],[Median]])/25)*5) + AAMC_Raw_Data_for_FY22[[#This Row],[Median]]","v":0},{"$f":"(((AAMC_Raw_Data_for_FY22[[#This Row],[75th]]-AAMC_Raw_Data_for_FY22[[#This Row],[Median]])/25)*10) + AAMC_Raw_Data_for_FY22[[#This Row],[Median]]","v":0},{"$f":"(((AAMC_Raw_Data_for_FY22[[#This Row],[75th]]-AAMC_Raw_Data_for_FY22[[#This Row],[Median]])/25)*15) + AAMC_Raw_Data_for_FY22[[#This Row],[Median]]","v":0},{"$f":"(((AAMC_Raw_Data_for_FY22[[#This Row],[75th]]-AAMC_Raw_Data_for_FY22[[#This Row],[Median]])/25)*20) + AAMC_Raw_Data_for_FY22[[#This Row],[Median]]","v":0},null,{"$f":"(((AAMC_Raw_Data_for_FY22[[#This Row],[75th]]-AAMC_Raw_Data_for_FY22[[#This Row],[Median]])/25)*30) + AAMC_Raw_Data_for_FY22[[#This Row],[Median]]","v":0},{"$f":"(((AAMC_Raw_Data_for_FY22[[#This Row],[75th]]-AAMC_Raw_Data_for_FY22[[#This Row],[Median]])/25)*35) + AAMC_Raw_Data_for_FY22[[#This Row],[Median]]","v":0},{"$f":"(((AAMC_Raw_Data_for_FY22[[#This Row],[75th]]-AAMC_Raw_Data_for_FY22[[#This Row],[Median]])/25)*40) + AAMC_Raw_Data_for_FY22[[#This Row],[Median]]","v":0}]
[{"$f":"AAMC_Raw_Data_for_FY22[[#This Row],[Source]]&AAMC_Raw_Data_for_FY22[[#This Row],[Type]]&AAMC_Raw_Data_for_FY22[[#This Row],[School Subset]]&AAMC_Raw_Data_for_FY22[[#This Row],[Rank]]&AAMC_Raw_Data_for_FY22[[#This Row],[Degree]]&AAMC_Raw_Data_for_FY22[[#This Row],[Department / Specialty]]&\"L\"","v":"AAMCAcademicPublicChairPhDPsychiatry: OtherL"},"Psychiatry: Other",1,"AAMC","Academic","Public","Chair","PhD","2021-2022",null,{"$f":"(((AAMC_Raw_Data_for_FY22[[#This Row],[Median]]-AAMC_Raw_Data_for_FY22[[#This Row],[25th]])/25)*5) + AAMC_Raw_Data_for_FY22[[#This Row],[25th]]","v":0},{"$f":"(((AAMC_Raw_Data_for_FY22[[#This Row],[Median]]-AAMC_Raw_Data_for_FY22[[#This Row],[25th]])/25)*10) + AAMC_Raw_Data_for_FY22[[#This Row],[25th]]","v":0},{"$f":"(((AAMC_Raw_Data_for_FY22[[#This Row],[Median]]-AAMC_Raw_Data_for_FY22[[#This Row],[25th]])/25)*15) + AAMC_Raw_Data_for_FY22[[#This Row],[25th]]","v":0},{"$f":"(((AAMC_Raw_Data_for_FY22[[#This Row],[Median]]-AAMC_Raw_Data_for_FY22[[#This Row],[25th]])/25)*20) + AAMC_Raw_Data_for_FY22[[#This Row],[25th]]","v":0},null,{"$f":"(((AAMC_Raw_Data_for_FY22[[#This Row],[75th]]-AAMC_Raw_Data_for_FY22[[#This Row],[Median]])/25)*5) + AAMC_Raw_Data_for_FY22[[#This Row],[Median]]","v":0},{"$f":"(((AAMC_Raw_Data_for_FY22[[#This Row],[75th]]-AAMC_Raw_Data_for_FY22[[#This Row],[Median]])/25)*10) + AAMC_Raw_Data_for_FY22[[#This Row],[Median]]","v":0},{"$f":"(((AAMC_Raw_Data_for_FY22[[#This Row],[75th]]-AAMC_Raw_Data_for_FY22[[#This Row],[Median]])/25)*15) + AAMC_Raw_Data_for_FY22[[#This Row],[Median]]","v":0},{"$f":"(((AAMC_Raw_Data_for_FY22[[#This Row],[75th]]-AAMC_Raw_Data_for_FY22[[#This Row],[Median]])/25)*20) + AAMC_Raw_Data_for_FY22[[#This Row],[Median]]","v":0},null,{"$f":"(((AAMC_Raw_Data_for_FY22[[#This Row],[75th]]-AAMC_Raw_Data_for_FY22[[#This Row],[Median]])/25)*30) + AAMC_Raw_Data_for_FY22[[#This Row],[Median]]","v":0},{"$f":"(((AAMC_Raw_Data_for_FY22[[#This Row],[75th]]-AAMC_Raw_Data_for_FY22[[#This Row],[Median]])/25)*35) + AAMC_Raw_Data_for_FY22[[#This Row],[Median]]","v":0},{"$f":"(((AAMC_Raw_Data_for_FY22[[#This Row],[75th]]-AAMC_Raw_Data_for_FY22[[#This Row],[Median]])/25)*40) + AAMC_Raw_Data_for_FY22[[#This Row],[Median]]","v":0}]
[{"$f":"AAMC_Raw_Data_for_FY22[[#This Row],[Source]]&AAMC_Raw_Data_for_FY22[[#This Row],[Type]]&AAMC_Raw_Data_for_FY22[[#This Row],[School Subset]]&AAMC_Raw_Data_for_FY22[[#This Row],[Rank]]&AAMC_Raw_Data_for_FY22[[#This Row],[Degree]]&AAMC_Raw_Data_for_FY22[[#This Row],[Department / Specialty]]&\"L\"","v":"AAMCAcademicPublicInstructorPhDRadiology TotalL"},"Radiology Total",5,"AAMC","Academic","Public","Instructor","PhD","2021-2022",61530,{"$f":"(((AAMC_Raw_Data_for_FY22[[#This Row],[Median]]-AAMC_Raw_Data_for_FY22[[#This Row],[25th]])/25)*5) + AAMC_Raw_Data_for_FY22[[#This Row],[25th]]","v":64004},{"$f":"(((AAMC_Raw_Data_for_FY22[[#This Row],[Median]]-AAMC_Raw_Data_for_FY22[[#This Row],[25th]])/25)*10) + AAMC_Raw_Data_for_FY22[[#This Row],[25th]]","v":66478},{"$f":"(((AAMC_Raw_Data_for_FY22[[#This Row],[Median]]-AAMC_Raw_Data_for_FY22[[#This Row],[25th]])/25)*15) + AAMC_Raw_Data_for_FY22[[#This Row],[25th]]","v":68952},{"$f":"(((AAMC_Raw_Data_for_FY22[[#This Row],[Median]]-AAMC_Raw_Data_for_FY22[[#This Row],[25th]])/25)*20) + AAMC_Raw_Data_for_FY22[[#This Row],[25th]]","v":71426},73900,{"$f":"(((AAMC_Raw_Data_for_FY22[[#This Row],[75th]]-AAMC_Raw_Data_for_FY22[[#This Row],[Median]])/25)*5) + AAMC_Raw_Data_for_FY22[[#This Row],[Median]]","v":75599.199999999997},{"$f":"(((AAMC_Raw_Data_for_FY22[[#This Row],[75th]]-AAMC_Raw_Data_for_FY22[[#This Row],[Median]])/25)*10) + AAMC_Raw_Data_for_FY22[[#This Row],[Median]]","v":77298.399999999994},{"$f":"(((AAMC_Raw_Data_for_FY22[[#This Row],[75th]]-AAMC_Raw_Data_for_FY22[[#This Row],[Median]])/25)*15) + AAMC_Raw_Data_for_FY22[[#This Row],[Median]]","v":78997.600000000006},{"$f":"(((AAMC_Raw_Data_for_FY22[[#This Row],[75th]]-AAMC_Raw_Data_for_FY22[[#This Row],[Median]])/25)*20) + AAMC_Raw_Data_for_FY22[[#This Row],[Median]]","v":80696.800000000003},82396,{"$f":"(((AAMC_Raw_Data_for_FY22[[#This Row],[75th]]-AAMC_Raw_Data_for_FY22[[#This Row],[Median]])/25)*30) + AAMC_Raw_Data_for_FY22[[#This Row],[Median]]","v":84095.2},{"$f":"(((AAMC_Raw_Data_for_FY22[[#This Row],[75th]]-AAMC_Raw_Data_for_FY22[[#This Row],[Median]])/25)*35) + AAMC_Raw_Data_for_FY22[[#This Row],[Median]]","v":85794.4},{"$f":"(((AAMC_Raw_Data_for_FY22[[#This Row],[75th]]-AAMC_Raw_Data_for_FY22[[#This Row],[Median]])/25)*40) + AAMC_Raw_Data_for_FY22[[#This Row],[Median]]","v":87493.6}]
[{"$f":"AAMC_Raw_Data_for_FY22[[#This Row],[Source]]&AAMC_Raw_Data_for_FY22[[#This Row],[Type]]&AAMC_Raw_Data_for_FY22[[#This Row],[School Subset]]&AAMC_Raw_Data_for_FY22[[#This Row],[Rank]]&AAMC_Raw_Data_for_FY22[[#This Row],[Degree]]&AAMC_Raw_Data_for_FY22[[#This Row],[Department / Specialty]]&\"L\"","v":"AAMCAcademicPublicAssistantPhDRadiology TotalL"},"Radiology Total",4,"AAMC","Academic","Public","Assistant","PhD","2021-2022",109376,{"$f":"(((AAMC_Raw_Data_for_FY22[[#This Row],[Median]]-AAMC_Raw_Data_for_FY22[[#This Row],[25th]])/25)*5) + AAMC_Raw_Data_for_FY22[[#This Row],[25th]]","v":118993.2},{"$f":"(((AAMC_Raw_Data_for_FY22[[#This Row],[Median]]-AAMC_Raw_Data_for_FY22[[#This Row],[25th]])/25)*10) + AAMC_Raw_Data_for_FY22[[#This Row],[25th]]","v":128610.4},{"$f":"(((AAMC_Raw_Data_for_FY22[[#This Row],[Median]]-AAMC_Raw_Data_for_FY22[[#This Row],[25th]])/25)*15) + AAMC_Raw_Data_for_FY22[[#This Row],[25th]]","v":138227.6},{"$f":"(((AAMC_Raw_Data_for_FY22[[#This Row],[Median]]-AAMC_Raw_Data_for_FY22[[#This Row],[25th]])/25)*20) + AAMC_Raw_Data_for_FY22[[#This Row],[25th]]","v":147844.79999999999},157462,{"$f":"(((AAMC_Raw_Data_for_FY22[[#This Row],[75th]]-AAMC_Raw_Data_for_FY22[[#This Row],[Median]])/25)*5) + AAMC_Raw_Data_for_FY22[[#This Row],[Median]]","v":163468.79999999999},{"$f":"(((AAMC_Raw_Data_for_FY22[[#This Row],[75th]]-AAMC_Raw_Data_for_FY22[[#This Row],[Median]])/25)*10) + AAMC_Raw_Data_for_FY22[[#This Row],[Median]]","v":169475.6},{"$f":"(((AAMC_Raw_Data_for_FY22[[#This Row],[75th]]-AAMC_Raw_Data_for_FY22[[#This Row],[Median]])/25)*15) + AAMC_Raw_Data_for_FY22[[#This Row],[Median]]","v":175482.4},{"$f":"(((AAMC_Raw_Data_for_FY22[[#This Row],[75th]]-AAMC_Raw_Data_for_FY22[[#This Row],[Median]])/25)*20) + AAMC_Raw_Data_for_FY22[[#This Row],[Median]]","v":181489.2},187496,{"$f":"(((AAMC_Raw_Data_for_FY22[[#This Row],[75th]]-AAMC_Raw_Data_for_FY22[[#This Row],[Median]])/25)*30) + AAMC_Raw_Data_for_FY22[[#This Row],[Median]]","v":193502.8},{"$f":"(((AAMC_Raw_Data_for_FY22[[#This Row],[75th]]-AAMC_Raw_Data_for_FY22[[#This Row],[Median]])/25)*35) + AAMC_Raw_Data_for_FY22[[#This Row],[Median]]","v":199509.6},{"$f":"(((AAMC_Raw_Data_for_FY22[[#This Row],[75th]]-AAMC_Raw_Data_for_FY22[[#This Row],[Median]])/25)*40) + AAMC_Raw_Data_for_FY22[[#This Row],[Median]]","v":205516.4}]
[{"$f":"AAMC_Raw_Data_for_FY22[[#This Row],[Source]]&AAMC_Raw_Data_for_FY22[[#This Row],[Type]]&AAMC_Raw_Data_for_FY22[[#This Row],[School Subset]]&AAMC_Raw_Data_for_FY22[[#This Row],[Rank]]&AAMC_Raw_Data_for_FY22[[#This Row],[Degree]]&AAMC_Raw_Data_for_FY22[[#This Row],[Department / Specialty]]&\"L\"","v":"AAMCAcademicPublicAssociatePhDRadiology TotalL"},"Radiology Total",3,"AAMC","Academic","Public","Associate","PhD","2021-2022",149444,{"$f":"(((AAMC_Raw_Data_for_FY22[[#This Row],[Median]]-AAMC_Raw_Data_for_FY22[[#This Row],[25th]])/25)*5) + AAMC_Raw_Data_for_FY22[[#This Row],[25th]]","v":156954.6},{"$f":"(((AAMC_Raw_Data_for_FY22[[#This Row],[Median]]-AAMC_Raw_Data_for_FY22[[#This Row],[25th]])/25)*10) + AAMC_Raw_Data_for_FY22[[#This Row],[25th]]","v":164465.20000000001},{"$f":"(((AAMC_Raw_Data_for_FY22[[#This Row],[Median]]-AAMC_Raw_Data_for_FY22[[#This Row],[25th]])/25)*15) + AAMC_Raw_Data_for_FY22[[#This Row],[25th]]","v":171975.8},{"$f":"(((AAMC_Raw_Data_for_FY22[[#This Row],[Median]]-AAMC_Raw_Data_for_FY22[[#This Row],[25th]])/25)*20) + AAMC_Raw_Data_for_FY22[[#This Row],[25th]]","v":179486.4},186997,{"$f":"(((AAMC_Raw_Data_for_FY22[[#This Row],[75th]]-AAMC_Raw_Data_for_FY22[[#This Row],[Median]])/25)*5) + AAMC_Raw_Data_for_FY22[[#This Row],[Median]]","v":195784.8},{"$f":"(((AAMC_Raw_Data_for_FY22[[#This Row],[75th]]-AAMC_Raw_Data_for_FY22[[#This Row],[Median]])/25)*10) + AAMC_Raw_Data_for_FY22[[#This Row],[Median]]","v":204572.6},{"$f":"(((AAMC_Raw_Data_for_FY22[[#This Row],[75th]]-AAMC_Raw_Data_for_FY22[[#This Row],[Median]])/25)*15) + AAMC_Raw_Data_for_FY22[[#This Row],[Median]]","v":213360.4},{"$f":"(((AAMC_Raw_Data_for_FY22[[#This Row],[75th]]-AAMC_Raw_Data_for_FY22[[#This Row],[Median]])/25)*20) + AAMC_Raw_Data_for_FY22[[#This Row],[Median]]","v":222148.2},230936,{"$f":"(((AAMC_Raw_Data_for_FY22[[#This Row],[75th]]-AAMC_Raw_Data_for_FY22[[#This Row],[Median]])/25)*30) + AAMC_Raw_Data_for_FY22[[#This Row],[Median]]","v":239723.8},{"$f":"(((AAMC_Raw_Data_for_FY22[[#This Row],[75th]]-AAMC_Raw_Data_for_FY22[[#This Row],[Median]])/25)*35) + AAMC_Raw_Data_for_FY22[[#This Row],[Median]]","v":248511.6},{"$f":"(((AAMC_Raw_Data_for_FY22[[#This Row],[75th]]-AAMC_Raw_Data_for_FY22[[#This Row],[Median]])/25)*40) + AAMC_Raw_Data_for_FY22[[#This Row],[Median]]","v":257299.4}]
[{"$f":"AAMC_Raw_Data_for_FY22[[#This Row],[Source]]&AAMC_Raw_Data_for_FY22[[#This Row],[Type]]&AAMC_Raw_Data_for_FY22[[#This Row],[School Subset]]&AAMC_Raw_Data_for_FY22[[#This Row],[Rank]]&AAMC_Raw_Data_for_FY22[[#This Row],[Degree]]&AAMC_Raw_Data_for_FY22[[#This Row],[Department / Specialty]]&\"L\"","v":"AAMCAcademicPublicProfessorPhDRadiology TotalL"},"Radiology Total",2,"AAMC","Academic","Public","Professor","PhD","2021-2022",189281,{"$f":"(((AAMC_Raw_Data_for_FY22[[#This Row],[Median]]-AAMC_Raw_Data_for_FY22[[#This Row],[25th]])/25)*5) + AAMC_Raw_Data_for_FY22[[#This Row],[25th]]","v":197731.8},{"$f":"(((AAMC_Raw_Data_for_FY22[[#This Row],[Median]]-AAMC_Raw_Data_for_FY22[[#This Row],[25th]])/25)*10) + AAMC_Raw_Data_for_FY22[[#This Row],[25th]]","v":206182.6},{"$f":"(((AAMC_Raw_Data_for_FY22[[#This Row],[Median]]-AAMC_Raw_Data_for_FY22[[#This Row],[25th]])/25)*15) + AAMC_Raw_Data_for_FY22[[#This Row],[25th]]","v":214633.4},{"$f":"(((AAMC_Raw_Data_for_FY22[[#This Row],[Median]]-AAMC_Raw_Data_for_FY22[[#This Row],[25th]])/25)*20) + AAMC_Raw_Data_for_FY22[[#This Row],[25th]]","v":223084.2},231535,{"$f":"(((AAMC_Raw_Data_for_FY22[[#This Row],[75th]]-AAMC_Raw_Data_for_FY22[[#This Row],[Median]])/25)*5) + AAMC_Raw_Data_for_FY22[[#This Row],[Median]]","v":240589.8},{"$f":"(((AAMC_Raw_Data_for_FY22[[#This Row],[75th]]-AAMC_Raw_Data_for_FY22[[#This Row],[Median]])/25)*10) + AAMC_Raw_Data_for_FY22[[#This Row],[Median]]","v":249644.6},{"$f":"(((AAMC_Raw_Data_for_FY22[[#This Row],[75th]]-AAMC_Raw_Data_for_FY22[[#This Row],[Median]])/25)*15) + AAMC_Raw_Data_for_FY22[[#This Row],[Median]]","v":258699.4},{"$f":"(((AAMC_Raw_Data_for_FY22[[#This Row],[75th]]-AAMC_Raw_Data_for_FY22[[#This Row],[Median]])/25)*20) + AAMC_Raw_Data_for_FY22[[#This Row],[Median]]","v":267754.2},276809,{"$f":"(((AAMC_Raw_Data_for_FY22[[#This Row],[75th]]-AAMC_Raw_Data_for_FY22[[#This Row],[Median]])/25)*30) + AAMC_Raw_Data_for_FY22[[#This Row],[Median]]","v":285863.8},{"$f":"(((AAMC_Raw_Data_for_FY22[[#This Row],[75th]]-AAMC_Raw_Data_for_FY22[[#This Row],[Median]])/25)*35) + AAMC_Raw_Data_for_FY22[[#This Row],[Median]]","v":294918.59999999998},{"$f":"(((AAMC_Raw_Data_for_FY22[[#This Row],[75th]]-AAMC_Raw_Data_for_FY22[[#This Row],[Median]])/25)*40) + AAMC_Raw_Data_for_FY22[[#This Row],[Median]]","v":303973.40000000002}]
[{"$f":"AAMC_Raw_Data_for_FY22[[#This Row],[Source]]&AAMC_Raw_Data_for_FY22[[#This Row],[Type]]&AAMC_Raw_Data_for_FY22[[#This Row],[School Subset]]&AAMC_Raw_Data_for_FY22[[#This Row],[Rank]]&AAMC_Raw_Data_for_FY22[[#This Row],[Degree]]&AAMC_Raw_Data_for_FY22[[#This Row],[Department / Specialty]]&\"L\"","v":"AAMCAcademicPublicChiefPhDRadiology TotalL"},"Radiology Total",6,"AAMC","Academic","Public","Chief","PhD","2021-2022",252461,{"$f":"(((AAMC_Raw_Data_for_FY22[[#This Row],[Median]]-AAMC_Raw_Data_for_FY22[[#This Row],[25th]])/25)*5) + AAMC_Raw_Data_for_FY22[[#This Row],[25th]]","v":267168.8},{"$f":"(((AAMC_Raw_Data_for_FY22[[#This Row],[Median]]-AAMC_Raw_Data_for_FY22[[#This Row],[25th]])/25)*10) + AAMC_Raw_Data_for_FY22[[#This Row],[25th]]","v":281876.59999999998},{"$f":"(((AAMC_Raw_Data_for_FY22[[#This Row],[Median]]-AAMC_Raw_Data_for_FY22[[#This Row],[25th]])/25)*15) + AAMC_Raw_Data_for_FY22[[#This Row],[25th]]","v":296584.40000000002},{"$f":"(((AAMC_Raw_Data_for_FY22[[#This Row],[Median]]-AAMC_Raw_Data_for_FY22[[#This Row],[25th]])/25)*20) + AAMC_Raw_Data_for_FY22[[#This Row],[25th]]","v":311292.2},326000,{"$f":"(((AAMC_Raw_Data_for_FY22[[#This Row],[75th]]-AAMC_Raw_Data_for_FY22[[#This Row],[Median]])/25)*5) + AAMC_Raw_Data_for_FY22[[#This Row],[Median]]","v":335471},{"$f":"(((AAMC_Raw_Data_for_FY22[[#This Row],[75th]]-AAMC_Raw_Data_for_FY22[[#This Row],[Median]])/25)*10) + AAMC_Raw_Data_for_FY22[[#This Row],[Median]]","v":344942},{"$f":"(((AAMC_Raw_Data_for_FY22[[#This Row],[75th]]-AAMC_Raw_Data_for_FY22[[#This Row],[Median]])/25)*15) + AAMC_Raw_Data_for_FY22[[#This Row],[Median]]","v":354413},{"$f":"(((AAMC_Raw_Data_for_FY22[[#This Row],[75th]]-AAMC_Raw_Data_for_FY22[[#This Row],[Median]])/25)*20) + AAMC_Raw_Data_for_FY22[[#This Row],[Median]]","v":363884},373355,{"$f":"(((AAMC_Raw_Data_for_FY22[[#This Row],[75th]]-AAMC_Raw_Data_for_FY22[[#This Row],[Median]])/25)*30) + AAMC_Raw_Data_for_FY22[[#This Row],[Median]]","v":382826},{"$f":"(((AAMC_Raw_Data_for_FY22[[#This Row],[75th]]-AAMC_Raw_Data_for_FY22[[#This Row],[Median]])/25)*35) + AAMC_Raw_Data_for_FY22[[#This Row],[Median]]","v":392297},{"$f":"(((AAMC_Raw_Data_for_FY22[[#This Row],[75th]]-AAMC_Raw_Data_for_FY22[[#This Row],[Median]])/25)*40) + AAMC_Raw_Data_for_FY22[[#This Row],[Median]]","v":401768}]
[{"$f":"AAMC_Raw_Data_for_FY22[[#This Row],[Source]]&AAMC_Raw_Data_for_FY22[[#This Row],[Type]]&AAMC_Raw_Data_for_FY22[[#This Row],[School Subset]]&AAMC_Raw_Data_for_FY22[[#This Row],[Rank]]&AAMC_Raw_Data_for_FY22[[#This Row],[Degree]]&AAMC_Raw_Data_for_FY22[[#This Row],[Department / Specialty]]&\"L\"","v":"AAMCAcademicPublicInstructorPhDDiagnostic Radiology TotalL"},"Diagnostic Radiology Total",5,"AAMC","Academic","Public","Instructor","PhD","2021-2022",null,{"$f":"(((AAMC_Raw_Data_for_FY22[[#This Row],[Median]]-AAMC_Raw_Data_for_FY22[[#This Row],[25th]])/25)*5) + AAMC_Raw_Data_for_FY22[[#This Row],[25th]]","v":0},{"$f":"(((AAMC_Raw_Data_for_FY22[[#This Row],[Median]]-AAMC_Raw_Data_for_FY22[[#This Row],[25th]])/25)*10) + AAMC_Raw_Data_for_FY22[[#This Row],[25th]]","v":0},{"$f":"(((AAMC_Raw_Data_for_FY22[[#This Row],[Median]]-AAMC_Raw_Data_for_FY22[[#This Row],[25th]])/25)*15) + AAMC_Raw_Data_for_FY22[[#This Row],[25th]]","v":0},{"$f":"(((AAMC_Raw_Data_for_FY22[[#This Row],[Median]]-AAMC_Raw_Data_for_FY22[[#This Row],[25th]])/25)*20) + AAMC_Raw_Data_for_FY22[[#This Row],[25th]]","v":0},null,{"$f":"(((AAMC_Raw_Data_for_FY22[[#This Row],[75th]]-AAMC_Raw_Data_for_FY22[[#This Row],[Median]])/25)*5) + AAMC_Raw_Data_for_FY22[[#This Row],[Median]]","v":0},{"$f":"(((AAMC_Raw_Data_for_FY22[[#This Row],[75th]]-AAMC_Raw_Data_for_FY22[[#This Row],[Median]])/25)*10) + AAMC_Raw_Data_for_FY22[[#This Row],[Median]]","v":0},{"$f":"(((AAMC_Raw_Data_for_FY22[[#This Row],[75th]]-AAMC_Raw_Data_for_FY22[[#This Row],[Median]])/25)*15) + AAMC_Raw_Data_for_FY22[[#This Row],[Median]]","v":0},{"$f":"(((AAMC_Raw_Data_for_FY22[[#This Row],[75th]]-AAMC_Raw_Data_for_FY22[[#This Row],[Median]])/25)*20) + AAMC_Raw_Data_for_FY22[[#This Row],[Median]]","v":0},null,{"$f":"(((AAMC_Raw_Data_for_FY22[[#This Row],[75th]]-AAMC_Raw_Data_for_FY22[[#This Row],[Median]])/25)*30) + AAMC_Raw_Data_for_FY22[[#This Row],[Median]]","v":0},{"$f":"(((AAMC_Raw_Data_for_FY22[[#This Row],[75th]]-AAMC_Raw_Data_for_FY22[[#This Row],[Median]])/25)*35) + AAMC_Raw_Data_for_FY22[[#This Row],[Median]]","v":0},{"$f":"(((AAMC_Raw_Data_for_FY22[[#This Row],[75th]]-AAMC_Raw_Data_for_FY22[[#This Row],[Median]])/25)*40) + AAMC_Raw_Data_for_FY22[[#This Row],[Median]]","v":0}]
[{"$f":"AAMC_Raw_Data_for_FY22[[#This Row],[Source]]&AAMC_Raw_Data_for_FY22[[#This Row],[Type]]&AAMC_Raw_Data_for_FY22[[#This Row],[School Subset]]&AAMC_Raw_Data_for_FY22[[#This Row],[Rank]]&AAMC_Raw_Data_for_FY22[[#This Row],[Degree]]&AAMC_Raw_Data_for_FY22[[#This Row],[Department / Specialty]]&\"L\"","v":"AAMCAcademicPublicAssistantPhDDiagnostic Radiology TotalL"},"Diagnostic Radiology Total",4,"AAMC","Academic","Public","Assistant","PhD","2021-2022",111804,{"$f":"(((AAMC_Raw_Data_for_FY22[[#This Row],[Median]]-AAMC_Raw_Data_for_FY22[[#This Row],[25th]])/25)*5) + AAMC_Raw_Data_for_FY22[[#This Row],[25th]]","v":114443.2},{"$f":"(((AAMC_Raw_Data_for_FY22[[#This Row],[Median]]-AAMC_Raw_Data_for_FY22[[#This Row],[25th]])/25)*10) + AAMC_Raw_Data_for_FY22[[#This Row],[25th]]","v":117082.4},{"$f":"(((AAMC_Raw_Data_for_FY22[[#This Row],[Median]]-AAMC_Raw_Data_for_FY22[[#This Row],[25th]])/25)*15) + AAMC_Raw_Data_for_FY22[[#This Row],[25th]]","v":119721.60000000001},{"$f":"(((AAMC_Raw_Data_for_FY22[[#This Row],[Median]]-AAMC_Raw_Data_for_FY22[[#This Row],[25th]])/25)*20) + AAMC_Raw_Data_for_FY22[[#This Row],[25th]]","v":122360.8},125000,{"$f":"(((AAMC_Raw_Data_for_FY22[[#This Row],[75th]]-AAMC_Raw_Data_for_FY22[[#This Row],[Median]])/25)*5) + AAMC_Raw_Data_for_FY22[[#This Row],[Median]]","v":132771.20000000001},{"$f":"(((AAMC_Raw_Data_for_FY22[[#This Row],[75th]]-AAMC_Raw_Data_for_FY22[[#This Row],[Median]])/25)*10) + AAMC_Raw_Data_for_FY22[[#This Row],[Median]]","v":140542.39999999999},{"$f":"(((AAMC_Raw_Data_for_FY22[[#This Row],[75th]]-AAMC_Raw_Data_for_FY22[[#This Row],[Median]])/25)*15) + AAMC_Raw_Data_for_FY22[[#This Row],[Median]]","v":148313.60000000001},{"$f":"(((AAMC_Raw_Data_for_FY22[[#This Row],[75th]]-AAMC_Raw_Data_for_FY22[[#This Row],[Median]])/25)*20) + AAMC_Raw_Data_for_FY22[[#This Row],[Median]]","v":156084.79999999999},163856,{"$f":"(((AAMC_Raw_Data_for_FY22[[#This Row],[75th]]-AAMC_Raw_Data_for_FY22[[#This Row],[Median]])/25)*30) + AAMC_Raw_Data_for_FY22[[#This Row],[Median]]","v":171627.2},{"$f":"(((AAMC_Raw_Data_for_FY22[[#This Row],[75th]]-AAMC_Raw_Data_for_FY22[[#This Row],[Median]])/25)*35) + AAMC_Raw_Data_for_FY22[[#This Row],[Median]]","v":179398.39999999999},{"$f":"(((AAMC_Raw_Data_for_FY22[[#This Row],[75th]]-AAMC_Raw_Data_for_FY22[[#This Row],[Median]])/25)*40) + AAMC_Raw_Data_for_FY22[[#This Row],[Median]]","v":187169.6}]
[{"$f":"AAMC_Raw_Data_for_FY22[[#This Row],[Source]]&AAMC_Raw_Data_for_FY22[[#This Row],[Type]]&AAMC_Raw_Data_for_FY22[[#This Row],[School Subset]]&AAMC_Raw_Data_for_FY22[[#This Row],[Rank]]&AAMC_Raw_Data_for_FY22[[#This Row],[Degree]]&AAMC_Raw_Data_for_FY22[[#This Row],[Department / Specialty]]&\"L\"","v":"AAMCAcademicPublicAssociatePhDDiagnostic Radiology TotalL"},"Diagnostic Radiology Total",3,"AAMC","Academic","Public","Associate","PhD","2021-2022",147407,{"$f":"(((AAMC_Raw_Data_for_FY22[[#This Row],[Median]]-AAMC_Raw_Data_for_FY22[[#This Row],[25th]])/25)*5) + AAMC_Raw_Data_for_FY22[[#This Row],[25th]]","v":151333.20000000001},{"$f":"(((AAMC_Raw_Data_for_FY22[[#This Row],[Median]]-AAMC_Raw_Data_for_FY22[[#This Row],[25th]])/25)*10) + AAMC_Raw_Data_for_FY22[[#This Row],[25th]]","v":155259.4},{"$f":"(((AAMC_Raw_Data_for_FY22[[#This Row],[Median]]-AAMC_Raw_Data_for_FY22[[#This Row],[25th]])/25)*15) + AAMC_Raw_Data_for_FY22[[#This Row],[25th]]","v":159185.60000000001},{"$f":"(((AAMC_Raw_Data_for_FY22[[#This Row],[Median]]-AAMC_Raw_Data_for_FY22[[#This Row],[25th]])/25)*20) + AAMC_Raw_Data_for_FY22[[#This Row],[25th]]","v":163111.79999999999},167038,{"$f":"(((AAMC_Raw_Data_for_FY22[[#This Row],[75th]]-AAMC_Raw_Data_for_FY22[[#This Row],[Median]])/25)*5) + AAMC_Raw_Data_for_FY22[[#This Row],[Median]]","v":173830},{"$f":"(((AAMC_Raw_Data_for_FY22[[#This Row],[75th]]-AAMC_Raw_Data_for_FY22[[#This Row],[Median]])/25)*10) + AAMC_Raw_Data_for_FY22[[#This Row],[Median]]","v":180622},{"$f":"(((AAMC_Raw_Data_for_FY22[[#This Row],[75th]]-AAMC_Raw_Data_for_FY22[[#This Row],[Median]])/25)*15) + AAMC_Raw_Data_for_FY22[[#This Row],[Median]]","v":187414},{"$f":"(((AAMC_Raw_Data_for_FY22[[#This Row],[75th]]-AAMC_Raw_Data_for_FY22[[#This Row],[Median]])/25)*20) + AAMC_Raw_Data_for_FY22[[#This Row],[Median]]","v":194206},200998,{"$f":"(((AAMC_Raw_Data_for_FY22[[#This Row],[75th]]-AAMC_Raw_Data_for_FY22[[#This Row],[Median]])/25)*30) + AAMC_Raw_Data_for_FY22[[#This Row],[Median]]","v":207790},{"$f":"(((AAMC_Raw_Data_for_FY22[[#This Row],[75th]]-AAMC_Raw_Data_for_FY22[[#This Row],[Median]])/25)*35) + AAMC_Raw_Data_for_FY22[[#This Row],[Median]]","v":214582},{"$f":"(((AAMC_Raw_Data_for_FY22[[#This Row],[75th]]-AAMC_Raw_Data_for_FY22[[#This Row],[Median]])/25)*40) + AAMC_Raw_Data_for_FY22[[#This Row],[Median]]","v":221374}]
[{"$f":"AAMC_Raw_Data_for_FY22[[#This Row],[Source]]&AAMC_Raw_Data_for_FY22[[#This Row],[Type]]&AAMC_Raw_Data_for_FY22[[#This Row],[School Subset]]&AAMC_Raw_Data_for_FY22[[#This Row],[Rank]]&AAMC_Raw_Data_for_FY22[[#This Row],[Degree]]&AAMC_Raw_Data_for_FY22[[#This Row],[Department / Specialty]]&\"L\"","v":"AAMCAcademicPublicProfessorPhDDiagnostic Radiology TotalL"},"Diagnostic Radiology Total",2,"AAMC","Academic","Public","Professor","PhD","2021-2022",185000,{"$f":"(((AAMC_Raw_Data_for_FY22[[#This Row],[Median]]-AAMC_Raw_Data_for_FY22[[#This Row],[25th]])/25)*5) + AAMC_Raw_Data_for_FY22[[#This Row],[25th]]","v":191633.4},{"$f":"(((AAMC_Raw_Data_for_FY22[[#This Row],[Median]]-AAMC_Raw_Data_for_FY22[[#This Row],[25th]])/25)*10) + AAMC_Raw_Data_for_FY22[[#This Row],[25th]]","v":198266.8},{"$f":"(((AAMC_Raw_Data_for_FY22[[#This Row],[Median]]-AAMC_Raw_Data_for_FY22[[#This Row],[25th]])/25)*15) + AAMC_Raw_Data_for_FY22[[#This Row],[25th]]","v":204900.2},{"$f":"(((AAMC_Raw_Data_for_FY22[[#This Row],[Median]]-AAMC_Raw_Data_for_FY22[[#This Row],[25th]])/25)*20) + AAMC_Raw_Data_for_FY22[[#This Row],[25th]]","v":211533.6},218167,{"$f":"(((AAMC_Raw_Data_for_FY22[[#This Row],[75th]]-AAMC_Raw_Data_for_FY22[[#This Row],[Median]])/25)*5) + AAMC_Raw_Data_for_FY22[[#This Row],[Median]]","v":228400.6},{"$f":"(((AAMC_Raw_Data_for_FY22[[#This Row],[75th]]-AAMC_Raw_Data_for_FY22[[#This Row],[Median]])/25)*10) + AAMC_Raw_Data_for_FY22[[#This Row],[Median]]","v":238634.2},{"$f":"(((AAMC_Raw_Data_for_FY22[[#This Row],[75th]]-AAMC_Raw_Data_for_FY22[[#This Row],[Median]])/25)*15) + AAMC_Raw_Data_for_FY22[[#This Row],[Median]]","v":248867.8},{"$f":"(((AAMC_Raw_Data_for_FY22[[#This Row],[75th]]-AAMC_Raw_Data_for_FY22[[#This Row],[Median]])/25)*20) + AAMC_Raw_Data_for_FY22[[#This Row],[Median]]","v":259101.4},269335,{"$f":"(((AAMC_Raw_Data_for_FY22[[#This Row],[75th]]-AAMC_Raw_Data_for_FY22[[#This Row],[Median]])/25)*30) + AAMC_Raw_Data_for_FY22[[#This Row],[Median]]","v":279568.59999999998},{"$f":"(((AAMC_Raw_Data_for_FY22[[#This Row],[75th]]-AAMC_Raw_Data_for_FY22[[#This Row],[Median]])/25)*35) + AAMC_Raw_Data_for_FY22[[#This Row],[Median]]","v":289802.2},{"$f":"(((AAMC_Raw_Data_for_FY22[[#This Row],[75th]]-AAMC_Raw_Data_for_FY22[[#This Row],[Median]])/25)*40) + AAMC_Raw_Data_for_FY22[[#This Row],[Median]]","v":300035.8}]
[{"$f":"AAMC_Raw_Data_for_FY22[[#This Row],[Source]]&AAMC_Raw_Data_for_FY22[[#This Row],[Type]]&AAMC_Raw_Data_for_FY22[[#This Row],[School Subset]]&AAMC_Raw_Data_for_FY22[[#This Row],[Rank]]&AAMC_Raw_Data_for_FY22[[#This Row],[Degree]]&AAMC_Raw_Data_for_FY22[[#This Row],[Department / Specialty]]&\"L\"","v":"AAMCAcademicPublicChiefPhDDiagnostic Radiology TotalL"},"Diagnostic Radiology Total",6,"AAMC","Academic","Public","Chief","PhD","2021-2022",null,{"$f":"(((AAMC_Raw_Data_for_FY22[[#This Row],[Median]]-AAMC_Raw_Data_for_FY22[[#This Row],[25th]])/25)*5) + AAMC_Raw_Data_for_FY22[[#This Row],[25th]]","v":0},{"$f":"(((AAMC_Raw_Data_for_FY22[[#This Row],[Median]]-AAMC_Raw_Data_for_FY22[[#This Row],[25th]])/25)*10) + AAMC_Raw_Data_for_FY22[[#This Row],[25th]]","v":0},{"$f":"(((AAMC_Raw_Data_for_FY22[[#This Row],[Median]]-AAMC_Raw_Data_for_FY22[[#This Row],[25th]])/25)*15) + AAMC_Raw_Data_for_FY22[[#This Row],[25th]]","v":0},{"$f":"(((AAMC_Raw_Data_for_FY22[[#This Row],[Median]]-AAMC_Raw_Data_for_FY22[[#This Row],[25th]])/25)*20) + AAMC_Raw_Data_for_FY22[[#This Row],[25th]]","v":0},null,{"$f":"(((AAMC_Raw_Data_for_FY22[[#This Row],[75th]]-AAMC_Raw_Data_for_FY22[[#This Row],[Median]])/25)*5) + AAMC_Raw_Data_for_FY22[[#This Row],[Median]]","v":0},{"$f":"(((AAMC_Raw_Data_for_FY22[[#This Row],[75th]]-AAMC_Raw_Data_for_FY22[[#This Row],[Median]])/25)*10) + AAMC_Raw_Data_for_FY22[[#This Row],[Median]]","v":0},{"$f":"(((AAMC_Raw_Data_for_FY22[[#This Row],[75th]]-AAMC_Raw_Data_for_FY22[[#This Row],[Median]])/25)*15) + AAMC_Raw_Data_for_FY22[[#This Row],[Median]]","v":0},{"$f":"(((AAMC_Raw_Data_for_FY22[[#This Row],[75th]]-AAMC_Raw_Data_for_FY22[[#This Row],[Median]])/25)*20) + AAMC_Raw_Data_for_FY22[[#This Row],[Median]]","v":0},null,{"$f":"(((AAMC_Raw_Data_for_FY22[[#This Row],[75th]]-AAMC_Raw_Data_for_FY22[[#This Row],[Median]])/25)*30) + AAMC_Raw_Data_for_FY22[[#This Row],[Median]]","v":0},{"$f":"(((AAMC_Raw_Data_for_FY22[[#This Row],[75th]]-AAMC_Raw_Data_for_FY22[[#This Row],[Median]])/25)*35) + AAMC_Raw_Data_for_FY22[[#This Row],[Median]]","v":0},{"$f":"(((AAMC_Raw_Data_for_FY22[[#This Row],[75th]]-AAMC_Raw_Data_for_FY22[[#This Row],[Median]])/25)*40) + AAMC_Raw_Data_for_FY22[[#This Row],[Median]]","v":0}]
[{"$f":"AAMC_Raw_Data_for_FY22[[#This Row],[Source]]&AAMC_Raw_Data_for_FY22[[#This Row],[Type]]&AAMC_Raw_Data_for_FY22[[#This Row],[School Subset]]&AAMC_Raw_Data_for_FY22[[#This Row],[Rank]]&AAMC_Raw_Data_for_FY22[[#This Row],[Degree]]&AAMC_Raw_Data_for_FY22[[#This Row],[Department / Specialty]]&\"L\"","v":"AAMCAcademicPublicAssistantPhDDiagnostic Radiology: InterventionalL"},"Diagnostic Radiology: Interventional",4,"AAMC","Academic","Public","Assistant","PhD","2021-2022",null,{"$f":"(((AAMC_Raw_Data_for_FY22[[#This Row],[Median]]-AAMC_Raw_Data_for_FY22[[#This Row],[25th]])/25)*5) + AAMC_Raw_Data_for_FY22[[#This Row],[25th]]","v":0},{"$f":"(((AAMC_Raw_Data_for_FY22[[#This Row],[Median]]-AAMC_Raw_Data_for_FY22[[#This Row],[25th]])/25)*10) + AAMC_Raw_Data_for_FY22[[#This Row],[25th]]","v":0},{"$f":"(((AAMC_Raw_Data_for_FY22[[#This Row],[Median]]-AAMC_Raw_Data_for_FY22[[#This Row],[25th]])/25)*15) + AAMC_Raw_Data_for_FY22[[#This Row],[25th]]","v":0},{"$f":"(((AAMC_Raw_Data_for_FY22[[#This Row],[Median]]-AAMC_Raw_Data_for_FY22[[#This Row],[25th]])/25)*20) + AAMC_Raw_Data_for_FY22[[#This Row],[25th]]","v":0},null,{"$f":"(((AAMC_Raw_Data_for_FY22[[#This Row],[75th]]-AAMC_Raw_Data_for_FY22[[#This Row],[Median]])/25)*5) + AAMC_Raw_Data_for_FY22[[#This Row],[Median]]","v":0},{"$f":"(((AAMC_Raw_Data_for_FY22[[#This Row],[75th]]-AAMC_Raw_Data_for_FY22[[#This Row],[Median]])/25)*10) + AAMC_Raw_Data_for_FY22[[#This Row],[Median]]","v":0},{"$f":"(((AAMC_Raw_Data_for_FY22[[#This Row],[75th]]-AAMC_Raw_Data_for_FY22[[#This Row],[Median]])/25)*15) + AAMC_Raw_Data_for_FY22[[#This Row],[Median]]","v":0},{"$f":"(((AAMC_Raw_Data_for_FY22[[#This Row],[75th]]-AAMC_Raw_Data_for_FY22[[#This Row],[Median]])/25)*20) + AAMC_Raw_Data_for_FY22[[#This Row],[Median]]","v":0},null,{"$f":"(((AAMC_Raw_Data_for_FY22[[#This Row],[75th]]-AAMC_Raw_Data_for_FY22[[#This Row],[Median]])/25)*30) + AAMC_Raw_Data_for_FY22[[#This Row],[Median]]","v":0},{"$f":"(((AAMC_Raw_Data_for_FY22[[#This Row],[75th]]-AAMC_Raw_Data_for_FY22[[#This Row],[Median]])/25)*35) + AAMC_Raw_Data_for_FY22[[#This Row],[Median]]","v":0},{"$f":"(((AAMC_Raw_Data_for_FY22[[#This Row],[75th]]-AAMC_Raw_Data_for_FY22[[#This Row],[Median]])/25)*40) + AAMC_Raw_Data_for_FY22[[#This Row],[Median]]","v":0}]
[{"$f":"AAMC_Raw_Data_for_FY22[[#This Row],[Source]]&AAMC_Raw_Data_for_FY22[[#This Row],[Type]]&AAMC_Raw_Data_for_FY22[[#This Row],[School Subset]]&AAMC_Raw_Data_for_FY22[[#This Row],[Rank]]&AAMC_Raw_Data_for_FY22[[#This Row],[Degree]]&AAMC_Raw_Data_for_FY22[[#This Row],[Department / Specialty]]&\"L\"","v":"AAMCAcademicPublicAssociatePhDDiagnostic Radiology: InterventionalL"},"Diagnostic Radiology: Interventional",3,"AAMC","Academic","Public","Associate","PhD","2021-2022",null,{"$f":"(((AAMC_Raw_Data_for_FY22[[#This Row],[Median]]-AAMC_Raw_Data_for_FY22[[#This Row],[25th]])/25)*5) + AAMC_Raw_Data_for_FY22[[#This Row],[25th]]","v":0},{"$f":"(((AAMC_Raw_Data_for_FY22[[#This Row],[Median]]-AAMC_Raw_Data_for_FY22[[#This Row],[25th]])/25)*10) + AAMC_Raw_Data_for_FY22[[#This Row],[25th]]","v":0},{"$f":"(((AAMC_Raw_Data_for_FY22[[#This Row],[Median]]-AAMC_Raw_Data_for_FY22[[#This Row],[25th]])/25)*15) + AAMC_Raw_Data_for_FY22[[#This Row],[25th]]","v":0},{"$f":"(((AAMC_Raw_Data_for_FY22[[#This Row],[Median]]-AAMC_Raw_Data_for_FY22[[#This Row],[25th]])/25)*20) + AAMC_Raw_Data_for_FY22[[#This Row],[25th]]","v":0},null,{"$f":"(((AAMC_Raw_Data_for_FY22[[#This Row],[75th]]-AAMC_Raw_Data_for_FY22[[#This Row],[Median]])/25)*5) + AAMC_Raw_Data_for_FY22[[#This Row],[Median]]","v":0},{"$f":"(((AAMC_Raw_Data_for_FY22[[#This Row],[75th]]-AAMC_Raw_Data_for_FY22[[#This Row],[Median]])/25)*10) + AAMC_Raw_Data_for_FY22[[#This Row],[Median]]","v":0},{"$f":"(((AAMC_Raw_Data_for_FY22[[#This Row],[75th]]-AAMC_Raw_Data_for_FY22[[#This Row],[Median]])/25)*15) + AAMC_Raw_Data_for_FY22[[#This Row],[Median]]","v":0},{"$f":"(((AAMC_Raw_Data_for_FY22[[#This Row],[75th]]-AAMC_Raw_Data_for_FY22[[#This Row],[Median]])/25)*20) + AAMC_Raw_Data_for_FY22[[#This Row],[Median]]","v":0},null,{"$f":"(((AAMC_Raw_Data_for_FY22[[#This Row],[75th]]-AAMC_Raw_Data_for_FY22[[#This Row],[Median]])/25)*30) + AAMC_Raw_Data_for_FY22[[#This Row],[Median]]","v":0},{"$f":"(((AAMC_Raw_Data_for_FY22[[#This Row],[75th]]-AAMC_Raw_Data_for_FY22[[#This Row],[Median]])/25)*35) + AAMC_Raw_Data_for_FY22[[#This Row],[Median]]","v":0},{"$f":"(((AAMC_Raw_Data_for_FY22[[#This Row],[75th]]-AAMC_Raw_Data_for_FY22[[#This Row],[Median]])/25)*40) + AAMC_Raw_Data_for_FY22[[#This Row],[Median]]","v":0}]
[{"$f":"AAMC_Raw_Data_for_FY22[[#This Row],[Source]]&AAMC_Raw_Data_for_FY22[[#This Row],[Type]]&AAMC_Raw_Data_for_FY22[[#This Row],[School Subset]]&AAMC_Raw_Data_for_FY22[[#This Row],[Rank]]&AAMC_Raw_Data_for_FY22[[#This Row],[Degree]]&AAMC_Raw_Data_for_FY22[[#This Row],[Department / Specialty]]&\"L\"","v":"AAMCAcademicPublicProfessorPhDDiagnostic Radiology: InterventionalL"},"Diagnostic Radiology: Interventional",2,"AAMC","Academic","Public","Professor","PhD","2021-2022",null,{"$f":"(((AAMC_Raw_Data_for_FY22[[#This Row],[Median]]-AAMC_Raw_Data_for_FY22[[#This Row],[25th]])/25)*5) + AAMC_Raw_Data_for_FY22[[#This Row],[25th]]","v":0},{"$f":"(((AAMC_Raw_Data_for_FY22[[#This Row],[Median]]-AAMC_Raw_Data_for_FY22[[#This Row],[25th]])/25)*10) + AAMC_Raw_Data_for_FY22[[#This Row],[25th]]","v":0},{"$f":"(((AAMC_Raw_Data_for_FY22[[#This Row],[Median]]-AAMC_Raw_Data_for_FY22[[#This Row],[25th]])/25)*15) + AAMC_Raw_Data_for_FY22[[#This Row],[25th]]","v":0},{"$f":"(((AAMC_Raw_Data_for_FY22[[#This Row],[Median]]-AAMC_Raw_Data_for_FY22[[#This Row],[25th]])/25)*20) + AAMC_Raw_Data_for_FY22[[#This Row],[25th]]","v":0},null,{"$f":"(((AAMC_Raw_Data_for_FY22[[#This Row],[75th]]-AAMC_Raw_Data_for_FY22[[#This Row],[Median]])/25)*5) + AAMC_Raw_Data_for_FY22[[#This Row],[Median]]","v":0},{"$f":"(((AAMC_Raw_Data_for_FY22[[#This Row],[75th]]-AAMC_Raw_Data_for_FY22[[#This Row],[Median]])/25)*10) + AAMC_Raw_Data_for_FY22[[#This Row],[Median]]","v":0},{"$f":"(((AAMC_Raw_Data_for_FY22[[#This Row],[75th]]-AAMC_Raw_Data_for_FY22[[#This Row],[Median]])/25)*15) + AAMC_Raw_Data_for_FY22[[#This Row],[Median]]","v":0},{"$f":"(((AAMC_Raw_Data_for_FY22[[#This Row],[75th]]-AAMC_Raw_Data_for_FY22[[#This Row],[Median]])/25)*20) + AAMC_Raw_Data_for_FY22[[#This Row],[Median]]","v":0},null,{"$f":"(((AAMC_Raw_Data_for_FY22[[#This Row],[75th]]-AAMC_Raw_Data_for_FY22[[#This Row],[Median]])/25)*30) + AAMC_Raw_Data_for_FY22[[#This Row],[Median]]","v":0},{"$f":"(((AAMC_Raw_Data_for_FY22[[#This Row],[75th]]-AAMC_Raw_Data_for_FY22[[#This Row],[Median]])/25)*35) + AAMC_Raw_Data_for_FY22[[#This Row],[Median]]","v":0},{"$f":"(((AAMC_Raw_Data_for_FY22[[#This Row],[75th]]-AAMC_Raw_Data_for_FY22[[#This Row],[Median]])/25)*40) + AAMC_Raw_Data_for_FY22[[#This Row],[Median]]","v":0}]
[{"$f":"AAMC_Raw_Data_for_FY22[[#This Row],[Source]]&AAMC_Raw_Data_for_FY22[[#This Row],[Type]]&AAMC_Raw_Data_for_FY22[[#This Row],[School Subset]]&AAMC_Raw_Data_for_FY22[[#This Row],[Rank]]&AAMC_Raw_Data_for_FY22[[#This Row],[Degree]]&AAMC_Raw_Data_for_FY22[[#This Row],[Department / Specialty]]&\"L\"","v":"AAMCAcademicPublicInstructorPhDDiagnostic Radiology: Non-interventionalL"},"Diagnostic Radiology: Non-interventional",5,"AAMC","Academic","Public","Instructor","PhD","2021-2022",null,{"$f":"(((AAMC_Raw_Data_for_FY22[[#This Row],[Median]]-AAMC_Raw_Data_for_FY22[[#This Row],[25th]])/25)*5) + AAMC_Raw_Data_for_FY22[[#This Row],[25th]]","v":0},{"$f":"(((AAMC_Raw_Data_for_FY22[[#This Row],[Median]]-AAMC_Raw_Data_for_FY22[[#This Row],[25th]])/25)*10) + AAMC_Raw_Data_for_FY22[[#This Row],[25th]]","v":0},{"$f":"(((AAMC_Raw_Data_for_FY22[[#This Row],[Median]]-AAMC_Raw_Data_for_FY22[[#This Row],[25th]])/25)*15) + AAMC_Raw_Data_for_FY22[[#This Row],[25th]]","v":0},{"$f":"(((AAMC_Raw_Data_for_FY22[[#This Row],[Median]]-AAMC_Raw_Data_for_FY22[[#This Row],[25th]])/25)*20) + AAMC_Raw_Data_for_FY22[[#This Row],[25th]]","v":0},null,{"$f":"(((AAMC_Raw_Data_for_FY22[[#This Row],[75th]]-AAMC_Raw_Data_for_FY22[[#This Row],[Median]])/25)*5) + AAMC_Raw_Data_for_FY22[[#This Row],[Median]]","v":0},{"$f":"(((AAMC_Raw_Data_for_FY22[[#This Row],[75th]]-AAMC_Raw_Data_for_FY22[[#This Row],[Median]])/25)*10) + AAMC_Raw_Data_for_FY22[[#This Row],[Median]]","v":0},{"$f":"(((AAMC_Raw_Data_for_FY22[[#This Row],[75th]]-AAMC_Raw_Data_for_FY22[[#This Row],[Median]])/25)*15) + AAMC_Raw_Data_for_FY22[[#This Row],[Median]]","v":0},{"$f":"(((AAMC_Raw_Data_for_FY22[[#This Row],[75th]]-AAMC_Raw_Data_for_FY22[[#This Row],[Median]])/25)*20) + AAMC_Raw_Data_for_FY22[[#This Row],[Median]]","v":0},null,{"$f":"(((AAMC_Raw_Data_for_FY22[[#This Row],[75th]]-AAMC_Raw_Data_for_FY22[[#This Row],[Median]])/25)*30) + AAMC_Raw_Data_for_FY22[[#This Row],[Median]]","v":0},{"$f":"(((AAMC_Raw_Data_for_FY22[[#This Row],[75th]]-AAMC_Raw_Data_for_FY22[[#This Row],[Median]])/25)*35) + AAMC_Raw_Data_for_FY22[[#This Row],[Median]]","v":0},{"$f":"(((AAMC_Raw_Data_for_FY22[[#This Row],[75th]]-AAMC_Raw_Data_for_FY22[[#This Row],[Median]])/25)*40) + AAMC_Raw_Data_for_FY22[[#This Row],[Median]]","v":0}]
[{"$f":"AAMC_Raw_Data_for_FY22[[#This Row],[Source]]&AAMC_Raw_Data_for_FY22[[#This Row],[Type]]&AAMC_Raw_Data_for_FY22[[#This Row],[School Subset]]&AAMC_Raw_Data_for_FY22[[#This Row],[Rank]]&AAMC_Raw_Data_for_FY22[[#This Row],[Degree]]&AAMC_Raw_Data_for_FY22[[#This Row],[Department / Specialty]]&\"L\"","v":"AAMCAcademicPublicAssistantPhDDiagnostic Radiology: Non-interventionalL"},"Diagnostic Radiology: Non-interventional",4,"AAMC","Academic","Public","Assistant","PhD","2021-2022",112775,{"$f":"(((AAMC_Raw_Data_for_FY22[[#This Row],[Median]]-AAMC_Raw_Data_for_FY22[[#This Row],[25th]])/25)*5) + AAMC_Raw_Data_for_FY22[[#This Row],[25th]]","v":116386.6},{"$f":"(((AAMC_Raw_Data_for_FY22[[#This Row],[Median]]-AAMC_Raw_Data_for_FY22[[#This Row],[25th]])/25)*10) + AAMC_Raw_Data_for_FY22[[#This Row],[25th]]","v":119998.2},{"$f":"(((AAMC_Raw_Data_for_FY22[[#This Row],[Median]]-AAMC_Raw_Data_for_FY22[[#This Row],[25th]])/25)*15) + AAMC_Raw_Data_for_FY22[[#This Row],[25th]]","v":123609.8},{"$f":"(((AAMC_Raw_Data_for_FY22[[#This Row],[Median]]-AAMC_Raw_Data_for_FY22[[#This Row],[25th]])/25)*20) + AAMC_Raw_Data_for_FY22[[#This Row],[25th]]","v":127221.4},130833,{"$f":"(((AAMC_Raw_Data_for_FY22[[#This Row],[75th]]-AAMC_Raw_Data_for_FY22[[#This Row],[Median]])/25)*5) + AAMC_Raw_Data_for_FY22[[#This Row],[Median]]","v":137399.4},{"$f":"(((AAMC_Raw_Data_for_FY22[[#This Row],[75th]]-AAMC_Raw_Data_for_FY22[[#This Row],[Median]])/25)*10) + AAMC_Raw_Data_for_FY22[[#This Row],[Median]]","v":143965.79999999999},{"$f":"(((AAMC_Raw_Data_for_FY22[[#This Row],[75th]]-AAMC_Raw_Data_for_FY22[[#This Row],[Median]])/25)*15) + AAMC_Raw_Data_for_FY22[[#This Row],[Median]]","v":150532.20000000001},{"$f":"(((AAMC_Raw_Data_for_FY22[[#This Row],[75th]]-AAMC_Raw_Data_for_FY22[[#This Row],[Median]])/25)*20) + AAMC_Raw_Data_for_FY22[[#This Row],[Median]]","v":157098.6},163665,{"$f":"(((AAMC_Raw_Data_for_FY22[[#This Row],[75th]]-AAMC_Raw_Data_for_FY22[[#This Row],[Median]])/25)*30) + AAMC_Raw_Data_for_FY22[[#This Row],[Median]]","v":170231.4},{"$f":"(((AAMC_Raw_Data_for_FY22[[#This Row],[75th]]-AAMC_Raw_Data_for_FY22[[#This Row],[Median]])/25)*35) + AAMC_Raw_Data_for_FY22[[#This Row],[Median]]","v":176797.8},{"$f":"(((AAMC_Raw_Data_for_FY22[[#This Row],[75th]]-AAMC_Raw_Data_for_FY22[[#This Row],[Median]])/25)*40) + AAMC_Raw_Data_for_FY22[[#This Row],[Median]]","v":183364.2}]
[{"$f":"AAMC_Raw_Data_for_FY22[[#This Row],[Source]]&AAMC_Raw_Data_for_FY22[[#This Row],[Type]]&AAMC_Raw_Data_for_FY22[[#This Row],[School Subset]]&AAMC_Raw_Data_for_FY22[[#This Row],[Rank]]&AAMC_Raw_Data_for_FY22[[#This Row],[Degree]]&AAMC_Raw_Data_for_FY22[[#This Row],[Department / Specialty]]&\"L\"","v":"AAMCAcademicPublicAssociatePhDDiagnostic Radiology: Non-interventionalL"},"Diagnostic Radiology: Non-interventional",3,"AAMC","Academic","Public","Associate","PhD","2021-2022",147167,{"$f":"(((AAMC_Raw_Data_for_FY22[[#This Row],[Median]]-AAMC_Raw_Data_for_FY22[[#This Row],[25th]])/25)*5) + AAMC_Raw_Data_for_FY22[[#This Row],[25th]]","v":151053.6},{"$f":"(((AAMC_Raw_Data_for_FY22[[#This Row],[Median]]-AAMC_Raw_Data_for_FY22[[#This Row],[25th]])/25)*10) + AAMC_Raw_Data_for_FY22[[#This Row],[25th]]","v":154940.20000000001},{"$f":"(((AAMC_Raw_Data_for_FY22[[#This Row],[Median]]-AAMC_Raw_Data_for_FY22[[#This Row],[25th]])/25)*15) + AAMC_Raw_Data_for_FY22[[#This Row],[25th]]","v":158826.79999999999},{"$f":"(((AAMC_Raw_Data_for_FY22[[#This Row],[Median]]-AAMC_Raw_Data_for_FY22[[#This Row],[25th]])/25)*20) + AAMC_Raw_Data_for_FY22[[#This Row],[25th]]","v":162713.4},166600,{"$f":"(((AAMC_Raw_Data_for_FY22[[#This Row],[75th]]-AAMC_Raw_Data_for_FY22[[#This Row],[Median]])/25)*5) + AAMC_Raw_Data_for_FY22[[#This Row],[Median]]","v":173546.2},{"$f":"(((AAMC_Raw_Data_for_FY22[[#This Row],[75th]]-AAMC_Raw_Data_for_FY22[[#This Row],[Median]])/25)*10) + AAMC_Raw_Data_for_FY22[[#This Row],[Median]]","v":180492.4},{"$f":"(((AAMC_Raw_Data_for_FY22[[#This Row],[75th]]-AAMC_Raw_Data_for_FY22[[#This Row],[Median]])/25)*15) + AAMC_Raw_Data_for_FY22[[#This Row],[Median]]","v":187438.6},{"$f":"(((AAMC_Raw_Data_for_FY22[[#This Row],[75th]]-AAMC_Raw_Data_for_FY22[[#This Row],[Median]])/25)*20) + AAMC_Raw_Data_for_FY22[[#This Row],[Median]]","v":194384.8},201331,{"$f":"(((AAMC_Raw_Data_for_FY22[[#This Row],[75th]]-AAMC_Raw_Data_for_FY22[[#This Row],[Median]])/25)*30) + AAMC_Raw_Data_for_FY22[[#This Row],[Median]]","v":208277.2},{"$f":"(((AAMC_Raw_Data_for_FY22[[#This Row],[75th]]-AAMC_Raw_Data_for_FY22[[#This Row],[Median]])/25)*35) + AAMC_Raw_Data_for_FY22[[#This Row],[Median]]","v":215223.4},{"$f":"(((AAMC_Raw_Data_for_FY22[[#This Row],[75th]]-AAMC_Raw_Data_for_FY22[[#This Row],[Median]])/25)*40) + AAMC_Raw_Data_for_FY22[[#This Row],[Median]]","v":222169.60000000001}]
[{"$f":"AAMC_Raw_Data_for_FY22[[#This Row],[Source]]&AAMC_Raw_Data_for_FY22[[#This Row],[Type]]&AAMC_Raw_Data_for_FY22[[#This Row],[School Subset]]&AAMC_Raw_Data_for_FY22[[#This Row],[Rank]]&AAMC_Raw_Data_for_FY22[[#This Row],[Degree]]&AAMC_Raw_Data_for_FY22[[#This Row],[Department / Specialty]]&\"L\"","v":"AAMCAcademicPublicProfessorPhDDiagnostic Radiology: Non-interventionalL"},"Diagnostic Radiology: Non-interventional",2,"AAMC","Academic","Public","Professor","PhD","2021-2022",185000,{"$f":"(((AAMC_Raw_Data_for_FY22[[#This Row],[Median]]-AAMC_Raw_Data_for_FY22[[#This Row],[25th]])/25)*5) + AAMC_Raw_Data_for_FY22[[#This Row],[25th]]","v":191633.4},{"$f":"(((AAMC_Raw_Data_for_FY22[[#This Row],[Median]]-AAMC_Raw_Data_for_FY22[[#This Row],[25th]])/25)*10) + AAMC_Raw_Data_for_FY22[[#This Row],[25th]]","v":198266.8},{"$f":"(((AAMC_Raw_Data_for_FY22[[#This Row],[Median]]-AAMC_Raw_Data_for_FY22[[#This Row],[25th]])/25)*15) + AAMC_Raw_Data_for_FY22[[#This Row],[25th]]","v":204900.2},{"$f":"(((AAMC_Raw_Data_for_FY22[[#This Row],[Median]]-AAMC_Raw_Data_for_FY22[[#This Row],[25th]])/25)*20) + AAMC_Raw_Data_for_FY22[[#This Row],[25th]]","v":211533.6},218167,{"$f":"(((AAMC_Raw_Data_for_FY22[[#This Row],[75th]]-AAMC_Raw_Data_for_FY22[[#This Row],[Median]])/25)*5) + AAMC_Raw_Data_for_FY22[[#This Row],[Median]]","v":230733.6},{"$f":"(((AAMC_Raw_Data_for_FY22[[#This Row],[75th]]-AAMC_Raw_Data_for_FY22[[#This Row],[Median]])/25)*10) + AAMC_Raw_Data_for_FY22[[#This Row],[Median]]","v":243300.2},{"$f":"(((AAMC_Raw_Data_for_FY22[[#This Row],[75th]]-AAMC_Raw_Data_for_FY22[[#This Row],[Median]])/25)*15) + AAMC_Raw_Data_for_FY22[[#This Row],[Median]]","v":255866.8},{"$f":"(((AAMC_Raw_Data_for_FY22[[#This Row],[75th]]-AAMC_Raw_Data_for_FY22[[#This Row],[Median]])/25)*20) + AAMC_Raw_Data_for_FY22[[#This Row],[Median]]","v":268433.40000000002},281000,{"$f":"(((AAMC_Raw_Data_for_FY22[[#This Row],[75th]]-AAMC_Raw_Data_for_FY22[[#This Row],[Median]])/25)*30) + AAMC_Raw_Data_for_FY22[[#This Row],[Median]]","v":293566.59999999998},{"$f":"(((AAMC_Raw_Data_for_FY22[[#This Row],[75th]]-AAMC_Raw_Data_for_FY22[[#This Row],[Median]])/25)*35) + AAMC_Raw_Data_for_FY22[[#This Row],[Median]]","v":306133.2},{"$f":"(((AAMC_Raw_Data_for_FY22[[#This Row],[75th]]-AAMC_Raw_Data_for_FY22[[#This Row],[Median]])/25)*40) + AAMC_Raw_Data_for_FY22[[#This Row],[Median]]","v":318699.8}]
[{"$f":"AAMC_Raw_Data_for_FY22[[#This Row],[Source]]&AAMC_Raw_Data_for_FY22[[#This Row],[Type]]&AAMC_Raw_Data_for_FY22[[#This Row],[School Subset]]&AAMC_Raw_Data_for_FY22[[#This Row],[Rank]]&AAMC_Raw_Data_for_FY22[[#This Row],[Degree]]&AAMC_Raw_Data_for_FY22[[#This Row],[Department / Specialty]]&\"L\"","v":"AAMCAcademicPublicChiefPhDDiagnostic Radiology: Non-interventionalL"},"Diagnostic Radiology: Non-interventional",6,"AAMC","Academic","Public","Chief","PhD","2021-2022",null,{"$f":"(((AAMC_Raw_Data_for_FY22[[#This Row],[Median]]-AAMC_Raw_Data_for_FY22[[#This Row],[25th]])/25)*5) + AAMC_Raw_Data_for_FY22[[#This Row],[25th]]","v":0},{"$f":"(((AAMC_Raw_Data_for_FY22[[#This Row],[Median]]-AAMC_Raw_Data_for_FY22[[#This Row],[25th]])/25)*10) + AAMC_Raw_Data_for_FY22[[#This Row],[25th]]","v":0},{"$f":"(((AAMC_Raw_Data_for_FY22[[#This Row],[Median]]-AAMC_Raw_Data_for_FY22[[#This Row],[25th]])/25)*15) + AAMC_Raw_Data_for_FY22[[#This Row],[25th]]","v":0},{"$f":"(((AAMC_Raw_Data_for_FY22[[#This Row],[Median]]-AAMC_Raw_Data_for_FY22[[#This Row],[25th]])/25)*20) + AAMC_Raw_Data_for_FY22[[#This Row],[25th]]","v":0},null,{"$f":"(((AAMC_Raw_Data_for_FY22[[#This Row],[75th]]-AAMC_Raw_Data_for_FY22[[#This Row],[Median]])/25)*5) + AAMC_Raw_Data_for_FY22[[#This Row],[Median]]","v":0},{"$f":"(((AAMC_Raw_Data_for_FY22[[#This Row],[75th]]-AAMC_Raw_Data_for_FY22[[#This Row],[Median]])/25)*10) + AAMC_Raw_Data_for_FY22[[#This Row],[Median]]","v":0},{"$f":"(((AAMC_Raw_Data_for_FY22[[#This Row],[75th]]-AAMC_Raw_Data_for_FY22[[#This Row],[Median]])/25)*15) + AAMC_Raw_Data_for_FY22[[#This Row],[Median]]","v":0},{"$f":"(((AAMC_Raw_Data_for_FY22[[#This Row],[75th]]-AAMC_Raw_Data_for_FY22[[#This Row],[Median]])/25)*20) + AAMC_Raw_Data_for_FY22[[#This Row],[Median]]","v":0},null,{"$f":"(((AAMC_Raw_Data_for_FY22[[#This Row],[75th]]-AAMC_Raw_Data_for_FY22[[#This Row],[Median]])/25)*30) + AAMC_Raw_Data_for_FY22[[#This Row],[Median]]","v":0},{"$f":"(((AAMC_Raw_Data_for_FY22[[#This Row],[75th]]-AAMC_Raw_Data_for_FY22[[#This Row],[Median]])/25)*35) + AAMC_Raw_Data_for_FY22[[#This Row],[Median]]","v":0},{"$f":"(((AAMC_Raw_Data_for_FY22[[#This Row],[75th]]-AAMC_Raw_Data_for_FY22[[#This Row],[Median]])/25)*40) + AAMC_Raw_Data_for_FY22[[#This Row],[Median]]","v":0}]
[{"$f":"AAMC_Raw_Data_for_FY22[[#This Row],[Source]]&AAMC_Raw_Data_for_FY22[[#This Row],[Type]]&AAMC_Raw_Data_for_FY22[[#This Row],[School Subset]]&AAMC_Raw_Data_for_FY22[[#This Row],[Rank]]&AAMC_Raw_Data_for_FY22[[#This Row],[Degree]]&AAMC_Raw_Data_for_FY22[[#This Row],[Department / Specialty]]&\"L\"","v":"AAMCAcademicPublicAssistantPhDNuclear MedicineL"},"Nuclear Medicine",4,"AAMC","Academic","Public","Assistant","PhD","2021-2022",null,{"$f":"(((AAMC_Raw_Data_for_FY22[[#This Row],[Median]]-AAMC_Raw_Data_for_FY22[[#This Row],[25th]])/25)*5) + AAMC_Raw_Data_for_FY22[[#This Row],[25th]]","v":0},{"$f":"(((AAMC_Raw_Data_for_FY22[[#This Row],[Median]]-AAMC_Raw_Data_for_FY22[[#This Row],[25th]])/25)*10) + AAMC_Raw_Data_for_FY22[[#This Row],[25th]]","v":0},{"$f":"(((AAMC_Raw_Data_for_FY22[[#This Row],[Median]]-AAMC_Raw_Data_for_FY22[[#This Row],[25th]])/25)*15) + AAMC_Raw_Data_for_FY22[[#This Row],[25th]]","v":0},{"$f":"(((AAMC_Raw_Data_for_FY22[[#This Row],[Median]]-AAMC_Raw_Data_for_FY22[[#This Row],[25th]])/25)*20) + AAMC_Raw_Data_for_FY22[[#This Row],[25th]]","v":0},null,{"$f":"(((AAMC_Raw_Data_for_FY22[[#This Row],[75th]]-AAMC_Raw_Data_for_FY22[[#This Row],[Median]])/25)*5) + AAMC_Raw_Data_for_FY22[[#This Row],[Median]]","v":0},{"$f":"(((AAMC_Raw_Data_for_FY22[[#This Row],[75th]]-AAMC_Raw_Data_for_FY22[[#This Row],[Median]])/25)*10) + AAMC_Raw_Data_for_FY22[[#This Row],[Median]]","v":0},{"$f":"(((AAMC_Raw_Data_for_FY22[[#This Row],[75th]]-AAMC_Raw_Data_for_FY22[[#This Row],[Median]])/25)*15) + AAMC_Raw_Data_for_FY22[[#This Row],[Median]]","v":0},{"$f":"(((AAMC_Raw_Data_for_FY22[[#This Row],[75th]]-AAMC_Raw_Data_for_FY22[[#This Row],[Median]])/25)*20) + AAMC_Raw_Data_for_FY22[[#This Row],[Median]]","v":0},null,{"$f":"(((AAMC_Raw_Data_for_FY22[[#This Row],[75th]]-AAMC_Raw_Data_for_FY22[[#This Row],[Median]])/25)*30) + AAMC_Raw_Data_for_FY22[[#This Row],[Median]]","v":0},{"$f":"(((AAMC_Raw_Data_for_FY22[[#This Row],[75th]]-AAMC_Raw_Data_for_FY22[[#This Row],[Median]])/25)*35) + AAMC_Raw_Data_for_FY22[[#This Row],[Median]]","v":0},{"$f":"(((AAMC_Raw_Data_for_FY22[[#This Row],[75th]]-AAMC_Raw_Data_for_FY22[[#This Row],[Median]])/25)*40) + AAMC_Raw_Data_for_FY22[[#This Row],[Median]]","v":0}]
[{"$f":"AAMC_Raw_Data_for_FY22[[#This Row],[Source]]&AAMC_Raw_Data_for_FY22[[#This Row],[Type]]&AAMC_Raw_Data_for_FY22[[#This Row],[School Subset]]&AAMC_Raw_Data_for_FY22[[#This Row],[Rank]]&AAMC_Raw_Data_for_FY22[[#This Row],[Degree]]&AAMC_Raw_Data_for_FY22[[#This Row],[Department / Specialty]]&\"L\"","v":"AAMCAcademicPublicAssociatePhDNuclear MedicineL"},"Nuclear Medicine",3,"AAMC","Academic","Public","Associate","PhD","2021-2022",null,{"$f":"(((AAMC_Raw_Data_for_FY22[[#This Row],[Median]]-AAMC_Raw_Data_for_FY22[[#This Row],[25th]])/25)*5) + AAMC_Raw_Data_for_FY22[[#This Row],[25th]]","v":0},{"$f":"(((AAMC_Raw_Data_for_FY22[[#This Row],[Median]]-AAMC_Raw_Data_for_FY22[[#This Row],[25th]])/25)*10) + AAMC_Raw_Data_for_FY22[[#This Row],[25th]]","v":0},{"$f":"(((AAMC_Raw_Data_for_FY22[[#This Row],[Median]]-AAMC_Raw_Data_for_FY22[[#This Row],[25th]])/25)*15) + AAMC_Raw_Data_for_FY22[[#This Row],[25th]]","v":0},{"$f":"(((AAMC_Raw_Data_for_FY22[[#This Row],[Median]]-AAMC_Raw_Data_for_FY22[[#This Row],[25th]])/25)*20) + AAMC_Raw_Data_for_FY22[[#This Row],[25th]]","v":0},null,{"$f":"(((AAMC_Raw_Data_for_FY22[[#This Row],[75th]]-AAMC_Raw_Data_for_FY22[[#This Row],[Median]])/25)*5) + AAMC_Raw_Data_for_FY22[[#This Row],[Median]]","v":0},{"$f":"(((AAMC_Raw_Data_for_FY22[[#This Row],[75th]]-AAMC_Raw_Data_for_FY22[[#This Row],[Median]])/25)*10) + AAMC_Raw_Data_for_FY22[[#This Row],[Median]]","v":0},{"$f":"(((AAMC_Raw_Data_for_FY22[[#This Row],[75th]]-AAMC_Raw_Data_for_FY22[[#This Row],[Median]])/25)*15) + AAMC_Raw_Data_for_FY22[[#This Row],[Median]]","v":0},{"$f":"(((AAMC_Raw_Data_for_FY22[[#This Row],[75th]]-AAMC_Raw_Data_for_FY22[[#This Row],[Median]])/25)*20) + AAMC_Raw_Data_for_FY22[[#This Row],[Median]]","v":0},null,{"$f":"(((AAMC_Raw_Data_for_FY22[[#This Row],[75th]]-AAMC_Raw_Data_for_FY22[[#This Row],[Median]])/25)*30) + AAMC_Raw_Data_for_FY22[[#This Row],[Median]]","v":0},{"$f":"(((AAMC_Raw_Data_for_FY22[[#This Row],[75th]]-AAMC_Raw_Data_for_FY22[[#This Row],[Median]])/25)*35) + AAMC_Raw_Data_for_FY22[[#This Row],[Median]]","v":0},{"$f":"(((AAMC_Raw_Data_for_FY22[[#This Row],[75th]]-AAMC_Raw_Data_for_FY22[[#This Row],[Median]])/25)*40) + AAMC_Raw_Data_for_FY22[[#This Row],[Median]]","v":0}]
[{"$f":"AAMC_Raw_Data_for_FY22[[#This Row],[Source]]&AAMC_Raw_Data_for_FY22[[#This Row],[Type]]&AAMC_Raw_Data_for_FY22[[#This Row],[School Subset]]&AAMC_Raw_Data_for_FY22[[#This Row],[Rank]]&AAMC_Raw_Data_for_FY22[[#This Row],[Degree]]&AAMC_Raw_Data_for_FY22[[#This Row],[Department / Specialty]]&\"L\"","v":"AAMCAcademicPublicProfessorPhDNuclear MedicineL"},"Nuclear Medicine",2,"AAMC","Academic","Public","Professor","PhD","2021-2022",null,{"$f":"(((AAMC_Raw_Data_for_FY22[[#This Row],[Median]]-AAMC_Raw_Data_for_FY22[[#This Row],[25th]])/25)*5) + AAMC_Raw_Data_for_FY22[[#This Row],[25th]]","v":0},{"$f":"(((AAMC_Raw_Data_for_FY22[[#This Row],[Median]]-AAMC_Raw_Data_for_FY22[[#This Row],[25th]])/25)*10) + AAMC_Raw_Data_for_FY22[[#This Row],[25th]]","v":0},{"$f":"(((AAMC_Raw_Data_for_FY22[[#This Row],[Median]]-AAMC_Raw_Data_for_FY22[[#This Row],[25th]])/25)*15) + AAMC_Raw_Data_for_FY22[[#This Row],[25th]]","v":0},{"$f":"(((AAMC_Raw_Data_for_FY22[[#This Row],[Median]]-AAMC_Raw_Data_for_FY22[[#This Row],[25th]])/25)*20) + AAMC_Raw_Data_for_FY22[[#This Row],[25th]]","v":0},null,{"$f":"(((AAMC_Raw_Data_for_FY22[[#This Row],[75th]]-AAMC_Raw_Data_for_FY22[[#This Row],[Median]])/25)*5) + AAMC_Raw_Data_for_FY22[[#This Row],[Median]]","v":0},{"$f":"(((AAMC_Raw_Data_for_FY22[[#This Row],[75th]]-AAMC_Raw_Data_for_FY22[[#This Row],[Median]])/25)*10) + AAMC_Raw_Data_for_FY22[[#This Row],[Median]]","v":0},{"$f":"(((AAMC_Raw_Data_for_FY22[[#This Row],[75th]]-AAMC_Raw_Data_for_FY22[[#This Row],[Median]])/25)*15) + AAMC_Raw_Data_for_FY22[[#This Row],[Median]]","v":0},{"$f":"(((AAMC_Raw_Data_for_FY22[[#This Row],[75th]]-AAMC_Raw_Data_for_FY22[[#This Row],[Median]])/25)*20) + AAMC_Raw_Data_for_FY22[[#This Row],[Median]]","v":0},null,{"$f":"(((AAMC_Raw_Data_for_FY22[[#This Row],[75th]]-AAMC_Raw_Data_for_FY22[[#This Row],[Median]])/25)*30) + AAMC_Raw_Data_for_FY22[[#This Row],[Median]]","v":0},{"$f":"(((AAMC_Raw_Data_for_FY22[[#This Row],[75th]]-AAMC_Raw_Data_for_FY22[[#This Row],[Median]])/25)*35) + AAMC_Raw_Data_for_FY22[[#This Row],[Median]]","v":0},{"$f":"(((AAMC_Raw_Data_for_FY22[[#This Row],[75th]]-AAMC_Raw_Data_for_FY22[[#This Row],[Median]])/25)*40) + AAMC_Raw_Data_for_FY22[[#This Row],[Median]]","v":0}]
[{"$f":"AAMC_Raw_Data_for_FY22[[#This Row],[Source]]&AAMC_Raw_Data_for_FY22[[#This Row],[Type]]&AAMC_Raw_Data_for_FY22[[#This Row],[School Subset]]&AAMC_Raw_Data_for_FY22[[#This Row],[Rank]]&AAMC_Raw_Data_for_FY22[[#This Row],[Degree]]&AAMC_Raw_Data_for_FY22[[#This Row],[Department / Specialty]]&\"L\"","v":"AAMCAcademicPublicInstructorPhDRadiation OncologyL"},"Radiation Oncology",5,"AAMC","Academic","Public","Instructor","PhD","2021-2022",null,{"$f":"(((AAMC_Raw_Data_for_FY22[[#This Row],[Median]]-AAMC_Raw_Data_for_FY22[[#This Row],[25th]])/25)*5) + AAMC_Raw_Data_for_FY22[[#This Row],[25th]]","v":0},{"$f":"(((AAMC_Raw_Data_for_FY22[[#This Row],[Median]]-AAMC_Raw_Data_for_FY22[[#This Row],[25th]])/25)*10) + AAMC_Raw_Data_for_FY22[[#This Row],[25th]]","v":0},{"$f":"(((AAMC_Raw_Data_for_FY22[[#This Row],[Median]]-AAMC_Raw_Data_for_FY22[[#This Row],[25th]])/25)*15) + AAMC_Raw_Data_for_FY22[[#This Row],[25th]]","v":0},{"$f":"(((AAMC_Raw_Data_for_FY22[[#This Row],[Median]]-AAMC_Raw_Data_for_FY22[[#This Row],[25th]])/25)*20) + AAMC_Raw_Data_for_FY22[[#This Row],[25th]]","v":0},null,{"$f":"(((AAMC_Raw_Data_for_FY22[[#This Row],[75th]]-AAMC_Raw_Data_for_FY22[[#This Row],[Median]])/25)*5) + AAMC_Raw_Data_for_FY22[[#This Row],[Median]]","v":0},{"$f":"(((AAMC_Raw_Data_for_FY22[[#This Row],[75th]]-AAMC_Raw_Data_for_FY22[[#This Row],[Median]])/25)*10) + AAMC_Raw_Data_for_FY22[[#This Row],[Median]]","v":0},{"$f":"(((AAMC_Raw_Data_for_FY22[[#This Row],[75th]]-AAMC_Raw_Data_for_FY22[[#This Row],[Median]])/25)*15) + AAMC_Raw_Data_for_FY22[[#This Row],[Median]]","v":0},{"$f":"(((AAMC_Raw_Data_for_FY22[[#This Row],[75th]]-AAMC_Raw_Data_for_FY22[[#This Row],[Median]])/25)*20) + AAMC_Raw_Data_for_FY22[[#This Row],[Median]]","v":0},null,{"$f":"(((AAMC_Raw_Data_for_FY22[[#This Row],[75th]]-AAMC_Raw_Data_for_FY22[[#This Row],[Median]])/25)*30) + AAMC_Raw_Data_for_FY22[[#This Row],[Median]]","v":0},{"$f":"(((AAMC_Raw_Data_for_FY22[[#This Row],[75th]]-AAMC_Raw_Data_for_FY22[[#This Row],[Median]])/25)*35) + AAMC_Raw_Data_for_FY22[[#This Row],[Median]]","v":0},{"$f":"(((AAMC_Raw_Data_for_FY22[[#This Row],[75th]]-AAMC_Raw_Data_for_FY22[[#This Row],[Median]])/25)*40) + AAMC_Raw_Data_for_FY22[[#This Row],[Median]]","v":0}]
[{"$f":"AAMC_Raw_Data_for_FY22[[#This Row],[Source]]&AAMC_Raw_Data_for_FY22[[#This Row],[Type]]&AAMC_Raw_Data_for_FY22[[#This Row],[School Subset]]&AAMC_Raw_Data_for_FY22[[#This Row],[Rank]]&AAMC_Raw_Data_for_FY22[[#This Row],[Degree]]&AAMC_Raw_Data_for_FY22[[#This Row],[Department / Specialty]]&\"L\"","v":"AAMCAcademicPublicAssistantPhDRadiation OncologyL"},"Radiation Oncology",4,"AAMC","Academic","Public","Assistant","PhD","2021-2022",128150,{"$f":"(((AAMC_Raw_Data_for_FY22[[#This Row],[Median]]-AAMC_Raw_Data_for_FY22[[#This Row],[25th]])/25)*5) + AAMC_Raw_Data_for_FY22[[#This Row],[25th]]","v":136980.4},{"$f":"(((AAMC_Raw_Data_for_FY22[[#This Row],[Median]]-AAMC_Raw_Data_for_FY22[[#This Row],[25th]])/25)*10) + AAMC_Raw_Data_for_FY22[[#This Row],[25th]]","v":145810.79999999999},{"$f":"(((AAMC_Raw_Data_for_FY22[[#This Row],[Median]]-AAMC_Raw_Data_for_FY22[[#This Row],[25th]])/25)*15) + AAMC_Raw_Data_for_FY22[[#This Row],[25th]]","v":154641.20000000001},{"$f":"(((AAMC_Raw_Data_for_FY22[[#This Row],[Median]]-AAMC_Raw_Data_for_FY22[[#This Row],[25th]])/25)*20) + AAMC_Raw_Data_for_FY22[[#This Row],[25th]]","v":163471.6},172302,{"$f":"(((AAMC_Raw_Data_for_FY22[[#This Row],[75th]]-AAMC_Raw_Data_for_FY22[[#This Row],[Median]])/25)*5) + AAMC_Raw_Data_for_FY22[[#This Row],[Median]]","v":176608.4},{"$f":"(((AAMC_Raw_Data_for_FY22[[#This Row],[75th]]-AAMC_Raw_Data_for_FY22[[#This Row],[Median]])/25)*10) + AAMC_Raw_Data_for_FY22[[#This Row],[Median]]","v":180914.8},{"$f":"(((AAMC_Raw_Data_for_FY22[[#This Row],[75th]]-AAMC_Raw_Data_for_FY22[[#This Row],[Median]])/25)*15) + AAMC_Raw_Data_for_FY22[[#This Row],[Median]]","v":185221.2},{"$f":"(((AAMC_Raw_Data_for_FY22[[#This Row],[75th]]-AAMC_Raw_Data_for_FY22[[#This Row],[Median]])/25)*20) + AAMC_Raw_Data_for_FY22[[#This Row],[Median]]","v":189527.6},193834,{"$f":"(((AAMC_Raw_Data_for_FY22[[#This Row],[75th]]-AAMC_Raw_Data_for_FY22[[#This Row],[Median]])/25)*30) + AAMC_Raw_Data_for_FY22[[#This Row],[Median]]","v":198140.4},{"$f":"(((AAMC_Raw_Data_for_FY22[[#This Row],[75th]]-AAMC_Raw_Data_for_FY22[[#This Row],[Median]])/25)*35) + AAMC_Raw_Data_for_FY22[[#This Row],[Median]]","v":202446.8},{"$f":"(((AAMC_Raw_Data_for_FY22[[#This Row],[75th]]-AAMC_Raw_Data_for_FY22[[#This Row],[Median]])/25)*40) + AAMC_Raw_Data_for_FY22[[#This Row],[Median]]","v":206753.2}]
[{"$f":"AAMC_Raw_Data_for_FY22[[#This Row],[Source]]&AAMC_Raw_Data_for_FY22[[#This Row],[Type]]&AAMC_Raw_Data_for_FY22[[#This Row],[School Subset]]&AAMC_Raw_Data_for_FY22[[#This Row],[Rank]]&AAMC_Raw_Data_for_FY22[[#This Row],[Degree]]&AAMC_Raw_Data_for_FY22[[#This Row],[Department / Specialty]]&\"L\"","v":"AAMCAcademicPublicAssociatePhDRadiation OncologyL"},"Radiation Oncology",3,"AAMC","Academic","Public","Associate","PhD","2021-2022",182858,{"$f":"(((AAMC_Raw_Data_for_FY22[[#This Row],[Median]]-AAMC_Raw_Data_for_FY22[[#This Row],[25th]])/25)*5) + AAMC_Raw_Data_for_FY22[[#This Row],[25th]]","v":190226.8},{"$f":"(((AAMC_Raw_Data_for_FY22[[#This Row],[Median]]-AAMC_Raw_Data_for_FY22[[#This Row],[25th]])/25)*10) + AAMC_Raw_Data_for_FY22[[#This Row],[25th]]","v":197595.6},{"$f":"(((AAMC_Raw_Data_for_FY22[[#This Row],[Median]]-AAMC_Raw_Data_for_FY22[[#This Row],[25th]])/25)*15) + AAMC_Raw_Data_for_FY22[[#This Row],[25th]]","v":204964.4},{"$f":"(((AAMC_Raw_Data_for_FY22[[#This Row],[Median]]-AAMC_Raw_Data_for_FY22[[#This Row],[25th]])/25)*20) + AAMC_Raw_Data_for_FY22[[#This Row],[25th]]","v":212333.2},219702,{"$f":"(((AAMC_Raw_Data_for_FY22[[#This Row],[75th]]-AAMC_Raw_Data_for_FY22[[#This Row],[Median]])/25)*5) + AAMC_Raw_Data_for_FY22[[#This Row],[Median]]","v":223988.2},{"$f":"(((AAMC_Raw_Data_for_FY22[[#This Row],[75th]]-AAMC_Raw_Data_for_FY22[[#This Row],[Median]])/25)*10) + AAMC_Raw_Data_for_FY22[[#This Row],[Median]]","v":228274.4},{"$f":"(((AAMC_Raw_Data_for_FY22[[#This Row],[75th]]-AAMC_Raw_Data_for_FY22[[#This Row],[Median]])/25)*15) + AAMC_Raw_Data_for_FY22[[#This Row],[Median]]","v":232560.6},{"$f":"(((AAMC_Raw_Data_for_FY22[[#This Row],[75th]]-AAMC_Raw_Data_for_FY22[[#This Row],[Median]])/25)*20) + AAMC_Raw_Data_for_FY22[[#This Row],[Median]]","v":236846.8},241133,{"$f":"(((AAMC_Raw_Data_for_FY22[[#This Row],[75th]]-AAMC_Raw_Data_for_FY22[[#This Row],[Median]])/25)*30) + AAMC_Raw_Data_for_FY22[[#This Row],[Median]]","v":245419.2},{"$f":"(((AAMC_Raw_Data_for_FY22[[#This Row],[75th]]-AAMC_Raw_Data_for_FY22[[#This Row],[Median]])/25)*35) + AAMC_Raw_Data_for_FY22[[#This Row],[Median]]","v":249705.4},{"$f":"(((AAMC_Raw_Data_for_FY22[[#This Row],[75th]]-AAMC_Raw_Data_for_FY22[[#This Row],[Median]])/25)*40) + AAMC_Raw_Data_for_FY22[[#This Row],[Median]]","v":253991.6}]
[{"$f":"AAMC_Raw_Data_for_FY22[[#This Row],[Source]]&AAMC_Raw_Data_for_FY22[[#This Row],[Type]]&AAMC_Raw_Data_for_FY22[[#This Row],[School Subset]]&AAMC_Raw_Data_for_FY22[[#This Row],[Rank]]&AAMC_Raw_Data_for_FY22[[#This Row],[Degree]]&AAMC_Raw_Data_for_FY22[[#This Row],[Department / Specialty]]&\"L\"","v":"AAMCAcademicPublicProfessorPhDRadiation OncologyL"},"Radiation Oncology",2,"AAMC","Academic","Public","Professor","PhD","2021-2022",217694,{"$f":"(((AAMC_Raw_Data_for_FY22[[#This Row],[Median]]-AAMC_Raw_Data_for_FY22[[#This Row],[25th]])/25)*5) + AAMC_Raw_Data_for_FY22[[#This Row],[25th]]","v":225467.6},{"$f":"(((AAMC_Raw_Data_for_FY22[[#This Row],[Median]]-AAMC_Raw_Data_for_FY22[[#This Row],[25th]])/25)*10) + AAMC_Raw_Data_for_FY22[[#This Row],[25th]]","v":233241.2},{"$f":"(((AAMC_Raw_Data_for_FY22[[#This Row],[Median]]-AAMC_Raw_Data_for_FY22[[#This Row],[25th]])/25)*15) + AAMC_Raw_Data_for_FY22[[#This Row],[25th]]","v":241014.8},{"$f":"(((AAMC_Raw_Data_for_FY22[[#This Row],[Median]]-AAMC_Raw_Data_for_FY22[[#This Row],[25th]])/25)*20) + AAMC_Raw_Data_for_FY22[[#This Row],[25th]]","v":248788.4},256562,{"$f":"(((AAMC_Raw_Data_for_FY22[[#This Row],[75th]]-AAMC_Raw_Data_for_FY22[[#This Row],[Median]])/25)*5) + AAMC_Raw_Data_for_FY22[[#This Row],[Median]]","v":264316.59999999998},{"$f":"(((AAMC_Raw_Data_for_FY22[[#This Row],[75th]]-AAMC_Raw_Data_for_FY22[[#This Row],[Median]])/25)*10) + AAMC_Raw_Data_for_FY22[[#This Row],[Median]]","v":272071.2},{"$f":"(((AAMC_Raw_Data_for_FY22[[#This Row],[75th]]-AAMC_Raw_Data_for_FY22[[#This Row],[Median]])/25)*15) + AAMC_Raw_Data_for_FY22[[#This Row],[Median]]","v":279825.8},{"$f":"(((AAMC_Raw_Data_for_FY22[[#This Row],[75th]]-AAMC_Raw_Data_for_FY22[[#This Row],[Median]])/25)*20) + AAMC_Raw_Data_for_FY22[[#This Row],[Median]]","v":287580.40000000002},295335,{"$f":"(((AAMC_Raw_Data_for_FY22[[#This Row],[75th]]-AAMC_Raw_Data_for_FY22[[#This Row],[Median]])/25)*30) + AAMC_Raw_Data_for_FY22[[#This Row],[Median]]","v":303089.59999999998},{"$f":"(((AAMC_Raw_Data_for_FY22[[#This Row],[75th]]-AAMC_Raw_Data_for_FY22[[#This Row],[Median]])/25)*35) + AAMC_Raw_Data_for_FY22[[#This Row],[Median]]","v":310844.2},{"$f":"(((AAMC_Raw_Data_for_FY22[[#This Row],[75th]]-AAMC_Raw_Data_for_FY22[[#This Row],[Median]])/25)*40) + AAMC_Raw_Data_for_FY22[[#This Row],[Median]]","v":318598.8}]
[{"$f":"AAMC_Raw_Data_for_FY22[[#This Row],[Source]]&AAMC_Raw_Data_for_FY22[[#This Row],[Type]]&AAMC_Raw_Data_for_FY22[[#This Row],[School Subset]]&AAMC_Raw_Data_for_FY22[[#This Row],[Rank]]&AAMC_Raw_Data_for_FY22[[#This Row],[Degree]]&AAMC_Raw_Data_for_FY22[[#This Row],[Department / Specialty]]&\"L\"","v":"AAMCAcademicPublicChiefPhDRadiation OncologyL"},"Radiation Oncology",6,"AAMC","Academic","Public","Chief","PhD","2021-2022",339111,{"$f":"(((AAMC_Raw_Data_for_FY22[[#This Row],[Median]]-AAMC_Raw_Data_for_FY22[[#This Row],[25th]])/25)*5) + AAMC_Raw_Data_for_FY22[[#This Row],[25th]]","v":346331.6},{"$f":"(((AAMC_Raw_Data_for_FY22[[#This Row],[Median]]-AAMC_Raw_Data_for_FY22[[#This Row],[25th]])/25)*10) + AAMC_Raw_Data_for_FY22[[#This Row],[25th]]","v":353552.2},{"$f":"(((AAMC_Raw_Data_for_FY22[[#This Row],[Median]]-AAMC_Raw_Data_for_FY22[[#This Row],[25th]])/25)*15) + AAMC_Raw_Data_for_FY22[[#This Row],[25th]]","v":360772.8},{"$f":"(((AAMC_Raw_Data_for_FY22[[#This Row],[Median]]-AAMC_Raw_Data_for_FY22[[#This Row],[25th]])/25)*20) + AAMC_Raw_Data_for_FY22[[#This Row],[25th]]","v":367993.4},375214,{"$f":"(((AAMC_Raw_Data_for_FY22[[#This Row],[75th]]-AAMC_Raw_Data_for_FY22[[#This Row],[Median]])/25)*5) + AAMC_Raw_Data_for_FY22[[#This Row],[Median]]","v":376497.4},{"$f":"(((AAMC_Raw_Data_for_FY22[[#This Row],[75th]]-AAMC_Raw_Data_for_FY22[[#This Row],[Median]])/25)*10) + AAMC_Raw_Data_for_FY22[[#This Row],[Median]]","v":377780.8},{"$f":"(((AAMC_Raw_Data_for_FY22[[#This Row],[75th]]-AAMC_Raw_Data_for_FY22[[#This Row],[Median]])/25)*15) + AAMC_Raw_Data_for_FY22[[#This Row],[Median]]","v":379064.2},{"$f":"(((AAMC_Raw_Data_for_FY22[[#This Row],[75th]]-AAMC_Raw_Data_for_FY22[[#This Row],[Median]])/25)*20) + AAMC_Raw_Data_for_FY22[[#This Row],[Median]]","v":380347.6},381631,{"$f":"(((AAMC_Raw_Data_for_FY22[[#This Row],[75th]]-AAMC_Raw_Data_for_FY22[[#This Row],[Median]])/25)*30) + AAMC_Raw_Data_for_FY22[[#This Row],[Median]]","v":382914.4},{"$f":"(((AAMC_Raw_Data_for_FY22[[#This Row],[75th]]-AAMC_Raw_Data_for_FY22[[#This Row],[Median]])/25)*35) + AAMC_Raw_Data_for_FY22[[#This Row],[Median]]","v":384197.8},{"$f":"(((AAMC_Raw_Data_for_FY22[[#This Row],[75th]]-AAMC_Raw_Data_for_FY22[[#This Row],[Median]])/25)*40) + AAMC_Raw_Data_for_FY22[[#This Row],[Median]]","v":385481.2}]
[{"$f":"AAMC_Raw_Data_for_FY22[[#This Row],[Source]]&AAMC_Raw_Data_for_FY22[[#This Row],[Type]]&AAMC_Raw_Data_for_FY22[[#This Row],[School Subset]]&AAMC_Raw_Data_for_FY22[[#This Row],[Rank]]&AAMC_Raw_Data_for_FY22[[#This Row],[Degree]]&AAMC_Raw_Data_for_FY22[[#This Row],[Department / Specialty]]&\"L\"","v":"AAMCAcademicPublicInstructorPhDOther RadiologyL"},"Other Radiology",5,"AAMC","Academic","Public","Instructor","PhD","2021-2022",64915,{"$f":"(((AAMC_Raw_Data_for_FY22[[#This Row],[Median]]-AAMC_Raw_Data_for_FY22[[#This Row],[25th]])/25)*5) + AAMC_Raw_Data_for_FY22[[#This Row],[25th]]","v":66922},{"$f":"(((AAMC_Raw_Data_for_FY22[[#This Row],[Median]]-AAMC_Raw_Data_for_FY22[[#This Row],[25th]])/25)*10) + AAMC_Raw_Data_for_FY22[[#This Row],[25th]]","v":68929},{"$f":"(((AAMC_Raw_Data_for_FY22[[#This Row],[Median]]-AAMC_Raw_Data_for_FY22[[#This Row],[25th]])/25)*15) + AAMC_Raw_Data_for_FY22[[#This Row],[25th]]","v":70936},{"$f":"(((AAMC_Raw_Data_for_FY22[[#This Row],[Median]]-AAMC_Raw_Data_for_FY22[[#This Row],[25th]])/25)*20) + AAMC_Raw_Data_for_FY22[[#This Row],[25th]]","v":72943},74950,{"$f":"(((AAMC_Raw_Data_for_FY22[[#This Row],[75th]]-AAMC_Raw_Data_for_FY22[[#This Row],[Median]])/25)*5) + AAMC_Raw_Data_for_FY22[[#This Row],[Median]]","v":75510},{"$f":"(((AAMC_Raw_Data_for_FY22[[#This Row],[75th]]-AAMC_Raw_Data_for_FY22[[#This Row],[Median]])/25)*10) + AAMC_Raw_Data_for_FY22[[#This Row],[Median]]","v":76070},{"$f":"(((AAMC_Raw_Data_for_FY22[[#This Row],[75th]]-AAMC_Raw_Data_for_FY22[[#This Row],[Median]])/25)*15) + AAMC_Raw_Data_for_FY22[[#This Row],[Median]]","v":76630},{"$f":"(((AAMC_Raw_Data_for_FY22[[#This Row],[75th]]-AAMC_Raw_Data_for_FY22[[#This Row],[Median]])/25)*20) + AAMC_Raw_Data_for_FY22[[#This Row],[Median]]","v":77190},77750,{"$f":"(((AAMC_Raw_Data_for_FY22[[#This Row],[75th]]-AAMC_Raw_Data_for_FY22[[#This Row],[Median]])/25)*30) + AAMC_Raw_Data_for_FY22[[#This Row],[Median]]","v":78310},{"$f":"(((AAMC_Raw_Data_for_FY22[[#This Row],[75th]]-AAMC_Raw_Data_for_FY22[[#This Row],[Median]])/25)*35) + AAMC_Raw_Data_for_FY22[[#This Row],[Median]]","v":78870},{"$f":"(((AAMC_Raw_Data_for_FY22[[#This Row],[75th]]-AAMC_Raw_Data_for_FY22[[#This Row],[Median]])/25)*40) + AAMC_Raw_Data_for_FY22[[#This Row],[Median]]","v":79430}]
[{"$f":"AAMC_Raw_Data_for_FY22[[#This Row],[Source]]&AAMC_Raw_Data_for_FY22[[#This Row],[Type]]&AAMC_Raw_Data_for_FY22[[#This Row],[School Subset]]&AAMC_Raw_Data_for_FY22[[#This Row],[Rank]]&AAMC_Raw_Data_for_FY22[[#This Row],[Degree]]&AAMC_Raw_Data_for_FY22[[#This Row],[Department / Specialty]]&\"L\"","v":"AAMCAcademicPublicAssistantPhDOther RadiologyL"},"Other Radiology",4,"AAMC","Academic","Public","Assistant","PhD","2021-2022",103954,{"$f":"(((AAMC_Raw_Data_for_FY22[[#This Row],[Median]]-AAMC_Raw_Data_for_FY22[[#This Row],[25th]])/25)*5) + AAMC_Raw_Data_for_FY22[[#This Row],[25th]]","v":109434.6},{"$f":"(((AAMC_Raw_Data_for_FY22[[#This Row],[Median]]-AAMC_Raw_Data_for_FY22[[#This Row],[25th]])/25)*10) + AAMC_Raw_Data_for_FY22[[#This Row],[25th]]","v":114915.2},{"$f":"(((AAMC_Raw_Data_for_FY22[[#This Row],[Median]]-AAMC_Raw_Data_for_FY22[[#This Row],[25th]])/25)*15) + AAMC_Raw_Data_for_FY22[[#This Row],[25th]]","v":120395.8},{"$f":"(((AAMC_Raw_Data_for_FY22[[#This Row],[Median]]-AAMC_Raw_Data_for_FY22[[#This Row],[25th]])/25)*20) + AAMC_Raw_Data_for_FY22[[#This Row],[25th]]","v":125876.4},131357,{"$f":"(((AAMC_Raw_Data_for_FY22[[#This Row],[75th]]-AAMC_Raw_Data_for_FY22[[#This Row],[Median]])/25)*5) + AAMC_Raw_Data_for_FY22[[#This Row],[Median]]","v":140530.79999999999},{"$f":"(((AAMC_Raw_Data_for_FY22[[#This Row],[75th]]-AAMC_Raw_Data_for_FY22[[#This Row],[Median]])/25)*10) + AAMC_Raw_Data_for_FY22[[#This Row],[Median]]","v":149704.6},{"$f":"(((AAMC_Raw_Data_for_FY22[[#This Row],[75th]]-AAMC_Raw_Data_for_FY22[[#This Row],[Median]])/25)*15) + AAMC_Raw_Data_for_FY22[[#This Row],[Median]]","v":158878.39999999999},{"$f":"(((AAMC_Raw_Data_for_FY22[[#This Row],[75th]]-AAMC_Raw_Data_for_FY22[[#This Row],[Median]])/25)*20) + AAMC_Raw_Data_for_FY22[[#This Row],[Median]]","v":168052.2},177226,{"$f":"(((AAMC_Raw_Data_for_FY22[[#This Row],[75th]]-AAMC_Raw_Data_for_FY22[[#This Row],[Median]])/25)*30) + AAMC_Raw_Data_for_FY22[[#This Row],[Median]]","v":186399.8},{"$f":"(((AAMC_Raw_Data_for_FY22[[#This Row],[75th]]-AAMC_Raw_Data_for_FY22[[#This Row],[Median]])/25)*35) + AAMC_Raw_Data_for_FY22[[#This Row],[Median]]","v":195573.6},{"$f":"(((AAMC_Raw_Data_for_FY22[[#This Row],[75th]]-AAMC_Raw_Data_for_FY22[[#This Row],[Median]])/25)*40) + AAMC_Raw_Data_for_FY22[[#This Row],[Median]]","v":204747.4}]
[{"$f":"AAMC_Raw_Data_for_FY22[[#This Row],[Source]]&AAMC_Raw_Data_for_FY22[[#This Row],[Type]]&AAMC_Raw_Data_for_FY22[[#This Row],[School Subset]]&AAMC_Raw_Data_for_FY22[[#This Row],[Rank]]&AAMC_Raw_Data_for_FY22[[#This Row],[Degree]]&AAMC_Raw_Data_for_FY22[[#This Row],[Department / Specialty]]&\"L\"","v":"AAMCAcademicPublicAssociatePhDOther RadiologyL"},"Other Radiology",3,"AAMC","Academic","Public","Associate","PhD","2021-2022",132417,{"$f":"(((AAMC_Raw_Data_for_FY22[[#This Row],[Median]]-AAMC_Raw_Data_for_FY22[[#This Row],[25th]])/25)*5) + AAMC_Raw_Data_for_FY22[[#This Row],[25th]]","v":137713.60000000001},{"$f":"(((AAMC_Raw_Data_for_FY22[[#This Row],[Median]]-AAMC_Raw_Data_for_FY22[[#This Row],[25th]])/25)*10) + AAMC_Raw_Data_for_FY22[[#This Row],[25th]]","v":143010.20000000001},{"$f":"(((AAMC_Raw_Data_for_FY22[[#This Row],[Median]]-AAMC_Raw_Data_for_FY22[[#This Row],[25th]])/25)*15) + AAMC_Raw_Data_for_FY22[[#This Row],[25th]]","v":148306.79999999999},{"$f":"(((AAMC_Raw_Data_for_FY22[[#This Row],[Median]]-AAMC_Raw_Data_for_FY22[[#This Row],[25th]])/25)*20) + AAMC_Raw_Data_for_FY22[[#This Row],[25th]]","v":153603.4},158900,{"$f":"(((AAMC_Raw_Data_for_FY22[[#This Row],[75th]]-AAMC_Raw_Data_for_FY22[[#This Row],[Median]])/25)*5) + AAMC_Raw_Data_for_FY22[[#This Row],[Median]]","v":163929.60000000001},{"$f":"(((AAMC_Raw_Data_for_FY22[[#This Row],[75th]]-AAMC_Raw_Data_for_FY22[[#This Row],[Median]])/25)*10) + AAMC_Raw_Data_for_FY22[[#This Row],[Median]]","v":168959.2},{"$f":"(((AAMC_Raw_Data_for_FY22[[#This Row],[75th]]-AAMC_Raw_Data_for_FY22[[#This Row],[Median]])/25)*15) + AAMC_Raw_Data_for_FY22[[#This Row],[Median]]","v":173988.8},{"$f":"(((AAMC_Raw_Data_for_FY22[[#This Row],[75th]]-AAMC_Raw_Data_for_FY22[[#This Row],[Median]])/25)*20) + AAMC_Raw_Data_for_FY22[[#This Row],[Median]]","v":179018.4},184048,{"$f":"(((AAMC_Raw_Data_for_FY22[[#This Row],[75th]]-AAMC_Raw_Data_for_FY22[[#This Row],[Median]])/25)*30) + AAMC_Raw_Data_for_FY22[[#This Row],[Median]]","v":189077.6},{"$f":"(((AAMC_Raw_Data_for_FY22[[#This Row],[75th]]-AAMC_Raw_Data_for_FY22[[#This Row],[Median]])/25)*35) + AAMC_Raw_Data_for_FY22[[#This Row],[Median]]","v":194107.2},{"$f":"(((AAMC_Raw_Data_for_FY22[[#This Row],[75th]]-AAMC_Raw_Data_for_FY22[[#This Row],[Median]])/25)*40) + AAMC_Raw_Data_for_FY22[[#This Row],[Median]]","v":199136.8}]
[{"$f":"AAMC_Raw_Data_for_FY22[[#This Row],[Source]]&AAMC_Raw_Data_for_FY22[[#This Row],[Type]]&AAMC_Raw_Data_for_FY22[[#This Row],[School Subset]]&AAMC_Raw_Data_for_FY22[[#This Row],[Rank]]&AAMC_Raw_Data_for_FY22[[#This Row],[Degree]]&AAMC_Raw_Data_for_FY22[[#This Row],[Department / Specialty]]&\"L\"","v":"AAMCAcademicPublicProfessorPhDOther RadiologyL"},"Other Radiology",2,"AAMC","Academic","Public","Professor","PhD","2021-2022",173603,{"$f":"(((AAMC_Raw_Data_for_FY22[[#This Row],[Median]]-AAMC_Raw_Data_for_FY22[[#This Row],[25th]])/25)*5) + AAMC_Raw_Data_for_FY22[[#This Row],[25th]]","v":182090},{"$f":"(((AAMC_Raw_Data_for_FY22[[#This Row],[Median]]-AAMC_Raw_Data_for_FY22[[#This Row],[25th]])/25)*10) + AAMC_Raw_Data_for_FY22[[#This Row],[25th]]","v":190577},{"$f":"(((AAMC_Raw_Data_for_FY22[[#This Row],[Median]]-AAMC_Raw_Data_for_FY22[[#This Row],[25th]])/25)*15) + AAMC_Raw_Data_for_FY22[[#This Row],[25th]]","v":199064},{"$f":"(((AAMC_Raw_Data_for_FY22[[#This Row],[Median]]-AAMC_Raw_Data_for_FY22[[#This Row],[25th]])/25)*20) + AAMC_Raw_Data_for_FY22[[#This Row],[25th]]","v":207551},216038,{"$f":"(((AAMC_Raw_Data_for_FY22[[#This Row],[75th]]-AAMC_Raw_Data_for_FY22[[#This Row],[Median]])/25)*5) + AAMC_Raw_Data_for_FY22[[#This Row],[Median]]","v":224145.2},{"$f":"(((AAMC_Raw_Data_for_FY22[[#This Row],[75th]]-AAMC_Raw_Data_for_FY22[[#This Row],[Median]])/25)*10) + AAMC_Raw_Data_for_FY22[[#This Row],[Median]]","v":232252.4},{"$f":"(((AAMC_Raw_Data_for_FY22[[#This Row],[75th]]-AAMC_Raw_Data_for_FY22[[#This Row],[Median]])/25)*15) + AAMC_Raw_Data_for_FY22[[#This Row],[Median]]","v":240359.6},{"$f":"(((AAMC_Raw_Data_for_FY22[[#This Row],[75th]]-AAMC_Raw_Data_for_FY22[[#This Row],[Median]])/25)*20) + AAMC_Raw_Data_for_FY22[[#This Row],[Median]]","v":248466.8},256574,{"$f":"(((AAMC_Raw_Data_for_FY22[[#This Row],[75th]]-AAMC_Raw_Data_for_FY22[[#This Row],[Median]])/25)*30) + AAMC_Raw_Data_for_FY22[[#This Row],[Median]]","v":264681.2},{"$f":"(((AAMC_Raw_Data_for_FY22[[#This Row],[75th]]-AAMC_Raw_Data_for_FY22[[#This Row],[Median]])/25)*35) + AAMC_Raw_Data_for_FY22[[#This Row],[Median]]","v":272788.40000000002},{"$f":"(((AAMC_Raw_Data_for_FY22[[#This Row],[75th]]-AAMC_Raw_Data_for_FY22[[#This Row],[Median]])/25)*40) + AAMC_Raw_Data_for_FY22[[#This Row],[Median]]","v":280895.59999999998}]
[{"$f":"AAMC_Raw_Data_for_FY22[[#This Row],[Source]]&AAMC_Raw_Data_for_FY22[[#This Row],[Type]]&AAMC_Raw_Data_for_FY22[[#This Row],[School Subset]]&AAMC_Raw_Data_for_FY22[[#This Row],[Rank]]&AAMC_Raw_Data_for_FY22[[#This Row],[Degree]]&AAMC_Raw_Data_for_FY22[[#This Row],[Department / Specialty]]&\"L\"","v":"AAMCAcademicPublicChiefPhDOther RadiologyL"},"Other Radiology",6,"AAMC","Academic","Public","Chief","PhD","2021-2022",256900,{"$f":"(((AAMC_Raw_Data_for_FY22[[#This Row],[Median]]-AAMC_Raw_Data_for_FY22[[#This Row],[25th]])/25)*5) + AAMC_Raw_Data_for_FY22[[#This Row],[25th]]","v":269762.40000000002},{"$f":"(((AAMC_Raw_Data_for_FY22[[#This Row],[Median]]-AAMC_Raw_Data_for_FY22[[#This Row],[25th]])/25)*10) + AAMC_Raw_Data_for_FY22[[#This Row],[25th]]","v":282624.8},{"$f":"(((AAMC_Raw_Data_for_FY22[[#This Row],[Median]]-AAMC_Raw_Data_for_FY22[[#This Row],[25th]])/25)*15) + AAMC_Raw_Data_for_FY22[[#This Row],[25th]]","v":295487.2},{"$f":"(((AAMC_Raw_Data_for_FY22[[#This Row],[Median]]-AAMC_Raw_Data_for_FY22[[#This Row],[25th]])/25)*20) + AAMC_Raw_Data_for_FY22[[#This Row],[25th]]","v":308349.59999999998},321212,{"$f":"(((AAMC_Raw_Data_for_FY22[[#This Row],[75th]]-AAMC_Raw_Data_for_FY22[[#This Row],[Median]])/25)*5) + AAMC_Raw_Data_for_FY22[[#This Row],[Median]]","v":325787.59999999998},{"$f":"(((AAMC_Raw_Data_for_FY22[[#This Row],[75th]]-AAMC_Raw_Data_for_FY22[[#This Row],[Median]])/25)*10) + AAMC_Raw_Data_for_FY22[[#This Row],[Median]]","v":330363.2},{"$f":"(((AAMC_Raw_Data_for_FY22[[#This Row],[75th]]-AAMC_Raw_Data_for_FY22[[#This Row],[Median]])/25)*15) + AAMC_Raw_Data_for_FY22[[#This Row],[Median]]","v":334938.8},{"$f":"(((AAMC_Raw_Data_for_FY22[[#This Row],[75th]]-AAMC_Raw_Data_for_FY22[[#This Row],[Median]])/25)*20) + AAMC_Raw_Data_for_FY22[[#This Row],[Median]]","v":339514.4},344090,{"$f":"(((AAMC_Raw_Data_for_FY22[[#This Row],[75th]]-AAMC_Raw_Data_for_FY22[[#This Row],[Median]])/25)*30) + AAMC_Raw_Data_for_FY22[[#This Row],[Median]]","v":348665.59999999998},{"$f":"(((AAMC_Raw_Data_for_FY22[[#This Row],[75th]]-AAMC_Raw_Data_for_FY22[[#This Row],[Median]])/25)*35) + AAMC_Raw_Data_for_FY22[[#This Row],[Median]]","v":353241.2},{"$f":"(((AAMC_Raw_Data_for_FY22[[#This Row],[75th]]-AAMC_Raw_Data_for_FY22[[#This Row],[Median]])/25)*40) + AAMC_Raw_Data_for_FY22[[#This Row],[Median]]","v":357816.8}]
[{"$f":"AAMC_Raw_Data_for_FY22[[#This Row],[Source]]&AAMC_Raw_Data_for_FY22[[#This Row],[Type]]&AAMC_Raw_Data_for_FY22[[#This Row],[School Subset]]&AAMC_Raw_Data_for_FY22[[#This Row],[Rank]]&AAMC_Raw_Data_for_FY22[[#This Row],[Degree]]&AAMC_Raw_Data_for_FY22[[#This Row],[Department / Specialty]]&\"L\"","v":"AAMCAcademicPublicInstructorPhDSurgery TotalL"},"Surgery Total",5,"AAMC","Academic","Public","Instructor","PhD","2021-2022",67306,{"$f":"(((AAMC_Raw_Data_for_FY22[[#This Row],[Median]]-AAMC_Raw_Data_for_FY22[[#This Row],[25th]])/25)*5) + AAMC_Raw_Data_for_FY22[[#This Row],[25th]]","v":69603.8},{"$f":"(((AAMC_Raw_Data_for_FY22[[#This Row],[Median]]-AAMC_Raw_Data_for_FY22[[#This Row],[25th]])/25)*10) + AAMC_Raw_Data_for_FY22[[#This Row],[25th]]","v":71901.600000000006},{"$f":"(((AAMC_Raw_Data_for_FY22[[#This Row],[Median]]-AAMC_Raw_Data_for_FY22[[#This Row],[25th]])/25)*15) + AAMC_Raw_Data_for_FY22[[#This Row],[25th]]","v":74199.399999999994},{"$f":"(((AAMC_Raw_Data_for_FY22[[#This Row],[Median]]-AAMC_Raw_Data_for_FY22[[#This Row],[25th]])/25)*20) + AAMC_Raw_Data_for_FY22[[#This Row],[25th]]","v":76497.2},78795,{"$f":"(((AAMC_Raw_Data_for_FY22[[#This Row],[75th]]-AAMC_Raw_Data_for_FY22[[#This Row],[Median]])/25)*5) + AAMC_Raw_Data_for_FY22[[#This Row],[Median]]","v":87036},{"$f":"(((AAMC_Raw_Data_for_FY22[[#This Row],[75th]]-AAMC_Raw_Data_for_FY22[[#This Row],[Median]])/25)*10) + AAMC_Raw_Data_for_FY22[[#This Row],[Median]]","v":95277},{"$f":"(((AAMC_Raw_Data_for_FY22[[#This Row],[75th]]-AAMC_Raw_Data_for_FY22[[#This Row],[Median]])/25)*15) + AAMC_Raw_Data_for_FY22[[#This Row],[Median]]","v":103518},{"$f":"(((AAMC_Raw_Data_for_FY22[[#This Row],[75th]]-AAMC_Raw_Data_for_FY22[[#This Row],[Median]])/25)*20) + AAMC_Raw_Data_for_FY22[[#This Row],[Median]]","v":111759},120000,{"$f":"(((AAMC_Raw_Data_for_FY22[[#This Row],[75th]]-AAMC_Raw_Data_for_FY22[[#This Row],[Median]])/25)*30) + AAMC_Raw_Data_for_FY22[[#This Row],[Median]]","v":128241},{"$f":"(((AAMC_Raw_Data_for_FY22[[#This Row],[75th]]-AAMC_Raw_Data_for_FY22[[#This Row],[Median]])/25)*35) + AAMC_Raw_Data_for_FY22[[#This Row],[Median]]","v":136482},{"$f":"(((AAMC_Raw_Data_for_FY22[[#This Row],[75th]]-AAMC_Raw_Data_for_FY22[[#This Row],[Median]])/25)*40) + AAMC_Raw_Data_for_FY22[[#This Row],[Median]]","v":144723}]
[{"$f":"AAMC_Raw_Data_for_FY22[[#This Row],[Source]]&AAMC_Raw_Data_for_FY22[[#This Row],[Type]]&AAMC_Raw_Data_for_FY22[[#This Row],[School Subset]]&AAMC_Raw_Data_for_FY22[[#This Row],[Rank]]&AAMC_Raw_Data_for_FY22[[#This Row],[Degree]]&AAMC_Raw_Data_for_FY22[[#This Row],[Department / Specialty]]&\"L\"","v":"AAMCAcademicPublicAssistantPhDSurgery TotalL"},"Surgery Total",4,"AAMC","Academic","Public","Assistant","PhD","2021-2022",85000,{"$f":"(((AAMC_Raw_Data_for_FY22[[#This Row],[Median]]-AAMC_Raw_Data_for_FY22[[#This Row],[25th]])/25)*5) + AAMC_Raw_Data_for_FY22[[#This Row],[25th]]","v":87911.6},{"$f":"(((AAMC_Raw_Data_for_FY22[[#This Row],[Median]]-AAMC_Raw_Data_for_FY22[[#This Row],[25th]])/25)*10) + AAMC_Raw_Data_for_FY22[[#This Row],[25th]]","v":90823.2},{"$f":"(((AAMC_Raw_Data_for_FY22[[#This Row],[Median]]-AAMC_Raw_Data_for_FY22[[#This Row],[25th]])/25)*15) + AAMC_Raw_Data_for_FY22[[#This Row],[25th]]","v":93734.8},{"$f":"(((AAMC_Raw_Data_for_FY22[[#This Row],[Median]]-AAMC_Raw_Data_for_FY22[[#This Row],[25th]])/25)*20) + AAMC_Raw_Data_for_FY22[[#This Row],[25th]]","v":96646.399999999994},99558,{"$f":"(((AAMC_Raw_Data_for_FY22[[#This Row],[75th]]-AAMC_Raw_Data_for_FY22[[#This Row],[Median]])/25)*5) + AAMC_Raw_Data_for_FY22[[#This Row],[Median]]","v":103990},{"$f":"(((AAMC_Raw_Data_for_FY22[[#This Row],[75th]]-AAMC_Raw_Data_for_FY22[[#This Row],[Median]])/25)*10) + AAMC_Raw_Data_for_FY22[[#This Row],[Median]]","v":108422},{"$f":"(((AAMC_Raw_Data_for_FY22[[#This Row],[75th]]-AAMC_Raw_Data_for_FY22[[#This Row],[Median]])/25)*15) + AAMC_Raw_Data_for_FY22[[#This Row],[Median]]","v":112854},{"$f":"(((AAMC_Raw_Data_for_FY22[[#This Row],[75th]]-AAMC_Raw_Data_for_FY22[[#This Row],[Median]])/25)*20) + AAMC_Raw_Data_for_FY22[[#This Row],[Median]]","v":117286},121718,{"$f":"(((AAMC_Raw_Data_for_FY22[[#This Row],[75th]]-AAMC_Raw_Data_for_FY22[[#This Row],[Median]])/25)*30) + AAMC_Raw_Data_for_FY22[[#This Row],[Median]]","v":126150},{"$f":"(((AAMC_Raw_Data_for_FY22[[#This Row],[75th]]-AAMC_Raw_Data_for_FY22[[#This Row],[Median]])/25)*35) + AAMC_Raw_Data_for_FY22[[#This Row],[Median]]","v":130582},{"$f":"(((AAMC_Raw_Data_for_FY22[[#This Row],[75th]]-AAMC_Raw_Data_for_FY22[[#This Row],[Median]])/25)*40) + AAMC_Raw_Data_for_FY22[[#This Row],[Median]]","v":135014}]
[{"$f":"AAMC_Raw_Data_for_FY22[[#This Row],[Source]]&AAMC_Raw_Data_for_FY22[[#This Row],[Type]]&AAMC_Raw_Data_for_FY22[[#This Row],[School Subset]]&AAMC_Raw_Data_for_FY22[[#This Row],[Rank]]&AAMC_Raw_Data_for_FY22[[#This Row],[Degree]]&AAMC_Raw_Data_for_FY22[[#This Row],[Department / Specialty]]&\"L\"","v":"AAMCAcademicPublicAssociatePhDSurgery TotalL"},"Surgery Total",3,"AAMC","Academic","Public","Associate","PhD","2021-2022",117751,{"$f":"(((AAMC_Raw_Data_for_FY22[[#This Row],[Median]]-AAMC_Raw_Data_for_FY22[[#This Row],[25th]])/25)*5) + AAMC_Raw_Data_for_FY22[[#This Row],[25th]]","v":121318.39999999999},{"$f":"(((AAMC_Raw_Data_for_FY22[[#This Row],[Median]]-AAMC_Raw_Data_for_FY22[[#This Row],[25th]])/25)*10) + AAMC_Raw_Data_for_FY22[[#This Row],[25th]]","v":124885.8},{"$f":"(((AAMC_Raw_Data_for_FY22[[#This Row],[Median]]-AAMC_Raw_Data_for_FY22[[#This Row],[25th]])/25)*15) + AAMC_Raw_Data_for_FY22[[#This Row],[25th]]","v":128453.2},{"$f":"(((AAMC_Raw_Data_for_FY22[[#This Row],[Median]]-AAMC_Raw_Data_for_FY22[[#This Row],[25th]])/25)*20) + AAMC_Raw_Data_for_FY22[[#This Row],[25th]]","v":132020.6},135588,{"$f":"(((AAMC_Raw_Data_for_FY22[[#This Row],[75th]]-AAMC_Raw_Data_for_FY22[[#This Row],[Median]])/25)*5) + AAMC_Raw_Data_for_FY22[[#This Row],[Median]]","v":140495},{"$f":"(((AAMC_Raw_Data_for_FY22[[#This Row],[75th]]-AAMC_Raw_Data_for_FY22[[#This Row],[Median]])/25)*10) + AAMC_Raw_Data_for_FY22[[#This Row],[Median]]","v":145402},{"$f":"(((AAMC_Raw_Data_for_FY22[[#This Row],[75th]]-AAMC_Raw_Data_for_FY22[[#This Row],[Median]])/25)*15) + AAMC_Raw_Data_for_FY22[[#This Row],[Median]]","v":150309},{"$f":"(((AAMC_Raw_Data_for_FY22[[#This Row],[75th]]-AAMC_Raw_Data_for_FY22[[#This Row],[Median]])/25)*20) + AAMC_Raw_Data_for_FY22[[#This Row],[Median]]","v":155216},160123,{"$f":"(((AAMC_Raw_Data_for_FY22[[#This Row],[75th]]-AAMC_Raw_Data_for_FY22[[#This Row],[Median]])/25)*30) + AAMC_Raw_Data_for_FY22[[#This Row],[Median]]","v":165030},{"$f":"(((AAMC_Raw_Data_for_FY22[[#This Row],[75th]]-AAMC_Raw_Data_for_FY22[[#This Row],[Median]])/25)*35) + AAMC_Raw_Data_for_FY22[[#This Row],[Median]]","v":169937},{"$f":"(((AAMC_Raw_Data_for_FY22[[#This Row],[75th]]-AAMC_Raw_Data_for_FY22[[#This Row],[Median]])/25)*40) + AAMC_Raw_Data_for_FY22[[#This Row],[Median]]","v":174844}]
[{"$f":"AAMC_Raw_Data_for_FY22[[#This Row],[Source]]&AAMC_Raw_Data_for_FY22[[#This Row],[Type]]&AAMC_Raw_Data_for_FY22[[#This Row],[School Subset]]&AAMC_Raw_Data_for_FY22[[#This Row],[Rank]]&AAMC_Raw_Data_for_FY22[[#This Row],[Degree]]&AAMC_Raw_Data_for_FY22[[#This Row],[Department / Specialty]]&\"L\"","v":"AAMCAcademicPublicProfessorPhDSurgery TotalL"},"Surgery Total",2,"AAMC","Academic","Public","Professor","PhD","2021-2022",171348,{"$f":"(((AAMC_Raw_Data_for_FY22[[#This Row],[Median]]-AAMC_Raw_Data_for_FY22[[#This Row],[25th]])/25)*5) + AAMC_Raw_Data_for_FY22[[#This Row],[25th]]","v":179592},{"$f":"(((AAMC_Raw_Data_for_FY22[[#This Row],[Median]]-AAMC_Raw_Data_for_FY22[[#This Row],[25th]])/25)*10) + AAMC_Raw_Data_for_FY22[[#This Row],[25th]]","v":187836},{"$f":"(((AAMC_Raw_Data_for_FY22[[#This Row],[Median]]-AAMC_Raw_Data_for_FY22[[#This Row],[25th]])/25)*15) + AAMC_Raw_Data_for_FY22[[#This Row],[25th]]","v":196080},{"$f":"(((AAMC_Raw_Data_for_FY22[[#This Row],[Median]]-AAMC_Raw_Data_for_FY22[[#This Row],[25th]])/25)*20) + AAMC_Raw_Data_for_FY22[[#This Row],[25th]]","v":204324},212568,{"$f":"(((AAMC_Raw_Data_for_FY22[[#This Row],[75th]]-AAMC_Raw_Data_for_FY22[[#This Row],[Median]])/25)*5) + AAMC_Raw_Data_for_FY22[[#This Row],[Median]]","v":221829},{"$f":"(((AAMC_Raw_Data_for_FY22[[#This Row],[75th]]-AAMC_Raw_Data_for_FY22[[#This Row],[Median]])/25)*10) + AAMC_Raw_Data_for_FY22[[#This Row],[Median]]","v":231090},{"$f":"(((AAMC_Raw_Data_for_FY22[[#This Row],[75th]]-AAMC_Raw_Data_for_FY22[[#This Row],[Median]])/25)*15) + AAMC_Raw_Data_for_FY22[[#This Row],[Median]]","v":240351},{"$f":"(((AAMC_Raw_Data_for_FY22[[#This Row],[75th]]-AAMC_Raw_Data_for_FY22[[#This Row],[Median]])/25)*20) + AAMC_Raw_Data_for_FY22[[#This Row],[Median]]","v":249612},258873,{"$f":"(((AAMC_Raw_Data_for_FY22[[#This Row],[75th]]-AAMC_Raw_Data_for_FY22[[#This Row],[Median]])/25)*30) + AAMC_Raw_Data_for_FY22[[#This Row],[Median]]","v":268134},{"$f":"(((AAMC_Raw_Data_for_FY22[[#This Row],[75th]]-AAMC_Raw_Data_for_FY22[[#This Row],[Median]])/25)*35) + AAMC_Raw_Data_for_FY22[[#This Row],[Median]]","v":277395},{"$f":"(((AAMC_Raw_Data_for_FY22[[#This Row],[75th]]-AAMC_Raw_Data_for_FY22[[#This Row],[Median]])/25)*40) + AAMC_Raw_Data_for_FY22[[#This Row],[Median]]","v":286656}]
[{"$f":"AAMC_Raw_Data_for_FY22[[#This Row],[Source]]&AAMC_Raw_Data_for_FY22[[#This Row],[Type]]&AAMC_Raw_Data_for_FY22[[#This Row],[School Subset]]&AAMC_Raw_Data_for_FY22[[#This Row],[Rank]]&AAMC_Raw_Data_for_FY22[[#This Row],[Degree]]&AAMC_Raw_Data_for_FY22[[#This Row],[Department / Specialty]]&\"L\"","v":"AAMCAcademicPublicChiefPhDSurgery TotalL"},"Surgery Total",6,"AAMC","Academic","Public","Chief","PhD","2021-2022",null,{"$f":"(((AAMC_Raw_Data_for_FY22[[#This Row],[Median]]-AAMC_Raw_Data_for_FY22[[#This Row],[25th]])/25)*5) + AAMC_Raw_Data_for_FY22[[#This Row],[25th]]","v":0},{"$f":"(((AAMC_Raw_Data_for_FY22[[#This Row],[Median]]-AAMC_Raw_Data_for_FY22[[#This Row],[25th]])/25)*10) + AAMC_Raw_Data_for_FY22[[#This Row],[25th]]","v":0},{"$f":"(((AAMC_Raw_Data_for_FY22[[#This Row],[Median]]-AAMC_Raw_Data_for_FY22[[#This Row],[25th]])/25)*15) + AAMC_Raw_Data_for_FY22[[#This Row],[25th]]","v":0},{"$f":"(((AAMC_Raw_Data_for_FY22[[#This Row],[Median]]-AAMC_Raw_Data_for_FY22[[#This Row],[25th]])/25)*20) + AAMC_Raw_Data_for_FY22[[#This Row],[25th]]","v":0},null,{"$f":"(((AAMC_Raw_Data_for_FY22[[#This Row],[75th]]-AAMC_Raw_Data_for_FY22[[#This Row],[Median]])/25)*5) + AAMC_Raw_Data_for_FY22[[#This Row],[Median]]","v":0},{"$f":"(((AAMC_Raw_Data_for_FY22[[#This Row],[75th]]-AAMC_Raw_Data_for_FY22[[#This Row],[Median]])/25)*10) + AAMC_Raw_Data_for_FY22[[#This Row],[Median]]","v":0},{"$f":"(((AAMC_Raw_Data_for_FY22[[#This Row],[75th]]-AAMC_Raw_Data_for_FY22[[#This Row],[Median]])/25)*15) + AAMC_Raw_Data_for_FY22[[#This Row],[Median]]","v":0},{"$f":"(((AAMC_Raw_Data_for_FY22[[#This Row],[75th]]-AAMC_Raw_Data_for_FY22[[#This Row],[Median]])/25)*20) + AAMC_Raw_Data_for_FY22[[#This Row],[Median]]","v":0},null,{"$f":"(((AAMC_Raw_Data_for_FY22[[#This Row],[75th]]-AAMC_Raw_Data_for_FY22[[#This Row],[Median]])/25)*30) + AAMC_Raw_Data_for_FY22[[#This Row],[Median]]","v":0},{"$f":"(((AAMC_Raw_Data_for_FY22[[#This Row],[75th]]-AAMC_Raw_Data_for_FY22[[#This Row],[Median]])/25)*35) + AAMC_Raw_Data_for_FY22[[#This Row],[Median]]","v":0},{"$f":"(((AAMC_Raw_Data_for_FY22[[#This Row],[75th]]-AAMC_Raw_Data_for_FY22[[#This Row],[Median]])/25)*40) + AAMC_Raw_Data_for_FY22[[#This Row],[Median]]","v":0}]
[{"$f":"AAMC_Raw_Data_for_FY22[[#This Row],[Source]]&AAMC_Raw_Data_for_FY22[[#This Row],[Type]]&AAMC_Raw_Data_for_FY22[[#This Row],[School Subset]]&AAMC_Raw_Data_for_FY22[[#This Row],[Rank]]&AAMC_Raw_Data_for_FY22[[#This Row],[Degree]]&AAMC_Raw_Data_for_FY22[[#This Row],[Department / Specialty]]&\"L\"","v":"AAMCAcademicPublicInstructorPhDGeneral SurgeryL"},"General Surgery",5,"AAMC","Academic","Public","Instructor","PhD","2021-2022",null,{"$f":"(((AAMC_Raw_Data_for_FY22[[#This Row],[Median]]-AAMC_Raw_Data_for_FY22[[#This Row],[25th]])/25)*5) + AAMC_Raw_Data_for_FY22[[#This Row],[25th]]","v":0},{"$f":"(((AAMC_Raw_Data_for_FY22[[#This Row],[Median]]-AAMC_Raw_Data_for_FY22[[#This Row],[25th]])/25)*10) + AAMC_Raw_Data_for_FY22[[#This Row],[25th]]","v":0},{"$f":"(((AAMC_Raw_Data_for_FY22[[#This Row],[Median]]-AAMC_Raw_Data_for_FY22[[#This Row],[25th]])/25)*15) + AAMC_Raw_Data_for_FY22[[#This Row],[25th]]","v":0},{"$f":"(((AAMC_Raw_Data_for_FY22[[#This Row],[Median]]-AAMC_Raw_Data_for_FY22[[#This Row],[25th]])/25)*20) + AAMC_Raw_Data_for_FY22[[#This Row],[25th]]","v":0},null,{"$f":"(((AAMC_Raw_Data_for_FY22[[#This Row],[75th]]-AAMC_Raw_Data_for_FY22[[#This Row],[Median]])/25)*5) + AAMC_Raw_Data_for_FY22[[#This Row],[Median]]","v":0},{"$f":"(((AAMC_Raw_Data_for_FY22[[#This Row],[75th]]-AAMC_Raw_Data_for_FY22[[#This Row],[Median]])/25)*10) + AAMC_Raw_Data_for_FY22[[#This Row],[Median]]","v":0},{"$f":"(((AAMC_Raw_Data_for_FY22[[#This Row],[75th]]-AAMC_Raw_Data_for_FY22[[#This Row],[Median]])/25)*15) + AAMC_Raw_Data_for_FY22[[#This Row],[Median]]","v":0},{"$f":"(((AAMC_Raw_Data_for_FY22[[#This Row],[75th]]-AAMC_Raw_Data_for_FY22[[#This Row],[Median]])/25)*20) + AAMC_Raw_Data_for_FY22[[#This Row],[Median]]","v":0},null,{"$f":"(((AAMC_Raw_Data_for_FY22[[#This Row],[75th]]-AAMC_Raw_Data_for_FY22[[#This Row],[Median]])/25)*30) + AAMC_Raw_Data_for_FY22[[#This Row],[Median]]","v":0},{"$f":"(((AAMC_Raw_Data_for_FY22[[#This Row],[75th]]-AAMC_Raw_Data_for_FY22[[#This Row],[Median]])/25)*35) + AAMC_Raw_Data_for_FY22[[#This Row],[Median]]","v":0},{"$f":"(((AAMC_Raw_Data_for_FY22[[#This Row],[75th]]-AAMC_Raw_Data_for_FY22[[#This Row],[Median]])/25)*40) + AAMC_Raw_Data_for_FY22[[#This Row],[Median]]","v":0}]
[{"$f":"AAMC_Raw_Data_for_FY22[[#This Row],[Source]]&AAMC_Raw_Data_for_FY22[[#This Row],[Type]]&AAMC_Raw_Data_for_FY22[[#This Row],[School Subset]]&AAMC_Raw_Data_for_FY22[[#This Row],[Rank]]&AAMC_Raw_Data_for_FY22[[#This Row],[Degree]]&AAMC_Raw_Data_for_FY22[[#This Row],[Department / Specialty]]&\"L\"","v":"AAMCAcademicPublicAssistantPhDGeneral SurgeryL"},"General Surgery",4,"AAMC","Academic","Public","Assistant","PhD","2021-2022",72022,{"$f":"(((AAMC_Raw_Data_for_FY22[[#This Row],[Median]]-AAMC_Raw_Data_for_FY22[[#This Row],[25th]])/25)*5) + AAMC_Raw_Data_for_FY22[[#This Row],[25th]]","v":75612},{"$f":"(((AAMC_Raw_Data_for_FY22[[#This Row],[Median]]-AAMC_Raw_Data_for_FY22[[#This Row],[25th]])/25)*10) + AAMC_Raw_Data_for_FY22[[#This Row],[25th]]","v":79202},{"$f":"(((AAMC_Raw_Data_for_FY22[[#This Row],[Median]]-AAMC_Raw_Data_for_FY22[[#This Row],[25th]])/25)*15) + AAMC_Raw_Data_for_FY22[[#This Row],[25th]]","v":82792},{"$f":"(((AAMC_Raw_Data_for_FY22[[#This Row],[Median]]-AAMC_Raw_Data_for_FY22[[#This Row],[25th]])/25)*20) + AAMC_Raw_Data_for_FY22[[#This Row],[25th]]","v":86382},89972,{"$f":"(((AAMC_Raw_Data_for_FY22[[#This Row],[75th]]-AAMC_Raw_Data_for_FY22[[#This Row],[Median]])/25)*5) + AAMC_Raw_Data_for_FY22[[#This Row],[Median]]","v":92292.6},{"$f":"(((AAMC_Raw_Data_for_FY22[[#This Row],[75th]]-AAMC_Raw_Data_for_FY22[[#This Row],[Median]])/25)*10) + AAMC_Raw_Data_for_FY22[[#This Row],[Median]]","v":94613.2},{"$f":"(((AAMC_Raw_Data_for_FY22[[#This Row],[75th]]-AAMC_Raw_Data_for_FY22[[#This Row],[Median]])/25)*15) + AAMC_Raw_Data_for_FY22[[#This Row],[Median]]","v":96933.8},{"$f":"(((AAMC_Raw_Data_for_FY22[[#This Row],[75th]]-AAMC_Raw_Data_for_FY22[[#This Row],[Median]])/25)*20) + AAMC_Raw_Data_for_FY22[[#This Row],[Median]]","v":99254.399999999994},101575,{"$f":"(((AAMC_Raw_Data_for_FY22[[#This Row],[75th]]-AAMC_Raw_Data_for_FY22[[#This Row],[Median]])/25)*30) + AAMC_Raw_Data_for_FY22[[#This Row],[Median]]","v":103895.6},{"$f":"(((AAMC_Raw_Data_for_FY22[[#This Row],[75th]]-AAMC_Raw_Data_for_FY22[[#This Row],[Median]])/25)*35) + AAMC_Raw_Data_for_FY22[[#This Row],[Median]]","v":106216.2},{"$f":"(((AAMC_Raw_Data_for_FY22[[#This Row],[75th]]-AAMC_Raw_Data_for_FY22[[#This Row],[Median]])/25)*40) + AAMC_Raw_Data_for_FY22[[#This Row],[Median]]","v":108536.8}]
[{"$f":"AAMC_Raw_Data_for_FY22[[#This Row],[Source]]&AAMC_Raw_Data_for_FY22[[#This Row],[Type]]&AAMC_Raw_Data_for_FY22[[#This Row],[School Subset]]&AAMC_Raw_Data_for_FY22[[#This Row],[Rank]]&AAMC_Raw_Data_for_FY22[[#This Row],[Degree]]&AAMC_Raw_Data_for_FY22[[#This Row],[Department / Specialty]]&\"L\"","v":"AAMCAcademicPublicAssociatePhDGeneral SurgeryL"},"General Surgery",3,"AAMC","Academic","Public","Associate","PhD","2021-2022",99936,{"$f":"(((AAMC_Raw_Data_for_FY22[[#This Row],[Median]]-AAMC_Raw_Data_for_FY22[[#This Row],[25th]])/25)*5) + AAMC_Raw_Data_for_FY22[[#This Row],[25th]]","v":101386.8},{"$f":"(((AAMC_Raw_Data_for_FY22[[#This Row],[Median]]-AAMC_Raw_Data_for_FY22[[#This Row],[25th]])/25)*10) + AAMC_Raw_Data_for_FY22[[#This Row],[25th]]","v":102837.6},{"$f":"(((AAMC_Raw_Data_for_FY22[[#This Row],[Median]]-AAMC_Raw_Data_for_FY22[[#This Row],[25th]])/25)*15) + AAMC_Raw_Data_for_FY22[[#This Row],[25th]]","v":104288.4},{"$f":"(((AAMC_Raw_Data_for_FY22[[#This Row],[Median]]-AAMC_Raw_Data_for_FY22[[#This Row],[25th]])/25)*20) + AAMC_Raw_Data_for_FY22[[#This Row],[25th]]","v":105739.2},107190,{"$f":"(((AAMC_Raw_Data_for_FY22[[#This Row],[75th]]-AAMC_Raw_Data_for_FY22[[#This Row],[Median]])/25)*5) + AAMC_Raw_Data_for_FY22[[#This Row],[Median]]","v":114650.2},{"$f":"(((AAMC_Raw_Data_for_FY22[[#This Row],[75th]]-AAMC_Raw_Data_for_FY22[[#This Row],[Median]])/25)*10) + AAMC_Raw_Data_for_FY22[[#This Row],[Median]]","v":122110.39999999999},{"$f":"(((AAMC_Raw_Data_for_FY22[[#This Row],[75th]]-AAMC_Raw_Data_for_FY22[[#This Row],[Median]])/25)*15) + AAMC_Raw_Data_for_FY22[[#This Row],[Median]]","v":129570.6},{"$f":"(((AAMC_Raw_Data_for_FY22[[#This Row],[75th]]-AAMC_Raw_Data_for_FY22[[#This Row],[Median]])/25)*20) + AAMC_Raw_Data_for_FY22[[#This Row],[Median]]","v":137030.79999999999},144491,{"$f":"(((AAMC_Raw_Data_for_FY22[[#This Row],[75th]]-AAMC_Raw_Data_for_FY22[[#This Row],[Median]])/25)*30) + AAMC_Raw_Data_for_FY22[[#This Row],[Median]]","v":151951.20000000001},{"$f":"(((AAMC_Raw_Data_for_FY22[[#This Row],[75th]]-AAMC_Raw_Data_for_FY22[[#This Row],[Median]])/25)*35) + AAMC_Raw_Data_for_FY22[[#This Row],[Median]]","v":159411.4},{"$f":"(((AAMC_Raw_Data_for_FY22[[#This Row],[75th]]-AAMC_Raw_Data_for_FY22[[#This Row],[Median]])/25)*40) + AAMC_Raw_Data_for_FY22[[#This Row],[Median]]","v":166871.6}]
[{"$f":"AAMC_Raw_Data_for_FY22[[#This Row],[Source]]&AAMC_Raw_Data_for_FY22[[#This Row],[Type]]&AAMC_Raw_Data_for_FY22[[#This Row],[School Subset]]&AAMC_Raw_Data_for_FY22[[#This Row],[Rank]]&AAMC_Raw_Data_for_FY22[[#This Row],[Degree]]&AAMC_Raw_Data_for_FY22[[#This Row],[Department / Specialty]]&\"L\"","v":"AAMCAcademicPublicProfessorPhDGeneral SurgeryL"},"General Surgery",2,"AAMC","Academic","Public","Professor","PhD","2021-2022",176698,{"$f":"(((AAMC_Raw_Data_for_FY22[[#This Row],[Median]]-AAMC_Raw_Data_for_FY22[[#This Row],[25th]])/25)*5) + AAMC_Raw_Data_for_FY22[[#This Row],[25th]]","v":184135.6},{"$f":"(((AAMC_Raw_Data_for_FY22[[#This Row],[Median]]-AAMC_Raw_Data_for_FY22[[#This Row],[25th]])/25)*10) + AAMC_Raw_Data_for_FY22[[#This Row],[25th]]","v":191573.2},{"$f":"(((AAMC_Raw_Data_for_FY22[[#This Row],[Median]]-AAMC_Raw_Data_for_FY22[[#This Row],[25th]])/25)*15) + AAMC_Raw_Data_for_FY22[[#This Row],[25th]]","v":199010.8},{"$f":"(((AAMC_Raw_Data_for_FY22[[#This Row],[Median]]-AAMC_Raw_Data_for_FY22[[#This Row],[25th]])/25)*20) + AAMC_Raw_Data_for_FY22[[#This Row],[25th]]","v":206448.4},213886,{"$f":"(((AAMC_Raw_Data_for_FY22[[#This Row],[75th]]-AAMC_Raw_Data_for_FY22[[#This Row],[Median]])/25)*5) + AAMC_Raw_Data_for_FY22[[#This Row],[Median]]","v":215738},{"$f":"(((AAMC_Raw_Data_for_FY22[[#This Row],[75th]]-AAMC_Raw_Data_for_FY22[[#This Row],[Median]])/25)*10) + AAMC_Raw_Data_for_FY22[[#This Row],[Median]]","v":217590},{"$f":"(((AAMC_Raw_Data_for_FY22[[#This Row],[75th]]-AAMC_Raw_Data_for_FY22[[#This Row],[Median]])/25)*15) + AAMC_Raw_Data_for_FY22[[#This Row],[Median]]","v":219442},{"$f":"(((AAMC_Raw_Data_for_FY22[[#This Row],[75th]]-AAMC_Raw_Data_for_FY22[[#This Row],[Median]])/25)*20) + AAMC_Raw_Data_for_FY22[[#This Row],[Median]]","v":221294},223146,{"$f":"(((AAMC_Raw_Data_for_FY22[[#This Row],[75th]]-AAMC_Raw_Data_for_FY22[[#This Row],[Median]])/25)*30) + AAMC_Raw_Data_for_FY22[[#This Row],[Median]]","v":224998},{"$f":"(((AAMC_Raw_Data_for_FY22[[#This Row],[75th]]-AAMC_Raw_Data_for_FY22[[#This Row],[Median]])/25)*35) + AAMC_Raw_Data_for_FY22[[#This Row],[Median]]","v":226850},{"$f":"(((AAMC_Raw_Data_for_FY22[[#This Row],[75th]]-AAMC_Raw_Data_for_FY22[[#This Row],[Median]])/25)*40) + AAMC_Raw_Data_for_FY22[[#This Row],[Median]]","v":228702}]
[{"$f":"AAMC_Raw_Data_for_FY22[[#This Row],[Source]]&AAMC_Raw_Data_for_FY22[[#This Row],[Type]]&AAMC_Raw_Data_for_FY22[[#This Row],[School Subset]]&AAMC_Raw_Data_for_FY22[[#This Row],[Rank]]&AAMC_Raw_Data_for_FY22[[#This Row],[Degree]]&AAMC_Raw_Data_for_FY22[[#This Row],[Department / Specialty]]&\"L\"","v":"AAMCAcademicPublicInstructorPhDNeurosurgeryL"},"Neurosurgery",5,"AAMC","Academic","Public","Instructor","PhD","2021-2022",71227,{"$f":"(((AAMC_Raw_Data_for_FY22[[#This Row],[Median]]-AAMC_Raw_Data_for_FY22[[#This Row],[25th]])/25)*5) + AAMC_Raw_Data_for_FY22[[#This Row],[25th]]","v":74295.600000000006},{"$f":"(((AAMC_Raw_Data_for_FY22[[#This Row],[Median]]-AAMC_Raw_Data_for_FY22[[#This Row],[25th]])/25)*10) + AAMC_Raw_Data_for_FY22[[#This Row],[25th]]","v":77364.2},{"$f":"(((AAMC_Raw_Data_for_FY22[[#This Row],[Median]]-AAMC_Raw_Data_for_FY22[[#This Row],[25th]])/25)*15) + AAMC_Raw_Data_for_FY22[[#This Row],[25th]]","v":80432.800000000003},{"$f":"(((AAMC_Raw_Data_for_FY22[[#This Row],[Median]]-AAMC_Raw_Data_for_FY22[[#This Row],[25th]])/25)*20) + AAMC_Raw_Data_for_FY22[[#This Row],[25th]]","v":83501.399999999994},86570,{"$f":"(((AAMC_Raw_Data_for_FY22[[#This Row],[75th]]-AAMC_Raw_Data_for_FY22[[#This Row],[Median]])/25)*5) + AAMC_Raw_Data_for_FY22[[#This Row],[Median]]","v":89969.2},{"$f":"(((AAMC_Raw_Data_for_FY22[[#This Row],[75th]]-AAMC_Raw_Data_for_FY22[[#This Row],[Median]])/25)*10) + AAMC_Raw_Data_for_FY22[[#This Row],[Median]]","v":93368.4},{"$f":"(((AAMC_Raw_Data_for_FY22[[#This Row],[75th]]-AAMC_Raw_Data_for_FY22[[#This Row],[Median]])/25)*15) + AAMC_Raw_Data_for_FY22[[#This Row],[Median]]","v":96767.6},{"$f":"(((AAMC_Raw_Data_for_FY22[[#This Row],[75th]]-AAMC_Raw_Data_for_FY22[[#This Row],[Median]])/25)*20) + AAMC_Raw_Data_for_FY22[[#This Row],[Median]]","v":100166.8},103566,{"$f":"(((AAMC_Raw_Data_for_FY22[[#This Row],[75th]]-AAMC_Raw_Data_for_FY22[[#This Row],[Median]])/25)*30) + AAMC_Raw_Data_for_FY22[[#This Row],[Median]]","v":106965.2},{"$f":"(((AAMC_Raw_Data_for_FY22[[#This Row],[75th]]-AAMC_Raw_Data_for_FY22[[#This Row],[Median]])/25)*35) + AAMC_Raw_Data_for_FY22[[#This Row],[Median]]","v":110364.4},{"$f":"(((AAMC_Raw_Data_for_FY22[[#This Row],[75th]]-AAMC_Raw_Data_for_FY22[[#This Row],[Median]])/25)*40) + AAMC_Raw_Data_for_FY22[[#This Row],[Median]]","v":113763.6}]
[{"$f":"AAMC_Raw_Data_for_FY22[[#This Row],[Source]]&AAMC_Raw_Data_for_FY22[[#This Row],[Type]]&AAMC_Raw_Data_for_FY22[[#This Row],[School Subset]]&AAMC_Raw_Data_for_FY22[[#This Row],[Rank]]&AAMC_Raw_Data_for_FY22[[#This Row],[Degree]]&AAMC_Raw_Data_for_FY22[[#This Row],[Department / Specialty]]&\"L\"","v":"AAMCAcademicPublicAssistantPhDNeurosurgeryL"},"Neurosurgery",4,"AAMC","Academic","Public","Assistant","PhD","2021-2022",85510,{"$f":"(((AAMC_Raw_Data_for_FY22[[#This Row],[Median]]-AAMC_Raw_Data_for_FY22[[#This Row],[25th]])/25)*5) + AAMC_Raw_Data_for_FY22[[#This Row],[25th]]","v":87638.6},{"$f":"(((AAMC_Raw_Data_for_FY22[[#This Row],[Median]]-AAMC_Raw_Data_for_FY22[[#This Row],[25th]])/25)*10) + AAMC_Raw_Data_for_FY22[[#This Row],[25th]]","v":89767.2},{"$f":"(((AAMC_Raw_Data_for_FY22[[#This Row],[Median]]-AAMC_Raw_Data_for_FY22[[#This Row],[25th]])/25)*15) + AAMC_Raw_Data_for_FY22[[#This Row],[25th]]","v":91895.8},{"$f":"(((AAMC_Raw_Data_for_FY22[[#This Row],[Median]]-AAMC_Raw_Data_for_FY22[[#This Row],[25th]])/25)*20) + AAMC_Raw_Data_for_FY22[[#This Row],[25th]]","v":94024.4},96153,{"$f":"(((AAMC_Raw_Data_for_FY22[[#This Row],[75th]]-AAMC_Raw_Data_for_FY22[[#This Row],[Median]])/25)*5) + AAMC_Raw_Data_for_FY22[[#This Row],[Median]]","v":99201},{"$f":"(((AAMC_Raw_Data_for_FY22[[#This Row],[75th]]-AAMC_Raw_Data_for_FY22[[#This Row],[Median]])/25)*10) + AAMC_Raw_Data_for_FY22[[#This Row],[Median]]","v":102249},{"$f":"(((AAMC_Raw_Data_for_FY22[[#This Row],[75th]]-AAMC_Raw_Data_for_FY22[[#This Row],[Median]])/25)*15) + AAMC_Raw_Data_for_FY22[[#This Row],[Median]]","v":105297},{"$f":"(((AAMC_Raw_Data_for_FY22[[#This Row],[75th]]-AAMC_Raw_Data_for_FY22[[#This Row],[Median]])/25)*20) + AAMC_Raw_Data_for_FY22[[#This Row],[Median]]","v":108345},111393,{"$f":"(((AAMC_Raw_Data_for_FY22[[#This Row],[75th]]-AAMC_Raw_Data_for_FY22[[#This Row],[Median]])/25)*30) + AAMC_Raw_Data_for_FY22[[#This Row],[Median]]","v":114441},{"$f":"(((AAMC_Raw_Data_for_FY22[[#This Row],[75th]]-AAMC_Raw_Data_for_FY22[[#This Row],[Median]])/25)*35) + AAMC_Raw_Data_for_FY22[[#This Row],[Median]]","v":117489},{"$f":"(((AAMC_Raw_Data_for_FY22[[#This Row],[75th]]-AAMC_Raw_Data_for_FY22[[#This Row],[Median]])/25)*40) + AAMC_Raw_Data_for_FY22[[#This Row],[Median]]","v":120537}]
[{"$f":"AAMC_Raw_Data_for_FY22[[#This Row],[Source]]&AAMC_Raw_Data_for_FY22[[#This Row],[Type]]&AAMC_Raw_Data_for_FY22[[#This Row],[School Subset]]&AAMC_Raw_Data_for_FY22[[#This Row],[Rank]]&AAMC_Raw_Data_for_FY22[[#This Row],[Degree]]&AAMC_Raw_Data_for_FY22[[#This Row],[Department / Specialty]]&\"L\"","v":"AAMCAcademicPublicAssociatePhDNeurosurgeryL"},"Neurosurgery",3,"AAMC","Academic","Public","Associate","PhD","2021-2022",122853,{"$f":"(((AAMC_Raw_Data_for_FY22[[#This Row],[Median]]-AAMC_Raw_Data_for_FY22[[#This Row],[25th]])/25)*5) + AAMC_Raw_Data_for_FY22[[#This Row],[25th]]","v":126084.8},{"$f":"(((AAMC_Raw_Data_for_FY22[[#This Row],[Median]]-AAMC_Raw_Data_for_FY22[[#This Row],[25th]])/25)*10) + AAMC_Raw_Data_for_FY22[[#This Row],[25th]]","v":129316.6},{"$f":"(((AAMC_Raw_Data_for_FY22[[#This Row],[Median]]-AAMC_Raw_Data_for_FY22[[#This Row],[25th]])/25)*15) + AAMC_Raw_Data_for_FY22[[#This Row],[25th]]","v":132548.4},{"$f":"(((AAMC_Raw_Data_for_FY22[[#This Row],[Median]]-AAMC_Raw_Data_for_FY22[[#This Row],[25th]])/25)*20) + AAMC_Raw_Data_for_FY22[[#This Row],[25th]]","v":135780.20000000001},139012,{"$f":"(((AAMC_Raw_Data_for_FY22[[#This Row],[75th]]-AAMC_Raw_Data_for_FY22[[#This Row],[Median]])/25)*5) + AAMC_Raw_Data_for_FY22[[#This Row],[Median]]","v":143226},{"$f":"(((AAMC_Raw_Data_for_FY22[[#This Row],[75th]]-AAMC_Raw_Data_for_FY22[[#This Row],[Median]])/25)*10) + AAMC_Raw_Data_for_FY22[[#This Row],[Median]]","v":147440},{"$f":"(((AAMC_Raw_Data_for_FY22[[#This Row],[75th]]-AAMC_Raw_Data_for_FY22[[#This Row],[Median]])/25)*15) + AAMC_Raw_Data_for_FY22[[#This Row],[Median]]","v":151654},{"$f":"(((AAMC_Raw_Data_for_FY22[[#This Row],[75th]]-AAMC_Raw_Data_for_FY22[[#This Row],[Median]])/25)*20) + AAMC_Raw_Data_for_FY22[[#This Row],[Median]]","v":155868},160082,{"$f":"(((AAMC_Raw_Data_for_FY22[[#This Row],[75th]]-AAMC_Raw_Data_for_FY22[[#This Row],[Median]])/25)*30) + AAMC_Raw_Data_for_FY22[[#This Row],[Median]]","v":164296},{"$f":"(((AAMC_Raw_Data_for_FY22[[#This Row],[75th]]-AAMC_Raw_Data_for_FY22[[#This Row],[Median]])/25)*35) + AAMC_Raw_Data_for_FY22[[#This Row],[Median]]","v":168510},{"$f":"(((AAMC_Raw_Data_for_FY22[[#This Row],[75th]]-AAMC_Raw_Data_for_FY22[[#This Row],[Median]])/25)*40) + AAMC_Raw_Data_for_FY22[[#This Row],[Median]]","v":172724}]
[{"$f":"AAMC_Raw_Data_for_FY22[[#This Row],[Source]]&AAMC_Raw_Data_for_FY22[[#This Row],[Type]]&AAMC_Raw_Data_for_FY22[[#This Row],[School Subset]]&AAMC_Raw_Data_for_FY22[[#This Row],[Rank]]&AAMC_Raw_Data_for_FY22[[#This Row],[Degree]]&AAMC_Raw_Data_for_FY22[[#This Row],[Department / Specialty]]&\"L\"","v":"AAMCAcademicPublicProfessorPhDNeurosurgeryL"},"Neurosurgery",2,"AAMC","Academic","Public","Professor","PhD","2021-2022",166093,{"$f":"(((AAMC_Raw_Data_for_FY22[[#This Row],[Median]]-AAMC_Raw_Data_for_FY22[[#This Row],[25th]])/25)*5) + AAMC_Raw_Data_for_FY22[[#This Row],[25th]]","v":173926.39999999999},{"$f":"(((AAMC_Raw_Data_for_FY22[[#This Row],[Median]]-AAMC_Raw_Data_for_FY22[[#This Row],[25th]])/25)*10) + AAMC_Raw_Data_for_FY22[[#This Row],[25th]]","v":181759.8},{"$f":"(((AAMC_Raw_Data_for_FY22[[#This Row],[Median]]-AAMC_Raw_Data_for_FY22[[#This Row],[25th]])/25)*15) + AAMC_Raw_Data_for_FY22[[#This Row],[25th]]","v":189593.2},{"$f":"(((AAMC_Raw_Data_for_FY22[[#This Row],[Median]]-AAMC_Raw_Data_for_FY22[[#This Row],[25th]])/25)*20) + AAMC_Raw_Data_for_FY22[[#This Row],[25th]]","v":197426.6},205260,{"$f":"(((AAMC_Raw_Data_for_FY22[[#This Row],[75th]]-AAMC_Raw_Data_for_FY22[[#This Row],[Median]])/25)*5) + AAMC_Raw_Data_for_FY22[[#This Row],[Median]]","v":225438.4},{"$f":"(((AAMC_Raw_Data_for_FY22[[#This Row],[75th]]-AAMC_Raw_Data_for_FY22[[#This Row],[Median]])/25)*10) + AAMC_Raw_Data_for_FY22[[#This Row],[Median]]","v":245616.8},{"$f":"(((AAMC_Raw_Data_for_FY22[[#This Row],[75th]]-AAMC_Raw_Data_for_FY22[[#This Row],[Median]])/25)*15) + AAMC_Raw_Data_for_FY22[[#This Row],[Median]]","v":265795.20000000001},{"$f":"(((AAMC_Raw_Data_for_FY22[[#This Row],[75th]]-AAMC_Raw_Data_for_FY22[[#This Row],[Median]])/25)*20) + AAMC_Raw_Data_for_FY22[[#This Row],[Median]]","v":285973.59999999998},306152,{"$f":"(((AAMC_Raw_Data_for_FY22[[#This Row],[75th]]-AAMC_Raw_Data_for_FY22[[#This Row],[Median]])/25)*30) + AAMC_Raw_Data_for_FY22[[#This Row],[Median]]","v":326330.40000000002},{"$f":"(((AAMC_Raw_Data_for_FY22[[#This Row],[75th]]-AAMC_Raw_Data_for_FY22[[#This Row],[Median]])/25)*35) + AAMC_Raw_Data_for_FY22[[#This Row],[Median]]","v":346508.79999999999},{"$f":"(((AAMC_Raw_Data_for_FY22[[#This Row],[75th]]-AAMC_Raw_Data_for_FY22[[#This Row],[Median]])/25)*40) + AAMC_Raw_Data_for_FY22[[#This Row],[Median]]","v":366687.19999999995}]
[{"$f":"AAMC_Raw_Data_for_FY22[[#This Row],[Source]]&AAMC_Raw_Data_for_FY22[[#This Row],[Type]]&AAMC_Raw_Data_for_FY22[[#This Row],[School Subset]]&AAMC_Raw_Data_for_FY22[[#This Row],[Rank]]&AAMC_Raw_Data_for_FY22[[#This Row],[Degree]]&AAMC_Raw_Data_for_FY22[[#This Row],[Department / Specialty]]&\"L\"","v":"AAMCAcademicPublicChiefPhDNeurosurgeryL"},"Neurosurgery",6,"AAMC","Academic","Public","Chief","PhD","2021-2022",null,{"$f":"(((AAMC_Raw_Data_for_FY22[[#This Row],[Median]]-AAMC_Raw_Data_for_FY22[[#This Row],[25th]])/25)*5) + AAMC_Raw_Data_for_FY22[[#This Row],[25th]]","v":0},{"$f":"(((AAMC_Raw_Data_for_FY22[[#This Row],[Median]]-AAMC_Raw_Data_for_FY22[[#This Row],[25th]])/25)*10) + AAMC_Raw_Data_for_FY22[[#This Row],[25th]]","v":0},{"$f":"(((AAMC_Raw_Data_for_FY22[[#This Row],[Median]]-AAMC_Raw_Data_for_FY22[[#This Row],[25th]])/25)*15) + AAMC_Raw_Data_for_FY22[[#This Row],[25th]]","v":0},{"$f":"(((AAMC_Raw_Data_for_FY22[[#This Row],[Median]]-AAMC_Raw_Data_for_FY22[[#This Row],[25th]])/25)*20) + AAMC_Raw_Data_for_FY22[[#This Row],[25th]]","v":0},null,{"$f":"(((AAMC_Raw_Data_for_FY22[[#This Row],[75th]]-AAMC_Raw_Data_for_FY22[[#This Row],[Median]])/25)*5) + AAMC_Raw_Data_for_FY22[[#This Row],[Median]]","v":0},{"$f":"(((AAMC_Raw_Data_for_FY22[[#This Row],[75th]]-AAMC_Raw_Data_for_FY22[[#This Row],[Median]])/25)*10) + AAMC_Raw_Data_for_FY22[[#This Row],[Median]]","v":0},{"$f":"(((AAMC_Raw_Data_for_FY22[[#This Row],[75th]]-AAMC_Raw_Data_for_FY22[[#This Row],[Median]])/25)*15) + AAMC_Raw_Data_for_FY22[[#This Row],[Median]]","v":0},{"$f":"(((AAMC_Raw_Data_for_FY22[[#This Row],[75th]]-AAMC_Raw_Data_for_FY22[[#This Row],[Median]])/25)*20) + AAMC_Raw_Data_for_FY22[[#This Row],[Median]]","v":0},null,{"$f":"(((AAMC_Raw_Data_for_FY22[[#This Row],[75th]]-AAMC_Raw_Data_for_FY22[[#This Row],[Median]])/25)*30) + AAMC_Raw_Data_for_FY22[[#This Row],[Median]]","v":0},{"$f":"(((AAMC_Raw_Data_for_FY22[[#This Row],[75th]]-AAMC_Raw_Data_for_FY22[[#This Row],[Median]])/25)*35) + AAMC_Raw_Data_for_FY22[[#This Row],[Median]]","v":0},{"$f":"(((AAMC_Raw_Data_for_FY22[[#This Row],[75th]]-AAMC_Raw_Data_for_FY22[[#This Row],[Median]])/25)*40) + AAMC_Raw_Data_for_FY22[[#This Row],[Median]]","v":0}]
[{"$f":"AAMC_Raw_Data_for_FY22[[#This Row],[Source]]&AAMC_Raw_Data_for_FY22[[#This Row],[Type]]&AAMC_Raw_Data_for_FY22[[#This Row],[School Subset]]&AAMC_Raw_Data_for_FY22[[#This Row],[Rank]]&AAMC_Raw_Data_for_FY22[[#This Row],[Degree]]&AAMC_Raw_Data_for_FY22[[#This Row],[Department / Specialty]]&\"L\"","v":"AAMCAcademicPublicInstructorPhDOrthopedic Surgery TotalL"},"Orthopedic Surgery Total",5,"AAMC","Academic","Public","Instructor","PhD","2021-2022",78440,{"$f":"(((AAMC_Raw_Data_for_FY22[[#This Row],[Median]]-AAMC_Raw_Data_for_FY22[[#This Row],[25th]])/25)*5) + AAMC_Raw_Data_for_FY22[[#This Row],[25th]]","v":82606.8},{"$f":"(((AAMC_Raw_Data_for_FY22[[#This Row],[Median]]-AAMC_Raw_Data_for_FY22[[#This Row],[25th]])/25)*10) + AAMC_Raw_Data_for_FY22[[#This Row],[25th]]","v":86773.6},{"$f":"(((AAMC_Raw_Data_for_FY22[[#This Row],[Median]]-AAMC_Raw_Data_for_FY22[[#This Row],[25th]])/25)*15) + AAMC_Raw_Data_for_FY22[[#This Row],[25th]]","v":90940.4},{"$f":"(((AAMC_Raw_Data_for_FY22[[#This Row],[Median]]-AAMC_Raw_Data_for_FY22[[#This Row],[25th]])/25)*20) + AAMC_Raw_Data_for_FY22[[#This Row],[25th]]","v":95107.199999999997},99274,{"$f":"(((AAMC_Raw_Data_for_FY22[[#This Row],[75th]]-AAMC_Raw_Data_for_FY22[[#This Row],[Median]])/25)*5) + AAMC_Raw_Data_for_FY22[[#This Row],[Median]]","v":107419.2},{"$f":"(((AAMC_Raw_Data_for_FY22[[#This Row],[75th]]-AAMC_Raw_Data_for_FY22[[#This Row],[Median]])/25)*10) + AAMC_Raw_Data_for_FY22[[#This Row],[Median]]","v":115564.4},{"$f":"(((AAMC_Raw_Data_for_FY22[[#This Row],[75th]]-AAMC_Raw_Data_for_FY22[[#This Row],[Median]])/25)*15) + AAMC_Raw_Data_for_FY22[[#This Row],[Median]]","v":123709.6},{"$f":"(((AAMC_Raw_Data_for_FY22[[#This Row],[75th]]-AAMC_Raw_Data_for_FY22[[#This Row],[Median]])/25)*20) + AAMC_Raw_Data_for_FY22[[#This Row],[Median]]","v":131854.79999999999},140000,{"$f":"(((AAMC_Raw_Data_for_FY22[[#This Row],[75th]]-AAMC_Raw_Data_for_FY22[[#This Row],[Median]])/25)*30) + AAMC_Raw_Data_for_FY22[[#This Row],[Median]]","v":148145.20000000001},{"$f":"(((AAMC_Raw_Data_for_FY22[[#This Row],[75th]]-AAMC_Raw_Data_for_FY22[[#This Row],[Median]])/25)*35) + AAMC_Raw_Data_for_FY22[[#This Row],[Median]]","v":156290.4},{"$f":"(((AAMC_Raw_Data_for_FY22[[#This Row],[75th]]-AAMC_Raw_Data_for_FY22[[#This Row],[Median]])/25)*40) + AAMC_Raw_Data_for_FY22[[#This Row],[Median]]","v":164435.6}]
[{"$f":"AAMC_Raw_Data_for_FY22[[#This Row],[Source]]&AAMC_Raw_Data_for_FY22[[#This Row],[Type]]&AAMC_Raw_Data_for_FY22[[#This Row],[School Subset]]&AAMC_Raw_Data_for_FY22[[#This Row],[Rank]]&AAMC_Raw_Data_for_FY22[[#This Row],[Degree]]&AAMC_Raw_Data_for_FY22[[#This Row],[Department / Specialty]]&\"L\"","v":"AAMCAcademicPublicAssistantPhDOrthopedic Surgery TotalL"},"Orthopedic Surgery Total",4,"AAMC","Academic","Public","Assistant","PhD","2021-2022",99257,{"$f":"(((AAMC_Raw_Data_for_FY22[[#This Row],[Median]]-AAMC_Raw_Data_for_FY22[[#This Row],[25th]])/25)*5) + AAMC_Raw_Data_for_FY22[[#This Row],[25th]]","v":103359.4},{"$f":"(((AAMC_Raw_Data_for_FY22[[#This Row],[Median]]-AAMC_Raw_Data_for_FY22[[#This Row],[25th]])/25)*10) + AAMC_Raw_Data_for_FY22[[#This Row],[25th]]","v":107461.8},{"$f":"(((AAMC_Raw_Data_for_FY22[[#This Row],[Median]]-AAMC_Raw_Data_for_FY22[[#This Row],[25th]])/25)*15) + AAMC_Raw_Data_for_FY22[[#This Row],[25th]]","v":111564.2},{"$f":"(((AAMC_Raw_Data_for_FY22[[#This Row],[Median]]-AAMC_Raw_Data_for_FY22[[#This Row],[25th]])/25)*20) + AAMC_Raw_Data_for_FY22[[#This Row],[25th]]","v":115666.6},119769,{"$f":"(((AAMC_Raw_Data_for_FY22[[#This Row],[75th]]-AAMC_Raw_Data_for_FY22[[#This Row],[Median]])/25)*5) + AAMC_Raw_Data_for_FY22[[#This Row],[Median]]","v":125947.8},{"$f":"(((AAMC_Raw_Data_for_FY22[[#This Row],[75th]]-AAMC_Raw_Data_for_FY22[[#This Row],[Median]])/25)*10) + AAMC_Raw_Data_for_FY22[[#This Row],[Median]]","v":132126.6},{"$f":"(((AAMC_Raw_Data_for_FY22[[#This Row],[75th]]-AAMC_Raw_Data_for_FY22[[#This Row],[Median]])/25)*15) + AAMC_Raw_Data_for_FY22[[#This Row],[Median]]","v":138305.4},{"$f":"(((AAMC_Raw_Data_for_FY22[[#This Row],[75th]]-AAMC_Raw_Data_for_FY22[[#This Row],[Median]])/25)*20) + AAMC_Raw_Data_for_FY22[[#This Row],[Median]]","v":144484.20000000001},150663,{"$f":"(((AAMC_Raw_Data_for_FY22[[#This Row],[75th]]-AAMC_Raw_Data_for_FY22[[#This Row],[Median]])/25)*30) + AAMC_Raw_Data_for_FY22[[#This Row],[Median]]","v":156841.79999999999},{"$f":"(((AAMC_Raw_Data_for_FY22[[#This Row],[75th]]-AAMC_Raw_Data_for_FY22[[#This Row],[Median]])/25)*35) + AAMC_Raw_Data_for_FY22[[#This Row],[Median]]","v":163020.6},{"$f":"(((AAMC_Raw_Data_for_FY22[[#This Row],[75th]]-AAMC_Raw_Data_for_FY22[[#This Row],[Median]])/25)*40) + AAMC_Raw_Data_for_FY22[[#This Row],[Median]]","v":169199.4}]
[{"$f":"AAMC_Raw_Data_for_FY22[[#This Row],[Source]]&AAMC_Raw_Data_for_FY22[[#This Row],[Type]]&AAMC_Raw_Data_for_FY22[[#This Row],[School Subset]]&AAMC_Raw_Data_for_FY22[[#This Row],[Rank]]&AAMC_Raw_Data_for_FY22[[#This Row],[Degree]]&AAMC_Raw_Data_for_FY22[[#This Row],[Department / Specialty]]&\"L\"","v":"AAMCAcademicPublicAssociatePhDOrthopedic Surgery TotalL"},"Orthopedic Surgery Total",3,"AAMC","Academic","Public","Associate","PhD","2021-2022",119331,{"$f":"(((AAMC_Raw_Data_for_FY22[[#This Row],[Median]]-AAMC_Raw_Data_for_FY22[[#This Row],[25th]])/25)*5) + AAMC_Raw_Data_for_FY22[[#This Row],[25th]]","v":126592.4},{"$f":"(((AAMC_Raw_Data_for_FY22[[#This Row],[Median]]-AAMC_Raw_Data_for_FY22[[#This Row],[25th]])/25)*10) + AAMC_Raw_Data_for_FY22[[#This Row],[25th]]","v":133853.79999999999},{"$f":"(((AAMC_Raw_Data_for_FY22[[#This Row],[Median]]-AAMC_Raw_Data_for_FY22[[#This Row],[25th]])/25)*15) + AAMC_Raw_Data_for_FY22[[#This Row],[25th]]","v":141115.20000000001},{"$f":"(((AAMC_Raw_Data_for_FY22[[#This Row],[Median]]-AAMC_Raw_Data_for_FY22[[#This Row],[25th]])/25)*20) + AAMC_Raw_Data_for_FY22[[#This Row],[25th]]","v":148376.6},155638,{"$f":"(((AAMC_Raw_Data_for_FY22[[#This Row],[75th]]-AAMC_Raw_Data_for_FY22[[#This Row],[Median]])/25)*5) + AAMC_Raw_Data_for_FY22[[#This Row],[Median]]","v":163555},{"$f":"(((AAMC_Raw_Data_for_FY22[[#This Row],[75th]]-AAMC_Raw_Data_for_FY22[[#This Row],[Median]])/25)*10) + AAMC_Raw_Data_for_FY22[[#This Row],[Median]]","v":171472},{"$f":"(((AAMC_Raw_Data_for_FY22[[#This Row],[75th]]-AAMC_Raw_Data_for_FY22[[#This Row],[Median]])/25)*15) + AAMC_Raw_Data_for_FY22[[#This Row],[Median]]","v":179389},{"$f":"(((AAMC_Raw_Data_for_FY22[[#This Row],[75th]]-AAMC_Raw_Data_for_FY22[[#This Row],[Median]])/25)*20) + AAMC_Raw_Data_for_FY22[[#This Row],[Median]]","v":187306},195223,{"$f":"(((AAMC_Raw_Data_for_FY22[[#This Row],[75th]]-AAMC_Raw_Data_for_FY22[[#This Row],[Median]])/25)*30) + AAMC_Raw_Data_for_FY22[[#This Row],[Median]]","v":203140},{"$f":"(((AAMC_Raw_Data_for_FY22[[#This Row],[75th]]-AAMC_Raw_Data_for_FY22[[#This Row],[Median]])/25)*35) + AAMC_Raw_Data_for_FY22[[#This Row],[Median]]","v":211057},{"$f":"(((AAMC_Raw_Data_for_FY22[[#This Row],[75th]]-AAMC_Raw_Data_for_FY22[[#This Row],[Median]])/25)*40) + AAMC_Raw_Data_for_FY22[[#This Row],[Median]]","v":218974}]
[{"$f":"AAMC_Raw_Data_for_FY22[[#This Row],[Source]]&AAMC_Raw_Data_for_FY22[[#This Row],[Type]]&AAMC_Raw_Data_for_FY22[[#This Row],[School Subset]]&AAMC_Raw_Data_for_FY22[[#This Row],[Rank]]&AAMC_Raw_Data_for_FY22[[#This Row],[Degree]]&AAMC_Raw_Data_for_FY22[[#This Row],[Department / Specialty]]&\"L\"","v":"AAMCAcademicPublicProfessorPhDOrthopedic Surgery TotalL"},"Orthopedic Surgery Total",2,"AAMC","Academic","Public","Professor","PhD","2021-2022",171106,{"$f":"(((AAMC_Raw_Data_for_FY22[[#This Row],[Median]]-AAMC_Raw_Data_for_FY22[[#This Row],[25th]])/25)*5) + AAMC_Raw_Data_for_FY22[[#This Row],[25th]]","v":180372.4},{"$f":"(((AAMC_Raw_Data_for_FY22[[#This Row],[Median]]-AAMC_Raw_Data_for_FY22[[#This Row],[25th]])/25)*10) + AAMC_Raw_Data_for_FY22[[#This Row],[25th]]","v":189638.8},{"$f":"(((AAMC_Raw_Data_for_FY22[[#This Row],[Median]]-AAMC_Raw_Data_for_FY22[[#This Row],[25th]])/25)*15) + AAMC_Raw_Data_for_FY22[[#This Row],[25th]]","v":198905.2},{"$f":"(((AAMC_Raw_Data_for_FY22[[#This Row],[Median]]-AAMC_Raw_Data_for_FY22[[#This Row],[25th]])/25)*20) + AAMC_Raw_Data_for_FY22[[#This Row],[25th]]","v":208171.6},217438,{"$f":"(((AAMC_Raw_Data_for_FY22[[#This Row],[75th]]-AAMC_Raw_Data_for_FY22[[#This Row],[Median]])/25)*5) + AAMC_Raw_Data_for_FY22[[#This Row],[Median]]","v":225829.2},{"$f":"(((AAMC_Raw_Data_for_FY22[[#This Row],[75th]]-AAMC_Raw_Data_for_FY22[[#This Row],[Median]])/25)*10) + AAMC_Raw_Data_for_FY22[[#This Row],[Median]]","v":234220.4},{"$f":"(((AAMC_Raw_Data_for_FY22[[#This Row],[75th]]-AAMC_Raw_Data_for_FY22[[#This Row],[Median]])/25)*15) + AAMC_Raw_Data_for_FY22[[#This Row],[Median]]","v":242611.6},{"$f":"(((AAMC_Raw_Data_for_FY22[[#This Row],[75th]]-AAMC_Raw_Data_for_FY22[[#This Row],[Median]])/25)*20) + AAMC_Raw_Data_for_FY22[[#This Row],[Median]]","v":251002.8},259394,{"$f":"(((AAMC_Raw_Data_for_FY22[[#This Row],[75th]]-AAMC_Raw_Data_for_FY22[[#This Row],[Median]])/25)*30) + AAMC_Raw_Data_for_FY22[[#This Row],[Median]]","v":267785.2},{"$f":"(((AAMC_Raw_Data_for_FY22[[#This Row],[75th]]-AAMC_Raw_Data_for_FY22[[#This Row],[Median]])/25)*35) + AAMC_Raw_Data_for_FY22[[#This Row],[Median]]","v":276176.40000000002},{"$f":"(((AAMC_Raw_Data_for_FY22[[#This Row],[75th]]-AAMC_Raw_Data_for_FY22[[#This Row],[Median]])/25)*40) + AAMC_Raw_Data_for_FY22[[#This Row],[Median]]","v":284567.59999999998}]
[{"$f":"AAMC_Raw_Data_for_FY22[[#This Row],[Source]]&AAMC_Raw_Data_for_FY22[[#This Row],[Type]]&AAMC_Raw_Data_for_FY22[[#This Row],[School Subset]]&AAMC_Raw_Data_for_FY22[[#This Row],[Rank]]&AAMC_Raw_Data_for_FY22[[#This Row],[Degree]]&AAMC_Raw_Data_for_FY22[[#This Row],[Department / Specialty]]&\"L\"","v":"AAMCAcademicPublicChiefPhDOrthopedic Surgery TotalL"},"Orthopedic Surgery Total",6,"AAMC","Academic","Public","Chief","PhD","2021-2022",null,{"$f":"(((AAMC_Raw_Data_for_FY22[[#This Row],[Median]]-AAMC_Raw_Data_for_FY22[[#This Row],[25th]])/25)*5) + AAMC_Raw_Data_for_FY22[[#This Row],[25th]]","v":0},{"$f":"(((AAMC_Raw_Data_for_FY22[[#This Row],[Median]]-AAMC_Raw_Data_for_FY22[[#This Row],[25th]])/25)*10) + AAMC_Raw_Data_for_FY22[[#This Row],[25th]]","v":0},{"$f":"(((AAMC_Raw_Data_for_FY22[[#This Row],[Median]]-AAMC_Raw_Data_for_FY22[[#This Row],[25th]])/25)*15) + AAMC_Raw_Data_for_FY22[[#This Row],[25th]]","v":0},{"$f":"(((AAMC_Raw_Data_for_FY22[[#This Row],[Median]]-AAMC_Raw_Data_for_FY22[[#This Row],[25th]])/25)*20) + AAMC_Raw_Data_for_FY22[[#This Row],[25th]]","v":0},null,{"$f":"(((AAMC_Raw_Data_for_FY22[[#This Row],[75th]]-AAMC_Raw_Data_for_FY22[[#This Row],[Median]])/25)*5) + AAMC_Raw_Data_for_FY22[[#This Row],[Median]]","v":0},{"$f":"(((AAMC_Raw_Data_for_FY22[[#This Row],[75th]]-AAMC_Raw_Data_for_FY22[[#This Row],[Median]])/25)*10) + AAMC_Raw_Data_for_FY22[[#This Row],[Median]]","v":0},{"$f":"(((AAMC_Raw_Data_for_FY22[[#This Row],[75th]]-AAMC_Raw_Data_for_FY22[[#This Row],[Median]])/25)*15) + AAMC_Raw_Data_for_FY22[[#This Row],[Median]]","v":0},{"$f":"(((AAMC_Raw_Data_for_FY22[[#This Row],[75th]]-AAMC_Raw_Data_for_FY22[[#This Row],[Median]])/25)*20) + AAMC_Raw_Data_for_FY22[[#This Row],[Median]]","v":0},null,{"$f":"(((AAMC_Raw_Data_for_FY22[[#This Row],[75th]]-AAMC_Raw_Data_for_FY22[[#This Row],[Median]])/25)*30) + AAMC_Raw_Data_for_FY22[[#This Row],[Median]]","v":0},{"$f":"(((AAMC_Raw_Data_for_FY22[[#This Row],[75th]]-AAMC_Raw_Data_for_FY22[[#This Row],[Median]])/25)*35) + AAMC_Raw_Data_for_FY22[[#This Row],[Median]]","v":0},{"$f":"(((AAMC_Raw_Data_for_FY22[[#This Row],[75th]]-AAMC_Raw_Data_for_FY22[[#This Row],[Median]])/25)*40) + AAMC_Raw_Data_for_FY22[[#This Row],[Median]]","v":0}]
[{"$f":"AAMC_Raw_Data_for_FY22[[#This Row],[Source]]&AAMC_Raw_Data_for_FY22[[#This Row],[Type]]&AAMC_Raw_Data_for_FY22[[#This Row],[School Subset]]&AAMC_Raw_Data_for_FY22[[#This Row],[Rank]]&AAMC_Raw_Data_for_FY22[[#This Row],[Degree]]&AAMC_Raw_Data_for_FY22[[#This Row],[Department / Specialty]]&\"L\"","v":"AAMCAcademicPublicInstructorPhDOrthopedic Surgery: GeneralL"},"Orthopedic Surgery: General",5,"AAMC","Academic","Public","Instructor","PhD","2021-2022",null,{"$f":"(((AAMC_Raw_Data_for_FY22[[#This Row],[Median]]-AAMC_Raw_Data_for_FY22[[#This Row],[25th]])/25)*5) + AAMC_Raw_Data_for_FY22[[#This Row],[25th]]","v":0},{"$f":"(((AAMC_Raw_Data_for_FY22[[#This Row],[Median]]-AAMC_Raw_Data_for_FY22[[#This Row],[25th]])/25)*10) + AAMC_Raw_Data_for_FY22[[#This Row],[25th]]","v":0},{"$f":"(((AAMC_Raw_Data_for_FY22[[#This Row],[Median]]-AAMC_Raw_Data_for_FY22[[#This Row],[25th]])/25)*15) + AAMC_Raw_Data_for_FY22[[#This Row],[25th]]","v":0},{"$f":"(((AAMC_Raw_Data_for_FY22[[#This Row],[Median]]-AAMC_Raw_Data_for_FY22[[#This Row],[25th]])/25)*20) + AAMC_Raw_Data_for_FY22[[#This Row],[25th]]","v":0},null,{"$f":"(((AAMC_Raw_Data_for_FY22[[#This Row],[75th]]-AAMC_Raw_Data_for_FY22[[#This Row],[Median]])/25)*5) + AAMC_Raw_Data_for_FY22[[#This Row],[Median]]","v":0},{"$f":"(((AAMC_Raw_Data_for_FY22[[#This Row],[75th]]-AAMC_Raw_Data_for_FY22[[#This Row],[Median]])/25)*10) + AAMC_Raw_Data_for_FY22[[#This Row],[Median]]","v":0},{"$f":"(((AAMC_Raw_Data_for_FY22[[#This Row],[75th]]-AAMC_Raw_Data_for_FY22[[#This Row],[Median]])/25)*15) + AAMC_Raw_Data_for_FY22[[#This Row],[Median]]","v":0},{"$f":"(((AAMC_Raw_Data_for_FY22[[#This Row],[75th]]-AAMC_Raw_Data_for_FY22[[#This Row],[Median]])/25)*20) + AAMC_Raw_Data_for_FY22[[#This Row],[Median]]","v":0},null,{"$f":"(((AAMC_Raw_Data_for_FY22[[#This Row],[75th]]-AAMC_Raw_Data_for_FY22[[#This Row],[Median]])/25)*30) + AAMC_Raw_Data_for_FY22[[#This Row],[Median]]","v":0},{"$f":"(((AAMC_Raw_Data_for_FY22[[#This Row],[75th]]-AAMC_Raw_Data_for_FY22[[#This Row],[Median]])/25)*35) + AAMC_Raw_Data_for_FY22[[#This Row],[Median]]","v":0},{"$f":"(((AAMC_Raw_Data_for_FY22[[#This Row],[75th]]-AAMC_Raw_Data_for_FY22[[#This Row],[Median]])/25)*40) + AAMC_Raw_Data_for_FY22[[#This Row],[Median]]","v":0}]
[{"$f":"AAMC_Raw_Data_for_FY22[[#This Row],[Source]]&AAMC_Raw_Data_for_FY22[[#This Row],[Type]]&AAMC_Raw_Data_for_FY22[[#This Row],[School Subset]]&AAMC_Raw_Data_for_FY22[[#This Row],[Rank]]&AAMC_Raw_Data_for_FY22[[#This Row],[Degree]]&AAMC_Raw_Data_for_FY22[[#This Row],[Department / Specialty]]&\"L\"","v":"AAMCAcademicPublicAssistantPhDOrthopedic Surgery: GeneralL"},"Orthopedic Surgery: General",4,"AAMC","Academic","Public","Assistant","PhD","2021-2022",93177,{"$f":"(((AAMC_Raw_Data_for_FY22[[#This Row],[Median]]-AAMC_Raw_Data_for_FY22[[#This Row],[25th]])/25)*5) + AAMC_Raw_Data_for_FY22[[#This Row],[25th]]","v":98169.600000000006},{"$f":"(((AAMC_Raw_Data_for_FY22[[#This Row],[Median]]-AAMC_Raw_Data_for_FY22[[#This Row],[25th]])/25)*10) + AAMC_Raw_Data_for_FY22[[#This Row],[25th]]","v":103162.2},{"$f":"(((AAMC_Raw_Data_for_FY22[[#This Row],[Median]]-AAMC_Raw_Data_for_FY22[[#This Row],[25th]])/25)*15) + AAMC_Raw_Data_for_FY22[[#This Row],[25th]]","v":108154.8},{"$f":"(((AAMC_Raw_Data_for_FY22[[#This Row],[Median]]-AAMC_Raw_Data_for_FY22[[#This Row],[25th]])/25)*20) + AAMC_Raw_Data_for_FY22[[#This Row],[25th]]","v":113147.4},118140,{"$f":"(((AAMC_Raw_Data_for_FY22[[#This Row],[75th]]-AAMC_Raw_Data_for_FY22[[#This Row],[Median]])/25)*5) + AAMC_Raw_Data_for_FY22[[#This Row],[Median]]","v":118692},{"$f":"(((AAMC_Raw_Data_for_FY22[[#This Row],[75th]]-AAMC_Raw_Data_for_FY22[[#This Row],[Median]])/25)*10) + AAMC_Raw_Data_for_FY22[[#This Row],[Median]]","v":119244},{"$f":"(((AAMC_Raw_Data_for_FY22[[#This Row],[75th]]-AAMC_Raw_Data_for_FY22[[#This Row],[Median]])/25)*15) + AAMC_Raw_Data_for_FY22[[#This Row],[Median]]","v":119796},{"$f":"(((AAMC_Raw_Data_for_FY22[[#This Row],[75th]]-AAMC_Raw_Data_for_FY22[[#This Row],[Median]])/25)*20) + AAMC_Raw_Data_for_FY22[[#This Row],[Median]]","v":120348},120900,{"$f":"(((AAMC_Raw_Data_for_FY22[[#This Row],[75th]]-AAMC_Raw_Data_for_FY22[[#This Row],[Median]])/25)*30) + AAMC_Raw_Data_for_FY22[[#This Row],[Median]]","v":121452},{"$f":"(((AAMC_Raw_Data_for_FY22[[#This Row],[75th]]-AAMC_Raw_Data_for_FY22[[#This Row],[Median]])/25)*35) + AAMC_Raw_Data_for_FY22[[#This Row],[Median]]","v":122004},{"$f":"(((AAMC_Raw_Data_for_FY22[[#This Row],[75th]]-AAMC_Raw_Data_for_FY22[[#This Row],[Median]])/25)*40) + AAMC_Raw_Data_for_FY22[[#This Row],[Median]]","v":122556}]
[{"$f":"AAMC_Raw_Data_for_FY22[[#This Row],[Source]]&AAMC_Raw_Data_for_FY22[[#This Row],[Type]]&AAMC_Raw_Data_for_FY22[[#This Row],[School Subset]]&AAMC_Raw_Data_for_FY22[[#This Row],[Rank]]&AAMC_Raw_Data_for_FY22[[#This Row],[Degree]]&AAMC_Raw_Data_for_FY22[[#This Row],[Department / Specialty]]&\"L\"","v":"AAMCAcademicPublicAssociatePhDOrthopedic Surgery: GeneralL"},"Orthopedic Surgery: General",3,"AAMC","Academic","Public","Associate","PhD","2021-2022",116727,{"$f":"(((AAMC_Raw_Data_for_FY22[[#This Row],[Median]]-AAMC_Raw_Data_for_FY22[[#This Row],[25th]])/25)*5) + AAMC_Raw_Data_for_FY22[[#This Row],[25th]]","v":119622.8},{"$f":"(((AAMC_Raw_Data_for_FY22[[#This Row],[Median]]-AAMC_Raw_Data_for_FY22[[#This Row],[25th]])/25)*10) + AAMC_Raw_Data_for_FY22[[#This Row],[25th]]","v":122518.6},{"$f":"(((AAMC_Raw_Data_for_FY22[[#This Row],[Median]]-AAMC_Raw_Data_for_FY22[[#This Row],[25th]])/25)*15) + AAMC_Raw_Data_for_FY22[[#This Row],[25th]]","v":125414.39999999999},{"$f":"(((AAMC_Raw_Data_for_FY22[[#This Row],[Median]]-AAMC_Raw_Data_for_FY22[[#This Row],[25th]])/25)*20) + AAMC_Raw_Data_for_FY22[[#This Row],[25th]]","v":128310.2},131206,{"$f":"(((AAMC_Raw_Data_for_FY22[[#This Row],[75th]]-AAMC_Raw_Data_for_FY22[[#This Row],[Median]])/25)*5) + AAMC_Raw_Data_for_FY22[[#This Row],[Median]]","v":138341.6},{"$f":"(((AAMC_Raw_Data_for_FY22[[#This Row],[75th]]-AAMC_Raw_Data_for_FY22[[#This Row],[Median]])/25)*10) + AAMC_Raw_Data_for_FY22[[#This Row],[Median]]","v":145477.20000000001},{"$f":"(((AAMC_Raw_Data_for_FY22[[#This Row],[75th]]-AAMC_Raw_Data_for_FY22[[#This Row],[Median]])/25)*15) + AAMC_Raw_Data_for_FY22[[#This Row],[Median]]","v":152612.79999999999},{"$f":"(((AAMC_Raw_Data_for_FY22[[#This Row],[75th]]-AAMC_Raw_Data_for_FY22[[#This Row],[Median]])/25)*20) + AAMC_Raw_Data_for_FY22[[#This Row],[Median]]","v":159748.4},166884,{"$f":"(((AAMC_Raw_Data_for_FY22[[#This Row],[75th]]-AAMC_Raw_Data_for_FY22[[#This Row],[Median]])/25)*30) + AAMC_Raw_Data_for_FY22[[#This Row],[Median]]","v":174019.6},{"$f":"(((AAMC_Raw_Data_for_FY22[[#This Row],[75th]]-AAMC_Raw_Data_for_FY22[[#This Row],[Median]])/25)*35) + AAMC_Raw_Data_for_FY22[[#This Row],[Median]]","v":181155.20000000001},{"$f":"(((AAMC_Raw_Data_for_FY22[[#This Row],[75th]]-AAMC_Raw_Data_for_FY22[[#This Row],[Median]])/25)*40) + AAMC_Raw_Data_for_FY22[[#This Row],[Median]]","v":188290.8}]
[{"$f":"AAMC_Raw_Data_for_FY22[[#This Row],[Source]]&AAMC_Raw_Data_for_FY22[[#This Row],[Type]]&AAMC_Raw_Data_for_FY22[[#This Row],[School Subset]]&AAMC_Raw_Data_for_FY22[[#This Row],[Rank]]&AAMC_Raw_Data_for_FY22[[#This Row],[Degree]]&AAMC_Raw_Data_for_FY22[[#This Row],[Department / Specialty]]&\"L\"","v":"AAMCAcademicPublicProfessorPhDOrthopedic Surgery: GeneralL"},"Orthopedic Surgery: General",2,"AAMC","Academic","Public","Professor","PhD","2021-2022",158427,{"$f":"(((AAMC_Raw_Data_for_FY22[[#This Row],[Median]]-AAMC_Raw_Data_for_FY22[[#This Row],[25th]])/25)*5) + AAMC_Raw_Data_for_FY22[[#This Row],[25th]]","v":167314.4},{"$f":"(((AAMC_Raw_Data_for_FY22[[#This Row],[Median]]-AAMC_Raw_Data_for_FY22[[#This Row],[25th]])/25)*10) + AAMC_Raw_Data_for_FY22[[#This Row],[25th]]","v":176201.8},{"$f":"(((AAMC_Raw_Data_for_FY22[[#This Row],[Median]]-AAMC_Raw_Data_for_FY22[[#This Row],[25th]])/25)*15) + AAMC_Raw_Data_for_FY22[[#This Row],[25th]]","v":185089.2},{"$f":"(((AAMC_Raw_Data_for_FY22[[#This Row],[Median]]-AAMC_Raw_Data_for_FY22[[#This Row],[25th]])/25)*20) + AAMC_Raw_Data_for_FY22[[#This Row],[25th]]","v":193976.6},202864,{"$f":"(((AAMC_Raw_Data_for_FY22[[#This Row],[75th]]-AAMC_Raw_Data_for_FY22[[#This Row],[Median]])/25)*5) + AAMC_Raw_Data_for_FY22[[#This Row],[Median]]","v":214570.6},{"$f":"(((AAMC_Raw_Data_for_FY22[[#This Row],[75th]]-AAMC_Raw_Data_for_FY22[[#This Row],[Median]])/25)*10) + AAMC_Raw_Data_for_FY22[[#This Row],[Median]]","v":226277.2},{"$f":"(((AAMC_Raw_Data_for_FY22[[#This Row],[75th]]-AAMC_Raw_Data_for_FY22[[#This Row],[Median]])/25)*15) + AAMC_Raw_Data_for_FY22[[#This Row],[Median]]","v":237983.8},{"$f":"(((AAMC_Raw_Data_for_FY22[[#This Row],[75th]]-AAMC_Raw_Data_for_FY22[[#This Row],[Median]])/25)*20) + AAMC_Raw_Data_for_FY22[[#This Row],[Median]]","v":249690.4},261397,{"$f":"(((AAMC_Raw_Data_for_FY22[[#This Row],[75th]]-AAMC_Raw_Data_for_FY22[[#This Row],[Median]])/25)*30) + AAMC_Raw_Data_for_FY22[[#This Row],[Median]]","v":273103.59999999998},{"$f":"(((AAMC_Raw_Data_for_FY22[[#This Row],[75th]]-AAMC_Raw_Data_for_FY22[[#This Row],[Median]])/25)*35) + AAMC_Raw_Data_for_FY22[[#This Row],[Median]]","v":284810.2},{"$f":"(((AAMC_Raw_Data_for_FY22[[#This Row],[75th]]-AAMC_Raw_Data_for_FY22[[#This Row],[Median]])/25)*40) + AAMC_Raw_Data_for_FY22[[#This Row],[Median]]","v":296516.8}]
[{"$f":"AAMC_Raw_Data_for_FY22[[#This Row],[Source]]&AAMC_Raw_Data_for_FY22[[#This Row],[Type]]&AAMC_Raw_Data_for_FY22[[#This Row],[School Subset]]&AAMC_Raw_Data_for_FY22[[#This Row],[Rank]]&AAMC_Raw_Data_for_FY22[[#This Row],[Degree]]&AAMC_Raw_Data_for_FY22[[#This Row],[Department / Specialty]]&\"L\"","v":"AAMCAcademicPublicChiefPhDOrthopedic Surgery: GeneralL"},"Orthopedic Surgery: General",6,"AAMC","Academic","Public","Chief","PhD","2021-2022",null,{"$f":"(((AAMC_Raw_Data_for_FY22[[#This Row],[Median]]-AAMC_Raw_Data_for_FY22[[#This Row],[25th]])/25)*5) + AAMC_Raw_Data_for_FY22[[#This Row],[25th]]","v":0},{"$f":"(((AAMC_Raw_Data_for_FY22[[#This Row],[Median]]-AAMC_Raw_Data_for_FY22[[#This Row],[25th]])/25)*10) + AAMC_Raw_Data_for_FY22[[#This Row],[25th]]","v":0},{"$f":"(((AAMC_Raw_Data_for_FY22[[#This Row],[Median]]-AAMC_Raw_Data_for_FY22[[#This Row],[25th]])/25)*15) + AAMC_Raw_Data_for_FY22[[#This Row],[25th]]","v":0},{"$f":"(((AAMC_Raw_Data_for_FY22[[#This Row],[Median]]-AAMC_Raw_Data_for_FY22[[#This Row],[25th]])/25)*20) + AAMC_Raw_Data_for_FY22[[#This Row],[25th]]","v":0},null,{"$f":"(((AAMC_Raw_Data_for_FY22[[#This Row],[75th]]-AAMC_Raw_Data_for_FY22[[#This Row],[Median]])/25)*5) + AAMC_Raw_Data_for_FY22[[#This Row],[Median]]","v":0},{"$f":"(((AAMC_Raw_Data_for_FY22[[#This Row],[75th]]-AAMC_Raw_Data_for_FY22[[#This Row],[Median]])/25)*10) + AAMC_Raw_Data_for_FY22[[#This Row],[Median]]","v":0},{"$f":"(((AAMC_Raw_Data_for_FY22[[#This Row],[75th]]-AAMC_Raw_Data_for_FY22[[#This Row],[Median]])/25)*15) + AAMC_Raw_Data_for_FY22[[#This Row],[Median]]","v":0},{"$f":"(((AAMC_Raw_Data_for_FY22[[#This Row],[75th]]-AAMC_Raw_Data_for_FY22[[#This Row],[Median]])/25)*20) + AAMC_Raw_Data_for_FY22[[#This Row],[Median]]","v":0},null,{"$f":"(((AAMC_Raw_Data_for_FY22[[#This Row],[75th]]-AAMC_Raw_Data_for_FY22[[#This Row],[Median]])/25)*30) + AAMC_Raw_Data_for_FY22[[#This Row],[Median]]","v":0},{"$f":"(((AAMC_Raw_Data_for_FY22[[#This Row],[75th]]-AAMC_Raw_Data_for_FY22[[#This Row],[Median]])/25)*35) + AAMC_Raw_Data_for_FY22[[#This Row],[Median]]","v":0},{"$f":"(((AAMC_Raw_Data_for_FY22[[#This Row],[75th]]-AAMC_Raw_Data_for_FY22[[#This Row],[Median]])/25)*40) + AAMC_Raw_Data_for_FY22[[#This Row],[Median]]","v":0}]
[{"$f":"AAMC_Raw_Data_for_FY22[[#This Row],[Source]]&AAMC_Raw_Data_for_FY22[[#This Row],[Type]]&AAMC_Raw_Data_for_FY22[[#This Row],[School Subset]]&AAMC_Raw_Data_for_FY22[[#This Row],[Rank]]&AAMC_Raw_Data_for_FY22[[#This Row],[Degree]]&AAMC_Raw_Data_for_FY22[[#This Row],[Department / Specialty]]&\"L\"","v":"AAMCAcademicPublicInstructorPhDOrthopedic Surgery: Sports MedicineL"},"Orthopedic Surgery: Sports Medicine",5,"AAMC","Academic","Public","Instructor","PhD","2021-2022",null,{"$f":"(((AAMC_Raw_Data_for_FY22[[#This Row],[Median]]-AAMC_Raw_Data_for_FY22[[#This Row],[25th]])/25)*5) + AAMC_Raw_Data_for_FY22[[#This Row],[25th]]","v":0},{"$f":"(((AAMC_Raw_Data_for_FY22[[#This Row],[Median]]-AAMC_Raw_Data_for_FY22[[#This Row],[25th]])/25)*10) + AAMC_Raw_Data_for_FY22[[#This Row],[25th]]","v":0},{"$f":"(((AAMC_Raw_Data_for_FY22[[#This Row],[Median]]-AAMC_Raw_Data_for_FY22[[#This Row],[25th]])/25)*15) + AAMC_Raw_Data_for_FY22[[#This Row],[25th]]","v":0},{"$f":"(((AAMC_Raw_Data_for_FY22[[#This Row],[Median]]-AAMC_Raw_Data_for_FY22[[#This Row],[25th]])/25)*20) + AAMC_Raw_Data_for_FY22[[#This Row],[25th]]","v":0},null,{"$f":"(((AAMC_Raw_Data_for_FY22[[#This Row],[75th]]-AAMC_Raw_Data_for_FY22[[#This Row],[Median]])/25)*5) + AAMC_Raw_Data_for_FY22[[#This Row],[Median]]","v":0},{"$f":"(((AAMC_Raw_Data_for_FY22[[#This Row],[75th]]-AAMC_Raw_Data_for_FY22[[#This Row],[Median]])/25)*10) + AAMC_Raw_Data_for_FY22[[#This Row],[Median]]","v":0},{"$f":"(((AAMC_Raw_Data_for_FY22[[#This Row],[75th]]-AAMC_Raw_Data_for_FY22[[#This Row],[Median]])/25)*15) + AAMC_Raw_Data_for_FY22[[#This Row],[Median]]","v":0},{"$f":"(((AAMC_Raw_Data_for_FY22[[#This Row],[75th]]-AAMC_Raw_Data_for_FY22[[#This Row],[Median]])/25)*20) + AAMC_Raw_Data_for_FY22[[#This Row],[Median]]","v":0},null,{"$f":"(((AAMC_Raw_Data_for_FY22[[#This Row],[75th]]-AAMC_Raw_Data_for_FY22[[#This Row],[Median]])/25)*30) + AAMC_Raw_Data_for_FY22[[#This Row],[Median]]","v":0},{"$f":"(((AAMC_Raw_Data_for_FY22[[#This Row],[75th]]-AAMC_Raw_Data_for_FY22[[#This Row],[Median]])/25)*35) + AAMC_Raw_Data_for_FY22[[#This Row],[Median]]","v":0},{"$f":"(((AAMC_Raw_Data_for_FY22[[#This Row],[75th]]-AAMC_Raw_Data_for_FY22[[#This Row],[Median]])/25)*40) + AAMC_Raw_Data_for_FY22[[#This Row],[Median]]","v":0}]
[{"$f":"AAMC_Raw_Data_for_FY22[[#This Row],[Source]]&AAMC_Raw_Data_for_FY22[[#This Row],[Type]]&AAMC_Raw_Data_for_FY22[[#This Row],[School Subset]]&AAMC_Raw_Data_for_FY22[[#This Row],[Rank]]&AAMC_Raw_Data_for_FY22[[#This Row],[Degree]]&AAMC_Raw_Data_for_FY22[[#This Row],[Department / Specialty]]&\"L\"","v":"AAMCAcademicPublicAssistantPhDOrthopedic Surgery: TraumaL"},"Orthopedic Surgery: Trauma",4,"AAMC","Academic","Public","Assistant","PhD","2021-2022",null,{"$f":"(((AAMC_Raw_Data_for_FY22[[#This Row],[Median]]-AAMC_Raw_Data_for_FY22[[#This Row],[25th]])/25)*5) + AAMC_Raw_Data_for_FY22[[#This Row],[25th]]","v":0},{"$f":"(((AAMC_Raw_Data_for_FY22[[#This Row],[Median]]-AAMC_Raw_Data_for_FY22[[#This Row],[25th]])/25)*10) + AAMC_Raw_Data_for_FY22[[#This Row],[25th]]","v":0},{"$f":"(((AAMC_Raw_Data_for_FY22[[#This Row],[Median]]-AAMC_Raw_Data_for_FY22[[#This Row],[25th]])/25)*15) + AAMC_Raw_Data_for_FY22[[#This Row],[25th]]","v":0},{"$f":"(((AAMC_Raw_Data_for_FY22[[#This Row],[Median]]-AAMC_Raw_Data_for_FY22[[#This Row],[25th]])/25)*20) + AAMC_Raw_Data_for_FY22[[#This Row],[25th]]","v":0},null,{"$f":"(((AAMC_Raw_Data_for_FY22[[#This Row],[75th]]-AAMC_Raw_Data_for_FY22[[#This Row],[Median]])/25)*5) + AAMC_Raw_Data_for_FY22[[#This Row],[Median]]","v":0},{"$f":"(((AAMC_Raw_Data_for_FY22[[#This Row],[75th]]-AAMC_Raw_Data_for_FY22[[#This Row],[Median]])/25)*10) + AAMC_Raw_Data_for_FY22[[#This Row],[Median]]","v":0},{"$f":"(((AAMC_Raw_Data_for_FY22[[#This Row],[75th]]-AAMC_Raw_Data_for_FY22[[#This Row],[Median]])/25)*15) + AAMC_Raw_Data_for_FY22[[#This Row],[Median]]","v":0},{"$f":"(((AAMC_Raw_Data_for_FY22[[#This Row],[75th]]-AAMC_Raw_Data_for_FY22[[#This Row],[Median]])/25)*20) + AAMC_Raw_Data_for_FY22[[#This Row],[Median]]","v":0},null,{"$f":"(((AAMC_Raw_Data_for_FY22[[#This Row],[75th]]-AAMC_Raw_Data_for_FY22[[#This Row],[Median]])/25)*30) + AAMC_Raw_Data_for_FY22[[#This Row],[Median]]","v":0},{"$f":"(((AAMC_Raw_Data_for_FY22[[#This Row],[75th]]-AAMC_Raw_Data_for_FY22[[#This Row],[Median]])/25)*35) + AAMC_Raw_Data_for_FY22[[#This Row],[Median]]","v":0},{"$f":"(((AAMC_Raw_Data_for_FY22[[#This Row],[75th]]-AAMC_Raw_Data_for_FY22[[#This Row],[Median]])/25)*40) + AAMC_Raw_Data_for_FY22[[#This Row],[Median]]","v":0}]
[{"$f":"AAMC_Raw_Data_for_FY22[[#This Row],[Source]]&AAMC_Raw_Data_for_FY22[[#This Row],[Type]]&AAMC_Raw_Data_for_FY22[[#This Row],[School Subset]]&AAMC_Raw_Data_for_FY22[[#This Row],[Rank]]&AAMC_Raw_Data_for_FY22[[#This Row],[Degree]]&AAMC_Raw_Data_for_FY22[[#This Row],[Department / Specialty]]&\"L\"","v":"AAMCAcademicPublicInstructorPhDOrthopedic Surgery: OtherL"},"Orthopedic Surgery: Other",5,"AAMC","Academic","Public","Instructor","PhD","2021-2022",null,{"$f":"(((AAMC_Raw_Data_for_FY22[[#This Row],[Median]]-AAMC_Raw_Data_for_FY22[[#This Row],[25th]])/25)*5) + AAMC_Raw_Data_for_FY22[[#This Row],[25th]]","v":0},{"$f":"(((AAMC_Raw_Data_for_FY22[[#This Row],[Median]]-AAMC_Raw_Data_for_FY22[[#This Row],[25th]])/25)*10) + AAMC_Raw_Data_for_FY22[[#This Row],[25th]]","v":0},{"$f":"(((AAMC_Raw_Data_for_FY22[[#This Row],[Median]]-AAMC_Raw_Data_for_FY22[[#This Row],[25th]])/25)*15) + AAMC_Raw_Data_for_FY22[[#This Row],[25th]]","v":0},{"$f":"(((AAMC_Raw_Data_for_FY22[[#This Row],[Median]]-AAMC_Raw_Data_for_FY22[[#This Row],[25th]])/25)*20) + AAMC_Raw_Data_for_FY22[[#This Row],[25th]]","v":0},null,{"$f":"(((AAMC_Raw_Data_for_FY22[[#This Row],[75th]]-AAMC_Raw_Data_for_FY22[[#This Row],[Median]])/25)*5) + AAMC_Raw_Data_for_FY22[[#This Row],[Median]]","v":0},{"$f":"(((AAMC_Raw_Data_for_FY22[[#This Row],[75th]]-AAMC_Raw_Data_for_FY22[[#This Row],[Median]])/25)*10) + AAMC_Raw_Data_for_FY22[[#This Row],[Median]]","v":0},{"$f":"(((AAMC_Raw_Data_for_FY22[[#This Row],[75th]]-AAMC_Raw_Data_for_FY22[[#This Row],[Median]])/25)*15) + AAMC_Raw_Data_for_FY22[[#This Row],[Median]]","v":0},{"$f":"(((AAMC_Raw_Data_for_FY22[[#This Row],[75th]]-AAMC_Raw_Data_for_FY22[[#This Row],[Median]])/25)*20) + AAMC_Raw_Data_for_FY22[[#This Row],[Median]]","v":0},null,{"$f":"(((AAMC_Raw_Data_for_FY22[[#This Row],[75th]]-AAMC_Raw_Data_for_FY22[[#This Row],[Median]])/25)*30) + AAMC_Raw_Data_for_FY22[[#This Row],[Median]]","v":0},{"$f":"(((AAMC_Raw_Data_for_FY22[[#This Row],[75th]]-AAMC_Raw_Data_for_FY22[[#This Row],[Median]])/25)*35) + AAMC_Raw_Data_for_FY22[[#This Row],[Median]]","v":0},{"$f":"(((AAMC_Raw_Data_for_FY22[[#This Row],[75th]]-AAMC_Raw_Data_for_FY22[[#This Row],[Median]])/25)*40) + AAMC_Raw_Data_for_FY22[[#This Row],[Median]]","v":0}]
[{"$f":"AAMC_Raw_Data_for_FY22[[#This Row],[Source]]&AAMC_Raw_Data_for_FY22[[#This Row],[Type]]&AAMC_Raw_Data_for_FY22[[#This Row],[School Subset]]&AAMC_Raw_Data_for_FY22[[#This Row],[Rank]]&AAMC_Raw_Data_for_FY22[[#This Row],[Degree]]&AAMC_Raw_Data_for_FY22[[#This Row],[Department / Specialty]]&\"L\"","v":"AAMCAcademicPublicAssistantPhDOrthopedic Surgery: OtherL"},"Orthopedic Surgery: Other",4,"AAMC","Academic","Public","Assistant","PhD","2021-2022",106340,{"$f":"(((AAMC_Raw_Data_for_FY22[[#This Row],[Median]]-AAMC_Raw_Data_for_FY22[[#This Row],[25th]])/25)*5) + AAMC_Raw_Data_for_FY22[[#This Row],[25th]]","v":113147.8},{"$f":"(((AAMC_Raw_Data_for_FY22[[#This Row],[Median]]-AAMC_Raw_Data_for_FY22[[#This Row],[25th]])/25)*10) + AAMC_Raw_Data_for_FY22[[#This Row],[25th]]","v":119955.6},{"$f":"(((AAMC_Raw_Data_for_FY22[[#This Row],[Median]]-AAMC_Raw_Data_for_FY22[[#This Row],[25th]])/25)*15) + AAMC_Raw_Data_for_FY22[[#This Row],[25th]]","v":126763.4},{"$f":"(((AAMC_Raw_Data_for_FY22[[#This Row],[Median]]-AAMC_Raw_Data_for_FY22[[#This Row],[25th]])/25)*20) + AAMC_Raw_Data_for_FY22[[#This Row],[25th]]","v":133571.20000000001},140379,{"$f":"(((AAMC_Raw_Data_for_FY22[[#This Row],[75th]]-AAMC_Raw_Data_for_FY22[[#This Row],[Median]])/25)*5) + AAMC_Raw_Data_for_FY22[[#This Row],[Median]]","v":147916.20000000001},{"$f":"(((AAMC_Raw_Data_for_FY22[[#This Row],[75th]]-AAMC_Raw_Data_for_FY22[[#This Row],[Median]])/25)*10) + AAMC_Raw_Data_for_FY22[[#This Row],[Median]]","v":155453.4},{"$f":"(((AAMC_Raw_Data_for_FY22[[#This Row],[75th]]-AAMC_Raw_Data_for_FY22[[#This Row],[Median]])/25)*15) + AAMC_Raw_Data_for_FY22[[#This Row],[Median]]","v":162990.6},{"$f":"(((AAMC_Raw_Data_for_FY22[[#This Row],[75th]]-AAMC_Raw_Data_for_FY22[[#This Row],[Median]])/25)*20) + AAMC_Raw_Data_for_FY22[[#This Row],[Median]]","v":170527.8},178065,{"$f":"(((AAMC_Raw_Data_for_FY22[[#This Row],[75th]]-AAMC_Raw_Data_for_FY22[[#This Row],[Median]])/25)*30) + AAMC_Raw_Data_for_FY22[[#This Row],[Median]]","v":185602.2},{"$f":"(((AAMC_Raw_Data_for_FY22[[#This Row],[75th]]-AAMC_Raw_Data_for_FY22[[#This Row],[Median]])/25)*35) + AAMC_Raw_Data_for_FY22[[#This Row],[Median]]","v":193139.4},{"$f":"(((AAMC_Raw_Data_for_FY22[[#This Row],[75th]]-AAMC_Raw_Data_for_FY22[[#This Row],[Median]])/25)*40) + AAMC_Raw_Data_for_FY22[[#This Row],[Median]]","v":200676.6}]
[{"$f":"AAMC_Raw_Data_for_FY22[[#This Row],[Source]]&AAMC_Raw_Data_for_FY22[[#This Row],[Type]]&AAMC_Raw_Data_for_FY22[[#This Row],[School Subset]]&AAMC_Raw_Data_for_FY22[[#This Row],[Rank]]&AAMC_Raw_Data_for_FY22[[#This Row],[Degree]]&AAMC_Raw_Data_for_FY22[[#This Row],[Department / Specialty]]&\"L\"","v":"AAMCAcademicPublicAssociatePhDOrthopedic Surgery: OtherL"},"Orthopedic Surgery: Other",3,"AAMC","Academic","Public","Associate","PhD","2021-2022",148775,{"$f":"(((AAMC_Raw_Data_for_FY22[[#This Row],[Median]]-AAMC_Raw_Data_for_FY22[[#This Row],[25th]])/25)*5) + AAMC_Raw_Data_for_FY22[[#This Row],[25th]]","v":151534},{"$f":"(((AAMC_Raw_Data_for_FY22[[#This Row],[Median]]-AAMC_Raw_Data_for_FY22[[#This Row],[25th]])/25)*10) + AAMC_Raw_Data_for_FY22[[#This Row],[25th]]","v":154293},{"$f":"(((AAMC_Raw_Data_for_FY22[[#This Row],[Median]]-AAMC_Raw_Data_for_FY22[[#This Row],[25th]])/25)*15) + AAMC_Raw_Data_for_FY22[[#This Row],[25th]]","v":157052},{"$f":"(((AAMC_Raw_Data_for_FY22[[#This Row],[Median]]-AAMC_Raw_Data_for_FY22[[#This Row],[25th]])/25)*20) + AAMC_Raw_Data_for_FY22[[#This Row],[25th]]","v":159811},162570,{"$f":"(((AAMC_Raw_Data_for_FY22[[#This Row],[75th]]-AAMC_Raw_Data_for_FY22[[#This Row],[Median]])/25)*5) + AAMC_Raw_Data_for_FY22[[#This Row],[Median]]","v":178832},{"$f":"(((AAMC_Raw_Data_for_FY22[[#This Row],[75th]]-AAMC_Raw_Data_for_FY22[[#This Row],[Median]])/25)*10) + AAMC_Raw_Data_for_FY22[[#This Row],[Median]]","v":195094},{"$f":"(((AAMC_Raw_Data_for_FY22[[#This Row],[75th]]-AAMC_Raw_Data_for_FY22[[#This Row],[Median]])/25)*15) + AAMC_Raw_Data_for_FY22[[#This Row],[Median]]","v":211356},{"$f":"(((AAMC_Raw_Data_for_FY22[[#This Row],[75th]]-AAMC_Raw_Data_for_FY22[[#This Row],[Median]])/25)*20) + AAMC_Raw_Data_for_FY22[[#This Row],[Median]]","v":227618},243880,{"$f":"(((AAMC_Raw_Data_for_FY22[[#This Row],[75th]]-AAMC_Raw_Data_for_FY22[[#This Row],[Median]])/25)*30) + AAMC_Raw_Data_for_FY22[[#This Row],[Median]]","v":260142},{"$f":"(((AAMC_Raw_Data_for_FY22[[#This Row],[75th]]-AAMC_Raw_Data_for_FY22[[#This Row],[Median]])/25)*35) + AAMC_Raw_Data_for_FY22[[#This Row],[Median]]","v":276404},{"$f":"(((AAMC_Raw_Data_for_FY22[[#This Row],[75th]]-AAMC_Raw_Data_for_FY22[[#This Row],[Median]])/25)*40) + AAMC_Raw_Data_for_FY22[[#This Row],[Median]]","v":292666}]
[{"$f":"AAMC_Raw_Data_for_FY22[[#This Row],[Source]]&AAMC_Raw_Data_for_FY22[[#This Row],[Type]]&AAMC_Raw_Data_for_FY22[[#This Row],[School Subset]]&AAMC_Raw_Data_for_FY22[[#This Row],[Rank]]&AAMC_Raw_Data_for_FY22[[#This Row],[Degree]]&AAMC_Raw_Data_for_FY22[[#This Row],[Department / Specialty]]&\"L\"","v":"AAMCAcademicPublicProfessorPhDOrthopedic Surgery: OtherL"},"Orthopedic Surgery: Other",2,"AAMC","Academic","Public","Professor","PhD","2021-2022",190286,{"$f":"(((AAMC_Raw_Data_for_FY22[[#This Row],[Median]]-AAMC_Raw_Data_for_FY22[[#This Row],[25th]])/25)*5) + AAMC_Raw_Data_for_FY22[[#This Row],[25th]]","v":197404},{"$f":"(((AAMC_Raw_Data_for_FY22[[#This Row],[Median]]-AAMC_Raw_Data_for_FY22[[#This Row],[25th]])/25)*10) + AAMC_Raw_Data_for_FY22[[#This Row],[25th]]","v":204522},{"$f":"(((AAMC_Raw_Data_for_FY22[[#This Row],[Median]]-AAMC_Raw_Data_for_FY22[[#This Row],[25th]])/25)*15) + AAMC_Raw_Data_for_FY22[[#This Row],[25th]]","v":211640},{"$f":"(((AAMC_Raw_Data_for_FY22[[#This Row],[Median]]-AAMC_Raw_Data_for_FY22[[#This Row],[25th]])/25)*20) + AAMC_Raw_Data_for_FY22[[#This Row],[25th]]","v":218758},225876,{"$f":"(((AAMC_Raw_Data_for_FY22[[#This Row],[75th]]-AAMC_Raw_Data_for_FY22[[#This Row],[Median]])/25)*5) + AAMC_Raw_Data_for_FY22[[#This Row],[Median]]","v":227060.8},{"$f":"(((AAMC_Raw_Data_for_FY22[[#This Row],[75th]]-AAMC_Raw_Data_for_FY22[[#This Row],[Median]])/25)*10) + AAMC_Raw_Data_for_FY22[[#This Row],[Median]]","v":228245.6},{"$f":"(((AAMC_Raw_Data_for_FY22[[#This Row],[75th]]-AAMC_Raw_Data_for_FY22[[#This Row],[Median]])/25)*15) + AAMC_Raw_Data_for_FY22[[#This Row],[Median]]","v":229430.39999999999},{"$f":"(((AAMC_Raw_Data_for_FY22[[#This Row],[75th]]-AAMC_Raw_Data_for_FY22[[#This Row],[Median]])/25)*20) + AAMC_Raw_Data_for_FY22[[#This Row],[Median]]","v":230615.2},231800,{"$f":"(((AAMC_Raw_Data_for_FY22[[#This Row],[75th]]-AAMC_Raw_Data_for_FY22[[#This Row],[Median]])/25)*30) + AAMC_Raw_Data_for_FY22[[#This Row],[Median]]","v":232984.8},{"$f":"(((AAMC_Raw_Data_for_FY22[[#This Row],[75th]]-AAMC_Raw_Data_for_FY22[[#This Row],[Median]])/25)*35) + AAMC_Raw_Data_for_FY22[[#This Row],[Median]]","v":234169.60000000001},{"$f":"(((AAMC_Raw_Data_for_FY22[[#This Row],[75th]]-AAMC_Raw_Data_for_FY22[[#This Row],[Median]])/25)*40) + AAMC_Raw_Data_for_FY22[[#This Row],[Median]]","v":235354.4}]
[{"$f":"AAMC_Raw_Data_for_FY22[[#This Row],[Source]]&AAMC_Raw_Data_for_FY22[[#This Row],[Type]]&AAMC_Raw_Data_for_FY22[[#This Row],[School Subset]]&AAMC_Raw_Data_for_FY22[[#This Row],[Rank]]&AAMC_Raw_Data_for_FY22[[#This Row],[Degree]]&AAMC_Raw_Data_for_FY22[[#This Row],[Department / Specialty]]&\"L\"","v":"AAMCAcademicPublicAssistantPhDPediatric SurgeryL"},"Pediatric Surgery",4,"AAMC","Academic","Public","Assistant","PhD","2021-2022",null,{"$f":"(((AAMC_Raw_Data_for_FY22[[#This Row],[Median]]-AAMC_Raw_Data_for_FY22[[#This Row],[25th]])/25)*5) + AAMC_Raw_Data_for_FY22[[#This Row],[25th]]","v":0},{"$f":"(((AAMC_Raw_Data_for_FY22[[#This Row],[Median]]-AAMC_Raw_Data_for_FY22[[#This Row],[25th]])/25)*10) + AAMC_Raw_Data_for_FY22[[#This Row],[25th]]","v":0},{"$f":"(((AAMC_Raw_Data_for_FY22[[#This Row],[Median]]-AAMC_Raw_Data_for_FY22[[#This Row],[25th]])/25)*15) + AAMC_Raw_Data_for_FY22[[#This Row],[25th]]","v":0},{"$f":"(((AAMC_Raw_Data_for_FY22[[#This Row],[Median]]-AAMC_Raw_Data_for_FY22[[#This Row],[25th]])/25)*20) + AAMC_Raw_Data_for_FY22[[#This Row],[25th]]","v":0},null,{"$f":"(((AAMC_Raw_Data_for_FY22[[#This Row],[75th]]-AAMC_Raw_Data_for_FY22[[#This Row],[Median]])/25)*5) + AAMC_Raw_Data_for_FY22[[#This Row],[Median]]","v":0},{"$f":"(((AAMC_Raw_Data_for_FY22[[#This Row],[75th]]-AAMC_Raw_Data_for_FY22[[#This Row],[Median]])/25)*10) + AAMC_Raw_Data_for_FY22[[#This Row],[Median]]","v":0},{"$f":"(((AAMC_Raw_Data_for_FY22[[#This Row],[75th]]-AAMC_Raw_Data_for_FY22[[#This Row],[Median]])/25)*15) + AAMC_Raw_Data_for_FY22[[#This Row],[Median]]","v":0},{"$f":"(((AAMC_Raw_Data_for_FY22[[#This Row],[75th]]-AAMC_Raw_Data_for_FY22[[#This Row],[Median]])/25)*20) + AAMC_Raw_Data_for_FY22[[#This Row],[Median]]","v":0},null,{"$f":"(((AAMC_Raw_Data_for_FY22[[#This Row],[75th]]-AAMC_Raw_Data_for_FY22[[#This Row],[Median]])/25)*30) + AAMC_Raw_Data_for_FY22[[#This Row],[Median]]","v":0},{"$f":"(((AAMC_Raw_Data_for_FY22[[#This Row],[75th]]-AAMC_Raw_Data_for_FY22[[#This Row],[Median]])/25)*35) + AAMC_Raw_Data_for_FY22[[#This Row],[Median]]","v":0},{"$f":"(((AAMC_Raw_Data_for_FY22[[#This Row],[75th]]-AAMC_Raw_Data_for_FY22[[#This Row],[Median]])/25)*40) + AAMC_Raw_Data_for_FY22[[#This Row],[Median]]","v":0}]
[{"$f":"AAMC_Raw_Data_for_FY22[[#This Row],[Source]]&AAMC_Raw_Data_for_FY22[[#This Row],[Type]]&AAMC_Raw_Data_for_FY22[[#This Row],[School Subset]]&AAMC_Raw_Data_for_FY22[[#This Row],[Rank]]&AAMC_Raw_Data_for_FY22[[#This Row],[Degree]]&AAMC_Raw_Data_for_FY22[[#This Row],[Department / Specialty]]&\"L\"","v":"AAMCAcademicPublicProfessorPhDPediatric SurgeryL"},"Pediatric Surgery",2,"AAMC","Academic","Public","Professor","PhD","2021-2022",null,{"$f":"(((AAMC_Raw_Data_for_FY22[[#This Row],[Median]]-AAMC_Raw_Data_for_FY22[[#This Row],[25th]])/25)*5) + AAMC_Raw_Data_for_FY22[[#This Row],[25th]]","v":0},{"$f":"(((AAMC_Raw_Data_for_FY22[[#This Row],[Median]]-AAMC_Raw_Data_for_FY22[[#This Row],[25th]])/25)*10) + AAMC_Raw_Data_for_FY22[[#This Row],[25th]]","v":0},{"$f":"(((AAMC_Raw_Data_for_FY22[[#This Row],[Median]]-AAMC_Raw_Data_for_FY22[[#This Row],[25th]])/25)*15) + AAMC_Raw_Data_for_FY22[[#This Row],[25th]]","v":0},{"$f":"(((AAMC_Raw_Data_for_FY22[[#This Row],[Median]]-AAMC_Raw_Data_for_FY22[[#This Row],[25th]])/25)*20) + AAMC_Raw_Data_for_FY22[[#This Row],[25th]]","v":0},null,{"$f":"(((AAMC_Raw_Data_for_FY22[[#This Row],[75th]]-AAMC_Raw_Data_for_FY22[[#This Row],[Median]])/25)*5) + AAMC_Raw_Data_for_FY22[[#This Row],[Median]]","v":0},{"$f":"(((AAMC_Raw_Data_for_FY22[[#This Row],[75th]]-AAMC_Raw_Data_for_FY22[[#This Row],[Median]])/25)*10) + AAMC_Raw_Data_for_FY22[[#This Row],[Median]]","v":0},{"$f":"(((AAMC_Raw_Data_for_FY22[[#This Row],[75th]]-AAMC_Raw_Data_for_FY22[[#This Row],[Median]])/25)*15) + AAMC_Raw_Data_for_FY22[[#This Row],[Median]]","v":0},{"$f":"(((AAMC_Raw_Data_for_FY22[[#This Row],[75th]]-AAMC_Raw_Data_for_FY22[[#This Row],[Median]])/25)*20) + AAMC_Raw_Data_for_FY22[[#This Row],[Median]]","v":0},null,{"$f":"(((AAMC_Raw_Data_for_FY22[[#This Row],[75th]]-AAMC_Raw_Data_for_FY22[[#This Row],[Median]])/25)*30) + AAMC_Raw_Data_for_FY22[[#This Row],[Median]]","v":0},{"$f":"(((AAMC_Raw_Data_for_FY22[[#This Row],[75th]]-AAMC_Raw_Data_for_FY22[[#This Row],[Median]])/25)*35) + AAMC_Raw_Data_for_FY22[[#This Row],[Median]]","v":0},{"$f":"(((AAMC_Raw_Data_for_FY22[[#This Row],[75th]]-AAMC_Raw_Data_for_FY22[[#This Row],[Median]])/25)*40) + AAMC_Raw_Data_for_FY22[[#This Row],[Median]]","v":0}]
[{"$f":"AAMC_Raw_Data_for_FY22[[#This Row],[Source]]&AAMC_Raw_Data_for_FY22[[#This Row],[Type]]&AAMC_Raw_Data_for_FY22[[#This Row],[School Subset]]&AAMC_Raw_Data_for_FY22[[#This Row],[Rank]]&AAMC_Raw_Data_for_FY22[[#This Row],[Degree]]&AAMC_Raw_Data_for_FY22[[#This Row],[Department / Specialty]]&\"L\"","v":"AAMCAcademicPublicInstructorPhDPlastic SurgeryL"},"Plastic Surgery",5,"AAMC","Academic","Public","Instructor","PhD","2021-2022",null,{"$f":"(((AAMC_Raw_Data_for_FY22[[#This Row],[Median]]-AAMC_Raw_Data_for_FY22[[#This Row],[25th]])/25)*5) + AAMC_Raw_Data_for_FY22[[#This Row],[25th]]","v":0},{"$f":"(((AAMC_Raw_Data_for_FY22[[#This Row],[Median]]-AAMC_Raw_Data_for_FY22[[#This Row],[25th]])/25)*10) + AAMC_Raw_Data_for_FY22[[#This Row],[25th]]","v":0},{"$f":"(((AAMC_Raw_Data_for_FY22[[#This Row],[Median]]-AAMC_Raw_Data_for_FY22[[#This Row],[25th]])/25)*15) + AAMC_Raw_Data_for_FY22[[#This Row],[25th]]","v":0},{"$f":"(((AAMC_Raw_Data_for_FY22[[#This Row],[Median]]-AAMC_Raw_Data_for_FY22[[#This Row],[25th]])/25)*20) + AAMC_Raw_Data_for_FY22[[#This Row],[25th]]","v":0},null,{"$f":"(((AAMC_Raw_Data_for_FY22[[#This Row],[75th]]-AAMC_Raw_Data_for_FY22[[#This Row],[Median]])/25)*5) + AAMC_Raw_Data_for_FY22[[#This Row],[Median]]","v":0},{"$f":"(((AAMC_Raw_Data_for_FY22[[#This Row],[75th]]-AAMC_Raw_Data_for_FY22[[#This Row],[Median]])/25)*10) + AAMC_Raw_Data_for_FY22[[#This Row],[Median]]","v":0},{"$f":"(((AAMC_Raw_Data_for_FY22[[#This Row],[75th]]-AAMC_Raw_Data_for_FY22[[#This Row],[Median]])/25)*15) + AAMC_Raw_Data_for_FY22[[#This Row],[Median]]","v":0},{"$f":"(((AAMC_Raw_Data_for_FY22[[#This Row],[75th]]-AAMC_Raw_Data_for_FY22[[#This Row],[Median]])/25)*20) + AAMC_Raw_Data_for_FY22[[#This Row],[Median]]","v":0},null,{"$f":"(((AAMC_Raw_Data_for_FY22[[#This Row],[75th]]-AAMC_Raw_Data_for_FY22[[#This Row],[Median]])/25)*30) + AAMC_Raw_Data_for_FY22[[#This Row],[Median]]","v":0},{"$f":"(((AAMC_Raw_Data_for_FY22[[#This Row],[75th]]-AAMC_Raw_Data_for_FY22[[#This Row],[Median]])/25)*35) + AAMC_Raw_Data_for_FY22[[#This Row],[Median]]","v":0},{"$f":"(((AAMC_Raw_Data_for_FY22[[#This Row],[75th]]-AAMC_Raw_Data_for_FY22[[#This Row],[Median]])/25)*40) + AAMC_Raw_Data_for_FY22[[#This Row],[Median]]","v":0}]
[{"$f":"AAMC_Raw_Data_for_FY22[[#This Row],[Source]]&AAMC_Raw_Data_for_FY22[[#This Row],[Type]]&AAMC_Raw_Data_for_FY22[[#This Row],[School Subset]]&AAMC_Raw_Data_for_FY22[[#This Row],[Rank]]&AAMC_Raw_Data_for_FY22[[#This Row],[Degree]]&AAMC_Raw_Data_for_FY22[[#This Row],[Department / Specialty]]&\"L\"","v":"AAMCAcademicPublicAssistantPhDPlastic SurgeryL"},"Plastic Surgery",4,"AAMC","Academic","Public","Assistant","PhD","2021-2022",null,{"$f":"(((AAMC_Raw_Data_for_FY22[[#This Row],[Median]]-AAMC_Raw_Data_for_FY22[[#This Row],[25th]])/25)*5) + AAMC_Raw_Data_for_FY22[[#This Row],[25th]]","v":0},{"$f":"(((AAMC_Raw_Data_for_FY22[[#This Row],[Median]]-AAMC_Raw_Data_for_FY22[[#This Row],[25th]])/25)*10) + AAMC_Raw_Data_for_FY22[[#This Row],[25th]]","v":0},{"$f":"(((AAMC_Raw_Data_for_FY22[[#This Row],[Median]]-AAMC_Raw_Data_for_FY22[[#This Row],[25th]])/25)*15) + AAMC_Raw_Data_for_FY22[[#This Row],[25th]]","v":0},{"$f":"(((AAMC_Raw_Data_for_FY22[[#This Row],[Median]]-AAMC_Raw_Data_for_FY22[[#This Row],[25th]])/25)*20) + AAMC_Raw_Data_for_FY22[[#This Row],[25th]]","v":0},null,{"$f":"(((AAMC_Raw_Data_for_FY22[[#This Row],[75th]]-AAMC_Raw_Data_for_FY22[[#This Row],[Median]])/25)*5) + AAMC_Raw_Data_for_FY22[[#This Row],[Median]]","v":0},{"$f":"(((AAMC_Raw_Data_for_FY22[[#This Row],[75th]]-AAMC_Raw_Data_for_FY22[[#This Row],[Median]])/25)*10) + AAMC_Raw_Data_for_FY22[[#This Row],[Median]]","v":0},{"$f":"(((AAMC_Raw_Data_for_FY22[[#This Row],[75th]]-AAMC_Raw_Data_for_FY22[[#This Row],[Median]])/25)*15) + AAMC_Raw_Data_for_FY22[[#This Row],[Median]]","v":0},{"$f":"(((AAMC_Raw_Data_for_FY22[[#This Row],[75th]]-AAMC_Raw_Data_for_FY22[[#This Row],[Median]])/25)*20) + AAMC_Raw_Data_for_FY22[[#This Row],[Median]]","v":0},null,{"$f":"(((AAMC_Raw_Data_for_FY22[[#This Row],[75th]]-AAMC_Raw_Data_for_FY22[[#This Row],[Median]])/25)*30) + AAMC_Raw_Data_for_FY22[[#This Row],[Median]]","v":0},{"$f":"(((AAMC_Raw_Data_for_FY22[[#This Row],[75th]]-AAMC_Raw_Data_for_FY22[[#This Row],[Median]])/25)*35) + AAMC_Raw_Data_for_FY22[[#This Row],[Median]]","v":0},{"$f":"(((AAMC_Raw_Data_for_FY22[[#This Row],[75th]]-AAMC_Raw_Data_for_FY22[[#This Row],[Median]])/25)*40) + AAMC_Raw_Data_for_FY22[[#This Row],[Median]]","v":0}]
[{"$f":"AAMC_Raw_Data_for_FY22[[#This Row],[Source]]&AAMC_Raw_Data_for_FY22[[#This Row],[Type]]&AAMC_Raw_Data_for_FY22[[#This Row],[School Subset]]&AAMC_Raw_Data_for_FY22[[#This Row],[Rank]]&AAMC_Raw_Data_for_FY22[[#This Row],[Degree]]&AAMC_Raw_Data_for_FY22[[#This Row],[Department / Specialty]]&\"L\"","v":"AAMCAcademicPublicAssociatePhDPlastic SurgeryL"},"Plastic Surgery",3,"AAMC","Academic","Public","Associate","PhD","2021-2022",null,{"$f":"(((AAMC_Raw_Data_for_FY22[[#This Row],[Median]]-AAMC_Raw_Data_for_FY22[[#This Row],[25th]])/25)*5) + AAMC_Raw_Data_for_FY22[[#This Row],[25th]]","v":0},{"$f":"(((AAMC_Raw_Data_for_FY22[[#This Row],[Median]]-AAMC_Raw_Data_for_FY22[[#This Row],[25th]])/25)*10) + AAMC_Raw_Data_for_FY22[[#This Row],[25th]]","v":0},{"$f":"(((AAMC_Raw_Data_for_FY22[[#This Row],[Median]]-AAMC_Raw_Data_for_FY22[[#This Row],[25th]])/25)*15) + AAMC_Raw_Data_for_FY22[[#This Row],[25th]]","v":0},{"$f":"(((AAMC_Raw_Data_for_FY22[[#This Row],[Median]]-AAMC_Raw_Data_for_FY22[[#This Row],[25th]])/25)*20) + AAMC_Raw_Data_for_FY22[[#This Row],[25th]]","v":0},null,{"$f":"(((AAMC_Raw_Data_for_FY22[[#This Row],[75th]]-AAMC_Raw_Data_for_FY22[[#This Row],[Median]])/25)*5) + AAMC_Raw_Data_for_FY22[[#This Row],[Median]]","v":0},{"$f":"(((AAMC_Raw_Data_for_FY22[[#This Row],[75th]]-AAMC_Raw_Data_for_FY22[[#This Row],[Median]])/25)*10) + AAMC_Raw_Data_for_FY22[[#This Row],[Median]]","v":0},{"$f":"(((AAMC_Raw_Data_for_FY22[[#This Row],[75th]]-AAMC_Raw_Data_for_FY22[[#This Row],[Median]])/25)*15) + AAMC_Raw_Data_for_FY22[[#This Row],[Median]]","v":0},{"$f":"(((AAMC_Raw_Data_for_FY22[[#This Row],[75th]]-AAMC_Raw_Data_for_FY22[[#This Row],[Median]])/25)*20) + AAMC_Raw_Data_for_FY22[[#This Row],[Median]]","v":0},null,{"$f":"(((AAMC_Raw_Data_for_FY22[[#This Row],[75th]]-AAMC_Raw_Data_for_FY22[[#This Row],[Median]])/25)*30) + AAMC_Raw_Data_for_FY22[[#This Row],[Median]]","v":0},{"$f":"(((AAMC_Raw_Data_for_FY22[[#This Row],[75th]]-AAMC_Raw_Data_for_FY22[[#This Row],[Median]])/25)*35) + AAMC_Raw_Data_for_FY22[[#This Row],[Median]]","v":0},{"$f":"(((AAMC_Raw_Data_for_FY22[[#This Row],[75th]]-AAMC_Raw_Data_for_FY22[[#This Row],[Median]])/25)*40) + AAMC_Raw_Data_for_FY22[[#This Row],[Median]]","v":0}]
[{"$f":"AAMC_Raw_Data_for_FY22[[#This Row],[Source]]&AAMC_Raw_Data_for_FY22[[#This Row],[Type]]&AAMC_Raw_Data_for_FY22[[#This Row],[School Subset]]&AAMC_Raw_Data_for_FY22[[#This Row],[Rank]]&AAMC_Raw_Data_for_FY22[[#This Row],[Degree]]&AAMC_Raw_Data_for_FY22[[#This Row],[Department / Specialty]]&\"L\"","v":"AAMCAcademicPublicProfessorPhDPlastic SurgeryL"},"Plastic Surgery",2,"AAMC","Academic","Public","Professor","PhD","2021-2022",null,{"$f":"(((AAMC_Raw_Data_for_FY22[[#This Row],[Median]]-AAMC_Raw_Data_for_FY22[[#This Row],[25th]])/25)*5) + AAMC_Raw_Data_for_FY22[[#This Row],[25th]]","v":0},{"$f":"(((AAMC_Raw_Data_for_FY22[[#This Row],[Median]]-AAMC_Raw_Data_for_FY22[[#This Row],[25th]])/25)*10) + AAMC_Raw_Data_for_FY22[[#This Row],[25th]]","v":0},{"$f":"(((AAMC_Raw_Data_for_FY22[[#This Row],[Median]]-AAMC_Raw_Data_for_FY22[[#This Row],[25th]])/25)*15) + AAMC_Raw_Data_for_FY22[[#This Row],[25th]]","v":0},{"$f":"(((AAMC_Raw_Data_for_FY22[[#This Row],[Median]]-AAMC_Raw_Data_for_FY22[[#This Row],[25th]])/25)*20) + AAMC_Raw_Data_for_FY22[[#This Row],[25th]]","v":0},null,{"$f":"(((AAMC_Raw_Data_for_FY22[[#This Row],[75th]]-AAMC_Raw_Data_for_FY22[[#This Row],[Median]])/25)*5) + AAMC_Raw_Data_for_FY22[[#This Row],[Median]]","v":0},{"$f":"(((AAMC_Raw_Data_for_FY22[[#This Row],[75th]]-AAMC_Raw_Data_for_FY22[[#This Row],[Median]])/25)*10) + AAMC_Raw_Data_for_FY22[[#This Row],[Median]]","v":0},{"$f":"(((AAMC_Raw_Data_for_FY22[[#This Row],[75th]]-AAMC_Raw_Data_for_FY22[[#This Row],[Median]])/25)*15) + AAMC_Raw_Data_for_FY22[[#This Row],[Median]]","v":0},{"$f":"(((AAMC_Raw_Data_for_FY22[[#This Row],[75th]]-AAMC_Raw_Data_for_FY22[[#This Row],[Median]])/25)*20) + AAMC_Raw_Data_for_FY22[[#This Row],[Median]]","v":0},null,{"$f":"(((AAMC_Raw_Data_for_FY22[[#This Row],[75th]]-AAMC_Raw_Data_for_FY22[[#This Row],[Median]])/25)*30) + AAMC_Raw_Data_for_FY22[[#This Row],[Median]]","v":0},{"$f":"(((AAMC_Raw_Data_for_FY22[[#This Row],[75th]]-AAMC_Raw_Data_for_FY22[[#This Row],[Median]])/25)*35) + AAMC_Raw_Data_for_FY22[[#This Row],[Median]]","v":0},{"$f":"(((AAMC_Raw_Data_for_FY22[[#This Row],[75th]]-AAMC_Raw_Data_for_FY22[[#This Row],[Median]])/25)*40) + AAMC_Raw_Data_for_FY22[[#This Row],[Median]]","v":0}]
[{"$f":"AAMC_Raw_Data_for_FY22[[#This Row],[Source]]&AAMC_Raw_Data_for_FY22[[#This Row],[Type]]&AAMC_Raw_Data_for_FY22[[#This Row],[School Subset]]&AAMC_Raw_Data_for_FY22[[#This Row],[Rank]]&AAMC_Raw_Data_for_FY22[[#This Row],[Degree]]&AAMC_Raw_Data_for_FY22[[#This Row],[Department / Specialty]]&\"L\"","v":"AAMCAcademicPublicInstructorPhDSurgical OncologyL"},"Surgical Oncology",5,"AAMC","Academic","Public","Instructor","PhD","2021-2022",null,{"$f":"(((AAMC_Raw_Data_for_FY22[[#This Row],[Median]]-AAMC_Raw_Data_for_FY22[[#This Row],[25th]])/25)*5) + AAMC_Raw_Data_for_FY22[[#This Row],[25th]]","v":0},{"$f":"(((AAMC_Raw_Data_for_FY22[[#This Row],[Median]]-AAMC_Raw_Data_for_FY22[[#This Row],[25th]])/25)*10) + AAMC_Raw_Data_for_FY22[[#This Row],[25th]]","v":0},{"$f":"(((AAMC_Raw_Data_for_FY22[[#This Row],[Median]]-AAMC_Raw_Data_for_FY22[[#This Row],[25th]])/25)*15) + AAMC_Raw_Data_for_FY22[[#This Row],[25th]]","v":0},{"$f":"(((AAMC_Raw_Data_for_FY22[[#This Row],[Median]]-AAMC_Raw_Data_for_FY22[[#This Row],[25th]])/25)*20) + AAMC_Raw_Data_for_FY22[[#This Row],[25th]]","v":0},null,{"$f":"(((AAMC_Raw_Data_for_FY22[[#This Row],[75th]]-AAMC_Raw_Data_for_FY22[[#This Row],[Median]])/25)*5) + AAMC_Raw_Data_for_FY22[[#This Row],[Median]]","v":0},{"$f":"(((AAMC_Raw_Data_for_FY22[[#This Row],[75th]]-AAMC_Raw_Data_for_FY22[[#This Row],[Median]])/25)*10) + AAMC_Raw_Data_for_FY22[[#This Row],[Median]]","v":0},{"$f":"(((AAMC_Raw_Data_for_FY22[[#This Row],[75th]]-AAMC_Raw_Data_for_FY22[[#This Row],[Median]])/25)*15) + AAMC_Raw_Data_for_FY22[[#This Row],[Median]]","v":0},{"$f":"(((AAMC_Raw_Data_for_FY22[[#This Row],[75th]]-AAMC_Raw_Data_for_FY22[[#This Row],[Median]])/25)*20) + AAMC_Raw_Data_for_FY22[[#This Row],[Median]]","v":0},null,{"$f":"(((AAMC_Raw_Data_for_FY22[[#This Row],[75th]]-AAMC_Raw_Data_for_FY22[[#This Row],[Median]])/25)*30) + AAMC_Raw_Data_for_FY22[[#This Row],[Median]]","v":0},{"$f":"(((AAMC_Raw_Data_for_FY22[[#This Row],[75th]]-AAMC_Raw_Data_for_FY22[[#This Row],[Median]])/25)*35) + AAMC_Raw_Data_for_FY22[[#This Row],[Median]]","v":0},{"$f":"(((AAMC_Raw_Data_for_FY22[[#This Row],[75th]]-AAMC_Raw_Data_for_FY22[[#This Row],[Median]])/25)*40) + AAMC_Raw_Data_for_FY22[[#This Row],[Median]]","v":0}]
[{"$f":"AAMC_Raw_Data_for_FY22[[#This Row],[Source]]&AAMC_Raw_Data_for_FY22[[#This Row],[Type]]&AAMC_Raw_Data_for_FY22[[#This Row],[School Subset]]&AAMC_Raw_Data_for_FY22[[#This Row],[Rank]]&AAMC_Raw_Data_for_FY22[[#This Row],[Degree]]&AAMC_Raw_Data_for_FY22[[#This Row],[Department / Specialty]]&\"L\"","v":"AAMCAcademicPublicAssistantPhDSurgical OncologyL"},"Surgical Oncology",4,"AAMC","Academic","Public","Assistant","PhD","2021-2022",72100,{"$f":"(((AAMC_Raw_Data_for_FY22[[#This Row],[Median]]-AAMC_Raw_Data_for_FY22[[#This Row],[25th]])/25)*5) + AAMC_Raw_Data_for_FY22[[#This Row],[25th]]","v":75824},{"$f":"(((AAMC_Raw_Data_for_FY22[[#This Row],[Median]]-AAMC_Raw_Data_for_FY22[[#This Row],[25th]])/25)*10) + AAMC_Raw_Data_for_FY22[[#This Row],[25th]]","v":79548},{"$f":"(((AAMC_Raw_Data_for_FY22[[#This Row],[Median]]-AAMC_Raw_Data_for_FY22[[#This Row],[25th]])/25)*15) + AAMC_Raw_Data_for_FY22[[#This Row],[25th]]","v":83272},{"$f":"(((AAMC_Raw_Data_for_FY22[[#This Row],[Median]]-AAMC_Raw_Data_for_FY22[[#This Row],[25th]])/25)*20) + AAMC_Raw_Data_for_FY22[[#This Row],[25th]]","v":86996},90720,{"$f":"(((AAMC_Raw_Data_for_FY22[[#This Row],[75th]]-AAMC_Raw_Data_for_FY22[[#This Row],[Median]])/25)*5) + AAMC_Raw_Data_for_FY22[[#This Row],[Median]]","v":92847.4},{"$f":"(((AAMC_Raw_Data_for_FY22[[#This Row],[75th]]-AAMC_Raw_Data_for_FY22[[#This Row],[Median]])/25)*10) + AAMC_Raw_Data_for_FY22[[#This Row],[Median]]","v":94974.8},{"$f":"(((AAMC_Raw_Data_for_FY22[[#This Row],[75th]]-AAMC_Raw_Data_for_FY22[[#This Row],[Median]])/25)*15) + AAMC_Raw_Data_for_FY22[[#This Row],[Median]]","v":97102.2},{"$f":"(((AAMC_Raw_Data_for_FY22[[#This Row],[75th]]-AAMC_Raw_Data_for_FY22[[#This Row],[Median]])/25)*20) + AAMC_Raw_Data_for_FY22[[#This Row],[Median]]","v":99229.6},101357,{"$f":"(((AAMC_Raw_Data_for_FY22[[#This Row],[75th]]-AAMC_Raw_Data_for_FY22[[#This Row],[Median]])/25)*30) + AAMC_Raw_Data_for_FY22[[#This Row],[Median]]","v":103484.4},{"$f":"(((AAMC_Raw_Data_for_FY22[[#This Row],[75th]]-AAMC_Raw_Data_for_FY22[[#This Row],[Median]])/25)*35) + AAMC_Raw_Data_for_FY22[[#This Row],[Median]]","v":105611.8},{"$f":"(((AAMC_Raw_Data_for_FY22[[#This Row],[75th]]-AAMC_Raw_Data_for_FY22[[#This Row],[Median]])/25)*40) + AAMC_Raw_Data_for_FY22[[#This Row],[Median]]","v":107739.2}]
[{"$f":"AAMC_Raw_Data_for_FY22[[#This Row],[Source]]&AAMC_Raw_Data_for_FY22[[#This Row],[Type]]&AAMC_Raw_Data_for_FY22[[#This Row],[School Subset]]&AAMC_Raw_Data_for_FY22[[#This Row],[Rank]]&AAMC_Raw_Data_for_FY22[[#This Row],[Degree]]&AAMC_Raw_Data_for_FY22[[#This Row],[Department / Specialty]]&\"L\"","v":"AAMCAcademicPublicAssociatePhDSurgical OncologyL"},"Surgical Oncology",3,"AAMC","Academic","Public","Associate","PhD","2021-2022",null,{"$f":"(((AAMC_Raw_Data_for_FY22[[#This Row],[Median]]-AAMC_Raw_Data_for_FY22[[#This Row],[25th]])/25)*5) + AAMC_Raw_Data_for_FY22[[#This Row],[25th]]","v":0},{"$f":"(((AAMC_Raw_Data_for_FY22[[#This Row],[Median]]-AAMC_Raw_Data_for_FY22[[#This Row],[25th]])/25)*10) + AAMC_Raw_Data_for_FY22[[#This Row],[25th]]","v":0},{"$f":"(((AAMC_Raw_Data_for_FY22[[#This Row],[Median]]-AAMC_Raw_Data_for_FY22[[#This Row],[25th]])/25)*15) + AAMC_Raw_Data_for_FY22[[#This Row],[25th]]","v":0},{"$f":"(((AAMC_Raw_Data_for_FY22[[#This Row],[Median]]-AAMC_Raw_Data_for_FY22[[#This Row],[25th]])/25)*20) + AAMC_Raw_Data_for_FY22[[#This Row],[25th]]","v":0},null,{"$f":"(((AAMC_Raw_Data_for_FY22[[#This Row],[75th]]-AAMC_Raw_Data_for_FY22[[#This Row],[Median]])/25)*5) + AAMC_Raw_Data_for_FY22[[#This Row],[Median]]","v":0},{"$f":"(((AAMC_Raw_Data_for_FY22[[#This Row],[75th]]-AAMC_Raw_Data_for_FY22[[#This Row],[Median]])/25)*10) + AAMC_Raw_Data_for_FY22[[#This Row],[Median]]","v":0},{"$f":"(((AAMC_Raw_Data_for_FY22[[#This Row],[75th]]-AAMC_Raw_Data_for_FY22[[#This Row],[Median]])/25)*15) + AAMC_Raw_Data_for_FY22[[#This Row],[Median]]","v":0},{"$f":"(((AAMC_Raw_Data_for_FY22[[#This Row],[75th]]-AAMC_Raw_Data_for_FY22[[#This Row],[Median]])/25)*20) + AAMC_Raw_Data_for_FY22[[#This Row],[Median]]","v":0},null,{"$f":"(((AAMC_Raw_Data_for_FY22[[#This Row],[75th]]-AAMC_Raw_Data_for_FY22[[#This Row],[Median]])/25)*30) + AAMC_Raw_Data_for_FY22[[#This Row],[Median]]","v":0},{"$f":"(((AAMC_Raw_Data_for_FY22[[#This Row],[75th]]-AAMC_Raw_Data_for_FY22[[#This Row],[Median]])/25)*35) + AAMC_Raw_Data_for_FY22[[#This Row],[Median]]","v":0},{"$f":"(((AAMC_Raw_Data_for_FY22[[#This Row],[75th]]-AAMC_Raw_Data_for_FY22[[#This Row],[Median]])/25)*40) + AAMC_Raw_Data_for_FY22[[#This Row],[Median]]","v":0}]
[{"$f":"AAMC_Raw_Data_for_FY22[[#This Row],[Source]]&AAMC_Raw_Data_for_FY22[[#This Row],[Type]]&AAMC_Raw_Data_for_FY22[[#This Row],[School Subset]]&AAMC_Raw_Data_for_FY22[[#This Row],[Rank]]&AAMC_Raw_Data_for_FY22[[#This Row],[Degree]]&AAMC_Raw_Data_for_FY22[[#This Row],[Department / Specialty]]&\"L\"","v":"AAMCAcademicPublicProfessorPhDSurgical OncologyL"},"Surgical Oncology",2,"AAMC","Academic","Public","Professor","PhD","2021-2022",209826,{"$f":"(((AAMC_Raw_Data_for_FY22[[#This Row],[Median]]-AAMC_Raw_Data_for_FY22[[#This Row],[25th]])/25)*5) + AAMC_Raw_Data_for_FY22[[#This Row],[25th]]","v":212361},{"$f":"(((AAMC_Raw_Data_for_FY22[[#This Row],[Median]]-AAMC_Raw_Data_for_FY22[[#This Row],[25th]])/25)*10) + AAMC_Raw_Data_for_FY22[[#This Row],[25th]]","v":214896},{"$f":"(((AAMC_Raw_Data_for_FY22[[#This Row],[Median]]-AAMC_Raw_Data_for_FY22[[#This Row],[25th]])/25)*15) + AAMC_Raw_Data_for_FY22[[#This Row],[25th]]","v":217431},{"$f":"(((AAMC_Raw_Data_for_FY22[[#This Row],[Median]]-AAMC_Raw_Data_for_FY22[[#This Row],[25th]])/25)*20) + AAMC_Raw_Data_for_FY22[[#This Row],[25th]]","v":219966},222501,{"$f":"(((AAMC_Raw_Data_for_FY22[[#This Row],[75th]]-AAMC_Raw_Data_for_FY22[[#This Row],[Median]])/25)*5) + AAMC_Raw_Data_for_FY22[[#This Row],[Median]]","v":226954.8},{"$f":"(((AAMC_Raw_Data_for_FY22[[#This Row],[75th]]-AAMC_Raw_Data_for_FY22[[#This Row],[Median]])/25)*10) + AAMC_Raw_Data_for_FY22[[#This Row],[Median]]","v":231408.6},{"$f":"(((AAMC_Raw_Data_for_FY22[[#This Row],[75th]]-AAMC_Raw_Data_for_FY22[[#This Row],[Median]])/25)*15) + AAMC_Raw_Data_for_FY22[[#This Row],[Median]]","v":235862.39999999999},{"$f":"(((AAMC_Raw_Data_for_FY22[[#This Row],[75th]]-AAMC_Raw_Data_for_FY22[[#This Row],[Median]])/25)*20) + AAMC_Raw_Data_for_FY22[[#This Row],[Median]]","v":240316.2},244770,{"$f":"(((AAMC_Raw_Data_for_FY22[[#This Row],[75th]]-AAMC_Raw_Data_for_FY22[[#This Row],[Median]])/25)*30) + AAMC_Raw_Data_for_FY22[[#This Row],[Median]]","v":249223.8},{"$f":"(((AAMC_Raw_Data_for_FY22[[#This Row],[75th]]-AAMC_Raw_Data_for_FY22[[#This Row],[Median]])/25)*35) + AAMC_Raw_Data_for_FY22[[#This Row],[Median]]","v":253677.6},{"$f":"(((AAMC_Raw_Data_for_FY22[[#This Row],[75th]]-AAMC_Raw_Data_for_FY22[[#This Row],[Median]])/25)*40) + AAMC_Raw_Data_for_FY22[[#This Row],[Median]]","v":258131.4}]
[{"$f":"AAMC_Raw_Data_for_FY22[[#This Row],[Source]]&AAMC_Raw_Data_for_FY22[[#This Row],[Type]]&AAMC_Raw_Data_for_FY22[[#This Row],[School Subset]]&AAMC_Raw_Data_for_FY22[[#This Row],[Rank]]&AAMC_Raw_Data_for_FY22[[#This Row],[Degree]]&AAMC_Raw_Data_for_FY22[[#This Row],[Department / Specialty]]&\"L\"","v":"AAMCAcademicPublicInstructorPhDThoracic & Cardiovascular SurgeryL"},"Thoracic & Cardiovascular Surgery",5,"AAMC","Academic","Public","Instructor","PhD","2021-2022",null,{"$f":"(((AAMC_Raw_Data_for_FY22[[#This Row],[Median]]-AAMC_Raw_Data_for_FY22[[#This Row],[25th]])/25)*5) + AAMC_Raw_Data_for_FY22[[#This Row],[25th]]","v":0},{"$f":"(((AAMC_Raw_Data_for_FY22[[#This Row],[Median]]-AAMC_Raw_Data_for_FY22[[#This Row],[25th]])/25)*10) + AAMC_Raw_Data_for_FY22[[#This Row],[25th]]","v":0},{"$f":"(((AAMC_Raw_Data_for_FY22[[#This Row],[Median]]-AAMC_Raw_Data_for_FY22[[#This Row],[25th]])/25)*15) + AAMC_Raw_Data_for_FY22[[#This Row],[25th]]","v":0},{"$f":"(((AAMC_Raw_Data_for_FY22[[#This Row],[Median]]-AAMC_Raw_Data_for_FY22[[#This Row],[25th]])/25)*20) + AAMC_Raw_Data_for_FY22[[#This Row],[25th]]","v":0},null,{"$f":"(((AAMC_Raw_Data_for_FY22[[#This Row],[75th]]-AAMC_Raw_Data_for_FY22[[#This Row],[Median]])/25)*5) + AAMC_Raw_Data_for_FY22[[#This Row],[Median]]","v":0},{"$f":"(((AAMC_Raw_Data_for_FY22[[#This Row],[75th]]-AAMC_Raw_Data_for_FY22[[#This Row],[Median]])/25)*10) + AAMC_Raw_Data_for_FY22[[#This Row],[Median]]","v":0},{"$f":"(((AAMC_Raw_Data_for_FY22[[#This Row],[75th]]-AAMC_Raw_Data_for_FY22[[#This Row],[Median]])/25)*15) + AAMC_Raw_Data_for_FY22[[#This Row],[Median]]","v":0},{"$f":"(((AAMC_Raw_Data_for_FY22[[#This Row],[75th]]-AAMC_Raw_Data_for_FY22[[#This Row],[Median]])/25)*20) + AAMC_Raw_Data_for_FY22[[#This Row],[Median]]","v":0},null,{"$f":"(((AAMC_Raw_Data_for_FY22[[#This Row],[75th]]-AAMC_Raw_Data_for_FY22[[#This Row],[Median]])/25)*30) + AAMC_Raw_Data_for_FY22[[#This Row],[Median]]","v":0},{"$f":"(((AAMC_Raw_Data_for_FY22[[#This Row],[75th]]-AAMC_Raw_Data_for_FY22[[#This Row],[Median]])/25)*35) + AAMC_Raw_Data_for_FY22[[#This Row],[Median]]","v":0},{"$f":"(((AAMC_Raw_Data_for_FY22[[#This Row],[75th]]-AAMC_Raw_Data_for_FY22[[#This Row],[Median]])/25)*40) + AAMC_Raw_Data_for_FY22[[#This Row],[Median]]","v":0}]
[{"$f":"AAMC_Raw_Data_for_FY22[[#This Row],[Source]]&AAMC_Raw_Data_for_FY22[[#This Row],[Type]]&AAMC_Raw_Data_for_FY22[[#This Row],[School Subset]]&AAMC_Raw_Data_for_FY22[[#This Row],[Rank]]&AAMC_Raw_Data_for_FY22[[#This Row],[Degree]]&AAMC_Raw_Data_for_FY22[[#This Row],[Department / Specialty]]&\"L\"","v":"AAMCAcademicPublicAssistantPhDThoracic & Cardiovascular SurgeryL"},"Thoracic & Cardiovascular Surgery",4,"AAMC","Academic","Public","Assistant","PhD","2021-2022",91148,{"$f":"(((AAMC_Raw_Data_for_FY22[[#This Row],[Median]]-AAMC_Raw_Data_for_FY22[[#This Row],[25th]])/25)*5) + AAMC_Raw_Data_for_FY22[[#This Row],[25th]]","v":92298.4},{"$f":"(((AAMC_Raw_Data_for_FY22[[#This Row],[Median]]-AAMC_Raw_Data_for_FY22[[#This Row],[25th]])/25)*10) + AAMC_Raw_Data_for_FY22[[#This Row],[25th]]","v":93448.8},{"$f":"(((AAMC_Raw_Data_for_FY22[[#This Row],[Median]]-AAMC_Raw_Data_for_FY22[[#This Row],[25th]])/25)*15) + AAMC_Raw_Data_for_FY22[[#This Row],[25th]]","v":94599.2},{"$f":"(((AAMC_Raw_Data_for_FY22[[#This Row],[Median]]-AAMC_Raw_Data_for_FY22[[#This Row],[25th]])/25)*20) + AAMC_Raw_Data_for_FY22[[#This Row],[25th]]","v":95749.6},96900,{"$f":"(((AAMC_Raw_Data_for_FY22[[#This Row],[75th]]-AAMC_Raw_Data_for_FY22[[#This Row],[Median]])/25)*5) + AAMC_Raw_Data_for_FY22[[#This Row],[Median]]","v":101520},{"$f":"(((AAMC_Raw_Data_for_FY22[[#This Row],[75th]]-AAMC_Raw_Data_for_FY22[[#This Row],[Median]])/25)*10) + AAMC_Raw_Data_for_FY22[[#This Row],[Median]]","v":106140},{"$f":"(((AAMC_Raw_Data_for_FY22[[#This Row],[75th]]-AAMC_Raw_Data_for_FY22[[#This Row],[Median]])/25)*15) + AAMC_Raw_Data_for_FY22[[#This Row],[Median]]","v":110760},{"$f":"(((AAMC_Raw_Data_for_FY22[[#This Row],[75th]]-AAMC_Raw_Data_for_FY22[[#This Row],[Median]])/25)*20) + AAMC_Raw_Data_for_FY22[[#This Row],[Median]]","v":115380},120000,{"$f":"(((AAMC_Raw_Data_for_FY22[[#This Row],[75th]]-AAMC_Raw_Data_for_FY22[[#This Row],[Median]])/25)*30) + AAMC_Raw_Data_for_FY22[[#This Row],[Median]]","v":124620},{"$f":"(((AAMC_Raw_Data_for_FY22[[#This Row],[75th]]-AAMC_Raw_Data_for_FY22[[#This Row],[Median]])/25)*35) + AAMC_Raw_Data_for_FY22[[#This Row],[Median]]","v":129240},{"$f":"(((AAMC_Raw_Data_for_FY22[[#This Row],[75th]]-AAMC_Raw_Data_for_FY22[[#This Row],[Median]])/25)*40) + AAMC_Raw_Data_for_FY22[[#This Row],[Median]]","v":133860}]
[{"$f":"AAMC_Raw_Data_for_FY22[[#This Row],[Source]]&AAMC_Raw_Data_for_FY22[[#This Row],[Type]]&AAMC_Raw_Data_for_FY22[[#This Row],[School Subset]]&AAMC_Raw_Data_for_FY22[[#This Row],[Rank]]&AAMC_Raw_Data_for_FY22[[#This Row],[Degree]]&AAMC_Raw_Data_for_FY22[[#This Row],[Department / Specialty]]&\"L\"","v":"AAMCAcademicPublicAssociatePhDThoracic & Cardiovascular SurgeryL"},"Thoracic & Cardiovascular Surgery",3,"AAMC","Academic","Public","Associate","PhD","2021-2022",125408,{"$f":"(((AAMC_Raw_Data_for_FY22[[#This Row],[Median]]-AAMC_Raw_Data_for_FY22[[#This Row],[25th]])/25)*5) + AAMC_Raw_Data_for_FY22[[#This Row],[25th]]","v":129099.8},{"$f":"(((AAMC_Raw_Data_for_FY22[[#This Row],[Median]]-AAMC_Raw_Data_for_FY22[[#This Row],[25th]])/25)*10) + AAMC_Raw_Data_for_FY22[[#This Row],[25th]]","v":132791.6},{"$f":"(((AAMC_Raw_Data_for_FY22[[#This Row],[Median]]-AAMC_Raw_Data_for_FY22[[#This Row],[25th]])/25)*15) + AAMC_Raw_Data_for_FY22[[#This Row],[25th]]","v":136483.4},{"$f":"(((AAMC_Raw_Data_for_FY22[[#This Row],[Median]]-AAMC_Raw_Data_for_FY22[[#This Row],[25th]])/25)*20) + AAMC_Raw_Data_for_FY22[[#This Row],[25th]]","v":140175.20000000001},143867,{"$f":"(((AAMC_Raw_Data_for_FY22[[#This Row],[75th]]-AAMC_Raw_Data_for_FY22[[#This Row],[Median]])/25)*5) + AAMC_Raw_Data_for_FY22[[#This Row],[Median]]","v":146343.6},{"$f":"(((AAMC_Raw_Data_for_FY22[[#This Row],[75th]]-AAMC_Raw_Data_for_FY22[[#This Row],[Median]])/25)*10) + AAMC_Raw_Data_for_FY22[[#This Row],[Median]]","v":148820.20000000001},{"$f":"(((AAMC_Raw_Data_for_FY22[[#This Row],[75th]]-AAMC_Raw_Data_for_FY22[[#This Row],[Median]])/25)*15) + AAMC_Raw_Data_for_FY22[[#This Row],[Median]]","v":151296.79999999999},{"$f":"(((AAMC_Raw_Data_for_FY22[[#This Row],[75th]]-AAMC_Raw_Data_for_FY22[[#This Row],[Median]])/25)*20) + AAMC_Raw_Data_for_FY22[[#This Row],[Median]]","v":153773.4},156250,{"$f":"(((AAMC_Raw_Data_for_FY22[[#This Row],[75th]]-AAMC_Raw_Data_for_FY22[[#This Row],[Median]])/25)*30) + AAMC_Raw_Data_for_FY22[[#This Row],[Median]]","v":158726.6},{"$f":"(((AAMC_Raw_Data_for_FY22[[#This Row],[75th]]-AAMC_Raw_Data_for_FY22[[#This Row],[Median]])/25)*35) + AAMC_Raw_Data_for_FY22[[#This Row],[Median]]","v":161203.20000000001},{"$f":"(((AAMC_Raw_Data_for_FY22[[#This Row],[75th]]-AAMC_Raw_Data_for_FY22[[#This Row],[Median]])/25)*40) + AAMC_Raw_Data_for_FY22[[#This Row],[Median]]","v":163679.79999999999}]
[{"$f":"AAMC_Raw_Data_for_FY22[[#This Row],[Source]]&AAMC_Raw_Data_for_FY22[[#This Row],[Type]]&AAMC_Raw_Data_for_FY22[[#This Row],[School Subset]]&AAMC_Raw_Data_for_FY22[[#This Row],[Rank]]&AAMC_Raw_Data_for_FY22[[#This Row],[Degree]]&AAMC_Raw_Data_for_FY22[[#This Row],[Department / Specialty]]&\"L\"","v":"AAMCAcademicPublicProfessorPhDThoracic & Cardiovascular SurgeryL"},"Thoracic & Cardiovascular Surgery",2,"AAMC","Academic","Public","Professor","PhD","2021-2022",162822,{"$f":"(((AAMC_Raw_Data_for_FY22[[#This Row],[Median]]-AAMC_Raw_Data_for_FY22[[#This Row],[25th]])/25)*5) + AAMC_Raw_Data_for_FY22[[#This Row],[25th]]","v":172257.6},{"$f":"(((AAMC_Raw_Data_for_FY22[[#This Row],[Median]]-AAMC_Raw_Data_for_FY22[[#This Row],[25th]])/25)*10) + AAMC_Raw_Data_for_FY22[[#This Row],[25th]]","v":181693.2},{"$f":"(((AAMC_Raw_Data_for_FY22[[#This Row],[Median]]-AAMC_Raw_Data_for_FY22[[#This Row],[25th]])/25)*15) + AAMC_Raw_Data_for_FY22[[#This Row],[25th]]","v":191128.8},{"$f":"(((AAMC_Raw_Data_for_FY22[[#This Row],[Median]]-AAMC_Raw_Data_for_FY22[[#This Row],[25th]])/25)*20) + AAMC_Raw_Data_for_FY22[[#This Row],[25th]]","v":200564.4},210000,{"$f":"(((AAMC_Raw_Data_for_FY22[[#This Row],[75th]]-AAMC_Raw_Data_for_FY22[[#This Row],[Median]])/25)*5) + AAMC_Raw_Data_for_FY22[[#This Row],[Median]]","v":212835.4},{"$f":"(((AAMC_Raw_Data_for_FY22[[#This Row],[75th]]-AAMC_Raw_Data_for_FY22[[#This Row],[Median]])/25)*10) + AAMC_Raw_Data_for_FY22[[#This Row],[Median]]","v":215670.8},{"$f":"(((AAMC_Raw_Data_for_FY22[[#This Row],[75th]]-AAMC_Raw_Data_for_FY22[[#This Row],[Median]])/25)*15) + AAMC_Raw_Data_for_FY22[[#This Row],[Median]]","v":218506.2},{"$f":"(((AAMC_Raw_Data_for_FY22[[#This Row],[75th]]-AAMC_Raw_Data_for_FY22[[#This Row],[Median]])/25)*20) + AAMC_Raw_Data_for_FY22[[#This Row],[Median]]","v":221341.6},224177,{"$f":"(((AAMC_Raw_Data_for_FY22[[#This Row],[75th]]-AAMC_Raw_Data_for_FY22[[#This Row],[Median]])/25)*30) + AAMC_Raw_Data_for_FY22[[#This Row],[Median]]","v":227012.4},{"$f":"(((AAMC_Raw_Data_for_FY22[[#This Row],[75th]]-AAMC_Raw_Data_for_FY22[[#This Row],[Median]])/25)*35) + AAMC_Raw_Data_for_FY22[[#This Row],[Median]]","v":229847.8},{"$f":"(((AAMC_Raw_Data_for_FY22[[#This Row],[75th]]-AAMC_Raw_Data_for_FY22[[#This Row],[Median]])/25)*40) + AAMC_Raw_Data_for_FY22[[#This Row],[Median]]","v":232683.2}]
[{"$f":"AAMC_Raw_Data_for_FY22[[#This Row],[Source]]&AAMC_Raw_Data_for_FY22[[#This Row],[Type]]&AAMC_Raw_Data_for_FY22[[#This Row],[School Subset]]&AAMC_Raw_Data_for_FY22[[#This Row],[Rank]]&AAMC_Raw_Data_for_FY22[[#This Row],[Degree]]&AAMC_Raw_Data_for_FY22[[#This Row],[Department / Specialty]]&\"L\"","v":"AAMCAcademicPublicInstructorPhDTransplant SurgeryL"},"Transplant Surgery",5,"AAMC","Academic","Public","Instructor","PhD","2021-2022",null,{"$f":"(((AAMC_Raw_Data_for_FY22[[#This Row],[Median]]-AAMC_Raw_Data_for_FY22[[#This Row],[25th]])/25)*5) + AAMC_Raw_Data_for_FY22[[#This Row],[25th]]","v":0},{"$f":"(((AAMC_Raw_Data_for_FY22[[#This Row],[Median]]-AAMC_Raw_Data_for_FY22[[#This Row],[25th]])/25)*10) + AAMC_Raw_Data_for_FY22[[#This Row],[25th]]","v":0},{"$f":"(((AAMC_Raw_Data_for_FY22[[#This Row],[Median]]-AAMC_Raw_Data_for_FY22[[#This Row],[25th]])/25)*15) + AAMC_Raw_Data_for_FY22[[#This Row],[25th]]","v":0},{"$f":"(((AAMC_Raw_Data_for_FY22[[#This Row],[Median]]-AAMC_Raw_Data_for_FY22[[#This Row],[25th]])/25)*20) + AAMC_Raw_Data_for_FY22[[#This Row],[25th]]","v":0},null,{"$f":"(((AAMC_Raw_Data_for_FY22[[#This Row],[75th]]-AAMC_Raw_Data_for_FY22[[#This Row],[Median]])/25)*5) + AAMC_Raw_Data_for_FY22[[#This Row],[Median]]","v":0},{"$f":"(((AAMC_Raw_Data_for_FY22[[#This Row],[75th]]-AAMC_Raw_Data_for_FY22[[#This Row],[Median]])/25)*10) + AAMC_Raw_Data_for_FY22[[#This Row],[Median]]","v":0},{"$f":"(((AAMC_Raw_Data_for_FY22[[#This Row],[75th]]-AAMC_Raw_Data_for_FY22[[#This Row],[Median]])/25)*15) + AAMC_Raw_Data_for_FY22[[#This Row],[Median]]","v":0},{"$f":"(((AAMC_Raw_Data_for_FY22[[#This Row],[75th]]-AAMC_Raw_Data_for_FY22[[#This Row],[Median]])/25)*20) + AAMC_Raw_Data_for_FY22[[#This Row],[Median]]","v":0},null,{"$f":"(((AAMC_Raw_Data_for_FY22[[#This Row],[75th]]-AAMC_Raw_Data_for_FY22[[#This Row],[Median]])/25)*30) + AAMC_Raw_Data_for_FY22[[#This Row],[Median]]","v":0},{"$f":"(((AAMC_Raw_Data_for_FY22[[#This Row],[75th]]-AAMC_Raw_Data_for_FY22[[#This Row],[Median]])/25)*35) + AAMC_Raw_Data_for_FY22[[#This Row],[Median]]","v":0},{"$f":"(((AAMC_Raw_Data_for_FY22[[#This Row],[75th]]-AAMC_Raw_Data_for_FY22[[#This Row],[Median]])/25)*40) + AAMC_Raw_Data_for_FY22[[#This Row],[Median]]","v":0}]
[{"$f":"AAMC_Raw_Data_for_FY22[[#This Row],[Source]]&AAMC_Raw_Data_for_FY22[[#This Row],[Type]]&AAMC_Raw_Data_for_FY22[[#This Row],[School Subset]]&AAMC_Raw_Data_for_FY22[[#This Row],[Rank]]&AAMC_Raw_Data_for_FY22[[#This Row],[Degree]]&AAMC_Raw_Data_for_FY22[[#This Row],[Department / Specialty]]&\"L\"","v":"AAMCAcademicPublicAssistantPhDTransplant SurgeryL"},"Transplant Surgery",4,"AAMC","Academic","Public","Assistant","PhD","2021-2022",85705,{"$f":"(((AAMC_Raw_Data_for_FY22[[#This Row],[Median]]-AAMC_Raw_Data_for_FY22[[#This Row],[25th]])/25)*5) + AAMC_Raw_Data_for_FY22[[#This Row],[25th]]","v":88348.800000000003},{"$f":"(((AAMC_Raw_Data_for_FY22[[#This Row],[Median]]-AAMC_Raw_Data_for_FY22[[#This Row],[25th]])/25)*10) + AAMC_Raw_Data_for_FY22[[#This Row],[25th]]","v":90992.6},{"$f":"(((AAMC_Raw_Data_for_FY22[[#This Row],[Median]]-AAMC_Raw_Data_for_FY22[[#This Row],[25th]])/25)*15) + AAMC_Raw_Data_for_FY22[[#This Row],[25th]]","v":93636.4},{"$f":"(((AAMC_Raw_Data_for_FY22[[#This Row],[Median]]-AAMC_Raw_Data_for_FY22[[#This Row],[25th]])/25)*20) + AAMC_Raw_Data_for_FY22[[#This Row],[25th]]","v":96280.2},98924,{"$f":"(((AAMC_Raw_Data_for_FY22[[#This Row],[75th]]-AAMC_Raw_Data_for_FY22[[#This Row],[Median]])/25)*5) + AAMC_Raw_Data_for_FY22[[#This Row],[Median]]","v":100990},{"$f":"(((AAMC_Raw_Data_for_FY22[[#This Row],[75th]]-AAMC_Raw_Data_for_FY22[[#This Row],[Median]])/25)*10) + AAMC_Raw_Data_for_FY22[[#This Row],[Median]]","v":103056},{"$f":"(((AAMC_Raw_Data_for_FY22[[#This Row],[75th]]-AAMC_Raw_Data_for_FY22[[#This Row],[Median]])/25)*15) + AAMC_Raw_Data_for_FY22[[#This Row],[Median]]","v":105122},{"$f":"(((AAMC_Raw_Data_for_FY22[[#This Row],[75th]]-AAMC_Raw_Data_for_FY22[[#This Row],[Median]])/25)*20) + AAMC_Raw_Data_for_FY22[[#This Row],[Median]]","v":107188},109254,{"$f":"(((AAMC_Raw_Data_for_FY22[[#This Row],[75th]]-AAMC_Raw_Data_for_FY22[[#This Row],[Median]])/25)*30) + AAMC_Raw_Data_for_FY22[[#This Row],[Median]]","v":111320},{"$f":"(((AAMC_Raw_Data_for_FY22[[#This Row],[75th]]-AAMC_Raw_Data_for_FY22[[#This Row],[Median]])/25)*35) + AAMC_Raw_Data_for_FY22[[#This Row],[Median]]","v":113386},{"$f":"(((AAMC_Raw_Data_for_FY22[[#This Row],[75th]]-AAMC_Raw_Data_for_FY22[[#This Row],[Median]])/25)*40) + AAMC_Raw_Data_for_FY22[[#This Row],[Median]]","v":115452}]
[{"$f":"AAMC_Raw_Data_for_FY22[[#This Row],[Source]]&AAMC_Raw_Data_for_FY22[[#This Row],[Type]]&AAMC_Raw_Data_for_FY22[[#This Row],[School Subset]]&AAMC_Raw_Data_for_FY22[[#This Row],[Rank]]&AAMC_Raw_Data_for_FY22[[#This Row],[Degree]]&AAMC_Raw_Data_for_FY22[[#This Row],[Department / Specialty]]&\"L\"","v":"AAMCAcademicPublicAssociatePhDTransplant SurgeryL"},"Transplant Surgery",3,"AAMC","Academic","Public","Associate","PhD","2021-2022",107225,{"$f":"(((AAMC_Raw_Data_for_FY22[[#This Row],[Median]]-AAMC_Raw_Data_for_FY22[[#This Row],[25th]])/25)*5) + AAMC_Raw_Data_for_FY22[[#This Row],[25th]]","v":112452.2},{"$f":"(((AAMC_Raw_Data_for_FY22[[#This Row],[Median]]-AAMC_Raw_Data_for_FY22[[#This Row],[25th]])/25)*10) + AAMC_Raw_Data_for_FY22[[#This Row],[25th]]","v":117679.4},{"$f":"(((AAMC_Raw_Data_for_FY22[[#This Row],[Median]]-AAMC_Raw_Data_for_FY22[[#This Row],[25th]])/25)*15) + AAMC_Raw_Data_for_FY22[[#This Row],[25th]]","v":122906.6},{"$f":"(((AAMC_Raw_Data_for_FY22[[#This Row],[Median]]-AAMC_Raw_Data_for_FY22[[#This Row],[25th]])/25)*20) + AAMC_Raw_Data_for_FY22[[#This Row],[25th]]","v":128133.8},133361,{"$f":"(((AAMC_Raw_Data_for_FY22[[#This Row],[75th]]-AAMC_Raw_Data_for_FY22[[#This Row],[Median]])/25)*5) + AAMC_Raw_Data_for_FY22[[#This Row],[Median]]","v":136694},{"$f":"(((AAMC_Raw_Data_for_FY22[[#This Row],[75th]]-AAMC_Raw_Data_for_FY22[[#This Row],[Median]])/25)*10) + AAMC_Raw_Data_for_FY22[[#This Row],[Median]]","v":140027},{"$f":"(((AAMC_Raw_Data_for_FY22[[#This Row],[75th]]-AAMC_Raw_Data_for_FY22[[#This Row],[Median]])/25)*15) + AAMC_Raw_Data_for_FY22[[#This Row],[Median]]","v":143360},{"$f":"(((AAMC_Raw_Data_for_FY22[[#This Row],[75th]]-AAMC_Raw_Data_for_FY22[[#This Row],[Median]])/25)*20) + AAMC_Raw_Data_for_FY22[[#This Row],[Median]]","v":146693},150026,{"$f":"(((AAMC_Raw_Data_for_FY22[[#This Row],[75th]]-AAMC_Raw_Data_for_FY22[[#This Row],[Median]])/25)*30) + AAMC_Raw_Data_for_FY22[[#This Row],[Median]]","v":153359},{"$f":"(((AAMC_Raw_Data_for_FY22[[#This Row],[75th]]-AAMC_Raw_Data_for_FY22[[#This Row],[Median]])/25)*35) + AAMC_Raw_Data_for_FY22[[#This Row],[Median]]","v":156692},{"$f":"(((AAMC_Raw_Data_for_FY22[[#This Row],[75th]]-AAMC_Raw_Data_for_FY22[[#This Row],[Median]])/25)*40) + AAMC_Raw_Data_for_FY22[[#This Row],[Median]]","v":160025}]
[{"$f":"AAMC_Raw_Data_for_FY22[[#This Row],[Source]]&AAMC_Raw_Data_for_FY22[[#This Row],[Type]]&AAMC_Raw_Data_for_FY22[[#This Row],[School Subset]]&AAMC_Raw_Data_for_FY22[[#This Row],[Rank]]&AAMC_Raw_Data_for_FY22[[#This Row],[Degree]]&AAMC_Raw_Data_for_FY22[[#This Row],[Department / Specialty]]&\"L\"","v":"AAMCAcademicPublicProfessorPhDTransplant SurgeryL"},"Transplant Surgery",2,"AAMC","Academic","Public","Professor","PhD","2021-2022",null,{"$f":"(((AAMC_Raw_Data_for_FY22[[#This Row],[Median]]-AAMC_Raw_Data_for_FY22[[#This Row],[25th]])/25)*5) + AAMC_Raw_Data_for_FY22[[#This Row],[25th]]","v":0},{"$f":"(((AAMC_Raw_Data_for_FY22[[#This Row],[Median]]-AAMC_Raw_Data_for_FY22[[#This Row],[25th]])/25)*10) + AAMC_Raw_Data_for_FY22[[#This Row],[25th]]","v":0},{"$f":"(((AAMC_Raw_Data_for_FY22[[#This Row],[Median]]-AAMC_Raw_Data_for_FY22[[#This Row],[25th]])/25)*15) + AAMC_Raw_Data_for_FY22[[#This Row],[25th]]","v":0},{"$f":"(((AAMC_Raw_Data_for_FY22[[#This Row],[Median]]-AAMC_Raw_Data_for_FY22[[#This Row],[25th]])/25)*20) + AAMC_Raw_Data_for_FY22[[#This Row],[25th]]","v":0},null,{"$f":"(((AAMC_Raw_Data_for_FY22[[#This Row],[75th]]-AAMC_Raw_Data_for_FY22[[#This Row],[Median]])/25)*5) + AAMC_Raw_Data_for_FY22[[#This Row],[Median]]","v":0},{"$f":"(((AAMC_Raw_Data_for_FY22[[#This Row],[75th]]-AAMC_Raw_Data_for_FY22[[#This Row],[Median]])/25)*10) + AAMC_Raw_Data_for_FY22[[#This Row],[Median]]","v":0},{"$f":"(((AAMC_Raw_Data_for_FY22[[#This Row],[75th]]-AAMC_Raw_Data_for_FY22[[#This Row],[Median]])/25)*15) + AAMC_Raw_Data_for_FY22[[#This Row],[Median]]","v":0},{"$f":"(((AAMC_Raw_Data_for_FY22[[#This Row],[75th]]-AAMC_Raw_Data_for_FY22[[#This Row],[Median]])/25)*20) + AAMC_Raw_Data_for_FY22[[#This Row],[Median]]","v":0},null,{"$f":"(((AAMC_Raw_Data_for_FY22[[#This Row],[75th]]-AAMC_Raw_Data_for_FY22[[#This Row],[Median]])/25)*30) + AAMC_Raw_Data_for_FY22[[#This Row],[Median]]","v":0},{"$f":"(((AAMC_Raw_Data_for_FY22[[#This Row],[75th]]-AAMC_Raw_Data_for_FY22[[#This Row],[Median]])/25)*35) + AAMC_Raw_Data_for_FY22[[#This Row],[Median]]","v":0},{"$f":"(((AAMC_Raw_Data_for_FY22[[#This Row],[75th]]-AAMC_Raw_Data_for_FY22[[#This Row],[Median]])/25)*40) + AAMC_Raw_Data_for_FY22[[#This Row],[Median]]","v":0}]
[{"$f":"AAMC_Raw_Data_for_FY22[[#This Row],[Source]]&AAMC_Raw_Data_for_FY22[[#This Row],[Type]]&AAMC_Raw_Data_for_FY22[[#This Row],[School Subset]]&AAMC_Raw_Data_for_FY22[[#This Row],[Rank]]&AAMC_Raw_Data_for_FY22[[#This Row],[Degree]]&AAMC_Raw_Data_for_FY22[[#This Row],[Department / Specialty]]&\"L\"","v":"AAMCAcademicPublicInstructorPhDTrauma/Critical Care SurgeryL"},"Trauma/Critical Care Surgery",5,"AAMC","Academic","Public","Instructor","PhD","2021-2022",null,{"$f":"(((AAMC_Raw_Data_for_FY22[[#This Row],[Median]]-AAMC_Raw_Data_for_FY22[[#This Row],[25th]])/25)*5) + AAMC_Raw_Data_for_FY22[[#This Row],[25th]]","v":0},{"$f":"(((AAMC_Raw_Data_for_FY22[[#This Row],[Median]]-AAMC_Raw_Data_for_FY22[[#This Row],[25th]])/25)*10) + AAMC_Raw_Data_for_FY22[[#This Row],[25th]]","v":0},{"$f":"(((AAMC_Raw_Data_for_FY22[[#This Row],[Median]]-AAMC_Raw_Data_for_FY22[[#This Row],[25th]])/25)*15) + AAMC_Raw_Data_for_FY22[[#This Row],[25th]]","v":0},{"$f":"(((AAMC_Raw_Data_for_FY22[[#This Row],[Median]]-AAMC_Raw_Data_for_FY22[[#This Row],[25th]])/25)*20) + AAMC_Raw_Data_for_FY22[[#This Row],[25th]]","v":0},null,{"$f":"(((AAMC_Raw_Data_for_FY22[[#This Row],[75th]]-AAMC_Raw_Data_for_FY22[[#This Row],[Median]])/25)*5) + AAMC_Raw_Data_for_FY22[[#This Row],[Median]]","v":0},{"$f":"(((AAMC_Raw_Data_for_FY22[[#This Row],[75th]]-AAMC_Raw_Data_for_FY22[[#This Row],[Median]])/25)*10) + AAMC_Raw_Data_for_FY22[[#This Row],[Median]]","v":0},{"$f":"(((AAMC_Raw_Data_for_FY22[[#This Row],[75th]]-AAMC_Raw_Data_for_FY22[[#This Row],[Median]])/25)*15) + AAMC_Raw_Data_for_FY22[[#This Row],[Median]]","v":0},{"$f":"(((AAMC_Raw_Data_for_FY22[[#This Row],[75th]]-AAMC_Raw_Data_for_FY22[[#This Row],[Median]])/25)*20) + AAMC_Raw_Data_for_FY22[[#This Row],[Median]]","v":0},null,{"$f":"(((AAMC_Raw_Data_for_FY22[[#This Row],[75th]]-AAMC_Raw_Data_for_FY22[[#This Row],[Median]])/25)*30) + AAMC_Raw_Data_for_FY22[[#This Row],[Median]]","v":0},{"$f":"(((AAMC_Raw_Data_for_FY22[[#This Row],[75th]]-AAMC_Raw_Data_for_FY22[[#This Row],[Median]])/25)*35) + AAMC_Raw_Data_for_FY22[[#This Row],[Median]]","v":0},{"$f":"(((AAMC_Raw_Data_for_FY22[[#This Row],[75th]]-AAMC_Raw_Data_for_FY22[[#This Row],[Median]])/25)*40) + AAMC_Raw_Data_for_FY22[[#This Row],[Median]]","v":0}]
[{"$f":"AAMC_Raw_Data_for_FY22[[#This Row],[Source]]&AAMC_Raw_Data_for_FY22[[#This Row],[Type]]&AAMC_Raw_Data_for_FY22[[#This Row],[School Subset]]&AAMC_Raw_Data_for_FY22[[#This Row],[Rank]]&AAMC_Raw_Data_for_FY22[[#This Row],[Degree]]&AAMC_Raw_Data_for_FY22[[#This Row],[Department / Specialty]]&\"L\"","v":"AAMCAcademicPublicAssistantPhDTrauma/Critical Care SurgeryL"},"Trauma/Critical Care Surgery",4,"AAMC","Academic","Public","Assistant","PhD","2021-2022",null,{"$f":"(((AAMC_Raw_Data_for_FY22[[#This Row],[Median]]-AAMC_Raw_Data_for_FY22[[#This Row],[25th]])/25)*5) + AAMC_Raw_Data_for_FY22[[#This Row],[25th]]","v":0},{"$f":"(((AAMC_Raw_Data_for_FY22[[#This Row],[Median]]-AAMC_Raw_Data_for_FY22[[#This Row],[25th]])/25)*10) + AAMC_Raw_Data_for_FY22[[#This Row],[25th]]","v":0},{"$f":"(((AAMC_Raw_Data_for_FY22[[#This Row],[Median]]-AAMC_Raw_Data_for_FY22[[#This Row],[25th]])/25)*15) + AAMC_Raw_Data_for_FY22[[#This Row],[25th]]","v":0},{"$f":"(((AAMC_Raw_Data_for_FY22[[#This Row],[Median]]-AAMC_Raw_Data_for_FY22[[#This Row],[25th]])/25)*20) + AAMC_Raw_Data_for_FY22[[#This Row],[25th]]","v":0},null,{"$f":"(((AAMC_Raw_Data_for_FY22[[#This Row],[75th]]-AAMC_Raw_Data_for_FY22[[#This Row],[Median]])/25)*5) + AAMC_Raw_Data_for_FY22[[#This Row],[Median]]","v":0},{"$f":"(((AAMC_Raw_Data_for_FY22[[#This Row],[75th]]-AAMC_Raw_Data_for_FY22[[#This Row],[Median]])/25)*10) + AAMC_Raw_Data_for_FY22[[#This Row],[Median]]","v":0},{"$f":"(((AAMC_Raw_Data_for_FY22[[#This Row],[75th]]-AAMC_Raw_Data_for_FY22[[#This Row],[Median]])/25)*15) + AAMC_Raw_Data_for_FY22[[#This Row],[Median]]","v":0},{"$f":"(((AAMC_Raw_Data_for_FY22[[#This Row],[75th]]-AAMC_Raw_Data_for_FY22[[#This Row],[Median]])/25)*20) + AAMC_Raw_Data_for_FY22[[#This Row],[Median]]","v":0},null,{"$f":"(((AAMC_Raw_Data_for_FY22[[#This Row],[75th]]-AAMC_Raw_Data_for_FY22[[#This Row],[Median]])/25)*30) + AAMC_Raw_Data_for_FY22[[#This Row],[Median]]","v":0},{"$f":"(((AAMC_Raw_Data_for_FY22[[#This Row],[75th]]-AAMC_Raw_Data_for_FY22[[#This Row],[Median]])/25)*35) + AAMC_Raw_Data_for_FY22[[#This Row],[Median]]","v":0},{"$f":"(((AAMC_Raw_Data_for_FY22[[#This Row],[75th]]-AAMC_Raw_Data_for_FY22[[#This Row],[Median]])/25)*40) + AAMC_Raw_Data_for_FY22[[#This Row],[Median]]","v":0}]
[{"$f":"AAMC_Raw_Data_for_FY22[[#This Row],[Source]]&AAMC_Raw_Data_for_FY22[[#This Row],[Type]]&AAMC_Raw_Data_for_FY22[[#This Row],[School Subset]]&AAMC_Raw_Data_for_FY22[[#This Row],[Rank]]&AAMC_Raw_Data_for_FY22[[#This Row],[Degree]]&AAMC_Raw_Data_for_FY22[[#This Row],[Department / Specialty]]&\"L\"","v":"AAMCAcademicPublicAssociatePhDTrauma/Critical Care SurgeryL"},"Trauma/Critical Care Surgery",3,"AAMC","Academic","Public","Associate","PhD","2021-2022",null,{"$f":"(((AAMC_Raw_Data_for_FY22[[#This Row],[Median]]-AAMC_Raw_Data_for_FY22[[#This Row],[25th]])/25)*5) + AAMC_Raw_Data_for_FY22[[#This Row],[25th]]","v":0},{"$f":"(((AAMC_Raw_Data_for_FY22[[#This Row],[Median]]-AAMC_Raw_Data_for_FY22[[#This Row],[25th]])/25)*10) + AAMC_Raw_Data_for_FY22[[#This Row],[25th]]","v":0},{"$f":"(((AAMC_Raw_Data_for_FY22[[#This Row],[Median]]-AAMC_Raw_Data_for_FY22[[#This Row],[25th]])/25)*15) + AAMC_Raw_Data_for_FY22[[#This Row],[25th]]","v":0},{"$f":"(((AAMC_Raw_Data_for_FY22[[#This Row],[Median]]-AAMC_Raw_Data_for_FY22[[#This Row],[25th]])/25)*20) + AAMC_Raw_Data_for_FY22[[#This Row],[25th]]","v":0},null,{"$f":"(((AAMC_Raw_Data_for_FY22[[#This Row],[75th]]-AAMC_Raw_Data_for_FY22[[#This Row],[Median]])/25)*5) + AAMC_Raw_Data_for_FY22[[#This Row],[Median]]","v":0},{"$f":"(((AAMC_Raw_Data_for_FY22[[#This Row],[75th]]-AAMC_Raw_Data_for_FY22[[#This Row],[Median]])/25)*10) + AAMC_Raw_Data_for_FY22[[#This Row],[Median]]","v":0},{"$f":"(((AAMC_Raw_Data_for_FY22[[#This Row],[75th]]-AAMC_Raw_Data_for_FY22[[#This Row],[Median]])/25)*15) + AAMC_Raw_Data_for_FY22[[#This Row],[Median]]","v":0},{"$f":"(((AAMC_Raw_Data_for_FY22[[#This Row],[75th]]-AAMC_Raw_Data_for_FY22[[#This Row],[Median]])/25)*20) + AAMC_Raw_Data_for_FY22[[#This Row],[Median]]","v":0},null,{"$f":"(((AAMC_Raw_Data_for_FY22[[#This Row],[75th]]-AAMC_Raw_Data_for_FY22[[#This Row],[Median]])/25)*30) + AAMC_Raw_Data_for_FY22[[#This Row],[Median]]","v":0},{"$f":"(((AAMC_Raw_Data_for_FY22[[#This Row],[75th]]-AAMC_Raw_Data_for_FY22[[#This Row],[Median]])/25)*35) + AAMC_Raw_Data_for_FY22[[#This Row],[Median]]","v":0},{"$f":"(((AAMC_Raw_Data_for_FY22[[#This Row],[75th]]-AAMC_Raw_Data_for_FY22[[#This Row],[Median]])/25)*40) + AAMC_Raw_Data_for_FY22[[#This Row],[Median]]","v":0}]
[{"$f":"AAMC_Raw_Data_for_FY22[[#This Row],[Source]]&AAMC_Raw_Data_for_FY22[[#This Row],[Type]]&AAMC_Raw_Data_for_FY22[[#This Row],[School Subset]]&AAMC_Raw_Data_for_FY22[[#This Row],[Rank]]&AAMC_Raw_Data_for_FY22[[#This Row],[Degree]]&AAMC_Raw_Data_for_FY22[[#This Row],[Department / Specialty]]&\"L\"","v":"AAMCAcademicPublicProfessorPhDTrauma/Critical Care SurgeryL"},"Trauma/Critical Care Surgery",2,"AAMC","Academic","Public","Professor","PhD","2021-2022",128924,{"$f":"(((AAMC_Raw_Data_for_FY22[[#This Row],[Median]]-AAMC_Raw_Data_for_FY22[[#This Row],[25th]])/25)*5) + AAMC_Raw_Data_for_FY22[[#This Row],[25th]]","v":138139.20000000001},{"$f":"(((AAMC_Raw_Data_for_FY22[[#This Row],[Median]]-AAMC_Raw_Data_for_FY22[[#This Row],[25th]])/25)*10) + AAMC_Raw_Data_for_FY22[[#This Row],[25th]]","v":147354.4},{"$f":"(((AAMC_Raw_Data_for_FY22[[#This Row],[Median]]-AAMC_Raw_Data_for_FY22[[#This Row],[25th]])/25)*15) + AAMC_Raw_Data_for_FY22[[#This Row],[25th]]","v":156569.60000000001},{"$f":"(((AAMC_Raw_Data_for_FY22[[#This Row],[Median]]-AAMC_Raw_Data_for_FY22[[#This Row],[25th]])/25)*20) + AAMC_Raw_Data_for_FY22[[#This Row],[25th]]","v":165784.79999999999},175000,{"$f":"(((AAMC_Raw_Data_for_FY22[[#This Row],[75th]]-AAMC_Raw_Data_for_FY22[[#This Row],[Median]])/25)*5) + AAMC_Raw_Data_for_FY22[[#This Row],[Median]]","v":176386.6},{"$f":"(((AAMC_Raw_Data_for_FY22[[#This Row],[75th]]-AAMC_Raw_Data_for_FY22[[#This Row],[Median]])/25)*10) + AAMC_Raw_Data_for_FY22[[#This Row],[Median]]","v":177773.2},{"$f":"(((AAMC_Raw_Data_for_FY22[[#This Row],[75th]]-AAMC_Raw_Data_for_FY22[[#This Row],[Median]])/25)*15) + AAMC_Raw_Data_for_FY22[[#This Row],[Median]]","v":179159.8},{"$f":"(((AAMC_Raw_Data_for_FY22[[#This Row],[75th]]-AAMC_Raw_Data_for_FY22[[#This Row],[Median]])/25)*20) + AAMC_Raw_Data_for_FY22[[#This Row],[Median]]","v":180546.4},181933,{"$f":"(((AAMC_Raw_Data_for_FY22[[#This Row],[75th]]-AAMC_Raw_Data_for_FY22[[#This Row],[Median]])/25)*30) + AAMC_Raw_Data_for_FY22[[#This Row],[Median]]","v":183319.6},{"$f":"(((AAMC_Raw_Data_for_FY22[[#This Row],[75th]]-AAMC_Raw_Data_for_FY22[[#This Row],[Median]])/25)*35) + AAMC_Raw_Data_for_FY22[[#This Row],[Median]]","v":184706.2},{"$f":"(((AAMC_Raw_Data_for_FY22[[#This Row],[75th]]-AAMC_Raw_Data_for_FY22[[#This Row],[Median]])/25)*40) + AAMC_Raw_Data_for_FY22[[#This Row],[Median]]","v":186092.79999999999}]
[{"$f":"AAMC_Raw_Data_for_FY22[[#This Row],[Source]]&AAMC_Raw_Data_for_FY22[[#This Row],[Type]]&AAMC_Raw_Data_for_FY22[[#This Row],[School Subset]]&AAMC_Raw_Data_for_FY22[[#This Row],[Rank]]&AAMC_Raw_Data_for_FY22[[#This Row],[Degree]]&AAMC_Raw_Data_for_FY22[[#This Row],[Department / Specialty]]&\"L\"","v":"AAMCAcademicPublicInstructorPhDUrologyL"},"Urology",5,"AAMC","Academic","Public","Instructor","PhD","2021-2022",62875,{"$f":"(((AAMC_Raw_Data_for_FY22[[#This Row],[Median]]-AAMC_Raw_Data_for_FY22[[#This Row],[25th]])/25)*5) + AAMC_Raw_Data_for_FY22[[#This Row],[25th]]","v":65229.8},{"$f":"(((AAMC_Raw_Data_for_FY22[[#This Row],[Median]]-AAMC_Raw_Data_for_FY22[[#This Row],[25th]])/25)*10) + AAMC_Raw_Data_for_FY22[[#This Row],[25th]]","v":67584.600000000006},{"$f":"(((AAMC_Raw_Data_for_FY22[[#This Row],[Median]]-AAMC_Raw_Data_for_FY22[[#This Row],[25th]])/25)*15) + AAMC_Raw_Data_for_FY22[[#This Row],[25th]]","v":69939.399999999994},{"$f":"(((AAMC_Raw_Data_for_FY22[[#This Row],[Median]]-AAMC_Raw_Data_for_FY22[[#This Row],[25th]])/25)*20) + AAMC_Raw_Data_for_FY22[[#This Row],[25th]]","v":72294.2},74649,{"$f":"(((AAMC_Raw_Data_for_FY22[[#This Row],[75th]]-AAMC_Raw_Data_for_FY22[[#This Row],[Median]])/25)*5) + AAMC_Raw_Data_for_FY22[[#This Row],[Median]]","v":76683.199999999997},{"$f":"(((AAMC_Raw_Data_for_FY22[[#This Row],[75th]]-AAMC_Raw_Data_for_FY22[[#This Row],[Median]])/25)*10) + AAMC_Raw_Data_for_FY22[[#This Row],[Median]]","v":78717.399999999994},{"$f":"(((AAMC_Raw_Data_for_FY22[[#This Row],[75th]]-AAMC_Raw_Data_for_FY22[[#This Row],[Median]])/25)*15) + AAMC_Raw_Data_for_FY22[[#This Row],[Median]]","v":80751.600000000006},{"$f":"(((AAMC_Raw_Data_for_FY22[[#This Row],[75th]]-AAMC_Raw_Data_for_FY22[[#This Row],[Median]])/25)*20) + AAMC_Raw_Data_for_FY22[[#This Row],[Median]]","v":82785.8},84820,{"$f":"(((AAMC_Raw_Data_for_FY22[[#This Row],[75th]]-AAMC_Raw_Data_for_FY22[[#This Row],[Median]])/25)*30) + AAMC_Raw_Data_for_FY22[[#This Row],[Median]]","v":86854.2},{"$f":"(((AAMC_Raw_Data_for_FY22[[#This Row],[75th]]-AAMC_Raw_Data_for_FY22[[#This Row],[Median]])/25)*35) + AAMC_Raw_Data_for_FY22[[#This Row],[Median]]","v":88888.4},{"$f":"(((AAMC_Raw_Data_for_FY22[[#This Row],[75th]]-AAMC_Raw_Data_for_FY22[[#This Row],[Median]])/25)*40) + AAMC_Raw_Data_for_FY22[[#This Row],[Median]]","v":90922.6}]
[{"$f":"AAMC_Raw_Data_for_FY22[[#This Row],[Source]]&AAMC_Raw_Data_for_FY22[[#This Row],[Type]]&AAMC_Raw_Data_for_FY22[[#This Row],[School Subset]]&AAMC_Raw_Data_for_FY22[[#This Row],[Rank]]&AAMC_Raw_Data_for_FY22[[#This Row],[Degree]]&AAMC_Raw_Data_for_FY22[[#This Row],[Department / Specialty]]&\"L\"","v":"AAMCAcademicPublicAssistantPhDUrologyL"},"Urology",4,"AAMC","Academic","Public","Assistant","PhD","2021-2022",89997,{"$f":"(((AAMC_Raw_Data_for_FY22[[#This Row],[Median]]-AAMC_Raw_Data_for_FY22[[#This Row],[25th]])/25)*5) + AAMC_Raw_Data_for_FY22[[#This Row],[25th]]","v":93143},{"$f":"(((AAMC_Raw_Data_for_FY22[[#This Row],[Median]]-AAMC_Raw_Data_for_FY22[[#This Row],[25th]])/25)*10) + AAMC_Raw_Data_for_FY22[[#This Row],[25th]]","v":96289},{"$f":"(((AAMC_Raw_Data_for_FY22[[#This Row],[Median]]-AAMC_Raw_Data_for_FY22[[#This Row],[25th]])/25)*15) + AAMC_Raw_Data_for_FY22[[#This Row],[25th]]","v":99435},{"$f":"(((AAMC_Raw_Data_for_FY22[[#This Row],[Median]]-AAMC_Raw_Data_for_FY22[[#This Row],[25th]])/25)*20) + AAMC_Raw_Data_for_FY22[[#This Row],[25th]]","v":102581},105727,{"$f":"(((AAMC_Raw_Data_for_FY22[[#This Row],[75th]]-AAMC_Raw_Data_for_FY22[[#This Row],[Median]])/25)*5) + AAMC_Raw_Data_for_FY22[[#This Row],[Median]]","v":110497.60000000001},{"$f":"(((AAMC_Raw_Data_for_FY22[[#This Row],[75th]]-AAMC_Raw_Data_for_FY22[[#This Row],[Median]])/25)*10) + AAMC_Raw_Data_for_FY22[[#This Row],[Median]]","v":115268.2},{"$f":"(((AAMC_Raw_Data_for_FY22[[#This Row],[75th]]-AAMC_Raw_Data_for_FY22[[#This Row],[Median]])/25)*15) + AAMC_Raw_Data_for_FY22[[#This Row],[Median]]","v":120038.8},{"$f":"(((AAMC_Raw_Data_for_FY22[[#This Row],[75th]]-AAMC_Raw_Data_for_FY22[[#This Row],[Median]])/25)*20) + AAMC_Raw_Data_for_FY22[[#This Row],[Median]]","v":124809.4},129580,{"$f":"(((AAMC_Raw_Data_for_FY22[[#This Row],[75th]]-AAMC_Raw_Data_for_FY22[[#This Row],[Median]])/25)*30) + AAMC_Raw_Data_for_FY22[[#This Row],[Median]]","v":134350.6},{"$f":"(((AAMC_Raw_Data_for_FY22[[#This Row],[75th]]-AAMC_Raw_Data_for_FY22[[#This Row],[Median]])/25)*35) + AAMC_Raw_Data_for_FY22[[#This Row],[Median]]","v":139121.20000000001},{"$f":"(((AAMC_Raw_Data_for_FY22[[#This Row],[75th]]-AAMC_Raw_Data_for_FY22[[#This Row],[Median]])/25)*40) + AAMC_Raw_Data_for_FY22[[#This Row],[Median]]","v":143891.79999999999}]
[{"$f":"AAMC_Raw_Data_for_FY22[[#This Row],[Source]]&AAMC_Raw_Data_for_FY22[[#This Row],[Type]]&AAMC_Raw_Data_for_FY22[[#This Row],[School Subset]]&AAMC_Raw_Data_for_FY22[[#This Row],[Rank]]&AAMC_Raw_Data_for_FY22[[#This Row],[Degree]]&AAMC_Raw_Data_for_FY22[[#This Row],[Department / Specialty]]&\"L\"","v":"AAMCAcademicPublicAssociatePhDUrologyL"},"Urology",3,"AAMC","Academic","Public","Associate","PhD","2021-2022",123192,{"$f":"(((AAMC_Raw_Data_for_FY22[[#This Row],[Median]]-AAMC_Raw_Data_for_FY22[[#This Row],[25th]])/25)*5) + AAMC_Raw_Data_for_FY22[[#This Row],[25th]]","v":124753.60000000001},{"$f":"(((AAMC_Raw_Data_for_FY22[[#This Row],[Median]]-AAMC_Raw_Data_for_FY22[[#This Row],[25th]])/25)*10) + AAMC_Raw_Data_for_FY22[[#This Row],[25th]]","v":126315.2},{"$f":"(((AAMC_Raw_Data_for_FY22[[#This Row],[Median]]-AAMC_Raw_Data_for_FY22[[#This Row],[25th]])/25)*15) + AAMC_Raw_Data_for_FY22[[#This Row],[25th]]","v":127876.8},{"$f":"(((AAMC_Raw_Data_for_FY22[[#This Row],[Median]]-AAMC_Raw_Data_for_FY22[[#This Row],[25th]])/25)*20) + AAMC_Raw_Data_for_FY22[[#This Row],[25th]]","v":129438.39999999999},131000,{"$f":"(((AAMC_Raw_Data_for_FY22[[#This Row],[75th]]-AAMC_Raw_Data_for_FY22[[#This Row],[Median]])/25)*5) + AAMC_Raw_Data_for_FY22[[#This Row],[Median]]","v":142178},{"$f":"(((AAMC_Raw_Data_for_FY22[[#This Row],[75th]]-AAMC_Raw_Data_for_FY22[[#This Row],[Median]])/25)*10) + AAMC_Raw_Data_for_FY22[[#This Row],[Median]]","v":153356},{"$f":"(((AAMC_Raw_Data_for_FY22[[#This Row],[75th]]-AAMC_Raw_Data_for_FY22[[#This Row],[Median]])/25)*15) + AAMC_Raw_Data_for_FY22[[#This Row],[Median]]","v":164534},{"$f":"(((AAMC_Raw_Data_for_FY22[[#This Row],[75th]]-AAMC_Raw_Data_for_FY22[[#This Row],[Median]])/25)*20) + AAMC_Raw_Data_for_FY22[[#This Row],[Median]]","v":175712},186890,{"$f":"(((AAMC_Raw_Data_for_FY22[[#This Row],[75th]]-AAMC_Raw_Data_for_FY22[[#This Row],[Median]])/25)*30) + AAMC_Raw_Data_for_FY22[[#This Row],[Median]]","v":198068},{"$f":"(((AAMC_Raw_Data_for_FY22[[#This Row],[75th]]-AAMC_Raw_Data_for_FY22[[#This Row],[Median]])/25)*35) + AAMC_Raw_Data_for_FY22[[#This Row],[Median]]","v":209246},{"$f":"(((AAMC_Raw_Data_for_FY22[[#This Row],[75th]]-AAMC_Raw_Data_for_FY22[[#This Row],[Median]])/25)*40) + AAMC_Raw_Data_for_FY22[[#This Row],[Median]]","v":220424}]
[{"$f":"AAMC_Raw_Data_for_FY22[[#This Row],[Source]]&AAMC_Raw_Data_for_FY22[[#This Row],[Type]]&AAMC_Raw_Data_for_FY22[[#This Row],[School Subset]]&AAMC_Raw_Data_for_FY22[[#This Row],[Rank]]&AAMC_Raw_Data_for_FY22[[#This Row],[Degree]]&AAMC_Raw_Data_for_FY22[[#This Row],[Department / Specialty]]&\"L\"","v":"AAMCAcademicPublicProfessorPhDUrologyL"},"Urology",2,"AAMC","Academic","Public","Professor","PhD","2021-2022",177963,{"$f":"(((AAMC_Raw_Data_for_FY22[[#This Row],[Median]]-AAMC_Raw_Data_for_FY22[[#This Row],[25th]])/25)*5) + AAMC_Raw_Data_for_FY22[[#This Row],[25th]]","v":182580},{"$f":"(((AAMC_Raw_Data_for_FY22[[#This Row],[Median]]-AAMC_Raw_Data_for_FY22[[#This Row],[25th]])/25)*10) + AAMC_Raw_Data_for_FY22[[#This Row],[25th]]","v":187197},{"$f":"(((AAMC_Raw_Data_for_FY22[[#This Row],[Median]]-AAMC_Raw_Data_for_FY22[[#This Row],[25th]])/25)*15) + AAMC_Raw_Data_for_FY22[[#This Row],[25th]]","v":191814},{"$f":"(((AAMC_Raw_Data_for_FY22[[#This Row],[Median]]-AAMC_Raw_Data_for_FY22[[#This Row],[25th]])/25)*20) + AAMC_Raw_Data_for_FY22[[#This Row],[25th]]","v":196431},201048,{"$f":"(((AAMC_Raw_Data_for_FY22[[#This Row],[75th]]-AAMC_Raw_Data_for_FY22[[#This Row],[Median]])/25)*5) + AAMC_Raw_Data_for_FY22[[#This Row],[Median]]","v":209168.6},{"$f":"(((AAMC_Raw_Data_for_FY22[[#This Row],[75th]]-AAMC_Raw_Data_for_FY22[[#This Row],[Median]])/25)*10) + AAMC_Raw_Data_for_FY22[[#This Row],[Median]]","v":217289.2},{"$f":"(((AAMC_Raw_Data_for_FY22[[#This Row],[75th]]-AAMC_Raw_Data_for_FY22[[#This Row],[Median]])/25)*15) + AAMC_Raw_Data_for_FY22[[#This Row],[Median]]","v":225409.8},{"$f":"(((AAMC_Raw_Data_for_FY22[[#This Row],[75th]]-AAMC_Raw_Data_for_FY22[[#This Row],[Median]])/25)*20) + AAMC_Raw_Data_for_FY22[[#This Row],[Median]]","v":233530.4},241651,{"$f":"(((AAMC_Raw_Data_for_FY22[[#This Row],[75th]]-AAMC_Raw_Data_for_FY22[[#This Row],[Median]])/25)*30) + AAMC_Raw_Data_for_FY22[[#This Row],[Median]]","v":249771.6},{"$f":"(((AAMC_Raw_Data_for_FY22[[#This Row],[75th]]-AAMC_Raw_Data_for_FY22[[#This Row],[Median]])/25)*35) + AAMC_Raw_Data_for_FY22[[#This Row],[Median]]","v":257892.2},{"$f":"(((AAMC_Raw_Data_for_FY22[[#This Row],[75th]]-AAMC_Raw_Data_for_FY22[[#This Row],[Median]])/25)*40) + AAMC_Raw_Data_for_FY22[[#This Row],[Median]]","v":266012.79999999999}]
[{"$f":"AAMC_Raw_Data_for_FY22[[#This Row],[Source]]&AAMC_Raw_Data_for_FY22[[#This Row],[Type]]&AAMC_Raw_Data_for_FY22[[#This Row],[School Subset]]&AAMC_Raw_Data_for_FY22[[#This Row],[Rank]]&AAMC_Raw_Data_for_FY22[[#This Row],[Degree]]&AAMC_Raw_Data_for_FY22[[#This Row],[Department / Specialty]]&\"L\"","v":"AAMCAcademicPublicAssistantPhDVascular SurgeryL"},"Vascular Surgery",4,"AAMC","Academic","Public","Assistant","PhD","2021-2022",null,{"$f":"(((AAMC_Raw_Data_for_FY22[[#This Row],[Median]]-AAMC_Raw_Data_for_FY22[[#This Row],[25th]])/25)*5) + AAMC_Raw_Data_for_FY22[[#This Row],[25th]]","v":0},{"$f":"(((AAMC_Raw_Data_for_FY22[[#This Row],[Median]]-AAMC_Raw_Data_for_FY22[[#This Row],[25th]])/25)*10) + AAMC_Raw_Data_for_FY22[[#This Row],[25th]]","v":0},{"$f":"(((AAMC_Raw_Data_for_FY22[[#This Row],[Median]]-AAMC_Raw_Data_for_FY22[[#This Row],[25th]])/25)*15) + AAMC_Raw_Data_for_FY22[[#This Row],[25th]]","v":0},{"$f":"(((AAMC_Raw_Data_for_FY22[[#This Row],[Median]]-AAMC_Raw_Data_for_FY22[[#This Row],[25th]])/25)*20) + AAMC_Raw_Data_for_FY22[[#This Row],[25th]]","v":0},null,{"$f":"(((AAMC_Raw_Data_for_FY22[[#This Row],[75th]]-AAMC_Raw_Data_for_FY22[[#This Row],[Median]])/25)*5) + AAMC_Raw_Data_for_FY22[[#This Row],[Median]]","v":0},{"$f":"(((AAMC_Raw_Data_for_FY22[[#This Row],[75th]]-AAMC_Raw_Data_for_FY22[[#This Row],[Median]])/25)*10) + AAMC_Raw_Data_for_FY22[[#This Row],[Median]]","v":0},{"$f":"(((AAMC_Raw_Data_for_FY22[[#This Row],[75th]]-AAMC_Raw_Data_for_FY22[[#This Row],[Median]])/25)*15) + AAMC_Raw_Data_for_FY22[[#This Row],[Median]]","v":0},{"$f":"(((AAMC_Raw_Data_for_FY22[[#This Row],[75th]]-AAMC_Raw_Data_for_FY22[[#This Row],[Median]])/25)*20) + AAMC_Raw_Data_for_FY22[[#This Row],[Median]]","v":0},null,{"$f":"(((AAMC_Raw_Data_for_FY22[[#This Row],[75th]]-AAMC_Raw_Data_for_FY22[[#This Row],[Median]])/25)*30) + AAMC_Raw_Data_for_FY22[[#This Row],[Median]]","v":0},{"$f":"(((AAMC_Raw_Data_for_FY22[[#This Row],[75th]]-AAMC_Raw_Data_for_FY22[[#This Row],[Median]])/25)*35) + AAMC_Raw_Data_for_FY22[[#This Row],[Median]]","v":0},{"$f":"(((AAMC_Raw_Data_for_FY22[[#This Row],[75th]]-AAMC_Raw_Data_for_FY22[[#This Row],[Median]])/25)*40) + AAMC_Raw_Data_for_FY22[[#This Row],[Median]]","v":0}]
[{"$f":"AAMC_Raw_Data_for_FY22[[#This Row],[Source]]&AAMC_Raw_Data_for_FY22[[#This Row],[Type]]&AAMC_Raw_Data_for_FY22[[#This Row],[School Subset]]&AAMC_Raw_Data_for_FY22[[#This Row],[Rank]]&AAMC_Raw_Data_for_FY22[[#This Row],[Degree]]&AAMC_Raw_Data_for_FY22[[#This Row],[Department / Specialty]]&\"L\"","v":"AAMCAcademicPublicAssociatePhDVascular SurgeryL"},"Vascular Surgery",3,"AAMC","Academic","Public","Associate","PhD","2021-2022",null,{"$f":"(((AAMC_Raw_Data_for_FY22[[#This Row],[Median]]-AAMC_Raw_Data_for_FY22[[#This Row],[25th]])/25)*5) + AAMC_Raw_Data_for_FY22[[#This Row],[25th]]","v":0},{"$f":"(((AAMC_Raw_Data_for_FY22[[#This Row],[Median]]-AAMC_Raw_Data_for_FY22[[#This Row],[25th]])/25)*10) + AAMC_Raw_Data_for_FY22[[#This Row],[25th]]","v":0},{"$f":"(((AAMC_Raw_Data_for_FY22[[#This Row],[Median]]-AAMC_Raw_Data_for_FY22[[#This Row],[25th]])/25)*15) + AAMC_Raw_Data_for_FY22[[#This Row],[25th]]","v":0},{"$f":"(((AAMC_Raw_Data_for_FY22[[#This Row],[Median]]-AAMC_Raw_Data_for_FY22[[#This Row],[25th]])/25)*20) + AAMC_Raw_Data_for_FY22[[#This Row],[25th]]","v":0},null,{"$f":"(((AAMC_Raw_Data_for_FY22[[#This Row],[75th]]-AAMC_Raw_Data_for_FY22[[#This Row],[Median]])/25)*5) + AAMC_Raw_Data_for_FY22[[#This Row],[Median]]","v":0},{"$f":"(((AAMC_Raw_Data_for_FY22[[#This Row],[75th]]-AAMC_Raw_Data_for_FY22[[#This Row],[Median]])/25)*10) + AAMC_Raw_Data_for_FY22[[#This Row],[Median]]","v":0},{"$f":"(((AAMC_Raw_Data_for_FY22[[#This Row],[75th]]-AAMC_Raw_Data_for_FY22[[#This Row],[Median]])/25)*15) + AAMC_Raw_Data_for_FY22[[#This Row],[Median]]","v":0},{"$f":"(((AAMC_Raw_Data_for_FY22[[#This Row],[75th]]-AAMC_Raw_Data_for_FY22[[#This Row],[Median]])/25)*20) + AAMC_Raw_Data_for_FY22[[#This Row],[Median]]","v":0},null,{"$f":"(((AAMC_Raw_Data_for_FY22[[#This Row],[75th]]-AAMC_Raw_Data_for_FY22[[#This Row],[Median]])/25)*30) + AAMC_Raw_Data_for_FY22[[#This Row],[Median]]","v":0},{"$f":"(((AAMC_Raw_Data_for_FY22[[#This Row],[75th]]-AAMC_Raw_Data_for_FY22[[#This Row],[Median]])/25)*35) + AAMC_Raw_Data_for_FY22[[#This Row],[Median]]","v":0},{"$f":"(((AAMC_Raw_Data_for_FY22[[#This Row],[75th]]-AAMC_Raw_Data_for_FY22[[#This Row],[Median]])/25)*40) + AAMC_Raw_Data_for_FY22[[#This Row],[Median]]","v":0}]
[{"$f":"AAMC_Raw_Data_for_FY22[[#This Row],[Source]]&AAMC_Raw_Data_for_FY22[[#This Row],[Type]]&AAMC_Raw_Data_for_FY22[[#This Row],[School Subset]]&AAMC_Raw_Data_for_FY22[[#This Row],[Rank]]&AAMC_Raw_Data_for_FY22[[#This Row],[Degree]]&AAMC_Raw_Data_for_FY22[[#This Row],[Department / Specialty]]&\"L\"","v":"AAMCAcademicPublicProfessorPhDVascular SurgeryL"},"Vascular Surgery",2,"AAMC","Academic","Public","Professor","PhD","2021-2022",null,{"$f":"(((AAMC_Raw_Data_for_FY22[[#This Row],[Median]]-AAMC_Raw_Data_for_FY22[[#This Row],[25th]])/25)*5) + AAMC_Raw_Data_for_FY22[[#This Row],[25th]]","v":0},{"$f":"(((AAMC_Raw_Data_for_FY22[[#This Row],[Median]]-AAMC_Raw_Data_for_FY22[[#This Row],[25th]])/25)*10) + AAMC_Raw_Data_for_FY22[[#This Row],[25th]]","v":0},{"$f":"(((AAMC_Raw_Data_for_FY22[[#This Row],[Median]]-AAMC_Raw_Data_for_FY22[[#This Row],[25th]])/25)*15) + AAMC_Raw_Data_for_FY22[[#This Row],[25th]]","v":0},{"$f":"(((AAMC_Raw_Data_for_FY22[[#This Row],[Median]]-AAMC_Raw_Data_for_FY22[[#This Row],[25th]])/25)*20) + AAMC_Raw_Data_for_FY22[[#This Row],[25th]]","v":0},null,{"$f":"(((AAMC_Raw_Data_for_FY22[[#This Row],[75th]]-AAMC_Raw_Data_for_FY22[[#This Row],[Median]])/25)*5) + AAMC_Raw_Data_for_FY22[[#This Row],[Median]]","v":0},{"$f":"(((AAMC_Raw_Data_for_FY22[[#This Row],[75th]]-AAMC_Raw_Data_for_FY22[[#This Row],[Median]])/25)*10) + AAMC_Raw_Data_for_FY22[[#This Row],[Median]]","v":0},{"$f":"(((AAMC_Raw_Data_for_FY22[[#This Row],[75th]]-AAMC_Raw_Data_for_FY22[[#This Row],[Median]])/25)*15) + AAMC_Raw_Data_for_FY22[[#This Row],[Median]]","v":0},{"$f":"(((AAMC_Raw_Data_for_FY22[[#This Row],[75th]]-AAMC_Raw_Data_for_FY22[[#This Row],[Median]])/25)*20) + AAMC_Raw_Data_for_FY22[[#This Row],[Median]]","v":0},null,{"$f":"(((AAMC_Raw_Data_for_FY22[[#This Row],[75th]]-AAMC_Raw_Data_for_FY22[[#This Row],[Median]])/25)*30) + AAMC_Raw_Data_for_FY22[[#This Row],[Median]]","v":0},{"$f":"(((AAMC_Raw_Data_for_FY22[[#This Row],[75th]]-AAMC_Raw_Data_for_FY22[[#This Row],[Median]])/25)*35) + AAMC_Raw_Data_for_FY22[[#This Row],[Median]]","v":0},{"$f":"(((AAMC_Raw_Data_for_FY22[[#This Row],[75th]]-AAMC_Raw_Data_for_FY22[[#This Row],[Median]])/25)*40) + AAMC_Raw_Data_for_FY22[[#This Row],[Median]]","v":0}]
[{"$f":"AAMC_Raw_Data_for_FY22[[#This Row],[Source]]&AAMC_Raw_Data_for_FY22[[#This Row],[Type]]&AAMC_Raw_Data_for_FY22[[#This Row],[School Subset]]&AAMC_Raw_Data_for_FY22[[#This Row],[Rank]]&AAMC_Raw_Data_for_FY22[[#This Row],[Degree]]&AAMC_Raw_Data_for_FY22[[#This Row],[Department / Specialty]]&\"L\"","v":"AAMCAcademicPublicInstructorPhDOther SurgeryL"},"Other Surgery",5,"AAMC","Academic","Public","Instructor","PhD","2021-2022",null,{"$f":"(((AAMC_Raw_Data_for_FY22[[#This Row],[Median]]-AAMC_Raw_Data_for_FY22[[#This Row],[25th]])/25)*5) + AAMC_Raw_Data_for_FY22[[#This Row],[25th]]","v":0},{"$f":"(((AAMC_Raw_Data_for_FY22[[#This Row],[Median]]-AAMC_Raw_Data_for_FY22[[#This Row],[25th]])/25)*10) + AAMC_Raw_Data_for_FY22[[#This Row],[25th]]","v":0},{"$f":"(((AAMC_Raw_Data_for_FY22[[#This Row],[Median]]-AAMC_Raw_Data_for_FY22[[#This Row],[25th]])/25)*15) + AAMC_Raw_Data_for_FY22[[#This Row],[25th]]","v":0},{"$f":"(((AAMC_Raw_Data_for_FY22[[#This Row],[Median]]-AAMC_Raw_Data_for_FY22[[#This Row],[25th]])/25)*20) + AAMC_Raw_Data_for_FY22[[#This Row],[25th]]","v":0},null,{"$f":"(((AAMC_Raw_Data_for_FY22[[#This Row],[75th]]-AAMC_Raw_Data_for_FY22[[#This Row],[Median]])/25)*5) + AAMC_Raw_Data_for_FY22[[#This Row],[Median]]","v":0},{"$f":"(((AAMC_Raw_Data_for_FY22[[#This Row],[75th]]-AAMC_Raw_Data_for_FY22[[#This Row],[Median]])/25)*10) + AAMC_Raw_Data_for_FY22[[#This Row],[Median]]","v":0},{"$f":"(((AAMC_Raw_Data_for_FY22[[#This Row],[75th]]-AAMC_Raw_Data_for_FY22[[#This Row],[Median]])/25)*15) + AAMC_Raw_Data_for_FY22[[#This Row],[Median]]","v":0},{"$f":"(((AAMC_Raw_Data_for_FY22[[#This Row],[75th]]-AAMC_Raw_Data_for_FY22[[#This Row],[Median]])/25)*20) + AAMC_Raw_Data_for_FY22[[#This Row],[Median]]","v":0},null,{"$f":"(((AAMC_Raw_Data_for_FY22[[#This Row],[75th]]-AAMC_Raw_Data_for_FY22[[#This Row],[Median]])/25)*30) + AAMC_Raw_Data_for_FY22[[#This Row],[Median]]","v":0},{"$f":"(((AAMC_Raw_Data_for_FY22[[#This Row],[75th]]-AAMC_Raw_Data_for_FY22[[#This Row],[Median]])/25)*35) + AAMC_Raw_Data_for_FY22[[#This Row],[Median]]","v":0},{"$f":"(((AAMC_Raw_Data_for_FY22[[#This Row],[75th]]-AAMC_Raw_Data_for_FY22[[#This Row],[Median]])/25)*40) + AAMC_Raw_Data_for_FY22[[#This Row],[Median]]","v":0}]
[{"$f":"AAMC_Raw_Data_for_FY22[[#This Row],[Source]]&AAMC_Raw_Data_for_FY22[[#This Row],[Type]]&AAMC_Raw_Data_for_FY22[[#This Row],[School Subset]]&AAMC_Raw_Data_for_FY22[[#This Row],[Rank]]&AAMC_Raw_Data_for_FY22[[#This Row],[Degree]]&AAMC_Raw_Data_for_FY22[[#This Row],[Department / Specialty]]&\"L\"","v":"AAMCAcademicPublicAssistantPhDOther SurgeryL"},"Other Surgery",4,"AAMC","Academic","Public","Assistant","PhD","2021-2022",94738,{"$f":"(((AAMC_Raw_Data_for_FY22[[#This Row],[Median]]-AAMC_Raw_Data_for_FY22[[#This Row],[25th]])/25)*5) + AAMC_Raw_Data_for_FY22[[#This Row],[25th]]","v":97948.800000000003},{"$f":"(((AAMC_Raw_Data_for_FY22[[#This Row],[Median]]-AAMC_Raw_Data_for_FY22[[#This Row],[25th]])/25)*10) + AAMC_Raw_Data_for_FY22[[#This Row],[25th]]","v":101159.6},{"$f":"(((AAMC_Raw_Data_for_FY22[[#This Row],[Median]]-AAMC_Raw_Data_for_FY22[[#This Row],[25th]])/25)*15) + AAMC_Raw_Data_for_FY22[[#This Row],[25th]]","v":104370.4},{"$f":"(((AAMC_Raw_Data_for_FY22[[#This Row],[Median]]-AAMC_Raw_Data_for_FY22[[#This Row],[25th]])/25)*20) + AAMC_Raw_Data_for_FY22[[#This Row],[25th]]","v":107581.2},110792,{"$f":"(((AAMC_Raw_Data_for_FY22[[#This Row],[75th]]-AAMC_Raw_Data_for_FY22[[#This Row],[Median]])/25)*5) + AAMC_Raw_Data_for_FY22[[#This Row],[Median]]","v":115121.2},{"$f":"(((AAMC_Raw_Data_for_FY22[[#This Row],[75th]]-AAMC_Raw_Data_for_FY22[[#This Row],[Median]])/25)*10) + AAMC_Raw_Data_for_FY22[[#This Row],[Median]]","v":119450.4},{"$f":"(((AAMC_Raw_Data_for_FY22[[#This Row],[75th]]-AAMC_Raw_Data_for_FY22[[#This Row],[Median]])/25)*15) + AAMC_Raw_Data_for_FY22[[#This Row],[Median]]","v":123779.6},{"$f":"(((AAMC_Raw_Data_for_FY22[[#This Row],[75th]]-AAMC_Raw_Data_for_FY22[[#This Row],[Median]])/25)*20) + AAMC_Raw_Data_for_FY22[[#This Row],[Median]]","v":128108.8},132438,{"$f":"(((AAMC_Raw_Data_for_FY22[[#This Row],[75th]]-AAMC_Raw_Data_for_FY22[[#This Row],[Median]])/25)*30) + AAMC_Raw_Data_for_FY22[[#This Row],[Median]]","v":136767.20000000001},{"$f":"(((AAMC_Raw_Data_for_FY22[[#This Row],[75th]]-AAMC_Raw_Data_for_FY22[[#This Row],[Median]])/25)*35) + AAMC_Raw_Data_for_FY22[[#This Row],[Median]]","v":141096.4},{"$f":"(((AAMC_Raw_Data_for_FY22[[#This Row],[75th]]-AAMC_Raw_Data_for_FY22[[#This Row],[Median]])/25)*40) + AAMC_Raw_Data_for_FY22[[#This Row],[Median]]","v":145425.60000000001}]
[{"$f":"AAMC_Raw_Data_for_FY22[[#This Row],[Source]]&AAMC_Raw_Data_for_FY22[[#This Row],[Type]]&AAMC_Raw_Data_for_FY22[[#This Row],[School Subset]]&AAMC_Raw_Data_for_FY22[[#This Row],[Rank]]&AAMC_Raw_Data_for_FY22[[#This Row],[Degree]]&AAMC_Raw_Data_for_FY22[[#This Row],[Department / Specialty]]&\"L\"","v":"AAMCAcademicPublicAssociatePhDOther SurgeryL"},"Other Surgery",3,"AAMC","Academic","Public","Associate","PhD","2021-2022",128100,{"$f":"(((AAMC_Raw_Data_for_FY22[[#This Row],[Median]]-AAMC_Raw_Data_for_FY22[[#This Row],[25th]])/25)*5) + AAMC_Raw_Data_for_FY22[[#This Row],[25th]]","v":129655.6},{"$f":"(((AAMC_Raw_Data_for_FY22[[#This Row],[Median]]-AAMC_Raw_Data_for_FY22[[#This Row],[25th]])/25)*10) + AAMC_Raw_Data_for_FY22[[#This Row],[25th]]","v":131211.20000000001},{"$f":"(((AAMC_Raw_Data_for_FY22[[#This Row],[Median]]-AAMC_Raw_Data_for_FY22[[#This Row],[25th]])/25)*15) + AAMC_Raw_Data_for_FY22[[#This Row],[25th]]","v":132766.79999999999},{"$f":"(((AAMC_Raw_Data_for_FY22[[#This Row],[Median]]-AAMC_Raw_Data_for_FY22[[#This Row],[25th]])/25)*20) + AAMC_Raw_Data_for_FY22[[#This Row],[25th]]","v":134322.4},135878,{"$f":"(((AAMC_Raw_Data_for_FY22[[#This Row],[75th]]-AAMC_Raw_Data_for_FY22[[#This Row],[Median]])/25)*5) + AAMC_Raw_Data_for_FY22[[#This Row],[Median]]","v":140652.4},{"$f":"(((AAMC_Raw_Data_for_FY22[[#This Row],[75th]]-AAMC_Raw_Data_for_FY22[[#This Row],[Median]])/25)*10) + AAMC_Raw_Data_for_FY22[[#This Row],[Median]]","v":145426.79999999999},{"$f":"(((AAMC_Raw_Data_for_FY22[[#This Row],[75th]]-AAMC_Raw_Data_for_FY22[[#This Row],[Median]])/25)*15) + AAMC_Raw_Data_for_FY22[[#This Row],[Median]]","v":150201.20000000001},{"$f":"(((AAMC_Raw_Data_for_FY22[[#This Row],[75th]]-AAMC_Raw_Data_for_FY22[[#This Row],[Median]])/25)*20) + AAMC_Raw_Data_for_FY22[[#This Row],[Median]]","v":154975.6},159750,{"$f":"(((AAMC_Raw_Data_for_FY22[[#This Row],[75th]]-AAMC_Raw_Data_for_FY22[[#This Row],[Median]])/25)*30) + AAMC_Raw_Data_for_FY22[[#This Row],[Median]]","v":164524.4},{"$f":"(((AAMC_Raw_Data_for_FY22[[#This Row],[75th]]-AAMC_Raw_Data_for_FY22[[#This Row],[Median]])/25)*35) + AAMC_Raw_Data_for_FY22[[#This Row],[Median]]","v":169298.8},{"$f":"(((AAMC_Raw_Data_for_FY22[[#This Row],[75th]]-AAMC_Raw_Data_for_FY22[[#This Row],[Median]])/25)*40) + AAMC_Raw_Data_for_FY22[[#This Row],[Median]]","v":174073.2}]
[{"$f":"AAMC_Raw_Data_for_FY22[[#This Row],[Source]]&AAMC_Raw_Data_for_FY22[[#This Row],[Type]]&AAMC_Raw_Data_for_FY22[[#This Row],[School Subset]]&AAMC_Raw_Data_for_FY22[[#This Row],[Rank]]&AAMC_Raw_Data_for_FY22[[#This Row],[Degree]]&AAMC_Raw_Data_for_FY22[[#This Row],[Department / Specialty]]&\"L\"","v":"AAMCAcademicPublicProfessorPhDOther SurgeryL"},"Other Surgery",2,"AAMC","Academic","Public","Professor","PhD","2021-2022",204450,{"$f":"(((AAMC_Raw_Data_for_FY22[[#This Row],[Median]]-AAMC_Raw_Data_for_FY22[[#This Row],[25th]])/25)*5) + AAMC_Raw_Data_for_FY22[[#This Row],[25th]]","v":211573},{"$f":"(((AAMC_Raw_Data_for_FY22[[#This Row],[Median]]-AAMC_Raw_Data_for_FY22[[#This Row],[25th]])/25)*10) + AAMC_Raw_Data_for_FY22[[#This Row],[25th]]","v":218696},{"$f":"(((AAMC_Raw_Data_for_FY22[[#This Row],[Median]]-AAMC_Raw_Data_for_FY22[[#This Row],[25th]])/25)*15) + AAMC_Raw_Data_for_FY22[[#This Row],[25th]]","v":225819},{"$f":"(((AAMC_Raw_Data_for_FY22[[#This Row],[Median]]-AAMC_Raw_Data_for_FY22[[#This Row],[25th]])/25)*20) + AAMC_Raw_Data_for_FY22[[#This Row],[25th]]","v":232942},240065,{"$f":"(((AAMC_Raw_Data_for_FY22[[#This Row],[75th]]-AAMC_Raw_Data_for_FY22[[#This Row],[Median]])/25)*5) + AAMC_Raw_Data_for_FY22[[#This Row],[Median]]","v":245802.8},{"$f":"(((AAMC_Raw_Data_for_FY22[[#This Row],[75th]]-AAMC_Raw_Data_for_FY22[[#This Row],[Median]])/25)*10) + AAMC_Raw_Data_for_FY22[[#This Row],[Median]]","v":251540.6},{"$f":"(((AAMC_Raw_Data_for_FY22[[#This Row],[75th]]-AAMC_Raw_Data_for_FY22[[#This Row],[Median]])/25)*15) + AAMC_Raw_Data_for_FY22[[#This Row],[Median]]","v":257278.4},{"$f":"(((AAMC_Raw_Data_for_FY22[[#This Row],[75th]]-AAMC_Raw_Data_for_FY22[[#This Row],[Median]])/25)*20) + AAMC_Raw_Data_for_FY22[[#This Row],[Median]]","v":263016.2},268754,{"$f":"(((AAMC_Raw_Data_for_FY22[[#This Row],[75th]]-AAMC_Raw_Data_for_FY22[[#This Row],[Median]])/25)*30) + AAMC_Raw_Data_for_FY22[[#This Row],[Median]]","v":274491.8},{"$f":"(((AAMC_Raw_Data_for_FY22[[#This Row],[75th]]-AAMC_Raw_Data_for_FY22[[#This Row],[Median]])/25)*35) + AAMC_Raw_Data_for_FY22[[#This Row],[Median]]","v":280229.59999999998},{"$f":"(((AAMC_Raw_Data_for_FY22[[#This Row],[75th]]-AAMC_Raw_Data_for_FY22[[#This Row],[Median]])/25)*40) + AAMC_Raw_Data_for_FY22[[#This Row],[Median]]","v":285967.40000000002}]
[{"$f":"AAMC_Raw_Data_for_FY22[[#This Row],[Source]]&AAMC_Raw_Data_for_FY22[[#This Row],[Type]]&AAMC_Raw_Data_for_FY22[[#This Row],[School Subset]]&AAMC_Raw_Data_for_FY22[[#This Row],[Rank]]&AAMC_Raw_Data_for_FY22[[#This Row],[Degree]]&AAMC_Raw_Data_for_FY22[[#This Row],[Department / Specialty]]&\"L\"","v":"AAMCAcademicPublicChiefPhDOther SurgeryL"},"Other Surgery",6,"AAMC","Academic","Public","Chief","PhD","2021-2022",null,{"$f":"(((AAMC_Raw_Data_for_FY22[[#This Row],[Median]]-AAMC_Raw_Data_for_FY22[[#This Row],[25th]])/25)*5) + AAMC_Raw_Data_for_FY22[[#This Row],[25th]]","v":0},{"$f":"(((AAMC_Raw_Data_for_FY22[[#This Row],[Median]]-AAMC_Raw_Data_for_FY22[[#This Row],[25th]])/25)*10) + AAMC_Raw_Data_for_FY22[[#This Row],[25th]]","v":0},{"$f":"(((AAMC_Raw_Data_for_FY22[[#This Row],[Median]]-AAMC_Raw_Data_for_FY22[[#This Row],[25th]])/25)*15) + AAMC_Raw_Data_for_FY22[[#This Row],[25th]]","v":0},{"$f":"(((AAMC_Raw_Data_for_FY22[[#This Row],[Median]]-AAMC_Raw_Data_for_FY22[[#This Row],[25th]])/25)*20) + AAMC_Raw_Data_for_FY22[[#This Row],[25th]]","v":0},null,{"$f":"(((AAMC_Raw_Data_for_FY22[[#This Row],[75th]]-AAMC_Raw_Data_for_FY22[[#This Row],[Median]])/25)*5) + AAMC_Raw_Data_for_FY22[[#This Row],[Median]]","v":0},{"$f":"(((AAMC_Raw_Data_for_FY22[[#This Row],[75th]]-AAMC_Raw_Data_for_FY22[[#This Row],[Median]])/25)*10) + AAMC_Raw_Data_for_FY22[[#This Row],[Median]]","v":0},{"$f":"(((AAMC_Raw_Data_for_FY22[[#This Row],[75th]]-AAMC_Raw_Data_for_FY22[[#This Row],[Median]])/25)*15) + AAMC_Raw_Data_for_FY22[[#This Row],[Median]]","v":0},{"$f":"(((AAMC_Raw_Data_for_FY22[[#This Row],[75th]]-AAMC_Raw_Data_for_FY22[[#This Row],[Median]])/25)*20) + AAMC_Raw_Data_for_FY22[[#This Row],[Median]]","v":0},null,{"$f":"(((AAMC_Raw_Data_for_FY22[[#This Row],[75th]]-AAMC_Raw_Data_for_FY22[[#This Row],[Median]])/25)*30) + AAMC_Raw_Data_for_FY22[[#This Row],[Median]]","v":0},{"$f":"(((AAMC_Raw_Data_for_FY22[[#This Row],[75th]]-AAMC_Raw_Data_for_FY22[[#This Row],[Median]])/25)*35) + AAMC_Raw_Data_for_FY22[[#This Row],[Median]]","v":0},{"$f":"(((AAMC_Raw_Data_for_FY22[[#This Row],[75th]]-AAMC_Raw_Data_for_FY22[[#This Row],[Median]])/25)*40) + AAMC_Raw_Data_for_FY22[[#This Row],[Median]]","v":0}]
[{"$f":"AAMC_Raw_Data_for_FY22[[#This Row],[Source]]&AAMC_Raw_Data_for_FY22[[#This Row],[Type]]&AAMC_Raw_Data_for_FY22[[#This Row],[School Subset]]&AAMC_Raw_Data_for_FY22[[#This Row],[Rank]]&AAMC_Raw_Data_for_FY22[[#This Row],[Degree]]&AAMC_Raw_Data_for_FY22[[#This Row],[Department / Specialty]]&\"L\"","v":"AAMCAcademicPublicInstructorPhDOther Clinical Science TotalL"},"Other Clinical Science Total",5,"AAMC","Academic","Public","Instructor","PhD","2021-2022",74246,{"$f":"(((AAMC_Raw_Data_for_FY22[[#This Row],[Median]]-AAMC_Raw_Data_for_FY22[[#This Row],[25th]])/25)*5) + AAMC_Raw_Data_for_FY22[[#This Row],[25th]]","v":76496.800000000003},{"$f":"(((AAMC_Raw_Data_for_FY22[[#This Row],[Median]]-AAMC_Raw_Data_for_FY22[[#This Row],[25th]])/25)*10) + AAMC_Raw_Data_for_FY22[[#This Row],[25th]]","v":78747.600000000006},{"$f":"(((AAMC_Raw_Data_for_FY22[[#This Row],[Median]]-AAMC_Raw_Data_for_FY22[[#This Row],[25th]])/25)*15) + AAMC_Raw_Data_for_FY22[[#This Row],[25th]]","v":80998.399999999994},{"$f":"(((AAMC_Raw_Data_for_FY22[[#This Row],[Median]]-AAMC_Raw_Data_for_FY22[[#This Row],[25th]])/25)*20) + AAMC_Raw_Data_for_FY22[[#This Row],[25th]]","v":83249.2},85500,{"$f":"(((AAMC_Raw_Data_for_FY22[[#This Row],[75th]]-AAMC_Raw_Data_for_FY22[[#This Row],[Median]])/25)*5) + AAMC_Raw_Data_for_FY22[[#This Row],[Median]]","v":90703},{"$f":"(((AAMC_Raw_Data_for_FY22[[#This Row],[75th]]-AAMC_Raw_Data_for_FY22[[#This Row],[Median]])/25)*10) + AAMC_Raw_Data_for_FY22[[#This Row],[Median]]","v":95906},{"$f":"(((AAMC_Raw_Data_for_FY22[[#This Row],[75th]]-AAMC_Raw_Data_for_FY22[[#This Row],[Median]])/25)*15) + AAMC_Raw_Data_for_FY22[[#This Row],[Median]]","v":101109},{"$f":"(((AAMC_Raw_Data_for_FY22[[#This Row],[75th]]-AAMC_Raw_Data_for_FY22[[#This Row],[Median]])/25)*20) + AAMC_Raw_Data_for_FY22[[#This Row],[Median]]","v":106312},111515,{"$f":"(((AAMC_Raw_Data_for_FY22[[#This Row],[75th]]-AAMC_Raw_Data_for_FY22[[#This Row],[Median]])/25)*30) + AAMC_Raw_Data_for_FY22[[#This Row],[Median]]","v":116718},{"$f":"(((AAMC_Raw_Data_for_FY22[[#This Row],[75th]]-AAMC_Raw_Data_for_FY22[[#This Row],[Median]])/25)*35) + AAMC_Raw_Data_for_FY22[[#This Row],[Median]]","v":121921},{"$f":"(((AAMC_Raw_Data_for_FY22[[#This Row],[75th]]-AAMC_Raw_Data_for_FY22[[#This Row],[Median]])/25)*40) + AAMC_Raw_Data_for_FY22[[#This Row],[Median]]","v":127124}]
[{"$f":"AAMC_Raw_Data_for_FY22[[#This Row],[Source]]&AAMC_Raw_Data_for_FY22[[#This Row],[Type]]&AAMC_Raw_Data_for_FY22[[#This Row],[School Subset]]&AAMC_Raw_Data_for_FY22[[#This Row],[Rank]]&AAMC_Raw_Data_for_FY22[[#This Row],[Degree]]&AAMC_Raw_Data_for_FY22[[#This Row],[Department / Specialty]]&\"L\"","v":"AAMCAcademicPublicAssistantPhDOther Clinical Science TotalL"},"Other Clinical Science Total",4,"AAMC","Academic","Public","Assistant","PhD","2021-2022",96126,{"$f":"(((AAMC_Raw_Data_for_FY22[[#This Row],[Median]]-AAMC_Raw_Data_for_FY22[[#This Row],[25th]])/25)*5) + AAMC_Raw_Data_for_FY22[[#This Row],[25th]]","v":99055.6},{"$f":"(((AAMC_Raw_Data_for_FY22[[#This Row],[Median]]-AAMC_Raw_Data_for_FY22[[#This Row],[25th]])/25)*10) + AAMC_Raw_Data_for_FY22[[#This Row],[25th]]","v":101985.2},{"$f":"(((AAMC_Raw_Data_for_FY22[[#This Row],[Median]]-AAMC_Raw_Data_for_FY22[[#This Row],[25th]])/25)*15) + AAMC_Raw_Data_for_FY22[[#This Row],[25th]]","v":104914.8},{"$f":"(((AAMC_Raw_Data_for_FY22[[#This Row],[Median]]-AAMC_Raw_Data_for_FY22[[#This Row],[25th]])/25)*20) + AAMC_Raw_Data_for_FY22[[#This Row],[25th]]","v":107844.4},110774,{"$f":"(((AAMC_Raw_Data_for_FY22[[#This Row],[75th]]-AAMC_Raw_Data_for_FY22[[#This Row],[Median]])/25)*5) + AAMC_Raw_Data_for_FY22[[#This Row],[Median]]","v":114619.2},{"$f":"(((AAMC_Raw_Data_for_FY22[[#This Row],[75th]]-AAMC_Raw_Data_for_FY22[[#This Row],[Median]])/25)*10) + AAMC_Raw_Data_for_FY22[[#This Row],[Median]]","v":118464.4},{"$f":"(((AAMC_Raw_Data_for_FY22[[#This Row],[75th]]-AAMC_Raw_Data_for_FY22[[#This Row],[Median]])/25)*15) + AAMC_Raw_Data_for_FY22[[#This Row],[Median]]","v":122309.6},{"$f":"(((AAMC_Raw_Data_for_FY22[[#This Row],[75th]]-AAMC_Raw_Data_for_FY22[[#This Row],[Median]])/25)*20) + AAMC_Raw_Data_for_FY22[[#This Row],[Median]]","v":126154.8},130000,{"$f":"(((AAMC_Raw_Data_for_FY22[[#This Row],[75th]]-AAMC_Raw_Data_for_FY22[[#This Row],[Median]])/25)*30) + AAMC_Raw_Data_for_FY22[[#This Row],[Median]]","v":133845.20000000001},{"$f":"(((AAMC_Raw_Data_for_FY22[[#This Row],[75th]]-AAMC_Raw_Data_for_FY22[[#This Row],[Median]])/25)*35) + AAMC_Raw_Data_for_FY22[[#This Row],[Median]]","v":137690.4},{"$f":"(((AAMC_Raw_Data_for_FY22[[#This Row],[75th]]-AAMC_Raw_Data_for_FY22[[#This Row],[Median]])/25)*40) + AAMC_Raw_Data_for_FY22[[#This Row],[Median]]","v":141535.6}]
[{"$f":"AAMC_Raw_Data_for_FY22[[#This Row],[Source]]&AAMC_Raw_Data_for_FY22[[#This Row],[Type]]&AAMC_Raw_Data_for_FY22[[#This Row],[School Subset]]&AAMC_Raw_Data_for_FY22[[#This Row],[Rank]]&AAMC_Raw_Data_for_FY22[[#This Row],[Degree]]&AAMC_Raw_Data_for_FY22[[#This Row],[Department / Specialty]]&\"L\"","v":"AAMCAcademicPublicAssociatePhDOther Clinical Science TotalL"},"Other Clinical Science Total",3,"AAMC","Academic","Public","Associate","PhD","2021-2022",117840,{"$f":"(((AAMC_Raw_Data_for_FY22[[#This Row],[Median]]-AAMC_Raw_Data_for_FY22[[#This Row],[25th]])/25)*5) + AAMC_Raw_Data_for_FY22[[#This Row],[25th]]","v":122434.6},{"$f":"(((AAMC_Raw_Data_for_FY22[[#This Row],[Median]]-AAMC_Raw_Data_for_FY22[[#This Row],[25th]])/25)*10) + AAMC_Raw_Data_for_FY22[[#This Row],[25th]]","v":127029.2},{"$f":"(((AAMC_Raw_Data_for_FY22[[#This Row],[Median]]-AAMC_Raw_Data_for_FY22[[#This Row],[25th]])/25)*15) + AAMC_Raw_Data_for_FY22[[#This Row],[25th]]","v":131623.79999999999},{"$f":"(((AAMC_Raw_Data_for_FY22[[#This Row],[Median]]-AAMC_Raw_Data_for_FY22[[#This Row],[25th]])/25)*20) + AAMC_Raw_Data_for_FY22[[#This Row],[25th]]","v":136218.4},140813,{"$f":"(((AAMC_Raw_Data_for_FY22[[#This Row],[75th]]-AAMC_Raw_Data_for_FY22[[#This Row],[Median]])/25)*5) + AAMC_Raw_Data_for_FY22[[#This Row],[Median]]","v":144830.39999999999},{"$f":"(((AAMC_Raw_Data_for_FY22[[#This Row],[75th]]-AAMC_Raw_Data_for_FY22[[#This Row],[Median]])/25)*10) + AAMC_Raw_Data_for_FY22[[#This Row],[Median]]","v":148847.79999999999},{"$f":"(((AAMC_Raw_Data_for_FY22[[#This Row],[75th]]-AAMC_Raw_Data_for_FY22[[#This Row],[Median]])/25)*15) + AAMC_Raw_Data_for_FY22[[#This Row],[Median]]","v":152865.20000000001},{"$f":"(((AAMC_Raw_Data_for_FY22[[#This Row],[75th]]-AAMC_Raw_Data_for_FY22[[#This Row],[Median]])/25)*20) + AAMC_Raw_Data_for_FY22[[#This Row],[Median]]","v":156882.6},160900,{"$f":"(((AAMC_Raw_Data_for_FY22[[#This Row],[75th]]-AAMC_Raw_Data_for_FY22[[#This Row],[Median]])/25)*30) + AAMC_Raw_Data_for_FY22[[#This Row],[Median]]","v":164917.4},{"$f":"(((AAMC_Raw_Data_for_FY22[[#This Row],[75th]]-AAMC_Raw_Data_for_FY22[[#This Row],[Median]])/25)*35) + AAMC_Raw_Data_for_FY22[[#This Row],[Median]]","v":168934.8},{"$f":"(((AAMC_Raw_Data_for_FY22[[#This Row],[75th]]-AAMC_Raw_Data_for_FY22[[#This Row],[Median]])/25)*40) + AAMC_Raw_Data_for_FY22[[#This Row],[Median]]","v":172952.2}]
[{"$f":"AAMC_Raw_Data_for_FY22[[#This Row],[Source]]&AAMC_Raw_Data_for_FY22[[#This Row],[Type]]&AAMC_Raw_Data_for_FY22[[#This Row],[School Subset]]&AAMC_Raw_Data_for_FY22[[#This Row],[Rank]]&AAMC_Raw_Data_for_FY22[[#This Row],[Degree]]&AAMC_Raw_Data_for_FY22[[#This Row],[Department / Specialty]]&\"L\"","v":"AAMCAcademicPublicProfessorPhDOther Clinical Science TotalL"},"Other Clinical Science Total",2,"AAMC","Academic","Public","Professor","PhD","2021-2022",169555,{"$f":"(((AAMC_Raw_Data_for_FY22[[#This Row],[Median]]-AAMC_Raw_Data_for_FY22[[#This Row],[25th]])/25)*5) + AAMC_Raw_Data_for_FY22[[#This Row],[25th]]","v":176392.4},{"$f":"(((AAMC_Raw_Data_for_FY22[[#This Row],[Median]]-AAMC_Raw_Data_for_FY22[[#This Row],[25th]])/25)*10) + AAMC_Raw_Data_for_FY22[[#This Row],[25th]]","v":183229.8},{"$f":"(((AAMC_Raw_Data_for_FY22[[#This Row],[Median]]-AAMC_Raw_Data_for_FY22[[#This Row],[25th]])/25)*15) + AAMC_Raw_Data_for_FY22[[#This Row],[25th]]","v":190067.20000000001},{"$f":"(((AAMC_Raw_Data_for_FY22[[#This Row],[Median]]-AAMC_Raw_Data_for_FY22[[#This Row],[25th]])/25)*20) + AAMC_Raw_Data_for_FY22[[#This Row],[25th]]","v":196904.6},203742,{"$f":"(((AAMC_Raw_Data_for_FY22[[#This Row],[75th]]-AAMC_Raw_Data_for_FY22[[#This Row],[Median]])/25)*5) + AAMC_Raw_Data_for_FY22[[#This Row],[Median]]","v":212292},{"$f":"(((AAMC_Raw_Data_for_FY22[[#This Row],[75th]]-AAMC_Raw_Data_for_FY22[[#This Row],[Median]])/25)*10) + AAMC_Raw_Data_for_FY22[[#This Row],[Median]]","v":220842},{"$f":"(((AAMC_Raw_Data_for_FY22[[#This Row],[75th]]-AAMC_Raw_Data_for_FY22[[#This Row],[Median]])/25)*15) + AAMC_Raw_Data_for_FY22[[#This Row],[Median]]","v":229392},{"$f":"(((AAMC_Raw_Data_for_FY22[[#This Row],[75th]]-AAMC_Raw_Data_for_FY22[[#This Row],[Median]])/25)*20) + AAMC_Raw_Data_for_FY22[[#This Row],[Median]]","v":237942},246492,{"$f":"(((AAMC_Raw_Data_for_FY22[[#This Row],[75th]]-AAMC_Raw_Data_for_FY22[[#This Row],[Median]])/25)*30) + AAMC_Raw_Data_for_FY22[[#This Row],[Median]]","v":255042},{"$f":"(((AAMC_Raw_Data_for_FY22[[#This Row],[75th]]-AAMC_Raw_Data_for_FY22[[#This Row],[Median]])/25)*35) + AAMC_Raw_Data_for_FY22[[#This Row],[Median]]","v":263592},{"$f":"(((AAMC_Raw_Data_for_FY22[[#This Row],[75th]]-AAMC_Raw_Data_for_FY22[[#This Row],[Median]])/25)*40) + AAMC_Raw_Data_for_FY22[[#This Row],[Median]]","v":272142}]
[{"$f":"AAMC_Raw_Data_for_FY22[[#This Row],[Source]]&AAMC_Raw_Data_for_FY22[[#This Row],[Type]]&AAMC_Raw_Data_for_FY22[[#This Row],[School Subset]]&AAMC_Raw_Data_for_FY22[[#This Row],[Rank]]&AAMC_Raw_Data_for_FY22[[#This Row],[Degree]]&AAMC_Raw_Data_for_FY22[[#This Row],[Department / Specialty]]&\"L\"","v":"AAMCAcademicPublicChiefPhDOther Clinical Science TotalL"},"Other Clinical Science Total",6,"AAMC","Academic","Public","Chief","PhD","2021-2022",183705,{"$f":"(((AAMC_Raw_Data_for_FY22[[#This Row],[Median]]-AAMC_Raw_Data_for_FY22[[#This Row],[25th]])/25)*5) + AAMC_Raw_Data_for_FY22[[#This Row],[25th]]","v":188964},{"$f":"(((AAMC_Raw_Data_for_FY22[[#This Row],[Median]]-AAMC_Raw_Data_for_FY22[[#This Row],[25th]])/25)*10) + AAMC_Raw_Data_for_FY22[[#This Row],[25th]]","v":194223},{"$f":"(((AAMC_Raw_Data_for_FY22[[#This Row],[Median]]-AAMC_Raw_Data_for_FY22[[#This Row],[25th]])/25)*15) + AAMC_Raw_Data_for_FY22[[#This Row],[25th]]","v":199482},{"$f":"(((AAMC_Raw_Data_for_FY22[[#This Row],[Median]]-AAMC_Raw_Data_for_FY22[[#This Row],[25th]])/25)*20) + AAMC_Raw_Data_for_FY22[[#This Row],[25th]]","v":204741},210000,{"$f":"(((AAMC_Raw_Data_for_FY22[[#This Row],[75th]]-AAMC_Raw_Data_for_FY22[[#This Row],[Median]])/25)*5) + AAMC_Raw_Data_for_FY22[[#This Row],[Median]]","v":225200},{"$f":"(((AAMC_Raw_Data_for_FY22[[#This Row],[75th]]-AAMC_Raw_Data_for_FY22[[#This Row],[Median]])/25)*10) + AAMC_Raw_Data_for_FY22[[#This Row],[Median]]","v":240400},{"$f":"(((AAMC_Raw_Data_for_FY22[[#This Row],[75th]]-AAMC_Raw_Data_for_FY22[[#This Row],[Median]])/25)*15) + AAMC_Raw_Data_for_FY22[[#This Row],[Median]]","v":255600},{"$f":"(((AAMC_Raw_Data_for_FY22[[#This Row],[75th]]-AAMC_Raw_Data_for_FY22[[#This Row],[Median]])/25)*20) + AAMC_Raw_Data_for_FY22[[#This Row],[Median]]","v":270800},286000,{"$f":"(((AAMC_Raw_Data_for_FY22[[#This Row],[75th]]-AAMC_Raw_Data_for_FY22[[#This Row],[Median]])/25)*30) + AAMC_Raw_Data_for_FY22[[#This Row],[Median]]","v":301200},{"$f":"(((AAMC_Raw_Data_for_FY22[[#This Row],[75th]]-AAMC_Raw_Data_for_FY22[[#This Row],[Median]])/25)*35) + AAMC_Raw_Data_for_FY22[[#This Row],[Median]]","v":316400},{"$f":"(((AAMC_Raw_Data_for_FY22[[#This Row],[75th]]-AAMC_Raw_Data_for_FY22[[#This Row],[Median]])/25)*40) + AAMC_Raw_Data_for_FY22[[#This Row],[Median]]","v":331600}]
[{"$f":"AAMC_Raw_Data_for_FY22[[#This Row],[Source]]&AAMC_Raw_Data_for_FY22[[#This Row],[Type]]&AAMC_Raw_Data_for_FY22[[#This Row],[School Subset]]&AAMC_Raw_Data_for_FY22[[#This Row],[Rank]]&AAMC_Raw_Data_for_FY22[[#This Row],[Degree]]&AAMC_Raw_Data_for_FY22[[#This Row],[Department / Specialty]]&\"L\"","v":"AAMCAcademicPublicChairPhDOther Clinical Science TotalL"},"Other Clinical Science Total",1,"AAMC","Academic","Public","Chair","PhD","2021-2022",203934,{"$f":"(((AAMC_Raw_Data_for_FY22[[#This Row],[Median]]-AAMC_Raw_Data_for_FY22[[#This Row],[25th]])/25)*5) + AAMC_Raw_Data_for_FY22[[#This Row],[25th]]","v":207097.4},{"$f":"(((AAMC_Raw_Data_for_FY22[[#This Row],[Median]]-AAMC_Raw_Data_for_FY22[[#This Row],[25th]])/25)*10) + AAMC_Raw_Data_for_FY22[[#This Row],[25th]]","v":210260.8},{"$f":"(((AAMC_Raw_Data_for_FY22[[#This Row],[Median]]-AAMC_Raw_Data_for_FY22[[#This Row],[25th]])/25)*15) + AAMC_Raw_Data_for_FY22[[#This Row],[25th]]","v":213424.2},{"$f":"(((AAMC_Raw_Data_for_FY22[[#This Row],[Median]]-AAMC_Raw_Data_for_FY22[[#This Row],[25th]])/25)*20) + AAMC_Raw_Data_for_FY22[[#This Row],[25th]]","v":216587.6},219751,{"$f":"(((AAMC_Raw_Data_for_FY22[[#This Row],[75th]]-AAMC_Raw_Data_for_FY22[[#This Row],[Median]])/25)*5) + AAMC_Raw_Data_for_FY22[[#This Row],[Median]]","v":235744.2},{"$f":"(((AAMC_Raw_Data_for_FY22[[#This Row],[75th]]-AAMC_Raw_Data_for_FY22[[#This Row],[Median]])/25)*10) + AAMC_Raw_Data_for_FY22[[#This Row],[Median]]","v":251737.4},{"$f":"(((AAMC_Raw_Data_for_FY22[[#This Row],[75th]]-AAMC_Raw_Data_for_FY22[[#This Row],[Median]])/25)*15) + AAMC_Raw_Data_for_FY22[[#This Row],[Median]]","v":267730.59999999998},{"$f":"(((AAMC_Raw_Data_for_FY22[[#This Row],[75th]]-AAMC_Raw_Data_for_FY22[[#This Row],[Median]])/25)*20) + AAMC_Raw_Data_for_FY22[[#This Row],[Median]]","v":283723.8},299717,{"$f":"(((AAMC_Raw_Data_for_FY22[[#This Row],[75th]]-AAMC_Raw_Data_for_FY22[[#This Row],[Median]])/25)*30) + AAMC_Raw_Data_for_FY22[[#This Row],[Median]]","v":315710.2},{"$f":"(((AAMC_Raw_Data_for_FY22[[#This Row],[75th]]-AAMC_Raw_Data_for_FY22[[#This Row],[Median]])/25)*35) + AAMC_Raw_Data_for_FY22[[#This Row],[Median]]","v":331703.40000000002},{"$f":"(((AAMC_Raw_Data_for_FY22[[#This Row],[75th]]-AAMC_Raw_Data_for_FY22[[#This Row],[Median]])/25)*40) + AAMC_Raw_Data_for_FY22[[#This Row],[Median]]","v":347696.6}]
[{"$f":"AAMC_Raw_Data_for_FY22[[#This Row],[Source]]&AAMC_Raw_Data_for_FY22[[#This Row],[Type]]&AAMC_Raw_Data_for_FY22[[#This Row],[School Subset]]&AAMC_Raw_Data_for_FY22[[#This Row],[Rank]]&AAMC_Raw_Data_for_FY22[[#This Row],[Degree]]&AAMC_Raw_Data_for_FY22[[#This Row],[Department / Specialty]]&\"L\"","v":"AAMCAcademicPublicInstructorPhDCommunity HealthL"},"Community Health",5,"AAMC","Academic","Public","Instructor","PhD","2021-2022",null,{"$f":"(((AAMC_Raw_Data_for_FY22[[#This Row],[Median]]-AAMC_Raw_Data_for_FY22[[#This Row],[25th]])/25)*5) + AAMC_Raw_Data_for_FY22[[#This Row],[25th]]","v":0},{"$f":"(((AAMC_Raw_Data_for_FY22[[#This Row],[Median]]-AAMC_Raw_Data_for_FY22[[#This Row],[25th]])/25)*10) + AAMC_Raw_Data_for_FY22[[#This Row],[25th]]","v":0},{"$f":"(((AAMC_Raw_Data_for_FY22[[#This Row],[Median]]-AAMC_Raw_Data_for_FY22[[#This Row],[25th]])/25)*15) + AAMC_Raw_Data_for_FY22[[#This Row],[25th]]","v":0},{"$f":"(((AAMC_Raw_Data_for_FY22[[#This Row],[Median]]-AAMC_Raw_Data_for_FY22[[#This Row],[25th]])/25)*20) + AAMC_Raw_Data_for_FY22[[#This Row],[25th]]","v":0},null,{"$f":"(((AAMC_Raw_Data_for_FY22[[#This Row],[75th]]-AAMC_Raw_Data_for_FY22[[#This Row],[Median]])/25)*5) + AAMC_Raw_Data_for_FY22[[#This Row],[Median]]","v":0},{"$f":"(((AAMC_Raw_Data_for_FY22[[#This Row],[75th]]-AAMC_Raw_Data_for_FY22[[#This Row],[Median]])/25)*10) + AAMC_Raw_Data_for_FY22[[#This Row],[Median]]","v":0},{"$f":"(((AAMC_Raw_Data_for_FY22[[#This Row],[75th]]-AAMC_Raw_Data_for_FY22[[#This Row],[Median]])/25)*15) + AAMC_Raw_Data_for_FY22[[#This Row],[Median]]","v":0},{"$f":"(((AAMC_Raw_Data_for_FY22[[#This Row],[75th]]-AAMC_Raw_Data_for_FY22[[#This Row],[Median]])/25)*20) + AAMC_Raw_Data_for_FY22[[#This Row],[Median]]","v":0},null,{"$f":"(((AAMC_Raw_Data_for_FY22[[#This Row],[75th]]-AAMC_Raw_Data_for_FY22[[#This Row],[Median]])/25)*30) + AAMC_Raw_Data_for_FY22[[#This Row],[Median]]","v":0},{"$f":"(((AAMC_Raw_Data_for_FY22[[#This Row],[75th]]-AAMC_Raw_Data_for_FY22[[#This Row],[Median]])/25)*35) + AAMC_Raw_Data_for_FY22[[#This Row],[Median]]","v":0},{"$f":"(((AAMC_Raw_Data_for_FY22[[#This Row],[75th]]-AAMC_Raw_Data_for_FY22[[#This Row],[Median]])/25)*40) + AAMC_Raw_Data_for_FY22[[#This Row],[Median]]","v":0}]
[{"$f":"AAMC_Raw_Data_for_FY22[[#This Row],[Source]]&AAMC_Raw_Data_for_FY22[[#This Row],[Type]]&AAMC_Raw_Data_for_FY22[[#This Row],[School Subset]]&AAMC_Raw_Data_for_FY22[[#This Row],[Rank]]&AAMC_Raw_Data_for_FY22[[#This Row],[Degree]]&AAMC_Raw_Data_for_FY22[[#This Row],[Department / Specialty]]&\"L\"","v":"AAMCAcademicPublicAssistantPhDCommunity HealthL"},"Community Health",4,"AAMC","Academic","Public","Assistant","PhD","2021-2022",97638,{"$f":"(((AAMC_Raw_Data_for_FY22[[#This Row],[Median]]-AAMC_Raw_Data_for_FY22[[#This Row],[25th]])/25)*5) + AAMC_Raw_Data_for_FY22[[#This Row],[25th]]","v":99110.399999999994},{"$f":"(((AAMC_Raw_Data_for_FY22[[#This Row],[Median]]-AAMC_Raw_Data_for_FY22[[#This Row],[25th]])/25)*10) + AAMC_Raw_Data_for_FY22[[#This Row],[25th]]","v":100582.8},{"$f":"(((AAMC_Raw_Data_for_FY22[[#This Row],[Median]]-AAMC_Raw_Data_for_FY22[[#This Row],[25th]])/25)*15) + AAMC_Raw_Data_for_FY22[[#This Row],[25th]]","v":102055.2},{"$f":"(((AAMC_Raw_Data_for_FY22[[#This Row],[Median]]-AAMC_Raw_Data_for_FY22[[#This Row],[25th]])/25)*20) + AAMC_Raw_Data_for_FY22[[#This Row],[25th]]","v":103527.6},105000,{"$f":"(((AAMC_Raw_Data_for_FY22[[#This Row],[75th]]-AAMC_Raw_Data_for_FY22[[#This Row],[Median]])/25)*5) + AAMC_Raw_Data_for_FY22[[#This Row],[Median]]","v":107218},{"$f":"(((AAMC_Raw_Data_for_FY22[[#This Row],[75th]]-AAMC_Raw_Data_for_FY22[[#This Row],[Median]])/25)*10) + AAMC_Raw_Data_for_FY22[[#This Row],[Median]]","v":109436},{"$f":"(((AAMC_Raw_Data_for_FY22[[#This Row],[75th]]-AAMC_Raw_Data_for_FY22[[#This Row],[Median]])/25)*15) + AAMC_Raw_Data_for_FY22[[#This Row],[Median]]","v":111654},{"$f":"(((AAMC_Raw_Data_for_FY22[[#This Row],[75th]]-AAMC_Raw_Data_for_FY22[[#This Row],[Median]])/25)*20) + AAMC_Raw_Data_for_FY22[[#This Row],[Median]]","v":113872},116090,{"$f":"(((AAMC_Raw_Data_for_FY22[[#This Row],[75th]]-AAMC_Raw_Data_for_FY22[[#This Row],[Median]])/25)*30) + AAMC_Raw_Data_for_FY22[[#This Row],[Median]]","v":118308},{"$f":"(((AAMC_Raw_Data_for_FY22[[#This Row],[75th]]-AAMC_Raw_Data_for_FY22[[#This Row],[Median]])/25)*35) + AAMC_Raw_Data_for_FY22[[#This Row],[Median]]","v":120526},{"$f":"(((AAMC_Raw_Data_for_FY22[[#This Row],[75th]]-AAMC_Raw_Data_for_FY22[[#This Row],[Median]])/25)*40) + AAMC_Raw_Data_for_FY22[[#This Row],[Median]]","v":122744}]
[{"$f":"AAMC_Raw_Data_for_FY22[[#This Row],[Source]]&AAMC_Raw_Data_for_FY22[[#This Row],[Type]]&AAMC_Raw_Data_for_FY22[[#This Row],[School Subset]]&AAMC_Raw_Data_for_FY22[[#This Row],[Rank]]&AAMC_Raw_Data_for_FY22[[#This Row],[Degree]]&AAMC_Raw_Data_for_FY22[[#This Row],[Department / Specialty]]&\"L\"","v":"AAMCAcademicPublicAssociatePhDCommunity HealthL"},"Community Health",3,"AAMC","Academic","Public","Associate","PhD","2021-2022",124307,{"$f":"(((AAMC_Raw_Data_for_FY22[[#This Row],[Median]]-AAMC_Raw_Data_for_FY22[[#This Row],[25th]])/25)*5) + AAMC_Raw_Data_for_FY22[[#This Row],[25th]]","v":127063},{"$f":"(((AAMC_Raw_Data_for_FY22[[#This Row],[Median]]-AAMC_Raw_Data_for_FY22[[#This Row],[25th]])/25)*10) + AAMC_Raw_Data_for_FY22[[#This Row],[25th]]","v":129819},{"$f":"(((AAMC_Raw_Data_for_FY22[[#This Row],[Median]]-AAMC_Raw_Data_for_FY22[[#This Row],[25th]])/25)*15) + AAMC_Raw_Data_for_FY22[[#This Row],[25th]]","v":132575},{"$f":"(((AAMC_Raw_Data_for_FY22[[#This Row],[Median]]-AAMC_Raw_Data_for_FY22[[#This Row],[25th]])/25)*20) + AAMC_Raw_Data_for_FY22[[#This Row],[25th]]","v":135331},138087,{"$f":"(((AAMC_Raw_Data_for_FY22[[#This Row],[75th]]-AAMC_Raw_Data_for_FY22[[#This Row],[Median]])/25)*5) + AAMC_Raw_Data_for_FY22[[#This Row],[Median]]","v":142347.20000000001},{"$f":"(((AAMC_Raw_Data_for_FY22[[#This Row],[75th]]-AAMC_Raw_Data_for_FY22[[#This Row],[Median]])/25)*10) + AAMC_Raw_Data_for_FY22[[#This Row],[Median]]","v":146607.4},{"$f":"(((AAMC_Raw_Data_for_FY22[[#This Row],[75th]]-AAMC_Raw_Data_for_FY22[[#This Row],[Median]])/25)*15) + AAMC_Raw_Data_for_FY22[[#This Row],[Median]]","v":150867.6},{"$f":"(((AAMC_Raw_Data_for_FY22[[#This Row],[75th]]-AAMC_Raw_Data_for_FY22[[#This Row],[Median]])/25)*20) + AAMC_Raw_Data_for_FY22[[#This Row],[Median]]","v":155127.79999999999},159388,{"$f":"(((AAMC_Raw_Data_for_FY22[[#This Row],[75th]]-AAMC_Raw_Data_for_FY22[[#This Row],[Median]])/25)*30) + AAMC_Raw_Data_for_FY22[[#This Row],[Median]]","v":163648.20000000001},{"$f":"(((AAMC_Raw_Data_for_FY22[[#This Row],[75th]]-AAMC_Raw_Data_for_FY22[[#This Row],[Median]])/25)*35) + AAMC_Raw_Data_for_FY22[[#This Row],[Median]]","v":167908.4},{"$f":"(((AAMC_Raw_Data_for_FY22[[#This Row],[75th]]-AAMC_Raw_Data_for_FY22[[#This Row],[Median]])/25)*40) + AAMC_Raw_Data_for_FY22[[#This Row],[Median]]","v":172168.6}]
[{"$f":"AAMC_Raw_Data_for_FY22[[#This Row],[Source]]&AAMC_Raw_Data_for_FY22[[#This Row],[Type]]&AAMC_Raw_Data_for_FY22[[#This Row],[School Subset]]&AAMC_Raw_Data_for_FY22[[#This Row],[Rank]]&AAMC_Raw_Data_for_FY22[[#This Row],[Degree]]&AAMC_Raw_Data_for_FY22[[#This Row],[Department / Specialty]]&\"L\"","v":"AAMCAcademicPublicProfessorPhDCommunity HealthL"},"Community Health",2,"AAMC","Academic","Public","Professor","PhD","2021-2022",174694,{"$f":"(((AAMC_Raw_Data_for_FY22[[#This Row],[Median]]-AAMC_Raw_Data_for_FY22[[#This Row],[25th]])/25)*5) + AAMC_Raw_Data_for_FY22[[#This Row],[25th]]","v":182561.8},{"$f":"(((AAMC_Raw_Data_for_FY22[[#This Row],[Median]]-AAMC_Raw_Data_for_FY22[[#This Row],[25th]])/25)*10) + AAMC_Raw_Data_for_FY22[[#This Row],[25th]]","v":190429.6},{"$f":"(((AAMC_Raw_Data_for_FY22[[#This Row],[Median]]-AAMC_Raw_Data_for_FY22[[#This Row],[25th]])/25)*15) + AAMC_Raw_Data_for_FY22[[#This Row],[25th]]","v":198297.4},{"$f":"(((AAMC_Raw_Data_for_FY22[[#This Row],[Median]]-AAMC_Raw_Data_for_FY22[[#This Row],[25th]])/25)*20) + AAMC_Raw_Data_for_FY22[[#This Row],[25th]]","v":206165.2},214033,{"$f":"(((AAMC_Raw_Data_for_FY22[[#This Row],[75th]]-AAMC_Raw_Data_for_FY22[[#This Row],[Median]])/25)*5) + AAMC_Raw_Data_for_FY22[[#This Row],[Median]]","v":223214},{"$f":"(((AAMC_Raw_Data_for_FY22[[#This Row],[75th]]-AAMC_Raw_Data_for_FY22[[#This Row],[Median]])/25)*10) + AAMC_Raw_Data_for_FY22[[#This Row],[Median]]","v":232395},{"$f":"(((AAMC_Raw_Data_for_FY22[[#This Row],[75th]]-AAMC_Raw_Data_for_FY22[[#This Row],[Median]])/25)*15) + AAMC_Raw_Data_for_FY22[[#This Row],[Median]]","v":241576},{"$f":"(((AAMC_Raw_Data_for_FY22[[#This Row],[75th]]-AAMC_Raw_Data_for_FY22[[#This Row],[Median]])/25)*20) + AAMC_Raw_Data_for_FY22[[#This Row],[Median]]","v":250757},259938,{"$f":"(((AAMC_Raw_Data_for_FY22[[#This Row],[75th]]-AAMC_Raw_Data_for_FY22[[#This Row],[Median]])/25)*30) + AAMC_Raw_Data_for_FY22[[#This Row],[Median]]","v":269119},{"$f":"(((AAMC_Raw_Data_for_FY22[[#This Row],[75th]]-AAMC_Raw_Data_for_FY22[[#This Row],[Median]])/25)*35) + AAMC_Raw_Data_for_FY22[[#This Row],[Median]]","v":278300},{"$f":"(((AAMC_Raw_Data_for_FY22[[#This Row],[75th]]-AAMC_Raw_Data_for_FY22[[#This Row],[Median]])/25)*40) + AAMC_Raw_Data_for_FY22[[#This Row],[Median]]","v":287481}]
[{"$f":"AAMC_Raw_Data_for_FY22[[#This Row],[Source]]&AAMC_Raw_Data_for_FY22[[#This Row],[Type]]&AAMC_Raw_Data_for_FY22[[#This Row],[School Subset]]&AAMC_Raw_Data_for_FY22[[#This Row],[Rank]]&AAMC_Raw_Data_for_FY22[[#This Row],[Degree]]&AAMC_Raw_Data_for_FY22[[#This Row],[Department / Specialty]]&\"L\"","v":"AAMCAcademicPublicChiefPhDCommunity HealthL"},"Community Health",6,"AAMC","Academic","Public","Chief","PhD","2021-2022",null,{"$f":"(((AAMC_Raw_Data_for_FY22[[#This Row],[Median]]-AAMC_Raw_Data_for_FY22[[#This Row],[25th]])/25)*5) + AAMC_Raw_Data_for_FY22[[#This Row],[25th]]","v":0},{"$f":"(((AAMC_Raw_Data_for_FY22[[#This Row],[Median]]-AAMC_Raw_Data_for_FY22[[#This Row],[25th]])/25)*10) + AAMC_Raw_Data_for_FY22[[#This Row],[25th]]","v":0},{"$f":"(((AAMC_Raw_Data_for_FY22[[#This Row],[Median]]-AAMC_Raw_Data_for_FY22[[#This Row],[25th]])/25)*15) + AAMC_Raw_Data_for_FY22[[#This Row],[25th]]","v":0},{"$f":"(((AAMC_Raw_Data_for_FY22[[#This Row],[Median]]-AAMC_Raw_Data_for_FY22[[#This Row],[25th]])/25)*20) + AAMC_Raw_Data_for_FY22[[#This Row],[25th]]","v":0},null,{"$f":"(((AAMC_Raw_Data_for_FY22[[#This Row],[75th]]-AAMC_Raw_Data_for_FY22[[#This Row],[Median]])/25)*5) + AAMC_Raw_Data_for_FY22[[#This Row],[Median]]","v":0},{"$f":"(((AAMC_Raw_Data_for_FY22[[#This Row],[75th]]-AAMC_Raw_Data_for_FY22[[#This Row],[Median]])/25)*10) + AAMC_Raw_Data_for_FY22[[#This Row],[Median]]","v":0},{"$f":"(((AAMC_Raw_Data_for_FY22[[#This Row],[75th]]-AAMC_Raw_Data_for_FY22[[#This Row],[Median]])/25)*15) + AAMC_Raw_Data_for_FY22[[#This Row],[Median]]","v":0},{"$f":"(((AAMC_Raw_Data_for_FY22[[#This Row],[75th]]-AAMC_Raw_Data_for_FY22[[#This Row],[Median]])/25)*20) + AAMC_Raw_Data_for_FY22[[#This Row],[Median]]","v":0},null,{"$f":"(((AAMC_Raw_Data_for_FY22[[#This Row],[75th]]-AAMC_Raw_Data_for_FY22[[#This Row],[Median]])/25)*30) + AAMC_Raw_Data_for_FY22[[#This Row],[Median]]","v":0},{"$f":"(((AAMC_Raw_Data_for_FY22[[#This Row],[75th]]-AAMC_Raw_Data_for_FY22[[#This Row],[Median]])/25)*35) + AAMC_Raw_Data_for_FY22[[#This Row],[Median]]","v":0},{"$f":"(((AAMC_Raw_Data_for_FY22[[#This Row],[75th]]-AAMC_Raw_Data_for_FY22[[#This Row],[Median]])/25)*40) + AAMC_Raw_Data_for_FY22[[#This Row],[Median]]","v":0}]
[{"$f":"AAMC_Raw_Data_for_FY22[[#This Row],[Source]]&AAMC_Raw_Data_for_FY22[[#This Row],[Type]]&AAMC_Raw_Data_for_FY22[[#This Row],[School Subset]]&AAMC_Raw_Data_for_FY22[[#This Row],[Rank]]&AAMC_Raw_Data_for_FY22[[#This Row],[Degree]]&AAMC_Raw_Data_for_FY22[[#This Row],[Department / Specialty]]&\"L\"","v":"AAMCAcademicPublicChairPhDCommunity HealthL"},"Community Health",1,"AAMC","Academic","Public","Chair","PhD","2021-2022",null,{"$f":"(((AAMC_Raw_Data_for_FY22[[#This Row],[Median]]-AAMC_Raw_Data_for_FY22[[#This Row],[25th]])/25)*5) + AAMC_Raw_Data_for_FY22[[#This Row],[25th]]","v":0},{"$f":"(((AAMC_Raw_Data_for_FY22[[#This Row],[Median]]-AAMC_Raw_Data_for_FY22[[#This Row],[25th]])/25)*10) + AAMC_Raw_Data_for_FY22[[#This Row],[25th]]","v":0},{"$f":"(((AAMC_Raw_Data_for_FY22[[#This Row],[Median]]-AAMC_Raw_Data_for_FY22[[#This Row],[25th]])/25)*15) + AAMC_Raw_Data_for_FY22[[#This Row],[25th]]","v":0},{"$f":"(((AAMC_Raw_Data_for_FY22[[#This Row],[Median]]-AAMC_Raw_Data_for_FY22[[#This Row],[25th]])/25)*20) + AAMC_Raw_Data_for_FY22[[#This Row],[25th]]","v":0},null,{"$f":"(((AAMC_Raw_Data_for_FY22[[#This Row],[75th]]-AAMC_Raw_Data_for_FY22[[#This Row],[Median]])/25)*5) + AAMC_Raw_Data_for_FY22[[#This Row],[Median]]","v":0},{"$f":"(((AAMC_Raw_Data_for_FY22[[#This Row],[75th]]-AAMC_Raw_Data_for_FY22[[#This Row],[Median]])/25)*10) + AAMC_Raw_Data_for_FY22[[#This Row],[Median]]","v":0},{"$f":"(((AAMC_Raw_Data_for_FY22[[#This Row],[75th]]-AAMC_Raw_Data_for_FY22[[#This Row],[Median]])/25)*15) + AAMC_Raw_Data_for_FY22[[#This Row],[Median]]","v":0},{"$f":"(((AAMC_Raw_Data_for_FY22[[#This Row],[75th]]-AAMC_Raw_Data_for_FY22[[#This Row],[Median]])/25)*20) + AAMC_Raw_Data_for_FY22[[#This Row],[Median]]","v":0},null,{"$f":"(((AAMC_Raw_Data_for_FY22[[#This Row],[75th]]-AAMC_Raw_Data_for_FY22[[#This Row],[Median]])/25)*30) + AAMC_Raw_Data_for_FY22[[#This Row],[Median]]","v":0},{"$f":"(((AAMC_Raw_Data_for_FY22[[#This Row],[75th]]-AAMC_Raw_Data_for_FY22[[#This Row],[Median]])/25)*35) + AAMC_Raw_Data_for_FY22[[#This Row],[Median]]","v":0},{"$f":"(((AAMC_Raw_Data_for_FY22[[#This Row],[75th]]-AAMC_Raw_Data_for_FY22[[#This Row],[Median]])/25)*40) + AAMC_Raw_Data_for_FY22[[#This Row],[Median]]","v":0}]
[{"$f":"AAMC_Raw_Data_for_FY22[[#This Row],[Source]]&AAMC_Raw_Data_for_FY22[[#This Row],[Type]]&AAMC_Raw_Data_for_FY22[[#This Row],[School Subset]]&AAMC_Raw_Data_for_FY22[[#This Row],[Rank]]&AAMC_Raw_Data_for_FY22[[#This Row],[Degree]]&AAMC_Raw_Data_for_FY22[[#This Row],[Department / Specialty]]&\"L\"","v":"AAMCAcademicPublicInstructorPhDEmergency MedicineL"},"Emergency Medicine",5,"AAMC","Academic","Public","Instructor","PhD","2021-2022",93043,{"$f":"(((AAMC_Raw_Data_for_FY22[[#This Row],[Median]]-AAMC_Raw_Data_for_FY22[[#This Row],[25th]])/25)*5) + AAMC_Raw_Data_for_FY22[[#This Row],[25th]]","v":95307.4},{"$f":"(((AAMC_Raw_Data_for_FY22[[#This Row],[Median]]-AAMC_Raw_Data_for_FY22[[#This Row],[25th]])/25)*10) + AAMC_Raw_Data_for_FY22[[#This Row],[25th]]","v":97571.8},{"$f":"(((AAMC_Raw_Data_for_FY22[[#This Row],[Median]]-AAMC_Raw_Data_for_FY22[[#This Row],[25th]])/25)*15) + AAMC_Raw_Data_for_FY22[[#This Row],[25th]]","v":99836.2},{"$f":"(((AAMC_Raw_Data_for_FY22[[#This Row],[Median]]-AAMC_Raw_Data_for_FY22[[#This Row],[25th]])/25)*20) + AAMC_Raw_Data_for_FY22[[#This Row],[25th]]","v":102100.6},104365,{"$f":"(((AAMC_Raw_Data_for_FY22[[#This Row],[75th]]-AAMC_Raw_Data_for_FY22[[#This Row],[Median]])/25)*5) + AAMC_Raw_Data_for_FY22[[#This Row],[Median]]","v":107531},{"$f":"(((AAMC_Raw_Data_for_FY22[[#This Row],[75th]]-AAMC_Raw_Data_for_FY22[[#This Row],[Median]])/25)*10) + AAMC_Raw_Data_for_FY22[[#This Row],[Median]]","v":110697},{"$f":"(((AAMC_Raw_Data_for_FY22[[#This Row],[75th]]-AAMC_Raw_Data_for_FY22[[#This Row],[Median]])/25)*15) + AAMC_Raw_Data_for_FY22[[#This Row],[Median]]","v":113863},{"$f":"(((AAMC_Raw_Data_for_FY22[[#This Row],[75th]]-AAMC_Raw_Data_for_FY22[[#This Row],[Median]])/25)*20) + AAMC_Raw_Data_for_FY22[[#This Row],[Median]]","v":117029},120195,{"$f":"(((AAMC_Raw_Data_for_FY22[[#This Row],[75th]]-AAMC_Raw_Data_for_FY22[[#This Row],[Median]])/25)*30) + AAMC_Raw_Data_for_FY22[[#This Row],[Median]]","v":123361},{"$f":"(((AAMC_Raw_Data_for_FY22[[#This Row],[75th]]-AAMC_Raw_Data_for_FY22[[#This Row],[Median]])/25)*35) + AAMC_Raw_Data_for_FY22[[#This Row],[Median]]","v":126527},{"$f":"(((AAMC_Raw_Data_for_FY22[[#This Row],[75th]]-AAMC_Raw_Data_for_FY22[[#This Row],[Median]])/25)*40) + AAMC_Raw_Data_for_FY22[[#This Row],[Median]]","v":129693}]
[{"$f":"AAMC_Raw_Data_for_FY22[[#This Row],[Source]]&AAMC_Raw_Data_for_FY22[[#This Row],[Type]]&AAMC_Raw_Data_for_FY22[[#This Row],[School Subset]]&AAMC_Raw_Data_for_FY22[[#This Row],[Rank]]&AAMC_Raw_Data_for_FY22[[#This Row],[Degree]]&AAMC_Raw_Data_for_FY22[[#This Row],[Department / Specialty]]&\"L\"","v":"AAMCAcademicPublicAssistantPhDEmergency MedicineL"},"Emergency Medicine",4,"AAMC","Academic","Public","Assistant","PhD","2021-2022",99081,{"$f":"(((AAMC_Raw_Data_for_FY22[[#This Row],[Median]]-AAMC_Raw_Data_for_FY22[[#This Row],[25th]])/25)*5) + AAMC_Raw_Data_for_FY22[[#This Row],[25th]]","v":103911.8},{"$f":"(((AAMC_Raw_Data_for_FY22[[#This Row],[Median]]-AAMC_Raw_Data_for_FY22[[#This Row],[25th]])/25)*10) + AAMC_Raw_Data_for_FY22[[#This Row],[25th]]","v":108742.6},{"$f":"(((AAMC_Raw_Data_for_FY22[[#This Row],[Median]]-AAMC_Raw_Data_for_FY22[[#This Row],[25th]])/25)*15) + AAMC_Raw_Data_for_FY22[[#This Row],[25th]]","v":113573.4},{"$f":"(((AAMC_Raw_Data_for_FY22[[#This Row],[Median]]-AAMC_Raw_Data_for_FY22[[#This Row],[25th]])/25)*20) + AAMC_Raw_Data_for_FY22[[#This Row],[25th]]","v":118404.2},123235,{"$f":"(((AAMC_Raw_Data_for_FY22[[#This Row],[75th]]-AAMC_Raw_Data_for_FY22[[#This Row],[Median]])/25)*5) + AAMC_Raw_Data_for_FY22[[#This Row],[Median]]","v":127146.4},{"$f":"(((AAMC_Raw_Data_for_FY22[[#This Row],[75th]]-AAMC_Raw_Data_for_FY22[[#This Row],[Median]])/25)*10) + AAMC_Raw_Data_for_FY22[[#This Row],[Median]]","v":131057.8},{"$f":"(((AAMC_Raw_Data_for_FY22[[#This Row],[75th]]-AAMC_Raw_Data_for_FY22[[#This Row],[Median]])/25)*15) + AAMC_Raw_Data_for_FY22[[#This Row],[Median]]","v":134969.20000000001},{"$f":"(((AAMC_Raw_Data_for_FY22[[#This Row],[75th]]-AAMC_Raw_Data_for_FY22[[#This Row],[Median]])/25)*20) + AAMC_Raw_Data_for_FY22[[#This Row],[Median]]","v":138880.6},142792,{"$f":"(((AAMC_Raw_Data_for_FY22[[#This Row],[75th]]-AAMC_Raw_Data_for_FY22[[#This Row],[Median]])/25)*30) + AAMC_Raw_Data_for_FY22[[#This Row],[Median]]","v":146703.4},{"$f":"(((AAMC_Raw_Data_for_FY22[[#This Row],[75th]]-AAMC_Raw_Data_for_FY22[[#This Row],[Median]])/25)*35) + AAMC_Raw_Data_for_FY22[[#This Row],[Median]]","v":150614.79999999999},{"$f":"(((AAMC_Raw_Data_for_FY22[[#This Row],[75th]]-AAMC_Raw_Data_for_FY22[[#This Row],[Median]])/25)*40) + AAMC_Raw_Data_for_FY22[[#This Row],[Median]]","v":154526.20000000001}]
[{"$f":"AAMC_Raw_Data_for_FY22[[#This Row],[Source]]&AAMC_Raw_Data_for_FY22[[#This Row],[Type]]&AAMC_Raw_Data_for_FY22[[#This Row],[School Subset]]&AAMC_Raw_Data_for_FY22[[#This Row],[Rank]]&AAMC_Raw_Data_for_FY22[[#This Row],[Degree]]&AAMC_Raw_Data_for_FY22[[#This Row],[Department / Specialty]]&\"L\"","v":"AAMCAcademicPublicAssociatePhDEmergency MedicineL"},"Emergency Medicine",3,"AAMC","Academic","Public","Associate","PhD","2021-2022",117789,{"$f":"(((AAMC_Raw_Data_for_FY22[[#This Row],[Median]]-AAMC_Raw_Data_for_FY22[[#This Row],[25th]])/25)*5) + AAMC_Raw_Data_for_FY22[[#This Row],[25th]]","v":122811.2},{"$f":"(((AAMC_Raw_Data_for_FY22[[#This Row],[Median]]-AAMC_Raw_Data_for_FY22[[#This Row],[25th]])/25)*10) + AAMC_Raw_Data_for_FY22[[#This Row],[25th]]","v":127833.4},{"$f":"(((AAMC_Raw_Data_for_FY22[[#This Row],[Median]]-AAMC_Raw_Data_for_FY22[[#This Row],[25th]])/25)*15) + AAMC_Raw_Data_for_FY22[[#This Row],[25th]]","v":132855.6},{"$f":"(((AAMC_Raw_Data_for_FY22[[#This Row],[Median]]-AAMC_Raw_Data_for_FY22[[#This Row],[25th]])/25)*20) + AAMC_Raw_Data_for_FY22[[#This Row],[25th]]","v":137877.79999999999},142900,{"$f":"(((AAMC_Raw_Data_for_FY22[[#This Row],[75th]]-AAMC_Raw_Data_for_FY22[[#This Row],[Median]])/25)*5) + AAMC_Raw_Data_for_FY22[[#This Row],[Median]]","v":147466.20000000001},{"$f":"(((AAMC_Raw_Data_for_FY22[[#This Row],[75th]]-AAMC_Raw_Data_for_FY22[[#This Row],[Median]])/25)*10) + AAMC_Raw_Data_for_FY22[[#This Row],[Median]]","v":152032.4},{"$f":"(((AAMC_Raw_Data_for_FY22[[#This Row],[75th]]-AAMC_Raw_Data_for_FY22[[#This Row],[Median]])/25)*15) + AAMC_Raw_Data_for_FY22[[#This Row],[Median]]","v":156598.6},{"$f":"(((AAMC_Raw_Data_for_FY22[[#This Row],[75th]]-AAMC_Raw_Data_for_FY22[[#This Row],[Median]])/25)*20) + AAMC_Raw_Data_for_FY22[[#This Row],[Median]]","v":161164.79999999999},165731,{"$f":"(((AAMC_Raw_Data_for_FY22[[#This Row],[75th]]-AAMC_Raw_Data_for_FY22[[#This Row],[Median]])/25)*30) + AAMC_Raw_Data_for_FY22[[#This Row],[Median]]","v":170297.2},{"$f":"(((AAMC_Raw_Data_for_FY22[[#This Row],[75th]]-AAMC_Raw_Data_for_FY22[[#This Row],[Median]])/25)*35) + AAMC_Raw_Data_for_FY22[[#This Row],[Median]]","v":174863.4},{"$f":"(((AAMC_Raw_Data_for_FY22[[#This Row],[75th]]-AAMC_Raw_Data_for_FY22[[#This Row],[Median]])/25)*40) + AAMC_Raw_Data_for_FY22[[#This Row],[Median]]","v":179429.6}]
[{"$f":"AAMC_Raw_Data_for_FY22[[#This Row],[Source]]&AAMC_Raw_Data_for_FY22[[#This Row],[Type]]&AAMC_Raw_Data_for_FY22[[#This Row],[School Subset]]&AAMC_Raw_Data_for_FY22[[#This Row],[Rank]]&AAMC_Raw_Data_for_FY22[[#This Row],[Degree]]&AAMC_Raw_Data_for_FY22[[#This Row],[Department / Specialty]]&\"L\"","v":"AAMCAcademicPublicProfessorPhDEmergency MedicineL"},"Emergency Medicine",2,"AAMC","Academic","Public","Professor","PhD","2021-2022",165456,{"$f":"(((AAMC_Raw_Data_for_FY22[[#This Row],[Median]]-AAMC_Raw_Data_for_FY22[[#This Row],[25th]])/25)*5) + AAMC_Raw_Data_for_FY22[[#This Row],[25th]]","v":173220.8},{"$f":"(((AAMC_Raw_Data_for_FY22[[#This Row],[Median]]-AAMC_Raw_Data_for_FY22[[#This Row],[25th]])/25)*10) + AAMC_Raw_Data_for_FY22[[#This Row],[25th]]","v":180985.60000000001},{"$f":"(((AAMC_Raw_Data_for_FY22[[#This Row],[Median]]-AAMC_Raw_Data_for_FY22[[#This Row],[25th]])/25)*15) + AAMC_Raw_Data_for_FY22[[#This Row],[25th]]","v":188750.4},{"$f":"(((AAMC_Raw_Data_for_FY22[[#This Row],[Median]]-AAMC_Raw_Data_for_FY22[[#This Row],[25th]])/25)*20) + AAMC_Raw_Data_for_FY22[[#This Row],[25th]]","v":196515.20000000001},204280,{"$f":"(((AAMC_Raw_Data_for_FY22[[#This Row],[75th]]-AAMC_Raw_Data_for_FY22[[#This Row],[Median]])/25)*5) + AAMC_Raw_Data_for_FY22[[#This Row],[Median]]","v":210357.6},{"$f":"(((AAMC_Raw_Data_for_FY22[[#This Row],[75th]]-AAMC_Raw_Data_for_FY22[[#This Row],[Median]])/25)*10) + AAMC_Raw_Data_for_FY22[[#This Row],[Median]]","v":216435.20000000001},{"$f":"(((AAMC_Raw_Data_for_FY22[[#This Row],[75th]]-AAMC_Raw_Data_for_FY22[[#This Row],[Median]])/25)*15) + AAMC_Raw_Data_for_FY22[[#This Row],[Median]]","v":222512.8},{"$f":"(((AAMC_Raw_Data_for_FY22[[#This Row],[75th]]-AAMC_Raw_Data_for_FY22[[#This Row],[Median]])/25)*20) + AAMC_Raw_Data_for_FY22[[#This Row],[Median]]","v":228590.4},234668,{"$f":"(((AAMC_Raw_Data_for_FY22[[#This Row],[75th]]-AAMC_Raw_Data_for_FY22[[#This Row],[Median]])/25)*30) + AAMC_Raw_Data_for_FY22[[#This Row],[Median]]","v":240745.60000000001},{"$f":"(((AAMC_Raw_Data_for_FY22[[#This Row],[75th]]-AAMC_Raw_Data_for_FY22[[#This Row],[Median]])/25)*35) + AAMC_Raw_Data_for_FY22[[#This Row],[Median]]","v":246823.2},{"$f":"(((AAMC_Raw_Data_for_FY22[[#This Row],[75th]]-AAMC_Raw_Data_for_FY22[[#This Row],[Median]])/25)*40) + AAMC_Raw_Data_for_FY22[[#This Row],[Median]]","v":252900.8}]
[{"$f":"AAMC_Raw_Data_for_FY22[[#This Row],[Source]]&AAMC_Raw_Data_for_FY22[[#This Row],[Type]]&AAMC_Raw_Data_for_FY22[[#This Row],[School Subset]]&AAMC_Raw_Data_for_FY22[[#This Row],[Rank]]&AAMC_Raw_Data_for_FY22[[#This Row],[Degree]]&AAMC_Raw_Data_for_FY22[[#This Row],[Department / Specialty]]&\"L\"","v":"AAMCAcademicPublicChiefPhDEmergency MedicineL"},"Emergency Medicine",6,"AAMC","Academic","Public","Chief","PhD","2021-2022",null,{"$f":"(((AAMC_Raw_Data_for_FY22[[#This Row],[Median]]-AAMC_Raw_Data_for_FY22[[#This Row],[25th]])/25)*5) + AAMC_Raw_Data_for_FY22[[#This Row],[25th]]","v":0},{"$f":"(((AAMC_Raw_Data_for_FY22[[#This Row],[Median]]-AAMC_Raw_Data_for_FY22[[#This Row],[25th]])/25)*10) + AAMC_Raw_Data_for_FY22[[#This Row],[25th]]","v":0},{"$f":"(((AAMC_Raw_Data_for_FY22[[#This Row],[Median]]-AAMC_Raw_Data_for_FY22[[#This Row],[25th]])/25)*15) + AAMC_Raw_Data_for_FY22[[#This Row],[25th]]","v":0},{"$f":"(((AAMC_Raw_Data_for_FY22[[#This Row],[Median]]-AAMC_Raw_Data_for_FY22[[#This Row],[25th]])/25)*20) + AAMC_Raw_Data_for_FY22[[#This Row],[25th]]","v":0},null,{"$f":"(((AAMC_Raw_Data_for_FY22[[#This Row],[75th]]-AAMC_Raw_Data_for_FY22[[#This Row],[Median]])/25)*5) + AAMC_Raw_Data_for_FY22[[#This Row],[Median]]","v":0},{"$f":"(((AAMC_Raw_Data_for_FY22[[#This Row],[75th]]-AAMC_Raw_Data_for_FY22[[#This Row],[Median]])/25)*10) + AAMC_Raw_Data_for_FY22[[#This Row],[Median]]","v":0},{"$f":"(((AAMC_Raw_Data_for_FY22[[#This Row],[75th]]-AAMC_Raw_Data_for_FY22[[#This Row],[Median]])/25)*15) + AAMC_Raw_Data_for_FY22[[#This Row],[Median]]","v":0},{"$f":"(((AAMC_Raw_Data_for_FY22[[#This Row],[75th]]-AAMC_Raw_Data_for_FY22[[#This Row],[Median]])/25)*20) + AAMC_Raw_Data_for_FY22[[#This Row],[Median]]","v":0},null,{"$f":"(((AAMC_Raw_Data_for_FY22[[#This Row],[75th]]-AAMC_Raw_Data_for_FY22[[#This Row],[Median]])/25)*30) + AAMC_Raw_Data_for_FY22[[#This Row],[Median]]","v":0},{"$f":"(((AAMC_Raw_Data_for_FY22[[#This Row],[75th]]-AAMC_Raw_Data_for_FY22[[#This Row],[Median]])/25)*35) + AAMC_Raw_Data_for_FY22[[#This Row],[Median]]","v":0},{"$f":"(((AAMC_Raw_Data_for_FY22[[#This Row],[75th]]-AAMC_Raw_Data_for_FY22[[#This Row],[Median]])/25)*40) + AAMC_Raw_Data_for_FY22[[#This Row],[Median]]","v":0}]
[{"$f":"AAMC_Raw_Data_for_FY22[[#This Row],[Source]]&AAMC_Raw_Data_for_FY22[[#This Row],[Type]]&AAMC_Raw_Data_for_FY22[[#This Row],[School Subset]]&AAMC_Raw_Data_for_FY22[[#This Row],[Rank]]&AAMC_Raw_Data_for_FY22[[#This Row],[Degree]]&AAMC_Raw_Data_for_FY22[[#This Row],[Department / Specialty]]&\"L\"","v":"AAMCAcademicPublicInstructorPhDNeurologyL"},"Neurology",5,"AAMC","Academic","Public","Instructor","PhD","2021-2022",64500,{"$f":"(((AAMC_Raw_Data_for_FY22[[#This Row],[Median]]-AAMC_Raw_Data_for_FY22[[#This Row],[25th]])/25)*5) + AAMC_Raw_Data_for_FY22[[#This Row],[25th]]","v":67000},{"$f":"(((AAMC_Raw_Data_for_FY22[[#This Row],[Median]]-AAMC_Raw_Data_for_FY22[[#This Row],[25th]])/25)*10) + AAMC_Raw_Data_for_FY22[[#This Row],[25th]]","v":69500},{"$f":"(((AAMC_Raw_Data_for_FY22[[#This Row],[Median]]-AAMC_Raw_Data_for_FY22[[#This Row],[25th]])/25)*15) + AAMC_Raw_Data_for_FY22[[#This Row],[25th]]","v":72000},{"$f":"(((AAMC_Raw_Data_for_FY22[[#This Row],[Median]]-AAMC_Raw_Data_for_FY22[[#This Row],[25th]])/25)*20) + AAMC_Raw_Data_for_FY22[[#This Row],[25th]]","v":74500},77000,{"$f":"(((AAMC_Raw_Data_for_FY22[[#This Row],[75th]]-AAMC_Raw_Data_for_FY22[[#This Row],[Median]])/25)*5) + AAMC_Raw_Data_for_FY22[[#This Row],[Median]]","v":80798.399999999994},{"$f":"(((AAMC_Raw_Data_for_FY22[[#This Row],[75th]]-AAMC_Raw_Data_for_FY22[[#This Row],[Median]])/25)*10) + AAMC_Raw_Data_for_FY22[[#This Row],[Median]]","v":84596.800000000003},{"$f":"(((AAMC_Raw_Data_for_FY22[[#This Row],[75th]]-AAMC_Raw_Data_for_FY22[[#This Row],[Median]])/25)*15) + AAMC_Raw_Data_for_FY22[[#This Row],[Median]]","v":88395.199999999997},{"$f":"(((AAMC_Raw_Data_for_FY22[[#This Row],[75th]]-AAMC_Raw_Data_for_FY22[[#This Row],[Median]])/25)*20) + AAMC_Raw_Data_for_FY22[[#This Row],[Median]]","v":92193.600000000006},95992,{"$f":"(((AAMC_Raw_Data_for_FY22[[#This Row],[75th]]-AAMC_Raw_Data_for_FY22[[#This Row],[Median]])/25)*30) + AAMC_Raw_Data_for_FY22[[#This Row],[Median]]","v":99790.399999999994},{"$f":"(((AAMC_Raw_Data_for_FY22[[#This Row],[75th]]-AAMC_Raw_Data_for_FY22[[#This Row],[Median]])/25)*35) + AAMC_Raw_Data_for_FY22[[#This Row],[Median]]","v":103588.8},{"$f":"(((AAMC_Raw_Data_for_FY22[[#This Row],[75th]]-AAMC_Raw_Data_for_FY22[[#This Row],[Median]])/25)*40) + AAMC_Raw_Data_for_FY22[[#This Row],[Median]]","v":107387.2}]
[{"$f":"AAMC_Raw_Data_for_FY22[[#This Row],[Source]]&AAMC_Raw_Data_for_FY22[[#This Row],[Type]]&AAMC_Raw_Data_for_FY22[[#This Row],[School Subset]]&AAMC_Raw_Data_for_FY22[[#This Row],[Rank]]&AAMC_Raw_Data_for_FY22[[#This Row],[Degree]]&AAMC_Raw_Data_for_FY22[[#This Row],[Department / Specialty]]&\"L\"","v":"AAMCAcademicPublicAssistantPhDNeurologyL"},"Neurology",4,"AAMC","Academic","Public","Assistant","PhD","2021-2022",99014,{"$f":"(((AAMC_Raw_Data_for_FY22[[#This Row],[Median]]-AAMC_Raw_Data_for_FY22[[#This Row],[25th]])/25)*5) + AAMC_Raw_Data_for_FY22[[#This Row],[25th]]","v":102227.2},{"$f":"(((AAMC_Raw_Data_for_FY22[[#This Row],[Median]]-AAMC_Raw_Data_for_FY22[[#This Row],[25th]])/25)*10) + AAMC_Raw_Data_for_FY22[[#This Row],[25th]]","v":105440.4},{"$f":"(((AAMC_Raw_Data_for_FY22[[#This Row],[Median]]-AAMC_Raw_Data_for_FY22[[#This Row],[25th]])/25)*15) + AAMC_Raw_Data_for_FY22[[#This Row],[25th]]","v":108653.6},{"$f":"(((AAMC_Raw_Data_for_FY22[[#This Row],[Median]]-AAMC_Raw_Data_for_FY22[[#This Row],[25th]])/25)*20) + AAMC_Raw_Data_for_FY22[[#This Row],[25th]]","v":111866.8},115080,{"$f":"(((AAMC_Raw_Data_for_FY22[[#This Row],[75th]]-AAMC_Raw_Data_for_FY22[[#This Row],[Median]])/25)*5) + AAMC_Raw_Data_for_FY22[[#This Row],[Median]]","v":118064},{"$f":"(((AAMC_Raw_Data_for_FY22[[#This Row],[75th]]-AAMC_Raw_Data_for_FY22[[#This Row],[Median]])/25)*10) + AAMC_Raw_Data_for_FY22[[#This Row],[Median]]","v":121048},{"$f":"(((AAMC_Raw_Data_for_FY22[[#This Row],[75th]]-AAMC_Raw_Data_for_FY22[[#This Row],[Median]])/25)*15) + AAMC_Raw_Data_for_FY22[[#This Row],[Median]]","v":124032},{"$f":"(((AAMC_Raw_Data_for_FY22[[#This Row],[75th]]-AAMC_Raw_Data_for_FY22[[#This Row],[Median]])/25)*20) + AAMC_Raw_Data_for_FY22[[#This Row],[Median]]","v":127016},130000,{"$f":"(((AAMC_Raw_Data_for_FY22[[#This Row],[75th]]-AAMC_Raw_Data_for_FY22[[#This Row],[Median]])/25)*30) + AAMC_Raw_Data_for_FY22[[#This Row],[Median]]","v":132984},{"$f":"(((AAMC_Raw_Data_for_FY22[[#This Row],[75th]]-AAMC_Raw_Data_for_FY22[[#This Row],[Median]])/25)*35) + AAMC_Raw_Data_for_FY22[[#This Row],[Median]]","v":135968},{"$f":"(((AAMC_Raw_Data_for_FY22[[#This Row],[75th]]-AAMC_Raw_Data_for_FY22[[#This Row],[Median]])/25)*40) + AAMC_Raw_Data_for_FY22[[#This Row],[Median]]","v":138952}]
[{"$f":"AAMC_Raw_Data_for_FY22[[#This Row],[Source]]&AAMC_Raw_Data_for_FY22[[#This Row],[Type]]&AAMC_Raw_Data_for_FY22[[#This Row],[School Subset]]&AAMC_Raw_Data_for_FY22[[#This Row],[Rank]]&AAMC_Raw_Data_for_FY22[[#This Row],[Degree]]&AAMC_Raw_Data_for_FY22[[#This Row],[Department / Specialty]]&\"L\"","v":"AAMCAcademicPublicAssociatePhDNeurologyL"},"Neurology",3,"AAMC","Academic","Public","Associate","PhD","2021-2022",127821,{"$f":"(((AAMC_Raw_Data_for_FY22[[#This Row],[Median]]-AAMC_Raw_Data_for_FY22[[#This Row],[25th]])/25)*5) + AAMC_Raw_Data_for_FY22[[#This Row],[25th]]","v":132014.6},{"$f":"(((AAMC_Raw_Data_for_FY22[[#This Row],[Median]]-AAMC_Raw_Data_for_FY22[[#This Row],[25th]])/25)*10) + AAMC_Raw_Data_for_FY22[[#This Row],[25th]]","v":136208.20000000001},{"$f":"(((AAMC_Raw_Data_for_FY22[[#This Row],[Median]]-AAMC_Raw_Data_for_FY22[[#This Row],[25th]])/25)*15) + AAMC_Raw_Data_for_FY22[[#This Row],[25th]]","v":140401.79999999999},{"$f":"(((AAMC_Raw_Data_for_FY22[[#This Row],[Median]]-AAMC_Raw_Data_for_FY22[[#This Row],[25th]])/25)*20) + AAMC_Raw_Data_for_FY22[[#This Row],[25th]]","v":144595.4},148789,{"$f":"(((AAMC_Raw_Data_for_FY22[[#This Row],[75th]]-AAMC_Raw_Data_for_FY22[[#This Row],[Median]])/25)*5) + AAMC_Raw_Data_for_FY22[[#This Row],[Median]]","v":154031.20000000001},{"$f":"(((AAMC_Raw_Data_for_FY22[[#This Row],[75th]]-AAMC_Raw_Data_for_FY22[[#This Row],[Median]])/25)*10) + AAMC_Raw_Data_for_FY22[[#This Row],[Median]]","v":159273.4},{"$f":"(((AAMC_Raw_Data_for_FY22[[#This Row],[75th]]-AAMC_Raw_Data_for_FY22[[#This Row],[Median]])/25)*15) + AAMC_Raw_Data_for_FY22[[#This Row],[Median]]","v":164515.6},{"$f":"(((AAMC_Raw_Data_for_FY22[[#This Row],[75th]]-AAMC_Raw_Data_for_FY22[[#This Row],[Median]])/25)*20) + AAMC_Raw_Data_for_FY22[[#This Row],[Median]]","v":169757.8},175000,{"$f":"(((AAMC_Raw_Data_for_FY22[[#This Row],[75th]]-AAMC_Raw_Data_for_FY22[[#This Row],[Median]])/25)*30) + AAMC_Raw_Data_for_FY22[[#This Row],[Median]]","v":180242.2},{"$f":"(((AAMC_Raw_Data_for_FY22[[#This Row],[75th]]-AAMC_Raw_Data_for_FY22[[#This Row],[Median]])/25)*35) + AAMC_Raw_Data_for_FY22[[#This Row],[Median]]","v":185484.4},{"$f":"(((AAMC_Raw_Data_for_FY22[[#This Row],[75th]]-AAMC_Raw_Data_for_FY22[[#This Row],[Median]])/25)*40) + AAMC_Raw_Data_for_FY22[[#This Row],[Median]]","v":190726.6}]
[{"$f":"AAMC_Raw_Data_for_FY22[[#This Row],[Source]]&AAMC_Raw_Data_for_FY22[[#This Row],[Type]]&AAMC_Raw_Data_for_FY22[[#This Row],[School Subset]]&AAMC_Raw_Data_for_FY22[[#This Row],[Rank]]&AAMC_Raw_Data_for_FY22[[#This Row],[Degree]]&AAMC_Raw_Data_for_FY22[[#This Row],[Department / Specialty]]&\"L\"","v":"AAMCAcademicPublicProfessorPhDNeurologyL"},"Neurology",2,"AAMC","Academic","Public","Professor","PhD","2021-2022",178604,{"$f":"(((AAMC_Raw_Data_for_FY22[[#This Row],[Median]]-AAMC_Raw_Data_for_FY22[[#This Row],[25th]])/25)*5) + AAMC_Raw_Data_for_FY22[[#This Row],[25th]]","v":186883.20000000001},{"$f":"(((AAMC_Raw_Data_for_FY22[[#This Row],[Median]]-AAMC_Raw_Data_for_FY22[[#This Row],[25th]])/25)*10) + AAMC_Raw_Data_for_FY22[[#This Row],[25th]]","v":195162.4},{"$f":"(((AAMC_Raw_Data_for_FY22[[#This Row],[Median]]-AAMC_Raw_Data_for_FY22[[#This Row],[25th]])/25)*15) + AAMC_Raw_Data_for_FY22[[#This Row],[25th]]","v":203441.6},{"$f":"(((AAMC_Raw_Data_for_FY22[[#This Row],[Median]]-AAMC_Raw_Data_for_FY22[[#This Row],[25th]])/25)*20) + AAMC_Raw_Data_for_FY22[[#This Row],[25th]]","v":211720.8},220000,{"$f":"(((AAMC_Raw_Data_for_FY22[[#This Row],[75th]]-AAMC_Raw_Data_for_FY22[[#This Row],[Median]])/25)*5) + AAMC_Raw_Data_for_FY22[[#This Row],[Median]]","v":232122},{"$f":"(((AAMC_Raw_Data_for_FY22[[#This Row],[75th]]-AAMC_Raw_Data_for_FY22[[#This Row],[Median]])/25)*10) + AAMC_Raw_Data_for_FY22[[#This Row],[Median]]","v":244244},{"$f":"(((AAMC_Raw_Data_for_FY22[[#This Row],[75th]]-AAMC_Raw_Data_for_FY22[[#This Row],[Median]])/25)*15) + AAMC_Raw_Data_for_FY22[[#This Row],[Median]]","v":256366},{"$f":"(((AAMC_Raw_Data_for_FY22[[#This Row],[75th]]-AAMC_Raw_Data_for_FY22[[#This Row],[Median]])/25)*20) + AAMC_Raw_Data_for_FY22[[#This Row],[Median]]","v":268488},280610,{"$f":"(((AAMC_Raw_Data_for_FY22[[#This Row],[75th]]-AAMC_Raw_Data_for_FY22[[#This Row],[Median]])/25)*30) + AAMC_Raw_Data_for_FY22[[#This Row],[Median]]","v":292732},{"$f":"(((AAMC_Raw_Data_for_FY22[[#This Row],[75th]]-AAMC_Raw_Data_for_FY22[[#This Row],[Median]])/25)*35) + AAMC_Raw_Data_for_FY22[[#This Row],[Median]]","v":304854},{"$f":"(((AAMC_Raw_Data_for_FY22[[#This Row],[75th]]-AAMC_Raw_Data_for_FY22[[#This Row],[Median]])/25)*40) + AAMC_Raw_Data_for_FY22[[#This Row],[Median]]","v":316976}]
[{"$f":"AAMC_Raw_Data_for_FY22[[#This Row],[Source]]&AAMC_Raw_Data_for_FY22[[#This Row],[Type]]&AAMC_Raw_Data_for_FY22[[#This Row],[School Subset]]&AAMC_Raw_Data_for_FY22[[#This Row],[Rank]]&AAMC_Raw_Data_for_FY22[[#This Row],[Degree]]&AAMC_Raw_Data_for_FY22[[#This Row],[Department / Specialty]]&\"L\"","v":"AAMCAcademicPublicChiefPhDNeurologyL"},"Neurology",6,"AAMC","Academic","Public","Chief","PhD","2021-2022",null,{"$f":"(((AAMC_Raw_Data_for_FY22[[#This Row],[Median]]-AAMC_Raw_Data_for_FY22[[#This Row],[25th]])/25)*5) + AAMC_Raw_Data_for_FY22[[#This Row],[25th]]","v":0},{"$f":"(((AAMC_Raw_Data_for_FY22[[#This Row],[Median]]-AAMC_Raw_Data_for_FY22[[#This Row],[25th]])/25)*10) + AAMC_Raw_Data_for_FY22[[#This Row],[25th]]","v":0},{"$f":"(((AAMC_Raw_Data_for_FY22[[#This Row],[Median]]-AAMC_Raw_Data_for_FY22[[#This Row],[25th]])/25)*15) + AAMC_Raw_Data_for_FY22[[#This Row],[25th]]","v":0},{"$f":"(((AAMC_Raw_Data_for_FY22[[#This Row],[Median]]-AAMC_Raw_Data_for_FY22[[#This Row],[25th]])/25)*20) + AAMC_Raw_Data_for_FY22[[#This Row],[25th]]","v":0},null,{"$f":"(((AAMC_Raw_Data_for_FY22[[#This Row],[75th]]-AAMC_Raw_Data_for_FY22[[#This Row],[Median]])/25)*5) + AAMC_Raw_Data_for_FY22[[#This Row],[Median]]","v":0},{"$f":"(((AAMC_Raw_Data_for_FY22[[#This Row],[75th]]-AAMC_Raw_Data_for_FY22[[#This Row],[Median]])/25)*10) + AAMC_Raw_Data_for_FY22[[#This Row],[Median]]","v":0},{"$f":"(((AAMC_Raw_Data_for_FY22[[#This Row],[75th]]-AAMC_Raw_Data_for_FY22[[#This Row],[Median]])/25)*15) + AAMC_Raw_Data_for_FY22[[#This Row],[Median]]","v":0},{"$f":"(((AAMC_Raw_Data_for_FY22[[#This Row],[75th]]-AAMC_Raw_Data_for_FY22[[#This Row],[Median]])/25)*20) + AAMC_Raw_Data_for_FY22[[#This Row],[Median]]","v":0},null,{"$f":"(((AAMC_Raw_Data_for_FY22[[#This Row],[75th]]-AAMC_Raw_Data_for_FY22[[#This Row],[Median]])/25)*30) + AAMC_Raw_Data_for_FY22[[#This Row],[Median]]","v":0},{"$f":"(((AAMC_Raw_Data_for_FY22[[#This Row],[75th]]-AAMC_Raw_Data_for_FY22[[#This Row],[Median]])/25)*35) + AAMC_Raw_Data_for_FY22[[#This Row],[Median]]","v":0},{"$f":"(((AAMC_Raw_Data_for_FY22[[#This Row],[75th]]-AAMC_Raw_Data_for_FY22[[#This Row],[Median]])/25)*40) + AAMC_Raw_Data_for_FY22[[#This Row],[Median]]","v":0}]
[{"$f":"AAMC_Raw_Data_for_FY22[[#This Row],[Source]]&AAMC_Raw_Data_for_FY22[[#This Row],[Type]]&AAMC_Raw_Data_for_FY22[[#This Row],[School Subset]]&AAMC_Raw_Data_for_FY22[[#This Row],[Rank]]&AAMC_Raw_Data_for_FY22[[#This Row],[Degree]]&AAMC_Raw_Data_for_FY22[[#This Row],[Department / Specialty]]&\"L\"","v":"AAMCAcademicPublicInstructorPhDOphthalmologyL"},"Ophthalmology",5,"AAMC","Academic","Public","Instructor","PhD","2021-2022",71123,{"$f":"(((AAMC_Raw_Data_for_FY22[[#This Row],[Median]]-AAMC_Raw_Data_for_FY22[[#This Row],[25th]])/25)*5) + AAMC_Raw_Data_for_FY22[[#This Row],[25th]]","v":76509.2},{"$f":"(((AAMC_Raw_Data_for_FY22[[#This Row],[Median]]-AAMC_Raw_Data_for_FY22[[#This Row],[25th]])/25)*10) + AAMC_Raw_Data_for_FY22[[#This Row],[25th]]","v":81895.399999999994},{"$f":"(((AAMC_Raw_Data_for_FY22[[#This Row],[Median]]-AAMC_Raw_Data_for_FY22[[#This Row],[25th]])/25)*15) + AAMC_Raw_Data_for_FY22[[#This Row],[25th]]","v":87281.600000000006},{"$f":"(((AAMC_Raw_Data_for_FY22[[#This Row],[Median]]-AAMC_Raw_Data_for_FY22[[#This Row],[25th]])/25)*20) + AAMC_Raw_Data_for_FY22[[#This Row],[25th]]","v":92667.8},98054,{"$f":"(((AAMC_Raw_Data_for_FY22[[#This Row],[75th]]-AAMC_Raw_Data_for_FY22[[#This Row],[Median]])/25)*5) + AAMC_Raw_Data_for_FY22[[#This Row],[Median]]","v":111054.2},{"$f":"(((AAMC_Raw_Data_for_FY22[[#This Row],[75th]]-AAMC_Raw_Data_for_FY22[[#This Row],[Median]])/25)*10) + AAMC_Raw_Data_for_FY22[[#This Row],[Median]]","v":124054.39999999999},{"$f":"(((AAMC_Raw_Data_for_FY22[[#This Row],[75th]]-AAMC_Raw_Data_for_FY22[[#This Row],[Median]])/25)*15) + AAMC_Raw_Data_for_FY22[[#This Row],[Median]]","v":137054.6},{"$f":"(((AAMC_Raw_Data_for_FY22[[#This Row],[75th]]-AAMC_Raw_Data_for_FY22[[#This Row],[Median]])/25)*20) + AAMC_Raw_Data_for_FY22[[#This Row],[Median]]","v":150054.79999999999},163055,{"$f":"(((AAMC_Raw_Data_for_FY22[[#This Row],[75th]]-AAMC_Raw_Data_for_FY22[[#This Row],[Median]])/25)*30) + AAMC_Raw_Data_for_FY22[[#This Row],[Median]]","v":176055.2},{"$f":"(((AAMC_Raw_Data_for_FY22[[#This Row],[75th]]-AAMC_Raw_Data_for_FY22[[#This Row],[Median]])/25)*35) + AAMC_Raw_Data_for_FY22[[#This Row],[Median]]","v":189055.4},{"$f":"(((AAMC_Raw_Data_for_FY22[[#This Row],[75th]]-AAMC_Raw_Data_for_FY22[[#This Row],[Median]])/25)*40) + AAMC_Raw_Data_for_FY22[[#This Row],[Median]]","v":202055.6}]
[{"$f":"AAMC_Raw_Data_for_FY22[[#This Row],[Source]]&AAMC_Raw_Data_for_FY22[[#This Row],[Type]]&AAMC_Raw_Data_for_FY22[[#This Row],[School Subset]]&AAMC_Raw_Data_for_FY22[[#This Row],[Rank]]&AAMC_Raw_Data_for_FY22[[#This Row],[Degree]]&AAMC_Raw_Data_for_FY22[[#This Row],[Department / Specialty]]&\"L\"","v":"AAMCAcademicPublicAssistantPhDOphthalmologyL"},"Ophthalmology",4,"AAMC","Academic","Public","Assistant","PhD","2021-2022",90000,{"$f":"(((AAMC_Raw_Data_for_FY22[[#This Row],[Median]]-AAMC_Raw_Data_for_FY22[[#This Row],[25th]])/25)*5) + AAMC_Raw_Data_for_FY22[[#This Row],[25th]]","v":93646},{"$f":"(((AAMC_Raw_Data_for_FY22[[#This Row],[Median]]-AAMC_Raw_Data_for_FY22[[#This Row],[25th]])/25)*10) + AAMC_Raw_Data_for_FY22[[#This Row],[25th]]","v":97292},{"$f":"(((AAMC_Raw_Data_for_FY22[[#This Row],[Median]]-AAMC_Raw_Data_for_FY22[[#This Row],[25th]])/25)*15) + AAMC_Raw_Data_for_FY22[[#This Row],[25th]]","v":100938},{"$f":"(((AAMC_Raw_Data_for_FY22[[#This Row],[Median]]-AAMC_Raw_Data_for_FY22[[#This Row],[25th]])/25)*20) + AAMC_Raw_Data_for_FY22[[#This Row],[25th]]","v":104584},108230,{"$f":"(((AAMC_Raw_Data_for_FY22[[#This Row],[75th]]-AAMC_Raw_Data_for_FY22[[#This Row],[Median]])/25)*5) + AAMC_Raw_Data_for_FY22[[#This Row],[Median]]","v":114534},{"$f":"(((AAMC_Raw_Data_for_FY22[[#This Row],[75th]]-AAMC_Raw_Data_for_FY22[[#This Row],[Median]])/25)*10) + AAMC_Raw_Data_for_FY22[[#This Row],[Median]]","v":120838},{"$f":"(((AAMC_Raw_Data_for_FY22[[#This Row],[75th]]-AAMC_Raw_Data_for_FY22[[#This Row],[Median]])/25)*15) + AAMC_Raw_Data_for_FY22[[#This Row],[Median]]","v":127142},{"$f":"(((AAMC_Raw_Data_for_FY22[[#This Row],[75th]]-AAMC_Raw_Data_for_FY22[[#This Row],[Median]])/25)*20) + AAMC_Raw_Data_for_FY22[[#This Row],[Median]]","v":133446},139750,{"$f":"(((AAMC_Raw_Data_for_FY22[[#This Row],[75th]]-AAMC_Raw_Data_for_FY22[[#This Row],[Median]])/25)*30) + AAMC_Raw_Data_for_FY22[[#This Row],[Median]]","v":146054},{"$f":"(((AAMC_Raw_Data_for_FY22[[#This Row],[75th]]-AAMC_Raw_Data_for_FY22[[#This Row],[Median]])/25)*35) + AAMC_Raw_Data_for_FY22[[#This Row],[Median]]","v":152358},{"$f":"(((AAMC_Raw_Data_for_FY22[[#This Row],[75th]]-AAMC_Raw_Data_for_FY22[[#This Row],[Median]])/25)*40) + AAMC_Raw_Data_for_FY22[[#This Row],[Median]]","v":158662}]
[{"$f":"AAMC_Raw_Data_for_FY22[[#This Row],[Source]]&AAMC_Raw_Data_for_FY22[[#This Row],[Type]]&AAMC_Raw_Data_for_FY22[[#This Row],[School Subset]]&AAMC_Raw_Data_for_FY22[[#This Row],[Rank]]&AAMC_Raw_Data_for_FY22[[#This Row],[Degree]]&AAMC_Raw_Data_for_FY22[[#This Row],[Department / Specialty]]&\"L\"","v":"AAMCAcademicPublicAssociatePhDOphthalmologyL"},"Ophthalmology",3,"AAMC","Academic","Public","Associate","PhD","2021-2022",124437,{"$f":"(((AAMC_Raw_Data_for_FY22[[#This Row],[Median]]-AAMC_Raw_Data_for_FY22[[#This Row],[25th]])/25)*5) + AAMC_Raw_Data_for_FY22[[#This Row],[25th]]","v":128966.39999999999},{"$f":"(((AAMC_Raw_Data_for_FY22[[#This Row],[Median]]-AAMC_Raw_Data_for_FY22[[#This Row],[25th]])/25)*10) + AAMC_Raw_Data_for_FY22[[#This Row],[25th]]","v":133495.79999999999},{"$f":"(((AAMC_Raw_Data_for_FY22[[#This Row],[Median]]-AAMC_Raw_Data_for_FY22[[#This Row],[25th]])/25)*15) + AAMC_Raw_Data_for_FY22[[#This Row],[25th]]","v":138025.20000000001},{"$f":"(((AAMC_Raw_Data_for_FY22[[#This Row],[Median]]-AAMC_Raw_Data_for_FY22[[#This Row],[25th]])/25)*20) + AAMC_Raw_Data_for_FY22[[#This Row],[25th]]","v":142554.6},147084,{"$f":"(((AAMC_Raw_Data_for_FY22[[#This Row],[75th]]-AAMC_Raw_Data_for_FY22[[#This Row],[Median]])/25)*5) + AAMC_Raw_Data_for_FY22[[#This Row],[Median]]","v":150827.20000000001},{"$f":"(((AAMC_Raw_Data_for_FY22[[#This Row],[75th]]-AAMC_Raw_Data_for_FY22[[#This Row],[Median]])/25)*10) + AAMC_Raw_Data_for_FY22[[#This Row],[Median]]","v":154570.4},{"$f":"(((AAMC_Raw_Data_for_FY22[[#This Row],[75th]]-AAMC_Raw_Data_for_FY22[[#This Row],[Median]])/25)*15) + AAMC_Raw_Data_for_FY22[[#This Row],[Median]]","v":158313.60000000001},{"$f":"(((AAMC_Raw_Data_for_FY22[[#This Row],[75th]]-AAMC_Raw_Data_for_FY22[[#This Row],[Median]])/25)*20) + AAMC_Raw_Data_for_FY22[[#This Row],[Median]]","v":162056.79999999999},165800,{"$f":"(((AAMC_Raw_Data_for_FY22[[#This Row],[75th]]-AAMC_Raw_Data_for_FY22[[#This Row],[Median]])/25)*30) + AAMC_Raw_Data_for_FY22[[#This Row],[Median]]","v":169543.2},{"$f":"(((AAMC_Raw_Data_for_FY22[[#This Row],[75th]]-AAMC_Raw_Data_for_FY22[[#This Row],[Median]])/25)*35) + AAMC_Raw_Data_for_FY22[[#This Row],[Median]]","v":173286.39999999999},{"$f":"(((AAMC_Raw_Data_for_FY22[[#This Row],[75th]]-AAMC_Raw_Data_for_FY22[[#This Row],[Median]])/25)*40) + AAMC_Raw_Data_for_FY22[[#This Row],[Median]]","v":177029.6}]
[{"$f":"AAMC_Raw_Data_for_FY22[[#This Row],[Source]]&AAMC_Raw_Data_for_FY22[[#This Row],[Type]]&AAMC_Raw_Data_for_FY22[[#This Row],[School Subset]]&AAMC_Raw_Data_for_FY22[[#This Row],[Rank]]&AAMC_Raw_Data_for_FY22[[#This Row],[Degree]]&AAMC_Raw_Data_for_FY22[[#This Row],[Department / Specialty]]&\"L\"","v":"AAMCAcademicPublicProfessorPhDOphthalmologyL"},"Ophthalmology",2,"AAMC","Academic","Public","Professor","PhD","2021-2022",177646,{"$f":"(((AAMC_Raw_Data_for_FY22[[#This Row],[Median]]-AAMC_Raw_Data_for_FY22[[#This Row],[25th]])/25)*5) + AAMC_Raw_Data_for_FY22[[#This Row],[25th]]","v":183989},{"$f":"(((AAMC_Raw_Data_for_FY22[[#This Row],[Median]]-AAMC_Raw_Data_for_FY22[[#This Row],[25th]])/25)*10) + AAMC_Raw_Data_for_FY22[[#This Row],[25th]]","v":190332},{"$f":"(((AAMC_Raw_Data_for_FY22[[#This Row],[Median]]-AAMC_Raw_Data_for_FY22[[#This Row],[25th]])/25)*15) + AAMC_Raw_Data_for_FY22[[#This Row],[25th]]","v":196675},{"$f":"(((AAMC_Raw_Data_for_FY22[[#This Row],[Median]]-AAMC_Raw_Data_for_FY22[[#This Row],[25th]])/25)*20) + AAMC_Raw_Data_for_FY22[[#This Row],[25th]]","v":203018},209361,{"$f":"(((AAMC_Raw_Data_for_FY22[[#This Row],[75th]]-AAMC_Raw_Data_for_FY22[[#This Row],[Median]])/25)*5) + AAMC_Raw_Data_for_FY22[[#This Row],[Median]]","v":217688.8},{"$f":"(((AAMC_Raw_Data_for_FY22[[#This Row],[75th]]-AAMC_Raw_Data_for_FY22[[#This Row],[Median]])/25)*10) + AAMC_Raw_Data_for_FY22[[#This Row],[Median]]","v":226016.6},{"$f":"(((AAMC_Raw_Data_for_FY22[[#This Row],[75th]]-AAMC_Raw_Data_for_FY22[[#This Row],[Median]])/25)*15) + AAMC_Raw_Data_for_FY22[[#This Row],[Median]]","v":234344.4},{"$f":"(((AAMC_Raw_Data_for_FY22[[#This Row],[75th]]-AAMC_Raw_Data_for_FY22[[#This Row],[Median]])/25)*20) + AAMC_Raw_Data_for_FY22[[#This Row],[Median]]","v":242672.2},251000,{"$f":"(((AAMC_Raw_Data_for_FY22[[#This Row],[75th]]-AAMC_Raw_Data_for_FY22[[#This Row],[Median]])/25)*30) + AAMC_Raw_Data_for_FY22[[#This Row],[Median]]","v":259327.8},{"$f":"(((AAMC_Raw_Data_for_FY22[[#This Row],[75th]]-AAMC_Raw_Data_for_FY22[[#This Row],[Median]])/25)*35) + AAMC_Raw_Data_for_FY22[[#This Row],[Median]]","v":267655.59999999998},{"$f":"(((AAMC_Raw_Data_for_FY22[[#This Row],[75th]]-AAMC_Raw_Data_for_FY22[[#This Row],[Median]])/25)*40) + AAMC_Raw_Data_for_FY22[[#This Row],[Median]]","v":275983.40000000002}]
[{"$f":"AAMC_Raw_Data_for_FY22[[#This Row],[Source]]&AAMC_Raw_Data_for_FY22[[#This Row],[Type]]&AAMC_Raw_Data_for_FY22[[#This Row],[School Subset]]&AAMC_Raw_Data_for_FY22[[#This Row],[Rank]]&AAMC_Raw_Data_for_FY22[[#This Row],[Degree]]&AAMC_Raw_Data_for_FY22[[#This Row],[Department / Specialty]]&\"L\"","v":"AAMCAcademicPublicChiefPhDOphthalmologyL"},"Ophthalmology",6,"AAMC","Academic","Public","Chief","PhD","2021-2022",null,{"$f":"(((AAMC_Raw_Data_for_FY22[[#This Row],[Median]]-AAMC_Raw_Data_for_FY22[[#This Row],[25th]])/25)*5) + AAMC_Raw_Data_for_FY22[[#This Row],[25th]]","v":0},{"$f":"(((AAMC_Raw_Data_for_FY22[[#This Row],[Median]]-AAMC_Raw_Data_for_FY22[[#This Row],[25th]])/25)*10) + AAMC_Raw_Data_for_FY22[[#This Row],[25th]]","v":0},{"$f":"(((AAMC_Raw_Data_for_FY22[[#This Row],[Median]]-AAMC_Raw_Data_for_FY22[[#This Row],[25th]])/25)*15) + AAMC_Raw_Data_for_FY22[[#This Row],[25th]]","v":0},{"$f":"(((AAMC_Raw_Data_for_FY22[[#This Row],[Median]]-AAMC_Raw_Data_for_FY22[[#This Row],[25th]])/25)*20) + AAMC_Raw_Data_for_FY22[[#This Row],[25th]]","v":0},null,{"$f":"(((AAMC_Raw_Data_for_FY22[[#This Row],[75th]]-AAMC_Raw_Data_for_FY22[[#This Row],[Median]])/25)*5) + AAMC_Raw_Data_for_FY22[[#This Row],[Median]]","v":0},{"$f":"(((AAMC_Raw_Data_for_FY22[[#This Row],[75th]]-AAMC_Raw_Data_for_FY22[[#This Row],[Median]])/25)*10) + AAMC_Raw_Data_for_FY22[[#This Row],[Median]]","v":0},{"$f":"(((AAMC_Raw_Data_for_FY22[[#This Row],[75th]]-AAMC_Raw_Data_for_FY22[[#This Row],[Median]])/25)*15) + AAMC_Raw_Data_for_FY22[[#This Row],[Median]]","v":0},{"$f":"(((AAMC_Raw_Data_for_FY22[[#This Row],[75th]]-AAMC_Raw_Data_for_FY22[[#This Row],[Median]])/25)*20) + AAMC_Raw_Data_for_FY22[[#This Row],[Median]]","v":0},null,{"$f":"(((AAMC_Raw_Data_for_FY22[[#This Row],[75th]]-AAMC_Raw_Data_for_FY22[[#This Row],[Median]])/25)*30) + AAMC_Raw_Data_for_FY22[[#This Row],[Median]]","v":0},{"$f":"(((AAMC_Raw_Data_for_FY22[[#This Row],[75th]]-AAMC_Raw_Data_for_FY22[[#This Row],[Median]])/25)*35) + AAMC_Raw_Data_for_FY22[[#This Row],[Median]]","v":0},{"$f":"(((AAMC_Raw_Data_for_FY22[[#This Row],[75th]]-AAMC_Raw_Data_for_FY22[[#This Row],[Median]])/25)*40) + AAMC_Raw_Data_for_FY22[[#This Row],[Median]]","v":0}]
[{"$f":"AAMC_Raw_Data_for_FY22[[#This Row],[Source]]&AAMC_Raw_Data_for_FY22[[#This Row],[Type]]&AAMC_Raw_Data_for_FY22[[#This Row],[School Subset]]&AAMC_Raw_Data_for_FY22[[#This Row],[Rank]]&AAMC_Raw_Data_for_FY22[[#This Row],[Degree]]&AAMC_Raw_Data_for_FY22[[#This Row],[Department / Specialty]]&\"L\"","v":"AAMCAcademicPublicInstructorPhDOtolaryngologyL"},"Otolaryngology",5,"AAMC","Academic","Public","Instructor","PhD","2021-2022",79783,{"$f":"(((AAMC_Raw_Data_for_FY22[[#This Row],[Median]]-AAMC_Raw_Data_for_FY22[[#This Row],[25th]])/25)*5) + AAMC_Raw_Data_for_FY22[[#This Row],[25th]]","v":80926.399999999994},{"$f":"(((AAMC_Raw_Data_for_FY22[[#This Row],[Median]]-AAMC_Raw_Data_for_FY22[[#This Row],[25th]])/25)*10) + AAMC_Raw_Data_for_FY22[[#This Row],[25th]]","v":82069.8},{"$f":"(((AAMC_Raw_Data_for_FY22[[#This Row],[Median]]-AAMC_Raw_Data_for_FY22[[#This Row],[25th]])/25)*15) + AAMC_Raw_Data_for_FY22[[#This Row],[25th]]","v":83213.2},{"$f":"(((AAMC_Raw_Data_for_FY22[[#This Row],[Median]]-AAMC_Raw_Data_for_FY22[[#This Row],[25th]])/25)*20) + AAMC_Raw_Data_for_FY22[[#This Row],[25th]]","v":84356.6},85500,{"$f":"(((AAMC_Raw_Data_for_FY22[[#This Row],[75th]]-AAMC_Raw_Data_for_FY22[[#This Row],[Median]])/25)*5) + AAMC_Raw_Data_for_FY22[[#This Row],[Median]]","v":86682},{"$f":"(((AAMC_Raw_Data_for_FY22[[#This Row],[75th]]-AAMC_Raw_Data_for_FY22[[#This Row],[Median]])/25)*10) + AAMC_Raw_Data_for_FY22[[#This Row],[Median]]","v":87864},{"$f":"(((AAMC_Raw_Data_for_FY22[[#This Row],[75th]]-AAMC_Raw_Data_for_FY22[[#This Row],[Median]])/25)*15) + AAMC_Raw_Data_for_FY22[[#This Row],[Median]]","v":89046},{"$f":"(((AAMC_Raw_Data_for_FY22[[#This Row],[75th]]-AAMC_Raw_Data_for_FY22[[#This Row],[Median]])/25)*20) + AAMC_Raw_Data_for_FY22[[#This Row],[Median]]","v":90228},91410,{"$f":"(((AAMC_Raw_Data_for_FY22[[#This Row],[75th]]-AAMC_Raw_Data_for_FY22[[#This Row],[Median]])/25)*30) + AAMC_Raw_Data_for_FY22[[#This Row],[Median]]","v":92592},{"$f":"(((AAMC_Raw_Data_for_FY22[[#This Row],[75th]]-AAMC_Raw_Data_for_FY22[[#This Row],[Median]])/25)*35) + AAMC_Raw_Data_for_FY22[[#This Row],[Median]]","v":93774},{"$f":"(((AAMC_Raw_Data_for_FY22[[#This Row],[75th]]-AAMC_Raw_Data_for_FY22[[#This Row],[Median]])/25)*40) + AAMC_Raw_Data_for_FY22[[#This Row],[Median]]","v":94956}]
[{"$f":"AAMC_Raw_Data_for_FY22[[#This Row],[Source]]&AAMC_Raw_Data_for_FY22[[#This Row],[Type]]&AAMC_Raw_Data_for_FY22[[#This Row],[School Subset]]&AAMC_Raw_Data_for_FY22[[#This Row],[Rank]]&AAMC_Raw_Data_for_FY22[[#This Row],[Degree]]&AAMC_Raw_Data_for_FY22[[#This Row],[Department / Specialty]]&\"L\"","v":"AAMCAcademicPublicAssistantPhDOtolaryngologyL"},"Otolaryngology",4,"AAMC","Academic","Public","Assistant","PhD","2021-2022",84043,{"$f":"(((AAMC_Raw_Data_for_FY22[[#This Row],[Median]]-AAMC_Raw_Data_for_FY22[[#This Row],[25th]])/25)*5) + AAMC_Raw_Data_for_FY22[[#This Row],[25th]]","v":88234.4},{"$f":"(((AAMC_Raw_Data_for_FY22[[#This Row],[Median]]-AAMC_Raw_Data_for_FY22[[#This Row],[25th]])/25)*10) + AAMC_Raw_Data_for_FY22[[#This Row],[25th]]","v":92425.8},{"$f":"(((AAMC_Raw_Data_for_FY22[[#This Row],[Median]]-AAMC_Raw_Data_for_FY22[[#This Row],[25th]])/25)*15) + AAMC_Raw_Data_for_FY22[[#This Row],[25th]]","v":96617.2},{"$f":"(((AAMC_Raw_Data_for_FY22[[#This Row],[Median]]-AAMC_Raw_Data_for_FY22[[#This Row],[25th]])/25)*20) + AAMC_Raw_Data_for_FY22[[#This Row],[25th]]","v":100808.6},105000,{"$f":"(((AAMC_Raw_Data_for_FY22[[#This Row],[75th]]-AAMC_Raw_Data_for_FY22[[#This Row],[Median]])/25)*5) + AAMC_Raw_Data_for_FY22[[#This Row],[Median]]","v":108859.2},{"$f":"(((AAMC_Raw_Data_for_FY22[[#This Row],[75th]]-AAMC_Raw_Data_for_FY22[[#This Row],[Median]])/25)*10) + AAMC_Raw_Data_for_FY22[[#This Row],[Median]]","v":112718.39999999999},{"$f":"(((AAMC_Raw_Data_for_FY22[[#This Row],[75th]]-AAMC_Raw_Data_for_FY22[[#This Row],[Median]])/25)*15) + AAMC_Raw_Data_for_FY22[[#This Row],[Median]]","v":116577.60000000001},{"$f":"(((AAMC_Raw_Data_for_FY22[[#This Row],[75th]]-AAMC_Raw_Data_for_FY22[[#This Row],[Median]])/25)*20) + AAMC_Raw_Data_for_FY22[[#This Row],[Median]]","v":120436.8},124296,{"$f":"(((AAMC_Raw_Data_for_FY22[[#This Row],[75th]]-AAMC_Raw_Data_for_FY22[[#This Row],[Median]])/25)*30) + AAMC_Raw_Data_for_FY22[[#This Row],[Median]]","v":128155.2},{"$f":"(((AAMC_Raw_Data_for_FY22[[#This Row],[75th]]-AAMC_Raw_Data_for_FY22[[#This Row],[Median]])/25)*35) + AAMC_Raw_Data_for_FY22[[#This Row],[Median]]","v":132014.39999999999},{"$f":"(((AAMC_Raw_Data_for_FY22[[#This Row],[75th]]-AAMC_Raw_Data_for_FY22[[#This Row],[Median]])/25)*40) + AAMC_Raw_Data_for_FY22[[#This Row],[Median]]","v":135873.60000000001}]
[{"$f":"AAMC_Raw_Data_for_FY22[[#This Row],[Source]]&AAMC_Raw_Data_for_FY22[[#This Row],[Type]]&AAMC_Raw_Data_for_FY22[[#This Row],[School Subset]]&AAMC_Raw_Data_for_FY22[[#This Row],[Rank]]&AAMC_Raw_Data_for_FY22[[#This Row],[Degree]]&AAMC_Raw_Data_for_FY22[[#This Row],[Department / Specialty]]&\"L\"","v":"AAMCAcademicPublicAssociatePhDOtolaryngologyL"},"Otolaryngology",3,"AAMC","Academic","Public","Associate","PhD","2021-2022",115457,{"$f":"(((AAMC_Raw_Data_for_FY22[[#This Row],[Median]]-AAMC_Raw_Data_for_FY22[[#This Row],[25th]])/25)*5) + AAMC_Raw_Data_for_FY22[[#This Row],[25th]]","v":119647.4},{"$f":"(((AAMC_Raw_Data_for_FY22[[#This Row],[Median]]-AAMC_Raw_Data_for_FY22[[#This Row],[25th]])/25)*10) + AAMC_Raw_Data_for_FY22[[#This Row],[25th]]","v":123837.8},{"$f":"(((AAMC_Raw_Data_for_FY22[[#This Row],[Median]]-AAMC_Raw_Data_for_FY22[[#This Row],[25th]])/25)*15) + AAMC_Raw_Data_for_FY22[[#This Row],[25th]]","v":128028.2},{"$f":"(((AAMC_Raw_Data_for_FY22[[#This Row],[Median]]-AAMC_Raw_Data_for_FY22[[#This Row],[25th]])/25)*20) + AAMC_Raw_Data_for_FY22[[#This Row],[25th]]","v":132218.6},136409,{"$f":"(((AAMC_Raw_Data_for_FY22[[#This Row],[75th]]-AAMC_Raw_Data_for_FY22[[#This Row],[Median]])/25)*5) + AAMC_Raw_Data_for_FY22[[#This Row],[Median]]","v":139382.20000000001},{"$f":"(((AAMC_Raw_Data_for_FY22[[#This Row],[75th]]-AAMC_Raw_Data_for_FY22[[#This Row],[Median]])/25)*10) + AAMC_Raw_Data_for_FY22[[#This Row],[Median]]","v":142355.4},{"$f":"(((AAMC_Raw_Data_for_FY22[[#This Row],[75th]]-AAMC_Raw_Data_for_FY22[[#This Row],[Median]])/25)*15) + AAMC_Raw_Data_for_FY22[[#This Row],[Median]]","v":145328.6},{"$f":"(((AAMC_Raw_Data_for_FY22[[#This Row],[75th]]-AAMC_Raw_Data_for_FY22[[#This Row],[Median]])/25)*20) + AAMC_Raw_Data_for_FY22[[#This Row],[Median]]","v":148301.79999999999},151275,{"$f":"(((AAMC_Raw_Data_for_FY22[[#This Row],[75th]]-AAMC_Raw_Data_for_FY22[[#This Row],[Median]])/25)*30) + AAMC_Raw_Data_for_FY22[[#This Row],[Median]]","v":154248.20000000001},{"$f":"(((AAMC_Raw_Data_for_FY22[[#This Row],[75th]]-AAMC_Raw_Data_for_FY22[[#This Row],[Median]])/25)*35) + AAMC_Raw_Data_for_FY22[[#This Row],[Median]]","v":157221.4},{"$f":"(((AAMC_Raw_Data_for_FY22[[#This Row],[75th]]-AAMC_Raw_Data_for_FY22[[#This Row],[Median]])/25)*40) + AAMC_Raw_Data_for_FY22[[#This Row],[Median]]","v":160194.6}]
[{"$f":"AAMC_Raw_Data_for_FY22[[#This Row],[Source]]&AAMC_Raw_Data_for_FY22[[#This Row],[Type]]&AAMC_Raw_Data_for_FY22[[#This Row],[School Subset]]&AAMC_Raw_Data_for_FY22[[#This Row],[Rank]]&AAMC_Raw_Data_for_FY22[[#This Row],[Degree]]&AAMC_Raw_Data_for_FY22[[#This Row],[Department / Specialty]]&\"L\"","v":"AAMCAcademicPublicProfessorPhDOtolaryngologyL"},"Otolaryngology",2,"AAMC","Academic","Public","Professor","PhD","2021-2022",167349,{"$f":"(((AAMC_Raw_Data_for_FY22[[#This Row],[Median]]-AAMC_Raw_Data_for_FY22[[#This Row],[25th]])/25)*5) + AAMC_Raw_Data_for_FY22[[#This Row],[25th]]","v":172722},{"$f":"(((AAMC_Raw_Data_for_FY22[[#This Row],[Median]]-AAMC_Raw_Data_for_FY22[[#This Row],[25th]])/25)*10) + AAMC_Raw_Data_for_FY22[[#This Row],[25th]]","v":178095},{"$f":"(((AAMC_Raw_Data_for_FY22[[#This Row],[Median]]-AAMC_Raw_Data_for_FY22[[#This Row],[25th]])/25)*15) + AAMC_Raw_Data_for_FY22[[#This Row],[25th]]","v":183468},{"$f":"(((AAMC_Raw_Data_for_FY22[[#This Row],[Median]]-AAMC_Raw_Data_for_FY22[[#This Row],[25th]])/25)*20) + AAMC_Raw_Data_for_FY22[[#This Row],[25th]]","v":188841},194214,{"$f":"(((AAMC_Raw_Data_for_FY22[[#This Row],[75th]]-AAMC_Raw_Data_for_FY22[[#This Row],[Median]])/25)*5) + AAMC_Raw_Data_for_FY22[[#This Row],[Median]]","v":199139.20000000001},{"$f":"(((AAMC_Raw_Data_for_FY22[[#This Row],[75th]]-AAMC_Raw_Data_for_FY22[[#This Row],[Median]])/25)*10) + AAMC_Raw_Data_for_FY22[[#This Row],[Median]]","v":204064.4},{"$f":"(((AAMC_Raw_Data_for_FY22[[#This Row],[75th]]-AAMC_Raw_Data_for_FY22[[#This Row],[Median]])/25)*15) + AAMC_Raw_Data_for_FY22[[#This Row],[Median]]","v":208989.6},{"$f":"(((AAMC_Raw_Data_for_FY22[[#This Row],[75th]]-AAMC_Raw_Data_for_FY22[[#This Row],[Median]])/25)*20) + AAMC_Raw_Data_for_FY22[[#This Row],[Median]]","v":213914.8},218840,{"$f":"(((AAMC_Raw_Data_for_FY22[[#This Row],[75th]]-AAMC_Raw_Data_for_FY22[[#This Row],[Median]])/25)*30) + AAMC_Raw_Data_for_FY22[[#This Row],[Median]]","v":223765.2},{"$f":"(((AAMC_Raw_Data_for_FY22[[#This Row],[75th]]-AAMC_Raw_Data_for_FY22[[#This Row],[Median]])/25)*35) + AAMC_Raw_Data_for_FY22[[#This Row],[Median]]","v":228690.4},{"$f":"(((AAMC_Raw_Data_for_FY22[[#This Row],[75th]]-AAMC_Raw_Data_for_FY22[[#This Row],[Median]])/25)*40) + AAMC_Raw_Data_for_FY22[[#This Row],[Median]]","v":233615.6}]
[{"$f":"AAMC_Raw_Data_for_FY22[[#This Row],[Source]]&AAMC_Raw_Data_for_FY22[[#This Row],[Type]]&AAMC_Raw_Data_for_FY22[[#This Row],[School Subset]]&AAMC_Raw_Data_for_FY22[[#This Row],[Rank]]&AAMC_Raw_Data_for_FY22[[#This Row],[Degree]]&AAMC_Raw_Data_for_FY22[[#This Row],[Department / Specialty]]&\"L\"","v":"AAMCAcademicPublicChiefPhDOtolaryngologyL"},"Otolaryngology",6,"AAMC","Academic","Public","Chief","PhD","2021-2022",null,{"$f":"(((AAMC_Raw_Data_for_FY22[[#This Row],[Median]]-AAMC_Raw_Data_for_FY22[[#This Row],[25th]])/25)*5) + AAMC_Raw_Data_for_FY22[[#This Row],[25th]]","v":0},{"$f":"(((AAMC_Raw_Data_for_FY22[[#This Row],[Median]]-AAMC_Raw_Data_for_FY22[[#This Row],[25th]])/25)*10) + AAMC_Raw_Data_for_FY22[[#This Row],[25th]]","v":0},{"$f":"(((AAMC_Raw_Data_for_FY22[[#This Row],[Median]]-AAMC_Raw_Data_for_FY22[[#This Row],[25th]])/25)*15) + AAMC_Raw_Data_for_FY22[[#This Row],[25th]]","v":0},{"$f":"(((AAMC_Raw_Data_for_FY22[[#This Row],[Median]]-AAMC_Raw_Data_for_FY22[[#This Row],[25th]])/25)*20) + AAMC_Raw_Data_for_FY22[[#This Row],[25th]]","v":0},null,{"$f":"(((AAMC_Raw_Data_for_FY22[[#This Row],[75th]]-AAMC_Raw_Data_for_FY22[[#This Row],[Median]])/25)*5) + AAMC_Raw_Data_for_FY22[[#This Row],[Median]]","v":0},{"$f":"(((AAMC_Raw_Data_for_FY22[[#This Row],[75th]]-AAMC_Raw_Data_for_FY22[[#This Row],[Median]])/25)*10) + AAMC_Raw_Data_for_FY22[[#This Row],[Median]]","v":0},{"$f":"(((AAMC_Raw_Data_for_FY22[[#This Row],[75th]]-AAMC_Raw_Data_for_FY22[[#This Row],[Median]])/25)*15) + AAMC_Raw_Data_for_FY22[[#This Row],[Median]]","v":0},{"$f":"(((AAMC_Raw_Data_for_FY22[[#This Row],[75th]]-AAMC_Raw_Data_for_FY22[[#This Row],[Median]])/25)*20) + AAMC_Raw_Data_for_FY22[[#This Row],[Median]]","v":0},null,{"$f":"(((AAMC_Raw_Data_for_FY22[[#This Row],[75th]]-AAMC_Raw_Data_for_FY22[[#This Row],[Median]])/25)*30) + AAMC_Raw_Data_for_FY22[[#This Row],[Median]]","v":0},{"$f":"(((AAMC_Raw_Data_for_FY22[[#This Row],[75th]]-AAMC_Raw_Data_for_FY22[[#This Row],[Median]])/25)*35) + AAMC_Raw_Data_for_FY22[[#This Row],[Median]]","v":0},{"$f":"(((AAMC_Raw_Data_for_FY22[[#This Row],[75th]]-AAMC_Raw_Data_for_FY22[[#This Row],[Median]])/25)*40) + AAMC_Raw_Data_for_FY22[[#This Row],[Median]]","v":0}]
[{"$f":"AAMC_Raw_Data_for_FY22[[#This Row],[Source]]&AAMC_Raw_Data_for_FY22[[#This Row],[Type]]&AAMC_Raw_Data_for_FY22[[#This Row],[School Subset]]&AAMC_Raw_Data_for_FY22[[#This Row],[Rank]]&AAMC_Raw_Data_for_FY22[[#This Row],[Degree]]&AAMC_Raw_Data_for_FY22[[#This Row],[Department / Specialty]]&\"L\"","v":"AAMCAcademicPublicChairPhDOtolaryngologyL"},"Otolaryngology",1,"AAMC","Academic","Public","Chair","PhD","2021-2022",null,{"$f":"(((AAMC_Raw_Data_for_FY22[[#This Row],[Median]]-AAMC_Raw_Data_for_FY22[[#This Row],[25th]])/25)*5) + AAMC_Raw_Data_for_FY22[[#This Row],[25th]]","v":0},{"$f":"(((AAMC_Raw_Data_for_FY22[[#This Row],[Median]]-AAMC_Raw_Data_for_FY22[[#This Row],[25th]])/25)*10) + AAMC_Raw_Data_for_FY22[[#This Row],[25th]]","v":0},{"$f":"(((AAMC_Raw_Data_for_FY22[[#This Row],[Median]]-AAMC_Raw_Data_for_FY22[[#This Row],[25th]])/25)*15) + AAMC_Raw_Data_for_FY22[[#This Row],[25th]]","v":0},{"$f":"(((AAMC_Raw_Data_for_FY22[[#This Row],[Median]]-AAMC_Raw_Data_for_FY22[[#This Row],[25th]])/25)*20) + AAMC_Raw_Data_for_FY22[[#This Row],[25th]]","v":0},null,{"$f":"(((AAMC_Raw_Data_for_FY22[[#This Row],[75th]]-AAMC_Raw_Data_for_FY22[[#This Row],[Median]])/25)*5) + AAMC_Raw_Data_for_FY22[[#This Row],[Median]]","v":0},{"$f":"(((AAMC_Raw_Data_for_FY22[[#This Row],[75th]]-AAMC_Raw_Data_for_FY22[[#This Row],[Median]])/25)*10) + AAMC_Raw_Data_for_FY22[[#This Row],[Median]]","v":0},{"$f":"(((AAMC_Raw_Data_for_FY22[[#This Row],[75th]]-AAMC_Raw_Data_for_FY22[[#This Row],[Median]])/25)*15) + AAMC_Raw_Data_for_FY22[[#This Row],[Median]]","v":0},{"$f":"(((AAMC_Raw_Data_for_FY22[[#This Row],[75th]]-AAMC_Raw_Data_for_FY22[[#This Row],[Median]])/25)*20) + AAMC_Raw_Data_for_FY22[[#This Row],[Median]]","v":0},null,{"$f":"(((AAMC_Raw_Data_for_FY22[[#This Row],[75th]]-AAMC_Raw_Data_for_FY22[[#This Row],[Median]])/25)*30) + AAMC_Raw_Data_for_FY22[[#This Row],[Median]]","v":0},{"$f":"(((AAMC_Raw_Data_for_FY22[[#This Row],[75th]]-AAMC_Raw_Data_for_FY22[[#This Row],[Median]])/25)*35) + AAMC_Raw_Data_for_FY22[[#This Row],[Median]]","v":0},{"$f":"(((AAMC_Raw_Data_for_FY22[[#This Row],[75th]]-AAMC_Raw_Data_for_FY22[[#This Row],[Median]])/25)*40) + AAMC_Raw_Data_for_FY22[[#This Row],[Median]]","v":0}]
[{"$f":"AAMC_Raw_Data_for_FY22[[#This Row],[Source]]&AAMC_Raw_Data_for_FY22[[#This Row],[Type]]&AAMC_Raw_Data_for_FY22[[#This Row],[School Subset]]&AAMC_Raw_Data_for_FY22[[#This Row],[Rank]]&AAMC_Raw_Data_for_FY22[[#This Row],[Degree]]&AAMC_Raw_Data_for_FY22[[#This Row],[Department / Specialty]]&\"L\"","v":"AAMCAcademicPublicInstructorPhDPhysical Medicine & RehabilitationL"},"Physical Medicine & Rehabilitation",5,"AAMC","Academic","Public","Instructor","PhD","2021-2022",82662,{"$f":"(((AAMC_Raw_Data_for_FY22[[#This Row],[Median]]-AAMC_Raw_Data_for_FY22[[#This Row],[25th]])/25)*5) + AAMC_Raw_Data_for_FY22[[#This Row],[25th]]","v":84409.600000000006},{"$f":"(((AAMC_Raw_Data_for_FY22[[#This Row],[Median]]-AAMC_Raw_Data_for_FY22[[#This Row],[25th]])/25)*10) + AAMC_Raw_Data_for_FY22[[#This Row],[25th]]","v":86157.2},{"$f":"(((AAMC_Raw_Data_for_FY22[[#This Row],[Median]]-AAMC_Raw_Data_for_FY22[[#This Row],[25th]])/25)*15) + AAMC_Raw_Data_for_FY22[[#This Row],[25th]]","v":87904.8},{"$f":"(((AAMC_Raw_Data_for_FY22[[#This Row],[Median]]-AAMC_Raw_Data_for_FY22[[#This Row],[25th]])/25)*20) + AAMC_Raw_Data_for_FY22[[#This Row],[25th]]","v":89652.4},91400,{"$f":"(((AAMC_Raw_Data_for_FY22[[#This Row],[75th]]-AAMC_Raw_Data_for_FY22[[#This Row],[Median]])/25)*5) + AAMC_Raw_Data_for_FY22[[#This Row],[Median]]","v":92624.6},{"$f":"(((AAMC_Raw_Data_for_FY22[[#This Row],[75th]]-AAMC_Raw_Data_for_FY22[[#This Row],[Median]])/25)*10) + AAMC_Raw_Data_for_FY22[[#This Row],[Median]]","v":93849.2},{"$f":"(((AAMC_Raw_Data_for_FY22[[#This Row],[75th]]-AAMC_Raw_Data_for_FY22[[#This Row],[Median]])/25)*15) + AAMC_Raw_Data_for_FY22[[#This Row],[Median]]","v":95073.8},{"$f":"(((AAMC_Raw_Data_for_FY22[[#This Row],[75th]]-AAMC_Raw_Data_for_FY22[[#This Row],[Median]])/25)*20) + AAMC_Raw_Data_for_FY22[[#This Row],[Median]]","v":96298.4},97523,{"$f":"(((AAMC_Raw_Data_for_FY22[[#This Row],[75th]]-AAMC_Raw_Data_for_FY22[[#This Row],[Median]])/25)*30) + AAMC_Raw_Data_for_FY22[[#This Row],[Median]]","v":98747.6},{"$f":"(((AAMC_Raw_Data_for_FY22[[#This Row],[75th]]-AAMC_Raw_Data_for_FY22[[#This Row],[Median]])/25)*35) + AAMC_Raw_Data_for_FY22[[#This Row],[Median]]","v":99972.2},{"$f":"(((AAMC_Raw_Data_for_FY22[[#This Row],[75th]]-AAMC_Raw_Data_for_FY22[[#This Row],[Median]])/25)*40) + AAMC_Raw_Data_for_FY22[[#This Row],[Median]]","v":101196.8}]
[{"$f":"AAMC_Raw_Data_for_FY22[[#This Row],[Source]]&AAMC_Raw_Data_for_FY22[[#This Row],[Type]]&AAMC_Raw_Data_for_FY22[[#This Row],[School Subset]]&AAMC_Raw_Data_for_FY22[[#This Row],[Rank]]&AAMC_Raw_Data_for_FY22[[#This Row],[Degree]]&AAMC_Raw_Data_for_FY22[[#This Row],[Department / Specialty]]&\"L\"","v":"AAMCAcademicPublicAssistantPhDPhysical Medicine & RehabilitationL"},"Physical Medicine & Rehabilitation",4,"AAMC","Academic","Public","Assistant","PhD","2021-2022",102806,{"$f":"(((AAMC_Raw_Data_for_FY22[[#This Row],[Median]]-AAMC_Raw_Data_for_FY22[[#This Row],[25th]])/25)*5) + AAMC_Raw_Data_for_FY22[[#This Row],[25th]]","v":105204.8},{"$f":"(((AAMC_Raw_Data_for_FY22[[#This Row],[Median]]-AAMC_Raw_Data_for_FY22[[#This Row],[25th]])/25)*10) + AAMC_Raw_Data_for_FY22[[#This Row],[25th]]","v":107603.6},{"$f":"(((AAMC_Raw_Data_for_FY22[[#This Row],[Median]]-AAMC_Raw_Data_for_FY22[[#This Row],[25th]])/25)*15) + AAMC_Raw_Data_for_FY22[[#This Row],[25th]]","v":110002.4},{"$f":"(((AAMC_Raw_Data_for_FY22[[#This Row],[Median]]-AAMC_Raw_Data_for_FY22[[#This Row],[25th]])/25)*20) + AAMC_Raw_Data_for_FY22[[#This Row],[25th]]","v":112401.2},114800,{"$f":"(((AAMC_Raw_Data_for_FY22[[#This Row],[75th]]-AAMC_Raw_Data_for_FY22[[#This Row],[Median]])/25)*5) + AAMC_Raw_Data_for_FY22[[#This Row],[Median]]","v":117946.2},{"$f":"(((AAMC_Raw_Data_for_FY22[[#This Row],[75th]]-AAMC_Raw_Data_for_FY22[[#This Row],[Median]])/25)*10) + AAMC_Raw_Data_for_FY22[[#This Row],[Median]]","v":121092.4},{"$f":"(((AAMC_Raw_Data_for_FY22[[#This Row],[75th]]-AAMC_Raw_Data_for_FY22[[#This Row],[Median]])/25)*15) + AAMC_Raw_Data_for_FY22[[#This Row],[Median]]","v":124238.6},{"$f":"(((AAMC_Raw_Data_for_FY22[[#This Row],[75th]]-AAMC_Raw_Data_for_FY22[[#This Row],[Median]])/25)*20) + AAMC_Raw_Data_for_FY22[[#This Row],[Median]]","v":127384.8},130531,{"$f":"(((AAMC_Raw_Data_for_FY22[[#This Row],[75th]]-AAMC_Raw_Data_for_FY22[[#This Row],[Median]])/25)*30) + AAMC_Raw_Data_for_FY22[[#This Row],[Median]]","v":133677.20000000001},{"$f":"(((AAMC_Raw_Data_for_FY22[[#This Row],[75th]]-AAMC_Raw_Data_for_FY22[[#This Row],[Median]])/25)*35) + AAMC_Raw_Data_for_FY22[[#This Row],[Median]]","v":136823.4},{"$f":"(((AAMC_Raw_Data_for_FY22[[#This Row],[75th]]-AAMC_Raw_Data_for_FY22[[#This Row],[Median]])/25)*40) + AAMC_Raw_Data_for_FY22[[#This Row],[Median]]","v":139969.60000000001}]
[{"$f":"AAMC_Raw_Data_for_FY22[[#This Row],[Source]]&AAMC_Raw_Data_for_FY22[[#This Row],[Type]]&AAMC_Raw_Data_for_FY22[[#This Row],[School Subset]]&AAMC_Raw_Data_for_FY22[[#This Row],[Rank]]&AAMC_Raw_Data_for_FY22[[#This Row],[Degree]]&AAMC_Raw_Data_for_FY22[[#This Row],[Department / Specialty]]&\"L\"","v":"AAMCAcademicPublicAssociatePhDPhysical Medicine & RehabilitationL"},"Physical Medicine & Rehabilitation",3,"AAMC","Academic","Public","Associate","PhD","2021-2022",112824,{"$f":"(((AAMC_Raw_Data_for_FY22[[#This Row],[Median]]-AAMC_Raw_Data_for_FY22[[#This Row],[25th]])/25)*5) + AAMC_Raw_Data_for_FY22[[#This Row],[25th]]","v":115035},{"$f":"(((AAMC_Raw_Data_for_FY22[[#This Row],[Median]]-AAMC_Raw_Data_for_FY22[[#This Row],[25th]])/25)*10) + AAMC_Raw_Data_for_FY22[[#This Row],[25th]]","v":117246},{"$f":"(((AAMC_Raw_Data_for_FY22[[#This Row],[Median]]-AAMC_Raw_Data_for_FY22[[#This Row],[25th]])/25)*15) + AAMC_Raw_Data_for_FY22[[#This Row],[25th]]","v":119457},{"$f":"(((AAMC_Raw_Data_for_FY22[[#This Row],[Median]]-AAMC_Raw_Data_for_FY22[[#This Row],[25th]])/25)*20) + AAMC_Raw_Data_for_FY22[[#This Row],[25th]]","v":121668},123879,{"$f":"(((AAMC_Raw_Data_for_FY22[[#This Row],[75th]]-AAMC_Raw_Data_for_FY22[[#This Row],[Median]])/25)*5) + AAMC_Raw_Data_for_FY22[[#This Row],[Median]]","v":129543.2},{"$f":"(((AAMC_Raw_Data_for_FY22[[#This Row],[75th]]-AAMC_Raw_Data_for_FY22[[#This Row],[Median]])/25)*10) + AAMC_Raw_Data_for_FY22[[#This Row],[Median]]","v":135207.4},{"$f":"(((AAMC_Raw_Data_for_FY22[[#This Row],[75th]]-AAMC_Raw_Data_for_FY22[[#This Row],[Median]])/25)*15) + AAMC_Raw_Data_for_FY22[[#This Row],[Median]]","v":140871.6},{"$f":"(((AAMC_Raw_Data_for_FY22[[#This Row],[75th]]-AAMC_Raw_Data_for_FY22[[#This Row],[Median]])/25)*20) + AAMC_Raw_Data_for_FY22[[#This Row],[Median]]","v":146535.79999999999},152200,{"$f":"(((AAMC_Raw_Data_for_FY22[[#This Row],[75th]]-AAMC_Raw_Data_for_FY22[[#This Row],[Median]])/25)*30) + AAMC_Raw_Data_for_FY22[[#This Row],[Median]]","v":157864.20000000001},{"$f":"(((AAMC_Raw_Data_for_FY22[[#This Row],[75th]]-AAMC_Raw_Data_for_FY22[[#This Row],[Median]])/25)*35) + AAMC_Raw_Data_for_FY22[[#This Row],[Median]]","v":163528.4},{"$f":"(((AAMC_Raw_Data_for_FY22[[#This Row],[75th]]-AAMC_Raw_Data_for_FY22[[#This Row],[Median]])/25)*40) + AAMC_Raw_Data_for_FY22[[#This Row],[Median]]","v":169192.6}]
[{"$f":"AAMC_Raw_Data_for_FY22[[#This Row],[Source]]&AAMC_Raw_Data_for_FY22[[#This Row],[Type]]&AAMC_Raw_Data_for_FY22[[#This Row],[School Subset]]&AAMC_Raw_Data_for_FY22[[#This Row],[Rank]]&AAMC_Raw_Data_for_FY22[[#This Row],[Degree]]&AAMC_Raw_Data_for_FY22[[#This Row],[Department / Specialty]]&\"L\"","v":"AAMCAcademicPublicProfessorPhDPhysical Medicine & RehabilitationL"},"Physical Medicine & Rehabilitation",2,"AAMC","Academic","Public","Professor","PhD","2021-2022",168675,{"$f":"(((AAMC_Raw_Data_for_FY22[[#This Row],[Median]]-AAMC_Raw_Data_for_FY22[[#This Row],[25th]])/25)*5) + AAMC_Raw_Data_for_FY22[[#This Row],[25th]]","v":174216.2},{"$f":"(((AAMC_Raw_Data_for_FY22[[#This Row],[Median]]-AAMC_Raw_Data_for_FY22[[#This Row],[25th]])/25)*10) + AAMC_Raw_Data_for_FY22[[#This Row],[25th]]","v":179757.4},{"$f":"(((AAMC_Raw_Data_for_FY22[[#This Row],[Median]]-AAMC_Raw_Data_for_FY22[[#This Row],[25th]])/25)*15) + AAMC_Raw_Data_for_FY22[[#This Row],[25th]]","v":185298.6},{"$f":"(((AAMC_Raw_Data_for_FY22[[#This Row],[Median]]-AAMC_Raw_Data_for_FY22[[#This Row],[25th]])/25)*20) + AAMC_Raw_Data_for_FY22[[#This Row],[25th]]","v":190839.8},196381,{"$f":"(((AAMC_Raw_Data_for_FY22[[#This Row],[75th]]-AAMC_Raw_Data_for_FY22[[#This Row],[Median]])/25)*5) + AAMC_Raw_Data_for_FY22[[#This Row],[Median]]","v":201670.6},{"$f":"(((AAMC_Raw_Data_for_FY22[[#This Row],[75th]]-AAMC_Raw_Data_for_FY22[[#This Row],[Median]])/25)*10) + AAMC_Raw_Data_for_FY22[[#This Row],[Median]]","v":206960.2},{"$f":"(((AAMC_Raw_Data_for_FY22[[#This Row],[75th]]-AAMC_Raw_Data_for_FY22[[#This Row],[Median]])/25)*15) + AAMC_Raw_Data_for_FY22[[#This Row],[Median]]","v":212249.8},{"$f":"(((AAMC_Raw_Data_for_FY22[[#This Row],[75th]]-AAMC_Raw_Data_for_FY22[[#This Row],[Median]])/25)*20) + AAMC_Raw_Data_for_FY22[[#This Row],[Median]]","v":217539.4},222829,{"$f":"(((AAMC_Raw_Data_for_FY22[[#This Row],[75th]]-AAMC_Raw_Data_for_FY22[[#This Row],[Median]])/25)*30) + AAMC_Raw_Data_for_FY22[[#This Row],[Median]]","v":228118.6},{"$f":"(((AAMC_Raw_Data_for_FY22[[#This Row],[75th]]-AAMC_Raw_Data_for_FY22[[#This Row],[Median]])/25)*35) + AAMC_Raw_Data_for_FY22[[#This Row],[Median]]","v":233408.2},{"$f":"(((AAMC_Raw_Data_for_FY22[[#This Row],[75th]]-AAMC_Raw_Data_for_FY22[[#This Row],[Median]])/25)*40) + AAMC_Raw_Data_for_FY22[[#This Row],[Median]]","v":238697.8}]
[{"$f":"AAMC_Raw_Data_for_FY22[[#This Row],[Source]]&AAMC_Raw_Data_for_FY22[[#This Row],[Type]]&AAMC_Raw_Data_for_FY22[[#This Row],[School Subset]]&AAMC_Raw_Data_for_FY22[[#This Row],[Rank]]&AAMC_Raw_Data_for_FY22[[#This Row],[Degree]]&AAMC_Raw_Data_for_FY22[[#This Row],[Department / Specialty]]&\"L\"","v":"AAMCAcademicPublicChiefPhDPhysical Medicine & RehabilitationL"},"Physical Medicine & Rehabilitation",6,"AAMC","Academic","Public","Chief","PhD","2021-2022",null,{"$f":"(((AAMC_Raw_Data_for_FY22[[#This Row],[Median]]-AAMC_Raw_Data_for_FY22[[#This Row],[25th]])/25)*5) + AAMC_Raw_Data_for_FY22[[#This Row],[25th]]","v":0},{"$f":"(((AAMC_Raw_Data_for_FY22[[#This Row],[Median]]-AAMC_Raw_Data_for_FY22[[#This Row],[25th]])/25)*10) + AAMC_Raw_Data_for_FY22[[#This Row],[25th]]","v":0},{"$f":"(((AAMC_Raw_Data_for_FY22[[#This Row],[Median]]-AAMC_Raw_Data_for_FY22[[#This Row],[25th]])/25)*15) + AAMC_Raw_Data_for_FY22[[#This Row],[25th]]","v":0},{"$f":"(((AAMC_Raw_Data_for_FY22[[#This Row],[Median]]-AAMC_Raw_Data_for_FY22[[#This Row],[25th]])/25)*20) + AAMC_Raw_Data_for_FY22[[#This Row],[25th]]","v":0},null,{"$f":"(((AAMC_Raw_Data_for_FY22[[#This Row],[75th]]-AAMC_Raw_Data_for_FY22[[#This Row],[Median]])/25)*5) + AAMC_Raw_Data_for_FY22[[#This Row],[Median]]","v":0},{"$f":"(((AAMC_Raw_Data_for_FY22[[#This Row],[75th]]-AAMC_Raw_Data_for_FY22[[#This Row],[Median]])/25)*10) + AAMC_Raw_Data_for_FY22[[#This Row],[Median]]","v":0},{"$f":"(((AAMC_Raw_Data_for_FY22[[#This Row],[75th]]-AAMC_Raw_Data_for_FY22[[#This Row],[Median]])/25)*15) + AAMC_Raw_Data_for_FY22[[#This Row],[Median]]","v":0},{"$f":"(((AAMC_Raw_Data_for_FY22[[#This Row],[75th]]-AAMC_Raw_Data_for_FY22[[#This Row],[Median]])/25)*20) + AAMC_Raw_Data_for_FY22[[#This Row],[Median]]","v":0},null,{"$f":"(((AAMC_Raw_Data_for_FY22[[#This Row],[75th]]-AAMC_Raw_Data_for_FY22[[#This Row],[Median]])/25)*30) + AAMC_Raw_Data_for_FY22[[#This Row],[Median]]","v":0},{"$f":"(((AAMC_Raw_Data_for_FY22[[#This Row],[75th]]-AAMC_Raw_Data_for_FY22[[#This Row],[Median]])/25)*35) + AAMC_Raw_Data_for_FY22[[#This Row],[Median]]","v":0},{"$f":"(((AAMC_Raw_Data_for_FY22[[#This Row],[75th]]-AAMC_Raw_Data_for_FY22[[#This Row],[Median]])/25)*40) + AAMC_Raw_Data_for_FY22[[#This Row],[Median]]","v":0}]
[{"$f":"AAMC_Raw_Data_for_FY22[[#This Row],[Source]]&AAMC_Raw_Data_for_FY22[[#This Row],[Type]]&AAMC_Raw_Data_for_FY22[[#This Row],[School Subset]]&AAMC_Raw_Data_for_FY22[[#This Row],[Rank]]&AAMC_Raw_Data_for_FY22[[#This Row],[Degree]]&AAMC_Raw_Data_for_FY22[[#This Row],[Department / Specialty]]&\"L\"","v":"AAMCAcademicPublicChairPhDPhysical Medicine & RehabilitationL"},"Physical Medicine & Rehabilitation",1,"AAMC","Academic","Public","Chair","PhD","2021-2022",null,{"$f":"(((AAMC_Raw_Data_for_FY22[[#This Row],[Median]]-AAMC_Raw_Data_for_FY22[[#This Row],[25th]])/25)*5) + AAMC_Raw_Data_for_FY22[[#This Row],[25th]]","v":0},{"$f":"(((AAMC_Raw_Data_for_FY22[[#This Row],[Median]]-AAMC_Raw_Data_for_FY22[[#This Row],[25th]])/25)*10) + AAMC_Raw_Data_for_FY22[[#This Row],[25th]]","v":0},{"$f":"(((AAMC_Raw_Data_for_FY22[[#This Row],[Median]]-AAMC_Raw_Data_for_FY22[[#This Row],[25th]])/25)*15) + AAMC_Raw_Data_for_FY22[[#This Row],[25th]]","v":0},{"$f":"(((AAMC_Raw_Data_for_FY22[[#This Row],[Median]]-AAMC_Raw_Data_for_FY22[[#This Row],[25th]])/25)*20) + AAMC_Raw_Data_for_FY22[[#This Row],[25th]]","v":0},null,{"$f":"(((AAMC_Raw_Data_for_FY22[[#This Row],[75th]]-AAMC_Raw_Data_for_FY22[[#This Row],[Median]])/25)*5) + AAMC_Raw_Data_for_FY22[[#This Row],[Median]]","v":0},{"$f":"(((AAMC_Raw_Data_for_FY22[[#This Row],[75th]]-AAMC_Raw_Data_for_FY22[[#This Row],[Median]])/25)*10) + AAMC_Raw_Data_for_FY22[[#This Row],[Median]]","v":0},{"$f":"(((AAMC_Raw_Data_for_FY22[[#This Row],[75th]]-AAMC_Raw_Data_for_FY22[[#This Row],[Median]])/25)*15) + AAMC_Raw_Data_for_FY22[[#This Row],[Median]]","v":0},{"$f":"(((AAMC_Raw_Data_for_FY22[[#This Row],[75th]]-AAMC_Raw_Data_for_FY22[[#This Row],[Median]])/25)*20) + AAMC_Raw_Data_for_FY22[[#This Row],[Median]]","v":0},null,{"$f":"(((AAMC_Raw_Data_for_FY22[[#This Row],[75th]]-AAMC_Raw_Data_for_FY22[[#This Row],[Median]])/25)*30) + AAMC_Raw_Data_for_FY22[[#This Row],[Median]]","v":0},{"$f":"(((AAMC_Raw_Data_for_FY22[[#This Row],[75th]]-AAMC_Raw_Data_for_FY22[[#This Row],[Median]])/25)*35) + AAMC_Raw_Data_for_FY22[[#This Row],[Median]]","v":0},{"$f":"(((AAMC_Raw_Data_for_FY22[[#This Row],[75th]]-AAMC_Raw_Data_for_FY22[[#This Row],[Median]])/25)*40) + AAMC_Raw_Data_for_FY22[[#This Row],[Median]]","v":0}]
[{"$f":"AAMC_Raw_Data_for_FY22[[#This Row],[Source]]&AAMC_Raw_Data_for_FY22[[#This Row],[Type]]&AAMC_Raw_Data_for_FY22[[#This Row],[School Subset]]&AAMC_Raw_Data_for_FY22[[#This Row],[Rank]]&AAMC_Raw_Data_for_FY22[[#This Row],[Degree]]&AAMC_Raw_Data_for_FY22[[#This Row],[Department / Specialty]]&\"L\"","v":"AAMCAcademicPublicAssistantPhDPreventive MedicineL"},"Preventive Medicine",4,"AAMC","Academic","Public","Assistant","PhD","2021-2022",103000,{"$f":"(((AAMC_Raw_Data_for_FY22[[#This Row],[Median]]-AAMC_Raw_Data_for_FY22[[#This Row],[25th]])/25)*5) + AAMC_Raw_Data_for_FY22[[#This Row],[25th]]","v":105400},{"$f":"(((AAMC_Raw_Data_for_FY22[[#This Row],[Median]]-AAMC_Raw_Data_for_FY22[[#This Row],[25th]])/25)*10) + AAMC_Raw_Data_for_FY22[[#This Row],[25th]]","v":107800},{"$f":"(((AAMC_Raw_Data_for_FY22[[#This Row],[Median]]-AAMC_Raw_Data_for_FY22[[#This Row],[25th]])/25)*15) + AAMC_Raw_Data_for_FY22[[#This Row],[25th]]","v":110200},{"$f":"(((AAMC_Raw_Data_for_FY22[[#This Row],[Median]]-AAMC_Raw_Data_for_FY22[[#This Row],[25th]])/25)*20) + AAMC_Raw_Data_for_FY22[[#This Row],[25th]]","v":112600},115000,{"$f":"(((AAMC_Raw_Data_for_FY22[[#This Row],[75th]]-AAMC_Raw_Data_for_FY22[[#This Row],[Median]])/25)*5) + AAMC_Raw_Data_for_FY22[[#This Row],[Median]]","v":116000},{"$f":"(((AAMC_Raw_Data_for_FY22[[#This Row],[75th]]-AAMC_Raw_Data_for_FY22[[#This Row],[Median]])/25)*10) + AAMC_Raw_Data_for_FY22[[#This Row],[Median]]","v":117000},{"$f":"(((AAMC_Raw_Data_for_FY22[[#This Row],[75th]]-AAMC_Raw_Data_for_FY22[[#This Row],[Median]])/25)*15) + AAMC_Raw_Data_for_FY22[[#This Row],[Median]]","v":118000},{"$f":"(((AAMC_Raw_Data_for_FY22[[#This Row],[75th]]-AAMC_Raw_Data_for_FY22[[#This Row],[Median]])/25)*20) + AAMC_Raw_Data_for_FY22[[#This Row],[Median]]","v":119000},120000,{"$f":"(((AAMC_Raw_Data_for_FY22[[#This Row],[75th]]-AAMC_Raw_Data_for_FY22[[#This Row],[Median]])/25)*30) + AAMC_Raw_Data_for_FY22[[#This Row],[Median]]","v":121000},{"$f":"(((AAMC_Raw_Data_for_FY22[[#This Row],[75th]]-AAMC_Raw_Data_for_FY22[[#This Row],[Median]])/25)*35) + AAMC_Raw_Data_for_FY22[[#This Row],[Median]]","v":122000},{"$f":"(((AAMC_Raw_Data_for_FY22[[#This Row],[75th]]-AAMC_Raw_Data_for_FY22[[#This Row],[Median]])/25)*40) + AAMC_Raw_Data_for_FY22[[#This Row],[Median]]","v":123000}]
[{"$f":"AAMC_Raw_Data_for_FY22[[#This Row],[Source]]&AAMC_Raw_Data_for_FY22[[#This Row],[Type]]&AAMC_Raw_Data_for_FY22[[#This Row],[School Subset]]&AAMC_Raw_Data_for_FY22[[#This Row],[Rank]]&AAMC_Raw_Data_for_FY22[[#This Row],[Degree]]&AAMC_Raw_Data_for_FY22[[#This Row],[Department / Specialty]]&\"L\"","v":"AAMCAcademicPublicAssociatePhDPreventive MedicineL"},"Preventive Medicine",3,"AAMC","Academic","Public","Associate","PhD","2021-2022",149678,{"$f":"(((AAMC_Raw_Data_for_FY22[[#This Row],[Median]]-AAMC_Raw_Data_for_FY22[[#This Row],[25th]])/25)*5) + AAMC_Raw_Data_for_FY22[[#This Row],[25th]]","v":151223.6},{"$f":"(((AAMC_Raw_Data_for_FY22[[#This Row],[Median]]-AAMC_Raw_Data_for_FY22[[#This Row],[25th]])/25)*10) + AAMC_Raw_Data_for_FY22[[#This Row],[25th]]","v":152769.20000000001},{"$f":"(((AAMC_Raw_Data_for_FY22[[#This Row],[Median]]-AAMC_Raw_Data_for_FY22[[#This Row],[25th]])/25)*15) + AAMC_Raw_Data_for_FY22[[#This Row],[25th]]","v":154314.79999999999},{"$f":"(((AAMC_Raw_Data_for_FY22[[#This Row],[Median]]-AAMC_Raw_Data_for_FY22[[#This Row],[25th]])/25)*20) + AAMC_Raw_Data_for_FY22[[#This Row],[25th]]","v":155860.4},157406,{"$f":"(((AAMC_Raw_Data_for_FY22[[#This Row],[75th]]-AAMC_Raw_Data_for_FY22[[#This Row],[Median]])/25)*5) + AAMC_Raw_Data_for_FY22[[#This Row],[Median]]","v":160762.6},{"$f":"(((AAMC_Raw_Data_for_FY22[[#This Row],[75th]]-AAMC_Raw_Data_for_FY22[[#This Row],[Median]])/25)*10) + AAMC_Raw_Data_for_FY22[[#This Row],[Median]]","v":164119.20000000001},{"$f":"(((AAMC_Raw_Data_for_FY22[[#This Row],[75th]]-AAMC_Raw_Data_for_FY22[[#This Row],[Median]])/25)*15) + AAMC_Raw_Data_for_FY22[[#This Row],[Median]]","v":167475.79999999999},{"$f":"(((AAMC_Raw_Data_for_FY22[[#This Row],[75th]]-AAMC_Raw_Data_for_FY22[[#This Row],[Median]])/25)*20) + AAMC_Raw_Data_for_FY22[[#This Row],[Median]]","v":170832.4},174189,{"$f":"(((AAMC_Raw_Data_for_FY22[[#This Row],[75th]]-AAMC_Raw_Data_for_FY22[[#This Row],[Median]])/25)*30) + AAMC_Raw_Data_for_FY22[[#This Row],[Median]]","v":177545.60000000001},{"$f":"(((AAMC_Raw_Data_for_FY22[[#This Row],[75th]]-AAMC_Raw_Data_for_FY22[[#This Row],[Median]])/25)*35) + AAMC_Raw_Data_for_FY22[[#This Row],[Median]]","v":180902.2},{"$f":"(((AAMC_Raw_Data_for_FY22[[#This Row],[75th]]-AAMC_Raw_Data_for_FY22[[#This Row],[Median]])/25)*40) + AAMC_Raw_Data_for_FY22[[#This Row],[Median]]","v":184258.8}]
[{"$f":"AAMC_Raw_Data_for_FY22[[#This Row],[Source]]&AAMC_Raw_Data_for_FY22[[#This Row],[Type]]&AAMC_Raw_Data_for_FY22[[#This Row],[School Subset]]&AAMC_Raw_Data_for_FY22[[#This Row],[Rank]]&AAMC_Raw_Data_for_FY22[[#This Row],[Degree]]&AAMC_Raw_Data_for_FY22[[#This Row],[Department / Specialty]]&\"L\"","v":"AAMCAcademicPublicProfessorPhDPreventive MedicineL"},"Preventive Medicine",2,"AAMC","Academic","Public","Professor","PhD","2021-2022",180494,{"$f":"(((AAMC_Raw_Data_for_FY22[[#This Row],[Median]]-AAMC_Raw_Data_for_FY22[[#This Row],[25th]])/25)*5) + AAMC_Raw_Data_for_FY22[[#This Row],[25th]]","v":184578.6},{"$f":"(((AAMC_Raw_Data_for_FY22[[#This Row],[Median]]-AAMC_Raw_Data_for_FY22[[#This Row],[25th]])/25)*10) + AAMC_Raw_Data_for_FY22[[#This Row],[25th]]","v":188663.2},{"$f":"(((AAMC_Raw_Data_for_FY22[[#This Row],[Median]]-AAMC_Raw_Data_for_FY22[[#This Row],[25th]])/25)*15) + AAMC_Raw_Data_for_FY22[[#This Row],[25th]]","v":192747.8},{"$f":"(((AAMC_Raw_Data_for_FY22[[#This Row],[Median]]-AAMC_Raw_Data_for_FY22[[#This Row],[25th]])/25)*20) + AAMC_Raw_Data_for_FY22[[#This Row],[25th]]","v":196832.4},200917,{"$f":"(((AAMC_Raw_Data_for_FY22[[#This Row],[75th]]-AAMC_Raw_Data_for_FY22[[#This Row],[Median]])/25)*5) + AAMC_Raw_Data_for_FY22[[#This Row],[Median]]","v":205251.8},{"$f":"(((AAMC_Raw_Data_for_FY22[[#This Row],[75th]]-AAMC_Raw_Data_for_FY22[[#This Row],[Median]])/25)*10) + AAMC_Raw_Data_for_FY22[[#This Row],[Median]]","v":209586.6},{"$f":"(((AAMC_Raw_Data_for_FY22[[#This Row],[75th]]-AAMC_Raw_Data_for_FY22[[#This Row],[Median]])/25)*15) + AAMC_Raw_Data_for_FY22[[#This Row],[Median]]","v":213921.4},{"$f":"(((AAMC_Raw_Data_for_FY22[[#This Row],[75th]]-AAMC_Raw_Data_for_FY22[[#This Row],[Median]])/25)*20) + AAMC_Raw_Data_for_FY22[[#This Row],[Median]]","v":218256.2},222591,{"$f":"(((AAMC_Raw_Data_for_FY22[[#This Row],[75th]]-AAMC_Raw_Data_for_FY22[[#This Row],[Median]])/25)*30) + AAMC_Raw_Data_for_FY22[[#This Row],[Median]]","v":226925.8},{"$f":"(((AAMC_Raw_Data_for_FY22[[#This Row],[75th]]-AAMC_Raw_Data_for_FY22[[#This Row],[Median]])/25)*35) + AAMC_Raw_Data_for_FY22[[#This Row],[Median]]","v":231260.6},{"$f":"(((AAMC_Raw_Data_for_FY22[[#This Row],[75th]]-AAMC_Raw_Data_for_FY22[[#This Row],[Median]])/25)*40) + AAMC_Raw_Data_for_FY22[[#This Row],[Median]]","v":235595.4}]
[{"$f":"AAMC_Raw_Data_for_FY22[[#This Row],[Source]]&AAMC_Raw_Data_for_FY22[[#This Row],[Type]]&AAMC_Raw_Data_for_FY22[[#This Row],[School Subset]]&AAMC_Raw_Data_for_FY22[[#This Row],[Rank]]&AAMC_Raw_Data_for_FY22[[#This Row],[Degree]]&AAMC_Raw_Data_for_FY22[[#This Row],[Department / Specialty]]&\"L\"","v":"AAMCAcademicPublicChiefPhDPreventive MedicineL"},"Preventive Medicine",6,"AAMC","Academic","Public","Chief","PhD","2021-2022",null,{"$f":"(((AAMC_Raw_Data_for_FY22[[#This Row],[Median]]-AAMC_Raw_Data_for_FY22[[#This Row],[25th]])/25)*5) + AAMC_Raw_Data_for_FY22[[#This Row],[25th]]","v":0},{"$f":"(((AAMC_Raw_Data_for_FY22[[#This Row],[Median]]-AAMC_Raw_Data_for_FY22[[#This Row],[25th]])/25)*10) + AAMC_Raw_Data_for_FY22[[#This Row],[25th]]","v":0},{"$f":"(((AAMC_Raw_Data_for_FY22[[#This Row],[Median]]-AAMC_Raw_Data_for_FY22[[#This Row],[25th]])/25)*15) + AAMC_Raw_Data_for_FY22[[#This Row],[25th]]","v":0},{"$f":"(((AAMC_Raw_Data_for_FY22[[#This Row],[Median]]-AAMC_Raw_Data_for_FY22[[#This Row],[25th]])/25)*20) + AAMC_Raw_Data_for_FY22[[#This Row],[25th]]","v":0},null,{"$f":"(((AAMC_Raw_Data_for_FY22[[#This Row],[75th]]-AAMC_Raw_Data_for_FY22[[#This Row],[Median]])/25)*5) + AAMC_Raw_Data_for_FY22[[#This Row],[Median]]","v":0},{"$f":"(((AAMC_Raw_Data_for_FY22[[#This Row],[75th]]-AAMC_Raw_Data_for_FY22[[#This Row],[Median]])/25)*10) + AAMC_Raw_Data_for_FY22[[#This Row],[Median]]","v":0},{"$f":"(((AAMC_Raw_Data_for_FY22[[#This Row],[75th]]-AAMC_Raw_Data_for_FY22[[#This Row],[Median]])/25)*15) + AAMC_Raw_Data_for_FY22[[#This Row],[Median]]","v":0},{"$f":"(((AAMC_Raw_Data_for_FY22[[#This Row],[75th]]-AAMC_Raw_Data_for_FY22[[#This Row],[Median]])/25)*20) + AAMC_Raw_Data_for_FY22[[#This Row],[Median]]","v":0},null,{"$f":"(((AAMC_Raw_Data_for_FY22[[#This Row],[75th]]-AAMC_Raw_Data_for_FY22[[#This Row],[Median]])/25)*30) + AAMC_Raw_Data_for_FY22[[#This Row],[Median]]","v":0},{"$f":"(((AAMC_Raw_Data_for_FY22[[#This Row],[75th]]-AAMC_Raw_Data_for_FY22[[#This Row],[Median]])/25)*35) + AAMC_Raw_Data_for_FY22[[#This Row],[Median]]","v":0},{"$f":"(((AAMC_Raw_Data_for_FY22[[#This Row],[75th]]-AAMC_Raw_Data_for_FY22[[#This Row],[Median]])/25)*40) + AAMC_Raw_Data_for_FY22[[#This Row],[Median]]","v":0}]
[{"$f":"AAMC_Raw_Data_for_FY22[[#This Row],[Source]]&AAMC_Raw_Data_for_FY22[[#This Row],[Type]]&AAMC_Raw_Data_for_FY22[[#This Row],[School Subset]]&AAMC_Raw_Data_for_FY22[[#This Row],[Rank]]&AAMC_Raw_Data_for_FY22[[#This Row],[Degree]]&AAMC_Raw_Data_for_FY22[[#This Row],[Department / Specialty]]&\"L\"","v":"AAMCAcademicPublicChairPhDPreventive MedicineL"},"Preventive Medicine",1,"AAMC","Academic","Public","Chair","PhD","2021-2022",null,{"$f":"(((AAMC_Raw_Data_for_FY22[[#This Row],[Median]]-AAMC_Raw_Data_for_FY22[[#This Row],[25th]])/25)*5) + AAMC_Raw_Data_for_FY22[[#This Row],[25th]]","v":0},{"$f":"(((AAMC_Raw_Data_for_FY22[[#This Row],[Median]]-AAMC_Raw_Data_for_FY22[[#This Row],[25th]])/25)*10) + AAMC_Raw_Data_for_FY22[[#This Row],[25th]]","v":0},{"$f":"(((AAMC_Raw_Data_for_FY22[[#This Row],[Median]]-AAMC_Raw_Data_for_FY22[[#This Row],[25th]])/25)*15) + AAMC_Raw_Data_for_FY22[[#This Row],[25th]]","v":0},{"$f":"(((AAMC_Raw_Data_for_FY22[[#This Row],[Median]]-AAMC_Raw_Data_for_FY22[[#This Row],[25th]])/25)*20) + AAMC_Raw_Data_for_FY22[[#This Row],[25th]]","v":0},null,{"$f":"(((AAMC_Raw_Data_for_FY22[[#This Row],[75th]]-AAMC_Raw_Data_for_FY22[[#This Row],[Median]])/25)*5) + AAMC_Raw_Data_for_FY22[[#This Row],[Median]]","v":0},{"$f":"(((AAMC_Raw_Data_for_FY22[[#This Row],[75th]]-AAMC_Raw_Data_for_FY22[[#This Row],[Median]])/25)*10) + AAMC_Raw_Data_for_FY22[[#This Row],[Median]]","v":0},{"$f":"(((AAMC_Raw_Data_for_FY22[[#This Row],[75th]]-AAMC_Raw_Data_for_FY22[[#This Row],[Median]])/25)*15) + AAMC_Raw_Data_for_FY22[[#This Row],[Median]]","v":0},{"$f":"(((AAMC_Raw_Data_for_FY22[[#This Row],[75th]]-AAMC_Raw_Data_for_FY22[[#This Row],[Median]])/25)*20) + AAMC_Raw_Data_for_FY22[[#This Row],[Median]]","v":0},null,{"$f":"(((AAMC_Raw_Data_for_FY22[[#This Row],[75th]]-AAMC_Raw_Data_for_FY22[[#This Row],[Median]])/25)*30) + AAMC_Raw_Data_for_FY22[[#This Row],[Median]]","v":0},{"$f":"(((AAMC_Raw_Data_for_FY22[[#This Row],[75th]]-AAMC_Raw_Data_for_FY22[[#This Row],[Median]])/25)*35) + AAMC_Raw_Data_for_FY22[[#This Row],[Median]]","v":0},{"$f":"(((AAMC_Raw_Data_for_FY22[[#This Row],[75th]]-AAMC_Raw_Data_for_FY22[[#This Row],[Median]])/25)*40) + AAMC_Raw_Data_for_FY22[[#This Row],[Median]]","v":0}]
[{"$f":"AAMC_Raw_Data_for_FY22[[#This Row],[Source]]&AAMC_Raw_Data_for_FY22[[#This Row],[Type]]&AAMC_Raw_Data_for_FY22[[#This Row],[School Subset]]&AAMC_Raw_Data_for_FY22[[#This Row],[Rank]]&AAMC_Raw_Data_for_FY22[[#This Row],[Degree]]&AAMC_Raw_Data_for_FY22[[#This Row],[Department / Specialty]]&\"L\"","v":"AAMCAcademicPublicInstructorPhDOther Clinical SciencesL"},"Other Clinical Sciences",5,"AAMC","Academic","Public","Instructor","PhD","2021-2022",81869,{"$f":"(((AAMC_Raw_Data_for_FY22[[#This Row],[Median]]-AAMC_Raw_Data_for_FY22[[#This Row],[25th]])/25)*5) + AAMC_Raw_Data_for_FY22[[#This Row],[25th]]","v":84219},{"$f":"(((AAMC_Raw_Data_for_FY22[[#This Row],[Median]]-AAMC_Raw_Data_for_FY22[[#This Row],[25th]])/25)*10) + AAMC_Raw_Data_for_FY22[[#This Row],[25th]]","v":86569},{"$f":"(((AAMC_Raw_Data_for_FY22[[#This Row],[Median]]-AAMC_Raw_Data_for_FY22[[#This Row],[25th]])/25)*15) + AAMC_Raw_Data_for_FY22[[#This Row],[25th]]","v":88919},{"$f":"(((AAMC_Raw_Data_for_FY22[[#This Row],[Median]]-AAMC_Raw_Data_for_FY22[[#This Row],[25th]])/25)*20) + AAMC_Raw_Data_for_FY22[[#This Row],[25th]]","v":91269},93619,{"$f":"(((AAMC_Raw_Data_for_FY22[[#This Row],[75th]]-AAMC_Raw_Data_for_FY22[[#This Row],[Median]])/25)*5) + AAMC_Raw_Data_for_FY22[[#This Row],[Median]]","v":96106.6},{"$f":"(((AAMC_Raw_Data_for_FY22[[#This Row],[75th]]-AAMC_Raw_Data_for_FY22[[#This Row],[Median]])/25)*10) + AAMC_Raw_Data_for_FY22[[#This Row],[Median]]","v":98594.2},{"$f":"(((AAMC_Raw_Data_for_FY22[[#This Row],[75th]]-AAMC_Raw_Data_for_FY22[[#This Row],[Median]])/25)*15) + AAMC_Raw_Data_for_FY22[[#This Row],[Median]]","v":101081.8},{"$f":"(((AAMC_Raw_Data_for_FY22[[#This Row],[75th]]-AAMC_Raw_Data_for_FY22[[#This Row],[Median]])/25)*20) + AAMC_Raw_Data_for_FY22[[#This Row],[Median]]","v":103569.4},106057,{"$f":"(((AAMC_Raw_Data_for_FY22[[#This Row],[75th]]-AAMC_Raw_Data_for_FY22[[#This Row],[Median]])/25)*30) + AAMC_Raw_Data_for_FY22[[#This Row],[Median]]","v":108544.6},{"$f":"(((AAMC_Raw_Data_for_FY22[[#This Row],[75th]]-AAMC_Raw_Data_for_FY22[[#This Row],[Median]])/25)*35) + AAMC_Raw_Data_for_FY22[[#This Row],[Median]]","v":111032.2},{"$f":"(((AAMC_Raw_Data_for_FY22[[#This Row],[75th]]-AAMC_Raw_Data_for_FY22[[#This Row],[Median]])/25)*40) + AAMC_Raw_Data_for_FY22[[#This Row],[Median]]","v":113519.8}]
[{"$f":"AAMC_Raw_Data_for_FY22[[#This Row],[Source]]&AAMC_Raw_Data_for_FY22[[#This Row],[Type]]&AAMC_Raw_Data_for_FY22[[#This Row],[School Subset]]&AAMC_Raw_Data_for_FY22[[#This Row],[Rank]]&AAMC_Raw_Data_for_FY22[[#This Row],[Degree]]&AAMC_Raw_Data_for_FY22[[#This Row],[Department / Specialty]]&\"L\"","v":"AAMCAcademicPublicAssistantPhDOther Clinical SciencesL"},"Other Clinical Sciences",4,"AAMC","Academic","Public","Assistant","PhD","2021-2022",93093,{"$f":"(((AAMC_Raw_Data_for_FY22[[#This Row],[Median]]-AAMC_Raw_Data_for_FY22[[#This Row],[25th]])/25)*5) + AAMC_Raw_Data_for_FY22[[#This Row],[25th]]","v":94892.800000000003},{"$f":"(((AAMC_Raw_Data_for_FY22[[#This Row],[Median]]-AAMC_Raw_Data_for_FY22[[#This Row],[25th]])/25)*10) + AAMC_Raw_Data_for_FY22[[#This Row],[25th]]","v":96692.6},{"$f":"(((AAMC_Raw_Data_for_FY22[[#This Row],[Median]]-AAMC_Raw_Data_for_FY22[[#This Row],[25th]])/25)*15) + AAMC_Raw_Data_for_FY22[[#This Row],[25th]]","v":98492.4},{"$f":"(((AAMC_Raw_Data_for_FY22[[#This Row],[Median]]-AAMC_Raw_Data_for_FY22[[#This Row],[25th]])/25)*20) + AAMC_Raw_Data_for_FY22[[#This Row],[25th]]","v":100292.2},102092,{"$f":"(((AAMC_Raw_Data_for_FY22[[#This Row],[75th]]-AAMC_Raw_Data_for_FY22[[#This Row],[Median]])/25)*5) + AAMC_Raw_Data_for_FY22[[#This Row],[Median]]","v":108731.2},{"$f":"(((AAMC_Raw_Data_for_FY22[[#This Row],[75th]]-AAMC_Raw_Data_for_FY22[[#This Row],[Median]])/25)*10) + AAMC_Raw_Data_for_FY22[[#This Row],[Median]]","v":115370.4},{"$f":"(((AAMC_Raw_Data_for_FY22[[#This Row],[75th]]-AAMC_Raw_Data_for_FY22[[#This Row],[Median]])/25)*15) + AAMC_Raw_Data_for_FY22[[#This Row],[Median]]","v":122009.60000000001},{"$f":"(((AAMC_Raw_Data_for_FY22[[#This Row],[75th]]-AAMC_Raw_Data_for_FY22[[#This Row],[Median]])/25)*20) + AAMC_Raw_Data_for_FY22[[#This Row],[Median]]","v":128648.8},135288,{"$f":"(((AAMC_Raw_Data_for_FY22[[#This Row],[75th]]-AAMC_Raw_Data_for_FY22[[#This Row],[Median]])/25)*30) + AAMC_Raw_Data_for_FY22[[#This Row],[Median]]","v":141927.20000000001},{"$f":"(((AAMC_Raw_Data_for_FY22[[#This Row],[75th]]-AAMC_Raw_Data_for_FY22[[#This Row],[Median]])/25)*35) + AAMC_Raw_Data_for_FY22[[#This Row],[Median]]","v":148566.39999999999},{"$f":"(((AAMC_Raw_Data_for_FY22[[#This Row],[75th]]-AAMC_Raw_Data_for_FY22[[#This Row],[Median]])/25)*40) + AAMC_Raw_Data_for_FY22[[#This Row],[Median]]","v":155205.6}]
[{"$f":"AAMC_Raw_Data_for_FY22[[#This Row],[Source]]&AAMC_Raw_Data_for_FY22[[#This Row],[Type]]&AAMC_Raw_Data_for_FY22[[#This Row],[School Subset]]&AAMC_Raw_Data_for_FY22[[#This Row],[Rank]]&AAMC_Raw_Data_for_FY22[[#This Row],[Degree]]&AAMC_Raw_Data_for_FY22[[#This Row],[Department / Specialty]]&\"L\"","v":"AAMCAcademicPublicAssociatePhDOther Clinical SciencesL"},"Other Clinical Sciences",3,"AAMC","Academic","Public","Associate","PhD","2021-2022",106305,{"$f":"(((AAMC_Raw_Data_for_FY22[[#This Row],[Median]]-AAMC_Raw_Data_for_FY22[[#This Row],[25th]])/25)*5) + AAMC_Raw_Data_for_FY22[[#This Row],[25th]]","v":110584},{"$f":"(((AAMC_Raw_Data_for_FY22[[#This Row],[Median]]-AAMC_Raw_Data_for_FY22[[#This Row],[25th]])/25)*10) + AAMC_Raw_Data_for_FY22[[#This Row],[25th]]","v":114863},{"$f":"(((AAMC_Raw_Data_for_FY22[[#This Row],[Median]]-AAMC_Raw_Data_for_FY22[[#This Row],[25th]])/25)*15) + AAMC_Raw_Data_for_FY22[[#This Row],[25th]]","v":119142},{"$f":"(((AAMC_Raw_Data_for_FY22[[#This Row],[Median]]-AAMC_Raw_Data_for_FY22[[#This Row],[25th]])/25)*20) + AAMC_Raw_Data_for_FY22[[#This Row],[25th]]","v":123421},127700,{"$f":"(((AAMC_Raw_Data_for_FY22[[#This Row],[75th]]-AAMC_Raw_Data_for_FY22[[#This Row],[Median]])/25)*5) + AAMC_Raw_Data_for_FY22[[#This Row],[Median]]","v":132103.6},{"$f":"(((AAMC_Raw_Data_for_FY22[[#This Row],[75th]]-AAMC_Raw_Data_for_FY22[[#This Row],[Median]])/25)*10) + AAMC_Raw_Data_for_FY22[[#This Row],[Median]]","v":136507.20000000001},{"$f":"(((AAMC_Raw_Data_for_FY22[[#This Row],[75th]]-AAMC_Raw_Data_for_FY22[[#This Row],[Median]])/25)*15) + AAMC_Raw_Data_for_FY22[[#This Row],[Median]]","v":140910.79999999999},{"$f":"(((AAMC_Raw_Data_for_FY22[[#This Row],[75th]]-AAMC_Raw_Data_for_FY22[[#This Row],[Median]])/25)*20) + AAMC_Raw_Data_for_FY22[[#This Row],[Median]]","v":145314.4},149718,{"$f":"(((AAMC_Raw_Data_for_FY22[[#This Row],[75th]]-AAMC_Raw_Data_for_FY22[[#This Row],[Median]])/25)*30) + AAMC_Raw_Data_for_FY22[[#This Row],[Median]]","v":154121.60000000001},{"$f":"(((AAMC_Raw_Data_for_FY22[[#This Row],[75th]]-AAMC_Raw_Data_for_FY22[[#This Row],[Median]])/25)*35) + AAMC_Raw_Data_for_FY22[[#This Row],[Median]]","v":158525.20000000001},{"$f":"(((AAMC_Raw_Data_for_FY22[[#This Row],[75th]]-AAMC_Raw_Data_for_FY22[[#This Row],[Median]])/25)*40) + AAMC_Raw_Data_for_FY22[[#This Row],[Median]]","v":162928.79999999999}]
[{"$f":"AAMC_Raw_Data_for_FY22[[#This Row],[Source]]&AAMC_Raw_Data_for_FY22[[#This Row],[Type]]&AAMC_Raw_Data_for_FY22[[#This Row],[School Subset]]&AAMC_Raw_Data_for_FY22[[#This Row],[Rank]]&AAMC_Raw_Data_for_FY22[[#This Row],[Degree]]&AAMC_Raw_Data_for_FY22[[#This Row],[Department / Specialty]]&\"L\"","v":"AAMCAcademicPublicProfessorPhDOther Clinical SciencesL"},"Other Clinical Sciences",2,"AAMC","Academic","Public","Professor","PhD","2021-2022",132335,{"$f":"(((AAMC_Raw_Data_for_FY22[[#This Row],[Median]]-AAMC_Raw_Data_for_FY22[[#This Row],[25th]])/25)*5) + AAMC_Raw_Data_for_FY22[[#This Row],[25th]]","v":138472.20000000001},{"$f":"(((AAMC_Raw_Data_for_FY22[[#This Row],[Median]]-AAMC_Raw_Data_for_FY22[[#This Row],[25th]])/25)*10) + AAMC_Raw_Data_for_FY22[[#This Row],[25th]]","v":144609.4},{"$f":"(((AAMC_Raw_Data_for_FY22[[#This Row],[Median]]-AAMC_Raw_Data_for_FY22[[#This Row],[25th]])/25)*15) + AAMC_Raw_Data_for_FY22[[#This Row],[25th]]","v":150746.6},{"$f":"(((AAMC_Raw_Data_for_FY22[[#This Row],[Median]]-AAMC_Raw_Data_for_FY22[[#This Row],[25th]])/25)*20) + AAMC_Raw_Data_for_FY22[[#This Row],[25th]]","v":156883.79999999999},163021,{"$f":"(((AAMC_Raw_Data_for_FY22[[#This Row],[75th]]-AAMC_Raw_Data_for_FY22[[#This Row],[Median]])/25)*5) + AAMC_Raw_Data_for_FY22[[#This Row],[Median]]","v":171556.6},{"$f":"(((AAMC_Raw_Data_for_FY22[[#This Row],[75th]]-AAMC_Raw_Data_for_FY22[[#This Row],[Median]])/25)*10) + AAMC_Raw_Data_for_FY22[[#This Row],[Median]]","v":180092.2},{"$f":"(((AAMC_Raw_Data_for_FY22[[#This Row],[75th]]-AAMC_Raw_Data_for_FY22[[#This Row],[Median]])/25)*15) + AAMC_Raw_Data_for_FY22[[#This Row],[Median]]","v":188627.8},{"$f":"(((AAMC_Raw_Data_for_FY22[[#This Row],[75th]]-AAMC_Raw_Data_for_FY22[[#This Row],[Median]])/25)*20) + AAMC_Raw_Data_for_FY22[[#This Row],[Median]]","v":197163.4},205699,{"$f":"(((AAMC_Raw_Data_for_FY22[[#This Row],[75th]]-AAMC_Raw_Data_for_FY22[[#This Row],[Median]])/25)*30) + AAMC_Raw_Data_for_FY22[[#This Row],[Median]]","v":214234.6},{"$f":"(((AAMC_Raw_Data_for_FY22[[#This Row],[75th]]-AAMC_Raw_Data_for_FY22[[#This Row],[Median]])/25)*35) + AAMC_Raw_Data_for_FY22[[#This Row],[Median]]","v":222770.2},{"$f":"(((AAMC_Raw_Data_for_FY22[[#This Row],[75th]]-AAMC_Raw_Data_for_FY22[[#This Row],[Median]])/25)*40) + AAMC_Raw_Data_for_FY22[[#This Row],[Median]]","v":231305.8}]
[{"$f":"AAMC_Raw_Data_for_FY22[[#This Row],[Source]]&AAMC_Raw_Data_for_FY22[[#This Row],[Type]]&AAMC_Raw_Data_for_FY22[[#This Row],[School Subset]]&AAMC_Raw_Data_for_FY22[[#This Row],[Rank]]&AAMC_Raw_Data_for_FY22[[#This Row],[Degree]]&AAMC_Raw_Data_for_FY22[[#This Row],[Department / Specialty]]&\"L\"","v":"AAMCAcademicPublicChiefPhDOther Clinical SciencesL"},"Other Clinical Sciences",6,"AAMC","Academic","Public","Chief","PhD","2021-2022",null,{"$f":"(((AAMC_Raw_Data_for_FY22[[#This Row],[Median]]-AAMC_Raw_Data_for_FY22[[#This Row],[25th]])/25)*5) + AAMC_Raw_Data_for_FY22[[#This Row],[25th]]","v":0},{"$f":"(((AAMC_Raw_Data_for_FY22[[#This Row],[Median]]-AAMC_Raw_Data_for_FY22[[#This Row],[25th]])/25)*10) + AAMC_Raw_Data_for_FY22[[#This Row],[25th]]","v":0},{"$f":"(((AAMC_Raw_Data_for_FY22[[#This Row],[Median]]-AAMC_Raw_Data_for_FY22[[#This Row],[25th]])/25)*15) + AAMC_Raw_Data_for_FY22[[#This Row],[25th]]","v":0},{"$f":"(((AAMC_Raw_Data_for_FY22[[#This Row],[Median]]-AAMC_Raw_Data_for_FY22[[#This Row],[25th]])/25)*20) + AAMC_Raw_Data_for_FY22[[#This Row],[25th]]","v":0},null,{"$f":"(((AAMC_Raw_Data_for_FY22[[#This Row],[75th]]-AAMC_Raw_Data_for_FY22[[#This Row],[Median]])/25)*5) + AAMC_Raw_Data_for_FY22[[#This Row],[Median]]","v":0},{"$f":"(((AAMC_Raw_Data_for_FY22[[#This Row],[75th]]-AAMC_Raw_Data_for_FY22[[#This Row],[Median]])/25)*10) + AAMC_Raw_Data_for_FY22[[#This Row],[Median]]","v":0},{"$f":"(((AAMC_Raw_Data_for_FY22[[#This Row],[75th]]-AAMC_Raw_Data_for_FY22[[#This Row],[Median]])/25)*15) + AAMC_Raw_Data_for_FY22[[#This Row],[Median]]","v":0},{"$f":"(((AAMC_Raw_Data_for_FY22[[#This Row],[75th]]-AAMC_Raw_Data_for_FY22[[#This Row],[Median]])/25)*20) + AAMC_Raw_Data_for_FY22[[#This Row],[Median]]","v":0},null,{"$f":"(((AAMC_Raw_Data_for_FY22[[#This Row],[75th]]-AAMC_Raw_Data_for_FY22[[#This Row],[Median]])/25)*30) + AAMC_Raw_Data_for_FY22[[#This Row],[Median]]","v":0},{"$f":"(((AAMC_Raw_Data_for_FY22[[#This Row],[75th]]-AAMC_Raw_Data_for_FY22[[#This Row],[Median]])/25)*35) + AAMC_Raw_Data_for_FY22[[#This Row],[Median]]","v":0},{"$f":"(((AAMC_Raw_Data_for_FY22[[#This Row],[75th]]-AAMC_Raw_Data_for_FY22[[#This Row],[Median]])/25)*40) + AAMC_Raw_Data_for_FY22[[#This Row],[Median]]","v":0}]
[{"$f":"AAMC_Raw_Data_for_FY22[[#This Row],[Source]]&AAMC_Raw_Data_for_FY22[[#This Row],[Type]]&AAMC_Raw_Data_for_FY22[[#This Row],[School Subset]]&AAMC_Raw_Data_for_FY22[[#This Row],[Rank]]&AAMC_Raw_Data_for_FY22[[#This Row],[Degree]]&AAMC_Raw_Data_for_FY22[[#This Row],[Department / Specialty]]&\"L\"","v":"AAMCAcademicPublicChairPhDOther Clinical SciencesL"},"Other Clinical Sciences",1,"AAMC","Academic","Public","Chair","PhD","2021-2022",null,{"$f":"(((AAMC_Raw_Data_for_FY22[[#This Row],[Median]]-AAMC_Raw_Data_for_FY22[[#This Row],[25th]])/25)*5) + AAMC_Raw_Data_for_FY22[[#This Row],[25th]]","v":0},{"$f":"(((AAMC_Raw_Data_for_FY22[[#This Row],[Median]]-AAMC_Raw_Data_for_FY22[[#This Row],[25th]])/25)*10) + AAMC_Raw_Data_for_FY22[[#This Row],[25th]]","v":0},{"$f":"(((AAMC_Raw_Data_for_FY22[[#This Row],[Median]]-AAMC_Raw_Data_for_FY22[[#This Row],[25th]])/25)*15) + AAMC_Raw_Data_for_FY22[[#This Row],[25th]]","v":0},{"$f":"(((AAMC_Raw_Data_for_FY22[[#This Row],[Median]]-AAMC_Raw_Data_for_FY22[[#This Row],[25th]])/25)*20) + AAMC_Raw_Data_for_FY22[[#This Row],[25th]]","v":0},null,{"$f":"(((AAMC_Raw_Data_for_FY22[[#This Row],[75th]]-AAMC_Raw_Data_for_FY22[[#This Row],[Median]])/25)*5) + AAMC_Raw_Data_for_FY22[[#This Row],[Median]]","v":0},{"$f":"(((AAMC_Raw_Data_for_FY22[[#This Row],[75th]]-AAMC_Raw_Data_for_FY22[[#This Row],[Median]])/25)*10) + AAMC_Raw_Data_for_FY22[[#This Row],[Median]]","v":0},{"$f":"(((AAMC_Raw_Data_for_FY22[[#This Row],[75th]]-AAMC_Raw_Data_for_FY22[[#This Row],[Median]])/25)*15) + AAMC_Raw_Data_for_FY22[[#This Row],[Median]]","v":0},{"$f":"(((AAMC_Raw_Data_for_FY22[[#This Row],[75th]]-AAMC_Raw_Data_for_FY22[[#This Row],[Median]])/25)*20) + AAMC_Raw_Data_for_FY22[[#This Row],[Median]]","v":0},null,{"$f":"(((AAMC_Raw_Data_for_FY22[[#This Row],[75th]]-AAMC_Raw_Data_for_FY22[[#This Row],[Median]])/25)*30) + AAMC_Raw_Data_for_FY22[[#This Row],[Median]]","v":0},{"$f":"(((AAMC_Raw_Data_for_FY22[[#This Row],[75th]]-AAMC_Raw_Data_for_FY22[[#This Row],[Median]])/25)*35) + AAMC_Raw_Data_for_FY22[[#This Row],[Median]]","v":0},{"$f":"(((AAMC_Raw_Data_for_FY22[[#This Row],[75th]]-AAMC_Raw_Data_for_FY22[[#This Row],[Median]])/25)*40) + AAMC_Raw_Data_for_FY22[[#This Row],[Median]]","v":0}]

{"sheet":"MGMAC","index":22,"n_rows":1453,"n_cols":23,"rows_kept":1453,"cut":false,"hidden":false,"merged":[]}
["Key","Specialty","Code","Source","Type","Category","Rank","Degress","Year","P25","P30","P35","P40","P45","P50","P55","P60","P65","P70","P75","P80","P85","P90"]
[{"$f":"D2&E2&F2&G2&H2&B2&\"L\"","v":"MGMAAcademicAllNon-FacultyMDAllergy/ImmunologyL"},"Allergy/Immunology","Code","MGMA","Academic","All","Non-Faculty","MD",2022,0,{"$f":"0","v":0},{"$f":"((O2-J2)/25)*10 + J2","v":0},{"$f":"((O2-J2)/25)*15 + J2","v":0},{"$f":"((O2-J2)/25)*20 + J2","v":0},0,{"$f":"((T2-O2)/25)*5 + O2","v":0},{"$f":"((T2-O2)/25)*10 + O2","v":0},{"$f":"((T2-O2)/25)*15 + O2","v":0},{"$f":"((T2-O2)/25)*20 + O2","v":0},0,{"$f":"((W2-T2)/25)*5 + T2","v":0},{"$f":"((W2-T2)/25)*10 + T2","v":0},0]
[{"$f":"D3&E3&F3&G3&H3&B3&\"L\"","v":"MGMAAcademicAllNon-FacultyMDAnesthesiologyL"},"Anesthesiology","Code","MGMA","Academic","All","Non-Faculty","MD",2022,395394,{"$f":"((O3-J3)/25)*5 + J3","v":396861.2},{"$f":"((O3-J3)/25)*10 + J3","v":398328.4},{"$f":"((O3-J3)/25)*15 + J3","v":399795.6},{"$f":"((O3-J3)/25)*20 + J3","v":401262.8},"$402,730",{"$f":"((T3-O3)/25)*5 + O3","v":412442},{"$f":"((T3-O3)/25)*10 + O3","v":422154},{"$f":"((T3-O3)/25)*15 + O3","v":431866},{"$f":"((T3-O3)/25)*20 + O3","v":441578},"$451,290",{"$f":"((W3-T3)/25)*5 + T3","v":468713.8},{"$f":"((W3-T3)/25)*10 + T3","v":486137.59999999998},"$538,409"]
["MGMAAcademicAllNon-FacultyMDAnesthesiology: CardiologyL","Anesthesiology: Cardiology","Code","MGMA","Academic","All","Non-Faculty","MD",2022,0,{"$f":"((O4-J4)/25)*5 + J4","v":0},0,0,0,0,0,0,0,0,0,0,0,0]
["MGMAAcademicAllNon-FacultyMDAnesthesiology: Pain ManagementL","Anesthesiology: Pain Management","Code","MGMA","Academic","All","Non-Faculty","MD",2022,0,{"$f":"((O5-J5)/25)*5 + J5","v":0},0,0,0,0,0,0,0,0,0,0,0,0]
["MGMAAcademicAllNon-FacultyMDCardiology: ElectrophysiologyL","Cardiology: Electrophysiology","Code","MGMA","Academic","All","Non-Faculty","MD",2022,0,0,0,0,0,0,0,0,0,0,0,0,0,0]
["MGMAAcademicAllNon-FacultyMDCardiology: InvasiveL","Cardiology: Invasive","Code","MGMA","Academic","All","Non-Faculty","MD",2022,0,0,0,0,0,0,0,0,0,0,0,0,0,0]
["MGMAAcademicAllNon-FacultyMDCardiology: Invasive-InterventionalL","Cardiology: Invasive-Interventional","Code","MGMA","Academic","All","Non-Faculty","MD",2022,"$275,821",303651.59999999998,331482.2,359312.8,387143.4,"$414,974",430389.8,445805.6,461221.4,476637.2,"$492,053",516465.4,540877.80000000005,"$614,115"]
["MGMAAcademicAllNon-FacultyMDCardiology: NoninvasiveL","Cardiology: Noninvasive","Code","MGMA","Academic","All","Non-Faculty","MD",2022,"$254,514",265604.59999999998,276695.2,287785.8,298876.40000000002,"$309,967",323895.8,337824.6,351753.4,365682.2,"$379,611",393345.2,407079.4,"$448,282"]
["MGMAAcademicAllNon-FacultyMDClinical PharmacologyL","Clinical Pharmacology","Code","MGMA","Academic","All","Non-Faculty","MD",2022,0,0,0,0,0,0,0,0,0,0,0,0,0,0]
["MGMAAcademicAllNon-FacultyMDCritical Care: IntensivistL","Critical Care: Intensivist","Code","MGMA","Academic","All","Non-Faculty","MD",2022,"$289,753",304418,319083,333748,348413,"$363,078",378235.6,393393.2,408550.8,423708.4,"$438,866",464662.6,490459.2,"$567,849"]
["MGMAAcademicAllNon-FacultyMDDentistryL","Dentistry","Code","MGMA","Academic","All","Non-Faculty","MD",2022,0,0,0,0,0,0,0,0,0,0,0,0,0,0]
["MGMAAcademicAllNon-FacultyMDDermatologyL","Dermatology","Code","MGMA","Academic","All","Non-Faculty","MD",2022,0,0,0,0,0,0,0,0,0,0,0,0,0,0]
["MGMAAcademicAllNon-FacultyMDDermatology: DermatopathologyL","Dermatology: Dermatopathology","Code","MGMA","Academic","All","Non-Faculty","MD",2022,0,0,0,0,0,0,0,0,0,0,0,0,0,0]
["MGMAAcademicAllNon-FacultyMDDermatology: Mohs SurgeryL","Dermatology: Mohs Surgery","Code","MGMA","Academic","All","Non-Faculty","MD",2022,0,0,0,0,0,0,0,0,0,0,0,0,0,0]
["MGMAAcademicAllNon-FacultyMDEmergency MedicineL","Emergency Medicine","Code","MGMA","Academic","All","Non-Faculty","MD",2022,"$234,694",248800.8,262907.59999999998,277014.40000000002,291121.2,"$305,228",308724,312220,315716,319212,"$322,708",335860,349012,"$388,468"]
["MGMAAcademicAllNon-FacultyMDEndocrinology/MetabolismL","Endocrinology/Metabolism","Code","MGMA","Academic","All","Non-Faculty","MD",2022,0,0,0,0,0,0,0,0,0,0,0,0,0,0]
["MGMAAcademicAllNon-FacultyMDFamily Medicine (with OB)L","Family Medicine (with OB)","Code","MGMA","Academic","All","Non-Faculty","MD",2022,0,0,0,0,0,0,0,0,0,0,0,0,0,0]
["MGMAAcademicAllNon-FacultyMDFamily Medicine (without OB)L","Family Medicine (without OB)","Code","MGMA","Academic","All","Non-Faculty","MD",2022,0,0,0,0,0,0,0,0,0,0,0,0,0,0]
["MGMAAcademicAllNon-FacultyMDFamily Medicine: Ambulatory Only (No Inpatient Work)L","Family Medicine: Ambulatory Only (No Inpatient Work)","Code","MGMA","Academic","All","Non-Faculty","MD",2022,0,0,0,0,0,0,0,0,0,0,0,0,0,0]
["MGMAAcademicAllNon-FacultyMDFamily Medicine: Sports MedicineL","Family Medicine: Sports Medicine","Code","MGMA","Academic","All","Non-Faculty","MD",2022,0,0,0,0,0,0,0,0,0,0,0,0,0,0]
["MGMAAcademicAllNon-FacultyMDFamily Medicine: Urgent CareL","Family Medicine: Urgent Care","Code","MGMA","Academic","All","Non-Faculty","MD",2022,0,0,0,0,0,0,0,0,0,0,0,0,0,0]
["MGMAAcademicAllNon-FacultyMDGastroenterologyL","Gastroenterology","Code","MGMA","Academic","All","Non-Faculty","MD",2022,"$173,029",193154.2,213279.4,233404.6,253529.8,"$273,655",293951,314247,334543,354839,"$375,135",395389.8,415644.6,"$476,409"]
["MGMAAcademicAllNon-FacultyMDGastroenterology: HepatologyL","Gastroenterology: Hepatology","Code","MGMA","Academic","All","Non-Faculty","MD",2022,0,0,0,0,0,0,0,0,0,0,0,0,0,0]
["MGMAAcademicAllNon-FacultyMDGeneticsL","Genetics","Code","MGMA","Academic","All","Non-Faculty","MD",2022,0,0,0,0,0,0,0,0,0,0,0,0,0,0]
["MGMAAcademicAllNon-FacultyMDGeriatricsL","Geriatrics","Code","MGMA","Academic","All","Non-Faculty","MD",2022,0,0,0,0,0,0,0,0,0,0,0,0,0,0]
["MGMAAcademicAllNon-FacultyMDHematology/OncologyL","Hematology/Oncology","Code","MGMA","Academic","All","Non-Faculty","MD",2022,0,0,0,0,0,0,0,0,0,0,0,0,0,0]
["MGMAAcademicAllNon-FacultyMDHematology/Oncology: Oncology (Only)L","Hematology/Oncology: Oncology (Only)","Code","MGMA","Academic","All","Non-Faculty","MD",2022,0,0,0,0,0,0,0,0,0,0,0,0,0,0]
["MGMAAcademicAllNon-FacultyMDHospice/Palliative CareL","Hospice/Palliative Care","Code","MGMA","Academic","All","Non-Faculty","MD",2022,"$250,581",251367.6,252154.2,252940.79999999999,253727.4,"$254,514",255496.6,256479.2,257461.8,258444.4,"$259,427",262054.39999999999,264681.8,"$272,564"]
["MGMAAcademicAllNon-FacultyMDHospitalist: Family MedicineL","Hospitalist: Family Medicine","Code","MGMA","Academic","All","Non-Faculty","MD",2022,0,0,0,0,0,0,0,0,0,0,0,0,0,0]
["MGMAAcademicAllNon-FacultyMDHospitalist: Internal MedicineL","Hospitalist: Internal Medicine","Code","MGMA","Academic","All","Non-Faculty","MD",2022,"$245,235",247090.8,248946.6,250802.4,252658.2,"$254,514",260152.2,265790.40000000002,271428.59999999998,277066.8,"$282,705",288786.59999999998,294868.2,"$313,113"]
["MGMAAcademicAllNon-FacultyMDHospitalist: NocturnistL","Hospitalist: Nocturnist","Code","MGMA","Academic","All","Non-Faculty","MD",2022,0,0,0,0,0,0,0,0,0,0,0,0,0,0]
["MGMAAcademicAllNon-FacultyMDHyperbaric Medicine/Wound CareL","Hyperbaric Medicine/Wound Care","Code","MGMA","Academic","All","Non-Faculty","MD",2022,0,0,0,0,0,0,0,0,0,0,0,0,0,0]
["MGMAAcademicAllNon-FacultyMDInfectious DiseaseL","Infectious Disease","Code","MGMA","Academic","All","Non-Faculty","MD",2022,"$187,246",197762,208278,218794,229310,"$239,826",245815.6,251805.2,257794.8,263784.40000000002,"$269,774",278278.59999999998,286783.2,"$312,297"]
["MGMAAcademicAllNon-FacultyMDInternal Medicine: GeneralL","Internal Medicine: General","Code","MGMA","Academic","All","Non-Faculty","MD",2022,"$165,593",183377.2,201161.4,218945.6,236729.8,"$254,514",254514,254514,254514,254514,"$254,514",265698.59999999998,276883.20000000001,"$310,437"]
["MGMAAcademicAllNon-FacultyMDInternal Medicine: Ambulatory Only (No Inpatient Work)L","Internal Medicine: Ambulatory Only (No Inpatient Work)","Code","MGMA","Academic","All","Non-Faculty","MD",2022,0,0,0,0,0,0,0,0,0,0,0,0,0,0]
["MGMAAcademicAllNon-FacultyMDNephrologyL","Nephrology","Code","MGMA","Academic","All","Non-Faculty","MD",2022,0,0,0,0,0,0,0,0,0,0,0,0,0,0]
["MGMAAcademicAllNon-FacultyMDNephrology: TransplantL","Nephrology: Transplant","Code","MGMA","Academic","All","Non-Faculty","MD",2022,0,0,0,0,0,0,0,0,0,0,0,0,0,0]
["MGMAAcademicAllNon-FacultyMDNeurologyL","Neurology","Code","MGMA","Academic","All","Non-Faculty","MD",2022,"$223,139",231208.6,239278.2,247347.8,255417.4,"$263,487",272767.59999999998,282048.2,291328.8,300609.40000000002,"$309,890",324551.40000000002,339212.79999999999,"$383,197"]
["MGMAAcademicAllNon-FacultyMDNeurology: Epilepsy/EEGL","Neurology: Epilepsy/EEG","Code","MGMA","Academic","All","Non-Faculty","MD",2022,0,0,0,0,0,0,0,0,0,0,0,0,0,0]
["MGMAAcademicAllNon-FacultyMDNeurology: Neurocritical CareL","Neurology: Neurocritical Care","Code","MGMA","Academic","All","Non-Faculty","MD",2022,0,0,0,0,0,0,0,0,0,0,0,0,0,0]
["MGMAAcademicAllNon-FacultyMDNeurology: Neuromuscular MedicineL","Neurology: Neuromuscular Medicine","Code","MGMA","Academic","All","Non-Faculty","MD",2022,0,0,0,0,0,0,0,0,0,0,0,0,0,0]
["MGMAAcademicAllNon-FacultyMDNeurology: Stroke MedicineL","Neurology: Stroke Medicine","Code","MGMA","Academic","All","Non-Faculty","MD",2022,0,0,0,0,0,0,0,0,0,0,0,0,0,0]
["MGMAAcademicAllNon-FacultyMDObstetrics/Gynecology: GeneralL","Obstetrics/Gynecology: General","Code","MGMA","Academic","All","Non-Faculty","MD",2022,"$129,493",162063,194633,227203,259773,"$292,343",296526.40000000002,300709.8,304893.2,309076.59999999998,"$313,260",325480.59999999998,337701.2,"$374,363"]
["MGMAAcademicAllNon-FacultyMDOB/GYN: Gynecology (Only)L","OB/GYN: Gynecology (Only)","Code","MGMA","Academic","All","Non-Faculty","MD",2022,0,0,0,0,0,0,0,0,0,0,0,0,0,0]
["MGMAAcademicAllNon-FacultyMDOB/GYN: Gynecological OncologyL","OB/GYN: Gynecological Oncology","Code","MGMA","Academic","All","Non-Faculty","MD",2022,0,0,0,0,0,0,0,0,0,0,0,0,0,0]
["MGMAAcademicAllNon-FacultyMDOB/GYN: Maternal and Fetal MedicineL","OB/GYN: Maternal and Fetal Medicine","Code","MGMA","Academic","All","Non-Faculty","MD",2022,0,0,0,0,0,0,0,0,0,0,0,0,0,0]
["MGMAAcademicAllNon-FacultyMDOB/GYN: Minimally Invasive Gynecologic SurgeryL","OB/GYN: Minimally Invasive Gynecologic Surgery","Code","MGMA","Academic","All","Non-Faculty","MD",2022,0,0,0,0,0,0,0,0,0,0,0,0,0,0]
["MGMAAcademicAllNon-FacultyMDOB/GYN: Reproductive EndocrinologyL","OB/GYN: Reproductive Endocrinology","Code","MGMA","Academic","All","Non-Faculty","MD",2022,0,0,0,0,0,0,0,0,0,0,0,0,0,0]
["MGMAAcademicAllNon-FacultyMDOB/GYN: UrogynecologyL","OB/GYN: Urogynecology","Code","MGMA","Academic","All","Non-Faculty","MD",2022,0,0,0,0,0,0,0,0,0,0,0,0,0,0]
["MGMAAcademicAllNon-FacultyMDOccupational MedicineL","Occupational Medicine","Code","MGMA","Academic","All","Non-Faculty","MD",2022,0,0,0,0,0,0,0,0,0,0,0,0,0,0]
["MGMAAcademicAllNon-FacultyMDOphthalmologyL","Ophthalmology","Code","MGMA","Academic","All","Non-Faculty","MD",2022,"$123,390",157729.4,192068.8,226408.2,260747.6,"$295,087",295087,295087,295087,295087,"$295,087",311456.40000000002,327825.8,"$376,934"]
["MGMAAcademicAllNon-FacultyMDOphthalmology: Corneal and Refractive SurgeryL","Ophthalmology: Corneal and Refractive Surgery","Code","MGMA","Academic","All","Non-Faculty","MD",2022,0,0,0,0,0,0,0,0,0,0,0,0,0,0]
["MGMAAcademicAllNon-FacultyMDOphthalmology: GlaucomaL","Ophthalmology: Glaucoma","Code","MGMA","Academic","All","Non-Faculty","MD",2022,0,0,0,0,0,0,0,0,0,0,0,0,0,0]
["MGMAAcademicAllNon-FacultyMDOphthalmology: NeurologyL","Ophthalmology: Neurology","Code","MGMA","Academic","All","Non-Faculty","MD",2022,0,0,0,0,0,0,0,0,0,0,0,0,0,0]
["MGMAAcademicAllNon-FacultyMDOphthalmology: Oculoplastic and Reconstructive SurgeryL","Ophthalmology: Oculoplastic and Reconstructive Surgery","Code","MGMA","Academic","All","Non-Faculty","MD",2022,0,0,0,0,0,0,0,0,0,0,0,0,0,0]
["MGMAAcademicAllNon-FacultyMDOphthalmology: RetinaL","Ophthalmology: Retina","Code","MGMA","Academic","All","Non-Faculty","MD",2022,0,0,0,0,0,0,0,0,0,0,0,0,0,0]
["MGMAAcademicAllNon-FacultyMDOrthopedic (Nonsurgical)L","Orthopedic (Nonsurgical)","Code","MGMA","Academic","All","Non-Faculty","MD",2022,0,0,0,0,0,0,0,0,0,0,0,0,0,0]
["MGMAAcademicAllNon-FacultyMDOrthopedic Surgery: GeneralL","Orthopedic Surgery: General","Code","MGMA","Academic","All","Non-Faculty","MD",2022,0,0,0,0,0,0,0,0,0,0,0,0,0,0]
["MGMAAcademicAllNon-FacultyMDOrthopedic Surgery: Foot and AnkleL","Orthopedic Surgery: Foot and Ankle","Code","MGMA","Academic","All","Non-Faculty","MD",2022,0,0,0,0,0,0,0,0,0,0,0,0,0,0]
["MGMAAcademicAllNon-FacultyMDOrthopedic Surgery: HandL","Orthopedic Surgery: Hand","Code","MGMA","Academic","All","Non-Faculty","MD",2022,0,0,0,0,0,0,0,0,0,0,0,0,0,0]
["MGMAAcademicAllNon-FacultyMDOrthopedic Surgery: Hip and JointL","Orthopedic Surgery: Hip and Joint","Code","MGMA","Academic","All","Non-Faculty","MD",2022,0,0,0,0,0,0,0,0,0,0,0,0,0,0]
["MGMAAcademicAllNon-FacultyMDOrthopedic Surgery: OncologyL","Orthopedic Surgery: Oncology","Code","MGMA","Academic","All","Non-Faculty","MD",2022,0,0,0,0,0,0,0,0,0,0,0,0,0,0]
["MGMAAcademicAllNon-FacultyMDOrthopedic Surgery: Shoulder/ElbowL","Orthopedic Surgery: Shoulder/Elbow","Code","MGMA","Academic","All","Non-Faculty","MD",2022,0,0,0,0,0,0,0,0,0,0,0,0,0,0]
["MGMAAcademicAllNon-FacultyMDOrthopedic Surgery: SpineL","Orthopedic Surgery: Spine","Code","MGMA","Academic","All","Non-Faculty","MD",2022,0,0,0,0,0,0,0,0,0,0,0,0,0,0]
["MGMAAcademicAllNon-FacultyMDOrthopedic Surgery: Sports MedicineL","Orthopedic Surgery: Sports Medicine","Code","MGMA","Academic","All","Non-Faculty","MD",2022,0,0,0,0,0,0,0,0,0,0,0,0,0,0]
[{"$f":"D67&E67&F67&G67&H67&B67&\"L\"","v":"MGMAAcademicAllNon-FacultyMDOrthopedic Surgery: TraumaL"},"Orthopedic Surgery: Trauma","Code","MGMA","Academic","All","Non-Faculty","MD",2022,0,0,{"$f":"((O67-J67)/25)*10 + J67","v":0},{"$f":"((O67-J67)/25)*15 + J67","v":0},{"$f":"((O67-J67)/25)*20 + J67","v":0},0,{"$f":"((T67-O67)/25)*5 + O67","v":0},{"$f":"((T67-O67)/25)*10 + O67","v":0},{"$f":"((T67-O67)/25)*15 + O67","v":0},{"$f":"((T67-O67)/25)*20 + O67","v":0},0,{"$f":"((W67-T67)/25)*5 + T67","v":0},{"$f":"((W67-T67)/25)*10 + T67","v":0},0]
["MGMAAcademicAllNon-FacultyMDOtorhinolaryngologyL","Otorhinolaryngology","Code","MGMA","Academic","All","Non-Faculty","MD",2022,0,0,0,0,0,0,0,0,0,0,0,0,0,0]
["MGMAAcademicAllNon-FacultyMDPain Management: NonanesthesiaL","Pain Management: Nonanesthesia","Code","MGMA","Academic","All","Non-Faculty","MD",2022,"$353,244",{"$f":"((O69-J69)/25)*5 + J69","v":369772.2},386300.4,402828.6,419356.8,"$435,885",451689.6,467494.2,483298.8,499103.4,"$514,908",528427.19999999995,541946.4,"$582,504"]
["MGMAAcademicAllNon-FacultyMDPathology: Anatomic and ClinicalL","Pathology: Anatomic and Clinical","Code","MGMA","Academic","All","Non-Faculty","MD",2022,0,0,0,0,0,0,0,0,0,0,0,0,0,0]
["MGMAAcademicAllNon-FacultyMDPathology: AnatomicL","Pathology: Anatomic","Code","MGMA","Academic","All","Non-Faculty","MD",2022,0,0,0,0,0,0,0,0,0,0,0,0,0,0]
["MGMAAcademicAllNon-FacultyMDPathology: Anatomic-AutopsyL","Pathology: Anatomic-Autopsy","Code","MGMA","Academic","All","Non-Faculty","MD",2022,0,0,0,0,0,0,0,0,0,0,0,0,0,0]
["MGMAAcademicAllNon-FacultyMDPathology: Anatomic-CytopathologyL","Pathology: Anatomic-Cytopathology","Code","MGMA","Academic","All","Non-Faculty","MD",2022,0,0,0,0,0,0,0,0,0,0,0,0,0,0]
["MGMAAcademicAllNon-FacultyMDPathology: Anatomic-NeuropathologyL","Pathology: Anatomic-Neuropathology","Code","MGMA","Academic","All","Non-Faculty","MD",2022,0,0,0,0,0,0,0,0,0,0,0,0,0,0]
["MGMAAcademicAllNon-FacultyMDPathology: Anatomic-RenalL","Pathology: Anatomic-Renal","Code","MGMA","Academic","All","Non-Faculty","MD",2022,0,0,0,0,0,0,0,0,0,0,0,0,0,0]
["MGMAAcademicAllNon-FacultyMDPathology: ClinicalL","Pathology: Clinical","Code","MGMA","Academic","All","Non-Faculty","MD",2022,0,0,0,0,0,0,0,0,0,0,0,0,0,0]
["MGMAAcademicAllNon-FacultyMDPathology: Clinical-HematopathologyL","Pathology: Clinical-Hematopathology","Code","MGMA","Academic","All","Non-Faculty","MD",2022,0,0,0,0,0,0,0,0,0,0,0,0,0,0]
["MGMAAcademicAllNon-FacultyMDPathology: Clinical-Transfusion MedicineL","Pathology: Clinical-Transfusion Medicine","Code","MGMA","Academic","All","Non-Faculty","MD",2022,0,0,0,0,0,0,0,0,0,0,0,0,0,0]
["MGMAAcademicAllNon-FacultyMDPathology: SurgicalL","Pathology: Surgical","Code","MGMA","Academic","All","Non-Faculty","MD",2022,0,0,0,0,0,0,0,0,0,0,0,0,0,0]
["MGMAAcademicAllNon-FacultyMDPediatrics: GeneralL","Pediatrics: General","Code","MGMA","Academic","All","Non-Faculty","MD",2022,"$185,834",186707,187580,188453,189326,"$190,199",202863,215527,228191,240855,"$253,519",273415.40000000002,293311.8,"$353,001"]
["MGMAAcademicAllNon-FacultyMDPediatrics: Adolescent MedicineL","Pediatrics: Adolescent Medicine","Code","MGMA","Academic","All","Non-Faculty","MD",2022,0,0,0,0,0,0,0,0,0,0,0,0,0,0]
["MGMAAcademicAllNon-FacultyMDPediatrics: Allergy/ImmunologyL","Pediatrics: Allergy/Immunology","Code","MGMA","Academic","All","Non-Faculty","MD",2022,0,0,0,0,0,0,0,0,0,0,0,0,0,0]
["MGMAAcademicAllNon-FacultyMDPediatrics: AnesthesiologyL","Pediatrics: Anesthesiology","Code","MGMA","Academic","All","Non-Faculty","MD",2022,0,0,0,0,0,0,0,0,0,0,0,0,0,0]
["MGMAAcademicAllNon-FacultyMDPediatrics: Bone Marrow TransplantL","Pediatrics: Bone Marrow Transplant","Code","MGMA","Academic","All","Non-Faculty","MD",2022,0,0,0,0,0,0,0,0,0,0,0,0,0,0]
["MGMAAcademicAllNon-FacultyMDPediatrics: CardiologyL","Pediatrics: Cardiology","Code","MGMA","Academic","All","Non-Faculty","MD",2022,0,0,0,0,0,0,0,0,0,0,0,0,0,0]
["MGMAAcademicAllNon-FacultyMDPediatrics: Cardiovascular SurgeryL","Pediatrics: Cardiovascular Surgery","Code","MGMA","Academic","All","Non-Faculty","MD",2022,0,0,0,0,0,0,0,0,0,0,0,0,0,0]
["MGMAAcademicAllNon-FacultyMDPediatrics: Child DevelopmentL","Pediatrics: Child Development","Code","MGMA","Academic","All","Non-Faculty","MD",2022,0,0,0,0,0,0,0,0,0,0,0,0,0,0]
["MGMAAcademicAllNon-FacultyMDPediatrics: Critical Care/IntensivistL","Pediatrics: Critical Care/Intensivist","Code","MGMA","Academic","All","Non-Faculty","MD",2022,0,0,0,0,0,0,0,0,0,0,0,0,0,0]
["MGMAAcademicAllNon-FacultyMDPediatrics: DermatologyL","Pediatrics: Dermatology","Code","MGMA","Academic","All","Non-Faculty","MD",2022,0,0,0,0,0,0,0,0,0,0,0,0,0,0]
["MGMAAcademicAllNon-FacultyMDPediatrics: Emergency MedicineL","Pediatrics: Emergency Medicine","Code","MGMA","Academic","All","Non-Faculty","MD",2022,0,0,0,0,0,0,0,0,0,0,0,0,0,0]
["MGMAAcademicAllNon-FacultyMDPediatrics: EndocrinologyL","Pediatrics: Endocrinology","Code","MGMA","Academic","All","Non-Faculty","MD",2022,0,0,0,0,0,0,0,0,0,0,0,0,0,0]
["MGMAAcademicAllNon-FacultyMDPediatrics: GastroenterologyL","Pediatrics: Gastroenterology","Code","MGMA","Academic","All","Non-Faculty","MD",2022,0,0,0,0,0,0,0,0,0,0,0,0,0,0]
["MGMAAcademicAllNon-FacultyMDPediatrics: GeneticsL","Pediatrics: Genetics","Code","MGMA","Academic","All","Non-Faculty","MD",2022,0,0,0,0,0,0,0,0,0,0,0,0,0,0]
["MGMAAcademicAllNon-FacultyMDPediatrics: Hematology/OncologyL","Pediatrics: Hematology/Oncology","Code","MGMA","Academic","All","Non-Faculty","MD",2022,0,0,0,0,0,0,0,0,0,0,0,0,0,0]
["MGMAAcademicAllNon-FacultyMDPediatrics: HospitalistL","Pediatrics: Hospitalist","Code","MGMA","Academic","All","Non-Faculty","MD",2022,0,0,0,0,0,0,0,0,0,0,0,0,0,0]
["MGMAAcademicAllNon-FacultyMDPediatrics: Hospitalist-Internal MedicineL","Pediatrics: Hospitalist-Internal Medicine","Code","MGMA","Academic","All","Non-Faculty","MD",2022,0,0,0,0,0,0,0,0,0,0,0,0,0,0]
["MGMAAcademicAllNon-FacultyMDPediatrics: Infectious DiseaseL","Pediatrics: Infectious Disease","Code","MGMA","Academic","All","Non-Faculty","MD",2022,0,0,0,0,0,0,0,0,0,0,0,0,0,0]
["MGMAAcademicAllNon-FacultyMDPediatrics: Internal MedicineL","Pediatrics: Internal Medicine","Code","MGMA","Academic","All","Non-Faculty","MD",2022,0,0,0,0,0,0,0,0,0,0,0,0,0,0]
["MGMAAcademicAllNon-FacultyMDPediatrics: Neonatal MedicineL","Pediatrics: Neonatal Medicine","Code","MGMA","Academic","All","Non-Faculty","MD",2022,0,0,0,0,0,0,0,0,0,0,0,0,0,0]
["MGMAAcademicAllNon-FacultyMDPediatrics: NephrologyL","Pediatrics: Nephrology","Code","MGMA","Academic","All","Non-Faculty","MD",2022,0,0,0,0,0,0,0,0,0,0,0,0,0,0]
["MGMAAcademicAllNon-FacultyMDPediatrics: NeurologyL","Pediatrics: Neurology","Code","MGMA","Academic","All","Non-Faculty","MD",2022,0,0,0,0,0,0,0,0,0,0,0,0,0,0]
["MGMAAcademicAllNon-FacultyMDPediatrics: NeurosurgeryL","Pediatrics: Neurosurgery","Code","MGMA","Academic","All","Non-Faculty","MD",2022,0,0,0,0,0,0,0,0,0,0,0,0,0,0]
["MGMAAcademicAllNon-FacultyMDPediatrics: OphthalmologyL","Pediatrics: Ophthalmology","Code","MGMA","Academic","All","Non-Faculty","MD",2022,0,0,0,0,0,0,0,0,0,0,0,0,0,0]
["MGMAAcademicAllNon-FacultyMDPediatrics: Orthopedic SurgeryL","Pediatrics: Orthopedic Surgery","Code","MGMA","Academic","All","Non-Faculty","MD",2022,0,0,0,0,0,0,0,0,0,0,0,0,0,0]
["MGMAAcademicAllNon-FacultyMDPediatrics: OtorhinolaryngologyL","Pediatrics: Otorhinolaryngology","Code","MGMA","Academic","All","Non-Faculty","MD",2022,0,0,0,0,0,0,0,0,0,0,0,0,0,0]
["MGMAAcademicAllNon-FacultyMDPediatrics: Plastic and Reconstruction SurgeryL","Pediatrics: Plastic and Reconstruction Surgery","Code","MGMA","Academic","All","Non-Faculty","MD",2022,0,0,0,0,0,0,0,0,0,0,0,0,0,0]
["MGMAAcademicAllNon-FacultyMDPediatrics: PulmonologyL","Pediatrics: Pulmonology","Code","MGMA","Academic","All","Non-Faculty","MD",2022,0,0,0,0,0,0,0,0,0,0,0,0,0,0]
["MGMAAcademicAllNon-FacultyMDPediatrics: RadiologyL","Pediatrics: Radiology","Code","MGMA","Academic","All","Non-Faculty","MD",2022,0,0,0,0,0,0,0,0,0,0,0,0,0,0]
["MGMAAcademicAllNon-FacultyMDPediatrics: RheumatologyL","Pediatrics: Rheumatology","Code","MGMA","Academic","All","Non-Faculty","MD",2022,0,0,0,0,0,0,0,0,0,0,0,0,0,0]
["MGMAAcademicAllNon-FacultyMDPediatrics: Sports MedicineL","Pediatrics: Sports Medicine","Code","MGMA","Academic","All","Non-Faculty","MD",2022,0,0,0,0,0,0,0,0,0,0,0,0,0,0]
["MGMAAcademicAllNon-FacultyMDPediatrics: SurgeryL","Pediatrics: Surgery","Code","MGMA","Academic","All","Non-Faculty","MD",2022,0,0,0,0,0,0,0,0,0,0,0,0,0,0]
["MGMAAcademicAllNon-FacultyMDPediatrics: Urgent CareL","Pediatrics: Urgent Care","Code","MGMA","Academic","All","Non-Faculty","MD",2022,0,0,0,0,0,0,0,0,0,0,0,0,0,0]
["MGMAAcademicAllNon-FacultyMDPediatrics: UrologyL","Pediatrics: Urology","Code","MGMA","Academic","All","Non-Faculty","MD",2022,0,0,0,0,0,0,0,0,0,0,0,0,0,0]
["MGMAAcademicAllNon-FacultyMDPhysiatry (Physical Medicine and Rehabilitation)L","Physiatry (Physical Medicine and Rehabilitation)","Code","MGMA","Academic","All","Non-Faculty","MD",2022,"$147,081",166283.20000000001,185485.4,204687.6,223889.8,"$243,092",245583.6,248075.2,250566.8,253058.4,"$255,550",268591,281632,"$320,755"]
["MGMAAcademicAllNon-FacultyMDPodiatry: GeneralL","Podiatry: General","Code","MGMA","Academic","All","Non-Faculty","MD",2022,0,0,0,0,0,0,0,0,0,0,0,0,0,0]
["MGMAAcademicAllNon-FacultyMDPodiatry: Surgery-Foot and AnkleL","Podiatry: Surgery-Foot and Ankle","Code","MGMA","Academic","All","Non-Faculty","MD",2022,0,0,0,0,0,0,0,0,0,0,0,0,0,0]
["MGMAAcademicAllNon-FacultyMDPsychiatry: GeneralL","Psychiatry: General","Code","MGMA","Academic","All","Non-Faculty","MD",2022,0,0,0,0,0,0,0,0,0,0,0,0,0,0]
["MGMAAcademicAllNon-FacultyMDPsychiatry: Addiction MedicineL","Psychiatry: Addiction Medicine","Code","MGMA","Academic","All","Non-Faculty","MD",2022,0,0,0,0,0,0,0,0,0,0,0,0,0,0]
["MGMAAcademicAllNon-FacultyMDPsychiatry: Behavioral MedicineL","Psychiatry: Behavioral Medicine","Code","MGMA","Academic","All","Non-Faculty","MD",2022,0,0,0,0,0,0,0,0,0,0,0,0,0,0]
["MGMAAcademicAllNon-FacultyMDPsychiatry: Chemical DependencyL","Psychiatry: Chemical Dependency","Code","MGMA","Academic","All","Non-Faculty","MD",2022,0,0,0,0,0,0,0,0,0,0,0,0,0,0]
["MGMAAcademicAllNon-FacultyMDPsychiatry: Child and AdolescentL","Psychiatry: Child and Adolescent","Code","MGMA","Academic","All","Non-Faculty","MD",2022,0,0,0,0,0,0,0,0,0,0,0,0,0,0]
["MGMAAcademicAllNon-FacultyMDPsychiatry: ForensicL","Psychiatry: Forensic","Code","MGMA","Academic","All","Non-Faculty","MD",2022,0,0,0,0,0,0,0,0,0,0,0,0,0,0]
["MGMAAcademicAllNon-FacultyMDPsychiatry: GeriatricL","Psychiatry: Geriatric","Code","MGMA","Academic","All","Non-Faculty","MD",2022,0,0,0,0,0,0,0,0,0,0,0,0,0,0]
["MGMAAcademicAllNon-FacultyMDPulmonary Medicine: GeneralL","Pulmonary Medicine: General","Code","MGMA","Academic","All","Non-Faculty","MD",2022,"$242,379",247378.2,252377.4,257376.6,262375.8,"$267,375",278361.2,289347.40000000002,300333.59999999998,311319.8,"$322,306",351099.2,379892.4,"$466,272"]
["MGMAAcademicAllNon-FacultyMDPulmonary Medicine: Critical CareL","Pulmonary Medicine: Critical Care","Code","MGMA","Academic","All","Non-Faculty","MD",2022,0,0,0,0,0,0,0,0,0,0,0,0,0,0]
["MGMAAcademicAllNon-FacultyMDPulmonary Medicine: General and Critical CareL","Pulmonary Medicine: General and Critical Care","Code","MGMA","Academic","All","Non-Faculty","MD",2022,0,0,0,0,0,0,0,0,0,0,0,0,0,0]
["MGMAAcademicAllNon-FacultyMDRadiation OncologyL","Radiation Oncology","Code","MGMA","Academic","All","Non-Faculty","MD",2022,0,0,0,0,0,0,0,0,0,0,0,0,0,0]
["MGMAAcademicAllNon-FacultyMDRadiology: InterventionalL","Radiology: Interventional","Code","MGMA","Academic","All","Non-Faculty","MD",2022,0,0,0,0,0,0,0,0,0,0,0,0,0,0]
["MGMAAcademicAllNon-FacultyMDRadiology: DiagnosticL","Radiology: Diagnostic","Code","MGMA","Academic","All","Non-Faculty","MD",2022,"$361,206",365604.2,370002.4,374400.6,378798.8,"$383,197",410260.6,437324.2,464387.8,491451.4,"$518,515",538374.6,558234.19999999995,"$617,813"]
["MGMAAcademicAllNon-FacultyMDRadiology: NeurologicalL","Radiology: Neurological","Code","MGMA","Academic","All","Non-Faculty","MD",2022,0,0,0,0,0,0,0,0,0,0,0,0,0,0]
[{"$f":"D131&E131&F131&G131&H131&B131&\"L\"","v":"MGMAAcademicAllNon-FacultyMDRadiology: Nuclear MedicineL"},"Radiology: Nuclear Medicine","Code","MGMA","Academic","All","Non-Faculty","MD",2022,0,0,{"$f":"((O131-J131)/25)*10 + J131","v":0},{"$f":"((O131-J131)/25)*15 + J131","v":0},{"$f":"((O131-J131)/25)*20 + J131","v":0},0,{"$f":"((T131-O131)/25)*5 + O131","v":0},{"$f":"((T131-O131)/25)*10 + O131","v":0},{"$f":"((T131-O131)/25)*15 + O131","v":0},{"$f":"((T131-O131)/25)*20 + O131","v":0},0,{"$f":"((W131-T131)/25)*5 + T131","v":0},{"$f":"((W131-T131)/25)*10 + T131","v":0},0]
["MGMAAcademicAllNon-FacultyMDRheumatologyL","Rheumatology","Code","MGMA","Academic","All","Non-Faculty","MD",2022,"$167,500",170052.2,172604.4,175156.6,177708.79999999999,"$180,261",199552,218843,238134,257425,"$276,716",293189.8,309663.59999999998,"$359,085"]
["MGMAAcademicAllNon-FacultyMDSleep MedicineL","Sleep Medicine","Code","MGMA","Academic","All","Non-Faculty","MD",2022,0,{"$f":"((O133-J133)/25)*5 + J133","v":0},0,0,0,0,0,0,0,0,0,0,0,0]
["MGMAAcademicAllNon-FacultyMDSurgery: GeneralL","Surgery: General","Code","MGMA","Academic","All","Non-Faculty","MD",2022,0,0,0,0,0,0,0,0,0,0,0,0,0,0]
["MGMAAcademicAllNon-FacultyMDSurgery: BariatricL","Surgery: Bariatric","Code","MGMA","Academic","All","Non-Faculty","MD",2022,0,0,0,0,0,0,0,0,0,0,0,0,0,0]
["MGMAAcademicAllNon-FacultyMDSurgery: BreastL","Surgery: Breast","Code","MGMA","Academic","All","Non-Faculty","MD",2022,0,0,0,0,0,0,0,0,0,0,0,0,0,0]
["MGMAAcademicAllNon-FacultyMDSurgery: CardiovascularL","Surgery: Cardiovascular","Code","MGMA","Academic","All","Non-Faculty","MD",2022,0,0,0,0,0,0,0,0,0,0,0,0,0,0]
["MGMAAcademicAllNon-FacultyMDSurgery: Colon and RectalL","Surgery: Colon and Rectal","Code","MGMA","Academic","All","Non-Faculty","MD",2022,0,0,0,0,0,0,0,0,0,0,0,0,0,0]
["MGMAAcademicAllNon-FacultyMDSurgery: EndocrineL","Surgery: Endocrine","Code","MGMA","Academic","All","Non-Faculty","MD",2022,0,0,0,0,0,0,0,0,0,0,0,0,0,0]
["MGMAAcademicAllNon-FacultyMDSurgery: Endovascular (Primary)L","Surgery: Endovascular (Primary)","Code","MGMA","Academic","All","Non-Faculty","MD",2022,0,0,0,0,0,0,0,0,0,0,0,0,0,0]
["MGMAAcademicAllNon-FacultyMDSurgery: NeurologicalL","Surgery: Neurological","Code","MGMA","Academic","All","Non-Faculty","MD",2022,0,0,0,0,0,0,0,0,0,0,0,0,0,0]
["MGMAAcademicAllNon-FacultyMDSurgery: OncologyL","Surgery: Oncology","Code","MGMA","Academic","All","Non-Faculty","MD",2022,0,0,0,0,0,0,0,0,0,0,0,0,0,0]
["MGMAAcademicAllNon-FacultyMDSurgery: OralL","Surgery: Oral","Code","MGMA","Academic","All","Non-Faculty","MD",2022,0,0,0,0,0,0,0,0,0,0,0,0,0,0]
["MGMAAcademicAllNon-FacultyMDSurgery: Plastic and ReconstructionL","Surgery: Plastic and Reconstruction","Code","MGMA","Academic","All","Non-Faculty","MD",2022,"$332,802",335287.40000000002,337772.79999999999,340258.2,342743.6,"$345,229",387257.8,429286.6,471315.4,513344.2,"$555,373",590144.80000000005,624916.6,"$729,232"]
["MGMAAcademicAllNon-FacultyMDSurgery: Plastic and Reconstruction-HandL","Surgery: Plastic and Reconstruction-Hand","Code","MGMA","Academic","All","Non-Faculty","MD",2022,0,0,0,0,0,0,0,0,0,0,0,0,0,0]
["MGMAAcademicAllNon-FacultyMDSurgery: Thoracic (Primary)L","Surgery: Thoracic (Primary)","Code","MGMA","Academic","All","Non-Faculty","MD",2022,0,0,0,0,0,0,0,0,0,0,0,0,0,0]
["MGMAAcademicAllNon-FacultyMDSurgery: TransplantL","Surgery: Transplant","Code","MGMA","Academic","All","Non-Faculty","MD",2022,0,0,0,0,0,0,0,0,0,0,0,0,0,0]
["MGMAAcademicAllNon-FacultyMDSurgery: Transplant-HeartL","Surgery: Transplant-Heart","Code","MGMA","Academic","All","Non-Faculty","MD",2022,0,0,0,0,0,0,0,0,0,0,0,0,0,0]
["MGMAAcademicAllNon-FacultyMDSurgery: Transplant-Heart/LungL","Surgery: Transplant-Heart/Lung","Code","MGMA","Academic","All","Non-Faculty","MD",2022,0,0,0,0,0,0,0,0,0,0,0,0,0,0]
["MGMAAcademicAllNon-FacultyMDSurgery: Transplant-KidneyL","Surgery: Transplant-Kidney","Code","MGMA","Academic","All","Non-Faculty","MD",2022,0,0,0,0,0,0,0,0,0,0,0,0,0,0]
["MGMAAcademicAllNon-FacultyMDSurgery: Transplant-LiverL","Surgery: Transplant-Liver","Code","MGMA","Academic","All","Non-Faculty","MD",2022,0,0,0,0,0,0,0,0,0,0,0,0,0,0]
["MGMAAcademicAllNon-FacultyMDSurgery: TraumaL","Surgery: Trauma","Code","MGMA","Academic","All","Non-Faculty","MD",2022,0,0,0,0,0,0,0,0,0,0,0,0,0,0]
["MGMAAcademicAllNon-FacultyMDSurgery: Trauma-BurnL","Surgery: Trauma-Burn","Code","MGMA","Academic","All","Non-Faculty","MD",2022,0,0,0,0,0,0,0,0,0,0,0,0,0,0]
["MGMAAcademicAllNon-FacultyMDSurgery: Vascular (Primary)L","Surgery: Vascular (Primary)","Code","MGMA","Academic","All","Non-Faculty","MD",2022,0,0,0,0,0,0,0,0,0,0,0,0,0,0]
["MGMAAcademicAllNon-FacultyMDUrgent CareL","Urgent Care","Code","MGMA","Academic","All","Non-Faculty","MD",2022,0,0,0,0,0,0,0,0,0,0,0,0,0,0]
["MGMAAcademicAllNon-FacultyMDUrologyL","Urology","Code","MGMA","Academic","All","Non-Faculty","MD",2022,0,0,0,0,0,0,0,0,0,0,0,0,0,0]
["MGMAAcademicAllNon-FacultyMDAnesthesia AssistanttL","Anesthesia Assistantt","Code","MGMA","Academic","All","Non-Faculty","MD",2022,0,0,0,0,0,0,0,0,0,0,0,0,0,0]
["MGMAAcademicAllNon-FacultyMDAudiologistL","Audiologist","Code","MGMA","Academic","All","Non-Faculty","MD",2022,0,0,0,0,0,0,0,0,0,0,0,0,0,0]
["MGMAAcademicAllNon-FacultyMDCertified Registered Nurse AnesthetistL","Certified Registered Nurse Anesthetist","Code","MGMA","Academic","All","Non-Faculty","MD",2022,"$201,990",207991.4,213992.8,219994.2,225995.6,"$231,997",243825.2,255653.4,267481.59999999998,279309.8,"$291,138",313456.40000000002,335774.8,"$402,730"]
["MGMAAcademicAllNon-FacultyMDChiropractorL","Chiropractor","Code","MGMA","Academic","All","Non-Faculty","MD",2022,0,0,0,0,0,0,0,0,0,0,0,0,0,0]
["MGMAAcademicAllNon-FacultyMDClinical Nurse Specialist L","Clinical Nurse Specialist ","Code","MGMA","Academic","All","Non-Faculty","MD",2022,0,0,0,0,0,0,0,0,0,0,0,0,0,0]
["MGMAAcademicAllNon-FacultyMDDietician/NutritionistL","Dietician/Nutritionist","Code","MGMA","Academic","All","Non-Faculty","MD",2022,0,0,0,0,0,0,0,0,0,0,0,0,0,0]
["MGMAAcademicAllNon-FacultyMDGenetic Counselor L","Genetic Counselor ","Code","MGMA","Academic","All","Non-Faculty","MD",2022,0,0,0,0,0,0,0,0,0,0,0,0,0,0]
["MGMAAcademicAllNon-FacultyMDLicensed Clinical Social WorkerL","Licensed Clinical Social Worker","Code","MGMA","Academic","All","Non-Faculty","MD",2022,"$64,343",65154,65965,66776,67587,"$68,398",72514.600000000006,76631.199999999997,80747.8,84864.4,"$88,981",93777,98573,"$112,961"]
["MGMAAcademicAllNon-FacultyMDNurse Midwife: Outpatient/Inpatient DeliveriesL","Nurse Midwife: Outpatient/Inpatient Deliveries","Code","MGMA","Academic","All","Non-Faculty","MD",2022,0,0,0,0,0,0,0,0,0,0,0,0,0,0]
["MGMAAcademicAllNon-FacultyMDNurse Midwife: Outpatient (Only)L","Nurse Midwife: Outpatient (Only)","Code","MGMA","Academic","All","Non-Faculty","MD",2022,0,0,0,0,0,0,0,0,0,0,0,0,0,0]
["MGMAAcademicAllNon-FacultyMDNurse Midwife: Inpatient (Only)L","Nurse Midwife: Inpatient (Only)","Code","MGMA","Academic","All","Non-Faculty","MD",2022,0,0,0,0,0,0,0,0,0,0,0,0,0,0]
["MGMAAcademicAllNon-FacultyMDNP (Surgical)L","NP (Surgical)","Code","MGMA","Academic","All","Non-Faculty","MD",2022,"$114,557",116960,119363,121766,124169,"$126,572",133140,139708,146276,152844,"$159,412",166365,173318,"$194,177"]
["MGMAAcademicAllNon-FacultyMDNP: AnesthesiologyL","NP: Anesthesiology","Code","MGMA","Academic","All","Non-Faculty","MD",2022,0,0,0,0,0,0,0,0,0,0,0,0,0,0]
["MGMAAcademicAllNon-FacultyMDNP: Cardiothoracic SurgeryL","NP: Cardiothoracic Surgery","Code","MGMA","Academic","All","Non-Faculty","MD",2022,"$128,440",130089,131738,133387,135036,"$136,685",139255,141825,144395,146965,"$149,535",153967.6,158400.20000000001,"$171,698"]
["MGMAAcademicAllNon-FacultyMDNP: NeurosurgeryL","NP: Neurosurgery","Code","MGMA","Academic","All","Non-Faculty","MD",2022,"$111,292",116747.4,122202.8,127658.2,133113.60000000001,"$138,569",144142,149715,155288,160861,"$166,434",169082,171730,"$179,674"]
["MGMAAcademicAllNon-FacultyMDNP: Orthopedics (Surgical)L","NP: Orthopedics (Surgical)","Code","MGMA","Academic","All","Non-Faculty","MD",2022,"$119,622",124408.8,129195.6,133982.39999999999,138769.20000000001,"$143,556",144291.4,145026.79999999999,145762.20000000001,146497.60000000001,"$147,233",150009.79999999999,152786.6,"$161,117"]
["MGMAAcademicAllNon-FacultyMDNP: OtorhinolaryngologyL","NP: Otorhinolaryngology","Code","MGMA","Academic","All","Non-Faculty","MD",2022,"$108,594",110680.6,112767.2,114853.8,116940.4,"$119,027",126002.2,132977.4,139952.6,146927.79999999999,"$153,903",156846.6,159790.20000000001,"$168,621"]
["MGMAAcademicAllNon-FacultyMDNP: Surgery: GeneralL","NP: Surgery: General","Code","MGMA","Academic","All","Non-Faculty","MD",2022,"$119,283",128751.6,138220.20000000001,147688.79999999999,157157.4,"$166,626",207754,248882,290010,331138,"$372,266",372266,372266,"$372,266"]
["MGMAAcademicAllNon-FacultyMDNP: UrologyL","NP: Urology","Code","MGMA","Academic","All","Non-Faculty","MD",2022,"$99,195",102279.2,105363.4,108447.6,111531.8,"$114,616",120082.6,125549.2,131015.8,136482.4,"$141,949",145815,149681,"$161,279"]
["MGMAAcademicAllNon-FacultyMDNP: Vascular SurgeryL","NP: Vascular Surgery","Code","MGMA","Academic","All","Non-Faculty","MD",2022,0,0,0,0,0,0,0,0,0,0,0,0,0,0]
["MGMAAcademicAllNon-FacultyMDNP (Primary Care)L","NP (Primary Care)","Code","MGMA","Academic","All","Non-Faculty","MD",2022,0,0,0,0,0,0,0,0,0,0,0,0,0,0]
["MGMAAcademicAllNon-FacultyMDNP: AdultL","NP: Adult","Code","MGMA","Academic","All","Non-Faculty","MD",2022,0,0,0,0,0,0,0,0,0,0,0,0,0,0]
["MGMAAcademicAllNon-FacultyMDNP: Family Medicine (with OB)L","NP: Family Medicine (with OB)","Code","MGMA","Academic","All","Non-Faculty","MD",2022,0,0,0,0,0,0,0,0,0,0,0,0,0,0]
["MGMAAcademicAllNon-FacultyMDNP: Family Medicine (without OB)L","NP: Family Medicine (without OB)","Code","MGMA","Academic","All","Non-Faculty","MD",2022,"$102,075",104948.6,107822.2,110695.8,113569.4,"$116,443",119018.4,121593.8,124169.2,126744.6,"$129,320",133947,138574,"$152,455"]
["MGMAAcademicAllNon-FacultyMDNP: Gerontology/Elder HealthL","NP: Gerontology/Elder Health","Code","MGMA","Academic","All","Non-Faculty","MD",2022,0,0,0,0,0,0,0,0,0,0,0,0,0,0]
["MGMAAcademicAllNon-FacultyMDNP: Hospice/Palliative CareL","NP: Hospice/Palliative Care","Code","MGMA","Academic","All","Non-Faculty","MD",2022,0,0,0,0,0,0,0,0,0,0,0,0,0,0]
["MGMAAcademicAllNon-FacultyMDNP: Hospitalist (Primary Care)L","NP: Hospitalist (Primary Care)","Code","MGMA","Academic","All","Non-Faculty","MD",2022,"$108,615",110261.8,111908.6,113555.4,115202.2,"$116,849",118624.2,120399.4,122174.6,123949.8,"$125,725",132536.4,139347.79999999999,"$159,782"]
["MGMAAcademicAllNon-FacultyMDNP: Internal MedicineL","NP: Internal Medicine","Code","MGMA","Academic","All","Non-Faculty","MD",2022,"$124,226",127047.8,129869.6,132691.4,135513.20000000001,"$138,335",142657.4,146979.79999999999,151302.20000000001,155624.6,"$159,947",165067.4,170187.8,"$185,549"]
["MGMAAcademicAllNon-FacultyMDNP: OB/GYN/Women's HealthL","NP: OB/GYN/Women's Health","Code","MGMA","Academic","All","Non-Faculty","MD",2022,"$99,802",102949.8,106097.60000000001,109245.4,112393.2,"$115,541",121195.8,126850.6,132505.4,138160.20000000001,"$143,815",151142,158469,"$180,450"]
["MGMAAcademicAllNon-FacultyMDNP: Pediatric/Child HealthL","NP: Pediatric/Child Health","Code","MGMA","Academic","All","Non-Faculty","MD",2022,"$119,320",123436.8,127553.60000000001,131670.39999999999,135787.20000000001,"$139,904",145533.20000000001,151162.4,156791.6,162420.79999999999,"$168,050",174235.8,180421.6,"$198,979"]
["MGMAAcademicAllNon-FacultyMDNP: Urgent CareL","NP: Urgent Care","Code","MGMA","Academic","All","Non-Faculty","MD",2022,0,0,0,0,0,0,0,0,0,0,0,0,0,0]
["MGMAAcademicAllNon-FacultyMDNP (Nonsurgical/Nonprimary Care)L","NP (Nonsurgical/Nonprimary Care)","Code","MGMA","Academic","All","Non-Faculty","MD",2022,"$99,795",102364.8,104934.6,107504.4,110074.2,"$112,644",115239.2,117834.4,120429.6,123024.8,"$125,620",128513.8,131407.6,"$140,089"]
["MGMAAcademicAllNon-FacultyMDNP: Acute CareL","NP: Acute Care","Code","MGMA","Academic","All","Non-Faculty","MD",2022,"$130,843",134392,137941,141490,145039,"$148,588",150390,152192,153994,155796,"$157,598",160527,163456,"$172,243"]
["MGMAAcademicAllNon-FacultyMDNP: Allergy/ImmunologyL","NP: Allergy/Immunology","Code","MGMA","Academic","All","Non-Faculty","MD",2022,0,0,0,0,0,0,0,0,0,0,0,0,0,0]
["MGMAAcademicAllNon-FacultyMDNP: CardiologyL","NP: Cardiology","Code","MGMA","Academic","All","Non-Faculty","MD",2022,"$113,295",114680.4,116065.8,117451.2,118836.6,"$120,222",122796,125370,127944,130518,"$133,092",142129,151166,"$178,277"]
["MGMAAcademicAllNon-FacultyMDNP: DermatologyL","NP: Dermatology","Code","MGMA","Academic","All","Non-Faculty","MD",2022,0,0,0,0,0,0,0,0,0,0,0,0,0,0]
["MGMAAcademicAllNon-FacultyMDNP: Emergency MedicineL","NP: Emergency Medicine","Code","MGMA","Academic","All","Non-Faculty","MD",2022,"$137,352",170927.2,204502.39999999999,238077.6,271652.8,"$305,228",305228,305228,305228,305228,"$305,228",305228,305228,"$305,228"]
["MGMAAcademicAllNon-FacultyMDNP: EndocrinologyL","NP: Endocrinology","Code","MGMA","Academic","All","Non-Faculty","MD",2022,"$91,831",95699.4,99567.8,103436.2,107304.6,"$111,173",114713.4,118253.8,121794.2,125334.6,"$128,875",132643,136411,"$147,715"]
[{"$f":"D195&E195&F195&G195&H195&B195&\"L\"","v":"MGMAAcademicAllNon-FacultyMDNP: GastroenterologyL"},"NP: Gastroenterology","Code","MGMA","Academic","All","Non-Faculty","MD",2022,"$106,076",107846.39999999999,{"$f":"((O195-J195)/25)*10 + J195","v":109616.8},{"$f":"((O195-J195)/25)*15 + J195","v":111387.2},{"$f":"((O195-J195)/25)*20 + J195","v":113157.6},"$114,928",{"$f":"((T195-O195)/25)*5 + O195","v":116163},{"$f":"((T195-O195)/25)*10 + O195","v":117398},{"$f":"((T195-O195)/25)*15 + O195","v":118633},{"$f":"((T195-O195)/25)*20 + O195","v":119868},"$121,103",{"$f":"((W195-T195)/25)*5 + T195","v":123666.4},{"$f":"((W195-T195)/25)*10 + T195","v":126229.8},"$133,920"]
["MGMAAcademicAllNon-FacultyMDNP: Hematology/OncologyL","NP: Hematology/Oncology","Code","MGMA","Academic","All","Non-Faculty","MD",2022,"$106,559",109771,112983,116195,119407,"$122,619",126051.2,129483.4,132915.6,136347.79999999999,"$139,780",141079.4,142378.79999999999,"$146,277"]
["MGMAAcademicAllNon-FacultyMDNP: Hospitalist (Nonsurgical/Nonprimary Care)L","NP: Hospitalist (Nonsurgical/Nonprimary Care)","Code","MGMA","Academic","All","Non-Faculty","MD",2022,"$114,080",{"$f":"((O197-J197)/25)*5 + J197","v":115472},116864,118256,119648,"$121,040",123063.4,125086.8,127110.2,129133.6,"$131,157",136076.4,140995.79999999999,"$155,754"]
["MGMAAcademicAllNon-FacultyMDNP: Infectious DiseaseL","NP: Infectious Disease","Code","MGMA","Academic","All","Non-Faculty","MD",2022,0,0,0,0,0,0,0,0,0,0,0,0,0,0]
["MGMAAcademicAllNon-FacultyMDNP: Neonatal/PerinatalL","NP: Neonatal/Perinatal","Code","MGMA","Academic","All","Non-Faculty","MD",2022,0,0,0,0,0,0,0,0,0,0,0,0,0,0]
["MGMAAcademicAllNon-FacultyMDNP: NephrologyL","NP: Nephrology","Code","MGMA","Academic","All","Non-Faculty","MD",2022,"$113,114",114393.2,115672.4,116951.6,118230.8,"$119,510",120848.4,122186.8,123525.2,124863.6,"$126,202",126981.4,127760.8,"$130,099"]
["MGMAAcademicAllNon-FacultyMDNP: NeurologyL","NP: Neurology","Code","MGMA","Academic","All","Non-Faculty","MD",2022,"$107,966",110769.8,113573.6,116377.4,119181.2,"$121,985",126356,130727,135098,139469,"$143,840",150522.79999999999,157205.6,"$177,254"]
["MGMAAcademicAllNon-FacultyMDNP: Orthopedics (Nonsurgical/Nonprimary Care)L","NP: Orthopedics (Nonsurgical/Nonprimary Care)","Code","MGMA","Academic","All","Non-Faculty","MD",2022,"$138,663",146523,154383,162243,170103,"$177,963",231949.8,285936.59999999998,339923.4,393910.2,"$447,897",447897,447897,"$447,897"]
["MGMAAcademicAllNon-FacultyMDNP: PhysiatryL","NP: Physiatry","Code","MGMA","Academic","All","Non-Faculty","MD",2022,0,0,0,0,0,0,0,0,0,0,0,0,0,0]
["MGMAAcademicAllNon-FacultyMDNP: PsychiatryL","NP: Psychiatry","Code","MGMA","Academic","All","Non-Faculty","MD",2022,"$95,031",98660.6,102290.2,105919.8,109549.4,"$113,179",119703.8,126228.6,132753.4,139278.20000000001,"$145,803",175782.2,205761.4,"$295,699"]
["MGMAAcademicAllNon-FacultyMDNP: Pulmonary MedicineL","NP: Pulmonary Medicine","Code","MGMA","Academic","All","Non-Faculty","MD",2022,"$104,340",107419.8,110499.6,113579.4,116659.2,"$119,739",123223.8,126708.6,130193.4,133678.20000000001,"$137,163",146560,155957,"$184,148"]
["MGMAAcademicAllNon-FacultyMDNP: RheumatologyL","NP: Rheumatology","Code","MGMA","Academic","All","Non-Faculty","MD",2022,0,0,0,0,0,0,0,0,0,0,0,0,0,0]
["MGMAAcademicAllNon-FacultyMDOccupational TherapistL","Occupational Therapist","Code","MGMA","Academic","All","Non-Faculty","MD",2022,0,0,0,0,0,0,0,0,0,0,0,0,0,0]
["MGMAAcademicAllNon-FacultyMDOptometristL","Optometrist","Code","MGMA","Academic","All","Non-Faculty","MD",2022,"$123,981",132096.20000000001,140211.4,148326.6,156441.79999999999,"$164,557",179889.2,195221.4,210553.60000000001,225885.8,"$241,218",248938.4,256658.8,"$279,820"]
["MGMAAcademicAllNon-FacultyMDPhDL","PhD","Code","MGMA","Academic","All","Non-Faculty","MD",2022,0,0,0,0,0,0,0,0,0,0,0,0,0,0]
["MGMAAcademicAllNon-FacultyMDPhysical TherapistL","Physical Therapist","Code","MGMA","Academic","All","Non-Faculty","MD",2022,0,0,0,0,0,0,0,0,0,0,0,0,0,0]
["MGMAAcademicAllNon-FacultyMDPA (Surgical)L","PA (Surgical)","Code","MGMA","Academic","All","Non-Faculty","MD",2022,"$123,346",130141.8,136937.60000000001,143733.4,150529.20000000001,"$157,325",167580.6,177836.2,188091.8,198347.4,"$208,603",214891.4,221179.8,"$240,045"]
["MGMAAcademicAllNon-FacultyMDPA: Anesthesiology L","PA: Anesthesiology ","Code","MGMA","Academic","All","Non-Faculty","MD",2022,0,0,0,0,0,0,0,0,0,0,0,0,0,0]
["MGMAAcademicAllNon-FacultyMDPA: Cardiothoracic SurgeryL","PA: Cardiothoracic Surgery","Code","MGMA","Academic","All","Non-Faculty","MD",2022,0,0,0,0,0,0,0,0,0,0,0,0,0,0]
["MGMAAcademicAllNon-FacultyMDPA: NeurosurgeryL","PA: Neurosurgery","Code","MGMA","Academic","All","Non-Faculty","MD",2022,0,0,0,0,0,0,0,0,0,0,0,0,0,0]
["MGMAAcademicAllNon-FacultyMDPA: Orthopedic (Surgical)L","PA: Orthopedic (Surgical)","Code","MGMA","Academic","All","Non-Faculty","MD",2022,"$115,849",117575.2,119301.4,121027.6,122753.8,"$124,480",127994.8,131509.6,135024.4,138539.20000000001,"$142,054",152570,163086,"$194,634"]
["MGMAAcademicAllNon-FacultyMDPA: OtorhinolaryngologyL","PA: Otorhinolaryngology","Code","MGMA","Academic","All","Non-Faculty","MD",2022,0,0,0,0,0,0,0,0,0,0,0,0,0,0]
["MGMAAcademicAllNon-FacultyMDPA: Surgery: GeneralL","PA: Surgery: General","Code","MGMA","Academic","All","Non-Faculty","MD",2022,"$115,262",115817.2,116372.4,116927.6,117482.8,"$118,038",121296.2,124554.4,127812.6,131070.8,"$134,329",138312.4,142295.79999999999,"$154,246"]
["MGMAAcademicAllNon-FacultyMDPA: UrologyL","PA: Urology","Code","MGMA","Academic","All","Non-Faculty","MD",2022,0,0,0,0,0,0,0,0,0,0,0,0,0,0]
["MGMAAcademicAllNon-FacultyMDPA (Primary Care)L","PA (Primary Care)","Code","MGMA","Academic","All","Non-Faculty","MD",2022,0,0,0,0,0,0,0,0,0,0,0,0,0,0]
["MGMAAcademicAllNon-FacultyMDPA: Family Medicine (without OB)L","PA: Family Medicine (without OB)","Code","MGMA","Academic","All","Non-Faculty","MD",2022,"$108,562",109690.4,110818.8,111947.2,113075.6,"$114,204",116044.8,117885.6,119726.39999999999,121567.2,"$123,408",126954.8,130501.6,"$141,142"]
["MGMAAcademicAllNon-FacultyMDPA: Hospitalist (Primary Care)L","PA: Hospitalist (Primary Care)","Code","MGMA","Academic","All","Non-Faculty","MD",2022,0,0,0,0,0,0,0,0,0,0,0,0,0,0]
["MGMAAcademicAllNon-FacultyMDPA: Internal MedicineL","PA: Internal Medicine","Code","MGMA","Academic","All","Non-Faculty","MD",2022,"$119,270",123177.8,127085.6,130993.4,134901.20000000001,"$138,809",141746,144683,147620,150557,"$153,494",155464.79999999999,157435.6,"$163,348"]
["MGMAAcademicAllNon-FacultyMDPA: OB/GYN/Women's HealthL","PA: OB/GYN/Women's Health","Code","MGMA","Academic","All","Non-Faculty","MD",2022,0,0,0,0,0,0,0,0,0,0,0,0,0,0]
["MGMAAcademicAllNon-FacultyMDPA: Pediatric/Child HealthL","PA: Pediatric/Child Health","Code","MGMA","Academic","All","Non-Faculty","MD",2022,0,0,0,0,0,0,0,0,0,0,0,0,0,0]
["MGMAAcademicAllNon-FacultyMDPA: Urgent CareL","PA: Urgent Care","Code","MGMA","Academic","All","Non-Faculty","MD",2022,0,0,0,0,0,0,0,0,0,0,0,0,0,0]
["MGMAAcademicAllNon-FacultyMDPA (Nonsurgical/Nonprimary Care)L","PA (Nonsurgical/Nonprimary Care)","Code","MGMA","Academic","All","Non-Faculty","MD",2022,"$112,849",117279.2,121709.4,126139.6,130569.8,"$135,000",136870,138740,140610,142480,"$144,350",146280,148210,"$154,000"]
["MGMAAcademicAllNon-FacultyMDPA: CardiologyL","PA: Cardiology","Code","MGMA","Academic","All","Non-Faculty","MD",2022,0,0,0,0,0,0,0,0,0,0,0,0,0,0]
["MGMAAcademicAllNon-FacultyMDPA: DermatologyL","PA: Dermatology","Code","MGMA","Academic","All","Non-Faculty","MD",2022,0,0,0,0,0,0,0,0,0,0,0,0,0,0]
["MGMAAcademicAllNon-FacultyMDPA: Emergency MedicineL","PA: Emergency Medicine","Code","MGMA","Academic","All","Non-Faculty","MD",2022,"$125,808",127493.6,129179.2,130864.8,132550.39999999999,"$134,236",138071.20000000001,141906.4,145741.6,149576.79999999999,"$153,412",159733.4,166054.79999999999,"$185,019"]
["MGMAAcademicAllNon-FacultyMDPA: EndocrinologyL","PA: Endocrinology","Code","MGMA","Academic","All","Non-Faculty","MD",2022,0,0,0,0,0,0,0,0,0,0,0,0,0,0]
["MGMAAcademicAllNon-FacultyMDPA: GastroenterologyL","PA: Gastroenterology","Code","MGMA","Academic","All","Non-Faculty","MD",2022,0,0,0,0,0,0,0,0,0,0,0,0,0,0]
["MGMAAcademicAllNon-FacultyMDPA: Hematology/OncologyL","PA: Hematology/Oncology","Code","MGMA","Academic","All","Non-Faculty","MD",2022,"$102,861",109017.4,115173.8,121330.2,127486.6,"$133,643",135819,137995,140171,142347,"$144,523",147499.20000000001,150475.4,"$159,404"]
["MGMAAcademicAllNon-FacultyMDPA: Hospitalist (Nonsurgical/Nonprimary Care)L","PA: Hospitalist (Nonsurgical/Nonprimary Care)","Code","MGMA","Academic","All","Non-Faculty","MD",2022,0,0,0,0,0,0,0,0,0,0,0,0,0,0]
["MGMAAcademicAllNon-FacultyMDPA: Infectious DiseaseL","PA: Infectious Disease","Code","MGMA","Academic","All","Non-Faculty","MD",2022,0,0,0,0,0,0,0,0,0,0,0,0,0,0]
["MGMAAcademicAllNon-FacultyMDPA: NephrologyL","PA: Nephrology","Code","MGMA","Academic","All","Non-Faculty","MD",2022,0,0,0,0,0,0,0,0,0,0,0,0,0,0]
["MGMAAcademicAllNon-FacultyMDPA: NeurologyL","PA: Neurology","Code","MGMA","Academic","All","Non-Faculty","MD",2022,0,0,0,0,0,0,0,0,0,0,0,0,0,0]
["MGMAAcademicAllNon-FacultyMDPA: Orthopedic (Nonsurgical/Nonprimary Care)L","PA: Orthopedic (Nonsurgical/Nonprimary Care)","Code","MGMA","Academic","All","Non-Faculty","MD",2022,"$108,403",110000.6,111598.2,113195.8,114793.4,"$116,391",122002,127613,133224,138835,"$144,446",147628.79999999999,150811.6,"$160,360"]
["MGMAAcademicAllNon-FacultyMDPA: PsychiatryL","PA: Psychiatry","Code","MGMA","Academic","All","Non-Faculty","MD",2022,0,0,0,0,0,0,0,0,0,0,0,0,0,0]
["MGMAAcademicAllNon-FacultyMDPA: Pulmonary MedicineL","PA: Pulmonary Medicine","Code","MGMA","Academic","All","Non-Faculty","MD",2022,0,0,0,0,0,0,0,0,0,0,0,0,0,0]
["MGMAAcademicAllNon-FacultyMDPA: RheumatologyL","PA: Rheumatology","Code","MGMA","Academic","All","Non-Faculty","MD",2022,0,0,0,0,0,0,0,0,0,0,0,0,0,0]
["MGMAAcademicAllNon-FacultyMDPsychologistL","Psychologist","Code","MGMA","Academic","All","Non-Faculty","MD",2022,"$103,656",109299.4,114942.8,120586.2,126229.6,"$131,873",150431.6,168990.2,187548.79999999999,206107.4,"$224,666",238872.6,253079.2,"$295,699"]
["MGMAAcademicAllNon-FacultyMDResearchL","Research","Code","MGMA","Academic","All","Non-Faculty","MD",2022,0,0,0,0,0,0,0,0,0,0,0,0,0,0]
["MGMAAcademicAllNon-FacultyMDResearch: MDL","Research: MD","Code","MGMA","Academic","All","Non-Faculty","MD",2022,0,0,0,0,0,0,0,0,0,0,0,0,0,0]
["MGMAAcademicAllInstructorMDAllergy/ImmunologyL","Allergy/Immunology","Code","MGMA","Academic","All","Instructor","MD",2022,0,0,0,0,0,0,0,0,0,0,0,0,0,0]
["MGMAAcademicAllInstructorMDAnesthesiologyL","Anesthesiology","Code","MGMA","Academic","All","Instructor","MD",2022,"$276,716",300030.8,323345.59999999998,346660.4,369975.2,"$393,290",403593.4,413896.8,424200.2,434503.6,"$444,807",456699,468591,"$504,267"]
["MGMAAcademicAllInstructorMDAnesthesiology: CardiologyL","Anesthesiology: Cardiology","Code","MGMA","Academic","All","Instructor","MD",2022,0,0,0,0,0,0,0,0,0,0,0,0,0,0]
["MGMAAcademicAllInstructorMDAnesthesiology: Pain ManagementL","Anesthesiology: Pain Management","Code","MGMA","Academic","All","Instructor","MD",2022,0,0,0,0,0,0,0,0,0,0,0,0,0,0]
["MGMAAcademicAllInstructorMDCardiology: ElectrophysiologyL","Cardiology: Electrophysiology","Code","MGMA","Academic","All","Instructor","MD",2022,0,0,0,0,0,0,0,0,0,0,0,0,0,0]
["MGMAAcademicAllInstructorMDCardiology: InvasiveL","Cardiology: Invasive","Code","MGMA","Academic","All","Instructor","MD",2022,0,0,0,0,0,0,0,0,0,0,0,0,0,0]
["MGMAAcademicAllInstructorMDCardiology: Invasive-InterventionalL","Cardiology: Invasive-Interventional","Code","MGMA","Academic","All","Instructor","MD",2022,0,0,0,0,0,0,0,0,0,0,0,0,0,0]
["MGMAAcademicAllInstructorMDCardiology: NoninvasiveL","Cardiology: Noninvasive","Code","MGMA","Academic","All","Instructor","MD",2022,"$144,913",157245.20000000001,169577.4,181909.6,194241.8,"$206,574",233750.6,260927.2,288103.8,315280.40000000002,"$342,457",357501.2,372545.4,"$417,678"]
["MGMAAcademicAllInstructorMDClinical PharmacologyL","Clinical Pharmacology","Code","MGMA","Academic","All","Instructor","MD",2022,0,0,0,0,0,0,0,0,0,0,0,0,0,0]
["MGMAAcademicAllInstructorMDCritical Care: IntensivistL","Critical Care: Intensivist","Code","MGMA","Academic","All","Instructor","MD",2022,0,0,0,0,0,0,0,0,0,0,0,0,0,0]
["MGMAAcademicAllInstructorMDDentistryL","Dentistry","Code","MGMA","Academic","All","Instructor","MD",2022,0,0,0,0,0,0,0,0,0,0,0,0,0,0]
["MGMAAcademicAllInstructorMDDermatologyL","Dermatology","Code","MGMA","Academic","All","Instructor","MD",2022,0,0,0,0,0,0,0,0,0,0,0,0,0,0]
["MGMAAcademicAllInstructorMDDermatology: DermatopathologyL","Dermatology: Dermatopathology","Code","MGMA","Academic","All","Instructor","MD",2022,0,0,0,0,0,0,0,0,0,0,0,0,0,0]
["MGMAAcademicAllInstructorMDDermatology: Mohs SurgeryL","Dermatology: Mohs Surgery","Code","MGMA","Academic","All","Instructor","MD",2022,0,0,0,0,0,0,0,0,0,0,0,0,0,0]
["MGMAAcademicAllInstructorMDEmergency MedicineL","Emergency Medicine","Code","MGMA","Academic","All","Instructor","MD",2022,"$248,022",258527,269032,279537,290042,"$300,547",310975,321403,331831,342259,"$352,687",359669.2,366651.4,"$387,598"]
[{"$f":"D259&E259&F259&G259&H259&B259&\"L\"","v":"MGMAAcademicAllInstructorMDEndocrinology/MetabolismL"},"Endocrinology/Metabolism","Code","MGMA","Academic","All","Instructor","MD",2022,0,0,{"$f":"((O259-J259)/25)*10 + J259","v":0},{"$f":"((O259-J259)/25)*15 + J259","v":0},{"$f":"((O259-J259)/25)*20 + J259","v":0},0,{"$f":"((T259-O259)/25)*5 + O259","v":0},{"$f":"((T259-O259)/25)*10 + O259","v":0},{"$f":"((T259-O259)/25)*15 + O259","v":0},{"$f":"((T259-O259)/25)*20 + O259","v":0},0,{"$f":"((W259-T259)/25)*5 + T259","v":0},{"$f":"((W259-T259)/25)*10 + T259","v":0},0]
["MGMAAcademicAllInstructorMDFamily Medicine (with OB)L","Family Medicine (with OB)","Code","MGMA","Academic","All","Instructor","MD",2022,0,0,0,0,0,0,0,0,0,0,0,0,0,0]
["MGMAAcademicAllInstructorMDFamily Medicine (without OB)L","Family Medicine (without OB)","Code","MGMA","Academic","All","Instructor","MD",2022,"$169,495",{"$f":"((O261-J261)/25)*5 + J261","v":175721.8},181948.6,188175.4,194402.2,"$200,629",206656.6,212684.2,218711.8,224739.4,"$230,767",241645,252523,"$285,157"]
["MGMAAcademicAllInstructorMDFamily Medicine: Ambulatory Only (No Inpatient Work)L","Family Medicine: Ambulatory Only (No Inpatient Work)","Code","MGMA","Academic","All","Instructor","MD",2022,0,0,0,0,0,0,0,0,0,0,0,0,0,0]
["MGMAAcademicAllInstructorMDFamily Medicine: Sports MedicineL","Family Medicine: Sports Medicine","Code","MGMA","Academic","All","Instructor","MD",2022,0,0,0,0,0,0,0,0,0,0,0,0,0,0]
["MGMAAcademicAllInstructorMDFamily Medicine: Urgent CareL","Family Medicine: Urgent Care","Code","MGMA","Academic","All","Instructor","MD",2022,0,0,0,0,0,0,0,0,0,0,0,0,0,0]
["MGMAAcademicAllInstructorMDGastroenterologyL","Gastroenterology","Code","MGMA","Academic","All","Instructor","MD",2022,"$208,000",217166.6,226333.2,235499.8,244666.4,"$253,833",256515.20000000001,259197.4,261879.6,264561.8,"$267,244",302547.20000000001,337850.4,"$443,760"]
["MGMAAcademicAllInstructorMDGastroenterology: HepatologyL","Gastroenterology: Hepatology","Code","MGMA","Academic","All","Instructor","MD",2022,0,0,0,0,0,0,0,0,0,0,0,0,0,0]
["MGMAAcademicAllInstructorMDGeneticsL","Genetics","Code","MGMA","Academic","All","Instructor","MD",2022,0,0,0,0,0,0,0,0,0,0,0,0,0,0]
["MGMAAcademicAllInstructorMDGeriatricsL","Geriatrics","Code","MGMA","Academic","All","Instructor","MD",2022,0,0,0,0,0,0,0,0,0,0,0,0,0,0]
["MGMAAcademicAllInstructorMDHematology/OncologyL","Hematology/Oncology","Code","MGMA","Academic","All","Instructor","MD",2022,0,0,0,0,0,0,0,0,0,0,0,0,0,0]
["MGMAAcademicAllInstructorMDHematology/Oncology: Oncology (Only)L","Hematology/Oncology: Oncology (Only)","Code","MGMA","Academic","All","Instructor","MD",2022,0,0,0,0,0,0,0,0,0,0,0,0,0,0]
["MGMAAcademicAllInstructorMDHospice/Palliative CareL","Hospice/Palliative Care","Code","MGMA","Academic","All","Instructor","MD",2022,0,0,0,0,0,0,0,0,0,0,0,0,0,0]
["MGMAAcademicAllInstructorMDHospitalist: Family MedicineL","Hospitalist: Family Medicine","Code","MGMA","Academic","All","Instructor","MD",2022,0,0,0,0,0,0,0,0,0,0,0,0,0,0]
["MGMAAcademicAllInstructorMDHospitalist: Internal MedicineL","Hospitalist: Internal Medicine","Code","MGMA","Academic","All","Instructor","MD",2022,"$225,724",230535.6,235347.20000000001,240158.8,244970.4,"$249,782",255368,260954,266540,272126,"$277,712",285412.59999999998,293113.2,"$316,215"]
["MGMAAcademicAllInstructorMDHospitalist: NocturnistL","Hospitalist: Nocturnist","Code","MGMA","Academic","All","Instructor","MD",2022,0,0,0,0,0,0,0,0,0,0,0,0,0,0]
["MGMAAcademicAllInstructorMDHyperbaric Medicine/Wound CareL","Hyperbaric Medicine/Wound Care","Code","MGMA","Academic","All","Instructor","MD",2022,0,0,0,0,0,0,0,0,0,0,0,0,0,0]
["MGMAAcademicAllInstructorMDInfectious DiseaseL","Infectious Disease","Code","MGMA","Academic","All","Instructor","MD",2022,0,0,0,0,0,0,0,0,0,0,0,0,0,0]
["MGMAAcademicAllInstructorMDInternal Medicine: GeneralL","Internal Medicine: General","Code","MGMA","Academic","All","Instructor","MD",2022,"$186,986",194432.4,201878.8,209325.2,216771.6,"$224,218",235657.2,247096.4,258535.6,269974.8,"$281,414",294144,306874,"$345,064"]
["MGMAAcademicAllInstructorMDInternal Medicine: Ambulatory Only (No Inpatient Work)L","Internal Medicine: Ambulatory Only (No Inpatient Work)","Code","MGMA","Academic","All","Instructor","MD",2022,0,0,0,0,0,0,0,0,0,0,0,0,0,0]
["MGMAAcademicAllInstructorMDNephrologyL","Nephrology","Code","MGMA","Academic","All","Instructor","MD",2022,0,0,0,0,0,0,0,0,0,0,0,0,0,0]
["MGMAAcademicAllInstructorMDNephrology: TransplantL","Nephrology: Transplant","Code","MGMA","Academic","All","Instructor","MD",2022,0,0,0,0,0,0,0,0,0,0,0,0,0,0]
["MGMAAcademicAllInstructorMDNeurologyL","Neurology","Code","MGMA","Academic","All","Instructor","MD",2022,0,0,0,0,0,0,0,0,0,0,0,0,0,0]
["MGMAAcademicAllInstructorMDNeurology: Epilepsy/EEGL","Neurology: Epilepsy/EEG","Code","MGMA","Academic","All","Instructor","MD",2022,0,0,0,0,0,0,0,0,0,0,0,0,0,0]
["MGMAAcademicAllInstructorMDNeurology: Neurocritical CareL","Neurology: Neurocritical Care","Code","MGMA","Academic","All","Instructor","MD",2022,0,0,0,0,0,0,0,0,0,0,0,0,0,0]
["MGMAAcademicAllInstructorMDNeurology: Neuromuscular MedicineL","Neurology: Neuromuscular Medicine","Code","MGMA","Academic","All","Instructor","MD",2022,0,0,0,0,0,0,0,0,0,0,0,0,0,0]
["MGMAAcademicAllInstructorMDNeurology: Stroke MedicineL","Neurology: Stroke Medicine","Code","MGMA","Academic","All","Instructor","MD",2022,0,0,0,0,0,0,0,0,0,0,0,0,0,0]
["MGMAAcademicAllInstructorMDObstetrics/Gynecology: GeneralL","Obstetrics/Gynecology: General","Code","MGMA","Academic","All","Instructor","MD",2022,"$221,479",229657.2,237835.4,246013.6,254191.8,"$262,370",270603.40000000002,278836.8,287070.2,295303.59999999998,"$303,537",319634.8,335732.6,"$384,026"]
["MGMAAcademicAllInstructorMDOB/GYN: Gynecology (Only)L","OB/GYN: Gynecology (Only)","Code","MGMA","Academic","All","Instructor","MD",2022,0,0,0,0,0,0,0,0,0,0,0,0,0,0]
["MGMAAcademicAllInstructorMDOB/GYN: Gynecological OncologyL","OB/GYN: Gynecological Oncology","Code","MGMA","Academic","All","Instructor","MD",2022,0,0,0,0,0,0,0,0,0,0,0,0,0,0]
["MGMAAcademicAllInstructorMDOB/GYN: Maternal and Fetal MedicineL","OB/GYN: Maternal and Fetal Medicine","Code","MGMA","Academic","All","Instructor","MD",2022,0,0,0,0,0,0,0,0,0,0,0,0,0,0]
["MGMAAcademicAllInstructorMDOB/GYN: Minimally Invasive Gynecologic SurgeryL","OB/GYN: Minimally Invasive Gynecologic Surgery","Code","MGMA","Academic","All","Instructor","MD",2022,0,0,0,0,0,0,0,0,0,0,0,0,0,0]
["MGMAAcademicAllInstructorMDOB/GYN: Reproductive EndocrinologyL","OB/GYN: Reproductive Endocrinology","Code","MGMA","Academic","All","Instructor","MD",2022,0,0,0,0,0,0,0,0,0,0,0,0,0,0]
["MGMAAcademicAllInstructorMDOB/GYN: UrogynecologyL","OB/GYN: Urogynecology","Code","MGMA","Academic","All","Instructor","MD",2022,0,0,0,0,0,0,0,0,0,0,0,0,0,0]
["MGMAAcademicAllInstructorMDOccupational MedicineL","Occupational Medicine","Code","MGMA","Academic","All","Instructor","MD",2022,0,0,0,0,0,0,0,0,0,0,0,0,0,0]
["MGMAAcademicAllInstructorMDOphthalmologyL","Ophthalmology","Code","MGMA","Academic","All","Instructor","MD",2022,"$72,472",90926,109380,127834,146288,"$164,742",170797.2,176852.4,182907.6,188962.8,"$195,018",204435.20000000001,213852.4,"$242,104"]
["MGMAAcademicAllInstructorMDOphthalmology: Corneal and Refractive SurgeryL","Ophthalmology: Corneal and Refractive Surgery","Code","MGMA","Academic","All","Instructor","MD",2022,0,0,0,0,0,0,0,0,0,0,0,0,0,0]
["MGMAAcademicAllInstructorMDOphthalmology: GlaucomaL","Ophthalmology: Glaucoma","Code","MGMA","Academic","All","Instructor","MD",2022,0,0,0,0,0,0,0,0,0,0,0,0,0,0]
["MGMAAcademicAllInstructorMDOphthalmology: NeurologyL","Ophthalmology: Neurology","Code","MGMA","Academic","All","Instructor","MD",2022,0,0,0,0,0,0,0,0,0,0,0,0,0,0]
["MGMAAcademicAllInstructorMDOphthalmology: Oculoplastic and Reconstructive SurgeryL","Ophthalmology: Oculoplastic and Reconstructive Surgery","Code","MGMA","Academic","All","Instructor","MD",2022,0,0,0,0,0,0,0,0,0,0,0,0,0,0]
["MGMAAcademicAllInstructorMDOphthalmology: RetinaL","Ophthalmology: Retina","Code","MGMA","Academic","All","Instructor","MD",2022,0,0,0,0,0,0,0,0,0,0,0,0,0,0]
["MGMAAcademicAllInstructorMDOrthopedic (Nonsurgical)L","Orthopedic (Nonsurgical)","Code","MGMA","Academic","All","Instructor","MD",2022,0,0,0,0,0,0,0,0,0,0,0,0,0,0]
["MGMAAcademicAllInstructorMDOrthopedic Surgery: GeneralL","Orthopedic Surgery: General","Code","MGMA","Academic","All","Instructor","MD",2022,0,0,0,0,0,0,0,0,0,0,0,0,0,0]
["MGMAAcademicAllInstructorMDOrthopedic Surgery: Foot and AnkleL","Orthopedic Surgery: Foot and Ankle","Code","MGMA","Academic","All","Instructor","MD",2022,0,0,0,0,0,0,0,0,0,0,0,0,0,0]
["MGMAAcademicAllInstructorMDOrthopedic Surgery: HandL","Orthopedic Surgery: Hand","Code","MGMA","Academic","All","Instructor","MD",2022,0,0,0,0,0,0,0,0,0,0,0,0,0,0]
["MGMAAcademicAllInstructorMDOrthopedic Surgery: Hip and JointL","Orthopedic Surgery: Hip and Joint","Code","MGMA","Academic","All","Instructor","MD",2022,0,0,0,0,0,0,0,0,0,0,0,0,0,0]
["MGMAAcademicAllInstructorMDOrthopedic Surgery: OncologyL","Orthopedic Surgery: Oncology","Code","MGMA","Academic","All","Instructor","MD",2022,0,0,0,0,0,0,0,0,0,0,0,0,0,0]
["MGMAAcademicAllInstructorMDOrthopedic Surgery: Shoulder/ElbowL","Orthopedic Surgery: Shoulder/Elbow","Code","MGMA","Academic","All","Instructor","MD",2022,0,0,0,0,0,0,0,0,0,0,0,0,0,0]
["MGMAAcademicAllInstructorMDOrthopedic Surgery: SpineL","Orthopedic Surgery: Spine","Code","MGMA","Academic","All","Instructor","MD",2022,0,0,0,0,0,0,0,0,0,0,0,0,0,0]
["MGMAAcademicAllInstructorMDOrthopedic Surgery: Sports MedicineL","Orthopedic Surgery: Sports Medicine","Code","MGMA","Academic","All","Instructor","MD",2022,0,0,0,0,0,0,0,0,0,0,0,0,0,0]
["MGMAAcademicAllInstructorMDOrthopedic Surgery: TraumaL","Orthopedic Surgery: Trauma","Code","MGMA","Academic","All","Instructor","MD",2022,0,0,0,0,0,0,0,0,0,0,0,0,0,0]
["MGMAAcademicAllInstructorMDOtorhinolaryngologyL","Otorhinolaryngology","Code","MGMA","Academic","All","Instructor","MD",2022,0,0,0,0,0,0,0,0,0,0,0,0,0,0]
["MGMAAcademicAllInstructorMDPain Management: NonanesthesiaL","Pain Management: Nonanesthesia","Code","MGMA","Academic","All","Instructor","MD",2022,0,0,0,0,0,0,0,0,0,0,0,0,0,0]
["MGMAAcademicAllInstructorMDPathology: Anatomic and ClinicalL","Pathology: Anatomic and Clinical","Code","MGMA","Academic","All","Instructor","MD",2022,0,0,0,0,0,0,0,0,0,0,0,0,0,0]
["MGMAAcademicAllInstructorMDPathology: AnatomicL","Pathology: Anatomic","Code","MGMA","Academic","All","Instructor","MD",2022,0,0,0,0,0,0,0,0,0,0,0,0,0,0]
["MGMAAcademicAllInstructorMDPathology: Anatomic-AutopsyL","Pathology: Anatomic-Autopsy","Code","MGMA","Academic","All","Instructor","MD",2022,0,0,0,0,0,0,0,0,0,0,0,0,0,0]
["MGMAAcademicAllInstructorMDPathology: Anatomic-CytopathologyL","Pathology: Anatomic-Cytopathology","Code","MGMA","Academic","All","Instructor","MD",2022,0,0,0,0,0,0,0,0,0,0,0,0,0,0]
["MGMAAcademicAllInstructorMDPathology: Anatomic-NeuropathologyL","Pathology: Anatomic-Neuropathology","Code","MGMA","Academic","All","Instructor","MD",2022,0,0,0,0,0,0,0,0,0,0,0,0,0,0]
["MGMAAcademicAllInstructorMDPathology: Anatomic-RenalL","Pathology: Anatomic-Renal","Code","MGMA","Academic","All","Instructor","MD",2022,0,0,0,0,0,0,0,0,0,0,0,0,0,0]
["MGMAAcademicAllInstructorMDPathology: ClinicalL","Pathology: Clinical","Code","MGMA","Academic","All","Instructor","MD",2022,0,0,0,0,0,0,0,0,0,0,0,0,0,0]
["MGMAAcademicAllInstructorMDPathology: Clinical-HematopathologyL","Pathology: Clinical-Hematopathology","Code","MGMA","Academic","All","Instructor","MD",2022,0,0,0,0,0,0,0,0,0,0,0,0,0,0]
["MGMAAcademicAllInstructorMDPathology: Clinical-Transfusion MedicineL","Pathology: Clinical-Transfusion Medicine","Code","MGMA","Academic","All","Instructor","MD",2022,0,0,0,0,0,0,0,0,0,0,0,0,0,0]
["MGMAAcademicAllInstructorMDPathology: SurgicalL","Pathology: Surgical","Code","MGMA","Academic","All","Instructor","MD",2022,0,0,0,0,0,0,0,0,0,0,0,0,0,0]
["MGMAAcademicAllInstructorMDPediatrics: GeneralL","Pediatrics: General","Code","MGMA","Academic","All","Instructor","MD",2022,0,0,0,0,0,0,0,0,0,0,0,0,0,0]
[{"$f":"D323&E323&F323&G323&H323&B323&\"L\"","v":"MGMAAcademicAllInstructorMDPediatrics: Adolescent MedicineL"},"Pediatrics: Adolescent Medicine","Code","MGMA","Academic","All","Instructor","MD",2022,0,0,{"$f":"((O323-J323)/25)*10 + J323","v":0},{"$f":"((O323-J323)/25)*15 + J323","v":0},{"$f":"((O323-J323)/25)*20 + J323","v":0},0,{"$f":"((T323-O323)/25)*5 + O323","v":0},{"$f":"((T323-O323)/25)*10 + O323","v":0},{"$f":"((T323-O323)/25)*15 + O323","v":0},{"$f":"((T323-O323)/25)*20 + O323","v":0},0,{"$f":"((W323-T323)/25)*5 + T323","v":0},{"$f":"((W323-T323)/25)*10 + T323","v":0},0]
["MGMAAcademicAllInstructorMDPediatrics: Allergy/ImmunologyL","Pediatrics: Allergy/Immunology","Code","MGMA","Academic","All","Instructor","MD",2022,0,0,0,0,0,0,0,0,0,0,0,0,0,0]
["MGMAAcademicAllInstructorMDPediatrics: AnesthesiologyL","Pediatrics: Anesthesiology","Code","MGMA","Academic","All","Instructor","MD",2022,0,{"$f":"((O325-J325)/25)*5 + J325","v":0},0,0,0,0,0,0,0,0,0,0,0,0]
["MGMAAcademicAllInstructorMDPediatrics: Bone Marrow TransplantL","Pediatrics: Bone Marrow Transplant","Code","MGMA","Academic","All","Instructor","MD",2022,0,0,0,0,0,0,0,0,0,0,0,0,0,0]
["MGMAAcademicAllInstructorMDPediatrics: CardiologyL","Pediatrics: Cardiology","Code","MGMA","Academic","All","Instructor","MD",2022,0,0,0,0,0,0,0,0,0,0,0,0,0,0]
["MGMAAcademicAllInstructorMDPediatrics: Cardiovascular SurgeryL","Pediatrics: Cardiovascular Surgery","Code","MGMA","Academic","All","Instructor","MD",2022,0,0,0,0,0,0,0,0,0,0,0,0,0,0]
["MGMAAcademicAllInstructorMDPediatrics: Child DevelopmentL","Pediatrics: Child Development","Code","MGMA","Academic","All","Instructor","MD",2022,0,0,0,0,0,0,0,0,0,0,0,0,0,0]
["MGMAAcademicAllInstructorMDPediatrics: Critical Care/IntensivistL","Pediatrics: Critical Care/Intensivist","Code","MGMA","Academic","All","Instructor","MD",2022,0,0,0,0,0,0,0,0,0,0,0,0,0,0]
["MGMAAcademicAllInstructorMDPediatrics: DermatologyL","Pediatrics: Dermatology","Code","MGMA","Academic","All","Instructor","MD",2022,0,0,0,0,0,0,0,0,0,0,0,0,0,0]
["MGMAAcademicAllInstructorMDPediatrics: Emergency MedicineL","Pediatrics: Emergency Medicine","Code","MGMA","Academic","All","Instructor","MD",2022,"$204,736",211317.4,217898.8,224480.2,231061.6,"$237,643",242813.2,247983.4,253153.6,258323.8,"$263,494",269750,276006,"$294,774"]
["MGMAAcademicAllInstructorMDPediatrics: EndocrinologyL","Pediatrics: Endocrinology","Code","MGMA","Academic","All","Instructor","MD",2022,0,0,0,0,0,0,0,0,0,0,0,0,0,0]
["MGMAAcademicAllInstructorMDPediatrics: GastroenterologyL","Pediatrics: Gastroenterology","Code","MGMA","Academic","All","Instructor","MD",2022,0,0,0,0,0,0,0,0,0,0,0,0,0,0]
["MGMAAcademicAllInstructorMDPediatrics: GeneticsL","Pediatrics: Genetics","Code","MGMA","Academic","All","Instructor","MD",2022,0,0,0,0,0,0,0,0,0,0,0,0,0,0]
["MGMAAcademicAllInstructorMDPediatrics: Hematology/OncologyL","Pediatrics: Hematology/Oncology","Code","MGMA","Academic","All","Instructor","MD",2022,"$115,035",121978.4,128921.8,135865.20000000001,142808.6,"$149,752",152618.20000000001,155484.4,158350.6,161216.79999999999,"$164,083",166138.6,168194.2,"$174,361"]
["MGMAAcademicAllInstructorMDPediatrics: HospitalistL","Pediatrics: Hospitalist","Code","MGMA","Academic","All","Instructor","MD",2022,"$167,726",172858,177990,183122,188254,"$193,386",197917.8,202449.6,206981.4,211513.2,"$216,045",220268.4,224491.8,"$237,162"]
["MGMAAcademicAllInstructorMDPediatrics: Hospitalist-Internal MedicineL","Pediatrics: Hospitalist-Internal Medicine","Code","MGMA","Academic","All","Instructor","MD",2022,0,0,0,0,0,0,0,0,0,0,0,0,0,0]
["MGMAAcademicAllInstructorMDPediatrics: Infectious DiseaseL","Pediatrics: Infectious Disease","Code","MGMA","Academic","All","Instructor","MD",2022,0,0,0,0,0,0,0,0,0,0,0,0,0,0]
["MGMAAcademicAllInstructorMDPediatrics: Internal MedicineL","Pediatrics: Internal Medicine","Code","MGMA","Academic","All","Instructor","MD",2022,0,0,0,0,0,0,0,0,0,0,0,0,0,0]
["MGMAAcademicAllInstructorMDPediatrics: Neonatal MedicineL","Pediatrics: Neonatal Medicine","Code","MGMA","Academic","All","Instructor","MD",2022,0,0,0,0,0,0,0,0,0,0,0,0,0,0]
["MGMAAcademicAllInstructorMDPediatrics: NephrologyL","Pediatrics: Nephrology","Code","MGMA","Academic","All","Instructor","MD",2022,0,0,0,0,0,0,0,0,0,0,0,0,0,0]
["MGMAAcademicAllInstructorMDPediatrics: NeurologyL","Pediatrics: Neurology","Code","MGMA","Academic","All","Instructor","MD",2022,0,0,0,0,0,0,0,0,0,0,0,0,0,0]
["MGMAAcademicAllInstructorMDPediatrics: NeurosurgeryL","Pediatrics: Neurosurgery","Code","MGMA","Academic","All","Instructor","MD",2022,0,0,0,0,0,0,0,0,0,0,0,0,0,0]
["MGMAAcademicAllInstructorMDPediatrics: OphthalmologyL","Pediatrics: Ophthalmology","Code","MGMA","Academic","All","Instructor","MD",2022,0,0,0,0,0,0,0,0,0,0,0,0,0,0]
["MGMAAcademicAllInstructorMDPediatrics: Orthopedic SurgeryL","Pediatrics: Orthopedic Surgery","Code","MGMA","Academic","All","Instructor","MD",2022,0,0,0,0,0,0,0,0,0,0,0,0,0,0]
["MGMAAcademicAllInstructorMDPediatrics: OtorhinolaryngologyL","Pediatrics: Otorhinolaryngology","Code","MGMA","Academic","All","Instructor","MD",2022,0,0,0,0,0,0,0,0,0,0,0,0,0,0]
["MGMAAcademicAllInstructorMDPediatrics: Plastic and Reconstruction SurgeryL","Pediatrics: Plastic and Reconstruction Surgery","Code","MGMA","Academic","All","Instructor","MD",2022,0,0,0,0,0,0,0,0,0,0,0,0,0,0]
["MGMAAcademicAllInstructorMDPediatrics: PulmonologyL","Pediatrics: Pulmonology","Code","MGMA","Academic","All","Instructor","MD",2022,0,0,0,0,0,0,0,0,0,0,0,0,0,0]
["MGMAAcademicAllInstructorMDPediatrics: RadiologyL","Pediatrics: Radiology","Code","MGMA","Academic","All","Instructor","MD",2022,0,0,0,0,0,0,0,0,0,0,0,0,0,0]
["MGMAAcademicAllInstructorMDPediatrics: RheumatologyL","Pediatrics: Rheumatology","Code","MGMA","Academic","All","Instructor","MD",2022,0,0,0,0,0,0,0,0,0,0,0,0,0,0]
["MGMAAcademicAllInstructorMDPediatrics: Sports MedicineL","Pediatrics: Sports Medicine","Code","MGMA","Academic","All","Instructor","MD",2022,0,0,0,0,0,0,0,0,0,0,0,0,0,0]
["MGMAAcademicAllInstructorMDPediatrics: SurgeryL","Pediatrics: Surgery","Code","MGMA","Academic","All","Instructor","MD",2022,0,0,0,0,0,0,0,0,0,0,0,0,0,0]
["MGMAAcademicAllInstructorMDPediatrics: Urgent CareL","Pediatrics: Urgent Care","Code","MGMA","Academic","All","Instructor","MD",2022,0,0,0,0,0,0,0,0,0,0,0,0,0,0]
["MGMAAcademicAllInstructorMDPediatrics: UrologyL","Pediatrics: Urology","Code","MGMA","Academic","All","Instructor","MD",2022,0,0,0,0,0,0,0,0,0,0,0,0,0,0]
["MGMAAcademicAllInstructorMDPhysiatry (Physical Medicine and Rehabilitation)L","Physiatry (Physical Medicine and Rehabilitation)","Code","MGMA","Academic","All","Instructor","MD",2022,0,0,0,0,0,0,0,0,0,0,0,0,0,0]
["MGMAAcademicAllInstructorMDPodiatry: GeneralL","Podiatry: General","Code","MGMA","Academic","All","Instructor","MD",2022,0,0,0,0,0,0,0,0,0,0,0,0,0,0]
["MGMAAcademicAllInstructorMDPodiatry: Surgery-Foot and AnkleL","Podiatry: Surgery-Foot and Ankle","Code","MGMA","Academic","All","Instructor","MD",2022,0,0,0,0,0,0,0,0,0,0,0,0,0,0]
["MGMAAcademicAllInstructorMDPsychiatry: GeneralL","Psychiatry: General","Code","MGMA","Academic","All","Instructor","MD",2022,"$187,540",193242.4,198944.8,204647.2,210349.6,"$216,052",219078.2,222104.4,225130.6,228156.79999999999,"$231,183",233376.6,235570.2,"$242,151"]
["MGMAAcademicAllInstructorMDPsychiatry: Addiction MedicineL","Psychiatry: Addiction Medicine","Code","MGMA","Academic","All","Instructor","MD",2022,0,0,0,0,0,0,0,0,0,0,0,0,0,0]
["MGMAAcademicAllInstructorMDPsychiatry: Behavioral MedicineL","Psychiatry: Behavioral Medicine","Code","MGMA","Academic","All","Instructor","MD",2022,0,0,0,0,0,0,0,0,0,0,0,0,0,0]
["MGMAAcademicAllInstructorMDPsychiatry: Chemical DependencyL","Psychiatry: Chemical Dependency","Code","MGMA","Academic","All","Instructor","MD",2022,0,0,0,0,0,0,0,0,0,0,0,0,0,0]
["MGMAAcademicAllInstructorMDPsychiatry: Child and AdolescentL","Psychiatry: Child and Adolescent","Code","MGMA","Academic","All","Instructor","MD",2022,0,0,0,0,0,0,0,0,0,0,0,0,0,0]
["MGMAAcademicAllInstructorMDPsychiatry: ForensicL","Psychiatry: Forensic","Code","MGMA","Academic","All","Instructor","MD",2022,0,0,0,0,0,0,0,0,0,0,0,0,0,0]
["MGMAAcademicAllInstructorMDPsychiatry: GeriatricL","Psychiatry: Geriatric","Code","MGMA","Academic","All","Instructor","MD",2022,0,0,0,0,0,0,0,0,0,0,0,0,0,0]
["MGMAAcademicAllInstructorMDPulmonary Medicine: GeneralL","Pulmonary Medicine: General","Code","MGMA","Academic","All","Instructor","MD",2022,0,0,0,0,0,0,0,0,0,0,0,0,0,0]
["MGMAAcademicAllInstructorMDPulmonary Medicine: Critical CareL","Pulmonary Medicine: Critical Care","Code","MGMA","Academic","All","Instructor","MD",2022,0,0,0,0,0,0,0,0,0,0,0,0,0,0]
["MGMAAcademicAllInstructorMDPulmonary Medicine: General and Critical CareL","Pulmonary Medicine: General and Critical Care","Code","MGMA","Academic","All","Instructor","MD",2022,0,0,0,0,0,0,0,0,0,0,0,0,0,0]
["MGMAAcademicAllInstructorMDRadiation OncologyL","Radiation Oncology","Code","MGMA","Academic","All","Instructor","MD",2022,0,0,0,0,0,0,0,0,0,0,0,0,0,0]
["MGMAAcademicAllInstructorMDRadiology: InterventionalL","Radiology: Interventional","Code","MGMA","Academic","All","Instructor","MD",2022,0,0,0,0,0,0,0,0,0,0,0,0,0,0]
["MGMAAcademicAllInstructorMDRadiology: DiagnosticL","Radiology: Diagnostic","Code","MGMA","Academic","All","Instructor","MD",2022,"$109,544",122954,136364,149774,163184,"$176,594",240661,304728,368795,432862,"$496,929",504210.4,511491.8,"$533,336"]
["MGMAAcademicAllInstructorMDRadiology: NeurologicalL","Radiology: Neurological","Code","MGMA","Academic","All","Instructor","MD",2022,0,0,0,0,0,0,0,0,0,0,0,0,0,0]
["MGMAAcademicAllInstructorMDRadiology: Nuclear MedicineL","Radiology: Nuclear Medicine","Code","MGMA","Academic","All","Instructor","MD",2022,0,0,0,0,0,0,0,0,0,0,0,0,0,0]
["MGMAAcademicAllInstructorMDRheumatologyL","Rheumatology","Code","MGMA","Academic","All","Instructor","MD",2022,0,0,0,0,0,0,0,0,0,0,0,0,0,0]
["MGMAAcademicAllInstructorMDSleep MedicineL","Sleep Medicine","Code","MGMA","Academic","All","Instructor","MD",2022,0,0,0,0,0,0,0,0,0,0,0,0,0,0]
["MGMAAcademicAllInstructorMDSurgery: GeneralL","Surgery: General","Code","MGMA","Academic","All","Instructor","MD",2022,0,0,0,0,0,0,0,0,0,0,0,0,0,0]
["MGMAAcademicAllInstructorMDSurgery: BariatricL","Surgery: Bariatric","Code","MGMA","Academic","All","Instructor","MD",2022,0,0,0,0,0,0,0,0,0,0,0,0,0,0]
["MGMAAcademicAllInstructorMDSurgery: BreastL","Surgery: Breast","Code","MGMA","Academic","All","Instructor","MD",2022,0,0,0,0,0,0,0,0,0,0,0,0,0,0]
["MGMAAcademicAllInstructorMDSurgery: CardiovascularL","Surgery: Cardiovascular","Code","MGMA","Academic","All","Instructor","MD",2022,0,0,0,0,0,0,0,0,0,0,0,0,0,0]
["MGMAAcademicAllInstructorMDSurgery: Colon and RectalL","Surgery: Colon and Rectal","Code","MGMA","Academic","All","Instructor","MD",2022,0,0,0,0,0,0,0,0,0,0,0,0,0,0]
["MGMAAcademicAllInstructorMDSurgery: EndocrineL","Surgery: Endocrine","Code","MGMA","Academic","All","Instructor","MD",2022,0,0,0,0,0,0,0,0,0,0,0,0,0,0]
["MGMAAcademicAllInstructorMDSurgery: Endovascular (Primary)L","Surgery: Endovascular (Primary)","Code","MGMA","Academic","All","Instructor","MD",2022,0,0,0,0,0,0,0,0,0,0,0,0,0,0]
["MGMAAcademicAllInstructorMDSurgery: NeurologicalL","Surgery: Neurological","Code","MGMA","Academic","All","Instructor","MD",2022,0,0,0,0,0,0,0,0,0,0,0,0,0,0]
["MGMAAcademicAllInstructorMDSurgery: OncologyL","Surgery: Oncology","Code","MGMA","Academic","All","Instructor","MD",2022,0,0,0,0,0,0,0,0,0,0,0,0,0,0]
["MGMAAcademicAllInstructorMDSurgery: OralL","Surgery: Oral","Code","MGMA","Academic","All","Instructor","MD",2022,0,0,0,0,0,0,0,0,0,0,0,0,0,0]
["MGMAAcademicAllInstructorMDSurgery: Plastic and ReconstructionL","Surgery: Plastic and Reconstruction","Code","MGMA","Academic","All","Instructor","MD",2022,0,0,0,0,0,0,0,0,0,0,0,0,0,0]
[{"$f":"D387&E387&F387&G387&H387&B387&\"L\"","v":"MGMAAcademicAllInstructorMDSurgery: Plastic and Reconstruction-HandL"},"Surgery: Plastic and Reconstruction-Hand","Code","MGMA","Academic","All","Instructor","MD",2022,0,0,{"$f":"((O387-J387)/25)*10 + J387","v":0},{"$f":"((O387-J387)/25)*15 + J387","v":0},{"$f":"((O387-J387)/25)*20 + J387","v":0},0,{"$f":"((T387-O387)/25)*5 + O387","v":0},{"$f":"((T387-O387)/25)*10 + O387","v":0},{"$f":"((T387-O387)/25)*15 + O387","v":0},{"$f":"((T387-O387)/25)*20 + O387","v":0},0,{"$f":"((W387-T387)/25)*5 + T387","v":0},{"$f":"((W387-T387)/25)*10 + T387","v":0},0]
["MGMAAcademicAllInstructorMDSurgery: Thoracic (Primary)L","Surgery: Thoracic (Primary)","Code","MGMA","Academic","All","Instructor","MD",2022,0,0,0,0,0,0,0,0,0,0,0,0,0,0]
["MGMAAcademicAllInstructorMDSurgery: TransplantL","Surgery: Transplant","Code","MGMA","Academic","All","Instructor","MD",2022,0,{"$f":"((O389-J389)/25)*5 + J389","v":0},0,0,0,0,0,0,0,0,0,0,0,0]
["MGMAAcademicAllInstructorMDSurgery: Transplant-HeartL","Surgery: Transplant-Heart","Code","MGMA","Academic","All","Instructor","MD",2022,0,0,0,0,0,0,0,0,0,0,0,0,0,0]
["MGMAAcademicAllInstructorMDSurgery: Transplant-Heart/LungL","Surgery: Transplant-Heart/Lung","Code","MGMA","Academic","All","Instructor","MD",2022,0,0,0,0,0,0,0,0,0,0,0,0,0,0]
["MGMAAcademicAllInstructorMDSurgery: Transplant-KidneyL","Surgery: Transplant-Kidney","Code","MGMA","Academic","All","Instructor","MD",2022,0,0,0,0,0,0,0,0,0,0,0,0,0,0]
["MGMAAcademicAllInstructorMDSurgery: Transplant-LiverL","Surgery: Transplant-Liver","Code","MGMA","Academic","All","Instructor","MD",2022,0,0,0,0,0,0,0,0,0,0,0,0,0,0]
["MGMAAcademicAllInstructorMDSurgery: TraumaL","Surgery: Trauma","Code","MGMA","Academic","All","Instructor","MD",2022,0,0,0,0,0,0,0,0,0,0,0,0,0,0]
["MGMAAcademicAllInstructorMDSurgery: Trauma-BurnL","Surgery: Trauma-Burn","Code","MGMA","Academic","All","Instructor","MD",2022,0,0,0,0,0,0,0,0,0,0,0,0,0,0]
["MGMAAcademicAllInstructorMDSurgery: Vascular (Primary)L","Surgery: Vascular (Primary)","Code","MGMA","Academic","All","Instructor","MD",2022,0,0,0,0,0,0,0,0,0,0,0,0,0,0]
["MGMAAcademicAllInstructorMDUrgent CareL","Urgent Care","Code","MGMA","Academic","All","Instructor","MD",2022,0,0,0,0,0,0,0,0,0,0,0,0,0,0]
["MGMAAcademicAllInstructorMDUrologyL","Urology","Code","MGMA","Academic","All","Instructor","MD",2022,0,0,0,0,0,0,0,0,0,0,0,0,0,0]
["MGMAAcademicAllInstructorMDAnesthesia AssistanttL","Anesthesia Assistantt","Code","MGMA","Academic","All","Instructor","MD",2022,0,0,0,0,0,0,0,0,0,0,0,0,0,0]
["MGMAAcademicAllInstructorMDAudiologistL","Audiologist","Code","MGMA","Academic","All","Instructor","MD",2022,0,0,0,0,0,0,0,0,0,0,0,0,0,0]
["MGMAAcademicAllInstructorMDCertified Registered Nurse AnesthetistL","Certified Registered Nurse Anesthetist","Code","MGMA","Academic","All","Instructor","MD",2022,"$189,568",194853.6,200139.2,205424.8,210710.39999999999,"$215,996",221119.6,226243.20000000001,231366.8,236490.4,"$241,614",245419,249224,"$260,639"]
["MGMAAcademicAllInstructorMDChiropractorL","Chiropractor","Code","MGMA","Academic","All","Instructor","MD",2022,0,0,0,0,0,0,0,0,0,0,0,0,0,0]
["MGMAAcademicAllInstructorMDClinical Nurse Specialist L","Clinical Nurse Specialist ","Code","MGMA","Academic","All","Instructor","MD",2022,0,0,0,0,0,0,0,0,0,0,0,0,0,0]
["MGMAAcademicAllInstructorMDDietician/NutritionistL","Dietician/Nutritionist","Code","MGMA","Academic","All","Instructor","MD",2022,0,0,0,0,0,0,0,0,0,0,0,0,0,0]
["MGMAAcademicAllInstructorMDGenetic Counselor L","Genetic Counselor ","Code","MGMA","Academic","All","Instructor","MD",2022,"$79,705",80260.399999999994,80815.8,81371.199999999997,81926.600000000006,"$82,482",83067.600000000006,83653.2,84238.8,84824.4,"$85,410",87245.2,89080.4,"$94,586"]
["MGMAAcademicAllInstructorMDLicensed Clinical Social WorkerL","Licensed Clinical Social Worker","Code","MGMA","Academic","All","Instructor","MD",2022,"$77,911",78934.8,79958.600000000006,80982.399999999994,82006.2,"$83,030",85199.6,87369.2,89538.8,91708.4,"$93,878",95907.199999999997,97936.4,"$104,024"]
["MGMAAcademicAllInstructorMDNurse Midwife: Outpatient/Inpatient DeliveriesL","Nurse Midwife: Outpatient/Inpatient Deliveries","Code","MGMA","Academic","All","Instructor","MD",2022,0,0,0,0,0,0,0,0,0,0,0,0,0,0]
["MGMAAcademicAllInstructorMDNurse Midwife: Outpatient (Only)L","Nurse Midwife: Outpatient (Only)","Code","MGMA","Academic","All","Instructor","MD",2022,0,0,0,0,0,0,0,0,0,0,0,0,0,0]
["MGMAAcademicAllInstructorMDNurse Midwife: Inpatient (Only)L","Nurse Midwife: Inpatient (Only)","Code","MGMA","Academic","All","Instructor","MD",2022,0,0,0,0,0,0,0,0,0,0,0,0,0,0]
["MGMAAcademicAllInstructorMDNP (Surgical)L","NP (Surgical)","Code","MGMA","Academic","All","Instructor","MD",2022,0,0,0,0,0,0,0,0,0,0,0,0,0,0]
["MGMAAcademicAllInstructorMDNP: AnesthesiologyL","NP: Anesthesiology","Code","MGMA","Academic","All","Instructor","MD",2022,0,0,0,0,0,0,0,0,0,0,0,0,0,0]
["MGMAAcademicAllInstructorMDNP: Cardiothoracic SurgeryL","NP: Cardiothoracic Surgery","Code","MGMA","Academic","All","Instructor","MD",2022,0,0,0,0,0,0,0,0,0,0,0,0,0,0]
["MGMAAcademicAllInstructorMDNP: NeurosurgeryL","NP: Neurosurgery","Code","MGMA","Academic","All","Instructor","MD",2022,0,0,0,0,0,0,0,0,0,0,0,0,0,0]
["MGMAAcademicAllInstructorMDNP: Orthopedics (Surgical)L","NP: Orthopedics (Surgical)","Code","MGMA","Academic","All","Instructor","MD",2022,0,0,0,0,0,0,0,0,0,0,0,0,0,0]
["MGMAAcademicAllInstructorMDNP: OtorhinolaryngologyL","NP: Otorhinolaryngology","Code","MGMA","Academic","All","Instructor","MD",2022,0,0,0,0,0,0,0,0,0,0,0,0,0,0]
["MGMAAcademicAllInstructorMDNP: Surgery: GeneralL","NP: Surgery: General","Code","MGMA","Academic","All","Instructor","MD",2022,0,0,0,0,0,0,0,0,0,0,0,0,0,0]
["MGMAAcademicAllInstructorMDNP: UrologyL","NP: Urology","Code","MGMA","Academic","All","Instructor","MD",2022,0,0,0,0,0,0,0,0,0,0,0,0,0,0]
["MGMAAcademicAllInstructorMDNP: Vascular SurgeryL","NP: Vascular Surgery","Code","MGMA","Academic","All","Instructor","MD",2022,0,0,0,0,0,0,0,0,0,0,0,0,0,0]
["MGMAAcademicAllInstructorMDNP (Primary Care)L","NP (Primary Care)","Code","MGMA","Academic","All","Instructor","MD",2022,0,0,0,0,0,0,0,0,0,0,0,0,0,0]
["MGMAAcademicAllInstructorMDNP: AdultL","NP: Adult","Code","MGMA","Academic","All","Instructor","MD",2022,0,0,0,0,0,0,0,0,0,0,0,0,0,0]
["MGMAAcademicAllInstructorMDNP: Family Medicine (with OB)L","NP: Family Medicine (with OB)","Code","MGMA","Academic","All","Instructor","MD",2022,0,0,0,0,0,0,0,0,0,0,0,0,0,0]
["MGMAAcademicAllInstructorMDNP: Family Medicine (without OB)L","NP: Family Medicine (without OB)","Code","MGMA","Academic","All","Instructor","MD",2022,0,0,0,0,0,0,0,0,0,0,0,0,0,0]
["MGMAAcademicAllInstructorMDNP: Gerontology/Elder HealthL","NP: Gerontology/Elder Health","Code","MGMA","Academic","All","Instructor","MD",2022,0,0,0,0,0,0,0,0,0,0,0,0,0,0]
["MGMAAcademicAllInstructorMDNP: Hospice/Palliative CareL","NP: Hospice/Palliative Care","Code","MGMA","Academic","All","Instructor","MD",2022,0,0,0,0,0,0,0,0,0,0,0,0,0,0]
["MGMAAcademicAllInstructorMDNP: Hospitalist (Primary Care)L","NP: Hospitalist (Primary Care)","Code","MGMA","Academic","All","Instructor","MD",2022,"$111,737",114044.4,116351.8,118659.2,120966.6,"$123,274",125664.2,128054.39999999999,130444.6,132834.79999999999,"$135,225",138160.4,141095.79999999999,"$149,902"]
["MGMAAcademicAllInstructorMDNP: Internal MedicineL","NP: Internal Medicine","Code","MGMA","Academic","All","Instructor","MD",2022,0,0,0,0,0,0,0,0,0,0,0,0,0,0]
["MGMAAcademicAllInstructorMDNP: OB/GYN/Women's HealthL","NP: OB/GYN/Women's Health","Code","MGMA","Academic","All","Instructor","MD",2022,0,0,0,0,0,0,0,0,0,0,0,0,0,0]
["MGMAAcademicAllInstructorMDNP: Pediatric/Child HealthL","NP: Pediatric/Child Health","Code","MGMA","Academic","All","Instructor","MD",2022,"$93,943",97768.4,101593.8,105419.2,109244.6,"$113,070",116299,119528,122757,125986,"$129,215",131379.6,133544.20000000001,"$140,038"]
["MGMAAcademicAllInstructorMDNP: Urgent CareL","NP: Urgent Care","Code","MGMA","Academic","All","Instructor","MD",2022,0,0,0,0,0,0,0,0,0,0,0,0,0,0]
["MGMAAcademicAllInstructorMDNP (Nonsurgical/Nonprimary Care)L","NP (Nonsurgical/Nonprimary Care)","Code","MGMA","Academic","All","Instructor","MD",2022,"$106,996",110130.6,113265.2,116399.8,119534.39999999999,"$122,669",125229.4,127789.8,130350.2,132910.6,"$135,471",136645.6,137820.20000000001,"$141,344"]
["MGMAAcademicAllInstructorMDNP: Acute CareL","NP: Acute Care","Code","MGMA","Academic","All","Instructor","MD",2022,0,0,0,0,0,0,0,0,0,0,0,0,0,0]
["MGMAAcademicAllInstructorMDNP: Allergy/ImmunologyL","NP: Allergy/Immunology","Code","MGMA","Academic","All","Instructor","MD",2022,0,0,0,0,0,0,0,0,0,0,0,0,0,0]
["MGMAAcademicAllInstructorMDNP: CardiologyL","NP: Cardiology","Code","MGMA","Academic","All","Instructor","MD",2022,"$113,780",116510,119240,121970,124700,"$127,430",132726.79999999999,138023.6,143320.4,148617.20000000001,"$153,914",155293.4,156672.79999999999,"$160,811"]
["MGMAAcademicAllInstructorMDNP: DermatologyL","NP: Dermatology","Code","MGMA","Academic","All","Instructor","MD",2022,0,0,0,0,0,0,0,0,0,0,0,0,0,0]
["MGMAAcademicAllInstructorMDNP: Emergency MedicineL","NP: Emergency Medicine","Code","MGMA","Academic","All","Instructor","MD",2022,0,0,0,0,0,0,0,0,0,0,0,0,0,0]
["MGMAAcademicAllInstructorMDNP: EndocrinologyL","NP: Endocrinology","Code","MGMA","Academic","All","Instructor","MD",2022,"$112,647",116868,121089,125310,129531,"$133,752",136179.4,138606.79999999999,141034.20000000001,143461.6,"$145,889",151701.4,157513.79999999999,"$174,951"]
["MGMAAcademicAllInstructorMDNP: GastroenterologyL","NP: Gastroenterology","Code","MGMA","Academic","All","Instructor","MD",2022,0,0,0,0,0,0,0,0,0,0,0,0,0,0]
["MGMAAcademicAllInstructorMDNP: Hematology/OncologyL","NP: Hematology/Oncology","Code","MGMA","Academic","All","Instructor","MD",2022,"$112,146",114487.2,116828.4,119169.60000000001,121510.8,"$123,852",125358.6,126865.2,128371.8,129878.39999999999,"$131,385",134074.20000000001,136763.4,"$144,831"]
["MGMAAcademicAllInstructorMDNP: Hospitalist (Nonsurgical/Nonprimary Care)L","NP: Hospitalist (Nonsurgical/Nonprimary Care)","Code","MGMA","Academic","All","Instructor","MD",2022,0,0,0,0,0,0,0,0,0,0,0,0,0,0]
["MGMAAcademicAllInstructorMDNP: Infectious DiseaseL","NP: Infectious Disease","Code","MGMA","Academic","All","Instructor","MD",2022,0,0,0,0,0,0,0,0,0,0,0,0,0,0]
["MGMAAcademicAllInstructorMDNP: Neonatal/PerinatalL","NP: Neonatal/Perinatal","Code","MGMA","Academic","All","Instructor","MD",2022,0,0,0,0,0,0,0,0,0,0,0,0,0,0]
["MGMAAcademicAllInstructorMDNP: NephrologyL","NP: Nephrology","Code","MGMA","Academic","All","Instructor","MD",2022,0,0,0,0,0,0,0,0,0,0,0,0,0,0]
["MGMAAcademicAllInstructorMDNP: NeurologyL","NP: Neurology","Code","MGMA","Academic","All","Instructor","MD",2022,"$108,284",109639.8,110995.6,112351.4,113707.2,"$115,063",117071.4,119079.8,121088.2,123096.6,"$125,105",131097.79999999999,137090.6,"$155,069"]
["MGMAAcademicAllInstructorMDNP: Orthopedics (Nonsurgical/Nonprimary Care)L","NP: Orthopedics (Nonsurgical/Nonprimary Care)","Code","MGMA","Academic","All","Instructor","MD",2022,0,0,0,0,0,0,0,0,0,0,0,0,0,0]
["MGMAAcademicAllInstructorMDNP: PhysiatryL","NP: Physiatry","Code","MGMA","Academic","All","Instructor","MD",2022,0,0,0,0,0,0,0,0,0,0,0,0,0,0]
["MGMAAcademicAllInstructorMDNP: PsychiatryL","NP: Psychiatry","Code","MGMA","Academic","All","Instructor","MD",2022,0,0,0,0,0,0,0,0,0,0,0,0,0,0]
["MGMAAcademicAllInstructorMDNP: Pulmonary MedicineL","NP: Pulmonary Medicine","Code","MGMA","Academic","All","Instructor","MD",2022,"$110,723",114806.2,118889.4,122972.6,127055.8,"$131,139",138767.6,146396.20000000001,154024.79999999999,161653.4,"$169,282",172843.6,176405.2,"$187,090"]
["MGMAAcademicAllInstructorMDNP: RheumatologyL","NP: Rheumatology","Code","MGMA","Academic","All","Instructor","MD",2022,0,0,0,0,0,0,0,0,0,0,0,0,0,0]
["MGMAAcademicAllInstructorMDOccupational TherapistL","Occupational Therapist","Code","MGMA","Academic","All","Instructor","MD",2022,0,0,0,0,0,0,0,0,0,0,0,0,0,0]
["MGMAAcademicAllInstructorMDOptometristL","Optometrist","Code","MGMA","Academic","All","Instructor","MD",2022,0,0,0,0,0,0,0,0,0,0,0,0,0,0]
[{"$f":"D451&E451&F451&G451&H451&B451&\"L\"","v":"MGMAAcademicAllInstructorMDPhDL"},"PhD","Code","MGMA","Academic","All","Instructor","MD",2022,0,0,{"$f":"((O451-J451)/25)*10 + J451","v":0},{"$f":"((O451-J451)/25)*15 + J451","v":0},{"$f":"((O451-J451)/25)*20 + J451","v":0},0,{"$f":"((T451-O451)/25)*5 + O451","v":0},{"$f":"((T451-O451)/25)*10 + O451","v":0},{"$f":"((T451-O451)/25)*15 + O451","v":0},{"$f":"((T451-O451)/25)*20 + O451","v":0},0,{"$f":"((W451-T451)/25)*5 + T451","v":0},{"$f":"((W451-T451)/25)*10 + T451","v":0},0]
["MGMAAcademicAllInstructorMDPhysical TherapistL","Physical Therapist","Code","MGMA","Academic","All","Instructor","MD",2022,0,0,0,0,0,0,0,0,0,0,0,0,0,0]
["MGMAAcademicAllInstructorMDPA (Surgical)L","PA (Surgical)","Code","MGMA","Academic","All","Instructor","MD",2022,0,{"$f":"((O453-J453)/25)*5 + J453","v":0},0,0,0,0,0,0,0,0,0,0,0,0]
["MGMAAcademicAllInstructorMDPA: Anesthesiology L","PA: Anesthesiology ","Code","MGMA","Academic","All","Instructor","MD",2022,0,0,0,0,0,0,0,0,0,0,0,0,0,0]
["MGMAAcademicAllInstructorMDPA: Cardiothoracic SurgeryL","PA: Cardiothoracic Surgery","Code","MGMA","Academic","All","Instructor","MD",2022,0,0,0,0,0,0,0,0,0,0,0,0,0,0]
["MGMAAcademicAllInstructorMDPA: NeurosurgeryL","PA: Neurosurgery","Code","MGMA","Academic","All","Instructor","MD",2022,0,0,0,0,0,0,0,0,0,0,0,0,0,0]
["MGMAAcademicAllInstructorMDPA: Orthopedic (Surgical)L","PA: Orthopedic (Surgical)","Code","MGMA","Academic","All","Instructor","MD",2022,0,0,0,0,0,0,0,0,0,0,0,0,0,0]
["MGMAAcademicAllInstructorMDPA: OtorhinolaryngologyL","PA: Otorhinolaryngology","Code","MGMA","Academic","All","Instructor","MD",2022,0,0,0,0,0,0,0,0,0,0,0,0,0,0]
["MGMAAcademicAllInstructorMDPA: Surgery: GeneralL","PA: Surgery: General","Code","MGMA","Academic","All","Instructor","MD",2022,0,0,0,0,0,0,0,0,0,0,0,0,0,0]
["MGMAAcademicAllInstructorMDPA: UrologyL","PA: Urology","Code","MGMA","Academic","All","Instructor","MD",2022,0,0,0,0,0,0,0,0,0,0,0,0,0,0]
["MGMAAcademicAllInstructorMDPA (Primary Care)L","PA (Primary Care)","Code","MGMA","Academic","All","Instructor","MD",2022,0,0,0,0,0,0,0,0,0,0,0,0,0,0]
["MGMAAcademicAllInstructorMDPA: Family Medicine (without OB)L","PA: Family Medicine (without OB)","Code","MGMA","Academic","All","Instructor","MD",2022,0,0,0,0,0,0,0,0,0,0,0,0,0,0]
["MGMAAcademicAllInstructorMDPA: Hospitalist (Primary Care)L","PA: Hospitalist (Primary Care)","Code","MGMA","Academic","All","Instructor","MD",2022,0,0,0,0,0,0,0,0,0,0,0,0,0,0]
["MGMAAcademicAllInstructorMDPA: Internal MedicineL","PA: Internal Medicine","Code","MGMA","Academic","All","Instructor","MD",2022,0,0,0,0,0,0,0,0,0,0,0,0,0,0]
["MGMAAcademicAllInstructorMDPA: OB/GYN/Women's HealthL","PA: OB/GYN/Women's Health","Code","MGMA","Academic","All","Instructor","MD",2022,0,0,0,0,0,0,0,0,0,0,0,0,0,0]
["MGMAAcademicAllInstructorMDPA: Pediatric/Child HealthL","PA: Pediatric/Child Health","Code","MGMA","Academic","All","Instructor","MD",2022,0,0,0,0,0,0,0,0,0,0,0,0,0,0]
["MGMAAcademicAllInstructorMDPA: Urgent CareL","PA: Urgent Care","Code","MGMA","Academic","All","Instructor","MD",2022,0,0,0,0,0,0,0,0,0,0,0,0,0,0]
["MGMAAcademicAllInstructorMDPA (Nonsurgical/Nonprimary Care)L","PA (Nonsurgical/Nonprimary Care)","Code","MGMA","Academic","All","Instructor","MD",2022,0,0,0,0,0,0,0,0,0,0,0,0,0,0]
["MGMAAcademicAllInstructorMDPA: CardiologyL","PA: Cardiology","Code","MGMA","Academic","All","Instructor","MD",2022,"$126,800",130991.6,135183.20000000001,139374.79999999999,143566.39999999999,"$147,758",154958.79999999999,162159.6,169360.4,176561.2,"$183,762",189379.6,194997.2,"$211,850"]
["MGMAAcademicAllInstructorMDPA: DermatologyL","PA: Dermatology","Code","MGMA","Academic","All","Instructor","MD",2022,0,0,0,0,0,0,0,0,0,0,0,0,0,0]
["MGMAAcademicAllInstructorMDPA: Emergency MedicineL","PA: Emergency Medicine","Code","MGMA","Academic","All","Instructor","MD",2022,0,0,0,0,0,0,0,0,0,0,0,0,0,0]
["MGMAAcademicAllInstructorMDPA: EndocrinologyL","PA: Endocrinology","Code","MGMA","Academic","All","Instructor","MD",2022,0,0,0,0,0,0,0,0,0,0,0,0,0,0]
["MGMAAcademicAllInstructorMDPA: GastroenterologyL","PA: Gastroenterology","Code","MGMA","Academic","All","Instructor","MD",2022,0,0,0,0,0,0,0,0,0,0,0,0,0,0]
["MGMAAcademicAllInstructorMDPA: Hematology/OncologyL","PA: Hematology/Oncology","Code","MGMA","Academic","All","Instructor","MD",2022,0,0,0,0,0,0,0,0,0,0,0,0,0,0]
["MGMAAcademicAllInstructorMDPA: Hospitalist (Nonsurgical/Nonprimary Care)L","PA: Hospitalist (Nonsurgical/Nonprimary Care)","Code","MGMA","Academic","All","Instructor","MD",2022,0,0,0,0,0,0,0,0,0,0,0,0,0,0]
["MGMAAcademicAllInstructorMDPA: Infectious DiseaseL","PA: Infectious Disease","Code","MGMA","Academic","All","Instructor","MD",2022,0,0,0,0,0,0,0,0,0,0,0,0,0,0]
["MGMAAcademicAllInstructorMDPA: NephrologyL","PA: Nephrology","Code","MGMA","Academic","All","Instructor","MD",2022,0,0,0,0,0,0,0,0,0,0,0,0,0,0]
["MGMAAcademicAllInstructorMDPA: NeurologyL","PA: Neurology","Code","MGMA","Academic","All","Instructor","MD",2022,"$118,319",119373.4,120427.8,121482.2,122536.6,"$123,591",130228.2,136865.4,143502.6,150139.79999999999,"$156,777",162659,168541,"$186,187"]
["MGMAAcademicAllInstructorMDPA: Orthopedic (Nonsurgical/Nonprimary Care)L","PA: Orthopedic (Nonsurgical/Nonprimary Care)","Code","MGMA","Academic","All","Instructor","MD",2022,0,0,0,0,0,0,0,0,0,0,0,0,0,0]
["MGMAAcademicAllInstructorMDPA: PsychiatryL","PA: Psychiatry","Code","MGMA","Academic","All","Instructor","MD",2022,0,0,0,0,0,0,0,0,0,0,0,0,0,0]
["MGMAAcademicAllInstructorMDPA: Pulmonary MedicineL","PA: Pulmonary Medicine","Code","MGMA","Academic","All","Instructor","MD",2022,0,0,0,0,0,0,0,0,0,0,0,0,0,0]
["MGMAAcademicAllInstructorMDPA: RheumatologyL","PA: Rheumatology","Code","MGMA","Academic","All","Instructor","MD",2022,0,0,0,0,0,0,0,0,0,0,0,0,0,0]
["MGMAAcademicAllInstructorMDPsychologistL","Psychologist","Code","MGMA","Academic","All","Instructor","MD",2022,"$103,199",104806.8,106414.6,108022.39999999999,109630.2,"$111,238",114379.8,117521.60000000001,120663.4,123805.2,"$126,947",135765.20000000001,144583.4,"$171,038"]
["MGMAAcademicAllInstructorMDResearchL","Research","Code","MGMA","Academic","All","Instructor","MD",2022,0,0,0,0,0,0,0,0,0,0,0,0,0,0]
["MGMAAcademicAllInstructorMDResearch: MDL","Research: MD","Code","MGMA","Academic","All","Instructor","MD",2022,0,0,0,0,0,0,0,0,0,0,0,0,0,0]
["MGMAAcademicAllAssistantMDAllergy/ImmunologyL","Allergy/Immunology","Code","MGMA","Academic","All","Assistant","MD",2022,"$164,471",170011.4,175551.8,181092.2,186632.6,"$192,173",202513,212853,223193,233533,"$243,873",258924.2,273975.40000000002,"$319,129"]
["MGMAAcademicAllAssistantMDAnesthesiologyL","Anesthesiology","Code","MGMA","Academic","All","Assistant","MD",2022,"$373,933",383220.4,392507.8,401795.2,411082.6,"$420,370",431654,442938,454222,465506,"$476,790",486034.2,495278.4,"$523,011"]
["MGMAAcademicAllAssistantMDAnesthesiology: CardiologyL","Anesthesiology: Cardiology","Code","MGMA","Academic","All","Assistant","MD",2022,0,0,0,0,0,0,0,0,0,0,0,0,0,0]
["MGMAAcademicAllAssistantMDAnesthesiology: Pain ManagementL","Anesthesiology: Pain Management","Code","MGMA","Academic","All","Assistant","MD",2022,"$338,321",353622.8,368924.6,384226.4,399528.2,"$414,830",428226.8,441623.6,455020.4,468417.2,"$481,814",497380.8,512947.6,"$559,648"]
["MGMAAcademicAllAssistantMDCardiology: ElectrophysiologyL","Cardiology: Electrophysiology","Code","MGMA","Academic","All","Assistant","MD",2022,"$314,160",329439.40000000002,344718.8,359998.2,375277.6,"$390,557",407579,424601,441623,458645,"$475,667",498451.20000000001,521235.4,"$589,588"]
["MGMAAcademicAllAssistantMDCardiology: InvasiveL","Cardiology: Invasive","Code","MGMA","Academic","All","Assistant","MD",2022,"$288,900",297620,306340,315060,323780,"$332,500",338191.4,343882.8,349574.2,355265.6,"$360,957",371256.2,381555.4,"$412,453"]
["MGMAAcademicAllAssistantMDCardiology: Invasive-InterventionalL","Cardiology: Invasive-Interventional","Code","MGMA","Academic","All","Assistant","MD",2022,"$349,869",364634.4,379399.8,394165.2,408930.6,"$423,696",436241,448786,461331,473876,"$486,421",513874,541327,"$623,686"]
["MGMAAcademicAllAssistantMDCardiology: NoninvasiveL","Cardiology: Noninvasive","Code","MGMA","Academic","All","Assistant","MD",2022,"$295,367",304207,313047,321887,330727,"$339,567",353896.4,368225.8,382555.2,396884.6,"$411,214",426004.8,440795.6,"$485,168"]
["MGMAAcademicAllAssistantMDClinical PharmacologyL","Clinical Pharmacology","Code","MGMA","Academic","All","Assistant","MD",2022,0,0,0,0,0,0,0,0,0,0,0,0,0,0]
["MGMAAcademicAllAssistantMDCritical Care: IntensivistL","Critical Care: Intensivist","Code","MGMA","Academic","All","Assistant","MD",2022,"$275,353",289545.40000000002,303737.8,317930.2,332122.59999999998,"$346,315",362615.8,378916.6,395217.4,411518.2,"$427,819",439858.4,451897.8,"$488,016"]
["MGMAAcademicAllAssistantMDDentistryL","Dentistry","Code","MGMA","Academic","All","Assistant","MD",2022,0,0,0,0,0,0,0,0,0,0,0,0,0,0]
["MGMAAcademicAllAssistantMDDermatologyL","Dermatology","Code","MGMA","Academic","All","Assistant","MD",2022,"$294,325",301548.2,308771.40000000002,315994.59999999998,323217.8,"$330,441",345053,359665,374277,388889,"$403,501",416564.8,429628.6,"$468,820"]
["MGMAAcademicAllAssistantMDDermatology: DermatopathologyL","Dermatology: Dermatopathology","Code","MGMA","Academic","All","Assistant","MD",2022,0,0,0,0,0,0,0,0,0,0,0,0,0,0]
["MGMAAcademicAllAssistantMDDermatology: Mohs SurgeryL","Dermatology: Mohs Surgery","Code","MGMA","Academic","All","Assistant","MD",2022,0,0,0,0,0,0,0,0,0,0,0,0,0,0]
["MGMAAcademicAllAssistantMDEmergency MedicineL","Emergency Medicine","Code","MGMA","Academic","All","Assistant","MD",2022,"$275,203",281787.2,288371.40000000002,294955.59999999998,301539.8,"$308,124",315118.40000000002,322112.8,329107.20000000001,336101.6,"$343,096",352933.2,362770.4,"$392,282"]
["MGMAAcademicAllAssistantMDEndocrinology/MetabolismL","Endocrinology/Metabolism","Code","MGMA","Academic","All","Assistant","MD",2022,"$172,117",176353.8,180590.6,184827.4,189064.2,"$193,301",199780.4,206259.8,212739.20000000001,219218.6,"$225,698",238275.6,250853.2,"$288,586"]
["MGMAAcademicAllAssistantMDFamily Medicine (with OB)L","Family Medicine (with OB)","Code","MGMA","Academic","All","Assistant","MD",2022,"$196,132",201154.6,206177.2,211199.8,216222.4,"$221,245",226090,230935,235780,240625,"$245,470",249067.2,252664.4,"$263,456"]
["MGMAAcademicAllAssistantMDFamily Medicine (without OB)L","Family Medicine (without OB)","Code","MGMA","Academic","All","Assistant","MD",2022,"$181,311",185567.2,189823.4,194079.6,198335.8,"$202,592",207976,213360,218744,224128,"$229,512",235817,242122,"$261,037"]
["MGMAAcademicAllAssistantMDFamily Medicine: Ambulatory Only (No Inpatient Work)L","Family Medicine: Ambulatory Only (No Inpatient Work)","Code","MGMA","Academic","All","Assistant","MD",2022,0,0,0,0,0,0,0,0,0,0,0,0,0,0]
["MGMAAcademicAllAssistantMDFamily Medicine: Sports MedicineL","Family Medicine: Sports Medicine","Code","MGMA","Academic","All","Assistant","MD",2022,"$245,499",260667,275835,291003,306171,"$321,339",354704.6,388070.2,421435.8,454801.4,"$488,167",503008.8,517850.6,"$562,376"]
["MGMAAcademicAllAssistantMDFamily Medicine: Urgent CareL","Family Medicine: Urgent Care","Code","MGMA","Academic","All","Assistant","MD",2022,0,0,0,0,0,0,0,0,0,0,0,0,0,0]
["MGMAAcademicAllAssistantMDGastroenterologyL","Gastroenterology","Code","MGMA","Academic","All","Assistant","MD",2022,"$281,794",290487.2,299180.40000000002,307873.59999999998,316566.8,"$325,260",340555.6,355851.2,371146.8,386442.4,"$401,738",414036.4,426334.8,"$463,230"]
["MGMAAcademicAllAssistantMDGastroenterology: HepatologyL","Gastroenterology: Hepatology","Code","MGMA","Academic","All","Assistant","MD",2022,"$263,636",275873.8,288111.59999999998,300349.40000000002,312587.2,"$324,825",334990.2,345155.4,355320.6,365485.8,"$375,651",393627.4,411603.8,"$465,533"]
["MGMAAcademicAllAssistantMDGeneticsL","Genetics","Code","MGMA","Academic","All","Assistant","MD",2022,"$155,901",160284.6,164668.20000000001,169051.8,173435.4,"$177,819",179927.8,182036.6,184145.4,186254.2,"$188,363",192112.2,195861.4,"$207,109"]
["MGMAAcademicAllAssistantMDGeriatricsL","Geriatrics","Code","MGMA","Academic","All","Assistant","MD",2022,"$192,014",195317.4,198620.79999999999,201924.2,205227.6,"$208,531",213498.6,218466.2,223433.8,228401.4,"$233,369",244161.2,254953.4,"$287,330"]
["MGMAAcademicAllAssistantMDHematology/OncologyL","Hematology/Oncology","Code","MGMA","Academic","All","Assistant","MD",2022,"$235,553",244305.8,253058.6,261811.4,270564.2,"$279,317",291250.8,303184.59999999998,315118.40000000002,327052.2,"$338,986",357966.2,376946.4,"$433,887"]
["MGMAAcademicAllAssistantMDHematology/Oncology: Oncology (Only)L","Hematology/Oncology: Oncology (Only)","Code","MGMA","Academic","All","Assistant","MD",2022,"$223,689",230138.8,236588.6,243038.4,249488.2,"$255,938",269327.2,282716.40000000002,296105.59999999998,309494.8,"$322,884",345709.6,368535.2,"$437,012"]
["MGMAAcademicAllAssistantMDHospice/Palliative CareL","Hospice/Palliative Care","Code","MGMA","Academic","All","Assistant","MD",2022,"$182,069",189418.8,196768.6,204118.39999999999,211468.2,"$218,818",228762.6,238707.20000000001,248651.8,258596.4,"$268,541",272612.2,276683.40000000002,"$288,897"]
["MGMAAcademicAllAssistantMDHospitalist: Family MedicineL","Hospitalist: Family Medicine","Code","MGMA","Academic","All","Assistant","MD",2022,0,0,0,0,0,0,0,0,0,0,0,0,0,0]
[{"$f":"D515&E515&F515&G515&H515&B515&\"L\"","v":"MGMAAcademicAllAssistantMDHospitalist: Internal MedicineL"},"Hospitalist: Internal Medicine","Code","MGMA","Academic","All","Assistant","MD",2022,"$230,328",235989.4,{"$f":"((O515-J515)/25)*10 + J515","v":241650.8},{"$f":"((O515-J515)/25)*15 + J515","v":247312.2},{"$f":"((O515-J515)/25)*20 + J515","v":252973.6},"$258,635",{"$f":"((T515-O515)/25)*5 + O515","v":263448.59999999998},{"$f":"((T515-O515)/25)*10 + O515","v":268262.2},{"$f":"((T515-O515)/25)*15 + O515","v":273075.8},{"$f":"((T515-O515)/25)*20 + O515","v":277889.40000000002},"$282,703",{"$f":"((W515-T515)/25)*5 + T515","v":291314.2},{"$f":"((W515-T515)/25)*10 + T515","v":299925.40000000002},"$325,759"]
["MGMAAcademicAllAssistantMDHospitalist: NocturnistL","Hospitalist: Nocturnist","Code","MGMA","Academic","All","Assistant","MD",2022,0,0,0,0,0,0,0,0,0,0,0,0,0,0]
["MGMAAcademicAllAssistantMDHyperbaric Medicine/Wound CareL","Hyperbaric Medicine/Wound Care","Code","MGMA","Academic","All","Assistant","MD",2022,0,{"$f":"((O517-J517)/25)*5 + J517","v":0},0,0,0,0,0,0,0,0,0,0,0,0]
["MGMAAcademicAllAssistantMDInfectious DiseaseL","Infectious Disease","Code","MGMA","Academic","All","Assistant","MD",2022,"$166,342",170931,175520,180109,184698,"$189,287",194156.2,199025.4,203894.6,208763.8,"$213,633",223387.2,233141.4,"$262,404"]
["MGMAAcademicAllAssistantMDInternal Medicine: GeneralL","Internal Medicine: General","Code","MGMA","Academic","All","Assistant","MD",2022,"$208,325",213717.2,219109.4,224501.6,229893.8,"$235,286",243023,250760,258497,266234,"$273,971",284539,295107,"$326,811"]
["MGMAAcademicAllAssistantMDInternal Medicine: Ambulatory Only (No Inpatient Work)L","Internal Medicine: Ambulatory Only (No Inpatient Work)","Code","MGMA","Academic","All","Assistant","MD",2022,0,0,0,0,0,0,0,0,0,0,0,0,0,0]
["MGMAAcademicAllAssistantMDNephrologyL","Nephrology","Code","MGMA","Academic","All","Assistant","MD",2022,"$198,782",203316.2,207850.4,212384.6,216918.8,"$221,453",230271.2,239089.4,247907.6,256725.8,"$265,544",277589.40000000002,289634.8,"$325,771"]
["MGMAAcademicAllAssistantMDNephrology: TransplantL","Nephrology: Transplant","Code","MGMA","Academic","All","Assistant","MD",2022,0,0,0,0,0,0,0,0,0,0,0,0,0,0]
["MGMAAcademicAllAssistantMDNeurologyL","Neurology","Code","MGMA","Academic","All","Assistant","MD",2022,"$199,999",205566.4,211133.8,216701.2,222268.6,"$227,836",235930.4,244024.8,252119.2,260213.6,"$268,308",282348,296388,"$338,508"]
["MGMAAcademicAllAssistantMDNeurology: Epilepsy/EEGL","Neurology: Epilepsy/EEG","Code","MGMA","Academic","All","Assistant","MD",2022,"$220,245",224244.4,228243.8,232243.20000000001,236242.6,"$240,242",245131.6,250021.2,254910.8,259800.4,"$264,690",270037.8,275385.59999999998,"$291,429"]
["MGMAAcademicAllAssistantMDNeurology: Neurocritical CareL","Neurology: Neurocritical Care","Code","MGMA","Academic","All","Assistant","MD",2022,0,0,0,0,0,0,0,0,0,0,0,0,0,0]
["MGMAAcademicAllAssistantMDNeurology: Neuromuscular MedicineL","Neurology: Neuromuscular Medicine","Code","MGMA","Academic","All","Assistant","MD",2022,"$195,800",201583.6,207367.2,213150.8,218934.39999999999,"$224,718",230362.8,236007.6,241652.4,247297.2,"$252,942",264031.59999999998,275121.2,"$308,390"]
["MGMAAcademicAllAssistantMDNeurology: Stroke MedicineL","Neurology: Stroke Medicine","Code","MGMA","Academic","All","Assistant","MD",2022,"$253,720",260164.8,266609.59999999998,273054.40000000002,279499.2,"$285,944",291863.8,297783.59999999998,303703.40000000002,309623.2,"$315,543",330647.59999999998,345752.2,"$391,066"]
["MGMAAcademicAllAssistantMDObstetrics/Gynecology: GeneralL","Obstetrics/Gynecology: General","Code","MGMA","Academic","All","Assistant","MD",2022,"$250,620",261797.2,272974.40000000002,284151.59999999998,295328.8,"$306,506",318038.40000000002,329570.8,341103.2,352635.6,"$364,168",379775.8,395383.6,"$442,207"]
["MGMAAcademicAllAssistantMDOB/GYN: Gynecology (Only)L","OB/GYN: Gynecology (Only)","Code","MGMA","Academic","All","Assistant","MD",2022,"$245,675",250110.6,254546.2,258981.8,263417.40000000002,"$267,853",270219.8,272586.59999999998,274953.40000000002,277320.2,"$279,687",287897.2,296107.40000000002,"$320,738"]
["MGMAAcademicAllAssistantMDOB/GYN: Gynecological OncologyL","OB/GYN: Gynecological Oncology","Code","MGMA","Academic","All","Assistant","MD",2022,"$315,573",329024.2,342475.4,355926.6,369377.8,"$382,829",391893.4,400957.8,410022.2,419086.6,"$428,151",437154.4,446157.8,"$473,168"]
["MGMAAcademicAllAssistantMDOB/GYN: Maternal and Fetal MedicineL","OB/GYN: Maternal and Fetal Medicine","Code","MGMA","Academic","All","Assistant","MD",2022,"$346,193",353488.6,360784.2,368079.8,375375.4,"$382,671",390406,398141,405876,413611,"$421,346",429895.8,438445.6,"$464,095"]
["MGMAAcademicAllAssistantMDOB/GYN: Minimally Invasive Gynecologic SurgeryL","OB/GYN: Minimally Invasive Gynecologic Surgery","Code","MGMA","Academic","All","Assistant","MD",2022,0,0,0,0,0,0,0,0,0,0,0,0,0,0]
["MGMAAcademicAllAssistantMDOB/GYN: Reproductive EndocrinologyL","OB/GYN: Reproductive Endocrinology","Code","MGMA","Academic","All","Assistant","MD",2022,"$290,948",297080.2,303212.40000000002,309344.59999999998,315476.8,"$321,609",327507,333405,339303,345201,"$351,099",371444.8,391790.6,"$452,828"]
["MGMAAcademicAllAssistantMDOB/GYN: UrogynecologyL","OB/GYN: Urogynecology","Code","MGMA","Academic","All","Assistant","MD",2022,"$251,021",260776.2,270531.40000000002,280286.59999999998,290041.8,"$299,797",310234.2,320671.40000000002,331108.59999999998,341545.8,"$351,983",358309.4,364635.8,"$383,615"]
["MGMAAcademicAllAssistantMDOccupational MedicineL","Occupational Medicine","Code","MGMA","Academic","All","Assistant","MD",2022,0,0,0,0,0,0,0,0,0,0,0,0,0,0]
["MGMAAcademicAllAssistantMDOphthalmologyL","Ophthalmology","Code","MGMA","Academic","All","Assistant","MD",2022,"$189,140",204237.4,219334.8,234432.2,249529.60000000001,"$264,627",276772,288917,301062,313207,"$325,352",348541.6,371731.20000000001,"$441,300"]
["MGMAAcademicAllAssistantMDOphthalmology: Corneal and Refractive SurgeryL","Ophthalmology: Corneal and Refractive Surgery","Code","MGMA","Academic","All","Assistant","MD",2022,0,0,0,0,0,0,0,0,0,0,0,0,0,0]
["MGMAAcademicAllAssistantMDOphthalmology: GlaucomaL","Ophthalmology: Glaucoma","Code","MGMA","Academic","All","Assistant","MD",2022,"$237,888",248803.4,259718.8,270634.2,281549.59999999998,"$292,465",305057.8,317650.59999999998,330243.40000000002,342836.2,"$355,429",379683,403937,"$476,699"]
["MGMAAcademicAllAssistantMDOphthalmology: NeurologyL","Ophthalmology: Neurology","Code","MGMA","Academic","All","Assistant","MD",2022,0,0,0,0,0,0,0,0,0,0,0,0,0,0]
["MGMAAcademicAllAssistantMDOphthalmology: Oculoplastic and Reconstructive SurgeryL","Ophthalmology: Oculoplastic and Reconstructive Surgery","Code","MGMA","Academic","All","Assistant","MD",2022,0,0,0,0,0,0,0,0,0,0,0,0,0,0]
["MGMAAcademicAllAssistantMDOphthalmology: RetinaL","Ophthalmology: Retina","Code","MGMA","Academic","All","Assistant","MD",2022,"$296,562",308743,320924,333105,345286,"$357,467",378256.4,399045.8,419835.2,440624.6,"$461,414",483045.6,504677.2,"$569,572"]
["MGMAAcademicAllAssistantMDOrthopedic (Nonsurgical)L","Orthopedic (Nonsurgical)","Code","MGMA","Academic","All","Assistant","MD",2022,"$281,781",285732.8,289684.59999999998,293636.40000000002,297588.2,"$301,540",325841.8,350143.6,374445.4,398747.2,"$423,049",452764,482479,"$571,624"]
["MGMAAcademicAllAssistantMDOrthopedic Surgery: GeneralL","Orthopedic Surgery: General","Code","MGMA","Academic","All","Assistant","MD",2022,"$340,185",359772.8,379360.6,398948.4,418536.2,"$438,124",466991.2,495858.4,524725.6,553592.80000000005,"$582,460",594590,606720,"$643,110"]
["MGMAAcademicAllAssistantMDOrthopedic Surgery: Foot and AnkleL","Orthopedic Surgery: Foot and Ankle","Code","MGMA","Academic","All","Assistant","MD",2022,"$441,983",455835.6,469688.2,483540.8,497393.4,"$511,246",528145.80000000005,545045.6,561945.4,578845.19999999995,"$595,745",628289.19999999995,660833.4,"$758,466"]
["MGMAAcademicAllAssistantMDOrthopedic Surgery: HandL","Orthopedic Surgery: Hand","Code","MGMA","Academic","All","Assistant","MD",2022,"$436,491",468086.4,499681.8,531277.19999999995,562872.6,"$594,468",643149.4,691830.8,740512.2,789193.6,"$837,875",878683.6,919492.2,"$1,041,918"]
["MGMAAcademicAllAssistantMDOrthopedic Surgery: Hip and JointL","Orthopedic Surgery: Hip and Joint","Code","MGMA","Academic","All","Assistant","MD",2022,"$437,056",463031,489006,514981,540956,"$566,931",639204,711477,783750,856023,"$928,296",975782,1023268,"$1,165,726"]
["MGMAAcademicAllAssistantMDOrthopedic Surgery: OncologyL","Orthopedic Surgery: Oncology","Code","MGMA","Academic","All","Assistant","MD",2022,0,0,0,0,0,0,0,0,0,0,0,0,0,0]
["MGMAAcademicAllAssistantMDOrthopedic Surgery: Shoulder/ElbowL","Orthopedic Surgery: Shoulder/Elbow","Code","MGMA","Academic","All","Assistant","MD",2022,0,0,0,0,0,0,0,0,0,0,0,0,0,0]
["MGMAAcademicAllAssistantMDOrthopedic Surgery: SpineL","Orthopedic Surgery: Spine","Code","MGMA","Academic","All","Assistant","MD",2022,"$460,492",528725.6,596959.19999999995,665192.80000000005,733426.39999999991,"$801,660",895306.6,988953.2,1082599.8,1176246.3999999999,"$1,269,893",1352616.4,1435339.8,"$1,683,510"]
["MGMAAcademicAllAssistantMDOrthopedic Surgery: Sports MedicineL","Orthopedic Surgery: Sports Medicine","Code","MGMA","Academic","All","Assistant","MD",2022,"$468,652",535364.6,602077.19999999995,668789.80000000005,735502.4,"$802,215",835184.2,868153.4,901122.6,934091.8,"$967,061",1005333,1043605,"$1,158,421"]
["MGMAAcademicAllAssistantMDOrthopedic Surgery: TraumaL","Orthopedic Surgery: Trauma","Code","MGMA","Academic","All","Assistant","MD",2022,"$454,720",477184.4,499648.8,522113.2,544577.6,"$567,042",618201.80000000005,669361.6,720521.4,771681.2,"$822,841",846532,870223,"$941,296"]
["MGMAAcademicAllAssistantMDOtorhinolaryngologyL","Otorhinolaryngology","Code","MGMA","Academic","All","Assistant","MD",2022,"$303,681",311540.8,319400.59999999998,327260.40000000002,335120.2,"$342,980",356315.4,369650.8,382986.2,396321.6,"$409,657",428189,446721,"$502,317"]
["MGMAAcademicAllAssistantMDPain Management: NonanesthesiaL","Pain Management: Nonanesthesia","Code","MGMA","Academic","All","Assistant","MD",2022,"$384,193",390859.8,397526.6,404193.4,410860.2,"$417,527",429629,441731,453833,465935,"$478,037",495605.2,513173.4,"$565,878"]
["MGMAAcademicAllAssistantMDPathology: Anatomic and ClinicalL","Pathology: Anatomic and Clinical","Code","MGMA","Academic","All","Assistant","MD",2022,"$234,996",246447,257898,269349,280800,"$292,251",298800.8,305350.59999999998,311900.40000000002,318450.2,"$325,000",328703,332406,"$343,515"]
["MGMAAcademicAllAssistantMDPathology: AnatomicL","Pathology: Anatomic","Code","MGMA","Academic","All","Assistant","MD",2022,"$216,854",221540,226226,230912,235598,"$240,284",244418.8,248553.60000000001,252688.4,256823.2,"$260,958",270216,279474,"$307,248"]
["MGMAAcademicAllAssistantMDPathology: Anatomic-AutopsyL","Pathology: Anatomic-Autopsy","Code","MGMA","Academic","All","Assistant","MD",2022,0,0,0,0,0,0,0,0,0,0,0,0,0,0]
["MGMAAcademicAllAssistantMDPathology: Anatomic-CytopathologyL","Pathology: Anatomic-Cytopathology","Code","MGMA","Academic","All","Assistant","MD",2022,0,0,0,0,0,0,0,0,0,0,0,0,0,0]
["MGMAAcademicAllAssistantMDPathology: Anatomic-NeuropathologyL","Pathology: Anatomic-Neuropathology","Code","MGMA","Academic","All","Assistant","MD",2022,0,0,0,0,0,0,0,0,0,0,0,0,0,0]
["MGMAAcademicAllAssistantMDPathology: Anatomic-RenalL","Pathology: Anatomic-Renal","Code","MGMA","Academic","All","Assistant","MD",2022,0,0,0,0,0,0,0,0,0,0,0,0,0,0]
["MGMAAcademicAllAssistantMDPathology: ClinicalL","Pathology: Clinical","Code","MGMA","Academic","All","Assistant","MD",2022,"$214,981",218527,222073,225619,229165,"$232,711",237929.2,243147.4,248365.6,253583.8,"$258,802",262385,265968,"$276,717"]
["MGMAAcademicAllAssistantMDPathology: Clinical-HematopathologyL","Pathology: Clinical-Hematopathology","Code","MGMA","Academic","All","Assistant","MD",2022,"$228,324",233739.2,239154.4,244569.60000000001,249984.8,"$255,400",258304.4,261208.8,264113.2,267017.59999999998,"$269,922",276844,283766,"$304,532"]
["MGMAAcademicAllAssistantMDPathology: Clinical-Transfusion MedicineL","Pathology: Clinical-Transfusion Medicine","Code","MGMA","Academic","All","Assistant","MD",2022,0,0,0,0,0,0,0,0,0,0,0,0,0,0]
["MGMAAcademicAllAssistantMDPathology: SurgicalL","Pathology: Surgical","Code","MGMA","Academic","All","Assistant","MD",2022,"$224,463",225666,226869,228072,229275,"$230,478",236965,243452,249939,256426,"$262,913",265204.8,267496.59999999998,"$274,372"]
["MGMAAcademicAllAssistantMDPediatrics: GeneralL","Pediatrics: General","Code","MGMA","Academic","All","Assistant","MD",2022,"$159,629",163251.79999999999,166874.6,170497.4,174120.2,"$177,743",184254.2,190765.4,197276.6,203787.8,"$210,299",218177,226055,"$249,689"]
["MGMAAcademicAllAssistantMDPediatrics: Adolescent MedicineL","Pediatrics: Adolescent Medicine","Code","MGMA","Academic","All","Assistant","MD",2022,"$150,739",155048.6,159358.20000000001,163667.79999999999,167977.4,"$172,287",175072.4,177857.8,180643.20000000001,183428.6,"$186,214",192519.4,198824.8,"$217,741"]
["MGMAAcademicAllAssistantMDPediatrics: Allergy/ImmunologyL","Pediatrics: Allergy/Immunology","Code","MGMA","Academic","All","Assistant","MD",2022,"$163,442",166558.6,169675.2,172791.8,175908.4,"$179,025",181428.4,183831.8,186235.2,188638.6,"$191,042",194663,198284,"$209,147"]
["MGMAAcademicAllAssistantMDPediatrics: AnesthesiologyL","Pediatrics: Anesthesiology","Code","MGMA","Academic","All","Assistant","MD",2022,"$378,223",386881,395539,404197,412855,"$421,513",430251.4,438989.8,447728.2,456466.6,"$465,205",480395,495585,"$541,155"]
["MGMAAcademicAllAssistantMDPediatrics: Bone Marrow TransplantL","Pediatrics: Bone Marrow Transplant","Code","MGMA","Academic","All","Assistant","MD",2022,0,0,0,0,0,0,0,0,0,0,0,0,0,0]
["MGMAAcademicAllAssistantMDPediatrics: CardiologyL","Pediatrics: Cardiology","Code","MGMA","Academic","All","Assistant","MD",2022,"$232,115",237692,243269,248846,254423,"$260,000",267636,275272,282908,290544,"$298,180",309025.40000000002,319870.8,"$352,407"]
["MGMAAcademicAllAssistantMDPediatrics: Cardiovascular SurgeryL","Pediatrics: Cardiovascular Surgery","Code","MGMA","Academic","All","Assistant","MD",2022,0,0,0,0,0,0,0,0,0,0,0,0,0,0]
["MGMAAcademicAllAssistantMDPediatrics: Child DevelopmentL","Pediatrics: Child Development","Code","MGMA","Academic","All","Assistant","MD",2022,"$174,400",176396,178392,180388,182384,"$184,380",188384.4,192388.8,196393.2,200397.6,"$204,402",217816,231230,"$271,472"]
["MGMAAcademicAllAssistantMDPediatrics: Critical Care/IntensivistL","Pediatrics: Critical Care/Intensivist","Code","MGMA","Academic","All","Assistant","MD",2022,"$237,507",242271.4,247035.8,251800.2,256564.6,"$261,329",268503,275677,282851,290025,"$297,199",311508,325817,"$368,744"]
["MGMAAcademicAllAssistantMDPediatrics: DermatologyL","Pediatrics: Dermatology","Code","MGMA","Academic","All","Assistant","MD",2022,"$252,458",265511.2,278564.40000000002,291617.59999999998,304670.8,"$317,724",329245.8,340767.6,352289.4,363811.2,"$375,333",384170.8,393008.6,"$419,522"]
["MGMAAcademicAllAssistantMDPediatrics: Emergency MedicineL","Pediatrics: Emergency Medicine","Code","MGMA","Academic","All","Assistant","MD",2022,"$214,620",220289,225958,231627,237296,"$242,965",249677.8,256390.6,263103.40000000002,269816.2,"$276,529",286898.8,297268.59999999998,"$328,378"]
["MGMAAcademicAllAssistantMDPediatrics: EndocrinologyL","Pediatrics: Endocrinology","Code","MGMA","Academic","All","Assistant","MD",2022,"$156,834",162667.20000000001,168500.4,174333.6,180166.8,"$186,000",188997.6,191995.2,194992.8,197990.39999999999,"$200,988",202803.4,204618.8,"$210,065"]
["MGMAAcademicAllAssistantMDPediatrics: GastroenterologyL","Pediatrics: Gastroenterology","Code","MGMA","Academic","All","Assistant","MD",2022,"$199,998",203041.2,206084.4,209127.6,212170.8,"$215,214",218856.8,222499.6,226142.4,229785.2,"$233,428",243353,253278,"$283,053"]
["MGMAAcademicAllAssistantMDPediatrics: GeneticsL","Pediatrics: Genetics","Code","MGMA","Academic","All","Assistant","MD",2022,"$175,000",178192.4,181384.8,184577.2,187769.60000000001,"$190,962",196284.79999999999,201607.6,206930.4,212253.2,"$217,576",221484.4,225392.8,"$237,118"]
["MGMAAcademicAllAssistantMDPediatrics: Hematology/OncologyL","Pediatrics: Hematology/Oncology","Code","MGMA","Academic","All","Assistant","MD",2022,"$168,547",170129.6,171712.2,173294.8,174877.4,"$176,460",180894.4,185328.8,189763.20000000001,194197.6,"$198,632",205422,212212,"$232,582"]
[{"$f":"D579&E579&F579&G579&H579&B579&\"L\"","v":"MGMAAcademicAllAssistantMDPediatrics: HospitalistL"},"Pediatrics: Hospitalist","Code","MGMA","Academic","All","Assistant","MD",2022,"$171,494",175611.2,{"$f":"((O579-J579)/25)*10 + J579","v":179728.4},{"$f":"((O579-J579)/25)*15 + J579","v":183845.6},{"$f":"((O579-J579)/25)*20 + J579","v":187962.8},"$192,080",{"$f":"((T579-O579)/25)*5 + O579","v":199215.8},{"$f":"((T579-O579)/25)*10 + O579","v":206351.6},{"$f":"((T579-O579)/25)*15 + O579","v":213487.4},{"$f":"((T579-O579)/25)*20 + O579","v":220623.2},"$227,759",{"$f":"((W579-T579)/25)*5 + T579","v":238238.2},{"$f":"((W579-T579)/25)*10 + T579","v":248717.4},"$280,155"]
["MGMAAcademicAllAssistantMDPediatrics: Hospitalist-Internal MedicineL","Pediatrics: Hospitalist-Internal Medicine","Code","MGMA","Academic","All","Assistant","MD",2022,0,0,0,0,0,0,0,0,0,0,0,0,0,0]
["MGMAAcademicAllAssistantMDPediatrics: Infectious DiseaseL","Pediatrics: Infectious Disease","Code","MGMA","Academic","All","Assistant","MD",2022,"$155,175",{"$f":"((O581-J581)/25)*5 + J581","v":156235.6},157296.20000000001,158356.79999999999,159417.4,"$160,478",164493.20000000001,168508.4,172523.6,176538.8,"$180,554",188957.8,197361.6,"$222,573"]
["MGMAAcademicAllAssistantMDPediatrics: Internal MedicineL","Pediatrics: Internal Medicine","Code","MGMA","Academic","All","Assistant","MD",2022,0,0,0,0,0,0,0,0,0,0,0,0,0,0]
["MGMAAcademicAllAssistantMDPediatrics: Neonatal MedicineL","Pediatrics: Neonatal Medicine","Code","MGMA","Academic","All","Assistant","MD",2022,"$236,775",243109.2,249443.4,255777.6,262111.8,"$268,446",278776,289106,299436,309766,"$320,096",330559.2,341022.4,"$372,412"]
["MGMAAcademicAllAssistantMDPediatrics: NephrologyL","Pediatrics: Nephrology","Code","MGMA","Academic","All","Assistant","MD",2022,"$161,183",163181.79999999999,165180.6,167179.4,169178.2,"$171,177",173145.4,175113.8,177082.2,179050.6,"$181,019",188701.4,196383.8,"$219,431"]
["MGMAAcademicAllAssistantMDPediatrics: NeurologyL","Pediatrics: Neurology","Code","MGMA","Academic","All","Assistant","MD",2022,"$196,642",200573.6,204505.2,208436.8,212368.4,"$216,300",219884.6,223469.2,227053.8,230638.4,"$234,223",241357.2,248491.4,"$269,894"]
["MGMAAcademicAllAssistantMDPediatrics: NeurosurgeryL","Pediatrics: Neurosurgery","Code","MGMA","Academic","All","Assistant","MD",2022,"$514,000",526172,538344,550516,562688,"$574,860",600717.80000000005,626575.6,652433.4,678291.2,"$704,149",719393,734637,"$780,369"]
["MGMAAcademicAllAssistantMDPediatrics: OphthalmologyL","Pediatrics: Ophthalmology","Code","MGMA","Academic","All","Assistant","MD",2022,"$209,375",218251.8,227128.6,236005.4,244882.2,"$253,759",261852.4,269945.8,278039.2,286132.59999999998,"$294,226",309386,324546,"$370,026"]
["MGMAAcademicAllAssistantMDPediatrics: Orthopedic SurgeryL","Pediatrics: Orthopedic Surgery","Code","MGMA","Academic","All","Assistant","MD",2022,"$442,618",465770.4,488922.8,512075.2,535227.6,"$558,380",577727.4,597074.80000000005,616422.19999999995,635769.59999999998,"$655,117",689807,724497,"$828,567"]
["MGMAAcademicAllAssistantMDPediatrics: OtorhinolaryngologyL","Pediatrics: Otorhinolaryngology","Code","MGMA","Academic","All","Assistant","MD",2022,"$326,810",334324.59999999998,341839.2,349353.8,356868.4,"$364,383",373125.6,381868.2,390610.8,399353.4,"$408,096",413526.2,418956.4,"$435,247"]
["MGMAAcademicAllAssistantMDPediatrics: Plastic and Reconstruction SurgeryL","Pediatrics: Plastic and Reconstruction Surgery","Code","MGMA","Academic","All","Assistant","MD",2022,0,0,0,0,0,0,0,0,0,0,0,0,0,0]
["MGMAAcademicAllAssistantMDPediatrics: PulmonologyL","Pediatrics: Pulmonology","Code","MGMA","Academic","All","Assistant","MD",2022,"$176,886",178431.4,179976.8,181522.2,183067.6,"$184,613",188121.4,191629.8,195138.2,198646.6,"$202,155",210591.2,219027.4,"$244,336"]
["MGMAAcademicAllAssistantMDPediatrics: RadiologyL","Pediatrics: Radiology","Code","MGMA","Academic","All","Assistant","MD",2022,"$408,089",410935.2,413781.4,416627.6,419473.8,"$422,320",433236.4,444152.8,455069.2,465985.6,"$476,902",482039.8,487177.6,"$502,591"]
["MGMAAcademicAllAssistantMDPediatrics: RheumatologyL","Pediatrics: Rheumatology","Code","MGMA","Academic","All","Assistant","MD",2022,"$156,046",158180.20000000001,160314.4,162448.6,164582.79999999999,"$166,717",168799,170881,172963,175045,"$177,127",181727,186327,"$200,127"]
["MGMAAcademicAllAssistantMDPediatrics: Sports MedicineL","Pediatrics: Sports Medicine","Code","MGMA","Academic","All","Assistant","MD",2022,0,0,0,0,0,0,0,0,0,0,0,0,0,0]
["MGMAAcademicAllAssistantMDPediatrics: SurgeryL","Pediatrics: Surgery","Code","MGMA","Academic","All","Assistant","MD",2022,"$420,294",426436,432578,438720,444862,"$451,004",467069,483134,499199,515264,"$531,329",561849.80000000005,592370.6,"$683,933"]
["MGMAAcademicAllAssistantMDPediatrics: Urgent CareL","Pediatrics: Urgent Care","Code","MGMA","Academic","All","Assistant","MD",2022,0,0,0,0,0,0,0,0,0,0,0,0,0,0]
["MGMAAcademicAllAssistantMDPediatrics: UrologyL","Pediatrics: Urology","Code","MGMA","Academic","All","Assistant","MD",2022,"$327,970",340145.8,352321.6,364497.4,376673.2,"$388,849",401118,413387,425656,437925,"$450,194",470588.2,490982.40000000002,"$552,165"]
["MGMAAcademicAllAssistantMDPhysiatry (Physical Medicine and Rehabilitation)L","Physiatry (Physical Medicine and Rehabilitation)","Code","MGMA","Academic","All","Assistant","MD",2022,"$204,452",210210,215968,221726,227484,"$233,242",241823.6,250405.2,258986.8,267568.40000000002,"$276,150",285524.40000000002,294898.8,"$323,022"]
["MGMAAcademicAllAssistantMDPodiatry: GeneralL","Podiatry: General","Code","MGMA","Academic","All","Assistant","MD",2022,"$155,117",158975.6,162834.20000000001,166692.79999999999,170551.4,"$174,410",202297,230184,258071,285958,"$313,845",333704.40000000002,353563.8,"$413,142"]
["MGMAAcademicAllAssistantMDPodiatry: Surgery-Foot and AnkleL","Podiatry: Surgery-Foot and Ankle","Code","MGMA","Academic","All","Assistant","MD",2022,"$223,089",235031.8,246974.6,258917.4,270860.2,"$282,803",297448.2,312093.40000000002,326738.59999999998,341383.8,"$356,029",371374.6,386720.2,"$432,757"]
["MGMAAcademicAllAssistantMDPsychiatry: GeneralL","Psychiatry: General","Code","MGMA","Academic","All","Assistant","MD",2022,"$199,072",204871.8,210671.6,216471.4,222271.2,"$228,071",234290.2,240509.4,246728.6,252947.8,"$259,167",269798,280429,"$312,322"]
["MGMAAcademicAllAssistantMDPsychiatry: Addiction MedicineL","Psychiatry: Addiction Medicine","Code","MGMA","Academic","All","Assistant","MD",2022,0,0,0,0,0,0,0,0,0,0,0,0,0,0]
["MGMAAcademicAllAssistantMDPsychiatry: Behavioral MedicineL","Psychiatry: Behavioral Medicine","Code","MGMA","Academic","All","Assistant","MD",2022,0,0,0,0,0,0,0,0,0,0,0,0,0,0]
["MGMAAcademicAllAssistantMDPsychiatry: Chemical DependencyL","Psychiatry: Chemical Dependency","Code","MGMA","Academic","All","Assistant","MD",2022,0,0,0,0,0,0,0,0,0,0,0,0,0,0]
["MGMAAcademicAllAssistantMDPsychiatry: Child and AdolescentL","Psychiatry: Child and Adolescent","Code","MGMA","Academic","All","Assistant","MD",2022,"$198,642",205617.2,212592.4,219567.6,226542.8,"$233,518",240537.8,247557.6,254577.4,261597.2,"$268,617",272214,275811,"$286,602"]
["MGMAAcademicAllAssistantMDPsychiatry: ForensicL","Psychiatry: Forensic","Code","MGMA","Academic","All","Assistant","MD",2022,0,0,0,0,0,0,0,0,0,0,0,0,0,0]
["MGMAAcademicAllAssistantMDPsychiatry: GeriatricL","Psychiatry: Geriatric","Code","MGMA","Academic","All","Assistant","MD",2022,"$201,819",211656.4,221493.8,231331.20000000001,241168.6,"$251,006",266279.40000000002,281552.8,296826.2,312099.59999999998,"$327,373",342640.2,357907.4,"$403,709"]
["MGMAAcademicAllAssistantMDPulmonary Medicine: GeneralL","Pulmonary Medicine: General","Code","MGMA","Academic","All","Assistant","MD",2022,"$217,013",223401.8,229790.6,236179.4,242568.2,"$248,957",258691.4,268425.8,278160.2,287894.59999999998,"$297,629",310376,323123,"$361,364"]
["MGMAAcademicAllAssistantMDPulmonary Medicine: Critical CareL","Pulmonary Medicine: Critical Care","Code","MGMA","Academic","All","Assistant","MD",2022,"$239,316",253288,267260,281232,295204,"$309,176",324010.59999999998,338845.2,353679.8,368514.4,"$383,349",415789,448229,"$545,549"]
["MGMAAcademicAllAssistantMDPulmonary Medicine: General and Critical CareL","Pulmonary Medicine: General and Critical Care","Code","MGMA","Academic","All","Assistant","MD",2022,"$268,216",277498.40000000002,286780.79999999999,296063.2,305345.59999999998,"$314,628",320960,327292,333624,339956,"$346,288",351143.6,355999.2,"$370,566"]
["MGMAAcademicAllAssistantMDRadiation OncologyL","Radiation Oncology","Code","MGMA","Academic","All","Assistant","MD",2022,"$379,149",385351.6,391554.2,397756.8,403959.4,"$410,162",418446.8,426731.6,435016.4,443301.2,"$451,586",461165.6,470745.2,"$499,484"]
["MGMAAcademicAllAssistantMDRadiology: InterventionalL","Radiology: Interventional","Code","MGMA","Academic","All","Assistant","MD",2022,"$385,559",396465.4,407371.8,418278.2,429184.6,"$440,091",452289.8,464488.6,476687.4,488886.2,"$501,085",520263,539441,"$596,975"]
["MGMAAcademicAllAssistantMDRadiology: DiagnosticL","Radiology: Diagnostic","Code","MGMA","Academic","All","Assistant","MD",2022,"$362,205",371891.6,381578.2,391264.8,400951.4,"$410,638",421609,432580,443551,454522,"$465,493",479333.6,493174.2,"$534,696"]
["MGMAAcademicAllAssistantMDRadiology: NeurologicalL","Radiology: Neurological","Code","MGMA","Academic","All","Assistant","MD",2022,"$357,637",366901.8,376166.6,385431.4,394696.2,"$403,961",414765.8,425570.6,436375.4,447180.2,"$457,985",468543.6,479102.2,"$510,778"]
["MGMAAcademicAllAssistantMDRadiology: Nuclear MedicineL","Radiology: Nuclear Medicine","Code","MGMA","Academic","All","Assistant","MD",2022,"$334,544",342149.4,349754.8,357360.2,364965.6,"$372,571",387089.6,401608.2,416126.8,430645.4,"$445,164",451503.2,457842.4,"$476,860"]
["MGMAAcademicAllAssistantMDRheumatologyL","Rheumatology","Code","MGMA","Academic","All","Assistant","MD",2022,"$177,283",182102,186921,191740,196559,"$201,378",210977.4,220576.8,230176.2,239775.6,"$249,375",263525.8,277676.59999999998,"$320,129"]
["MGMAAcademicAllAssistantMDSleep MedicineL","Sleep Medicine","Code","MGMA","Academic","All","Assistant","MD",2022,"$200,550",206599.6,212649.2,218698.8,224748.4,"$230,798",236946.4,243094.8,249243.2,255391.6,"$261,540",263038.59999999998,264537.2,"$269,033"]
["MGMAAcademicAllAssistantMDSurgery: GeneralL","Surgery: General","Code","MGMA","Academic","All","Assistant","MD",2022,"$326,917",337691.4,348465.8,359240.2,370014.6,"$380,789",392820,404851,416882,428913,"$440,944",465696,490448,"$564,704"]
["MGMAAcademicAllAssistantMDSurgery: BariatricL","Surgery: Bariatric","Code","MGMA","Academic","All","Assistant","MD",2022,0,0,0,0,0,0,0,0,0,0,0,0,0,0]
["MGMAAcademicAllAssistantMDSurgery: BreastL","Surgery: Breast","Code","MGMA","Academic","All","Assistant","MD",2022,"$298,472",321543.40000000002,344614.8,367686.2,390757.6,"$413,829",422688.8,431548.6,440408.4,449268.2,"$458,128",468748.2,479368.4,"$511,229"]
["MGMAAcademicAllAssistantMDSurgery: CardiovascularL","Surgery: Cardiovascular","Code","MGMA","Academic","All","Assistant","MD",2022,"$448,550",475259.2,501968.4,528677.6,555386.80000000005,"$582,096",613055.80000000005,644015.6,674975.4,705935.2,"$736,895",771803.6,806712.2,"$911,438"]
["MGMAAcademicAllAssistantMDSurgery: Colon and RectalL","Surgery: Colon and Rectal","Code","MGMA","Academic","All","Assistant","MD",2022,"$305,795",315713.59999999998,325632.2,335550.8,345469.4,"$355,388",370517,385646,400775,415904,"$431,033",447972.2,464911.4,"$515,729"]
["MGMAAcademicAllAssistantMDSurgery: EndocrineL","Surgery: Endocrine","Code","MGMA","Academic","All","Assistant","MD",2022,0,0,0,0,0,0,0,0,0,0,0,0,0,0]
["MGMAAcademicAllAssistantMDSurgery: Endovascular (Primary)L","Surgery: Endovascular (Primary)","Code","MGMA","Academic","All","Assistant","MD",2022,0,0,0,0,0,0,0,0,0,0,0,0,0,0]
["MGMAAcademicAllAssistantMDSurgery: NeurologicalL","Surgery: Neurological","Code","MGMA","Academic","All","Assistant","MD",2022,"$567,431",586765.80000000005,606100.6,625435.4,644770.19999999995,"$664,105",700816.6,737528.2,774239.8,810951.4,"$847,663",909347.2,971031.4,"$1,156,084"]
["MGMAAcademicAllAssistantMDSurgery: OncologyL","Surgery: Oncology","Code","MGMA","Academic","All","Assistant","MD",2022,"$322,425",327940,333455,338970,344485,"$350,000",355191.4,360382.8,365574.2,370765.6,"$375,957",394845,413733,"$470,397"]
["MGMAAcademicAllAssistantMDSurgery: OralL","Surgery: Oral","Code","MGMA","Academic","All","Assistant","MD",2022,0,0,0,0,0,0,0,0,0,0,0,0,0,0]
["MGMAAcademicAllAssistantMDSurgery: Plastic and ReconstructionL","Surgery: Plastic and Reconstruction","Code","MGMA","Academic","All","Assistant","MD",2022,"$360,966",371690,382414,393138,403862,"$414,586",441683.6,468781.2,495878.8,522976.4,"$550,074",582427,614780,"$711,839"]
["MGMAAcademicAllAssistantMDSurgery: Plastic and Reconstruction-HandL","Surgery: Plastic and Reconstruction-Hand","Code","MGMA","Academic","All","Assistant","MD",2022,0,0,0,0,0,0,0,0,0,0,0,0,0,0]
["MGMAAcademicAllAssistantMDSurgery: Thoracic (Primary)L","Surgery: Thoracic (Primary)","Code","MGMA","Academic","All","Assistant","MD",2022,"$387,838",405782,423726,441670,459614,"$477,558",485760,493962,502164,510366,"$518,568",579998,641428,"$825,718"]
["MGMAAcademicAllAssistantMDSurgery: TransplantL","Surgery: Transplant","Code","MGMA","Academic","All","Assistant","MD",2022,"$316,891",328734.8,340578.6,352422.40000000002,364266.2,"$376,110",397405.2,418700.4,439995.6,461290.8,"$482,586",496125.6,509665.2,"$550,284"]
["MGMAAcademicAllAssistantMDSurgery: Transplant-HeartL","Surgery: Transplant-Heart","Code","MGMA","Academic","All","Assistant","MD",2022,0,0,0,0,0,0,0,0,0,0,0,0,0,0]
["MGMAAcademicAllAssistantMDSurgery: Transplant-Heart/LungL","Surgery: Transplant-Heart/Lung","Code","MGMA","Academic","All","Assistant","MD",2022,0,0,0,0,0,0,0,0,0,0,0,0,0,0]
["MGMAAcademicAllAssistantMDSurgery: Transplant-KidneyL","Surgery: Transplant-Kidney","Code","MGMA","Academic","All","Assistant","MD",2022,0,0,0,0,0,0,0,0,0,0,0,0,0,0]
["MGMAAcademicAllAssistantMDSurgery: Transplant-LiverL","Surgery: Transplant-Liver","Code","MGMA","Academic","All","Assistant","MD",2022,0,0,0,0,0,0,0,0,0,0,0,0,0,0]
["MGMAAcademicAllAssistantMDSurgery: TraumaL","Surgery: Trauma","Code","MGMA","Academic","All","Assistant","MD",2022,"$347,634",354303.4,360972.79999999999,367642.2,374311.6,"$380,981",391288.4,401595.8,411903.2,422210.6,"$432,518",447956.4,463394.8,"$509,710"]
["MGMAAcademicAllAssistantMDSurgery: Trauma-BurnL","Surgery: Trauma-Burn","Code","MGMA","Academic","All","Assistant","MD",2022,0,0,0,0,0,0,0,0,0,0,0,0,0,0]
["MGMAAcademicAllAssistantMDSurgery: Vascular (Primary)L","Surgery: Vascular (Primary)","Code","MGMA","Academic","All","Assistant","MD",2022,"$348,266",355773.4,363280.8,370788.2,378295.6,"$385,803",394438.6,403074.2,411709.8,420345.4,"$428,981",445956.4,462931.8,"$513,858"]
["MGMAAcademicAllAssistantMDUrgent CareL","Urgent Care","Code","MGMA","Academic","All","Assistant","MD",2022,"$212,389",219177.60000000001,225966.2,232754.8,239543.4,"$246,332",259328.8,272325.59999999998,285322.40000000002,298319.2,"$311,316",317800.2,324284.40000000002,"$343,737"]
["MGMAAcademicAllAssistantMDUrologyL","Urology","Code","MGMA","Academic","All","Assistant","MD",2022,"$333,114",340197.6,347281.2,354364.8,361448.4,"$368,532",380545.8,392559.6,404573.4,416587.2,"$428,601",449336.6,470072.2,"$532,279"]
["MGMAAcademicAllAssistantMDAnesthesia AssistanttL","Anesthesia Assistantt","Code","MGMA","Academic","All","Assistant","MD",2022,0,0,0,0,0,0,0,0,0,0,0,0,0,0]
["MGMAAcademicAllAssistantMDAudiologistL","Audiologist","Code","MGMA","Academic","All","Assistant","MD",2022,0,0,0,0,0,0,0,0,0,0,0,0,0,0]
[{"$f":"D643&E643&F643&G643&H643&B643&\"L\"","v":"MGMAAcademicAllAssistantMDCertified Registered Nurse AnesthetistL"},"Certified Registered Nurse Anesthetist","Code","MGMA","Academic","All","Assistant","MD",2022,0,0,{"$f":"((O643-J643)/25)*10 + J643","v":0},{"$f":"((O643-J643)/25)*15 + J643","v":0},{"$f":"((O643-J643)/25)*20 + J643","v":0},0,{"$f":"((T643-O643)/25)*5 + O643","v":0},{"$f":"((T643-O643)/25)*10 + O643","v":0},{"$f":"((T643-O643)/25)*15 + O643","v":0},{"$f":"((T643-O643)/25)*20 + O643","v":0},0,{"$f":"((W643-T643)/25)*5 + T643","v":0},{"$f":"((W643-T643)/25)*10 + T643","v":0},0]
["MGMAAcademicAllAssistantMDChiropractorL","Chiropractor","Code","MGMA","Academic","All","Assistant","MD",2022,0,0,0,0,0,0,0,0,0,0,0,0,0,0]
["MGMAAcademicAllAssistantMDClinical Nurse Specialist L","Clinical Nurse Specialist ","Code","MGMA","Academic","All","Assistant","MD",2022,0,{"$f":"((O645-J645)/25)*5 + J645","v":0},0,0,0,0,0,0,0,0,0,0,0,0]
["MGMAAcademicAllAssistantMDDietician/NutritionistL","Dietician/Nutritionist","Code","MGMA","Academic","All","Assistant","MD",2022,0,0,0,0,0,0,0,0,0,0,0,0,0,0]
["MGMAAcademicAllAssistantMDGenetic Counselor L","Genetic Counselor ","Code","MGMA","Academic","All","Assistant","MD",2022,0,0,0,0,0,0,0,0,0,0,0,0,0,0]
["MGMAAcademicAllAssistantMDLicensed Clinical Social WorkerL","Licensed Clinical Social Worker","Code","MGMA","Academic","All","Assistant","MD",2022,0,0,0,0,0,0,0,0,0,0,0,0,0,0]
["MGMAAcademicAllAssistantMDNurse Midwife: Outpatient/Inpatient DeliveriesL","Nurse Midwife: Outpatient/Inpatient Deliveries","Code","MGMA","Academic","All","Assistant","MD",2022,"$128,351",136519.4,144687.79999999999,152856.20000000001,161024.6,"$169,193",178397,187601,196805,206009,"$215,213",219169.4,223125.8,"$234,995"]
["MGMAAcademicAllAssistantMDNurse Midwife: Outpatient (Only)L","Nurse Midwife: Outpatient (Only)","Code","MGMA","Academic","All","Assistant","MD",2022,0,0,0,0,0,0,0,0,0,0,0,0,0,0]
["MGMAAcademicAllAssistantMDNurse Midwife: Inpatient (Only)L","Nurse Midwife: Inpatient (Only)","Code","MGMA","Academic","All","Assistant","MD",2022,0,0,0,0,0,0,0,0,0,0,0,0,0,0]
["MGMAAcademicAllAssistantMDNP (Surgical)L","NP (Surgical)","Code","MGMA","Academic","All","Assistant","MD",2022,0,0,0,0,0,0,0,0,0,0,0,0,0,0]
["MGMAAcademicAllAssistantMDNP: AnesthesiologyL","NP: Anesthesiology","Code","MGMA","Academic","All","Assistant","MD",2022,0,0,0,0,0,0,0,0,0,0,0,0,0,0]
["MGMAAcademicAllAssistantMDNP: Cardiothoracic SurgeryL","NP: Cardiothoracic Surgery","Code","MGMA","Academic","All","Assistant","MD",2022,0,0,0,0,0,0,0,0,0,0,0,0,0,0]
["MGMAAcademicAllAssistantMDNP: NeurosurgeryL","NP: Neurosurgery","Code","MGMA","Academic","All","Assistant","MD",2022,0,0,0,0,0,0,0,0,0,0,0,0,0,0]
["MGMAAcademicAllAssistantMDNP: Orthopedics (Surgical)L","NP: Orthopedics (Surgical)","Code","MGMA","Academic","All","Assistant","MD",2022,0,0,0,0,0,0,0,0,0,0,0,0,0,0]
["MGMAAcademicAllAssistantMDNP: OtorhinolaryngologyL","NP: Otorhinolaryngology","Code","MGMA","Academic","All","Assistant","MD",2022,0,0,0,0,0,0,0,0,0,0,0,0,0,0]
["MGMAAcademicAllAssistantMDNP: Surgery: GeneralL","NP: Surgery: General","Code","MGMA","Academic","All","Assistant","MD",2022,0,0,0,0,0,0,0,0,0,0,0,0,0,0]
["MGMAAcademicAllAssistantMDNP: UrologyL","NP: Urology","Code","MGMA","Academic","All","Assistant","MD",2022,0,0,0,0,0,0,0,0,0,0,0,0,0,0]
["MGMAAcademicAllAssistantMDNP: Vascular SurgeryL","NP: Vascular Surgery","Code","MGMA","Academic","All","Assistant","MD",2022,0,0,0,0,0,0,0,0,0,0,0,0,0,0]
["MGMAAcademicAllAssistantMDNP (Primary Care)L","NP (Primary Care)","Code","MGMA","Academic","All","Assistant","MD",2022,0,0,0,0,0,0,0,0,0,0,0,0,0,0]
["MGMAAcademicAllAssistantMDNP: AdultL","NP: Adult","Code","MGMA","Academic","All","Assistant","MD",2022,0,0,0,0,0,0,0,0,0,0,0,0,0,0]
["MGMAAcademicAllAssistantMDNP: Family Medicine (with OB)L","NP: Family Medicine (with OB)","Code","MGMA","Academic","All","Assistant","MD",2022,0,0,0,0,0,0,0,0,0,0,0,0,0,0]
["MGMAAcademicAllAssistantMDNP: Family Medicine (without OB)L","NP: Family Medicine (without OB)","Code","MGMA","Academic","All","Assistant","MD",2022,0,0,0,0,0,0,0,0,0,0,0,0,0,0]
["MGMAAcademicAllAssistantMDNP: Gerontology/Elder HealthL","NP: Gerontology/Elder Health","Code","MGMA","Academic","All","Assistant","MD",2022,0,0,0,0,0,0,0,0,0,0,0,0,0,0]
["MGMAAcademicAllAssistantMDNP: Hospice/Palliative CareL","NP: Hospice/Palliative Care","Code","MGMA","Academic","All","Assistant","MD",2022,0,0,0,0,0,0,0,0,0,0,0,0,0,0]
["MGMAAcademicAllAssistantMDNP: Hospitalist (Primary Care)L","NP: Hospitalist (Primary Care)","Code","MGMA","Academic","All","Assistant","MD",2022,0,0,0,0,0,0,0,0,0,0,0,0,0,0]
["MGMAAcademicAllAssistantMDNP: Internal MedicineL","NP: Internal Medicine","Code","MGMA","Academic","All","Assistant","MD",2022,0,0,0,0,0,0,0,0,0,0,0,0,0,0]
["MGMAAcademicAllAssistantMDNP: OB/GYN/Women's HealthL","NP: OB/GYN/Women's Health","Code","MGMA","Academic","All","Assistant","MD",2022,0,0,0,0,0,0,0,0,0,0,0,0,0,0]
["MGMAAcademicAllAssistantMDNP: Pediatric/Child HealthL","NP: Pediatric/Child Health","Code","MGMA","Academic","All","Assistant","MD",2022,0,0,0,0,0,0,0,0,0,0,0,0,0,0]
["MGMAAcademicAllAssistantMDNP: Urgent CareL","NP: Urgent Care","Code","MGMA","Academic","All","Assistant","MD",2022,0,0,0,0,0,0,0,0,0,0,0,0,0,0]
["MGMAAcademicAllAssistantMDNP (Nonsurgical/Nonprimary Care)L","NP (Nonsurgical/Nonprimary Care)","Code","MGMA","Academic","All","Assistant","MD",2022,0,0,0,0,0,0,0,0,0,0,0,0,0,0]
["MGMAAcademicAllAssistantMDNP: Acute CareL","NP: Acute Care","Code","MGMA","Academic","All","Assistant","MD",2022,0,0,0,0,0,0,0,0,0,0,0,0,0,0]
["MGMAAcademicAllAssistantMDNP: Allergy/ImmunologyL","NP: Allergy/Immunology","Code","MGMA","Academic","All","Assistant","MD",2022,0,0,0,0,0,0,0,0,0,0,0,0,0,0]
["MGMAAcademicAllAssistantMDNP: CardiologyL","NP: Cardiology","Code","MGMA","Academic","All","Assistant","MD",2022,0,0,0,0,0,0,0,0,0,0,0,0,0,0]
["MGMAAcademicAllAssistantMDNP: DermatologyL","NP: Dermatology","Code","MGMA","Academic","All","Assistant","MD",2022,0,0,0,0,0,0,0,0,0,0,0,0,0,0]
["MGMAAcademicAllAssistantMDNP: Emergency MedicineL","NP: Emergency Medicine","Code","MGMA","Academic","All","Assistant","MD",2022,0,0,0,0,0,0,0,0,0,0,0,0,0,0]
["MGMAAcademicAllAssistantMDNP: EndocrinologyL","NP: Endocrinology","Code","MGMA","Academic","All","Assistant","MD",2022,0,0,0,0,0,0,0,0,0,0,0,0,0,0]
["MGMAAcademicAllAssistantMDNP: GastroenterologyL","NP: Gastroenterology","Code","MGMA","Academic","All","Assistant","MD",2022,0,0,0,0,0,0,0,0,0,0,0,0,0,0]
["MGMAAcademicAllAssistantMDNP: Hematology/OncologyL","NP: Hematology/Oncology","Code","MGMA","Academic","All","Assistant","MD",2022,0,0,0,0,0,0,0,0,0,0,0,0,0,0]
["MGMAAcademicAllAssistantMDNP: Hospitalist (Nonsurgical/Nonprimary Care)L","NP: Hospitalist (Nonsurgical/Nonprimary Care)","Code","MGMA","Academic","All","Assistant","MD",2022,0,0,0,0,0,0,0,0,0,0,0,0,0,0]
["MGMAAcademicAllAssistantMDNP: Infectious DiseaseL","NP: Infectious Disease","Code","MGMA","Academic","All","Assistant","MD",2022,0,0,0,0,0,0,0,0,0,0,0,0,0,0]
["MGMAAcademicAllAssistantMDNP: Neonatal/PerinatalL","NP: Neonatal/Perinatal","Code","MGMA","Academic","All","Assistant","MD",2022,0,0,0,0,0,0,0,0,0,0,0,0,0,0]
["MGMAAcademicAllAssistantMDNP: NephrologyL","NP: Nephrology","Code","MGMA","Academic","All","Assistant","MD",2022,0,0,0,0,0,0,0,0,0,0,0,0,0,0]
["MGMAAcademicAllAssistantMDNP: NeurologyL","NP: Neurology","Code","MGMA","Academic","All","Assistant","MD",2022,0,0,0,0,0,0,0,0,0,0,0,0,0,0]
["MGMAAcademicAllAssistantMDNP: Orthopedics (Nonsurgical/Nonprimary Care)L","NP: Orthopedics (Nonsurgical/Nonprimary Care)","Code","MGMA","Academic","All","Assistant","MD",2022,0,0,0,0,0,0,0,0,0,0,0,0,0,0]
["MGMAAcademicAllAssistantMDNP: PhysiatryL","NP: Physiatry","Code","MGMA","Academic","All","Assistant","MD",2022,0,0,0,0,0,0,0,0,0,0,0,0,0,0]
["MGMAAcademicAllAssistantMDNP: PsychiatryL","NP: Psychiatry","Code","MGMA","Academic","All","Assistant","MD",2022,0,0,0,0,0,0,0,0,0,0,0,0,0,0]
["MGMAAcademicAllAssistantMDNP: Pulmonary MedicineL","NP: Pulmonary Medicine","Code","MGMA","Academic","All","Assistant","MD",2022,0,0,0,0,0,0,0,0,0,0,0,0,0,0]
["MGMAAcademicAllAssistantMDNP: RheumatologyL","NP: Rheumatology","Code","MGMA","Academic","All","Assistant","MD",2022,0,0,0,0,0,0,0,0,0,0,0,0,0,0]
["MGMAAcademicAllAssistantMDOccupational TherapistL","Occupational Therapist","Code","MGMA","Academic","All","Assistant","MD",2022,0,0,0,0,0,0,0,0,0,0,0,0,0,0]
["MGMAAcademicAllAssistantMDOptometristL","Optometrist","Code","MGMA","Academic","All","Assistant","MD",2022,"$150,909",153849.20000000001,156789.4,159729.60000000001,162669.79999999999,"$165,610",177502.8,189395.6,201288.4,213181.2,"$225,074",244080.8,263087.59999999998,"$320,108"]
["MGMAAcademicAllAssistantMDPhDL","PhD","Code","MGMA","Academic","All","Assistant","MD",2022,"$103,191",105076.2,106961.4,108846.6,110731.8,"$112,617",117016.4,121415.8,125815.2,130214.6,"$134,614",137709,140804,"$150,089"]
["MGMAAcademicAllAssistantMDPhysical TherapistL","Physical Therapist","Code","MGMA","Academic","All","Assistant","MD",2022,0,0,0,0,0,0,0,0,0,0,0,0,0,0]
["MGMAAcademicAllAssistantMDPA (Surgical)L","PA (Surgical)","Code","MGMA","Academic","All","Assistant","MD",2022,0,0,0,0,0,0,0,0,0,0,0,0,0,0]
["MGMAAcademicAllAssistantMDPA: Anesthesiology L","PA: Anesthesiology ","Code","MGMA","Academic","All","Assistant","MD",2022,0,0,0,0,0,0,0,0,0,0,0,0,0,0]
["MGMAAcademicAllAssistantMDPA: Cardiothoracic SurgeryL","PA: Cardiothoracic Surgery","Code","MGMA","Academic","All","Assistant","MD",2022,0,0,0,0,0,0,0,0,0,0,0,0,0,0]
["MGMAAcademicAllAssistantMDPA: NeurosurgeryL","PA: Neurosurgery","Code","MGMA","Academic","All","Assistant","MD",2022,0,0,0,0,0,0,0,0,0,0,0,0,0,0]
["MGMAAcademicAllAssistantMDPA: Orthopedic (Surgical)L","PA: Orthopedic (Surgical)","Code","MGMA","Academic","All","Assistant","MD",2022,0,0,0,0,0,0,0,0,0,0,0,0,0,0]
["MGMAAcademicAllAssistantMDPA: OtorhinolaryngologyL","PA: Otorhinolaryngology","Code","MGMA","Academic","All","Assistant","MD",2022,0,0,0,0,0,0,0,0,0,0,0,0,0,0]
["MGMAAcademicAllAssistantMDPA: Surgery: GeneralL","PA: Surgery: General","Code","MGMA","Academic","All","Assistant","MD",2022,0,0,0,0,0,0,0,0,0,0,0,0,0,0]
["MGMAAcademicAllAssistantMDPA: UrologyL","PA: Urology","Code","MGMA","Academic","All","Assistant","MD",2022,0,0,0,0,0,0,0,0,0,0,0,0,0,0]
["MGMAAcademicAllAssistantMDPA (Primary Care)L","PA (Primary Care)","Code","MGMA","Academic","All","Assistant","MD",2022,0,0,0,0,0,0,0,0,0,0,0,0,0,0]
["MGMAAcademicAllAssistantMDPA: Family Medicine (without OB)L","PA: Family Medicine (without OB)","Code","MGMA","Academic","All","Assistant","MD",2022,0,0,0,0,0,0,0,0,0,0,0,0,0,0]
["MGMAAcademicAllAssistantMDPA: Hospitalist (Primary Care)L","PA: Hospitalist (Primary Care)","Code","MGMA","Academic","All","Assistant","MD",2022,0,0,0,0,0,0,0,0,0,0,0,0,0,0]
["MGMAAcademicAllAssistantMDPA: Internal MedicineL","PA: Internal Medicine","Code","MGMA","Academic","All","Assistant","MD",2022,0,0,0,0,0,0,0,0,0,0,0,0,0,0]
[{"$f":"D707&E707&F707&G707&H707&B707&\"L\"","v":"MGMAAcademicAllAssistantMDPA: OB/GYN/Women's HealthL"},"PA: OB/GYN/Women's Health","Code","MGMA","Academic","All","Assistant","MD",2022,0,0,{"$f":"((O707-J707)/25)*10 + J707","v":0},{"$f":"((O707-J707)/25)*15 + J707","v":0},{"$f":"((O707-J707)/25)*20 + J707","v":0},0,{"$f":"((T707-O707)/25)*5 + O707","v":0},{"$f":"((T707-O707)/25)*10 + O707","v":0},{"$f":"((T707-O707)/25)*15 + O707","v":0},{"$f":"((T707-O707)/25)*20 + O707","v":0},0,{"$f":"((W707-T707)/25)*5 + T707","v":0},{"$f":"((W707-T707)/25)*10 + T707","v":0},0]
["MGMAAcademicAllAssistantMDPA: Pediatric/Child HealthL","PA: Pediatric/Child Health","Code","MGMA","Academic","All","Assistant","MD",2022,0,0,0,0,0,0,0,0,0,0,0,0,0,0]
["MGMAAcademicAllAssistantMDPA: Urgent CareL","PA: Urgent Care","Code","MGMA","Academic","All","Assistant","MD",2022,0,{"$f":"((O709-J709)/25)*5 + J709","v":0},0,0,0,0,0,0,0,0,0,0,0,0]
["MGMAAcademicAllAssistantMDPA (Nonsurgical/Nonprimary Care)L","PA (Nonsurgical/Nonprimary Care)","Code","MGMA","Academic","All","Assistant","MD",2022,0,0,0,0,0,0,0,0,0,0,0,0,0,0]
["MGMAAcademicAllAssistantMDPA: CardiologyL","PA: Cardiology","Code","MGMA","Academic","All","Assistant","MD",2022,0,0,0,0,0,0,0,0,0,0,0,0,0,0]
["MGMAAcademicAllAssistantMDPA: DermatologyL","PA: Dermatology","Code","MGMA","Academic","All","Assistant","MD",2022,0,0,0,0,0,0,0,0,0,0,0,0,0,0]
["MGMAAcademicAllAssistantMDPA: Emergency MedicineL","PA: Emergency Medicine","Code","MGMA","Academic","All","Assistant","MD",2022,0,0,0,0,0,0,0,0,0,0,0,0,0,0]
["MGMAAcademicAllAssistantMDPA: EndocrinologyL","PA: Endocrinology","Code","MGMA","Academic","All","Assistant","MD",2022,0,0,0,0,0,0,0,0,0,0,0,0,0,0]
["MGMAAcademicAllAssistantMDPA: GastroenterologyL","PA: Gastroenterology","Code","MGMA","Academic","All","Assistant","MD",2022,0,0,0,0,0,0,0,0,0,0,0,0,0,0]
["MGMAAcademicAllAssistantMDPA: Hematology/OncologyL","PA: Hematology/Oncology","Code","MGMA","Academic","All","Assistant","MD",2022,0,0,0,0,0,0,0,0,0,0,0,0,0,0]
["MGMAAcademicAllAssistantMDPA: Hospitalist (Nonsurgical/Nonprimary Care)L","PA: Hospitalist (Nonsurgical/Nonprimary Care)","Code","MGMA","Academic","All","Assistant","MD",2022,0,0,0,0,0,0,0,0,0,0,0,0,0,0]
["MGMAAcademicAllAssistantMDPA: Infectious DiseaseL","PA: Infectious Disease","Code","MGMA","Academic","All","Assistant","MD",2022,0,0,0,0,0,0,0,0,0,0,0,0,0,0]
["MGMAAcademicAllAssistantMDPA: NephrologyL","PA: Nephrology","Code","MGMA","Academic","All","Assistant","MD",2022,0,0,0,0,0,0,0,0,0,0,0,0,0,0]
["MGMAAcademicAllAssistantMDPA: NeurologyL","PA: Neurology","Code","MGMA","Academic","All","Assistant","MD",2022,0,0,0,0,0,0,0,0,0,0,0,0,0,0]
["MGMAAcademicAllAssistantMDPA: Orthopedic (Nonsurgical/Nonprimary Care)L","PA: Orthopedic (Nonsurgical/Nonprimary Care)","Code","MGMA","Academic","All","Assistant","MD",2022,0,0,0,0,0,0,0,0,0,0,0,0,0,0]
["MGMAAcademicAllAssistantMDPA: PsychiatryL","PA: Psychiatry","Code","MGMA","Academic","All","Assistant","MD",2022,0,0,0,0,0,0,0,0,0,0,0,0,0,0]
["MGMAAcademicAllAssistantMDPA: Pulmonary MedicineL","PA: Pulmonary Medicine","Code","MGMA","Academic","All","Assistant","MD",2022,0,0,0,0,0,0,0,0,0,0,0,0,0,0]
["MGMAAcademicAllAssistantMDPA: RheumatologyL","PA: Rheumatology","Code","MGMA","Academic","All","Assistant","MD",2022,0,0,0,0,0,0,0,0,0,0,0,0,0,0]
["MGMAAcademicAllAssistantMDPsychologistL","Psychologist","Code","MGMA","Academic","All","Assistant","MD",2022,"$101,513",103071.2,104629.4,106187.6,107745.8,"$109,304",112285.6,115267.2,118248.8,121230.39999999999,"$124,212",127835.6,131459.20000000001,"$142,330"]
["MGMAAcademicAllAssistantMDResearchL","Research","Code","MGMA","Academic","All","Assistant","MD",2022,"$72,424",76867.8,81311.600000000006,85755.4,90199.2,"$94,643",99052.4,103461.8,107871.2,112280.6,"$116,690",120675.2,124660.4,"$136,616"]
["MGMAAcademicAllAssistantMDResearch: MDL","Research: MD","Code","MGMA","Academic","All","Assistant","MD",2022,0,0,0,0,0,0,0,0,0,0,0,0,0,0]
["MGMAAcademicAllAssociateMDAllergy/ImmunologyL","Allergy/Immunology","Code","MGMA","Academic","All","Associate","MD",2022,"$226,064",233251.20000000001,240438.39999999999,247625.60000000001,254812.79999999999,"$262,000",271225.8,280451.59999999998,289677.40000000002,298903.2,"$308,129",313015.40000000002,317901.8,"$332,561"]
["MGMAAcademicAllAssociateMDAnesthesiologyL","Anesthesiology","Code","MGMA","Academic","All","Associate","MD",2022,"$392,524",402837.8,413151.6,423465.4,433779.20000000001,"$444,093",457908.6,471724.2,485539.8,499355.4,"$513,171",524942.4,536713.80000000005,"$572,028"]
["MGMAAcademicAllAssociateMDAnesthesiology: CardiologyL","Anesthesiology: Cardiology","Code","MGMA","Academic","All","Associate","MD",2022,0,0,0,0,0,0,0,0,0,0,0,0,0,0]
["MGMAAcademicAllAssociateMDAnesthesiology: Pain ManagementL","Anesthesiology: Pain Management","Code","MGMA","Academic","All","Associate","MD",2022,"$344,796",356274.8,367753.6,379232.4,390711.2,"$402,190",416259.8,430329.59999999998,444399.4,458469.2,"$472,539",514808.2,557077.4,"$683,885"]
["MGMAAcademicAllAssociateMDCardiology: ElectrophysiologyL","Cardiology: Electrophysiology","Code","MGMA","Academic","All","Associate","MD",2022,"$369,763",386095.6,402428.2,418760.8,435093.4,"$451,426",469349.8,487273.6,505197.4,523121.2,"$541,045",567059.4,593073.80000000005,"$671,117"]
["MGMAAcademicAllAssociateMDCardiology: InvasiveL","Cardiology: Invasive","Code","MGMA","Academic","All","Associate","MD",2022,"$295,014",310061.2,325108.40000000002,340155.6,355202.8,"$370,250",388270.8,406291.6,424312.4,442333.2,"$460,354",475999.6,491645.2,"$538,582"]
["MGMAAcademicAllAssociateMDCardiology: Invasive-InterventionalL","Cardiology: Invasive-Interventional","Code","MGMA","Academic","All","Associate","MD",2022,"$410,817",423983.6,437150.2,450316.79999999999,463483.4,"$476,650",489457.8,502265.59999999998,515073.4,527881.19999999995,"$540,689",563137.80000000005,585586.6,"$652,933"]
["MGMAAcademicAllAssociateMDCardiology: NoninvasiveL","Cardiology: Noninvasive","Code","MGMA","Academic","All","Associate","MD",2022,"$307,447",318037.59999999998,328628.2,339218.8,349809.4,"$360,400",376020,391640,407260,422880,"$438,500",458409,478318,"$538,045"]
["MGMAAcademicAllAssociateMDClinical PharmacologyL","Clinical Pharmacology","Code","MGMA","Academic","All","Associate","MD",2022,0,0,0,0,0,0,0,0,0,0,0,0,0,0]
["MGMAAcademicAllAssociateMDCritical Care: IntensivistL","Critical Care: Intensivist","Code","MGMA","Academic","All","Associate","MD",2022,"$305,809",316111.40000000002,326413.8,336716.2,347018.6,"$357,321",378144,398967,419790,440613,"$461,436",478747,496058,"$547,991"]
["MGMAAcademicAllAssociateMDDentistryL","Dentistry","Code","MGMA","Academic","All","Associate","MD",2022,0,0,0,0,0,0,0,0,0,0,0,0,0,0]
["MGMAAcademicAllAssociateMDDermatologyL","Dermatology","Code","MGMA","Academic","All","Associate","MD",2022,"$311,986",324676.2,337366.4,350056.6,362746.8,"$375,437",393423.6,411410.2,429396.8,447383.4,"$465,370",491391.4,517412.8,"$595,477"]
["MGMAAcademicAllAssociateMDDermatology: DermatopathologyL","Dermatology: Dermatopathology","Code","MGMA","Academic","All","Associate","MD",2022,0,0,0,0,0,0,0,0,0,0,0,0,0,0]
["MGMAAcademicAllAssociateMDDermatology: Mohs SurgeryL","Dermatology: Mohs Surgery","Code","MGMA","Academic","All","Associate","MD",2022,"$551,707",577515.6,603324.19999999995,629132.80000000005,654941.4,"$680,750",707689.2,734628.4,761567.6,788506.8,"$815,446",844947.8,874449.6,"$962,955"]
["MGMAAcademicAllAssociateMDEmergency MedicineL","Emergency Medicine","Code","MGMA","Academic","All","Associate","MD",2022,"$304,395",311203.20000000001,318011.40000000002,324819.59999999998,331627.8,"$338,436",346226.4,354016.8,361807.2,369597.6,"$377,388",388542.4,399696.8,"$433,160"]
["MGMAAcademicAllAssociateMDEndocrinology/MetabolismL","Endocrinology/Metabolism","Code","MGMA","Academic","All","Associate","MD",2022,"$199,980",204406,208832,213258,217684,"$222,110",229112.4,236114.8,243117.2,250119.6,"$257,122",263306.2,269490.40000000002,"$288,043"]
["MGMAAcademicAllAssociateMDFamily Medicine (with OB)L","Family Medicine (with OB)","Code","MGMA","Academic","All","Associate","MD",2022,"$208,912",214985.8,221059.6,227133.4,233207.2,"$239,281",247800.6,256320.2,264839.8,273359.40000000002,"$281,879",287601.40000000002,293323.8,"$310,491"]
["MGMAAcademicAllAssociateMDFamily Medicine (without OB)L","Family Medicine (without OB)","Code","MGMA","Academic","All","Associate","MD",2022,"$205,494",211081,216668,222255,227842,"$233,429",238606.6,243784.2,248961.8,254139.4,"$259,317",266006.8,272696.59999999998,"$292,766"]
["MGMAAcademicAllAssociateMDFamily Medicine: Ambulatory Only (No Inpatient Work)L","Family Medicine: Ambulatory Only (No Inpatient Work)","Code","MGMA","Academic","All","Associate","MD",2022,0,0,0,0,0,0,0,0,0,0,0,0,0,0]
["MGMAAcademicAllAssociateMDFamily Medicine: Sports MedicineL","Family Medicine: Sports Medicine","Code","MGMA","Academic","All","Associate","MD",2022,"$257,769",265634.59999999998,273500.2,281365.8,289231.40000000002,"$297,097",313198.8,329300.59999999998,345402.4,361504.2,"$377,606",382390.2,387174.40000000002,"$401,527"]
["MGMAAcademicAllAssociateMDFamily Medicine: Urgent CareL","Family Medicine: Urgent Care","Code","MGMA","Academic","All","Associate","MD",2022,0,0,0,0,0,0,0,0,0,0,0,0,0,0]
["MGMAAcademicAllAssociateMDGastroenterologyL","Gastroenterology","Code","MGMA","Academic","All","Associate","MD",2022,"$317,452",331057.2,344662.4,358267.6,371872.8,"$385,478",405501.8,425525.6,445549.4,465573.2,"$485,597",506302.2,527007.4,"$589,123"]
["MGMAAcademicAllAssociateMDGastroenterology: HepatologyL","Gastroenterology: Hepatology","Code","MGMA","Academic","All","Associate","MD",2022,"$340,323",349461.6,358600.2,367738.8,376877.4,"$386,016",399845.8,413675.6,427505.4,441335.2,"$455,165",458778.2,462391.4,"$473,231"]
["MGMAAcademicAllAssociateMDGeneticsL","Genetics","Code","MGMA","Academic","All","Associate","MD",2022,0,0,0,0,0,0,0,0,0,0,0,0,0,0]
["MGMAAcademicAllAssociateMDGeriatricsL","Geriatrics","Code","MGMA","Academic","All","Associate","MD",2022,"$221,249",223797.2,226345.4,228893.6,231441.8,"$233,990",242519,251048,259577,268106,"$276,635",281386.40000000002,286137.8,"$300,392"]
["MGMAAcademicAllAssociateMDHematology/OncologyL","Hematology/Oncology","Code","MGMA","Academic","All","Associate","MD",2022,"$281,322",290251.8,299181.59999999998,308111.40000000002,317041.2,"$325,971",339467.8,352964.6,366461.4,379958.2,"$393,455",406330.4,419205.8,"$457,832"]
["MGMAAcademicAllAssociateMDHematology/Oncology: Oncology (Only)L","Hematology/Oncology: Oncology (Only)","Code","MGMA","Academic","All","Associate","MD",2022,"$274,454",280744.40000000002,287034.8,293325.2,299615.59999999998,"$305,906",313120,320334,327548,334762,"$341,976",351054.6,360133.2,"$387,369"]
["MGMAAcademicAllAssociateMDHospice/Palliative CareL","Hospice/Palliative Care","Code","MGMA","Academic","All","Associate","MD",2022,"$235,594",239353.4,243112.8,246872.2,250631.6,"$254,391",263058.8,271726.59999999998,280394.40000000002,289062.2,"$297,730",299707.59999999998,301685.2,"$307,618"]
["MGMAAcademicAllAssociateMDHospitalist: Family MedicineL","Hospitalist: Family Medicine","Code","MGMA","Academic","All","Associate","MD",2022,0,0,0,0,0,0,0,0,0,0,0,0,0,0]
["MGMAAcademicAllAssociateMDHospitalist: Internal MedicineL","Hospitalist: Internal Medicine","Code","MGMA","Academic","All","Associate","MD",2022,"$243,872",249020.2,254168.4,259316.6,264464.8,"$269,613",277035.59999999998,284458.2,291880.8,299303.40000000002,"$306,726",320363.40000000002,334000.8,"$374,913"]
["MGMAAcademicAllAssociateMDHospitalist: NocturnistL","Hospitalist: Nocturnist","Code","MGMA","Academic","All","Associate","MD",2022,0,0,0,0,0,0,0,0,0,0,0,0,0,0]
["MGMAAcademicAllAssociateMDHyperbaric Medicine/Wound CareL","Hyperbaric Medicine/Wound Care","Code","MGMA","Academic","All","Associate","MD",2022,0,0,0,0,0,0,0,0,0,0,0,0,0,0]
["MGMAAcademicAllAssociateMDInfectious DiseaseL","Infectious Disease","Code","MGMA","Academic","All","Associate","MD",2022,"$202,600",205503.2,208406.39999999999,211309.6,214212.8,"$217,116",221080.4,225044.8,229009.2,232973.6,"$236,938",248213.4,259488.8,"$293,315"]
["MGMAAcademicAllAssociateMDInternal Medicine: GeneralL","Internal Medicine: General","Code","MGMA","Academic","All","Associate","MD",2022,"$222,124",227739,233354,238969,244584,"$250,199",259051.6,267904.2,276756.8,285609.40000000002,"$294,462",308176.2,321890.40000000002,"$363,033"]
["MGMAAcademicAllAssociateMDInternal Medicine: Ambulatory Only (No Inpatient Work)L","Internal Medicine: Ambulatory Only (No Inpatient Work)","Code","MGMA","Academic","All","Associate","MD",2022,"$224,612",240130.8,255649.6,271168.40000000002,286687.2,"$302,206",312927,323648,334369,345090,"$355,811",369501.2,383191.4,"$424,262"]
["MGMAAcademicAllAssociateMDNephrologyL","Nephrology","Code","MGMA","Academic","All","Associate","MD",2022,"$244,613",249720.6,254828.2,259935.8,265043.40000000002,"$270,151",278315.40000000002,286479.8,294644.2,302808.59999999998,"$310,973",321302.8,331632.59999999998,"$362,622"]
["MGMAAcademicAllAssociateMDNephrology: TransplantL","Nephrology: Transplant","Code","MGMA","Academic","All","Associate","MD",2022,0,0,0,0,0,0,0,0,0,0,0,0,0,0]
["MGMAAcademicAllAssociateMDNeurologyL","Neurology","Code","MGMA","Academic","All","Associate","MD",2022,"$222,599",228019.4,233439.8,238860.2,244280.6,"$249,701",261056.4,272411.8,283767.2,295122.59999999998,"$306,478",317492,328506,"$361,548"]
["MGMAAcademicAllAssociateMDNeurology: Epilepsy/EEGL","Neurology: Epilepsy/EEG","Code","MGMA","Academic","All","Associate","MD",2022,"$235,821",243441.2,251061.4,258681.60000000001,266301.8,"$273,922",277716.40000000002,281510.8,285305.2,289099.59999999998,"$292,894",303409.40000000002,313924.8,"$345,471"]
["MGMAAcademicAllAssociateMDNeurology: Neurocritical CareL","Neurology: Neurocritical Care","Code","MGMA","Academic","All","Associate","MD",2022,0,0,0,0,0,0,0,0,0,0,0,0,0,0]
["MGMAAcademicAllAssociateMDNeurology: Neuromuscular MedicineL","Neurology: Neuromuscular Medicine","Code","MGMA","Academic","All","Associate","MD",2022,"$220,386",227217.2,234048.4,240879.6,247710.8,"$254,542",259773.4,265004.79999999999,270236.2,275467.59999999998,"$280,699",293073.59999999998,305448.2,"$342,572"]
["MGMAAcademicAllAssociateMDNeurology: Stroke MedicineL","Neurology: Stroke Medicine","Code","MGMA","Academic","All","Associate","MD",2022,"$258,130",267293,276456,285619,294782,"$303,945",319415.40000000002,334885.8,350356.2,365826.6,"$381,297",414623.4,447949.8,"$547,929"]
["MGMAAcademicAllAssociateMDObstetrics/Gynecology: GeneralL","Obstetrics/Gynecology: General","Code","MGMA","Academic","All","Associate","MD",2022,"$287,170",297455.2,307740.40000000002,318025.59999999998,328310.8,"$338,596",348940.6,359285.2,369629.8,379974.40000000002,"$390,319",410374.40000000002,430429.8,"$490,596"]
[{"$f":"D771&E771&F771&G771&H771&B771&\"L\"","v":"MGMAAcademicAllAssociateMDOB/GYN: Gynecology (Only)L"},"OB/GYN: Gynecology (Only)","Code","MGMA","Academic","All","Associate","MD",2022,"$242,222",249453.2,{"$f":"((O771-J771)/25)*10 + J771","v":256684.4},{"$f":"((O771-J771)/25)*15 + J771","v":263915.59999999998},{"$f":"((O771-J771)/25)*20 + J771","v":271146.8},"$278,378",{"$f":"((T771-O771)/25)*5 + O771","v":291176.40000000002},{"$f":"((T771-O771)/25)*10 + O771","v":303974.8},{"$f":"((T771-O771)/25)*15 + O771","v":316773.2},{"$f":"((T771-O771)/25)*20 + O771","v":329571.59999999998},"$342,370",{"$f":"((W771-T771)/25)*5 + T771","v":383498.8},{"$f":"((W771-T771)/25)*10 + T771","v":424627.6},"$548,014"]
["MGMAAcademicAllAssociateMDOB/GYN: Gynecological OncologyL","OB/GYN: Gynecological Oncology","Code","MGMA","Academic","All","Associate","MD",2022,"$384,617",397772.79999999999,410928.6,424084.4,437240.2,"$450,396",465209.59999999998,480023.2,494836.8,509650.4,"$524,464",560723.4,596982.80000000005,"$705,761"]
["MGMAAcademicAllAssociateMDOB/GYN: Maternal and Fetal MedicineL","OB/GYN: Maternal and Fetal Medicine","Code","MGMA","Academic","All","Associate","MD",2022,"$421,726",{"$f":"((O773-J773)/25)*5 + J773","v":429625.59999999998},437525.2,445424.8,453324.4,"$461,224",475179.2,489134.4,503089.6,517044.8,"$531,000",553638.80000000005,576277.6,"$644,194"]
["MGMAAcademicAllAssociateMDOB/GYN: Minimally Invasive Gynecologic SurgeryL","OB/GYN: Minimally Invasive Gynecologic Surgery","Code","MGMA","Academic","All","Associate","MD",2022,0,0,0,0,0,0,0,0,0,0,0,0,0,0]
["MGMAAcademicAllAssociateMDOB/GYN: Reproductive EndocrinologyL","OB/GYN: Reproductive Endocrinology","Code","MGMA","Academic","All","Associate","MD",2022,"$242,784",270356,297928,325500,353072,"$380,644",389479,398314,407149,415984,"$424,819",433946.4,443073.8,"$470,456"]
["MGMAAcademicAllAssociateMDOB/GYN: UrogynecologyL","OB/GYN: Urogynecology","Code","MGMA","Academic","All","Associate","MD",2022,"$307,007",312907,318807,324707,330607,"$336,507",344382.2,352257.4,360132.6,368007.8,"$375,883",393652,411421,"$464,728"]
["MGMAAcademicAllAssociateMDOccupational MedicineL","Occupational Medicine","Code","MGMA","Academic","All","Associate","MD",2022,0,0,0,0,0,0,0,0,0,0,0,0,0,0]
["MGMAAcademicAllAssociateMDOphthalmologyL","Ophthalmology","Code","MGMA","Academic","All","Associate","MD",2022,"$276,927",295480.2,314033.40000000002,332586.59999999998,351139.8,"$369,693",384976,400259,415542,430825,"$446,108",482204.2,518300.4,"$626,589"]
["MGMAAcademicAllAssociateMDOphthalmology: Corneal and Refractive SurgeryL","Ophthalmology: Corneal and Refractive Surgery","Code","MGMA","Academic","All","Associate","MD",2022,"$311,367",330705.40000000002,350043.8,369382.2,388720.6,"$408,059",431396.6,454734.2,478071.8,501409.4,"$524,747",563725,602703,"$719,637"]
["MGMAAcademicAllAssociateMDOphthalmology: GlaucomaL","Ophthalmology: Glaucoma","Code","MGMA","Academic","All","Associate","MD",2022,"$269,199",286711,304223,321735,339247,"$356,759",419469.6,482180.2,544890.80000000005,607601.4,"$670,312",676321.4,682330.8,"$700,359"]
["MGMAAcademicAllAssociateMDOphthalmology: NeurologyL","Ophthalmology: Neurology","Code","MGMA","Academic","All","Associate","MD",2022,0,0,0,0,0,0,0,0,0,0,0,0,0,0]
["MGMAAcademicAllAssociateMDOphthalmology: Oculoplastic and Reconstructive SurgeryL","Ophthalmology: Oculoplastic and Reconstructive Surgery","Code","MGMA","Academic","All","Associate","MD",2022,"$363,232",381450.4,399668.8,417887.2,436105.6,"$454,324",481586.8,508849.6,536112.4,563375.19999999995,"$590,638",607947,625256,"$677,183"]
["MGMAAcademicAllAssociateMDOphthalmology: RetinaL","Ophthalmology: Retina","Code","MGMA","Academic","All","Associate","MD",2022,"$423,321",446410,469499,492588,515677,"$538,766",560259.4,581752.80000000005,603246.19999999995,624739.6,"$646,233",663694.6,681156.2,"$733,541"]
["MGMAAcademicAllAssociateMDOrthopedic (Nonsurgical)L","Orthopedic (Nonsurgical)","Code","MGMA","Academic","All","Associate","MD",2022,0,0,0,0,0,0,0,0,0,0,0,0,0,0]
["MGMAAcademicAllAssociateMDOrthopedic Surgery: GeneralL","Orthopedic Surgery: General","Code","MGMA","Academic","All","Associate","MD",2022,"$469,117",500291.6,531466.19999999995,562640.80000000005,593815.4,"$624,990",678299.8,731609.59999999998,784919.4,838229.2,"$891,539",944966.8,998394.6,"$1,158,678"]
["MGMAAcademicAllAssociateMDOrthopedic Surgery: Foot and AnkleL","Orthopedic Surgery: Foot and Ankle","Code","MGMA","Academic","All","Associate","MD",2022,"$450,000",471085,492170,513255,534340,"$555,425",661196.6,766968.2,872739.8,978511.4,"$1,084,283",1112773.6000000001,1141264.2,"$1,226,736"]
["MGMAAcademicAllAssociateMDOrthopedic Surgery: HandL","Orthopedic Surgery: Hand","Code","MGMA","Academic","All","Associate","MD",2022,"$519,874",548815.80000000005,577757.6,606699.4,635641.19999999995,"$664,583",709140,753697,798254,842811,"$887,368",934124.6,980881.2,"$1,121,151"]
["MGMAAcademicAllAssociateMDOrthopedic Surgery: Hip and JointL","Orthopedic Surgery: Hip and Joint","Code","MGMA","Academic","All","Associate","MD",2022,"$568,190",616869.6,665549.19999999995,714228.8,762908.4,"$811,588",863896.4,916204.8,968513.2,1020821.6,"$1,073,130",1179398.3999999999,1285666.8,"$1,604,472"]
["MGMAAcademicAllAssociateMDOrthopedic Surgery: OncologyL","Orthopedic Surgery: Oncology","Code","MGMA","Academic","All","Associate","MD",2022,0,0,0,0,0,0,0,0,0,0,0,0,0,0]
["MGMAAcademicAllAssociateMDOrthopedic Surgery: Shoulder/ElbowL","Orthopedic Surgery: Shoulder/Elbow","Code","MGMA","Academic","All","Associate","MD",2022,0,0,0,0,0,0,0,0,0,0,0,0,0,0]
["MGMAAcademicAllAssociateMDOrthopedic Surgery: SpineL","Orthopedic Surgery: Spine","Code","MGMA","Academic","All","Associate","MD",2022,"$573,040",607665.80000000005,642291.6,676917.4,711543.2,"$746,169",814535.2,882901.4,951267.6,1019633.8,"$1,088,000",1107810.8,1127621.6000000001,"$1,187,054"]
["MGMAAcademicAllAssociateMDOrthopedic Surgery: Sports MedicineL","Orthopedic Surgery: Sports Medicine","Code","MGMA","Academic","All","Associate","MD",2022,"$577,189",608426.19999999995,639663.4,670900.6,702137.8,"$733,375",844849.4,956323.8,1067798.2,1179272.6000000001,"$1,290,747",1364073.6,1437400.2,"$1,657,380"]
["MGMAAcademicAllAssociateMDOrthopedic Surgery: TraumaL","Orthopedic Surgery: Trauma","Code","MGMA","Academic","All","Associate","MD",2022,"$658,647",670887.6,683128.2,695368.8,707609.4,"$719,850",804007.4,888164.8,972322.2,1056479.6000000001,"$1,140,637",1213154.8,1285672.6000000001,"$1,503,226"]
["MGMAAcademicAllAssociateMDOtorhinolaryngologyL","Otorhinolaryngology","Code","MGMA","Academic","All","Associate","MD",2022,"$357,266",370787.4,384308.8,397830.2,411351.6,"$424,873",446520.2,468167.4,489814.6,511461.8,"$533,109",567493.19999999995,601877.4,"$705,030"]
["MGMAAcademicAllAssociateMDPain Management: NonanesthesiaL","Pain Management: Nonanesthesia","Code","MGMA","Academic","All","Associate","MD",2022,0,0,0,0,0,0,0,0,0,0,0,0,0,0]
["MGMAAcademicAllAssociateMDPathology: Anatomic and ClinicalL","Pathology: Anatomic and Clinical","Code","MGMA","Academic","All","Associate","MD",2022,"$192,324",224652.2,256980.4,289308.59999999998,321636.8,"$353,965",355591.8,357218.6,358845.4,360472.2,"$362,099",377290.2,392481.4,"$438,055"]
["MGMAAcademicAllAssociateMDPathology: AnatomicL","Pathology: Anatomic","Code","MGMA","Academic","All","Associate","MD",2022,"$258,807",263585,268363,273141,277919,"$282,697",288019.40000000002,293341.8,298664.2,303986.59999999998,"$309,309",316825.8,324342.59999999998,"$346,893"]
["MGMAAcademicAllAssociateMDPathology: Anatomic-AutopsyL","Pathology: Anatomic-Autopsy","Code","MGMA","Academic","All","Associate","MD",2022,0,0,0,0,0,0,0,0,0,0,0,0,0,0]
["MGMAAcademicAllAssociateMDPathology: Anatomic-CytopathologyL","Pathology: Anatomic-Cytopathology","Code","MGMA","Academic","All","Associate","MD",2022,0,0,0,0,0,0,0,0,0,0,0,0,0,0]
["MGMAAcademicAllAssociateMDPathology: Anatomic-NeuropathologyL","Pathology: Anatomic-Neuropathology","Code","MGMA","Academic","All","Associate","MD",2022,0,0,0,0,0,0,0,0,0,0,0,0,0,0]
["MGMAAcademicAllAssociateMDPathology: Anatomic-RenalL","Pathology: Anatomic-Renal","Code","MGMA","Academic","All","Associate","MD",2022,0,0,0,0,0,0,0,0,0,0,0,0,0,0]
["MGMAAcademicAllAssociateMDPathology: ClinicalL","Pathology: Clinical","Code","MGMA","Academic","All","Associate","MD",2022,"$259,411",264593.59999999998,269776.2,274958.8,280141.40000000002,"$285,324",290281.8,295239.59999999998,300197.40000000002,305155.20000000001,"$310,113",320163.20000000001,330213.40000000002,"$360,364"]
["MGMAAcademicAllAssociateMDPathology: Clinical-HematopathologyL","Pathology: Clinical-Hematopathology","Code","MGMA","Academic","All","Associate","MD",2022,0,0,0,0,0,0,0,0,0,0,0,0,0,0]
["MGMAAcademicAllAssociateMDPathology: Clinical-Transfusion MedicineL","Pathology: Clinical-Transfusion Medicine","Code","MGMA","Academic","All","Associate","MD",2022,0,0,0,0,0,0,0,0,0,0,0,0,0,0]
["MGMAAcademicAllAssociateMDPathology: SurgicalL","Pathology: Surgical","Code","MGMA","Academic","All","Associate","MD",2022,"$254,921",259190,263459,267728,271997,"$276,266",282306,288346,294386,300426,"$306,466",311073.59999999998,315681.2,"$329,504"]
["MGMAAcademicAllAssociateMDPediatrics: GeneralL","Pediatrics: General","Code","MGMA","Academic","All","Associate","MD",2022,"$187,632",192298.4,196964.8,201631.2,206297.60000000001,"$210,964",219988.4,229012.8,238037.2,247061.6,"$256,086",268846.2,281606.40000000002,"$319,887"]
["MGMAAcademicAllAssociateMDPediatrics: Adolescent MedicineL","Pediatrics: Adolescent Medicine","Code","MGMA","Academic","All","Associate","MD",2022,"$186,619",191965,197311,202657,208003,"$213,349",216230,219111,221992,224873,"$227,754",231595.8,235437.6,"$246,963"]
["MGMAAcademicAllAssociateMDPediatrics: Allergy/ImmunologyL","Pediatrics: Allergy/Immunology","Code","MGMA","Academic","All","Associate","MD",2022,"$201,170",202952,204734,206516,208298,"$210,080",210982.39999999999,211884.79999999999,212787.20000000001,213689.60000000001,"$214,592",227174.2,239756.4,"$277,503"]
["MGMAAcademicAllAssociateMDPediatrics: AnesthesiologyL","Pediatrics: Anesthesiology","Code","MGMA","Academic","All","Associate","MD",2022,"$426,193",433612.2,441031.4,448450.6,455869.8,"$463,289",475335.4,487381.8,499428.2,511474.6,"$523,521",535500.80000000005,547480.6,"$583,420"]
["MGMAAcademicAllAssociateMDPediatrics: Bone Marrow TransplantL","Pediatrics: Bone Marrow Transplant","Code","MGMA","Academic","All","Associate","MD",2022,0,0,0,0,0,0,0,0,0,0,0,0,0,0]
["MGMAAcademicAllAssociateMDPediatrics: CardiologyL","Pediatrics: Cardiology","Code","MGMA","Academic","All","Associate","MD",2022,"$278,571",284025.40000000002,289479.8,294934.2,300388.59999999998,"$305,843",315759.2,325675.40000000002,335591.6,345507.8,"$355,424",362548.2,369672.4,"$391,045"]
["MGMAAcademicAllAssociateMDPediatrics: Cardiovascular SurgeryL","Pediatrics: Cardiovascular Surgery","Code","MGMA","Academic","All","Associate","MD",2022,0,0,0,0,0,0,0,0,0,0,0,0,0,0]
["MGMAAcademicAllAssociateMDPediatrics: Child DevelopmentL","Pediatrics: Child Development","Code","MGMA","Academic","All","Associate","MD",2022,"$170,581",176145.2,181709.4,187273.60000000001,192837.8,"$198,402",216238.2,234074.4,251910.6,269746.8,"$287,583",294657.40000000002,301731.8,"$322,955"]
["MGMAAcademicAllAssociateMDPediatrics: Critical Care/IntensivistL","Pediatrics: Critical Care/Intensivist","Code","MGMA","Academic","All","Associate","MD",2022,"$272,413",279237.59999999998,286062.2,292886.8,299711.40000000002,"$306,536",318752.2,330968.40000000002,343184.6,355400.8,"$367,617",382047.8,396478.6,"$439,771"]
["MGMAAcademicAllAssociateMDPediatrics: DermatologyL","Pediatrics: Dermatology","Code","MGMA","Academic","All","Associate","MD",2022,0,0,0,0,0,0,0,0,0,0,0,0,0,0]
["MGMAAcademicAllAssociateMDPediatrics: Emergency MedicineL","Pediatrics: Emergency Medicine","Code","MGMA","Academic","All","Associate","MD",2022,"$267,211",269811,272411,275011,277611,"$280,211",286256,292301,298346,304391,"$310,436",324675.59999999998,338915.2,"$381,634"]
["MGMAAcademicAllAssociateMDPediatrics: EndocrinologyL","Pediatrics: Endocrinology","Code","MGMA","Academic","All","Associate","MD",2022,"$186,528",188876.79999999999,191225.60000000001,193574.39999999999,195923.20000000001,"$198,272",202666.6,207061.2,211455.8,215850.4,"$220,245",223353,226461,"$235,785"]
["MGMAAcademicAllAssociateMDPediatrics: GastroenterologyL","Pediatrics: Gastroenterology","Code","MGMA","Academic","All","Associate","MD",2022,"$242,847",246596.2,250345.4,254094.6,257843.8,"$261,593",266362.59999999998,271132.2,275901.8,280671.40000000002,"$285,441",295826.2,306211.40000000002,"$337,367"]
["MGMAAcademicAllAssociateMDPediatrics: GeneticsL","Pediatrics: Genetics","Code","MGMA","Academic","All","Associate","MD",2022,"$199,013",200610.4,202207.8,203805.2,205402.6,"$207,000",217350,227700,238050,248400,"$258,750",262130.8,265511.59999999998,"$275,654"]
["MGMAAcademicAllAssociateMDPediatrics: Hematology/OncologyL","Pediatrics: Hematology/Oncology","Code","MGMA","Academic","All","Associate","MD",2022,"$208,792",212024,215256,218488,221720,"$224,952",231313.8,237675.6,244037.4,250399.2,"$256,761",263039.8,269318.59999999998,"$288,155"]
["MGMAAcademicAllAssociateMDPediatrics: HospitalistL","Pediatrics: Hospitalist","Code","MGMA","Academic","All","Associate","MD",2022,"$201,389",206223.2,211057.4,215891.6,220725.8,"$225,560",235894.39999999999,246228.8,256563.20000000001,266897.59999999998,"$277,232",285123.40000000002,293014.8,"$316,689"]
["MGMAAcademicAllAssociateMDPediatrics: Hospitalist-Internal MedicineL","Pediatrics: Hospitalist-Internal Medicine","Code","MGMA","Academic","All","Associate","MD",2022,0,0,0,0,0,0,0,0,0,0,0,0,0,0]
["MGMAAcademicAllAssociateMDPediatrics: Infectious DiseaseL","Pediatrics: Infectious Disease","Code","MGMA","Academic","All","Associate","MD",2022,"$180,370",182376.2,184382.4,186388.6,188394.8,"$190,401",192012.2,193623.4,195234.6,196845.8,"$198,457",208277.8,218098.6,"$247,561"]
["MGMAAcademicAllAssociateMDPediatrics: Internal MedicineL","Pediatrics: Internal Medicine","Code","MGMA","Academic","All","Associate","MD",2022,0,0,0,0,0,0,0,0,0,0,0,0,0,0]
["MGMAAcademicAllAssociateMDPediatrics: Neonatal MedicineL","Pediatrics: Neonatal Medicine","Code","MGMA","Academic","All","Associate","MD",2022,"$272,585",282043.2,291501.40000000002,300959.59999999998,310417.8,"$319,876",333599,347322,361045,374768,"$388,491",400657.6,412824.2,"$449,324"]
["MGMAAcademicAllAssociateMDPediatrics: NephrologyL","Pediatrics: Nephrology","Code","MGMA","Academic","All","Associate","MD",2022,"$201,913",204534.6,207156.2,209777.8,212399.4,"$215,021",222962.2,230903.4,238844.6,246785.8,"$254,727",264314.40000000002,273901.8,"$302,664"]
["MGMAAcademicAllAssociateMDPediatrics: NeurologyL","Pediatrics: Neurology","Code","MGMA","Academic","All","Associate","MD",2022,"$242,731",245903,249075,252247,255419,"$258,591",265702.2,272813.40000000002,279924.59999999998,287035.8,"$294,147",298951.59999999998,303756.2,"$318,170"]
["MGMAAcademicAllAssociateMDPediatrics: NeurosurgeryL","Pediatrics: Neurosurgery","Code","MGMA","Academic","All","Associate","MD",2022,"$599,400",606588.4,613776.80000000005,620965.19999999995,628153.59999999998,"$635,342",662224.4,689106.8,715989.2,742871.6,"$769,754",856858.4,943962.8,"$1,205,276"]
["MGMAAcademicAllAssociateMDPediatrics: OphthalmologyL","Pediatrics: Ophthalmology","Code","MGMA","Academic","All","Associate","MD",2022,0,0,0,0,0,0,0,0,0,0,0,0,0,0]
["MGMAAcademicAllAssociateMDPediatrics: Orthopedic SurgeryL","Pediatrics: Orthopedic Surgery","Code","MGMA","Academic","All","Associate","MD",2022,"$420,600",447334.8,474069.6,500804.4,527539.19999999995,"$554,274",612166.19999999995,670058.4,727950.6,785842.8,"$843,735",904632.6,965530.2,"$1,148,223"]
["MGMAAcademicAllAssociateMDPediatrics: OtorhinolaryngologyL","Pediatrics: Otorhinolaryngology","Code","MGMA","Academic","All","Associate","MD",2022,"$375,000",387804,400608,413412,426216,"$439,020",452790.6,466561.2,480331.8,494102.4,"$507,873",518899.6,529926.19999999995,"$563,006"]
["MGMAAcademicAllAssociateMDPediatrics: Plastic and Reconstruction SurgeryL","Pediatrics: Plastic and Reconstruction Surgery","Code","MGMA","Academic","All","Associate","MD",2022,0,0,0,0,0,0,0,0,0,0,0,0,0,0]
["MGMAAcademicAllAssociateMDPediatrics: PulmonologyL","Pediatrics: Pulmonology","Code","MGMA","Academic","All","Associate","MD",2022,"$205,014",207831.2,210648.4,213465.60000000001,216282.8,"$219,100",224019.4,228938.8,233858.2,238777.60000000001,"$243,697",250921,258145,"$279,817"]
["MGMAAcademicAllAssociateMDPediatrics: RadiologyL","Pediatrics: Radiology","Code","MGMA","Academic","All","Associate","MD",2022,"$413,545",429470,445395,461320,477245,"$493,170",500158.4,507146.8,514135.2,521123.6,"$528,112",542783.6,557455.19999999995,"$601,470"]
[{"$f":"D835&E835&F835&G835&H835&B835&\"L\"","v":"MGMAAcademicAllAssociateMDPediatrics: RheumatologyL"},"Pediatrics: Rheumatology","Code","MGMA","Academic","All","Associate","MD",2022,"$205,550",208609.4,{"$f":"((O835-J835)/25)*10 + J835","v":211668.8},{"$f":"((O835-J835)/25)*15 + J835","v":214728.2},{"$f":"((O835-J835)/25)*20 + J835","v":217787.6},"$220,847",{"$f":"((T835-O835)/25)*5 + O835","v":224606.6},{"$f":"((T835-O835)/25)*10 + O835","v":228366.2},{"$f":"((T835-O835)/25)*15 + O835","v":232125.8},{"$f":"((T835-O835)/25)*20 + O835","v":235885.4},"$239,645",{"$f":"((W835-T835)/25)*5 + T835","v":259320.4},{"$f":"((W835-T835)/25)*10 + T835","v":278995.8},"$338,022"]
["MGMAAcademicAllAssociateMDPediatrics: Sports MedicineL","Pediatrics: Sports Medicine","Code","MGMA","Academic","All","Associate","MD",2022,0,0,0,0,0,0,0,0,0,0,0,0,0,0]
["MGMAAcademicAllAssociateMDPediatrics: SurgeryL","Pediatrics: Surgery","Code","MGMA","Academic","All","Associate","MD",2022,"$502,604",{"$f":"((O837-J837)/25)*5 + J837","v":519779},536954,554129,571304,"$588,479",603283.19999999995,618087.4,632891.6,647695.80000000005,"$662,500",687949.4,713398.8,"$789,747"]
["MGMAAcademicAllAssociateMDPediatrics: Urgent CareL","Pediatrics: Urgent Care","Code","MGMA","Academic","All","Associate","MD",2022,0,0,0,0,0,0,0,0,0,0,0,0,0,0]
["MGMAAcademicAllAssociateMDPediatrics: UrologyL","Pediatrics: Urology","Code","MGMA","Academic","All","Associate","MD",2022,"$456,719",466255,475791,485327,494863,"$504,399",515376.6,526354.19999999995,537331.80000000005,548309.4,"$559,287",580389,601491,"$664,797"]
["MGMAAcademicAllAssociateMDPhysiatry (Physical Medicine and Rehabilitation)L","Physiatry (Physical Medicine and Rehabilitation)","Code","MGMA","Academic","All","Associate","MD",2022,"$236,258",243555.6,250853.2,258150.8,265448.40000000002,"$272,746",284259.59999999998,295773.2,307286.8,318800.40000000002,"$330,314",341268.8,352223.6,"$385,088"]
["MGMAAcademicAllAssociateMDPodiatry: GeneralL","Podiatry: General","Code","MGMA","Academic","All","Associate","MD",2022,0,0,0,0,0,0,0,0,0,0,0,0,0,0]
["MGMAAcademicAllAssociateMDPodiatry: Surgery-Foot and AnkleL","Podiatry: Surgery-Foot and Ankle","Code","MGMA","Academic","All","Associate","MD",2022,0,0,0,0,0,0,0,0,0,0,0,0,0,0]
["MGMAAcademicAllAssociateMDPsychiatry: GeneralL","Psychiatry: General","Code","MGMA","Academic","All","Associate","MD",2022,"$220,501",226323.8,232146.6,237969.4,243792.2,"$249,615",256268.6,262922.2,269575.8,276229.40000000002,"$282,883",290644,298405,"$321,688"]
["MGMAAcademicAllAssociateMDPsychiatry: Addiction MedicineL","Psychiatry: Addiction Medicine","Code","MGMA","Academic","All","Associate","MD",2022,0,0,0,0,0,0,0,0,0,0,0,0,0,0]
["MGMAAcademicAllAssociateMDPsychiatry: Behavioral MedicineL","Psychiatry: Behavioral Medicine","Code","MGMA","Academic","All","Associate","MD",2022,0,0,0,0,0,0,0,0,0,0,0,0,0,0]
["MGMAAcademicAllAssociateMDPsychiatry: Chemical DependencyL","Psychiatry: Chemical Dependency","Code","MGMA","Academic","All","Associate","MD",2022,0,0,0,0,0,0,0,0,0,0,0,0,0,0]
["MGMAAcademicAllAssociateMDPsychiatry: Child and AdolescentL","Psychiatry: Child and Adolescent","Code","MGMA","Academic","All","Associate","MD",2022,"$213,130",219364.4,225598.8,231833.2,238067.6,"$244,302",252517.4,260732.79999999999,268948.2,277163.59999999998,"$285,379",288659.20000000001,291939.40000000002,"$301,780"]
["MGMAAcademicAllAssociateMDPsychiatry: ForensicL","Psychiatry: Forensic","Code","MGMA","Academic","All","Associate","MD",2022,0,0,0,0,0,0,0,0,0,0,0,0,0,0]
["MGMAAcademicAllAssociateMDPsychiatry: GeriatricL","Psychiatry: Geriatric","Code","MGMA","Academic","All","Associate","MD",2022,0,0,0,0,0,0,0,0,0,0,0,0,0,0]
["MGMAAcademicAllAssociateMDPulmonary Medicine: GeneralL","Pulmonary Medicine: General","Code","MGMA","Academic","All","Associate","MD",2022,"$247,290",252625.8,257961.60000000001,263297.40000000002,268633.2,"$273,969",285726,297483,309240,320997,"$332,754",347883,363012,"$408,399"]
["MGMAAcademicAllAssociateMDPulmonary Medicine: Critical CareL","Pulmonary Medicine: Critical Care","Code","MGMA","Academic","All","Associate","MD",2022,"$266,680",275425.59999999998,284171.2,292916.8,301662.40000000002,"$310,408",322690,334972,347254,359536,"$371,818",382744.4,393670.8,"$426,450"]
["MGMAAcademicAllAssociateMDPulmonary Medicine: General and Critical CareL","Pulmonary Medicine: General and Critical Care","Code","MGMA","Academic","All","Associate","MD",2022,"$324,972",330204.40000000002,335436.79999999999,340669.2,345901.6,"$351,134",359211.2,367288.4,375365.6,383442.8,"$391,520",399397.8,407275.6,"$430,909"]
["MGMAAcademicAllAssociateMDRadiation OncologyL","Radiation Oncology","Code","MGMA","Academic","All","Associate","MD",2022,"$410,154",425067,439980,454893,469806,"$484,719",494098.8,503478.6,512858.4,522238.2,"$531,618",542963.19999999995,554308.4,"$588,344"]
["MGMAAcademicAllAssociateMDRadiology: InterventionalL","Radiology: Interventional","Code","MGMA","Academic","All","Associate","MD",2022,"$477,008",488610.2,500212.4,511814.6,523416.8,"$535,019",553203.19999999995,571387.4,589571.6,607755.80000000005,"$625,940",649699.6,673459.19999999995,"$744,738"]
["MGMAAcademicAllAssociateMDRadiology: DiagnosticL","Radiology: Diagnostic","Code","MGMA","Academic","All","Associate","MD",2022,"$381,684",393377.2,405070.4,416763.6,428456.8,"$440,150",453989,467828,481667,495506,"$509,345",519976.2,530607.4,"$562,501"]
["MGMAAcademicAllAssociateMDRadiology: NeurologicalL","Radiology: Neurological","Code","MGMA","Academic","All","Associate","MD",2022,"$429,645",434082.4,438519.8,442957.2,447394.6,"$451,832",456620.6,461409.2,466197.8,470986.4,"$475,775",484585.2,493395.4,"$519,826"]
["MGMAAcademicAllAssociateMDRadiology: Nuclear MedicineL","Radiology: Nuclear Medicine","Code","MGMA","Academic","All","Associate","MD",2022,"$361,872",373179.4,384486.8,395794.2,407101.6,"$418,409",435394.4,452379.8,469365.2,486350.6,"$503,336",507727.6,512119.2,"$525,294"]
["MGMAAcademicAllAssociateMDRheumatologyL","Rheumatology","Code","MGMA","Academic","All","Associate","MD",2022,"$212,811",217916.79999999999,223022.6,228128.4,233234.2,"$238,340",242736.6,247133.2,251529.8,255926.39999999999,"$260,323",267668.59999999998,275014.2,"$297,051"]
["MGMAAcademicAllAssociateMDSleep MedicineL","Sleep Medicine","Code","MGMA","Academic","All","Associate","MD",2022,"$240,244",247112.6,253981.2,260849.8,267718.40000000002,"$274,587",279815.8,285044.59999999998,290273.40000000002,295502.2,"$300,731",320611.8,340492.6,"$400,135"]
["MGMAAcademicAllAssociateMDSurgery: GeneralL","Surgery: General","Code","MGMA","Academic","All","Associate","MD",2022,"$386,894",394694.8,402495.6,410296.4,418097.2,"$425,898",434595.4,443292.8,451990.2,460687.6,"$469,385",481985.4,494585.8,"$532,387"]
["MGMAAcademicAllAssociateMDSurgery: BariatricL","Surgery: Bariatric","Code","MGMA","Academic","All","Associate","MD",2022,"$395,594",403458.6,411323.2,419187.8,427052.4,"$434,917",452034.6,469152.2,486269.8,503387.4,"$520,505",526666.4,532827.80000000005,"$551,312"]
["MGMAAcademicAllAssociateMDSurgery: BreastL","Surgery: Breast","Code","MGMA","Academic","All","Associate","MD",2022,"$349,390",364113,378836,393559,408282,"$423,005",433404,443803,454202,464601,"$475,000",487845.4,500690.8,"$539,227"]
["MGMAAcademicAllAssociateMDSurgery: CardiovascularL","Surgery: Cardiovascular","Code","MGMA","Academic","All","Associate","MD",2022,"$625,638",661521.6,697405.2,733288.8,769172.4,"$805,056",832251.6,859447.2,886642.8,913838.4,"$941,034",1031986.8,1122939.6000000001,"$1,395,798"]
["MGMAAcademicAllAssociateMDSurgery: Colon and RectalL","Surgery: Colon and Rectal","Code","MGMA","Academic","All","Associate","MD",2022,"$413,260",422679.2,432098.4,441517.6,450936.8,"$460,356",474666.6,488977.2,503287.8,517598.4,"$531,909",542933.80000000005,553958.6,"$587,033"]
["MGMAAcademicAllAssociateMDSurgery: EndocrineL","Surgery: Endocrine","Code","MGMA","Academic","All","Associate","MD",2022,0,0,0,0,0,0,0,0,0,0,0,0,0,0]
["MGMAAcademicAllAssociateMDSurgery: Endovascular (Primary)L","Surgery: Endovascular (Primary)","Code","MGMA","Academic","All","Associate","MD",2022,0,0,0,0,0,0,0,0,0,0,0,0,0,0]
["MGMAAcademicAllAssociateMDSurgery: NeurologicalL","Surgery: Neurological","Code","MGMA","Academic","All","Associate","MD",2022,"$600,000",631671,663342,695013,726684,"$758,355",788075.8,817796.6,847517.4,877238.2,"$906,959",969886.8,1032814.6,"$1,221,598"]
["MGMAAcademicAllAssociateMDSurgery: OncologyL","Surgery: Oncology","Code","MGMA","Academic","All","Associate","MD",2022,"$370,358",384035.2,397712.4,411389.6,425066.8,"$438,744",467674.4,496604.8,525535.19999999995,554465.6,"$583,396",622923.80000000005,662451.6,"$781,035"]
["MGMAAcademicAllAssociateMDSurgery: OralL","Surgery: Oral","Code","MGMA","Academic","All","Associate","MD",2022,0,0,0,0,0,0,0,0,0,0,0,0,0,0]
["MGMAAcademicAllAssociateMDSurgery: Plastic and ReconstructionL","Surgery: Plastic and Reconstruction","Code","MGMA","Academic","All","Associate","MD",2022,"$457,955",478144.2,498333.4,518522.6,538711.80000000005,"$558,901",600387.6,641874.19999999995,683360.8,724847.4,"$766,334",795335.4,824336.8,"$911,341"]
["MGMAAcademicAllAssociateMDSurgery: Plastic and Reconstruction-HandL","Surgery: Plastic and Reconstruction-Hand","Code","MGMA","Academic","All","Associate","MD",2022,0,0,0,0,0,0,0,0,0,0,0,0,0,0]
["MGMAAcademicAllAssociateMDSurgery: Thoracic (Primary)L","Surgery: Thoracic (Primary)","Code","MGMA","Academic","All","Associate","MD",2022,"$501,876",528845.4,555814.80000000005,582784.19999999995,609753.59999999998,"$636,723",660178.19999999995,683633.4,707088.6,730543.8,"$753,999",783288.6,812578.2,"$900,447"]
["MGMAAcademicAllAssociateMDSurgery: TransplantL","Surgery: Transplant","Code","MGMA","Academic","All","Associate","MD",2022,"$437,407",456575,475743,494911,514079,"$533,247",572464.19999999995,611681.4,650898.6,690115.8,"$729,333",749492,769651,"$830,128"]
["MGMAAcademicAllAssociateMDSurgery: Transplant-HeartL","Surgery: Transplant-Heart","Code","MGMA","Academic","All","Associate","MD",2022,0,0,0,0,0,0,0,0,0,0,0,0,0,0]
["MGMAAcademicAllAssociateMDSurgery: Transplant-Heart/LungL","Surgery: Transplant-Heart/Lung","Code","MGMA","Academic","All","Associate","MD",2022,0,0,0,0,0,0,0,0,0,0,0,0,0,0]
["MGMAAcademicAllAssociateMDSurgery: Transplant-KidneyL","Surgery: Transplant-Kidney","Code","MGMA","Academic","All","Associate","MD",2022,0,0,0,0,0,0,0,0,0,0,0,0,0,0]
["MGMAAcademicAllAssociateMDSurgery: Transplant-LiverL","Surgery: Transplant-Liver","Code","MGMA","Academic","All","Associate","MD",2022,0,0,0,0,0,0,0,0,0,0,0,0,0,0]
["MGMAAcademicAllAssociateMDSurgery: TraumaL","Surgery: Trauma","Code","MGMA","Academic","All","Associate","MD",2022,"$419,031",427041.8,435052.6,443063.4,451074.2,"$459,085",477599.8,496114.6,514629.4,533144.19999999995,"$551,659",562600.80000000005,573542.6,"$606,368"]
["MGMAAcademicAllAssociateMDSurgery: Trauma-BurnL","Surgery: Trauma-Burn","Code","MGMA","Academic","All","Associate","MD",2022,0,0,0,0,0,0,0,0,0,0,0,0,0,0]
["MGMAAcademicAllAssociateMDSurgery: Vascular (Primary)L","Surgery: Vascular (Primary)","Code","MGMA","Academic","All","Associate","MD",2022,"$433,470",444395.8,455321.59999999998,466247.4,477173.2,"$488,099",497760.2,507421.4,517082.6,526743.80000000005,"$536,405",546344.19999999995,556283.4,"$586,101"]
["MGMAAcademicAllAssociateMDUrgent CareL","Urgent Care","Code","MGMA","Academic","All","Associate","MD",2022,0,0,0,0,0,0,0,0,0,0,0,0,0,0]
["MGMAAcademicAllAssociateMDUrologyL","Urology","Code","MGMA","Academic","All","Associate","MD",2022,"$390,277",399743.6,409210.2,418676.8,428143.4,"$437,610",445441,453272,461103,468934,"$476,765",504128.4,531491.80000000005,"$613,582"]
["MGMAAcademicAllAssociateMDAnesthesia AssistanttL","Anesthesia Assistantt","Code","MGMA","Academic","All","Associate","MD",2022,0,0,0,0,0,0,0,0,0,0,0,0,0,0]
["MGMAAcademicAllAssociateMDAudiologistL","Audiologist","Code","MGMA","Academic","All","Associate","MD",2022,0,0,0,0,0,0,0,0,0,0,0,0,0,0]
["MGMAAcademicAllAssociateMDCertified Registered Nurse AnesthetistL","Certified Registered Nurse Anesthetist","Code","MGMA","Academic","All","Associate","MD",2022,0,0,0,0,0,0,0,0,0,0,0,0,0,0]
["MGMAAcademicAllAssociateMDChiropractorL","Chiropractor","Code","MGMA","Academic","All","Associate","MD",2022,0,0,0,0,0,0,0,0,0,0,0,0,0,0]
["MGMAAcademicAllAssociateMDClinical Nurse Specialist L","Clinical Nurse Specialist ","Code","MGMA","Academic","All","Associate","MD",2022,0,0,0,0,0,0,0,0,0,0,0,0,0,0]
["MGMAAcademicAllAssociateMDDietician/NutritionistL","Dietician/Nutritionist","Code","MGMA","Academic","All","Associate","MD",2022,0,0,0,0,0,0,0,0,0,0,0,0,0,0]
["MGMAAcademicAllAssociateMDGenetic Counselor L","Genetic Counselor ","Code","MGMA","Academic","All","Associate","MD",2022,0,0,0,0,0,0,0,0,0,0,0,0,0,0]
["MGMAAcademicAllAssociateMDLicensed Clinical Social WorkerL","Licensed Clinical Social Worker","Code","MGMA","Academic","All","Associate","MD",2022,0,0,0,0,0,0,0,0,0,0,0,0,0,0]
["MGMAAcademicAllAssociateMDNurse Midwife: Outpatient/Inpatient DeliveriesL","Nurse Midwife: Outpatient/Inpatient Deliveries","Code","MGMA","Academic","All","Associate","MD",2022,0,0,0,0,0,0,0,0,0,0,0,0,0,0]
["MGMAAcademicAllAssociateMDNurse Midwife: Outpatient (Only)L","Nurse Midwife: Outpatient (Only)","Code","MGMA","Academic","All","Associate","MD",2022,0,0,0,0,0,0,0,0,0,0,0,0,0,0]
["MGMAAcademicAllAssociateMDNurse Midwife: Inpatient (Only)L","Nurse Midwife: Inpatient (Only)","Code","MGMA","Academic","All","Associate","MD",2022,0,0,0,0,0,0,0,0,0,0,0,0,0,0]
["MGMAAcademicAllAssociateMDNP (Surgical)L","NP (Surgical)","Code","MGMA","Academic","All","Associate","MD",2022,0,0,0,0,0,0,0,0,0,0,0,0,0,0]
["MGMAAcademicAllAssociateMDNP: AnesthesiologyL","NP: Anesthesiology","Code","MGMA","Academic","All","Associate","MD",2022,0,0,0,0,0,0,0,0,0,0,0,0,0,0]
["MGMAAcademicAllAssociateMDNP: Cardiothoracic SurgeryL","NP: Cardiothoracic Surgery","Code","MGMA","Academic","All","Associate","MD",2022,0,0,0,0,0,0,0,0,0,0,0,0,0,0]
["MGMAAcademicAllAssociateMDNP: NeurosurgeryL","NP: Neurosurgery","Code","MGMA","Academic","All","Associate","MD",2022,0,0,0,0,0,0,0,0,0,0,0,0,0,0]
["MGMAAcademicAllAssociateMDNP: Orthopedics (Surgical)L","NP: Orthopedics (Surgical)","Code","MGMA","Academic","All","Associate","MD",2022,0,0,0,0,0,0,0,0,0,0,0,0,0,0]
[{"$f":"D899&E899&F899&G899&H899&B899&\"L\"","v":"MGMAAcademicAllAssociateMDNP: OtorhinolaryngologyL"},"NP: Otorhinolaryngology","Code","MGMA","Academic","All","Associate","MD",2022,0,0,{"$f":"((O899-J899)/25)*10 + J899","v":0},{"$f":"((O899-J899)/25)*15 + J899","v":0},{"$f":"((O899-J899)/25)*20 + J899","v":0},0,{"$f":"((T899-O899)/25)*5 + O899","v":0},{"$f":"((T899-O899)/25)*10 + O899","v":0},{"$f":"((T899-O899)/25)*15 + O899","v":0},{"$f":"((T899-O899)/25)*20 + O899","v":0},0,{"$f":"((W899-T899)/25)*5 + T899","v":0},{"$f":"((W899-T899)/25)*10 + T899","v":0},0]
["MGMAAcademicAllAssociateMDNP: Surgery: GeneralL","NP: Surgery: General","Code","MGMA","Academic","All","Associate","MD",2022,0,0,0,0,0,0,0,0,0,0,0,0,0,0]
["MGMAAcademicAllAssociateMDNP: UrologyL","NP: Urology","Code","MGMA","Academic","All","Associate","MD",2022,0,{"$f":"((O901-J901)/25)*5 + J901","v":0},0,0,0,0,0,0,0,0,0,0,0,0]
["MGMAAcademicAllAssociateMDNP: Vascular SurgeryL","NP: Vascular Surgery","Code","MGMA","Academic","All","Associate","MD",2022,0,0,0,0,0,0,0,0,0,0,0,0,0,0]
["MGMAAcademicAllAssociateMDNP (Primary Care)L","NP (Primary Care)","Code","MGMA","Academic","All","Associate","MD",2022,0,0,0,0,0,0,0,0,0,0,0,0,0,0]
["MGMAAcademicAllAssociateMDNP: AdultL","NP: Adult","Code","MGMA","Academic","All","Associate","MD",2022,0,0,0,0,0,0,0,0,0,0,0,0,0,0]
["MGMAAcademicAllAssociateMDNP: Family Medicine (with OB)L","NP: Family Medicine (with OB)","Code","MGMA","Academic","All","Associate","MD",2022,0,0,0,0,0,0,0,0,0,0,0,0,0,0]
["MGMAAcademicAllAssociateMDNP: Family Medicine (without OB)L","NP: Family Medicine (without OB)","Code","MGMA","Academic","All","Associate","MD",2022,0,0,0,0,0,0,0,0,0,0,0,0,0,0]
["MGMAAcademicAllAssociateMDNP: Gerontology/Elder HealthL","NP: Gerontology/Elder Health","Code","MGMA","Academic","All","Associate","MD",2022,0,0,0,0,0,0,0,0,0,0,0,0,0,0]
["MGMAAcademicAllAssociateMDNP: Hospice/Palliative CareL","NP: Hospice/Palliative Care","Code","MGMA","Academic","All","Associate","MD",2022,0,0,0,0,0,0,0,0,0,0,0,0,0,0]
["MGMAAcademicAllAssociateMDNP: Hospitalist (Primary Care)L","NP: Hospitalist (Primary Care)","Code","MGMA","Academic","All","Associate","MD",2022,0,0,0,0,0,0,0,0,0,0,0,0,0,0]
["MGMAAcademicAllAssociateMDNP: Internal MedicineL","NP: Internal Medicine","Code","MGMA","Academic","All","Associate","MD",2022,0,0,0,0,0,0,0,0,0,0,0,0,0,0]
["MGMAAcademicAllAssociateMDNP: OB/GYN/Women's HealthL","NP: OB/GYN/Women's Health","Code","MGMA","Academic","All","Associate","MD",2022,0,0,0,0,0,0,0,0,0,0,0,0,0,0]
["MGMAAcademicAllAssociateMDNP: Pediatric/Child HealthL","NP: Pediatric/Child Health","Code","MGMA","Academic","All","Associate","MD",2022,0,0,0,0,0,0,0,0,0,0,0,0,0,0]
["MGMAAcademicAllAssociateMDNP: Urgent CareL","NP: Urgent Care","Code","MGMA","Academic","All","Associate","MD",2022,0,0,0,0,0,0,0,0,0,0,0,0,0,0]
["MGMAAcademicAllAssociateMDNP (Nonsurgical/Nonprimary Care)L","NP (Nonsurgical/Nonprimary Care)","Code","MGMA","Academic","All","Associate","MD",2022,0,0,0,0,0,0,0,0,0,0,0,0,0,0]
["MGMAAcademicAllAssociateMDNP: Acute CareL","NP: Acute Care","Code","MGMA","Academic","All","Associate","MD",2022,0,0,0,0,0,0,0,0,0,0,0,0,0,0]
["MGMAAcademicAllAssociateMDNP: Allergy/ImmunologyL","NP: Allergy/Immunology","Code","MGMA","Academic","All","Associate","MD",2022,0,0,0,0,0,0,0,0,0,0,0,0,0,0]
["MGMAAcademicAllAssociateMDNP: CardiologyL","NP: Cardiology","Code","MGMA","Academic","All","Associate","MD",2022,0,0,0,0,0,0,0,0,0,0,0,0,0,0]
["MGMAAcademicAllAssociateMDNP: DermatologyL","NP: Dermatology","Code","MGMA","Academic","All","Associate","MD",2022,0,0,0,0,0,0,0,0,0,0,0,0,0,0]
["MGMAAcademicAllAssociateMDNP: Emergency MedicineL","NP: Emergency Medicine","Code","MGMA","Academic","All","Associate","MD",2022,0,0,0,0,0,0,0,0,0,0,0,0,0,0]
["MGMAAcademicAllAssociateMDNP: EndocrinologyL","NP: Endocrinology","Code","MGMA","Academic","All","Associate","MD",2022,0,0,0,0,0,0,0,0,0,0,0,0,0,0]
["MGMAAcademicAllAssociateMDNP: GastroenterologyL","NP: Gastroenterology","Code","MGMA","Academic","All","Associate","MD",2022,0,0,0,0,0,0,0,0,0,0,0,0,0,0]
["MGMAAcademicAllAssociateMDNP: Hematology/OncologyL","NP: Hematology/Oncology","Code","MGMA","Academic","All","Associate","MD",2022,0,0,0,0,0,0,0,0,0,0,0,0,0,0]
["MGMAAcademicAllAssociateMDNP: Hospitalist (Nonsurgical/Nonprimary Care)L","NP: Hospitalist (Nonsurgical/Nonprimary Care)","Code","MGMA","Academic","All","Associate","MD",2022,0,0,0,0,0,0,0,0,0,0,0,0,0,0]
["MGMAAcademicAllAssociateMDNP: Infectious DiseaseL","NP: Infectious Disease","Code","MGMA","Academic","All","Associate","MD",2022,0,0,0,0,0,0,0,0,0,0,0,0,0,0]
["MGMAAcademicAllAssociateMDNP: Neonatal/PerinatalL","NP: Neonatal/Perinatal","Code","MGMA","Academic","All","Associate","MD",2022,0,0,0,0,0,0,0,0,0,0,0,0,0,0]
["MGMAAcademicAllAssociateMDNP: NephrologyL","NP: Nephrology","Code","MGMA","Academic","All","Associate","MD",2022,0,0,0,0,0,0,0,0,0,0,0,0,0,0]
["MGMAAcademicAllAssociateMDNP: NeurologyL","NP: Neurology","Code","MGMA","Academic","All","Associate","MD",2022,0,0,0,0,0,0,0,0,0,0,0,0,0,0]
["MGMAAcademicAllAssociateMDNP: Orthopedics (Nonsurgical/Nonprimary Care)L","NP: Orthopedics (Nonsurgical/Nonprimary Care)","Code","MGMA","Academic","All","Associate","MD",2022,0,0,0,0,0,0,0,0,0,0,0,0,0,0]
["MGMAAcademicAllAssociateMDNP: PhysiatryL","NP: Physiatry","Code","MGMA","Academic","All","Associate","MD",2022,0,0,0,0,0,0,0,0,0,0,0,0,0,0]
["MGMAAcademicAllAssociateMDNP: PsychiatryL","NP: Psychiatry","Code","MGMA","Academic","All","Associate","MD",2022,0,0,0,0,0,0,0,0,0,0,0,0,0,0]
["MGMAAcademicAllAssociateMDNP: Pulmonary MedicineL","NP: Pulmonary Medicine","Code","MGMA","Academic","All","Associate","MD",2022,0,0,0,0,0,0,0,0,0,0,0,0,0,0]
["MGMAAcademicAllAssociateMDNP: RheumatologyL","NP: Rheumatology","Code","MGMA","Academic","All","Associate","MD",2022,0,0,0,0,0,0,0,0,0,0,0,0,0,0]
["MGMAAcademicAllAssociateMDOccupational TherapistL","Occupational Therapist","Code","MGMA","Academic","All","Associate","MD",2022,0,0,0,0,0,0,0,0,0,0,0,0,0,0]
["MGMAAcademicAllAssociateMDOptometristL","Optometrist","Code","MGMA","Academic","All","Associate","MD",2022,0,0,0,0,0,0,0,0,0,0,0,0,0,0]
["MGMAAcademicAllAssociateMDPhDL","PhD","Code","MGMA","Academic","All","Associate","MD",2022,"$126,330",129664,132998,136332,139666,"$143,000",148639.79999999999,154279.6,159919.4,165559.20000000001,"$171,199",185846.8,200494.6,"$244,438"]
["MGMAAcademicAllAssociateMDPhysical TherapistL","Physical Therapist","Code","MGMA","Academic","All","Associate","MD",2022,0,0,0,0,0,0,0,0,0,0,0,0,0,0]
["MGMAAcademicAllAssociateMDPA (Surgical)L","PA (Surgical)","Code","MGMA","Academic","All","Associate","MD",2022,0,0,0,0,0,0,0,0,0,0,0,0,0,0]
["MGMAAcademicAllAssociateMDPA: Anesthesiology L","PA: Anesthesiology ","Code","MGMA","Academic","All","Associate","MD",2022,0,0,0,0,0,0,0,0,0,0,0,0,0,0]
["MGMAAcademicAllAssociateMDPA: Cardiothoracic SurgeryL","PA: Cardiothoracic Surgery","Code","MGMA","Academic","All","Associate","MD",2022,0,0,0,0,0,0,0,0,0,0,0,0,0,0]
["MGMAAcademicAllAssociateMDPA: NeurosurgeryL","PA: Neurosurgery","Code","MGMA","Academic","All","Associate","MD",2022,0,0,0,0,0,0,0,0,0,0,0,0,0,0]
["MGMAAcademicAllAssociateMDPA: Orthopedic (Surgical)L","PA: Orthopedic (Surgical)","Code","MGMA","Academic","All","Associate","MD",2022,0,0,0,0,0,0,0,0,0,0,0,0,0,0]
["MGMAAcademicAllAssociateMDPA: OtorhinolaryngologyL","PA: Otorhinolaryngology","Code","MGMA","Academic","All","Associate","MD",2022,0,0,0,0,0,0,0,0,0,0,0,0,0,0]
["MGMAAcademicAllAssociateMDPA: Surgery: GeneralL","PA: Surgery: General","Code","MGMA","Academic","All","Associate","MD",2022,0,0,0,0,0,0,0,0,0,0,0,0,0,0]
["MGMAAcademicAllAssociateMDPA: UrologyL","PA: Urology","Code","MGMA","Academic","All","Associate","MD",2022,0,0,0,0,0,0,0,0,0,0,0,0,0,0]
["MGMAAcademicAllAssociateMDPA (Primary Care)L","PA (Primary Care)","Code","MGMA","Academic","All","Associate","MD",2022,0,0,0,0,0,0,0,0,0,0,0,0,0,0]
["MGMAAcademicAllAssociateMDPA: Family Medicine (without OB)L","PA: Family Medicine (without OB)","Code","MGMA","Academic","All","Associate","MD",2022,0,0,0,0,0,0,0,0,0,0,0,0,0,0]
["MGMAAcademicAllAssociateMDPA: Hospitalist (Primary Care)L","PA: Hospitalist (Primary Care)","Code","MGMA","Academic","All","Associate","MD",2022,0,0,0,0,0,0,0,0,0,0,0,0,0,0]
["MGMAAcademicAllAssociateMDPA: Internal MedicineL","PA: Internal Medicine","Code","MGMA","Academic","All","Associate","MD",2022,0,0,0,0,0,0,0,0,0,0,0,0,0,0]
["MGMAAcademicAllAssociateMDPA: OB/GYN/Women's HealthL","PA: OB/GYN/Women's Health","Code","MGMA","Academic","All","Associate","MD",2022,0,0,0,0,0,0,0,0,0,0,0,0,0,0]
["MGMAAcademicAllAssociateMDPA: Pediatric/Child HealthL","PA: Pediatric/Child Health","Code","MGMA","Academic","All","Associate","MD",2022,0,0,0,0,0,0,0,0,0,0,0,0,0,0]
["MGMAAcademicAllAssociateMDPA: Urgent CareL","PA: Urgent Care","Code","MGMA","Academic","All","Associate","MD",2022,0,0,0,0,0,0,0,0,0,0,0,0,0,0]
["MGMAAcademicAllAssociateMDPA (Nonsurgical/Nonprimary Care)L","PA (Nonsurgical/Nonprimary Care)","Code","MGMA","Academic","All","Associate","MD",2022,0,0,0,0,0,0,0,0,0,0,0,0,0,0]
["MGMAAcademicAllAssociateMDPA: CardiologyL","PA: Cardiology","Code","MGMA","Academic","All","Associate","MD",2022,0,0,0,0,0,0,0,0,0,0,0,0,0,0]
["MGMAAcademicAllAssociateMDPA: DermatologyL","PA: Dermatology","Code","MGMA","Academic","All","Associate","MD",2022,0,0,0,0,0,0,0,0,0,0,0,0,0,0]
["MGMAAcademicAllAssociateMDPA: Emergency MedicineL","PA: Emergency Medicine","Code","MGMA","Academic","All","Associate","MD",2022,0,0,0,0,0,0,0,0,0,0,0,0,0,0]
["MGMAAcademicAllAssociateMDPA: EndocrinologyL","PA: Endocrinology","Code","MGMA","Academic","All","Associate","MD",2022,0,0,0,0,0,0,0,0,0,0,0,0,0,0]
["MGMAAcademicAllAssociateMDPA: GastroenterologyL","PA: Gastroenterology","Code","MGMA","Academic","All","Associate","MD",2022,0,0,0,0,0,0,0,0,0,0,0,0,0,0]
["MGMAAcademicAllAssociateMDPA: Hematology/OncologyL","PA: Hematology/Oncology","Code","MGMA","Academic","All","Associate","MD",2022,0,0,0,0,0,0,0,0,0,0,0,0,0,0]
["MGMAAcademicAllAssociateMDPA: Hospitalist (Nonsurgical/Nonprimary Care)L","PA: Hospitalist (Nonsurgical/Nonprimary Care)","Code","MGMA","Academic","All","Associate","MD",2022,0,0,0,0,0,0,0,0,0,0,0,0,0,0]
["MGMAAcademicAllAssociateMDPA: Infectious DiseaseL","PA: Infectious Disease","Code","MGMA","Academic","All","Associate","MD",2022,0,0,0,0,0,0,0,0,0,0,0,0,0,0]
["MGMAAcademicAllAssociateMDPA: NephrologyL","PA: Nephrology","Code","MGMA","Academic","All","Associate","MD",2022,0,0,0,0,0,0,0,0,0,0,0,0,0,0]
["MGMAAcademicAllAssociateMDPA: NeurologyL","PA: Neurology","Code","MGMA","Academic","All","Associate","MD",2022,0,0,0,0,0,0,0,0,0,0,0,0,0,0]
[{"$f":"D963&E963&F963&G963&H963&B963&\"L\"","v":"MGMAAcademicAllAssociateMDPA: Orthopedic (Nonsurgical/Nonprimary Care)L"},"PA: Orthopedic (Nonsurgical/Nonprimary Care)","Code","MGMA","Academic","All","Associate","MD",2022,0,0,{"$f":"((O963-J963)/25)*10 + J963","v":0},{"$f":"((O963-J963)/25)*15 + J963","v":0},{"$f":"((O963-J963)/25)*20 + J963","v":0},0,{"$f":"((T963-O963)/25)*5 + O963","v":0},{"$f":"((T963-O963)/25)*10 + O963","v":0},{"$f":"((T963-O963)/25)*15 + O963","v":0},{"$f":"((T963-O963)/25)*20 + O963","v":0},0,{"$f":"((W963-T963)/25)*5 + T963","v":0},{"$f":"((W963-T963)/25)*10 + T963","v":0},0]
["MGMAAcademicAllAssociateMDPA: PsychiatryL","PA: Psychiatry","Code","MGMA","Academic","All","Associate","MD",2022,0,0,0,0,0,0,0,0,0,0,0,0,0,0]
["MGMAAcademicAllAssociateMDPA: Pulmonary MedicineL","PA: Pulmonary Medicine","Code","MGMA","Academic","All","Associate","MD",2022,0,{"$f":"((O965-J965)/25)*5 + J965","v":0},0,0,0,0,0,0,0,0,0,0,0,0]
["MGMAAcademicAllAssociateMDPA: RheumatologyL","PA: Rheumatology","Code","MGMA","Academic","All","Associate","MD",2022,0,0,0,0,0,0,0,0,0,0,0,0,0,0]
["MGMAAcademicAllAssociateMDPsychologistL","Psychologist","Code","MGMA","Academic","All","Associate","MD",2022,"$122,320",124907.8,127495.6,130083.4,132671.20000000001,"$135,259",139716.4,144173.79999999999,148631.20000000001,153088.6,"$157,546",161389,165232,"$176,761"]
["MGMAAcademicAllAssociateMDResearchL","Research","Code","MGMA","Academic","All","Associate","MD",2022,"$112,210",116320,120430,124540,128650,"$132,760",136493.4,140226.79999999999,143960.20000000001,147693.6,"$151,427",162268.6,173110.2,"$205,635"]
["MGMAAcademicAllAssociateMDResearch: MDL","Research: MD","Code","MGMA","Academic","All","Associate","MD",2022,0,0,0,0,0,0,0,0,0,0,0,0,0,0]
["MGMAAcademicAllProfessorMDAllergy/ImmunologyL","Allergy/Immunology","Code","MGMA","Academic","All","Professor","MD",2022,"$218,496",225525.6,232555.2,239584.8,246614.39999999999,"$253,644",273839.59999999998,294035.20000000001,314230.8,334426.40000000002,"$354,622",369807,384992,"$430,547"]
["MGMAAcademicAllProfessorMDAnesthesiologyL","Anesthesiology","Code","MGMA","Academic","All","Professor","MD",2022,"$409,414",421810.4,434206.8,446603.2,458999.6,"$471,396",485745.2,500094.4,514443.6,528792.80000000005,"$543,142",555843.4,568544.80000000005,"$606,649"]
["MGMAAcademicAllProfessorMDAnesthesiology: CardiologyL","Anesthesiology: Cardiology","Code","MGMA","Academic","All","Professor","MD",2022,0,0,0,0,0,0,0,0,0,0,0,0,0,0]
["MGMAAcademicAllProfessorMDAnesthesiology: Pain ManagementL","Anesthesiology: Pain Management","Code","MGMA","Academic","All","Professor","MD",2022,"$388,859",416431.8,444004.6,471577.4,499150.2,"$526,723",533434.80000000005,540146.6,546858.4,553570.19999999995,"$560,282",618027,675772,"$849,007"]
["MGMAAcademicAllProfessorMDCardiology: ElectrophysiologyL","Cardiology: Electrophysiology","Code","MGMA","Academic","All","Professor","MD",2022,"$391,614",412710.2,433806.4,454902.6,475998.8,"$497,095",536809,576523,616237,655951,"$695,665",715007.4,734349.8,"$792,377"]
["MGMAAcademicAllProfessorMDCardiology: InvasiveL","Cardiology: Invasive","Code","MGMA","Academic","All","Professor","MD",2022,"$399,079",416759.6,434440.2,452120.8,469801.4,"$487,482",496862.8,506243.6,515624.4,525005.19999999995,"$534,386",545331.4,556276.80000000005,"$589,113"]
["MGMAAcademicAllProfessorMDCardiology: Invasive-InterventionalL","Cardiology: Invasive-Interventional","Code","MGMA","Academic","All","Professor","MD",2022,"$466,064",477251.2,488438.4,499625.6,510812.8,"$522,000",542600,563200,583800,604400,"$625,000",648457.4,671914.8,"$742,287"]
["MGMAAcademicAllProfessorMDCardiology: NoninvasiveL","Cardiology: Noninvasive","Code","MGMA","Academic","All","Professor","MD",2022,"$316,438",328776.2,341114.4,353452.6,365790.8,"$378,129",397521.8,416914.6,436307.4,455700.2,"$475,093",486376.6,497660.2,"$531,511"]
["MGMAAcademicAllProfessorMDClinical PharmacologyL","Clinical Pharmacology","Code","MGMA","Academic","All","Professor","MD",2022,0,0,0,0,0,0,0,0,0,0,0,0,0,0]
["MGMAAcademicAllProfessorMDCritical Care: IntensivistL","Critical Care: Intensivist","Code","MGMA","Academic","All","Professor","MD",2022,"$348,231",367850.2,387469.4,407088.6,426707.8,"$446,327",466514,486701,506888,527075,"$547,262",591970.80000000005,636679.6,"$770,806"]
["MGMAAcademicAllProfessorMDDentistryL","Dentistry","Code","MGMA","Academic","All","Professor","MD",2022,0,0,0,0,0,0,0,0,0,0,0,0,0,0]
["MGMAAcademicAllProfessorMDDermatologyL","Dermatology","Code","MGMA","Academic","All","Professor","MD",2022,"$337,362",348206.4,359050.8,369895.2,380739.6,"$391,584",415802,440020,464238,488456,"$512,674",547061,581448,"$684,609"]
["MGMAAcademicAllProfessorMDDermatology: DermatopathologyL","Dermatology: Dermatopathology","Code","MGMA","Academic","All","Professor","MD",2022,0,0,0,0,0,0,0,0,0,0,0,0,0,0]
["MGMAAcademicAllProfessorMDDermatology: Mohs SurgeryL","Dermatology: Mohs Surgery","Code","MGMA","Academic","All","Professor","MD",2022,0,0,0,0,0,0,0,0,0,0,0,0,0,0]
["MGMAAcademicAllProfessorMDEmergency MedicineL","Emergency Medicine","Code","MGMA","Academic","All","Professor","MD",2022,"$334,543",340291.4,346039.8,351788.2,357536.6,"$363,285",376683,390081,403479,416877,"$430,275",457320,484365,"$565,500"]
["MGMAAcademicAllProfessorMDEndocrinology/MetabolismL","Endocrinology/Metabolism","Code","MGMA","Academic","All","Professor","MD",2022,"$220,084",228353.2,236622.4,244891.6,253160.8,"$261,430",272350,283270,294190,305110,"$316,030",331583.40000000002,347136.8,"$393,797"]
["MGMAAcademicAllProfessorMDFamily Medicine (with OB)L","Family Medicine (with OB)","Code","MGMA","Academic","All","Professor","MD",2022,0,0,0,0,0,0,0,0,0,0,0,0,0,0]
["MGMAAcademicAllProfessorMDFamily Medicine (without OB)L","Family Medicine (without OB)","Code","MGMA","Academic","All","Professor","MD",2022,"$228,500",231797.6,235095.2,238392.8,241690.4,"$244,988",250791.8,256595.6,262399.40000000002,268203.2,"$274,007",288491.59999999998,302976.2,"$346,430"]
["MGMAAcademicAllProfessorMDFamily Medicine: Ambulatory Only (No Inpatient Work)L","Family Medicine: Ambulatory Only (No Inpatient Work)","Code","MGMA","Academic","All","Professor","MD",2022,0,0,0,0,0,0,0,0,0,0,0,0,0,0]
["MGMAAcademicAllProfessorMDFamily Medicine: Sports MedicineL","Family Medicine: Sports Medicine","Code","MGMA","Academic","All","Professor","MD",2022,0,0,0,0,0,0,0,0,0,0,0,0,0,0]
["MGMAAcademicAllProfessorMDFamily Medicine: Urgent CareL","Family Medicine: Urgent Care","Code","MGMA","Academic","All","Professor","MD",2022,0,0,0,0,0,0,0,0,0,0,0,0,0,0]
["MGMAAcademicAllProfessorMDGastroenterologyL","Gastroenterology","Code","MGMA","Academic","All","Professor","MD",2022,"$342,800",357690,372580,387470,402360,"$417,250",432200,447150,462100,477050,"$492,000",509487.4,526974.80000000005,"$579,437"]
["MGMAAcademicAllProfessorMDGastroenterology: HepatologyL","Gastroenterology: Hepatology","Code","MGMA","Academic","All","Professor","MD",2022,"$323,126",342332,361538,380744,399950,"$419,156",431781.4,444406.8,457032.2,469657.59999999998,"$482,283",494684.4,507085.8,"$544,290"]
["MGMAAcademicAllProfessorMDGeneticsL","Genetics","Code","MGMA","Academic","All","Professor","MD",2022,0,0,0,0,0,0,0,0,0,0,0,0,0,0]
["MGMAAcademicAllProfessorMDGeriatricsL","Geriatrics","Code","MGMA","Academic","All","Professor","MD",2022,"$242,140",251980.6,261821.2,271661.8,281502.40000000002,"$291,343",298008.59999999998,304674.2,311339.8,318005.40000000002,"$324,671",333959.59999999998,343248.2,"$371,114"]
["MGMAAcademicAllProfessorMDHematology/OncologyL","Hematology/Oncology","Code","MGMA","Academic","All","Professor","MD",2022,"$316,075",330593,345111,359629,374147,"$388,665",404249.2,419833.4,435417.59999999998,451001.8,"$466,586",487349,508112,"$570,401"]
["MGMAAcademicAllProfessorMDHematology/Oncology: Oncology (Only)L","Hematology/Oncology: Oncology (Only)","Code","MGMA","Academic","All","Professor","MD",2022,"$314,860",326417.8,337975.6,349533.4,361091.2,"$372,649",384584,396519,408454,420389,"$432,324",447118.2,461912.4,"$506,295"]
["MGMAAcademicAllProfessorMDHospice/Palliative CareL","Hospice/Palliative Care","Code","MGMA","Academic","All","Professor","MD",2022,0,0,0,0,0,0,0,0,0,0,0,0,0,0]
["MGMAAcademicAllProfessorMDHospitalist: Family MedicineL","Hospitalist: Family Medicine","Code","MGMA","Academic","All","Professor","MD",2022,0,0,0,0,0,0,0,0,0,0,0,0,0,0]
["MGMAAcademicAllProfessorMDHospitalist: Internal MedicineL","Hospitalist: Internal Medicine","Code","MGMA","Academic","All","Professor","MD",2022,"$266,114",278597.40000000002,291080.8,303564.2,316047.59999999998,"$328,531",339128.8,349726.6,360324.4,370922.2,"$381,520",404033.4,426546.8,"$494,087"]
["MGMAAcademicAllProfessorMDHospitalist: NocturnistL","Hospitalist: Nocturnist","Code","MGMA","Academic","All","Professor","MD",2022,0,0,0,0,0,0,0,0,0,0,0,0,0,0]
["MGMAAcademicAllProfessorMDHyperbaric Medicine/Wound CareL","Hyperbaric Medicine/Wound Care","Code","MGMA","Academic","All","Professor","MD",2022,0,0,0,0,0,0,0,0,0,0,0,0,0,0]
["MGMAAcademicAllProfessorMDInfectious DiseaseL","Infectious Disease","Code","MGMA","Academic","All","Professor","MD",2022,"$236,844",244008,251172,258336,265500,"$272,664",280259.8,287855.59999999998,295451.40000000002,303047.2,"$310,643",324576.2,338509.4,"$380,309"]
["MGMAAcademicAllProfessorMDInternal Medicine: GeneralL","Internal Medicine: General","Code","MGMA","Academic","All","Professor","MD",2022,"$249,000",255470.4,261940.8,268411.2,274881.59999999998,"$281,352",296670,311988,327306,342624,"$357,942",381895.2,405848.4,"$477,708"]
["MGMAAcademicAllProfessorMDInternal Medicine: Ambulatory Only (No Inpatient Work)L","Internal Medicine: Ambulatory Only (No Inpatient Work)","Code","MGMA","Academic","All","Professor","MD",2022,0,0,0,0,0,0,0,0,0,0,0,0,0,0]
["MGMAAcademicAllProfessorMDNephrologyL","Nephrology","Code","MGMA","Academic","All","Professor","MD",2022,"$277,609",285510.2,293411.40000000002,301312.59999999998,309213.8,"$317,115",327309.2,337503.4,347697.6,357891.8,"$368,086",381049.4,394012.8,"$432,903"]
["MGMAAcademicAllProfessorMDNephrology: TransplantL","Nephrology: Transplant","Code","MGMA","Academic","All","Professor","MD",2022,0,0,0,0,0,0,0,0,0,0,0,0,0,0]
["MGMAAcademicAllProfessorMDNeurologyL","Neurology","Code","MGMA","Academic","All","Professor","MD",2022,"$243,219",250286.4,257353.8,264421.2,271488.59999999998,"$278,556",290924.59999999998,303293.2,315661.8,328030.40000000002,"$340,399",354641.4,368883.8,"$411,611"]
["MGMAAcademicAllProfessorMDNeurology: Epilepsy/EEGL","Neurology: Epilepsy/EEG","Code","MGMA","Academic","All","Professor","MD",2022,"$282,204",290724.2,299244.40000000002,307764.59999999998,316284.79999999999,"$324,805",326694.2,328583.40000000002,330472.59999999998,332361.8,"$334,251",360601,386951,"$466,001"]
["MGMAAcademicAllProfessorMDNeurology: Neurocritical CareL","Neurology: Neurocritical Care","Code","MGMA","Academic","All","Professor","MD",2022,0,0,0,0,0,0,0,0,0,0,0,0,0,0]
["MGMAAcademicAllProfessorMDNeurology: Neuromuscular MedicineL","Neurology: Neuromuscular Medicine","Code","MGMA","Academic","All","Professor","MD",2022,"$263,753",267750.8,271748.59999999998,275746.40000000002,279744.2,"$283,742",292169.40000000002,300596.8,309024.2,317451.59999999998,"$325,879",334641,343403,"$369,689"]
["MGMAAcademicAllProfessorMDNeurology: Stroke MedicineL","Neurology: Stroke Medicine","Code","MGMA","Academic","All","Professor","MD",2022,"$301,546",323269.40000000002,344992.8,366716.2,388439.6,"$410,163",417978.6,425794.2,433609.8,441425.4,"$449,241",465342.6,481444.2,"$529,749"]
["MGMAAcademicAllProfessorMDObstetrics/Gynecology: GeneralL","Obstetrics/Gynecology: General","Code","MGMA","Academic","All","Professor","MD",2022,"$318,170",326716.59999999998,335263.2,343809.8,352356.4,"$360,903",374576.4,388249.8,401923.2,415596.6,"$429,270",443371,457472,"$499,775"]
["MGMAAcademicAllProfessorMDOB/GYN: Gynecology (Only)L","OB/GYN: Gynecology (Only)","Code","MGMA","Academic","All","Professor","MD",2022,"$256,775",269071.40000000002,281367.8,293664.2,305960.59999999998,"$318,257",335068.2,351879.4,368690.6,385501.8,"$402,313",406558.2,410803.4,"$423,539"]
["MGMAAcademicAllProfessorMDOB/GYN: Gynecological OncologyL","OB/GYN: Gynecological Oncology","Code","MGMA","Academic","All","Professor","MD",2022,"$396,009",406024.8,416040.6,426056.4,436072.2,"$446,088",455092.2,464096.4,473100.6,482104.8,"$491,109",518821.6,546534.19999999995,"$629,672"]
["MGMAAcademicAllProfessorMDOB/GYN: Maternal and Fetal MedicineL","OB/GYN: Maternal and Fetal Medicine","Code","MGMA","Academic","All","Professor","MD",2022,"$374,090",387583.8,401077.6,414571.4,428065.2,"$441,559",465697.4,489835.8,513974.2,538112.6,"$562,251",573963.80000000005,585676.6,"$620,815"]
["MGMAAcademicAllProfessorMDOB/GYN: Minimally Invasive Gynecologic SurgeryL","OB/GYN: Minimally Invasive Gynecologic Surgery","Code","MGMA","Academic","All","Professor","MD",2022,0,0,0,0,0,0,0,0,0,0,0,0,0,0]
["MGMAAcademicAllProfessorMDOB/GYN: Reproductive EndocrinologyL","OB/GYN: Reproductive Endocrinology","Code","MGMA","Academic","All","Professor","MD",2022,"$363,651",370723.4,377795.8,384868.2,391940.6,"$399,013",405461.8,411910.6,418359.4,424808.2,"$431,257",446660,462063,"$508,272"]
["MGMAAcademicAllProfessorMDOB/GYN: UrogynecologyL","OB/GYN: Urogynecology","Code","MGMA","Academic","All","Professor","MD",2022,"$348,853",356421.8,363990.6,371559.4,379128.2,"$386,697",399673.4,412649.8,425626.2,438602.6,"$451,579",476656.4,501733.8,"$576,966"]
["MGMAAcademicAllProfessorMDOccupational MedicineL","Occupational Medicine","Code","MGMA","Academic","All","Professor","MD",2022,0,0,0,0,0,0,0,0,0,0,0,0,0,0]
["MGMAAcademicAllProfessorMDOphthalmologyL","Ophthalmology","Code","MGMA","Academic","All","Professor","MD",2022,"$230,000",261333.4,292666.8,324000.2,355333.6,"$386,667",418880.8,451094.6,483308.4,515522.2,"$547,736",619890.80000000005,692045.6,"$908,510"]
["MGMAAcademicAllProfessorMDOphthalmology: Corneal and Refractive SurgeryL","Ophthalmology: Corneal and Refractive Surgery","Code","MGMA","Academic","All","Professor","MD",2022,"$347,612",372301.8,396991.6,421681.4,446371.2,"$471,061",508602.4,546143.80000000005,583685.19999999995,621226.6,"$658,768",679632.2,700496.4,"$763,089"]
["MGMAAcademicAllProfessorMDOphthalmology: GlaucomaL","Ophthalmology: Glaucoma","Code","MGMA","Academic","All","Professor","MD",2022,"$327,714",338203.2,348692.4,359181.6,369670.8,"$380,160",407917.8,435675.6,463433.4,491191.2,"$518,949",577043.4,635137.80000000005,"$809,421"]
["MGMAAcademicAllProfessorMDOphthalmology: NeurologyL","Ophthalmology: Neurology","Code","MGMA","Academic","All","Professor","MD",2022,0,0,0,0,0,0,0,0,0,0,0,0,0,0]
["MGMAAcademicAllProfessorMDOphthalmology: Oculoplastic and Reconstructive SurgeryL","Ophthalmology: Oculoplastic and Reconstructive Surgery","Code","MGMA","Academic","All","Professor","MD",2022,0,0,0,0,0,0,0,0,0,0,0,0,0,0]
["MGMAAcademicAllProfessorMDOphthalmology: RetinaL","Ophthalmology: Retina","Code","MGMA","Academic","All","Professor","MD",2022,"$396,355",427160.2,457965.4,488770.6,519575.8,"$550,381",575105.19999999995,599829.4,624553.6,649277.80000000005,"$674,002",717584.8,761167.6,"$891,916"]
["MGMAAcademicAllProfessorMDOrthopedic (Nonsurgical)L","Orthopedic (Nonsurgical)","Code","MGMA","Academic","All","Professor","MD",2022,0,0,0,0,0,0,0,0,0,0,0,0,0,0]
[{"$f":"D1027&E1027&F1027&G1027&H1027&B1027&\"L\"","v":"MGMAAcademicAllProfessorMDOrthopedic Surgery: GeneralL"},"Orthopedic Surgery: General","Code","MGMA","Academic","All","Professor","MD",2022,0,0,{"$f":"((O1027-J1027)/25)*10 + J1027","v":0},{"$f":"((O1027-J1027)/25)*15 + J1027","v":0},{"$f":"((O1027-J1027)/25)*20 + J1027","v":0},0,{"$f":"((T1027-O1027)/25)*5 + O1027","v":0},{"$f":"((T1027-O1027)/25)*10 + O1027","v":0},{"$f":"((T1027-O1027)/25)*15 + O1027","v":0},{"$f":"((T1027-O1027)/25)*20 + O1027","v":0},0,{"$f":"((W1027-T1027)/25)*5 + T1027","v":0},{"$f":"((W1027-T1027)/25)*10 + T1027","v":0},0]
["MGMAAcademicAllProfessorMDOrthopedic Surgery: Foot and AnkleL","Orthopedic Surgery: Foot and Ankle","Code","MGMA","Academic","All","Professor","MD",2022,0,0,0,0,0,0,0,0,0,0,0,0,0,0]
["MGMAAcademicAllProfessorMDOrthopedic Surgery: HandL","Orthopedic Surgery: Hand","Code","MGMA","Academic","All","Professor","MD",2022,"$552,859",{"$f":"((O1029-J1029)/25)*5 + J1029","v":584372},615885,647398,678911,"$710,424",754061,797698,841335,884972,"$928,609",1010203,1091797,"$1,336,579"]
["MGMAAcademicAllProfessorMDOrthopedic Surgery: Hip and JointL","Orthopedic Surgery: Hip and Joint","Code","MGMA","Academic","All","Professor","MD",2022,"$517,367",566483.6,615600.19999999995,664716.80000000005,713833.4,"$762,950",876320.4,989690.8,1103061.2,1216431.6000000001,"$1,329,802",1418393.8,1506985.6,"$1,772,761"]
["MGMAAcademicAllProfessorMDOrthopedic Surgery: OncologyL","Orthopedic Surgery: Oncology","Code","MGMA","Academic","All","Professor","MD",2022,0,0,0,0,0,0,0,0,0,0,0,0,0,0]
["MGMAAcademicAllProfessorMDOrthopedic Surgery: Shoulder/ElbowL","Orthopedic Surgery: Shoulder/Elbow","Code","MGMA","Academic","All","Professor","MD",2022,0,0,0,0,0,0,0,0,0,0,0,0,0,0]
["MGMAAcademicAllProfessorMDOrthopedic Surgery: SpineL","Orthopedic Surgery: Spine","Code","MGMA","Academic","All","Professor","MD",2022,"$633,510",665273.4,697036.80000000005,728800.2,760563.6,"$792,327",832365.6,872404.2,912442.8,952481.4,"$992,520",1003963.4,1015406.8,"$1,049,737"]
["MGMAAcademicAllProfessorMDOrthopedic Surgery: Sports MedicineL","Orthopedic Surgery: Sports Medicine","Code","MGMA","Academic","All","Professor","MD",2022,"$522,698",561070.19999999995,599442.4,637814.6,676186.8,"$714,559",811956.8,909354.6,1006752.4,1104150.2,"$1,201,548",1309074.2,1416600.4,"$1,739,179"]
["MGMAAcademicAllProfessorMDOrthopedic Surgery: TraumaL","Orthopedic Surgery: Trauma","Code","MGMA","Academic","All","Professor","MD",2022,"$489,987",520509.6,551032.19999999995,581554.80000000005,612077.4,"$642,600",675124.2,707648.4,740172.6,772696.8,"$805,221",834632,864043,"$952,276"]
["MGMAAcademicAllProfessorMDOtorhinolaryngologyL","Otorhinolaryngology","Code","MGMA","Academic","All","Professor","MD",2022,"$413,948",430871,447794,464717,481640,"$498,563",519698.8,540834.6,561970.4,583106.19999999995,"$604,242",634326.19999999995,664410.4,"$754,663"]
["MGMAAcademicAllProfessorMDPain Management: NonanesthesiaL","Pain Management: Nonanesthesia","Code","MGMA","Academic","All","Professor","MD",2022,0,0,0,0,0,0,0,0,0,0,0,0,0,0]
["MGMAAcademicAllProfessorMDPathology: Anatomic and ClinicalL","Pathology: Anatomic and Clinical","Code","MGMA","Academic","All","Professor","MD",2022,"$180,460",218897.4,257334.8,295772.2,334209.59999999998,"$372,647",380626,388605,396584,404563,"$412,542",436120.8,459699.6,"$530,436"]
["MGMAAcademicAllProfessorMDPathology: AnatomicL","Pathology: Anatomic","Code","MGMA","Academic","All","Professor","MD",2022,"$312,129",318587,325045,331503,337961,"$344,419",356337,368255,380173,392091,"$404,009",422764.79999999999,441520.6,"$497,788"]
["MGMAAcademicAllProfessorMDPathology: Anatomic-AutopsyL","Pathology: Anatomic-Autopsy","Code","MGMA","Academic","All","Professor","MD",2022,0,0,0,0,0,0,0,0,0,0,0,0,0,0]
["MGMAAcademicAllProfessorMDPathology: Anatomic-CytopathologyL","Pathology: Anatomic-Cytopathology","Code","MGMA","Academic","All","Professor","MD",2022,0,0,0,0,0,0,0,0,0,0,0,0,0,0]
["MGMAAcademicAllProfessorMDPathology: Anatomic-NeuropathologyL","Pathology: Anatomic-Neuropathology","Code","MGMA","Academic","All","Professor","MD",2022,0,0,0,0,0,0,0,0,0,0,0,0,0,0]
["MGMAAcademicAllProfessorMDPathology: Anatomic-RenalL","Pathology: Anatomic-Renal","Code","MGMA","Academic","All","Professor","MD",2022,0,0,0,0,0,0,0,0,0,0,0,0,0,0]
["MGMAAcademicAllProfessorMDPathology: ClinicalL","Pathology: Clinical","Code","MGMA","Academic","All","Professor","MD",2022,"$317,883",322887.2,327891.40000000002,332895.59999999998,337899.8,"$342,904",348121.2,353338.4,358555.6,363772.8,"$368,990",376980,384970,"$408,940"]
["MGMAAcademicAllProfessorMDPathology: Clinical-HematopathologyL","Pathology: Clinical-Hematopathology","Code","MGMA","Academic","All","Professor","MD",2022,0,0,0,0,0,0,0,0,0,0,0,0,0,0]
["MGMAAcademicAllProfessorMDPathology: Clinical-Transfusion MedicineL","Pathology: Clinical-Transfusion Medicine","Code","MGMA","Academic","All","Professor","MD",2022,0,0,0,0,0,0,0,0,0,0,0,0,0,0]
["MGMAAcademicAllProfessorMDPathology: SurgicalL","Pathology: Surgical","Code","MGMA","Academic","All","Professor","MD",2022,"$321,312",324143.59999999998,326975.2,329806.8,332638.40000000002,"$335,470",340498.2,345526.4,350554.6,355582.8,"$360,611",367599.4,374587.8,"$395,553"]
["MGMAAcademicAllProfessorMDPediatrics: GeneralL","Pediatrics: General","Code","MGMA","Academic","All","Professor","MD",2022,"$232,053",239539.4,247025.8,254512.2,261998.6,"$269,485",276236.59999999998,282988.2,289739.8,296491.40000000002,"$303,243",318935.8,334628.59999999998,"$381,707"]
["MGMAAcademicAllProfessorMDPediatrics: Adolescent MedicineL","Pediatrics: Adolescent Medicine","Code","MGMA","Academic","All","Professor","MD",2022,"$251,006",256251.4,261496.8,266742.2,271987.59999999998,"$277,233",283902.59999999998,290572.2,297241.8,303911.40000000002,"$310,581",315846.8,321112.59999999998,"$336,910"]
["MGMAAcademicAllProfessorMDPediatrics: Allergy/ImmunologyL","Pediatrics: Allergy/Immunology","Code","MGMA","Academic","All","Professor","MD",2022,0,0,0,0,0,0,0,0,0,0,0,0,0,0]
["MGMAAcademicAllProfessorMDPediatrics: AnesthesiologyL","Pediatrics: Anesthesiology","Code","MGMA","Academic","All","Professor","MD",2022,"$464,945",473404.4,481863.8,490323.20000000001,498782.6,"$507,242",518767.6,530293.19999999995,541818.80000000005,553344.4,"$564,870",577571,590272,"$628,375"]
["MGMAAcademicAllProfessorMDPediatrics: Bone Marrow TransplantL","Pediatrics: Bone Marrow Transplant","Code","MGMA","Academic","All","Professor","MD",2022,0,0,0,0,0,0,0,0,0,0,0,0,0,0]
["MGMAAcademicAllProfessorMDPediatrics: CardiologyL","Pediatrics: Cardiology","Code","MGMA","Academic","All","Professor","MD",2022,"$329,257",338829.8,348402.6,357975.4,367548.2,"$377,121",386244.4,395367.8,404491.2,413614.6,"$422,738",438733,454728,"$502,713"]
["MGMAAcademicAllProfessorMDPediatrics: Cardiovascular SurgeryL","Pediatrics: Cardiovascular Surgery","Code","MGMA","Academic","All","Professor","MD",2022,"$626,027",680688.2,735349.4,790010.6,844671.8,"$899,333",974702,1050071,1125440,1200809,"$1,276,178",1573118.2,1870058.4,"$2,760,879"]
["MGMAAcademicAllProfessorMDPediatrics: Child DevelopmentL","Pediatrics: Child Development","Code","MGMA","Academic","All","Professor","MD",2022,0,0,0,0,0,0,0,0,0,0,0,0,0,0]
["MGMAAcademicAllProfessorMDPediatrics: Critical Care/IntensivistL","Pediatrics: Critical Care/Intensivist","Code","MGMA","Academic","All","Professor","MD",2022,"$349,854",361255.4,372656.8,384058.2,395459.6,"$406,861",420002.2,433143.4,446284.6,459425.8,"$472,567",495503.4,518439.8,"$587,249"]
["MGMAAcademicAllProfessorMDPediatrics: DermatologyL","Pediatrics: Dermatology","Code","MGMA","Academic","All","Professor","MD",2022,0,0,0,0,0,0,0,0,0,0,0,0,0,0]
["MGMAAcademicAllProfessorMDPediatrics: Emergency MedicineL","Pediatrics: Emergency Medicine","Code","MGMA","Academic","All","Professor","MD",2022,"$291,856",298046.2,304236.40000000002,310426.59999999998,316616.8,"$322,807",335201,347595,359989,372383,"$384,777",389198,393619,"$406,882"]
["MGMAAcademicAllProfessorMDPediatrics: EndocrinologyL","Pediatrics: Endocrinology","Code","MGMA","Academic","All","Professor","MD",2022,"$215,486",223601.6,231717.2,239832.8,247948.4,"$256,064",263005.40000000002,269946.8,276888.2,283829.59999999998,"$290,771",304591.59999999998,318412.2,"$359,874"]
["MGMAAcademicAllProfessorMDPediatrics: GastroenterologyL","Pediatrics: Gastroenterology","Code","MGMA","Academic","All","Professor","MD",2022,"$311,829",317666.59999999998,323504.2,329341.8,335179.40000000002,"$341,017",352924,364831,376738,388645,"$400,552",417952.8,435353.59999999998,"$487,556"]
["MGMAAcademicAllProfessorMDPediatrics: GeneticsL","Pediatrics: Genetics","Code","MGMA","Academic","All","Professor","MD",2022,"$214,099",225994.6,237890.2,249785.8,261681.4,"$273,577",289232.40000000002,304887.8,320543.2,336198.6,"$351,854",359685.8,367517.6,"$391,013"]
["MGMAAcademicAllProfessorMDPediatrics: Hematology/OncologyL","Pediatrics: Hematology/Oncology","Code","MGMA","Academic","All","Professor","MD",2022,"$260,638",267064.8,273491.59999999998,279918.40000000002,286345.2,"$292,772",299994.59999999998,307217.2,314439.8,321662.40000000002,"$328,885",339854.8,350824.6,"$383,734"]
["MGMAAcademicAllProfessorMDPediatrics: HospitalistL","Pediatrics: Hospitalist","Code","MGMA","Academic","All","Professor","MD",2022,"$236,111",244536,252961,261386,269811,"$278,236",294569.59999999998,310903.2,327236.8,343570.4,"$359,904",372677.6,385451.2,"$423,772"]
["MGMAAcademicAllProfessorMDPediatrics: Hospitalist-Internal MedicineL","Pediatrics: Hospitalist-Internal Medicine","Code","MGMA","Academic","All","Professor","MD",2022,0,0,0,0,0,0,0,0,0,0,0,0,0,0]
["MGMAAcademicAllProfessorMDPediatrics: Infectious DiseaseL","Pediatrics: Infectious Disease","Code","MGMA","Academic","All","Professor","MD",2022,"$231,630",240131.8,248633.60000000001,257135.4,265637.2,"$274,139",280676,287213,293750,300287,"$306,824",328753.40000000002,350682.8,"$416,471"]
["MGMAAcademicAllProfessorMDPediatrics: Internal MedicineL","Pediatrics: Internal Medicine","Code","MGMA","Academic","All","Professor","MD",2022,0,0,0,0,0,0,0,0,0,0,0,0,0,0]
["MGMAAcademicAllProfessorMDPediatrics: Neonatal MedicineL","Pediatrics: Neonatal Medicine","Code","MGMA","Academic","All","Professor","MD",2022,"$324,031",332569.40000000002,341107.8,349646.2,358184.6,"$366,723",382728.4,398733.8,414739.20000000001,430744.6,"$446,750",455846,464942,"$492,230"]
["MGMAAcademicAllProfessorMDPediatrics: NephrologyL","Pediatrics: Nephrology","Code","MGMA","Academic","All","Professor","MD",2022,"$236,387",245824.6,255262.2,264699.8,274137.40000000002,"$283,575",292695.2,301815.40000000002,310935.59999999998,320055.8,"$329,176",344145.6,359115.2,"$404,024"]
["MGMAAcademicAllProfessorMDPediatrics: NeurologyL","Pediatrics: Neurology","Code","MGMA","Academic","All","Professor","MD",2022,"$252,546",260680.2,268814.40000000002,276948.59999999998,285082.8,"$293,217",300279.59999999998,307342.2,314404.8,321467.40000000002,"$328,530",341662.6,354795.2,"$394,193"]
["MGMAAcademicAllProfessorMDPediatrics: NeurosurgeryL","Pediatrics: Neurosurgery","Code","MGMA","Academic","All","Professor","MD",2022,0,0,0,0,0,0,0,0,0,0,0,0,0,0]
["MGMAAcademicAllProfessorMDPediatrics: OphthalmologyL","Pediatrics: Ophthalmology","Code","MGMA","Academic","All","Professor","MD",2022,"$311,756",337495,363234,388973,414712,"$440,451",481544.6,522638.2,563731.80000000005,604825.4,"$645,919",654003.19999999995,662087.4,"$686,340"]
["MGMAAcademicAllProfessorMDPediatrics: Orthopedic SurgeryL","Pediatrics: Orthopedic Surgery","Code","MGMA","Academic","All","Professor","MD",2022,"$461,097",539970.6,618844.19999999995,697717.8,776591.39999999991,"$855,465",909636.6,963808.2,1017979.8,1072151.3999999999,"$1,126,323",1152640.2,1178957.3999999999,"$1,257,909"]
["MGMAAcademicAllProfessorMDPediatrics: OtorhinolaryngologyL","Pediatrics: Otorhinolaryngology","Code","MGMA","Academic","All","Professor","MD",2022,"$389,640",406994.4,424348.8,441703.2,459057.6,"$476,412",486250,496088,505926,515764,"$525,602",558113.19999999995,590624.4,"$688,158"]
["MGMAAcademicAllProfessorMDPediatrics: Plastic and Reconstruction SurgeryL","Pediatrics: Plastic and Reconstruction Surgery","Code","MGMA","Academic","All","Professor","MD",2022,0,0,0,0,0,0,0,0,0,0,0,0,0,0]
["MGMAAcademicAllProfessorMDPediatrics: PulmonologyL","Pediatrics: Pulmonology","Code","MGMA","Academic","All","Professor","MD",2022,"$260,986",266698.8,272411.59999999998,278124.40000000002,283837.2,"$289,550",295668.40000000002,301786.8,307905.2,314023.59999999998,"$320,142",332377.2,344612.4,"$381,318"]
["MGMAAcademicAllProfessorMDPediatrics: RadiologyL","Pediatrics: Radiology","Code","MGMA","Academic","All","Professor","MD",2022,"$518,690",527610.6,536531.19999999995,545451.80000000005,554372.4,"$563,293",568282,573271,578260,583249,"$588,238",604939.4,621640.80000000005,"$671,745"]
["MGMAAcademicAllProfessorMDPediatrics: RheumatologyL","Pediatrics: Rheumatology","Code","MGMA","Academic","All","Professor","MD",2022,"$257,127",262805.59999999998,268484.2,274162.8,279841.40000000002,"$285,520",296515.59999999998,307511.2,318506.8,329502.40000000002,"$340,498",348047.6,355597.2,"$378,246"]
["MGMAAcademicAllProfessorMDPediatrics: Sports MedicineL","Pediatrics: Sports Medicine","Code","MGMA","Academic","All","Professor","MD",2022,0,0,0,0,0,0,0,0,0,0,0,0,0,0]
["MGMAAcademicAllProfessorMDPediatrics: SurgeryL","Pediatrics: Surgery","Code","MGMA","Academic","All","Professor","MD",2022,"$579,478",592657.4,605836.80000000005,619016.19999999995,632195.6,"$645,375",678431.6,711488.2,744544.8,777601.4,"$810,658",837031.8,863405.6,"$942,527"]
["MGMAAcademicAllProfessorMDPediatrics: Urgent CareL","Pediatrics: Urgent Care","Code","MGMA","Academic","All","Professor","MD",2022,0,0,0,0,0,0,0,0,0,0,0,0,0,0]
["MGMAAcademicAllProfessorMDPediatrics: UrologyL","Pediatrics: Urology","Code","MGMA","Academic","All","Professor","MD",2022,"$550,016",564949.4,579882.80000000005,594816.19999999995,609749.6,"$624,683",637544.80000000005,650406.6,663268.4,676130.2,"$688,992",729481.8,769971.6,"$891,441"]
["MGMAAcademicAllProfessorMDPhysiatry (Physical Medicine and Rehabilitation)L","Physiatry (Physical Medicine and Rehabilitation)","Code","MGMA","Academic","All","Professor","MD",2022,"$258,149",268993,279837,290681,301525,"$312,369",331375.40000000002,350381.8,369388.2,388394.6,"$407,401",433180.6,458960.2,"$536,299"]
["MGMAAcademicAllProfessorMDPodiatry: GeneralL","Podiatry: General","Code","MGMA","Academic","All","Professor","MD",2022,0,0,0,0,0,0,0,0,0,0,0,0,0,0]
["MGMAAcademicAllProfessorMDPodiatry: Surgery-Foot and AnkleL","Podiatry: Surgery-Foot and Ankle","Code","MGMA","Academic","All","Professor","MD",2022,0,0,0,0,0,0,0,0,0,0,0,0,0,0]
["MGMAAcademicAllProfessorMDPsychiatry: GeneralL","Psychiatry: General","Code","MGMA","Academic","All","Professor","MD",2022,"$241,611",247703.2,253795.4,259887.6,265979.8,"$272,072",284441.40000000002,296810.8,309180.2,321549.59999999998,"$333,919",339068.6,344218.2,"$359,667"]
["MGMAAcademicAllProfessorMDPsychiatry: Addiction MedicineL","Psychiatry: Addiction Medicine","Code","MGMA","Academic","All","Professor","MD",2022,0,0,0,0,0,0,0,0,0,0,0,0,0,0]
["MGMAAcademicAllProfessorMDPsychiatry: Behavioral MedicineL","Psychiatry: Behavioral Medicine","Code","MGMA","Academic","All","Professor","MD",2022,0,0,0,0,0,0,0,0,0,0,0,0,0,0]
["MGMAAcademicAllProfessorMDPsychiatry: Chemical DependencyL","Psychiatry: Chemical Dependency","Code","MGMA","Academic","All","Professor","MD",2022,0,0,0,0,0,0,0,0,0,0,0,0,0,0]
["MGMAAcademicAllProfessorMDPsychiatry: Child and AdolescentL","Psychiatry: Child and Adolescent","Code","MGMA","Academic","All","Professor","MD",2022,"$263,681",272201.59999999998,280722.2,289242.8,297763.40000000002,"$306,284",311643.8,317003.59999999998,322363.40000000002,327723.2,"$333,083",344526.2,355969.4,"$390,299"]
["MGMAAcademicAllProfessorMDPsychiatry: ForensicL","Psychiatry: Forensic","Code","MGMA","Academic","All","Professor","MD",2022,0,0,0,0,0,0,0,0,0,0,0,0,0,0]
[{"$f":"D1091&E1091&F1091&G1091&H1091&B1091&\"L\"","v":"MGMAAcademicAllProfessorMDPsychiatry: GeriatricL"},"Psychiatry: Geriatric","Code","MGMA","Academic","All","Professor","MD",2022,0,0,{"$f":"((O1091-J1091)/25)*10 + J1091","v":0},{"$f":"((O1091-J1091)/25)*15 + J1091","v":0},{"$f":"((O1091-J1091)/25)*20 + J1091","v":0},0,{"$f":"((T1091-O1091)/25)*5 + O1091","v":0},{"$f":"((T1091-O1091)/25)*10 + O1091","v":0},{"$f":"((T1091-O1091)/25)*15 + O1091","v":0},{"$f":"((T1091-O1091)/25)*20 + O1091","v":0},0,{"$f":"((W1091-T1091)/25)*5 + T1091","v":0},{"$f":"((W1091-T1091)/25)*10 + T1091","v":0},0]
["MGMAAcademicAllProfessorMDPulmonary Medicine: GeneralL","Pulmonary Medicine: General","Code","MGMA","Academic","All","Professor","MD",2022,"$265,212",274153.59999999998,283095.2,292036.8,300978.40000000002,"$309,920",324648.8,339377.6,354106.4,368835.2,"$383,564",398063.6,412563.20000000001,"$456,062"]
["MGMAAcademicAllProfessorMDPulmonary Medicine: Critical CareL","Pulmonary Medicine: Critical Care","Code","MGMA","Academic","All","Professor","MD",2022,"$325,118",{"$f":"((O1093-J1093)/25)*5 + J1093","v":332743.2},340368.4,347993.59999999998,355618.8,"$363,244",378276,393308,408340,423372,"$438,404",446004.4,453604.8,"$476,406"]
["MGMAAcademicAllProfessorMDPulmonary Medicine: General and Critical CareL","Pulmonary Medicine: General and Critical Care","Code","MGMA","Academic","All","Professor","MD",2022,"$307,293",321745.40000000002,336197.8,350650.2,365102.6,"$379,555",393514.6,407474.2,421433.8,435393.4,"$449,353",466420.2,483487.4,"$534,689"]
["MGMAAcademicAllProfessorMDRadiation OncologyL","Radiation Oncology","Code","MGMA","Academic","All","Professor","MD",2022,"$521,805",534228.80000000005,546652.6,559076.4,571500.19999999995,"$583,924",591195.19999999995,598466.4,605737.6,613008.80000000005,"$620,280",654789.80000000005,689299.6,"$792,829"]
["MGMAAcademicAllProfessorMDRadiology: InterventionalL","Radiology: Interventional","Code","MGMA","Academic","All","Professor","MD",2022,"$468,149",486861,505573,524285,542997,"$561,709",576520,591331,606142,620953,"$635,764",663681.19999999995,691598.4,"$775,350"]
["MGMAAcademicAllProfessorMDRadiology: DiagnosticL","Radiology: Diagnostic","Code","MGMA","Academic","All","Professor","MD",2022,"$389,459",402529,415599,428669,441739,"$454,809",469695.4,484581.8,499468.2,514354.6,"$529,241",540452,551663,"$585,296"]
["MGMAAcademicAllProfessorMDRadiology: NeurologicalL","Radiology: Neurological","Code","MGMA","Academic","All","Professor","MD",2022,"$417,668",433608,449548,465488,481428,"$497,368",510604.4,523840.8,537077.19999999995,550313.6,"$563,550",590840.4,618130.80000000005,"$700,002"]
["MGMAAcademicAllProfessorMDRadiology: Nuclear MedicineL","Radiology: Nuclear Medicine","Code","MGMA","Academic","All","Professor","MD",2022,"$347,664",365026.2,382388.4,399750.6,417112.8,"$434,475",454513.8,474552.6,494591.4,514630.2,"$534,669",549287,563905,"$607,759"]
["MGMAAcademicAllProfessorMDRheumatologyL","Rheumatology","Code","MGMA","Academic","All","Professor","MD",2022,"$222,902",230414.8,237927.6,245440.4,252953.2,"$260,466",268986,277506,286026,294546,"$303,066",343438.8,383811.6,"$504,930"]
["MGMAAcademicAllProfessorMDSleep MedicineL","Sleep Medicine","Code","MGMA","Academic","All","Professor","MD",2022,0,0,0,0,0,0,0,0,0,0,0,0,0,0]
["MGMAAcademicAllProfessorMDSurgery: GeneralL","Surgery: General","Code","MGMA","Academic","All","Professor","MD",2022,"$408,600",423390.8,438181.6,452972.4,467763.20000000001,"$482,554",498398.6,514243.2,530087.80000000005,545932.4,"$561,777",603692,645607,"$771,352"]
["MGMAAcademicAllProfessorMDSurgery: BariatricL","Surgery: Bariatric","Code","MGMA","Academic","All","Professor","MD",2022,0,0,0,0,0,0,0,0,0,0,0,0,0,0]
["MGMAAcademicAllProfessorMDSurgery: BreastL","Surgery: Breast","Code","MGMA","Academic","All","Professor","MD",2022,"$419,131",430389.2,441647.4,452905.6,464163.8,"$475,422",496734.4,518046.8,539359.19999999995,560671.6,"$581,984",634032,686080,"$842,224"]
["MGMAAcademicAllProfessorMDSurgery: CardiovascularL","Surgery: Cardiovascular","Code","MGMA","Academic","All","Professor","MD",2022,"$685,315",708351.8,731388.6,754425.4,777462.2,"$800,499",850454.4,900409.8,950365.2,1000320.6,"$1,050,276",1080220.8,1110165.6000000001,"$1,200,000"]
["MGMAAcademicAllProfessorMDSurgery: Colon and RectalL","Surgery: Colon and Rectal","Code","MGMA","Academic","All","Professor","MD",2022,"$513,514",524942.4,536370.80000000005,547799.19999999995,559227.6,"$570,656",586498,602340,618182,634024,"$649,866",674560.2,699254.4,"$773,337"]
["MGMAAcademicAllProfessorMDSurgery: EndocrineL","Surgery: Endocrine","Code","MGMA","Academic","All","Professor","MD",2022,0,0,0,0,0,0,0,0,0,0,0,0,0,0]
["MGMAAcademicAllProfessorMDSurgery: Endovascular (Primary)L","Surgery: Endovascular (Primary)","Code","MGMA","Academic","All","Professor","MD",2022,0,0,0,0,0,0,0,0,0,0,0,0,0,0]
["MGMAAcademicAllProfessorMDSurgery: NeurologicalL","Surgery: Neurological","Code","MGMA","Academic","All","Professor","MD",2022,"$648,062",678049.6,708037.2,738024.8,768012.4,"$798,000",838936.2,879872.4,920808.6,961744.8,"$1,002,681",1050119.6000000001,1097558.2,"$1,239,874"]
["MGMAAcademicAllProfessorMDSurgery: OncologyL","Surgery: Oncology","Code","MGMA","Academic","All","Professor","MD",2022,"$425,718",441774.4,457830.8,473887.2,489943.6,"$506,000",522866.6,539733.19999999995,556599.80000000005,573466.4,"$590,333",639045.6,687758.2,"$833,896"]
["MGMAAcademicAllProfessorMDSurgery: OralL","Surgery: Oral","Code","MGMA","Academic","All","Professor","MD",2022,0,0,0,0,0,0,0,0,0,0,0,0,0,0]
["MGMAAcademicAllProfessorMDSurgery: Plastic and ReconstructionL","Surgery: Plastic and Reconstruction","Code","MGMA","Academic","All","Professor","MD",2022,"$455,581",479416.6,503252.2,527087.80000000005,550923.4,"$574,759",606248,637737,669226,700715,"$732,204",770533.2,808862.4,"$923,850"]
["MGMAAcademicAllProfessorMDSurgery: Plastic and Reconstruction-HandL","Surgery: Plastic and Reconstruction-Hand","Code","MGMA","Academic","All","Professor","MD",2022,0,0,0,0,0,0,0,0,0,0,0,0,0,0]
["MGMAAcademicAllProfessorMDSurgery: Thoracic (Primary)L","Surgery: Thoracic (Primary)","Code","MGMA","Academic","All","Professor","MD",2022,"$581,388",603497.80000000005,625607.6,647717.4,669827.19999999995,"$691,937",724916.4,757895.8,790875.2,823854.6,"$856,834",909315.6,961797.2,"$1,119,242"]
["MGMAAcademicAllProfessorMDSurgery: TransplantL","Surgery: Transplant","Code","MGMA","Academic","All","Professor","MD",2022,"$461,540",484510.2,507480.4,530450.6,553420.80000000005,"$576,391",624713.4,673035.8,721358.2,769680.6,"$818,003",843065.2,868127.4,"$943,314"]
["MGMAAcademicAllProfessorMDSurgery: Transplant-HeartL","Surgery: Transplant-Heart","Code","MGMA","Academic","All","Professor","MD",2022,0,0,0,0,0,0,0,0,0,0,0,0,0,0]
["MGMAAcademicAllProfessorMDSurgery: Transplant-Heart/LungL","Surgery: Transplant-Heart/Lung","Code","MGMA","Academic","All","Professor","MD",2022,0,0,0,0,0,0,0,0,0,0,0,0,0,0]
["MGMAAcademicAllProfessorMDSurgery: Transplant-KidneyL","Surgery: Transplant-Kidney","Code","MGMA","Academic","All","Professor","MD",2022,0,0,0,0,0,0,0,0,0,0,0,0,0,0]
["MGMAAcademicAllProfessorMDSurgery: Transplant-LiverL","Surgery: Transplant-Liver","Code","MGMA","Academic","All","Professor","MD",2022,0,0,0,0,0,0,0,0,0,0,0,0,0,0]
["MGMAAcademicAllProfessorMDSurgery: TraumaL","Surgery: Trauma","Code","MGMA","Academic","All","Professor","MD",2022,"$451,810",464246.6,476683.2,489119.8,501556.4,"$513,993",528809.4,543625.80000000005,558442.19999999995,573258.6,"$588,075",610758.40000000002,633441.80000000005,"$701,492"]
["MGMAAcademicAllProfessorMDSurgery: Trauma-BurnL","Surgery: Trauma-Burn","Code","MGMA","Academic","All","Professor","MD",2022,0,0,0,0,0,0,0,0,0,0,0,0,0,0]
["MGMAAcademicAllProfessorMDSurgery: Vascular (Primary)L","Surgery: Vascular (Primary)","Code","MGMA","Academic","All","Professor","MD",2022,"$484,995",507840,530685,553530,576375,"$599,220",624333.6,649447.19999999995,674560.8,699674.4,"$724,788",763024.2,801260.4,"$915,969"]
["MGMAAcademicAllProfessorMDUrgent CareL","Urgent Care","Code","MGMA","Academic","All","Professor","MD",2022,0,0,0,0,0,0,0,0,0,0,0,0,0,0]
["MGMAAcademicAllProfessorMDUrologyL","Urology","Code","MGMA","Academic","All","Professor","MD",2022,"$436,475",452755.8,469036.6,485317.4,501598.2,"$517,879",536194,554509,572824,591139,"$609,454",635959.19999999995,662464.4,"$741,980"]
["MGMAAcademicAllProfessorMDAnesthesia AssistanttL","Anesthesia Assistantt","Code","MGMA","Academic","All","Professor","MD",2022,0,0,0,0,0,0,0,0,0,0,0,0,0,0]
["MGMAAcademicAllProfessorMDAudiologistL","Audiologist","Code","MGMA","Academic","All","Professor","MD",2022,0,0,0,0,0,0,0,0,0,0,0,0,0,0]
["MGMAAcademicAllProfessorMDCertified Registered Nurse AnesthetistL","Certified Registered Nurse Anesthetist","Code","MGMA","Academic","All","Professor","MD",2022,0,0,0,0,0,0,0,0,0,0,0,0,0,0]
["MGMAAcademicAllProfessorMDChiropractorL","Chiropractor","Code","MGMA","Academic","All","Professor","MD",2022,0,0,0,0,0,0,0,0,0,0,0,0,0,0]
["MGMAAcademicAllProfessorMDClinical Nurse Specialist L","Clinical Nurse Specialist ","Code","MGMA","Academic","All","Professor","MD",2022,0,0,0,0,0,0,0,0,0,0,0,0,0,0]
["MGMAAcademicAllProfessorMDDietician/NutritionistL","Dietician/Nutritionist","Code","MGMA","Academic","All","Professor","MD",2022,0,0,0,0,0,0,0,0,0,0,0,0,0,0]
["MGMAAcademicAllProfessorMDGenetic Counselor L","Genetic Counselor ","Code","MGMA","Academic","All","Professor","MD",2022,0,0,0,0,0,0,0,0,0,0,0,0,0,0]
["MGMAAcademicAllProfessorMDLicensed Clinical Social WorkerL","Licensed Clinical Social Worker","Code","MGMA","Academic","All","Professor","MD",2022,0,0,0,0,0,0,0,0,0,0,0,0,0,0]
["MGMAAcademicAllProfessorMDNurse Midwife: Outpatient/Inpatient DeliveriesL","Nurse Midwife: Outpatient/Inpatient Deliveries","Code","MGMA","Academic","All","Professor","MD",2022,0,0,0,0,0,0,0,0,0,0,0,0,0,0]
["MGMAAcademicAllProfessorMDNurse Midwife: Outpatient (Only)L","Nurse Midwife: Outpatient (Only)","Code","MGMA","Academic","All","Professor","MD",2022,0,0,0,0,0,0,0,0,0,0,0,0,0,0]
["MGMAAcademicAllProfessorMDNurse Midwife: Inpatient (Only)L","Nurse Midwife: Inpatient (Only)","Code","MGMA","Academic","All","Professor","MD",2022,0,0,0,0,0,0,0,0,0,0,0,0,0,0]
["MGMAAcademicAllProfessorMDNP (Surgical)L","NP (Surgical)","Code","MGMA","Academic","All","Professor","MD",2022,0,0,0,0,0,0,0,0,0,0,0,0,0,0]
["MGMAAcademicAllProfessorMDNP: AnesthesiologyL","NP: Anesthesiology","Code","MGMA","Academic","All","Professor","MD",2022,0,0,0,0,0,0,0,0,0,0,0,0,0,0]
["MGMAAcademicAllProfessorMDNP: Cardiothoracic SurgeryL","NP: Cardiothoracic Surgery","Code","MGMA","Academic","All","Professor","MD",2022,0,0,0,0,0,0,0,0,0,0,0,0,0,0]
["MGMAAcademicAllProfessorMDNP: NeurosurgeryL","NP: Neurosurgery","Code","MGMA","Academic","All","Professor","MD",2022,0,0,0,0,0,0,0,0,0,0,0,0,0,0]
["MGMAAcademicAllProfessorMDNP: Orthopedics (Surgical)L","NP: Orthopedics (Surgical)","Code","MGMA","Academic","All","Professor","MD",2022,0,0,0,0,0,0,0,0,0,0,0,0,0,0]
["MGMAAcademicAllProfessorMDNP: OtorhinolaryngologyL","NP: Otorhinolaryngology","Code","MGMA","Academic","All","Professor","MD",2022,0,0,0,0,0,0,0,0,0,0,0,0,0,0]
["MGMAAcademicAllProfessorMDNP: Surgery: GeneralL","NP: Surgery: General","Code","MGMA","Academic","All","Professor","MD",2022,0,0,0,0,0,0,0,0,0,0,0,0,0,0]
["MGMAAcademicAllProfessorMDNP: UrologyL","NP: Urology","Code","MGMA","Academic","All","Professor","MD",2022,0,0,0,0,0,0,0,0,0,0,0,0,0,0]
["MGMAAcademicAllProfessorMDNP: Vascular SurgeryL","NP: Vascular Surgery","Code","MGMA","Academic","All","Professor","MD",2022,0,0,0,0,0,0,0,0,0,0,0,0,0,0]
["MGMAAcademicAllProfessorMDNP (Primary Care)L","NP (Primary Care)","Code","MGMA","Academic","All","Professor","MD",2022,0,0,0,0,0,0,0,0,0,0,0,0,0,0]
["MGMAAcademicAllProfessorMDNP: AdultL","NP: Adult","Code","MGMA","Academic","All","Professor","MD",2022,0,0,0,0,0,0,0,0,0,0,0,0,0,0]
["MGMAAcademicAllProfessorMDNP: Family Medicine (with OB)L","NP: Family Medicine (with OB)","Code","MGMA","Academic","All","Professor","MD",2022,0,0,0,0,0,0,0,0,0,0,0,0,0,0]
["MGMAAcademicAllProfessorMDNP: Family Medicine (without OB)L","NP: Family Medicine (without OB)","Code","MGMA","Academic","All","Professor","MD",2022,0,0,0,0,0,0,0,0,0,0,0,0,0,0]
["MGMAAcademicAllProfessorMDNP: Gerontology/Elder HealthL","NP: Gerontology/Elder Health","Code","MGMA","Academic","All","Professor","MD",2022,0,0,0,0,0,0,0,0,0,0,0,0,0,0]
["MGMAAcademicAllProfessorMDNP: Hospice/Palliative CareL","NP: Hospice/Palliative Care","Code","MGMA","Academic","All","Professor","MD",2022,0,0,0,0,0,0,0,0,0,0,0,0,0,0]
["MGMAAcademicAllProfessorMDNP: Hospitalist (Primary Care)L","NP: Hospitalist (Primary Care)","Code","MGMA","Academic","All","Professor","MD",2022,0,0,0,0,0,0,0,0,0,0,0,0,0,0]
["MGMAAcademicAllProfessorMDNP: Internal MedicineL","NP: Internal Medicine","Code","MGMA","Academic","All","Professor","MD",2022,0,0,0,0,0,0,0,0,0,0,0,0,0,0]
["MGMAAcademicAllProfessorMDNP: OB/GYN/Women's HealthL","NP: OB/GYN/Women's Health","Code","MGMA","Academic","All","Professor","MD",2022,0,0,0,0,0,0,0,0,0,0,0,0,0,0]
["MGMAAcademicAllProfessorMDNP: Pediatric/Child HealthL","NP: Pediatric/Child Health","Code","MGMA","Academic","All","Professor","MD",2022,0,0,0,0,0,0,0,0,0,0,0,0,0,0]
[{"$f":"D1155&E1155&F1155&G1155&H1155&B1155&\"L\"","v":"MGMAAcademicAllProfessorMDNP: Urgent CareL"},"NP: Urgent Care","Code","MGMA","Academic","All","Professor","MD",2022,0,0,{"$f":"((O1155-J1155)/25)*10 + J1155","v":0},{"$f":"((O1155-J1155)/25)*15 + J1155","v":0},{"$f":"((O1155-J1155)/25)*20 + J1155","v":0},0,{"$f":"((T1155-O1155)/25)*5 + O1155","v":0},{"$f":"((T1155-O1155)/25)*10 + O1155","v":0},{"$f":"((T1155-O1155)/25)*15 + O1155","v":0},{"$f":"((T1155-O1155)/25)*20 + O1155","v":0},0,{"$f":"((W1155-T1155)/25)*5 + T1155","v":0},{"$f":"((W1155-T1155)/25)*10 + T1155","v":0},0]
["MGMAAcademicAllProfessorMDNP (Nonsurgical/Nonprimary Care)L","NP (Nonsurgical/Nonprimary Care)","Code","MGMA","Academic","All","Professor","MD",2022,0,0,0,0,0,0,0,0,0,0,0,0,0,0]
["MGMAAcademicAllProfessorMDNP: Acute CareL","NP: Acute Care","Code","MGMA","Academic","All","Professor","MD",2022,0,{"$f":"((O1157-J1157)/25)*5 + J1157","v":0},0,0,0,0,0,0,0,0,0,0,0,0]
["MGMAAcademicAllProfessorMDNP: Allergy/ImmunologyL","NP: Allergy/Immunology","Code","MGMA","Academic","All","Professor","MD",2022,0,0,0,0,0,0,0,0,0,0,0,0,0,0]
["MGMAAcademicAllProfessorMDNP: CardiologyL","NP: Cardiology","Code","MGMA","Academic","All","Professor","MD",2022,0,0,0,0,0,0,0,0,0,0,0,0,0,0]
["MGMAAcademicAllProfessorMDNP: DermatologyL","NP: Dermatology","Code","MGMA","Academic","All","Professor","MD",2022,0,0,0,0,0,0,0,0,0,0,0,0,0,0]
["MGMAAcademicAllProfessorMDNP: Emergency MedicineL","NP: Emergency Medicine","Code","MGMA","Academic","All","Professor","MD",2022,0,0,0,0,0,0,0,0,0,0,0,0,0,0]
["MGMAAcademicAllProfessorMDNP: EndocrinologyL","NP: Endocrinology","Code","MGMA","Academic","All","Professor","MD",2022,0,0,0,0,0,0,0,0,0,0,0,0,0,0]
["MGMAAcademicAllProfessorMDNP: GastroenterologyL","NP: Gastroenterology","Code","MGMA","Academic","All","Professor","MD",2022,0,0,0,0,0,0,0,0,0,0,0,0,0,0]
["MGMAAcademicAllProfessorMDNP: Hematology/OncologyL","NP: Hematology/Oncology","Code","MGMA","Academic","All","Professor","MD",2022,0,0,0,0,0,0,0,0,0,0,0,0,0,0]
["MGMAAcademicAllProfessorMDNP: Hospitalist (Nonsurgical/Nonprimary Care)L","NP: Hospitalist (Nonsurgical/Nonprimary Care)","Code","MGMA","Academic","All","Professor","MD",2022,0,0,0,0,0,0,0,0,0,0,0,0,0,0]
["MGMAAcademicAllProfessorMDNP: Infectious DiseaseL","NP: Infectious Disease","Code","MGMA","Academic","All","Professor","MD",2022,0,0,0,0,0,0,0,0,0,0,0,0,0,0]
["MGMAAcademicAllProfessorMDNP: Neonatal/PerinatalL","NP: Neonatal/Perinatal","Code","MGMA","Academic","All","Professor","MD",2022,0,0,0,0,0,0,0,0,0,0,0,0,0,0]
["MGMAAcademicAllProfessorMDNP: NephrologyL","NP: Nephrology","Code","MGMA","Academic","All","Professor","MD",2022,0,0,0,0,0,0,0,0,0,0,0,0,0,0]
["MGMAAcademicAllProfessorMDNP: NeurologyL","NP: Neurology","Code","MGMA","Academic","All","Professor","MD",2022,0,0,0,0,0,0,0,0,0,0,0,0,0,0]
["MGMAAcademicAllProfessorMDNP: Orthopedics (Nonsurgical/Nonprimary Care)L","NP: Orthopedics (Nonsurgical/Nonprimary Care)","Code","MGMA","Academic","All","Professor","MD",2022,0,0,0,0,0,0,0,0,0,0,0,0,0,0]
["MGMAAcademicAllProfessorMDNP: PhysiatryL","NP: Physiatry","Code","MGMA","Academic","All","Professor","MD",2022,0,0,0,0,0,0,0,0,0,0,0,0,0,0]
["MGMAAcademicAllProfessorMDNP: PsychiatryL","NP: Psychiatry","Code","MGMA","Academic","All","Professor","MD",2022,0,0,0,0,0,0,0,0,0,0,0,0,0,0]
["MGMAAcademicAllProfessorMDNP: Pulmonary MedicineL","NP: Pulmonary Medicine","Code","MGMA","Academic","All","Professor","MD",2022,0,0,0,0,0,0,0,0,0,0,0,0,0,0]
["MGMAAcademicAllProfessorMDNP: RheumatologyL","NP: Rheumatology","Code","MGMA","Academic","All","Professor","MD",2022,0,0,0,0,0,0,0,0,0,0,0,0,0,0]
["MGMAAcademicAllProfessorMDOccupational TherapistL","Occupational Therapist","Code","MGMA","Academic","All","Professor","MD",2022,0,0,0,0,0,0,0,0,0,0,0,0,0,0]
["MGMAAcademicAllProfessorMDOptometristL","Optometrist","Code","MGMA","Academic","All","Professor","MD",2022,0,0,0,0,0,0,0,0,0,0,0,0,0,0]
["MGMAAcademicAllProfessorMDPhDL","PhD","Code","MGMA","Academic","All","Professor","MD",2022,0,0,0,0,0,0,0,0,0,0,0,0,0,0]
["MGMAAcademicAllProfessorMDPhysical TherapistL","Physical Therapist","Code","MGMA","Academic","All","Professor","MD",2022,0,0,0,0,0,0,0,0,0,0,0,0,0,0]
["MGMAAcademicAllProfessorMDPA (Surgical)L","PA (Surgical)","Code","MGMA","Academic","All","Professor","MD",2022,0,0,0,0,0,0,0,0,0,0,0,0,0,0]
["MGMAAcademicAllProfessorMDPA: Anesthesiology L","PA: Anesthesiology ","Code","MGMA","Academic","All","Professor","MD",2022,0,0,0,0,0,0,0,0,0,0,0,0,0,0]
["MGMAAcademicAllProfessorMDPA: Cardiothoracic SurgeryL","PA: Cardiothoracic Surgery","Code","MGMA","Academic","All","Professor","MD",2022,0,0,0,0,0,0,0,0,0,0,0,0,0,0]
["MGMAAcademicAllProfessorMDPA: NeurosurgeryL","PA: Neurosurgery","Code","MGMA","Academic","All","Professor","MD",2022,0,0,0,0,0,0,0,0,0,0,0,0,0,0]
["MGMAAcademicAllProfessorMDPA: Orthopedic (Surgical)L","PA: Orthopedic (Surgical)","Code","MGMA","Academic","All","Professor","MD",2022,0,0,0,0,0,0,0,0,0,0,0,0,0,0]
["MGMAAcademicAllProfessorMDPA: OtorhinolaryngologyL","PA: Otorhinolaryngology","Code","MGMA","Academic","All","Professor","MD",2022,0,0,0,0,0,0,0,0,0,0,0,0,0,0]
["MGMAAcademicAllProfessorMDPA: Surgery: GeneralL","PA: Surgery: General","Code","MGMA","Academic","All","Professor","MD",2022,0,0,0,0,0,0,0,0,0,0,0,0,0,0]
["MGMAAcademicAllProfessorMDPA: UrologyL","PA: Urology","Code","MGMA","Academic","All","Professor","MD",2022,0,0,0,0,0,0,0,0,0,0,0,0,0,0]
["MGMAAcademicAllProfessorMDPA (Primary Care)L","PA (Primary Care)","Code","MGMA","Academic","All","Professor","MD",2022,0,0,0,0,0,0,0,0,0,0,0,0,0,0]
["MGMAAcademicAllProfessorMDPA: Family Medicine (without OB)L","PA: Family Medicine (without OB)","Code","MGMA","Academic","All","Professor","MD",2022,0,0,0,0,0,0,0,0,0,0,0,0,0,0]
["MGMAAcademicAllProfessorMDPA: Hospitalist (Primary Care)L","PA: Hospitalist (Primary Care)","Code","MGMA","Academic","All","Professor","MD",2022,0,0,0,0,0,0,0,0,0,0,0,0,0,0]
["MGMAAcademicAllProfessorMDPA: Internal MedicineL","PA: Internal Medicine","Code","MGMA","Academic","All","Professor","MD",2022,0,0,0,0,0,0,0,0,0,0,0,0,0,0]
["MGMAAcademicAllProfessorMDPA: OB/GYN/Women's HealthL","PA: OB/GYN/Women's Health","Code","MGMA","Academic","All","Professor","MD",2022,0,0,0,0,0,0,0,0,0,0,0,0,0,0]
["MGMAAcademicAllProfessorMDPA: Pediatric/Child HealthL","PA: Pediatric/Child Health","Code","MGMA","Academic","All","Professor","MD",2022,0,0,0,0,0,0,0,0,0,0,0,0,0,0]
["MGMAAcademicAllProfessorMDPA: Urgent CareL","PA: Urgent Care","Code","MGMA","Academic","All","Professor","MD",2022,0,0,0,0,0,0,0,0,0,0,0,0,0,0]
["MGMAAcademicAllProfessorMDPA (Nonsurgical/Nonprimary Care)L","PA (Nonsurgical/Nonprimary Care)","Code","MGMA","Academic","All","Professor","MD",2022,0,0,0,0,0,0,0,0,0,0,0,0,0,0]
["MGMAAcademicAllProfessorMDPA: CardiologyL","PA: Cardiology","Code","MGMA","Academic","All","Professor","MD",2022,0,0,0,0,0,0,0,0,0,0,0,0,0,0]
["MGMAAcademicAllProfessorMDPA: DermatologyL","PA: Dermatology","Code","MGMA","Academic","All","Professor","MD",2022,0,0,0,0,0,0,0,0,0,0,0,0,0,0]
["MGMAAcademicAllProfessorMDPA: Emergency MedicineL","PA: Emergency Medicine","Code","MGMA","Academic","All","Professor","MD",2022,0,0,0,0,0,0,0,0,0,0,0,0,0,0]
["MGMAAcademicAllProfessorMDPA: EndocrinologyL","PA: Endocrinology","Code","MGMA","Academic","All","Professor","MD",2022,0,0,0,0,0,0,0,0,0,0,0,0,0,0]
["MGMAAcademicAllProfessorMDPA: GastroenterologyL","PA: Gastroenterology","Code","MGMA","Academic","All","Professor","MD",2022,0,0,0,0,0,0,0,0,0,0,0,0,0,0]
["MGMAAcademicAllProfessorMDPA: Hematology/OncologyL","PA: Hematology/Oncology","Code","MGMA","Academic","All","Professor","MD",2022,0,0,0,0,0,0,0,0,0,0,0,0,0,0]
["MGMAAcademicAllProfessorMDPA: Hospitalist (Nonsurgical/Nonprimary Care)L","PA: Hospitalist (Nonsurgical/Nonprimary Care)","Code","MGMA","Academic","All","Professor","MD",2022,0,0,0,0,0,0,0,0,0,0,0,0,0,0]
["MGMAAcademicAllProfessorMDPA: Infectious DiseaseL","PA: Infectious Disease","Code","MGMA","Academic","All","Professor","MD",2022,0,0,0,0,0,0,0,0,0,0,0,0,0,0]
["MGMAAcademicAllProfessorMDPA: NephrologyL","PA: Nephrology","Code","MGMA","Academic","All","Professor","MD",2022,0,0,0,0,0,0,0,0,0,0,0,0,0,0]
["MGMAAcademicAllProfessorMDPA: NeurologyL","PA: Neurology","Code","MGMA","Academic","All","Professor","MD",2022,0,0,0,0,0,0,0,0,0,0,0,0,0,0]
["MGMAAcademicAllProfessorMDPA: Orthopedic (Nonsurgical/Nonprimary Care)L","PA: Orthopedic (Nonsurgical/Nonprimary Care)","Code","MGMA","Academic","All","Professor","MD",2022,0,0,0,0,0,0,0,0,0,0,0,0,0,0]
["MGMAAcademicAllProfessorMDPA: PsychiatryL","PA: Psychiatry","Code","MGMA","Academic","All","Professor","MD",2022,0,0,0,0,0,0,0,0,0,0,0,0,0,0]
["MGMAAcademicAllProfessorMDPA: Pulmonary MedicineL","PA: Pulmonary Medicine","Code","MGMA","Academic","All","Professor","MD",2022,0,0,0,0,0,0,0,0,0,0,0,0,0,0]
["MGMAAcademicAllProfessorMDPA: RheumatologyL","PA: Rheumatology","Code","MGMA","Academic","All","Professor","MD",2022,0,0,0,0,0,0,0,0,0,0,0,0,0,0]
["MGMAAcademicAllProfessorMDPsychologistL","Psychologist","Code","MGMA","Academic","All","Professor","MD",2022,"$162,255",168999.2,175743.4,182487.6,189231.8,"$195,976",205244.2,214512.4,223780.6,233048.8,"$242,317",246727.2,251137.4,"$264,368"]
["MGMAAcademicAllProfessorMDResearchL","Research","Code","MGMA","Academic","All","Professor","MD",2022,"$200,535",207554.8,214574.6,221594.4,228614.2,"$235,634",246548.8,257463.6,268378.40000000002,279293.2,"$290,208",298717,307226,"$332,753"]
["MGMAAcademicAllProfessorMDResearch: MDL","Research: MD","Code","MGMA","Academic","All","Professor","MD",2022,0,0,0,0,0,0,0,0,0,0,0,0,0,0]
["MGMAAcademicAllDivision Chair/ChiefMDAllergy/ImmunologyL","Allergy/Immunology","Code","MGMA","Academic","All","Division Chair/Chief","MD",2022,0,0,0,0,0,0,0,0,0,0,0,0,0,0]
["MGMAAcademicAllDivision Chair/ChiefMDAnesthesiologyL","Anesthesiology","Code","MGMA","Academic","All","Division Chair/Chief","MD",2022,"$429,715",447218.6,464722.2,482225.8,499729.4,"$517,233",528015.4,538797.80000000005,549580.19999999995,560362.6,"$571,145",593590,616035,"$683,370"]
["MGMAAcademicAllDivision Chair/ChiefMDAnesthesiology: CardiologyL","Anesthesiology: Cardiology","Code","MGMA","Academic","All","Division Chair/Chief","MD",2022,0,0,0,0,0,0,0,0,0,0,0,0,0,0]
["MGMAAcademicAllDivision Chair/ChiefMDAnesthesiology: Pain ManagementL","Anesthesiology: Pain Management","Code","MGMA","Academic","All","Division Chair/Chief","MD",2022,0,0,0,0,0,0,0,0,0,0,0,0,0,0]
["MGMAAcademicAllDivision Chair/ChiefMDCardiology: ElectrophysiologyL","Cardiology: Electrophysiology","Code","MGMA","Academic","All","Division Chair/Chief","MD",2022,0,0,0,0,0,0,0,0,0,0,0,0,0,0]
["MGMAAcademicAllDivision Chair/ChiefMDCardiology: InvasiveL","Cardiology: Invasive","Code","MGMA","Academic","All","Division Chair/Chief","MD",2022,0,0,0,0,0,0,0,0,0,0,0,0,0,0]
["MGMAAcademicAllDivision Chair/ChiefMDCardiology: Invasive-InterventionalL","Cardiology: Invasive-Interventional","Code","MGMA","Academic","All","Division Chair/Chief","MD",2022,0,0,0,0,0,0,0,0,0,0,0,0,0,0]
[{"$f":"D1219&E1219&F1219&G1219&H1219&B1219&\"L\"","v":"MGMAAcademicAllDivision Chair/ChiefMDCardiology: NoninvasiveL"},"Cardiology: Noninvasive","Code","MGMA","Academic","All","Division Chair/Chief","MD",2022,0,0,{"$f":"((O1219-J1219)/25)*10 + J1219","v":0},{"$f":"((O1219-J1219)/25)*15 + J1219","v":0},{"$f":"((O1219-J1219)/25)*20 + J1219","v":0},0,{"$f":"((T1219-O1219)/25)*5 + O1219","v":0},{"$f":"((T1219-O1219)/25)*10 + O1219","v":0},{"$f":"((T1219-O1219)/25)*15 + O1219","v":0},{"$f":"((T1219-O1219)/25)*20 + O1219","v":0},0,{"$f":"((W1219-T1219)/25)*5 + T1219","v":0},{"$f":"((W1219-T1219)/25)*10 + T1219","v":0},0]
["MGMAAcademicAllDivision Chair/ChiefMDClinical PharmacologyL","Clinical Pharmacology","Code","MGMA","Academic","All","Division Chair/Chief","MD",2022,0,0,0,0,0,0,0,0,0,0,0,0,0,0]
["MGMAAcademicAllDivision Chair/ChiefMDCritical Care: IntensivistL","Critical Care: Intensivist","Code","MGMA","Academic","All","Division Chair/Chief","MD",2022,0,{"$f":"((O1221-J1221)/25)*5 + J1221","v":0},0,0,0,0,0,0,0,0,0,0,0,0]
["MGMAAcademicAllDivision Chair/ChiefMDDentistryL","Dentistry","Code","MGMA","Academic","All","Division Chair/Chief","MD",2022,0,0,0,0,0,0,0,0,0,0,0,0,0,0]
["MGMAAcademicAllDivision Chair/ChiefMDDermatologyL","Dermatology","Code","MGMA","Academic","All","Division Chair/Chief","MD",2022,0,0,0,0,0,0,0,0,0,0,0,0,0,0]
["MGMAAcademicAllDivision Chair/ChiefMDDermatology: DermatopathologyL","Dermatology: Dermatopathology","Code","MGMA","Academic","All","Division Chair/Chief","MD",2022,0,0,0,0,0,0,0,0,0,0,0,0,0,0]
["MGMAAcademicAllDivision Chair/ChiefMDDermatology: Mohs SurgeryL","Dermatology: Mohs Surgery","Code","MGMA","Academic","All","Division Chair/Chief","MD",2022,0,0,0,0,0,0,0,0,0,0,0,0,0,0]
["MGMAAcademicAllDivision Chair/ChiefMDEmergency MedicineL","Emergency Medicine","Code","MGMA","Academic","All","Division Chair/Chief","MD",2022,0,0,0,0,0,0,0,0,0,0,0,0,0,0]
["MGMAAcademicAllDivision Chair/ChiefMDEndocrinology/MetabolismL","Endocrinology/Metabolism","Code","MGMA","Academic","All","Division Chair/Chief","MD",2022,"$255,360",268530.59999999998,281701.2,294871.8,308042.40000000002,"$321,213",330752.8,340292.6,349832.4,359372.2,"$368,912",382057.6,395203.2,"$434,640"]
["MGMAAcademicAllDivision Chair/ChiefMDFamily Medicine (with OB)L","Family Medicine (with OB)","Code","MGMA","Academic","All","Division Chair/Chief","MD",2022,0,0,0,0,0,0,0,0,0,0,0,0,0,0]
["MGMAAcademicAllDivision Chair/ChiefMDFamily Medicine (without OB)L","Family Medicine (without OB)","Code","MGMA","Academic","All","Division Chair/Chief","MD",2022,0,0,0,0,0,0,0,0,0,0,0,0,0,0]
["MGMAAcademicAllDivision Chair/ChiefMDFamily Medicine: Ambulatory Only (No Inpatient Work)L","Family Medicine: Ambulatory Only (No Inpatient Work)","Code","MGMA","Academic","All","Division Chair/Chief","MD",2022,0,0,0,0,0,0,0,0,0,0,0,0,0,0]
["MGMAAcademicAllDivision Chair/ChiefMDFamily Medicine: Sports MedicineL","Family Medicine: Sports Medicine","Code","MGMA","Academic","All","Division Chair/Chief","MD",2022,0,0,0,0,0,0,0,0,0,0,0,0,0,0]
["MGMAAcademicAllDivision Chair/ChiefMDFamily Medicine: Urgent CareL","Family Medicine: Urgent Care","Code","MGMA","Academic","All","Division Chair/Chief","MD",2022,0,0,0,0,0,0,0,0,0,0,0,0,0,0]
["MGMAAcademicAllDivision Chair/ChiefMDGastroenterologyL","Gastroenterology","Code","MGMA","Academic","All","Division Chair/Chief","MD",2022,"$471,800",488715,505630,522545,539460,"$556,375",559462.80000000005,562550.6,565638.40000000002,568726.19999999995,"$571,814",593558.6,615303.19999999995,"$680,537"]
["MGMAAcademicAllDivision Chair/ChiefMDGastroenterology: HepatologyL","Gastroenterology: Hepatology","Code","MGMA","Academic","All","Division Chair/Chief","MD",2022,0,0,0,0,0,0,0,0,0,0,0,0,0,0]
["MGMAAcademicAllDivision Chair/ChiefMDGeneticsL","Genetics","Code","MGMA","Academic","All","Division Chair/Chief","MD",2022,0,0,0,0,0,0,0,0,0,0,0,0,0,0]
["MGMAAcademicAllDivision Chair/ChiefMDGeriatricsL","Geriatrics","Code","MGMA","Academic","All","Division Chair/Chief","MD",2022,0,0,0,0,0,0,0,0,0,0,0,0,0,0]
["MGMAAcademicAllDivision Chair/ChiefMDHematology/OncologyL","Hematology/Oncology","Code","MGMA","Academic","All","Division Chair/Chief","MD",2022,"$299,186",324159.2,349132.4,374105.59999999998,399078.8,"$424,052",455292.4,486532.8,517773.2,549013.6,"$580,254",631121.19999999995,681988.4,"$834,590"]
["MGMAAcademicAllDivision Chair/ChiefMDHematology/Oncology: Oncology (Only)L","Hematology/Oncology: Oncology (Only)","Code","MGMA","Academic","All","Division Chair/Chief","MD",2022,0,0,0,0,0,0,0,0,0,0,0,0,0,0]
["MGMAAcademicAllDivision Chair/ChiefMDHospice/Palliative CareL","Hospice/Palliative Care","Code","MGMA","Academic","All","Division Chair/Chief","MD",2022,0,0,0,0,0,0,0,0,0,0,0,0,0,0]
["MGMAAcademicAllDivision Chair/ChiefMDHospitalist: Family MedicineL","Hospitalist: Family Medicine","Code","MGMA","Academic","All","Division Chair/Chief","MD",2022,0,0,0,0,0,0,0,0,0,0,0,0,0,0]
["MGMAAcademicAllDivision Chair/ChiefMDHospitalist: Internal MedicineL","Hospitalist: Internal Medicine","Code","MGMA","Academic","All","Division Chair/Chief","MD",2022,0,0,0,0,0,0,0,0,0,0,0,0,0,0]
["MGMAAcademicAllDivision Chair/ChiefMDHospitalist: NocturnistL","Hospitalist: Nocturnist","Code","MGMA","Academic","All","Division Chair/Chief","MD",2022,0,0,0,0,0,0,0,0,0,0,0,0,0,0]
["MGMAAcademicAllDivision Chair/ChiefMDHyperbaric Medicine/Wound CareL","Hyperbaric Medicine/Wound Care","Code","MGMA","Academic","All","Division Chair/Chief","MD",2022,0,0,0,0,0,0,0,0,0,0,0,0,0,0]
["MGMAAcademicAllDivision Chair/ChiefMDInfectious DiseaseL","Infectious Disease","Code","MGMA","Academic","All","Division Chair/Chief","MD",2022,"$301,033",308253.2,315473.40000000002,322693.59999999998,329913.8,"$337,134",343387,349640,355893,362146,"$368,399",388765.8,409132.6,"$470,233"]
["MGMAAcademicAllDivision Chair/ChiefMDInternal Medicine: GeneralL","Internal Medicine: General","Code","MGMA","Academic","All","Division Chair/Chief","MD",2022,"$309,371",318830.59999999998,328290.2,337749.8,347209.4,"$356,669",387293.8,417918.6,448543.4,479168.2,"$509,793",520555.6,531318.19999999995,"$563,606"]
["MGMAAcademicAllDivision Chair/ChiefMDInternal Medicine: Ambulatory Only (No Inpatient Work)L","Internal Medicine: Ambulatory Only (No Inpatient Work)","Code","MGMA","Academic","All","Division Chair/Chief","MD",2022,0,0,0,0,0,0,0,0,0,0,0,0,0,0]
["MGMAAcademicAllDivision Chair/ChiefMDNephrologyL","Nephrology","Code","MGMA","Academic","All","Division Chair/Chief","MD",2022,"$292,488",308390.40000000002,324292.8,340195.2,356097.6,"$372,000",385661.8,399323.6,412985.4,426647.2,"$440,309",450724.2,461139.4,"$492,385"]
["MGMAAcademicAllDivision Chair/ChiefMDNephrology: TransplantL","Nephrology: Transplant","Code","MGMA","Academic","All","Division Chair/Chief","MD",2022,0,0,0,0,0,0,0,0,0,0,0,0,0,0]
["MGMAAcademicAllDivision Chair/ChiefMDNeurologyL","Neurology","Code","MGMA","Academic","All","Division Chair/Chief","MD",2022,"$320,380",326361,332342,338323,344304,"$350,285",361116,371947,382778,393609,"$404,440",414776,425112,"$456,120"]
["MGMAAcademicAllDivision Chair/ChiefMDNeurology: Epilepsy/EEGL","Neurology: Epilepsy/EEG","Code","MGMA","Academic","All","Division Chair/Chief","MD",2022,0,0,0,0,0,0,0,0,0,0,0,0,0,0]
["MGMAAcademicAllDivision Chair/ChiefMDNeurology: Neurocritical CareL","Neurology: Neurocritical Care","Code","MGMA","Academic","All","Division Chair/Chief","MD",2022,0,0,0,0,0,0,0,0,0,0,0,0,0,0]
["MGMAAcademicAllDivision Chair/ChiefMDNeurology: Neuromuscular MedicineL","Neurology: Neuromuscular Medicine","Code","MGMA","Academic","All","Division Chair/Chief","MD",2022,0,0,0,0,0,0,0,0,0,0,0,0,0,0]
["MGMAAcademicAllDivision Chair/ChiefMDNeurology: Stroke MedicineL","Neurology: Stroke Medicine","Code","MGMA","Academic","All","Division Chair/Chief","MD",2022,0,0,0,0,0,0,0,0,0,0,0,0,0,0]
["MGMAAcademicAllDivision Chair/ChiefMDObstetrics/Gynecology: GeneralL","Obstetrics/Gynecology: General","Code","MGMA","Academic","All","Division Chair/Chief","MD",2022,0,0,0,0,0,0,0,0,0,0,0,0,0,0]
["MGMAAcademicAllDivision Chair/ChiefMDOB/GYN: Gynecology (Only)L","OB/GYN: Gynecology (Only)","Code","MGMA","Academic","All","Division Chair/Chief","MD",2022,0,0,0,0,0,0,0,0,0,0,0,0,0,0]
["MGMAAcademicAllDivision Chair/ChiefMDOB/GYN: Gynecological OncologyL","OB/GYN: Gynecological Oncology","Code","MGMA","Academic","All","Division Chair/Chief","MD",2022,0,0,0,0,0,0,0,0,0,0,0,0,0,0]
["MGMAAcademicAllDivision Chair/ChiefMDOB/GYN: Maternal and Fetal MedicineL","OB/GYN: Maternal and Fetal Medicine","Code","MGMA","Academic","All","Division Chair/Chief","MD",2022,0,0,0,0,0,0,0,0,0,0,0,0,0,0]
["MGMAAcademicAllDivision Chair/ChiefMDOB/GYN: Minimally Invasive Gynecologic SurgeryL","OB/GYN: Minimally Invasive Gynecologic Surgery","Code","MGMA","Academic","All","Division Chair/Chief","MD",2022,0,0,0,0,0,0,0,0,0,0,0,0,0,0]
["MGMAAcademicAllDivision Chair/ChiefMDOB/GYN: Reproductive EndocrinologyL","OB/GYN: Reproductive Endocrinology","Code","MGMA","Academic","All","Division Chair/Chief","MD",2022,0,0,0,0,0,0,0,0,0,0,0,0,0,0]
["MGMAAcademicAllDivision Chair/ChiefMDOB/GYN: UrogynecologyL","OB/GYN: Urogynecology","Code","MGMA","Academic","All","Division Chair/Chief","MD",2022,0,0,0,0,0,0,0,0,0,0,0,0,0,0]
["MGMAAcademicAllDivision Chair/ChiefMDOccupational MedicineL","Occupational Medicine","Code","MGMA","Academic","All","Division Chair/Chief","MD",2022,0,0,0,0,0,0,0,0,0,0,0,0,0,0]
["MGMAAcademicAllDivision Chair/ChiefMDOphthalmologyL","Ophthalmology","Code","MGMA","Academic","All","Division Chair/Chief","MD",2022,0,0,0,0,0,0,0,0,0,0,0,0,0,0]
["MGMAAcademicAllDivision Chair/ChiefMDOphthalmology: Corneal and Refractive SurgeryL","Ophthalmology: Corneal and Refractive Surgery","Code","MGMA","Academic","All","Division Chair/Chief","MD",2022,0,0,0,0,0,0,0,0,0,0,0,0,0,0]
["MGMAAcademicAllDivision Chair/ChiefMDOphthalmology: GlaucomaL","Ophthalmology: Glaucoma","Code","MGMA","Academic","All","Division Chair/Chief","MD",2022,0,0,0,0,0,0,0,0,0,0,0,0,0,0]
["MGMAAcademicAllDivision Chair/ChiefMDOphthalmology: NeurologyL","Ophthalmology: Neurology","Code","MGMA","Academic","All","Division Chair/Chief","MD",2022,0,0,0,0,0,0,0,0,0,0,0,0,0,0]
["MGMAAcademicAllDivision Chair/ChiefMDOphthalmology: Oculoplastic and Reconstructive SurgeryL","Ophthalmology: Oculoplastic and Reconstructive Surgery","Code","MGMA","Academic","All","Division Chair/Chief","MD",2022,0,0,0,0,0,0,0,0,0,0,0,0,0,0]
["MGMAAcademicAllDivision Chair/ChiefMDOphthalmology: RetinaL","Ophthalmology: Retina","Code","MGMA","Academic","All","Division Chair/Chief","MD",2022,0,0,0,0,0,0,0,0,0,0,0,0,0,0]
["MGMAAcademicAllDivision Chair/ChiefMDOrthopedic (Nonsurgical)L","Orthopedic (Nonsurgical)","Code","MGMA","Academic","All","Division Chair/Chief","MD",2022,0,0,0,0,0,0,0,0,0,0,0,0,0,0]
["MGMAAcademicAllDivision Chair/ChiefMDOrthopedic Surgery: GeneralL","Orthopedic Surgery: General","Code","MGMA","Academic","All","Division Chair/Chief","MD",2022,0,0,0,0,0,0,0,0,0,0,0,0,0,0]
["MGMAAcademicAllDivision Chair/ChiefMDOrthopedic Surgery: Foot and AnkleL","Orthopedic Surgery: Foot and Ankle","Code","MGMA","Academic","All","Division Chair/Chief","MD",2022,0,0,0,0,0,0,0,0,0,0,0,0,0,0]
["MGMAAcademicAllDivision Chair/ChiefMDOrthopedic Surgery: HandL","Orthopedic Surgery: Hand","Code","MGMA","Academic","All","Division Chair/Chief","MD",2022,0,0,0,0,0,0,0,0,0,0,0,0,0,0]
["MGMAAcademicAllDivision Chair/ChiefMDOrthopedic Surgery: Hip and JointL","Orthopedic Surgery: Hip and Joint","Code","MGMA","Academic","All","Division Chair/Chief","MD",2022,0,0,0,0,0,0,0,0,0,0,0,0,0,0]
["MGMAAcademicAllDivision Chair/ChiefMDOrthopedic Surgery: OncologyL","Orthopedic Surgery: Oncology","Code","MGMA","Academic","All","Division Chair/Chief","MD",2022,0,0,0,0,0,0,0,0,0,0,0,0,0,0]
["MGMAAcademicAllDivision Chair/ChiefMDOrthopedic Surgery: Shoulder/ElbowL","Orthopedic Surgery: Shoulder/Elbow","Code","MGMA","Academic","All","Division Chair/Chief","MD",2022,0,0,0,0,0,0,0,0,0,0,0,0,0,0]
["MGMAAcademicAllDivision Chair/ChiefMDOrthopedic Surgery: SpineL","Orthopedic Surgery: Spine","Code","MGMA","Academic","All","Division Chair/Chief","MD",2022,0,0,0,0,0,0,0,0,0,0,0,0,0,0]
["MGMAAcademicAllDivision Chair/ChiefMDOrthopedic Surgery: Sports MedicineL","Orthopedic Surgery: Sports Medicine","Code","MGMA","Academic","All","Division Chair/Chief","MD",2022,0,0,0,0,0,0,0,0,0,0,0,0,0,0]
["MGMAAcademicAllDivision Chair/ChiefMDOrthopedic Surgery: TraumaL","Orthopedic Surgery: Trauma","Code","MGMA","Academic","All","Division Chair/Chief","MD",2022,0,0,0,0,0,0,0,0,0,0,0,0,0,0]
["MGMAAcademicAllDivision Chair/ChiefMDOtorhinolaryngologyL","Otorhinolaryngology","Code","MGMA","Academic","All","Division Chair/Chief","MD",2022,0,0,0,0,0,0,0,0,0,0,0,0,0,0]
["MGMAAcademicAllDivision Chair/ChiefMDPain Management: NonanesthesiaL","Pain Management: Nonanesthesia","Code","MGMA","Academic","All","Division Chair/Chief","MD",2022,0,0,0,0,0,0,0,0,0,0,0,0,0,0]
["MGMAAcademicAllDivision Chair/ChiefMDPathology: Anatomic and ClinicalL","Pathology: Anatomic and Clinical","Code","MGMA","Academic","All","Division Chair/Chief","MD",2022,0,0,0,0,0,0,0,0,0,0,0,0,0,0]
["MGMAAcademicAllDivision Chair/ChiefMDPathology: AnatomicL","Pathology: Anatomic","Code","MGMA","Academic","All","Division Chair/Chief","MD",2022,0,0,0,0,0,0,0,0,0,0,0,0,0,0]
["MGMAAcademicAllDivision Chair/ChiefMDPathology: Anatomic-AutopsyL","Pathology: Anatomic-Autopsy","Code","MGMA","Academic","All","Division Chair/Chief","MD",2022,0,0,0,0,0,0,0,0,0,0,0,0,0,0]
[{"$f":"D1283&E1283&F1283&G1283&H1283&B1283&\"L\"","v":"MGMAAcademicAllDivision Chair/ChiefMDPathology: Anatomic-CytopathologyL"},"Pathology: Anatomic-Cytopathology","Code","MGMA","Academic","All","Division Chair/Chief","MD",2022,0,0,{"$f":"((O1283-J1283)/25)*10 + J1283","v":0},{"$f":"((O1283-J1283)/25)*15 + J1283","v":0},{"$f":"((O1283-J1283)/25)*20 + J1283","v":0},0,{"$f":"((T1283-O1283)/25)*5 + O1283","v":0},{"$f":"((T1283-O1283)/25)*10 + O1283","v":0},{"$f":"((T1283-O1283)/25)*15 + O1283","v":0},{"$f":"((T1283-O1283)/25)*20 + O1283","v":0},0,{"$f":"((W1283-T1283)/25)*5 + T1283","v":0},{"$f":"((W1283-T1283)/25)*10 + T1283","v":0},0]
["MGMAAcademicAllDivision Chair/ChiefMDPathology: Anatomic-NeuropathologyL","Pathology: Anatomic-Neuropathology","Code","MGMA","Academic","All","Division Chair/Chief","MD",2022,0,0,0,0,0,0,0,0,0,0,0,0,0,0]
["MGMAAcademicAllDivision Chair/ChiefMDPathology: Anatomic-RenalL","Pathology: Anatomic-Renal","Code","MGMA","Academic","All","Division Chair/Chief","MD",2022,0,{"$f":"((O1285-J1285)/25)*5 + J1285","v":0},0,0,0,0,0,0,0,0,0,0,0,0]
["MGMAAcademicAllDivision Chair/ChiefMDPathology: ClinicalL","Pathology: Clinical","Code","MGMA","Academic","All","Division Chair/Chief","MD",2022,0,0,0,0,0,0,0,0,0,0,0,0,0,0]
["MGMAAcademicAllDivision Chair/ChiefMDPathology: Clinical-HematopathologyL","Pathology: Clinical-Hematopathology","Code","MGMA","Academic","All","Division Chair/Chief","MD",2022,0,0,0,0,0,0,0,0,0,0,0,0,0,0]
["MGMAAcademicAllDivision Chair/ChiefMDPathology: Clinical-Transfusion MedicineL","Pathology: Clinical-Transfusion Medicine","Code","MGMA","Academic","All","Division Chair/Chief","MD",2022,0,0,0,0,0,0,0,0,0,0,0,0,0,0]
["MGMAAcademicAllDivision Chair/ChiefMDPathology: SurgicalL","Pathology: Surgical","Code","MGMA","Academic","All","Division Chair/Chief","MD",2022,0,0,0,0,0,0,0,0,0,0,0,0,0,0]
["MGMAAcademicAllDivision Chair/ChiefMDPediatrics: GeneralL","Pediatrics: General","Code","MGMA","Academic","All","Division Chair/Chief","MD",2022,0,0,0,0,0,0,0,0,0,0,0,0,0,0]
["MGMAAcademicAllDivision Chair/ChiefMDPediatrics: Adolescent MedicineL","Pediatrics: Adolescent Medicine","Code","MGMA","Academic","All","Division Chair/Chief","MD",2022,0,0,0,0,0,0,0,0,0,0,0,0,0,0]
["MGMAAcademicAllDivision Chair/ChiefMDPediatrics: Allergy/ImmunologyL","Pediatrics: Allergy/Immunology","Code","MGMA","Academic","All","Division Chair/Chief","MD",2022,0,0,0,0,0,0,0,0,0,0,0,0,0,0]
["MGMAAcademicAllDivision Chair/ChiefMDPediatrics: AnesthesiologyL","Pediatrics: Anesthesiology","Code","MGMA","Academic","All","Division Chair/Chief","MD",2022,0,0,0,0,0,0,0,0,0,0,0,0,0,0]
["MGMAAcademicAllDivision Chair/ChiefMDPediatrics: Bone Marrow TransplantL","Pediatrics: Bone Marrow Transplant","Code","MGMA","Academic","All","Division Chair/Chief","MD",2022,0,0,0,0,0,0,0,0,0,0,0,0,0,0]
["MGMAAcademicAllDivision Chair/ChiefMDPediatrics: CardiologyL","Pediatrics: Cardiology","Code","MGMA","Academic","All","Division Chair/Chief","MD",2022,0,0,0,0,0,0,0,0,0,0,0,0,0,0]
["MGMAAcademicAllDivision Chair/ChiefMDPediatrics: Cardiovascular SurgeryL","Pediatrics: Cardiovascular Surgery","Code","MGMA","Academic","All","Division Chair/Chief","MD",2022,0,0,0,0,0,0,0,0,0,0,0,0,0,0]
["MGMAAcademicAllDivision Chair/ChiefMDPediatrics: Child DevelopmentL","Pediatrics: Child Development","Code","MGMA","Academic","All","Division Chair/Chief","MD",2022,0,0,0,0,0,0,0,0,0,0,0,0,0,0]
["MGMAAcademicAllDivision Chair/ChiefMDPediatrics: Critical Care/IntensivistL","Pediatrics: Critical Care/Intensivist","Code","MGMA","Academic","All","Division Chair/Chief","MD",2022,0,0,0,0,0,0,0,0,0,0,0,0,0,0]
["MGMAAcademicAllDivision Chair/ChiefMDPediatrics: DermatologyL","Pediatrics: Dermatology","Code","MGMA","Academic","All","Division Chair/Chief","MD",2022,0,0,0,0,0,0,0,0,0,0,0,0,0,0]
["MGMAAcademicAllDivision Chair/ChiefMDPediatrics: Emergency MedicineL","Pediatrics: Emergency Medicine","Code","MGMA","Academic","All","Division Chair/Chief","MD",2022,0,0,0,0,0,0,0,0,0,0,0,0,0,0]
["MGMAAcademicAllDivision Chair/ChiefMDPediatrics: EndocrinologyL","Pediatrics: Endocrinology","Code","MGMA","Academic","All","Division Chair/Chief","MD",2022,0,0,0,0,0,0,0,0,0,0,0,0,0,0]
["MGMAAcademicAllDivision Chair/ChiefMDPediatrics: GastroenterologyL","Pediatrics: Gastroenterology","Code","MGMA","Academic","All","Division Chair/Chief","MD",2022,0,0,0,0,0,0,0,0,0,0,0,0,0,0]
["MGMAAcademicAllDivision Chair/ChiefMDPediatrics: GeneticsL","Pediatrics: Genetics","Code","MGMA","Academic","All","Division Chair/Chief","MD",2022,0,0,0,0,0,0,0,0,0,0,0,0,0,0]
["MGMAAcademicAllDivision Chair/ChiefMDPediatrics: Hematology/OncologyL","Pediatrics: Hematology/Oncology","Code","MGMA","Academic","All","Division Chair/Chief","MD",2022,0,0,0,0,0,0,0,0,0,0,0,0,0,0]
["MGMAAcademicAllDivision Chair/ChiefMDPediatrics: HospitalistL","Pediatrics: Hospitalist","Code","MGMA","Academic","All","Division Chair/Chief","MD",2022,0,0,0,0,0,0,0,0,0,0,0,0,0,0]
["MGMAAcademicAllDivision Chair/ChiefMDPediatrics: Hospitalist-Internal MedicineL","Pediatrics: Hospitalist-Internal Medicine","Code","MGMA","Academic","All","Division Chair/Chief","MD",2022,0,0,0,0,0,0,0,0,0,0,0,0,0,0]
["MGMAAcademicAllDivision Chair/ChiefMDPediatrics: Infectious DiseaseL","Pediatrics: Infectious Disease","Code","MGMA","Academic","All","Division Chair/Chief","MD",2022,0,0,0,0,0,0,0,0,0,0,0,0,0,0]
["MGMAAcademicAllDivision Chair/ChiefMDPediatrics: Internal MedicineL","Pediatrics: Internal Medicine","Code","MGMA","Academic","All","Division Chair/Chief","MD",2022,0,0,0,0,0,0,0,0,0,0,0,0,0,0]
["MGMAAcademicAllDivision Chair/ChiefMDPediatrics: Neonatal MedicineL","Pediatrics: Neonatal Medicine","Code","MGMA","Academic","All","Division Chair/Chief","MD",2022,"$334,710",342689.4,350668.79999999999,358648.2,366627.6,"$374,607",387463.6,400320.2,413176.8,426033.4,"$438,890",472223.4,505556.8,"$605,557"]
["MGMAAcademicAllDivision Chair/ChiefMDPediatrics: NephrologyL","Pediatrics: Nephrology","Code","MGMA","Academic","All","Division Chair/Chief","MD",2022,0,0,0,0,0,0,0,0,0,0,0,0,0,0]
["MGMAAcademicAllDivision Chair/ChiefMDPediatrics: NeurologyL","Pediatrics: Neurology","Code","MGMA","Academic","All","Division Chair/Chief","MD",2022,0,0,0,0,0,0,0,0,0,0,0,0,0,0]
["MGMAAcademicAllDivision Chair/ChiefMDPediatrics: NeurosurgeryL","Pediatrics: Neurosurgery","Code","MGMA","Academic","All","Division Chair/Chief","MD",2022,0,0,0,0,0,0,0,0,0,0,0,0,0,0]
["MGMAAcademicAllDivision Chair/ChiefMDPediatrics: OphthalmologyL","Pediatrics: Ophthalmology","Code","MGMA","Academic","All","Division Chair/Chief","MD",2022,0,0,0,0,0,0,0,0,0,0,0,0,0,0]
["MGMAAcademicAllDivision Chair/ChiefMDPediatrics: Orthopedic SurgeryL","Pediatrics: Orthopedic Surgery","Code","MGMA","Academic","All","Division Chair/Chief","MD",2022,0,0,0,0,0,0,0,0,0,0,0,0,0,0]
["MGMAAcademicAllDivision Chair/ChiefMDPediatrics: OtorhinolaryngologyL","Pediatrics: Otorhinolaryngology","Code","MGMA","Academic","All","Division Chair/Chief","MD",2022,0,0,0,0,0,0,0,0,0,0,0,0,0,0]
["MGMAAcademicAllDivision Chair/ChiefMDPediatrics: Plastic and Reconstruction SurgeryL","Pediatrics: Plastic and Reconstruction Surgery","Code","MGMA","Academic","All","Division Chair/Chief","MD",2022,0,0,0,0,0,0,0,0,0,0,0,0,0,0]
["MGMAAcademicAllDivision Chair/ChiefMDPediatrics: PulmonologyL","Pediatrics: Pulmonology","Code","MGMA","Academic","All","Division Chair/Chief","MD",2022,0,0,0,0,0,0,0,0,0,0,0,0,0,0]
["MGMAAcademicAllDivision Chair/ChiefMDPediatrics: RadiologyL","Pediatrics: Radiology","Code","MGMA","Academic","All","Division Chair/Chief","MD",2022,0,0,0,0,0,0,0,0,0,0,0,0,0,0]
["MGMAAcademicAllDivision Chair/ChiefMDPediatrics: RheumatologyL","Pediatrics: Rheumatology","Code","MGMA","Academic","All","Division Chair/Chief","MD",2022,0,0,0,0,0,0,0,0,0,0,0,0,0,0]
["MGMAAcademicAllDivision Chair/ChiefMDPediatrics: Sports MedicineL","Pediatrics: Sports Medicine","Code","MGMA","Academic","All","Division Chair/Chief","MD",2022,0,0,0,0,0,0,0,0,0,0,0,0,0,0]
["MGMAAcademicAllDivision Chair/ChiefMDPediatrics: SurgeryL","Pediatrics: Surgery","Code","MGMA","Academic","All","Division Chair/Chief","MD",2022,0,0,0,0,0,0,0,0,0,0,0,0,0,0]
["MGMAAcademicAllDivision Chair/ChiefMDPediatrics: Urgent CareL","Pediatrics: Urgent Care","Code","MGMA","Academic","All","Division Chair/Chief","MD",2022,0,0,0,0,0,0,0,0,0,0,0,0,0,0]
["MGMAAcademicAllDivision Chair/ChiefMDPediatrics: UrologyL","Pediatrics: Urology","Code","MGMA","Academic","All","Division Chair/Chief","MD",2022,0,0,0,0,0,0,0,0,0,0,0,0,0,0]
["MGMAAcademicAllDivision Chair/ChiefMDPhysiatry (Physical Medicine and Rehabilitation)L","Physiatry (Physical Medicine and Rehabilitation)","Code","MGMA","Academic","All","Division Chair/Chief","MD",2022,0,0,0,0,0,0,0,0,0,0,0,0,0,0]
["MGMAAcademicAllDivision Chair/ChiefMDPodiatry: GeneralL","Podiatry: General","Code","MGMA","Academic","All","Division Chair/Chief","MD",2022,0,0,0,0,0,0,0,0,0,0,0,0,0,0]
["MGMAAcademicAllDivision Chair/ChiefMDPodiatry: Surgery-Foot and AnkleL","Podiatry: Surgery-Foot and Ankle","Code","MGMA","Academic","All","Division Chair/Chief","MD",2022,0,0,0,0,0,0,0,0,0,0,0,0,0,0]
["MGMAAcademicAllDivision Chair/ChiefMDPsychiatry: GeneralL","Psychiatry: General","Code","MGMA","Academic","All","Division Chair/Chief","MD",2022,0,0,0,0,0,0,0,0,0,0,0,0,0,0]
["MGMAAcademicAllDivision Chair/ChiefMDPsychiatry: Addiction MedicineL","Psychiatry: Addiction Medicine","Code","MGMA","Academic","All","Division Chair/Chief","MD",2022,0,0,0,0,0,0,0,0,0,0,0,0,0,0]
["MGMAAcademicAllDivision Chair/ChiefMDPsychiatry: Behavioral MedicineL","Psychiatry: Behavioral Medicine","Code","MGMA","Academic","All","Division Chair/Chief","MD",2022,0,0,0,0,0,0,0,0,0,0,0,0,0,0]
["MGMAAcademicAllDivision Chair/ChiefMDPsychiatry: Chemical DependencyL","Psychiatry: Chemical Dependency","Code","MGMA","Academic","All","Division Chair/Chief","MD",2022,0,0,0,0,0,0,0,0,0,0,0,0,0,0]
["MGMAAcademicAllDivision Chair/ChiefMDPsychiatry: Child and AdolescentL","Psychiatry: Child and Adolescent","Code","MGMA","Academic","All","Division Chair/Chief","MD",2022,0,0,0,0,0,0,0,0,0,0,0,0,0,0]
["MGMAAcademicAllDivision Chair/ChiefMDPsychiatry: ForensicL","Psychiatry: Forensic","Code","MGMA","Academic","All","Division Chair/Chief","MD",2022,0,0,0,0,0,0,0,0,0,0,0,0,0,0]
["MGMAAcademicAllDivision Chair/ChiefMDPsychiatry: GeriatricL","Psychiatry: Geriatric","Code","MGMA","Academic","All","Division Chair/Chief","MD",2022,0,0,0,0,0,0,0,0,0,0,0,0,0,0]
["MGMAAcademicAllDivision Chair/ChiefMDPulmonary Medicine: GeneralL","Pulmonary Medicine: General","Code","MGMA","Academic","All","Division Chair/Chief","MD",2022,0,0,0,0,0,0,0,0,0,0,0,0,0,0]
["MGMAAcademicAllDivision Chair/ChiefMDPulmonary Medicine: Critical CareL","Pulmonary Medicine: Critical Care","Code","MGMA","Academic","All","Division Chair/Chief","MD",2022,0,0,0,0,0,0,0,0,0,0,0,0,0,0]
["MGMAAcademicAllDivision Chair/ChiefMDPulmonary Medicine: General and Critical CareL","Pulmonary Medicine: General and Critical Care","Code","MGMA","Academic","All","Division Chair/Chief","MD",2022,0,0,0,0,0,0,0,0,0,0,0,0,0,0]
["MGMAAcademicAllDivision Chair/ChiefMDRadiation OncologyL","Radiation Oncology","Code","MGMA","Academic","All","Division Chair/Chief","MD",2022,0,0,0,0,0,0,0,0,0,0,0,0,0,0]
["MGMAAcademicAllDivision Chair/ChiefMDRadiology: InterventionalL","Radiology: Interventional","Code","MGMA","Academic","All","Division Chair/Chief","MD",2022,0,0,0,0,0,0,0,0,0,0,0,0,0,0]
["MGMAAcademicAllDivision Chair/ChiefMDRadiology: DiagnosticL","Radiology: Diagnostic","Code","MGMA","Academic","All","Division Chair/Chief","MD",2022,"$468,226",485334.8,502443.6,519552.4,536661.19999999995,"$553,770",570236.6,586703.19999999995,603169.80000000005,619636.4,"$636,103",678729,721355,"$849,233"]
["MGMAAcademicAllDivision Chair/ChiefMDRadiology: NeurologicalL","Radiology: Neurological","Code","MGMA","Academic","All","Division Chair/Chief","MD",2022,0,0,0,0,0,0,0,0,0,0,0,0,0,0]
["MGMAAcademicAllDivision Chair/ChiefMDRadiology: Nuclear MedicineL","Radiology: Nuclear Medicine","Code","MGMA","Academic","All","Division Chair/Chief","MD",2022,0,0,0,0,0,0,0,0,0,0,0,0,0,0]
["MGMAAcademicAllDivision Chair/ChiefMDRheumatologyL","Rheumatology","Code","MGMA","Academic","All","Division Chair/Chief","MD",2022,0,0,0,0,0,0,0,0,0,0,0,0,0,0]
["MGMAAcademicAllDivision Chair/ChiefMDSleep MedicineL","Sleep Medicine","Code","MGMA","Academic","All","Division Chair/Chief","MD",2022,0,0,0,0,0,0,0,0,0,0,0,0,0,0]
["MGMAAcademicAllDivision Chair/ChiefMDSurgery: GeneralL","Surgery: General","Code","MGMA","Academic","All","Division Chair/Chief","MD",2022,0,0,0,0,0,0,0,0,0,0,0,0,0,0]
["MGMAAcademicAllDivision Chair/ChiefMDSurgery: BariatricL","Surgery: Bariatric","Code","MGMA","Academic","All","Division Chair/Chief","MD",2022,0,0,0,0,0,0,0,0,0,0,0,0,0,0]
["MGMAAcademicAllDivision Chair/ChiefMDSurgery: BreastL","Surgery: Breast","Code","MGMA","Academic","All","Division Chair/Chief","MD",2022,0,0,0,0,0,0,0,0,0,0,0,0,0,0]
[{"$f":"D1347&E1347&F1347&G1347&H1347&B1347&\"L\"","v":"MGMAAcademicAllDivision Chair/ChiefMDSurgery: CardiovascularL"},"Surgery: Cardiovascular","Code","MGMA","Academic","All","Division Chair/Chief","MD",2022,0,0,{"$f":"((O1347-J1347)/25)*10 + J1347","v":0},{"$f":"((O1347-J1347)/25)*15 + J1347","v":0},{"$f":"((O1347-J1347)/25)*20 + J1347","v":0},0,{"$f":"((T1347-O1347)/25)*5 + O1347","v":0},{"$f":"((T1347-O1347)/25)*10 + O1347","v":0},{"$f":"((T1347-O1347)/25)*15 + O1347","v":0},{"$f":"((T1347-O1347)/25)*20 + O1347","v":0},0,{"$f":"((W1347-T1347)/25)*5 + T1347","v":0},{"$f":"((W1347-T1347)/25)*10 + T1347","v":0},0]
["MGMAAcademicAllDivision Chair/ChiefMDSurgery: Colon and RectalL","Surgery: Colon and Rectal","Code","MGMA","Academic","All","Division Chair/Chief","MD",2022,0,0,0,0,0,0,0,0,0,0,0,0,0,0]
["MGMAAcademicAllDivision Chair/ChiefMDSurgery: EndocrineL","Surgery: Endocrine","Code","MGMA","Academic","All","Division Chair/Chief","MD",2022,0,{"$f":"((O1349-J1349)/25)*5 + J1349","v":0},0,0,0,0,0,0,0,0,0,0,0,0]
["MGMAAcademicAllDivision Chair/ChiefMDSurgery: Endovascular (Primary)L","Surgery: Endovascular (Primary)","Code","MGMA","Academic","All","Division Chair/Chief","MD",2022,0,0,0,0,0,0,0,0,0,0,0,0,0,0]
["MGMAAcademicAllDivision Chair/ChiefMDSurgery: NeurologicalL","Surgery: Neurological","Code","MGMA","Academic","All","Division Chair/Chief","MD",2022,0,0,0,0,0,0,0,0,0,0,0,0,0,0]
["MGMAAcademicAllDivision Chair/ChiefMDSurgery: OncologyL","Surgery: Oncology","Code","MGMA","Academic","All","Division Chair/Chief","MD",2022,0,0,0,0,0,0,0,0,0,0,0,0,0,0]
["MGMAAcademicAllDivision Chair/ChiefMDSurgery: OralL","Surgery: Oral","Code","MGMA","Academic","All","Division Chair/Chief","MD",2022,0,0,0,0,0,0,0,0,0,0,0,0,0,0]
["MGMAAcademicAllDivision Chair/ChiefMDSurgery: Plastic and ReconstructionL","Surgery: Plastic and Reconstruction","Code","MGMA","Academic","All","Division Chair/Chief","MD",2022,0,0,0,0,0,0,0,0,0,0,0,0,0,0]
["MGMAAcademicAllDivision Chair/ChiefMDSurgery: Plastic and Reconstruction-HandL","Surgery: Plastic and Reconstruction-Hand","Code","MGMA","Academic","All","Division Chair/Chief","MD",2022,0,0,0,0,0,0,0,0,0,0,0,0,0,0]
["MGMAAcademicAllDivision Chair/ChiefMDSurgery: Thoracic (Primary)L","Surgery: Thoracic (Primary)","Code","MGMA","Academic","All","Division Chair/Chief","MD",2022,0,0,0,0,0,0,0,0,0,0,0,0,0,0]
["MGMAAcademicAllDivision Chair/ChiefMDSurgery: TransplantL","Surgery: Transplant","Code","MGMA","Academic","All","Division Chair/Chief","MD",2022,0,0,0,0,0,0,0,0,0,0,0,0,0,0]
["MGMAAcademicAllDivision Chair/ChiefMDSurgery: Transplant-HeartL","Surgery: Transplant-Heart","Code","MGMA","Academic","All","Division Chair/Chief","MD",2022,0,0,0,0,0,0,0,0,0,0,0,0,0,0]
["MGMAAcademicAllDivision Chair/ChiefMDSurgery: Transplant-Heart/LungL","Surgery: Transplant-Heart/Lung","Code","MGMA","Academic","All","Division Chair/Chief","MD",2022,0,0,0,0,0,0,0,0,0,0,0,0,0,0]
["MGMAAcademicAllDivision Chair/ChiefMDSurgery: Transplant-KidneyL","Surgery: Transplant-Kidney","Code","MGMA","Academic","All","Division Chair/Chief","MD",2022,0,0,0,0,0,0,0,0,0,0,0,0,0,0]
["MGMAAcademicAllDivision Chair/ChiefMDSurgery: Transplant-LiverL","Surgery: Transplant-Liver","Code","MGMA","Academic","All","Division Chair/Chief","MD",2022,0,0,0,0,0,0,0,0,0,0,0,0,0,0]
["MGMAAcademicAllDivision Chair/ChiefMDSurgery: TraumaL","Surgery: Trauma","Code","MGMA","Academic","All","Division Chair/Chief","MD",2022,0,0,0,0,0,0,0,0,0,0,0,0,0,0]
["MGMAAcademicAllDivision Chair/ChiefMDSurgery: Trauma-BurnL","Surgery: Trauma-Burn","Code","MGMA","Academic","All","Division Chair/Chief","MD",2022,0,0,0,0,0,0,0,0,0,0,0,0,0,0]
["MGMAAcademicAllDivision Chair/ChiefMDSurgery: Vascular (Primary)L","Surgery: Vascular (Primary)","Code","MGMA","Academic","All","Division Chair/Chief","MD",2022,0,0,0,0,0,0,0,0,0,0,0,0,0,0]
["MGMAAcademicAllDivision Chair/ChiefMDUrgent CareL","Urgent Care","Code","MGMA","Academic","All","Division Chair/Chief","MD",2022,0,0,0,0,0,0,0,0,0,0,0,0,0,0]
["MGMAAcademicAllDivision Chair/ChiefMDUrologyL","Urology","Code","MGMA","Academic","All","Division Chair/Chief","MD",2022,0,0,0,0,0,0,0,0,0,0,0,0,0,0]
["MGMAAcademicAllDivision Chair/ChiefMDAnesthesia AssistanttL","Anesthesia Assistantt","Code","MGMA","Academic","All","Division Chair/Chief","MD",2022,0,0,0,0,0,0,0,0,0,0,0,0,0,0]
["MGMAAcademicAllDivision Chair/ChiefMDAudiologistL","Audiologist","Code","MGMA","Academic","All","Division Chair/Chief","MD",2022,0,0,0,0,0,0,0,0,0,0,0,0,0,0]
["MGMAAcademicAllDivision Chair/ChiefMDCertified Registered Nurse AnesthetistL","Certified Registered Nurse Anesthetist","Code","MGMA","Academic","All","Division Chair/Chief","MD",2022,0,0,0,0,0,0,0,0,0,0,0,0,0,0]
["MGMAAcademicAllDivision Chair/ChiefMDChiropractorL","Chiropractor","Code","MGMA","Academic","All","Division Chair/Chief","MD",2022,0,0,0,0,0,0,0,0,0,0,0,0,0,0]
["MGMAAcademicAllDivision Chair/ChiefMDClinical Nurse Specialist L","Clinical Nurse Specialist ","Code","MGMA","Academic","All","Division Chair/Chief","MD",2022,0,0,0,0,0,0,0,0,0,0,0,0,0,0]
["MGMAAcademicAllDivision Chair/ChiefMDDietician/NutritionistL","Dietician/Nutritionist","Code","MGMA","Academic","All","Division Chair/Chief","MD",2022,0,0,0,0,0,0,0,0,0,0,0,0,0,0]
["MGMAAcademicAllDivision Chair/ChiefMDGenetic Counselor L","Genetic Counselor ","Code","MGMA","Academic","All","Division Chair/Chief","MD",2022,0,0,0,0,0,0,0,0,0,0,0,0,0,0]
["MGMAAcademicAllDivision Chair/ChiefMDLicensed Clinical Social WorkerL","Licensed Clinical Social Worker","Code","MGMA","Academic","All","Division Chair/Chief","MD",2022,0,0,0,0,0,0,0,0,0,0,0,0,0,0]
["MGMAAcademicAllDivision Chair/ChiefMDNurse Midwife: Outpatient/Inpatient DeliveriesL","Nurse Midwife: Outpatient/Inpatient Deliveries","Code","MGMA","Academic","All","Division Chair/Chief","MD",2022,0,0,0,0,0,0,0,0,0,0,0,0,0,0]
["MGMAAcademicAllDivision Chair/ChiefMDNurse Midwife: Outpatient (Only)L","Nurse Midwife: Outpatient (Only)","Code","MGMA","Academic","All","Division Chair/Chief","MD",2022,0,0,0,0,0,0,0,0,0,0,0,0,0,0]
["MGMAAcademicAllDivision Chair/ChiefMDNurse Midwife: Inpatient (Only)L","Nurse Midwife: Inpatient (Only)","Code","MGMA","Academic","All","Division Chair/Chief","MD",2022,0,0,0,0,0,0,0,0,0,0,0,0,0,0]
["MGMAAcademicAllDivision Chair/ChiefMDNP (Surgical)L","NP (Surgical)","Code","MGMA","Academic","All","Division Chair/Chief","MD",2022,0,0,0,0,0,0,0,0,0,0,0,0,0,0]
["MGMAAcademicAllDivision Chair/ChiefMDNP: AnesthesiologyL","NP: Anesthesiology","Code","MGMA","Academic","All","Division Chair/Chief","MD",2022,0,0,0,0,0,0,0,0,0,0,0,0,0,0]
["MGMAAcademicAllDivision Chair/ChiefMDNP: Cardiothoracic SurgeryL","NP: Cardiothoracic Surgery","Code","MGMA","Academic","All","Division Chair/Chief","MD",2022,0,0,0,0,0,0,0,0,0,0,0,0,0,0]
["MGMAAcademicAllDivision Chair/ChiefMDNP: NeurosurgeryL","NP: Neurosurgery","Code","MGMA","Academic","All","Division Chair/Chief","MD",2022,0,0,0,0,0,0,0,0,0,0,0,0,0,0]
["MGMAAcademicAllDivision Chair/ChiefMDNP: Orthopedics (Surgical)L","NP: Orthopedics (Surgical)","Code","MGMA","Academic","All","Division Chair/Chief","MD",2022,0,0,0,0,0,0,0,0,0,0,0,0,0,0]
["MGMAAcademicAllDivision Chair/ChiefMDNP: OtorhinolaryngologyL","NP: Otorhinolaryngology","Code","MGMA","Academic","All","Division Chair/Chief","MD",2022,0,0,0,0,0,0,0,0,0,0,0,0,0,0]
["MGMAAcademicAllDivision Chair/ChiefMDNP: Surgery: GeneralL","NP: Surgery: General","Code","MGMA","Academic","All","Division Chair/Chief","MD",2022,0,0,0,0,0,0,0,0,0,0,0,0,0,0]
["MGMAAcademicAllDivision Chair/ChiefMDNP: UrologyL","NP: Urology","Code","MGMA","Academic","All","Division Chair/Chief","MD",2022,0,0,0,0,0,0,0,0,0,0,0,0,0,0]
["MGMAAcademicAllDivision Chair/ChiefMDNP: Vascular SurgeryL","NP: Vascular Surgery","Code","MGMA","Academic","All","Division Chair/Chief","MD",2022,0,0,0,0,0,0,0,0,0,0,0,0,0,0]
["MGMAAcademicAllDivision Chair/ChiefMDNP (Primary Care)L","NP (Primary Care)","Code","MGMA","Academic","All","Division Chair/Chief","MD",2022,0,0,0,0,0,0,0,0,0,0,0,0,0,0]
["MGMAAcademicAllDivision Chair/ChiefMDNP: AdultL","NP: Adult","Code","MGMA","Academic","All","Division Chair/Chief","MD",2022,0,0,0,0,0,0,0,0,0,0,0,0,0,0]
["MGMAAcademicAllDivision Chair/ChiefMDNP: Family Medicine (with OB)L","NP: Family Medicine (with OB)","Code","MGMA","Academic","All","Division Chair/Chief","MD",2022,0,0,0,0,0,0,0,0,0,0,0,0,0,0]
["MGMAAcademicAllDivision Chair/ChiefMDNP: Family Medicine (without OB)L","NP: Family Medicine (without OB)","Code","MGMA","Academic","All","Division Chair/Chief","MD",2022,0,0,0,0,0,0,0,0,0,0,0,0,0,0]
["MGMAAcademicAllDivision Chair/ChiefMDNP: Gerontology/Elder HealthL","NP: Gerontology/Elder Health","Code","MGMA","Academic","All","Division Chair/Chief","MD",2022,0,0,0,0,0,0,0,0,0,0,0,0,0,0]
["MGMAAcademicAllDivision Chair/ChiefMDNP: Hospice/Palliative CareL","NP: Hospice/Palliative Care","Code","MGMA","Academic","All","Division Chair/Chief","MD",2022,0,0,0,0,0,0,0,0,0,0,0,0,0,0]
["MGMAAcademicAllDivision Chair/ChiefMDNP: Hospitalist (Primary Care)L","NP: Hospitalist (Primary Care)","Code","MGMA","Academic","All","Division Chair/Chief","MD",2022,0,0,0,0,0,0,0,0,0,0,0,0,0,0]
["MGMAAcademicAllDivision Chair/ChiefMDNP: Internal MedicineL","NP: Internal Medicine","Code","MGMA","Academic","All","Division Chair/Chief","MD",2022,0,0,0,0,0,0,0,0,0,0,0,0,0,0]
["MGMAAcademicAllDivision Chair/ChiefMDNP: OB/GYN/Women's HealthL","NP: OB/GYN/Women's Health","Code","MGMA","Academic","All","Division Chair/Chief","MD",2022,0,0,0,0,0,0,0,0,0,0,0,0,0,0]
["MGMAAcademicAllDivision Chair/ChiefMDNP: Pediatric/Child HealthL","NP: Pediatric/Child Health","Code","MGMA","Academic","All","Division Chair/Chief","MD",2022,0,0,0,0,0,0,0,0,0,0,0,0,0,0]
["MGMAAcademicAllDivision Chair/ChiefMDNP: Urgent CareL","NP: Urgent Care","Code","MGMA","Academic","All","Division Chair/Chief","MD",2022,0,0,0,0,0,0,0,0,0,0,0,0,0,0]
["MGMAAcademicAllDivision Chair/ChiefMDNP (Nonsurgical/Nonprimary Care)L","NP (Nonsurgical/Nonprimary Care)","Code","MGMA","Academic","All","Division Chair/Chief","MD",2022,0,0,0,0,0,0,0,0,0,0,0,0,0,0]
["MGMAAcademicAllDivision Chair/ChiefMDNP: Acute CareL","NP: Acute Care","Code","MGMA","Academic","All","Division Chair/Chief","MD",2022,0,0,0,0,0,0,0,0,0,0,0,0,0,0]
["MGMAAcademicAllDivision Chair/ChiefMDNP: Allergy/ImmunologyL","NP: Allergy/Immunology","Code","MGMA","Academic","All","Division Chair/Chief","MD",2022,0,0,0,0,0,0,0,0,0,0,0,0,0,0]
["MGMAAcademicAllDivision Chair/ChiefMDNP: CardiologyL","NP: Cardiology","Code","MGMA","Academic","All","Division Chair/Chief","MD",2022,0,0,0,0,0,0,0,0,0,0,0,0,0,0]
["MGMAAcademicAllDivision Chair/ChiefMDNP: DermatologyL","NP: Dermatology","Code","MGMA","Academic","All","Division Chair/Chief","MD",2022,0,0,0,0,0,0,0,0,0,0,0,0,0,0]
["MGMAAcademicAllDivision Chair/ChiefMDNP: Emergency MedicineL","NP: Emergency Medicine","Code","MGMA","Academic","All","Division Chair/Chief","MD",2022,0,0,0,0,0,0,0,0,0,0,0,0,0,0]
["MGMAAcademicAllDivision Chair/ChiefMDNP: EndocrinologyL","NP: Endocrinology","Code","MGMA","Academic","All","Division Chair/Chief","MD",2022,0,0,0,0,0,0,0,0,0,0,0,0,0,0]
["MGMAAcademicAllDivision Chair/ChiefMDNP: GastroenterologyL","NP: Gastroenterology","Code","MGMA","Academic","All","Division Chair/Chief","MD",2022,0,0,0,0,0,0,0,0,0,0,0,0,0,0]
["MGMAAcademicAllDivision Chair/ChiefMDNP: Hematology/OncologyL","NP: Hematology/Oncology","Code","MGMA","Academic","All","Division Chair/Chief","MD",2022,0,0,0,0,0,0,0,0,0,0,0,0,0,0]
["MGMAAcademicAllDivision Chair/ChiefMDNP: Hospitalist (Nonsurgical/Nonprimary Care)L","NP: Hospitalist (Nonsurgical/Nonprimary Care)","Code","MGMA","Academic","All","Division Chair/Chief","MD",2022,0,0,0,0,0,0,0,0,0,0,0,0,0,0]
["MGMAAcademicAllDivision Chair/ChiefMDNP: Infectious DiseaseL","NP: Infectious Disease","Code","MGMA","Academic","All","Division Chair/Chief","MD",2022,0,0,0,0,0,0,0,0,0,0,0,0,0,0]
["MGMAAcademicAllDivision Chair/ChiefMDNP: Neonatal/PerinatalL","NP: Neonatal/Perinatal","Code","MGMA","Academic","All","Division Chair/Chief","MD",2022,0,0,0,0,0,0,0,0,0,0,0,0,0,0]
["MGMAAcademicAllDivision Chair/ChiefMDNP: NephrologyL","NP: Nephrology","Code","MGMA","Academic","All","Division Chair/Chief","MD",2022,0,0,0,0,0,0,0,0,0,0,0,0,0,0]
[{"$f":"D1411&E1411&F1411&G1411&H1411&B1411&\"L\"","v":"MGMAAcademicAllDivision Chair/ChiefMDNP: NeurologyL"},"NP: Neurology","Code","MGMA","Academic","All","Division Chair/Chief","MD",2022,0,0,{"$f":"((O1411-J1411)/25)*10 + J1411","v":0},{"$f":"((O1411-J1411)/25)*15 + J1411","v":0},{"$f":"((O1411-J1411)/25)*20 + J1411","v":0},0,{"$f":"((T1411-O1411)/25)*5 + O1411","v":0},{"$f":"((T1411-O1411)/25)*10 + O1411","v":0},{"$f":"((T1411-O1411)/25)*15 + O1411","v":0},{"$f":"((T1411-O1411)/25)*20 + O1411","v":0},0,{"$f":"((W1411-T1411)/25)*5 + T1411","v":0},{"$f":"((W1411-T1411)/25)*10 + T1411","v":0},0]
["MGMAAcademicAllDivision Chair/ChiefMDNP: Orthopedics (Nonsurgical/Nonprimary Care)L","NP: Orthopedics (Nonsurgical/Nonprimary Care)","Code","MGMA","Academic","All","Division Chair/Chief","MD",2022,0,0,0,0,0,0,0,0,0,0,0,0,0,0]
["MGMAAcademicAllDivision Chair/ChiefMDNP: PhysiatryL","NP: Physiatry","Code","MGMA","Academic","All","Division Chair/Chief","MD",2022,0,{"$f":"((O1413-J1413)/25)*5 + J1413","v":0},0,0,0,0,0,0,0,0,0,0,0,0]
["MGMAAcademicAllDivision Chair/ChiefMDNP: PsychiatryL","NP: Psychiatry","Code","MGMA","Academic","All","Division Chair/Chief","MD",2022,0,0,0,0,0,0,0,0,0,0,0,0,0,0]
["MGMAAcademicAllDivision Chair/ChiefMDNP: Pulmonary MedicineL","NP: Pulmonary Medicine","Code","MGMA","Academic","All","Division Chair/Chief","MD",2022,0,0,0,0,0,0,0,0,0,0,0,0,0,0]
["MGMAAcademicAllDivision Chair/ChiefMDNP: RheumatologyL","NP: Rheumatology","Code","MGMA","Academic","All","Division Chair/Chief","MD",2022,0,0,0,0,0,0,0,0,0,0,0,0,0,0]
["MGMAAcademicAllDivision Chair/ChiefMDOccupational TherapistL","Occupational Therapist","Code","MGMA","Academic","All","Division Chair/Chief","MD",2022,0,0,0,0,0,0,0,0,0,0,0,0,0,0]
["MGMAAcademicAllDivision Chair/ChiefMDOptometristL","Optometrist","Code","MGMA","Academic","All","Division Chair/Chief","MD",2022,0,0,0,0,0,0,0,0,0,0,0,0,0,0]
["MGMAAcademicAllDivision Chair/ChiefMDPhDL","PhD","Code","MGMA","Academic","All","Division Chair/Chief","MD",2022,0,0,0,0,0,0,0,0,0,0,0,0,0,0]
["MGMAAcademicAllDivision Chair/ChiefMDPhysical TherapistL","Physical Therapist","Code","MGMA","Academic","All","Division Chair/Chief","MD",2022,0,0,0,0,0,0,0,0,0,0,0,0,0,0]
["MGMAAcademicAllDivision Chair/ChiefMDPA (Surgical)L","PA (Surgical)","Code","MGMA","Academic","All","Division Chair/Chief","MD",2022,0,0,0,0,0,0,0,0,0,0,0,0,0,0]
["MGMAAcademicAllDivision Chair/ChiefMDPA: Anesthesiology L","PA: Anesthesiology ","Code","MGMA","Academic","All","Division Chair/Chief","MD",2022,0,0,0,0,0,0,0,0,0,0,0,0,0,0]
["MGMAAcademicAllDivision Chair/ChiefMDPA: Cardiothoracic SurgeryL","PA: Cardiothoracic Surgery","Code","MGMA","Academic","All","Division Chair/Chief","MD",2022,0,0,0,0,0,0,0,0,0,0,0,0,0,0]
["MGMAAcademicAllDivision Chair/ChiefMDPA: NeurosurgeryL","PA: Neurosurgery","Code","MGMA","Academic","All","Division Chair/Chief","MD",2022,0,0,0,0,0,0,0,0,0,0,0,0,0,0]
["MGMAAcademicAllDivision Chair/ChiefMDPA: Orthopedic (Surgical)L","PA: Orthopedic (Surgical)","Code","MGMA","Academic","All","Division Chair/Chief","MD",2022,0,0,0,0,0,0,0,0,0,0,0,0,0,0]
["MGMAAcademicAllDivision Chair/ChiefMDPA: OtorhinolaryngologyL","PA: Otorhinolaryngology","Code","MGMA","Academic","All","Division Chair/Chief","MD",2022,0,0,0,0,0,0,0,0,0,0,0,0,0,0]
["MGMAAcademicAllDivision Chair/ChiefMDPA: Surgery: GeneralL","PA: Surgery: General","Code","MGMA","Academic","All","Division Chair/Chief","MD",2022,0,0,0,0,0,0,0,0,0,0,0,0,0,0]
["MGMAAcademicAllDivision Chair/ChiefMDPA: UrologyL","PA: Urology","Code","MGMA","Academic","All","Division Chair/Chief","MD",2022,0,0,0,0,0,0,0,0,0,0,0,0,0,0]
["MGMAAcademicAllDivision Chair/ChiefMDPA (Primary Care)L","PA (Primary Care)","Code","MGMA","Academic","All","Division Chair/Chief","MD",2022,0,0,0,0,0,0,0,0,0,0,0,0,0,0]
["MGMAAcademicAllDivision Chair/ChiefMDPA: Family Medicine (without OB)L","PA: Family Medicine (without OB)","Code","MGMA","Academic","All","Division Chair/Chief","MD",2022,0,0,0,0,0,0,0,0,0,0,0,0,0,0]
["MGMAAcademicAllDivision Chair/ChiefMDPA: Hospitalist (Primary Care)L","PA: Hospitalist (Primary Care)","Code","MGMA","Academic","All","Division Chair/Chief","MD",2022,0,0,0,0,0,0,0,0,0,0,0,0,0,0]
["MGMAAcademicAllDivision Chair/ChiefMDPA: Internal MedicineL","PA: Internal Medicine","Code","MGMA","Academic","All","Division Chair/Chief","MD",2022,0,0,0,0,0,0,0,0,0,0,0,0,0,0]
["MGMAAcademicAllDivision Chair/ChiefMDPA: OB/GYN/Women's HealthL","PA: OB/GYN/Women's Health","Code","MGMA","Academic","All","Division Chair/Chief","MD",2022,0,0,0,0,0,0,0,0,0,0,0,0,0,0]
["MGMAAcademicAllDivision Chair/ChiefMDPA: Pediatric/Child HealthL","PA: Pediatric/Child Health","Code","MGMA","Academic","All","Division Chair/Chief","MD",2022,0,0,0,0,0,0,0,0,0,0,0,0,0,0]
["MGMAAcademicAllDivision Chair/ChiefMDPA: Urgent CareL","PA: Urgent Care","Code","MGMA","Academic","All","Division Chair/Chief","MD",2022,0,0,0,0,0,0,0,0,0,0,0,0,0,0]
["MGMAAcademicAllDivision Chair/ChiefMDPA (Nonsurgical/Nonprimary Care)L","PA (Nonsurgical/Nonprimary Care)","Code","MGMA","Academic","All","Division Chair/Chief","MD",2022,0,0,0,0,0,0,0,0,0,0,0,0,0,0]
["MGMAAcademicAllDivision Chair/ChiefMDPA: CardiologyL","PA: Cardiology","Code","MGMA","Academic","All","Division Chair/Chief","MD",2022,0,0,0,0,0,0,0,0,0,0,0,0,0,0]
["MGMAAcademicAllDivision Chair/ChiefMDPA: DermatologyL","PA: Dermatology","Code","MGMA","Academic","All","Division Chair/Chief","MD",2022,0,0,0,0,0,0,0,0,0,0,0,0,0,0]
["MGMAAcademicAllDivision Chair/ChiefMDPA: Emergency MedicineL","PA: Emergency Medicine","Code","MGMA","Academic","All","Division Chair/Chief","MD",2022,0,0,0,0,0,0,0,0,0,0,0,0,0,0]
["MGMAAcademicAllDivision Chair/ChiefMDPA: EndocrinologyL","PA: Endocrinology","Code","MGMA","Academic","All","Division Chair/Chief","MD",2022,0,0,0,0,0,0,0,0,0,0,0,0,0,0]
["MGMAAcademicAllDivision Chair/ChiefMDPA: GastroenterologyL","PA: Gastroenterology","Code","MGMA","Academic","All","Division Chair/Chief","MD",2022,0,0,0,0,0,0,0,0,0,0,0,0,0,0]
["MGMAAcademicAllDivision Chair/ChiefMDPA: Hematology/OncologyL","PA: Hematology/Oncology","Code","MGMA","Academic","All","Division Chair/Chief","MD",2022,0,0,0,0,0,0,0,0,0,0,0,0,0,0]
["MGMAAcademicAllDivision Chair/ChiefMDPA: Hospitalist (Nonsurgical/Nonprimary Care)L","PA: Hospitalist (Nonsurgical/Nonprimary Care)","Code","MGMA","Academic","All","Division Chair/Chief","MD",2022,0,0,0,0,0,0,0,0,0,0,0,0,0,0]
["MGMAAcademicAllDivision Chair/ChiefMDPA: Infectious DiseaseL","PA: Infectious Disease","Code","MGMA","Academic","All","Division Chair/Chief","MD",2022,0,0,0,0,0,0,0,0,0,0,0,0,0,0]
["MGMAAcademicAllDivision Chair/ChiefMDPA: NephrologyL","PA: Nephrology","Code","MGMA","Academic","All","Division Chair/Chief","MD",2022,0,0,0,0,0,0,0,0,0,0,0,0,0,0]
["MGMAAcademicAllDivision Chair/ChiefMDPA: NeurologyL","PA: Neurology","Code","MGMA","Academic","All","Division Chair/Chief","MD",2022,0,0,0,0,0,0,0,0,0,0,0,0,0,0]
["MGMAAcademicAllDivision Chair/ChiefMDPA: Orthopedic (Nonsurgical/Nonprimary Care)L","PA: Orthopedic (Nonsurgical/Nonprimary Care)","Code","MGMA","Academic","All","Division Chair/Chief","MD",2022,0,0,0,0,0,0,0,0,0,0,0,0,0,0]
["MGMAAcademicAllDivision Chair/ChiefMDPA: PsychiatryL","PA: Psychiatry","Code","MGMA","Academic","All","Division Chair/Chief","MD",2022,0,0,0,0,0,0,0,0,0,0,0,0,0,0]
["MGMAAcademicAllDivision Chair/ChiefMDPA: Pulmonary MedicineL","PA: Pulmonary Medicine","Code","MGMA","Academic","All","Division Chair/Chief","MD",2022,0,0,0,0,0,0,0,0,0,0,0,0,0,0]
["MGMAAcademicAllDivision Chair/ChiefMDPA: RheumatologyL","PA: Rheumatology","Code","MGMA","Academic","All","Division Chair/Chief","MD",2022,0,0,0,0,0,0,0,0,0,0,0,0,0,0]
["MGMAAcademicAllDivision Chair/ChiefMDPsychologistL","Psychologist","Code","MGMA","Academic","All","Division Chair/Chief","MD",2022,0,0,0,0,0,0,0,0,0,0,0,0,0,0]
["MGMAAcademicAllDivision Chair/ChiefMDResearchL","Research","Code","MGMA","Academic","All","Division Chair/Chief","MD",2022,0,0,0,0,0,0,0,0,0,0,0,0,0,0]
["MGMAAcademicAllDivision Chair/ChiefMDResearch: MDL","Research: MD","Code","MGMA","Academic","All","Division Chair/Chief","MD",2022,0,0,0,0,0,0,0,0,0,0,0,0,0,0]

{"sheet":"MGMACP","index":23,"n_rows":254,"n_cols":23,"rows_kept":254,"cut":false,"hidden":false,"merged":[]}
["Key","Specialty","Code","Source","Type","Category","Rank","Degress","Year","P25","P30","P35","P40","P45","P50","P55","P60","P65","P70","P75","P80","P85","P90"]
[{"$f":"D2&E2&F2&E2&H2&B2&\"L\"","v":"MGMAPrivate PracticeAllPrivate PracticeMDAllergy/ImmunologyL"},"Allergy/Immunology","Code","MGMA","Private Practice","All",null,"MD",2022,"$270,864",{"$f":"(((O2-J2)/25)*5) + J2","v":286091.2},{"$f":"(((O2-J2)/25)*10) + J2","v":301318.40000000002},{"$f":"(((O2-J2)/25)*15) + J2","v":316545.59999999998},{"$f":"(((O2-J2)/25)*20) + J2","v":331772.79999999999},"$347,000",{"$f":"(((T2-O2)/25)*5) + O2","v":379508.6},{"$f":"(((T2-O2)/25)*10) + O2","v":412017.2},{"$f":"(((T2-O2)/25)*15) + O2","v":444525.8},{"$f":"(((T2-O2)/25)*20) + O2","v":477034.4},"$509,543",{"$f":"(((W2-T2)/25)*5) + T2","v":527907.6},{"$f":"(((W2-T2)/25)*10) + T2","v":546272.19999999995},"$601,366"]
[{"$f":"D3&E3&F3&E3&H3&B3&\"L\"","v":"MGMAPrivate PracticeAllPrivate PracticeMDAnesthesiologyL"},"Anesthesiology","Code","MGMA","Private Practice","All",null,"MD",2022,"$403,769",{"$f":"(((O3-J3)/25)*5) + J3","v":422806},{"$f":"(((O3-J3)/25)*10) + J3","v":441843},{"$f":"(((O3-J3)/25)*15) + J3","v":460880},{"$f":"(((O3-J3)/25)*20) + J3","v":479917},"$498,954",{"$f":"(((T3-O3)/25)*5) + O3","v":514516.6},{"$f":"(((T3-O3)/25)*10) + O3","v":530079.19999999995},{"$f":"(((T3-O3)/25)*15) + O3","v":545641.80000000005},{"$f":"(((T3-O3)/25)*20) + O3","v":561204.4},"$576,767",{"$f":"(((W3-T3)/25)*5) + T3","v":598654.4},{"$f":"(((W3-T3)/25)*10) + T3","v":620541.80000000005},"$686,204"]
["MGMAPrivate PracticeAllPrivate PracticeMDAnesthesiology: CardiologyL","Anesthesiology: Cardiology","Code","MGMA","Private Practice","All",null,"MD",2022,"$478,066",489689.59999999998,501313.2,512936.8,524560.4,"$536,184",554435.4,572686.80000000005,590938.19999999995,609189.6,"$627,441",632811.6,638182.19999999995,"$654,294"]
["MGMAPrivate PracticeAllPrivate PracticeMDAnesthesiology: Pain ManagementL","Anesthesiology: Pain Management","Code","MGMA","Private Practice","All",null,"MD",2022,"$368,122",388964.2,409806.4,430648.6,451490.8,"$472,333",498382.4,524431.80000000005,550481.19999999995,576530.6,"$602,580",652073.4,701566.8,"$850,047"]
["MGMAPrivate PracticeAllPrivate PracticeMDBariatrics (Nonsurgical)/Obesity MedicineL","Bariatrics (Nonsurgical)/Obesity Medicine","Code","MGMA","Private Practice","All",null,"MD",2022,"$231,044",241215.8,251387.6,261559.4,271731.20000000001,"$281,903",290799.8,299696.59999999998,308593.40000000002,317490.2,"$326,387",358893.2,391399.4,"$488,918"]
["MGMAPrivate PracticeAllPrivate PracticeMDCardiology: ElectrophysiologyL","Cardiology: Electrophysiology","Code","MGMA","Private Practice","All",null,"MD",2022,"$585,043",613320,641597,669874,698151,"$726,428",767664.8,808901.6,850138.4,891375.2,"$932,612",975016.8,1017421.6,"$1,144,636"]
["MGMAPrivate PracticeAllPrivate PracticeMDCardiology: InvasiveL","Cardiology: Invasive","Code","MGMA","Private Practice","All",null,"MD",2022,"$527,895",548321.19999999995,568747.4,589173.6,609599.80000000005,"$630,026",657562.6,685099.2,712635.8,740172.4,"$767,709",814123,860537,"$999,779"]
["MGMAPrivate PracticeAllPrivate PracticeMDCardiology: Invasive-InterventionalL","Cardiology: Invasive-Interventional","Code","MGMA","Private Practice","All",null,"MD",2022,"$560,436",588592.80000000005,616749.6,644906.4,673063.2,"$701,220",734831.8,768443.6,802055.4,835667.2,"$869,279",913629.8,957980.6,"$1,091,033"]
["MGMAPrivate PracticeAllPrivate PracticeMDCardiology: NoninvasiveL","Cardiology: Noninvasive","Code","MGMA","Private Practice","All",null,"MD",2022,"$446,652",469143,491634,514125,536616,"$559,107",586773.6,614440.19999999995,642106.80000000005,669773.4,"$697,440",735434,773428,"$887,410"]
["MGMAPrivate PracticeAllPrivate PracticeMDCritical Care: IntensivistL","Critical Care: Intensivist","Code","MGMA","Private Practice","All",null,"MD",2022,"$398,972",412399.8,425827.6,439255.4,452683.2,"$466,111",482787.8,499464.6,516141.4,532818.19999999995,"$549,495",572558.19999999995,595621.4,"$664,811"]
["MGMAPrivate PracticeAllPrivate PracticeMDDentistryL","Dentistry","Code","MGMA","Private Practice","All",null,"MD",2022,"$167,859",174395.2,180931.4,187467.6,194003.8,"$200,540",208058,215576,223094,230612,"$238,130",251117.2,264104.40000000002,"$303,066"]
["MGMAPrivate PracticeAllPrivate PracticeMDDermatologyL","Dermatology","Code","MGMA","Private Practice","All",null,"MD",2022,"$397,314",416068.4,434822.8,453577.2,472331.6,"$491,086",522593.8,554101.6,585609.4,617117.19999999995,"$648,625",706026.8,763428.6,"$935,634"]
["MGMAPrivate PracticeAllPrivate PracticeMDDermatology: DermatopathologyL","Dermatology: Dermatopathology","Code","MGMA","Private Practice","All",null,"MD",2022,"$441,613",458500.6,475388.2,492275.8,509163.4,"$526,051",562869,599687,636505,673323,"$710,141",755498,800855,"$936,926"]
["MGMAPrivate PracticeAllPrivate PracticeMDDermatology: Mohs SurgeryL","Dermatology: Mohs Surgery","Code","MGMA","Private Practice","All",null,"MD",2022,"$589,901",616276.19999999995,642651.4,669026.6,695401.8,"$721,777",766013.4,810249.8,854486.2,898722.6,"$942,959",995282,1047605,"$1,204,574"]
["MGMAPrivate PracticeAllPrivate PracticeMDEmergency MedicineL","Emergency Medicine","Code","MGMA","Private Practice","All",null,"MD",2022,"$322,125",333433.2,344741.4,356049.6,367357.8,"$378,666",389837.4,401008.8,412180.2,423351.6,"$434,523",447933.2,461343.4,"$501,574"]
["MGMAPrivate PracticeAllPrivate PracticeMDEndocrinology/MetabolismL","Endocrinology/Metabolism","Code","MGMA","Private Practice","All",null,"MD",2022,"$235,313",244383.2,253453.4,262523.59999999998,271593.8,"$280,664",292620.59999999998,304577.2,316533.8,328490.40000000002,"$340,447",359759.6,379072.2,"$437,010"]
["MGMAPrivate PracticeAllPrivate PracticeMDFamily Medicine (with OB)L","Family Medicine (with OB)","Code","MGMA","Private Practice","All",null,"MD",2022,"$227,869",237391.6,246914.2,256436.8,265959.40000000002,"$275,482",288234.8,300987.59999999998,313740.40000000002,326493.2,"$339,246",357640.2,376034.4,"$431,217"]
["MGMAPrivate PracticeAllPrivate PracticeMDFamily Medicine (without OB)L","Family Medicine (without OB)","Code","MGMA","Private Practice","All",null,"MD",2022,"$235,135",244423.8,253712.6,263001.40000000002,272290.2,"$281,579",294663.2,307747.40000000002,320831.59999999998,333915.8,"$347,000",362917.6,378835.20000000001,"$426,588"]
["MGMAPrivate PracticeAllPrivate PracticeMDFamily Medicine: Ambulatory Only (No Inpatient Work)L","Family Medicine: Ambulatory Only (No Inpatient Work)","Code","MGMA","Private Practice","All",null,"MD",2022,"$236,475",245334,254193,263052,271911,"$280,770",291033.8,301297.59999999998,311561.40000000002,321825.2,"$332,089",347087,362085,"$407,079"]
["MGMAPrivate PracticeAllPrivate PracticeMDFamily Medicine: Sports MedicineL","Family Medicine: Sports Medicine","Code","MGMA","Private Practice","All",null,"MD",2022,"$268,151",280975.59999999998,293800.2,306624.8,319449.40000000002,"$332,274",349290,366306,383322,400338,"$417,354",437187,457020,"$516,519"]
["MGMAPrivate PracticeAllPrivate PracticeMDFamily Medicine: Urgent CareL","Family Medicine: Urgent Care","Code","MGMA","Private Practice","All",null,"MD",2022,"$264,982",278056,291130,304204,317278,"$330,352",341968.4,353584.8,365201.2,376817.6,"$388,434",401591.8,414749.6,"$454,223"]
["MGMAPrivate PracticeAllPrivate PracticeMDGastroenterologyL","Gastroenterology","Code","MGMA","Private Practice","All",null,"MD",2022,"$450,676",471875.8,493075.6,514275.4,535475.19999999995,"$556,675",584890.80000000005,613106.6,641322.4,669538.19999999995,"$697,754",737567.2,777380.4,"$896,820"]
["MGMAPrivate PracticeAllPrivate PracticeMDGastroenterology: HepatologyL","Gastroenterology: Hepatology","Code","MGMA","Private Practice","All",null,"MD",2022,"$516,805",542645.19999999995,568485.4,594325.6,620165.80000000005,"$646,006",646006,646006,646006,646006,"$646,006",647846,649686,"$655,206"]
["MGMAPrivate PracticeAllPrivate PracticeMDGeneticsL","Genetics","Code","MGMA","Private Practice","All",null,"MD",2022,"$194,568",202404.4,210240.8,218077.2,225913.60000000001,"$233,750",244849,255948,267047,278146,"$289,245",298413.59999999998,307582.2,"$335,088"]
["MGMAPrivate PracticeAllPrivate PracticeMDGeriatricsL","Geriatrics","Code","MGMA","Private Practice","All",null,"MD",2022,"$225,666",232418.6,239171.20000000001,245923.8,252676.4,"$259,429",272023,284617,297211,309805,"$322,399",340409.4,358419.8,"$412,451"]
["MGMAPrivate PracticeAllPrivate PracticeMDHematology/OncologyL","Hematology/Oncology","Code","MGMA","Private Practice","All",null,"MD",2022,"$408,799",430242.6,451686.2,473129.8,494573.4,"$516,017",543713,571409,599105,626801,"$654,497",695180,735863,"$857,912"]
["MGMAPrivate PracticeAllPrivate PracticeMDHematology/Oncology: Oncology (Only)L","Hematology/Oncology: Oncology (Only)","Code","MGMA","Private Practice","All",null,"MD",2022,"$411,188",431770.4,452352.8,472935.2,493517.6,"$514,100",537217.4,560334.80000000005,583452.19999999995,606569.6,"$629,687",662922.6,696158.2,"$795,865"]
["MGMAPrivate PracticeAllPrivate PracticeMDHospice/Palliative CareL","Hospice/Palliative Care","Code","MGMA","Private Practice","All",null,"MD",2022,"$229,538",233961.4,238384.8,242808.2,247231.6,"$251,655",258646,265637,272628,279619,"$286,610",298729.40000000002,310848.8,"$347,207"]
["MGMAPrivate PracticeAllPrivate PracticeMDHospitalist: Family MedicineL","Hospitalist: Family Medicine","Code","MGMA","Private Practice","All",null,"MD",2022,"$257,257",269276.79999999999,281296.59999999998,293316.40000000002,305336.2,"$317,356",328434,339512,350590,361668,"$372,746",389753.4,406760.8,"$457,783"]
["MGMAPrivate PracticeAllPrivate PracticeMDHospitalist: Internal MedicineL","Hospitalist: Internal Medicine","Code","MGMA","Private Practice","All",null,"MD",2022,"$283,416",291524.40000000002,299632.8,307741.2,315849.59999999998,"$323,958",334522,345086,355650,366214,"$376,778",389756,402734,"$441,668"]
["MGMAPrivate PracticeAllPrivate PracticeMDHospitalist: NocturnistL","Hospitalist: Nocturnist","Code","MGMA","Private Practice","All",null,"MD",2022,"$308,231",316405,324579,332753,340927,"$349,101",359534.8,369968.6,380402.4,390836.2,"$401,270",410713,420156,"$448,485"]
["MGMAPrivate PracticeAllPrivate PracticeMDHospitalist: OB/GYNL","Hospitalist: OB/GYN","Code","MGMA","Private Practice","All",null,"MD",2022,"$281,343",290075.2,298807.40000000002,307539.59999999998,316271.8,"$325,004",333538,342072,350606,359140,"$367,674",377449.8,387225.59999999998,"$416,553"]
["MGMAPrivate PracticeAllPrivate PracticeMDHyperbaric Medicine/Wound CareL","Hyperbaric Medicine/Wound Care","Code","MGMA","Private Practice","All",null,"MD",2022,"$217,737",229676,241615,253554,265493,"$277,432",287240.8,297049.59999999998,306858.40000000002,316667.2,"$326,476",348380.4,370284.79999999999,"$435,998"]
["MGMAPrivate PracticeAllPrivate PracticeMDInfectious DiseaseL","Infectious Disease","Code","MGMA","Private Practice","All",null,"MD",2022,"$253,690",265051.59999999998,276413.2,287774.8,299136.40000000002,"$310,498",325218.59999999998,339939.2,354659.8,369380.4,"$384,101",408369.8,432638.6,"$505,445"]
["MGMAPrivate PracticeAllPrivate PracticeMDInternal Medicine: GeneralL","Internal Medicine: General","Code","MGMA","Private Practice","All",null,"MD",2022,"$242,857",252399.4,261941.8,271484.2,281026.59999999998,"$290,569",303358.40000000002,316147.8,328937.2,341726.6,"$354,516",370592.6,386669.2,"$434,899"]
["MGMAPrivate PracticeAllPrivate PracticeMDInternal Medicine: Ambulatory Only (No Inpatient Work)L","Internal Medicine: Ambulatory Only (No Inpatient Work)","Code","MGMA","Private Practice","All",null,"MD",2022,"$243,962",253878.39999999999,263794.8,273711.2,283627.59999999998,"$293,544",307769.40000000002,321994.8,336220.2,350445.6,"$364,671",381152.2,397633.4,"$447,077"]
["MGMAPrivate PracticeAllPrivate PracticeMDNephrologyL","Nephrology","Code","MGMA","Private Practice","All",null,"MD",2022,"$310,000",322794.8,335589.6,348384.4,361179.2,"$373,974",392675,411376,430077,448778,"$467,479",500473.2,533467.4,"$632,450"]
["MGMAPrivate PracticeAllPrivate PracticeMDNephrology: TransplantL","Nephrology: Transplant","Code","MGMA","Private Practice","All",null,"MD",2022,"*",{"$error":"#VALUE!"},{"$error":"#VALUE!"},{"$error":"#VALUE!"},{"$error":"#VALUE!"},"*",{"$error":"#VALUE!"},{"$error":"#VALUE!"},{"$error":"#VALUE!"},{"$error":"#VALUE!"},"*",{"$error":"#VALUE!"},{"$error":"#VALUE!"},"*"]
["MGMAPrivate PracticeAllPrivate PracticeMDNeurologyL","Neurology","Code","MGMA","Private Practice","All",null,"MD",2022,"$281,308",294516,307724,320932,334140,"$347,348",361167.4,374986.8,388806.2,402625.6,"$416,445",443239.2,470033.4,"$550,416"]
["MGMAPrivate PracticeAllPrivate PracticeMDNeurology: Epilepsy/EEGL","Neurology: Epilepsy/EEG","Code","MGMA","Private Practice","All",null,"MD",2022,"$241,515",252864.8,264214.59999999998,275564.40000000002,286914.2,"$298,264",313633.2,329002.40000000002,344371.6,359740.8,"$375,110",396395.6,417681.2,"$481,538"]
["MGMAPrivate PracticeAllPrivate PracticeMDNeurology: Neurocritical CareL","Neurology: Neurocritical Care","Code","MGMA","Private Practice","All",null,"MD",2022,"$330,000",348660,367320,385980,404640,"$423,300",433219.2,443138.4,453057.6,462976.8,"$472,896",484667.2,496438.4,"$531,752"]
["MGMAPrivate PracticeAllPrivate PracticeMDNeurology: Neuromuscular MedicineL","Neurology: Neuromuscular Medicine","Code","MGMA","Private Practice","All",null,"MD",2022,"$224,109",238966.2,253823.4,268680.59999999998,283537.8,"$298,395",308838.8,319282.59999999998,329726.40000000002,340170.2,"$350,614",360417.4,370220.79999999999,"$399,631"]
["MGMAPrivate PracticeAllPrivate PracticeMDNeurology: Stroke MedicineL","Neurology: Stroke Medicine","Code","MGMA","Private Practice","All",null,"MD",2022,"$326,552",335899.4,345246.8,354594.2,363941.6,"$373,289",387721.8,402154.6,416587.4,431020.2,"$445,453",479184.8,512916.6,"$614,112"]
["MGMAPrivate PracticeAllPrivate PracticeMDObstetrics/Gynecology: GeneralL","Obstetrics/Gynecology: General","Code","MGMA","Private Practice","All",null,"MD",2022,"$302,750",316035.8,329321.59999999998,342607.4,355893.2,"$369,179",387521,405863,424205,442547,"$460,889",486103.4,511317.8,"$586,961"]
["MGMAPrivate PracticeAllPrivate PracticeMDOB/GYN: Gynecology (Only)L","OB/GYN: Gynecology (Only)","Code","MGMA","Private Practice","All",null,"MD",2022,"$209,940",223888.8,237837.6,251786.4,265735.2,"$279,684",294146.8,308609.59999999998,323072.40000000002,337535.2,"$351,998",373660.6,395323.2,"$460,311"]
["MGMAPrivate PracticeAllPrivate PracticeMDOB/GYN: Gynecological OncologyL","OB/GYN: Gynecological Oncology","Code","MGMA","Private Practice","All",null,"MD",2022,"$417,790",437612.2,457434.4,477256.6,497078.8,"$516,901",538858.80000000005,560816.6,582774.4,604732.19999999995,"$626,690",660495.6,694301.2,"$795,718"]
["MGMAPrivate PracticeAllPrivate PracticeMDOB/GYN: Maternal and Fetal MedicineL","OB/GYN: Maternal and Fetal Medicine","Code","MGMA","Private Practice","All",null,"MD",2022,"$446,236",464990.8,483745.6,502500.4,521255.2,"$540,010",560941.4,581872.80000000005,602804.19999999995,623735.6,"$644,667",696708.2,748749.4,"$904,873"]
["MGMAPrivate PracticeAllPrivate PracticeMDOB/GYN: Minimally Invasive Gynecologic SurgeryL","OB/GYN: Minimally Invasive Gynecologic Surgery","Code","MGMA","Private Practice","All",null,"MD",2022,"*",{"$error":"#VALUE!"},{"$error":"#VALUE!"},{"$error":"#VALUE!"},{"$error":"#VALUE!"},"*",{"$error":"#VALUE!"},{"$error":"#VALUE!"},{"$error":"#VALUE!"},{"$error":"#VALUE!"},"*",{"$error":"#VALUE!"},{"$error":"#VALUE!"},"*"]
["MGMAPrivate PracticeAllPrivate PracticeMDOB/GYN: Reproductive EndocrinologyL","OB/GYN: Reproductive Endocrinology","Code","MGMA","Private Practice","All",null,"MD",2022,"$432,692",461603.2,490514.4,519425.6,548336.80000000005,"$577,248",628759.80000000005,680271.6,731783.4,783295.2,"$834,807",856130.2,877453.4,"$941,423"]
["MGMAPrivate PracticeAllPrivate PracticeMDOB/GYN: UrogynecologyL","OB/GYN: Urogynecology","Code","MGMA","Private Practice","All",null,"MD",2022,"$319,622",332365.40000000002,345108.8,357852.2,370595.6,"$383,339",400907,418475,436043,453611,"$471,179",493183.6,515188.2,"$581,202"]
["MGMAPrivate PracticeAllPrivate PracticeMDOccupational MedicineL","Occupational Medicine","Code","MGMA","Private Practice","All",null,"MD",2022,"$236,748",246424.6,256101.2,265777.8,275454.40000000002,"$285,131",296452.59999999998,307774.2,319095.8,330417.40000000002,"$341,739",352269.6,362800.2,"$394,392"]
["MGMAPrivate PracticeAllPrivate PracticeMDOphthalmologyL","Ophthalmology","Code","MGMA","Private Practice","All",null,"MD",2022,"$325,489",344222.8,362956.6,381690.4,400424.2,"$419,158",443777.6,468397.2,493016.8,517636.4,"$542,256",578668.80000000005,615081.6,"$724,320"]
["MGMAPrivate PracticeAllPrivate PracticeMDOphthalmology: Corneal and Refractive SurgeryL","Ophthalmology: Corneal and Refractive Surgery","Code","MGMA","Private Practice","All",null,"MD",2022,"$367,812",384189.6,400567.2,416944.8,433322.4,"$449,700",464982.2,480264.4,495546.6,510828.79999999999,"$526,111",581948.80000000005,637786.6,"$805,300"]
["MGMAPrivate PracticeAllPrivate PracticeMDOphthalmology: GlaucomaL","Ophthalmology: Glaucoma","Code","MGMA","Private Practice","All",null,"MD",2022,"$348,732",356526.2,364320.4,372114.6,379908.8,"$387,703",399607.2,411511.4,423415.6,435319.8,"$447,224",457329.4,467434.8,"$497,751"]
["MGMAPrivate PracticeAllPrivate PracticeMDOphthalmology: NeurologyL","Ophthalmology: Neurology","Code","MGMA","Private Practice","All",null,"MD",2022,"*",{"$error":"#VALUE!"},{"$error":"#VALUE!"},{"$error":"#VALUE!"},{"$error":"#VALUE!"},"*",{"$error":"#VALUE!"},{"$error":"#VALUE!"},{"$error":"#VALUE!"},{"$error":"#VALUE!"},"*",{"$error":"#VALUE!"},{"$error":"#VALUE!"},"*"]
["MGMAPrivate PracticeAllPrivate PracticeMDOphthalmology: Oculoplastic and Reconstructive SurgeryL","Ophthalmology: Oculoplastic and Reconstructive Surgery","Code","MGMA","Private Practice","All",null,"MD",2022,"$406,650",420358.2,434066.4,447774.6,461482.8,"$475,191",485648.4,496105.8,506563.2,517020.6,"$527,478",550441.4,573404.80000000005,"$642,295"]
["MGMAPrivate PracticeAllPrivate PracticeMDOphthalmology: RetinaL","Ophthalmology: Retina","Code","MGMA","Private Practice","All",null,"MD",2022,"$504,345",520926.8,537508.6,554090.4,570672.19999999995,"$587,254",616962.80000000005,646671.6,676380.4,706089.2,"$735,798",750404.4,765010.8,"$808,830"]
["MGMAPrivate PracticeAllPrivate PracticeMDOrthopedic (Nonsurgical)L","Orthopedic (Nonsurgical)","Code","MGMA","Private Practice","All",null,"MD",2022,"$326,899",366846.8,406794.6,446742.4,486690.2,"$526,638",559501.19999999995,592364.4,625227.6,658090.80000000005,"$690,954",737903,784852,"$925,699"]
["MGMAPrivate PracticeAllPrivate PracticeMDOrthopedic Surgery: GeneralL","Orthopedic Surgery: General","Code","MGMA","Private Practice","All",null,"MD",2022,"$470,759",504555.4,538351.80000000005,572148.19999999995,605944.6,"$639,741",674973.8,710206.6,745439.4,780672.2,"$815,905",872908.4,929911.8,"$1,100,922"]
["MGMAPrivate PracticeAllPrivate PracticeMDOrthopedic Surgery: Foot and AnkleL","Orthopedic Surgery: Foot and Ankle","Code","MGMA","Private Practice","All",null,"MD",2022,"$469,345",493859.6,518374.2,542888.80000000005,567403.4,"$591,918",635338.6,678759.2,722179.8,765600.4,"$809,021",838159.6,867298.2,"$954,714"]
["MGMAPrivate PracticeAllPrivate PracticeMDOrthopedic Surgery: HandL","Orthopedic Surgery: Hand","Code","MGMA","Private Practice","All",null,"MD",2022,"$558,752",594101.80000000005,629451.6,664801.4,700151.2,"$735,501",769676.2,803851.4,838026.6,872201.8,"$906,377",968277.6,1030178.2,"$1,215,880"]
["MGMAPrivate PracticeAllPrivate PracticeMDOrthopedic Surgery: Hip and JointL","Orthopedic Surgery: Hip and Joint","Code","MGMA","Private Practice","All",null,"MD",2022,"$607,762",640075,672388,704701,737014,"$769,327",812582,855837,899092,942347,"$985,602",1040735,1095868,"$1,261,267"]
["MGMAPrivate PracticeAllPrivate PracticeMDOrthopedic Surgery: OncologyL","Orthopedic Surgery: Oncology","Code","MGMA","Private Practice","All",null,"MD",2022,"$514,467",529092,543717,558342,572967,"$587,592",602336,617080,631824,646568,"$661,312",669717.19999999995,678122.4,"$703,338"]
["MGMAPrivate PracticeAllPrivate PracticeMDOrthopedic Surgery: Shoulder/ElbowL","Orthopedic Surgery: Shoulder/Elbow","Code","MGMA","Private Practice","All",null,"MD",2022,"$538,025",581828.19999999995,625631.4,669434.6,713237.8,"$757,041",829148.8,901256.6,973364.4,1045472.2,"$1,117,580",1186308.2,1255036.3999999999,"$1,461,221"]
["MGMAPrivate PracticeAllPrivate PracticeMDOrthopedic Surgery: SpineL","Orthopedic Surgery: Spine","Code","MGMA","Private Practice","All",null,"MD",2022,"$624,003",669342.19999999995,714681.4,760020.6,805359.8,"$850,699",899034.8,947370.6,995706.4,1044042.2,"$1,092,378",1176778.3999999999,1261178.8,"$1,514,380"]
[{"$f":"D67&E67&F67&E67&H67&B67&\"L\"","v":"MGMAPrivate PracticeAllPrivate PracticeMDOrthopedic Surgery: Sports MedicineL"},"Orthopedic Surgery: Sports Medicine","Code","MGMA","Private Practice","All",null,"MD",2022,"$504,750",{"$f":"(((O67-J67)/25)*5) + J67","v":541896},{"$f":"(((O67-J67)/25)*10) + J67","v":579042},{"$f":"(((O67-J67)/25)*15) + J67","v":616188},{"$f":"(((O67-J67)/25)*20) + J67","v":653334},"$690,480",{"$f":"(((T67-O67)/25)*5) + O67","v":739906},{"$f":"(((T67-O67)/25)*10) + O67","v":789332},{"$f":"(((T67-O67)/25)*15) + O67","v":838758},{"$f":"(((T67-O67)/25)*20) + O67","v":888184},"$937,610",{"$f":"(((W67-T67)/25)*5) + T67","v":985461.4},{"$f":"(((W67-T67)/25)*10) + T67","v":1033312.8},"$1,176,867"]
["MGMAPrivate PracticeAllPrivate PracticeMDOrthopedic Surgery: TraumaL","Orthopedic Surgery: Trauma","Code","MGMA","Private Practice","All",null,"MD",2022,"$584,325",614407,644489,674571,704653,"$734,735",766999.8,799264.6,831529.4,863794.2,"$896,059",923330.2,950601.4,"$1,032,415"]
["MGMAPrivate PracticeAllPrivate PracticeMDOtorhinolaryngologyL","Otorhinolaryngology","Code","MGMA","Private Practice","All",null,"MD",2022,"$392,881",412038.40000000002,431195.8,450353.2,469510.6,"$488,668",514308,539948,565588,591228,"$616,868",657176.4,697484.80000000005,"$818,410"]
["MGMAPrivate PracticeAllPrivate PracticeMDPain Management: NonanesthesiaL","Pain Management: Nonanesthesia","Code","MGMA","Private Practice","All",null,"MD",2022,"$433,850",448581.6,463313.2,478044.8,492776.4,"$507,508",528530.80000000005,549553.6,570576.4,591599.19999999995,"$612,622",655216.80000000005,697811.6,"$825,596"]
["MGMAPrivate PracticeAllPrivate PracticeMDPathology: Anatomic and ClinicalL","Pathology: Anatomic and Clinical","Code","MGMA","Private Practice","All",null,"MD",2022,"$310,482",325180.40000000002,339878.8,354577.2,369275.6,"$383,974",397730,411486,425242,438998,"$452,754",473421.4,494088.8,"$556,091"]
["MGMAPrivate PracticeAllPrivate PracticeMDPathology: AnatomicL","Pathology: Anatomic","Code","MGMA","Private Practice","All",null,"MD",2022,"$288,858",299878,310898,321918,332938,"$343,958",356846.2,369734.40000000002,382622.6,395510.8,"$408,399",424853.2,441307.4,"$490,670"]
["MGMAPrivate PracticeAllPrivate PracticeMDPathology: Anatomic-AutopsyL","Pathology: Anatomic-Autopsy","Code","MGMA","Private Practice","All",null,"MD",2022,"*",{"$error":"#VALUE!"},{"$error":"#VALUE!"},{"$error":"#VALUE!"},{"$error":"#VALUE!"},"*",{"$error":"#VALUE!"},{"$error":"#VALUE!"},{"$error":"#VALUE!"},{"$error":"#VALUE!"},"*",{"$error":"#VALUE!"},{"$error":"#VALUE!"},"*"]
["MGMAPrivate PracticeAllPrivate PracticeMDPathology: Anatomic-CytopathologyL","Pathology: Anatomic-Cytopathology","Code","MGMA","Private Practice","All",null,"MD",2022,"$301,000",317877.59999999998,334755.20000000001,351632.8,368510.4,"$385,388",389838,394288,398738,403188,"$407,638",421329,435020,"$476,093"]
["MGMAPrivate PracticeAllPrivate PracticeMDPathology: Anatomic-NeuropathologyL","Pathology: Anatomic-Neuropathology","Code","MGMA","Private Practice","All",null,"MD",2022,"*",{"$error":"#VALUE!"},{"$error":"#VALUE!"},{"$error":"#VALUE!"},{"$error":"#VALUE!"},"*",{"$error":"#VALUE!"},{"$error":"#VALUE!"},{"$error":"#VALUE!"},{"$error":"#VALUE!"},"*",{"$error":"#VALUE!"},{"$error":"#VALUE!"},"*"]
["MGMAPrivate PracticeAllPrivate PracticeMDPathology: ClinicalL","Pathology: Clinical","Code","MGMA","Private Practice","All",null,"MD",2022,"$317,778",327284.40000000002,336790.8,346297.2,355803.6,"$365,310",371685.4,378060.79999999999,384436.2,390811.6,"$397,187",422798,448409,"$525,242"]
["MGMAPrivate PracticeAllPrivate PracticeMDPathology: Clinical-HematopathologyL","Pathology: Clinical-Hematopathology","Code","MGMA","Private Practice","All",null,"MD",2022,"$349,606",351130,352654,354178,355702,"$357,226",370425.4,383624.8,396824.2,410023.6,"$423,223",428805.4,434387.8,"$451,135"]
["MGMAPrivate PracticeAllPrivate PracticeMDPathology: Clinical-Transfusion MedicineL","Pathology: Clinical-Transfusion Medicine","Code","MGMA","Private Practice","All",null,"MD",2022,"*",{"$error":"#VALUE!"},{"$error":"#VALUE!"},{"$error":"#VALUE!"},{"$error":"#VALUE!"},"*",{"$error":"#VALUE!"},{"$error":"#VALUE!"},{"$error":"#VALUE!"},{"$error":"#VALUE!"},"*",{"$error":"#VALUE!"},{"$error":"#VALUE!"},"*"]
["MGMAPrivate PracticeAllPrivate PracticeMDPathology: SurgicalL","Pathology: Surgical","Code","MGMA","Private Practice","All",null,"MD",2022,"$415,277",431820.4,448363.8,464907.2,481450.6,"$497,994",497994,497994,497994,497994,"$497,994",497994,497994,"$497,994"]
["MGMAPrivate PracticeAllPrivate PracticeMDPediatrics: GeneralL","Pediatrics: General","Code","MGMA","Private Practice","All",null,"MD",2022,"$204,271",213290.4,222309.8,231329.2,240348.6,"$249,368",262105.60000000001,274843.2,287580.79999999999,300318.40000000002,"$313,056",329452.79999999999,345849.59999999998,"$395,040"]
["MGMAPrivate PracticeAllPrivate PracticeMDPediatrics: Adolescent MedicineL","Pediatrics: Adolescent Medicine","Code","MGMA","Private Practice","All",null,"MD",2022,"$199,650",204950.8,210251.6,215552.4,220853.2,"$226,154",234112.2,242070.39999999999,250028.6,257986.8,"$265,945",272606,279267,"$299,250"]
["MGMAPrivate PracticeAllPrivate PracticeMDPediatrics: Allergy/ImmunologyL","Pediatrics: Allergy/Immunology","Code","MGMA","Private Practice","All",null,"MD",2022,"$197,994",207922.8,217851.6,227780.4,237709.2,"$247,638",262446,277254,292062,306870,"$321,678",331731,341784,"$371,943"]
["MGMAPrivate PracticeAllPrivate PracticeMDPediatrics: AnesthesiologyL","Pediatrics: Anesthesiology","Code","MGMA","Private Practice","All",null,"MD",2022,"$452,296",458330.8,464365.6,470400.4,476435.20000000001,"$482,470",492319.6,502169.2,512018.8,521868.4,"$531,718",539022.6,546327.19999999995,"$568,241"]
["MGMAPrivate PracticeAllPrivate PracticeMDPediatrics: Bone Marrow TransplantL","Pediatrics: Bone Marrow Transplant","Code","MGMA","Private Practice","All",null,"MD",2022,"*",{"$error":"#VALUE!"},{"$error":"#VALUE!"},{"$error":"#VALUE!"},{"$error":"#VALUE!"},"*",{"$error":"#VALUE!"},{"$error":"#VALUE!"},{"$error":"#VALUE!"},{"$error":"#VALUE!"},"*",{"$error":"#VALUE!"},{"$error":"#VALUE!"},"*"]
["MGMAPrivate PracticeAllPrivate PracticeMDPediatrics: CardiologyL","Pediatrics: Cardiology","Code","MGMA","Private Practice","All",null,"MD",2022,"$272,553",286041.8,299530.59999999998,313019.40000000002,326508.2,"$339,997",355015.6,370034.2,385052.8,400071.4,"$415,090",436993,458896,"$524,605"]
["MGMAPrivate PracticeAllPrivate PracticeMDPediatrics: Cardiovascular SurgeryL","Pediatrics: Cardiovascular Surgery","Code","MGMA","Private Practice","All",null,"MD",2022,"$642,325",678214.2,714103.4,749992.6,785881.8,"$821,771",872686,923601,974516,1025431,"$1,076,346",1155023.2,1233700.3999999999,"$1,469,732"]
["MGMAPrivate PracticeAllPrivate PracticeMDPediatrics: Child DevelopmentL","Pediatrics: Child Development","Code","MGMA","Private Practice","All",null,"MD",2022,"$160,642",171513.60000000001,182385.2,193256.8,204128.4,"$215,000",223820.2,232640.4,241460.6,250280.8,"$259,101",271244,283387,"$319,816"]
["MGMAPrivate PracticeAllPrivate PracticeMDPediatrics: Critical Care/IntensivistL","Pediatrics: Critical Care/Intensivist","Code","MGMA","Private Practice","All",null,"MD",2022,"$285,934",294649.2,303364.40000000002,312079.59999999998,320794.8,"$329,510",339483.2,349456.4,359429.6,369402.8,"$379,376",394917,410458,"$457,081"]
["MGMAPrivate PracticeAllPrivate PracticeMDPediatrics: DermatologyL","Pediatrics: Dermatology","Code","MGMA","Private Practice","All",null,"MD",2022,"*",{"$error":"#VALUE!"},{"$error":"#VALUE!"},{"$error":"#VALUE!"},{"$error":"#VALUE!"},"*",{"$error":"#VALUE!"},{"$error":"#VALUE!"},{"$error":"#VALUE!"},{"$error":"#VALUE!"},"*",{"$error":"#VALUE!"},{"$error":"#VALUE!"},"*"]
["MGMAPrivate PracticeAllPrivate PracticeMDPediatrics: Emergency MedicineL","Pediatrics: Emergency Medicine","Code","MGMA","Private Practice","All",null,"MD",2022,"$229,323",239800,250277,260754,271231,"$281,708",292143.40000000002,302578.8,313014.2,323449.59999999998,"$333,885",343765.8,353646.6,"$383,289"]
["MGMAPrivate PracticeAllPrivate PracticeMDPediatrics: EndocrinologyL","Pediatrics: Endocrinology","Code","MGMA","Private Practice","All",null,"MD",2022,"$188,365",194504.6,200644.2,206783.8,212923.4,"$219,063",226296.6,233530.2,240763.8,247997.4,"$255,231",264663.8,274096.59999999998,"$302,395"]
["MGMAPrivate PracticeAllPrivate PracticeMDPediatrics: GastroenterologyL","Pediatrics: Gastroenterology","Code","MGMA","Private Practice","All",null,"MD",2022,"$238,044",251524.8,265005.59999999998,278486.40000000002,291967.2,"$305,448",329310.8,353173.6,377036.4,400899.2,"$424,762",466342.8,507923.6,"$632,666"]
["MGMAPrivate PracticeAllPrivate PracticeMDPediatrics: GeneticsL","Pediatrics: Genetics","Code","MGMA","Private Practice","All",null,"MD",2022,"$203,707",209434.6,215162.2,220889.8,226617.4,"$232,345",241813.4,251281.8,260750.2,270218.59999999998,"$279,687",284429.59999999998,289172.2,"$303,400"]
["MGMAPrivate PracticeAllPrivate PracticeMDPediatrics: Hematology/OncologyL","Pediatrics: Hematology/Oncology","Code","MGMA","Private Practice","All",null,"MD",2022,"$213,184",220808,228432,236056,243680,"$251,304",259427.6,267551.2,275674.8,283798.40000000002,"$291,922",306004.40000000002,320086.8,"$362,334"]
["MGMAPrivate PracticeAllPrivate PracticeMDPediatrics: HospitalistL","Pediatrics: Hospitalist","Code","MGMA","Private Practice","All",null,"MD",2022,"$193,518",199814.39999999999,206110.8,212407.2,218703.6,"$225,000",234251.4,243502.8,252754.2,262005.6,"$271,257",282375.8,293494.59999999998,"$326,851"]
["MGMAPrivate PracticeAllPrivate PracticeMDPediatrics: Hospitalist-Internal MedicineL","Pediatrics: Hospitalist-Internal Medicine","Code","MGMA","Private Practice","All",null,"MD",2022,"$201,128",213524.6,225921.2,238317.8,250714.4,"$263,111",274715.8,286320.59999999998,297925.40000000002,309530.2,"$321,135",328054,334973,"$355,730"]
["MGMAPrivate PracticeAllPrivate PracticeMDPediatrics: Infectious DiseaseL","Pediatrics: Infectious Disease","Code","MGMA","Private Practice","All",null,"MD",2022,"$190,885",198708,206531,214354,222177,"$230,000",243489.2,256978.4,270467.59999999998,283956.8,"$297,446",302503,307560,"$322,731"]
["MGMAPrivate PracticeAllPrivate PracticeMDPediatrics: Internal MedicineL","Pediatrics: Internal Medicine","Code","MGMA","Private Practice","All",null,"MD",2022,"$216,807",226244.8,235682.6,245120.4,254558.2,"$263,996",276701.2,289406.40000000002,302111.59999999998,314816.8,"$327,522",342753.2,357984.4,"$403,678"]
["MGMAPrivate PracticeAllPrivate PracticeMDPediatrics: Neonatal MedicineL","Pediatrics: Neonatal Medicine","Code","MGMA","Private Practice","All",null,"MD",2022,"$270,504",284140.40000000002,297776.8,311413.2,325049.59999999998,"$338,686",352981.2,367276.4,381571.6,395866.8,"$410,162",429330.4,448498.8,"$506,004"]
["MGMAPrivate PracticeAllPrivate PracticeMDPediatrics: NephrologyL","Pediatrics: Nephrology","Code","MGMA","Private Practice","All",null,"MD",2022,"$203,985",214629.8,225274.6,235919.4,246564.2,"$257,209",266480.59999999998,275752.2,285023.8,294295.40000000002,"$303,567",313574,323581,"$353,602"]
["MGMAPrivate PracticeAllPrivate PracticeMDPediatrics: NeurologyL","Pediatrics: Neurology","Code","MGMA","Private Practice","All",null,"MD",2022,"$238,948",246028.79999999999,253109.6,260190.4,267271.2,"$274,352",286012.59999999998,297673.2,309333.8,320994.40000000002,"$332,655",345987.4,359319.8,"$399,317"]
["MGMAPrivate PracticeAllPrivate PracticeMDPediatrics: NeurosurgeryL","Pediatrics: Neurosurgery","Code","MGMA","Private Practice","All",null,"MD",2022,"$642,472",668562.80000000005,694653.6,720744.4,746835.2,"$772,926",795829.2,818732.4,841635.6,864538.8,"$887,442",920013.6,952585.2,"$1,050,300"]
["MGMAPrivate PracticeAllPrivate PracticeMDPediatrics: OphthalmologyL","Pediatrics: Ophthalmology","Code","MGMA","Private Practice","All",null,"MD",2022,"$245,296",268653.8,292011.59999999998,315369.40000000002,338727.2,"$362,085",377231,392377,407523,422669,"$437,815",454905.59999999998,471996.2,"$523,268"]
["MGMAPrivate PracticeAllPrivate PracticeMDPediatrics: Orthopedic SurgeryL","Pediatrics: Orthopedic Surgery","Code","MGMA","Private Practice","All",null,"MD",2022,"$451,256",478293,505330,532367,559404,"$586,441",628222.80000000005,670004.6,711786.4,753568.2,"$795,350",815412.4,835474.8,"$895,662"]
["MGMAPrivate PracticeAllPrivate PracticeMDPediatrics: OtorhinolaryngologyL","Pediatrics: Otorhinolaryngology","Code","MGMA","Private Practice","All",null,"MD",2022,"$373,752",396454.8,419157.6,441860.4,464563.20000000001,"$487,266",519114.2,550962.4,582810.6,614658.80000000005,"$646,507",693830.8,741154.6,"$883,126"]
["MGMAPrivate PracticeAllPrivate PracticeMDPediatrics: Plastic and Reconstruction SurgeryL","Pediatrics: Plastic and Reconstruction Surgery","Code","MGMA","Private Practice","All",null,"MD",2022,"$421,357",441813.8,462270.6,482727.4,503184.2,"$523,641",536517,549393,562269,575145,"$588,021",616198.19999999995,644375.4,"$728,907"]
["MGMAPrivate PracticeAllPrivate PracticeMDPediatrics: PulmonologyL","Pediatrics: Pulmonology","Code","MGMA","Private Practice","All",null,"MD",2022,"$218,805",226844.4,234883.8,242923.2,250962.6,"$259,002",270652.59999999998,282303.2,293953.8,305604.40000000002,"$317,255",330090.8,342926.6,"$381,434"]
["MGMAPrivate PracticeAllPrivate PracticeMDPediatrics: RadiologyL","Pediatrics: Radiology","Code","MGMA","Private Practice","All",null,"MD",2022,"$457,500",470019.6,482539.2,495058.8,507578.4,"$520,098",526202.19999999995,532306.4,538410.6,544514.80000000005,"$550,619",566583.6,582548.19999999995,"$630,442"]
["MGMAPrivate PracticeAllPrivate PracticeMDPediatrics: RheumatologyL","Pediatrics: Rheumatology","Code","MGMA","Private Practice","All",null,"MD",2022,"$185,798",189548.2,193298.4,197048.6,200798.8,"$204,549",213004.4,221459.8,229915.2,238370.6,"$246,826",252714.2,258602.4,"$276,267"]
["MGMAPrivate PracticeAllPrivate PracticeMDPediatrics: Sports MedicineL","Pediatrics: Sports Medicine","Code","MGMA","Private Practice","All",null,"MD",2022,"$232,262",240823,249384,257945,266506,"$275,067",286364.40000000002,297661.8,308959.2,320256.59999999998,"$331,554",345002.2,358450.4,"$398,795"]
["MGMAPrivate PracticeAllPrivate PracticeMDPediatrics: SurgeryL","Pediatrics: Surgery","Code","MGMA","Private Practice","All",null,"MD",2022,"$582,609",598022.19999999995,613435.4,628848.6,644261.80000000005,"$659,675",680367.2,701059.4,721751.6,742443.8,"$763,136",782400.6,801665.2,"$859,459"]
["MGMAPrivate PracticeAllPrivate PracticeMDPediatrics: Urgent CareL","Pediatrics: Urgent Care","Code","MGMA","Private Practice","All",null,"MD",2022,"$159,994",170398,180802,191206,201610,"$212,014",228831,245648,262465,279282,"$296,099",309437,322775,"$362,789"]
["MGMAPrivate PracticeAllPrivate PracticeMDPediatrics: UrologyL","Pediatrics: Urology","Code","MGMA","Private Practice","All",null,"MD",2022,"$476,942",500330.2,523718.40000000002,547106.6,570494.80000000005,"$593,883",623296.4,652709.80000000005,682123.2,711536.6,"$740,950",769718.2,798486.4,"$884,791"]
["MGMAPrivate PracticeAllPrivate PracticeMDPhysiatry (Physical Medicine and Rehabilitation)L","Physiatry (Physical Medicine and Rehabilitation)","Code","MGMA","Private Practice","All",null,"MD",2022,"$269,912",281015.40000000002,292118.8,303222.2,314325.59999999998,"$325,429",336288.8,347148.6,358008.4,368868.2,"$379,728",401315.8,422903.6,"$487,667"]
["MGMAPrivate PracticeAllPrivate PracticeMDPodiatry: GeneralL","Podiatry: General","Code","MGMA","Private Practice","All",null,"MD",2022,"$217,479",229694.2,241909.4,254124.6,266339.8,"$278,555",297386.59999999998,316218.2,335049.8,353881.4,"$372,713",397422.6,422132.2,"$496,261"]
["MGMAPrivate PracticeAllPrivate PracticeMDPodiatry: Surgery-Foot and AnkleL","Podiatry: Surgery-Foot and Ankle","Code","MGMA","Private Practice","All",null,"MD",2022,"$269,274",282221.59999999998,295169.2,308116.8,321064.40000000002,"$334,012",348145,362278,376411,390544,"$404,677",429736.4,454795.8,"$529,974"]
["MGMAPrivate PracticeAllPrivate PracticeMDPsychiatry: GeneralL","Psychiatry: General","Code","MGMA","Private Practice","All",null,"MD",2022,"$250,037",262768.2,275499.40000000002,288230.59999999998,300961.8,"$313,693",327742.8,341792.6,355842.4,369892.2,"$383,942",399622.2,415302.40000000002,"$462,343"]
["MGMAPrivate PracticeAllPrivate PracticeMDPsychiatry: Addiction MedicineL","Psychiatry: Addiction Medicine","Code","MGMA","Private Practice","All",null,"MD",2022,"$242,309",249216,256123,263030,269937,"$276,844",299089.40000000002,321334.8,343580.2,365825.6,"$388,071",398725.4,409379.8,"$441,343"]
["MGMAPrivate PracticeAllPrivate PracticeMDPsychiatry: Behavioral MedicineL","Psychiatry: Behavioral Medicine","Code","MGMA","Private Practice","All",null,"MD",2022,"*",{"$error":"#VALUE!"},{"$error":"#VALUE!"},{"$error":"#VALUE!"},{"$error":"#VALUE!"},"*",{"$error":"#VALUE!"},{"$error":"#VALUE!"},{"$error":"#VALUE!"},{"$error":"#VALUE!"},"*",{"$error":"#VALUE!"},{"$error":"#VALUE!"},"*"]
["MGMAPrivate PracticeAllPrivate PracticeMDPsychiatry: Child and AdolescentL","Psychiatry: Child and Adolescent","Code","MGMA","Private Practice","All",null,"MD",2022,"$279,779",288907.8,298036.59999999998,307165.40000000002,316294.2,"$325,423",336681.4,347939.8,359198.2,370456.6,"$381,715",398935.6,416156.2,"$467,818"]
["MGMAPrivate PracticeAllPrivate PracticeMDPsychiatry: ForensicL","Psychiatry: Forensic","Code","MGMA","Private Practice","All",null,"MD",2022,"*",{"$error":"#VALUE!"},{"$error":"#VALUE!"},{"$error":"#VALUE!"},{"$error":"#VALUE!"},"*",{"$error":"#VALUE!"},{"$error":"#VALUE!"},{"$error":"#VALUE!"},{"$error":"#VALUE!"},"*",{"$error":"#VALUE!"},{"$error":"#VALUE!"},"*"]
["MGMAPrivate PracticeAllPrivate PracticeMDPsychiatry: GeriatricL","Psychiatry: Geriatric","Code","MGMA","Private Practice","All",null,"MD",2022,"*",{"$error":"#VALUE!"},{"$error":"#VALUE!"},{"$error":"#VALUE!"},{"$error":"#VALUE!"},"*",{"$error":"#VALUE!"},{"$error":"#VALUE!"},{"$error":"#VALUE!"},{"$error":"#VALUE!"},"*",{"$error":"#VALUE!"},{"$error":"#VALUE!"},"*"]
["MGMAPrivate PracticeAllPrivate PracticeMDPulmonary Medicine: GeneralL","Pulmonary Medicine: General","Code","MGMA","Private Practice","All",null,"MD",2022,"$330,116",344458.4,358800.8,373143.2,387485.6,"$401,828",423737.59999999998,445647.2,467556.8,489466.4,"$511,376",542551.6,573727.19999999995,"$667,254"]
["MGMAPrivate PracticeAllPrivate PracticeMDPulmonary Medicine: Critical CareL","Pulmonary Medicine: Critical Care","Code","MGMA","Private Practice","All",null,"MD",2022,"$381,101",398780.6,416460.2,434139.8,451819.4,"$469,499",494517,519535,544553,569571,"$594,589",631078,667567,"$777,034"]
["MGMAPrivate PracticeAllPrivate PracticeMDPulmonary Medicine: General and Critical CareL","Pulmonary Medicine: General and Critical Care","Code","MGMA","Private Practice","All",null,"MD",2022,"$401,198",417401.59999999998,433605.2,449808.8,466012.4,"$482,216",502196.4,522176.8,542157.19999999995,562137.59999999998,"$582,118",616437.4,650756.80000000005,"$753,715"]
["MGMAPrivate PracticeAllPrivate PracticeMDRadiation OncologyL","Radiation Oncology","Code","MGMA","Private Practice","All",null,"MD",2022,"$455,250",478539.8,501829.6,525119.4,548409.19999999995,"$571,699",592834.6,613970.19999999995,635105.80000000005,656241.4,"$677,377",714722.6,752068.2,"$864,105"]
["MGMAPrivate PracticeAllPrivate PracticeMDRadiology: InterventionalL","Radiology: Interventional","Code","MGMA","Private Practice","All",null,"MD",2022,"$486,161",505319.2,524477.4,543635.6,562793.80000000005,"$581,952",600046.6,618141.19999999995,636235.80000000005,654330.4,"$672,425",732135.6,791846.2,"$970,978"]
["MGMAPrivate PracticeAllPrivate PracticeMDRadiology: DiagnosticL","Radiology: Diagnostic","Code","MGMA","Private Practice","All",null,"MD",2022,"$469,697",489423,509149,528875,548601,"$568,327",590760.19999999995,613193.4,635626.6,658059.80000000005,"$680,493",704608,728723,"$801,068"]
["MGMAPrivate PracticeAllPrivate PracticeMDRadiology: NeurologicalL","Radiology: Neurological","Code","MGMA","Private Practice","All",null,"MD",2022,"$450,247",460968.6,471690.2,482411.8,493133.4,"$503,855",528481.6,553108.19999999995,577734.80000000005,602361.4,"$626,988",666661.80000000005,706335.6,"$825,357"]
["MGMAPrivate PracticeAllPrivate PracticeMDRadiology: Nuclear MedicineL","Radiology: Nuclear Medicine","Code","MGMA","Private Practice","All",null,"MD",2022,"$391,477",402033.8,412590.6,423147.4,433704.2,"$444,261",457649.4,471037.8,484426.2,497814.6,"$511,203",520511.2,529819.4,"$557,744"]
[{"$f":"D131&E131&F131&E131&H131&B131&\"L\"","v":"MGMAPrivate PracticeAllPrivate PracticeMDRheumatologyL"},"Rheumatology","Code","MGMA","Private Practice","All",null,"MD",2022,"$238,789",{"$f":"(((O131-J131)/25)*5) + J131","v":247676.2},{"$f":"(((O131-J131)/25)*10) + J131","v":256563.4},{"$f":"(((O131-J131)/25)*15) + J131","v":265450.59999999998},{"$f":"(((O131-J131)/25)*20) + J131","v":274337.8},"$283,225",{"$f":"(((T131-O131)/25)*5) + O131","v":295780.40000000002},{"$f":"(((T131-O131)/25)*10) + O131","v":308335.8},{"$f":"(((T131-O131)/25)*15) + O131","v":320891.2},{"$f":"(((T131-O131)/25)*20) + O131","v":333446.59999999998},"$346,002",{"$f":"(((W131-T131)/25)*5) + T131","v":367757.6},{"$f":"(((W131-T131)/25)*10) + T131","v":389513.2},"$454,780"]
["MGMAPrivate PracticeAllPrivate PracticeMDSleep MedicineL","Sleep Medicine","Code","MGMA","Private Practice","All",null,"MD",2022,"$275,152",290106.8,305061.59999999998,320016.40000000002,334971.2,"$349,926",369329.2,388732.4,408135.6,427538.8,"$446,942",466400.4,485858.8,"$544,234"]
["MGMAPrivate PracticeAllPrivate PracticeMDSurgery: GeneralL","Surgery: General","Code","MGMA","Private Practice","All",null,"MD",2022,"$387,340",404238.6,421137.2,438035.8,454934.4,"$471,833",494202.4,516571.8,538941.19999999995,561310.6,"$583,680",611750,639820,"$724,030"]
["MGMAPrivate PracticeAllPrivate PracticeMDSurgery: BariatricL","Surgery: Bariatric","Code","MGMA","Private Practice","All",null,"MD",2022,"$432,014",456559.2,481104.4,505649.6,530194.80000000005,"$554,740",593290,631840,670390,708940,"$747,490",793023.6,838557.2,"$975,158"]
["MGMAPrivate PracticeAllPrivate PracticeMDSurgery: BreastL","Surgery: Breast","Code","MGMA","Private Practice","All",null,"MD",2022,"$348,089",360320.8,372552.6,384784.4,397016.2,"$409,248",427783.6,446319.2,464854.8,483390.4,"$501,926",528275.80000000005,554625.6,"$633,675"]
["MGMAPrivate PracticeAllPrivate PracticeMDSurgery: CardiovascularL","Surgery: Cardiovascular","Code","MGMA","Private Practice","All",null,"MD",2022,"$649,347",689477.6,729608.2,769738.8,809869.4,"$850,000",880000,910000,940000,970000,"$1,000,000",1050746.3999999999,1101492.8,"$1,253,732"]
["MGMAPrivate PracticeAllPrivate PracticeMDSurgery: Colon and RectalL","Surgery: Colon and Rectal","Code","MGMA","Private Practice","All",null,"MD",2022,"$363,937",383751.6,403566.2,423380.8,443195.4,"$463,010",483056.6,503103.2,523149.8,543196.4,"$563,243",594729.19999999995,626215.4,"$720,674"]
["MGMAPrivate PracticeAllPrivate PracticeMDSurgery: EndocrineL","Surgery: Endocrine","Code","MGMA","Private Practice","All",null,"MD",2022,"$310,152",327504.59999999998,344857.2,362209.8,379562.4,"$396,915",433588.4,470261.8,506935.2,543608.6,"$580,282",614159.6,648037.19999999995,"$749,670"]
["MGMAPrivate PracticeAllPrivate PracticeMDSurgery: Endovascular (Primary)L","Surgery: Endovascular (Primary)","Code","MGMA","Private Practice","All",null,"MD",2022,"*",{"$error":"#VALUE!"},{"$error":"#VALUE!"},{"$error":"#VALUE!"},{"$error":"#VALUE!"},"*",{"$error":"#VALUE!"},{"$error":"#VALUE!"},{"$error":"#VALUE!"},{"$error":"#VALUE!"},"*",{"$error":"#VALUE!"},{"$error":"#VALUE!"},"*"]
["MGMAPrivate PracticeAllPrivate PracticeMDSurgery: NeurologicalL","Surgery: Neurological","Code","MGMA","Private Practice","All",null,"MD",2022,"$683,009",721407.2,759805.4,798203.6,836601.8,"$875,000",924348.8,973697.6,1023046.4,1072395.2,"$1,121,744",1188087.8,1254431.6000000001,"$1,453,463"]
["MGMAPrivate PracticeAllPrivate PracticeMDSurgery: OncologyL","Surgery: Oncology","Code","MGMA","Private Practice","All",null,"MD",2022,"$367,141",385595.2,404049.4,422503.6,440957.8,"$459,412",483408,507404,531400,555396,"$579,392",606836.6,634281.19999999995,"$716,615"]
["MGMAPrivate PracticeAllPrivate PracticeMDSurgery: OralL","Surgery: Oral","Code","MGMA","Private Practice","All",null,"MD",2022,"$455,766",470037,484308,498579,512850,"$527,121",544136.6,561152.19999999995,578167.80000000005,595183.4,"$612,199",647010.4,681821.8,"$786,256"]
["MGMAPrivate PracticeAllPrivate PracticeMDSurgery: Plastic and ReconstructionL","Surgery: Plastic and Reconstruction","Code","MGMA","Private Practice","All",null,"MD",2022,"$490,220",514361.4,538502.80000000005,562644.19999999995,586785.6,"$610,927",655927.19999999995,700927.4,745927.6,790927.8,"$835,928",900962,965996,"$1,161,098"]
["MGMAPrivate PracticeAllPrivate PracticeMDSurgery: Plastic and Reconstruction-HandL","Surgery: Plastic and Reconstruction-Hand","Code","MGMA","Private Practice","All",null,"MD",2022,"$388,298",394381.2,400464.4,406547.6,412630.8,"$418,714",426972.6,435231.2,443489.8,451748.4,"$460,007",471876.6,483746.2,"$519,355"]
["MGMAPrivate PracticeAllPrivate PracticeMDSurgery: Thoracic (Primary)L","Surgery: Thoracic (Primary)","Code","MGMA","Private Practice","All",null,"MD",2022,"$466,662",498439.6,530217.19999999995,561994.80000000005,593772.4,"$625,550",666211,706872,747533,788194,"$828,855",865622,902389,"$1,012,690"]
["MGMAPrivate PracticeAllPrivate PracticeMDSurgery: TransplantL","Surgery: Transplant","Code","MGMA","Private Practice","All",null,"MD",2022,"$430,453",458859.2,487265.4,515671.6,544077.80000000005,"$572,484",586036.4,599588.80000000005,613141.19999999995,626693.6,"$640,246",682145.4,724044.80000000005,"$849,743"]
["MGMAPrivate PracticeAllPrivate PracticeMDSurgery: Transplant-HeartL","Surgery: Transplant-Heart","Code","MGMA","Private Practice","All",null,"MD",2022,"$420,429",435360.4,450291.8,465223.2,480154.6,"$495,086",534727.19999999995,574368.4,614009.59999999998,653650.80000000005,"$693,292",782127,870962,"$1,137,467"]
["MGMAPrivate PracticeAllPrivate PracticeMDSurgery: Transplant-KidneyL","Surgery: Transplant-Kidney","Code","MGMA","Private Practice","All",null,"MD",2022,"$400,000",409088,418176,427264,436352,"$445,440",481071.2,516702.4,552333.6,587964.80000000005,"$623,596",653747.19999999995,683898.4,"$774,352"]
["MGMAPrivate PracticeAllPrivate PracticeMDSurgery: Transplant-LiverL","Surgery: Transplant-Liver","Code","MGMA","Private Practice","All",null,"MD",2022,"$309,732",326750,343768,360786,377804,"$394,822",412497,430172,447847,465522,"$483,197",522989.8,562782.6,"$682,161"]
["MGMAPrivate PracticeAllPrivate PracticeMDSurgery: TraumaL","Surgery: Trauma","Code","MGMA","Private Practice","All",null,"MD",2022,"$444,826",458229.8,471633.6,485037.4,498441.2,"$511,845",530774.19999999995,549703.4,568632.6,587561.80000000005,"$606,491",633829.6,661168.19999999995,"$743,184"]
["MGMAPrivate PracticeAllPrivate PracticeMDSurgery: Trauma-BurnL","Surgery: Trauma-Burn","Code","MGMA","Private Practice","All",null,"MD",2022,"$400,000",410000,420000,430000,440000,"$450,000",486461.6,522923.2,559384.80000000005,595846.40000000002,"$632,308",655143.19999999995,677978.4,"$746,484"]
["MGMAPrivate PracticeAllPrivate PracticeMDSurgery: Vascular (Primary)L","Surgery: Vascular (Primary)","Code","MGMA","Private Practice","All",null,"MD",2022,"$456,890",479338.4,501786.8,524235.2,546683.6,"$569,132",594042.19999999995,618952.4,643862.6,668772.80000000005,"$693,683",736827.4,779971.8,"$909,405"]
["MGMAPrivate PracticeAllPrivate PracticeMDUrgent CareL","Urgent Care","Code","MGMA","Private Practice","All",null,"MD",2022,"$225,646",236065.8,246485.6,256905.4,267325.2,"$277,745",291438.59999999998,305132.2,318825.8,332519.40000000002,"$346,213",364845,383477,"$439,373"]
["MGMAPrivate PracticeAllPrivate PracticeMDUrologyL","Urology","Code","MGMA","Private Practice","All",null,"MD",2022,"$420,673",442510,464347,486184,508021,"$529,858",554116.19999999995,578374.40000000002,602632.6,626890.80000000005,"$651,149",683264.8,715380.6,"$811,728"]
["MGMAPrivate PracticeAllPrivate PracticeMDAnesthesia AssistantL","Anesthesia Assistant","Code","MGMA","Private Practice","All",null,"MD",2022,"*",{"$error":"#VALUE!"},{"$error":"#VALUE!"},{"$error":"#VALUE!"},{"$error":"#VALUE!"},"*",{"$error":"#VALUE!"},{"$error":"#VALUE!"},{"$error":"#VALUE!"},{"$error":"#VALUE!"},"*",{"$error":"#VALUE!"},{"$error":"#VALUE!"},"*"]
["MGMAPrivate PracticeAllPrivate PracticeMDAudiologistL","Audiologist","Code","MGMA","Private Practice","All",null,"MD",2022,"$84,775",87798.2,90821.4,93844.6,96867.8,"$99,891",103070,106249,109428,112607,"$115,786",126607.2,137428.4,"$169,892"]
["MGMAPrivate PracticeAllPrivate PracticeMDCertified Registered Nurse AnesthetistL","Certified Registered Nurse Anesthetist","Code","MGMA","Private Practice","All",null,"MD",2022,"$192,101",196598.6,201096.2,205593.8,210091.4,"$214,589",220843.4,227097.8,233352.2,239606.6,"$245,861",255795.20000000001,265729.40000000002,"$295,532"]
["MGMAPrivate PracticeAllPrivate PracticeMDChiropractorL","Chiropractor","Code","MGMA","Private Practice","All",null,"MD",2022,"$116,317",121549.6,126782.2,132014.79999999999,137247.4,"$142,480",152699,162918,173137,183356,"$193,575",215923.8,238272.6,"$305,319"]
["MGMAPrivate PracticeAllPrivate PracticeMDClinical Nurse Specialist L","Clinical Nurse Specialist ","Code","MGMA","Private Practice","All",null,"MD",2022,"$105,438",108800.4,112162.8,115525.2,118887.6,"$122,250",125489.60000000001,128729.2,131968.79999999999,135208.4,"$138,448",140114.79999999999,141781.6,"$146,782"]
["MGMAPrivate PracticeAllPrivate PracticeMDDietician/NutritionistL","Dietician/Nutritionist","Code","MGMA","Private Practice","All",null,"MD",2022,"$63,283",65092.4,66901.8,68711.199999999997,70520.600000000006,"$72,330",75935.600000000006,79541.2,83146.8,86752.4,"$90,358",95070.6,99783.2,"$113,921"]
["MGMAPrivate PracticeAllPrivate PracticeMDGenetic Counselor L","Genetic Counselor ","Code","MGMA","Private Practice","All",null,"MD",2022,"$76,616",77842.8,79069.600000000006,80296.399999999994,81523.199999999997,"$82,750",84960.6,87171.199999999997,89381.8,91592.4,"$93,803",96914.4,100025.8,"$109,360"]
["MGMAPrivate PracticeAllPrivate PracticeMDLicensed Clinical Social WorkerL","Licensed Clinical Social Worker","Code","MGMA","Private Practice","All",null,"MD",2022,"$64,896",66822.600000000006,68749.2,70675.8,72602.399999999994,"$74,529",76344.399999999994,78159.8,79975.199999999997,81790.600000000006,"$83,606",87605.6,91605.2,"$103,604"]
["MGMAPrivate PracticeAllPrivate PracticeMDNurse Midwife: Outpatient/Inpatient DeliveriesL","Nurse Midwife: Outpatient/Inpatient Deliveries","Code","MGMA","Private Practice","All",null,"MD",2022,"$115,549",118467.2,121385.4,124303.6,127221.8,"$130,140",133481,136822,140163,143504,"$146,845",151380.20000000001,155915.4,"$169,521"]
["MGMAPrivate PracticeAllPrivate PracticeMDNurse Midwife: Outpatient (Only)L","Nurse Midwife: Outpatient (Only)","Code","MGMA","Private Practice","All",null,"MD",2022,"$123,519",127930.2,132341.4,136752.6,141163.79999999999,"$145,575",150384.6,155194.20000000001,160003.79999999999,164813.4,"$169,623",177274.6,184926.2,"$207,881"]
["MGMAPrivate PracticeAllPrivate PracticeMDNurse Midwife: Inpatient (Only)L","Nurse Midwife: Inpatient (Only)","Code","MGMA","Private Practice","All",null,"MD",2022,"$111,713",114589,117465,120341,123217,"$126,093",128237.2,130381.4,132525.6,134669.79999999999,"$136,814",138805.79999999999,140797.6,"$146,773"]
["MGMAPrivate PracticeAllPrivate PracticeMDNP (Surgical)L","NP (Surgical)","Code","MGMA","Private Practice","All",null,"MD",2022,"$113,373",116197.2,119021.4,121845.6,124669.8,"$127,494",131209,134924,138639,142354,"$146,069",150504.20000000001,154939.4,"$168,245"]
["MGMAPrivate PracticeAllPrivate PracticeMDNP: AnesthesiologyL","NP: Anesthesiology","Code","MGMA","Private Practice","All",null,"MD",2022,"$104,202",105769.60000000001,107337.2,108904.8,110472.4,"$112,040",116686,121332,125978,130624,"$135,270",161659.6,188049.2,"$267,218"]
["MGMAPrivate PracticeAllPrivate PracticeMDNP: Cardiothoracic SurgeryL","NP: Cardiothoracic Surgery","Code","MGMA","Private Practice","All",null,"MD",2022,"$112,638",115927.8,119217.60000000001,122507.4,125797.2,"$129,087",132301.79999999999,135516.6,138731.4,141946.20000000001,"$145,161",153315.6,161470.20000000001,"$185,934"]
["MGMAPrivate PracticeAllPrivate PracticeMDNP: NeurosurgeryL","NP: Neurosurgery","Code","MGMA","Private Practice","All",null,"MD",2022,"$120,657",123883.2,127109.4,130335.6,133561.79999999999,"$136,788",142583,148378,154173,159968,"$165,763",197598.6,229434.2,"$324,941"]
["MGMAPrivate PracticeAllPrivate PracticeMDNP: Orthopedics (Surgical)L","NP: Orthopedics (Surgical)","Code","MGMA","Private Practice","All",null,"MD",2022,"$108,550",110987.4,113424.8,115862.2,118299.6,"$120,737",125045.8,129354.6,133663.4,137972.20000000001,"$142,281",147579.4,152877.79999999999,"$168,773"]
["MGMAPrivate PracticeAllPrivate PracticeMDNP: OtorhinolaryngologyL","NP: Otorhinolaryngology","Code","MGMA","Private Practice","All",null,"MD",2022,"$108,875",110892.8,112910.6,114928.4,116946.2,"$118,964",122043.6,125123.2,128202.8,131282.4,"$134,362",144160.6,153959.20000000001,"$183,355"]
["MGMAPrivate PracticeAllPrivate PracticeMDNP: Surgery: GeneralL","NP: Surgery: General","Code","MGMA","Private Practice","All",null,"MD",2022,"$112,080",115005.2,117930.4,120855.6,123780.8,"$126,706",129513.2,132320.4,135127.6,137934.79999999999,"$140,742",145198.6,149655.20000000001,"$163,025"]
["MGMAPrivate PracticeAllPrivate PracticeMDNP: UrologyL","NP: Urology","Code","MGMA","Private Practice","All",null,"MD",2022,"$105,163",107549.8,109936.6,112323.4,114710.2,"$117,097",120631.2,124165.4,127699.6,131233.79999999999,"$134,768",140741.79999999999,146715.6,"$164,637"]
["MGMAPrivate PracticeAllPrivate PracticeMDNP: Vascular SurgeryL","NP: Vascular Surgery","Code","MGMA","Private Practice","All",null,"MD",2022,"$110,535",112959.2,115383.4,117807.6,120231.8,"$122,656",124482.8,126309.6,128136.4,129963.2,"$131,790",134731.79999999999,137673.60000000001,"$146,499"]
["MGMAPrivate PracticeAllPrivate PracticeMDNP (Primary Care)L","NP (Primary Care)","Code","MGMA","Private Practice","All",null,"MD",2022,"$107,951",111292,114633,117974,121315,"$124,656",128207.4,131758.79999999999,135310.20000000001,138861.6,"$142,413",148742.39999999999,155071.79999999999,"$174,060"]
["MGMAPrivate PracticeAllPrivate PracticeMDNP: AdultL","NP: Adult","Code","MGMA","Private Practice","All",null,"MD",2022,"$100,945",105198.2,109451.4,113704.6,117957.8,"$122,211",124568,126925,129282,131639,"$133,996",143487.79999999999,152979.6,"$181,455"]
["MGMAPrivate PracticeAllPrivate PracticeMDNP: Family Medicine (with OB)L","NP: Family Medicine (with OB)","Code","MGMA","Private Practice","All",null,"MD",2022,"$108,356",112870.8,117385.60000000001,121900.4,126415.2,"$130,930",134234.20000000001,137538.4,140842.6,144146.79999999999,"$147,451",149265.4,151079.79999999999,"$156,523"]
["MGMAPrivate PracticeAllPrivate PracticeMDNP: Family Medicine (without OB)L","NP: Family Medicine (without OB)","Code","MGMA","Private Practice","All",null,"MD",2022,"$103,295",106304.8,109314.6,112324.4,115334.2,"$118,344",122578.6,126813.2,131047.8,135282.4,"$139,517",146136.4,152755.79999999999,"$172,614"]
["MGMAPrivate PracticeAllPrivate PracticeMDNP: Gerontology/Elder HealthL","NP: Gerontology/Elder Health","Code","MGMA","Private Practice","All",null,"MD",2022,"$108,481",110968.8,113456.6,115944.4,118432.2,"$120,920",124474.8,128029.6,131584.4,135139.20000000001,"$138,694",152704.4,166714.79999999999,"$208,746"]
["MGMAPrivate PracticeAllPrivate PracticeMDNP: Hospice/Palliative CareL","NP: Hospice/Palliative Care","Code","MGMA","Private Practice","All",null,"MD",2022,"$103,683",106336.2,108989.4,111642.6,114295.8,"$116,949",119915.6,122882.2,125848.8,128815.4,"$131,782",134019.79999999999,136257.60000000001,"$142,971"]
["MGMAPrivate PracticeAllPrivate PracticeMDNP: Hospitalist (Primary Care)L","NP: Hospitalist (Primary Care)","Code","MGMA","Private Practice","All",null,"MD",2022,"$115,780",118550.2,121320.4,124090.6,126860.8,"$129,631",132626.20000000001,135621.4,138616.6,141611.79999999999,"$144,607",149728.79999999999,154850.6,"$170,216"]
["MGMAPrivate PracticeAllPrivate PracticeMDNP: Internal MedicineL","NP: Internal Medicine","Code","MGMA","Private Practice","All",null,"MD",2022,"$106,445",110126.39999999999,113807.8,117489.2,121170.6,"$124,852",128708.2,132564.4,136420.6,140276.79999999999,"$144,133",154305,164477,"$194,993"]
["MGMAPrivate PracticeAllPrivate PracticeMDNP: OB/GYN/Women's HealthL","NP: OB/GYN/Women's Health","Code","MGMA","Private Practice","All",null,"MD",2022,"$105,082",107934,110786,113638,116490,"$119,342",122711.6,126081.2,129450.8,132820.4,"$136,190",141047.6,145905.20000000001,"$160,478"]
["MGMAPrivate PracticeAllPrivate PracticeMDNP: Pediatric/Child HealthL","NP: Pediatric/Child Health","Code","MGMA","Private Practice","All",null,"MD",2022,"$100,659",104115.4,107571.8,111028.2,114484.6,"$117,941",122823.2,127705.4,132587.6,137469.79999999999,"$142,352",147520,152688,"$168,192"]
["MGMAPrivate PracticeAllPrivate PracticeMDNP: Urgent CareL","NP: Urgent Care","Code","MGMA","Private Practice","All",null,"MD",2022,"$105,352",108649,111946,115243,118540,"$121,837",126692.2,131547.4,136402.6,141257.79999999999,"$146,113",153750.39999999999,161387.79999999999,"$184,300"]
["MGMAPrivate PracticeAllPrivate PracticeMDNP (Nonsurgical/Nonprimary Care)L","NP (Nonsurgical/Nonprimary Care)","Code","MGMA","Private Practice","All",null,"MD",2022,"$109,752",112786.8,115821.6,118856.4,121891.2,"$124,926",129063.6,133201.20000000001,137338.79999999999,141476.4,"$145,614",151451.4,157288.79999999999,"$174,801"]
["MGMAPrivate PracticeAllPrivate PracticeMDNP: Acute CareL","NP: Acute Care","Code","MGMA","Private Practice","All",null,"MD",2022,"$120,254",124619.4,128984.8,133350.20000000001,137715.6,"$142,081",147343.6,152606.20000000001,157868.79999999999,163131.4,"$168,394",184121,199848,"$247,029"]
["MGMAPrivate PracticeAllPrivate PracticeMDNP: Allergy/ImmunologyL","NP: Allergy/Immunology","Code","MGMA","Private Practice","All",null,"MD",2022,"$102,332",104096.6,105861.2,107625.8,109390.39999999999,"$111,155",113557.6,115960.2,118362.8,120765.4,"$123,168",128299.8,133431.6,"$148,827"]
["MGMAPrivate PracticeAllPrivate PracticeMDNP: Behavioral MedicineL","NP: Behavioral Medicine","Code","MGMA","Private Practice","All",null,"MD",2022,"*",{"$error":"#VALUE!"},{"$error":"#VALUE!"},{"$error":"#VALUE!"},{"$error":"#VALUE!"},"*",{"$error":"#VALUE!"},{"$error":"#VALUE!"},{"$error":"#VALUE!"},{"$error":"#VALUE!"},"*",{"$error":"#VALUE!"},{"$error":"#VALUE!"},"*"]
["MGMAPrivate PracticeAllPrivate PracticeMDNP: CardiologyL","NP: Cardiology","Code","MGMA","Private Practice","All",null,"MD",2022,"$107,168",109776.4,112384.8,114993.2,117601.60000000001,"$120,210",123031.8,125853.6,128675.4,131497.20000000001,"$134,319",138773.20000000001,143227.4,"$156,590"]
["MGMAPrivate PracticeAllPrivate PracticeMDNP: DermatologyL","NP: Dermatology","Code","MGMA","Private Practice","All",null,"MD",2022,"$110,973",115395.6,119818.2,124240.8,128663.4,"$133,086",142635.4,152184.79999999999,161734.20000000001,171283.6,"$180,833",188666.4,196499.8,"$220,000"]
["MGMAPrivate PracticeAllPrivate PracticeMDNP: Emergency MedicineL","NP: Emergency Medicine","Code","MGMA","Private Practice","All",null,"MD",2022,"$116,775",121322.4,125869.8,130417.2,134964.6,"$139,512",144071,148630,153189,157748,"$162,307",169964.2,177621.4,"$200,593"]
["MGMAPrivate PracticeAllPrivate PracticeMDNP: EndocrinologyL","NP: Endocrinology","Code","MGMA","Private Practice","All",null,"MD",2022,"$105,092",107899.8,110707.6,113515.4,116323.2,"$119,131",121867.4,124603.8,127340.2,130076.6,"$132,813",139311.79999999999,145810.6,"$165,307"]
["MGMAPrivate PracticeAllPrivate PracticeMDNP: GastroenterologyL","NP: Gastroenterology","Code","MGMA","Private Practice","All",null,"MD",2022,"$101,195",104114.4,107033.8,109953.2,112872.6,"$115,792",119129.4,122466.8,125804.2,129141.6,"$132,479",136185.20000000001,139891.4,"$151,010"]
[{"$f":"D195&E195&F195&E195&H195&B195&\"L\"","v":"MGMAPrivate PracticeAllPrivate PracticeMDNP: Hematology/OncologyL"},"NP: Hematology/Oncology","Code","MGMA","Private Practice","All",null,"MD",2022,"$106,472",{"$f":"(((O195-J195)/25)*5) + J195","v":109441.4},{"$f":"(((O195-J195)/25)*10) + J195","v":112410.8},{"$f":"(((O195-J195)/25)*15) + J195","v":115380.2},{"$f":"(((O195-J195)/25)*20) + J195","v":118349.6},"$121,319",{"$f":"(((T195-O195)/25)*5) + O195","v":124247.6},{"$f":"(((T195-O195)/25)*10) + O195","v":127176.2},{"$f":"(((T195-O195)/25)*15) + O195","v":130104.8},{"$f":"(((T195-O195)/25)*20) + O195","v":133033.4},"$135,962",{"$f":"(((W195-T195)/25)*5) + T195","v":140754.4},{"$f":"(((W195-T195)/25)*10) + T195","v":145546.79999999999},"$159,924"]
["MGMAPrivate PracticeAllPrivate PracticeMDNP: Hospitalist (Nonsurgical/Nonprimary Care)L","NP: Hospitalist (Nonsurgical/Nonprimary Care)","Code","MGMA","Private Practice","All",null,"MD",2022,"$124,362",126475.6,128589.2,130702.8,132816.4,"$134,930",138362,141794,145226,148658,"$152,090",158970.4,165850.79999999999,"$186,492"]
["MGMAPrivate PracticeAllPrivate PracticeMDNP: Infectious DiseaseL","NP: Infectious Disease","Code","MGMA","Private Practice","All",null,"MD",2022,"$104,393",107631.6,110870.2,114108.8,117347.4,"$120,586",123988.8,127391.6,130794.4,134197.20000000001,"$137,600",145774.20000000001,153948.4,"$178,471"]
["MGMAPrivate PracticeAllPrivate PracticeMDNP: Neonatal/PerinatalL","NP: Neonatal/Perinatal","Code","MGMA","Private Practice","All",null,"MD",2022,"$124,090",127153.2,130216.4,133279.6,136342.79999999999,"$139,406",142978.79999999999,146551.6,150124.4,153697.20000000001,"$157,270",164397.6,171525.2,"$192,908"]
["MGMAPrivate PracticeAllPrivate PracticeMDNP: NephrologyL","NP: Nephrology","Code","MGMA","Private Practice","All",null,"MD",2022,"$104,124",106820.8,109517.6,112214.39999999999,114911.2,"$117,608",120286.39999999999,122964.8,125643.2,128321.60000000001,"$131,000",136188.4,141376.79999999999,"$156,942"]
["MGMAPrivate PracticeAllPrivate PracticeMDNP: NeurologyL","NP: Neurology","Code","MGMA","Private Practice","All",null,"MD",2022,"$107,495",110070.8,112646.6,115222.39999999999,117798.2,"$120,374",123280.6,126187.2,129093.8,132000.4,"$134,907",139069.4,143231.79999999999,"$155,719"]
["MGMAPrivate PracticeAllPrivate PracticeMDNP: Orthopedics (Nonsurgical/Nonprimary Care)L","NP: Orthopedics (Nonsurgical/Nonprimary Care)","Code","MGMA","Private Practice","All",null,"MD",2022,"$119,779",122709,125639,128569,131499,"$134,429",138504.79999999999,142580.6,146656.4,150732.20000000001,"$154,808",190507.4,226206.8,"$333,305"]
["MGMAPrivate PracticeAllPrivate PracticeMDNP: PhysiatryL","NP: Physiatry","Code","MGMA","Private Practice","All",null,"MD",2022,"$106,615",109613.2,112611.4,115609.60000000001,118607.8,"$121,606",127502,133398,139294,145190,"$151,086",158173.6,165261.20000000001,"$186,524"]
["MGMAPrivate PracticeAllPrivate PracticeMDNP: PsychiatryL","NP: Psychiatry","Code","MGMA","Private Practice","All",null,"MD",2022,"$111,037",114589.6,118142.2,121694.8,125247.4,"$128,800",133250.20000000001,137700.4,142150.6,146600.79999999999,"$151,051",156895.4,162739.79999999999,"$180,273"]
["MGMAPrivate PracticeAllPrivate PracticeMDNP: Pulmonary MedicineL","NP: Pulmonary Medicine","Code","MGMA","Private Practice","All",null,"MD",2022,"$110,551",113113.4,115675.8,118238.2,120800.6,"$123,363",127013.2,130663.4,134313.60000000001,137963.79999999999,"$141,614",145181.6,148749.20000000001,"$159,452"]
["MGMAPrivate PracticeAllPrivate PracticeMDNP: RheumatologyL","NP: Rheumatology","Code","MGMA","Private Practice","All",null,"MD",2022,"$109,083",111709.2,114335.4,116961.60000000001,119587.8,"$122,214",127587.2,132960.4,138333.6,143706.79999999999,"$149,080",152240.20000000001,155400.4,"$164,881"]
["MGMAPrivate PracticeAllPrivate PracticeMDNP: Urgent Care (Nonsurgical/Nonprimary Care)L","NP: Urgent Care (Nonsurgical/Nonprimary Care)","Code","MGMA","Private Practice","All",null,"MD",2022,"$108,952",111739.6,114527.2,117314.8,120102.39999999999,"$122,890",125091.6,127293.2,129494.8,131696.4,"$133,898",137077.79999999999,140257.60000000001,"$149,797"]
["MGMAPrivate PracticeAllPrivate PracticeMDOccupational TherapistL","Occupational Therapist","Code","MGMA","Private Practice","All",null,"MD",2022,"$73,869",77156.399999999994,80443.8,83731.199999999997,87018.6,"$90,306",92589,94872,97155,99438,"$101,721",103966.39999999999,106211.8,"$112,948"]
["MGMAPrivate PracticeAllPrivate PracticeMDOptometristL","Optometrist","Code","MGMA","Private Practice","All",null,"MD",2022,"$148,463",151655.6,154848.20000000001,158040.79999999999,161233.4,"$164,426",173393.8,182361.60000000001,191329.4,200297.2,"$209,265",223660.79999999999,238056.6,"$281,244"]
["MGMAPrivate PracticeAllPrivate PracticeMDPerfusionistL","Perfusionist","Code","MGMA","Private Practice","All",null,"MD",2022,"*",{"$error":"#VALUE!"},{"$error":"#VALUE!"},{"$error":"#VALUE!"},{"$error":"#VALUE!"},"*",{"$error":"#VALUE!"},{"$error":"#VALUE!"},{"$error":"#VALUE!"},{"$error":"#VALUE!"},"*",{"$error":"#VALUE!"},{"$error":"#VALUE!"},"*"]
["MGMAPrivate PracticeAllPrivate PracticeMDPhDL","PhD","Code","MGMA","Private Practice","All",null,"MD",2022,"$193,253",213753.4,234253.8,254754.2,275254.59999999998,"$295,755",297404,299053,300702,302351,"$304,000",307601,311202,"$322,005"]
["MGMAPrivate PracticeAllPrivate PracticeMDPhysical TherapistL","Physical Therapist","Code","MGMA","Private Practice","All",null,"MD",2022,"$73,117",75812.2,78507.399999999994,81202.600000000006,83897.8,"$86,593",89429.8,92266.6,95103.4,97940.2,"$100,777",103577.4,106377.8,"$114,779"]
["MGMAPrivate PracticeAllPrivate PracticeMDPA (Surgical)L","PA (Surgical)","Code","MGMA","Private Practice","All",null,"MD",2022,"$115,099",118882,122665,126448,130231,"$134,014",138865.79999999999,143717.6,148569.4,153421.20000000001,"$158,273",168460.6,178648.2,"$209,211"]
["MGMAPrivate PracticeAllPrivate PracticeMDPA: AllergyL","PA: Allergy","Code","MGMA","Private Practice","All",null,"MD",2022,"$106,987",111742,116497,121252,126007,"$130,762",132817.20000000001,134872.4,136927.6,138982.79999999999,"$141,038",145573.20000000001,150108.4,"$163,714"]
["MGMAPrivate PracticeAllPrivate PracticeMDPA: Anesthesiology L","PA: Anesthesiology ","Code","MGMA","Private Practice","All",null,"MD",2022,"$140,677",152022,163367,174712,186057,"$197,402",204483.8,211565.6,218647.4,225729.2,"$232,811",234301,235791,"$240,261"]
["MGMAPrivate PracticeAllPrivate PracticeMDPA: Cardiothoracic SurgeryL","PA: Cardiothoracic Surgery","Code","MGMA","Private Practice","All",null,"MD",2022,"$133,666",139294.79999999999,144923.6,150552.4,156181.20000000001,"$161,810",167724.20000000001,173638.39999999999,179552.6,185466.8,"$191,381",198000.6,204620.2,"$224,479"]
["MGMAPrivate PracticeAllPrivate PracticeMDPA: NeurosurgeryL","PA: Neurosurgery","Code","MGMA","Private Practice","All",null,"MD",2022,"$121,393",125349.2,129305.4,133261.6,137217.79999999999,"$141,174",146693.4,152212.79999999999,157732.20000000001,163251.6,"$168,771",175034,181297,"$200,086"]
["MGMAPrivate PracticeAllPrivate PracticeMDPA: Orthopedic (Surgical)L","PA: Orthopedic (Surgical)","Code","MGMA","Private Practice","All",null,"MD",2022,"$119,610",123073.60000000001,126537.2,130000.8,133464.4,"$136,928",141384.20000000001,145840.4,150296.6,154752.79999999999,"$159,209",163672,168135,"$181,524"]
["MGMAPrivate PracticeAllPrivate PracticeMDPA: OtorhinolaryngologyL","PA: Otorhinolaryngology","Code","MGMA","Private Practice","All",null,"MD",2022,"$111,421",113943,116465,118987,121509,"$124,031",127313.8,130596.6,133879.4,137162.20000000001,"$140,445",144921.4,149397.79999999999,"$162,827"]
["MGMAPrivate PracticeAllPrivate PracticeMDPA: Surgery: GeneralL","PA: Surgery: General","Code","MGMA","Private Practice","All",null,"MD",2022,"$115,218",118864.4,122510.8,126157.2,129803.6,"$133,450",137558.6,141667.20000000001,145775.79999999999,149884.4,"$153,993",162299.79999999999,170606.6,"$195,527"]
["MGMAPrivate PracticeAllPrivate PracticeMDPA: UrologyL","PA: Urology","Code","MGMA","Private Practice","All",null,"MD",2022,"$109,468",112462,115456,118450,121444,"$124,438",128802.2,133166.39999999999,137530.6,141894.79999999999,"$146,259",150417.60000000001,154576.20000000001,"$167,052"]
["MGMAPrivate PracticeAllPrivate PracticeMDPA: Vascular SurgeryL","PA: Vascular Surgery","Code","MGMA","Private Practice","All",null,"MD",2022,"$129,040",134060.6,139081.20000000001,144101.79999999999,149122.4,"$154,143",157313.79999999999,160484.6,163655.4,166826.20000000001,"$169,997",180153.4,190309.8,"$220,779"]
["MGMAPrivate PracticeAllPrivate PracticeMDPA (Primary Care)L","PA (Primary Care)","Code","MGMA","Private Practice","All",null,"MD",2022,"$112,370",115688,119006,122324,125642,"$128,960",134002.6,139045.20000000001,144087.79999999999,149130.4,"$154,173",161434.20000000001,168695.4,"$190,479"]
["MGMAPrivate PracticeAllPrivate PracticeMDPA: Family Medicine (with OB)L","PA: Family Medicine (with OB)","Code","MGMA","Private Practice","All",null,"MD",2022,"$105,874",108873.8,111873.60000000001,114873.4,117873.2,"$120,873",127773,134673,141573,148473,"$155,373",158679.6,161986.20000000001,"$171,906"]
["MGMAPrivate PracticeAllPrivate PracticeMDPA: Family Medicine (without OB)L","PA: Family Medicine (without OB)","Code","MGMA","Private Practice","All",null,"MD",2022,"$109,850",113146.4,116442.8,119739.2,123035.6,"$126,332",131085.4,135838.79999999999,140592.20000000001,145345.60000000001,"$150,099",156791,163483,"$183,559"]
["MGMAPrivate PracticeAllPrivate PracticeMDPA: Gerontology/Elder HealthL","PA: Gerontology/Elder Health","Code","MGMA","Private Practice","All",null,"MD",2022,"$112,219",118977,125735,132493,139251,"$146,009",147028.4,148047.79999999999,149067.20000000001,150086.6,"$151,106",178370,205634,"$287,426"]
["MGMAPrivate PracticeAllPrivate PracticeMDPA: Hospice/Palliative CareL","PA: Hospice/Palliative Care","Code","MGMA","Private Practice","All",null,"MD",2022,"$108,838",111317.6,113797.2,116276.8,118756.4,"$121,236",123915,126594,129273,131952,"$134,631",136470.6,138310.20000000001,"$143,829"]
["MGMAPrivate PracticeAllPrivate PracticeMDPA: Hospitalist (Primary Care)L","PA: Hospitalist (Primary Care)","Code","MGMA","Private Practice","All",null,"MD",2022,"$115,727",117803.2,119879.4,121955.6,124031.8,"$126,108",128073.2,130038.39999999999,132003.6,133968.79999999999,"$135,934",138960.79999999999,141987.6,"$151,068"]
["MGMAPrivate PracticeAllPrivate PracticeMDPA: Internal MedicineL","PA: Internal Medicine","Code","MGMA","Private Practice","All",null,"MD",2022,"$110,569",113835.4,117101.8,120368.2,123634.6,"$126,901",131088.4,135275.79999999999,139463.20000000001,143650.6,"$147,838",152702.39999999999,157566.79999999999,"$172,160"]
["MGMAPrivate PracticeAllPrivate PracticeMDPA: OB/GYN/Women's HealthL","PA: OB/GYN/Women's Health","Code","MGMA","Private Practice","All",null,"MD",2022,"$108,940",111552,114164,116776,119388,"$122,000",125435.6,128871.2,132306.79999999999,135742.39999999999,"$139,178",143946.20000000001,148714.4,"$163,019"]
["MGMAPrivate PracticeAllPrivate PracticeMDPA: Pediatric/Child HealthL","PA: Pediatric/Child Health","Code","MGMA","Private Practice","All",null,"MD",2022,"$109,365",111649.8,113934.6,116219.4,118504.2,"$120,789",126510.8,132232.6,137954.4,143676.20000000001,"$149,398",163532.79999999999,177667.6,"$220,072"]
["MGMAPrivate PracticeAllPrivate PracticeMDPA: Urgent CareL","PA: Urgent Care","Code","MGMA","Private Practice","All",null,"MD",2022,"$119,646",122794.2,125942.39999999999,129090.6,132238.79999999999,"$135,387",141210,147033,152856,158679,"$164,502",173152.2,181802.4,"$207,753"]
["MGMAPrivate PracticeAllPrivate PracticeMDPA (Nonsurgical/Nonprimary Care)L","PA (Nonsurgical/Nonprimary Care)","Code","MGMA","Private Practice","All",null,"MD",2022,"$115,911",118555.4,121199.8,123844.2,126488.6,"$129,133",133030.79999999999,136928.6,140826.4,144724.20000000001,"$148,622",156042.79999999999,163463.6,"$185,726"]
["MGMAPrivate PracticeAllPrivate PracticeMDPA: Acute CareL","PA: Acute Care","Code","MGMA","Private Practice","All",null,"MD",2022,"$118,757",124675.8,130594.6,136513.4,142432.20000000001,"$148,351",155454.6,162558.20000000001,169661.8,176765.4,"$183,869",193548,203227,"$232,264"]
["MGMAPrivate PracticeAllPrivate PracticeMDPA: CardiologyL","PA: Cardiology","Code","MGMA","Private Practice","All",null,"MD",2022,"$113,003",115755.6,118508.2,121260.8,124013.4,"$126,766",130514.4,134262.79999999999,138011.20000000001,141759.6,"$145,508",151101,156694,"$173,473"]
["MGMAPrivate PracticeAllPrivate PracticeMDPA: DermatologyL","PA: Dermatology","Code","MGMA","Private Practice","All",null,"MD",2022,"$123,081",131386,139691,147996,156301,"$164,606",176616.4,188626.8,200637.2,212647.6,"$224,658",234771.4,244884.8,"$275,225"]
["MGMAPrivate PracticeAllPrivate PracticeMDPA: Emergency MedicineL","PA: Emergency Medicine","Code","MGMA","Private Practice","All",null,"MD",2022,"$115,951",119162.4,122373.8,125585.2,128796.6,"$132,008",136352.20000000001,140696.4,145040.6,149384.79999999999,"$153,729",157183.20000000001,160637.4,"$171,000"]
["MGMAPrivate PracticeAllPrivate PracticeMDPA: EndocrinologyL","PA: Endocrinology","Code","MGMA","Private Practice","All",null,"MD",2022,"$109,682",111975.2,114268.4,116561.60000000001,118854.8,"$121,148",124710.39999999999,128272.8,131835.20000000001,135397.6,"$138,960",147965,156970,"$183,985"]
["MGMAPrivate PracticeAllPrivate PracticeMDPA: GastroenterologyL","PA: Gastroenterology","Code","MGMA","Private Practice","All",null,"MD",2022,"$105,157",108483.4,111809.8,115136.2,118462.6,"$121,789",124920.4,128051.8,131183.20000000001,134314.6,"$137,446",143633.60000000001,149821.20000000001,"$168,384"]
["MGMAPrivate PracticeAllPrivate PracticeMDPA: Hematology/OncologyL","PA: Hematology/Oncology","Code","MGMA","Private Practice","All",null,"MD",2022,"$108,686",111610.8,114535.6,117460.4,120385.2,"$123,310",127503.8,131697.60000000001,135891.4,140085.20000000001,"$144,279",152655.20000000001,161031.4,"$186,160"]
["MGMAPrivate PracticeAllPrivate PracticeMDPA: Hospitalist (Nonsurgical/Nonprimary Care)L","PA: Hospitalist (Nonsurgical/Nonprimary Care)","Code","MGMA","Private Practice","All",null,"MD",2022,"$121,552",125536.2,129520.4,133504.6,137488.79999999999,"$141,473",145778.79999999999,150084.6,154390.39999999999,158696.20000000001,"$163,002",170660.2,178318.4,"$201,293"]
["MGMAPrivate PracticeAllPrivate PracticeMDPA: Infectious DiseaseL","PA: Infectious Disease","Code","MGMA","Private Practice","All",null,"MD",2022,"$102,744",104863.2,106982.39999999999,109101.6,111220.8,"$113,340",116571.8,119803.6,123035.4,126267.2,"$129,499",141119,152739,"$187,599"]
["MGMAPrivate PracticeAllPrivate PracticeMDPA: Neonatal/PerinatalL","PA: Neonatal/Perinatal","Code","MGMA","Private Practice","All",null,"MD",2022,"$134,441",135170.20000000001,135899.4,136628.6,137357.79999999999,"$138,087",139572.4,141057.79999999999,142543.20000000001,144028.6,"$145,514",146384.20000000001,147254.39999999999,"$149,865"]
["MGMAPrivate PracticeAllPrivate PracticeMDPA: NephrologyL","PA: Nephrology","Code","MGMA","Private Practice","All",null,"MD",2022,"$107,111",108800.8,110490.6,112180.4,113870.2,"$115,560",117576.8,119593.60000000001,121610.4,123627.2,"$125,644",127535.2,129426.4,"$135,100"]
["MGMAPrivate PracticeAllPrivate PracticeMDPA: NeurologyL","PA: Neurology","Code","MGMA","Private Practice","All",null,"MD",2022,"$111,535",114718.39999999999,117901.8,121085.2,124268.6,"$127,452",131125.20000000001,134798.39999999999,138471.6,142144.79999999999,"$145,818",154439.6,163061.20000000001,"$188,926"]
["MGMAPrivate PracticeAllPrivate PracticeMDPA: Orthopedic (Nonsurgical/Nonprimary Care)L","PA: Orthopedic (Nonsurgical/Nonprimary Care)","Code","MGMA","Private Practice","All",null,"MD",2022,"$108,597",112019.4,115441.8,118864.2,122286.6,"$125,709",128793.2,131877.4,134961.60000000001,138045.79999999999,"$141,130",146385.60000000001,151641.20000000001,"$167,408"]
["MGMAPrivate PracticeAllPrivate PracticeMDPA: PhysiatryL","PA: Physiatry","Code","MGMA","Private Practice","All",null,"MD",2022,"$84,473",91013.4,97553.8,104094.2,110634.6,"$117,175",119648.6,122122.2,124595.8,127069.4,"$129,543",131201.60000000001,132860.20000000001,"$137,836"]
["MGMAPrivate PracticeAllPrivate PracticeMDPA: PsychiatryL","PA: Psychiatry","Code","MGMA","Private Practice","All",null,"MD",2022,"$121,357",123133.8,124910.6,126687.4,128464.2,"$130,241",134280.79999999999,138320.6,142360.4,146400.20000000001,"$150,440",156717.20000000001,162994.4,"$181,826"]
["MGMAPrivate PracticeAllPrivate PracticeMDPA: Pulmonary MedicineL","PA: Pulmonary Medicine","Code","MGMA","Private Practice","All",null,"MD",2022,"$113,706",117673.60000000001,121641.2,125608.8,129576.4,"$133,544",137248.4,140952.79999999999,144657.20000000001,148361.60000000001,"$152,066",157017.79999999999,161969.60000000001,"$176,825"]
["MGMAPrivate PracticeAllPrivate PracticeMDPA: RheumatologyL","PA: Rheumatology","Code","MGMA","Private Practice","All",null,"MD",2022,"$104,918",107816.4,110714.8,113613.2,116511.6,"$119,410",123121.2,126832.4,130543.6,134254.79999999999,"$137,966",148155.79999999999,158345.60000000001,"$188,915"]
["MGMAPrivate PracticeAllPrivate PracticeMDPA: Urgent Care (Nonsurgical/Nonprimary Care)L","PA: Urgent Care (Nonsurgical/Nonprimary Care)","Code","MGMA","Private Practice","All",null,"MD",2022,"$105,143",109283.8,113424.6,117565.4,121706.2,"$125,847",129652.4,133457.79999999999,137263.20000000001,141068.6,"$144,874",150239.6,155605.20000000001,"$171,702"]
["MGMAPrivate PracticeAllPrivate PracticeMDPsychologistL","Psychologist","Code","MGMA","Private Practice","All",null,"MD",2022,"$104,170",107814.2,111458.4,115102.6,118746.8,"$122,391",127052.2,131713.4,136374.6,141035.79999999999,"$145,697",153658.6,161620.20000000001,"$185,505"]
["MGMAPrivate PracticeAllPrivate PracticeMDResearchL","Research","Code","MGMA","Private Practice","All",null,"MD",2022,"$54,230",54703.8,55177.599999999999,55651.4,56125.2,"$56,599",57339,58079,58819,59559,"$60,299",60922.6,61546.2,"$63,417"]
["MGMAPrivate PracticeAllPrivate PracticeMDResearch: MDL","Research: MD","Code","MGMA","Private Practice","All",null,"MD",2022,"*",{"$error":"#VALUE!"},{"$error":"#VALUE!"},{"$error":"#VALUE!"},{"$error":"#VALUE!"},"*",{"$error":"#VALUE!"},{"$error":"#VALUE!"},{"$error":"#VALUE!"},{"$error":"#VALUE!"},"*",{"$error":"#VALUE!"},{"$error":"#VALUE!"},"*"]
["MGMAPrivate PracticeAllPrivate PracticeMDSurgeon AssistantL","Surgeon Assistant","Code","MGMA","Private Practice","All",null,"MD",2022,"*",{"$error":"#VALUE!"},{"$error":"#VALUE!"},{"$error":"#VALUE!"},{"$error":"#VALUE!"},"*",{"$error":"#VALUE!"},{"$error":"#VALUE!"},{"$error":"#VALUE!"},{"$error":"#VALUE!"},"*",{"$error":"#VALUE!"},{"$error":"#VALUE!"},"*"]

{"sheet":"MGMAR","index":24,"n_rows":227,"n_cols":21,"rows_kept":227,"cut":false,"hidden":false,"merged":[]}
["Key","Specialty","Code","Source","Type","Category","Year","25th %tile","P30","P35","P40","P45","Median","P55","P60","P65","P70","75th %tile","P80","P85","90th %tile"]
[{"$f":"D2&E2&F2&B2&\"L\"","v":"MGMAAcademicAllAllergy/ImmunologyL"},"Allergy/Immunology","Code","MGMA","Academic","All",2022,"1,851",{"$f":"IFERROR((((M2-H2)/25)*5) + H2,\"*\")","v":2118},{"$f":"IFERROR((((M2-H2)/25)*10) + H2,\"*\")","v":2385},{"$f":"IFERROR((((M2-H2)/25)*15) + H2,\"*\")","v":2652},{"$f":"IFERROR((((M2-H2)/25)*20) + H2,\"*\")","v":2919},"3,186",{"$f":"IFERROR((((R2-M2)/25)*5)+M2,\"*\")","v":3343},{"$f":"IFERROR((((R2-M2)/25)*10) + M2,\"*\")","v":3500},{"$f":"IFERROR((((R2-M2)/25)*15) + M2,\"*\")","v":3657},{"$f":"IFERROR((((R2-M2)/25)*20) + M2,\"*\")","v":3814},"3,971",{"$f":"IFERROR((((U2-R2)/25)*5) + R2,\"*\")","v":4137.2},{"$f":"IFERROR((((U2-R2)/25)*10) + R2,\"*\")","v":4303.3999999999996},"4,802"]
[{"$f":"D3&E3&F3&B3&\"L\"","v":"MGMAAcademicAllAnesthesiology: Pain ManagementL"},"Anesthesiology: Pain Management","Code","MGMA","Academic","All",2022,"2,410",{"$f":"IFERROR((((M3-H3)/25)*5) + H3,\"*\")","v":2731.6},{"$f":"IFERROR((((M3-H3)/25)*10) + H3,\"*\")","v":3053.2},{"$f":"IFERROR((((M3-H3)/25)*15) + H3,\"*\")","v":3374.8},{"$f":"IFERROR((((M3-H3)/25)*20) + H3,\"*\")","v":3696.3999999999996},"4,018",{"$f":"IFERROR((((R3-M3)/25)*5) + M3, \"*\")","v":4460.6000000000004},{"$f":"IFERROR((((R3-M3)/25)*10) + M3,\"*\")","v":4903.2},{"$f":"IFERROR((((R3-M3)/25)*15) + M3,\"*\")","v":5345.8},{"$f":"IFERROR((((R3-M3)/25)*20) + M3,\"*\")","v":5788.4},"6,231",{"$f":"IFERROR((((U3-R3)/25)*5) + R3,\"*\")","v":6587.4},{"$f":"IFERROR((((U3-R3)/25)*10) + R3,\"*\")","v":6943.8},"8,013"]
["MGMAAcademicAllCardiology: ElectrophysiologyL","Cardiology: Electrophysiology","Code","MGMA","Academic","All",2022,"7,007",7318.4,7629.8,7941.2,8252.6,"8,564",{"$f":"IFERROR((((R4-M4)/25)*5) + M4, \"*\")","v":9064.6},9565.2000000000007,10065.799999999999,10566.4,"11,067",11553.8,12040.6,"13,501"]
["MGMAAcademicAllCardiology: InvasiveL","Cardiology: Invasive","Code","MGMA","Academic","All",2022,"4,090",4626,5162,5698,6234,"6,770",{"$f":"IFERROR((((R5-M5)/25)*5) + M5, \"*\")","v":7440},8110,8780,9450,"10,120",10739.4,11358.8,"13,217"]
["MGMAAcademicAllCardiology: Invasive-InterventionalL","Cardiology: Invasive-Interventional","Code","MGMA","Academic","All",2022,"6,002",6268.8,6535.6,6802.4,7069.2,"7,336",7653.4,7970.8,8288.2000000000007,8605.6,"8,923",9236.4,9549.7999999999993,"10,490"]
["MGMAAcademicAllCardiology: NoninvasiveL","Cardiology: Noninvasive","Code","MGMA","Academic","All",2022,"4,662",4960.3999999999996,5258.8,5557.2,5855.6,"6,154",6462.2,6770.4,7078.6,7386.8,"7,695",7984.2,8273.4,"9,141"]
["MGMAAcademicAllCritical Care: IntensivistL","Critical Care: Intensivist","Code","MGMA","Academic","All",2022,"2,540",2741,2942,3143,3344,"3,545",3864.6,4184.2,4503.8,4823.3999999999996,"5,143",5335.4,5527.8,"6,105"]
["MGMAAcademicAllDermatologyL","Dermatology","Code","MGMA","Academic","All",2022,"5,344",5629.2,5914.4,6199.6,6484.8,"6,770",7069.8,7369.6,7669.4,7969.2,"8,269",8849.7999999999993,9430.6,"11,173"]
["MGMAAcademicAllDermatology: DermatopathologyL","Dermatology: Dermatopathology","Code","MGMA","Academic","All",2022,"4,039",4593.2,5147.3999999999996,5701.6,6255.8,"6,810",8236.4,9662.7999999999993,11089.2,12515.599999999999,"13,942",14448.8,14955.6,"16,476"]
["MGMAAcademicAllDermatology: Mohs SurgeryL","Dermatology: Mohs Surgery","Code","MGMA","Academic","All",2022,"10,496",10756.2,11016.4,11276.6,11536.8,"11,797",12297.4,12797.8,13298.2,13798.6,"14,299",15093.4,15887.8,"18,271"]
["MGMAAcademicAllEmergency MedicineL","Emergency Medicine","Code","MGMA","Academic","All",2022,"4,102",4451.2,4800.3999999999996,5149.6000000000004,5498.8,"5,848",6255.4,6662.8,7070.2,7477.6,"7,885",8177.4,8469.7999999999993,"9,347"]
["MGMAAcademicAllEndocrinology/MetabolismL","Endocrinology/Metabolism","Code","MGMA","Academic","All",2022,"3,245",3387.6,3530.2,3672.8,3815.4,"3,958",4172.8,4387.6000000000004,4602.3999999999996,4817.2,"5,032",5136.6000000000004,5241.2,"5,555"]
["MGMAAcademicAllFamily Medicine (with OB)L","Family Medicine (with OB)","Code","MGMA","Academic","All",2022,"3,169",3375.4,3581.8,3788.2,3994.6,"4,201",4300,4399,4498,4597,"4,696",5044,5392,"6,436"]
["MGMAAcademicAllFamily Medicine (without OB)L","Family Medicine (without OB)","Code","MGMA","Academic","All",2022,"3,333",3593,3853,4113,4373,"4,633",4833.6000000000004,5034.2,5234.8,5435.4,"5,636",5854.6,6073.2,"6,729"]
["MGMAAcademicAllFamily Medicine: Ambulatory Only (No Inpatient Work)L","Family Medicine: Ambulatory Only (No Inpatient Work)","Code","MGMA","Academic","All",2022,"*","*","*","*","*","*","*","*","*","*","*","*","*","*"]
["MGMAAcademicAllFamily Medicine: Sports MedicineL","Family Medicine: Sports Medicine","Code","MGMA","Academic","All",2022,"4,303",4544.3999999999996,4785.8,5027.2,5268.6,"5,510",5922.4,6334.8,6747.2,7159.6,"7,572",7877.2,8182.4,"9,098"]
["MGMAAcademicAllFamily Medicine: Urgent CareL","Family Medicine: Urgent Care","Code","MGMA","Academic","All",2022,"*","*","*","*","*","*","*","*","*","*","*","*","*","*"]
["MGMAAcademicAllGastroenterologyL","Gastroenterology","Code","MGMA","Academic","All",2022,"4,690",4912.2,5134.3999999999996,5356.6,5578.8,"5,801",6114.8,6428.6,6742.4,7056.2,"7,370",7696,8022,"9,000"]
["MGMAAcademicAllGastroenterology: HepatologyL","Gastroenterology: Hepatology","Code","MGMA","Academic","All",2022,"3,426",3683.6,3941.2,4198.8,4456.3999999999996,"4,714",4845,4976,5107,5238,"5,369",5597.8,5826.6,"6,513"]
["MGMAAcademicAllGeneticsL","Genetics","Code","MGMA","Academic","All",2022,"*","*","*","*","*","*","*","*","*","*","*","*","*","*"]
["MGMAAcademicAllGeriatricsL","Geriatrics","Code","MGMA","Academic","All",2022,"1,795",1983.2,2171.4,2359.6,2547.8000000000002,"2,736",2886,3036,3186,3336,"3,486",3678.6,3871.2,"4,449"]
["MGMAAcademicAllHematology/OncologyL","Hematology/Oncology","Code","MGMA","Academic","All",2022,"3,125",3244.4,3363.8,3483.2,3602.6,"3,722",3920,4118,4316,4514,"4,712",4902.8,5093.6000000000004,"5,666"]
["MGMAAcademicAllHematology/Oncology: Oncology (Only)L","Hematology/Oncology: Oncology (Only)","Code","MGMA","Academic","All",2022,"3,289",3444.4,3599.8,3755.2,3910.6,"4,066",4178.8,4291.6000000000004,4404.3999999999996,4517.2,"4,630",4948.2,5266.4,"6,221"]
["MGMAAcademicAllHospice/Palliative CareL","Hospice/Palliative Care","Code","MGMA","Academic","All",2022,"1,204",1326.8,1449.6,1572.4,1695.2,"1,818",1939.8,2061.6,2183.4,2305.1999999999998,"2,427",2519.8000000000002,2612.6,"2,891"]
["MGMAAcademicAllHospitalist: Family MedicineL","Hospitalist: Family Medicine","Code","MGMA","Academic","All",2022,"*","*","*","*","*","*","*","*","*","*","*","*","*","*"]
["MGMAAcademicAllHospitalist: Internal MedicineL","Hospitalist: Internal Medicine","Code","MGMA","Academic","All",2022,"1,972",2125.4,2278.8000000000002,2432.1999999999998,2585.6,"2,739",2884,3029,3174,3319,"3,464",3578.2,3692.4,"4,035"]
["MGMAAcademicAllHospitalist: NocturnistL","Hospitalist: Nocturnist","Code","MGMA","Academic","All",2022,"799",896.4,993.8,1091.2,1188.5999999999999,"1,286",1461,1636,1811,1986,"2,161",2389.6,2618.1999999999998,"3,304"]
["MGMAAcademicAllHyperbaric Medicine/Wound CareL","Hyperbaric Medicine/Wound Care","Code","MGMA","Academic","All",2022,"*","*","*","*","*","*","*","*","*","*","*","*","*","*"]
["MGMAAcademicAllInfectious DiseaseL","Infectious Disease","Code","MGMA","Academic","All",2022,"1,819",1972,2125,2278,2431,"2,584",2726.2,2868.4,3010.6,3152.8,"3,295",3480.2,3665.4,"4,221"]
["MGMAAcademicAllInternal Medicine: GeneralL","Internal Medicine: General","Code","MGMA","Academic","All",2022,"2,899",3139.6,3380.2,3620.8,3861.4,"4,102",4349.6000000000004,4597.2,4844.8,5092.3999999999996,"5,340",5583.2,5826.4,"6,556"]
["MGMAAcademicAllInternal Medicine: Ambulatory Only (No Inpatient Work)L","Internal Medicine: Ambulatory Only (No Inpatient Work)","Code","MGMA","Academic","All",2022,"*","*","*","*","*","*","*","*","*","*","*","*","*","*"]
["MGMAAcademicAllNephrologyL","Nephrology","Code","MGMA","Academic","All",2022,"4,350",4618.3999999999996,4886.8,5155.2,5423.6,"5,692",5957.6,6223.2,6488.8,6754.4,"7,020",7292.4,7564.8,"8,382"]
["MGMAAcademicAllNephrology: TransplantL","Nephrology: Transplant","Code","MGMA","Academic","All",2022,"*","*","*","*","*","*","*","*","*","*","*","*","*","*"]
["MGMAAcademicAllNeurologyL","Neurology","Code","MGMA","Academic","All",2022,"2,664",2819.8,2975.6,3131.4,3287.2,"3,443",3635.2,3827.4,4019.6,4211.8,"4,404",4755,5106,"6,159"]
["MGMAAcademicAllNeurology: Epilepsy/EEGL","Neurology: Epilepsy/EEG","Code","MGMA","Academic","All",2022,"4,340",4492.2,4644.3999999999996,4796.6000000000004,4948.8,"5,101",5323.6,5546.2,5768.8,5991.4,"6,214",6580,6946,"8,044"]
["MGMAAcademicAllNeurology: Neurocritical CareL","Neurology: Neurocritical Care","Code","MGMA","Academic","All",2022,"4,903",5235.8,5568.6,5901.4,6234.2,"6,567",6745.8,6924.6,7103.4,7282.2,"7,461",7739.2,8017.4,"8,852"]
["MGMAAcademicAllNeurology: Neuromuscular MedicineL","Neurology: Neuromuscular Medicine","Code","MGMA","Academic","All",2022,"2,885",3075.8,3266.6,3457.4,3648.2,"3,839",3992.8,4146.6000000000004,4300.3999999999996,4454.2,"4,608",4829.2,5050.3999999999996,"5,714"]
["MGMAAcademicAllNeurology: Stroke MedicineL","Neurology: Stroke Medicine","Code","MGMA","Academic","All",2022,"2,732",2882,3032,3182,3332,"3,482",3731,3980,4229,4478,"4,727",4986,5245,"6,022"]
["MGMAAcademicAllObstetrics/Gynecology: GeneralL","Obstetrics/Gynecology: General","Code","MGMA","Academic","All",2022,"3,619",3987.2,4355.3999999999996,4723.6000000000004,5091.8,"5,460",5776.4,6092.8,6409.2,6725.6,"7,042",7231.6,7421.2,"7,990"]
["MGMAAcademicAllOB/GYN: Gynecology (Only)L","OB/GYN: Gynecology (Only)","Code","MGMA","Academic","All",2022,"2,929",3200,3471,3742,4013,"4,284",4502.6000000000004,4721.2,4939.8,5158.3999999999996,"5,377",5632.8,5888.6,"6,656"]
["MGMAAcademicAllOB/GYN: Gynecological OncologyL","OB/GYN: Gynecological Oncology","Code","MGMA","Academic","All",2022,"4,261",4531.6000000000004,4802.2,5072.8,5343.4,"5,614",5919.2,6224.4,6529.6,6834.8,"7,140",7457,7774,"8,725"]
["MGMAAcademicAllOB/GYN: Maternal and Fetal MedicineL","OB/GYN: Maternal and Fetal Medicine","Code","MGMA","Academic","All",2022,"4,515",4738.8,4962.6000000000004,5186.3999999999996,5410.2,"5,634",5888.4,6142.8,6397.2,6651.6,"6,906",7254,7602,"8,646"]
["MGMAAcademicAllOB/GYN: Minimally Invasive Gynecologic SurgeryL","OB/GYN: Minimally Invasive Gynecologic Surgery","Code","MGMA","Academic","All",2022,"*","*","*","*","*","*","*","*","*","*","*","*","*","*"]
["MGMAAcademicAllOB/GYN: Reproductive EndocrinologyL","OB/GYN: Reproductive Endocrinology","Code","MGMA","Academic","All",2022,"3,515",3795.4,4075.8,4356.2,4636.6000000000004,"4,917",5068,5219,5370,5521,"5,672",5920,6168,"6,912"]
["MGMAAcademicAllOB/GYN: UrogynecologyL","OB/GYN: Urogynecology","Code","MGMA","Academic","All",2022,"3,468",3798,4128,4458,4788,"5,118",5353.4,5588.8,5824.2,6059.6,"6,295",6609.2,6923.4,"7,866"]
["MGMAAcademicAllOccupational MedicineL","Occupational Medicine","Code","MGMA","Academic","All",2022,"*","*","*","*","*","*","*","*","*","*","*","*","*","*"]
["MGMAAcademicAllOphthalmologyL","Ophthalmology","Code","MGMA","Academic","All",2022,"3,982",4336.8,4691.6000000000004,5046.3999999999996,5401.2,"5,756",6228.6,6701.2,7173.8,7646.4,"8,119",8608.4,9097.7999999999993,"10,566"]
["MGMAAcademicAllOphthalmology: Corneal and Refractive SurgeryL","Ophthalmology: Corneal and Refractive Surgery","Code","MGMA","Academic","All",2022,"6,199",6506.6,6814.2,7121.8,7429.4,"7,737",8096,8455,8814,9173,"9,532",9994.6,10457.200000000001,"11,845"]
["MGMAAcademicAllOphthalmology: GlaucomaL","Ophthalmology: Glaucoma","Code","MGMA","Academic","All",2022,"5,244",5878.2,6512.4,7146.6,7780.8,"8,415",8717.7999999999993,9020.6,9323.4,9626.2000000000007,"9,929",10630.6,11332.2,"13,437"]
["MGMAAcademicAllOphthalmology: NeurologyL","Ophthalmology: Neurology","Code","MGMA","Academic","All",2022,"*","*","*","*","*","*","*","*","*","*","*","*","*","*"]
["MGMAAcademicAllOphthalmology: Oculoplastic and Reconstructive SurgeryL","Ophthalmology: Oculoplastic and Reconstructive Surgery","Code","MGMA","Academic","All",2022,"5,124",5419.8,5715.6,6011.4,6307.2,"6,603",6812,7021,7230,7439,"7,648",7946.2,8244.4,"9,139"]
["MGMAAcademicAllOphthalmology: RetinaL","Ophthalmology: Retina","Code","MGMA","Academic","All",2022,"7,258",7592.2,7926.4,8260.6,8594.7999999999993,"8,929",9618,10307,10996,11685,"12,374",12769.8,13165.6,"14,353"]
["MGMAAcademicAllOrthopedic (Nonsurgical)L","Orthopedic (Nonsurgical)","Code","MGMA","Academic","All",2022,"3,445",3822.4,4199.8,4577.2,4954.6000000000004,"5,332",5613.8,5895.6,6177.4,6459.2,"6,741",7268.4,7795.8,"9,378"]
["MGMAAcademicAllOrthopedic Surgery: GeneralL","Orthopedic Surgery: General","Code","MGMA","Academic","All",2022,"3,648",4521.3999999999996,5394.8,6268.2000000000007,7141.6,"8,015",8215,8415,8615,8815,"9,015",9456.2000000000007,9897.4,"11,221"]
["MGMAAcademicAllOrthopedic Surgery: Foot and AnkleL","Orthopedic Surgery: Foot and Ankle","Code","MGMA","Academic","All",2022,"5,421",5878.4,6335.8,6793.2,7250.6,"7,708",8026.6,8345.2000000000007,8663.7999999999993,8982.4,"9,301",9850.2000000000007,10399.4,"12,047"]
["MGMAAcademicAllOrthopedic Surgery: HandL","Orthopedic Surgery: Hand","Code","MGMA","Academic","All",2022,"6,440",6909.8,7379.6,7849.4,8319.2000000000007,"8,789",9279.2000000000007,9769.4,10259.6,10749.8,"11,240",11772.8,12305.6,"13,904"]
["MGMAAcademicAllOrthopedic Surgery: Hip and JointL","Orthopedic Surgery: Hip and Joint","Code","MGMA","Academic","All",2022,"7,556",8053.2,8550.4,9047.6,9544.7999999999993,"10,042",10603.2,11164.4,11725.6,12286.8,"12,848",13134.4,13420.8,"14,280"]
["MGMAAcademicAllOrthopedic Surgery: OncologyL","Orthopedic Surgery: Oncology","Code","MGMA","Academic","All",2022,"4,496",5042.8,5589.6,6136.4,6683.2,"7,230",7471.2,7712.4,7953.6,8194.7999999999993,"8,436",8982.6,9529.2000000000007,"11,169"]
["MGMAAcademicAllOrthopedic Surgery: Shoulder/ElbowL","Orthopedic Surgery: Shoulder/Elbow","Code","MGMA","Academic","All",2022,"8,170",8316.4,8462.7999999999993,8609.2000000000007,8755.6,"8,902",9981.2000000000007,11060.4,12139.6,13218.8,"14,298",14829.2,15360.4,"16,954"]
["MGMAAcademicAllOrthopedic Surgery: SpineL","Orthopedic Surgery: Spine","Code","MGMA","Academic","All",2022,"5,998",6705.6,7413.2,8120.8,8828.4,"9,536",10368.6,11201.2,12033.8,12866.4,"13,699",14137.2,14575.4,"15,890"]
["MGMAAcademicAllOrthopedic Surgery: Sports MedicineL","Orthopedic Surgery: Sports Medicine","Code","MGMA","Academic","All",2022,"6,091",6899.6,7708.2,8516.7999999999993,9325.4,"10,134",10562,10990,11418,11846,"12,274",12908.8,13543.6,"15,448"]
["MGMAAcademicAllOrthopedic Surgery: TraumaL","Orthopedic Surgery: Trauma","Code","MGMA","Academic","All",2022,"7,171",7475,7779,8083,8387,"8,691",9143.7999999999993,9596.6,10049.4,10502.2,"10,955",11432.2,11909.4,"13,341"]
["MGMAAcademicAllOtorhinolaryngologyL","Otorhinolaryngology","Code","MGMA","Academic","All",2022,"5,411",5686.4,5961.8,6237.2,6512.6,"6,788",7179.2,7570.4,7961.6,8352.7999999999993,"8,744",9316,9888,"11,604"]
["MGMAAcademicAllPain Management: NonanesthesiaL","Pain Management: Nonanesthesia","Code","MGMA","Academic","All",2022,"4,225",4400.6000000000004,4576.2,4751.8,4927.3999999999996,"5,103",5319,5535,5751,5967,"6,183",6517.4,6851.8,"7,855"]
["MGMAAcademicAllPathology: Anatomic and ClinicalL","Pathology: Anatomic and Clinical","Code","MGMA","Academic","All",2022,"5,676",5821,5966,6111,6256,"6,401",6629,6857,7085,7313,"7,541",7991.2,8441.4,"9,792"]
[{"$f":"D67&E67&F67&B67&\"L\"","v":"MGMAAcademicAllPathology: AnatomicL"},"Pathology: Anatomic","Code","MGMA","Academic","All",2022,"3,531",{"$f":"IFERROR((((M67-H67)/25)*5) + H67,\"*\")","v":3860.6},{"$f":"IFERROR((((M67-H67)/25)*10) + H67,\"*\")","v":4190.2},{"$f":"IFERROR((((M67-H67)/25)*15) + H67,\"*\")","v":4519.8},{"$f":"IFERROR((((M67-H67)/25)*20) + H67,\"*\")","v":4849.3999999999996},"5,179",{"$f":"IFERROR((((R67-M67)/25)*5) + M67, \"*\")","v":5599.8},{"$f":"IFERROR((((R67-M67)/25)*10) + M67,\"*\")","v":6020.6},{"$f":"IFERROR((((R67-M67)/25)*15) + M67,\"*\")","v":6441.4},{"$f":"IFERROR((((R67-M67)/25)*20) + M67,\"*\")","v":6862.2},"7,283",{"$f":"IFERROR((((U67-R67)/25)*5) + R67,\"*\")","v":7602.8},{"$f":"IFERROR((((U67-R67)/25)*10) + R67,\"*\")","v":7922.6},"8,882"]
["MGMAAcademicAllPathology: Anatomic-CytopathologyL","Pathology: Anatomic-Cytopathology","Code","MGMA","Academic","All",2022,"3,696",3965.8,4235.6000000000004,4505.3999999999996,4775.2,"5,045",5338.2,5631.4,5924.6,6217.8,"6,511",6854,7197,"8,226"]
["MGMAAcademicAllPathology: Anatomic-NeuropathologyL","Pathology: Anatomic-Neuropathology","Code","MGMA","Academic","All",2022,"*","*","*","*","*","*","*","*","*","*","*","*","*","*"]
["MGMAAcademicAllPathology: Anatomic-RenalL","Pathology: Anatomic-Renal","Code","MGMA","Academic","All",2022,"*","*","*","*","*","*","*","*","*","*","*","*","*","*"]
["MGMAAcademicAllPathology: ClinicalL","Pathology: Clinical","Code","MGMA","Academic","All",2022,"2,359",2632,2905,3178,3451,"3,724",4098.6000000000004,4473.2,4847.8,5222.3999999999996,"5,597",6034,6471,"7,782"]
["MGMAAcademicAllPathology: Clinical-HematopathologyL","Pathology: Clinical-Hematopathology","Code","MGMA","Academic","All",2022,"2,911",3043.2,3175.4,3307.6,3439.8,"3,572",4126.3999999999996,4680.8,5235.2,5789.6,"6,344",6481,6618,"7,029"]
["MGMAAcademicAllPathology: Clinical-Transfusion MedicineL","Pathology: Clinical-Transfusion Medicine","Code","MGMA","Academic","All",2022,"*","*","*","*","*","*","*","*","*","*","*","*","*","*"]
["MGMAAcademicAllPathology: SurgicalL","Pathology: Surgical","Code","MGMA","Academic","All",2022,"5,406",5594.6,5783.2,5971.8,6160.4,"6,349",6590.6,6832.2,7073.8,7315.4,"7,557",7789.4,8021.8,"8,719"]
["MGMAAcademicAllPediatrics: GeneralL","Pediatrics: General","Code","MGMA","Academic","All",2022,"2,806",3067.2,3328.4,3589.6,3850.8,"4,112",4401.2,4690.3999999999996,4979.6000000000004,5268.8,"5,558",5862.4,6166.8,"7,080"]
["MGMAAcademicAllPediatrics: Adolescent MedicineL","Pediatrics: Adolescent Medicine","Code","MGMA","Academic","All",2022,"2,001",2123.8000000000002,2246.6,2369.4,2492.1999999999998,"2,615",2720.4,2825.8,2931.2,3036.6,"3,142",3242.2,3342.4,"3,643"]
["MGMAAcademicAllPediatrics: Allergy/ImmunologyL","Pediatrics: Allergy/Immunology","Code","MGMA","Academic","All",2022,"2,119",2213.8000000000002,2308.6,2403.4,2498.1999999999998,"2,593",2752.6,2912.2,3071.8,3231.4,"3,391",3489,3587,"3,881"]
["MGMAAcademicAllPediatrics: Bone Marrow TransplantL","Pediatrics: Bone Marrow Transplant","Code","MGMA","Academic","All",2022,"*","*","*","*","*","*","*","*","*","*","*","*","*","*"]
["MGMAAcademicAllPediatrics: CardiologyL","Pediatrics: Cardiology","Code","MGMA","Academic","All",2022,"2,635",2864.6,3094.2,3323.8,3553.4,"3,783",3963.8,4144.6000000000004,4325.3999999999996,4506.2,"4,687",4972,5257,"6,112"]
["MGMAAcademicAllPediatrics: Cardiovascular SurgeryL","Pediatrics: Cardiovascular Surgery","Code","MGMA","Academic","All",2022,"4,229",4622.3999999999996,5015.8,5409.2,5802.6,"6,196",7014.8,7833.6,8652.4,9471.2000000000007,"10,290",10537.2,10784.4,"11,526"]
["MGMAAcademicAllPediatrics: Child DevelopmentL","Pediatrics: Child Development","Code","MGMA","Academic","All",2022,"1,412",1565,1718,1871,2024,"2,177",2315,2453,2591,2729,"2,867",2998.4,3129.8,"3,524"]
["MGMAAcademicAllPediatrics: Critical Care/IntensivistL","Pediatrics: Critical Care/Intensivist","Code","MGMA","Academic","All",2022,"3,148",3336,3524,3712,3900,"4,088",4438.8,4789.6000000000004,5140.3999999999996,5491.2,"5,842",6087.8,6333.6,"7,071"]
["MGMAAcademicAllPediatrics: DermatologyL","Pediatrics: Dermatology","Code","MGMA","Academic","All",2022,"3,867",4100.2,4333.3999999999996,4566.6000000000004,4799.8,"5,033",5273,5513,5753,5993,"6,233",6487.8,6742.6,"7,507"]
["MGMAAcademicAllPediatrics: Emergency MedicineL","Pediatrics: Emergency Medicine","Code","MGMA","Academic","All",2022,"3,600",3734,3868,4002,4136,"4,270",4455.6000000000004,4641.2,4826.8,5012.3999999999996,"5,198",5341.4,5484.8,"5,915"]
["MGMAAcademicAllPediatrics: EndocrinologyL","Pediatrics: Endocrinology","Code","MGMA","Academic","All",2022,"2,075",2273.4,2471.8000000000002,2670.2,2868.6,"3,067",3233,3399,3565,3731,"3,897",4005,4113,"4,437"]
["MGMAAcademicAllPediatrics: GastroenterologyL","Pediatrics: Gastroenterology","Code","MGMA","Academic","All",2022,"3,114",3219.8,3325.6,3431.4,3537.2,"3,643",3711.2,3779.4,3847.6,3915.8,"3,984",4076,4168,"4,444"]
["MGMAAcademicAllPediatrics: GeneticsL","Pediatrics: Genetics","Code","MGMA","Academic","All",2022,"*","*","*","*","*","*","*","*","*","*","*","*","*","*"]
["MGMAAcademicAllPediatrics: Hematology/OncologyL","Pediatrics: Hematology/Oncology","Code","MGMA","Academic","All",2022,"1,748",1868.6,1989.2,2109.8000000000002,2230.4,"2,351",2504.1999999999998,2657.4,2810.6,2963.8,"3,117",3419.2,3721.4,"4,628"]
["MGMAAcademicAllPediatrics: HospitalistL","Pediatrics: Hospitalist","Code","MGMA","Academic","All",2022,"1,236",1345.6,1455.2,1564.8,1674.4,"1,784",1940.4,2096.8000000000002,2253.1999999999998,2409.6,"2,566",2733,2900,"3,401"]
["MGMAAcademicAllPediatrics: Infectious DiseaseL","Pediatrics: Infectious Disease","Code","MGMA","Academic","All",2022,"853",927.4,1001.8,1076.2,1150.5999999999999,"1,225",1308,1391,1474,1557,"1,640",1805.6,1971.2,"2,468"]
["MGMAAcademicAllPediatrics: Internal MedicineL","Pediatrics: Internal Medicine","Code","MGMA","Academic","All",2022,"*","*","*","*","*","*","*","*","*","*","*","*","*","*"]
["MGMAAcademicAllPediatrics: Neonatal MedicineL","Pediatrics: Neonatal Medicine","Code","MGMA","Academic","All",2022,"5,612",6288.8,6965.6,7642.4,8319.2000000000007,"8,996",9378,9760,10142,10524,"10,906",11306.2,11706.4,"12,907"]
["MGMAAcademicAllPediatrics: NephrologyL","Pediatrics: Nephrology","Code","MGMA","Academic","All",2022,"2,334",2548,2762,2976,3190,"3,404",3783.6,4163.2,4542.8,4922.3999999999996,"5,302",5581.2,5860.4,"6,698"]
["MGMAAcademicAllPediatrics: NeurologyL","Pediatrics: Neurology","Code","MGMA","Academic","All",2022,"2,527",2671.2,2815.4,2959.6,3103.8,"3,248",3430.4,3612.8,3795.2,3977.6,"4,160",4400.2,4640.3999999999996,"5,361"]
["MGMAAcademicAllPediatrics: NeurosurgeryL","Pediatrics: Neurosurgery","Code","MGMA","Academic","All",2022,"4,091",4332.2,4573.3999999999996,4814.6000000000004,5055.8,"5,297",5459.6,5622.2,5784.8,5947.4,"6,110",6520.2,6930.4,"8,161"]
["MGMAAcademicAllPediatrics: OphthalmologyL","Pediatrics: Ophthalmology","Code","MGMA","Academic","All",2022,"4,057",4307.2,4557.3999999999996,4807.6000000000004,5057.8,"5,308",5676.6,6045.2,6413.8,6782.4,"7,151",7555.2,7959.4,"9,172"]
["MGMAAcademicAllPediatrics: Orthopedic SurgeryL","Pediatrics: Orthopedic Surgery","Code","MGMA","Academic","All",2022,"4,742",4977,5212,5447,5682,"5,917",6356.8,6796.6,7236.4,7676.2,"8,116",8468.7999999999993,8821.6,"9,880"]
["MGMAAcademicAllPediatrics: OtorhinolaryngologyL","Pediatrics: Otorhinolaryngology","Code","MGMA","Academic","All",2022,"4,561",4764.2,4967.3999999999996,5170.6000000000004,5373.8,"5,577",5664.6,5752.2,5839.8,5927.4,"6,015",6308.2,6601.4,"7,481"]
["MGMAAcademicAllPediatrics: Plastic and Reconstruction SurgeryL","Pediatrics: Plastic and Reconstruction Surgery","Code","MGMA","Academic","All",2022,"*","*","*","*","*","*","*","*","*","*","*","*","*","*"]
["MGMAAcademicAllPediatrics: PulmonologyL","Pediatrics: Pulmonology","Code","MGMA","Academic","All",2022,"2,336",2466.8000000000002,2597.6,2728.4,2859.2,"2,990",3172.4,3354.8,3537.2,3719.6,"3,902",4011.2,4120.3999999999996,"4,448"]
["MGMAAcademicAllPediatrics: RadiologyL","Pediatrics: Radiology","Code","MGMA","Academic","All",2022,"3,727",3966.2,4205.3999999999996,4444.6000000000004,4683.8,"4,923",5222.2,5521.4,5820.6,6119.8,"6,419",6806,7193,"8,354"]
["MGMAAcademicAllPediatrics: RheumatologyL","Pediatrics: Rheumatology","Code","MGMA","Academic","All",2022,"1,326",1512.8,1699.6,1886.4,2073.1999999999998,"2,260",2439.1999999999998,2618.4,2797.6,2976.8,"3,156",3332.6,3509.2,"4,039"]
["MGMAAcademicAllPediatrics: Sports MedicineL","Pediatrics: Sports Medicine","Code","MGMA","Academic","All",2022,"*","*","*","*","*","*","*","*","*","*","*","*","*","*"]
["MGMAAcademicAllPediatrics: SurgeryL","Pediatrics: Surgery","Code","MGMA","Academic","All",2022,"2,400",2770.4,3140.8,3511.2,3881.6,"4,252",4490.6000000000004,4729.2,4967.8,5206.3999999999996,"5,445",5807.6,6170.2,"7,258"]
["MGMAAcademicAllPediatrics: Urgent CareL","Pediatrics: Urgent Care","Code","MGMA","Academic","All",2022,"*","*","*","*","*","*","*","*","*","*","*","*","*","*"]
["MGMAAcademicAllPediatrics: UrologyL","Pediatrics: Urology","Code","MGMA","Academic","All",2022,"4,303",4673.2,5043.3999999999996,5413.6,5783.8,"6,154",6554.6,6955.2,7355.8,7756.4,"8,157",8361.7999999999993,8566.6,"9,181"]
["MGMAAcademicAllPhysiatry (Physical Medicine and Rehabilitation)L","Physiatry (Physical Medicine and Rehabilitation)","Code","MGMA","Academic","All",2022,"3,191",3404.8,3618.6,3832.4,4046.2,"4,260",4459,4658,4857,5056,"5,255",5467.6,5680.2,"6,318"]
["MGMAAcademicAllPodiatry: GeneralL","Podiatry: General","Code","MGMA","Academic","All",2022,"4,048",4401.3999999999996,4754.8,5108.2,5461.6,"5,815",6034.8,6254.6,6474.4,6694.2,"6,914",7362.4,7810.8,"9,156"]
["MGMAAcademicAllPodiatry: Surgery-Foot and AnkleL","Podiatry: Surgery-Foot and Ankle","Code","MGMA","Academic","All",2022,"5,622",5995.4,6368.8,6742.2,7115.6,"7,489",7652.8,7816.6,7980.4,8144.2,"8,308",8401,8494,"8,773"]
["MGMAAcademicAllPsychiatry: GeneralL","Psychiatry: General","Code","MGMA","Academic","All",2022,"1,923",2149,2375,2601,2827,"3,053",3262.8,3472.6,3682.4,3892.2,"4,102",4366,4630,"5,422"]
["MGMAAcademicAllPsychiatry: Addiction MedicineL","Psychiatry: Addiction Medicine","Code","MGMA","Academic","All",2022,"*","*","*","*","*","*","*","*","*","*","*","*","*","*"]
["MGMAAcademicAllPsychiatry: Behavioral MedicineL","Psychiatry: Behavioral Medicine","Code","MGMA","Academic","All",2022,"*","*","*","*","*","*","*","*","*","*","*","*","*","*"]
["MGMAAcademicAllPsychiatry: Child and AdolescentL","Psychiatry: Child and Adolescent","Code","MGMA","Academic","All",2022,"1,312",1538.2,1764.4,1990.6,2216.8000000000002,"2,443",2635.4,2827.8,3020.2,3212.6,"3,405",3645.6,3886.2,"4,608"]
["MGMAAcademicAllPsychiatry: ForensicL","Psychiatry: Forensic","Code","MGMA","Academic","All",2022,"*","*","*","*","*","*","*","*","*","*","*","*","*","*"]
["MGMAAcademicAllPsychiatry: GeriatricL","Psychiatry: Geriatric","Code","MGMA","Academic","All",2022,"*","*","*","*","*","*","*","*","*","*","*","*","*","*"]
["MGMAAcademicAllPulmonary Medicine: GeneralL","Pulmonary Medicine: General","Code","MGMA","Academic","All",2022,"2,739",3013.2,3287.4,3561.6,3835.8,"4,110",4416,4722,5028,5334,"5,640",5920.2,6200.4,"7,041"]
["MGMAAcademicAllPulmonary Medicine: Critical CareL","Pulmonary Medicine: Critical Care","Code","MGMA","Academic","All",2022,"4,174",4491,4808,5125,5442,"5,759",6024.6,6290.2,6555.8,6821.4,"7,087",7498.2,7909.4,"9,143"]
["MGMAAcademicAllPulmonary Medicine: General and Critical CareL","Pulmonary Medicine: General and Critical Care","Code","MGMA","Academic","All",2022,"4,939",5100.2,5261.4,5422.6,5583.8,"5,745",5964.8,6184.6,6404.4,6624.2,"6,844",7033.8,7223.6,"7,793"]
["MGMAAcademicAllRadiation OncologyL","Radiation Oncology","Code","MGMA","Academic","All",2022,"6,506",6889.4,7272.8,7656.2,8039.6,"8,423",8935,9447,9959,10471,"10,983",11535.8,12088.6,"13,747"]
["MGMAAcademicAllRadiology: InterventionalL","Radiology: Interventional","Code","MGMA","Academic","All",2022,"4,875",5085.3999999999996,5295.8,5506.2,5716.6,"5,927",6204,6481,6758,7035,"7,312",7614.6,7917.2,"8,825"]
["MGMAAcademicAllRadiology: DiagnosticL","Radiology: Diagnostic","Code","MGMA","Academic","All",2022,"5,587",6017,6447,6877,7307,"7,737",8229.4,8721.7999999999993,9214.2000000000007,9706.6,"10,199",10662.8,11126.6,"12,518"]
["MGMAAcademicAllRadiology: NeurologicalL","Radiology: Neurological","Code","MGMA","Academic","All",2022,"6,438",7195,7952,8709,9466,"10,223",10805.6,11388.2,11970.8,12553.4,"13,136",13663.6,14191.2,"15,774"]
["MGMAAcademicAllRadiology: Nuclear MedicineL","Radiology: Nuclear Medicine","Code","MGMA","Academic","All",2022,"4,215",4363.8,4512.6000000000004,4661.3999999999996,4810.2,"4,959",5247.2,5535.4,5823.6,6111.8,"6,400",6605.8,6811.6,"7,429"]
["MGMAAcademicAllRheumatologyL","Rheumatology","Code","MGMA","Academic","All",2022,"2,483",2693.8,2904.6,3115.4,3326.2,"3,537",3753.6,3970.2,4186.8,4403.3999999999996,"4,620",4751.6000000000004,4883.2,"5,278"]
["MGMAAcademicAllSleep MedicineL","Sleep Medicine","Code","MGMA","Academic","All",2022,"3,418",3591.8,3765.6,3939.4,4113.2,"4,287",4347.3999999999996,4407.8,4468.2,4528.6000000000004,"4,589",5097.2,5605.4,"7,130"]
["MGMAAcademicAllSurgery: GeneralL","Surgery: General","Code","MGMA","Academic","All",2022,"4,575",4834.2,5093.3999999999996,5352.6,5611.8,"5,871",6262.6,6654.2,7045.8,7437.4,"7,829",8107,8385,"9,219"]
["MGMAAcademicAllSurgery: BariatricL","Surgery: Bariatric","Code","MGMA","Academic","All",2022,"5,108",5351.4,5594.8,5838.2,6081.6,"6,325",6523.6,6722.2,6920.8,7119.4,"7,318",7618.8,7919.6,"8,822"]
["MGMAAcademicAllSurgery: BreastL","Surgery: Breast","Code","MGMA","Academic","All",2022,"3,964",4261.8,4559.6000000000004,4857.3999999999996,5155.2,"5,453",5753,6053,6353,6653,"6,953",7024.6,7096.2,"7,311"]
["MGMAAcademicAllSurgery: CardiovascularL","Surgery: Cardiovascular","Code","MGMA","Academic","All",2022,"5,972",6626.4,7280.8,7935.2,8589.6,"9,244",9944,10644,11344,12044,"12,744",13138,13532,"14,714"]
["MGMAAcademicAllSurgery: Colon and RectalL","Surgery: Colon and Rectal","Code","MGMA","Academic","All",2022,"5,093",5414.8,5736.6,6058.4,6380.2,"6,702",6944.8,7187.6,7430.4,7673.2,"7,916",8230.2000000000007,8544.4,"9,487"]
[{"$f":"D131&E131&F131&B131&\"L\"","v":"MGMAAcademicAllSurgery: EndocrineL"},"Surgery: Endocrine","Code","MGMA","Academic","All",2022,"*",{"$f":"IFERROR((((M131-H131)/25)*5) + H131,\"*\")","v":"*"},{"$f":"IFERROR((((M131-H131)/25)*10) + H131,\"*\")","v":"*"},{"$f":"IFERROR((((M131-H131)/25)*15) + H131,\"*\")","v":"*"},{"$f":"IFERROR((((M131-H131)/25)*20) + H131,\"*\")","v":"*"},"*",{"$f":"IFERROR((((R131-M131)/25)*5) + M131, \"*\")","v":"*"},{"$f":"IFERROR((((R131-M131)/25)*10) + M131,\"*\")","v":"*"},{"$f":"IFERROR((((R131-M131)/25)*15) + M131,\"*\")","v":"*"},{"$f":"IFERROR((((R131-M131)/25)*20) + M131,\"*\")","v":"*"},"*",{"$f":"IFERROR((((U131-R131)/25)*5) + R131,\"*\")","v":"*"},{"$f":"IFERROR((((U131-R131)/25)*10) + R131,\"*\")","v":"*"},"*"]
["MGMAAcademicAllSurgery: Endovascular (Primary)L","Surgery: Endovascular (Primary)","Code","MGMA","Academic","All",2022,"*","*","*","*","*","*","*","*","*","*","*","*","*","*"]
["MGMAAcademicAllSurgery: NeurologicalL","Surgery: Neurological","Code","MGMA","Academic","All",2022,"5,799",6433.4,7067.8,7702.2,8336.6,"8,971",9590,10209,10828,11447,"12,066",12952,13838,"16,496"]
["MGMAAcademicAllSurgery: OncologyL","Surgery: Oncology","Code","MGMA","Academic","All",2022,"4,722",5014,5306,5598,5890,"6,182",6463.2,6744.4,7025.6,7306.8,"7,588",8011.4,8434.7999999999993,"9,705"]
["MGMAAcademicAllSurgery: OralL","Surgery: Oral","Code","MGMA","Academic","All",2022,"*","*","*","*","*","*","*","*","*","*","*","*","*","*"]
["MGMAAcademicAllSurgery: Plastic and ReconstructionL","Surgery: Plastic and Reconstruction","Code","MGMA","Academic","All",2022,"5,582",5977,6372,6767,7162,"7,557",8014.6,8472.2000000000007,8929.7999999999993,9387.4,"9,845",10437.200000000001,11029.4,"12,806"]
["MGMAAcademicAllSurgery: Plastic and Reconstruction-HandL","Surgery: Plastic and Reconstruction-Hand","Code","MGMA","Academic","All",2022,"*","*","*","*","*","*","*","*","*","*","*","*","*","*"]
["MGMAAcademicAllSurgery: Thoracic (Primary)L","Surgery: Thoracic (Primary)","Code","MGMA","Academic","All",2022,"4,575",4915.3999999999996,5255.8,5596.2,5936.6,"6,277",6862.2,7447.4,8032.6,8617.7999999999993,"9,203",9397.2000000000007,9591.4,"10,174"]
["MGMAAcademicAllSurgery: TransplantL","Surgery: Transplant","Code","MGMA","Academic","All",2022,"3,882",4209,4536,4863,5190,"5,517",5981,6445,6909,7373,"7,837",8377.2000000000007,8917.4,"10,538"]
["MGMAAcademicAllSurgery: Transplant-HeartL","Surgery: Transplant-Heart","Code","MGMA","Academic","All",2022,"*","*","*","*","*","*","*","*","*","*","*","*","*","*"]
["MGMAAcademicAllSurgery: Transplant-KidneyL","Surgery: Transplant-Kidney","Code","MGMA","Academic","All",2022,"*","*","*","*","*","*","*","*","*","*","*","*","*","*"]
["MGMAAcademicAllSurgery: Transplant-LiverL","Surgery: Transplant-Liver","Code","MGMA","Academic","All",2022,"*","*","*","*","*","*","*","*","*","*","*","*","*","*"]
["MGMAAcademicAllSurgery: TraumaL","Surgery: Trauma","Code","MGMA","Academic","All",2022,"5,395",5673.2,5951.4,6229.6,6507.8,"6,786",7253.6,7721.2,8188.8,8656.4,"9,124",9670.2000000000007,10216.4,"11,855"]
["MGMAAcademicAllSurgery: Trauma-BurnL","Surgery: Trauma-Burn","Code","MGMA","Academic","All",2022,"*","*","*","*","*","*","*","*","*","*","*","*","*","*"]
["MGMAAcademicAllSurgery: Vascular (Primary)L","Surgery: Vascular (Primary)","Code","MGMA","Academic","All",2022,"5,500",5908.4,6316.8,6725.2,7133.6,"7,542",7970.6,8399.2000000000007,8827.7999999999993,9256.4,"9,685",10017,10349,"11,345"]
["MGMAAcademicAllUrgent CareL","Urgent Care","Code","MGMA","Academic","All",2022,"3,783",4175.8,4568.6000000000004,4961.3999999999996,5354.2,"5,747",5981,6215,6449,6683,"6,917",7141.2,7365.4,"8,038"]
["MGMAAcademicAllUrologyL","Urology","Code","MGMA","Academic","All",2022,"5,589",5962.8,6336.6,6710.4,7084.2,"7,458",7793,8128,8463,8798,"9,133",9399.7999999999993,9666.6,"10,467"]
["MGMAAcademicAllAudiologistL","Audiologist","Code","MGMA","Academic","All",2022,"*","*","*","*","*","*","*","*","*","*","*","*","*","*"]
["MGMAAcademicAllChiropractorL","Chiropractor","Code","MGMA","Academic","All",2022,"*","*","*","*","*","*","*","*","*","*","*","*","*","*"]
["MGMAAcademicAllClinical Nurse Specialist L","Clinical Nurse Specialist ","Code","MGMA","Academic","All",2022,"*","*","*","*","*","*","*","*","*","*","*","*","*","*"]
["MGMAAcademicAllDietician/NutritionistL","Dietician/Nutritionist","Code","MGMA","Academic","All",2022,"*","*","*","*","*","*","*","*","*","*","*","*","*","*"]
["MGMAAcademicAllGenetic Counselor L","Genetic Counselor ","Code","MGMA","Academic","All",2022,"*","*","*","*","*","*","*","*","*","*","*","*","*","*"]
["MGMAAcademicAllLicensed Clinical Social WorkerL","Licensed Clinical Social Worker","Code","MGMA","Academic","All",2022,"1,204",1407,1610,1813,2016,"2,219",2346,2473,2600,2727,"2,854",2944.8,3035.6,"3,308"]
["MGMAAcademicAllNurse Midwife: Outpatient/Inpatient DeliveriesL","Nurse Midwife: Outpatient/Inpatient Deliveries","Code","MGMA","Academic","All",2022,"2,198",2284.4,2370.8000000000002,2457.1999999999998,2543.6,"2,630",2784.6,2939.2,3093.8,3248.4,"3,403",3429.6,3456.2,"3,536"]
["MGMAAcademicAllNurse Midwife: Outpatient (Only)L","Nurse Midwife: Outpatient (Only)","Code","MGMA","Academic","All",2022,"*","*","*","*","*","*","*","*","*","*","*","*","*","*"]
["MGMAAcademicAllNurse Midwife: Inpatient (Only)L","Nurse Midwife: Inpatient (Only)","Code","MGMA","Academic","All",2022,"*","*","*","*","*","*","*","*","*","*","*","*","*","*"]
["MGMAAcademicAllNP (Surgical)L","NP (Surgical)","Code","MGMA","Academic","All",2022,"353",400,447,494,541,"588",727.2,866.4,1005.6,1144.8,"1,284",1467.4,1650.8,"2,201"]
["MGMAAcademicAllNP: AnesthesiologyL","NP: Anesthesiology","Code","MGMA","Academic","All",2022,"659",715.8,772.6,829.4,886.2,"943",1018.4,1093.8,1169.2,1244.5999999999999,"1,320",1414.2,1508.4,"1,791"]
["MGMAAcademicAllNP: Cardiothoracic SurgeryL","NP: Cardiothoracic Surgery","Code","MGMA","Academic","All",2022,"160",172,184,196,208,"220",244.2,268.39999999999998,292.60000000000002,316.8,"341",389.8,438.6,"585"]
["MGMAAcademicAllNP: NeurosurgeryL","NP: Neurosurgery","Code","MGMA","Academic","All",2022,"668",792.4,916.8,1041.2,1165.5999999999999,"1,290",1405.4,1520.8,1636.2,1751.6,"1,867",2000.4,2133.8000000000002,"2,534"]
["MGMAAcademicAllNP: Orthopedics (Surgical)L","NP: Orthopedics (Surgical)","Code","MGMA","Academic","All",2022,"1,126",1240.4000000000001,1354.8,1469.2,1583.6,"1,698",2002.6,2307.1999999999998,2611.8000000000002,2916.4,"3,221",3371.2,3521.4,"3,972"]
["MGMAAcademicAllNP: OtorhinolaryngologyL","NP: Otorhinolaryngology","Code","MGMA","Academic","All",2022,"1,309",1426.6,1544.2,1661.8,1779.4,"1,897",2086.1999999999998,2275.4,2464.6,2653.8,"2,843",3018.2,3193.4,"3,719"]
["MGMAAcademicAllNP: Surgery: GeneralL","NP: Surgery: General","Code","MGMA","Academic","All",2022,"427",536,645,754,863,"972",1067.2,1162.4000000000001,1257.5999999999999,1352.8,"1,448",1581.2,1714.4,"2,114"]
["MGMAAcademicAllNP: UrologyL","NP: Urology","Code","MGMA","Academic","All",2022,"1,227",1406.4,1585.8,1765.2,1944.6,"2,124",2276.8000000000002,2429.6,2582.4,2735.2,"2,888",3094.8,3301.6,"3,922"]
["MGMAAcademicAllNP (Primary Care)L","NP (Primary Care)","Code","MGMA","Academic","All",2022,"*","*","*","*","*","*","*","*","*","*","*","*","*","*"]
["MGMAAcademicAllNP: AdultL","NP: Adult","Code","MGMA","Academic","All",2022,"*","*","*","*","*","*","*","*","*","*","*","*","*","*"]
["MGMAAcademicAllNP: Family Medicine (with OB)L","NP: Family Medicine (with OB)","Code","MGMA","Academic","All",2022,"*","*","*","*","*","*","*","*","*","*","*","*","*","*"]
["MGMAAcademicAllNP: Family Medicine (without OB)L","NP: Family Medicine (without OB)","Code","MGMA","Academic","All",2022,"3,099",3234.8,3370.6,3506.4,3642.2,"3,778",4007.6,4237.2,4466.8,4696.3999999999996,"4,926",5126.2,5326.4,"5,927"]
["MGMAAcademicAllNP: Gerontology/Elder HealthL","NP: Gerontology/Elder Health","Code","MGMA","Academic","All",2022,"*","*","*","*","*","*","*","*","*","*","*","*","*","*"]
["MGMAAcademicAllNP: Hospice/Palliative CareL","NP: Hospice/Palliative Care","Code","MGMA","Academic","All",2022,"*","*","*","*","*","*","*","*","*","*","*","*","*","*"]
["MGMAAcademicAllNP: Hospitalist (Primary Care)L","NP: Hospitalist (Primary Care)","Code","MGMA","Academic","All",2022,"311",387.8,464.6,541.4,618.20000000000005,"695",793.6,892.2,990.8,1089.4000000000001,"1,188",1342.2,1496.4,"1,959"]
["MGMAAcademicAllNP: Internal MedicineL","NP: Internal Medicine","Code","MGMA","Academic","All",2022,"956",1150.5999999999999,1345.2,1539.8000000000002,1734.4,"1,929",2100.8000000000002,2272.6,2444.4,2616.1999999999998,"2,788",2885.8,2983.6,"3,277"]
["MGMAAcademicAllNP: OB/GYN/Women's HealthL","NP: OB/GYN/Women's Health","Code","MGMA","Academic","All",2022,"1,507",1675.8,1844.6,2013.4,2182.1999999999998,"2,351",2469.1999999999998,2587.4,2705.6,2823.8,"2,942",3112.6,3283.2,"3,795"]
["MGMAAcademicAllNP: Pediatric/Child HealthL","NP: Pediatric/Child Health","Code","MGMA","Academic","All",2022,"756",967.2,1178.4000000000001,1389.6,1600.8000000000002,"1,812",1964.2,2116.4,2268.6,2420.8000000000002,"2,573",2776.2,2979.4,"3,589"]
["MGMAAcademicAllNP: Urgent CareL","NP: Urgent Care","Code","MGMA","Academic","All",2022,"*","*","*","*","*","*","*","*","*","*","*","*","*","*"]
["MGMAAcademicAllNP (Nonsurgical/Nonprimary Care)L","NP (Nonsurgical/Nonprimary Care)","Code","MGMA","Academic","All",2022,"1,361",1513.8,1666.6,1819.4,1972.1999999999998,"2,125",2306.8000000000002,2488.6,2670.4,2852.2,"3,034",3225.8,3417.6,"3,993"]
["MGMAAcademicAllNP: Acute CareL","NP: Acute Care","Code","MGMA","Academic","All",2022,"*","*","*","*","*","*","*","*","*","*","*","*","*","*"]
["MGMAAcademicAllNP: Allergy/ImmunologyL","NP: Allergy/Immunology","Code","MGMA","Academic","All",2022,"*","*","*","*","*","*","*","*","*","*","*","*","*","*"]
["MGMAAcademicAllNP: CardiologyL","NP: Cardiology","Code","MGMA","Academic","All",2022,"479",528.79999999999995,578.6,628.4,678.2,"728",913.2,1098.4000000000001,1283.5999999999999,1468.8,"1,654",1749.2,1844.4,"2,130"]
["MGMAAcademicAllNP: DermatologyL","NP: Dermatology","Code","MGMA","Academic","All",2022,"*","*","*","*","*","*","*","*","*","*","*","*","*","*"]
["MGMAAcademicAllNP: Emergency MedicineL","NP: Emergency Medicine","Code","MGMA","Academic","All",2022,"1,009",1272,1535,1798,2061,"2,324",2635,2946,3257,3568,"3,879",4104.2,4329.3999999999996,"5,005"]
["MGMAAcademicAllNP: EndocrinologyL","NP: Endocrinology","Code","MGMA","Academic","All",2022,"2,290",2408.1999999999998,2526.4,2644.6,2762.8,"2,881",2974,3067,3160,3253,"3,346",3582.8,3819.6,"4,530"]
["MGMAAcademicAllNP: GastroenterologyL","NP: Gastroenterology","Code","MGMA","Academic","All",2022,"1,670",1768,1866,1964,2062,"2,160",2256.1999999999998,2352.4,2448.6,2544.8000000000002,"2,641",2797.4,2953.8,"3,423"]
["MGMAAcademicAllNP: Hematology/OncologyL","NP: Hematology/Oncology","Code","MGMA","Academic","All",2022,"806",896.2,986.4,1076.5999999999999,1166.8,"1,257",1380.8,1504.6,1628.4,1752.2,"1,876",1999.8,2123.6,"2,495"]
["MGMAAcademicAllNP: Hospitalist (Nonsurgical/Nonprimary Care)L","NP: Hospitalist (Nonsurgical/Nonprimary Care)","Code","MGMA","Academic","All",2022,"387",571.6,756.2,940.80000000000007,1125.4000000000001,"1,310",1366.6,1423.2,1479.8,1536.4,"1,593",1625.6,1658.2,"1,756"]
["MGMAAcademicAllNP: Infectious DiseaseL","NP: Infectious Disease","Code","MGMA","Academic","All",2022,"*","*","*","*","*","*","*","*","*","*","*","*","*","*"]
["MGMAAcademicAllNP: Neonatal/PerinatalL","NP: Neonatal/Perinatal","Code","MGMA","Academic","All",2022,"*","*","*","*","*","*","*","*","*","*","*","*","*","*"]
["MGMAAcademicAllNP: NephrologyL","NP: Nephrology","Code","MGMA","Academic","All",2022,"680",731.4,782.8,834.2,885.6,"937",1121.8,1306.5999999999999,1491.4,1676.2,"1,861",2079.1999999999998,2297.4,"2,952"]
["MGMAAcademicAllNP: NeurologyL","NP: Neurology","Code","MGMA","Academic","All",2022,"945",1053.8,1162.5999999999999,1271.4000000000001,1380.2,"1,489",1659,1829,1999,2169,"2,339",2513.6,2688.2,"3,212"]
["MGMAAcademicAllNP: Orthopedics (Nonsurgical/Nonprimary Care)L","NP: Orthopedics (Nonsurgical/Nonprimary Care)","Code","MGMA","Academic","All",2022,"584",748,912,1076,1240,"1,404",1516.4,1628.8,1741.2,1853.6,"1,966",2132.4,2298.8000000000002,"2,798"]
["MGMAAcademicAllNP: PhysiatryL","NP: Physiatry","Code","MGMA","Academic","All",2022,"*","*","*","*","*","*","*","*","*","*","*","*","*","*"]
["MGMAAcademicAllNP: PsychiatryL","NP: Psychiatry","Code","MGMA","Academic","All",2022,"1,322",1510.8,1699.6,1888.4,2077.1999999999998,"2,266",2411.6,2557.1999999999998,2702.8,2848.4,"2,994",3284,3574,"4,444"]
["MGMAAcademicAllNP: Pulmonary MedicineL","NP: Pulmonary Medicine","Code","MGMA","Academic","All",2022,"328",572.79999999999995,817.6,1062.4000000000001,1307.2,"1,552",1630.6,1709.2,1787.8,1866.4,"1,945",2006.6,2068.1999999999998,"2,253"]
["MGMAAcademicAllNP: RheumatologyL","NP: Rheumatology","Code","MGMA","Academic","All",2022,"*","*","*","*","*","*","*","*","*","*","*","*","*","*"]
[{"$f":"D195&E195&F195&B195&\"L\"","v":"MGMAAcademicAllOptometristL"},"Optometrist","Code","MGMA","Academic","All",2022,"3,406",{"$f":"IFERROR((((M195-H195)/25)*5) + H195,\"*\")","v":3593.6},{"$f":"IFERROR((((M195-H195)/25)*10) + H195,\"*\")","v":3781.2},{"$f":"IFERROR((((M195-H195)/25)*15) + H195,\"*\")","v":3968.8},{"$f":"IFERROR((((M195-H195)/25)*20) + H195,\"*\")","v":4156.3999999999996},"4,344",{"$f":"IFERROR((((R195-M195)/25)*5) + M195, \"*\")","v":4549.3999999999996},{"$f":"IFERROR((((R195-M195)/25)*10) + M195,\"*\")","v":4754.8},{"$f":"IFERROR((((R195-M195)/25)*15) + M195,\"*\")","v":4960.2},{"$f":"IFERROR((((R195-M195)/25)*20) + M195,\"*\")","v":5165.6000000000004},"5,371",{"$f":"IFERROR((((U195-R195)/25)*5) + R195,\"*\")","v":5516.8},{"$f":"IFERROR((((U195-R195)/25)*10) + R195,\"*\")","v":5662.6},"6,100"]
["MGMAAcademicAllPhDL","PhD","Code","MGMA","Academic","All",2022,"899",1016.2,1133.4000000000001,1250.5999999999999,1367.8,"1,485",1608,1731,1854,1977,"2,100",2160.8000000000002,2221.6,"2,404"]
["MGMAAcademicAllPhysical TherapistL","Physical Therapist","Code","MGMA","Academic","All",2022,"*","*","*","*","*","*","*","*","*","*","*","*","*","*"]
["MGMAAcademicAllPA (Surgical)L","PA (Surgical)","Code","MGMA","Academic","All",2022,"*","*","*","*","*","*","*","*","*","*","*","*","*","*"]
["MGMAAcademicAllPA: Anesthesiology L","PA: Anesthesiology ","Code","MGMA","Academic","All",2022,"*","*","*","*","*","*","*","*","*","*","*","*","*","*"]
["MGMAAcademicAllPA: Cardiothoracic SurgeryL","PA: Cardiothoracic Surgery","Code","MGMA","Academic","All",2022,"*","*","*","*","*","*","*","*","*","*","*","*","*","*"]
["MGMAAcademicAllPA: NeurosurgeryL","PA: Neurosurgery","Code","MGMA","Academic","All",2022,"*","*","*","*","*","*","*","*","*","*","*","*","*","*"]
["MGMAAcademicAllPA: Orthopedic (Surgical)L","PA: Orthopedic (Surgical)","Code","MGMA","Academic","All",2022,"1,211",1355.2,1499.4,1643.6,1787.8,"1,932",2025.8,2119.6,2213.4,2307.1999999999998,"2,401",2596.8000000000002,2792.6,"3,380"]
["MGMAAcademicAllPA: OtorhinolaryngologyL","PA: Otorhinolaryngology","Code","MGMA","Academic","All",2022,"*","*","*","*","*","*","*","*","*","*","*","*","*","*"]
["MGMAAcademicAllPA: Surgery: GeneralL","PA: Surgery: General","Code","MGMA","Academic","All",2022,"234",327.39999999999998,420.8,514.20000000000005,607.6,"701",888.6,1076.2,1263.8000000000002,1451.4,"1,639",2049.4,2459.8000000000002,"3,691"]
["MGMAAcademicAllPA: UrologyL","PA: Urology","Code","MGMA","Academic","All",2022,"*","*","*","*","*","*","*","*","*","*","*","*","*","*"]
["MGMAAcademicAllPA (Primary Care)L","PA (Primary Care)","Code","MGMA","Academic","All",2022,"5,014",5204.6000000000004,5395.2,5585.8,5776.4,"5,967",6164,6361,6558,6755,"6,952",7179.8,7407.6,"8,091"]
["MGMAAcademicAllPA: Family Medicine (without OB)L","PA: Family Medicine (without OB)","Code","MGMA","Academic","All",2022,"3,410",3570.4,3730.8,3891.2,4051.6,"4,212",4451,4690,4929,5168,"5,407",5541.8,5676.6,"6,081"]
["MGMAAcademicAllPA: Hospitalist (Primary Care)L","PA: Hospitalist (Primary Care)","Code","MGMA","Academic","All",2022,"*","*","*","*","*","*","*","*","*","*","*","*","*","*"]
["MGMAAcademicAllPA: Internal MedicineL","PA: Internal Medicine","Code","MGMA","Academic","All",2022,"614",861,1108,1355,1602,"1,849",2024,2199,2374,2549,"2,724",2839,2954,"3,299"]
["MGMAAcademicAllPA: OB/GYN/Women's HealthL","PA: OB/GYN/Women's Health","Code","MGMA","Academic","All",2022,"*","*","*","*","*","*","*","*","*","*","*","*","*","*"]
["MGMAAcademicAllPA: Pediatric/Child HealthL","PA: Pediatric/Child Health","Code","MGMA","Academic","All",2022,"*","*","*","*","*","*","*","*","*","*","*","*","*","*"]
["MGMAAcademicAllPA: Urgent CareL","PA: Urgent Care","Code","MGMA","Academic","All",2022,"*","*","*","*","*","*","*","*","*","*","*","*","*","*"]
["MGMAAcademicAllPA (Nonsurgical/Nonprimary Care)L","PA (Nonsurgical/Nonprimary Care)","Code","MGMA","Academic","All",2022,"554",718.6,883.2,1047.8,1212.4000000000001,"1,377",1416.8,1456.6,1496.4,1536.2,"1,576",1612.6,1649.2,"1,759"]
["MGMAAcademicAllPA: CardiologyL","PA: Cardiology","Code","MGMA","Academic","All",2022,"678",906.2,1134.4000000000001,1362.6,1590.8,"1,819",1885.2,1951.4,2017.6,2083.8000000000002,"2,150",2195.1999999999998,2240.4,"2,376"]
["MGMAAcademicAllPA: DermatologyL","PA: Dermatology","Code","MGMA","Academic","All",2022,"*","*","*","*","*","*","*","*","*","*","*","*","*","*"]
["MGMAAcademicAllPA: Emergency MedicineL","PA: Emergency Medicine","Code","MGMA","Academic","All",2022,"1,254",1725.2,2196.4,2667.6,3138.8,"3,610",3792.4,3974.8,4157.2,4339.6000000000004,"4,522",4895.8,5269.6,"6,391"]
["MGMAAcademicAllPA: EndocrinologyL","PA: Endocrinology","Code","MGMA","Academic","All",2022,"*","*","*","*","*","*","*","*","*","*","*","*","*","*"]
["MGMAAcademicAllPA: GastroenterologyL","PA: Gastroenterology","Code","MGMA","Academic","All",2022,"1,765",1873.8,1982.6,2091.4,2200.1999999999998,"2,309",2382.4,2455.8000000000002,2529.1999999999998,2602.6,"2,676",2757.4,2838.8,"3,083"]
["MGMAAcademicAllPA: Hematology/OncologyL","PA: Hematology/Oncology","Code","MGMA","Academic","All",2022,"*","*","*","*","*","*","*","*","*","*","*","*","*","*"]
["MGMAAcademicAllPA: NephrologyL","PA: Nephrology","Code","MGMA","Academic","All",2022,"*","*","*","*","*","*","*","*","*","*","*","*","*","*"]
["MGMAAcademicAllPA: NeurologyL","PA: Neurology","Code","MGMA","Academic","All",2022,"*","*","*","*","*","*","*","*","*","*","*","*","*","*"]
["MGMAAcademicAllPA: Orthopedic (Nonsurgical/Nonprimary Care)L","PA: Orthopedic (Nonsurgical/Nonprimary Care)","Code","MGMA","Academic","All",2022,"1,921",2165.4,2409.8000000000002,2654.2,2898.6,"3,143",3753.2,4363.3999999999996,4973.6000000000004,5583.8,"6,194",6374,6554,"7,094"]
["MGMAAcademicAllPA: PsychiatryL","PA: Psychiatry","Code","MGMA","Academic","All",2022,"*","*","*","*","*","*","*","*","*","*","*","*","*","*"]
["MGMAAcademicAllPA: Pulmonary MedicineL","PA: Pulmonary Medicine","Code","MGMA","Academic","All",2022,"*","*","*","*","*","*","*","*","*","*","*","*","*","*"]
["MGMAAcademicAllPA: RheumatologyL","PA: Rheumatology","Code","MGMA","Academic","All",2022,"*","*","*","*","*","*","*","*","*","*","*","*","*","*"]
["MGMAAcademicAllPsychologistL","Psychologist","Code","MGMA","Academic","All",2022,"1,531",1652.8,1774.6,1896.4,2018.2,"2,140",2256.1999999999998,2372.4,2488.6,2604.8000000000002,"2,721",2886.2,3051.4,"3,547"]
["MGMAAcademicAllResearchL","Research","Code","MGMA","Academic","All",2022,"*","*","*","*","*","*","*","*","*","*","*","*","*","*"]

{"sheet":"MGMARP","index":25,"n_rows":244,"n_cols":21,"rows_kept":244,"cut":false,"hidden":false,"merged":[]}
["Key","Specialty","Code","Source","Type","Category","Year","25th %tile","P30","P35","P40","P45","Median","P55","P60","P65","P70","75th %tile","P80","P85","90th %tile"]
[{"$f":"D2&E2&F2&B2&\"L\"","v":"MGMAPrivate PracticeAllAllergy/ImmunologyL"},"Allergy/Immunology","Code","MGMA","Private Practice","All",2022,"3,463",{"$f":"IFERROR((((M2-H2)/25)*5) + H2,\"*\")","v":3795.4},{"$f":"IFERROR((((M2-H2)/25)*10) + H2,\"*\")","v":4127.8},{"$f":"IFERROR((((M2-H2)/25)*15) + H2,\"*\")","v":4460.2},{"$f":"IFERROR((((M2-H2)/25)*20) + H2,\"*\")","v":4792.6000000000004},"5,125",{"$f":"IFERROR((((R2-M2)/25)*5) + M2, \"*\")","v":5425.4},{"$f":"IFERROR((((R2-M2)/25)*10) + M2, \"*\")","v":5725.8},{"$f":"IFERROR((((R2-M2)/25)*15) + M2, \"*\")","v":6026.2},{"$f":"IFERROR((((R2-M2)/25)*20) + M2, \"*\")","v":6326.6},"6,627",{"$f":"IFERROR((((U2-R2)/25)*5) + R2,\"*\")","v":7033.4},{"$f":"IFERROR((((U2-R2)/25)*10) + R2,\"*\")","v":7439.8},"8,659"]
[{"$f":"D3&E3&F3&B3&\"L\"","v":"MGMAPrivate PracticeAllAnesthesiology: Pain ManagementL"},"Anesthesiology: Pain Management","Code","MGMA","Private Practice","All",2022,"4,591",{"$f":"IFERROR((((M3-H3)/25)*5) + H3,\"*\")","v":5017.8},{"$f":"IFERROR((((M3-H3)/25)*10) + H3,\"*\")","v":5444.6},{"$f":"IFERROR((((M3-H3)/25)*15) + H3,\"*\")","v":5871.4},{"$f":"IFERROR((((M3-H3)/25)*20) + H3,\"*\")","v":6298.2},"6,725",{"$f":"IFERROR((((R3-M3)/25)*5) + M3, \"*\")","v":7307},{"$f":"IFERROR((((R3-M3)/25)*10) + M3, \"*\")","v":7889},{"$f":"IFERROR((((R3-M3)/25)*15) + M3, \"*\")","v":8471},{"$f":"IFERROR((((R3-M3)/25)*20) + M3, \"*\")","v":9053},"9,635",{"$f":"IFERROR((((U3-R3)/25)*5) + R3,\"*\")","v":10080.799999999999},{"$f":"IFERROR((((U3-R3)/25)*10) + R3,\"*\")","v":10526.6},"11,864"]
["MGMAPrivate PracticeAllBariatrics (Nonsurgical)/Obesity MedicineL","Bariatrics (Nonsurgical)/Obesity Medicine","Code","MGMA","Private Practice","All",2022,"3,036",3329.8,3623.6,3917.4,4211.2,"4,505",4764.2,5023.3999999999996,5282.6,5541.8,"5,801",6188.8,6576.6,"7,740"]
["MGMAPrivate PracticeAllCardiology: ElectrophysiologyL","Cardiology: Electrophysiology","Code","MGMA","Private Practice","All",2022,"8,883",9452.2000000000007,10021.4,10590.6,11159.8,"11,729",12261.6,12794.2,13326.8,13859.4,"14,392",15048.4,15704.8,"17,674"]
["MGMAPrivate PracticeAllCardiology: InvasiveL","Cardiology: Invasive","Code","MGMA","Private Practice","All",2022,"6,746",7244.2,7742.4,8240.6,8738.7999999999993,"9,237",9685,10133,10581,11029,"11,477",11988.2,12499.4,"14,033"]
["MGMAPrivate PracticeAllCardiology: Invasive-InterventionalL","Cardiology: Invasive-Interventional","Code","MGMA","Private Practice","All",2022,"7,639",8089.6,8540.2000000000007,8990.7999999999993,9441.4,"9,892",10515.6,11139.2,11762.8,12386.4,"13,010",13705,14400,"16,485"]
["MGMAPrivate PracticeAllCardiology: NoninvasiveL","Cardiology: Noninvasive","Code","MGMA","Private Practice","All",2022,"6,273",6721,7169,7617,8065,"8,513",8989.4,9465.7999999999993,9942.2000000000007,10418.6,"10,895",11499.6,12104.2,"13,918"]
["MGMAPrivate PracticeAllCritical Care: IntensivistL","Critical Care: Intensivist","Code","MGMA","Private Practice","All",2022,"3,016",3345.8,3675.6,4005.3999999999996,4335.2,"4,665",5029.3999999999996,5393.8,5758.2,6122.6,"6,487",6893.8,7300.6,"8,521"]
["MGMAPrivate PracticeAllDentistryL","Dentistry","Code","MGMA","Private Practice","All",2022,"3,645",4235,4825,5415,6005,"6,595",7426.8,8258.6,9090.4,9922.2000000000007,"10,754",11908.8,13063.6,"16,528"]
["MGMAPrivate PracticeAllDermatologyL","Dermatology","Code","MGMA","Private Practice","All",2022,"6,486",6902.8,7319.6,7736.4,8153.2,"8,570",9156,9742,10328,10914,"11,500",12180,12860,"14,900"]
["MGMAPrivate PracticeAllDermatology: DermatopathologyL","Dermatology: Dermatopathology","Code","MGMA","Private Practice","All",2022,"8,113",8291.7999999999993,8470.6,8649.4,8828.2000000000007,"9,007",10689.2,12371.4,14053.6,15735.8,"17,418",17612,17806,"18,388"]
["MGMAPrivate PracticeAllDermatology: Mohs SurgeryL","Dermatology: Mohs Surgery","Code","MGMA","Private Practice","All",2022,"9,748",10446.4,11144.8,11843.2,12541.6,"13,240",14240.8,15241.6,16242.4,17243.2,"18,244",19037.599999999999,19831.2,"22,212"]
["MGMAPrivate PracticeAllEmergency MedicineL","Emergency Medicine","Code","MGMA","Private Practice","All",2022,"5,024",5322,5620,5918,6216,"6,514",6841.2,7168.4,7495.6,7822.8,"8,150",8564.6,8979.2000000000007,"10,223"]
["MGMAPrivate PracticeAllEndocrinology/MetabolismL","Endocrinology/Metabolism","Code","MGMA","Private Practice","All",2022,"4,330",4528.6000000000004,4727.2,4925.8,5124.3999999999996,"5,323",5538.2,5753.4,5968.6,6183.8,"6,399",6722.6,7046.2,"8,017"]
["MGMAPrivate PracticeAllFamily Medicine (with OB)L","Family Medicine (with OB)","Code","MGMA","Private Practice","All",2022,"3,704",4008.6,4313.2,4617.8,4922.3999999999996,"5,227",5512,5797,6082,6367,"6,652",6985.8,7319.6,"8,321"]
["MGMAPrivate PracticeAllFamily Medicine (without OB)L","Family Medicine (without OB)","Code","MGMA","Private Practice","All",2022,"4,372",4600.8,4829.6000000000004,5058.3999999999996,5287.2,"5,516",5787.6,6059.2,6330.8,6602.4,"6,874",7173.6,7473.2,"8,372"]
["MGMAPrivate PracticeAllFamily Medicine: Ambulatory Only (No Inpatient Work)L","Family Medicine: Ambulatory Only (No Inpatient Work)","Code","MGMA","Private Practice","All",2022,"4,375",4614,4853,5092,5331,"5,570",5901.6,6233.2,6564.8,6896.4,"7,228",7501.2,7774.4,"8,594"]
["MGMAPrivate PracticeAllFamily Medicine: Sports MedicineL","Family Medicine: Sports Medicine","Code","MGMA","Private Practice","All",2022,"4,369",4701.3999999999996,5033.8,5366.2,5698.6,"6,031",6402.6,6774.2,7145.8,7517.4,"7,889",8283.4,8677.7999999999993,"9,861"]
["MGMAPrivate PracticeAllFamily Medicine: Urgent CareL","Family Medicine: Urgent Care","Code","MGMA","Private Practice","All",2022,"3,514",3887.8,4261.6000000000004,4635.3999999999996,5009.2,"5,383",5688.2,5993.4,6298.6,6603.8,"6,909",7275,7641,"8,739"]
["MGMAPrivate PracticeAllGastroenterologyL","Gastroenterology","Code","MGMA","Private Practice","All",2022,"6,261",6697.2,7133.4,7569.6,8005.8,"8,442",8863,9284,9705,10126,"10,547",11099.4,11651.8,"13,309"]
["MGMAPrivate PracticeAllGastroenterology: HepatologyL","Gastroenterology: Hepatology","Code","MGMA","Private Practice","All",2022,"3,328",3823,4318,4813,5308,"5,803",6031.6,6260.2,6488.8,6717.4,"6,946",7612.2,8278.4,"10,277"]
["MGMAPrivate PracticeAllGeneticsL","Genetics","Code","MGMA","Private Practice","All",2022,"782",929.4,1076.8,1224.2,1371.6,"1,519",1659.8,1800.6,1941.4,2082.1999999999998,"2,223",2308.8000000000002,2394.6,"2,652"]
["MGMAPrivate PracticeAllGeriatricsL","Geriatrics","Code","MGMA","Private Practice","All",2022,"2,217",2414.1999999999998,2611.4,2808.6,3005.8,"3,203",3375.8,3548.6,3721.4,3894.2,"4,067",4382.8,4698.6000000000004,"5,646"]
["MGMAPrivate PracticeAllHematology/OncologyL","Hematology/Oncology","Code","MGMA","Private Practice","All",2022,"3,842",4191.3999999999996,4540.8,4890.2,5239.6000000000004,"5,589",5913.8,6238.6,6563.4,6888.2,"7,213",7614.4,8015.8,"9,220"]
["MGMAPrivate PracticeAllHematology/Oncology: Oncology (Only)L","Hematology/Oncology: Oncology (Only)","Code","MGMA","Private Practice","All",2022,"3,360",3615.4,3870.8,4126.2,4381.6000000000004,"4,637",5080.3999999999996,5523.8,5967.2,6410.6,"6,854",7499.6,8145.2,"10,082"]
["MGMAPrivate PracticeAllHospice/Palliative CareL","Hospice/Palliative Care","Code","MGMA","Private Practice","All",2022,"1,852",1965.6,2079.1999999999998,2192.8000000000002,2306.4,"2,420",2579.6,2739.2,2898.8,3058.4,"3,218",3414.4,3610.8,"4,200"]
["MGMAPrivate PracticeAllHospitalist: Family MedicineL","Hospitalist: Family Medicine","Code","MGMA","Private Practice","All",2022,"3,102",3407.8,3713.6,4019.4,4325.2,"4,631",4861.3999999999996,5091.8,5322.2,5552.6,"5,783",6076.4,6369.8,"7,250"]
["MGMAPrivate PracticeAllHospitalist: Internal MedicineL","Hospitalist: Internal Medicine","Code","MGMA","Private Practice","All",2022,"3,205",3441.4,3677.8,3914.2,4150.6000000000004,"4,387",4627.8,4868.6000000000004,5109.3999999999996,5350.2,"5,591",5830,6069,"6,786"]
["MGMAPrivate PracticeAllHospitalist: NocturnistL","Hospitalist: Nocturnist","Code","MGMA","Private Practice","All",2022,"1,754",1924.4,2094.8000000000002,2265.1999999999998,2435.6,"2,606",2804.4,3002.8,3201.2,3399.6,"3,598",3844.6,4091.2,"4,831"]
["MGMAPrivate PracticeAllHospitalist: OB/GYNL","Hospitalist: OB/GYN","Code","MGMA","Private Practice","All",2022,"1,992",2204.6,2417.1999999999998,2629.8,2842.4,"3,055",3268.8,3482.6,3696.4,3910.2,"4,124",4433.3999999999996,4742.8,"5,671"]
["MGMAPrivate PracticeAllHyperbaric Medicine/Wound CareL","Hyperbaric Medicine/Wound Care","Code","MGMA","Private Practice","All",2022,"2,924",3143.8,3363.6,3583.4,3803.2,"4,023",4350,4677,5004,5331,"5,658",6141.4,6624.8,"8,075"]
["MGMAPrivate PracticeAllInfectious DiseaseL","Infectious Disease","Code","MGMA","Private Practice","All",2022,"3,568",3959,4350,4741,5132,"5,523",5981.4,6439.8,6898.2,7356.6,"7,815",8370.4,8925.7999999999993,"10,592"]
["MGMAPrivate PracticeAllInternal Medicine: GeneralL","Internal Medicine: General","Code","MGMA","Private Practice","All",2022,"4,019",4262,4505,4748,4991,"5,234",5487.6,5741.2,5994.8,6248.4,"6,502",6818.8,7135.6,"8,086"]
["MGMAPrivate PracticeAllInternal Medicine: Ambulatory Only (No Inpatient Work)L","Internal Medicine: Ambulatory Only (No Inpatient Work)","Code","MGMA","Private Practice","All",2022,"4,213",4400.8,4588.6000000000004,4776.3999999999996,4964.2,"5,152",5444,5736,6028,6320,"6,612",6884.4,7156.8,"7,974"]
["MGMAPrivate PracticeAllNephrologyL","Nephrology","Code","MGMA","Private Practice","All",2022,"4,618",5136.6000000000004,5655.2,6173.8,6692.4,"7,211",7643,8075,8507,8939,"9,371",9942.4,10513.8,"12,228"]
["MGMAPrivate PracticeAllNephrology: TransplantL","Nephrology: Transplant","Code","MGMA","Private Practice","All",2022,"*","*","*","*","*","*","*","*","*","*","*","*","*","*"]
["MGMAPrivate PracticeAllNeurologyL","Neurology","Code","MGMA","Private Practice","All",2022,"3,570",3845.2,4120.3999999999996,4395.6000000000004,4670.8,"4,946",5228.6000000000004,5511.2,5793.8,6076.4,"6,359",6755.2,7151.4,"8,340"]
["MGMAPrivate PracticeAllNeurology: Epilepsy/EEGL","Neurology: Epilepsy/EEG","Code","MGMA","Private Practice","All",2022,"4,206",4381.3999999999996,4556.8,4732.2,4907.6000000000004,"5,083",5392.8,5702.6,6012.4,6322.2,"6,632",7019.2,7406.4,"8,568"]
["MGMAPrivate PracticeAllNeurology: Neurocritical CareL","Neurology: Neurocritical Care","Code","MGMA","Private Practice","All",2022,"2,125",2275.4,2425.8000000000002,2576.1999999999998,2726.6,"2,877",3234.8,3592.6,3950.4,4308.2,"4,666",4920,5174,"5,936"]
["MGMAPrivate PracticeAllNeurology: Neuromuscular MedicineL","Neurology: Neuromuscular Medicine","Code","MGMA","Private Practice","All",2022,"3,861",3948.4,4035.8,4123.2,4210.6000000000004,"4,298",4474.3999999999996,4650.8,4827.2,5003.6000000000004,"5,180",5586.6,5993.2,"7,213"]
["MGMAPrivate PracticeAllNeurology: Stroke MedicineL","Neurology: Stroke Medicine","Code","MGMA","Private Practice","All",2022,"3,160",3250.8,3341.6,3432.4,3523.2,"3,614",3793.8,3973.6,4153.3999999999996,4333.2,"4,513",4808.6000000000004,5104.2,"5,991"]
["MGMAPrivate PracticeAllObstetrics/Gynecology: GeneralL","Obstetrics/Gynecology: General","Code","MGMA","Private Practice","All",2022,"5,075",5445.2,5815.4,6185.6,6555.8,"6,926",7313.8,7701.6,8089.4,8477.2000000000007,"8,865",9307,9749,"11,075"]
["MGMAPrivate PracticeAllOB/GYN: Gynecology (Only)L","OB/GYN: Gynecology (Only)","Code","MGMA","Private Practice","All",2022,"3,731",3971.6,4212.2,4452.8,4693.3999999999996,"4,934",5243.8,5553.6,5863.4,6173.2,"6,483",6980.2,7477.4,"8,969"]
["MGMAPrivate PracticeAllOB/GYN: Gynecological OncologyL","OB/GYN: Gynecological Oncology","Code","MGMA","Private Practice","All",2022,"4,885",5236,5587,5938,6289,"6,640",7053.8,7467.6,7881.4,8295.2000000000007,"8,709",9443.6,10178.200000000001,"12,382"]
["MGMAPrivate PracticeAllOB/GYN: Maternal and Fetal MedicineL","OB/GYN: Maternal and Fetal Medicine","Code","MGMA","Private Practice","All",2022,"4,957",5321.4,5685.8,6050.2,6414.6,"6,779",7124.2,7469.4,7814.6,8159.8,"8,505",9147.7999999999993,9790.6,"11,719"]
["MGMAPrivate PracticeAllOB/GYN: Minimally Invasive Gynecologic SurgeryL","OB/GYN: Minimally Invasive Gynecologic Surgery","Code","MGMA","Private Practice","All",2022,"*","*","*","*","*","*","*","*","*","*","*","*","*","*"]
["MGMAPrivate PracticeAllOB/GYN: Reproductive EndocrinologyL","OB/GYN: Reproductive Endocrinology","Code","MGMA","Private Practice","All",2022,"3,867",4249,4631,5013,5395,"5,777",6389,7001,7613,8225,"8,837",10009,11181,"14,697"]
["MGMAPrivate PracticeAllOB/GYN: UrogynecologyL","OB/GYN: Urogynecology","Code","MGMA","Private Practice","All",2022,"4,970",5247.4,5524.8,5802.2,6079.6,"6,357",6627.8,6898.6,7169.4,7440.2,"7,711",8111.4,8511.7999999999993,"9,713"]
["MGMAPrivate PracticeAllOccupational MedicineL","Occupational Medicine","Code","MGMA","Private Practice","All",2022,"1,067",1336.8,1606.6,1876.4,2146.1999999999998,"2,416",2688.6,2961.2,3233.8,3506.4,"3,779",4256.6000000000004,4734.2,"6,167"]
["MGMAPrivate PracticeAllOphthalmologyL","Ophthalmology","Code","MGMA","Private Practice","All",2022,"6,271",6760.6,7250.2,7739.8,8229.4,"8,719",9159.7999999999993,9600.6,10041.4,10482.200000000001,"10,923",11502,12081,"13,818"]
["MGMAPrivate PracticeAllOphthalmology: Corneal and Refractive SurgeryL","Ophthalmology: Corneal and Refractive Surgery","Code","MGMA","Private Practice","All",2022,"*","*","*","*","*","*","*","*","*","*","*","*","*","*"]
["MGMAPrivate PracticeAllOphthalmology: GlaucomaL","Ophthalmology: Glaucoma","Code","MGMA","Private Practice","All",2022,"*","*","*","*","*","*","*","*","*","*","*","*","*","*"]
["MGMAPrivate PracticeAllOphthalmology: NeurologyL","Ophthalmology: Neurology","Code","MGMA","Private Practice","All",2022,"*","*","*","*","*","*","*","*","*","*","*","*","*","*"]
["MGMAPrivate PracticeAllOphthalmology: Oculoplastic and Reconstructive SurgeryL","Ophthalmology: Oculoplastic and Reconstructive Surgery","Code","MGMA","Private Practice","All",2022,"*","*","*","*","*","*","*","*","*","*","*","*","*","*"]
["MGMAPrivate PracticeAllOphthalmology: RetinaL","Ophthalmology: Retina","Code","MGMA","Private Practice","All",2022,"8,943",9595.2000000000007,10247.4,10899.6,11551.8,"12,204",12577.2,12950.4,13323.6,13696.8,"14,070",15208.8,16347.6,"19,764"]
["MGMAPrivate PracticeAllOrthopedic (Nonsurgical)L","Orthopedic (Nonsurgical)","Code","MGMA","Private Practice","All",2022,"4,918",5337.6,5757.2,6176.8,6596.4,"7,016",7481.8,7947.6,8413.4,8879.2000000000007,"9,345",9666.2000000000007,9987.4,"10,951"]
["MGMAPrivate PracticeAllOrthopedic Surgery: GeneralL","Orthopedic Surgery: General","Code","MGMA","Private Practice","All",2022,"6,406",6880,7354,7828,8302,"8,776",9368.4,9960.7999999999993,10553.2,11145.6,"11,738",12352.8,12967.6,"14,812"]
["MGMAPrivate PracticeAllOrthopedic Surgery: Foot and AnkleL","Orthopedic Surgery: Foot and Ankle","Code","MGMA","Private Practice","All",2022,"6,992",7486.2,7980.4,8474.6,8968.7999999999993,"9,463",9956.2000000000007,10449.4,10942.6,11435.8,"11,929",12387.6,12846.2,"14,222"]
["MGMAPrivate PracticeAllOrthopedic Surgery: HandL","Orthopedic Surgery: Hand","Code","MGMA","Private Practice","All",2022,"7,728",8178.8,8629.6,9080.4,9531.2000000000007,"9,982",10511.2,11040.4,11569.6,12098.8,"12,628",13127,13626,"15,123"]
["MGMAPrivate PracticeAllOrthopedic Surgery: Hip and JointL","Orthopedic Surgery: Hip and Joint","Code","MGMA","Private Practice","All",2022,"9,052",9494.6,9937.2000000000007,10379.799999999999,10822.4,"11,265",11914.8,12564.6,13214.4,13864.2,"14,514",14968.4,15422.8,"16,786"]
["MGMAPrivate PracticeAllOrthopedic Surgery: OncologyL","Orthopedic Surgery: Oncology","Code","MGMA","Private Practice","All",2022,"3,952",4402.2,4852.3999999999996,5302.6,5752.8,"6,203",6489.8,6776.6,7063.4,7350.2,"7,637",7991.8,8346.6,"9,411"]
["MGMAPrivate PracticeAllOrthopedic Surgery: Shoulder/ElbowL","Orthopedic Surgery: Shoulder/Elbow","Code","MGMA","Private Practice","All",2022,"8,815",9573.7999999999993,10332.6,11091.4,11850.2,"12,609",13065.2,13521.4,13977.6,14433.8,"14,890",15452.8,16015.6,"17,704"]
["MGMAPrivate PracticeAllOrthopedic Surgery: SpineL","Orthopedic Surgery: Spine","Code","MGMA","Private Practice","All",2022,"7,160",7994.8,8829.6,9664.4,10499.2,"11,334",12222.6,13111.2,13999.8,14888.4,"15,777",16471.599999999999,17166.2,"19,250"]
["MGMAPrivate PracticeAllOrthopedic Surgery: Sports MedicineL","Orthopedic Surgery: Sports Medicine","Code","MGMA","Private Practice","All",2022,"7,106",7564.4,8022.8,8481.2000000000007,8939.6,"9,398",9940.7999999999993,10483.6,11026.4,11569.2,"12,112",12855.6,13599.2,"15,830"]
["MGMAPrivate PracticeAllOrthopedic Surgery: TraumaL","Orthopedic Surgery: Trauma","Code","MGMA","Private Practice","All",2022,"6,955",7333.4,7711.8,8090.2,8468.6,"8,847",9458.2000000000007,10069.4,10680.6,11291.8,"11,903",12120,12337,"12,988"]
[{"$f":"D67&E67&F67&B67&\"L\"","v":"MGMAPrivate PracticeAllOtorhinolaryngologyL"},"Otorhinolaryngology","Code","MGMA","Private Practice","All",2022,"5,729",{"$f":"IFERROR((((M67-H67)/25)*5) + H67,\"*\")","v":6110.6},{"$f":"IFERROR((((M67-H67)/25)*10) + H67,\"*\")","v":6492.2},{"$f":"IFERROR((((M67-H67)/25)*15) + H67,\"*\")","v":6873.8},{"$f":"IFERROR((((M67-H67)/25)*20) + H67,\"*\")","v":7255.4},"7,637",{"$f":"IFERROR((((R67-M67)/25)*5) + M67, \"*\")","v":8065.2},{"$f":"IFERROR((((R67-M67)/25)*10) + M67, \"*\")","v":8493.4},{"$f":"IFERROR((((R67-M67)/25)*15) + M67, \"*\")","v":8921.6},{"$f":"IFERROR((((R67-M67)/25)*20) + M67, \"*\")","v":9349.7999999999993},"9,778",{"$f":"IFERROR((((U67-R67)/25)*5) + R67,\"*\")","v":10414.200000000001},{"$f":"IFERROR((((U67-R67)/25)*10) + R67,\"*\")","v":11050.4},"12,959"]
["MGMAPrivate PracticeAllPain Management: NonanesthesiaL","Pain Management: Nonanesthesia","Code","MGMA","Private Practice","All",2022,"5,323",5655,5987,6319,6651,"6,983",7429.6,7876.2,8322.7999999999993,8769.4,"9,216",9642,10068,"11,346"]
["MGMAPrivate PracticeAllPathology: Anatomic and ClinicalL","Pathology: Anatomic and Clinical","Code","MGMA","Private Practice","All",2022,"4,177",4541.6000000000004,4906.2,5270.8,5635.4,"6,000",6527.6,7055.2,7582.8,8110.4,"8,638",9068.2000000000007,9498.4,"10,789"]
["MGMAPrivate PracticeAllPathology: AnatomicL","Pathology: Anatomic","Code","MGMA","Private Practice","All",2022,"4,702",4957.3999999999996,5212.8,5468.2,5723.6,"5,979",6250.4,6521.8,6793.2,7064.6,"7,336",7763,8190,"9,471"]
["MGMAPrivate PracticeAllPathology: Anatomic-AutopsyL","Pathology: Anatomic-Autopsy","Code","MGMA","Private Practice","All",2022,"*","*","*","*","*","*","*","*","*","*","*","*","*","*"]
["MGMAPrivate PracticeAllPathology: Anatomic-CytopathologyL","Pathology: Anatomic-Cytopathology","Code","MGMA","Private Practice","All",2022,"*","*","*","*","*","*","*","*","*","*","*","*","*","*"]
["MGMAPrivate PracticeAllPathology: ClinicalL","Pathology: Clinical","Code","MGMA","Private Practice","All",2022,"4,282",4477.8,4673.6000000000004,4869.3999999999996,5065.2,"5,261",5478.6,5696.2,5913.8,6131.4,"6,349",6820.6,7292.2,"8,707"]
["MGMAPrivate PracticeAllPathology: Clinical-HematopathologyL","Pathology: Clinical-Hematopathology","Code","MGMA","Private Practice","All",2022,"*","*","*","*","*","*","*","*","*","*","*","*","*","*"]
["MGMAPrivate PracticeAllPathology: Clinical-Transfusion MedicineL","Pathology: Clinical-Transfusion Medicine","Code","MGMA","Private Practice","All",2022,"*","*","*","*","*","*","*","*","*","*","*","*","*","*"]
["MGMAPrivate PracticeAllPathology: SurgicalL","Pathology: Surgical","Code","MGMA","Private Practice","All",2022,"*","*","*","*","*","*","*","*","*","*","*","*","*","*"]
["MGMAPrivate PracticeAllPediatrics: GeneralL","Pediatrics: General","Code","MGMA","Private Practice","All",2022,"4,102",4342.2,4582.3999999999996,4822.6000000000004,5062.8,"5,303",5586.6,5870.2,6153.8,6437.4,"6,721",7005.6,7290.2,"8,144"]
["MGMAPrivate PracticeAllPediatrics: Adolescent MedicineL","Pediatrics: Adolescent Medicine","Code","MGMA","Private Practice","All",2022,"2,466",2735.8,3005.6,3275.4,3545.2,"3,815",4286.3999999999996,4757.8,5229.2,5700.6,"6,172",6317.6,6463.2,"6,900"]
["MGMAPrivate PracticeAllPediatrics: Allergy/ImmunologyL","Pediatrics: Allergy/Immunology","Code","MGMA","Private Practice","All",2022,"2,286",2574.8000000000002,2863.6,3152.4,3441.2,"3,730",3936.2,4142.3999999999996,4348.6000000000004,4554.8,"4,761",4994.6000000000004,5228.2,"5,929"]
["MGMAPrivate PracticeAllPediatrics: Bone Marrow TransplantL","Pediatrics: Bone Marrow Transplant","Code","MGMA","Private Practice","All",2022,"*","*","*","*","*","*","*","*","*","*","*","*","*","*"]
["MGMAPrivate PracticeAllPediatrics: CardiologyL","Pediatrics: Cardiology","Code","MGMA","Private Practice","All",2022,"3,056",3271,3486,3701,3916,"4,131",4383.8,4636.6000000000004,4889.3999999999996,5142.2,"5,395",5790.2,6185.4,"7,371"]
["MGMAPrivate PracticeAllPediatrics: Cardiovascular SurgeryL","Pediatrics: Cardiovascular Surgery","Code","MGMA","Private Practice","All",2022,"2,753",3130.8,3508.6,3886.4,4264.2,"4,642",4953,5264,5575,5886,"6,197",7274.4,8351.7999999999993,"11,584"]
["MGMAPrivate PracticeAllPediatrics: Child DevelopmentL","Pediatrics: Child Development","Code","MGMA","Private Practice","All",2022,"1,674",1807.2,1940.4,2073.6,2206.8000000000002,"2,340",2560,2780,3000,3220,"3,440",3651.8,3863.6,"4,499"]
["MGMAPrivate PracticeAllPediatrics: Critical Care/IntensivistL","Pediatrics: Critical Care/Intensivist","Code","MGMA","Private Practice","All",2022,"2,505",2724,2943,3162,3381,"3,600",3853.6,4107.2,4360.8,4614.3999999999996,"4,868",5270.8,5673.6,"6,882"]
["MGMAPrivate PracticeAllPediatrics: DermatologyL","Pediatrics: Dermatology","Code","MGMA","Private Practice","All",2022,"*","*","*","*","*","*","*","*","*","*","*","*","*","*"]
["MGMAPrivate PracticeAllPediatrics: Emergency MedicineL","Pediatrics: Emergency Medicine","Code","MGMA","Private Practice","All",2022,"4,354",4539.2,4724.3999999999996,4909.6000000000004,5094.8,"5,280",5487,5694,5901,6108,"6,315",6605.4,6895.8,"7,767"]
["MGMAPrivate PracticeAllPediatrics: EndocrinologyL","Pediatrics: Endocrinology","Code","MGMA","Private Practice","All",2022,"2,764",2877.4,2990.8,3104.2,3217.6,"3,331",3422.4,3513.8,3605.2,3696.6,"3,788",4085,4382,"5,273"]
["MGMAPrivate PracticeAllPediatrics: GastroenterologyL","Pediatrics: Gastroenterology","Code","MGMA","Private Practice","All",2022,"164",749.2,1334.4,1919.6000000000001,2504.8000000000002,"3,090",3401,3712,4023,4334,"4,645",4833.2,5021.3999999999996,"5,586"]
["MGMAPrivate PracticeAllPediatrics: GeneticsL","Pediatrics: Genetics","Code","MGMA","Private Practice","All",2022,"1,307",1460.2,1613.4,1766.6,1919.8,"2,073",2197.6,2322.1999999999998,2446.8000000000002,2571.4,"2,696",2852.8,3009.6,"3,480"]
["MGMAPrivate PracticeAllPediatrics: Hematology/OncologyL","Pediatrics: Hematology/Oncology","Code","MGMA","Private Practice","All",2022,"1,740",1916.4,2092.8000000000002,2269.1999999999998,2445.6,"2,622",2833.8,3045.6,3257.4,3469.2,"3,681",3779.4,3877.8,"4,173"]
["MGMAPrivate PracticeAllPediatrics: HospitalistL","Pediatrics: Hospitalist","Code","MGMA","Private Practice","All",2022,"1,433",1572.2,1711.4,1850.6,1989.8,"2,129",2334.8000000000002,2540.6,2746.4,2952.2,"3,158",3379,3600,"4,263"]
["MGMAPrivate PracticeAllPediatrics: Hospitalist-Internal MedicineL","Pediatrics: Hospitalist-Internal Medicine","Code","MGMA","Private Practice","All",2022,"2,191",2533.4,2875.8,3218.2,3560.6000000000004,"3,903",4182.6000000000004,4462.2,4741.8,5021.3999999999996,"5,301",5445.2,5589.4,"6,022"]
["MGMAPrivate PracticeAllPediatrics: Infectious DiseaseL","Pediatrics: Infectious Disease","Code","MGMA","Private Practice","All",2022,"1,242",1288,1334,1380,1426,"1,472",1705.6,1939.2,2172.8000000000002,2406.4,"2,640",2897,3154,"3,925"]
["MGMAPrivate PracticeAllPediatrics: Internal MedicineL","Pediatrics: Internal Medicine","Code","MGMA","Private Practice","All",2022,"3,611",3879.4,4147.8,4416.2,4684.6000000000004,"4,953",5193.3999999999996,5433.8,5674.2,5914.6,"6,155",6396.6,6638.2,"7,363"]
["MGMAPrivate PracticeAllPediatrics: Neonatal MedicineL","Pediatrics: Neonatal Medicine","Code","MGMA","Private Practice","All",2022,"4,535",5030.6000000000004,5526.2,6021.8,6517.4,"7,013",7463.6,7914.2,8364.7999999999993,8815.4,"9,266",9917.6,10569.2,"12,524"]
["MGMAPrivate PracticeAllPediatrics: NephrologyL","Pediatrics: Nephrology","Code","MGMA","Private Practice","All",2022,"1,792",1964.8,2137.6,2310.4,2483.1999999999998,"2,656",2879,3102,3325,3548,"3,771",3865.4,3959.8,"4,243"]
["MGMAPrivate PracticeAllPediatrics: NeurologyL","Pediatrics: Neurology","Code","MGMA","Private Practice","All",2022,"2,907",3141.2,3375.4,3609.6,3843.8,"4,078",4305.3999999999996,4532.8,4760.2,4987.6000000000004,"5,215",5594.8,5974.6,"7,114"]
["MGMAPrivate PracticeAllPediatrics: NeurosurgeryL","Pediatrics: Neurosurgery","Code","MGMA","Private Practice","All",2022,"2,882",3043.8,3205.6,3367.4,3529.2,"3,691",4068.2,4445.3999999999996,4822.6000000000004,5199.8,"5,577",6013.4,6449.8,"7,759"]
["MGMAPrivate PracticeAllPediatrics: OphthalmologyL","Pediatrics: Ophthalmology","Code","MGMA","Private Practice","All",2022,"4,715",4936.2,5157.3999999999996,5378.6,5599.8,"5,821",6073,6325,6577,6829,"7,081",7496,7911,"9,156"]
["MGMAPrivate PracticeAllPediatrics: Orthopedic SurgeryL","Pediatrics: Orthopedic Surgery","Code","MGMA","Private Practice","All",2022,"5,286",5674.4,6062.8,6451.2,6839.6,"7,228",7628.4,8028.8,8429.2000000000007,8829.6,"9,230",9706.6,10183.200000000001,"11,613"]
["MGMAPrivate PracticeAllPediatrics: OtorhinolaryngologyL","Pediatrics: Otorhinolaryngology","Code","MGMA","Private Practice","All",2022,"4,796",5052.3999999999996,5308.8,5565.2,5821.6,"6,078",6473.8,6869.6,7265.4,7661.2,"8,057",8505.7999999999993,8954.6,"10,301"]
["MGMAPrivate PracticeAllPediatrics: Plastic and Reconstruction SurgeryL","Pediatrics: Plastic and Reconstruction Surgery","Code","MGMA","Private Practice","All",2022,"*","*","*","*","*","*","*","*","*","*","*","*","*","*"]
["MGMAPrivate PracticeAllPediatrics: PulmonologyL","Pediatrics: Pulmonology","Code","MGMA","Private Practice","All",2022,"2,378",2532.6,2687.2,2841.8,2996.4,"3,151",3366.8,3582.6,3798.4,4014.2,"4,230",4615.2,5000.3999999999996,"6,156"]
["MGMAPrivate PracticeAllPediatrics: RadiologyL","Pediatrics: Radiology","Code","MGMA","Private Practice","All",2022,"3,472",3723.4,3974.8,4226.2,4477.6000000000004,"4,729",4874.3999999999996,5019.8,5165.2,5310.6,"5,456",5608.2,5760.4,"6,217"]
["MGMAPrivate PracticeAllPediatrics: RheumatologyL","Pediatrics: Rheumatology","Code","MGMA","Private Practice","All",2022,"1,858",1927,1996,2065,2134,"2,203",2362.4,2521.8000000000002,2681.2,2840.6,"3,000",3175.8,3351.6,"3,879"]
["MGMAPrivate PracticeAllPediatrics: Sports MedicineL","Pediatrics: Sports Medicine","Code","MGMA","Private Practice","All",2022,"3,406",3609,3812,4015,4218,"4,421",4546.3999999999996,4671.8,4797.2,4922.6000000000004,"5,048",5113.3999999999996,5178.8,"5,375"]
["MGMAPrivate PracticeAllPediatrics: SurgeryL","Pediatrics: Surgery","Code","MGMA","Private Practice","All",2022,"3,475",3699.2,3923.4,4147.6000000000004,4371.8,"4,596",4871,5146,5421,5696,"5,971",6284.2,6597.4,"7,537"]
["MGMAPrivate PracticeAllPediatrics: Urgent CareL","Pediatrics: Urgent Care","Code","MGMA","Private Practice","All",2022,"2,678",2924.4,3170.8,3417.2,3663.6,"3,910",4149.6000000000004,4389.2,4628.8,4868.3999999999996,"5,108",5338.6,5569.2,"6,261"]
["MGMAPrivate PracticeAllPediatrics: UrologyL","Pediatrics: Urology","Code","MGMA","Private Practice","All",2022,"3,931",4123.6000000000004,4316.2,4508.8,4701.3999999999996,"4,894",5457.2,6020.4,6583.6,7146.8,"7,710",8366,9022,"10,990"]
["MGMAPrivate PracticeAllPhysiatry (Physical Medicine and Rehabilitation)L","Physiatry (Physical Medicine and Rehabilitation)","Code","MGMA","Private Practice","All",2022,"3,945",4198.8,4452.6000000000004,4706.3999999999996,4960.2,"5,214",5517.4,5820.8,6124.2,6427.6,"6,731",7092.8,7454.6,"8,540"]
["MGMAPrivate PracticeAllPodiatry: GeneralL","Podiatry: General","Code","MGMA","Private Practice","All",2022,"4,373",4726.3999999999996,5079.8,5433.2,5786.6,"6,140",6557.4,6974.8,7392.2,7809.6,"8,227",8690.2000000000007,9153.4,"10,543"]
["MGMAPrivate PracticeAllPodiatry: Surgery-Foot and AnkleL","Podiatry: Surgery-Foot and Ankle","Code","MGMA","Private Practice","All",2022,"5,618",5865.2,6112.4,6359.6,6606.8,"6,854",7292,7730,8168,8606,"9,044",9420.2000000000007,9796.4,"10,925"]
["MGMAPrivate PracticeAllPsychiatry: GeneralL","Psychiatry: General","Code","MGMA","Private Practice","All",2022,"2,484",2749.4,3014.8,3280.2,3545.6,"3,811",4126.6000000000004,4442.2,4757.8,5073.3999999999996,"5,389",5764.6,6140.2,"7,267"]
["MGMAPrivate PracticeAllPsychiatry: Addiction MedicineL","Psychiatry: Addiction Medicine","Code","MGMA","Private Practice","All",2022,"2,185",2395,2605,2815,3025,"3,235",3663.2,4091.4,4519.6000000000004,4947.8,"5,376",5654.2,5932.4,"6,767"]
["MGMAPrivate PracticeAllPsychiatry: Behavioral MedicineL","Psychiatry: Behavioral Medicine","Code","MGMA","Private Practice","All",2022,"*","*","*","*","*","*","*","*","*","*","*","*","*","*"]
["MGMAPrivate PracticeAllPsychiatry: Child and AdolescentL","Psychiatry: Child and Adolescent","Code","MGMA","Private Practice","All",2022,"2,503",2682.8,2862.6,3042.4,3222.2,"3,402",3609,3816,4023,4230,"4,437",4681.8,4926.6000000000004,"5,661"]
["MGMAPrivate PracticeAllPsychiatry: ForensicL","Psychiatry: Forensic","Code","MGMA","Private Practice","All",2022,"*","*","*","*","*","*","*","*","*","*","*","*","*","*"]
["MGMAPrivate PracticeAllPsychiatry: GeriatricL","Psychiatry: Geriatric","Code","MGMA","Private Practice","All",2022,"*","*","*","*","*","*","*","*","*","*","*","*","*","*"]
["MGMAPrivate PracticeAllPulmonary Medicine: GeneralL","Pulmonary Medicine: General","Code","MGMA","Private Practice","All",2022,"4,223",4552.2,4881.3999999999996,5210.6000000000004,5539.8,"5,869",6239.8,6610.6,6981.4,7352.2,"7,723",8206.6,8690.2000000000007,"10,141"]
["MGMAPrivate PracticeAllPulmonary Medicine: Critical CareL","Pulmonary Medicine: Critical Care","Code","MGMA","Private Practice","All",2022,"3,646",3956,4266,4576,4886,"5,196",5475.8,5755.6,6035.4,6315.2,"6,595",7022.6,7450.2,"8,733"]
["MGMAPrivate PracticeAllPulmonary Medicine: General and Critical CareL","Pulmonary Medicine: General and Critical Care","Code","MGMA","Private Practice","All",2022,"5,283",5591.4,5899.8,6208.2,6516.6,"6,825",7183.8,7542.6,7901.4,8260.2000000000007,"8,619",9339.6,10060.200000000001,"12,222"]
["MGMAPrivate PracticeAllRadiation OncologyL","Radiation Oncology","Code","MGMA","Private Practice","All",2022,"7,091",7564.2,8037.4,8510.6,8983.7999999999993,"9,457",9950.6,10444.200000000001,10937.8,11431.4,"11,925",12568.6,13212.2,"15,143"]
["MGMAPrivate PracticeAllRadiology: InterventionalL","Radiology: Interventional","Code","MGMA","Private Practice","All",2022,"4,543",4871.6000000000004,5200.2,5528.8,5857.4,"6,186",6679.6,7173.2,7666.8,8160.4,"8,654",9227.7999999999993,9801.6,"11,523"]
["MGMAPrivate PracticeAllRadiology: DiagnosticL","Radiology: Diagnostic","Code","MGMA","Private Practice","All",2022,"7,858",8332.6,8807.2000000000007,9281.7999999999993,9756.4,"10,231",10732.2,11233.4,11734.6,12235.8,"12,737",13325.8,13914.6,"15,681"]
["MGMAPrivate PracticeAllRadiology: NeurologicalL","Radiology: Neurological","Code","MGMA","Private Practice","All",2022,"6,332",6941.4,7550.8,8160.2,8769.6,"9,379",10078.799999999999,10778.6,11478.4,12178.2,"12,878",13625.4,14372.8,"16,615"]
["MGMAPrivate PracticeAllRadiology: Nuclear MedicineL","Radiology: Nuclear Medicine","Code","MGMA","Private Practice","All",2022,"3,180",3508.6,3837.2,4165.8,4494.3999999999996,"4,823",5341.6,5860.2,6378.8,6897.4,"7,416",7754.4,8092.8,"9,108"]
["MGMAPrivate PracticeAllRheumatologyL","Rheumatology","Code","MGMA","Private Practice","All",2022,"3,897",4110.2,4323.3999999999996,4536.6000000000004,4749.8,"4,963",5194.3999999999996,5425.8,5657.2,5888.6,"6,120",6394.8,6669.6,"7,494"]
["MGMAPrivate PracticeAllSleep MedicineL","Sleep Medicine","Code","MGMA","Private Practice","All",2022,"4,272",4640.3999999999996,5008.8,5377.2,5745.6,"6,114",6385.2,6656.4,6927.6,7198.8,"7,470",7898.8,8327.6,"9,614"]
["MGMAPrivate PracticeAllSurgery: GeneralL","Surgery: General","Code","MGMA","Private Practice","All",2022,"4,932",5290.8,5649.6,6008.4,6367.2,"6,726",7132.8,7539.6,7946.4,8353.2000000000007,"8,760",9198,9636,"10,950"]
["MGMAPrivate PracticeAllSurgery: BariatricL","Surgery: Bariatric","Code","MGMA","Private Practice","All",2022,"6,137",6543.6,6950.2,7356.8,7763.4,"8,170",8849,9528,10207,10886,"11,565",12195.2,12825.4,"14,716"]
[{"$f":"D131&E131&F131&B131&\"L\"","v":"MGMAPrivate PracticeAllSurgery: BreastL"},"Surgery: Breast","Code","MGMA","Private Practice","All",2022,"4,332",{"$f":"IFERROR((((M131-H131)/25)*5) + H131,\"*\")","v":4602},{"$f":"IFERROR((((M131-H131)/25)*10) + H131,\"*\")","v":4872},{"$f":"IFERROR((((M131-H131)/25)*15) + H131,\"*\")","v":5142},{"$f":"IFERROR((((M131-H131)/25)*20) + H131,\"*\")","v":5412},"5,682",{"$f":"IFERROR((((R131-M131)/25)*5) + M131, \"*\")","v":6051.2},{"$f":"IFERROR((((R131-M131)/25)*10) + M131, \"*\")","v":6420.4},{"$f":"IFERROR((((R131-M131)/25)*15) + M131, \"*\")","v":6789.6},{"$f":"IFERROR((((R131-M131)/25)*20) + M131, \"*\")","v":7158.8},"7,528",{"$f":"IFERROR((((U131-R131)/25)*5) + R131,\"*\")","v":7979},{"$f":"IFERROR((((U131-R131)/25)*10) + R131,\"*\")","v":8430},"9,783"]
["MGMAPrivate PracticeAllSurgery: CardiovascularL","Surgery: Cardiovascular","Code","MGMA","Private Practice","All",2022,"5,909",6449.6,6990.2,7530.8,8071.4,"8,612",9290.4,9968.7999999999993,10647.2,11325.6,"12,004",12643,13282,"15,199"]
["MGMAPrivate PracticeAllSurgery: Colon and RectalL","Surgery: Colon and Rectal","Code","MGMA","Private Practice","All",2022,"5,289",5656.6,6024.2,6391.8,6759.4,"7,127",7429.2,7731.4,8033.6,8335.7999999999993,"8,638",9046.6,9455.2000000000007,"10,681"]
["MGMAPrivate PracticeAllSurgery: EndocrineL","Surgery: Endocrine","Code","MGMA","Private Practice","All",2022,"*","*","*","*","*","*","*","*","*","*","*","*","*","*"]
["MGMAPrivate PracticeAllSurgery: Endovascular (Primary)L","Surgery: Endovascular (Primary)","Code","MGMA","Private Practice","All",2022,"*","*","*","*","*","*","*","*","*","*","*","*","*","*"]
["MGMAPrivate PracticeAllSurgery: NeurologicalL","Surgery: Neurological","Code","MGMA","Private Practice","All",2022,"5,141",5786.8,6432.6,7078.4,7724.2,"8,370",9100,9830,10560,11290,"12,020",12816,13612,"16,000"]
["MGMAPrivate PracticeAllSurgery: OncologyL","Surgery: Oncology","Code","MGMA","Private Practice","All",2022,"4,441",4811,5181,5551,5921,"6,291",6752.6,7214.2,7675.8,8137.4,"8,599",8902,9205,"10,114"]
["MGMAPrivate PracticeAllSurgery: OralL","Surgery: Oral","Code","MGMA","Private Practice","All",2022,"2,123",2526.8000000000002,2930.6,3334.4,3738.2,"4,142",4992.8,5843.6,6694.4,7545.2,"8,396",9394.6,10393.200000000001,"13,389"]
["MGMAPrivate PracticeAllSurgery: Plastic and ReconstructionL","Surgery: Plastic and Reconstruction","Code","MGMA","Private Practice","All",2022,"5,224",5668.4,6112.8,6557.2,7001.6,"7,446",7939.4,8432.7999999999993,8926.2000000000007,9419.6,"9,913",10578,11243,"13,238"]
["MGMAPrivate PracticeAllSurgery: Plastic and Reconstruction-HandL","Surgery: Plastic and Reconstruction-Hand","Code","MGMA","Private Practice","All",2022,"*","*","*","*","*","*","*","*","*","*","*","*","*","*"]
["MGMAPrivate PracticeAllSurgery: Thoracic (Primary)L","Surgery: Thoracic (Primary)","Code","MGMA","Private Practice","All",2022,"4,646",5082.6000000000004,5519.2,5955.8,6392.4,"6,829",7377.2,7925.4,8473.6,9021.7999999999993,"9,570",10426.4,11282.8,"13,852"]
["MGMAPrivate PracticeAllSurgery: TransplantL","Surgery: Transplant","Code","MGMA","Private Practice","All",2022,"4,737",5007.8,5278.6,5549.4,5820.2,"6,091",6400.4,6709.8,7019.2,7328.6,"7,638",8281.6,8925.2000000000007,"10,856"]
["MGMAPrivate PracticeAllSurgery: Transplant-HeartL","Surgery: Transplant-Heart","Code","MGMA","Private Practice","All",2022,"3,678",3779.4,3880.8,3982.2,4083.6,"4,185",4296.3999999999996,4407.8,4519.2,4630.6000000000004,"4,742",6040,7338,"11,232"]
["MGMAPrivate PracticeAllSurgery: Transplant-KidneyL","Surgery: Transplant-Kidney","Code","MGMA","Private Practice","All",2022,"2,281",2640,2999,3358,3717,"4,076",4251.2,4426.3999999999996,4601.6000000000004,4776.8,"4,952",6574.6,8197.2000000000007,"13,065"]
["MGMAPrivate PracticeAllSurgery: Transplant-LiverL","Surgery: Transplant-Liver","Code","MGMA","Private Practice","All",2022,"4,570",4783.2,4996.3999999999996,5209.6000000000004,5422.8,"5,636",6035,6434,6833,7232,"7,631",8210.4,8789.7999999999993,"10,528"]
["MGMAPrivate PracticeAllSurgery: TraumaL","Surgery: Trauma","Code","MGMA","Private Practice","All",2022,"3,828",4222.3999999999996,4616.8,5011.2,5405.6,"5,800",6286,6772,7258,7744,"8,230",8758.4,9286.7999999999993,"10,872"]
["MGMAPrivate PracticeAllSurgery: Trauma-BurnL","Surgery: Trauma-Burn","Code","MGMA","Private Practice","All",2022,"8,147",8559.2000000000007,8971.4,9383.6,9795.7999999999993,"10,208",10451.4,10694.8,10938.2,11181.6,"11,425",13121.6,14818.2,"19,908"]
["MGMAPrivate PracticeAllSurgery: Vascular (Primary)L","Surgery: Vascular (Primary)","Code","MGMA","Private Practice","All",2022,"6,256",6631.6,7007.2,7382.8,7758.4,"8,134",8637.7999999999993,9141.6,9645.4,10149.200000000001,"10,653",11241.4,11829.8,"13,595"]
["MGMAPrivate PracticeAllUrgent CareL","Urgent Care","Code","MGMA","Private Practice","All",2022,"4,159",4387.3999999999996,4615.8,4844.2,5072.6000000000004,"5,301",5618.8,5936.6,6254.4,6572.2,"6,890",7226.6,7563.2,"8,573"]
["MGMAPrivate PracticeAllUrologyL","Urology","Code","MGMA","Private Practice","All",2022,"6,372",6772,7172,7572,7972,"8,372",8813.2000000000007,9254.4,9695.6,10136.799999999999,"10,578",11067.8,11557.6,"13,027"]
["MGMAPrivate PracticeAllAudiologistL","Audiologist","Code","MGMA","Private Practice","All",2022,"515",576,637,698,759,"820",884.8,949.6,1014.4,1079.2,"1,144",1215.8,1287.5999999999999,"1,503"]
["MGMAPrivate PracticeAllChiropractorL","Chiropractor","Code","MGMA","Private Practice","All",2022,"2,539",2711.4,2883.8,3056.2,3228.6,"3,401",4135.6000000000004,4870.2,5604.7999999999993,6339.4,"7,074",7477.2,7880.4,"9,090"]
["MGMAPrivate PracticeAllClinical Nurse Specialist L","Clinical Nurse Specialist ","Code","MGMA","Private Practice","All",2022,"194",403,612,821,1030,"1,239",1898,2557,3216,3875,"4,534",4729.6000000000004,4925.2,"5,512"]
["MGMAPrivate PracticeAllDietician/NutritionistL","Dietician/Nutritionist","Code","MGMA","Private Practice","All",2022,"631",700.4,769.8,839.2,908.6,"978",1088.5999999999999,1199.2,1309.8,1420.4,"1,531",1560.8,1590.6,"1,680"]
["MGMAPrivate PracticeAllLicensed Clinical Social WorkerL","Licensed Clinical Social Worker","Code","MGMA","Private Practice","All",2022,"1,480",1627.6,1775.2,1922.8,2070.4,"2,218",2373.1999999999998,2528.4,2683.6,2838.8,"2,994",3113.6,3233.2,"3,592"]
["MGMAPrivate PracticeAllNurse Midwife: Outpatient/Inpatient DeliveriesL","Nurse Midwife: Outpatient/Inpatient Deliveries","Code","MGMA","Private Practice","All",2022,"1,643",1818.2,1993.4,2168.6,2343.8000000000002,"2,519",2717,2915,3113,3311,"3,509",3717,3925,"4,549"]
["MGMAPrivate PracticeAllNurse Midwife: Outpatient (Only)L","Nurse Midwife: Outpatient (Only)","Code","MGMA","Private Practice","All",2022,"1,763",1896.8,2030.6,2164.4,2298.1999999999998,"2,432",2707,2982,3257,3532,"3,807",3890,3973,"4,222"]
["MGMAPrivate PracticeAllNurse Midwife: Inpatient (Only)L","Nurse Midwife: Inpatient (Only)","Code","MGMA","Private Practice","All",2022,"1,437",1562.8,1688.6,1814.4,1940.2,"2,066",2247,2428,2609,2790,"2,971",3054.6,3138.2,"3,389"]
["MGMAPrivate PracticeAllNP (Surgical)L","NP (Surgical)","Code","MGMA","Private Practice","All",2022,"569",684.4,799.8,915.2,1030.5999999999999,"1,146",1328.4,1510.8,1693.1999999999998,1875.6,"2,058",2302.1999999999998,2546.4,"3,279"]
["MGMAPrivate PracticeAllNP: AnesthesiologyL","NP: Anesthesiology","Code","MGMA","Private Practice","All",2022,"1,839",1999.8,2160.6,2321.4,2482.1999999999998,"2,643",2850.4,3057.8,3265.2,3472.6,"3,680",4342.3999999999996,5004.8,"6,992"]
["MGMAPrivate PracticeAllNP: Cardiothoracic SurgeryL","NP: Cardiothoracic Surgery","Code","MGMA","Private Practice","All",2022,"327",362.2,397.4,432.6,467.8,"503",661.8,820.6,979.40000000000009,1138.2,"1,297",1496,1695,"2,292"]
["MGMAPrivate PracticeAllNP: NeurosurgeryL","NP: Neurosurgery","Code","MGMA","Private Practice","All",2022,"815",1022.8,1230.5999999999999,1438.4,1646.2,"1,854",2172.4,2490.8000000000002,2809.2,3127.6,"3,446",3929.4,4412.8,"5,863"]
["MGMAPrivate PracticeAllNP: Orthopedics (Surgical)L","NP: Orthopedics (Surgical)","Code","MGMA","Private Practice","All",2022,"1,056",1201,1346,1491,1636,"1,781",2042,2303,2564,2825,"3,086",3450.6,3815.2,"4,909"]
["MGMAPrivate PracticeAllNP: OtorhinolaryngologyL","NP: Otorhinolaryngology","Code","MGMA","Private Practice","All",2022,"2,345",2562.4,2779.8,2997.2,3214.6,"3,432",3696.8,3961.6,4226.3999999999996,4491.2,"4,756",4964,5172,"5,796"]
["MGMAPrivate PracticeAllNP: Surgery: GeneralL","NP: Surgery: General","Code","MGMA","Private Practice","All",2022,"396",460.4,524.79999999999995,589.20000000000005,653.6,"718",961,1204,1447,1690,"1,933",2353.1999999999998,2773.4,"4,034"]
["MGMAPrivate PracticeAllNP: UrologyL","NP: Urology","Code","MGMA","Private Practice","All",2022,"1,819",1994.2,2169.4,2344.6,2519.8000000000002,"2,695",2942.2,3189.4,3436.6,3683.8,"3,931",4177.8,4424.6000000000004,"5,165"]
["MGMAPrivate PracticeAllNP: Vascular SurgeryL","NP: Vascular Surgery","Code","MGMA","Private Practice","All",2022,"867",935.2,1003.4,1071.5999999999999,1139.8,"1,208",1389.6,1571.2,1752.8,1934.4,"2,116",2236.4,2356.8000000000002,"2,718"]
["MGMAPrivate PracticeAllNP (Primary Care)L","NP (Primary Care)","Code","MGMA","Private Practice","All",2022,"2,667",2898,3129,3360,3591,"3,822",4020,4218,4416,4614,"4,812",4969.2,5126.3999999999996,"5,598"]
["MGMAPrivate PracticeAllNP: AdultL","NP: Adult","Code","MGMA","Private Practice","All",2022,"3,563",3796.8,4030.6,4264.3999999999996,4498.2,"4,732",5011.8,5291.6,5571.4,5851.2,"6,131",6290.4,6449.8,"6,928"]
["MGMAPrivate PracticeAllNP: Family Medicine (with OB)L","NP: Family Medicine (with OB)","Code","MGMA","Private Practice","All",2022,"2,637",2863,3089,3315,3541,"3,767",3999.4,4231.8,4464.2,4696.6000000000004,"4,929",5244.2,5559.4,"6,505"]
["MGMAPrivate PracticeAllNP: Family Medicine (without OB)L","NP: Family Medicine (without OB)","Code","MGMA","Private Practice","All",2022,"2,749",2955.8,3162.6,3369.4,3576.2,"3,783",4006.4,4229.8,4453.2,4676.6000000000004,"4,900",5153.2,5406.4,"6,166"]
["MGMAPrivate PracticeAllNP: Gerontology/Elder HealthL","NP: Gerontology/Elder Health","Code","MGMA","Private Practice","All",2022,"1,703",1824.4,1945.8,2067.1999999999998,2188.6,"2,310",2468.1999999999998,2626.4,2784.6,2942.8,"3,101",3425.2,3749.4,"4,722"]
["MGMAPrivate PracticeAllNP: Hospice/Palliative CareL","NP: Hospice/Palliative Care","Code","MGMA","Private Practice","All",2022,"1,389",1507,1625,1743,1861,"1,979",2068.4,2157.8000000000002,2247.1999999999998,2336.6,"2,426",2519.6,2613.1999999999998,"2,894"]
["MGMAPrivate PracticeAllNP: Hospitalist (Primary Care)L","NP: Hospitalist (Primary Care)","Code","MGMA","Private Practice","All",2022,"846",1023.6,1201.2,1378.8000000000002,1556.4,"1,734",1929,2124,2319,2514,"2,709",2903.6,3098.2,"3,682"]
["MGMAPrivate PracticeAllNP: Internal MedicineL","NP: Internal Medicine","Code","MGMA","Private Practice","All",2022,"2,298",2558.8000000000002,2819.6,3080.4,3341.2,"3,602",3852.2,4102.3999999999996,4352.6000000000004,4602.8,"4,853",5091.6000000000004,5330.2,"6,046"]
["MGMAPrivate PracticeAllNP: OB/GYN/Women's HealthL","NP: OB/GYN/Women's Health","Code","MGMA","Private Practice","All",2022,"1,891",2125.1999999999998,2359.4,2593.6,2827.8,"3,062",3271,3480,3689,3898,"4,107",4341,4575,"5,277"]
["MGMAPrivate PracticeAllNP: Pediatric/Child HealthL","NP: Pediatric/Child Health","Code","MGMA","Private Practice","All",2022,"1,752",2065,2378,2691,3004,"3,317",3650.6,3984.2,4317.8,4651.3999999999996,"4,985",5285.2,5585.4,"6,486"]
["MGMAPrivate PracticeAllNP: Urgent CareL","NP: Urgent Care","Code","MGMA","Private Practice","All",2022,"2,981",3303.4,3625.8,3948.2,4270.6000000000004,"4,593",4840.6000000000004,5088.2,5335.8,5583.4,"5,831",6106.2,6381.4,"7,207"]
["MGMAPrivate PracticeAllNP (Nonsurgical/Nonprimary Care)L","NP (Nonsurgical/Nonprimary Care)","Code","MGMA","Private Practice","All",2022,"1,272",1471.6,1671.2,1870.8000000000002,2070.4,"2,270",2490.1999999999998,2710.4,2930.6,3150.8,"3,371",3642.2,3913.4,"4,727"]
["MGMAPrivate PracticeAllNP: Acute CareL","NP: Acute Care","Code","MGMA","Private Practice","All",2022,"635",810.8,986.59999999999991,1162.4000000000001,1338.1999999999998,"1,514",1783.6,2053.1999999999998,2322.8000000000002,2592.4,"2,862",3210.2,3558.4,"4,603"]
["MGMAPrivate PracticeAllNP: Allergy/ImmunologyL","NP: Allergy/Immunology","Code","MGMA","Private Practice","All",2022,"1,561",1854.8,2148.6,2442.4,2736.2,"3,030",3241.8,3453.6,3665.4,3877.2,"4,089",4532.3999999999996,4975.8,"6,306"]
["MGMAPrivate PracticeAllNP: CardiologyL","NP: Cardiology","Code","MGMA","Private Practice","All",2022,"855",1012.8,1170.5999999999999,1328.4,1486.1999999999998,"1,644",1848.6,2053.1999999999998,2257.8000000000002,2462.4,"2,667",2849,3031,"3,577"]
["MGMAPrivate PracticeAllNP: DermatologyL","NP: Dermatology","Code","MGMA","Private Practice","All",2022,"4,406",4767.3999999999996,5128.8,5490.2,5851.6,"6,213",6463.6,6714.2,6964.8,7215.4,"7,466",7859.2,8252.4,"9,432"]
["MGMAPrivate PracticeAllNP: Emergency MedicineL","NP: Emergency Medicine","Code","MGMA","Private Practice","All",2022,"848",1291.8,1735.6,2179.4,2623.2,"3,067",3525.4,3983.8,4442.2,4900.6000000000004,"5,359",5647.4,5935.8,"6,801"]
["MGMAPrivate PracticeAllNP: EndocrinologyL","NP: Endocrinology","Code","MGMA","Private Practice","All",2022,"2,621",2868.8,3116.6,3364.4,3612.2,"3,860",4033.4,4206.8,4380.2,4553.6000000000004,"4,727",5036.2,5345.4,"6,273"]
["MGMAPrivate PracticeAllNP: GastroenterologyL","NP: Gastroenterology","Code","MGMA","Private Practice","All",2022,"1,754",1972.6,2191.1999999999998,2409.8000000000002,2628.4,"2,847",3023.4,3199.8,3376.2,3552.6,"3,729",3936.8,4144.6000000000004,"4,768"]
["MGMAPrivate PracticeAllNP: Hematology/OncologyL","NP: Hematology/Oncology","Code","MGMA","Private Practice","All",2022,"1,034",1207.2,1380.4,1553.6,1726.8,"1,900",2104.8000000000002,2309.6,2514.4,2719.2,"2,924",3112.8,3301.6,"3,868"]
["MGMAPrivate PracticeAllNP: Hospitalist (Nonsurgical/Nonprimary Care)L","NP: Hospitalist (Nonsurgical/Nonprimary Care)","Code","MGMA","Private Practice","All",2022,"757",954,1151,1348,1545,"1,742",1954.4,2166.8000000000002,2379.1999999999998,2591.6,"2,804",3266.2,3728.4,"5,115"]
["MGMAPrivate PracticeAllNP: Infectious DiseaseL","NP: Infectious Disease","Code","MGMA","Private Practice","All",2022,"630",738,846,954,1062,"1,170",1402.2,1634.4,1866.6,2098.8000000000002,"2,331",2800,3269,"4,676"]
["MGMAPrivate PracticeAllNP: Neonatal/PerinatalL","NP: Neonatal/Perinatal","Code","MGMA","Private Practice","All",2022,"339",417.2,495.4,573.6,651.79999999999995,"730",1077.2,1424.4,1771.6,2118.8000000000002,"2,466",2816.4,3166.8,"4,218"]
["MGMAPrivate PracticeAllNP: NephrologyL","NP: Nephrology","Code","MGMA","Private Practice","All",2022,"672",759,846,933,1020,"1,107",1308.2,1509.4,1710.6,1911.8000000000002,"2,113",2342.8000000000002,2572.6,"3,262"]
["MGMAPrivate PracticeAllNP: NeurologyL","NP: Neurology","Code","MGMA","Private Practice","All",2022,"1,162",1389.2,1616.4,1843.6,2070.8000000000002,"2,298",2445,2592,2739,2886,"3,033",3263.8,3494.6,"4,187"]
["MGMAPrivate PracticeAllNP: Orthopedics (Nonsurgical/Nonprimary Care)L","NP: Orthopedics (Nonsurgical/Nonprimary Care)","Code","MGMA","Private Practice","All",2022,"1,128",1422.6,1717.2,2011.8000000000002,2306.4,"2,601",2983,3365,3747,4129,"4,511",4847.2,5183.3999999999996,"6,192"]
["MGMAPrivate PracticeAllNP: PhysiatryL","NP: Physiatry","Code","MGMA","Private Practice","All",2022,"1,342",1667.8,1993.6,2319.4,2645.2,"2,971",3437.2,3903.4,4369.6000000000004,4835.8,"5,302",5558.4,5814.8,"6,584"]
[{"$f":"D195&E195&F195&B195&\"L\"","v":"MGMAPrivate PracticeAllNP: PsychiatryL"},"NP: Psychiatry","Code","MGMA","Private Practice","All",2022,"1,470",{"$f":"IFERROR((((M195-H195)/25)*5) + H195,\"*\")","v":1680.2},{"$f":"IFERROR((((M195-H195)/25)*10) + H195,\"*\")","v":1890.4},{"$f":"IFERROR((((M195-H195)/25)*15) + H195,\"*\")","v":2100.6},{"$f":"IFERROR((((M195-H195)/25)*20) + H195,\"*\")","v":2310.8000000000002},"2,521",{"$f":"IFERROR((((R195-M195)/25)*5) + M195, \"*\")","v":2733},{"$f":"IFERROR((((R195-M195)/25)*10) + M195, \"*\")","v":2945},{"$f":"IFERROR((((R195-M195)/25)*15) + M195, \"*\")","v":3157},{"$f":"IFERROR((((R195-M195)/25)*20) + M195, \"*\")","v":3369},"3,581",{"$f":"IFERROR((((U195-R195)/25)*5) + R195,\"*\")","v":3741.2},{"$f":"IFERROR((((U195-R195)/25)*10) + R195,\"*\")","v":3901.4},"4,382"]
["MGMAPrivate PracticeAllNP: Pulmonary MedicineL","NP: Pulmonary Medicine","Code","MGMA","Private Practice","All",2022,"778",1006,1234,1462,1690,"1,918",2180.4,2442.8000000000002,2705.2,2967.6,"3,230",3440.8,3651.6,"4,284"]
["MGMAPrivate PracticeAllNP: RheumatologyL","NP: Rheumatology","Code","MGMA","Private Practice","All",2022,"2,445",2668,2891,3114,3337,"3,560",3902.2,4244.3999999999996,4586.6000000000004,4928.8,"5,271",5363.4,5455.8,"5,733"]
["MGMAPrivate PracticeAllNP: Urgent Care (Nonsurgical/Nonprimary Care)L","NP: Urgent Care (Nonsurgical/Nonprimary Care)","Code","MGMA","Private Practice","All",2022,"2,497",2864,3231,3598,3965,"4,332",4725.3999999999996,5118.8,5512.2,5905.6,"6,299",6403.8,6508.6,"6,823"]
["MGMAPrivate PracticeAllOccupational TherapistL","Occupational Therapist","Code","MGMA","Private Practice","All",2022,"1,482",1571,1660,1749,1838,"1,927",2027.4,2127.8000000000002,2228.1999999999998,2328.6,"2,429",2572.8000000000002,2716.6,"3,148"]
["MGMAPrivate PracticeAllOptometristL","Optometrist","Code","MGMA","Private Practice","All",2022,"5,043",5253.6,5464.2,5674.8,5885.4,"6,096",6432.2,6768.4,7104.6,7440.8,"7,777",8142.6,8508.2000000000007,"9,605"]
["MGMAPrivate PracticeAllPerfusionistL","Perfusionist","Code","MGMA","Private Practice","All",2022,"*","*","*","*","*","*","*","*","*","*","*","*","*","*"]
["MGMAPrivate PracticeAllPhDL","PhD","Code","MGMA","Private Practice","All",2022,"1,406",1551,1696,1841,1986,"2,131",2335.4,2539.8000000000002,2744.2,2948.6,"3,153",3528,3903,"5,028"]
["MGMAPrivate PracticeAllPhysical TherapistL","Physical Therapist","Code","MGMA","Private Practice","All",2022,"1,915",2017.6,2120.1999999999998,2222.8000000000002,2325.4,"2,428",2572.4,2716.8,2861.2,3005.6,"3,150",3391.4,3632.8,"4,357"]
["MGMAPrivate PracticeAllPA (Surgical)L","PA (Surgical)","Code","MGMA","Private Practice","All",2022,"556",664.4,772.8,881.2,989.6,"1,098",1238.8,1379.6,1520.4,1661.2,"1,802",1948.4,2094.8000000000002,"2,534"]
["MGMAPrivate PracticeAllPA: AllergyL","PA: Allergy","Code","MGMA","Private Practice","All",2022,"*","*","*","*","*","*","*","*","*","*","*","*","*","*"]
["MGMAPrivate PracticeAllPA: Anesthesiology L","PA: Anesthesiology ","Code","MGMA","Private Practice","All",2022,"*","*","*","*","*","*","*","*","*","*","*","*","*","*"]
["MGMAPrivate PracticeAllPA: Cardiothoracic SurgeryL","PA: Cardiothoracic Surgery","Code","MGMA","Private Practice","All",2022,"486",553,620,687,754,"821",897.4,973.8,1050.2,1126.5999999999999,"1,203",1288.4000000000001,1373.8,"1,630"]
["MGMAPrivate PracticeAllPA: NeurosurgeryL","PA: Neurosurgery","Code","MGMA","Private Practice","All",2022,"985",1097.8,1210.5999999999999,1323.4,1436.2,"1,549",1719.4,1889.8,2060.1999999999998,2230.6,"2,401",2594.6,2788.2,"3,369"]
["MGMAPrivate PracticeAllPA: Orthopedic (Surgical)L","PA: Orthopedic (Surgical)","Code","MGMA","Private Practice","All",2022,"1,263",1438.6,1614.2,1789.8,1965.4,"2,141",2397.1999999999998,2653.4,2909.6,3165.8,"3,422",3783.8,4145.6000000000004,"5,231"]
["MGMAPrivate PracticeAllPA: OtorhinolaryngologyL","PA: Otorhinolaryngology","Code","MGMA","Private Practice","All",2022,"1,155",1510.2,1865.4,2220.6000000000004,2575.8000000000002,"2,931",3080.8,3230.6,3380.4,3530.2,"3,680",3932.6,4185.2,"4,943"]
["MGMAPrivate PracticeAllPA: Surgery: GeneralL","PA: Surgery: General","Code","MGMA","Private Practice","All",2022,"519",590.79999999999995,662.6,734.4,806.2,"878",998.6,1119.2,1239.8,1360.4,"1,481",1699.6,1918.2,"2,574"]
["MGMAPrivate PracticeAllPA: UrologyL","PA: Urology","Code","MGMA","Private Practice","All",2022,"1,599",1834,2069,2304,2539,"2,774",3038.8,3303.6,3568.4,3833.2,"4,098",4315,4532,"5,183"]
["MGMAPrivate PracticeAllPA: Vascular SurgeryL","PA: Vascular Surgery","Code","MGMA","Private Practice","All",2022,"798",877.2,956.4,1035.5999999999999,1114.8,"1,194",1235.2,1276.4000000000001,1317.6,1358.8,"1,400",1736.4,2072.8000000000002,"3,082"]
["MGMAPrivate PracticeAllPA (Primary Care)L","PA (Primary Care)","Code","MGMA","Private Practice","All",2022,"3,356",3556.2,3756.4,3956.6,4156.8,"4,357",4534.2,4711.3999999999996,4888.6000000000004,5065.8,"5,243",5399.6,5556.2,"6,026"]
["MGMAPrivate PracticeAllPA: Family Medicine (with OB)L","PA: Family Medicine (with OB)","Code","MGMA","Private Practice","All",2022,"3,242",3554,3866,4178,4490,"4,802",4930.6000000000004,5059.2,5187.8,5316.4,"5,445",6168,6891,"9,060"]
["MGMAPrivate PracticeAllPA: Family Medicine (without OB)L","PA: Family Medicine (without OB)","Code","MGMA","Private Practice","All",2022,"3,241",3432,3623,3814,4005,"4,196",4415.8,4635.6000000000004,4855.3999999999996,5075.2,"5,295",5532.8,5770.6,"6,484"]
["MGMAPrivate PracticeAllPA: Gerontology/Elder HealthL","PA: Gerontology/Elder Health","Code","MGMA","Private Practice","All",2022,"1,605",1718.6,1832.2,1945.8,2059.4,"2,173",2401.8000000000002,2630.6,2859.4,3088.2,"3,317",3539.4,3761.8,"4,429"]
["MGMAPrivate PracticeAllPA: Hospice/Palliative CareL","PA: Hospice/Palliative Care","Code","MGMA","Private Practice","All",2022,"1,240",1379.4,1518.8,1658.2,1797.6,"1,937",2057.8000000000002,2178.6,2299.4,2420.1999999999998,"2,541",3218.8,3896.6,"5,930"]
["MGMAPrivate PracticeAllPA: Hospitalist (Primary Care)L","PA: Hospitalist (Primary Care)","Code","MGMA","Private Practice","All",2022,"653",836.8,1020.5999999999999,1204.4000000000001,1388.1999999999998,"1,572",1734,1896,2058,2220,"2,382",2540.4,2698.8,"3,174"]
["MGMAPrivate PracticeAllPA: Internal MedicineL","PA: Internal Medicine","Code","MGMA","Private Practice","All",2022,"2,523",2803.2,3083.4,3363.6,3643.8,"3,924",4121.3999999999996,4318.8,4516.2,4713.6000000000004,"4,911",5116,5321,"5,936"]
["MGMAPrivate PracticeAllPA: OB/GYN/Women's HealthL","PA: OB/GYN/Women's Health","Code","MGMA","Private Practice","All",2022,"1,647",1849,2051,2253,2455,"2,657",2863.2,3069.4,3275.6,3481.8,"3,688",3893.8,4099.6000000000004,"4,717"]
["MGMAPrivate PracticeAllPA: Pediatric/Child HealthL","PA: Pediatric/Child Health","Code","MGMA","Private Practice","All",2022,"581",961,1341,1721,2101,"2,481",2828,3175,3522,3869,"4,216",4659.2,5102.3999999999996,"6,432"]
["MGMAPrivate PracticeAllPA: Urgent CareL","PA: Urgent Care","Code","MGMA","Private Practice","All",2022,"3,888",4092.8,4297.6000000000004,4502.3999999999996,4707.2,"4,912",5194,5476,5758,6040,"6,322",6603.2,6884.4,"7,728"]
["MGMAPrivate PracticeAllPA (Nonsurgical/Nonprimary Care)L","PA (Nonsurgical/Nonprimary Care)","Code","MGMA","Private Practice","All",2022,"1,624",1806.4,1988.8,2171.1999999999998,2353.6,"2,536",2807.2,3078.4,3349.6,3620.8,"3,892",4122,4352,"5,042"]
["MGMAPrivate PracticeAllPA: Acute CareL","PA: Acute Care","Code","MGMA","Private Practice","All",2022,"423",510,597,684,771,"858",936,1014,1092,1170,"1,248",1355.4,1462.8,"1,785"]
["MGMAPrivate PracticeAllPA: CardiologyL","PA: Cardiology","Code","MGMA","Private Practice","All",2022,"696",882.4,1068.8,1255.2,1441.6,"1,628",1864.6,2101.1999999999998,2337.8000000000002,2574.4,"2,811",3068.2,3325.4,"4,097"]
["MGMAPrivate PracticeAllPA: DermatologyL","PA: Dermatology","Code","MGMA","Private Practice","All",2022,"4,496",4989.2,5482.4,5975.6,6468.8,"6,962",7282.6,7603.2,7923.8,8244.4,"8,565",9060.7999999999993,9556.6,"11,044"]
["MGMAPrivate PracticeAllPA: Emergency MedicineL","PA: Emergency Medicine","Code","MGMA","Private Practice","All",2022,"673",1104.8,1536.6,1968.4,2400.1999999999998,"2,832",3411.6,3991.2,4570.8,5150.3999999999996,"5,730",5949.2,6168.4,"6,826"]
["MGMAPrivate PracticeAllPA: EndocrinologyL","PA: Endocrinology","Code","MGMA","Private Practice","All",2022,"2,533",2689.4,2845.8,3002.2,3158.6,"3,315",3509.2,3703.4,3897.6,4091.8,"4,286",4755.8,5225.6000000000004,"6,635"]
["MGMAPrivate PracticeAllPA: GastroenterologyL","PA: Gastroenterology","Code","MGMA","Private Practice","All",2022,"1,608",1778.8,1949.6,2120.4,2291.1999999999998,"2,462",2649,2836,3023,3210,"3,397",3650.6,3904.2,"4,665"]
["MGMAPrivate PracticeAllPA: Hematology/OncologyL","PA: Hematology/Oncology","Code","MGMA","Private Practice","All",2022,"794",953.6,1113.2,1272.8,1432.4,"1,592",1800.8,2009.6,2218.4,2427.1999999999998,"2,636",2889,3142,"3,901"]
["MGMAPrivate PracticeAllPA: Hospitalist (Nonsurgical/Nonprimary Care)L","PA: Hospitalist (Nonsurgical/Nonprimary Care)","Code","MGMA","Private Practice","All",2022,"970",1120,1270,1420,1570,"1,720",1966.2,2212.4,2458.6,2704.8,"2,951",3159,3367,"3,991"]
["MGMAPrivate PracticeAllPA: Infectious DiseaseL","PA: Infectious Disease","Code","MGMA","Private Practice","All",2022,"1,077",1112.5999999999999,1148.2,1183.8,1219.4000000000001,"1,255",1381.6,1508.2,1634.8,1761.4,"1,888",2002.6,2117.1999999999998,"2,461"]
["MGMAPrivate PracticeAllPA: Neonatal/PerinatalL","PA: Neonatal/Perinatal","Code","MGMA","Private Practice","All",2022,"*","*","*","*","*","*","*","*","*","*","*","*","*","*"]
["MGMAPrivate PracticeAllPA: NephrologyL","PA: Nephrology","Code","MGMA","Private Practice","All",2022,"615",748.8,882.6,1016.4000000000001,1150.2,"1,284",1405.8,1527.6,1649.4,1771.2,"1,893",2302.6,2712.2,"3,941"]
["MGMAPrivate PracticeAllPA: NeurologyL","PA: Neurology","Code","MGMA","Private Practice","All",2022,"1,309",1535.6,1762.2,1988.8,2215.4,"2,442",2647.2,2852.4,3057.6,3262.8,"3,468",3793.8,4119.6000000000004,"5,097"]
["MGMAPrivate PracticeAllPA: Orthopedic (Nonsurgical/Nonprimary Care)L","PA: Orthopedic (Nonsurgical/Nonprimary Care)","Code","MGMA","Private Practice","All",2022,"1,497",1684.8,1872.6,2060.4,2248.1999999999998,"2,436",2686.4,2936.8,3187.2,3437.6,"3,688",3961.4,4234.8,"5,055"]
["MGMAPrivate PracticeAllPA: PhysiatryL","PA: Physiatry","Code","MGMA","Private Practice","All",2022,"2,024",2162.6,2301.1999999999998,2439.8000000000002,2578.4,"2,717",3153.6,3590.2,4026.8,4463.3999999999996,"4,900",5279,5658,"6,795"]
["MGMAPrivate PracticeAllPA: PsychiatryL","PA: Psychiatry","Code","MGMA","Private Practice","All",2022,"1,700",1873.6,2047.2,2220.8000000000002,2394.4,"2,568",2766.6,2965.2,3163.8,3362.4,"3,561",3876.4,4191.8,"5,138"]
["MGMAPrivate PracticeAllPA: Pulmonary MedicineL","PA: Pulmonary Medicine","Code","MGMA","Private Practice","All",2022,"977",1179.2,1381.4,1583.6,1785.8,"1,988",2224.8000000000002,2461.6,2698.4,2935.2,"3,172",3405.4,3638.8,"4,339"]
["MGMAPrivate PracticeAllPA: RheumatologyL","PA: Rheumatology","Code","MGMA","Private Practice","All",2022,"2,518",2759.6,3001.2,3242.8,3484.4,"3,726",4013.4,4300.8,4588.2,4875.6000000000004,"5,163",5244.8,5326.6,"5,572"]
["MGMAPrivate PracticeAllPA: Urgent Care (Nonsurgical/Nonprimary Care)L","PA: Urgent Care (Nonsurgical/Nonprimary Care)","Code","MGMA","Private Practice","All",2022,"2,575",2841.6,3108.2,3374.8,3641.4,"3,908",4097,4286,4475,4664,"4,853",5040.8,5228.6000000000004,"5,792"]
["MGMAPrivate PracticeAllPsychologistL","Psychologist","Code","MGMA","Private Practice","All",2022,"2,146",2279.8000000000002,2413.6,2547.4,2681.2,"2,815",2924.6,3034.2,3143.8,3253.4,"3,363",3479.8,3596.6,"3,947"]
["MGMAPrivate PracticeAllSurgeon AssistantL","Surgeon Assistant","Code","MGMA","Private Practice","All",2022,"*","*","*","*","*","*","*","*","*","*","*","*","*","*"]

{"sheet":"FPSC","index":26,"n_rows":153,"n_cols":21,"rows_kept":153,"cut":false,"hidden":false,"merged":[]}
["Key","Specialty Description","Specialty Code","Source","Type","Category","Year","P25","P30","P35","P40","P45","P50","P55","P60","P65","P70","P75","P80","P85","P90"]
[{"$f":"D2&E2&F2&B2&\"L\"","v":"FPSCAcademicAllAddiction MedicineL"},"Addiction Medicine","AM","FPSC","Academic","All",2022,2336.8883249999999,2560.5392200000001,3271.7676449999999,4012.5993199999998,4612.7416899999998,4955.47955,5139.1447500000004,5299.3785799999996,5421.6712600000001,6187.8357299999998,7648.9857000000002,8061.7192800000003,8526.5494049999998,9378.9450699999998]
[{"$f":"D3&E3&F3&B3&\"L\"","v":"FPSCAcademicAllAllergy / ImmunologyL"},"Allergy / Immunology","04","FPSC","Academic","All",2022,3518.3539500000002,3670.47048,3918.7507700000001,4082.21434,4266.7199000000001,4354.6477000000004,4717.4273199999998,4923.5435399999997,5069.4701100000002,5504.8878599999998,5855.2633500000002,6238.8520399999998,6534.1788299999998,7947.7567200000003]
["FPSCAcademicAllAmbulatory GynecologyL","Ambulatory Gynecology","03","FPSC","Academic","All",2022,4379.8765249999997,4629.2903399999996,4918.1218900000003,5146.8885399999999,5232.64635,5341.0696500000004,5427.0275099999999,5753.8731600000001,5828.4377549999999,6081.3970900000004,6515.8780999999999,6725.0845399999998,7039.26145,7220.4216999999999]
["FPSCAcademicAllAudiologyL","Audiology","ZE","FPSC","Academic","All",2022,775.25617499999998,789.87166000000002,865.28986999999995,886.68106,893.65728000000001,930.12,975.71559000000002,1002.17184,1027.871065,1099.52747,1144.2985000000001,1174.1832400000001,1226.910885,1291.58673]
["FPSCAcademicAllBone Marrow TransplantL","Bone Marrow Transplant","15","FPSC","Academic","All",2022,4262.7474750000001,4466.7331000000004,5145.5918250000004,5352.9050999999999,5495.5159999999996,5931.1215499999998,6200.5849500000004,6323.3333000000002,6685.9639999999999,6907.4393499999996,7523.1611000000003,8143.7559000000001,8385.7176999999992,9176.9251000000004]
["FPSCAcademicAllCardiology: ElectrophysiologyL","Cardiology: Electrophysiology","CE","FPSC","Academic","All",2022,7831.0560999999998,8536.3890800000008,9126.5896400000001,9442.1153400000003,9934.3728200000005,10476.8848,10695.1693,11112.495220000001,11570.401519999999,12134.16742,12514.656300000001,13072.82548,13911.121499999999,15086.78148]
["FPSCAcademicAllCardiology: GeneralL","Cardiology: General","CG","FPSC","Academic","All",2022,5456.65,5926.66,6320.2560999999996,6490.0110999999997,6796.24665,7460.2902999999997,7618.8301499999998,8080.6104999999998,8324.0559499999999,8758.7039999999997,9152.4262500000004,9553.6525000000001,9956.7340499999991,10937.902099999999]
["FPSCAcademicAllCardiology: InvasiveL","Cardiology: Invasive","CI","FPSC","Academic","All",2022,5020.9835499999999,5341.0282800000004,6035.6126400000003,7825.4892600000003,8761.60671,9066.0714000000007,9457.4336600000006,9679.9980599999999,10118.5936,10218.64004,11439.811949999999,12251.991260000001,12371.002039999999,13624.29544]
["FPSCAcademicAllCardiology: Invasive InterventionalL","Cardiology: Invasive Interventional","CV","FPSC","Academic","All",2022,6822.4575999999997,7223.9691199999997,7753.0808399999996,8039.6589999999997,8576.4005199999992,8903.6064000000006,9278.4084600000006,9559.0633400000006,9956.4791399999995,10684.52836,11465.8336,12117.893620000001,12807.549000000001,14423.39752]
["FPSCAcademicAllCardiology: NoninvasiveL","Cardiology: Noninvasive","CN","FPSC","Academic","All",2022,6123.6955250000001,6466.9146300000002,6779.2030549999999,7258.4291199999998,7471.0213800000001,7911.0883999999996,8169.8788949999998,8513.1395799999991,8904.6071400000001,9248.5170999999991,9832.4481500000002,10365.4233,10879.857665,11419.19663]
["FPSCAcademicAllClinical GeneticsL","Clinical Genetics","G1","FPSC","Academic","All",2022,1515.7635,1630.91902,1834.12618,2073.5018799999998,2340.4582799999998,2390.0508,2459.5941699999998,2586.8072999999999,2645.2931800000001,2747.2298599999999,2896.11285,3115.6882999999998,3599.6001299999998,3695.08268]
["FPSCAcademicAllCritical CareL","Critical Care","09","FPSC","Academic","All",2022,4592.345875,5028.1677499999996,5482.9123049999998,5736.9455799999996,6034.9950799999997,6405.5825500000001,6770.7728500000003,7096.3255200000003,7498.7479549999998,7862.8473100000001,8161.1617999999999,8924.0125000000007,9336.6458550000007,10412.048790000001]
["FPSCAcademicAllDermatologyL","Dermatology","17","FPSC","Academic","All",2022,5870.1916499999998,6213.2625200000002,6665.5951599999999,6852.9282199999998,7427.58266,7826.5168000000003,8240.9074899999996,8705.2663599999996,9093.1136800000004,9324.8217600000007,9768.0697999999993,10759.17482,11708.244479999999,12358.52022]
["FPSCAcademicAllDermatology: Melanoma and Skin CancerL","Dermatology: Melanoma and Skin Cancer","B6","FPSC","Academic","All",2022,6367.1272499999995,6592.0073400000001,7438.6245799999997,7906.8567599999997,8169.4704899999997,8759.2898999999998,9190.10016,9586.4557199999999,9664.5617399999992,10071.643179999999,11341.5672,11746.54016,12024.50021,14885.974679999999]
["FPSCAcademicAllDermatopathologyL","Dermatopathology","DP","FPSC","Academic","All",2022,7799.4162500000002,8532.6154000000006,8989.0424000000003,10489.671399999999,11211.7935,11541.9647,13236.924999999999,15786.156199999999,17310.431700000001,18016.546699999999,18412.3734,19971.278600000001,22364.1829,26005.946199999998]
["FPSCAcademicAllEmergency MedicineL","Emergency Medicine","22","FPSC","Academic","All",2022,5289.3463499999998,5648.7099399999997,6046.7492199999997,6365.2321199999997,6765.0674099999997,7188.6239999999998,7643.6644500000002,8128.5451599999997,8512.2937199999997,9006.1845599999997,9424.7091,9861.8651800000007,10436.507600000001,11081.068600000001]
["FPSCAcademicAllEndocrinology / MetabolismL","Endocrinology / Metabolism","23","FPSC","Academic","All",2022,3953.2444,4462.56646,4621.9460600000002,4780.7866999999997,4988.3666800000001,5297.4848000000002,5503.5830400000004,5778.4507000000003,5954.3067799999999,6162.9199799999997,6325.0093999999999,6584.3904199999997,7040.6133600000003,7820.6257400000004]
["FPSCAcademicAllFamily Medicine (with OB)L","Family Medicine (with OB)","25","FPSC","Academic","All",2022,5149.5595999999996,5343.8343500000001,5611.6782499999999,5722.1221999999998,5825.2281499999999,5903.1863999999996,6002.4019749999998,6212.1207000000004,6539.0037750000001,6677.8231999999998,7000.7500250000003,7505.3621000000003,7610.27315,8058.8363499999996]
["FPSCAcademicAllFamily Medicine (without OB)L","Family Medicine (without OB)","26","FPSC","Academic","All",2022,4103.6274999999996,4347.0424800000001,4644.5496899999998,4848.6225000000004,4971.51926,5223.7745999999997,5431.2863799999996,5631.0701600000002,5915.7444100000002,6141.5316000000003,6482.7882,6754.8513199999998,7405.7427200000002,7951.2351600000002]
["FPSCAcademicAllFamily Medicine: Sports MedicineL","Family Medicine: Sports Medicine","ZF","FPSC","Academic","All",2022,4293.7006000000001,4983.1365500000002,5145.59627,5298.0130799999997,5484.0866550000001,5636.6523500000003,5737.0255100000004,6110.8823400000001,6654.4741899999999,7108.81981,7255.0712249999997,7503.5730599999997,8047.0481250000003,8520.8647000000001]
["FPSCAcademicAllGastroenterologyL","Gastroenterology","27","FPSC","Academic","All",2022,5906.3950000000004,6218.1887399999996,6487.5771199999999,6738.6740799999998,7015.1871799999999,7228.5237999999999,7576.7936600000003,7989.2200199999997,8358.2304199999999,8754.3521000000001,9173.7610999999997,9605.9689199999993,10066.222879999999,10863.99876]
["FPSCAcademicAllGeneral Internal MedicineL","General Internal Medicine","39","FPSC","Academic","All",2022,3893.8946999999998,4118.6545599999999,4358.2618599999996,4521.8118400000003,4714.9462400000002,4884.3082999999997,5076.2335199999998,5257.2258199999997,5475.3038800000004,5744.9567200000001,6017.0066999999999,6255.4485800000002,6520.2355600000001,7103.9480400000002]
["FPSCAcademicAllGeriatricsL","Geriatrics","28","FPSC","Academic","All",2022,2629.2958250000001,2813.0769500000001,3091.8378550000002,3250.5196799999999,3488.5869600000001,3604.0072500000001,3845.7181249999999,3960.09,4079.078395,4298.7371999999996,4479.223,4658.0546000000004,4904.0873449999999,5196.1406500000003]
["FPSCAcademicAllGynecological OncologyL","Gynecological Oncology","29","FPSC","Academic","All",2022,4444.4875000000002,4970.3725999999997,5276.03755,5483.8841000000002,5948.2992999999997,6387.7277000000004,6745.0541999999996,7192.7843000000003,7424.5498500000003,8024.5082000000002,8752.4500499999995,9126.1517999999996,9995.4880499999999,10702.7084]
["FPSCAcademicAllGynecologyL","Gynecology","M5","FPSC","Academic","All",2022,3961.0095000000001,4066.4364599999999,4170.4572250000001,4386.9389799999999,4946.2184649999999,5117.9754000000003,5259.0035850000004,5442.4648800000004,5740.3620950000004,5925.3240699999997,6036.9694,6416.8045400000001,6777.5754349999997,6920.5495799999999]
["FPSCAcademicAllHematologyL","Hematology","72","FPSC","Academic","All",2022,3964.388375,4179.5348999999997,4426.558325,4665.1569,4919.4593000000004,5055.4449500000001,5436.2982000000002,5612.6922000000004,5724.1770500000002,5984.9737999999998,6324.1803250000003,6578.0333000000001,6811.2250249999997,7382.4559499999996]
["FPSCAcademicAllHematology: Malignant DisordersL","Hematology: Malignant Disorders","B7","FPSC","Academic","All",2022,4208.3104499999999,4517.1301999999996,4792.375,4980.76,5295.8598000000002,5707.442,5929.5614500000001,6253.3599000000004,6530.7071500000002,6886.1356999999998,7141.7875999999997,7396.7268000000004,7870.2607500000004,8225.4285999999993]
["FPSCAcademicAllHepatologyL","Hepatology","40","FPSC","Academic","All",2022,4075.529575,4332.0443100000002,4691.8475150000004,4865.2139399999996,5087.8632699999998,5415.2677000000003,5572.6460550000002,5712.3697599999996,6034.5337200000004,6294.5580099999997,6534.1908249999997,7351.2984800000004,7984.9366449999998,9078.55537]
["FPSCAcademicAllHospitalistsL","Hospitalists","ZP","FPSC","Academic","All",2022,3104.92,3335.06342,3482.1315399999999,3656.1735399999998,3781.76278,3900.0356999999999,4062.692,4245.2422399999996,4426.6402799999996,4607.9133199999997,4787.9845999999998,5035.0906400000003,5329.29,5762.4848400000001]
["FPSCAcademicAllInfectious DiseaseL","Infectious Disease","37","FPSC","Academic","All",2022,2980.4178000000002,3177.4194200000002,3442.65517,3572.3374399999998,3793.8373200000001,4039.3303999999998,4163.3766999999998,4392.0459199999996,4624.06149,4852.0435200000002,5082.3072000000002,5429.1531599999998,5856.2410799999998,6417.3478800000003]
["FPSCAcademicAllMaternal and Fetal MedicineL","Maternal and Fetal Medicine","42","FPSC","Academic","All",2022,5686.019875,5889.8108199999997,6418.6113699999996,6704.5049799999997,6984.2877150000004,7485.3432000000003,7721.5295599999999,8326.3264799999997,8769.8441050000001,9394.7931100000005,9959.4429999999993,10444.97586,11633.0293,12467.958339999999]
["FPSCAcademicAllMedical Oncology with InfusionL","Medical Oncology with Infusion","MI","FPSC","Academic","All",2022,6554.5660749999997,6668.1380799999997,6731.9531900000002,6901.3208400000003,7253.0404449999996,7483.1786000000002,7509.0182400000003,7719.9554600000001,8154.5399850000003,8422.0683700000009,8750.383425,9568.0060799999992,9859.2946499999998,9954.0082600000005]
["FPSCAcademicAllMedical Oncology without InfusionL","Medical Oncology without Infusion","74","FPSC","Academic","All",2022,3899.4603999999999,4085.5765200000001,4390.7078849999998,4713.23488,5016.4013450000002,5211.5267000000003,5433.8008300000001,5932.41716,6201.6403399999999,6395.4483600000003,6650.2727999999997,6924.7552400000004,7615.9316849999996,7981.75324]
["FPSCAcademicAllMedical Oncology: Breast CancerL","Medical Oncology: Breast Cancer","B1","FPSC","Academic","All",2022,4387.7220500000003,4636.9087,4833.2777749999996,4984.2876999999999,5354.88,5606.2667499999998,5854.8514750000004,5988.0780999999997,6357.3200500000003,6619.3874500000002,6682.6947499999997,7193.6889000000001,7833.1540000000005,8866.9797999999992]
["FPSCAcademicAllMedical Oncology: GI CancerL","Medical Oncology: GI Cancer","B2","FPSC","Academic","All",2022,4018.3231000000001,4256.44578,4535.7183400000004,4885.0836399999998,5246.0057800000004,5768.0155999999997,6191.8962000000001,6361.1042799999996,6731.7391200000002,7013.2624400000004,7466.84,8112.5510000000004,8425.6676399999997,8884.4808599999997]
["FPSCAcademicAllMOHS SurgeryL","MOHS Surgery","18","FPSC","Academic","All",2022,12922.7371,13105.5867,13486.798199999999,13599.326999999999,13673.747600000001,14417.627699999999,14588.137350000001,15122.4398,15554.898999999999,17434.579099999999,18002.991600000001,18590.2929,21177.372200000002,25077.9375]
["FPSCAcademicAllNephrologyL","Nephrology","46","FPSC","Academic","All",2022,6381.7156999999997,6634.5025999999998,7076.942,7437.62,7712.1747999999998,7988.7570999999998,8463.473,8759.9863000000005,9162.0332999999991,9764.89,10240.985699999999,10761.3871,11589.552600000001,12737.8143]
["FPSCAcademicAllNephrology without DialysisL","Nephrology without Dialysis","N2","FPSC","Academic","All",2022,4737.0643499999996,5129.2588699999997,5288.2410950000003,5365.5895200000004,5540.3855700000004,5708.8463000000002,6069.3305300000002,6208.67,6457.5289000000002,6703.6023699999996,6929.5114249999997,7182.6858199999997,7575.9775,8575.6345899999997]
["FPSCAcademicAllNeurology: Alzheimers / DementiaL","Neurology: Alzheimers / Dementia","51","FPSC","Academic","All",2022,2977.066225,3402.5254799999998,3711.9533550000001,3971.8266600000002,4207.7801749999999,4363.2458999999999,4557.12655,4827.3473199999999,5091.2159549999997,5282.9068699999998,5299.7669749999995,5461.12374,6109.4857149999998,6694.9579700000004]
["FPSCAcademicAllNeurology: Epilepsy / EEGL","Neurology: Epilepsy / EEG","56","FPSC","Academic","All",2022,4563.3503000000001,4804.5322299999998,5130.46929,5383.4068600000001,5714.0507850000004,5952.6701499999999,6294.3043749999997,6657.9634999999998,7002.7771000000002,7348.8452900000002,8119.264975,8498.0182199999999,8998.9700549999998,9759.3540099999991]
["FPSCAcademicAllNeurology: GeneralL","Neurology: General","44","FPSC","Academic","All",2022,3469.45,3734.5077000000001,3938.7401,4165.9642999999996,4380.8625000000002,4508.5667000000003,4683.7358000000004,4897.7174999999997,5155.3199000000004,5483.2843999999996,5807.0675000000001,6191.6606000000002,6689.6437999999998,7525.1]
["FPSCAcademicAllNeurology: Movement DisordersL","Neurology: Movement Disorders","N6","FPSC","Academic","All",2022,3423.7492750000001,3957.24136,4011.1402899999998,4246.9552000000003,4258.0786850000004,4509.7281999999996,4712.6161000000002,4750.9008000000003,4885.7228949999999,5161.2053800000003,5513.0692749999998,5763.2077200000003,6336.8965900000003,6761.4956599999996]
["FPSCAcademicAllNeurology: NeuromuscularL","Neurology: Neuromuscular","53","FPSC","Academic","All",2022,3680.9917,4003.3597599999998,4222.66867,4485.4731599999996,4691.2925100000002,4959.9222,5128.0219200000001,5339.7013399999996,5490.1481999999996,5760.76728,5911.9567999999999,6180.5318200000002,6330.3776600000001,6652.6308600000002]
["FPSCAcademicAllNeurology: StrokeL","Neurology: Stroke","N7","FPSC","Academic","All",2022,3123.9620249999998,3485.1842900000001,3579.4381050000002,3638.5631199999998,3793.4208600000002,4056.8564500000002,4136.04972,4932.9622399999998,5263.2651649999998,5354.0164199999999,5649.7695000000003,5883.6240200000002,6396.0766000000003,7467.4084999999995]
["FPSCAcademicAllNeuropsychologyL","Neuropsychology","K7","FPSC","Academic","All",2022,1634.625,1731.778,1881.4205999999999,2211.2587400000002,2336.2907650000002,2484.6343000000002,2664.0289299999999,2776.9215199999999,2914.3459699999999,3036.0693700000002,3271.9106750000001,3438.7954,3557.3983149999999,4002.0082900000002]
["FPSCAcademicAllNuclear MedicineL","Nuclear Medicine","47","FPSC","Academic","All",2022,3947.4845249999998,4439.0446300000003,4684.2861400000002,4950.3604400000004,5195.9395100000002,5346.0178500000002,5944.1632250000002,6305.6259200000004,6566.7051449999999,6808.6367,7487.1785499999996,7949.7202399999996,9198.3241249999992,9875.9324500000002]
["FPSCAcademicAllObstetrics / GynecologyL","Obstetrics / Gynecology","52","FPSC","Academic","All",2022,5667.5976499999997,5956.5506299999997,6249.1555150000004,6489.8891999999996,6781.5472449999997,7130.6434499999996,7440.99208,7709.7285599999996,8009.8627100000003,8286.6746600000006,8844.6319000000003,9328.9635999999991,9655.4068700000007,10706.052390000001]
["FPSCAcademicAllOphthalmology: Corneal / Refractive SurgeryL","Ophthalmology: Corneal / Refractive Surgery","91","FPSC","Academic","All",2022,7129.1758,7579.0280899999998,8491.7065600000005,8775.8847000000005,9004.4774149999994,9489.2792000000009,9728.4248549999993,10031.155720000001,10386.139719999999,10957.21112,11576.856900000001,12353.82962,13345.154049999999,14740.54082]
["FPSCAcademicAllOphthalmology: General / ComprehensiveL","Ophthalmology: General / Comprehensive","90","FPSC","Academic","All",2022,5342.9323999999997,5856.3121600000004,6489.4270800000004,6710.1728599999997,7356.7326400000002,7801.9049000000005,8516.2534199999991,9081.7320600000003,9436.9682200000007,9728.4268800000009,10588.423500000001,10932.6708,12614.43938,13864.488799999999]
["FPSCAcademicAllOphthalmology: GlaucomaL","Ophthalmology: Glaucoma","92","FPSC","Academic","All",2022,7412.4861000000001,7793.0859899999996,7961.3622249999999,8265.2025400000002,9075.0827700000009,9242.0272000000004,9415.4976399999996,9769.1347800000003,11074.840195000001,11955.988859999999,12769.1067,13280.6237,13670.13416,16462.18879]
["FPSCAcademicAllOphthalmology: NeuroL","Ophthalmology: Neuro","93","FPSC","Academic","All",2022,4845.7148749999997,5570.0319200000004,6044.7541650000003,7029.8841000000002,7350.1869800000004,7440.5625,7565.4604499999996,7717.4553999999998,7950.2290300000004,8465.9436399999995,9151.7072499999995,10195.468779999999,10420.948785,10465.48007]
["FPSCAcademicAllOphthalmology: Oculoplastic / Reconstructive SurgeryL","Ophthalmology: Oculoplastic / Reconstructive Surgery","95","FPSC","Academic","All",2022,6698.9002,6907.3734199999999,7079.3691799999997,7396.3177400000004,7652.4114200000004,7883.1745000000001,8992.2518650000002,9126.2506599999997,9274.6343199999992,9527.6233100000009,10460.011324999999,11153.477919999999,11549.998035000001,12558.132530000001]
["FPSCAcademicAllOphthalmology: OptometryL","Ophthalmology: Optometry","97","FPSC","Academic","All",2022,3267.2247750000001,3421.4405000000002,3623.5811199999998,3710.1,3884.2921500000002,4038.2649000000001,4273.2881600000001,4483.12428,4889.9673350000003,5055.2605800000001,5187.5414000000001,5587.6022800000001,6087.3141649999998,6488.0408399999997]
["FPSCAcademicAllOphthalmology: PediatricL","Ophthalmology: Pediatric","94","FPSC","Academic","All",2022,5373.7117500000004,5744.8357299999998,6014.3794049999997,6319.0472600000003,6963.8952300000001,7200.7223999999997,7395.9215000000004,7713.0589399999999,7903.825855,8151.7437499999996,8267.8363250000002,8732.4404400000003,9788.6876200000006,11179.346519999999]
["FPSCAcademicAllOphthalmology: RetinalL","Ophthalmology: Retinal","96","FPSC","Academic","All",2022,7860.5895,8287.5533799999994,8548.1115800000007,9249.0390399999997,9823.5344600000008,10695.1908,11114.550880000001,12346.5322,13560.842500000001,14193.440140000001,15003.4519,15908.43016,17046.951519999999,17769.79218]
["FPSCAcademicAllOrthopedic Surgery: Foot / AnkleL","Orthopedic Surgery: Foot / Ankle","70","FPSC","Academic","All",2022,6396.05375,7183.8352999999997,7471.0789999999997,7634.6328000000003,7940.4932500000004,8864.9748,9328.6301000000003,9484.9583999999995,10012.846250000001,10477.4719,11184.308999999999,12249.636,12467.690549999999,13043.724899999999]
["FPSCAcademicAllOrthopedic Surgery: GeneralL","Orthopedic Surgery: General","57","FPSC","Academic","All",2022,6036.4276,6565.1920399999999,6850.1602400000002,7094.9152999999997,7831.8283000000001,8264.4742999999999,8500.8390600000002,8814.2215400000005,9144.0056600000007,10177.311240000001,10570.0224,11658.448399999999,12397.133540000001,14071.154920000001]
["FPSCAcademicAllOrthopedic Surgery: HandL","Orthopedic Surgery: Hand","36","FPSC","Academic","All",2022,6869.1031750000002,7410.4622399999998,8023.5303199999998,8515.8093000000008,9091.4071700000004,9650.2603999999992,10478.02234,10968.72804,11338.447795,11946.462170000001,13035.240275,13638.015740000001,13998.535115000001,15302.72733]
["FPSCAcademicAllOrthopedic Surgery: JointL","Orthopedic Surgery: Joint","35","FPSC","Academic","All",2022,7680.8568999999998,8067.1273199999996,8292.1105000000007,8635.5141600000006,8935.1964000000007,9431.9028999999991,9951.4058800000003,10893.39522,11484.127420000001,12670.89522,13227.4881,14110.570180000001,14959.45336,16879.15278]
["FPSCAcademicAllOrthopedic Surgery: OncologyL","Orthopedic Surgery: Oncology","62","FPSC","Academic","All",2022,5055.6221500000001,5204.3658299999997,5771.9250650000004,6252.0586199999998,6382.0218699999996,6558.3202499999998,6787.8493049999997,7108.9576999999999,7357.5604800000001,7970.6643100000001,8322.4585750000006,8875.1252800000002,9291.0352800000001,11177.11211]
["FPSCAcademicAllOrthopedic Surgery: PediatricL","Orthopedic Surgery: Pediatric","67","FPSC","Academic","All",2022,5571.1681500000004,5846.6289399999996,6082.0367999999999,6524.0321599999997,6592.2708899999998,7235.1851999999999,7501.7239900000004,8295.5590200000006,8429.39545,9368.1554400000005,9824.4763500000008,10398.547619999999,11049.017809999999,12363.082640000001]
["FPSCAcademicAllOrthopedic Surgery: Shoulder / ElbowL","Orthopedic Surgery: Shoulder / Elbow","88","FPSC","Academic","All",2022,8313.6982499999995,9209.0206199999993,9660.1048800000008,10085.75614,10665.246289999999,12179.7413,12792.292960000001,13421.735339999999,13791.88314,14381.27046,15069.0591,15170.470520000001,15430.33747,18621.453839999998]
["FPSCAcademicAllOrthopedic Surgery: SpineL","Orthopedic Surgery: Spine","31","FPSC","Academic","All",2022,9607.7341250000009,10118.902480000001,10489.081469999999,11606.96982,12815.09996,13460.8856,14412.826915,15260.649460000001,16041.899705,18274.958129999999,19318.854650000001,20201.566139999999,21602.128304999998,22110.005570000001]
["FPSCAcademicAllOrthopedic Surgery: Sports MedicineL","Orthopedic Surgery: Sports Medicine","85","FPSC","Academic","All",2022,7108.6742999999997,7636.6918400000004,8455.0171499999997,8669.1911999999993,9073.3050199999998,9356.8323999999993,9681.0803699999997,9990.6232,10331.709430000001,11004.27536,11457.02585,11973.714599999999,12874.38809,14858.957179999999]
["FPSCAcademicAllOrthopedic Surgery: TraumaL","Orthopedic Surgery: Trauma","24","FPSC","Academic","All",2022,7837.4046500000004,8463.7989600000001,8700.8441050000001,9076.8522400000002,9418.8700599999993,9932.0952500000003,10286.963905000001,10769.878699999999,11354.698324999999,11653.94649,11834.386725,12611.525879999999,13486.957205000001,14918.470929999999]
[{"$f":"D67&E67&F67&B67&\"L\"","v":"FPSCAcademicAllOther Therapy ProvidersL"},"Other Therapy Providers","C5","FPSC","Academic","All",2022,1951.5171,2204.7631799999999,2311.0856199999998,2413.39068,2492.5117500000001,2689.9427999999998,2876.5760850000001,2935.9390800000001,2995.9987350000001,3118.6945599999999,3361.8970749999999,3439.6436399999998,3510.1369450000002,3764.1516999999999]
["FPSCAcademicAllOtorhinolaryngologyL","Otorhinolaryngology","58","FPSC","Academic","All",2022,6021.2873,6312.9436800000003,6749.0141000000003,7107.2654199999997,7524.8124200000002,7852.4952999999996,8282.5609999999997,8933.5509199999997,9323.6869200000001,9897.6868400000003,10430.184600000001,11166.68658,12022.270780000001,13014.17488]
["FPSCAcademicAllOtorhinolaryngology: Head and Neck CancerL","Otorhinolaryngology: Head and Neck Cancer","B9","FPSC","Academic","All",2022,8306.3578500000003,8673.1141200000002,9011.4803599999996,9519.1256799999992,9834.1825800000006,10197.8464,10827.73144,11136.290919999999,11886.116760000001,12183.3812,12558.8303,13577.61572,14728.15986,15637.52512]
["FPSCAcademicAllPain ManagementL","Pain Management","19","FPSC","Academic","All",2022,3459.585775,3665.4074300000002,3868.11112,4187.3563800000002,4496.0007050000004,4777.7389000000003,5146.005905,5403.1011799999997,5626.8713550000002,5867.5104000000001,6500.8613249999999,7013.9766,7314.7779899999996,8933.9397499999995]
["FPSCAcademicAllPalliative CareL","Palliative Care","98","FPSC","Academic","All",2022,2368.85185,2569.0689000000002,2624.7643600000001,2813.7525000000001,2950.6692499999999,3072.0875000000001,3218.3207600000001,3332.7754199999999,3560.6986700000002,3778.6453799999999,3978.7,4192.6525199999996,4330.7306699999999,4560.16158]
["FPSCAcademicAllPathology: AnatomicL","Pathology: Anatomic","07","FPSC","Academic","All",2022,4434.8125,4640.26505,5058.752485,5461.5919999999996,5811.0270300000002,6064.8,6385.1426449999999,6706.5517600000003,7050.2735000000002,7413.1060600000001,7855.8536000000004,8369.8178800000005,8851.5475399999996,9865.3131099999991]
["FPSCAcademicAllPathology: ClinicalL","Pathology: Clinical","14","FPSC","Academic","All",2022,3027.4297750000001,3531.8752899999999,3906.0140000000001,4428.2679600000001,4672.6783750000004,5117.7478499999997,5334.1551300000001,6134.527,6536.9219450000001,7076.4620000000004,7351.3548000000001,7560.1970799999999,8231.3457099999996,9242.9581899999994]
["FPSCAcademicAllPathology: CytopathologyL","Pathology: Cytopathology","CY","FPSC","Academic","All",2022,4347.5294000000004,4747.9166599999999,5153.8879399999996,5610.6911600000003,5730.8341600000003,5955.7332999999999,6145.7480800000003,6894.2633800000003,7015.5604800000001,7332.6761999999999,8019.8333000000002,8675.7675600000002,9590.6458600000005,11037.155000000001]
["FPSCAcademicAllPathology: HematopathologyL","Pathology: Hematopathology","P2","FPSC","Academic","All",2022,4812.6584999999995,5030.2844400000004,5450.0969699999996,5769.5435799999996,5995.5852699999996,6360.3647000000001,6406.61175,6968.9995799999997,7586.40888,7995.4908800000003,8435.7710000000006,8685.1106799999998,9542.1253400000005,9878.2021000000004]
["FPSCAcademicAllPathology: SurgicalL","Pathology: Surgical","80","FPSC","Academic","All",2022,5033.9458249999998,5270.3561099999997,5548.8744850000003,5885.0062600000001,6329.747805,6874.2349999999997,7238.1340049999999,7493.4770799999997,7844.0891700000002,8125.9336499999999,8805.6268999999993,9177.3887799999993,9775.5437199999997,10722.898380000001]
["FPSCAcademicAllPediatric Hematology: Malignant DisordersL","Pediatric Hematology: Malignant Disorders","B8","FPSC","Academic","All",2022,2693.0073000000002,3143.5355599999998,3342.2558600000002,3486.6329799999999,3614.9384399999999,3794.5412000000001,4111.1633700000002,4168.8385799999996,4231.4104799999996,4524.0883000000003,4585.0150999999996,4658.8379999999997,5311.7932700000001,6170.7695999999996]
["FPSCAcademicAllPediatrics: Adolescent MedicineL","Pediatrics: Adolescent Medicine","41","FPSC","Academic","All",2022,2739.3162750000001,2827.3911499999999,2896.3158250000001,3134.6669999999999,3270.7928499999998,3577.9364500000001,3865.6203999999998,3876.2890000000002,3892.6264999999999,3982.0709000000002,4112.8557250000003,4313.0655999999999,4471.3377,4753.4795999999997]
["FPSCAcademicAllPediatrics: Allergy / ImmunologyL","Pediatrics: Allergy / Immunology","05","FPSC","Academic","All",2022,2667.35,2707.6225800000002,2858.0670599999999,2925.2673399999999,3036.3337200000001,3074.5657999999999,3477.1099199999999,3551.0605399999999,3619.3742000000002,3753.2607800000001,3959.6266999999998,4274.1353600000002,4733.9447399999999,5292.3633799999998]
["FPSCAcademicAllPediatrics: Bone Marrow TransplantL","Pediatrics: Bone Marrow Transplant","DC","FPSC","Academic","All",2022,2237.3966500000001,2335.3148099999999,2466.4019899999998,2518.3668400000001,2659.73551,2819.9677999999999,2914.930425,3223.0591399999998,3610.406845,3773.049,4105.8434500000003,4319.9466000000002,4979.0817649999999,5493.7013200000001]
["FPSCAcademicAllPediatrics: CardiologyL","Pediatrics: Cardiology","63","FPSC","Academic","All",2022,3422.3818000000001,3694.79556,3921.9261750000001,4303.9633000000003,4533.8273849999996,4735.8976000000002,4974.4590399999997,5266.9569199999996,5514.2446,5722.2874599999996,6140.4141749999999,6465.4513399999996,6727.7473950000003,7240.6837599999999]
["FPSCAcademicAllPediatrics: Cardiology InterventionalL","Pediatrics: Cardiology Interventional","P9","FPSC","Academic","All",2022,4959.6568500000003,5147.8470799999996,5194.2587100000001,5410.5297799999998,5638.8084699999999,5998.652,6069.3381300000001,6261.1435199999996,6336.1598100000001,6792.36294,7486.1310999999996,7736.5005799999999,8000.4395000000004,8241.6708199999994]
["FPSCAcademicAllPediatrics: Cardiology-Invasive*L","Pediatrics: Cardiology-Invasive*","33","FPSC","Academic","All",2022,3636.4693750000001,3926.39831,4446.2089450000003,4556.2497800000001,4804.1365249999999,5126.7274500000003,5485.7787850000004,5832.7108600000001,6329.8245200000001,6755.3124200000002,7488.35545,7957.7711399999998,9807.2927249999993,9976.7077200000003]
["FPSCAcademicAllPediatrics: Cardiology-NoninvasiveL","Pediatrics: Cardiology-Noninvasive","34","FPSC","Academic","All",2022,4315.0113499999998,4538.41,4795.3583500000004,4987.8675999999996,5050.0541499999999,5124.9888000000001,5293.2030500000001,5580.1612999999998,5608.4300999999996,5914.7030999999997,5981.8392999999996,6172.0664999999999,6451.1116499999998,6805.6]
["FPSCAcademicAllPediatrics: Critical CareL","Pediatrics: Critical Care","A5","FPSC","Academic","All",2022,3627.3867,4171.0953399999999,4388.0226400000001,4551.58104,4817.2506599999997,4941.5411999999997,5346.7722800000001,5743.9721200000004,6059.0988399999997,6297.6508999999996,7021.2995000000001,7326.7879999999996,7652.17094,7906.5159999999996]
["FPSCAcademicAllPediatrics: DermatologyL","Pediatrics: Dermatology","P6","FPSC","Academic","All",2022,5350.7043750000003,5668.5574699999997,5947.9779500000004,6036.96,6328.7010950000004,6527.2520500000001,6584.2621550000003,7387.0234399999999,7851.7298700000001,8362.2581699999992,8717.7958249999992,8898.6566199999997,9631.9156449999991,10723.08929]
["FPSCAcademicAllPediatrics: DevelopmentalL","Pediatrics: Developmental","A2","FPSC","Academic","All",2022,2155.8714500000001,2492.5838800000001,2586.9199699999999,2800.3554399999998,2847.7208000000001,2982.0587999999998,3068.0568800000001,3143.2421800000002,3208.8587499999999,3475.29484,3615.0486000000001,4009.0093999999999,4781.2942599999997,5663.5590199999997]
["FPSCAcademicAllPediatrics: Emergency MedicineL","Pediatrics: Emergency Medicine","20","FPSC","Academic","All",2022,3616.2511,3944.2813000000001,4062.20786,4325.0984799999997,4611.2817800000003,4995.6976999999997,5253.2575999999999,5450.8155999999999,5828.4916199999998,6278.7373200000002,6478.7259000000004,6663.8957399999999,6909.4871599999997,7367.3722200000002]
["FPSCAcademicAllPediatrics: EndocrinologyL","Pediatrics: Endocrinology","64","FPSC","Academic","All",2022,2773.437175,2978.3263400000001,3115.1070049999998,3203.5862999999999,3259.0093649999999,3430.7509,3622.7733250000001,3952.9905399999998,4176.4029049999999,4356.1183700000001,4519.4142250000004,4605.0240199999998,4958.60088,5266.0812299999998]
["FPSCAcademicAllPediatrics: GastroenterologyL","Pediatrics: Gastroenterology","A8","FPSC","Academic","All",2022,3252.5424499999999,3462.66,3535.5250799999999,3738.8053599999998,3873.0080600000001,4046.19,4147.7630300000001,4307.3928800000003,4546.8587399999997,4680.8864599999997,5013.1115499999996,5261.2369799999997,5454.1596,5839.03]
["FPSCAcademicAllPediatrics: GeneralL","Pediatrics: General","61","FPSC","Academic","All",2022,2900.9432999999999,3053.42598,3310.2961399999999,3494.7021599999998,3678.8524600000001,3867.6927999999998,4064.9738400000001,4271.5476799999997,4419.3913599999996,4609.9663799999998,4858.0455000000002,5379.9543400000002,5612.6460200000001,6210.9176799999996]
["FPSCAcademicAllPediatrics: Hematology / OncologyL","Pediatrics: Hematology / Oncology","A7","FPSC","Academic","All",2022,2428.2624999999998,2483.41,2562.12914,2684.6705000000002,2918.3858399999999,3158.5832999999998,3520.6874400000002,3684.3346200000001,3909.0745000000002,4055.3102199999998,4148.1571000000004,4347.5959599999996,4614.4700599999996,4967.8521199999996]
["FPSCAcademicAllPediatrics: HospitalistsL","Pediatrics: Hospitalists","43","FPSC","Academic","All",2022,1690.249225,1801.47164,1984.041925,2113.6651999999999,2207.44391,2283.9512500000001,2340.7888250000001,2438.9810200000002,2538.8534650000001,2633.9045700000001,2827.89705,3062.1636199999998,3384.16678,3868.1163900000001]
["FPSCAcademicAllPediatrics: Infectious DiseaseL","Pediatrics: Infectious Disease","11","FPSC","Academic","All",2022,1756.0165750000001,1907.99956,2079.2761650000002,2224.0245399999999,2328.4022749999999,2374.8516500000001,2468.1509999999998,2549.34924,2627.5853699999998,2797.6025,2982.7089500000002,3178.8422399999999,3315.6464299999998,3423.7710200000001]
["FPSCAcademicAllPediatrics: Neonatal MedicineL","Pediatrics: Neonatal Medicine","48","FPSC","Academic","All",2022,7836.2826999999997,8429.7342599999993,9132.4697199999991,9717.8233600000003,10294.03946,11035.389800000001,11512.62048,12030.798199999999,12597.504300000001,13434.53434,14073.044099999999,14600.8933,15239.31328,16192.459720000001]
["FPSCAcademicAllPediatrics: NephrologyL","Pediatrics: Nephrology","49","FPSC","Academic","All",2022,2832.0403999999999,2958.7727,3245.7847999999999,3388.1259,3557.66255,3724.3386999999998,3842.2108499999999,3957.72,4361.6508000000003,4542.6428999999998,4782.6665000000003,5097.5322999999999,5558.8982500000002,5958.0771000000004]
["FPSCAcademicAllPediatrics: NeurologyL","Pediatrics: Neurology","12","FPSC","Academic","All",2022,3020.35,3200.4122200000002,3315.5118000000002,3493.0904399999999,3831.4983200000001,3932.6579000000002,4102.0127400000001,4200.8552799999998,4415.8084200000003,4566.8982800000003,4917.6153999999997,5582.4240600000003,6155.9253600000002,6909.9259000000002]
["FPSCAcademicAllPediatrics: OtorhinolaryngologyL","Pediatrics: Otorhinolaryngology","68","FPSC","Academic","All",2022,4792.9191000000001,5412.4610599999996,5677.5105000000003,5718.5403800000004,5920.7927399999999,6048.0448999999999,6200.8419000000004,6304.7707,6561.9650600000004,6923.1563999999998,7385.8572000000004,7963.8435399999998,8251.7283399999997,9103.3589800000009]
["FPSCAcademicAllPediatrics: PsychiatryL","Pediatrics: Psychiatry","65","FPSC","Academic","All",2022,2428.1707000000001,2650.2948000000001,3048.9036249999999,3241.9606399999998,3359.14957,3463.4481000000001,3715.0183999999999,3798.4747600000001,4100.0914599999996,4553.1885700000003,4769.2826249999998,4932.1670599999998,5243.6583700000001,6678.7008599999999]
["FPSCAcademicAllPediatrics: PsychologyL","Pediatrics: Psychology","K8","FPSC","Academic","All",2022,1551.2173,1739.64129,1961.79411,2094.8872200000001,2163.0457299999998,2290.4083000000001,2410.4850499999998,2587.6267200000002,2765.4481000000001,2840.1667900000002,2983.3934250000002,3251.0875000000001,3519.7948500000002,3977.2786999999998]
["FPSCAcademicAllPediatrics: PulmonologyL","Pediatrics: Pulmonology","A6","FPSC","Academic","All",2022,2839.1803,2932.4244399999998,3112.6307400000001,3249.2044000000001,3353.7804000000001,3569.2754,3641.1876600000001,3787.2462799999998,3914.9265799999998,4020.03172,4182.0084999999999,4577.5636199999999,4781.55062,5025.7887000000001]
["FPSCAcademicAllPediatrics: RehabilitationL","Pediatrics: Rehabilitation","45","FPSC","Academic","All",2022,3165.6954000000001,3186.3904400000001,3269.90497,3449.3814200000002,3556.8825000000002,3595.6077,3610.67938,3662.7784999999999,3679.41165,3831.8444399999998,4264.5937999999996,4620.1076199999998,5206.3718099999996,5512.3340799999996]
["FPSCAcademicAllPediatrics: RheumatologyL","Pediatrics: Rheumatology","21","FPSC","Academic","All",2022,2556.0772499999998,2708.1247899999998,2821.0304249999999,2881.2,2975.9991949999999,3082.4976999999999,3193.9918400000001,3239.48938,3345.6737899999998,3874.19382,4314.21245,4711.9795999999997,4929.5300100000004,5581.9719999999998]
["FPSCAcademicAllPediatrics: UrologyL","Pediatrics: Urology","M8","FPSC","Academic","All",2022,5933.5324499999997,6281.0639000000001,6566.47955,6992.3668600000001,7367.3982900000001,8157.9047,8383.3993200000004,8977.9341399999994,9285.4381799999992,9844.6764999999996,10354.42505,10698.10512,11126.442520000001,12658.96982]
["FPSCAcademicAllPhysical Medicine: GeneralL","Physical Medicine: General","69","FPSC","Academic","All",2022,3932.7152000000001,4211.37788,4371.3430200000003,4608.20784,4920.8765400000002,5187.4062999999996,5634.0951999999997,5983.0129200000001,6340.7522799999997,6635.3127000000004,6874.3050000000003,7123.8114599999999,7583.4745400000002,8310.8091800000002]
["FPSCAcademicAllPhysical Medicine: NeurologicalL","Physical Medicine: Neurological","C2","FPSC","Academic","All",2022,3524.6334499999998,3721.6635500000002,4097.7998500000003,4299.2138999999997,4800.1290499999996,5226.3824000000004,5641.3138250000002,5738.4556000000002,5913.04475,6219.8397000000004,6734.9068500000003,7055.7397000000001,7299.7188999999998,7884.62]
["FPSCAcademicAllPhysical Medicine: Pain and SpineL","Physical Medicine: Pain and Spine","C4","FPSC","Academic","All",2022,4324.4588000000003,4601.1874799999996,4800.6420150000004,5000.1427800000001,5263.3418799999999,5439.9096,5627.4089999999997,5754.0240000000003,6064.7520249999998,6422.6494000000002,6713.8516,7180.2127,7854.3380850000003,8760.3167200000007]
["FPSCAcademicAllPhysical Medicine: Sports - MSKL","Physical Medicine: Sports - MSK","C3","FPSC","Academic","All",2022,3926.5128,3975.0605,4135.6605600000003,4220.1317600000002,4408.8339999999998,4656.9053999999996,5054.06412,5179.1238599999997,5439.5321400000003,5555.7931600000002,5708.2638999999999,6074.4810600000001,6320.7784600000005,7815.4285799999998]
["FPSCAcademicAllPhysical TherapyL","Physical Therapy","P1","FPSC","Academic","All",2022,1984.7411999999999,2106.1846999999998,2305.6473000000001,2323.7262000000001,2395.7125000000001,2457.6338999999998,2524.7889,2598.5571,2647.0317,2821.9364,2893.4535000000001,3164.0778,3401.5572999999999,3761.35]
["FPSCAcademicAllPodiatryL","Podiatry","ZA","FPSC","Academic","All",2022,5468.3467499999997,5759.2842000000001,5915.9870000000001,6038.6009999999997,6501.6771500000004,6997.3064999999997,7172.3532999999998,7455.6174000000001,7655.3430500000004,8048.0092999999997,8701.0729749999991,8814.5974999999999,9226.5192000000006,10211.057699999999]
["FPSCAcademicAllPsychiatryL","Psychiatry","59","FPSC","Academic","All",2022,2754.9881999999998,3109.6758599999998,3320.7849999999999,3555.7119600000001,3801.88238,4112.3874999999998,4389.6574799999999,4635.0631199999998,4964.7385599999998,5350.8090400000001,5656.1719000000003,5980.1195399999997,6537.8040199999996,7158.0989399999999]
["FPSCAcademicAllPsychologyL","Psychology","60","FPSC","Academic","All",2022,2020.204475,2142.3804,2262.4811,2449.2247000000002,2565.8380750000001,2692.4005000000002,2841.009,3024.08,3202.248,3347.2130000000002,3495.5107250000001,3737.2593000000002,4001.1804499999998,4406.8209999999999]
["FPSCAcademicAllPulmonary DiseaseL","Pulmonary Disease","73","FPSC","Academic","All",2022,4881.8072249999996,5139.8506100000004,5434.3542649999999,5737.5972000000002,5898.8026650000002,6117.9233000000004,6415.0134950000001,6736.0124999999998,7247.1597250000004,7574.9512000000004,7790.2828250000002,8342.0960799999993,8731.7908150000003,9563.91093]
["FPSCAcademicAllRadiation OncologyL","Radiation Oncology","79","FPSC","Academic","All",2022,8282.2294000000002,8761.1034999999993,9394.4886999999999,9868.8866999999991,10273.3683,10555.691999999999,11560.866599999999,12043.099700000001,12827.387500000001,13487.1029,14221.6167,15072.215200000001,15357.6857,16787.695899999999]
["FPSCAcademicAllRadiation Oncology: Breast CancerL","Radiation Oncology: Breast Cancer","B4","FPSC","Academic","All",2022,9202.4007999999994,9605.2557799999995,10038.5512,10247.15058,10798.481250000001,11102.283299999999,11585.794879999999,12033.44118,12466.451849999999,13457.28872,13915.724099999999,14408.93922,14810.64561,15687.794620000001]
["FPSCAcademicAllRadiation Oncology: Genitourinary CancerL","Radiation Oncology: Genitourinary Cancer","B3","FPSC","Academic","All",2022,9497.9777749999994,9551.2145799999998,10036.314839999999,10363.414860000001,10941.970359999999,11155.133900000001,11735.183195,12466.815199999999,12746.29506,13593.78139,14198.268674999999,15431.009599999999,16861.325250000002,19345.063030000001]
["FPSCAcademicAllRadiation Oncology: Head and Neck CancerL","Radiation Oncology: Head and Neck Cancer","B5","FPSC","Academic","All",2022,7122.1219000000001,7762.1739799999996,8074.3630549999998,9057.9737600000008,9722.2489299999997,10010.2904,10364.854485,10707.072819999999,12148.067755,13423.24,13716.560799999999,14465.98984,14832.735114999999,15597.49049]
["FPSCAcademicAllRadiology: DiagnosticL","Radiology: Diagnostic","75","FPSC","Academic","All",2022,6445.2672000000002,6990.741,7636.8804600000003,8228.4282800000001,8722.6980800000001,9203.6882000000005,9655.2667600000004,10101.599099999999,10591.92302,11127.083259999999,11572.2209,12503.268120000001,13275.995279999999,14049.838460000001]
["FPSCAcademicAllRadiology: InterventionalL","Radiology: Interventional","38","FPSC","Academic","All",2022,5009.1373000000003,5238.2043199999998,5517.68696,5761.7679200000002,6155.34962,6412.1116000000002,6676.8598599999996,7178.4500399999997,7375.9374600000001,7808.5624600000001,8356.0107000000007,8988.6660200000006,9657.7351199999994,10664.51496]
["FPSCAcademicAllReproductive EndocrinologyL","Reproductive Endocrinology","76","FPSC","Academic","All",2022,4885.0604999999996,5178.3458099999998,5604.0940899999996,6158.4194600000001,6402.5001099999999,6829.7798499999999,7070.0082400000001,7696.6316399999996,8568.1673549999996,9082.2464,9543.5553500000005,10893.369979999999,13378.578364999999,15762.426079999999]
["FPSCAcademicAllRheumatologyL","Rheumatology","77","FPSC","Academic","All",2022,4206.5325999999995,4363.0024999999996,4632.0537000000004,4780.9058999999997,4954.7529500000001,5055.4016000000001,5221.6343500000003,5335.6992,5707.1865500000004,5876.8815000000004,6226.0769499999997,6369.9436999999998,6654.98765,6958.2156000000004]
["FPSCAcademicAllSleep MedicineL","Sleep Medicine","55","FPSC","Academic","All",2022,4094.7736,4301.9943000000003,4871.4222900000004,5102.1920200000004,5166.6926800000001,5447.6477000000004,5544.1044899999997,5932.5935600000003,6134.58212,6430.9238800000003,6637.3943499999996,7150.2374399999999,7413.81495,7508.5415800000001]
["FPSCAcademicAllSocial WorkerL","Social Worker","SW","FPSC","Academic","All",2022,1290.2960499999999,1453.63572,1567.3577,1830.9328800000001,1961.6775,2122.6864999999998,2240.489,2500.7839600000002,2761.944555,2902.53341,3012.6675,3085.3273199999999,3193.682875,3512.6707500000002]
["FPSCAcademicAllSurgery: Bariatric*L","Surgery: Bariatric*","N5","FPSC","Academic","All",2022,4868.1963999999998,5563.2960300000004,6219.0080449999996,6448.85088,6907.9863450000003,7646.41975,8182.8070900000002,8392.6477200000008,8812.0932699999994,9216.4484699999994,11964.575624999999,12355.28074,13383.191035,14832.535529999999]
["FPSCAcademicAllSurgery: BurnL","Surgery: Burn","13","FPSC","Academic","All",2022,9544.6191500000004,10013.59626,11109.13451,11751.524439999999,11840.028795,11918.576349999999,12564.114724999999,13333.116019999999,13876.68483,14849.051170000001,15580.556525,17186.197759999999,18617.494849999999,22574.201140000001]
["FPSCAcademicAllSurgery: CardiacL","Surgery: Cardiac","81","FPSC","Academic","All",2022,7285.7120000000004,7604.8864999999996,8355.2062999999998,8929.4771000000001,9318.1460999999999,9814.6805000000004,10350.5445,10908.828,11539.342199999999,12371.361000000001,14147.2505,15119.123,16796.018199999999,20295.8256]
["FPSCAcademicAllSurgery: Colon and RectalL","Surgery: Colon and Rectal","16","FPSC","Academic","All",2022,5682.39,5895.11114,6171.0852100000002,6439.9789000000001,7226.2481799999996,7815.0531000000001,8192.9997399999993,8522.2943400000004,8774.11391,9302.1471799999999,9564.1874000000007,9780.3640599999999,10353.687379999999,11959.29694]
["FPSCAcademicAllSurgery: GeneralL","Surgery: General","32","FPSC","Academic","All",2022,4976.8178500000004,5372.1510399999997,5842.6901500000004,6274.8882199999998,6560.2723299999998,7017.0830999999998,7331.2536300000002,7826.5817399999996,8648.6909500000002,9414.9553199999991,9863.4884999999995,10477.42122,11456.699689999999,12679.932640000001]
["FPSCAcademicAllSurgery: NeurologicalL","Surgery: Neurological","50","FPSC","Academic","All",2022,6800.0627999999997,7354.4429,8220.8212199999998,9020.0648399999991,9568.4398000000001,10239.567499999999,10912.79386,11701.033299999999,12614.377259999999,13218.999400000001,14148.951800000001,14900.539919999999,17086.51296,19325.08222]
["FPSCAcademicAllSurgery: OralL","Surgery: Oral","A0","FPSC","Academic","All",2022,3312.2889249999998,3398.6598300000001,3963.957735,4061.0183000000002,4307.1671999999999,4713.15805,4864.8339850000002,5013.2311399999999,5317.801735,6094.5646999999999,6655.2237500000001,7163.6470600000002,7837.1061300000001,9726.7177800000009]
[{"$f":"D131&E131&F131&B131&\"L\"","v":"FPSCAcademicAllSurgery: PediatricL"},"Surgery: Pediatric","66","FPSC","Academic","All",2022,3888.9618999999998,4232.6986200000001,4511.1368599999996,4760.4348799999998,5126.8273399999998,5339.6268,5676.4836999999998,5998.2485999999999,6504.0258599999997,6786.5735199999999,7219.3636999999999,7491.1800599999997,8159.0562600000003,8960.6011400000007]
["FPSCAcademicAllSurgery: Pediatric CardiacL","Surgery: Pediatric Cardiac","G3","FPSC","Academic","All",2022,5282.6230999999998,5826.21911,5944.8479600000001,6093.9407799999999,6754.7536849999997,7509.2066000000004,8015.3378700000003,8431.97552,9315.8871949999993,10260.329019999999,10729.689824999999,11360.62386,11913.938829999999,12183.3817]
["FPSCAcademicAllSurgery: Pediatric NeurosurgeryL","Surgery: Pediatric Neurosurgery","G2","FPSC","Academic","All",2022,4140.3778000000002,4185.96576,4268.2390800000003,4801.4800400000004,5277.9635200000002,5758.7332999999999,6142.7488000000003,6360.9447399999999,6524.0099399999999,6867.4790400000002,7615.5753999999997,7938.1517599999997,8707.3096800000003,9441.1559199999992]
["FPSCAcademicAllSurgery: PlasticL","Surgery: Plastic","71","FPSC","Academic","All",2022,6318.5006999999996,6569.5368500000004,6861.2206249999999,7397.6391999999996,7962.4762250000003,8288.4786999999997,8921.9841500000002,9424.3106000000007,9907.4021250000005,10546.1518,11502.919175000001,12986.1188,14247.36505,16036.9069]
["FPSCAcademicAllSurgery: ThoracicL","Surgery: Thoracic","87","FPSC","Academic","All",2022,5038.5473000000002,5519.0560999999998,5948.2616799999996,6145.73,6615.9070300000003,7092.3424000000005,7901.7215100000003,8393.3245200000001,8947.3965399999997,9783.0551200000009,10458.364,10930.30042,11890.017690000001,13146.025659999999]
["FPSCAcademicAllSurgery: TraumaL","Surgery: Trauma","ZT","FPSC","Academic","All",2022,6275.3504000000003,6512.69355,6969.6949450000002,7369.7118200000004,7889.4946399999999,8282.7661499999995,8696.9477150000002,9070.3004400000009,9522.2168600000005,10086.98698,10681.520549999999,11575.57502,12648.101525,13612.614390000001]
["FPSCAcademicAllSurgery: VascularL","Surgery: Vascular","86","FPSC","Academic","All",2022,5895.5249000000003,6474.6098199999997,6643.0281400000003,7269.6469200000001,7713.6752900000001,8225.3426999999992,8618.3208500000001,9197.6982399999997,9646.6953900000008,10182.690919999999,11023.159750000001,11931.3539,12947.184069999999,13538.49884]
["FPSCAcademicAllSurgical OncologyL","Surgical Oncology","02","FPSC","Academic","All",2022,5239.2947999999997,5855.3888299999999,5964.0507550000002,6192.5064000000002,6574.54108,7008.6058499999999,7610.7111299999997,8128.64678,8555.0167899999997,8888.1370000000006,9251.6741999999995,9968.3409200000006,10700.02167,11762.74013]
["FPSCAcademicAllSurgical Oncology: BreastL","Surgical Oncology: Breast","30","FPSC","Academic","All",2022,4481.02405,5051.0377699999999,5676.169425,6097.9492600000003,6192.9156000000003,6444.3773000000001,6658.4021000000002,7002.7337799999996,7621.0220900000004,8050.7665100000004,8215.1431499999999,8690.0582400000003,9125.1091250000009,10384.3521]
["FPSCAcademicAllTransplant Surgery: GeneralL","Transplant Surgery: General","TS","FPSC","Academic","All",2022,4311.4618,5246.8906399999996,6046.8637600000002,6351.9864799999996,6642.6229999999996,7094.2271000000001,7294.9804400000003,7833.1055999999999,8403.8622799999994,8818.4091000000008,9859.6090000000004,10509.8686,11931.96178,12834.561799999999]
["FPSCAcademicAllTransplant Surgery: KidneyL","Transplant Surgery: Kidney","10","FPSC","Academic","All",2022,4753.3834999999999,4779.1022400000002,5006.4396800000004,5271.1211199999998,5516.34692,6007.0684000000001,6358.91176,6502.8383400000002,7381.5476799999997,7561.0674799999997,8416.8546000000006,9166.6926600000006,9992.0547200000001,11028.5242]
["FPSCAcademicAllTransplant Surgery: LiverL","Transplant Surgery: Liver","89","FPSC","Academic","All",2022,5389.7929000000004,5529.2151800000001,5787.3711000000003,6164.4153800000004,6635.2605199999998,6821.0221000000001,7114.5788000000002,7654.26404,8234.8503400000009,8802.5214599999999,9844.5506999999998,10316.649240000001,10466.860060000001,10681.735619999999]
["FPSCAcademicAllUro-GynecologyL","Uro-Gynecology","78","FPSC","Academic","All",2022,5670.5220250000002,5754.99575,5961.4294300000001,6086.5544600000003,6590.8522400000002,6899.8468999999996,7128.0468350000001,7180.56664,7493.9231600000003,7639.42749,7857.1745000000001,8096.9527799999996,9133.0861100000002,9597.3870800000004]
["FPSCAcademicAllUrologyL","Urology","82","FPSC","Academic","All",2022,6428.1221999999998,6803.0173800000002,7282.4113200000002,7688.0536599999996,8111.8764199999996,8520.0975999999991,8911.6302799999994,9318.1843599999993,9867.2710000000006,10239.60852,10737.663,11765.29062,12314.30234,13467.04862]
["FPSCAcademicAllUrology: Urologic CancerL","Urology: Urologic Cancer","BA","FPSC","Academic","All",2022,7699.1668499999996,8333.2909099999997,8803.6406700000007,9189.7281600000006,9961.5187600000008,10271.21535,10712.209075000001,11487.93584,11937.043205,12312.58862,12808.508900000001,13580.58008,14160.876329999999,15522.595009999999]
[]
[]
[]
[]
[null,null,"*Specialty did not meet the threshold for calculations in 2022 and were brought forward from the previous version's benchmarks."]
[]
[]
[null,null,"Confidential – for internal use only.  Copyright, 2022 Vizient Inc./Vizient Data Services, LLC/Association of American Medical Colleges Faculty Practice Solutions Center."]